{"text_format":"1","workbook":"xlsx","n_sheets":20,"sheets":["T&C","Data Entry Requirements","DeclMatrix","UseMGA","ToPDF","MGA","Fields-New","Fields-KeepOrDelete","LifeLookup","MGAtoCSV","List","SIC Lookup","ListValues","LookupTables","Enrollment Form","Validation","Report","Tracking","RevisionLog","Sheet3"],"not_rendered":{"charts":0,"images":3,"macros":1,"external_links":0,"defined_names":155,"comments":0,"pivot_tables":0},"unopened":[],"bounds":{"document_bytes":16777216,"sheet_cells":100000,"rows_first":2000,"rows_last":500,"rows_between":2000,"halvings":0,"cell_chars":16384,"cell_head_chars":4096},"cells_cut":0,"cells_raw":0,"read":"whole","date_system":"1900"}

{"sheet":"T&C","index":0,"n_rows":8,"n_cols":6,"rows_kept":8,"cut":false,"hidden":false,"merged":[[7,5,16,9]]}
[]
[]
[]
[]
[]
[]
[]
[null,null,null,null,null,"*  By clicking on the \"Accept\" button below, you agree to accept all terms and conditions defined in your contract/partnership with Blue Shield of California.  Should you not accept these terms and conditons, please click the \"Decline\" button which will close this workbook."]

{"sheet":"Data Entry Requirements","index":1,"n_rows":142,"n_cols":3,"rows_kept":142,"cut":false,"hidden":true,"merged":[]}
["Section","Field Label","Data Entry Rule"]
["Application Information","Group Tax ID ","Required"]
["Application Information","Applicant Type","Required\nIf Applicant Type = \"Subscriber\" and Application Type = \"ROC\", then next row must be \"Subscriber\""]
["Application Information","Type of Application","Required"]
["Subscriber Information","Subscriber SSN ","Required\nIf Applicant Type <> \"Subscriber\" then Subscriber SSN should match row above"]
["Subscriber Information","Applicant SSN","Required if Applicant Type <> \"Subscriber\""]
["Subscriber Information","Applicant Last Name (incl Suffix)","Required"]
["Subscriber Information","Applicant First Name","Required"]
["Subscriber Information","Applicant Middle Initial ","Optional"]
["Section 1A - Healht plan selection","Health Package","Required If Application Type = Enroll"]
["Section 1A - Healht plan selection","Health Plan","Required unless Health Package = \"None\""]
["Section S1B - Dental benefits","Detal Package","Required If Application Type = Enroll"]
["Section S1B - Dental benefits","Dental Plan","Required unless Dental Package = \"None\""]
["Section SB2 - Vision Coverage","Vision Package","Required If Application Type = Enroll"]
["Section SB2 - Vision Coverage","Vision Plan","Required unless Vision Package = \"None\""]
["Section SB3 - Life / AD&D","Life/AD&D  Option"]
["Section SB3 - Life / AD&D","Desired Employee Basic Life Insurance Amount"]
["Section SB3 - Life / AD&D","Basic Dependent Life Insurance Enroll"]
["Section SB3 - Life / AD&D","Number of Eligible Dependents"]
["Section SB3 - Life / AD&D","Amount Of Coverage Requested For Dependents"]
["Section SB3 - Life / AD&D","Earnings excluding OT, bonus"]
["Section SB3 - Life / AD&D","Earnings Frequency"]
["Beneficiary (Primary 1)","Primary 1 Beneficiary First Name"]
["Beneficiary (Primary 1)","Primary 1 Beneficiary Middle Initial"]
["Beneficiary (Primary 1)","Primary 1 Beneficiary Last Name"]
["Beneficiary (Primary 1)","Primary 1  Beneficiary SSN"]
["Beneficiary (Primary 1)","Primary 1 Relationship"]
["Beneficiary (Primary 1)","Primary 1 Date of Birth"]
["Beneficiary (Primary 1)","Primary 1 Address"]
["Beneficiary (Primary 1)","Primary 1 City"]
["Beneficiary (Primary 1)","Primary 1 State "]
["Beneficiary (Primary 1)","Primary 1 Zip"]
["Beneficiary (Primary 1)","Primary 1 Pct of Benefits"]
["Beneficiary (Primary 2)","Primary 2 Beneficiary First Name"]
["Beneficiary (Primary 2)","Primary 2 Beneficiary Middle Initial"]
["Beneficiary (Primary 2)","Primary 2 Beneficiary Last Name"]
["Beneficiary (Primary 2)","Primary 2 Beneficiary SSN"]
["Beneficiary (Primary 2)","Primary 2 Relationship"]
["Beneficiary (Primary 2)","Primary 2 Date of Birth"]
["Beneficiary (Primary 2)","Primary 2 Address"]
["Beneficiary (Primary 2)","Primary 2 City"]
["Beneficiary (Primary 2)","Primary 2 State "]
["Beneficiary (Primary 2)","Primary 2 Zip"]
["Beneficiary (Primary 2)","Primary 2 Pct of Benefits"]
["Contingent Beneficiary","Contingent Beneficiary First Name"]
["Contingent Beneficiary","Contingent Beneficiary Middle Initial"]
["Contingent Beneficiary","Contingent Beneficiary Last Name"]
["Contingent Beneficiary","Contingent Beneficiary SSN"]
["Contingent Beneficiary","Contingent Beneficiary Relationship"]
["Contingent Beneficiary","Contingent Beneficiary Date of Birth"]
["Contingent Beneficiary","Contingent Beneficiary Address"]
["Contingent Beneficiary","Contingent Beneficiary City"]
["Contingent Beneficiary","Contingent Beneficiary State"]
["Contingent Beneficiary","Contingent Beneficiary Zip"]
["Contingent Beneficiary","Contingent Beneficiary Pct of Benefits"]
["Section 2 - Subscriber Information ","Subscriber -  Home Address","Required if Applicant Type = \"Subscriber\" and Type Application <> \"ROC\""]
["Section 2 - Subscriber Information ","Subscriber - City","Required if Applicant Type = \"Subscriber\" and Type Application <> \"ROC\""]
["Section 2 - Subscriber Information ","Subscriber - State","Required if Applicant Type = \"Subscriber\" and Type Application <> \"ROC\""]
["Section 2 - Subscriber Information ","Subscriber - Zip","Required if Applicant Type = \"Subscriber\" and Type Application <> \"ROC\""]
["Section 2 - Subscriber Information ","Subscriber - Mailing Address (If Different)","Required if Applicant Type = \"Subscriber\" and Type Application <> \"ROC\""]
["Section 2 - Subscriber Information ","Subscriber - City","Required if Applicant Type = \"Subscriber\" and Type Application <> \"ROC\""]
["Section 2 - Subscriber Information ","Subscriber - State","Required if Applicant Type = \"Subscriber\" and Type Application <> \"ROC\""]
["Section 2 - Subscriber Information ","Subscriber - Zip","Required if Applicant Type = \"Subscriber\" and Type Application <> \"ROC\""]
["Section 2 - Subscriber Information ","Subscriber - Work Phone","Required if Applicant Type = \"Subscriber\" and Type Application <> \"ROC\""]
["Section 2 - Subscriber Information ","Subscriber - Home Phone","Required if Applicant Type = \"Subscriber\" and Type Application <> \"ROC\""]
["Section 2 - Subscriber Information ","Language Preference","Required if Applicant Type = \"Subscriber\" and Type Application <> \"ROC\""]
["Section 2 - Subscriber Information ","Subscriber - Email Address","Required if Applicant Type = \"Subscriber\" and Type Application <> \"ROC\""]
["Section 2 - Subscriber Information ","Preferred Method Of Contact","Required if Applicant Type = \"Subscriber\" and Type Application <> \"ROC\""]
["Section 2 - Subscriber Information ","Subscriber - Date of Birth","Required if Applicant Type = \"Subscriber\" and Type Application <> \"ROC\""]
["Section 2 - Subscriber Information ","Subscriber - Gender","Required if Applicant Type = \"Subscriber\" and Type Application <> \"ROC\""]
["Section 2 - Subscriber Information ","Subscriber - Marital Status","Required if Applicant Type = \"Subscriber\" and Type Application <> \"ROC\""]
["Section 2 - Subscriber Information ","Date Of Hire","Required if Applicant Type = \"Subscriber\" and Type Application <> \"ROC\""]
["Section 2 - Subscriber Information ","Job Title","Required if Applicant Type = \"Subscriber\" and Type Application <> \"ROC\""]
["Section 2 - Subscriber Information ","Job Classification","Required if Applicant Type = \"Subscriber\" and Type Application <> \"ROC\""]
["Section 2 - Subscriber Information ","Do you have any eligible dependent children under the age of 26?","Required if Applicant Type = \"Subscriber\" and Type Application <> \"ROC\""]
["Section 2 - Subscriber Information ","How Many?","Required if Applicant Type = \"Subscriber\" and Type Application <> \"ROC\""]
["Section 2 - Subscriber Information ","How Many Are Enrolling?","Required if Applicant Type = \"Subscriber\" and Type Application <> \"ROC\""]
["Section 2 - Subscriber Information ","Do you work 30 hours per week or more?","Required if Applicant Type = \"Subscriber\" and Type Application <> \"ROC\""]
["Section 2 - Subscriber Information ","Do you work between 20 and 29 hours per week?","Required if Applicant Type = \"Subscriber\" and Type Application <> \"ROC\""]
["Section 2 - Subscriber Information ","If no, are you an existing Cobra participant or enrolling due to a Cobra qualifying event?","Required if Applicant Type = \"Subscriber\" and Type Application <> \"ROC\""]
["Section 3 - Provider Assignment","Should Blue Shield designate a Provider?","Required if Health Plan contains \"HMO\" or if Dental Package contains \"HMO\"\nN/A for Spouse/ Dependent"]
["Section 3 - Provider Assignment","Medical HMO Personal Physician Name","Required if Should BSC Designate a Provider = \"No\" and Applicant Type = \"Subscriber\"\nN/A for Spouse/ Dependent"]
["Section 3 - Provider Assignment","Provider Number","Required if Should BSC Designate a Provider = \"No\" and Applicant Type = \"Subscriber\"\nN/A for Spouse/ Dependent"]
["Section 3 - Provider Assignment","IPA/MG Name","Required if Should BSC Designate a Provider = \"No\" and Applicant Type = \"Subscriber\"\nN/A for Spouse/ Dependent"]
["Section 3 - Provider Assignment","Existing Patient?","Required if Should BSC Designate a Provider = \"No\" and Applicant Type = \"Subscriber\"\nN/A for Spouse/ Dependent"]
["Section 3 - Provider Assignment","Dental HMO Provider Name ","Required if Should BSC Designate a Provider = \"No\" and Applicant Type = \"Subscriber\"\nN/A for Spouse/ Dependent"]
["Section 3 - Provider Assignment","Dental Provider Number","Required if Should BSC Designate a Provider = \"No\" and Applicant Type = \"Subscriber\"\nN/A for Spouse/ Dependent"]
["Section 3 - Provider Assignment","Dental Group Name","Required if Should BSC Designate a Provider = \"No\" and Applicant Type = \"Subscriber\"\nN/A for Spouse/ Dependent"]
["Section 3 - Provider Assignment","Existing Patient?","Required if Should BSC Designate a Provider = \"No\" and Applicant Type = \"Subscriber\"\nN/A for Spouse/ Dependent"]
["Section 4 = Dependent","Dependent - Gender","Required for all Dependents\nN/A for Subscriber"]
["Section 4 = Dependent","Enroll In All Products Selected By Subscriber?","Required for all Dependents\nN/A for Subscriber"]
["Section 4 = Dependent","Dependent - Date Of Birth","Required for all Dependents\nN/A for Subscriber"]
["Section 4 = Dependent","Dependent - Address (if different from subscriber) ","Required for all Dependents\nN/A for Subscriber"]
["Section 4 = Dependent","Dependent - City","Required for all Dependents\nN/A for Subscriber"]
["Section 4 = Dependent","Dependent - State","Required for all Dependents\nN/A for Subscriber"]
["Section 4 = Dependent","Dependent - ZIP","Required for all Dependents\nN/A for Subscriber"]
["Section 4 = Dependent","Dependent - HMO Personal Physician Name","Optional for all Dependents\nN/A for Subscriber"]
["Section 4 = Dependent","Dependent - Provider Number","Optional for all Dependents\nN/A for Subscriber"]
["Section 4 = Dependent","Dependent - IPA Name","Optional for all Dependents\nN/A for Subscriber"]
["Section 4 = Dependent","Dependent - Existing Medical Patient","Optional for all Dependents\nN/A for Subscriber"]
["Section 4 = Dependent","Dependent - Dental HMO Provider Name ","Optional for all Dependents\nN/A for Subscriber"]
["Section 4 = Dependent","Dependent - Dental Provider Number","Optional for all Dependents\nN/A for Subscriber"]
["Section 4 = Dependent","Dependent - Dental Group Name","Optional for all Dependents\nN/A for Subscriber"]
["Section 4 = Dependent","Dependent - Existing Dental Patient","Optional for all Dependents\nN/A for Subscriber"]
["Section 5 - Prior Coverage","Any Prior Coverage In The Past 6 Months?","Required if Applicant Type = Subscriber and Type Application <> \"ROC\""]
["Section 5 - Prior Coverage","If Prior Coverage, List Prior Carrier Name","Required if Applicant Type = Subscriber and Any Prior Coverage in the Past 6 Months = Yes"]
["Section 5 - Prior Coverage","Type of Coverage","Required if Applicant Type = Subscriber and Any Prior Coverage in the Past 6 Months = Yes"]
["Section 5 - Prior Coverage","Policy ID Number","Required if Applicant Type = Subscriber and Any Prior Coverage in the Past 6 Months = Yes"]
["Section 5 - Prior Coverage","Date Prior Coverage Began","Required if Applicant Type = Subscriber and Any Prior Coverage in the Past 6 Months = Yes"]
["Section 5 - Prior Coverage","Date Prior Coverage Ended","Required if Applicant Type = Subscriber and Any Prior Coverage in the Past 6 Months = Yes"]
["Section 5 - Prior Coverage","Family Members with Prior Coverage.","Required if Applicant Type = Subscriber and Any Prior Coverage in the Past 6 Months = Yes"]
["Section 6 - COBRA","Are You Enrolling In Cobra or Cal-Cobra?","Required if \"are you an existing Cobra participant or enrolling due to a Cobra qualifying event?\" in Section 2 = Yes and Applicant Type = \"Subscriber\""]
["Section 6 - COBRA","Employee/Subscriber Blue Shield ID Number","Required if \"Are you enrolling in Cobra or Cal-Cobra? = \"Yes\""]
["Section 6 - COBRA","Original Qualifying Event Date","Required if \"Are you enrolling in Cobra or Cal-Cobra? = \"Yes\""]
["Section 6 - COBRA","Qualifying Event Reason","Required if \"Are you enrolling in Cobra or Cal-Cobra? = \"Yes\""]
["Section 7 - Signature","Signature Of Employee","Required if Applicant Type = \"Subscriber\" and Type Application <> \"ROC\""]
["Section 7 - Signature","Date","Required if Applicant Type = \"Subscriber\" and Type Application <> \"ROC\""]
["REFUSAL OF COVERAGE","Are all eligible family members enrolling?"]
["REFUSAL OF COVERAGE","Date of Birth"]
["REFUSAL OF COVERAGE","Hire Date"]
["REFUSAL OF COVERAGE","State of Residence"]
["REFUSAL OF COVERAGE","Marital Status"]
["REFUSAL OF COVERAGE","Job Title"]
["REFUSAL OF COVERAGE","Are you a FT Employee - 30 or more hours per week?"]
["REFUSAL OF COVERAGE","Are you a PT Employee - 20-29 hours per week?"]
["REFUSAL OF COVERAGE","Declining Medical coverage"]
["REFUSAL OF COVERAGE","Reason For declining Medical"]
["REFUSAL OF COVERAGE","If covered by another Medical carrier, please name carrier"]
["REFUSAL OF COVERAGE","Member ID at Medical Carrier"]
["REFUSAL OF COVERAGE","Declining Dental coverage"]
["REFUSAL OF COVERAGE","Reason For declining Dental"]
["REFUSAL OF COVERAGE","If covered by another Dental carrier, please name carrier"]
["REFUSAL OF COVERAGE","Member ID at Dental Carrier"]
["REFUSAL OF COVERAGE","Declining Vision coverage"]
["REFUSAL OF COVERAGE","Reason For declining Vision coverage"]
["REFUSAL OF COVERAGE","If covered by another Vision carrier, please name carrier"]
["REFUSAL OF COVERAGE","Member ID at Vision Carrier"]
["REFUSAL OF COVERAGE","Declining Life coverage"]
["REFUSAL OF COVERAGE","Reason for declining Life coverage"]
["REFUSAL OF COVERAGE","If covered by another Life carrier, please name carrier"]
["REFUSAL OF COVERAGE","Member ID at Life Carrier"]
["REFUSAL OF COVERAGE","Other Non-Employer Health Coverage"]

{"sheet":"DeclMatrix","index":2,"n_rows":12,"n_cols":6,"rows_kept":12,"cut":false,"hidden":true,"merged":[]}
[null,"Subscriber","Spouse","Domestic Partner","Dependent Child","Other Dependent Child - Guardianship"]
["Myself and all dependents","Yes","Yes","Yes","Yes","Yes"]
["My spouse/Domestic partner only","No","Yes","Yes","No","No"]
["My Children Only","No","No","No","Yes","Yes"]
["My spouse/Domestic partner and children","No","Yes","Yes","Yes","Yes"]
["The following dependents only"]
[]
["Subscriber",2]
["Spouse",3]
["Domestic Partner",4]
["Dependent Child",5]
["Other Dependent Child - Guardianship",6]

{"sheet":"UseMGA","index":3,"n_rows":1,"n_cols":2,"rows_kept":1,"cut":false,"hidden":true,"merged":[]}
["Will Excel MGA be used in combination with the Excel EEA?","No"]

{"sheet":"ToPDF","index":4,"n_rows":25,"n_cols":5,"rows_kept":25,"cut":false,"hidden":true,"merged":[[0,1,0,4],[1,1,1,4]]}
["Group name:",{"$f":"MGA!D3","v":0}]
["Doing business as (DBA):",{"$f":"IF(MGA!D5<>\"\",MGA!D5,\"\")","v":""}]
[]
["Group Tax ID: ",{"$f":"MGA!D4","v":0},null,"Zip code:",{"$f":"MGAtoCSV!G2","v":0}]
["Effective date:",{"$f":"MGA!D2","v":"00:00:00"},null,"Email:",{"$f":"MGA!D29","v":0}]
["Primary Contact:",{"$f":"MGA!D25&\" \"&MGA!D26","v":" "}]
["Phone:",{"$f":"MGA!D28","v":0}]
[]
["Agency name: ",{"$f":"MGA!D182","v":0},null,"Broker tax ID:",{"$f":"MGA!D183","v":0}]
["Producer name: ",{"$f":"MGA!D184","v":0},null,"CID License No.:",{"$f":"MGA!D185","v":0}]
["Producer email:",{"$f":"MGA!D186","v":0},null,"Producer phone: ",{"$f":"MGA!D187","v":0}]
["Producer contact:",{"$f":"MGA!D193","v":0},null,"Producer contact email:",{"$f":"MGA!D194","v":0}]
["Street Address: ",{"$f":"MGA!D188","v":0},null,"City/State Zip:  ",{"$f":"MGA!D189&\", \"&MGA!D190&\"  \"&MGA!D191","v":",   "}]
[]
["Is this a split commission: ",{"$f":"MGA!D196","v":0},null,"Name of 2nd producer:",{"$f":"IF($B$15=\"No\",\"\",MGA!D200)","v":0}]
["Prod 1 Split:",{"$f":"IF($B$15=\"No\",\"\",MGA!D198)","v":0},null,"2nd producer Tax ID:",{"$f":"IF($B$15=\"No\",\"\",MGA!D201)","v":0}]
["Prod 2 Split:",{"$f":"IF($B$15=\"No\",\"\",MGA!D199)","v":""}]
[]
["GA name:",{"$f":"MGA!D202","v":0},null,"GA tax ID:",{"$f":"MGA!D203","v":0}]
["Producer name: ",{"$f":"MGA!D204","v":0},null,"GA email: ",{"$f":"MGA!D205","v":0}]
["Todays Date: ",{"$f":"MGA!D207","v":"00:00:00"}]
[]
["Account executive: ",{"$f":"MGA!D221","v":0},null,"Phone:",{"$f":"MGA!E221","v":0}]
["Account manager:",{"$f":"MGA!D222","v":0},null,"Phone:",{"$f":"MGA!E222","v":0}]
["Sales assistant:",{"$f":"MGA!D223","v":0},null,"Phone:",{"$f":"MGA!E223","v":0}]

{"sheet":"MGA","index":5,"n_rows":223,"n_cols":13,"rows_kept":223,"cut":false,"hidden":true,"merged":[[211,1,216,1],[81,1,129,1],[132,1,141,1],[168,1,180,1],[181,1,200,1],[205,1,210,1],[142,1,149,1],[150,1,167,1],[201,1,204,1],[219,7,219,11],[37,2,41,2],[29,4,33,4],[67,4,69,4],[64,4,66,4],[78,1,79,1],[130,1,131,1],[7,2,7,3],[42,1,45,1],[51,1,59,1],[70,1,77,1],[2,1,16,1],[12,2,12,3],[37,1,41,1],[46,1,50,1],[24,1,34,1],[35,1,36,1],[60,1,69,1],[17,2,17,3],[23,2,23,4],[24,4,28,4]]}
["API Names","Section","Question","Answer",null,null,null,"Mandatory\nValue","Allowed Length","Actual Length","Length Error","Logic"]
["Effective_Date__c",null,"Requested coverage effective date",null,null,null,null,{"$f":"IF(AND(CellColor=36,D2=\"\"),1,0)","v":1},null,{"$f":"IF(I2=\"\",\"\",LEN(D2))","v":""},{"$f":"IF(J2=\"\",\"\",IF(J2>I2,1,0))","v":""}]
["Full_legal_business_name__c","1A  EMPLOYER INFORMATION","Full legal business name of group",null,null,null,null,{"$f":"IF(AND(CellColor=36,D3=\"\"),1,0)","v":1},"80",{"$f":"IF(I3=\"\",\"\",LEN(D3))","v":0},{"$f":"IF(J3=\"\",\"\",IF(J3>I3,1,0))","v":0}]
["Federal_Tax_ID__c",null,"Federal Tax Identification (TID) number",null,null,null,null,{"$f":"IF(AND(CellColor=36,D4=\"\"),1,0)","v":1},"11",{"$f":"IF(I4=\"\",\"\",LEN(D4))","v":0},{"$f":"IF(J4=\"\",\"\",IF(J4>I4,1,0))","v":0}]
["Doing_Business_As_Name__c",null,"Doing business as (DBA), if applicable:",null,null,null,null,null,null,{"$f":"IF(I5=\"\",\"\",LEN(D5))","v":""},{"$f":"IF(J5=\"\",\"\",IF(J5>I5,1,0))","v":""}]
["Primary_products_SIC_1__c",null,"Standard Industry Classification (SIC)",null,"Use OSHA website",null,null,{"$f":"IF(AND(CellColor=36,D6=\"\"),1,0)","v":1},"50",{"$f":"IF(I6=\"\",\"\",LEN(D6))","v":0},{"$f":"IF(J6=\"\",\"\",IF(J6>I6,1,0))","v":0}]
["Primary_products_of_business_1__c",null,"Industry description"]
[null,null,"Principal business address in California- number and street (no P.O. box)",null,null,null,null,null,null,"",""]
["Physical_address_if_different_Billing__c",null,"Street:",null,null,null,null,null,"120",0,0]
["Physical_Address_City__c",null,"City:",null,null,null,null,null,"80",0,0]
["Physical_Address_State__c",null,"State:",null,null,null,null,null,"2",0,0]
["Physical_Address_Zip__c",null,"ZIP code:",null,null,null,null,null,"9",0,0]
[null,null,"Billing address: (if different from above)",null,null,null,null,null,null,"",""]
["Billing_address__c",null,"Street:",null,null,null,null,null,"120",0,0]
["Billing_City__c",null,"City:",null,null,null,null,null,"80",0,0]
["Billing_State__c",null,"State:",null,null,null,null,null,"2",0,0]
["Billing_Zip__c",null,"ZIP code:",null,null,null,null,null,"9",0,0]
[null,null,"Location of group headquarters (if different from “Principal business address in California” above) – number and street (no P.O. box)*"]
["Principal_Business_Street__c",null,"Street:",null,null,null,null,null,"120",{"$f":"IF(I19=\"\",\"\",LEN(D19))","v":0},{"$f":"IF(J19=\"\",\"\",IF(J19>I19,1,0))","v":0}]
["Principal_Business_City__c",null,"City:",null,null,null,null,null,"80",0,0]
["Principal_Business_State__c",null,"State:",null,null,null,null,null,"2",0,0]
["Principal_Business_Zip__c",null,"ZIP code:",null,null,null,null,null,"9",0,0]
["Principal_Business_Country__c",null,"Country:"]
[null,null,"*The principal business address means the principal business address registered with the Secretary of the State of California. If a principal business address is not registered with the State or is registered solely for purposes of service of process and is not a substantial worksite for the group's business, then provide the business address within the State where the greatest number of employees work."]
["Primary_Contact_First_Name__c","1B GROUP CONTACT INFORMATION","Primary group contact:  First Name",null,"Primary group contact",null,null,{"$f":"IF(AND(CellColor=36,D25=\"\"),1,0)","v":1},"80",0,0]
["Primary_Contact_Last_Name__c",null,"Primary group contact:  Last Name",null,null,null,null,{"$f":"IF(AND(CellColor=36,D26=\"\"),1,0)","v":1},"80",0,0]
["Group_Contact_name_title__c",null,"Title",null,null,null,null,null,"80",0,0]
["Group_Contact_Phone_number__c",null,"Phone number",null,null,null,null,null,null,"",""]
["Group_Contact_Email_address__c",null,"Email address (required):",null,null,null,null,{"$f":"IF(AND(CellColor=36,D29=\"\"),1,0)","v":1},null,"","",{"$f":"IF(D29=\"\",\"\",IF(OR(ISERROR(FIND(\".\",D29)),ISERROR(FIND(\"@\",D29))),1,IF(AND(FIND(\"@\",D29)>1,FIND(\".\",D29,FIND(\"@\",D29))>0),0,1)))","v":""},"Email format must have a \"@\" with a \".\" in the string after it"]
["Secondary_Contact_First_Name__c",null,"Secondary group contact:  First Name",null,"Secondary group contact",null,null,null,"80",0,0]
["Secondary_Contact_Last_Name__c",null,"Secondary group contact:  Last Name",null,null,null,null,null,"80",0,0]
["Secondary_Group_Contact_name_title__c",null,"Title",null,null,null,null,null,"80",0,0]
["Secondary_Group_Contact_Phone__c",null,"Phone number",null,null,null,null,null,null,"",""]
["Secondary_Group_Contact_Email__c",null,"Email address",null,null,null,null,null,null,"","",{"$f":"IF(D34=\"\",\"\",IF(OR(ISERROR(FIND(\".\",D34)),ISERROR(FIND(\"@\",D34))),1,IF(AND(FIND(\"@\",D34)>1,FIND(\".\",D34,FIND(\"@\",D34))>0),0,1)))","v":""},"Email format must have a \"@\" with a \".\" in the string after it"]
["Is_Online_Contact__c",null,"Check here to register the primary group contact for online account access.",null,null,null,null,{"$f":"IF(AND(CellColor=36,D35=\"\"),1,0)","v":1},null,{"$f":"IF(I35=\"\",\"\",LEN(D35))","v":""},{"$f":"IF(J35=\"\",\"\",IF(J35>I35,1,0))","v":""}]
["Legal_Entity__c","1C LEGAL ENTITY TYPE","Legal entity type:",null,null,null,null,{"$f":"IF(AND(CellColor=36,D36=\"\"),1,0)","v":1},null,"",""]
["Other_Legal_Entity__c",null,"If \"Other\", please specify:",null,null,null,null,{"$f":"IF(AND(D36=\"Other\",D37=\"\"),1,0)","v":0},"80",0,0]
["Any_Subsidiaries__c","1D AFFILIATED COMPANIES AND SUBSIDIARIES","Does the group have any subsidiary or affiliated companies?",null,null,null,null,{"$f":"IF(AND(CellColor=36,D38=\"\"),1,0)","v":1},null,{"$f":"IF(I38=\"\",\"\",LEN(D38))","v":""},{"$f":"IF(J38=\"\",\"\",IF(J38>I38,1,0))","v":""}]
["List_subsidiary_or_affiliated_companies__c ARRAY",null,null,"Subsidiary or affiliated company name(s)","Include in coverage?","Eligible to file a combined state tax return?",null,null,null,{"$f":"IF(I39=\"\",\"\",LEN(D39))","v":""},{"$f":"IF(J39=\"\",\"\",IF(J39>I39,1,0))","v":""}]
["Subsidiary_affiliated_co_name_1__c/Include_in_coverage_1__c/Elig_to_file_combined_state_tax_return_1__c",null,null,null,null,null,null,{"$f":"IF(AND(D38=\"Yes\",COUNTA(D40:F42)<3),1,0)","v":0},null,{"$f":"IF(I40=\"\",\"\",LEN(D40))","v":""},{"$f":"IF(J40=\"\",\"\",IF(J40>I40,1,0))","v":""}]
["Subsidiary_affiliated_co_name_2__c/Include_in_coverage_2__c/Elig_to_file_combined_state_tax_return_2__c",null,null,null,null,null,null,null,null,{"$f":"IF(I41=\"\",\"\",LEN(D41))","v":""},{"$f":"IF(J41=\"\",\"\",IF(J41>I41,1,0))","v":""}]
["Subsidiary_affiliated_co_name_3__c/Include_in_coverage_3__c/Elig_to_file_combined_state_tax_return_3__c",null,null,null,null,null,null,null,null,{"$f":"IF(I42=\"\",\"\",LEN(D42))","v":""},{"$f":"IF(J42=\"\",\"\",IF(J42>I42,1,0))","v":""}]
["Name_of_prior_group_health_carrier__c","2A PREVIOUS AND CURRENT COVERAGE","If the group has had or currently has medical coverage, who was/is the most recent carrier(s)? "]
["Offer_other_carriers_plans_to_employees__c",null,"Is the group intending to offer Blue Shield alongside another carrier?",null,null,null,null,{"$f":"IF(AND(CellColor=36,D44=\"\"),1,0)","v":1},null,"",""]
["If_other_plan_offered_carrier_name__c",null,"If yes, carrier name:",null,null,null,null,{"$f":"IF(AND($D$44=\"Yes\",D45=\"\"),1,0)","v":0},"80",0,0]
["If_other_plan_offered_number_of_employee__c",null,"Number of employees enrolled:",null,null,null,null,{"$f":"IF(AND($D$44=\"Yes\",D46=\"\"),1,0)","v":0},null,"",""]
["Is_group_subject_to_CalCOBRA__c","2B CONTINUATION COVERAGE","Is the group currently subject to Cal-COBRA?\n(2-19 eligible employees, employed 50% working days in previous calendar year; or if not in the business during the previous calendar year, during the previous calendar quarter.)",null,null,null,null,{"$f":"IF(AND(CellColor=36,D47=\"\"),1,0)","v":1},null,{"$f":"IF(I47=\"\",\"\",LEN(D47))","v":""},{"$f":"IF(J47=\"\",\"\",IF(J47>I47,1,0))","v":""},{"$f":"IF(OR(COUNTIF($D$47:$D$48,\"Yes\")=2,COUNTIF($D$47:$D$48,\"No\")=2),1,0)","v":0},"Can only be subject to CalCOBRA or Federal COBRA, not both."]
["Is_group_subject_to_federal_COBRA__c",null,"Is the group currently subject to Federal COBRA?\n(20+ total employees, employed 50% working days in previous calendar year.)",null,null,null,null,{"$f":"IF(AND(CellColor=36,D48=\"\"),1,0)","v":1},null,"",""]
["Existing_CalCOBRA_or_COBRA_members__c",null,"Number of current COBRA/Cal-COBRA enrollees?",null,null,null,null,{"$f":"IF(AND($D$47=\"Yes\",D49=\"\"),1,0)","v":0},null,"",""]
["CalCOBRA_eligibility_election_period__c",null,"How many employees and/or family members are in a COBRA/Cal-COBRA election period?",null,null,null,null,{"$f":"IF(AND($D$47=\"Yes\",D50=\"\"),1,0)","v":0},null,"",""]
["Enroll_forms_attached_cobra__c",null,"Are enrollment forms attached for all enrolling COBRA/Cal-COBRA participants?",null,null,null,null,null,null,{"$f":"IF(I51=\"\",\"\",LEN(D51))","v":""},{"$f":"IF(J51=\"\",\"\",IF(J51>I51,1,0))","v":""}]
["No_of_employees__c","3A EMPLOYEE COUNTS","Total # of employees",null,null,null,null,{"$f":"IF(AND(CellColor=36,D52=\"\"),1,0)","v":1},null,{"$f":"IF(I52=\"\",\"\",LEN(D52))","v":""},{"$f":"IF(J52=\"\",\"\",IF(J52>I52,1,0))","v":""}]
["No_of_eligible_employees__c",null,"Total # of eligible full-time employees (including eligible sole proprietors and partners)",null,null,null,null,{"$f":"IF(AND(CellColor=36,D53=\"\"),1,0)","v":1},null,"",""]
["Coverage_employees_work_b_w_2030_hours__c",null,"Is the group offering coverage to part-time employees?"]
["Total_eligible_part_time__c",null,"Total # of eligible part-time employees (if offering coverage to all similarly situated employees)",null,null,null,null,{"$f":"IF(AND(CellColor=36,D55=\"\"),1,0)","v":0},null,"",""]
[null,null,null,"Total # of eligible employees enrolling in coverage:","Total # of eligible employees refusing coverage:",null,null,null,null,"",""]
["Medical_enrollment__c/Refusing_Medical__c",null,"Medical coverage:",null,null," *Leave columns D & E blank if product not being offered",null,null,null,"","",{"$f":"IF(SUM(D57:E57)=0,0,IF(SUM(D57:E57)<>SUM($D$53:$D$55),1,0))","v":0},"Medical Enrollees + Medical Declines must = Total Eligible"]
["Dental_enrollment__c/Refusing_Dental__c",null,"Dental coverage:",null,null," *Leave columns D & E blank if product not being offered",null,null,null,"","",{"$f":"IF(SUM(D58:E58)=0,0,IF(SUM(D58:E58)<>SUM($D$53:$D$55),1,0))","v":0},"Dental Enrollees + Dental Declines must = Total Eligible"]
["Vision_enrollment__c/Refusing_Vision__c",null,"Vision coverage:",null,null," *Leave columns D & E blank if product not being offered",null,null,null,"","",{"$f":"IF(SUM(D59:E59)=0,0,IF(SUM(D59:E59)<>SUM($D$53:$D$55),1,0))","v":0},"Vision Enrollees + Vision Declines must = Total Eligible"]
["Life_enrollment__c/Refusing_Life__c",null,"Life insurance coverage:",null,null," *Leave columns D & E blank if product not being offered",null,null,null,"","",{"$f":"IF(SUM(D60:E60)=0,0,IF(SUM(D60:E60)<>SUM($D$53:$D$55),1,0))","v":0},"Life Enrollees + Life Declines must = Total Eligible"]
["Is_the_Grp_Actively_Engaged_In_Business__c","3B GROUP ELIGIBILITY","Is the group actively engaged in business or service? \nA \"Yes\" answer means the business currently provides goods or services. \nA \"No\" answer means the business does not currently provide goods or services. "]
["Was_Group_Formed_for_HC__c",null,"Was the group formed primarily for the purpose of buying health coverage? \nA \"Yes\" answer means the business was established solely to obtain healthcare coverage, not to provide goods or services. \nA \"No\" answer means the business was established solely to provide goods or services. "]
["Group_Employ_1_100_employees_on_50__c",null,"Did the group employ 1-100 employees on at least 50% of its working days during the preceding calendar quarter or preceding calendar year (unless the group is a startup), the majority of whom reside within the state of CA, and in which a bona fide employer-employee relationship exists? "]
["Grp_Employ_1_W2__c",null,"Does your group employ at least one W-2 (\"common law”) employee listed on the employer's DE 9C, who meets the definition of an “eligible employee”, who isn’t the sole proprietor, a partner of the partnership, or their spouse or registered domestic partner?"]
["FT_FTE_Count__c",null,"Total # of current FTE and FTE Equivalents",null,"In state",null,null,{"$f":"IF(AND(CellColor=36,D65=\"\"),1,0)","v":1},null,"",""]
["If_How_Many_in_Prior_Quarter__c",null,"If current count is >100, how many employed in prior calendar quarter?"]
["IF_prior_QC_Count_How_many_in_Prior_Ye__c",null,"If prior calendar quarter count is >100 how many employed in prior calendar year?"]
["If_yes_how_many__c",null,"Total # of FTE and FTE Equivalents employed out of state?",null,"Out of state",null,null,{"$f":"IF(AND(D66=\"Yes\",D68=\"\"),1,0)","v":0},null,"",""]
["Total_FT_and_FTE_employed_OOS_QC__c",null,"Total FTE and FTE Equivalent employed out of state during the prior calendar quarter"]
["Total_FT_and_FTE_employed_OOS_CY__c",null,"Total FTE and FTE Equivalent employed out of state during the prior calendar year"]
["All_full_time_employees_offered_covered__c","4 ADDITIONAL GROUP INFORMATION","Are all full-time eligible employees being offered health coverage? (Employess who waive coverage on the grounds that they have group coverage through another employer are not counted as eligible employees).",null,null,null,null,{"$f":"IF(AND(CellColor=36,D71=\"\"),1,0)","v":1},null,{"$f":"IF(I71=\"\",\"\",LEN(D71))","v":""},{"$f":"IF(J71=\"\",\"\",IF(J71>I71,1,0))","v":""}]
["Reside_in_the_service_area__c",null,"Do all employees and their dependents who are to be covered by the plan contract work or reside in the service area in which the plan provides or otherwise arranges for the provision of health services? "]
["All_employees_covered_by_workers_comp__c",null,"Are all employees covered by workers’ compensation to the extent required by law?",null,null,null,null,{"$f":"IF(AND(CellColor=36,D73=\"\"),1,0)","v":1},null,"",""]
["Union_and_Non_Union_Employees__c",null,"Does the group employ both union and non-union employees?"]
["Group_used_employees_from_a_PEO__c",null,"Has the group used employees leased from a Professional Employer Organization (PEO) within the past six weeks?\nA leased employee is employed and paid by the PEO. When the PEO performs administrative services only, such as payroll processing, the employees are not leased."]
["Terminating_an_Arrangement_with_a_PEO__c",null,"If yes, are you canceling this leasing arrangement and hiring employees?"]
["Is_the_Group_a_Spinoff__c",null,"Is the group a spinoff?"]
["Is_the_Group_a_Startup__c",null,"Is the group a startup?"]
["New_Employee_Waiting_Period__c","5 EMPLOYER ORIENTATION AND WAITING PERIODS ","Choose one of the following options. Coverage for eligible employees will become effective following completion of the waiting period on the day specified.",null,null,null,null,{"$f":"IF(AND(CellColor=36,D79=\"\"),1,0)","v":1},null,{"$f":"IF(I79=\"\",\"\",LEN(D79))","v":""},{"$f":"IF(J79=\"\",\"\",IF(J79>I79,1,0))","v":""}]
["Waiting_period_waved_existing_employees__c",null,"Does the group intend to offer coverage to employees currently in the employer waiting period for the original effective date of the group contract (i.e., one-time waiver of employer waiting period)?",null,null,null,null,{"$f":"IF(AND(CellColor=36,D80=\"\"),1,0)","v":1},null,"",""]
[null,"6 NOTICES AND ELECTRONIC DISTRIBUTION OF MATERIALS","Summary of Benefits and Coverage (SBC) forms are available for all health plans. These forms summarize coverage and benefits for all plans in a uniform manner. Log in to blueshieldca.com/sbc to review SBC forms for any plan prior to submitting an application. Once the group’s application for coverage is approved, download the SBC form(s) for benefit plans specific to your group at bscadocs.com/sbc to distribute to employees.\n\nThe group is responsible for the prompt distribution of the Evidence of Coverage booklets and other required coverage notices (\"required materials\") to covered employees. Electronic versions of required materials are emailed directly to the group administrator. For printed versions of required materials, please contact us at (800) 559-5905. \n"]
[null,"7A MEDICAL PLANS","PPO plans",null,null,null,null,null,null,"",""]
[null,null,"Choose from the Full PPO Network (including HDHP plans) and the Tandem PPO Network",null,null,null,null,null,null,"",""]
[]
[null,null,"Individually select plans that the group would like to offer to all future and current employees:"]
["Plan_Packages__c DERIVED FIELD",null,"PPO plans – Full PPO Network","HSA-compatible HDHP plans – Full PPO AND Tandem PPO Networks","Tandem PPO plans – Tandem PPO Network",null,null,null,null,"",""]
["Medical_Plans_Selected__c ARRAY",null,"or select from individual plans below:","or select from individual plans below:","or select from individual plans below:",null,null,null,null,"",""]
[null,null,null,null,null,null,null,null,null,"",""]
[null,null,null,null,null,null,null,null,null,"",""]
[]
[null,null,null,null,null,null,null,null,null,{"$f":"IF(I91=\"\",\"\",LEN(D91))","v":""},""]
[null,null,null,null,null,null,null,null,null,"",""]
[null,null,null,null,null,null,null,null,null,"",""]
[null,null,null,null,null,null,null,null,null,"",""]
[null,null,null,null,null,null,null,null,null,"",""]
[null,null,null,null,null,null,null,null,null,"",""]
[null,null,null,null,null,null,null,null,null,"",""]
[]
[null,null,null,null,null,null,null,null,null,"",""]
[null,null,null,null,null,null,null,null,null,"",""]
[null,null,null,null,null,null,null,null,null,"",""]
[]
[null,null,"HMO plans",null,null,null,null,null,null,"",""]
[null,null,"Choose from the Access+ HMO Network and the Trio ACO HMO Network or from the Local Access+ HMO Network and the Trio ACO HMO Network.",null,null,null,null,null,null,"",""]
[]
[]
[null,null,"Individually choose Trio HMO/Access+ HMO or Trio/Local Access+ HMO from below:"]
[null,null,"Access+ HMO plans – Access+ HMO Network","Trio HMO plans – Trio ACO HMO Network","Local Access+ HMO plans – Local Access+ HMO Network",null,null,null,null,"",""]
[null,null,"or select from individual plans below:","or select from individual plans below:","or select from individual plans below:",null,null,null,null,"",""]
[null,null,null,null,null,null,null,null,null,"","",{"$f":"IF(AND(COUNTA($C$110:$C$117)>0,COUNTA($E$110:$E$117)>0),1,0)","v":0},"Local Access+ plan selection(s) cannot be combined with Access+ plan selection(s)"]
[null,null,null,null,null,null,null,null,null,"",""]
[null,null,null,null,null,null,null,null,null,"",""]
[null,null,null,null,null,null,null,null,null,"",""]
[]
[null,null,null,null,null,null,null,null,null,{"$f":"IF(I115=\"\",\"\",LEN(D115))","v":""},""]
[]
[null,null,null,null,null,null,null,null,null,"",""]
[null,null,null,null,null,null,null,null,null,"",""]
[null,null,"Mirror Plans",null,null,null,null,null,null,"",""]
[null,null,"Choose up to all 7 plans",null,null,null,null,null,null,"",""]
[null,null,"Mirror Plans",null,null,null,null,null,null,"",""]
[null,null,"or select from individual plans below:",null,null,null,null,null,null,"",{"$f":"IF(J122=\"\",\"\",IF(J122>I122,1,0))","v":""}]
[null,null,null,null,null,null,null,null,null,"","",{"$f":"IF(AND(COUNTA(C88:E99,C110:E117)>0,COUNTA(C123:C129)>0),1,0)","v":0},"Mirrored plans cannot be selected alongside Off-Exchange plans"]
[null,null,null,null,null,null,null,null,null,"",""]
[null,null,null,null,null,null,null,null,null,"",""]
[null,null,null,null,null,null,null,null,null,"",""]
[null,null,null,null,null,null,null,null,null,"",""]
[null,null,null,null,null,null,null,null,null,"",""]
[null,null,null,null,null,null,null,null,null,"",""]
[null,null,null,null,null,null,null,null,null,"",""]
["ABHP__c","7B ADDITIONAL SELECTIONS","If you selected an HDHP plan, you may choose to make HealthEquity your HSA administrator.  Choosing HealthEquity means Blue Shield shares eligibility and claims data for a seamless experience.  If you do not select HealthEquity, please work directly with your own administrator.",null,null,null,null,{"$f":"IF(AND(COUNTA(D88:D91)>0,D131=\"\"),1,0)","v":0},null,{"$f":"IF(I131=\"\",\"\",LEN(D131))","v":""},{"$f":"IF(J131=\"\",\"\",IF(J131>I131,1,0))","v":""}]
["Infertility_rider__c",null,"If selected, a rider for infertility benefits will be added to all medical plans for the entire group.  This rider can be offered with either an off-exchange or a mirror plan package, HMO and PPO.",null,null,null,null,{"$f":"IF(OR($D$57=0,$D$57=\"\"),0,IF(AND(CellColor=36,D132=\"\"),1,0))","v":0},null,"",""]
[null,"8A SPECIALTY BENEFITS – DENTAL","Section SB1 – Dental benefits",null,null,null,null,null,null,"",""]
["Dental_plan_option__c",null,"The group may select from one of the plan options",null,null,null,null,{"$f":"IF(OR($D$58=0,$D$58=\"\"),0,IF(AND(CellColor=36,D134=\"\"),1,0))","v":0},"50",0,0]
["Triple_choice_combo__c",null,"If \"Triple Choice\" is selected, please choose combo",null,null,null,null,{"$f":"IF(AND(D134=\"Triple Choice\",D135=\"\"),1,0)","v":0},"200",0,0]
[null,null,null,null,null,null,null,null,null,"",""]
[null,null,{"$f":"IF(D134=\"\",\"Select Plan(s)\",IF(D134=\"Single\",\"Select 1 plan:\",IF(D134=\"Dual Choice\",\"Select 2 plans:\",\"Select 3 plans:\")))","v":"Select Plan(s)"},null,null,null,null,null,null,"",""]
["Dental_Plans_Selected__c ARRAY",null,"Dental HMO plans","Dental PPO plans and Voluntary Dental PPO Plans",null,null,null,null,null,"",""]
[null,null,null,null,{"$f":"IF(OR(D134<>\"Triple Choice\",D139=\"\"),\"\",IF(ISERROR(FIND(\"/Ortho/\",D139)),\"No Ortho\",\"Ortho\"))","v":""},null,null,null,null,"","",{"$f":"IF(OR($D$58=0,$D$58=\"\"),0,IF(ISERROR(VLOOKUP(D134,LookupTables!A7:B9,2,FALSE)),1,VLOOKUP(D134,LookupTables!A7:B9,2,FALSE)))","v":0},"Number/type of plans must match selection"]
[null,null,null,null,{"$f":"IF(OR(D134<>\"Triple Choice\",D140=\"\"),\"\",IF(ISERROR(FIND(\"/Ortho/\",D140)),\"No Ortho\",\"Ortho\"))","v":""},null,null,null,null,"","",{"$f":"IF(OR(COUNTA(D139:D140)<2,E139=E140),0,1)","v":0},"Ortho option must match on both PPO plans (Triple Choice only)"]
[null,null,null,null,null,null,null,null,null,"",""]
[null,null,null,null,null,null,null,null,null,"",""]
[null,"8B SPECIALTY BENEFITS – VISION","Section SB2 – Vision coverage",null,null,null,null,null,null,{"$f":"IF(I143=\"\",\"\",LEN(D143))","v":""},""]
["NEW",null,"The group may select from one of the plan options",null,null,null,null,null,null,"",""]
[]
[null,null,{"$f":"IF(D144=\"\",\"Select plan(s):\",IF(D144=\"Single\",\"Please select 1 plan:\",\"Please select 2 plans:\"))","v":"Select plan(s):"},null,null,null,null,null,null,"",""]
[null,null,"Ultimate Vision for Small Business","Preferred Vision for Small Business","Basic Vision For Small Business",null,null,null,null,"",""]
["Vision_Plans_Selected__c",null,null,null,null,null,null,null,null,"","",{"$f":"IF(D144=\"\",0,IF(OR(AND(D144=\"Dual Choice\",COUNTA(C148:E149)<>2),AND(D144=\"Single\",COUNTA(C148:E149)<>1)),1,0))","v":0},"# of plans selected does not mach plan option selected"]
[]
[null,null,null,null,null,null,null,null,null,"",""]
[null,"8C SPECIALTY BENEFITS – LIFE AD&D","Section SB3 – Life/AD&D insurance",null,null,null,null,null,null,"",""]
[null,null,null,null,null,null,null,null,null,"",""]
["life_plan_selected__c ARRAY",null,"Select type of life coverage",null,null,null,null,null,null,"",""]
[null,null,"Life plan types",null,null,null,null,null,null,"",""]
["Life_Plan_Types__c",null,null,null,null,null,null,null,null,"",""]
[null,null,"If \"Basic\", specify amount:",null,null,null,null,{"$f":"IF(AND($C$155=\"Basic\",Basic_MGA=\"\"),1,0)","v":0},null,"",""]
[null,null,"If \"Multiple of Salary\", specify:",null,null,null,null,null,null,"",""]
[null,null,"Multiplier/Max amount:",null,null,null,null,{"$f":"IF(AND($C$155=\"Multiple of Salary\",MultipleofSalary_MGA=\"\"),1,0)","v":0},null,"",""]
[null,null,null,null,null,null,null,null,null,"",""]
[null,null,"If \"Graded\", specify # of classes:",null,null,null,null,{"$f":"IF(AND($C$155=\"Graded\",D160=\"\"),1,0)","v":0},null,"",""]
[null,null,"Class Name","Plan Description/Flat Amount",null,null,null,null,null,"",""]
["Graded_Class_Desc_1__c",null,null,null,null,null,null,{"$f":"IF(AND($C$155=\"Graded\",COUNTA(Graded_MGA)<>D160),1,0)","v":0},40,{"$f":"IF(I162=\"\",\"\",LEN(C162))","v":0},0]
["Graded_Class_Desc_2__c",null,null,null,null,null,null,null,40,{"$f":"IF(I163=\"\",\"\",LEN(C163))","v":0},0]
["Graded_Class_Desc_3__c",null,null,null,null,null,null,null,40,{"$f":"IF(I164=\"\",\"\",LEN(C164))","v":0},0]
["Graded_Class_Desc_4__c",null,null,null,null,null,null,null,40,{"$f":"IF(I165=\"\",\"\",LEN(C165))","v":0},0]
[null,null,null,null,null,null,null,null,null,{"$f":"IF(I166=\"\",\"\",LEN(D166))","v":""},""]
["dependent_life_insurance__c",null,"Dependent life insurance",null,null,null,null,{"$f":"IF(OR($D$60=0,$D$60=\"\"),0,IF(AND(CellColor=36,D167=\"\"),1,0))","v":0},null,"",""]
["Dependent_life_plan__c",null,"If \"Yes\", select amount:",null,null,null,null,{"$f":"IF(AND(D167=\"Yes\",D168=\"\"),1,0)","v":0},null,"",""]
[null,"9 EMPLOYER CONTRIBUTIONS","Indicate medical plan employer contribution amount here (The employer must contribute either (1) at least 50% of the total employee rates, or (2) a defined contribution of a minimum of $100 per employee (or the cost of the total employee rates, whichever is less). If 100% of the employee’s premium is paid by the employer, all eligible employees must enroll in coverage):","%","$",null,null,null,null,{"$f":"IF(I169=\"\",\"\",LEN(D169))","v":""},{"$f":"IF(J169=\"\",\"\",IF(J169>I169,1,0))","v":""}]
["Medical_Contribution_For_Employee_Perc__c/Medical_Contribution_For_Employee_Amount__c",null,"For employees",null,null,null,null,{"$f":"IF(OR($D$57=0,$D$57=\"\"),0,IF(COUNTA(D170:E170)=0,1,0))","v":0},null,"","",{"$f":"IF(OR($D$57=0,$D$57=\"\"),0,IF(COUNTA(D170:E170)=2,1,0))","v":0},"Can be % or $, but not both"]
["Medical_Contribution_For_Dependent_Perc__c/Medical_Contribution_For_Dependent_Amount__c",null,"For dependents",null,null,null,null,{"$f":"IF(OR($D$57=0,$D$57=\"\"),0,IF(COUNTA(D171:E171)=0,1,0))","v":0},null,"","",{"$f":"IF(OR($D$57=0,$D$57=\"\"),0,IF(COUNTA(D171:E171)=2,1,0))","v":0},"Can be % or $, but not both"]
[null,null,"Indicate dental plan employer contribution amount here (For dental coverage, the employer must contribute at least 50% of the employee's premium (except for voluntary plans). If 100% is paid by the employer, all eligible employees must enroll):","%","$",null,null,null,null,"",""]
["Dental_Contribution_For_Employee_Perc__c/Dental_Contribution_For_Employee__c",null,"For employees",null,null,null,null,{"$f":"IF(OR($D$58=0,$D$58=\"\"),0,IF(COUNTA(D173:E173)=0,1,0))","v":0},null,"","",{"$f":"IF(OR($D$58=0,$D$58=\"\"),0,IF(COUNTA(D173:E173)=2,1,0))","v":0},"Can be % or $, but not both"]
["Dental_Contribution_For_Dependent_Perc__c/Dental_Contribution_For_Dependent__c",null,"For dependents",null,null,null,null,{"$f":"IF(OR($D$58=0,$D$58=\"\"),0,IF(COUNTA(D174:E174)=0,1,0))","v":0},null,"","",{"$f":"IF(OR($D$58=0,$D$58=\"\"),0,IF(COUNTA(D174:E174)=2,1,0))","v":0},"Can be % or $, but not both"]
[null,null,"Indicate vision plan employer contribution amount here (For vision coverage, the employer must contribute a minimum of 25% of the total employee premium (except for voluntary plans). If 100% is paid by the employer, all eligible employees must enroll):","%","$",null,null,null,null,"",""]
["Vision_Contribution_For_Employee_Perc__c/Vision_Contribution_For_Employee__c",null,"For employees",null,null,null,null,{"$f":"IF(OR($D$59=0,$D$59=\"\"),0,IF(COUNTA(D176:E176)=0,1,0))","v":0},null,"","",{"$f":"IF(OR($D$59=0,$D$59=\"\"),0,IF(COUNTA(D176:E176)=2,1,0))","v":0},"Can be % or $, but not both"]
["Vision_Contribution_For_Dependent_Perc__c/Vision_Contribution_For_Dependent__c",null,"For dependents",null,null,null,null,{"$f":"IF(OR($D$59=0,$D$59=\"\"),0,IF(COUNTA(D177:E177)=0,1,0))","v":0},null,"","",{"$f":"IF(OR($D$59=0,$D$59=\"\"),0,IF(COUNTA(D177:E177)=2,1,0))","v":0},"Can be % or $, but not both"]
[null,null,"Indicate group term life insurance plan employer contribution amount here (For life insurance coverage, the employer must contribute a minimum of 25% of the total employee premium. If 100% is paid by the employer (non-contributory), all eligible employees must enroll):","%","$",null,null,null,null,"",""]
["Life_Contributory_Employees_Perc__c/Life_Contributory_Employees__c",null,"For employees",null,null,null,null,{"$f":"IF(OR($D$60=0,$D$60=\"\"),0,IF(COUNTA(D179:E179)=0,1,0))","v":0},null,"","",{"$f":"IF(OR($D$60=0,$D$60=\"\"),0,IF(COUNTA(D179:E179)=2,1,0))","v":0},"Can be % or $, but not both"]
["Life_Contributory_Dependents_Perc__c/Life_Contributory_Dependents__c",null,"For dependents",null,null,null,null,{"$f":"IF(OR($D$60=0,$D$60=\"\"),0,IF(COUNTA(D180:E180)=0,1,0))","v":0},null,"","",{"$f":"IF(OR($D$60=0,$D$60=\"\"),0,IF(COUNTA(D180:E180)=2,1,0))","v":0},"Can be % or $, but not both"]
[]
["Agency_name__c","10A PRODUCER INFORMATION\n(to be completed by producer or general agent)","Agency name",null,null,null,null,{"$f":"IF(AND(CellColor=36,D182=\"\"),1,0)","v":1},"100",0,{"$f":"IF(J182=\"\",\"\",IF(J182>I182,1,0))","v":0}]
["Tax_id_number__c",null,"Tax ID number (for commission payments)",null,null,null,null,{"$f":"IF(AND(CellColor=36,D183=\"\"),1,0)","v":1},"50",0,0]
["Producer_name__c",null,"Producer name (agent who wrote the group)",null,null,null,null,{"$f":"IF(AND(CellColor=36,D184=\"\"),1,0)","v":1},"100",0,0]
["Producer_CDI_license__c",null,"Producer CDI license number",null,null,null,null,{"$f":"IF(AND(CellColor=36,D185=\"\"),1,0)","v":1},"50",0,0]
["Producer_email__c",null,"Producer email",null,null,null,null,{"$f":"IF(AND(CellColor=36,D186=\"\"),1,0)","v":1},"100",0,0,{"$f":"IF(D186=\"\",\"\",IF(OR(ISERROR(FIND(\".\",D186)),ISERROR(FIND(\"@\",D186))),1,IF(AND(FIND(\"@\",D186)>1,FIND(\".\",D186,FIND(\"@\",D186))>0),0,1)))","v":""},"Email format must have a \"@\" with a \".\" in the string after it"]
["Producer_phone__c",null,"Producer phone number",null,null,null,null,{"$f":"IF(AND(CellColor=36,D187=\"\"),1,0)","v":1},null,"",""]
["Producer_street_address__c",null,"Producer street address (P.O. Box not acceptable)",null,null,null,null,{"$f":"IF(AND(CellColor=36,D188=\"\"),1,0)","v":1},"100",0,0]
["Producer_city__c",null,"City",null,null,null,null,{"$f":"IF(AND(CellColor=36,D189=\"\"),1,0)","v":1},"100",0,0]
["Producer_state__c",null,"State",null,null,null,null,{"$f":"IF(AND(CellColor=36,D190=\"\"),1,0)","v":1},"50",0,0]
["ZIP_code__c",null,"ZIP code",null,null,null,null,{"$f":"IF(AND(CellColor=36,D191=\"\"),1,0)","v":1},"50",0,0]
["Delagate_Contact__c",null,"Does the producer have a delegate contact?"]
["Delegate_Name__c",null,"Producer contact",null,null,null,null,{"$f":"IF(AND(CellColor=36,D193=\"\"),1,0)","v":0},"100",{"$f":"IF(I193=\"\",\"\",LEN(D193))","v":0},{"$f":"IF(J193=\"\",\"\",IF(J193>I193,1,0))","v":0}]
["Delegate_email__c",null,"Producer contact email",null,null,null,null,{"$f":"IF(AND(CellColor=36,D194=\"\"),1,0)","v":0},"100",{"$f":"IF(I194=\"\",\"\",LEN(D194))","v":0},{"$f":"IF(J194=\"\",\"\",IF(J194>I194,1,0))","v":0},{"$f":"IF(D194=\"\",\"\",IF(OR(ISERROR(FIND(\".\",D194)),ISERROR(FIND(\"@\",D194))),1,IF(AND(FIND(\"@\",D194)>1,FIND(\".\",D194,FIND(\"@\",D194))>0),0,1)))","v":""},"Email format must have a \"@\" with a \".\" in the string after it"]
[]
["Is_this_a_split_commission__c",null,"Is this a split commission?",null,null,null,null,{"$f":"IF(AND(CellColor=36,D196=\"\"),1,0)","v":1},null,"",""]
[null,null,"If yes, define split:","%",null,null,null,null,null,"",""]
["Producer_split_1__c",null,"Producer #1",null,null,null,null,{"$f":"IF(AND($D$196=\"Yes\",D198=\"\"),1,0)","v":0},null,"",""]
["Producer_split_2__c",null,"Producer #2",{"$f":"IF(D198=\"\",\"\",1-D198)","v":""},null,null,null,{"$f":"IF(AND($D$196=\"Yes\",D199=\"\"),1,0)","v":0},null,"",""]
["Name_of_second__c",null,"2nd producer name",null,null,null,null,{"$f":"IF(AND($D$196=\"Yes\",D200=\"\"),1,0)","v":0},"100",0,0]
["Second_producer_tax__c",null,"2nd producer Tax ID",null,null,null,null,{"$f":"IF(AND($D$196=\"Yes\",D201=\"\"),1,0)","v":0},"100",0,0]
["General_agency_name__c","10B GENERAL AGENT INFORMATION\n(to be completed by producer or general agent, if applicable) ","General agency name",null,null,null,null,null,"100",0,0]
["GA_Tax_id__c",null,"General agency tax ID number (for commission payments)",null,null,null,null,{"$f":"IF(AND($D$202<>\"\",D203=\"\"),1,0)","v":0},"100",0,0]
["GA_producer_name__c",null,"General agency contact name",null,null,null,null,{"$f":"IF(AND($D$202<>\"\",D204=\"\"),1,0)","v":0},"100",0,0]
["GA_producer_email__c",null,"General agency contact email",null,null,null,null,{"$f":"IF(AND($D$202<>\"\",D205=\"\"),1,0)","v":0},"100",0,0,{"$f":"IF(D205=\"\",\"\",IF(OR(ISERROR(FIND(\".\",D205)),ISERROR(FIND(\"@\",D205))),1,IF(AND(FIND(\"@\",D205)>1,FIND(\".\",D205,FIND(\"@\",D205))>0),0,1)))","v":""},"Email format must have a \"@\" with a \".\" in the string after it"]
["Certify_Assisted_Applicant__c","10C PRODUCER SIGNATURE\n(to be completed by producer or general agent) ","I assisted the applicant in completing and submitting this application. I certify that, to the best of my knowledge and belief, the information on this application is complete and accurate. I explained to the applicant, in easy-to-understand language, the risk to the applicant of providing inaccurate information, and the applicant understood the explanation."]
["Today_s_Date__c",null,"Date (required)",null,null,null,null,{"$f":"IF(AND(CellColor=36,D207=\"\"),1,0)","v":1},null,"",""]
[null,null,"Producer signature (required)"]
["Printed_First_Name__c",null,"Producer printed first name (required)",null,null,null,null,{"$f":"IF(AND(CellColor=36,D209=\"\"),1,0)","v":1},"80",0,0]
["Printed_Last_Name__c",null,"Producer printed last name (required)",null,null,null,null,{"$f":"IF(AND(CellColor=36,D210=\"\"),1,0)","v":1},"80",0,0]
[]
["Group_Representative_Attestation__c","11 EMPLOYER ATTESTATIONS AND SIGNATURE","The group representative attests to the following:\n\n1. Each employee to whom coverage is being offered meets the definition of an eligible employee (see Section 3A of this application for reference).\n2. This is an application for coverage. The group understands that no contract for coverage will exist until Blue Shield has completed its review and communicated to the applicant or the applicant’s broker that the application has been accepted, required premium payments have been made, and a group health service contract has been issued. The group representative certifies that, to the best of his/her knowledge and belief, all of the responses provided in this application are true, correct, and complete.\n3. By signing below, the group also understand that if it has committed fraud or made an intentional misrepresentation of any material fact in conjunction with this application within the first 24 months of issuance of coverage, Blue Shield may pursue one of the following remedies: Coverage may be cancelled or the applicable dues/premiums may be adjusted, or following notice, the health service contract may be rescinded."]
["Authorization_Signed__c",null,"Authorized group representative signature",null,null,null,null,{"$f":"IF(AND(CellColor=36,D213=\"\"),1,0)","v":1},null,{"$f":"IF(I213=\"\",\"\",LEN(D213))","v":""},{"$f":"IF(J213=\"\",\"\",IF(J213>I213,1,0))","v":""}]
["Authorization_Signed_Date__c",null,"Date",null,null,null,null,{"$f":"IF(AND(CellColor=36,D214=\"\"),1,0)","v":1},null,{"$f":"IF(I214=\"\",\"\",LEN(D214))","v":""},{"$f":"IF(J214=\"\",\"\",IF(J214>I214,1,0))","v":""}]
["Authorization_Signer__c",null,"Authorized group representative first name",null,null,null,null,{"$f":"IF(AND(CellColor=36,D215=\"\"),1,0)","v":1},"80",{"$f":"IF(I215=\"\",\"\",LEN(D215))","v":0},{"$f":"IF(J215=\"\",\"\",IF(J215>I215,1,0))","v":0}]
["Authorization_Signer_Last_Name__c",null,"Authorized group representative last name",null,null,null,null,{"$f":"IF(AND(CellColor=36,D216=\"\"),1,0)","v":1},"80",{"$f":"IF(I216=\"\",\"\",LEN(D216))","v":0},{"$f":"IF(J216=\"\",\"\",IF(J216>I216,1,0))","v":0}]
["Authorization_Signer_Title__c",null,"Authorized group representative title",null,null,null,null,{"$f":"IF(AND(CellColor=36,D217=\"\"),1,0)","v":1},"80",{"$f":"IF(I217=\"\",\"\",LEN(D217))","v":0},{"$f":"IF(J217=\"\",\"\",IF(J217>I217,1,0))","v":0}]
[]
[null,null,null,null,null,null,null,{"$f":"SUM(H2:H217)","v":39},null,null,{"$f":"SUM(K2:K217)","v":0},{"$f":"SUM(L2:L217)","v":0}]
[null,null,null,"Name","Phone number",null,null,"Errors"]
["BSC_AE__c/BSC_AE_phone__c",null,"Blue Shield account executive"]
["BSC_AM__c/BSC_AM_phone__c",null,"Blue Shield account manager",null,null,null,null,null," = Error"]
["BSC_SA__c/BSC_SA_phone__c",null,"Blue Shield sales assistant"]

{"sheet":"Fields-New","index":6,"n_rows":31,"n_cols":4,"rows_kept":31,"cut":false,"hidden":true,"merged":[]}
["API Name","Section","Question"]
[null,"2A","If the group has had or currently has medical coverage, who was/is the most recent carrier(s)? "]
[null,"3A","Is the group offering coverage to part-time employees?"]
["Y","3B","Is the group a person, firm, proprietary or nonprofit corporation, partnership, public agency, association or guaranteed association?"]
["Y","3B","Is the group actively engaged in business or service, and the group was not formed primarily for purposes of buying health coverage?"]
["Y","3B","Did the group employ 1-100 employees on at least 50% of its working days during the preceding calendar quarter or preceding calendar year (unless the group is a startup), the majority of whom reside within the state of CA, and in which a bona fide employer-employee relationship exists? "]
["Y",4,"Do all employees and their dependents who are to be covered by the plan contract work or reside in the service in which the plan provides or otherwise arranges for the provision of health services?  "]
["Y",4,"Is the group terminating an arrangement with a Professional Employer Organization (PEO), and has it hired the formerly leased employees?"]
["Y",4,"Does the group employ both union and non-union employees?"]
["Y",4,"Is the group a spinoff?*"]
["Y",4,"Is the group a startup?†"]
["Y","3B","If >100, did the group employ 1-100 employees at  least 50% of the group's working days in either the  preceding calendar quarter or preceding calendar year? "]
["Y","3B","If >100, did the group employ 1-100 employees at  least 50% of the group's working days in either the  preceding calendar quarter or preceding calendar year? (OUT OF STATE)"]
[null,"2B","Re-work or force into current values? COBRA SECTION"]
[null,11,"The group representative attests to the following: 1. Each employee to whom coverage is being offered meets the definition of an eligible employee (see Section 3A of this application for reference). 2. This is an application for coverage. The group understands that no contract for coverage will exist until Blue Shield has completed its review and communicated to the applicant or the applicant’s broker that the application has been accepted, required premium payments have been made, and a group health service contract has been issued. The group representative certifies that, to the best of his/her knowledge and belief, all of the responses provided in this application are true, correct, and complete. 3. By signing below, the group also understand that if it has committed fraud or made an intentional misrepresentation of any material fact in conjunction with this application within the first 24 months of issuance of coverage, Blue Shield may pursue one of the following remedies: Coverage may be cancelled or the applicable dues/premiums may be adjusted, or following notice, the health service contract may be rescinded."]
[null,"10A","Does the producer have a delegate contact? "]
[null,"10A","If yes, delegate name "]
[null,"10A","Delegate email"]
[null,"10C","I assisted the applicant in completing and submitting this application. I certify that, to the best of my knowledge and belief, the information on this application is complete and accurate. I explained to the applicant, in easy-to-understand language, the risk to the applicant of providing inaccurate information, and the applicant understood the explanation. "]
[]
[]
[null,null,"Is the Group a Person, Firm or Etc.","Is_the_Group_a_Person_Firm_or_Etc__c"]
[null,null,"Is the Grp Actively Engaged In Business?","Is_the_Grp_Actively_Engaged_In_Business__c"]
[null,null,"Group Employ 1-100 employees on 50%?","Group_Employ_1_100_employees_on_50__c"]
[null,null,"If >100, Grp employ 1-100 at least 50%?","If_100_Grp_employ_1_100_at_least_50__c"]
[null,null,"OOS If >100, empl 1-100 at least 50%?  ","OOS_If_100_empl_1_100_at_least_50__c"]
[null,null,"Reside in the service area?","Reside_in_the_service_area__c"]
[null,null,"Union and Non-Union Employees?","Union_and_Non_Union_Employees__c"]
[null,null,"Terminating an Arrangement with a PEO?","Terminating_an_Arrangement_with_a_PEO__c"]
[null,null,"Is the Group a Spinoff?","Is_the_Group_a_Spinoff__c"]
[null,null,"Is the Group a Startup?","Is_the_Group_a_Startup__c"]

{"sheet":"Fields-KeepOrDelete","index":7,"n_rows":149,"n_cols":3,"rows_kept":149,"cut":false,"hidden":true,"merged":[[56,1,60,1]]}
["API Names","Question","Keep or Delete?"]
["Full_legal_business_name__c","Full legal business name of group","Keep"]
["Effective_Date__c","Requested coverage effective date","Keep"]
["Doing_Business_As_Name__c","Doing business as (DBA), if applicable:","Keep"]
["Billing_address__c","Street:","Keep"]
["Billing_City__c","City:","Keep"]
["Billing_State__c","State:","Keep"]
["Billing_Zip__c","ZIP code:","Keep"]
["Physical_Address_same_as_Billing_Address__c","Same as Billing address?","Delete"]
["Physical_address_if_different_Billing__c","Street:","Delete"]
["Physical_Address_City__c","City:","Delete"]
["Physical_Address_State__c","State:","Delete"]
["Physical_Address_Zip__c","ZIP code:","Delete"]
["Physical_Address_County__c","County location of physical address","Delete"]
["Street_where_most_EE_work__c","Street:","Keep"]
["City_where_most_EE_work__c","City:","Keep"]
["State_where_most_EE_work__c","State:","Keep"]
["ZIP_where_most_EE_work__c","ZIP code:","Keep"]
["Primary_Contact_First_Name__c","Primary group contact:  First Name","Keep"]
["Primary_Contact_Last_Name__c","Primary group contact:  Last Name","Keep"]
["Group_Contact_name_title__c","Title","Keep"]
["Group_Contact_Phone_number__c","Phone number","Keep"]
["Group_Contact_Fax_number__c","Fax number","Delete"]
["Group_Contact_Email_address__c","Email address (required):","Keep"]
["Is_Online_Contact__c","Check here to register the primary group contact for online account access.","Keep"]
["Secondary_Contact_First_Name__c","Secondary group contact:  First Name","Keep"]
["Secondary_Contact_Last_Name__c","Secondary group contact:  Last Name","Keep"]
["Secondary_Group_Contact_name_title__c","Title","Keep"]
["Secondary_Group_Contact_Phone__c","Phone number","Keep"]
["Secondary_Group_Contact_Email__c","Email address","Keep"]
["COBRA_TPA_Contact_First_Name__c","COBRA third-party administrator contact:  First Name","Delete"]
["COBRA_TPA_Contact_Last_Name__c","COBRA third-party administrator contact:  Last Name","Delete"]
["COBRA_TPA_Contact_Title__c","Title","Delete"]
["COBRA_TPA_Contact_Phone__c","Phone number","Delete"]
["COBRA_TPA_Contact_Email__c","Email address","Delete"]
["Legal_Entity__c","Legal entity type:","Keep"]
["Other_Legal_Entity__c","If \"Other\", please specify:","Keep"]
["Federal_Tax_ID__c","Federal Tax Identification (TID) number","Keep"]
["Multiple_Tax_IDs_y_n__c","Does your group have multiple TID numbers?","Delete"]
["Second_Federal_Tax_ID__c","If yes, provide the Federal Employer TID number for the plan sponsor:","Delete"]
["Primary_products_of_business_1__c","1st Primary product/service of your business","Delete"]
["Primary_products_SIC_1__c","1st Standard Industry Classification code","Keep"]
["Primary_products_of_business_2__c","2nd Primary product/service of your business","Delete"]
["Primary_products_SIC_2__c","2nd Standard Industry Classification code","Delete"]
["Name_of_prior_group_health_carrier__c","Prior group health carrier","Delete"]
["Prior_Carrier_Begin_Date__c","Start Date:","Delete"]
["Prior_Carrier_End_Date__c","End Date:","Delete"]
["Coverage_still_in_force__c","Coverage still in force?","Delete"]
["Company_previously_been_insured_w_BSC__c","Is the company currently covered by or have they previously been covered by Blue Shield of California?","Delete"]
["Previous_Group_ID__c","Blue Shield Group ID:","Delete"]
["Termination_Date__c","Termination date:","Delete"]
["Offer_other_carriers_plans_to_employees__c","Is the group intending to offer Blue Shield alongside another carrier’s plan?","Keep"]
["If_other_plan_offered_carrier_name__c","Carrier name","Keep"]
["If_other_plan_offered_number_of_employee__c","No. of employees:","Keep"]
["Other_plan_open_enrollment_begin_date__c","From:","Delete"]
["Other_plan_open_enrollment_end_date__c","To:","Delete"]
["Any_Subsidiaries__c","Does the group have any subsidiary or affiliated companies?","Keep"]
["List_subsidiary_or_affiliated_companies__c ARRAY",null,"Keep"]
["Subsidiary_affiliated_co_name_1__c/Include_in_coverage_1__c/Elig_to_file_combined_state_tax_return_1__c",null,"Keep"]
["Subsidiary_affiliated_co_name_2__c/Include_in_coverage_2__c/Elig_to_file_combined_state_tax_return_2__c",null,"Keep"]
["Subsidiary_affiliated_co_name_3__c/Include_in_coverage_3__c/Elig_to_file_combined_state_tax_return_3__c",null,"Keep"]
["All_employees_covered_by_workers_comp__c","Are all employees covered by workers’ compensation to the extent required by law?","Keep"]
["No_of_employees__c","a. Total # of employees","Keep"]
["No_of_eligible_employees__c","b. Total # of eligible full-time employees (including eligible sole proprietors and partners)","Keep"]
["Total_eligible_part_time__c","c. Total # of eligible part-time employees (if offering coverage to all similarly situated employees)","Keep"]
["Medical_enrollment__c/Refusing_Medical__c","Medical coverage:","Keep"]
["Dental_enrollment__c/Refusing_Dental__c","Dental coverage:","Keep"]
["Vision_enrollment__c/Refusing_Vision__c","Vision coverage:","Keep"]
["Life_enrollment__c/Refusing_Life__c","Life insurance coverage:","Keep"]
["FT_FTE_Count__c","f. Total # of FTE and FTE Equivalents – see definition #2 on paper/pdf application for instructions","Keep"]
["Orientation_period_for_new_employees__c","Employer orientation period – In addition to the waiting period, does the employer impose an orientation period for new employees?","Delete"]
["Is_your_orientation_period_30_days__c","If yes, is this orientation period 30 days or less?","Delete"]
["New_Employee_Waiting_Period__c","Employer waiting period – The group may select one of the following options. Coverage for eligible employees will become effective following completion of the waiting period on the day specified.","Keep"]
["Waiting_period_waved_existing_employees__c","Does the group intend to offer coverage to employees currently in the employer waiting period for the original effective date of the group contract (i.e., one-time waiver of employer waiting period)?","Keep"]
["No_fulltime_employees_in_waiting_period__c","Number of employees currently in the group's waiting period?","Delete"]
["All_full_time_employees_offered_covered__c","Are all full-time eligible employees being offered health coverage?","Keep"]
["Class_Group_coverage_is_offered__c","If the response to 9f is no, please provide the specific class/group for whom coverage is being offered.","Delete"]
["Fulltime_coverage_at_least_30_hours__c","Are all full-time eligible employees being offered coverage actively working an average of 30 hours per week?","Delete"]
["Coverage_employees_work_b_w_2030_hours__c","Will the group offer coverage to permanent employees who work at least 20 hours but not more than 29 hours per week?","Delete"]
["Any_out_of_state_employees_y_n__c","Are there any out-of-state employees?","Delete"]
["If_yes_how_many__c","If yes, how many full-time and full-time equivalent employees are out-of-state?","Keep"]
["Ongoing_Enrollment_Channel__c","How will ongoing enrollment be provided?","Delete"]
["Is_group_subject_to_CalCOBRA__c","Is the group currently subject to Cal-COBRA?\n(Employed 2-19 eligible employees on at least 50% of its working days in the previous calendar year; or if not in business during any part of the previous calendar year, then during the previous calendar quarter.)","Keep"]
["Is_group_subject_to_federal_COBRA__c","Is the group currently subject to Federal COBRA?\n(Employed 20 or more total employees on at least 50% of the working days in the previous calendar year.)","Keep"]
["Existing_CalCOBRA_or_COBRA_members__c","Number of current Cal-COBRA enrollees?","Keep"]
["CalCOBRA_eligibility_election_period__c","How many employees and/or family members are in a Cal-COBRA election period?","Keep"]
["Existing_CalCOBRA_or_COBRA_members__c","Number of current COBRA enrollees?","Keep"]
["CalCOBRA_eligibility_election_period__c","How many employees and/or family members are in a COBRA election period?","Keep"]
["Enroll_forms_attached_cobra__c","Are enrollment forms attached for all enrolling COBRA/Cal-COBRA participants?","Keep"]
["Plan_Packages__c DERIVED FIELD",null,"Keep"]
["Medical_Plans_Selected__c ARRAY",null,"Keep"]
["ABHP__c","Yes, we will offer HealthEquity as the HSA administrator","Keep"]
["Infertility_rider__c","Optional benefit – A rider for infertility benefits may be offered with either the Blue Shield of California Off-Exchange Package for Small Business or with the Blue Shield of California Mirror Package for Small Business. If selected, it will be added to all medical plans – PPO and HMO.","Keep"]
["Medical_Contribution_For_Employee_Perc__c/Medical_Contribution_For_Employee_Amount__c","For employees","Keep"]
["Medical_Contribution_For_Dependent_Perc__c/Medical_Contribution_For_Dependent_Amount__c","For dependents","Keep"]
["1st_time_all_EE_elect_dental__c","When adding dental coverage for the first time to your existing Blue Shield Small Business benefits package, please check this box if all currently enrolled employees and dependents elect the coverage; they will automatically be enrolled and no forms will be required. Otherwise, please submit an enrollment, refusal of coverage, or subscriber change request form for all eligible employees and dependents who are electing dental coverage.","Delete"]
["Dental_plan_option__c","The group may select from one of the plan options","Keep"]
["Triple_choice_combo__c","If \"Triple Choice\" is selected, please choose combo","Keep"]
["Dental_Plans_Selected__c ARRAY","Dental HMO plans","Keep"]
["Dental_Contribution_For_Employee_Perc__c/Dental_Contribution_For_Employee__c","For employees","Keep"]
["Dental_Contribution_For_Dependent_Perc__c/Dental_Contribution_For_Dependent__c","For dependents","Keep"]
["1st_time_all_EE_elect_vision__c","When adding vision coverage for the first time to your existing Blue Shield Small Business benefits package, please check this box if all currently enrolled employees and dependents elect the coverage; they will automatically be enrolled and no forms will be required. Otherwise, please submit an enrollment, refusal of coverage, or subscriber change request form for all eligible employees and dependents who are electing vision coverage.","Delete"]
["Vision_Plans_Selected__c",null,"Keep"]
["Vision_Contribution_For_Employee_Perc__c/Vision_Contribution_For_Employee__c","For employees","Keep"]
["Vision_Contribution_For_Dependent_Perc__c/Vision_Contribution_For_Dependent__c","For dependents","Keep"]
["1st_time_all_EE_elect_life__c","When adding flat life insurance coverage for the first time to your existing Blue Shield Small Business benefits package, please check this box if all currently enrolled employees elect the coverage; they will automatically be enrolled and no forms will be required (except for multiple of salary or graded plans).  Otherwise, please complete an enrollment, refusal of coverage, or subscriber change request form for all eligible employees. (Refusal of coverage is only allowed for contributory plans.)","Delete"]
["life_plan_selected__c ARRAY","Select type of life coverage","Keep"]
["Life_Plan_Types__c",null,"Keep"]
["Mult/Max Life","Multiplier/Max amount:","Keep"]
["Graded_Class_Desc_1__c",null,"Keep"]
["Graded_Class_Desc_2__c",null,"Keep"]
["Graded_Class_Desc_3__c",null,"Keep"]
["Graded_Class_Desc_4__c",null,"Keep"]
["dependent_life_insurance__c","Dependent life insurance","Keep"]
["Dependent_life_plan__c","If \"Yes\", select amount:","Keep"]
["Life_Contributory_Employees_Perc__c/Life_Contributory_Employees__c","For employees","Keep"]
["Life_Contributory_Dependents_Perc__c/Life_Contributory_Dependents__c","For dependents","Keep"]
["Authorization_Signed_Date__c","Date","Keep"]
["Authorization_Signer__c","Group representative First Name","Keep"]
["Authorization_Signer_Last_Name__c","Group representative Last Name","Keep"]
["Authorization_Signer_Title__c","Group representative title (please print)","Keep"]
["Authorization_Signed__c","Signed?","Keep"]
["Agency_name__c","Agency name","Keep"]
["Tax_id_number__c","Tax ID number (for commission payments)","Keep"]
["Producer_name__c","Producer name (agent who wrote the group)","Keep"]
["Producer_CDI_license__c","Producer CDI license number","Keep"]
["Producer_email__c","Producer email","Keep"]
["Producer_phone__c","Producer phone number","Keep"]
["Producer_contact__c","Producer contact","Keep"]
["Producer_contact_email__c","Producer contact email","Keep"]
["Producer_street_address__c","Producer street address (P.O. Box not acceptable)","Keep"]
["Producer_city__c","City","Keep"]
["Producer_state__c","State","Keep"]
["ZIP_code__c","ZIP code","Keep"]
["Is_this_a_split_commission__c","Is this a split commission?","Keep"]
["Producer_split_1__c","Producer #1","Keep"]
["Producer_split_2__c","Producer #2","Keep"]
["Name_of_second__c","Name of second producer","Keep"]
["Second_producer_tax__c","Second producer tax ID number","Keep"]
["General_agency_name__c","General agency name","Keep"]
["GA_Tax_id__c","General agency tax ID number (for commission payments)","Keep"]
["GA_producer_name__c","General agency producer name","Keep"]
["GA_producer_email__c","General agency producer email","Keep"]
["Today_s_Date__c","Today’s date (required)","Keep"]
["Printed_First_Name__c","Producer print name First (required)","Keep"]
["Printed_Last_Name__c","Producer print name Last (required)","Keep"]
["BSC_AE__c/BSC_AE_phone__c","Blue Shield account executive","Keep"]
["BSC_AM__c/BSC_AM_phone__c","Blue Shield account manager","Keep"]
["BSC_SA__c/BSC_SA_phone__c","Blue Shield sales assistant","Keep"]

{"sheet":"LifeLookup","index":8,"n_rows":113,"n_cols":7,"rows_kept":113,"cut":false,"hidden":true,"merged":[]}
["Eligible","Grouping",null,9,24,50,100]
[2,9,null,"Basic Life and AD&D Insurance - $15,000","Basic Life and AD&D Insurance - $15,000","Basic Life and AD&D Insurance - $15,000","Basic Life and AD&D Insurance - $15,000"]
[{"$f":"1+A2","v":3},9,null,"Basic Life and AD&D Insurance - $20,000","Basic Life and AD&D Insurance - $20,000","Basic Life and AD&D Insurance - $20,000","Basic Life and AD&D Insurance - $20,000"]
[{"$f":"1+A3","v":4},9,null,"Basic Life and AD&D Insurance - $25,000","Basic Life and AD&D Insurance - $25,000","Basic Life and AD&D Insurance - $25,000","Basic Life and AD&D Insurance - $25,000"]
[5,9,null,"Basic Life and AD&D Insurance - $30,000","Basic Life and AD&D Insurance - $30,000","Basic Life and AD&D Insurance - $30,000","Basic Life and AD&D Insurance - $30,000"]
[6,9,null,"Basic Life and AD&D Insurance - $35,000","Basic Life and AD&D Insurance - $35,000","Basic Life and AD&D Insurance - $35,000","Basic Life and AD&D Insurance - $35,000"]
[7,9,null,"Basic Life and AD&D Insurance - $40,000","Basic Life and AD&D Insurance - $40,000","Basic Life and AD&D Insurance - $40,000","Basic Life and AD&D Insurance - $40,000"]
[8,9,null,"Basic Life and AD&D Insurance - $45,000","Basic Life and AD&D Insurance - $45,000","Basic Life and AD&D Insurance - $45,000","Basic Life and AD&D Insurance - $45,000"]
[9,9,null,"Basic Life and AD&D Insurance - $50,000","Basic Life and AD&D Insurance - $50,000","Basic Life and AD&D Insurance - $50,000","Basic Life and AD&D Insurance - $50,000"]
[10,24,null,null,"Basic Life and AD&D Insurance - $55,000","Basic Life and AD&D Insurance - $55,000","Basic Life and AD&D Insurance - $55,000"]
[11,24,null,null,"Basic Life and AD&D Insurance - $60,000","Basic Life and AD&D Insurance - $60,000","Basic Life and AD&D Insurance - $60,000"]
[12,24,null,null,"Basic Life and AD&D Insurance - $65,000","Basic Life and AD&D Insurance - $65,000","Basic Life and AD&D Insurance - $65,000"]
[13,24,null,null,"Basic Life and AD&D Insurance - $70,000","Basic Life and AD&D Insurance - $70,000","Basic Life and AD&D Insurance - $70,000"]
[14,24,null,null,"Basic Life and AD&D Insurance - $75,000","Basic Life and AD&D Insurance - $75,000","Basic Life and AD&D Insurance - $75,000"]
[15,24,null,null,"Basic Life and AD&D Insurance - $80,000","Basic Life and AD&D Insurance - $80,000","Basic Life and AD&D Insurance - $80,000"]
[16,24,null,null,"Basic Life and AD&D Insurance - $85,000","Basic Life and AD&D Insurance - $85,000","Basic Life and AD&D Insurance - $85,000"]
[17,24,null,null,"Basic Life and AD&D Insurance - $90,000","Basic Life and AD&D Insurance - $90,000","Basic Life and AD&D Insurance - $90,000"]
[18,24,null,null,"Basic Life and AD&D Insurance - $95,000","Basic Life and AD&D Insurance - $95,000","Basic Life and AD&D Insurance - $95,000"]
[19,24,null,null,"Basic Life and AD&D Insurance - $100,000","Basic Life and AD&D Insurance - $100,000","Basic Life and AD&D Insurance - $100,000"]
[20,24,null,null,null,"Basic Life and AD&D Insurance - $105,000","Basic Life and AD&D Insurance - $105,000"]
[21,24,null,null,null,"Basic Life and AD&D Insurance - $110,000","Basic Life and AD&D Insurance - $110,000"]
[22,24,null,null,null,"Basic Life and AD&D Insurance - $115,000","Basic Life and AD&D Insurance - $115,000"]
[23,24,null,null,null,"Basic Life and AD&D Insurance - $120,000","Basic Life and AD&D Insurance - $120,000"]
[24,24,null,null,null,"Basic Life and AD&D Insurance - $125,000","Basic Life and AD&D Insurance - $125,000"]
[25,50,null,null,null,"Basic Life and AD&D Insurance - $130,000","Basic Life and AD&D Insurance - $130,000"]
[26,50,null,null,null,"Basic Life and AD&D Insurance - $135,000","Basic Life and AD&D Insurance - $135,000"]
[27,50,null,null,null,"Basic Life and AD&D Insurance - $140,000","Basic Life and AD&D Insurance - $140,000"]
[28,50,null,null,null,"Basic Life and AD&D Insurance - $145,000","Basic Life and AD&D Insurance - $145,000"]
[29,50,null,null,null,"Basic Life and AD&D Insurance - $150,000","Basic Life and AD&D Insurance - $150,000"]
[30,50,null,null,null,null,"Basic Life and AD&D Insurance - $175,000"]
[31,50,null,null,null,null,"Basic Life and AD&D Insurance - $200,000"]
[32,50]
[33,50,null,9,24,50,100]
[34,50,null,"Life/AD&D 1X Salary min $15,000 max $30K","Life/AD&D 1X Salary min $15,000 max $50K","Life/AD&D 1X Salary min $15,000 max $50K","Life/AD&D 1X Salary min $15,000 max $50K"]
[35,50,null,"Life/AD&D 1X Salary min $15,000 max $50K","Life/AD&D 1X Salary min $15,000 max $75K","Life/AD&D 1X Salary min $15,000 max $75K","Life/AD&D 1X Salary min $15,000 max $75K"]
[36,50,null,"Life/AD&D 2X Salary min $15,000 max $30K","Life/AD&D 1X Salary min $15,000 max $100K","Life/AD&D 1X Salary min $15,000 max $100K","Life/AD&D 1X Salary min $15,000 max $100K"]
[37,50,null,"Life/AD&D 2X Salary min $15,000 max $50K","Life/AD&D 2X Salary min $15,000 max $50K","Life/AD&D 1X Salary min $15,000 max $125K","Life/AD&D 1X Salary min $15,000 max $125K"]
[38,50,null,null,"Life/AD&D 2X Salary min $15,000 max $75K","Life/AD&D 1X Salary min $15,000 max $150K","Life/AD&D 1X Salary min $15,000 max $150K"]
[39,50,null,null,"Life/AD&D 2X Salary min $15,000 max $100K","Life/AD&D 2X Salary min $15,000 max $50K","Life/AD&D 1X Salary min $15,000 max $175K"]
[40,50,null,null,"Life/AD&D 2X Salary min $15,000 max $125K","Life/AD&D 2X Salary min $15,000 max $75K","Life/AD&D 1X Salary min $15,000 max $200K"]
[41,50,null,null,"Life/AD&D 2X Salary min $15,000 max $150K","Life/AD&D 2X Salary min $15,000 max $100K","Life/AD&D 1X Salary min $15,000 max $250K"]
[42,50,null,null,"Life/AD&D 2X Salary min $15,000 max $175K","Life/AD&D 2X Salary min $15,000 max $125K","Life/AD&D 1X Salary min $15,000 max $300K"]
[43,50,null,null,"Life/AD&D 2X Salary min $15,000 max $200K","Life/AD&D 2X Salary min $15,000 max $150K","Life/AD&D 2X Salary min $15,000 max $50K"]
[44,50,null,null,"Life/AD&D 2X Salary min $15,000 max $250K","Life/AD&D 2X Salary min $15,000 max $175K","Life/AD&D 2X Salary min $15,000 max $75K"]
[45,50,null,null,"Life/AD&D 2X Salary min $15,000 max $300K","Life/AD&D 2X Salary min $15,000 max $200K","Life/AD&D 2X Salary min $15,000 max $100K"]
[46,50,null,null,"Life/AD&D 2X Salary min $15,000 max $350K","Life/AD&D 2X Salary min $15,000 max $250K","Life/AD&D 2X Salary min $15,000 max $125K"]
[47,50,null,null,"Life/AD&D 2X Salary min $15,000 max $400K","Life/AD&D 2X Salary min $15,000 max $300K","Life/AD&D 2X Salary min $15,000 max $150K"]
[48,50,null,null,"Life/AD&D 2X Salary min $15,000 max $450K","Life/AD&D 2X Salary min $15,000 max $350K","Life/AD&D 2X Salary min $15,000 max $175K"]
[49,50,null,null,"Life/AD&D 2X Salary min $15,000 max $500K","Life/AD&D 2X Salary min $15,000 max $400K","Life/AD&D 2X Salary min $15,000 max $200K"]
[50,50,null,null,null,"Life/AD&D 2X Salary min $15,000 max $450K","Life/AD&D 2X Salary min $15,000 max $250K"]
[51,100,null,null,null,"Life/AD&D 2X Salary min $15,000 max $500K","Life/AD&D 2X Salary min $15,000 max $300K"]
[52,100,null,null,null,null,"Life/AD&D 2X Salary min $15,000 max $350K"]
[53,100,null,null,null,null,"Life/AD&D 2X Salary min $15,000 max $400K"]
[54,100,null,null,null,null,"Life/AD&D 2X Salary min $15,000 max $450K"]
[55,100,null,null,null,null,"Life/AD&D 2X Salary min $15,000 max $500K"]
[56,100,null,null,null,null,"Life/AD&D 2X Salary min $15,000 max $550K"]
[57,100,null,null,null,null,"Life/AD&D 2X Salary min $15,000 max $600K"]
[58,100]
[59,100,null,9,24,50,100]
[60,100,null,"Basic Life and AD&D Insurance - $15,000","Basic Life and AD&D Insurance - $15,000","Basic Life and AD&D Insurance - $15,000","Basic Life and AD&D Insurance - $15,000"]
[61,100,null,"Basic Life and AD&D Insurance - $20,000","Basic Life and AD&D Insurance - $20,000","Basic Life and AD&D Insurance - $20,000","Basic Life and AD&D Insurance - $20,000"]
[62,100,null,"Basic Life and AD&D Insurance - $25,000","Basic Life and AD&D Insurance - $25,000","Basic Life and AD&D Insurance - $25,000","Basic Life and AD&D Insurance - $25,000"]
[63,100,null,"Basic Life and AD&D Insurance - $30,000","Basic Life and AD&D Insurance - $30,000","Basic Life and AD&D Insurance - $30,000","Basic Life and AD&D Insurance - $30,000"]
[64,100,null,"Basic Life and AD&D Insurance - $35,000","Basic Life and AD&D Insurance - $35,000","Basic Life and AD&D Insurance - $35,000","Basic Life and AD&D Insurance - $35,000"]
[65,100,null,"Basic Life and AD&D Insurance - $40,000","Basic Life and AD&D Insurance - $40,000","Basic Life and AD&D Insurance - $40,000","Basic Life and AD&D Insurance - $40,000"]
[66,100,null,"Basic Life and AD&D Insurance - $45,000","Basic Life and AD&D Insurance - $45,000","Basic Life and AD&D Insurance - $45,000","Basic Life and AD&D Insurance - $45,000"]
[67,100,null,"Basic Life and AD&D Insurance - $50,000","Basic Life and AD&D Insurance - $50,000","Basic Life and AD&D Insurance - $50,000","Basic Life and AD&D Insurance - $50,000"]
[{"$f":"1+A67","v":68},100,null,"Life/AD&D 1X Salary min $15,000 max $30K","Basic Life and AD&D Insurance - $55,000","Basic Life and AD&D Insurance - $55,000","Basic Life and AD&D Insurance - $55,000"]
[69,100,null,"Life/AD&D 1X Salary min $15,000 max $50K","Basic Life and AD&D Insurance - $60,000","Basic Life and AD&D Insurance - $60,000","Basic Life and AD&D Insurance - $60,000"]
[70,100,null,"Life/AD&D 2X Salary min $15,000 max $30K","Basic Life and AD&D Insurance - $65,000","Basic Life and AD&D Insurance - $65,000","Basic Life and AD&D Insurance - $65,000"]
[71,100,null,"Life/AD&D 2X Salary min $15,000 max $50K","Basic Life and AD&D Insurance - $70,000","Basic Life and AD&D Insurance - $70,000","Basic Life and AD&D Insurance - $70,000"]
[72,100,null,null,"Basic Life and AD&D Insurance - $75,000","Basic Life and AD&D Insurance - $75,000","Basic Life and AD&D Insurance - $75,000"]
[73,100,null,null,"Basic Life and AD&D Insurance - $80,000","Basic Life and AD&D Insurance - $80,000","Basic Life and AD&D Insurance - $80,000"]
[74,100,null,null,"Basic Life and AD&D Insurance - $85,000","Basic Life and AD&D Insurance - $85,000","Basic Life and AD&D Insurance - $85,000"]
[75,100,null,null,"Basic Life and AD&D Insurance - $90,000","Basic Life and AD&D Insurance - $90,000","Basic Life and AD&D Insurance - $90,000"]
[76,100,null,null,"Basic Life and AD&D Insurance - $95,000","Basic Life and AD&D Insurance - $95,000","Basic Life and AD&D Insurance - $95,000"]
[77,100,null,null,"Basic Life and AD&D Insurance - $100,000","Basic Life and AD&D Insurance - $100,000","Basic Life and AD&D Insurance - $100,000"]
[78,100,null,null,"Life/AD&D 1X Salary min $15,000 max $50K","Basic Life and AD&D Insurance - $105,000","Basic Life and AD&D Insurance - $105,000"]
[79,100,null,null,"Life/AD&D 1X Salary min $15,000 max $75K","Basic Life and AD&D Insurance - $110,000","Basic Life and AD&D Insurance - $110,000"]
[80,100,null,null,"Life/AD&D 1X Salary min $15,000 max $100K","Basic Life and AD&D Insurance - $115,000","Basic Life and AD&D Insurance - $115,000"]
[81,100,null,null,"Life/AD&D 2X Salary min $15,000 max $50K","Basic Life and AD&D Insurance - $120,000","Basic Life and AD&D Insurance - $120,000"]
[82,100,null,null,"Life/AD&D 2X Salary min $15,000 max $75K","Basic Life and AD&D Insurance - $125,000","Basic Life and AD&D Insurance - $125,000"]
[83,100,null,null,"Life/AD&D 2X Salary min $15,000 max $100K","Basic Life and AD&D Insurance - $130,000","Basic Life and AD&D Insurance - $130,000"]
[84,100,null,null,"Life/AD&D 2X Salary min $15,000 max $125K","Basic Life and AD&D Insurance - $135,000","Basic Life and AD&D Insurance - $135,000"]
[85,100,null,null,"Life/AD&D 2X Salary min $15,000 max $150K","Basic Life and AD&D Insurance - $140,000","Basic Life and AD&D Insurance - $140,000"]
[86,100,null,null,"Life/AD&D 2X Salary min $15,000 max $175K","Basic Life and AD&D Insurance - $145,000","Basic Life and AD&D Insurance - $145,000"]
[87,100,null,null,"Life/AD&D 2X Salary min $15,000 max $200K","Basic Life and AD&D Insurance - $150,000","Basic Life and AD&D Insurance - $150,000"]
[88,100,null,null,"Life/AD&D 2X Salary min $15,000 max $250K","Life/AD&D 1X Salary min $15,000 max $50K","Basic Life and AD&D Insurance - $175,000"]
[89,100,null,null,"Life/AD&D 2X Salary min $15,000 max $300K","Life/AD&D 1X Salary min $15,000 max $75K","Basic Life and AD&D Insurance - $200,000"]
[90,100,null,null,"Life/AD&D 2X Salary min $15,000 max $350K","Life/AD&D 1X Salary min $15,000 max $100K","Life/AD&D 1X Salary min $15,000 max $50K"]
[91,100,null,null,"Life/AD&D 2X Salary min $15,000 max $400K","Life/AD&D 1X Salary min $15,000 max $125K","Life/AD&D 1X Salary min $15,000 max $75K"]
[92,100,null,null,"Life/AD&D 2X Salary min $15,000 max $450K","Life/AD&D 1X Salary min $15,000 max $150K","Life/AD&D 1X Salary min $15,000 max $100K"]
[93,100,null,null,"Life/AD&D 2X Salary min $15,000 max $500K","Life/AD&D 2X Salary min $15,000 max $50K","Life/AD&D 1X Salary min $15,000 max $125K"]
[94,100,null,null,null,"Life/AD&D 2X Salary min $15,000 max $75K","Life/AD&D 1X Salary min $15,000 max $150K"]
[95,100,null,null,null,"Life/AD&D 2X Salary min $15,000 max $100K","Life/AD&D 1X Salary min $15,000 max $175K"]
[96,100,null,null,null,"Life/AD&D 2X Salary min $15,000 max $125K","Life/AD&D 1X Salary min $15,000 max $200K"]
[97,100,null,null,null,"Life/AD&D 2X Salary min $15,000 max $150K","Life/AD&D 1X Salary min $15,000 max $250K"]
[98,100,null,null,null,"Life/AD&D 2X Salary min $15,000 max $175K","Life/AD&D 1X Salary min $15,000 max $300K"]
[99,100,null,null,null,"Life/AD&D 2X Salary min $15,000 max $200K","Life/AD&D 2X Salary min $15,000 max $50K"]
[100,100,null,null,null,"Life/AD&D 2X Salary min $15,000 max $250K","Life/AD&D 2X Salary min $15,000 max $75K"]
[null,null,null,null,null,"Life/AD&D 2X Salary min $15,000 max $300K","Life/AD&D 2X Salary min $15,000 max $100K"]
[null,"Waive",null,null,null,"Life/AD&D 2X Salary min $15,000 max $350K","Life/AD&D 2X Salary min $15,000 max $125K"]
[null,{"$f":"MGA!$C$155","v":0},null,null,null,"Life/AD&D 2X Salary min $15,000 max $400K","Life/AD&D 2X Salary min $15,000 max $150K"]
[null,null,null,null,null,"Life/AD&D 2X Salary min $15,000 max $450K","Life/AD&D 2X Salary min $15,000 max $175K"]
[null,null,null,null,null,"Life/AD&D 2X Salary min $15,000 max $500K","Life/AD&D 2X Salary min $15,000 max $200K"]
[null,null,null,null,null,null,"Life/AD&D 2X Salary min $15,000 max $250K"]
[null,null,null,null,null,null,"Life/AD&D 2X Salary min $15,000 max $300K"]
[null,null,null,null,null,null,"Life/AD&D 2X Salary min $15,000 max $350K"]
[null,null,null,null,null,null,"Life/AD&D 2X Salary min $15,000 max $400K"]
[null,null,null,null,null,null,"Life/AD&D 2X Salary min $15,000 max $450K"]
[null,null,null,null,null,null,"Life/AD&D 2X Salary min $15,000 max $500K"]
[null,null,null,null,null,null,"Life/AD&D 2X Salary min $15,000 max $550K"]
[null,null,null,null,null,null,"Life/AD&D 2X Salary min $15,000 max $600K"]

{"sheet":"MGAtoCSV","index":9,"n_rows":10,"n_cols":208,"rows_kept":10,"cut":false,"hidden":true,"merged":[]}
["Full_legal_business_name__c","Effective_Date__c","Doing_Business_As_Name__c","Billing_address__c","Billing_City__c","Billing_State__c","Billing_Zip__c","Physical_Address_same_as_Billing_Address__c","Physical_address_if_different_Billing__c","Physical_Address_City__c","Physical_Address_State__c","Physical_Address_Zip__c","Physical_Address_County__c","Street_where_most_EE_work__c","City_where_most_EE_work__c","State_where_most_EE_work__c","Zip_where_most_EE_work__c","Primary_Contact_First_Name__c","Primary_Contact_Last_Name__c","Group_Contact_name_title__c","Group_Contact_Phone_number__c","Group_Contact_Fax_number__c","Group_Contact_Email_address__c","Is_Online_Contact__c","Secondary_Contact_First_Name__c","Secondary_Contact_Last_Name__c","Secondary_Group_Contact_name_title__c","Secondary_Group_Contact_Phone__c","Secondary_Group_Contact_Email__c","XX1","XX2","XX3","Legal_Entity__c","Other_Legal_Entity__c","Federal_Tax_ID__c","Multiple_Tax_IDs_y_n__c","Second_Federal_Tax_ID__c","Primary_products_of_business_1__c","Primary_products_SIC_1__c","Primary_products_of_business_2__c","Primary_products_SIC_2__c","Name_of_prior_group_health_carrier__c","Prior_Carrier_Begin_Date__c","Prior_Carrier_End_Date__c","Coverage_still_in_force__c","Company_previously_been_insured_w_BSC__c","Previous_Group_ID__c","Termination_Date__c","Offer_other_carriers_plans_to_employees__c","If_other_plan_offered_carrier_name__c","If_other_plan_offered_number_of_employee__c","Other_plan_open_enrollment_begin_date__c","Other_plan_open_enrollment_end_date__c","Any_Subsidiaries__c","Subsidiary_affiliated_co_name_1__c","Subsidiary_affiliated_co_name_2__c","Subsidiary_affiliated_co_name_3__c","Include_in_coverage_1__c","Include_in_coverage_2__c","Include_in_coverage_3__c","Elig_to_file_combined_state_tax_return_1__c","Elig_to_file_combined_state_tax_return_2__c","Elig_to_file_combined_state_tax_return_3__c","List_subsidiary_or_affiliated_companies__c","All_employees_covered_by_workers_comp__c","No_of_employees__c","No_of_eligible_employees__c","Total_eligible_part_time__c","Medical_enrollment__c","Refusing_Medical__c","Dental_enrollment__c","Refusing_Dental__c","Vision_enrollment__c","Refusing_Vision__c","Life_enrollment__c","Refusing_Life__c","FT_FTE_Count__c","Orientation_period_for_new_employees__c","Is_your_orientation_period_30_days__c","New_Employee_Waiting_Period__c","Waiting_period_waved_existing_employees__c","No_fulltime_employees_in_waiting_period__c","All_full_time_employees_offered_covered__c","Class_Group_coverage_is_offered__c","Fulltime_coverage_at_least_30_hours__c","Coverage_employees_work_b_w_2030_hours__c","Any_out_of_state_employees_y_n__c","If_yes_how_many__c","Domestic_partner_coverage_broad__c","Ongoing_Enrollment_Channel__c","Enrolling_in_Private_Exchange__c","Exchange_Name1__c","EDI_Trading_Partner__c","EDI_Contact_Name__c","EDI_Contact_Email__c","EDI_Contact_Phone__c","Is_group_subject_to_CalCOBRA__c","Is_group_subject_to_federal_COBRA__c","Existing_CalCOBRA_or_COBRA_members__c","CalCOBRA_eligibility_election_period__c","Enroll_forms_attached_cobra__c","ABHP__c","Infertility_rider__c","Medical_Contribution_For_Employee_Perc__c","Medical_Contribution_For_Employee_Amount__c","Medical_Contribution_For_Dependent_Perc__c","Medical_Contribution_For_Dependent_Amount__c","Plan_Packages__c","Medical_Plans_Selected__c","1st_time_all_EE_elect_dental__c","Dental_plan_option__c","Triple_choice_combo__c","Dental_Plans_Selected__c","Dental_Contribution_For_Employee_Perc__c","Dental_Contribution_For_Employee__c","Dental_Contribution_For_Dependent_Perc__c","Dental_Contribution_For_Dependent__c","1st_time_all_EE_elect_vision__c","Vision_Plans_Selected__c","Vision_Contribution_For_Employee_Perc__c","Vision_Contribution_For_Employee__c","Vision_Contribution_For_Dependent_Perc__c","Vision_Contribution_For_Dependent__c","1st_time_all_EE_elect_life__c","Life_Plan_Types__c","Multiple_of_Salary__c","Graded_Class_Desc_1__c","Graded_Class_Desc_2__c","Graded_Class_Desc_3__c","Graded_Class_Desc_4__c","Life_plan_selected__c","Dependent_life_insurance__c","Dependent_life_plan__c","Life_Contributory_Employees_Perc__c","Life_Contributory_Employees__c","Life_Contributory_Dependents_Perc__c","Life_Contributory_Dependents__c","Authorization_Signed_Date__c","Authorization_Signer__c","Authorization_Signer_Last_Name__c","Authorization_Signer_Title__c","Authorization_Signed__c","Agency_name__c","Tax_id_number__c","Producer_name__c","Producer_CDI_license__c","Producer_email__c","Producer_phone__c","Delegate_Name__c","Delegate_email__c","Producer_street_address__c","Producer_city__c","Producer_state__c","ZIP_code__c","Is_this_a_split_commission__c","Producer_split_1__c","Producer_split_2__c","Name_of_second__c","Second_producer_tax__c","General_agency_name__c","GA_Tax_id__c","GA_producer_name__c","GA_producer_email__c","Today_s_Date__c","Printed_First_Name__c","Printed_Last_Name__c","BSC_AE__c","BSC_AE_phone__c","BSC_AM__c","BSC_AM_phone__c","BSC_SA__c","BSC_SA_phone__c","Past_Due_Attestation__c","COBRA_TPA_Contact_First_Name__c","COBRA_TPA_Contact_Last_Name__c","COBRA_TPA_Contact_Title__c","COBRA_TPA_Contact_Phone__c","COBRA_TPA_Contact_Email__c","COBRA_HOLD#1","COBRA_HOLD#2","COBRA_HOLD#3","Is_the_Group_a_Person_Firm_or_Etc__c","Is_the_Grp_Actively_Engaged_In_Business__c","Group_Employ_1_100_employees_on_50__c","If_100_Grp_employ_1_100_at_least_50__c","OOS_If_100_empl_1_100_at_least_50__c","Reside_in_the_service_area__c","Union_and_Non_Union_Employees__c","Terminating_an_Arrangement_with_a_PEO__c","Is_the_Group_a_Spinoff__c","Is_the_Group_a_Startup__c","Group_Representative_Attestation__c","Delagate_Contact__c","Certify_Assisted_Applicant__c","Was_Group_Formed_for_HC__c","Grp_Employ_1_W2__c","If_How_Many_in_Prior_Quarter__c","IF_prior_QC_Count_How_many_in_Prior_Ye__c","Total_FT_and_FTE_employed_OOS_QC__c","Total_FT_and_FTE_employed_OOS_CY__c","Group_used_employees_from_a_PEO__c","Principal_Business_Street__c","Principal_Business_City__c","Principal_Business_State__c","Principal_Business_Zip__c","Principal_Business_Country__c","CSV_Source__c","EOL"]
[{"$f":"IF(VLOOKUP(A1,MGA!$A:$D,4,FALSE)=0,\"\",VLOOKUP(A1,MGA!$A:$D,4,FALSE))","v":""},{"$f":"IF(VLOOKUP(B1,MGA!$A:$D,4,FALSE)=0,\"\",VLOOKUP(B1,MGA!$A:$D,4,FALSE))","v":""},{"$f":"IF(VLOOKUP(C1,MGA!$A:$D,4,FALSE)=0,\"\",VLOOKUP(C1,MGA!$A:$D,4,FALSE))","v":""},{"$f":"IF(MGA!D14<>\"\",MGA!D14,MGA!D9)","v":0},{"$f":"IF(MGA!D15<>\"\",MGA!D15,MGA!D10)","v":0},{"$f":"IF(MGA!D16<>\"\",MGA!D16,MGA!D11)","v":0},{"$f":"IF(MGA!D17<>\"\",MGA!D17,MGA!D12)","v":0},null,{"$f":"IF(VLOOKUP(I1,MGA!$A:$D,4,FALSE)=0,\"\",VLOOKUP(I1,MGA!$A:$D,4,FALSE))","v":""},{"$f":"IF(VLOOKUP(J1,MGA!$A:$D,4,FALSE)=0,\"\",VLOOKUP(J1,MGA!$A:$D,4,FALSE))","v":""},{"$f":"IF(VLOOKUP(K1,MGA!$A:$D,4,FALSE)=0,\"\",VLOOKUP(K1,MGA!$A:$D,4,FALSE))","v":""},{"$f":"IF(VLOOKUP(L1,MGA!$A:$D,4,FALSE)=0,\"\",VLOOKUP(L1,MGA!$A:$D,4,FALSE))","v":""},null,null,null,null,null,{"$f":"IF(VLOOKUP(R1,MGA!$A:$D,4,FALSE)=0,\"\",VLOOKUP(R1,MGA!$A:$D,4,FALSE))","v":""},{"$f":"IF(VLOOKUP(S1,MGA!$A:$D,4,FALSE)=0,\"\",VLOOKUP(S1,MGA!$A:$D,4,FALSE))","v":""},{"$f":"IF(VLOOKUP(T1,MGA!$A:$D,4,FALSE)=0,\"\",VLOOKUP(T1,MGA!$A:$D,4,FALSE))","v":""},{"$f":"IF(VLOOKUP(U1,MGA!$A:$D,4,FALSE)=0,\"\",VLOOKUP(U1,MGA!$A:$D,4,FALSE))","v":""},null,{"$f":"IF(VLOOKUP(W1,MGA!$A:$D,4,FALSE)=0,\"\",VLOOKUP(W1,MGA!$A:$D,4,FALSE))","v":""},{"$f":"IF(VLOOKUP(X1,MGA!$A:$D,4,FALSE)=0,\"\",VLOOKUP(X1,MGA!$A:$D,4,FALSE))","v":""},{"$f":"IF(VLOOKUP(Y1,MGA!$A:$D,4,FALSE)=0,\"\",VLOOKUP(Y1,MGA!$A:$D,4,FALSE))","v":""},{"$f":"IF(VLOOKUP(Z1,MGA!$A:$D,4,FALSE)=0,\"\",VLOOKUP(Z1,MGA!$A:$D,4,FALSE))","v":""},{"$f":"IF(VLOOKUP(AA1,MGA!$A:$D,4,FALSE)=0,\"\",VLOOKUP(AA1,MGA!$A:$D,4,FALSE))","v":""},{"$f":"IF(VLOOKUP(AB1,MGA!$A:$D,4,FALSE)=0,\"\",VLOOKUP(AB1,MGA!$A:$D,4,FALSE))","v":""},{"$f":"IF(VLOOKUP(AC1,MGA!$A:$D,4,FALSE)=0,\"\",VLOOKUP(AC1,MGA!$A:$D,4,FALSE))","v":""},null,null,null,{"$f":"IF(VLOOKUP(AG1,MGA!$A:$D,4,FALSE)=0,\"\",VLOOKUP(AG1,MGA!$A:$D,4,FALSE))","v":""},{"$f":"IF(VLOOKUP(AH1,MGA!$A:$D,4,FALSE)=0,\"\",VLOOKUP(AH1,MGA!$A:$D,4,FALSE))","v":""},{"$f":"IF(VLOOKUP(AI1,MGA!$A:$D,4,FALSE)=0,\"\",VLOOKUP(AI1,MGA!$A:$D,4,FALSE))","v":""},null,null,{"$f":"IF(VLOOKUP(AL1,MGA!$A:$D,4,FALSE)=0,\"\",VLOOKUP(AL1,MGA!$A:$D,4,FALSE))","v":""},{"$f":"IF(VLOOKUP(AM1,MGA!$A:$D,4,FALSE)=0,\"\",VLOOKUP(AM1,MGA!$A:$D,4,FALSE))","v":""},null,null,{"$f":"IF(VLOOKUP(AP1,MGA!$A:$D,4,FALSE)=0,\"\",VLOOKUP(AP1,MGA!$A:$D,4,FALSE))","v":""},null,null,null,null,null,null,{"$f":"IF(VLOOKUP(AW1,MGA!$A:$D,4,FALSE)=0,\"\",VLOOKUP(AW1,MGA!$A:$D,4,FALSE))","v":""},{"$f":"IF(VLOOKUP(AX1,MGA!$A:$D,4,FALSE)=0,\"\",VLOOKUP(AX1,MGA!$A:$D,4,FALSE))","v":""},{"$f":"IF(VLOOKUP(AY1,MGA!$A:$D,4,FALSE)=0,\"\",VLOOKUP(AY1,MGA!$A:$D,4,FALSE))","v":""},null,null,{"$f":"IF(VLOOKUP(BB1,MGA!$A:$D,4,FALSE)=0,\"\",VLOOKUP(BB1,MGA!$A:$D,4,FALSE))","v":""},{"$f":"IF(MGA!$D40=\"\",\"\",MGA!$D40)","v":""},{"$f":"IF(MGA!$D41=\"\",\"\",MGA!$D41)","v":""},{"$f":"IF(MGA!$D42=\"\",\"\",MGA!$D42)","v":""},{"$f":"IF(MGA!$E40=\"\",\"\",MGA!$E40)","v":""},{"$f":"IF(MGA!$E41=\"\",\"\",MGA!$E41)","v":""},{"$f":"IF(MGA!$E42=\"\",\"\",MGA!$E42)","v":""},{"$f":"IF(MGA!$F40=\"\",\"\",MGA!$F40)","v":""},{"$f":"IF(MGA!$F41=\"\",\"\",MGA!$F41)","v":""},{"$f":"IF(MGA!$F42=\"\",\"\",MGA!$F42)","v":""},{"$f":"IF(ListValues!A139=\"\",\"\",VLOOKUP(MAX(ListValues!$B$139:$B$141),ListValues!$B$139:$C$141,2,FALSE))","v":""},{"$f":"IF(VLOOKUP(BM1,MGA!$A:$D,4,FALSE)=\"\",\"\",VLOOKUP(BM1,MGA!$A:$D,4,FALSE))","v":""},{"$f":"IF(VLOOKUP(BN1,MGA!$A:$D,4,FALSE)=\"\",\"\",VLOOKUP(BN1,MGA!$A:$D,4,FALSE))","v":""},{"$f":"IF(VLOOKUP(BO1,MGA!$A:$D,4,FALSE)=\"\",\"\",VLOOKUP(BO1,MGA!$A:$D,4,FALSE))","v":""},{"$f":"IF(VLOOKUP(BP1,MGA!$A:$D,4,FALSE)=\"\",\"\",VLOOKUP(BP1,MGA!$A:$D,4,FALSE))","v":""},{"$f":"MGA!$D57","v":0},{"$f":"MGA!$E57","v":0},{"$f":"MGA!$D58","v":0},{"$f":"MGA!$E58","v":0},{"$f":"MGA!$D59","v":0},{"$f":"MGA!$E59","v":0},{"$f":"MGA!$D60","v":0},{"$f":"MGA!$E60","v":0},{"$f":"IF(VLOOKUP(BY1,MGA!$A:$D,4,FALSE)=0,\"\",VLOOKUP(BY1,MGA!$A:$D,4,FALSE))","v":""},null,null,{"$f":"IF(VLOOKUP(CB1,MGA!$A:$D,4,FALSE)=0,\"\",VLOOKUP(VLOOKUP(CB1,MGA!$A:$D,4,FALSE),ListValues!$A$134:$B$137,2,FALSE))","v":""},{"$f":"IF(VLOOKUP(CC1,MGA!$A:$D,4,FALSE)=0,\"\",VLOOKUP(CC1,MGA!$A:$D,4,FALSE))","v":""},null,{"$f":"IF(VLOOKUP(CE1,MGA!$A:$D,4,FALSE)=0,\"\",VLOOKUP(CE1,MGA!$A:$D,4,FALSE))","v":""},null,null,{"$f":"IF(VLOOKUP(CH1,MGA!$A:$D,4,FALSE)=0,\"\",VLOOKUP(CH1,MGA!$A:$D,4,FALSE))","v":""},null,{"$f":"IF(VLOOKUP(CJ1,MGA!$A:$D,4,FALSE)=0,\"\",VLOOKUP(CJ1,MGA!$A:$D,4,FALSE))","v":""},"Broad",null,null,null,null,null,null,null,{"$f":"IF(VLOOKUP(CS1,MGA!$A:$D,4,FALSE)=0,\"\",VLOOKUP(CS1,MGA!$A:$D,4,FALSE))","v":""},{"$f":"IF(VLOOKUP(CT1,MGA!$A:$D,4,FALSE)=0,\"\",VLOOKUP(CT1,MGA!$A:$D,4,FALSE))","v":""},{"$f":"IF(MGA!D47=\"Yes\",MGA!D49,IF(MGA!D48=\"Yes\",MGA!#REF!,\"\"))","v":""},{"$f":"IF(MGA!D47=\"Yes\",MGA!D50,IF(MGA!D48=\"Yes\",MGA!D50,\"\"))","v":""},{"$f":"IF(VLOOKUP(CW1,MGA!$A:$D,4,FALSE)=0,\"\",VLOOKUP(CW1,MGA!$A:$D,4,FALSE))","v":""},{"$f":"IF(VLOOKUP(CX1,MGA!$A:$D,4,FALSE)=0,\"\",VLOOKUP(CX1,MGA!$A:$D,4,FALSE))","v":""},{"$f":"IF(VLOOKUP(CY1,MGA!$A:$D,4,FALSE)=0,\"\",VLOOKUP(CY1,MGA!$A:$D,4,FALSE))","v":""},{"$f":"IF(MGA!$D170=\"\",\"\",MGA!$D170*100)","v":""},{"$f":"IF(MGA!$E170=\"\",\"\",MGA!$E170)","v":""},{"$f":"IF(MGA!$D171=\"\",\"\",MGA!$D171*100)","v":""},{"$f":"IF(MGA!$E171=\"\",\"\",MGA!$E171)","v":""},{"$f":"IF(COUNTA(MGA!C88:C99,MGA!D88:D91,MGA!E88:E94,MGA!C110:C117,MGA!D110:D117,MGA!E110:E117)>0,\"Blue Shield of California Off Exchange Package for Small Business\",IF(COUNTA(MGA!C123:C129)>0,\"Blue Shield of California Mirror Package for Small Business\",\"\"))","v":""},{"$f":"VLOOKUP(MAX(ListValues!$G$1:$G$70),ListValues!$G$1:$H$70,2,FALSE)","v":""},null,{"$f":"IF(VLOOKUP(DG1,MGA!$A:$D,4,FALSE)=0,\"\",VLOOKUP(DG1,MGA!$A:$D,4,FALSE))","v":""},{"$f":"IF(VLOOKUP(DH1,MGA!$A:$D,4,FALSE)=0,\"\",VLOOKUP(DH1,MGA!$A:$D,4,FALSE))","v":""},{"$f":"VLOOKUP(MAX(ListValues!$J$72:$J$106),ListValues!$J$72:$K$106,2,FALSE)","v":""},{"$f":"IF(MGA!$D173=\"\",\"\",MGA!$D173*100)","v":""},{"$f":"IF(MGA!$E173=\"\",\"\",MGA!$E173)","v":""},{"$f":"IF(MGA!$D174=\"\",\"\",MGA!$D174*100)","v":""},{"$f":"IF(MGA!$E174=\"\",\"\",MGA!$E174)","v":""},null,{"$f":"IF(COUNTA(MGA!C148:E149)=0,\"\",VLOOKUP(MAX(ListValues!$G$112:$G$132),ListValues!$G$112:$H$132,2,FALSE))","v":""},{"$f":"IF(MGA!$D176=\"\",\"\",MGA!$D176*100)","v":""},{"$f":"IF(MGA!$E176=\"\",\"\",MGA!$E176)","v":""},{"$f":"IF(MGA!$D177=\"\",\"\",MGA!$D177*100)","v":""},{"$f":"IF(MGA!$E177=\"\",\"\",MGA!$E177)","v":""},null,{"$f":"IF(MGA!C155=\"\",\"\",MGA!C155)","v":""},{"$f":"IF(MultipleofSalary_MGA=\"\",\"\",MID(MultipleofSalary_MGA,FIND(\" \",MultipleofSalary_MGA)+1,1))","v":""},{"$f":"IF(VLOOKUP(DW1,MGA!$A:$D,4,FALSE)=\"\",\"\",VLOOKUP(DW1,MGA!$A:$D,4,FALSE))","v":""},{"$f":"IF(VLOOKUP(DX1,MGA!$A:$D,4,FALSE)=\"\",\"\",VLOOKUP(DX1,MGA!$A:$D,4,FALSE))","v":""},{"$f":"IF(VLOOKUP(DY1,MGA!$A:$D,4,FALSE)=\"\",\"\",VLOOKUP(DY1,MGA!$A:$D,4,FALSE))","v":""},{"$f":"IF(VLOOKUP(DZ1,MGA!$A:$D,4,FALSE)=\"\",\"\",VLOOKUP(DZ1,MGA!$A:$D,4,FALSE))","v":""},{"$f":"IF(ListValues!C150=\"\",\"\",ListValues!C150)","v":""},{"$f":"IF(VLOOKUP(EB1,MGA!$A:$D,4,FALSE)=0,\"\",VLOOKUP(EB1,MGA!$A:$D,4,FALSE))","v":""},{"$f":"IF(VLOOKUP(EC1,MGA!$A:$D,4,FALSE)=0,\"\",VLOOKUP(EC1,MGA!$A:$D,4,FALSE))","v":""},{"$f":"IF(MGA!$D179=\"\",\"\",MGA!$D179*100)","v":""},{"$f":"IF(MGA!$E179=\"\",\"\",MGA!$E179)","v":""},{"$f":"IF(MGA!$D180=\"\",\"\",MGA!$D180*100)","v":""},{"$f":"IF(MGA!$E180=\"\",\"\",MGA!$E180)","v":""},{"$f":"IF(VLOOKUP(EH1,MGA!$A:$D,4,FALSE)=0,\"\",VLOOKUP(EH1,MGA!$A:$D,4,FALSE))","v":""},{"$f":"IF(VLOOKUP(EI1,MGA!$A:$D,4,FALSE)=0,\"\",VLOOKUP(EI1,MGA!$A:$D,4,FALSE))","v":""},{"$f":"IF(VLOOKUP(EJ1,MGA!$A:$D,4,FALSE)=0,\"\",VLOOKUP(EJ1,MGA!$A:$D,4,FALSE))","v":""},{"$f":"IF(VLOOKUP(EK1,MGA!$A:$D,4,FALSE)=0,\"\",VLOOKUP(EK1,MGA!$A:$D,4,FALSE))","v":""},{"$f":"IF(VLOOKUP(EL1,MGA!$A:$D,4,FALSE)=0,\"\",VLOOKUP(EL1,MGA!$A:$D,4,FALSE))","v":""},{"$f":"IF(VLOOKUP(EM1,MGA!$A:$D,4,FALSE)=0,\"\",VLOOKUP(EM1,MGA!$A:$D,4,FALSE))","v":""},{"$f":"IF(VLOOKUP(EN1,MGA!$A:$D,4,FALSE)=0,\"\",VLOOKUP(EN1,MGA!$A:$D,4,FALSE))","v":""},{"$f":"IF(VLOOKUP(EO1,MGA!$A:$D,4,FALSE)=0,\"\",VLOOKUP(EO1,MGA!$A:$D,4,FALSE))","v":""},{"$f":"IF(VLOOKUP(EP1,MGA!$A:$D,4,FALSE)=0,\"\",VLOOKUP(EP1,MGA!$A:$D,4,FALSE))","v":""},{"$f":"IF(VLOOKUP(EQ1,MGA!$A:$D,4,FALSE)=0,\"\",VLOOKUP(EQ1,MGA!$A:$D,4,FALSE))","v":""},{"$f":"IF(VLOOKUP(ER1,MGA!$A:$D,4,FALSE)=0,\"\",VLOOKUP(ER1,MGA!$A:$D,4,FALSE))","v":""},{"$f":"IF(VLOOKUP(ES1,MGA!$A:$D,4,FALSE)=0,\"\",VLOOKUP(ES1,MGA!$A:$D,4,FALSE))","v":""},{"$f":"IF(VLOOKUP(ET1,MGA!$A:$D,4,FALSE)=0,\"\",VLOOKUP(ET1,MGA!$A:$D,4,FALSE))","v":""},{"$f":"IF(VLOOKUP(EU1,MGA!$A:$D,4,FALSE)=0,\"\",VLOOKUP(EU1,MGA!$A:$D,4,FALSE))","v":""},{"$f":"IF(VLOOKUP(EV1,MGA!$A:$D,4,FALSE)=0,\"\",VLOOKUP(EV1,MGA!$A:$D,4,FALSE))","v":""},{"$f":"IF(VLOOKUP(EW1,MGA!$A:$D,4,FALSE)=0,\"\",VLOOKUP(EW1,MGA!$A:$D,4,FALSE))","v":""},{"$f":"IF(VLOOKUP(EX1,MGA!$A:$D,4,FALSE)=0,\"\",VLOOKUP(EX1,MGA!$A:$D,4,FALSE))","v":""},{"$f":"IF(VLOOKUP(EY1,MGA!$A:$D,4,FALSE)=0,\"\",VLOOKUP(EY1,MGA!$A:$D,4,FALSE))","v":""},{"$f":"IF(VLOOKUP(EZ1,MGA!$A:$D,4,FALSE)=0,\"\",VLOOKUP(EZ1,MGA!$A:$D,4,FALSE)*100)","v":""},{"$f":"IF(OR(VLOOKUP(FA1,MGA!$A:$D,4,FALSE)=0,VLOOKUP(FA1,MGA!$A:$D,4,FALSE)=\"\"),\"\",VLOOKUP(FA1,MGA!$A:$D,4,FALSE)*100)","v":""},{"$f":"IF(VLOOKUP(FB1,MGA!$A:$D,4,FALSE)=0,\"\",VLOOKUP(FB1,MGA!$A:$D,4,FALSE))","v":""},{"$f":"IF(VLOOKUP(FC1,MGA!$A:$D,4,FALSE)=0,\"\",VLOOKUP(FC1,MGA!$A:$D,4,FALSE))","v":""},{"$f":"IF(VLOOKUP(FD1,MGA!$A:$D,4,FALSE)=0,\"\",VLOOKUP(FD1,MGA!$A:$D,4,FALSE))","v":""},{"$f":"IF(VLOOKUP(FE1,MGA!$A:$D,4,FALSE)=0,\"\",VLOOKUP(FE1,MGA!$A:$D,4,FALSE))","v":""},{"$f":"IF(VLOOKUP(FF1,MGA!$A:$D,4,FALSE)=0,\"\",VLOOKUP(FF1,MGA!$A:$D,4,FALSE))","v":""},{"$f":"IF(VLOOKUP(FG1,MGA!$A:$D,4,FALSE)=0,\"\",VLOOKUP(FG1,MGA!$A:$D,4,FALSE))","v":""},{"$f":"IF(VLOOKUP(FH1,MGA!$A:$D,4,FALSE)=0,\"\",VLOOKUP(FH1,MGA!$A:$D,4,FALSE))","v":""},{"$f":"IF(VLOOKUP(FI1,MGA!$A:$D,4,FALSE)=0,\"\",VLOOKUP(FI1,MGA!$A:$D,4,FALSE))","v":""},{"$f":"IF(VLOOKUP(FJ1,MGA!$A:$D,4,FALSE)=0,\"\",VLOOKUP(FJ1,MGA!$A:$D,4,FALSE))","v":""},{"$f":"IF(MGA!$D221=\"\",\"\",MGA!$D221)","v":""},{"$f":"IF(MGA!$E221=\"\",\"\",MGA!$E221)","v":""},{"$f":"IF(MGA!$D222=\"\",\"\",MGA!$D222)","v":""},{"$f":"IF(MGA!$E222=\"\",\"\",MGA!$E222)","v":""},{"$f":"IF(MGA!$D223=\"\",\"\",MGA!$D223)","v":""},{"$f":"IF(MGA!$E223=\"\",\"\",MGA!$E223)","v":""},null,null,null,null,null,null,null,null,null,null,{"$f":"IF(VLOOKUP(GA1,MGA!$A:$D,4,FALSE)=0,\"\",VLOOKUP(GA1,MGA!$A:$D,4,FALSE))","v":""},{"$f":"IF(VLOOKUP(GB1,MGA!$A:$D,4,FALSE)=0,\"\",VLOOKUP(GB1,MGA!$A:$D,4,FALSE))","v":""},null,null,{"$f":"IF(VLOOKUP(GE1,MGA!$A:$D,4,FALSE)=0,\"\",VLOOKUP(GE1,MGA!$A:$D,4,FALSE))","v":""},{"$f":"IF(VLOOKUP(GF1,MGA!$A:$D,4,FALSE)=0,\"\",VLOOKUP(GF1,MGA!$A:$D,4,FALSE))","v":""},{"$f":"IF(VLOOKUP(GG1,MGA!$A:$D,4,FALSE)=0,\"\",VLOOKUP(GG1,MGA!$A:$D,4,FALSE))","v":""},{"$f":"IF(VLOOKUP(GH1,MGA!$A:$D,4,FALSE)=0,\"\",VLOOKUP(GH1,MGA!$A:$D,4,FALSE))","v":""},{"$f":"IF(VLOOKUP(GI1,MGA!$A:$D,4,FALSE)=0,\"\",VLOOKUP(GI1,MGA!$A:$D,4,FALSE))","v":""},{"$f":"IF(VLOOKUP(GJ1,MGA!$A:$D,4,FALSE)=0,\"\",VLOOKUP(GJ1,MGA!$A:$D,4,FALSE))","v":""},{"$f":"IF(VLOOKUP(GK1,MGA!$A:$D,4,FALSE)=0,\"\",VLOOKUP(GK1,MGA!$A:$D,4,FALSE))","v":""},{"$f":"IF(VLOOKUP(GL1,MGA!$A:$D,4,FALSE)=0,\"\",VLOOKUP(GL1,MGA!$A:$D,4,FALSE))","v":""},{"$f":"IF(VLOOKUP(GM1,MGA!$A:$D,4,FALSE)=0,\"\",VLOOKUP(GM1,MGA!$A:$D,4,FALSE))","v":""},{"$f":"IF(VLOOKUP(GN1,MGA!$A:$D,4,FALSE)=0,\"\",VLOOKUP(GN1,MGA!$A:$D,4,FALSE))","v":""},{"$f":"IF(VLOOKUP(GO1,MGA!$A:$D,4,FALSE)=0,\"\",VLOOKUP(GO1,MGA!$A:$D,4,FALSE))","v":""},{"$f":"IF(VLOOKUP(GP1,MGA!$A:$D,4,FALSE)=0,\"\",VLOOKUP(GP1,MGA!$A:$D,4,FALSE))","v":""},{"$f":"IF(VLOOKUP(GQ1,MGA!$A:$D,4,FALSE)=0,\"\",VLOOKUP(GQ1,MGA!$A:$D,4,FALSE))","v":""},{"$f":"IF(VLOOKUP(GR1,MGA!$A:$D,4,FALSE)=0,\"\",VLOOKUP(GR1,MGA!$A:$D,4,FALSE))","v":""},{"$f":"IF(VLOOKUP(GS1,MGA!$A:$D,4,FALSE)=0,\"\",VLOOKUP(GS1,MGA!$A:$D,4,FALSE))","v":""},{"$f":"IF(MGA!D19<>\"\",MGA!D19,MGA!D9)","v":0},{"$f":"IF(MGA!D20<>\"\",MGA!D20,MGA!D10)","v":0},{"$f":"IF(MGA!D21<>\"\",MGA!D21,MGA!D11)","v":0},{"$f":"IF(MGA!D22<>\"\",MGA!D22,MGA!D12)","v":0},{"$f":"IF(MGA!D23=\"\",\"\",MGA!D23)","v":""},"1X"]
[]
["Text(80)","Date",{"$error":"#N/A"},"Text(120)","Text(80)","Text(2)","Text(9)","Checkbox","Text(120)","Text(80)","Text(2)","Text(9)","Text(80)","Text (255)",null,null,null,"Text(80)","Text(80)","Text(80)","Phone","Phone","Email",{"$error":"#N/A"},"Text(80)","Text(80)","Text(80)","Phone","Email",null,null,null,"Picklist","Text(80)","Text(11)  (External ID)","Checkbox","Text(11)","Text (255)","text(50)","Text (255)","text(50)","Text(80)","Date","Date","check","Checkbox","Text(20)","Date","Checkbox","Text(80)","Number(2, 0)","Date","Date","Checkbox",null,null,null,null,null,null,null,null,null,"Long Text Area(32768)","Checkbox","Number(5, 0)","Number(5, 0)","Number(5, 0)","Number(5, 0)","Number(5, 0)","Number(5, 0)","Number(5, 0)","Number(5, 0)","Number(5, 0)","Number(5, 0)","Number(5, 0)","Number(3, 0)","Picklist","Picklist","Number(2, 0)","Checkbox","Number(2, 0)","Checkbox",null,"Checkbox","Checkbox","Checkbox","Number(2, 0)","Picklist","Picklist","Checkbox","Lookup(Account)","Lookup(EDI Trading Partner)","Text(100)","Email","Phone","checkbox ","Checkbox","Number(2, 0)","Number(2, 0)","checkbox","checkbox","checkbox","Percent(3, 2)","Currency(16, 2)","Percent(3, 2)",null,"Text Area(255)","Long Text Area(32768)","checkbox","text (50)","text (200)","Long Text Area(32768)","Percent(16, 2)","Currency(16, 2)","Percent(16, 2)","Currency(16, 2)",null,"Long Text Area(32768)","Percent(3, 2)","Currency(16, 2)","Percent(3, 2)","Currency(16, 2)",null,null,null,"text 40","text 40","text 40","text 40",null,"check box","picklist","Percent(3, 2)","Currency(16, 2)","Percent(3, 2)","Currency(16, 2)","Date","Text(80)","Text(80)","Text(80)","Checkbox","text(100)","text(50)","text(100)","text(50)","text(100)","phone","text(100)","text(100)","text(100)","text(100)","text(50)","text(50)","picklist (yes/no)","percent","percent","text(100)","text(100)","text(100)","text(100)","text(100)","text(100)","Date","Text(80)","Text(80)","Text(80)","Phone","Text(80)","Phone","Text(80)","Phone"]
[null,null,null,null,null,null,null,null,null,null,null,null,null,null,null,null,null,null,null,null,null,null,null,null,null,null,null,null,null,null,null,null,null,null,null,null,null,null,null,null,null,null,null,null,null,null,null,null,null,null,null,null,null,null,null,null,null,null,null,null,null,null,null,null,null,null,null,null,null,null,null,null,null,null,null,null,null,null,null,null,null,null,null,null,null,null,null,null,"Hardcode value per Barbara G. 3/11/20"]
[]
[]
[]
[]
["Full_legal_business_name__c","Effective_Date__c","Doing_Business_As_Name__c","Billing_address__c","Billing_City__c","Billing_State__c","Billing_Zip__c","Physical_Address_same_as_Billing_Address__c","Physical_address_if_different_Billing__c","Physical_Address_City__c","Physical_Address_State__c","Physical_Address_Zip__c","Physical_Address_County__c","Street_where_most_EE_work__c","City_where_most_EE_work__c","State_where_most_EE_work__c","Zip_where_most_EE_work__c","Primary_Contact_First_Name__c","Primary_Contact_Last_Name__c","Group_Contact_name_title__c","Group_Contact_Phone_number__c","Group_Contact_Fax_number__c","Group_Contact_Email_address__c","Is_Online_Contact__c","Secondary_Contact_First_Name__c","Secondary_Contact_Last_Name__c","Secondary_Group_Contact_name_title__c","Secondary_Group_Contact_Phone__c","Secondary_Group_Contact_Email__c","XX1","XX2","XX3","Legal_Entity__c","Other_Legal_Entity__c","Federal_Tax_ID__c","Multiple_Tax_IDs_y_n__c","Second_Federal_Tax_ID__c","Primary_products_of_business_1__c","Primary_products_SIC_1__c","Primary_products_of_business_2__c","Primary_products_SIC_2__c","Name_of_prior_group_health_carrier__c","Prior_Carrier_Begin_Date__c","Prior_Carrier_End_Date__c","Coverage_still_in_force__c","Company_previously_been_insured_w_BSC__c","Previous_Group_ID__c","Termination_Date__c","Offer_other_carriers_plans_to_employees__c","If_other_plan_offered_carrier_name__c","If_other_plan_offered_number_of_employee__c","Other_plan_open_enrollment_begin_date__c","Other_plan_open_enrollment_end_date__c","Any_Subsidiaries__c","Subsidiary_affiliated_co_name_1__c","Subsidiary_affiliated_co_name_2__c","Subsidiary_affiliated_co_name_3__c","Include_in_coverage_1__c","Include_in_coverage_2__c","Include_in_coverage_3__c","Elig_to_file_combined_state_tax_return_1__c","Elig_to_file_combined_state_tax_return_2__c","Elig_to_file_combined_state_tax_return_3__c","List_subsidiary_or_affiliated_companies__c","All_employees_covered_by_workers_comp__c","No_of_employees__c","No_of_eligible_employees__c","Total_eligible_part_time__c","Medical_enrollment__c","Refusing_Medical__c","Dental_enrollment__c","Refusing_Dental__c","Vision_enrollment__c","Refusing_Vision__c","Life_enrollment__c","Refusing_Life__c","FT_FTE_Count__c","Orientation_period_for_new_employees__c","Is_your_orientation_period_30_days__c","New_Employee_Waiting_Period__c","Waiting_period_waved_existing_employees__c","No_fulltime_employees_in_waiting_period__c","All_full_time_employees_offered_covered__c","Class_Group_coverage_is_offered__c","Fulltime_coverage_at_least_30_hours__c","Coverage_employees_work_b_w_2030_hours__c","Any_out_of_state_employees_y_n__c","If_yes_how_many__c","Domestic_partner_coverage_broad__c","Ongoing_Enrollment_Channel__c","Enrolling_in_Private_Exchange__c","Exchange_Name1__c","EDI_Trading_Partner__c","EDI_Contact_Name__c","EDI_Contact_Email__c","EDI_Contact_Phone__c","Is_group_subject_to_CalCOBRA__c","Is_group_subject_to_federal_COBRA__c","Existing_CalCOBRA_or_COBRA_members__c","CalCOBRA_eligibility_election_period__c","Enroll_forms_attached_cobra__c","ABHP__c","Infertility_rider__c","Medical_Contribution_For_Employee_Perc__c","Medical_Contribution_For_Employee_Amount__c","Medical_Contribution_For_Dependent_Perc__c","Medical_Contribution_For_Dependent_Amount__c","Plan_Packages__c","Medical_Plans_Selected__c","1st_time_all_EE_elect_dental__c","Dental_plan_option__c","Triple_choice_combo__c","Dental_Plans_Selected__c","Dental_Contribution_For_Employee_Perc__c","Dental_Contribution_For_Employee__c","Dental_Contribution_For_Dependent_Perc__c","Dental_Contribution_For_Dependent__c","1st_time_all_EE_elect_vision__c","Vision_Plans_Selected__c","Vision_Contribution_For_Employee_Perc__c","Vision_Contribution_For_Employee__c","Vision_Contribution_For_Dependent_Perc__c","Vision_Contribution_For_Dependent__c","1st_time_all_EE_elect_life__c","Life_Plan_Types__c","Multiple_of_Salary__c","Graded_Class_Desc_1__c","Graded_Class_Desc_2__c","Graded_Class_Desc_3__c","Graded_Class_Desc_4__c","Life_plan_selected__c","Dependent_life_insurance__c","Dependent_life_plan__c","Life_Contributory_Employees_Perc__c","Life_Contributory_Employees__c","Life_Contributory_Dependents_Perc__c","Life_Contributory_Dependents__c","Authorization_Signed_Date__c","Authorization_Signer__c","Authorization_Signer_Last_Name__c","Authorization_Signer_Title__c","Authorization_Signed__c","Agency_name__c","Tax_id_number__c","Producer_name__c","Producer_CDI_license__c","Producer_email__c","Producer_phone__c","Delegate_Name__c","Delegate_email__c","Producer_street_address__c","Producer_city__c","Producer_state__c","ZIP_code__c","Is_this_a_split_commission__c","Producer_split_1__c","Producer_split_2__c","Name_of_second__c","Second_producer_tax__c","General_agency_name__c","GA_Tax_id__c","GA_producer_name__c","GA_producer_email__c","Today_s_Date__c","Printed_First_Name__c","Printed_Last_Name__c","BSC_AE__c","BSC_AE_phone__c","BSC_AM__c","BSC_AM_phone__c","BSC_SA__c","BSC_SA_phone__c","Past_Due_Attestation__c","COBRA_TPA_Contact_First_Name__c","COBRA_TPA_Contact_Last_Name__c","COBRA_TPA_Contact_Title__c","COBRA_TPA_Contact_Phone__c","COBRA_TPA_Contact_Email__c","COBRA_HOLD#1","COBRA_HOLD#2","COBRA_HOLD#3","Is_the_Group_a_Person_Firm_or_Etc__c","Is_the_Grp_Actively_Engaged_In_Business__c","Group_Employ_1_100_employees_on_50__c","If_100_Grp_employ_1_100_at_least_50__c","OOS_If_100_empl_1_100_at_least_50__c","Reside_in_the_service_area__c","Union_and_Non_Union_Employees__c","Terminating_an_Arrangement_with_a_PEO__c","Is_the_Group_a_Spinoff__c","Is_the_Group_a_Startup__c","Group_Representative_Attestation__c","Delagate_Contact__c","Certify_Assisted_Applicant__c","Was_Group_Formed_for_HC__c","Grp_Employ_1_W2__c","If_How_Many_in_Prior_Quarter__c","IF_prior_QC_Count_How_many_in_Prior_Ye__c","Total_FT_and_FTE_employed_OOS_QC__c","Total_FT_and_FTE_employed_OOS_CY__c","Group_used_employees_from_a_PEO__c","Principal_Business_Street__c","Principal_Business_City__c","Principal_Business_State__c","Principal_Business_Zip__c","Principal_Business_Country__c","CSV_Source__c","EOL"]

{"sheet":"List","index":10,"n_rows":213,"n_cols":22,"rows_kept":213,"cut":false,"hidden":true,"merged":[]}
[null,"NONE (Default)",null,"NA (Default)",null,"Applicant Type (List)",null,null,"Type Application (List)",null,"Health Package (List)",null,null,"Dental Package (List)",null,null,"Vision Package (List)",null,"Health Package MGA"]
[null,"NONE",null,"Not Applicable",null,"Subscriber",null,null,"Enroll",null,"Waive",null,null,"Waive",null,null,"Waive",null,"Waive"]
[null,null,null,null,null,"Spouse",null,null,"ROC",null,"Off_Exchange",null,null,"Dental_HMO",null,null,"Ultimate",null,{"$f":"IF(COUNTA(MGA!C88:C99,MGA!D88:D91,MGA!E88:E94,MGA!C110:C117,MGA!D110:D117,MGA!E110:E117)>0,\"Off_Exchange\",IF(COUNTA(MGA!C123:C129)>0,\"Mirror\",\"\"))","v":""}]
[null,null,null,null,null,"Domestic Partner",null,null,null,null,"Mirror",null,null,"Dental_PPO",null,null,"Preferred"]
[null,null,null,null,null,"Dependent Child",null,null,null,null,null,null,null,"Dental_INO",null,null,"Basic"]
[null,null,null,null,null,"Other Dependent Child - Guardianship"]
[]
[null,null,null,null,null,null,null,"Mirror (List)"]
[null,null,null,null,null,null,null,"Blue Shield Bronze 60 PPO 6300/75 + Child Dental",null,null,null,null,null,null,"Dental_PPO (List)"]
[null,null,null,null,null,null,null,"Blue Shield Gold 80 HMO 0/25 Trio + Child Dental ",null,null,null,null,null,null,"Smile (SM) 50/1500/No Ortho/MAC"]
[null,null,null,null,null,null,null,"Blue Shield Gold 80 PPO 0/25 + Child Dental",null,null,null,null,null,null,"Smile (SM) Basic 75/1000/No Ortho/MAC"]
[null,null,null,null,null,null,null,"Blue Shield Platinum 90 HMO 0/15 Trio + Child Dental ",null,null,null,null,null,null,"Smile (SM) Basic Voluntary 75/1000/No Ortho/MAC"]
[null,null,null,null,null,null,null,"Blue Shield Platinum 90 PPO 0/15 + Child Dental",null,null,null,null,null,null,"Smile (SM) Deluxe 2000 50/2000/No Ortho/MAC"]
[null,"1. New Group Enrollment",null,null,null,null,null,"Blue Shield Silver 70 HMO 2000/45 Trio + Child Dental ",null,null,null,null,null,null,"Smile (SM) Deluxe 50/1500/Ortho/MAC",null,null,null,null,null,"Dental_INO (List)"]
[null,"2. New Hire/Rehire",null,null,null,null,null,"Blue Shield Silver 70 PPO 2000/45 + Child Dental",null,null,null,null,null,null,"Smile (SM) Deluxe Gold 50/1500/Ortho/U85",null,null,null,null,null,"Smile (SM) INO Dental Voluntary Plan 50/1500/Endo-Perio 50%/No Ortho"]
[null,"3. Open Enrollment",null,null,null,null,null,null,null,null,null,null,null,null,"Smile (SM) Deluxe Plus 2000 50/2000/Ortho/MAC",null,null,null,null,null,"Smile (SM) INO Dental Voluntary Plan 50/1500/Endo-Perio 50%/Ortho"]
[null,"4. COBRA/Cal-Cobra Enrollment",null,null,null,null,null,null,null,null,null,null,null,null,"Smile (SM) Plus 50/1500/Ortho/MAC",null,null,null,null,null,"Smile (SM) INO Dental Voluntary Plan 50/2500/Endo-Perio 50%/No Ortho"]
[null,"5. New Spouse/New Dependant",null,null,null,null,null,null,null,null,null,null,null,null,"Smile (SM) Plus Gold 50/1500/Ortho/U85",null,null,null,null,null,"Smile (SM) INO Dental Voluntary Plan 50/2500/Endo-Perio 50%/Ortho"]
[null,"6. Other Qualifying Event",null,null,null,null,null,null,null,null,null,null,null,null,"Smile (SM) Value 50/1500/No Ortho/MAC",null,null,null,null,null,"Smile SM In-Network Only Dental Plan 50/1500/Endo-Perio 80%/No Ortho"]
[null,null,null,null,null,null,null,null,null,null,null,null,null,null,"Ultimate Dental Plus PPO for Small Business 50/2000",null,null,null,null,null,"Smile SM In-Network Only Dental Plan 50/1500/Endo-Perio 80%/Ortho"]
[null,"Off_Exchange (List)",null,null,null,null,null,null,null,null,null,null,null,null,"Ultimate Dental PPO for Small Business 50/2000",null,null,null,null,null,"Smile SM In-Network Only Dental Plan 50/2500/Endo-Perio 80%/No Ortho"]
[null,"Bronze Full PPO 3750/65 OffEx",null,null,null,null,null,null,null,"Waive",null,null,null,null,null,null,null,null,null,null,"Smile SM In-Network Only Dental Plan 50/2500/Endo-Perio 80%/Ortho"]
[null,"Bronze Full PPO 5700/60 OffEx",null,null,null,null,null,"Dental_HMO (List)",null,"Basic",null,"Hourly"]
[null,"Bronze Full PPO Savings 4300/40% OffEx",null,null,null,null,null,"DHMO Basic",null,"Multiple of Salary",null,"Weekly"]
[null,"Bronze Full PPO Savings 6550 OffEx",null,null,null,null,null,"DHMO Deluxe",null,"Graded",null,"Monthly"]
[null,"Bronze Tandem PPO 3750/65 OffEx",null,null,null,null,null,"DHMO Plus",null,"Yes",null,"Yearly"]
[null,"Gold Access+ HMO (R) 1700/35 OffEx",null,null,null,null,null,"DHMO Voluntary",null,"No"]
[null,"Gold Access+ HMO (R) 500/35 OffEx",null,null,null,null,null,null,null,null,null,null,null,null,"Ultimate (List)",null,null,null,null,null,"Preferred (List)"]
[null,"Gold Full PPO 0/20 OffEx",null,null,null,null,null,null,"EN01 - English","Email",null,"Male",null,null,"Ultimate Vision for Small Business 0/0/120",null,null,null,null,null,"Preferred Vision for Small Business 0/0/120"]
[null,"Gold Full PPO 1200/35 OffEx",null,null,null,null,null,null,"SP01 - Spanish","Standard Mail",null,"Female",null,null,"Ultimate Vision for Small Business 0/0/150",null,null,null,null,null,"Preferred Vision for Small Business 0/0/150"]
[null,"Gold Full PPO 450/30 OffEx",null,null,null,null,null,null,"CH01 - Chinese","Work Phone",null,null,null,null,"Ultimate Vision for Small Business 15/25/120",null,null,null,null,null,"Preferred Vision for Small Business 15/25/120"]
[null,"Gold Full PPO 750/30 OffEx ",null,null,null,null,null,null,"VI01 - Vietnamese","Home Phone",null,"Same",null,null,"Ultimate Vision for Small Business 15/25/150",null,null,null,null,null,"Preferred Vision for Small Business 15/25/150"]
[null,"Gold Local Access+ HMO (R) 1700/35 OffEx",null,null,null,null,null,null,"NS01 - Not Selected",null,null,null,null,null,"Ultimate Vision Plus for Small Business 0/0/150/120",null,null,null,null,null,"Preferred Vision Plus for Small Business 0/0/150/120"]
[null,"Gold Local Access+ HMO (R) 500/35 OffEx",null,null,null,null,null,null,null,null,null,null,null,null,"Ultimate Vision Plus for Small Business 15/25/150/120",null,null,null,null,null,"Preferred Vision Plus for Small Business 15/25/150/120"]
[null,"Gold Tandem PPO 750/30 OffEx",null,null,null,null,null,"Single",null,"Group",null,"None",null,null,"Ultimate Vision Voluntary for Small Business 15/25/150",null,null,null,null,null,"Preferred Vision Voluntary for Small Business 15/25/120"]
[null,"Gold Trio HMO 1700/35 OffEx",null,null,null,null,null,"Married",null,"Individual"]
[null,"Gold Trio HMO 500/35 OffEx ",null,null,null,null,null,"Domestic Partner",null,"Medicare",null,null,null,null,"Enhanced (List)"]
[null,"Platinum Access+ HMO (R) 0/20 OffEx",null,null,null,null,null,null,null,"Covered Calif/State Exchange",null,null,null,null,"Enhanced Vision for Small Business 0/0/120"]
[null,"Platinum Access+ HMO (R) 0/25 OffEx",null,null,null,null,null,null,null,"Other",null,null,null,null,"Enhanced Vision for Small Business 0/0/150"]
[null,"Platinum Access+ HMO (R) 0/30 OffEx",null,null,null,null,null,null,null,null,null,null,null,null,"Enhanced Vision for Small Business 15/25/120"]
[null,"Platinum Full PPO 0/10 OffEx",null,null,null,null,null,"Spouse",null,"Dependent Child",null,null,null,null,"Enhanced Vision for Small Business 15/25/150"]
[null,"Platinum Full PPO 250/15 OffEx",null,null,null,null,null,"Domestic Partner ",null,"Other Dependent Child/Legal Guardianship   ",null,null,null,null,"Enhanced Vision Plus for Small Business 0/0/150/120"]
[null,"Platinum Local Access+ HMO (R) 0/20 OffEx",null,null,null,null,null,null,null,null,null,null,null,null,"Enhanced Vision Plus for Small Business 15/25/150/120"]
[null,"Platinum Local Access+ HMO (R) 0/25 OffEx",null,null,null,null,null,"Termination or reduction in hours (last day worked)",null,null,null,null,null,null,"Enhanced Vision Voluntary for Small Business 15/25/120"]
[null,"Platinum Local Access+ HMO (R) 0/30 OffEx",null,null,null,null,null,"Termination or reduction in hours due to disability"]
[null,"Platinum Tandem PPO 0/10 OffEx",null,null,null,null,null,"Divorce or legal separation"]
[null,"Platinum Tandem PPO 250/15 OffEx",null,null,null,null,null,"Entitlement to Medicare by covered employee"]
[null,"Platinum Trio HMO 0/20 OffEx",null,null,null,null,null,"Attainment of maximum age for a dependent child"]
[null,"Platinum Trio HMO 0/25 OffEx ",null,null,null,null,null,"Death of covered employee"]
[null,"Platinum Trio HMO 0/30 OffEx ",null,null,null,null,null,"Termination of domestic partnership"]
[null,"Silver Access+ HMO (R) 1750/55 OffEx"]
[null,"Silver Full PPO 1700/55 OffEx "]
[null,"Silver Full PPO 2000/45 OffEx"]
[null,"Silver Full PPO Savings 2000/20% OffEx"]
[null,"Silver Local Access+ HMO (R) 1750/55 OffEx"]
[null,"Silver Tandem PPO 1700/55 OffEx"]
[null,"Silver Tandem PPO 2000/45 OffEx"]
[null,"Silver Trio HMO 1750/55 OffEx"]
[]
[]
[]
[null,"DeclineMedical",null,null,null,null,null,null,"ReasonMedical"]
[]
[null,"Myself and all dependents",null,null,null,null,null,1,"Enrolling as a dependent or an employee on this group health plan"]
[null,"My spouse/Domestic partner only",null,null,null,null,null,2,"Covered by this employer's other health plan (through another carrier)"]
[null,"My Children Only",null,null,null,null,null,3,"Covered by another employer's health plan, including COBRA or Cal-COBRA coverage"]
[null,"My spouse/Domestic partner and children",null,null,null,null,null,4,"Covered by an individual/family health plan"]
[null,"The following dependents only",null,null,null,null,null,5,"Covered by Government program"]
[null,null,null,null,null,null,null,6,"Other reasons"]
[]
[]
[null,"DeclineDental",null,null,null,null,null,null,"ReasonDental"]
[]
[null,"Myself and all dependents",null,null,null,null,null,null,"Enrolling as a dependent or an employee on this group dental plan"]
[null,"My spouse/Domestic partner only",null,null,null,null,null,null,"Covered by another employer's dental plan, including COBRA or Cal-COBRA dental coverage"]
[null,"My Children Only",null,null,null,null,null,null,"Covered by an individual/family dental plan"]
[null,"My spouse/Domestic partner and children",null,null,null,null,null,null,"Other reasons"]
[null,"The following dependents only"]
[]
[]
[null,"DeclineVision",null,null,null,null,null,null,"ReasonVision",null,null,null,null,null,null,null,null,null,null,null,null,"Mirror"]
[]
[null,"Myself and all dependents",null,null,null,null,null,null,"Enrolling as a dependent or an employee on this group vision plan"]
[null,"My spouse/Domestic partner only",null,null,null,null,null,null,"Covered by another employer's vision plan, including COBRA or Cal-COBRA vision coverage"]
[null,"My Children Only",null,null,null,null,null,null,"Covered by an individual/family vision plan"]
[null,"My spouse/Domestic partner and children",null,null,null,null,null,null,"Other reasons"]
[null,"The following dependents only"]
[]
[]
[null,"DeclineLife",null,null,null,null,null,null,"ReasonLife"]
[]
[null,"Myself and all dependents",null,null,null,null,null,null,"Covered by another employer's life insurance coverage through your spouse/domestic partner or parent"]
[null,null,null,null,null,null,null,null,"Cost of Coverage"]
[null,null,null,null,null,null,null,null,"Do not need or do not want coverage"]
[]
[]
[null,"NoEmployer"]
[]
[null,"1. Covered by an individual health plan"]
[null,"2. Covered California or other State Health Exchange"]
[null,"3. Medicare, Medi-Cal, Healthy Families Programs"]
[null,"4. Other"]
[]
[]
[null,"Subscriber","Spouse","Domestic Partner","Dependent Child","Other Dependent Child - Guardianship"]
[null,"Myself and all dependents","Yes","Yes","Yes","Yes"]
[null,"My spouse/Domestic partner only","No","No","No","No"]
[null,"My Children Only"]
[null,"My spouse/Domestic partner and children"]
[null,"The following dependents only"]
[null,"LifeBasic",null,null,null,null,null,"LifeMOS",null,null,null,"DependentAmount",null,null,null,"LifeGraded"]
[null,null,null,null,null,null,null,"Life/AD&D 1X Salary min $15,000 max $50K",null,null,null,"Dependent Term Life - $1,000"]
[null,"Basic Life and AD&D Insurance - $15,000",null,null,null,null,null,"Life/AD&D 1X Salary min $15,000 max $75K",null,null,null,"Dependent Term Life - $2,000",null,null,null,{"$f":"B113","v":"Basic Life and AD&D Insurance - $15,000"}]
[null,"Basic Life and AD&D Insurance - $20,000",null,null,null,null,null,"Life/AD&D 1X Salary min $15,000 max $100K",null,null,null,"Dependent Term Life - $3,000",null,null,null,{"$f":"B114","v":"Basic Life and AD&D Insurance - $20,000"}]
[null,"Basic Life and AD&D Insurance - $25,000",null,null,null,null,null,"Life/AD&D 1X Salary min $15,000 max $125K",null,null,null,"Dependent Term Life - $4,000",null,null,null,"Basic Life and AD&D Insurance - $25,000"]
[null,"Basic Life and AD&D Insurance - $30,000",null,null,null,null,null,"Life/AD&D 1X Salary min $15,000 max $150K",null,null,null,"Dependent Term Life - $5,000",null,null,null,"Basic Life and AD&D Insurance - $30,000"]
[null,"Basic Life and AD&D Insurance - $35,000",null,null,null,null,null,"Life/AD&D 1X Salary min $15,000 max $175K",null,null,null,"Dependent Term Life - $7,500",null,null,null,"Basic Life and AD&D Insurance - $35,000"]
[null,"Basic Life and AD&D Insurance - $40,000",null,null,null,null,null,"Life/AD&D 1X Salary min $15,000 max $200K",null,null,null,"Dependent Term Life - $10,000",null,null,null,"Basic Life and AD&D Insurance - $40,000"]
[null,"Basic Life and AD&D Insurance - $45,000",null,null,null,null,null,"Life/AD&D 1X Salary min $15,000 max $250K",null,null,null,"Dependent Term Life - $20,000",null,null,null,"Basic Life and AD&D Insurance - $45,000"]
[null,"Basic Life and AD&D Insurance - $50,000",null,null,null,null,null,"Life/AD&D 1X Salary min $15,000 max $300K",null,null,null,null,null,null,null,"Basic Life and AD&D Insurance - $50,000"]
[null,"Basic Life and AD&D Insurance - $55,000",null,null,null,null,null,"Life/AD&D 2X Salary min $15,000 max $50K",null,null,null,null,null,null,null,"Basic Life and AD&D Insurance - $55,000"]
[null,"Basic Life and AD&D Insurance - $60,000",null,null,null,null,null,"Life/AD&D 2X Salary min $15,000 max $75K",null,null,null,null,null,null,null,"Basic Life and AD&D Insurance - $60,000"]
[null,"Basic Life and AD&D Insurance - $65,000",null,null,null,null,null,"Life/AD&D 2X Salary min $15,000 max $100K",null,null,null,null,null,null,null,"Basic Life and AD&D Insurance - $65,000"]
[null,"Basic Life and AD&D Insurance - $70,000",null,null,null,null,null,"Life/AD&D 2X Salary min $15,000 max $125K",null,null,null,null,null,null,null,"Basic Life and AD&D Insurance - $70,000"]
[null,"Basic Life and AD&D Insurance - $75,000",null,null,null,null,null,"Life/AD&D 2X Salary min $15,000 max $150K",null,null,null,null,null,null,null,"Basic Life and AD&D Insurance - $75,000"]
[null,"Basic Life and AD&D Insurance - $80,000",null,null,null,null,null,"Life/AD&D 2X Salary min $15,000 max $175K",null,null,null,null,null,null,null,"Basic Life and AD&D Insurance - $80,000"]
[null,"Basic Life and AD&D Insurance - $85,000",null,null,null,null,null,"Life/AD&D 2X Salary min $15,000 max $200K",null,null,null,null,null,null,null,"Basic Life and AD&D Insurance - $85,000"]
[null,"Basic Life and AD&D Insurance - $90,000",null,null,null,null,null,"Life/AD&D 2X Salary min $15,000 max $250K",null,null,null,null,null,null,null,"Basic Life and AD&D Insurance - $90,000"]
[null,"Basic Life and AD&D Insurance - $95,000",null,null,null,null,null,"Life/AD&D 2X Salary min $15,000 max $300K",null,null,null,null,null,null,null,"Basic Life and AD&D Insurance - $95,000"]
[null,"Basic Life and AD&D Insurance - $100,000",null,null,null,null,null,null,null,null,null,null,null,null,null,"Basic Life and AD&D Insurance - $100,000"]
[null,"Basic Life and AD&D Insurance - $105,000",null,null,null,null,null,null,null,null,null,null,null,null,null,"Basic Life and AD&D Insurance - $105,000"]
[null,"Basic Life and AD&D Insurance - $110,000",null,null,null,null,null,null,null,null,null,null,null,null,null,"Basic Life and AD&D Insurance - $110,000"]
[null,"Basic Life and AD&D Insurance - $115,000",null,null,null,null,null,null,null,null,null,null,null,null,null,"Basic Life and AD&D Insurance - $115,000"]
[null,"Basic Life and AD&D Insurance - $120,000",null,null,null,null,null,null,null,null,null,null,null,null,null,"Basic Life and AD&D Insurance - $120,000"]
[null,"Basic Life and AD&D Insurance - $125,000",null,null,null,null,null,null,null,null,null,null,null,null,null,"Basic Life and AD&D Insurance - $125,000"]
[null,"Basic Life and AD&D Insurance - $130,000",null,null,null,null,null,null,null,null,null,null,null,null,null,"Basic Life and AD&D Insurance - $130,000"]
[null,"Basic Life and AD&D Insurance - $135,000",null,null,null,null,null,null,null,null,null,null,null,null,null,"Basic Life and AD&D Insurance - $135,000"]
[null,"Basic Life and AD&D Insurance - $140,000",null,null,null,null,null,null,null,null,null,null,null,null,null,"Basic Life and AD&D Insurance - $140,000"]
[null,"Basic Life and AD&D Insurance - $145,000",null,null,null,null,null,null,null,null,null,null,null,null,null,"Basic Life and AD&D Insurance - $145,000"]
[null,"Basic Life and AD&D Insurance - $150,000",null,null,null,null,null,null,null,null,null,null,null,null,null,"Basic Life and AD&D Insurance - $150,000"]
[null,"Basic Life and AD&D Insurance - $175,000",null,null,null,null,null,null,null,null,null,null,null,null,null,"Basic Life and AD&D Insurance - $175,000"]
[null,"Basic Life and AD&D Insurance - $200,000",null,null,null,null,null,null,null,null,null,null,null,null,null,"Basic Life and AD&D Insurance - $200,000"]
[]
[null,"Subscriber2","Spouse2","Domestic_Partner2","Dependent_Child2","Other_Dependent_Child_-_Guardianship2",null,"States"]
[null,"Enroll","Enroll","Enroll","Enroll","Enroll",null,"AL"]
[null,"ROC",null,null,null,null,null,"AK"]
[null,null,null,null,null,null,null,"AZ"]
[null,null,null,null,null,null,null,"AR"]
[null,"Subscriber3","Spouse3","Domestic_Partner3","Dependent_Child3","Other_Dependent_Child___Guardianship3",null,"CA"]
[null,"Myself and all dependents","Yes","Yes","Yes","Yes",null,"CO"]
[null,null,null,null,null,null,null,"CT"]
[null,"Alameda",null,null,null,null,null,"DE"]
[null,"Alpine",null,null,null,null,null,"DC"]
[null,"Amador",null,null,null,null,null,"FL"]
[null,"Butte",null,null,null,null,null,"GA"]
[null,"Calaveras",null,null,null,null,null,"HI"]
[null,"Colusa",null,null,null,null,null,"ID"]
[null,"Contra Costa",null,null,null,null,null,"IL"]
[null,"Del Norte",null,null,null,null,null,"IN"]
[null,"El Dorado",null,null,null,null,null,"IA"]
[null,"Fresno",null,null,null,null,null,"KS"]
[null,"Glenn",null,null,null,null,null,"KY"]
[null,"Humboldt",null,null,null,null,null,"LA"]
[null,"Imperial",null,null,null,null,null,"ME"]
[null,"Inyo",null,null,null,null,null,"MD"]
[null,"Kern",null,null,null,null,null,"MA"]
[null,"Kings",null,null,null,null,null,"MI"]
[null,"Lake",null,null,null,null,null,"MN"]
[null,"Lassen",null,null,null,null,null,"MS"]
[null,"Los Angeles",null,null,null,null,null,"MO"]
[null,"Madera",null,null,null,null,null,"MT"]
[null,"Marin",null,null,null,null,null,"NE"]
[null,"Mariposa",null,null,null,null,null,"NV"]
[null,"Mendocino",null,null,null,null,null,"NH"]
[null,"Merced",null,null,null,null,null,"NJ"]
[null,"Modoc",null,null,null,null,null,"NM"]
[null,"Mono",null,null,null,null,null,"NY"]
[null,"Monterey",null,null,null,null,null,"NC"]
[null,"Napa",null,null,null,null,null,"ND"]
[null,"Nevada",null,null,null,null,null,"OH"]
[null,"Orange",null,null,null,null,null,"OK"]
[null,"Placer",null,null,null,null,null,"OR"]
[null,"Plumas",null,null,null,null,null,"PA"]
[null,"Riverside",null,null,null,null,null,"RI"]
[null,"Sacramento",null,null,null,null,null,"SC"]
[null,"San Benito",null,null,null,null,null,"SD"]
[null,"San Bernardino",null,null,null,null,null,"TN"]
[null,"San Diego",null,null,null,null,null,"TX"]
[null,"San Francisco",null,null,null,null,null,"UT"]
[null,"San Joaquin",null,null,null,null,null,"VT"]
[null,"San Luis Obispo",null,null,null,null,null,"VA"]
[null,"San Mateo",null,null,null,null,null,"WA"]
[null,"Santa Barbara",null,null,null,null,null,"WV"]
[null,"Santa Clara",null,null,null,null,null,"WI"]
[null,"Santa Cruz",null,null,null,null,null,"WY"]
[null,"Shasta"]
[null,"Sierra"]
[null,"Siskiyou"]
[null,"Solano"]
[null,"Sonoma"]
[null,"Stanislaus"]
[null,"Sutter"]
[null,"Tehama"]
[null,"Trinity"]
[null,"Tulare"]
[null,"Tuolumne"]
[null,"Ventura"]
[null,"Yolo"]
[null,"Yuba"]
[]
[null,"No"]
[null,"Yes - COBRA"]
[null,"Yes - CalCOBRA"]

{"sheet":"SIC Lookup","index":11,"n_rows":973,"n_cols":8,"rows_kept":973,"cut":false,"hidden":true,"merged":[]}
[null,"SIC Lookup"]
[null,"Primary Level:"]
[null,null,{"$f":"VLOOKUP(B3,B12:D21,2,FALSE)","v":{"$error":"#N/A"}},{"$f":"VLOOKUP(B3,B12:D21,3,FALSE)","v":{"$error":"#N/A"}},{"$f":"VLOOKUP(B3,B12:E21,4,FALSE)","v":{"$error":"#N/A"}}]
[null,"Secondary Level:"]
[]
[null,"Detailed Level:"]
[]
[null,"SIC Code:"]
[null,{"$f":"IF(B7=\"\",\"\",VLOOKUP(B7,G23:H507,2,FALSE))","v":""}]
[]
[null,null,0]
[null,"Agriculture, Forestry, And Fishing",1,9,"A"]
[null,"Mining",10,14,"B"]
[null,"Construction",15,17,"C"]
[null,"Manufacturing",20,39,"D"]
[null,"Transportation, Communications, Electric, Gas, And Sanitary Services",40,49,"E"]
[null,"Wholesale Trade",50,51,"F"]
[null,"Retail Trade",52,59,"G"]
[null,"Finance, Insurance, And Real Estate",60,67,"H"]
[null,"Services",70,89,"I"]
[null,"Public Administration",90,99,"J"]
[]
[1,"Agricultural Production - Crops",{"$f":"IF(AND(A23>=$C$3,A23<=$D$3),$E$3&\"-\"&A23,\"\")","v":{"$error":"#N/A"}},null,{"$f":"IF(LEFT(F23,2)=RIGHT(VLOOKUP($B$5,$B$23:$C$104,2,FALSE),2),\"Use\",\"\")","v":{"$error":"#N/A"}},"0100","Agricultural Production-Crops","0100"]
[2,"Agricultural Production - Livestock and Animal Specialties",{"$f":"IF(AND(A24>=$C$3,A24<=$D$3),$E$3&\"-\"&A24,\"\")","v":{"$error":"#N/A"}},null,{"$f":"IF(LEFT(F24,2)=RIGHT(VLOOKUP($B$5,$B$23:$C$104,2,FALSE),2),\"Use\",\"\")","v":{"$error":"#N/A"}},"0200","Agricultural Prod-Livestock & Animal Specialties","0200"]
[7,"Agricultural Services",{"$error":"#N/A"},null,{"$error":"#N/A"},"0700","Agricultural Services","0700"]
[8,"Forestry",{"$error":"#N/A"},null,{"$error":"#N/A"},"0800","Forestry","0800"]
[9,"Fishing, Hunting and Trapping",{"$error":"#N/A"},null,{"$error":"#N/A"},"0900","Fishing, Hunting and Trapping","0900"]
[10,"Metal Mining",{"$error":"#N/A"},null,{"$error":"#N/A"},"1011","Iron Ores","1011"]
[12,"Coal Mining",{"$error":"#N/A"},null,{"$error":"#N/A"},"1021","Copper Ores","1021"]
[13,"Oil and Gas Extraction",{"$error":"#N/A"},null,{"$error":"#N/A"},"1031","Lead and Zinc Ores","1031"]
[14,"Mining and Quarrying of Nonmetallic Minerals, Except Fuels",{"$error":"#N/A"},null,{"$error":"#N/A"},"1041","Gold Ores","1041"]
[15,"Building Cnstrctn - General Contractors & Operative Builders",{"$error":"#N/A"},null,{"$error":"#N/A"},"1044","Silver Ores","1044"]
[16,"Heavy Cnstrctn, Except Building Construction - Contractors",{"$error":"#N/A"},null,{"$error":"#N/A"},"1061","Ferroalloy Ores, Except Vanadium","1061"]
[17,"Construction - Special Trade Contractors",{"$error":"#N/A"},null,{"$error":"#N/A"},"1081","Metal Mining Services","1081"]
[20,"Food and Kindred Products",{"$error":"#N/A"},null,{"$error":"#N/A"},"1094","Uranium-Radium-Vanadium Ores","1094"]
[21,"Tobacco Products",{"$error":"#N/A"},null,{"$error":"#N/A"},"1099","Miscellaneous Metal Ores, Not Elsewhere Classified","1099"]
[22,"Textile Mill Products",{"$error":"#N/A"},null,{"$error":"#N/A"},"1221","Bituminous Coal and Lignite Surface Mining","1221"]
[23,"Apparel, Finished Prdcts from Fabrics & Similar Materials",{"$error":"#N/A"},null,{"$error":"#N/A"},"1222","Bituminous Coal Underground Mining","1222"]
[24,"Lumber and Wood Products, Except Furniture",{"$error":"#N/A"},null,{"$error":"#N/A"},"1231","Anthracite Mining","1231"]
[25,"Furniture and Fixtures",{"$error":"#N/A"},null,{"$error":"#N/A"},"1241","Coal Mining Services","1241"]
[26,"Paper and Allied Products",{"$error":"#N/A"},null,{"$error":"#N/A"},"1311","Crude Petroleum and Natural Gas","1311"]
[27,"Printing, Publishing and Allied Industries",{"$error":"#N/A"},null,{"$error":"#N/A"},"1321","Natural Gas Liquids","1321"]
[28,"Chemicals and Allied Products",{"$error":"#N/A"},null,{"$error":"#N/A"},"1381","Drilling Oil and Gas Wells","1381"]
[29,"Petroleum Refining and Related Industries",{"$error":"#N/A"},null,{"$error":"#N/A"},"1382","Oil and Gas Field Exploration Services","1382"]
[30,"Rubber and Miscellaneous Plastic Products",{"$error":"#N/A"},null,{"$error":"#N/A"},"1389","Oil and Gas Field Services, Not Elsewhere Classified","1389"]
[31,"Leather and Leather Products",{"$error":"#N/A"},null,{"$error":"#N/A"},"1411","Dimension Stone","1411"]
[32,"Stone, Clay, Glass, and Concrete Products",{"$error":"#N/A"},null,{"$error":"#N/A"},"1422","Crushed and Broken Limestone","1422"]
[33,"Primary Metal Industries",{"$error":"#N/A"},null,{"$error":"#N/A"},"1423","Crushed and Broken Granite","1423"]
[34,"Fabricated Metal Prdcts, Except Machinery & Transport Eqpmnt",{"$error":"#N/A"},null,{"$error":"#N/A"},"1429","Crushed and Broken Stone, Not Elsewhere Classified","1429"]
[35,"Industrial and Commercial Machinery and Computer Equipment",{"$error":"#N/A"},null,{"$error":"#N/A"},"1442","Construction Sand and Gravel","1442"]
[36,"Electronic, Elctrcl Eqpmnt & Cmpnts, Excpt Computer Eqpmnt",{"$error":"#N/A"},null,{"$error":"#N/A"},"1446","Industrial Sand","1446"]
[37,"Transportation Equipment",{"$error":"#N/A"},null,{"$error":"#N/A"},"1455","Kaolin and Ball Clay","1455"]
[38,"Mesr/Anlyz/Cntrl Instrmnts; Photo/Med/Opt Gds; Watchs/Clocks",{"$error":"#N/A"},null,{"$error":"#N/A"},"1459","Clay, Ceramic, and Refractory Minerals, Not Elsewhere Classified","1459"]
[39,"Miscellaneous Manufacturing Industries",{"$error":"#N/A"},null,{"$error":"#N/A"},"1474","Potash, Soda, and Borate Minerals","1474"]
[40,"Railroad Transportation",{"$error":"#N/A"},null,{"$error":"#N/A"},"1475","Phosphate Rock","1475"]
[41,"Local, Suburban Transit & Interurbn Hgwy Passenger Transport",{"$error":"#N/A"},null,{"$error":"#N/A"},"1479","Chemical and Fertilizer Mineral Mining, Not Elsewhere Classified","1479"]
[42,"Motor Freight Transportation",{"$error":"#N/A"},null,{"$error":"#N/A"},"1481","Nonmetallic Minerals Services, Except Fuels","1481"]
[43,"United States Postal Service",{"$error":"#N/A"},null,{"$error":"#N/A"},"1499","Miscellaneous Nonmetallic Minerals, Except Fuels","1499"]
[44,"Water Transportation",{"$error":"#N/A"},null,{"$error":"#N/A"},"1521","General Contractors—Single-Family Houses","1521"]
[45,"Transportation by Air",{"$error":"#N/A"},null,{"$error":"#N/A"},"1522","General Contractors—Residential Buildings, Other Than Single-Family","1522"]
[46,"Pipelines, Except Natural Gas",{"$error":"#N/A"},null,{"$error":"#N/A"},"1531","Operative Builders","1531"]
[47,"Transportation Services",{"$error":"#N/A"},null,{"$error":"#N/A"},"1541","General Contractors—Industrial Buildings and Warehouses","1541"]
[48,"Communications",{"$error":"#N/A"},null,{"$error":"#N/A"},"1542","General Contractors—Nonresidential Buildings, Other than Industrial Buildings and Warehouses","1542"]
[49,"Electric, Gas and Sanitary Services",{"$error":"#N/A"},null,{"$error":"#N/A"},"1611","Highway and Street Construction, Except Elevated Highways","1611"]
[50,"Wholesale Trade - Durable Goods",{"$error":"#N/A"},null,{"$error":"#N/A"},"1622","Bridge, Tunnel, and Elevated Highway Construction","1622"]
[51,"Wholesale Trade - Nondurable Goods",{"$error":"#N/A"},null,{"$error":"#N/A"},"1623","Water, Sewer, Pipeline, and Communications and Power Line Construction","1623"]
[52,"Building Matrials, Hrdwr, Garden Supply & Mobile Home Dealrs",{"$error":"#N/A"},null,{"$error":"#N/A"},"1629","Heavy Construction, Not Elsewhere Classified","1629"]
[53,"General Merchandise Stores",{"$error":"#N/A"},null,{"$error":"#N/A"},"1711","Plumbing, Heating and Air-Conditioning","1711"]
[54,"Food Stores",{"$error":"#N/A"},null,{"$error":"#N/A"},"1721","Painting and Paper Hanging","1721"]
[55,"Automotive Dealers and Gasoline Service Stations",{"$error":"#N/A"},null,{"$error":"#N/A"},"1731","Electrical Work","1731"]
[56,"Apparel and Accessory Stores",{"$error":"#N/A"},null,{"$error":"#N/A"},"1741","Masonry, Stone Setting, and Other Stone Work","1741"]
[57,"Home Furniture, Furnishings and Equipment Stores",{"$error":"#N/A"},null,{"$error":"#N/A"},"1742","Plastering, Drywall, Acoustical, and Insulation Work","1742"]
[58,"Eating and Drinking Places",{"$error":"#N/A"},null,{"$error":"#N/A"},"1743","Terrazzo, Tile, Marble, and Mosaic Work","1743"]
[59,"Miscellaneous Retail",{"$error":"#N/A"},null,{"$error":"#N/A"},1751,"Carpentry Work",1751]
[60,"Depository Institutions",{"$error":"#N/A"},null,{"$error":"#N/A"},"1752","Floor Laying and Other Floor Work, Not Elsewhere Classified","1752"]
[61,"Nondepository Credit Institutions",{"$error":"#N/A"},null,{"$error":"#N/A"},"1761","Roofing, Siding, and Sheet Metal Work","1761"]
[62,"Security & Commodity Brokers, Dealers, Exchanges & Services",{"$error":"#N/A"},null,{"$error":"#N/A"},"1771","Concrete Work","1771"]
[63,"Insurance Carriers",{"$error":"#N/A"},null,{"$error":"#N/A"},"1781","Water Well Drilling","1781"]
[64,"Insurance Agents, Brokers and Service",{"$error":"#N/A"},null,{"$error":"#N/A"},"1791","Structural Steel Erection","1791"]
[65,"Real Estate",{"$error":"#N/A"},null,{"$error":"#N/A"},"1793","Glass and Glazing Work","1793"]
[67,"Holding and Other Investment Offices",{"$error":"#N/A"},null,{"$error":"#N/A"},"1794","Excavation Work","1794"]
[70,"Hotels, Rooming Houses, Camps, and Other Lodging Places",{"$error":"#N/A"},null,{"$error":"#N/A"},"1795","Wrecking and Demolition Work","1795"]
[72,"Personal Services",{"$error":"#N/A"},null,{"$error":"#N/A"},"1796","Installation or Erection of Building Equipment, Not Elsewhere","1796"]
[73,"Business Services",{"$error":"#N/A"},null,{"$error":"#N/A"},"1799","Special Trade Contractors, Not Elsewhere Classified","1799"]
[75,"Automotive Repair, Services and Parking",{"$error":"#N/A"},null,{"$error":"#N/A"},"2011","Meat Packing Plants","2011"]
[76,"Miscellaneous Repair Services",{"$error":"#N/A"},null,{"$error":"#N/A"},"2013","Sausages and Other Prepared Meat Products","2013"]
[78,"Motion Pictures",{"$error":"#N/A"},null,{"$error":"#N/A"},"2015","Poultry Slaughtering and Processing","2015"]
[79,"Amusement and Recreation Services",{"$f":"IF(AND(A88>=$C$3,A88<=$D$3),$E$3&\"-\"&A88,\"\")","v":{"$error":"#N/A"}},null,{"$f":"IF(LEFT(F88,2)=RIGHT(VLOOKUP($B$5,$B$23:$C$104,2,FALSE),2),\"Use\",\"\")","v":{"$error":"#N/A"}},"2021","Creamery Butter","2021"]
[80,"Health Services",{"$error":"#N/A"},null,{"$error":"#N/A"},"2022","Natural, Processed, and Imitation Cheese","2022"]
[81,"Legal Services",{"$error":"#N/A"},null,{"$error":"#N/A"},"2023","Dry, Condensed, and Evaporated Dairy Products","2023"]
[82,"Educational Services",{"$error":"#N/A"},null,{"$error":"#N/A"},"2024","Ice Cream and Frozen Desserts","2024"]
[83,"Social Services",{"$error":"#N/A"},null,{"$error":"#N/A"},"2026","Fluid Milk","2026"]
[84,"Museums, Art Galleries and Botanical and Zoological Gardens",{"$error":"#N/A"},null,{"$error":"#N/A"},"2032","Canned Specialties","2032"]
[86,"Membership Organizations",{"$error":"#N/A"},null,{"$error":"#N/A"},"2033","Canned Fruits, Vegetables, Preserves, Jams, and Jellies","2033"]
[87,"Engineering, Accounting, Research, Management & Related Svcs",{"$error":"#N/A"},null,{"$error":"#N/A"},"2034","Dried and Dehydrated Fruits, Vegetables, and Soup Mixes","2034"]
[89,"Services, Not Elsewhere Classified",{"$error":"#N/A"},null,{"$error":"#N/A"},"2035","Pickled Fruits and Vegetables, Vegetable Sauces and Seasonings, and Salad Dressings","2035"]
[91,"Executive, Legislative & General Government, Except Finance",{"$error":"#N/A"},null,{"$error":"#N/A"},"2037","Frozen Fruits, Fruit Juices, and Vegetables","2037"]
[92,"Justice, Public Order and Safety",{"$error":"#N/A"},null,{"$error":"#N/A"},"2038","Frozen Specialties, Not Elsewhere Classified","2038"]
[93,"Public Finance, Taxation and Monetary Policy",{"$error":"#N/A"},null,{"$error":"#N/A"},"2041","Flour and Other Grain Mill Products","2041"]
[94,"Administration of Human Resource Programs",{"$error":"#N/A"},null,{"$error":"#N/A"},"2043","Cereal Breakfast Foods","2043"]
[95,"Administration of Environmental Quality and Housing Programs",{"$error":"#N/A"},null,{"$error":"#N/A"},"2044","Rice Milling","2044"]
[96,"Administration of Economic Programs",{"$error":"#N/A"},null,{"$error":"#N/A"},"2045","Prepared Flour Mixes and Doughs","2045"]
[97,"National Security and International Affairs",{"$error":"#N/A"},null,{"$error":"#N/A"},"2046","Wet Corn Milling","2046"]
[99,"Nonclassifiable Establishments",{"$error":"#N/A"},null,{"$error":"#N/A"},"2047","Dog and Cat Food","2047"]
[null,null,null,null,{"$error":"#N/A"},"2048","Prepared Feed and Feed Ingredients for Animals and Fowls, Except Dogs and Cats","2048"]
[null,null,null,null,{"$error":"#N/A"},"2051","Bread and Other Bakery Products, Except Cookies and Crackers","2051"]
[null,null,null,null,{"$error":"#N/A"},"2052","Cookies and Crackers","2052"]
[null,null,null,null,{"$error":"#N/A"},"2053","Frozen Bakery Products, Except Bread","2053"]
[null,null,null,null,{"$error":"#N/A"},"2061","Cane Sugar, Except Refining","2061"]
[null,null,null,null,{"$error":"#N/A"},"2062","Cane Sugar Refining","2062"]
[null,null,null,null,{"$error":"#N/A"},"2063","Beet Sugar","2063"]
[null,null,null,null,{"$error":"#N/A"},"2064","Candy and Other Confectionery Products","2064"]
[null,null,null,null,{"$error":"#N/A"},"2066","Chocolate and Cocoa Products","2066"]
[null,null,null,null,{"$error":"#N/A"},"2067","Chewing Gum","2067"]
[null,null,null,null,{"$error":"#N/A"},"2068","Salted and Roasted Nuts and Seeds","2068"]
[null,null,null,null,{"$error":"#N/A"},"2074","Cottonseed Oil Mills","2074"]
[null,null,null,null,{"$error":"#N/A"},"2075","Soybean Oil Mills","2075"]
[null,null,null,null,{"$error":"#N/A"},"2076","Vegetable Oil Mills, Except Corn, Cottonseed, and Soybean","2076"]
[null,null,null,null,{"$error":"#N/A"},"2077","Animal and Marine Fats and Oils","2077"]
[null,null,null,null,{"$error":"#N/A"},"2079","Shortening, Table Oils, Margarine, and Other Edible Fats and Oils, Not Elsewhere Classified","2079"]
[null,null,null,null,{"$error":"#N/A"},"2082","Malt Beverages","2082"]
[null,null,null,null,{"$error":"#N/A"},"2083","Malt","2083"]
[null,null,null,null,{"$error":"#N/A"},"2084","Wines, Brandy, and Brandy Spirits","2084"]
[null,null,null,null,{"$error":"#N/A"},"2085","Distilled and Blended Liquors","2085"]
[null,null,null,null,{"$error":"#N/A"},"2086","Bottled and Canned Soft Drinks and Carbonated Waters","2086"]
[null,null,null,null,{"$error":"#N/A"},"2087","Flavoring Extracts and Flavoring Syrups, Not Elsewhere Classified","2087"]
[null,null,null,null,{"$error":"#N/A"},"2091","Canned and Cured Fish and Seafoods","2091"]
[null,null,null,null,{"$error":"#N/A"},"2092","Prepared Fresh or Frozen Fish and Seafoods","2092"]
[null,null,null,null,{"$error":"#N/A"},"2095","Roasted Coffee","2095"]
[null,null,null,null,{"$error":"#N/A"},"2096","Potato Chips, Corn Chips, and Similar Snacks","2096"]
[null,null,null,null,{"$error":"#N/A"},"2097","Manufactured Ice","2097"]
[null,null,null,null,{"$error":"#N/A"},"2098","Macaroni, Spaghetti, Vermicelli, and Noodles","2098"]
[null,null,null,null,{"$error":"#N/A"},"2099","Food Preparations, Not Elsewhere Classified","2099"]
[null,null,null,null,{"$error":"#N/A"},"2111","Cigarettes","2111"]
[null,null,null,null,{"$error":"#N/A"},"2121","Cigars","2121"]
[null,null,null,null,{"$error":"#N/A"},"2131","Chewing and Smoking Tobacco and Snuff","2131"]
[null,null,null,null,{"$error":"#N/A"},"2141","Tobacco Stemming and Redrying","2141"]
[null,null,null,null,{"$error":"#N/A"},"2211","Broadwoven Fabric Mills, Cotton","2211"]
[null,null,null,null,{"$error":"#N/A"},"2221","Broadwoven Fabric Mills, Manmade Fiber and Silk","2221"]
[null,null,null,null,{"$error":"#N/A"},"2231","Broadwoven Fabric Mills, Wool (Including Dyeing and Finishing)","2231"]
[null,null,null,null,{"$error":"#N/A"},"2241","Narrow Fabric and Other Smallware Mills: Cotton, Wool, Silk, and Manmade Fiber","2241"]
[null,null,null,null,{"$error":"#N/A"},"2251","Women's Full-Length and Knee-Length Hosiery, Except Socks","2251"]
[null,null,null,null,{"$error":"#N/A"},"2252","Hosiery, Not Elsewhere Classified","2252"]
[null,null,null,null,{"$error":"#N/A"},"2253","Knit Outerwear Mills","2253"]
[null,null,null,null,{"$error":"#N/A"},"2254","Knit Underwear and Nightwear Mills","2254"]
[null,null,null,null,{"$error":"#N/A"},"2257","Weft Knit Fabric Mills","2257"]
[null,null,null,null,{"$error":"#N/A"},"2258","Lace and Warp Knit Fabric Mills","2258"]
[null,null,null,null,{"$error":"#N/A"},"2259","Knitting Mills, Not Elsewhere Classified","2259"]
[null,null,null,null,{"$error":"#N/A"},"2261","Finishers of Broadwoven Fabrics of Cotton","2261"]
[null,null,null,null,{"$error":"#N/A"},"2262","Finishers of Broadwoven Fabrics of Manmade Fiber and Silk","2262"]
[null,null,null,null,{"$error":"#N/A"},"2269","Finishers of Textiles, Not elsewhere Classified","2269"]
[null,null,null,null,{"$f":"IF(LEFT(F152,2)=RIGHT(VLOOKUP($B$5,$B$23:$C$104,2,FALSE),2),\"Use\",\"\")","v":{"$error":"#N/A"}},"2273","Carpets and Rugs","2273"]
[null,null,null,null,{"$error":"#N/A"},"2281","Yarn Spinning Mills","2281"]
[null,null,null,null,{"$error":"#N/A"},"2282","Yarn Texturizing, Throwing, Twisting, and Winding Mills","2282"]
[null,null,null,null,{"$error":"#N/A"},"2284","Thread Mills","2284"]
[null,null,null,null,{"$error":"#N/A"},"2295","Coated Fabrics, Not Rubberized","2295"]
[null,null,null,null,{"$error":"#N/A"},"2296","Tire Cord and Fabrics","2296"]
[null,null,null,null,{"$error":"#N/A"},"2297","Non-woven Fabrics","2297"]
[null,null,null,null,{"$error":"#N/A"},"2298","Cordage and Twine","2298"]
[null,null,null,null,{"$error":"#N/A"},"2299","Textile goods, Not Elsewhere Classified","2299"]
[null,null,null,null,{"$error":"#N/A"},"2321","Men's and Boys' Shirts, Except Work Shirts","2321"]
[null,null,null,null,{"$error":"#N/A"},"2322","Men's and Boys' Underwear and Nightwear","2322"]
[null,null,null,null,{"$error":"#N/A"},"2323","Men's and Boys' Neckwear","2323"]
[null,null,null,null,{"$error":"#N/A"},"2325","Men's and Boys' Separate Trousers and Slacks","2325"]
[null,null,null,null,{"$error":"#N/A"},"2326","Men's and Boys' Work Clothing","2326"]
[null,null,null,null,{"$error":"#N/A"},"2329","Men's and Boys' Clothing, Not Elsewhere Classified","2329"]
[null,null,null,null,{"$error":"#N/A"},"2331","Women's, Misses', and Juniors' Blouses and Shirts","2331"]
[null,null,null,null,{"$error":"#N/A"},"2335","Women's, Misses', and Juniors' Dresses","2335"]
[null,null,null,null,{"$error":"#N/A"},"2337","Women's, Misses', and Juniors' Suits, Skirts, and Coats","2337"]
[null,null,null,null,{"$error":"#N/A"},"2339","Women's, Misses', and Juniors' Outerwear, Not Elsewhere Classified","2339"]
[null,null,null,null,{"$error":"#N/A"},"2341","Women's, Misses', Children's, and Infants' Underwear and Nightwear","2341"]
[null,null,null,null,{"$error":"#N/A"},"2342","Brassieres, Girdles, and Allied Garments","2342"]
[null,null,null,null,{"$error":"#N/A"},"2353","Hats, Caps, and Millinery","2353"]
[null,null,null,null,{"$error":"#N/A"},"2361","Girls', Children's, and Infants' Dresses, Blouses, and Shirts","2361"]
[null,null,null,null,{"$error":"#N/A"},"2369","Girls', Children's, and Infants' Outerwear, Not Elsewhere Classified","2369"]
[null,null,null,null,{"$error":"#N/A"},"2371","Fur Goods","2371"]
[null,null,null,null,{"$error":"#N/A"},"2381","Dress and Work Gloves, Except Knit and All-Leather","2381"]
[null,null,null,null,{"$error":"#N/A"},"2384","Robes and Dressing Gowns","2384"]
[null,null,null,null,{"$error":"#N/A"},"2385","Waterproof Outerwear","2385"]
[null,null,null,null,{"$error":"#N/A"},"2386","Leather and Sheep-Lined Clothing","2386"]
[null,null,null,null,{"$error":"#N/A"},"2387","Apparel belts","2387"]
[null,null,null,null,{"$error":"#N/A"},"2389","Apparel and Accessories, Not Elsewhere Classified","2389"]
[null,null,null,null,{"$error":"#N/A"},"2391","Curtains and Draperies","2391"]
[null,null,null,null,{"$error":"#N/A"},"2392","House furnishing, Except Curtains and Draperies","2392"]
[null,null,null,null,{"$error":"#N/A"},"2393","Textile Bags","2393"]
[null,null,null,null,{"$error":"#N/A"},"2394","Canvas and Related Products","2394"]
[null,null,null,null,{"$error":"#N/A"},"2395","Pleating, Decorative and Novelty Stitching, and Tucking for the Trade","2395"]
[null,null,null,null,{"$error":"#N/A"},"2396","Automotive Trimmings, Apparel Findings, and Related Products","2396"]
[null,null,null,null,{"$error":"#N/A"},"2397","Schiffli Machine Embroideries","2397"]
[null,null,null,null,{"$error":"#N/A"},"2399","Fabricated Textile Products, Not Elsewhere Classified","2399"]
[null,null,null,null,{"$error":"#N/A"},"2411","Logging","2411"]
[null,null,null,null,{"$error":"#N/A"},"2421","Sawmills and Planing Mills, General","2421"]
[null,null,null,null,{"$error":"#N/A"},"2426","Hardwood Dimension and Flooring Mills","2426"]
[null,null,null,null,{"$error":"#N/A"},"2429","Special Product Sawmills, Not Elsewhere Classified","2429"]
[null,null,null,null,{"$error":"#N/A"},"2431","Millwork","2431"]
[null,null,null,null,{"$error":"#N/A"},"2434","Wood Kitchen Cabinets","2434"]
[null,null,null,null,{"$error":"#N/A"},"2435","Hardwood Veneer and Plywood","2435"]
[null,null,null,null,{"$error":"#N/A"},"2436","Softwood Veneer and Plywood","2436"]
[null,null,null,null,{"$error":"#N/A"},"2439","Structural Wood Members, Not Elsewhere Classified","2439"]
[null,null,null,null,{"$error":"#N/A"},"2441","Nailed and Lock Corner Wood Boxes and Shook","2441"]
[null,null,null,null,{"$error":"#N/A"},"2448","Wood Pallets and Skids","2448"]
[null,null,null,null,{"$error":"#N/A"},"2449","Wood Containers, Not Elsewhere Classified","2449"]
[null,null,null,null,{"$error":"#N/A"},"2451","Mobile Homes","2451"]
[null,null,null,null,{"$error":"#N/A"},"2452","Prefabricated Wood Buildings and Components","2452"]
[null,null,null,null,{"$error":"#N/A"},"2491","Wood Preserving","2491"]
[null,null,null,null,{"$error":"#N/A"},"2493","Reconstituted Wood Products","2493"]
[null,null,null,null,{"$error":"#N/A"},"2499","Wood Products, Not Elsewhere Classified","2499"]
[null,null,null,null,{"$error":"#N/A"},"2511","Wood Household Furniture, Except Upholstered","2511"]
[null,null,null,null,{"$error":"#N/A"},"2512","Wood Household Furniture, Upholstered","2512"]
[null,null,null,null,{"$error":"#N/A"},"2514","Metal Household Furniture","2514"]
[null,null,null,null,{"$error":"#N/A"},"2515","Mattresses, Foundations, and Convertible Beds","2515"]
[null,null,null,null,{"$error":"#N/A"},"2517","Wood Television, Radio, Phonograph, and Sewing Machine Cabinets","2517"]
[null,null,null,null,{"$error":"#N/A"},"2519","Household Furniture, Not Elsewhere Classified","2519"]
[null,null,null,null,{"$error":"#N/A"},"2521","Wood Office Furniture","2521"]
[null,null,null,null,{"$error":"#N/A"},"2522","Office Furniture, Except Wood","2522"]
[null,null,null,null,{"$f":"IF(LEFT(F216,2)=RIGHT(VLOOKUP($B$5,$B$23:$C$104,2,FALSE),2),\"Use\",\"\")","v":{"$error":"#N/A"}},"2531","Public Building and Related Furniture","2531"]
[null,null,null,null,{"$error":"#N/A"},"2541","Wood Office and Store Fixtures, Partitions, Shelving, and Lockers","2541"]
[null,null,null,null,{"$error":"#N/A"},"2542","Office and Store Fixtures, Partitions, Shelving, and Lockers, Except Wood","2542"]
[null,null,null,null,{"$error":"#N/A"},"2591","Drapery Hardware and Window Blinds and Shades","2591"]
[null,null,null,null,{"$error":"#N/A"},"2599","Furniture and Fixtures, Not Elsewhere Classified","2599"]
[null,null,null,null,{"$error":"#N/A"},"2611","Pulp Mills","2611"]
[null,null,null,null,{"$error":"#N/A"},"2621","Paper Mills","2621"]
[null,null,null,null,{"$error":"#N/A"},"2631","Paperboard Mills","2631"]
[null,null,null,null,{"$error":"#N/A"},"2652","Setup Paperboard Boxes","2652"]
[null,null,null,null,{"$error":"#N/A"},"2653","Corrugated and Solid Fiber Boxes","2653"]
[null,null,null,null,{"$error":"#N/A"},"2655","Fiber Cans, Tubes, Drums, and Similar Products","2655"]
[null,null,null,null,{"$error":"#N/A"},"2656","Sanitary Food Containers, Except Folding","2656"]
[null,null,null,null,{"$error":"#N/A"},"2657","Folding Paperboard Boxes, Including Sanitary","2657"]
[null,null,null,null,{"$error":"#N/A"},"2671","Packaging Paper and Plastics Film, Coated and Laminated","2671"]
[null,null,null,null,{"$error":"#N/A"},"2672","Coated and Laminated Paper, Not Elsewhere Classified","2672"]
[null,null,null,null,{"$error":"#N/A"},"2673","Plastics, Foil, and Coated Paper Bags","2673"]
[null,null,null,null,{"$error":"#N/A"},"2674","Uncoated Paper and Multiwall Bags","2674"]
[null,null,null,null,{"$error":"#N/A"},"2675","Die-Cut Paper and Paperboard and Cardboard","2675"]
[null,null,null,null,{"$error":"#N/A"},"2676","Sanitary Paper Products","2676"]
[null,null,null,null,{"$error":"#N/A"},"2677","Envelopes","2677"]
[null,null,null,null,{"$error":"#N/A"},"2678","Stationery, Tablets, and Related Products","2678"]
[null,null,null,null,{"$error":"#N/A"},"2679","Converted Paper and Paperboard Products, Not Elsewhere Classified","2679"]
[null,null,null,null,{"$error":"#N/A"},"2711","Newspapers: Publishing, or Publishing and Printing","2711"]
[null,null,null,null,{"$error":"#N/A"},"2721","Periodicals: Publishing, or Publishing and Printing","2721"]
[null,null,null,null,{"$error":"#N/A"},"2731","Books: Publishing, or Publishing and Printing","2731"]
[null,null,null,null,{"$error":"#N/A"},"2732","Book Printing","2732"]
[null,null,null,null,{"$error":"#N/A"},"2741","Miscellaneous Publishing","2741"]
[null,null,null,null,{"$error":"#N/A"},"2752","Commercial Printing, Lithographic","2752"]
[null,null,null,null,{"$error":"#N/A"},"2754","Commercial Printing, Gravure","2754"]
[null,null,null,null,{"$error":"#N/A"},"2759","Commercial Printing, Not Elsewhere Classified","2759"]
[null,null,null,null,{"$error":"#N/A"},"2761","Manifold Business Forms","2761"]
[null,null,null,null,{"$error":"#N/A"},"2771","Greeting Cards","2771"]
[null,null,null,null,{"$error":"#N/A"},"2782","Blankbooks, Looseleaf Binders and Devices","2782"]
[null,null,null,null,{"$error":"#N/A"},"2789","Bookbinding and Related Work","2789"]
[null,null,null,null,{"$error":"#N/A"},"2791","Typesetting","2791"]
[null,null,null,null,{"$error":"#N/A"},"2796","Platemaking and Related Services","2796"]
[null,null,null,null,{"$error":"#N/A"},"2812","Alkalies and Chlorine","2812"]
[null,null,null,null,{"$error":"#N/A"},"2813","Industrial Gases","2813"]
[null,null,null,null,{"$error":"#N/A"},"2816","Inorganic Pigments","2816"]
[null,null,null,null,{"$error":"#N/A"},"2819","Industrial Inorganic Chemicals, Not Elsewhere Classified","2819"]
[null,null,null,null,{"$error":"#N/A"},"2821","Plastics Materials, Synthetic Resins, and Nonvulcanizable Elastomers","2821"]
[null,null,null,null,{"$error":"#N/A"},"2822","Synthetic Rubber (Vulcanizable Elastomers)","2822"]
[null,null,null,null,{"$error":"#N/A"},"2823","Cellulosic Manmade Fibers","2823"]
[null,null,null,null,{"$error":"#N/A"},"2824","Manmade Organic Fibers, Except Cellulosic","2824"]
[null,null,null,null,{"$error":"#N/A"},"2833","Medicinal Chemicals and Botanical Products","2833"]
[null,null,null,null,{"$error":"#N/A"},"2834","Pharmaceutical Preparations","2834"]
[null,null,null,null,{"$error":"#N/A"},"2835","In Vitro and In Vivo Diagnostic Substances","2835"]
[null,null,null,null,{"$error":"#N/A"},"2836","Biological Products, Except Diagnostic Substances","2836"]
[null,null,null,null,{"$error":"#N/A"},"2841","Soap and Other Detergents, Except Specialty Cleaners","2841"]
[null,null,null,null,{"$error":"#N/A"},"2842","Specialty Cleaning, Polishing, and Sanitation Preparations","2842"]
[null,null,null,null,{"$error":"#N/A"},"2843","Surface Active Agents, Finishing Agents, Sulfonated Oils, and Assistants","2843"]
[null,null,null,null,{"$error":"#N/A"},"2844","Perfumes, Cosmetics, and Other Toilet Preparations","2844"]
[null,null,null,null,{"$error":"#N/A"},"2851","Paints, Varnishes, Lacquers, Enamels, and Allied Products","2851"]
[null,null,null,null,{"$error":"#N/A"},"2861","Gum and Wood Chemicals","2861"]
[null,null,null,null,{"$error":"#N/A"},"2865","Cyclic Organic Crudes and Intermediates, and Organic Dyes and Pigments","2865"]
[null,null,null,null,{"$error":"#N/A"},"2869","Industrial Organic Chemicals, Not Elsewhere Classified","2869"]
[null,null,null,null,{"$error":"#N/A"},"2873","Nitrogenous Fertilizers","2873"]
[null,null,null,null,{"$error":"#N/A"},"2874","Phosphatic Fertilizers","2874"]
[null,null,null,null,{"$error":"#N/A"},"2875","Fertilizers, Mixing Only","2875"]
[null,null,null,null,{"$error":"#N/A"},"2879","Pesticides and Agricultural Chemicals, Not Elsewhere Classified","2879"]
[null,null,null,null,{"$error":"#N/A"},"2891","Adhesives and Sealants","2891"]
[null,null,null,null,{"$error":"#N/A"},"2892","Explosives","2892"]
[null,null,null,null,{"$error":"#N/A"},"2893","Printing Ink","2893"]
[null,null,null,null,{"$error":"#N/A"},"2895","Carbon Black","2895"]
[null,null,null,null,{"$f":"IF(LEFT(F280,2)=RIGHT(VLOOKUP($B$5,$B$23:$C$104,2,FALSE),2),\"Use\",\"\")","v":{"$error":"#N/A"}},"2899","Chemicals and Chemical Preparations, Not Elsewhere Classified","2899"]
[null,null,null,null,{"$error":"#N/A"},"2911","Petroleum Refining","2911"]
[null,null,null,null,{"$error":"#N/A"},"2951","Asphalt Paving Mixtures and Blocks","2951"]
[null,null,null,null,{"$error":"#N/A"},"2952","Asphalt Felts and Coatings","2952"]
[null,null,null,null,{"$error":"#N/A"},"2992","Lubricating Oils and Greases","2992"]
[null,null,null,null,{"$error":"#N/A"},"2999","Products of Petroleum and Coal, Not Elsewhere Classified","2999"]
[null,null,null,null,{"$error":"#N/A"},"3011","Tires and Inner Tubes","3011"]
[null,null,null,null,{"$error":"#N/A"},"3021","Rubber and Plastics Footwear","3021"]
[null,null,null,null,{"$error":"#N/A"},"3052","Rubber and Plastics Hose and Belting","3052"]
[null,null,null,null,{"$error":"#N/A"},"3053","Gaskets, Packing, and Sealing Devices","3053"]
[null,null,null,null,{"$error":"#N/A"},"3061","Molded, Extruded, and Lathe-Cut Mechanical Rubber Goods","3061"]
[null,null,null,null,{"$error":"#N/A"},"3069","Fabricated Rubber Products, Not Elsewhere Classified","3069"]
[null,null,null,null,{"$error":"#N/A"},"3081","Unsupported Plastics Film and Sheet","3081"]
[null,null,null,null,{"$error":"#N/A"},"3082","Unsupported Plastics Profile Shapes","3082"]
[null,null,null,null,{"$error":"#N/A"},"3083","Laminated Plastics Plate, Sheet, and Profile Shapes","3083"]
[null,null,null,null,{"$error":"#N/A"},"3084","Plastics Pipe","3084"]
[null,null,null,null,{"$error":"#N/A"},"3085","Plastics Bottles","3085"]
[null,null,null,null,{"$error":"#N/A"},"3086","Plastics Foam Products","3086"]
[null,null,null,null,{"$error":"#N/A"},"3087","Custom Compounding of Purchased Plastics Resins","3087"]
[null,null,null,null,{"$error":"#N/A"},"3088","Plastics Plumbing Fixtures","3088"]
[null,null,null,null,{"$error":"#N/A"},"3089","Plastics Products, Not Elsewhere Classified","3089"]
[null,null,null,null,{"$error":"#N/A"},"3111","Leather Tanning and Finishing","3111"]
[null,null,null,null,{"$error":"#N/A"},"3131","Boot and Shoe Cut Stock and Findings","3131"]
[null,null,null,null,{"$error":"#N/A"},"3142","House Slippers","3142"]
[null,null,null,null,{"$error":"#N/A"},"3143","Men's Footwear, Except Athletic","3143"]
[null,null,null,null,{"$error":"#N/A"},"3144","Women's Footwear, Except Athletic","3144"]
[null,null,null,null,{"$error":"#N/A"},"3149","Footwear, Except Rubber, Not Elsewhere Classified","3149"]
[null,null,null,null,{"$error":"#N/A"},"3151","Leather Gloves and Mittens","3151"]
[null,null,null,null,{"$error":"#N/A"},"3161","Luggage","3161"]
[null,null,null,null,{"$error":"#N/A"},"3171","Women's Handbags and Purses","3171"]
[null,null,null,null,{"$error":"#N/A"},"3172","Personal Leather Goods, Except Women's Handbags and Purses","3172"]
[null,null,null,null,{"$error":"#N/A"},"3199","Leather Goods, Not Elsewhere Classified","3199"]
[null,null,null,null,{"$error":"#N/A"},"3211","Flat Glass","3211"]
[null,null,null,null,{"$error":"#N/A"},"3221","Glass Containers","3221"]
[null,null,null,null,{"$error":"#N/A"},"3229","Pressed and Blown Glass and Glassware, Not Elsewhere Classified","3229"]
[null,null,null,null,{"$error":"#N/A"},"3231","Glass Products, Made of Purchased Glass","3231"]
[null,null,null,null,{"$error":"#N/A"},"3241","Cement, Hydraulic","3241"]
[null,null,null,null,{"$error":"#N/A"},"3251","Brick and Structural Clay Tile","3251"]
[null,null,null,null,{"$error":"#N/A"},"3253","Ceramic Wall and Floor Tile","3253"]
[null,null,null,null,{"$error":"#N/A"},"3255","Clay Refractories","3255"]
[null,null,null,null,{"$error":"#N/A"},"3259","Structural Clay Products, Not Elsewhere Classified","3259"]
[null,null,null,null,{"$error":"#N/A"},"3261","Vitreous China Plumbing Fixtures and China and Earthenware Fittings and Bathroom Accessories","3261"]
[null,null,null,null,{"$error":"#N/A"},"3262","Vitreous China Table and Kitchen Articles","3262"]
[null,null,null,null,{"$error":"#N/A"},"3263","Fine Earthenware (Whiteware) Table and Kitchen Articles","3263"]
[null,null,null,null,{"$error":"#N/A"},"3264","Porcelain Electrical Supplies","3264"]
[null,null,null,null,{"$error":"#N/A"},"3269","Pottery Products, Not Elsewhere Classified","3269"]
[null,null,null,null,{"$error":"#N/A"},"3271","Concrete Block and Brick","3271"]
[null,null,null,null,{"$error":"#N/A"},"3272","Concrete Products, Except Block and Brick","3272"]
[null,null,null,null,{"$error":"#N/A"},"3273","Ready-Mixed Concrete","3273"]
[null,null,null,null,{"$error":"#N/A"},"3274","Lime","3274"]
[null,null,null,null,{"$error":"#N/A"},"3275","Gypsum Products","3275"]
[null,null,null,null,{"$error":"#N/A"},"3281","Cut Stone and Stone Products","3281"]
[null,null,null,null,{"$error":"#N/A"},"3291","Abrasive Products","3291"]
[null,null,null,null,{"$error":"#N/A"},"3292","Asbestos Products","3292"]
[null,null,null,null,{"$error":"#N/A"},"3295","Minerals and Earths, Ground or Otherwise Treated","3295"]
[null,null,null,null,{"$error":"#N/A"},"3296","Mineral Wool","3296"]
[null,null,null,null,{"$error":"#N/A"},"3297","Nonclay Refractories","3297"]
[null,null,null,null,{"$error":"#N/A"},"3299","Nonmetallic Mineral Products, Not Elsewhere Classified","3299"]
[null,null,null,null,{"$error":"#N/A"},"3312","Steel Works, Blast Furnaces (Including Coke Ovens), and Rolling Mills","3312"]
[null,null,null,null,{"$error":"#N/A"},"3313","Electrometallurgical Products, Except Steel","3313"]
[null,null,null,null,{"$error":"#N/A"},"3315","Steel Wiredrawing and Steel Nails and Spikes","3315"]
[null,null,null,null,{"$error":"#N/A"},"3316","Cold-Rolled Steel Sheet, Strip, and Bars","3316"]
[null,null,null,null,{"$error":"#N/A"},"3317","Steel Pipe and Tubes","3317"]
[null,null,null,null,{"$error":"#N/A"},"3321","Gray and Ductile Iron Foundries","3321"]
[null,null,null,null,{"$f":"IF(LEFT(F344,2)=RIGHT(VLOOKUP($B$5,$B$23:$C$104,2,FALSE),2),\"Use\",\"\")","v":{"$error":"#N/A"}},"3322","Malleable Iron Foundries","3322"]
[null,null,null,null,{"$error":"#N/A"},"3324","Steel Investment Foundries","3324"]
[null,null,null,null,{"$error":"#N/A"},"3325","Steel Foundries, Not Elsewhere Classified","3325"]
[null,null,null,null,{"$error":"#N/A"},"3331","Primary Smelting and Refining of Copper","3331"]
[null,null,null,null,{"$error":"#N/A"},"3334","Primary Production of Aluminum","3334"]
[null,null,null,null,{"$error":"#N/A"},"3339","Primary Smelting and Refining of Nonferrous Metals, Except Copper and Aluminum","3339"]
[null,null,null,null,{"$error":"#N/A"},"3341","Secondary Smelting and Refining of Nonferrous Metals","3341"]
[null,null,null,null,{"$error":"#N/A"},"3351","Rolling, Drawing, and Extruding Of Copper","3351"]
[null,null,null,null,{"$error":"#N/A"},"3353","Aluminum Sheet, Plate, and Foil","3353"]
[null,null,null,null,{"$error":"#N/A"},"3354","Aluminum Extruded Products","3354"]
[null,null,null,null,{"$error":"#N/A"},"3355","Aluminum Rolling and Drawing, Not Elsewhere Classified","3355"]
[null,null,null,null,{"$error":"#N/A"},"3356","Rolling, Drawing, and Extruding of Nonferrous Metals, Except Copper and Aluminum","3356"]
[null,null,null,null,{"$error":"#N/A"},"3357","Drawing and Insulating of Nonferrous Wire","3357"]
[null,null,null,null,{"$error":"#N/A"},"3363","Aluminum Die-Castings","3363"]
[null,null,null,null,{"$error":"#N/A"},"3364","Nonferrous Die-Castings, Except Aluminum","3364"]
[null,null,null,null,{"$error":"#N/A"},"3365","Aluminum Foundries","3365"]
[null,null,null,null,{"$error":"#N/A"},"3366","Copper Foundries","3366"]
[null,null,null,null,{"$error":"#N/A"},"3369","Nonferrous Foundries, Except Aluminum and Copper","3369"]
[null,null,null,null,{"$error":"#N/A"},"3398","Metal Heat Treating","3398"]
[null,null,null,null,{"$error":"#N/A"},"3399","Primary Metal Products, Not Elsewhere Classified","3399"]
[null,null,null,null,{"$error":"#N/A"},"3411","Metal Cans","3411"]
[null,null,null,null,{"$error":"#N/A"},"3412","Metal Shipping Barrels, Drums, Kegs, and Pails","3412"]
[null,null,null,null,{"$error":"#N/A"},"3421","Cutlery","3421"]
[null,null,null,null,{"$error":"#N/A"},"3423","Hand and Edge Tools, Except Machine Tools and Handsaws","3423"]
[null,null,null,null,{"$error":"#N/A"},"3425","Saw Blades and Handsaws","3425"]
[null,null,null,null,{"$error":"#N/A"},"3429","Hardware, Not Elsewhere Classified","3429"]
[null,null,null,null,{"$error":"#N/A"},"3431","Enameled Iron and Metal Sanitary Ware","3431"]
[null,null,null,null,{"$error":"#N/A"},"3432","Plumbing Fixture Fittings and Trim","3432"]
[null,null,null,null,{"$error":"#N/A"},"3433","Heating Equipment, Except Electric and Warm Air Furnaces","3433"]
[null,null,null,null,{"$error":"#N/A"},"3441","Fabricated Structural Metal","3441"]
[null,null,null,null,{"$error":"#N/A"},"3442","Metal Doors, Sash, Frames, Molding, and Trim Manufacturing","3442"]
[null,null,null,null,{"$error":"#N/A"},"3443","Fabricated Plate Work (Boiler Shops)","3443"]
[null,null,null,null,{"$error":"#N/A"},"3444","Sheet Metal Work","3444"]
[null,null,null,null,{"$error":"#N/A"},"3446","Architectural and Ornamental Metal Work","3446"]
[null,null,null,null,{"$error":"#N/A"},"3448","Prefabricated Metal Buildings and Components","3448"]
[null,null,null,null,{"$error":"#N/A"},"3449","Miscellaneous Structural Metal Work","3449"]
[null,null,null,null,{"$error":"#N/A"},"3451","Screw Machine Products","3451"]
[null,null,null,null,{"$error":"#N/A"},"3452","Bolts, Nuts, Screws, Rivets, and Washers","3452"]
[null,null,null,null,{"$error":"#N/A"},"3462","Iron and Steel Forgings","3462"]
[null,null,null,null,{"$error":"#N/A"},"3463","Nonferrous Forgings","3463"]
[null,null,null,null,{"$error":"#N/A"},"3465","Automotive Stampings","3465"]
[null,null,null,null,{"$error":"#N/A"},"3466","Crowns and Closures","3466"]
[null,null,null,null,{"$error":"#N/A"},"3469","Metal Stampings, Not Elsewhere Classified","3469"]
[null,null,null,null,{"$error":"#N/A"},"3471","Electroplating, Plating, Polishing, Anodizing, and Coloring","3471"]
[null,null,null,null,{"$error":"#N/A"},"3479","Coating, Engraving, and Allied Services, Not Elsewhere Classified","3479"]
[null,null,null,null,{"$error":"#N/A"},"3482","Small Arms Ammunition","3482"]
[null,null,null,null,{"$error":"#N/A"},"3483","Ammunition, Except for Small Arms","3483"]
[null,null,null,null,{"$error":"#N/A"},"3484","Small Arms","3484"]
[null,null,null,null,{"$error":"#N/A"},"3489","Ordnance and Accessories, Not Elsewhere Classified","3489"]
[null,null,null,null,{"$error":"#N/A"},"3491","Industrial Valves","3491"]
[null,null,null,null,{"$error":"#N/A"},"3492","Fluid Power Valves and Hose Fittings","3492"]
[null,null,null,null,{"$error":"#N/A"},"3493","Steel Springs, Except Wire","3493"]
[null,null,null,null,{"$error":"#N/A"},"3494","Valves and Pipe Fittings, Not Elsewhere Classified","3494"]
[null,null,null,null,{"$error":"#N/A"},"3495","Wire Springs","3495"]
[null,null,null,null,{"$error":"#N/A"},"3496","Miscellaneous Fabricated Wire Products","3496"]
[null,null,null,null,{"$error":"#N/A"},"3497","Metal Foil and Leaf","3497"]
[null,null,null,null,{"$error":"#N/A"},"3498","Fabricated Pipe and Pipe Fittings","3498"]
[null,null,null,null,{"$error":"#N/A"},"3499","Fabricated Metal Products, Not Elsewhere Classified","3499"]
[null,null,null,null,{"$error":"#N/A"},"3511","Steam, Gas, and Hydraulic Turbines, and Turbine Generator Set Units","3511"]
[null,null,null,null,{"$error":"#N/A"},"3519","Internal Combustion Engines, Not Elsewhere Classified","3519"]
[null,null,null,null,{"$error":"#N/A"},"3523","Farm Machinery and Equipment","3523"]
[null,null,null,null,{"$error":"#N/A"},"3524","Lawn and Garden Tractors and Home Lawn and Garden Equipment","3524"]
[null,null,null,null,{"$error":"#N/A"},"3531","Construction Machinery and Equipment","3531"]
[null,null,null,null,{"$error":"#N/A"},"3532","Mining Machinery and Equipment, Except Oil and Gas Field Machinery and Equipment","3532"]
[null,null,null,null,{"$f":"IF(LEFT(F408,2)=RIGHT(VLOOKUP($B$5,$B$23:$C$104,2,FALSE),2),\"Use\",\"\")","v":{"$error":"#N/A"}},"3533","Oil and Gas Field Machinery and Equipment","3533"]
[null,null,null,null,{"$error":"#N/A"},"3534","Elevators and Moving Stairways","3534"]
[null,null,null,null,{"$error":"#N/A"},"3535","Conveyors and Conveying Equipment","3535"]
[null,null,null,null,{"$error":"#N/A"},"3536","Overhead Traveling Cranes, Hoists, and Monorail Systems","3536"]
[null,null,null,null,{"$error":"#N/A"},"3537","Industrial Trucks, Tractors, Trailers, and Stackers","3537"]
[null,null,null,null,{"$error":"#N/A"},"3541","Machine Tools, Metal Cutting Types","3541"]
[null,null,null,null,{"$error":"#N/A"},"3542","Machine Tools, Metal Forming Types","3542"]
[null,null,null,null,{"$error":"#N/A"},"3543","Industrial Patterns","3543"]
[null,null,null,null,{"$error":"#N/A"},"3544","Special Dies and Tools, Die Sets, Jigs and Fixtures, and Industrial Molds","3544"]
[null,null,null,null,{"$error":"#N/A"},"3545","Cutting Tools, Machine Tool Accessories, and Machinists' Precision Measuring Devices","3545"]
[null,null,null,null,{"$error":"#N/A"},"3546","Power-Driven Handtools","3546"]
[null,null,null,null,{"$error":"#N/A"},"3547","Rolling Mill Machinery and Equipment","3547"]
[null,null,null,null,{"$error":"#N/A"},"3548","Electric and Gas Welding and Soldering Equipment","3548"]
[null,null,null,null,{"$error":"#N/A"},"3549","Metalworking Machinery, Not Elsewhere Classified","3549"]
[null,null,null,null,{"$error":"#N/A"},"3552","Textile Machinery","3552"]
[null,null,null,null,{"$error":"#N/A"},"3553","Woodworking Machinery","3553"]
[null,null,null,null,{"$error":"#N/A"},"3554","Paper Industries Machinery","3554"]
[null,null,null,null,{"$error":"#N/A"},"3555","Printing Trades Machinery and Equipment","3555"]
[null,null,null,null,{"$error":"#N/A"},"3556","Food Products Machinery","3556"]
[null,null,null,null,{"$error":"#N/A"},"3559","Special Industry Machinery, Not Elsewhere Classified","3559"]
[null,null,null,null,{"$error":"#N/A"},"3561","Pumps and Pumping Equipment","3561"]
[null,null,null,null,{"$error":"#N/A"},"3562","Ball and Roller Bearings","3562"]
[null,null,null,null,{"$error":"#N/A"},"3563","Air and Gas Compressors","3563"]
[null,null,null,null,{"$error":"#N/A"},"3564","Industrial and Commercial Fans and Blowers and Air Purification Equipment","3564"]
[null,null,null,null,{"$error":"#N/A"},"3565","Packaging Machinery","3565"]
[null,null,null,null,{"$error":"#N/A"},"3566","Speed Changers, Industrial High-Speed Drives, and Gears","3566"]
[null,null,null,null,{"$error":"#N/A"},"3567","Industrial Process Furnaces and Ovens","3567"]
[null,null,null,null,{"$error":"#N/A"},"3568","Mechanical Power Transmission Equipment, Not Elsewhere Classified","3568"]
[null,null,null,null,{"$error":"#N/A"},"3569","General Industrial Machinery and Equipment, Not Elsewhere","3569"]
[null,null,null,null,{"$error":"#N/A"},"3571","Electronic Computers","3571"]
[null,null,null,null,{"$error":"#N/A"},"3572","Computer Storage Devices","3572"]
[null,null,null,null,{"$error":"#N/A"},"3575","Computer Terminals","3575"]
[null,null,null,null,{"$error":"#N/A"},"3577","Computer Peripheral Equipment, Not Elsewhere Classified","3577"]
[null,null,null,null,{"$error":"#N/A"},"3578","Calculating and Accounting Machines, Except Electronic Computers","3578"]
[null,null,null,null,{"$error":"#N/A"},"3579","Office Machines, Not Elsewhere Classified","3579"]
[null,null,null,null,{"$error":"#N/A"},"3581","Automatic Vending Machines","3581"]
[null,null,null,null,{"$error":"#N/A"},"3582","Commercial Laundry, Drycleaning, and Pressing Machines","3582"]
[null,null,null,null,{"$error":"#N/A"},"3585","Air-Conditioning and Warm Air Heating Equipment and Commercial and Industrial Refrigeration Equipment","3585"]
[null,null,null,null,{"$error":"#N/A"},"3586","Measuring and Dispensing Pumps","3586"]
[null,null,null,null,{"$error":"#N/A"},"3589","Service Industry Machinery, Not Elsewhere Classified","3589"]
[null,null,null,null,{"$error":"#N/A"},"3592","Carburetors, Pistons, Piston Rings, and Valves","3592"]
[null,null,null,null,{"$error":"#N/A"},"3593","Fluid Power Cylinders and Actuators","3593"]
[null,null,null,null,{"$error":"#N/A"},"3594","Fluid Power Pumps and Motors","3594"]
[null,null,null,null,{"$error":"#N/A"},"3596","Scales and Balances, Except Laboratory","3596"]
[null,null,null,null,{"$error":"#N/A"},"3599","Industrial and Commercial Machinery and Equipment, Not Elsewhere Classified","3599"]
[null,null,null,null,{"$error":"#N/A"},"3612","Power, Distribution, and Specialty Transformers","3612"]
[null,null,null,null,{"$error":"#N/A"},"3613","Switchgear and Switchboard Apparatus","3613"]
[null,null,null,null,{"$error":"#N/A"},"3621","Motors and Generators","3621"]
[null,null,null,null,{"$error":"#N/A"},"3624","Carbon and Graphite Products","3624"]
[null,null,null,null,{"$error":"#N/A"},"3625","Relays and Industrial Controls","3625"]
[null,null,null,null,{"$error":"#N/A"},"3629","Electrical Industrial Apparatus, Not Elsewhere Classified","3629"]
[null,null,null,null,{"$error":"#N/A"},"3631","Household Cooking Equipment","3631"]
[null,null,null,null,{"$error":"#N/A"},"3632","Household Refrigerators and HOme and Farm Freezers","3632"]
[null,null,null,null,{"$error":"#N/A"},"3633","Household Laundry Equipment","3633"]
[null,null,null,null,{"$error":"#N/A"},"3634","Electric Housewares and Fans","3634"]
[null,null,null,null,{"$error":"#N/A"},"3635","Household Vacuum Cleaners","3635"]
[null,null,null,null,{"$error":"#N/A"},"3639","Household Appliances, Not Elsewhere Classified","3639"]
[null,null,null,null,{"$error":"#N/A"},"3641","Electric Lamp Bulbs and Tubes","3641"]
[null,null,null,null,{"$error":"#N/A"},"3643","Current-Carrying Wiring Devices","3643"]
[null,null,null,null,{"$error":"#N/A"},"3644","Noncurrent-Carrying Wiring Devices","3644"]
[null,null,null,null,{"$error":"#N/A"},"3645","Residential Electric Lighting Fixtures","3645"]
[null,null,null,null,{"$error":"#N/A"},"3646","Commercial, Industrial, and Institutional Electric Lighting Fixtures","3646"]
[null,null,null,null,{"$error":"#N/A"},"3647","Vehicular Lighting Equipment","3647"]
[null,null,null,null,{"$error":"#N/A"},"3648","Lighting Equipment, Not Elsewhere Classified","3648"]
[null,null,null,null,{"$f":"IF(LEFT(F472,2)=RIGHT(VLOOKUP($B$5,$B$23:$C$104,2,FALSE),2),\"Use\",\"\")","v":{"$error":"#N/A"}},"3651","Household Audio and Video Equipment","3651"]
[null,null,null,null,{"$error":"#N/A"},"3652","Phonograph Records and Prerecorded Audio Tapes and Disks","3652"]
[null,null,null,null,{"$error":"#N/A"},"3661","Telephone and Telegraph Apparatus","3661"]
[null,null,null,null,{"$error":"#N/A"},"3663","Radio and Television Broadcasting and Communications Equipment","3663"]
[null,null,null,null,{"$error":"#N/A"},"3669","Communications Equipment, Not Elsewhere Classified","3669"]
[null,null,null,null,{"$error":"#N/A"},"3671","Electron Tubes","3671"]
[null,null,null,null,{"$error":"#N/A"},"3672","Printed Circuit Boards","3672"]
[null,null,null,null,{"$error":"#N/A"},"3674","Semiconductors and Related Devices","3674"]
[null,null,null,null,{"$error":"#N/A"},"3675","Electronic Capacitors","3675"]
[null,null,null,null,{"$error":"#N/A"},"3676","Electronic Resistors","3676"]
[null,null,null,null,{"$error":"#N/A"},"3677","Electronic Coils, Transformers, and Other Inductors","3677"]
[null,null,null,null,{"$error":"#N/A"},"3678","Electronic Connectors","3678"]
[null,null,null,null,{"$error":"#N/A"},"3679","Electronic Components, Not Elsewhere Classified","3679"]
[null,null,null,null,{"$error":"#N/A"},"3691","Storage Batteries","3691"]
[null,null,null,null,{"$error":"#N/A"},"3692","Primary Batteries, Dry and Wet","3692"]
[null,null,null,null,{"$error":"#N/A"},"3694","Electrical Equipment for Internal Combustion Engines","3694"]
[null,null,null,null,{"$error":"#N/A"},"3695","Magnetic And Optical Recording Media","3695"]
[null,null,null,null,{"$error":"#N/A"},"3699","Electrical Machinery, Equipment, and Supplies, Not Elsewhere","3699"]
[null,null,null,null,{"$error":"#N/A"},"3711","Motor Vehicles and Passenger Car Bodies","3711"]
[null,null,null,null,{"$error":"#N/A"},"3713","Truck and Bus Bodies","3713"]
[null,null,null,null,{"$error":"#N/A"},"3714","Motor Vehicle Parts and Accessories","3714"]
[null,null,null,null,{"$error":"#N/A"},"3715","Truck Trailers","3715"]
[null,null,null,null,{"$error":"#N/A"},"3716","Motor Homes","3716"]
[null,null,null,null,{"$error":"#N/A"},"3721","Aircraft","3721"]
[null,null,null,null,{"$error":"#N/A"},"3724","Aircraft Engines and Engine Parts","3724"]
[null,null,null,null,{"$error":"#N/A"},"3728","Aircraft Parts and Auxiliary Equipment, Not Elsewhere Classified","3728"]
[null,null,null,null,{"$error":"#N/A"},"3731","Ship Building and Repairing","3731"]
[null,null,null,null,{"$error":"#N/A"},"3732","Boat Building and Repairing","3732"]
[null,null,null,null,{"$error":"#N/A"},"3743","Railroad Equipment","3743"]
[null,null,null,null,{"$error":"#N/A"},"3751","Motorcycles, Bicycles, and Parts","3751"]
[null,null,null,null,{"$error":"#N/A"},"3761","Guided Missiles and Space Vehicles","3761"]
[null,null,null,null,{"$error":"#N/A"},"3764","Guided Missile and Space Vehicle Propulsion Units and Propulsion Unit Parts","3764"]
[null,null,null,null,{"$error":"#N/A"},"3769","Guided Missile Space Vehicle Parts and Auxiliary Equipment, Not Elsewhere Classified","3769"]
[null,null,null,null,{"$error":"#N/A"},"3792","Travel Trailers and Campers","3792"]
[null,null,null,null,{"$error":"#N/A"},"3795","Tanks and Tank Components","3795"]
[null,null,null,null,{"$error":"#N/A"},"3799","Transportation Equipment, Not Elsewhere Classified","3799"]
[null,null,null,null,{"$error":"#N/A"},"3812","Search, Detection, Navigation, Guidance, Aeronautical, and Nautical Systems and Instruments","3812"]
[null,null,null,null,{"$error":"#N/A"},"3821","Laboratory Apparatus and Furniture","3821"]
[null,null,null,null,{"$error":"#N/A"},"3822","Automatic Controls for Regulating Residential and Commercial Environments and Appliances","3822"]
[null,null,null,null,{"$error":"#N/A"},"3823","Industrial Instruments for Measurement, Display, and Control of Process Variables; and Related Products","3823"]
[null,null,null,null,{"$error":"#N/A"},"3824","Totalizing Fluid Meters and Counting Devices","3824"]
[null,null,null,null,{"$error":"#N/A"},"3825","Instruments for Measuring and Testing of Electricity and Electrical Signals","3825"]
[null,null,null,null,{"$error":"#N/A"},"3826","Laboratory Analytical Instruments","3826"]
[null,null,null,null,{"$error":"#N/A"},"3827","Optical Instruments and Lenses","3827"]
[null,null,null,null,{"$error":"#N/A"},"3829","Measuring and Controlling Devices, Not Elsewhere Classified","3829"]
[null,null,null,null,{"$error":"#N/A"},"3841","Surgical and Medical Instruments and Apparatus","3841"]
[null,null,null,null,{"$error":"#N/A"},"3842","Orthopedic, Prosthetic, and Surgical Appliances and Supplies","3842"]
[null,null,null,null,{"$error":"#N/A"},"3843","Dental Equipment and Supplies","3843"]
[null,null,null,null,{"$error":"#N/A"},"3844","X-Ray Apparatus and Tubes and Related Irradiation Apparatus","3844"]
[null,null,null,null,{"$error":"#N/A"},"3845","Electromedical and Electrotherapeutic Apparatus","3845"]
[null,null,null,null,{"$error":"#N/A"},"3851","Ophthalmic Goods","3851"]
[null,null,null,null,{"$error":"#N/A"},"3861","Photographic Equipment and Supplies","3861"]
[null,null,null,null,{"$error":"#N/A"},"3873","Watches, Clocks, Clockwork Operated Devices, and Parts","3873"]
[null,null,null,null,{"$error":"#N/A"},"3911","Jewelry, Precious Metal","3911"]
[null,null,null,null,{"$error":"#N/A"},"3914","Silverware, Plated Ware, and Stainless Steel Ware","3914"]
[null,null,null,null,{"$error":"#N/A"},"3915","Jewelers' Findings and Materials, and Lapidary Work","3915"]
[null,null,null,null,{"$error":"#N/A"},"3931","Musical Instruments","3931"]
[null,null,null,null,{"$error":"#N/A"},"3942","Dolls and Stuffed Toys","3942"]
[null,null,null,null,{"$error":"#N/A"},"3944","Games, Toys, and Children's Vehicles, Except Dolls and Bicycles","3944"]
[null,null,null,null,{"$error":"#N/A"},"3949","Sporting and Athletic Goods, Not Elsewhere Classified","3949"]
[null,null,null,null,{"$error":"#N/A"},"3951","Pens, Mechanical Pencils, and Parts","3951"]
[null,null,null,null,{"$error":"#N/A"},"3952","Lead Pencils, Crayons, and Artists' Materials","3952"]
[null,null,null,null,{"$error":"#N/A"},"3953","Marking Devices","3953"]
[null,null,null,null,{"$error":"#N/A"},"3955","Carbon Paper and Inked Ribbons","3955"]
[null,null,null,null,{"$f":"IF(LEFT(F536,2)=RIGHT(VLOOKUP($B$5,$B$23:$C$104,2,FALSE),2),\"Use\",\"\")","v":{"$error":"#N/A"}},"3961","Costume Jewelry and Costume Novelties, Except Precious Metal","3961"]
[null,null,null,null,{"$error":"#N/A"},"3965","Fasteners, Buttons, Needles, and Pins","3965"]
[null,null,null,null,{"$error":"#N/A"},"3991","Brooms and Brushes","3991"]
[null,null,null,null,{"$error":"#N/A"},"3993","Signs and Advertising Specialties","3993"]
[null,null,null,null,{"$error":"#N/A"},"3995","Burial Caskets","3995"]
[null,null,null,null,{"$error":"#N/A"},"3996","Linoleum, Asphalted-Felt-Base, and Other Hard Surface Floor Coverings, Not Elsewhere Classified","3996"]
[null,null,null,null,{"$error":"#N/A"},"3999","Manufacturing Industries, Not Elsewhere Classified","3999"]
[null,null,null,null,{"$error":"#N/A"},"4011","Railroads, Line-Haul Operating","4011"]
[null,null,null,null,{"$error":"#N/A"},"4013","Railroad Switching and Terminal Establishments","4013"]
[null,null,null,null,{"$error":"#N/A"},"4111","Local and Suburban Transit","4111"]
[null,null,null,null,{"$error":"#N/A"},"4119","Local Passenger Transportation, Not Elsewhere Classified","4119"]
[null,null,null,null,{"$error":"#N/A"},"4121","Taxicabs","4121"]
[null,null,null,null,{"$error":"#N/A"},"4131","Intercity and Rural Bus Transportation","4131"]
[null,null,null,null,{"$error":"#N/A"},"4141","Local Bus Charter Service","4141"]
[null,null,null,null,{"$error":"#N/A"},"4142","Bus Charter Service, Except Local","4142"]
[null,null,null,null,{"$error":"#N/A"},"4151","School Buses","4151"]
[null,null,null,null,{"$error":"#N/A"},"4173","Terminal and Service Facilities for Motor Vehicle Passenger Transportation","4173"]
[null,null,null,null,{"$error":"#N/A"},"4212","Local Trucking Without Storage","4212"]
[null,null,null,null,{"$error":"#N/A"},"4213","Trucking, Except Local","4213"]
[null,null,null,null,{"$error":"#N/A"},"4214","Local Trucking With Storage","4214"]
[null,null,null,null,{"$error":"#N/A"},"4215","Courier Services, Except by Air","4215"]
[null,null,null,null,{"$error":"#N/A"},"4221","Farm Product Warehousing and Storage","4221"]
[null,null,null,null,{"$error":"#N/A"},"4222","Refrigerated Warehousing and Storage","4222"]
[null,null,null,null,{"$error":"#N/A"},"4225","General Warehousing and Storage","4225"]
[null,null,null,null,{"$error":"#N/A"},"4226","Special Warehousing and Storage, Not Elsewhere Classified","4226"]
[null,null,null,null,{"$error":"#N/A"},"4231","Terminal and Joint Terminal Maintenance Facilities for Motor Freight Transportation","4231"]
[null,null,null,null,{"$error":"#N/A"},"4311","United States Postal Service","4311"]
[null,null,null,null,{"$error":"#N/A"},"4412","Deep Sea Foreign Transportation of Freight","4412"]
[null,null,null,null,{"$error":"#N/A"},"4424","Deep Sea Domestic Transportation of Freight","4424"]
[null,null,null,null,{"$error":"#N/A"},"4432","Freight Transportation on the Great Lakes—St. Lawrence Seaway","4432"]
[null,null,null,null,{"$error":"#N/A"},"4449","Water Transportation of Freight, Not Elsewhere Classified","4449"]
[null,null,null,null,{"$error":"#N/A"},"4481","Deep Sea Transportation of Passengers, Except by Ferry","4481"]
[null,null,null,null,{"$error":"#N/A"},"4482","Ferries","4482"]
[null,null,null,null,{"$error":"#N/A"},"4489","Water Transportation of Passengers, Not Elsewhere Classified","4489"]
[null,null,null,null,{"$error":"#N/A"},"4491","Marine Cargo Handling","4491"]
[null,null,null,null,{"$error":"#N/A"},"4492","Towing and Tugboat Services","4492"]
[null,null,null,null,{"$error":"#N/A"},"4493","Marinas","4493"]
[null,null,null,null,{"$error":"#N/A"},"4499","Water Transportation Services, Not Elsewhere Classified","4499"]
[null,null,null,null,{"$error":"#N/A"},"4512","Air Transportation, Scheduled","4512"]
[null,null,null,null,{"$error":"#N/A"},"4513","Air Courier Services","4513"]
[null,null,null,null,{"$error":"#N/A"},"4522","Air Transportation, Nonscheduled","4522"]
[null,null,null,null,{"$error":"#N/A"},"4581","Airports, Flying Fields, and Airport Terminal Services","4581"]
[null,null,null,null,{"$error":"#N/A"},"4612","Crude Petroleum Pipelines","4612"]
[null,null,null,null,{"$error":"#N/A"},"4613","Refined Petroleum Pipelines","4613"]
[null,null,null,null,{"$error":"#N/A"},"4619","Pipelines, Not Elsewhere Classified","4619"]
[null,null,null,null,{"$error":"#N/A"},"4724","Travel Agencies","4724"]
[null,null,null,null,{"$error":"#N/A"},"4725","Tour Operators","4725"]
[null,null,null,null,{"$error":"#N/A"},"4729","Arrangement of Passenger Transportation, Not Elsewhere Classified","4729"]
[null,null,null,null,{"$error":"#N/A"},"4731","Arrangement of Transportation of Freight and Cargo","4731"]
[null,null,null,null,{"$error":"#N/A"},"4741","Rental of Railroad Cars","4741"]
[null,null,null,null,{"$error":"#N/A"},"4783","Packing and Crating","4783"]
[null,null,null,null,{"$error":"#N/A"},"4785","Fixed Facilities and Inspection and Weighing Services for Motor Vehicle Transportation","4785"]
[null,null,null,null,{"$error":"#N/A"},"4789","Transportation Services, Not Elsewhere Classified","4789"]
[null,null,null,null,{"$error":"#N/A"},"4812","Radiotelephone Communications","4812"]
[null,null,null,null,{"$error":"#N/A"},"4813","Telephone Communications, Except Radiotelephone","4813"]
[null,null,null,null,{"$error":"#N/A"},"4822","Telegraph and Other Message Communications","4822"]
[null,null,null,null,{"$error":"#N/A"},"4832","Radio Broadcasting Stations","4832"]
[null,null,null,null,{"$error":"#N/A"},"4833","Television Broadcasting Stations","4833"]
[null,null,null,null,{"$error":"#N/A"},"4841","Cable and Other Pay Television Services","4841"]
[null,null,null,null,{"$error":"#N/A"},"4899","Communications Services, Not Elsewhere Classified","4899"]
[null,null,null,null,{"$error":"#N/A"},"4911","Electric Services","4911"]
[null,null,null,null,{"$error":"#N/A"},"4922","Natural Gas Transmission","4922"]
[null,null,null,null,{"$error":"#N/A"},"4923","Natural Gas Transmission and Distribution","4923"]
[null,null,null,null,{"$error":"#N/A"},"4924","Natural Gas Distribution","4924"]
[null,null,null,null,{"$f":"IF(LEFT(F600,2)=RIGHT(VLOOKUP($B$5,$B$23:$C$104,2,FALSE),2),\"Use\",\"\")","v":{"$error":"#N/A"}},"4925","Mixed, Manufactured, or Liquefied Petroleum Gas Production and/or","4925"]
[null,null,null,null,{"$error":"#N/A"},"4931","Electric and Other Services Combined","4931"]
[null,null,null,null,{"$error":"#N/A"},"4932","Gas and Other Services Combined","4932"]
[null,null,null,null,{"$error":"#N/A"},"4939","Combination Utilities, Not Elsewhere Classified","4939"]
[null,null,null,null,{"$error":"#N/A"},"4941","Water Supply","4941"]
[null,null,null,null,{"$error":"#N/A"},"4952","Sewerage Systems","4952"]
[null,null,null,null,{"$error":"#N/A"},"4953","Refuse Systems","4953"]
[null,null,null,null,{"$error":"#N/A"},"4959","Sanitary Services, Not Elsewhere Classified","4959"]
[null,null,null,null,{"$error":"#N/A"},"4961","Steam and Air-Conditioning Supply","4961"]
[null,null,null,null,{"$error":"#N/A"},"4971","Irrigation Systems","4971"]
[null,null,null,null,{"$error":"#N/A"},"5012","Automobiles and Other Motor Vehicles","5012"]
[null,null,null,null,{"$error":"#N/A"},"5013","Motor Vehicle Supplies and New Parts","5013"]
[null,null,null,null,{"$error":"#N/A"},"5014","Tires and Tubes","5014"]
[null,null,null,null,{"$error":"#N/A"},"5015","Motor Vehicle Parts, Used","5015"]
[null,null,null,null,{"$error":"#N/A"},"5021","Furniture","5021"]
[null,null,null,null,{"$error":"#N/A"},"5023","Home furnishings","5023"]
[null,null,null,null,{"$error":"#N/A"},"5031","Lumber, Plywood, Millwork, and Wood Panels","5031"]
[null,null,null,null,{"$error":"#N/A"},"5032","Brick, Stone, and Related Construction Materials","5032"]
[null,null,null,null,{"$error":"#N/A"},"5033","Roofing, Siding, and Insulation Materials","5033"]
[null,null,null,null,{"$error":"#N/A"},"5039","Construction Materials, Not Elsewhere Classified","5039"]
[null,null,null,null,{"$error":"#N/A"},"5043","Photographic Equipment and Supplies","5043"]
[null,null,null,null,{"$error":"#N/A"},"5044","Office Equipment","5044"]
[null,null,null,null,{"$error":"#N/A"},"5045","Computers and Computer Peripheral Equipment and Software","5045"]
[null,null,null,null,{"$error":"#N/A"},"5046","Commercial Equipment, Not Elsewhere Classified","5046"]
[null,null,null,null,{"$error":"#N/A"},"5047","Medical, Dental, and Hospital Equipment and Supplies","5047"]
[null,null,null,null,{"$error":"#N/A"},"5048","Ophthalmic Goods","5048"]
[null,null,null,null,{"$error":"#N/A"},"5049","Professional Equipment and Supplies, Not Elsewhere Classified","5049"]
[null,null,null,null,{"$error":"#N/A"},"5051","Metals Service Centers and Offices","5051"]
[null,null,null,null,{"$error":"#N/A"},"5052","Coal and Other Minerals and Ores","5052"]
[null,null,null,null,{"$error":"#N/A"},"5063","Electrical Apparatus and Equipment Wiring Supplies, and Construction Materials","5063"]
[null,null,null,null,{"$error":"#N/A"},"5064","Electrical Appliances, Television and Radio Sets","5064"]
[null,null,null,null,{"$error":"#N/A"},"5065","Electronic Parts and Equipment, Not Elsewhere Classified","5065"]
[null,null,null,null,{"$error":"#N/A"},"5072","Hardware","5072"]
[null,null,null,null,{"$error":"#N/A"},"5074","Plumbing and Heating Equipment and Supplies (Hydronics)","5074"]
[null,null,null,null,{"$error":"#N/A"},"5075","Warm Air Heating and Air-Conditioning Equipment and Supplies","5075"]
[null,null,null,null,{"$error":"#N/A"},"5078","Refrigeration Equipment and Supplies","5078"]
[null,null,null,null,{"$error":"#N/A"},"5082","Construction and Mining (Except Petroleum) Machinery and Equipment","5082"]
[null,null,null,null,{"$error":"#N/A"},"5083","Farm and Garden Machinery and Equipment","5083"]
[null,null,null,null,{"$error":"#N/A"},"5084","Industrial Machinery and Equipment","5084"]
[null,null,null,null,{"$error":"#N/A"},"5085","Industrial Supplies","5085"]
[null,null,null,null,{"$error":"#N/A"},"5087","Service Establishment Equipment and Supplies","5087"]
[null,null,null,null,{"$error":"#N/A"},"5088","Transportation Equipment and Supplies, Except Motor Vehicles","5088"]
[null,null,null,null,{"$error":"#N/A"},"5091","Sporting and Recreational Goods and Supplies","5091"]
[null,null,null,null,{"$error":"#N/A"},"5092","Toys and Hobby Goods and Supplies","5092"]
[null,null,null,null,{"$error":"#N/A"},"5093","Scrap and Waste Materials","5093"]
[null,null,null,null,{"$error":"#N/A"},"5094","Jewelry, Watches, Precious Stones, and Precious Metals","5094"]
[null,null,null,null,{"$error":"#N/A"},"5099","Durable Goods, Not Elsewhere Classified","5099"]
[null,null,null,null,{"$error":"#N/A"},"5111","Printing and Writing Paper","5111"]
[null,null,null,null,{"$error":"#N/A"},"5112","Stationery and Office Supplies","5112"]
[null,null,null,null,{"$error":"#N/A"},"5113","Industrial and Personal Service Paper","5113"]
[null,null,null,null,{"$error":"#N/A"},"5122","Drugs, Drug Proprietaries, and Druggists' Sundries","5122"]
[null,null,null,null,{"$error":"#N/A"},"5131","Piece Goods, Notions, and Other Dry Good","5131"]
[null,null,null,null,{"$error":"#N/A"},"5136","Men's and Boy's Clothing and Furnishings","5136"]
[null,null,null,null,{"$error":"#N/A"},"5137","Women's, Children's, and Infants' Clothing and Accessories","5137"]
[null,null,null,null,{"$error":"#N/A"},"5139","Footwear","5139"]
[null,null,null,null,{"$error":"#N/A"},"5141","Groceries, General Line","5141"]
[null,null,null,null,{"$error":"#N/A"},"5142","Packaged Frozen Foods","5142"]
[null,null,null,null,{"$error":"#N/A"},"5143","Dairy Products, Except Dried or Canned","5143"]
[null,null,null,null,{"$error":"#N/A"},"5144","Poultry and Poultry Products","5144"]
[null,null,null,null,{"$error":"#N/A"},"5145","Confectionery","5145"]
[null,null,null,null,{"$error":"#N/A"},"5146","Fish and Seafoods","5146"]
[null,null,null,null,{"$error":"#N/A"},"5147","Meats and Meat Products","5147"]
[null,null,null,null,{"$error":"#N/A"},"5148","Fresh Fruits and Vegetables","5148"]
[null,null,null,null,{"$error":"#N/A"},"5149","Groceries and Related Products, Not Elsewhere Classified","5149"]
[null,null,null,null,{"$f":"IF(LEFT(F664,2)=RIGHT(VLOOKUP($B$5,$B$23:$C$104,2,FALSE),2),\"Use\",\"\")","v":{"$error":"#N/A"}},"5153","Grain and Field Beans","5153"]
[null,null,null,null,{"$error":"#N/A"},"5154","Livestock","5154"]
[null,null,null,null,{"$error":"#N/A"},"5159","Farm-Product Raw Materials, Not Elsewhere Classified","5159"]
[null,null,null,null,{"$error":"#N/A"},"5162","Plastics Materials and Basic Forms and Shapes","5162"]
[null,null,null,null,{"$error":"#N/A"},"5169","Chemicals and Allied Products, Not Elsewhere Classified","5169"]
[null,null,null,null,{"$error":"#N/A"},"5171","Petroleum Bulk stations and Terminals","5171"]
[null,null,null,null,{"$error":"#N/A"},"5172","Petroleum and Petroleum Products Wholesalers, Except Bulk Stations and Terminals","5172"]
[null,null,null,null,{"$error":"#N/A"},"5181","Beer and Ale","5181"]
[null,null,null,null,{"$error":"#N/A"},"5182","Wine and Distilled Alcoholic Beverages","5182"]
[null,null,null,null,{"$error":"#N/A"},"5191","Farm Supplies","5191"]
[null,null,null,null,{"$error":"#N/A"},"5192","Books, Periodicals, and Newspapers","5192"]
[null,null,null,null,{"$error":"#N/A"},"5193","Flowers, Nursery Stock, and Florists' Supplies","5193"]
[null,null,null,null,{"$error":"#N/A"},"5194","Tobacco and Tobacco Products","5194"]
[null,null,null,null,{"$error":"#N/A"},"5198","Paints, Varnishes, and Supplies","5198"]
[null,null,null,null,{"$error":"#N/A"},"5199","Nondurable Goods, Not Elsewhere Classified","5199"]
[null,null,null,null,{"$error":"#N/A"},"5211","Lumber and Other Building Materials Dealers","5211"]
[null,null,null,null,{"$error":"#N/A"},"5231","Paint, Glass, and Wallpaper Stores","5231"]
[null,null,null,null,{"$error":"#N/A"},"5251","Hardware Stores","5251"]
[null,null,null,null,{"$error":"#N/A"},"5261","Retail Nurseries, Lawn and Garden Supply Stores","5261"]
[null,null,null,null,{"$error":"#N/A"},"5271","Mobile Home Dealers","5271"]
[null,null,null,null,{"$error":"#N/A"},"5311","Department Stores","5311"]
[null,null,null,null,{"$error":"#N/A"},"5331","Variety Stores","5331"]
[null,null,null,null,{"$error":"#N/A"},"5399","Miscellaneous General Merchandise Stores","5399"]
[null,null,null,null,{"$error":"#N/A"},"5411","Grocery Stores","5411"]
[null,null,null,null,{"$error":"#N/A"},"5421","Meat and Fish (Seafood) Markets, Including Freezer Provisioners","5421"]
[null,null,null,null,{"$error":"#N/A"},"5431","Fruit and Vegetable Markets","5431"]
[null,null,null,null,{"$error":"#N/A"},"5441","Candy, Nut, and Confectionery Stores","5441"]
[null,null,null,null,{"$error":"#N/A"},"5451","Dairy Products Stores","5451"]
[null,null,null,null,{"$error":"#N/A"},"5461","Retail Bakeries","5461"]
[null,null,null,null,{"$error":"#N/A"},"5499","Miscellaneous Food Stores","5499"]
[null,null,null,null,{"$error":"#N/A"},"5511","Motor Vehicle Dealers (New and Used)","5511"]
[null,null,null,null,{"$error":"#N/A"},"5521","Motor Vehicle Dealers (Used Only)","5521"]
[null,null,null,null,{"$error":"#N/A"},"5531","Auto and Home Supply Stores","5531"]
[null,null,null,null,{"$error":"#N/A"},"5541","Gasoline Service Stations","5541"]
[null,null,null,null,{"$error":"#N/A"},"5551","Boat Dealers","5551"]
[null,null,null,null,{"$error":"#N/A"},"5561","Recreational Vehicle Dealers","5561"]
[null,null,null,null,{"$error":"#N/A"},"5571","Motorcycle Dealers","5571"]
[null,null,null,null,{"$error":"#N/A"},"5599","Automotive Dealers, Not Elsewhere Classified","5599"]
[null,null,null,null,{"$error":"#N/A"},"5611","Men's and Boys' Clothing and Accessory Stores","5611"]
[null,null,null,null,{"$error":"#N/A"},"5621","Women's Clothing Stores","5621"]
[null,null,null,null,{"$error":"#N/A"},"5632","Women's Accessory and Specialty Stores","5632"]
[null,null,null,null,{"$error":"#N/A"},"5641","Children's and Infants' Wear Stores","5641"]
[null,null,null,null,{"$error":"#N/A"},"5651","Family Clothing Stores","5651"]
[null,null,null,null,{"$error":"#N/A"},"5661","Shoe Stores","5661"]
[null,null,null,null,{"$error":"#N/A"},"5699","Miscellaneous Apparel and Accessory Stores","5699"]
[null,null,null,null,{"$error":"#N/A"},"5712","Furniture Stores","5712"]
[null,null,null,null,{"$error":"#N/A"},"5713","Floor Covering Stores","5713"]
[null,null,null,null,{"$error":"#N/A"},"5714","Drapery, Curtain, and Upholstery Stores","5714"]
[null,null,null,null,{"$error":"#N/A"},"5719","Miscellaneous home furnishings Stores","5719"]
[null,null,null,null,{"$error":"#N/A"},"5722","Household Appliance Stores","5722"]
[null,null,null,null,{"$error":"#N/A"},"5731","Radio, Television, and Consumer Electronics Stores","5731"]
[null,null,null,null,{"$error":"#N/A"},"5734","Computer and Computer Software Stores","5734"]
[null,null,null,null,{"$error":"#N/A"},"5735","Record and Prerecorded Tape Stores","5735"]
[null,null,null,null,{"$error":"#N/A"},"5736","Musical Instrument Stores","5736"]
[null,null,null,null,{"$error":"#N/A"},"5812","Eating Places","5812"]
[null,null,null,null,{"$error":"#N/A"},"5813","Drinking Places (alcoholic Beverages)","5813"]
[null,null,null,null,{"$error":"#N/A"},"5912","Drug Stores and Proprietary Stores","5912"]
[null,null,null,null,{"$error":"#N/A"},"5921","Liquor Stores","5921"]
[null,null,null,null,{"$error":"#N/A"},"5932","Used Merchandise Stores","5932"]
[null,null,null,null,{"$error":"#N/A"},"5941","Sporting Goods Stores and Bicycle Shops","5941"]
[null,null,null,null,{"$error":"#N/A"},"5942","Book Stores","5942"]
[null,null,null,null,{"$error":"#N/A"},"5943","Stationery Stores","5943"]
[null,null,null,null,{"$error":"#N/A"},"5944","Jewelry Stores","5944"]
[null,null,null,null,{"$error":"#N/A"},"5945","Hobby, Toy, and Game Shops","5945"]
[null,null,null,null,{"$f":"IF(LEFT(F728,2)=RIGHT(VLOOKUP($B$5,$B$23:$C$104,2,FALSE),2),\"Use\",\"\")","v":{"$error":"#N/A"}},"5946","Camera and Photographic Supply Stores","5946"]
[null,null,null,null,{"$error":"#N/A"},"5947","Gift, Novelty, and Souvenir Shops","5947"]
[null,null,null,null,{"$error":"#N/A"},"5948","Luggage and Leather Goods Stores","5948"]
[null,null,null,null,{"$error":"#N/A"},"5949","Sewing, Needlework, and Piece Goods Stores","5949"]
[null,null,null,null,{"$error":"#N/A"},"5961","Catalog and Mail-Order Houses","5961"]
[null,null,null,null,{"$error":"#N/A"},"5962","Automatic Merchandising Machine Operators","5962"]
[null,null,null,null,{"$error":"#N/A"},"5963","Direct Selling Establishments","5963"]
[null,null,null,null,{"$error":"#N/A"},"5983","Fuel Oil Dealers","5983"]
[null,null,null,null,{"$error":"#N/A"},"5984","Liquefied Petroleum Gas (Bottled Gas) Dealers","5984"]
[null,null,null,null,{"$error":"#N/A"},"5989","Fuel Dealers, Not Elsewhere Classified","5989"]
[null,null,null,null,{"$error":"#N/A"},"5992","Florists","5992"]
[null,null,null,null,{"$error":"#N/A"},"5993","Tobacco Stores and Stands","5993"]
[null,null,null,null,{"$error":"#N/A"},"5994","News Dealers and Newsstands","5994"]
[null,null,null,null,{"$error":"#N/A"},"5995","Optical Goods Stores","5995"]
[null,null,null,null,{"$error":"#N/A"},"5999","Miscellaneous Retail Stores, Not Elsewhere Classified","5999"]
[null,null,null,null,{"$error":"#N/A"},"6011","Federal Reserve Banks","6011"]
[null,null,null,null,{"$error":"#N/A"},"6019","Central Reserve Depository Institutions, Not Elsewhere Classified","6019"]
[null,null,null,null,{"$error":"#N/A"},"6021","National Commercial Banks","6021"]
[null,null,null,null,{"$error":"#N/A"},"6022","State Commercial Banks","6022"]
[null,null,null,null,{"$error":"#N/A"},"6029","Commercial Banks, Not Elsewhere Classified","6029"]
[null,null,null,null,{"$error":"#N/A"},"6035","Savings Institutions, Federally Chartered","6035"]
[null,null,null,null,{"$error":"#N/A"},"6036","Savings Institutions, Not Federally Chartered","6036"]
[null,null,null,null,{"$error":"#N/A"},"6061","Credit Unions, Federally Chartered","6061"]
[null,null,null,null,{"$error":"#N/A"},"6062","Credit Unions, Not Federally Chartered","6062"]
[null,null,null,null,{"$error":"#N/A"},"6081","Branches and Agencies of Foreign Banks","6081"]
[null,null,null,null,{"$error":"#N/A"},"6082","Foreign Trade and International Banking Institutions","6082"]
[null,null,null,null,{"$error":"#N/A"},"6091","Non-deposit Trust Facilities,","6091"]
[null,null,null,null,{"$error":"#N/A"},"6099","Functions Related to Depository Banking, Not Elsewhere Classified","6099"]
[null,null,null,null,{"$error":"#N/A"},"6111","Federal and Federally-Sponsored Credit Agencies","6111"]
[null,null,null,null,{"$error":"#N/A"},"6141","Personal Credit Institutions","6141"]
[null,null,null,null,{"$error":"#N/A"},"6153","Short-Term Business Credit Institutions, Except Agricultural","6153"]
[null,null,null,null,{"$error":"#N/A"},"6159","Miscellaneous business Credit Institutions","6159"]
[null,null,null,null,{"$error":"#N/A"},"6162","Mortgage Bankers and Loan Correspondents","6162"]
[null,null,null,null,{"$error":"#N/A"},"6163","Loan Brokers","6163"]
[null,null,null,null,{"$error":"#N/A"},"6211","Security Brokers, Dealers, and Flotation Companies","6211"]
[null,null,null,null,{"$error":"#N/A"},"6221","Commodity Contracts Brokers and Dealers","6221"]
[null,null,null,null,{"$error":"#N/A"},"6231","Security and Commodity Exchanges","6231"]
[null,null,null,null,{"$error":"#N/A"},"6282","Investment Advice","6282"]
[null,null,null,null,{"$error":"#N/A"},"6289","Services Allied With the Exchange of Securities or Commodities, Not Elsewhere Classified","6289"]
[null,null,null,null,{"$error":"#N/A"},"6311","Life Insurance","6311"]
[null,null,null,null,{"$error":"#N/A"},"6321","Accident and Health Insurance","6321"]
[null,null,null,null,{"$error":"#N/A"},"6324","Hospital and Medical Service Plans","6324"]
[null,null,null,null,{"$error":"#N/A"},"6331","Fire, Marine, and Casualty Insurance","6331"]
[null,null,null,null,{"$error":"#N/A"},"6351","Surety Insurance","6351"]
[null,null,null,null,{"$error":"#N/A"},"6361","Title Insurance","6361"]
[null,null,null,null,{"$error":"#N/A"},"6371","Pension, Health, and Welfare Funds","6371"]
[null,null,null,null,{"$error":"#N/A"},"6399","Insurance Carriers, Not Elsewhere Classified","6399"]
[null,null,null,null,{"$error":"#N/A"},"6411","Insurance Agents, Brokers, and Service","6411"]
[null,null,null,null,{"$error":"#N/A"},"6512","Operators of Nonresidential Buildings","6512"]
[null,null,null,null,{"$error":"#N/A"},"6513","Operators of Apartment Buildings","6513"]
[null,null,null,null,{"$error":"#N/A"},"6514","Operators of Dwellings Other Than Apartment Buildings","6514"]
[null,null,null,null,{"$error":"#N/A"},"6515","Operators of Residential Mobile Home Sites","6515"]
[null,null,null,null,{"$error":"#N/A"},"6517","Lessors of Railroad Property","6517"]
[null,null,null,null,{"$error":"#N/A"},"6519","Lessors of Real Property, Not Elsewhere Classified","6519"]
[null,null,null,null,{"$error":"#N/A"},"6531","Real Estate Agents and Managers","6531"]
[null,null,null,null,{"$error":"#N/A"},"6541","Title Abstract Offices","6541"]
[null,null,null,null,{"$error":"#N/A"},"6552","Land Subdividers and Developers, Except Cemeteries","6552"]
[null,null,null,null,{"$error":"#N/A"},"6553","Cemetery Subdividers and Developers","6553"]
[null,null,null,null,{"$error":"#N/A"},"6712","Offices of Bank Holding Companies","6712"]
[null,null,null,null,{"$error":"#N/A"},"6719","Offices of Holding Companies, Not Elsewhere Classified","6719"]
[null,null,null,null,{"$error":"#N/A"},"6722","Management Investment Offices, Open-End","6722"]
[null,null,null,null,{"$error":"#N/A"},"6726","Unit Investment Trusts, Face-Amount Certificate Offices, and Closed-End Management Investment Offices","6726"]
[null,null,null,null,{"$error":"#N/A"},"6732","Educational, Religious, and Charitable Trusts","6732"]
[null,null,null,null,{"$error":"#N/A"},"6733","Trusts, Except Educational, Religious, and Charitable","6733"]
[null,null,null,null,{"$f":"IF(LEFT(F792,2)=RIGHT(VLOOKUP($B$5,$B$23:$C$104,2,FALSE),2),\"Use\",\"\")","v":{"$error":"#N/A"}},"6792","Oil Royalty Traders","6792"]
[null,null,null,null,{"$error":"#N/A"},"6794","Patent Owners and Lessors","6794"]
[null,null,null,null,{"$error":"#N/A"},"6798","Real Estate Investment Trusts","6798"]
[null,null,null,null,{"$error":"#N/A"},"6799","Investors, Not Elsewhere Classified","6799"]
[null,null,null,null,{"$error":"#N/A"},"7011","Hotels and Motels","7011"]
[null,null,null,null,{"$error":"#N/A"},"7021","Rooming and Boarding Houses","7021"]
[null,null,null,null,{"$error":"#N/A"},"7032","Sporting and Recreational Camps","7032"]
[null,null,null,null,{"$error":"#N/A"},"7033","Recreational Vehicle Parks and Campsites","7033"]
[null,null,null,null,{"$error":"#N/A"},"7041","Organization Hotels and Lodging Houses, on Membership Basis","7041"]
[null,null,null,null,{"$error":"#N/A"},"7211","Power Laundries, Family and Commercial","7211"]
[null,null,null,null,{"$error":"#N/A"},"7212","Garment Pressing, and Agents for Laundries and Drycleaners","7212"]
[null,null,null,null,{"$error":"#N/A"},"7213","Linen Supply","7213"]
[null,null,null,null,{"$error":"#N/A"},"7215","Coin-Operated Laundries and Drycleaning","7215"]
[null,null,null,null,{"$error":"#N/A"},"7216","Drycleaning Plants, Except Rug Cleaning","7216"]
[null,null,null,null,{"$error":"#N/A"},"7217","Carpet and Upholstery Cleaning","7217"]
[null,null,null,null,{"$error":"#N/A"},"7218","Industrial Launderers","7218"]
[null,null,null,null,{"$error":"#N/A"},"7219","Laundry and Garment Services, Not Elsewhere Classified","7219"]
[null,null,null,null,{"$error":"#N/A"},"7221","Photographic Studios, Portrait","7221"]
[null,null,null,null,{"$error":"#N/A"},"7231","Beauty Shops","7231"]
[null,null,null,null,{"$error":"#N/A"},"7241","Barber Shops","7241"]
[null,null,null,null,{"$error":"#N/A"},"7251","Shoe Repair Shops and Shoeshine Parlors","7251"]
[null,null,null,null,{"$error":"#N/A"},"7261","Funeral Service and Crematories","7261"]
[null,null,null,null,{"$error":"#N/A"},"7291","Tax Return Preparation Services","7291"]
[null,null,null,null,{"$error":"#N/A"},"7299","Miscellaneous Personal Services, Not Elsewhere Classified","7299"]
[null,null,null,null,{"$error":"#N/A"},"7311","Advertising Agencies","7311"]
[null,null,null,null,{"$error":"#N/A"},"7312","Outdoor Advertising Services","7312"]
[null,null,null,null,{"$error":"#N/A"},"7313","Radio, Television, and Publishers' Advertising Representatives","7313"]
[null,null,null,null,{"$error":"#N/A"},"7319","Advertising, Not Elsewhere Classified","7319"]
[null,null,null,null,{"$error":"#N/A"},"7322","Adjustment and Collection Services","7322"]
[null,null,null,null,{"$error":"#N/A"},"7323","Credit Reporting Services","7323"]
[null,null,null,null,{"$error":"#N/A"},"7331","Direct Mail Advertising Services","7331"]
[null,null,null,null,{"$error":"#N/A"},"7334","Photocopying and Duplicating Services","7334"]
[null,null,null,null,{"$error":"#N/A"},"7335","Commercial Photography","7335"]
[null,null,null,null,{"$error":"#N/A"},"7336","Commercial Art and Graphic Design","7336"]
[null,null,null,null,{"$error":"#N/A"},"7338","Secretarial and Court Reporting Services","7338"]
[null,null,null,null,{"$error":"#N/A"},"7342","Disinfecting and Pest Control Services","7342"]
[null,null,null,null,{"$error":"#N/A"},"7349","Building Cleaning and Maintenance Services, Not Elsewhere","7349"]
[null,null,null,null,{"$error":"#N/A"},"7352","Medical Equipment Rental and Leasing","7352"]
[null,null,null,null,{"$error":"#N/A"},"7353","Heavy Construction Equipment Rental and Leasing","7353"]
[null,null,null,null,{"$error":"#N/A"},"7359","Equipment Rental and Leasing, Not Elsewhere Classified","7359"]
[null,null,null,null,{"$error":"#N/A"},"7361","Employment Agencies","7361"]
[null,null,null,null,{"$error":"#N/A"},"7363","Help Supply Services","7363"]
[null,null,null,null,{"$error":"#N/A"},"7371","Computer Programming Services","7371"]
[null,null,null,null,{"$error":"#N/A"},"7372","Prepackaged Software","7372"]
[null,null,null,null,{"$error":"#N/A"},"7373","Computer Integrated Systems Design","7373"]
[null,null,null,null,{"$error":"#N/A"},"7374","Computer Processing and Data Preparation and Processing Services","7374"]
[null,null,null,null,{"$error":"#N/A"},"7375","Information Retrieval Services","7375"]
[null,null,null,null,{"$error":"#N/A"},"7376","Computer Facilities Management Services","7376"]
[null,null,null,null,{"$error":"#N/A"},"7377","Computer Rental and Leasing","7377"]
[null,null,null,null,{"$error":"#N/A"},"7378","Computer Maintenance and Repair","7378"]
[null,null,null,null,{"$error":"#N/A"},"7379","Computer Related Services, Not Elsewhere Classified","7379"]
[null,null,null,null,{"$error":"#N/A"},"7381","Detective, Guard, and Armored Car Services","7381"]
[null,null,null,null,{"$error":"#N/A"},"7382","Security Systems Services","7382"]
[null,null,null,null,{"$error":"#N/A"},"7383","News Syndicates","7383"]
[null,null,null,null,{"$error":"#N/A"},"7384","Photofinishing Laboratories","7384"]
[null,null,null,null,{"$error":"#N/A"},"7389","Business Services, Not Elsewhere Classified","7389"]
[null,null,null,null,{"$error":"#N/A"},"7513","Truck Rental and Leasing, Without Drivers","7513"]
[null,null,null,null,{"$error":"#N/A"},"7514","Passenger Car Rental","7514"]
[null,null,null,null,{"$error":"#N/A"},"7515","Passenger Car Leasing","7515"]
[null,null,null,null,{"$error":"#N/A"},"7519","Utility Trailer and Recreational Vehicle Rental","7519"]
[null,null,null,null,{"$error":"#N/A"},"7521","Automobile Parking","7521"]
[null,null,null,null,{"$error":"#N/A"},"7532","Top, Body, and Upholstery Repair Shops and Paint Shops","7532"]
[null,null,null,null,{"$error":"#N/A"},"7533","Automotive Exhaust System Repair Shops","7533"]
[null,null,null,null,{"$error":"#N/A"},"7534","Tire Retreading and Repair Shops","7534"]
[null,null,null,null,{"$f":"IF(LEFT(F856,2)=RIGHT(VLOOKUP($B$5,$B$23:$C$104,2,FALSE),2),\"Use\",\"\")","v":{"$error":"#N/A"}},"7536","Automotive Glass Replacement Shops","7536"]
[null,null,null,null,{"$error":"#N/A"},"7537","Automotive Transmission Repair Shops","7537"]
[null,null,null,null,{"$error":"#N/A"},"7538","General Automotive Repair Shops","7538"]
[null,null,null,null,{"$error":"#N/A"},"7539","Automotive Repair Shops, Not Elsewhere Classified","7539"]
[null,null,null,null,{"$error":"#N/A"},"7542","Carwashes","7542"]
[null,null,null,null,{"$error":"#N/A"},"7549","Automotive Services, Except Repair and Carwashes","7549"]
[null,null,null,null,{"$error":"#N/A"},"7622","Radio and Television Repair Shops","7622"]
[null,null,null,null,{"$error":"#N/A"},"7623","Refrigeration and Air-Conditioning Service and Repair Shops","7623"]
[null,null,null,null,{"$error":"#N/A"},"7629","Electrical and Electronic Repair Shops, Not Elsewhere Classified","7629"]
[null,null,null,null,{"$error":"#N/A"},"7631","Watch, Clock, and Jewelry Repair","7631"]
[null,null,null,null,{"$error":"#N/A"},"7641","Reupholstery and Furniture Repair","7641"]
[null,null,null,null,{"$error":"#N/A"},"7692","Welding Repair","7692"]
[null,null,null,null,{"$error":"#N/A"},"7694","Armature Rewinding Shops","7694"]
[null,null,null,null,{"$error":"#N/A"},"7699","Repair Shops and Related Services, Not Elsewhere Classified","7699"]
[null,null,null,null,{"$error":"#N/A"},"7812","Motion Picture and Video Tape Production","7812"]
[null,null,null,null,{"$error":"#N/A"},"7819","Services Allied to Motion Picture Production","7819"]
[null,null,null,null,{"$error":"#N/A"},"7822","Motion Picture and Video Tape Distribution","7822"]
[null,null,null,null,{"$error":"#N/A"},"7829","Services Allied to Motion Picture Distribution","7829"]
[null,null,null,null,{"$error":"#N/A"},"7832","Motion Picture Theaters, Except Drive-In","7832"]
[null,null,null,null,{"$error":"#N/A"},"7833","Drive-In Motion Picture Theaters","7833"]
[null,null,null,null,{"$error":"#N/A"},"7841","Video Tape Rental","7841"]
[null,null,null,null,{"$error":"#N/A"},"7911","Dance Studios, Schools, and Halls","7911"]
[null,null,null,null,{"$error":"#N/A"},"7922","Theatrical Producers (Except Motion Picture) and Miscellaneous Theatrical Services","7922"]
[null,null,null,null,{"$error":"#N/A"},"7929","Bands, Orchestras, Actors, and Other Entertainers and Entertainment Groups","7929"]
[null,null,null,null,{"$error":"#N/A"},"7933","Bowling Centers","7933"]
[null,null,null,null,{"$error":"#N/A"},"7941","Professional Sports Clubs and Promoters","7941"]
[null,null,null,null,{"$error":"#N/A"},"7948","Racing, Including Track Operation","7948"]
[null,null,null,null,{"$error":"#N/A"},"7991","Physical Fitness Facilities","7991"]
[null,null,null,null,{"$error":"#N/A"},"7992","Public Golf Courses","7992"]
[null,null,null,null,{"$error":"#N/A"},"7993","Coin-Operated Amusement Devices","7993"]
[null,null,null,null,{"$error":"#N/A"},"7996","Amusement Parks","7996"]
[null,null,null,null,{"$error":"#N/A"},"7997","Membership Sports and Recreation Clubs","7997"]
[null,null,null,null,{"$error":"#N/A"},"7999","Amusement and Recreation Services, Not Elsewhere Classified","7999"]
[null,null,null,null,{"$error":"#N/A"},"8011","Offices and Clinics of Doctors of Medicine","8011"]
[null,null,null,null,{"$error":"#N/A"},"8021","Offices and Clinics of Dentists","8021"]
[null,null,null,null,{"$error":"#N/A"},"8031","Offices and Clinics of Doctors of Osteopathy","8031"]
[null,null,null,null,{"$error":"#N/A"},"8041","Offices and Clinics of Chiropractors","8041"]
[null,null,null,null,{"$error":"#N/A"},"8042","Offices and Clinics of Optometrists","8042"]
[null,null,null,null,{"$error":"#N/A"},"8043","Offices and Clinics of Podiatrists","8043"]
[null,null,null,null,{"$error":"#N/A"},"8049","Offices and Clinics of Health Practitioners, Not Elsewhere Classified","8049"]
[null,null,null,null,{"$error":"#N/A"},"8051","Skilled Nursing Care Facilities","8051"]
[null,null,null,null,{"$error":"#N/A"},"8052","Intermediate Care Facilities","8052"]
[null,null,null,null,{"$error":"#N/A"},"8059","Nursing and Personal Care Facilities, Not Elsewhere Classified","8059"]
[null,null,null,null,{"$error":"#N/A"},"8062","General Medical and Surgical Hospitals","8062"]
[null,null,null,null,{"$error":"#N/A"},"8063","Psychiatric Hospitals","8063"]
[null,null,null,null,{"$error":"#N/A"},"8069","Specialty Hospitals, Except Psychiatric","8069"]
[null,null,null,null,{"$error":"#N/A"},"8071","Medical Laboratories","8071"]
[null,null,null,null,{"$error":"#N/A"},"8072","Dental Laboratories","8072"]
[null,null,null,null,{"$error":"#N/A"},"8082","Home Health Care Services","8082"]
[null,null,null,null,{"$error":"#N/A"},"8092","Kidney Dialysis Centers","8092"]
[null,null,null,null,{"$error":"#N/A"},"8093","Specialty Outpatient Facilities, Not Elsewhere Classified","8093"]
[null,null,null,null,{"$error":"#N/A"},"8099","Health and Allied Services, Not Elsewhere Classified","8099"]
[null,null,null,null,{"$error":"#N/A"},"8111","Legal Services","8111"]
[null,null,null,null,{"$error":"#N/A"},"8211","Elementary and Secondary Schools","8211"]
[null,null,null,null,{"$error":"#N/A"},"8221","Colleges, Universities, and Professional Schools","8221"]
[null,null,null,null,{"$error":"#N/A"},"8222","Junior Colleges and Technical Institutes","8222"]
[null,null,null,null,{"$error":"#N/A"},"8231","Libraries","8231"]
[null,null,null,null,{"$error":"#N/A"},"8243","Data Processing Schools","8243"]
[null,null,null,null,{"$error":"#N/A"},"8244","Business and Secretarial Schools","8244"]
[null,null,null,null,{"$error":"#N/A"},"8249","Vocational Schools, Not Elsewhere Classified","8249"]
[null,null,null,null,{"$error":"#N/A"},"8299","Schools and Educational Services, Not Elsewhere Classified","8299"]
[null,null,null,null,{"$error":"#N/A"},"8322","Individual and Family Social Services","8322"]
[null,null,null,null,{"$error":"#N/A"},"8331","Job Training and Vocational Rehabilitation Services","8331"]
[null,null,null,null,{"$error":"#N/A"},"8351","Child Day Care Services","8351"]
[null,null,null,null,{"$f":"IF(LEFT(F920,2)=RIGHT(VLOOKUP($B$5,$B$23:$C$104,2,FALSE),2),\"Use\",\"\")","v":{"$error":"#N/A"}},"8361","Residential Care","8361"]
[null,null,null,null,{"$error":"#N/A"},"8399","Social Services, Not Elsewhere Classified","8399"]
[null,null,null,null,{"$error":"#N/A"},"8412","Museums and Art Galleries","8412"]
[null,null,null,null,{"$error":"#N/A"},"8422","Arboreta and Botanical or Zoological Gardens","8422"]
[null,null,null,null,{"$error":"#N/A"},"8611","Business Associations","8611"]
[null,null,null,null,{"$error":"#N/A"},"8621","Professional Membership Organizations","8621"]
[null,null,null,null,{"$error":"#N/A"},"8631","Labor Unions and Similar Labor Organizations","8631"]
[null,null,null,null,{"$error":"#N/A"},"8641","Civic, Social, and Fraternal Associations","8641"]
[null,null,null,null,{"$error":"#N/A"},"8651","Political Organizations","8651"]
[null,null,null,null,{"$error":"#N/A"},"8661","Religious Organizations","8661"]
[null,null,null,null,{"$error":"#N/A"},"8699","Membership Organizations, Not Elsewhere Classified","8699"]
[null,null,null,null,{"$error":"#N/A"},"8711","Engineering Services","8711"]
[null,null,null,null,{"$error":"#N/A"},"8712","Architectural Services","8712"]
[null,null,null,null,{"$error":"#N/A"},"8713","Surveying Services","8713"]
[null,null,null,null,{"$error":"#N/A"},"8721","Accounting, Auditing, and Bookkeeping Services","8721"]
[null,null,null,null,{"$error":"#N/A"},"8731","Commercial Physical and Biological Research","8731"]
[null,null,null,null,{"$error":"#N/A"},"8732","Commercial Economic, Sociological, and Educational Research","8732"]
[null,null,null,null,{"$error":"#N/A"},"8733","Noncommercial Research Organizations","8733"]
[null,null,null,null,{"$error":"#N/A"},"8734","Testing Laboratories","8734"]
[null,null,null,null,{"$error":"#N/A"},"8741","Management Services","8741"]
[null,null,null,null,{"$error":"#N/A"},"8742","Management Consulting Services","8742"]
[null,null,null,null,{"$error":"#N/A"},"8743","Public Relations Services","8743"]
[null,null,null,null,{"$error":"#N/A"},"8744","Facilities Support Management Services","8744"]
[null,null,null,null,{"$error":"#N/A"},"8748","Business Consulting Services, Not Elsewhere Classified","8748"]
[null,null,null,null,{"$error":"#N/A"},"8999","Services, Not Elsewhere Classified","8999"]
[null,null,null,null,{"$error":"#N/A"},"9111","Executive Offices","9111"]
[null,null,null,null,{"$error":"#N/A"},"9121","Legislative Bodies","9121"]
[null,null,null,null,{"$error":"#N/A"},"9131","Executive and Legislative Offices Combined","9131"]
[null,null,null,null,{"$error":"#N/A"},"9199","General Government, Not Elsewhere Classified","9199"]
[null,null,null,null,{"$error":"#N/A"},"9211","Courts","9211"]
[null,null,null,null,{"$error":"#N/A"},"9221","Police Protection","9221"]
[null,null,null,null,{"$error":"#N/A"},"9222","Legal Counsel and Prosecution","9222"]
[null,null,null,null,{"$error":"#N/A"},"9223","Correctional Institutions","9223"]
[null,null,null,null,{"$error":"#N/A"},"9224","Fire Protection","9224"]
[null,null,null,null,{"$error":"#N/A"},"9229","Public Order and Safety, Not Elsewhere Classified","9229"]
[null,null,null,null,{"$error":"#N/A"},"9311","Public Finance, Taxation, and Monetary Policy","9311"]
[null,null,null,null,{"$error":"#N/A"},"9411","Administration of Educational Programs","9411"]
[null,null,null,null,{"$error":"#N/A"},"9431","Administration of Public Health Programs","9431"]
[null,null,null,null,{"$error":"#N/A"},"9441","Administration of Social, Human Resource and Income Maintenance Programs","9441"]
[null,null,null,null,{"$error":"#N/A"},"9451","Administration of Veterans' Affairs, Except Health and Insurance","9451"]
[null,null,null,null,{"$error":"#N/A"},"9511","Air and Water Resource and Solid Waste Management","9511"]
[null,null,null,null,{"$error":"#N/A"},"9512","Land, Mineral, Wildlife, and Forest Conservation","9512"]
[null,null,null,null,{"$error":"#N/A"},"9531","Administration of Housing Programs","9531"]
[null,null,null,null,{"$error":"#N/A"},"9532","Administration of Urban Planning and Community and Rural Development","9532"]
[null,null,null,null,{"$error":"#N/A"},"9611","Administration of General Economic Programs","9611"]
[null,null,null,null,{"$error":"#N/A"},"9621","Regulation and Administration of Transportation Programs","9621"]
[null,null,null,null,{"$error":"#N/A"},"9631","Regulation and Administration of Communications, Electric, Gas, and Other Utilities","9631"]
[null,null,null,null,{"$error":"#N/A"},"9641","Regulation of Agricultural Marketing and Commodities","9641"]
[null,null,null,null,{"$error":"#N/A"},"9651","Regulation, Licensing, and Inspection of Miscellaneous Commercial Sectors","9651"]
[null,null,null,null,{"$error":"#N/A"},"9661","Space and Research and Technology","9661"]
[null,null,null,null,{"$error":"#N/A"},"9711","National Security","9711"]
[null,null,null,null,{"$error":"#N/A"},"9721","International Affairs","9721"]
[null,null,null,null,{"$error":"#N/A"},"9999","Nonclassifiable Establishments","9999"]
[null,null,null,null,{"$error":"#N/A"}]

{"sheet":"ListValues","index":12,"n_rows":201,"n_cols":19,"rows_kept":201,"cut":false,"hidden":true,"merged":[]}
["Platinum Full PPO 0/0 OffEx",null,{"$f":"LOOKUP(\"zzzzz\",CHOOSE({1,2},\"\",INDEX(E:E,SMALL(IF($E$1:$E$62<>\"\",ROW($E$1:$E$62)),ROWS($C$1:C1)))))","v":""},null,{"$f":"IF(MGA!C88=\"\",\"\",MGA!C88)","v":""},"Full",{"$f":"LEN(H1)","v":0},{"$f":"IF(C2=\"\",C1,C1&\";\")","v":""},null,"Off_Exchange","Silver Full PPO Savings 2000/20% OffEx",{"$f":"IF(OR(MGA!$C$88:$C$101=A1),A1,\"\")","v":""},{"$f":"IF(ROWS(M$1:M1)<=O$1,INDEX(A$1:A$14,SMALL(IF(L$1:L$14=\"\",ROW(L$1:L$14)-ROW(L$1)+1),ROWS(M$1:M1))),\"\")","v":"Platinum Full PPO 0/0 OffEx"},null,{"$f":"COUNTBLANK(L1:L14)","v":14},{"$f":"ROW()","v":1},{"$f":"OFFSET(ListValues!$M$1,0,0,ListValues!$O$1)","v":"Platinum Full PPO 0/0 OffEx"}]
["Platinum Full PPO 0/10 OffEx",null,{"$f":"LOOKUP(\"zzzzz\",CHOOSE({1,2},\"\",INDEX(E:E,SMALL(IF($E$1:$E$62<>\"\",ROW($E$1:$E$62)),ROWS($C$1:C2)))))","v":""},null,{"$f":"IF(MGA!C89=\"\",\"\",MGA!C89)","v":""},"Full",{"$f":"LEN(H2)","v":0},{"$f":"IF(C3=\"\",H1&C2,H1&C2&\";\")","v":""},null,null,null,{"$f":"IF(OR(MGA!$C$88:$C$101=A2),A2,\"\")","v":""},{"$f":"IF(ROWS(M$1:M2)<=O$1,INDEX(A$1:A$14,SMALL(IF(L$1:L$14=\"\",ROW(L$1:L$14)-ROW(L$1)+1),ROWS(M$1:M2))),\"\")","v":"Platinum Full PPO 0/10 OffEx"}]
["Platinum Full PPO 250/10 OffEx",null,{"$f":"LOOKUP(\"zzzzz\",CHOOSE({1,2},\"\",INDEX(E:E,SMALL(IF($E$1:$E$62<>\"\",ROW($E$1:$E$62)),ROWS($C$1:C3)))))","v":""},null,{"$f":"IF(MGA!C90=\"\",\"\",MGA!C90)","v":""},"Full",{"$f":"LEN(H3)","v":0},{"$f":"IF(C4=\"\",H2&C3,H2&C3&\";\")","v":""},null,null,null,{"$f":"IF(OR(MGA!$C$88:$C$101=A3),A3,\"\")","v":""},{"$f":"IF(ROWS(M$1:M3)<=O$1,INDEX(A$1:A$14,SMALL(IF(L$1:L$14=\"\",ROW(L$1:L$14)-ROW(L$1)+1),ROWS(M$1:M3))),\"\")","v":"Platinum Full PPO 250/10 OffEx"}]
["Platinum Full PPO 250/15 OffEx",null,{"$f":"LOOKUP(\"zzzzz\",CHOOSE({1,2},\"\",INDEX(E:E,SMALL(IF($E$1:$E$62<>\"\",ROW($E$1:$E$62)),ROWS($C$1:C4)))))","v":""},null,{"$f":"IF(MGA!C91=\"\",\"\",MGA!C91)","v":""},"Full",{"$f":"LEN(H4)","v":0},"",null,null,null,{"$f":"IF(OR(MGA!$C$88:$C$101=A4),A4,\"\")","v":""},{"$f":"IF(ROWS(M$1:M4)<=O$1,INDEX(A$1:A$14,SMALL(IF(L$1:L$14=\"\",ROW(L$1:L$14)-ROW(L$1)+1),ROWS(M$1:M4))),\"\")","v":"Platinum Full PPO 250/15 OffEx"}]
["Gold Full PPO 0/25 OffEx",null,{"$f":"LOOKUP(\"zzzzz\",CHOOSE({1,2},\"\",INDEX(E:E,SMALL(IF($E$1:$E$62<>\"\",ROW($E$1:$E$62)),ROWS($C$1:C5)))))","v":""},null,{"$f":"IF(MGA!C92=\"\",\"\",MGA!C92)","v":""},"Full",0,"",null,null,null,{"$f":"IF(OR(MGA!$C$88:$C$101=A5),A5,\"\")","v":""},{"$f":"IF(ROWS(M$1:M5)<=O$1,INDEX(A$1:A$14,SMALL(IF(L$1:L$14=\"\",ROW(L$1:L$14)-ROW(L$1)+1),ROWS(M$1:M5))),\"\")","v":"Gold Full PPO 0/25 OffEx"}]
["Gold Full PPO 500/30 OffEx",null,{"$f":"LOOKUP(\"zzzzz\",CHOOSE({1,2},\"\",INDEX(E:E,SMALL(IF($E$1:$E$62<>\"\",ROW($E$1:$E$62)),ROWS($C$1:C6)))))","v":""},null,{"$f":"IF(MGA!C93=\"\",\"\",MGA!C93)","v":""},"Full",0,"",null,null,null,{"$f":"IF(OR(MGA!$C$88:$C$101=A6),A6,\"\")","v":""},{"$f":"IF(ROWS(M$1:M6)<=O$1,INDEX(A$1:A$14,SMALL(IF(L$1:L$14=\"\",ROW(L$1:L$14)-ROW(L$1)+1),ROWS(M$1:M6))),\"\")","v":"Gold Full PPO 500/30 OffEx"}]
["Gold Full PPO 750/30 OffEx",null,{"$f":"LOOKUP(\"zzzzz\",CHOOSE({1,2},\"\",INDEX(E:E,SMALL(IF($E$1:$E$62<>\"\",ROW($E$1:$E$62)),ROWS($C$1:C7)))))","v":""},null,{"$f":"IF(MGA!C94=\"\",\"\",MGA!C94)","v":""},"Full",0,"",null,null,null,{"$f":"IF(OR(MGA!$C$88:$C$101=A7),A7,\"\")","v":""},{"$f":"IF(ROWS(M$1:M7)<=O$1,INDEX(A$1:A$14,SMALL(IF(L$1:L$14=\"\",ROW(L$1:L$14)-ROW(L$1)+1),ROWS(M$1:M7))),\"\")","v":"Gold Full PPO 750/30 OffEx"}]
["Gold Full PPO 1200/35 OffEx",null,{"$f":"LOOKUP(\"zzzzz\",CHOOSE({1,2},\"\",INDEX(E:E,SMALL(IF($E$1:$E$62<>\"\",ROW($E$1:$E$62)),ROWS($C$1:C8)))))","v":""},null,{"$f":"IF(MGA!C95=\"\",\"\",MGA!C95)","v":""},"Full",0,"",null,null,null,{"$f":"IF(OR(MGA!$C$88:$C$101=A8),A8,\"\")","v":""},{"$f":"IF(ROWS(M$1:M8)<=O$1,INDEX(A$1:A$14,SMALL(IF(L$1:L$14=\"\",ROW(L$1:L$14)-ROW(L$1)+1),ROWS(M$1:M8))),\"\")","v":"Gold Full PPO 1200/35 OffEx"}]
["Silver Full PPO 1950/50 OffEx",null,{"$f":"LOOKUP(\"zzzzz\",CHOOSE({1,2},\"\",INDEX(E:E,SMALL(IF($E$1:$E$62<>\"\",ROW($E$1:$E$62)),ROWS($C$1:C9)))))","v":""},null,{"$f":"IF(MGA!C96=\"\",\"\",MGA!C96)","v":""},"Full",0,"",null,null,null,{"$f":"IF(OR(MGA!$C$88:$C$101=A9),A9,\"\")","v":""},{"$f":"IF(ROWS(M$1:M9)<=O$1,INDEX(A$1:A$14,SMALL(IF(L$1:L$14=\"\",ROW(L$1:L$14)-ROW(L$1)+1),ROWS(M$1:M9))),\"\")","v":"Silver Full PPO 1950/50 OffEx"}]
["Silver Full PPO 2225/50 OffEx",null,{"$f":"LOOKUP(\"zzzzz\",CHOOSE({1,2},\"\",INDEX(E:E,SMALL(IF($E$1:$E$62<>\"\",ROW($E$1:$E$62)),ROWS($C$1:C10)))))","v":""},null,{"$f":"IF(MGA!C97=\"\",\"\",MGA!C97)","v":""},"Full",{"$f":"LEN(H10)","v":0},"",null,null,null,{"$f":"IF(OR(MGA!$C$88:$C$101=A10),A10,\"\")","v":""},{"$f":"IF(ROWS(M$1:M10)<=O$1,INDEX(A$1:A$14,SMALL(IF(L$1:L$14=\"\",ROW(L$1:L$14)-ROW(L$1)+1),ROWS(M$1:M10))),\"\")","v":"Silver Full PPO 2225/50 OffEx"}]
["Silver Full PPO 2400/55 OffEx",null,{"$f":"LOOKUP(\"zzzzz\",CHOOSE({1,2},\"\",INDEX(E:E,SMALL(IF($E$1:$E$62<>\"\",ROW($E$1:$E$62)),ROWS($C$1:C11)))))","v":""},null,{"$f":"IF(MGA!C98=\"\",\"\",MGA!C98)","v":""},"Full",0,"",null,null,null,{"$f":"IF(OR(MGA!$C$88:$C$101=A11),A11,\"\")","v":""},{"$f":"IF(ROWS(M$1:M11)<=O$1,INDEX(A$1:A$14,SMALL(IF(L$1:L$14=\"\",ROW(L$1:L$14)-ROW(L$1)+1),ROWS(M$1:M11))),\"\")","v":"Silver Full PPO 2400/55 OffEx"}]
["Bronze Full PPO 6250/70 OffEx",null,{"$f":"LOOKUP(\"zzzzz\",CHOOSE({1,2},\"\",INDEX(E:E,SMALL(IF($E$1:$E$62<>\"\",ROW($E$1:$E$62)),ROWS($C$1:C12)))))","v":""},null,{"$f":"IF(MGA!C99=\"\",\"\",MGA!C99)","v":""},"Full",0,"",null,null,null,{"$f":"IF(OR(MGA!$C$88:$C$101=A12),A12,\"\")","v":""},{"$f":"IF(ROWS(M$1:M12)<=O$1,INDEX(A$1:A$14,SMALL(IF(L$1:L$14=\"\",ROW(L$1:L$14)-ROW(L$1)+1),ROWS(M$1:M12))),\"\")","v":"Bronze Full PPO 6250/70 OffEx"}]
["Bronze Full PPO 7500/50 OffEx",null,{"$f":"LOOKUP(\"zzzzz\",CHOOSE({1,2},\"\",INDEX(E:E,SMALL(IF($E$1:$E$62<>\"\",ROW($E$1:$E$62)),ROWS($C$1:C13)))))","v":""},null,{"$f":"IF(MGA!C100=\"\",\"\",MGA!C100)","v":""},"Full",{"$f":"LEN(H13)","v":0},"",null,null,null,{"$f":"IF(OR(MGA!$C$88:$C$101=A13),A13,\"\")","v":""},{"$f":"IF(ROWS(M$1:M13)<=O$1,INDEX(A$1:A$14,SMALL(IF(L$1:L$14=\"\",ROW(L$1:L$14)-ROW(L$1)+1),ROWS(M$1:M13))),\"\")","v":"Bronze Full PPO 7500/50 OffEx"}]
["Bronze Full PPO 6850/65 OffEx",null,{"$f":"LOOKUP(\"zzzzz\",CHOOSE({1,2},\"\",INDEX(E:E,SMALL(IF($E$1:$E$62<>\"\",ROW($E$1:$E$62)),ROWS($C$1:C14)))))","v":""},null,{"$f":"IF(MGA!C101=\"\",\"\",MGA!C101)","v":""},"Full",0,"",null,null,null,{"$f":"IF(OR(MGA!$C$88:$C$101=A14),A14,\"\")","v":""},{"$f":"IF(ROWS(M$1:M14)<=O$1,INDEX(A$1:A$14,SMALL(IF(L$1:L$14=\"\",ROW(L$1:L$14)-ROW(L$1)+1),ROWS(M$1:M14))),\"\")","v":"Bronze Full PPO 6850/65 OffEx"}]
["Gold Full PPO Savings 1750/15% OffEx",null,{"$f":"LOOKUP(\"zzzzz\",CHOOSE({1,2},\"\",INDEX(E:E,SMALL(IF($E$1:$E$62<>\"\",ROW($E$1:$E$62)),ROWS($C$1:C15)))))","v":""},null,{"$f":"IF(MGA!D88=\"\",\"\",MGA!D88)","v":""},"HDHP Full",0,"",null,null,null,{"$f":"IF(OR(MGA!$D$88:$D$97=A15),A15,\"\")","v":""},{"$f":"IF(ROWS(M$15:M15)<=O$15,INDEX(A$15:A$24,SMALL(IF(L$15:L$24=\"\",ROW(L$15:L$24)-ROW(L$15)+1),ROWS(M$15:M15))),\"\")","v":"Gold Full PPO Savings 1750/15% OffEx"},null,{"$f":"COUNTBLANK(L15:L24)","v":10},{"$f":"ROW()","v":15},{"$f":"OFFSET(ListValues!$M$15,0,0,ListValues!$O$15)","v":"Gold Full PPO Savings 1750/15% OffEx"}]
["Silver Full PPO Savings 2100/25% OffEx",null,{"$f":"LOOKUP(\"zzzzz\",CHOOSE({1,2},\"\",INDEX(E:E,SMALL(IF($E$1:$E$62<>\"\",ROW($E$1:$E$62)),ROWS($C$1:C16)))))","v":""},null,{"$f":"IF(MGA!D88=\"\",\"\",MGA!D89)","v":""},"HDHP Full",{"$f":"LEN(H16)","v":0},"",null,null,null,{"$f":"IF(OR(MGA!$D$88:$D$97=A16),A16,\"\")","v":""},{"$f":"IF(ROWS(M$15:M16)<=O$15,INDEX(A$15:A$24,SMALL(IF(L$15:L$24=\"\",ROW(L$15:L$24)-ROW(L$15)+1),ROWS(M$15:M16))),\"\")","v":"Silver Full PPO Savings 2100/25% OffEx"}]
["Silver Full PPO Savings 2600/35% OffEx",null,{"$f":"LOOKUP(\"zzzzz\",CHOOSE({1,2},\"\",INDEX(E:E,SMALL(IF($E$1:$E$62<>\"\",ROW($E$1:$E$62)),ROWS($C$1:C17)))))","v":""},null,{"$f":"IF(MGA!D89=\"\",\"\",MGA!D90)","v":""},"HDHP Full",0,"",null,null,null,{"$f":"IF(OR(MGA!$D$88:$D$97=A17),A17,\"\")","v":""},{"$f":"IF(ROWS(M$15:M17)<=O$15,INDEX(A$15:A$24,SMALL(IF(L$15:L$24=\"\",ROW(L$15:L$24)-ROW(L$15)+1),ROWS(M$15:M17))),\"\")","v":"Silver Full PPO Savings 2600/35% OffEx"}]
["Bronze Full PPO Savings 5700/40% OffEx",null,{"$f":"LOOKUP(\"zzzzz\",CHOOSE({1,2},\"\",INDEX(E:E,SMALL(IF($E$1:$E$62<>\"\",ROW($E$1:$E$62)),ROWS($C$1:C18)))))","v":""},null,{"$f":"IF(MGA!D90=\"\",\"\",MGA!D91)","v":""},"HDHP Full",0,"",null,null,null,{"$f":"IF(OR(MGA!$D$88:$D$97=A18),A18,\"\")","v":""},{"$f":"IF(ROWS(M$15:M18)<=O$15,INDEX(A$15:A$24,SMALL(IF(L$15:L$24=\"\",ROW(L$15:L$24)-ROW(L$15)+1),ROWS(M$15:M18))),\"\")","v":"Bronze Full PPO Savings 5700/40% OffEx"}]
["Bronze Full PPO Savings 7000 OffEx",null,{"$f":"LOOKUP(\"zzzzz\",CHOOSE({1,2},\"\",INDEX(E:E,SMALL(IF($E$1:$E$62<>\"\",ROW($E$1:$E$62)),ROWS($C$1:C19)))))","v":""},null,{"$f":"IF(MGA!D91=\"\",\"\",MGA!D92)","v":""},"HDHP Full",0,"",null,null,null,{"$f":"IF(OR(MGA!$D$88:$D$97=A19),A19,\"\")","v":""},{"$f":"IF(ROWS(M$15:M19)<=O$15,INDEX(A$15:A$24,SMALL(IF(L$15:L$24=\"\",ROW(L$15:L$24)-ROW(L$15)+1),ROWS(M$15:M19))),\"\")","v":"Bronze Full PPO Savings 7000 OffEx"}]
["Gold Tandem PPO Savings 1750/15% OffEx",null,{"$f":"LOOKUP(\"zzzzz\",CHOOSE({1,2},\"\",INDEX(E:E,SMALL(IF($E$1:$E$62<>\"\",ROW($E$1:$E$62)),ROWS($C$1:C20)))))","v":""},null,{"$f":"IF(MGA!D92=\"\",\"\",MGA!D93)","v":""},"HDHP Full",{"$f":"LEN(H20)","v":0},"",null,null,null,{"$f":"IF(OR(MGA!$D$88:$D$97=A20),A20,\"\")","v":""},{"$f":"IF(ROWS(M$15:M20)<=O$15,INDEX(A$15:A$24,SMALL(IF(L$15:L$24=\"\",ROW(L$15:L$24)-ROW(L$15)+1),ROWS(M$15:M20))),\"\")","v":"Gold Tandem PPO Savings 1750/15% OffEx"}]
["Silver Tandem PPO Savings 2100/25% OffEx",null,{"$f":"LOOKUP(\"zzzzz\",CHOOSE({1,2},\"\",INDEX(E:E,SMALL(IF($E$1:$E$62<>\"\",ROW($E$1:$E$62)),ROWS($C$1:C21)))))","v":""},null,{"$f":"IF(MGA!D93=\"\",\"\",MGA!D94)","v":""},"HDHP Full",0,"",null,null,null,{"$f":"IF(OR(MGA!$D$88:$D$97=A21),A21,\"\")","v":""},{"$f":"IF(ROWS(M$15:M21)<=O$15,INDEX(A$15:A$24,SMALL(IF(L$15:L$24=\"\",ROW(L$15:L$24)-ROW(L$15)+1),ROWS(M$15:M21))),\"\")","v":"Silver Tandem PPO Savings 2100/25% OffEx"}]
["Silver Tandem PPO Savings 2600/35% OffEx",null,{"$f":"LOOKUP(\"zzzzz\",CHOOSE({1,2},\"\",INDEX(E:E,SMALL(IF($E$1:$E$62<>\"\",ROW($E$1:$E$62)),ROWS($C$1:C22)))))","v":""},null,{"$f":"IF(MGA!D94=\"\",\"\",MGA!D95)","v":""},"HDHP Full",0,"",null,null,null,{"$f":"IF(OR(MGA!$D$88:$D$97=A22),A22,\"\")","v":""},{"$f":"IF(ROWS(M$15:M22)<=O$15,INDEX(A$15:A$24,SMALL(IF(L$15:L$24=\"\",ROW(L$15:L$24)-ROW(L$15)+1),ROWS(M$15:M22))),\"\")","v":"Silver Tandem PPO Savings 2600/35% OffEx"}]
["Bronze Tandem PPO Savings 5700/40% OffEx",null,{"$f":"LOOKUP(\"zzzzz\",CHOOSE({1,2},\"\",INDEX(E:E,SMALL(IF($E$1:$E$62<>\"\",ROW($E$1:$E$62)),ROWS($C$1:C23)))))","v":""},null,{"$f":"IF(MGA!D95=\"\",\"\",MGA!D96)","v":""},"HDHP Full",0,"",null,null,null,{"$f":"IF(OR(MGA!$D$88:$D$97=A23),A23,\"\")","v":""},{"$f":"IF(ROWS(M$15:M23)<=O$15,INDEX(A$15:A$24,SMALL(IF(L$15:L$24=\"\",ROW(L$15:L$24)-ROW(L$15)+1),ROWS(M$15:M23))),\"\")","v":"Bronze Tandem PPO Savings 5700/40% OffEx"}]
["Bronze Tandem PPO Savings 7000 OffEx",null,{"$f":"LOOKUP(\"zzzzz\",CHOOSE({1,2},\"\",INDEX(E:E,SMALL(IF($E$1:$E$62<>\"\",ROW($E$1:$E$62)),ROWS($C$1:C24)))))","v":""},null,{"$f":"IF(MGA!D96=\"\",\"\",MGA!D97)","v":""},"HDHP Full",0,"",null,null,null,{"$f":"IF(OR(MGA!$D$88:$D$97=A24),A24,\"\")","v":""},{"$f":"IF(ROWS(M$15:M24)<=O$15,INDEX(A$15:A$24,SMALL(IF(L$15:L$24=\"\",ROW(L$15:L$24)-ROW(L$15)+1),ROWS(M$15:M24))),\"\")","v":"Bronze Tandem PPO Savings 7000 OffEx"}]
["Platinum Tandem PPO 0/0 OffEx",null,{"$f":"LOOKUP(\"zzzzz\",CHOOSE({1,2},\"\",INDEX(E:E,SMALL(IF($E$1:$E$62<>\"\",ROW($E$1:$E$62)),ROWS($C$1:C25)))))","v":""},null,{"$f":"IF(MGA!E88=\"\",\"\",MGA!E88)","v":""},"HDHP Tandem",0,"",null,null,null,{"$f":"IF(OR(MGA!$E$88:$E$101=A25),A25,\"\")","v":""},{"$f":"IF(ROWS(M$25:M25)<=O$25,INDEX(A$25:A$38,SMALL(IF(L$25:L$38=\"\",ROW(L$25:L$38)-ROW(L$25)+1),ROWS(M$25:M25))),\"\")","v":"Platinum Tandem PPO 0/0 OffEx"},null,{"$f":"COUNTBLANK(L25:L38)","v":14},{"$f":"ROW()","v":25},{"$f":"OFFSET(ListValues!$M$25,0,0,ListValues!$O$25)","v":"Platinum Tandem PPO 0/0 OffEx"}]
["Platinum Tandem PPO 0/10 OffEx",null,{"$f":"LOOKUP(\"zzzzz\",CHOOSE({1,2},\"\",INDEX(E:E,SMALL(IF($E$1:$E$62<>\"\",ROW($E$1:$E$62)),ROWS($C$1:C26)))))","v":""},null,{"$f":"IF(MGA!E89=\"\",\"\",MGA!E89)","v":""},"HDHP Tandem",0,"",null,null,null,{"$f":"IF(OR(MGA!$E$88:$E$101=A26),A26,\"\")","v":""},{"$f":"IF(ROWS(M$25:M26)<=O$25,INDEX(A$25:A$38,SMALL(IF(L$25:L$38=\"\",ROW(L$25:L$38)-ROW(L$25)+1),ROWS(M$25:M26))),\"\")","v":"Platinum Tandem PPO 0/10 OffEx"}]
["Platinum Tandem PPO 250/10 OffEx",null,{"$f":"LOOKUP(\"zzzzz\",CHOOSE({1,2},\"\",INDEX(E:E,SMALL(IF($E$1:$E$62<>\"\",ROW($E$1:$E$62)),ROWS($C$1:C27)))))","v":""},null,{"$f":"IF(MGA!E90=\"\",\"\",MGA!E90)","v":""},"HDHP Tandem",{"$f":"LEN(H27)","v":0},"",null,null,null,{"$f":"IF(OR(MGA!$E$88:$E$101=A27),A27,\"\")","v":""},{"$f":"IF(ROWS(M$25:M27)<=O$25,INDEX(A$25:A$38,SMALL(IF(L$25:L$38=\"\",ROW(L$25:L$38)-ROW(L$25)+1),ROWS(M$25:M27))),\"\")","v":"Platinum Tandem PPO 250/10 OffEx"}]
["Platinum Tandem PPO 250/15 OffEx",null,{"$f":"LOOKUP(\"zzzzz\",CHOOSE({1,2},\"\",INDEX(E:E,SMALL(IF($E$1:$E$62<>\"\",ROW($E$1:$E$62)),ROWS($C$1:C28)))))","v":""},null,{"$f":"IF(MGA!E91=\"\",\"\",MGA!E91)","v":""},"HDHP Tandem",0,"",null,null,null,{"$f":"IF(OR(MGA!$E$88:$E$101=A28),A28,\"\")","v":""},{"$f":"IF(ROWS(M$25:M28)<=O$25,INDEX(A$25:A$38,SMALL(IF(L$25:L$38=\"\",ROW(L$25:L$38)-ROW(L$25)+1),ROWS(M$25:M28))),\"\")","v":"Platinum Tandem PPO 250/15 OffEx"}]
["Gold Tandem PPO 0/25 OffEx",null,{"$f":"LOOKUP(\"zzzzz\",CHOOSE({1,2},\"\",INDEX(E:E,SMALL(IF($E$1:$E$62<>\"\",ROW($E$1:$E$62)),ROWS($C$1:C29)))))","v":""},null,{"$f":"IF(MGA!E92=\"\",\"\",MGA!E92)","v":""},"HDHP Tandem",0,"",null,null,null,{"$f":"IF(OR(MGA!$E$88:$E$101=A29),A29,\"\")","v":""},{"$f":"IF(ROWS(M$25:M29)<=O$25,INDEX(A$25:A$38,SMALL(IF(L$25:L$38=\"\",ROW(L$25:L$38)-ROW(L$25)+1),ROWS(M$25:M29))),\"\")","v":"Gold Tandem PPO 0/25 OffEx"}]
["Gold Tandem PPO 500/30 OffEx",null,{"$f":"LOOKUP(\"zzzzz\",CHOOSE({1,2},\"\",INDEX(E:E,SMALL(IF($E$1:$E$62<>\"\",ROW($E$1:$E$62)),ROWS($C$1:C30)))))","v":""},null,{"$f":"IF(MGA!E93=\"\",\"\",MGA!E93)","v":""},"HDHP Tandem",0,"",null,null,null,{"$f":"IF(OR(MGA!$E$88:$E$101=A30),A30,\"\")","v":""},{"$f":"IF(ROWS(M$25:M30)<=O$25,INDEX(A$25:A$38,SMALL(IF(L$25:L$38=\"\",ROW(L$25:L$38)-ROW(L$25)+1),ROWS(M$25:M30))),\"\")","v":"Gold Tandem PPO 500/30 OffEx"}]
["Gold Tandem PPO 750/30 OffEx",null,{"$f":"LOOKUP(\"zzzzz\",CHOOSE({1,2},\"\",INDEX(E:E,SMALL(IF($E$1:$E$62<>\"\",ROW($E$1:$E$62)),ROWS($C$1:C31)))))","v":""},null,{"$f":"IF(MGA!E94=\"\",\"\",MGA!E94)","v":""},"HDHP Tandem",0,"",null,null,null,{"$f":"IF(OR(MGA!$E$88:$E$101=A31),A31,\"\")","v":""},{"$f":"IF(ROWS(M$25:M31)<=O$25,INDEX(A$25:A$38,SMALL(IF(L$25:L$38=\"\",ROW(L$25:L$38)-ROW(L$25)+1),ROWS(M$25:M31))),\"\")","v":"Gold Tandem PPO 750/30 OffEx"}]
["Gold Tandem PPO 1200/35 OffEx",null,{"$f":"LOOKUP(\"zzzzz\",CHOOSE({1,2},\"\",INDEX(E:E,SMALL(IF($E$1:$E$62<>\"\",ROW($E$1:$E$62)),ROWS($C$1:C32)))))","v":""},null,{"$f":"IF(MGA!E95=\"\",\"\",MGA!E95)","v":""},"HDHP Tandem",0,"",null,null,null,{"$f":"IF(OR(MGA!$E$88:$E$101=A32),A32,\"\")","v":""},{"$f":"IF(ROWS(M$25:M32)<=O$25,INDEX(A$25:A$38,SMALL(IF(L$25:L$38=\"\",ROW(L$25:L$38)-ROW(L$25)+1),ROWS(M$25:M32))),\"\")","v":"Gold Tandem PPO 1200/35 OffEx"}]
["Silver Tandem PPO 1950/50 OffEx",null,{"$f":"LOOKUP(\"zzzzz\",CHOOSE({1,2},\"\",INDEX(E:E,SMALL(IF($E$1:$E$62<>\"\",ROW($E$1:$E$62)),ROWS($C$1:C33)))))","v":""},null,{"$f":"IF(MGA!E96=\"\",\"\",MGA!E96)","v":""},"HDHP Tandem",0,"",null,null,null,{"$f":"IF(OR(MGA!$E$88:$E$101=A33),A33,\"\")","v":""},{"$f":"IF(ROWS(M$25:M33)<=O$25,INDEX(A$25:A$38,SMALL(IF(L$25:L$38=\"\",ROW(L$25:L$38)-ROW(L$25)+1),ROWS(M$25:M33))),\"\")","v":"Silver Tandem PPO 1950/50 OffEx"}]
["Silver Tandem PPO 2225/50 OffEx",null,{"$f":"LOOKUP(\"zzzzz\",CHOOSE({1,2},\"\",INDEX(E:E,SMALL(IF($E$1:$E$62<>\"\",ROW($E$1:$E$62)),ROWS($C$1:C34)))))","v":""},null,{"$f":"IF(MGA!E97=\"\",\"\",MGA!E97)","v":""},"HDHP Tandem",{"$f":"LEN(H34)","v":0},"",null,null,null,{"$f":"IF(OR(MGA!$E$88:$E$101=A34),A34,\"\")","v":""},{"$f":"IF(ROWS(M$25:M34)<=O$25,INDEX(A$25:A$38,SMALL(IF(L$25:L$38=\"\",ROW(L$25:L$38)-ROW(L$25)+1),ROWS(M$25:M34))),\"\")","v":"Silver Tandem PPO 2225/50 OffEx"}]
["Silver Tandem PPO 2400/55 OffEx",null,{"$f":"LOOKUP(\"zzzzz\",CHOOSE({1,2},\"\",INDEX(E:E,SMALL(IF($E$1:$E$62<>\"\",ROW($E$1:$E$62)),ROWS($C$1:C35)))))","v":""},null,{"$f":"IF(MGA!E98=\"\",\"\",MGA!E98)","v":""},"HDHP Tandem",0,"",null,null,null,{"$f":"IF(OR(MGA!$E$88:$E$101=A35),A35,\"\")","v":""},{"$f":"IF(ROWS(M$25:M35)<=O$25,INDEX(A$25:A$38,SMALL(IF(L$25:L$38=\"\",ROW(L$25:L$38)-ROW(L$25)+1),ROWS(M$25:M35))),\"\")","v":"Silver Tandem PPO 2400/55 OffEx"}]
["Bronze Tandem PPO 6250/70 OffEx",null,{"$f":"LOOKUP(\"zzzzz\",CHOOSE({1,2},\"\",INDEX(E:E,SMALL(IF($E$1:$E$62<>\"\",ROW($E$1:$E$62)),ROWS($C$1:C36)))))","v":""},null,{"$f":"IF(MGA!E99=\"\",\"\",MGA!E99)","v":""},"HDHP Tandem",0,"",null,null,null,{"$f":"IF(OR(MGA!$E$88:$E$101=A36),A36,\"\")","v":""},{"$f":"IF(ROWS(M$25:M36)<=O$25,INDEX(A$25:A$38,SMALL(IF(L$25:L$38=\"\",ROW(L$25:L$38)-ROW(L$25)+1),ROWS(M$25:M36))),\"\")","v":"Bronze Tandem PPO 6250/70 OffEx"}]
["Bronze Tandem PPO 7500/50 OffEx",null,{"$f":"LOOKUP(\"zzzzz\",CHOOSE({1,2},\"\",INDEX(E:E,SMALL(IF($E$1:$E$62<>\"\",ROW($E$1:$E$62)),ROWS($C$1:C37)))))","v":""},null,{"$f":"IF(MGA!E100=\"\",\"\",MGA!E100)","v":""},"HDHP Tandem",0,"",null,null,null,{"$f":"IF(OR(MGA!$E$88:$E$101=A37),A37,\"\")","v":""},{"$f":"IF(ROWS(M$25:M37)<=O$25,INDEX(A$25:A$38,SMALL(IF(L$25:L$38=\"\",ROW(L$25:L$38)-ROW(L$25)+1),ROWS(M$25:M37))),\"\")","v":"Bronze Tandem PPO 7500/50 OffEx"}]
["Bronze Tandem PPO 6850/65 OffEx",null,{"$f":"LOOKUP(\"zzzzz\",CHOOSE({1,2},\"\",INDEX(E:E,SMALL(IF($E$1:$E$62<>\"\",ROW($E$1:$E$62)),ROWS($C$1:C38)))))","v":""},null,{"$f":"IF(MGA!E101=\"\",\"\",MGA!E101)","v":""},"HDHP Tandem",0,"",null,null,null,{"$f":"IF(OR(MGA!$E$88:$E$101=A38),A38,\"\")","v":""},{"$f":"IF(ROWS(M$25:M38)<=O$25,INDEX(A$25:A$38,SMALL(IF(L$25:L$38=\"\",ROW(L$25:L$38)-ROW(L$25)+1),ROWS(M$25:M38))),\"\")","v":"Bronze Tandem PPO 6850/65 OffEx"}]
["Platinum Access+ HMO (R) 0/20 OffEx",null,{"$f":"LOOKUP(\"zzzzz\",CHOOSE({1,2},\"\",INDEX(E:E,SMALL(IF($E$1:$E$62<>\"\",ROW($E$1:$E$62)),ROWS($C$1:C39)))))","v":""},null,{"$f":"IF(MGA!C110=\"\",\"\",MGA!C110)","v":""},"Access+",0,"",null,null,null,{"$f":"IF(OR(MGA!$C$110:$C$117=A39),A39,\"\")","v":""},{"$f":"IF(ROWS(M$39:M39)<=O$39,INDEX(A$39:A$46,SMALL(IF(L$39:L$46=\"\",ROW(L$39:L$46)-ROW(L$39)+1),ROWS(M$39:M39))),\"\")","v":"Platinum Access+ HMO (R) 0/20 OffEx"},null,{"$f":"COUNTBLANK(L39:L46)","v":8},{"$f":"ROW()","v":39},{"$f":"OFFSET(ListValues!$M$39,0,0,ListValues!$O$39)","v":"Platinum Access+ HMO (R) 0/20 OffEx"}]
["Platinum Access+ HMO (R) 0/25 OffEx",null,{"$f":"LOOKUP(\"zzzzz\",CHOOSE({1,2},\"\",INDEX(E:E,SMALL(IF($E$1:$E$62<>\"\",ROW($E$1:$E$62)),ROWS($C$1:C40)))))","v":""},null,{"$f":"IF(MGA!C111=\"\",\"\",MGA!C111)","v":""},"Access+",0,"",null,null,null,{"$f":"IF(OR(MGA!$C$110:$C$117=A40),A40,\"\")","v":""},{"$f":"IF(ROWS(M$39:M40)<=O$39,INDEX(A$39:A$46,SMALL(IF(L$39:L$46=\"\",ROW(L$39:L$46)-ROW(L$39)+1),ROWS(M$39:M40))),\"\")","v":"Platinum Access+ HMO (R) 0/25 OffEx"}]
["Platinum Access+ HMO (R) 0/30 OffEx",null,{"$f":"LOOKUP(\"zzzzz\",CHOOSE({1,2},\"\",INDEX(E:E,SMALL(IF($E$1:$E$62<>\"\",ROW($E$1:$E$62)),ROWS($C$1:C41)))))","v":""},null,{"$f":"IF(MGA!C112=\"\",\"\",MGA!C112)","v":""},"Access+",0,"",null,null,null,{"$f":"IF(OR(MGA!$C$110:$C$117=A41),A41,\"\")","v":""},{"$f":"IF(ROWS(M$39:M41)<=O$39,INDEX(A$39:A$46,SMALL(IF(L$39:L$46=\"\",ROW(L$39:L$46)-ROW(L$39)+1),ROWS(M$39:M41))),\"\")","v":"Platinum Access+ HMO (R) 0/30 OffEx"}]
["Gold Access+ HMO (R) 0/30 OffEx",null,{"$f":"LOOKUP(\"zzzzz\",CHOOSE({1,2},\"\",INDEX(E:E,SMALL(IF($E$1:$E$62<>\"\",ROW($E$1:$E$62)),ROWS($C$1:C42)))))","v":""},null,{"$f":"IF(MGA!C113=\"\",\"\",MGA!C113)","v":""},"Access+",0,"",null,null,null,{"$f":"IF(OR(MGA!$C$110:$C$117=A42),A42,\"\")","v":""},{"$f":"IF(ROWS(M$39:M42)<=O$39,INDEX(A$39:A$46,SMALL(IF(L$39:L$46=\"\",ROW(L$39:L$46)-ROW(L$39)+1),ROWS(M$39:M42))),\"\")","v":"Gold Access+ HMO (R) 0/30 OffEx"}]
["Gold Access+ HMO (R) 500/35 OffEx",null,{"$f":"LOOKUP(\"zzzzz\",CHOOSE({1,2},\"\",INDEX(E:E,SMALL(IF($E$1:$E$62<>\"\",ROW($E$1:$E$62)),ROWS($C$1:C43)))))","v":""},null,{"$f":"IF(MGA!C114=\"\",\"\",MGA!C114)","v":""},"Access+",0,"",null,null,null,{"$f":"IF(OR(MGA!$C$110:$C$117=A43),A43,\"\")","v":""},{"$f":"IF(ROWS(M$39:M43)<=O$39,INDEX(A$39:A$46,SMALL(IF(L$39:L$46=\"\",ROW(L$39:L$46)-ROW(L$39)+1),ROWS(M$39:M43))),\"\")","v":"Gold Access+ HMO (R) 500/35 OffEx"}]
["Gold Access+ HMO (R) 1000/35 OffEx",null,{"$f":"LOOKUP(\"zzzzz\",CHOOSE({1,2},\"\",INDEX(E:E,SMALL(IF($E$1:$E$62<>\"\",ROW($E$1:$E$62)),ROWS($C$1:C44)))))","v":""},null,{"$f":"IF(MGA!C115=\"\",\"\",MGA!C115)","v":""},"Access+",0,"",null,null,null,{"$f":"IF(OR(MGA!$C$110:$C$117=A44),A44,\"\")","v":""},{"$f":"IF(ROWS(M$39:M44)<=O$39,INDEX(A$39:A$46,SMALL(IF(L$39:L$46=\"\",ROW(L$39:L$46)-ROW(L$39)+1),ROWS(M$39:M44))),\"\")","v":"Gold Access+ HMO (R) 1000/35 OffEx"}]
["Gold Access+ HMO (R) 1500/35 OffEx",null,{"$f":"LOOKUP(\"zzzzz\",CHOOSE({1,2},\"\",INDEX(E:E,SMALL(IF($E$1:$E$62<>\"\",ROW($E$1:$E$62)),ROWS($C$1:C45)))))","v":""},null,{"$f":"IF(MGA!C116=\"\",\"\",MGA!C116)","v":""},"Access+",0,"",null,null,null,{"$f":"IF(OR(MGA!$C$110:$C$117=A45),A45,\"\")","v":""},{"$f":"IF(ROWS(M$39:M45)<=O$39,INDEX(A$39:A$46,SMALL(IF(L$39:L$46=\"\",ROW(L$39:L$46)-ROW(L$39)+1),ROWS(M$39:M45))),\"\")","v":"Gold Access+ HMO (R) 1500/35 OffEx"}]
["Silver Access+ HMO (R) 2350/65 OffEx",null,{"$f":"LOOKUP(\"zzzzz\",CHOOSE({1,2},\"\",INDEX(E:E,SMALL(IF($E$1:$E$62<>\"\",ROW($E$1:$E$62)),ROWS($C$1:C46)))))","v":""},null,{"$f":"IF(MGA!C117=\"\",\"\",MGA!C117)","v":""},"Access+",0,"",null,null,null,{"$f":"IF(OR(MGA!$C$110:$C$117=A46),A46,\"\")","v":""},{"$f":"IF(ROWS(M$39:M46)<=O$39,INDEX(A$39:A$46,SMALL(IF(L$39:L$46=\"\",ROW(L$39:L$46)-ROW(L$39)+1),ROWS(M$39:M46))),\"\")","v":"Silver Access+ HMO (R) 2350/65 OffEx"}]
["Platinum Trio HMO 0/20 OffEx",null,{"$f":"LOOKUP(\"zzzzz\",CHOOSE({1,2},\"\",INDEX(E:E,SMALL(IF($E$1:$E$62<>\"\",ROW($E$1:$E$62)),ROWS($C$1:C47)))))","v":""},null,{"$f":"IF(MGA!D110=\"\",\"\",MGA!D110)","v":""},"Trio",0,"",null,null,null,{"$f":"IF(OR(MGA!$D$110:$D$117=A47),A47,\"\")","v":""},{"$f":"IF(ROWS(M$47:M47)<=O$47,INDEX(A$47:A$54,SMALL(IF(L$47:L$54=\"\",ROW(L$47:L$54)-ROW(L$47)+1),ROWS(M$47:M47))),\"\")","v":"Platinum Trio HMO 0/20 OffEx"},null,{"$f":"COUNTBLANK(L47:L54)","v":8},{"$f":"ROW()","v":47},{"$f":"OFFSET(ListValues!$M$47,0,0,ListValues!$O$47)","v":"Platinum Trio HMO 0/20 OffEx"}]
["Platinum Trio HMO 0/25 OffEx",null,{"$f":"LOOKUP(\"zzzzz\",CHOOSE({1,2},\"\",INDEX(E:E,SMALL(IF($E$1:$E$62<>\"\",ROW($E$1:$E$62)),ROWS($C$1:C48)))))","v":""},null,{"$f":"IF(MGA!D111=\"\",\"\",MGA!D111)","v":""},"Trio",0,"",null,null,null,{"$f":"IF(OR(MGA!$D$110:$D$117=A48),A48,\"\")","v":""},{"$f":"IF(ROWS(M$47:M48)<=O$47,INDEX(A$47:A$54,SMALL(IF(L$47:L$54=\"\",ROW(L$47:L$54)-ROW(L$47)+1),ROWS(M$47:M48))),\"\")","v":"Platinum Trio HMO 0/25 OffEx"}]
["Platinum Trio HMO 0/30 OffEx",null,{"$f":"LOOKUP(\"zzzzz\",CHOOSE({1,2},\"\",INDEX(E:E,SMALL(IF($E$1:$E$62<>\"\",ROW($E$1:$E$62)),ROWS($C$1:C49)))))","v":""},null,{"$f":"IF(MGA!D112=\"\",\"\",MGA!D112)","v":""},"Trio",0,"",null,null,null,{"$f":"IF(OR(MGA!$D$110:$D$117=A49),A49,\"\")","v":""},{"$f":"IF(ROWS(M$47:M49)<=O$47,INDEX(A$47:A$54,SMALL(IF(L$47:L$54=\"\",ROW(L$47:L$54)-ROW(L$47)+1),ROWS(M$47:M49))),\"\")","v":"Platinum Trio HMO 0/30 OffEx"}]
["Gold Trio HMO 0/30 OffEx",null,{"$f":"LOOKUP(\"zzzzz\",CHOOSE({1,2},\"\",INDEX(E:E,SMALL(IF($E$1:$E$62<>\"\",ROW($E$1:$E$62)),ROWS($C$1:C50)))))","v":""},null,{"$f":"IF(MGA!D113=\"\",\"\",MGA!D113)","v":""},"Trio",0,"",null,null,null,{"$f":"IF(OR(MGA!$D$110:$D$117=A50),A50,\"\")","v":""},{"$f":"IF(ROWS(M$47:M50)<=O$47,INDEX(A$47:A$54,SMALL(IF(L$47:L$54=\"\",ROW(L$47:L$54)-ROW(L$47)+1),ROWS(M$47:M50))),\"\")","v":"Gold Trio HMO 0/30 OffEx"}]
["Gold Trio HMO 500/35 OffEx",null,{"$f":"LOOKUP(\"zzzzz\",CHOOSE({1,2},\"\",INDEX(E:E,SMALL(IF($E$1:$E$62<>\"\",ROW($E$1:$E$62)),ROWS($C$1:C51)))))","v":""},null,{"$f":"IF(MGA!D114=\"\",\"\",MGA!D114)","v":""},"Trio",0,"",null,null,null,{"$f":"IF(OR(MGA!$D$110:$D$117=A51),A51,\"\")","v":""},{"$f":"IF(ROWS(M$47:M51)<=O$47,INDEX(A$47:A$54,SMALL(IF(L$47:L$54=\"\",ROW(L$47:L$54)-ROW(L$47)+1),ROWS(M$47:M51))),\"\")","v":"Gold Trio HMO 500/35 OffEx"}]
["Gold Trio HMO 1000/35 OffEx",null,{"$f":"LOOKUP(\"zzzzz\",CHOOSE({1,2},\"\",INDEX(E:E,SMALL(IF($E$1:$E$62<>\"\",ROW($E$1:$E$62)),ROWS($C$1:C52)))))","v":""},null,{"$f":"IF(MGA!D115=\"\",\"\",MGA!D115)","v":""},"Trio",0,"",null,null,null,{"$f":"IF(OR(MGA!$D$110:$D$117=A52),A52,\"\")","v":""},{"$f":"IF(ROWS(M$47:M52)<=O$47,INDEX(A$47:A$54,SMALL(IF(L$47:L$54=\"\",ROW(L$47:L$54)-ROW(L$47)+1),ROWS(M$47:M52))),\"\")","v":"Gold Trio HMO 1000/35 OffEx"}]
["Gold Trio HMO 1500/35 OffEx",null,{"$f":"LOOKUP(\"zzzzz\",CHOOSE({1,2},\"\",INDEX(E:E,SMALL(IF($E$1:$E$62<>\"\",ROW($E$1:$E$62)),ROWS($C$1:C53)))))","v":""},null,{"$f":"IF(MGA!D116=\"\",\"\",MGA!D116)","v":""},"Trio",0,"",null,null,null,{"$f":"IF(OR(MGA!$D$110:$D$117=A53),A53,\"\")","v":""},{"$f":"IF(ROWS(M$47:M53)<=O$47,INDEX(A$47:A$54,SMALL(IF(L$47:L$54=\"\",ROW(L$47:L$54)-ROW(L$47)+1),ROWS(M$47:M53))),\"\")","v":"Gold Trio HMO 1500/35 OffEx"}]
["Silver Trio HMO 2350/65 OffEx",null,{"$f":"LOOKUP(\"zzzzz\",CHOOSE({1,2},\"\",INDEX(E:E,SMALL(IF($E$1:$E$62<>\"\",ROW($E$1:$E$62)),ROWS($C$1:C54)))))","v":""},null,{"$f":"IF(MGA!D117=\"\",\"\",MGA!D117)","v":""},"Trio",0,"",null,null,null,{"$f":"IF(OR(MGA!$D$110:$D$117=A54),A54,\"\")","v":""},{"$f":"IF(ROWS(M$47:M54)<=O$47,INDEX(A$47:A$54,SMALL(IF(L$47:L$54=\"\",ROW(L$47:L$54)-ROW(L$47)+1),ROWS(M$47:M54))),\"\")","v":"Silver Trio HMO 2350/65 OffEx"}]
["Platinum Local Access+ HMO (R) 0/20 OffEx",null,{"$f":"LOOKUP(\"zzzzz\",CHOOSE({1,2},\"\",INDEX(E:E,SMALL(IF($E$1:$E$62<>\"\",ROW($E$1:$E$62)),ROWS($C$1:C55)))))","v":""},null,{"$f":"IF(MGA!E110=\"\",\"\",MGA!E110)","v":""},"Local Access+",0,"",null,null,null,{"$f":"IF(OR(MGA!$E$110:$E$117=A55),A55,\"\")","v":""},{"$f":"IF(ROWS(M$55:M55)<=O$55,INDEX(A$55:A$62,SMALL(IF(L$55:L$62=\"\",ROW(L$55:L$62)-ROW(L$55)+1),ROWS(M$55:M55))),\"\")","v":"Platinum Local Access+ HMO (R) 0/20 OffEx"},null,{"$f":"COUNTBLANK(L55:L62)","v":8},{"$f":"ROW()","v":55},{"$f":"OFFSET(ListValues!$M$55,0,0,ListValues!$O$55)","v":"Platinum Local Access+ HMO (R) 0/20 OffEx"}]
["Platinum Local Access+ HMO (R) 0/25 OffEx",null,{"$f":"LOOKUP(\"zzzzz\",CHOOSE({1,2},\"\",INDEX(E:E,SMALL(IF($E$1:$E$62<>\"\",ROW($E$1:$E$62)),ROWS($C$1:C56)))))","v":""},null,{"$f":"IF(MGA!E111=\"\",\"\",MGA!E111)","v":""},"Local Access+",0,"",null,null,null,{"$f":"IF(OR(MGA!$E$110:$E$117=A56),A56,\"\")","v":""},{"$f":"IF(ROWS(M$55:M56)<=O$55,INDEX(A$55:A$62,SMALL(IF(L$55:L$62=\"\",ROW(L$55:L$62)-ROW(L$55)+1),ROWS(M$55:M56))),\"\")","v":"Platinum Local Access+ HMO (R) 0/25 OffEx"}]
["Platinum Local Access+ HMO (R) 0/30 OffEx",null,{"$f":"LOOKUP(\"zzzzz\",CHOOSE({1,2},\"\",INDEX(E:E,SMALL(IF($E$1:$E$62<>\"\",ROW($E$1:$E$62)),ROWS($C$1:C57)))))","v":""},null,{"$f":"IF(MGA!E112=\"\",\"\",MGA!E112)","v":""},"Local Access+",0,"",null,null,null,{"$f":"IF(OR(MGA!$E$110:$E$117=A57),A57,\"\")","v":""},{"$f":"IF(ROWS(M$55:M57)<=O$55,INDEX(A$55:A$62,SMALL(IF(L$55:L$62=\"\",ROW(L$55:L$62)-ROW(L$55)+1),ROWS(M$55:M57))),\"\")","v":"Platinum Local Access+ HMO (R) 0/30 OffEx"}]
["Gold Local Access+ HMO (R) 0/30 OffEx",null,{"$f":"LOOKUP(\"zzzzz\",CHOOSE({1,2},\"\",INDEX(E:E,SMALL(IF($E$1:$E$62<>\"\",ROW($E$1:$E$62)),ROWS($C$1:C58)))))","v":""},null,{"$f":"IF(MGA!E113=\"\",\"\",MGA!E113)","v":""},"Local Access+",0,"",null,null,null,{"$f":"IF(OR(MGA!$E$110:$E$117=A58),A58,\"\")","v":""},{"$f":"IF(ROWS(M$55:M58)<=O$55,INDEX(A$55:A$62,SMALL(IF(L$55:L$62=\"\",ROW(L$55:L$62)-ROW(L$55)+1),ROWS(M$55:M58))),\"\")","v":"Gold Local Access+ HMO (R) 0/30 OffEx"}]
["Gold Local Access+ HMO (R) 500/35 OffEx",null,{"$f":"LOOKUP(\"zzzzz\",CHOOSE({1,2},\"\",INDEX(E:E,SMALL(IF($E$1:$E$62<>\"\",ROW($E$1:$E$62)),ROWS($C$1:C59)))))","v":""},null,{"$f":"IF(MGA!E114=\"\",\"\",MGA!E114)","v":""},"Local Access+",0,"",null,null,null,{"$f":"IF(OR(MGA!$E$110:$E$117=A59),A59,\"\")","v":""},{"$f":"IF(ROWS(M$55:M59)<=O$55,INDEX(A$55:A$62,SMALL(IF(L$55:L$62=\"\",ROW(L$55:L$62)-ROW(L$55)+1),ROWS(M$55:M59))),\"\")","v":"Gold Local Access+ HMO (R) 500/35 OffEx"}]
["Gold Local Access+ HMO (R) 1000/35 OffEx",null,{"$f":"LOOKUP(\"zzzzz\",CHOOSE({1,2},\"\",INDEX(E:E,SMALL(IF($E$1:$E$62<>\"\",ROW($E$1:$E$62)),ROWS($C$1:C60)))))","v":""},null,{"$f":"IF(MGA!E115=\"\",\"\",MGA!E115)","v":""},"Local Access+",0,"",null,null,null,{"$f":"IF(OR(MGA!$E$110:$E$117=A60),A60,\"\")","v":""},{"$f":"IF(ROWS(M$55:M60)<=O$55,INDEX(A$55:A$62,SMALL(IF(L$55:L$62=\"\",ROW(L$55:L$62)-ROW(L$55)+1),ROWS(M$55:M60))),\"\")","v":"Gold Local Access+ HMO (R) 1000/35 OffEx"}]
["Gold Local Access+ HMO (R) 1500/35 OffEx",null,{"$f":"LOOKUP(\"zzzzz\",CHOOSE({1,2},\"\",INDEX(E:E,SMALL(IF($E$1:$E$62<>\"\",ROW($E$1:$E$62)),ROWS($C$1:C61)))))","v":""},null,{"$f":"IF(MGA!E116=\"\",\"\",MGA!E116)","v":""},"Local Access+",0,"",null,null,null,{"$f":"IF(OR(MGA!$E$110:$E$117=A61),A61,\"\")","v":""},{"$f":"IF(ROWS(M$55:M61)<=O$55,INDEX(A$55:A$62,SMALL(IF(L$55:L$62=\"\",ROW(L$55:L$62)-ROW(L$55)+1),ROWS(M$55:M61))),\"\")","v":"Gold Local Access+ HMO (R) 1500/35 OffEx"}]
["Silver Local Access+ HMO (R) 2350/65 OffEx",null,{"$f":"LOOKUP(\"zzzzz\",CHOOSE({1,2},\"\",INDEX(E:E,SMALL(IF($E$1:$E$62<>\"\",ROW($E$1:$E$62)),ROWS($C$1:C62)))))","v":""},null,{"$f":"IF(MGA!E117=\"\",\"\",MGA!E117)","v":""},"Local Access+",0,"",null,null,null,{"$f":"IF(OR(MGA!$E$110:$E$117=A62),A62,\"\")","v":""},{"$f":"IF(ROWS(M$55:M62)<=O$55,INDEX(A$55:A$62,SMALL(IF(L$55:L$62=\"\",ROW(L$55:L$62)-ROW(L$55)+1),ROWS(M$55:M62))),\"\")","v":"Silver Local Access+ HMO (R) 2350/65 OffEx"}]
[null,null,null,null,null,null,0]
["Blue Shield Trio Platinum 90 HMO 0/20 + Child Dental",null,{"$f":"LOOKUP(\"zzzzz\",CHOOSE({1,2},\"\",INDEX(E:E,SMALL(IF($E$64:$E$70<>\"\",ROW($E$64:$E$70)),ROWS($C$64:C64)))))","v":""},null,{"$f":"IF(MGA!C123=\"\",\"\",MGA!C123)","v":""},"Mirror",0,{"$f":"IF(C65=\"\",H62&C64,H62&C64&\";\")","v":""},null,null,null,{"$f":"IF(OR(MGA!$C$123:$C$129=A64),A64,\"\")","v":""},{"$f":"IF(ROWS(M$64:M64)<=O$64,INDEX(A$64:A$70,SMALL(IF(L$64:L$70=\"\",ROW(L$64:L$70)-ROW(L$64)+1),ROWS(M$64:M64))),\"\")","v":"Blue Shield Trio Platinum 90 HMO 0/20 + Child Dental"},null,{"$f":"COUNTBLANK(L64:L70)","v":7},{"$f":"ROW()","v":64},{"$f":"OFFSET(ListValues!$M$64,0,0,ListValues!$O$64)","v":"Blue Shield Trio Platinum 90 HMO 0/20 + Child Dental"}]
["Blue Shield Platinum 90 PPO 0/15 + Child Dental",null,{"$f":"LOOKUP(\"zzzzz\",CHOOSE({1,2},\"\",INDEX(E:E,SMALL(IF($E$64:$E$70<>\"\",ROW($E$64:$E$70)),ROWS($C$64:C65)))))","v":""},null,{"$f":"IF(MGA!C124=\"\",\"\",MGA!C124)","v":""},"Mirror",0,{"$f":"IF(C66=\"\",H64&C65,H64&C65&\";\")","v":""},null,null,null,{"$f":"IF(OR(MGA!$C$123:$C$129=A65),A65,\"\")","v":""},{"$f":"IF(ROWS(M$64:M65)<=O$64,INDEX(A$64:A$70,SMALL(IF(L$64:L$70=\"\",ROW(L$64:L$70)-ROW(L$64)+1),ROWS(M$64:M65))),\"\")","v":"Blue Shield Platinum 90 PPO 0/15 + Child Dental"}]
["Blue Shield Trio Gold 80 HMO 250/35 + Child Dental",null,{"$f":"LOOKUP(\"zzzzz\",CHOOSE({1,2},\"\",INDEX(E:E,SMALL(IF($E$64:$E$70<>\"\",ROW($E$64:$E$70)),ROWS($C$64:C66)))))","v":""},null,{"$f":"IF(MGA!C125=\"\",\"\",MGA!C125)","v":""},"Mirror",0,{"$f":"IF(C67=\"\",H65&C66,H65&C66&\";\")","v":""},null,null,null,{"$f":"IF(OR(MGA!$C$123:$C$129=A66),A66,\"\")","v":""},{"$f":"IF(ROWS(M$64:M66)<=O$64,INDEX(A$64:A$70,SMALL(IF(L$64:L$70=\"\",ROW(L$64:L$70)-ROW(L$64)+1),ROWS(M$64:M66))),\"\")","v":"Blue Shield Trio Gold 80 HMO 250/35 + Child Dental"}]
["Blue Shield Gold 80 PPO 350/25 + Child Dental",null,{"$f":"LOOKUP(\"zzzzz\",CHOOSE({1,2},\"\",INDEX(E:E,SMALL(IF($E$64:$E$70<>\"\",ROW($E$64:$E$70)),ROWS($C$64:C67)))))","v":""},null,{"$f":"IF(MGA!C126=\"\",\"\",MGA!C126)","v":""},"Mirror",0,"",null,null,null,{"$f":"IF(OR(MGA!$C$123:$C$129=A67),A67,\"\")","v":""},{"$f":"IF(ROWS(M$64:M67)<=O$64,INDEX(A$64:A$70,SMALL(IF(L$64:L$70=\"\",ROW(L$64:L$70)-ROW(L$64)+1),ROWS(M$64:M67))),\"\")","v":"Blue Shield Gold 80 PPO 350/25 + Child Dental"}]
["Blue Shield Trio Silver 70 HMO 2250/55 + Child Dental",null,{"$f":"LOOKUP(\"zzzzz\",CHOOSE({1,2},\"\",INDEX(E:E,SMALL(IF($E$64:$E$70<>\"\",ROW($E$64:$E$70)),ROWS($C$64:C68)))))","v":""},null,{"$f":"IF(MGA!C127=\"\",\"\",MGA!C127)","v":""},"Mirror",0,"",null,null,null,{"$f":"IF(OR(MGA!$C$123:$C$129=A68),A68,\"\")","v":""},{"$f":"IF(ROWS(M$64:M68)<=O$64,INDEX(A$64:A$70,SMALL(IF(L$64:L$70=\"\",ROW(L$64:L$70)-ROW(L$64)+1),ROWS(M$64:M68))),\"\")","v":"Blue Shield Trio Silver 70 HMO 2250/55 + Child Dental"}]
["Blue Shield Silver 70 PPO 2250/50 + Child Dental",null,{"$f":"LOOKUP(\"zzzzz\",CHOOSE({1,2},\"\",INDEX(E:E,SMALL(IF($E$64:$E$70<>\"\",ROW($E$64:$E$70)),ROWS($C$64:C69)))))","v":""},null,{"$f":"IF(MGA!C128=\"\",\"\",MGA!C128)","v":""},"Mirror",0,"",null,null,null,{"$f":"IF(OR(MGA!$C$123:$C$129=A69),A69,\"\")","v":""},{"$f":"IF(ROWS(M$64:M69)<=O$64,INDEX(A$64:A$70,SMALL(IF(L$64:L$70=\"\",ROW(L$64:L$70)-ROW(L$64)+1),ROWS(M$64:M69))),\"\")","v":"Blue Shield Silver 70 PPO 2250/50 + Child Dental"}]
["Blue Shield Bronze 60 PPO 6300/65 + Child Dental",null,{"$f":"LOOKUP(\"zzzzz\",CHOOSE({1,2},\"\",INDEX(E:E,SMALL(IF($E$64:$E$70<>\"\",ROW($E$64:$E$70)),ROWS($C$64:C70)))))","v":""},null,{"$f":"IF(MGA!C129=\"\",\"\",MGA!C129)","v":""},"Mirror",0,"",null,null,null,{"$f":"IF(OR(MGA!$C$123:$C$129=A70),A70,\"\")","v":""},{"$f":"IF(ROWS(M$64:M70)<=O$64,INDEX(A$64:A$70,SMALL(IF(L$64:L$70=\"\",ROW(L$64:L$70)-ROW(L$64)+1),ROWS(M$64:M70))),\"\")","v":"Blue Shield Bronze 60 PPO 6300/65 + Child Dental"}]
[null,null,null,null,null,null,"Waive",{"$f":"LOOKUP(\"zzzzz\",CHOOSE({1,2},\"\",INDEX(G:G,SMALL(IF($G$71:$G$106<>\"\",ROW($G$71:$G$106)),ROWS($H$71:H71)))))","v":"Waive"}]
["Dental HMO Basic",null,{"$f":"LOOKUP(\"zzzzz\",CHOOSE({1,2},\"\",INDEX(E:E,SMALL(IF($E$72:$E$75<>\"\",ROW($E$72:$E$75)),ROWS($C$72:C72)))))","v":""},null,{"$f":"IF(MGA!C139=\"\",\"\",MGA!C139)","v":""},null,{"$f":"IF(COUNTBLANK(Dental_HMO_MGA)<4,\"Dental_HMO\",\"\")","v":""},{"$f":"LOOKUP(\"zzzzz\",CHOOSE({1,2},\"\",INDEX(G:G,SMALL(IF($G$71:$G$106<>\"\",ROW($G$71:$G$106)),ROWS($H$71:H72)))))","v":""},{"$f":"LOOKUP(\"zzzzz\",CHOOSE({1,2},\"\",INDEX(E:E,SMALL(IF($E$72:$E$106<>\"\",ROW($E$72:$E$106)),ROWS($C$72:C72)))))","v":""},{"$f":"LEN(K72)","v":0},{"$f":"IF(I73=\"\",I72,I72&\";\")","v":""},{"$f":"IF(OR(MGA!$C$139:$C$141=A72),A72,\"\")","v":""},{"$f":"IF(ROWS(M$72:M72)<=O$72,INDEX(A$72:A$76,SMALL(IF(L$72:L$76=\"\",ROW(L$72:L$76)-ROW(L$72)+1),ROWS(M$72:M72))),\"\")","v":"Dental HMO Basic"},null,{"$f":"COUNTBLANK(L72:L76)","v":5},{"$f":"ROW()","v":72},{"$f":"OFFSET(ListValues!$M$72,0,0,ListValues!$O$72)","v":"Dental HMO Basic"}]
["Dental HMO Standard",null,{"$f":"LOOKUP(\"zzzzz\",CHOOSE({1,2},\"\",INDEX(E:E,SMALL(IF($E$72:$E$75<>\"\",ROW($E$72:$E$75)),ROWS($C$72:C73)))))","v":""},null,{"$f":"IF(MGA!C140=\"\",\"\",MGA!C140)","v":""},null,null,{"$f":"LOOKUP(\"zzzzz\",CHOOSE({1,2},\"\",INDEX(G:G,SMALL(IF($G$71:$G$106<>\"\",ROW($G$71:$G$106)),ROWS($H$71:H73)))))","v":""},{"$f":"LOOKUP(\"zzzzz\",CHOOSE({1,2},\"\",INDEX(E:E,SMALL(IF($E$72:$E$106<>\"\",ROW($E$72:$E$106)),ROWS($C$72:C73)))))","v":""},{"$f":"LEN(K73)","v":0},{"$f":"IF(I74=\"\",K72&I73,K72&I73&\";\")","v":""},{"$f":"IF(OR(MGA!$C$139:$C$141=A73),A73,\"\")","v":""},{"$f":"IF(ROWS(M$72:M73)<=O$72,INDEX(A$72:A$76,SMALL(IF(L$72:L$76=\"\",ROW(L$72:L$76)-ROW(L$72)+1),ROWS(M$72:M73))),\"\")","v":"Dental HMO Standard"}]
["Dental HMO Plus",null,{"$f":"LOOKUP(\"zzzzz\",CHOOSE({1,2},\"\",INDEX(E:E,SMALL(IF($E$72:$E$75<>\"\",ROW($E$72:$E$75)),ROWS($C$72:C74)))))","v":""},null,{"$f":"IF(MGA!C141=\"\",\"\",MGA!C141)","v":""},null,null,{"$f":"LOOKUP(\"zzzzz\",CHOOSE({1,2},\"\",INDEX(G:G,SMALL(IF($G$71:$G$106<>\"\",ROW($G$71:$G$106)),ROWS($H$71:H74)))))","v":""},{"$f":"LOOKUP(\"zzzzz\",CHOOSE({1,2},\"\",INDEX(E:E,SMALL(IF($E$72:$E$106<>\"\",ROW($E$72:$E$106)),ROWS($C$72:C74)))))","v":""},{"$f":"LEN(K74)","v":0},{"$f":"IF(I75=\"\",K73&I74,K73&I74&\";\")","v":""},{"$f":"IF(OR(MGA!$C$139:$C$141=A74),A74,\"\")","v":""},{"$f":"IF(ROWS(M$72:M74)<=O$72,INDEX(A$72:A$76,SMALL(IF(L$72:L$76=\"\",ROW(L$72:L$76)-ROW(L$72)+1),ROWS(M$72:M74))),\"\")","v":"Dental HMO Plus"}]
["Dental HMO Deluxe",null,{"$f":"LOOKUP(\"zzzzz\",CHOOSE({1,2},\"\",INDEX(E:E,SMALL(IF($E$72:$E$75<>\"\",ROW($E$72:$E$75)),ROWS($C$72:C75)))))","v":""},null,{"$f":"IF(MGA!C142=\"\",\"\",MGA!C142)","v":""},null,null,{"$f":"LOOKUP(\"zzzzz\",CHOOSE({1,2},\"\",INDEX(G:G,SMALL(IF($G$71:$G$106<>\"\",ROW($G$71:$G$106)),ROWS($H$71:H75)))))","v":""},{"$f":"LOOKUP(\"zzzzz\",CHOOSE({1,2},\"\",INDEX(E:E,SMALL(IF($E$72:$E$106<>\"\",ROW($E$72:$E$106)),ROWS($C$72:C75)))))","v":""},0,{"$f":"IF(I76=\"\",K74&I75,K74&I75&\";\")","v":""},{"$f":"IF(OR(MGA!$C$139:$C$141=A75),A75,\"\")","v":""},{"$f":"IF(ROWS(M$72:M75)<=O$72,INDEX(A$72:A$76,SMALL(IF(L$72:L$76=\"\",ROW(L$72:L$76)-ROW(L$72)+1),ROWS(M$72:M75))),\"\")","v":"Dental HMO Deluxe"}]
["Dental HMO Voluntary",null,{"$f":"LOOKUP(\"zzzzz\",CHOOSE({1,2},\"\",INDEX(E:E,SMALL(IF($E$72:$E$75<>\"\",ROW($E$72:$E$75)),ROWS($C$72:C76)))))","v":""},null,null,null,null,null,{"$f":"LOOKUP(\"zzzzz\",CHOOSE({1,2},\"\",INDEX(E:E,SMALL(IF($E$72:$E$106<>\"\",ROW($E$72:$E$106)),ROWS($C$72:C76)))))","v":""},0,"",{"$f":"IF(OR(MGA!$C$139:$C$141=A76),A76,\"\")","v":""},{"$f":"IF(ROWS(M$72:M76)<=O$72,INDEX(A$72:A$76,SMALL(IF(L$72:L$76=\"\",ROW(L$72:L$76)-ROW(L$72)+1),ROWS(M$72:M76))),\"\")","v":"Dental HMO Voluntary"}]
[null,null,null,null,null,null,null,null,{"$f":"LOOKUP(\"zzzzz\",CHOOSE({1,2},\"\",INDEX(E:E,SMALL(IF($E$72:$E$106<>\"\",ROW($E$72:$E$106)),ROWS($C$72:C77)))))","v":""},0,""]
["SmileSM Value 50/1500/No Ortho/MAC/NR",null,{"$f":"LOOKUP(\"zzzzz\",CHOOSE({1,2},\"\",INDEX(E:E,SMALL(IF($E$78:$E$79<>\"\",ROW($E$78:$E$79)),ROWS($C$78:C78)))))","v":""},null,{"$f":"IF(MGA!D139=\"\",\"\",MGA!D139)","v":""},null,{"$f":"IF(COUNTBLANK(Dental_PPO_MGA)<2,\"Dental_PPO\",\"\")","v":""},null,{"$f":"LOOKUP(\"zzzzz\",CHOOSE({1,2},\"\",INDEX(E:E,SMALL(IF($E$72:$E$106<>\"\",ROW($E$72:$E$106)),ROWS($C$72:C78)))))","v":""},0,"",{"$f":"IF(OR(MGA!$D$139:$D$140=A78),A78,\"\")","v":""},{"$f":"IF(ROWS(M$78:M78)<=O$78,INDEX(A$78:A$106,SMALL(IF(L$78:L$106=\"\",ROW(L$78:L$106)-ROW(L$78)+1),ROWS(M$78:M78))),\"\")","v":"SmileSM Value 50/1500/No Ortho/MAC/NR"},null,{"$f":"COUNTBLANK(L78:L106)","v":29},{"$f":"ROW()","v":78},{"$f":"OFFSET(ListValues!$M$78,0,0,ListValues!$O$78)","v":"SmileSM Value 50/1500/No Ortho/MAC/NR"}]
["SmileSM 50/1500/No Ortho/MAC/NR",null,{"$f":"LOOKUP(\"zzzzz\",CHOOSE({1,2},\"\",INDEX(E:E,SMALL(IF($E$78:$E$79<>\"\",ROW($E$78:$E$79)),ROWS($C$78:C79)))))","v":""},null,{"$f":"IF(MGA!D140=\"\",\"\",MGA!D140)","v":""},null,null,null,{"$f":"LOOKUP(\"zzzzz\",CHOOSE({1,2},\"\",INDEX(E:E,SMALL(IF($E$72:$E$106<>\"\",ROW($E$72:$E$106)),ROWS($C$72:C79)))))","v":""},0,"",{"$f":"IF(OR(MGA!$D$139:$D$140=A79),A79,\"\")","v":""},{"$f":"IF(ROWS(M$78:M79)<=O$78,INDEX(A$78:A$106,SMALL(IF(L$78:L$106=\"\",ROW(L$78:L$106)-ROW(L$78)+1),ROWS(M$78:M79))),\"\")","v":"SmileSM 50/1500/No Ortho/MAC/NR"}]
["SmileSM Plus 50/1500/Ortho/MAC/NR",null,null,null,null,null,null,null,{"$f":"LOOKUP(\"zzzzz\",CHOOSE({1,2},\"\",INDEX(E:E,SMALL(IF($E$72:$E$106<>\"\",ROW($E$72:$E$106)),ROWS($C$72:C80)))))","v":""},0,"",{"$f":"IF(OR(MGA!$D$139:$D$140=A80),A80,\"\")","v":""},{"$f":"IF(ROWS(M$78:M80)<=O$78,INDEX(A$78:A$106,SMALL(IF(L$78:L$106=\"\",ROW(L$78:L$106)-ROW(L$78)+1),ROWS(M$78:M80))),\"\")","v":"SmileSM Plus 50/1500/Ortho/MAC/NR"}]
["SmileSM Basic 75/1000/No Ortho/MAC/NR",null,null,null,null,null,null,null,{"$f":"LOOKUP(\"zzzzz\",CHOOSE({1,2},\"\",INDEX(E:E,SMALL(IF($E$72:$E$106<>\"\",ROW($E$72:$E$106)),ROWS($C$72:C81)))))","v":""},0,"",{"$f":"IF(OR(MGA!$D$139:$D$140=A81),A81,\"\")","v":""},{"$f":"IF(ROWS(M$78:M81)<=O$78,INDEX(A$78:A$106,SMALL(IF(L$78:L$106=\"\",ROW(L$78:L$106)-ROW(L$78)+1),ROWS(M$78:M81))),\"\")","v":"SmileSM Basic 75/1000/No Ortho/MAC/NR"}]
["SmileSM Basic 50/1000/No Ortho/MAC",null,null,null,null,null,null,null,{"$f":"LOOKUP(\"zzzzz\",CHOOSE({1,2},\"\",INDEX(E:E,SMALL(IF($E$72:$E$106<>\"\",ROW($E$72:$E$106)),ROWS($C$72:C82)))))","v":""},0,"",{"$f":"IF(OR(MGA!$D$139:$D$140=A82),A82,\"\")","v":""},{"$f":"IF(ROWS(M$78:M82)<=O$78,INDEX(A$78:A$106,SMALL(IF(L$78:L$106=\"\",ROW(L$78:L$106)-ROW(L$78)+1),ROWS(M$78:M82))),\"\")","v":"SmileSM Basic 50/1000/No Ortho/MAC"}]
["SmileSM Basic 50/1000/Ortho/U85",null,null,null,null,null,null,null,{"$f":"LOOKUP(\"zzzzz\",CHOOSE({1,2},\"\",INDEX(E:E,SMALL(IF($E$72:$E$106<>\"\",ROW($E$72:$E$106)),ROWS($C$72:C83)))))","v":""},0,"",{"$f":"IF(OR(MGA!$D$139:$D$140=A83),A83,\"\")","v":""},{"$f":"IF(ROWS(M$78:M83)<=O$78,INDEX(A$78:A$106,SMALL(IF(L$78:L$106=\"\",ROW(L$78:L$106)-ROW(L$78)+1),ROWS(M$78:M83))),\"\")","v":"SmileSM Basic 50/1000/Ortho/U85"}]
["SmileSM Plus 50/1500/No Ortho/MAC",null,null,null,null,null,null,null,{"$f":"LOOKUP(\"zzzzz\",CHOOSE({1,2},\"\",INDEX(E:E,SMALL(IF($E$72:$E$106<>\"\",ROW($E$72:$E$106)),ROWS($C$72:C84)))))","v":""},0,"",{"$f":"IF(OR(MGA!$D$139:$D$140=A84),A84,\"\")","v":""},{"$f":"IF(ROWS(M$78:M84)<=O$78,INDEX(A$78:A$106,SMALL(IF(L$78:L$106=\"\",ROW(L$78:L$106)-ROW(L$78)+1),ROWS(M$78:M84))),\"\")","v":"SmileSM Plus 50/1500/No Ortho/MAC"}]
["SmileSM Plus 50/1500/No Ortho/MAC/WP",null,null,null,null,null,null,null,{"$f":"LOOKUP(\"zzzzz\",CHOOSE({1,2},\"\",INDEX(E:E,SMALL(IF($E$72:$E$106<>\"\",ROW($E$72:$E$106)),ROWS($C$72:C85)))))","v":""},0,"",{"$f":"IF(OR(MGA!$D$139:$D$140=A85),A85,\"\")","v":""},{"$f":"IF(ROWS(M$78:M85)<=O$78,INDEX(A$78:A$106,SMALL(IF(L$78:L$106=\"\",ROW(L$78:L$106)-ROW(L$78)+1),ROWS(M$78:M85))),\"\")","v":"SmileSM Plus 50/1500/No Ortho/MAC/WP"}]
["SmileSM Deluxe 50/1500/Ortho/MAC/NR",null,null,null,null,null,null,null,{"$f":"LOOKUP(\"zzzzz\",CHOOSE({1,2},\"\",INDEX(E:E,SMALL(IF($E$72:$E$106<>\"\",ROW($E$72:$E$106)),ROWS($C$72:C86)))))","v":""},0,"",{"$f":"IF(OR(MGA!$D$139:$D$140=A86),A86,\"\")","v":""},{"$f":"IF(ROWS(M$78:M86)<=O$78,INDEX(A$78:A$106,SMALL(IF(L$78:L$106=\"\",ROW(L$78:L$106)-ROW(L$78)+1),ROWS(M$78:M86))),\"\")","v":"SmileSM Deluxe 50/1500/Ortho/MAC/NR"}]
["SmileSM Deluxe 2000 50/2000/No Ortho/MAC/NR",null,null,null,null,null,null,null,{"$f":"LOOKUP(\"zzzzz\",CHOOSE({1,2},\"\",INDEX(E:E,SMALL(IF($E$72:$E$106<>\"\",ROW($E$72:$E$106)),ROWS($C$72:C87)))))","v":""},0,"",{"$f":"IF(OR(MGA!$D$139:$D$140=A87),A87,\"\")","v":""},{"$f":"IF(ROWS(M$78:M87)<=O$78,INDEX(A$78:A$106,SMALL(IF(L$78:L$106=\"\",ROW(L$78:L$106)-ROW(L$78)+1),ROWS(M$78:M87))),\"\")","v":"SmileSM Deluxe 2000 50/2000/No Ortho/MAC/NR"}]
["SmileSM Deluxe Plus 2000 50/2000/Ortho/MAC/NR",null,null,null,null,null,null,null,{"$f":"LOOKUP(\"zzzzz\",CHOOSE({1,2},\"\",INDEX(E:E,SMALL(IF($E$72:$E$106<>\"\",ROW($E$72:$E$106)),ROWS($C$72:C88)))))","v":""},0,"",{"$f":"IF(OR(MGA!$D$139:$D$140=A88),A88,\"\")","v":""},{"$f":"IF(ROWS(M$78:M88)<=O$78,INDEX(A$78:A$106,SMALL(IF(L$78:L$106=\"\",ROW(L$78:L$106)-ROW(L$78)+1),ROWS(M$78:M88))),\"\")","v":"SmileSM Deluxe Plus 2000 50/2000/Ortho/MAC/NR"}]
["SmileSM Deluxe Gold 50/1500/Ortho/U85/NR",null,null,null,null,null,null,null,{"$f":"LOOKUP(\"zzzzz\",CHOOSE({1,2},\"\",INDEX(E:E,SMALL(IF($E$72:$E$106<>\"\",ROW($E$72:$E$106)),ROWS($C$72:C89)))))","v":""},{"$f":"LEN(K89)","v":0},"",{"$f":"IF(OR(MGA!$D$139:$D$140=A89),A89,\"\")","v":""},{"$f":"IF(ROWS(M$78:M89)<=O$78,INDEX(A$78:A$106,SMALL(IF(L$78:L$106=\"\",ROW(L$78:L$106)-ROW(L$78)+1),ROWS(M$78:M89))),\"\")","v":"SmileSM Deluxe Gold 50/1500/Ortho/U85/NR"}]
["SmileSM Plus Gold 50/1500/Ortho/U85/NR",null,null,null,null,null,null,null,{"$f":"LOOKUP(\"zzzzz\",CHOOSE({1,2},\"\",INDEX(E:E,SMALL(IF($E$72:$E$106<>\"\",ROW($E$72:$E$106)),ROWS($C$72:C90)))))","v":""},0,"",{"$f":"IF(OR(MGA!$D$139:$D$140=A90),A90,\"\")","v":""},{"$f":"IF(ROWS(M$78:M90)<=O$78,INDEX(A$78:A$106,SMALL(IF(L$78:L$106=\"\",ROW(L$78:L$106)-ROW(L$78)+1),ROWS(M$78:M90))),\"\")","v":"SmileSM Plus Gold 50/1500/Ortho/U85/NR"}]
["SmileSM Plus Gold 50/1500/Ortho/U80",null,null,null,null,null,null,null,{"$f":"LOOKUP(\"zzzzz\",CHOOSE({1,2},\"\",INDEX(E:E,SMALL(IF($E$72:$E$106<>\"\",ROW($E$72:$E$106)),ROWS($C$72:C91)))))","v":""},0,"",{"$f":"IF(OR(MGA!$D$139:$D$140=A91),A91,\"\")","v":""},{"$f":"IF(ROWS(M$78:M91)<=O$78,INDEX(A$78:A$106,SMALL(IF(L$78:L$106=\"\",ROW(L$78:L$106)-ROW(L$78)+1),ROWS(M$78:M91))),\"\")","v":"SmileSM Plus Gold 50/1500/Ortho/U80"}]
["SmileSM Plus Gold 50/1500/No Ortho/U80",null,null,null,null,null,null,null,{"$f":"LOOKUP(\"zzzzz\",CHOOSE({1,2},\"\",INDEX(E:E,SMALL(IF($E$72:$E$106<>\"\",ROW($E$72:$E$106)),ROWS($C$72:C92)))))","v":""},0,"",{"$f":"IF(OR(MGA!$D$139:$D$140=A92),A92,\"\")","v":""},{"$f":"IF(ROWS(M$78:M92)<=O$78,INDEX(A$78:A$106,SMALL(IF(L$78:L$106=\"\",ROW(L$78:L$106)-ROW(L$78)+1),ROWS(M$78:M92))),\"\")","v":"SmileSM Plus Gold 50/1500/No Ortho/U80"}]
["SmileSM Plus Gold 50/1500/Ortho/U80/ADV",null,null,null,null,null,null,null,{"$f":"LOOKUP(\"zzzzz\",CHOOSE({1,2},\"\",INDEX(E:E,SMALL(IF($E$72:$E$106<>\"\",ROW($E$72:$E$106)),ROWS($C$72:C93)))))","v":""},{"$f":"LEN(K93)","v":0},"",{"$f":"IF(OR(MGA!$D$139:$D$140=A93),A93,\"\")","v":""},{"$f":"IF(ROWS(M$78:M93)<=O$78,INDEX(A$78:A$106,SMALL(IF(L$78:L$106=\"\",ROW(L$78:L$106)-ROW(L$78)+1),ROWS(M$78:M93))),\"\")","v":"SmileSM Plus Gold 50/1500/Ortho/U80/ADV"}]
["SmileSM Plus Gold 50/1500/Ortho/U90/ADV",null,null,null,null,null,null,null,{"$f":"LOOKUP(\"zzzzz\",CHOOSE({1,2},\"\",INDEX(E:E,SMALL(IF($E$72:$E$106<>\"\",ROW($E$72:$E$106)),ROWS($C$72:C94)))))","v":""},0,"",{"$f":"IF(OR(MGA!$D$139:$D$140=A94),A94,\"\")","v":""},{"$f":"IF(ROWS(M$78:M94)<=O$78,INDEX(A$78:A$106,SMALL(IF(L$78:L$106=\"\",ROW(L$78:L$106)-ROW(L$78)+1),ROWS(M$78:M94))),\"\")","v":"SmileSM Plus Gold 50/1500/Ortho/U90/ADV"}]
["SmileSM Plus Gold 50/1500/No Ortho/U90/ADV",null,null,null,null,null,null,null,{"$f":"LOOKUP(\"zzzzz\",CHOOSE({1,2},\"\",INDEX(E:E,SMALL(IF($E$72:$E$106<>\"\",ROW($E$72:$E$106)),ROWS($C$72:C95)))))","v":""},0,"",{"$f":"IF(OR(MGA!$D$139:$D$140=A95),A95,\"\")","v":""},{"$f":"IF(ROWS(M$78:M95)<=O$78,INDEX(A$78:A$106,SMALL(IF(L$78:L$106=\"\",ROW(L$78:L$106)-ROW(L$78)+1),ROWS(M$78:M95))),\"\")","v":"SmileSM Plus Gold 50/1500/No Ortho/U90/ADV"}]
["SmileSM Plus Gold 50/2500/Ortho/U90/ADV",null,null,null,null,null,null,null,{"$f":"LOOKUP(\"zzzzz\",CHOOSE({1,2},\"\",INDEX(E:E,SMALL(IF($E$72:$E$106<>\"\",ROW($E$72:$E$106)),ROWS($C$72:C96)))))","v":""},0,"",{"$f":"IF(OR(MGA!$D$139:$D$140=A96),A96,\"\")","v":""},{"$f":"IF(ROWS(M$78:M96)<=O$78,INDEX(A$78:A$106,SMALL(IF(L$78:L$106=\"\",ROW(L$78:L$106)-ROW(L$78)+1),ROWS(M$78:M96))),\"\")","v":"SmileSM Plus Gold 50/2500/Ortho/U90/ADV"}]
["SmileSM Plus Gold 50/2500/No Ortho/U90/ADV",null,null,null,null,null,null,null,{"$f":"LOOKUP(\"zzzzz\",CHOOSE({1,2},\"\",INDEX(E:E,SMALL(IF($E$72:$E$106<>\"\",ROW($E$72:$E$106)),ROWS($C$72:C97)))))","v":""},0,"",{"$f":"IF(OR(MGA!$D$139:$D$140=A97),A97,\"\")","v":""},{"$f":"IF(ROWS(M$78:M97)<=O$78,INDEX(A$78:A$106,SMALL(IF(L$78:L$106=\"\",ROW(L$78:L$106)-ROW(L$78)+1),ROWS(M$78:M97))),\"\")","v":"SmileSM Plus Gold 50/2500/No Ortho/U90/ADV"}]
["Ultimate Dental PPO for Small Business 50/2000/No Ortho/MAC/NR",null,null,null,null,null,null,null,{"$f":"LOOKUP(\"zzzzz\",CHOOSE({1,2},\"\",INDEX(E:E,SMALL(IF($E$72:$E$106<>\"\",ROW($E$72:$E$106)),ROWS($C$72:C98)))))","v":""},0,"",{"$f":"IF(OR(MGA!$D$139:$D$140=A98),A98,\"\")","v":""},{"$f":"IF(ROWS(M$78:M98)<=O$78,INDEX(A$78:A$106,SMALL(IF(L$78:L$106=\"\",ROW(L$78:L$106)-ROW(L$78)+1),ROWS(M$78:M98))),\"\")","v":"Ultimate Dental PPO for Small Business 50/2000/No Ortho/MAC/NR"}]
["Ultimate Dental Plus PPO for Small Business 50/2000/Ortho/MAC/NR",null,null,null,null,null,null,null,{"$f":"LOOKUP(\"zzzzz\",CHOOSE({1,2},\"\",INDEX(E:E,SMALL(IF($E$72:$E$106<>\"\",ROW($E$72:$E$106)),ROWS($C$72:C99)))))","v":""},0,"",{"$f":"IF(OR(MGA!$D$139:$D$140=A99),A99,\"\")","v":""},{"$f":"IF(ROWS(M$78:M99)<=O$78,INDEX(A$78:A$106,SMALL(IF(L$78:L$106=\"\",ROW(L$78:L$106)-ROW(L$78)+1),ROWS(M$78:M99))),\"\")","v":"Ultimate Dental Plus PPO for Small Business 50/2000/Ortho/MAC/NR"}]
["Ultimate Dental PPO for Small Business 50/2000/No Ortho/U80",null,null,null,null,null,null,null,{"$f":"LOOKUP(\"zzzzz\",CHOOSE({1,2},\"\",INDEX(E:E,SMALL(IF($E$72:$E$106<>\"\",ROW($E$72:$E$106)),ROWS($C$72:C100)))))","v":""},0,"",{"$f":"IF(OR(MGA!$D$139:$D$140=A100),A100,\"\")","v":""},{"$f":"IF(ROWS(M$78:M100)<=O$78,INDEX(A$78:A$106,SMALL(IF(L$78:L$106=\"\",ROW(L$78:L$106)-ROW(L$78)+1),ROWS(M$78:M100))),\"\")","v":"Ultimate Dental PPO for Small Business 50/2000/No Ortho/U80"}]
["Ultimate Dental PPO for Small Business 50/2000/Lifetime Ortho/U90",null,null,null,null,null,null,null,{"$f":"LOOKUP(\"zzzzz\",CHOOSE({1,2},\"\",INDEX(E:E,SMALL(IF($E$72:$E$106<>\"\",ROW($E$72:$E$106)),ROWS($C$72:C101)))))","v":""},0,"",{"$f":"IF(OR(MGA!$D$139:$D$140=A101),A101,\"\")","v":""},{"$f":"IF(ROWS(M$78:M101)<=O$78,INDEX(A$78:A$106,SMALL(IF(L$78:L$106=\"\",ROW(L$78:L$106)-ROW(L$78)+1),ROWS(M$78:M101))),\"\")","v":"Ultimate Dental PPO for Small Business 50/2000/Lifetime Ortho/U90"}]
["Ultimate Dental PPO for Small Business 50/2000/No Ortho/U90",null,null,null,null,null,null,null,{"$f":"LOOKUP(\"zzzzz\",CHOOSE({1,2},\"\",INDEX(E:E,SMALL(IF($E$72:$E$106<>\"\",ROW($E$72:$E$106)),ROWS($C$72:C102)))))","v":""},0,"",{"$f":"IF(OR(MGA!$D$139:$D$140=A102),A102,\"\")","v":""},{"$f":"IF(ROWS(M$78:M102)<=O$78,INDEX(A$78:A$106,SMALL(IF(L$78:L$106=\"\",ROW(L$78:L$106)-ROW(L$78)+1),ROWS(M$78:M102))),\"\")","v":"Ultimate Dental PPO for Small Business 50/2000/No Ortho/U90"}]
["SmileSM Basic Voluntary 75/1000/No Ortho/MAC/NR",null,null,null,null,null,null,null,{"$f":"LOOKUP(\"zzzzz\",CHOOSE({1,2},\"\",INDEX(E:E,SMALL(IF($E$72:$E$106<>\"\",ROW($E$72:$E$106)),ROWS($C$72:C103)))))","v":""},0,"",{"$f":"IF(OR(MGA!$D$139:$D$140=A103),A103,\"\")","v":""},{"$f":"IF(ROWS(M$78:M103)<=O$78,INDEX(A$78:A$106,SMALL(IF(L$78:L$106=\"\",ROW(L$78:L$106)-ROW(L$78)+1),ROWS(M$78:M103))),\"\")","v":"SmileSM Basic Voluntary 75/1000/No Ortho/MAC/NR"}]
["SmileSM Basic Voluntary 50/1000/No Ortho/MAC",null,null,null,null,null,null,null,{"$f":"LOOKUP(\"zzzzz\",CHOOSE({1,2},\"\",INDEX(E:E,SMALL(IF($E$72:$E$106<>\"\",ROW($E$72:$E$106)),ROWS($C$72:C104)))))","v":""},0,"",{"$f":"IF(OR(MGA!$D$139:$D$140=A104),A104,\"\")","v":""},{"$f":"IF(ROWS(M$78:M104)<=O$78,INDEX(A$78:A$106,SMALL(IF(L$78:L$106=\"\",ROW(L$78:L$106)-ROW(L$78)+1),ROWS(M$78:M104))),\"\")","v":"SmileSM Basic Voluntary 50/1000/No Ortho/MAC"}]
["SmileSM Basic Voluntary 50/1500/Ortho/U80",null,null,null,null,null,null,null,{"$f":"LOOKUP(\"zzzzz\",CHOOSE({1,2},\"\",INDEX(E:E,SMALL(IF($E$72:$E$106<>\"\",ROW($E$72:$E$106)),ROWS($C$72:C105)))))","v":""},0,"",{"$f":"IF(OR(MGA!$D$139:$D$140=A105),A105,\"\")","v":""},{"$f":"IF(ROWS(M$78:M105)<=O$78,INDEX(A$78:A$106,SMALL(IF(L$78:L$106=\"\",ROW(L$78:L$106)-ROW(L$78)+1),ROWS(M$78:M105))),\"\")","v":"SmileSM Basic Voluntary 50/1500/Ortho/U80"}]
["SmileSM Basic Voluntary 50/1000/No Ortho/U80",null,null,null,null,null,null,null,{"$f":"LOOKUP(\"zzzzz\",CHOOSE({1,2},\"\",INDEX(E:E,SMALL(IF($E$72:$E$106<>\"\",ROW($E$72:$E$106)),ROWS($C$72:C106)))))","v":""},0,"",{"$f":"IF(OR(MGA!$D$139:$D$140=A106),A106,\"\")","v":""},{"$f":"IF(ROWS(M$78:M106)<=O$78,INDEX(A$78:A$106,SMALL(IF(L$78:L$106=\"\",ROW(L$78:L$106)-ROW(L$78)+1),ROWS(M$78:M106))),\"\")","v":"SmileSM Basic Voluntary 50/1000/No Ortho/U80"}]
[]
["2 Dental HMO plans and 1 Dental PPO plan"]
["3 Dental HMO plans"]
["2 Dental PPO plans and 1 Dental HMO plan"]
[]
["Ultimate Vision for Small Business 0/0/120",null,{"$f":"LOOKUP(\"zzzzz\",CHOOSE({1,2},\"\",INDEX(E:E,SMALL(IF($E$112:$E$113<>\"\",ROW($E$112:$E$113)),ROWS($C$112:C112)))))","v":""},{"$f":"COUNTBLANK(C112:C113)","v":2},{"$f":"IF(MGA!C148=\"\",\"\",MGA!C148)","v":""},{"$f":"IF(COUNTBLANK(C112:C113)=2,\"\",\"Ultimate\")","v":""},{"$f":"LEN(H112)","v":0},{"$f":"IF(I113=\"\",I112,I112&\";\")","v":""},{"$f":"LOOKUP(\"zzzzz\",CHOOSE({1,2},\"\",INDEX(E:E,SMALL(IF($E$112:$E$132<>\"\",ROW($E$112:$E$132)),ROWS($C$112:C112)))))","v":""},{"$f":"LEN(K112)","v":0},{"$f":"IF(I113=\"\",I112,I112&\";\")","v":""},{"$f":"IF(OR(MGA!$C$148:$C$149=A112),A112,\"\")","v":""},{"$f":"IF(ROWS(M$112:M112)<=O$112,INDEX(A$112:A$118,SMALL(IF(L$112:L$118=\"\",ROW(L$112:L$118)-ROW(L$112)+1),ROWS(M$112:M112))),\"\")","v":"Ultimate Vision for Small Business 0/0/120"},null,{"$f":"COUNTBLANK(L112:L118)","v":7},{"$f":"ROW()","v":112},{"$f":"OFFSET(ListValues!$M$112,0,0,ListValues!$O$112)","v":"Ultimate Vision for Small Business 0/0/120"},null,"Waive"]
["Ultimate Vision for Small Business 0/0/150",null,{"$f":"LOOKUP(\"zzzzz\",CHOOSE({1,2},\"\",INDEX(E:E,SMALL(IF($E$112:$E$113<>\"\",ROW($E$112:$E$113)),ROWS($C$112:C113)))))","v":""},null,{"$f":"IF(MGA!C149=\"\",\"\",MGA!C149)","v":""},null,{"$f":"LEN(H113)","v":0},{"$f":"IF(I114=\"\",H112&I113,H112&I113&\";\")","v":""},{"$f":"LOOKUP(\"zzzzz\",CHOOSE({1,2},\"\",INDEX(E:E,SMALL(IF($E$112:$E$132<>\"\",ROW($E$112:$E$132)),ROWS($C$112:C113)))))","v":""},{"$f":"LEN(K113)","v":0},{"$f":"IF(I114=\"\",I113,I113&\";\")","v":""},{"$f":"IF(OR(MGA!$C$148:$C$149=A113),A113,\"\")","v":""},{"$f":"IF(ROWS(M$112:M113)<=O$112,INDEX(A$112:A$118,SMALL(IF(L$112:L$118=\"\",ROW(L$112:L$118)-ROW(L$112)+1),ROWS(M$112:M113))),\"\")","v":"Ultimate Vision for Small Business 0/0/150"},null,null,null,null,null,{"$f":"LOOKUP(\"zzzzz\",CHOOSE({1,2},\"\",INDEX(F:F,SMALL(IF($F$112:$F$132<>\"\",ROW($F$112:$F$132)),ROWS($C$112:C112)))))","v":""}]
["Ultimate Vision for Small Business 10/25/120",null,null,null,null,null,0,{"$f":"IF(I115=\"\",H113&I114,H113&I114&\";\")","v":""},{"$f":"LOOKUP(\"zzzzz\",CHOOSE({1,2},\"\",INDEX(E:E,SMALL(IF($E$112:$E$132<>\"\",ROW($E$112:$E$132)),ROWS($C$112:C114)))))","v":""},0,"",{"$f":"IF(OR(MGA!$C$148:$C$149=A114),A114,\"\")","v":""},{"$f":"IF(ROWS(M$112:M114)<=O$112,INDEX(A$112:A$118,SMALL(IF(L$112:L$118=\"\",ROW(L$112:L$118)-ROW(L$112)+1),ROWS(M$112:M114))),\"\")","v":"Ultimate Vision for Small Business 10/25/120"},null,null,null,null,null,{"$f":"LOOKUP(\"zzzzz\",CHOOSE({1,2},\"\",INDEX(F:F,SMALL(IF($F$112:$F$132<>\"\",ROW($F$112:$F$132)),ROWS($C$112:C113)))))","v":""}]
["Ultimate Vision for Small Business 10/25/150",null,null,null,null,null,0,"",{"$f":"LOOKUP(\"zzzzz\",CHOOSE({1,2},\"\",INDEX(E:E,SMALL(IF($E$112:$E$132<>\"\",ROW($E$112:$E$132)),ROWS($C$112:C115)))))","v":""},0,"",{"$f":"IF(OR(MGA!$C$148:$C$149=A115),A115,\"\")","v":""},{"$f":"IF(ROWS(M$112:M115)<=O$112,INDEX(A$112:A$118,SMALL(IF(L$112:L$118=\"\",ROW(L$112:L$118)-ROW(L$112)+1),ROWS(M$112:M115))),\"\")","v":"Ultimate Vision for Small Business 10/25/150"}]
["Ultimate Vision Plus for Small Business 0/0/150/120",null,null,null,null,null,0,"",{"$f":"LOOKUP(\"zzzzz\",CHOOSE({1,2},\"\",INDEX(E:E,SMALL(IF($E$112:$E$132<>\"\",ROW($E$112:$E$132)),ROWS($C$112:C116)))))","v":""},0,"",{"$f":"IF(OR(MGA!$C$148:$C$149=A116),A116,\"\")","v":""},{"$f":"IF(ROWS(M$112:M116)<=O$112,INDEX(A$112:A$118,SMALL(IF(L$112:L$118=\"\",ROW(L$112:L$118)-ROW(L$112)+1),ROWS(M$112:M116))),\"\")","v":"Ultimate Vision Plus for Small Business 0/0/150/120"}]
["Ultimate Vision Plus for Small Business 10/25/150/120",null,null,null,null,null,0,"",{"$f":"LOOKUP(\"zzzzz\",CHOOSE({1,2},\"\",INDEX(E:E,SMALL(IF($E$112:$E$132<>\"\",ROW($E$112:$E$132)),ROWS($C$112:C117)))))","v":""},0,"",{"$f":"IF(OR(MGA!$C$148:$C$149=A117),A117,\"\")","v":""},{"$f":"IF(ROWS(M$112:M117)<=O$112,INDEX(A$112:A$118,SMALL(IF(L$112:L$118=\"\",ROW(L$112:L$118)-ROW(L$112)+1),ROWS(M$112:M117))),\"\")","v":"Ultimate Vision Plus for Small Business 10/25/150/120"}]
["Ultimate Vision Voluntary for Small Business 10/25/150",null,null,null,null,null,0,"",{"$f":"LOOKUP(\"zzzzz\",CHOOSE({1,2},\"\",INDEX(E:E,SMALL(IF($E$112:$E$132<>\"\",ROW($E$112:$E$132)),ROWS($C$112:C118)))))","v":""},0,"",{"$f":"IF(OR(MGA!$C$148:$C$149=A118),A118,\"\")","v":""},{"$f":"IF(ROWS(M$112:M118)<=O$112,INDEX(A$112:A$118,SMALL(IF(L$112:L$118=\"\",ROW(L$112:L$118)-ROW(L$112)+1),ROWS(M$112:M118))),\"\")","v":"Ultimate Vision Voluntary for Small Business 10/25/150"}]
["Preferred Vision for Small Business 0/0/120",null,{"$f":"LOOKUP(\"zzzzz\",CHOOSE({1,2},\"\",INDEX(E:E,SMALL(IF($E$119:$E$120<>\"\",ROW($E$119:$E$120)),ROWS($C$119:C119)))))","v":""},{"$f":"COUNTBLANK(C119:C120)","v":2},{"$f":"IF(MGA!D148=\"\",\"\",MGA!D148)","v":""},{"$f":"IF(COUNTBLANK(C119:C120)=2,\"\",\"Preferred\")","v":""},0,"",{"$f":"LOOKUP(\"zzzzz\",CHOOSE({1,2},\"\",INDEX(E:E,SMALL(IF($E$112:$E$132<>\"\",ROW($E$112:$E$132)),ROWS($C$112:C119)))))","v":""},0,"",{"$f":"IF(OR(MGA!$D$148:$D$149=A119),A119,\"\")","v":""},{"$f":"IF(ROWS(M$119:M119)<=O$119,INDEX(A$119:A$125,SMALL(IF(L$119:L$125=\"\",ROW(L$119:L$125)-ROW(L$119)+1),ROWS(M$119:M119))),\"\")","v":"Preferred Vision for Small Business 0/0/120"},null,{"$f":"COUNTBLANK(L119:L125)","v":7},{"$f":"ROW()","v":119},{"$f":"OFFSET(ListValues!$M$119,0,0,ListValues!$O$119)","v":"Preferred Vision for Small Business 0/0/120"}]
["Preferred Vision for Small Business 0/0/150",null,{"$f":"LOOKUP(\"zzzzz\",CHOOSE({1,2},\"\",INDEX(E:E,SMALL(IF($E$119:$E$120<>\"\",ROW($E$119:$E$120)),ROWS($C$119:C120)))))","v":""},null,{"$f":"IF(MGA!D149=\"\",\"\",MGA!D149)","v":""},null,0,"",{"$f":"LOOKUP(\"zzzzz\",CHOOSE({1,2},\"\",INDEX(E:E,SMALL(IF($E$112:$E$132<>\"\",ROW($E$112:$E$132)),ROWS($C$112:C120)))))","v":""},0,"",{"$f":"IF(OR(MGA!$D$148:$D$149=A120),A120,\"\")","v":""},{"$f":"IF(ROWS(M$119:M120)<=O$119,INDEX(A$119:A$125,SMALL(IF(L$119:L$125=\"\",ROW(L$119:L$125)-ROW(L$119)+1),ROWS(M$119:M120))),\"\")","v":"Preferred Vision for Small Business 0/0/150"}]
["Preferred Vision for Small Business 10/25/120",null,null,null,null,null,0,"",{"$f":"LOOKUP(\"zzzzz\",CHOOSE({1,2},\"\",INDEX(E:E,SMALL(IF($E$112:$E$132<>\"\",ROW($E$112:$E$132)),ROWS($C$112:C121)))))","v":""},0,"",{"$f":"IF(OR(MGA!$D$148:$D$149=A121),A121,\"\")","v":""},{"$f":"IF(ROWS(M$119:M121)<=O$119,INDEX(A$119:A$125,SMALL(IF(L$119:L$125=\"\",ROW(L$119:L$125)-ROW(L$119)+1),ROWS(M$119:M121))),\"\")","v":"Preferred Vision for Small Business 10/25/120"}]
["Preferred Vision for Small Business 10/25/150",null,null,null,null,null,0,"",{"$f":"LOOKUP(\"zzzzz\",CHOOSE({1,2},\"\",INDEX(E:E,SMALL(IF($E$112:$E$132<>\"\",ROW($E$112:$E$132)),ROWS($C$112:C122)))))","v":""},0,"",{"$f":"IF(OR(MGA!$D$148:$D$149=A122),A122,\"\")","v":""},{"$f":"IF(ROWS(M$119:M122)<=O$119,INDEX(A$119:A$125,SMALL(IF(L$119:L$125=\"\",ROW(L$119:L$125)-ROW(L$119)+1),ROWS(M$119:M122))),\"\")","v":"Preferred Vision for Small Business 10/25/150"}]
["Preferred Vision Plus for Small Business 0/0/150/120",null,null,null,null,null,0,"",{"$f":"LOOKUP(\"zzzzz\",CHOOSE({1,2},\"\",INDEX(E:E,SMALL(IF($E$112:$E$132<>\"\",ROW($E$112:$E$132)),ROWS($C$112:C123)))))","v":""},0,"",{"$f":"IF(OR(MGA!$D$148:$D$149=A123),A123,\"\")","v":""},{"$f":"IF(ROWS(M$119:M123)<=O$119,INDEX(A$119:A$125,SMALL(IF(L$119:L$125=\"\",ROW(L$119:L$125)-ROW(L$119)+1),ROWS(M$119:M123))),\"\")","v":"Preferred Vision Plus for Small Business 0/0/150/120"}]
["Preferred Vision Plus for Small Business 10/25/150/120",null,null,null,null,null,0,"",{"$f":"LOOKUP(\"zzzzz\",CHOOSE({1,2},\"\",INDEX(E:E,SMALL(IF($E$112:$E$132<>\"\",ROW($E$112:$E$132)),ROWS($C$112:C124)))))","v":""},0,"",{"$f":"IF(OR(MGA!$E$148:$E$149=A124),A124,\"\")","v":""},{"$f":"IF(ROWS(M$119:M124)<=O$119,INDEX(A$119:A$125,SMALL(IF(L$119:L$125=\"\",ROW(L$119:L$125)-ROW(L$119)+1),ROWS(M$119:M124))),\"\")","v":"Preferred Vision Plus for Small Business 10/25/150/120"}]
["Preferred Vision Voluntary for Small Business 10/25/120",null,null,null,null,null,0,"",{"$f":"LOOKUP(\"zzzzz\",CHOOSE({1,2},\"\",INDEX(E:E,SMALL(IF($E$112:$E$132<>\"\",ROW($E$112:$E$132)),ROWS($C$112:C125)))))","v":""},0,"",{"$f":"IF(OR(MGA!$E$148:$E$149=A125),A125,\"\")","v":""},{"$f":"IF(ROWS(M$119:M125)<=O$119,INDEX(A$119:A$125,SMALL(IF(L$119:L$125=\"\",ROW(L$119:L$125)-ROW(L$119)+1),ROWS(M$119:M125))),\"\")","v":"Preferred Vision Voluntary for Small Business 10/25/120"}]
["Basic Vision for Small Business 0/0/120",null,{"$f":"LOOKUP(\"zzzzz\",CHOOSE({1,2},\"\",INDEX(E:E,SMALL(IF($E$126:$E$127<>\"\",ROW($E$126:$E$127)),ROWS($C$126:C126)))))","v":""},{"$f":"COUNTBLANK(C126:C127)","v":2},{"$f":"IF(MGA!E148=\"\",\"\",MGA!E148)","v":""},{"$f":"IF(COUNTBLANK(C126:C127)=2,\"\",\"Basic\")","v":""},0,"",{"$f":"LOOKUP(\"zzzzz\",CHOOSE({1,2},\"\",INDEX(E:E,SMALL(IF($E$112:$E$132<>\"\",ROW($E$112:$E$132)),ROWS($C$112:C126)))))","v":""},0,"",{"$f":"IF(OR(MGA!$E$148:$E$149=A126),A126,\"\")","v":""},{"$f":"IF(ROWS(M$126:M126)<=O$126,INDEX(A$126:A$132,SMALL(IF(L$126:L$132=\"\",ROW(L$126:L$132)-ROW(L$126)+1),ROWS(M$126:M126))),\"\")","v":"Basic Vision for Small Business 0/0/120"},null,{"$f":"COUNTBLANK(L126:L132)","v":7},{"$f":"ROW()","v":126},{"$f":"OFFSET(ListValues!$M$126,0,0,ListValues!$O$126)","v":"Basic Vision for Small Business 0/0/120"}]
["Basic Vision for Small Business 0/0/150",null,{"$f":"LOOKUP(\"zzzzz\",CHOOSE({1,2},\"\",INDEX(E:E,SMALL(IF($E$126:$E$127<>\"\",ROW($E$126:$E$127)),ROWS($C$126:C127)))))","v":""},null,{"$f":"IF(MGA!E149=\"\",\"\",MGA!E149)","v":""},null,0,"",{"$f":"LOOKUP(\"zzzzz\",CHOOSE({1,2},\"\",INDEX(E:E,SMALL(IF($E$112:$E$132<>\"\",ROW($E$112:$E$132)),ROWS($C$112:C127)))))","v":""},0,"",{"$f":"IF(OR(MGA!$E$148:$E$149=A127),A127,\"\")","v":""},{"$f":"IF(ROWS(M$126:M127)<=O$126,INDEX(A$126:A$132,SMALL(IF(L$126:L$132=\"\",ROW(L$126:L$132)-ROW(L$126)+1),ROWS(M$126:M127))),\"\")","v":"Basic Vision for Small Business 0/0/150"}]
["Basic Vision for Small Business 10/25/120",null,null,null,null,null,0,"",{"$f":"LOOKUP(\"zzzzz\",CHOOSE({1,2},\"\",INDEX(E:E,SMALL(IF($E$112:$E$132<>\"\",ROW($E$112:$E$132)),ROWS($C$112:C128)))))","v":""},0,"",{"$f":"IF(OR(MGA!$E$148:$E$149=A128),A128,\"\")","v":""},{"$f":"IF(ROWS(M$126:M128)<=O$126,INDEX(A$126:A$132,SMALL(IF(L$126:L$132=\"\",ROW(L$126:L$132)-ROW(L$126)+1),ROWS(M$126:M128))),\"\")","v":"Basic Vision for Small Business 10/25/120"}]
["Basic Vision for Small Business 10/25/150",null,null,null,null,null,0,"",{"$f":"LOOKUP(\"zzzzz\",CHOOSE({1,2},\"\",INDEX(E:E,SMALL(IF($E$112:$E$132<>\"\",ROW($E$112:$E$132)),ROWS($C$112:C129)))))","v":""},0,"",{"$f":"IF(OR(MGA!$E$148:$E$149=A129),A129,\"\")","v":""},{"$f":"IF(ROWS(M$126:M129)<=O$126,INDEX(A$126:A$132,SMALL(IF(L$126:L$132=\"\",ROW(L$126:L$132)-ROW(L$126)+1),ROWS(M$126:M129))),\"\")","v":"Basic Vision for Small Business 10/25/150"}]
["Basic Vision Plus for Small Business 0/0/150/120",null,null,null,null,null,0,"",{"$f":"LOOKUP(\"zzzzz\",CHOOSE({1,2},\"\",INDEX(E:E,SMALL(IF($E$112:$E$132<>\"\",ROW($E$112:$E$132)),ROWS($C$112:C130)))))","v":""},0,"",{"$f":"IF(OR(MGA!$E$148:$E$149=A130),A130,\"\")","v":""},{"$f":"IF(ROWS(M$126:M130)<=O$126,INDEX(A$126:A$132,SMALL(IF(L$126:L$132=\"\",ROW(L$126:L$132)-ROW(L$126)+1),ROWS(M$126:M130))),\"\")","v":"Basic Vision Plus for Small Business 0/0/150/120"}]
["Basic Vision Plus for Small Business 10/25/150/120",null,null,null,null,null,0,"",{"$f":"LOOKUP(\"zzzzz\",CHOOSE({1,2},\"\",INDEX(E:E,SMALL(IF($E$112:$E$132<>\"\",ROW($E$112:$E$132)),ROWS($C$112:C131)))))","v":""},0,"",{"$f":"IF(OR(MGA!$E$148:$E$149=A131),A131,\"\")","v":""},{"$f":"IF(ROWS(M$126:M131)<=O$126,INDEX(A$126:A$132,SMALL(IF(L$126:L$132=\"\",ROW(L$126:L$132)-ROW(L$126)+1),ROWS(M$126:M131))),\"\")","v":"Basic Vision Plus for Small Business 10/25/150/120"}]
["Basic Vision Voluntary for Small Business 10/25/120",null,null,null,null,null,0,"",{"$f":"LOOKUP(\"zzzzz\",CHOOSE({1,2},\"\",INDEX(E:E,SMALL(IF($E$112:$E$132<>\"\",ROW($E$112:$E$132)),ROWS($C$112:C132)))))","v":""},0,"",{"$f":"IF(OR(MGA!$E$148:$E$149=A132),A132,\"\")","v":""},{"$f":"IF(ROWS(M$126:M132)<=O$126,INDEX(A$126:A$132,SMALL(IF(L$126:L$132=\"\",ROW(L$126:L$132)-ROW(L$126)+1),ROWS(M$126:M132))),\"\")","v":"Basic Vision Voluntary for Small Business 10/25/120"}]
[]
["Effective first of the month following date of hire (If hired on the first of the month, coverage will be effective the first of the following month)",0]
["Effective first of the month following 30 days from date of hire",30]
["Effective first of the month following 60 days from date of hire",60]
["Effective on the 91st day following date of hire",91]
[]
[{"$f":"IF(MGA!D40=\"\",\"\",MGA!D40)","v":""},{"$f":"LEN(C139)","v":0},{"$f":"IF(A140=\"\",A139,A139&\";\")","v":""}]
[{"$f":"IF(MGA!D41=\"\",\"\",MGA!D41)","v":""},{"$f":"LEN(C140)","v":0},{"$f":"IF(A141=\"\",C139&A140,C139&A140&\";\")","v":""}]
[{"$f":"IF(MGA!D42=\"\",\"\",MGA!D42)","v":""},{"$f":"LEN(C141)","v":0},{"$f":"IF(A142=\"\",C140&A141,C140&A141&\";\")","v":""}]
[]
[{"$f":"IF(Basic_MGA=\"\",\"\",Basic_MGA)","v":""}]
[{"$f":"IF(MultipleofSalary_MGA=\"\",\"\",MultipleofSalary_MGA)","v":""}]
[{"$f":"IF(MGA!D162=\"\",\"\",MGA!D162)","v":""},{"$f":"LEN(C145)","v":0},{"$f":"IF(A146=\"\",A145,A145&\";\")","v":""}]
[{"$f":"IF(MGA!D163=\"\",\"\",MGA!D163)","v":""},{"$f":"LEN(C146)","v":0},{"$f":"IF(A147=\"\",C145&A146,C145&A146&\";\")","v":""}]
[{"$f":"IF(MGA!D164=\"\",\"\",MGA!D164)","v":""},{"$f":"LEN(C147)","v":0},{"$f":"IF(A148=\"\",C146&A147,C146&A147&\";\")","v":""}]
[{"$f":"IF(MGA!D165=\"\",\"\",MGA!D165)","v":""},{"$f":"LEN(C148)","v":0},{"$f":"IF(A149=\"\",C147&A148,C147&A148&\";\")","v":""}]
[]
[null,null,{"$f":"IF(A143<>\"\",A143,IF(A144<>\"\",A144,VLOOKUP(MAX(B145:B148),B145:C148,2,FALSE)))","v":""}]
["EDI Trading Partner Picklist Options (EDI_Trading_Partner__c)"]
["Ascentis","a3R1B000000kZyx",null,null,"ID in Production"]
["Benatrac","a3R1B000000kZyi",null,null,"ID in Production"]
["Benu","a3R1B000000kZys",null,null,"ID in Production"]
["bSwift","a3R1B000000kZ7w",null,null,"ID in Production"]
["eBenefits Network","a3R1B000000kZz2",null,null,"ID in Production"]
["Maxwell Health","a3R1B000000kZyn",null,null,"ID in Production"]
["Paylocity","a3R1B000000kZz7",null,null,"ID in Production"]
["Other","a3R1B000000NCdZ",null,null,"ID in Production"]
[]
["Exchange Channel Picklist Options:  (Exchange_Name1__c)"]
["Other","0011B000024AnpM",null,null,"ID in Production"]
[]
[]
["HispanicLatino"]
["Yes"]
["No"]
["1003 - Unknown"]
["1024 - Declined"]
[]
["YesHispanicLatino"]
["1000 - Cuban"]
["1026 - Guatemalan"]
["1001 - Mexican, Mexican American, Chicano"]
["1002 - Puerto Rican"]
["1025 - Salvadoran"]
["1022 - 2 or more Ethnicities"]
["1021 - Other Hispanic, Latino, Spanish"]
[]
["Race"]
["1000 - American Indian or Alaska Native"]
["1001 - Asian Indian"]
["1002 - Black or African American"]
["1020 - Cambodian"]
["1003 - Chinese"]
["1004 - Filipino"]
["1005 - Guamanian or Chamorro"]
["1018 - Hmong"]
["1006 - Japanese"]
["1007 - Korean"]
["1019 - Laotian"]
["1008 - Native Hawaiian "]
["1011 - Samoan"]
["1012 - Vietnamese"]
["1013 - White"]
["1015 - 2 or more Races"]
["1014 - Other"]
["1017 - Declined "]
["1016 - Unknown"]
[]
[null," = New for 2021 Q2"]

{"sheet":"LookupTables","index":13,"n_rows":9,"n_cols":20,"rows_kept":9,"cut":false,"hidden":true,"merged":[[0,6,3,6],[4,7,4,11],[4,1,4,5],[4,13,4,17]]}
[null,1,2,3,4,5,"Section SB-1\nTriple Choice",1,2,3,4,5,null,1,2,3,4,5,null,"Format = Entries"]
["2 Dental HMO plans and 1 Dental PPO plan","Y","Y",null,"Y",null,null,{"$f":"COUNTA(MGA!$C$139)","v":0},{"$f":"COUNTA(MGA!$C$140)","v":0},{"$f":"COUNTA(MGA!$C$141)","v":0},{"$f":"COUNTA(MGA!$D$139)","v":0},{"$f":"COUNTA(MGA!$D$140)","v":0},null,{"$f":"B2&H2","v":"Y0"},"Y0","0","Y0","0",null,{"$f":"IF(AND(COUNTIF(B2:F2,\"Y\")=COUNTIF(N2:R2,\"Y1\"),COUNTA(MGA!$C$139:$D$141)=COUNTIF(B2:F2,\"Y\")),\"Y\",\"N\")","v":"N"}]
["3 Dental HMO plans","Y","Y","Y",null,null,null,{"$f":"COUNTA(MGA!$C$139)","v":0},{"$f":"COUNTA(MGA!$C$140)","v":0},{"$f":"COUNTA(MGA!$C$141)","v":0},{"$f":"COUNTA(MGA!$D$139)","v":0},{"$f":"COUNTA(MGA!$D$140)","v":0},null,"Y0","Y0","Y0","0","0",null,{"$f":"IF(AND(COUNTIF(B3:F3,\"Y\")=COUNTIF(N3:R3,\"Y1\"),COUNTA(MGA!$C$139:$D$141)=COUNTIF(B3:F3,\"Y\")),\"Y\",\"N\")","v":"N"}]
["2 Dental PPO plans and 1 Dental HMO plan","Y",null,null,"Y","Y",null,{"$f":"COUNTA(MGA!$C$139)","v":0},{"$f":"COUNTA(MGA!$C$140)","v":0},{"$f":"COUNTA(MGA!$C$141)","v":0},{"$f":"COUNTA(MGA!$D$139)","v":0},{"$f":"COUNTA(MGA!$D$140)","v":0},null,"Y0","0","0","Y0","Y0",null,{"$f":"IF(AND(COUNTIF(B4:F4,\"Y\")=COUNTIF(N4:R4,\"Y1\"),COUNTA(MGA!$C$139:$D$141)=COUNTIF(B4:F4,\"Y\")),\"Y\",\"N\")","v":"N"}]
[null,"Cond Format",null,null,null,null,null,"Populated?",null,null,null,null,null,"Populated?"]
[]
["Single",{"$f":"IF(COUNTA(MGA!$C$139:$C$141,MGA!$D$139:$D$140)=1,0,1)","v":1}]
["Dual Choice",{"$f":"IF(COUNTA(MGA!$C$139:$C$141,MGA!$D$139:$D$140)=2,0,1)","v":1}]
["Triple Choice",{"$f":"IF(VLOOKUP(MGA!D135,A1:T4,20,FALSE)=\"Y\",0,1)","v":{"$error":"#N/A"}}]

{"sheet":"Enrollment Form","index":14,"n_rows":1000,"n_cols":152,"rows_kept":562,"cut":true,"hidden":true,"merged":[[3,2,3,4],[4,2,4,4],[0,0,0,1],[1,0,1,1],[0,2,0,4],[1,2,1,4],[2,2,2,4]],"bounds":{"rows_first":250,"rows_last":62,"rows_between":250,"halvings":3}}
["Group Name",null,{"$f":"IF(UseMGA!$B$1=\"Yes\",MGA!D3,\"\")","v":""},null,null,null,"Legend:"]
["Group Tax ID",null,{"$f":"IF(UseMGA!$B$1=\"Yes\",MGA!D4,\"\")","v":""},null,null,null,null,"Required",null,null,null,null,null,null,null,null,null,null,null,null,null,null,null,null,null,null,null,null,null,null,null,null,null,null,null,null,null,null,null,null,null,null,null,null,null,null,null,null,null,null,null,null,null,null,null,null,null,null,null,null,null,null,null,null,null,null,null,null,null,null,null,null,null,null,null,null,null,null,null,null,null,null,null,null,null,null,null,null,null,null,null,null,null,null,null,null,null,null,null,null,null,null,null,null,null,null,null,null,null,null,null,null,null,null,null,null,null,null,null,null,null,null,null,null,null,"No","Yes"]
["Group Address",null,{"$f":"IF(UseMGA!$B$1=\"Yes\",MGA!D9,\"\")","v":""},null,null,null,null,"Optional",null,null,null,null,null,null,null,null,null,null,null,null,null,null,null,null,null,null,null,null,null,null,null,null,null,null,null,null,null,null,null,null,null,null,null,null,null,null,null,null,null,null,null,null,null,null,null,null,null,null,null,null,null,null,null,null,null,null,null,null,null,null,null,null,null,null,null,null,null,null,null,null,null,null,null,null,null,null,null,null,null,null,null,null,null,null,null,null,null,null,null,null,null,null,null,null,null,null,null,null,null,null,null,null,null,null,null,null,null,null,null,null,null,null,null,null,null,"Yes","No"]
["Group Contact",null,{"$f":"IF(UseMGA!$B$1=\"Yes\",MGA!D25&\" \"&MGA!D26,\"\")","v":""},null,null,null,null,"Not Required"]
["Group Contact Phone",null,{"$f":"IF(UseMGA!$B$1=\"Yes\",MGA!D28,\"\")","v":""},null,null,null,null,"Incorrect Value",null,null,null,null,null,null,null,null,null,null,null,null,null,null,null,null,null,null,null,null,null,null,null,null,null,null,null,null,null,null,null,null,null,null,null,null,null,null,null,null,null,null,null,null,null,null,null,null,null,null,null,null,null,null,null,null,null,null,null,null,null,null,null,null,null,null,null,null,null,null,null,null,null,null,null,null,null,null,null,null,null,null,null,null,null,null,null,null,null,null,null,null,null,null,null,null,null,null,null,null,null,null,null,null,null,null,null,null,null,null,null,null,null,null,null,null,"CY","DD","DI","DN"]
[]
[1,2,3,4,5,6,7,8,10,11,12,13,14,15,16,17,18,19,20,21,22,56,57,58,59,null,60,61,62,63,64,65,null,67,68,69,70,71,null,null,null,72,73,74,75,76,77,78,79,80,81,82,83,84,85,86,87,88,89,90,null,null,null,null,91,92,null,93,94,95,96,97,98,99,100,101,102,103,104,105,106,107,108,109,110,111,null,null,null,null,null,null,null,null,null,112,113,114,115,116,117,118,119,120,121,122,123,124,125,126,127,145,130,131,146,134,135,147,138,139,148,143]
["Application information",null,null,"Subscriber information",null,null,null,null,"Section 1a - Health plan selection",null,"Section SB1 - Dental benefits",null,"Section SB2 - Vision coverage",null,"Section SB3 - Life/AD&D insurance",null,null,null,null,null,null,"Section 2 - Subscriber information ",null,null,null,null,null,null,null,null,null,null,null,null,null,null,null,null,null,null,null,null,null,null,null,null,null,null,null,null,"Section 3 - HMO Personal Physician/Dental HMO provider assignment",null,null,null,null,null,null,null,null,"Section 4 - Dependent information (complete 1 row for each dependent)",null,null,null,null,null,null,null,null,null,null,null,null,null,null,null,null,null,null,null,"Section 5 - Other health plan information",null,null,null,null,null,null,"Section 6 - Medicare information",null,null,null,null,null,null,null,null,"Section 7 - COBRA/Cal-COBRA group continuation coverage",null,null,null,"Section 8 - Disclosure of pers & hlth info",null,"Refusal of Coverage form"]
["Group Tax ID ","Applicant Type","Type of Application","Applicant Last Name (incl Suffix)","Applicant First Name","Applicant Middle Initial ","Subscriber SSN ","Applicant SSN","Health Package","Health Plan","Dental Package","Dental Plan","Vision Package","Vision Plan","Life/AD&D  Option","Employee Life/AD&D Plan","Basic Dependent Life Insurance","Number of Eligible Dependents","Amount Of Coverage Requested For Dependents","Earnings excluding OT, bonus","Earnings Frequency","Subscriber -  Home Address","Subscriber - City","Subscriber - State","Subscriber - Zip","Mailing Address same as Home?","Subscriber - Mailing Address","Subscriber - Mailing City","Subscriber - Mailing State","Subscriber - Mailing Zip","Subscriber - Work Phone","Subscriber - Home Phone","Language Preference","Subscriber - Email Address","Preferred Method Of Contact","Subscriber - Date of Birth","Subscriber - Gender","Subscriber - Marital Status","Are you of Hispanic or Latino origin?","If \"Yes\", please select one","Which race(s) do you identify with? (select one)","Date Of Hire","Subscriber - Job Title","Job Classification","Do you have any eligible dependent children under the age of 26?","How Many?","How Many Are Enrolling?","Are you a FULL-TIME employee?","Are you a PART-TIME employee?","If no, are you an existing COBRA participant or enrolling due to a COBRA qualifying event?","Should Blue Shield designate a Provider?","Medical HMO Personal Physician Name","PCP ID","IPA/MG Name","Existing Medical Patient?","Dental HMO Provider Name ","Dental Provider Number","Dental Group Name","Existing Dental Patient?","All dependents same race & ethnicity as subscriber?","Dependent -\nAre you of Hispanic or Latino origin?","Dependent -\nIf \"Yes\", please select one","Dependent -\nWhich race(s) do you identify with? (select one)","Dependent - Gender","Enroll In All Products Selected By Subscriber?","Dependent - Date Of Birth","Dependent Address same as Subscriber's?","Dependent - Address","Dependent - City","Dependent - State","Dependent - ZIP","Dependent - HMO Personal Physician Name","Dependent - PCP ID","Dependent - IPA Name","Dependent - Existing Medical Patient","Dependent - Dental HMO Provider Name ","Dependent - Dental Provider Number","Dependent - Dental Group Name","Dependent - Existing Dental Patient","Any Prior Coverage In The Past 6 Months?","If Prior Coverage, List Prior Carrier Name","Type of Coverage","Policy ID Number","Date Prior Coverage Began","Date Prior Coverage Ended","Family Members with Prior Coverage.","Are you or any dependents currently covered by Medicare?","If \"Yes\" to current Medicare coverage, do you have Part A?","Part A Effective Date","If \"Yes\" to current Medicare coverage, do you have Part B?","Part B Effective Date","Is Medicare elig due to end stage renal disease?","If \"Yes\" to end stage reneal disease, date of the first dialysis treatment?","Type of dialysis","If kidney transplant, provide date","Are You Enrolling In COBRA or Cal-COBRA?","Employee/Subscriber Blue Shield ID Number","Original Qualifying Event Date","Qualifying Event Reason","Signature Of Employee","Date","Are all eligible family members enrolling?","Date of Birth","Hire Date","State of Residence","Marital Status","Job Title","Are you a FT Employee - 30 or more hours per week?","Are you a PT Employee - 20-29 hours per week?","Declining Medical coverage","Reason for Employee declining Medical","Reason for Employee Declining (other) - Medical","Declining Dental coverage","Reason for Employee declining Dental","Reason for Employee Declining (other) - Dental","Declining Vision coverage","Reason for Employee declining Vision coverage","Reason for Employee Declining (other) - Vision","Declining Life coverage","Reason for Employee declining Life coverage","Reason for Employee Declining (other) - Life","ROC Signature of Employee","Date","Language Preference (Carried Over)","Decline Medical BOOLEAN","Decline Dental BOOLEAN","Decline Vision BOOLEAN","Decline Life BOOLEAN","Other_Medical_Carrier__c","Member_ID_at_Medical_Carrier__c","Other_Dental_Carrier__c","Member_ID_at_Dental_Carrier__c","Other_Vision_Carrier__c","Member_ID_at_Vision_Carrier__c","Other_Life_Carrier__c","Member_ID_at_Life_Carrier__c","CSV Source","PLACE HOLDER","DeclMedQual","DeclDenQual","DeclVisQual","DeclLifeQual","Decl Medical - Following Only","Decl Dental - Following Only","Decl Vision - Following Only","Decl Life - Following Only","Has Medical?","Has Dental?","Has Vision?","Has Life?",null,"Comments/Follow-up"]
["Group_Tax_ID__c","Applicant_Type__c","Type_of_Application__c","Applicant_Last_Name__c","Applicant_First_Name__c","Applicant_Middle_Initial__c","Subscriber_SSN__c","Applicant_SSN__c","Health_Package__c","Health_Plan__c","Detal_Package__c","Dental_Plan__c","Vision_Package__c","Vision_Plan__c","Life_Option__c","Desired_Employee_Basic_Life_Ins_Amt__c","Basic_Dependent_Life_Insurance_Enroll__c","Number_of_Eligible_Dependents__c","Amount_Of_Coverage_Req_For_Dependents__c","Earnings__c","Earnings_Frequency__c","Subscriber_Home_Address__c","Subscriber_City__c","Subscriber_State__c","Subscriber_Zip__c","Same_as_home__c","Subscriber_Mailing_Address__c","Subscriber_Mailing_City__c","Subscriber_Mailing_State__c","Subscriber_Mailing_Zip__c","Subscriber_Work_Phone__c","Subscriber_Home_Phone__c","XXXXX","Subscriber_Email_Address__c","Preferred_Method_Of_Contact__c","Subscriber_Date_of_Birth__c","Subscriber_Gender__c","Subscriber_Marital_Status__c","Hispanic_or_Latino_origin__c","If_yes_H_L__c","Sub_Which_race_do_you_identify_with__c","Subscriber_Date_Of_Hire__c","Subscriber_Job_Title__c","Job_Classification__c","Eligible_dependents_less_than_26__c","How_many_dependents_less_than_26__c","How_many_dependents_lessthan26_enrolling__c","Work_30_hours_per_week__c","Work_20_to_29_hours_per_week__c","Cobra_participant_or_qualifying_event__c","Designate_a_Provider__c","Medical_HMO_Personal_Physician_Name__c","Provider_Number__c","IPA_MG_Name__c","Existing_Medical_Patient__c","Dental_HMO_Provider_Name__c","Dental_Provider_Number__c","Dental_Group_Name__c","Existing_Dental_Patient__c","XXX","Dep_Hispanic_or_Latino_origin__c","Dep_If_yes_H_L__c","Dep_Which_race_do_you_identify_with__c","Dependent_Gender__c","Enroll_In_All_Subscriber_Products__c","Dependent_Date_Of_Birth__c","Address_same_as_Applicant__c","Dependent_Address__c","Dependent_City__c","Dependent_State__c","Dependent_ZIP__c","Dependent_HMO_Personal_Physician_Name__c","Dependent_Provider_Number__c","Dependent_IPA_Name__c","Dependent_Existing_Medical_Patient__c","Dependent_Dental_HMO_Provider_Name__c","Dependent_Dental_Provider_Number__c","Dependent_Dental_Group_Name__c","Dependent_Existing_Dental_Patient__c","Prior_Coverage__c","Prior_Carrier_Name__c","Type_of_Coverage__c","Policy_ID_Number__c","Date_Prior_Coverage_Began__c","Date_Prior_Coverage_Ended__c","Family_Members_with_Prior_Coverage__c","Medicare_Current_Coverage__c","Medicare_Part_A__c","Medicare_Part_A_Date__c","Medicare_Part_B__c","Medicare_Part_B_Date__c","Medicare_End_Stage_Renal__c","Medicare_First_Dialysis_Date__c","Medicare_Dialysis_Type__c","Medicare_Kidney_Transplant_Date__c","Enrolling_In_Cobra_or_CalCobra__c","Blue_Shield_ID_Number__c","Original_Qualifying_Event_Date__c","Qualifying_Event_Reason__c","Signature_Of_Employee__c","Signature_Date__c","All_eligible_family_members_enrolling__c","ROC_Date_of_Birth__c","ROC_Date_of_Hire__c","ROC_State_of_Residence__c","ROC_Marital_Status__c","ROC_Job_Title__c","FT_Employee__c","PT_Employee__c","Declining_Medical_coverage__c","Reason_For_declining_Medical__c","R_Decl_Other_Medical__c","Declining_Dental_coverage__c","Reason_For_declining_Dental__c","R_Decl_Other_Dental__c","Declining_Vision_coverage__c","Reason_For_declining_Vision_coverage__c","R_Decl_Other_Vision__c","Declining_Life_coverage__c","Reason_for_declining_Life_coverage__c","R_Decl_Other_Life__c","ROC_Signature__c","ROC_Date__c","Language_Preference__c","Declining_Coverage_for_Medical__c","Declining_Coverage_for_Dental__c","Declining_Coverage_for_Vision__c","Declining_Coverage_for_Life__c","Other_Medical_Carrier__c","Member_ID_at_Medical_Carrier__c","Other_Dental_Carrier__c","Member_ID_at_Dental_Carrier__c","Other_Vision_Carrier__c","Member_ID_at_Vision_Carrier__c","Other_Life_Carrier__c","Member_ID_at_Life_Carrier__c","CSV_Source__c","EOL"]
[{"$f":"IF(LEN($B11)>0,$C$2,\"\")","v":""},null,null,null,null,null,null,{"$f":"IF(AND(B11=\"Subscriber\",G11<>\"\"),G11,\"\")","v":""},null,null,null,null,null,null,null,null,null,null,null,null,null,null,null,null,null,null,{"$f":"IF(AND($B11=\"Subscriber\",$Z11=\"Yes\"),V11,\"\")","v":""},{"$f":"IF(AND($B11=\"Subscriber\",$Z11=\"Yes\"),W11,\"\")","v":""},{"$f":"IF(AND($B11=\"Subscriber\",$Z11=\"Yes\"),X11,\"\")","v":""},{"$f":"IF(AND($B11=\"Subscriber\",$Z11=\"Yes\"),Y11,\"\")","v":""},null,null,{"$f":"IF(AND(B11=\"Subscriber\",AJ11<>\"\"),\"NS01 - Not Selected\",\"\")","v":""},null,null,null,null,null,null,null,null,null,null,null,null,null,null,null,null,null,null,null,null,null,null,null,null,null,null,null,{"$f":"IF(OR($B11=\"Subscriber\",$B11=\"\"),\"\",IF(OR(VLOOKUP($G11,$H:$BH,53,FALSE)=\"No\",VLOOKUP($G11,$H:$BH,53,FALSE)=\"\"),\"\",IF(VLOOKUP($G11,$H:$BH,53,FALSE)=\"Yes\",VLOOKUP(G11,$H:$BI,32,FALSE))))","v":""},{"$f":"IF(OR($B11=\"Subscriber\",$B11=\"\"),\"\",IF(OR(VLOOKUP($G11,$H:$BH,53,FALSE)=\"No\",VLOOKUP($G11,$H:$BH,53,FALSE)=\"\"),\"\",IF(VLOOKUP($G11,$H:$BH,53,FALSE)=\"Yes\",VLOOKUP(G11,$H:$BI,33,FALSE))))","v":""},{"$f":"IF(OR($B11=\"Subscriber\",$B11=\"\"),\"\",IF(OR(VLOOKUP($G11,$H:$BH,53,FALSE)=\"No\",VLOOKUP($G11,$H:$BH,53,FALSE)=\"\"),\"\",IF(VLOOKUP($G11,$H:$BH,53,FALSE)=\"Yes\",VLOOKUP(G11,$H:$BI,34,FALSE))))","v":""},null,null,null,null,{"$f":"IF(AND($B11<>\"Subscriber\",$BO11=\"Yes\"),VLOOKUP($G11,$H$11:$Y$1000,15,FALSE),\"\")","v":""},{"$f":"IF(AND($B11<>\"Subscriber\",$BO11=\"Yes\"),VLOOKUP($G11,$H$11:$Y$1000,16,FALSE),\"\")","v":""},{"$f":"IF(AND($B11<>\"Subscriber\",$BO11=\"Yes\"),VLOOKUP($G11,$H$11:$Y$1000,17,FALSE),\"\")","v":""},{"$f":"IF(AND($B11<>\"Subscriber\",$BO11=\"Yes\"),VLOOKUP($G11,$H$11:$Y$1000,18,FALSE),\"\")","v":""},null,null,null,null,null,null,null,null,null,null,null,null,null,null,null,null,null,null,null,null,null,null,null,null,null,null,null,null,null,null,null,null,null,null,null,null,null,null,null,null,null,null,null,null,null,null,null,null,null,null,null,null,{"$f":"IF($A11=\"\",\"\",IF($B11=\"Subscriber\",$AG11,VLOOKUP($G11,$H$11:$AG$1000,26,FALSE)))","v":""},{"$f":"IF($A11=\"\",\"\",IF(VLOOKUP($G11,$H$11:$DO$1000,103,FALSE)=\"\",\"No\",IF(LEFT(VLOOKUP($G11,$H$11:$DO$1000,103,FALSE),3)=\"The\",EM11,VLOOKUP(VLOOKUP($G11,$H$11:$DO$1000,103,FALSE),DeclMatrix!$A$2:$F$5,VLOOKUP('Enrollment Form'!$B11,DeclMatrix!$A$8:$B$12,2,FALSE),FALSE))))","v":""},{"$f":"IF($A11=\"\",\"\",IF(VLOOKUP($G11,$H$11:$DO$1000,106,FALSE)=\"\",\"No\",IF(LEFT(VLOOKUP($G11,$H$11:$DO$1000,106,FALSE),3)=\"The\",EN11,VLOOKUP(VLOOKUP($G11,$H$11:$DO$1000,106,FALSE),DeclMatrix!$A$2:$F$5,VLOOKUP('Enrollment Form'!$B11,DeclMatrix!$A$8:$B$12,2,FALSE),FALSE))))","v":""},{"$f":"IF($A11=\"\",\"\",IF(VLOOKUP($G11,$H$11:$DO$1000,109,FALSE)=\"\",\"No\",IF(LEFT(VLOOKUP($G11,$H$11:$DO$1000,109,FALSE),3)=\"The\",EO11,VLOOKUP(VLOOKUP($G11,$H$11:$DO$1000,109,FALSE),DeclMatrix!$A$2:$F$5,VLOOKUP('Enrollment Form'!$B11,DeclMatrix!$A$8:$B$12,2,FALSE),FALSE))))","v":""},{"$f":"IF($A11=\"\",\"\",IF(VLOOKUP($G11,$H$11:$DO$1000,112,FALSE)=\"\",\"No\",IF(LEFT(VLOOKUP($G11,$H$11:$DO$1000,112,FALSE),3)=\"The\",EP11,VLOOKUP(VLOOKUP($G11,$H$11:$DO$1000,112,FALSE),DeclMatrix!$A$2:$F$5,VLOOKUP('Enrollment Form'!$B11,DeclMatrix!$A$8:$B$12,2,FALSE),FALSE))))","v":""},null,null,null,null,null,null,null,null,{"$f":"IF(A11<>\"\",\"1X\",\"\")","v":""},null,{"$f":"$B11&$G11&$J11","v":""},{"$f":"$B11&$G11&$L11","v":""},{"$f":"$B11&$G11&$N11","v":""},{"$f":"$B11&$G11&$O11","v":""},{"$f":"IF($A11=\"\",\"\",IF($B11=\"Subscriber\",\"No\",IF(OR($DF11=\"\",$DF11=\"No\"),\"No\",\"Yes\")))","v":""},{"$f":"IF($A11=\"\",\"\",IF($B11=\"Subscriber\",\"No\",IF(OR($DI11=\"\",$DI11=\"No\"),\"No\",\"Yes\")))","v":""},{"$f":"IF($A11=\"\",\"\",IF($B11=\"Subscriber\",\"No\",IF(OR($DL11=\"\",$DL11=\"No\"),\"No\",\"Yes\")))","v":""},{"$f":"IF($A11=\"\",\"\",IF($B11=\"Subscriber\",\"No\",IF(OR($DO11=\"\",$DO11=\"No\"),\"No\",\"Yes\")))","v":""},{"$f":"IF($A11=\"\",\"\",IF(AND($B11=\"Subscriber\",$I11<>\"Waive\",$I11<>\"\"),\"Yes\",IF(AND($B11<>\"Subscriber\",$BM11=\"Yes\"),VLOOKUP($G11,$H$11:$ET$1000,140,FALSE),IF(AND($C11=\"Enroll\",VLOOKUP($G12,$H$11:$ET$1000,103,FALSE)<>\"\"),VLOOKUP($DU11,$DV$2:$DW$3,2,FALSE),\"No\"))))","v":""},{"$f":"IF($A11=\"\",\"\",IF(AND($B11=\"Subscriber\",$K11<>\"Waive\",$K11<>\"\"),\"Yes\",IF(AND($B11<>\"Subscriber\",$BM11=\"Yes\"),VLOOKUP($G11,$H$11:$ET$1000,141,FALSE),IF(AND($C11=\"Enroll\",VLOOKUP($G12,$H$11:$ET$1000,106,FALSE)<>\"\"),VLOOKUP($DV11,$DV$2:$DW$3,2,FALSE),\"No\"))))","v":""},{"$f":"IF($A11=\"\",\"\",IF(AND($B11=\"Subscriber\",$M11<>\"Waive\",$M11<>\"\"),\"Yes\",IF(AND($B11<>\"Subscriber\",$BM11=\"Yes\"),VLOOKUP($G11,$H$11:$ET$1000,142,FALSE),IF(AND($C11=\"Enroll\",VLOOKUP($G12,$H$11:$ET$1000,109,FALSE)<>\"\"),VLOOKUP($DW11,$DV$2:$DW$3,2,FALSE),\"No\"))))","v":""},{"$f":"IF($A11=\"\",\"\",IF(AND($B11=\"Subscriber\",$O11<>\"Waive\",$O11<>\"\"),\"Yes\",IF(AND($B11<>\"Subscriber\",$BM11=\"Yes\"),VLOOKUP($G11,$H$11:$ET$1000,143,FALSE),IF(AND($C11=\"Enroll\",VLOOKUP($G12,$H$11:$ET$1000,112,FALSE)<>\"\"),VLOOKUP($DX11,$DV$2:$DW$3,2,FALSE),\"No\"))))","v":""}]
["",null,null,null,null,null,{"$f":"IF(A12=\"\",\"\",IF(AND(B12<>\"Subscriber\",B12<>\"\"),G11,\"\"))","v":""},{"$f":"IF(AND(B12=\"Subscriber\",G12<>\"\"),G12,\"\")","v":""},null,null,null,null,null,null,null,null,null,null,null,null,null,null,null,null,null,null,{"$f":"IF(AND($B12=\"Subscriber\",$Z12=\"Yes\"),V12,\"\")","v":""},{"$f":"IF(AND($B12=\"Subscriber\",$Z12=\"Yes\"),W12,\"\")","v":""},{"$f":"IF(AND($B12=\"Subscriber\",$Z12=\"Yes\"),X12,\"\")","v":""},{"$f":"IF(AND($B12=\"Subscriber\",$Z12=\"Yes\"),Y12,\"\")","v":""},null,null,{"$f":"IF(AND(B12=\"Subscriber\",AJ12<>\"\"),\"NS01 - Not Selected\",\"\")","v":""},null,null,null,null,null,null,null,null,null,null,null,null,null,null,null,null,null,null,null,null,null,null,null,null,null,null,null,{"$f":"IF(OR($B12=\"Subscriber\",$B12=\"\"),\"\",IF(OR(VLOOKUP($G12,$H:$BH,53,FALSE)=\"No\",VLOOKUP($G12,$H:$BH,53,FALSE)=\"\"),\"\",IF(VLOOKUP($G12,$H:$BH,53,FALSE)=\"Yes\",VLOOKUP(G12,$H:$BI,32,FALSE))))","v":""},{"$f":"IF(OR($B12=\"Subscriber\",$B12=\"\"),\"\",IF(OR(VLOOKUP($G12,$H:$BH,53,FALSE)=\"No\",VLOOKUP($G12,$H:$BH,53,FALSE)=\"\"),\"\",IF(VLOOKUP($G12,$H:$BH,53,FALSE)=\"Yes\",VLOOKUP(G12,$H:$BI,33,FALSE))))","v":""},{"$f":"IF(OR($B12=\"Subscriber\",$B12=\"\"),\"\",IF(OR(VLOOKUP($G12,$H:$BH,53,FALSE)=\"No\",VLOOKUP($G12,$H:$BH,53,FALSE)=\"\"),\"\",IF(VLOOKUP($G12,$H:$BH,53,FALSE)=\"Yes\",VLOOKUP(G12,$H:$BI,34,FALSE))))","v":""},null,null,null,null,"","","","",null,null,null,null,null,null,null,null,null,null,null,null,null,null,null,null,null,null,null,null,null,null,null,null,null,null,null,null,null,null,null,null,null,null,null,null,null,null,null,null,null,null,null,null,null,null,null,null,null,null,null,null,"",{"$f":"IF($A12=\"\",\"\",IF(VLOOKUP($G12,$H$11:$DO$1000,103,FALSE)=\"\",\"No\",IF(LEFT(VLOOKUP($G12,$H$11:$DO$1000,103,FALSE),3)=\"The\",EM12,VLOOKUP(VLOOKUP($G12,$H$11:$DO$1000,103,FALSE),DeclMatrix!$A$2:$F$5,VLOOKUP('Enrollment Form'!$B12,DeclMatrix!$A$8:$B$12,2,FALSE),FALSE))))","v":""},{"$f":"IF($A12=\"\",\"\",IF(VLOOKUP($G12,$H$11:$DO$1000,106,FALSE)=\"\",\"No\",IF(LEFT(VLOOKUP($G12,$H$11:$DO$1000,106,FALSE),3)=\"The\",EN12,VLOOKUP(VLOOKUP($G12,$H$11:$DO$1000,106,FALSE),DeclMatrix!$A$2:$F$5,VLOOKUP('Enrollment Form'!$B12,DeclMatrix!$A$8:$B$12,2,FALSE),FALSE))))","v":""},{"$f":"IF($A12=\"\",\"\",IF(VLOOKUP($G12,$H$11:$DO$1000,109,FALSE)=\"\",\"No\",IF(LEFT(VLOOKUP($G12,$H$11:$DO$1000,109,FALSE),3)=\"The\",EO12,VLOOKUP(VLOOKUP($G12,$H$11:$DO$1000,109,FALSE),DeclMatrix!$A$2:$F$5,VLOOKUP('Enrollment Form'!$B12,DeclMatrix!$A$8:$B$12,2,FALSE),FALSE))))","v":""},{"$f":"IF($A12=\"\",\"\",IF(VLOOKUP($G12,$H$11:$DO$1000,112,FALSE)=\"\",\"No\",IF(LEFT(VLOOKUP($G12,$H$11:$DO$1000,112,FALSE),3)=\"The\",EP12,VLOOKUP(VLOOKUP($G12,$H$11:$DO$1000,112,FALSE),DeclMatrix!$A$2:$F$5,VLOOKUP('Enrollment Form'!$B12,DeclMatrix!$A$8:$B$12,2,FALSE),FALSE))))","v":""},null,null,null,null,null,null,null,null,"",null,"","","","","","","","","","","",""]
["",null,null,null,null,null,"","",null,null,null,null,null,null,"",null,null,null,null,null,null,null,null,null,null,null,"","","","",null,null,"",null,null,null,null,null,null,null,null,null,null,null,null,null,null,null,null,null,null,null,null,null,null,null,null,null,null,null,"","","",null,null,null,null,"","","","",null,null,null,null,null,null,null,null,null,null,null,null,null,null,null,null,null,null,null,null,null,null,null,null,null,null,null,null,null,null,null,null,null,null,null,null,null,null,null,null,null,null,null,null,null,null,null,null,null,null,null,null,"",{"$f":"IF($A13=\"\",\"\",IF(VLOOKUP($G13,$H$11:$DO$1000,103,FALSE)=\"\",\"No\",IF(LEFT(VLOOKUP($G13,$H$11:$DO$1000,103,FALSE),3)=\"The\",EM13,VLOOKUP(VLOOKUP($G13,$H$11:$DO$1000,103,FALSE),DeclMatrix!$A$2:$F$5,VLOOKUP('Enrollment Form'!$B13,DeclMatrix!$A$8:$B$12,2,FALSE),FALSE))))","v":""},{"$f":"IF($A13=\"\",\"\",IF(VLOOKUP($G13,$H$11:$DO$1000,106,FALSE)=\"\",\"No\",IF(LEFT(VLOOKUP($G13,$H$11:$DO$1000,106,FALSE),3)=\"The\",EN13,VLOOKUP(VLOOKUP($G13,$H$11:$DO$1000,106,FALSE),DeclMatrix!$A$2:$F$5,VLOOKUP('Enrollment Form'!$B13,DeclMatrix!$A$8:$B$12,2,FALSE),FALSE))))","v":""},{"$f":"IF($A13=\"\",\"\",IF(VLOOKUP($G13,$H$11:$DO$1000,109,FALSE)=\"\",\"No\",IF(LEFT(VLOOKUP($G13,$H$11:$DO$1000,109,FALSE),3)=\"The\",EO13,VLOOKUP(VLOOKUP($G13,$H$11:$DO$1000,109,FALSE),DeclMatrix!$A$2:$F$5,VLOOKUP('Enrollment Form'!$B13,DeclMatrix!$A$8:$B$12,2,FALSE),FALSE))))","v":""},{"$f":"IF($A13=\"\",\"\",IF(VLOOKUP($G13,$H$11:$DO$1000,112,FALSE)=\"\",\"No\",IF(LEFT(VLOOKUP($G13,$H$11:$DO$1000,112,FALSE),3)=\"The\",EP13,VLOOKUP(VLOOKUP($G13,$H$11:$DO$1000,112,FALSE),DeclMatrix!$A$2:$F$5,VLOOKUP('Enrollment Form'!$B13,DeclMatrix!$A$8:$B$12,2,FALSE),FALSE))))","v":""},null,null,null,null,null,null,null,null,"",null,"","","","","","","","","","","",""]
["",null,null,null,null,null,"","",null,null,null,null,null,null,null,null,null,null,null,null,null,null,null,null,null,null,"","","","",null,null,"",null,null,null,null,null,null,null,null,null,null,null,null,null,null,null,null,null,null,null,null,null,null,null,null,null,null,null,"","","",null,null,null,null,"","","","",null,null,null,null,null,null,null,null,null,null,null,null,null,null,null,null,null,null,null,null,null,null,null,null,null,null,null,null,null,null,null,null,null,null,null,null,null,null,null,null,null,null,null,null,null,null,null,null,null,null,null,null,"",{"$f":"IF($A14=\"\",\"\",IF(VLOOKUP($G14,$H$11:$DO$1000,103,FALSE)=\"\",\"No\",IF(LEFT(VLOOKUP($G14,$H$11:$DO$1000,103,FALSE),3)=\"The\",EM14,VLOOKUP(VLOOKUP($G14,$H$11:$DO$1000,103,FALSE),DeclMatrix!$A$2:$F$5,VLOOKUP('Enrollment Form'!$B14,DeclMatrix!$A$8:$B$12,2,FALSE),FALSE))))","v":""},{"$f":"IF($A14=\"\",\"\",IF(VLOOKUP($G14,$H$11:$DO$1000,106,FALSE)=\"\",\"No\",IF(LEFT(VLOOKUP($G14,$H$11:$DO$1000,106,FALSE),3)=\"The\",EN14,VLOOKUP(VLOOKUP($G14,$H$11:$DO$1000,106,FALSE),DeclMatrix!$A$2:$F$5,VLOOKUP('Enrollment Form'!$B14,DeclMatrix!$A$8:$B$12,2,FALSE),FALSE))))","v":""},{"$f":"IF($A14=\"\",\"\",IF(VLOOKUP($G14,$H$11:$DO$1000,109,FALSE)=\"\",\"No\",IF(LEFT(VLOOKUP($G14,$H$11:$DO$1000,109,FALSE),3)=\"The\",EO14,VLOOKUP(VLOOKUP($G14,$H$11:$DO$1000,109,FALSE),DeclMatrix!$A$2:$F$5,VLOOKUP('Enrollment Form'!$B14,DeclMatrix!$A$8:$B$12,2,FALSE),FALSE))))","v":""},{"$f":"IF($A14=\"\",\"\",IF(VLOOKUP($G14,$H$11:$DO$1000,112,FALSE)=\"\",\"No\",IF(LEFT(VLOOKUP($G14,$H$11:$DO$1000,112,FALSE),3)=\"The\",EP14,VLOOKUP(VLOOKUP($G14,$H$11:$DO$1000,112,FALSE),DeclMatrix!$A$2:$F$5,VLOOKUP('Enrollment Form'!$B14,DeclMatrix!$A$8:$B$12,2,FALSE),FALSE))))","v":""},null,null,null,null,null,null,null,null,"",null,"","","","","","","","","","","",""]
["",null,null,null,null,null,"","",null,null,null,null,null,null,null,null,null,null,null,null,null,null,null,null,null,null,"","","","",null,null,"",null,null,null,null,null,null,null,null,null,null,null,null,null,null,null,null,null,null,null,null,null,null,null,null,null,null,null,"","","",null,null,null,null,"","","","",null,null,null,null,null,null,null,null,null,null,null,null,null,null,null,null,null,null,null,null,null,null,null,null,null,null,null,null,null,null,null,null,null,null,null,null,null,null,null,null,null,null,null,null,null,null,null,null,null,null,null,null,"",{"$f":"IF($A15=\"\",\"\",IF(VLOOKUP($G15,$H$11:$DO$1000,103,FALSE)=\"\",\"No\",IF(LEFT(VLOOKUP($G15,$H$11:$DO$1000,103,FALSE),3)=\"The\",EM15,VLOOKUP(VLOOKUP($G15,$H$11:$DO$1000,103,FALSE),DeclMatrix!$A$2:$F$5,VLOOKUP('Enrollment Form'!$B15,DeclMatrix!$A$8:$B$12,2,FALSE),FALSE))))","v":""},{"$f":"IF($A15=\"\",\"\",IF(VLOOKUP($G15,$H$11:$DO$1000,106,FALSE)=\"\",\"No\",IF(LEFT(VLOOKUP($G15,$H$11:$DO$1000,106,FALSE),3)=\"The\",EN15,VLOOKUP(VLOOKUP($G15,$H$11:$DO$1000,106,FALSE),DeclMatrix!$A$2:$F$5,VLOOKUP('Enrollment Form'!$B15,DeclMatrix!$A$8:$B$12,2,FALSE),FALSE))))","v":""},{"$f":"IF($A15=\"\",\"\",IF(VLOOKUP($G15,$H$11:$DO$1000,109,FALSE)=\"\",\"No\",IF(LEFT(VLOOKUP($G15,$H$11:$DO$1000,109,FALSE),3)=\"The\",EO15,VLOOKUP(VLOOKUP($G15,$H$11:$DO$1000,109,FALSE),DeclMatrix!$A$2:$F$5,VLOOKUP('Enrollment Form'!$B15,DeclMatrix!$A$8:$B$12,2,FALSE),FALSE))))","v":""},{"$f":"IF($A15=\"\",\"\",IF(VLOOKUP($G15,$H$11:$DO$1000,112,FALSE)=\"\",\"No\",IF(LEFT(VLOOKUP($G15,$H$11:$DO$1000,112,FALSE),3)=\"The\",EP15,VLOOKUP(VLOOKUP($G15,$H$11:$DO$1000,112,FALSE),DeclMatrix!$A$2:$F$5,VLOOKUP('Enrollment Form'!$B15,DeclMatrix!$A$8:$B$12,2,FALSE),FALSE))))","v":""},null,null,null,null,null,null,null,null,"",null,"","","","","","","","","","","",""]
["",null,null,null,null,null,"","",null,null,null,null,null,null,null,null,null,null,null,null,null,null,null,null,null,null,"","","","",null,null,"",null,null,null,null,null,null,null,null,null,null,null,null,null,null,null,null,null,null,null,null,null,null,null,null,null,null,null,"","","",null,null,null,null,"","","","",null,null,null,null,null,null,null,null,null,null,null,null,null,null,null,null,null,null,null,null,null,null,null,null,null,null,null,null,null,null,null,null,null,null,null,null,null,null,null,null,null,null,null,null,null,null,null,null,null,null,null,null,"",{"$f":"IF($A16=\"\",\"\",IF(VLOOKUP($G16,$H$11:$DO$1000,103,FALSE)=\"\",\"No\",IF(LEFT(VLOOKUP($G16,$H$11:$DO$1000,103,FALSE),3)=\"The\",EM16,VLOOKUP(VLOOKUP($G16,$H$11:$DO$1000,103,FALSE),DeclMatrix!$A$2:$F$5,VLOOKUP('Enrollment Form'!$B16,DeclMatrix!$A$8:$B$12,2,FALSE),FALSE))))","v":""},{"$f":"IF($A16=\"\",\"\",IF(VLOOKUP($G16,$H$11:$DO$1000,106,FALSE)=\"\",\"No\",IF(LEFT(VLOOKUP($G16,$H$11:$DO$1000,106,FALSE),3)=\"The\",EN16,VLOOKUP(VLOOKUP($G16,$H$11:$DO$1000,106,FALSE),DeclMatrix!$A$2:$F$5,VLOOKUP('Enrollment Form'!$B16,DeclMatrix!$A$8:$B$12,2,FALSE),FALSE))))","v":""},{"$f":"IF($A16=\"\",\"\",IF(VLOOKUP($G16,$H$11:$DO$1000,109,FALSE)=\"\",\"No\",IF(LEFT(VLOOKUP($G16,$H$11:$DO$1000,109,FALSE),3)=\"The\",EO16,VLOOKUP(VLOOKUP($G16,$H$11:$DO$1000,109,FALSE),DeclMatrix!$A$2:$F$5,VLOOKUP('Enrollment Form'!$B16,DeclMatrix!$A$8:$B$12,2,FALSE),FALSE))))","v":""},{"$f":"IF($A16=\"\",\"\",IF(VLOOKUP($G16,$H$11:$DO$1000,112,FALSE)=\"\",\"No\",IF(LEFT(VLOOKUP($G16,$H$11:$DO$1000,112,FALSE),3)=\"The\",EP16,VLOOKUP(VLOOKUP($G16,$H$11:$DO$1000,112,FALSE),DeclMatrix!$A$2:$F$5,VLOOKUP('Enrollment Form'!$B16,DeclMatrix!$A$8:$B$12,2,FALSE),FALSE))))","v":""},null,null,null,null,null,null,null,null,"",null,"","","","","","","","","","","",""]
["",null,null,null,null,null,{"$f":"IF(A17=\"\",\"\",IF(AND(B17<>\"Subscriber\",B17<>\"\"),G16,\"\"))","v":""},{"$f":"IF(AND(B17=\"Subscriber\",G17<>\"\"),G17,\"\")","v":""},null,null,null,null,null,null,null,null,null,null,null,null,null,null,null,null,null,null,"","","","",null,null,"",null,null,null,null,null,null,null,null,null,null,null,null,null,null,null,null,null,null,null,null,null,null,null,null,null,null,null,"","","",null,null,null,null,"","","","",null,null,null,null,null,null,null,null,null,null,null,null,null,null,null,null,null,null,null,null,null,null,null,null,null,null,null,null,null,null,null,null,null,null,null,null,null,null,null,null,null,null,null,null,null,null,null,null,null,null,null,null,"",{"$f":"IF($A17=\"\",\"\",IF(VLOOKUP($G17,$H$11:$DO$1000,103,FALSE)=\"\",\"No\",IF(LEFT(VLOOKUP($G17,$H$11:$DO$1000,103,FALSE),3)=\"The\",EM17,VLOOKUP(VLOOKUP($G17,$H$11:$DO$1000,103,FALSE),DeclMatrix!$A$2:$F$5,VLOOKUP('Enrollment Form'!$B17,DeclMatrix!$A$8:$B$12,2,FALSE),FALSE))))","v":""},{"$f":"IF($A17=\"\",\"\",IF(VLOOKUP($G17,$H$11:$DO$1000,106,FALSE)=\"\",\"No\",IF(LEFT(VLOOKUP($G17,$H$11:$DO$1000,106,FALSE),3)=\"The\",EN17,VLOOKUP(VLOOKUP($G17,$H$11:$DO$1000,106,FALSE),DeclMatrix!$A$2:$F$5,VLOOKUP('Enrollment Form'!$B17,DeclMatrix!$A$8:$B$12,2,FALSE),FALSE))))","v":""},{"$f":"IF($A17=\"\",\"\",IF(VLOOKUP($G17,$H$11:$DO$1000,109,FALSE)=\"\",\"No\",IF(LEFT(VLOOKUP($G17,$H$11:$DO$1000,109,FALSE),3)=\"The\",EO17,VLOOKUP(VLOOKUP($G17,$H$11:$DO$1000,109,FALSE),DeclMatrix!$A$2:$F$5,VLOOKUP('Enrollment Form'!$B17,DeclMatrix!$A$8:$B$12,2,FALSE),FALSE))))","v":""},{"$f":"IF($A17=\"\",\"\",IF(VLOOKUP($G17,$H$11:$DO$1000,112,FALSE)=\"\",\"No\",IF(LEFT(VLOOKUP($G17,$H$11:$DO$1000,112,FALSE),3)=\"The\",EP17,VLOOKUP(VLOOKUP($G17,$H$11:$DO$1000,112,FALSE),DeclMatrix!$A$2:$F$5,VLOOKUP('Enrollment Form'!$B17,DeclMatrix!$A$8:$B$12,2,FALSE),FALSE))))","v":""},null,null,null,null,null,null,null,null,"",null,"","","","","","","","","","","",""]
["",null,null,null,null,null,"","",null,null,null,null,null,null,null,null,null,null,null,null,null,null,null,null,null,null,"","","","",null,null,"",null,null,null,null,null,null,null,null,null,null,null,null,null,null,null,null,null,null,null,null,null,null,null,null,null,null,null,"","","",null,null,null,null,"","","","",null,null,null,null,null,null,null,null,null,null,null,null,null,null,null,null,null,null,null,null,null,null,null,null,null,null,null,null,null,null,null,null,null,null,null,null,null,null,null,null,null,null,null,null,null,null,null,null,null,null,null,null,"",{"$f":"IF($A18=\"\",\"\",IF(VLOOKUP($G18,$H$11:$DO$1000,103,FALSE)=\"\",\"No\",IF(LEFT(VLOOKUP($G18,$H$11:$DO$1000,103,FALSE),3)=\"The\",EM18,VLOOKUP(VLOOKUP($G18,$H$11:$DO$1000,103,FALSE),DeclMatrix!$A$2:$F$5,VLOOKUP('Enrollment Form'!$B18,DeclMatrix!$A$8:$B$12,2,FALSE),FALSE))))","v":""},{"$f":"IF($A18=\"\",\"\",IF(VLOOKUP($G18,$H$11:$DO$1000,106,FALSE)=\"\",\"No\",IF(LEFT(VLOOKUP($G18,$H$11:$DO$1000,106,FALSE),3)=\"The\",EN18,VLOOKUP(VLOOKUP($G18,$H$11:$DO$1000,106,FALSE),DeclMatrix!$A$2:$F$5,VLOOKUP('Enrollment Form'!$B18,DeclMatrix!$A$8:$B$12,2,FALSE),FALSE))))","v":""},{"$f":"IF($A18=\"\",\"\",IF(VLOOKUP($G18,$H$11:$DO$1000,109,FALSE)=\"\",\"No\",IF(LEFT(VLOOKUP($G18,$H$11:$DO$1000,109,FALSE),3)=\"The\",EO18,VLOOKUP(VLOOKUP($G18,$H$11:$DO$1000,109,FALSE),DeclMatrix!$A$2:$F$5,VLOOKUP('Enrollment Form'!$B18,DeclMatrix!$A$8:$B$12,2,FALSE),FALSE))))","v":""},{"$f":"IF($A18=\"\",\"\",IF(VLOOKUP($G18,$H$11:$DO$1000,112,FALSE)=\"\",\"No\",IF(LEFT(VLOOKUP($G18,$H$11:$DO$1000,112,FALSE),3)=\"The\",EP18,VLOOKUP(VLOOKUP($G18,$H$11:$DO$1000,112,FALSE),DeclMatrix!$A$2:$F$5,VLOOKUP('Enrollment Form'!$B18,DeclMatrix!$A$8:$B$12,2,FALSE),FALSE))))","v":""},null,null,null,null,null,null,null,null,"",null,"","","","","","","","","","","",""]
["",null,null,null,null,null,"","",null,null,null,null,null,null,null,null,null,null,null,null,null,null,null,null,null,null,"","","","",null,null,"",null,null,null,null,null,null,null,null,null,null,null,null,null,null,null,null,null,null,null,null,null,null,null,null,null,null,null,"","","",null,null,null,null,"","","","",null,null,null,null,null,null,null,null,null,null,null,null,null,null,null,null,null,null,null,null,null,null,null,null,null,null,null,null,null,null,null,null,null,null,null,null,null,null,null,null,null,null,null,null,null,null,null,null,null,null,null,null,"",{"$f":"IF($A19=\"\",\"\",IF(VLOOKUP($G19,$H$11:$DO$1000,103,FALSE)=\"\",\"No\",IF(LEFT(VLOOKUP($G19,$H$11:$DO$1000,103,FALSE),3)=\"The\",EM19,VLOOKUP(VLOOKUP($G19,$H$11:$DO$1000,103,FALSE),DeclMatrix!$A$2:$F$5,VLOOKUP('Enrollment Form'!$B19,DeclMatrix!$A$8:$B$12,2,FALSE),FALSE))))","v":""},{"$f":"IF($A19=\"\",\"\",IF(VLOOKUP($G19,$H$11:$DO$1000,106,FALSE)=\"\",\"No\",IF(LEFT(VLOOKUP($G19,$H$11:$DO$1000,106,FALSE),3)=\"The\",EN19,VLOOKUP(VLOOKUP($G19,$H$11:$DO$1000,106,FALSE),DeclMatrix!$A$2:$F$5,VLOOKUP('Enrollment Form'!$B19,DeclMatrix!$A$8:$B$12,2,FALSE),FALSE))))","v":""},{"$f":"IF($A19=\"\",\"\",IF(VLOOKUP($G19,$H$11:$DO$1000,109,FALSE)=\"\",\"No\",IF(LEFT(VLOOKUP($G19,$H$11:$DO$1000,109,FALSE),3)=\"The\",EO19,VLOOKUP(VLOOKUP($G19,$H$11:$DO$1000,109,FALSE),DeclMatrix!$A$2:$F$5,VLOOKUP('Enrollment Form'!$B19,DeclMatrix!$A$8:$B$12,2,FALSE),FALSE))))","v":""},{"$f":"IF($A19=\"\",\"\",IF(VLOOKUP($G19,$H$11:$DO$1000,112,FALSE)=\"\",\"No\",IF(LEFT(VLOOKUP($G19,$H$11:$DO$1000,112,FALSE),3)=\"The\",EP19,VLOOKUP(VLOOKUP($G19,$H$11:$DO$1000,112,FALSE),DeclMatrix!$A$2:$F$5,VLOOKUP('Enrollment Form'!$B19,DeclMatrix!$A$8:$B$12,2,FALSE),FALSE))))","v":""},null,null,null,null,null,null,null,null,"",null,"","","","","","","","","","","",""]
["",null,null,null,null,null,"","",null,null,null,null,null,null,null,null,null,null,null,null,null,null,null,null,null,null,"","","","",null,null,"",null,null,null,null,null,null,null,null,null,null,null,null,null,null,null,null,null,null,null,null,null,null,null,null,null,null,null,"","","",null,null,null,null,"","","","",null,null,null,null,null,null,null,null,null,null,null,null,null,null,null,null,null,null,null,null,null,null,null,null,null,null,null,null,null,null,null,null,null,null,null,null,null,null,null,null,null,null,null,null,null,null,null,null,null,null,null,null,"",{"$f":"IF($A20=\"\",\"\",IF(VLOOKUP($G20,$H$11:$DO$1000,103,FALSE)=\"\",\"No\",IF(LEFT(VLOOKUP($G20,$H$11:$DO$1000,103,FALSE),3)=\"The\",EM20,VLOOKUP(VLOOKUP($G20,$H$11:$DO$1000,103,FALSE),DeclMatrix!$A$2:$F$5,VLOOKUP('Enrollment Form'!$B20,DeclMatrix!$A$8:$B$12,2,FALSE),FALSE))))","v":""},{"$f":"IF($A20=\"\",\"\",IF(VLOOKUP($G20,$H$11:$DO$1000,106,FALSE)=\"\",\"No\",IF(LEFT(VLOOKUP($G20,$H$11:$DO$1000,106,FALSE),3)=\"The\",EN20,VLOOKUP(VLOOKUP($G20,$H$11:$DO$1000,106,FALSE),DeclMatrix!$A$2:$F$5,VLOOKUP('Enrollment Form'!$B20,DeclMatrix!$A$8:$B$12,2,FALSE),FALSE))))","v":""},{"$f":"IF($A20=\"\",\"\",IF(VLOOKUP($G20,$H$11:$DO$1000,109,FALSE)=\"\",\"No\",IF(LEFT(VLOOKUP($G20,$H$11:$DO$1000,109,FALSE),3)=\"The\",EO20,VLOOKUP(VLOOKUP($G20,$H$11:$DO$1000,109,FALSE),DeclMatrix!$A$2:$F$5,VLOOKUP('Enrollment Form'!$B20,DeclMatrix!$A$8:$B$12,2,FALSE),FALSE))))","v":""},{"$f":"IF($A20=\"\",\"\",IF(VLOOKUP($G20,$H$11:$DO$1000,112,FALSE)=\"\",\"No\",IF(LEFT(VLOOKUP($G20,$H$11:$DO$1000,112,FALSE),3)=\"The\",EP20,VLOOKUP(VLOOKUP($G20,$H$11:$DO$1000,112,FALSE),DeclMatrix!$A$2:$F$5,VLOOKUP('Enrollment Form'!$B20,DeclMatrix!$A$8:$B$12,2,FALSE),FALSE))))","v":""},null,null,null,null,null,null,null,null,"",null,"","","","","","","","","","","",""]
["",null,null,null,null,null,"","",null,null,null,null,null,null,null,null,null,null,null,null,null,null,null,null,null,null,"","","","",null,null,"",null,null,null,null,null,null,null,null,null,null,null,null,null,null,null,null,null,null,null,null,null,null,null,null,null,null,null,"","","",null,null,null,null,"","","","",null,null,null,null,null,null,null,null,null,null,null,null,null,null,null,null,null,null,null,null,null,null,null,null,null,null,null,null,null,null,null,null,null,null,null,null,null,null,null,null,null,null,null,null,null,null,null,null,null,null,null,null,"",{"$f":"IF($A21=\"\",\"\",IF(VLOOKUP($G21,$H$11:$DO$1000,103,FALSE)=\"\",\"No\",IF(LEFT(VLOOKUP($G21,$H$11:$DO$1000,103,FALSE),3)=\"The\",EM21,VLOOKUP(VLOOKUP($G21,$H$11:$DO$1000,103,FALSE),DeclMatrix!$A$2:$F$5,VLOOKUP('Enrollment Form'!$B21,DeclMatrix!$A$8:$B$12,2,FALSE),FALSE))))","v":""},{"$f":"IF($A21=\"\",\"\",IF(VLOOKUP($G21,$H$11:$DO$1000,106,FALSE)=\"\",\"No\",IF(LEFT(VLOOKUP($G21,$H$11:$DO$1000,106,FALSE),3)=\"The\",EN21,VLOOKUP(VLOOKUP($G21,$H$11:$DO$1000,106,FALSE),DeclMatrix!$A$2:$F$5,VLOOKUP('Enrollment Form'!$B21,DeclMatrix!$A$8:$B$12,2,FALSE),FALSE))))","v":""},{"$f":"IF($A21=\"\",\"\",IF(VLOOKUP($G21,$H$11:$DO$1000,109,FALSE)=\"\",\"No\",IF(LEFT(VLOOKUP($G21,$H$11:$DO$1000,109,FALSE),3)=\"The\",EO21,VLOOKUP(VLOOKUP($G21,$H$11:$DO$1000,109,FALSE),DeclMatrix!$A$2:$F$5,VLOOKUP('Enrollment Form'!$B21,DeclMatrix!$A$8:$B$12,2,FALSE),FALSE))))","v":""},{"$f":"IF($A21=\"\",\"\",IF(VLOOKUP($G21,$H$11:$DO$1000,112,FALSE)=\"\",\"No\",IF(LEFT(VLOOKUP($G21,$H$11:$DO$1000,112,FALSE),3)=\"The\",EP21,VLOOKUP(VLOOKUP($G21,$H$11:$DO$1000,112,FALSE),DeclMatrix!$A$2:$F$5,VLOOKUP('Enrollment Form'!$B21,DeclMatrix!$A$8:$B$12,2,FALSE),FALSE))))","v":""},null,null,null,null,null,null,null,null,"",null,"","","","","","","","","","","",""]
["",null,null,null,null,null,"","",null,null,null,null,null,null,null,null,null,null,null,null,null,null,null,null,null,null,"","","","",null,null,"",null,null,null,null,null,null,null,null,null,null,null,null,null,null,null,null,null,null,null,null,null,null,null,null,null,null,null,"","","",null,null,null,null,"","","","",null,null,null,null,null,null,null,null,null,null,null,null,null,null,null,null,null,null,null,null,null,null,null,null,null,null,null,null,null,null,null,null,null,null,null,null,null,null,null,null,null,null,null,null,null,null,null,null,null,null,null,null,"",{"$f":"IF($A22=\"\",\"\",IF(VLOOKUP($G22,$H$11:$DO$1000,103,FALSE)=\"\",\"No\",IF(LEFT(VLOOKUP($G22,$H$11:$DO$1000,103,FALSE),3)=\"The\",EM22,VLOOKUP(VLOOKUP($G22,$H$11:$DO$1000,103,FALSE),DeclMatrix!$A$2:$F$5,VLOOKUP('Enrollment Form'!$B22,DeclMatrix!$A$8:$B$12,2,FALSE),FALSE))))","v":""},{"$f":"IF($A22=\"\",\"\",IF(VLOOKUP($G22,$H$11:$DO$1000,106,FALSE)=\"\",\"No\",IF(LEFT(VLOOKUP($G22,$H$11:$DO$1000,106,FALSE),3)=\"The\",EN22,VLOOKUP(VLOOKUP($G22,$H$11:$DO$1000,106,FALSE),DeclMatrix!$A$2:$F$5,VLOOKUP('Enrollment Form'!$B22,DeclMatrix!$A$8:$B$12,2,FALSE),FALSE))))","v":""},{"$f":"IF($A22=\"\",\"\",IF(VLOOKUP($G22,$H$11:$DO$1000,109,FALSE)=\"\",\"No\",IF(LEFT(VLOOKUP($G22,$H$11:$DO$1000,109,FALSE),3)=\"The\",EO22,VLOOKUP(VLOOKUP($G22,$H$11:$DO$1000,109,FALSE),DeclMatrix!$A$2:$F$5,VLOOKUP('Enrollment Form'!$B22,DeclMatrix!$A$8:$B$12,2,FALSE),FALSE))))","v":""},{"$f":"IF($A22=\"\",\"\",IF(VLOOKUP($G22,$H$11:$DO$1000,112,FALSE)=\"\",\"No\",IF(LEFT(VLOOKUP($G22,$H$11:$DO$1000,112,FALSE),3)=\"The\",EP22,VLOOKUP(VLOOKUP($G22,$H$11:$DO$1000,112,FALSE),DeclMatrix!$A$2:$F$5,VLOOKUP('Enrollment Form'!$B22,DeclMatrix!$A$8:$B$12,2,FALSE),FALSE))))","v":""},null,null,null,null,null,null,null,null,"",null,"","","","","","","","","","","",""]
["",null,null,null,null,null,"","",null,null,null,null,null,null,null,null,null,null,null,null,null,null,null,null,null,null,"","","","",null,null,"",null,null,null,null,null,null,null,null,null,null,null,null,null,null,null,null,null,null,null,null,null,null,null,null,null,null,null,"","","",null,null,null,null,"","","","",null,null,null,null,null,null,null,null,null,null,null,null,null,null,null,null,null,null,null,null,null,null,null,null,null,null,null,null,null,null,null,null,null,null,null,null,null,null,null,null,null,null,null,null,null,null,null,null,null,null,null,null,"",{"$f":"IF($A23=\"\",\"\",IF(VLOOKUP($G23,$H$11:$DO$1000,103,FALSE)=\"\",\"No\",IF(LEFT(VLOOKUP($G23,$H$11:$DO$1000,103,FALSE),3)=\"The\",EM23,VLOOKUP(VLOOKUP($G23,$H$11:$DO$1000,103,FALSE),DeclMatrix!$A$2:$F$5,VLOOKUP('Enrollment Form'!$B23,DeclMatrix!$A$8:$B$12,2,FALSE),FALSE))))","v":""},{"$f":"IF($A23=\"\",\"\",IF(VLOOKUP($G23,$H$11:$DO$1000,106,FALSE)=\"\",\"No\",IF(LEFT(VLOOKUP($G23,$H$11:$DO$1000,106,FALSE),3)=\"The\",EN23,VLOOKUP(VLOOKUP($G23,$H$11:$DO$1000,106,FALSE),DeclMatrix!$A$2:$F$5,VLOOKUP('Enrollment Form'!$B23,DeclMatrix!$A$8:$B$12,2,FALSE),FALSE))))","v":""},{"$f":"IF($A23=\"\",\"\",IF(VLOOKUP($G23,$H$11:$DO$1000,109,FALSE)=\"\",\"No\",IF(LEFT(VLOOKUP($G23,$H$11:$DO$1000,109,FALSE),3)=\"The\",EO23,VLOOKUP(VLOOKUP($G23,$H$11:$DO$1000,109,FALSE),DeclMatrix!$A$2:$F$5,VLOOKUP('Enrollment Form'!$B23,DeclMatrix!$A$8:$B$12,2,FALSE),FALSE))))","v":""},{"$f":"IF($A23=\"\",\"\",IF(VLOOKUP($G23,$H$11:$DO$1000,112,FALSE)=\"\",\"No\",IF(LEFT(VLOOKUP($G23,$H$11:$DO$1000,112,FALSE),3)=\"The\",EP23,VLOOKUP(VLOOKUP($G23,$H$11:$DO$1000,112,FALSE),DeclMatrix!$A$2:$F$5,VLOOKUP('Enrollment Form'!$B23,DeclMatrix!$A$8:$B$12,2,FALSE),FALSE))))","v":""},null,null,null,null,null,null,null,null,"",null,"","","","","","","","","","","",""]
["",null,null,null,null,null,"","",null,null,null,null,null,null,null,null,null,null,null,null,null,null,null,null,null,null,"","","","",null,null,"",null,null,null,null,null,null,null,null,null,null,null,null,null,null,null,null,null,null,null,null,null,null,null,null,null,null,null,"","","",null,null,null,null,"","","","",null,null,null,null,null,null,null,null,null,null,null,null,null,null,null,null,null,null,null,null,null,null,null,null,null,null,null,null,null,null,null,null,null,null,null,null,null,null,null,null,null,null,null,null,null,null,null,null,null,null,null,null,"",{"$f":"IF($A24=\"\",\"\",IF(VLOOKUP($G24,$H$11:$DO$1000,103,FALSE)=\"\",\"No\",IF(LEFT(VLOOKUP($G24,$H$11:$DO$1000,103,FALSE),3)=\"The\",EM24,VLOOKUP(VLOOKUP($G24,$H$11:$DO$1000,103,FALSE),DeclMatrix!$A$2:$F$5,VLOOKUP('Enrollment Form'!$B24,DeclMatrix!$A$8:$B$12,2,FALSE),FALSE))))","v":""},{"$f":"IF($A24=\"\",\"\",IF(VLOOKUP($G24,$H$11:$DO$1000,106,FALSE)=\"\",\"No\",IF(LEFT(VLOOKUP($G24,$H$11:$DO$1000,106,FALSE),3)=\"The\",EN24,VLOOKUP(VLOOKUP($G24,$H$11:$DO$1000,106,FALSE),DeclMatrix!$A$2:$F$5,VLOOKUP('Enrollment Form'!$B24,DeclMatrix!$A$8:$B$12,2,FALSE),FALSE))))","v":""},{"$f":"IF($A24=\"\",\"\",IF(VLOOKUP($G24,$H$11:$DO$1000,109,FALSE)=\"\",\"No\",IF(LEFT(VLOOKUP($G24,$H$11:$DO$1000,109,FALSE),3)=\"The\",EO24,VLOOKUP(VLOOKUP($G24,$H$11:$DO$1000,109,FALSE),DeclMatrix!$A$2:$F$5,VLOOKUP('Enrollment Form'!$B24,DeclMatrix!$A$8:$B$12,2,FALSE),FALSE))))","v":""},{"$f":"IF($A24=\"\",\"\",IF(VLOOKUP($G24,$H$11:$DO$1000,112,FALSE)=\"\",\"No\",IF(LEFT(VLOOKUP($G24,$H$11:$DO$1000,112,FALSE),3)=\"The\",EP24,VLOOKUP(VLOOKUP($G24,$H$11:$DO$1000,112,FALSE),DeclMatrix!$A$2:$F$5,VLOOKUP('Enrollment Form'!$B24,DeclMatrix!$A$8:$B$12,2,FALSE),FALSE))))","v":""},null,null,null,null,null,null,null,null,"",null,"","","","","","","","","","","",""]
["",null,null,null,null,null,"","",null,null,null,null,null,null,null,null,null,null,null,null,null,null,null,null,null,null,"","","","",null,null,"",null,null,null,null,null,null,null,null,null,null,null,null,null,null,null,null,null,null,null,null,null,null,null,null,null,null,null,"","","",null,null,null,null,"","","","",null,null,null,null,null,null,null,null,null,null,null,null,null,null,null,null,null,null,null,null,null,null,null,null,null,null,null,null,null,null,null,null,null,null,null,null,null,null,null,null,null,null,null,null,null,null,null,null,null,null,null,null,"",{"$f":"IF($A25=\"\",\"\",IF(VLOOKUP($G25,$H$11:$DO$1000,103,FALSE)=\"\",\"No\",IF(LEFT(VLOOKUP($G25,$H$11:$DO$1000,103,FALSE),3)=\"The\",EM25,VLOOKUP(VLOOKUP($G25,$H$11:$DO$1000,103,FALSE),DeclMatrix!$A$2:$F$5,VLOOKUP('Enrollment Form'!$B25,DeclMatrix!$A$8:$B$12,2,FALSE),FALSE))))","v":""},{"$f":"IF($A25=\"\",\"\",IF(VLOOKUP($G25,$H$11:$DO$1000,106,FALSE)=\"\",\"No\",IF(LEFT(VLOOKUP($G25,$H$11:$DO$1000,106,FALSE),3)=\"The\",EN25,VLOOKUP(VLOOKUP($G25,$H$11:$DO$1000,106,FALSE),DeclMatrix!$A$2:$F$5,VLOOKUP('Enrollment Form'!$B25,DeclMatrix!$A$8:$B$12,2,FALSE),FALSE))))","v":""},{"$f":"IF($A25=\"\",\"\",IF(VLOOKUP($G25,$H$11:$DO$1000,109,FALSE)=\"\",\"No\",IF(LEFT(VLOOKUP($G25,$H$11:$DO$1000,109,FALSE),3)=\"The\",EO25,VLOOKUP(VLOOKUP($G25,$H$11:$DO$1000,109,FALSE),DeclMatrix!$A$2:$F$5,VLOOKUP('Enrollment Form'!$B25,DeclMatrix!$A$8:$B$12,2,FALSE),FALSE))))","v":""},{"$f":"IF($A25=\"\",\"\",IF(VLOOKUP($G25,$H$11:$DO$1000,112,FALSE)=\"\",\"No\",IF(LEFT(VLOOKUP($G25,$H$11:$DO$1000,112,FALSE),3)=\"The\",EP25,VLOOKUP(VLOOKUP($G25,$H$11:$DO$1000,112,FALSE),DeclMatrix!$A$2:$F$5,VLOOKUP('Enrollment Form'!$B25,DeclMatrix!$A$8:$B$12,2,FALSE),FALSE))))","v":""},null,null,null,null,null,null,null,null,"",null,"","","","","","","","","","","",""]
["",null,null,null,null,null,"","",null,null,null,null,null,null,null,null,null,null,null,null,null,null,null,null,null,null,"","","","",null,null,"",null,null,null,null,null,null,null,null,null,null,null,null,null,null,null,null,null,null,null,null,null,null,null,null,null,null,null,"","","",null,null,null,null,"","","","",null,null,null,null,null,null,null,null,null,null,null,null,null,null,null,null,null,null,null,null,null,null,null,null,null,null,null,null,null,null,null,null,null,null,null,null,null,null,null,null,null,null,null,null,null,null,null,null,null,null,null,null,"",{"$f":"IF($A26=\"\",\"\",IF(VLOOKUP($G26,$H$11:$DO$1000,103,FALSE)=\"\",\"No\",IF(LEFT(VLOOKUP($G26,$H$11:$DO$1000,103,FALSE),3)=\"The\",EM26,VLOOKUP(VLOOKUP($G26,$H$11:$DO$1000,103,FALSE),DeclMatrix!$A$2:$F$5,VLOOKUP('Enrollment Form'!$B26,DeclMatrix!$A$8:$B$12,2,FALSE),FALSE))))","v":""},{"$f":"IF($A26=\"\",\"\",IF(VLOOKUP($G26,$H$11:$DO$1000,106,FALSE)=\"\",\"No\",IF(LEFT(VLOOKUP($G26,$H$11:$DO$1000,106,FALSE),3)=\"The\",EN26,VLOOKUP(VLOOKUP($G26,$H$11:$DO$1000,106,FALSE),DeclMatrix!$A$2:$F$5,VLOOKUP('Enrollment Form'!$B26,DeclMatrix!$A$8:$B$12,2,FALSE),FALSE))))","v":""},{"$f":"IF($A26=\"\",\"\",IF(VLOOKUP($G26,$H$11:$DO$1000,109,FALSE)=\"\",\"No\",IF(LEFT(VLOOKUP($G26,$H$11:$DO$1000,109,FALSE),3)=\"The\",EO26,VLOOKUP(VLOOKUP($G26,$H$11:$DO$1000,109,FALSE),DeclMatrix!$A$2:$F$5,VLOOKUP('Enrollment Form'!$B26,DeclMatrix!$A$8:$B$12,2,FALSE),FALSE))))","v":""},{"$f":"IF($A26=\"\",\"\",IF(VLOOKUP($G26,$H$11:$DO$1000,112,FALSE)=\"\",\"No\",IF(LEFT(VLOOKUP($G26,$H$11:$DO$1000,112,FALSE),3)=\"The\",EP26,VLOOKUP(VLOOKUP($G26,$H$11:$DO$1000,112,FALSE),DeclMatrix!$A$2:$F$5,VLOOKUP('Enrollment Form'!$B26,DeclMatrix!$A$8:$B$12,2,FALSE),FALSE))))","v":""},null,null,null,null,null,null,null,null,"",null,"","","","","","","","","","","",""]
["",null,null,null,null,null,"","",null,null,null,null,null,null,null,null,null,null,null,null,null,null,null,null,null,null,"","","","",null,null,"",null,null,null,null,null,null,null,null,null,null,null,null,null,null,null,null,null,null,null,null,null,null,null,null,null,null,null,"","","",null,null,null,null,"","","","",null,null,null,null,null,null,null,null,null,null,null,null,null,null,null,null,null,null,null,null,null,null,null,null,null,null,null,null,null,null,null,null,null,null,null,null,null,null,null,null,null,null,null,null,null,null,null,null,null,null,null,null,"",{"$f":"IF($A27=\"\",\"\",IF(VLOOKUP($G27,$H$11:$DO$1000,103,FALSE)=\"\",\"No\",IF(LEFT(VLOOKUP($G27,$H$11:$DO$1000,103,FALSE),3)=\"The\",EM27,VLOOKUP(VLOOKUP($G27,$H$11:$DO$1000,103,FALSE),DeclMatrix!$A$2:$F$5,VLOOKUP('Enrollment Form'!$B27,DeclMatrix!$A$8:$B$12,2,FALSE),FALSE))))","v":""},{"$f":"IF($A27=\"\",\"\",IF(VLOOKUP($G27,$H$11:$DO$1000,106,FALSE)=\"\",\"No\",IF(LEFT(VLOOKUP($G27,$H$11:$DO$1000,106,FALSE),3)=\"The\",EN27,VLOOKUP(VLOOKUP($G27,$H$11:$DO$1000,106,FALSE),DeclMatrix!$A$2:$F$5,VLOOKUP('Enrollment Form'!$B27,DeclMatrix!$A$8:$B$12,2,FALSE),FALSE))))","v":""},{"$f":"IF($A27=\"\",\"\",IF(VLOOKUP($G27,$H$11:$DO$1000,109,FALSE)=\"\",\"No\",IF(LEFT(VLOOKUP($G27,$H$11:$DO$1000,109,FALSE),3)=\"The\",EO27,VLOOKUP(VLOOKUP($G27,$H$11:$DO$1000,109,FALSE),DeclMatrix!$A$2:$F$5,VLOOKUP('Enrollment Form'!$B27,DeclMatrix!$A$8:$B$12,2,FALSE),FALSE))))","v":""},{"$f":"IF($A27=\"\",\"\",IF(VLOOKUP($G27,$H$11:$DO$1000,112,FALSE)=\"\",\"No\",IF(LEFT(VLOOKUP($G27,$H$11:$DO$1000,112,FALSE),3)=\"The\",EP27,VLOOKUP(VLOOKUP($G27,$H$11:$DO$1000,112,FALSE),DeclMatrix!$A$2:$F$5,VLOOKUP('Enrollment Form'!$B27,DeclMatrix!$A$8:$B$12,2,FALSE),FALSE))))","v":""},null,null,null,null,null,null,null,null,"",null,"","","","","","","","","","","",""]
["",null,null,null,null,null,"","",null,null,null,null,null,null,null,null,null,null,null,null,null,null,null,null,null,null,"","","","",null,null,"",null,null,null,null,null,null,null,null,null,null,null,null,null,null,null,null,null,null,null,null,null,null,null,null,null,null,null,"","","",null,null,null,null,"","","","",null,null,null,null,null,null,null,null,null,null,null,null,null,null,null,null,null,null,null,null,null,null,null,null,null,null,null,null,null,null,null,null,null,null,null,null,null,null,null,null,null,null,null,null,null,null,null,null,null,null,null,null,"",{"$f":"IF($A28=\"\",\"\",IF(VLOOKUP($G28,$H$11:$DO$1000,103,FALSE)=\"\",\"No\",IF(LEFT(VLOOKUP($G28,$H$11:$DO$1000,103,FALSE),3)=\"The\",EM28,VLOOKUP(VLOOKUP($G28,$H$11:$DO$1000,103,FALSE),DeclMatrix!$A$2:$F$5,VLOOKUP('Enrollment Form'!$B28,DeclMatrix!$A$8:$B$12,2,FALSE),FALSE))))","v":""},{"$f":"IF($A28=\"\",\"\",IF(VLOOKUP($G28,$H$11:$DO$1000,106,FALSE)=\"\",\"No\",IF(LEFT(VLOOKUP($G28,$H$11:$DO$1000,106,FALSE),3)=\"The\",EN28,VLOOKUP(VLOOKUP($G28,$H$11:$DO$1000,106,FALSE),DeclMatrix!$A$2:$F$5,VLOOKUP('Enrollment Form'!$B28,DeclMatrix!$A$8:$B$12,2,FALSE),FALSE))))","v":""},{"$f":"IF($A28=\"\",\"\",IF(VLOOKUP($G28,$H$11:$DO$1000,109,FALSE)=\"\",\"No\",IF(LEFT(VLOOKUP($G28,$H$11:$DO$1000,109,FALSE),3)=\"The\",EO28,VLOOKUP(VLOOKUP($G28,$H$11:$DO$1000,109,FALSE),DeclMatrix!$A$2:$F$5,VLOOKUP('Enrollment Form'!$B28,DeclMatrix!$A$8:$B$12,2,FALSE),FALSE))))","v":""},{"$f":"IF($A28=\"\",\"\",IF(VLOOKUP($G28,$H$11:$DO$1000,112,FALSE)=\"\",\"No\",IF(LEFT(VLOOKUP($G28,$H$11:$DO$1000,112,FALSE),3)=\"The\",EP28,VLOOKUP(VLOOKUP($G28,$H$11:$DO$1000,112,FALSE),DeclMatrix!$A$2:$F$5,VLOOKUP('Enrollment Form'!$B28,DeclMatrix!$A$8:$B$12,2,FALSE),FALSE))))","v":""},null,null,null,null,null,null,null,null,"",null,"","","","","","","","","","","",""]
["",null,null,null,null,null,"","",null,null,null,null,null,null,null,null,null,null,null,null,null,null,null,null,null,null,"","","","",null,null,"",null,null,null,null,null,null,null,null,null,null,null,null,null,null,null,null,null,null,null,null,null,null,null,null,null,null,null,"","","",null,null,null,null,"","","","",null,null,null,null,null,null,null,null,null,null,null,null,null,null,null,null,null,null,null,null,null,null,null,null,null,null,null,null,null,null,null,null,null,null,null,null,null,null,null,null,null,null,null,null,null,null,null,null,null,null,null,null,"",{"$f":"IF($A29=\"\",\"\",IF(VLOOKUP($G29,$H$11:$DO$1000,103,FALSE)=\"\",\"No\",IF(LEFT(VLOOKUP($G29,$H$11:$DO$1000,103,FALSE),3)=\"The\",EM29,VLOOKUP(VLOOKUP($G29,$H$11:$DO$1000,103,FALSE),DeclMatrix!$A$2:$F$5,VLOOKUP('Enrollment Form'!$B29,DeclMatrix!$A$8:$B$12,2,FALSE),FALSE))))","v":""},{"$f":"IF($A29=\"\",\"\",IF(VLOOKUP($G29,$H$11:$DO$1000,106,FALSE)=\"\",\"No\",IF(LEFT(VLOOKUP($G29,$H$11:$DO$1000,106,FALSE),3)=\"The\",EN29,VLOOKUP(VLOOKUP($G29,$H$11:$DO$1000,106,FALSE),DeclMatrix!$A$2:$F$5,VLOOKUP('Enrollment Form'!$B29,DeclMatrix!$A$8:$B$12,2,FALSE),FALSE))))","v":""},{"$f":"IF($A29=\"\",\"\",IF(VLOOKUP($G29,$H$11:$DO$1000,109,FALSE)=\"\",\"No\",IF(LEFT(VLOOKUP($G29,$H$11:$DO$1000,109,FALSE),3)=\"The\",EO29,VLOOKUP(VLOOKUP($G29,$H$11:$DO$1000,109,FALSE),DeclMatrix!$A$2:$F$5,VLOOKUP('Enrollment Form'!$B29,DeclMatrix!$A$8:$B$12,2,FALSE),FALSE))))","v":""},{"$f":"IF($A29=\"\",\"\",IF(VLOOKUP($G29,$H$11:$DO$1000,112,FALSE)=\"\",\"No\",IF(LEFT(VLOOKUP($G29,$H$11:$DO$1000,112,FALSE),3)=\"The\",EP29,VLOOKUP(VLOOKUP($G29,$H$11:$DO$1000,112,FALSE),DeclMatrix!$A$2:$F$5,VLOOKUP('Enrollment Form'!$B29,DeclMatrix!$A$8:$B$12,2,FALSE),FALSE))))","v":""},null,null,null,null,null,null,null,null,"",null,"","","","","","","","","","","",""]
["",null,null,null,null,null,"","",null,null,null,null,null,null,null,null,null,null,null,null,null,null,null,null,null,null,"","","","",null,null,"",null,null,null,null,null,null,null,null,null,null,null,null,null,null,null,null,null,null,null,null,null,null,null,null,null,null,null,"","","",null,null,null,null,"","","","",null,null,null,null,null,null,null,null,null,null,null,null,null,null,null,null,null,null,null,null,null,null,null,null,null,null,null,null,null,null,null,null,null,null,null,null,null,null,null,null,null,null,null,null,null,null,null,null,null,null,null,null,"",{"$f":"IF($A30=\"\",\"\",IF(VLOOKUP($G30,$H$11:$DO$1000,103,FALSE)=\"\",\"No\",IF(LEFT(VLOOKUP($G30,$H$11:$DO$1000,103,FALSE),3)=\"The\",EM30,VLOOKUP(VLOOKUP($G30,$H$11:$DO$1000,103,FALSE),DeclMatrix!$A$2:$F$5,VLOOKUP('Enrollment Form'!$B30,DeclMatrix!$A$8:$B$12,2,FALSE),FALSE))))","v":""},{"$f":"IF($A30=\"\",\"\",IF(VLOOKUP($G30,$H$11:$DO$1000,106,FALSE)=\"\",\"No\",IF(LEFT(VLOOKUP($G30,$H$11:$DO$1000,106,FALSE),3)=\"The\",EN30,VLOOKUP(VLOOKUP($G30,$H$11:$DO$1000,106,FALSE),DeclMatrix!$A$2:$F$5,VLOOKUP('Enrollment Form'!$B30,DeclMatrix!$A$8:$B$12,2,FALSE),FALSE))))","v":""},{"$f":"IF($A30=\"\",\"\",IF(VLOOKUP($G30,$H$11:$DO$1000,109,FALSE)=\"\",\"No\",IF(LEFT(VLOOKUP($G30,$H$11:$DO$1000,109,FALSE),3)=\"The\",EO30,VLOOKUP(VLOOKUP($G30,$H$11:$DO$1000,109,FALSE),DeclMatrix!$A$2:$F$5,VLOOKUP('Enrollment Form'!$B30,DeclMatrix!$A$8:$B$12,2,FALSE),FALSE))))","v":""},{"$f":"IF($A30=\"\",\"\",IF(VLOOKUP($G30,$H$11:$DO$1000,112,FALSE)=\"\",\"No\",IF(LEFT(VLOOKUP($G30,$H$11:$DO$1000,112,FALSE),3)=\"The\",EP30,VLOOKUP(VLOOKUP($G30,$H$11:$DO$1000,112,FALSE),DeclMatrix!$A$2:$F$5,VLOOKUP('Enrollment Form'!$B30,DeclMatrix!$A$8:$B$12,2,FALSE),FALSE))))","v":""},null,null,null,null,null,null,null,null,"",null,"","","","","","","","","","","",""]
["",null,null,null,null,null,"","",null,null,null,null,null,null,null,null,null,null,null,null,null,null,null,null,null,null,"","","","",null,null,"",null,null,null,null,null,null,null,null,null,null,null,null,null,null,null,null,null,null,null,null,null,null,null,null,null,null,null,"","","",null,null,null,null,"","","","",null,null,null,null,null,null,null,null,null,null,null,null,null,null,null,null,null,null,null,null,null,null,null,null,null,null,null,null,null,null,null,null,null,null,null,null,null,null,null,null,null,null,null,null,null,null,null,null,null,null,null,null,"",{"$f":"IF($A31=\"\",\"\",IF(VLOOKUP($G31,$H$11:$DO$1000,103,FALSE)=\"\",\"No\",IF(LEFT(VLOOKUP($G31,$H$11:$DO$1000,103,FALSE),3)=\"The\",EM31,VLOOKUP(VLOOKUP($G31,$H$11:$DO$1000,103,FALSE),DeclMatrix!$A$2:$F$5,VLOOKUP('Enrollment Form'!$B31,DeclMatrix!$A$8:$B$12,2,FALSE),FALSE))))","v":""},{"$f":"IF($A31=\"\",\"\",IF(VLOOKUP($G31,$H$11:$DO$1000,106,FALSE)=\"\",\"No\",IF(LEFT(VLOOKUP($G31,$H$11:$DO$1000,106,FALSE),3)=\"The\",EN31,VLOOKUP(VLOOKUP($G31,$H$11:$DO$1000,106,FALSE),DeclMatrix!$A$2:$F$5,VLOOKUP('Enrollment Form'!$B31,DeclMatrix!$A$8:$B$12,2,FALSE),FALSE))))","v":""},{"$f":"IF($A31=\"\",\"\",IF(VLOOKUP($G31,$H$11:$DO$1000,109,FALSE)=\"\",\"No\",IF(LEFT(VLOOKUP($G31,$H$11:$DO$1000,109,FALSE),3)=\"The\",EO31,VLOOKUP(VLOOKUP($G31,$H$11:$DO$1000,109,FALSE),DeclMatrix!$A$2:$F$5,VLOOKUP('Enrollment Form'!$B31,DeclMatrix!$A$8:$B$12,2,FALSE),FALSE))))","v":""},{"$f":"IF($A31=\"\",\"\",IF(VLOOKUP($G31,$H$11:$DO$1000,112,FALSE)=\"\",\"No\",IF(LEFT(VLOOKUP($G31,$H$11:$DO$1000,112,FALSE),3)=\"The\",EP31,VLOOKUP(VLOOKUP($G31,$H$11:$DO$1000,112,FALSE),DeclMatrix!$A$2:$F$5,VLOOKUP('Enrollment Form'!$B31,DeclMatrix!$A$8:$B$12,2,FALSE),FALSE))))","v":""},null,null,null,null,null,null,null,null,"",null,"","","","","","","","","","","",""]
["",null,null,null,null,null,"","",null,null,null,null,null,null,null,null,null,null,null,null,null,null,null,null,null,null,"","","","",null,null,"",null,null,null,null,null,null,null,null,null,null,null,null,null,null,null,null,null,null,null,null,null,null,null,null,null,null,null,"","","",null,null,null,null,"","","","",null,null,null,null,null,null,null,null,null,null,null,null,null,null,null,null,null,null,null,null,null,null,null,null,null,null,null,null,null,null,null,null,null,null,null,null,null,null,null,null,null,null,null,null,null,null,null,null,null,null,null,null,"",{"$f":"IF($A32=\"\",\"\",IF(VLOOKUP($G32,$H$11:$DO$1000,103,FALSE)=\"\",\"No\",IF(LEFT(VLOOKUP($G32,$H$11:$DO$1000,103,FALSE),3)=\"The\",EM32,VLOOKUP(VLOOKUP($G32,$H$11:$DO$1000,103,FALSE),DeclMatrix!$A$2:$F$5,VLOOKUP('Enrollment Form'!$B32,DeclMatrix!$A$8:$B$12,2,FALSE),FALSE))))","v":""},{"$f":"IF($A32=\"\",\"\",IF(VLOOKUP($G32,$H$11:$DO$1000,106,FALSE)=\"\",\"No\",IF(LEFT(VLOOKUP($G32,$H$11:$DO$1000,106,FALSE),3)=\"The\",EN32,VLOOKUP(VLOOKUP($G32,$H$11:$DO$1000,106,FALSE),DeclMatrix!$A$2:$F$5,VLOOKUP('Enrollment Form'!$B32,DeclMatrix!$A$8:$B$12,2,FALSE),FALSE))))","v":""},{"$f":"IF($A32=\"\",\"\",IF(VLOOKUP($G32,$H$11:$DO$1000,109,FALSE)=\"\",\"No\",IF(LEFT(VLOOKUP($G32,$H$11:$DO$1000,109,FALSE),3)=\"The\",EO32,VLOOKUP(VLOOKUP($G32,$H$11:$DO$1000,109,FALSE),DeclMatrix!$A$2:$F$5,VLOOKUP('Enrollment Form'!$B32,DeclMatrix!$A$8:$B$12,2,FALSE),FALSE))))","v":""},{"$f":"IF($A32=\"\",\"\",IF(VLOOKUP($G32,$H$11:$DO$1000,112,FALSE)=\"\",\"No\",IF(LEFT(VLOOKUP($G32,$H$11:$DO$1000,112,FALSE),3)=\"The\",EP32,VLOOKUP(VLOOKUP($G32,$H$11:$DO$1000,112,FALSE),DeclMatrix!$A$2:$F$5,VLOOKUP('Enrollment Form'!$B32,DeclMatrix!$A$8:$B$12,2,FALSE),FALSE))))","v":""},null,null,null,null,null,null,null,null,"",null,"","","","","","","","","","","",""]
["",null,null,null,null,null,"","",null,null,null,null,null,null,null,null,null,null,null,null,null,null,null,null,null,null,"","","","",null,null,"",null,null,null,null,null,null,null,null,null,null,null,null,null,null,null,null,null,null,null,null,null,null,null,null,null,null,null,"","","",null,null,null,null,"","","","",null,null,null,null,null,null,null,null,null,null,null,null,null,null,null,null,null,null,null,null,null,null,null,null,null,null,null,null,null,null,null,null,null,null,null,null,null,null,null,null,null,null,null,null,null,null,null,null,null,null,null,null,"",{"$f":"IF($A33=\"\",\"\",IF(VLOOKUP($G33,$H$11:$DO$1000,103,FALSE)=\"\",\"No\",IF(LEFT(VLOOKUP($G33,$H$11:$DO$1000,103,FALSE),3)=\"The\",EM33,VLOOKUP(VLOOKUP($G33,$H$11:$DO$1000,103,FALSE),DeclMatrix!$A$2:$F$5,VLOOKUP('Enrollment Form'!$B33,DeclMatrix!$A$8:$B$12,2,FALSE),FALSE))))","v":""},{"$f":"IF($A33=\"\",\"\",IF(VLOOKUP($G33,$H$11:$DO$1000,106,FALSE)=\"\",\"No\",IF(LEFT(VLOOKUP($G33,$H$11:$DO$1000,106,FALSE),3)=\"The\",EN33,VLOOKUP(VLOOKUP($G33,$H$11:$DO$1000,106,FALSE),DeclMatrix!$A$2:$F$5,VLOOKUP('Enrollment Form'!$B33,DeclMatrix!$A$8:$B$12,2,FALSE),FALSE))))","v":""},{"$f":"IF($A33=\"\",\"\",IF(VLOOKUP($G33,$H$11:$DO$1000,109,FALSE)=\"\",\"No\",IF(LEFT(VLOOKUP($G33,$H$11:$DO$1000,109,FALSE),3)=\"The\",EO33,VLOOKUP(VLOOKUP($G33,$H$11:$DO$1000,109,FALSE),DeclMatrix!$A$2:$F$5,VLOOKUP('Enrollment Form'!$B33,DeclMatrix!$A$8:$B$12,2,FALSE),FALSE))))","v":""},{"$f":"IF($A33=\"\",\"\",IF(VLOOKUP($G33,$H$11:$DO$1000,112,FALSE)=\"\",\"No\",IF(LEFT(VLOOKUP($G33,$H$11:$DO$1000,112,FALSE),3)=\"The\",EP33,VLOOKUP(VLOOKUP($G33,$H$11:$DO$1000,112,FALSE),DeclMatrix!$A$2:$F$5,VLOOKUP('Enrollment Form'!$B33,DeclMatrix!$A$8:$B$12,2,FALSE),FALSE))))","v":""},null,null,null,null,null,null,null,null,"",null,"","","","","","","","","","","",""]
["",null,null,null,null,null,"","",null,null,null,null,null,null,null,null,null,null,null,null,null,null,null,null,null,null,"","","","",null,null,"",null,null,null,null,null,null,null,null,null,null,null,null,null,null,null,null,null,null,null,null,null,null,null,null,null,null,null,"","","",null,null,null,null,"","","","",null,null,null,null,null,null,null,null,null,null,null,null,null,null,null,null,null,null,null,null,null,null,null,null,null,null,null,null,null,null,null,null,null,null,null,null,null,null,null,null,null,null,null,null,null,null,null,null,null,null,null,null,"",{"$f":"IF($A34=\"\",\"\",IF(VLOOKUP($G34,$H$11:$DO$1000,103,FALSE)=\"\",\"No\",IF(LEFT(VLOOKUP($G34,$H$11:$DO$1000,103,FALSE),3)=\"The\",EM34,VLOOKUP(VLOOKUP($G34,$H$11:$DO$1000,103,FALSE),DeclMatrix!$A$2:$F$5,VLOOKUP('Enrollment Form'!$B34,DeclMatrix!$A$8:$B$12,2,FALSE),FALSE))))","v":""},{"$f":"IF($A34=\"\",\"\",IF(VLOOKUP($G34,$H$11:$DO$1000,106,FALSE)=\"\",\"No\",IF(LEFT(VLOOKUP($G34,$H$11:$DO$1000,106,FALSE),3)=\"The\",EN34,VLOOKUP(VLOOKUP($G34,$H$11:$DO$1000,106,FALSE),DeclMatrix!$A$2:$F$5,VLOOKUP('Enrollment Form'!$B34,DeclMatrix!$A$8:$B$12,2,FALSE),FALSE))))","v":""},{"$f":"IF($A34=\"\",\"\",IF(VLOOKUP($G34,$H$11:$DO$1000,109,FALSE)=\"\",\"No\",IF(LEFT(VLOOKUP($G34,$H$11:$DO$1000,109,FALSE),3)=\"The\",EO34,VLOOKUP(VLOOKUP($G34,$H$11:$DO$1000,109,FALSE),DeclMatrix!$A$2:$F$5,VLOOKUP('Enrollment Form'!$B34,DeclMatrix!$A$8:$B$12,2,FALSE),FALSE))))","v":""},{"$f":"IF($A34=\"\",\"\",IF(VLOOKUP($G34,$H$11:$DO$1000,112,FALSE)=\"\",\"No\",IF(LEFT(VLOOKUP($G34,$H$11:$DO$1000,112,FALSE),3)=\"The\",EP34,VLOOKUP(VLOOKUP($G34,$H$11:$DO$1000,112,FALSE),DeclMatrix!$A$2:$F$5,VLOOKUP('Enrollment Form'!$B34,DeclMatrix!$A$8:$B$12,2,FALSE),FALSE))))","v":""},null,null,null,null,null,null,null,null,"",null,"","","","","","","","","","","",""]
["",null,null,null,null,null,"","",null,null,null,null,null,null,null,null,null,null,null,null,null,null,null,null,null,null,"","","","",null,null,"",null,null,null,null,null,null,null,null,null,null,null,null,null,null,null,null,null,null,null,null,null,null,null,null,null,null,null,"","","",null,null,null,null,"","","","",null,null,null,null,null,null,null,null,null,null,null,null,null,null,null,null,null,null,null,null,null,null,null,null,null,null,null,null,null,null,null,null,null,null,null,null,null,null,null,null,null,null,null,null,null,null,null,null,null,null,null,null,"",{"$f":"IF($A35=\"\",\"\",IF(VLOOKUP($G35,$H$11:$DO$1000,103,FALSE)=\"\",\"No\",IF(LEFT(VLOOKUP($G35,$H$11:$DO$1000,103,FALSE),3)=\"The\",EM35,VLOOKUP(VLOOKUP($G35,$H$11:$DO$1000,103,FALSE),DeclMatrix!$A$2:$F$5,VLOOKUP('Enrollment Form'!$B35,DeclMatrix!$A$8:$B$12,2,FALSE),FALSE))))","v":""},{"$f":"IF($A35=\"\",\"\",IF(VLOOKUP($G35,$H$11:$DO$1000,106,FALSE)=\"\",\"No\",IF(LEFT(VLOOKUP($G35,$H$11:$DO$1000,106,FALSE),3)=\"The\",EN35,VLOOKUP(VLOOKUP($G35,$H$11:$DO$1000,106,FALSE),DeclMatrix!$A$2:$F$5,VLOOKUP('Enrollment Form'!$B35,DeclMatrix!$A$8:$B$12,2,FALSE),FALSE))))","v":""},{"$f":"IF($A35=\"\",\"\",IF(VLOOKUP($G35,$H$11:$DO$1000,109,FALSE)=\"\",\"No\",IF(LEFT(VLOOKUP($G35,$H$11:$DO$1000,109,FALSE),3)=\"The\",EO35,VLOOKUP(VLOOKUP($G35,$H$11:$DO$1000,109,FALSE),DeclMatrix!$A$2:$F$5,VLOOKUP('Enrollment Form'!$B35,DeclMatrix!$A$8:$B$12,2,FALSE),FALSE))))","v":""},{"$f":"IF($A35=\"\",\"\",IF(VLOOKUP($G35,$H$11:$DO$1000,112,FALSE)=\"\",\"No\",IF(LEFT(VLOOKUP($G35,$H$11:$DO$1000,112,FALSE),3)=\"The\",EP35,VLOOKUP(VLOOKUP($G35,$H$11:$DO$1000,112,FALSE),DeclMatrix!$A$2:$F$5,VLOOKUP('Enrollment Form'!$B35,DeclMatrix!$A$8:$B$12,2,FALSE),FALSE))))","v":""},null,null,null,null,null,null,null,null,"",null,"","","","","","","","","","","",""]
["",null,null,null,null,null,"","",null,null,null,null,null,null,null,null,null,null,null,null,null,null,null,null,null,null,"","","","",null,null,"",null,null,null,null,null,null,null,null,null,null,null,null,null,null,null,null,null,null,null,null,null,null,null,null,null,null,null,"","","",null,null,null,null,"","","","",null,null,null,null,null,null,null,null,null,null,null,null,null,null,null,null,null,null,null,null,null,null,null,null,null,null,null,null,null,null,null,null,null,null,null,null,null,null,null,null,null,null,null,null,null,null,null,null,null,null,null,null,"",{"$f":"IF($A36=\"\",\"\",IF(VLOOKUP($G36,$H$11:$DO$1000,103,FALSE)=\"\",\"No\",IF(LEFT(VLOOKUP($G36,$H$11:$DO$1000,103,FALSE),3)=\"The\",EM36,VLOOKUP(VLOOKUP($G36,$H$11:$DO$1000,103,FALSE),DeclMatrix!$A$2:$F$5,VLOOKUP('Enrollment Form'!$B36,DeclMatrix!$A$8:$B$12,2,FALSE),FALSE))))","v":""},{"$f":"IF($A36=\"\",\"\",IF(VLOOKUP($G36,$H$11:$DO$1000,106,FALSE)=\"\",\"No\",IF(LEFT(VLOOKUP($G36,$H$11:$DO$1000,106,FALSE),3)=\"The\",EN36,VLOOKUP(VLOOKUP($G36,$H$11:$DO$1000,106,FALSE),DeclMatrix!$A$2:$F$5,VLOOKUP('Enrollment Form'!$B36,DeclMatrix!$A$8:$B$12,2,FALSE),FALSE))))","v":""},{"$f":"IF($A36=\"\",\"\",IF(VLOOKUP($G36,$H$11:$DO$1000,109,FALSE)=\"\",\"No\",IF(LEFT(VLOOKUP($G36,$H$11:$DO$1000,109,FALSE),3)=\"The\",EO36,VLOOKUP(VLOOKUP($G36,$H$11:$DO$1000,109,FALSE),DeclMatrix!$A$2:$F$5,VLOOKUP('Enrollment Form'!$B36,DeclMatrix!$A$8:$B$12,2,FALSE),FALSE))))","v":""},{"$f":"IF($A36=\"\",\"\",IF(VLOOKUP($G36,$H$11:$DO$1000,112,FALSE)=\"\",\"No\",IF(LEFT(VLOOKUP($G36,$H$11:$DO$1000,112,FALSE),3)=\"The\",EP36,VLOOKUP(VLOOKUP($G36,$H$11:$DO$1000,112,FALSE),DeclMatrix!$A$2:$F$5,VLOOKUP('Enrollment Form'!$B36,DeclMatrix!$A$8:$B$12,2,FALSE),FALSE))))","v":""},null,null,null,null,null,null,null,null,"",null,"","","","","","","","","","","",""]
["",null,null,null,null,null,"","",null,null,null,null,null,null,null,null,null,null,null,null,null,null,null,null,null,null,"","","","",null,null,"",null,null,null,null,null,null,null,null,null,null,null,null,null,null,null,null,null,null,null,null,null,null,null,null,null,null,null,"","","",null,null,null,null,"","","","",null,null,null,null,null,null,null,null,null,null,null,null,null,null,null,null,null,null,null,null,null,null,null,null,null,null,null,null,null,null,null,null,null,null,null,null,null,null,null,null,null,null,null,null,null,null,null,null,null,null,null,null,"",{"$f":"IF($A37=\"\",\"\",IF(VLOOKUP($G37,$H$11:$DO$1000,103,FALSE)=\"\",\"No\",IF(LEFT(VLOOKUP($G37,$H$11:$DO$1000,103,FALSE),3)=\"The\",EM37,VLOOKUP(VLOOKUP($G37,$H$11:$DO$1000,103,FALSE),DeclMatrix!$A$2:$F$5,VLOOKUP('Enrollment Form'!$B37,DeclMatrix!$A$8:$B$12,2,FALSE),FALSE))))","v":""},{"$f":"IF($A37=\"\",\"\",IF(VLOOKUP($G37,$H$11:$DO$1000,106,FALSE)=\"\",\"No\",IF(LEFT(VLOOKUP($G37,$H$11:$DO$1000,106,FALSE),3)=\"The\",EN37,VLOOKUP(VLOOKUP($G37,$H$11:$DO$1000,106,FALSE),DeclMatrix!$A$2:$F$5,VLOOKUP('Enrollment Form'!$B37,DeclMatrix!$A$8:$B$12,2,FALSE),FALSE))))","v":""},{"$f":"IF($A37=\"\",\"\",IF(VLOOKUP($G37,$H$11:$DO$1000,109,FALSE)=\"\",\"No\",IF(LEFT(VLOOKUP($G37,$H$11:$DO$1000,109,FALSE),3)=\"The\",EO37,VLOOKUP(VLOOKUP($G37,$H$11:$DO$1000,109,FALSE),DeclMatrix!$A$2:$F$5,VLOOKUP('Enrollment Form'!$B37,DeclMatrix!$A$8:$B$12,2,FALSE),FALSE))))","v":""},{"$f":"IF($A37=\"\",\"\",IF(VLOOKUP($G37,$H$11:$DO$1000,112,FALSE)=\"\",\"No\",IF(LEFT(VLOOKUP($G37,$H$11:$DO$1000,112,FALSE),3)=\"The\",EP37,VLOOKUP(VLOOKUP($G37,$H$11:$DO$1000,112,FALSE),DeclMatrix!$A$2:$F$5,VLOOKUP('Enrollment Form'!$B37,DeclMatrix!$A$8:$B$12,2,FALSE),FALSE))))","v":""},null,null,null,null,null,null,null,null,"",null,"","","","","","","","","","","",""]
["",null,null,null,null,null,"","",null,null,null,null,null,null,null,null,null,null,null,null,null,null,null,null,null,null,"","","","",null,null,"",null,null,null,null,null,null,null,null,null,null,null,null,null,null,null,null,null,null,null,null,null,null,null,null,null,null,null,"","","",null,null,null,null,"","","","",null,null,null,null,null,null,null,null,null,null,null,null,null,null,null,null,null,null,null,null,null,null,null,null,null,null,null,null,null,null,null,null,null,null,null,null,null,null,null,null,null,null,null,null,null,null,null,null,null,null,null,null,"",{"$f":"IF($A38=\"\",\"\",IF(VLOOKUP($G38,$H$11:$DO$1000,103,FALSE)=\"\",\"No\",IF(LEFT(VLOOKUP($G38,$H$11:$DO$1000,103,FALSE),3)=\"The\",EM38,VLOOKUP(VLOOKUP($G38,$H$11:$DO$1000,103,FALSE),DeclMatrix!$A$2:$F$5,VLOOKUP('Enrollment Form'!$B38,DeclMatrix!$A$8:$B$12,2,FALSE),FALSE))))","v":""},{"$f":"IF($A38=\"\",\"\",IF(VLOOKUP($G38,$H$11:$DO$1000,106,FALSE)=\"\",\"No\",IF(LEFT(VLOOKUP($G38,$H$11:$DO$1000,106,FALSE),3)=\"The\",EN38,VLOOKUP(VLOOKUP($G38,$H$11:$DO$1000,106,FALSE),DeclMatrix!$A$2:$F$5,VLOOKUP('Enrollment Form'!$B38,DeclMatrix!$A$8:$B$12,2,FALSE),FALSE))))","v":""},{"$f":"IF($A38=\"\",\"\",IF(VLOOKUP($G38,$H$11:$DO$1000,109,FALSE)=\"\",\"No\",IF(LEFT(VLOOKUP($G38,$H$11:$DO$1000,109,FALSE),3)=\"The\",EO38,VLOOKUP(VLOOKUP($G38,$H$11:$DO$1000,109,FALSE),DeclMatrix!$A$2:$F$5,VLOOKUP('Enrollment Form'!$B38,DeclMatrix!$A$8:$B$12,2,FALSE),FALSE))))","v":""},{"$f":"IF($A38=\"\",\"\",IF(VLOOKUP($G38,$H$11:$DO$1000,112,FALSE)=\"\",\"No\",IF(LEFT(VLOOKUP($G38,$H$11:$DO$1000,112,FALSE),3)=\"The\",EP38,VLOOKUP(VLOOKUP($G38,$H$11:$DO$1000,112,FALSE),DeclMatrix!$A$2:$F$5,VLOOKUP('Enrollment Form'!$B38,DeclMatrix!$A$8:$B$12,2,FALSE),FALSE))))","v":""},null,null,null,null,null,null,null,null,"",null,"","","","","","","","","","","",""]
["",null,null,null,null,null,"","",null,null,null,null,null,null,null,null,null,null,null,null,null,null,null,null,null,null,"","","","",null,null,"",null,null,null,null,null,null,null,null,null,null,null,null,null,null,null,null,null,null,null,null,null,null,null,null,null,null,null,"","","",null,null,null,null,"","","","",null,null,null,null,null,null,null,null,null,null,null,null,null,null,null,null,null,null,null,null,null,null,null,null,null,null,null,null,null,null,null,null,null,null,null,null,null,null,null,null,null,null,null,null,null,null,null,null,null,null,null,null,"",{"$f":"IF($A39=\"\",\"\",IF(VLOOKUP($G39,$H$11:$DO$1000,103,FALSE)=\"\",\"No\",IF(LEFT(VLOOKUP($G39,$H$11:$DO$1000,103,FALSE),3)=\"The\",EM39,VLOOKUP(VLOOKUP($G39,$H$11:$DO$1000,103,FALSE),DeclMatrix!$A$2:$F$5,VLOOKUP('Enrollment Form'!$B39,DeclMatrix!$A$8:$B$12,2,FALSE),FALSE))))","v":""},{"$f":"IF($A39=\"\",\"\",IF(VLOOKUP($G39,$H$11:$DO$1000,106,FALSE)=\"\",\"No\",IF(LEFT(VLOOKUP($G39,$H$11:$DO$1000,106,FALSE),3)=\"The\",EN39,VLOOKUP(VLOOKUP($G39,$H$11:$DO$1000,106,FALSE),DeclMatrix!$A$2:$F$5,VLOOKUP('Enrollment Form'!$B39,DeclMatrix!$A$8:$B$12,2,FALSE),FALSE))))","v":""},{"$f":"IF($A39=\"\",\"\",IF(VLOOKUP($G39,$H$11:$DO$1000,109,FALSE)=\"\",\"No\",IF(LEFT(VLOOKUP($G39,$H$11:$DO$1000,109,FALSE),3)=\"The\",EO39,VLOOKUP(VLOOKUP($G39,$H$11:$DO$1000,109,FALSE),DeclMatrix!$A$2:$F$5,VLOOKUP('Enrollment Form'!$B39,DeclMatrix!$A$8:$B$12,2,FALSE),FALSE))))","v":""},{"$f":"IF($A39=\"\",\"\",IF(VLOOKUP($G39,$H$11:$DO$1000,112,FALSE)=\"\",\"No\",IF(LEFT(VLOOKUP($G39,$H$11:$DO$1000,112,FALSE),3)=\"The\",EP39,VLOOKUP(VLOOKUP($G39,$H$11:$DO$1000,112,FALSE),DeclMatrix!$A$2:$F$5,VLOOKUP('Enrollment Form'!$B39,DeclMatrix!$A$8:$B$12,2,FALSE),FALSE))))","v":""},null,null,null,null,null,null,null,null,"",null,"","","","","","","","","","","",""]
["",null,null,null,null,null,"","",null,null,null,null,null,null,null,null,null,null,null,null,null,null,null,null,null,null,"","","","",null,null,"",null,null,null,null,null,null,null,null,null,null,null,null,null,null,null,null,null,null,null,null,null,null,null,null,null,null,null,"","","",null,null,null,null,"","","","",null,null,null,null,null,null,null,null,null,null,null,null,null,null,null,null,null,null,null,null,null,null,null,null,null,null,null,null,null,null,null,null,null,null,null,null,null,null,null,null,null,null,null,null,null,null,null,null,null,null,null,null,"",{"$f":"IF($A40=\"\",\"\",IF(VLOOKUP($G40,$H$11:$DO$1000,103,FALSE)=\"\",\"No\",IF(LEFT(VLOOKUP($G40,$H$11:$DO$1000,103,FALSE),3)=\"The\",EM40,VLOOKUP(VLOOKUP($G40,$H$11:$DO$1000,103,FALSE),DeclMatrix!$A$2:$F$5,VLOOKUP('Enrollment Form'!$B40,DeclMatrix!$A$8:$B$12,2,FALSE),FALSE))))","v":""},{"$f":"IF($A40=\"\",\"\",IF(VLOOKUP($G40,$H$11:$DO$1000,106,FALSE)=\"\",\"No\",IF(LEFT(VLOOKUP($G40,$H$11:$DO$1000,106,FALSE),3)=\"The\",EN40,VLOOKUP(VLOOKUP($G40,$H$11:$DO$1000,106,FALSE),DeclMatrix!$A$2:$F$5,VLOOKUP('Enrollment Form'!$B40,DeclMatrix!$A$8:$B$12,2,FALSE),FALSE))))","v":""},{"$f":"IF($A40=\"\",\"\",IF(VLOOKUP($G40,$H$11:$DO$1000,109,FALSE)=\"\",\"No\",IF(LEFT(VLOOKUP($G40,$H$11:$DO$1000,109,FALSE),3)=\"The\",EO40,VLOOKUP(VLOOKUP($G40,$H$11:$DO$1000,109,FALSE),DeclMatrix!$A$2:$F$5,VLOOKUP('Enrollment Form'!$B40,DeclMatrix!$A$8:$B$12,2,FALSE),FALSE))))","v":""},{"$f":"IF($A40=\"\",\"\",IF(VLOOKUP($G40,$H$11:$DO$1000,112,FALSE)=\"\",\"No\",IF(LEFT(VLOOKUP($G40,$H$11:$DO$1000,112,FALSE),3)=\"The\",EP40,VLOOKUP(VLOOKUP($G40,$H$11:$DO$1000,112,FALSE),DeclMatrix!$A$2:$F$5,VLOOKUP('Enrollment Form'!$B40,DeclMatrix!$A$8:$B$12,2,FALSE),FALSE))))","v":""},null,null,null,null,null,null,null,null,"",null,"","","","","","","","","","","",""]
["",null,null,null,null,null,"","",null,null,null,null,null,null,null,null,null,null,null,null,null,null,null,null,null,null,"","","","",null,null,"",null,null,null,null,null,null,null,null,null,null,null,null,null,null,null,null,null,null,null,null,null,null,null,null,null,null,null,"","","",null,null,null,null,"","","","",null,null,null,null,null,null,null,null,null,null,null,null,null,null,null,null,null,null,null,null,null,null,null,null,null,null,null,null,null,null,null,null,null,null,null,null,null,null,null,null,null,null,null,null,null,null,null,null,null,null,null,null,"",{"$f":"IF($A41=\"\",\"\",IF(VLOOKUP($G41,$H$11:$DO$1000,103,FALSE)=\"\",\"No\",IF(LEFT(VLOOKUP($G41,$H$11:$DO$1000,103,FALSE),3)=\"The\",EM41,VLOOKUP(VLOOKUP($G41,$H$11:$DO$1000,103,FALSE),DeclMatrix!$A$2:$F$5,VLOOKUP('Enrollment Form'!$B41,DeclMatrix!$A$8:$B$12,2,FALSE),FALSE))))","v":""},{"$f":"IF($A41=\"\",\"\",IF(VLOOKUP($G41,$H$11:$DO$1000,106,FALSE)=\"\",\"No\",IF(LEFT(VLOOKUP($G41,$H$11:$DO$1000,106,FALSE),3)=\"The\",EN41,VLOOKUP(VLOOKUP($G41,$H$11:$DO$1000,106,FALSE),DeclMatrix!$A$2:$F$5,VLOOKUP('Enrollment Form'!$B41,DeclMatrix!$A$8:$B$12,2,FALSE),FALSE))))","v":""},{"$f":"IF($A41=\"\",\"\",IF(VLOOKUP($G41,$H$11:$DO$1000,109,FALSE)=\"\",\"No\",IF(LEFT(VLOOKUP($G41,$H$11:$DO$1000,109,FALSE),3)=\"The\",EO41,VLOOKUP(VLOOKUP($G41,$H$11:$DO$1000,109,FALSE),DeclMatrix!$A$2:$F$5,VLOOKUP('Enrollment Form'!$B41,DeclMatrix!$A$8:$B$12,2,FALSE),FALSE))))","v":""},{"$f":"IF($A41=\"\",\"\",IF(VLOOKUP($G41,$H$11:$DO$1000,112,FALSE)=\"\",\"No\",IF(LEFT(VLOOKUP($G41,$H$11:$DO$1000,112,FALSE),3)=\"The\",EP41,VLOOKUP(VLOOKUP($G41,$H$11:$DO$1000,112,FALSE),DeclMatrix!$A$2:$F$5,VLOOKUP('Enrollment Form'!$B41,DeclMatrix!$A$8:$B$12,2,FALSE),FALSE))))","v":""},null,null,null,null,null,null,null,null,"",null,"","","","","","","","","","","",""]
["",null,null,null,null,null,"","",null,null,null,null,null,null,null,null,null,null,null,null,null,null,null,null,null,null,"","","","",null,null,"",null,null,null,null,null,null,null,null,null,null,null,null,null,null,null,null,null,null,null,null,null,null,null,null,null,null,null,"","","",null,null,null,null,"","","","",null,null,null,null,null,null,null,null,null,null,null,null,null,null,null,null,null,null,null,null,null,null,null,null,null,null,null,null,null,null,null,null,null,null,null,null,null,null,null,null,null,null,null,null,null,null,null,null,null,null,null,null,"",{"$f":"IF($A42=\"\",\"\",IF(VLOOKUP($G42,$H$11:$DO$1000,103,FALSE)=\"\",\"No\",IF(LEFT(VLOOKUP($G42,$H$11:$DO$1000,103,FALSE),3)=\"The\",EM42,VLOOKUP(VLOOKUP($G42,$H$11:$DO$1000,103,FALSE),DeclMatrix!$A$2:$F$5,VLOOKUP('Enrollment Form'!$B42,DeclMatrix!$A$8:$B$12,2,FALSE),FALSE))))","v":""},{"$f":"IF($A42=\"\",\"\",IF(VLOOKUP($G42,$H$11:$DO$1000,106,FALSE)=\"\",\"No\",IF(LEFT(VLOOKUP($G42,$H$11:$DO$1000,106,FALSE),3)=\"The\",EN42,VLOOKUP(VLOOKUP($G42,$H$11:$DO$1000,106,FALSE),DeclMatrix!$A$2:$F$5,VLOOKUP('Enrollment Form'!$B42,DeclMatrix!$A$8:$B$12,2,FALSE),FALSE))))","v":""},{"$f":"IF($A42=\"\",\"\",IF(VLOOKUP($G42,$H$11:$DO$1000,109,FALSE)=\"\",\"No\",IF(LEFT(VLOOKUP($G42,$H$11:$DO$1000,109,FALSE),3)=\"The\",EO42,VLOOKUP(VLOOKUP($G42,$H$11:$DO$1000,109,FALSE),DeclMatrix!$A$2:$F$5,VLOOKUP('Enrollment Form'!$B42,DeclMatrix!$A$8:$B$12,2,FALSE),FALSE))))","v":""},{"$f":"IF($A42=\"\",\"\",IF(VLOOKUP($G42,$H$11:$DO$1000,112,FALSE)=\"\",\"No\",IF(LEFT(VLOOKUP($G42,$H$11:$DO$1000,112,FALSE),3)=\"The\",EP42,VLOOKUP(VLOOKUP($G42,$H$11:$DO$1000,112,FALSE),DeclMatrix!$A$2:$F$5,VLOOKUP('Enrollment Form'!$B42,DeclMatrix!$A$8:$B$12,2,FALSE),FALSE))))","v":""},null,null,null,null,null,null,null,null,"",null,"","","","","","","","","","","",""]
["",null,null,null,null,null,"","",null,null,null,null,null,null,null,null,null,null,null,null,null,null,null,null,null,null,"","","","",null,null,"",null,null,null,null,null,null,null,null,null,null,null,null,null,null,null,null,null,null,null,null,null,null,null,null,null,null,null,"","","",null,null,null,null,"","","","",null,null,null,null,null,null,null,null,null,null,null,null,null,null,null,null,null,null,null,null,null,null,null,null,null,null,null,null,null,null,null,null,null,null,null,null,null,null,null,null,null,null,null,null,null,null,null,null,null,null,null,null,"",{"$f":"IF($A43=\"\",\"\",IF(VLOOKUP($G43,$H$11:$DO$1000,103,FALSE)=\"\",\"No\",IF(LEFT(VLOOKUP($G43,$H$11:$DO$1000,103,FALSE),3)=\"The\",EM43,VLOOKUP(VLOOKUP($G43,$H$11:$DO$1000,103,FALSE),DeclMatrix!$A$2:$F$5,VLOOKUP('Enrollment Form'!$B43,DeclMatrix!$A$8:$B$12,2,FALSE),FALSE))))","v":""},{"$f":"IF($A43=\"\",\"\",IF(VLOOKUP($G43,$H$11:$DO$1000,106,FALSE)=\"\",\"No\",IF(LEFT(VLOOKUP($G43,$H$11:$DO$1000,106,FALSE),3)=\"The\",EN43,VLOOKUP(VLOOKUP($G43,$H$11:$DO$1000,106,FALSE),DeclMatrix!$A$2:$F$5,VLOOKUP('Enrollment Form'!$B43,DeclMatrix!$A$8:$B$12,2,FALSE),FALSE))))","v":""},{"$f":"IF($A43=\"\",\"\",IF(VLOOKUP($G43,$H$11:$DO$1000,109,FALSE)=\"\",\"No\",IF(LEFT(VLOOKUP($G43,$H$11:$DO$1000,109,FALSE),3)=\"The\",EO43,VLOOKUP(VLOOKUP($G43,$H$11:$DO$1000,109,FALSE),DeclMatrix!$A$2:$F$5,VLOOKUP('Enrollment Form'!$B43,DeclMatrix!$A$8:$B$12,2,FALSE),FALSE))))","v":""},{"$f":"IF($A43=\"\",\"\",IF(VLOOKUP($G43,$H$11:$DO$1000,112,FALSE)=\"\",\"No\",IF(LEFT(VLOOKUP($G43,$H$11:$DO$1000,112,FALSE),3)=\"The\",EP43,VLOOKUP(VLOOKUP($G43,$H$11:$DO$1000,112,FALSE),DeclMatrix!$A$2:$F$5,VLOOKUP('Enrollment Form'!$B43,DeclMatrix!$A$8:$B$12,2,FALSE),FALSE))))","v":""},null,null,null,null,null,null,null,null,"",null,"","","","","","","","","","","",""]
["",null,null,null,null,null,"","",null,null,null,null,null,null,null,null,null,null,null,null,null,null,null,null,null,null,"","","","",null,null,"",null,null,null,null,null,null,null,null,null,null,null,null,null,null,null,null,null,null,null,null,null,null,null,null,null,null,null,"","","",null,null,null,null,"","","","",null,null,null,null,null,null,null,null,null,null,null,null,null,null,null,null,null,null,null,null,null,null,null,null,null,null,null,null,null,null,null,null,null,null,null,null,null,null,null,null,null,null,null,null,null,null,null,null,null,null,null,null,"",{"$f":"IF($A44=\"\",\"\",IF(VLOOKUP($G44,$H$11:$DO$1000,103,FALSE)=\"\",\"No\",IF(LEFT(VLOOKUP($G44,$H$11:$DO$1000,103,FALSE),3)=\"The\",EM44,VLOOKUP(VLOOKUP($G44,$H$11:$DO$1000,103,FALSE),DeclMatrix!$A$2:$F$5,VLOOKUP('Enrollment Form'!$B44,DeclMatrix!$A$8:$B$12,2,FALSE),FALSE))))","v":""},{"$f":"IF($A44=\"\",\"\",IF(VLOOKUP($G44,$H$11:$DO$1000,106,FALSE)=\"\",\"No\",IF(LEFT(VLOOKUP($G44,$H$11:$DO$1000,106,FALSE),3)=\"The\",EN44,VLOOKUP(VLOOKUP($G44,$H$11:$DO$1000,106,FALSE),DeclMatrix!$A$2:$F$5,VLOOKUP('Enrollment Form'!$B44,DeclMatrix!$A$8:$B$12,2,FALSE),FALSE))))","v":""},{"$f":"IF($A44=\"\",\"\",IF(VLOOKUP($G44,$H$11:$DO$1000,109,FALSE)=\"\",\"No\",IF(LEFT(VLOOKUP($G44,$H$11:$DO$1000,109,FALSE),3)=\"The\",EO44,VLOOKUP(VLOOKUP($G44,$H$11:$DO$1000,109,FALSE),DeclMatrix!$A$2:$F$5,VLOOKUP('Enrollment Form'!$B44,DeclMatrix!$A$8:$B$12,2,FALSE),FALSE))))","v":""},{"$f":"IF($A44=\"\",\"\",IF(VLOOKUP($G44,$H$11:$DO$1000,112,FALSE)=\"\",\"No\",IF(LEFT(VLOOKUP($G44,$H$11:$DO$1000,112,FALSE),3)=\"The\",EP44,VLOOKUP(VLOOKUP($G44,$H$11:$DO$1000,112,FALSE),DeclMatrix!$A$2:$F$5,VLOOKUP('Enrollment Form'!$B44,DeclMatrix!$A$8:$B$12,2,FALSE),FALSE))))","v":""},null,null,null,null,null,null,null,null,"",null,"","","","","","","","","","","",""]
["",null,null,null,null,null,"","",null,null,null,null,null,null,null,null,null,null,null,null,null,null,null,null,null,null,"","","","",null,null,"",null,null,null,null,null,null,null,null,null,null,null,null,null,null,null,null,null,null,null,null,null,null,null,null,null,null,null,"","","",null,null,null,null,"","","","",null,null,null,null,null,null,null,null,null,null,null,null,null,null,null,null,null,null,null,null,null,null,null,null,null,null,null,null,null,null,null,null,null,null,null,null,null,null,null,null,null,null,null,null,null,null,null,null,null,null,null,null,"",{"$f":"IF($A45=\"\",\"\",IF(VLOOKUP($G45,$H$11:$DO$1000,103,FALSE)=\"\",\"No\",IF(LEFT(VLOOKUP($G45,$H$11:$DO$1000,103,FALSE),3)=\"The\",EM45,VLOOKUP(VLOOKUP($G45,$H$11:$DO$1000,103,FALSE),DeclMatrix!$A$2:$F$5,VLOOKUP('Enrollment Form'!$B45,DeclMatrix!$A$8:$B$12,2,FALSE),FALSE))))","v":""},{"$f":"IF($A45=\"\",\"\",IF(VLOOKUP($G45,$H$11:$DO$1000,106,FALSE)=\"\",\"No\",IF(LEFT(VLOOKUP($G45,$H$11:$DO$1000,106,FALSE),3)=\"The\",EN45,VLOOKUP(VLOOKUP($G45,$H$11:$DO$1000,106,FALSE),DeclMatrix!$A$2:$F$5,VLOOKUP('Enrollment Form'!$B45,DeclMatrix!$A$8:$B$12,2,FALSE),FALSE))))","v":""},{"$f":"IF($A45=\"\",\"\",IF(VLOOKUP($G45,$H$11:$DO$1000,109,FALSE)=\"\",\"No\",IF(LEFT(VLOOKUP($G45,$H$11:$DO$1000,109,FALSE),3)=\"The\",EO45,VLOOKUP(VLOOKUP($G45,$H$11:$DO$1000,109,FALSE),DeclMatrix!$A$2:$F$5,VLOOKUP('Enrollment Form'!$B45,DeclMatrix!$A$8:$B$12,2,FALSE),FALSE))))","v":""},{"$f":"IF($A45=\"\",\"\",IF(VLOOKUP($G45,$H$11:$DO$1000,112,FALSE)=\"\",\"No\",IF(LEFT(VLOOKUP($G45,$H$11:$DO$1000,112,FALSE),3)=\"The\",EP45,VLOOKUP(VLOOKUP($G45,$H$11:$DO$1000,112,FALSE),DeclMatrix!$A$2:$F$5,VLOOKUP('Enrollment Form'!$B45,DeclMatrix!$A$8:$B$12,2,FALSE),FALSE))))","v":""},null,null,null,null,null,null,null,null,"",null,"","","","","","","","","","","",""]
["",null,null,null,null,null,"","",null,null,null,null,null,null,null,null,null,null,null,null,null,null,null,null,null,null,"","","","",null,null,"",null,null,null,null,null,null,null,null,null,null,null,null,null,null,null,null,null,null,null,null,null,null,null,null,null,null,null,"","","",null,null,null,null,"","","","",null,null,null,null,null,null,null,null,null,null,null,null,null,null,null,null,null,null,null,null,null,null,null,null,null,null,null,null,null,null,null,null,null,null,null,null,null,null,null,null,null,null,null,null,null,null,null,null,null,null,null,null,"",{"$f":"IF($A46=\"\",\"\",IF(VLOOKUP($G46,$H$11:$DO$1000,103,FALSE)=\"\",\"No\",IF(LEFT(VLOOKUP($G46,$H$11:$DO$1000,103,FALSE),3)=\"The\",EM46,VLOOKUP(VLOOKUP($G46,$H$11:$DO$1000,103,FALSE),DeclMatrix!$A$2:$F$5,VLOOKUP('Enrollment Form'!$B46,DeclMatrix!$A$8:$B$12,2,FALSE),FALSE))))","v":""},{"$f":"IF($A46=\"\",\"\",IF(VLOOKUP($G46,$H$11:$DO$1000,106,FALSE)=\"\",\"No\",IF(LEFT(VLOOKUP($G46,$H$11:$DO$1000,106,FALSE),3)=\"The\",EN46,VLOOKUP(VLOOKUP($G46,$H$11:$DO$1000,106,FALSE),DeclMatrix!$A$2:$F$5,VLOOKUP('Enrollment Form'!$B46,DeclMatrix!$A$8:$B$12,2,FALSE),FALSE))))","v":""},{"$f":"IF($A46=\"\",\"\",IF(VLOOKUP($G46,$H$11:$DO$1000,109,FALSE)=\"\",\"No\",IF(LEFT(VLOOKUP($G46,$H$11:$DO$1000,109,FALSE),3)=\"The\",EO46,VLOOKUP(VLOOKUP($G46,$H$11:$DO$1000,109,FALSE),DeclMatrix!$A$2:$F$5,VLOOKUP('Enrollment Form'!$B46,DeclMatrix!$A$8:$B$12,2,FALSE),FALSE))))","v":""},{"$f":"IF($A46=\"\",\"\",IF(VLOOKUP($G46,$H$11:$DO$1000,112,FALSE)=\"\",\"No\",IF(LEFT(VLOOKUP($G46,$H$11:$DO$1000,112,FALSE),3)=\"The\",EP46,VLOOKUP(VLOOKUP($G46,$H$11:$DO$1000,112,FALSE),DeclMatrix!$A$2:$F$5,VLOOKUP('Enrollment Form'!$B46,DeclMatrix!$A$8:$B$12,2,FALSE),FALSE))))","v":""},null,null,null,null,null,null,null,null,"",null,"","","","","","","","","","","",""]
["",null,null,null,null,null,"","",null,null,null,null,null,null,null,null,null,null,null,null,null,null,null,null,null,null,"","","","",null,null,"",null,null,null,null,null,null,null,null,null,null,null,null,null,null,null,null,null,null,null,null,null,null,null,null,null,null,null,"","","",null,null,null,null,"","","","",null,null,null,null,null,null,null,null,null,null,null,null,null,null,null,null,null,null,null,null,null,null,null,null,null,null,null,null,null,null,null,null,null,null,null,null,null,null,null,null,null,null,null,null,null,null,null,null,null,null,null,null,"",{"$f":"IF($A47=\"\",\"\",IF(VLOOKUP($G47,$H$11:$DO$1000,103,FALSE)=\"\",\"No\",IF(LEFT(VLOOKUP($G47,$H$11:$DO$1000,103,FALSE),3)=\"The\",EM47,VLOOKUP(VLOOKUP($G47,$H$11:$DO$1000,103,FALSE),DeclMatrix!$A$2:$F$5,VLOOKUP('Enrollment Form'!$B47,DeclMatrix!$A$8:$B$12,2,FALSE),FALSE))))","v":""},{"$f":"IF($A47=\"\",\"\",IF(VLOOKUP($G47,$H$11:$DO$1000,106,FALSE)=\"\",\"No\",IF(LEFT(VLOOKUP($G47,$H$11:$DO$1000,106,FALSE),3)=\"The\",EN47,VLOOKUP(VLOOKUP($G47,$H$11:$DO$1000,106,FALSE),DeclMatrix!$A$2:$F$5,VLOOKUP('Enrollment Form'!$B47,DeclMatrix!$A$8:$B$12,2,FALSE),FALSE))))","v":""},{"$f":"IF($A47=\"\",\"\",IF(VLOOKUP($G47,$H$11:$DO$1000,109,FALSE)=\"\",\"No\",IF(LEFT(VLOOKUP($G47,$H$11:$DO$1000,109,FALSE),3)=\"The\",EO47,VLOOKUP(VLOOKUP($G47,$H$11:$DO$1000,109,FALSE),DeclMatrix!$A$2:$F$5,VLOOKUP('Enrollment Form'!$B47,DeclMatrix!$A$8:$B$12,2,FALSE),FALSE))))","v":""},{"$f":"IF($A47=\"\",\"\",IF(VLOOKUP($G47,$H$11:$DO$1000,112,FALSE)=\"\",\"No\",IF(LEFT(VLOOKUP($G47,$H$11:$DO$1000,112,FALSE),3)=\"The\",EP47,VLOOKUP(VLOOKUP($G47,$H$11:$DO$1000,112,FALSE),DeclMatrix!$A$2:$F$5,VLOOKUP('Enrollment Form'!$B47,DeclMatrix!$A$8:$B$12,2,FALSE),FALSE))))","v":""},null,null,null,null,null,null,null,null,"",null,"","","","","","","","","","","",""]
["",null,null,null,null,null,"","",null,null,null,null,null,null,null,null,null,null,null,null,null,null,null,null,null,null,"","","","",null,null,"",null,null,null,null,null,null,null,null,null,null,null,null,null,null,null,null,null,null,null,null,null,null,null,null,null,null,null,"","","",null,null,null,null,"","","","",null,null,null,null,null,null,null,null,null,null,null,null,null,null,null,null,null,null,null,null,null,null,null,null,null,null,null,null,null,null,null,null,null,null,null,null,null,null,null,null,null,null,null,null,null,null,null,null,null,null,null,null,"",{"$f":"IF($A48=\"\",\"\",IF(VLOOKUP($G48,$H$11:$DO$1000,103,FALSE)=\"\",\"No\",IF(LEFT(VLOOKUP($G48,$H$11:$DO$1000,103,FALSE),3)=\"The\",EM48,VLOOKUP(VLOOKUP($G48,$H$11:$DO$1000,103,FALSE),DeclMatrix!$A$2:$F$5,VLOOKUP('Enrollment Form'!$B48,DeclMatrix!$A$8:$B$12,2,FALSE),FALSE))))","v":""},{"$f":"IF($A48=\"\",\"\",IF(VLOOKUP($G48,$H$11:$DO$1000,106,FALSE)=\"\",\"No\",IF(LEFT(VLOOKUP($G48,$H$11:$DO$1000,106,FALSE),3)=\"The\",EN48,VLOOKUP(VLOOKUP($G48,$H$11:$DO$1000,106,FALSE),DeclMatrix!$A$2:$F$5,VLOOKUP('Enrollment Form'!$B48,DeclMatrix!$A$8:$B$12,2,FALSE),FALSE))))","v":""},{"$f":"IF($A48=\"\",\"\",IF(VLOOKUP($G48,$H$11:$DO$1000,109,FALSE)=\"\",\"No\",IF(LEFT(VLOOKUP($G48,$H$11:$DO$1000,109,FALSE),3)=\"The\",EO48,VLOOKUP(VLOOKUP($G48,$H$11:$DO$1000,109,FALSE),DeclMatrix!$A$2:$F$5,VLOOKUP('Enrollment Form'!$B48,DeclMatrix!$A$8:$B$12,2,FALSE),FALSE))))","v":""},{"$f":"IF($A48=\"\",\"\",IF(VLOOKUP($G48,$H$11:$DO$1000,112,FALSE)=\"\",\"No\",IF(LEFT(VLOOKUP($G48,$H$11:$DO$1000,112,FALSE),3)=\"The\",EP48,VLOOKUP(VLOOKUP($G48,$H$11:$DO$1000,112,FALSE),DeclMatrix!$A$2:$F$5,VLOOKUP('Enrollment Form'!$B48,DeclMatrix!$A$8:$B$12,2,FALSE),FALSE))))","v":""},null,null,null,null,null,null,null,null,"",null,"","","","","","","","","","","",""]
["",null,null,null,null,null,"","",null,null,null,null,null,null,null,null,null,null,null,null,null,null,null,null,null,null,"","","","",null,null,"",null,null,null,null,null,null,null,null,null,null,null,null,null,null,null,null,null,null,null,null,null,null,null,null,null,null,null,"","","",null,null,null,null,"","","","",null,null,null,null,null,null,null,null,null,null,null,null,null,null,null,null,null,null,null,null,null,null,null,null,null,null,null,null,null,null,null,null,null,null,null,null,null,null,null,null,null,null,null,null,null,null,null,null,null,null,null,null,"",{"$f":"IF($A49=\"\",\"\",IF(VLOOKUP($G49,$H$11:$DO$1000,103,FALSE)=\"\",\"No\",IF(LEFT(VLOOKUP($G49,$H$11:$DO$1000,103,FALSE),3)=\"The\",EM49,VLOOKUP(VLOOKUP($G49,$H$11:$DO$1000,103,FALSE),DeclMatrix!$A$2:$F$5,VLOOKUP('Enrollment Form'!$B49,DeclMatrix!$A$8:$B$12,2,FALSE),FALSE))))","v":""},{"$f":"IF($A49=\"\",\"\",IF(VLOOKUP($G49,$H$11:$DO$1000,106,FALSE)=\"\",\"No\",IF(LEFT(VLOOKUP($G49,$H$11:$DO$1000,106,FALSE),3)=\"The\",EN49,VLOOKUP(VLOOKUP($G49,$H$11:$DO$1000,106,FALSE),DeclMatrix!$A$2:$F$5,VLOOKUP('Enrollment Form'!$B49,DeclMatrix!$A$8:$B$12,2,FALSE),FALSE))))","v":""},{"$f":"IF($A49=\"\",\"\",IF(VLOOKUP($G49,$H$11:$DO$1000,109,FALSE)=\"\",\"No\",IF(LEFT(VLOOKUP($G49,$H$11:$DO$1000,109,FALSE),3)=\"The\",EO49,VLOOKUP(VLOOKUP($G49,$H$11:$DO$1000,109,FALSE),DeclMatrix!$A$2:$F$5,VLOOKUP('Enrollment Form'!$B49,DeclMatrix!$A$8:$B$12,2,FALSE),FALSE))))","v":""},{"$f":"IF($A49=\"\",\"\",IF(VLOOKUP($G49,$H$11:$DO$1000,112,FALSE)=\"\",\"No\",IF(LEFT(VLOOKUP($G49,$H$11:$DO$1000,112,FALSE),3)=\"The\",EP49,VLOOKUP(VLOOKUP($G49,$H$11:$DO$1000,112,FALSE),DeclMatrix!$A$2:$F$5,VLOOKUP('Enrollment Form'!$B49,DeclMatrix!$A$8:$B$12,2,FALSE),FALSE))))","v":""},null,null,null,null,null,null,null,null,"",null,"","","","","","","","","","","",""]
["",null,null,null,null,null,"","",null,null,null,null,null,null,null,null,null,null,null,null,null,null,null,null,null,null,"","","","",null,null,"",null,null,null,null,null,null,null,null,null,null,null,null,null,null,null,null,null,null,null,null,null,null,null,null,null,null,null,"","","",null,null,null,null,"","","","",null,null,null,null,null,null,null,null,null,null,null,null,null,null,null,null,null,null,null,null,null,null,null,null,null,null,null,null,null,null,null,null,null,null,null,null,null,null,null,null,null,null,null,null,null,null,null,null,null,null,null,null,"",{"$f":"IF($A50=\"\",\"\",IF(VLOOKUP($G50,$H$11:$DO$1000,103,FALSE)=\"\",\"No\",IF(LEFT(VLOOKUP($G50,$H$11:$DO$1000,103,FALSE),3)=\"The\",EM50,VLOOKUP(VLOOKUP($G50,$H$11:$DO$1000,103,FALSE),DeclMatrix!$A$2:$F$5,VLOOKUP('Enrollment Form'!$B50,DeclMatrix!$A$8:$B$12,2,FALSE),FALSE))))","v":""},{"$f":"IF($A50=\"\",\"\",IF(VLOOKUP($G50,$H$11:$DO$1000,106,FALSE)=\"\",\"No\",IF(LEFT(VLOOKUP($G50,$H$11:$DO$1000,106,FALSE),3)=\"The\",EN50,VLOOKUP(VLOOKUP($G50,$H$11:$DO$1000,106,FALSE),DeclMatrix!$A$2:$F$5,VLOOKUP('Enrollment Form'!$B50,DeclMatrix!$A$8:$B$12,2,FALSE),FALSE))))","v":""},{"$f":"IF($A50=\"\",\"\",IF(VLOOKUP($G50,$H$11:$DO$1000,109,FALSE)=\"\",\"No\",IF(LEFT(VLOOKUP($G50,$H$11:$DO$1000,109,FALSE),3)=\"The\",EO50,VLOOKUP(VLOOKUP($G50,$H$11:$DO$1000,109,FALSE),DeclMatrix!$A$2:$F$5,VLOOKUP('Enrollment Form'!$B50,DeclMatrix!$A$8:$B$12,2,FALSE),FALSE))))","v":""},{"$f":"IF($A50=\"\",\"\",IF(VLOOKUP($G50,$H$11:$DO$1000,112,FALSE)=\"\",\"No\",IF(LEFT(VLOOKUP($G50,$H$11:$DO$1000,112,FALSE),3)=\"The\",EP50,VLOOKUP(VLOOKUP($G50,$H$11:$DO$1000,112,FALSE),DeclMatrix!$A$2:$F$5,VLOOKUP('Enrollment Form'!$B50,DeclMatrix!$A$8:$B$12,2,FALSE),FALSE))))","v":""},null,null,null,null,null,null,null,null,"",null,"","","","","","","","","","","",""]
["",null,null,null,null,null,"","",null,null,null,null,null,null,null,null,null,null,null,null,null,null,null,null,null,null,"","","","",null,null,"",null,null,null,null,null,null,null,null,null,null,null,null,null,null,null,null,null,null,null,null,null,null,null,null,null,null,null,"","","",null,null,null,null,"","","","",null,null,null,null,null,null,null,null,null,null,null,null,null,null,null,null,null,null,null,null,null,null,null,null,null,null,null,null,null,null,null,null,null,null,null,null,null,null,null,null,null,null,null,null,null,null,null,null,null,null,null,null,"",{"$f":"IF($A51=\"\",\"\",IF(VLOOKUP($G51,$H$11:$DO$1000,103,FALSE)=\"\",\"No\",IF(LEFT(VLOOKUP($G51,$H$11:$DO$1000,103,FALSE),3)=\"The\",EM51,VLOOKUP(VLOOKUP($G51,$H$11:$DO$1000,103,FALSE),DeclMatrix!$A$2:$F$5,VLOOKUP('Enrollment Form'!$B51,DeclMatrix!$A$8:$B$12,2,FALSE),FALSE))))","v":""},{"$f":"IF($A51=\"\",\"\",IF(VLOOKUP($G51,$H$11:$DO$1000,106,FALSE)=\"\",\"No\",IF(LEFT(VLOOKUP($G51,$H$11:$DO$1000,106,FALSE),3)=\"The\",EN51,VLOOKUP(VLOOKUP($G51,$H$11:$DO$1000,106,FALSE),DeclMatrix!$A$2:$F$5,VLOOKUP('Enrollment Form'!$B51,DeclMatrix!$A$8:$B$12,2,FALSE),FALSE))))","v":""},{"$f":"IF($A51=\"\",\"\",IF(VLOOKUP($G51,$H$11:$DO$1000,109,FALSE)=\"\",\"No\",IF(LEFT(VLOOKUP($G51,$H$11:$DO$1000,109,FALSE),3)=\"The\",EO51,VLOOKUP(VLOOKUP($G51,$H$11:$DO$1000,109,FALSE),DeclMatrix!$A$2:$F$5,VLOOKUP('Enrollment Form'!$B51,DeclMatrix!$A$8:$B$12,2,FALSE),FALSE))))","v":""},{"$f":"IF($A51=\"\",\"\",IF(VLOOKUP($G51,$H$11:$DO$1000,112,FALSE)=\"\",\"No\",IF(LEFT(VLOOKUP($G51,$H$11:$DO$1000,112,FALSE),3)=\"The\",EP51,VLOOKUP(VLOOKUP($G51,$H$11:$DO$1000,112,FALSE),DeclMatrix!$A$2:$F$5,VLOOKUP('Enrollment Form'!$B51,DeclMatrix!$A$8:$B$12,2,FALSE),FALSE))))","v":""},null,null,null,null,null,null,null,null,"",null,"","","","","","","","","","","",""]
["",null,null,null,null,null,"","",null,null,null,null,null,null,null,null,null,null,null,null,null,null,null,null,null,null,"","","","",null,null,"",null,null,null,null,null,null,null,null,null,null,null,null,null,null,null,null,null,null,null,null,null,null,null,null,null,null,null,"","","",null,null,null,null,"","","","",null,null,null,null,null,null,null,null,null,null,null,null,null,null,null,null,null,null,null,null,null,null,null,null,null,null,null,null,null,null,null,null,null,null,null,null,null,null,null,null,null,null,null,null,null,null,null,null,null,null,null,null,"",{"$f":"IF($A52=\"\",\"\",IF(VLOOKUP($G52,$H$11:$DO$1000,103,FALSE)=\"\",\"No\",IF(LEFT(VLOOKUP($G52,$H$11:$DO$1000,103,FALSE),3)=\"The\",EM52,VLOOKUP(VLOOKUP($G52,$H$11:$DO$1000,103,FALSE),DeclMatrix!$A$2:$F$5,VLOOKUP('Enrollment Form'!$B52,DeclMatrix!$A$8:$B$12,2,FALSE),FALSE))))","v":""},{"$f":"IF($A52=\"\",\"\",IF(VLOOKUP($G52,$H$11:$DO$1000,106,FALSE)=\"\",\"No\",IF(LEFT(VLOOKUP($G52,$H$11:$DO$1000,106,FALSE),3)=\"The\",EN52,VLOOKUP(VLOOKUP($G52,$H$11:$DO$1000,106,FALSE),DeclMatrix!$A$2:$F$5,VLOOKUP('Enrollment Form'!$B52,DeclMatrix!$A$8:$B$12,2,FALSE),FALSE))))","v":""},{"$f":"IF($A52=\"\",\"\",IF(VLOOKUP($G52,$H$11:$DO$1000,109,FALSE)=\"\",\"No\",IF(LEFT(VLOOKUP($G52,$H$11:$DO$1000,109,FALSE),3)=\"The\",EO52,VLOOKUP(VLOOKUP($G52,$H$11:$DO$1000,109,FALSE),DeclMatrix!$A$2:$F$5,VLOOKUP('Enrollment Form'!$B52,DeclMatrix!$A$8:$B$12,2,FALSE),FALSE))))","v":""},{"$f":"IF($A52=\"\",\"\",IF(VLOOKUP($G52,$H$11:$DO$1000,112,FALSE)=\"\",\"No\",IF(LEFT(VLOOKUP($G52,$H$11:$DO$1000,112,FALSE),3)=\"The\",EP52,VLOOKUP(VLOOKUP($G52,$H$11:$DO$1000,112,FALSE),DeclMatrix!$A$2:$F$5,VLOOKUP('Enrollment Form'!$B52,DeclMatrix!$A$8:$B$12,2,FALSE),FALSE))))","v":""},null,null,null,null,null,null,null,null,"",null,"","","","","","","","","","","",""]
["",null,null,null,null,null,"","",null,null,null,null,null,null,null,null,null,null,null,null,null,null,null,null,null,null,"","","","",null,null,"",null,null,null,null,null,null,null,null,null,null,null,null,null,null,null,null,null,null,null,null,null,null,null,null,null,null,null,"","","",null,null,null,null,"","","","",null,null,null,null,null,null,null,null,null,null,null,null,null,null,null,null,null,null,null,null,null,null,null,null,null,null,null,null,null,null,null,null,null,null,null,null,null,null,null,null,null,null,null,null,null,null,null,null,null,null,null,null,"",{"$f":"IF($A53=\"\",\"\",IF(VLOOKUP($G53,$H$11:$DO$1000,103,FALSE)=\"\",\"No\",IF(LEFT(VLOOKUP($G53,$H$11:$DO$1000,103,FALSE),3)=\"The\",EM53,VLOOKUP(VLOOKUP($G53,$H$11:$DO$1000,103,FALSE),DeclMatrix!$A$2:$F$5,VLOOKUP('Enrollment Form'!$B53,DeclMatrix!$A$8:$B$12,2,FALSE),FALSE))))","v":""},{"$f":"IF($A53=\"\",\"\",IF(VLOOKUP($G53,$H$11:$DO$1000,106,FALSE)=\"\",\"No\",IF(LEFT(VLOOKUP($G53,$H$11:$DO$1000,106,FALSE),3)=\"The\",EN53,VLOOKUP(VLOOKUP($G53,$H$11:$DO$1000,106,FALSE),DeclMatrix!$A$2:$F$5,VLOOKUP('Enrollment Form'!$B53,DeclMatrix!$A$8:$B$12,2,FALSE),FALSE))))","v":""},{"$f":"IF($A53=\"\",\"\",IF(VLOOKUP($G53,$H$11:$DO$1000,109,FALSE)=\"\",\"No\",IF(LEFT(VLOOKUP($G53,$H$11:$DO$1000,109,FALSE),3)=\"The\",EO53,VLOOKUP(VLOOKUP($G53,$H$11:$DO$1000,109,FALSE),DeclMatrix!$A$2:$F$5,VLOOKUP('Enrollment Form'!$B53,DeclMatrix!$A$8:$B$12,2,FALSE),FALSE))))","v":""},{"$f":"IF($A53=\"\",\"\",IF(VLOOKUP($G53,$H$11:$DO$1000,112,FALSE)=\"\",\"No\",IF(LEFT(VLOOKUP($G53,$H$11:$DO$1000,112,FALSE),3)=\"The\",EP53,VLOOKUP(VLOOKUP($G53,$H$11:$DO$1000,112,FALSE),DeclMatrix!$A$2:$F$5,VLOOKUP('Enrollment Form'!$B53,DeclMatrix!$A$8:$B$12,2,FALSE),FALSE))))","v":""},null,null,null,null,null,null,null,null,"",null,"","","","","","","","","","","",""]
["",null,null,null,null,null,"","",null,null,null,null,null,null,null,null,null,null,null,null,null,null,null,null,null,null,"","","","",null,null,"",null,null,null,null,null,null,null,null,null,null,null,null,null,null,null,null,null,null,null,null,null,null,null,null,null,null,null,"","","",null,null,null,null,"","","","",null,null,null,null,null,null,null,null,null,null,null,null,null,null,null,null,null,null,null,null,null,null,null,null,null,null,null,null,null,null,null,null,null,null,null,null,null,null,null,null,null,null,null,null,null,null,null,null,null,null,null,null,"",{"$f":"IF($A54=\"\",\"\",IF(VLOOKUP($G54,$H$11:$DO$1000,103,FALSE)=\"\",\"No\",IF(LEFT(VLOOKUP($G54,$H$11:$DO$1000,103,FALSE),3)=\"The\",EM54,VLOOKUP(VLOOKUP($G54,$H$11:$DO$1000,103,FALSE),DeclMatrix!$A$2:$F$5,VLOOKUP('Enrollment Form'!$B54,DeclMatrix!$A$8:$B$12,2,FALSE),FALSE))))","v":""},{"$f":"IF($A54=\"\",\"\",IF(VLOOKUP($G54,$H$11:$DO$1000,106,FALSE)=\"\",\"No\",IF(LEFT(VLOOKUP($G54,$H$11:$DO$1000,106,FALSE),3)=\"The\",EN54,VLOOKUP(VLOOKUP($G54,$H$11:$DO$1000,106,FALSE),DeclMatrix!$A$2:$F$5,VLOOKUP('Enrollment Form'!$B54,DeclMatrix!$A$8:$B$12,2,FALSE),FALSE))))","v":""},{"$f":"IF($A54=\"\",\"\",IF(VLOOKUP($G54,$H$11:$DO$1000,109,FALSE)=\"\",\"No\",IF(LEFT(VLOOKUP($G54,$H$11:$DO$1000,109,FALSE),3)=\"The\",EO54,VLOOKUP(VLOOKUP($G54,$H$11:$DO$1000,109,FALSE),DeclMatrix!$A$2:$F$5,VLOOKUP('Enrollment Form'!$B54,DeclMatrix!$A$8:$B$12,2,FALSE),FALSE))))","v":""},{"$f":"IF($A54=\"\",\"\",IF(VLOOKUP($G54,$H$11:$DO$1000,112,FALSE)=\"\",\"No\",IF(LEFT(VLOOKUP($G54,$H$11:$DO$1000,112,FALSE),3)=\"The\",EP54,VLOOKUP(VLOOKUP($G54,$H$11:$DO$1000,112,FALSE),DeclMatrix!$A$2:$F$5,VLOOKUP('Enrollment Form'!$B54,DeclMatrix!$A$8:$B$12,2,FALSE),FALSE))))","v":""},null,null,null,null,null,null,null,null,"",null,"","","","","","","","","","","",""]
["",null,null,null,null,null,"","",null,null,null,null,null,null,null,null,null,null,null,null,null,null,null,null,null,null,"","","","",null,null,"",null,null,null,null,null,null,null,null,null,null,null,null,null,null,null,null,null,null,null,null,null,null,null,null,null,null,null,"","","",null,null,null,null,"","","","",null,null,null,null,null,null,null,null,null,null,null,null,null,null,null,null,null,null,null,null,null,null,null,null,null,null,null,null,null,null,null,null,null,null,null,null,null,null,null,null,null,null,null,null,null,null,null,null,null,null,null,null,"",{"$f":"IF($A55=\"\",\"\",IF(VLOOKUP($G55,$H$11:$DO$1000,103,FALSE)=\"\",\"No\",IF(LEFT(VLOOKUP($G55,$H$11:$DO$1000,103,FALSE),3)=\"The\",EM55,VLOOKUP(VLOOKUP($G55,$H$11:$DO$1000,103,FALSE),DeclMatrix!$A$2:$F$5,VLOOKUP('Enrollment Form'!$B55,DeclMatrix!$A$8:$B$12,2,FALSE),FALSE))))","v":""},{"$f":"IF($A55=\"\",\"\",IF(VLOOKUP($G55,$H$11:$DO$1000,106,FALSE)=\"\",\"No\",IF(LEFT(VLOOKUP($G55,$H$11:$DO$1000,106,FALSE),3)=\"The\",EN55,VLOOKUP(VLOOKUP($G55,$H$11:$DO$1000,106,FALSE),DeclMatrix!$A$2:$F$5,VLOOKUP('Enrollment Form'!$B55,DeclMatrix!$A$8:$B$12,2,FALSE),FALSE))))","v":""},{"$f":"IF($A55=\"\",\"\",IF(VLOOKUP($G55,$H$11:$DO$1000,109,FALSE)=\"\",\"No\",IF(LEFT(VLOOKUP($G55,$H$11:$DO$1000,109,FALSE),3)=\"The\",EO55,VLOOKUP(VLOOKUP($G55,$H$11:$DO$1000,109,FALSE),DeclMatrix!$A$2:$F$5,VLOOKUP('Enrollment Form'!$B55,DeclMatrix!$A$8:$B$12,2,FALSE),FALSE))))","v":""},{"$f":"IF($A55=\"\",\"\",IF(VLOOKUP($G55,$H$11:$DO$1000,112,FALSE)=\"\",\"No\",IF(LEFT(VLOOKUP($G55,$H$11:$DO$1000,112,FALSE),3)=\"The\",EP55,VLOOKUP(VLOOKUP($G55,$H$11:$DO$1000,112,FALSE),DeclMatrix!$A$2:$F$5,VLOOKUP('Enrollment Form'!$B55,DeclMatrix!$A$8:$B$12,2,FALSE),FALSE))))","v":""},null,null,null,null,null,null,null,null,"",null,"","","","","","","","","","","",""]
["",null,null,null,null,null,"","",null,null,null,null,null,null,null,null,null,null,null,null,null,null,null,null,null,null,"","","","",null,null,"",null,null,null,null,null,null,null,null,null,null,null,null,null,null,null,null,null,null,null,null,null,null,null,null,null,null,null,"","","",null,null,null,null,"","","","",null,null,null,null,null,null,null,null,null,null,null,null,null,null,null,null,null,null,null,null,null,null,null,null,null,null,null,null,null,null,null,null,null,null,null,null,null,null,null,null,null,null,null,null,null,null,null,null,null,null,null,null,"",{"$f":"IF($A56=\"\",\"\",IF(VLOOKUP($G56,$H$11:$DO$1000,103,FALSE)=\"\",\"No\",IF(LEFT(VLOOKUP($G56,$H$11:$DO$1000,103,FALSE),3)=\"The\",EM56,VLOOKUP(VLOOKUP($G56,$H$11:$DO$1000,103,FALSE),DeclMatrix!$A$2:$F$5,VLOOKUP('Enrollment Form'!$B56,DeclMatrix!$A$8:$B$12,2,FALSE),FALSE))))","v":""},{"$f":"IF($A56=\"\",\"\",IF(VLOOKUP($G56,$H$11:$DO$1000,106,FALSE)=\"\",\"No\",IF(LEFT(VLOOKUP($G56,$H$11:$DO$1000,106,FALSE),3)=\"The\",EN56,VLOOKUP(VLOOKUP($G56,$H$11:$DO$1000,106,FALSE),DeclMatrix!$A$2:$F$5,VLOOKUP('Enrollment Form'!$B56,DeclMatrix!$A$8:$B$12,2,FALSE),FALSE))))","v":""},{"$f":"IF($A56=\"\",\"\",IF(VLOOKUP($G56,$H$11:$DO$1000,109,FALSE)=\"\",\"No\",IF(LEFT(VLOOKUP($G56,$H$11:$DO$1000,109,FALSE),3)=\"The\",EO56,VLOOKUP(VLOOKUP($G56,$H$11:$DO$1000,109,FALSE),DeclMatrix!$A$2:$F$5,VLOOKUP('Enrollment Form'!$B56,DeclMatrix!$A$8:$B$12,2,FALSE),FALSE))))","v":""},{"$f":"IF($A56=\"\",\"\",IF(VLOOKUP($G56,$H$11:$DO$1000,112,FALSE)=\"\",\"No\",IF(LEFT(VLOOKUP($G56,$H$11:$DO$1000,112,FALSE),3)=\"The\",EP56,VLOOKUP(VLOOKUP($G56,$H$11:$DO$1000,112,FALSE),DeclMatrix!$A$2:$F$5,VLOOKUP('Enrollment Form'!$B56,DeclMatrix!$A$8:$B$12,2,FALSE),FALSE))))","v":""},null,null,null,null,null,null,null,null,"",null,"","","","","","","","","","","",""]
["",null,null,null,null,null,"","",null,null,null,null,null,null,null,null,null,null,null,null,null,null,null,null,null,null,"","","","",null,null,"",null,null,null,null,null,null,null,null,null,null,null,null,null,null,null,null,null,null,null,null,null,null,null,null,null,null,null,"","","",null,null,null,null,"","","","",null,null,null,null,null,null,null,null,null,null,null,null,null,null,null,null,null,null,null,null,null,null,null,null,null,null,null,null,null,null,null,null,null,null,null,null,null,null,null,null,null,null,null,null,null,null,null,null,null,null,null,null,"",{"$f":"IF($A57=\"\",\"\",IF(VLOOKUP($G57,$H$11:$DO$1000,103,FALSE)=\"\",\"No\",IF(LEFT(VLOOKUP($G57,$H$11:$DO$1000,103,FALSE),3)=\"The\",EM57,VLOOKUP(VLOOKUP($G57,$H$11:$DO$1000,103,FALSE),DeclMatrix!$A$2:$F$5,VLOOKUP('Enrollment Form'!$B57,DeclMatrix!$A$8:$B$12,2,FALSE),FALSE))))","v":""},{"$f":"IF($A57=\"\",\"\",IF(VLOOKUP($G57,$H$11:$DO$1000,106,FALSE)=\"\",\"No\",IF(LEFT(VLOOKUP($G57,$H$11:$DO$1000,106,FALSE),3)=\"The\",EN57,VLOOKUP(VLOOKUP($G57,$H$11:$DO$1000,106,FALSE),DeclMatrix!$A$2:$F$5,VLOOKUP('Enrollment Form'!$B57,DeclMatrix!$A$8:$B$12,2,FALSE),FALSE))))","v":""},{"$f":"IF($A57=\"\",\"\",IF(VLOOKUP($G57,$H$11:$DO$1000,109,FALSE)=\"\",\"No\",IF(LEFT(VLOOKUP($G57,$H$11:$DO$1000,109,FALSE),3)=\"The\",EO57,VLOOKUP(VLOOKUP($G57,$H$11:$DO$1000,109,FALSE),DeclMatrix!$A$2:$F$5,VLOOKUP('Enrollment Form'!$B57,DeclMatrix!$A$8:$B$12,2,FALSE),FALSE))))","v":""},{"$f":"IF($A57=\"\",\"\",IF(VLOOKUP($G57,$H$11:$DO$1000,112,FALSE)=\"\",\"No\",IF(LEFT(VLOOKUP($G57,$H$11:$DO$1000,112,FALSE),3)=\"The\",EP57,VLOOKUP(VLOOKUP($G57,$H$11:$DO$1000,112,FALSE),DeclMatrix!$A$2:$F$5,VLOOKUP('Enrollment Form'!$B57,DeclMatrix!$A$8:$B$12,2,FALSE),FALSE))))","v":""},null,null,null,null,null,null,null,null,"",null,"","","","","","","","","","","",""]
["",null,null,null,null,null,"","",null,null,null,null,null,null,null,null,null,null,null,null,null,null,null,null,null,null,"","","","",null,null,"",null,null,null,null,null,null,null,null,null,null,null,null,null,null,null,null,null,null,null,null,null,null,null,null,null,null,null,"","","",null,null,null,null,"","","","",null,null,null,null,null,null,null,null,null,null,null,null,null,null,null,null,null,null,null,null,null,null,null,null,null,null,null,null,null,null,null,null,null,null,null,null,null,null,null,null,null,null,null,null,null,null,null,null,null,null,null,null,"",{"$f":"IF($A58=\"\",\"\",IF(VLOOKUP($G58,$H$11:$DO$1000,103,FALSE)=\"\",\"No\",IF(LEFT(VLOOKUP($G58,$H$11:$DO$1000,103,FALSE),3)=\"The\",EM58,VLOOKUP(VLOOKUP($G58,$H$11:$DO$1000,103,FALSE),DeclMatrix!$A$2:$F$5,VLOOKUP('Enrollment Form'!$B58,DeclMatrix!$A$8:$B$12,2,FALSE),FALSE))))","v":""},{"$f":"IF($A58=\"\",\"\",IF(VLOOKUP($G58,$H$11:$DO$1000,106,FALSE)=\"\",\"No\",IF(LEFT(VLOOKUP($G58,$H$11:$DO$1000,106,FALSE),3)=\"The\",EN58,VLOOKUP(VLOOKUP($G58,$H$11:$DO$1000,106,FALSE),DeclMatrix!$A$2:$F$5,VLOOKUP('Enrollment Form'!$B58,DeclMatrix!$A$8:$B$12,2,FALSE),FALSE))))","v":""},{"$f":"IF($A58=\"\",\"\",IF(VLOOKUP($G58,$H$11:$DO$1000,109,FALSE)=\"\",\"No\",IF(LEFT(VLOOKUP($G58,$H$11:$DO$1000,109,FALSE),3)=\"The\",EO58,VLOOKUP(VLOOKUP($G58,$H$11:$DO$1000,109,FALSE),DeclMatrix!$A$2:$F$5,VLOOKUP('Enrollment Form'!$B58,DeclMatrix!$A$8:$B$12,2,FALSE),FALSE))))","v":""},{"$f":"IF($A58=\"\",\"\",IF(VLOOKUP($G58,$H$11:$DO$1000,112,FALSE)=\"\",\"No\",IF(LEFT(VLOOKUP($G58,$H$11:$DO$1000,112,FALSE),3)=\"The\",EP58,VLOOKUP(VLOOKUP($G58,$H$11:$DO$1000,112,FALSE),DeclMatrix!$A$2:$F$5,VLOOKUP('Enrollment Form'!$B58,DeclMatrix!$A$8:$B$12,2,FALSE),FALSE))))","v":""},null,null,null,null,null,null,null,null,"",null,"","","","","","","","","","","",""]
["",null,null,null,null,null,"","",null,null,null,null,null,null,null,null,null,null,null,null,null,null,null,null,null,null,"","","","",null,null,"",null,null,null,null,null,null,null,null,null,null,null,null,null,null,null,null,null,null,null,null,null,null,null,null,null,null,null,"","","",null,null,null,null,"","","","",null,null,null,null,null,null,null,null,null,null,null,null,null,null,null,null,null,null,null,null,null,null,null,null,null,null,null,null,null,null,null,null,null,null,null,null,null,null,null,null,null,null,null,null,null,null,null,null,null,null,null,null,"",{"$f":"IF($A59=\"\",\"\",IF(VLOOKUP($G59,$H$11:$DO$1000,103,FALSE)=\"\",\"No\",IF(LEFT(VLOOKUP($G59,$H$11:$DO$1000,103,FALSE),3)=\"The\",EM59,VLOOKUP(VLOOKUP($G59,$H$11:$DO$1000,103,FALSE),DeclMatrix!$A$2:$F$5,VLOOKUP('Enrollment Form'!$B59,DeclMatrix!$A$8:$B$12,2,FALSE),FALSE))))","v":""},{"$f":"IF($A59=\"\",\"\",IF(VLOOKUP($G59,$H$11:$DO$1000,106,FALSE)=\"\",\"No\",IF(LEFT(VLOOKUP($G59,$H$11:$DO$1000,106,FALSE),3)=\"The\",EN59,VLOOKUP(VLOOKUP($G59,$H$11:$DO$1000,106,FALSE),DeclMatrix!$A$2:$F$5,VLOOKUP('Enrollment Form'!$B59,DeclMatrix!$A$8:$B$12,2,FALSE),FALSE))))","v":""},{"$f":"IF($A59=\"\",\"\",IF(VLOOKUP($G59,$H$11:$DO$1000,109,FALSE)=\"\",\"No\",IF(LEFT(VLOOKUP($G59,$H$11:$DO$1000,109,FALSE),3)=\"The\",EO59,VLOOKUP(VLOOKUP($G59,$H$11:$DO$1000,109,FALSE),DeclMatrix!$A$2:$F$5,VLOOKUP('Enrollment Form'!$B59,DeclMatrix!$A$8:$B$12,2,FALSE),FALSE))))","v":""},{"$f":"IF($A59=\"\",\"\",IF(VLOOKUP($G59,$H$11:$DO$1000,112,FALSE)=\"\",\"No\",IF(LEFT(VLOOKUP($G59,$H$11:$DO$1000,112,FALSE),3)=\"The\",EP59,VLOOKUP(VLOOKUP($G59,$H$11:$DO$1000,112,FALSE),DeclMatrix!$A$2:$F$5,VLOOKUP('Enrollment Form'!$B59,DeclMatrix!$A$8:$B$12,2,FALSE),FALSE))))","v":""},null,null,null,null,null,null,null,null,"",null,"","","","","","","","","","","",""]
["",null,null,null,null,null,"","",null,null,null,null,null,null,null,null,null,null,null,null,null,null,null,null,null,null,"","","","",null,null,"",null,null,null,null,null,null,null,null,null,null,null,null,null,null,null,null,null,null,null,null,null,null,null,null,null,null,null,"","","",null,null,null,null,"","","","",null,null,null,null,null,null,null,null,null,null,null,null,null,null,null,null,null,null,null,null,null,null,null,null,null,null,null,null,null,null,null,null,null,null,null,null,null,null,null,null,null,null,null,null,null,null,null,null,null,null,null,null,"",{"$f":"IF($A60=\"\",\"\",IF(VLOOKUP($G60,$H$11:$DO$1000,103,FALSE)=\"\",\"No\",IF(LEFT(VLOOKUP($G60,$H$11:$DO$1000,103,FALSE),3)=\"The\",EM60,VLOOKUP(VLOOKUP($G60,$H$11:$DO$1000,103,FALSE),DeclMatrix!$A$2:$F$5,VLOOKUP('Enrollment Form'!$B60,DeclMatrix!$A$8:$B$12,2,FALSE),FALSE))))","v":""},{"$f":"IF($A60=\"\",\"\",IF(VLOOKUP($G60,$H$11:$DO$1000,106,FALSE)=\"\",\"No\",IF(LEFT(VLOOKUP($G60,$H$11:$DO$1000,106,FALSE),3)=\"The\",EN60,VLOOKUP(VLOOKUP($G60,$H$11:$DO$1000,106,FALSE),DeclMatrix!$A$2:$F$5,VLOOKUP('Enrollment Form'!$B60,DeclMatrix!$A$8:$B$12,2,FALSE),FALSE))))","v":""},{"$f":"IF($A60=\"\",\"\",IF(VLOOKUP($G60,$H$11:$DO$1000,109,FALSE)=\"\",\"No\",IF(LEFT(VLOOKUP($G60,$H$11:$DO$1000,109,FALSE),3)=\"The\",EO60,VLOOKUP(VLOOKUP($G60,$H$11:$DO$1000,109,FALSE),DeclMatrix!$A$2:$F$5,VLOOKUP('Enrollment Form'!$B60,DeclMatrix!$A$8:$B$12,2,FALSE),FALSE))))","v":""},{"$f":"IF($A60=\"\",\"\",IF(VLOOKUP($G60,$H$11:$DO$1000,112,FALSE)=\"\",\"No\",IF(LEFT(VLOOKUP($G60,$H$11:$DO$1000,112,FALSE),3)=\"The\",EP60,VLOOKUP(VLOOKUP($G60,$H$11:$DO$1000,112,FALSE),DeclMatrix!$A$2:$F$5,VLOOKUP('Enrollment Form'!$B60,DeclMatrix!$A$8:$B$12,2,FALSE),FALSE))))","v":""},null,null,null,null,null,null,null,null,"",null,"","","","","","","","","","","",""]
["",null,null,null,null,null,"","",null,null,null,null,null,null,null,null,null,null,null,null,null,null,null,null,null,null,"","","","",null,null,"",null,null,null,null,null,null,null,null,null,null,null,null,null,null,null,null,null,null,null,null,null,null,null,null,null,null,null,"","","",null,null,null,null,"","","","",null,null,null,null,null,null,null,null,null,null,null,null,null,null,null,null,null,null,null,null,null,null,null,null,null,null,null,null,null,null,null,null,null,null,null,null,null,null,null,null,null,null,null,null,null,null,null,null,null,null,null,null,"",{"$f":"IF($A61=\"\",\"\",IF(VLOOKUP($G61,$H$11:$DO$1000,103,FALSE)=\"\",\"No\",IF(LEFT(VLOOKUP($G61,$H$11:$DO$1000,103,FALSE),3)=\"The\",EM61,VLOOKUP(VLOOKUP($G61,$H$11:$DO$1000,103,FALSE),DeclMatrix!$A$2:$F$5,VLOOKUP('Enrollment Form'!$B61,DeclMatrix!$A$8:$B$12,2,FALSE),FALSE))))","v":""},{"$f":"IF($A61=\"\",\"\",IF(VLOOKUP($G61,$H$11:$DO$1000,106,FALSE)=\"\",\"No\",IF(LEFT(VLOOKUP($G61,$H$11:$DO$1000,106,FALSE),3)=\"The\",EN61,VLOOKUP(VLOOKUP($G61,$H$11:$DO$1000,106,FALSE),DeclMatrix!$A$2:$F$5,VLOOKUP('Enrollment Form'!$B61,DeclMatrix!$A$8:$B$12,2,FALSE),FALSE))))","v":""},{"$f":"IF($A61=\"\",\"\",IF(VLOOKUP($G61,$H$11:$DO$1000,109,FALSE)=\"\",\"No\",IF(LEFT(VLOOKUP($G61,$H$11:$DO$1000,109,FALSE),3)=\"The\",EO61,VLOOKUP(VLOOKUP($G61,$H$11:$DO$1000,109,FALSE),DeclMatrix!$A$2:$F$5,VLOOKUP('Enrollment Form'!$B61,DeclMatrix!$A$8:$B$12,2,FALSE),FALSE))))","v":""},{"$f":"IF($A61=\"\",\"\",IF(VLOOKUP($G61,$H$11:$DO$1000,112,FALSE)=\"\",\"No\",IF(LEFT(VLOOKUP($G61,$H$11:$DO$1000,112,FALSE),3)=\"The\",EP61,VLOOKUP(VLOOKUP($G61,$H$11:$DO$1000,112,FALSE),DeclMatrix!$A$2:$F$5,VLOOKUP('Enrollment Form'!$B61,DeclMatrix!$A$8:$B$12,2,FALSE),FALSE))))","v":""},null,null,null,null,null,null,null,null,"",null,"","","","","","","","","","","",""]
["",null,null,null,null,null,"","",null,null,null,null,null,null,null,null,null,null,null,null,null,null,null,null,null,null,"","","","",null,null,"",null,null,null,null,null,null,null,null,null,null,null,null,null,null,null,null,null,null,null,null,null,null,null,null,null,null,null,"","","",null,null,null,null,"","","","",null,null,null,null,null,null,null,null,null,null,null,null,null,null,null,null,null,null,null,null,null,null,null,null,null,null,null,null,null,null,null,null,null,null,null,null,null,null,null,null,null,null,null,null,null,null,null,null,null,null,null,null,"",{"$f":"IF($A62=\"\",\"\",IF(VLOOKUP($G62,$H$11:$DO$1000,103,FALSE)=\"\",\"No\",IF(LEFT(VLOOKUP($G62,$H$11:$DO$1000,103,FALSE),3)=\"The\",EM62,VLOOKUP(VLOOKUP($G62,$H$11:$DO$1000,103,FALSE),DeclMatrix!$A$2:$F$5,VLOOKUP('Enrollment Form'!$B62,DeclMatrix!$A$8:$B$12,2,FALSE),FALSE))))","v":""},{"$f":"IF($A62=\"\",\"\",IF(VLOOKUP($G62,$H$11:$DO$1000,106,FALSE)=\"\",\"No\",IF(LEFT(VLOOKUP($G62,$H$11:$DO$1000,106,FALSE),3)=\"The\",EN62,VLOOKUP(VLOOKUP($G62,$H$11:$DO$1000,106,FALSE),DeclMatrix!$A$2:$F$5,VLOOKUP('Enrollment Form'!$B62,DeclMatrix!$A$8:$B$12,2,FALSE),FALSE))))","v":""},{"$f":"IF($A62=\"\",\"\",IF(VLOOKUP($G62,$H$11:$DO$1000,109,FALSE)=\"\",\"No\",IF(LEFT(VLOOKUP($G62,$H$11:$DO$1000,109,FALSE),3)=\"The\",EO62,VLOOKUP(VLOOKUP($G62,$H$11:$DO$1000,109,FALSE),DeclMatrix!$A$2:$F$5,VLOOKUP('Enrollment Form'!$B62,DeclMatrix!$A$8:$B$12,2,FALSE),FALSE))))","v":""},{"$f":"IF($A62=\"\",\"\",IF(VLOOKUP($G62,$H$11:$DO$1000,112,FALSE)=\"\",\"No\",IF(LEFT(VLOOKUP($G62,$H$11:$DO$1000,112,FALSE),3)=\"The\",EP62,VLOOKUP(VLOOKUP($G62,$H$11:$DO$1000,112,FALSE),DeclMatrix!$A$2:$F$5,VLOOKUP('Enrollment Form'!$B62,DeclMatrix!$A$8:$B$12,2,FALSE),FALSE))))","v":""},null,null,null,null,null,null,null,null,"",null,"","","","","","","","","","","",""]
["",null,null,null,null,null,"","",null,null,null,null,null,null,null,null,null,null,null,null,null,null,null,null,null,null,"","","","",null,null,"",null,null,null,null,null,null,null,null,null,null,null,null,null,null,null,null,null,null,null,null,null,null,null,null,null,null,null,"","","",null,null,null,null,"","","","",null,null,null,null,null,null,null,null,null,null,null,null,null,null,null,null,null,null,null,null,null,null,null,null,null,null,null,null,null,null,null,null,null,null,null,null,null,null,null,null,null,null,null,null,null,null,null,null,null,null,null,null,"",{"$f":"IF($A63=\"\",\"\",IF(VLOOKUP($G63,$H$11:$DO$1000,103,FALSE)=\"\",\"No\",IF(LEFT(VLOOKUP($G63,$H$11:$DO$1000,103,FALSE),3)=\"The\",EM63,VLOOKUP(VLOOKUP($G63,$H$11:$DO$1000,103,FALSE),DeclMatrix!$A$2:$F$5,VLOOKUP('Enrollment Form'!$B63,DeclMatrix!$A$8:$B$12,2,FALSE),FALSE))))","v":""},{"$f":"IF($A63=\"\",\"\",IF(VLOOKUP($G63,$H$11:$DO$1000,106,FALSE)=\"\",\"No\",IF(LEFT(VLOOKUP($G63,$H$11:$DO$1000,106,FALSE),3)=\"The\",EN63,VLOOKUP(VLOOKUP($G63,$H$11:$DO$1000,106,FALSE),DeclMatrix!$A$2:$F$5,VLOOKUP('Enrollment Form'!$B63,DeclMatrix!$A$8:$B$12,2,FALSE),FALSE))))","v":""},{"$f":"IF($A63=\"\",\"\",IF(VLOOKUP($G63,$H$11:$DO$1000,109,FALSE)=\"\",\"No\",IF(LEFT(VLOOKUP($G63,$H$11:$DO$1000,109,FALSE),3)=\"The\",EO63,VLOOKUP(VLOOKUP($G63,$H$11:$DO$1000,109,FALSE),DeclMatrix!$A$2:$F$5,VLOOKUP('Enrollment Form'!$B63,DeclMatrix!$A$8:$B$12,2,FALSE),FALSE))))","v":""},{"$f":"IF($A63=\"\",\"\",IF(VLOOKUP($G63,$H$11:$DO$1000,112,FALSE)=\"\",\"No\",IF(LEFT(VLOOKUP($G63,$H$11:$DO$1000,112,FALSE),3)=\"The\",EP63,VLOOKUP(VLOOKUP($G63,$H$11:$DO$1000,112,FALSE),DeclMatrix!$A$2:$F$5,VLOOKUP('Enrollment Form'!$B63,DeclMatrix!$A$8:$B$12,2,FALSE),FALSE))))","v":""},null,null,null,null,null,null,null,null,"",null,"","","","","","","","","","","",""]
["",null,null,null,null,null,"","",null,null,null,null,null,null,null,null,null,null,null,null,null,null,null,null,null,null,"","","","",null,null,"",null,null,null,null,null,null,null,null,null,null,null,null,null,null,null,null,null,null,null,null,null,null,null,null,null,null,null,"","","",null,null,null,null,"","","","",null,null,null,null,null,null,null,null,null,null,null,null,null,null,null,null,null,null,null,null,null,null,null,null,null,null,null,null,null,null,null,null,null,null,null,null,null,null,null,null,null,null,null,null,null,null,null,null,null,null,null,null,"",{"$f":"IF($A64=\"\",\"\",IF(VLOOKUP($G64,$H$11:$DO$1000,103,FALSE)=\"\",\"No\",IF(LEFT(VLOOKUP($G64,$H$11:$DO$1000,103,FALSE),3)=\"The\",EM64,VLOOKUP(VLOOKUP($G64,$H$11:$DO$1000,103,FALSE),DeclMatrix!$A$2:$F$5,VLOOKUP('Enrollment Form'!$B64,DeclMatrix!$A$8:$B$12,2,FALSE),FALSE))))","v":""},{"$f":"IF($A64=\"\",\"\",IF(VLOOKUP($G64,$H$11:$DO$1000,106,FALSE)=\"\",\"No\",IF(LEFT(VLOOKUP($G64,$H$11:$DO$1000,106,FALSE),3)=\"The\",EN64,VLOOKUP(VLOOKUP($G64,$H$11:$DO$1000,106,FALSE),DeclMatrix!$A$2:$F$5,VLOOKUP('Enrollment Form'!$B64,DeclMatrix!$A$8:$B$12,2,FALSE),FALSE))))","v":""},{"$f":"IF($A64=\"\",\"\",IF(VLOOKUP($G64,$H$11:$DO$1000,109,FALSE)=\"\",\"No\",IF(LEFT(VLOOKUP($G64,$H$11:$DO$1000,109,FALSE),3)=\"The\",EO64,VLOOKUP(VLOOKUP($G64,$H$11:$DO$1000,109,FALSE),DeclMatrix!$A$2:$F$5,VLOOKUP('Enrollment Form'!$B64,DeclMatrix!$A$8:$B$12,2,FALSE),FALSE))))","v":""},{"$f":"IF($A64=\"\",\"\",IF(VLOOKUP($G64,$H$11:$DO$1000,112,FALSE)=\"\",\"No\",IF(LEFT(VLOOKUP($G64,$H$11:$DO$1000,112,FALSE),3)=\"The\",EP64,VLOOKUP(VLOOKUP($G64,$H$11:$DO$1000,112,FALSE),DeclMatrix!$A$2:$F$5,VLOOKUP('Enrollment Form'!$B64,DeclMatrix!$A$8:$B$12,2,FALSE),FALSE))))","v":""},null,null,null,null,null,null,null,null,"",null,"","","","","","","","","","","",""]
["",null,null,null,null,null,"","",null,null,null,null,null,null,null,null,null,null,null,null,null,null,null,null,null,null,"","","","",null,null,"",null,null,null,null,null,null,null,null,null,null,null,null,null,null,null,null,null,null,null,null,null,null,null,null,null,null,null,"","","",null,null,null,null,"","","","",null,null,null,null,null,null,null,null,null,null,null,null,null,null,null,null,null,null,null,null,null,null,null,null,null,null,null,null,null,null,null,null,null,null,null,null,null,null,null,null,null,null,null,null,null,null,null,null,null,null,null,null,"",{"$f":"IF($A65=\"\",\"\",IF(VLOOKUP($G65,$H$11:$DO$1000,103,FALSE)=\"\",\"No\",IF(LEFT(VLOOKUP($G65,$H$11:$DO$1000,103,FALSE),3)=\"The\",EM65,VLOOKUP(VLOOKUP($G65,$H$11:$DO$1000,103,FALSE),DeclMatrix!$A$2:$F$5,VLOOKUP('Enrollment Form'!$B65,DeclMatrix!$A$8:$B$12,2,FALSE),FALSE))))","v":""},{"$f":"IF($A65=\"\",\"\",IF(VLOOKUP($G65,$H$11:$DO$1000,106,FALSE)=\"\",\"No\",IF(LEFT(VLOOKUP($G65,$H$11:$DO$1000,106,FALSE),3)=\"The\",EN65,VLOOKUP(VLOOKUP($G65,$H$11:$DO$1000,106,FALSE),DeclMatrix!$A$2:$F$5,VLOOKUP('Enrollment Form'!$B65,DeclMatrix!$A$8:$B$12,2,FALSE),FALSE))))","v":""},{"$f":"IF($A65=\"\",\"\",IF(VLOOKUP($G65,$H$11:$DO$1000,109,FALSE)=\"\",\"No\",IF(LEFT(VLOOKUP($G65,$H$11:$DO$1000,109,FALSE),3)=\"The\",EO65,VLOOKUP(VLOOKUP($G65,$H$11:$DO$1000,109,FALSE),DeclMatrix!$A$2:$F$5,VLOOKUP('Enrollment Form'!$B65,DeclMatrix!$A$8:$B$12,2,FALSE),FALSE))))","v":""},{"$f":"IF($A65=\"\",\"\",IF(VLOOKUP($G65,$H$11:$DO$1000,112,FALSE)=\"\",\"No\",IF(LEFT(VLOOKUP($G65,$H$11:$DO$1000,112,FALSE),3)=\"The\",EP65,VLOOKUP(VLOOKUP($G65,$H$11:$DO$1000,112,FALSE),DeclMatrix!$A$2:$F$5,VLOOKUP('Enrollment Form'!$B65,DeclMatrix!$A$8:$B$12,2,FALSE),FALSE))))","v":""},null,null,null,null,null,null,null,null,"",null,"","","","","","","","","","","",""]
["",null,null,null,null,null,"","",null,null,null,null,null,null,null,null,null,null,null,null,null,null,null,null,null,null,"","","","",null,null,"",null,null,null,null,null,null,null,null,null,null,null,null,null,null,null,null,null,null,null,null,null,null,null,null,null,null,null,"","","",null,null,null,null,"","","","",null,null,null,null,null,null,null,null,null,null,null,null,null,null,null,null,null,null,null,null,null,null,null,null,null,null,null,null,null,null,null,null,null,null,null,null,null,null,null,null,null,null,null,null,null,null,null,null,null,null,null,null,"",{"$f":"IF($A66=\"\",\"\",IF(VLOOKUP($G66,$H$11:$DO$1000,103,FALSE)=\"\",\"No\",IF(LEFT(VLOOKUP($G66,$H$11:$DO$1000,103,FALSE),3)=\"The\",EM66,VLOOKUP(VLOOKUP($G66,$H$11:$DO$1000,103,FALSE),DeclMatrix!$A$2:$F$5,VLOOKUP('Enrollment Form'!$B66,DeclMatrix!$A$8:$B$12,2,FALSE),FALSE))))","v":""},{"$f":"IF($A66=\"\",\"\",IF(VLOOKUP($G66,$H$11:$DO$1000,106,FALSE)=\"\",\"No\",IF(LEFT(VLOOKUP($G66,$H$11:$DO$1000,106,FALSE),3)=\"The\",EN66,VLOOKUP(VLOOKUP($G66,$H$11:$DO$1000,106,FALSE),DeclMatrix!$A$2:$F$5,VLOOKUP('Enrollment Form'!$B66,DeclMatrix!$A$8:$B$12,2,FALSE),FALSE))))","v":""},{"$f":"IF($A66=\"\",\"\",IF(VLOOKUP($G66,$H$11:$DO$1000,109,FALSE)=\"\",\"No\",IF(LEFT(VLOOKUP($G66,$H$11:$DO$1000,109,FALSE),3)=\"The\",EO66,VLOOKUP(VLOOKUP($G66,$H$11:$DO$1000,109,FALSE),DeclMatrix!$A$2:$F$5,VLOOKUP('Enrollment Form'!$B66,DeclMatrix!$A$8:$B$12,2,FALSE),FALSE))))","v":""},{"$f":"IF($A66=\"\",\"\",IF(VLOOKUP($G66,$H$11:$DO$1000,112,FALSE)=\"\",\"No\",IF(LEFT(VLOOKUP($G66,$H$11:$DO$1000,112,FALSE),3)=\"The\",EP66,VLOOKUP(VLOOKUP($G66,$H$11:$DO$1000,112,FALSE),DeclMatrix!$A$2:$F$5,VLOOKUP('Enrollment Form'!$B66,DeclMatrix!$A$8:$B$12,2,FALSE),FALSE))))","v":""},null,null,null,null,null,null,null,null,"",null,"","","","","","","","","","","",""]
["",null,null,null,null,null,"","",null,null,null,null,null,null,null,null,null,null,null,null,null,null,null,null,null,null,"","","","",null,null,"",null,null,null,null,null,null,null,null,null,null,null,null,null,null,null,null,null,null,null,null,null,null,null,null,null,null,null,"","","",null,null,null,null,"","","","",null,null,null,null,null,null,null,null,null,null,null,null,null,null,null,null,null,null,null,null,null,null,null,null,null,null,null,null,null,null,null,null,null,null,null,null,null,null,null,null,null,null,null,null,null,null,null,null,null,null,null,null,"",{"$f":"IF($A67=\"\",\"\",IF(VLOOKUP($G67,$H$11:$DO$1000,103,FALSE)=\"\",\"No\",IF(LEFT(VLOOKUP($G67,$H$11:$DO$1000,103,FALSE),3)=\"The\",EM67,VLOOKUP(VLOOKUP($G67,$H$11:$DO$1000,103,FALSE),DeclMatrix!$A$2:$F$5,VLOOKUP('Enrollment Form'!$B67,DeclMatrix!$A$8:$B$12,2,FALSE),FALSE))))","v":""},{"$f":"IF($A67=\"\",\"\",IF(VLOOKUP($G67,$H$11:$DO$1000,106,FALSE)=\"\",\"No\",IF(LEFT(VLOOKUP($G67,$H$11:$DO$1000,106,FALSE),3)=\"The\",EN67,VLOOKUP(VLOOKUP($G67,$H$11:$DO$1000,106,FALSE),DeclMatrix!$A$2:$F$5,VLOOKUP('Enrollment Form'!$B67,DeclMatrix!$A$8:$B$12,2,FALSE),FALSE))))","v":""},{"$f":"IF($A67=\"\",\"\",IF(VLOOKUP($G67,$H$11:$DO$1000,109,FALSE)=\"\",\"No\",IF(LEFT(VLOOKUP($G67,$H$11:$DO$1000,109,FALSE),3)=\"The\",EO67,VLOOKUP(VLOOKUP($G67,$H$11:$DO$1000,109,FALSE),DeclMatrix!$A$2:$F$5,VLOOKUP('Enrollment Form'!$B67,DeclMatrix!$A$8:$B$12,2,FALSE),FALSE))))","v":""},{"$f":"IF($A67=\"\",\"\",IF(VLOOKUP($G67,$H$11:$DO$1000,112,FALSE)=\"\",\"No\",IF(LEFT(VLOOKUP($G67,$H$11:$DO$1000,112,FALSE),3)=\"The\",EP67,VLOOKUP(VLOOKUP($G67,$H$11:$DO$1000,112,FALSE),DeclMatrix!$A$2:$F$5,VLOOKUP('Enrollment Form'!$B67,DeclMatrix!$A$8:$B$12,2,FALSE),FALSE))))","v":""},null,null,null,null,null,null,null,null,"",null,"","","","","","","","","","","",""]
["",null,null,null,null,null,"","",null,null,null,null,null,null,null,null,null,null,null,null,null,null,null,null,null,null,"","","","",null,null,"",null,null,null,null,null,null,null,null,null,null,null,null,null,null,null,null,null,null,null,null,null,null,null,null,null,null,null,"","","",null,null,null,null,"","","","",null,null,null,null,null,null,null,null,null,null,null,null,null,null,null,null,null,null,null,null,null,null,null,null,null,null,null,null,null,null,null,null,null,null,null,null,null,null,null,null,null,null,null,null,null,null,null,null,null,null,null,null,"",{"$f":"IF($A68=\"\",\"\",IF(VLOOKUP($G68,$H$11:$DO$1000,103,FALSE)=\"\",\"No\",IF(LEFT(VLOOKUP($G68,$H$11:$DO$1000,103,FALSE),3)=\"The\",EM68,VLOOKUP(VLOOKUP($G68,$H$11:$DO$1000,103,FALSE),DeclMatrix!$A$2:$F$5,VLOOKUP('Enrollment Form'!$B68,DeclMatrix!$A$8:$B$12,2,FALSE),FALSE))))","v":""},{"$f":"IF($A68=\"\",\"\",IF(VLOOKUP($G68,$H$11:$DO$1000,106,FALSE)=\"\",\"No\",IF(LEFT(VLOOKUP($G68,$H$11:$DO$1000,106,FALSE),3)=\"The\",EN68,VLOOKUP(VLOOKUP($G68,$H$11:$DO$1000,106,FALSE),DeclMatrix!$A$2:$F$5,VLOOKUP('Enrollment Form'!$B68,DeclMatrix!$A$8:$B$12,2,FALSE),FALSE))))","v":""},{"$f":"IF($A68=\"\",\"\",IF(VLOOKUP($G68,$H$11:$DO$1000,109,FALSE)=\"\",\"No\",IF(LEFT(VLOOKUP($G68,$H$11:$DO$1000,109,FALSE),3)=\"The\",EO68,VLOOKUP(VLOOKUP($G68,$H$11:$DO$1000,109,FALSE),DeclMatrix!$A$2:$F$5,VLOOKUP('Enrollment Form'!$B68,DeclMatrix!$A$8:$B$12,2,FALSE),FALSE))))","v":""},{"$f":"IF($A68=\"\",\"\",IF(VLOOKUP($G68,$H$11:$DO$1000,112,FALSE)=\"\",\"No\",IF(LEFT(VLOOKUP($G68,$H$11:$DO$1000,112,FALSE),3)=\"The\",EP68,VLOOKUP(VLOOKUP($G68,$H$11:$DO$1000,112,FALSE),DeclMatrix!$A$2:$F$5,VLOOKUP('Enrollment Form'!$B68,DeclMatrix!$A$8:$B$12,2,FALSE),FALSE))))","v":""},null,null,null,null,null,null,null,null,"",null,"","","","","","","","","","","",""]
["",null,null,null,null,null,"","",null,null,null,null,null,null,null,null,null,null,null,null,null,null,null,null,null,null,"","","","",null,null,"",null,null,null,null,null,null,null,null,null,null,null,null,null,null,null,null,null,null,null,null,null,null,null,null,null,null,null,"","","",null,null,null,null,"","","","",null,null,null,null,null,null,null,null,null,null,null,null,null,null,null,null,null,null,null,null,null,null,null,null,null,null,null,null,null,null,null,null,null,null,null,null,null,null,null,null,null,null,null,null,null,null,null,null,null,null,null,null,"",{"$f":"IF($A69=\"\",\"\",IF(VLOOKUP($G69,$H$11:$DO$1000,103,FALSE)=\"\",\"No\",IF(LEFT(VLOOKUP($G69,$H$11:$DO$1000,103,FALSE),3)=\"The\",EM69,VLOOKUP(VLOOKUP($G69,$H$11:$DO$1000,103,FALSE),DeclMatrix!$A$2:$F$5,VLOOKUP('Enrollment Form'!$B69,DeclMatrix!$A$8:$B$12,2,FALSE),FALSE))))","v":""},{"$f":"IF($A69=\"\",\"\",IF(VLOOKUP($G69,$H$11:$DO$1000,106,FALSE)=\"\",\"No\",IF(LEFT(VLOOKUP($G69,$H$11:$DO$1000,106,FALSE),3)=\"The\",EN69,VLOOKUP(VLOOKUP($G69,$H$11:$DO$1000,106,FALSE),DeclMatrix!$A$2:$F$5,VLOOKUP('Enrollment Form'!$B69,DeclMatrix!$A$8:$B$12,2,FALSE),FALSE))))","v":""},{"$f":"IF($A69=\"\",\"\",IF(VLOOKUP($G69,$H$11:$DO$1000,109,FALSE)=\"\",\"No\",IF(LEFT(VLOOKUP($G69,$H$11:$DO$1000,109,FALSE),3)=\"The\",EO69,VLOOKUP(VLOOKUP($G69,$H$11:$DO$1000,109,FALSE),DeclMatrix!$A$2:$F$5,VLOOKUP('Enrollment Form'!$B69,DeclMatrix!$A$8:$B$12,2,FALSE),FALSE))))","v":""},{"$f":"IF($A69=\"\",\"\",IF(VLOOKUP($G69,$H$11:$DO$1000,112,FALSE)=\"\",\"No\",IF(LEFT(VLOOKUP($G69,$H$11:$DO$1000,112,FALSE),3)=\"The\",EP69,VLOOKUP(VLOOKUP($G69,$H$11:$DO$1000,112,FALSE),DeclMatrix!$A$2:$F$5,VLOOKUP('Enrollment Form'!$B69,DeclMatrix!$A$8:$B$12,2,FALSE),FALSE))))","v":""},null,null,null,null,null,null,null,null,"",null,"","","","","","","","","","","",""]
["",null,null,null,null,null,"","",null,null,null,null,null,null,null,null,null,null,null,null,null,null,null,null,null,null,"","","","",null,null,"",null,null,null,null,null,null,null,null,null,null,null,null,null,null,null,null,null,null,null,null,null,null,null,null,null,null,null,"","","",null,null,null,null,"","","","",null,null,null,null,null,null,null,null,null,null,null,null,null,null,null,null,null,null,null,null,null,null,null,null,null,null,null,null,null,null,null,null,null,null,null,null,null,null,null,null,null,null,null,null,null,null,null,null,null,null,null,null,"",{"$f":"IF($A70=\"\",\"\",IF(VLOOKUP($G70,$H$11:$DO$1000,103,FALSE)=\"\",\"No\",IF(LEFT(VLOOKUP($G70,$H$11:$DO$1000,103,FALSE),3)=\"The\",EM70,VLOOKUP(VLOOKUP($G70,$H$11:$DO$1000,103,FALSE),DeclMatrix!$A$2:$F$5,VLOOKUP('Enrollment Form'!$B70,DeclMatrix!$A$8:$B$12,2,FALSE),FALSE))))","v":""},{"$f":"IF($A70=\"\",\"\",IF(VLOOKUP($G70,$H$11:$DO$1000,106,FALSE)=\"\",\"No\",IF(LEFT(VLOOKUP($G70,$H$11:$DO$1000,106,FALSE),3)=\"The\",EN70,VLOOKUP(VLOOKUP($G70,$H$11:$DO$1000,106,FALSE),DeclMatrix!$A$2:$F$5,VLOOKUP('Enrollment Form'!$B70,DeclMatrix!$A$8:$B$12,2,FALSE),FALSE))))","v":""},{"$f":"IF($A70=\"\",\"\",IF(VLOOKUP($G70,$H$11:$DO$1000,109,FALSE)=\"\",\"No\",IF(LEFT(VLOOKUP($G70,$H$11:$DO$1000,109,FALSE),3)=\"The\",EO70,VLOOKUP(VLOOKUP($G70,$H$11:$DO$1000,109,FALSE),DeclMatrix!$A$2:$F$5,VLOOKUP('Enrollment Form'!$B70,DeclMatrix!$A$8:$B$12,2,FALSE),FALSE))))","v":""},{"$f":"IF($A70=\"\",\"\",IF(VLOOKUP($G70,$H$11:$DO$1000,112,FALSE)=\"\",\"No\",IF(LEFT(VLOOKUP($G70,$H$11:$DO$1000,112,FALSE),3)=\"The\",EP70,VLOOKUP(VLOOKUP($G70,$H$11:$DO$1000,112,FALSE),DeclMatrix!$A$2:$F$5,VLOOKUP('Enrollment Form'!$B70,DeclMatrix!$A$8:$B$12,2,FALSE),FALSE))))","v":""},null,null,null,null,null,null,null,null,"",null,"","","","","","","","","","","",""]
["",null,null,null,null,null,"","",null,null,null,null,null,null,null,null,null,null,null,null,null,null,null,null,null,null,"","","","",null,null,"",null,null,null,null,null,null,null,null,null,null,null,null,null,null,null,null,null,null,null,null,null,null,null,null,null,null,null,"","","",null,null,null,null,"","","","",null,null,null,null,null,null,null,null,null,null,null,null,null,null,null,null,null,null,null,null,null,null,null,null,null,null,null,null,null,null,null,null,null,null,null,null,null,null,null,null,null,null,null,null,null,null,null,null,null,null,null,null,"",{"$f":"IF($A71=\"\",\"\",IF(VLOOKUP($G71,$H$11:$DO$1000,103,FALSE)=\"\",\"No\",IF(LEFT(VLOOKUP($G71,$H$11:$DO$1000,103,FALSE),3)=\"The\",EM71,VLOOKUP(VLOOKUP($G71,$H$11:$DO$1000,103,FALSE),DeclMatrix!$A$2:$F$5,VLOOKUP('Enrollment Form'!$B71,DeclMatrix!$A$8:$B$12,2,FALSE),FALSE))))","v":""},{"$f":"IF($A71=\"\",\"\",IF(VLOOKUP($G71,$H$11:$DO$1000,106,FALSE)=\"\",\"No\",IF(LEFT(VLOOKUP($G71,$H$11:$DO$1000,106,FALSE),3)=\"The\",EN71,VLOOKUP(VLOOKUP($G71,$H$11:$DO$1000,106,FALSE),DeclMatrix!$A$2:$F$5,VLOOKUP('Enrollment Form'!$B71,DeclMatrix!$A$8:$B$12,2,FALSE),FALSE))))","v":""},{"$f":"IF($A71=\"\",\"\",IF(VLOOKUP($G71,$H$11:$DO$1000,109,FALSE)=\"\",\"No\",IF(LEFT(VLOOKUP($G71,$H$11:$DO$1000,109,FALSE),3)=\"The\",EO71,VLOOKUP(VLOOKUP($G71,$H$11:$DO$1000,109,FALSE),DeclMatrix!$A$2:$F$5,VLOOKUP('Enrollment Form'!$B71,DeclMatrix!$A$8:$B$12,2,FALSE),FALSE))))","v":""},{"$f":"IF($A71=\"\",\"\",IF(VLOOKUP($G71,$H$11:$DO$1000,112,FALSE)=\"\",\"No\",IF(LEFT(VLOOKUP($G71,$H$11:$DO$1000,112,FALSE),3)=\"The\",EP71,VLOOKUP(VLOOKUP($G71,$H$11:$DO$1000,112,FALSE),DeclMatrix!$A$2:$F$5,VLOOKUP('Enrollment Form'!$B71,DeclMatrix!$A$8:$B$12,2,FALSE),FALSE))))","v":""},null,null,null,null,null,null,null,null,"",null,"","","","","","","","","","","",""]
["",null,null,null,null,null,"","",null,null,null,null,null,null,null,null,null,null,null,null,null,null,null,null,null,null,"","","","",null,null,"",null,null,null,null,null,null,null,null,null,null,null,null,null,null,null,null,null,null,null,null,null,null,null,null,null,null,null,"","","",null,null,null,null,"","","","",null,null,null,null,null,null,null,null,null,null,null,null,null,null,null,null,null,null,null,null,null,null,null,null,null,null,null,null,null,null,null,null,null,null,null,null,null,null,null,null,null,null,null,null,null,null,null,null,null,null,null,null,"",{"$f":"IF($A72=\"\",\"\",IF(VLOOKUP($G72,$H$11:$DO$1000,103,FALSE)=\"\",\"No\",IF(LEFT(VLOOKUP($G72,$H$11:$DO$1000,103,FALSE),3)=\"The\",EM72,VLOOKUP(VLOOKUP($G72,$H$11:$DO$1000,103,FALSE),DeclMatrix!$A$2:$F$5,VLOOKUP('Enrollment Form'!$B72,DeclMatrix!$A$8:$B$12,2,FALSE),FALSE))))","v":""},{"$f":"IF($A72=\"\",\"\",IF(VLOOKUP($G72,$H$11:$DO$1000,106,FALSE)=\"\",\"No\",IF(LEFT(VLOOKUP($G72,$H$11:$DO$1000,106,FALSE),3)=\"The\",EN72,VLOOKUP(VLOOKUP($G72,$H$11:$DO$1000,106,FALSE),DeclMatrix!$A$2:$F$5,VLOOKUP('Enrollment Form'!$B72,DeclMatrix!$A$8:$B$12,2,FALSE),FALSE))))","v":""},{"$f":"IF($A72=\"\",\"\",IF(VLOOKUP($G72,$H$11:$DO$1000,109,FALSE)=\"\",\"No\",IF(LEFT(VLOOKUP($G72,$H$11:$DO$1000,109,FALSE),3)=\"The\",EO72,VLOOKUP(VLOOKUP($G72,$H$11:$DO$1000,109,FALSE),DeclMatrix!$A$2:$F$5,VLOOKUP('Enrollment Form'!$B72,DeclMatrix!$A$8:$B$12,2,FALSE),FALSE))))","v":""},{"$f":"IF($A72=\"\",\"\",IF(VLOOKUP($G72,$H$11:$DO$1000,112,FALSE)=\"\",\"No\",IF(LEFT(VLOOKUP($G72,$H$11:$DO$1000,112,FALSE),3)=\"The\",EP72,VLOOKUP(VLOOKUP($G72,$H$11:$DO$1000,112,FALSE),DeclMatrix!$A$2:$F$5,VLOOKUP('Enrollment Form'!$B72,DeclMatrix!$A$8:$B$12,2,FALSE),FALSE))))","v":""},null,null,null,null,null,null,null,null,"",null,"","","","","","","","","","","",""]
["",null,null,null,null,null,"","",null,null,null,null,null,null,null,null,null,null,null,null,null,null,null,null,null,null,"","","","",null,null,"",null,null,null,null,null,null,null,null,null,null,null,null,null,null,null,null,null,null,null,null,null,null,null,null,null,null,null,"","","",null,null,null,null,"","","","",null,null,null,null,null,null,null,null,null,null,null,null,null,null,null,null,null,null,null,null,null,null,null,null,null,null,null,null,null,null,null,null,null,null,null,null,null,null,null,null,null,null,null,null,null,null,null,null,null,null,null,null,"",{"$f":"IF($A73=\"\",\"\",IF(VLOOKUP($G73,$H$11:$DO$1000,103,FALSE)=\"\",\"No\",IF(LEFT(VLOOKUP($G73,$H$11:$DO$1000,103,FALSE),3)=\"The\",EM73,VLOOKUP(VLOOKUP($G73,$H$11:$DO$1000,103,FALSE),DeclMatrix!$A$2:$F$5,VLOOKUP('Enrollment Form'!$B73,DeclMatrix!$A$8:$B$12,2,FALSE),FALSE))))","v":""},{"$f":"IF($A73=\"\",\"\",IF(VLOOKUP($G73,$H$11:$DO$1000,106,FALSE)=\"\",\"No\",IF(LEFT(VLOOKUP($G73,$H$11:$DO$1000,106,FALSE),3)=\"The\",EN73,VLOOKUP(VLOOKUP($G73,$H$11:$DO$1000,106,FALSE),DeclMatrix!$A$2:$F$5,VLOOKUP('Enrollment Form'!$B73,DeclMatrix!$A$8:$B$12,2,FALSE),FALSE))))","v":""},{"$f":"IF($A73=\"\",\"\",IF(VLOOKUP($G73,$H$11:$DO$1000,109,FALSE)=\"\",\"No\",IF(LEFT(VLOOKUP($G73,$H$11:$DO$1000,109,FALSE),3)=\"The\",EO73,VLOOKUP(VLOOKUP($G73,$H$11:$DO$1000,109,FALSE),DeclMatrix!$A$2:$F$5,VLOOKUP('Enrollment Form'!$B73,DeclMatrix!$A$8:$B$12,2,FALSE),FALSE))))","v":""},{"$f":"IF($A73=\"\",\"\",IF(VLOOKUP($G73,$H$11:$DO$1000,112,FALSE)=\"\",\"No\",IF(LEFT(VLOOKUP($G73,$H$11:$DO$1000,112,FALSE),3)=\"The\",EP73,VLOOKUP(VLOOKUP($G73,$H$11:$DO$1000,112,FALSE),DeclMatrix!$A$2:$F$5,VLOOKUP('Enrollment Form'!$B73,DeclMatrix!$A$8:$B$12,2,FALSE),FALSE))))","v":""},null,null,null,null,null,null,null,null,"",null,"","","","","","","","","","","",""]
["",null,null,null,null,null,"","",null,null,null,null,null,null,null,null,null,null,null,null,null,null,null,null,null,null,"","","","",null,null,"",null,null,null,null,null,null,null,null,null,null,null,null,null,null,null,null,null,null,null,null,null,null,null,null,null,null,null,"","","",null,null,null,null,"","","","",null,null,null,null,null,null,null,null,null,null,null,null,null,null,null,null,null,null,null,null,null,null,null,null,null,null,null,null,null,null,null,null,null,null,null,null,null,null,null,null,null,null,null,null,null,null,null,null,null,null,null,null,"",{"$f":"IF($A74=\"\",\"\",IF(VLOOKUP($G74,$H$11:$DO$1000,103,FALSE)=\"\",\"No\",IF(LEFT(VLOOKUP($G74,$H$11:$DO$1000,103,FALSE),3)=\"The\",EM74,VLOOKUP(VLOOKUP($G74,$H$11:$DO$1000,103,FALSE),DeclMatrix!$A$2:$F$5,VLOOKUP('Enrollment Form'!$B74,DeclMatrix!$A$8:$B$12,2,FALSE),FALSE))))","v":""},{"$f":"IF($A74=\"\",\"\",IF(VLOOKUP($G74,$H$11:$DO$1000,106,FALSE)=\"\",\"No\",IF(LEFT(VLOOKUP($G74,$H$11:$DO$1000,106,FALSE),3)=\"The\",EN74,VLOOKUP(VLOOKUP($G74,$H$11:$DO$1000,106,FALSE),DeclMatrix!$A$2:$F$5,VLOOKUP('Enrollment Form'!$B74,DeclMatrix!$A$8:$B$12,2,FALSE),FALSE))))","v":""},{"$f":"IF($A74=\"\",\"\",IF(VLOOKUP($G74,$H$11:$DO$1000,109,FALSE)=\"\",\"No\",IF(LEFT(VLOOKUP($G74,$H$11:$DO$1000,109,FALSE),3)=\"The\",EO74,VLOOKUP(VLOOKUP($G74,$H$11:$DO$1000,109,FALSE),DeclMatrix!$A$2:$F$5,VLOOKUP('Enrollment Form'!$B74,DeclMatrix!$A$8:$B$12,2,FALSE),FALSE))))","v":""},{"$f":"IF($A74=\"\",\"\",IF(VLOOKUP($G74,$H$11:$DO$1000,112,FALSE)=\"\",\"No\",IF(LEFT(VLOOKUP($G74,$H$11:$DO$1000,112,FALSE),3)=\"The\",EP74,VLOOKUP(VLOOKUP($G74,$H$11:$DO$1000,112,FALSE),DeclMatrix!$A$2:$F$5,VLOOKUP('Enrollment Form'!$B74,DeclMatrix!$A$8:$B$12,2,FALSE),FALSE))))","v":""},null,null,null,null,null,null,null,null,"",null,"","","","","","","","","","","",""]
[{"$f":"IF(LEN($B75)>0,$C$2,\"\")","v":""},null,null,null,null,null,"","",null,null,null,null,null,null,null,null,null,null,null,null,null,null,null,null,null,null,"","","","",null,null,"",null,null,null,null,null,null,null,null,null,null,null,null,null,null,null,null,null,null,null,null,null,null,null,null,null,null,null,"","","",null,null,null,null,{"$f":"IF(AND($B75<>\"Subscriber\",$BO75=\"Yes\"),VLOOKUP($G75,$H$11:$Y$1000,15,FALSE),\"\")","v":""},{"$f":"IF(AND($B75<>\"Subscriber\",$BO75=\"Yes\"),VLOOKUP($G75,$H$11:$Y$1000,16,FALSE),\"\")","v":""},{"$f":"IF(AND($B75<>\"Subscriber\",$BO75=\"Yes\"),VLOOKUP($G75,$H$11:$Y$1000,17,FALSE),\"\")","v":""},{"$f":"IF(AND($B75<>\"Subscriber\",$BO75=\"Yes\"),VLOOKUP($G75,$H$11:$Y$1000,18,FALSE),\"\")","v":""},null,null,null,null,null,null,null,null,null,null,null,null,null,null,null,null,null,null,null,null,null,null,null,null,null,null,null,null,null,null,null,null,null,null,null,null,null,null,null,null,null,null,null,null,null,null,null,null,null,null,null,null,{"$f":"IF($A75=\"\",\"\",IF($B75=\"Subscriber\",$AG75,VLOOKUP($G75,$H$11:$AG$1000,26,FALSE)))","v":""},{"$f":"IF($A75=\"\",\"\",IF(VLOOKUP($G75,$H$11:$DO$1000,103,FALSE)=\"\",\"No\",IF(LEFT(VLOOKUP($G75,$H$11:$DO$1000,103,FALSE),3)=\"The\",EM75,VLOOKUP(VLOOKUP($G75,$H$11:$DO$1000,103,FALSE),DeclMatrix!$A$2:$F$5,VLOOKUP('Enrollment Form'!$B75,DeclMatrix!$A$8:$B$12,2,FALSE),FALSE))))","v":""},{"$f":"IF($A75=\"\",\"\",IF(VLOOKUP($G75,$H$11:$DO$1000,106,FALSE)=\"\",\"No\",IF(LEFT(VLOOKUP($G75,$H$11:$DO$1000,106,FALSE),3)=\"The\",EN75,VLOOKUP(VLOOKUP($G75,$H$11:$DO$1000,106,FALSE),DeclMatrix!$A$2:$F$5,VLOOKUP('Enrollment Form'!$B75,DeclMatrix!$A$8:$B$12,2,FALSE),FALSE))))","v":""},{"$f":"IF($A75=\"\",\"\",IF(VLOOKUP($G75,$H$11:$DO$1000,109,FALSE)=\"\",\"No\",IF(LEFT(VLOOKUP($G75,$H$11:$DO$1000,109,FALSE),3)=\"The\",EO75,VLOOKUP(VLOOKUP($G75,$H$11:$DO$1000,109,FALSE),DeclMatrix!$A$2:$F$5,VLOOKUP('Enrollment Form'!$B75,DeclMatrix!$A$8:$B$12,2,FALSE),FALSE))))","v":""},{"$f":"IF($A75=\"\",\"\",IF(VLOOKUP($G75,$H$11:$DO$1000,112,FALSE)=\"\",\"No\",IF(LEFT(VLOOKUP($G75,$H$11:$DO$1000,112,FALSE),3)=\"The\",EP75,VLOOKUP(VLOOKUP($G75,$H$11:$DO$1000,112,FALSE),DeclMatrix!$A$2:$F$5,VLOOKUP('Enrollment Form'!$B75,DeclMatrix!$A$8:$B$12,2,FALSE),FALSE))))","v":""},null,null,null,null,null,null,null,null,{"$f":"IF(A75<>\"\",\"1X\",\"\")","v":""},null,{"$f":"$B75&$G75&$J75","v":""},{"$f":"$B75&$G75&$L75","v":""},{"$f":"$B75&$G75&$N75","v":""},{"$f":"$B75&$G75&$O75","v":""},{"$f":"IF($A75=\"\",\"\",IF($B75=\"Subscriber\",\"No\",IF(OR($DF75=\"\",$DF75=\"No\"),\"No\",\"Yes\")))","v":""},{"$f":"IF($A75=\"\",\"\",IF($B75=\"Subscriber\",\"No\",IF(OR($DI75=\"\",$DI75=\"No\"),\"No\",\"Yes\")))","v":""},{"$f":"IF($A75=\"\",\"\",IF($B75=\"Subscriber\",\"No\",IF(OR($DL75=\"\",$DL75=\"No\"),\"No\",\"Yes\")))","v":""},{"$f":"IF($A75=\"\",\"\",IF($B75=\"Subscriber\",\"No\",IF(OR($DO75=\"\",$DO75=\"No\"),\"No\",\"Yes\")))","v":""},{"$f":"IF($A75=\"\",\"\",IF(AND($B75=\"Subscriber\",$I75<>\"Waive\",$I75<>\"\"),\"Yes\",IF(AND($B75<>\"Subscriber\",$BM75=\"Yes\"),VLOOKUP($G75,$H$11:$ET$1000,140,FALSE),IF(AND($C75=\"Enroll\",VLOOKUP($G76,$H$11:$ET$1000,103,FALSE)<>\"\"),VLOOKUP($DU75,$DV$2:$DW$3,2,FALSE),\"No\"))))","v":""},{"$f":"IF($A75=\"\",\"\",IF(AND($B75=\"Subscriber\",$K75<>\"Waive\",$K75<>\"\"),\"Yes\",IF(AND($B75<>\"Subscriber\",$BM75=\"Yes\"),VLOOKUP($G75,$H$11:$ET$1000,141,FALSE),IF(AND($C75=\"Enroll\",VLOOKUP($G76,$H$11:$ET$1000,106,FALSE)<>\"\"),VLOOKUP($DV75,$DV$2:$DW$3,2,FALSE),\"No\"))))","v":""},{"$f":"IF($A75=\"\",\"\",IF(AND($B75=\"Subscriber\",$M75<>\"Waive\",$M75<>\"\"),\"Yes\",IF(AND($B75<>\"Subscriber\",$BM75=\"Yes\"),VLOOKUP($G75,$H$11:$ET$1000,142,FALSE),IF(AND($C75=\"Enroll\",VLOOKUP($G76,$H$11:$ET$1000,109,FALSE)<>\"\"),VLOOKUP($DW75,$DV$2:$DW$3,2,FALSE),\"No\"))))","v":""},{"$f":"IF($A75=\"\",\"\",IF(AND($B75=\"Subscriber\",$O75<>\"Waive\",$O75<>\"\"),\"Yes\",IF(AND($B75<>\"Subscriber\",$BM75=\"Yes\"),VLOOKUP($G75,$H$11:$ET$1000,143,FALSE),IF(AND($C75=\"Enroll\",VLOOKUP($G76,$H$11:$ET$1000,112,FALSE)<>\"\"),VLOOKUP($DX75,$DV$2:$DW$3,2,FALSE),\"No\"))))","v":""}]
["",null,null,null,null,null,{"$f":"IF(A76=\"\",\"\",IF(AND(B76<>\"Subscriber\",B76<>\"\"),G75,\"\"))","v":""},{"$f":"IF(AND(B76=\"Subscriber\",G76<>\"\"),G76,\"\")","v":""},null,null,null,null,null,null,null,null,null,null,null,null,null,null,null,null,null,null,{"$f":"IF(AND($B76=\"Subscriber\",$Z76=\"Yes\"),V76,\"\")","v":""},{"$f":"IF(AND($B76=\"Subscriber\",$Z76=\"Yes\"),W76,\"\")","v":""},{"$f":"IF(AND($B76=\"Subscriber\",$Z76=\"Yes\"),X76,\"\")","v":""},{"$f":"IF(AND($B76=\"Subscriber\",$Z76=\"Yes\"),Y76,\"\")","v":""},null,null,{"$f":"IF(AND(B76=\"Subscriber\",AJ76<>\"\"),\"NS01 - Not Selected\",\"\")","v":""},null,null,null,null,null,null,null,null,null,null,null,null,null,null,null,null,null,null,null,null,null,null,null,null,null,null,null,{"$f":"IF(OR($B76=\"Subscriber\",$B76=\"\"),\"\",IF(OR(VLOOKUP($G76,$H:$BH,53,FALSE)=\"No\",VLOOKUP($G76,$H:$BH,53,FALSE)=\"\"),\"\",IF(VLOOKUP($G76,$H:$BH,53,FALSE)=\"Yes\",VLOOKUP(G76,$H:$BI,32,FALSE))))","v":""},{"$f":"IF(OR($B76=\"Subscriber\",$B76=\"\"),\"\",IF(OR(VLOOKUP($G76,$H:$BH,53,FALSE)=\"No\",VLOOKUP($G76,$H:$BH,53,FALSE)=\"\"),\"\",IF(VLOOKUP($G76,$H:$BH,53,FALSE)=\"Yes\",VLOOKUP(G76,$H:$BI,33,FALSE))))","v":""},{"$f":"IF(OR($B76=\"Subscriber\",$B76=\"\"),\"\",IF(OR(VLOOKUP($G76,$H:$BH,53,FALSE)=\"No\",VLOOKUP($G76,$H:$BH,53,FALSE)=\"\"),\"\",IF(VLOOKUP($G76,$H:$BH,53,FALSE)=\"Yes\",VLOOKUP(G76,$H:$BI,34,FALSE))))","v":""},null,null,null,null,"","","","",null,null,null,null,null,null,null,null,null,null,null,null,null,null,null,null,null,null,null,null,null,null,null,null,null,null,null,null,null,null,null,null,null,null,null,null,null,null,null,null,null,null,null,null,null,null,null,null,null,null,null,null,"",{"$f":"IF($A76=\"\",\"\",IF(VLOOKUP($G76,$H$11:$DO$1000,103,FALSE)=\"\",\"No\",IF(LEFT(VLOOKUP($G76,$H$11:$DO$1000,103,FALSE),3)=\"The\",EM76,VLOOKUP(VLOOKUP($G76,$H$11:$DO$1000,103,FALSE),DeclMatrix!$A$2:$F$5,VLOOKUP('Enrollment Form'!$B76,DeclMatrix!$A$8:$B$12,2,FALSE),FALSE))))","v":""},{"$f":"IF($A76=\"\",\"\",IF(VLOOKUP($G76,$H$11:$DO$1000,106,FALSE)=\"\",\"No\",IF(LEFT(VLOOKUP($G76,$H$11:$DO$1000,106,FALSE),3)=\"The\",EN76,VLOOKUP(VLOOKUP($G76,$H$11:$DO$1000,106,FALSE),DeclMatrix!$A$2:$F$5,VLOOKUP('Enrollment Form'!$B76,DeclMatrix!$A$8:$B$12,2,FALSE),FALSE))))","v":""},{"$f":"IF($A76=\"\",\"\",IF(VLOOKUP($G76,$H$11:$DO$1000,109,FALSE)=\"\",\"No\",IF(LEFT(VLOOKUP($G76,$H$11:$DO$1000,109,FALSE),3)=\"The\",EO76,VLOOKUP(VLOOKUP($G76,$H$11:$DO$1000,109,FALSE),DeclMatrix!$A$2:$F$5,VLOOKUP('Enrollment Form'!$B76,DeclMatrix!$A$8:$B$12,2,FALSE),FALSE))))","v":""},{"$f":"IF($A76=\"\",\"\",IF(VLOOKUP($G76,$H$11:$DO$1000,112,FALSE)=\"\",\"No\",IF(LEFT(VLOOKUP($G76,$H$11:$DO$1000,112,FALSE),3)=\"The\",EP76,VLOOKUP(VLOOKUP($G76,$H$11:$DO$1000,112,FALSE),DeclMatrix!$A$2:$F$5,VLOOKUP('Enrollment Form'!$B76,DeclMatrix!$A$8:$B$12,2,FALSE),FALSE))))","v":""},null,null,null,null,null,null,null,null,"",null,"","","","","","","","","","","",""]
["",null,null,null,null,null,"","",null,null,null,null,null,null,null,null,null,null,null,null,null,null,null,null,null,null,"","","","",null,null,"",null,null,null,null,null,null,null,null,null,null,null,null,null,null,null,null,null,null,null,null,null,null,null,null,null,null,null,"","","",null,null,null,null,"","","","",null,null,null,null,null,null,null,null,null,null,null,null,null,null,null,null,null,null,null,null,null,null,null,null,null,null,null,null,null,null,null,null,null,null,null,null,null,null,null,null,null,null,null,null,null,null,null,null,null,null,null,null,"",{"$f":"IF($A77=\"\",\"\",IF(VLOOKUP($G77,$H$11:$DO$1000,103,FALSE)=\"\",\"No\",IF(LEFT(VLOOKUP($G77,$H$11:$DO$1000,103,FALSE),3)=\"The\",EM77,VLOOKUP(VLOOKUP($G77,$H$11:$DO$1000,103,FALSE),DeclMatrix!$A$2:$F$5,VLOOKUP('Enrollment Form'!$B77,DeclMatrix!$A$8:$B$12,2,FALSE),FALSE))))","v":""},{"$f":"IF($A77=\"\",\"\",IF(VLOOKUP($G77,$H$11:$DO$1000,106,FALSE)=\"\",\"No\",IF(LEFT(VLOOKUP($G77,$H$11:$DO$1000,106,FALSE),3)=\"The\",EN77,VLOOKUP(VLOOKUP($G77,$H$11:$DO$1000,106,FALSE),DeclMatrix!$A$2:$F$5,VLOOKUP('Enrollment Form'!$B77,DeclMatrix!$A$8:$B$12,2,FALSE),FALSE))))","v":""},{"$f":"IF($A77=\"\",\"\",IF(VLOOKUP($G77,$H$11:$DO$1000,109,FALSE)=\"\",\"No\",IF(LEFT(VLOOKUP($G77,$H$11:$DO$1000,109,FALSE),3)=\"The\",EO77,VLOOKUP(VLOOKUP($G77,$H$11:$DO$1000,109,FALSE),DeclMatrix!$A$2:$F$5,VLOOKUP('Enrollment Form'!$B77,DeclMatrix!$A$8:$B$12,2,FALSE),FALSE))))","v":""},{"$f":"IF($A77=\"\",\"\",IF(VLOOKUP($G77,$H$11:$DO$1000,112,FALSE)=\"\",\"No\",IF(LEFT(VLOOKUP($G77,$H$11:$DO$1000,112,FALSE),3)=\"The\",EP77,VLOOKUP(VLOOKUP($G77,$H$11:$DO$1000,112,FALSE),DeclMatrix!$A$2:$F$5,VLOOKUP('Enrollment Form'!$B77,DeclMatrix!$A$8:$B$12,2,FALSE),FALSE))))","v":""},null,null,null,null,null,null,null,null,"",null,"","","","","","","","","","","",""]
["",null,null,null,null,null,"","",null,null,null,null,null,null,null,null,null,null,null,null,null,null,null,null,null,null,"","","","",null,null,"",null,null,null,null,null,null,null,null,null,null,null,null,null,null,null,null,null,null,null,null,null,null,null,null,null,null,null,"","","",null,null,null,null,"","","","",null,null,null,null,null,null,null,null,null,null,null,null,null,null,null,null,null,null,null,null,null,null,null,null,null,null,null,null,null,null,null,null,null,null,null,null,null,null,null,null,null,null,null,null,null,null,null,null,null,null,null,null,"",{"$f":"IF($A78=\"\",\"\",IF(VLOOKUP($G78,$H$11:$DO$1000,103,FALSE)=\"\",\"No\",IF(LEFT(VLOOKUP($G78,$H$11:$DO$1000,103,FALSE),3)=\"The\",EM78,VLOOKUP(VLOOKUP($G78,$H$11:$DO$1000,103,FALSE),DeclMatrix!$A$2:$F$5,VLOOKUP('Enrollment Form'!$B78,DeclMatrix!$A$8:$B$12,2,FALSE),FALSE))))","v":""},{"$f":"IF($A78=\"\",\"\",IF(VLOOKUP($G78,$H$11:$DO$1000,106,FALSE)=\"\",\"No\",IF(LEFT(VLOOKUP($G78,$H$11:$DO$1000,106,FALSE),3)=\"The\",EN78,VLOOKUP(VLOOKUP($G78,$H$11:$DO$1000,106,FALSE),DeclMatrix!$A$2:$F$5,VLOOKUP('Enrollment Form'!$B78,DeclMatrix!$A$8:$B$12,2,FALSE),FALSE))))","v":""},{"$f":"IF($A78=\"\",\"\",IF(VLOOKUP($G78,$H$11:$DO$1000,109,FALSE)=\"\",\"No\",IF(LEFT(VLOOKUP($G78,$H$11:$DO$1000,109,FALSE),3)=\"The\",EO78,VLOOKUP(VLOOKUP($G78,$H$11:$DO$1000,109,FALSE),DeclMatrix!$A$2:$F$5,VLOOKUP('Enrollment Form'!$B78,DeclMatrix!$A$8:$B$12,2,FALSE),FALSE))))","v":""},{"$f":"IF($A78=\"\",\"\",IF(VLOOKUP($G78,$H$11:$DO$1000,112,FALSE)=\"\",\"No\",IF(LEFT(VLOOKUP($G78,$H$11:$DO$1000,112,FALSE),3)=\"The\",EP78,VLOOKUP(VLOOKUP($G78,$H$11:$DO$1000,112,FALSE),DeclMatrix!$A$2:$F$5,VLOOKUP('Enrollment Form'!$B78,DeclMatrix!$A$8:$B$12,2,FALSE),FALSE))))","v":""},null,null,null,null,null,null,null,null,"",null,"","","","","","","","","","","",""]
["",null,null,null,null,null,"","",null,null,null,null,null,null,null,null,null,null,null,null,null,null,null,null,null,null,"","","","",null,null,"",null,null,null,null,null,null,null,null,null,null,null,null,null,null,null,null,null,null,null,null,null,null,null,null,null,null,null,"","","",null,null,null,null,"","","","",null,null,null,null,null,null,null,null,null,null,null,null,null,null,null,null,null,null,null,null,null,null,null,null,null,null,null,null,null,null,null,null,null,null,null,null,null,null,null,null,null,null,null,null,null,null,null,null,null,null,null,null,"",{"$f":"IF($A79=\"\",\"\",IF(VLOOKUP($G79,$H$11:$DO$1000,103,FALSE)=\"\",\"No\",IF(LEFT(VLOOKUP($G79,$H$11:$DO$1000,103,FALSE),3)=\"The\",EM79,VLOOKUP(VLOOKUP($G79,$H$11:$DO$1000,103,FALSE),DeclMatrix!$A$2:$F$5,VLOOKUP('Enrollment Form'!$B79,DeclMatrix!$A$8:$B$12,2,FALSE),FALSE))))","v":""},{"$f":"IF($A79=\"\",\"\",IF(VLOOKUP($G79,$H$11:$DO$1000,106,FALSE)=\"\",\"No\",IF(LEFT(VLOOKUP($G79,$H$11:$DO$1000,106,FALSE),3)=\"The\",EN79,VLOOKUP(VLOOKUP($G79,$H$11:$DO$1000,106,FALSE),DeclMatrix!$A$2:$F$5,VLOOKUP('Enrollment Form'!$B79,DeclMatrix!$A$8:$B$12,2,FALSE),FALSE))))","v":""},{"$f":"IF($A79=\"\",\"\",IF(VLOOKUP($G79,$H$11:$DO$1000,109,FALSE)=\"\",\"No\",IF(LEFT(VLOOKUP($G79,$H$11:$DO$1000,109,FALSE),3)=\"The\",EO79,VLOOKUP(VLOOKUP($G79,$H$11:$DO$1000,109,FALSE),DeclMatrix!$A$2:$F$5,VLOOKUP('Enrollment Form'!$B79,DeclMatrix!$A$8:$B$12,2,FALSE),FALSE))))","v":""},{"$f":"IF($A79=\"\",\"\",IF(VLOOKUP($G79,$H$11:$DO$1000,112,FALSE)=\"\",\"No\",IF(LEFT(VLOOKUP($G79,$H$11:$DO$1000,112,FALSE),3)=\"The\",EP79,VLOOKUP(VLOOKUP($G79,$H$11:$DO$1000,112,FALSE),DeclMatrix!$A$2:$F$5,VLOOKUP('Enrollment Form'!$B79,DeclMatrix!$A$8:$B$12,2,FALSE),FALSE))))","v":""},null,null,null,null,null,null,null,null,"",null,"","","","","","","","","","","",""]
["",null,null,null,null,null,"","",null,null,null,null,null,null,null,null,null,null,null,null,null,null,null,null,null,null,"","","","",null,null,"",null,null,null,null,null,null,null,null,null,null,null,null,null,null,null,null,null,null,null,null,null,null,null,null,null,null,null,"","","",null,null,null,null,"","","","",null,null,null,null,null,null,null,null,null,null,null,null,null,null,null,null,null,null,null,null,null,null,null,null,null,null,null,null,null,null,null,null,null,null,null,null,null,null,null,null,null,null,null,null,null,null,null,null,null,null,null,null,"",{"$f":"IF($A80=\"\",\"\",IF(VLOOKUP($G80,$H$11:$DO$1000,103,FALSE)=\"\",\"No\",IF(LEFT(VLOOKUP($G80,$H$11:$DO$1000,103,FALSE),3)=\"The\",EM80,VLOOKUP(VLOOKUP($G80,$H$11:$DO$1000,103,FALSE),DeclMatrix!$A$2:$F$5,VLOOKUP('Enrollment Form'!$B80,DeclMatrix!$A$8:$B$12,2,FALSE),FALSE))))","v":""},{"$f":"IF($A80=\"\",\"\",IF(VLOOKUP($G80,$H$11:$DO$1000,106,FALSE)=\"\",\"No\",IF(LEFT(VLOOKUP($G80,$H$11:$DO$1000,106,FALSE),3)=\"The\",EN80,VLOOKUP(VLOOKUP($G80,$H$11:$DO$1000,106,FALSE),DeclMatrix!$A$2:$F$5,VLOOKUP('Enrollment Form'!$B80,DeclMatrix!$A$8:$B$12,2,FALSE),FALSE))))","v":""},{"$f":"IF($A80=\"\",\"\",IF(VLOOKUP($G80,$H$11:$DO$1000,109,FALSE)=\"\",\"No\",IF(LEFT(VLOOKUP($G80,$H$11:$DO$1000,109,FALSE),3)=\"The\",EO80,VLOOKUP(VLOOKUP($G80,$H$11:$DO$1000,109,FALSE),DeclMatrix!$A$2:$F$5,VLOOKUP('Enrollment Form'!$B80,DeclMatrix!$A$8:$B$12,2,FALSE),FALSE))))","v":""},{"$f":"IF($A80=\"\",\"\",IF(VLOOKUP($G80,$H$11:$DO$1000,112,FALSE)=\"\",\"No\",IF(LEFT(VLOOKUP($G80,$H$11:$DO$1000,112,FALSE),3)=\"The\",EP80,VLOOKUP(VLOOKUP($G80,$H$11:$DO$1000,112,FALSE),DeclMatrix!$A$2:$F$5,VLOOKUP('Enrollment Form'!$B80,DeclMatrix!$A$8:$B$12,2,FALSE),FALSE))))","v":""},null,null,null,null,null,null,null,null,"",null,"","","","","","","","","","","",""]
["",null,null,null,null,null,"","",null,null,null,null,null,null,null,null,null,null,null,null,null,null,null,null,null,null,"","","","",null,null,"",null,null,null,null,null,null,null,null,null,null,null,null,null,null,null,null,null,null,null,null,null,null,null,null,null,null,null,"","","",null,null,null,null,"","","","",null,null,null,null,null,null,null,null,null,null,null,null,null,null,null,null,null,null,null,null,null,null,null,null,null,null,null,null,null,null,null,null,null,null,null,null,null,null,null,null,null,null,null,null,null,null,null,null,null,null,null,null,"",{"$f":"IF($A81=\"\",\"\",IF(VLOOKUP($G81,$H$11:$DO$1000,103,FALSE)=\"\",\"No\",IF(LEFT(VLOOKUP($G81,$H$11:$DO$1000,103,FALSE),3)=\"The\",EM81,VLOOKUP(VLOOKUP($G81,$H$11:$DO$1000,103,FALSE),DeclMatrix!$A$2:$F$5,VLOOKUP('Enrollment Form'!$B81,DeclMatrix!$A$8:$B$12,2,FALSE),FALSE))))","v":""},{"$f":"IF($A81=\"\",\"\",IF(VLOOKUP($G81,$H$11:$DO$1000,106,FALSE)=\"\",\"No\",IF(LEFT(VLOOKUP($G81,$H$11:$DO$1000,106,FALSE),3)=\"The\",EN81,VLOOKUP(VLOOKUP($G81,$H$11:$DO$1000,106,FALSE),DeclMatrix!$A$2:$F$5,VLOOKUP('Enrollment Form'!$B81,DeclMatrix!$A$8:$B$12,2,FALSE),FALSE))))","v":""},{"$f":"IF($A81=\"\",\"\",IF(VLOOKUP($G81,$H$11:$DO$1000,109,FALSE)=\"\",\"No\",IF(LEFT(VLOOKUP($G81,$H$11:$DO$1000,109,FALSE),3)=\"The\",EO81,VLOOKUP(VLOOKUP($G81,$H$11:$DO$1000,109,FALSE),DeclMatrix!$A$2:$F$5,VLOOKUP('Enrollment Form'!$B81,DeclMatrix!$A$8:$B$12,2,FALSE),FALSE))))","v":""},{"$f":"IF($A81=\"\",\"\",IF(VLOOKUP($G81,$H$11:$DO$1000,112,FALSE)=\"\",\"No\",IF(LEFT(VLOOKUP($G81,$H$11:$DO$1000,112,FALSE),3)=\"The\",EP81,VLOOKUP(VLOOKUP($G81,$H$11:$DO$1000,112,FALSE),DeclMatrix!$A$2:$F$5,VLOOKUP('Enrollment Form'!$B81,DeclMatrix!$A$8:$B$12,2,FALSE),FALSE))))","v":""},null,null,null,null,null,null,null,null,"",null,"","","","","","","","","","","",""]
["",null,null,null,null,null,"","",null,null,null,null,null,null,null,null,null,null,null,null,null,null,null,null,null,null,"","","","",null,null,"",null,null,null,null,null,null,null,null,null,null,null,null,null,null,null,null,null,null,null,null,null,null,null,null,null,null,null,"","","",null,null,null,null,"","","","",null,null,null,null,null,null,null,null,null,null,null,null,null,null,null,null,null,null,null,null,null,null,null,null,null,null,null,null,null,null,null,null,null,null,null,null,null,null,null,null,null,null,null,null,null,null,null,null,null,null,null,null,"",{"$f":"IF($A82=\"\",\"\",IF(VLOOKUP($G82,$H$11:$DO$1000,103,FALSE)=\"\",\"No\",IF(LEFT(VLOOKUP($G82,$H$11:$DO$1000,103,FALSE),3)=\"The\",EM82,VLOOKUP(VLOOKUP($G82,$H$11:$DO$1000,103,FALSE),DeclMatrix!$A$2:$F$5,VLOOKUP('Enrollment Form'!$B82,DeclMatrix!$A$8:$B$12,2,FALSE),FALSE))))","v":""},{"$f":"IF($A82=\"\",\"\",IF(VLOOKUP($G82,$H$11:$DO$1000,106,FALSE)=\"\",\"No\",IF(LEFT(VLOOKUP($G82,$H$11:$DO$1000,106,FALSE),3)=\"The\",EN82,VLOOKUP(VLOOKUP($G82,$H$11:$DO$1000,106,FALSE),DeclMatrix!$A$2:$F$5,VLOOKUP('Enrollment Form'!$B82,DeclMatrix!$A$8:$B$12,2,FALSE),FALSE))))","v":""},{"$f":"IF($A82=\"\",\"\",IF(VLOOKUP($G82,$H$11:$DO$1000,109,FALSE)=\"\",\"No\",IF(LEFT(VLOOKUP($G82,$H$11:$DO$1000,109,FALSE),3)=\"The\",EO82,VLOOKUP(VLOOKUP($G82,$H$11:$DO$1000,109,FALSE),DeclMatrix!$A$2:$F$5,VLOOKUP('Enrollment Form'!$B82,DeclMatrix!$A$8:$B$12,2,FALSE),FALSE))))","v":""},{"$f":"IF($A82=\"\",\"\",IF(VLOOKUP($G82,$H$11:$DO$1000,112,FALSE)=\"\",\"No\",IF(LEFT(VLOOKUP($G82,$H$11:$DO$1000,112,FALSE),3)=\"The\",EP82,VLOOKUP(VLOOKUP($G82,$H$11:$DO$1000,112,FALSE),DeclMatrix!$A$2:$F$5,VLOOKUP('Enrollment Form'!$B82,DeclMatrix!$A$8:$B$12,2,FALSE),FALSE))))","v":""},null,null,null,null,null,null,null,null,"",null,"","","","","","","","","","","",""]
["",null,null,null,null,null,"","",null,null,null,null,null,null,null,null,null,null,null,null,null,null,null,null,null,null,"","","","",null,null,"",null,null,null,null,null,null,null,null,null,null,null,null,null,null,null,null,null,null,null,null,null,null,null,null,null,null,null,"","","",null,null,null,null,"","","","",null,null,null,null,null,null,null,null,null,null,null,null,null,null,null,null,null,null,null,null,null,null,null,null,null,null,null,null,null,null,null,null,null,null,null,null,null,null,null,null,null,null,null,null,null,null,null,null,null,null,null,null,"",{"$f":"IF($A83=\"\",\"\",IF(VLOOKUP($G83,$H$11:$DO$1000,103,FALSE)=\"\",\"No\",IF(LEFT(VLOOKUP($G83,$H$11:$DO$1000,103,FALSE),3)=\"The\",EM83,VLOOKUP(VLOOKUP($G83,$H$11:$DO$1000,103,FALSE),DeclMatrix!$A$2:$F$5,VLOOKUP('Enrollment Form'!$B83,DeclMatrix!$A$8:$B$12,2,FALSE),FALSE))))","v":""},{"$f":"IF($A83=\"\",\"\",IF(VLOOKUP($G83,$H$11:$DO$1000,106,FALSE)=\"\",\"No\",IF(LEFT(VLOOKUP($G83,$H$11:$DO$1000,106,FALSE),3)=\"The\",EN83,VLOOKUP(VLOOKUP($G83,$H$11:$DO$1000,106,FALSE),DeclMatrix!$A$2:$F$5,VLOOKUP('Enrollment Form'!$B83,DeclMatrix!$A$8:$B$12,2,FALSE),FALSE))))","v":""},{"$f":"IF($A83=\"\",\"\",IF(VLOOKUP($G83,$H$11:$DO$1000,109,FALSE)=\"\",\"No\",IF(LEFT(VLOOKUP($G83,$H$11:$DO$1000,109,FALSE),3)=\"The\",EO83,VLOOKUP(VLOOKUP($G83,$H$11:$DO$1000,109,FALSE),DeclMatrix!$A$2:$F$5,VLOOKUP('Enrollment Form'!$B83,DeclMatrix!$A$8:$B$12,2,FALSE),FALSE))))","v":""},{"$f":"IF($A83=\"\",\"\",IF(VLOOKUP($G83,$H$11:$DO$1000,112,FALSE)=\"\",\"No\",IF(LEFT(VLOOKUP($G83,$H$11:$DO$1000,112,FALSE),3)=\"The\",EP83,VLOOKUP(VLOOKUP($G83,$H$11:$DO$1000,112,FALSE),DeclMatrix!$A$2:$F$5,VLOOKUP('Enrollment Form'!$B83,DeclMatrix!$A$8:$B$12,2,FALSE),FALSE))))","v":""},null,null,null,null,null,null,null,null,"",null,"","","","","","","","","","","",""]
["",null,null,null,null,null,"","",null,null,null,null,null,null,null,null,null,null,null,null,null,null,null,null,null,null,"","","","",null,null,"",null,null,null,null,null,null,null,null,null,null,null,null,null,null,null,null,null,null,null,null,null,null,null,null,null,null,null,"","","",null,null,null,null,"","","","",null,null,null,null,null,null,null,null,null,null,null,null,null,null,null,null,null,null,null,null,null,null,null,null,null,null,null,null,null,null,null,null,null,null,null,null,null,null,null,null,null,null,null,null,null,null,null,null,null,null,null,null,"",{"$f":"IF($A84=\"\",\"\",IF(VLOOKUP($G84,$H$11:$DO$1000,103,FALSE)=\"\",\"No\",IF(LEFT(VLOOKUP($G84,$H$11:$DO$1000,103,FALSE),3)=\"The\",EM84,VLOOKUP(VLOOKUP($G84,$H$11:$DO$1000,103,FALSE),DeclMatrix!$A$2:$F$5,VLOOKUP('Enrollment Form'!$B84,DeclMatrix!$A$8:$B$12,2,FALSE),FALSE))))","v":""},{"$f":"IF($A84=\"\",\"\",IF(VLOOKUP($G84,$H$11:$DO$1000,106,FALSE)=\"\",\"No\",IF(LEFT(VLOOKUP($G84,$H$11:$DO$1000,106,FALSE),3)=\"The\",EN84,VLOOKUP(VLOOKUP($G84,$H$11:$DO$1000,106,FALSE),DeclMatrix!$A$2:$F$5,VLOOKUP('Enrollment Form'!$B84,DeclMatrix!$A$8:$B$12,2,FALSE),FALSE))))","v":""},{"$f":"IF($A84=\"\",\"\",IF(VLOOKUP($G84,$H$11:$DO$1000,109,FALSE)=\"\",\"No\",IF(LEFT(VLOOKUP($G84,$H$11:$DO$1000,109,FALSE),3)=\"The\",EO84,VLOOKUP(VLOOKUP($G84,$H$11:$DO$1000,109,FALSE),DeclMatrix!$A$2:$F$5,VLOOKUP('Enrollment Form'!$B84,DeclMatrix!$A$8:$B$12,2,FALSE),FALSE))))","v":""},{"$f":"IF($A84=\"\",\"\",IF(VLOOKUP($G84,$H$11:$DO$1000,112,FALSE)=\"\",\"No\",IF(LEFT(VLOOKUP($G84,$H$11:$DO$1000,112,FALSE),3)=\"The\",EP84,VLOOKUP(VLOOKUP($G84,$H$11:$DO$1000,112,FALSE),DeclMatrix!$A$2:$F$5,VLOOKUP('Enrollment Form'!$B84,DeclMatrix!$A$8:$B$12,2,FALSE),FALSE))))","v":""},null,null,null,null,null,null,null,null,"",null,"","","","","","","","","","","",""]
["",null,null,null,null,null,"","",null,null,null,null,null,null,null,null,null,null,null,null,null,null,null,null,null,null,"","","","",null,null,"",null,null,null,null,null,null,null,null,null,null,null,null,null,null,null,null,null,null,null,null,null,null,null,null,null,null,null,"","","",null,null,null,null,"","","","",null,null,null,null,null,null,null,null,null,null,null,null,null,null,null,null,null,null,null,null,null,null,null,null,null,null,null,null,null,null,null,null,null,null,null,null,null,null,null,null,null,null,null,null,null,null,null,null,null,null,null,null,"",{"$f":"IF($A85=\"\",\"\",IF(VLOOKUP($G85,$H$11:$DO$1000,103,FALSE)=\"\",\"No\",IF(LEFT(VLOOKUP($G85,$H$11:$DO$1000,103,FALSE),3)=\"The\",EM85,VLOOKUP(VLOOKUP($G85,$H$11:$DO$1000,103,FALSE),DeclMatrix!$A$2:$F$5,VLOOKUP('Enrollment Form'!$B85,DeclMatrix!$A$8:$B$12,2,FALSE),FALSE))))","v":""},{"$f":"IF($A85=\"\",\"\",IF(VLOOKUP($G85,$H$11:$DO$1000,106,FALSE)=\"\",\"No\",IF(LEFT(VLOOKUP($G85,$H$11:$DO$1000,106,FALSE),3)=\"The\",EN85,VLOOKUP(VLOOKUP($G85,$H$11:$DO$1000,106,FALSE),DeclMatrix!$A$2:$F$5,VLOOKUP('Enrollment Form'!$B85,DeclMatrix!$A$8:$B$12,2,FALSE),FALSE))))","v":""},{"$f":"IF($A85=\"\",\"\",IF(VLOOKUP($G85,$H$11:$DO$1000,109,FALSE)=\"\",\"No\",IF(LEFT(VLOOKUP($G85,$H$11:$DO$1000,109,FALSE),3)=\"The\",EO85,VLOOKUP(VLOOKUP($G85,$H$11:$DO$1000,109,FALSE),DeclMatrix!$A$2:$F$5,VLOOKUP('Enrollment Form'!$B85,DeclMatrix!$A$8:$B$12,2,FALSE),FALSE))))","v":""},{"$f":"IF($A85=\"\",\"\",IF(VLOOKUP($G85,$H$11:$DO$1000,112,FALSE)=\"\",\"No\",IF(LEFT(VLOOKUP($G85,$H$11:$DO$1000,112,FALSE),3)=\"The\",EP85,VLOOKUP(VLOOKUP($G85,$H$11:$DO$1000,112,FALSE),DeclMatrix!$A$2:$F$5,VLOOKUP('Enrollment Form'!$B85,DeclMatrix!$A$8:$B$12,2,FALSE),FALSE))))","v":""},null,null,null,null,null,null,null,null,"",null,"","","","","","","","","","","",""]
["",null,null,null,null,null,"","",null,null,null,null,null,null,null,null,null,null,null,null,null,null,null,null,null,null,"","","","",null,null,"",null,null,null,null,null,null,null,null,null,null,null,null,null,null,null,null,null,null,null,null,null,null,null,null,null,null,null,"","","",null,null,null,null,"","","","",null,null,null,null,null,null,null,null,null,null,null,null,null,null,null,null,null,null,null,null,null,null,null,null,null,null,null,null,null,null,null,null,null,null,null,null,null,null,null,null,null,null,null,null,null,null,null,null,null,null,null,null,"",{"$f":"IF($A86=\"\",\"\",IF(VLOOKUP($G86,$H$11:$DO$1000,103,FALSE)=\"\",\"No\",IF(LEFT(VLOOKUP($G86,$H$11:$DO$1000,103,FALSE),3)=\"The\",EM86,VLOOKUP(VLOOKUP($G86,$H$11:$DO$1000,103,FALSE),DeclMatrix!$A$2:$F$5,VLOOKUP('Enrollment Form'!$B86,DeclMatrix!$A$8:$B$12,2,FALSE),FALSE))))","v":""},{"$f":"IF($A86=\"\",\"\",IF(VLOOKUP($G86,$H$11:$DO$1000,106,FALSE)=\"\",\"No\",IF(LEFT(VLOOKUP($G86,$H$11:$DO$1000,106,FALSE),3)=\"The\",EN86,VLOOKUP(VLOOKUP($G86,$H$11:$DO$1000,106,FALSE),DeclMatrix!$A$2:$F$5,VLOOKUP('Enrollment Form'!$B86,DeclMatrix!$A$8:$B$12,2,FALSE),FALSE))))","v":""},{"$f":"IF($A86=\"\",\"\",IF(VLOOKUP($G86,$H$11:$DO$1000,109,FALSE)=\"\",\"No\",IF(LEFT(VLOOKUP($G86,$H$11:$DO$1000,109,FALSE),3)=\"The\",EO86,VLOOKUP(VLOOKUP($G86,$H$11:$DO$1000,109,FALSE),DeclMatrix!$A$2:$F$5,VLOOKUP('Enrollment Form'!$B86,DeclMatrix!$A$8:$B$12,2,FALSE),FALSE))))","v":""},{"$f":"IF($A86=\"\",\"\",IF(VLOOKUP($G86,$H$11:$DO$1000,112,FALSE)=\"\",\"No\",IF(LEFT(VLOOKUP($G86,$H$11:$DO$1000,112,FALSE),3)=\"The\",EP86,VLOOKUP(VLOOKUP($G86,$H$11:$DO$1000,112,FALSE),DeclMatrix!$A$2:$F$5,VLOOKUP('Enrollment Form'!$B86,DeclMatrix!$A$8:$B$12,2,FALSE),FALSE))))","v":""},null,null,null,null,null,null,null,null,"",null,"","","","","","","","","","","",""]
["",null,null,null,null,null,"","",null,null,null,null,null,null,null,null,null,null,null,null,null,null,null,null,null,null,"","","","",null,null,"",null,null,null,null,null,null,null,null,null,null,null,null,null,null,null,null,null,null,null,null,null,null,null,null,null,null,null,"","","",null,null,null,null,"","","","",null,null,null,null,null,null,null,null,null,null,null,null,null,null,null,null,null,null,null,null,null,null,null,null,null,null,null,null,null,null,null,null,null,null,null,null,null,null,null,null,null,null,null,null,null,null,null,null,null,null,null,null,"",{"$f":"IF($A87=\"\",\"\",IF(VLOOKUP($G87,$H$11:$DO$1000,103,FALSE)=\"\",\"No\",IF(LEFT(VLOOKUP($G87,$H$11:$DO$1000,103,FALSE),3)=\"The\",EM87,VLOOKUP(VLOOKUP($G87,$H$11:$DO$1000,103,FALSE),DeclMatrix!$A$2:$F$5,VLOOKUP('Enrollment Form'!$B87,DeclMatrix!$A$8:$B$12,2,FALSE),FALSE))))","v":""},{"$f":"IF($A87=\"\",\"\",IF(VLOOKUP($G87,$H$11:$DO$1000,106,FALSE)=\"\",\"No\",IF(LEFT(VLOOKUP($G87,$H$11:$DO$1000,106,FALSE),3)=\"The\",EN87,VLOOKUP(VLOOKUP($G87,$H$11:$DO$1000,106,FALSE),DeclMatrix!$A$2:$F$5,VLOOKUP('Enrollment Form'!$B87,DeclMatrix!$A$8:$B$12,2,FALSE),FALSE))))","v":""},{"$f":"IF($A87=\"\",\"\",IF(VLOOKUP($G87,$H$11:$DO$1000,109,FALSE)=\"\",\"No\",IF(LEFT(VLOOKUP($G87,$H$11:$DO$1000,109,FALSE),3)=\"The\",EO87,VLOOKUP(VLOOKUP($G87,$H$11:$DO$1000,109,FALSE),DeclMatrix!$A$2:$F$5,VLOOKUP('Enrollment Form'!$B87,DeclMatrix!$A$8:$B$12,2,FALSE),FALSE))))","v":""},{"$f":"IF($A87=\"\",\"\",IF(VLOOKUP($G87,$H$11:$DO$1000,112,FALSE)=\"\",\"No\",IF(LEFT(VLOOKUP($G87,$H$11:$DO$1000,112,FALSE),3)=\"The\",EP87,VLOOKUP(VLOOKUP($G87,$H$11:$DO$1000,112,FALSE),DeclMatrix!$A$2:$F$5,VLOOKUP('Enrollment Form'!$B87,DeclMatrix!$A$8:$B$12,2,FALSE),FALSE))))","v":""},null,null,null,null,null,null,null,null,"",null,"","","","","","","","","","","",""]
["",null,null,null,null,null,"","",null,null,null,null,null,null,null,null,null,null,null,null,null,null,null,null,null,null,"","","","",null,null,"",null,null,null,null,null,null,null,null,null,null,null,null,null,null,null,null,null,null,null,null,null,null,null,null,null,null,null,"","","",null,null,null,null,"","","","",null,null,null,null,null,null,null,null,null,null,null,null,null,null,null,null,null,null,null,null,null,null,null,null,null,null,null,null,null,null,null,null,null,null,null,null,null,null,null,null,null,null,null,null,null,null,null,null,null,null,null,null,"",{"$f":"IF($A88=\"\",\"\",IF(VLOOKUP($G88,$H$11:$DO$1000,103,FALSE)=\"\",\"No\",IF(LEFT(VLOOKUP($G88,$H$11:$DO$1000,103,FALSE),3)=\"The\",EM88,VLOOKUP(VLOOKUP($G88,$H$11:$DO$1000,103,FALSE),DeclMatrix!$A$2:$F$5,VLOOKUP('Enrollment Form'!$B88,DeclMatrix!$A$8:$B$12,2,FALSE),FALSE))))","v":""},{"$f":"IF($A88=\"\",\"\",IF(VLOOKUP($G88,$H$11:$DO$1000,106,FALSE)=\"\",\"No\",IF(LEFT(VLOOKUP($G88,$H$11:$DO$1000,106,FALSE),3)=\"The\",EN88,VLOOKUP(VLOOKUP($G88,$H$11:$DO$1000,106,FALSE),DeclMatrix!$A$2:$F$5,VLOOKUP('Enrollment Form'!$B88,DeclMatrix!$A$8:$B$12,2,FALSE),FALSE))))","v":""},{"$f":"IF($A88=\"\",\"\",IF(VLOOKUP($G88,$H$11:$DO$1000,109,FALSE)=\"\",\"No\",IF(LEFT(VLOOKUP($G88,$H$11:$DO$1000,109,FALSE),3)=\"The\",EO88,VLOOKUP(VLOOKUP($G88,$H$11:$DO$1000,109,FALSE),DeclMatrix!$A$2:$F$5,VLOOKUP('Enrollment Form'!$B88,DeclMatrix!$A$8:$B$12,2,FALSE),FALSE))))","v":""},{"$f":"IF($A88=\"\",\"\",IF(VLOOKUP($G88,$H$11:$DO$1000,112,FALSE)=\"\",\"No\",IF(LEFT(VLOOKUP($G88,$H$11:$DO$1000,112,FALSE),3)=\"The\",EP88,VLOOKUP(VLOOKUP($G88,$H$11:$DO$1000,112,FALSE),DeclMatrix!$A$2:$F$5,VLOOKUP('Enrollment Form'!$B88,DeclMatrix!$A$8:$B$12,2,FALSE),FALSE))))","v":""},null,null,null,null,null,null,null,null,"",null,"","","","","","","","","","","",""]
["",null,null,null,null,null,"","",null,null,null,null,null,null,null,null,null,null,null,null,null,null,null,null,null,null,"","","","",null,null,"",null,null,null,null,null,null,null,null,null,null,null,null,null,null,null,null,null,null,null,null,null,null,null,null,null,null,null,"","","",null,null,null,null,"","","","",null,null,null,null,null,null,null,null,null,null,null,null,null,null,null,null,null,null,null,null,null,null,null,null,null,null,null,null,null,null,null,null,null,null,null,null,null,null,null,null,null,null,null,null,null,null,null,null,null,null,null,null,"",{"$f":"IF($A89=\"\",\"\",IF(VLOOKUP($G89,$H$11:$DO$1000,103,FALSE)=\"\",\"No\",IF(LEFT(VLOOKUP($G89,$H$11:$DO$1000,103,FALSE),3)=\"The\",EM89,VLOOKUP(VLOOKUP($G89,$H$11:$DO$1000,103,FALSE),DeclMatrix!$A$2:$F$5,VLOOKUP('Enrollment Form'!$B89,DeclMatrix!$A$8:$B$12,2,FALSE),FALSE))))","v":""},{"$f":"IF($A89=\"\",\"\",IF(VLOOKUP($G89,$H$11:$DO$1000,106,FALSE)=\"\",\"No\",IF(LEFT(VLOOKUP($G89,$H$11:$DO$1000,106,FALSE),3)=\"The\",EN89,VLOOKUP(VLOOKUP($G89,$H$11:$DO$1000,106,FALSE),DeclMatrix!$A$2:$F$5,VLOOKUP('Enrollment Form'!$B89,DeclMatrix!$A$8:$B$12,2,FALSE),FALSE))))","v":""},{"$f":"IF($A89=\"\",\"\",IF(VLOOKUP($G89,$H$11:$DO$1000,109,FALSE)=\"\",\"No\",IF(LEFT(VLOOKUP($G89,$H$11:$DO$1000,109,FALSE),3)=\"The\",EO89,VLOOKUP(VLOOKUP($G89,$H$11:$DO$1000,109,FALSE),DeclMatrix!$A$2:$F$5,VLOOKUP('Enrollment Form'!$B89,DeclMatrix!$A$8:$B$12,2,FALSE),FALSE))))","v":""},{"$f":"IF($A89=\"\",\"\",IF(VLOOKUP($G89,$H$11:$DO$1000,112,FALSE)=\"\",\"No\",IF(LEFT(VLOOKUP($G89,$H$11:$DO$1000,112,FALSE),3)=\"The\",EP89,VLOOKUP(VLOOKUP($G89,$H$11:$DO$1000,112,FALSE),DeclMatrix!$A$2:$F$5,VLOOKUP('Enrollment Form'!$B89,DeclMatrix!$A$8:$B$12,2,FALSE),FALSE))))","v":""},null,null,null,null,null,null,null,null,"",null,"","","","","","","","","","","",""]
["",null,null,null,null,null,"","",null,null,null,null,null,null,null,null,null,null,null,null,null,null,null,null,null,null,"","","","",null,null,"",null,null,null,null,null,null,null,null,null,null,null,null,null,null,null,null,null,null,null,null,null,null,null,null,null,null,null,"","","",null,null,null,null,"","","","",null,null,null,null,null,null,null,null,null,null,null,null,null,null,null,null,null,null,null,null,null,null,null,null,null,null,null,null,null,null,null,null,null,null,null,null,null,null,null,null,null,null,null,null,null,null,null,null,null,null,null,null,"",{"$f":"IF($A90=\"\",\"\",IF(VLOOKUP($G90,$H$11:$DO$1000,103,FALSE)=\"\",\"No\",IF(LEFT(VLOOKUP($G90,$H$11:$DO$1000,103,FALSE),3)=\"The\",EM90,VLOOKUP(VLOOKUP($G90,$H$11:$DO$1000,103,FALSE),DeclMatrix!$A$2:$F$5,VLOOKUP('Enrollment Form'!$B90,DeclMatrix!$A$8:$B$12,2,FALSE),FALSE))))","v":""},{"$f":"IF($A90=\"\",\"\",IF(VLOOKUP($G90,$H$11:$DO$1000,106,FALSE)=\"\",\"No\",IF(LEFT(VLOOKUP($G90,$H$11:$DO$1000,106,FALSE),3)=\"The\",EN90,VLOOKUP(VLOOKUP($G90,$H$11:$DO$1000,106,FALSE),DeclMatrix!$A$2:$F$5,VLOOKUP('Enrollment Form'!$B90,DeclMatrix!$A$8:$B$12,2,FALSE),FALSE))))","v":""},{"$f":"IF($A90=\"\",\"\",IF(VLOOKUP($G90,$H$11:$DO$1000,109,FALSE)=\"\",\"No\",IF(LEFT(VLOOKUP($G90,$H$11:$DO$1000,109,FALSE),3)=\"The\",EO90,VLOOKUP(VLOOKUP($G90,$H$11:$DO$1000,109,FALSE),DeclMatrix!$A$2:$F$5,VLOOKUP('Enrollment Form'!$B90,DeclMatrix!$A$8:$B$12,2,FALSE),FALSE))))","v":""},{"$f":"IF($A90=\"\",\"\",IF(VLOOKUP($G90,$H$11:$DO$1000,112,FALSE)=\"\",\"No\",IF(LEFT(VLOOKUP($G90,$H$11:$DO$1000,112,FALSE),3)=\"The\",EP90,VLOOKUP(VLOOKUP($G90,$H$11:$DO$1000,112,FALSE),DeclMatrix!$A$2:$F$5,VLOOKUP('Enrollment Form'!$B90,DeclMatrix!$A$8:$B$12,2,FALSE),FALSE))))","v":""},null,null,null,null,null,null,null,null,"",null,"","","","","","","","","","","",""]
["",null,null,null,null,null,"","",null,null,null,null,null,null,null,null,null,null,null,null,null,null,null,null,null,null,"","","","",null,null,"",null,null,null,null,null,null,null,null,null,null,null,null,null,null,null,null,null,null,null,null,null,null,null,null,null,null,null,"","","",null,null,null,null,"","","","",null,null,null,null,null,null,null,null,null,null,null,null,null,null,null,null,null,null,null,null,null,null,null,null,null,null,null,null,null,null,null,null,null,null,null,null,null,null,null,null,null,null,null,null,null,null,null,null,null,null,null,null,"",{"$f":"IF($A91=\"\",\"\",IF(VLOOKUP($G91,$H$11:$DO$1000,103,FALSE)=\"\",\"No\",IF(LEFT(VLOOKUP($G91,$H$11:$DO$1000,103,FALSE),3)=\"The\",EM91,VLOOKUP(VLOOKUP($G91,$H$11:$DO$1000,103,FALSE),DeclMatrix!$A$2:$F$5,VLOOKUP('Enrollment Form'!$B91,DeclMatrix!$A$8:$B$12,2,FALSE),FALSE))))","v":""},{"$f":"IF($A91=\"\",\"\",IF(VLOOKUP($G91,$H$11:$DO$1000,106,FALSE)=\"\",\"No\",IF(LEFT(VLOOKUP($G91,$H$11:$DO$1000,106,FALSE),3)=\"The\",EN91,VLOOKUP(VLOOKUP($G91,$H$11:$DO$1000,106,FALSE),DeclMatrix!$A$2:$F$5,VLOOKUP('Enrollment Form'!$B91,DeclMatrix!$A$8:$B$12,2,FALSE),FALSE))))","v":""},{"$f":"IF($A91=\"\",\"\",IF(VLOOKUP($G91,$H$11:$DO$1000,109,FALSE)=\"\",\"No\",IF(LEFT(VLOOKUP($G91,$H$11:$DO$1000,109,FALSE),3)=\"The\",EO91,VLOOKUP(VLOOKUP($G91,$H$11:$DO$1000,109,FALSE),DeclMatrix!$A$2:$F$5,VLOOKUP('Enrollment Form'!$B91,DeclMatrix!$A$8:$B$12,2,FALSE),FALSE))))","v":""},{"$f":"IF($A91=\"\",\"\",IF(VLOOKUP($G91,$H$11:$DO$1000,112,FALSE)=\"\",\"No\",IF(LEFT(VLOOKUP($G91,$H$11:$DO$1000,112,FALSE),3)=\"The\",EP91,VLOOKUP(VLOOKUP($G91,$H$11:$DO$1000,112,FALSE),DeclMatrix!$A$2:$F$5,VLOOKUP('Enrollment Form'!$B91,DeclMatrix!$A$8:$B$12,2,FALSE),FALSE))))","v":""},null,null,null,null,null,null,null,null,"",null,"","","","","","","","","","","",""]
["",null,null,null,null,null,"","",null,null,null,null,null,null,null,null,null,null,null,null,null,null,null,null,null,null,"","","","",null,null,"",null,null,null,null,null,null,null,null,null,null,null,null,null,null,null,null,null,null,null,null,null,null,null,null,null,null,null,"","","",null,null,null,null,"","","","",null,null,null,null,null,null,null,null,null,null,null,null,null,null,null,null,null,null,null,null,null,null,null,null,null,null,null,null,null,null,null,null,null,null,null,null,null,null,null,null,null,null,null,null,null,null,null,null,null,null,null,null,"",{"$f":"IF($A92=\"\",\"\",IF(VLOOKUP($G92,$H$11:$DO$1000,103,FALSE)=\"\",\"No\",IF(LEFT(VLOOKUP($G92,$H$11:$DO$1000,103,FALSE),3)=\"The\",EM92,VLOOKUP(VLOOKUP($G92,$H$11:$DO$1000,103,FALSE),DeclMatrix!$A$2:$F$5,VLOOKUP('Enrollment Form'!$B92,DeclMatrix!$A$8:$B$12,2,FALSE),FALSE))))","v":""},{"$f":"IF($A92=\"\",\"\",IF(VLOOKUP($G92,$H$11:$DO$1000,106,FALSE)=\"\",\"No\",IF(LEFT(VLOOKUP($G92,$H$11:$DO$1000,106,FALSE),3)=\"The\",EN92,VLOOKUP(VLOOKUP($G92,$H$11:$DO$1000,106,FALSE),DeclMatrix!$A$2:$F$5,VLOOKUP('Enrollment Form'!$B92,DeclMatrix!$A$8:$B$12,2,FALSE),FALSE))))","v":""},{"$f":"IF($A92=\"\",\"\",IF(VLOOKUP($G92,$H$11:$DO$1000,109,FALSE)=\"\",\"No\",IF(LEFT(VLOOKUP($G92,$H$11:$DO$1000,109,FALSE),3)=\"The\",EO92,VLOOKUP(VLOOKUP($G92,$H$11:$DO$1000,109,FALSE),DeclMatrix!$A$2:$F$5,VLOOKUP('Enrollment Form'!$B92,DeclMatrix!$A$8:$B$12,2,FALSE),FALSE))))","v":""},{"$f":"IF($A92=\"\",\"\",IF(VLOOKUP($G92,$H$11:$DO$1000,112,FALSE)=\"\",\"No\",IF(LEFT(VLOOKUP($G92,$H$11:$DO$1000,112,FALSE),3)=\"The\",EP92,VLOOKUP(VLOOKUP($G92,$H$11:$DO$1000,112,FALSE),DeclMatrix!$A$2:$F$5,VLOOKUP('Enrollment Form'!$B92,DeclMatrix!$A$8:$B$12,2,FALSE),FALSE))))","v":""},null,null,null,null,null,null,null,null,"",null,"","","","","","","","","","","",""]
["",null,null,null,null,null,"","",null,null,null,null,null,null,null,null,null,null,null,null,null,null,null,null,null,null,"","","","",null,null,"",null,null,null,null,null,null,null,null,null,null,null,null,null,null,null,null,null,null,null,null,null,null,null,null,null,null,null,"","","",null,null,null,null,"","","","",null,null,null,null,null,null,null,null,null,null,null,null,null,null,null,null,null,null,null,null,null,null,null,null,null,null,null,null,null,null,null,null,null,null,null,null,null,null,null,null,null,null,null,null,null,null,null,null,null,null,null,null,"",{"$f":"IF($A93=\"\",\"\",IF(VLOOKUP($G93,$H$11:$DO$1000,103,FALSE)=\"\",\"No\",IF(LEFT(VLOOKUP($G93,$H$11:$DO$1000,103,FALSE),3)=\"The\",EM93,VLOOKUP(VLOOKUP($G93,$H$11:$DO$1000,103,FALSE),DeclMatrix!$A$2:$F$5,VLOOKUP('Enrollment Form'!$B93,DeclMatrix!$A$8:$B$12,2,FALSE),FALSE))))","v":""},{"$f":"IF($A93=\"\",\"\",IF(VLOOKUP($G93,$H$11:$DO$1000,106,FALSE)=\"\",\"No\",IF(LEFT(VLOOKUP($G93,$H$11:$DO$1000,106,FALSE),3)=\"The\",EN93,VLOOKUP(VLOOKUP($G93,$H$11:$DO$1000,106,FALSE),DeclMatrix!$A$2:$F$5,VLOOKUP('Enrollment Form'!$B93,DeclMatrix!$A$8:$B$12,2,FALSE),FALSE))))","v":""},{"$f":"IF($A93=\"\",\"\",IF(VLOOKUP($G93,$H$11:$DO$1000,109,FALSE)=\"\",\"No\",IF(LEFT(VLOOKUP($G93,$H$11:$DO$1000,109,FALSE),3)=\"The\",EO93,VLOOKUP(VLOOKUP($G93,$H$11:$DO$1000,109,FALSE),DeclMatrix!$A$2:$F$5,VLOOKUP('Enrollment Form'!$B93,DeclMatrix!$A$8:$B$12,2,FALSE),FALSE))))","v":""},{"$f":"IF($A93=\"\",\"\",IF(VLOOKUP($G93,$H$11:$DO$1000,112,FALSE)=\"\",\"No\",IF(LEFT(VLOOKUP($G93,$H$11:$DO$1000,112,FALSE),3)=\"The\",EP93,VLOOKUP(VLOOKUP($G93,$H$11:$DO$1000,112,FALSE),DeclMatrix!$A$2:$F$5,VLOOKUP('Enrollment Form'!$B93,DeclMatrix!$A$8:$B$12,2,FALSE),FALSE))))","v":""},null,null,null,null,null,null,null,null,"",null,"","","","","","","","","","","",""]
["",null,null,null,null,null,"","",null,null,null,null,null,null,null,null,null,null,null,null,null,null,null,null,null,null,"","","","",null,null,"",null,null,null,null,null,null,null,null,null,null,null,null,null,null,null,null,null,null,null,null,null,null,null,null,null,null,null,"","","",null,null,null,null,"","","","",null,null,null,null,null,null,null,null,null,null,null,null,null,null,null,null,null,null,null,null,null,null,null,null,null,null,null,null,null,null,null,null,null,null,null,null,null,null,null,null,null,null,null,null,null,null,null,null,null,null,null,null,"",{"$f":"IF($A94=\"\",\"\",IF(VLOOKUP($G94,$H$11:$DO$1000,103,FALSE)=\"\",\"No\",IF(LEFT(VLOOKUP($G94,$H$11:$DO$1000,103,FALSE),3)=\"The\",EM94,VLOOKUP(VLOOKUP($G94,$H$11:$DO$1000,103,FALSE),DeclMatrix!$A$2:$F$5,VLOOKUP('Enrollment Form'!$B94,DeclMatrix!$A$8:$B$12,2,FALSE),FALSE))))","v":""},{"$f":"IF($A94=\"\",\"\",IF(VLOOKUP($G94,$H$11:$DO$1000,106,FALSE)=\"\",\"No\",IF(LEFT(VLOOKUP($G94,$H$11:$DO$1000,106,FALSE),3)=\"The\",EN94,VLOOKUP(VLOOKUP($G94,$H$11:$DO$1000,106,FALSE),DeclMatrix!$A$2:$F$5,VLOOKUP('Enrollment Form'!$B94,DeclMatrix!$A$8:$B$12,2,FALSE),FALSE))))","v":""},{"$f":"IF($A94=\"\",\"\",IF(VLOOKUP($G94,$H$11:$DO$1000,109,FALSE)=\"\",\"No\",IF(LEFT(VLOOKUP($G94,$H$11:$DO$1000,109,FALSE),3)=\"The\",EO94,VLOOKUP(VLOOKUP($G94,$H$11:$DO$1000,109,FALSE),DeclMatrix!$A$2:$F$5,VLOOKUP('Enrollment Form'!$B94,DeclMatrix!$A$8:$B$12,2,FALSE),FALSE))))","v":""},{"$f":"IF($A94=\"\",\"\",IF(VLOOKUP($G94,$H$11:$DO$1000,112,FALSE)=\"\",\"No\",IF(LEFT(VLOOKUP($G94,$H$11:$DO$1000,112,FALSE),3)=\"The\",EP94,VLOOKUP(VLOOKUP($G94,$H$11:$DO$1000,112,FALSE),DeclMatrix!$A$2:$F$5,VLOOKUP('Enrollment Form'!$B94,DeclMatrix!$A$8:$B$12,2,FALSE),FALSE))))","v":""},null,null,null,null,null,null,null,null,"",null,"","","","","","","","","","","",""]
["",null,null,null,null,null,"","",null,null,null,null,null,null,null,null,null,null,null,null,null,null,null,null,null,null,"","","","",null,null,"",null,null,null,null,null,null,null,null,null,null,null,null,null,null,null,null,null,null,null,null,null,null,null,null,null,null,null,"","","",null,null,null,null,"","","","",null,null,null,null,null,null,null,null,null,null,null,null,null,null,null,null,null,null,null,null,null,null,null,null,null,null,null,null,null,null,null,null,null,null,null,null,null,null,null,null,null,null,null,null,null,null,null,null,null,null,null,null,"",{"$f":"IF($A95=\"\",\"\",IF(VLOOKUP($G95,$H$11:$DO$1000,103,FALSE)=\"\",\"No\",IF(LEFT(VLOOKUP($G95,$H$11:$DO$1000,103,FALSE),3)=\"The\",EM95,VLOOKUP(VLOOKUP($G95,$H$11:$DO$1000,103,FALSE),DeclMatrix!$A$2:$F$5,VLOOKUP('Enrollment Form'!$B95,DeclMatrix!$A$8:$B$12,2,FALSE),FALSE))))","v":""},{"$f":"IF($A95=\"\",\"\",IF(VLOOKUP($G95,$H$11:$DO$1000,106,FALSE)=\"\",\"No\",IF(LEFT(VLOOKUP($G95,$H$11:$DO$1000,106,FALSE),3)=\"The\",EN95,VLOOKUP(VLOOKUP($G95,$H$11:$DO$1000,106,FALSE),DeclMatrix!$A$2:$F$5,VLOOKUP('Enrollment Form'!$B95,DeclMatrix!$A$8:$B$12,2,FALSE),FALSE))))","v":""},{"$f":"IF($A95=\"\",\"\",IF(VLOOKUP($G95,$H$11:$DO$1000,109,FALSE)=\"\",\"No\",IF(LEFT(VLOOKUP($G95,$H$11:$DO$1000,109,FALSE),3)=\"The\",EO95,VLOOKUP(VLOOKUP($G95,$H$11:$DO$1000,109,FALSE),DeclMatrix!$A$2:$F$5,VLOOKUP('Enrollment Form'!$B95,DeclMatrix!$A$8:$B$12,2,FALSE),FALSE))))","v":""},{"$f":"IF($A95=\"\",\"\",IF(VLOOKUP($G95,$H$11:$DO$1000,112,FALSE)=\"\",\"No\",IF(LEFT(VLOOKUP($G95,$H$11:$DO$1000,112,FALSE),3)=\"The\",EP95,VLOOKUP(VLOOKUP($G95,$H$11:$DO$1000,112,FALSE),DeclMatrix!$A$2:$F$5,VLOOKUP('Enrollment Form'!$B95,DeclMatrix!$A$8:$B$12,2,FALSE),FALSE))))","v":""},null,null,null,null,null,null,null,null,"",null,"","","","","","","","","","","",""]
["",null,null,null,null,null,"","",null,null,null,null,null,null,null,null,null,null,null,null,null,null,null,null,null,null,"","","","",null,null,"",null,null,null,null,null,null,null,null,null,null,null,null,null,null,null,null,null,null,null,null,null,null,null,null,null,null,null,"","","",null,null,null,null,"","","","",null,null,null,null,null,null,null,null,null,null,null,null,null,null,null,null,null,null,null,null,null,null,null,null,null,null,null,null,null,null,null,null,null,null,null,null,null,null,null,null,null,null,null,null,null,null,null,null,null,null,null,null,"",{"$f":"IF($A96=\"\",\"\",IF(VLOOKUP($G96,$H$11:$DO$1000,103,FALSE)=\"\",\"No\",IF(LEFT(VLOOKUP($G96,$H$11:$DO$1000,103,FALSE),3)=\"The\",EM96,VLOOKUP(VLOOKUP($G96,$H$11:$DO$1000,103,FALSE),DeclMatrix!$A$2:$F$5,VLOOKUP('Enrollment Form'!$B96,DeclMatrix!$A$8:$B$12,2,FALSE),FALSE))))","v":""},{"$f":"IF($A96=\"\",\"\",IF(VLOOKUP($G96,$H$11:$DO$1000,106,FALSE)=\"\",\"No\",IF(LEFT(VLOOKUP($G96,$H$11:$DO$1000,106,FALSE),3)=\"The\",EN96,VLOOKUP(VLOOKUP($G96,$H$11:$DO$1000,106,FALSE),DeclMatrix!$A$2:$F$5,VLOOKUP('Enrollment Form'!$B96,DeclMatrix!$A$8:$B$12,2,FALSE),FALSE))))","v":""},{"$f":"IF($A96=\"\",\"\",IF(VLOOKUP($G96,$H$11:$DO$1000,109,FALSE)=\"\",\"No\",IF(LEFT(VLOOKUP($G96,$H$11:$DO$1000,109,FALSE),3)=\"The\",EO96,VLOOKUP(VLOOKUP($G96,$H$11:$DO$1000,109,FALSE),DeclMatrix!$A$2:$F$5,VLOOKUP('Enrollment Form'!$B96,DeclMatrix!$A$8:$B$12,2,FALSE),FALSE))))","v":""},{"$f":"IF($A96=\"\",\"\",IF(VLOOKUP($G96,$H$11:$DO$1000,112,FALSE)=\"\",\"No\",IF(LEFT(VLOOKUP($G96,$H$11:$DO$1000,112,FALSE),3)=\"The\",EP96,VLOOKUP(VLOOKUP($G96,$H$11:$DO$1000,112,FALSE),DeclMatrix!$A$2:$F$5,VLOOKUP('Enrollment Form'!$B96,DeclMatrix!$A$8:$B$12,2,FALSE),FALSE))))","v":""},null,null,null,null,null,null,null,null,"",null,"","","","","","","","","","","",""]
["",null,null,null,null,null,"","",null,null,null,null,null,null,null,null,null,null,null,null,null,null,null,null,null,null,"","","","",null,null,"",null,null,null,null,null,null,null,null,null,null,null,null,null,null,null,null,null,null,null,null,null,null,null,null,null,null,null,"","","",null,null,null,null,"","","","",null,null,null,null,null,null,null,null,null,null,null,null,null,null,null,null,null,null,null,null,null,null,null,null,null,null,null,null,null,null,null,null,null,null,null,null,null,null,null,null,null,null,null,null,null,null,null,null,null,null,null,null,"",{"$f":"IF($A97=\"\",\"\",IF(VLOOKUP($G97,$H$11:$DO$1000,103,FALSE)=\"\",\"No\",IF(LEFT(VLOOKUP($G97,$H$11:$DO$1000,103,FALSE),3)=\"The\",EM97,VLOOKUP(VLOOKUP($G97,$H$11:$DO$1000,103,FALSE),DeclMatrix!$A$2:$F$5,VLOOKUP('Enrollment Form'!$B97,DeclMatrix!$A$8:$B$12,2,FALSE),FALSE))))","v":""},{"$f":"IF($A97=\"\",\"\",IF(VLOOKUP($G97,$H$11:$DO$1000,106,FALSE)=\"\",\"No\",IF(LEFT(VLOOKUP($G97,$H$11:$DO$1000,106,FALSE),3)=\"The\",EN97,VLOOKUP(VLOOKUP($G97,$H$11:$DO$1000,106,FALSE),DeclMatrix!$A$2:$F$5,VLOOKUP('Enrollment Form'!$B97,DeclMatrix!$A$8:$B$12,2,FALSE),FALSE))))","v":""},{"$f":"IF($A97=\"\",\"\",IF(VLOOKUP($G97,$H$11:$DO$1000,109,FALSE)=\"\",\"No\",IF(LEFT(VLOOKUP($G97,$H$11:$DO$1000,109,FALSE),3)=\"The\",EO97,VLOOKUP(VLOOKUP($G97,$H$11:$DO$1000,109,FALSE),DeclMatrix!$A$2:$F$5,VLOOKUP('Enrollment Form'!$B97,DeclMatrix!$A$8:$B$12,2,FALSE),FALSE))))","v":""},{"$f":"IF($A97=\"\",\"\",IF(VLOOKUP($G97,$H$11:$DO$1000,112,FALSE)=\"\",\"No\",IF(LEFT(VLOOKUP($G97,$H$11:$DO$1000,112,FALSE),3)=\"The\",EP97,VLOOKUP(VLOOKUP($G97,$H$11:$DO$1000,112,FALSE),DeclMatrix!$A$2:$F$5,VLOOKUP('Enrollment Form'!$B97,DeclMatrix!$A$8:$B$12,2,FALSE),FALSE))))","v":""},null,null,null,null,null,null,null,null,"",null,"","","","","","","","","","","",""]
["",null,null,null,null,null,"","",null,null,null,null,null,null,null,null,null,null,null,null,null,null,null,null,null,null,"","","","",null,null,"",null,null,null,null,null,null,null,null,null,null,null,null,null,null,null,null,null,null,null,null,null,null,null,null,null,null,null,"","","",null,null,null,null,"","","","",null,null,null,null,null,null,null,null,null,null,null,null,null,null,null,null,null,null,null,null,null,null,null,null,null,null,null,null,null,null,null,null,null,null,null,null,null,null,null,null,null,null,null,null,null,null,null,null,null,null,null,null,"",{"$f":"IF($A98=\"\",\"\",IF(VLOOKUP($G98,$H$11:$DO$1000,103,FALSE)=\"\",\"No\",IF(LEFT(VLOOKUP($G98,$H$11:$DO$1000,103,FALSE),3)=\"The\",EM98,VLOOKUP(VLOOKUP($G98,$H$11:$DO$1000,103,FALSE),DeclMatrix!$A$2:$F$5,VLOOKUP('Enrollment Form'!$B98,DeclMatrix!$A$8:$B$12,2,FALSE),FALSE))))","v":""},{"$f":"IF($A98=\"\",\"\",IF(VLOOKUP($G98,$H$11:$DO$1000,106,FALSE)=\"\",\"No\",IF(LEFT(VLOOKUP($G98,$H$11:$DO$1000,106,FALSE),3)=\"The\",EN98,VLOOKUP(VLOOKUP($G98,$H$11:$DO$1000,106,FALSE),DeclMatrix!$A$2:$F$5,VLOOKUP('Enrollment Form'!$B98,DeclMatrix!$A$8:$B$12,2,FALSE),FALSE))))","v":""},{"$f":"IF($A98=\"\",\"\",IF(VLOOKUP($G98,$H$11:$DO$1000,109,FALSE)=\"\",\"No\",IF(LEFT(VLOOKUP($G98,$H$11:$DO$1000,109,FALSE),3)=\"The\",EO98,VLOOKUP(VLOOKUP($G98,$H$11:$DO$1000,109,FALSE),DeclMatrix!$A$2:$F$5,VLOOKUP('Enrollment Form'!$B98,DeclMatrix!$A$8:$B$12,2,FALSE),FALSE))))","v":""},{"$f":"IF($A98=\"\",\"\",IF(VLOOKUP($G98,$H$11:$DO$1000,112,FALSE)=\"\",\"No\",IF(LEFT(VLOOKUP($G98,$H$11:$DO$1000,112,FALSE),3)=\"The\",EP98,VLOOKUP(VLOOKUP($G98,$H$11:$DO$1000,112,FALSE),DeclMatrix!$A$2:$F$5,VLOOKUP('Enrollment Form'!$B98,DeclMatrix!$A$8:$B$12,2,FALSE),FALSE))))","v":""},null,null,null,null,null,null,null,null,"",null,"","","","","","","","","","","",""]
["",null,null,null,null,null,"","",null,null,null,null,null,null,null,null,null,null,null,null,null,null,null,null,null,null,"","","","",null,null,"",null,null,null,null,null,null,null,null,null,null,null,null,null,null,null,null,null,null,null,null,null,null,null,null,null,null,null,"","","",null,null,null,null,"","","","",null,null,null,null,null,null,null,null,null,null,null,null,null,null,null,null,null,null,null,null,null,null,null,null,null,null,null,null,null,null,null,null,null,null,null,null,null,null,null,null,null,null,null,null,null,null,null,null,null,null,null,null,"",{"$f":"IF($A99=\"\",\"\",IF(VLOOKUP($G99,$H$11:$DO$1000,103,FALSE)=\"\",\"No\",IF(LEFT(VLOOKUP($G99,$H$11:$DO$1000,103,FALSE),3)=\"The\",EM99,VLOOKUP(VLOOKUP($G99,$H$11:$DO$1000,103,FALSE),DeclMatrix!$A$2:$F$5,VLOOKUP('Enrollment Form'!$B99,DeclMatrix!$A$8:$B$12,2,FALSE),FALSE))))","v":""},{"$f":"IF($A99=\"\",\"\",IF(VLOOKUP($G99,$H$11:$DO$1000,106,FALSE)=\"\",\"No\",IF(LEFT(VLOOKUP($G99,$H$11:$DO$1000,106,FALSE),3)=\"The\",EN99,VLOOKUP(VLOOKUP($G99,$H$11:$DO$1000,106,FALSE),DeclMatrix!$A$2:$F$5,VLOOKUP('Enrollment Form'!$B99,DeclMatrix!$A$8:$B$12,2,FALSE),FALSE))))","v":""},{"$f":"IF($A99=\"\",\"\",IF(VLOOKUP($G99,$H$11:$DO$1000,109,FALSE)=\"\",\"No\",IF(LEFT(VLOOKUP($G99,$H$11:$DO$1000,109,FALSE),3)=\"The\",EO99,VLOOKUP(VLOOKUP($G99,$H$11:$DO$1000,109,FALSE),DeclMatrix!$A$2:$F$5,VLOOKUP('Enrollment Form'!$B99,DeclMatrix!$A$8:$B$12,2,FALSE),FALSE))))","v":""},{"$f":"IF($A99=\"\",\"\",IF(VLOOKUP($G99,$H$11:$DO$1000,112,FALSE)=\"\",\"No\",IF(LEFT(VLOOKUP($G99,$H$11:$DO$1000,112,FALSE),3)=\"The\",EP99,VLOOKUP(VLOOKUP($G99,$H$11:$DO$1000,112,FALSE),DeclMatrix!$A$2:$F$5,VLOOKUP('Enrollment Form'!$B99,DeclMatrix!$A$8:$B$12,2,FALSE),FALSE))))","v":""},null,null,null,null,null,null,null,null,"",null,"","","","","","","","","","","",""]
["",null,null,null,null,null,"","",null,null,null,null,null,null,null,null,null,null,null,null,null,null,null,null,null,null,"","","","",null,null,"",null,null,null,null,null,null,null,null,null,null,null,null,null,null,null,null,null,null,null,null,null,null,null,null,null,null,null,"","","",null,null,null,null,"","","","",null,null,null,null,null,null,null,null,null,null,null,null,null,null,null,null,null,null,null,null,null,null,null,null,null,null,null,null,null,null,null,null,null,null,null,null,null,null,null,null,null,null,null,null,null,null,null,null,null,null,null,null,"",{"$f":"IF($A100=\"\",\"\",IF(VLOOKUP($G100,$H$11:$DO$1000,103,FALSE)=\"\",\"No\",IF(LEFT(VLOOKUP($G100,$H$11:$DO$1000,103,FALSE),3)=\"The\",EM100,VLOOKUP(VLOOKUP($G100,$H$11:$DO$1000,103,FALSE),DeclMatrix!$A$2:$F$5,VLOOKUP('Enrollment Form'!$B100,DeclMatrix!$A$8:$B$12,2,FALSE),FALSE))))","v":""},{"$f":"IF($A100=\"\",\"\",IF(VLOOKUP($G100,$H$11:$DO$1000,106,FALSE)=\"\",\"No\",IF(LEFT(VLOOKUP($G100,$H$11:$DO$1000,106,FALSE),3)=\"The\",EN100,VLOOKUP(VLOOKUP($G100,$H$11:$DO$1000,106,FALSE),DeclMatrix!$A$2:$F$5,VLOOKUP('Enrollment Form'!$B100,DeclMatrix!$A$8:$B$12,2,FALSE),FALSE))))","v":""},{"$f":"IF($A100=\"\",\"\",IF(VLOOKUP($G100,$H$11:$DO$1000,109,FALSE)=\"\",\"No\",IF(LEFT(VLOOKUP($G100,$H$11:$DO$1000,109,FALSE),3)=\"The\",EO100,VLOOKUP(VLOOKUP($G100,$H$11:$DO$1000,109,FALSE),DeclMatrix!$A$2:$F$5,VLOOKUP('Enrollment Form'!$B100,DeclMatrix!$A$8:$B$12,2,FALSE),FALSE))))","v":""},{"$f":"IF($A100=\"\",\"\",IF(VLOOKUP($G100,$H$11:$DO$1000,112,FALSE)=\"\",\"No\",IF(LEFT(VLOOKUP($G100,$H$11:$DO$1000,112,FALSE),3)=\"The\",EP100,VLOOKUP(VLOOKUP($G100,$H$11:$DO$1000,112,FALSE),DeclMatrix!$A$2:$F$5,VLOOKUP('Enrollment Form'!$B100,DeclMatrix!$A$8:$B$12,2,FALSE),FALSE))))","v":""},null,null,null,null,null,null,null,null,"",null,"","","","","","","","","","","",""]
["",null,null,null,null,null,"","",null,null,null,null,null,null,null,null,null,null,null,null,null,null,null,null,null,null,"","","","",null,null,"",null,null,null,null,null,null,null,null,null,null,null,null,null,null,null,null,null,null,null,null,null,null,null,null,null,null,null,"","","",null,null,null,null,"","","","",null,null,null,null,null,null,null,null,null,null,null,null,null,null,null,null,null,null,null,null,null,null,null,null,null,null,null,null,null,null,null,null,null,null,null,null,null,null,null,null,null,null,null,null,null,null,null,null,null,null,null,null,"",{"$f":"IF($A101=\"\",\"\",IF(VLOOKUP($G101,$H$11:$DO$1000,103,FALSE)=\"\",\"No\",IF(LEFT(VLOOKUP($G101,$H$11:$DO$1000,103,FALSE),3)=\"The\",EM101,VLOOKUP(VLOOKUP($G101,$H$11:$DO$1000,103,FALSE),DeclMatrix!$A$2:$F$5,VLOOKUP('Enrollment Form'!$B101,DeclMatrix!$A$8:$B$12,2,FALSE),FALSE))))","v":""},{"$f":"IF($A101=\"\",\"\",IF(VLOOKUP($G101,$H$11:$DO$1000,106,FALSE)=\"\",\"No\",IF(LEFT(VLOOKUP($G101,$H$11:$DO$1000,106,FALSE),3)=\"The\",EN101,VLOOKUP(VLOOKUP($G101,$H$11:$DO$1000,106,FALSE),DeclMatrix!$A$2:$F$5,VLOOKUP('Enrollment Form'!$B101,DeclMatrix!$A$8:$B$12,2,FALSE),FALSE))))","v":""},{"$f":"IF($A101=\"\",\"\",IF(VLOOKUP($G101,$H$11:$DO$1000,109,FALSE)=\"\",\"No\",IF(LEFT(VLOOKUP($G101,$H$11:$DO$1000,109,FALSE),3)=\"The\",EO101,VLOOKUP(VLOOKUP($G101,$H$11:$DO$1000,109,FALSE),DeclMatrix!$A$2:$F$5,VLOOKUP('Enrollment Form'!$B101,DeclMatrix!$A$8:$B$12,2,FALSE),FALSE))))","v":""},{"$f":"IF($A101=\"\",\"\",IF(VLOOKUP($G101,$H$11:$DO$1000,112,FALSE)=\"\",\"No\",IF(LEFT(VLOOKUP($G101,$H$11:$DO$1000,112,FALSE),3)=\"The\",EP101,VLOOKUP(VLOOKUP($G101,$H$11:$DO$1000,112,FALSE),DeclMatrix!$A$2:$F$5,VLOOKUP('Enrollment Form'!$B101,DeclMatrix!$A$8:$B$12,2,FALSE),FALSE))))","v":""},null,null,null,null,null,null,null,null,"",null,"","","","","","","","","","","",""]
["",null,null,null,null,null,"","",null,null,null,null,null,null,null,null,null,null,null,null,null,null,null,null,null,null,"","","","",null,null,"",null,null,null,null,null,null,null,null,null,null,null,null,null,null,null,null,null,null,null,null,null,null,null,null,null,null,null,"","","",null,null,null,null,"","","","",null,null,null,null,null,null,null,null,null,null,null,null,null,null,null,null,null,null,null,null,null,null,null,null,null,null,null,null,null,null,null,null,null,null,null,null,null,null,null,null,null,null,null,null,null,null,null,null,null,null,null,null,"",{"$f":"IF($A102=\"\",\"\",IF(VLOOKUP($G102,$H$11:$DO$1000,103,FALSE)=\"\",\"No\",IF(LEFT(VLOOKUP($G102,$H$11:$DO$1000,103,FALSE),3)=\"The\",EM102,VLOOKUP(VLOOKUP($G102,$H$11:$DO$1000,103,FALSE),DeclMatrix!$A$2:$F$5,VLOOKUP('Enrollment Form'!$B102,DeclMatrix!$A$8:$B$12,2,FALSE),FALSE))))","v":""},{"$f":"IF($A102=\"\",\"\",IF(VLOOKUP($G102,$H$11:$DO$1000,106,FALSE)=\"\",\"No\",IF(LEFT(VLOOKUP($G102,$H$11:$DO$1000,106,FALSE),3)=\"The\",EN102,VLOOKUP(VLOOKUP($G102,$H$11:$DO$1000,106,FALSE),DeclMatrix!$A$2:$F$5,VLOOKUP('Enrollment Form'!$B102,DeclMatrix!$A$8:$B$12,2,FALSE),FALSE))))","v":""},{"$f":"IF($A102=\"\",\"\",IF(VLOOKUP($G102,$H$11:$DO$1000,109,FALSE)=\"\",\"No\",IF(LEFT(VLOOKUP($G102,$H$11:$DO$1000,109,FALSE),3)=\"The\",EO102,VLOOKUP(VLOOKUP($G102,$H$11:$DO$1000,109,FALSE),DeclMatrix!$A$2:$F$5,VLOOKUP('Enrollment Form'!$B102,DeclMatrix!$A$8:$B$12,2,FALSE),FALSE))))","v":""},{"$f":"IF($A102=\"\",\"\",IF(VLOOKUP($G102,$H$11:$DO$1000,112,FALSE)=\"\",\"No\",IF(LEFT(VLOOKUP($G102,$H$11:$DO$1000,112,FALSE),3)=\"The\",EP102,VLOOKUP(VLOOKUP($G102,$H$11:$DO$1000,112,FALSE),DeclMatrix!$A$2:$F$5,VLOOKUP('Enrollment Form'!$B102,DeclMatrix!$A$8:$B$12,2,FALSE),FALSE))))","v":""},null,null,null,null,null,null,null,null,"",null,"","","","","","","","","","","",""]
["",null,null,null,null,null,"","",null,null,null,null,null,null,null,null,null,null,null,null,null,null,null,null,null,null,"","","","",null,null,"",null,null,null,null,null,null,null,null,null,null,null,null,null,null,null,null,null,null,null,null,null,null,null,null,null,null,null,"","","",null,null,null,null,"","","","",null,null,null,null,null,null,null,null,null,null,null,null,null,null,null,null,null,null,null,null,null,null,null,null,null,null,null,null,null,null,null,null,null,null,null,null,null,null,null,null,null,null,null,null,null,null,null,null,null,null,null,null,"",{"$f":"IF($A103=\"\",\"\",IF(VLOOKUP($G103,$H$11:$DO$1000,103,FALSE)=\"\",\"No\",IF(LEFT(VLOOKUP($G103,$H$11:$DO$1000,103,FALSE),3)=\"The\",EM103,VLOOKUP(VLOOKUP($G103,$H$11:$DO$1000,103,FALSE),DeclMatrix!$A$2:$F$5,VLOOKUP('Enrollment Form'!$B103,DeclMatrix!$A$8:$B$12,2,FALSE),FALSE))))","v":""},{"$f":"IF($A103=\"\",\"\",IF(VLOOKUP($G103,$H$11:$DO$1000,106,FALSE)=\"\",\"No\",IF(LEFT(VLOOKUP($G103,$H$11:$DO$1000,106,FALSE),3)=\"The\",EN103,VLOOKUP(VLOOKUP($G103,$H$11:$DO$1000,106,FALSE),DeclMatrix!$A$2:$F$5,VLOOKUP('Enrollment Form'!$B103,DeclMatrix!$A$8:$B$12,2,FALSE),FALSE))))","v":""},{"$f":"IF($A103=\"\",\"\",IF(VLOOKUP($G103,$H$11:$DO$1000,109,FALSE)=\"\",\"No\",IF(LEFT(VLOOKUP($G103,$H$11:$DO$1000,109,FALSE),3)=\"The\",EO103,VLOOKUP(VLOOKUP($G103,$H$11:$DO$1000,109,FALSE),DeclMatrix!$A$2:$F$5,VLOOKUP('Enrollment Form'!$B103,DeclMatrix!$A$8:$B$12,2,FALSE),FALSE))))","v":""},{"$f":"IF($A103=\"\",\"\",IF(VLOOKUP($G103,$H$11:$DO$1000,112,FALSE)=\"\",\"No\",IF(LEFT(VLOOKUP($G103,$H$11:$DO$1000,112,FALSE),3)=\"The\",EP103,VLOOKUP(VLOOKUP($G103,$H$11:$DO$1000,112,FALSE),DeclMatrix!$A$2:$F$5,VLOOKUP('Enrollment Form'!$B103,DeclMatrix!$A$8:$B$12,2,FALSE),FALSE))))","v":""},null,null,null,null,null,null,null,null,"",null,"","","","","","","","","","","",""]
["",null,null,null,null,null,"","",null,null,null,null,null,null,null,null,null,null,null,null,null,null,null,null,null,null,"","","","",null,null,"",null,null,null,null,null,null,null,null,null,null,null,null,null,null,null,null,null,null,null,null,null,null,null,null,null,null,null,"","","",null,null,null,null,"","","","",null,null,null,null,null,null,null,null,null,null,null,null,null,null,null,null,null,null,null,null,null,null,null,null,null,null,null,null,null,null,null,null,null,null,null,null,null,null,null,null,null,null,null,null,null,null,null,null,null,null,null,null,"",{"$f":"IF($A104=\"\",\"\",IF(VLOOKUP($G104,$H$11:$DO$1000,103,FALSE)=\"\",\"No\",IF(LEFT(VLOOKUP($G104,$H$11:$DO$1000,103,FALSE),3)=\"The\",EM104,VLOOKUP(VLOOKUP($G104,$H$11:$DO$1000,103,FALSE),DeclMatrix!$A$2:$F$5,VLOOKUP('Enrollment Form'!$B104,DeclMatrix!$A$8:$B$12,2,FALSE),FALSE))))","v":""},{"$f":"IF($A104=\"\",\"\",IF(VLOOKUP($G104,$H$11:$DO$1000,106,FALSE)=\"\",\"No\",IF(LEFT(VLOOKUP($G104,$H$11:$DO$1000,106,FALSE),3)=\"The\",EN104,VLOOKUP(VLOOKUP($G104,$H$11:$DO$1000,106,FALSE),DeclMatrix!$A$2:$F$5,VLOOKUP('Enrollment Form'!$B104,DeclMatrix!$A$8:$B$12,2,FALSE),FALSE))))","v":""},{"$f":"IF($A104=\"\",\"\",IF(VLOOKUP($G104,$H$11:$DO$1000,109,FALSE)=\"\",\"No\",IF(LEFT(VLOOKUP($G104,$H$11:$DO$1000,109,FALSE),3)=\"The\",EO104,VLOOKUP(VLOOKUP($G104,$H$11:$DO$1000,109,FALSE),DeclMatrix!$A$2:$F$5,VLOOKUP('Enrollment Form'!$B104,DeclMatrix!$A$8:$B$12,2,FALSE),FALSE))))","v":""},{"$f":"IF($A104=\"\",\"\",IF(VLOOKUP($G104,$H$11:$DO$1000,112,FALSE)=\"\",\"No\",IF(LEFT(VLOOKUP($G104,$H$11:$DO$1000,112,FALSE),3)=\"The\",EP104,VLOOKUP(VLOOKUP($G104,$H$11:$DO$1000,112,FALSE),DeclMatrix!$A$2:$F$5,VLOOKUP('Enrollment Form'!$B104,DeclMatrix!$A$8:$B$12,2,FALSE),FALSE))))","v":""},null,null,null,null,null,null,null,null,"",null,"","","","","","","","","","","",""]
["",null,null,null,null,null,"","",null,null,null,null,null,null,null,null,null,null,null,null,null,null,null,null,null,null,"","","","",null,null,"",null,null,null,null,null,null,null,null,null,null,null,null,null,null,null,null,null,null,null,null,null,null,null,null,null,null,null,"","","",null,null,null,null,"","","","",null,null,null,null,null,null,null,null,null,null,null,null,null,null,null,null,null,null,null,null,null,null,null,null,null,null,null,null,null,null,null,null,null,null,null,null,null,null,null,null,null,null,null,null,null,null,null,null,null,null,null,null,"",{"$f":"IF($A105=\"\",\"\",IF(VLOOKUP($G105,$H$11:$DO$1000,103,FALSE)=\"\",\"No\",IF(LEFT(VLOOKUP($G105,$H$11:$DO$1000,103,FALSE),3)=\"The\",EM105,VLOOKUP(VLOOKUP($G105,$H$11:$DO$1000,103,FALSE),DeclMatrix!$A$2:$F$5,VLOOKUP('Enrollment Form'!$B105,DeclMatrix!$A$8:$B$12,2,FALSE),FALSE))))","v":""},{"$f":"IF($A105=\"\",\"\",IF(VLOOKUP($G105,$H$11:$DO$1000,106,FALSE)=\"\",\"No\",IF(LEFT(VLOOKUP($G105,$H$11:$DO$1000,106,FALSE),3)=\"The\",EN105,VLOOKUP(VLOOKUP($G105,$H$11:$DO$1000,106,FALSE),DeclMatrix!$A$2:$F$5,VLOOKUP('Enrollment Form'!$B105,DeclMatrix!$A$8:$B$12,2,FALSE),FALSE))))","v":""},{"$f":"IF($A105=\"\",\"\",IF(VLOOKUP($G105,$H$11:$DO$1000,109,FALSE)=\"\",\"No\",IF(LEFT(VLOOKUP($G105,$H$11:$DO$1000,109,FALSE),3)=\"The\",EO105,VLOOKUP(VLOOKUP($G105,$H$11:$DO$1000,109,FALSE),DeclMatrix!$A$2:$F$5,VLOOKUP('Enrollment Form'!$B105,DeclMatrix!$A$8:$B$12,2,FALSE),FALSE))))","v":""},{"$f":"IF($A105=\"\",\"\",IF(VLOOKUP($G105,$H$11:$DO$1000,112,FALSE)=\"\",\"No\",IF(LEFT(VLOOKUP($G105,$H$11:$DO$1000,112,FALSE),3)=\"The\",EP105,VLOOKUP(VLOOKUP($G105,$H$11:$DO$1000,112,FALSE),DeclMatrix!$A$2:$F$5,VLOOKUP('Enrollment Form'!$B105,DeclMatrix!$A$8:$B$12,2,FALSE),FALSE))))","v":""},null,null,null,null,null,null,null,null,"",null,"","","","","","","","","","","",""]
["",null,null,null,null,null,"","",null,null,null,null,null,null,null,null,null,null,null,null,null,null,null,null,null,null,"","","","",null,null,"",null,null,null,null,null,null,null,null,null,null,null,null,null,null,null,null,null,null,null,null,null,null,null,null,null,null,null,"","","",null,null,null,null,"","","","",null,null,null,null,null,null,null,null,null,null,null,null,null,null,null,null,null,null,null,null,null,null,null,null,null,null,null,null,null,null,null,null,null,null,null,null,null,null,null,null,null,null,null,null,null,null,null,null,null,null,null,null,"",{"$f":"IF($A106=\"\",\"\",IF(VLOOKUP($G106,$H$11:$DO$1000,103,FALSE)=\"\",\"No\",IF(LEFT(VLOOKUP($G106,$H$11:$DO$1000,103,FALSE),3)=\"The\",EM106,VLOOKUP(VLOOKUP($G106,$H$11:$DO$1000,103,FALSE),DeclMatrix!$A$2:$F$5,VLOOKUP('Enrollment Form'!$B106,DeclMatrix!$A$8:$B$12,2,FALSE),FALSE))))","v":""},{"$f":"IF($A106=\"\",\"\",IF(VLOOKUP($G106,$H$11:$DO$1000,106,FALSE)=\"\",\"No\",IF(LEFT(VLOOKUP($G106,$H$11:$DO$1000,106,FALSE),3)=\"The\",EN106,VLOOKUP(VLOOKUP($G106,$H$11:$DO$1000,106,FALSE),DeclMatrix!$A$2:$F$5,VLOOKUP('Enrollment Form'!$B106,DeclMatrix!$A$8:$B$12,2,FALSE),FALSE))))","v":""},{"$f":"IF($A106=\"\",\"\",IF(VLOOKUP($G106,$H$11:$DO$1000,109,FALSE)=\"\",\"No\",IF(LEFT(VLOOKUP($G106,$H$11:$DO$1000,109,FALSE),3)=\"The\",EO106,VLOOKUP(VLOOKUP($G106,$H$11:$DO$1000,109,FALSE),DeclMatrix!$A$2:$F$5,VLOOKUP('Enrollment Form'!$B106,DeclMatrix!$A$8:$B$12,2,FALSE),FALSE))))","v":""},{"$f":"IF($A106=\"\",\"\",IF(VLOOKUP($G106,$H$11:$DO$1000,112,FALSE)=\"\",\"No\",IF(LEFT(VLOOKUP($G106,$H$11:$DO$1000,112,FALSE),3)=\"The\",EP106,VLOOKUP(VLOOKUP($G106,$H$11:$DO$1000,112,FALSE),DeclMatrix!$A$2:$F$5,VLOOKUP('Enrollment Form'!$B106,DeclMatrix!$A$8:$B$12,2,FALSE),FALSE))))","v":""},null,null,null,null,null,null,null,null,"",null,"","","","","","","","","","","",""]
["",null,null,null,null,null,"","",null,null,null,null,null,null,null,null,null,null,null,null,null,null,null,null,null,null,"","","","",null,null,"",null,null,null,null,null,null,null,null,null,null,null,null,null,null,null,null,null,null,null,null,null,null,null,null,null,null,null,"","","",null,null,null,null,"","","","",null,null,null,null,null,null,null,null,null,null,null,null,null,null,null,null,null,null,null,null,null,null,null,null,null,null,null,null,null,null,null,null,null,null,null,null,null,null,null,null,null,null,null,null,null,null,null,null,null,null,null,null,"",{"$f":"IF($A107=\"\",\"\",IF(VLOOKUP($G107,$H$11:$DO$1000,103,FALSE)=\"\",\"No\",IF(LEFT(VLOOKUP($G107,$H$11:$DO$1000,103,FALSE),3)=\"The\",EM107,VLOOKUP(VLOOKUP($G107,$H$11:$DO$1000,103,FALSE),DeclMatrix!$A$2:$F$5,VLOOKUP('Enrollment Form'!$B107,DeclMatrix!$A$8:$B$12,2,FALSE),FALSE))))","v":""},{"$f":"IF($A107=\"\",\"\",IF(VLOOKUP($G107,$H$11:$DO$1000,106,FALSE)=\"\",\"No\",IF(LEFT(VLOOKUP($G107,$H$11:$DO$1000,106,FALSE),3)=\"The\",EN107,VLOOKUP(VLOOKUP($G107,$H$11:$DO$1000,106,FALSE),DeclMatrix!$A$2:$F$5,VLOOKUP('Enrollment Form'!$B107,DeclMatrix!$A$8:$B$12,2,FALSE),FALSE))))","v":""},{"$f":"IF($A107=\"\",\"\",IF(VLOOKUP($G107,$H$11:$DO$1000,109,FALSE)=\"\",\"No\",IF(LEFT(VLOOKUP($G107,$H$11:$DO$1000,109,FALSE),3)=\"The\",EO107,VLOOKUP(VLOOKUP($G107,$H$11:$DO$1000,109,FALSE),DeclMatrix!$A$2:$F$5,VLOOKUP('Enrollment Form'!$B107,DeclMatrix!$A$8:$B$12,2,FALSE),FALSE))))","v":""},{"$f":"IF($A107=\"\",\"\",IF(VLOOKUP($G107,$H$11:$DO$1000,112,FALSE)=\"\",\"No\",IF(LEFT(VLOOKUP($G107,$H$11:$DO$1000,112,FALSE),3)=\"The\",EP107,VLOOKUP(VLOOKUP($G107,$H$11:$DO$1000,112,FALSE),DeclMatrix!$A$2:$F$5,VLOOKUP('Enrollment Form'!$B107,DeclMatrix!$A$8:$B$12,2,FALSE),FALSE))))","v":""},null,null,null,null,null,null,null,null,"",null,"","","","","","","","","","","",""]
["",null,null,null,null,null,"","",null,null,null,null,null,null,null,null,null,null,null,null,null,null,null,null,null,null,"","","","",null,null,"",null,null,null,null,null,null,null,null,null,null,null,null,null,null,null,null,null,null,null,null,null,null,null,null,null,null,null,"","","",null,null,null,null,"","","","",null,null,null,null,null,null,null,null,null,null,null,null,null,null,null,null,null,null,null,null,null,null,null,null,null,null,null,null,null,null,null,null,null,null,null,null,null,null,null,null,null,null,null,null,null,null,null,null,null,null,null,null,"",{"$f":"IF($A108=\"\",\"\",IF(VLOOKUP($G108,$H$11:$DO$1000,103,FALSE)=\"\",\"No\",IF(LEFT(VLOOKUP($G108,$H$11:$DO$1000,103,FALSE),3)=\"The\",EM108,VLOOKUP(VLOOKUP($G108,$H$11:$DO$1000,103,FALSE),DeclMatrix!$A$2:$F$5,VLOOKUP('Enrollment Form'!$B108,DeclMatrix!$A$8:$B$12,2,FALSE),FALSE))))","v":""},{"$f":"IF($A108=\"\",\"\",IF(VLOOKUP($G108,$H$11:$DO$1000,106,FALSE)=\"\",\"No\",IF(LEFT(VLOOKUP($G108,$H$11:$DO$1000,106,FALSE),3)=\"The\",EN108,VLOOKUP(VLOOKUP($G108,$H$11:$DO$1000,106,FALSE),DeclMatrix!$A$2:$F$5,VLOOKUP('Enrollment Form'!$B108,DeclMatrix!$A$8:$B$12,2,FALSE),FALSE))))","v":""},{"$f":"IF($A108=\"\",\"\",IF(VLOOKUP($G108,$H$11:$DO$1000,109,FALSE)=\"\",\"No\",IF(LEFT(VLOOKUP($G108,$H$11:$DO$1000,109,FALSE),3)=\"The\",EO108,VLOOKUP(VLOOKUP($G108,$H$11:$DO$1000,109,FALSE),DeclMatrix!$A$2:$F$5,VLOOKUP('Enrollment Form'!$B108,DeclMatrix!$A$8:$B$12,2,FALSE),FALSE))))","v":""},{"$f":"IF($A108=\"\",\"\",IF(VLOOKUP($G108,$H$11:$DO$1000,112,FALSE)=\"\",\"No\",IF(LEFT(VLOOKUP($G108,$H$11:$DO$1000,112,FALSE),3)=\"The\",EP108,VLOOKUP(VLOOKUP($G108,$H$11:$DO$1000,112,FALSE),DeclMatrix!$A$2:$F$5,VLOOKUP('Enrollment Form'!$B108,DeclMatrix!$A$8:$B$12,2,FALSE),FALSE))))","v":""},null,null,null,null,null,null,null,null,"",null,"","","","","","","","","","","",""]
["",null,null,null,null,null,"","",null,null,null,null,null,null,null,null,null,null,null,null,null,null,null,null,null,null,"","","","",null,null,"",null,null,null,null,null,null,null,null,null,null,null,null,null,null,null,null,null,null,null,null,null,null,null,null,null,null,null,"","","",null,null,null,null,"","","","",null,null,null,null,null,null,null,null,null,null,null,null,null,null,null,null,null,null,null,null,null,null,null,null,null,null,null,null,null,null,null,null,null,null,null,null,null,null,null,null,null,null,null,null,null,null,null,null,null,null,null,null,"",{"$f":"IF($A109=\"\",\"\",IF(VLOOKUP($G109,$H$11:$DO$1000,103,FALSE)=\"\",\"No\",IF(LEFT(VLOOKUP($G109,$H$11:$DO$1000,103,FALSE),3)=\"The\",EM109,VLOOKUP(VLOOKUP($G109,$H$11:$DO$1000,103,FALSE),DeclMatrix!$A$2:$F$5,VLOOKUP('Enrollment Form'!$B109,DeclMatrix!$A$8:$B$12,2,FALSE),FALSE))))","v":""},{"$f":"IF($A109=\"\",\"\",IF(VLOOKUP($G109,$H$11:$DO$1000,106,FALSE)=\"\",\"No\",IF(LEFT(VLOOKUP($G109,$H$11:$DO$1000,106,FALSE),3)=\"The\",EN109,VLOOKUP(VLOOKUP($G109,$H$11:$DO$1000,106,FALSE),DeclMatrix!$A$2:$F$5,VLOOKUP('Enrollment Form'!$B109,DeclMatrix!$A$8:$B$12,2,FALSE),FALSE))))","v":""},{"$f":"IF($A109=\"\",\"\",IF(VLOOKUP($G109,$H$11:$DO$1000,109,FALSE)=\"\",\"No\",IF(LEFT(VLOOKUP($G109,$H$11:$DO$1000,109,FALSE),3)=\"The\",EO109,VLOOKUP(VLOOKUP($G109,$H$11:$DO$1000,109,FALSE),DeclMatrix!$A$2:$F$5,VLOOKUP('Enrollment Form'!$B109,DeclMatrix!$A$8:$B$12,2,FALSE),FALSE))))","v":""},{"$f":"IF($A109=\"\",\"\",IF(VLOOKUP($G109,$H$11:$DO$1000,112,FALSE)=\"\",\"No\",IF(LEFT(VLOOKUP($G109,$H$11:$DO$1000,112,FALSE),3)=\"The\",EP109,VLOOKUP(VLOOKUP($G109,$H$11:$DO$1000,112,FALSE),DeclMatrix!$A$2:$F$5,VLOOKUP('Enrollment Form'!$B109,DeclMatrix!$A$8:$B$12,2,FALSE),FALSE))))","v":""},null,null,null,null,null,null,null,null,"",null,"","","","","","","","","","","",""]
["",null,null,null,null,null,"","",null,null,null,null,null,null,null,null,null,null,null,null,null,null,null,null,null,null,"","","","",null,null,"",null,null,null,null,null,null,null,null,null,null,null,null,null,null,null,null,null,null,null,null,null,null,null,null,null,null,null,"","","",null,null,null,null,"","","","",null,null,null,null,null,null,null,null,null,null,null,null,null,null,null,null,null,null,null,null,null,null,null,null,null,null,null,null,null,null,null,null,null,null,null,null,null,null,null,null,null,null,null,null,null,null,null,null,null,null,null,null,"",{"$f":"IF($A110=\"\",\"\",IF(VLOOKUP($G110,$H$11:$DO$1000,103,FALSE)=\"\",\"No\",IF(LEFT(VLOOKUP($G110,$H$11:$DO$1000,103,FALSE),3)=\"The\",EM110,VLOOKUP(VLOOKUP($G110,$H$11:$DO$1000,103,FALSE),DeclMatrix!$A$2:$F$5,VLOOKUP('Enrollment Form'!$B110,DeclMatrix!$A$8:$B$12,2,FALSE),FALSE))))","v":""},{"$f":"IF($A110=\"\",\"\",IF(VLOOKUP($G110,$H$11:$DO$1000,106,FALSE)=\"\",\"No\",IF(LEFT(VLOOKUP($G110,$H$11:$DO$1000,106,FALSE),3)=\"The\",EN110,VLOOKUP(VLOOKUP($G110,$H$11:$DO$1000,106,FALSE),DeclMatrix!$A$2:$F$5,VLOOKUP('Enrollment Form'!$B110,DeclMatrix!$A$8:$B$12,2,FALSE),FALSE))))","v":""},{"$f":"IF($A110=\"\",\"\",IF(VLOOKUP($G110,$H$11:$DO$1000,109,FALSE)=\"\",\"No\",IF(LEFT(VLOOKUP($G110,$H$11:$DO$1000,109,FALSE),3)=\"The\",EO110,VLOOKUP(VLOOKUP($G110,$H$11:$DO$1000,109,FALSE),DeclMatrix!$A$2:$F$5,VLOOKUP('Enrollment Form'!$B110,DeclMatrix!$A$8:$B$12,2,FALSE),FALSE))))","v":""},{"$f":"IF($A110=\"\",\"\",IF(VLOOKUP($G110,$H$11:$DO$1000,112,FALSE)=\"\",\"No\",IF(LEFT(VLOOKUP($G110,$H$11:$DO$1000,112,FALSE),3)=\"The\",EP110,VLOOKUP(VLOOKUP($G110,$H$11:$DO$1000,112,FALSE),DeclMatrix!$A$2:$F$5,VLOOKUP('Enrollment Form'!$B110,DeclMatrix!$A$8:$B$12,2,FALSE),FALSE))))","v":""},null,null,null,null,null,null,null,null,"",null,"","","","","","","","","","","",""]
["",null,null,null,null,null,"","",null,null,null,null,null,null,null,null,null,null,null,null,null,null,null,null,null,null,"","","","",null,null,"",null,null,null,null,null,null,null,null,null,null,null,null,null,null,null,null,null,null,null,null,null,null,null,null,null,null,null,"","","",null,null,null,null,"","","","",null,null,null,null,null,null,null,null,null,null,null,null,null,null,null,null,null,null,null,null,null,null,null,null,null,null,null,null,null,null,null,null,null,null,null,null,null,null,null,null,null,null,null,null,null,null,null,null,null,null,null,null,"",{"$f":"IF($A111=\"\",\"\",IF(VLOOKUP($G111,$H$11:$DO$1000,103,FALSE)=\"\",\"No\",IF(LEFT(VLOOKUP($G111,$H$11:$DO$1000,103,FALSE),3)=\"The\",EM111,VLOOKUP(VLOOKUP($G111,$H$11:$DO$1000,103,FALSE),DeclMatrix!$A$2:$F$5,VLOOKUP('Enrollment Form'!$B111,DeclMatrix!$A$8:$B$12,2,FALSE),FALSE))))","v":""},{"$f":"IF($A111=\"\",\"\",IF(VLOOKUP($G111,$H$11:$DO$1000,106,FALSE)=\"\",\"No\",IF(LEFT(VLOOKUP($G111,$H$11:$DO$1000,106,FALSE),3)=\"The\",EN111,VLOOKUP(VLOOKUP($G111,$H$11:$DO$1000,106,FALSE),DeclMatrix!$A$2:$F$5,VLOOKUP('Enrollment Form'!$B111,DeclMatrix!$A$8:$B$12,2,FALSE),FALSE))))","v":""},{"$f":"IF($A111=\"\",\"\",IF(VLOOKUP($G111,$H$11:$DO$1000,109,FALSE)=\"\",\"No\",IF(LEFT(VLOOKUP($G111,$H$11:$DO$1000,109,FALSE),3)=\"The\",EO111,VLOOKUP(VLOOKUP($G111,$H$11:$DO$1000,109,FALSE),DeclMatrix!$A$2:$F$5,VLOOKUP('Enrollment Form'!$B111,DeclMatrix!$A$8:$B$12,2,FALSE),FALSE))))","v":""},{"$f":"IF($A111=\"\",\"\",IF(VLOOKUP($G111,$H$11:$DO$1000,112,FALSE)=\"\",\"No\",IF(LEFT(VLOOKUP($G111,$H$11:$DO$1000,112,FALSE),3)=\"The\",EP111,VLOOKUP(VLOOKUP($G111,$H$11:$DO$1000,112,FALSE),DeclMatrix!$A$2:$F$5,VLOOKUP('Enrollment Form'!$B111,DeclMatrix!$A$8:$B$12,2,FALSE),FALSE))))","v":""},null,null,null,null,null,null,null,null,"",null,"","","","","","","","","","","",""]
["",null,null,null,null,null,"","",null,null,null,null,null,null,null,null,null,null,null,null,null,null,null,null,null,null,"","","","",null,null,"",null,null,null,null,null,null,null,null,null,null,null,null,null,null,null,null,null,null,null,null,null,null,null,null,null,null,null,"","","",null,null,null,null,"","","","",null,null,null,null,null,null,null,null,null,null,null,null,null,null,null,null,null,null,null,null,null,null,null,null,null,null,null,null,null,null,null,null,null,null,null,null,null,null,null,null,null,null,null,null,null,null,null,null,null,null,null,null,"",{"$f":"IF($A112=\"\",\"\",IF(VLOOKUP($G112,$H$11:$DO$1000,103,FALSE)=\"\",\"No\",IF(LEFT(VLOOKUP($G112,$H$11:$DO$1000,103,FALSE),3)=\"The\",EM112,VLOOKUP(VLOOKUP($G112,$H$11:$DO$1000,103,FALSE),DeclMatrix!$A$2:$F$5,VLOOKUP('Enrollment Form'!$B112,DeclMatrix!$A$8:$B$12,2,FALSE),FALSE))))","v":""},{"$f":"IF($A112=\"\",\"\",IF(VLOOKUP($G112,$H$11:$DO$1000,106,FALSE)=\"\",\"No\",IF(LEFT(VLOOKUP($G112,$H$11:$DO$1000,106,FALSE),3)=\"The\",EN112,VLOOKUP(VLOOKUP($G112,$H$11:$DO$1000,106,FALSE),DeclMatrix!$A$2:$F$5,VLOOKUP('Enrollment Form'!$B112,DeclMatrix!$A$8:$B$12,2,FALSE),FALSE))))","v":""},{"$f":"IF($A112=\"\",\"\",IF(VLOOKUP($G112,$H$11:$DO$1000,109,FALSE)=\"\",\"No\",IF(LEFT(VLOOKUP($G112,$H$11:$DO$1000,109,FALSE),3)=\"The\",EO112,VLOOKUP(VLOOKUP($G112,$H$11:$DO$1000,109,FALSE),DeclMatrix!$A$2:$F$5,VLOOKUP('Enrollment Form'!$B112,DeclMatrix!$A$8:$B$12,2,FALSE),FALSE))))","v":""},{"$f":"IF($A112=\"\",\"\",IF(VLOOKUP($G112,$H$11:$DO$1000,112,FALSE)=\"\",\"No\",IF(LEFT(VLOOKUP($G112,$H$11:$DO$1000,112,FALSE),3)=\"The\",EP112,VLOOKUP(VLOOKUP($G112,$H$11:$DO$1000,112,FALSE),DeclMatrix!$A$2:$F$5,VLOOKUP('Enrollment Form'!$B112,DeclMatrix!$A$8:$B$12,2,FALSE),FALSE))))","v":""},null,null,null,null,null,null,null,null,"",null,"","","","","","","","","","","",""]
["",null,null,null,null,null,"","",null,null,null,null,null,null,null,null,null,null,null,null,null,null,null,null,null,null,"","","","",null,null,"",null,null,null,null,null,null,null,null,null,null,null,null,null,null,null,null,null,null,null,null,null,null,null,null,null,null,null,"","","",null,null,null,null,"","","","",null,null,null,null,null,null,null,null,null,null,null,null,null,null,null,null,null,null,null,null,null,null,null,null,null,null,null,null,null,null,null,null,null,null,null,null,null,null,null,null,null,null,null,null,null,null,null,null,null,null,null,null,"",{"$f":"IF($A113=\"\",\"\",IF(VLOOKUP($G113,$H$11:$DO$1000,103,FALSE)=\"\",\"No\",IF(LEFT(VLOOKUP($G113,$H$11:$DO$1000,103,FALSE),3)=\"The\",EM113,VLOOKUP(VLOOKUP($G113,$H$11:$DO$1000,103,FALSE),DeclMatrix!$A$2:$F$5,VLOOKUP('Enrollment Form'!$B113,DeclMatrix!$A$8:$B$12,2,FALSE),FALSE))))","v":""},{"$f":"IF($A113=\"\",\"\",IF(VLOOKUP($G113,$H$11:$DO$1000,106,FALSE)=\"\",\"No\",IF(LEFT(VLOOKUP($G113,$H$11:$DO$1000,106,FALSE),3)=\"The\",EN113,VLOOKUP(VLOOKUP($G113,$H$11:$DO$1000,106,FALSE),DeclMatrix!$A$2:$F$5,VLOOKUP('Enrollment Form'!$B113,DeclMatrix!$A$8:$B$12,2,FALSE),FALSE))))","v":""},{"$f":"IF($A113=\"\",\"\",IF(VLOOKUP($G113,$H$11:$DO$1000,109,FALSE)=\"\",\"No\",IF(LEFT(VLOOKUP($G113,$H$11:$DO$1000,109,FALSE),3)=\"The\",EO113,VLOOKUP(VLOOKUP($G113,$H$11:$DO$1000,109,FALSE),DeclMatrix!$A$2:$F$5,VLOOKUP('Enrollment Form'!$B113,DeclMatrix!$A$8:$B$12,2,FALSE),FALSE))))","v":""},{"$f":"IF($A113=\"\",\"\",IF(VLOOKUP($G113,$H$11:$DO$1000,112,FALSE)=\"\",\"No\",IF(LEFT(VLOOKUP($G113,$H$11:$DO$1000,112,FALSE),3)=\"The\",EP113,VLOOKUP(VLOOKUP($G113,$H$11:$DO$1000,112,FALSE),DeclMatrix!$A$2:$F$5,VLOOKUP('Enrollment Form'!$B113,DeclMatrix!$A$8:$B$12,2,FALSE),FALSE))))","v":""},null,null,null,null,null,null,null,null,"",null,"","","","","","","","","","","",""]
["",null,null,null,null,null,"","",null,null,null,null,null,null,null,null,null,null,null,null,null,null,null,null,null,null,"","","","",null,null,"",null,null,null,null,null,null,null,null,null,null,null,null,null,null,null,null,null,null,null,null,null,null,null,null,null,null,null,"","","",null,null,null,null,"","","","",null,null,null,null,null,null,null,null,null,null,null,null,null,null,null,null,null,null,null,null,null,null,null,null,null,null,null,null,null,null,null,null,null,null,null,null,null,null,null,null,null,null,null,null,null,null,null,null,null,null,null,null,"",{"$f":"IF($A114=\"\",\"\",IF(VLOOKUP($G114,$H$11:$DO$1000,103,FALSE)=\"\",\"No\",IF(LEFT(VLOOKUP($G114,$H$11:$DO$1000,103,FALSE),3)=\"The\",EM114,VLOOKUP(VLOOKUP($G114,$H$11:$DO$1000,103,FALSE),DeclMatrix!$A$2:$F$5,VLOOKUP('Enrollment Form'!$B114,DeclMatrix!$A$8:$B$12,2,FALSE),FALSE))))","v":""},{"$f":"IF($A114=\"\",\"\",IF(VLOOKUP($G114,$H$11:$DO$1000,106,FALSE)=\"\",\"No\",IF(LEFT(VLOOKUP($G114,$H$11:$DO$1000,106,FALSE),3)=\"The\",EN114,VLOOKUP(VLOOKUP($G114,$H$11:$DO$1000,106,FALSE),DeclMatrix!$A$2:$F$5,VLOOKUP('Enrollment Form'!$B114,DeclMatrix!$A$8:$B$12,2,FALSE),FALSE))))","v":""},{"$f":"IF($A114=\"\",\"\",IF(VLOOKUP($G114,$H$11:$DO$1000,109,FALSE)=\"\",\"No\",IF(LEFT(VLOOKUP($G114,$H$11:$DO$1000,109,FALSE),3)=\"The\",EO114,VLOOKUP(VLOOKUP($G114,$H$11:$DO$1000,109,FALSE),DeclMatrix!$A$2:$F$5,VLOOKUP('Enrollment Form'!$B114,DeclMatrix!$A$8:$B$12,2,FALSE),FALSE))))","v":""},{"$f":"IF($A114=\"\",\"\",IF(VLOOKUP($G114,$H$11:$DO$1000,112,FALSE)=\"\",\"No\",IF(LEFT(VLOOKUP($G114,$H$11:$DO$1000,112,FALSE),3)=\"The\",EP114,VLOOKUP(VLOOKUP($G114,$H$11:$DO$1000,112,FALSE),DeclMatrix!$A$2:$F$5,VLOOKUP('Enrollment Form'!$B114,DeclMatrix!$A$8:$B$12,2,FALSE),FALSE))))","v":""},null,null,null,null,null,null,null,null,"",null,"","","","","","","","","","","",""]
["",null,null,null,null,null,"","",null,null,null,null,null,null,null,null,null,null,null,null,null,null,null,null,null,null,"","","","",null,null,"",null,null,null,null,null,null,null,null,null,null,null,null,null,null,null,null,null,null,null,null,null,null,null,null,null,null,null,"","","",null,null,null,null,"","","","",null,null,null,null,null,null,null,null,null,null,null,null,null,null,null,null,null,null,null,null,null,null,null,null,null,null,null,null,null,null,null,null,null,null,null,null,null,null,null,null,null,null,null,null,null,null,null,null,null,null,null,null,"",{"$f":"IF($A115=\"\",\"\",IF(VLOOKUP($G115,$H$11:$DO$1000,103,FALSE)=\"\",\"No\",IF(LEFT(VLOOKUP($G115,$H$11:$DO$1000,103,FALSE),3)=\"The\",EM115,VLOOKUP(VLOOKUP($G115,$H$11:$DO$1000,103,FALSE),DeclMatrix!$A$2:$F$5,VLOOKUP('Enrollment Form'!$B115,DeclMatrix!$A$8:$B$12,2,FALSE),FALSE))))","v":""},{"$f":"IF($A115=\"\",\"\",IF(VLOOKUP($G115,$H$11:$DO$1000,106,FALSE)=\"\",\"No\",IF(LEFT(VLOOKUP($G115,$H$11:$DO$1000,106,FALSE),3)=\"The\",EN115,VLOOKUP(VLOOKUP($G115,$H$11:$DO$1000,106,FALSE),DeclMatrix!$A$2:$F$5,VLOOKUP('Enrollment Form'!$B115,DeclMatrix!$A$8:$B$12,2,FALSE),FALSE))))","v":""},{"$f":"IF($A115=\"\",\"\",IF(VLOOKUP($G115,$H$11:$DO$1000,109,FALSE)=\"\",\"No\",IF(LEFT(VLOOKUP($G115,$H$11:$DO$1000,109,FALSE),3)=\"The\",EO115,VLOOKUP(VLOOKUP($G115,$H$11:$DO$1000,109,FALSE),DeclMatrix!$A$2:$F$5,VLOOKUP('Enrollment Form'!$B115,DeclMatrix!$A$8:$B$12,2,FALSE),FALSE))))","v":""},{"$f":"IF($A115=\"\",\"\",IF(VLOOKUP($G115,$H$11:$DO$1000,112,FALSE)=\"\",\"No\",IF(LEFT(VLOOKUP($G115,$H$11:$DO$1000,112,FALSE),3)=\"The\",EP115,VLOOKUP(VLOOKUP($G115,$H$11:$DO$1000,112,FALSE),DeclMatrix!$A$2:$F$5,VLOOKUP('Enrollment Form'!$B115,DeclMatrix!$A$8:$B$12,2,FALSE),FALSE))))","v":""},null,null,null,null,null,null,null,null,"",null,"","","","","","","","","","","",""]
["",null,null,null,null,null,"","",null,null,null,null,null,null,null,null,null,null,null,null,null,null,null,null,null,null,"","","","",null,null,"",null,null,null,null,null,null,null,null,null,null,null,null,null,null,null,null,null,null,null,null,null,null,null,null,null,null,null,"","","",null,null,null,null,"","","","",null,null,null,null,null,null,null,null,null,null,null,null,null,null,null,null,null,null,null,null,null,null,null,null,null,null,null,null,null,null,null,null,null,null,null,null,null,null,null,null,null,null,null,null,null,null,null,null,null,null,null,null,"",{"$f":"IF($A116=\"\",\"\",IF(VLOOKUP($G116,$H$11:$DO$1000,103,FALSE)=\"\",\"No\",IF(LEFT(VLOOKUP($G116,$H$11:$DO$1000,103,FALSE),3)=\"The\",EM116,VLOOKUP(VLOOKUP($G116,$H$11:$DO$1000,103,FALSE),DeclMatrix!$A$2:$F$5,VLOOKUP('Enrollment Form'!$B116,DeclMatrix!$A$8:$B$12,2,FALSE),FALSE))))","v":""},{"$f":"IF($A116=\"\",\"\",IF(VLOOKUP($G116,$H$11:$DO$1000,106,FALSE)=\"\",\"No\",IF(LEFT(VLOOKUP($G116,$H$11:$DO$1000,106,FALSE),3)=\"The\",EN116,VLOOKUP(VLOOKUP($G116,$H$11:$DO$1000,106,FALSE),DeclMatrix!$A$2:$F$5,VLOOKUP('Enrollment Form'!$B116,DeclMatrix!$A$8:$B$12,2,FALSE),FALSE))))","v":""},{"$f":"IF($A116=\"\",\"\",IF(VLOOKUP($G116,$H$11:$DO$1000,109,FALSE)=\"\",\"No\",IF(LEFT(VLOOKUP($G116,$H$11:$DO$1000,109,FALSE),3)=\"The\",EO116,VLOOKUP(VLOOKUP($G116,$H$11:$DO$1000,109,FALSE),DeclMatrix!$A$2:$F$5,VLOOKUP('Enrollment Form'!$B116,DeclMatrix!$A$8:$B$12,2,FALSE),FALSE))))","v":""},{"$f":"IF($A116=\"\",\"\",IF(VLOOKUP($G116,$H$11:$DO$1000,112,FALSE)=\"\",\"No\",IF(LEFT(VLOOKUP($G116,$H$11:$DO$1000,112,FALSE),3)=\"The\",EP116,VLOOKUP(VLOOKUP($G116,$H$11:$DO$1000,112,FALSE),DeclMatrix!$A$2:$F$5,VLOOKUP('Enrollment Form'!$B116,DeclMatrix!$A$8:$B$12,2,FALSE),FALSE))))","v":""},null,null,null,null,null,null,null,null,"",null,"","","","","","","","","","","",""]
["",null,null,null,null,null,"","",null,null,null,null,null,null,null,null,null,null,null,null,null,null,null,null,null,null,"","","","",null,null,"",null,null,null,null,null,null,null,null,null,null,null,null,null,null,null,null,null,null,null,null,null,null,null,null,null,null,null,"","","",null,null,null,null,"","","","",null,null,null,null,null,null,null,null,null,null,null,null,null,null,null,null,null,null,null,null,null,null,null,null,null,null,null,null,null,null,null,null,null,null,null,null,null,null,null,null,null,null,null,null,null,null,null,null,null,null,null,null,"",{"$f":"IF($A117=\"\",\"\",IF(VLOOKUP($G117,$H$11:$DO$1000,103,FALSE)=\"\",\"No\",IF(LEFT(VLOOKUP($G117,$H$11:$DO$1000,103,FALSE),3)=\"The\",EM117,VLOOKUP(VLOOKUP($G117,$H$11:$DO$1000,103,FALSE),DeclMatrix!$A$2:$F$5,VLOOKUP('Enrollment Form'!$B117,DeclMatrix!$A$8:$B$12,2,FALSE),FALSE))))","v":""},{"$f":"IF($A117=\"\",\"\",IF(VLOOKUP($G117,$H$11:$DO$1000,106,FALSE)=\"\",\"No\",IF(LEFT(VLOOKUP($G117,$H$11:$DO$1000,106,FALSE),3)=\"The\",EN117,VLOOKUP(VLOOKUP($G117,$H$11:$DO$1000,106,FALSE),DeclMatrix!$A$2:$F$5,VLOOKUP('Enrollment Form'!$B117,DeclMatrix!$A$8:$B$12,2,FALSE),FALSE))))","v":""},{"$f":"IF($A117=\"\",\"\",IF(VLOOKUP($G117,$H$11:$DO$1000,109,FALSE)=\"\",\"No\",IF(LEFT(VLOOKUP($G117,$H$11:$DO$1000,109,FALSE),3)=\"The\",EO117,VLOOKUP(VLOOKUP($G117,$H$11:$DO$1000,109,FALSE),DeclMatrix!$A$2:$F$5,VLOOKUP('Enrollment Form'!$B117,DeclMatrix!$A$8:$B$12,2,FALSE),FALSE))))","v":""},{"$f":"IF($A117=\"\",\"\",IF(VLOOKUP($G117,$H$11:$DO$1000,112,FALSE)=\"\",\"No\",IF(LEFT(VLOOKUP($G117,$H$11:$DO$1000,112,FALSE),3)=\"The\",EP117,VLOOKUP(VLOOKUP($G117,$H$11:$DO$1000,112,FALSE),DeclMatrix!$A$2:$F$5,VLOOKUP('Enrollment Form'!$B117,DeclMatrix!$A$8:$B$12,2,FALSE),FALSE))))","v":""},null,null,null,null,null,null,null,null,"",null,"","","","","","","","","","","",""]
["",null,null,null,null,null,"","",null,null,null,null,null,null,null,null,null,null,null,null,null,null,null,null,null,null,"","","","",null,null,"",null,null,null,null,null,null,null,null,null,null,null,null,null,null,null,null,null,null,null,null,null,null,null,null,null,null,null,"","","",null,null,null,null,"","","","",null,null,null,null,null,null,null,null,null,null,null,null,null,null,null,null,null,null,null,null,null,null,null,null,null,null,null,null,null,null,null,null,null,null,null,null,null,null,null,null,null,null,null,null,null,null,null,null,null,null,null,null,"",{"$f":"IF($A118=\"\",\"\",IF(VLOOKUP($G118,$H$11:$DO$1000,103,FALSE)=\"\",\"No\",IF(LEFT(VLOOKUP($G118,$H$11:$DO$1000,103,FALSE),3)=\"The\",EM118,VLOOKUP(VLOOKUP($G118,$H$11:$DO$1000,103,FALSE),DeclMatrix!$A$2:$F$5,VLOOKUP('Enrollment Form'!$B118,DeclMatrix!$A$8:$B$12,2,FALSE),FALSE))))","v":""},{"$f":"IF($A118=\"\",\"\",IF(VLOOKUP($G118,$H$11:$DO$1000,106,FALSE)=\"\",\"No\",IF(LEFT(VLOOKUP($G118,$H$11:$DO$1000,106,FALSE),3)=\"The\",EN118,VLOOKUP(VLOOKUP($G118,$H$11:$DO$1000,106,FALSE),DeclMatrix!$A$2:$F$5,VLOOKUP('Enrollment Form'!$B118,DeclMatrix!$A$8:$B$12,2,FALSE),FALSE))))","v":""},{"$f":"IF($A118=\"\",\"\",IF(VLOOKUP($G118,$H$11:$DO$1000,109,FALSE)=\"\",\"No\",IF(LEFT(VLOOKUP($G118,$H$11:$DO$1000,109,FALSE),3)=\"The\",EO118,VLOOKUP(VLOOKUP($G118,$H$11:$DO$1000,109,FALSE),DeclMatrix!$A$2:$F$5,VLOOKUP('Enrollment Form'!$B118,DeclMatrix!$A$8:$B$12,2,FALSE),FALSE))))","v":""},{"$f":"IF($A118=\"\",\"\",IF(VLOOKUP($G118,$H$11:$DO$1000,112,FALSE)=\"\",\"No\",IF(LEFT(VLOOKUP($G118,$H$11:$DO$1000,112,FALSE),3)=\"The\",EP118,VLOOKUP(VLOOKUP($G118,$H$11:$DO$1000,112,FALSE),DeclMatrix!$A$2:$F$5,VLOOKUP('Enrollment Form'!$B118,DeclMatrix!$A$8:$B$12,2,FALSE),FALSE))))","v":""},null,null,null,null,null,null,null,null,"",null,"","","","","","","","","","","",""]
["",null,null,null,null,null,"","",null,null,null,null,null,null,null,null,null,null,null,null,null,null,null,null,null,null,"","","","",null,null,"",null,null,null,null,null,null,null,null,null,null,null,null,null,null,null,null,null,null,null,null,null,null,null,null,null,null,null,"","","",null,null,null,null,"","","","",null,null,null,null,null,null,null,null,null,null,null,null,null,null,null,null,null,null,null,null,null,null,null,null,null,null,null,null,null,null,null,null,null,null,null,null,null,null,null,null,null,null,null,null,null,null,null,null,null,null,null,null,"",{"$f":"IF($A119=\"\",\"\",IF(VLOOKUP($G119,$H$11:$DO$1000,103,FALSE)=\"\",\"No\",IF(LEFT(VLOOKUP($G119,$H$11:$DO$1000,103,FALSE),3)=\"The\",EM119,VLOOKUP(VLOOKUP($G119,$H$11:$DO$1000,103,FALSE),DeclMatrix!$A$2:$F$5,VLOOKUP('Enrollment Form'!$B119,DeclMatrix!$A$8:$B$12,2,FALSE),FALSE))))","v":""},{"$f":"IF($A119=\"\",\"\",IF(VLOOKUP($G119,$H$11:$DO$1000,106,FALSE)=\"\",\"No\",IF(LEFT(VLOOKUP($G119,$H$11:$DO$1000,106,FALSE),3)=\"The\",EN119,VLOOKUP(VLOOKUP($G119,$H$11:$DO$1000,106,FALSE),DeclMatrix!$A$2:$F$5,VLOOKUP('Enrollment Form'!$B119,DeclMatrix!$A$8:$B$12,2,FALSE),FALSE))))","v":""},{"$f":"IF($A119=\"\",\"\",IF(VLOOKUP($G119,$H$11:$DO$1000,109,FALSE)=\"\",\"No\",IF(LEFT(VLOOKUP($G119,$H$11:$DO$1000,109,FALSE),3)=\"The\",EO119,VLOOKUP(VLOOKUP($G119,$H$11:$DO$1000,109,FALSE),DeclMatrix!$A$2:$F$5,VLOOKUP('Enrollment Form'!$B119,DeclMatrix!$A$8:$B$12,2,FALSE),FALSE))))","v":""},{"$f":"IF($A119=\"\",\"\",IF(VLOOKUP($G119,$H$11:$DO$1000,112,FALSE)=\"\",\"No\",IF(LEFT(VLOOKUP($G119,$H$11:$DO$1000,112,FALSE),3)=\"The\",EP119,VLOOKUP(VLOOKUP($G119,$H$11:$DO$1000,112,FALSE),DeclMatrix!$A$2:$F$5,VLOOKUP('Enrollment Form'!$B119,DeclMatrix!$A$8:$B$12,2,FALSE),FALSE))))","v":""},null,null,null,null,null,null,null,null,"",null,"","","","","","","","","","","",""]
["",null,null,null,null,null,"","",null,null,null,null,null,null,null,null,null,null,null,null,null,null,null,null,null,null,"","","","",null,null,"",null,null,null,null,null,null,null,null,null,null,null,null,null,null,null,null,null,null,null,null,null,null,null,null,null,null,null,"","","",null,null,null,null,"","","","",null,null,null,null,null,null,null,null,null,null,null,null,null,null,null,null,null,null,null,null,null,null,null,null,null,null,null,null,null,null,null,null,null,null,null,null,null,null,null,null,null,null,null,null,null,null,null,null,null,null,null,null,"",{"$f":"IF($A120=\"\",\"\",IF(VLOOKUP($G120,$H$11:$DO$1000,103,FALSE)=\"\",\"No\",IF(LEFT(VLOOKUP($G120,$H$11:$DO$1000,103,FALSE),3)=\"The\",EM120,VLOOKUP(VLOOKUP($G120,$H$11:$DO$1000,103,FALSE),DeclMatrix!$A$2:$F$5,VLOOKUP('Enrollment Form'!$B120,DeclMatrix!$A$8:$B$12,2,FALSE),FALSE))))","v":""},{"$f":"IF($A120=\"\",\"\",IF(VLOOKUP($G120,$H$11:$DO$1000,106,FALSE)=\"\",\"No\",IF(LEFT(VLOOKUP($G120,$H$11:$DO$1000,106,FALSE),3)=\"The\",EN120,VLOOKUP(VLOOKUP($G120,$H$11:$DO$1000,106,FALSE),DeclMatrix!$A$2:$F$5,VLOOKUP('Enrollment Form'!$B120,DeclMatrix!$A$8:$B$12,2,FALSE),FALSE))))","v":""},{"$f":"IF($A120=\"\",\"\",IF(VLOOKUP($G120,$H$11:$DO$1000,109,FALSE)=\"\",\"No\",IF(LEFT(VLOOKUP($G120,$H$11:$DO$1000,109,FALSE),3)=\"The\",EO120,VLOOKUP(VLOOKUP($G120,$H$11:$DO$1000,109,FALSE),DeclMatrix!$A$2:$F$5,VLOOKUP('Enrollment Form'!$B120,DeclMatrix!$A$8:$B$12,2,FALSE),FALSE))))","v":""},{"$f":"IF($A120=\"\",\"\",IF(VLOOKUP($G120,$H$11:$DO$1000,112,FALSE)=\"\",\"No\",IF(LEFT(VLOOKUP($G120,$H$11:$DO$1000,112,FALSE),3)=\"The\",EP120,VLOOKUP(VLOOKUP($G120,$H$11:$DO$1000,112,FALSE),DeclMatrix!$A$2:$F$5,VLOOKUP('Enrollment Form'!$B120,DeclMatrix!$A$8:$B$12,2,FALSE),FALSE))))","v":""},null,null,null,null,null,null,null,null,"",null,"","","","","","","","","","","",""]
["",null,null,null,null,null,"","",null,null,null,null,null,null,null,null,null,null,null,null,null,null,null,null,null,null,"","","","",null,null,"",null,null,null,null,null,null,null,null,null,null,null,null,null,null,null,null,null,null,null,null,null,null,null,null,null,null,null,"","","",null,null,null,null,"","","","",null,null,null,null,null,null,null,null,null,null,null,null,null,null,null,null,null,null,null,null,null,null,null,null,null,null,null,null,null,null,null,null,null,null,null,null,null,null,null,null,null,null,null,null,null,null,null,null,null,null,null,null,"",{"$f":"IF($A121=\"\",\"\",IF(VLOOKUP($G121,$H$11:$DO$1000,103,FALSE)=\"\",\"No\",IF(LEFT(VLOOKUP($G121,$H$11:$DO$1000,103,FALSE),3)=\"The\",EM121,VLOOKUP(VLOOKUP($G121,$H$11:$DO$1000,103,FALSE),DeclMatrix!$A$2:$F$5,VLOOKUP('Enrollment Form'!$B121,DeclMatrix!$A$8:$B$12,2,FALSE),FALSE))))","v":""},{"$f":"IF($A121=\"\",\"\",IF(VLOOKUP($G121,$H$11:$DO$1000,106,FALSE)=\"\",\"No\",IF(LEFT(VLOOKUP($G121,$H$11:$DO$1000,106,FALSE),3)=\"The\",EN121,VLOOKUP(VLOOKUP($G121,$H$11:$DO$1000,106,FALSE),DeclMatrix!$A$2:$F$5,VLOOKUP('Enrollment Form'!$B121,DeclMatrix!$A$8:$B$12,2,FALSE),FALSE))))","v":""},{"$f":"IF($A121=\"\",\"\",IF(VLOOKUP($G121,$H$11:$DO$1000,109,FALSE)=\"\",\"No\",IF(LEFT(VLOOKUP($G121,$H$11:$DO$1000,109,FALSE),3)=\"The\",EO121,VLOOKUP(VLOOKUP($G121,$H$11:$DO$1000,109,FALSE),DeclMatrix!$A$2:$F$5,VLOOKUP('Enrollment Form'!$B121,DeclMatrix!$A$8:$B$12,2,FALSE),FALSE))))","v":""},{"$f":"IF($A121=\"\",\"\",IF(VLOOKUP($G121,$H$11:$DO$1000,112,FALSE)=\"\",\"No\",IF(LEFT(VLOOKUP($G121,$H$11:$DO$1000,112,FALSE),3)=\"The\",EP121,VLOOKUP(VLOOKUP($G121,$H$11:$DO$1000,112,FALSE),DeclMatrix!$A$2:$F$5,VLOOKUP('Enrollment Form'!$B121,DeclMatrix!$A$8:$B$12,2,FALSE),FALSE))))","v":""},null,null,null,null,null,null,null,null,"",null,"","","","","","","","","","","",""]
["",null,null,null,null,null,"","",null,null,null,null,null,null,null,null,null,null,null,null,null,null,null,null,null,null,"","","","",null,null,"",null,null,null,null,null,null,null,null,null,null,null,null,null,null,null,null,null,null,null,null,null,null,null,null,null,null,null,"","","",null,null,null,null,"","","","",null,null,null,null,null,null,null,null,null,null,null,null,null,null,null,null,null,null,null,null,null,null,null,null,null,null,null,null,null,null,null,null,null,null,null,null,null,null,null,null,null,null,null,null,null,null,null,null,null,null,null,null,"",{"$f":"IF($A122=\"\",\"\",IF(VLOOKUP($G122,$H$11:$DO$1000,103,FALSE)=\"\",\"No\",IF(LEFT(VLOOKUP($G122,$H$11:$DO$1000,103,FALSE),3)=\"The\",EM122,VLOOKUP(VLOOKUP($G122,$H$11:$DO$1000,103,FALSE),DeclMatrix!$A$2:$F$5,VLOOKUP('Enrollment Form'!$B122,DeclMatrix!$A$8:$B$12,2,FALSE),FALSE))))","v":""},{"$f":"IF($A122=\"\",\"\",IF(VLOOKUP($G122,$H$11:$DO$1000,106,FALSE)=\"\",\"No\",IF(LEFT(VLOOKUP($G122,$H$11:$DO$1000,106,FALSE),3)=\"The\",EN122,VLOOKUP(VLOOKUP($G122,$H$11:$DO$1000,106,FALSE),DeclMatrix!$A$2:$F$5,VLOOKUP('Enrollment Form'!$B122,DeclMatrix!$A$8:$B$12,2,FALSE),FALSE))))","v":""},{"$f":"IF($A122=\"\",\"\",IF(VLOOKUP($G122,$H$11:$DO$1000,109,FALSE)=\"\",\"No\",IF(LEFT(VLOOKUP($G122,$H$11:$DO$1000,109,FALSE),3)=\"The\",EO122,VLOOKUP(VLOOKUP($G122,$H$11:$DO$1000,109,FALSE),DeclMatrix!$A$2:$F$5,VLOOKUP('Enrollment Form'!$B122,DeclMatrix!$A$8:$B$12,2,FALSE),FALSE))))","v":""},{"$f":"IF($A122=\"\",\"\",IF(VLOOKUP($G122,$H$11:$DO$1000,112,FALSE)=\"\",\"No\",IF(LEFT(VLOOKUP($G122,$H$11:$DO$1000,112,FALSE),3)=\"The\",EP122,VLOOKUP(VLOOKUP($G122,$H$11:$DO$1000,112,FALSE),DeclMatrix!$A$2:$F$5,VLOOKUP('Enrollment Form'!$B122,DeclMatrix!$A$8:$B$12,2,FALSE),FALSE))))","v":""},null,null,null,null,null,null,null,null,"",null,"","","","","","","","","","","",""]
["",null,null,null,null,null,"","",null,null,null,null,null,null,null,null,null,null,null,null,null,null,null,null,null,null,"","","","",null,null,"",null,null,null,null,null,null,null,null,null,null,null,null,null,null,null,null,null,null,null,null,null,null,null,null,null,null,null,"","","",null,null,null,null,"","","","",null,null,null,null,null,null,null,null,null,null,null,null,null,null,null,null,null,null,null,null,null,null,null,null,null,null,null,null,null,null,null,null,null,null,null,null,null,null,null,null,null,null,null,null,null,null,null,null,null,null,null,null,"",{"$f":"IF($A123=\"\",\"\",IF(VLOOKUP($G123,$H$11:$DO$1000,103,FALSE)=\"\",\"No\",IF(LEFT(VLOOKUP($G123,$H$11:$DO$1000,103,FALSE),3)=\"The\",EM123,VLOOKUP(VLOOKUP($G123,$H$11:$DO$1000,103,FALSE),DeclMatrix!$A$2:$F$5,VLOOKUP('Enrollment Form'!$B123,DeclMatrix!$A$8:$B$12,2,FALSE),FALSE))))","v":""},{"$f":"IF($A123=\"\",\"\",IF(VLOOKUP($G123,$H$11:$DO$1000,106,FALSE)=\"\",\"No\",IF(LEFT(VLOOKUP($G123,$H$11:$DO$1000,106,FALSE),3)=\"The\",EN123,VLOOKUP(VLOOKUP($G123,$H$11:$DO$1000,106,FALSE),DeclMatrix!$A$2:$F$5,VLOOKUP('Enrollment Form'!$B123,DeclMatrix!$A$8:$B$12,2,FALSE),FALSE))))","v":""},{"$f":"IF($A123=\"\",\"\",IF(VLOOKUP($G123,$H$11:$DO$1000,109,FALSE)=\"\",\"No\",IF(LEFT(VLOOKUP($G123,$H$11:$DO$1000,109,FALSE),3)=\"The\",EO123,VLOOKUP(VLOOKUP($G123,$H$11:$DO$1000,109,FALSE),DeclMatrix!$A$2:$F$5,VLOOKUP('Enrollment Form'!$B123,DeclMatrix!$A$8:$B$12,2,FALSE),FALSE))))","v":""},{"$f":"IF($A123=\"\",\"\",IF(VLOOKUP($G123,$H$11:$DO$1000,112,FALSE)=\"\",\"No\",IF(LEFT(VLOOKUP($G123,$H$11:$DO$1000,112,FALSE),3)=\"The\",EP123,VLOOKUP(VLOOKUP($G123,$H$11:$DO$1000,112,FALSE),DeclMatrix!$A$2:$F$5,VLOOKUP('Enrollment Form'!$B123,DeclMatrix!$A$8:$B$12,2,FALSE),FALSE))))","v":""},null,null,null,null,null,null,null,null,"",null,"","","","","","","","","","","",""]
["",null,null,null,null,null,"","",null,null,null,null,null,null,null,null,null,null,null,null,null,null,null,null,null,null,"","","","",null,null,"",null,null,null,null,null,null,null,null,null,null,null,null,null,null,null,null,null,null,null,null,null,null,null,null,null,null,null,"","","",null,null,null,null,"","","","",null,null,null,null,null,null,null,null,null,null,null,null,null,null,null,null,null,null,null,null,null,null,null,null,null,null,null,null,null,null,null,null,null,null,null,null,null,null,null,null,null,null,null,null,null,null,null,null,null,null,null,null,"",{"$f":"IF($A124=\"\",\"\",IF(VLOOKUP($G124,$H$11:$DO$1000,103,FALSE)=\"\",\"No\",IF(LEFT(VLOOKUP($G124,$H$11:$DO$1000,103,FALSE),3)=\"The\",EM124,VLOOKUP(VLOOKUP($G124,$H$11:$DO$1000,103,FALSE),DeclMatrix!$A$2:$F$5,VLOOKUP('Enrollment Form'!$B124,DeclMatrix!$A$8:$B$12,2,FALSE),FALSE))))","v":""},{"$f":"IF($A124=\"\",\"\",IF(VLOOKUP($G124,$H$11:$DO$1000,106,FALSE)=\"\",\"No\",IF(LEFT(VLOOKUP($G124,$H$11:$DO$1000,106,FALSE),3)=\"The\",EN124,VLOOKUP(VLOOKUP($G124,$H$11:$DO$1000,106,FALSE),DeclMatrix!$A$2:$F$5,VLOOKUP('Enrollment Form'!$B124,DeclMatrix!$A$8:$B$12,2,FALSE),FALSE))))","v":""},{"$f":"IF($A124=\"\",\"\",IF(VLOOKUP($G124,$H$11:$DO$1000,109,FALSE)=\"\",\"No\",IF(LEFT(VLOOKUP($G124,$H$11:$DO$1000,109,FALSE),3)=\"The\",EO124,VLOOKUP(VLOOKUP($G124,$H$11:$DO$1000,109,FALSE),DeclMatrix!$A$2:$F$5,VLOOKUP('Enrollment Form'!$B124,DeclMatrix!$A$8:$B$12,2,FALSE),FALSE))))","v":""},{"$f":"IF($A124=\"\",\"\",IF(VLOOKUP($G124,$H$11:$DO$1000,112,FALSE)=\"\",\"No\",IF(LEFT(VLOOKUP($G124,$H$11:$DO$1000,112,FALSE),3)=\"The\",EP124,VLOOKUP(VLOOKUP($G124,$H$11:$DO$1000,112,FALSE),DeclMatrix!$A$2:$F$5,VLOOKUP('Enrollment Form'!$B124,DeclMatrix!$A$8:$B$12,2,FALSE),FALSE))))","v":""},null,null,null,null,null,null,null,null,"",null,"","","","","","","","","","","",""]
["",null,null,null,null,null,"","",null,null,null,null,null,null,null,null,null,null,null,null,null,null,null,null,null,null,"","","","",null,null,"",null,null,null,null,null,null,null,null,null,null,null,null,null,null,null,null,null,null,null,null,null,null,null,null,null,null,null,"","","",null,null,null,null,"","","","",null,null,null,null,null,null,null,null,null,null,null,null,null,null,null,null,null,null,null,null,null,null,null,null,null,null,null,null,null,null,null,null,null,null,null,null,null,null,null,null,null,null,null,null,null,null,null,null,null,null,null,null,"",{"$f":"IF($A125=\"\",\"\",IF(VLOOKUP($G125,$H$11:$DO$1000,103,FALSE)=\"\",\"No\",IF(LEFT(VLOOKUP($G125,$H$11:$DO$1000,103,FALSE),3)=\"The\",EM125,VLOOKUP(VLOOKUP($G125,$H$11:$DO$1000,103,FALSE),DeclMatrix!$A$2:$F$5,VLOOKUP('Enrollment Form'!$B125,DeclMatrix!$A$8:$B$12,2,FALSE),FALSE))))","v":""},{"$f":"IF($A125=\"\",\"\",IF(VLOOKUP($G125,$H$11:$DO$1000,106,FALSE)=\"\",\"No\",IF(LEFT(VLOOKUP($G125,$H$11:$DO$1000,106,FALSE),3)=\"The\",EN125,VLOOKUP(VLOOKUP($G125,$H$11:$DO$1000,106,FALSE),DeclMatrix!$A$2:$F$5,VLOOKUP('Enrollment Form'!$B125,DeclMatrix!$A$8:$B$12,2,FALSE),FALSE))))","v":""},{"$f":"IF($A125=\"\",\"\",IF(VLOOKUP($G125,$H$11:$DO$1000,109,FALSE)=\"\",\"No\",IF(LEFT(VLOOKUP($G125,$H$11:$DO$1000,109,FALSE),3)=\"The\",EO125,VLOOKUP(VLOOKUP($G125,$H$11:$DO$1000,109,FALSE),DeclMatrix!$A$2:$F$5,VLOOKUP('Enrollment Form'!$B125,DeclMatrix!$A$8:$B$12,2,FALSE),FALSE))))","v":""},{"$f":"IF($A125=\"\",\"\",IF(VLOOKUP($G125,$H$11:$DO$1000,112,FALSE)=\"\",\"No\",IF(LEFT(VLOOKUP($G125,$H$11:$DO$1000,112,FALSE),3)=\"The\",EP125,VLOOKUP(VLOOKUP($G125,$H$11:$DO$1000,112,FALSE),DeclMatrix!$A$2:$F$5,VLOOKUP('Enrollment Form'!$B125,DeclMatrix!$A$8:$B$12,2,FALSE),FALSE))))","v":""},null,null,null,null,null,null,null,null,"",null,"","","","","","","","","","","",""]
["",null,null,null,null,null,"","",null,null,null,null,null,null,null,null,null,null,null,null,null,null,null,null,null,null,"","","","",null,null,"",null,null,null,null,null,null,null,null,null,null,null,null,null,null,null,null,null,null,null,null,null,null,null,null,null,null,null,"","","",null,null,null,null,"","","","",null,null,null,null,null,null,null,null,null,null,null,null,null,null,null,null,null,null,null,null,null,null,null,null,null,null,null,null,null,null,null,null,null,null,null,null,null,null,null,null,null,null,null,null,null,null,null,null,null,null,null,null,"",{"$f":"IF($A126=\"\",\"\",IF(VLOOKUP($G126,$H$11:$DO$1000,103,FALSE)=\"\",\"No\",IF(LEFT(VLOOKUP($G126,$H$11:$DO$1000,103,FALSE),3)=\"The\",EM126,VLOOKUP(VLOOKUP($G126,$H$11:$DO$1000,103,FALSE),DeclMatrix!$A$2:$F$5,VLOOKUP('Enrollment Form'!$B126,DeclMatrix!$A$8:$B$12,2,FALSE),FALSE))))","v":""},{"$f":"IF($A126=\"\",\"\",IF(VLOOKUP($G126,$H$11:$DO$1000,106,FALSE)=\"\",\"No\",IF(LEFT(VLOOKUP($G126,$H$11:$DO$1000,106,FALSE),3)=\"The\",EN126,VLOOKUP(VLOOKUP($G126,$H$11:$DO$1000,106,FALSE),DeclMatrix!$A$2:$F$5,VLOOKUP('Enrollment Form'!$B126,DeclMatrix!$A$8:$B$12,2,FALSE),FALSE))))","v":""},{"$f":"IF($A126=\"\",\"\",IF(VLOOKUP($G126,$H$11:$DO$1000,109,FALSE)=\"\",\"No\",IF(LEFT(VLOOKUP($G126,$H$11:$DO$1000,109,FALSE),3)=\"The\",EO126,VLOOKUP(VLOOKUP($G126,$H$11:$DO$1000,109,FALSE),DeclMatrix!$A$2:$F$5,VLOOKUP('Enrollment Form'!$B126,DeclMatrix!$A$8:$B$12,2,FALSE),FALSE))))","v":""},{"$f":"IF($A126=\"\",\"\",IF(VLOOKUP($G126,$H$11:$DO$1000,112,FALSE)=\"\",\"No\",IF(LEFT(VLOOKUP($G126,$H$11:$DO$1000,112,FALSE),3)=\"The\",EP126,VLOOKUP(VLOOKUP($G126,$H$11:$DO$1000,112,FALSE),DeclMatrix!$A$2:$F$5,VLOOKUP('Enrollment Form'!$B126,DeclMatrix!$A$8:$B$12,2,FALSE),FALSE))))","v":""},null,null,null,null,null,null,null,null,"",null,"","","","","","","","","","","",""]
["",null,null,null,null,null,"","",null,null,null,null,null,null,null,null,null,null,null,null,null,null,null,null,null,null,"","","","",null,null,"",null,null,null,null,null,null,null,null,null,null,null,null,null,null,null,null,null,null,null,null,null,null,null,null,null,null,null,"","","",null,null,null,null,"","","","",null,null,null,null,null,null,null,null,null,null,null,null,null,null,null,null,null,null,null,null,null,null,null,null,null,null,null,null,null,null,null,null,null,null,null,null,null,null,null,null,null,null,null,null,null,null,null,null,null,null,null,null,"",{"$f":"IF($A127=\"\",\"\",IF(VLOOKUP($G127,$H$11:$DO$1000,103,FALSE)=\"\",\"No\",IF(LEFT(VLOOKUP($G127,$H$11:$DO$1000,103,FALSE),3)=\"The\",EM127,VLOOKUP(VLOOKUP($G127,$H$11:$DO$1000,103,FALSE),DeclMatrix!$A$2:$F$5,VLOOKUP('Enrollment Form'!$B127,DeclMatrix!$A$8:$B$12,2,FALSE),FALSE))))","v":""},{"$f":"IF($A127=\"\",\"\",IF(VLOOKUP($G127,$H$11:$DO$1000,106,FALSE)=\"\",\"No\",IF(LEFT(VLOOKUP($G127,$H$11:$DO$1000,106,FALSE),3)=\"The\",EN127,VLOOKUP(VLOOKUP($G127,$H$11:$DO$1000,106,FALSE),DeclMatrix!$A$2:$F$5,VLOOKUP('Enrollment Form'!$B127,DeclMatrix!$A$8:$B$12,2,FALSE),FALSE))))","v":""},{"$f":"IF($A127=\"\",\"\",IF(VLOOKUP($G127,$H$11:$DO$1000,109,FALSE)=\"\",\"No\",IF(LEFT(VLOOKUP($G127,$H$11:$DO$1000,109,FALSE),3)=\"The\",EO127,VLOOKUP(VLOOKUP($G127,$H$11:$DO$1000,109,FALSE),DeclMatrix!$A$2:$F$5,VLOOKUP('Enrollment Form'!$B127,DeclMatrix!$A$8:$B$12,2,FALSE),FALSE))))","v":""},{"$f":"IF($A127=\"\",\"\",IF(VLOOKUP($G127,$H$11:$DO$1000,112,FALSE)=\"\",\"No\",IF(LEFT(VLOOKUP($G127,$H$11:$DO$1000,112,FALSE),3)=\"The\",EP127,VLOOKUP(VLOOKUP($G127,$H$11:$DO$1000,112,FALSE),DeclMatrix!$A$2:$F$5,VLOOKUP('Enrollment Form'!$B127,DeclMatrix!$A$8:$B$12,2,FALSE),FALSE))))","v":""},null,null,null,null,null,null,null,null,"",null,"","","","","","","","","","","",""]
["",null,null,null,null,null,"","",null,null,null,null,null,null,null,null,null,null,null,null,null,null,null,null,null,null,"","","","",null,null,"",null,null,null,null,null,null,null,null,null,null,null,null,null,null,null,null,null,null,null,null,null,null,null,null,null,null,null,"","","",null,null,null,null,"","","","",null,null,null,null,null,null,null,null,null,null,null,null,null,null,null,null,null,null,null,null,null,null,null,null,null,null,null,null,null,null,null,null,null,null,null,null,null,null,null,null,null,null,null,null,null,null,null,null,null,null,null,null,"",{"$f":"IF($A128=\"\",\"\",IF(VLOOKUP($G128,$H$11:$DO$1000,103,FALSE)=\"\",\"No\",IF(LEFT(VLOOKUP($G128,$H$11:$DO$1000,103,FALSE),3)=\"The\",EM128,VLOOKUP(VLOOKUP($G128,$H$11:$DO$1000,103,FALSE),DeclMatrix!$A$2:$F$5,VLOOKUP('Enrollment Form'!$B128,DeclMatrix!$A$8:$B$12,2,FALSE),FALSE))))","v":""},{"$f":"IF($A128=\"\",\"\",IF(VLOOKUP($G128,$H$11:$DO$1000,106,FALSE)=\"\",\"No\",IF(LEFT(VLOOKUP($G128,$H$11:$DO$1000,106,FALSE),3)=\"The\",EN128,VLOOKUP(VLOOKUP($G128,$H$11:$DO$1000,106,FALSE),DeclMatrix!$A$2:$F$5,VLOOKUP('Enrollment Form'!$B128,DeclMatrix!$A$8:$B$12,2,FALSE),FALSE))))","v":""},{"$f":"IF($A128=\"\",\"\",IF(VLOOKUP($G128,$H$11:$DO$1000,109,FALSE)=\"\",\"No\",IF(LEFT(VLOOKUP($G128,$H$11:$DO$1000,109,FALSE),3)=\"The\",EO128,VLOOKUP(VLOOKUP($G128,$H$11:$DO$1000,109,FALSE),DeclMatrix!$A$2:$F$5,VLOOKUP('Enrollment Form'!$B128,DeclMatrix!$A$8:$B$12,2,FALSE),FALSE))))","v":""},{"$f":"IF($A128=\"\",\"\",IF(VLOOKUP($G128,$H$11:$DO$1000,112,FALSE)=\"\",\"No\",IF(LEFT(VLOOKUP($G128,$H$11:$DO$1000,112,FALSE),3)=\"The\",EP128,VLOOKUP(VLOOKUP($G128,$H$11:$DO$1000,112,FALSE),DeclMatrix!$A$2:$F$5,VLOOKUP('Enrollment Form'!$B128,DeclMatrix!$A$8:$B$12,2,FALSE),FALSE))))","v":""},null,null,null,null,null,null,null,null,"",null,"","","","","","","","","","","",""]
["",null,null,null,null,null,"","",null,null,null,null,null,null,null,null,null,null,null,null,null,null,null,null,null,null,"","","","",null,null,"",null,null,null,null,null,null,null,null,null,null,null,null,null,null,null,null,null,null,null,null,null,null,null,null,null,null,null,"","","",null,null,null,null,"","","","",null,null,null,null,null,null,null,null,null,null,null,null,null,null,null,null,null,null,null,null,null,null,null,null,null,null,null,null,null,null,null,null,null,null,null,null,null,null,null,null,null,null,null,null,null,null,null,null,null,null,null,null,"",{"$f":"IF($A129=\"\",\"\",IF(VLOOKUP($G129,$H$11:$DO$1000,103,FALSE)=\"\",\"No\",IF(LEFT(VLOOKUP($G129,$H$11:$DO$1000,103,FALSE),3)=\"The\",EM129,VLOOKUP(VLOOKUP($G129,$H$11:$DO$1000,103,FALSE),DeclMatrix!$A$2:$F$5,VLOOKUP('Enrollment Form'!$B129,DeclMatrix!$A$8:$B$12,2,FALSE),FALSE))))","v":""},{"$f":"IF($A129=\"\",\"\",IF(VLOOKUP($G129,$H$11:$DO$1000,106,FALSE)=\"\",\"No\",IF(LEFT(VLOOKUP($G129,$H$11:$DO$1000,106,FALSE),3)=\"The\",EN129,VLOOKUP(VLOOKUP($G129,$H$11:$DO$1000,106,FALSE),DeclMatrix!$A$2:$F$5,VLOOKUP('Enrollment Form'!$B129,DeclMatrix!$A$8:$B$12,2,FALSE),FALSE))))","v":""},{"$f":"IF($A129=\"\",\"\",IF(VLOOKUP($G129,$H$11:$DO$1000,109,FALSE)=\"\",\"No\",IF(LEFT(VLOOKUP($G129,$H$11:$DO$1000,109,FALSE),3)=\"The\",EO129,VLOOKUP(VLOOKUP($G129,$H$11:$DO$1000,109,FALSE),DeclMatrix!$A$2:$F$5,VLOOKUP('Enrollment Form'!$B129,DeclMatrix!$A$8:$B$12,2,FALSE),FALSE))))","v":""},{"$f":"IF($A129=\"\",\"\",IF(VLOOKUP($G129,$H$11:$DO$1000,112,FALSE)=\"\",\"No\",IF(LEFT(VLOOKUP($G129,$H$11:$DO$1000,112,FALSE),3)=\"The\",EP129,VLOOKUP(VLOOKUP($G129,$H$11:$DO$1000,112,FALSE),DeclMatrix!$A$2:$F$5,VLOOKUP('Enrollment Form'!$B129,DeclMatrix!$A$8:$B$12,2,FALSE),FALSE))))","v":""},null,null,null,null,null,null,null,null,"",null,"","","","","","","","","","","",""]
["",null,null,null,null,null,"","",null,null,null,null,null,null,null,null,null,null,null,null,null,null,null,null,null,null,"","","","",null,null,"",null,null,null,null,null,null,null,null,null,null,null,null,null,null,null,null,null,null,null,null,null,null,null,null,null,null,null,"","","",null,null,null,null,"","","","",null,null,null,null,null,null,null,null,null,null,null,null,null,null,null,null,null,null,null,null,null,null,null,null,null,null,null,null,null,null,null,null,null,null,null,null,null,null,null,null,null,null,null,null,null,null,null,null,null,null,null,null,"",{"$f":"IF($A130=\"\",\"\",IF(VLOOKUP($G130,$H$11:$DO$1000,103,FALSE)=\"\",\"No\",IF(LEFT(VLOOKUP($G130,$H$11:$DO$1000,103,FALSE),3)=\"The\",EM130,VLOOKUP(VLOOKUP($G130,$H$11:$DO$1000,103,FALSE),DeclMatrix!$A$2:$F$5,VLOOKUP('Enrollment Form'!$B130,DeclMatrix!$A$8:$B$12,2,FALSE),FALSE))))","v":""},{"$f":"IF($A130=\"\",\"\",IF(VLOOKUP($G130,$H$11:$DO$1000,106,FALSE)=\"\",\"No\",IF(LEFT(VLOOKUP($G130,$H$11:$DO$1000,106,FALSE),3)=\"The\",EN130,VLOOKUP(VLOOKUP($G130,$H$11:$DO$1000,106,FALSE),DeclMatrix!$A$2:$F$5,VLOOKUP('Enrollment Form'!$B130,DeclMatrix!$A$8:$B$12,2,FALSE),FALSE))))","v":""},{"$f":"IF($A130=\"\",\"\",IF(VLOOKUP($G130,$H$11:$DO$1000,109,FALSE)=\"\",\"No\",IF(LEFT(VLOOKUP($G130,$H$11:$DO$1000,109,FALSE),3)=\"The\",EO130,VLOOKUP(VLOOKUP($G130,$H$11:$DO$1000,109,FALSE),DeclMatrix!$A$2:$F$5,VLOOKUP('Enrollment Form'!$B130,DeclMatrix!$A$8:$B$12,2,FALSE),FALSE))))","v":""},{"$f":"IF($A130=\"\",\"\",IF(VLOOKUP($G130,$H$11:$DO$1000,112,FALSE)=\"\",\"No\",IF(LEFT(VLOOKUP($G130,$H$11:$DO$1000,112,FALSE),3)=\"The\",EP130,VLOOKUP(VLOOKUP($G130,$H$11:$DO$1000,112,FALSE),DeclMatrix!$A$2:$F$5,VLOOKUP('Enrollment Form'!$B130,DeclMatrix!$A$8:$B$12,2,FALSE),FALSE))))","v":""},null,null,null,null,null,null,null,null,"",null,"","","","","","","","","","","",""]
["",null,null,null,null,null,"","",null,null,null,null,null,null,null,null,null,null,null,null,null,null,null,null,null,null,"","","","",null,null,"",null,null,null,null,null,null,null,null,null,null,null,null,null,null,null,null,null,null,null,null,null,null,null,null,null,null,null,"","","",null,null,null,null,"","","","",null,null,null,null,null,null,null,null,null,null,null,null,null,null,null,null,null,null,null,null,null,null,null,null,null,null,null,null,null,null,null,null,null,null,null,null,null,null,null,null,null,null,null,null,null,null,null,null,null,null,null,null,"",{"$f":"IF($A131=\"\",\"\",IF(VLOOKUP($G131,$H$11:$DO$1000,103,FALSE)=\"\",\"No\",IF(LEFT(VLOOKUP($G131,$H$11:$DO$1000,103,FALSE),3)=\"The\",EM131,VLOOKUP(VLOOKUP($G131,$H$11:$DO$1000,103,FALSE),DeclMatrix!$A$2:$F$5,VLOOKUP('Enrollment Form'!$B131,DeclMatrix!$A$8:$B$12,2,FALSE),FALSE))))","v":""},{"$f":"IF($A131=\"\",\"\",IF(VLOOKUP($G131,$H$11:$DO$1000,106,FALSE)=\"\",\"No\",IF(LEFT(VLOOKUP($G131,$H$11:$DO$1000,106,FALSE),3)=\"The\",EN131,VLOOKUP(VLOOKUP($G131,$H$11:$DO$1000,106,FALSE),DeclMatrix!$A$2:$F$5,VLOOKUP('Enrollment Form'!$B131,DeclMatrix!$A$8:$B$12,2,FALSE),FALSE))))","v":""},{"$f":"IF($A131=\"\",\"\",IF(VLOOKUP($G131,$H$11:$DO$1000,109,FALSE)=\"\",\"No\",IF(LEFT(VLOOKUP($G131,$H$11:$DO$1000,109,FALSE),3)=\"The\",EO131,VLOOKUP(VLOOKUP($G131,$H$11:$DO$1000,109,FALSE),DeclMatrix!$A$2:$F$5,VLOOKUP('Enrollment Form'!$B131,DeclMatrix!$A$8:$B$12,2,FALSE),FALSE))))","v":""},{"$f":"IF($A131=\"\",\"\",IF(VLOOKUP($G131,$H$11:$DO$1000,112,FALSE)=\"\",\"No\",IF(LEFT(VLOOKUP($G131,$H$11:$DO$1000,112,FALSE),3)=\"The\",EP131,VLOOKUP(VLOOKUP($G131,$H$11:$DO$1000,112,FALSE),DeclMatrix!$A$2:$F$5,VLOOKUP('Enrollment Form'!$B131,DeclMatrix!$A$8:$B$12,2,FALSE),FALSE))))","v":""},null,null,null,null,null,null,null,null,"",null,"","","","","","","","","","","",""]
["",null,null,null,null,null,"","",null,null,null,null,null,null,null,null,null,null,null,null,null,null,null,null,null,null,"","","","",null,null,"",null,null,null,null,null,null,null,null,null,null,null,null,null,null,null,null,null,null,null,null,null,null,null,null,null,null,null,"","","",null,null,null,null,"","","","",null,null,null,null,null,null,null,null,null,null,null,null,null,null,null,null,null,null,null,null,null,null,null,null,null,null,null,null,null,null,null,null,null,null,null,null,null,null,null,null,null,null,null,null,null,null,null,null,null,null,null,null,"",{"$f":"IF($A132=\"\",\"\",IF(VLOOKUP($G132,$H$11:$DO$1000,103,FALSE)=\"\",\"No\",IF(LEFT(VLOOKUP($G132,$H$11:$DO$1000,103,FALSE),3)=\"The\",EM132,VLOOKUP(VLOOKUP($G132,$H$11:$DO$1000,103,FALSE),DeclMatrix!$A$2:$F$5,VLOOKUP('Enrollment Form'!$B132,DeclMatrix!$A$8:$B$12,2,FALSE),FALSE))))","v":""},{"$f":"IF($A132=\"\",\"\",IF(VLOOKUP($G132,$H$11:$DO$1000,106,FALSE)=\"\",\"No\",IF(LEFT(VLOOKUP($G132,$H$11:$DO$1000,106,FALSE),3)=\"The\",EN132,VLOOKUP(VLOOKUP($G132,$H$11:$DO$1000,106,FALSE),DeclMatrix!$A$2:$F$5,VLOOKUP('Enrollment Form'!$B132,DeclMatrix!$A$8:$B$12,2,FALSE),FALSE))))","v":""},{"$f":"IF($A132=\"\",\"\",IF(VLOOKUP($G132,$H$11:$DO$1000,109,FALSE)=\"\",\"No\",IF(LEFT(VLOOKUP($G132,$H$11:$DO$1000,109,FALSE),3)=\"The\",EO132,VLOOKUP(VLOOKUP($G132,$H$11:$DO$1000,109,FALSE),DeclMatrix!$A$2:$F$5,VLOOKUP('Enrollment Form'!$B132,DeclMatrix!$A$8:$B$12,2,FALSE),FALSE))))","v":""},{"$f":"IF($A132=\"\",\"\",IF(VLOOKUP($G132,$H$11:$DO$1000,112,FALSE)=\"\",\"No\",IF(LEFT(VLOOKUP($G132,$H$11:$DO$1000,112,FALSE),3)=\"The\",EP132,VLOOKUP(VLOOKUP($G132,$H$11:$DO$1000,112,FALSE),DeclMatrix!$A$2:$F$5,VLOOKUP('Enrollment Form'!$B132,DeclMatrix!$A$8:$B$12,2,FALSE),FALSE))))","v":""},null,null,null,null,null,null,null,null,"",null,"","","","","","","","","","","",""]
["",null,null,null,null,null,"","",null,null,null,null,null,null,null,null,null,null,null,null,null,null,null,null,null,null,"","","","",null,null,"",null,null,null,null,null,null,null,null,null,null,null,null,null,null,null,null,null,null,null,null,null,null,null,null,null,null,null,"","","",null,null,null,null,"","","","",null,null,null,null,null,null,null,null,null,null,null,null,null,null,null,null,null,null,null,null,null,null,null,null,null,null,null,null,null,null,null,null,null,null,null,null,null,null,null,null,null,null,null,null,null,null,null,null,null,null,null,null,"",{"$f":"IF($A133=\"\",\"\",IF(VLOOKUP($G133,$H$11:$DO$1000,103,FALSE)=\"\",\"No\",IF(LEFT(VLOOKUP($G133,$H$11:$DO$1000,103,FALSE),3)=\"The\",EM133,VLOOKUP(VLOOKUP($G133,$H$11:$DO$1000,103,FALSE),DeclMatrix!$A$2:$F$5,VLOOKUP('Enrollment Form'!$B133,DeclMatrix!$A$8:$B$12,2,FALSE),FALSE))))","v":""},{"$f":"IF($A133=\"\",\"\",IF(VLOOKUP($G133,$H$11:$DO$1000,106,FALSE)=\"\",\"No\",IF(LEFT(VLOOKUP($G133,$H$11:$DO$1000,106,FALSE),3)=\"The\",EN133,VLOOKUP(VLOOKUP($G133,$H$11:$DO$1000,106,FALSE),DeclMatrix!$A$2:$F$5,VLOOKUP('Enrollment Form'!$B133,DeclMatrix!$A$8:$B$12,2,FALSE),FALSE))))","v":""},{"$f":"IF($A133=\"\",\"\",IF(VLOOKUP($G133,$H$11:$DO$1000,109,FALSE)=\"\",\"No\",IF(LEFT(VLOOKUP($G133,$H$11:$DO$1000,109,FALSE),3)=\"The\",EO133,VLOOKUP(VLOOKUP($G133,$H$11:$DO$1000,109,FALSE),DeclMatrix!$A$2:$F$5,VLOOKUP('Enrollment Form'!$B133,DeclMatrix!$A$8:$B$12,2,FALSE),FALSE))))","v":""},{"$f":"IF($A133=\"\",\"\",IF(VLOOKUP($G133,$H$11:$DO$1000,112,FALSE)=\"\",\"No\",IF(LEFT(VLOOKUP($G133,$H$11:$DO$1000,112,FALSE),3)=\"The\",EP133,VLOOKUP(VLOOKUP($G133,$H$11:$DO$1000,112,FALSE),DeclMatrix!$A$2:$F$5,VLOOKUP('Enrollment Form'!$B133,DeclMatrix!$A$8:$B$12,2,FALSE),FALSE))))","v":""},null,null,null,null,null,null,null,null,"",null,"","","","","","","","","","","",""]
["",null,null,null,null,null,"","",null,null,null,null,null,null,null,null,null,null,null,null,null,null,null,null,null,null,"","","","",null,null,"",null,null,null,null,null,null,null,null,null,null,null,null,null,null,null,null,null,null,null,null,null,null,null,null,null,null,null,"","","",null,null,null,null,"","","","",null,null,null,null,null,null,null,null,null,null,null,null,null,null,null,null,null,null,null,null,null,null,null,null,null,null,null,null,null,null,null,null,null,null,null,null,null,null,null,null,null,null,null,null,null,null,null,null,null,null,null,null,"",{"$f":"IF($A134=\"\",\"\",IF(VLOOKUP($G134,$H$11:$DO$1000,103,FALSE)=\"\",\"No\",IF(LEFT(VLOOKUP($G134,$H$11:$DO$1000,103,FALSE),3)=\"The\",EM134,VLOOKUP(VLOOKUP($G134,$H$11:$DO$1000,103,FALSE),DeclMatrix!$A$2:$F$5,VLOOKUP('Enrollment Form'!$B134,DeclMatrix!$A$8:$B$12,2,FALSE),FALSE))))","v":""},{"$f":"IF($A134=\"\",\"\",IF(VLOOKUP($G134,$H$11:$DO$1000,106,FALSE)=\"\",\"No\",IF(LEFT(VLOOKUP($G134,$H$11:$DO$1000,106,FALSE),3)=\"The\",EN134,VLOOKUP(VLOOKUP($G134,$H$11:$DO$1000,106,FALSE),DeclMatrix!$A$2:$F$5,VLOOKUP('Enrollment Form'!$B134,DeclMatrix!$A$8:$B$12,2,FALSE),FALSE))))","v":""},{"$f":"IF($A134=\"\",\"\",IF(VLOOKUP($G134,$H$11:$DO$1000,109,FALSE)=\"\",\"No\",IF(LEFT(VLOOKUP($G134,$H$11:$DO$1000,109,FALSE),3)=\"The\",EO134,VLOOKUP(VLOOKUP($G134,$H$11:$DO$1000,109,FALSE),DeclMatrix!$A$2:$F$5,VLOOKUP('Enrollment Form'!$B134,DeclMatrix!$A$8:$B$12,2,FALSE),FALSE))))","v":""},{"$f":"IF($A134=\"\",\"\",IF(VLOOKUP($G134,$H$11:$DO$1000,112,FALSE)=\"\",\"No\",IF(LEFT(VLOOKUP($G134,$H$11:$DO$1000,112,FALSE),3)=\"The\",EP134,VLOOKUP(VLOOKUP($G134,$H$11:$DO$1000,112,FALSE),DeclMatrix!$A$2:$F$5,VLOOKUP('Enrollment Form'!$B134,DeclMatrix!$A$8:$B$12,2,FALSE),FALSE))))","v":""},null,null,null,null,null,null,null,null,"",null,"","","","","","","","","","","",""]
["",null,null,null,null,null,"","",null,null,null,null,null,null,null,null,null,null,null,null,null,null,null,null,null,null,"","","","",null,null,"",null,null,null,null,null,null,null,null,null,null,null,null,null,null,null,null,null,null,null,null,null,null,null,null,null,null,null,"","","",null,null,null,null,"","","","",null,null,null,null,null,null,null,null,null,null,null,null,null,null,null,null,null,null,null,null,null,null,null,null,null,null,null,null,null,null,null,null,null,null,null,null,null,null,null,null,null,null,null,null,null,null,null,null,null,null,null,null,"",{"$f":"IF($A135=\"\",\"\",IF(VLOOKUP($G135,$H$11:$DO$1000,103,FALSE)=\"\",\"No\",IF(LEFT(VLOOKUP($G135,$H$11:$DO$1000,103,FALSE),3)=\"The\",EM135,VLOOKUP(VLOOKUP($G135,$H$11:$DO$1000,103,FALSE),DeclMatrix!$A$2:$F$5,VLOOKUP('Enrollment Form'!$B135,DeclMatrix!$A$8:$B$12,2,FALSE),FALSE))))","v":""},{"$f":"IF($A135=\"\",\"\",IF(VLOOKUP($G135,$H$11:$DO$1000,106,FALSE)=\"\",\"No\",IF(LEFT(VLOOKUP($G135,$H$11:$DO$1000,106,FALSE),3)=\"The\",EN135,VLOOKUP(VLOOKUP($G135,$H$11:$DO$1000,106,FALSE),DeclMatrix!$A$2:$F$5,VLOOKUP('Enrollment Form'!$B135,DeclMatrix!$A$8:$B$12,2,FALSE),FALSE))))","v":""},{"$f":"IF($A135=\"\",\"\",IF(VLOOKUP($G135,$H$11:$DO$1000,109,FALSE)=\"\",\"No\",IF(LEFT(VLOOKUP($G135,$H$11:$DO$1000,109,FALSE),3)=\"The\",EO135,VLOOKUP(VLOOKUP($G135,$H$11:$DO$1000,109,FALSE),DeclMatrix!$A$2:$F$5,VLOOKUP('Enrollment Form'!$B135,DeclMatrix!$A$8:$B$12,2,FALSE),FALSE))))","v":""},{"$f":"IF($A135=\"\",\"\",IF(VLOOKUP($G135,$H$11:$DO$1000,112,FALSE)=\"\",\"No\",IF(LEFT(VLOOKUP($G135,$H$11:$DO$1000,112,FALSE),3)=\"The\",EP135,VLOOKUP(VLOOKUP($G135,$H$11:$DO$1000,112,FALSE),DeclMatrix!$A$2:$F$5,VLOOKUP('Enrollment Form'!$B135,DeclMatrix!$A$8:$B$12,2,FALSE),FALSE))))","v":""},null,null,null,null,null,null,null,null,"",null,"","","","","","","","","","","",""]
["",null,null,null,null,null,"","",null,null,null,null,null,null,null,null,null,null,null,null,null,null,null,null,null,null,"","","","",null,null,"",null,null,null,null,null,null,null,null,null,null,null,null,null,null,null,null,null,null,null,null,null,null,null,null,null,null,null,"","","",null,null,null,null,"","","","",null,null,null,null,null,null,null,null,null,null,null,null,null,null,null,null,null,null,null,null,null,null,null,null,null,null,null,null,null,null,null,null,null,null,null,null,null,null,null,null,null,null,null,null,null,null,null,null,null,null,null,null,"",{"$f":"IF($A136=\"\",\"\",IF(VLOOKUP($G136,$H$11:$DO$1000,103,FALSE)=\"\",\"No\",IF(LEFT(VLOOKUP($G136,$H$11:$DO$1000,103,FALSE),3)=\"The\",EM136,VLOOKUP(VLOOKUP($G136,$H$11:$DO$1000,103,FALSE),DeclMatrix!$A$2:$F$5,VLOOKUP('Enrollment Form'!$B136,DeclMatrix!$A$8:$B$12,2,FALSE),FALSE))))","v":""},{"$f":"IF($A136=\"\",\"\",IF(VLOOKUP($G136,$H$11:$DO$1000,106,FALSE)=\"\",\"No\",IF(LEFT(VLOOKUP($G136,$H$11:$DO$1000,106,FALSE),3)=\"The\",EN136,VLOOKUP(VLOOKUP($G136,$H$11:$DO$1000,106,FALSE),DeclMatrix!$A$2:$F$5,VLOOKUP('Enrollment Form'!$B136,DeclMatrix!$A$8:$B$12,2,FALSE),FALSE))))","v":""},{"$f":"IF($A136=\"\",\"\",IF(VLOOKUP($G136,$H$11:$DO$1000,109,FALSE)=\"\",\"No\",IF(LEFT(VLOOKUP($G136,$H$11:$DO$1000,109,FALSE),3)=\"The\",EO136,VLOOKUP(VLOOKUP($G136,$H$11:$DO$1000,109,FALSE),DeclMatrix!$A$2:$F$5,VLOOKUP('Enrollment Form'!$B136,DeclMatrix!$A$8:$B$12,2,FALSE),FALSE))))","v":""},{"$f":"IF($A136=\"\",\"\",IF(VLOOKUP($G136,$H$11:$DO$1000,112,FALSE)=\"\",\"No\",IF(LEFT(VLOOKUP($G136,$H$11:$DO$1000,112,FALSE),3)=\"The\",EP136,VLOOKUP(VLOOKUP($G136,$H$11:$DO$1000,112,FALSE),DeclMatrix!$A$2:$F$5,VLOOKUP('Enrollment Form'!$B136,DeclMatrix!$A$8:$B$12,2,FALSE),FALSE))))","v":""},null,null,null,null,null,null,null,null,"",null,"","","","","","","","","","","",""]
["",null,null,null,null,null,"","",null,null,null,null,null,null,null,null,null,null,null,null,null,null,null,null,null,null,"","","","",null,null,"",null,null,null,null,null,null,null,null,null,null,null,null,null,null,null,null,null,null,null,null,null,null,null,null,null,null,null,"","","",null,null,null,null,"","","","",null,null,null,null,null,null,null,null,null,null,null,null,null,null,null,null,null,null,null,null,null,null,null,null,null,null,null,null,null,null,null,null,null,null,null,null,null,null,null,null,null,null,null,null,null,null,null,null,null,null,null,null,"",{"$f":"IF($A137=\"\",\"\",IF(VLOOKUP($G137,$H$11:$DO$1000,103,FALSE)=\"\",\"No\",IF(LEFT(VLOOKUP($G137,$H$11:$DO$1000,103,FALSE),3)=\"The\",EM137,VLOOKUP(VLOOKUP($G137,$H$11:$DO$1000,103,FALSE),DeclMatrix!$A$2:$F$5,VLOOKUP('Enrollment Form'!$B137,DeclMatrix!$A$8:$B$12,2,FALSE),FALSE))))","v":""},{"$f":"IF($A137=\"\",\"\",IF(VLOOKUP($G137,$H$11:$DO$1000,106,FALSE)=\"\",\"No\",IF(LEFT(VLOOKUP($G137,$H$11:$DO$1000,106,FALSE),3)=\"The\",EN137,VLOOKUP(VLOOKUP($G137,$H$11:$DO$1000,106,FALSE),DeclMatrix!$A$2:$F$5,VLOOKUP('Enrollment Form'!$B137,DeclMatrix!$A$8:$B$12,2,FALSE),FALSE))))","v":""},{"$f":"IF($A137=\"\",\"\",IF(VLOOKUP($G137,$H$11:$DO$1000,109,FALSE)=\"\",\"No\",IF(LEFT(VLOOKUP($G137,$H$11:$DO$1000,109,FALSE),3)=\"The\",EO137,VLOOKUP(VLOOKUP($G137,$H$11:$DO$1000,109,FALSE),DeclMatrix!$A$2:$F$5,VLOOKUP('Enrollment Form'!$B137,DeclMatrix!$A$8:$B$12,2,FALSE),FALSE))))","v":""},{"$f":"IF($A137=\"\",\"\",IF(VLOOKUP($G137,$H$11:$DO$1000,112,FALSE)=\"\",\"No\",IF(LEFT(VLOOKUP($G137,$H$11:$DO$1000,112,FALSE),3)=\"The\",EP137,VLOOKUP(VLOOKUP($G137,$H$11:$DO$1000,112,FALSE),DeclMatrix!$A$2:$F$5,VLOOKUP('Enrollment Form'!$B137,DeclMatrix!$A$8:$B$12,2,FALSE),FALSE))))","v":""},null,null,null,null,null,null,null,null,"",null,"","","","","","","","","","","",""]
["",null,null,null,null,null,"","",null,null,null,null,null,null,null,null,null,null,null,null,null,null,null,null,null,null,"","","","",null,null,"",null,null,null,null,null,null,null,null,null,null,null,null,null,null,null,null,null,null,null,null,null,null,null,null,null,null,null,"","","",null,null,null,null,"","","","",null,null,null,null,null,null,null,null,null,null,null,null,null,null,null,null,null,null,null,null,null,null,null,null,null,null,null,null,null,null,null,null,null,null,null,null,null,null,null,null,null,null,null,null,null,null,null,null,null,null,null,null,"",{"$f":"IF($A138=\"\",\"\",IF(VLOOKUP($G138,$H$11:$DO$1000,103,FALSE)=\"\",\"No\",IF(LEFT(VLOOKUP($G138,$H$11:$DO$1000,103,FALSE),3)=\"The\",EM138,VLOOKUP(VLOOKUP($G138,$H$11:$DO$1000,103,FALSE),DeclMatrix!$A$2:$F$5,VLOOKUP('Enrollment Form'!$B138,DeclMatrix!$A$8:$B$12,2,FALSE),FALSE))))","v":""},{"$f":"IF($A138=\"\",\"\",IF(VLOOKUP($G138,$H$11:$DO$1000,106,FALSE)=\"\",\"No\",IF(LEFT(VLOOKUP($G138,$H$11:$DO$1000,106,FALSE),3)=\"The\",EN138,VLOOKUP(VLOOKUP($G138,$H$11:$DO$1000,106,FALSE),DeclMatrix!$A$2:$F$5,VLOOKUP('Enrollment Form'!$B138,DeclMatrix!$A$8:$B$12,2,FALSE),FALSE))))","v":""},{"$f":"IF($A138=\"\",\"\",IF(VLOOKUP($G138,$H$11:$DO$1000,109,FALSE)=\"\",\"No\",IF(LEFT(VLOOKUP($G138,$H$11:$DO$1000,109,FALSE),3)=\"The\",EO138,VLOOKUP(VLOOKUP($G138,$H$11:$DO$1000,109,FALSE),DeclMatrix!$A$2:$F$5,VLOOKUP('Enrollment Form'!$B138,DeclMatrix!$A$8:$B$12,2,FALSE),FALSE))))","v":""},{"$f":"IF($A138=\"\",\"\",IF(VLOOKUP($G138,$H$11:$DO$1000,112,FALSE)=\"\",\"No\",IF(LEFT(VLOOKUP($G138,$H$11:$DO$1000,112,FALSE),3)=\"The\",EP138,VLOOKUP(VLOOKUP($G138,$H$11:$DO$1000,112,FALSE),DeclMatrix!$A$2:$F$5,VLOOKUP('Enrollment Form'!$B138,DeclMatrix!$A$8:$B$12,2,FALSE),FALSE))))","v":""},null,null,null,null,null,null,null,null,"",null,"","","","","","","","","","","",""]
[{"$f":"IF(LEN($B139)>0,$C$2,\"\")","v":""},null,null,null,null,null,"","",null,null,null,null,null,null,null,null,null,null,null,null,null,null,null,null,null,null,"","","","",null,null,"",null,null,null,null,null,null,null,null,null,null,null,null,null,null,null,null,null,null,null,null,null,null,null,null,null,null,null,"","","",null,null,null,null,{"$f":"IF(AND($B139<>\"Subscriber\",$BO139=\"Yes\"),VLOOKUP($G139,$H$11:$Y$1000,15,FALSE),\"\")","v":""},{"$f":"IF(AND($B139<>\"Subscriber\",$BO139=\"Yes\"),VLOOKUP($G139,$H$11:$Y$1000,16,FALSE),\"\")","v":""},{"$f":"IF(AND($B139<>\"Subscriber\",$BO139=\"Yes\"),VLOOKUP($G139,$H$11:$Y$1000,17,FALSE),\"\")","v":""},{"$f":"IF(AND($B139<>\"Subscriber\",$BO139=\"Yes\"),VLOOKUP($G139,$H$11:$Y$1000,18,FALSE),\"\")","v":""},null,null,null,null,null,null,null,null,null,null,null,null,null,null,null,null,null,null,null,null,null,null,null,null,null,null,null,null,null,null,null,null,null,null,null,null,null,null,null,null,null,null,null,null,null,null,null,null,null,null,null,null,{"$f":"IF($A139=\"\",\"\",IF($B139=\"Subscriber\",$AG139,VLOOKUP($G139,$H$11:$AG$1000,26,FALSE)))","v":""},{"$f":"IF($A139=\"\",\"\",IF(VLOOKUP($G139,$H$11:$DO$1000,103,FALSE)=\"\",\"No\",IF(LEFT(VLOOKUP($G139,$H$11:$DO$1000,103,FALSE),3)=\"The\",EM139,VLOOKUP(VLOOKUP($G139,$H$11:$DO$1000,103,FALSE),DeclMatrix!$A$2:$F$5,VLOOKUP('Enrollment Form'!$B139,DeclMatrix!$A$8:$B$12,2,FALSE),FALSE))))","v":""},{"$f":"IF($A139=\"\",\"\",IF(VLOOKUP($G139,$H$11:$DO$1000,106,FALSE)=\"\",\"No\",IF(LEFT(VLOOKUP($G139,$H$11:$DO$1000,106,FALSE),3)=\"The\",EN139,VLOOKUP(VLOOKUP($G139,$H$11:$DO$1000,106,FALSE),DeclMatrix!$A$2:$F$5,VLOOKUP('Enrollment Form'!$B139,DeclMatrix!$A$8:$B$12,2,FALSE),FALSE))))","v":""},{"$f":"IF($A139=\"\",\"\",IF(VLOOKUP($G139,$H$11:$DO$1000,109,FALSE)=\"\",\"No\",IF(LEFT(VLOOKUP($G139,$H$11:$DO$1000,109,FALSE),3)=\"The\",EO139,VLOOKUP(VLOOKUP($G139,$H$11:$DO$1000,109,FALSE),DeclMatrix!$A$2:$F$5,VLOOKUP('Enrollment Form'!$B139,DeclMatrix!$A$8:$B$12,2,FALSE),FALSE))))","v":""},{"$f":"IF($A139=\"\",\"\",IF(VLOOKUP($G139,$H$11:$DO$1000,112,FALSE)=\"\",\"No\",IF(LEFT(VLOOKUP($G139,$H$11:$DO$1000,112,FALSE),3)=\"The\",EP139,VLOOKUP(VLOOKUP($G139,$H$11:$DO$1000,112,FALSE),DeclMatrix!$A$2:$F$5,VLOOKUP('Enrollment Form'!$B139,DeclMatrix!$A$8:$B$12,2,FALSE),FALSE))))","v":""},null,null,null,null,null,null,null,null,{"$f":"IF(A139<>\"\",\"1X\",\"\")","v":""},null,{"$f":"$B139&$G139&$J139","v":""},{"$f":"$B139&$G139&$L139","v":""},{"$f":"$B139&$G139&$N139","v":""},{"$f":"$B139&$G139&$O139","v":""},{"$f":"IF($A139=\"\",\"\",IF($B139=\"Subscriber\",\"No\",IF(OR($DF139=\"\",$DF139=\"No\"),\"No\",\"Yes\")))","v":""},{"$f":"IF($A139=\"\",\"\",IF($B139=\"Subscriber\",\"No\",IF(OR($DI139=\"\",$DI139=\"No\"),\"No\",\"Yes\")))","v":""},{"$f":"IF($A139=\"\",\"\",IF($B139=\"Subscriber\",\"No\",IF(OR($DL139=\"\",$DL139=\"No\"),\"No\",\"Yes\")))","v":""},{"$f":"IF($A139=\"\",\"\",IF($B139=\"Subscriber\",\"No\",IF(OR($DO139=\"\",$DO139=\"No\"),\"No\",\"Yes\")))","v":""},{"$f":"IF($A139=\"\",\"\",IF(AND($B139=\"Subscriber\",$I139<>\"Waive\",$I139<>\"\"),\"Yes\",IF(AND($B139<>\"Subscriber\",$BM139=\"Yes\"),VLOOKUP($G139,$H$11:$ET$1000,140,FALSE),IF(AND($C139=\"Enroll\",VLOOKUP($G140,$H$11:$ET$1000,103,FALSE)<>\"\"),VLOOKUP($DU139,$DV$2:$DW$3,2,FALSE),\"No\"))))","v":""},{"$f":"IF($A139=\"\",\"\",IF(AND($B139=\"Subscriber\",$K139<>\"Waive\",$K139<>\"\"),\"Yes\",IF(AND($B139<>\"Subscriber\",$BM139=\"Yes\"),VLOOKUP($G139,$H$11:$ET$1000,141,FALSE),IF(AND($C139=\"Enroll\",VLOOKUP($G140,$H$11:$ET$1000,106,FALSE)<>\"\"),VLOOKUP($DV139,$DV$2:$DW$3,2,FALSE),\"No\"))))","v":""},{"$f":"IF($A139=\"\",\"\",IF(AND($B139=\"Subscriber\",$M139<>\"Waive\",$M139<>\"\"),\"Yes\",IF(AND($B139<>\"Subscriber\",$BM139=\"Yes\"),VLOOKUP($G139,$H$11:$ET$1000,142,FALSE),IF(AND($C139=\"Enroll\",VLOOKUP($G140,$H$11:$ET$1000,109,FALSE)<>\"\"),VLOOKUP($DW139,$DV$2:$DW$3,2,FALSE),\"No\"))))","v":""},{"$f":"IF($A139=\"\",\"\",IF(AND($B139=\"Subscriber\",$O139<>\"Waive\",$O139<>\"\"),\"Yes\",IF(AND($B139<>\"Subscriber\",$BM139=\"Yes\"),VLOOKUP($G139,$H$11:$ET$1000,143,FALSE),IF(AND($C139=\"Enroll\",VLOOKUP($G140,$H$11:$ET$1000,112,FALSE)<>\"\"),VLOOKUP($DX139,$DV$2:$DW$3,2,FALSE),\"No\"))))","v":""}]
["",null,null,null,null,null,{"$f":"IF(A140=\"\",\"\",IF(AND(B140<>\"Subscriber\",B140<>\"\"),G139,\"\"))","v":""},{"$f":"IF(AND(B140=\"Subscriber\",G140<>\"\"),G140,\"\")","v":""},null,null,null,null,null,null,null,null,null,null,null,null,null,null,null,null,null,null,{"$f":"IF(AND($B140=\"Subscriber\",$Z140=\"Yes\"),V140,\"\")","v":""},{"$f":"IF(AND($B140=\"Subscriber\",$Z140=\"Yes\"),W140,\"\")","v":""},{"$f":"IF(AND($B140=\"Subscriber\",$Z140=\"Yes\"),X140,\"\")","v":""},{"$f":"IF(AND($B140=\"Subscriber\",$Z140=\"Yes\"),Y140,\"\")","v":""},null,null,{"$f":"IF(AND(B140=\"Subscriber\",AJ140<>\"\"),\"NS01 - Not Selected\",\"\")","v":""},null,null,null,null,null,null,null,null,null,null,null,null,null,null,null,null,null,null,null,null,null,null,null,null,null,null,null,{"$f":"IF(OR($B140=\"Subscriber\",$B140=\"\"),\"\",IF(OR(VLOOKUP($G140,$H:$BH,53,FALSE)=\"No\",VLOOKUP($G140,$H:$BH,53,FALSE)=\"\"),\"\",IF(VLOOKUP($G140,$H:$BH,53,FALSE)=\"Yes\",VLOOKUP(G140,$H:$BI,32,FALSE))))","v":""},{"$f":"IF(OR($B140=\"Subscriber\",$B140=\"\"),\"\",IF(OR(VLOOKUP($G140,$H:$BH,53,FALSE)=\"No\",VLOOKUP($G140,$H:$BH,53,FALSE)=\"\"),\"\",IF(VLOOKUP($G140,$H:$BH,53,FALSE)=\"Yes\",VLOOKUP(G140,$H:$BI,33,FALSE))))","v":""},{"$f":"IF(OR($B140=\"Subscriber\",$B140=\"\"),\"\",IF(OR(VLOOKUP($G140,$H:$BH,53,FALSE)=\"No\",VLOOKUP($G140,$H:$BH,53,FALSE)=\"\"),\"\",IF(VLOOKUP($G140,$H:$BH,53,FALSE)=\"Yes\",VLOOKUP(G140,$H:$BI,34,FALSE))))","v":""},null,null,null,null,"","","","",null,null,null,null,null,null,null,null,null,null,null,null,null,null,null,null,null,null,null,null,null,null,null,null,null,null,null,null,null,null,null,null,null,null,null,null,null,null,null,null,null,null,null,null,null,null,null,null,null,null,null,null,"",{"$f":"IF($A140=\"\",\"\",IF(VLOOKUP($G140,$H$11:$DO$1000,103,FALSE)=\"\",\"No\",IF(LEFT(VLOOKUP($G140,$H$11:$DO$1000,103,FALSE),3)=\"The\",EM140,VLOOKUP(VLOOKUP($G140,$H$11:$DO$1000,103,FALSE),DeclMatrix!$A$2:$F$5,VLOOKUP('Enrollment Form'!$B140,DeclMatrix!$A$8:$B$12,2,FALSE),FALSE))))","v":""},{"$f":"IF($A140=\"\",\"\",IF(VLOOKUP($G140,$H$11:$DO$1000,106,FALSE)=\"\",\"No\",IF(LEFT(VLOOKUP($G140,$H$11:$DO$1000,106,FALSE),3)=\"The\",EN140,VLOOKUP(VLOOKUP($G140,$H$11:$DO$1000,106,FALSE),DeclMatrix!$A$2:$F$5,VLOOKUP('Enrollment Form'!$B140,DeclMatrix!$A$8:$B$12,2,FALSE),FALSE))))","v":""},{"$f":"IF($A140=\"\",\"\",IF(VLOOKUP($G140,$H$11:$DO$1000,109,FALSE)=\"\",\"No\",IF(LEFT(VLOOKUP($G140,$H$11:$DO$1000,109,FALSE),3)=\"The\",EO140,VLOOKUP(VLOOKUP($G140,$H$11:$DO$1000,109,FALSE),DeclMatrix!$A$2:$F$5,VLOOKUP('Enrollment Form'!$B140,DeclMatrix!$A$8:$B$12,2,FALSE),FALSE))))","v":""},{"$f":"IF($A140=\"\",\"\",IF(VLOOKUP($G140,$H$11:$DO$1000,112,FALSE)=\"\",\"No\",IF(LEFT(VLOOKUP($G140,$H$11:$DO$1000,112,FALSE),3)=\"The\",EP140,VLOOKUP(VLOOKUP($G140,$H$11:$DO$1000,112,FALSE),DeclMatrix!$A$2:$F$5,VLOOKUP('Enrollment Form'!$B140,DeclMatrix!$A$8:$B$12,2,FALSE),FALSE))))","v":""},null,null,null,null,null,null,null,null,"",null,"","","","","","","","","","","",""]
["",null,null,null,null,null,"","",null,null,null,null,null,null,null,null,null,null,null,null,null,null,null,null,null,null,"","","","",null,null,"",null,null,null,null,null,null,null,null,null,null,null,null,null,null,null,null,null,null,null,null,null,null,null,null,null,null,null,"","","",null,null,null,null,"","","","",null,null,null,null,null,null,null,null,null,null,null,null,null,null,null,null,null,null,null,null,null,null,null,null,null,null,null,null,null,null,null,null,null,null,null,null,null,null,null,null,null,null,null,null,null,null,null,null,null,null,null,null,"",{"$f":"IF($A141=\"\",\"\",IF(VLOOKUP($G141,$H$11:$DO$1000,103,FALSE)=\"\",\"No\",IF(LEFT(VLOOKUP($G141,$H$11:$DO$1000,103,FALSE),3)=\"The\",EM141,VLOOKUP(VLOOKUP($G141,$H$11:$DO$1000,103,FALSE),DeclMatrix!$A$2:$F$5,VLOOKUP('Enrollment Form'!$B141,DeclMatrix!$A$8:$B$12,2,FALSE),FALSE))))","v":""},{"$f":"IF($A141=\"\",\"\",IF(VLOOKUP($G141,$H$11:$DO$1000,106,FALSE)=\"\",\"No\",IF(LEFT(VLOOKUP($G141,$H$11:$DO$1000,106,FALSE),3)=\"The\",EN141,VLOOKUP(VLOOKUP($G141,$H$11:$DO$1000,106,FALSE),DeclMatrix!$A$2:$F$5,VLOOKUP('Enrollment Form'!$B141,DeclMatrix!$A$8:$B$12,2,FALSE),FALSE))))","v":""},{"$f":"IF($A141=\"\",\"\",IF(VLOOKUP($G141,$H$11:$DO$1000,109,FALSE)=\"\",\"No\",IF(LEFT(VLOOKUP($G141,$H$11:$DO$1000,109,FALSE),3)=\"The\",EO141,VLOOKUP(VLOOKUP($G141,$H$11:$DO$1000,109,FALSE),DeclMatrix!$A$2:$F$5,VLOOKUP('Enrollment Form'!$B141,DeclMatrix!$A$8:$B$12,2,FALSE),FALSE))))","v":""},{"$f":"IF($A141=\"\",\"\",IF(VLOOKUP($G141,$H$11:$DO$1000,112,FALSE)=\"\",\"No\",IF(LEFT(VLOOKUP($G141,$H$11:$DO$1000,112,FALSE),3)=\"The\",EP141,VLOOKUP(VLOOKUP($G141,$H$11:$DO$1000,112,FALSE),DeclMatrix!$A$2:$F$5,VLOOKUP('Enrollment Form'!$B141,DeclMatrix!$A$8:$B$12,2,FALSE),FALSE))))","v":""},null,null,null,null,null,null,null,null,"",null,"","","","","","","","","","","",""]
["",null,null,null,null,null,"","",null,null,null,null,null,null,null,null,null,null,null,null,null,null,null,null,null,null,"","","","",null,null,"",null,null,null,null,null,null,null,null,null,null,null,null,null,null,null,null,null,null,null,null,null,null,null,null,null,null,null,"","","",null,null,null,null,"","","","",null,null,null,null,null,null,null,null,null,null,null,null,null,null,null,null,null,null,null,null,null,null,null,null,null,null,null,null,null,null,null,null,null,null,null,null,null,null,null,null,null,null,null,null,null,null,null,null,null,null,null,null,"",{"$f":"IF($A142=\"\",\"\",IF(VLOOKUP($G142,$H$11:$DO$1000,103,FALSE)=\"\",\"No\",IF(LEFT(VLOOKUP($G142,$H$11:$DO$1000,103,FALSE),3)=\"The\",EM142,VLOOKUP(VLOOKUP($G142,$H$11:$DO$1000,103,FALSE),DeclMatrix!$A$2:$F$5,VLOOKUP('Enrollment Form'!$B142,DeclMatrix!$A$8:$B$12,2,FALSE),FALSE))))","v":""},{"$f":"IF($A142=\"\",\"\",IF(VLOOKUP($G142,$H$11:$DO$1000,106,FALSE)=\"\",\"No\",IF(LEFT(VLOOKUP($G142,$H$11:$DO$1000,106,FALSE),3)=\"The\",EN142,VLOOKUP(VLOOKUP($G142,$H$11:$DO$1000,106,FALSE),DeclMatrix!$A$2:$F$5,VLOOKUP('Enrollment Form'!$B142,DeclMatrix!$A$8:$B$12,2,FALSE),FALSE))))","v":""},{"$f":"IF($A142=\"\",\"\",IF(VLOOKUP($G142,$H$11:$DO$1000,109,FALSE)=\"\",\"No\",IF(LEFT(VLOOKUP($G142,$H$11:$DO$1000,109,FALSE),3)=\"The\",EO142,VLOOKUP(VLOOKUP($G142,$H$11:$DO$1000,109,FALSE),DeclMatrix!$A$2:$F$5,VLOOKUP('Enrollment Form'!$B142,DeclMatrix!$A$8:$B$12,2,FALSE),FALSE))))","v":""},{"$f":"IF($A142=\"\",\"\",IF(VLOOKUP($G142,$H$11:$DO$1000,112,FALSE)=\"\",\"No\",IF(LEFT(VLOOKUP($G142,$H$11:$DO$1000,112,FALSE),3)=\"The\",EP142,VLOOKUP(VLOOKUP($G142,$H$11:$DO$1000,112,FALSE),DeclMatrix!$A$2:$F$5,VLOOKUP('Enrollment Form'!$B142,DeclMatrix!$A$8:$B$12,2,FALSE),FALSE))))","v":""},null,null,null,null,null,null,null,null,"",null,"","","","","","","","","","","",""]
["",null,null,null,null,null,"","",null,null,null,null,null,null,null,null,null,null,null,null,null,null,null,null,null,null,"","","","",null,null,"",null,null,null,null,null,null,null,null,null,null,null,null,null,null,null,null,null,null,null,null,null,null,null,null,null,null,null,"","","",null,null,null,null,"","","","",null,null,null,null,null,null,null,null,null,null,null,null,null,null,null,null,null,null,null,null,null,null,null,null,null,null,null,null,null,null,null,null,null,null,null,null,null,null,null,null,null,null,null,null,null,null,null,null,null,null,null,null,"",{"$f":"IF($A143=\"\",\"\",IF(VLOOKUP($G143,$H$11:$DO$1000,103,FALSE)=\"\",\"No\",IF(LEFT(VLOOKUP($G143,$H$11:$DO$1000,103,FALSE),3)=\"The\",EM143,VLOOKUP(VLOOKUP($G143,$H$11:$DO$1000,103,FALSE),DeclMatrix!$A$2:$F$5,VLOOKUP('Enrollment Form'!$B143,DeclMatrix!$A$8:$B$12,2,FALSE),FALSE))))","v":""},{"$f":"IF($A143=\"\",\"\",IF(VLOOKUP($G143,$H$11:$DO$1000,106,FALSE)=\"\",\"No\",IF(LEFT(VLOOKUP($G143,$H$11:$DO$1000,106,FALSE),3)=\"The\",EN143,VLOOKUP(VLOOKUP($G143,$H$11:$DO$1000,106,FALSE),DeclMatrix!$A$2:$F$5,VLOOKUP('Enrollment Form'!$B143,DeclMatrix!$A$8:$B$12,2,FALSE),FALSE))))","v":""},{"$f":"IF($A143=\"\",\"\",IF(VLOOKUP($G143,$H$11:$DO$1000,109,FALSE)=\"\",\"No\",IF(LEFT(VLOOKUP($G143,$H$11:$DO$1000,109,FALSE),3)=\"The\",EO143,VLOOKUP(VLOOKUP($G143,$H$11:$DO$1000,109,FALSE),DeclMatrix!$A$2:$F$5,VLOOKUP('Enrollment Form'!$B143,DeclMatrix!$A$8:$B$12,2,FALSE),FALSE))))","v":""},{"$f":"IF($A143=\"\",\"\",IF(VLOOKUP($G143,$H$11:$DO$1000,112,FALSE)=\"\",\"No\",IF(LEFT(VLOOKUP($G143,$H$11:$DO$1000,112,FALSE),3)=\"The\",EP143,VLOOKUP(VLOOKUP($G143,$H$11:$DO$1000,112,FALSE),DeclMatrix!$A$2:$F$5,VLOOKUP('Enrollment Form'!$B143,DeclMatrix!$A$8:$B$12,2,FALSE),FALSE))))","v":""},null,null,null,null,null,null,null,null,"",null,"","","","","","","","","","","",""]
["",null,null,null,null,null,"","",null,null,null,null,null,null,null,null,null,null,null,null,null,null,null,null,null,null,"","","","",null,null,"",null,null,null,null,null,null,null,null,null,null,null,null,null,null,null,null,null,null,null,null,null,null,null,null,null,null,null,"","","",null,null,null,null,"","","","",null,null,null,null,null,null,null,null,null,null,null,null,null,null,null,null,null,null,null,null,null,null,null,null,null,null,null,null,null,null,null,null,null,null,null,null,null,null,null,null,null,null,null,null,null,null,null,null,null,null,null,null,"",{"$f":"IF($A144=\"\",\"\",IF(VLOOKUP($G144,$H$11:$DO$1000,103,FALSE)=\"\",\"No\",IF(LEFT(VLOOKUP($G144,$H$11:$DO$1000,103,FALSE),3)=\"The\",EM144,VLOOKUP(VLOOKUP($G144,$H$11:$DO$1000,103,FALSE),DeclMatrix!$A$2:$F$5,VLOOKUP('Enrollment Form'!$B144,DeclMatrix!$A$8:$B$12,2,FALSE),FALSE))))","v":""},{"$f":"IF($A144=\"\",\"\",IF(VLOOKUP($G144,$H$11:$DO$1000,106,FALSE)=\"\",\"No\",IF(LEFT(VLOOKUP($G144,$H$11:$DO$1000,106,FALSE),3)=\"The\",EN144,VLOOKUP(VLOOKUP($G144,$H$11:$DO$1000,106,FALSE),DeclMatrix!$A$2:$F$5,VLOOKUP('Enrollment Form'!$B144,DeclMatrix!$A$8:$B$12,2,FALSE),FALSE))))","v":""},{"$f":"IF($A144=\"\",\"\",IF(VLOOKUP($G144,$H$11:$DO$1000,109,FALSE)=\"\",\"No\",IF(LEFT(VLOOKUP($G144,$H$11:$DO$1000,109,FALSE),3)=\"The\",EO144,VLOOKUP(VLOOKUP($G144,$H$11:$DO$1000,109,FALSE),DeclMatrix!$A$2:$F$5,VLOOKUP('Enrollment Form'!$B144,DeclMatrix!$A$8:$B$12,2,FALSE),FALSE))))","v":""},{"$f":"IF($A144=\"\",\"\",IF(VLOOKUP($G144,$H$11:$DO$1000,112,FALSE)=\"\",\"No\",IF(LEFT(VLOOKUP($G144,$H$11:$DO$1000,112,FALSE),3)=\"The\",EP144,VLOOKUP(VLOOKUP($G144,$H$11:$DO$1000,112,FALSE),DeclMatrix!$A$2:$F$5,VLOOKUP('Enrollment Form'!$B144,DeclMatrix!$A$8:$B$12,2,FALSE),FALSE))))","v":""},null,null,null,null,null,null,null,null,"",null,"","","","","","","","","","","",""]
["",null,null,null,null,null,"","",null,null,null,null,null,null,null,null,null,null,null,null,null,null,null,null,null,null,"","","","",null,null,"",null,null,null,null,null,null,null,null,null,null,null,null,null,null,null,null,null,null,null,null,null,null,null,null,null,null,null,"","","",null,null,null,null,"","","","",null,null,null,null,null,null,null,null,null,null,null,null,null,null,null,null,null,null,null,null,null,null,null,null,null,null,null,null,null,null,null,null,null,null,null,null,null,null,null,null,null,null,null,null,null,null,null,null,null,null,null,null,"",{"$f":"IF($A145=\"\",\"\",IF(VLOOKUP($G145,$H$11:$DO$1000,103,FALSE)=\"\",\"No\",IF(LEFT(VLOOKUP($G145,$H$11:$DO$1000,103,FALSE),3)=\"The\",EM145,VLOOKUP(VLOOKUP($G145,$H$11:$DO$1000,103,FALSE),DeclMatrix!$A$2:$F$5,VLOOKUP('Enrollment Form'!$B145,DeclMatrix!$A$8:$B$12,2,FALSE),FALSE))))","v":""},{"$f":"IF($A145=\"\",\"\",IF(VLOOKUP($G145,$H$11:$DO$1000,106,FALSE)=\"\",\"No\",IF(LEFT(VLOOKUP($G145,$H$11:$DO$1000,106,FALSE),3)=\"The\",EN145,VLOOKUP(VLOOKUP($G145,$H$11:$DO$1000,106,FALSE),DeclMatrix!$A$2:$F$5,VLOOKUP('Enrollment Form'!$B145,DeclMatrix!$A$8:$B$12,2,FALSE),FALSE))))","v":""},{"$f":"IF($A145=\"\",\"\",IF(VLOOKUP($G145,$H$11:$DO$1000,109,FALSE)=\"\",\"No\",IF(LEFT(VLOOKUP($G145,$H$11:$DO$1000,109,FALSE),3)=\"The\",EO145,VLOOKUP(VLOOKUP($G145,$H$11:$DO$1000,109,FALSE),DeclMatrix!$A$2:$F$5,VLOOKUP('Enrollment Form'!$B145,DeclMatrix!$A$8:$B$12,2,FALSE),FALSE))))","v":""},{"$f":"IF($A145=\"\",\"\",IF(VLOOKUP($G145,$H$11:$DO$1000,112,FALSE)=\"\",\"No\",IF(LEFT(VLOOKUP($G145,$H$11:$DO$1000,112,FALSE),3)=\"The\",EP145,VLOOKUP(VLOOKUP($G145,$H$11:$DO$1000,112,FALSE),DeclMatrix!$A$2:$F$5,VLOOKUP('Enrollment Form'!$B145,DeclMatrix!$A$8:$B$12,2,FALSE),FALSE))))","v":""},null,null,null,null,null,null,null,null,"",null,"","","","","","","","","","","",""]
["",null,null,null,null,null,"","",null,null,null,null,null,null,null,null,null,null,null,null,null,null,null,null,null,null,"","","","",null,null,"",null,null,null,null,null,null,null,null,null,null,null,null,null,null,null,null,null,null,null,null,null,null,null,null,null,null,null,"","","",null,null,null,null,"","","","",null,null,null,null,null,null,null,null,null,null,null,null,null,null,null,null,null,null,null,null,null,null,null,null,null,null,null,null,null,null,null,null,null,null,null,null,null,null,null,null,null,null,null,null,null,null,null,null,null,null,null,null,"",{"$f":"IF($A146=\"\",\"\",IF(VLOOKUP($G146,$H$11:$DO$1000,103,FALSE)=\"\",\"No\",IF(LEFT(VLOOKUP($G146,$H$11:$DO$1000,103,FALSE),3)=\"The\",EM146,VLOOKUP(VLOOKUP($G146,$H$11:$DO$1000,103,FALSE),DeclMatrix!$A$2:$F$5,VLOOKUP('Enrollment Form'!$B146,DeclMatrix!$A$8:$B$12,2,FALSE),FALSE))))","v":""},{"$f":"IF($A146=\"\",\"\",IF(VLOOKUP($G146,$H$11:$DO$1000,106,FALSE)=\"\",\"No\",IF(LEFT(VLOOKUP($G146,$H$11:$DO$1000,106,FALSE),3)=\"The\",EN146,VLOOKUP(VLOOKUP($G146,$H$11:$DO$1000,106,FALSE),DeclMatrix!$A$2:$F$5,VLOOKUP('Enrollment Form'!$B146,DeclMatrix!$A$8:$B$12,2,FALSE),FALSE))))","v":""},{"$f":"IF($A146=\"\",\"\",IF(VLOOKUP($G146,$H$11:$DO$1000,109,FALSE)=\"\",\"No\",IF(LEFT(VLOOKUP($G146,$H$11:$DO$1000,109,FALSE),3)=\"The\",EO146,VLOOKUP(VLOOKUP($G146,$H$11:$DO$1000,109,FALSE),DeclMatrix!$A$2:$F$5,VLOOKUP('Enrollment Form'!$B146,DeclMatrix!$A$8:$B$12,2,FALSE),FALSE))))","v":""},{"$f":"IF($A146=\"\",\"\",IF(VLOOKUP($G146,$H$11:$DO$1000,112,FALSE)=\"\",\"No\",IF(LEFT(VLOOKUP($G146,$H$11:$DO$1000,112,FALSE),3)=\"The\",EP146,VLOOKUP(VLOOKUP($G146,$H$11:$DO$1000,112,FALSE),DeclMatrix!$A$2:$F$5,VLOOKUP('Enrollment Form'!$B146,DeclMatrix!$A$8:$B$12,2,FALSE),FALSE))))","v":""},null,null,null,null,null,null,null,null,"",null,"","","","","","","","","","","",""]
["",null,null,null,null,null,"","",null,null,null,null,null,null,null,null,null,null,null,null,null,null,null,null,null,null,"","","","",null,null,"",null,null,null,null,null,null,null,null,null,null,null,null,null,null,null,null,null,null,null,null,null,null,null,null,null,null,null,"","","",null,null,null,null,"","","","",null,null,null,null,null,null,null,null,null,null,null,null,null,null,null,null,null,null,null,null,null,null,null,null,null,null,null,null,null,null,null,null,null,null,null,null,null,null,null,null,null,null,null,null,null,null,null,null,null,null,null,null,"",{"$f":"IF($A147=\"\",\"\",IF(VLOOKUP($G147,$H$11:$DO$1000,103,FALSE)=\"\",\"No\",IF(LEFT(VLOOKUP($G147,$H$11:$DO$1000,103,FALSE),3)=\"The\",EM147,VLOOKUP(VLOOKUP($G147,$H$11:$DO$1000,103,FALSE),DeclMatrix!$A$2:$F$5,VLOOKUP('Enrollment Form'!$B147,DeclMatrix!$A$8:$B$12,2,FALSE),FALSE))))","v":""},{"$f":"IF($A147=\"\",\"\",IF(VLOOKUP($G147,$H$11:$DO$1000,106,FALSE)=\"\",\"No\",IF(LEFT(VLOOKUP($G147,$H$11:$DO$1000,106,FALSE),3)=\"The\",EN147,VLOOKUP(VLOOKUP($G147,$H$11:$DO$1000,106,FALSE),DeclMatrix!$A$2:$F$5,VLOOKUP('Enrollment Form'!$B147,DeclMatrix!$A$8:$B$12,2,FALSE),FALSE))))","v":""},{"$f":"IF($A147=\"\",\"\",IF(VLOOKUP($G147,$H$11:$DO$1000,109,FALSE)=\"\",\"No\",IF(LEFT(VLOOKUP($G147,$H$11:$DO$1000,109,FALSE),3)=\"The\",EO147,VLOOKUP(VLOOKUP($G147,$H$11:$DO$1000,109,FALSE),DeclMatrix!$A$2:$F$5,VLOOKUP('Enrollment Form'!$B147,DeclMatrix!$A$8:$B$12,2,FALSE),FALSE))))","v":""},{"$f":"IF($A147=\"\",\"\",IF(VLOOKUP($G147,$H$11:$DO$1000,112,FALSE)=\"\",\"No\",IF(LEFT(VLOOKUP($G147,$H$11:$DO$1000,112,FALSE),3)=\"The\",EP147,VLOOKUP(VLOOKUP($G147,$H$11:$DO$1000,112,FALSE),DeclMatrix!$A$2:$F$5,VLOOKUP('Enrollment Form'!$B147,DeclMatrix!$A$8:$B$12,2,FALSE),FALSE))))","v":""},null,null,null,null,null,null,null,null,"",null,"","","","","","","","","","","",""]
["",null,null,null,null,null,"","",null,null,null,null,null,null,null,null,null,null,null,null,null,null,null,null,null,null,"","","","",null,null,"",null,null,null,null,null,null,null,null,null,null,null,null,null,null,null,null,null,null,null,null,null,null,null,null,null,null,null,"","","",null,null,null,null,"","","","",null,null,null,null,null,null,null,null,null,null,null,null,null,null,null,null,null,null,null,null,null,null,null,null,null,null,null,null,null,null,null,null,null,null,null,null,null,null,null,null,null,null,null,null,null,null,null,null,null,null,null,null,"",{"$f":"IF($A148=\"\",\"\",IF(VLOOKUP($G148,$H$11:$DO$1000,103,FALSE)=\"\",\"No\",IF(LEFT(VLOOKUP($G148,$H$11:$DO$1000,103,FALSE),3)=\"The\",EM148,VLOOKUP(VLOOKUP($G148,$H$11:$DO$1000,103,FALSE),DeclMatrix!$A$2:$F$5,VLOOKUP('Enrollment Form'!$B148,DeclMatrix!$A$8:$B$12,2,FALSE),FALSE))))","v":""},{"$f":"IF($A148=\"\",\"\",IF(VLOOKUP($G148,$H$11:$DO$1000,106,FALSE)=\"\",\"No\",IF(LEFT(VLOOKUP($G148,$H$11:$DO$1000,106,FALSE),3)=\"The\",EN148,VLOOKUP(VLOOKUP($G148,$H$11:$DO$1000,106,FALSE),DeclMatrix!$A$2:$F$5,VLOOKUP('Enrollment Form'!$B148,DeclMatrix!$A$8:$B$12,2,FALSE),FALSE))))","v":""},{"$f":"IF($A148=\"\",\"\",IF(VLOOKUP($G148,$H$11:$DO$1000,109,FALSE)=\"\",\"No\",IF(LEFT(VLOOKUP($G148,$H$11:$DO$1000,109,FALSE),3)=\"The\",EO148,VLOOKUP(VLOOKUP($G148,$H$11:$DO$1000,109,FALSE),DeclMatrix!$A$2:$F$5,VLOOKUP('Enrollment Form'!$B148,DeclMatrix!$A$8:$B$12,2,FALSE),FALSE))))","v":""},{"$f":"IF($A148=\"\",\"\",IF(VLOOKUP($G148,$H$11:$DO$1000,112,FALSE)=\"\",\"No\",IF(LEFT(VLOOKUP($G148,$H$11:$DO$1000,112,FALSE),3)=\"The\",EP148,VLOOKUP(VLOOKUP($G148,$H$11:$DO$1000,112,FALSE),DeclMatrix!$A$2:$F$5,VLOOKUP('Enrollment Form'!$B148,DeclMatrix!$A$8:$B$12,2,FALSE),FALSE))))","v":""},null,null,null,null,null,null,null,null,"",null,"","","","","","","","","","","",""]
["",null,null,null,null,null,"","",null,null,null,null,null,null,null,null,null,null,null,null,null,null,null,null,null,null,"","","","",null,null,"",null,null,null,null,null,null,null,null,null,null,null,null,null,null,null,null,null,null,null,null,null,null,null,null,null,null,null,"","","",null,null,null,null,"","","","",null,null,null,null,null,null,null,null,null,null,null,null,null,null,null,null,null,null,null,null,null,null,null,null,null,null,null,null,null,null,null,null,null,null,null,null,null,null,null,null,null,null,null,null,null,null,null,null,null,null,null,null,"",{"$f":"IF($A149=\"\",\"\",IF(VLOOKUP($G149,$H$11:$DO$1000,103,FALSE)=\"\",\"No\",IF(LEFT(VLOOKUP($G149,$H$11:$DO$1000,103,FALSE),3)=\"The\",EM149,VLOOKUP(VLOOKUP($G149,$H$11:$DO$1000,103,FALSE),DeclMatrix!$A$2:$F$5,VLOOKUP('Enrollment Form'!$B149,DeclMatrix!$A$8:$B$12,2,FALSE),FALSE))))","v":""},{"$f":"IF($A149=\"\",\"\",IF(VLOOKUP($G149,$H$11:$DO$1000,106,FALSE)=\"\",\"No\",IF(LEFT(VLOOKUP($G149,$H$11:$DO$1000,106,FALSE),3)=\"The\",EN149,VLOOKUP(VLOOKUP($G149,$H$11:$DO$1000,106,FALSE),DeclMatrix!$A$2:$F$5,VLOOKUP('Enrollment Form'!$B149,DeclMatrix!$A$8:$B$12,2,FALSE),FALSE))))","v":""},{"$f":"IF($A149=\"\",\"\",IF(VLOOKUP($G149,$H$11:$DO$1000,109,FALSE)=\"\",\"No\",IF(LEFT(VLOOKUP($G149,$H$11:$DO$1000,109,FALSE),3)=\"The\",EO149,VLOOKUP(VLOOKUP($G149,$H$11:$DO$1000,109,FALSE),DeclMatrix!$A$2:$F$5,VLOOKUP('Enrollment Form'!$B149,DeclMatrix!$A$8:$B$12,2,FALSE),FALSE))))","v":""},{"$f":"IF($A149=\"\",\"\",IF(VLOOKUP($G149,$H$11:$DO$1000,112,FALSE)=\"\",\"No\",IF(LEFT(VLOOKUP($G149,$H$11:$DO$1000,112,FALSE),3)=\"The\",EP149,VLOOKUP(VLOOKUP($G149,$H$11:$DO$1000,112,FALSE),DeclMatrix!$A$2:$F$5,VLOOKUP('Enrollment Form'!$B149,DeclMatrix!$A$8:$B$12,2,FALSE),FALSE))))","v":""},null,null,null,null,null,null,null,null,"",null,"","","","","","","","","","","",""]
["",null,null,null,null,null,"","",null,null,null,null,null,null,null,null,null,null,null,null,null,null,null,null,null,null,"","","","",null,null,"",null,null,null,null,null,null,null,null,null,null,null,null,null,null,null,null,null,null,null,null,null,null,null,null,null,null,null,"","","",null,null,null,null,"","","","",null,null,null,null,null,null,null,null,null,null,null,null,null,null,null,null,null,null,null,null,null,null,null,null,null,null,null,null,null,null,null,null,null,null,null,null,null,null,null,null,null,null,null,null,null,null,null,null,null,null,null,null,"",{"$f":"IF($A150=\"\",\"\",IF(VLOOKUP($G150,$H$11:$DO$1000,103,FALSE)=\"\",\"No\",IF(LEFT(VLOOKUP($G150,$H$11:$DO$1000,103,FALSE),3)=\"The\",EM150,VLOOKUP(VLOOKUP($G150,$H$11:$DO$1000,103,FALSE),DeclMatrix!$A$2:$F$5,VLOOKUP('Enrollment Form'!$B150,DeclMatrix!$A$8:$B$12,2,FALSE),FALSE))))","v":""},{"$f":"IF($A150=\"\",\"\",IF(VLOOKUP($G150,$H$11:$DO$1000,106,FALSE)=\"\",\"No\",IF(LEFT(VLOOKUP($G150,$H$11:$DO$1000,106,FALSE),3)=\"The\",EN150,VLOOKUP(VLOOKUP($G150,$H$11:$DO$1000,106,FALSE),DeclMatrix!$A$2:$F$5,VLOOKUP('Enrollment Form'!$B150,DeclMatrix!$A$8:$B$12,2,FALSE),FALSE))))","v":""},{"$f":"IF($A150=\"\",\"\",IF(VLOOKUP($G150,$H$11:$DO$1000,109,FALSE)=\"\",\"No\",IF(LEFT(VLOOKUP($G150,$H$11:$DO$1000,109,FALSE),3)=\"The\",EO150,VLOOKUP(VLOOKUP($G150,$H$11:$DO$1000,109,FALSE),DeclMatrix!$A$2:$F$5,VLOOKUP('Enrollment Form'!$B150,DeclMatrix!$A$8:$B$12,2,FALSE),FALSE))))","v":""},{"$f":"IF($A150=\"\",\"\",IF(VLOOKUP($G150,$H$11:$DO$1000,112,FALSE)=\"\",\"No\",IF(LEFT(VLOOKUP($G150,$H$11:$DO$1000,112,FALSE),3)=\"The\",EP150,VLOOKUP(VLOOKUP($G150,$H$11:$DO$1000,112,FALSE),DeclMatrix!$A$2:$F$5,VLOOKUP('Enrollment Form'!$B150,DeclMatrix!$A$8:$B$12,2,FALSE),FALSE))))","v":""},null,null,null,null,null,null,null,null,"",null,"","","","","","","","","","","",""]
["",null,null,null,null,null,"","",null,null,null,null,null,null,null,null,null,null,null,null,null,null,null,null,null,null,"","","","",null,null,"",null,null,null,null,null,null,null,null,null,null,null,null,null,null,null,null,null,null,null,null,null,null,null,null,null,null,null,"","","",null,null,null,null,"","","","",null,null,null,null,null,null,null,null,null,null,null,null,null,null,null,null,null,null,null,null,null,null,null,null,null,null,null,null,null,null,null,null,null,null,null,null,null,null,null,null,null,null,null,null,null,null,null,null,null,null,null,null,"",{"$f":"IF($A151=\"\",\"\",IF(VLOOKUP($G151,$H$11:$DO$1000,103,FALSE)=\"\",\"No\",IF(LEFT(VLOOKUP($G151,$H$11:$DO$1000,103,FALSE),3)=\"The\",EM151,VLOOKUP(VLOOKUP($G151,$H$11:$DO$1000,103,FALSE),DeclMatrix!$A$2:$F$5,VLOOKUP('Enrollment Form'!$B151,DeclMatrix!$A$8:$B$12,2,FALSE),FALSE))))","v":""},{"$f":"IF($A151=\"\",\"\",IF(VLOOKUP($G151,$H$11:$DO$1000,106,FALSE)=\"\",\"No\",IF(LEFT(VLOOKUP($G151,$H$11:$DO$1000,106,FALSE),3)=\"The\",EN151,VLOOKUP(VLOOKUP($G151,$H$11:$DO$1000,106,FALSE),DeclMatrix!$A$2:$F$5,VLOOKUP('Enrollment Form'!$B151,DeclMatrix!$A$8:$B$12,2,FALSE),FALSE))))","v":""},{"$f":"IF($A151=\"\",\"\",IF(VLOOKUP($G151,$H$11:$DO$1000,109,FALSE)=\"\",\"No\",IF(LEFT(VLOOKUP($G151,$H$11:$DO$1000,109,FALSE),3)=\"The\",EO151,VLOOKUP(VLOOKUP($G151,$H$11:$DO$1000,109,FALSE),DeclMatrix!$A$2:$F$5,VLOOKUP('Enrollment Form'!$B151,DeclMatrix!$A$8:$B$12,2,FALSE),FALSE))))","v":""},{"$f":"IF($A151=\"\",\"\",IF(VLOOKUP($G151,$H$11:$DO$1000,112,FALSE)=\"\",\"No\",IF(LEFT(VLOOKUP($G151,$H$11:$DO$1000,112,FALSE),3)=\"The\",EP151,VLOOKUP(VLOOKUP($G151,$H$11:$DO$1000,112,FALSE),DeclMatrix!$A$2:$F$5,VLOOKUP('Enrollment Form'!$B151,DeclMatrix!$A$8:$B$12,2,FALSE),FALSE))))","v":""},null,null,null,null,null,null,null,null,"",null,"","","","","","","","","","","",""]
["",null,null,null,null,null,"","",null,null,null,null,null,null,null,null,null,null,null,null,null,null,null,null,null,null,"","","","",null,null,"",null,null,null,null,null,null,null,null,null,null,null,null,null,null,null,null,null,null,null,null,null,null,null,null,null,null,null,"","","",null,null,null,null,"","","","",null,null,null,null,null,null,null,null,null,null,null,null,null,null,null,null,null,null,null,null,null,null,null,null,null,null,null,null,null,null,null,null,null,null,null,null,null,null,null,null,null,null,null,null,null,null,null,null,null,null,null,null,"",{"$f":"IF($A152=\"\",\"\",IF(VLOOKUP($G152,$H$11:$DO$1000,103,FALSE)=\"\",\"No\",IF(LEFT(VLOOKUP($G152,$H$11:$DO$1000,103,FALSE),3)=\"The\",EM152,VLOOKUP(VLOOKUP($G152,$H$11:$DO$1000,103,FALSE),DeclMatrix!$A$2:$F$5,VLOOKUP('Enrollment Form'!$B152,DeclMatrix!$A$8:$B$12,2,FALSE),FALSE))))","v":""},{"$f":"IF($A152=\"\",\"\",IF(VLOOKUP($G152,$H$11:$DO$1000,106,FALSE)=\"\",\"No\",IF(LEFT(VLOOKUP($G152,$H$11:$DO$1000,106,FALSE),3)=\"The\",EN152,VLOOKUP(VLOOKUP($G152,$H$11:$DO$1000,106,FALSE),DeclMatrix!$A$2:$F$5,VLOOKUP('Enrollment Form'!$B152,DeclMatrix!$A$8:$B$12,2,FALSE),FALSE))))","v":""},{"$f":"IF($A152=\"\",\"\",IF(VLOOKUP($G152,$H$11:$DO$1000,109,FALSE)=\"\",\"No\",IF(LEFT(VLOOKUP($G152,$H$11:$DO$1000,109,FALSE),3)=\"The\",EO152,VLOOKUP(VLOOKUP($G152,$H$11:$DO$1000,109,FALSE),DeclMatrix!$A$2:$F$5,VLOOKUP('Enrollment Form'!$B152,DeclMatrix!$A$8:$B$12,2,FALSE),FALSE))))","v":""},{"$f":"IF($A152=\"\",\"\",IF(VLOOKUP($G152,$H$11:$DO$1000,112,FALSE)=\"\",\"No\",IF(LEFT(VLOOKUP($G152,$H$11:$DO$1000,112,FALSE),3)=\"The\",EP152,VLOOKUP(VLOOKUP($G152,$H$11:$DO$1000,112,FALSE),DeclMatrix!$A$2:$F$5,VLOOKUP('Enrollment Form'!$B152,DeclMatrix!$A$8:$B$12,2,FALSE),FALSE))))","v":""},null,null,null,null,null,null,null,null,"",null,"","","","","","","","","","","",""]
["",null,null,null,null,null,"","",null,null,null,null,null,null,null,null,null,null,null,null,null,null,null,null,null,null,"","","","",null,null,"",null,null,null,null,null,null,null,null,null,null,null,null,null,null,null,null,null,null,null,null,null,null,null,null,null,null,null,"","","",null,null,null,null,"","","","",null,null,null,null,null,null,null,null,null,null,null,null,null,null,null,null,null,null,null,null,null,null,null,null,null,null,null,null,null,null,null,null,null,null,null,null,null,null,null,null,null,null,null,null,null,null,null,null,null,null,null,null,"",{"$f":"IF($A153=\"\",\"\",IF(VLOOKUP($G153,$H$11:$DO$1000,103,FALSE)=\"\",\"No\",IF(LEFT(VLOOKUP($G153,$H$11:$DO$1000,103,FALSE),3)=\"The\",EM153,VLOOKUP(VLOOKUP($G153,$H$11:$DO$1000,103,FALSE),DeclMatrix!$A$2:$F$5,VLOOKUP('Enrollment Form'!$B153,DeclMatrix!$A$8:$B$12,2,FALSE),FALSE))))","v":""},{"$f":"IF($A153=\"\",\"\",IF(VLOOKUP($G153,$H$11:$DO$1000,106,FALSE)=\"\",\"No\",IF(LEFT(VLOOKUP($G153,$H$11:$DO$1000,106,FALSE),3)=\"The\",EN153,VLOOKUP(VLOOKUP($G153,$H$11:$DO$1000,106,FALSE),DeclMatrix!$A$2:$F$5,VLOOKUP('Enrollment Form'!$B153,DeclMatrix!$A$8:$B$12,2,FALSE),FALSE))))","v":""},{"$f":"IF($A153=\"\",\"\",IF(VLOOKUP($G153,$H$11:$DO$1000,109,FALSE)=\"\",\"No\",IF(LEFT(VLOOKUP($G153,$H$11:$DO$1000,109,FALSE),3)=\"The\",EO153,VLOOKUP(VLOOKUP($G153,$H$11:$DO$1000,109,FALSE),DeclMatrix!$A$2:$F$5,VLOOKUP('Enrollment Form'!$B153,DeclMatrix!$A$8:$B$12,2,FALSE),FALSE))))","v":""},{"$f":"IF($A153=\"\",\"\",IF(VLOOKUP($G153,$H$11:$DO$1000,112,FALSE)=\"\",\"No\",IF(LEFT(VLOOKUP($G153,$H$11:$DO$1000,112,FALSE),3)=\"The\",EP153,VLOOKUP(VLOOKUP($G153,$H$11:$DO$1000,112,FALSE),DeclMatrix!$A$2:$F$5,VLOOKUP('Enrollment Form'!$B153,DeclMatrix!$A$8:$B$12,2,FALSE),FALSE))))","v":""},null,null,null,null,null,null,null,null,"",null,"","","","","","","","","","","",""]
["",null,null,null,null,null,"","",null,null,null,null,null,null,null,null,null,null,null,null,null,null,null,null,null,null,"","","","",null,null,"",null,null,null,null,null,null,null,null,null,null,null,null,null,null,null,null,null,null,null,null,null,null,null,null,null,null,null,"","","",null,null,null,null,"","","","",null,null,null,null,null,null,null,null,null,null,null,null,null,null,null,null,null,null,null,null,null,null,null,null,null,null,null,null,null,null,null,null,null,null,null,null,null,null,null,null,null,null,null,null,null,null,null,null,null,null,null,null,"",{"$f":"IF($A154=\"\",\"\",IF(VLOOKUP($G154,$H$11:$DO$1000,103,FALSE)=\"\",\"No\",IF(LEFT(VLOOKUP($G154,$H$11:$DO$1000,103,FALSE),3)=\"The\",EM154,VLOOKUP(VLOOKUP($G154,$H$11:$DO$1000,103,FALSE),DeclMatrix!$A$2:$F$5,VLOOKUP('Enrollment Form'!$B154,DeclMatrix!$A$8:$B$12,2,FALSE),FALSE))))","v":""},{"$f":"IF($A154=\"\",\"\",IF(VLOOKUP($G154,$H$11:$DO$1000,106,FALSE)=\"\",\"No\",IF(LEFT(VLOOKUP($G154,$H$11:$DO$1000,106,FALSE),3)=\"The\",EN154,VLOOKUP(VLOOKUP($G154,$H$11:$DO$1000,106,FALSE),DeclMatrix!$A$2:$F$5,VLOOKUP('Enrollment Form'!$B154,DeclMatrix!$A$8:$B$12,2,FALSE),FALSE))))","v":""},{"$f":"IF($A154=\"\",\"\",IF(VLOOKUP($G154,$H$11:$DO$1000,109,FALSE)=\"\",\"No\",IF(LEFT(VLOOKUP($G154,$H$11:$DO$1000,109,FALSE),3)=\"The\",EO154,VLOOKUP(VLOOKUP($G154,$H$11:$DO$1000,109,FALSE),DeclMatrix!$A$2:$F$5,VLOOKUP('Enrollment Form'!$B154,DeclMatrix!$A$8:$B$12,2,FALSE),FALSE))))","v":""},{"$f":"IF($A154=\"\",\"\",IF(VLOOKUP($G154,$H$11:$DO$1000,112,FALSE)=\"\",\"No\",IF(LEFT(VLOOKUP($G154,$H$11:$DO$1000,112,FALSE),3)=\"The\",EP154,VLOOKUP(VLOOKUP($G154,$H$11:$DO$1000,112,FALSE),DeclMatrix!$A$2:$F$5,VLOOKUP('Enrollment Form'!$B154,DeclMatrix!$A$8:$B$12,2,FALSE),FALSE))))","v":""},null,null,null,null,null,null,null,null,"",null,"","","","","","","","","","","",""]
["",null,null,null,null,null,"","",null,null,null,null,null,null,null,null,null,null,null,null,null,null,null,null,null,null,"","","","",null,null,"",null,null,null,null,null,null,null,null,null,null,null,null,null,null,null,null,null,null,null,null,null,null,null,null,null,null,null,"","","",null,null,null,null,"","","","",null,null,null,null,null,null,null,null,null,null,null,null,null,null,null,null,null,null,null,null,null,null,null,null,null,null,null,null,null,null,null,null,null,null,null,null,null,null,null,null,null,null,null,null,null,null,null,null,null,null,null,null,"",{"$f":"IF($A155=\"\",\"\",IF(VLOOKUP($G155,$H$11:$DO$1000,103,FALSE)=\"\",\"No\",IF(LEFT(VLOOKUP($G155,$H$11:$DO$1000,103,FALSE),3)=\"The\",EM155,VLOOKUP(VLOOKUP($G155,$H$11:$DO$1000,103,FALSE),DeclMatrix!$A$2:$F$5,VLOOKUP('Enrollment Form'!$B155,DeclMatrix!$A$8:$B$12,2,FALSE),FALSE))))","v":""},{"$f":"IF($A155=\"\",\"\",IF(VLOOKUP($G155,$H$11:$DO$1000,106,FALSE)=\"\",\"No\",IF(LEFT(VLOOKUP($G155,$H$11:$DO$1000,106,FALSE),3)=\"The\",EN155,VLOOKUP(VLOOKUP($G155,$H$11:$DO$1000,106,FALSE),DeclMatrix!$A$2:$F$5,VLOOKUP('Enrollment Form'!$B155,DeclMatrix!$A$8:$B$12,2,FALSE),FALSE))))","v":""},{"$f":"IF($A155=\"\",\"\",IF(VLOOKUP($G155,$H$11:$DO$1000,109,FALSE)=\"\",\"No\",IF(LEFT(VLOOKUP($G155,$H$11:$DO$1000,109,FALSE),3)=\"The\",EO155,VLOOKUP(VLOOKUP($G155,$H$11:$DO$1000,109,FALSE),DeclMatrix!$A$2:$F$5,VLOOKUP('Enrollment Form'!$B155,DeclMatrix!$A$8:$B$12,2,FALSE),FALSE))))","v":""},{"$f":"IF($A155=\"\",\"\",IF(VLOOKUP($G155,$H$11:$DO$1000,112,FALSE)=\"\",\"No\",IF(LEFT(VLOOKUP($G155,$H$11:$DO$1000,112,FALSE),3)=\"The\",EP155,VLOOKUP(VLOOKUP($G155,$H$11:$DO$1000,112,FALSE),DeclMatrix!$A$2:$F$5,VLOOKUP('Enrollment Form'!$B155,DeclMatrix!$A$8:$B$12,2,FALSE),FALSE))))","v":""},null,null,null,null,null,null,null,null,"",null,"","","","","","","","","","","",""]
["",null,null,null,null,null,"","",null,null,null,null,null,null,null,null,null,null,null,null,null,null,null,null,null,null,"","","","",null,null,"",null,null,null,null,null,null,null,null,null,null,null,null,null,null,null,null,null,null,null,null,null,null,null,null,null,null,null,"","","",null,null,null,null,"","","","",null,null,null,null,null,null,null,null,null,null,null,null,null,null,null,null,null,null,null,null,null,null,null,null,null,null,null,null,null,null,null,null,null,null,null,null,null,null,null,null,null,null,null,null,null,null,null,null,null,null,null,null,"",{"$f":"IF($A156=\"\",\"\",IF(VLOOKUP($G156,$H$11:$DO$1000,103,FALSE)=\"\",\"No\",IF(LEFT(VLOOKUP($G156,$H$11:$DO$1000,103,FALSE),3)=\"The\",EM156,VLOOKUP(VLOOKUP($G156,$H$11:$DO$1000,103,FALSE),DeclMatrix!$A$2:$F$5,VLOOKUP('Enrollment Form'!$B156,DeclMatrix!$A$8:$B$12,2,FALSE),FALSE))))","v":""},{"$f":"IF($A156=\"\",\"\",IF(VLOOKUP($G156,$H$11:$DO$1000,106,FALSE)=\"\",\"No\",IF(LEFT(VLOOKUP($G156,$H$11:$DO$1000,106,FALSE),3)=\"The\",EN156,VLOOKUP(VLOOKUP($G156,$H$11:$DO$1000,106,FALSE),DeclMatrix!$A$2:$F$5,VLOOKUP('Enrollment Form'!$B156,DeclMatrix!$A$8:$B$12,2,FALSE),FALSE))))","v":""},{"$f":"IF($A156=\"\",\"\",IF(VLOOKUP($G156,$H$11:$DO$1000,109,FALSE)=\"\",\"No\",IF(LEFT(VLOOKUP($G156,$H$11:$DO$1000,109,FALSE),3)=\"The\",EO156,VLOOKUP(VLOOKUP($G156,$H$11:$DO$1000,109,FALSE),DeclMatrix!$A$2:$F$5,VLOOKUP('Enrollment Form'!$B156,DeclMatrix!$A$8:$B$12,2,FALSE),FALSE))))","v":""},{"$f":"IF($A156=\"\",\"\",IF(VLOOKUP($G156,$H$11:$DO$1000,112,FALSE)=\"\",\"No\",IF(LEFT(VLOOKUP($G156,$H$11:$DO$1000,112,FALSE),3)=\"The\",EP156,VLOOKUP(VLOOKUP($G156,$H$11:$DO$1000,112,FALSE),DeclMatrix!$A$2:$F$5,VLOOKUP('Enrollment Form'!$B156,DeclMatrix!$A$8:$B$12,2,FALSE),FALSE))))","v":""},null,null,null,null,null,null,null,null,"",null,"","","","","","","","","","","",""]
["",null,null,null,null,null,"","",null,null,null,null,null,null,null,null,null,null,null,null,null,null,null,null,null,null,"","","","",null,null,"",null,null,null,null,null,null,null,null,null,null,null,null,null,null,null,null,null,null,null,null,null,null,null,null,null,null,null,"","","",null,null,null,null,"","","","",null,null,null,null,null,null,null,null,null,null,null,null,null,null,null,null,null,null,null,null,null,null,null,null,null,null,null,null,null,null,null,null,null,null,null,null,null,null,null,null,null,null,null,null,null,null,null,null,null,null,null,null,"",{"$f":"IF($A157=\"\",\"\",IF(VLOOKUP($G157,$H$11:$DO$1000,103,FALSE)=\"\",\"No\",IF(LEFT(VLOOKUP($G157,$H$11:$DO$1000,103,FALSE),3)=\"The\",EM157,VLOOKUP(VLOOKUP($G157,$H$11:$DO$1000,103,FALSE),DeclMatrix!$A$2:$F$5,VLOOKUP('Enrollment Form'!$B157,DeclMatrix!$A$8:$B$12,2,FALSE),FALSE))))","v":""},{"$f":"IF($A157=\"\",\"\",IF(VLOOKUP($G157,$H$11:$DO$1000,106,FALSE)=\"\",\"No\",IF(LEFT(VLOOKUP($G157,$H$11:$DO$1000,106,FALSE),3)=\"The\",EN157,VLOOKUP(VLOOKUP($G157,$H$11:$DO$1000,106,FALSE),DeclMatrix!$A$2:$F$5,VLOOKUP('Enrollment Form'!$B157,DeclMatrix!$A$8:$B$12,2,FALSE),FALSE))))","v":""},{"$f":"IF($A157=\"\",\"\",IF(VLOOKUP($G157,$H$11:$DO$1000,109,FALSE)=\"\",\"No\",IF(LEFT(VLOOKUP($G157,$H$11:$DO$1000,109,FALSE),3)=\"The\",EO157,VLOOKUP(VLOOKUP($G157,$H$11:$DO$1000,109,FALSE),DeclMatrix!$A$2:$F$5,VLOOKUP('Enrollment Form'!$B157,DeclMatrix!$A$8:$B$12,2,FALSE),FALSE))))","v":""},{"$f":"IF($A157=\"\",\"\",IF(VLOOKUP($G157,$H$11:$DO$1000,112,FALSE)=\"\",\"No\",IF(LEFT(VLOOKUP($G157,$H$11:$DO$1000,112,FALSE),3)=\"The\",EP157,VLOOKUP(VLOOKUP($G157,$H$11:$DO$1000,112,FALSE),DeclMatrix!$A$2:$F$5,VLOOKUP('Enrollment Form'!$B157,DeclMatrix!$A$8:$B$12,2,FALSE),FALSE))))","v":""},null,null,null,null,null,null,null,null,"",null,"","","","","","","","","","","",""]
["",null,null,null,null,null,"","",null,null,null,null,null,null,null,null,null,null,null,null,null,null,null,null,null,null,"","","","",null,null,"",null,null,null,null,null,null,null,null,null,null,null,null,null,null,null,null,null,null,null,null,null,null,null,null,null,null,null,"","","",null,null,null,null,"","","","",null,null,null,null,null,null,null,null,null,null,null,null,null,null,null,null,null,null,null,null,null,null,null,null,null,null,null,null,null,null,null,null,null,null,null,null,null,null,null,null,null,null,null,null,null,null,null,null,null,null,null,null,"",{"$f":"IF($A158=\"\",\"\",IF(VLOOKUP($G158,$H$11:$DO$1000,103,FALSE)=\"\",\"No\",IF(LEFT(VLOOKUP($G158,$H$11:$DO$1000,103,FALSE),3)=\"The\",EM158,VLOOKUP(VLOOKUP($G158,$H$11:$DO$1000,103,FALSE),DeclMatrix!$A$2:$F$5,VLOOKUP('Enrollment Form'!$B158,DeclMatrix!$A$8:$B$12,2,FALSE),FALSE))))","v":""},{"$f":"IF($A158=\"\",\"\",IF(VLOOKUP($G158,$H$11:$DO$1000,106,FALSE)=\"\",\"No\",IF(LEFT(VLOOKUP($G158,$H$11:$DO$1000,106,FALSE),3)=\"The\",EN158,VLOOKUP(VLOOKUP($G158,$H$11:$DO$1000,106,FALSE),DeclMatrix!$A$2:$F$5,VLOOKUP('Enrollment Form'!$B158,DeclMatrix!$A$8:$B$12,2,FALSE),FALSE))))","v":""},{"$f":"IF($A158=\"\",\"\",IF(VLOOKUP($G158,$H$11:$DO$1000,109,FALSE)=\"\",\"No\",IF(LEFT(VLOOKUP($G158,$H$11:$DO$1000,109,FALSE),3)=\"The\",EO158,VLOOKUP(VLOOKUP($G158,$H$11:$DO$1000,109,FALSE),DeclMatrix!$A$2:$F$5,VLOOKUP('Enrollment Form'!$B158,DeclMatrix!$A$8:$B$12,2,FALSE),FALSE))))","v":""},{"$f":"IF($A158=\"\",\"\",IF(VLOOKUP($G158,$H$11:$DO$1000,112,FALSE)=\"\",\"No\",IF(LEFT(VLOOKUP($G158,$H$11:$DO$1000,112,FALSE),3)=\"The\",EP158,VLOOKUP(VLOOKUP($G158,$H$11:$DO$1000,112,FALSE),DeclMatrix!$A$2:$F$5,VLOOKUP('Enrollment Form'!$B158,DeclMatrix!$A$8:$B$12,2,FALSE),FALSE))))","v":""},null,null,null,null,null,null,null,null,"",null,"","","","","","","","","","","",""]
["",null,null,null,null,null,"","",null,null,null,null,null,null,null,null,null,null,null,null,null,null,null,null,null,null,"","","","",null,null,"",null,null,null,null,null,null,null,null,null,null,null,null,null,null,null,null,null,null,null,null,null,null,null,null,null,null,null,"","","",null,null,null,null,"","","","",null,null,null,null,null,null,null,null,null,null,null,null,null,null,null,null,null,null,null,null,null,null,null,null,null,null,null,null,null,null,null,null,null,null,null,null,null,null,null,null,null,null,null,null,null,null,null,null,null,null,null,null,"",{"$f":"IF($A159=\"\",\"\",IF(VLOOKUP($G159,$H$11:$DO$1000,103,FALSE)=\"\",\"No\",IF(LEFT(VLOOKUP($G159,$H$11:$DO$1000,103,FALSE),3)=\"The\",EM159,VLOOKUP(VLOOKUP($G159,$H$11:$DO$1000,103,FALSE),DeclMatrix!$A$2:$F$5,VLOOKUP('Enrollment Form'!$B159,DeclMatrix!$A$8:$B$12,2,FALSE),FALSE))))","v":""},{"$f":"IF($A159=\"\",\"\",IF(VLOOKUP($G159,$H$11:$DO$1000,106,FALSE)=\"\",\"No\",IF(LEFT(VLOOKUP($G159,$H$11:$DO$1000,106,FALSE),3)=\"The\",EN159,VLOOKUP(VLOOKUP($G159,$H$11:$DO$1000,106,FALSE),DeclMatrix!$A$2:$F$5,VLOOKUP('Enrollment Form'!$B159,DeclMatrix!$A$8:$B$12,2,FALSE),FALSE))))","v":""},{"$f":"IF($A159=\"\",\"\",IF(VLOOKUP($G159,$H$11:$DO$1000,109,FALSE)=\"\",\"No\",IF(LEFT(VLOOKUP($G159,$H$11:$DO$1000,109,FALSE),3)=\"The\",EO159,VLOOKUP(VLOOKUP($G159,$H$11:$DO$1000,109,FALSE),DeclMatrix!$A$2:$F$5,VLOOKUP('Enrollment Form'!$B159,DeclMatrix!$A$8:$B$12,2,FALSE),FALSE))))","v":""},{"$f":"IF($A159=\"\",\"\",IF(VLOOKUP($G159,$H$11:$DO$1000,112,FALSE)=\"\",\"No\",IF(LEFT(VLOOKUP($G159,$H$11:$DO$1000,112,FALSE),3)=\"The\",EP159,VLOOKUP(VLOOKUP($G159,$H$11:$DO$1000,112,FALSE),DeclMatrix!$A$2:$F$5,VLOOKUP('Enrollment Form'!$B159,DeclMatrix!$A$8:$B$12,2,FALSE),FALSE))))","v":""},null,null,null,null,null,null,null,null,"",null,"","","","","","","","","","","",""]
["",null,null,null,null,null,"","",null,null,null,null,null,null,null,null,null,null,null,null,null,null,null,null,null,null,"","","","",null,null,"",null,null,null,null,null,null,null,null,null,null,null,null,null,null,null,null,null,null,null,null,null,null,null,null,null,null,null,"","","",null,null,null,null,"","","","",null,null,null,null,null,null,null,null,null,null,null,null,null,null,null,null,null,null,null,null,null,null,null,null,null,null,null,null,null,null,null,null,null,null,null,null,null,null,null,null,null,null,null,null,null,null,null,null,null,null,null,null,"",{"$f":"IF($A160=\"\",\"\",IF(VLOOKUP($G160,$H$11:$DO$1000,103,FALSE)=\"\",\"No\",IF(LEFT(VLOOKUP($G160,$H$11:$DO$1000,103,FALSE),3)=\"The\",EM160,VLOOKUP(VLOOKUP($G160,$H$11:$DO$1000,103,FALSE),DeclMatrix!$A$2:$F$5,VLOOKUP('Enrollment Form'!$B160,DeclMatrix!$A$8:$B$12,2,FALSE),FALSE))))","v":""},{"$f":"IF($A160=\"\",\"\",IF(VLOOKUP($G160,$H$11:$DO$1000,106,FALSE)=\"\",\"No\",IF(LEFT(VLOOKUP($G160,$H$11:$DO$1000,106,FALSE),3)=\"The\",EN160,VLOOKUP(VLOOKUP($G160,$H$11:$DO$1000,106,FALSE),DeclMatrix!$A$2:$F$5,VLOOKUP('Enrollment Form'!$B160,DeclMatrix!$A$8:$B$12,2,FALSE),FALSE))))","v":""},{"$f":"IF($A160=\"\",\"\",IF(VLOOKUP($G160,$H$11:$DO$1000,109,FALSE)=\"\",\"No\",IF(LEFT(VLOOKUP($G160,$H$11:$DO$1000,109,FALSE),3)=\"The\",EO160,VLOOKUP(VLOOKUP($G160,$H$11:$DO$1000,109,FALSE),DeclMatrix!$A$2:$F$5,VLOOKUP('Enrollment Form'!$B160,DeclMatrix!$A$8:$B$12,2,FALSE),FALSE))))","v":""},{"$f":"IF($A160=\"\",\"\",IF(VLOOKUP($G160,$H$11:$DO$1000,112,FALSE)=\"\",\"No\",IF(LEFT(VLOOKUP($G160,$H$11:$DO$1000,112,FALSE),3)=\"The\",EP160,VLOOKUP(VLOOKUP($G160,$H$11:$DO$1000,112,FALSE),DeclMatrix!$A$2:$F$5,VLOOKUP('Enrollment Form'!$B160,DeclMatrix!$A$8:$B$12,2,FALSE),FALSE))))","v":""},null,null,null,null,null,null,null,null,"",null,"","","","","","","","","","","",""]
["",null,null,null,null,null,"","",null,null,null,null,null,null,null,null,null,null,null,null,null,null,null,null,null,null,"","","","",null,null,"",null,null,null,null,null,null,null,null,null,null,null,null,null,null,null,null,null,null,null,null,null,null,null,null,null,null,null,"","","",null,null,null,null,"","","","",null,null,null,null,null,null,null,null,null,null,null,null,null,null,null,null,null,null,null,null,null,null,null,null,null,null,null,null,null,null,null,null,null,null,null,null,null,null,null,null,null,null,null,null,null,null,null,null,null,null,null,null,"",{"$f":"IF($A161=\"\",\"\",IF(VLOOKUP($G161,$H$11:$DO$1000,103,FALSE)=\"\",\"No\",IF(LEFT(VLOOKUP($G161,$H$11:$DO$1000,103,FALSE),3)=\"The\",EM161,VLOOKUP(VLOOKUP($G161,$H$11:$DO$1000,103,FALSE),DeclMatrix!$A$2:$F$5,VLOOKUP('Enrollment Form'!$B161,DeclMatrix!$A$8:$B$12,2,FALSE),FALSE))))","v":""},{"$f":"IF($A161=\"\",\"\",IF(VLOOKUP($G161,$H$11:$DO$1000,106,FALSE)=\"\",\"No\",IF(LEFT(VLOOKUP($G161,$H$11:$DO$1000,106,FALSE),3)=\"The\",EN161,VLOOKUP(VLOOKUP($G161,$H$11:$DO$1000,106,FALSE),DeclMatrix!$A$2:$F$5,VLOOKUP('Enrollment Form'!$B161,DeclMatrix!$A$8:$B$12,2,FALSE),FALSE))))","v":""},{"$f":"IF($A161=\"\",\"\",IF(VLOOKUP($G161,$H$11:$DO$1000,109,FALSE)=\"\",\"No\",IF(LEFT(VLOOKUP($G161,$H$11:$DO$1000,109,FALSE),3)=\"The\",EO161,VLOOKUP(VLOOKUP($G161,$H$11:$DO$1000,109,FALSE),DeclMatrix!$A$2:$F$5,VLOOKUP('Enrollment Form'!$B161,DeclMatrix!$A$8:$B$12,2,FALSE),FALSE))))","v":""},{"$f":"IF($A161=\"\",\"\",IF(VLOOKUP($G161,$H$11:$DO$1000,112,FALSE)=\"\",\"No\",IF(LEFT(VLOOKUP($G161,$H$11:$DO$1000,112,FALSE),3)=\"The\",EP161,VLOOKUP(VLOOKUP($G161,$H$11:$DO$1000,112,FALSE),DeclMatrix!$A$2:$F$5,VLOOKUP('Enrollment Form'!$B161,DeclMatrix!$A$8:$B$12,2,FALSE),FALSE))))","v":""},null,null,null,null,null,null,null,null,"",null,"","","","","","","","","","","",""]
["",null,null,null,null,null,"","",null,null,null,null,null,null,null,null,null,null,null,null,null,null,null,null,null,null,"","","","",null,null,"",null,null,null,null,null,null,null,null,null,null,null,null,null,null,null,null,null,null,null,null,null,null,null,null,null,null,null,"","","",null,null,null,null,"","","","",null,null,null,null,null,null,null,null,null,null,null,null,null,null,null,null,null,null,null,null,null,null,null,null,null,null,null,null,null,null,null,null,null,null,null,null,null,null,null,null,null,null,null,null,null,null,null,null,null,null,null,null,"",{"$f":"IF($A162=\"\",\"\",IF(VLOOKUP($G162,$H$11:$DO$1000,103,FALSE)=\"\",\"No\",IF(LEFT(VLOOKUP($G162,$H$11:$DO$1000,103,FALSE),3)=\"The\",EM162,VLOOKUP(VLOOKUP($G162,$H$11:$DO$1000,103,FALSE),DeclMatrix!$A$2:$F$5,VLOOKUP('Enrollment Form'!$B162,DeclMatrix!$A$8:$B$12,2,FALSE),FALSE))))","v":""},{"$f":"IF($A162=\"\",\"\",IF(VLOOKUP($G162,$H$11:$DO$1000,106,FALSE)=\"\",\"No\",IF(LEFT(VLOOKUP($G162,$H$11:$DO$1000,106,FALSE),3)=\"The\",EN162,VLOOKUP(VLOOKUP($G162,$H$11:$DO$1000,106,FALSE),DeclMatrix!$A$2:$F$5,VLOOKUP('Enrollment Form'!$B162,DeclMatrix!$A$8:$B$12,2,FALSE),FALSE))))","v":""},{"$f":"IF($A162=\"\",\"\",IF(VLOOKUP($G162,$H$11:$DO$1000,109,FALSE)=\"\",\"No\",IF(LEFT(VLOOKUP($G162,$H$11:$DO$1000,109,FALSE),3)=\"The\",EO162,VLOOKUP(VLOOKUP($G162,$H$11:$DO$1000,109,FALSE),DeclMatrix!$A$2:$F$5,VLOOKUP('Enrollment Form'!$B162,DeclMatrix!$A$8:$B$12,2,FALSE),FALSE))))","v":""},{"$f":"IF($A162=\"\",\"\",IF(VLOOKUP($G162,$H$11:$DO$1000,112,FALSE)=\"\",\"No\",IF(LEFT(VLOOKUP($G162,$H$11:$DO$1000,112,FALSE),3)=\"The\",EP162,VLOOKUP(VLOOKUP($G162,$H$11:$DO$1000,112,FALSE),DeclMatrix!$A$2:$F$5,VLOOKUP('Enrollment Form'!$B162,DeclMatrix!$A$8:$B$12,2,FALSE),FALSE))))","v":""},null,null,null,null,null,null,null,null,"",null,"","","","","","","","","","","",""]
["",null,null,null,null,null,"","",null,null,null,null,null,null,null,null,null,null,null,null,null,null,null,null,null,null,"","","","",null,null,"",null,null,null,null,null,null,null,null,null,null,null,null,null,null,null,null,null,null,null,null,null,null,null,null,null,null,null,"","","",null,null,null,null,"","","","",null,null,null,null,null,null,null,null,null,null,null,null,null,null,null,null,null,null,null,null,null,null,null,null,null,null,null,null,null,null,null,null,null,null,null,null,null,null,null,null,null,null,null,null,null,null,null,null,null,null,null,null,"",{"$f":"IF($A163=\"\",\"\",IF(VLOOKUP($G163,$H$11:$DO$1000,103,FALSE)=\"\",\"No\",IF(LEFT(VLOOKUP($G163,$H$11:$DO$1000,103,FALSE),3)=\"The\",EM163,VLOOKUP(VLOOKUP($G163,$H$11:$DO$1000,103,FALSE),DeclMatrix!$A$2:$F$5,VLOOKUP('Enrollment Form'!$B163,DeclMatrix!$A$8:$B$12,2,FALSE),FALSE))))","v":""},{"$f":"IF($A163=\"\",\"\",IF(VLOOKUP($G163,$H$11:$DO$1000,106,FALSE)=\"\",\"No\",IF(LEFT(VLOOKUP($G163,$H$11:$DO$1000,106,FALSE),3)=\"The\",EN163,VLOOKUP(VLOOKUP($G163,$H$11:$DO$1000,106,FALSE),DeclMatrix!$A$2:$F$5,VLOOKUP('Enrollment Form'!$B163,DeclMatrix!$A$8:$B$12,2,FALSE),FALSE))))","v":""},{"$f":"IF($A163=\"\",\"\",IF(VLOOKUP($G163,$H$11:$DO$1000,109,FALSE)=\"\",\"No\",IF(LEFT(VLOOKUP($G163,$H$11:$DO$1000,109,FALSE),3)=\"The\",EO163,VLOOKUP(VLOOKUP($G163,$H$11:$DO$1000,109,FALSE),DeclMatrix!$A$2:$F$5,VLOOKUP('Enrollment Form'!$B163,DeclMatrix!$A$8:$B$12,2,FALSE),FALSE))))","v":""},{"$f":"IF($A163=\"\",\"\",IF(VLOOKUP($G163,$H$11:$DO$1000,112,FALSE)=\"\",\"No\",IF(LEFT(VLOOKUP($G163,$H$11:$DO$1000,112,FALSE),3)=\"The\",EP163,VLOOKUP(VLOOKUP($G163,$H$11:$DO$1000,112,FALSE),DeclMatrix!$A$2:$F$5,VLOOKUP('Enrollment Form'!$B163,DeclMatrix!$A$8:$B$12,2,FALSE),FALSE))))","v":""},null,null,null,null,null,null,null,null,"",null,"","","","","","","","","","","",""]
["",null,null,null,null,null,"","",null,null,null,null,null,null,null,null,null,null,null,null,null,null,null,null,null,null,"","","","",null,null,"",null,null,null,null,null,null,null,null,null,null,null,null,null,null,null,null,null,null,null,null,null,null,null,null,null,null,null,"","","",null,null,null,null,"","","","",null,null,null,null,null,null,null,null,null,null,null,null,null,null,null,null,null,null,null,null,null,null,null,null,null,null,null,null,null,null,null,null,null,null,null,null,null,null,null,null,null,null,null,null,null,null,null,null,null,null,null,null,"",{"$f":"IF($A164=\"\",\"\",IF(VLOOKUP($G164,$H$11:$DO$1000,103,FALSE)=\"\",\"No\",IF(LEFT(VLOOKUP($G164,$H$11:$DO$1000,103,FALSE),3)=\"The\",EM164,VLOOKUP(VLOOKUP($G164,$H$11:$DO$1000,103,FALSE),DeclMatrix!$A$2:$F$5,VLOOKUP('Enrollment Form'!$B164,DeclMatrix!$A$8:$B$12,2,FALSE),FALSE))))","v":""},{"$f":"IF($A164=\"\",\"\",IF(VLOOKUP($G164,$H$11:$DO$1000,106,FALSE)=\"\",\"No\",IF(LEFT(VLOOKUP($G164,$H$11:$DO$1000,106,FALSE),3)=\"The\",EN164,VLOOKUP(VLOOKUP($G164,$H$11:$DO$1000,106,FALSE),DeclMatrix!$A$2:$F$5,VLOOKUP('Enrollment Form'!$B164,DeclMatrix!$A$8:$B$12,2,FALSE),FALSE))))","v":""},{"$f":"IF($A164=\"\",\"\",IF(VLOOKUP($G164,$H$11:$DO$1000,109,FALSE)=\"\",\"No\",IF(LEFT(VLOOKUP($G164,$H$11:$DO$1000,109,FALSE),3)=\"The\",EO164,VLOOKUP(VLOOKUP($G164,$H$11:$DO$1000,109,FALSE),DeclMatrix!$A$2:$F$5,VLOOKUP('Enrollment Form'!$B164,DeclMatrix!$A$8:$B$12,2,FALSE),FALSE))))","v":""},{"$f":"IF($A164=\"\",\"\",IF(VLOOKUP($G164,$H$11:$DO$1000,112,FALSE)=\"\",\"No\",IF(LEFT(VLOOKUP($G164,$H$11:$DO$1000,112,FALSE),3)=\"The\",EP164,VLOOKUP(VLOOKUP($G164,$H$11:$DO$1000,112,FALSE),DeclMatrix!$A$2:$F$5,VLOOKUP('Enrollment Form'!$B164,DeclMatrix!$A$8:$B$12,2,FALSE),FALSE))))","v":""},null,null,null,null,null,null,null,null,"",null,"","","","","","","","","","","",""]
["",null,null,null,null,null,"","",null,null,null,null,null,null,null,null,null,null,null,null,null,null,null,null,null,null,"","","","",null,null,"",null,null,null,null,null,null,null,null,null,null,null,null,null,null,null,null,null,null,null,null,null,null,null,null,null,null,null,"","","",null,null,null,null,"","","","",null,null,null,null,null,null,null,null,null,null,null,null,null,null,null,null,null,null,null,null,null,null,null,null,null,null,null,null,null,null,null,null,null,null,null,null,null,null,null,null,null,null,null,null,null,null,null,null,null,null,null,null,"",{"$f":"IF($A165=\"\",\"\",IF(VLOOKUP($G165,$H$11:$DO$1000,103,FALSE)=\"\",\"No\",IF(LEFT(VLOOKUP($G165,$H$11:$DO$1000,103,FALSE),3)=\"The\",EM165,VLOOKUP(VLOOKUP($G165,$H$11:$DO$1000,103,FALSE),DeclMatrix!$A$2:$F$5,VLOOKUP('Enrollment Form'!$B165,DeclMatrix!$A$8:$B$12,2,FALSE),FALSE))))","v":""},{"$f":"IF($A165=\"\",\"\",IF(VLOOKUP($G165,$H$11:$DO$1000,106,FALSE)=\"\",\"No\",IF(LEFT(VLOOKUP($G165,$H$11:$DO$1000,106,FALSE),3)=\"The\",EN165,VLOOKUP(VLOOKUP($G165,$H$11:$DO$1000,106,FALSE),DeclMatrix!$A$2:$F$5,VLOOKUP('Enrollment Form'!$B165,DeclMatrix!$A$8:$B$12,2,FALSE),FALSE))))","v":""},{"$f":"IF($A165=\"\",\"\",IF(VLOOKUP($G165,$H$11:$DO$1000,109,FALSE)=\"\",\"No\",IF(LEFT(VLOOKUP($G165,$H$11:$DO$1000,109,FALSE),3)=\"The\",EO165,VLOOKUP(VLOOKUP($G165,$H$11:$DO$1000,109,FALSE),DeclMatrix!$A$2:$F$5,VLOOKUP('Enrollment Form'!$B165,DeclMatrix!$A$8:$B$12,2,FALSE),FALSE))))","v":""},{"$f":"IF($A165=\"\",\"\",IF(VLOOKUP($G165,$H$11:$DO$1000,112,FALSE)=\"\",\"No\",IF(LEFT(VLOOKUP($G165,$H$11:$DO$1000,112,FALSE),3)=\"The\",EP165,VLOOKUP(VLOOKUP($G165,$H$11:$DO$1000,112,FALSE),DeclMatrix!$A$2:$F$5,VLOOKUP('Enrollment Form'!$B165,DeclMatrix!$A$8:$B$12,2,FALSE),FALSE))))","v":""},null,null,null,null,null,null,null,null,"",null,"","","","","","","","","","","",""]
["",null,null,null,null,null,"","",null,null,null,null,null,null,null,null,null,null,null,null,null,null,null,null,null,null,"","","","",null,null,"",null,null,null,null,null,null,null,null,null,null,null,null,null,null,null,null,null,null,null,null,null,null,null,null,null,null,null,"","","",null,null,null,null,"","","","",null,null,null,null,null,null,null,null,null,null,null,null,null,null,null,null,null,null,null,null,null,null,null,null,null,null,null,null,null,null,null,null,null,null,null,null,null,null,null,null,null,null,null,null,null,null,null,null,null,null,null,null,"",{"$f":"IF($A166=\"\",\"\",IF(VLOOKUP($G166,$H$11:$DO$1000,103,FALSE)=\"\",\"No\",IF(LEFT(VLOOKUP($G166,$H$11:$DO$1000,103,FALSE),3)=\"The\",EM166,VLOOKUP(VLOOKUP($G166,$H$11:$DO$1000,103,FALSE),DeclMatrix!$A$2:$F$5,VLOOKUP('Enrollment Form'!$B166,DeclMatrix!$A$8:$B$12,2,FALSE),FALSE))))","v":""},{"$f":"IF($A166=\"\",\"\",IF(VLOOKUP($G166,$H$11:$DO$1000,106,FALSE)=\"\",\"No\",IF(LEFT(VLOOKUP($G166,$H$11:$DO$1000,106,FALSE),3)=\"The\",EN166,VLOOKUP(VLOOKUP($G166,$H$11:$DO$1000,106,FALSE),DeclMatrix!$A$2:$F$5,VLOOKUP('Enrollment Form'!$B166,DeclMatrix!$A$8:$B$12,2,FALSE),FALSE))))","v":""},{"$f":"IF($A166=\"\",\"\",IF(VLOOKUP($G166,$H$11:$DO$1000,109,FALSE)=\"\",\"No\",IF(LEFT(VLOOKUP($G166,$H$11:$DO$1000,109,FALSE),3)=\"The\",EO166,VLOOKUP(VLOOKUP($G166,$H$11:$DO$1000,109,FALSE),DeclMatrix!$A$2:$F$5,VLOOKUP('Enrollment Form'!$B166,DeclMatrix!$A$8:$B$12,2,FALSE),FALSE))))","v":""},{"$f":"IF($A166=\"\",\"\",IF(VLOOKUP($G166,$H$11:$DO$1000,112,FALSE)=\"\",\"No\",IF(LEFT(VLOOKUP($G166,$H$11:$DO$1000,112,FALSE),3)=\"The\",EP166,VLOOKUP(VLOOKUP($G166,$H$11:$DO$1000,112,FALSE),DeclMatrix!$A$2:$F$5,VLOOKUP('Enrollment Form'!$B166,DeclMatrix!$A$8:$B$12,2,FALSE),FALSE))))","v":""},null,null,null,null,null,null,null,null,"",null,"","","","","","","","","","","",""]
["",null,null,null,null,null,"","",null,null,null,null,null,null,null,null,null,null,null,null,null,null,null,null,null,null,"","","","",null,null,"",null,null,null,null,null,null,null,null,null,null,null,null,null,null,null,null,null,null,null,null,null,null,null,null,null,null,null,"","","",null,null,null,null,"","","","",null,null,null,null,null,null,null,null,null,null,null,null,null,null,null,null,null,null,null,null,null,null,null,null,null,null,null,null,null,null,null,null,null,null,null,null,null,null,null,null,null,null,null,null,null,null,null,null,null,null,null,null,"",{"$f":"IF($A167=\"\",\"\",IF(VLOOKUP($G167,$H$11:$DO$1000,103,FALSE)=\"\",\"No\",IF(LEFT(VLOOKUP($G167,$H$11:$DO$1000,103,FALSE),3)=\"The\",EM167,VLOOKUP(VLOOKUP($G167,$H$11:$DO$1000,103,FALSE),DeclMatrix!$A$2:$F$5,VLOOKUP('Enrollment Form'!$B167,DeclMatrix!$A$8:$B$12,2,FALSE),FALSE))))","v":""},{"$f":"IF($A167=\"\",\"\",IF(VLOOKUP($G167,$H$11:$DO$1000,106,FALSE)=\"\",\"No\",IF(LEFT(VLOOKUP($G167,$H$11:$DO$1000,106,FALSE),3)=\"The\",EN167,VLOOKUP(VLOOKUP($G167,$H$11:$DO$1000,106,FALSE),DeclMatrix!$A$2:$F$5,VLOOKUP('Enrollment Form'!$B167,DeclMatrix!$A$8:$B$12,2,FALSE),FALSE))))","v":""},{"$f":"IF($A167=\"\",\"\",IF(VLOOKUP($G167,$H$11:$DO$1000,109,FALSE)=\"\",\"No\",IF(LEFT(VLOOKUP($G167,$H$11:$DO$1000,109,FALSE),3)=\"The\",EO167,VLOOKUP(VLOOKUP($G167,$H$11:$DO$1000,109,FALSE),DeclMatrix!$A$2:$F$5,VLOOKUP('Enrollment Form'!$B167,DeclMatrix!$A$8:$B$12,2,FALSE),FALSE))))","v":""},{"$f":"IF($A167=\"\",\"\",IF(VLOOKUP($G167,$H$11:$DO$1000,112,FALSE)=\"\",\"No\",IF(LEFT(VLOOKUP($G167,$H$11:$DO$1000,112,FALSE),3)=\"The\",EP167,VLOOKUP(VLOOKUP($G167,$H$11:$DO$1000,112,FALSE),DeclMatrix!$A$2:$F$5,VLOOKUP('Enrollment Form'!$B167,DeclMatrix!$A$8:$B$12,2,FALSE),FALSE))))","v":""},null,null,null,null,null,null,null,null,"",null,"","","","","","","","","","","",""]
["",null,null,null,null,null,"","",null,null,null,null,null,null,null,null,null,null,null,null,null,null,null,null,null,null,"","","","",null,null,"",null,null,null,null,null,null,null,null,null,null,null,null,null,null,null,null,null,null,null,null,null,null,null,null,null,null,null,"","","",null,null,null,null,"","","","",null,null,null,null,null,null,null,null,null,null,null,null,null,null,null,null,null,null,null,null,null,null,null,null,null,null,null,null,null,null,null,null,null,null,null,null,null,null,null,null,null,null,null,null,null,null,null,null,null,null,null,null,"",{"$f":"IF($A168=\"\",\"\",IF(VLOOKUP($G168,$H$11:$DO$1000,103,FALSE)=\"\",\"No\",IF(LEFT(VLOOKUP($G168,$H$11:$DO$1000,103,FALSE),3)=\"The\",EM168,VLOOKUP(VLOOKUP($G168,$H$11:$DO$1000,103,FALSE),DeclMatrix!$A$2:$F$5,VLOOKUP('Enrollment Form'!$B168,DeclMatrix!$A$8:$B$12,2,FALSE),FALSE))))","v":""},{"$f":"IF($A168=\"\",\"\",IF(VLOOKUP($G168,$H$11:$DO$1000,106,FALSE)=\"\",\"No\",IF(LEFT(VLOOKUP($G168,$H$11:$DO$1000,106,FALSE),3)=\"The\",EN168,VLOOKUP(VLOOKUP($G168,$H$11:$DO$1000,106,FALSE),DeclMatrix!$A$2:$F$5,VLOOKUP('Enrollment Form'!$B168,DeclMatrix!$A$8:$B$12,2,FALSE),FALSE))))","v":""},{"$f":"IF($A168=\"\",\"\",IF(VLOOKUP($G168,$H$11:$DO$1000,109,FALSE)=\"\",\"No\",IF(LEFT(VLOOKUP($G168,$H$11:$DO$1000,109,FALSE),3)=\"The\",EO168,VLOOKUP(VLOOKUP($G168,$H$11:$DO$1000,109,FALSE),DeclMatrix!$A$2:$F$5,VLOOKUP('Enrollment Form'!$B168,DeclMatrix!$A$8:$B$12,2,FALSE),FALSE))))","v":""},{"$f":"IF($A168=\"\",\"\",IF(VLOOKUP($G168,$H$11:$DO$1000,112,FALSE)=\"\",\"No\",IF(LEFT(VLOOKUP($G168,$H$11:$DO$1000,112,FALSE),3)=\"The\",EP168,VLOOKUP(VLOOKUP($G168,$H$11:$DO$1000,112,FALSE),DeclMatrix!$A$2:$F$5,VLOOKUP('Enrollment Form'!$B168,DeclMatrix!$A$8:$B$12,2,FALSE),FALSE))))","v":""},null,null,null,null,null,null,null,null,"",null,"","","","","","","","","","","",""]
["",null,null,null,null,null,"","",null,null,null,null,null,null,null,null,null,null,null,null,null,null,null,null,null,null,"","","","",null,null,"",null,null,null,null,null,null,null,null,null,null,null,null,null,null,null,null,null,null,null,null,null,null,null,null,null,null,null,"","","",null,null,null,null,"","","","",null,null,null,null,null,null,null,null,null,null,null,null,null,null,null,null,null,null,null,null,null,null,null,null,null,null,null,null,null,null,null,null,null,null,null,null,null,null,null,null,null,null,null,null,null,null,null,null,null,null,null,null,"",{"$f":"IF($A169=\"\",\"\",IF(VLOOKUP($G169,$H$11:$DO$1000,103,FALSE)=\"\",\"No\",IF(LEFT(VLOOKUP($G169,$H$11:$DO$1000,103,FALSE),3)=\"The\",EM169,VLOOKUP(VLOOKUP($G169,$H$11:$DO$1000,103,FALSE),DeclMatrix!$A$2:$F$5,VLOOKUP('Enrollment Form'!$B169,DeclMatrix!$A$8:$B$12,2,FALSE),FALSE))))","v":""},{"$f":"IF($A169=\"\",\"\",IF(VLOOKUP($G169,$H$11:$DO$1000,106,FALSE)=\"\",\"No\",IF(LEFT(VLOOKUP($G169,$H$11:$DO$1000,106,FALSE),3)=\"The\",EN169,VLOOKUP(VLOOKUP($G169,$H$11:$DO$1000,106,FALSE),DeclMatrix!$A$2:$F$5,VLOOKUP('Enrollment Form'!$B169,DeclMatrix!$A$8:$B$12,2,FALSE),FALSE))))","v":""},{"$f":"IF($A169=\"\",\"\",IF(VLOOKUP($G169,$H$11:$DO$1000,109,FALSE)=\"\",\"No\",IF(LEFT(VLOOKUP($G169,$H$11:$DO$1000,109,FALSE),3)=\"The\",EO169,VLOOKUP(VLOOKUP($G169,$H$11:$DO$1000,109,FALSE),DeclMatrix!$A$2:$F$5,VLOOKUP('Enrollment Form'!$B169,DeclMatrix!$A$8:$B$12,2,FALSE),FALSE))))","v":""},{"$f":"IF($A169=\"\",\"\",IF(VLOOKUP($G169,$H$11:$DO$1000,112,FALSE)=\"\",\"No\",IF(LEFT(VLOOKUP($G169,$H$11:$DO$1000,112,FALSE),3)=\"The\",EP169,VLOOKUP(VLOOKUP($G169,$H$11:$DO$1000,112,FALSE),DeclMatrix!$A$2:$F$5,VLOOKUP('Enrollment Form'!$B169,DeclMatrix!$A$8:$B$12,2,FALSE),FALSE))))","v":""},null,null,null,null,null,null,null,null,"",null,"","","","","","","","","","","",""]
["",null,null,null,null,null,"","",null,null,null,null,null,null,null,null,null,null,null,null,null,null,null,null,null,null,"","","","",null,null,"",null,null,null,null,null,null,null,null,null,null,null,null,null,null,null,null,null,null,null,null,null,null,null,null,null,null,null,"","","",null,null,null,null,"","","","",null,null,null,null,null,null,null,null,null,null,null,null,null,null,null,null,null,null,null,null,null,null,null,null,null,null,null,null,null,null,null,null,null,null,null,null,null,null,null,null,null,null,null,null,null,null,null,null,null,null,null,null,"",{"$f":"IF($A170=\"\",\"\",IF(VLOOKUP($G170,$H$11:$DO$1000,103,FALSE)=\"\",\"No\",IF(LEFT(VLOOKUP($G170,$H$11:$DO$1000,103,FALSE),3)=\"The\",EM170,VLOOKUP(VLOOKUP($G170,$H$11:$DO$1000,103,FALSE),DeclMatrix!$A$2:$F$5,VLOOKUP('Enrollment Form'!$B170,DeclMatrix!$A$8:$B$12,2,FALSE),FALSE))))","v":""},{"$f":"IF($A170=\"\",\"\",IF(VLOOKUP($G170,$H$11:$DO$1000,106,FALSE)=\"\",\"No\",IF(LEFT(VLOOKUP($G170,$H$11:$DO$1000,106,FALSE),3)=\"The\",EN170,VLOOKUP(VLOOKUP($G170,$H$11:$DO$1000,106,FALSE),DeclMatrix!$A$2:$F$5,VLOOKUP('Enrollment Form'!$B170,DeclMatrix!$A$8:$B$12,2,FALSE),FALSE))))","v":""},{"$f":"IF($A170=\"\",\"\",IF(VLOOKUP($G170,$H$11:$DO$1000,109,FALSE)=\"\",\"No\",IF(LEFT(VLOOKUP($G170,$H$11:$DO$1000,109,FALSE),3)=\"The\",EO170,VLOOKUP(VLOOKUP($G170,$H$11:$DO$1000,109,FALSE),DeclMatrix!$A$2:$F$5,VLOOKUP('Enrollment Form'!$B170,DeclMatrix!$A$8:$B$12,2,FALSE),FALSE))))","v":""},{"$f":"IF($A170=\"\",\"\",IF(VLOOKUP($G170,$H$11:$DO$1000,112,FALSE)=\"\",\"No\",IF(LEFT(VLOOKUP($G170,$H$11:$DO$1000,112,FALSE),3)=\"The\",EP170,VLOOKUP(VLOOKUP($G170,$H$11:$DO$1000,112,FALSE),DeclMatrix!$A$2:$F$5,VLOOKUP('Enrollment Form'!$B170,DeclMatrix!$A$8:$B$12,2,FALSE),FALSE))))","v":""},null,null,null,null,null,null,null,null,"",null,"","","","","","","","","","","",""]
["",null,null,null,null,null,"","",null,null,null,null,null,null,null,null,null,null,null,null,null,null,null,null,null,null,"","","","",null,null,"",null,null,null,null,null,null,null,null,null,null,null,null,null,null,null,null,null,null,null,null,null,null,null,null,null,null,null,"","","",null,null,null,null,"","","","",null,null,null,null,null,null,null,null,null,null,null,null,null,null,null,null,null,null,null,null,null,null,null,null,null,null,null,null,null,null,null,null,null,null,null,null,null,null,null,null,null,null,null,null,null,null,null,null,null,null,null,null,"",{"$f":"IF($A171=\"\",\"\",IF(VLOOKUP($G171,$H$11:$DO$1000,103,FALSE)=\"\",\"No\",IF(LEFT(VLOOKUP($G171,$H$11:$DO$1000,103,FALSE),3)=\"The\",EM171,VLOOKUP(VLOOKUP($G171,$H$11:$DO$1000,103,FALSE),DeclMatrix!$A$2:$F$5,VLOOKUP('Enrollment Form'!$B171,DeclMatrix!$A$8:$B$12,2,FALSE),FALSE))))","v":""},{"$f":"IF($A171=\"\",\"\",IF(VLOOKUP($G171,$H$11:$DO$1000,106,FALSE)=\"\",\"No\",IF(LEFT(VLOOKUP($G171,$H$11:$DO$1000,106,FALSE),3)=\"The\",EN171,VLOOKUP(VLOOKUP($G171,$H$11:$DO$1000,106,FALSE),DeclMatrix!$A$2:$F$5,VLOOKUP('Enrollment Form'!$B171,DeclMatrix!$A$8:$B$12,2,FALSE),FALSE))))","v":""},{"$f":"IF($A171=\"\",\"\",IF(VLOOKUP($G171,$H$11:$DO$1000,109,FALSE)=\"\",\"No\",IF(LEFT(VLOOKUP($G171,$H$11:$DO$1000,109,FALSE),3)=\"The\",EO171,VLOOKUP(VLOOKUP($G171,$H$11:$DO$1000,109,FALSE),DeclMatrix!$A$2:$F$5,VLOOKUP('Enrollment Form'!$B171,DeclMatrix!$A$8:$B$12,2,FALSE),FALSE))))","v":""},{"$f":"IF($A171=\"\",\"\",IF(VLOOKUP($G171,$H$11:$DO$1000,112,FALSE)=\"\",\"No\",IF(LEFT(VLOOKUP($G171,$H$11:$DO$1000,112,FALSE),3)=\"The\",EP171,VLOOKUP(VLOOKUP($G171,$H$11:$DO$1000,112,FALSE),DeclMatrix!$A$2:$F$5,VLOOKUP('Enrollment Form'!$B171,DeclMatrix!$A$8:$B$12,2,FALSE),FALSE))))","v":""},null,null,null,null,null,null,null,null,"",null,"","","","","","","","","","","",""]
["",null,null,null,null,null,"","",null,null,null,null,null,null,null,null,null,null,null,null,null,null,null,null,null,null,"","","","",null,null,"",null,null,null,null,null,null,null,null,null,null,null,null,null,null,null,null,null,null,null,null,null,null,null,null,null,null,null,"","","",null,null,null,null,"","","","",null,null,null,null,null,null,null,null,null,null,null,null,null,null,null,null,null,null,null,null,null,null,null,null,null,null,null,null,null,null,null,null,null,null,null,null,null,null,null,null,null,null,null,null,null,null,null,null,null,null,null,null,"",{"$f":"IF($A172=\"\",\"\",IF(VLOOKUP($G172,$H$11:$DO$1000,103,FALSE)=\"\",\"No\",IF(LEFT(VLOOKUP($G172,$H$11:$DO$1000,103,FALSE),3)=\"The\",EM172,VLOOKUP(VLOOKUP($G172,$H$11:$DO$1000,103,FALSE),DeclMatrix!$A$2:$F$5,VLOOKUP('Enrollment Form'!$B172,DeclMatrix!$A$8:$B$12,2,FALSE),FALSE))))","v":""},{"$f":"IF($A172=\"\",\"\",IF(VLOOKUP($G172,$H$11:$DO$1000,106,FALSE)=\"\",\"No\",IF(LEFT(VLOOKUP($G172,$H$11:$DO$1000,106,FALSE),3)=\"The\",EN172,VLOOKUP(VLOOKUP($G172,$H$11:$DO$1000,106,FALSE),DeclMatrix!$A$2:$F$5,VLOOKUP('Enrollment Form'!$B172,DeclMatrix!$A$8:$B$12,2,FALSE),FALSE))))","v":""},{"$f":"IF($A172=\"\",\"\",IF(VLOOKUP($G172,$H$11:$DO$1000,109,FALSE)=\"\",\"No\",IF(LEFT(VLOOKUP($G172,$H$11:$DO$1000,109,FALSE),3)=\"The\",EO172,VLOOKUP(VLOOKUP($G172,$H$11:$DO$1000,109,FALSE),DeclMatrix!$A$2:$F$5,VLOOKUP('Enrollment Form'!$B172,DeclMatrix!$A$8:$B$12,2,FALSE),FALSE))))","v":""},{"$f":"IF($A172=\"\",\"\",IF(VLOOKUP($G172,$H$11:$DO$1000,112,FALSE)=\"\",\"No\",IF(LEFT(VLOOKUP($G172,$H$11:$DO$1000,112,FALSE),3)=\"The\",EP172,VLOOKUP(VLOOKUP($G172,$H$11:$DO$1000,112,FALSE),DeclMatrix!$A$2:$F$5,VLOOKUP('Enrollment Form'!$B172,DeclMatrix!$A$8:$B$12,2,FALSE),FALSE))))","v":""},null,null,null,null,null,null,null,null,"",null,"","","","","","","","","","","",""]
["",null,null,null,null,null,"","",null,null,null,null,null,null,null,null,null,null,null,null,null,null,null,null,null,null,"","","","",null,null,"",null,null,null,null,null,null,null,null,null,null,null,null,null,null,null,null,null,null,null,null,null,null,null,null,null,null,null,"","","",null,null,null,null,"","","","",null,null,null,null,null,null,null,null,null,null,null,null,null,null,null,null,null,null,null,null,null,null,null,null,null,null,null,null,null,null,null,null,null,null,null,null,null,null,null,null,null,null,null,null,null,null,null,null,null,null,null,null,"",{"$f":"IF($A173=\"\",\"\",IF(VLOOKUP($G173,$H$11:$DO$1000,103,FALSE)=\"\",\"No\",IF(LEFT(VLOOKUP($G173,$H$11:$DO$1000,103,FALSE),3)=\"The\",EM173,VLOOKUP(VLOOKUP($G173,$H$11:$DO$1000,103,FALSE),DeclMatrix!$A$2:$F$5,VLOOKUP('Enrollment Form'!$B173,DeclMatrix!$A$8:$B$12,2,FALSE),FALSE))))","v":""},{"$f":"IF($A173=\"\",\"\",IF(VLOOKUP($G173,$H$11:$DO$1000,106,FALSE)=\"\",\"No\",IF(LEFT(VLOOKUP($G173,$H$11:$DO$1000,106,FALSE),3)=\"The\",EN173,VLOOKUP(VLOOKUP($G173,$H$11:$DO$1000,106,FALSE),DeclMatrix!$A$2:$F$5,VLOOKUP('Enrollment Form'!$B173,DeclMatrix!$A$8:$B$12,2,FALSE),FALSE))))","v":""},{"$f":"IF($A173=\"\",\"\",IF(VLOOKUP($G173,$H$11:$DO$1000,109,FALSE)=\"\",\"No\",IF(LEFT(VLOOKUP($G173,$H$11:$DO$1000,109,FALSE),3)=\"The\",EO173,VLOOKUP(VLOOKUP($G173,$H$11:$DO$1000,109,FALSE),DeclMatrix!$A$2:$F$5,VLOOKUP('Enrollment Form'!$B173,DeclMatrix!$A$8:$B$12,2,FALSE),FALSE))))","v":""},{"$f":"IF($A173=\"\",\"\",IF(VLOOKUP($G173,$H$11:$DO$1000,112,FALSE)=\"\",\"No\",IF(LEFT(VLOOKUP($G173,$H$11:$DO$1000,112,FALSE),3)=\"The\",EP173,VLOOKUP(VLOOKUP($G173,$H$11:$DO$1000,112,FALSE),DeclMatrix!$A$2:$F$5,VLOOKUP('Enrollment Form'!$B173,DeclMatrix!$A$8:$B$12,2,FALSE),FALSE))))","v":""},null,null,null,null,null,null,null,null,"",null,"","","","","","","","","","","",""]
["",null,null,null,null,null,"","",null,null,null,null,null,null,null,null,null,null,null,null,null,null,null,null,null,null,"","","","",null,null,"",null,null,null,null,null,null,null,null,null,null,null,null,null,null,null,null,null,null,null,null,null,null,null,null,null,null,null,"","","",null,null,null,null,"","","","",null,null,null,null,null,null,null,null,null,null,null,null,null,null,null,null,null,null,null,null,null,null,null,null,null,null,null,null,null,null,null,null,null,null,null,null,null,null,null,null,null,null,null,null,null,null,null,null,null,null,null,null,"",{"$f":"IF($A174=\"\",\"\",IF(VLOOKUP($G174,$H$11:$DO$1000,103,FALSE)=\"\",\"No\",IF(LEFT(VLOOKUP($G174,$H$11:$DO$1000,103,FALSE),3)=\"The\",EM174,VLOOKUP(VLOOKUP($G174,$H$11:$DO$1000,103,FALSE),DeclMatrix!$A$2:$F$5,VLOOKUP('Enrollment Form'!$B174,DeclMatrix!$A$8:$B$12,2,FALSE),FALSE))))","v":""},{"$f":"IF($A174=\"\",\"\",IF(VLOOKUP($G174,$H$11:$DO$1000,106,FALSE)=\"\",\"No\",IF(LEFT(VLOOKUP($G174,$H$11:$DO$1000,106,FALSE),3)=\"The\",EN174,VLOOKUP(VLOOKUP($G174,$H$11:$DO$1000,106,FALSE),DeclMatrix!$A$2:$F$5,VLOOKUP('Enrollment Form'!$B174,DeclMatrix!$A$8:$B$12,2,FALSE),FALSE))))","v":""},{"$f":"IF($A174=\"\",\"\",IF(VLOOKUP($G174,$H$11:$DO$1000,109,FALSE)=\"\",\"No\",IF(LEFT(VLOOKUP($G174,$H$11:$DO$1000,109,FALSE),3)=\"The\",EO174,VLOOKUP(VLOOKUP($G174,$H$11:$DO$1000,109,FALSE),DeclMatrix!$A$2:$F$5,VLOOKUP('Enrollment Form'!$B174,DeclMatrix!$A$8:$B$12,2,FALSE),FALSE))))","v":""},{"$f":"IF($A174=\"\",\"\",IF(VLOOKUP($G174,$H$11:$DO$1000,112,FALSE)=\"\",\"No\",IF(LEFT(VLOOKUP($G174,$H$11:$DO$1000,112,FALSE),3)=\"The\",EP174,VLOOKUP(VLOOKUP($G174,$H$11:$DO$1000,112,FALSE),DeclMatrix!$A$2:$F$5,VLOOKUP('Enrollment Form'!$B174,DeclMatrix!$A$8:$B$12,2,FALSE),FALSE))))","v":""},null,null,null,null,null,null,null,null,"",null,"","","","","","","","","","","",""]
["",null,null,null,null,null,"","",null,null,null,null,null,null,null,null,null,null,null,null,null,null,null,null,null,null,"","","","",null,null,"",null,null,null,null,null,null,null,null,null,null,null,null,null,null,null,null,null,null,null,null,null,null,null,null,null,null,null,"","","",null,null,null,null,"","","","",null,null,null,null,null,null,null,null,null,null,null,null,null,null,null,null,null,null,null,null,null,null,null,null,null,null,null,null,null,null,null,null,null,null,null,null,null,null,null,null,null,null,null,null,null,null,null,null,null,null,null,null,"",{"$f":"IF($A175=\"\",\"\",IF(VLOOKUP($G175,$H$11:$DO$1000,103,FALSE)=\"\",\"No\",IF(LEFT(VLOOKUP($G175,$H$11:$DO$1000,103,FALSE),3)=\"The\",EM175,VLOOKUP(VLOOKUP($G175,$H$11:$DO$1000,103,FALSE),DeclMatrix!$A$2:$F$5,VLOOKUP('Enrollment Form'!$B175,DeclMatrix!$A$8:$B$12,2,FALSE),FALSE))))","v":""},{"$f":"IF($A175=\"\",\"\",IF(VLOOKUP($G175,$H$11:$DO$1000,106,FALSE)=\"\",\"No\",IF(LEFT(VLOOKUP($G175,$H$11:$DO$1000,106,FALSE),3)=\"The\",EN175,VLOOKUP(VLOOKUP($G175,$H$11:$DO$1000,106,FALSE),DeclMatrix!$A$2:$F$5,VLOOKUP('Enrollment Form'!$B175,DeclMatrix!$A$8:$B$12,2,FALSE),FALSE))))","v":""},{"$f":"IF($A175=\"\",\"\",IF(VLOOKUP($G175,$H$11:$DO$1000,109,FALSE)=\"\",\"No\",IF(LEFT(VLOOKUP($G175,$H$11:$DO$1000,109,FALSE),3)=\"The\",EO175,VLOOKUP(VLOOKUP($G175,$H$11:$DO$1000,109,FALSE),DeclMatrix!$A$2:$F$5,VLOOKUP('Enrollment Form'!$B175,DeclMatrix!$A$8:$B$12,2,FALSE),FALSE))))","v":""},{"$f":"IF($A175=\"\",\"\",IF(VLOOKUP($G175,$H$11:$DO$1000,112,FALSE)=\"\",\"No\",IF(LEFT(VLOOKUP($G175,$H$11:$DO$1000,112,FALSE),3)=\"The\",EP175,VLOOKUP(VLOOKUP($G175,$H$11:$DO$1000,112,FALSE),DeclMatrix!$A$2:$F$5,VLOOKUP('Enrollment Form'!$B175,DeclMatrix!$A$8:$B$12,2,FALSE),FALSE))))","v":""},null,null,null,null,null,null,null,null,"",null,"","","","","","","","","","","",""]
["",null,null,null,null,null,"","",null,null,null,null,null,null,null,null,null,null,null,null,null,null,null,null,null,null,"","","","",null,null,"",null,null,null,null,null,null,null,null,null,null,null,null,null,null,null,null,null,null,null,null,null,null,null,null,null,null,null,"","","",null,null,null,null,"","","","",null,null,null,null,null,null,null,null,null,null,null,null,null,null,null,null,null,null,null,null,null,null,null,null,null,null,null,null,null,null,null,null,null,null,null,null,null,null,null,null,null,null,null,null,null,null,null,null,null,null,null,null,"",{"$f":"IF($A176=\"\",\"\",IF(VLOOKUP($G176,$H$11:$DO$1000,103,FALSE)=\"\",\"No\",IF(LEFT(VLOOKUP($G176,$H$11:$DO$1000,103,FALSE),3)=\"The\",EM176,VLOOKUP(VLOOKUP($G176,$H$11:$DO$1000,103,FALSE),DeclMatrix!$A$2:$F$5,VLOOKUP('Enrollment Form'!$B176,DeclMatrix!$A$8:$B$12,2,FALSE),FALSE))))","v":""},{"$f":"IF($A176=\"\",\"\",IF(VLOOKUP($G176,$H$11:$DO$1000,106,FALSE)=\"\",\"No\",IF(LEFT(VLOOKUP($G176,$H$11:$DO$1000,106,FALSE),3)=\"The\",EN176,VLOOKUP(VLOOKUP($G176,$H$11:$DO$1000,106,FALSE),DeclMatrix!$A$2:$F$5,VLOOKUP('Enrollment Form'!$B176,DeclMatrix!$A$8:$B$12,2,FALSE),FALSE))))","v":""},{"$f":"IF($A176=\"\",\"\",IF(VLOOKUP($G176,$H$11:$DO$1000,109,FALSE)=\"\",\"No\",IF(LEFT(VLOOKUP($G176,$H$11:$DO$1000,109,FALSE),3)=\"The\",EO176,VLOOKUP(VLOOKUP($G176,$H$11:$DO$1000,109,FALSE),DeclMatrix!$A$2:$F$5,VLOOKUP('Enrollment Form'!$B176,DeclMatrix!$A$8:$B$12,2,FALSE),FALSE))))","v":""},{"$f":"IF($A176=\"\",\"\",IF(VLOOKUP($G176,$H$11:$DO$1000,112,FALSE)=\"\",\"No\",IF(LEFT(VLOOKUP($G176,$H$11:$DO$1000,112,FALSE),3)=\"The\",EP176,VLOOKUP(VLOOKUP($G176,$H$11:$DO$1000,112,FALSE),DeclMatrix!$A$2:$F$5,VLOOKUP('Enrollment Form'!$B176,DeclMatrix!$A$8:$B$12,2,FALSE),FALSE))))","v":""},null,null,null,null,null,null,null,null,"",null,"","","","","","","","","","","",""]
["",null,null,null,null,null,"","",null,null,null,null,null,null,null,null,null,null,null,null,null,null,null,null,null,null,"","","","",null,null,"",null,null,null,null,null,null,null,null,null,null,null,null,null,null,null,null,null,null,null,null,null,null,null,null,null,null,null,"","","",null,null,null,null,"","","","",null,null,null,null,null,null,null,null,null,null,null,null,null,null,null,null,null,null,null,null,null,null,null,null,null,null,null,null,null,null,null,null,null,null,null,null,null,null,null,null,null,null,null,null,null,null,null,null,null,null,null,null,"",{"$f":"IF($A177=\"\",\"\",IF(VLOOKUP($G177,$H$11:$DO$1000,103,FALSE)=\"\",\"No\",IF(LEFT(VLOOKUP($G177,$H$11:$DO$1000,103,FALSE),3)=\"The\",EM177,VLOOKUP(VLOOKUP($G177,$H$11:$DO$1000,103,FALSE),DeclMatrix!$A$2:$F$5,VLOOKUP('Enrollment Form'!$B177,DeclMatrix!$A$8:$B$12,2,FALSE),FALSE))))","v":""},{"$f":"IF($A177=\"\",\"\",IF(VLOOKUP($G177,$H$11:$DO$1000,106,FALSE)=\"\",\"No\",IF(LEFT(VLOOKUP($G177,$H$11:$DO$1000,106,FALSE),3)=\"The\",EN177,VLOOKUP(VLOOKUP($G177,$H$11:$DO$1000,106,FALSE),DeclMatrix!$A$2:$F$5,VLOOKUP('Enrollment Form'!$B177,DeclMatrix!$A$8:$B$12,2,FALSE),FALSE))))","v":""},{"$f":"IF($A177=\"\",\"\",IF(VLOOKUP($G177,$H$11:$DO$1000,109,FALSE)=\"\",\"No\",IF(LEFT(VLOOKUP($G177,$H$11:$DO$1000,109,FALSE),3)=\"The\",EO177,VLOOKUP(VLOOKUP($G177,$H$11:$DO$1000,109,FALSE),DeclMatrix!$A$2:$F$5,VLOOKUP('Enrollment Form'!$B177,DeclMatrix!$A$8:$B$12,2,FALSE),FALSE))))","v":""},{"$f":"IF($A177=\"\",\"\",IF(VLOOKUP($G177,$H$11:$DO$1000,112,FALSE)=\"\",\"No\",IF(LEFT(VLOOKUP($G177,$H$11:$DO$1000,112,FALSE),3)=\"The\",EP177,VLOOKUP(VLOOKUP($G177,$H$11:$DO$1000,112,FALSE),DeclMatrix!$A$2:$F$5,VLOOKUP('Enrollment Form'!$B177,DeclMatrix!$A$8:$B$12,2,FALSE),FALSE))))","v":""},null,null,null,null,null,null,null,null,"",null,"","","","","","","","","","","",""]
["",null,null,null,null,null,"","",null,null,null,null,null,null,null,null,null,null,null,null,null,null,null,null,null,null,"","","","",null,null,"",null,null,null,null,null,null,null,null,null,null,null,null,null,null,null,null,null,null,null,null,null,null,null,null,null,null,null,"","","",null,null,null,null,"","","","",null,null,null,null,null,null,null,null,null,null,null,null,null,null,null,null,null,null,null,null,null,null,null,null,null,null,null,null,null,null,null,null,null,null,null,null,null,null,null,null,null,null,null,null,null,null,null,null,null,null,null,null,"",{"$f":"IF($A178=\"\",\"\",IF(VLOOKUP($G178,$H$11:$DO$1000,103,FALSE)=\"\",\"No\",IF(LEFT(VLOOKUP($G178,$H$11:$DO$1000,103,FALSE),3)=\"The\",EM178,VLOOKUP(VLOOKUP($G178,$H$11:$DO$1000,103,FALSE),DeclMatrix!$A$2:$F$5,VLOOKUP('Enrollment Form'!$B178,DeclMatrix!$A$8:$B$12,2,FALSE),FALSE))))","v":""},{"$f":"IF($A178=\"\",\"\",IF(VLOOKUP($G178,$H$11:$DO$1000,106,FALSE)=\"\",\"No\",IF(LEFT(VLOOKUP($G178,$H$11:$DO$1000,106,FALSE),3)=\"The\",EN178,VLOOKUP(VLOOKUP($G178,$H$11:$DO$1000,106,FALSE),DeclMatrix!$A$2:$F$5,VLOOKUP('Enrollment Form'!$B178,DeclMatrix!$A$8:$B$12,2,FALSE),FALSE))))","v":""},{"$f":"IF($A178=\"\",\"\",IF(VLOOKUP($G178,$H$11:$DO$1000,109,FALSE)=\"\",\"No\",IF(LEFT(VLOOKUP($G178,$H$11:$DO$1000,109,FALSE),3)=\"The\",EO178,VLOOKUP(VLOOKUP($G178,$H$11:$DO$1000,109,FALSE),DeclMatrix!$A$2:$F$5,VLOOKUP('Enrollment Form'!$B178,DeclMatrix!$A$8:$B$12,2,FALSE),FALSE))))","v":""},{"$f":"IF($A178=\"\",\"\",IF(VLOOKUP($G178,$H$11:$DO$1000,112,FALSE)=\"\",\"No\",IF(LEFT(VLOOKUP($G178,$H$11:$DO$1000,112,FALSE),3)=\"The\",EP178,VLOOKUP(VLOOKUP($G178,$H$11:$DO$1000,112,FALSE),DeclMatrix!$A$2:$F$5,VLOOKUP('Enrollment Form'!$B178,DeclMatrix!$A$8:$B$12,2,FALSE),FALSE))))","v":""},null,null,null,null,null,null,null,null,"",null,"","","","","","","","","","","",""]
["",null,null,null,null,null,"","",null,null,null,null,null,null,null,null,null,null,null,null,null,null,null,null,null,null,"","","","",null,null,"",null,null,null,null,null,null,null,null,null,null,null,null,null,null,null,null,null,null,null,null,null,null,null,null,null,null,null,"","","",null,null,null,null,"","","","",null,null,null,null,null,null,null,null,null,null,null,null,null,null,null,null,null,null,null,null,null,null,null,null,null,null,null,null,null,null,null,null,null,null,null,null,null,null,null,null,null,null,null,null,null,null,null,null,null,null,null,null,"",{"$f":"IF($A179=\"\",\"\",IF(VLOOKUP($G179,$H$11:$DO$1000,103,FALSE)=\"\",\"No\",IF(LEFT(VLOOKUP($G179,$H$11:$DO$1000,103,FALSE),3)=\"The\",EM179,VLOOKUP(VLOOKUP($G179,$H$11:$DO$1000,103,FALSE),DeclMatrix!$A$2:$F$5,VLOOKUP('Enrollment Form'!$B179,DeclMatrix!$A$8:$B$12,2,FALSE),FALSE))))","v":""},{"$f":"IF($A179=\"\",\"\",IF(VLOOKUP($G179,$H$11:$DO$1000,106,FALSE)=\"\",\"No\",IF(LEFT(VLOOKUP($G179,$H$11:$DO$1000,106,FALSE),3)=\"The\",EN179,VLOOKUP(VLOOKUP($G179,$H$11:$DO$1000,106,FALSE),DeclMatrix!$A$2:$F$5,VLOOKUP('Enrollment Form'!$B179,DeclMatrix!$A$8:$B$12,2,FALSE),FALSE))))","v":""},{"$f":"IF($A179=\"\",\"\",IF(VLOOKUP($G179,$H$11:$DO$1000,109,FALSE)=\"\",\"No\",IF(LEFT(VLOOKUP($G179,$H$11:$DO$1000,109,FALSE),3)=\"The\",EO179,VLOOKUP(VLOOKUP($G179,$H$11:$DO$1000,109,FALSE),DeclMatrix!$A$2:$F$5,VLOOKUP('Enrollment Form'!$B179,DeclMatrix!$A$8:$B$12,2,FALSE),FALSE))))","v":""},{"$f":"IF($A179=\"\",\"\",IF(VLOOKUP($G179,$H$11:$DO$1000,112,FALSE)=\"\",\"No\",IF(LEFT(VLOOKUP($G179,$H$11:$DO$1000,112,FALSE),3)=\"The\",EP179,VLOOKUP(VLOOKUP($G179,$H$11:$DO$1000,112,FALSE),DeclMatrix!$A$2:$F$5,VLOOKUP('Enrollment Form'!$B179,DeclMatrix!$A$8:$B$12,2,FALSE),FALSE))))","v":""},null,null,null,null,null,null,null,null,"",null,"","","","","","","","","","","",""]
["",null,null,null,null,null,"","",null,null,null,null,null,null,null,null,null,null,null,null,null,null,null,null,null,null,"","","","",null,null,"",null,null,null,null,null,null,null,null,null,null,null,null,null,null,null,null,null,null,null,null,null,null,null,null,null,null,null,"","","",null,null,null,null,"","","","",null,null,null,null,null,null,null,null,null,null,null,null,null,null,null,null,null,null,null,null,null,null,null,null,null,null,null,null,null,null,null,null,null,null,null,null,null,null,null,null,null,null,null,null,null,null,null,null,null,null,null,null,"",{"$f":"IF($A180=\"\",\"\",IF(VLOOKUP($G180,$H$11:$DO$1000,103,FALSE)=\"\",\"No\",IF(LEFT(VLOOKUP($G180,$H$11:$DO$1000,103,FALSE),3)=\"The\",EM180,VLOOKUP(VLOOKUP($G180,$H$11:$DO$1000,103,FALSE),DeclMatrix!$A$2:$F$5,VLOOKUP('Enrollment Form'!$B180,DeclMatrix!$A$8:$B$12,2,FALSE),FALSE))))","v":""},{"$f":"IF($A180=\"\",\"\",IF(VLOOKUP($G180,$H$11:$DO$1000,106,FALSE)=\"\",\"No\",IF(LEFT(VLOOKUP($G180,$H$11:$DO$1000,106,FALSE),3)=\"The\",EN180,VLOOKUP(VLOOKUP($G180,$H$11:$DO$1000,106,FALSE),DeclMatrix!$A$2:$F$5,VLOOKUP('Enrollment Form'!$B180,DeclMatrix!$A$8:$B$12,2,FALSE),FALSE))))","v":""},{"$f":"IF($A180=\"\",\"\",IF(VLOOKUP($G180,$H$11:$DO$1000,109,FALSE)=\"\",\"No\",IF(LEFT(VLOOKUP($G180,$H$11:$DO$1000,109,FALSE),3)=\"The\",EO180,VLOOKUP(VLOOKUP($G180,$H$11:$DO$1000,109,FALSE),DeclMatrix!$A$2:$F$5,VLOOKUP('Enrollment Form'!$B180,DeclMatrix!$A$8:$B$12,2,FALSE),FALSE))))","v":""},{"$f":"IF($A180=\"\",\"\",IF(VLOOKUP($G180,$H$11:$DO$1000,112,FALSE)=\"\",\"No\",IF(LEFT(VLOOKUP($G180,$H$11:$DO$1000,112,FALSE),3)=\"The\",EP180,VLOOKUP(VLOOKUP($G180,$H$11:$DO$1000,112,FALSE),DeclMatrix!$A$2:$F$5,VLOOKUP('Enrollment Form'!$B180,DeclMatrix!$A$8:$B$12,2,FALSE),FALSE))))","v":""},null,null,null,null,null,null,null,null,"",null,"","","","","","","","","","","",""]
["",null,null,null,null,null,"","",null,null,null,null,null,null,null,null,null,null,null,null,null,null,null,null,null,null,"","","","",null,null,"",null,null,null,null,null,null,null,null,null,null,null,null,null,null,null,null,null,null,null,null,null,null,null,null,null,null,null,"","","",null,null,null,null,"","","","",null,null,null,null,null,null,null,null,null,null,null,null,null,null,null,null,null,null,null,null,null,null,null,null,null,null,null,null,null,null,null,null,null,null,null,null,null,null,null,null,null,null,null,null,null,null,null,null,null,null,null,null,"",{"$f":"IF($A181=\"\",\"\",IF(VLOOKUP($G181,$H$11:$DO$1000,103,FALSE)=\"\",\"No\",IF(LEFT(VLOOKUP($G181,$H$11:$DO$1000,103,FALSE),3)=\"The\",EM181,VLOOKUP(VLOOKUP($G181,$H$11:$DO$1000,103,FALSE),DeclMatrix!$A$2:$F$5,VLOOKUP('Enrollment Form'!$B181,DeclMatrix!$A$8:$B$12,2,FALSE),FALSE))))","v":""},{"$f":"IF($A181=\"\",\"\",IF(VLOOKUP($G181,$H$11:$DO$1000,106,FALSE)=\"\",\"No\",IF(LEFT(VLOOKUP($G181,$H$11:$DO$1000,106,FALSE),3)=\"The\",EN181,VLOOKUP(VLOOKUP($G181,$H$11:$DO$1000,106,FALSE),DeclMatrix!$A$2:$F$5,VLOOKUP('Enrollment Form'!$B181,DeclMatrix!$A$8:$B$12,2,FALSE),FALSE))))","v":""},{"$f":"IF($A181=\"\",\"\",IF(VLOOKUP($G181,$H$11:$DO$1000,109,FALSE)=\"\",\"No\",IF(LEFT(VLOOKUP($G181,$H$11:$DO$1000,109,FALSE),3)=\"The\",EO181,VLOOKUP(VLOOKUP($G181,$H$11:$DO$1000,109,FALSE),DeclMatrix!$A$2:$F$5,VLOOKUP('Enrollment Form'!$B181,DeclMatrix!$A$8:$B$12,2,FALSE),FALSE))))","v":""},{"$f":"IF($A181=\"\",\"\",IF(VLOOKUP($G181,$H$11:$DO$1000,112,FALSE)=\"\",\"No\",IF(LEFT(VLOOKUP($G181,$H$11:$DO$1000,112,FALSE),3)=\"The\",EP181,VLOOKUP(VLOOKUP($G181,$H$11:$DO$1000,112,FALSE),DeclMatrix!$A$2:$F$5,VLOOKUP('Enrollment Form'!$B181,DeclMatrix!$A$8:$B$12,2,FALSE),FALSE))))","v":""},null,null,null,null,null,null,null,null,"",null,"","","","","","","","","","","",""]
["",null,null,null,null,null,"","",null,null,null,null,null,null,null,null,null,null,null,null,null,null,null,null,null,null,"","","","",null,null,"",null,null,null,null,null,null,null,null,null,null,null,null,null,null,null,null,null,null,null,null,null,null,null,null,null,null,null,"","","",null,null,null,null,"","","","",null,null,null,null,null,null,null,null,null,null,null,null,null,null,null,null,null,null,null,null,null,null,null,null,null,null,null,null,null,null,null,null,null,null,null,null,null,null,null,null,null,null,null,null,null,null,null,null,null,null,null,null,"",{"$f":"IF($A182=\"\",\"\",IF(VLOOKUP($G182,$H$11:$DO$1000,103,FALSE)=\"\",\"No\",IF(LEFT(VLOOKUP($G182,$H$11:$DO$1000,103,FALSE),3)=\"The\",EM182,VLOOKUP(VLOOKUP($G182,$H$11:$DO$1000,103,FALSE),DeclMatrix!$A$2:$F$5,VLOOKUP('Enrollment Form'!$B182,DeclMatrix!$A$8:$B$12,2,FALSE),FALSE))))","v":""},{"$f":"IF($A182=\"\",\"\",IF(VLOOKUP($G182,$H$11:$DO$1000,106,FALSE)=\"\",\"No\",IF(LEFT(VLOOKUP($G182,$H$11:$DO$1000,106,FALSE),3)=\"The\",EN182,VLOOKUP(VLOOKUP($G182,$H$11:$DO$1000,106,FALSE),DeclMatrix!$A$2:$F$5,VLOOKUP('Enrollment Form'!$B182,DeclMatrix!$A$8:$B$12,2,FALSE),FALSE))))","v":""},{"$f":"IF($A182=\"\",\"\",IF(VLOOKUP($G182,$H$11:$DO$1000,109,FALSE)=\"\",\"No\",IF(LEFT(VLOOKUP($G182,$H$11:$DO$1000,109,FALSE),3)=\"The\",EO182,VLOOKUP(VLOOKUP($G182,$H$11:$DO$1000,109,FALSE),DeclMatrix!$A$2:$F$5,VLOOKUP('Enrollment Form'!$B182,DeclMatrix!$A$8:$B$12,2,FALSE),FALSE))))","v":""},{"$f":"IF($A182=\"\",\"\",IF(VLOOKUP($G182,$H$11:$DO$1000,112,FALSE)=\"\",\"No\",IF(LEFT(VLOOKUP($G182,$H$11:$DO$1000,112,FALSE),3)=\"The\",EP182,VLOOKUP(VLOOKUP($G182,$H$11:$DO$1000,112,FALSE),DeclMatrix!$A$2:$F$5,VLOOKUP('Enrollment Form'!$B182,DeclMatrix!$A$8:$B$12,2,FALSE),FALSE))))","v":""},null,null,null,null,null,null,null,null,"",null,"","","","","","","","","","","",""]
["",null,null,null,null,null,"","",null,null,null,null,null,null,null,null,null,null,null,null,null,null,null,null,null,null,"","","","",null,null,"",null,null,null,null,null,null,null,null,null,null,null,null,null,null,null,null,null,null,null,null,null,null,null,null,null,null,null,"","","",null,null,null,null,"","","","",null,null,null,null,null,null,null,null,null,null,null,null,null,null,null,null,null,null,null,null,null,null,null,null,null,null,null,null,null,null,null,null,null,null,null,null,null,null,null,null,null,null,null,null,null,null,null,null,null,null,null,null,"",{"$f":"IF($A183=\"\",\"\",IF(VLOOKUP($G183,$H$11:$DO$1000,103,FALSE)=\"\",\"No\",IF(LEFT(VLOOKUP($G183,$H$11:$DO$1000,103,FALSE),3)=\"The\",EM183,VLOOKUP(VLOOKUP($G183,$H$11:$DO$1000,103,FALSE),DeclMatrix!$A$2:$F$5,VLOOKUP('Enrollment Form'!$B183,DeclMatrix!$A$8:$B$12,2,FALSE),FALSE))))","v":""},{"$f":"IF($A183=\"\",\"\",IF(VLOOKUP($G183,$H$11:$DO$1000,106,FALSE)=\"\",\"No\",IF(LEFT(VLOOKUP($G183,$H$11:$DO$1000,106,FALSE),3)=\"The\",EN183,VLOOKUP(VLOOKUP($G183,$H$11:$DO$1000,106,FALSE),DeclMatrix!$A$2:$F$5,VLOOKUP('Enrollment Form'!$B183,DeclMatrix!$A$8:$B$12,2,FALSE),FALSE))))","v":""},{"$f":"IF($A183=\"\",\"\",IF(VLOOKUP($G183,$H$11:$DO$1000,109,FALSE)=\"\",\"No\",IF(LEFT(VLOOKUP($G183,$H$11:$DO$1000,109,FALSE),3)=\"The\",EO183,VLOOKUP(VLOOKUP($G183,$H$11:$DO$1000,109,FALSE),DeclMatrix!$A$2:$F$5,VLOOKUP('Enrollment Form'!$B183,DeclMatrix!$A$8:$B$12,2,FALSE),FALSE))))","v":""},{"$f":"IF($A183=\"\",\"\",IF(VLOOKUP($G183,$H$11:$DO$1000,112,FALSE)=\"\",\"No\",IF(LEFT(VLOOKUP($G183,$H$11:$DO$1000,112,FALSE),3)=\"The\",EP183,VLOOKUP(VLOOKUP($G183,$H$11:$DO$1000,112,FALSE),DeclMatrix!$A$2:$F$5,VLOOKUP('Enrollment Form'!$B183,DeclMatrix!$A$8:$B$12,2,FALSE),FALSE))))","v":""},null,null,null,null,null,null,null,null,"",null,"","","","","","","","","","","",""]
["",null,null,null,null,null,"","",null,null,null,null,null,null,null,null,null,null,null,null,null,null,null,null,null,null,"","","","",null,null,"",null,null,null,null,null,null,null,null,null,null,null,null,null,null,null,null,null,null,null,null,null,null,null,null,null,null,null,"","","",null,null,null,null,"","","","",null,null,null,null,null,null,null,null,null,null,null,null,null,null,null,null,null,null,null,null,null,null,null,null,null,null,null,null,null,null,null,null,null,null,null,null,null,null,null,null,null,null,null,null,null,null,null,null,null,null,null,null,"",{"$f":"IF($A184=\"\",\"\",IF(VLOOKUP($G184,$H$11:$DO$1000,103,FALSE)=\"\",\"No\",IF(LEFT(VLOOKUP($G184,$H$11:$DO$1000,103,FALSE),3)=\"The\",EM184,VLOOKUP(VLOOKUP($G184,$H$11:$DO$1000,103,FALSE),DeclMatrix!$A$2:$F$5,VLOOKUP('Enrollment Form'!$B184,DeclMatrix!$A$8:$B$12,2,FALSE),FALSE))))","v":""},{"$f":"IF($A184=\"\",\"\",IF(VLOOKUP($G184,$H$11:$DO$1000,106,FALSE)=\"\",\"No\",IF(LEFT(VLOOKUP($G184,$H$11:$DO$1000,106,FALSE),3)=\"The\",EN184,VLOOKUP(VLOOKUP($G184,$H$11:$DO$1000,106,FALSE),DeclMatrix!$A$2:$F$5,VLOOKUP('Enrollment Form'!$B184,DeclMatrix!$A$8:$B$12,2,FALSE),FALSE))))","v":""},{"$f":"IF($A184=\"\",\"\",IF(VLOOKUP($G184,$H$11:$DO$1000,109,FALSE)=\"\",\"No\",IF(LEFT(VLOOKUP($G184,$H$11:$DO$1000,109,FALSE),3)=\"The\",EO184,VLOOKUP(VLOOKUP($G184,$H$11:$DO$1000,109,FALSE),DeclMatrix!$A$2:$F$5,VLOOKUP('Enrollment Form'!$B184,DeclMatrix!$A$8:$B$12,2,FALSE),FALSE))))","v":""},{"$f":"IF($A184=\"\",\"\",IF(VLOOKUP($G184,$H$11:$DO$1000,112,FALSE)=\"\",\"No\",IF(LEFT(VLOOKUP($G184,$H$11:$DO$1000,112,FALSE),3)=\"The\",EP184,VLOOKUP(VLOOKUP($G184,$H$11:$DO$1000,112,FALSE),DeclMatrix!$A$2:$F$5,VLOOKUP('Enrollment Form'!$B184,DeclMatrix!$A$8:$B$12,2,FALSE),FALSE))))","v":""},null,null,null,null,null,null,null,null,"",null,"","","","","","","","","","","",""]
["",null,null,null,null,null,"","",null,null,null,null,null,null,null,null,null,null,null,null,null,null,null,null,null,null,"","","","",null,null,"",null,null,null,null,null,null,null,null,null,null,null,null,null,null,null,null,null,null,null,null,null,null,null,null,null,null,null,"","","",null,null,null,null,"","","","",null,null,null,null,null,null,null,null,null,null,null,null,null,null,null,null,null,null,null,null,null,null,null,null,null,null,null,null,null,null,null,null,null,null,null,null,null,null,null,null,null,null,null,null,null,null,null,null,null,null,null,null,"",{"$f":"IF($A185=\"\",\"\",IF(VLOOKUP($G185,$H$11:$DO$1000,103,FALSE)=\"\",\"No\",IF(LEFT(VLOOKUP($G185,$H$11:$DO$1000,103,FALSE),3)=\"The\",EM185,VLOOKUP(VLOOKUP($G185,$H$11:$DO$1000,103,FALSE),DeclMatrix!$A$2:$F$5,VLOOKUP('Enrollment Form'!$B185,DeclMatrix!$A$8:$B$12,2,FALSE),FALSE))))","v":""},{"$f":"IF($A185=\"\",\"\",IF(VLOOKUP($G185,$H$11:$DO$1000,106,FALSE)=\"\",\"No\",IF(LEFT(VLOOKUP($G185,$H$11:$DO$1000,106,FALSE),3)=\"The\",EN185,VLOOKUP(VLOOKUP($G185,$H$11:$DO$1000,106,FALSE),DeclMatrix!$A$2:$F$5,VLOOKUP('Enrollment Form'!$B185,DeclMatrix!$A$8:$B$12,2,FALSE),FALSE))))","v":""},{"$f":"IF($A185=\"\",\"\",IF(VLOOKUP($G185,$H$11:$DO$1000,109,FALSE)=\"\",\"No\",IF(LEFT(VLOOKUP($G185,$H$11:$DO$1000,109,FALSE),3)=\"The\",EO185,VLOOKUP(VLOOKUP($G185,$H$11:$DO$1000,109,FALSE),DeclMatrix!$A$2:$F$5,VLOOKUP('Enrollment Form'!$B185,DeclMatrix!$A$8:$B$12,2,FALSE),FALSE))))","v":""},{"$f":"IF($A185=\"\",\"\",IF(VLOOKUP($G185,$H$11:$DO$1000,112,FALSE)=\"\",\"No\",IF(LEFT(VLOOKUP($G185,$H$11:$DO$1000,112,FALSE),3)=\"The\",EP185,VLOOKUP(VLOOKUP($G185,$H$11:$DO$1000,112,FALSE),DeclMatrix!$A$2:$F$5,VLOOKUP('Enrollment Form'!$B185,DeclMatrix!$A$8:$B$12,2,FALSE),FALSE))))","v":""},null,null,null,null,null,null,null,null,"",null,"","","","","","","","","","","",""]
["",null,null,null,null,null,"","",null,null,null,null,null,null,null,null,null,null,null,null,null,null,null,null,null,null,"","","","",null,null,"",null,null,null,null,null,null,null,null,null,null,null,null,null,null,null,null,null,null,null,null,null,null,null,null,null,null,null,"","","",null,null,null,null,"","","","",null,null,null,null,null,null,null,null,null,null,null,null,null,null,null,null,null,null,null,null,null,null,null,null,null,null,null,null,null,null,null,null,null,null,null,null,null,null,null,null,null,null,null,null,null,null,null,null,null,null,null,null,"",{"$f":"IF($A186=\"\",\"\",IF(VLOOKUP($G186,$H$11:$DO$1000,103,FALSE)=\"\",\"No\",IF(LEFT(VLOOKUP($G186,$H$11:$DO$1000,103,FALSE),3)=\"The\",EM186,VLOOKUP(VLOOKUP($G186,$H$11:$DO$1000,103,FALSE),DeclMatrix!$A$2:$F$5,VLOOKUP('Enrollment Form'!$B186,DeclMatrix!$A$8:$B$12,2,FALSE),FALSE))))","v":""},{"$f":"IF($A186=\"\",\"\",IF(VLOOKUP($G186,$H$11:$DO$1000,106,FALSE)=\"\",\"No\",IF(LEFT(VLOOKUP($G186,$H$11:$DO$1000,106,FALSE),3)=\"The\",EN186,VLOOKUP(VLOOKUP($G186,$H$11:$DO$1000,106,FALSE),DeclMatrix!$A$2:$F$5,VLOOKUP('Enrollment Form'!$B186,DeclMatrix!$A$8:$B$12,2,FALSE),FALSE))))","v":""},{"$f":"IF($A186=\"\",\"\",IF(VLOOKUP($G186,$H$11:$DO$1000,109,FALSE)=\"\",\"No\",IF(LEFT(VLOOKUP($G186,$H$11:$DO$1000,109,FALSE),3)=\"The\",EO186,VLOOKUP(VLOOKUP($G186,$H$11:$DO$1000,109,FALSE),DeclMatrix!$A$2:$F$5,VLOOKUP('Enrollment Form'!$B186,DeclMatrix!$A$8:$B$12,2,FALSE),FALSE))))","v":""},{"$f":"IF($A186=\"\",\"\",IF(VLOOKUP($G186,$H$11:$DO$1000,112,FALSE)=\"\",\"No\",IF(LEFT(VLOOKUP($G186,$H$11:$DO$1000,112,FALSE),3)=\"The\",EP186,VLOOKUP(VLOOKUP($G186,$H$11:$DO$1000,112,FALSE),DeclMatrix!$A$2:$F$5,VLOOKUP('Enrollment Form'!$B186,DeclMatrix!$A$8:$B$12,2,FALSE),FALSE))))","v":""},null,null,null,null,null,null,null,null,"",null,"","","","","","","","","","","",""]
["",null,null,null,null,null,"","",null,null,null,null,null,null,null,null,null,null,null,null,null,null,null,null,null,null,"","","","",null,null,"",null,null,null,null,null,null,null,null,null,null,null,null,null,null,null,null,null,null,null,null,null,null,null,null,null,null,null,"","","",null,null,null,null,"","","","",null,null,null,null,null,null,null,null,null,null,null,null,null,null,null,null,null,null,null,null,null,null,null,null,null,null,null,null,null,null,null,null,null,null,null,null,null,null,null,null,null,null,null,null,null,null,null,null,null,null,null,null,"",{"$f":"IF($A187=\"\",\"\",IF(VLOOKUP($G187,$H$11:$DO$1000,103,FALSE)=\"\",\"No\",IF(LEFT(VLOOKUP($G187,$H$11:$DO$1000,103,FALSE),3)=\"The\",EM187,VLOOKUP(VLOOKUP($G187,$H$11:$DO$1000,103,FALSE),DeclMatrix!$A$2:$F$5,VLOOKUP('Enrollment Form'!$B187,DeclMatrix!$A$8:$B$12,2,FALSE),FALSE))))","v":""},{"$f":"IF($A187=\"\",\"\",IF(VLOOKUP($G187,$H$11:$DO$1000,106,FALSE)=\"\",\"No\",IF(LEFT(VLOOKUP($G187,$H$11:$DO$1000,106,FALSE),3)=\"The\",EN187,VLOOKUP(VLOOKUP($G187,$H$11:$DO$1000,106,FALSE),DeclMatrix!$A$2:$F$5,VLOOKUP('Enrollment Form'!$B187,DeclMatrix!$A$8:$B$12,2,FALSE),FALSE))))","v":""},{"$f":"IF($A187=\"\",\"\",IF(VLOOKUP($G187,$H$11:$DO$1000,109,FALSE)=\"\",\"No\",IF(LEFT(VLOOKUP($G187,$H$11:$DO$1000,109,FALSE),3)=\"The\",EO187,VLOOKUP(VLOOKUP($G187,$H$11:$DO$1000,109,FALSE),DeclMatrix!$A$2:$F$5,VLOOKUP('Enrollment Form'!$B187,DeclMatrix!$A$8:$B$12,2,FALSE),FALSE))))","v":""},{"$f":"IF($A187=\"\",\"\",IF(VLOOKUP($G187,$H$11:$DO$1000,112,FALSE)=\"\",\"No\",IF(LEFT(VLOOKUP($G187,$H$11:$DO$1000,112,FALSE),3)=\"The\",EP187,VLOOKUP(VLOOKUP($G187,$H$11:$DO$1000,112,FALSE),DeclMatrix!$A$2:$F$5,VLOOKUP('Enrollment Form'!$B187,DeclMatrix!$A$8:$B$12,2,FALSE),FALSE))))","v":""},null,null,null,null,null,null,null,null,"",null,"","","","","","","","","","","",""]
["",null,null,null,null,null,"","",null,null,null,null,null,null,null,null,null,null,null,null,null,null,null,null,null,null,"","","","",null,null,"",null,null,null,null,null,null,null,null,null,null,null,null,null,null,null,null,null,null,null,null,null,null,null,null,null,null,null,"","","",null,null,null,null,"","","","",null,null,null,null,null,null,null,null,null,null,null,null,null,null,null,null,null,null,null,null,null,null,null,null,null,null,null,null,null,null,null,null,null,null,null,null,null,null,null,null,null,null,null,null,null,null,null,null,null,null,null,null,"",{"$f":"IF($A188=\"\",\"\",IF(VLOOKUP($G188,$H$11:$DO$1000,103,FALSE)=\"\",\"No\",IF(LEFT(VLOOKUP($G188,$H$11:$DO$1000,103,FALSE),3)=\"The\",EM188,VLOOKUP(VLOOKUP($G188,$H$11:$DO$1000,103,FALSE),DeclMatrix!$A$2:$F$5,VLOOKUP('Enrollment Form'!$B188,DeclMatrix!$A$8:$B$12,2,FALSE),FALSE))))","v":""},{"$f":"IF($A188=\"\",\"\",IF(VLOOKUP($G188,$H$11:$DO$1000,106,FALSE)=\"\",\"No\",IF(LEFT(VLOOKUP($G188,$H$11:$DO$1000,106,FALSE),3)=\"The\",EN188,VLOOKUP(VLOOKUP($G188,$H$11:$DO$1000,106,FALSE),DeclMatrix!$A$2:$F$5,VLOOKUP('Enrollment Form'!$B188,DeclMatrix!$A$8:$B$12,2,FALSE),FALSE))))","v":""},{"$f":"IF($A188=\"\",\"\",IF(VLOOKUP($G188,$H$11:$DO$1000,109,FALSE)=\"\",\"No\",IF(LEFT(VLOOKUP($G188,$H$11:$DO$1000,109,FALSE),3)=\"The\",EO188,VLOOKUP(VLOOKUP($G188,$H$11:$DO$1000,109,FALSE),DeclMatrix!$A$2:$F$5,VLOOKUP('Enrollment Form'!$B188,DeclMatrix!$A$8:$B$12,2,FALSE),FALSE))))","v":""},{"$f":"IF($A188=\"\",\"\",IF(VLOOKUP($G188,$H$11:$DO$1000,112,FALSE)=\"\",\"No\",IF(LEFT(VLOOKUP($G188,$H$11:$DO$1000,112,FALSE),3)=\"The\",EP188,VLOOKUP(VLOOKUP($G188,$H$11:$DO$1000,112,FALSE),DeclMatrix!$A$2:$F$5,VLOOKUP('Enrollment Form'!$B188,DeclMatrix!$A$8:$B$12,2,FALSE),FALSE))))","v":""},null,null,null,null,null,null,null,null,"",null,"","","","","","","","","","","",""]
["",null,null,null,null,null,"","",null,null,null,null,null,null,null,null,null,null,null,null,null,null,null,null,null,null,"","","","",null,null,"",null,null,null,null,null,null,null,null,null,null,null,null,null,null,null,null,null,null,null,null,null,null,null,null,null,null,null,"","","",null,null,null,null,"","","","",null,null,null,null,null,null,null,null,null,null,null,null,null,null,null,null,null,null,null,null,null,null,null,null,null,null,null,null,null,null,null,null,null,null,null,null,null,null,null,null,null,null,null,null,null,null,null,null,null,null,null,null,"",{"$f":"IF($A189=\"\",\"\",IF(VLOOKUP($G189,$H$11:$DO$1000,103,FALSE)=\"\",\"No\",IF(LEFT(VLOOKUP($G189,$H$11:$DO$1000,103,FALSE),3)=\"The\",EM189,VLOOKUP(VLOOKUP($G189,$H$11:$DO$1000,103,FALSE),DeclMatrix!$A$2:$F$5,VLOOKUP('Enrollment Form'!$B189,DeclMatrix!$A$8:$B$12,2,FALSE),FALSE))))","v":""},{"$f":"IF($A189=\"\",\"\",IF(VLOOKUP($G189,$H$11:$DO$1000,106,FALSE)=\"\",\"No\",IF(LEFT(VLOOKUP($G189,$H$11:$DO$1000,106,FALSE),3)=\"The\",EN189,VLOOKUP(VLOOKUP($G189,$H$11:$DO$1000,106,FALSE),DeclMatrix!$A$2:$F$5,VLOOKUP('Enrollment Form'!$B189,DeclMatrix!$A$8:$B$12,2,FALSE),FALSE))))","v":""},{"$f":"IF($A189=\"\",\"\",IF(VLOOKUP($G189,$H$11:$DO$1000,109,FALSE)=\"\",\"No\",IF(LEFT(VLOOKUP($G189,$H$11:$DO$1000,109,FALSE),3)=\"The\",EO189,VLOOKUP(VLOOKUP($G189,$H$11:$DO$1000,109,FALSE),DeclMatrix!$A$2:$F$5,VLOOKUP('Enrollment Form'!$B189,DeclMatrix!$A$8:$B$12,2,FALSE),FALSE))))","v":""},{"$f":"IF($A189=\"\",\"\",IF(VLOOKUP($G189,$H$11:$DO$1000,112,FALSE)=\"\",\"No\",IF(LEFT(VLOOKUP($G189,$H$11:$DO$1000,112,FALSE),3)=\"The\",EP189,VLOOKUP(VLOOKUP($G189,$H$11:$DO$1000,112,FALSE),DeclMatrix!$A$2:$F$5,VLOOKUP('Enrollment Form'!$B189,DeclMatrix!$A$8:$B$12,2,FALSE),FALSE))))","v":""},null,null,null,null,null,null,null,null,"",null,"","","","","","","","","","","",""]
["",null,null,null,null,null,"","",null,null,null,null,null,null,null,null,null,null,null,null,null,null,null,null,null,null,"","","","",null,null,"",null,null,null,null,null,null,null,null,null,null,null,null,null,null,null,null,null,null,null,null,null,null,null,null,null,null,null,"","","",null,null,null,null,"","","","",null,null,null,null,null,null,null,null,null,null,null,null,null,null,null,null,null,null,null,null,null,null,null,null,null,null,null,null,null,null,null,null,null,null,null,null,null,null,null,null,null,null,null,null,null,null,null,null,null,null,null,null,"",{"$f":"IF($A190=\"\",\"\",IF(VLOOKUP($G190,$H$11:$DO$1000,103,FALSE)=\"\",\"No\",IF(LEFT(VLOOKUP($G190,$H$11:$DO$1000,103,FALSE),3)=\"The\",EM190,VLOOKUP(VLOOKUP($G190,$H$11:$DO$1000,103,FALSE),DeclMatrix!$A$2:$F$5,VLOOKUP('Enrollment Form'!$B190,DeclMatrix!$A$8:$B$12,2,FALSE),FALSE))))","v":""},{"$f":"IF($A190=\"\",\"\",IF(VLOOKUP($G190,$H$11:$DO$1000,106,FALSE)=\"\",\"No\",IF(LEFT(VLOOKUP($G190,$H$11:$DO$1000,106,FALSE),3)=\"The\",EN190,VLOOKUP(VLOOKUP($G190,$H$11:$DO$1000,106,FALSE),DeclMatrix!$A$2:$F$5,VLOOKUP('Enrollment Form'!$B190,DeclMatrix!$A$8:$B$12,2,FALSE),FALSE))))","v":""},{"$f":"IF($A190=\"\",\"\",IF(VLOOKUP($G190,$H$11:$DO$1000,109,FALSE)=\"\",\"No\",IF(LEFT(VLOOKUP($G190,$H$11:$DO$1000,109,FALSE),3)=\"The\",EO190,VLOOKUP(VLOOKUP($G190,$H$11:$DO$1000,109,FALSE),DeclMatrix!$A$2:$F$5,VLOOKUP('Enrollment Form'!$B190,DeclMatrix!$A$8:$B$12,2,FALSE),FALSE))))","v":""},{"$f":"IF($A190=\"\",\"\",IF(VLOOKUP($G190,$H$11:$DO$1000,112,FALSE)=\"\",\"No\",IF(LEFT(VLOOKUP($G190,$H$11:$DO$1000,112,FALSE),3)=\"The\",EP190,VLOOKUP(VLOOKUP($G190,$H$11:$DO$1000,112,FALSE),DeclMatrix!$A$2:$F$5,VLOOKUP('Enrollment Form'!$B190,DeclMatrix!$A$8:$B$12,2,FALSE),FALSE))))","v":""},null,null,null,null,null,null,null,null,"",null,"","","","","","","","","","","",""]
["",null,null,null,null,null,"","",null,null,null,null,null,null,null,null,null,null,null,null,null,null,null,null,null,null,"","","","",null,null,"",null,null,null,null,null,null,null,null,null,null,null,null,null,null,null,null,null,null,null,null,null,null,null,null,null,null,null,"","","",null,null,null,null,"","","","",null,null,null,null,null,null,null,null,null,null,null,null,null,null,null,null,null,null,null,null,null,null,null,null,null,null,null,null,null,null,null,null,null,null,null,null,null,null,null,null,null,null,null,null,null,null,null,null,null,null,null,null,"",{"$f":"IF($A191=\"\",\"\",IF(VLOOKUP($G191,$H$11:$DO$1000,103,FALSE)=\"\",\"No\",IF(LEFT(VLOOKUP($G191,$H$11:$DO$1000,103,FALSE),3)=\"The\",EM191,VLOOKUP(VLOOKUP($G191,$H$11:$DO$1000,103,FALSE),DeclMatrix!$A$2:$F$5,VLOOKUP('Enrollment Form'!$B191,DeclMatrix!$A$8:$B$12,2,FALSE),FALSE))))","v":""},{"$f":"IF($A191=\"\",\"\",IF(VLOOKUP($G191,$H$11:$DO$1000,106,FALSE)=\"\",\"No\",IF(LEFT(VLOOKUP($G191,$H$11:$DO$1000,106,FALSE),3)=\"The\",EN191,VLOOKUP(VLOOKUP($G191,$H$11:$DO$1000,106,FALSE),DeclMatrix!$A$2:$F$5,VLOOKUP('Enrollment Form'!$B191,DeclMatrix!$A$8:$B$12,2,FALSE),FALSE))))","v":""},{"$f":"IF($A191=\"\",\"\",IF(VLOOKUP($G191,$H$11:$DO$1000,109,FALSE)=\"\",\"No\",IF(LEFT(VLOOKUP($G191,$H$11:$DO$1000,109,FALSE),3)=\"The\",EO191,VLOOKUP(VLOOKUP($G191,$H$11:$DO$1000,109,FALSE),DeclMatrix!$A$2:$F$5,VLOOKUP('Enrollment Form'!$B191,DeclMatrix!$A$8:$B$12,2,FALSE),FALSE))))","v":""},{"$f":"IF($A191=\"\",\"\",IF(VLOOKUP($G191,$H$11:$DO$1000,112,FALSE)=\"\",\"No\",IF(LEFT(VLOOKUP($G191,$H$11:$DO$1000,112,FALSE),3)=\"The\",EP191,VLOOKUP(VLOOKUP($G191,$H$11:$DO$1000,112,FALSE),DeclMatrix!$A$2:$F$5,VLOOKUP('Enrollment Form'!$B191,DeclMatrix!$A$8:$B$12,2,FALSE),FALSE))))","v":""},null,null,null,null,null,null,null,null,"",null,"","","","","","","","","","","",""]
["",null,null,null,null,null,"","",null,null,null,null,null,null,null,null,null,null,null,null,null,null,null,null,null,null,"","","","",null,null,"",null,null,null,null,null,null,null,null,null,null,null,null,null,null,null,null,null,null,null,null,null,null,null,null,null,null,null,"","","",null,null,null,null,"","","","",null,null,null,null,null,null,null,null,null,null,null,null,null,null,null,null,null,null,null,null,null,null,null,null,null,null,null,null,null,null,null,null,null,null,null,null,null,null,null,null,null,null,null,null,null,null,null,null,null,null,null,null,"",{"$f":"IF($A192=\"\",\"\",IF(VLOOKUP($G192,$H$11:$DO$1000,103,FALSE)=\"\",\"No\",IF(LEFT(VLOOKUP($G192,$H$11:$DO$1000,103,FALSE),3)=\"The\",EM192,VLOOKUP(VLOOKUP($G192,$H$11:$DO$1000,103,FALSE),DeclMatrix!$A$2:$F$5,VLOOKUP('Enrollment Form'!$B192,DeclMatrix!$A$8:$B$12,2,FALSE),FALSE))))","v":""},{"$f":"IF($A192=\"\",\"\",IF(VLOOKUP($G192,$H$11:$DO$1000,106,FALSE)=\"\",\"No\",IF(LEFT(VLOOKUP($G192,$H$11:$DO$1000,106,FALSE),3)=\"The\",EN192,VLOOKUP(VLOOKUP($G192,$H$11:$DO$1000,106,FALSE),DeclMatrix!$A$2:$F$5,VLOOKUP('Enrollment Form'!$B192,DeclMatrix!$A$8:$B$12,2,FALSE),FALSE))))","v":""},{"$f":"IF($A192=\"\",\"\",IF(VLOOKUP($G192,$H$11:$DO$1000,109,FALSE)=\"\",\"No\",IF(LEFT(VLOOKUP($G192,$H$11:$DO$1000,109,FALSE),3)=\"The\",EO192,VLOOKUP(VLOOKUP($G192,$H$11:$DO$1000,109,FALSE),DeclMatrix!$A$2:$F$5,VLOOKUP('Enrollment Form'!$B192,DeclMatrix!$A$8:$B$12,2,FALSE),FALSE))))","v":""},{"$f":"IF($A192=\"\",\"\",IF(VLOOKUP($G192,$H$11:$DO$1000,112,FALSE)=\"\",\"No\",IF(LEFT(VLOOKUP($G192,$H$11:$DO$1000,112,FALSE),3)=\"The\",EP192,VLOOKUP(VLOOKUP($G192,$H$11:$DO$1000,112,FALSE),DeclMatrix!$A$2:$F$5,VLOOKUP('Enrollment Form'!$B192,DeclMatrix!$A$8:$B$12,2,FALSE),FALSE))))","v":""},null,null,null,null,null,null,null,null,"",null,"","","","","","","","","","","",""]
["",null,null,null,null,null,"","",null,null,null,null,null,null,null,null,null,null,null,null,null,null,null,null,null,null,"","","","",null,null,"",null,null,null,null,null,null,null,null,null,null,null,null,null,null,null,null,null,null,null,null,null,null,null,null,null,null,null,"","","",null,null,null,null,"","","","",null,null,null,null,null,null,null,null,null,null,null,null,null,null,null,null,null,null,null,null,null,null,null,null,null,null,null,null,null,null,null,null,null,null,null,null,null,null,null,null,null,null,null,null,null,null,null,null,null,null,null,null,"",{"$f":"IF($A193=\"\",\"\",IF(VLOOKUP($G193,$H$11:$DO$1000,103,FALSE)=\"\",\"No\",IF(LEFT(VLOOKUP($G193,$H$11:$DO$1000,103,FALSE),3)=\"The\",EM193,VLOOKUP(VLOOKUP($G193,$H$11:$DO$1000,103,FALSE),DeclMatrix!$A$2:$F$5,VLOOKUP('Enrollment Form'!$B193,DeclMatrix!$A$8:$B$12,2,FALSE),FALSE))))","v":""},{"$f":"IF($A193=\"\",\"\",IF(VLOOKUP($G193,$H$11:$DO$1000,106,FALSE)=\"\",\"No\",IF(LEFT(VLOOKUP($G193,$H$11:$DO$1000,106,FALSE),3)=\"The\",EN193,VLOOKUP(VLOOKUP($G193,$H$11:$DO$1000,106,FALSE),DeclMatrix!$A$2:$F$5,VLOOKUP('Enrollment Form'!$B193,DeclMatrix!$A$8:$B$12,2,FALSE),FALSE))))","v":""},{"$f":"IF($A193=\"\",\"\",IF(VLOOKUP($G193,$H$11:$DO$1000,109,FALSE)=\"\",\"No\",IF(LEFT(VLOOKUP($G193,$H$11:$DO$1000,109,FALSE),3)=\"The\",EO193,VLOOKUP(VLOOKUP($G193,$H$11:$DO$1000,109,FALSE),DeclMatrix!$A$2:$F$5,VLOOKUP('Enrollment Form'!$B193,DeclMatrix!$A$8:$B$12,2,FALSE),FALSE))))","v":""},{"$f":"IF($A193=\"\",\"\",IF(VLOOKUP($G193,$H$11:$DO$1000,112,FALSE)=\"\",\"No\",IF(LEFT(VLOOKUP($G193,$H$11:$DO$1000,112,FALSE),3)=\"The\",EP193,VLOOKUP(VLOOKUP($G193,$H$11:$DO$1000,112,FALSE),DeclMatrix!$A$2:$F$5,VLOOKUP('Enrollment Form'!$B193,DeclMatrix!$A$8:$B$12,2,FALSE),FALSE))))","v":""},null,null,null,null,null,null,null,null,"",null,"","","","","","","","","","","",""]
["",null,null,null,null,null,"","",null,null,null,null,null,null,null,null,null,null,null,null,null,null,null,null,null,null,"","","","",null,null,"",null,null,null,null,null,null,null,null,null,null,null,null,null,null,null,null,null,null,null,null,null,null,null,null,null,null,null,"","","",null,null,null,null,"","","","",null,null,null,null,null,null,null,null,null,null,null,null,null,null,null,null,null,null,null,null,null,null,null,null,null,null,null,null,null,null,null,null,null,null,null,null,null,null,null,null,null,null,null,null,null,null,null,null,null,null,null,null,"",{"$f":"IF($A194=\"\",\"\",IF(VLOOKUP($G194,$H$11:$DO$1000,103,FALSE)=\"\",\"No\",IF(LEFT(VLOOKUP($G194,$H$11:$DO$1000,103,FALSE),3)=\"The\",EM194,VLOOKUP(VLOOKUP($G194,$H$11:$DO$1000,103,FALSE),DeclMatrix!$A$2:$F$5,VLOOKUP('Enrollment Form'!$B194,DeclMatrix!$A$8:$B$12,2,FALSE),FALSE))))","v":""},{"$f":"IF($A194=\"\",\"\",IF(VLOOKUP($G194,$H$11:$DO$1000,106,FALSE)=\"\",\"No\",IF(LEFT(VLOOKUP($G194,$H$11:$DO$1000,106,FALSE),3)=\"The\",EN194,VLOOKUP(VLOOKUP($G194,$H$11:$DO$1000,106,FALSE),DeclMatrix!$A$2:$F$5,VLOOKUP('Enrollment Form'!$B194,DeclMatrix!$A$8:$B$12,2,FALSE),FALSE))))","v":""},{"$f":"IF($A194=\"\",\"\",IF(VLOOKUP($G194,$H$11:$DO$1000,109,FALSE)=\"\",\"No\",IF(LEFT(VLOOKUP($G194,$H$11:$DO$1000,109,FALSE),3)=\"The\",EO194,VLOOKUP(VLOOKUP($G194,$H$11:$DO$1000,109,FALSE),DeclMatrix!$A$2:$F$5,VLOOKUP('Enrollment Form'!$B194,DeclMatrix!$A$8:$B$12,2,FALSE),FALSE))))","v":""},{"$f":"IF($A194=\"\",\"\",IF(VLOOKUP($G194,$H$11:$DO$1000,112,FALSE)=\"\",\"No\",IF(LEFT(VLOOKUP($G194,$H$11:$DO$1000,112,FALSE),3)=\"The\",EP194,VLOOKUP(VLOOKUP($G194,$H$11:$DO$1000,112,FALSE),DeclMatrix!$A$2:$F$5,VLOOKUP('Enrollment Form'!$B194,DeclMatrix!$A$8:$B$12,2,FALSE),FALSE))))","v":""},null,null,null,null,null,null,null,null,"",null,"","","","","","","","","","","",""]
["",null,null,null,null,null,"","",null,null,null,null,null,null,null,null,null,null,null,null,null,null,null,null,null,null,"","","","",null,null,"",null,null,null,null,null,null,null,null,null,null,null,null,null,null,null,null,null,null,null,null,null,null,null,null,null,null,null,"","","",null,null,null,null,"","","","",null,null,null,null,null,null,null,null,null,null,null,null,null,null,null,null,null,null,null,null,null,null,null,null,null,null,null,null,null,null,null,null,null,null,null,null,null,null,null,null,null,null,null,null,null,null,null,null,null,null,null,null,"",{"$f":"IF($A195=\"\",\"\",IF(VLOOKUP($G195,$H$11:$DO$1000,103,FALSE)=\"\",\"No\",IF(LEFT(VLOOKUP($G195,$H$11:$DO$1000,103,FALSE),3)=\"The\",EM195,VLOOKUP(VLOOKUP($G195,$H$11:$DO$1000,103,FALSE),DeclMatrix!$A$2:$F$5,VLOOKUP('Enrollment Form'!$B195,DeclMatrix!$A$8:$B$12,2,FALSE),FALSE))))","v":""},{"$f":"IF($A195=\"\",\"\",IF(VLOOKUP($G195,$H$11:$DO$1000,106,FALSE)=\"\",\"No\",IF(LEFT(VLOOKUP($G195,$H$11:$DO$1000,106,FALSE),3)=\"The\",EN195,VLOOKUP(VLOOKUP($G195,$H$11:$DO$1000,106,FALSE),DeclMatrix!$A$2:$F$5,VLOOKUP('Enrollment Form'!$B195,DeclMatrix!$A$8:$B$12,2,FALSE),FALSE))))","v":""},{"$f":"IF($A195=\"\",\"\",IF(VLOOKUP($G195,$H$11:$DO$1000,109,FALSE)=\"\",\"No\",IF(LEFT(VLOOKUP($G195,$H$11:$DO$1000,109,FALSE),3)=\"The\",EO195,VLOOKUP(VLOOKUP($G195,$H$11:$DO$1000,109,FALSE),DeclMatrix!$A$2:$F$5,VLOOKUP('Enrollment Form'!$B195,DeclMatrix!$A$8:$B$12,2,FALSE),FALSE))))","v":""},{"$f":"IF($A195=\"\",\"\",IF(VLOOKUP($G195,$H$11:$DO$1000,112,FALSE)=\"\",\"No\",IF(LEFT(VLOOKUP($G195,$H$11:$DO$1000,112,FALSE),3)=\"The\",EP195,VLOOKUP(VLOOKUP($G195,$H$11:$DO$1000,112,FALSE),DeclMatrix!$A$2:$F$5,VLOOKUP('Enrollment Form'!$B195,DeclMatrix!$A$8:$B$12,2,FALSE),FALSE))))","v":""},null,null,null,null,null,null,null,null,"",null,"","","","","","","","","","","",""]
["",null,null,null,null,null,"","",null,null,null,null,null,null,null,null,null,null,null,null,null,null,null,null,null,null,"","","","",null,null,"",null,null,null,null,null,null,null,null,null,null,null,null,null,null,null,null,null,null,null,null,null,null,null,null,null,null,null,"","","",null,null,null,null,"","","","",null,null,null,null,null,null,null,null,null,null,null,null,null,null,null,null,null,null,null,null,null,null,null,null,null,null,null,null,null,null,null,null,null,null,null,null,null,null,null,null,null,null,null,null,null,null,null,null,null,null,null,null,"",{"$f":"IF($A196=\"\",\"\",IF(VLOOKUP($G196,$H$11:$DO$1000,103,FALSE)=\"\",\"No\",IF(LEFT(VLOOKUP($G196,$H$11:$DO$1000,103,FALSE),3)=\"The\",EM196,VLOOKUP(VLOOKUP($G196,$H$11:$DO$1000,103,FALSE),DeclMatrix!$A$2:$F$5,VLOOKUP('Enrollment Form'!$B196,DeclMatrix!$A$8:$B$12,2,FALSE),FALSE))))","v":""},{"$f":"IF($A196=\"\",\"\",IF(VLOOKUP($G196,$H$11:$DO$1000,106,FALSE)=\"\",\"No\",IF(LEFT(VLOOKUP($G196,$H$11:$DO$1000,106,FALSE),3)=\"The\",EN196,VLOOKUP(VLOOKUP($G196,$H$11:$DO$1000,106,FALSE),DeclMatrix!$A$2:$F$5,VLOOKUP('Enrollment Form'!$B196,DeclMatrix!$A$8:$B$12,2,FALSE),FALSE))))","v":""},{"$f":"IF($A196=\"\",\"\",IF(VLOOKUP($G196,$H$11:$DO$1000,109,FALSE)=\"\",\"No\",IF(LEFT(VLOOKUP($G196,$H$11:$DO$1000,109,FALSE),3)=\"The\",EO196,VLOOKUP(VLOOKUP($G196,$H$11:$DO$1000,109,FALSE),DeclMatrix!$A$2:$F$5,VLOOKUP('Enrollment Form'!$B196,DeclMatrix!$A$8:$B$12,2,FALSE),FALSE))))","v":""},{"$f":"IF($A196=\"\",\"\",IF(VLOOKUP($G196,$H$11:$DO$1000,112,FALSE)=\"\",\"No\",IF(LEFT(VLOOKUP($G196,$H$11:$DO$1000,112,FALSE),3)=\"The\",EP196,VLOOKUP(VLOOKUP($G196,$H$11:$DO$1000,112,FALSE),DeclMatrix!$A$2:$F$5,VLOOKUP('Enrollment Form'!$B196,DeclMatrix!$A$8:$B$12,2,FALSE),FALSE))))","v":""},null,null,null,null,null,null,null,null,"",null,"","","","","","","","","","","",""]
["",null,null,null,null,null,"","",null,null,null,null,null,null,null,null,null,null,null,null,null,null,null,null,null,null,"","","","",null,null,"",null,null,null,null,null,null,null,null,null,null,null,null,null,null,null,null,null,null,null,null,null,null,null,null,null,null,null,"","","",null,null,null,null,"","","","",null,null,null,null,null,null,null,null,null,null,null,null,null,null,null,null,null,null,null,null,null,null,null,null,null,null,null,null,null,null,null,null,null,null,null,null,null,null,null,null,null,null,null,null,null,null,null,null,null,null,null,null,"",{"$f":"IF($A197=\"\",\"\",IF(VLOOKUP($G197,$H$11:$DO$1000,103,FALSE)=\"\",\"No\",IF(LEFT(VLOOKUP($G197,$H$11:$DO$1000,103,FALSE),3)=\"The\",EM197,VLOOKUP(VLOOKUP($G197,$H$11:$DO$1000,103,FALSE),DeclMatrix!$A$2:$F$5,VLOOKUP('Enrollment Form'!$B197,DeclMatrix!$A$8:$B$12,2,FALSE),FALSE))))","v":""},{"$f":"IF($A197=\"\",\"\",IF(VLOOKUP($G197,$H$11:$DO$1000,106,FALSE)=\"\",\"No\",IF(LEFT(VLOOKUP($G197,$H$11:$DO$1000,106,FALSE),3)=\"The\",EN197,VLOOKUP(VLOOKUP($G197,$H$11:$DO$1000,106,FALSE),DeclMatrix!$A$2:$F$5,VLOOKUP('Enrollment Form'!$B197,DeclMatrix!$A$8:$B$12,2,FALSE),FALSE))))","v":""},{"$f":"IF($A197=\"\",\"\",IF(VLOOKUP($G197,$H$11:$DO$1000,109,FALSE)=\"\",\"No\",IF(LEFT(VLOOKUP($G197,$H$11:$DO$1000,109,FALSE),3)=\"The\",EO197,VLOOKUP(VLOOKUP($G197,$H$11:$DO$1000,109,FALSE),DeclMatrix!$A$2:$F$5,VLOOKUP('Enrollment Form'!$B197,DeclMatrix!$A$8:$B$12,2,FALSE),FALSE))))","v":""},{"$f":"IF($A197=\"\",\"\",IF(VLOOKUP($G197,$H$11:$DO$1000,112,FALSE)=\"\",\"No\",IF(LEFT(VLOOKUP($G197,$H$11:$DO$1000,112,FALSE),3)=\"The\",EP197,VLOOKUP(VLOOKUP($G197,$H$11:$DO$1000,112,FALSE),DeclMatrix!$A$2:$F$5,VLOOKUP('Enrollment Form'!$B197,DeclMatrix!$A$8:$B$12,2,FALSE),FALSE))))","v":""},null,null,null,null,null,null,null,null,"",null,"","","","","","","","","","","",""]
["",null,null,null,null,null,"","",null,null,null,null,null,null,null,null,null,null,null,null,null,null,null,null,null,null,"","","","",null,null,"",null,null,null,null,null,null,null,null,null,null,null,null,null,null,null,null,null,null,null,null,null,null,null,null,null,null,null,"","","",null,null,null,null,"","","","",null,null,null,null,null,null,null,null,null,null,null,null,null,null,null,null,null,null,null,null,null,null,null,null,null,null,null,null,null,null,null,null,null,null,null,null,null,null,null,null,null,null,null,null,null,null,null,null,null,null,null,null,"",{"$f":"IF($A198=\"\",\"\",IF(VLOOKUP($G198,$H$11:$DO$1000,103,FALSE)=\"\",\"No\",IF(LEFT(VLOOKUP($G198,$H$11:$DO$1000,103,FALSE),3)=\"The\",EM198,VLOOKUP(VLOOKUP($G198,$H$11:$DO$1000,103,FALSE),DeclMatrix!$A$2:$F$5,VLOOKUP('Enrollment Form'!$B198,DeclMatrix!$A$8:$B$12,2,FALSE),FALSE))))","v":""},{"$f":"IF($A198=\"\",\"\",IF(VLOOKUP($G198,$H$11:$DO$1000,106,FALSE)=\"\",\"No\",IF(LEFT(VLOOKUP($G198,$H$11:$DO$1000,106,FALSE),3)=\"The\",EN198,VLOOKUP(VLOOKUP($G198,$H$11:$DO$1000,106,FALSE),DeclMatrix!$A$2:$F$5,VLOOKUP('Enrollment Form'!$B198,DeclMatrix!$A$8:$B$12,2,FALSE),FALSE))))","v":""},{"$f":"IF($A198=\"\",\"\",IF(VLOOKUP($G198,$H$11:$DO$1000,109,FALSE)=\"\",\"No\",IF(LEFT(VLOOKUP($G198,$H$11:$DO$1000,109,FALSE),3)=\"The\",EO198,VLOOKUP(VLOOKUP($G198,$H$11:$DO$1000,109,FALSE),DeclMatrix!$A$2:$F$5,VLOOKUP('Enrollment Form'!$B198,DeclMatrix!$A$8:$B$12,2,FALSE),FALSE))))","v":""},{"$f":"IF($A198=\"\",\"\",IF(VLOOKUP($G198,$H$11:$DO$1000,112,FALSE)=\"\",\"No\",IF(LEFT(VLOOKUP($G198,$H$11:$DO$1000,112,FALSE),3)=\"The\",EP198,VLOOKUP(VLOOKUP($G198,$H$11:$DO$1000,112,FALSE),DeclMatrix!$A$2:$F$5,VLOOKUP('Enrollment Form'!$B198,DeclMatrix!$A$8:$B$12,2,FALSE),FALSE))))","v":""},null,null,null,null,null,null,null,null,"",null,"","","","","","","","","","","",""]
["",null,null,null,null,null,"","",null,null,null,null,null,null,null,null,null,null,null,null,null,null,null,null,null,null,"","","","",null,null,"",null,null,null,null,null,null,null,null,null,null,null,null,null,null,null,null,null,null,null,null,null,null,null,null,null,null,null,"","","",null,null,null,null,"","","","",null,null,null,null,null,null,null,null,null,null,null,null,null,null,null,null,null,null,null,null,null,null,null,null,null,null,null,null,null,null,null,null,null,null,null,null,null,null,null,null,null,null,null,null,null,null,null,null,null,null,null,null,"",{"$f":"IF($A199=\"\",\"\",IF(VLOOKUP($G199,$H$11:$DO$1000,103,FALSE)=\"\",\"No\",IF(LEFT(VLOOKUP($G199,$H$11:$DO$1000,103,FALSE),3)=\"The\",EM199,VLOOKUP(VLOOKUP($G199,$H$11:$DO$1000,103,FALSE),DeclMatrix!$A$2:$F$5,VLOOKUP('Enrollment Form'!$B199,DeclMatrix!$A$8:$B$12,2,FALSE),FALSE))))","v":""},{"$f":"IF($A199=\"\",\"\",IF(VLOOKUP($G199,$H$11:$DO$1000,106,FALSE)=\"\",\"No\",IF(LEFT(VLOOKUP($G199,$H$11:$DO$1000,106,FALSE),3)=\"The\",EN199,VLOOKUP(VLOOKUP($G199,$H$11:$DO$1000,106,FALSE),DeclMatrix!$A$2:$F$5,VLOOKUP('Enrollment Form'!$B199,DeclMatrix!$A$8:$B$12,2,FALSE),FALSE))))","v":""},{"$f":"IF($A199=\"\",\"\",IF(VLOOKUP($G199,$H$11:$DO$1000,109,FALSE)=\"\",\"No\",IF(LEFT(VLOOKUP($G199,$H$11:$DO$1000,109,FALSE),3)=\"The\",EO199,VLOOKUP(VLOOKUP($G199,$H$11:$DO$1000,109,FALSE),DeclMatrix!$A$2:$F$5,VLOOKUP('Enrollment Form'!$B199,DeclMatrix!$A$8:$B$12,2,FALSE),FALSE))))","v":""},{"$f":"IF($A199=\"\",\"\",IF(VLOOKUP($G199,$H$11:$DO$1000,112,FALSE)=\"\",\"No\",IF(LEFT(VLOOKUP($G199,$H$11:$DO$1000,112,FALSE),3)=\"The\",EP199,VLOOKUP(VLOOKUP($G199,$H$11:$DO$1000,112,FALSE),DeclMatrix!$A$2:$F$5,VLOOKUP('Enrollment Form'!$B199,DeclMatrix!$A$8:$B$12,2,FALSE),FALSE))))","v":""},null,null,null,null,null,null,null,null,"",null,"","","","","","","","","","","",""]
["",null,null,null,null,null,"","",null,null,null,null,null,null,null,null,null,null,null,null,null,null,null,null,null,null,"","","","",null,null,"",null,null,null,null,null,null,null,null,null,null,null,null,null,null,null,null,null,null,null,null,null,null,null,null,null,null,null,"","","",null,null,null,null,"","","","",null,null,null,null,null,null,null,null,null,null,null,null,null,null,null,null,null,null,null,null,null,null,null,null,null,null,null,null,null,null,null,null,null,null,null,null,null,null,null,null,null,null,null,null,null,null,null,null,null,null,null,null,"",{"$f":"IF($A200=\"\",\"\",IF(VLOOKUP($G200,$H$11:$DO$1000,103,FALSE)=\"\",\"No\",IF(LEFT(VLOOKUP($G200,$H$11:$DO$1000,103,FALSE),3)=\"The\",EM200,VLOOKUP(VLOOKUP($G200,$H$11:$DO$1000,103,FALSE),DeclMatrix!$A$2:$F$5,VLOOKUP('Enrollment Form'!$B200,DeclMatrix!$A$8:$B$12,2,FALSE),FALSE))))","v":""},{"$f":"IF($A200=\"\",\"\",IF(VLOOKUP($G200,$H$11:$DO$1000,106,FALSE)=\"\",\"No\",IF(LEFT(VLOOKUP($G200,$H$11:$DO$1000,106,FALSE),3)=\"The\",EN200,VLOOKUP(VLOOKUP($G200,$H$11:$DO$1000,106,FALSE),DeclMatrix!$A$2:$F$5,VLOOKUP('Enrollment Form'!$B200,DeclMatrix!$A$8:$B$12,2,FALSE),FALSE))))","v":""},{"$f":"IF($A200=\"\",\"\",IF(VLOOKUP($G200,$H$11:$DO$1000,109,FALSE)=\"\",\"No\",IF(LEFT(VLOOKUP($G200,$H$11:$DO$1000,109,FALSE),3)=\"The\",EO200,VLOOKUP(VLOOKUP($G200,$H$11:$DO$1000,109,FALSE),DeclMatrix!$A$2:$F$5,VLOOKUP('Enrollment Form'!$B200,DeclMatrix!$A$8:$B$12,2,FALSE),FALSE))))","v":""},{"$f":"IF($A200=\"\",\"\",IF(VLOOKUP($G200,$H$11:$DO$1000,112,FALSE)=\"\",\"No\",IF(LEFT(VLOOKUP($G200,$H$11:$DO$1000,112,FALSE),3)=\"The\",EP200,VLOOKUP(VLOOKUP($G200,$H$11:$DO$1000,112,FALSE),DeclMatrix!$A$2:$F$5,VLOOKUP('Enrollment Form'!$B200,DeclMatrix!$A$8:$B$12,2,FALSE),FALSE))))","v":""},null,null,null,null,null,null,null,null,"",null,"","","","","","","","","","","",""]
["",null,null,null,null,null,"","",null,null,null,null,null,null,null,null,null,null,null,null,null,null,null,null,null,null,"","","","",null,null,"",null,null,null,null,null,null,null,null,null,null,null,null,null,null,null,null,null,null,null,null,null,null,null,null,null,null,null,"","","",null,null,null,null,"","","","",null,null,null,null,null,null,null,null,null,null,null,null,null,null,null,null,null,null,null,null,null,null,null,null,null,null,null,null,null,null,null,null,null,null,null,null,null,null,null,null,null,null,null,null,null,null,null,null,null,null,null,null,"",{"$f":"IF($A201=\"\",\"\",IF(VLOOKUP($G201,$H$11:$DO$1000,103,FALSE)=\"\",\"No\",IF(LEFT(VLOOKUP($G201,$H$11:$DO$1000,103,FALSE),3)=\"The\",EM201,VLOOKUP(VLOOKUP($G201,$H$11:$DO$1000,103,FALSE),DeclMatrix!$A$2:$F$5,VLOOKUP('Enrollment Form'!$B201,DeclMatrix!$A$8:$B$12,2,FALSE),FALSE))))","v":""},{"$f":"IF($A201=\"\",\"\",IF(VLOOKUP($G201,$H$11:$DO$1000,106,FALSE)=\"\",\"No\",IF(LEFT(VLOOKUP($G201,$H$11:$DO$1000,106,FALSE),3)=\"The\",EN201,VLOOKUP(VLOOKUP($G201,$H$11:$DO$1000,106,FALSE),DeclMatrix!$A$2:$F$5,VLOOKUP('Enrollment Form'!$B201,DeclMatrix!$A$8:$B$12,2,FALSE),FALSE))))","v":""},{"$f":"IF($A201=\"\",\"\",IF(VLOOKUP($G201,$H$11:$DO$1000,109,FALSE)=\"\",\"No\",IF(LEFT(VLOOKUP($G201,$H$11:$DO$1000,109,FALSE),3)=\"The\",EO201,VLOOKUP(VLOOKUP($G201,$H$11:$DO$1000,109,FALSE),DeclMatrix!$A$2:$F$5,VLOOKUP('Enrollment Form'!$B201,DeclMatrix!$A$8:$B$12,2,FALSE),FALSE))))","v":""},{"$f":"IF($A201=\"\",\"\",IF(VLOOKUP($G201,$H$11:$DO$1000,112,FALSE)=\"\",\"No\",IF(LEFT(VLOOKUP($G201,$H$11:$DO$1000,112,FALSE),3)=\"The\",EP201,VLOOKUP(VLOOKUP($G201,$H$11:$DO$1000,112,FALSE),DeclMatrix!$A$2:$F$5,VLOOKUP('Enrollment Form'!$B201,DeclMatrix!$A$8:$B$12,2,FALSE),FALSE))))","v":""},null,null,null,null,null,null,null,null,"",null,"","","","","","","","","","","",""]
["",null,null,null,null,null,"","",null,null,null,null,null,null,null,null,null,null,null,null,null,null,null,null,null,null,"","","","",null,null,"",null,null,null,null,null,null,null,null,null,null,null,null,null,null,null,null,null,null,null,null,null,null,null,null,null,null,null,"","","",null,null,null,null,"","","","",null,null,null,null,null,null,null,null,null,null,null,null,null,null,null,null,null,null,null,null,null,null,null,null,null,null,null,null,null,null,null,null,null,null,null,null,null,null,null,null,null,null,null,null,null,null,null,null,null,null,null,null,"",{"$f":"IF($A202=\"\",\"\",IF(VLOOKUP($G202,$H$11:$DO$1000,103,FALSE)=\"\",\"No\",IF(LEFT(VLOOKUP($G202,$H$11:$DO$1000,103,FALSE),3)=\"The\",EM202,VLOOKUP(VLOOKUP($G202,$H$11:$DO$1000,103,FALSE),DeclMatrix!$A$2:$F$5,VLOOKUP('Enrollment Form'!$B202,DeclMatrix!$A$8:$B$12,2,FALSE),FALSE))))","v":""},{"$f":"IF($A202=\"\",\"\",IF(VLOOKUP($G202,$H$11:$DO$1000,106,FALSE)=\"\",\"No\",IF(LEFT(VLOOKUP($G202,$H$11:$DO$1000,106,FALSE),3)=\"The\",EN202,VLOOKUP(VLOOKUP($G202,$H$11:$DO$1000,106,FALSE),DeclMatrix!$A$2:$F$5,VLOOKUP('Enrollment Form'!$B202,DeclMatrix!$A$8:$B$12,2,FALSE),FALSE))))","v":""},{"$f":"IF($A202=\"\",\"\",IF(VLOOKUP($G202,$H$11:$DO$1000,109,FALSE)=\"\",\"No\",IF(LEFT(VLOOKUP($G202,$H$11:$DO$1000,109,FALSE),3)=\"The\",EO202,VLOOKUP(VLOOKUP($G202,$H$11:$DO$1000,109,FALSE),DeclMatrix!$A$2:$F$5,VLOOKUP('Enrollment Form'!$B202,DeclMatrix!$A$8:$B$12,2,FALSE),FALSE))))","v":""},{"$f":"IF($A202=\"\",\"\",IF(VLOOKUP($G202,$H$11:$DO$1000,112,FALSE)=\"\",\"No\",IF(LEFT(VLOOKUP($G202,$H$11:$DO$1000,112,FALSE),3)=\"The\",EP202,VLOOKUP(VLOOKUP($G202,$H$11:$DO$1000,112,FALSE),DeclMatrix!$A$2:$F$5,VLOOKUP('Enrollment Form'!$B202,DeclMatrix!$A$8:$B$12,2,FALSE),FALSE))))","v":""},null,null,null,null,null,null,null,null,"",null,"","","","","","","","","","","",""]
[{"$f":"IF(LEN($B203)>0,$C$2,\"\")","v":""},null,null,null,null,null,"","",null,null,null,null,null,null,null,null,null,null,null,null,null,null,null,null,null,null,"","","","",null,null,"",null,null,null,null,null,null,null,null,null,null,null,null,null,null,null,null,null,null,null,null,null,null,null,null,null,null,null,"","","",null,null,null,null,{"$f":"IF(AND($B203<>\"Subscriber\",$BO203=\"Yes\"),VLOOKUP($G203,$H$11:$Y$1000,15,FALSE),\"\")","v":""},{"$f":"IF(AND($B203<>\"Subscriber\",$BO203=\"Yes\"),VLOOKUP($G203,$H$11:$Y$1000,16,FALSE),\"\")","v":""},{"$f":"IF(AND($B203<>\"Subscriber\",$BO203=\"Yes\"),VLOOKUP($G203,$H$11:$Y$1000,17,FALSE),\"\")","v":""},{"$f":"IF(AND($B203<>\"Subscriber\",$BO203=\"Yes\"),VLOOKUP($G203,$H$11:$Y$1000,18,FALSE),\"\")","v":""},null,null,null,null,null,null,null,null,null,null,null,null,null,null,null,null,null,null,null,null,null,null,null,null,null,null,null,null,null,null,null,null,null,null,null,null,null,null,null,null,null,null,null,null,null,null,null,null,null,null,null,null,{"$f":"IF($A203=\"\",\"\",IF($B203=\"Subscriber\",$AG203,VLOOKUP($G203,$H$11:$AG$1000,26,FALSE)))","v":""},{"$f":"IF($A203=\"\",\"\",IF(VLOOKUP($G203,$H$11:$DO$1000,103,FALSE)=\"\",\"No\",IF(LEFT(VLOOKUP($G203,$H$11:$DO$1000,103,FALSE),3)=\"The\",EM203,VLOOKUP(VLOOKUP($G203,$H$11:$DO$1000,103,FALSE),DeclMatrix!$A$2:$F$5,VLOOKUP('Enrollment Form'!$B203,DeclMatrix!$A$8:$B$12,2,FALSE),FALSE))))","v":""},{"$f":"IF($A203=\"\",\"\",IF(VLOOKUP($G203,$H$11:$DO$1000,106,FALSE)=\"\",\"No\",IF(LEFT(VLOOKUP($G203,$H$11:$DO$1000,106,FALSE),3)=\"The\",EN203,VLOOKUP(VLOOKUP($G203,$H$11:$DO$1000,106,FALSE),DeclMatrix!$A$2:$F$5,VLOOKUP('Enrollment Form'!$B203,DeclMatrix!$A$8:$B$12,2,FALSE),FALSE))))","v":""},{"$f":"IF($A203=\"\",\"\",IF(VLOOKUP($G203,$H$11:$DO$1000,109,FALSE)=\"\",\"No\",IF(LEFT(VLOOKUP($G203,$H$11:$DO$1000,109,FALSE),3)=\"The\",EO203,VLOOKUP(VLOOKUP($G203,$H$11:$DO$1000,109,FALSE),DeclMatrix!$A$2:$F$5,VLOOKUP('Enrollment Form'!$B203,DeclMatrix!$A$8:$B$12,2,FALSE),FALSE))))","v":""},{"$f":"IF($A203=\"\",\"\",IF(VLOOKUP($G203,$H$11:$DO$1000,112,FALSE)=\"\",\"No\",IF(LEFT(VLOOKUP($G203,$H$11:$DO$1000,112,FALSE),3)=\"The\",EP203,VLOOKUP(VLOOKUP($G203,$H$11:$DO$1000,112,FALSE),DeclMatrix!$A$2:$F$5,VLOOKUP('Enrollment Form'!$B203,DeclMatrix!$A$8:$B$12,2,FALSE),FALSE))))","v":""},null,null,null,null,null,null,null,null,{"$f":"IF(A203<>\"\",\"1X\",\"\")","v":""},null,{"$f":"$B203&$G203&$J203","v":""},{"$f":"$B203&$G203&$L203","v":""},{"$f":"$B203&$G203&$N203","v":""},{"$f":"$B203&$G203&$O203","v":""},{"$f":"IF($A203=\"\",\"\",IF($B203=\"Subscriber\",\"No\",IF(OR($DF203=\"\",$DF203=\"No\"),\"No\",\"Yes\")))","v":""},{"$f":"IF($A203=\"\",\"\",IF($B203=\"Subscriber\",\"No\",IF(OR($DI203=\"\",$DI203=\"No\"),\"No\",\"Yes\")))","v":""},{"$f":"IF($A203=\"\",\"\",IF($B203=\"Subscriber\",\"No\",IF(OR($DL203=\"\",$DL203=\"No\"),\"No\",\"Yes\")))","v":""},{"$f":"IF($A203=\"\",\"\",IF($B203=\"Subscriber\",\"No\",IF(OR($DO203=\"\",$DO203=\"No\"),\"No\",\"Yes\")))","v":""},{"$f":"IF($A203=\"\",\"\",IF(AND($B203=\"Subscriber\",$I203<>\"Waive\",$I203<>\"\"),\"Yes\",IF(AND($B203<>\"Subscriber\",$BM203=\"Yes\"),VLOOKUP($G203,$H$11:$ET$1000,140,FALSE),IF(AND($C203=\"Enroll\",VLOOKUP($G204,$H$11:$ET$1000,103,FALSE)<>\"\"),VLOOKUP($DU203,$DV$2:$DW$3,2,FALSE),\"No\"))))","v":""},{"$f":"IF($A203=\"\",\"\",IF(AND($B203=\"Subscriber\",$K203<>\"Waive\",$K203<>\"\"),\"Yes\",IF(AND($B203<>\"Subscriber\",$BM203=\"Yes\"),VLOOKUP($G203,$H$11:$ET$1000,141,FALSE),IF(AND($C203=\"Enroll\",VLOOKUP($G204,$H$11:$ET$1000,106,FALSE)<>\"\"),VLOOKUP($DV203,$DV$2:$DW$3,2,FALSE),\"No\"))))","v":""},{"$f":"IF($A203=\"\",\"\",IF(AND($B203=\"Subscriber\",$M203<>\"Waive\",$M203<>\"\"),\"Yes\",IF(AND($B203<>\"Subscriber\",$BM203=\"Yes\"),VLOOKUP($G203,$H$11:$ET$1000,142,FALSE),IF(AND($C203=\"Enroll\",VLOOKUP($G204,$H$11:$ET$1000,109,FALSE)<>\"\"),VLOOKUP($DW203,$DV$2:$DW$3,2,FALSE),\"No\"))))","v":""},{"$f":"IF($A203=\"\",\"\",IF(AND($B203=\"Subscriber\",$O203<>\"Waive\",$O203<>\"\"),\"Yes\",IF(AND($B203<>\"Subscriber\",$BM203=\"Yes\"),VLOOKUP($G203,$H$11:$ET$1000,143,FALSE),IF(AND($C203=\"Enroll\",VLOOKUP($G204,$H$11:$ET$1000,112,FALSE)<>\"\"),VLOOKUP($DX203,$DV$2:$DW$3,2,FALSE),\"No\"))))","v":""}]
["",null,null,null,null,null,{"$f":"IF(A204=\"\",\"\",IF(AND(B204<>\"Subscriber\",B204<>\"\"),G203,\"\"))","v":""},{"$f":"IF(AND(B204=\"Subscriber\",G204<>\"\"),G204,\"\")","v":""},null,null,null,null,null,null,null,null,null,null,null,null,null,null,null,null,null,null,{"$f":"IF(AND($B204=\"Subscriber\",$Z204=\"Yes\"),V204,\"\")","v":""},{"$f":"IF(AND($B204=\"Subscriber\",$Z204=\"Yes\"),W204,\"\")","v":""},{"$f":"IF(AND($B204=\"Subscriber\",$Z204=\"Yes\"),X204,\"\")","v":""},{"$f":"IF(AND($B204=\"Subscriber\",$Z204=\"Yes\"),Y204,\"\")","v":""},null,null,{"$f":"IF(AND(B204=\"Subscriber\",AJ204<>\"\"),\"NS01 - Not Selected\",\"\")","v":""},null,null,null,null,null,null,null,null,null,null,null,null,null,null,null,null,null,null,null,null,null,null,null,null,null,null,null,{"$f":"IF(OR($B204=\"Subscriber\",$B204=\"\"),\"\",IF(OR(VLOOKUP($G204,$H:$BH,53,FALSE)=\"No\",VLOOKUP($G204,$H:$BH,53,FALSE)=\"\"),\"\",IF(VLOOKUP($G204,$H:$BH,53,FALSE)=\"Yes\",VLOOKUP(G204,$H:$BI,32,FALSE))))","v":""},{"$f":"IF(OR($B204=\"Subscriber\",$B204=\"\"),\"\",IF(OR(VLOOKUP($G204,$H:$BH,53,FALSE)=\"No\",VLOOKUP($G204,$H:$BH,53,FALSE)=\"\"),\"\",IF(VLOOKUP($G204,$H:$BH,53,FALSE)=\"Yes\",VLOOKUP(G204,$H:$BI,33,FALSE))))","v":""},{"$f":"IF(OR($B204=\"Subscriber\",$B204=\"\"),\"\",IF(OR(VLOOKUP($G204,$H:$BH,53,FALSE)=\"No\",VLOOKUP($G204,$H:$BH,53,FALSE)=\"\"),\"\",IF(VLOOKUP($G204,$H:$BH,53,FALSE)=\"Yes\",VLOOKUP(G204,$H:$BI,34,FALSE))))","v":""},null,null,null,null,"","","","",null,null,null,null,null,null,null,null,null,null,null,null,null,null,null,null,null,null,null,null,null,null,null,null,null,null,null,null,null,null,null,null,null,null,null,null,null,null,null,null,null,null,null,null,null,null,null,null,null,null,null,null,"",{"$f":"IF($A204=\"\",\"\",IF(VLOOKUP($G204,$H$11:$DO$1000,103,FALSE)=\"\",\"No\",IF(LEFT(VLOOKUP($G204,$H$11:$DO$1000,103,FALSE),3)=\"The\",EM204,VLOOKUP(VLOOKUP($G204,$H$11:$DO$1000,103,FALSE),DeclMatrix!$A$2:$F$5,VLOOKUP('Enrollment Form'!$B204,DeclMatrix!$A$8:$B$12,2,FALSE),FALSE))))","v":""},{"$f":"IF($A204=\"\",\"\",IF(VLOOKUP($G204,$H$11:$DO$1000,106,FALSE)=\"\",\"No\",IF(LEFT(VLOOKUP($G204,$H$11:$DO$1000,106,FALSE),3)=\"The\",EN204,VLOOKUP(VLOOKUP($G204,$H$11:$DO$1000,106,FALSE),DeclMatrix!$A$2:$F$5,VLOOKUP('Enrollment Form'!$B204,DeclMatrix!$A$8:$B$12,2,FALSE),FALSE))))","v":""},{"$f":"IF($A204=\"\",\"\",IF(VLOOKUP($G204,$H$11:$DO$1000,109,FALSE)=\"\",\"No\",IF(LEFT(VLOOKUP($G204,$H$11:$DO$1000,109,FALSE),3)=\"The\",EO204,VLOOKUP(VLOOKUP($G204,$H$11:$DO$1000,109,FALSE),DeclMatrix!$A$2:$F$5,VLOOKUP('Enrollment Form'!$B204,DeclMatrix!$A$8:$B$12,2,FALSE),FALSE))))","v":""},{"$f":"IF($A204=\"\",\"\",IF(VLOOKUP($G204,$H$11:$DO$1000,112,FALSE)=\"\",\"No\",IF(LEFT(VLOOKUP($G204,$H$11:$DO$1000,112,FALSE),3)=\"The\",EP204,VLOOKUP(VLOOKUP($G204,$H$11:$DO$1000,112,FALSE),DeclMatrix!$A$2:$F$5,VLOOKUP('Enrollment Form'!$B204,DeclMatrix!$A$8:$B$12,2,FALSE),FALSE))))","v":""},null,null,null,null,null,null,null,null,"",null,"","","","","","","","","","","",""]
["",null,null,null,null,null,"","",null,null,null,null,null,null,null,null,null,null,null,null,null,null,null,null,null,null,"","","","",null,null,"",null,null,null,null,null,null,null,null,null,null,null,null,null,null,null,null,null,null,null,null,null,null,null,null,null,null,null,"","","",null,null,null,null,"","","","",null,null,null,null,null,null,null,null,null,null,null,null,null,null,null,null,null,null,null,null,null,null,null,null,null,null,null,null,null,null,null,null,null,null,null,null,null,null,null,null,null,null,null,null,null,null,null,null,null,null,null,null,"",{"$f":"IF($A205=\"\",\"\",IF(VLOOKUP($G205,$H$11:$DO$1000,103,FALSE)=\"\",\"No\",IF(LEFT(VLOOKUP($G205,$H$11:$DO$1000,103,FALSE),3)=\"The\",EM205,VLOOKUP(VLOOKUP($G205,$H$11:$DO$1000,103,FALSE),DeclMatrix!$A$2:$F$5,VLOOKUP('Enrollment Form'!$B205,DeclMatrix!$A$8:$B$12,2,FALSE),FALSE))))","v":""},{"$f":"IF($A205=\"\",\"\",IF(VLOOKUP($G205,$H$11:$DO$1000,106,FALSE)=\"\",\"No\",IF(LEFT(VLOOKUP($G205,$H$11:$DO$1000,106,FALSE),3)=\"The\",EN205,VLOOKUP(VLOOKUP($G205,$H$11:$DO$1000,106,FALSE),DeclMatrix!$A$2:$F$5,VLOOKUP('Enrollment Form'!$B205,DeclMatrix!$A$8:$B$12,2,FALSE),FALSE))))","v":""},{"$f":"IF($A205=\"\",\"\",IF(VLOOKUP($G205,$H$11:$DO$1000,109,FALSE)=\"\",\"No\",IF(LEFT(VLOOKUP($G205,$H$11:$DO$1000,109,FALSE),3)=\"The\",EO205,VLOOKUP(VLOOKUP($G205,$H$11:$DO$1000,109,FALSE),DeclMatrix!$A$2:$F$5,VLOOKUP('Enrollment Form'!$B205,DeclMatrix!$A$8:$B$12,2,FALSE),FALSE))))","v":""},{"$f":"IF($A205=\"\",\"\",IF(VLOOKUP($G205,$H$11:$DO$1000,112,FALSE)=\"\",\"No\",IF(LEFT(VLOOKUP($G205,$H$11:$DO$1000,112,FALSE),3)=\"The\",EP205,VLOOKUP(VLOOKUP($G205,$H$11:$DO$1000,112,FALSE),DeclMatrix!$A$2:$F$5,VLOOKUP('Enrollment Form'!$B205,DeclMatrix!$A$8:$B$12,2,FALSE),FALSE))))","v":""},null,null,null,null,null,null,null,null,"",null,"","","","","","","","","","","",""]
["",null,null,null,null,null,"","",null,null,null,null,null,null,null,null,null,null,null,null,null,null,null,null,null,null,"","","","",null,null,"",null,null,null,null,null,null,null,null,null,null,null,null,null,null,null,null,null,null,null,null,null,null,null,null,null,null,null,"","","",null,null,null,null,"","","","",null,null,null,null,null,null,null,null,null,null,null,null,null,null,null,null,null,null,null,null,null,null,null,null,null,null,null,null,null,null,null,null,null,null,null,null,null,null,null,null,null,null,null,null,null,null,null,null,null,null,null,null,"",{"$f":"IF($A206=\"\",\"\",IF(VLOOKUP($G206,$H$11:$DO$1000,103,FALSE)=\"\",\"No\",IF(LEFT(VLOOKUP($G206,$H$11:$DO$1000,103,FALSE),3)=\"The\",EM206,VLOOKUP(VLOOKUP($G206,$H$11:$DO$1000,103,FALSE),DeclMatrix!$A$2:$F$5,VLOOKUP('Enrollment Form'!$B206,DeclMatrix!$A$8:$B$12,2,FALSE),FALSE))))","v":""},{"$f":"IF($A206=\"\",\"\",IF(VLOOKUP($G206,$H$11:$DO$1000,106,FALSE)=\"\",\"No\",IF(LEFT(VLOOKUP($G206,$H$11:$DO$1000,106,FALSE),3)=\"The\",EN206,VLOOKUP(VLOOKUP($G206,$H$11:$DO$1000,106,FALSE),DeclMatrix!$A$2:$F$5,VLOOKUP('Enrollment Form'!$B206,DeclMatrix!$A$8:$B$12,2,FALSE),FALSE))))","v":""},{"$f":"IF($A206=\"\",\"\",IF(VLOOKUP($G206,$H$11:$DO$1000,109,FALSE)=\"\",\"No\",IF(LEFT(VLOOKUP($G206,$H$11:$DO$1000,109,FALSE),3)=\"The\",EO206,VLOOKUP(VLOOKUP($G206,$H$11:$DO$1000,109,FALSE),DeclMatrix!$A$2:$F$5,VLOOKUP('Enrollment Form'!$B206,DeclMatrix!$A$8:$B$12,2,FALSE),FALSE))))","v":""},{"$f":"IF($A206=\"\",\"\",IF(VLOOKUP($G206,$H$11:$DO$1000,112,FALSE)=\"\",\"No\",IF(LEFT(VLOOKUP($G206,$H$11:$DO$1000,112,FALSE),3)=\"The\",EP206,VLOOKUP(VLOOKUP($G206,$H$11:$DO$1000,112,FALSE),DeclMatrix!$A$2:$F$5,VLOOKUP('Enrollment Form'!$B206,DeclMatrix!$A$8:$B$12,2,FALSE),FALSE))))","v":""},null,null,null,null,null,null,null,null,"",null,"","","","","","","","","","","",""]
["",null,null,null,null,null,"","",null,null,null,null,null,null,null,null,null,null,null,null,null,null,null,null,null,null,"","","","",null,null,"",null,null,null,null,null,null,null,null,null,null,null,null,null,null,null,null,null,null,null,null,null,null,null,null,null,null,null,"","","",null,null,null,null,"","","","",null,null,null,null,null,null,null,null,null,null,null,null,null,null,null,null,null,null,null,null,null,null,null,null,null,null,null,null,null,null,null,null,null,null,null,null,null,null,null,null,null,null,null,null,null,null,null,null,null,null,null,null,"",{"$f":"IF($A207=\"\",\"\",IF(VLOOKUP($G207,$H$11:$DO$1000,103,FALSE)=\"\",\"No\",IF(LEFT(VLOOKUP($G207,$H$11:$DO$1000,103,FALSE),3)=\"The\",EM207,VLOOKUP(VLOOKUP($G207,$H$11:$DO$1000,103,FALSE),DeclMatrix!$A$2:$F$5,VLOOKUP('Enrollment Form'!$B207,DeclMatrix!$A$8:$B$12,2,FALSE),FALSE))))","v":""},{"$f":"IF($A207=\"\",\"\",IF(VLOOKUP($G207,$H$11:$DO$1000,106,FALSE)=\"\",\"No\",IF(LEFT(VLOOKUP($G207,$H$11:$DO$1000,106,FALSE),3)=\"The\",EN207,VLOOKUP(VLOOKUP($G207,$H$11:$DO$1000,106,FALSE),DeclMatrix!$A$2:$F$5,VLOOKUP('Enrollment Form'!$B207,DeclMatrix!$A$8:$B$12,2,FALSE),FALSE))))","v":""},{"$f":"IF($A207=\"\",\"\",IF(VLOOKUP($G207,$H$11:$DO$1000,109,FALSE)=\"\",\"No\",IF(LEFT(VLOOKUP($G207,$H$11:$DO$1000,109,FALSE),3)=\"The\",EO207,VLOOKUP(VLOOKUP($G207,$H$11:$DO$1000,109,FALSE),DeclMatrix!$A$2:$F$5,VLOOKUP('Enrollment Form'!$B207,DeclMatrix!$A$8:$B$12,2,FALSE),FALSE))))","v":""},{"$f":"IF($A207=\"\",\"\",IF(VLOOKUP($G207,$H$11:$DO$1000,112,FALSE)=\"\",\"No\",IF(LEFT(VLOOKUP($G207,$H$11:$DO$1000,112,FALSE),3)=\"The\",EP207,VLOOKUP(VLOOKUP($G207,$H$11:$DO$1000,112,FALSE),DeclMatrix!$A$2:$F$5,VLOOKUP('Enrollment Form'!$B207,DeclMatrix!$A$8:$B$12,2,FALSE),FALSE))))","v":""},null,null,null,null,null,null,null,null,"",null,"","","","","","","","","","","",""]
["",null,null,null,null,null,"","",null,null,null,null,null,null,null,null,null,null,null,null,null,null,null,null,null,null,"","","","",null,null,"",null,null,null,null,null,null,null,null,null,null,null,null,null,null,null,null,null,null,null,null,null,null,null,null,null,null,null,"","","",null,null,null,null,"","","","",null,null,null,null,null,null,null,null,null,null,null,null,null,null,null,null,null,null,null,null,null,null,null,null,null,null,null,null,null,null,null,null,null,null,null,null,null,null,null,null,null,null,null,null,null,null,null,null,null,null,null,null,"",{"$f":"IF($A208=\"\",\"\",IF(VLOOKUP($G208,$H$11:$DO$1000,103,FALSE)=\"\",\"No\",IF(LEFT(VLOOKUP($G208,$H$11:$DO$1000,103,FALSE),3)=\"The\",EM208,VLOOKUP(VLOOKUP($G208,$H$11:$DO$1000,103,FALSE),DeclMatrix!$A$2:$F$5,VLOOKUP('Enrollment Form'!$B208,DeclMatrix!$A$8:$B$12,2,FALSE),FALSE))))","v":""},{"$f":"IF($A208=\"\",\"\",IF(VLOOKUP($G208,$H$11:$DO$1000,106,FALSE)=\"\",\"No\",IF(LEFT(VLOOKUP($G208,$H$11:$DO$1000,106,FALSE),3)=\"The\",EN208,VLOOKUP(VLOOKUP($G208,$H$11:$DO$1000,106,FALSE),DeclMatrix!$A$2:$F$5,VLOOKUP('Enrollment Form'!$B208,DeclMatrix!$A$8:$B$12,2,FALSE),FALSE))))","v":""},{"$f":"IF($A208=\"\",\"\",IF(VLOOKUP($G208,$H$11:$DO$1000,109,FALSE)=\"\",\"No\",IF(LEFT(VLOOKUP($G208,$H$11:$DO$1000,109,FALSE),3)=\"The\",EO208,VLOOKUP(VLOOKUP($G208,$H$11:$DO$1000,109,FALSE),DeclMatrix!$A$2:$F$5,VLOOKUP('Enrollment Form'!$B208,DeclMatrix!$A$8:$B$12,2,FALSE),FALSE))))","v":""},{"$f":"IF($A208=\"\",\"\",IF(VLOOKUP($G208,$H$11:$DO$1000,112,FALSE)=\"\",\"No\",IF(LEFT(VLOOKUP($G208,$H$11:$DO$1000,112,FALSE),3)=\"The\",EP208,VLOOKUP(VLOOKUP($G208,$H$11:$DO$1000,112,FALSE),DeclMatrix!$A$2:$F$5,VLOOKUP('Enrollment Form'!$B208,DeclMatrix!$A$8:$B$12,2,FALSE),FALSE))))","v":""},null,null,null,null,null,null,null,null,"",null,"","","","","","","","","","","",""]
["",null,null,null,null,null,"","",null,null,null,null,null,null,null,null,null,null,null,null,null,null,null,null,null,null,"","","","",null,null,"",null,null,null,null,null,null,null,null,null,null,null,null,null,null,null,null,null,null,null,null,null,null,null,null,null,null,null,"","","",null,null,null,null,"","","","",null,null,null,null,null,null,null,null,null,null,null,null,null,null,null,null,null,null,null,null,null,null,null,null,null,null,null,null,null,null,null,null,null,null,null,null,null,null,null,null,null,null,null,null,null,null,null,null,null,null,null,null,"",{"$f":"IF($A209=\"\",\"\",IF(VLOOKUP($G209,$H$11:$DO$1000,103,FALSE)=\"\",\"No\",IF(LEFT(VLOOKUP($G209,$H$11:$DO$1000,103,FALSE),3)=\"The\",EM209,VLOOKUP(VLOOKUP($G209,$H$11:$DO$1000,103,FALSE),DeclMatrix!$A$2:$F$5,VLOOKUP('Enrollment Form'!$B209,DeclMatrix!$A$8:$B$12,2,FALSE),FALSE))))","v":""},{"$f":"IF($A209=\"\",\"\",IF(VLOOKUP($G209,$H$11:$DO$1000,106,FALSE)=\"\",\"No\",IF(LEFT(VLOOKUP($G209,$H$11:$DO$1000,106,FALSE),3)=\"The\",EN209,VLOOKUP(VLOOKUP($G209,$H$11:$DO$1000,106,FALSE),DeclMatrix!$A$2:$F$5,VLOOKUP('Enrollment Form'!$B209,DeclMatrix!$A$8:$B$12,2,FALSE),FALSE))))","v":""},{"$f":"IF($A209=\"\",\"\",IF(VLOOKUP($G209,$H$11:$DO$1000,109,FALSE)=\"\",\"No\",IF(LEFT(VLOOKUP($G209,$H$11:$DO$1000,109,FALSE),3)=\"The\",EO209,VLOOKUP(VLOOKUP($G209,$H$11:$DO$1000,109,FALSE),DeclMatrix!$A$2:$F$5,VLOOKUP('Enrollment Form'!$B209,DeclMatrix!$A$8:$B$12,2,FALSE),FALSE))))","v":""},{"$f":"IF($A209=\"\",\"\",IF(VLOOKUP($G209,$H$11:$DO$1000,112,FALSE)=\"\",\"No\",IF(LEFT(VLOOKUP($G209,$H$11:$DO$1000,112,FALSE),3)=\"The\",EP209,VLOOKUP(VLOOKUP($G209,$H$11:$DO$1000,112,FALSE),DeclMatrix!$A$2:$F$5,VLOOKUP('Enrollment Form'!$B209,DeclMatrix!$A$8:$B$12,2,FALSE),FALSE))))","v":""},null,null,null,null,null,null,null,null,"",null,"","","","","","","","","","","",""]
["",null,null,null,null,null,"","",null,null,null,null,null,null,null,null,null,null,null,null,null,null,null,null,null,null,"","","","",null,null,"",null,null,null,null,null,null,null,null,null,null,null,null,null,null,null,null,null,null,null,null,null,null,null,null,null,null,null,"","","",null,null,null,null,"","","","",null,null,null,null,null,null,null,null,null,null,null,null,null,null,null,null,null,null,null,null,null,null,null,null,null,null,null,null,null,null,null,null,null,null,null,null,null,null,null,null,null,null,null,null,null,null,null,null,null,null,null,null,"",{"$f":"IF($A210=\"\",\"\",IF(VLOOKUP($G210,$H$11:$DO$1000,103,FALSE)=\"\",\"No\",IF(LEFT(VLOOKUP($G210,$H$11:$DO$1000,103,FALSE),3)=\"The\",EM210,VLOOKUP(VLOOKUP($G210,$H$11:$DO$1000,103,FALSE),DeclMatrix!$A$2:$F$5,VLOOKUP('Enrollment Form'!$B210,DeclMatrix!$A$8:$B$12,2,FALSE),FALSE))))","v":""},{"$f":"IF($A210=\"\",\"\",IF(VLOOKUP($G210,$H$11:$DO$1000,106,FALSE)=\"\",\"No\",IF(LEFT(VLOOKUP($G210,$H$11:$DO$1000,106,FALSE),3)=\"The\",EN210,VLOOKUP(VLOOKUP($G210,$H$11:$DO$1000,106,FALSE),DeclMatrix!$A$2:$F$5,VLOOKUP('Enrollment Form'!$B210,DeclMatrix!$A$8:$B$12,2,FALSE),FALSE))))","v":""},{"$f":"IF($A210=\"\",\"\",IF(VLOOKUP($G210,$H$11:$DO$1000,109,FALSE)=\"\",\"No\",IF(LEFT(VLOOKUP($G210,$H$11:$DO$1000,109,FALSE),3)=\"The\",EO210,VLOOKUP(VLOOKUP($G210,$H$11:$DO$1000,109,FALSE),DeclMatrix!$A$2:$F$5,VLOOKUP('Enrollment Form'!$B210,DeclMatrix!$A$8:$B$12,2,FALSE),FALSE))))","v":""},{"$f":"IF($A210=\"\",\"\",IF(VLOOKUP($G210,$H$11:$DO$1000,112,FALSE)=\"\",\"No\",IF(LEFT(VLOOKUP($G210,$H$11:$DO$1000,112,FALSE),3)=\"The\",EP210,VLOOKUP(VLOOKUP($G210,$H$11:$DO$1000,112,FALSE),DeclMatrix!$A$2:$F$5,VLOOKUP('Enrollment Form'!$B210,DeclMatrix!$A$8:$B$12,2,FALSE),FALSE))))","v":""},null,null,null,null,null,null,null,null,"",null,"","","","","","","","","","","",""]
["",null,null,null,null,null,"","",null,null,null,null,null,null,null,null,null,null,null,null,null,null,null,null,null,null,"","","","",null,null,"",null,null,null,null,null,null,null,null,null,null,null,null,null,null,null,null,null,null,null,null,null,null,null,null,null,null,null,"","","",null,null,null,null,"","","","",null,null,null,null,null,null,null,null,null,null,null,null,null,null,null,null,null,null,null,null,null,null,null,null,null,null,null,null,null,null,null,null,null,null,null,null,null,null,null,null,null,null,null,null,null,null,null,null,null,null,null,null,"",{"$f":"IF($A211=\"\",\"\",IF(VLOOKUP($G211,$H$11:$DO$1000,103,FALSE)=\"\",\"No\",IF(LEFT(VLOOKUP($G211,$H$11:$DO$1000,103,FALSE),3)=\"The\",EM211,VLOOKUP(VLOOKUP($G211,$H$11:$DO$1000,103,FALSE),DeclMatrix!$A$2:$F$5,VLOOKUP('Enrollment Form'!$B211,DeclMatrix!$A$8:$B$12,2,FALSE),FALSE))))","v":""},{"$f":"IF($A211=\"\",\"\",IF(VLOOKUP($G211,$H$11:$DO$1000,106,FALSE)=\"\",\"No\",IF(LEFT(VLOOKUP($G211,$H$11:$DO$1000,106,FALSE),3)=\"The\",EN211,VLOOKUP(VLOOKUP($G211,$H$11:$DO$1000,106,FALSE),DeclMatrix!$A$2:$F$5,VLOOKUP('Enrollment Form'!$B211,DeclMatrix!$A$8:$B$12,2,FALSE),FALSE))))","v":""},{"$f":"IF($A211=\"\",\"\",IF(VLOOKUP($G211,$H$11:$DO$1000,109,FALSE)=\"\",\"No\",IF(LEFT(VLOOKUP($G211,$H$11:$DO$1000,109,FALSE),3)=\"The\",EO211,VLOOKUP(VLOOKUP($G211,$H$11:$DO$1000,109,FALSE),DeclMatrix!$A$2:$F$5,VLOOKUP('Enrollment Form'!$B211,DeclMatrix!$A$8:$B$12,2,FALSE),FALSE))))","v":""},{"$f":"IF($A211=\"\",\"\",IF(VLOOKUP($G211,$H$11:$DO$1000,112,FALSE)=\"\",\"No\",IF(LEFT(VLOOKUP($G211,$H$11:$DO$1000,112,FALSE),3)=\"The\",EP211,VLOOKUP(VLOOKUP($G211,$H$11:$DO$1000,112,FALSE),DeclMatrix!$A$2:$F$5,VLOOKUP('Enrollment Form'!$B211,DeclMatrix!$A$8:$B$12,2,FALSE),FALSE))))","v":""},null,null,null,null,null,null,null,null,"",null,"","","","","","","","","","","",""]
["",null,null,null,null,null,"","",null,null,null,null,null,null,null,null,null,null,null,null,null,null,null,null,null,null,"","","","",null,null,"",null,null,null,null,null,null,null,null,null,null,null,null,null,null,null,null,null,null,null,null,null,null,null,null,null,null,null,"","","",null,null,null,null,"","","","",null,null,null,null,null,null,null,null,null,null,null,null,null,null,null,null,null,null,null,null,null,null,null,null,null,null,null,null,null,null,null,null,null,null,null,null,null,null,null,null,null,null,null,null,null,null,null,null,null,null,null,null,"",{"$f":"IF($A212=\"\",\"\",IF(VLOOKUP($G212,$H$11:$DO$1000,103,FALSE)=\"\",\"No\",IF(LEFT(VLOOKUP($G212,$H$11:$DO$1000,103,FALSE),3)=\"The\",EM212,VLOOKUP(VLOOKUP($G212,$H$11:$DO$1000,103,FALSE),DeclMatrix!$A$2:$F$5,VLOOKUP('Enrollment Form'!$B212,DeclMatrix!$A$8:$B$12,2,FALSE),FALSE))))","v":""},{"$f":"IF($A212=\"\",\"\",IF(VLOOKUP($G212,$H$11:$DO$1000,106,FALSE)=\"\",\"No\",IF(LEFT(VLOOKUP($G212,$H$11:$DO$1000,106,FALSE),3)=\"The\",EN212,VLOOKUP(VLOOKUP($G212,$H$11:$DO$1000,106,FALSE),DeclMatrix!$A$2:$F$5,VLOOKUP('Enrollment Form'!$B212,DeclMatrix!$A$8:$B$12,2,FALSE),FALSE))))","v":""},{"$f":"IF($A212=\"\",\"\",IF(VLOOKUP($G212,$H$11:$DO$1000,109,FALSE)=\"\",\"No\",IF(LEFT(VLOOKUP($G212,$H$11:$DO$1000,109,FALSE),3)=\"The\",EO212,VLOOKUP(VLOOKUP($G212,$H$11:$DO$1000,109,FALSE),DeclMatrix!$A$2:$F$5,VLOOKUP('Enrollment Form'!$B212,DeclMatrix!$A$8:$B$12,2,FALSE),FALSE))))","v":""},{"$f":"IF($A212=\"\",\"\",IF(VLOOKUP($G212,$H$11:$DO$1000,112,FALSE)=\"\",\"No\",IF(LEFT(VLOOKUP($G212,$H$11:$DO$1000,112,FALSE),3)=\"The\",EP212,VLOOKUP(VLOOKUP($G212,$H$11:$DO$1000,112,FALSE),DeclMatrix!$A$2:$F$5,VLOOKUP('Enrollment Form'!$B212,DeclMatrix!$A$8:$B$12,2,FALSE),FALSE))))","v":""},null,null,null,null,null,null,null,null,"",null,"","","","","","","","","","","",""]
["",null,null,null,null,null,"","",null,null,null,null,null,null,null,null,null,null,null,null,null,null,null,null,null,null,"","","","",null,null,"",null,null,null,null,null,null,null,null,null,null,null,null,null,null,null,null,null,null,null,null,null,null,null,null,null,null,null,"","","",null,null,null,null,"","","","",null,null,null,null,null,null,null,null,null,null,null,null,null,null,null,null,null,null,null,null,null,null,null,null,null,null,null,null,null,null,null,null,null,null,null,null,null,null,null,null,null,null,null,null,null,null,null,null,null,null,null,null,"",{"$f":"IF($A213=\"\",\"\",IF(VLOOKUP($G213,$H$11:$DO$1000,103,FALSE)=\"\",\"No\",IF(LEFT(VLOOKUP($G213,$H$11:$DO$1000,103,FALSE),3)=\"The\",EM213,VLOOKUP(VLOOKUP($G213,$H$11:$DO$1000,103,FALSE),DeclMatrix!$A$2:$F$5,VLOOKUP('Enrollment Form'!$B213,DeclMatrix!$A$8:$B$12,2,FALSE),FALSE))))","v":""},{"$f":"IF($A213=\"\",\"\",IF(VLOOKUP($G213,$H$11:$DO$1000,106,FALSE)=\"\",\"No\",IF(LEFT(VLOOKUP($G213,$H$11:$DO$1000,106,FALSE),3)=\"The\",EN213,VLOOKUP(VLOOKUP($G213,$H$11:$DO$1000,106,FALSE),DeclMatrix!$A$2:$F$5,VLOOKUP('Enrollment Form'!$B213,DeclMatrix!$A$8:$B$12,2,FALSE),FALSE))))","v":""},{"$f":"IF($A213=\"\",\"\",IF(VLOOKUP($G213,$H$11:$DO$1000,109,FALSE)=\"\",\"No\",IF(LEFT(VLOOKUP($G213,$H$11:$DO$1000,109,FALSE),3)=\"The\",EO213,VLOOKUP(VLOOKUP($G213,$H$11:$DO$1000,109,FALSE),DeclMatrix!$A$2:$F$5,VLOOKUP('Enrollment Form'!$B213,DeclMatrix!$A$8:$B$12,2,FALSE),FALSE))))","v":""},{"$f":"IF($A213=\"\",\"\",IF(VLOOKUP($G213,$H$11:$DO$1000,112,FALSE)=\"\",\"No\",IF(LEFT(VLOOKUP($G213,$H$11:$DO$1000,112,FALSE),3)=\"The\",EP213,VLOOKUP(VLOOKUP($G213,$H$11:$DO$1000,112,FALSE),DeclMatrix!$A$2:$F$5,VLOOKUP('Enrollment Form'!$B213,DeclMatrix!$A$8:$B$12,2,FALSE),FALSE))))","v":""},null,null,null,null,null,null,null,null,"",null,"","","","","","","","","","","",""]
["",null,null,null,null,null,"","",null,null,null,null,null,null,null,null,null,null,null,null,null,null,null,null,null,null,"","","","",null,null,"",null,null,null,null,null,null,null,null,null,null,null,null,null,null,null,null,null,null,null,null,null,null,null,null,null,null,null,"","","",null,null,null,null,"","","","",null,null,null,null,null,null,null,null,null,null,null,null,null,null,null,null,null,null,null,null,null,null,null,null,null,null,null,null,null,null,null,null,null,null,null,null,null,null,null,null,null,null,null,null,null,null,null,null,null,null,null,null,"",{"$f":"IF($A214=\"\",\"\",IF(VLOOKUP($G214,$H$11:$DO$1000,103,FALSE)=\"\",\"No\",IF(LEFT(VLOOKUP($G214,$H$11:$DO$1000,103,FALSE),3)=\"The\",EM214,VLOOKUP(VLOOKUP($G214,$H$11:$DO$1000,103,FALSE),DeclMatrix!$A$2:$F$5,VLOOKUP('Enrollment Form'!$B214,DeclMatrix!$A$8:$B$12,2,FALSE),FALSE))))","v":""},{"$f":"IF($A214=\"\",\"\",IF(VLOOKUP($G214,$H$11:$DO$1000,106,FALSE)=\"\",\"No\",IF(LEFT(VLOOKUP($G214,$H$11:$DO$1000,106,FALSE),3)=\"The\",EN214,VLOOKUP(VLOOKUP($G214,$H$11:$DO$1000,106,FALSE),DeclMatrix!$A$2:$F$5,VLOOKUP('Enrollment Form'!$B214,DeclMatrix!$A$8:$B$12,2,FALSE),FALSE))))","v":""},{"$f":"IF($A214=\"\",\"\",IF(VLOOKUP($G214,$H$11:$DO$1000,109,FALSE)=\"\",\"No\",IF(LEFT(VLOOKUP($G214,$H$11:$DO$1000,109,FALSE),3)=\"The\",EO214,VLOOKUP(VLOOKUP($G214,$H$11:$DO$1000,109,FALSE),DeclMatrix!$A$2:$F$5,VLOOKUP('Enrollment Form'!$B214,DeclMatrix!$A$8:$B$12,2,FALSE),FALSE))))","v":""},{"$f":"IF($A214=\"\",\"\",IF(VLOOKUP($G214,$H$11:$DO$1000,112,FALSE)=\"\",\"No\",IF(LEFT(VLOOKUP($G214,$H$11:$DO$1000,112,FALSE),3)=\"The\",EP214,VLOOKUP(VLOOKUP($G214,$H$11:$DO$1000,112,FALSE),DeclMatrix!$A$2:$F$5,VLOOKUP('Enrollment Form'!$B214,DeclMatrix!$A$8:$B$12,2,FALSE),FALSE))))","v":""},null,null,null,null,null,null,null,null,"",null,"","","","","","","","","","","",""]
["",null,null,null,null,null,"","",null,null,null,null,null,null,null,null,null,null,null,null,null,null,null,null,null,null,"","","","",null,null,"",null,null,null,null,null,null,null,null,null,null,null,null,null,null,null,null,null,null,null,null,null,null,null,null,null,null,null,"","","",null,null,null,null,"","","","",null,null,null,null,null,null,null,null,null,null,null,null,null,null,null,null,null,null,null,null,null,null,null,null,null,null,null,null,null,null,null,null,null,null,null,null,null,null,null,null,null,null,null,null,null,null,null,null,null,null,null,null,"",{"$f":"IF($A215=\"\",\"\",IF(VLOOKUP($G215,$H$11:$DO$1000,103,FALSE)=\"\",\"No\",IF(LEFT(VLOOKUP($G215,$H$11:$DO$1000,103,FALSE),3)=\"The\",EM215,VLOOKUP(VLOOKUP($G215,$H$11:$DO$1000,103,FALSE),DeclMatrix!$A$2:$F$5,VLOOKUP('Enrollment Form'!$B215,DeclMatrix!$A$8:$B$12,2,FALSE),FALSE))))","v":""},{"$f":"IF($A215=\"\",\"\",IF(VLOOKUP($G215,$H$11:$DO$1000,106,FALSE)=\"\",\"No\",IF(LEFT(VLOOKUP($G215,$H$11:$DO$1000,106,FALSE),3)=\"The\",EN215,VLOOKUP(VLOOKUP($G215,$H$11:$DO$1000,106,FALSE),DeclMatrix!$A$2:$F$5,VLOOKUP('Enrollment Form'!$B215,DeclMatrix!$A$8:$B$12,2,FALSE),FALSE))))","v":""},{"$f":"IF($A215=\"\",\"\",IF(VLOOKUP($G215,$H$11:$DO$1000,109,FALSE)=\"\",\"No\",IF(LEFT(VLOOKUP($G215,$H$11:$DO$1000,109,FALSE),3)=\"The\",EO215,VLOOKUP(VLOOKUP($G215,$H$11:$DO$1000,109,FALSE),DeclMatrix!$A$2:$F$5,VLOOKUP('Enrollment Form'!$B215,DeclMatrix!$A$8:$B$12,2,FALSE),FALSE))))","v":""},{"$f":"IF($A215=\"\",\"\",IF(VLOOKUP($G215,$H$11:$DO$1000,112,FALSE)=\"\",\"No\",IF(LEFT(VLOOKUP($G215,$H$11:$DO$1000,112,FALSE),3)=\"The\",EP215,VLOOKUP(VLOOKUP($G215,$H$11:$DO$1000,112,FALSE),DeclMatrix!$A$2:$F$5,VLOOKUP('Enrollment Form'!$B215,DeclMatrix!$A$8:$B$12,2,FALSE),FALSE))))","v":""},null,null,null,null,null,null,null,null,"",null,"","","","","","","","","","","",""]
["",null,null,null,null,null,"","",null,null,null,null,null,null,null,null,null,null,null,null,null,null,null,null,null,null,"","","","",null,null,"",null,null,null,null,null,null,null,null,null,null,null,null,null,null,null,null,null,null,null,null,null,null,null,null,null,null,null,"","","",null,null,null,null,"","","","",null,null,null,null,null,null,null,null,null,null,null,null,null,null,null,null,null,null,null,null,null,null,null,null,null,null,null,null,null,null,null,null,null,null,null,null,null,null,null,null,null,null,null,null,null,null,null,null,null,null,null,null,"",{"$f":"IF($A216=\"\",\"\",IF(VLOOKUP($G216,$H$11:$DO$1000,103,FALSE)=\"\",\"No\",IF(LEFT(VLOOKUP($G216,$H$11:$DO$1000,103,FALSE),3)=\"The\",EM216,VLOOKUP(VLOOKUP($G216,$H$11:$DO$1000,103,FALSE),DeclMatrix!$A$2:$F$5,VLOOKUP('Enrollment Form'!$B216,DeclMatrix!$A$8:$B$12,2,FALSE),FALSE))))","v":""},{"$f":"IF($A216=\"\",\"\",IF(VLOOKUP($G216,$H$11:$DO$1000,106,FALSE)=\"\",\"No\",IF(LEFT(VLOOKUP($G216,$H$11:$DO$1000,106,FALSE),3)=\"The\",EN216,VLOOKUP(VLOOKUP($G216,$H$11:$DO$1000,106,FALSE),DeclMatrix!$A$2:$F$5,VLOOKUP('Enrollment Form'!$B216,DeclMatrix!$A$8:$B$12,2,FALSE),FALSE))))","v":""},{"$f":"IF($A216=\"\",\"\",IF(VLOOKUP($G216,$H$11:$DO$1000,109,FALSE)=\"\",\"No\",IF(LEFT(VLOOKUP($G216,$H$11:$DO$1000,109,FALSE),3)=\"The\",EO216,VLOOKUP(VLOOKUP($G216,$H$11:$DO$1000,109,FALSE),DeclMatrix!$A$2:$F$5,VLOOKUP('Enrollment Form'!$B216,DeclMatrix!$A$8:$B$12,2,FALSE),FALSE))))","v":""},{"$f":"IF($A216=\"\",\"\",IF(VLOOKUP($G216,$H$11:$DO$1000,112,FALSE)=\"\",\"No\",IF(LEFT(VLOOKUP($G216,$H$11:$DO$1000,112,FALSE),3)=\"The\",EP216,VLOOKUP(VLOOKUP($G216,$H$11:$DO$1000,112,FALSE),DeclMatrix!$A$2:$F$5,VLOOKUP('Enrollment Form'!$B216,DeclMatrix!$A$8:$B$12,2,FALSE),FALSE))))","v":""},null,null,null,null,null,null,null,null,"",null,"","","","","","","","","","","",""]
["",null,null,null,null,null,"","",null,null,null,null,null,null,null,null,null,null,null,null,null,null,null,null,null,null,"","","","",null,null,"",null,null,null,null,null,null,null,null,null,null,null,null,null,null,null,null,null,null,null,null,null,null,null,null,null,null,null,"","","",null,null,null,null,"","","","",null,null,null,null,null,null,null,null,null,null,null,null,null,null,null,null,null,null,null,null,null,null,null,null,null,null,null,null,null,null,null,null,null,null,null,null,null,null,null,null,null,null,null,null,null,null,null,null,null,null,null,null,"",{"$f":"IF($A217=\"\",\"\",IF(VLOOKUP($G217,$H$11:$DO$1000,103,FALSE)=\"\",\"No\",IF(LEFT(VLOOKUP($G217,$H$11:$DO$1000,103,FALSE),3)=\"The\",EM217,VLOOKUP(VLOOKUP($G217,$H$11:$DO$1000,103,FALSE),DeclMatrix!$A$2:$F$5,VLOOKUP('Enrollment Form'!$B217,DeclMatrix!$A$8:$B$12,2,FALSE),FALSE))))","v":""},{"$f":"IF($A217=\"\",\"\",IF(VLOOKUP($G217,$H$11:$DO$1000,106,FALSE)=\"\",\"No\",IF(LEFT(VLOOKUP($G217,$H$11:$DO$1000,106,FALSE),3)=\"The\",EN217,VLOOKUP(VLOOKUP($G217,$H$11:$DO$1000,106,FALSE),DeclMatrix!$A$2:$F$5,VLOOKUP('Enrollment Form'!$B217,DeclMatrix!$A$8:$B$12,2,FALSE),FALSE))))","v":""},{"$f":"IF($A217=\"\",\"\",IF(VLOOKUP($G217,$H$11:$DO$1000,109,FALSE)=\"\",\"No\",IF(LEFT(VLOOKUP($G217,$H$11:$DO$1000,109,FALSE),3)=\"The\",EO217,VLOOKUP(VLOOKUP($G217,$H$11:$DO$1000,109,FALSE),DeclMatrix!$A$2:$F$5,VLOOKUP('Enrollment Form'!$B217,DeclMatrix!$A$8:$B$12,2,FALSE),FALSE))))","v":""},{"$f":"IF($A217=\"\",\"\",IF(VLOOKUP($G217,$H$11:$DO$1000,112,FALSE)=\"\",\"No\",IF(LEFT(VLOOKUP($G217,$H$11:$DO$1000,112,FALSE),3)=\"The\",EP217,VLOOKUP(VLOOKUP($G217,$H$11:$DO$1000,112,FALSE),DeclMatrix!$A$2:$F$5,VLOOKUP('Enrollment Form'!$B217,DeclMatrix!$A$8:$B$12,2,FALSE),FALSE))))","v":""},null,null,null,null,null,null,null,null,"",null,"","","","","","","","","","","",""]
["",null,null,null,null,null,"","",null,null,null,null,null,null,null,null,null,null,null,null,null,null,null,null,null,null,"","","","",null,null,"",null,null,null,null,null,null,null,null,null,null,null,null,null,null,null,null,null,null,null,null,null,null,null,null,null,null,null,"","","",null,null,null,null,"","","","",null,null,null,null,null,null,null,null,null,null,null,null,null,null,null,null,null,null,null,null,null,null,null,null,null,null,null,null,null,null,null,null,null,null,null,null,null,null,null,null,null,null,null,null,null,null,null,null,null,null,null,null,"",{"$f":"IF($A218=\"\",\"\",IF(VLOOKUP($G218,$H$11:$DO$1000,103,FALSE)=\"\",\"No\",IF(LEFT(VLOOKUP($G218,$H$11:$DO$1000,103,FALSE),3)=\"The\",EM218,VLOOKUP(VLOOKUP($G218,$H$11:$DO$1000,103,FALSE),DeclMatrix!$A$2:$F$5,VLOOKUP('Enrollment Form'!$B218,DeclMatrix!$A$8:$B$12,2,FALSE),FALSE))))","v":""},{"$f":"IF($A218=\"\",\"\",IF(VLOOKUP($G218,$H$11:$DO$1000,106,FALSE)=\"\",\"No\",IF(LEFT(VLOOKUP($G218,$H$11:$DO$1000,106,FALSE),3)=\"The\",EN218,VLOOKUP(VLOOKUP($G218,$H$11:$DO$1000,106,FALSE),DeclMatrix!$A$2:$F$5,VLOOKUP('Enrollment Form'!$B218,DeclMatrix!$A$8:$B$12,2,FALSE),FALSE))))","v":""},{"$f":"IF($A218=\"\",\"\",IF(VLOOKUP($G218,$H$11:$DO$1000,109,FALSE)=\"\",\"No\",IF(LEFT(VLOOKUP($G218,$H$11:$DO$1000,109,FALSE),3)=\"The\",EO218,VLOOKUP(VLOOKUP($G218,$H$11:$DO$1000,109,FALSE),DeclMatrix!$A$2:$F$5,VLOOKUP('Enrollment Form'!$B218,DeclMatrix!$A$8:$B$12,2,FALSE),FALSE))))","v":""},{"$f":"IF($A218=\"\",\"\",IF(VLOOKUP($G218,$H$11:$DO$1000,112,FALSE)=\"\",\"No\",IF(LEFT(VLOOKUP($G218,$H$11:$DO$1000,112,FALSE),3)=\"The\",EP218,VLOOKUP(VLOOKUP($G218,$H$11:$DO$1000,112,FALSE),DeclMatrix!$A$2:$F$5,VLOOKUP('Enrollment Form'!$B218,DeclMatrix!$A$8:$B$12,2,FALSE),FALSE))))","v":""},null,null,null,null,null,null,null,null,"",null,"","","","","","","","","","","",""]
["",null,null,null,null,null,"","",null,null,null,null,null,null,null,null,null,null,null,null,null,null,null,null,null,null,"","","","",null,null,"",null,null,null,null,null,null,null,null,null,null,null,null,null,null,null,null,null,null,null,null,null,null,null,null,null,null,null,"","","",null,null,null,null,"","","","",null,null,null,null,null,null,null,null,null,null,null,null,null,null,null,null,null,null,null,null,null,null,null,null,null,null,null,null,null,null,null,null,null,null,null,null,null,null,null,null,null,null,null,null,null,null,null,null,null,null,null,null,"",{"$f":"IF($A219=\"\",\"\",IF(VLOOKUP($G219,$H$11:$DO$1000,103,FALSE)=\"\",\"No\",IF(LEFT(VLOOKUP($G219,$H$11:$DO$1000,103,FALSE),3)=\"The\",EM219,VLOOKUP(VLOOKUP($G219,$H$11:$DO$1000,103,FALSE),DeclMatrix!$A$2:$F$5,VLOOKUP('Enrollment Form'!$B219,DeclMatrix!$A$8:$B$12,2,FALSE),FALSE))))","v":""},{"$f":"IF($A219=\"\",\"\",IF(VLOOKUP($G219,$H$11:$DO$1000,106,FALSE)=\"\",\"No\",IF(LEFT(VLOOKUP($G219,$H$11:$DO$1000,106,FALSE),3)=\"The\",EN219,VLOOKUP(VLOOKUP($G219,$H$11:$DO$1000,106,FALSE),DeclMatrix!$A$2:$F$5,VLOOKUP('Enrollment Form'!$B219,DeclMatrix!$A$8:$B$12,2,FALSE),FALSE))))","v":""},{"$f":"IF($A219=\"\",\"\",IF(VLOOKUP($G219,$H$11:$DO$1000,109,FALSE)=\"\",\"No\",IF(LEFT(VLOOKUP($G219,$H$11:$DO$1000,109,FALSE),3)=\"The\",EO219,VLOOKUP(VLOOKUP($G219,$H$11:$DO$1000,109,FALSE),DeclMatrix!$A$2:$F$5,VLOOKUP('Enrollment Form'!$B219,DeclMatrix!$A$8:$B$12,2,FALSE),FALSE))))","v":""},{"$f":"IF($A219=\"\",\"\",IF(VLOOKUP($G219,$H$11:$DO$1000,112,FALSE)=\"\",\"No\",IF(LEFT(VLOOKUP($G219,$H$11:$DO$1000,112,FALSE),3)=\"The\",EP219,VLOOKUP(VLOOKUP($G219,$H$11:$DO$1000,112,FALSE),DeclMatrix!$A$2:$F$5,VLOOKUP('Enrollment Form'!$B219,DeclMatrix!$A$8:$B$12,2,FALSE),FALSE))))","v":""},null,null,null,null,null,null,null,null,"",null,"","","","","","","","","","","",""]
["",null,null,null,null,null,"","",null,null,null,null,null,null,null,null,null,null,null,null,null,null,null,null,null,null,"","","","",null,null,"",null,null,null,null,null,null,null,null,null,null,null,null,null,null,null,null,null,null,null,null,null,null,null,null,null,null,null,"","","",null,null,null,null,"","","","",null,null,null,null,null,null,null,null,null,null,null,null,null,null,null,null,null,null,null,null,null,null,null,null,null,null,null,null,null,null,null,null,null,null,null,null,null,null,null,null,null,null,null,null,null,null,null,null,null,null,null,null,"",{"$f":"IF($A220=\"\",\"\",IF(VLOOKUP($G220,$H$11:$DO$1000,103,FALSE)=\"\",\"No\",IF(LEFT(VLOOKUP($G220,$H$11:$DO$1000,103,FALSE),3)=\"The\",EM220,VLOOKUP(VLOOKUP($G220,$H$11:$DO$1000,103,FALSE),DeclMatrix!$A$2:$F$5,VLOOKUP('Enrollment Form'!$B220,DeclMatrix!$A$8:$B$12,2,FALSE),FALSE))))","v":""},{"$f":"IF($A220=\"\",\"\",IF(VLOOKUP($G220,$H$11:$DO$1000,106,FALSE)=\"\",\"No\",IF(LEFT(VLOOKUP($G220,$H$11:$DO$1000,106,FALSE),3)=\"The\",EN220,VLOOKUP(VLOOKUP($G220,$H$11:$DO$1000,106,FALSE),DeclMatrix!$A$2:$F$5,VLOOKUP('Enrollment Form'!$B220,DeclMatrix!$A$8:$B$12,2,FALSE),FALSE))))","v":""},{"$f":"IF($A220=\"\",\"\",IF(VLOOKUP($G220,$H$11:$DO$1000,109,FALSE)=\"\",\"No\",IF(LEFT(VLOOKUP($G220,$H$11:$DO$1000,109,FALSE),3)=\"The\",EO220,VLOOKUP(VLOOKUP($G220,$H$11:$DO$1000,109,FALSE),DeclMatrix!$A$2:$F$5,VLOOKUP('Enrollment Form'!$B220,DeclMatrix!$A$8:$B$12,2,FALSE),FALSE))))","v":""},{"$f":"IF($A220=\"\",\"\",IF(VLOOKUP($G220,$H$11:$DO$1000,112,FALSE)=\"\",\"No\",IF(LEFT(VLOOKUP($G220,$H$11:$DO$1000,112,FALSE),3)=\"The\",EP220,VLOOKUP(VLOOKUP($G220,$H$11:$DO$1000,112,FALSE),DeclMatrix!$A$2:$F$5,VLOOKUP('Enrollment Form'!$B220,DeclMatrix!$A$8:$B$12,2,FALSE),FALSE))))","v":""},null,null,null,null,null,null,null,null,"",null,"","","","","","","","","","","",""]
["",null,null,null,null,null,"","",null,null,null,null,null,null,null,null,null,null,null,null,null,null,null,null,null,null,"","","","",null,null,"",null,null,null,null,null,null,null,null,null,null,null,null,null,null,null,null,null,null,null,null,null,null,null,null,null,null,null,"","","",null,null,null,null,"","","","",null,null,null,null,null,null,null,null,null,null,null,null,null,null,null,null,null,null,null,null,null,null,null,null,null,null,null,null,null,null,null,null,null,null,null,null,null,null,null,null,null,null,null,null,null,null,null,null,null,null,null,null,"",{"$f":"IF($A221=\"\",\"\",IF(VLOOKUP($G221,$H$11:$DO$1000,103,FALSE)=\"\",\"No\",IF(LEFT(VLOOKUP($G221,$H$11:$DO$1000,103,FALSE),3)=\"The\",EM221,VLOOKUP(VLOOKUP($G221,$H$11:$DO$1000,103,FALSE),DeclMatrix!$A$2:$F$5,VLOOKUP('Enrollment Form'!$B221,DeclMatrix!$A$8:$B$12,2,FALSE),FALSE))))","v":""},{"$f":"IF($A221=\"\",\"\",IF(VLOOKUP($G221,$H$11:$DO$1000,106,FALSE)=\"\",\"No\",IF(LEFT(VLOOKUP($G221,$H$11:$DO$1000,106,FALSE),3)=\"The\",EN221,VLOOKUP(VLOOKUP($G221,$H$11:$DO$1000,106,FALSE),DeclMatrix!$A$2:$F$5,VLOOKUP('Enrollment Form'!$B221,DeclMatrix!$A$8:$B$12,2,FALSE),FALSE))))","v":""},{"$f":"IF($A221=\"\",\"\",IF(VLOOKUP($G221,$H$11:$DO$1000,109,FALSE)=\"\",\"No\",IF(LEFT(VLOOKUP($G221,$H$11:$DO$1000,109,FALSE),3)=\"The\",EO221,VLOOKUP(VLOOKUP($G221,$H$11:$DO$1000,109,FALSE),DeclMatrix!$A$2:$F$5,VLOOKUP('Enrollment Form'!$B221,DeclMatrix!$A$8:$B$12,2,FALSE),FALSE))))","v":""},{"$f":"IF($A221=\"\",\"\",IF(VLOOKUP($G221,$H$11:$DO$1000,112,FALSE)=\"\",\"No\",IF(LEFT(VLOOKUP($G221,$H$11:$DO$1000,112,FALSE),3)=\"The\",EP221,VLOOKUP(VLOOKUP($G221,$H$11:$DO$1000,112,FALSE),DeclMatrix!$A$2:$F$5,VLOOKUP('Enrollment Form'!$B221,DeclMatrix!$A$8:$B$12,2,FALSE),FALSE))))","v":""},null,null,null,null,null,null,null,null,"",null,"","","","","","","","","","","",""]
["",null,null,null,null,null,"","",null,null,null,null,null,null,null,null,null,null,null,null,null,null,null,null,null,null,"","","","",null,null,"",null,null,null,null,null,null,null,null,null,null,null,null,null,null,null,null,null,null,null,null,null,null,null,null,null,null,null,"","","",null,null,null,null,"","","","",null,null,null,null,null,null,null,null,null,null,null,null,null,null,null,null,null,null,null,null,null,null,null,null,null,null,null,null,null,null,null,null,null,null,null,null,null,null,null,null,null,null,null,null,null,null,null,null,null,null,null,null,"",{"$f":"IF($A222=\"\",\"\",IF(VLOOKUP($G222,$H$11:$DO$1000,103,FALSE)=\"\",\"No\",IF(LEFT(VLOOKUP($G222,$H$11:$DO$1000,103,FALSE),3)=\"The\",EM222,VLOOKUP(VLOOKUP($G222,$H$11:$DO$1000,103,FALSE),DeclMatrix!$A$2:$F$5,VLOOKUP('Enrollment Form'!$B222,DeclMatrix!$A$8:$B$12,2,FALSE),FALSE))))","v":""},{"$f":"IF($A222=\"\",\"\",IF(VLOOKUP($G222,$H$11:$DO$1000,106,FALSE)=\"\",\"No\",IF(LEFT(VLOOKUP($G222,$H$11:$DO$1000,106,FALSE),3)=\"The\",EN222,VLOOKUP(VLOOKUP($G222,$H$11:$DO$1000,106,FALSE),DeclMatrix!$A$2:$F$5,VLOOKUP('Enrollment Form'!$B222,DeclMatrix!$A$8:$B$12,2,FALSE),FALSE))))","v":""},{"$f":"IF($A222=\"\",\"\",IF(VLOOKUP($G222,$H$11:$DO$1000,109,FALSE)=\"\",\"No\",IF(LEFT(VLOOKUP($G222,$H$11:$DO$1000,109,FALSE),3)=\"The\",EO222,VLOOKUP(VLOOKUP($G222,$H$11:$DO$1000,109,FALSE),DeclMatrix!$A$2:$F$5,VLOOKUP('Enrollment Form'!$B222,DeclMatrix!$A$8:$B$12,2,FALSE),FALSE))))","v":""},{"$f":"IF($A222=\"\",\"\",IF(VLOOKUP($G222,$H$11:$DO$1000,112,FALSE)=\"\",\"No\",IF(LEFT(VLOOKUP($G222,$H$11:$DO$1000,112,FALSE),3)=\"The\",EP222,VLOOKUP(VLOOKUP($G222,$H$11:$DO$1000,112,FALSE),DeclMatrix!$A$2:$F$5,VLOOKUP('Enrollment Form'!$B222,DeclMatrix!$A$8:$B$12,2,FALSE),FALSE))))","v":""},null,null,null,null,null,null,null,null,"",null,"","","","","","","","","","","",""]
["",null,null,null,null,null,"","",null,null,null,null,null,null,null,null,null,null,null,null,null,null,null,null,null,null,"","","","",null,null,"",null,null,null,null,null,null,null,null,null,null,null,null,null,null,null,null,null,null,null,null,null,null,null,null,null,null,null,"","","",null,null,null,null,"","","","",null,null,null,null,null,null,null,null,null,null,null,null,null,null,null,null,null,null,null,null,null,null,null,null,null,null,null,null,null,null,null,null,null,null,null,null,null,null,null,null,null,null,null,null,null,null,null,null,null,null,null,null,"",{"$f":"IF($A223=\"\",\"\",IF(VLOOKUP($G223,$H$11:$DO$1000,103,FALSE)=\"\",\"No\",IF(LEFT(VLOOKUP($G223,$H$11:$DO$1000,103,FALSE),3)=\"The\",EM223,VLOOKUP(VLOOKUP($G223,$H$11:$DO$1000,103,FALSE),DeclMatrix!$A$2:$F$5,VLOOKUP('Enrollment Form'!$B223,DeclMatrix!$A$8:$B$12,2,FALSE),FALSE))))","v":""},{"$f":"IF($A223=\"\",\"\",IF(VLOOKUP($G223,$H$11:$DO$1000,106,FALSE)=\"\",\"No\",IF(LEFT(VLOOKUP($G223,$H$11:$DO$1000,106,FALSE),3)=\"The\",EN223,VLOOKUP(VLOOKUP($G223,$H$11:$DO$1000,106,FALSE),DeclMatrix!$A$2:$F$5,VLOOKUP('Enrollment Form'!$B223,DeclMatrix!$A$8:$B$12,2,FALSE),FALSE))))","v":""},{"$f":"IF($A223=\"\",\"\",IF(VLOOKUP($G223,$H$11:$DO$1000,109,FALSE)=\"\",\"No\",IF(LEFT(VLOOKUP($G223,$H$11:$DO$1000,109,FALSE),3)=\"The\",EO223,VLOOKUP(VLOOKUP($G223,$H$11:$DO$1000,109,FALSE),DeclMatrix!$A$2:$F$5,VLOOKUP('Enrollment Form'!$B223,DeclMatrix!$A$8:$B$12,2,FALSE),FALSE))))","v":""},{"$f":"IF($A223=\"\",\"\",IF(VLOOKUP($G223,$H$11:$DO$1000,112,FALSE)=\"\",\"No\",IF(LEFT(VLOOKUP($G223,$H$11:$DO$1000,112,FALSE),3)=\"The\",EP223,VLOOKUP(VLOOKUP($G223,$H$11:$DO$1000,112,FALSE),DeclMatrix!$A$2:$F$5,VLOOKUP('Enrollment Form'!$B223,DeclMatrix!$A$8:$B$12,2,FALSE),FALSE))))","v":""},null,null,null,null,null,null,null,null,"",null,"","","","","","","","","","","",""]
["",null,null,null,null,null,"","",null,null,null,null,null,null,null,null,null,null,null,null,null,null,null,null,null,null,"","","","",null,null,"",null,null,null,null,null,null,null,null,null,null,null,null,null,null,null,null,null,null,null,null,null,null,null,null,null,null,null,"","","",null,null,null,null,"","","","",null,null,null,null,null,null,null,null,null,null,null,null,null,null,null,null,null,null,null,null,null,null,null,null,null,null,null,null,null,null,null,null,null,null,null,null,null,null,null,null,null,null,null,null,null,null,null,null,null,null,null,null,"",{"$f":"IF($A224=\"\",\"\",IF(VLOOKUP($G224,$H$11:$DO$1000,103,FALSE)=\"\",\"No\",IF(LEFT(VLOOKUP($G224,$H$11:$DO$1000,103,FALSE),3)=\"The\",EM224,VLOOKUP(VLOOKUP($G224,$H$11:$DO$1000,103,FALSE),DeclMatrix!$A$2:$F$5,VLOOKUP('Enrollment Form'!$B224,DeclMatrix!$A$8:$B$12,2,FALSE),FALSE))))","v":""},{"$f":"IF($A224=\"\",\"\",IF(VLOOKUP($G224,$H$11:$DO$1000,106,FALSE)=\"\",\"No\",IF(LEFT(VLOOKUP($G224,$H$11:$DO$1000,106,FALSE),3)=\"The\",EN224,VLOOKUP(VLOOKUP($G224,$H$11:$DO$1000,106,FALSE),DeclMatrix!$A$2:$F$5,VLOOKUP('Enrollment Form'!$B224,DeclMatrix!$A$8:$B$12,2,FALSE),FALSE))))","v":""},{"$f":"IF($A224=\"\",\"\",IF(VLOOKUP($G224,$H$11:$DO$1000,109,FALSE)=\"\",\"No\",IF(LEFT(VLOOKUP($G224,$H$11:$DO$1000,109,FALSE),3)=\"The\",EO224,VLOOKUP(VLOOKUP($G224,$H$11:$DO$1000,109,FALSE),DeclMatrix!$A$2:$F$5,VLOOKUP('Enrollment Form'!$B224,DeclMatrix!$A$8:$B$12,2,FALSE),FALSE))))","v":""},{"$f":"IF($A224=\"\",\"\",IF(VLOOKUP($G224,$H$11:$DO$1000,112,FALSE)=\"\",\"No\",IF(LEFT(VLOOKUP($G224,$H$11:$DO$1000,112,FALSE),3)=\"The\",EP224,VLOOKUP(VLOOKUP($G224,$H$11:$DO$1000,112,FALSE),DeclMatrix!$A$2:$F$5,VLOOKUP('Enrollment Form'!$B224,DeclMatrix!$A$8:$B$12,2,FALSE),FALSE))))","v":""},null,null,null,null,null,null,null,null,"",null,"","","","","","","","","","","",""]
["",null,null,null,null,null,"","",null,null,null,null,null,null,null,null,null,null,null,null,null,null,null,null,null,null,"","","","",null,null,"",null,null,null,null,null,null,null,null,null,null,null,null,null,null,null,null,null,null,null,null,null,null,null,null,null,null,null,"","","",null,null,null,null,"","","","",null,null,null,null,null,null,null,null,null,null,null,null,null,null,null,null,null,null,null,null,null,null,null,null,null,null,null,null,null,null,null,null,null,null,null,null,null,null,null,null,null,null,null,null,null,null,null,null,null,null,null,null,"",{"$f":"IF($A225=\"\",\"\",IF(VLOOKUP($G225,$H$11:$DO$1000,103,FALSE)=\"\",\"No\",IF(LEFT(VLOOKUP($G225,$H$11:$DO$1000,103,FALSE),3)=\"The\",EM225,VLOOKUP(VLOOKUP($G225,$H$11:$DO$1000,103,FALSE),DeclMatrix!$A$2:$F$5,VLOOKUP('Enrollment Form'!$B225,DeclMatrix!$A$8:$B$12,2,FALSE),FALSE))))","v":""},{"$f":"IF($A225=\"\",\"\",IF(VLOOKUP($G225,$H$11:$DO$1000,106,FALSE)=\"\",\"No\",IF(LEFT(VLOOKUP($G225,$H$11:$DO$1000,106,FALSE),3)=\"The\",EN225,VLOOKUP(VLOOKUP($G225,$H$11:$DO$1000,106,FALSE),DeclMatrix!$A$2:$F$5,VLOOKUP('Enrollment Form'!$B225,DeclMatrix!$A$8:$B$12,2,FALSE),FALSE))))","v":""},{"$f":"IF($A225=\"\",\"\",IF(VLOOKUP($G225,$H$11:$DO$1000,109,FALSE)=\"\",\"No\",IF(LEFT(VLOOKUP($G225,$H$11:$DO$1000,109,FALSE),3)=\"The\",EO225,VLOOKUP(VLOOKUP($G225,$H$11:$DO$1000,109,FALSE),DeclMatrix!$A$2:$F$5,VLOOKUP('Enrollment Form'!$B225,DeclMatrix!$A$8:$B$12,2,FALSE),FALSE))))","v":""},{"$f":"IF($A225=\"\",\"\",IF(VLOOKUP($G225,$H$11:$DO$1000,112,FALSE)=\"\",\"No\",IF(LEFT(VLOOKUP($G225,$H$11:$DO$1000,112,FALSE),3)=\"The\",EP225,VLOOKUP(VLOOKUP($G225,$H$11:$DO$1000,112,FALSE),DeclMatrix!$A$2:$F$5,VLOOKUP('Enrollment Form'!$B225,DeclMatrix!$A$8:$B$12,2,FALSE),FALSE))))","v":""},null,null,null,null,null,null,null,null,"",null,"","","","","","","","","","","",""]
["",null,null,null,null,null,"","",null,null,null,null,null,null,null,null,null,null,null,null,null,null,null,null,null,null,"","","","",null,null,"",null,null,null,null,null,null,null,null,null,null,null,null,null,null,null,null,null,null,null,null,null,null,null,null,null,null,null,"","","",null,null,null,null,"","","","",null,null,null,null,null,null,null,null,null,null,null,null,null,null,null,null,null,null,null,null,null,null,null,null,null,null,null,null,null,null,null,null,null,null,null,null,null,null,null,null,null,null,null,null,null,null,null,null,null,null,null,null,"",{"$f":"IF($A226=\"\",\"\",IF(VLOOKUP($G226,$H$11:$DO$1000,103,FALSE)=\"\",\"No\",IF(LEFT(VLOOKUP($G226,$H$11:$DO$1000,103,FALSE),3)=\"The\",EM226,VLOOKUP(VLOOKUP($G226,$H$11:$DO$1000,103,FALSE),DeclMatrix!$A$2:$F$5,VLOOKUP('Enrollment Form'!$B226,DeclMatrix!$A$8:$B$12,2,FALSE),FALSE))))","v":""},{"$f":"IF($A226=\"\",\"\",IF(VLOOKUP($G226,$H$11:$DO$1000,106,FALSE)=\"\",\"No\",IF(LEFT(VLOOKUP($G226,$H$11:$DO$1000,106,FALSE),3)=\"The\",EN226,VLOOKUP(VLOOKUP($G226,$H$11:$DO$1000,106,FALSE),DeclMatrix!$A$2:$F$5,VLOOKUP('Enrollment Form'!$B226,DeclMatrix!$A$8:$B$12,2,FALSE),FALSE))))","v":""},{"$f":"IF($A226=\"\",\"\",IF(VLOOKUP($G226,$H$11:$DO$1000,109,FALSE)=\"\",\"No\",IF(LEFT(VLOOKUP($G226,$H$11:$DO$1000,109,FALSE),3)=\"The\",EO226,VLOOKUP(VLOOKUP($G226,$H$11:$DO$1000,109,FALSE),DeclMatrix!$A$2:$F$5,VLOOKUP('Enrollment Form'!$B226,DeclMatrix!$A$8:$B$12,2,FALSE),FALSE))))","v":""},{"$f":"IF($A226=\"\",\"\",IF(VLOOKUP($G226,$H$11:$DO$1000,112,FALSE)=\"\",\"No\",IF(LEFT(VLOOKUP($G226,$H$11:$DO$1000,112,FALSE),3)=\"The\",EP226,VLOOKUP(VLOOKUP($G226,$H$11:$DO$1000,112,FALSE),DeclMatrix!$A$2:$F$5,VLOOKUP('Enrollment Form'!$B226,DeclMatrix!$A$8:$B$12,2,FALSE),FALSE))))","v":""},null,null,null,null,null,null,null,null,"",null,"","","","","","","","","","","",""]
["",null,null,null,null,null,"","",null,null,null,null,null,null,null,null,null,null,null,null,null,null,null,null,null,null,"","","","",null,null,"",null,null,null,null,null,null,null,null,null,null,null,null,null,null,null,null,null,null,null,null,null,null,null,null,null,null,null,"","","",null,null,null,null,"","","","",null,null,null,null,null,null,null,null,null,null,null,null,null,null,null,null,null,null,null,null,null,null,null,null,null,null,null,null,null,null,null,null,null,null,null,null,null,null,null,null,null,null,null,null,null,null,null,null,null,null,null,null,"",{"$f":"IF($A227=\"\",\"\",IF(VLOOKUP($G227,$H$11:$DO$1000,103,FALSE)=\"\",\"No\",IF(LEFT(VLOOKUP($G227,$H$11:$DO$1000,103,FALSE),3)=\"The\",EM227,VLOOKUP(VLOOKUP($G227,$H$11:$DO$1000,103,FALSE),DeclMatrix!$A$2:$F$5,VLOOKUP('Enrollment Form'!$B227,DeclMatrix!$A$8:$B$12,2,FALSE),FALSE))))","v":""},{"$f":"IF($A227=\"\",\"\",IF(VLOOKUP($G227,$H$11:$DO$1000,106,FALSE)=\"\",\"No\",IF(LEFT(VLOOKUP($G227,$H$11:$DO$1000,106,FALSE),3)=\"The\",EN227,VLOOKUP(VLOOKUP($G227,$H$11:$DO$1000,106,FALSE),DeclMatrix!$A$2:$F$5,VLOOKUP('Enrollment Form'!$B227,DeclMatrix!$A$8:$B$12,2,FALSE),FALSE))))","v":""},{"$f":"IF($A227=\"\",\"\",IF(VLOOKUP($G227,$H$11:$DO$1000,109,FALSE)=\"\",\"No\",IF(LEFT(VLOOKUP($G227,$H$11:$DO$1000,109,FALSE),3)=\"The\",EO227,VLOOKUP(VLOOKUP($G227,$H$11:$DO$1000,109,FALSE),DeclMatrix!$A$2:$F$5,VLOOKUP('Enrollment Form'!$B227,DeclMatrix!$A$8:$B$12,2,FALSE),FALSE))))","v":""},{"$f":"IF($A227=\"\",\"\",IF(VLOOKUP($G227,$H$11:$DO$1000,112,FALSE)=\"\",\"No\",IF(LEFT(VLOOKUP($G227,$H$11:$DO$1000,112,FALSE),3)=\"The\",EP227,VLOOKUP(VLOOKUP($G227,$H$11:$DO$1000,112,FALSE),DeclMatrix!$A$2:$F$5,VLOOKUP('Enrollment Form'!$B227,DeclMatrix!$A$8:$B$12,2,FALSE),FALSE))))","v":""},null,null,null,null,null,null,null,null,"",null,"","","","","","","","","","","",""]
["",null,null,null,null,null,"","",null,null,null,null,null,null,null,null,null,null,null,null,null,null,null,null,null,null,"","","","",null,null,"",null,null,null,null,null,null,null,null,null,null,null,null,null,null,null,null,null,null,null,null,null,null,null,null,null,null,null,"","","",null,null,null,null,"","","","",null,null,null,null,null,null,null,null,null,null,null,null,null,null,null,null,null,null,null,null,null,null,null,null,null,null,null,null,null,null,null,null,null,null,null,null,null,null,null,null,null,null,null,null,null,null,null,null,null,null,null,null,"",{"$f":"IF($A228=\"\",\"\",IF(VLOOKUP($G228,$H$11:$DO$1000,103,FALSE)=\"\",\"No\",IF(LEFT(VLOOKUP($G228,$H$11:$DO$1000,103,FALSE),3)=\"The\",EM228,VLOOKUP(VLOOKUP($G228,$H$11:$DO$1000,103,FALSE),DeclMatrix!$A$2:$F$5,VLOOKUP('Enrollment Form'!$B228,DeclMatrix!$A$8:$B$12,2,FALSE),FALSE))))","v":""},{"$f":"IF($A228=\"\",\"\",IF(VLOOKUP($G228,$H$11:$DO$1000,106,FALSE)=\"\",\"No\",IF(LEFT(VLOOKUP($G228,$H$11:$DO$1000,106,FALSE),3)=\"The\",EN228,VLOOKUP(VLOOKUP($G228,$H$11:$DO$1000,106,FALSE),DeclMatrix!$A$2:$F$5,VLOOKUP('Enrollment Form'!$B228,DeclMatrix!$A$8:$B$12,2,FALSE),FALSE))))","v":""},{"$f":"IF($A228=\"\",\"\",IF(VLOOKUP($G228,$H$11:$DO$1000,109,FALSE)=\"\",\"No\",IF(LEFT(VLOOKUP($G228,$H$11:$DO$1000,109,FALSE),3)=\"The\",EO228,VLOOKUP(VLOOKUP($G228,$H$11:$DO$1000,109,FALSE),DeclMatrix!$A$2:$F$5,VLOOKUP('Enrollment Form'!$B228,DeclMatrix!$A$8:$B$12,2,FALSE),FALSE))))","v":""},{"$f":"IF($A228=\"\",\"\",IF(VLOOKUP($G228,$H$11:$DO$1000,112,FALSE)=\"\",\"No\",IF(LEFT(VLOOKUP($G228,$H$11:$DO$1000,112,FALSE),3)=\"The\",EP228,VLOOKUP(VLOOKUP($G228,$H$11:$DO$1000,112,FALSE),DeclMatrix!$A$2:$F$5,VLOOKUP('Enrollment Form'!$B228,DeclMatrix!$A$8:$B$12,2,FALSE),FALSE))))","v":""},null,null,null,null,null,null,null,null,"",null,"","","","","","","","","","","",""]
["",null,null,null,null,null,"","",null,null,null,null,null,null,null,null,null,null,null,null,null,null,null,null,null,null,"","","","",null,null,"",null,null,null,null,null,null,null,null,null,null,null,null,null,null,null,null,null,null,null,null,null,null,null,null,null,null,null,"","","",null,null,null,null,"","","","",null,null,null,null,null,null,null,null,null,null,null,null,null,null,null,null,null,null,null,null,null,null,null,null,null,null,null,null,null,null,null,null,null,null,null,null,null,null,null,null,null,null,null,null,null,null,null,null,null,null,null,null,"",{"$f":"IF($A229=\"\",\"\",IF(VLOOKUP($G229,$H$11:$DO$1000,103,FALSE)=\"\",\"No\",IF(LEFT(VLOOKUP($G229,$H$11:$DO$1000,103,FALSE),3)=\"The\",EM229,VLOOKUP(VLOOKUP($G229,$H$11:$DO$1000,103,FALSE),DeclMatrix!$A$2:$F$5,VLOOKUP('Enrollment Form'!$B229,DeclMatrix!$A$8:$B$12,2,FALSE),FALSE))))","v":""},{"$f":"IF($A229=\"\",\"\",IF(VLOOKUP($G229,$H$11:$DO$1000,106,FALSE)=\"\",\"No\",IF(LEFT(VLOOKUP($G229,$H$11:$DO$1000,106,FALSE),3)=\"The\",EN229,VLOOKUP(VLOOKUP($G229,$H$11:$DO$1000,106,FALSE),DeclMatrix!$A$2:$F$5,VLOOKUP('Enrollment Form'!$B229,DeclMatrix!$A$8:$B$12,2,FALSE),FALSE))))","v":""},{"$f":"IF($A229=\"\",\"\",IF(VLOOKUP($G229,$H$11:$DO$1000,109,FALSE)=\"\",\"No\",IF(LEFT(VLOOKUP($G229,$H$11:$DO$1000,109,FALSE),3)=\"The\",EO229,VLOOKUP(VLOOKUP($G229,$H$11:$DO$1000,109,FALSE),DeclMatrix!$A$2:$F$5,VLOOKUP('Enrollment Form'!$B229,DeclMatrix!$A$8:$B$12,2,FALSE),FALSE))))","v":""},{"$f":"IF($A229=\"\",\"\",IF(VLOOKUP($G229,$H$11:$DO$1000,112,FALSE)=\"\",\"No\",IF(LEFT(VLOOKUP($G229,$H$11:$DO$1000,112,FALSE),3)=\"The\",EP229,VLOOKUP(VLOOKUP($G229,$H$11:$DO$1000,112,FALSE),DeclMatrix!$A$2:$F$5,VLOOKUP('Enrollment Form'!$B229,DeclMatrix!$A$8:$B$12,2,FALSE),FALSE))))","v":""},null,null,null,null,null,null,null,null,"",null,"","","","","","","","","","","",""]
["",null,null,null,null,null,"","",null,null,null,null,null,null,null,null,null,null,null,null,null,null,null,null,null,null,"","","","",null,null,"",null,null,null,null,null,null,null,null,null,null,null,null,null,null,null,null,null,null,null,null,null,null,null,null,null,null,null,"","","",null,null,null,null,"","","","",null,null,null,null,null,null,null,null,null,null,null,null,null,null,null,null,null,null,null,null,null,null,null,null,null,null,null,null,null,null,null,null,null,null,null,null,null,null,null,null,null,null,null,null,null,null,null,null,null,null,null,null,"",{"$f":"IF($A230=\"\",\"\",IF(VLOOKUP($G230,$H$11:$DO$1000,103,FALSE)=\"\",\"No\",IF(LEFT(VLOOKUP($G230,$H$11:$DO$1000,103,FALSE),3)=\"The\",EM230,VLOOKUP(VLOOKUP($G230,$H$11:$DO$1000,103,FALSE),DeclMatrix!$A$2:$F$5,VLOOKUP('Enrollment Form'!$B230,DeclMatrix!$A$8:$B$12,2,FALSE),FALSE))))","v":""},{"$f":"IF($A230=\"\",\"\",IF(VLOOKUP($G230,$H$11:$DO$1000,106,FALSE)=\"\",\"No\",IF(LEFT(VLOOKUP($G230,$H$11:$DO$1000,106,FALSE),3)=\"The\",EN230,VLOOKUP(VLOOKUP($G230,$H$11:$DO$1000,106,FALSE),DeclMatrix!$A$2:$F$5,VLOOKUP('Enrollment Form'!$B230,DeclMatrix!$A$8:$B$12,2,FALSE),FALSE))))","v":""},{"$f":"IF($A230=\"\",\"\",IF(VLOOKUP($G230,$H$11:$DO$1000,109,FALSE)=\"\",\"No\",IF(LEFT(VLOOKUP($G230,$H$11:$DO$1000,109,FALSE),3)=\"The\",EO230,VLOOKUP(VLOOKUP($G230,$H$11:$DO$1000,109,FALSE),DeclMatrix!$A$2:$F$5,VLOOKUP('Enrollment Form'!$B230,DeclMatrix!$A$8:$B$12,2,FALSE),FALSE))))","v":""},{"$f":"IF($A230=\"\",\"\",IF(VLOOKUP($G230,$H$11:$DO$1000,112,FALSE)=\"\",\"No\",IF(LEFT(VLOOKUP($G230,$H$11:$DO$1000,112,FALSE),3)=\"The\",EP230,VLOOKUP(VLOOKUP($G230,$H$11:$DO$1000,112,FALSE),DeclMatrix!$A$2:$F$5,VLOOKUP('Enrollment Form'!$B230,DeclMatrix!$A$8:$B$12,2,FALSE),FALSE))))","v":""},null,null,null,null,null,null,null,null,"",null,"","","","","","","","","","","",""]
["",null,null,null,null,null,"","",null,null,null,null,null,null,null,null,null,null,null,null,null,null,null,null,null,null,"","","","",null,null,"",null,null,null,null,null,null,null,null,null,null,null,null,null,null,null,null,null,null,null,null,null,null,null,null,null,null,null,"","","",null,null,null,null,"","","","",null,null,null,null,null,null,null,null,null,null,null,null,null,null,null,null,null,null,null,null,null,null,null,null,null,null,null,null,null,null,null,null,null,null,null,null,null,null,null,null,null,null,null,null,null,null,null,null,null,null,null,null,"",{"$f":"IF($A231=\"\",\"\",IF(VLOOKUP($G231,$H$11:$DO$1000,103,FALSE)=\"\",\"No\",IF(LEFT(VLOOKUP($G231,$H$11:$DO$1000,103,FALSE),3)=\"The\",EM231,VLOOKUP(VLOOKUP($G231,$H$11:$DO$1000,103,FALSE),DeclMatrix!$A$2:$F$5,VLOOKUP('Enrollment Form'!$B231,DeclMatrix!$A$8:$B$12,2,FALSE),FALSE))))","v":""},{"$f":"IF($A231=\"\",\"\",IF(VLOOKUP($G231,$H$11:$DO$1000,106,FALSE)=\"\",\"No\",IF(LEFT(VLOOKUP($G231,$H$11:$DO$1000,106,FALSE),3)=\"The\",EN231,VLOOKUP(VLOOKUP($G231,$H$11:$DO$1000,106,FALSE),DeclMatrix!$A$2:$F$5,VLOOKUP('Enrollment Form'!$B231,DeclMatrix!$A$8:$B$12,2,FALSE),FALSE))))","v":""},{"$f":"IF($A231=\"\",\"\",IF(VLOOKUP($G231,$H$11:$DO$1000,109,FALSE)=\"\",\"No\",IF(LEFT(VLOOKUP($G231,$H$11:$DO$1000,109,FALSE),3)=\"The\",EO231,VLOOKUP(VLOOKUP($G231,$H$11:$DO$1000,109,FALSE),DeclMatrix!$A$2:$F$5,VLOOKUP('Enrollment Form'!$B231,DeclMatrix!$A$8:$B$12,2,FALSE),FALSE))))","v":""},{"$f":"IF($A231=\"\",\"\",IF(VLOOKUP($G231,$H$11:$DO$1000,112,FALSE)=\"\",\"No\",IF(LEFT(VLOOKUP($G231,$H$11:$DO$1000,112,FALSE),3)=\"The\",EP231,VLOOKUP(VLOOKUP($G231,$H$11:$DO$1000,112,FALSE),DeclMatrix!$A$2:$F$5,VLOOKUP('Enrollment Form'!$B231,DeclMatrix!$A$8:$B$12,2,FALSE),FALSE))))","v":""},null,null,null,null,null,null,null,null,"",null,"","","","","","","","","","","",""]
["",null,null,null,null,null,"","",null,null,null,null,null,null,null,null,null,null,null,null,null,null,null,null,null,null,"","","","",null,null,"",null,null,null,null,null,null,null,null,null,null,null,null,null,null,null,null,null,null,null,null,null,null,null,null,null,null,null,"","","",null,null,null,null,"","","","",null,null,null,null,null,null,null,null,null,null,null,null,null,null,null,null,null,null,null,null,null,null,null,null,null,null,null,null,null,null,null,null,null,null,null,null,null,null,null,null,null,null,null,null,null,null,null,null,null,null,null,null,"",{"$f":"IF($A232=\"\",\"\",IF(VLOOKUP($G232,$H$11:$DO$1000,103,FALSE)=\"\",\"No\",IF(LEFT(VLOOKUP($G232,$H$11:$DO$1000,103,FALSE),3)=\"The\",EM232,VLOOKUP(VLOOKUP($G232,$H$11:$DO$1000,103,FALSE),DeclMatrix!$A$2:$F$5,VLOOKUP('Enrollment Form'!$B232,DeclMatrix!$A$8:$B$12,2,FALSE),FALSE))))","v":""},{"$f":"IF($A232=\"\",\"\",IF(VLOOKUP($G232,$H$11:$DO$1000,106,FALSE)=\"\",\"No\",IF(LEFT(VLOOKUP($G232,$H$11:$DO$1000,106,FALSE),3)=\"The\",EN232,VLOOKUP(VLOOKUP($G232,$H$11:$DO$1000,106,FALSE),DeclMatrix!$A$2:$F$5,VLOOKUP('Enrollment Form'!$B232,DeclMatrix!$A$8:$B$12,2,FALSE),FALSE))))","v":""},{"$f":"IF($A232=\"\",\"\",IF(VLOOKUP($G232,$H$11:$DO$1000,109,FALSE)=\"\",\"No\",IF(LEFT(VLOOKUP($G232,$H$11:$DO$1000,109,FALSE),3)=\"The\",EO232,VLOOKUP(VLOOKUP($G232,$H$11:$DO$1000,109,FALSE),DeclMatrix!$A$2:$F$5,VLOOKUP('Enrollment Form'!$B232,DeclMatrix!$A$8:$B$12,2,FALSE),FALSE))))","v":""},{"$f":"IF($A232=\"\",\"\",IF(VLOOKUP($G232,$H$11:$DO$1000,112,FALSE)=\"\",\"No\",IF(LEFT(VLOOKUP($G232,$H$11:$DO$1000,112,FALSE),3)=\"The\",EP232,VLOOKUP(VLOOKUP($G232,$H$11:$DO$1000,112,FALSE),DeclMatrix!$A$2:$F$5,VLOOKUP('Enrollment Form'!$B232,DeclMatrix!$A$8:$B$12,2,FALSE),FALSE))))","v":""},null,null,null,null,null,null,null,null,"",null,"","","","","","","","","","","",""]
["",null,null,null,null,null,"","",null,null,null,null,null,null,null,null,null,null,null,null,null,null,null,null,null,null,"","","","",null,null,"",null,null,null,null,null,null,null,null,null,null,null,null,null,null,null,null,null,null,null,null,null,null,null,null,null,null,null,"","","",null,null,null,null,"","","","",null,null,null,null,null,null,null,null,null,null,null,null,null,null,null,null,null,null,null,null,null,null,null,null,null,null,null,null,null,null,null,null,null,null,null,null,null,null,null,null,null,null,null,null,null,null,null,null,null,null,null,null,"",{"$f":"IF($A233=\"\",\"\",IF(VLOOKUP($G233,$H$11:$DO$1000,103,FALSE)=\"\",\"No\",IF(LEFT(VLOOKUP($G233,$H$11:$DO$1000,103,FALSE),3)=\"The\",EM233,VLOOKUP(VLOOKUP($G233,$H$11:$DO$1000,103,FALSE),DeclMatrix!$A$2:$F$5,VLOOKUP('Enrollment Form'!$B233,DeclMatrix!$A$8:$B$12,2,FALSE),FALSE))))","v":""},{"$f":"IF($A233=\"\",\"\",IF(VLOOKUP($G233,$H$11:$DO$1000,106,FALSE)=\"\",\"No\",IF(LEFT(VLOOKUP($G233,$H$11:$DO$1000,106,FALSE),3)=\"The\",EN233,VLOOKUP(VLOOKUP($G233,$H$11:$DO$1000,106,FALSE),DeclMatrix!$A$2:$F$5,VLOOKUP('Enrollment Form'!$B233,DeclMatrix!$A$8:$B$12,2,FALSE),FALSE))))","v":""},{"$f":"IF($A233=\"\",\"\",IF(VLOOKUP($G233,$H$11:$DO$1000,109,FALSE)=\"\",\"No\",IF(LEFT(VLOOKUP($G233,$H$11:$DO$1000,109,FALSE),3)=\"The\",EO233,VLOOKUP(VLOOKUP($G233,$H$11:$DO$1000,109,FALSE),DeclMatrix!$A$2:$F$5,VLOOKUP('Enrollment Form'!$B233,DeclMatrix!$A$8:$B$12,2,FALSE),FALSE))))","v":""},{"$f":"IF($A233=\"\",\"\",IF(VLOOKUP($G233,$H$11:$DO$1000,112,FALSE)=\"\",\"No\",IF(LEFT(VLOOKUP($G233,$H$11:$DO$1000,112,FALSE),3)=\"The\",EP233,VLOOKUP(VLOOKUP($G233,$H$11:$DO$1000,112,FALSE),DeclMatrix!$A$2:$F$5,VLOOKUP('Enrollment Form'!$B233,DeclMatrix!$A$8:$B$12,2,FALSE),FALSE))))","v":""},null,null,null,null,null,null,null,null,"",null,"","","","","","","","","","","",""]
["",null,null,null,null,null,"","",null,null,null,null,null,null,null,null,null,null,null,null,null,null,null,null,null,null,"","","","",null,null,"",null,null,null,null,null,null,null,null,null,null,null,null,null,null,null,null,null,null,null,null,null,null,null,null,null,null,null,"","","",null,null,null,null,"","","","",null,null,null,null,null,null,null,null,null,null,null,null,null,null,null,null,null,null,null,null,null,null,null,null,null,null,null,null,null,null,null,null,null,null,null,null,null,null,null,null,null,null,null,null,null,null,null,null,null,null,null,null,"",{"$f":"IF($A234=\"\",\"\",IF(VLOOKUP($G234,$H$11:$DO$1000,103,FALSE)=\"\",\"No\",IF(LEFT(VLOOKUP($G234,$H$11:$DO$1000,103,FALSE),3)=\"The\",EM234,VLOOKUP(VLOOKUP($G234,$H$11:$DO$1000,103,FALSE),DeclMatrix!$A$2:$F$5,VLOOKUP('Enrollment Form'!$B234,DeclMatrix!$A$8:$B$12,2,FALSE),FALSE))))","v":""},{"$f":"IF($A234=\"\",\"\",IF(VLOOKUP($G234,$H$11:$DO$1000,106,FALSE)=\"\",\"No\",IF(LEFT(VLOOKUP($G234,$H$11:$DO$1000,106,FALSE),3)=\"The\",EN234,VLOOKUP(VLOOKUP($G234,$H$11:$DO$1000,106,FALSE),DeclMatrix!$A$2:$F$5,VLOOKUP('Enrollment Form'!$B234,DeclMatrix!$A$8:$B$12,2,FALSE),FALSE))))","v":""},{"$f":"IF($A234=\"\",\"\",IF(VLOOKUP($G234,$H$11:$DO$1000,109,FALSE)=\"\",\"No\",IF(LEFT(VLOOKUP($G234,$H$11:$DO$1000,109,FALSE),3)=\"The\",EO234,VLOOKUP(VLOOKUP($G234,$H$11:$DO$1000,109,FALSE),DeclMatrix!$A$2:$F$5,VLOOKUP('Enrollment Form'!$B234,DeclMatrix!$A$8:$B$12,2,FALSE),FALSE))))","v":""},{"$f":"IF($A234=\"\",\"\",IF(VLOOKUP($G234,$H$11:$DO$1000,112,FALSE)=\"\",\"No\",IF(LEFT(VLOOKUP($G234,$H$11:$DO$1000,112,FALSE),3)=\"The\",EP234,VLOOKUP(VLOOKUP($G234,$H$11:$DO$1000,112,FALSE),DeclMatrix!$A$2:$F$5,VLOOKUP('Enrollment Form'!$B234,DeclMatrix!$A$8:$B$12,2,FALSE),FALSE))))","v":""},null,null,null,null,null,null,null,null,"",null,"","","","","","","","","","","",""]
["",null,null,null,null,null,"","",null,null,null,null,null,null,null,null,null,null,null,null,null,null,null,null,null,null,"","","","",null,null,"",null,null,null,null,null,null,null,null,null,null,null,null,null,null,null,null,null,null,null,null,null,null,null,null,null,null,null,"","","",null,null,null,null,"","","","",null,null,null,null,null,null,null,null,null,null,null,null,null,null,null,null,null,null,null,null,null,null,null,null,null,null,null,null,null,null,null,null,null,null,null,null,null,null,null,null,null,null,null,null,null,null,null,null,null,null,null,null,"",{"$f":"IF($A235=\"\",\"\",IF(VLOOKUP($G235,$H$11:$DO$1000,103,FALSE)=\"\",\"No\",IF(LEFT(VLOOKUP($G235,$H$11:$DO$1000,103,FALSE),3)=\"The\",EM235,VLOOKUP(VLOOKUP($G235,$H$11:$DO$1000,103,FALSE),DeclMatrix!$A$2:$F$5,VLOOKUP('Enrollment Form'!$B235,DeclMatrix!$A$8:$B$12,2,FALSE),FALSE))))","v":""},{"$f":"IF($A235=\"\",\"\",IF(VLOOKUP($G235,$H$11:$DO$1000,106,FALSE)=\"\",\"No\",IF(LEFT(VLOOKUP($G235,$H$11:$DO$1000,106,FALSE),3)=\"The\",EN235,VLOOKUP(VLOOKUP($G235,$H$11:$DO$1000,106,FALSE),DeclMatrix!$A$2:$F$5,VLOOKUP('Enrollment Form'!$B235,DeclMatrix!$A$8:$B$12,2,FALSE),FALSE))))","v":""},{"$f":"IF($A235=\"\",\"\",IF(VLOOKUP($G235,$H$11:$DO$1000,109,FALSE)=\"\",\"No\",IF(LEFT(VLOOKUP($G235,$H$11:$DO$1000,109,FALSE),3)=\"The\",EO235,VLOOKUP(VLOOKUP($G235,$H$11:$DO$1000,109,FALSE),DeclMatrix!$A$2:$F$5,VLOOKUP('Enrollment Form'!$B235,DeclMatrix!$A$8:$B$12,2,FALSE),FALSE))))","v":""},{"$f":"IF($A235=\"\",\"\",IF(VLOOKUP($G235,$H$11:$DO$1000,112,FALSE)=\"\",\"No\",IF(LEFT(VLOOKUP($G235,$H$11:$DO$1000,112,FALSE),3)=\"The\",EP235,VLOOKUP(VLOOKUP($G235,$H$11:$DO$1000,112,FALSE),DeclMatrix!$A$2:$F$5,VLOOKUP('Enrollment Form'!$B235,DeclMatrix!$A$8:$B$12,2,FALSE),FALSE))))","v":""},null,null,null,null,null,null,null,null,"",null,"","","","","","","","","","","",""]
["",null,null,null,null,null,"","",null,null,null,null,null,null,null,null,null,null,null,null,null,null,null,null,null,null,"","","","",null,null,"",null,null,null,null,null,null,null,null,null,null,null,null,null,null,null,null,null,null,null,null,null,null,null,null,null,null,null,"","","",null,null,null,null,"","","","",null,null,null,null,null,null,null,null,null,null,null,null,null,null,null,null,null,null,null,null,null,null,null,null,null,null,null,null,null,null,null,null,null,null,null,null,null,null,null,null,null,null,null,null,null,null,null,null,null,null,null,null,"",{"$f":"IF($A236=\"\",\"\",IF(VLOOKUP($G236,$H$11:$DO$1000,103,FALSE)=\"\",\"No\",IF(LEFT(VLOOKUP($G236,$H$11:$DO$1000,103,FALSE),3)=\"The\",EM236,VLOOKUP(VLOOKUP($G236,$H$11:$DO$1000,103,FALSE),DeclMatrix!$A$2:$F$5,VLOOKUP('Enrollment Form'!$B236,DeclMatrix!$A$8:$B$12,2,FALSE),FALSE))))","v":""},{"$f":"IF($A236=\"\",\"\",IF(VLOOKUP($G236,$H$11:$DO$1000,106,FALSE)=\"\",\"No\",IF(LEFT(VLOOKUP($G236,$H$11:$DO$1000,106,FALSE),3)=\"The\",EN236,VLOOKUP(VLOOKUP($G236,$H$11:$DO$1000,106,FALSE),DeclMatrix!$A$2:$F$5,VLOOKUP('Enrollment Form'!$B236,DeclMatrix!$A$8:$B$12,2,FALSE),FALSE))))","v":""},{"$f":"IF($A236=\"\",\"\",IF(VLOOKUP($G236,$H$11:$DO$1000,109,FALSE)=\"\",\"No\",IF(LEFT(VLOOKUP($G236,$H$11:$DO$1000,109,FALSE),3)=\"The\",EO236,VLOOKUP(VLOOKUP($G236,$H$11:$DO$1000,109,FALSE),DeclMatrix!$A$2:$F$5,VLOOKUP('Enrollment Form'!$B236,DeclMatrix!$A$8:$B$12,2,FALSE),FALSE))))","v":""},{"$f":"IF($A236=\"\",\"\",IF(VLOOKUP($G236,$H$11:$DO$1000,112,FALSE)=\"\",\"No\",IF(LEFT(VLOOKUP($G236,$H$11:$DO$1000,112,FALSE),3)=\"The\",EP236,VLOOKUP(VLOOKUP($G236,$H$11:$DO$1000,112,FALSE),DeclMatrix!$A$2:$F$5,VLOOKUP('Enrollment Form'!$B236,DeclMatrix!$A$8:$B$12,2,FALSE),FALSE))))","v":""},null,null,null,null,null,null,null,null,"",null,"","","","","","","","","","","",""]
["",null,null,null,null,null,"","",null,null,null,null,null,null,null,null,null,null,null,null,null,null,null,null,null,null,"","","","",null,null,"",null,null,null,null,null,null,null,null,null,null,null,null,null,null,null,null,null,null,null,null,null,null,null,null,null,null,null,"","","",null,null,null,null,"","","","",null,null,null,null,null,null,null,null,null,null,null,null,null,null,null,null,null,null,null,null,null,null,null,null,null,null,null,null,null,null,null,null,null,null,null,null,null,null,null,null,null,null,null,null,null,null,null,null,null,null,null,null,"",{"$f":"IF($A237=\"\",\"\",IF(VLOOKUP($G237,$H$11:$DO$1000,103,FALSE)=\"\",\"No\",IF(LEFT(VLOOKUP($G237,$H$11:$DO$1000,103,FALSE),3)=\"The\",EM237,VLOOKUP(VLOOKUP($G237,$H$11:$DO$1000,103,FALSE),DeclMatrix!$A$2:$F$5,VLOOKUP('Enrollment Form'!$B237,DeclMatrix!$A$8:$B$12,2,FALSE),FALSE))))","v":""},{"$f":"IF($A237=\"\",\"\",IF(VLOOKUP($G237,$H$11:$DO$1000,106,FALSE)=\"\",\"No\",IF(LEFT(VLOOKUP($G237,$H$11:$DO$1000,106,FALSE),3)=\"The\",EN237,VLOOKUP(VLOOKUP($G237,$H$11:$DO$1000,106,FALSE),DeclMatrix!$A$2:$F$5,VLOOKUP('Enrollment Form'!$B237,DeclMatrix!$A$8:$B$12,2,FALSE),FALSE))))","v":""},{"$f":"IF($A237=\"\",\"\",IF(VLOOKUP($G237,$H$11:$DO$1000,109,FALSE)=\"\",\"No\",IF(LEFT(VLOOKUP($G237,$H$11:$DO$1000,109,FALSE),3)=\"The\",EO237,VLOOKUP(VLOOKUP($G237,$H$11:$DO$1000,109,FALSE),DeclMatrix!$A$2:$F$5,VLOOKUP('Enrollment Form'!$B237,DeclMatrix!$A$8:$B$12,2,FALSE),FALSE))))","v":""},{"$f":"IF($A237=\"\",\"\",IF(VLOOKUP($G237,$H$11:$DO$1000,112,FALSE)=\"\",\"No\",IF(LEFT(VLOOKUP($G237,$H$11:$DO$1000,112,FALSE),3)=\"The\",EP237,VLOOKUP(VLOOKUP($G237,$H$11:$DO$1000,112,FALSE),DeclMatrix!$A$2:$F$5,VLOOKUP('Enrollment Form'!$B237,DeclMatrix!$A$8:$B$12,2,FALSE),FALSE))))","v":""},null,null,null,null,null,null,null,null,"",null,"","","","","","","","","","","",""]
["",null,null,null,null,null,"","",null,null,null,null,null,null,null,null,null,null,null,null,null,null,null,null,null,null,"","","","",null,null,"",null,null,null,null,null,null,null,null,null,null,null,null,null,null,null,null,null,null,null,null,null,null,null,null,null,null,null,"","","",null,null,null,null,"","","","",null,null,null,null,null,null,null,null,null,null,null,null,null,null,null,null,null,null,null,null,null,null,null,null,null,null,null,null,null,null,null,null,null,null,null,null,null,null,null,null,null,null,null,null,null,null,null,null,null,null,null,null,"",{"$f":"IF($A238=\"\",\"\",IF(VLOOKUP($G238,$H$11:$DO$1000,103,FALSE)=\"\",\"No\",IF(LEFT(VLOOKUP($G238,$H$11:$DO$1000,103,FALSE),3)=\"The\",EM238,VLOOKUP(VLOOKUP($G238,$H$11:$DO$1000,103,FALSE),DeclMatrix!$A$2:$F$5,VLOOKUP('Enrollment Form'!$B238,DeclMatrix!$A$8:$B$12,2,FALSE),FALSE))))","v":""},{"$f":"IF($A238=\"\",\"\",IF(VLOOKUP($G238,$H$11:$DO$1000,106,FALSE)=\"\",\"No\",IF(LEFT(VLOOKUP($G238,$H$11:$DO$1000,106,FALSE),3)=\"The\",EN238,VLOOKUP(VLOOKUP($G238,$H$11:$DO$1000,106,FALSE),DeclMatrix!$A$2:$F$5,VLOOKUP('Enrollment Form'!$B238,DeclMatrix!$A$8:$B$12,2,FALSE),FALSE))))","v":""},{"$f":"IF($A238=\"\",\"\",IF(VLOOKUP($G238,$H$11:$DO$1000,109,FALSE)=\"\",\"No\",IF(LEFT(VLOOKUP($G238,$H$11:$DO$1000,109,FALSE),3)=\"The\",EO238,VLOOKUP(VLOOKUP($G238,$H$11:$DO$1000,109,FALSE),DeclMatrix!$A$2:$F$5,VLOOKUP('Enrollment Form'!$B238,DeclMatrix!$A$8:$B$12,2,FALSE),FALSE))))","v":""},{"$f":"IF($A238=\"\",\"\",IF(VLOOKUP($G238,$H$11:$DO$1000,112,FALSE)=\"\",\"No\",IF(LEFT(VLOOKUP($G238,$H$11:$DO$1000,112,FALSE),3)=\"The\",EP238,VLOOKUP(VLOOKUP($G238,$H$11:$DO$1000,112,FALSE),DeclMatrix!$A$2:$F$5,VLOOKUP('Enrollment Form'!$B238,DeclMatrix!$A$8:$B$12,2,FALSE),FALSE))))","v":""},null,null,null,null,null,null,null,null,"",null,"","","","","","","","","","","",""]
["",null,null,null,null,null,"","",null,null,null,null,null,null,null,null,null,null,null,null,null,null,null,null,null,null,"","","","",null,null,"",null,null,null,null,null,null,null,null,null,null,null,null,null,null,null,null,null,null,null,null,null,null,null,null,null,null,null,"","","",null,null,null,null,"","","","",null,null,null,null,null,null,null,null,null,null,null,null,null,null,null,null,null,null,null,null,null,null,null,null,null,null,null,null,null,null,null,null,null,null,null,null,null,null,null,null,null,null,null,null,null,null,null,null,null,null,null,null,"",{"$f":"IF($A239=\"\",\"\",IF(VLOOKUP($G239,$H$11:$DO$1000,103,FALSE)=\"\",\"No\",IF(LEFT(VLOOKUP($G239,$H$11:$DO$1000,103,FALSE),3)=\"The\",EM239,VLOOKUP(VLOOKUP($G239,$H$11:$DO$1000,103,FALSE),DeclMatrix!$A$2:$F$5,VLOOKUP('Enrollment Form'!$B239,DeclMatrix!$A$8:$B$12,2,FALSE),FALSE))))","v":""},{"$f":"IF($A239=\"\",\"\",IF(VLOOKUP($G239,$H$11:$DO$1000,106,FALSE)=\"\",\"No\",IF(LEFT(VLOOKUP($G239,$H$11:$DO$1000,106,FALSE),3)=\"The\",EN239,VLOOKUP(VLOOKUP($G239,$H$11:$DO$1000,106,FALSE),DeclMatrix!$A$2:$F$5,VLOOKUP('Enrollment Form'!$B239,DeclMatrix!$A$8:$B$12,2,FALSE),FALSE))))","v":""},{"$f":"IF($A239=\"\",\"\",IF(VLOOKUP($G239,$H$11:$DO$1000,109,FALSE)=\"\",\"No\",IF(LEFT(VLOOKUP($G239,$H$11:$DO$1000,109,FALSE),3)=\"The\",EO239,VLOOKUP(VLOOKUP($G239,$H$11:$DO$1000,109,FALSE),DeclMatrix!$A$2:$F$5,VLOOKUP('Enrollment Form'!$B239,DeclMatrix!$A$8:$B$12,2,FALSE),FALSE))))","v":""},{"$f":"IF($A239=\"\",\"\",IF(VLOOKUP($G239,$H$11:$DO$1000,112,FALSE)=\"\",\"No\",IF(LEFT(VLOOKUP($G239,$H$11:$DO$1000,112,FALSE),3)=\"The\",EP239,VLOOKUP(VLOOKUP($G239,$H$11:$DO$1000,112,FALSE),DeclMatrix!$A$2:$F$5,VLOOKUP('Enrollment Form'!$B239,DeclMatrix!$A$8:$B$12,2,FALSE),FALSE))))","v":""},null,null,null,null,null,null,null,null,"",null,"","","","","","","","","","","",""]
["",null,null,null,null,null,"","",null,null,null,null,null,null,null,null,null,null,null,null,null,null,null,null,null,null,"","","","",null,null,"",null,null,null,null,null,null,null,null,null,null,null,null,null,null,null,null,null,null,null,null,null,null,null,null,null,null,null,"","","",null,null,null,null,"","","","",null,null,null,null,null,null,null,null,null,null,null,null,null,null,null,null,null,null,null,null,null,null,null,null,null,null,null,null,null,null,null,null,null,null,null,null,null,null,null,null,null,null,null,null,null,null,null,null,null,null,null,null,"",{"$f":"IF($A240=\"\",\"\",IF(VLOOKUP($G240,$H$11:$DO$1000,103,FALSE)=\"\",\"No\",IF(LEFT(VLOOKUP($G240,$H$11:$DO$1000,103,FALSE),3)=\"The\",EM240,VLOOKUP(VLOOKUP($G240,$H$11:$DO$1000,103,FALSE),DeclMatrix!$A$2:$F$5,VLOOKUP('Enrollment Form'!$B240,DeclMatrix!$A$8:$B$12,2,FALSE),FALSE))))","v":""},{"$f":"IF($A240=\"\",\"\",IF(VLOOKUP($G240,$H$11:$DO$1000,106,FALSE)=\"\",\"No\",IF(LEFT(VLOOKUP($G240,$H$11:$DO$1000,106,FALSE),3)=\"The\",EN240,VLOOKUP(VLOOKUP($G240,$H$11:$DO$1000,106,FALSE),DeclMatrix!$A$2:$F$5,VLOOKUP('Enrollment Form'!$B240,DeclMatrix!$A$8:$B$12,2,FALSE),FALSE))))","v":""},{"$f":"IF($A240=\"\",\"\",IF(VLOOKUP($G240,$H$11:$DO$1000,109,FALSE)=\"\",\"No\",IF(LEFT(VLOOKUP($G240,$H$11:$DO$1000,109,FALSE),3)=\"The\",EO240,VLOOKUP(VLOOKUP($G240,$H$11:$DO$1000,109,FALSE),DeclMatrix!$A$2:$F$5,VLOOKUP('Enrollment Form'!$B240,DeclMatrix!$A$8:$B$12,2,FALSE),FALSE))))","v":""},{"$f":"IF($A240=\"\",\"\",IF(VLOOKUP($G240,$H$11:$DO$1000,112,FALSE)=\"\",\"No\",IF(LEFT(VLOOKUP($G240,$H$11:$DO$1000,112,FALSE),3)=\"The\",EP240,VLOOKUP(VLOOKUP($G240,$H$11:$DO$1000,112,FALSE),DeclMatrix!$A$2:$F$5,VLOOKUP('Enrollment Form'!$B240,DeclMatrix!$A$8:$B$12,2,FALSE),FALSE))))","v":""},null,null,null,null,null,null,null,null,"",null,"","","","","","","","","","","",""]
["",null,null,null,null,null,"","",null,null,null,null,null,null,null,null,null,null,null,null,null,null,null,null,null,null,"","","","",null,null,"",null,null,null,null,null,null,null,null,null,null,null,null,null,null,null,null,null,null,null,null,null,null,null,null,null,null,null,"","","",null,null,null,null,"","","","",null,null,null,null,null,null,null,null,null,null,null,null,null,null,null,null,null,null,null,null,null,null,null,null,null,null,null,null,null,null,null,null,null,null,null,null,null,null,null,null,null,null,null,null,null,null,null,null,null,null,null,null,"",{"$f":"IF($A241=\"\",\"\",IF(VLOOKUP($G241,$H$11:$DO$1000,103,FALSE)=\"\",\"No\",IF(LEFT(VLOOKUP($G241,$H$11:$DO$1000,103,FALSE),3)=\"The\",EM241,VLOOKUP(VLOOKUP($G241,$H$11:$DO$1000,103,FALSE),DeclMatrix!$A$2:$F$5,VLOOKUP('Enrollment Form'!$B241,DeclMatrix!$A$8:$B$12,2,FALSE),FALSE))))","v":""},{"$f":"IF($A241=\"\",\"\",IF(VLOOKUP($G241,$H$11:$DO$1000,106,FALSE)=\"\",\"No\",IF(LEFT(VLOOKUP($G241,$H$11:$DO$1000,106,FALSE),3)=\"The\",EN241,VLOOKUP(VLOOKUP($G241,$H$11:$DO$1000,106,FALSE),DeclMatrix!$A$2:$F$5,VLOOKUP('Enrollment Form'!$B241,DeclMatrix!$A$8:$B$12,2,FALSE),FALSE))))","v":""},{"$f":"IF($A241=\"\",\"\",IF(VLOOKUP($G241,$H$11:$DO$1000,109,FALSE)=\"\",\"No\",IF(LEFT(VLOOKUP($G241,$H$11:$DO$1000,109,FALSE),3)=\"The\",EO241,VLOOKUP(VLOOKUP($G241,$H$11:$DO$1000,109,FALSE),DeclMatrix!$A$2:$F$5,VLOOKUP('Enrollment Form'!$B241,DeclMatrix!$A$8:$B$12,2,FALSE),FALSE))))","v":""},{"$f":"IF($A241=\"\",\"\",IF(VLOOKUP($G241,$H$11:$DO$1000,112,FALSE)=\"\",\"No\",IF(LEFT(VLOOKUP($G241,$H$11:$DO$1000,112,FALSE),3)=\"The\",EP241,VLOOKUP(VLOOKUP($G241,$H$11:$DO$1000,112,FALSE),DeclMatrix!$A$2:$F$5,VLOOKUP('Enrollment Form'!$B241,DeclMatrix!$A$8:$B$12,2,FALSE),FALSE))))","v":""},null,null,null,null,null,null,null,null,"",null,"","","","","","","","","","","",""]
["",null,null,null,null,null,"","",null,null,null,null,null,null,null,null,null,null,null,null,null,null,null,null,null,null,"","","","",null,null,"",null,null,null,null,null,null,null,null,null,null,null,null,null,null,null,null,null,null,null,null,null,null,null,null,null,null,null,"","","",null,null,null,null,"","","","",null,null,null,null,null,null,null,null,null,null,null,null,null,null,null,null,null,null,null,null,null,null,null,null,null,null,null,null,null,null,null,null,null,null,null,null,null,null,null,null,null,null,null,null,null,null,null,null,null,null,null,null,"",{"$f":"IF($A242=\"\",\"\",IF(VLOOKUP($G242,$H$11:$DO$1000,103,FALSE)=\"\",\"No\",IF(LEFT(VLOOKUP($G242,$H$11:$DO$1000,103,FALSE),3)=\"The\",EM242,VLOOKUP(VLOOKUP($G242,$H$11:$DO$1000,103,FALSE),DeclMatrix!$A$2:$F$5,VLOOKUP('Enrollment Form'!$B242,DeclMatrix!$A$8:$B$12,2,FALSE),FALSE))))","v":""},{"$f":"IF($A242=\"\",\"\",IF(VLOOKUP($G242,$H$11:$DO$1000,106,FALSE)=\"\",\"No\",IF(LEFT(VLOOKUP($G242,$H$11:$DO$1000,106,FALSE),3)=\"The\",EN242,VLOOKUP(VLOOKUP($G242,$H$11:$DO$1000,106,FALSE),DeclMatrix!$A$2:$F$5,VLOOKUP('Enrollment Form'!$B242,DeclMatrix!$A$8:$B$12,2,FALSE),FALSE))))","v":""},{"$f":"IF($A242=\"\",\"\",IF(VLOOKUP($G242,$H$11:$DO$1000,109,FALSE)=\"\",\"No\",IF(LEFT(VLOOKUP($G242,$H$11:$DO$1000,109,FALSE),3)=\"The\",EO242,VLOOKUP(VLOOKUP($G242,$H$11:$DO$1000,109,FALSE),DeclMatrix!$A$2:$F$5,VLOOKUP('Enrollment Form'!$B242,DeclMatrix!$A$8:$B$12,2,FALSE),FALSE))))","v":""},{"$f":"IF($A242=\"\",\"\",IF(VLOOKUP($G242,$H$11:$DO$1000,112,FALSE)=\"\",\"No\",IF(LEFT(VLOOKUP($G242,$H$11:$DO$1000,112,FALSE),3)=\"The\",EP242,VLOOKUP(VLOOKUP($G242,$H$11:$DO$1000,112,FALSE),DeclMatrix!$A$2:$F$5,VLOOKUP('Enrollment Form'!$B242,DeclMatrix!$A$8:$B$12,2,FALSE),FALSE))))","v":""},null,null,null,null,null,null,null,null,"",null,"","","","","","","","","","","",""]
["",null,null,null,null,null,"","",null,null,null,null,null,null,null,null,null,null,null,null,null,null,null,null,null,null,"","","","",null,null,"",null,null,null,null,null,null,null,null,null,null,null,null,null,null,null,null,null,null,null,null,null,null,null,null,null,null,null,"","","",null,null,null,null,"","","","",null,null,null,null,null,null,null,null,null,null,null,null,null,null,null,null,null,null,null,null,null,null,null,null,null,null,null,null,null,null,null,null,null,null,null,null,null,null,null,null,null,null,null,null,null,null,null,null,null,null,null,null,"",{"$f":"IF($A243=\"\",\"\",IF(VLOOKUP($G243,$H$11:$DO$1000,103,FALSE)=\"\",\"No\",IF(LEFT(VLOOKUP($G243,$H$11:$DO$1000,103,FALSE),3)=\"The\",EM243,VLOOKUP(VLOOKUP($G243,$H$11:$DO$1000,103,FALSE),DeclMatrix!$A$2:$F$5,VLOOKUP('Enrollment Form'!$B243,DeclMatrix!$A$8:$B$12,2,FALSE),FALSE))))","v":""},{"$f":"IF($A243=\"\",\"\",IF(VLOOKUP($G243,$H$11:$DO$1000,106,FALSE)=\"\",\"No\",IF(LEFT(VLOOKUP($G243,$H$11:$DO$1000,106,FALSE),3)=\"The\",EN243,VLOOKUP(VLOOKUP($G243,$H$11:$DO$1000,106,FALSE),DeclMatrix!$A$2:$F$5,VLOOKUP('Enrollment Form'!$B243,DeclMatrix!$A$8:$B$12,2,FALSE),FALSE))))","v":""},{"$f":"IF($A243=\"\",\"\",IF(VLOOKUP($G243,$H$11:$DO$1000,109,FALSE)=\"\",\"No\",IF(LEFT(VLOOKUP($G243,$H$11:$DO$1000,109,FALSE),3)=\"The\",EO243,VLOOKUP(VLOOKUP($G243,$H$11:$DO$1000,109,FALSE),DeclMatrix!$A$2:$F$5,VLOOKUP('Enrollment Form'!$B243,DeclMatrix!$A$8:$B$12,2,FALSE),FALSE))))","v":""},{"$f":"IF($A243=\"\",\"\",IF(VLOOKUP($G243,$H$11:$DO$1000,112,FALSE)=\"\",\"No\",IF(LEFT(VLOOKUP($G243,$H$11:$DO$1000,112,FALSE),3)=\"The\",EP243,VLOOKUP(VLOOKUP($G243,$H$11:$DO$1000,112,FALSE),DeclMatrix!$A$2:$F$5,VLOOKUP('Enrollment Form'!$B243,DeclMatrix!$A$8:$B$12,2,FALSE),FALSE))))","v":""},null,null,null,null,null,null,null,null,"",null,"","","","","","","","","","","",""]
["",null,null,null,null,null,"","",null,null,null,null,null,null,null,null,null,null,null,null,null,null,null,null,null,null,"","","","",null,null,"",null,null,null,null,null,null,null,null,null,null,null,null,null,null,null,null,null,null,null,null,null,null,null,null,null,null,null,"","","",null,null,null,null,"","","","",null,null,null,null,null,null,null,null,null,null,null,null,null,null,null,null,null,null,null,null,null,null,null,null,null,null,null,null,null,null,null,null,null,null,null,null,null,null,null,null,null,null,null,null,null,null,null,null,null,null,null,null,"",{"$f":"IF($A244=\"\",\"\",IF(VLOOKUP($G244,$H$11:$DO$1000,103,FALSE)=\"\",\"No\",IF(LEFT(VLOOKUP($G244,$H$11:$DO$1000,103,FALSE),3)=\"The\",EM244,VLOOKUP(VLOOKUP($G244,$H$11:$DO$1000,103,FALSE),DeclMatrix!$A$2:$F$5,VLOOKUP('Enrollment Form'!$B244,DeclMatrix!$A$8:$B$12,2,FALSE),FALSE))))","v":""},{"$f":"IF($A244=\"\",\"\",IF(VLOOKUP($G244,$H$11:$DO$1000,106,FALSE)=\"\",\"No\",IF(LEFT(VLOOKUP($G244,$H$11:$DO$1000,106,FALSE),3)=\"The\",EN244,VLOOKUP(VLOOKUP($G244,$H$11:$DO$1000,106,FALSE),DeclMatrix!$A$2:$F$5,VLOOKUP('Enrollment Form'!$B244,DeclMatrix!$A$8:$B$12,2,FALSE),FALSE))))","v":""},{"$f":"IF($A244=\"\",\"\",IF(VLOOKUP($G244,$H$11:$DO$1000,109,FALSE)=\"\",\"No\",IF(LEFT(VLOOKUP($G244,$H$11:$DO$1000,109,FALSE),3)=\"The\",EO244,VLOOKUP(VLOOKUP($G244,$H$11:$DO$1000,109,FALSE),DeclMatrix!$A$2:$F$5,VLOOKUP('Enrollment Form'!$B244,DeclMatrix!$A$8:$B$12,2,FALSE),FALSE))))","v":""},{"$f":"IF($A244=\"\",\"\",IF(VLOOKUP($G244,$H$11:$DO$1000,112,FALSE)=\"\",\"No\",IF(LEFT(VLOOKUP($G244,$H$11:$DO$1000,112,FALSE),3)=\"The\",EP244,VLOOKUP(VLOOKUP($G244,$H$11:$DO$1000,112,FALSE),DeclMatrix!$A$2:$F$5,VLOOKUP('Enrollment Form'!$B244,DeclMatrix!$A$8:$B$12,2,FALSE),FALSE))))","v":""},null,null,null,null,null,null,null,null,"",null,"","","","","","","","","","","",""]
["",null,null,null,null,null,"","",null,null,null,null,null,null,null,null,null,null,null,null,null,null,null,null,null,null,"","","","",null,null,"",null,null,null,null,null,null,null,null,null,null,null,null,null,null,null,null,null,null,null,null,null,null,null,null,null,null,null,"","","",null,null,null,null,"","","","",null,null,null,null,null,null,null,null,null,null,null,null,null,null,null,null,null,null,null,null,null,null,null,null,null,null,null,null,null,null,null,null,null,null,null,null,null,null,null,null,null,null,null,null,null,null,null,null,null,null,null,null,"",{"$f":"IF($A245=\"\",\"\",IF(VLOOKUP($G245,$H$11:$DO$1000,103,FALSE)=\"\",\"No\",IF(LEFT(VLOOKUP($G245,$H$11:$DO$1000,103,FALSE),3)=\"The\",EM245,VLOOKUP(VLOOKUP($G245,$H$11:$DO$1000,103,FALSE),DeclMatrix!$A$2:$F$5,VLOOKUP('Enrollment Form'!$B245,DeclMatrix!$A$8:$B$12,2,FALSE),FALSE))))","v":""},{"$f":"IF($A245=\"\",\"\",IF(VLOOKUP($G245,$H$11:$DO$1000,106,FALSE)=\"\",\"No\",IF(LEFT(VLOOKUP($G245,$H$11:$DO$1000,106,FALSE),3)=\"The\",EN245,VLOOKUP(VLOOKUP($G245,$H$11:$DO$1000,106,FALSE),DeclMatrix!$A$2:$F$5,VLOOKUP('Enrollment Form'!$B245,DeclMatrix!$A$8:$B$12,2,FALSE),FALSE))))","v":""},{"$f":"IF($A245=\"\",\"\",IF(VLOOKUP($G245,$H$11:$DO$1000,109,FALSE)=\"\",\"No\",IF(LEFT(VLOOKUP($G245,$H$11:$DO$1000,109,FALSE),3)=\"The\",EO245,VLOOKUP(VLOOKUP($G245,$H$11:$DO$1000,109,FALSE),DeclMatrix!$A$2:$F$5,VLOOKUP('Enrollment Form'!$B245,DeclMatrix!$A$8:$B$12,2,FALSE),FALSE))))","v":""},{"$f":"IF($A245=\"\",\"\",IF(VLOOKUP($G245,$H$11:$DO$1000,112,FALSE)=\"\",\"No\",IF(LEFT(VLOOKUP($G245,$H$11:$DO$1000,112,FALSE),3)=\"The\",EP245,VLOOKUP(VLOOKUP($G245,$H$11:$DO$1000,112,FALSE),DeclMatrix!$A$2:$F$5,VLOOKUP('Enrollment Form'!$B245,DeclMatrix!$A$8:$B$12,2,FALSE),FALSE))))","v":""},null,null,null,null,null,null,null,null,"",null,"","","","","","","","","","","",""]
["",null,null,null,null,null,"","",null,null,null,null,null,null,null,null,null,null,null,null,null,null,null,null,null,null,"","","","",null,null,"",null,null,null,null,null,null,null,null,null,null,null,null,null,null,null,null,null,null,null,null,null,null,null,null,null,null,null,"","","",null,null,null,null,"","","","",null,null,null,null,null,null,null,null,null,null,null,null,null,null,null,null,null,null,null,null,null,null,null,null,null,null,null,null,null,null,null,null,null,null,null,null,null,null,null,null,null,null,null,null,null,null,null,null,null,null,null,null,"",{"$f":"IF($A246=\"\",\"\",IF(VLOOKUP($G246,$H$11:$DO$1000,103,FALSE)=\"\",\"No\",IF(LEFT(VLOOKUP($G246,$H$11:$DO$1000,103,FALSE),3)=\"The\",EM246,VLOOKUP(VLOOKUP($G246,$H$11:$DO$1000,103,FALSE),DeclMatrix!$A$2:$F$5,VLOOKUP('Enrollment Form'!$B246,DeclMatrix!$A$8:$B$12,2,FALSE),FALSE))))","v":""},{"$f":"IF($A246=\"\",\"\",IF(VLOOKUP($G246,$H$11:$DO$1000,106,FALSE)=\"\",\"No\",IF(LEFT(VLOOKUP($G246,$H$11:$DO$1000,106,FALSE),3)=\"The\",EN246,VLOOKUP(VLOOKUP($G246,$H$11:$DO$1000,106,FALSE),DeclMatrix!$A$2:$F$5,VLOOKUP('Enrollment Form'!$B246,DeclMatrix!$A$8:$B$12,2,FALSE),FALSE))))","v":""},{"$f":"IF($A246=\"\",\"\",IF(VLOOKUP($G246,$H$11:$DO$1000,109,FALSE)=\"\",\"No\",IF(LEFT(VLOOKUP($G246,$H$11:$DO$1000,109,FALSE),3)=\"The\",EO246,VLOOKUP(VLOOKUP($G246,$H$11:$DO$1000,109,FALSE),DeclMatrix!$A$2:$F$5,VLOOKUP('Enrollment Form'!$B246,DeclMatrix!$A$8:$B$12,2,FALSE),FALSE))))","v":""},{"$f":"IF($A246=\"\",\"\",IF(VLOOKUP($G246,$H$11:$DO$1000,112,FALSE)=\"\",\"No\",IF(LEFT(VLOOKUP($G246,$H$11:$DO$1000,112,FALSE),3)=\"The\",EP246,VLOOKUP(VLOOKUP($G246,$H$11:$DO$1000,112,FALSE),DeclMatrix!$A$2:$F$5,VLOOKUP('Enrollment Form'!$B246,DeclMatrix!$A$8:$B$12,2,FALSE),FALSE))))","v":""},null,null,null,null,null,null,null,null,"",null,"","","","","","","","","","","",""]
["",null,null,null,null,null,"","",null,null,null,null,null,null,null,null,null,null,null,null,null,null,null,null,null,null,"","","","",null,null,"",null,null,null,null,null,null,null,null,null,null,null,null,null,null,null,null,null,null,null,null,null,null,null,null,null,null,null,"","","",null,null,null,null,"","","","",null,null,null,null,null,null,null,null,null,null,null,null,null,null,null,null,null,null,null,null,null,null,null,null,null,null,null,null,null,null,null,null,null,null,null,null,null,null,null,null,null,null,null,null,null,null,null,null,null,null,null,null,"",{"$f":"IF($A247=\"\",\"\",IF(VLOOKUP($G247,$H$11:$DO$1000,103,FALSE)=\"\",\"No\",IF(LEFT(VLOOKUP($G247,$H$11:$DO$1000,103,FALSE),3)=\"The\",EM247,VLOOKUP(VLOOKUP($G247,$H$11:$DO$1000,103,FALSE),DeclMatrix!$A$2:$F$5,VLOOKUP('Enrollment Form'!$B247,DeclMatrix!$A$8:$B$12,2,FALSE),FALSE))))","v":""},{"$f":"IF($A247=\"\",\"\",IF(VLOOKUP($G247,$H$11:$DO$1000,106,FALSE)=\"\",\"No\",IF(LEFT(VLOOKUP($G247,$H$11:$DO$1000,106,FALSE),3)=\"The\",EN247,VLOOKUP(VLOOKUP($G247,$H$11:$DO$1000,106,FALSE),DeclMatrix!$A$2:$F$5,VLOOKUP('Enrollment Form'!$B247,DeclMatrix!$A$8:$B$12,2,FALSE),FALSE))))","v":""},{"$f":"IF($A247=\"\",\"\",IF(VLOOKUP($G247,$H$11:$DO$1000,109,FALSE)=\"\",\"No\",IF(LEFT(VLOOKUP($G247,$H$11:$DO$1000,109,FALSE),3)=\"The\",EO247,VLOOKUP(VLOOKUP($G247,$H$11:$DO$1000,109,FALSE),DeclMatrix!$A$2:$F$5,VLOOKUP('Enrollment Form'!$B247,DeclMatrix!$A$8:$B$12,2,FALSE),FALSE))))","v":""},{"$f":"IF($A247=\"\",\"\",IF(VLOOKUP($G247,$H$11:$DO$1000,112,FALSE)=\"\",\"No\",IF(LEFT(VLOOKUP($G247,$H$11:$DO$1000,112,FALSE),3)=\"The\",EP247,VLOOKUP(VLOOKUP($G247,$H$11:$DO$1000,112,FALSE),DeclMatrix!$A$2:$F$5,VLOOKUP('Enrollment Form'!$B247,DeclMatrix!$A$8:$B$12,2,FALSE),FALSE))))","v":""},null,null,null,null,null,null,null,null,"",null,"","","","","","","","","","","",""]
["",null,null,null,null,null,"","",null,null,null,null,null,null,null,null,null,null,null,null,null,null,null,null,null,null,"","","","",null,null,"",null,null,null,null,null,null,null,null,null,null,null,null,null,null,null,null,null,null,null,null,null,null,null,null,null,null,null,"","","",null,null,null,null,"","","","",null,null,null,null,null,null,null,null,null,null,null,null,null,null,null,null,null,null,null,null,null,null,null,null,null,null,null,null,null,null,null,null,null,null,null,null,null,null,null,null,null,null,null,null,null,null,null,null,null,null,null,null,"",{"$f":"IF($A248=\"\",\"\",IF(VLOOKUP($G248,$H$11:$DO$1000,103,FALSE)=\"\",\"No\",IF(LEFT(VLOOKUP($G248,$H$11:$DO$1000,103,FALSE),3)=\"The\",EM248,VLOOKUP(VLOOKUP($G248,$H$11:$DO$1000,103,FALSE),DeclMatrix!$A$2:$F$5,VLOOKUP('Enrollment Form'!$B248,DeclMatrix!$A$8:$B$12,2,FALSE),FALSE))))","v":""},{"$f":"IF($A248=\"\",\"\",IF(VLOOKUP($G248,$H$11:$DO$1000,106,FALSE)=\"\",\"No\",IF(LEFT(VLOOKUP($G248,$H$11:$DO$1000,106,FALSE),3)=\"The\",EN248,VLOOKUP(VLOOKUP($G248,$H$11:$DO$1000,106,FALSE),DeclMatrix!$A$2:$F$5,VLOOKUP('Enrollment Form'!$B248,DeclMatrix!$A$8:$B$12,2,FALSE),FALSE))))","v":""},{"$f":"IF($A248=\"\",\"\",IF(VLOOKUP($G248,$H$11:$DO$1000,109,FALSE)=\"\",\"No\",IF(LEFT(VLOOKUP($G248,$H$11:$DO$1000,109,FALSE),3)=\"The\",EO248,VLOOKUP(VLOOKUP($G248,$H$11:$DO$1000,109,FALSE),DeclMatrix!$A$2:$F$5,VLOOKUP('Enrollment Form'!$B248,DeclMatrix!$A$8:$B$12,2,FALSE),FALSE))))","v":""},{"$f":"IF($A248=\"\",\"\",IF(VLOOKUP($G248,$H$11:$DO$1000,112,FALSE)=\"\",\"No\",IF(LEFT(VLOOKUP($G248,$H$11:$DO$1000,112,FALSE),3)=\"The\",EP248,VLOOKUP(VLOOKUP($G248,$H$11:$DO$1000,112,FALSE),DeclMatrix!$A$2:$F$5,VLOOKUP('Enrollment Form'!$B248,DeclMatrix!$A$8:$B$12,2,FALSE),FALSE))))","v":""},null,null,null,null,null,null,null,null,"",null,"","","","","","","","","","","",""]
["",null,null,null,null,null,"","",null,null,null,null,null,null,null,null,null,null,null,null,null,null,null,null,null,null,"","","","",null,null,"",null,null,null,null,null,null,null,null,null,null,null,null,null,null,null,null,null,null,null,null,null,null,null,null,null,null,null,"","","",null,null,null,null,"","","","",null,null,null,null,null,null,null,null,null,null,null,null,null,null,null,null,null,null,null,null,null,null,null,null,null,null,null,null,null,null,null,null,null,null,null,null,null,null,null,null,null,null,null,null,null,null,null,null,null,null,null,null,"",{"$f":"IF($A249=\"\",\"\",IF(VLOOKUP($G249,$H$11:$DO$1000,103,FALSE)=\"\",\"No\",IF(LEFT(VLOOKUP($G249,$H$11:$DO$1000,103,FALSE),3)=\"The\",EM249,VLOOKUP(VLOOKUP($G249,$H$11:$DO$1000,103,FALSE),DeclMatrix!$A$2:$F$5,VLOOKUP('Enrollment Form'!$B249,DeclMatrix!$A$8:$B$12,2,FALSE),FALSE))))","v":""},{"$f":"IF($A249=\"\",\"\",IF(VLOOKUP($G249,$H$11:$DO$1000,106,FALSE)=\"\",\"No\",IF(LEFT(VLOOKUP($G249,$H$11:$DO$1000,106,FALSE),3)=\"The\",EN249,VLOOKUP(VLOOKUP($G249,$H$11:$DO$1000,106,FALSE),DeclMatrix!$A$2:$F$5,VLOOKUP('Enrollment Form'!$B249,DeclMatrix!$A$8:$B$12,2,FALSE),FALSE))))","v":""},{"$f":"IF($A249=\"\",\"\",IF(VLOOKUP($G249,$H$11:$DO$1000,109,FALSE)=\"\",\"No\",IF(LEFT(VLOOKUP($G249,$H$11:$DO$1000,109,FALSE),3)=\"The\",EO249,VLOOKUP(VLOOKUP($G249,$H$11:$DO$1000,109,FALSE),DeclMatrix!$A$2:$F$5,VLOOKUP('Enrollment Form'!$B249,DeclMatrix!$A$8:$B$12,2,FALSE),FALSE))))","v":""},{"$f":"IF($A249=\"\",\"\",IF(VLOOKUP($G249,$H$11:$DO$1000,112,FALSE)=\"\",\"No\",IF(LEFT(VLOOKUP($G249,$H$11:$DO$1000,112,FALSE),3)=\"The\",EP249,VLOOKUP(VLOOKUP($G249,$H$11:$DO$1000,112,FALSE),DeclMatrix!$A$2:$F$5,VLOOKUP('Enrollment Form'!$B249,DeclMatrix!$A$8:$B$12,2,FALSE),FALSE))))","v":""},null,null,null,null,null,null,null,null,"",null,"","","","","","","","","","","",""]
["",null,null,null,null,null,"","",null,null,null,null,null,null,null,null,null,null,null,null,null,null,null,null,null,null,"","","","",null,null,"",null,null,null,null,null,null,null,null,null,null,null,null,null,null,null,null,null,null,null,null,null,null,null,null,null,null,null,"","","",null,null,null,null,"","","","",null,null,null,null,null,null,null,null,null,null,null,null,null,null,null,null,null,null,null,null,null,null,null,null,null,null,null,null,null,null,null,null,null,null,null,null,null,null,null,null,null,null,null,null,null,null,null,null,null,null,null,null,"",{"$f":"IF($A250=\"\",\"\",IF(VLOOKUP($G250,$H$11:$DO$1000,103,FALSE)=\"\",\"No\",IF(LEFT(VLOOKUP($G250,$H$11:$DO$1000,103,FALSE),3)=\"The\",EM250,VLOOKUP(VLOOKUP($G250,$H$11:$DO$1000,103,FALSE),DeclMatrix!$A$2:$F$5,VLOOKUP('Enrollment Form'!$B250,DeclMatrix!$A$8:$B$12,2,FALSE),FALSE))))","v":""},{"$f":"IF($A250=\"\",\"\",IF(VLOOKUP($G250,$H$11:$DO$1000,106,FALSE)=\"\",\"No\",IF(LEFT(VLOOKUP($G250,$H$11:$DO$1000,106,FALSE),3)=\"The\",EN250,VLOOKUP(VLOOKUP($G250,$H$11:$DO$1000,106,FALSE),DeclMatrix!$A$2:$F$5,VLOOKUP('Enrollment Form'!$B250,DeclMatrix!$A$8:$B$12,2,FALSE),FALSE))))","v":""},{"$f":"IF($A250=\"\",\"\",IF(VLOOKUP($G250,$H$11:$DO$1000,109,FALSE)=\"\",\"No\",IF(LEFT(VLOOKUP($G250,$H$11:$DO$1000,109,FALSE),3)=\"The\",EO250,VLOOKUP(VLOOKUP($G250,$H$11:$DO$1000,109,FALSE),DeclMatrix!$A$2:$F$5,VLOOKUP('Enrollment Form'!$B250,DeclMatrix!$A$8:$B$12,2,FALSE),FALSE))))","v":""},{"$f":"IF($A250=\"\",\"\",IF(VLOOKUP($G250,$H$11:$DO$1000,112,FALSE)=\"\",\"No\",IF(LEFT(VLOOKUP($G250,$H$11:$DO$1000,112,FALSE),3)=\"The\",EP250,VLOOKUP(VLOOKUP($G250,$H$11:$DO$1000,112,FALSE),DeclMatrix!$A$2:$F$5,VLOOKUP('Enrollment Form'!$B250,DeclMatrix!$A$8:$B$12,2,FALSE),FALSE))))","v":""},null,null,null,null,null,null,null,null,"",null,"","","","","","","","","","","",""]
["",null,null,null,null,null,"","",null,null,null,null,null,null,null,null,null,null,null,null,null,null,null,null,null,null,"","","","",null,null,"",null,null,null,null,null,null,null,null,null,null,null,null,null,null,null,null,null,null,null,null,null,null,null,null,null,null,null,"","","",null,null,null,null,"","","","",null,null,null,null,null,null,null,null,null,null,null,null,null,null,null,null,null,null,null,null,null,null,null,null,null,null,null,null,null,null,null,null,null,null,null,null,null,null,null,null,null,null,null,null,null,null,null,null,null,null,null,null,"",{"$f":"IF($A252=\"\",\"\",IF(VLOOKUP($G252,$H$11:$DO$1000,103,FALSE)=\"\",\"No\",IF(LEFT(VLOOKUP($G252,$H$11:$DO$1000,103,FALSE),3)=\"The\",EM252,VLOOKUP(VLOOKUP($G252,$H$11:$DO$1000,103,FALSE),DeclMatrix!$A$2:$F$5,VLOOKUP('Enrollment Form'!$B252,DeclMatrix!$A$8:$B$12,2,FALSE),FALSE))))","v":""},{"$f":"IF($A252=\"\",\"\",IF(VLOOKUP($G252,$H$11:$DO$1000,106,FALSE)=\"\",\"No\",IF(LEFT(VLOOKUP($G252,$H$11:$DO$1000,106,FALSE),3)=\"The\",EN252,VLOOKUP(VLOOKUP($G252,$H$11:$DO$1000,106,FALSE),DeclMatrix!$A$2:$F$5,VLOOKUP('Enrollment Form'!$B252,DeclMatrix!$A$8:$B$12,2,FALSE),FALSE))))","v":""},{"$f":"IF($A252=\"\",\"\",IF(VLOOKUP($G252,$H$11:$DO$1000,109,FALSE)=\"\",\"No\",IF(LEFT(VLOOKUP($G252,$H$11:$DO$1000,109,FALSE),3)=\"The\",EO252,VLOOKUP(VLOOKUP($G252,$H$11:$DO$1000,109,FALSE),DeclMatrix!$A$2:$F$5,VLOOKUP('Enrollment Form'!$B252,DeclMatrix!$A$8:$B$12,2,FALSE),FALSE))))","v":""},{"$f":"IF($A252=\"\",\"\",IF(VLOOKUP($G252,$H$11:$DO$1000,112,FALSE)=\"\",\"No\",IF(LEFT(VLOOKUP($G252,$H$11:$DO$1000,112,FALSE),3)=\"The\",EP252,VLOOKUP(VLOOKUP($G252,$H$11:$DO$1000,112,FALSE),DeclMatrix!$A$2:$F$5,VLOOKUP('Enrollment Form'!$B252,DeclMatrix!$A$8:$B$12,2,FALSE),FALSE))))","v":""},null,null,null,null,null,null,null,null,"",null,"","","","","","","","","","","",""]
["",null,null,null,null,null,"","",null,null,null,null,null,null,null,null,null,null,null,null,null,null,null,null,null,null,"","","","",null,null,"",null,null,null,null,null,null,null,null,null,null,null,null,null,null,null,null,null,null,null,null,null,null,null,null,null,null,null,"","","",null,null,null,null,"","","","",null,null,null,null,null,null,null,null,null,null,null,null,null,null,null,null,null,null,null,null,null,null,null,null,null,null,null,null,null,null,null,null,null,null,null,null,null,null,null,null,null,null,null,null,null,null,null,null,null,null,null,null,"",{"$f":"IF($A254=\"\",\"\",IF(VLOOKUP($G254,$H$11:$DO$1000,103,FALSE)=\"\",\"No\",IF(LEFT(VLOOKUP($G254,$H$11:$DO$1000,103,FALSE),3)=\"The\",EM254,VLOOKUP(VLOOKUP($G254,$H$11:$DO$1000,103,FALSE),DeclMatrix!$A$2:$F$5,VLOOKUP('Enrollment Form'!$B254,DeclMatrix!$A$8:$B$12,2,FALSE),FALSE))))","v":""},{"$f":"IF($A254=\"\",\"\",IF(VLOOKUP($G254,$H$11:$DO$1000,106,FALSE)=\"\",\"No\",IF(LEFT(VLOOKUP($G254,$H$11:$DO$1000,106,FALSE),3)=\"The\",EN254,VLOOKUP(VLOOKUP($G254,$H$11:$DO$1000,106,FALSE),DeclMatrix!$A$2:$F$5,VLOOKUP('Enrollment Form'!$B254,DeclMatrix!$A$8:$B$12,2,FALSE),FALSE))))","v":""},{"$f":"IF($A254=\"\",\"\",IF(VLOOKUP($G254,$H$11:$DO$1000,109,FALSE)=\"\",\"No\",IF(LEFT(VLOOKUP($G254,$H$11:$DO$1000,109,FALSE),3)=\"The\",EO254,VLOOKUP(VLOOKUP($G254,$H$11:$DO$1000,109,FALSE),DeclMatrix!$A$2:$F$5,VLOOKUP('Enrollment Form'!$B254,DeclMatrix!$A$8:$B$12,2,FALSE),FALSE))))","v":""},{"$f":"IF($A254=\"\",\"\",IF(VLOOKUP($G254,$H$11:$DO$1000,112,FALSE)=\"\",\"No\",IF(LEFT(VLOOKUP($G254,$H$11:$DO$1000,112,FALSE),3)=\"The\",EP254,VLOOKUP(VLOOKUP($G254,$H$11:$DO$1000,112,FALSE),DeclMatrix!$A$2:$F$5,VLOOKUP('Enrollment Form'!$B254,DeclMatrix!$A$8:$B$12,2,FALSE),FALSE))))","v":""},null,null,null,null,null,null,null,null,"",null,"","","","","","","","","","","",""]
["",null,null,null,null,null,"","",null,null,null,null,null,null,null,null,null,null,null,null,null,null,null,null,null,null,"","","","",null,null,"",null,null,null,null,null,null,null,null,null,null,null,null,null,null,null,null,null,null,null,null,null,null,null,null,null,null,null,"","","",null,null,null,null,"","","","",null,null,null,null,null,null,null,null,null,null,null,null,null,null,null,null,null,null,null,null,null,null,null,null,null,null,null,null,null,null,null,null,null,null,null,null,null,null,null,null,null,null,null,null,null,null,null,null,null,null,null,null,"",{"$f":"IF($A257=\"\",\"\",IF(VLOOKUP($G257,$H$11:$DO$1000,103,FALSE)=\"\",\"No\",IF(LEFT(VLOOKUP($G257,$H$11:$DO$1000,103,FALSE),3)=\"The\",EM257,VLOOKUP(VLOOKUP($G257,$H$11:$DO$1000,103,FALSE),DeclMatrix!$A$2:$F$5,VLOOKUP('Enrollment Form'!$B257,DeclMatrix!$A$8:$B$12,2,FALSE),FALSE))))","v":""},{"$f":"IF($A257=\"\",\"\",IF(VLOOKUP($G257,$H$11:$DO$1000,106,FALSE)=\"\",\"No\",IF(LEFT(VLOOKUP($G257,$H$11:$DO$1000,106,FALSE),3)=\"The\",EN257,VLOOKUP(VLOOKUP($G257,$H$11:$DO$1000,106,FALSE),DeclMatrix!$A$2:$F$5,VLOOKUP('Enrollment Form'!$B257,DeclMatrix!$A$8:$B$12,2,FALSE),FALSE))))","v":""},{"$f":"IF($A257=\"\",\"\",IF(VLOOKUP($G257,$H$11:$DO$1000,109,FALSE)=\"\",\"No\",IF(LEFT(VLOOKUP($G257,$H$11:$DO$1000,109,FALSE),3)=\"The\",EO257,VLOOKUP(VLOOKUP($G257,$H$11:$DO$1000,109,FALSE),DeclMatrix!$A$2:$F$5,VLOOKUP('Enrollment Form'!$B257,DeclMatrix!$A$8:$B$12,2,FALSE),FALSE))))","v":""},{"$f":"IF($A257=\"\",\"\",IF(VLOOKUP($G257,$H$11:$DO$1000,112,FALSE)=\"\",\"No\",IF(LEFT(VLOOKUP($G257,$H$11:$DO$1000,112,FALSE),3)=\"The\",EP257,VLOOKUP(VLOOKUP($G257,$H$11:$DO$1000,112,FALSE),DeclMatrix!$A$2:$F$5,VLOOKUP('Enrollment Form'!$B257,DeclMatrix!$A$8:$B$12,2,FALSE),FALSE))))","v":""},null,null,null,null,null,null,null,null,"",null,"","","","","","","","","","","",""]
["",null,null,null,null,null,"","",null,null,null,null,null,null,null,null,null,null,null,null,null,null,null,null,null,null,"","","","",null,null,"",null,null,null,null,null,null,null,null,null,null,null,null,null,null,null,null,null,null,null,null,null,null,null,null,null,null,null,"","","",null,null,null,null,"","","","",null,null,null,null,null,null,null,null,null,null,null,null,null,null,null,null,null,null,null,null,null,null,null,null,null,null,null,null,null,null,null,null,null,null,null,null,null,null,null,null,null,null,null,null,null,null,null,null,null,null,null,null,"",{"$f":"IF($A261=\"\",\"\",IF(VLOOKUP($G261,$H$11:$DO$1000,103,FALSE)=\"\",\"No\",IF(LEFT(VLOOKUP($G261,$H$11:$DO$1000,103,FALSE),3)=\"The\",EM261,VLOOKUP(VLOOKUP($G261,$H$11:$DO$1000,103,FALSE),DeclMatrix!$A$2:$F$5,VLOOKUP('Enrollment Form'!$B261,DeclMatrix!$A$8:$B$12,2,FALSE),FALSE))))","v":""},{"$f":"IF($A261=\"\",\"\",IF(VLOOKUP($G261,$H$11:$DO$1000,106,FALSE)=\"\",\"No\",IF(LEFT(VLOOKUP($G261,$H$11:$DO$1000,106,FALSE),3)=\"The\",EN261,VLOOKUP(VLOOKUP($G261,$H$11:$DO$1000,106,FALSE),DeclMatrix!$A$2:$F$5,VLOOKUP('Enrollment Form'!$B261,DeclMatrix!$A$8:$B$12,2,FALSE),FALSE))))","v":""},{"$f":"IF($A261=\"\",\"\",IF(VLOOKUP($G261,$H$11:$DO$1000,109,FALSE)=\"\",\"No\",IF(LEFT(VLOOKUP($G261,$H$11:$DO$1000,109,FALSE),3)=\"The\",EO261,VLOOKUP(VLOOKUP($G261,$H$11:$DO$1000,109,FALSE),DeclMatrix!$A$2:$F$5,VLOOKUP('Enrollment Form'!$B261,DeclMatrix!$A$8:$B$12,2,FALSE),FALSE))))","v":""},{"$f":"IF($A261=\"\",\"\",IF(VLOOKUP($G261,$H$11:$DO$1000,112,FALSE)=\"\",\"No\",IF(LEFT(VLOOKUP($G261,$H$11:$DO$1000,112,FALSE),3)=\"The\",EP261,VLOOKUP(VLOOKUP($G261,$H$11:$DO$1000,112,FALSE),DeclMatrix!$A$2:$F$5,VLOOKUP('Enrollment Form'!$B261,DeclMatrix!$A$8:$B$12,2,FALSE),FALSE))))","v":""},null,null,null,null,null,null,null,null,"",null,"","","","","","","","","","","",""]
["",null,null,null,null,null,"","",null,null,null,null,null,null,null,null,null,null,null,null,null,null,null,null,null,null,"","","","",null,null,"",null,null,null,null,null,null,null,null,null,null,null,null,null,null,null,null,null,null,null,null,null,null,null,null,null,null,null,"","","",null,null,null,null,"","","","",null,null,null,null,null,null,null,null,null,null,null,null,null,null,null,null,null,null,null,null,null,null,null,null,null,null,null,null,null,null,null,null,null,null,null,null,null,null,null,null,null,null,null,null,null,null,null,null,null,null,null,null,"",{"$f":"IF($A263=\"\",\"\",IF(VLOOKUP($G263,$H$11:$DO$1000,103,FALSE)=\"\",\"No\",IF(LEFT(VLOOKUP($G263,$H$11:$DO$1000,103,FALSE),3)=\"The\",EM263,VLOOKUP(VLOOKUP($G263,$H$11:$DO$1000,103,FALSE),DeclMatrix!$A$2:$F$5,VLOOKUP('Enrollment Form'!$B263,DeclMatrix!$A$8:$B$12,2,FALSE),FALSE))))","v":""},{"$f":"IF($A263=\"\",\"\",IF(VLOOKUP($G263,$H$11:$DO$1000,106,FALSE)=\"\",\"No\",IF(LEFT(VLOOKUP($G263,$H$11:$DO$1000,106,FALSE),3)=\"The\",EN263,VLOOKUP(VLOOKUP($G263,$H$11:$DO$1000,106,FALSE),DeclMatrix!$A$2:$F$5,VLOOKUP('Enrollment Form'!$B263,DeclMatrix!$A$8:$B$12,2,FALSE),FALSE))))","v":""},{"$f":"IF($A263=\"\",\"\",IF(VLOOKUP($G263,$H$11:$DO$1000,109,FALSE)=\"\",\"No\",IF(LEFT(VLOOKUP($G263,$H$11:$DO$1000,109,FALSE),3)=\"The\",EO263,VLOOKUP(VLOOKUP($G263,$H$11:$DO$1000,109,FALSE),DeclMatrix!$A$2:$F$5,VLOOKUP('Enrollment Form'!$B263,DeclMatrix!$A$8:$B$12,2,FALSE),FALSE))))","v":""},{"$f":"IF($A263=\"\",\"\",IF(VLOOKUP($G263,$H$11:$DO$1000,112,FALSE)=\"\",\"No\",IF(LEFT(VLOOKUP($G263,$H$11:$DO$1000,112,FALSE),3)=\"The\",EP263,VLOOKUP(VLOOKUP($G263,$H$11:$DO$1000,112,FALSE),DeclMatrix!$A$2:$F$5,VLOOKUP('Enrollment Form'!$B263,DeclMatrix!$A$8:$B$12,2,FALSE),FALSE))))","v":""},null,null,null,null,null,null,null,null,"",null,"","","","","","","","","","","",""]
["",null,null,null,null,null,"","",null,null,null,null,null,null,null,null,null,null,null,null,null,null,null,null,null,null,"","","","",null,null,"",null,null,null,null,null,null,null,null,null,null,null,null,null,null,null,null,null,null,null,null,null,null,null,null,null,null,null,"","","",null,null,null,null,"","","","",null,null,null,null,null,null,null,null,null,null,null,null,null,null,null,null,null,null,null,null,null,null,null,null,null,null,null,null,null,null,null,null,null,null,null,null,null,null,null,null,null,null,null,null,null,null,null,null,null,null,null,null,"",{"$f":"IF($A266=\"\",\"\",IF(VLOOKUP($G266,$H$11:$DO$1000,103,FALSE)=\"\",\"No\",IF(LEFT(VLOOKUP($G266,$H$11:$DO$1000,103,FALSE),3)=\"The\",EM266,VLOOKUP(VLOOKUP($G266,$H$11:$DO$1000,103,FALSE),DeclMatrix!$A$2:$F$5,VLOOKUP('Enrollment Form'!$B266,DeclMatrix!$A$8:$B$12,2,FALSE),FALSE))))","v":""},{"$f":"IF($A266=\"\",\"\",IF(VLOOKUP($G266,$H$11:$DO$1000,106,FALSE)=\"\",\"No\",IF(LEFT(VLOOKUP($G266,$H$11:$DO$1000,106,FALSE),3)=\"The\",EN266,VLOOKUP(VLOOKUP($G266,$H$11:$DO$1000,106,FALSE),DeclMatrix!$A$2:$F$5,VLOOKUP('Enrollment Form'!$B266,DeclMatrix!$A$8:$B$12,2,FALSE),FALSE))))","v":""},{"$f":"IF($A266=\"\",\"\",IF(VLOOKUP($G266,$H$11:$DO$1000,109,FALSE)=\"\",\"No\",IF(LEFT(VLOOKUP($G266,$H$11:$DO$1000,109,FALSE),3)=\"The\",EO266,VLOOKUP(VLOOKUP($G266,$H$11:$DO$1000,109,FALSE),DeclMatrix!$A$2:$F$5,VLOOKUP('Enrollment Form'!$B266,DeclMatrix!$A$8:$B$12,2,FALSE),FALSE))))","v":""},{"$f":"IF($A266=\"\",\"\",IF(VLOOKUP($G266,$H$11:$DO$1000,112,FALSE)=\"\",\"No\",IF(LEFT(VLOOKUP($G266,$H$11:$DO$1000,112,FALSE),3)=\"The\",EP266,VLOOKUP(VLOOKUP($G266,$H$11:$DO$1000,112,FALSE),DeclMatrix!$A$2:$F$5,VLOOKUP('Enrollment Form'!$B266,DeclMatrix!$A$8:$B$12,2,FALSE),FALSE))))","v":""},null,null,null,null,null,null,null,null,"",null,"","","","","","","","","","","",""]
[{"$f":"IF(LEN($B267)>0,$C$2,\"\")","v":""},null,null,null,null,null,"","",null,null,null,null,null,null,null,null,null,null,null,null,null,null,null,null,null,null,"","","","",null,null,"",null,null,null,null,null,null,null,null,null,null,null,null,null,null,null,null,null,null,null,null,null,null,null,null,null,null,null,"","","",null,null,null,null,{"$f":"IF(AND($B267<>\"Subscriber\",$BO267=\"Yes\"),VLOOKUP($G267,$H$11:$Y$1000,15,FALSE),\"\")","v":""},{"$f":"IF(AND($B267<>\"Subscriber\",$BO267=\"Yes\"),VLOOKUP($G267,$H$11:$Y$1000,16,FALSE),\"\")","v":""},{"$f":"IF(AND($B267<>\"Subscriber\",$BO267=\"Yes\"),VLOOKUP($G267,$H$11:$Y$1000,17,FALSE),\"\")","v":""},{"$f":"IF(AND($B267<>\"Subscriber\",$BO267=\"Yes\"),VLOOKUP($G267,$H$11:$Y$1000,18,FALSE),\"\")","v":""},null,null,null,null,null,null,null,null,null,null,null,null,null,null,null,null,null,null,null,null,null,null,null,null,null,null,null,null,null,null,null,null,null,null,null,null,null,null,null,null,null,null,null,null,null,null,null,null,null,null,null,null,{"$f":"IF($A267=\"\",\"\",IF($B267=\"Subscriber\",$AG267,VLOOKUP($G267,$H$11:$AG$1000,26,FALSE)))","v":""},{"$f":"IF($A267=\"\",\"\",IF(VLOOKUP($G267,$H$11:$DO$1000,103,FALSE)=\"\",\"No\",IF(LEFT(VLOOKUP($G267,$H$11:$DO$1000,103,FALSE),3)=\"The\",EM267,VLOOKUP(VLOOKUP($G267,$H$11:$DO$1000,103,FALSE),DeclMatrix!$A$2:$F$5,VLOOKUP('Enrollment Form'!$B267,DeclMatrix!$A$8:$B$12,2,FALSE),FALSE))))","v":""},{"$f":"IF($A267=\"\",\"\",IF(VLOOKUP($G267,$H$11:$DO$1000,106,FALSE)=\"\",\"No\",IF(LEFT(VLOOKUP($G267,$H$11:$DO$1000,106,FALSE),3)=\"The\",EN267,VLOOKUP(VLOOKUP($G267,$H$11:$DO$1000,106,FALSE),DeclMatrix!$A$2:$F$5,VLOOKUP('Enrollment Form'!$B267,DeclMatrix!$A$8:$B$12,2,FALSE),FALSE))))","v":""},{"$f":"IF($A267=\"\",\"\",IF(VLOOKUP($G267,$H$11:$DO$1000,109,FALSE)=\"\",\"No\",IF(LEFT(VLOOKUP($G267,$H$11:$DO$1000,109,FALSE),3)=\"The\",EO267,VLOOKUP(VLOOKUP($G267,$H$11:$DO$1000,109,FALSE),DeclMatrix!$A$2:$F$5,VLOOKUP('Enrollment Form'!$B267,DeclMatrix!$A$8:$B$12,2,FALSE),FALSE))))","v":""},{"$f":"IF($A267=\"\",\"\",IF(VLOOKUP($G267,$H$11:$DO$1000,112,FALSE)=\"\",\"No\",IF(LEFT(VLOOKUP($G267,$H$11:$DO$1000,112,FALSE),3)=\"The\",EP267,VLOOKUP(VLOOKUP($G267,$H$11:$DO$1000,112,FALSE),DeclMatrix!$A$2:$F$5,VLOOKUP('Enrollment Form'!$B267,DeclMatrix!$A$8:$B$12,2,FALSE),FALSE))))","v":""},null,null,null,null,null,null,null,null,{"$f":"IF(A267<>\"\",\"1X\",\"\")","v":""},null,{"$f":"$B267&$G267&$J267","v":""},{"$f":"$B267&$G267&$L267","v":""},{"$f":"$B267&$G267&$N267","v":""},{"$f":"$B267&$G267&$O267","v":""},{"$f":"IF($A267=\"\",\"\",IF($B267=\"Subscriber\",\"No\",IF(OR($DF267=\"\",$DF267=\"No\"),\"No\",\"Yes\")))","v":""},{"$f":"IF($A267=\"\",\"\",IF($B267=\"Subscriber\",\"No\",IF(OR($DI267=\"\",$DI267=\"No\"),\"No\",\"Yes\")))","v":""},{"$f":"IF($A267=\"\",\"\",IF($B267=\"Subscriber\",\"No\",IF(OR($DL267=\"\",$DL267=\"No\"),\"No\",\"Yes\")))","v":""},{"$f":"IF($A267=\"\",\"\",IF($B267=\"Subscriber\",\"No\",IF(OR($DO267=\"\",$DO267=\"No\"),\"No\",\"Yes\")))","v":""},{"$f":"IF($A267=\"\",\"\",IF(AND($B267=\"Subscriber\",$I267<>\"Waive\",$I267<>\"\"),\"Yes\",IF(AND($B267<>\"Subscriber\",$BM267=\"Yes\"),VLOOKUP($G267,$H$11:$ET$1000,140,FALSE),IF(AND($C267=\"Enroll\",VLOOKUP($G268,$H$11:$ET$1000,103,FALSE)<>\"\"),VLOOKUP($DU267,$DV$2:$DW$3,2,FALSE),\"No\"))))","v":""},{"$f":"IF($A267=\"\",\"\",IF(AND($B267=\"Subscriber\",$K267<>\"Waive\",$K267<>\"\"),\"Yes\",IF(AND($B267<>\"Subscriber\",$BM267=\"Yes\"),VLOOKUP($G267,$H$11:$ET$1000,141,FALSE),IF(AND($C267=\"Enroll\",VLOOKUP($G268,$H$11:$ET$1000,106,FALSE)<>\"\"),VLOOKUP($DV267,$DV$2:$DW$3,2,FALSE),\"No\"))))","v":""},{"$f":"IF($A267=\"\",\"\",IF(AND($B267=\"Subscriber\",$M267<>\"Waive\",$M267<>\"\"),\"Yes\",IF(AND($B267<>\"Subscriber\",$BM267=\"Yes\"),VLOOKUP($G267,$H$11:$ET$1000,142,FALSE),IF(AND($C267=\"Enroll\",VLOOKUP($G268,$H$11:$ET$1000,109,FALSE)<>\"\"),VLOOKUP($DW267,$DV$2:$DW$3,2,FALSE),\"No\"))))","v":""},{"$f":"IF($A267=\"\",\"\",IF(AND($B267=\"Subscriber\",$O267<>\"Waive\",$O267<>\"\"),\"Yes\",IF(AND($B267<>\"Subscriber\",$BM267=\"Yes\"),VLOOKUP($G267,$H$11:$ET$1000,143,FALSE),IF(AND($C267=\"Enroll\",VLOOKUP($G268,$H$11:$ET$1000,112,FALSE)<>\"\"),VLOOKUP($DX267,$DV$2:$DW$3,2,FALSE),\"No\"))))","v":""}]
["",null,null,null,null,null,"","",null,null,null,null,null,null,null,null,null,null,null,null,null,null,null,null,null,null,"","","","",null,null,"",null,null,null,null,null,null,null,null,null,null,null,null,null,null,null,null,null,null,null,null,null,null,null,null,null,null,null,"","","",null,null,null,null,"","","","",null,null,null,null,null,null,null,null,null,null,null,null,null,null,null,null,null,null,null,null,null,null,null,null,null,null,null,null,null,null,null,null,null,null,null,null,null,null,null,null,null,null,null,null,null,null,null,null,null,null,null,null,"",{"$f":"IF($A270=\"\",\"\",IF(VLOOKUP($G270,$H$11:$DO$1000,103,FALSE)=\"\",\"No\",IF(LEFT(VLOOKUP($G270,$H$11:$DO$1000,103,FALSE),3)=\"The\",EM270,VLOOKUP(VLOOKUP($G270,$H$11:$DO$1000,103,FALSE),DeclMatrix!$A$2:$F$5,VLOOKUP('Enrollment Form'!$B270,DeclMatrix!$A$8:$B$12,2,FALSE),FALSE))))","v":""},{"$f":"IF($A270=\"\",\"\",IF(VLOOKUP($G270,$H$11:$DO$1000,106,FALSE)=\"\",\"No\",IF(LEFT(VLOOKUP($G270,$H$11:$DO$1000,106,FALSE),3)=\"The\",EN270,VLOOKUP(VLOOKUP($G270,$H$11:$DO$1000,106,FALSE),DeclMatrix!$A$2:$F$5,VLOOKUP('Enrollment Form'!$B270,DeclMatrix!$A$8:$B$12,2,FALSE),FALSE))))","v":""},{"$f":"IF($A270=\"\",\"\",IF(VLOOKUP($G270,$H$11:$DO$1000,109,FALSE)=\"\",\"No\",IF(LEFT(VLOOKUP($G270,$H$11:$DO$1000,109,FALSE),3)=\"The\",EO270,VLOOKUP(VLOOKUP($G270,$H$11:$DO$1000,109,FALSE),DeclMatrix!$A$2:$F$5,VLOOKUP('Enrollment Form'!$B270,DeclMatrix!$A$8:$B$12,2,FALSE),FALSE))))","v":""},{"$f":"IF($A270=\"\",\"\",IF(VLOOKUP($G270,$H$11:$DO$1000,112,FALSE)=\"\",\"No\",IF(LEFT(VLOOKUP($G270,$H$11:$DO$1000,112,FALSE),3)=\"The\",EP270,VLOOKUP(VLOOKUP($G270,$H$11:$DO$1000,112,FALSE),DeclMatrix!$A$2:$F$5,VLOOKUP('Enrollment Form'!$B270,DeclMatrix!$A$8:$B$12,2,FALSE),FALSE))))","v":""},null,null,null,null,null,null,null,null,"",null,"","","","","","","","","","","",""]
["",null,null,null,null,null,"","",null,null,null,null,null,null,null,null,null,null,null,null,null,null,null,null,null,null,"","","","",null,null,"",null,null,null,null,null,null,null,null,null,null,null,null,null,null,null,null,null,null,null,null,null,null,null,null,null,null,null,"","","",null,null,null,null,"","","","",null,null,null,null,null,null,null,null,null,null,null,null,null,null,null,null,null,null,null,null,null,null,null,null,null,null,null,null,null,null,null,null,null,null,null,null,null,null,null,null,null,null,null,null,null,null,null,null,null,null,null,null,"",{"$f":"IF($A274=\"\",\"\",IF(VLOOKUP($G274,$H$11:$DO$1000,103,FALSE)=\"\",\"No\",IF(LEFT(VLOOKUP($G274,$H$11:$DO$1000,103,FALSE),3)=\"The\",EM274,VLOOKUP(VLOOKUP($G274,$H$11:$DO$1000,103,FALSE),DeclMatrix!$A$2:$F$5,VLOOKUP('Enrollment Form'!$B274,DeclMatrix!$A$8:$B$12,2,FALSE),FALSE))))","v":""},{"$f":"IF($A274=\"\",\"\",IF(VLOOKUP($G274,$H$11:$DO$1000,106,FALSE)=\"\",\"No\",IF(LEFT(VLOOKUP($G274,$H$11:$DO$1000,106,FALSE),3)=\"The\",EN274,VLOOKUP(VLOOKUP($G274,$H$11:$DO$1000,106,FALSE),DeclMatrix!$A$2:$F$5,VLOOKUP('Enrollment Form'!$B274,DeclMatrix!$A$8:$B$12,2,FALSE),FALSE))))","v":""},{"$f":"IF($A274=\"\",\"\",IF(VLOOKUP($G274,$H$11:$DO$1000,109,FALSE)=\"\",\"No\",IF(LEFT(VLOOKUP($G274,$H$11:$DO$1000,109,FALSE),3)=\"The\",EO274,VLOOKUP(VLOOKUP($G274,$H$11:$DO$1000,109,FALSE),DeclMatrix!$A$2:$F$5,VLOOKUP('Enrollment Form'!$B274,DeclMatrix!$A$8:$B$12,2,FALSE),FALSE))))","v":""},{"$f":"IF($A274=\"\",\"\",IF(VLOOKUP($G274,$H$11:$DO$1000,112,FALSE)=\"\",\"No\",IF(LEFT(VLOOKUP($G274,$H$11:$DO$1000,112,FALSE),3)=\"The\",EP274,VLOOKUP(VLOOKUP($G274,$H$11:$DO$1000,112,FALSE),DeclMatrix!$A$2:$F$5,VLOOKUP('Enrollment Form'!$B274,DeclMatrix!$A$8:$B$12,2,FALSE),FALSE))))","v":""},null,null,null,null,null,null,null,null,"",null,"","","","","","","","","","","",""]
["",null,null,null,null,null,"","",null,null,null,null,null,null,null,null,null,null,null,null,null,null,null,null,null,null,"","","","",null,null,"",null,null,null,null,null,null,null,null,null,null,null,null,null,null,null,null,null,null,null,null,null,null,null,null,null,null,null,"","","",null,null,null,null,"","","","",null,null,null,null,null,null,null,null,null,null,null,null,null,null,null,null,null,null,null,null,null,null,null,null,null,null,null,null,null,null,null,null,null,null,null,null,null,null,null,null,null,null,null,null,null,null,null,null,null,null,null,null,"",{"$f":"IF($A276=\"\",\"\",IF(VLOOKUP($G276,$H$11:$DO$1000,103,FALSE)=\"\",\"No\",IF(LEFT(VLOOKUP($G276,$H$11:$DO$1000,103,FALSE),3)=\"The\",EM276,VLOOKUP(VLOOKUP($G276,$H$11:$DO$1000,103,FALSE),DeclMatrix!$A$2:$F$5,VLOOKUP('Enrollment Form'!$B276,DeclMatrix!$A$8:$B$12,2,FALSE),FALSE))))","v":""},{"$f":"IF($A276=\"\",\"\",IF(VLOOKUP($G276,$H$11:$DO$1000,106,FALSE)=\"\",\"No\",IF(LEFT(VLOOKUP($G276,$H$11:$DO$1000,106,FALSE),3)=\"The\",EN276,VLOOKUP(VLOOKUP($G276,$H$11:$DO$1000,106,FALSE),DeclMatrix!$A$2:$F$5,VLOOKUP('Enrollment Form'!$B276,DeclMatrix!$A$8:$B$12,2,FALSE),FALSE))))","v":""},{"$f":"IF($A276=\"\",\"\",IF(VLOOKUP($G276,$H$11:$DO$1000,109,FALSE)=\"\",\"No\",IF(LEFT(VLOOKUP($G276,$H$11:$DO$1000,109,FALSE),3)=\"The\",EO276,VLOOKUP(VLOOKUP($G276,$H$11:$DO$1000,109,FALSE),DeclMatrix!$A$2:$F$5,VLOOKUP('Enrollment Form'!$B276,DeclMatrix!$A$8:$B$12,2,FALSE),FALSE))))","v":""},{"$f":"IF($A276=\"\",\"\",IF(VLOOKUP($G276,$H$11:$DO$1000,112,FALSE)=\"\",\"No\",IF(LEFT(VLOOKUP($G276,$H$11:$DO$1000,112,FALSE),3)=\"The\",EP276,VLOOKUP(VLOOKUP($G276,$H$11:$DO$1000,112,FALSE),DeclMatrix!$A$2:$F$5,VLOOKUP('Enrollment Form'!$B276,DeclMatrix!$A$8:$B$12,2,FALSE),FALSE))))","v":""},null,null,null,null,null,null,null,null,"",null,"","","","","","","","","","","",""]
["",null,null,null,null,null,"","",null,null,null,null,null,null,null,null,null,null,null,null,null,null,null,null,null,null,"","","","",null,null,"",null,null,null,null,null,null,null,null,null,null,null,null,null,null,null,null,null,null,null,null,null,null,null,null,null,null,null,"","","",null,null,null,null,"","","","",null,null,null,null,null,null,null,null,null,null,null,null,null,null,null,null,null,null,null,null,null,null,null,null,null,null,null,null,null,null,null,null,null,null,null,null,null,null,null,null,null,null,null,null,null,null,null,null,null,null,null,null,"",{"$f":"IF($A279=\"\",\"\",IF(VLOOKUP($G279,$H$11:$DO$1000,103,FALSE)=\"\",\"No\",IF(LEFT(VLOOKUP($G279,$H$11:$DO$1000,103,FALSE),3)=\"The\",EM279,VLOOKUP(VLOOKUP($G279,$H$11:$DO$1000,103,FALSE),DeclMatrix!$A$2:$F$5,VLOOKUP('Enrollment Form'!$B279,DeclMatrix!$A$8:$B$12,2,FALSE),FALSE))))","v":""},{"$f":"IF($A279=\"\",\"\",IF(VLOOKUP($G279,$H$11:$DO$1000,106,FALSE)=\"\",\"No\",IF(LEFT(VLOOKUP($G279,$H$11:$DO$1000,106,FALSE),3)=\"The\",EN279,VLOOKUP(VLOOKUP($G279,$H$11:$DO$1000,106,FALSE),DeclMatrix!$A$2:$F$5,VLOOKUP('Enrollment Form'!$B279,DeclMatrix!$A$8:$B$12,2,FALSE),FALSE))))","v":""},{"$f":"IF($A279=\"\",\"\",IF(VLOOKUP($G279,$H$11:$DO$1000,109,FALSE)=\"\",\"No\",IF(LEFT(VLOOKUP($G279,$H$11:$DO$1000,109,FALSE),3)=\"The\",EO279,VLOOKUP(VLOOKUP($G279,$H$11:$DO$1000,109,FALSE),DeclMatrix!$A$2:$F$5,VLOOKUP('Enrollment Form'!$B279,DeclMatrix!$A$8:$B$12,2,FALSE),FALSE))))","v":""},{"$f":"IF($A279=\"\",\"\",IF(VLOOKUP($G279,$H$11:$DO$1000,112,FALSE)=\"\",\"No\",IF(LEFT(VLOOKUP($G279,$H$11:$DO$1000,112,FALSE),3)=\"The\",EP279,VLOOKUP(VLOOKUP($G279,$H$11:$DO$1000,112,FALSE),DeclMatrix!$A$2:$F$5,VLOOKUP('Enrollment Form'!$B279,DeclMatrix!$A$8:$B$12,2,FALSE),FALSE))))","v":""},null,null,null,null,null,null,null,null,"",null,"","","","","","","","","","","",""]
["",null,null,null,null,null,"","",null,null,null,null,null,null,null,null,null,null,null,null,null,null,null,null,null,null,"","","","",null,null,"",null,null,null,null,null,null,null,null,null,null,null,null,null,null,null,null,null,null,null,null,null,null,null,null,null,null,null,"","","",null,null,null,null,"","","","",null,null,null,null,null,null,null,null,null,null,null,null,null,null,null,null,null,null,null,null,null,null,null,null,null,null,null,null,null,null,null,null,null,null,null,null,null,null,null,null,null,null,null,null,null,null,null,null,null,null,null,null,"",{"$f":"IF($A283=\"\",\"\",IF(VLOOKUP($G283,$H$11:$DO$1000,103,FALSE)=\"\",\"No\",IF(LEFT(VLOOKUP($G283,$H$11:$DO$1000,103,FALSE),3)=\"The\",EM283,VLOOKUP(VLOOKUP($G283,$H$11:$DO$1000,103,FALSE),DeclMatrix!$A$2:$F$5,VLOOKUP('Enrollment Form'!$B283,DeclMatrix!$A$8:$B$12,2,FALSE),FALSE))))","v":""},{"$f":"IF($A283=\"\",\"\",IF(VLOOKUP($G283,$H$11:$DO$1000,106,FALSE)=\"\",\"No\",IF(LEFT(VLOOKUP($G283,$H$11:$DO$1000,106,FALSE),3)=\"The\",EN283,VLOOKUP(VLOOKUP($G283,$H$11:$DO$1000,106,FALSE),DeclMatrix!$A$2:$F$5,VLOOKUP('Enrollment Form'!$B283,DeclMatrix!$A$8:$B$12,2,FALSE),FALSE))))","v":""},{"$f":"IF($A283=\"\",\"\",IF(VLOOKUP($G283,$H$11:$DO$1000,109,FALSE)=\"\",\"No\",IF(LEFT(VLOOKUP($G283,$H$11:$DO$1000,109,FALSE),3)=\"The\",EO283,VLOOKUP(VLOOKUP($G283,$H$11:$DO$1000,109,FALSE),DeclMatrix!$A$2:$F$5,VLOOKUP('Enrollment Form'!$B283,DeclMatrix!$A$8:$B$12,2,FALSE),FALSE))))","v":""},{"$f":"IF($A283=\"\",\"\",IF(VLOOKUP($G283,$H$11:$DO$1000,112,FALSE)=\"\",\"No\",IF(LEFT(VLOOKUP($G283,$H$11:$DO$1000,112,FALSE),3)=\"The\",EP283,VLOOKUP(VLOOKUP($G283,$H$11:$DO$1000,112,FALSE),DeclMatrix!$A$2:$F$5,VLOOKUP('Enrollment Form'!$B283,DeclMatrix!$A$8:$B$12,2,FALSE),FALSE))))","v":""},null,null,null,null,null,null,null,null,"",null,"","","","","","","","","","","",""]
["",null,null,null,null,null,"","",null,null,null,null,null,null,null,null,null,null,null,null,null,null,null,null,null,null,"","","","",null,null,"",null,null,null,null,null,null,null,null,null,null,null,null,null,null,null,null,null,null,null,null,null,null,null,null,null,null,null,"","","",null,null,null,null,"","","","",null,null,null,null,null,null,null,null,null,null,null,null,null,null,null,null,null,null,null,null,null,null,null,null,null,null,null,null,null,null,null,null,null,null,null,null,null,null,null,null,null,null,null,null,null,null,null,null,null,null,null,null,"",{"$f":"IF($A285=\"\",\"\",IF(VLOOKUP($G285,$H$11:$DO$1000,103,FALSE)=\"\",\"No\",IF(LEFT(VLOOKUP($G285,$H$11:$DO$1000,103,FALSE),3)=\"The\",EM285,VLOOKUP(VLOOKUP($G285,$H$11:$DO$1000,103,FALSE),DeclMatrix!$A$2:$F$5,VLOOKUP('Enrollment Form'!$B285,DeclMatrix!$A$8:$B$12,2,FALSE),FALSE))))","v":""},{"$f":"IF($A285=\"\",\"\",IF(VLOOKUP($G285,$H$11:$DO$1000,106,FALSE)=\"\",\"No\",IF(LEFT(VLOOKUP($G285,$H$11:$DO$1000,106,FALSE),3)=\"The\",EN285,VLOOKUP(VLOOKUP($G285,$H$11:$DO$1000,106,FALSE),DeclMatrix!$A$2:$F$5,VLOOKUP('Enrollment Form'!$B285,DeclMatrix!$A$8:$B$12,2,FALSE),FALSE))))","v":""},{"$f":"IF($A285=\"\",\"\",IF(VLOOKUP($G285,$H$11:$DO$1000,109,FALSE)=\"\",\"No\",IF(LEFT(VLOOKUP($G285,$H$11:$DO$1000,109,FALSE),3)=\"The\",EO285,VLOOKUP(VLOOKUP($G285,$H$11:$DO$1000,109,FALSE),DeclMatrix!$A$2:$F$5,VLOOKUP('Enrollment Form'!$B285,DeclMatrix!$A$8:$B$12,2,FALSE),FALSE))))","v":""},{"$f":"IF($A285=\"\",\"\",IF(VLOOKUP($G285,$H$11:$DO$1000,112,FALSE)=\"\",\"No\",IF(LEFT(VLOOKUP($G285,$H$11:$DO$1000,112,FALSE),3)=\"The\",EP285,VLOOKUP(VLOOKUP($G285,$H$11:$DO$1000,112,FALSE),DeclMatrix!$A$2:$F$5,VLOOKUP('Enrollment Form'!$B285,DeclMatrix!$A$8:$B$12,2,FALSE),FALSE))))","v":""},null,null,null,null,null,null,null,null,"",null,"","","","","","","","","","","",""]
["",null,null,null,null,null,"","",null,null,null,null,null,null,null,null,null,null,null,null,null,null,null,null,null,null,"","","","",null,null,"",null,null,null,null,null,null,null,null,null,null,null,null,null,null,null,null,null,null,null,null,null,null,null,null,null,null,null,"","","",null,null,null,null,"","","","",null,null,null,null,null,null,null,null,null,null,null,null,null,null,null,null,null,null,null,null,null,null,null,null,null,null,null,null,null,null,null,null,null,null,null,null,null,null,null,null,null,null,null,null,null,null,null,null,null,null,null,null,"",{"$f":"IF($A288=\"\",\"\",IF(VLOOKUP($G288,$H$11:$DO$1000,103,FALSE)=\"\",\"No\",IF(LEFT(VLOOKUP($G288,$H$11:$DO$1000,103,FALSE),3)=\"The\",EM288,VLOOKUP(VLOOKUP($G288,$H$11:$DO$1000,103,FALSE),DeclMatrix!$A$2:$F$5,VLOOKUP('Enrollment Form'!$B288,DeclMatrix!$A$8:$B$12,2,FALSE),FALSE))))","v":""},{"$f":"IF($A288=\"\",\"\",IF(VLOOKUP($G288,$H$11:$DO$1000,106,FALSE)=\"\",\"No\",IF(LEFT(VLOOKUP($G288,$H$11:$DO$1000,106,FALSE),3)=\"The\",EN288,VLOOKUP(VLOOKUP($G288,$H$11:$DO$1000,106,FALSE),DeclMatrix!$A$2:$F$5,VLOOKUP('Enrollment Form'!$B288,DeclMatrix!$A$8:$B$12,2,FALSE),FALSE))))","v":""},{"$f":"IF($A288=\"\",\"\",IF(VLOOKUP($G288,$H$11:$DO$1000,109,FALSE)=\"\",\"No\",IF(LEFT(VLOOKUP($G288,$H$11:$DO$1000,109,FALSE),3)=\"The\",EO288,VLOOKUP(VLOOKUP($G288,$H$11:$DO$1000,109,FALSE),DeclMatrix!$A$2:$F$5,VLOOKUP('Enrollment Form'!$B288,DeclMatrix!$A$8:$B$12,2,FALSE),FALSE))))","v":""},{"$f":"IF($A288=\"\",\"\",IF(VLOOKUP($G288,$H$11:$DO$1000,112,FALSE)=\"\",\"No\",IF(LEFT(VLOOKUP($G288,$H$11:$DO$1000,112,FALSE),3)=\"The\",EP288,VLOOKUP(VLOOKUP($G288,$H$11:$DO$1000,112,FALSE),DeclMatrix!$A$2:$F$5,VLOOKUP('Enrollment Form'!$B288,DeclMatrix!$A$8:$B$12,2,FALSE),FALSE))))","v":""},null,null,null,null,null,null,null,null,"",null,"","","","","","","","","","","",""]
["",null,null,null,null,null,"","",null,null,null,null,null,null,null,null,null,null,null,null,null,null,null,null,null,null,"","","","",null,null,"",null,null,null,null,null,null,null,null,null,null,null,null,null,null,null,null,null,null,null,null,null,null,null,null,null,null,null,"","","",null,null,null,null,"","","","",null,null,null,null,null,null,null,null,null,null,null,null,null,null,null,null,null,null,null,null,null,null,null,null,null,null,null,null,null,null,null,null,null,null,null,null,null,null,null,null,null,null,null,null,null,null,null,null,null,null,null,null,"",{"$f":"IF($A289=\"\",\"\",IF(VLOOKUP($G289,$H$11:$DO$1000,103,FALSE)=\"\",\"No\",IF(LEFT(VLOOKUP($G289,$H$11:$DO$1000,103,FALSE),3)=\"The\",EM289,VLOOKUP(VLOOKUP($G289,$H$11:$DO$1000,103,FALSE),DeclMatrix!$A$2:$F$5,VLOOKUP('Enrollment Form'!$B289,DeclMatrix!$A$8:$B$12,2,FALSE),FALSE))))","v":""},{"$f":"IF($A289=\"\",\"\",IF(VLOOKUP($G289,$H$11:$DO$1000,106,FALSE)=\"\",\"No\",IF(LEFT(VLOOKUP($G289,$H$11:$DO$1000,106,FALSE),3)=\"The\",EN289,VLOOKUP(VLOOKUP($G289,$H$11:$DO$1000,106,FALSE),DeclMatrix!$A$2:$F$5,VLOOKUP('Enrollment Form'!$B289,DeclMatrix!$A$8:$B$12,2,FALSE),FALSE))))","v":""},{"$f":"IF($A289=\"\",\"\",IF(VLOOKUP($G289,$H$11:$DO$1000,109,FALSE)=\"\",\"No\",IF(LEFT(VLOOKUP($G289,$H$11:$DO$1000,109,FALSE),3)=\"The\",EO289,VLOOKUP(VLOOKUP($G289,$H$11:$DO$1000,109,FALSE),DeclMatrix!$A$2:$F$5,VLOOKUP('Enrollment Form'!$B289,DeclMatrix!$A$8:$B$12,2,FALSE),FALSE))))","v":""},{"$f":"IF($A289=\"\",\"\",IF(VLOOKUP($G289,$H$11:$DO$1000,112,FALSE)=\"\",\"No\",IF(LEFT(VLOOKUP($G289,$H$11:$DO$1000,112,FALSE),3)=\"The\",EP289,VLOOKUP(VLOOKUP($G289,$H$11:$DO$1000,112,FALSE),DeclMatrix!$A$2:$F$5,VLOOKUP('Enrollment Form'!$B289,DeclMatrix!$A$8:$B$12,2,FALSE),FALSE))))","v":""},null,null,null,null,null,null,null,null,"",null,"","","","","","","","","","","",""]
["",null,null,null,null,null,"","",null,null,null,null,null,null,null,null,null,null,null,null,null,null,null,null,null,null,"","","","",null,null,"",null,null,null,null,null,null,null,null,null,null,null,null,null,null,null,null,null,null,null,null,null,null,null,null,null,null,null,"","","",null,null,null,null,"","","","",null,null,null,null,null,null,null,null,null,null,null,null,null,null,null,null,null,null,null,null,null,null,null,null,null,null,null,null,null,null,null,null,null,null,null,null,null,null,null,null,null,null,null,null,null,null,null,null,null,null,null,null,"",{"$f":"IF($A292=\"\",\"\",IF(VLOOKUP($G292,$H$11:$DO$1000,103,FALSE)=\"\",\"No\",IF(LEFT(VLOOKUP($G292,$H$11:$DO$1000,103,FALSE),3)=\"The\",EM292,VLOOKUP(VLOOKUP($G292,$H$11:$DO$1000,103,FALSE),DeclMatrix!$A$2:$F$5,VLOOKUP('Enrollment Form'!$B292,DeclMatrix!$A$8:$B$12,2,FALSE),FALSE))))","v":""},{"$f":"IF($A292=\"\",\"\",IF(VLOOKUP($G292,$H$11:$DO$1000,106,FALSE)=\"\",\"No\",IF(LEFT(VLOOKUP($G292,$H$11:$DO$1000,106,FALSE),3)=\"The\",EN292,VLOOKUP(VLOOKUP($G292,$H$11:$DO$1000,106,FALSE),DeclMatrix!$A$2:$F$5,VLOOKUP('Enrollment Form'!$B292,DeclMatrix!$A$8:$B$12,2,FALSE),FALSE))))","v":""},{"$f":"IF($A292=\"\",\"\",IF(VLOOKUP($G292,$H$11:$DO$1000,109,FALSE)=\"\",\"No\",IF(LEFT(VLOOKUP($G292,$H$11:$DO$1000,109,FALSE),3)=\"The\",EO292,VLOOKUP(VLOOKUP($G292,$H$11:$DO$1000,109,FALSE),DeclMatrix!$A$2:$F$5,VLOOKUP('Enrollment Form'!$B292,DeclMatrix!$A$8:$B$12,2,FALSE),FALSE))))","v":""},{"$f":"IF($A292=\"\",\"\",IF(VLOOKUP($G292,$H$11:$DO$1000,112,FALSE)=\"\",\"No\",IF(LEFT(VLOOKUP($G292,$H$11:$DO$1000,112,FALSE),3)=\"The\",EP292,VLOOKUP(VLOOKUP($G292,$H$11:$DO$1000,112,FALSE),DeclMatrix!$A$2:$F$5,VLOOKUP('Enrollment Form'!$B292,DeclMatrix!$A$8:$B$12,2,FALSE),FALSE))))","v":""},null,null,null,null,null,null,null,null,"",null,"","","","","","","","","","","",""]
["",null,null,null,null,null,"","",null,null,null,null,null,null,null,null,null,null,null,null,null,null,null,null,null,null,"","","","",null,null,"",null,null,null,null,null,null,null,null,null,null,null,null,null,null,null,null,null,null,null,null,null,null,null,null,null,null,null,"","","",null,null,null,null,"","","","",null,null,null,null,null,null,null,null,null,null,null,null,null,null,null,null,null,null,null,null,null,null,null,null,null,null,null,null,null,null,null,null,null,null,null,null,null,null,null,null,null,null,null,null,null,null,null,null,null,null,null,null,"",{"$f":"IF($A296=\"\",\"\",IF(VLOOKUP($G296,$H$11:$DO$1000,103,FALSE)=\"\",\"No\",IF(LEFT(VLOOKUP($G296,$H$11:$DO$1000,103,FALSE),3)=\"The\",EM296,VLOOKUP(VLOOKUP($G296,$H$11:$DO$1000,103,FALSE),DeclMatrix!$A$2:$F$5,VLOOKUP('Enrollment Form'!$B296,DeclMatrix!$A$8:$B$12,2,FALSE),FALSE))))","v":""},{"$f":"IF($A296=\"\",\"\",IF(VLOOKUP($G296,$H$11:$DO$1000,106,FALSE)=\"\",\"No\",IF(LEFT(VLOOKUP($G296,$H$11:$DO$1000,106,FALSE),3)=\"The\",EN296,VLOOKUP(VLOOKUP($G296,$H$11:$DO$1000,106,FALSE),DeclMatrix!$A$2:$F$5,VLOOKUP('Enrollment Form'!$B296,DeclMatrix!$A$8:$B$12,2,FALSE),FALSE))))","v":""},{"$f":"IF($A296=\"\",\"\",IF(VLOOKUP($G296,$H$11:$DO$1000,109,FALSE)=\"\",\"No\",IF(LEFT(VLOOKUP($G296,$H$11:$DO$1000,109,FALSE),3)=\"The\",EO296,VLOOKUP(VLOOKUP($G296,$H$11:$DO$1000,109,FALSE),DeclMatrix!$A$2:$F$5,VLOOKUP('Enrollment Form'!$B296,DeclMatrix!$A$8:$B$12,2,FALSE),FALSE))))","v":""},{"$f":"IF($A296=\"\",\"\",IF(VLOOKUP($G296,$H$11:$DO$1000,112,FALSE)=\"\",\"No\",IF(LEFT(VLOOKUP($G296,$H$11:$DO$1000,112,FALSE),3)=\"The\",EP296,VLOOKUP(VLOOKUP($G296,$H$11:$DO$1000,112,FALSE),DeclMatrix!$A$2:$F$5,VLOOKUP('Enrollment Form'!$B296,DeclMatrix!$A$8:$B$12,2,FALSE),FALSE))))","v":""},null,null,null,null,null,null,null,null,"",null,"","","","","","","","","","","",""]
["",null,null,null,null,null,"","",null,null,null,null,null,null,null,null,null,null,null,null,null,null,null,null,null,null,"","","","",null,null,"",null,null,null,null,null,null,null,null,null,null,null,null,null,null,null,null,null,null,null,null,null,null,null,null,null,null,null,"","","",null,null,null,null,"","","","",null,null,null,null,null,null,null,null,null,null,null,null,null,null,null,null,null,null,null,null,null,null,null,null,null,null,null,null,null,null,null,null,null,null,null,null,null,null,null,null,null,null,null,null,null,null,null,null,null,null,null,null,"",{"$f":"IF($A298=\"\",\"\",IF(VLOOKUP($G298,$H$11:$DO$1000,103,FALSE)=\"\",\"No\",IF(LEFT(VLOOKUP($G298,$H$11:$DO$1000,103,FALSE),3)=\"The\",EM298,VLOOKUP(VLOOKUP($G298,$H$11:$DO$1000,103,FALSE),DeclMatrix!$A$2:$F$5,VLOOKUP('Enrollment Form'!$B298,DeclMatrix!$A$8:$B$12,2,FALSE),FALSE))))","v":""},{"$f":"IF($A298=\"\",\"\",IF(VLOOKUP($G298,$H$11:$DO$1000,106,FALSE)=\"\",\"No\",IF(LEFT(VLOOKUP($G298,$H$11:$DO$1000,106,FALSE),3)=\"The\",EN298,VLOOKUP(VLOOKUP($G298,$H$11:$DO$1000,106,FALSE),DeclMatrix!$A$2:$F$5,VLOOKUP('Enrollment Form'!$B298,DeclMatrix!$A$8:$B$12,2,FALSE),FALSE))))","v":""},{"$f":"IF($A298=\"\",\"\",IF(VLOOKUP($G298,$H$11:$DO$1000,109,FALSE)=\"\",\"No\",IF(LEFT(VLOOKUP($G298,$H$11:$DO$1000,109,FALSE),3)=\"The\",EO298,VLOOKUP(VLOOKUP($G298,$H$11:$DO$1000,109,FALSE),DeclMatrix!$A$2:$F$5,VLOOKUP('Enrollment Form'!$B298,DeclMatrix!$A$8:$B$12,2,FALSE),FALSE))))","v":""},{"$f":"IF($A298=\"\",\"\",IF(VLOOKUP($G298,$H$11:$DO$1000,112,FALSE)=\"\",\"No\",IF(LEFT(VLOOKUP($G298,$H$11:$DO$1000,112,FALSE),3)=\"The\",EP298,VLOOKUP(VLOOKUP($G298,$H$11:$DO$1000,112,FALSE),DeclMatrix!$A$2:$F$5,VLOOKUP('Enrollment Form'!$B298,DeclMatrix!$A$8:$B$12,2,FALSE),FALSE))))","v":""},null,null,null,null,null,null,null,null,"",null,"","","","","","","","","","","",""]
["",null,null,null,null,null,"","",null,null,null,null,null,null,null,null,null,null,null,null,null,null,null,null,null,null,"","","","",null,null,"",null,null,null,null,null,null,null,null,null,null,null,null,null,null,null,null,null,null,null,null,null,null,null,null,null,null,null,"","","",null,null,null,null,"","","","",null,null,null,null,null,null,null,null,null,null,null,null,null,null,null,null,null,null,null,null,null,null,null,null,null,null,null,null,null,null,null,null,null,null,null,null,null,null,null,null,null,null,null,null,null,null,null,null,null,null,null,null,"",{"$f":"IF($A301=\"\",\"\",IF(VLOOKUP($G301,$H$11:$DO$1000,103,FALSE)=\"\",\"No\",IF(LEFT(VLOOKUP($G301,$H$11:$DO$1000,103,FALSE),3)=\"The\",EM301,VLOOKUP(VLOOKUP($G301,$H$11:$DO$1000,103,FALSE),DeclMatrix!$A$2:$F$5,VLOOKUP('Enrollment Form'!$B301,DeclMatrix!$A$8:$B$12,2,FALSE),FALSE))))","v":""},{"$f":"IF($A301=\"\",\"\",IF(VLOOKUP($G301,$H$11:$DO$1000,106,FALSE)=\"\",\"No\",IF(LEFT(VLOOKUP($G301,$H$11:$DO$1000,106,FALSE),3)=\"The\",EN301,VLOOKUP(VLOOKUP($G301,$H$11:$DO$1000,106,FALSE),DeclMatrix!$A$2:$F$5,VLOOKUP('Enrollment Form'!$B301,DeclMatrix!$A$8:$B$12,2,FALSE),FALSE))))","v":""},{"$f":"IF($A301=\"\",\"\",IF(VLOOKUP($G301,$H$11:$DO$1000,109,FALSE)=\"\",\"No\",IF(LEFT(VLOOKUP($G301,$H$11:$DO$1000,109,FALSE),3)=\"The\",EO301,VLOOKUP(VLOOKUP($G301,$H$11:$DO$1000,109,FALSE),DeclMatrix!$A$2:$F$5,VLOOKUP('Enrollment Form'!$B301,DeclMatrix!$A$8:$B$12,2,FALSE),FALSE))))","v":""},{"$f":"IF($A301=\"\",\"\",IF(VLOOKUP($G301,$H$11:$DO$1000,112,FALSE)=\"\",\"No\",IF(LEFT(VLOOKUP($G301,$H$11:$DO$1000,112,FALSE),3)=\"The\",EP301,VLOOKUP(VLOOKUP($G301,$H$11:$DO$1000,112,FALSE),DeclMatrix!$A$2:$F$5,VLOOKUP('Enrollment Form'!$B301,DeclMatrix!$A$8:$B$12,2,FALSE),FALSE))))","v":""},null,null,null,null,null,null,null,null,"",null,"","","","","","","","","","","",""]
["",null,null,null,null,null,"","",null,null,null,null,null,null,null,null,null,null,null,null,null,null,null,null,null,null,"","","","",null,null,"",null,null,null,null,null,null,null,null,null,null,null,null,null,null,null,null,null,null,null,null,null,null,null,null,null,null,null,"","","",null,null,null,null,"","","","",null,null,null,null,null,null,null,null,null,null,null,null,null,null,null,null,null,null,null,null,null,null,null,null,null,null,null,null,null,null,null,null,null,null,null,null,null,null,null,null,null,null,null,null,null,null,null,null,null,null,null,null,"",{"$f":"IF($A305=\"\",\"\",IF(VLOOKUP($G305,$H$11:$DO$1000,103,FALSE)=\"\",\"No\",IF(LEFT(VLOOKUP($G305,$H$11:$DO$1000,103,FALSE),3)=\"The\",EM305,VLOOKUP(VLOOKUP($G305,$H$11:$DO$1000,103,FALSE),DeclMatrix!$A$2:$F$5,VLOOKUP('Enrollment Form'!$B305,DeclMatrix!$A$8:$B$12,2,FALSE),FALSE))))","v":""},{"$f":"IF($A305=\"\",\"\",IF(VLOOKUP($G305,$H$11:$DO$1000,106,FALSE)=\"\",\"No\",IF(LEFT(VLOOKUP($G305,$H$11:$DO$1000,106,FALSE),3)=\"The\",EN305,VLOOKUP(VLOOKUP($G305,$H$11:$DO$1000,106,FALSE),DeclMatrix!$A$2:$F$5,VLOOKUP('Enrollment Form'!$B305,DeclMatrix!$A$8:$B$12,2,FALSE),FALSE))))","v":""},{"$f":"IF($A305=\"\",\"\",IF(VLOOKUP($G305,$H$11:$DO$1000,109,FALSE)=\"\",\"No\",IF(LEFT(VLOOKUP($G305,$H$11:$DO$1000,109,FALSE),3)=\"The\",EO305,VLOOKUP(VLOOKUP($G305,$H$11:$DO$1000,109,FALSE),DeclMatrix!$A$2:$F$5,VLOOKUP('Enrollment Form'!$B305,DeclMatrix!$A$8:$B$12,2,FALSE),FALSE))))","v":""},{"$f":"IF($A305=\"\",\"\",IF(VLOOKUP($G305,$H$11:$DO$1000,112,FALSE)=\"\",\"No\",IF(LEFT(VLOOKUP($G305,$H$11:$DO$1000,112,FALSE),3)=\"The\",EP305,VLOOKUP(VLOOKUP($G305,$H$11:$DO$1000,112,FALSE),DeclMatrix!$A$2:$F$5,VLOOKUP('Enrollment Form'!$B305,DeclMatrix!$A$8:$B$12,2,FALSE),FALSE))))","v":""},null,null,null,null,null,null,null,null,"",null,"","","","","","","","","","","",""]
["",null,null,null,null,null,"","",null,null,null,null,null,null,null,null,null,null,null,null,null,null,null,null,null,null,"","","","",null,null,"",null,null,null,null,null,null,null,null,null,null,null,null,null,null,null,null,null,null,null,null,null,null,null,null,null,null,null,"","","",null,null,null,null,"","","","",null,null,null,null,null,null,null,null,null,null,null,null,null,null,null,null,null,null,null,null,null,null,null,null,null,null,null,null,null,null,null,null,null,null,null,null,null,null,null,null,null,null,null,null,null,null,null,null,null,null,null,null,"",{"$f":"IF($A307=\"\",\"\",IF(VLOOKUP($G307,$H$11:$DO$1000,103,FALSE)=\"\",\"No\",IF(LEFT(VLOOKUP($G307,$H$11:$DO$1000,103,FALSE),3)=\"The\",EM307,VLOOKUP(VLOOKUP($G307,$H$11:$DO$1000,103,FALSE),DeclMatrix!$A$2:$F$5,VLOOKUP('Enrollment Form'!$B307,DeclMatrix!$A$8:$B$12,2,FALSE),FALSE))))","v":""},{"$f":"IF($A307=\"\",\"\",IF(VLOOKUP($G307,$H$11:$DO$1000,106,FALSE)=\"\",\"No\",IF(LEFT(VLOOKUP($G307,$H$11:$DO$1000,106,FALSE),3)=\"The\",EN307,VLOOKUP(VLOOKUP($G307,$H$11:$DO$1000,106,FALSE),DeclMatrix!$A$2:$F$5,VLOOKUP('Enrollment Form'!$B307,DeclMatrix!$A$8:$B$12,2,FALSE),FALSE))))","v":""},{"$f":"IF($A307=\"\",\"\",IF(VLOOKUP($G307,$H$11:$DO$1000,109,FALSE)=\"\",\"No\",IF(LEFT(VLOOKUP($G307,$H$11:$DO$1000,109,FALSE),3)=\"The\",EO307,VLOOKUP(VLOOKUP($G307,$H$11:$DO$1000,109,FALSE),DeclMatrix!$A$2:$F$5,VLOOKUP('Enrollment Form'!$B307,DeclMatrix!$A$8:$B$12,2,FALSE),FALSE))))","v":""},{"$f":"IF($A307=\"\",\"\",IF(VLOOKUP($G307,$H$11:$DO$1000,112,FALSE)=\"\",\"No\",IF(LEFT(VLOOKUP($G307,$H$11:$DO$1000,112,FALSE),3)=\"The\",EP307,VLOOKUP(VLOOKUP($G307,$H$11:$DO$1000,112,FALSE),DeclMatrix!$A$2:$F$5,VLOOKUP('Enrollment Form'!$B307,DeclMatrix!$A$8:$B$12,2,FALSE),FALSE))))","v":""},null,null,null,null,null,null,null,null,"",null,"","","","","","","","","","","",""]
["",null,null,null,null,null,"","",null,null,null,null,null,null,null,null,null,null,null,null,null,null,null,null,null,null,"","","","",null,null,"",null,null,null,null,null,null,null,null,null,null,null,null,null,null,null,null,null,null,null,null,null,null,null,null,null,null,null,"","","",null,null,null,null,"","","","",null,null,null,null,null,null,null,null,null,null,null,null,null,null,null,null,null,null,null,null,null,null,null,null,null,null,null,null,null,null,null,null,null,null,null,null,null,null,null,null,null,null,null,null,null,null,null,null,null,null,null,null,"",{"$f":"IF($A308=\"\",\"\",IF(VLOOKUP($G308,$H$11:$DO$1000,103,FALSE)=\"\",\"No\",IF(LEFT(VLOOKUP($G308,$H$11:$DO$1000,103,FALSE),3)=\"The\",EM308,VLOOKUP(VLOOKUP($G308,$H$11:$DO$1000,103,FALSE),DeclMatrix!$A$2:$F$5,VLOOKUP('Enrollment Form'!$B308,DeclMatrix!$A$8:$B$12,2,FALSE),FALSE))))","v":""},{"$f":"IF($A308=\"\",\"\",IF(VLOOKUP($G308,$H$11:$DO$1000,106,FALSE)=\"\",\"No\",IF(LEFT(VLOOKUP($G308,$H$11:$DO$1000,106,FALSE),3)=\"The\",EN308,VLOOKUP(VLOOKUP($G308,$H$11:$DO$1000,106,FALSE),DeclMatrix!$A$2:$F$5,VLOOKUP('Enrollment Form'!$B308,DeclMatrix!$A$8:$B$12,2,FALSE),FALSE))))","v":""},{"$f":"IF($A308=\"\",\"\",IF(VLOOKUP($G308,$H$11:$DO$1000,109,FALSE)=\"\",\"No\",IF(LEFT(VLOOKUP($G308,$H$11:$DO$1000,109,FALSE),3)=\"The\",EO308,VLOOKUP(VLOOKUP($G308,$H$11:$DO$1000,109,FALSE),DeclMatrix!$A$2:$F$5,VLOOKUP('Enrollment Form'!$B308,DeclMatrix!$A$8:$B$12,2,FALSE),FALSE))))","v":""},{"$f":"IF($A308=\"\",\"\",IF(VLOOKUP($G308,$H$11:$DO$1000,112,FALSE)=\"\",\"No\",IF(LEFT(VLOOKUP($G308,$H$11:$DO$1000,112,FALSE),3)=\"The\",EP308,VLOOKUP(VLOOKUP($G308,$H$11:$DO$1000,112,FALSE),DeclMatrix!$A$2:$F$5,VLOOKUP('Enrollment Form'!$B308,DeclMatrix!$A$8:$B$12,2,FALSE),FALSE))))","v":""},null,null,null,null,null,null,null,null,"",null,"","","","","","","","","","","",""]
["",null,null,null,null,null,"","",null,null,null,null,null,null,null,null,null,null,null,null,null,null,null,null,null,null,"","","","",null,null,"",null,null,null,null,null,null,null,null,null,null,null,null,null,null,null,null,null,null,null,null,null,null,null,null,null,null,null,"","","",null,null,null,null,"","","","",null,null,null,null,null,null,null,null,null,null,null,null,null,null,null,null,null,null,null,null,null,null,null,null,null,null,null,null,null,null,null,null,null,null,null,null,null,null,null,null,null,null,null,null,null,null,null,null,null,null,null,null,"",{"$f":"IF($A311=\"\",\"\",IF(VLOOKUP($G311,$H$11:$DO$1000,103,FALSE)=\"\",\"No\",IF(LEFT(VLOOKUP($G311,$H$11:$DO$1000,103,FALSE),3)=\"The\",EM311,VLOOKUP(VLOOKUP($G311,$H$11:$DO$1000,103,FALSE),DeclMatrix!$A$2:$F$5,VLOOKUP('Enrollment Form'!$B311,DeclMatrix!$A$8:$B$12,2,FALSE),FALSE))))","v":""},{"$f":"IF($A311=\"\",\"\",IF(VLOOKUP($G311,$H$11:$DO$1000,106,FALSE)=\"\",\"No\",IF(LEFT(VLOOKUP($G311,$H$11:$DO$1000,106,FALSE),3)=\"The\",EN311,VLOOKUP(VLOOKUP($G311,$H$11:$DO$1000,106,FALSE),DeclMatrix!$A$2:$F$5,VLOOKUP('Enrollment Form'!$B311,DeclMatrix!$A$8:$B$12,2,FALSE),FALSE))))","v":""},{"$f":"IF($A311=\"\",\"\",IF(VLOOKUP($G311,$H$11:$DO$1000,109,FALSE)=\"\",\"No\",IF(LEFT(VLOOKUP($G311,$H$11:$DO$1000,109,FALSE),3)=\"The\",EO311,VLOOKUP(VLOOKUP($G311,$H$11:$DO$1000,109,FALSE),DeclMatrix!$A$2:$F$5,VLOOKUP('Enrollment Form'!$B311,DeclMatrix!$A$8:$B$12,2,FALSE),FALSE))))","v":""},{"$f":"IF($A311=\"\",\"\",IF(VLOOKUP($G311,$H$11:$DO$1000,112,FALSE)=\"\",\"No\",IF(LEFT(VLOOKUP($G311,$H$11:$DO$1000,112,FALSE),3)=\"The\",EP311,VLOOKUP(VLOOKUP($G311,$H$11:$DO$1000,112,FALSE),DeclMatrix!$A$2:$F$5,VLOOKUP('Enrollment Form'!$B311,DeclMatrix!$A$8:$B$12,2,FALSE),FALSE))))","v":""},null,null,null,null,null,null,null,null,"",null,"","","","","","","","","","","",""]
["",null,null,null,null,null,"","",null,null,null,null,null,null,null,null,null,null,null,null,null,null,null,null,null,null,"","","","",null,null,"",null,null,null,null,null,null,null,null,null,null,null,null,null,null,null,null,null,null,null,null,null,null,null,null,null,null,null,"","","",null,null,null,null,"","","","",null,null,null,null,null,null,null,null,null,null,null,null,null,null,null,null,null,null,null,null,null,null,null,null,null,null,null,null,null,null,null,null,null,null,null,null,null,null,null,null,null,null,null,null,null,null,null,null,null,null,null,null,"",{"$f":"IF($A314=\"\",\"\",IF(VLOOKUP($G314,$H$11:$DO$1000,103,FALSE)=\"\",\"No\",IF(LEFT(VLOOKUP($G314,$H$11:$DO$1000,103,FALSE),3)=\"The\",EM314,VLOOKUP(VLOOKUP($G314,$H$11:$DO$1000,103,FALSE),DeclMatrix!$A$2:$F$5,VLOOKUP('Enrollment Form'!$B314,DeclMatrix!$A$8:$B$12,2,FALSE),FALSE))))","v":""},{"$f":"IF($A314=\"\",\"\",IF(VLOOKUP($G314,$H$11:$DO$1000,106,FALSE)=\"\",\"No\",IF(LEFT(VLOOKUP($G314,$H$11:$DO$1000,106,FALSE),3)=\"The\",EN314,VLOOKUP(VLOOKUP($G314,$H$11:$DO$1000,106,FALSE),DeclMatrix!$A$2:$F$5,VLOOKUP('Enrollment Form'!$B314,DeclMatrix!$A$8:$B$12,2,FALSE),FALSE))))","v":""},{"$f":"IF($A314=\"\",\"\",IF(VLOOKUP($G314,$H$11:$DO$1000,109,FALSE)=\"\",\"No\",IF(LEFT(VLOOKUP($G314,$H$11:$DO$1000,109,FALSE),3)=\"The\",EO314,VLOOKUP(VLOOKUP($G314,$H$11:$DO$1000,109,FALSE),DeclMatrix!$A$2:$F$5,VLOOKUP('Enrollment Form'!$B314,DeclMatrix!$A$8:$B$12,2,FALSE),FALSE))))","v":""},{"$f":"IF($A314=\"\",\"\",IF(VLOOKUP($G314,$H$11:$DO$1000,112,FALSE)=\"\",\"No\",IF(LEFT(VLOOKUP($G314,$H$11:$DO$1000,112,FALSE),3)=\"The\",EP314,VLOOKUP(VLOOKUP($G314,$H$11:$DO$1000,112,FALSE),DeclMatrix!$A$2:$F$5,VLOOKUP('Enrollment Form'!$B314,DeclMatrix!$A$8:$B$12,2,FALSE),FALSE))))","v":""},null,null,null,null,null,null,null,null,"",null,"","","","","","","","","","","",""]
["",null,null,null,null,null,"","",null,null,null,null,null,null,null,null,null,null,null,null,null,null,null,null,null,null,"","","","",null,null,"",null,null,null,null,null,null,null,null,null,null,null,null,null,null,null,null,null,null,null,null,null,null,null,null,null,null,null,"","","",null,null,null,null,"","","","",null,null,null,null,null,null,null,null,null,null,null,null,null,null,null,null,null,null,null,null,null,null,null,null,null,null,null,null,null,null,null,null,null,null,null,null,null,null,null,null,null,null,null,null,null,null,null,null,null,null,null,null,"",{"$f":"IF($A318=\"\",\"\",IF(VLOOKUP($G318,$H$11:$DO$1000,103,FALSE)=\"\",\"No\",IF(LEFT(VLOOKUP($G318,$H$11:$DO$1000,103,FALSE),3)=\"The\",EM318,VLOOKUP(VLOOKUP($G318,$H$11:$DO$1000,103,FALSE),DeclMatrix!$A$2:$F$5,VLOOKUP('Enrollment Form'!$B318,DeclMatrix!$A$8:$B$12,2,FALSE),FALSE))))","v":""},{"$f":"IF($A318=\"\",\"\",IF(VLOOKUP($G318,$H$11:$DO$1000,106,FALSE)=\"\",\"No\",IF(LEFT(VLOOKUP($G318,$H$11:$DO$1000,106,FALSE),3)=\"The\",EN318,VLOOKUP(VLOOKUP($G318,$H$11:$DO$1000,106,FALSE),DeclMatrix!$A$2:$F$5,VLOOKUP('Enrollment Form'!$B318,DeclMatrix!$A$8:$B$12,2,FALSE),FALSE))))","v":""},{"$f":"IF($A318=\"\",\"\",IF(VLOOKUP($G318,$H$11:$DO$1000,109,FALSE)=\"\",\"No\",IF(LEFT(VLOOKUP($G318,$H$11:$DO$1000,109,FALSE),3)=\"The\",EO318,VLOOKUP(VLOOKUP($G318,$H$11:$DO$1000,109,FALSE),DeclMatrix!$A$2:$F$5,VLOOKUP('Enrollment Form'!$B318,DeclMatrix!$A$8:$B$12,2,FALSE),FALSE))))","v":""},{"$f":"IF($A318=\"\",\"\",IF(VLOOKUP($G318,$H$11:$DO$1000,112,FALSE)=\"\",\"No\",IF(LEFT(VLOOKUP($G318,$H$11:$DO$1000,112,FALSE),3)=\"The\",EP318,VLOOKUP(VLOOKUP($G318,$H$11:$DO$1000,112,FALSE),DeclMatrix!$A$2:$F$5,VLOOKUP('Enrollment Form'!$B318,DeclMatrix!$A$8:$B$12,2,FALSE),FALSE))))","v":""},null,null,null,null,null,null,null,null,"",null,"","","","","","","","","","","",""]
["",null,null,null,null,null,"","",null,null,null,null,null,null,null,null,null,null,null,null,null,null,null,null,null,null,"","","","",null,null,"",null,null,null,null,null,null,null,null,null,null,null,null,null,null,null,null,null,null,null,null,null,null,null,null,null,null,null,"","","",null,null,null,null,"","","","",null,null,null,null,null,null,null,null,null,null,null,null,null,null,null,null,null,null,null,null,null,null,null,null,null,null,null,null,null,null,null,null,null,null,null,null,null,null,null,null,null,null,null,null,null,null,null,null,null,null,null,null,"",{"$f":"IF($A320=\"\",\"\",IF(VLOOKUP($G320,$H$11:$DO$1000,103,FALSE)=\"\",\"No\",IF(LEFT(VLOOKUP($G320,$H$11:$DO$1000,103,FALSE),3)=\"The\",EM320,VLOOKUP(VLOOKUP($G320,$H$11:$DO$1000,103,FALSE),DeclMatrix!$A$2:$F$5,VLOOKUP('Enrollment Form'!$B320,DeclMatrix!$A$8:$B$12,2,FALSE),FALSE))))","v":""},{"$f":"IF($A320=\"\",\"\",IF(VLOOKUP($G320,$H$11:$DO$1000,106,FALSE)=\"\",\"No\",IF(LEFT(VLOOKUP($G320,$H$11:$DO$1000,106,FALSE),3)=\"The\",EN320,VLOOKUP(VLOOKUP($G320,$H$11:$DO$1000,106,FALSE),DeclMatrix!$A$2:$F$5,VLOOKUP('Enrollment Form'!$B320,DeclMatrix!$A$8:$B$12,2,FALSE),FALSE))))","v":""},{"$f":"IF($A320=\"\",\"\",IF(VLOOKUP($G320,$H$11:$DO$1000,109,FALSE)=\"\",\"No\",IF(LEFT(VLOOKUP($G320,$H$11:$DO$1000,109,FALSE),3)=\"The\",EO320,VLOOKUP(VLOOKUP($G320,$H$11:$DO$1000,109,FALSE),DeclMatrix!$A$2:$F$5,VLOOKUP('Enrollment Form'!$B320,DeclMatrix!$A$8:$B$12,2,FALSE),FALSE))))","v":""},{"$f":"IF($A320=\"\",\"\",IF(VLOOKUP($G320,$H$11:$DO$1000,112,FALSE)=\"\",\"No\",IF(LEFT(VLOOKUP($G320,$H$11:$DO$1000,112,FALSE),3)=\"The\",EP320,VLOOKUP(VLOOKUP($G320,$H$11:$DO$1000,112,FALSE),DeclMatrix!$A$2:$F$5,VLOOKUP('Enrollment Form'!$B320,DeclMatrix!$A$8:$B$12,2,FALSE),FALSE))))","v":""},null,null,null,null,null,null,null,null,"",null,"","","","","","","","","","","",""]
["",null,null,null,null,null,"","",null,null,null,null,null,null,null,null,null,null,null,null,null,null,null,null,null,null,"","","","",null,null,"",null,null,null,null,null,null,null,null,null,null,null,null,null,null,null,null,null,null,null,null,null,null,null,null,null,null,null,"","","",null,null,null,null,"","","","",null,null,null,null,null,null,null,null,null,null,null,null,null,null,null,null,null,null,null,null,null,null,null,null,null,null,null,null,null,null,null,null,null,null,null,null,null,null,null,null,null,null,null,null,null,null,null,null,null,null,null,null,"",{"$f":"IF($A323=\"\",\"\",IF(VLOOKUP($G323,$H$11:$DO$1000,103,FALSE)=\"\",\"No\",IF(LEFT(VLOOKUP($G323,$H$11:$DO$1000,103,FALSE),3)=\"The\",EM323,VLOOKUP(VLOOKUP($G323,$H$11:$DO$1000,103,FALSE),DeclMatrix!$A$2:$F$5,VLOOKUP('Enrollment Form'!$B323,DeclMatrix!$A$8:$B$12,2,FALSE),FALSE))))","v":""},{"$f":"IF($A323=\"\",\"\",IF(VLOOKUP($G323,$H$11:$DO$1000,106,FALSE)=\"\",\"No\",IF(LEFT(VLOOKUP($G323,$H$11:$DO$1000,106,FALSE),3)=\"The\",EN323,VLOOKUP(VLOOKUP($G323,$H$11:$DO$1000,106,FALSE),DeclMatrix!$A$2:$F$5,VLOOKUP('Enrollment Form'!$B323,DeclMatrix!$A$8:$B$12,2,FALSE),FALSE))))","v":""},{"$f":"IF($A323=\"\",\"\",IF(VLOOKUP($G323,$H$11:$DO$1000,109,FALSE)=\"\",\"No\",IF(LEFT(VLOOKUP($G323,$H$11:$DO$1000,109,FALSE),3)=\"The\",EO323,VLOOKUP(VLOOKUP($G323,$H$11:$DO$1000,109,FALSE),DeclMatrix!$A$2:$F$5,VLOOKUP('Enrollment Form'!$B323,DeclMatrix!$A$8:$B$12,2,FALSE),FALSE))))","v":""},{"$f":"IF($A323=\"\",\"\",IF(VLOOKUP($G323,$H$11:$DO$1000,112,FALSE)=\"\",\"No\",IF(LEFT(VLOOKUP($G323,$H$11:$DO$1000,112,FALSE),3)=\"The\",EP323,VLOOKUP(VLOOKUP($G323,$H$11:$DO$1000,112,FALSE),DeclMatrix!$A$2:$F$5,VLOOKUP('Enrollment Form'!$B323,DeclMatrix!$A$8:$B$12,2,FALSE),FALSE))))","v":""},null,null,null,null,null,null,null,null,"",null,"","","","","","","","","","","",""]
["",null,null,null,null,null,"","",null,null,null,null,null,null,null,null,null,null,null,null,null,null,null,null,null,null,"","","","",null,null,"",null,null,null,null,null,null,null,null,null,null,null,null,null,null,null,null,null,null,null,null,null,null,null,null,null,null,null,"","","",null,null,null,null,"","","","",null,null,null,null,null,null,null,null,null,null,null,null,null,null,null,null,null,null,null,null,null,null,null,null,null,null,null,null,null,null,null,null,null,null,null,null,null,null,null,null,null,null,null,null,null,null,null,null,null,null,null,null,"",{"$f":"IF($A327=\"\",\"\",IF(VLOOKUP($G327,$H$11:$DO$1000,103,FALSE)=\"\",\"No\",IF(LEFT(VLOOKUP($G327,$H$11:$DO$1000,103,FALSE),3)=\"The\",EM327,VLOOKUP(VLOOKUP($G327,$H$11:$DO$1000,103,FALSE),DeclMatrix!$A$2:$F$5,VLOOKUP('Enrollment Form'!$B327,DeclMatrix!$A$8:$B$12,2,FALSE),FALSE))))","v":""},{"$f":"IF($A327=\"\",\"\",IF(VLOOKUP($G327,$H$11:$DO$1000,106,FALSE)=\"\",\"No\",IF(LEFT(VLOOKUP($G327,$H$11:$DO$1000,106,FALSE),3)=\"The\",EN327,VLOOKUP(VLOOKUP($G327,$H$11:$DO$1000,106,FALSE),DeclMatrix!$A$2:$F$5,VLOOKUP('Enrollment Form'!$B327,DeclMatrix!$A$8:$B$12,2,FALSE),FALSE))))","v":""},{"$f":"IF($A327=\"\",\"\",IF(VLOOKUP($G327,$H$11:$DO$1000,109,FALSE)=\"\",\"No\",IF(LEFT(VLOOKUP($G327,$H$11:$DO$1000,109,FALSE),3)=\"The\",EO327,VLOOKUP(VLOOKUP($G327,$H$11:$DO$1000,109,FALSE),DeclMatrix!$A$2:$F$5,VLOOKUP('Enrollment Form'!$B327,DeclMatrix!$A$8:$B$12,2,FALSE),FALSE))))","v":""},{"$f":"IF($A327=\"\",\"\",IF(VLOOKUP($G327,$H$11:$DO$1000,112,FALSE)=\"\",\"No\",IF(LEFT(VLOOKUP($G327,$H$11:$DO$1000,112,FALSE),3)=\"The\",EP327,VLOOKUP(VLOOKUP($G327,$H$11:$DO$1000,112,FALSE),DeclMatrix!$A$2:$F$5,VLOOKUP('Enrollment Form'!$B327,DeclMatrix!$A$8:$B$12,2,FALSE),FALSE))))","v":""},null,null,null,null,null,null,null,null,"",null,"","","","","","","","","","","",""]
["",null,null,null,null,null,"","",null,null,null,null,null,null,null,null,null,null,null,null,null,null,null,null,null,null,"","","","",null,null,"",null,null,null,null,null,null,null,null,null,null,null,null,null,null,null,null,null,null,null,null,null,null,null,null,null,null,null,"","","",null,null,null,null,"","","","",null,null,null,null,null,null,null,null,null,null,null,null,null,null,null,null,null,null,null,null,null,null,null,null,null,null,null,null,null,null,null,null,null,null,null,null,null,null,null,null,null,null,null,null,null,null,null,null,null,null,null,null,"",{"$f":"IF($A329=\"\",\"\",IF(VLOOKUP($G329,$H$11:$DO$1000,103,FALSE)=\"\",\"No\",IF(LEFT(VLOOKUP($G329,$H$11:$DO$1000,103,FALSE),3)=\"The\",EM329,VLOOKUP(VLOOKUP($G329,$H$11:$DO$1000,103,FALSE),DeclMatrix!$A$2:$F$5,VLOOKUP('Enrollment Form'!$B329,DeclMatrix!$A$8:$B$12,2,FALSE),FALSE))))","v":""},{"$f":"IF($A329=\"\",\"\",IF(VLOOKUP($G329,$H$11:$DO$1000,106,FALSE)=\"\",\"No\",IF(LEFT(VLOOKUP($G329,$H$11:$DO$1000,106,FALSE),3)=\"The\",EN329,VLOOKUP(VLOOKUP($G329,$H$11:$DO$1000,106,FALSE),DeclMatrix!$A$2:$F$5,VLOOKUP('Enrollment Form'!$B329,DeclMatrix!$A$8:$B$12,2,FALSE),FALSE))))","v":""},{"$f":"IF($A329=\"\",\"\",IF(VLOOKUP($G329,$H$11:$DO$1000,109,FALSE)=\"\",\"No\",IF(LEFT(VLOOKUP($G329,$H$11:$DO$1000,109,FALSE),3)=\"The\",EO329,VLOOKUP(VLOOKUP($G329,$H$11:$DO$1000,109,FALSE),DeclMatrix!$A$2:$F$5,VLOOKUP('Enrollment Form'!$B329,DeclMatrix!$A$8:$B$12,2,FALSE),FALSE))))","v":""},{"$f":"IF($A329=\"\",\"\",IF(VLOOKUP($G329,$H$11:$DO$1000,112,FALSE)=\"\",\"No\",IF(LEFT(VLOOKUP($G329,$H$11:$DO$1000,112,FALSE),3)=\"The\",EP329,VLOOKUP(VLOOKUP($G329,$H$11:$DO$1000,112,FALSE),DeclMatrix!$A$2:$F$5,VLOOKUP('Enrollment Form'!$B329,DeclMatrix!$A$8:$B$12,2,FALSE),FALSE))))","v":""},null,null,null,null,null,null,null,null,"",null,"","","","","","","","","","","",""]
["",null,null,null,null,null,"","",null,null,null,null,null,null,null,null,null,null,null,null,null,null,null,null,null,null,"","","","",null,null,"",null,null,null,null,null,null,null,null,null,null,null,null,null,null,null,null,null,null,null,null,null,null,null,null,null,null,null,"","","",null,null,null,null,"","","","",null,null,null,null,null,null,null,null,null,null,null,null,null,null,null,null,null,null,null,null,null,null,null,null,null,null,null,null,null,null,null,null,null,null,null,null,null,null,null,null,null,null,null,null,null,null,null,null,null,null,null,null,"",{"$f":"IF($A330=\"\",\"\",IF(VLOOKUP($G330,$H$11:$DO$1000,103,FALSE)=\"\",\"No\",IF(LEFT(VLOOKUP($G330,$H$11:$DO$1000,103,FALSE),3)=\"The\",EM330,VLOOKUP(VLOOKUP($G330,$H$11:$DO$1000,103,FALSE),DeclMatrix!$A$2:$F$5,VLOOKUP('Enrollment Form'!$B330,DeclMatrix!$A$8:$B$12,2,FALSE),FALSE))))","v":""},{"$f":"IF($A330=\"\",\"\",IF(VLOOKUP($G330,$H$11:$DO$1000,106,FALSE)=\"\",\"No\",IF(LEFT(VLOOKUP($G330,$H$11:$DO$1000,106,FALSE),3)=\"The\",EN330,VLOOKUP(VLOOKUP($G330,$H$11:$DO$1000,106,FALSE),DeclMatrix!$A$2:$F$5,VLOOKUP('Enrollment Form'!$B330,DeclMatrix!$A$8:$B$12,2,FALSE),FALSE))))","v":""},{"$f":"IF($A330=\"\",\"\",IF(VLOOKUP($G330,$H$11:$DO$1000,109,FALSE)=\"\",\"No\",IF(LEFT(VLOOKUP($G330,$H$11:$DO$1000,109,FALSE),3)=\"The\",EO330,VLOOKUP(VLOOKUP($G330,$H$11:$DO$1000,109,FALSE),DeclMatrix!$A$2:$F$5,VLOOKUP('Enrollment Form'!$B330,DeclMatrix!$A$8:$B$12,2,FALSE),FALSE))))","v":""},{"$f":"IF($A330=\"\",\"\",IF(VLOOKUP($G330,$H$11:$DO$1000,112,FALSE)=\"\",\"No\",IF(LEFT(VLOOKUP($G330,$H$11:$DO$1000,112,FALSE),3)=\"The\",EP330,VLOOKUP(VLOOKUP($G330,$H$11:$DO$1000,112,FALSE),DeclMatrix!$A$2:$F$5,VLOOKUP('Enrollment Form'!$B330,DeclMatrix!$A$8:$B$12,2,FALSE),FALSE))))","v":""},null,null,null,null,null,null,null,null,"",null,"","","","","","","","","","","",""]
["",null,null,null,null,null,"","",null,null,null,null,null,null,null,null,null,null,null,null,null,null,null,null,null,null,"","","","",null,null,"",null,null,null,null,null,null,null,null,null,null,null,null,null,null,null,null,null,null,null,null,null,null,null,null,null,null,null,"","","",null,null,null,null,"","","","",null,null,null,null,null,null,null,null,null,null,null,null,null,null,null,null,null,null,null,null,null,null,null,null,null,null,null,null,null,null,null,null,null,null,null,null,null,null,null,null,null,null,null,null,null,null,null,null,null,null,null,null,"",{"$f":"IF($A333=\"\",\"\",IF(VLOOKUP($G333,$H$11:$DO$1000,103,FALSE)=\"\",\"No\",IF(LEFT(VLOOKUP($G333,$H$11:$DO$1000,103,FALSE),3)=\"The\",EM333,VLOOKUP(VLOOKUP($G333,$H$11:$DO$1000,103,FALSE),DeclMatrix!$A$2:$F$5,VLOOKUP('Enrollment Form'!$B333,DeclMatrix!$A$8:$B$12,2,FALSE),FALSE))))","v":""},{"$f":"IF($A333=\"\",\"\",IF(VLOOKUP($G333,$H$11:$DO$1000,106,FALSE)=\"\",\"No\",IF(LEFT(VLOOKUP($G333,$H$11:$DO$1000,106,FALSE),3)=\"The\",EN333,VLOOKUP(VLOOKUP($G333,$H$11:$DO$1000,106,FALSE),DeclMatrix!$A$2:$F$5,VLOOKUP('Enrollment Form'!$B333,DeclMatrix!$A$8:$B$12,2,FALSE),FALSE))))","v":""},{"$f":"IF($A333=\"\",\"\",IF(VLOOKUP($G333,$H$11:$DO$1000,109,FALSE)=\"\",\"No\",IF(LEFT(VLOOKUP($G333,$H$11:$DO$1000,109,FALSE),3)=\"The\",EO333,VLOOKUP(VLOOKUP($G333,$H$11:$DO$1000,109,FALSE),DeclMatrix!$A$2:$F$5,VLOOKUP('Enrollment Form'!$B333,DeclMatrix!$A$8:$B$12,2,FALSE),FALSE))))","v":""},{"$f":"IF($A333=\"\",\"\",IF(VLOOKUP($G333,$H$11:$DO$1000,112,FALSE)=\"\",\"No\",IF(LEFT(VLOOKUP($G333,$H$11:$DO$1000,112,FALSE),3)=\"The\",EP333,VLOOKUP(VLOOKUP($G333,$H$11:$DO$1000,112,FALSE),DeclMatrix!$A$2:$F$5,VLOOKUP('Enrollment Form'!$B333,DeclMatrix!$A$8:$B$12,2,FALSE),FALSE))))","v":""},null,null,null,null,null,null,null,null,"",null,"","","","","","","","","","","",""]
["",null,null,null,null,null,"","",null,null,null,null,null,null,null,null,null,null,null,null,null,null,null,null,null,null,"","","","",null,null,"",null,null,null,null,null,null,null,null,null,null,null,null,null,null,null,null,null,null,null,null,null,null,null,null,null,null,null,"","","",null,null,null,null,"","","","",null,null,null,null,null,null,null,null,null,null,null,null,null,null,null,null,null,null,null,null,null,null,null,null,null,null,null,null,null,null,null,null,null,null,null,null,null,null,null,null,null,null,null,null,null,null,null,null,null,null,null,null,"",{"$f":"IF($A336=\"\",\"\",IF(VLOOKUP($G336,$H$11:$DO$1000,103,FALSE)=\"\",\"No\",IF(LEFT(VLOOKUP($G336,$H$11:$DO$1000,103,FALSE),3)=\"The\",EM336,VLOOKUP(VLOOKUP($G336,$H$11:$DO$1000,103,FALSE),DeclMatrix!$A$2:$F$5,VLOOKUP('Enrollment Form'!$B336,DeclMatrix!$A$8:$B$12,2,FALSE),FALSE))))","v":""},{"$f":"IF($A336=\"\",\"\",IF(VLOOKUP($G336,$H$11:$DO$1000,106,FALSE)=\"\",\"No\",IF(LEFT(VLOOKUP($G336,$H$11:$DO$1000,106,FALSE),3)=\"The\",EN336,VLOOKUP(VLOOKUP($G336,$H$11:$DO$1000,106,FALSE),DeclMatrix!$A$2:$F$5,VLOOKUP('Enrollment Form'!$B336,DeclMatrix!$A$8:$B$12,2,FALSE),FALSE))))","v":""},{"$f":"IF($A336=\"\",\"\",IF(VLOOKUP($G336,$H$11:$DO$1000,109,FALSE)=\"\",\"No\",IF(LEFT(VLOOKUP($G336,$H$11:$DO$1000,109,FALSE),3)=\"The\",EO336,VLOOKUP(VLOOKUP($G336,$H$11:$DO$1000,109,FALSE),DeclMatrix!$A$2:$F$5,VLOOKUP('Enrollment Form'!$B336,DeclMatrix!$A$8:$B$12,2,FALSE),FALSE))))","v":""},{"$f":"IF($A336=\"\",\"\",IF(VLOOKUP($G336,$H$11:$DO$1000,112,FALSE)=\"\",\"No\",IF(LEFT(VLOOKUP($G336,$H$11:$DO$1000,112,FALSE),3)=\"The\",EP336,VLOOKUP(VLOOKUP($G336,$H$11:$DO$1000,112,FALSE),DeclMatrix!$A$2:$F$5,VLOOKUP('Enrollment Form'!$B336,DeclMatrix!$A$8:$B$12,2,FALSE),FALSE))))","v":""},null,null,null,null,null,null,null,null,"",null,"","","","","","","","","","","",""]
["",null,null,null,null,null,"","",null,null,null,null,null,null,null,null,null,null,null,null,null,null,null,null,null,null,"","","","",null,null,"",null,null,null,null,null,null,null,null,null,null,null,null,null,null,null,null,null,null,null,null,null,null,null,null,null,null,null,"","","",null,null,null,null,"","","","",null,null,null,null,null,null,null,null,null,null,null,null,null,null,null,null,null,null,null,null,null,null,null,null,null,null,null,null,null,null,null,null,null,null,null,null,null,null,null,null,null,null,null,null,null,null,null,null,null,null,null,null,"",{"$f":"IF($A340=\"\",\"\",IF(VLOOKUP($G340,$H$11:$DO$1000,103,FALSE)=\"\",\"No\",IF(LEFT(VLOOKUP($G340,$H$11:$DO$1000,103,FALSE),3)=\"The\",EM340,VLOOKUP(VLOOKUP($G340,$H$11:$DO$1000,103,FALSE),DeclMatrix!$A$2:$F$5,VLOOKUP('Enrollment Form'!$B340,DeclMatrix!$A$8:$B$12,2,FALSE),FALSE))))","v":""},{"$f":"IF($A340=\"\",\"\",IF(VLOOKUP($G340,$H$11:$DO$1000,106,FALSE)=\"\",\"No\",IF(LEFT(VLOOKUP($G340,$H$11:$DO$1000,106,FALSE),3)=\"The\",EN340,VLOOKUP(VLOOKUP($G340,$H$11:$DO$1000,106,FALSE),DeclMatrix!$A$2:$F$5,VLOOKUP('Enrollment Form'!$B340,DeclMatrix!$A$8:$B$12,2,FALSE),FALSE))))","v":""},{"$f":"IF($A340=\"\",\"\",IF(VLOOKUP($G340,$H$11:$DO$1000,109,FALSE)=\"\",\"No\",IF(LEFT(VLOOKUP($G340,$H$11:$DO$1000,109,FALSE),3)=\"The\",EO340,VLOOKUP(VLOOKUP($G340,$H$11:$DO$1000,109,FALSE),DeclMatrix!$A$2:$F$5,VLOOKUP('Enrollment Form'!$B340,DeclMatrix!$A$8:$B$12,2,FALSE),FALSE))))","v":""},{"$f":"IF($A340=\"\",\"\",IF(VLOOKUP($G340,$H$11:$DO$1000,112,FALSE)=\"\",\"No\",IF(LEFT(VLOOKUP($G340,$H$11:$DO$1000,112,FALSE),3)=\"The\",EP340,VLOOKUP(VLOOKUP($G340,$H$11:$DO$1000,112,FALSE),DeclMatrix!$A$2:$F$5,VLOOKUP('Enrollment Form'!$B340,DeclMatrix!$A$8:$B$12,2,FALSE),FALSE))))","v":""},null,null,null,null,null,null,null,null,"",null,"","","","","","","","","","","",""]
["",null,null,null,null,null,"","",null,null,null,null,null,null,null,null,null,null,null,null,null,null,null,null,null,null,"","","","",null,null,"",null,null,null,null,null,null,null,null,null,null,null,null,null,null,null,null,null,null,null,null,null,null,null,null,null,null,null,"","","",null,null,null,null,"","","","",null,null,null,null,null,null,null,null,null,null,null,null,null,null,null,null,null,null,null,null,null,null,null,null,null,null,null,null,null,null,null,null,null,null,null,null,null,null,null,null,null,null,null,null,null,null,null,null,null,null,null,null,"",{"$f":"IF($A342=\"\",\"\",IF(VLOOKUP($G342,$H$11:$DO$1000,103,FALSE)=\"\",\"No\",IF(LEFT(VLOOKUP($G342,$H$11:$DO$1000,103,FALSE),3)=\"The\",EM342,VLOOKUP(VLOOKUP($G342,$H$11:$DO$1000,103,FALSE),DeclMatrix!$A$2:$F$5,VLOOKUP('Enrollment Form'!$B342,DeclMatrix!$A$8:$B$12,2,FALSE),FALSE))))","v":""},{"$f":"IF($A342=\"\",\"\",IF(VLOOKUP($G342,$H$11:$DO$1000,106,FALSE)=\"\",\"No\",IF(LEFT(VLOOKUP($G342,$H$11:$DO$1000,106,FALSE),3)=\"The\",EN342,VLOOKUP(VLOOKUP($G342,$H$11:$DO$1000,106,FALSE),DeclMatrix!$A$2:$F$5,VLOOKUP('Enrollment Form'!$B342,DeclMatrix!$A$8:$B$12,2,FALSE),FALSE))))","v":""},{"$f":"IF($A342=\"\",\"\",IF(VLOOKUP($G342,$H$11:$DO$1000,109,FALSE)=\"\",\"No\",IF(LEFT(VLOOKUP($G342,$H$11:$DO$1000,109,FALSE),3)=\"The\",EO342,VLOOKUP(VLOOKUP($G342,$H$11:$DO$1000,109,FALSE),DeclMatrix!$A$2:$F$5,VLOOKUP('Enrollment Form'!$B342,DeclMatrix!$A$8:$B$12,2,FALSE),FALSE))))","v":""},{"$f":"IF($A342=\"\",\"\",IF(VLOOKUP($G342,$H$11:$DO$1000,112,FALSE)=\"\",\"No\",IF(LEFT(VLOOKUP($G342,$H$11:$DO$1000,112,FALSE),3)=\"The\",EP342,VLOOKUP(VLOOKUP($G342,$H$11:$DO$1000,112,FALSE),DeclMatrix!$A$2:$F$5,VLOOKUP('Enrollment Form'!$B342,DeclMatrix!$A$8:$B$12,2,FALSE),FALSE))))","v":""},null,null,null,null,null,null,null,null,"",null,"","","","","","","","","","","",""]
["",null,null,null,null,null,"","",null,null,null,null,null,null,null,null,null,null,null,null,null,null,null,null,null,null,"","","","",null,null,"",null,null,null,null,null,null,null,null,null,null,null,null,null,null,null,null,null,null,null,null,null,null,null,null,null,null,null,"","","",null,null,null,null,"","","","",null,null,null,null,null,null,null,null,null,null,null,null,null,null,null,null,null,null,null,null,null,null,null,null,null,null,null,null,null,null,null,null,null,null,null,null,null,null,null,null,null,null,null,null,null,null,null,null,null,null,null,null,"",{"$f":"IF($A345=\"\",\"\",IF(VLOOKUP($G345,$H$11:$DO$1000,103,FALSE)=\"\",\"No\",IF(LEFT(VLOOKUP($G345,$H$11:$DO$1000,103,FALSE),3)=\"The\",EM345,VLOOKUP(VLOOKUP($G345,$H$11:$DO$1000,103,FALSE),DeclMatrix!$A$2:$F$5,VLOOKUP('Enrollment Form'!$B345,DeclMatrix!$A$8:$B$12,2,FALSE),FALSE))))","v":""},{"$f":"IF($A345=\"\",\"\",IF(VLOOKUP($G345,$H$11:$DO$1000,106,FALSE)=\"\",\"No\",IF(LEFT(VLOOKUP($G345,$H$11:$DO$1000,106,FALSE),3)=\"The\",EN345,VLOOKUP(VLOOKUP($G345,$H$11:$DO$1000,106,FALSE),DeclMatrix!$A$2:$F$5,VLOOKUP('Enrollment Form'!$B345,DeclMatrix!$A$8:$B$12,2,FALSE),FALSE))))","v":""},{"$f":"IF($A345=\"\",\"\",IF(VLOOKUP($G345,$H$11:$DO$1000,109,FALSE)=\"\",\"No\",IF(LEFT(VLOOKUP($G345,$H$11:$DO$1000,109,FALSE),3)=\"The\",EO345,VLOOKUP(VLOOKUP($G345,$H$11:$DO$1000,109,FALSE),DeclMatrix!$A$2:$F$5,VLOOKUP('Enrollment Form'!$B345,DeclMatrix!$A$8:$B$12,2,FALSE),FALSE))))","v":""},{"$f":"IF($A345=\"\",\"\",IF(VLOOKUP($G345,$H$11:$DO$1000,112,FALSE)=\"\",\"No\",IF(LEFT(VLOOKUP($G345,$H$11:$DO$1000,112,FALSE),3)=\"The\",EP345,VLOOKUP(VLOOKUP($G345,$H$11:$DO$1000,112,FALSE),DeclMatrix!$A$2:$F$5,VLOOKUP('Enrollment Form'!$B345,DeclMatrix!$A$8:$B$12,2,FALSE),FALSE))))","v":""},null,null,null,null,null,null,null,null,"",null,"","","","","","","","","","","",""]
["",null,null,null,null,null,"","",null,null,null,null,null,null,null,null,null,null,null,null,null,null,null,null,null,null,"","","","",null,null,"",null,null,null,null,null,null,null,null,null,null,null,null,null,null,null,null,null,null,null,null,null,null,null,null,null,null,null,"","","",null,null,null,null,"","","","",null,null,null,null,null,null,null,null,null,null,null,null,null,null,null,null,null,null,null,null,null,null,null,null,null,null,null,null,null,null,null,null,null,null,null,null,null,null,null,null,null,null,null,null,null,null,null,null,null,null,null,null,"",{"$f":"IF($A349=\"\",\"\",IF(VLOOKUP($G349,$H$11:$DO$1000,103,FALSE)=\"\",\"No\",IF(LEFT(VLOOKUP($G349,$H$11:$DO$1000,103,FALSE),3)=\"The\",EM349,VLOOKUP(VLOOKUP($G349,$H$11:$DO$1000,103,FALSE),DeclMatrix!$A$2:$F$5,VLOOKUP('Enrollment Form'!$B349,DeclMatrix!$A$8:$B$12,2,FALSE),FALSE))))","v":""},{"$f":"IF($A349=\"\",\"\",IF(VLOOKUP($G349,$H$11:$DO$1000,106,FALSE)=\"\",\"No\",IF(LEFT(VLOOKUP($G349,$H$11:$DO$1000,106,FALSE),3)=\"The\",EN349,VLOOKUP(VLOOKUP($G349,$H$11:$DO$1000,106,FALSE),DeclMatrix!$A$2:$F$5,VLOOKUP('Enrollment Form'!$B349,DeclMatrix!$A$8:$B$12,2,FALSE),FALSE))))","v":""},{"$f":"IF($A349=\"\",\"\",IF(VLOOKUP($G349,$H$11:$DO$1000,109,FALSE)=\"\",\"No\",IF(LEFT(VLOOKUP($G349,$H$11:$DO$1000,109,FALSE),3)=\"The\",EO349,VLOOKUP(VLOOKUP($G349,$H$11:$DO$1000,109,FALSE),DeclMatrix!$A$2:$F$5,VLOOKUP('Enrollment Form'!$B349,DeclMatrix!$A$8:$B$12,2,FALSE),FALSE))))","v":""},{"$f":"IF($A349=\"\",\"\",IF(VLOOKUP($G349,$H$11:$DO$1000,112,FALSE)=\"\",\"No\",IF(LEFT(VLOOKUP($G349,$H$11:$DO$1000,112,FALSE),3)=\"The\",EP349,VLOOKUP(VLOOKUP($G349,$H$11:$DO$1000,112,FALSE),DeclMatrix!$A$2:$F$5,VLOOKUP('Enrollment Form'!$B349,DeclMatrix!$A$8:$B$12,2,FALSE),FALSE))))","v":""},null,null,null,null,null,null,null,null,"",null,"","","","","","","","","","","",""]
["",null,null,null,null,null,"","",null,null,null,null,null,null,null,null,null,null,null,null,null,null,null,null,null,null,"","","","",null,null,"",null,null,null,null,null,null,null,null,null,null,null,null,null,null,null,null,null,null,null,null,null,null,null,null,null,null,null,"","","",null,null,null,null,"","","","",null,null,null,null,null,null,null,null,null,null,null,null,null,null,null,null,null,null,null,null,null,null,null,null,null,null,null,null,null,null,null,null,null,null,null,null,null,null,null,null,null,null,null,null,null,null,null,null,null,null,null,null,"",{"$f":"IF($A351=\"\",\"\",IF(VLOOKUP($G351,$H$11:$DO$1000,103,FALSE)=\"\",\"No\",IF(LEFT(VLOOKUP($G351,$H$11:$DO$1000,103,FALSE),3)=\"The\",EM351,VLOOKUP(VLOOKUP($G351,$H$11:$DO$1000,103,FALSE),DeclMatrix!$A$2:$F$5,VLOOKUP('Enrollment Form'!$B351,DeclMatrix!$A$8:$B$12,2,FALSE),FALSE))))","v":""},{"$f":"IF($A351=\"\",\"\",IF(VLOOKUP($G351,$H$11:$DO$1000,106,FALSE)=\"\",\"No\",IF(LEFT(VLOOKUP($G351,$H$11:$DO$1000,106,FALSE),3)=\"The\",EN351,VLOOKUP(VLOOKUP($G351,$H$11:$DO$1000,106,FALSE),DeclMatrix!$A$2:$F$5,VLOOKUP('Enrollment Form'!$B351,DeclMatrix!$A$8:$B$12,2,FALSE),FALSE))))","v":""},{"$f":"IF($A351=\"\",\"\",IF(VLOOKUP($G351,$H$11:$DO$1000,109,FALSE)=\"\",\"No\",IF(LEFT(VLOOKUP($G351,$H$11:$DO$1000,109,FALSE),3)=\"The\",EO351,VLOOKUP(VLOOKUP($G351,$H$11:$DO$1000,109,FALSE),DeclMatrix!$A$2:$F$5,VLOOKUP('Enrollment Form'!$B351,DeclMatrix!$A$8:$B$12,2,FALSE),FALSE))))","v":""},{"$f":"IF($A351=\"\",\"\",IF(VLOOKUP($G351,$H$11:$DO$1000,112,FALSE)=\"\",\"No\",IF(LEFT(VLOOKUP($G351,$H$11:$DO$1000,112,FALSE),3)=\"The\",EP351,VLOOKUP(VLOOKUP($G351,$H$11:$DO$1000,112,FALSE),DeclMatrix!$A$2:$F$5,VLOOKUP('Enrollment Form'!$B351,DeclMatrix!$A$8:$B$12,2,FALSE),FALSE))))","v":""},null,null,null,null,null,null,null,null,"",null,"","","","","","","","","","","",""]
["",null,null,null,null,null,"","",null,null,null,null,null,null,null,null,null,null,null,null,null,null,null,null,null,null,"","","","",null,null,"",null,null,null,null,null,null,null,null,null,null,null,null,null,null,null,null,null,null,null,null,null,null,null,null,null,null,null,"","","",null,null,null,null,"","","","",null,null,null,null,null,null,null,null,null,null,null,null,null,null,null,null,null,null,null,null,null,null,null,null,null,null,null,null,null,null,null,null,null,null,null,null,null,null,null,null,null,null,null,null,null,null,null,null,null,null,null,null,"",{"$f":"IF($A352=\"\",\"\",IF(VLOOKUP($G352,$H$11:$DO$1000,103,FALSE)=\"\",\"No\",IF(LEFT(VLOOKUP($G352,$H$11:$DO$1000,103,FALSE),3)=\"The\",EM352,VLOOKUP(VLOOKUP($G352,$H$11:$DO$1000,103,FALSE),DeclMatrix!$A$2:$F$5,VLOOKUP('Enrollment Form'!$B352,DeclMatrix!$A$8:$B$12,2,FALSE),FALSE))))","v":""},{"$f":"IF($A352=\"\",\"\",IF(VLOOKUP($G352,$H$11:$DO$1000,106,FALSE)=\"\",\"No\",IF(LEFT(VLOOKUP($G352,$H$11:$DO$1000,106,FALSE),3)=\"The\",EN352,VLOOKUP(VLOOKUP($G352,$H$11:$DO$1000,106,FALSE),DeclMatrix!$A$2:$F$5,VLOOKUP('Enrollment Form'!$B352,DeclMatrix!$A$8:$B$12,2,FALSE),FALSE))))","v":""},{"$f":"IF($A352=\"\",\"\",IF(VLOOKUP($G352,$H$11:$DO$1000,109,FALSE)=\"\",\"No\",IF(LEFT(VLOOKUP($G352,$H$11:$DO$1000,109,FALSE),3)=\"The\",EO352,VLOOKUP(VLOOKUP($G352,$H$11:$DO$1000,109,FALSE),DeclMatrix!$A$2:$F$5,VLOOKUP('Enrollment Form'!$B352,DeclMatrix!$A$8:$B$12,2,FALSE),FALSE))))","v":""},{"$f":"IF($A352=\"\",\"\",IF(VLOOKUP($G352,$H$11:$DO$1000,112,FALSE)=\"\",\"No\",IF(LEFT(VLOOKUP($G352,$H$11:$DO$1000,112,FALSE),3)=\"The\",EP352,VLOOKUP(VLOOKUP($G352,$H$11:$DO$1000,112,FALSE),DeclMatrix!$A$2:$F$5,VLOOKUP('Enrollment Form'!$B352,DeclMatrix!$A$8:$B$12,2,FALSE),FALSE))))","v":""},null,null,null,null,null,null,null,null,"",null,"","","","","","","","","","","",""]
["",null,null,null,null,null,"","",null,null,null,null,null,null,null,null,null,null,null,null,null,null,null,null,null,null,"","","","",null,null,"",null,null,null,null,null,null,null,null,null,null,null,null,null,null,null,null,null,null,null,null,null,null,null,null,null,null,null,"","","",null,null,null,null,"","","","",null,null,null,null,null,null,null,null,null,null,null,null,null,null,null,null,null,null,null,null,null,null,null,null,null,null,null,null,null,null,null,null,null,null,null,null,null,null,null,null,null,null,null,null,null,null,null,null,null,null,null,null,"",{"$f":"IF($A355=\"\",\"\",IF(VLOOKUP($G355,$H$11:$DO$1000,103,FALSE)=\"\",\"No\",IF(LEFT(VLOOKUP($G355,$H$11:$DO$1000,103,FALSE),3)=\"The\",EM355,VLOOKUP(VLOOKUP($G355,$H$11:$DO$1000,103,FALSE),DeclMatrix!$A$2:$F$5,VLOOKUP('Enrollment Form'!$B355,DeclMatrix!$A$8:$B$12,2,FALSE),FALSE))))","v":""},{"$f":"IF($A355=\"\",\"\",IF(VLOOKUP($G355,$H$11:$DO$1000,106,FALSE)=\"\",\"No\",IF(LEFT(VLOOKUP($G355,$H$11:$DO$1000,106,FALSE),3)=\"The\",EN355,VLOOKUP(VLOOKUP($G355,$H$11:$DO$1000,106,FALSE),DeclMatrix!$A$2:$F$5,VLOOKUP('Enrollment Form'!$B355,DeclMatrix!$A$8:$B$12,2,FALSE),FALSE))))","v":""},{"$f":"IF($A355=\"\",\"\",IF(VLOOKUP($G355,$H$11:$DO$1000,109,FALSE)=\"\",\"No\",IF(LEFT(VLOOKUP($G355,$H$11:$DO$1000,109,FALSE),3)=\"The\",EO355,VLOOKUP(VLOOKUP($G355,$H$11:$DO$1000,109,FALSE),DeclMatrix!$A$2:$F$5,VLOOKUP('Enrollment Form'!$B355,DeclMatrix!$A$8:$B$12,2,FALSE),FALSE))))","v":""},{"$f":"IF($A355=\"\",\"\",IF(VLOOKUP($G355,$H$11:$DO$1000,112,FALSE)=\"\",\"No\",IF(LEFT(VLOOKUP($G355,$H$11:$DO$1000,112,FALSE),3)=\"The\",EP355,VLOOKUP(VLOOKUP($G355,$H$11:$DO$1000,112,FALSE),DeclMatrix!$A$2:$F$5,VLOOKUP('Enrollment Form'!$B355,DeclMatrix!$A$8:$B$12,2,FALSE),FALSE))))","v":""},null,null,null,null,null,null,null,null,"",null,"","","","","","","","","","","",""]
["",null,null,null,null,null,"","",null,null,null,null,null,null,null,null,null,null,null,null,null,null,null,null,null,null,"","","","",null,null,"",null,null,null,null,null,null,null,null,null,null,null,null,null,null,null,null,null,null,null,null,null,null,null,null,null,null,null,"","","",null,null,null,null,"","","","",null,null,null,null,null,null,null,null,null,null,null,null,null,null,null,null,null,null,null,null,null,null,null,null,null,null,null,null,null,null,null,null,null,null,null,null,null,null,null,null,null,null,null,null,null,null,null,null,null,null,null,null,"",{"$f":"IF($A358=\"\",\"\",IF(VLOOKUP($G358,$H$11:$DO$1000,103,FALSE)=\"\",\"No\",IF(LEFT(VLOOKUP($G358,$H$11:$DO$1000,103,FALSE),3)=\"The\",EM358,VLOOKUP(VLOOKUP($G358,$H$11:$DO$1000,103,FALSE),DeclMatrix!$A$2:$F$5,VLOOKUP('Enrollment Form'!$B358,DeclMatrix!$A$8:$B$12,2,FALSE),FALSE))))","v":""},{"$f":"IF($A358=\"\",\"\",IF(VLOOKUP($G358,$H$11:$DO$1000,106,FALSE)=\"\",\"No\",IF(LEFT(VLOOKUP($G358,$H$11:$DO$1000,106,FALSE),3)=\"The\",EN358,VLOOKUP(VLOOKUP($G358,$H$11:$DO$1000,106,FALSE),DeclMatrix!$A$2:$F$5,VLOOKUP('Enrollment Form'!$B358,DeclMatrix!$A$8:$B$12,2,FALSE),FALSE))))","v":""},{"$f":"IF($A358=\"\",\"\",IF(VLOOKUP($G358,$H$11:$DO$1000,109,FALSE)=\"\",\"No\",IF(LEFT(VLOOKUP($G358,$H$11:$DO$1000,109,FALSE),3)=\"The\",EO358,VLOOKUP(VLOOKUP($G358,$H$11:$DO$1000,109,FALSE),DeclMatrix!$A$2:$F$5,VLOOKUP('Enrollment Form'!$B358,DeclMatrix!$A$8:$B$12,2,FALSE),FALSE))))","v":""},{"$f":"IF($A358=\"\",\"\",IF(VLOOKUP($G358,$H$11:$DO$1000,112,FALSE)=\"\",\"No\",IF(LEFT(VLOOKUP($G358,$H$11:$DO$1000,112,FALSE),3)=\"The\",EP358,VLOOKUP(VLOOKUP($G358,$H$11:$DO$1000,112,FALSE),DeclMatrix!$A$2:$F$5,VLOOKUP('Enrollment Form'!$B358,DeclMatrix!$A$8:$B$12,2,FALSE),FALSE))))","v":""},null,null,null,null,null,null,null,null,"",null,"","","","","","","","","","","",""]
["",null,null,null,null,null,"","",null,null,null,null,null,null,null,null,null,null,null,null,null,null,null,null,null,null,"","","","",null,null,"",null,null,null,null,null,null,null,null,null,null,null,null,null,null,null,null,null,null,null,null,null,null,null,null,null,null,null,"","","",null,null,null,null,"","","","",null,null,null,null,null,null,null,null,null,null,null,null,null,null,null,null,null,null,null,null,null,null,null,null,null,null,null,null,null,null,null,null,null,null,null,null,null,null,null,null,null,null,null,null,null,null,null,null,null,null,null,null,"",{"$f":"IF($A362=\"\",\"\",IF(VLOOKUP($G362,$H$11:$DO$1000,103,FALSE)=\"\",\"No\",IF(LEFT(VLOOKUP($G362,$H$11:$DO$1000,103,FALSE),3)=\"The\",EM362,VLOOKUP(VLOOKUP($G362,$H$11:$DO$1000,103,FALSE),DeclMatrix!$A$2:$F$5,VLOOKUP('Enrollment Form'!$B362,DeclMatrix!$A$8:$B$12,2,FALSE),FALSE))))","v":""},{"$f":"IF($A362=\"\",\"\",IF(VLOOKUP($G362,$H$11:$DO$1000,106,FALSE)=\"\",\"No\",IF(LEFT(VLOOKUP($G362,$H$11:$DO$1000,106,FALSE),3)=\"The\",EN362,VLOOKUP(VLOOKUP($G362,$H$11:$DO$1000,106,FALSE),DeclMatrix!$A$2:$F$5,VLOOKUP('Enrollment Form'!$B362,DeclMatrix!$A$8:$B$12,2,FALSE),FALSE))))","v":""},{"$f":"IF($A362=\"\",\"\",IF(VLOOKUP($G362,$H$11:$DO$1000,109,FALSE)=\"\",\"No\",IF(LEFT(VLOOKUP($G362,$H$11:$DO$1000,109,FALSE),3)=\"The\",EO362,VLOOKUP(VLOOKUP($G362,$H$11:$DO$1000,109,FALSE),DeclMatrix!$A$2:$F$5,VLOOKUP('Enrollment Form'!$B362,DeclMatrix!$A$8:$B$12,2,FALSE),FALSE))))","v":""},{"$f":"IF($A362=\"\",\"\",IF(VLOOKUP($G362,$H$11:$DO$1000,112,FALSE)=\"\",\"No\",IF(LEFT(VLOOKUP($G362,$H$11:$DO$1000,112,FALSE),3)=\"The\",EP362,VLOOKUP(VLOOKUP($G362,$H$11:$DO$1000,112,FALSE),DeclMatrix!$A$2:$F$5,VLOOKUP('Enrollment Form'!$B362,DeclMatrix!$A$8:$B$12,2,FALSE),FALSE))))","v":""},null,null,null,null,null,null,null,null,"",null,"","","","","","","","","","","",""]
["",null,null,null,null,null,"","",null,null,null,null,null,null,null,null,null,null,null,null,null,null,null,null,null,null,"","","","",null,null,"",null,null,null,null,null,null,null,null,null,null,null,null,null,null,null,null,null,null,null,null,null,null,null,null,null,null,null,"","","",null,null,null,null,"","","","",null,null,null,null,null,null,null,null,null,null,null,null,null,null,null,null,null,null,null,null,null,null,null,null,null,null,null,null,null,null,null,null,null,null,null,null,null,null,null,null,null,null,null,null,null,null,null,null,null,null,null,null,"",{"$f":"IF($A364=\"\",\"\",IF(VLOOKUP($G364,$H$11:$DO$1000,103,FALSE)=\"\",\"No\",IF(LEFT(VLOOKUP($G364,$H$11:$DO$1000,103,FALSE),3)=\"The\",EM364,VLOOKUP(VLOOKUP($G364,$H$11:$DO$1000,103,FALSE),DeclMatrix!$A$2:$F$5,VLOOKUP('Enrollment Form'!$B364,DeclMatrix!$A$8:$B$12,2,FALSE),FALSE))))","v":""},{"$f":"IF($A364=\"\",\"\",IF(VLOOKUP($G364,$H$11:$DO$1000,106,FALSE)=\"\",\"No\",IF(LEFT(VLOOKUP($G364,$H$11:$DO$1000,106,FALSE),3)=\"The\",EN364,VLOOKUP(VLOOKUP($G364,$H$11:$DO$1000,106,FALSE),DeclMatrix!$A$2:$F$5,VLOOKUP('Enrollment Form'!$B364,DeclMatrix!$A$8:$B$12,2,FALSE),FALSE))))","v":""},{"$f":"IF($A364=\"\",\"\",IF(VLOOKUP($G364,$H$11:$DO$1000,109,FALSE)=\"\",\"No\",IF(LEFT(VLOOKUP($G364,$H$11:$DO$1000,109,FALSE),3)=\"The\",EO364,VLOOKUP(VLOOKUP($G364,$H$11:$DO$1000,109,FALSE),DeclMatrix!$A$2:$F$5,VLOOKUP('Enrollment Form'!$B364,DeclMatrix!$A$8:$B$12,2,FALSE),FALSE))))","v":""},{"$f":"IF($A364=\"\",\"\",IF(VLOOKUP($G364,$H$11:$DO$1000,112,FALSE)=\"\",\"No\",IF(LEFT(VLOOKUP($G364,$H$11:$DO$1000,112,FALSE),3)=\"The\",EP364,VLOOKUP(VLOOKUP($G364,$H$11:$DO$1000,112,FALSE),DeclMatrix!$A$2:$F$5,VLOOKUP('Enrollment Form'!$B364,DeclMatrix!$A$8:$B$12,2,FALSE),FALSE))))","v":""},null,null,null,null,null,null,null,null,"",null,"","","","","","","","","","","",""]
["",null,null,null,null,null,"","",null,null,null,null,null,null,null,null,null,null,null,null,null,null,null,null,null,null,"","","","",null,null,"",null,null,null,null,null,null,null,null,null,null,null,null,null,null,null,null,null,null,null,null,null,null,null,null,null,null,null,"","","",null,null,null,null,"","","","",null,null,null,null,null,null,null,null,null,null,null,null,null,null,null,null,null,null,null,null,null,null,null,null,null,null,null,null,null,null,null,null,null,null,null,null,null,null,null,null,null,null,null,null,null,null,null,null,null,null,null,null,"",{"$f":"IF($A368=\"\",\"\",IF(VLOOKUP($G368,$H$11:$DO$1000,103,FALSE)=\"\",\"No\",IF(LEFT(VLOOKUP($G368,$H$11:$DO$1000,103,FALSE),3)=\"The\",EM368,VLOOKUP(VLOOKUP($G368,$H$11:$DO$1000,103,FALSE),DeclMatrix!$A$2:$F$5,VLOOKUP('Enrollment Form'!$B368,DeclMatrix!$A$8:$B$12,2,FALSE),FALSE))))","v":""},{"$f":"IF($A368=\"\",\"\",IF(VLOOKUP($G368,$H$11:$DO$1000,106,FALSE)=\"\",\"No\",IF(LEFT(VLOOKUP($G368,$H$11:$DO$1000,106,FALSE),3)=\"The\",EN368,VLOOKUP(VLOOKUP($G368,$H$11:$DO$1000,106,FALSE),DeclMatrix!$A$2:$F$5,VLOOKUP('Enrollment Form'!$B368,DeclMatrix!$A$8:$B$12,2,FALSE),FALSE))))","v":""},{"$f":"IF($A368=\"\",\"\",IF(VLOOKUP($G368,$H$11:$DO$1000,109,FALSE)=\"\",\"No\",IF(LEFT(VLOOKUP($G368,$H$11:$DO$1000,109,FALSE),3)=\"The\",EO368,VLOOKUP(VLOOKUP($G368,$H$11:$DO$1000,109,FALSE),DeclMatrix!$A$2:$F$5,VLOOKUP('Enrollment Form'!$B368,DeclMatrix!$A$8:$B$12,2,FALSE),FALSE))))","v":""},{"$f":"IF($A368=\"\",\"\",IF(VLOOKUP($G368,$H$11:$DO$1000,112,FALSE)=\"\",\"No\",IF(LEFT(VLOOKUP($G368,$H$11:$DO$1000,112,FALSE),3)=\"The\",EP368,VLOOKUP(VLOOKUP($G368,$H$11:$DO$1000,112,FALSE),DeclMatrix!$A$2:$F$5,VLOOKUP('Enrollment Form'!$B368,DeclMatrix!$A$8:$B$12,2,FALSE),FALSE))))","v":""},null,null,null,null,null,null,null,null,"",null,"","","","","","","","","","","",""]
["",null,null,null,null,null,"","",null,null,null,null,null,null,null,null,null,null,null,null,null,null,null,null,null,null,"","","","",null,null,"",null,null,null,null,null,null,null,null,null,null,null,null,null,null,null,null,null,null,null,null,null,null,null,null,null,null,null,"","","",null,null,null,null,"","","","",null,null,null,null,null,null,null,null,null,null,null,null,null,null,null,null,null,null,null,null,null,null,null,null,null,null,null,null,null,null,null,null,null,null,null,null,null,null,null,null,null,null,null,null,null,null,null,null,null,null,null,null,"",{"$f":"IF($A371=\"\",\"\",IF(VLOOKUP($G371,$H$11:$DO$1000,103,FALSE)=\"\",\"No\",IF(LEFT(VLOOKUP($G371,$H$11:$DO$1000,103,FALSE),3)=\"The\",EM371,VLOOKUP(VLOOKUP($G371,$H$11:$DO$1000,103,FALSE),DeclMatrix!$A$2:$F$5,VLOOKUP('Enrollment Form'!$B371,DeclMatrix!$A$8:$B$12,2,FALSE),FALSE))))","v":""},{"$f":"IF($A371=\"\",\"\",IF(VLOOKUP($G371,$H$11:$DO$1000,106,FALSE)=\"\",\"No\",IF(LEFT(VLOOKUP($G371,$H$11:$DO$1000,106,FALSE),3)=\"The\",EN371,VLOOKUP(VLOOKUP($G371,$H$11:$DO$1000,106,FALSE),DeclMatrix!$A$2:$F$5,VLOOKUP('Enrollment Form'!$B371,DeclMatrix!$A$8:$B$12,2,FALSE),FALSE))))","v":""},{"$f":"IF($A371=\"\",\"\",IF(VLOOKUP($G371,$H$11:$DO$1000,109,FALSE)=\"\",\"No\",IF(LEFT(VLOOKUP($G371,$H$11:$DO$1000,109,FALSE),3)=\"The\",EO371,VLOOKUP(VLOOKUP($G371,$H$11:$DO$1000,109,FALSE),DeclMatrix!$A$2:$F$5,VLOOKUP('Enrollment Form'!$B371,DeclMatrix!$A$8:$B$12,2,FALSE),FALSE))))","v":""},{"$f":"IF($A371=\"\",\"\",IF(VLOOKUP($G371,$H$11:$DO$1000,112,FALSE)=\"\",\"No\",IF(LEFT(VLOOKUP($G371,$H$11:$DO$1000,112,FALSE),3)=\"The\",EP371,VLOOKUP(VLOOKUP($G371,$H$11:$DO$1000,112,FALSE),DeclMatrix!$A$2:$F$5,VLOOKUP('Enrollment Form'!$B371,DeclMatrix!$A$8:$B$12,2,FALSE),FALSE))))","v":""},null,null,null,null,null,null,null,null,"",null,"","","","","","","","","","","",""]
["",null,null,null,null,null,"","",null,null,null,null,null,null,null,null,null,null,null,null,null,null,null,null,null,null,"","","","",null,null,"",null,null,null,null,null,null,null,null,null,null,null,null,null,null,null,null,null,null,null,null,null,null,null,null,null,null,null,"","","",null,null,null,null,"","","","",null,null,null,null,null,null,null,null,null,null,null,null,null,null,null,null,null,null,null,null,null,null,null,null,null,null,null,null,null,null,null,null,null,null,null,null,null,null,null,null,null,null,null,null,null,null,null,null,null,null,null,null,"",{"$f":"IF($A373=\"\",\"\",IF(VLOOKUP($G373,$H$11:$DO$1000,103,FALSE)=\"\",\"No\",IF(LEFT(VLOOKUP($G373,$H$11:$DO$1000,103,FALSE),3)=\"The\",EM373,VLOOKUP(VLOOKUP($G373,$H$11:$DO$1000,103,FALSE),DeclMatrix!$A$2:$F$5,VLOOKUP('Enrollment Form'!$B373,DeclMatrix!$A$8:$B$12,2,FALSE),FALSE))))","v":""},{"$f":"IF($A373=\"\",\"\",IF(VLOOKUP($G373,$H$11:$DO$1000,106,FALSE)=\"\",\"No\",IF(LEFT(VLOOKUP($G373,$H$11:$DO$1000,106,FALSE),3)=\"The\",EN373,VLOOKUP(VLOOKUP($G373,$H$11:$DO$1000,106,FALSE),DeclMatrix!$A$2:$F$5,VLOOKUP('Enrollment Form'!$B373,DeclMatrix!$A$8:$B$12,2,FALSE),FALSE))))","v":""},{"$f":"IF($A373=\"\",\"\",IF(VLOOKUP($G373,$H$11:$DO$1000,109,FALSE)=\"\",\"No\",IF(LEFT(VLOOKUP($G373,$H$11:$DO$1000,109,FALSE),3)=\"The\",EO373,VLOOKUP(VLOOKUP($G373,$H$11:$DO$1000,109,FALSE),DeclMatrix!$A$2:$F$5,VLOOKUP('Enrollment Form'!$B373,DeclMatrix!$A$8:$B$12,2,FALSE),FALSE))))","v":""},{"$f":"IF($A373=\"\",\"\",IF(VLOOKUP($G373,$H$11:$DO$1000,112,FALSE)=\"\",\"No\",IF(LEFT(VLOOKUP($G373,$H$11:$DO$1000,112,FALSE),3)=\"The\",EP373,VLOOKUP(VLOOKUP($G373,$H$11:$DO$1000,112,FALSE),DeclMatrix!$A$2:$F$5,VLOOKUP('Enrollment Form'!$B373,DeclMatrix!$A$8:$B$12,2,FALSE),FALSE))))","v":""},null,null,null,null,null,null,null,null,"",null,"","","","","","","","","","","",""]
["",null,null,null,null,null,"","",null,null,null,null,null,null,null,null,null,null,null,null,null,null,null,null,null,null,"","","","",null,null,"",null,null,null,null,null,null,null,null,null,null,null,null,null,null,null,null,null,null,null,null,null,null,null,null,null,null,null,"","","",null,null,null,null,"","","","",null,null,null,null,null,null,null,null,null,null,null,null,null,null,null,null,null,null,null,null,null,null,null,null,null,null,null,null,null,null,null,null,null,null,null,null,null,null,null,null,null,null,null,null,null,null,null,null,null,null,null,null,"",{"$f":"IF($A374=\"\",\"\",IF(VLOOKUP($G374,$H$11:$DO$1000,103,FALSE)=\"\",\"No\",IF(LEFT(VLOOKUP($G374,$H$11:$DO$1000,103,FALSE),3)=\"The\",EM374,VLOOKUP(VLOOKUP($G374,$H$11:$DO$1000,103,FALSE),DeclMatrix!$A$2:$F$5,VLOOKUP('Enrollment Form'!$B374,DeclMatrix!$A$8:$B$12,2,FALSE),FALSE))))","v":""},{"$f":"IF($A374=\"\",\"\",IF(VLOOKUP($G374,$H$11:$DO$1000,106,FALSE)=\"\",\"No\",IF(LEFT(VLOOKUP($G374,$H$11:$DO$1000,106,FALSE),3)=\"The\",EN374,VLOOKUP(VLOOKUP($G374,$H$11:$DO$1000,106,FALSE),DeclMatrix!$A$2:$F$5,VLOOKUP('Enrollment Form'!$B374,DeclMatrix!$A$8:$B$12,2,FALSE),FALSE))))","v":""},{"$f":"IF($A374=\"\",\"\",IF(VLOOKUP($G374,$H$11:$DO$1000,109,FALSE)=\"\",\"No\",IF(LEFT(VLOOKUP($G374,$H$11:$DO$1000,109,FALSE),3)=\"The\",EO374,VLOOKUP(VLOOKUP($G374,$H$11:$DO$1000,109,FALSE),DeclMatrix!$A$2:$F$5,VLOOKUP('Enrollment Form'!$B374,DeclMatrix!$A$8:$B$12,2,FALSE),FALSE))))","v":""},{"$f":"IF($A374=\"\",\"\",IF(VLOOKUP($G374,$H$11:$DO$1000,112,FALSE)=\"\",\"No\",IF(LEFT(VLOOKUP($G374,$H$11:$DO$1000,112,FALSE),3)=\"The\",EP374,VLOOKUP(VLOOKUP($G374,$H$11:$DO$1000,112,FALSE),DeclMatrix!$A$2:$F$5,VLOOKUP('Enrollment Form'!$B374,DeclMatrix!$A$8:$B$12,2,FALSE),FALSE))))","v":""},null,null,null,null,null,null,null,null,"",null,"","","","","","","","","","","",""]
["",null,null,null,null,null,"","",null,null,null,null,null,null,null,null,null,null,null,null,null,null,null,null,null,null,"","","","",null,null,"",null,null,null,null,null,null,null,null,null,null,null,null,null,null,null,null,null,null,null,null,null,null,null,null,null,null,null,"","","",null,null,null,null,"","","","",null,null,null,null,null,null,null,null,null,null,null,null,null,null,null,null,null,null,null,null,null,null,null,null,null,null,null,null,null,null,null,null,null,null,null,null,null,null,null,null,null,null,null,null,null,null,null,null,null,null,null,null,"",{"$f":"IF($A377=\"\",\"\",IF(VLOOKUP($G377,$H$11:$DO$1000,103,FALSE)=\"\",\"No\",IF(LEFT(VLOOKUP($G377,$H$11:$DO$1000,103,FALSE),3)=\"The\",EM377,VLOOKUP(VLOOKUP($G377,$H$11:$DO$1000,103,FALSE),DeclMatrix!$A$2:$F$5,VLOOKUP('Enrollment Form'!$B377,DeclMatrix!$A$8:$B$12,2,FALSE),FALSE))))","v":""},{"$f":"IF($A377=\"\",\"\",IF(VLOOKUP($G377,$H$11:$DO$1000,106,FALSE)=\"\",\"No\",IF(LEFT(VLOOKUP($G377,$H$11:$DO$1000,106,FALSE),3)=\"The\",EN377,VLOOKUP(VLOOKUP($G377,$H$11:$DO$1000,106,FALSE),DeclMatrix!$A$2:$F$5,VLOOKUP('Enrollment Form'!$B377,DeclMatrix!$A$8:$B$12,2,FALSE),FALSE))))","v":""},{"$f":"IF($A377=\"\",\"\",IF(VLOOKUP($G377,$H$11:$DO$1000,109,FALSE)=\"\",\"No\",IF(LEFT(VLOOKUP($G377,$H$11:$DO$1000,109,FALSE),3)=\"The\",EO377,VLOOKUP(VLOOKUP($G377,$H$11:$DO$1000,109,FALSE),DeclMatrix!$A$2:$F$5,VLOOKUP('Enrollment Form'!$B377,DeclMatrix!$A$8:$B$12,2,FALSE),FALSE))))","v":""},{"$f":"IF($A377=\"\",\"\",IF(VLOOKUP($G377,$H$11:$DO$1000,112,FALSE)=\"\",\"No\",IF(LEFT(VLOOKUP($G377,$H$11:$DO$1000,112,FALSE),3)=\"The\",EP377,VLOOKUP(VLOOKUP($G377,$H$11:$DO$1000,112,FALSE),DeclMatrix!$A$2:$F$5,VLOOKUP('Enrollment Form'!$B377,DeclMatrix!$A$8:$B$12,2,FALSE),FALSE))))","v":""},null,null,null,null,null,null,null,null,"",null,"","","","","","","","","","","",""]
["",null,null,null,null,null,"","",null,null,null,null,null,null,null,null,null,null,null,null,null,null,null,null,null,null,"","","","",null,null,"",null,null,null,null,null,null,null,null,null,null,null,null,null,null,null,null,null,null,null,null,null,null,null,null,null,null,null,"","","",null,null,null,null,"","","","",null,null,null,null,null,null,null,null,null,null,null,null,null,null,null,null,null,null,null,null,null,null,null,null,null,null,null,null,null,null,null,null,null,null,null,null,null,null,null,null,null,null,null,null,null,null,null,null,null,null,null,null,"",{"$f":"IF($A380=\"\",\"\",IF(VLOOKUP($G380,$H$11:$DO$1000,103,FALSE)=\"\",\"No\",IF(LEFT(VLOOKUP($G380,$H$11:$DO$1000,103,FALSE),3)=\"The\",EM380,VLOOKUP(VLOOKUP($G380,$H$11:$DO$1000,103,FALSE),DeclMatrix!$A$2:$F$5,VLOOKUP('Enrollment Form'!$B380,DeclMatrix!$A$8:$B$12,2,FALSE),FALSE))))","v":""},{"$f":"IF($A380=\"\",\"\",IF(VLOOKUP($G380,$H$11:$DO$1000,106,FALSE)=\"\",\"No\",IF(LEFT(VLOOKUP($G380,$H$11:$DO$1000,106,FALSE),3)=\"The\",EN380,VLOOKUP(VLOOKUP($G380,$H$11:$DO$1000,106,FALSE),DeclMatrix!$A$2:$F$5,VLOOKUP('Enrollment Form'!$B380,DeclMatrix!$A$8:$B$12,2,FALSE),FALSE))))","v":""},{"$f":"IF($A380=\"\",\"\",IF(VLOOKUP($G380,$H$11:$DO$1000,109,FALSE)=\"\",\"No\",IF(LEFT(VLOOKUP($G380,$H$11:$DO$1000,109,FALSE),3)=\"The\",EO380,VLOOKUP(VLOOKUP($G380,$H$11:$DO$1000,109,FALSE),DeclMatrix!$A$2:$F$5,VLOOKUP('Enrollment Form'!$B380,DeclMatrix!$A$8:$B$12,2,FALSE),FALSE))))","v":""},{"$f":"IF($A380=\"\",\"\",IF(VLOOKUP($G380,$H$11:$DO$1000,112,FALSE)=\"\",\"No\",IF(LEFT(VLOOKUP($G380,$H$11:$DO$1000,112,FALSE),3)=\"The\",EP380,VLOOKUP(VLOOKUP($G380,$H$11:$DO$1000,112,FALSE),DeclMatrix!$A$2:$F$5,VLOOKUP('Enrollment Form'!$B380,DeclMatrix!$A$8:$B$12,2,FALSE),FALSE))))","v":""},null,null,null,null,null,null,null,null,"",null,"","","","","","","","","","","",""]
["",null,null,null,null,null,"","",null,null,null,null,null,null,null,null,null,null,null,null,null,null,null,null,null,null,"","","","",null,null,"",null,null,null,null,null,null,null,null,null,null,null,null,null,null,null,null,null,null,null,null,null,null,null,null,null,null,null,"","","",null,null,null,null,"","","","",null,null,null,null,null,null,null,null,null,null,null,null,null,null,null,null,null,null,null,null,null,null,null,null,null,null,null,null,null,null,null,null,null,null,null,null,null,null,null,null,null,null,null,null,null,null,null,null,null,null,null,null,"",{"$f":"IF($A384=\"\",\"\",IF(VLOOKUP($G384,$H$11:$DO$1000,103,FALSE)=\"\",\"No\",IF(LEFT(VLOOKUP($G384,$H$11:$DO$1000,103,FALSE),3)=\"The\",EM384,VLOOKUP(VLOOKUP($G384,$H$11:$DO$1000,103,FALSE),DeclMatrix!$A$2:$F$5,VLOOKUP('Enrollment Form'!$B384,DeclMatrix!$A$8:$B$12,2,FALSE),FALSE))))","v":""},{"$f":"IF($A384=\"\",\"\",IF(VLOOKUP($G384,$H$11:$DO$1000,106,FALSE)=\"\",\"No\",IF(LEFT(VLOOKUP($G384,$H$11:$DO$1000,106,FALSE),3)=\"The\",EN384,VLOOKUP(VLOOKUP($G384,$H$11:$DO$1000,106,FALSE),DeclMatrix!$A$2:$F$5,VLOOKUP('Enrollment Form'!$B384,DeclMatrix!$A$8:$B$12,2,FALSE),FALSE))))","v":""},{"$f":"IF($A384=\"\",\"\",IF(VLOOKUP($G384,$H$11:$DO$1000,109,FALSE)=\"\",\"No\",IF(LEFT(VLOOKUP($G384,$H$11:$DO$1000,109,FALSE),3)=\"The\",EO384,VLOOKUP(VLOOKUP($G384,$H$11:$DO$1000,109,FALSE),DeclMatrix!$A$2:$F$5,VLOOKUP('Enrollment Form'!$B384,DeclMatrix!$A$8:$B$12,2,FALSE),FALSE))))","v":""},{"$f":"IF($A384=\"\",\"\",IF(VLOOKUP($G384,$H$11:$DO$1000,112,FALSE)=\"\",\"No\",IF(LEFT(VLOOKUP($G384,$H$11:$DO$1000,112,FALSE),3)=\"The\",EP384,VLOOKUP(VLOOKUP($G384,$H$11:$DO$1000,112,FALSE),DeclMatrix!$A$2:$F$5,VLOOKUP('Enrollment Form'!$B384,DeclMatrix!$A$8:$B$12,2,FALSE),FALSE))))","v":""},null,null,null,null,null,null,null,null,"",null,"","","","","","","","","","","",""]
["",null,null,null,null,null,"","",null,null,null,null,null,null,null,null,null,null,null,null,null,null,null,null,null,null,"","","","",null,null,"",null,null,null,null,null,null,null,null,null,null,null,null,null,null,null,null,null,null,null,null,null,null,null,null,null,null,null,"","","",null,null,null,null,"","","","",null,null,null,null,null,null,null,null,null,null,null,null,null,null,null,null,null,null,null,null,null,null,null,null,null,null,null,null,null,null,null,null,null,null,null,null,null,null,null,null,null,null,null,null,null,null,null,null,null,null,null,null,"",{"$f":"IF($A386=\"\",\"\",IF(VLOOKUP($G386,$H$11:$DO$1000,103,FALSE)=\"\",\"No\",IF(LEFT(VLOOKUP($G386,$H$11:$DO$1000,103,FALSE),3)=\"The\",EM386,VLOOKUP(VLOOKUP($G386,$H$11:$DO$1000,103,FALSE),DeclMatrix!$A$2:$F$5,VLOOKUP('Enrollment Form'!$B386,DeclMatrix!$A$8:$B$12,2,FALSE),FALSE))))","v":""},{"$f":"IF($A386=\"\",\"\",IF(VLOOKUP($G386,$H$11:$DO$1000,106,FALSE)=\"\",\"No\",IF(LEFT(VLOOKUP($G386,$H$11:$DO$1000,106,FALSE),3)=\"The\",EN386,VLOOKUP(VLOOKUP($G386,$H$11:$DO$1000,106,FALSE),DeclMatrix!$A$2:$F$5,VLOOKUP('Enrollment Form'!$B386,DeclMatrix!$A$8:$B$12,2,FALSE),FALSE))))","v":""},{"$f":"IF($A386=\"\",\"\",IF(VLOOKUP($G386,$H$11:$DO$1000,109,FALSE)=\"\",\"No\",IF(LEFT(VLOOKUP($G386,$H$11:$DO$1000,109,FALSE),3)=\"The\",EO386,VLOOKUP(VLOOKUP($G386,$H$11:$DO$1000,109,FALSE),DeclMatrix!$A$2:$F$5,VLOOKUP('Enrollment Form'!$B386,DeclMatrix!$A$8:$B$12,2,FALSE),FALSE))))","v":""},{"$f":"IF($A386=\"\",\"\",IF(VLOOKUP($G386,$H$11:$DO$1000,112,FALSE)=\"\",\"No\",IF(LEFT(VLOOKUP($G386,$H$11:$DO$1000,112,FALSE),3)=\"The\",EP386,VLOOKUP(VLOOKUP($G386,$H$11:$DO$1000,112,FALSE),DeclMatrix!$A$2:$F$5,VLOOKUP('Enrollment Form'!$B386,DeclMatrix!$A$8:$B$12,2,FALSE),FALSE))))","v":""},null,null,null,null,null,null,null,null,"",null,"","","","","","","","","","","",""]
["",null,null,null,null,null,"","",null,null,null,null,null,null,null,null,null,null,null,null,null,null,null,null,null,null,"","","","",null,null,"",null,null,null,null,null,null,null,null,null,null,null,null,null,null,null,null,null,null,null,null,null,null,null,null,null,null,null,"","","",null,null,null,null,"","","","",null,null,null,null,null,null,null,null,null,null,null,null,null,null,null,null,null,null,null,null,null,null,null,null,null,null,null,null,null,null,null,null,null,null,null,null,null,null,null,null,null,null,null,null,null,null,null,null,null,null,null,null,"",{"$f":"IF($A390=\"\",\"\",IF(VLOOKUP($G390,$H$11:$DO$1000,103,FALSE)=\"\",\"No\",IF(LEFT(VLOOKUP($G390,$H$11:$DO$1000,103,FALSE),3)=\"The\",EM390,VLOOKUP(VLOOKUP($G390,$H$11:$DO$1000,103,FALSE),DeclMatrix!$A$2:$F$5,VLOOKUP('Enrollment Form'!$B390,DeclMatrix!$A$8:$B$12,2,FALSE),FALSE))))","v":""},{"$f":"IF($A390=\"\",\"\",IF(VLOOKUP($G390,$H$11:$DO$1000,106,FALSE)=\"\",\"No\",IF(LEFT(VLOOKUP($G390,$H$11:$DO$1000,106,FALSE),3)=\"The\",EN390,VLOOKUP(VLOOKUP($G390,$H$11:$DO$1000,106,FALSE),DeclMatrix!$A$2:$F$5,VLOOKUP('Enrollment Form'!$B390,DeclMatrix!$A$8:$B$12,2,FALSE),FALSE))))","v":""},{"$f":"IF($A390=\"\",\"\",IF(VLOOKUP($G390,$H$11:$DO$1000,109,FALSE)=\"\",\"No\",IF(LEFT(VLOOKUP($G390,$H$11:$DO$1000,109,FALSE),3)=\"The\",EO390,VLOOKUP(VLOOKUP($G390,$H$11:$DO$1000,109,FALSE),DeclMatrix!$A$2:$F$5,VLOOKUP('Enrollment Form'!$B390,DeclMatrix!$A$8:$B$12,2,FALSE),FALSE))))","v":""},{"$f":"IF($A390=\"\",\"\",IF(VLOOKUP($G390,$H$11:$DO$1000,112,FALSE)=\"\",\"No\",IF(LEFT(VLOOKUP($G390,$H$11:$DO$1000,112,FALSE),3)=\"The\",EP390,VLOOKUP(VLOOKUP($G390,$H$11:$DO$1000,112,FALSE),DeclMatrix!$A$2:$F$5,VLOOKUP('Enrollment Form'!$B390,DeclMatrix!$A$8:$B$12,2,FALSE),FALSE))))","v":""},null,null,null,null,null,null,null,null,"",null,"","","","","","","","","","","",""]
["",null,null,null,null,null,"","",null,null,null,null,null,null,null,null,null,null,null,null,null,null,null,null,null,null,"","","","",null,null,"",null,null,null,null,null,null,null,null,null,null,null,null,null,null,null,null,null,null,null,null,null,null,null,null,null,null,null,"","","",null,null,null,null,"","","","",null,null,null,null,null,null,null,null,null,null,null,null,null,null,null,null,null,null,null,null,null,null,null,null,null,null,null,null,null,null,null,null,null,null,null,null,null,null,null,null,null,null,null,null,null,null,null,null,null,null,null,null,"",{"$f":"IF($A393=\"\",\"\",IF(VLOOKUP($G393,$H$11:$DO$1000,103,FALSE)=\"\",\"No\",IF(LEFT(VLOOKUP($G393,$H$11:$DO$1000,103,FALSE),3)=\"The\",EM393,VLOOKUP(VLOOKUP($G393,$H$11:$DO$1000,103,FALSE),DeclMatrix!$A$2:$F$5,VLOOKUP('Enrollment Form'!$B393,DeclMatrix!$A$8:$B$12,2,FALSE),FALSE))))","v":""},{"$f":"IF($A393=\"\",\"\",IF(VLOOKUP($G393,$H$11:$DO$1000,106,FALSE)=\"\",\"No\",IF(LEFT(VLOOKUP($G393,$H$11:$DO$1000,106,FALSE),3)=\"The\",EN393,VLOOKUP(VLOOKUP($G393,$H$11:$DO$1000,106,FALSE),DeclMatrix!$A$2:$F$5,VLOOKUP('Enrollment Form'!$B393,DeclMatrix!$A$8:$B$12,2,FALSE),FALSE))))","v":""},{"$f":"IF($A393=\"\",\"\",IF(VLOOKUP($G393,$H$11:$DO$1000,109,FALSE)=\"\",\"No\",IF(LEFT(VLOOKUP($G393,$H$11:$DO$1000,109,FALSE),3)=\"The\",EO393,VLOOKUP(VLOOKUP($G393,$H$11:$DO$1000,109,FALSE),DeclMatrix!$A$2:$F$5,VLOOKUP('Enrollment Form'!$B393,DeclMatrix!$A$8:$B$12,2,FALSE),FALSE))))","v":""},{"$f":"IF($A393=\"\",\"\",IF(VLOOKUP($G393,$H$11:$DO$1000,112,FALSE)=\"\",\"No\",IF(LEFT(VLOOKUP($G393,$H$11:$DO$1000,112,FALSE),3)=\"The\",EP393,VLOOKUP(VLOOKUP($G393,$H$11:$DO$1000,112,FALSE),DeclMatrix!$A$2:$F$5,VLOOKUP('Enrollment Form'!$B393,DeclMatrix!$A$8:$B$12,2,FALSE),FALSE))))","v":""},null,null,null,null,null,null,null,null,"",null,"","","","","","","","","","","",""]
[{"$f":"IF(LEN($B395)>0,$C$2,\"\")","v":""},null,null,null,null,null,"","",null,null,null,null,null,null,null,null,null,null,null,null,null,null,null,null,null,null,"","","","",null,null,"",null,null,null,null,null,null,null,null,null,null,null,null,null,null,null,null,null,null,null,null,null,null,null,null,null,null,null,"","","",null,null,null,null,{"$f":"IF(AND($B395<>\"Subscriber\",$BO395=\"Yes\"),VLOOKUP($G395,$H$11:$Y$1000,15,FALSE),\"\")","v":""},{"$f":"IF(AND($B395<>\"Subscriber\",$BO395=\"Yes\"),VLOOKUP($G395,$H$11:$Y$1000,16,FALSE),\"\")","v":""},{"$f":"IF(AND($B395<>\"Subscriber\",$BO395=\"Yes\"),VLOOKUP($G395,$H$11:$Y$1000,17,FALSE),\"\")","v":""},{"$f":"IF(AND($B395<>\"Subscriber\",$BO395=\"Yes\"),VLOOKUP($G395,$H$11:$Y$1000,18,FALSE),\"\")","v":""},null,null,null,null,null,null,null,null,null,null,null,null,null,null,null,null,null,null,null,null,null,null,null,null,null,null,null,null,null,null,null,null,null,null,null,null,null,null,null,null,null,null,null,null,null,null,null,null,null,null,null,null,{"$f":"IF($A395=\"\",\"\",IF($B395=\"Subscriber\",$AG395,VLOOKUP($G395,$H$11:$AG$1000,26,FALSE)))","v":""},{"$f":"IF($A395=\"\",\"\",IF(VLOOKUP($G395,$H$11:$DO$1000,103,FALSE)=\"\",\"No\",IF(LEFT(VLOOKUP($G395,$H$11:$DO$1000,103,FALSE),3)=\"The\",EM395,VLOOKUP(VLOOKUP($G395,$H$11:$DO$1000,103,FALSE),DeclMatrix!$A$2:$F$5,VLOOKUP('Enrollment Form'!$B395,DeclMatrix!$A$8:$B$12,2,FALSE),FALSE))))","v":""},{"$f":"IF($A395=\"\",\"\",IF(VLOOKUP($G395,$H$11:$DO$1000,106,FALSE)=\"\",\"No\",IF(LEFT(VLOOKUP($G395,$H$11:$DO$1000,106,FALSE),3)=\"The\",EN395,VLOOKUP(VLOOKUP($G395,$H$11:$DO$1000,106,FALSE),DeclMatrix!$A$2:$F$5,VLOOKUP('Enrollment Form'!$B395,DeclMatrix!$A$8:$B$12,2,FALSE),FALSE))))","v":""},{"$f":"IF($A395=\"\",\"\",IF(VLOOKUP($G395,$H$11:$DO$1000,109,FALSE)=\"\",\"No\",IF(LEFT(VLOOKUP($G395,$H$11:$DO$1000,109,FALSE),3)=\"The\",EO395,VLOOKUP(VLOOKUP($G395,$H$11:$DO$1000,109,FALSE),DeclMatrix!$A$2:$F$5,VLOOKUP('Enrollment Form'!$B395,DeclMatrix!$A$8:$B$12,2,FALSE),FALSE))))","v":""},{"$f":"IF($A395=\"\",\"\",IF(VLOOKUP($G395,$H$11:$DO$1000,112,FALSE)=\"\",\"No\",IF(LEFT(VLOOKUP($G395,$H$11:$DO$1000,112,FALSE),3)=\"The\",EP395,VLOOKUP(VLOOKUP($G395,$H$11:$DO$1000,112,FALSE),DeclMatrix!$A$2:$F$5,VLOOKUP('Enrollment Form'!$B395,DeclMatrix!$A$8:$B$12,2,FALSE),FALSE))))","v":""},null,null,null,null,null,null,null,null,{"$f":"IF(A395<>\"\",\"1X\",\"\")","v":""},null,{"$f":"$B395&$G395&$J395","v":""},{"$f":"$B395&$G395&$L395","v":""},{"$f":"$B395&$G395&$N395","v":""},{"$f":"$B395&$G395&$O395","v":""},{"$f":"IF($A395=\"\",\"\",IF($B395=\"Subscriber\",\"No\",IF(OR($DF395=\"\",$DF395=\"No\"),\"No\",\"Yes\")))","v":""},{"$f":"IF($A395=\"\",\"\",IF($B395=\"Subscriber\",\"No\",IF(OR($DI395=\"\",$DI395=\"No\"),\"No\",\"Yes\")))","v":""},{"$f":"IF($A395=\"\",\"\",IF($B395=\"Subscriber\",\"No\",IF(OR($DL395=\"\",$DL395=\"No\"),\"No\",\"Yes\")))","v":""},{"$f":"IF($A395=\"\",\"\",IF($B395=\"Subscriber\",\"No\",IF(OR($DO395=\"\",$DO395=\"No\"),\"No\",\"Yes\")))","v":""},{"$f":"IF($A395=\"\",\"\",IF(AND($B395=\"Subscriber\",$I395<>\"Waive\",$I395<>\"\"),\"Yes\",IF(AND($B395<>\"Subscriber\",$BM395=\"Yes\"),VLOOKUP($G395,$H$11:$ET$1000,140,FALSE),IF(AND($C395=\"Enroll\",VLOOKUP($G396,$H$11:$ET$1000,103,FALSE)<>\"\"),VLOOKUP($DU395,$DV$2:$DW$3,2,FALSE),\"No\"))))","v":""},{"$f":"IF($A395=\"\",\"\",IF(AND($B395=\"Subscriber\",$K395<>\"Waive\",$K395<>\"\"),\"Yes\",IF(AND($B395<>\"Subscriber\",$BM395=\"Yes\"),VLOOKUP($G395,$H$11:$ET$1000,141,FALSE),IF(AND($C395=\"Enroll\",VLOOKUP($G396,$H$11:$ET$1000,106,FALSE)<>\"\"),VLOOKUP($DV395,$DV$2:$DW$3,2,FALSE),\"No\"))))","v":""},{"$f":"IF($A395=\"\",\"\",IF(AND($B395=\"Subscriber\",$M395<>\"Waive\",$M395<>\"\"),\"Yes\",IF(AND($B395<>\"Subscriber\",$BM395=\"Yes\"),VLOOKUP($G395,$H$11:$ET$1000,142,FALSE),IF(AND($C395=\"Enroll\",VLOOKUP($G396,$H$11:$ET$1000,109,FALSE)<>\"\"),VLOOKUP($DW395,$DV$2:$DW$3,2,FALSE),\"No\"))))","v":""},{"$f":"IF($A395=\"\",\"\",IF(AND($B395=\"Subscriber\",$O395<>\"Waive\",$O395<>\"\"),\"Yes\",IF(AND($B395<>\"Subscriber\",$BM395=\"Yes\"),VLOOKUP($G395,$H$11:$ET$1000,143,FALSE),IF(AND($C395=\"Enroll\",VLOOKUP($G396,$H$11:$ET$1000,112,FALSE)<>\"\"),VLOOKUP($DX395,$DV$2:$DW$3,2,FALSE),\"No\"))))","v":""}]
["",null,null,null,null,null,{"$f":"IF(A396=\"\",\"\",IF(AND(B396<>\"Subscriber\",B396<>\"\"),G395,\"\"))","v":""},{"$f":"IF(AND(B396=\"Subscriber\",G396<>\"\"),G396,\"\")","v":""},null,null,null,null,null,null,null,null,null,null,null,null,null,null,null,null,null,null,{"$f":"IF(AND($B396=\"Subscriber\",$Z396=\"Yes\"),V396,\"\")","v":""},{"$f":"IF(AND($B396=\"Subscriber\",$Z396=\"Yes\"),W396,\"\")","v":""},{"$f":"IF(AND($B396=\"Subscriber\",$Z396=\"Yes\"),X396,\"\")","v":""},{"$f":"IF(AND($B396=\"Subscriber\",$Z396=\"Yes\"),Y396,\"\")","v":""},null,null,{"$f":"IF(AND(B396=\"Subscriber\",AJ396<>\"\"),\"NS01 - Not Selected\",\"\")","v":""},null,null,null,null,null,null,null,null,null,null,null,null,null,null,null,null,null,null,null,null,null,null,null,null,null,null,null,{"$f":"IF(OR($B396=\"Subscriber\",$B396=\"\"),\"\",IF(OR(VLOOKUP($G396,$H:$BH,53,FALSE)=\"No\",VLOOKUP($G396,$H:$BH,53,FALSE)=\"\"),\"\",IF(VLOOKUP($G396,$H:$BH,53,FALSE)=\"Yes\",VLOOKUP(G396,$H:$BI,32,FALSE))))","v":""},{"$f":"IF(OR($B396=\"Subscriber\",$B396=\"\"),\"\",IF(OR(VLOOKUP($G396,$H:$BH,53,FALSE)=\"No\",VLOOKUP($G396,$H:$BH,53,FALSE)=\"\"),\"\",IF(VLOOKUP($G396,$H:$BH,53,FALSE)=\"Yes\",VLOOKUP(G396,$H:$BI,33,FALSE))))","v":""},{"$f":"IF(OR($B396=\"Subscriber\",$B396=\"\"),\"\",IF(OR(VLOOKUP($G396,$H:$BH,53,FALSE)=\"No\",VLOOKUP($G396,$H:$BH,53,FALSE)=\"\"),\"\",IF(VLOOKUP($G396,$H:$BH,53,FALSE)=\"Yes\",VLOOKUP(G396,$H:$BI,34,FALSE))))","v":""},null,null,null,null,"","","","",null,null,null,null,null,null,null,null,null,null,null,null,null,null,null,null,null,null,null,null,null,null,null,null,null,null,null,null,null,null,null,null,null,null,null,null,null,null,null,null,null,null,null,null,null,null,null,null,null,null,null,null,"",{"$f":"IF($A396=\"\",\"\",IF(VLOOKUP($G396,$H$11:$DO$1000,103,FALSE)=\"\",\"No\",IF(LEFT(VLOOKUP($G396,$H$11:$DO$1000,103,FALSE),3)=\"The\",EM396,VLOOKUP(VLOOKUP($G396,$H$11:$DO$1000,103,FALSE),DeclMatrix!$A$2:$F$5,VLOOKUP('Enrollment Form'!$B396,DeclMatrix!$A$8:$B$12,2,FALSE),FALSE))))","v":""},{"$f":"IF($A396=\"\",\"\",IF(VLOOKUP($G396,$H$11:$DO$1000,106,FALSE)=\"\",\"No\",IF(LEFT(VLOOKUP($G396,$H$11:$DO$1000,106,FALSE),3)=\"The\",EN396,VLOOKUP(VLOOKUP($G396,$H$11:$DO$1000,106,FALSE),DeclMatrix!$A$2:$F$5,VLOOKUP('Enrollment Form'!$B396,DeclMatrix!$A$8:$B$12,2,FALSE),FALSE))))","v":""},{"$f":"IF($A396=\"\",\"\",IF(VLOOKUP($G396,$H$11:$DO$1000,109,FALSE)=\"\",\"No\",IF(LEFT(VLOOKUP($G396,$H$11:$DO$1000,109,FALSE),3)=\"The\",EO396,VLOOKUP(VLOOKUP($G396,$H$11:$DO$1000,109,FALSE),DeclMatrix!$A$2:$F$5,VLOOKUP('Enrollment Form'!$B396,DeclMatrix!$A$8:$B$12,2,FALSE),FALSE))))","v":""},{"$f":"IF($A396=\"\",\"\",IF(VLOOKUP($G396,$H$11:$DO$1000,112,FALSE)=\"\",\"No\",IF(LEFT(VLOOKUP($G396,$H$11:$DO$1000,112,FALSE),3)=\"The\",EP396,VLOOKUP(VLOOKUP($G396,$H$11:$DO$1000,112,FALSE),DeclMatrix!$A$2:$F$5,VLOOKUP('Enrollment Form'!$B396,DeclMatrix!$A$8:$B$12,2,FALSE),FALSE))))","v":""},null,null,null,null,null,null,null,null,"",null,"","","","","","","","","","","",""]
["",null,null,null,null,null,"","",null,null,null,null,null,null,null,null,null,null,null,null,null,null,null,null,null,null,"","","","",null,null,"",null,null,null,null,null,null,null,null,null,null,null,null,null,null,null,null,null,null,null,null,null,null,null,null,null,null,null,"","","",null,null,null,null,"","","","",null,null,null,null,null,null,null,null,null,null,null,null,null,null,null,null,null,null,null,null,null,null,null,null,null,null,null,null,null,null,null,null,null,null,null,null,null,null,null,null,null,null,null,null,null,null,null,null,null,null,null,null,"",{"$f":"IF($A399=\"\",\"\",IF(VLOOKUP($G399,$H$11:$DO$1000,103,FALSE)=\"\",\"No\",IF(LEFT(VLOOKUP($G399,$H$11:$DO$1000,103,FALSE),3)=\"The\",EM399,VLOOKUP(VLOOKUP($G399,$H$11:$DO$1000,103,FALSE),DeclMatrix!$A$2:$F$5,VLOOKUP('Enrollment Form'!$B399,DeclMatrix!$A$8:$B$12,2,FALSE),FALSE))))","v":""},{"$f":"IF($A399=\"\",\"\",IF(VLOOKUP($G399,$H$11:$DO$1000,106,FALSE)=\"\",\"No\",IF(LEFT(VLOOKUP($G399,$H$11:$DO$1000,106,FALSE),3)=\"The\",EN399,VLOOKUP(VLOOKUP($G399,$H$11:$DO$1000,106,FALSE),DeclMatrix!$A$2:$F$5,VLOOKUP('Enrollment Form'!$B399,DeclMatrix!$A$8:$B$12,2,FALSE),FALSE))))","v":""},{"$f":"IF($A399=\"\",\"\",IF(VLOOKUP($G399,$H$11:$DO$1000,109,FALSE)=\"\",\"No\",IF(LEFT(VLOOKUP($G399,$H$11:$DO$1000,109,FALSE),3)=\"The\",EO399,VLOOKUP(VLOOKUP($G399,$H$11:$DO$1000,109,FALSE),DeclMatrix!$A$2:$F$5,VLOOKUP('Enrollment Form'!$B399,DeclMatrix!$A$8:$B$12,2,FALSE),FALSE))))","v":""},{"$f":"IF($A399=\"\",\"\",IF(VLOOKUP($G399,$H$11:$DO$1000,112,FALSE)=\"\",\"No\",IF(LEFT(VLOOKUP($G399,$H$11:$DO$1000,112,FALSE),3)=\"The\",EP399,VLOOKUP(VLOOKUP($G399,$H$11:$DO$1000,112,FALSE),DeclMatrix!$A$2:$F$5,VLOOKUP('Enrollment Form'!$B399,DeclMatrix!$A$8:$B$12,2,FALSE),FALSE))))","v":""},null,null,null,null,null,null,null,null,"",null,"","","","","","","","","","","",""]
["",null,null,null,null,null,"","",null,null,null,null,null,null,null,null,null,null,null,null,null,null,null,null,null,null,"","","","",null,null,"",null,null,null,null,null,null,null,null,null,null,null,null,null,null,null,null,null,null,null,null,null,null,null,null,null,null,null,"","","",null,null,null,null,"","","","",null,null,null,null,null,null,null,null,null,null,null,null,null,null,null,null,null,null,null,null,null,null,null,null,null,null,null,null,null,null,null,null,null,null,null,null,null,null,null,null,null,null,null,null,null,null,null,null,null,null,null,null,"",{"$f":"IF($A403=\"\",\"\",IF(VLOOKUP($G403,$H$11:$DO$1000,103,FALSE)=\"\",\"No\",IF(LEFT(VLOOKUP($G403,$H$11:$DO$1000,103,FALSE),3)=\"The\",EM403,VLOOKUP(VLOOKUP($G403,$H$11:$DO$1000,103,FALSE),DeclMatrix!$A$2:$F$5,VLOOKUP('Enrollment Form'!$B403,DeclMatrix!$A$8:$B$12,2,FALSE),FALSE))))","v":""},{"$f":"IF($A403=\"\",\"\",IF(VLOOKUP($G403,$H$11:$DO$1000,106,FALSE)=\"\",\"No\",IF(LEFT(VLOOKUP($G403,$H$11:$DO$1000,106,FALSE),3)=\"The\",EN403,VLOOKUP(VLOOKUP($G403,$H$11:$DO$1000,106,FALSE),DeclMatrix!$A$2:$F$5,VLOOKUP('Enrollment Form'!$B403,DeclMatrix!$A$8:$B$12,2,FALSE),FALSE))))","v":""},{"$f":"IF($A403=\"\",\"\",IF(VLOOKUP($G403,$H$11:$DO$1000,109,FALSE)=\"\",\"No\",IF(LEFT(VLOOKUP($G403,$H$11:$DO$1000,109,FALSE),3)=\"The\",EO403,VLOOKUP(VLOOKUP($G403,$H$11:$DO$1000,109,FALSE),DeclMatrix!$A$2:$F$5,VLOOKUP('Enrollment Form'!$B403,DeclMatrix!$A$8:$B$12,2,FALSE),FALSE))))","v":""},{"$f":"IF($A403=\"\",\"\",IF(VLOOKUP($G403,$H$11:$DO$1000,112,FALSE)=\"\",\"No\",IF(LEFT(VLOOKUP($G403,$H$11:$DO$1000,112,FALSE),3)=\"The\",EP403,VLOOKUP(VLOOKUP($G403,$H$11:$DO$1000,112,FALSE),DeclMatrix!$A$2:$F$5,VLOOKUP('Enrollment Form'!$B403,DeclMatrix!$A$8:$B$12,2,FALSE),FALSE))))","v":""},null,null,null,null,null,null,null,null,"",null,"","","","","","","","","","","",""]
["",null,null,null,null,null,"","",null,null,null,null,null,null,null,null,null,null,null,null,null,null,null,null,null,null,"","","","",null,null,"",null,null,null,null,null,null,null,null,null,null,null,null,null,null,null,null,null,null,null,null,null,null,null,null,null,null,null,"","","",null,null,null,null,"","","","",null,null,null,null,null,null,null,null,null,null,null,null,null,null,null,null,null,null,null,null,null,null,null,null,null,null,null,null,null,null,null,null,null,null,null,null,null,null,null,null,null,null,null,null,null,null,null,null,null,null,null,null,"",{"$f":"IF($A406=\"\",\"\",IF(VLOOKUP($G406,$H$11:$DO$1000,103,FALSE)=\"\",\"No\",IF(LEFT(VLOOKUP($G406,$H$11:$DO$1000,103,FALSE),3)=\"The\",EM406,VLOOKUP(VLOOKUP($G406,$H$11:$DO$1000,103,FALSE),DeclMatrix!$A$2:$F$5,VLOOKUP('Enrollment Form'!$B406,DeclMatrix!$A$8:$B$12,2,FALSE),FALSE))))","v":""},{"$f":"IF($A406=\"\",\"\",IF(VLOOKUP($G406,$H$11:$DO$1000,106,FALSE)=\"\",\"No\",IF(LEFT(VLOOKUP($G406,$H$11:$DO$1000,106,FALSE),3)=\"The\",EN406,VLOOKUP(VLOOKUP($G406,$H$11:$DO$1000,106,FALSE),DeclMatrix!$A$2:$F$5,VLOOKUP('Enrollment Form'!$B406,DeclMatrix!$A$8:$B$12,2,FALSE),FALSE))))","v":""},{"$f":"IF($A406=\"\",\"\",IF(VLOOKUP($G406,$H$11:$DO$1000,109,FALSE)=\"\",\"No\",IF(LEFT(VLOOKUP($G406,$H$11:$DO$1000,109,FALSE),3)=\"The\",EO406,VLOOKUP(VLOOKUP($G406,$H$11:$DO$1000,109,FALSE),DeclMatrix!$A$2:$F$5,VLOOKUP('Enrollment Form'!$B406,DeclMatrix!$A$8:$B$12,2,FALSE),FALSE))))","v":""},{"$f":"IF($A406=\"\",\"\",IF(VLOOKUP($G406,$H$11:$DO$1000,112,FALSE)=\"\",\"No\",IF(LEFT(VLOOKUP($G406,$H$11:$DO$1000,112,FALSE),3)=\"The\",EP406,VLOOKUP(VLOOKUP($G406,$H$11:$DO$1000,112,FALSE),DeclMatrix!$A$2:$F$5,VLOOKUP('Enrollment Form'!$B406,DeclMatrix!$A$8:$B$12,2,FALSE),FALSE))))","v":""},null,null,null,null,null,null,null,null,"",null,"","","","","","","","","","","",""]
["",null,null,null,null,null,"","",null,null,null,null,null,null,null,null,null,null,null,null,null,null,null,null,null,null,"","","","",null,null,"",null,null,null,null,null,null,null,null,null,null,null,null,null,null,null,null,null,null,null,null,null,null,null,null,null,null,null,"","","",null,null,null,null,"","","","",null,null,null,null,null,null,null,null,null,null,null,null,null,null,null,null,null,null,null,null,null,null,null,null,null,null,null,null,null,null,null,null,null,null,null,null,null,null,null,null,null,null,null,null,null,null,null,null,null,null,null,null,"",{"$f":"IF($A408=\"\",\"\",IF(VLOOKUP($G408,$H$11:$DO$1000,103,FALSE)=\"\",\"No\",IF(LEFT(VLOOKUP($G408,$H$11:$DO$1000,103,FALSE),3)=\"The\",EM408,VLOOKUP(VLOOKUP($G408,$H$11:$DO$1000,103,FALSE),DeclMatrix!$A$2:$F$5,VLOOKUP('Enrollment Form'!$B408,DeclMatrix!$A$8:$B$12,2,FALSE),FALSE))))","v":""},{"$f":"IF($A408=\"\",\"\",IF(VLOOKUP($G408,$H$11:$DO$1000,106,FALSE)=\"\",\"No\",IF(LEFT(VLOOKUP($G408,$H$11:$DO$1000,106,FALSE),3)=\"The\",EN408,VLOOKUP(VLOOKUP($G408,$H$11:$DO$1000,106,FALSE),DeclMatrix!$A$2:$F$5,VLOOKUP('Enrollment Form'!$B408,DeclMatrix!$A$8:$B$12,2,FALSE),FALSE))))","v":""},{"$f":"IF($A408=\"\",\"\",IF(VLOOKUP($G408,$H$11:$DO$1000,109,FALSE)=\"\",\"No\",IF(LEFT(VLOOKUP($G408,$H$11:$DO$1000,109,FALSE),3)=\"The\",EO408,VLOOKUP(VLOOKUP($G408,$H$11:$DO$1000,109,FALSE),DeclMatrix!$A$2:$F$5,VLOOKUP('Enrollment Form'!$B408,DeclMatrix!$A$8:$B$12,2,FALSE),FALSE))))","v":""},{"$f":"IF($A408=\"\",\"\",IF(VLOOKUP($G408,$H$11:$DO$1000,112,FALSE)=\"\",\"No\",IF(LEFT(VLOOKUP($G408,$H$11:$DO$1000,112,FALSE),3)=\"The\",EP408,VLOOKUP(VLOOKUP($G408,$H$11:$DO$1000,112,FALSE),DeclMatrix!$A$2:$F$5,VLOOKUP('Enrollment Form'!$B408,DeclMatrix!$A$8:$B$12,2,FALSE),FALSE))))","v":""},null,null,null,null,null,null,null,null,"",null,"","","","","","","","","","","",""]
["",null,null,null,null,null,"","",null,null,null,null,null,null,null,null,null,null,null,null,null,null,null,null,null,null,"","","","",null,null,"",null,null,null,null,null,null,null,null,null,null,null,null,null,null,null,null,null,null,null,null,null,null,null,null,null,null,null,"","","",null,null,null,null,"","","","",null,null,null,null,null,null,null,null,null,null,null,null,null,null,null,null,null,null,null,null,null,null,null,null,null,null,null,null,null,null,null,null,null,null,null,null,null,null,null,null,null,null,null,null,null,null,null,null,null,null,null,null,"",{"$f":"IF($A412=\"\",\"\",IF(VLOOKUP($G412,$H$11:$DO$1000,103,FALSE)=\"\",\"No\",IF(LEFT(VLOOKUP($G412,$H$11:$DO$1000,103,FALSE),3)=\"The\",EM412,VLOOKUP(VLOOKUP($G412,$H$11:$DO$1000,103,FALSE),DeclMatrix!$A$2:$F$5,VLOOKUP('Enrollment Form'!$B412,DeclMatrix!$A$8:$B$12,2,FALSE),FALSE))))","v":""},{"$f":"IF($A412=\"\",\"\",IF(VLOOKUP($G412,$H$11:$DO$1000,106,FALSE)=\"\",\"No\",IF(LEFT(VLOOKUP($G412,$H$11:$DO$1000,106,FALSE),3)=\"The\",EN412,VLOOKUP(VLOOKUP($G412,$H$11:$DO$1000,106,FALSE),DeclMatrix!$A$2:$F$5,VLOOKUP('Enrollment Form'!$B412,DeclMatrix!$A$8:$B$12,2,FALSE),FALSE))))","v":""},{"$f":"IF($A412=\"\",\"\",IF(VLOOKUP($G412,$H$11:$DO$1000,109,FALSE)=\"\",\"No\",IF(LEFT(VLOOKUP($G412,$H$11:$DO$1000,109,FALSE),3)=\"The\",EO412,VLOOKUP(VLOOKUP($G412,$H$11:$DO$1000,109,FALSE),DeclMatrix!$A$2:$F$5,VLOOKUP('Enrollment Form'!$B412,DeclMatrix!$A$8:$B$12,2,FALSE),FALSE))))","v":""},{"$f":"IF($A412=\"\",\"\",IF(VLOOKUP($G412,$H$11:$DO$1000,112,FALSE)=\"\",\"No\",IF(LEFT(VLOOKUP($G412,$H$11:$DO$1000,112,FALSE),3)=\"The\",EP412,VLOOKUP(VLOOKUP($G412,$H$11:$DO$1000,112,FALSE),DeclMatrix!$A$2:$F$5,VLOOKUP('Enrollment Form'!$B412,DeclMatrix!$A$8:$B$12,2,FALSE),FALSE))))","v":""},null,null,null,null,null,null,null,null,"",null,"","","","","","","","","","","",""]
["",null,null,null,null,null,"","",null,null,null,null,null,null,null,null,null,null,null,null,null,null,null,null,null,null,"","","","",null,null,"",null,null,null,null,null,null,null,null,null,null,null,null,null,null,null,null,null,null,null,null,null,null,null,null,null,null,null,"","","",null,null,null,null,"","","","",null,null,null,null,null,null,null,null,null,null,null,null,null,null,null,null,null,null,null,null,null,null,null,null,null,null,null,null,null,null,null,null,null,null,null,null,null,null,null,null,null,null,null,null,null,null,null,null,null,null,null,null,"",{"$f":"IF($A415=\"\",\"\",IF(VLOOKUP($G415,$H$11:$DO$1000,103,FALSE)=\"\",\"No\",IF(LEFT(VLOOKUP($G415,$H$11:$DO$1000,103,FALSE),3)=\"The\",EM415,VLOOKUP(VLOOKUP($G415,$H$11:$DO$1000,103,FALSE),DeclMatrix!$A$2:$F$5,VLOOKUP('Enrollment Form'!$B415,DeclMatrix!$A$8:$B$12,2,FALSE),FALSE))))","v":""},{"$f":"IF($A415=\"\",\"\",IF(VLOOKUP($G415,$H$11:$DO$1000,106,FALSE)=\"\",\"No\",IF(LEFT(VLOOKUP($G415,$H$11:$DO$1000,106,FALSE),3)=\"The\",EN415,VLOOKUP(VLOOKUP($G415,$H$11:$DO$1000,106,FALSE),DeclMatrix!$A$2:$F$5,VLOOKUP('Enrollment Form'!$B415,DeclMatrix!$A$8:$B$12,2,FALSE),FALSE))))","v":""},{"$f":"IF($A415=\"\",\"\",IF(VLOOKUP($G415,$H$11:$DO$1000,109,FALSE)=\"\",\"No\",IF(LEFT(VLOOKUP($G415,$H$11:$DO$1000,109,FALSE),3)=\"The\",EO415,VLOOKUP(VLOOKUP($G415,$H$11:$DO$1000,109,FALSE),DeclMatrix!$A$2:$F$5,VLOOKUP('Enrollment Form'!$B415,DeclMatrix!$A$8:$B$12,2,FALSE),FALSE))))","v":""},{"$f":"IF($A415=\"\",\"\",IF(VLOOKUP($G415,$H$11:$DO$1000,112,FALSE)=\"\",\"No\",IF(LEFT(VLOOKUP($G415,$H$11:$DO$1000,112,FALSE),3)=\"The\",EP415,VLOOKUP(VLOOKUP($G415,$H$11:$DO$1000,112,FALSE),DeclMatrix!$A$2:$F$5,VLOOKUP('Enrollment Form'!$B415,DeclMatrix!$A$8:$B$12,2,FALSE),FALSE))))","v":""},null,null,null,null,null,null,null,null,"",null,"","","","","","","","","","","",""]
["",null,null,null,null,null,"","",null,null,null,null,null,null,null,null,null,null,null,null,null,null,null,null,null,null,"","","","",null,null,"",null,null,null,null,null,null,null,null,null,null,null,null,null,null,null,null,null,null,null,null,null,null,null,null,null,null,null,"","","",null,null,null,null,"","","","",null,null,null,null,null,null,null,null,null,null,null,null,null,null,null,null,null,null,null,null,null,null,null,null,null,null,null,null,null,null,null,null,null,null,null,null,null,null,null,null,null,null,null,null,null,null,null,null,null,null,null,null,"",{"$f":"IF($A417=\"\",\"\",IF(VLOOKUP($G417,$H$11:$DO$1000,103,FALSE)=\"\",\"No\",IF(LEFT(VLOOKUP($G417,$H$11:$DO$1000,103,FALSE),3)=\"The\",EM417,VLOOKUP(VLOOKUP($G417,$H$11:$DO$1000,103,FALSE),DeclMatrix!$A$2:$F$5,VLOOKUP('Enrollment Form'!$B417,DeclMatrix!$A$8:$B$12,2,FALSE),FALSE))))","v":""},{"$f":"IF($A417=\"\",\"\",IF(VLOOKUP($G417,$H$11:$DO$1000,106,FALSE)=\"\",\"No\",IF(LEFT(VLOOKUP($G417,$H$11:$DO$1000,106,FALSE),3)=\"The\",EN417,VLOOKUP(VLOOKUP($G417,$H$11:$DO$1000,106,FALSE),DeclMatrix!$A$2:$F$5,VLOOKUP('Enrollment Form'!$B417,DeclMatrix!$A$8:$B$12,2,FALSE),FALSE))))","v":""},{"$f":"IF($A417=\"\",\"\",IF(VLOOKUP($G417,$H$11:$DO$1000,109,FALSE)=\"\",\"No\",IF(LEFT(VLOOKUP($G417,$H$11:$DO$1000,109,FALSE),3)=\"The\",EO417,VLOOKUP(VLOOKUP($G417,$H$11:$DO$1000,109,FALSE),DeclMatrix!$A$2:$F$5,VLOOKUP('Enrollment Form'!$B417,DeclMatrix!$A$8:$B$12,2,FALSE),FALSE))))","v":""},{"$f":"IF($A417=\"\",\"\",IF(VLOOKUP($G417,$H$11:$DO$1000,112,FALSE)=\"\",\"No\",IF(LEFT(VLOOKUP($G417,$H$11:$DO$1000,112,FALSE),3)=\"The\",EP417,VLOOKUP(VLOOKUP($G417,$H$11:$DO$1000,112,FALSE),DeclMatrix!$A$2:$F$5,VLOOKUP('Enrollment Form'!$B417,DeclMatrix!$A$8:$B$12,2,FALSE),FALSE))))","v":""},null,null,null,null,null,null,null,null,"",null,"","","","","","","","","","","",""]
["",null,null,null,null,null,"","",null,null,null,null,null,null,null,null,null,null,null,null,null,null,null,null,null,null,"","","","",null,null,"",null,null,null,null,null,null,null,null,null,null,null,null,null,null,null,null,null,null,null,null,null,null,null,null,null,null,null,"","","",null,null,null,null,"","","","",null,null,null,null,null,null,null,null,null,null,null,null,null,null,null,null,null,null,null,null,null,null,null,null,null,null,null,null,null,null,null,null,null,null,null,null,null,null,null,null,null,null,null,null,null,null,null,null,null,null,null,null,"",{"$f":"IF($A418=\"\",\"\",IF(VLOOKUP($G418,$H$11:$DO$1000,103,FALSE)=\"\",\"No\",IF(LEFT(VLOOKUP($G418,$H$11:$DO$1000,103,FALSE),3)=\"The\",EM418,VLOOKUP(VLOOKUP($G418,$H$11:$DO$1000,103,FALSE),DeclMatrix!$A$2:$F$5,VLOOKUP('Enrollment Form'!$B418,DeclMatrix!$A$8:$B$12,2,FALSE),FALSE))))","v":""},{"$f":"IF($A418=\"\",\"\",IF(VLOOKUP($G418,$H$11:$DO$1000,106,FALSE)=\"\",\"No\",IF(LEFT(VLOOKUP($G418,$H$11:$DO$1000,106,FALSE),3)=\"The\",EN418,VLOOKUP(VLOOKUP($G418,$H$11:$DO$1000,106,FALSE),DeclMatrix!$A$2:$F$5,VLOOKUP('Enrollment Form'!$B418,DeclMatrix!$A$8:$B$12,2,FALSE),FALSE))))","v":""},{"$f":"IF($A418=\"\",\"\",IF(VLOOKUP($G418,$H$11:$DO$1000,109,FALSE)=\"\",\"No\",IF(LEFT(VLOOKUP($G418,$H$11:$DO$1000,109,FALSE),3)=\"The\",EO418,VLOOKUP(VLOOKUP($G418,$H$11:$DO$1000,109,FALSE),DeclMatrix!$A$2:$F$5,VLOOKUP('Enrollment Form'!$B418,DeclMatrix!$A$8:$B$12,2,FALSE),FALSE))))","v":""},{"$f":"IF($A418=\"\",\"\",IF(VLOOKUP($G418,$H$11:$DO$1000,112,FALSE)=\"\",\"No\",IF(LEFT(VLOOKUP($G418,$H$11:$DO$1000,112,FALSE),3)=\"The\",EP418,VLOOKUP(VLOOKUP($G418,$H$11:$DO$1000,112,FALSE),DeclMatrix!$A$2:$F$5,VLOOKUP('Enrollment Form'!$B418,DeclMatrix!$A$8:$B$12,2,FALSE),FALSE))))","v":""},null,null,null,null,null,null,null,null,"",null,"","","","","","","","","","","",""]
["",null,null,null,null,null,"","",null,null,null,null,null,null,null,null,null,null,null,null,null,null,null,null,null,null,"","","","",null,null,"",null,null,null,null,null,null,null,null,null,null,null,null,null,null,null,null,null,null,null,null,null,null,null,null,null,null,null,"","","",null,null,null,null,"","","","",null,null,null,null,null,null,null,null,null,null,null,null,null,null,null,null,null,null,null,null,null,null,null,null,null,null,null,null,null,null,null,null,null,null,null,null,null,null,null,null,null,null,null,null,null,null,null,null,null,null,null,null,"",{"$f":"IF($A421=\"\",\"\",IF(VLOOKUP($G421,$H$11:$DO$1000,103,FALSE)=\"\",\"No\",IF(LEFT(VLOOKUP($G421,$H$11:$DO$1000,103,FALSE),3)=\"The\",EM421,VLOOKUP(VLOOKUP($G421,$H$11:$DO$1000,103,FALSE),DeclMatrix!$A$2:$F$5,VLOOKUP('Enrollment Form'!$B421,DeclMatrix!$A$8:$B$12,2,FALSE),FALSE))))","v":""},{"$f":"IF($A421=\"\",\"\",IF(VLOOKUP($G421,$H$11:$DO$1000,106,FALSE)=\"\",\"No\",IF(LEFT(VLOOKUP($G421,$H$11:$DO$1000,106,FALSE),3)=\"The\",EN421,VLOOKUP(VLOOKUP($G421,$H$11:$DO$1000,106,FALSE),DeclMatrix!$A$2:$F$5,VLOOKUP('Enrollment Form'!$B421,DeclMatrix!$A$8:$B$12,2,FALSE),FALSE))))","v":""},{"$f":"IF($A421=\"\",\"\",IF(VLOOKUP($G421,$H$11:$DO$1000,109,FALSE)=\"\",\"No\",IF(LEFT(VLOOKUP($G421,$H$11:$DO$1000,109,FALSE),3)=\"The\",EO421,VLOOKUP(VLOOKUP($G421,$H$11:$DO$1000,109,FALSE),DeclMatrix!$A$2:$F$5,VLOOKUP('Enrollment Form'!$B421,DeclMatrix!$A$8:$B$12,2,FALSE),FALSE))))","v":""},{"$f":"IF($A421=\"\",\"\",IF(VLOOKUP($G421,$H$11:$DO$1000,112,FALSE)=\"\",\"No\",IF(LEFT(VLOOKUP($G421,$H$11:$DO$1000,112,FALSE),3)=\"The\",EP421,VLOOKUP(VLOOKUP($G421,$H$11:$DO$1000,112,FALSE),DeclMatrix!$A$2:$F$5,VLOOKUP('Enrollment Form'!$B421,DeclMatrix!$A$8:$B$12,2,FALSE),FALSE))))","v":""},null,null,null,null,null,null,null,null,"",null,"","","","","","","","","","","",""]
["",null,null,null,null,null,"","",null,null,null,null,null,null,null,null,null,null,null,null,null,null,null,null,null,null,"","","","",null,null,"",null,null,null,null,null,null,null,null,null,null,null,null,null,null,null,null,null,null,null,null,null,null,null,null,null,null,null,"","","",null,null,null,null,"","","","",null,null,null,null,null,null,null,null,null,null,null,null,null,null,null,null,null,null,null,null,null,null,null,null,null,null,null,null,null,null,null,null,null,null,null,null,null,null,null,null,null,null,null,null,null,null,null,null,null,null,null,null,"",{"$f":"IF($A425=\"\",\"\",IF(VLOOKUP($G425,$H$11:$DO$1000,103,FALSE)=\"\",\"No\",IF(LEFT(VLOOKUP($G425,$H$11:$DO$1000,103,FALSE),3)=\"The\",EM425,VLOOKUP(VLOOKUP($G425,$H$11:$DO$1000,103,FALSE),DeclMatrix!$A$2:$F$5,VLOOKUP('Enrollment Form'!$B425,DeclMatrix!$A$8:$B$12,2,FALSE),FALSE))))","v":""},{"$f":"IF($A425=\"\",\"\",IF(VLOOKUP($G425,$H$11:$DO$1000,106,FALSE)=\"\",\"No\",IF(LEFT(VLOOKUP($G425,$H$11:$DO$1000,106,FALSE),3)=\"The\",EN425,VLOOKUP(VLOOKUP($G425,$H$11:$DO$1000,106,FALSE),DeclMatrix!$A$2:$F$5,VLOOKUP('Enrollment Form'!$B425,DeclMatrix!$A$8:$B$12,2,FALSE),FALSE))))","v":""},{"$f":"IF($A425=\"\",\"\",IF(VLOOKUP($G425,$H$11:$DO$1000,109,FALSE)=\"\",\"No\",IF(LEFT(VLOOKUP($G425,$H$11:$DO$1000,109,FALSE),3)=\"The\",EO425,VLOOKUP(VLOOKUP($G425,$H$11:$DO$1000,109,FALSE),DeclMatrix!$A$2:$F$5,VLOOKUP('Enrollment Form'!$B425,DeclMatrix!$A$8:$B$12,2,FALSE),FALSE))))","v":""},{"$f":"IF($A425=\"\",\"\",IF(VLOOKUP($G425,$H$11:$DO$1000,112,FALSE)=\"\",\"No\",IF(LEFT(VLOOKUP($G425,$H$11:$DO$1000,112,FALSE),3)=\"The\",EP425,VLOOKUP(VLOOKUP($G425,$H$11:$DO$1000,112,FALSE),DeclMatrix!$A$2:$F$5,VLOOKUP('Enrollment Form'!$B425,DeclMatrix!$A$8:$B$12,2,FALSE),FALSE))))","v":""},null,null,null,null,null,null,null,null,"",null,"","","","","","","","","","","",""]
["",null,null,null,null,null,"","",null,null,null,null,null,null,null,null,null,null,null,null,null,null,null,null,null,null,"","","","",null,null,"",null,null,null,null,null,null,null,null,null,null,null,null,null,null,null,null,null,null,null,null,null,null,null,null,null,null,null,"","","",null,null,null,null,"","","","",null,null,null,null,null,null,null,null,null,null,null,null,null,null,null,null,null,null,null,null,null,null,null,null,null,null,null,null,null,null,null,null,null,null,null,null,null,null,null,null,null,null,null,null,null,null,null,null,null,null,null,null,"",{"$f":"IF($A428=\"\",\"\",IF(VLOOKUP($G428,$H$11:$DO$1000,103,FALSE)=\"\",\"No\",IF(LEFT(VLOOKUP($G428,$H$11:$DO$1000,103,FALSE),3)=\"The\",EM428,VLOOKUP(VLOOKUP($G428,$H$11:$DO$1000,103,FALSE),DeclMatrix!$A$2:$F$5,VLOOKUP('Enrollment Form'!$B428,DeclMatrix!$A$8:$B$12,2,FALSE),FALSE))))","v":""},{"$f":"IF($A428=\"\",\"\",IF(VLOOKUP($G428,$H$11:$DO$1000,106,FALSE)=\"\",\"No\",IF(LEFT(VLOOKUP($G428,$H$11:$DO$1000,106,FALSE),3)=\"The\",EN428,VLOOKUP(VLOOKUP($G428,$H$11:$DO$1000,106,FALSE),DeclMatrix!$A$2:$F$5,VLOOKUP('Enrollment Form'!$B428,DeclMatrix!$A$8:$B$12,2,FALSE),FALSE))))","v":""},{"$f":"IF($A428=\"\",\"\",IF(VLOOKUP($G428,$H$11:$DO$1000,109,FALSE)=\"\",\"No\",IF(LEFT(VLOOKUP($G428,$H$11:$DO$1000,109,FALSE),3)=\"The\",EO428,VLOOKUP(VLOOKUP($G428,$H$11:$DO$1000,109,FALSE),DeclMatrix!$A$2:$F$5,VLOOKUP('Enrollment Form'!$B428,DeclMatrix!$A$8:$B$12,2,FALSE),FALSE))))","v":""},{"$f":"IF($A428=\"\",\"\",IF(VLOOKUP($G428,$H$11:$DO$1000,112,FALSE)=\"\",\"No\",IF(LEFT(VLOOKUP($G428,$H$11:$DO$1000,112,FALSE),3)=\"The\",EP428,VLOOKUP(VLOOKUP($G428,$H$11:$DO$1000,112,FALSE),DeclMatrix!$A$2:$F$5,VLOOKUP('Enrollment Form'!$B428,DeclMatrix!$A$8:$B$12,2,FALSE),FALSE))))","v":""},null,null,null,null,null,null,null,null,"",null,"","","","","","","","","","","",""]
["",null,null,null,null,null,"","",null,null,null,null,null,null,null,null,null,null,null,null,null,null,null,null,null,null,"","","","",null,null,"",null,null,null,null,null,null,null,null,null,null,null,null,null,null,null,null,null,null,null,null,null,null,null,null,null,null,null,"","","",null,null,null,null,"","","","",null,null,null,null,null,null,null,null,null,null,null,null,null,null,null,null,null,null,null,null,null,null,null,null,null,null,null,null,null,null,null,null,null,null,null,null,null,null,null,null,null,null,null,null,null,null,null,null,null,null,null,null,"",{"$f":"IF($A430=\"\",\"\",IF(VLOOKUP($G430,$H$11:$DO$1000,103,FALSE)=\"\",\"No\",IF(LEFT(VLOOKUP($G430,$H$11:$DO$1000,103,FALSE),3)=\"The\",EM430,VLOOKUP(VLOOKUP($G430,$H$11:$DO$1000,103,FALSE),DeclMatrix!$A$2:$F$5,VLOOKUP('Enrollment Form'!$B430,DeclMatrix!$A$8:$B$12,2,FALSE),FALSE))))","v":""},{"$f":"IF($A430=\"\",\"\",IF(VLOOKUP($G430,$H$11:$DO$1000,106,FALSE)=\"\",\"No\",IF(LEFT(VLOOKUP($G430,$H$11:$DO$1000,106,FALSE),3)=\"The\",EN430,VLOOKUP(VLOOKUP($G430,$H$11:$DO$1000,106,FALSE),DeclMatrix!$A$2:$F$5,VLOOKUP('Enrollment Form'!$B430,DeclMatrix!$A$8:$B$12,2,FALSE),FALSE))))","v":""},{"$f":"IF($A430=\"\",\"\",IF(VLOOKUP($G430,$H$11:$DO$1000,109,FALSE)=\"\",\"No\",IF(LEFT(VLOOKUP($G430,$H$11:$DO$1000,109,FALSE),3)=\"The\",EO430,VLOOKUP(VLOOKUP($G430,$H$11:$DO$1000,109,FALSE),DeclMatrix!$A$2:$F$5,VLOOKUP('Enrollment Form'!$B430,DeclMatrix!$A$8:$B$12,2,FALSE),FALSE))))","v":""},{"$f":"IF($A430=\"\",\"\",IF(VLOOKUP($G430,$H$11:$DO$1000,112,FALSE)=\"\",\"No\",IF(LEFT(VLOOKUP($G430,$H$11:$DO$1000,112,FALSE),3)=\"The\",EP430,VLOOKUP(VLOOKUP($G430,$H$11:$DO$1000,112,FALSE),DeclMatrix!$A$2:$F$5,VLOOKUP('Enrollment Form'!$B430,DeclMatrix!$A$8:$B$12,2,FALSE),FALSE))))","v":""},null,null,null,null,null,null,null,null,"",null,"","","","","","","","","","","",""]
["",null,null,null,null,null,"","",null,null,null,null,null,null,null,null,null,null,null,null,null,null,null,null,null,null,"","","","",null,null,"",null,null,null,null,null,null,null,null,null,null,null,null,null,null,null,null,null,null,null,null,null,null,null,null,null,null,null,"","","",null,null,null,null,"","","","",null,null,null,null,null,null,null,null,null,null,null,null,null,null,null,null,null,null,null,null,null,null,null,null,null,null,null,null,null,null,null,null,null,null,null,null,null,null,null,null,null,null,null,null,null,null,null,null,null,null,null,null,"",{"$f":"IF($A434=\"\",\"\",IF(VLOOKUP($G434,$H$11:$DO$1000,103,FALSE)=\"\",\"No\",IF(LEFT(VLOOKUP($G434,$H$11:$DO$1000,103,FALSE),3)=\"The\",EM434,VLOOKUP(VLOOKUP($G434,$H$11:$DO$1000,103,FALSE),DeclMatrix!$A$2:$F$5,VLOOKUP('Enrollment Form'!$B434,DeclMatrix!$A$8:$B$12,2,FALSE),FALSE))))","v":""},{"$f":"IF($A434=\"\",\"\",IF(VLOOKUP($G434,$H$11:$DO$1000,106,FALSE)=\"\",\"No\",IF(LEFT(VLOOKUP($G434,$H$11:$DO$1000,106,FALSE),3)=\"The\",EN434,VLOOKUP(VLOOKUP($G434,$H$11:$DO$1000,106,FALSE),DeclMatrix!$A$2:$F$5,VLOOKUP('Enrollment Form'!$B434,DeclMatrix!$A$8:$B$12,2,FALSE),FALSE))))","v":""},{"$f":"IF($A434=\"\",\"\",IF(VLOOKUP($G434,$H$11:$DO$1000,109,FALSE)=\"\",\"No\",IF(LEFT(VLOOKUP($G434,$H$11:$DO$1000,109,FALSE),3)=\"The\",EO434,VLOOKUP(VLOOKUP($G434,$H$11:$DO$1000,109,FALSE),DeclMatrix!$A$2:$F$5,VLOOKUP('Enrollment Form'!$B434,DeclMatrix!$A$8:$B$12,2,FALSE),FALSE))))","v":""},{"$f":"IF($A434=\"\",\"\",IF(VLOOKUP($G434,$H$11:$DO$1000,112,FALSE)=\"\",\"No\",IF(LEFT(VLOOKUP($G434,$H$11:$DO$1000,112,FALSE),3)=\"The\",EP434,VLOOKUP(VLOOKUP($G434,$H$11:$DO$1000,112,FALSE),DeclMatrix!$A$2:$F$5,VLOOKUP('Enrollment Form'!$B434,DeclMatrix!$A$8:$B$12,2,FALSE),FALSE))))","v":""},null,null,null,null,null,null,null,null,"",null,"","","","","","","","","","","",""]
["",null,null,null,null,null,"","",null,null,null,null,null,null,null,null,null,null,null,null,null,null,null,null,null,null,"","","","",null,null,"",null,null,null,null,null,null,null,null,null,null,null,null,null,null,null,null,null,null,null,null,null,null,null,null,null,null,null,"","","",null,null,null,null,"","","","",null,null,null,null,null,null,null,null,null,null,null,null,null,null,null,null,null,null,null,null,null,null,null,null,null,null,null,null,null,null,null,null,null,null,null,null,null,null,null,null,null,null,null,null,null,null,null,null,null,null,null,null,"",{"$f":"IF($A437=\"\",\"\",IF(VLOOKUP($G437,$H$11:$DO$1000,103,FALSE)=\"\",\"No\",IF(LEFT(VLOOKUP($G437,$H$11:$DO$1000,103,FALSE),3)=\"The\",EM437,VLOOKUP(VLOOKUP($G437,$H$11:$DO$1000,103,FALSE),DeclMatrix!$A$2:$F$5,VLOOKUP('Enrollment Form'!$B437,DeclMatrix!$A$8:$B$12,2,FALSE),FALSE))))","v":""},{"$f":"IF($A437=\"\",\"\",IF(VLOOKUP($G437,$H$11:$DO$1000,106,FALSE)=\"\",\"No\",IF(LEFT(VLOOKUP($G437,$H$11:$DO$1000,106,FALSE),3)=\"The\",EN437,VLOOKUP(VLOOKUP($G437,$H$11:$DO$1000,106,FALSE),DeclMatrix!$A$2:$F$5,VLOOKUP('Enrollment Form'!$B437,DeclMatrix!$A$8:$B$12,2,FALSE),FALSE))))","v":""},{"$f":"IF($A437=\"\",\"\",IF(VLOOKUP($G437,$H$11:$DO$1000,109,FALSE)=\"\",\"No\",IF(LEFT(VLOOKUP($G437,$H$11:$DO$1000,109,FALSE),3)=\"The\",EO437,VLOOKUP(VLOOKUP($G437,$H$11:$DO$1000,109,FALSE),DeclMatrix!$A$2:$F$5,VLOOKUP('Enrollment Form'!$B437,DeclMatrix!$A$8:$B$12,2,FALSE),FALSE))))","v":""},{"$f":"IF($A437=\"\",\"\",IF(VLOOKUP($G437,$H$11:$DO$1000,112,FALSE)=\"\",\"No\",IF(LEFT(VLOOKUP($G437,$H$11:$DO$1000,112,FALSE),3)=\"The\",EP437,VLOOKUP(VLOOKUP($G437,$H$11:$DO$1000,112,FALSE),DeclMatrix!$A$2:$F$5,VLOOKUP('Enrollment Form'!$B437,DeclMatrix!$A$8:$B$12,2,FALSE),FALSE))))","v":""},null,null,null,null,null,null,null,null,"",null,"","","","","","","","","","","",""]
["",null,null,null,null,null,"","",null,null,null,null,null,null,null,null,null,null,null,null,null,null,null,null,null,null,"","","","",null,null,"",null,null,null,null,null,null,null,null,null,null,null,null,null,null,null,null,null,null,null,null,null,null,null,null,null,null,null,"","","",null,null,null,null,"","","","",null,null,null,null,null,null,null,null,null,null,null,null,null,null,null,null,null,null,null,null,null,null,null,null,null,null,null,null,null,null,null,null,null,null,null,null,null,null,null,null,null,null,null,null,null,null,null,null,null,null,null,null,"",{"$f":"IF($A439=\"\",\"\",IF(VLOOKUP($G439,$H$11:$DO$1000,103,FALSE)=\"\",\"No\",IF(LEFT(VLOOKUP($G439,$H$11:$DO$1000,103,FALSE),3)=\"The\",EM439,VLOOKUP(VLOOKUP($G439,$H$11:$DO$1000,103,FALSE),DeclMatrix!$A$2:$F$5,VLOOKUP('Enrollment Form'!$B439,DeclMatrix!$A$8:$B$12,2,FALSE),FALSE))))","v":""},{"$f":"IF($A439=\"\",\"\",IF(VLOOKUP($G439,$H$11:$DO$1000,106,FALSE)=\"\",\"No\",IF(LEFT(VLOOKUP($G439,$H$11:$DO$1000,106,FALSE),3)=\"The\",EN439,VLOOKUP(VLOOKUP($G439,$H$11:$DO$1000,106,FALSE),DeclMatrix!$A$2:$F$5,VLOOKUP('Enrollment Form'!$B439,DeclMatrix!$A$8:$B$12,2,FALSE),FALSE))))","v":""},{"$f":"IF($A439=\"\",\"\",IF(VLOOKUP($G439,$H$11:$DO$1000,109,FALSE)=\"\",\"No\",IF(LEFT(VLOOKUP($G439,$H$11:$DO$1000,109,FALSE),3)=\"The\",EO439,VLOOKUP(VLOOKUP($G439,$H$11:$DO$1000,109,FALSE),DeclMatrix!$A$2:$F$5,VLOOKUP('Enrollment Form'!$B439,DeclMatrix!$A$8:$B$12,2,FALSE),FALSE))))","v":""},{"$f":"IF($A439=\"\",\"\",IF(VLOOKUP($G439,$H$11:$DO$1000,112,FALSE)=\"\",\"No\",IF(LEFT(VLOOKUP($G439,$H$11:$DO$1000,112,FALSE),3)=\"The\",EP439,VLOOKUP(VLOOKUP($G439,$H$11:$DO$1000,112,FALSE),DeclMatrix!$A$2:$F$5,VLOOKUP('Enrollment Form'!$B439,DeclMatrix!$A$8:$B$12,2,FALSE),FALSE))))","v":""},null,null,null,null,null,null,null,null,"",null,"","","","","","","","","","","",""]
["",null,null,null,null,null,"","",null,null,null,null,null,null,null,null,null,null,null,null,null,null,null,null,null,null,"","","","",null,null,"",null,null,null,null,null,null,null,null,null,null,null,null,null,null,null,null,null,null,null,null,null,null,null,null,null,null,null,"","","",null,null,null,null,"","","","",null,null,null,null,null,null,null,null,null,null,null,null,null,null,null,null,null,null,null,null,null,null,null,null,null,null,null,null,null,null,null,null,null,null,null,null,null,null,null,null,null,null,null,null,null,null,null,null,null,null,null,null,"",{"$f":"IF($A440=\"\",\"\",IF(VLOOKUP($G440,$H$11:$DO$1000,103,FALSE)=\"\",\"No\",IF(LEFT(VLOOKUP($G440,$H$11:$DO$1000,103,FALSE),3)=\"The\",EM440,VLOOKUP(VLOOKUP($G440,$H$11:$DO$1000,103,FALSE),DeclMatrix!$A$2:$F$5,VLOOKUP('Enrollment Form'!$B440,DeclMatrix!$A$8:$B$12,2,FALSE),FALSE))))","v":""},{"$f":"IF($A440=\"\",\"\",IF(VLOOKUP($G440,$H$11:$DO$1000,106,FALSE)=\"\",\"No\",IF(LEFT(VLOOKUP($G440,$H$11:$DO$1000,106,FALSE),3)=\"The\",EN440,VLOOKUP(VLOOKUP($G440,$H$11:$DO$1000,106,FALSE),DeclMatrix!$A$2:$F$5,VLOOKUP('Enrollment Form'!$B440,DeclMatrix!$A$8:$B$12,2,FALSE),FALSE))))","v":""},{"$f":"IF($A440=\"\",\"\",IF(VLOOKUP($G440,$H$11:$DO$1000,109,FALSE)=\"\",\"No\",IF(LEFT(VLOOKUP($G440,$H$11:$DO$1000,109,FALSE),3)=\"The\",EO440,VLOOKUP(VLOOKUP($G440,$H$11:$DO$1000,109,FALSE),DeclMatrix!$A$2:$F$5,VLOOKUP('Enrollment Form'!$B440,DeclMatrix!$A$8:$B$12,2,FALSE),FALSE))))","v":""},{"$f":"IF($A440=\"\",\"\",IF(VLOOKUP($G440,$H$11:$DO$1000,112,FALSE)=\"\",\"No\",IF(LEFT(VLOOKUP($G440,$H$11:$DO$1000,112,FALSE),3)=\"The\",EP440,VLOOKUP(VLOOKUP($G440,$H$11:$DO$1000,112,FALSE),DeclMatrix!$A$2:$F$5,VLOOKUP('Enrollment Form'!$B440,DeclMatrix!$A$8:$B$12,2,FALSE),FALSE))))","v":""},null,null,null,null,null,null,null,null,"",null,"","","","","","","","","","","",""]
["",null,null,null,null,null,"","",null,null,null,null,null,null,null,null,null,null,null,null,null,null,null,null,null,null,"","","","",null,null,"",null,null,null,null,null,null,null,null,null,null,null,null,null,null,null,null,null,null,null,null,null,null,null,null,null,null,null,"","","",null,null,null,null,"","","","",null,null,null,null,null,null,null,null,null,null,null,null,null,null,null,null,null,null,null,null,null,null,null,null,null,null,null,null,null,null,null,null,null,null,null,null,null,null,null,null,null,null,null,null,null,null,null,null,null,null,null,null,"",{"$f":"IF($A443=\"\",\"\",IF(VLOOKUP($G443,$H$11:$DO$1000,103,FALSE)=\"\",\"No\",IF(LEFT(VLOOKUP($G443,$H$11:$DO$1000,103,FALSE),3)=\"The\",EM443,VLOOKUP(VLOOKUP($G443,$H$11:$DO$1000,103,FALSE),DeclMatrix!$A$2:$F$5,VLOOKUP('Enrollment Form'!$B443,DeclMatrix!$A$8:$B$12,2,FALSE),FALSE))))","v":""},{"$f":"IF($A443=\"\",\"\",IF(VLOOKUP($G443,$H$11:$DO$1000,106,FALSE)=\"\",\"No\",IF(LEFT(VLOOKUP($G443,$H$11:$DO$1000,106,FALSE),3)=\"The\",EN443,VLOOKUP(VLOOKUP($G443,$H$11:$DO$1000,106,FALSE),DeclMatrix!$A$2:$F$5,VLOOKUP('Enrollment Form'!$B443,DeclMatrix!$A$8:$B$12,2,FALSE),FALSE))))","v":""},{"$f":"IF($A443=\"\",\"\",IF(VLOOKUP($G443,$H$11:$DO$1000,109,FALSE)=\"\",\"No\",IF(LEFT(VLOOKUP($G443,$H$11:$DO$1000,109,FALSE),3)=\"The\",EO443,VLOOKUP(VLOOKUP($G443,$H$11:$DO$1000,109,FALSE),DeclMatrix!$A$2:$F$5,VLOOKUP('Enrollment Form'!$B443,DeclMatrix!$A$8:$B$12,2,FALSE),FALSE))))","v":""},{"$f":"IF($A443=\"\",\"\",IF(VLOOKUP($G443,$H$11:$DO$1000,112,FALSE)=\"\",\"No\",IF(LEFT(VLOOKUP($G443,$H$11:$DO$1000,112,FALSE),3)=\"The\",EP443,VLOOKUP(VLOOKUP($G443,$H$11:$DO$1000,112,FALSE),DeclMatrix!$A$2:$F$5,VLOOKUP('Enrollment Form'!$B443,DeclMatrix!$A$8:$B$12,2,FALSE),FALSE))))","v":""},null,null,null,null,null,null,null,null,"",null,"","","","","","","","","","","",""]
["",null,null,null,null,null,"","",null,null,null,null,null,null,null,null,null,null,null,null,null,null,null,null,null,null,"","","","",null,null,"",null,null,null,null,null,null,null,null,null,null,null,null,null,null,null,null,null,null,null,null,null,null,null,null,null,null,null,"","","",null,null,null,null,"","","","",null,null,null,null,null,null,null,null,null,null,null,null,null,null,null,null,null,null,null,null,null,null,null,null,null,null,null,null,null,null,null,null,null,null,null,null,null,null,null,null,null,null,null,null,null,null,null,null,null,null,null,null,"",{"$f":"IF($A447=\"\",\"\",IF(VLOOKUP($G447,$H$11:$DO$1000,103,FALSE)=\"\",\"No\",IF(LEFT(VLOOKUP($G447,$H$11:$DO$1000,103,FALSE),3)=\"The\",EM447,VLOOKUP(VLOOKUP($G447,$H$11:$DO$1000,103,FALSE),DeclMatrix!$A$2:$F$5,VLOOKUP('Enrollment Form'!$B447,DeclMatrix!$A$8:$B$12,2,FALSE),FALSE))))","v":""},{"$f":"IF($A447=\"\",\"\",IF(VLOOKUP($G447,$H$11:$DO$1000,106,FALSE)=\"\",\"No\",IF(LEFT(VLOOKUP($G447,$H$11:$DO$1000,106,FALSE),3)=\"The\",EN447,VLOOKUP(VLOOKUP($G447,$H$11:$DO$1000,106,FALSE),DeclMatrix!$A$2:$F$5,VLOOKUP('Enrollment Form'!$B447,DeclMatrix!$A$8:$B$12,2,FALSE),FALSE))))","v":""},{"$f":"IF($A447=\"\",\"\",IF(VLOOKUP($G447,$H$11:$DO$1000,109,FALSE)=\"\",\"No\",IF(LEFT(VLOOKUP($G447,$H$11:$DO$1000,109,FALSE),3)=\"The\",EO447,VLOOKUP(VLOOKUP($G447,$H$11:$DO$1000,109,FALSE),DeclMatrix!$A$2:$F$5,VLOOKUP('Enrollment Form'!$B447,DeclMatrix!$A$8:$B$12,2,FALSE),FALSE))))","v":""},{"$f":"IF($A447=\"\",\"\",IF(VLOOKUP($G447,$H$11:$DO$1000,112,FALSE)=\"\",\"No\",IF(LEFT(VLOOKUP($G447,$H$11:$DO$1000,112,FALSE),3)=\"The\",EP447,VLOOKUP(VLOOKUP($G447,$H$11:$DO$1000,112,FALSE),DeclMatrix!$A$2:$F$5,VLOOKUP('Enrollment Form'!$B447,DeclMatrix!$A$8:$B$12,2,FALSE),FALSE))))","v":""},null,null,null,null,null,null,null,null,"",null,"","","","","","","","","","","",""]
["",null,null,null,null,null,"","",null,null,null,null,null,null,null,null,null,null,null,null,null,null,null,null,null,null,"","","","",null,null,"",null,null,null,null,null,null,null,null,null,null,null,null,null,null,null,null,null,null,null,null,null,null,null,null,null,null,null,"","","",null,null,null,null,"","","","",null,null,null,null,null,null,null,null,null,null,null,null,null,null,null,null,null,null,null,null,null,null,null,null,null,null,null,null,null,null,null,null,null,null,null,null,null,null,null,null,null,null,null,null,null,null,null,null,null,null,null,null,"",{"$f":"IF($A450=\"\",\"\",IF(VLOOKUP($G450,$H$11:$DO$1000,103,FALSE)=\"\",\"No\",IF(LEFT(VLOOKUP($G450,$H$11:$DO$1000,103,FALSE),3)=\"The\",EM450,VLOOKUP(VLOOKUP($G450,$H$11:$DO$1000,103,FALSE),DeclMatrix!$A$2:$F$5,VLOOKUP('Enrollment Form'!$B450,DeclMatrix!$A$8:$B$12,2,FALSE),FALSE))))","v":""},{"$f":"IF($A450=\"\",\"\",IF(VLOOKUP($G450,$H$11:$DO$1000,106,FALSE)=\"\",\"No\",IF(LEFT(VLOOKUP($G450,$H$11:$DO$1000,106,FALSE),3)=\"The\",EN450,VLOOKUP(VLOOKUP($G450,$H$11:$DO$1000,106,FALSE),DeclMatrix!$A$2:$F$5,VLOOKUP('Enrollment Form'!$B450,DeclMatrix!$A$8:$B$12,2,FALSE),FALSE))))","v":""},{"$f":"IF($A450=\"\",\"\",IF(VLOOKUP($G450,$H$11:$DO$1000,109,FALSE)=\"\",\"No\",IF(LEFT(VLOOKUP($G450,$H$11:$DO$1000,109,FALSE),3)=\"The\",EO450,VLOOKUP(VLOOKUP($G450,$H$11:$DO$1000,109,FALSE),DeclMatrix!$A$2:$F$5,VLOOKUP('Enrollment Form'!$B450,DeclMatrix!$A$8:$B$12,2,FALSE),FALSE))))","v":""},{"$f":"IF($A450=\"\",\"\",IF(VLOOKUP($G450,$H$11:$DO$1000,112,FALSE)=\"\",\"No\",IF(LEFT(VLOOKUP($G450,$H$11:$DO$1000,112,FALSE),3)=\"The\",EP450,VLOOKUP(VLOOKUP($G450,$H$11:$DO$1000,112,FALSE),DeclMatrix!$A$2:$F$5,VLOOKUP('Enrollment Form'!$B450,DeclMatrix!$A$8:$B$12,2,FALSE),FALSE))))","v":""},null,null,null,null,null,null,null,null,"",null,"","","","","","","","","","","",""]
["",null,null,null,null,null,"","",null,null,null,null,null,null,null,null,null,null,null,null,null,null,null,null,null,null,"","","","",null,null,"",null,null,null,null,null,null,null,null,null,null,null,null,null,null,null,null,null,null,null,null,null,null,null,null,null,null,null,"","","",null,null,null,null,"","","","",null,null,null,null,null,null,null,null,null,null,null,null,null,null,null,null,null,null,null,null,null,null,null,null,null,null,null,null,null,null,null,null,null,null,null,null,null,null,null,null,null,null,null,null,null,null,null,null,null,null,null,null,"",{"$f":"IF($A452=\"\",\"\",IF(VLOOKUP($G452,$H$11:$DO$1000,103,FALSE)=\"\",\"No\",IF(LEFT(VLOOKUP($G452,$H$11:$DO$1000,103,FALSE),3)=\"The\",EM452,VLOOKUP(VLOOKUP($G452,$H$11:$DO$1000,103,FALSE),DeclMatrix!$A$2:$F$5,VLOOKUP('Enrollment Form'!$B452,DeclMatrix!$A$8:$B$12,2,FALSE),FALSE))))","v":""},{"$f":"IF($A452=\"\",\"\",IF(VLOOKUP($G452,$H$11:$DO$1000,106,FALSE)=\"\",\"No\",IF(LEFT(VLOOKUP($G452,$H$11:$DO$1000,106,FALSE),3)=\"The\",EN452,VLOOKUP(VLOOKUP($G452,$H$11:$DO$1000,106,FALSE),DeclMatrix!$A$2:$F$5,VLOOKUP('Enrollment Form'!$B452,DeclMatrix!$A$8:$B$12,2,FALSE),FALSE))))","v":""},{"$f":"IF($A452=\"\",\"\",IF(VLOOKUP($G452,$H$11:$DO$1000,109,FALSE)=\"\",\"No\",IF(LEFT(VLOOKUP($G452,$H$11:$DO$1000,109,FALSE),3)=\"The\",EO452,VLOOKUP(VLOOKUP($G452,$H$11:$DO$1000,109,FALSE),DeclMatrix!$A$2:$F$5,VLOOKUP('Enrollment Form'!$B452,DeclMatrix!$A$8:$B$12,2,FALSE),FALSE))))","v":""},{"$f":"IF($A452=\"\",\"\",IF(VLOOKUP($G452,$H$11:$DO$1000,112,FALSE)=\"\",\"No\",IF(LEFT(VLOOKUP($G452,$H$11:$DO$1000,112,FALSE),3)=\"The\",EP452,VLOOKUP(VLOOKUP($G452,$H$11:$DO$1000,112,FALSE),DeclMatrix!$A$2:$F$5,VLOOKUP('Enrollment Form'!$B452,DeclMatrix!$A$8:$B$12,2,FALSE),FALSE))))","v":""},null,null,null,null,null,null,null,null,"",null,"","","","","","","","","","","",""]
["",null,null,null,null,null,"","",null,null,null,null,null,null,null,null,null,null,null,null,null,null,null,null,null,null,"","","","",null,null,"",null,null,null,null,null,null,null,null,null,null,null,null,null,null,null,null,null,null,null,null,null,null,null,null,null,null,null,"","","",null,null,null,null,"","","","",null,null,null,null,null,null,null,null,null,null,null,null,null,null,null,null,null,null,null,null,null,null,null,null,null,null,null,null,null,null,null,null,null,null,null,null,null,null,null,null,null,null,null,null,null,null,null,null,null,null,null,null,"",{"$f":"IF($A456=\"\",\"\",IF(VLOOKUP($G456,$H$11:$DO$1000,103,FALSE)=\"\",\"No\",IF(LEFT(VLOOKUP($G456,$H$11:$DO$1000,103,FALSE),3)=\"The\",EM456,VLOOKUP(VLOOKUP($G456,$H$11:$DO$1000,103,FALSE),DeclMatrix!$A$2:$F$5,VLOOKUP('Enrollment Form'!$B456,DeclMatrix!$A$8:$B$12,2,FALSE),FALSE))))","v":""},{"$f":"IF($A456=\"\",\"\",IF(VLOOKUP($G456,$H$11:$DO$1000,106,FALSE)=\"\",\"No\",IF(LEFT(VLOOKUP($G456,$H$11:$DO$1000,106,FALSE),3)=\"The\",EN456,VLOOKUP(VLOOKUP($G456,$H$11:$DO$1000,106,FALSE),DeclMatrix!$A$2:$F$5,VLOOKUP('Enrollment Form'!$B456,DeclMatrix!$A$8:$B$12,2,FALSE),FALSE))))","v":""},{"$f":"IF($A456=\"\",\"\",IF(VLOOKUP($G456,$H$11:$DO$1000,109,FALSE)=\"\",\"No\",IF(LEFT(VLOOKUP($G456,$H$11:$DO$1000,109,FALSE),3)=\"The\",EO456,VLOOKUP(VLOOKUP($G456,$H$11:$DO$1000,109,FALSE),DeclMatrix!$A$2:$F$5,VLOOKUP('Enrollment Form'!$B456,DeclMatrix!$A$8:$B$12,2,FALSE),FALSE))))","v":""},{"$f":"IF($A456=\"\",\"\",IF(VLOOKUP($G456,$H$11:$DO$1000,112,FALSE)=\"\",\"No\",IF(LEFT(VLOOKUP($G456,$H$11:$DO$1000,112,FALSE),3)=\"The\",EP456,VLOOKUP(VLOOKUP($G456,$H$11:$DO$1000,112,FALSE),DeclMatrix!$A$2:$F$5,VLOOKUP('Enrollment Form'!$B456,DeclMatrix!$A$8:$B$12,2,FALSE),FALSE))))","v":""},null,null,null,null,null,null,null,null,"",null,"","","","","","","","","","","",""]
[{"$f":"IF(LEN($B459)>0,$C$2,\"\")","v":""},null,null,null,null,null,"","",null,null,null,null,null,null,null,null,null,null,null,null,null,null,null,null,null,null,"","","","",null,null,"",null,null,null,null,null,null,null,null,null,null,null,null,null,null,null,null,null,null,null,null,null,null,null,null,null,null,null,"","","",null,null,null,null,{"$f":"IF(AND($B459<>\"Subscriber\",$BO459=\"Yes\"),VLOOKUP($G459,$H$11:$Y$1000,15,FALSE),\"\")","v":""},{"$f":"IF(AND($B459<>\"Subscriber\",$BO459=\"Yes\"),VLOOKUP($G459,$H$11:$Y$1000,16,FALSE),\"\")","v":""},{"$f":"IF(AND($B459<>\"Subscriber\",$BO459=\"Yes\"),VLOOKUP($G459,$H$11:$Y$1000,17,FALSE),\"\")","v":""},{"$f":"IF(AND($B459<>\"Subscriber\",$BO459=\"Yes\"),VLOOKUP($G459,$H$11:$Y$1000,18,FALSE),\"\")","v":""},null,null,null,null,null,null,null,null,null,null,null,null,null,null,null,null,null,null,null,null,null,null,null,null,null,null,null,null,null,null,null,null,null,null,null,null,null,null,null,null,null,null,null,null,null,null,null,null,null,null,null,null,{"$f":"IF($A459=\"\",\"\",IF($B459=\"Subscriber\",$AG459,VLOOKUP($G459,$H$11:$AG$1000,26,FALSE)))","v":""},{"$f":"IF($A459=\"\",\"\",IF(VLOOKUP($G459,$H$11:$DO$1000,103,FALSE)=\"\",\"No\",IF(LEFT(VLOOKUP($G459,$H$11:$DO$1000,103,FALSE),3)=\"The\",EM459,VLOOKUP(VLOOKUP($G459,$H$11:$DO$1000,103,FALSE),DeclMatrix!$A$2:$F$5,VLOOKUP('Enrollment Form'!$B459,DeclMatrix!$A$8:$B$12,2,FALSE),FALSE))))","v":""},{"$f":"IF($A459=\"\",\"\",IF(VLOOKUP($G459,$H$11:$DO$1000,106,FALSE)=\"\",\"No\",IF(LEFT(VLOOKUP($G459,$H$11:$DO$1000,106,FALSE),3)=\"The\",EN459,VLOOKUP(VLOOKUP($G459,$H$11:$DO$1000,106,FALSE),DeclMatrix!$A$2:$F$5,VLOOKUP('Enrollment Form'!$B459,DeclMatrix!$A$8:$B$12,2,FALSE),FALSE))))","v":""},{"$f":"IF($A459=\"\",\"\",IF(VLOOKUP($G459,$H$11:$DO$1000,109,FALSE)=\"\",\"No\",IF(LEFT(VLOOKUP($G459,$H$11:$DO$1000,109,FALSE),3)=\"The\",EO459,VLOOKUP(VLOOKUP($G459,$H$11:$DO$1000,109,FALSE),DeclMatrix!$A$2:$F$5,VLOOKUP('Enrollment Form'!$B459,DeclMatrix!$A$8:$B$12,2,FALSE),FALSE))))","v":""},{"$f":"IF($A459=\"\",\"\",IF(VLOOKUP($G459,$H$11:$DO$1000,112,FALSE)=\"\",\"No\",IF(LEFT(VLOOKUP($G459,$H$11:$DO$1000,112,FALSE),3)=\"The\",EP459,VLOOKUP(VLOOKUP($G459,$H$11:$DO$1000,112,FALSE),DeclMatrix!$A$2:$F$5,VLOOKUP('Enrollment Form'!$B459,DeclMatrix!$A$8:$B$12,2,FALSE),FALSE))))","v":""},null,null,null,null,null,null,null,null,{"$f":"IF(A459<>\"\",\"1X\",\"\")","v":""},null,{"$f":"$B459&$G459&$J459","v":""},{"$f":"$B459&$G459&$L459","v":""},{"$f":"$B459&$G459&$N459","v":""},{"$f":"$B459&$G459&$O459","v":""},{"$f":"IF($A459=\"\",\"\",IF($B459=\"Subscriber\",\"No\",IF(OR($DF459=\"\",$DF459=\"No\"),\"No\",\"Yes\")))","v":""},{"$f":"IF($A459=\"\",\"\",IF($B459=\"Subscriber\",\"No\",IF(OR($DI459=\"\",$DI459=\"No\"),\"No\",\"Yes\")))","v":""},{"$f":"IF($A459=\"\",\"\",IF($B459=\"Subscriber\",\"No\",IF(OR($DL459=\"\",$DL459=\"No\"),\"No\",\"Yes\")))","v":""},{"$f":"IF($A459=\"\",\"\",IF($B459=\"Subscriber\",\"No\",IF(OR($DO459=\"\",$DO459=\"No\"),\"No\",\"Yes\")))","v":""},{"$f":"IF($A459=\"\",\"\",IF(AND($B459=\"Subscriber\",$I459<>\"Waive\",$I459<>\"\"),\"Yes\",IF(AND($B459<>\"Subscriber\",$BM459=\"Yes\"),VLOOKUP($G459,$H$11:$ET$1000,140,FALSE),IF(AND($C459=\"Enroll\",VLOOKUP($G460,$H$11:$ET$1000,103,FALSE)<>\"\"),VLOOKUP($DU459,$DV$2:$DW$3,2,FALSE),\"No\"))))","v":""},{"$f":"IF($A459=\"\",\"\",IF(AND($B459=\"Subscriber\",$K459<>\"Waive\",$K459<>\"\"),\"Yes\",IF(AND($B459<>\"Subscriber\",$BM459=\"Yes\"),VLOOKUP($G459,$H$11:$ET$1000,141,FALSE),IF(AND($C459=\"Enroll\",VLOOKUP($G460,$H$11:$ET$1000,106,FALSE)<>\"\"),VLOOKUP($DV459,$DV$2:$DW$3,2,FALSE),\"No\"))))","v":""},{"$f":"IF($A459=\"\",\"\",IF(AND($B459=\"Subscriber\",$M459<>\"Waive\",$M459<>\"\"),\"Yes\",IF(AND($B459<>\"Subscriber\",$BM459=\"Yes\"),VLOOKUP($G459,$H$11:$ET$1000,142,FALSE),IF(AND($C459=\"Enroll\",VLOOKUP($G460,$H$11:$ET$1000,109,FALSE)<>\"\"),VLOOKUP($DW459,$DV$2:$DW$3,2,FALSE),\"No\"))))","v":""},{"$f":"IF($A459=\"\",\"\",IF(AND($B459=\"Subscriber\",$O459<>\"Waive\",$O459<>\"\"),\"Yes\",IF(AND($B459<>\"Subscriber\",$BM459=\"Yes\"),VLOOKUP($G459,$H$11:$ET$1000,143,FALSE),IF(AND($C459=\"Enroll\",VLOOKUP($G460,$H$11:$ET$1000,112,FALSE)<>\"\"),VLOOKUP($DX459,$DV$2:$DW$3,2,FALSE),\"No\"))))","v":""}]
["",null,null,null,null,null,"","",null,null,null,null,null,null,null,null,null,null,null,null,null,null,null,null,null,null,"","","","",null,null,"",null,null,null,null,null,null,null,null,null,null,null,null,null,null,null,null,null,null,null,null,null,null,null,null,null,null,null,"","","",null,null,null,null,"","","","",null,null,null,null,null,null,null,null,null,null,null,null,null,null,null,null,null,null,null,null,null,null,null,null,null,null,null,null,null,null,null,null,null,null,null,null,null,null,null,null,null,null,null,null,null,null,null,null,null,null,null,null,"",{"$f":"IF($A461=\"\",\"\",IF(VLOOKUP($G461,$H$11:$DO$1000,103,FALSE)=\"\",\"No\",IF(LEFT(VLOOKUP($G461,$H$11:$DO$1000,103,FALSE),3)=\"The\",EM461,VLOOKUP(VLOOKUP($G461,$H$11:$DO$1000,103,FALSE),DeclMatrix!$A$2:$F$5,VLOOKUP('Enrollment Form'!$B461,DeclMatrix!$A$8:$B$12,2,FALSE),FALSE))))","v":""},{"$f":"IF($A461=\"\",\"\",IF(VLOOKUP($G461,$H$11:$DO$1000,106,FALSE)=\"\",\"No\",IF(LEFT(VLOOKUP($G461,$H$11:$DO$1000,106,FALSE),3)=\"The\",EN461,VLOOKUP(VLOOKUP($G461,$H$11:$DO$1000,106,FALSE),DeclMatrix!$A$2:$F$5,VLOOKUP('Enrollment Form'!$B461,DeclMatrix!$A$8:$B$12,2,FALSE),FALSE))))","v":""},{"$f":"IF($A461=\"\",\"\",IF(VLOOKUP($G461,$H$11:$DO$1000,109,FALSE)=\"\",\"No\",IF(LEFT(VLOOKUP($G461,$H$11:$DO$1000,109,FALSE),3)=\"The\",EO461,VLOOKUP(VLOOKUP($G461,$H$11:$DO$1000,109,FALSE),DeclMatrix!$A$2:$F$5,VLOOKUP('Enrollment Form'!$B461,DeclMatrix!$A$8:$B$12,2,FALSE),FALSE))))","v":""},{"$f":"IF($A461=\"\",\"\",IF(VLOOKUP($G461,$H$11:$DO$1000,112,FALSE)=\"\",\"No\",IF(LEFT(VLOOKUP($G461,$H$11:$DO$1000,112,FALSE),3)=\"The\",EP461,VLOOKUP(VLOOKUP($G461,$H$11:$DO$1000,112,FALSE),DeclMatrix!$A$2:$F$5,VLOOKUP('Enrollment Form'!$B461,DeclMatrix!$A$8:$B$12,2,FALSE),FALSE))))","v":""},null,null,null,null,null,null,null,null,"",null,"","","","","","","","","","","",""]
["",null,null,null,null,null,"","",null,null,null,null,null,null,null,null,null,null,null,null,null,null,null,null,null,null,"","","","",null,null,"",null,null,null,null,null,null,null,null,null,null,null,null,null,null,null,null,null,null,null,null,null,null,null,null,null,null,null,"","","",null,null,null,null,"","","","",null,null,null,null,null,null,null,null,null,null,null,null,null,null,null,null,null,null,null,null,null,null,null,null,null,null,null,null,null,null,null,null,null,null,null,null,null,null,null,null,null,null,null,null,null,null,null,null,null,null,null,null,"",{"$f":"IF($A462=\"\",\"\",IF(VLOOKUP($G462,$H$11:$DO$1000,103,FALSE)=\"\",\"No\",IF(LEFT(VLOOKUP($G462,$H$11:$DO$1000,103,FALSE),3)=\"The\",EM462,VLOOKUP(VLOOKUP($G462,$H$11:$DO$1000,103,FALSE),DeclMatrix!$A$2:$F$5,VLOOKUP('Enrollment Form'!$B462,DeclMatrix!$A$8:$B$12,2,FALSE),FALSE))))","v":""},{"$f":"IF($A462=\"\",\"\",IF(VLOOKUP($G462,$H$11:$DO$1000,106,FALSE)=\"\",\"No\",IF(LEFT(VLOOKUP($G462,$H$11:$DO$1000,106,FALSE),3)=\"The\",EN462,VLOOKUP(VLOOKUP($G462,$H$11:$DO$1000,106,FALSE),DeclMatrix!$A$2:$F$5,VLOOKUP('Enrollment Form'!$B462,DeclMatrix!$A$8:$B$12,2,FALSE),FALSE))))","v":""},{"$f":"IF($A462=\"\",\"\",IF(VLOOKUP($G462,$H$11:$DO$1000,109,FALSE)=\"\",\"No\",IF(LEFT(VLOOKUP($G462,$H$11:$DO$1000,109,FALSE),3)=\"The\",EO462,VLOOKUP(VLOOKUP($G462,$H$11:$DO$1000,109,FALSE),DeclMatrix!$A$2:$F$5,VLOOKUP('Enrollment Form'!$B462,DeclMatrix!$A$8:$B$12,2,FALSE),FALSE))))","v":""},{"$f":"IF($A462=\"\",\"\",IF(VLOOKUP($G462,$H$11:$DO$1000,112,FALSE)=\"\",\"No\",IF(LEFT(VLOOKUP($G462,$H$11:$DO$1000,112,FALSE),3)=\"The\",EP462,VLOOKUP(VLOOKUP($G462,$H$11:$DO$1000,112,FALSE),DeclMatrix!$A$2:$F$5,VLOOKUP('Enrollment Form'!$B462,DeclMatrix!$A$8:$B$12,2,FALSE),FALSE))))","v":""},null,null,null,null,null,null,null,null,"",null,"","","","","","","","","","","",""]
["",null,null,null,null,null,"","",null,null,null,null,null,null,null,null,null,null,null,null,null,null,null,null,null,null,"","","","",null,null,"",null,null,null,null,null,null,null,null,null,null,null,null,null,null,null,null,null,null,null,null,null,null,null,null,null,null,null,"","","",null,null,null,null,"","","","",null,null,null,null,null,null,null,null,null,null,null,null,null,null,null,null,null,null,null,null,null,null,null,null,null,null,null,null,null,null,null,null,null,null,null,null,null,null,null,null,null,null,null,null,null,null,null,null,null,null,null,null,"",{"$f":"IF($A465=\"\",\"\",IF(VLOOKUP($G465,$H$11:$DO$1000,103,FALSE)=\"\",\"No\",IF(LEFT(VLOOKUP($G465,$H$11:$DO$1000,103,FALSE),3)=\"The\",EM465,VLOOKUP(VLOOKUP($G465,$H$11:$DO$1000,103,FALSE),DeclMatrix!$A$2:$F$5,VLOOKUP('Enrollment Form'!$B465,DeclMatrix!$A$8:$B$12,2,FALSE),FALSE))))","v":""},{"$f":"IF($A465=\"\",\"\",IF(VLOOKUP($G465,$H$11:$DO$1000,106,FALSE)=\"\",\"No\",IF(LEFT(VLOOKUP($G465,$H$11:$DO$1000,106,FALSE),3)=\"The\",EN465,VLOOKUP(VLOOKUP($G465,$H$11:$DO$1000,106,FALSE),DeclMatrix!$A$2:$F$5,VLOOKUP('Enrollment Form'!$B465,DeclMatrix!$A$8:$B$12,2,FALSE),FALSE))))","v":""},{"$f":"IF($A465=\"\",\"\",IF(VLOOKUP($G465,$H$11:$DO$1000,109,FALSE)=\"\",\"No\",IF(LEFT(VLOOKUP($G465,$H$11:$DO$1000,109,FALSE),3)=\"The\",EO465,VLOOKUP(VLOOKUP($G465,$H$11:$DO$1000,109,FALSE),DeclMatrix!$A$2:$F$5,VLOOKUP('Enrollment Form'!$B465,DeclMatrix!$A$8:$B$12,2,FALSE),FALSE))))","v":""},{"$f":"IF($A465=\"\",\"\",IF(VLOOKUP($G465,$H$11:$DO$1000,112,FALSE)=\"\",\"No\",IF(LEFT(VLOOKUP($G465,$H$11:$DO$1000,112,FALSE),3)=\"The\",EP465,VLOOKUP(VLOOKUP($G465,$H$11:$DO$1000,112,FALSE),DeclMatrix!$A$2:$F$5,VLOOKUP('Enrollment Form'!$B465,DeclMatrix!$A$8:$B$12,2,FALSE),FALSE))))","v":""},null,null,null,null,null,null,null,null,"",null,"","","","","","","","","","","",""]
["",null,null,null,null,null,"","",null,null,null,null,null,null,null,null,null,null,null,null,null,null,null,null,null,null,"","","","",null,null,"",null,null,null,null,null,null,null,null,null,null,null,null,null,null,null,null,null,null,null,null,null,null,null,null,null,null,null,"","","",null,null,null,null,"","","","",null,null,null,null,null,null,null,null,null,null,null,null,null,null,null,null,null,null,null,null,null,null,null,null,null,null,null,null,null,null,null,null,null,null,null,null,null,null,null,null,null,null,null,null,null,null,null,null,null,null,null,null,"",{"$f":"IF($A469=\"\",\"\",IF(VLOOKUP($G469,$H$11:$DO$1000,103,FALSE)=\"\",\"No\",IF(LEFT(VLOOKUP($G469,$H$11:$DO$1000,103,FALSE),3)=\"The\",EM469,VLOOKUP(VLOOKUP($G469,$H$11:$DO$1000,103,FALSE),DeclMatrix!$A$2:$F$5,VLOOKUP('Enrollment Form'!$B469,DeclMatrix!$A$8:$B$12,2,FALSE),FALSE))))","v":""},{"$f":"IF($A469=\"\",\"\",IF(VLOOKUP($G469,$H$11:$DO$1000,106,FALSE)=\"\",\"No\",IF(LEFT(VLOOKUP($G469,$H$11:$DO$1000,106,FALSE),3)=\"The\",EN469,VLOOKUP(VLOOKUP($G469,$H$11:$DO$1000,106,FALSE),DeclMatrix!$A$2:$F$5,VLOOKUP('Enrollment Form'!$B469,DeclMatrix!$A$8:$B$12,2,FALSE),FALSE))))","v":""},{"$f":"IF($A469=\"\",\"\",IF(VLOOKUP($G469,$H$11:$DO$1000,109,FALSE)=\"\",\"No\",IF(LEFT(VLOOKUP($G469,$H$11:$DO$1000,109,FALSE),3)=\"The\",EO469,VLOOKUP(VLOOKUP($G469,$H$11:$DO$1000,109,FALSE),DeclMatrix!$A$2:$F$5,VLOOKUP('Enrollment Form'!$B469,DeclMatrix!$A$8:$B$12,2,FALSE),FALSE))))","v":""},{"$f":"IF($A469=\"\",\"\",IF(VLOOKUP($G469,$H$11:$DO$1000,112,FALSE)=\"\",\"No\",IF(LEFT(VLOOKUP($G469,$H$11:$DO$1000,112,FALSE),3)=\"The\",EP469,VLOOKUP(VLOOKUP($G469,$H$11:$DO$1000,112,FALSE),DeclMatrix!$A$2:$F$5,VLOOKUP('Enrollment Form'!$B469,DeclMatrix!$A$8:$B$12,2,FALSE),FALSE))))","v":""},null,null,null,null,null,null,null,null,"",null,"","","","","","","","","","","",""]
["",null,null,null,null,null,"","",null,null,null,null,null,null,null,null,null,null,null,null,null,null,null,null,null,null,"","","","",null,null,"",null,null,null,null,null,null,null,null,null,null,null,null,null,null,null,null,null,null,null,null,null,null,null,null,null,null,null,"","","",null,null,null,null,"","","","",null,null,null,null,null,null,null,null,null,null,null,null,null,null,null,null,null,null,null,null,null,null,null,null,null,null,null,null,null,null,null,null,null,null,null,null,null,null,null,null,null,null,null,null,null,null,null,null,null,null,null,null,"",{"$f":"IF($A472=\"\",\"\",IF(VLOOKUP($G472,$H$11:$DO$1000,103,FALSE)=\"\",\"No\",IF(LEFT(VLOOKUP($G472,$H$11:$DO$1000,103,FALSE),3)=\"The\",EM472,VLOOKUP(VLOOKUP($G472,$H$11:$DO$1000,103,FALSE),DeclMatrix!$A$2:$F$5,VLOOKUP('Enrollment Form'!$B472,DeclMatrix!$A$8:$B$12,2,FALSE),FALSE))))","v":""},{"$f":"IF($A472=\"\",\"\",IF(VLOOKUP($G472,$H$11:$DO$1000,106,FALSE)=\"\",\"No\",IF(LEFT(VLOOKUP($G472,$H$11:$DO$1000,106,FALSE),3)=\"The\",EN472,VLOOKUP(VLOOKUP($G472,$H$11:$DO$1000,106,FALSE),DeclMatrix!$A$2:$F$5,VLOOKUP('Enrollment Form'!$B472,DeclMatrix!$A$8:$B$12,2,FALSE),FALSE))))","v":""},{"$f":"IF($A472=\"\",\"\",IF(VLOOKUP($G472,$H$11:$DO$1000,109,FALSE)=\"\",\"No\",IF(LEFT(VLOOKUP($G472,$H$11:$DO$1000,109,FALSE),3)=\"The\",EO472,VLOOKUP(VLOOKUP($G472,$H$11:$DO$1000,109,FALSE),DeclMatrix!$A$2:$F$5,VLOOKUP('Enrollment Form'!$B472,DeclMatrix!$A$8:$B$12,2,FALSE),FALSE))))","v":""},{"$f":"IF($A472=\"\",\"\",IF(VLOOKUP($G472,$H$11:$DO$1000,112,FALSE)=\"\",\"No\",IF(LEFT(VLOOKUP($G472,$H$11:$DO$1000,112,FALSE),3)=\"The\",EP472,VLOOKUP(VLOOKUP($G472,$H$11:$DO$1000,112,FALSE),DeclMatrix!$A$2:$F$5,VLOOKUP('Enrollment Form'!$B472,DeclMatrix!$A$8:$B$12,2,FALSE),FALSE))))","v":""},null,null,null,null,null,null,null,null,"",null,"","","","","","","","","","","",""]
["",null,null,null,null,null,"","",null,null,null,null,null,null,null,null,null,null,null,null,null,null,null,null,null,null,"","","","",null,null,"",null,null,null,null,null,null,null,null,null,null,null,null,null,null,null,null,null,null,null,null,null,null,null,null,null,null,null,"","","",null,null,null,null,"","","","",null,null,null,null,null,null,null,null,null,null,null,null,null,null,null,null,null,null,null,null,null,null,null,null,null,null,null,null,null,null,null,null,null,null,null,null,null,null,null,null,null,null,null,null,null,null,null,null,null,null,null,null,"",{"$f":"IF($A474=\"\",\"\",IF(VLOOKUP($G474,$H$11:$DO$1000,103,FALSE)=\"\",\"No\",IF(LEFT(VLOOKUP($G474,$H$11:$DO$1000,103,FALSE),3)=\"The\",EM474,VLOOKUP(VLOOKUP($G474,$H$11:$DO$1000,103,FALSE),DeclMatrix!$A$2:$F$5,VLOOKUP('Enrollment Form'!$B474,DeclMatrix!$A$8:$B$12,2,FALSE),FALSE))))","v":""},{"$f":"IF($A474=\"\",\"\",IF(VLOOKUP($G474,$H$11:$DO$1000,106,FALSE)=\"\",\"No\",IF(LEFT(VLOOKUP($G474,$H$11:$DO$1000,106,FALSE),3)=\"The\",EN474,VLOOKUP(VLOOKUP($G474,$H$11:$DO$1000,106,FALSE),DeclMatrix!$A$2:$F$5,VLOOKUP('Enrollment Form'!$B474,DeclMatrix!$A$8:$B$12,2,FALSE),FALSE))))","v":""},{"$f":"IF($A474=\"\",\"\",IF(VLOOKUP($G474,$H$11:$DO$1000,109,FALSE)=\"\",\"No\",IF(LEFT(VLOOKUP($G474,$H$11:$DO$1000,109,FALSE),3)=\"The\",EO474,VLOOKUP(VLOOKUP($G474,$H$11:$DO$1000,109,FALSE),DeclMatrix!$A$2:$F$5,VLOOKUP('Enrollment Form'!$B474,DeclMatrix!$A$8:$B$12,2,FALSE),FALSE))))","v":""},{"$f":"IF($A474=\"\",\"\",IF(VLOOKUP($G474,$H$11:$DO$1000,112,FALSE)=\"\",\"No\",IF(LEFT(VLOOKUP($G474,$H$11:$DO$1000,112,FALSE),3)=\"The\",EP474,VLOOKUP(VLOOKUP($G474,$H$11:$DO$1000,112,FALSE),DeclMatrix!$A$2:$F$5,VLOOKUP('Enrollment Form'!$B474,DeclMatrix!$A$8:$B$12,2,FALSE),FALSE))))","v":""},null,null,null,null,null,null,null,null,"",null,"","","","","","","","","","","",""]
["",null,null,null,null,null,"","",null,null,null,null,null,null,null,null,null,null,null,null,null,null,null,null,null,null,"","","","",null,null,"",null,null,null,null,null,null,null,null,null,null,null,null,null,null,null,null,null,null,null,null,null,null,null,null,null,null,null,"","","",null,null,null,null,"","","","",null,null,null,null,null,null,null,null,null,null,null,null,null,null,null,null,null,null,null,null,null,null,null,null,null,null,null,null,null,null,null,null,null,null,null,null,null,null,null,null,null,null,null,null,null,null,null,null,null,null,null,null,"",{"$f":"IF($A478=\"\",\"\",IF(VLOOKUP($G478,$H$11:$DO$1000,103,FALSE)=\"\",\"No\",IF(LEFT(VLOOKUP($G478,$H$11:$DO$1000,103,FALSE),3)=\"The\",EM478,VLOOKUP(VLOOKUP($G478,$H$11:$DO$1000,103,FALSE),DeclMatrix!$A$2:$F$5,VLOOKUP('Enrollment Form'!$B478,DeclMatrix!$A$8:$B$12,2,FALSE),FALSE))))","v":""},{"$f":"IF($A478=\"\",\"\",IF(VLOOKUP($G478,$H$11:$DO$1000,106,FALSE)=\"\",\"No\",IF(LEFT(VLOOKUP($G478,$H$11:$DO$1000,106,FALSE),3)=\"The\",EN478,VLOOKUP(VLOOKUP($G478,$H$11:$DO$1000,106,FALSE),DeclMatrix!$A$2:$F$5,VLOOKUP('Enrollment Form'!$B478,DeclMatrix!$A$8:$B$12,2,FALSE),FALSE))))","v":""},{"$f":"IF($A478=\"\",\"\",IF(VLOOKUP($G478,$H$11:$DO$1000,109,FALSE)=\"\",\"No\",IF(LEFT(VLOOKUP($G478,$H$11:$DO$1000,109,FALSE),3)=\"The\",EO478,VLOOKUP(VLOOKUP($G478,$H$11:$DO$1000,109,FALSE),DeclMatrix!$A$2:$F$5,VLOOKUP('Enrollment Form'!$B478,DeclMatrix!$A$8:$B$12,2,FALSE),FALSE))))","v":""},{"$f":"IF($A478=\"\",\"\",IF(VLOOKUP($G478,$H$11:$DO$1000,112,FALSE)=\"\",\"No\",IF(LEFT(VLOOKUP($G478,$H$11:$DO$1000,112,FALSE),3)=\"The\",EP478,VLOOKUP(VLOOKUP($G478,$H$11:$DO$1000,112,FALSE),DeclMatrix!$A$2:$F$5,VLOOKUP('Enrollment Form'!$B478,DeclMatrix!$A$8:$B$12,2,FALSE),FALSE))))","v":""},null,null,null,null,null,null,null,null,"",null,"","","","","","","","","","","",""]
["",null,null,null,null,null,"","",null,null,null,null,null,null,null,null,null,null,null,null,null,null,null,null,null,null,"","","","",null,null,"",null,null,null,null,null,null,null,null,null,null,null,null,null,null,null,null,null,null,null,null,null,null,null,null,null,null,null,"","","",null,null,null,null,"","","","",null,null,null,null,null,null,null,null,null,null,null,null,null,null,null,null,null,null,null,null,null,null,null,null,null,null,null,null,null,null,null,null,null,null,null,null,null,null,null,null,null,null,null,null,null,null,null,null,null,null,null,null,"",{"$f":"IF($A481=\"\",\"\",IF(VLOOKUP($G481,$H$11:$DO$1000,103,FALSE)=\"\",\"No\",IF(LEFT(VLOOKUP($G481,$H$11:$DO$1000,103,FALSE),3)=\"The\",EM481,VLOOKUP(VLOOKUP($G481,$H$11:$DO$1000,103,FALSE),DeclMatrix!$A$2:$F$5,VLOOKUP('Enrollment Form'!$B481,DeclMatrix!$A$8:$B$12,2,FALSE),FALSE))))","v":""},{"$f":"IF($A481=\"\",\"\",IF(VLOOKUP($G481,$H$11:$DO$1000,106,FALSE)=\"\",\"No\",IF(LEFT(VLOOKUP($G481,$H$11:$DO$1000,106,FALSE),3)=\"The\",EN481,VLOOKUP(VLOOKUP($G481,$H$11:$DO$1000,106,FALSE),DeclMatrix!$A$2:$F$5,VLOOKUP('Enrollment Form'!$B481,DeclMatrix!$A$8:$B$12,2,FALSE),FALSE))))","v":""},{"$f":"IF($A481=\"\",\"\",IF(VLOOKUP($G481,$H$11:$DO$1000,109,FALSE)=\"\",\"No\",IF(LEFT(VLOOKUP($G481,$H$11:$DO$1000,109,FALSE),3)=\"The\",EO481,VLOOKUP(VLOOKUP($G481,$H$11:$DO$1000,109,FALSE),DeclMatrix!$A$2:$F$5,VLOOKUP('Enrollment Form'!$B481,DeclMatrix!$A$8:$B$12,2,FALSE),FALSE))))","v":""},{"$f":"IF($A481=\"\",\"\",IF(VLOOKUP($G481,$H$11:$DO$1000,112,FALSE)=\"\",\"No\",IF(LEFT(VLOOKUP($G481,$H$11:$DO$1000,112,FALSE),3)=\"The\",EP481,VLOOKUP(VLOOKUP($G481,$H$11:$DO$1000,112,FALSE),DeclMatrix!$A$2:$F$5,VLOOKUP('Enrollment Form'!$B481,DeclMatrix!$A$8:$B$12,2,FALSE),FALSE))))","v":""},null,null,null,null,null,null,null,null,"",null,"","","","","","","","","","","",""]
["",null,null,null,null,null,"","",null,null,null,null,null,null,null,null,null,null,null,null,null,null,null,null,null,null,"","","","",null,null,"",null,null,null,null,null,null,null,null,null,null,null,null,null,null,null,null,null,null,null,null,null,null,null,null,null,null,null,"","","",null,null,null,null,"","","","",null,null,null,null,null,null,null,null,null,null,null,null,null,null,null,null,null,null,null,null,null,null,null,null,null,null,null,null,null,null,null,null,null,null,null,null,null,null,null,null,null,null,null,null,null,null,null,null,null,null,null,null,"",{"$f":"IF($A483=\"\",\"\",IF(VLOOKUP($G483,$H$11:$DO$1000,103,FALSE)=\"\",\"No\",IF(LEFT(VLOOKUP($G483,$H$11:$DO$1000,103,FALSE),3)=\"The\",EM483,VLOOKUP(VLOOKUP($G483,$H$11:$DO$1000,103,FALSE),DeclMatrix!$A$2:$F$5,VLOOKUP('Enrollment Form'!$B483,DeclMatrix!$A$8:$B$12,2,FALSE),FALSE))))","v":""},{"$f":"IF($A483=\"\",\"\",IF(VLOOKUP($G483,$H$11:$DO$1000,106,FALSE)=\"\",\"No\",IF(LEFT(VLOOKUP($G483,$H$11:$DO$1000,106,FALSE),3)=\"The\",EN483,VLOOKUP(VLOOKUP($G483,$H$11:$DO$1000,106,FALSE),DeclMatrix!$A$2:$F$5,VLOOKUP('Enrollment Form'!$B483,DeclMatrix!$A$8:$B$12,2,FALSE),FALSE))))","v":""},{"$f":"IF($A483=\"\",\"\",IF(VLOOKUP($G483,$H$11:$DO$1000,109,FALSE)=\"\",\"No\",IF(LEFT(VLOOKUP($G483,$H$11:$DO$1000,109,FALSE),3)=\"The\",EO483,VLOOKUP(VLOOKUP($G483,$H$11:$DO$1000,109,FALSE),DeclMatrix!$A$2:$F$5,VLOOKUP('Enrollment Form'!$B483,DeclMatrix!$A$8:$B$12,2,FALSE),FALSE))))","v":""},{"$f":"IF($A483=\"\",\"\",IF(VLOOKUP($G483,$H$11:$DO$1000,112,FALSE)=\"\",\"No\",IF(LEFT(VLOOKUP($G483,$H$11:$DO$1000,112,FALSE),3)=\"The\",EP483,VLOOKUP(VLOOKUP($G483,$H$11:$DO$1000,112,FALSE),DeclMatrix!$A$2:$F$5,VLOOKUP('Enrollment Form'!$B483,DeclMatrix!$A$8:$B$12,2,FALSE),FALSE))))","v":""},null,null,null,null,null,null,null,null,"",null,"","","","","","","","","","","",""]
["",null,null,null,null,null,"","",null,null,null,null,null,null,null,null,null,null,null,null,null,null,null,null,null,null,"","","","",null,null,"",null,null,null,null,null,null,null,null,null,null,null,null,null,null,null,null,null,null,null,null,null,null,null,null,null,null,null,"","","",null,null,null,null,"","","","",null,null,null,null,null,null,null,null,null,null,null,null,null,null,null,null,null,null,null,null,null,null,null,null,null,null,null,null,null,null,null,null,null,null,null,null,null,null,null,null,null,null,null,null,null,null,null,null,null,null,null,null,"",{"$f":"IF($A484=\"\",\"\",IF(VLOOKUP($G484,$H$11:$DO$1000,103,FALSE)=\"\",\"No\",IF(LEFT(VLOOKUP($G484,$H$11:$DO$1000,103,FALSE),3)=\"The\",EM484,VLOOKUP(VLOOKUP($G484,$H$11:$DO$1000,103,FALSE),DeclMatrix!$A$2:$F$5,VLOOKUP('Enrollment Form'!$B484,DeclMatrix!$A$8:$B$12,2,FALSE),FALSE))))","v":""},{"$f":"IF($A484=\"\",\"\",IF(VLOOKUP($G484,$H$11:$DO$1000,106,FALSE)=\"\",\"No\",IF(LEFT(VLOOKUP($G484,$H$11:$DO$1000,106,FALSE),3)=\"The\",EN484,VLOOKUP(VLOOKUP($G484,$H$11:$DO$1000,106,FALSE),DeclMatrix!$A$2:$F$5,VLOOKUP('Enrollment Form'!$B484,DeclMatrix!$A$8:$B$12,2,FALSE),FALSE))))","v":""},{"$f":"IF($A484=\"\",\"\",IF(VLOOKUP($G484,$H$11:$DO$1000,109,FALSE)=\"\",\"No\",IF(LEFT(VLOOKUP($G484,$H$11:$DO$1000,109,FALSE),3)=\"The\",EO484,VLOOKUP(VLOOKUP($G484,$H$11:$DO$1000,109,FALSE),DeclMatrix!$A$2:$F$5,VLOOKUP('Enrollment Form'!$B484,DeclMatrix!$A$8:$B$12,2,FALSE),FALSE))))","v":""},{"$f":"IF($A484=\"\",\"\",IF(VLOOKUP($G484,$H$11:$DO$1000,112,FALSE)=\"\",\"No\",IF(LEFT(VLOOKUP($G484,$H$11:$DO$1000,112,FALSE),3)=\"The\",EP484,VLOOKUP(VLOOKUP($G484,$H$11:$DO$1000,112,FALSE),DeclMatrix!$A$2:$F$5,VLOOKUP('Enrollment Form'!$B484,DeclMatrix!$A$8:$B$12,2,FALSE),FALSE))))","v":""},null,null,null,null,null,null,null,null,"",null,"","","","","","","","","","","",""]
["",null,null,null,null,null,"","",null,null,null,null,null,null,null,null,null,null,null,null,null,null,null,null,null,null,"","","","",null,null,"",null,null,null,null,null,null,null,null,null,null,null,null,null,null,null,null,null,null,null,null,null,null,null,null,null,null,null,"","","",null,null,null,null,"","","","",null,null,null,null,null,null,null,null,null,null,null,null,null,null,null,null,null,null,null,null,null,null,null,null,null,null,null,null,null,null,null,null,null,null,null,null,null,null,null,null,null,null,null,null,null,null,null,null,null,null,null,null,"",{"$f":"IF($A487=\"\",\"\",IF(VLOOKUP($G487,$H$11:$DO$1000,103,FALSE)=\"\",\"No\",IF(LEFT(VLOOKUP($G487,$H$11:$DO$1000,103,FALSE),3)=\"The\",EM487,VLOOKUP(VLOOKUP($G487,$H$11:$DO$1000,103,FALSE),DeclMatrix!$A$2:$F$5,VLOOKUP('Enrollment Form'!$B487,DeclMatrix!$A$8:$B$12,2,FALSE),FALSE))))","v":""},{"$f":"IF($A487=\"\",\"\",IF(VLOOKUP($G487,$H$11:$DO$1000,106,FALSE)=\"\",\"No\",IF(LEFT(VLOOKUP($G487,$H$11:$DO$1000,106,FALSE),3)=\"The\",EN487,VLOOKUP(VLOOKUP($G487,$H$11:$DO$1000,106,FALSE),DeclMatrix!$A$2:$F$5,VLOOKUP('Enrollment Form'!$B487,DeclMatrix!$A$8:$B$12,2,FALSE),FALSE))))","v":""},{"$f":"IF($A487=\"\",\"\",IF(VLOOKUP($G487,$H$11:$DO$1000,109,FALSE)=\"\",\"No\",IF(LEFT(VLOOKUP($G487,$H$11:$DO$1000,109,FALSE),3)=\"The\",EO487,VLOOKUP(VLOOKUP($G487,$H$11:$DO$1000,109,FALSE),DeclMatrix!$A$2:$F$5,VLOOKUP('Enrollment Form'!$B487,DeclMatrix!$A$8:$B$12,2,FALSE),FALSE))))","v":""},{"$f":"IF($A487=\"\",\"\",IF(VLOOKUP($G487,$H$11:$DO$1000,112,FALSE)=\"\",\"No\",IF(LEFT(VLOOKUP($G487,$H$11:$DO$1000,112,FALSE),3)=\"The\",EP487,VLOOKUP(VLOOKUP($G487,$H$11:$DO$1000,112,FALSE),DeclMatrix!$A$2:$F$5,VLOOKUP('Enrollment Form'!$B487,DeclMatrix!$A$8:$B$12,2,FALSE),FALSE))))","v":""},null,null,null,null,null,null,null,null,"",null,"","","","","","","","","","","",""]
["",null,null,null,null,null,"","",null,null,null,null,null,null,null,null,null,null,null,null,null,null,null,null,null,null,"","","","",null,null,"",null,null,null,null,null,null,null,null,null,null,null,null,null,null,null,null,null,null,null,null,null,null,null,null,null,null,null,"","","",null,null,null,null,"","","","",null,null,null,null,null,null,null,null,null,null,null,null,null,null,null,null,null,null,null,null,null,null,null,null,null,null,null,null,null,null,null,null,null,null,null,null,null,null,null,null,null,null,null,null,null,null,null,null,null,null,null,null,"",{"$f":"IF($A491=\"\",\"\",IF(VLOOKUP($G491,$H$11:$DO$1000,103,FALSE)=\"\",\"No\",IF(LEFT(VLOOKUP($G491,$H$11:$DO$1000,103,FALSE),3)=\"The\",EM491,VLOOKUP(VLOOKUP($G491,$H$11:$DO$1000,103,FALSE),DeclMatrix!$A$2:$F$5,VLOOKUP('Enrollment Form'!$B491,DeclMatrix!$A$8:$B$12,2,FALSE),FALSE))))","v":""},{"$f":"IF($A491=\"\",\"\",IF(VLOOKUP($G491,$H$11:$DO$1000,106,FALSE)=\"\",\"No\",IF(LEFT(VLOOKUP($G491,$H$11:$DO$1000,106,FALSE),3)=\"The\",EN491,VLOOKUP(VLOOKUP($G491,$H$11:$DO$1000,106,FALSE),DeclMatrix!$A$2:$F$5,VLOOKUP('Enrollment Form'!$B491,DeclMatrix!$A$8:$B$12,2,FALSE),FALSE))))","v":""},{"$f":"IF($A491=\"\",\"\",IF(VLOOKUP($G491,$H$11:$DO$1000,109,FALSE)=\"\",\"No\",IF(LEFT(VLOOKUP($G491,$H$11:$DO$1000,109,FALSE),3)=\"The\",EO491,VLOOKUP(VLOOKUP($G491,$H$11:$DO$1000,109,FALSE),DeclMatrix!$A$2:$F$5,VLOOKUP('Enrollment Form'!$B491,DeclMatrix!$A$8:$B$12,2,FALSE),FALSE))))","v":""},{"$f":"IF($A491=\"\",\"\",IF(VLOOKUP($G491,$H$11:$DO$1000,112,FALSE)=\"\",\"No\",IF(LEFT(VLOOKUP($G491,$H$11:$DO$1000,112,FALSE),3)=\"The\",EP491,VLOOKUP(VLOOKUP($G491,$H$11:$DO$1000,112,FALSE),DeclMatrix!$A$2:$F$5,VLOOKUP('Enrollment Form'!$B491,DeclMatrix!$A$8:$B$12,2,FALSE),FALSE))))","v":""},null,null,null,null,null,null,null,null,"",null,"","","","","","","","","","","",""]
["",null,null,null,null,null,"","",null,null,null,null,null,null,null,null,null,null,null,null,null,null,null,null,null,null,"","","","",null,null,"",null,null,null,null,null,null,null,null,null,null,null,null,null,null,null,null,null,null,null,null,null,null,null,null,null,null,null,"","","",null,null,null,null,"","","","",null,null,null,null,null,null,null,null,null,null,null,null,null,null,null,null,null,null,null,null,null,null,null,null,null,null,null,null,null,null,null,null,null,null,null,null,null,null,null,null,null,null,null,null,null,null,null,null,null,null,null,null,"",{"$f":"IF($A494=\"\",\"\",IF(VLOOKUP($G494,$H$11:$DO$1000,103,FALSE)=\"\",\"No\",IF(LEFT(VLOOKUP($G494,$H$11:$DO$1000,103,FALSE),3)=\"The\",EM494,VLOOKUP(VLOOKUP($G494,$H$11:$DO$1000,103,FALSE),DeclMatrix!$A$2:$F$5,VLOOKUP('Enrollment Form'!$B494,DeclMatrix!$A$8:$B$12,2,FALSE),FALSE))))","v":""},{"$f":"IF($A494=\"\",\"\",IF(VLOOKUP($G494,$H$11:$DO$1000,106,FALSE)=\"\",\"No\",IF(LEFT(VLOOKUP($G494,$H$11:$DO$1000,106,FALSE),3)=\"The\",EN494,VLOOKUP(VLOOKUP($G494,$H$11:$DO$1000,106,FALSE),DeclMatrix!$A$2:$F$5,VLOOKUP('Enrollment Form'!$B494,DeclMatrix!$A$8:$B$12,2,FALSE),FALSE))))","v":""},{"$f":"IF($A494=\"\",\"\",IF(VLOOKUP($G494,$H$11:$DO$1000,109,FALSE)=\"\",\"No\",IF(LEFT(VLOOKUP($G494,$H$11:$DO$1000,109,FALSE),3)=\"The\",EO494,VLOOKUP(VLOOKUP($G494,$H$11:$DO$1000,109,FALSE),DeclMatrix!$A$2:$F$5,VLOOKUP('Enrollment Form'!$B494,DeclMatrix!$A$8:$B$12,2,FALSE),FALSE))))","v":""},{"$f":"IF($A494=\"\",\"\",IF(VLOOKUP($G494,$H$11:$DO$1000,112,FALSE)=\"\",\"No\",IF(LEFT(VLOOKUP($G494,$H$11:$DO$1000,112,FALSE),3)=\"The\",EP494,VLOOKUP(VLOOKUP($G494,$H$11:$DO$1000,112,FALSE),DeclMatrix!$A$2:$F$5,VLOOKUP('Enrollment Form'!$B494,DeclMatrix!$A$8:$B$12,2,FALSE),FALSE))))","v":""},null,null,null,null,null,null,null,null,"",null,"","","","","","","","","","","",""]
["",null,null,null,null,null,"","",null,null,null,null,null,null,null,null,null,null,null,null,null,null,null,null,null,null,"","","","",null,null,"",null,null,null,null,null,null,null,null,null,null,null,null,null,null,null,null,null,null,null,null,null,null,null,null,null,null,null,"","","",null,null,null,null,"","","","",null,null,null,null,null,null,null,null,null,null,null,null,null,null,null,null,null,null,null,null,null,null,null,null,null,null,null,null,null,null,null,null,null,null,null,null,null,null,null,null,null,null,null,null,null,null,null,null,null,null,null,null,"",{"$f":"IF($A496=\"\",\"\",IF(VLOOKUP($G496,$H$11:$DO$1000,103,FALSE)=\"\",\"No\",IF(LEFT(VLOOKUP($G496,$H$11:$DO$1000,103,FALSE),3)=\"The\",EM496,VLOOKUP(VLOOKUP($G496,$H$11:$DO$1000,103,FALSE),DeclMatrix!$A$2:$F$5,VLOOKUP('Enrollment Form'!$B496,DeclMatrix!$A$8:$B$12,2,FALSE),FALSE))))","v":""},{"$f":"IF($A496=\"\",\"\",IF(VLOOKUP($G496,$H$11:$DO$1000,106,FALSE)=\"\",\"No\",IF(LEFT(VLOOKUP($G496,$H$11:$DO$1000,106,FALSE),3)=\"The\",EN496,VLOOKUP(VLOOKUP($G496,$H$11:$DO$1000,106,FALSE),DeclMatrix!$A$2:$F$5,VLOOKUP('Enrollment Form'!$B496,DeclMatrix!$A$8:$B$12,2,FALSE),FALSE))))","v":""},{"$f":"IF($A496=\"\",\"\",IF(VLOOKUP($G496,$H$11:$DO$1000,109,FALSE)=\"\",\"No\",IF(LEFT(VLOOKUP($G496,$H$11:$DO$1000,109,FALSE),3)=\"The\",EO496,VLOOKUP(VLOOKUP($G496,$H$11:$DO$1000,109,FALSE),DeclMatrix!$A$2:$F$5,VLOOKUP('Enrollment Form'!$B496,DeclMatrix!$A$8:$B$12,2,FALSE),FALSE))))","v":""},{"$f":"IF($A496=\"\",\"\",IF(VLOOKUP($G496,$H$11:$DO$1000,112,FALSE)=\"\",\"No\",IF(LEFT(VLOOKUP($G496,$H$11:$DO$1000,112,FALSE),3)=\"The\",EP496,VLOOKUP(VLOOKUP($G496,$H$11:$DO$1000,112,FALSE),DeclMatrix!$A$2:$F$5,VLOOKUP('Enrollment Form'!$B496,DeclMatrix!$A$8:$B$12,2,FALSE),FALSE))))","v":""},null,null,null,null,null,null,null,null,"",null,"","","","","","","","","","","",""]
["",null,null,null,null,null,"","",null,null,null,null,null,null,null,null,null,null,null,null,null,null,null,null,null,null,"","","","",null,null,"",null,null,null,null,null,null,null,null,null,null,null,null,null,null,null,null,null,null,null,null,null,null,null,null,null,null,null,"","","",null,null,null,null,"","","","",null,null,null,null,null,null,null,null,null,null,null,null,null,null,null,null,null,null,null,null,null,null,null,null,null,null,null,null,null,null,null,null,null,null,null,null,null,null,null,null,null,null,null,null,null,null,null,null,null,null,null,null,"",{"$f":"IF($A500=\"\",\"\",IF(VLOOKUP($G500,$H$11:$DO$1000,103,FALSE)=\"\",\"No\",IF(LEFT(VLOOKUP($G500,$H$11:$DO$1000,103,FALSE),3)=\"The\",EM500,VLOOKUP(VLOOKUP($G500,$H$11:$DO$1000,103,FALSE),DeclMatrix!$A$2:$F$5,VLOOKUP('Enrollment Form'!$B500,DeclMatrix!$A$8:$B$12,2,FALSE),FALSE))))","v":""},{"$f":"IF($A500=\"\",\"\",IF(VLOOKUP($G500,$H$11:$DO$1000,106,FALSE)=\"\",\"No\",IF(LEFT(VLOOKUP($G500,$H$11:$DO$1000,106,FALSE),3)=\"The\",EN500,VLOOKUP(VLOOKUP($G500,$H$11:$DO$1000,106,FALSE),DeclMatrix!$A$2:$F$5,VLOOKUP('Enrollment Form'!$B500,DeclMatrix!$A$8:$B$12,2,FALSE),FALSE))))","v":""},{"$f":"IF($A500=\"\",\"\",IF(VLOOKUP($G500,$H$11:$DO$1000,109,FALSE)=\"\",\"No\",IF(LEFT(VLOOKUP($G500,$H$11:$DO$1000,109,FALSE),3)=\"The\",EO500,VLOOKUP(VLOOKUP($G500,$H$11:$DO$1000,109,FALSE),DeclMatrix!$A$2:$F$5,VLOOKUP('Enrollment Form'!$B500,DeclMatrix!$A$8:$B$12,2,FALSE),FALSE))))","v":""},{"$f":"IF($A500=\"\",\"\",IF(VLOOKUP($G500,$H$11:$DO$1000,112,FALSE)=\"\",\"No\",IF(LEFT(VLOOKUP($G500,$H$11:$DO$1000,112,FALSE),3)=\"The\",EP500,VLOOKUP(VLOOKUP($G500,$H$11:$DO$1000,112,FALSE),DeclMatrix!$A$2:$F$5,VLOOKUP('Enrollment Form'!$B500,DeclMatrix!$A$8:$B$12,2,FALSE),FALSE))))","v":""},null,null,null,null,null,null,null,null,"",null,"","","","","","","","","","","",""]
["",null,null,null,null,null,"","",null,null,null,null,null,null,null,null,null,null,null,null,null,null,null,null,null,null,"","","","",null,null,"",null,null,null,null,null,null,null,null,null,null,null,null,null,null,null,null,null,null,null,null,null,null,null,null,null,null,null,"","","",null,null,null,null,"","","","",null,null,null,null,null,null,null,null,null,null,null,null,null,null,null,null,null,null,null,null,null,null,null,null,null,null,null,null,null,null,null,null,null,null,null,null,null,null,null,null,null,null,null,null,null,null,null,null,null,null,null,null,"",{"$f":"IF($A503=\"\",\"\",IF(VLOOKUP($G503,$H$11:$DO$1000,103,FALSE)=\"\",\"No\",IF(LEFT(VLOOKUP($G503,$H$11:$DO$1000,103,FALSE),3)=\"The\",EM503,VLOOKUP(VLOOKUP($G503,$H$11:$DO$1000,103,FALSE),DeclMatrix!$A$2:$F$5,VLOOKUP('Enrollment Form'!$B503,DeclMatrix!$A$8:$B$12,2,FALSE),FALSE))))","v":""},{"$f":"IF($A503=\"\",\"\",IF(VLOOKUP($G503,$H$11:$DO$1000,106,FALSE)=\"\",\"No\",IF(LEFT(VLOOKUP($G503,$H$11:$DO$1000,106,FALSE),3)=\"The\",EN503,VLOOKUP(VLOOKUP($G503,$H$11:$DO$1000,106,FALSE),DeclMatrix!$A$2:$F$5,VLOOKUP('Enrollment Form'!$B503,DeclMatrix!$A$8:$B$12,2,FALSE),FALSE))))","v":""},{"$f":"IF($A503=\"\",\"\",IF(VLOOKUP($G503,$H$11:$DO$1000,109,FALSE)=\"\",\"No\",IF(LEFT(VLOOKUP($G503,$H$11:$DO$1000,109,FALSE),3)=\"The\",EO503,VLOOKUP(VLOOKUP($G503,$H$11:$DO$1000,109,FALSE),DeclMatrix!$A$2:$F$5,VLOOKUP('Enrollment Form'!$B503,DeclMatrix!$A$8:$B$12,2,FALSE),FALSE))))","v":""},{"$f":"IF($A503=\"\",\"\",IF(VLOOKUP($G503,$H$11:$DO$1000,112,FALSE)=\"\",\"No\",IF(LEFT(VLOOKUP($G503,$H$11:$DO$1000,112,FALSE),3)=\"The\",EP503,VLOOKUP(VLOOKUP($G503,$H$11:$DO$1000,112,FALSE),DeclMatrix!$A$2:$F$5,VLOOKUP('Enrollment Form'!$B503,DeclMatrix!$A$8:$B$12,2,FALSE),FALSE))))","v":""},null,null,null,null,null,null,null,null,"",null,"","","","","","","","","","","",""]
["",null,null,null,null,null,"","",null,null,null,null,null,null,null,null,null,null,null,null,null,null,null,null,null,null,"","","","",null,null,"",null,null,null,null,null,null,null,null,null,null,null,null,null,null,null,null,null,null,null,null,null,null,null,null,null,null,null,"","","",null,null,null,null,"","","","",null,null,null,null,null,null,null,null,null,null,null,null,null,null,null,null,null,null,null,null,null,null,null,null,null,null,null,null,null,null,null,null,null,null,null,null,null,null,null,null,null,null,null,null,null,null,null,null,null,null,null,null,"",{"$f":"IF($A505=\"\",\"\",IF(VLOOKUP($G505,$H$11:$DO$1000,103,FALSE)=\"\",\"No\",IF(LEFT(VLOOKUP($G505,$H$11:$DO$1000,103,FALSE),3)=\"The\",EM505,VLOOKUP(VLOOKUP($G505,$H$11:$DO$1000,103,FALSE),DeclMatrix!$A$2:$F$5,VLOOKUP('Enrollment Form'!$B505,DeclMatrix!$A$8:$B$12,2,FALSE),FALSE))))","v":""},{"$f":"IF($A505=\"\",\"\",IF(VLOOKUP($G505,$H$11:$DO$1000,106,FALSE)=\"\",\"No\",IF(LEFT(VLOOKUP($G505,$H$11:$DO$1000,106,FALSE),3)=\"The\",EN505,VLOOKUP(VLOOKUP($G505,$H$11:$DO$1000,106,FALSE),DeclMatrix!$A$2:$F$5,VLOOKUP('Enrollment Form'!$B505,DeclMatrix!$A$8:$B$12,2,FALSE),FALSE))))","v":""},{"$f":"IF($A505=\"\",\"\",IF(VLOOKUP($G505,$H$11:$DO$1000,109,FALSE)=\"\",\"No\",IF(LEFT(VLOOKUP($G505,$H$11:$DO$1000,109,FALSE),3)=\"The\",EO505,VLOOKUP(VLOOKUP($G505,$H$11:$DO$1000,109,FALSE),DeclMatrix!$A$2:$F$5,VLOOKUP('Enrollment Form'!$B505,DeclMatrix!$A$8:$B$12,2,FALSE),FALSE))))","v":""},{"$f":"IF($A505=\"\",\"\",IF(VLOOKUP($G505,$H$11:$DO$1000,112,FALSE)=\"\",\"No\",IF(LEFT(VLOOKUP($G505,$H$11:$DO$1000,112,FALSE),3)=\"The\",EP505,VLOOKUP(VLOOKUP($G505,$H$11:$DO$1000,112,FALSE),DeclMatrix!$A$2:$F$5,VLOOKUP('Enrollment Form'!$B505,DeclMatrix!$A$8:$B$12,2,FALSE),FALSE))))","v":""},null,null,null,null,null,null,null,null,"",null,"","","","","","","","","","","",""]
["",null,null,null,null,null,"","",null,null,null,null,null,null,null,null,null,null,null,null,null,null,null,null,null,null,"","","","",null,null,"",null,null,null,null,null,null,null,null,null,null,null,null,null,null,null,null,null,null,null,null,null,null,null,null,null,null,null,"","","",null,null,null,null,"","","","",null,null,null,null,null,null,null,null,null,null,null,null,null,null,null,null,null,null,null,null,null,null,null,null,null,null,null,null,null,null,null,null,null,null,null,null,null,null,null,null,null,null,null,null,null,null,null,null,null,null,null,null,"",{"$f":"IF($A506=\"\",\"\",IF(VLOOKUP($G506,$H$11:$DO$1000,103,FALSE)=\"\",\"No\",IF(LEFT(VLOOKUP($G506,$H$11:$DO$1000,103,FALSE),3)=\"The\",EM506,VLOOKUP(VLOOKUP($G506,$H$11:$DO$1000,103,FALSE),DeclMatrix!$A$2:$F$5,VLOOKUP('Enrollment Form'!$B506,DeclMatrix!$A$8:$B$12,2,FALSE),FALSE))))","v":""},{"$f":"IF($A506=\"\",\"\",IF(VLOOKUP($G506,$H$11:$DO$1000,106,FALSE)=\"\",\"No\",IF(LEFT(VLOOKUP($G506,$H$11:$DO$1000,106,FALSE),3)=\"The\",EN506,VLOOKUP(VLOOKUP($G506,$H$11:$DO$1000,106,FALSE),DeclMatrix!$A$2:$F$5,VLOOKUP('Enrollment Form'!$B506,DeclMatrix!$A$8:$B$12,2,FALSE),FALSE))))","v":""},{"$f":"IF($A506=\"\",\"\",IF(VLOOKUP($G506,$H$11:$DO$1000,109,FALSE)=\"\",\"No\",IF(LEFT(VLOOKUP($G506,$H$11:$DO$1000,109,FALSE),3)=\"The\",EO506,VLOOKUP(VLOOKUP($G506,$H$11:$DO$1000,109,FALSE),DeclMatrix!$A$2:$F$5,VLOOKUP('Enrollment Form'!$B506,DeclMatrix!$A$8:$B$12,2,FALSE),FALSE))))","v":""},{"$f":"IF($A506=\"\",\"\",IF(VLOOKUP($G506,$H$11:$DO$1000,112,FALSE)=\"\",\"No\",IF(LEFT(VLOOKUP($G506,$H$11:$DO$1000,112,FALSE),3)=\"The\",EP506,VLOOKUP(VLOOKUP($G506,$H$11:$DO$1000,112,FALSE),DeclMatrix!$A$2:$F$5,VLOOKUP('Enrollment Form'!$B506,DeclMatrix!$A$8:$B$12,2,FALSE),FALSE))))","v":""},null,null,null,null,null,null,null,null,"",null,"","","","","","","","","","","",""]
["",null,null,null,null,null,"","",null,null,null,null,null,null,null,null,null,null,null,null,null,null,null,null,null,null,"","","","",null,null,"",null,null,null,null,null,null,null,null,null,null,null,null,null,null,null,null,null,null,null,null,null,null,null,null,null,null,null,"","","",null,null,null,null,"","","","",null,null,null,null,null,null,null,null,null,null,null,null,null,null,null,null,null,null,null,null,null,null,null,null,null,null,null,null,null,null,null,null,null,null,null,null,null,null,null,null,null,null,null,null,null,null,null,null,null,null,null,null,"",{"$f":"IF($A509=\"\",\"\",IF(VLOOKUP($G509,$H$11:$DO$1000,103,FALSE)=\"\",\"No\",IF(LEFT(VLOOKUP($G509,$H$11:$DO$1000,103,FALSE),3)=\"The\",EM509,VLOOKUP(VLOOKUP($G509,$H$11:$DO$1000,103,FALSE),DeclMatrix!$A$2:$F$5,VLOOKUP('Enrollment Form'!$B509,DeclMatrix!$A$8:$B$12,2,FALSE),FALSE))))","v":""},{"$f":"IF($A509=\"\",\"\",IF(VLOOKUP($G509,$H$11:$DO$1000,106,FALSE)=\"\",\"No\",IF(LEFT(VLOOKUP($G509,$H$11:$DO$1000,106,FALSE),3)=\"The\",EN509,VLOOKUP(VLOOKUP($G509,$H$11:$DO$1000,106,FALSE),DeclMatrix!$A$2:$F$5,VLOOKUP('Enrollment Form'!$B509,DeclMatrix!$A$8:$B$12,2,FALSE),FALSE))))","v":""},{"$f":"IF($A509=\"\",\"\",IF(VLOOKUP($G509,$H$11:$DO$1000,109,FALSE)=\"\",\"No\",IF(LEFT(VLOOKUP($G509,$H$11:$DO$1000,109,FALSE),3)=\"The\",EO509,VLOOKUP(VLOOKUP($G509,$H$11:$DO$1000,109,FALSE),DeclMatrix!$A$2:$F$5,VLOOKUP('Enrollment Form'!$B509,DeclMatrix!$A$8:$B$12,2,FALSE),FALSE))))","v":""},{"$f":"IF($A509=\"\",\"\",IF(VLOOKUP($G509,$H$11:$DO$1000,112,FALSE)=\"\",\"No\",IF(LEFT(VLOOKUP($G509,$H$11:$DO$1000,112,FALSE),3)=\"The\",EP509,VLOOKUP(VLOOKUP($G509,$H$11:$DO$1000,112,FALSE),DeclMatrix!$A$2:$F$5,VLOOKUP('Enrollment Form'!$B509,DeclMatrix!$A$8:$B$12,2,FALSE),FALSE))))","v":""},null,null,null,null,null,null,null,null,"",null,"","","","","","","","","","","",""]
["",null,null,null,null,null,"","",null,null,null,null,null,null,null,null,null,null,null,null,null,null,null,null,null,null,"","","","",null,null,"",null,null,null,null,null,null,null,null,null,null,null,null,null,null,null,null,null,null,null,null,null,null,null,null,null,null,null,"","","",null,null,null,null,"","","","",null,null,null,null,null,null,null,null,null,null,null,null,null,null,null,null,null,null,null,null,null,null,null,null,null,null,null,null,null,null,null,null,null,null,null,null,null,null,null,null,null,null,null,null,null,null,null,null,null,null,null,null,"",{"$f":"IF($A513=\"\",\"\",IF(VLOOKUP($G513,$H$11:$DO$1000,103,FALSE)=\"\",\"No\",IF(LEFT(VLOOKUP($G513,$H$11:$DO$1000,103,FALSE),3)=\"The\",EM513,VLOOKUP(VLOOKUP($G513,$H$11:$DO$1000,103,FALSE),DeclMatrix!$A$2:$F$5,VLOOKUP('Enrollment Form'!$B513,DeclMatrix!$A$8:$B$12,2,FALSE),FALSE))))","v":""},{"$f":"IF($A513=\"\",\"\",IF(VLOOKUP($G513,$H$11:$DO$1000,106,FALSE)=\"\",\"No\",IF(LEFT(VLOOKUP($G513,$H$11:$DO$1000,106,FALSE),3)=\"The\",EN513,VLOOKUP(VLOOKUP($G513,$H$11:$DO$1000,106,FALSE),DeclMatrix!$A$2:$F$5,VLOOKUP('Enrollment Form'!$B513,DeclMatrix!$A$8:$B$12,2,FALSE),FALSE))))","v":""},{"$f":"IF($A513=\"\",\"\",IF(VLOOKUP($G513,$H$11:$DO$1000,109,FALSE)=\"\",\"No\",IF(LEFT(VLOOKUP($G513,$H$11:$DO$1000,109,FALSE),3)=\"The\",EO513,VLOOKUP(VLOOKUP($G513,$H$11:$DO$1000,109,FALSE),DeclMatrix!$A$2:$F$5,VLOOKUP('Enrollment Form'!$B513,DeclMatrix!$A$8:$B$12,2,FALSE),FALSE))))","v":""},{"$f":"IF($A513=\"\",\"\",IF(VLOOKUP($G513,$H$11:$DO$1000,112,FALSE)=\"\",\"No\",IF(LEFT(VLOOKUP($G513,$H$11:$DO$1000,112,FALSE),3)=\"The\",EP513,VLOOKUP(VLOOKUP($G513,$H$11:$DO$1000,112,FALSE),DeclMatrix!$A$2:$F$5,VLOOKUP('Enrollment Form'!$B513,DeclMatrix!$A$8:$B$12,2,FALSE),FALSE))))","v":""},null,null,null,null,null,null,null,null,"",null,"","","","","","","","","","","",""]
["",null,null,null,null,null,"","",null,null,null,null,null,null,null,null,null,null,null,null,null,null,null,null,null,null,"","","","",null,null,"",null,null,null,null,null,null,null,null,null,null,null,null,null,null,null,null,null,null,null,null,null,null,null,null,null,null,null,"","","",null,null,null,null,"","","","",null,null,null,null,null,null,null,null,null,null,null,null,null,null,null,null,null,null,null,null,null,null,null,null,null,null,null,null,null,null,null,null,null,null,null,null,null,null,null,null,null,null,null,null,null,null,null,null,null,null,null,null,"",{"$f":"IF($A516=\"\",\"\",IF(VLOOKUP($G516,$H$11:$DO$1000,103,FALSE)=\"\",\"No\",IF(LEFT(VLOOKUP($G516,$H$11:$DO$1000,103,FALSE),3)=\"The\",EM516,VLOOKUP(VLOOKUP($G516,$H$11:$DO$1000,103,FALSE),DeclMatrix!$A$2:$F$5,VLOOKUP('Enrollment Form'!$B516,DeclMatrix!$A$8:$B$12,2,FALSE),FALSE))))","v":""},{"$f":"IF($A516=\"\",\"\",IF(VLOOKUP($G516,$H$11:$DO$1000,106,FALSE)=\"\",\"No\",IF(LEFT(VLOOKUP($G516,$H$11:$DO$1000,106,FALSE),3)=\"The\",EN516,VLOOKUP(VLOOKUP($G516,$H$11:$DO$1000,106,FALSE),DeclMatrix!$A$2:$F$5,VLOOKUP('Enrollment Form'!$B516,DeclMatrix!$A$8:$B$12,2,FALSE),FALSE))))","v":""},{"$f":"IF($A516=\"\",\"\",IF(VLOOKUP($G516,$H$11:$DO$1000,109,FALSE)=\"\",\"No\",IF(LEFT(VLOOKUP($G516,$H$11:$DO$1000,109,FALSE),3)=\"The\",EO516,VLOOKUP(VLOOKUP($G516,$H$11:$DO$1000,109,FALSE),DeclMatrix!$A$2:$F$5,VLOOKUP('Enrollment Form'!$B516,DeclMatrix!$A$8:$B$12,2,FALSE),FALSE))))","v":""},{"$f":"IF($A516=\"\",\"\",IF(VLOOKUP($G516,$H$11:$DO$1000,112,FALSE)=\"\",\"No\",IF(LEFT(VLOOKUP($G516,$H$11:$DO$1000,112,FALSE),3)=\"The\",EP516,VLOOKUP(VLOOKUP($G516,$H$11:$DO$1000,112,FALSE),DeclMatrix!$A$2:$F$5,VLOOKUP('Enrollment Form'!$B516,DeclMatrix!$A$8:$B$12,2,FALSE),FALSE))))","v":""},null,null,null,null,null,null,null,null,"",null,"","","","","","","","","","","",""]
["",null,null,null,null,null,"","",null,null,null,null,null,null,null,null,null,null,null,null,null,null,null,null,null,null,"","","","",null,null,"",null,null,null,null,null,null,null,null,null,null,null,null,null,null,null,null,null,null,null,null,null,null,null,null,null,null,null,"","","",null,null,null,null,"","","","",null,null,null,null,null,null,null,null,null,null,null,null,null,null,null,null,null,null,null,null,null,null,null,null,null,null,null,null,null,null,null,null,null,null,null,null,null,null,null,null,null,null,null,null,null,null,null,null,null,null,null,null,"",{"$f":"IF($A519=\"\",\"\",IF(VLOOKUP($G519,$H$11:$DO$1000,103,FALSE)=\"\",\"No\",IF(LEFT(VLOOKUP($G519,$H$11:$DO$1000,103,FALSE),3)=\"The\",EM519,VLOOKUP(VLOOKUP($G519,$H$11:$DO$1000,103,FALSE),DeclMatrix!$A$2:$F$5,VLOOKUP('Enrollment Form'!$B519,DeclMatrix!$A$8:$B$12,2,FALSE),FALSE))))","v":""},{"$f":"IF($A519=\"\",\"\",IF(VLOOKUP($G519,$H$11:$DO$1000,106,FALSE)=\"\",\"No\",IF(LEFT(VLOOKUP($G519,$H$11:$DO$1000,106,FALSE),3)=\"The\",EN519,VLOOKUP(VLOOKUP($G519,$H$11:$DO$1000,106,FALSE),DeclMatrix!$A$2:$F$5,VLOOKUP('Enrollment Form'!$B519,DeclMatrix!$A$8:$B$12,2,FALSE),FALSE))))","v":""},{"$f":"IF($A519=\"\",\"\",IF(VLOOKUP($G519,$H$11:$DO$1000,109,FALSE)=\"\",\"No\",IF(LEFT(VLOOKUP($G519,$H$11:$DO$1000,109,FALSE),3)=\"The\",EO519,VLOOKUP(VLOOKUP($G519,$H$11:$DO$1000,109,FALSE),DeclMatrix!$A$2:$F$5,VLOOKUP('Enrollment Form'!$B519,DeclMatrix!$A$8:$B$12,2,FALSE),FALSE))))","v":""},{"$f":"IF($A519=\"\",\"\",IF(VLOOKUP($G519,$H$11:$DO$1000,112,FALSE)=\"\",\"No\",IF(LEFT(VLOOKUP($G519,$H$11:$DO$1000,112,FALSE),3)=\"The\",EP519,VLOOKUP(VLOOKUP($G519,$H$11:$DO$1000,112,FALSE),DeclMatrix!$A$2:$F$5,VLOOKUP('Enrollment Form'!$B519,DeclMatrix!$A$8:$B$12,2,FALSE),FALSE))))","v":""},null,null,null,null,null,null,null,null,"",null,"","","","","","","","","","","",""]
["",null,null,null,null,null,"","",null,null,null,null,null,null,null,null,null,null,null,null,null,null,null,null,null,null,"","","","",null,null,"",null,null,null,null,null,null,null,null,null,null,null,null,null,null,null,null,null,null,null,null,null,null,null,null,null,null,null,"","","",null,null,null,null,"","","","",null,null,null,null,null,null,null,null,null,null,null,null,null,null,null,null,null,null,null,null,null,null,null,null,null,null,null,null,null,null,null,null,null,null,null,null,null,null,null,null,null,null,null,null,null,null,null,null,null,null,null,null,"",{"$f":"IF($A522=\"\",\"\",IF(VLOOKUP($G522,$H$11:$DO$1000,103,FALSE)=\"\",\"No\",IF(LEFT(VLOOKUP($G522,$H$11:$DO$1000,103,FALSE),3)=\"The\",EM522,VLOOKUP(VLOOKUP($G522,$H$11:$DO$1000,103,FALSE),DeclMatrix!$A$2:$F$5,VLOOKUP('Enrollment Form'!$B522,DeclMatrix!$A$8:$B$12,2,FALSE),FALSE))))","v":""},{"$f":"IF($A522=\"\",\"\",IF(VLOOKUP($G522,$H$11:$DO$1000,106,FALSE)=\"\",\"No\",IF(LEFT(VLOOKUP($G522,$H$11:$DO$1000,106,FALSE),3)=\"The\",EN522,VLOOKUP(VLOOKUP($G522,$H$11:$DO$1000,106,FALSE),DeclMatrix!$A$2:$F$5,VLOOKUP('Enrollment Form'!$B522,DeclMatrix!$A$8:$B$12,2,FALSE),FALSE))))","v":""},{"$f":"IF($A522=\"\",\"\",IF(VLOOKUP($G522,$H$11:$DO$1000,109,FALSE)=\"\",\"No\",IF(LEFT(VLOOKUP($G522,$H$11:$DO$1000,109,FALSE),3)=\"The\",EO522,VLOOKUP(VLOOKUP($G522,$H$11:$DO$1000,109,FALSE),DeclMatrix!$A$2:$F$5,VLOOKUP('Enrollment Form'!$B522,DeclMatrix!$A$8:$B$12,2,FALSE),FALSE))))","v":""},{"$f":"IF($A522=\"\",\"\",IF(VLOOKUP($G522,$H$11:$DO$1000,112,FALSE)=\"\",\"No\",IF(LEFT(VLOOKUP($G522,$H$11:$DO$1000,112,FALSE),3)=\"The\",EP522,VLOOKUP(VLOOKUP($G522,$H$11:$DO$1000,112,FALSE),DeclMatrix!$A$2:$F$5,VLOOKUP('Enrollment Form'!$B522,DeclMatrix!$A$8:$B$12,2,FALSE),FALSE))))","v":""},null,null,null,null,null,null,null,null,"",null,"","","","","","","","","","","",""]
["",null,null,null,null,null,"","",null,null,null,null,null,null,null,null,null,null,null,null,null,null,null,null,null,null,"","","","",null,null,"",null,null,null,null,null,null,null,null,null,null,null,null,null,null,null,null,null,null,null,null,null,null,null,null,null,null,null,"","","",null,null,null,null,"","","","",null,null,null,null,null,null,null,null,null,null,null,null,null,null,null,null,null,null,null,null,null,null,null,null,null,null,null,null,null,null,null,null,null,null,null,null,null,null,null,null,null,null,null,null,null,null,null,null,null,null,null,null,"",{"$f":"IF($A525=\"\",\"\",IF(VLOOKUP($G525,$H$11:$DO$1000,103,FALSE)=\"\",\"No\",IF(LEFT(VLOOKUP($G525,$H$11:$DO$1000,103,FALSE),3)=\"The\",EM525,VLOOKUP(VLOOKUP($G525,$H$11:$DO$1000,103,FALSE),DeclMatrix!$A$2:$F$5,VLOOKUP('Enrollment Form'!$B525,DeclMatrix!$A$8:$B$12,2,FALSE),FALSE))))","v":""},{"$f":"IF($A525=\"\",\"\",IF(VLOOKUP($G525,$H$11:$DO$1000,106,FALSE)=\"\",\"No\",IF(LEFT(VLOOKUP($G525,$H$11:$DO$1000,106,FALSE),3)=\"The\",EN525,VLOOKUP(VLOOKUP($G525,$H$11:$DO$1000,106,FALSE),DeclMatrix!$A$2:$F$5,VLOOKUP('Enrollment Form'!$B525,DeclMatrix!$A$8:$B$12,2,FALSE),FALSE))))","v":""},{"$f":"IF($A525=\"\",\"\",IF(VLOOKUP($G525,$H$11:$DO$1000,109,FALSE)=\"\",\"No\",IF(LEFT(VLOOKUP($G525,$H$11:$DO$1000,109,FALSE),3)=\"The\",EO525,VLOOKUP(VLOOKUP($G525,$H$11:$DO$1000,109,FALSE),DeclMatrix!$A$2:$F$5,VLOOKUP('Enrollment Form'!$B525,DeclMatrix!$A$8:$B$12,2,FALSE),FALSE))))","v":""},{"$f":"IF($A525=\"\",\"\",IF(VLOOKUP($G525,$H$11:$DO$1000,112,FALSE)=\"\",\"No\",IF(LEFT(VLOOKUP($G525,$H$11:$DO$1000,112,FALSE),3)=\"The\",EP525,VLOOKUP(VLOOKUP($G525,$H$11:$DO$1000,112,FALSE),DeclMatrix!$A$2:$F$5,VLOOKUP('Enrollment Form'!$B525,DeclMatrix!$A$8:$B$12,2,FALSE),FALSE))))","v":""},null,null,null,null,null,null,null,null,"",null,"","","","","","","","","","","",""]
["",null,null,null,null,null,"","",null,null,null,null,null,null,null,null,null,null,null,null,null,null,null,null,null,null,"","","","",null,null,"",null,null,null,null,null,null,null,null,null,null,null,null,null,null,null,null,null,null,null,null,null,null,null,null,null,null,null,"","","",null,null,null,null,"","","","",null,null,null,null,null,null,null,null,null,null,null,null,null,null,null,null,null,null,null,null,null,null,null,null,null,null,null,null,null,null,null,null,null,null,null,null,null,null,null,null,null,null,null,null,null,null,null,null,null,null,null,null,"",{"$f":"IF($A527=\"\",\"\",IF(VLOOKUP($G527,$H$11:$DO$1000,103,FALSE)=\"\",\"No\",IF(LEFT(VLOOKUP($G527,$H$11:$DO$1000,103,FALSE),3)=\"The\",EM527,VLOOKUP(VLOOKUP($G527,$H$11:$DO$1000,103,FALSE),DeclMatrix!$A$2:$F$5,VLOOKUP('Enrollment Form'!$B527,DeclMatrix!$A$8:$B$12,2,FALSE),FALSE))))","v":""},{"$f":"IF($A527=\"\",\"\",IF(VLOOKUP($G527,$H$11:$DO$1000,106,FALSE)=\"\",\"No\",IF(LEFT(VLOOKUP($G527,$H$11:$DO$1000,106,FALSE),3)=\"The\",EN527,VLOOKUP(VLOOKUP($G527,$H$11:$DO$1000,106,FALSE),DeclMatrix!$A$2:$F$5,VLOOKUP('Enrollment Form'!$B527,DeclMatrix!$A$8:$B$12,2,FALSE),FALSE))))","v":""},{"$f":"IF($A527=\"\",\"\",IF(VLOOKUP($G527,$H$11:$DO$1000,109,FALSE)=\"\",\"No\",IF(LEFT(VLOOKUP($G527,$H$11:$DO$1000,109,FALSE),3)=\"The\",EO527,VLOOKUP(VLOOKUP($G527,$H$11:$DO$1000,109,FALSE),DeclMatrix!$A$2:$F$5,VLOOKUP('Enrollment Form'!$B527,DeclMatrix!$A$8:$B$12,2,FALSE),FALSE))))","v":""},{"$f":"IF($A527=\"\",\"\",IF(VLOOKUP($G527,$H$11:$DO$1000,112,FALSE)=\"\",\"No\",IF(LEFT(VLOOKUP($G527,$H$11:$DO$1000,112,FALSE),3)=\"The\",EP527,VLOOKUP(VLOOKUP($G527,$H$11:$DO$1000,112,FALSE),DeclMatrix!$A$2:$F$5,VLOOKUP('Enrollment Form'!$B527,DeclMatrix!$A$8:$B$12,2,FALSE),FALSE))))","v":""},null,null,null,null,null,null,null,null,"",null,"","","","","","","","","","","",""]
["",null,null,null,null,null,"","",null,null,null,null,null,null,null,null,null,null,null,null,null,null,null,null,null,null,"","","","",null,null,"",null,null,null,null,null,null,null,null,null,null,null,null,null,null,null,null,null,null,null,null,null,null,null,null,null,null,null,"","","",null,null,null,null,"","","","",null,null,null,null,null,null,null,null,null,null,null,null,null,null,null,null,null,null,null,null,null,null,null,null,null,null,null,null,null,null,null,null,null,null,null,null,null,null,null,null,null,null,null,null,null,null,null,null,null,null,null,null,"",{"$f":"IF($A528=\"\",\"\",IF(VLOOKUP($G528,$H$11:$DO$1000,103,FALSE)=\"\",\"No\",IF(LEFT(VLOOKUP($G528,$H$11:$DO$1000,103,FALSE),3)=\"The\",EM528,VLOOKUP(VLOOKUP($G528,$H$11:$DO$1000,103,FALSE),DeclMatrix!$A$2:$F$5,VLOOKUP('Enrollment Form'!$B528,DeclMatrix!$A$8:$B$12,2,FALSE),FALSE))))","v":""},{"$f":"IF($A528=\"\",\"\",IF(VLOOKUP($G528,$H$11:$DO$1000,106,FALSE)=\"\",\"No\",IF(LEFT(VLOOKUP($G528,$H$11:$DO$1000,106,FALSE),3)=\"The\",EN528,VLOOKUP(VLOOKUP($G528,$H$11:$DO$1000,106,FALSE),DeclMatrix!$A$2:$F$5,VLOOKUP('Enrollment Form'!$B528,DeclMatrix!$A$8:$B$12,2,FALSE),FALSE))))","v":""},{"$f":"IF($A528=\"\",\"\",IF(VLOOKUP($G528,$H$11:$DO$1000,109,FALSE)=\"\",\"No\",IF(LEFT(VLOOKUP($G528,$H$11:$DO$1000,109,FALSE),3)=\"The\",EO528,VLOOKUP(VLOOKUP($G528,$H$11:$DO$1000,109,FALSE),DeclMatrix!$A$2:$F$5,VLOOKUP('Enrollment Form'!$B528,DeclMatrix!$A$8:$B$12,2,FALSE),FALSE))))","v":""},{"$f":"IF($A528=\"\",\"\",IF(VLOOKUP($G528,$H$11:$DO$1000,112,FALSE)=\"\",\"No\",IF(LEFT(VLOOKUP($G528,$H$11:$DO$1000,112,FALSE),3)=\"The\",EP528,VLOOKUP(VLOOKUP($G528,$H$11:$DO$1000,112,FALSE),DeclMatrix!$A$2:$F$5,VLOOKUP('Enrollment Form'!$B528,DeclMatrix!$A$8:$B$12,2,FALSE),FALSE))))","v":""},null,null,null,null,null,null,null,null,"",null,"","","","","","","","","","","",""]
["",null,null,null,null,null,"","",null,null,null,null,null,null,null,null,null,null,null,null,null,null,null,null,null,null,"","","","",null,null,"",null,null,null,null,null,null,null,null,null,null,null,null,null,null,null,null,null,null,null,null,null,null,null,null,null,null,null,"","","",null,null,null,null,"","","","",null,null,null,null,null,null,null,null,null,null,null,null,null,null,null,null,null,null,null,null,null,null,null,null,null,null,null,null,null,null,null,null,null,null,null,null,null,null,null,null,null,null,null,null,null,null,null,null,null,null,null,null,"",{"$f":"IF($A531=\"\",\"\",IF(VLOOKUP($G531,$H$11:$DO$1000,103,FALSE)=\"\",\"No\",IF(LEFT(VLOOKUP($G531,$H$11:$DO$1000,103,FALSE),3)=\"The\",EM531,VLOOKUP(VLOOKUP($G531,$H$11:$DO$1000,103,FALSE),DeclMatrix!$A$2:$F$5,VLOOKUP('Enrollment Form'!$B531,DeclMatrix!$A$8:$B$12,2,FALSE),FALSE))))","v":""},{"$f":"IF($A531=\"\",\"\",IF(VLOOKUP($G531,$H$11:$DO$1000,106,FALSE)=\"\",\"No\",IF(LEFT(VLOOKUP($G531,$H$11:$DO$1000,106,FALSE),3)=\"The\",EN531,VLOOKUP(VLOOKUP($G531,$H$11:$DO$1000,106,FALSE),DeclMatrix!$A$2:$F$5,VLOOKUP('Enrollment Form'!$B531,DeclMatrix!$A$8:$B$12,2,FALSE),FALSE))))","v":""},{"$f":"IF($A531=\"\",\"\",IF(VLOOKUP($G531,$H$11:$DO$1000,109,FALSE)=\"\",\"No\",IF(LEFT(VLOOKUP($G531,$H$11:$DO$1000,109,FALSE),3)=\"The\",EO531,VLOOKUP(VLOOKUP($G531,$H$11:$DO$1000,109,FALSE),DeclMatrix!$A$2:$F$5,VLOOKUP('Enrollment Form'!$B531,DeclMatrix!$A$8:$B$12,2,FALSE),FALSE))))","v":""},{"$f":"IF($A531=\"\",\"\",IF(VLOOKUP($G531,$H$11:$DO$1000,112,FALSE)=\"\",\"No\",IF(LEFT(VLOOKUP($G531,$H$11:$DO$1000,112,FALSE),3)=\"The\",EP531,VLOOKUP(VLOOKUP($G531,$H$11:$DO$1000,112,FALSE),DeclMatrix!$A$2:$F$5,VLOOKUP('Enrollment Form'!$B531,DeclMatrix!$A$8:$B$12,2,FALSE),FALSE))))","v":""},null,null,null,null,null,null,null,null,"",null,"","","","","","","","","","","",""]
["",null,null,null,null,null,"","",null,null,null,null,null,null,null,null,null,null,null,null,null,null,null,null,null,null,"","","","",null,null,"",null,null,null,null,null,null,null,null,null,null,null,null,null,null,null,null,null,null,null,null,null,null,null,null,null,null,null,"","","",null,null,null,null,"","","","",null,null,null,null,null,null,null,null,null,null,null,null,null,null,null,null,null,null,null,null,null,null,null,null,null,null,null,null,null,null,null,null,null,null,null,null,null,null,null,null,null,null,null,null,null,null,null,null,null,null,null,null,"",{"$f":"IF($A535=\"\",\"\",IF(VLOOKUP($G535,$H$11:$DO$1000,103,FALSE)=\"\",\"No\",IF(LEFT(VLOOKUP($G535,$H$11:$DO$1000,103,FALSE),3)=\"The\",EM535,VLOOKUP(VLOOKUP($G535,$H$11:$DO$1000,103,FALSE),DeclMatrix!$A$2:$F$5,VLOOKUP('Enrollment Form'!$B535,DeclMatrix!$A$8:$B$12,2,FALSE),FALSE))))","v":""},{"$f":"IF($A535=\"\",\"\",IF(VLOOKUP($G535,$H$11:$DO$1000,106,FALSE)=\"\",\"No\",IF(LEFT(VLOOKUP($G535,$H$11:$DO$1000,106,FALSE),3)=\"The\",EN535,VLOOKUP(VLOOKUP($G535,$H$11:$DO$1000,106,FALSE),DeclMatrix!$A$2:$F$5,VLOOKUP('Enrollment Form'!$B535,DeclMatrix!$A$8:$B$12,2,FALSE),FALSE))))","v":""},{"$f":"IF($A535=\"\",\"\",IF(VLOOKUP($G535,$H$11:$DO$1000,109,FALSE)=\"\",\"No\",IF(LEFT(VLOOKUP($G535,$H$11:$DO$1000,109,FALSE),3)=\"The\",EO535,VLOOKUP(VLOOKUP($G535,$H$11:$DO$1000,109,FALSE),DeclMatrix!$A$2:$F$5,VLOOKUP('Enrollment Form'!$B535,DeclMatrix!$A$8:$B$12,2,FALSE),FALSE))))","v":""},{"$f":"IF($A535=\"\",\"\",IF(VLOOKUP($G535,$H$11:$DO$1000,112,FALSE)=\"\",\"No\",IF(LEFT(VLOOKUP($G535,$H$11:$DO$1000,112,FALSE),3)=\"The\",EP535,VLOOKUP(VLOOKUP($G535,$H$11:$DO$1000,112,FALSE),DeclMatrix!$A$2:$F$5,VLOOKUP('Enrollment Form'!$B535,DeclMatrix!$A$8:$B$12,2,FALSE),FALSE))))","v":""},null,null,null,null,null,null,null,null,"",null,"","","","","","","","","","","",""]
["",null,null,null,null,null,"","",null,null,null,null,null,null,null,null,null,null,null,null,null,null,null,null,null,null,"","","","",null,null,"",null,null,null,null,null,null,null,null,null,null,null,null,null,null,null,null,null,null,null,null,null,null,null,null,null,null,null,"","","",null,null,null,null,"","","","",null,null,null,null,null,null,null,null,null,null,null,null,null,null,null,null,null,null,null,null,null,null,null,null,null,null,null,null,null,null,null,null,null,null,null,null,null,null,null,null,null,null,null,null,null,null,null,null,null,null,null,null,"",{"$f":"IF($A538=\"\",\"\",IF(VLOOKUP($G538,$H$11:$DO$1000,103,FALSE)=\"\",\"No\",IF(LEFT(VLOOKUP($G538,$H$11:$DO$1000,103,FALSE),3)=\"The\",EM538,VLOOKUP(VLOOKUP($G538,$H$11:$DO$1000,103,FALSE),DeclMatrix!$A$2:$F$5,VLOOKUP('Enrollment Form'!$B538,DeclMatrix!$A$8:$B$12,2,FALSE),FALSE))))","v":""},{"$f":"IF($A538=\"\",\"\",IF(VLOOKUP($G538,$H$11:$DO$1000,106,FALSE)=\"\",\"No\",IF(LEFT(VLOOKUP($G538,$H$11:$DO$1000,106,FALSE),3)=\"The\",EN538,VLOOKUP(VLOOKUP($G538,$H$11:$DO$1000,106,FALSE),DeclMatrix!$A$2:$F$5,VLOOKUP('Enrollment Form'!$B538,DeclMatrix!$A$8:$B$12,2,FALSE),FALSE))))","v":""},{"$f":"IF($A538=\"\",\"\",IF(VLOOKUP($G538,$H$11:$DO$1000,109,FALSE)=\"\",\"No\",IF(LEFT(VLOOKUP($G538,$H$11:$DO$1000,109,FALSE),3)=\"The\",EO538,VLOOKUP(VLOOKUP($G538,$H$11:$DO$1000,109,FALSE),DeclMatrix!$A$2:$F$5,VLOOKUP('Enrollment Form'!$B538,DeclMatrix!$A$8:$B$12,2,FALSE),FALSE))))","v":""},{"$f":"IF($A538=\"\",\"\",IF(VLOOKUP($G538,$H$11:$DO$1000,112,FALSE)=\"\",\"No\",IF(LEFT(VLOOKUP($G538,$H$11:$DO$1000,112,FALSE),3)=\"The\",EP538,VLOOKUP(VLOOKUP($G538,$H$11:$DO$1000,112,FALSE),DeclMatrix!$A$2:$F$5,VLOOKUP('Enrollment Form'!$B538,DeclMatrix!$A$8:$B$12,2,FALSE),FALSE))))","v":""},null,null,null,null,null,null,null,null,"",null,"","","","","","","","","","","",""]
["",null,null,null,null,null,"","",null,null,null,null,null,null,null,null,null,null,null,null,null,null,null,null,null,null,"","","","",null,null,"",null,null,null,null,null,null,null,null,null,null,null,null,null,null,null,null,null,null,null,null,null,null,null,null,null,null,null,"","","",null,null,null,null,"","","","",null,null,null,null,null,null,null,null,null,null,null,null,null,null,null,null,null,null,null,null,null,null,null,null,null,null,null,null,null,null,null,null,null,null,null,null,null,null,null,null,null,null,null,null,null,null,null,null,null,null,null,null,"",{"$f":"IF($A541=\"\",\"\",IF(VLOOKUP($G541,$H$11:$DO$1000,103,FALSE)=\"\",\"No\",IF(LEFT(VLOOKUP($G541,$H$11:$DO$1000,103,FALSE),3)=\"The\",EM541,VLOOKUP(VLOOKUP($G541,$H$11:$DO$1000,103,FALSE),DeclMatrix!$A$2:$F$5,VLOOKUP('Enrollment Form'!$B541,DeclMatrix!$A$8:$B$12,2,FALSE),FALSE))))","v":""},{"$f":"IF($A541=\"\",\"\",IF(VLOOKUP($G541,$H$11:$DO$1000,106,FALSE)=\"\",\"No\",IF(LEFT(VLOOKUP($G541,$H$11:$DO$1000,106,FALSE),3)=\"The\",EN541,VLOOKUP(VLOOKUP($G541,$H$11:$DO$1000,106,FALSE),DeclMatrix!$A$2:$F$5,VLOOKUP('Enrollment Form'!$B541,DeclMatrix!$A$8:$B$12,2,FALSE),FALSE))))","v":""},{"$f":"IF($A541=\"\",\"\",IF(VLOOKUP($G541,$H$11:$DO$1000,109,FALSE)=\"\",\"No\",IF(LEFT(VLOOKUP($G541,$H$11:$DO$1000,109,FALSE),3)=\"The\",EO541,VLOOKUP(VLOOKUP($G541,$H$11:$DO$1000,109,FALSE),DeclMatrix!$A$2:$F$5,VLOOKUP('Enrollment Form'!$B541,DeclMatrix!$A$8:$B$12,2,FALSE),FALSE))))","v":""},{"$f":"IF($A541=\"\",\"\",IF(VLOOKUP($G541,$H$11:$DO$1000,112,FALSE)=\"\",\"No\",IF(LEFT(VLOOKUP($G541,$H$11:$DO$1000,112,FALSE),3)=\"The\",EP541,VLOOKUP(VLOOKUP($G541,$H$11:$DO$1000,112,FALSE),DeclMatrix!$A$2:$F$5,VLOOKUP('Enrollment Form'!$B541,DeclMatrix!$A$8:$B$12,2,FALSE),FALSE))))","v":""},null,null,null,null,null,null,null,null,"",null,"","","","","","","","","","","",""]
["",null,null,null,null,null,"","",null,null,null,null,null,null,null,null,null,null,null,null,null,null,null,null,null,null,"","","","",null,null,"",null,null,null,null,null,null,null,null,null,null,null,null,null,null,null,null,null,null,null,null,null,null,null,null,null,null,null,"","","",null,null,null,null,"","","","",null,null,null,null,null,null,null,null,null,null,null,null,null,null,null,null,null,null,null,null,null,null,null,null,null,null,null,null,null,null,null,null,null,null,null,null,null,null,null,null,null,null,null,null,null,null,null,null,null,null,null,null,"",{"$f":"IF($A544=\"\",\"\",IF(VLOOKUP($G544,$H$11:$DO$1000,103,FALSE)=\"\",\"No\",IF(LEFT(VLOOKUP($G544,$H$11:$DO$1000,103,FALSE),3)=\"The\",EM544,VLOOKUP(VLOOKUP($G544,$H$11:$DO$1000,103,FALSE),DeclMatrix!$A$2:$F$5,VLOOKUP('Enrollment Form'!$B544,DeclMatrix!$A$8:$B$12,2,FALSE),FALSE))))","v":""},{"$f":"IF($A544=\"\",\"\",IF(VLOOKUP($G544,$H$11:$DO$1000,106,FALSE)=\"\",\"No\",IF(LEFT(VLOOKUP($G544,$H$11:$DO$1000,106,FALSE),3)=\"The\",EN544,VLOOKUP(VLOOKUP($G544,$H$11:$DO$1000,106,FALSE),DeclMatrix!$A$2:$F$5,VLOOKUP('Enrollment Form'!$B544,DeclMatrix!$A$8:$B$12,2,FALSE),FALSE))))","v":""},{"$f":"IF($A544=\"\",\"\",IF(VLOOKUP($G544,$H$11:$DO$1000,109,FALSE)=\"\",\"No\",IF(LEFT(VLOOKUP($G544,$H$11:$DO$1000,109,FALSE),3)=\"The\",EO544,VLOOKUP(VLOOKUP($G544,$H$11:$DO$1000,109,FALSE),DeclMatrix!$A$2:$F$5,VLOOKUP('Enrollment Form'!$B544,DeclMatrix!$A$8:$B$12,2,FALSE),FALSE))))","v":""},{"$f":"IF($A544=\"\",\"\",IF(VLOOKUP($G544,$H$11:$DO$1000,112,FALSE)=\"\",\"No\",IF(LEFT(VLOOKUP($G544,$H$11:$DO$1000,112,FALSE),3)=\"The\",EP544,VLOOKUP(VLOOKUP($G544,$H$11:$DO$1000,112,FALSE),DeclMatrix!$A$2:$F$5,VLOOKUP('Enrollment Form'!$B544,DeclMatrix!$A$8:$B$12,2,FALSE),FALSE))))","v":""},null,null,null,null,null,null,null,null,"",null,"","","","","","","","","","","",""]
["",null,null,null,null,null,"","",null,null,null,null,null,null,null,null,null,null,null,null,null,null,null,null,null,null,"","","","",null,null,"",null,null,null,null,null,null,null,null,null,null,null,null,null,null,null,null,null,null,null,null,null,null,null,null,null,null,null,"","","",null,null,null,null,"","","","",null,null,null,null,null,null,null,null,null,null,null,null,null,null,null,null,null,null,null,null,null,null,null,null,null,null,null,null,null,null,null,null,null,null,null,null,null,null,null,null,null,null,null,null,null,null,null,null,null,null,null,null,"",{"$f":"IF($A547=\"\",\"\",IF(VLOOKUP($G547,$H$11:$DO$1000,103,FALSE)=\"\",\"No\",IF(LEFT(VLOOKUP($G547,$H$11:$DO$1000,103,FALSE),3)=\"The\",EM547,VLOOKUP(VLOOKUP($G547,$H$11:$DO$1000,103,FALSE),DeclMatrix!$A$2:$F$5,VLOOKUP('Enrollment Form'!$B547,DeclMatrix!$A$8:$B$12,2,FALSE),FALSE))))","v":""},{"$f":"IF($A547=\"\",\"\",IF(VLOOKUP($G547,$H$11:$DO$1000,106,FALSE)=\"\",\"No\",IF(LEFT(VLOOKUP($G547,$H$11:$DO$1000,106,FALSE),3)=\"The\",EN547,VLOOKUP(VLOOKUP($G547,$H$11:$DO$1000,106,FALSE),DeclMatrix!$A$2:$F$5,VLOOKUP('Enrollment Form'!$B547,DeclMatrix!$A$8:$B$12,2,FALSE),FALSE))))","v":""},{"$f":"IF($A547=\"\",\"\",IF(VLOOKUP($G547,$H$11:$DO$1000,109,FALSE)=\"\",\"No\",IF(LEFT(VLOOKUP($G547,$H$11:$DO$1000,109,FALSE),3)=\"The\",EO547,VLOOKUP(VLOOKUP($G547,$H$11:$DO$1000,109,FALSE),DeclMatrix!$A$2:$F$5,VLOOKUP('Enrollment Form'!$B547,DeclMatrix!$A$8:$B$12,2,FALSE),FALSE))))","v":""},{"$f":"IF($A547=\"\",\"\",IF(VLOOKUP($G547,$H$11:$DO$1000,112,FALSE)=\"\",\"No\",IF(LEFT(VLOOKUP($G547,$H$11:$DO$1000,112,FALSE),3)=\"The\",EP547,VLOOKUP(VLOOKUP($G547,$H$11:$DO$1000,112,FALSE),DeclMatrix!$A$2:$F$5,VLOOKUP('Enrollment Form'!$B547,DeclMatrix!$A$8:$B$12,2,FALSE),FALSE))))","v":""},null,null,null,null,null,null,null,null,"",null,"","","","","","","","","","","",""]
["",null,null,null,null,null,"","",null,null,null,null,null,null,null,null,null,null,null,null,null,null,null,null,null,null,"","","","",null,null,"",null,null,null,null,null,null,null,null,null,null,null,null,null,null,null,null,null,null,null,null,null,null,null,null,null,null,null,"","","",null,null,null,null,"","","","",null,null,null,null,null,null,null,null,null,null,null,null,null,null,null,null,null,null,null,null,null,null,null,null,null,null,null,null,null,null,null,null,null,null,null,null,null,null,null,null,null,null,null,null,null,null,null,null,null,null,null,null,"",{"$f":"IF($A549=\"\",\"\",IF(VLOOKUP($G549,$H$11:$DO$1000,103,FALSE)=\"\",\"No\",IF(LEFT(VLOOKUP($G549,$H$11:$DO$1000,103,FALSE),3)=\"The\",EM549,VLOOKUP(VLOOKUP($G549,$H$11:$DO$1000,103,FALSE),DeclMatrix!$A$2:$F$5,VLOOKUP('Enrollment Form'!$B549,DeclMatrix!$A$8:$B$12,2,FALSE),FALSE))))","v":""},{"$f":"IF($A549=\"\",\"\",IF(VLOOKUP($G549,$H$11:$DO$1000,106,FALSE)=\"\",\"No\",IF(LEFT(VLOOKUP($G549,$H$11:$DO$1000,106,FALSE),3)=\"The\",EN549,VLOOKUP(VLOOKUP($G549,$H$11:$DO$1000,106,FALSE),DeclMatrix!$A$2:$F$5,VLOOKUP('Enrollment Form'!$B549,DeclMatrix!$A$8:$B$12,2,FALSE),FALSE))))","v":""},{"$f":"IF($A549=\"\",\"\",IF(VLOOKUP($G549,$H$11:$DO$1000,109,FALSE)=\"\",\"No\",IF(LEFT(VLOOKUP($G549,$H$11:$DO$1000,109,FALSE),3)=\"The\",EO549,VLOOKUP(VLOOKUP($G549,$H$11:$DO$1000,109,FALSE),DeclMatrix!$A$2:$F$5,VLOOKUP('Enrollment Form'!$B549,DeclMatrix!$A$8:$B$12,2,FALSE),FALSE))))","v":""},{"$f":"IF($A549=\"\",\"\",IF(VLOOKUP($G549,$H$11:$DO$1000,112,FALSE)=\"\",\"No\",IF(LEFT(VLOOKUP($G549,$H$11:$DO$1000,112,FALSE),3)=\"The\",EP549,VLOOKUP(VLOOKUP($G549,$H$11:$DO$1000,112,FALSE),DeclMatrix!$A$2:$F$5,VLOOKUP('Enrollment Form'!$B549,DeclMatrix!$A$8:$B$12,2,FALSE),FALSE))))","v":""},null,null,null,null,null,null,null,null,"",null,"","","","","","","","","","","",""]
["",null,null,null,null,null,"","",null,null,null,null,null,null,null,null,null,null,null,null,null,null,null,null,null,null,"","","","",null,null,"",null,null,null,null,null,null,null,null,null,null,null,null,null,null,null,null,null,null,null,null,null,null,null,null,null,null,null,"","","",null,null,null,null,"","","","",null,null,null,null,null,null,null,null,null,null,null,null,null,null,null,null,null,null,null,null,null,null,null,null,null,null,null,null,null,null,null,null,null,null,null,null,null,null,null,null,null,null,null,null,null,null,null,null,null,null,null,null,"",{"$f":"IF($A550=\"\",\"\",IF(VLOOKUP($G550,$H$11:$DO$1000,103,FALSE)=\"\",\"No\",IF(LEFT(VLOOKUP($G550,$H$11:$DO$1000,103,FALSE),3)=\"The\",EM550,VLOOKUP(VLOOKUP($G550,$H$11:$DO$1000,103,FALSE),DeclMatrix!$A$2:$F$5,VLOOKUP('Enrollment Form'!$B550,DeclMatrix!$A$8:$B$12,2,FALSE),FALSE))))","v":""},{"$f":"IF($A550=\"\",\"\",IF(VLOOKUP($G550,$H$11:$DO$1000,106,FALSE)=\"\",\"No\",IF(LEFT(VLOOKUP($G550,$H$11:$DO$1000,106,FALSE),3)=\"The\",EN550,VLOOKUP(VLOOKUP($G550,$H$11:$DO$1000,106,FALSE),DeclMatrix!$A$2:$F$5,VLOOKUP('Enrollment Form'!$B550,DeclMatrix!$A$8:$B$12,2,FALSE),FALSE))))","v":""},{"$f":"IF($A550=\"\",\"\",IF(VLOOKUP($G550,$H$11:$DO$1000,109,FALSE)=\"\",\"No\",IF(LEFT(VLOOKUP($G550,$H$11:$DO$1000,109,FALSE),3)=\"The\",EO550,VLOOKUP(VLOOKUP($G550,$H$11:$DO$1000,109,FALSE),DeclMatrix!$A$2:$F$5,VLOOKUP('Enrollment Form'!$B550,DeclMatrix!$A$8:$B$12,2,FALSE),FALSE))))","v":""},{"$f":"IF($A550=\"\",\"\",IF(VLOOKUP($G550,$H$11:$DO$1000,112,FALSE)=\"\",\"No\",IF(LEFT(VLOOKUP($G550,$H$11:$DO$1000,112,FALSE),3)=\"The\",EP550,VLOOKUP(VLOOKUP($G550,$H$11:$DO$1000,112,FALSE),DeclMatrix!$A$2:$F$5,VLOOKUP('Enrollment Form'!$B550,DeclMatrix!$A$8:$B$12,2,FALSE),FALSE))))","v":""},null,null,null,null,null,null,null,null,"",null,"","","","","","","","","","","",""]
["",null,null,null,null,null,"","",null,null,null,null,null,null,null,null,null,null,null,null,null,null,null,null,null,null,"","","","",null,null,"",null,null,null,null,null,null,null,null,null,null,null,null,null,null,null,null,null,null,null,null,null,null,null,null,null,null,null,"","","",null,null,null,null,"","","","",null,null,null,null,null,null,null,null,null,null,null,null,null,null,null,null,null,null,null,null,null,null,null,null,null,null,null,null,null,null,null,null,null,null,null,null,null,null,null,null,null,null,null,null,null,null,null,null,null,null,null,null,"",{"$f":"IF($A554=\"\",\"\",IF(VLOOKUP($G554,$H$11:$DO$1000,103,FALSE)=\"\",\"No\",IF(LEFT(VLOOKUP($G554,$H$11:$DO$1000,103,FALSE),3)=\"The\",EM554,VLOOKUP(VLOOKUP($G554,$H$11:$DO$1000,103,FALSE),DeclMatrix!$A$2:$F$5,VLOOKUP('Enrollment Form'!$B554,DeclMatrix!$A$8:$B$12,2,FALSE),FALSE))))","v":""},{"$f":"IF($A554=\"\",\"\",IF(VLOOKUP($G554,$H$11:$DO$1000,106,FALSE)=\"\",\"No\",IF(LEFT(VLOOKUP($G554,$H$11:$DO$1000,106,FALSE),3)=\"The\",EN554,VLOOKUP(VLOOKUP($G554,$H$11:$DO$1000,106,FALSE),DeclMatrix!$A$2:$F$5,VLOOKUP('Enrollment Form'!$B554,DeclMatrix!$A$8:$B$12,2,FALSE),FALSE))))","v":""},{"$f":"IF($A554=\"\",\"\",IF(VLOOKUP($G554,$H$11:$DO$1000,109,FALSE)=\"\",\"No\",IF(LEFT(VLOOKUP($G554,$H$11:$DO$1000,109,FALSE),3)=\"The\",EO554,VLOOKUP(VLOOKUP($G554,$H$11:$DO$1000,109,FALSE),DeclMatrix!$A$2:$F$5,VLOOKUP('Enrollment Form'!$B554,DeclMatrix!$A$8:$B$12,2,FALSE),FALSE))))","v":""},{"$f":"IF($A554=\"\",\"\",IF(VLOOKUP($G554,$H$11:$DO$1000,112,FALSE)=\"\",\"No\",IF(LEFT(VLOOKUP($G554,$H$11:$DO$1000,112,FALSE),3)=\"The\",EP554,VLOOKUP(VLOOKUP($G554,$H$11:$DO$1000,112,FALSE),DeclMatrix!$A$2:$F$5,VLOOKUP('Enrollment Form'!$B554,DeclMatrix!$A$8:$B$12,2,FALSE),FALSE))))","v":""},null,null,null,null,null,null,null,null,"",null,"","","","","","","","","","","",""]
["",null,null,null,null,null,"","",null,null,null,null,null,null,null,null,null,null,null,null,null,null,null,null,null,null,"","","","",null,null,"",null,null,null,null,null,null,null,null,null,null,null,null,null,null,null,null,null,null,null,null,null,null,null,null,null,null,null,"","","",null,null,null,null,"","","","",null,null,null,null,null,null,null,null,null,null,null,null,null,null,null,null,null,null,null,null,null,null,null,null,null,null,null,null,null,null,null,null,null,null,null,null,null,null,null,null,null,null,null,null,null,null,null,null,null,null,null,null,"",{"$f":"IF($A557=\"\",\"\",IF(VLOOKUP($G557,$H$11:$DO$1000,103,FALSE)=\"\",\"No\",IF(LEFT(VLOOKUP($G557,$H$11:$DO$1000,103,FALSE),3)=\"The\",EM557,VLOOKUP(VLOOKUP($G557,$H$11:$DO$1000,103,FALSE),DeclMatrix!$A$2:$F$5,VLOOKUP('Enrollment Form'!$B557,DeclMatrix!$A$8:$B$12,2,FALSE),FALSE))))","v":""},{"$f":"IF($A557=\"\",\"\",IF(VLOOKUP($G557,$H$11:$DO$1000,106,FALSE)=\"\",\"No\",IF(LEFT(VLOOKUP($G557,$H$11:$DO$1000,106,FALSE),3)=\"The\",EN557,VLOOKUP(VLOOKUP($G557,$H$11:$DO$1000,106,FALSE),DeclMatrix!$A$2:$F$5,VLOOKUP('Enrollment Form'!$B557,DeclMatrix!$A$8:$B$12,2,FALSE),FALSE))))","v":""},{"$f":"IF($A557=\"\",\"\",IF(VLOOKUP($G557,$H$11:$DO$1000,109,FALSE)=\"\",\"No\",IF(LEFT(VLOOKUP($G557,$H$11:$DO$1000,109,FALSE),3)=\"The\",EO557,VLOOKUP(VLOOKUP($G557,$H$11:$DO$1000,109,FALSE),DeclMatrix!$A$2:$F$5,VLOOKUP('Enrollment Form'!$B557,DeclMatrix!$A$8:$B$12,2,FALSE),FALSE))))","v":""},{"$f":"IF($A557=\"\",\"\",IF(VLOOKUP($G557,$H$11:$DO$1000,112,FALSE)=\"\",\"No\",IF(LEFT(VLOOKUP($G557,$H$11:$DO$1000,112,FALSE),3)=\"The\",EP557,VLOOKUP(VLOOKUP($G557,$H$11:$DO$1000,112,FALSE),DeclMatrix!$A$2:$F$5,VLOOKUP('Enrollment Form'!$B557,DeclMatrix!$A$8:$B$12,2,FALSE),FALSE))))","v":""},null,null,null,null,null,null,null,null,"",null,"","","","","","","","","","","",""]
["",null,null,null,null,null,"","",null,null,null,null,null,null,null,null,null,null,null,null,null,null,null,null,null,null,"","","","",null,null,"",null,null,null,null,null,null,null,null,null,null,null,null,null,null,null,null,null,null,null,null,null,null,null,null,null,null,null,"","","",null,null,null,null,"","","","",null,null,null,null,null,null,null,null,null,null,null,null,null,null,null,null,null,null,null,null,null,null,null,null,null,null,null,null,null,null,null,null,null,null,null,null,null,null,null,null,null,null,null,null,null,null,null,null,null,null,null,null,"",{"$f":"IF($A560=\"\",\"\",IF(VLOOKUP($G560,$H$11:$DO$1000,103,FALSE)=\"\",\"No\",IF(LEFT(VLOOKUP($G560,$H$11:$DO$1000,103,FALSE),3)=\"The\",EM560,VLOOKUP(VLOOKUP($G560,$H$11:$DO$1000,103,FALSE),DeclMatrix!$A$2:$F$5,VLOOKUP('Enrollment Form'!$B560,DeclMatrix!$A$8:$B$12,2,FALSE),FALSE))))","v":""},{"$f":"IF($A560=\"\",\"\",IF(VLOOKUP($G560,$H$11:$DO$1000,106,FALSE)=\"\",\"No\",IF(LEFT(VLOOKUP($G560,$H$11:$DO$1000,106,FALSE),3)=\"The\",EN560,VLOOKUP(VLOOKUP($G560,$H$11:$DO$1000,106,FALSE),DeclMatrix!$A$2:$F$5,VLOOKUP('Enrollment Form'!$B560,DeclMatrix!$A$8:$B$12,2,FALSE),FALSE))))","v":""},{"$f":"IF($A560=\"\",\"\",IF(VLOOKUP($G560,$H$11:$DO$1000,109,FALSE)=\"\",\"No\",IF(LEFT(VLOOKUP($G560,$H$11:$DO$1000,109,FALSE),3)=\"The\",EO560,VLOOKUP(VLOOKUP($G560,$H$11:$DO$1000,109,FALSE),DeclMatrix!$A$2:$F$5,VLOOKUP('Enrollment Form'!$B560,DeclMatrix!$A$8:$B$12,2,FALSE),FALSE))))","v":""},{"$f":"IF($A560=\"\",\"\",IF(VLOOKUP($G560,$H$11:$DO$1000,112,FALSE)=\"\",\"No\",IF(LEFT(VLOOKUP($G560,$H$11:$DO$1000,112,FALSE),3)=\"The\",EP560,VLOOKUP(VLOOKUP($G560,$H$11:$DO$1000,112,FALSE),DeclMatrix!$A$2:$F$5,VLOOKUP('Enrollment Form'!$B560,DeclMatrix!$A$8:$B$12,2,FALSE),FALSE))))","v":""},null,null,null,null,null,null,null,null,"",null,"","","","","","","","","","","",""]
["",null,null,null,null,null,"","",null,null,null,null,null,null,null,null,null,null,null,null,null,null,null,null,null,null,"","","","",null,null,"",null,null,null,null,null,null,null,null,null,null,null,null,null,null,null,null,null,null,null,null,null,null,null,null,null,null,null,"","","",null,null,null,null,"","","","",null,null,null,null,null,null,null,null,null,null,null,null,null,null,null,null,null,null,null,null,null,null,null,null,null,null,null,null,null,null,null,null,null,null,null,null,null,null,null,null,null,null,null,null,null,null,null,null,null,null,null,null,"",{"$f":"IF($A563=\"\",\"\",IF(VLOOKUP($G563,$H$11:$DO$1000,103,FALSE)=\"\",\"No\",IF(LEFT(VLOOKUP($G563,$H$11:$DO$1000,103,FALSE),3)=\"The\",EM563,VLOOKUP(VLOOKUP($G563,$H$11:$DO$1000,103,FALSE),DeclMatrix!$A$2:$F$5,VLOOKUP('Enrollment Form'!$B563,DeclMatrix!$A$8:$B$12,2,FALSE),FALSE))))","v":""},{"$f":"IF($A563=\"\",\"\",IF(VLOOKUP($G563,$H$11:$DO$1000,106,FALSE)=\"\",\"No\",IF(LEFT(VLOOKUP($G563,$H$11:$DO$1000,106,FALSE),3)=\"The\",EN563,VLOOKUP(VLOOKUP($G563,$H$11:$DO$1000,106,FALSE),DeclMatrix!$A$2:$F$5,VLOOKUP('Enrollment Form'!$B563,DeclMatrix!$A$8:$B$12,2,FALSE),FALSE))))","v":""},{"$f":"IF($A563=\"\",\"\",IF(VLOOKUP($G563,$H$11:$DO$1000,109,FALSE)=\"\",\"No\",IF(LEFT(VLOOKUP($G563,$H$11:$DO$1000,109,FALSE),3)=\"The\",EO563,VLOOKUP(VLOOKUP($G563,$H$11:$DO$1000,109,FALSE),DeclMatrix!$A$2:$F$5,VLOOKUP('Enrollment Form'!$B563,DeclMatrix!$A$8:$B$12,2,FALSE),FALSE))))","v":""},{"$f":"IF($A563=\"\",\"\",IF(VLOOKUP($G563,$H$11:$DO$1000,112,FALSE)=\"\",\"No\",IF(LEFT(VLOOKUP($G563,$H$11:$DO$1000,112,FALSE),3)=\"The\",EP563,VLOOKUP(VLOOKUP($G563,$H$11:$DO$1000,112,FALSE),DeclMatrix!$A$2:$F$5,VLOOKUP('Enrollment Form'!$B563,DeclMatrix!$A$8:$B$12,2,FALSE),FALSE))))","v":""},null,null,null,null,null,null,null,null,"",null,"","","","","","","","","","","",""]
["",null,null,null,null,null,"","",null,null,null,null,null,null,null,null,null,null,null,null,null,null,null,null,null,null,"","","","",null,null,"",null,null,null,null,null,null,null,null,null,null,null,null,null,null,null,null,null,null,null,null,null,null,null,null,null,null,null,"","","",null,null,null,null,"","","","",null,null,null,null,null,null,null,null,null,null,null,null,null,null,null,null,null,null,null,null,null,null,null,null,null,null,null,null,null,null,null,null,null,null,null,null,null,null,null,null,null,null,null,null,null,null,null,null,null,null,null,null,"",{"$f":"IF($A566=\"\",\"\",IF(VLOOKUP($G566,$H$11:$DO$1000,103,FALSE)=\"\",\"No\",IF(LEFT(VLOOKUP($G566,$H$11:$DO$1000,103,FALSE),3)=\"The\",EM566,VLOOKUP(VLOOKUP($G566,$H$11:$DO$1000,103,FALSE),DeclMatrix!$A$2:$F$5,VLOOKUP('Enrollment Form'!$B566,DeclMatrix!$A$8:$B$12,2,FALSE),FALSE))))","v":""},{"$f":"IF($A566=\"\",\"\",IF(VLOOKUP($G566,$H$11:$DO$1000,106,FALSE)=\"\",\"No\",IF(LEFT(VLOOKUP($G566,$H$11:$DO$1000,106,FALSE),3)=\"The\",EN566,VLOOKUP(VLOOKUP($G566,$H$11:$DO$1000,106,FALSE),DeclMatrix!$A$2:$F$5,VLOOKUP('Enrollment Form'!$B566,DeclMatrix!$A$8:$B$12,2,FALSE),FALSE))))","v":""},{"$f":"IF($A566=\"\",\"\",IF(VLOOKUP($G566,$H$11:$DO$1000,109,FALSE)=\"\",\"No\",IF(LEFT(VLOOKUP($G566,$H$11:$DO$1000,109,FALSE),3)=\"The\",EO566,VLOOKUP(VLOOKUP($G566,$H$11:$DO$1000,109,FALSE),DeclMatrix!$A$2:$F$5,VLOOKUP('Enrollment Form'!$B566,DeclMatrix!$A$8:$B$12,2,FALSE),FALSE))))","v":""},{"$f":"IF($A566=\"\",\"\",IF(VLOOKUP($G566,$H$11:$DO$1000,112,FALSE)=\"\",\"No\",IF(LEFT(VLOOKUP($G566,$H$11:$DO$1000,112,FALSE),3)=\"The\",EP566,VLOOKUP(VLOOKUP($G566,$H$11:$DO$1000,112,FALSE),DeclMatrix!$A$2:$F$5,VLOOKUP('Enrollment Form'!$B566,DeclMatrix!$A$8:$B$12,2,FALSE),FALSE))))","v":""},null,null,null,null,null,null,null,null,"",null,"","","","","","","","","","","",""]
["",null,null,null,null,null,"","",null,null,null,null,null,null,null,null,null,null,null,null,null,null,null,null,null,null,"","","","",null,null,"",null,null,null,null,null,null,null,null,null,null,null,null,null,null,null,null,null,null,null,null,null,null,null,null,null,null,null,"","","",null,null,null,null,"","","","",null,null,null,null,null,null,null,null,null,null,null,null,null,null,null,null,null,null,null,null,null,null,null,null,null,null,null,null,null,null,null,null,null,null,null,null,null,null,null,null,null,null,null,null,null,null,null,null,null,null,null,null,"",{"$f":"IF($A569=\"\",\"\",IF(VLOOKUP($G569,$H$11:$DO$1000,103,FALSE)=\"\",\"No\",IF(LEFT(VLOOKUP($G569,$H$11:$DO$1000,103,FALSE),3)=\"The\",EM569,VLOOKUP(VLOOKUP($G569,$H$11:$DO$1000,103,FALSE),DeclMatrix!$A$2:$F$5,VLOOKUP('Enrollment Form'!$B569,DeclMatrix!$A$8:$B$12,2,FALSE),FALSE))))","v":""},{"$f":"IF($A569=\"\",\"\",IF(VLOOKUP($G569,$H$11:$DO$1000,106,FALSE)=\"\",\"No\",IF(LEFT(VLOOKUP($G569,$H$11:$DO$1000,106,FALSE),3)=\"The\",EN569,VLOOKUP(VLOOKUP($G569,$H$11:$DO$1000,106,FALSE),DeclMatrix!$A$2:$F$5,VLOOKUP('Enrollment Form'!$B569,DeclMatrix!$A$8:$B$12,2,FALSE),FALSE))))","v":""},{"$f":"IF($A569=\"\",\"\",IF(VLOOKUP($G569,$H$11:$DO$1000,109,FALSE)=\"\",\"No\",IF(LEFT(VLOOKUP($G569,$H$11:$DO$1000,109,FALSE),3)=\"The\",EO569,VLOOKUP(VLOOKUP($G569,$H$11:$DO$1000,109,FALSE),DeclMatrix!$A$2:$F$5,VLOOKUP('Enrollment Form'!$B569,DeclMatrix!$A$8:$B$12,2,FALSE),FALSE))))","v":""},{"$f":"IF($A569=\"\",\"\",IF(VLOOKUP($G569,$H$11:$DO$1000,112,FALSE)=\"\",\"No\",IF(LEFT(VLOOKUP($G569,$H$11:$DO$1000,112,FALSE),3)=\"The\",EP569,VLOOKUP(VLOOKUP($G569,$H$11:$DO$1000,112,FALSE),DeclMatrix!$A$2:$F$5,VLOOKUP('Enrollment Form'!$B569,DeclMatrix!$A$8:$B$12,2,FALSE),FALSE))))","v":""},null,null,null,null,null,null,null,null,"",null,"","","","","","","","","","","",""]
["",null,null,null,null,null,"","",null,null,null,null,null,null,null,null,null,null,null,null,null,null,null,null,null,null,"","","","",null,null,"",null,null,null,null,null,null,null,null,null,null,null,null,null,null,null,null,null,null,null,null,null,null,null,null,null,null,null,"","","",null,null,null,null,"","","","",null,null,null,null,null,null,null,null,null,null,null,null,null,null,null,null,null,null,null,null,null,null,null,null,null,null,null,null,null,null,null,null,null,null,null,null,null,null,null,null,null,null,null,null,null,null,null,null,null,null,null,null,"",{"$f":"IF($A571=\"\",\"\",IF(VLOOKUP($G571,$H$11:$DO$1000,103,FALSE)=\"\",\"No\",IF(LEFT(VLOOKUP($G571,$H$11:$DO$1000,103,FALSE),3)=\"The\",EM571,VLOOKUP(VLOOKUP($G571,$H$11:$DO$1000,103,FALSE),DeclMatrix!$A$2:$F$5,VLOOKUP('Enrollment Form'!$B571,DeclMatrix!$A$8:$B$12,2,FALSE),FALSE))))","v":""},{"$f":"IF($A571=\"\",\"\",IF(VLOOKUP($G571,$H$11:$DO$1000,106,FALSE)=\"\",\"No\",IF(LEFT(VLOOKUP($G571,$H$11:$DO$1000,106,FALSE),3)=\"The\",EN571,VLOOKUP(VLOOKUP($G571,$H$11:$DO$1000,106,FALSE),DeclMatrix!$A$2:$F$5,VLOOKUP('Enrollment Form'!$B571,DeclMatrix!$A$8:$B$12,2,FALSE),FALSE))))","v":""},{"$f":"IF($A571=\"\",\"\",IF(VLOOKUP($G571,$H$11:$DO$1000,109,FALSE)=\"\",\"No\",IF(LEFT(VLOOKUP($G571,$H$11:$DO$1000,109,FALSE),3)=\"The\",EO571,VLOOKUP(VLOOKUP($G571,$H$11:$DO$1000,109,FALSE),DeclMatrix!$A$2:$F$5,VLOOKUP('Enrollment Form'!$B571,DeclMatrix!$A$8:$B$12,2,FALSE),FALSE))))","v":""},{"$f":"IF($A571=\"\",\"\",IF(VLOOKUP($G571,$H$11:$DO$1000,112,FALSE)=\"\",\"No\",IF(LEFT(VLOOKUP($G571,$H$11:$DO$1000,112,FALSE),3)=\"The\",EP571,VLOOKUP(VLOOKUP($G571,$H$11:$DO$1000,112,FALSE),DeclMatrix!$A$2:$F$5,VLOOKUP('Enrollment Form'!$B571,DeclMatrix!$A$8:$B$12,2,FALSE),FALSE))))","v":""},null,null,null,null,null,null,null,null,"",null,"","","","","","","","","","","",""]
["",null,null,null,null,null,"","",null,null,null,null,null,null,null,null,null,null,null,null,null,null,null,null,null,null,"","","","",null,null,"",null,null,null,null,null,null,null,null,null,null,null,null,null,null,null,null,null,null,null,null,null,null,null,null,null,null,null,"","","",null,null,null,null,"","","","",null,null,null,null,null,null,null,null,null,null,null,null,null,null,null,null,null,null,null,null,null,null,null,null,null,null,null,null,null,null,null,null,null,null,null,null,null,null,null,null,null,null,null,null,null,null,null,null,null,null,null,null,"",{"$f":"IF($A572=\"\",\"\",IF(VLOOKUP($G572,$H$11:$DO$1000,103,FALSE)=\"\",\"No\",IF(LEFT(VLOOKUP($G572,$H$11:$DO$1000,103,FALSE),3)=\"The\",EM572,VLOOKUP(VLOOKUP($G572,$H$11:$DO$1000,103,FALSE),DeclMatrix!$A$2:$F$5,VLOOKUP('Enrollment Form'!$B572,DeclMatrix!$A$8:$B$12,2,FALSE),FALSE))))","v":""},{"$f":"IF($A572=\"\",\"\",IF(VLOOKUP($G572,$H$11:$DO$1000,106,FALSE)=\"\",\"No\",IF(LEFT(VLOOKUP($G572,$H$11:$DO$1000,106,FALSE),3)=\"The\",EN572,VLOOKUP(VLOOKUP($G572,$H$11:$DO$1000,106,FALSE),DeclMatrix!$A$2:$F$5,VLOOKUP('Enrollment Form'!$B572,DeclMatrix!$A$8:$B$12,2,FALSE),FALSE))))","v":""},{"$f":"IF($A572=\"\",\"\",IF(VLOOKUP($G572,$H$11:$DO$1000,109,FALSE)=\"\",\"No\",IF(LEFT(VLOOKUP($G572,$H$11:$DO$1000,109,FALSE),3)=\"The\",EO572,VLOOKUP(VLOOKUP($G572,$H$11:$DO$1000,109,FALSE),DeclMatrix!$A$2:$F$5,VLOOKUP('Enrollment Form'!$B572,DeclMatrix!$A$8:$B$12,2,FALSE),FALSE))))","v":""},{"$f":"IF($A572=\"\",\"\",IF(VLOOKUP($G572,$H$11:$DO$1000,112,FALSE)=\"\",\"No\",IF(LEFT(VLOOKUP($G572,$H$11:$DO$1000,112,FALSE),3)=\"The\",EP572,VLOOKUP(VLOOKUP($G572,$H$11:$DO$1000,112,FALSE),DeclMatrix!$A$2:$F$5,VLOOKUP('Enrollment Form'!$B572,DeclMatrix!$A$8:$B$12,2,FALSE),FALSE))))","v":""},null,null,null,null,null,null,null,null,"",null,"","","","","","","","","","","",""]
["",null,null,null,null,null,"","",null,null,null,null,null,null,null,null,null,null,null,null,null,null,null,null,null,null,"","","","",null,null,"",null,null,null,null,null,null,null,null,null,null,null,null,null,null,null,null,null,null,null,null,null,null,null,null,null,null,null,"","","",null,null,null,null,"","","","",null,null,null,null,null,null,null,null,null,null,null,null,null,null,null,null,null,null,null,null,null,null,null,null,null,null,null,null,null,null,null,null,null,null,null,null,null,null,null,null,null,null,null,null,null,null,null,null,null,null,null,null,"",{"$f":"IF($A576=\"\",\"\",IF(VLOOKUP($G576,$H$11:$DO$1000,103,FALSE)=\"\",\"No\",IF(LEFT(VLOOKUP($G576,$H$11:$DO$1000,103,FALSE),3)=\"The\",EM576,VLOOKUP(VLOOKUP($G576,$H$11:$DO$1000,103,FALSE),DeclMatrix!$A$2:$F$5,VLOOKUP('Enrollment Form'!$B576,DeclMatrix!$A$8:$B$12,2,FALSE),FALSE))))","v":""},{"$f":"IF($A576=\"\",\"\",IF(VLOOKUP($G576,$H$11:$DO$1000,106,FALSE)=\"\",\"No\",IF(LEFT(VLOOKUP($G576,$H$11:$DO$1000,106,FALSE),3)=\"The\",EN576,VLOOKUP(VLOOKUP($G576,$H$11:$DO$1000,106,FALSE),DeclMatrix!$A$2:$F$5,VLOOKUP('Enrollment Form'!$B576,DeclMatrix!$A$8:$B$12,2,FALSE),FALSE))))","v":""},{"$f":"IF($A576=\"\",\"\",IF(VLOOKUP($G576,$H$11:$DO$1000,109,FALSE)=\"\",\"No\",IF(LEFT(VLOOKUP($G576,$H$11:$DO$1000,109,FALSE),3)=\"The\",EO576,VLOOKUP(VLOOKUP($G576,$H$11:$DO$1000,109,FALSE),DeclMatrix!$A$2:$F$5,VLOOKUP('Enrollment Form'!$B576,DeclMatrix!$A$8:$B$12,2,FALSE),FALSE))))","v":""},{"$f":"IF($A576=\"\",\"\",IF(VLOOKUP($G576,$H$11:$DO$1000,112,FALSE)=\"\",\"No\",IF(LEFT(VLOOKUP($G576,$H$11:$DO$1000,112,FALSE),3)=\"The\",EP576,VLOOKUP(VLOOKUP($G576,$H$11:$DO$1000,112,FALSE),DeclMatrix!$A$2:$F$5,VLOOKUP('Enrollment Form'!$B576,DeclMatrix!$A$8:$B$12,2,FALSE),FALSE))))","v":""},null,null,null,null,null,null,null,null,"",null,"","","","","","","","","","","",""]
["",null,null,null,null,null,"","",null,null,null,null,null,null,null,null,null,null,null,null,null,null,null,null,null,null,"","","","",null,null,"",null,null,null,null,null,null,null,null,null,null,null,null,null,null,null,null,null,null,null,null,null,null,null,null,null,null,null,"","","",null,null,null,null,"","","","",null,null,null,null,null,null,null,null,null,null,null,null,null,null,null,null,null,null,null,null,null,null,null,null,null,null,null,null,null,null,null,null,null,null,null,null,null,null,null,null,null,null,null,null,null,null,null,null,null,null,null,null,"",{"$f":"IF($A579=\"\",\"\",IF(VLOOKUP($G579,$H$11:$DO$1000,103,FALSE)=\"\",\"No\",IF(LEFT(VLOOKUP($G579,$H$11:$DO$1000,103,FALSE),3)=\"The\",EM579,VLOOKUP(VLOOKUP($G579,$H$11:$DO$1000,103,FALSE),DeclMatrix!$A$2:$F$5,VLOOKUP('Enrollment Form'!$B579,DeclMatrix!$A$8:$B$12,2,FALSE),FALSE))))","v":""},{"$f":"IF($A579=\"\",\"\",IF(VLOOKUP($G579,$H$11:$DO$1000,106,FALSE)=\"\",\"No\",IF(LEFT(VLOOKUP($G579,$H$11:$DO$1000,106,FALSE),3)=\"The\",EN579,VLOOKUP(VLOOKUP($G579,$H$11:$DO$1000,106,FALSE),DeclMatrix!$A$2:$F$5,VLOOKUP('Enrollment Form'!$B579,DeclMatrix!$A$8:$B$12,2,FALSE),FALSE))))","v":""},{"$f":"IF($A579=\"\",\"\",IF(VLOOKUP($G579,$H$11:$DO$1000,109,FALSE)=\"\",\"No\",IF(LEFT(VLOOKUP($G579,$H$11:$DO$1000,109,FALSE),3)=\"The\",EO579,VLOOKUP(VLOOKUP($G579,$H$11:$DO$1000,109,FALSE),DeclMatrix!$A$2:$F$5,VLOOKUP('Enrollment Form'!$B579,DeclMatrix!$A$8:$B$12,2,FALSE),FALSE))))","v":""},{"$f":"IF($A579=\"\",\"\",IF(VLOOKUP($G579,$H$11:$DO$1000,112,FALSE)=\"\",\"No\",IF(LEFT(VLOOKUP($G579,$H$11:$DO$1000,112,FALSE),3)=\"The\",EP579,VLOOKUP(VLOOKUP($G579,$H$11:$DO$1000,112,FALSE),DeclMatrix!$A$2:$F$5,VLOOKUP('Enrollment Form'!$B579,DeclMatrix!$A$8:$B$12,2,FALSE),FALSE))))","v":""},null,null,null,null,null,null,null,null,"",null,"","","","","","","","","","","",""]
["",null,null,null,null,null,"","",null,null,null,null,null,null,null,null,null,null,null,null,null,null,null,null,null,null,"","","","",null,null,"",null,null,null,null,null,null,null,null,null,null,null,null,null,null,null,null,null,null,null,null,null,null,null,null,null,null,null,"","","",null,null,null,null,"","","","",null,null,null,null,null,null,null,null,null,null,null,null,null,null,null,null,null,null,null,null,null,null,null,null,null,null,null,null,null,null,null,null,null,null,null,null,null,null,null,null,null,null,null,null,null,null,null,null,null,null,null,null,"",{"$f":"IF($A582=\"\",\"\",IF(VLOOKUP($G582,$H$11:$DO$1000,103,FALSE)=\"\",\"No\",IF(LEFT(VLOOKUP($G582,$H$11:$DO$1000,103,FALSE),3)=\"The\",EM582,VLOOKUP(VLOOKUP($G582,$H$11:$DO$1000,103,FALSE),DeclMatrix!$A$2:$F$5,VLOOKUP('Enrollment Form'!$B582,DeclMatrix!$A$8:$B$12,2,FALSE),FALSE))))","v":""},{"$f":"IF($A582=\"\",\"\",IF(VLOOKUP($G582,$H$11:$DO$1000,106,FALSE)=\"\",\"No\",IF(LEFT(VLOOKUP($G582,$H$11:$DO$1000,106,FALSE),3)=\"The\",EN582,VLOOKUP(VLOOKUP($G582,$H$11:$DO$1000,106,FALSE),DeclMatrix!$A$2:$F$5,VLOOKUP('Enrollment Form'!$B582,DeclMatrix!$A$8:$B$12,2,FALSE),FALSE))))","v":""},{"$f":"IF($A582=\"\",\"\",IF(VLOOKUP($G582,$H$11:$DO$1000,109,FALSE)=\"\",\"No\",IF(LEFT(VLOOKUP($G582,$H$11:$DO$1000,109,FALSE),3)=\"The\",EO582,VLOOKUP(VLOOKUP($G582,$H$11:$DO$1000,109,FALSE),DeclMatrix!$A$2:$F$5,VLOOKUP('Enrollment Form'!$B582,DeclMatrix!$A$8:$B$12,2,FALSE),FALSE))))","v":""},{"$f":"IF($A582=\"\",\"\",IF(VLOOKUP($G582,$H$11:$DO$1000,112,FALSE)=\"\",\"No\",IF(LEFT(VLOOKUP($G582,$H$11:$DO$1000,112,FALSE),3)=\"The\",EP582,VLOOKUP(VLOOKUP($G582,$H$11:$DO$1000,112,FALSE),DeclMatrix!$A$2:$F$5,VLOOKUP('Enrollment Form'!$B582,DeclMatrix!$A$8:$B$12,2,FALSE),FALSE))))","v":""},null,null,null,null,null,null,null,null,"",null,"","","","","","","","","","","",""]
["",null,null,null,null,null,"","",null,null,null,null,null,null,null,null,null,null,null,null,null,null,null,null,null,null,"","","","",null,null,"",null,null,null,null,null,null,null,null,null,null,null,null,null,null,null,null,null,null,null,null,null,null,null,null,null,null,null,"","","",null,null,null,null,"","","","",null,null,null,null,null,null,null,null,null,null,null,null,null,null,null,null,null,null,null,null,null,null,null,null,null,null,null,null,null,null,null,null,null,null,null,null,null,null,null,null,null,null,null,null,null,null,null,null,null,null,null,null,"",{"$f":"IF($A585=\"\",\"\",IF(VLOOKUP($G585,$H$11:$DO$1000,103,FALSE)=\"\",\"No\",IF(LEFT(VLOOKUP($G585,$H$11:$DO$1000,103,FALSE),3)=\"The\",EM585,VLOOKUP(VLOOKUP($G585,$H$11:$DO$1000,103,FALSE),DeclMatrix!$A$2:$F$5,VLOOKUP('Enrollment Form'!$B585,DeclMatrix!$A$8:$B$12,2,FALSE),FALSE))))","v":""},{"$f":"IF($A585=\"\",\"\",IF(VLOOKUP($G585,$H$11:$DO$1000,106,FALSE)=\"\",\"No\",IF(LEFT(VLOOKUP($G585,$H$11:$DO$1000,106,FALSE),3)=\"The\",EN585,VLOOKUP(VLOOKUP($G585,$H$11:$DO$1000,106,FALSE),DeclMatrix!$A$2:$F$5,VLOOKUP('Enrollment Form'!$B585,DeclMatrix!$A$8:$B$12,2,FALSE),FALSE))))","v":""},{"$f":"IF($A585=\"\",\"\",IF(VLOOKUP($G585,$H$11:$DO$1000,109,FALSE)=\"\",\"No\",IF(LEFT(VLOOKUP($G585,$H$11:$DO$1000,109,FALSE),3)=\"The\",EO585,VLOOKUP(VLOOKUP($G585,$H$11:$DO$1000,109,FALSE),DeclMatrix!$A$2:$F$5,VLOOKUP('Enrollment Form'!$B585,DeclMatrix!$A$8:$B$12,2,FALSE),FALSE))))","v":""},{"$f":"IF($A585=\"\",\"\",IF(VLOOKUP($G585,$H$11:$DO$1000,112,FALSE)=\"\",\"No\",IF(LEFT(VLOOKUP($G585,$H$11:$DO$1000,112,FALSE),3)=\"The\",EP585,VLOOKUP(VLOOKUP($G585,$H$11:$DO$1000,112,FALSE),DeclMatrix!$A$2:$F$5,VLOOKUP('Enrollment Form'!$B585,DeclMatrix!$A$8:$B$12,2,FALSE),FALSE))))","v":""},null,null,null,null,null,null,null,null,"",null,"","","","","","","","","","","",""]
["",null,null,null,null,null,{"$f":"IF(A588=\"\",\"\",IF(AND(B588<>\"Subscriber\",B588<>\"\"),G587,\"\"))","v":""},{"$f":"IF(AND(B588=\"Subscriber\",G588<>\"\"),G588,\"\")","v":""},null,null,null,null,null,null,null,null,null,null,null,null,null,null,null,null,null,null,{"$f":"IF(AND($B588=\"Subscriber\",$Z588=\"Yes\"),V588,\"\")","v":""},{"$f":"IF(AND($B588=\"Subscriber\",$Z588=\"Yes\"),W588,\"\")","v":""},{"$f":"IF(AND($B588=\"Subscriber\",$Z588=\"Yes\"),X588,\"\")","v":""},{"$f":"IF(AND($B588=\"Subscriber\",$Z588=\"Yes\"),Y588,\"\")","v":""},null,null,{"$f":"IF(AND(B588=\"Subscriber\",AJ588<>\"\"),\"NS01 - Not Selected\",\"\")","v":""},null,null,null,null,null,null,null,null,null,null,null,null,null,null,null,null,null,null,null,null,null,null,null,null,null,null,null,{"$f":"IF(OR($B588=\"Subscriber\",$B588=\"\"),\"\",IF(OR(VLOOKUP($G588,$H:$BH,53,FALSE)=\"No\",VLOOKUP($G588,$H:$BH,53,FALSE)=\"\"),\"\",IF(VLOOKUP($G588,$H:$BH,53,FALSE)=\"Yes\",VLOOKUP(G588,$H:$BI,32,FALSE))))","v":""},{"$f":"IF(OR($B588=\"Subscriber\",$B588=\"\"),\"\",IF(OR(VLOOKUP($G588,$H:$BH,53,FALSE)=\"No\",VLOOKUP($G588,$H:$BH,53,FALSE)=\"\"),\"\",IF(VLOOKUP($G588,$H:$BH,53,FALSE)=\"Yes\",VLOOKUP(G588,$H:$BI,33,FALSE))))","v":""},{"$f":"IF(OR($B588=\"Subscriber\",$B588=\"\"),\"\",IF(OR(VLOOKUP($G588,$H:$BH,53,FALSE)=\"No\",VLOOKUP($G588,$H:$BH,53,FALSE)=\"\"),\"\",IF(VLOOKUP($G588,$H:$BH,53,FALSE)=\"Yes\",VLOOKUP(G588,$H:$BI,34,FALSE))))","v":""},null,null,null,null,"","","","",null,null,null,null,null,null,null,null,null,null,null,null,null,null,null,null,null,null,null,null,null,null,null,null,null,null,null,null,null,null,null,null,null,null,null,null,null,null,null,null,null,null,null,null,null,null,null,null,null,null,null,null,"",{"$f":"IF($A588=\"\",\"\",IF(VLOOKUP($G588,$H$11:$DO$1000,103,FALSE)=\"\",\"No\",IF(LEFT(VLOOKUP($G588,$H$11:$DO$1000,103,FALSE),3)=\"The\",EM588,VLOOKUP(VLOOKUP($G588,$H$11:$DO$1000,103,FALSE),DeclMatrix!$A$2:$F$5,VLOOKUP('Enrollment Form'!$B588,DeclMatrix!$A$8:$B$12,2,FALSE),FALSE))))","v":""},{"$f":"IF($A588=\"\",\"\",IF(VLOOKUP($G588,$H$11:$DO$1000,106,FALSE)=\"\",\"No\",IF(LEFT(VLOOKUP($G588,$H$11:$DO$1000,106,FALSE),3)=\"The\",EN588,VLOOKUP(VLOOKUP($G588,$H$11:$DO$1000,106,FALSE),DeclMatrix!$A$2:$F$5,VLOOKUP('Enrollment Form'!$B588,DeclMatrix!$A$8:$B$12,2,FALSE),FALSE))))","v":""},{"$f":"IF($A588=\"\",\"\",IF(VLOOKUP($G588,$H$11:$DO$1000,109,FALSE)=\"\",\"No\",IF(LEFT(VLOOKUP($G588,$H$11:$DO$1000,109,FALSE),3)=\"The\",EO588,VLOOKUP(VLOOKUP($G588,$H$11:$DO$1000,109,FALSE),DeclMatrix!$A$2:$F$5,VLOOKUP('Enrollment Form'!$B588,DeclMatrix!$A$8:$B$12,2,FALSE),FALSE))))","v":""},{"$f":"IF($A588=\"\",\"\",IF(VLOOKUP($G588,$H$11:$DO$1000,112,FALSE)=\"\",\"No\",IF(LEFT(VLOOKUP($G588,$H$11:$DO$1000,112,FALSE),3)=\"The\",EP588,VLOOKUP(VLOOKUP($G588,$H$11:$DO$1000,112,FALSE),DeclMatrix!$A$2:$F$5,VLOOKUP('Enrollment Form'!$B588,DeclMatrix!$A$8:$B$12,2,FALSE),FALSE))))","v":""},null,null,null,null,null,null,null,null,"",null,"","","","","","","","","","","",""]
["",null,null,null,null,null,"","",null,null,null,null,null,null,null,null,null,null,null,null,null,null,null,null,null,null,"","","","",null,null,"",null,null,null,null,null,null,null,null,null,null,null,null,null,null,null,null,null,null,null,null,null,null,null,null,null,null,null,"","","",null,null,null,null,"","","","",null,null,null,null,null,null,null,null,null,null,null,null,null,null,null,null,null,null,null,null,null,null,null,null,null,null,null,null,null,null,null,null,null,null,null,null,null,null,null,null,null,null,null,null,null,null,null,null,null,null,null,null,"",{"$f":"IF($A591=\"\",\"\",IF(VLOOKUP($G591,$H$11:$DO$1000,103,FALSE)=\"\",\"No\",IF(LEFT(VLOOKUP($G591,$H$11:$DO$1000,103,FALSE),3)=\"The\",EM591,VLOOKUP(VLOOKUP($G591,$H$11:$DO$1000,103,FALSE),DeclMatrix!$A$2:$F$5,VLOOKUP('Enrollment Form'!$B591,DeclMatrix!$A$8:$B$12,2,FALSE),FALSE))))","v":""},{"$f":"IF($A591=\"\",\"\",IF(VLOOKUP($G591,$H$11:$DO$1000,106,FALSE)=\"\",\"No\",IF(LEFT(VLOOKUP($G591,$H$11:$DO$1000,106,FALSE),3)=\"The\",EN591,VLOOKUP(VLOOKUP($G591,$H$11:$DO$1000,106,FALSE),DeclMatrix!$A$2:$F$5,VLOOKUP('Enrollment Form'!$B591,DeclMatrix!$A$8:$B$12,2,FALSE),FALSE))))","v":""},{"$f":"IF($A591=\"\",\"\",IF(VLOOKUP($G591,$H$11:$DO$1000,109,FALSE)=\"\",\"No\",IF(LEFT(VLOOKUP($G591,$H$11:$DO$1000,109,FALSE),3)=\"The\",EO591,VLOOKUP(VLOOKUP($G591,$H$11:$DO$1000,109,FALSE),DeclMatrix!$A$2:$F$5,VLOOKUP('Enrollment Form'!$B591,DeclMatrix!$A$8:$B$12,2,FALSE),FALSE))))","v":""},{"$f":"IF($A591=\"\",\"\",IF(VLOOKUP($G591,$H$11:$DO$1000,112,FALSE)=\"\",\"No\",IF(LEFT(VLOOKUP($G591,$H$11:$DO$1000,112,FALSE),3)=\"The\",EP591,VLOOKUP(VLOOKUP($G591,$H$11:$DO$1000,112,FALSE),DeclMatrix!$A$2:$F$5,VLOOKUP('Enrollment Form'!$B591,DeclMatrix!$A$8:$B$12,2,FALSE),FALSE))))","v":""},null,null,null,null,null,null,null,null,"",null,"","","","","","","","","","","",""]
["",null,null,null,null,null,"","",null,null,null,null,null,null,null,null,null,null,null,null,null,null,null,null,null,null,"","","","",null,null,"",null,null,null,null,null,null,null,null,null,null,null,null,null,null,null,null,null,null,null,null,null,null,null,null,null,null,null,"","","",null,null,null,null,"","","","",null,null,null,null,null,null,null,null,null,null,null,null,null,null,null,null,null,null,null,null,null,null,null,null,null,null,null,null,null,null,null,null,null,null,null,null,null,null,null,null,null,null,null,null,null,null,null,null,null,null,null,null,"",{"$f":"IF($A592=\"\",\"\",IF(VLOOKUP($G592,$H$11:$DO$1000,103,FALSE)=\"\",\"No\",IF(LEFT(VLOOKUP($G592,$H$11:$DO$1000,103,FALSE),3)=\"The\",EM592,VLOOKUP(VLOOKUP($G592,$H$11:$DO$1000,103,FALSE),DeclMatrix!$A$2:$F$5,VLOOKUP('Enrollment Form'!$B592,DeclMatrix!$A$8:$B$12,2,FALSE),FALSE))))","v":""},{"$f":"IF($A592=\"\",\"\",IF(VLOOKUP($G592,$H$11:$DO$1000,106,FALSE)=\"\",\"No\",IF(LEFT(VLOOKUP($G592,$H$11:$DO$1000,106,FALSE),3)=\"The\",EN592,VLOOKUP(VLOOKUP($G592,$H$11:$DO$1000,106,FALSE),DeclMatrix!$A$2:$F$5,VLOOKUP('Enrollment Form'!$B592,DeclMatrix!$A$8:$B$12,2,FALSE),FALSE))))","v":""},{"$f":"IF($A592=\"\",\"\",IF(VLOOKUP($G592,$H$11:$DO$1000,109,FALSE)=\"\",\"No\",IF(LEFT(VLOOKUP($G592,$H$11:$DO$1000,109,FALSE),3)=\"The\",EO592,VLOOKUP(VLOOKUP($G592,$H$11:$DO$1000,109,FALSE),DeclMatrix!$A$2:$F$5,VLOOKUP('Enrollment Form'!$B592,DeclMatrix!$A$8:$B$12,2,FALSE),FALSE))))","v":""},{"$f":"IF($A592=\"\",\"\",IF(VLOOKUP($G592,$H$11:$DO$1000,112,FALSE)=\"\",\"No\",IF(LEFT(VLOOKUP($G592,$H$11:$DO$1000,112,FALSE),3)=\"The\",EP592,VLOOKUP(VLOOKUP($G592,$H$11:$DO$1000,112,FALSE),DeclMatrix!$A$2:$F$5,VLOOKUP('Enrollment Form'!$B592,DeclMatrix!$A$8:$B$12,2,FALSE),FALSE))))","v":""},null,null,null,null,null,null,null,null,"",null,"","","","","","","","","","","",""]
["",null,null,null,null,null,"","",null,null,null,null,null,null,null,null,null,null,null,null,null,null,null,null,null,null,"","","","",null,null,"",null,null,null,null,null,null,null,null,null,null,null,null,null,null,null,null,null,null,null,null,null,null,null,null,null,null,null,"","","",null,null,null,null,"","","","",null,null,null,null,null,null,null,null,null,null,null,null,null,null,null,null,null,null,null,null,null,null,null,null,null,null,null,null,null,null,null,null,null,null,null,null,null,null,null,null,null,null,null,null,null,null,null,null,null,null,null,null,"",{"$f":"IF($A595=\"\",\"\",IF(VLOOKUP($G595,$H$11:$DO$1000,103,FALSE)=\"\",\"No\",IF(LEFT(VLOOKUP($G595,$H$11:$DO$1000,103,FALSE),3)=\"The\",EM595,VLOOKUP(VLOOKUP($G595,$H$11:$DO$1000,103,FALSE),DeclMatrix!$A$2:$F$5,VLOOKUP('Enrollment Form'!$B595,DeclMatrix!$A$8:$B$12,2,FALSE),FALSE))))","v":""},{"$f":"IF($A595=\"\",\"\",IF(VLOOKUP($G595,$H$11:$DO$1000,106,FALSE)=\"\",\"No\",IF(LEFT(VLOOKUP($G595,$H$11:$DO$1000,106,FALSE),3)=\"The\",EN595,VLOOKUP(VLOOKUP($G595,$H$11:$DO$1000,106,FALSE),DeclMatrix!$A$2:$F$5,VLOOKUP('Enrollment Form'!$B595,DeclMatrix!$A$8:$B$12,2,FALSE),FALSE))))","v":""},{"$f":"IF($A595=\"\",\"\",IF(VLOOKUP($G595,$H$11:$DO$1000,109,FALSE)=\"\",\"No\",IF(LEFT(VLOOKUP($G595,$H$11:$DO$1000,109,FALSE),3)=\"The\",EO595,VLOOKUP(VLOOKUP($G595,$H$11:$DO$1000,109,FALSE),DeclMatrix!$A$2:$F$5,VLOOKUP('Enrollment Form'!$B595,DeclMatrix!$A$8:$B$12,2,FALSE),FALSE))))","v":""},{"$f":"IF($A595=\"\",\"\",IF(VLOOKUP($G595,$H$11:$DO$1000,112,FALSE)=\"\",\"No\",IF(LEFT(VLOOKUP($G595,$H$11:$DO$1000,112,FALSE),3)=\"The\",EP595,VLOOKUP(VLOOKUP($G595,$H$11:$DO$1000,112,FALSE),DeclMatrix!$A$2:$F$5,VLOOKUP('Enrollment Form'!$B595,DeclMatrix!$A$8:$B$12,2,FALSE),FALSE))))","v":""},null,null,null,null,null,null,null,null,"",null,"","","","","","","","","","","",""]
["",null,null,null,null,null,"","",null,null,null,null,null,null,null,null,null,null,null,null,null,null,null,null,null,null,"","","","",null,null,"",null,null,null,null,null,null,null,null,null,null,null,null,null,null,null,null,null,null,null,null,null,null,null,null,null,null,null,"","","",null,null,null,null,"","","","",null,null,null,null,null,null,null,null,null,null,null,null,null,null,null,null,null,null,null,null,null,null,null,null,null,null,null,null,null,null,null,null,null,null,null,null,null,null,null,null,null,null,null,null,null,null,null,null,null,null,null,null,"",{"$f":"IF($A598=\"\",\"\",IF(VLOOKUP($G598,$H$11:$DO$1000,103,FALSE)=\"\",\"No\",IF(LEFT(VLOOKUP($G598,$H$11:$DO$1000,103,FALSE),3)=\"The\",EM598,VLOOKUP(VLOOKUP($G598,$H$11:$DO$1000,103,FALSE),DeclMatrix!$A$2:$F$5,VLOOKUP('Enrollment Form'!$B598,DeclMatrix!$A$8:$B$12,2,FALSE),FALSE))))","v":""},{"$f":"IF($A598=\"\",\"\",IF(VLOOKUP($G598,$H$11:$DO$1000,106,FALSE)=\"\",\"No\",IF(LEFT(VLOOKUP($G598,$H$11:$DO$1000,106,FALSE),3)=\"The\",EN598,VLOOKUP(VLOOKUP($G598,$H$11:$DO$1000,106,FALSE),DeclMatrix!$A$2:$F$5,VLOOKUP('Enrollment Form'!$B598,DeclMatrix!$A$8:$B$12,2,FALSE),FALSE))))","v":""},{"$f":"IF($A598=\"\",\"\",IF(VLOOKUP($G598,$H$11:$DO$1000,109,FALSE)=\"\",\"No\",IF(LEFT(VLOOKUP($G598,$H$11:$DO$1000,109,FALSE),3)=\"The\",EO598,VLOOKUP(VLOOKUP($G598,$H$11:$DO$1000,109,FALSE),DeclMatrix!$A$2:$F$5,VLOOKUP('Enrollment Form'!$B598,DeclMatrix!$A$8:$B$12,2,FALSE),FALSE))))","v":""},{"$f":"IF($A598=\"\",\"\",IF(VLOOKUP($G598,$H$11:$DO$1000,112,FALSE)=\"\",\"No\",IF(LEFT(VLOOKUP($G598,$H$11:$DO$1000,112,FALSE),3)=\"The\",EP598,VLOOKUP(VLOOKUP($G598,$H$11:$DO$1000,112,FALSE),DeclMatrix!$A$2:$F$5,VLOOKUP('Enrollment Form'!$B598,DeclMatrix!$A$8:$B$12,2,FALSE),FALSE))))","v":""},null,null,null,null,null,null,null,null,"",null,"","","","","","","","","","","",""]
["",null,null,null,null,null,"","",null,null,null,null,null,null,null,null,null,null,null,null,null,null,null,null,null,null,"","","","",null,null,"",null,null,null,null,null,null,null,null,null,null,null,null,null,null,null,null,null,null,null,null,null,null,null,null,null,null,null,"","","",null,null,null,null,"","","","",null,null,null,null,null,null,null,null,null,null,null,null,null,null,null,null,null,null,null,null,null,null,null,null,null,null,null,null,null,null,null,null,null,null,null,null,null,null,null,null,null,null,null,null,null,null,null,null,null,null,null,null,"",{"$f":"IF($A601=\"\",\"\",IF(VLOOKUP($G601,$H$11:$DO$1000,103,FALSE)=\"\",\"No\",IF(LEFT(VLOOKUP($G601,$H$11:$DO$1000,103,FALSE),3)=\"The\",EM601,VLOOKUP(VLOOKUP($G601,$H$11:$DO$1000,103,FALSE),DeclMatrix!$A$2:$F$5,VLOOKUP('Enrollment Form'!$B601,DeclMatrix!$A$8:$B$12,2,FALSE),FALSE))))","v":""},{"$f":"IF($A601=\"\",\"\",IF(VLOOKUP($G601,$H$11:$DO$1000,106,FALSE)=\"\",\"No\",IF(LEFT(VLOOKUP($G601,$H$11:$DO$1000,106,FALSE),3)=\"The\",EN601,VLOOKUP(VLOOKUP($G601,$H$11:$DO$1000,106,FALSE),DeclMatrix!$A$2:$F$5,VLOOKUP('Enrollment Form'!$B601,DeclMatrix!$A$8:$B$12,2,FALSE),FALSE))))","v":""},{"$f":"IF($A601=\"\",\"\",IF(VLOOKUP($G601,$H$11:$DO$1000,109,FALSE)=\"\",\"No\",IF(LEFT(VLOOKUP($G601,$H$11:$DO$1000,109,FALSE),3)=\"The\",EO601,VLOOKUP(VLOOKUP($G601,$H$11:$DO$1000,109,FALSE),DeclMatrix!$A$2:$F$5,VLOOKUP('Enrollment Form'!$B601,DeclMatrix!$A$8:$B$12,2,FALSE),FALSE))))","v":""},{"$f":"IF($A601=\"\",\"\",IF(VLOOKUP($G601,$H$11:$DO$1000,112,FALSE)=\"\",\"No\",IF(LEFT(VLOOKUP($G601,$H$11:$DO$1000,112,FALSE),3)=\"The\",EP601,VLOOKUP(VLOOKUP($G601,$H$11:$DO$1000,112,FALSE),DeclMatrix!$A$2:$F$5,VLOOKUP('Enrollment Form'!$B601,DeclMatrix!$A$8:$B$12,2,FALSE),FALSE))))","v":""},null,null,null,null,null,null,null,null,"",null,"","","","","","","","","","","",""]
["",null,null,null,null,null,"","",null,null,null,null,null,null,null,null,null,null,null,null,null,null,null,null,null,null,"","","","",null,null,"",null,null,null,null,null,null,null,null,null,null,null,null,null,null,null,null,null,null,null,null,null,null,null,null,null,null,null,"","","",null,null,null,null,"","","","",null,null,null,null,null,null,null,null,null,null,null,null,null,null,null,null,null,null,null,null,null,null,null,null,null,null,null,null,null,null,null,null,null,null,null,null,null,null,null,null,null,null,null,null,null,null,null,null,null,null,null,null,"",{"$f":"IF($A604=\"\",\"\",IF(VLOOKUP($G604,$H$11:$DO$1000,103,FALSE)=\"\",\"No\",IF(LEFT(VLOOKUP($G604,$H$11:$DO$1000,103,FALSE),3)=\"The\",EM604,VLOOKUP(VLOOKUP($G604,$H$11:$DO$1000,103,FALSE),DeclMatrix!$A$2:$F$5,VLOOKUP('Enrollment Form'!$B604,DeclMatrix!$A$8:$B$12,2,FALSE),FALSE))))","v":""},{"$f":"IF($A604=\"\",\"\",IF(VLOOKUP($G604,$H$11:$DO$1000,106,FALSE)=\"\",\"No\",IF(LEFT(VLOOKUP($G604,$H$11:$DO$1000,106,FALSE),3)=\"The\",EN604,VLOOKUP(VLOOKUP($G604,$H$11:$DO$1000,106,FALSE),DeclMatrix!$A$2:$F$5,VLOOKUP('Enrollment Form'!$B604,DeclMatrix!$A$8:$B$12,2,FALSE),FALSE))))","v":""},{"$f":"IF($A604=\"\",\"\",IF(VLOOKUP($G604,$H$11:$DO$1000,109,FALSE)=\"\",\"No\",IF(LEFT(VLOOKUP($G604,$H$11:$DO$1000,109,FALSE),3)=\"The\",EO604,VLOOKUP(VLOOKUP($G604,$H$11:$DO$1000,109,FALSE),DeclMatrix!$A$2:$F$5,VLOOKUP('Enrollment Form'!$B604,DeclMatrix!$A$8:$B$12,2,FALSE),FALSE))))","v":""},{"$f":"IF($A604=\"\",\"\",IF(VLOOKUP($G604,$H$11:$DO$1000,112,FALSE)=\"\",\"No\",IF(LEFT(VLOOKUP($G604,$H$11:$DO$1000,112,FALSE),3)=\"The\",EP604,VLOOKUP(VLOOKUP($G604,$H$11:$DO$1000,112,FALSE),DeclMatrix!$A$2:$F$5,VLOOKUP('Enrollment Form'!$B604,DeclMatrix!$A$8:$B$12,2,FALSE),FALSE))))","v":""},null,null,null,null,null,null,null,null,"",null,"","","","","","","","","","","",""]
["",null,null,null,null,null,"","",null,null,null,null,null,null,null,null,null,null,null,null,null,null,null,null,null,null,"","","","",null,null,"",null,null,null,null,null,null,null,null,null,null,null,null,null,null,null,null,null,null,null,null,null,null,null,null,null,null,null,"","","",null,null,null,null,"","","","",null,null,null,null,null,null,null,null,null,null,null,null,null,null,null,null,null,null,null,null,null,null,null,null,null,null,null,null,null,null,null,null,null,null,null,null,null,null,null,null,null,null,null,null,null,null,null,null,null,null,null,null,"",{"$f":"IF($A606=\"\",\"\",IF(VLOOKUP($G606,$H$11:$DO$1000,103,FALSE)=\"\",\"No\",IF(LEFT(VLOOKUP($G606,$H$11:$DO$1000,103,FALSE),3)=\"The\",EM606,VLOOKUP(VLOOKUP($G606,$H$11:$DO$1000,103,FALSE),DeclMatrix!$A$2:$F$5,VLOOKUP('Enrollment Form'!$B606,DeclMatrix!$A$8:$B$12,2,FALSE),FALSE))))","v":""},{"$f":"IF($A606=\"\",\"\",IF(VLOOKUP($G606,$H$11:$DO$1000,106,FALSE)=\"\",\"No\",IF(LEFT(VLOOKUP($G606,$H$11:$DO$1000,106,FALSE),3)=\"The\",EN606,VLOOKUP(VLOOKUP($G606,$H$11:$DO$1000,106,FALSE),DeclMatrix!$A$2:$F$5,VLOOKUP('Enrollment Form'!$B606,DeclMatrix!$A$8:$B$12,2,FALSE),FALSE))))","v":""},{"$f":"IF($A606=\"\",\"\",IF(VLOOKUP($G606,$H$11:$DO$1000,109,FALSE)=\"\",\"No\",IF(LEFT(VLOOKUP($G606,$H$11:$DO$1000,109,FALSE),3)=\"The\",EO606,VLOOKUP(VLOOKUP($G606,$H$11:$DO$1000,109,FALSE),DeclMatrix!$A$2:$F$5,VLOOKUP('Enrollment Form'!$B606,DeclMatrix!$A$8:$B$12,2,FALSE),FALSE))))","v":""},{"$f":"IF($A606=\"\",\"\",IF(VLOOKUP($G606,$H$11:$DO$1000,112,FALSE)=\"\",\"No\",IF(LEFT(VLOOKUP($G606,$H$11:$DO$1000,112,FALSE),3)=\"The\",EP606,VLOOKUP(VLOOKUP($G606,$H$11:$DO$1000,112,FALSE),DeclMatrix!$A$2:$F$5,VLOOKUP('Enrollment Form'!$B606,DeclMatrix!$A$8:$B$12,2,FALSE),FALSE))))","v":""},null,null,null,null,null,null,null,null,"",null,"","","","","","","","","","","",""]
["",null,null,null,null,null,"","",null,null,null,null,null,null,null,null,null,null,null,null,null,null,null,null,null,null,"","","","",null,null,"",null,null,null,null,null,null,null,null,null,null,null,null,null,null,null,null,null,null,null,null,null,null,null,null,null,null,null,"","","",null,null,null,null,"","","","",null,null,null,null,null,null,null,null,null,null,null,null,null,null,null,null,null,null,null,null,null,null,null,null,null,null,null,null,null,null,null,null,null,null,null,null,null,null,null,null,null,null,null,null,null,null,null,null,null,null,null,null,"",{"$f":"IF($A610=\"\",\"\",IF(VLOOKUP($G610,$H$11:$DO$1000,103,FALSE)=\"\",\"No\",IF(LEFT(VLOOKUP($G610,$H$11:$DO$1000,103,FALSE),3)=\"The\",EM610,VLOOKUP(VLOOKUP($G610,$H$11:$DO$1000,103,FALSE),DeclMatrix!$A$2:$F$5,VLOOKUP('Enrollment Form'!$B610,DeclMatrix!$A$8:$B$12,2,FALSE),FALSE))))","v":""},{"$f":"IF($A610=\"\",\"\",IF(VLOOKUP($G610,$H$11:$DO$1000,106,FALSE)=\"\",\"No\",IF(LEFT(VLOOKUP($G610,$H$11:$DO$1000,106,FALSE),3)=\"The\",EN610,VLOOKUP(VLOOKUP($G610,$H$11:$DO$1000,106,FALSE),DeclMatrix!$A$2:$F$5,VLOOKUP('Enrollment Form'!$B610,DeclMatrix!$A$8:$B$12,2,FALSE),FALSE))))","v":""},{"$f":"IF($A610=\"\",\"\",IF(VLOOKUP($G610,$H$11:$DO$1000,109,FALSE)=\"\",\"No\",IF(LEFT(VLOOKUP($G610,$H$11:$DO$1000,109,FALSE),3)=\"The\",EO610,VLOOKUP(VLOOKUP($G610,$H$11:$DO$1000,109,FALSE),DeclMatrix!$A$2:$F$5,VLOOKUP('Enrollment Form'!$B610,DeclMatrix!$A$8:$B$12,2,FALSE),FALSE))))","v":""},{"$f":"IF($A610=\"\",\"\",IF(VLOOKUP($G610,$H$11:$DO$1000,112,FALSE)=\"\",\"No\",IF(LEFT(VLOOKUP($G610,$H$11:$DO$1000,112,FALSE),3)=\"The\",EP610,VLOOKUP(VLOOKUP($G610,$H$11:$DO$1000,112,FALSE),DeclMatrix!$A$2:$F$5,VLOOKUP('Enrollment Form'!$B610,DeclMatrix!$A$8:$B$12,2,FALSE),FALSE))))","v":""},null,null,null,null,null,null,null,null,"",null,"","","","","","","","","","","",""]
["",null,null,null,null,null,"","",null,null,null,null,null,null,null,null,null,null,null,null,null,null,null,null,null,null,"","","","",null,null,"",null,null,null,null,null,null,null,null,null,null,null,null,null,null,null,null,null,null,null,null,null,null,null,null,null,null,null,"","","",null,null,null,null,"","","","",null,null,null,null,null,null,null,null,null,null,null,null,null,null,null,null,null,null,null,null,null,null,null,null,null,null,null,null,null,null,null,null,null,null,null,null,null,null,null,null,null,null,null,null,null,null,null,null,null,null,null,null,"",{"$f":"IF($A611=\"\",\"\",IF(VLOOKUP($G611,$H$11:$DO$1000,103,FALSE)=\"\",\"No\",IF(LEFT(VLOOKUP($G611,$H$11:$DO$1000,103,FALSE),3)=\"The\",EM611,VLOOKUP(VLOOKUP($G611,$H$11:$DO$1000,103,FALSE),DeclMatrix!$A$2:$F$5,VLOOKUP('Enrollment Form'!$B611,DeclMatrix!$A$8:$B$12,2,FALSE),FALSE))))","v":""},{"$f":"IF($A611=\"\",\"\",IF(VLOOKUP($G611,$H$11:$DO$1000,106,FALSE)=\"\",\"No\",IF(LEFT(VLOOKUP($G611,$H$11:$DO$1000,106,FALSE),3)=\"The\",EN611,VLOOKUP(VLOOKUP($G611,$H$11:$DO$1000,106,FALSE),DeclMatrix!$A$2:$F$5,VLOOKUP('Enrollment Form'!$B611,DeclMatrix!$A$8:$B$12,2,FALSE),FALSE))))","v":""},{"$f":"IF($A611=\"\",\"\",IF(VLOOKUP($G611,$H$11:$DO$1000,109,FALSE)=\"\",\"No\",IF(LEFT(VLOOKUP($G611,$H$11:$DO$1000,109,FALSE),3)=\"The\",EO611,VLOOKUP(VLOOKUP($G611,$H$11:$DO$1000,109,FALSE),DeclMatrix!$A$2:$F$5,VLOOKUP('Enrollment Form'!$B611,DeclMatrix!$A$8:$B$12,2,FALSE),FALSE))))","v":""},{"$f":"IF($A611=\"\",\"\",IF(VLOOKUP($G611,$H$11:$DO$1000,112,FALSE)=\"\",\"No\",IF(LEFT(VLOOKUP($G611,$H$11:$DO$1000,112,FALSE),3)=\"The\",EP611,VLOOKUP(VLOOKUP($G611,$H$11:$DO$1000,112,FALSE),DeclMatrix!$A$2:$F$5,VLOOKUP('Enrollment Form'!$B611,DeclMatrix!$A$8:$B$12,2,FALSE),FALSE))))","v":""},null,null,null,null,null,null,null,null,"",null,"","","","","","","","","","","",""]
["",null,null,null,null,null,"","",null,null,null,null,null,null,null,null,null,null,null,null,null,null,null,null,null,null,"","","","",null,null,"",null,null,null,null,null,null,null,null,null,null,null,null,null,null,null,null,null,null,null,null,null,null,null,null,null,null,null,"","","",null,null,null,null,"","","","",null,null,null,null,null,null,null,null,null,null,null,null,null,null,null,null,null,null,null,null,null,null,null,null,null,null,null,null,null,null,null,null,null,null,null,null,null,null,null,null,null,null,null,null,null,null,null,null,null,null,null,null,"",{"$f":"IF($A614=\"\",\"\",IF(VLOOKUP($G614,$H$11:$DO$1000,103,FALSE)=\"\",\"No\",IF(LEFT(VLOOKUP($G614,$H$11:$DO$1000,103,FALSE),3)=\"The\",EM614,VLOOKUP(VLOOKUP($G614,$H$11:$DO$1000,103,FALSE),DeclMatrix!$A$2:$F$5,VLOOKUP('Enrollment Form'!$B614,DeclMatrix!$A$8:$B$12,2,FALSE),FALSE))))","v":""},{"$f":"IF($A614=\"\",\"\",IF(VLOOKUP($G614,$H$11:$DO$1000,106,FALSE)=\"\",\"No\",IF(LEFT(VLOOKUP($G614,$H$11:$DO$1000,106,FALSE),3)=\"The\",EN614,VLOOKUP(VLOOKUP($G614,$H$11:$DO$1000,106,FALSE),DeclMatrix!$A$2:$F$5,VLOOKUP('Enrollment Form'!$B614,DeclMatrix!$A$8:$B$12,2,FALSE),FALSE))))","v":""},{"$f":"IF($A614=\"\",\"\",IF(VLOOKUP($G614,$H$11:$DO$1000,109,FALSE)=\"\",\"No\",IF(LEFT(VLOOKUP($G614,$H$11:$DO$1000,109,FALSE),3)=\"The\",EO614,VLOOKUP(VLOOKUP($G614,$H$11:$DO$1000,109,FALSE),DeclMatrix!$A$2:$F$5,VLOOKUP('Enrollment Form'!$B614,DeclMatrix!$A$8:$B$12,2,FALSE),FALSE))))","v":""},{"$f":"IF($A614=\"\",\"\",IF(VLOOKUP($G614,$H$11:$DO$1000,112,FALSE)=\"\",\"No\",IF(LEFT(VLOOKUP($G614,$H$11:$DO$1000,112,FALSE),3)=\"The\",EP614,VLOOKUP(VLOOKUP($G614,$H$11:$DO$1000,112,FALSE),DeclMatrix!$A$2:$F$5,VLOOKUP('Enrollment Form'!$B614,DeclMatrix!$A$8:$B$12,2,FALSE),FALSE))))","v":""},null,null,null,null,null,null,null,null,"",null,"","","","","","","","","","","",""]
["",null,null,null,null,null,"","",null,null,null,null,null,null,null,null,null,null,null,null,null,null,null,null,null,null,"","","","",null,null,"",null,null,null,null,null,null,null,null,null,null,null,null,null,null,null,null,null,null,null,null,null,null,null,null,null,null,null,"","","",null,null,null,null,"","","","",null,null,null,null,null,null,null,null,null,null,null,null,null,null,null,null,null,null,null,null,null,null,null,null,null,null,null,null,null,null,null,null,null,null,null,null,null,null,null,null,null,null,null,null,null,null,null,null,null,null,null,null,"",{"$f":"IF($A617=\"\",\"\",IF(VLOOKUP($G617,$H$11:$DO$1000,103,FALSE)=\"\",\"No\",IF(LEFT(VLOOKUP($G617,$H$11:$DO$1000,103,FALSE),3)=\"The\",EM617,VLOOKUP(VLOOKUP($G617,$H$11:$DO$1000,103,FALSE),DeclMatrix!$A$2:$F$5,VLOOKUP('Enrollment Form'!$B617,DeclMatrix!$A$8:$B$12,2,FALSE),FALSE))))","v":""},{"$f":"IF($A617=\"\",\"\",IF(VLOOKUP($G617,$H$11:$DO$1000,106,FALSE)=\"\",\"No\",IF(LEFT(VLOOKUP($G617,$H$11:$DO$1000,106,FALSE),3)=\"The\",EN617,VLOOKUP(VLOOKUP($G617,$H$11:$DO$1000,106,FALSE),DeclMatrix!$A$2:$F$5,VLOOKUP('Enrollment Form'!$B617,DeclMatrix!$A$8:$B$12,2,FALSE),FALSE))))","v":""},{"$f":"IF($A617=\"\",\"\",IF(VLOOKUP($G617,$H$11:$DO$1000,109,FALSE)=\"\",\"No\",IF(LEFT(VLOOKUP($G617,$H$11:$DO$1000,109,FALSE),3)=\"The\",EO617,VLOOKUP(VLOOKUP($G617,$H$11:$DO$1000,109,FALSE),DeclMatrix!$A$2:$F$5,VLOOKUP('Enrollment Form'!$B617,DeclMatrix!$A$8:$B$12,2,FALSE),FALSE))))","v":""},{"$f":"IF($A617=\"\",\"\",IF(VLOOKUP($G617,$H$11:$DO$1000,112,FALSE)=\"\",\"No\",IF(LEFT(VLOOKUP($G617,$H$11:$DO$1000,112,FALSE),3)=\"The\",EP617,VLOOKUP(VLOOKUP($G617,$H$11:$DO$1000,112,FALSE),DeclMatrix!$A$2:$F$5,VLOOKUP('Enrollment Form'!$B617,DeclMatrix!$A$8:$B$12,2,FALSE),FALSE))))","v":""},null,null,null,null,null,null,null,null,"",null,"","","","","","","","","","","",""]
["",null,null,null,null,null,"","",null,null,null,null,null,null,null,null,null,null,null,null,null,null,null,null,null,null,"","","","",null,null,"",null,null,null,null,null,null,null,null,null,null,null,null,null,null,null,null,null,null,null,null,null,null,null,null,null,null,null,"","","",null,null,null,null,"","","","",null,null,null,null,null,null,null,null,null,null,null,null,null,null,null,null,null,null,null,null,null,null,null,null,null,null,null,null,null,null,null,null,null,null,null,null,null,null,null,null,null,null,null,null,null,null,null,null,null,null,null,null,"",{"$f":"IF($A620=\"\",\"\",IF(VLOOKUP($G620,$H$11:$DO$1000,103,FALSE)=\"\",\"No\",IF(LEFT(VLOOKUP($G620,$H$11:$DO$1000,103,FALSE),3)=\"The\",EM620,VLOOKUP(VLOOKUP($G620,$H$11:$DO$1000,103,FALSE),DeclMatrix!$A$2:$F$5,VLOOKUP('Enrollment Form'!$B620,DeclMatrix!$A$8:$B$12,2,FALSE),FALSE))))","v":""},{"$f":"IF($A620=\"\",\"\",IF(VLOOKUP($G620,$H$11:$DO$1000,106,FALSE)=\"\",\"No\",IF(LEFT(VLOOKUP($G620,$H$11:$DO$1000,106,FALSE),3)=\"The\",EN620,VLOOKUP(VLOOKUP($G620,$H$11:$DO$1000,106,FALSE),DeclMatrix!$A$2:$F$5,VLOOKUP('Enrollment Form'!$B620,DeclMatrix!$A$8:$B$12,2,FALSE),FALSE))))","v":""},{"$f":"IF($A620=\"\",\"\",IF(VLOOKUP($G620,$H$11:$DO$1000,109,FALSE)=\"\",\"No\",IF(LEFT(VLOOKUP($G620,$H$11:$DO$1000,109,FALSE),3)=\"The\",EO620,VLOOKUP(VLOOKUP($G620,$H$11:$DO$1000,109,FALSE),DeclMatrix!$A$2:$F$5,VLOOKUP('Enrollment Form'!$B620,DeclMatrix!$A$8:$B$12,2,FALSE),FALSE))))","v":""},{"$f":"IF($A620=\"\",\"\",IF(VLOOKUP($G620,$H$11:$DO$1000,112,FALSE)=\"\",\"No\",IF(LEFT(VLOOKUP($G620,$H$11:$DO$1000,112,FALSE),3)=\"The\",EP620,VLOOKUP(VLOOKUP($G620,$H$11:$DO$1000,112,FALSE),DeclMatrix!$A$2:$F$5,VLOOKUP('Enrollment Form'!$B620,DeclMatrix!$A$8:$B$12,2,FALSE),FALSE))))","v":""},null,null,null,null,null,null,null,null,"",null,"","","","","","","","","","","",""]
["",null,null,null,null,null,"","",null,null,null,null,null,null,null,null,null,null,null,null,null,null,null,null,null,null,"","","","",null,null,"",null,null,null,null,null,null,null,null,null,null,null,null,null,null,null,null,null,null,null,null,null,null,null,null,null,null,null,"","","",null,null,null,null,"","","","",null,null,null,null,null,null,null,null,null,null,null,null,null,null,null,null,null,null,null,null,null,null,null,null,null,null,null,null,null,null,null,null,null,null,null,null,null,null,null,null,null,null,null,null,null,null,null,null,null,null,null,null,"",{"$f":"IF($A623=\"\",\"\",IF(VLOOKUP($G623,$H$11:$DO$1000,103,FALSE)=\"\",\"No\",IF(LEFT(VLOOKUP($G623,$H$11:$DO$1000,103,FALSE),3)=\"The\",EM623,VLOOKUP(VLOOKUP($G623,$H$11:$DO$1000,103,FALSE),DeclMatrix!$A$2:$F$5,VLOOKUP('Enrollment Form'!$B623,DeclMatrix!$A$8:$B$12,2,FALSE),FALSE))))","v":""},{"$f":"IF($A623=\"\",\"\",IF(VLOOKUP($G623,$H$11:$DO$1000,106,FALSE)=\"\",\"No\",IF(LEFT(VLOOKUP($G623,$H$11:$DO$1000,106,FALSE),3)=\"The\",EN623,VLOOKUP(VLOOKUP($G623,$H$11:$DO$1000,106,FALSE),DeclMatrix!$A$2:$F$5,VLOOKUP('Enrollment Form'!$B623,DeclMatrix!$A$8:$B$12,2,FALSE),FALSE))))","v":""},{"$f":"IF($A623=\"\",\"\",IF(VLOOKUP($G623,$H$11:$DO$1000,109,FALSE)=\"\",\"No\",IF(LEFT(VLOOKUP($G623,$H$11:$DO$1000,109,FALSE),3)=\"The\",EO623,VLOOKUP(VLOOKUP($G623,$H$11:$DO$1000,109,FALSE),DeclMatrix!$A$2:$F$5,VLOOKUP('Enrollment Form'!$B623,DeclMatrix!$A$8:$B$12,2,FALSE),FALSE))))","v":""},{"$f":"IF($A623=\"\",\"\",IF(VLOOKUP($G623,$H$11:$DO$1000,112,FALSE)=\"\",\"No\",IF(LEFT(VLOOKUP($G623,$H$11:$DO$1000,112,FALSE),3)=\"The\",EP623,VLOOKUP(VLOOKUP($G623,$H$11:$DO$1000,112,FALSE),DeclMatrix!$A$2:$F$5,VLOOKUP('Enrollment Form'!$B623,DeclMatrix!$A$8:$B$12,2,FALSE),FALSE))))","v":""},null,null,null,null,null,null,null,null,"",null,"","","","","","","","","","","",""]
["",null,null,null,null,null,"","",null,null,null,null,null,null,null,null,null,null,null,null,null,null,null,null,null,null,"","","","",null,null,"",null,null,null,null,null,null,null,null,null,null,null,null,null,null,null,null,null,null,null,null,null,null,null,null,null,null,null,"","","",null,null,null,null,"","","","",null,null,null,null,null,null,null,null,null,null,null,null,null,null,null,null,null,null,null,null,null,null,null,null,null,null,null,null,null,null,null,null,null,null,null,null,null,null,null,null,null,null,null,null,null,null,null,null,null,null,null,null,"",{"$f":"IF($A626=\"\",\"\",IF(VLOOKUP($G626,$H$11:$DO$1000,103,FALSE)=\"\",\"No\",IF(LEFT(VLOOKUP($G626,$H$11:$DO$1000,103,FALSE),3)=\"The\",EM626,VLOOKUP(VLOOKUP($G626,$H$11:$DO$1000,103,FALSE),DeclMatrix!$A$2:$F$5,VLOOKUP('Enrollment Form'!$B626,DeclMatrix!$A$8:$B$12,2,FALSE),FALSE))))","v":""},{"$f":"IF($A626=\"\",\"\",IF(VLOOKUP($G626,$H$11:$DO$1000,106,FALSE)=\"\",\"No\",IF(LEFT(VLOOKUP($G626,$H$11:$DO$1000,106,FALSE),3)=\"The\",EN626,VLOOKUP(VLOOKUP($G626,$H$11:$DO$1000,106,FALSE),DeclMatrix!$A$2:$F$5,VLOOKUP('Enrollment Form'!$B626,DeclMatrix!$A$8:$B$12,2,FALSE),FALSE))))","v":""},{"$f":"IF($A626=\"\",\"\",IF(VLOOKUP($G626,$H$11:$DO$1000,109,FALSE)=\"\",\"No\",IF(LEFT(VLOOKUP($G626,$H$11:$DO$1000,109,FALSE),3)=\"The\",EO626,VLOOKUP(VLOOKUP($G626,$H$11:$DO$1000,109,FALSE),DeclMatrix!$A$2:$F$5,VLOOKUP('Enrollment Form'!$B626,DeclMatrix!$A$8:$B$12,2,FALSE),FALSE))))","v":""},{"$f":"IF($A626=\"\",\"\",IF(VLOOKUP($G626,$H$11:$DO$1000,112,FALSE)=\"\",\"No\",IF(LEFT(VLOOKUP($G626,$H$11:$DO$1000,112,FALSE),3)=\"The\",EP626,VLOOKUP(VLOOKUP($G626,$H$11:$DO$1000,112,FALSE),DeclMatrix!$A$2:$F$5,VLOOKUP('Enrollment Form'!$B626,DeclMatrix!$A$8:$B$12,2,FALSE),FALSE))))","v":""},null,null,null,null,null,null,null,null,"",null,"","","","","","","","","","","",""]
["",null,null,null,null,null,"","",null,null,null,null,null,null,null,null,null,null,null,null,null,null,null,null,null,null,"","","","",null,null,"",null,null,null,null,null,null,null,null,null,null,null,null,null,null,null,null,null,null,null,null,null,null,null,null,null,null,null,"","","",null,null,null,null,"","","","",null,null,null,null,null,null,null,null,null,null,null,null,null,null,null,null,null,null,null,null,null,null,null,null,null,null,null,null,null,null,null,null,null,null,null,null,null,null,null,null,null,null,null,null,null,null,null,null,null,null,null,null,"",{"$f":"IF($A628=\"\",\"\",IF(VLOOKUP($G628,$H$11:$DO$1000,103,FALSE)=\"\",\"No\",IF(LEFT(VLOOKUP($G628,$H$11:$DO$1000,103,FALSE),3)=\"The\",EM628,VLOOKUP(VLOOKUP($G628,$H$11:$DO$1000,103,FALSE),DeclMatrix!$A$2:$F$5,VLOOKUP('Enrollment Form'!$B628,DeclMatrix!$A$8:$B$12,2,FALSE),FALSE))))","v":""},{"$f":"IF($A628=\"\",\"\",IF(VLOOKUP($G628,$H$11:$DO$1000,106,FALSE)=\"\",\"No\",IF(LEFT(VLOOKUP($G628,$H$11:$DO$1000,106,FALSE),3)=\"The\",EN628,VLOOKUP(VLOOKUP($G628,$H$11:$DO$1000,106,FALSE),DeclMatrix!$A$2:$F$5,VLOOKUP('Enrollment Form'!$B628,DeclMatrix!$A$8:$B$12,2,FALSE),FALSE))))","v":""},{"$f":"IF($A628=\"\",\"\",IF(VLOOKUP($G628,$H$11:$DO$1000,109,FALSE)=\"\",\"No\",IF(LEFT(VLOOKUP($G628,$H$11:$DO$1000,109,FALSE),3)=\"The\",EO628,VLOOKUP(VLOOKUP($G628,$H$11:$DO$1000,109,FALSE),DeclMatrix!$A$2:$F$5,VLOOKUP('Enrollment Form'!$B628,DeclMatrix!$A$8:$B$12,2,FALSE),FALSE))))","v":""},{"$f":"IF($A628=\"\",\"\",IF(VLOOKUP($G628,$H$11:$DO$1000,112,FALSE)=\"\",\"No\",IF(LEFT(VLOOKUP($G628,$H$11:$DO$1000,112,FALSE),3)=\"The\",EP628,VLOOKUP(VLOOKUP($G628,$H$11:$DO$1000,112,FALSE),DeclMatrix!$A$2:$F$5,VLOOKUP('Enrollment Form'!$B628,DeclMatrix!$A$8:$B$12,2,FALSE),FALSE))))","v":""},null,null,null,null,null,null,null,null,"",null,"","","","","","","","","","","",""]
["",null,null,null,null,null,"","",null,null,null,null,null,null,null,null,null,null,null,null,null,null,null,null,null,null,"","","","",null,null,"",null,null,null,null,null,null,null,null,null,null,null,null,null,null,null,null,null,null,null,null,null,null,null,null,null,null,null,"","","",null,null,null,null,"","","","",null,null,null,null,null,null,null,null,null,null,null,null,null,null,null,null,null,null,null,null,null,null,null,null,null,null,null,null,null,null,null,null,null,null,null,null,null,null,null,null,null,null,null,null,null,null,null,null,null,null,null,null,"",{"$f":"IF($A632=\"\",\"\",IF(VLOOKUP($G632,$H$11:$DO$1000,103,FALSE)=\"\",\"No\",IF(LEFT(VLOOKUP($G632,$H$11:$DO$1000,103,FALSE),3)=\"The\",EM632,VLOOKUP(VLOOKUP($G632,$H$11:$DO$1000,103,FALSE),DeclMatrix!$A$2:$F$5,VLOOKUP('Enrollment Form'!$B632,DeclMatrix!$A$8:$B$12,2,FALSE),FALSE))))","v":""},{"$f":"IF($A632=\"\",\"\",IF(VLOOKUP($G632,$H$11:$DO$1000,106,FALSE)=\"\",\"No\",IF(LEFT(VLOOKUP($G632,$H$11:$DO$1000,106,FALSE),3)=\"The\",EN632,VLOOKUP(VLOOKUP($G632,$H$11:$DO$1000,106,FALSE),DeclMatrix!$A$2:$F$5,VLOOKUP('Enrollment Form'!$B632,DeclMatrix!$A$8:$B$12,2,FALSE),FALSE))))","v":""},{"$f":"IF($A632=\"\",\"\",IF(VLOOKUP($G632,$H$11:$DO$1000,109,FALSE)=\"\",\"No\",IF(LEFT(VLOOKUP($G632,$H$11:$DO$1000,109,FALSE),3)=\"The\",EO632,VLOOKUP(VLOOKUP($G632,$H$11:$DO$1000,109,FALSE),DeclMatrix!$A$2:$F$5,VLOOKUP('Enrollment Form'!$B632,DeclMatrix!$A$8:$B$12,2,FALSE),FALSE))))","v":""},{"$f":"IF($A632=\"\",\"\",IF(VLOOKUP($G632,$H$11:$DO$1000,112,FALSE)=\"\",\"No\",IF(LEFT(VLOOKUP($G632,$H$11:$DO$1000,112,FALSE),3)=\"The\",EP632,VLOOKUP(VLOOKUP($G632,$H$11:$DO$1000,112,FALSE),DeclMatrix!$A$2:$F$5,VLOOKUP('Enrollment Form'!$B632,DeclMatrix!$A$8:$B$12,2,FALSE),FALSE))))","v":""},null,null,null,null,null,null,null,null,"",null,"","","","","","","","","","","",""]
["",null,null,null,null,null,"","",null,null,null,null,null,null,null,null,null,null,null,null,null,null,null,null,null,null,"","","","",null,null,"",null,null,null,null,null,null,null,null,null,null,null,null,null,null,null,null,null,null,null,null,null,null,null,null,null,null,null,"","","",null,null,null,null,"","","","",null,null,null,null,null,null,null,null,null,null,null,null,null,null,null,null,null,null,null,null,null,null,null,null,null,null,null,null,null,null,null,null,null,null,null,null,null,null,null,null,null,null,null,null,null,null,null,null,null,null,null,null,"",{"$f":"IF($A633=\"\",\"\",IF(VLOOKUP($G633,$H$11:$DO$1000,103,FALSE)=\"\",\"No\",IF(LEFT(VLOOKUP($G633,$H$11:$DO$1000,103,FALSE),3)=\"The\",EM633,VLOOKUP(VLOOKUP($G633,$H$11:$DO$1000,103,FALSE),DeclMatrix!$A$2:$F$5,VLOOKUP('Enrollment Form'!$B633,DeclMatrix!$A$8:$B$12,2,FALSE),FALSE))))","v":""},{"$f":"IF($A633=\"\",\"\",IF(VLOOKUP($G633,$H$11:$DO$1000,106,FALSE)=\"\",\"No\",IF(LEFT(VLOOKUP($G633,$H$11:$DO$1000,106,FALSE),3)=\"The\",EN633,VLOOKUP(VLOOKUP($G633,$H$11:$DO$1000,106,FALSE),DeclMatrix!$A$2:$F$5,VLOOKUP('Enrollment Form'!$B633,DeclMatrix!$A$8:$B$12,2,FALSE),FALSE))))","v":""},{"$f":"IF($A633=\"\",\"\",IF(VLOOKUP($G633,$H$11:$DO$1000,109,FALSE)=\"\",\"No\",IF(LEFT(VLOOKUP($G633,$H$11:$DO$1000,109,FALSE),3)=\"The\",EO633,VLOOKUP(VLOOKUP($G633,$H$11:$DO$1000,109,FALSE),DeclMatrix!$A$2:$F$5,VLOOKUP('Enrollment Form'!$B633,DeclMatrix!$A$8:$B$12,2,FALSE),FALSE))))","v":""},{"$f":"IF($A633=\"\",\"\",IF(VLOOKUP($G633,$H$11:$DO$1000,112,FALSE)=\"\",\"No\",IF(LEFT(VLOOKUP($G633,$H$11:$DO$1000,112,FALSE),3)=\"The\",EP633,VLOOKUP(VLOOKUP($G633,$H$11:$DO$1000,112,FALSE),DeclMatrix!$A$2:$F$5,VLOOKUP('Enrollment Form'!$B633,DeclMatrix!$A$8:$B$12,2,FALSE),FALSE))))","v":""},null,null,null,null,null,null,null,null,"",null,"","","","","","","","","","","",""]
["",null,null,null,null,null,"","",null,null,null,null,null,null,null,null,null,null,null,null,null,null,null,null,null,null,"","","","",null,null,"",null,null,null,null,null,null,null,null,null,null,null,null,null,null,null,null,null,null,null,null,null,null,null,null,null,null,null,"","","",null,null,null,null,"","","","",null,null,null,null,null,null,null,null,null,null,null,null,null,null,null,null,null,null,null,null,null,null,null,null,null,null,null,null,null,null,null,null,null,null,null,null,null,null,null,null,null,null,null,null,null,null,null,null,null,null,null,null,"",{"$f":"IF($A636=\"\",\"\",IF(VLOOKUP($G636,$H$11:$DO$1000,103,FALSE)=\"\",\"No\",IF(LEFT(VLOOKUP($G636,$H$11:$DO$1000,103,FALSE),3)=\"The\",EM636,VLOOKUP(VLOOKUP($G636,$H$11:$DO$1000,103,FALSE),DeclMatrix!$A$2:$F$5,VLOOKUP('Enrollment Form'!$B636,DeclMatrix!$A$8:$B$12,2,FALSE),FALSE))))","v":""},{"$f":"IF($A636=\"\",\"\",IF(VLOOKUP($G636,$H$11:$DO$1000,106,FALSE)=\"\",\"No\",IF(LEFT(VLOOKUP($G636,$H$11:$DO$1000,106,FALSE),3)=\"The\",EN636,VLOOKUP(VLOOKUP($G636,$H$11:$DO$1000,106,FALSE),DeclMatrix!$A$2:$F$5,VLOOKUP('Enrollment Form'!$B636,DeclMatrix!$A$8:$B$12,2,FALSE),FALSE))))","v":""},{"$f":"IF($A636=\"\",\"\",IF(VLOOKUP($G636,$H$11:$DO$1000,109,FALSE)=\"\",\"No\",IF(LEFT(VLOOKUP($G636,$H$11:$DO$1000,109,FALSE),3)=\"The\",EO636,VLOOKUP(VLOOKUP($G636,$H$11:$DO$1000,109,FALSE),DeclMatrix!$A$2:$F$5,VLOOKUP('Enrollment Form'!$B636,DeclMatrix!$A$8:$B$12,2,FALSE),FALSE))))","v":""},{"$f":"IF($A636=\"\",\"\",IF(VLOOKUP($G636,$H$11:$DO$1000,112,FALSE)=\"\",\"No\",IF(LEFT(VLOOKUP($G636,$H$11:$DO$1000,112,FALSE),3)=\"The\",EP636,VLOOKUP(VLOOKUP($G636,$H$11:$DO$1000,112,FALSE),DeclMatrix!$A$2:$F$5,VLOOKUP('Enrollment Form'!$B636,DeclMatrix!$A$8:$B$12,2,FALSE),FALSE))))","v":""},null,null,null,null,null,null,null,null,"",null,"","","","","","","","","","","",""]
["",null,null,null,null,null,"","",null,null,null,null,null,null,null,null,null,null,null,null,null,null,null,null,null,null,"","","","",null,null,"",null,null,null,null,null,null,null,null,null,null,null,null,null,null,null,null,null,null,null,null,null,null,null,null,null,null,null,"","","",null,null,null,null,"","","","",null,null,null,null,null,null,null,null,null,null,null,null,null,null,null,null,null,null,null,null,null,null,null,null,null,null,null,null,null,null,null,null,null,null,null,null,null,null,null,null,null,null,null,null,null,null,null,null,null,null,null,null,"",{"$f":"IF($A639=\"\",\"\",IF(VLOOKUP($G639,$H$11:$DO$1000,103,FALSE)=\"\",\"No\",IF(LEFT(VLOOKUP($G639,$H$11:$DO$1000,103,FALSE),3)=\"The\",EM639,VLOOKUP(VLOOKUP($G639,$H$11:$DO$1000,103,FALSE),DeclMatrix!$A$2:$F$5,VLOOKUP('Enrollment Form'!$B639,DeclMatrix!$A$8:$B$12,2,FALSE),FALSE))))","v":""},{"$f":"IF($A639=\"\",\"\",IF(VLOOKUP($G639,$H$11:$DO$1000,106,FALSE)=\"\",\"No\",IF(LEFT(VLOOKUP($G639,$H$11:$DO$1000,106,FALSE),3)=\"The\",EN639,VLOOKUP(VLOOKUP($G639,$H$11:$DO$1000,106,FALSE),DeclMatrix!$A$2:$F$5,VLOOKUP('Enrollment Form'!$B639,DeclMatrix!$A$8:$B$12,2,FALSE),FALSE))))","v":""},{"$f":"IF($A639=\"\",\"\",IF(VLOOKUP($G639,$H$11:$DO$1000,109,FALSE)=\"\",\"No\",IF(LEFT(VLOOKUP($G639,$H$11:$DO$1000,109,FALSE),3)=\"The\",EO639,VLOOKUP(VLOOKUP($G639,$H$11:$DO$1000,109,FALSE),DeclMatrix!$A$2:$F$5,VLOOKUP('Enrollment Form'!$B639,DeclMatrix!$A$8:$B$12,2,FALSE),FALSE))))","v":""},{"$f":"IF($A639=\"\",\"\",IF(VLOOKUP($G639,$H$11:$DO$1000,112,FALSE)=\"\",\"No\",IF(LEFT(VLOOKUP($G639,$H$11:$DO$1000,112,FALSE),3)=\"The\",EP639,VLOOKUP(VLOOKUP($G639,$H$11:$DO$1000,112,FALSE),DeclMatrix!$A$2:$F$5,VLOOKUP('Enrollment Form'!$B639,DeclMatrix!$A$8:$B$12,2,FALSE),FALSE))))","v":""},null,null,null,null,null,null,null,null,"",null,"","","","","","","","","","","",""]
["",null,null,null,null,null,"","",null,null,null,null,null,null,null,null,null,null,null,null,null,null,null,null,null,null,"","","","",null,null,"",null,null,null,null,null,null,null,null,null,null,null,null,null,null,null,null,null,null,null,null,null,null,null,null,null,null,null,"","","",null,null,null,null,"","","","",null,null,null,null,null,null,null,null,null,null,null,null,null,null,null,null,null,null,null,null,null,null,null,null,null,null,null,null,null,null,null,null,null,null,null,null,null,null,null,null,null,null,null,null,null,null,null,null,null,null,null,null,"",{"$f":"IF($A642=\"\",\"\",IF(VLOOKUP($G642,$H$11:$DO$1000,103,FALSE)=\"\",\"No\",IF(LEFT(VLOOKUP($G642,$H$11:$DO$1000,103,FALSE),3)=\"The\",EM642,VLOOKUP(VLOOKUP($G642,$H$11:$DO$1000,103,FALSE),DeclMatrix!$A$2:$F$5,VLOOKUP('Enrollment Form'!$B642,DeclMatrix!$A$8:$B$12,2,FALSE),FALSE))))","v":""},{"$f":"IF($A642=\"\",\"\",IF(VLOOKUP($G642,$H$11:$DO$1000,106,FALSE)=\"\",\"No\",IF(LEFT(VLOOKUP($G642,$H$11:$DO$1000,106,FALSE),3)=\"The\",EN642,VLOOKUP(VLOOKUP($G642,$H$11:$DO$1000,106,FALSE),DeclMatrix!$A$2:$F$5,VLOOKUP('Enrollment Form'!$B642,DeclMatrix!$A$8:$B$12,2,FALSE),FALSE))))","v":""},{"$f":"IF($A642=\"\",\"\",IF(VLOOKUP($G642,$H$11:$DO$1000,109,FALSE)=\"\",\"No\",IF(LEFT(VLOOKUP($G642,$H$11:$DO$1000,109,FALSE),3)=\"The\",EO642,VLOOKUP(VLOOKUP($G642,$H$11:$DO$1000,109,FALSE),DeclMatrix!$A$2:$F$5,VLOOKUP('Enrollment Form'!$B642,DeclMatrix!$A$8:$B$12,2,FALSE),FALSE))))","v":""},{"$f":"IF($A642=\"\",\"\",IF(VLOOKUP($G642,$H$11:$DO$1000,112,FALSE)=\"\",\"No\",IF(LEFT(VLOOKUP($G642,$H$11:$DO$1000,112,FALSE),3)=\"The\",EP642,VLOOKUP(VLOOKUP($G642,$H$11:$DO$1000,112,FALSE),DeclMatrix!$A$2:$F$5,VLOOKUP('Enrollment Form'!$B642,DeclMatrix!$A$8:$B$12,2,FALSE),FALSE))))","v":""},null,null,null,null,null,null,null,null,"",null,"","","","","","","","","","","",""]
["",null,null,null,null,null,"","",null,null,null,null,null,null,null,null,null,null,null,null,null,null,null,null,null,null,"","","","",null,null,"",null,null,null,null,null,null,null,null,null,null,null,null,null,null,null,null,null,null,null,null,null,null,null,null,null,null,null,"","","",null,null,null,null,"","","","",null,null,null,null,null,null,null,null,null,null,null,null,null,null,null,null,null,null,null,null,null,null,null,null,null,null,null,null,null,null,null,null,null,null,null,null,null,null,null,null,null,null,null,null,null,null,null,null,null,null,null,null,"",{"$f":"IF($A645=\"\",\"\",IF(VLOOKUP($G645,$H$11:$DO$1000,103,FALSE)=\"\",\"No\",IF(LEFT(VLOOKUP($G645,$H$11:$DO$1000,103,FALSE),3)=\"The\",EM645,VLOOKUP(VLOOKUP($G645,$H$11:$DO$1000,103,FALSE),DeclMatrix!$A$2:$F$5,VLOOKUP('Enrollment Form'!$B645,DeclMatrix!$A$8:$B$12,2,FALSE),FALSE))))","v":""},{"$f":"IF($A645=\"\",\"\",IF(VLOOKUP($G645,$H$11:$DO$1000,106,FALSE)=\"\",\"No\",IF(LEFT(VLOOKUP($G645,$H$11:$DO$1000,106,FALSE),3)=\"The\",EN645,VLOOKUP(VLOOKUP($G645,$H$11:$DO$1000,106,FALSE),DeclMatrix!$A$2:$F$5,VLOOKUP('Enrollment Form'!$B645,DeclMatrix!$A$8:$B$12,2,FALSE),FALSE))))","v":""},{"$f":"IF($A645=\"\",\"\",IF(VLOOKUP($G645,$H$11:$DO$1000,109,FALSE)=\"\",\"No\",IF(LEFT(VLOOKUP($G645,$H$11:$DO$1000,109,FALSE),3)=\"The\",EO645,VLOOKUP(VLOOKUP($G645,$H$11:$DO$1000,109,FALSE),DeclMatrix!$A$2:$F$5,VLOOKUP('Enrollment Form'!$B645,DeclMatrix!$A$8:$B$12,2,FALSE),FALSE))))","v":""},{"$f":"IF($A645=\"\",\"\",IF(VLOOKUP($G645,$H$11:$DO$1000,112,FALSE)=\"\",\"No\",IF(LEFT(VLOOKUP($G645,$H$11:$DO$1000,112,FALSE),3)=\"The\",EP645,VLOOKUP(VLOOKUP($G645,$H$11:$DO$1000,112,FALSE),DeclMatrix!$A$2:$F$5,VLOOKUP('Enrollment Form'!$B645,DeclMatrix!$A$8:$B$12,2,FALSE),FALSE))))","v":""},null,null,null,null,null,null,null,null,"",null,"","","","","","","","","","","",""]
["",null,null,null,null,null,"","",null,null,null,null,null,null,null,null,null,null,null,null,null,null,null,null,null,null,"","","","",null,null,"",null,null,null,null,null,null,null,null,null,null,null,null,null,null,null,null,null,null,null,null,null,null,null,null,null,null,null,"","","",null,null,null,null,"","","","",null,null,null,null,null,null,null,null,null,null,null,null,null,null,null,null,null,null,null,null,null,null,null,null,null,null,null,null,null,null,null,null,null,null,null,null,null,null,null,null,null,null,null,null,null,null,null,null,null,null,null,null,"",{"$f":"IF($A649=\"\",\"\",IF(VLOOKUP($G649,$H$11:$DO$1000,103,FALSE)=\"\",\"No\",IF(LEFT(VLOOKUP($G649,$H$11:$DO$1000,103,FALSE),3)=\"The\",EM649,VLOOKUP(VLOOKUP($G649,$H$11:$DO$1000,103,FALSE),DeclMatrix!$A$2:$F$5,VLOOKUP('Enrollment Form'!$B649,DeclMatrix!$A$8:$B$12,2,FALSE),FALSE))))","v":""},{"$f":"IF($A649=\"\",\"\",IF(VLOOKUP($G649,$H$11:$DO$1000,106,FALSE)=\"\",\"No\",IF(LEFT(VLOOKUP($G649,$H$11:$DO$1000,106,FALSE),3)=\"The\",EN649,VLOOKUP(VLOOKUP($G649,$H$11:$DO$1000,106,FALSE),DeclMatrix!$A$2:$F$5,VLOOKUP('Enrollment Form'!$B649,DeclMatrix!$A$8:$B$12,2,FALSE),FALSE))))","v":""},{"$f":"IF($A649=\"\",\"\",IF(VLOOKUP($G649,$H$11:$DO$1000,109,FALSE)=\"\",\"No\",IF(LEFT(VLOOKUP($G649,$H$11:$DO$1000,109,FALSE),3)=\"The\",EO649,VLOOKUP(VLOOKUP($G649,$H$11:$DO$1000,109,FALSE),DeclMatrix!$A$2:$F$5,VLOOKUP('Enrollment Form'!$B649,DeclMatrix!$A$8:$B$12,2,FALSE),FALSE))))","v":""},{"$f":"IF($A649=\"\",\"\",IF(VLOOKUP($G649,$H$11:$DO$1000,112,FALSE)=\"\",\"No\",IF(LEFT(VLOOKUP($G649,$H$11:$DO$1000,112,FALSE),3)=\"The\",EP649,VLOOKUP(VLOOKUP($G649,$H$11:$DO$1000,112,FALSE),DeclMatrix!$A$2:$F$5,VLOOKUP('Enrollment Form'!$B649,DeclMatrix!$A$8:$B$12,2,FALSE),FALSE))))","v":""},null,null,null,null,null,null,null,null,"",null,"","","","","","","","","","","",""]
["",null,null,null,null,null,"","",null,null,null,null,null,null,null,null,null,null,null,null,null,null,null,null,null,null,"","","","",null,null,"",null,null,null,null,null,null,null,null,null,null,null,null,null,null,null,null,null,null,null,null,null,null,null,null,null,null,null,"","","",null,null,null,null,"","","","",null,null,null,null,null,null,null,null,null,null,null,null,null,null,null,null,null,null,null,null,null,null,null,null,null,null,null,null,null,null,null,null,null,null,null,null,null,null,null,null,null,null,null,null,null,null,null,null,null,null,null,null,"",{"$f":"IF($A650=\"\",\"\",IF(VLOOKUP($G650,$H$11:$DO$1000,103,FALSE)=\"\",\"No\",IF(LEFT(VLOOKUP($G650,$H$11:$DO$1000,103,FALSE),3)=\"The\",EM650,VLOOKUP(VLOOKUP($G650,$H$11:$DO$1000,103,FALSE),DeclMatrix!$A$2:$F$5,VLOOKUP('Enrollment Form'!$B650,DeclMatrix!$A$8:$B$12,2,FALSE),FALSE))))","v":""},{"$f":"IF($A650=\"\",\"\",IF(VLOOKUP($G650,$H$11:$DO$1000,106,FALSE)=\"\",\"No\",IF(LEFT(VLOOKUP($G650,$H$11:$DO$1000,106,FALSE),3)=\"The\",EN650,VLOOKUP(VLOOKUP($G650,$H$11:$DO$1000,106,FALSE),DeclMatrix!$A$2:$F$5,VLOOKUP('Enrollment Form'!$B650,DeclMatrix!$A$8:$B$12,2,FALSE),FALSE))))","v":""},{"$f":"IF($A650=\"\",\"\",IF(VLOOKUP($G650,$H$11:$DO$1000,109,FALSE)=\"\",\"No\",IF(LEFT(VLOOKUP($G650,$H$11:$DO$1000,109,FALSE),3)=\"The\",EO650,VLOOKUP(VLOOKUP($G650,$H$11:$DO$1000,109,FALSE),DeclMatrix!$A$2:$F$5,VLOOKUP('Enrollment Form'!$B650,DeclMatrix!$A$8:$B$12,2,FALSE),FALSE))))","v":""},{"$f":"IF($A650=\"\",\"\",IF(VLOOKUP($G650,$H$11:$DO$1000,112,FALSE)=\"\",\"No\",IF(LEFT(VLOOKUP($G650,$H$11:$DO$1000,112,FALSE),3)=\"The\",EP650,VLOOKUP(VLOOKUP($G650,$H$11:$DO$1000,112,FALSE),DeclMatrix!$A$2:$F$5,VLOOKUP('Enrollment Form'!$B650,DeclMatrix!$A$8:$B$12,2,FALSE),FALSE))))","v":""},null,null,null,null,null,null,null,null,"",null,"","","","","","","","","","","",""]
["",null,null,null,null,null,"","",null,null,null,null,null,null,null,null,null,null,null,null,null,null,null,null,null,null,"","","","",null,null,"",null,null,null,null,null,null,null,null,null,null,null,null,null,null,null,null,null,null,null,null,null,null,null,null,null,null,null,"","","",null,null,null,null,"","","","",null,null,null,null,null,null,null,null,null,null,null,null,null,null,null,null,null,null,null,null,null,null,null,null,null,null,null,null,null,null,null,null,null,null,null,null,null,null,null,null,null,null,null,null,null,null,null,null,null,null,null,null,"",{"$f":"IF($A654=\"\",\"\",IF(VLOOKUP($G654,$H$11:$DO$1000,103,FALSE)=\"\",\"No\",IF(LEFT(VLOOKUP($G654,$H$11:$DO$1000,103,FALSE),3)=\"The\",EM654,VLOOKUP(VLOOKUP($G654,$H$11:$DO$1000,103,FALSE),DeclMatrix!$A$2:$F$5,VLOOKUP('Enrollment Form'!$B654,DeclMatrix!$A$8:$B$12,2,FALSE),FALSE))))","v":""},{"$f":"IF($A654=\"\",\"\",IF(VLOOKUP($G654,$H$11:$DO$1000,106,FALSE)=\"\",\"No\",IF(LEFT(VLOOKUP($G654,$H$11:$DO$1000,106,FALSE),3)=\"The\",EN654,VLOOKUP(VLOOKUP($G654,$H$11:$DO$1000,106,FALSE),DeclMatrix!$A$2:$F$5,VLOOKUP('Enrollment Form'!$B654,DeclMatrix!$A$8:$B$12,2,FALSE),FALSE))))","v":""},{"$f":"IF($A654=\"\",\"\",IF(VLOOKUP($G654,$H$11:$DO$1000,109,FALSE)=\"\",\"No\",IF(LEFT(VLOOKUP($G654,$H$11:$DO$1000,109,FALSE),3)=\"The\",EO654,VLOOKUP(VLOOKUP($G654,$H$11:$DO$1000,109,FALSE),DeclMatrix!$A$2:$F$5,VLOOKUP('Enrollment Form'!$B654,DeclMatrix!$A$8:$B$12,2,FALSE),FALSE))))","v":""},{"$f":"IF($A654=\"\",\"\",IF(VLOOKUP($G654,$H$11:$DO$1000,112,FALSE)=\"\",\"No\",IF(LEFT(VLOOKUP($G654,$H$11:$DO$1000,112,FALSE),3)=\"The\",EP654,VLOOKUP(VLOOKUP($G654,$H$11:$DO$1000,112,FALSE),DeclMatrix!$A$2:$F$5,VLOOKUP('Enrollment Form'!$B654,DeclMatrix!$A$8:$B$12,2,FALSE),FALSE))))","v":""},null,null,null,null,null,null,null,null,"",null,"","","","","","","","","","","",""]
["",null,null,null,null,null,"","",null,null,null,null,null,null,null,null,null,null,null,null,null,null,null,null,null,null,"","","","",null,null,"",null,null,null,null,null,null,null,null,null,null,null,null,null,null,null,null,null,null,null,null,null,null,null,null,null,null,null,"","","",null,null,null,null,"","","","",null,null,null,null,null,null,null,null,null,null,null,null,null,null,null,null,null,null,null,null,null,null,null,null,null,null,null,null,null,null,null,null,null,null,null,null,null,null,null,null,null,null,null,null,null,null,null,null,null,null,null,null,"",{"$f":"IF($A655=\"\",\"\",IF(VLOOKUP($G655,$H$11:$DO$1000,103,FALSE)=\"\",\"No\",IF(LEFT(VLOOKUP($G655,$H$11:$DO$1000,103,FALSE),3)=\"The\",EM655,VLOOKUP(VLOOKUP($G655,$H$11:$DO$1000,103,FALSE),DeclMatrix!$A$2:$F$5,VLOOKUP('Enrollment Form'!$B655,DeclMatrix!$A$8:$B$12,2,FALSE),FALSE))))","v":""},{"$f":"IF($A655=\"\",\"\",IF(VLOOKUP($G655,$H$11:$DO$1000,106,FALSE)=\"\",\"No\",IF(LEFT(VLOOKUP($G655,$H$11:$DO$1000,106,FALSE),3)=\"The\",EN655,VLOOKUP(VLOOKUP($G655,$H$11:$DO$1000,106,FALSE),DeclMatrix!$A$2:$F$5,VLOOKUP('Enrollment Form'!$B655,DeclMatrix!$A$8:$B$12,2,FALSE),FALSE))))","v":""},{"$f":"IF($A655=\"\",\"\",IF(VLOOKUP($G655,$H$11:$DO$1000,109,FALSE)=\"\",\"No\",IF(LEFT(VLOOKUP($G655,$H$11:$DO$1000,109,FALSE),3)=\"The\",EO655,VLOOKUP(VLOOKUP($G655,$H$11:$DO$1000,109,FALSE),DeclMatrix!$A$2:$F$5,VLOOKUP('Enrollment Form'!$B655,DeclMatrix!$A$8:$B$12,2,FALSE),FALSE))))","v":""},{"$f":"IF($A655=\"\",\"\",IF(VLOOKUP($G655,$H$11:$DO$1000,112,FALSE)=\"\",\"No\",IF(LEFT(VLOOKUP($G655,$H$11:$DO$1000,112,FALSE),3)=\"The\",EP655,VLOOKUP(VLOOKUP($G655,$H$11:$DO$1000,112,FALSE),DeclMatrix!$A$2:$F$5,VLOOKUP('Enrollment Form'!$B655,DeclMatrix!$A$8:$B$12,2,FALSE),FALSE))))","v":""},null,null,null,null,null,null,null,null,"",null,"","","","","","","","","","","",""]
["",null,null,null,null,null,"","",null,null,null,null,null,null,null,null,null,null,null,null,null,null,null,null,null,null,"","","","",null,null,"",null,null,null,null,null,null,null,null,null,null,null,null,null,null,null,null,null,null,null,null,null,null,null,null,null,null,null,"","","",null,null,null,null,"","","","",null,null,null,null,null,null,null,null,null,null,null,null,null,null,null,null,null,null,null,null,null,null,null,null,null,null,null,null,null,null,null,null,null,null,null,null,null,null,null,null,null,null,null,null,null,null,null,null,null,null,null,null,"",{"$f":"IF($A658=\"\",\"\",IF(VLOOKUP($G658,$H$11:$DO$1000,103,FALSE)=\"\",\"No\",IF(LEFT(VLOOKUP($G658,$H$11:$DO$1000,103,FALSE),3)=\"The\",EM658,VLOOKUP(VLOOKUP($G658,$H$11:$DO$1000,103,FALSE),DeclMatrix!$A$2:$F$5,VLOOKUP('Enrollment Form'!$B658,DeclMatrix!$A$8:$B$12,2,FALSE),FALSE))))","v":""},{"$f":"IF($A658=\"\",\"\",IF(VLOOKUP($G658,$H$11:$DO$1000,106,FALSE)=\"\",\"No\",IF(LEFT(VLOOKUP($G658,$H$11:$DO$1000,106,FALSE),3)=\"The\",EN658,VLOOKUP(VLOOKUP($G658,$H$11:$DO$1000,106,FALSE),DeclMatrix!$A$2:$F$5,VLOOKUP('Enrollment Form'!$B658,DeclMatrix!$A$8:$B$12,2,FALSE),FALSE))))","v":""},{"$f":"IF($A658=\"\",\"\",IF(VLOOKUP($G658,$H$11:$DO$1000,109,FALSE)=\"\",\"No\",IF(LEFT(VLOOKUP($G658,$H$11:$DO$1000,109,FALSE),3)=\"The\",EO658,VLOOKUP(VLOOKUP($G658,$H$11:$DO$1000,109,FALSE),DeclMatrix!$A$2:$F$5,VLOOKUP('Enrollment Form'!$B658,DeclMatrix!$A$8:$B$12,2,FALSE),FALSE))))","v":""},{"$f":"IF($A658=\"\",\"\",IF(VLOOKUP($G658,$H$11:$DO$1000,112,FALSE)=\"\",\"No\",IF(LEFT(VLOOKUP($G658,$H$11:$DO$1000,112,FALSE),3)=\"The\",EP658,VLOOKUP(VLOOKUP($G658,$H$11:$DO$1000,112,FALSE),DeclMatrix!$A$2:$F$5,VLOOKUP('Enrollment Form'!$B658,DeclMatrix!$A$8:$B$12,2,FALSE),FALSE))))","v":""},null,null,null,null,null,null,null,null,"",null,"","","","","","","","","","","",""]
["",null,null,null,null,null,"","",null,null,null,null,null,null,null,null,null,null,null,null,null,null,null,null,null,null,"","","","",null,null,"",null,null,null,null,null,null,null,null,null,null,null,null,null,null,null,null,null,null,null,null,null,null,null,null,null,null,null,"","","",null,null,null,null,"","","","",null,null,null,null,null,null,null,null,null,null,null,null,null,null,null,null,null,null,null,null,null,null,null,null,null,null,null,null,null,null,null,null,null,null,null,null,null,null,null,null,null,null,null,null,null,null,null,null,null,null,null,null,"",{"$f":"IF($A661=\"\",\"\",IF(VLOOKUP($G661,$H$11:$DO$1000,103,FALSE)=\"\",\"No\",IF(LEFT(VLOOKUP($G661,$H$11:$DO$1000,103,FALSE),3)=\"The\",EM661,VLOOKUP(VLOOKUP($G661,$H$11:$DO$1000,103,FALSE),DeclMatrix!$A$2:$F$5,VLOOKUP('Enrollment Form'!$B661,DeclMatrix!$A$8:$B$12,2,FALSE),FALSE))))","v":""},{"$f":"IF($A661=\"\",\"\",IF(VLOOKUP($G661,$H$11:$DO$1000,106,FALSE)=\"\",\"No\",IF(LEFT(VLOOKUP($G661,$H$11:$DO$1000,106,FALSE),3)=\"The\",EN661,VLOOKUP(VLOOKUP($G661,$H$11:$DO$1000,106,FALSE),DeclMatrix!$A$2:$F$5,VLOOKUP('Enrollment Form'!$B661,DeclMatrix!$A$8:$B$12,2,FALSE),FALSE))))","v":""},{"$f":"IF($A661=\"\",\"\",IF(VLOOKUP($G661,$H$11:$DO$1000,109,FALSE)=\"\",\"No\",IF(LEFT(VLOOKUP($G661,$H$11:$DO$1000,109,FALSE),3)=\"The\",EO661,VLOOKUP(VLOOKUP($G661,$H$11:$DO$1000,109,FALSE),DeclMatrix!$A$2:$F$5,VLOOKUP('Enrollment Form'!$B661,DeclMatrix!$A$8:$B$12,2,FALSE),FALSE))))","v":""},{"$f":"IF($A661=\"\",\"\",IF(VLOOKUP($G661,$H$11:$DO$1000,112,FALSE)=\"\",\"No\",IF(LEFT(VLOOKUP($G661,$H$11:$DO$1000,112,FALSE),3)=\"The\",EP661,VLOOKUP(VLOOKUP($G661,$H$11:$DO$1000,112,FALSE),DeclMatrix!$A$2:$F$5,VLOOKUP('Enrollment Form'!$B661,DeclMatrix!$A$8:$B$12,2,FALSE),FALSE))))","v":""},null,null,null,null,null,null,null,null,"",null,"","","","","","","","","","","",""]
["",null,null,null,null,null,"","",null,null,null,null,null,null,null,null,null,null,null,null,null,null,null,null,null,null,"","","","",null,null,"",null,null,null,null,null,null,null,null,null,null,null,null,null,null,null,null,null,null,null,null,null,null,null,null,null,null,null,"","","",null,null,null,null,"","","","",null,null,null,null,null,null,null,null,null,null,null,null,null,null,null,null,null,null,null,null,null,null,null,null,null,null,null,null,null,null,null,null,null,null,null,null,null,null,null,null,null,null,null,null,null,null,null,null,null,null,null,null,"",{"$f":"IF($A664=\"\",\"\",IF(VLOOKUP($G664,$H$11:$DO$1000,103,FALSE)=\"\",\"No\",IF(LEFT(VLOOKUP($G664,$H$11:$DO$1000,103,FALSE),3)=\"The\",EM664,VLOOKUP(VLOOKUP($G664,$H$11:$DO$1000,103,FALSE),DeclMatrix!$A$2:$F$5,VLOOKUP('Enrollment Form'!$B664,DeclMatrix!$A$8:$B$12,2,FALSE),FALSE))))","v":""},{"$f":"IF($A664=\"\",\"\",IF(VLOOKUP($G664,$H$11:$DO$1000,106,FALSE)=\"\",\"No\",IF(LEFT(VLOOKUP($G664,$H$11:$DO$1000,106,FALSE),3)=\"The\",EN664,VLOOKUP(VLOOKUP($G664,$H$11:$DO$1000,106,FALSE),DeclMatrix!$A$2:$F$5,VLOOKUP('Enrollment Form'!$B664,DeclMatrix!$A$8:$B$12,2,FALSE),FALSE))))","v":""},{"$f":"IF($A664=\"\",\"\",IF(VLOOKUP($G664,$H$11:$DO$1000,109,FALSE)=\"\",\"No\",IF(LEFT(VLOOKUP($G664,$H$11:$DO$1000,109,FALSE),3)=\"The\",EO664,VLOOKUP(VLOOKUP($G664,$H$11:$DO$1000,109,FALSE),DeclMatrix!$A$2:$F$5,VLOOKUP('Enrollment Form'!$B664,DeclMatrix!$A$8:$B$12,2,FALSE),FALSE))))","v":""},{"$f":"IF($A664=\"\",\"\",IF(VLOOKUP($G664,$H$11:$DO$1000,112,FALSE)=\"\",\"No\",IF(LEFT(VLOOKUP($G664,$H$11:$DO$1000,112,FALSE),3)=\"The\",EP664,VLOOKUP(VLOOKUP($G664,$H$11:$DO$1000,112,FALSE),DeclMatrix!$A$2:$F$5,VLOOKUP('Enrollment Form'!$B664,DeclMatrix!$A$8:$B$12,2,FALSE),FALSE))))","v":""},null,null,null,null,null,null,null,null,"",null,"","","","","","","","","","","",""]
["",null,null,null,null,null,"","",null,null,null,null,null,null,null,null,null,null,null,null,null,null,null,null,null,null,"","","","",null,null,"",null,null,null,null,null,null,null,null,null,null,null,null,null,null,null,null,null,null,null,null,null,null,null,null,null,null,null,"","","",null,null,null,null,"","","","",null,null,null,null,null,null,null,null,null,null,null,null,null,null,null,null,null,null,null,null,null,null,null,null,null,null,null,null,null,null,null,null,null,null,null,null,null,null,null,null,null,null,null,null,null,null,null,null,null,null,null,null,"",{"$f":"IF($A667=\"\",\"\",IF(VLOOKUP($G667,$H$11:$DO$1000,103,FALSE)=\"\",\"No\",IF(LEFT(VLOOKUP($G667,$H$11:$DO$1000,103,FALSE),3)=\"The\",EM667,VLOOKUP(VLOOKUP($G667,$H$11:$DO$1000,103,FALSE),DeclMatrix!$A$2:$F$5,VLOOKUP('Enrollment Form'!$B667,DeclMatrix!$A$8:$B$12,2,FALSE),FALSE))))","v":""},{"$f":"IF($A667=\"\",\"\",IF(VLOOKUP($G667,$H$11:$DO$1000,106,FALSE)=\"\",\"No\",IF(LEFT(VLOOKUP($G667,$H$11:$DO$1000,106,FALSE),3)=\"The\",EN667,VLOOKUP(VLOOKUP($G667,$H$11:$DO$1000,106,FALSE),DeclMatrix!$A$2:$F$5,VLOOKUP('Enrollment Form'!$B667,DeclMatrix!$A$8:$B$12,2,FALSE),FALSE))))","v":""},{"$f":"IF($A667=\"\",\"\",IF(VLOOKUP($G667,$H$11:$DO$1000,109,FALSE)=\"\",\"No\",IF(LEFT(VLOOKUP($G667,$H$11:$DO$1000,109,FALSE),3)=\"The\",EO667,VLOOKUP(VLOOKUP($G667,$H$11:$DO$1000,109,FALSE),DeclMatrix!$A$2:$F$5,VLOOKUP('Enrollment Form'!$B667,DeclMatrix!$A$8:$B$12,2,FALSE),FALSE))))","v":""},{"$f":"IF($A667=\"\",\"\",IF(VLOOKUP($G667,$H$11:$DO$1000,112,FALSE)=\"\",\"No\",IF(LEFT(VLOOKUP($G667,$H$11:$DO$1000,112,FALSE),3)=\"The\",EP667,VLOOKUP(VLOOKUP($G667,$H$11:$DO$1000,112,FALSE),DeclMatrix!$A$2:$F$5,VLOOKUP('Enrollment Form'!$B667,DeclMatrix!$A$8:$B$12,2,FALSE),FALSE))))","v":""},null,null,null,null,null,null,null,null,"",null,"","","","","","","","","","","",""]
["",null,null,null,null,null,"","",null,null,null,null,null,null,null,null,null,null,null,null,null,null,null,null,null,null,"","","","",null,null,"",null,null,null,null,null,null,null,null,null,null,null,null,null,null,null,null,null,null,null,null,null,null,null,null,null,null,null,"","","",null,null,null,null,"","","","",null,null,null,null,null,null,null,null,null,null,null,null,null,null,null,null,null,null,null,null,null,null,null,null,null,null,null,null,null,null,null,null,null,null,null,null,null,null,null,null,null,null,null,null,null,null,null,null,null,null,null,null,"",{"$f":"IF($A671=\"\",\"\",IF(VLOOKUP($G671,$H$11:$DO$1000,103,FALSE)=\"\",\"No\",IF(LEFT(VLOOKUP($G671,$H$11:$DO$1000,103,FALSE),3)=\"The\",EM671,VLOOKUP(VLOOKUP($G671,$H$11:$DO$1000,103,FALSE),DeclMatrix!$A$2:$F$5,VLOOKUP('Enrollment Form'!$B671,DeclMatrix!$A$8:$B$12,2,FALSE),FALSE))))","v":""},{"$f":"IF($A671=\"\",\"\",IF(VLOOKUP($G671,$H$11:$DO$1000,106,FALSE)=\"\",\"No\",IF(LEFT(VLOOKUP($G671,$H$11:$DO$1000,106,FALSE),3)=\"The\",EN671,VLOOKUP(VLOOKUP($G671,$H$11:$DO$1000,106,FALSE),DeclMatrix!$A$2:$F$5,VLOOKUP('Enrollment Form'!$B671,DeclMatrix!$A$8:$B$12,2,FALSE),FALSE))))","v":""},{"$f":"IF($A671=\"\",\"\",IF(VLOOKUP($G671,$H$11:$DO$1000,109,FALSE)=\"\",\"No\",IF(LEFT(VLOOKUP($G671,$H$11:$DO$1000,109,FALSE),3)=\"The\",EO671,VLOOKUP(VLOOKUP($G671,$H$11:$DO$1000,109,FALSE),DeclMatrix!$A$2:$F$5,VLOOKUP('Enrollment Form'!$B671,DeclMatrix!$A$8:$B$12,2,FALSE),FALSE))))","v":""},{"$f":"IF($A671=\"\",\"\",IF(VLOOKUP($G671,$H$11:$DO$1000,112,FALSE)=\"\",\"No\",IF(LEFT(VLOOKUP($G671,$H$11:$DO$1000,112,FALSE),3)=\"The\",EP671,VLOOKUP(VLOOKUP($G671,$H$11:$DO$1000,112,FALSE),DeclMatrix!$A$2:$F$5,VLOOKUP('Enrollment Form'!$B671,DeclMatrix!$A$8:$B$12,2,FALSE),FALSE))))","v":""},null,null,null,null,null,null,null,null,"",null,"","","","","","","","","","","",""]
["",null,null,null,null,null,"","",null,null,null,null,null,null,null,null,null,null,null,null,null,null,null,null,null,null,"","","","",null,null,"",null,null,null,null,null,null,null,null,null,null,null,null,null,null,null,null,null,null,null,null,null,null,null,null,null,null,null,"","","",null,null,null,null,"","","","",null,null,null,null,null,null,null,null,null,null,null,null,null,null,null,null,null,null,null,null,null,null,null,null,null,null,null,null,null,null,null,null,null,null,null,null,null,null,null,null,null,null,null,null,null,null,null,null,null,null,null,null,"",{"$f":"IF($A672=\"\",\"\",IF(VLOOKUP($G672,$H$11:$DO$1000,103,FALSE)=\"\",\"No\",IF(LEFT(VLOOKUP($G672,$H$11:$DO$1000,103,FALSE),3)=\"The\",EM672,VLOOKUP(VLOOKUP($G672,$H$11:$DO$1000,103,FALSE),DeclMatrix!$A$2:$F$5,VLOOKUP('Enrollment Form'!$B672,DeclMatrix!$A$8:$B$12,2,FALSE),FALSE))))","v":""},{"$f":"IF($A672=\"\",\"\",IF(VLOOKUP($G672,$H$11:$DO$1000,106,FALSE)=\"\",\"No\",IF(LEFT(VLOOKUP($G672,$H$11:$DO$1000,106,FALSE),3)=\"The\",EN672,VLOOKUP(VLOOKUP($G672,$H$11:$DO$1000,106,FALSE),DeclMatrix!$A$2:$F$5,VLOOKUP('Enrollment Form'!$B672,DeclMatrix!$A$8:$B$12,2,FALSE),FALSE))))","v":""},{"$f":"IF($A672=\"\",\"\",IF(VLOOKUP($G672,$H$11:$DO$1000,109,FALSE)=\"\",\"No\",IF(LEFT(VLOOKUP($G672,$H$11:$DO$1000,109,FALSE),3)=\"The\",EO672,VLOOKUP(VLOOKUP($G672,$H$11:$DO$1000,109,FALSE),DeclMatrix!$A$2:$F$5,VLOOKUP('Enrollment Form'!$B672,DeclMatrix!$A$8:$B$12,2,FALSE),FALSE))))","v":""},{"$f":"IF($A672=\"\",\"\",IF(VLOOKUP($G672,$H$11:$DO$1000,112,FALSE)=\"\",\"No\",IF(LEFT(VLOOKUP($G672,$H$11:$DO$1000,112,FALSE),3)=\"The\",EP672,VLOOKUP(VLOOKUP($G672,$H$11:$DO$1000,112,FALSE),DeclMatrix!$A$2:$F$5,VLOOKUP('Enrollment Form'!$B672,DeclMatrix!$A$8:$B$12,2,FALSE),FALSE))))","v":""},null,null,null,null,null,null,null,null,"",null,"","","","","","","","","","","",""]
["",null,null,null,null,null,"","",null,null,null,null,null,null,null,null,null,null,null,null,null,null,null,null,null,null,"","","","",null,null,"",null,null,null,null,null,null,null,null,null,null,null,null,null,null,null,null,null,null,null,null,null,null,null,null,null,null,null,"","","",null,null,null,null,"","","","",null,null,null,null,null,null,null,null,null,null,null,null,null,null,null,null,null,null,null,null,null,null,null,null,null,null,null,null,null,null,null,null,null,null,null,null,null,null,null,null,null,null,null,null,null,null,null,null,null,null,null,null,"",{"$f":"IF($A676=\"\",\"\",IF(VLOOKUP($G676,$H$11:$DO$1000,103,FALSE)=\"\",\"No\",IF(LEFT(VLOOKUP($G676,$H$11:$DO$1000,103,FALSE),3)=\"The\",EM676,VLOOKUP(VLOOKUP($G676,$H$11:$DO$1000,103,FALSE),DeclMatrix!$A$2:$F$5,VLOOKUP('Enrollment Form'!$B676,DeclMatrix!$A$8:$B$12,2,FALSE),FALSE))))","v":""},{"$f":"IF($A676=\"\",\"\",IF(VLOOKUP($G676,$H$11:$DO$1000,106,FALSE)=\"\",\"No\",IF(LEFT(VLOOKUP($G676,$H$11:$DO$1000,106,FALSE),3)=\"The\",EN676,VLOOKUP(VLOOKUP($G676,$H$11:$DO$1000,106,FALSE),DeclMatrix!$A$2:$F$5,VLOOKUP('Enrollment Form'!$B676,DeclMatrix!$A$8:$B$12,2,FALSE),FALSE))))","v":""},{"$f":"IF($A676=\"\",\"\",IF(VLOOKUP($G676,$H$11:$DO$1000,109,FALSE)=\"\",\"No\",IF(LEFT(VLOOKUP($G676,$H$11:$DO$1000,109,FALSE),3)=\"The\",EO676,VLOOKUP(VLOOKUP($G676,$H$11:$DO$1000,109,FALSE),DeclMatrix!$A$2:$F$5,VLOOKUP('Enrollment Form'!$B676,DeclMatrix!$A$8:$B$12,2,FALSE),FALSE))))","v":""},{"$f":"IF($A676=\"\",\"\",IF(VLOOKUP($G676,$H$11:$DO$1000,112,FALSE)=\"\",\"No\",IF(LEFT(VLOOKUP($G676,$H$11:$DO$1000,112,FALSE),3)=\"The\",EP676,VLOOKUP(VLOOKUP($G676,$H$11:$DO$1000,112,FALSE),DeclMatrix!$A$2:$F$5,VLOOKUP('Enrollment Form'!$B676,DeclMatrix!$A$8:$B$12,2,FALSE),FALSE))))","v":""},null,null,null,null,null,null,null,null,"",null,"","","","","","","","","","","",""]
["",null,null,null,null,null,"","",null,null,null,null,null,null,null,null,null,null,null,null,null,null,null,null,null,null,"","","","",null,null,"",null,null,null,null,null,null,null,null,null,null,null,null,null,null,null,null,null,null,null,null,null,null,null,null,null,null,null,"","","",null,null,null,null,"","","","",null,null,null,null,null,null,null,null,null,null,null,null,null,null,null,null,null,null,null,null,null,null,null,null,null,null,null,null,null,null,null,null,null,null,null,null,null,null,null,null,null,null,null,null,null,null,null,null,null,null,null,null,"",{"$f":"IF($A677=\"\",\"\",IF(VLOOKUP($G677,$H$11:$DO$1000,103,FALSE)=\"\",\"No\",IF(LEFT(VLOOKUP($G677,$H$11:$DO$1000,103,FALSE),3)=\"The\",EM677,VLOOKUP(VLOOKUP($G677,$H$11:$DO$1000,103,FALSE),DeclMatrix!$A$2:$F$5,VLOOKUP('Enrollment Form'!$B677,DeclMatrix!$A$8:$B$12,2,FALSE),FALSE))))","v":""},{"$f":"IF($A677=\"\",\"\",IF(VLOOKUP($G677,$H$11:$DO$1000,106,FALSE)=\"\",\"No\",IF(LEFT(VLOOKUP($G677,$H$11:$DO$1000,106,FALSE),3)=\"The\",EN677,VLOOKUP(VLOOKUP($G677,$H$11:$DO$1000,106,FALSE),DeclMatrix!$A$2:$F$5,VLOOKUP('Enrollment Form'!$B677,DeclMatrix!$A$8:$B$12,2,FALSE),FALSE))))","v":""},{"$f":"IF($A677=\"\",\"\",IF(VLOOKUP($G677,$H$11:$DO$1000,109,FALSE)=\"\",\"No\",IF(LEFT(VLOOKUP($G677,$H$11:$DO$1000,109,FALSE),3)=\"The\",EO677,VLOOKUP(VLOOKUP($G677,$H$11:$DO$1000,109,FALSE),DeclMatrix!$A$2:$F$5,VLOOKUP('Enrollment Form'!$B677,DeclMatrix!$A$8:$B$12,2,FALSE),FALSE))))","v":""},{"$f":"IF($A677=\"\",\"\",IF(VLOOKUP($G677,$H$11:$DO$1000,112,FALSE)=\"\",\"No\",IF(LEFT(VLOOKUP($G677,$H$11:$DO$1000,112,FALSE),3)=\"The\",EP677,VLOOKUP(VLOOKUP($G677,$H$11:$DO$1000,112,FALSE),DeclMatrix!$A$2:$F$5,VLOOKUP('Enrollment Form'!$B677,DeclMatrix!$A$8:$B$12,2,FALSE),FALSE))))","v":""},null,null,null,null,null,null,null,null,"",null,"","","","","","","","","","","",""]
["",null,null,null,null,null,"","",null,null,null,null,null,null,null,null,null,null,null,null,null,null,null,null,null,null,"","","","",null,null,"",null,null,null,null,null,null,null,null,null,null,null,null,null,null,null,null,null,null,null,null,null,null,null,null,null,null,null,"","","",null,null,null,null,"","","","",null,null,null,null,null,null,null,null,null,null,null,null,null,null,null,null,null,null,null,null,null,null,null,null,null,null,null,null,null,null,null,null,null,null,null,null,null,null,null,null,null,null,null,null,null,null,null,null,null,null,null,null,"",{"$f":"IF($A680=\"\",\"\",IF(VLOOKUP($G680,$H$11:$DO$1000,103,FALSE)=\"\",\"No\",IF(LEFT(VLOOKUP($G680,$H$11:$DO$1000,103,FALSE),3)=\"The\",EM680,VLOOKUP(VLOOKUP($G680,$H$11:$DO$1000,103,FALSE),DeclMatrix!$A$2:$F$5,VLOOKUP('Enrollment Form'!$B680,DeclMatrix!$A$8:$B$12,2,FALSE),FALSE))))","v":""},{"$f":"IF($A680=\"\",\"\",IF(VLOOKUP($G680,$H$11:$DO$1000,106,FALSE)=\"\",\"No\",IF(LEFT(VLOOKUP($G680,$H$11:$DO$1000,106,FALSE),3)=\"The\",EN680,VLOOKUP(VLOOKUP($G680,$H$11:$DO$1000,106,FALSE),DeclMatrix!$A$2:$F$5,VLOOKUP('Enrollment Form'!$B680,DeclMatrix!$A$8:$B$12,2,FALSE),FALSE))))","v":""},{"$f":"IF($A680=\"\",\"\",IF(VLOOKUP($G680,$H$11:$DO$1000,109,FALSE)=\"\",\"No\",IF(LEFT(VLOOKUP($G680,$H$11:$DO$1000,109,FALSE),3)=\"The\",EO680,VLOOKUP(VLOOKUP($G680,$H$11:$DO$1000,109,FALSE),DeclMatrix!$A$2:$F$5,VLOOKUP('Enrollment Form'!$B680,DeclMatrix!$A$8:$B$12,2,FALSE),FALSE))))","v":""},{"$f":"IF($A680=\"\",\"\",IF(VLOOKUP($G680,$H$11:$DO$1000,112,FALSE)=\"\",\"No\",IF(LEFT(VLOOKUP($G680,$H$11:$DO$1000,112,FALSE),3)=\"The\",EP680,VLOOKUP(VLOOKUP($G680,$H$11:$DO$1000,112,FALSE),DeclMatrix!$A$2:$F$5,VLOOKUP('Enrollment Form'!$B680,DeclMatrix!$A$8:$B$12,2,FALSE),FALSE))))","v":""},null,null,null,null,null,null,null,null,"",null,"","","","","","","","","","","",""]
["",null,null,null,null,null,"","",null,null,null,null,null,null,null,null,null,null,null,null,null,null,null,null,null,null,"","","","",null,null,"",null,null,null,null,null,null,null,null,null,null,null,null,null,null,null,null,null,null,null,null,null,null,null,null,null,null,null,"","","",null,null,null,null,"","","","",null,null,null,null,null,null,null,null,null,null,null,null,null,null,null,null,null,null,null,null,null,null,null,null,null,null,null,null,null,null,null,null,null,null,null,null,null,null,null,null,null,null,null,null,null,null,null,null,null,null,null,null,"",{"$f":"IF($A683=\"\",\"\",IF(VLOOKUP($G683,$H$11:$DO$1000,103,FALSE)=\"\",\"No\",IF(LEFT(VLOOKUP($G683,$H$11:$DO$1000,103,FALSE),3)=\"The\",EM683,VLOOKUP(VLOOKUP($G683,$H$11:$DO$1000,103,FALSE),DeclMatrix!$A$2:$F$5,VLOOKUP('Enrollment Form'!$B683,DeclMatrix!$A$8:$B$12,2,FALSE),FALSE))))","v":""},{"$f":"IF($A683=\"\",\"\",IF(VLOOKUP($G683,$H$11:$DO$1000,106,FALSE)=\"\",\"No\",IF(LEFT(VLOOKUP($G683,$H$11:$DO$1000,106,FALSE),3)=\"The\",EN683,VLOOKUP(VLOOKUP($G683,$H$11:$DO$1000,106,FALSE),DeclMatrix!$A$2:$F$5,VLOOKUP('Enrollment Form'!$B683,DeclMatrix!$A$8:$B$12,2,FALSE),FALSE))))","v":""},{"$f":"IF($A683=\"\",\"\",IF(VLOOKUP($G683,$H$11:$DO$1000,109,FALSE)=\"\",\"No\",IF(LEFT(VLOOKUP($G683,$H$11:$DO$1000,109,FALSE),3)=\"The\",EO683,VLOOKUP(VLOOKUP($G683,$H$11:$DO$1000,109,FALSE),DeclMatrix!$A$2:$F$5,VLOOKUP('Enrollment Form'!$B683,DeclMatrix!$A$8:$B$12,2,FALSE),FALSE))))","v":""},{"$f":"IF($A683=\"\",\"\",IF(VLOOKUP($G683,$H$11:$DO$1000,112,FALSE)=\"\",\"No\",IF(LEFT(VLOOKUP($G683,$H$11:$DO$1000,112,FALSE),3)=\"The\",EP683,VLOOKUP(VLOOKUP($G683,$H$11:$DO$1000,112,FALSE),DeclMatrix!$A$2:$F$5,VLOOKUP('Enrollment Form'!$B683,DeclMatrix!$A$8:$B$12,2,FALSE),FALSE))))","v":""},null,null,null,null,null,null,null,null,"",null,"","","","","","","","","","","",""]
["",null,null,null,null,null,"","",null,null,null,null,null,null,null,null,null,null,null,null,null,null,null,null,null,null,"","","","",null,null,"",null,null,null,null,null,null,null,null,null,null,null,null,null,null,null,null,null,null,null,null,null,null,null,null,null,null,null,"","","",null,null,null,null,"","","","",null,null,null,null,null,null,null,null,null,null,null,null,null,null,null,null,null,null,null,null,null,null,null,null,null,null,null,null,null,null,null,null,null,null,null,null,null,null,null,null,null,null,null,null,null,null,null,null,null,null,null,null,"",{"$f":"IF($A686=\"\",\"\",IF(VLOOKUP($G686,$H$11:$DO$1000,103,FALSE)=\"\",\"No\",IF(LEFT(VLOOKUP($G686,$H$11:$DO$1000,103,FALSE),3)=\"The\",EM686,VLOOKUP(VLOOKUP($G686,$H$11:$DO$1000,103,FALSE),DeclMatrix!$A$2:$F$5,VLOOKUP('Enrollment Form'!$B686,DeclMatrix!$A$8:$B$12,2,FALSE),FALSE))))","v":""},{"$f":"IF($A686=\"\",\"\",IF(VLOOKUP($G686,$H$11:$DO$1000,106,FALSE)=\"\",\"No\",IF(LEFT(VLOOKUP($G686,$H$11:$DO$1000,106,FALSE),3)=\"The\",EN686,VLOOKUP(VLOOKUP($G686,$H$11:$DO$1000,106,FALSE),DeclMatrix!$A$2:$F$5,VLOOKUP('Enrollment Form'!$B686,DeclMatrix!$A$8:$B$12,2,FALSE),FALSE))))","v":""},{"$f":"IF($A686=\"\",\"\",IF(VLOOKUP($G686,$H$11:$DO$1000,109,FALSE)=\"\",\"No\",IF(LEFT(VLOOKUP($G686,$H$11:$DO$1000,109,FALSE),3)=\"The\",EO686,VLOOKUP(VLOOKUP($G686,$H$11:$DO$1000,109,FALSE),DeclMatrix!$A$2:$F$5,VLOOKUP('Enrollment Form'!$B686,DeclMatrix!$A$8:$B$12,2,FALSE),FALSE))))","v":""},{"$f":"IF($A686=\"\",\"\",IF(VLOOKUP($G686,$H$11:$DO$1000,112,FALSE)=\"\",\"No\",IF(LEFT(VLOOKUP($G686,$H$11:$DO$1000,112,FALSE),3)=\"The\",EP686,VLOOKUP(VLOOKUP($G686,$H$11:$DO$1000,112,FALSE),DeclMatrix!$A$2:$F$5,VLOOKUP('Enrollment Form'!$B686,DeclMatrix!$A$8:$B$12,2,FALSE),FALSE))))","v":""},null,null,null,null,null,null,null,null,"",null,"","","","","","","","","","","",""]
["",null,null,null,null,null,"","",null,null,null,null,null,null,null,null,null,null,null,null,null,null,null,null,null,null,"","","","",null,null,"",null,null,null,null,null,null,null,null,null,null,null,null,null,null,null,null,null,null,null,null,null,null,null,null,null,null,null,"","","",null,null,null,null,"","","","",null,null,null,null,null,null,null,null,null,null,null,null,null,null,null,null,null,null,null,null,null,null,null,null,null,null,null,null,null,null,null,null,null,null,null,null,null,null,null,null,null,null,null,null,null,null,null,null,null,null,null,null,"",{"$f":"IF($A689=\"\",\"\",IF(VLOOKUP($G689,$H$11:$DO$1000,103,FALSE)=\"\",\"No\",IF(LEFT(VLOOKUP($G689,$H$11:$DO$1000,103,FALSE),3)=\"The\",EM689,VLOOKUP(VLOOKUP($G689,$H$11:$DO$1000,103,FALSE),DeclMatrix!$A$2:$F$5,VLOOKUP('Enrollment Form'!$B689,DeclMatrix!$A$8:$B$12,2,FALSE),FALSE))))","v":""},{"$f":"IF($A689=\"\",\"\",IF(VLOOKUP($G689,$H$11:$DO$1000,106,FALSE)=\"\",\"No\",IF(LEFT(VLOOKUP($G689,$H$11:$DO$1000,106,FALSE),3)=\"The\",EN689,VLOOKUP(VLOOKUP($G689,$H$11:$DO$1000,106,FALSE),DeclMatrix!$A$2:$F$5,VLOOKUP('Enrollment Form'!$B689,DeclMatrix!$A$8:$B$12,2,FALSE),FALSE))))","v":""},{"$f":"IF($A689=\"\",\"\",IF(VLOOKUP($G689,$H$11:$DO$1000,109,FALSE)=\"\",\"No\",IF(LEFT(VLOOKUP($G689,$H$11:$DO$1000,109,FALSE),3)=\"The\",EO689,VLOOKUP(VLOOKUP($G689,$H$11:$DO$1000,109,FALSE),DeclMatrix!$A$2:$F$5,VLOOKUP('Enrollment Form'!$B689,DeclMatrix!$A$8:$B$12,2,FALSE),FALSE))))","v":""},{"$f":"IF($A689=\"\",\"\",IF(VLOOKUP($G689,$H$11:$DO$1000,112,FALSE)=\"\",\"No\",IF(LEFT(VLOOKUP($G689,$H$11:$DO$1000,112,FALSE),3)=\"The\",EP689,VLOOKUP(VLOOKUP($G689,$H$11:$DO$1000,112,FALSE),DeclMatrix!$A$2:$F$5,VLOOKUP('Enrollment Form'!$B689,DeclMatrix!$A$8:$B$12,2,FALSE),FALSE))))","v":""},null,null,null,null,null,null,null,null,"",null,"","","","","","","","","","","",""]
["",null,null,null,null,null,"","",null,null,null,null,null,null,null,null,null,null,null,null,null,null,null,null,null,null,"","","","",null,null,"",null,null,null,null,null,null,null,null,null,null,null,null,null,null,null,null,null,null,null,null,null,null,null,null,null,null,null,"","","",null,null,null,null,"","","","",null,null,null,null,null,null,null,null,null,null,null,null,null,null,null,null,null,null,null,null,null,null,null,null,null,null,null,null,null,null,null,null,null,null,null,null,null,null,null,null,null,null,null,null,null,null,null,null,null,null,null,null,"",{"$f":"IF($A693=\"\",\"\",IF(VLOOKUP($G693,$H$11:$DO$1000,103,FALSE)=\"\",\"No\",IF(LEFT(VLOOKUP($G693,$H$11:$DO$1000,103,FALSE),3)=\"The\",EM693,VLOOKUP(VLOOKUP($G693,$H$11:$DO$1000,103,FALSE),DeclMatrix!$A$2:$F$5,VLOOKUP('Enrollment Form'!$B693,DeclMatrix!$A$8:$B$12,2,FALSE),FALSE))))","v":""},{"$f":"IF($A693=\"\",\"\",IF(VLOOKUP($G693,$H$11:$DO$1000,106,FALSE)=\"\",\"No\",IF(LEFT(VLOOKUP($G693,$H$11:$DO$1000,106,FALSE),3)=\"The\",EN693,VLOOKUP(VLOOKUP($G693,$H$11:$DO$1000,106,FALSE),DeclMatrix!$A$2:$F$5,VLOOKUP('Enrollment Form'!$B693,DeclMatrix!$A$8:$B$12,2,FALSE),FALSE))))","v":""},{"$f":"IF($A693=\"\",\"\",IF(VLOOKUP($G693,$H$11:$DO$1000,109,FALSE)=\"\",\"No\",IF(LEFT(VLOOKUP($G693,$H$11:$DO$1000,109,FALSE),3)=\"The\",EO693,VLOOKUP(VLOOKUP($G693,$H$11:$DO$1000,109,FALSE),DeclMatrix!$A$2:$F$5,VLOOKUP('Enrollment Form'!$B693,DeclMatrix!$A$8:$B$12,2,FALSE),FALSE))))","v":""},{"$f":"IF($A693=\"\",\"\",IF(VLOOKUP($G693,$H$11:$DO$1000,112,FALSE)=\"\",\"No\",IF(LEFT(VLOOKUP($G693,$H$11:$DO$1000,112,FALSE),3)=\"The\",EP693,VLOOKUP(VLOOKUP($G693,$H$11:$DO$1000,112,FALSE),DeclMatrix!$A$2:$F$5,VLOOKUP('Enrollment Form'!$B693,DeclMatrix!$A$8:$B$12,2,FALSE),FALSE))))","v":""},null,null,null,null,null,null,null,null,"",null,"","","","","","","","","","","",""]
["",null,null,null,null,null,"","",null,null,null,null,null,null,null,null,null,null,null,null,null,null,null,null,null,null,"","","","",null,null,"",null,null,null,null,null,null,null,null,null,null,null,null,null,null,null,null,null,null,null,null,null,null,null,null,null,null,null,"","","",null,null,null,null,"","","","",null,null,null,null,null,null,null,null,null,null,null,null,null,null,null,null,null,null,null,null,null,null,null,null,null,null,null,null,null,null,null,null,null,null,null,null,null,null,null,null,null,null,null,null,null,null,null,null,null,null,null,null,"",{"$f":"IF($A694=\"\",\"\",IF(VLOOKUP($G694,$H$11:$DO$1000,103,FALSE)=\"\",\"No\",IF(LEFT(VLOOKUP($G694,$H$11:$DO$1000,103,FALSE),3)=\"The\",EM694,VLOOKUP(VLOOKUP($G694,$H$11:$DO$1000,103,FALSE),DeclMatrix!$A$2:$F$5,VLOOKUP('Enrollment Form'!$B694,DeclMatrix!$A$8:$B$12,2,FALSE),FALSE))))","v":""},{"$f":"IF($A694=\"\",\"\",IF(VLOOKUP($G694,$H$11:$DO$1000,106,FALSE)=\"\",\"No\",IF(LEFT(VLOOKUP($G694,$H$11:$DO$1000,106,FALSE),3)=\"The\",EN694,VLOOKUP(VLOOKUP($G694,$H$11:$DO$1000,106,FALSE),DeclMatrix!$A$2:$F$5,VLOOKUP('Enrollment Form'!$B694,DeclMatrix!$A$8:$B$12,2,FALSE),FALSE))))","v":""},{"$f":"IF($A694=\"\",\"\",IF(VLOOKUP($G694,$H$11:$DO$1000,109,FALSE)=\"\",\"No\",IF(LEFT(VLOOKUP($G694,$H$11:$DO$1000,109,FALSE),3)=\"The\",EO694,VLOOKUP(VLOOKUP($G694,$H$11:$DO$1000,109,FALSE),DeclMatrix!$A$2:$F$5,VLOOKUP('Enrollment Form'!$B694,DeclMatrix!$A$8:$B$12,2,FALSE),FALSE))))","v":""},{"$f":"IF($A694=\"\",\"\",IF(VLOOKUP($G694,$H$11:$DO$1000,112,FALSE)=\"\",\"No\",IF(LEFT(VLOOKUP($G694,$H$11:$DO$1000,112,FALSE),3)=\"The\",EP694,VLOOKUP(VLOOKUP($G694,$H$11:$DO$1000,112,FALSE),DeclMatrix!$A$2:$F$5,VLOOKUP('Enrollment Form'!$B694,DeclMatrix!$A$8:$B$12,2,FALSE),FALSE))))","v":""},null,null,null,null,null,null,null,null,"",null,"","","","","","","","","","","",""]
["",null,null,null,null,null,"","",null,null,null,null,null,null,null,null,null,null,null,null,null,null,null,null,null,null,"","","","",null,null,"",null,null,null,null,null,null,null,null,null,null,null,null,null,null,null,null,null,null,null,null,null,null,null,null,null,null,null,"","","",null,null,null,null,"","","","",null,null,null,null,null,null,null,null,null,null,null,null,null,null,null,null,null,null,null,null,null,null,null,null,null,null,null,null,null,null,null,null,null,null,null,null,null,null,null,null,null,null,null,null,null,null,null,null,null,null,null,null,"",{"$f":"IF($A698=\"\",\"\",IF(VLOOKUP($G698,$H$11:$DO$1000,103,FALSE)=\"\",\"No\",IF(LEFT(VLOOKUP($G698,$H$11:$DO$1000,103,FALSE),3)=\"The\",EM698,VLOOKUP(VLOOKUP($G698,$H$11:$DO$1000,103,FALSE),DeclMatrix!$A$2:$F$5,VLOOKUP('Enrollment Form'!$B698,DeclMatrix!$A$8:$B$12,2,FALSE),FALSE))))","v":""},{"$f":"IF($A698=\"\",\"\",IF(VLOOKUP($G698,$H$11:$DO$1000,106,FALSE)=\"\",\"No\",IF(LEFT(VLOOKUP($G698,$H$11:$DO$1000,106,FALSE),3)=\"The\",EN698,VLOOKUP(VLOOKUP($G698,$H$11:$DO$1000,106,FALSE),DeclMatrix!$A$2:$F$5,VLOOKUP('Enrollment Form'!$B698,DeclMatrix!$A$8:$B$12,2,FALSE),FALSE))))","v":""},{"$f":"IF($A698=\"\",\"\",IF(VLOOKUP($G698,$H$11:$DO$1000,109,FALSE)=\"\",\"No\",IF(LEFT(VLOOKUP($G698,$H$11:$DO$1000,109,FALSE),3)=\"The\",EO698,VLOOKUP(VLOOKUP($G698,$H$11:$DO$1000,109,FALSE),DeclMatrix!$A$2:$F$5,VLOOKUP('Enrollment Form'!$B698,DeclMatrix!$A$8:$B$12,2,FALSE),FALSE))))","v":""},{"$f":"IF($A698=\"\",\"\",IF(VLOOKUP($G698,$H$11:$DO$1000,112,FALSE)=\"\",\"No\",IF(LEFT(VLOOKUP($G698,$H$11:$DO$1000,112,FALSE),3)=\"The\",EP698,VLOOKUP(VLOOKUP($G698,$H$11:$DO$1000,112,FALSE),DeclMatrix!$A$2:$F$5,VLOOKUP('Enrollment Form'!$B698,DeclMatrix!$A$8:$B$12,2,FALSE),FALSE))))","v":""},null,null,null,null,null,null,null,null,"",null,"","","","","","","","","","","",""]
["",null,null,null,null,null,"","",null,null,null,null,null,null,null,null,null,null,null,null,null,null,null,null,null,null,"","","","",null,null,"",null,null,null,null,null,null,null,null,null,null,null,null,null,null,null,null,null,null,null,null,null,null,null,null,null,null,null,"","","",null,null,null,null,"","","","",null,null,null,null,null,null,null,null,null,null,null,null,null,null,null,null,null,null,null,null,null,null,null,null,null,null,null,null,null,null,null,null,null,null,null,null,null,null,null,null,null,null,null,null,null,null,null,null,null,null,null,null,"",{"$f":"IF($A699=\"\",\"\",IF(VLOOKUP($G699,$H$11:$DO$1000,103,FALSE)=\"\",\"No\",IF(LEFT(VLOOKUP($G699,$H$11:$DO$1000,103,FALSE),3)=\"The\",EM699,VLOOKUP(VLOOKUP($G699,$H$11:$DO$1000,103,FALSE),DeclMatrix!$A$2:$F$5,VLOOKUP('Enrollment Form'!$B699,DeclMatrix!$A$8:$B$12,2,FALSE),FALSE))))","v":""},{"$f":"IF($A699=\"\",\"\",IF(VLOOKUP($G699,$H$11:$DO$1000,106,FALSE)=\"\",\"No\",IF(LEFT(VLOOKUP($G699,$H$11:$DO$1000,106,FALSE),3)=\"The\",EN699,VLOOKUP(VLOOKUP($G699,$H$11:$DO$1000,106,FALSE),DeclMatrix!$A$2:$F$5,VLOOKUP('Enrollment Form'!$B699,DeclMatrix!$A$8:$B$12,2,FALSE),FALSE))))","v":""},{"$f":"IF($A699=\"\",\"\",IF(VLOOKUP($G699,$H$11:$DO$1000,109,FALSE)=\"\",\"No\",IF(LEFT(VLOOKUP($G699,$H$11:$DO$1000,109,FALSE),3)=\"The\",EO699,VLOOKUP(VLOOKUP($G699,$H$11:$DO$1000,109,FALSE),DeclMatrix!$A$2:$F$5,VLOOKUP('Enrollment Form'!$B699,DeclMatrix!$A$8:$B$12,2,FALSE),FALSE))))","v":""},{"$f":"IF($A699=\"\",\"\",IF(VLOOKUP($G699,$H$11:$DO$1000,112,FALSE)=\"\",\"No\",IF(LEFT(VLOOKUP($G699,$H$11:$DO$1000,112,FALSE),3)=\"The\",EP699,VLOOKUP(VLOOKUP($G699,$H$11:$DO$1000,112,FALSE),DeclMatrix!$A$2:$F$5,VLOOKUP('Enrollment Form'!$B699,DeclMatrix!$A$8:$B$12,2,FALSE),FALSE))))","v":""},null,null,null,null,null,null,null,null,"",null,"","","","","","","","","","","",""]
["",null,null,null,null,null,"","",null,null,null,null,null,null,null,null,null,null,null,null,null,null,null,null,null,null,"","","","",null,null,"",null,null,null,null,null,null,null,null,null,null,null,null,null,null,null,null,null,null,null,null,null,null,null,null,null,null,null,"","","",null,null,null,null,"","","","",null,null,null,null,null,null,null,null,null,null,null,null,null,null,null,null,null,null,null,null,null,null,null,null,null,null,null,null,null,null,null,null,null,null,null,null,null,null,null,null,null,null,null,null,null,null,null,null,null,null,null,null,"",{"$f":"IF($A702=\"\",\"\",IF(VLOOKUP($G702,$H$11:$DO$1000,103,FALSE)=\"\",\"No\",IF(LEFT(VLOOKUP($G702,$H$11:$DO$1000,103,FALSE),3)=\"The\",EM702,VLOOKUP(VLOOKUP($G702,$H$11:$DO$1000,103,FALSE),DeclMatrix!$A$2:$F$5,VLOOKUP('Enrollment Form'!$B702,DeclMatrix!$A$8:$B$12,2,FALSE),FALSE))))","v":""},{"$f":"IF($A702=\"\",\"\",IF(VLOOKUP($G702,$H$11:$DO$1000,106,FALSE)=\"\",\"No\",IF(LEFT(VLOOKUP($G702,$H$11:$DO$1000,106,FALSE),3)=\"The\",EN702,VLOOKUP(VLOOKUP($G702,$H$11:$DO$1000,106,FALSE),DeclMatrix!$A$2:$F$5,VLOOKUP('Enrollment Form'!$B702,DeclMatrix!$A$8:$B$12,2,FALSE),FALSE))))","v":""},{"$f":"IF($A702=\"\",\"\",IF(VLOOKUP($G702,$H$11:$DO$1000,109,FALSE)=\"\",\"No\",IF(LEFT(VLOOKUP($G702,$H$11:$DO$1000,109,FALSE),3)=\"The\",EO702,VLOOKUP(VLOOKUP($G702,$H$11:$DO$1000,109,FALSE),DeclMatrix!$A$2:$F$5,VLOOKUP('Enrollment Form'!$B702,DeclMatrix!$A$8:$B$12,2,FALSE),FALSE))))","v":""},{"$f":"IF($A702=\"\",\"\",IF(VLOOKUP($G702,$H$11:$DO$1000,112,FALSE)=\"\",\"No\",IF(LEFT(VLOOKUP($G702,$H$11:$DO$1000,112,FALSE),3)=\"The\",EP702,VLOOKUP(VLOOKUP($G702,$H$11:$DO$1000,112,FALSE),DeclMatrix!$A$2:$F$5,VLOOKUP('Enrollment Form'!$B702,DeclMatrix!$A$8:$B$12,2,FALSE),FALSE))))","v":""},null,null,null,null,null,null,null,null,"",null,"","","","","","","","","","","",""]
["",null,null,null,null,null,"","",null,null,null,null,null,null,null,null,null,null,null,null,null,null,null,null,null,null,"","","","",null,null,"",null,null,null,null,null,null,null,null,null,null,null,null,null,null,null,null,null,null,null,null,null,null,null,null,null,null,null,"","","",null,null,null,null,"","","","",null,null,null,null,null,null,null,null,null,null,null,null,null,null,null,null,null,null,null,null,null,null,null,null,null,null,null,null,null,null,null,null,null,null,null,null,null,null,null,null,null,null,null,null,null,null,null,null,null,null,null,null,"",{"$f":"IF($A705=\"\",\"\",IF(VLOOKUP($G705,$H$11:$DO$1000,103,FALSE)=\"\",\"No\",IF(LEFT(VLOOKUP($G705,$H$11:$DO$1000,103,FALSE),3)=\"The\",EM705,VLOOKUP(VLOOKUP($G705,$H$11:$DO$1000,103,FALSE),DeclMatrix!$A$2:$F$5,VLOOKUP('Enrollment Form'!$B705,DeclMatrix!$A$8:$B$12,2,FALSE),FALSE))))","v":""},{"$f":"IF($A705=\"\",\"\",IF(VLOOKUP($G705,$H$11:$DO$1000,106,FALSE)=\"\",\"No\",IF(LEFT(VLOOKUP($G705,$H$11:$DO$1000,106,FALSE),3)=\"The\",EN705,VLOOKUP(VLOOKUP($G705,$H$11:$DO$1000,106,FALSE),DeclMatrix!$A$2:$F$5,VLOOKUP('Enrollment Form'!$B705,DeclMatrix!$A$8:$B$12,2,FALSE),FALSE))))","v":""},{"$f":"IF($A705=\"\",\"\",IF(VLOOKUP($G705,$H$11:$DO$1000,109,FALSE)=\"\",\"No\",IF(LEFT(VLOOKUP($G705,$H$11:$DO$1000,109,FALSE),3)=\"The\",EO705,VLOOKUP(VLOOKUP($G705,$H$11:$DO$1000,109,FALSE),DeclMatrix!$A$2:$F$5,VLOOKUP('Enrollment Form'!$B705,DeclMatrix!$A$8:$B$12,2,FALSE),FALSE))))","v":""},{"$f":"IF($A705=\"\",\"\",IF(VLOOKUP($G705,$H$11:$DO$1000,112,FALSE)=\"\",\"No\",IF(LEFT(VLOOKUP($G705,$H$11:$DO$1000,112,FALSE),3)=\"The\",EP705,VLOOKUP(VLOOKUP($G705,$H$11:$DO$1000,112,FALSE),DeclMatrix!$A$2:$F$5,VLOOKUP('Enrollment Form'!$B705,DeclMatrix!$A$8:$B$12,2,FALSE),FALSE))))","v":""},null,null,null,null,null,null,null,null,"",null,"","","","","","","","","","","",""]
["",null,null,null,null,null,"","",null,null,null,null,null,null,null,null,null,null,null,null,null,null,null,null,null,null,"","","","",null,null,"",null,null,null,null,null,null,null,null,null,null,null,null,null,null,null,null,null,null,null,null,null,null,null,null,null,null,null,"","","",null,null,null,null,"","","","",null,null,null,null,null,null,null,null,null,null,null,null,null,null,null,null,null,null,null,null,null,null,null,null,null,null,null,null,null,null,null,null,null,null,null,null,null,null,null,null,null,null,null,null,null,null,null,null,null,null,null,null,"",{"$f":"IF($A708=\"\",\"\",IF(VLOOKUP($G708,$H$11:$DO$1000,103,FALSE)=\"\",\"No\",IF(LEFT(VLOOKUP($G708,$H$11:$DO$1000,103,FALSE),3)=\"The\",EM708,VLOOKUP(VLOOKUP($G708,$H$11:$DO$1000,103,FALSE),DeclMatrix!$A$2:$F$5,VLOOKUP('Enrollment Form'!$B708,DeclMatrix!$A$8:$B$12,2,FALSE),FALSE))))","v":""},{"$f":"IF($A708=\"\",\"\",IF(VLOOKUP($G708,$H$11:$DO$1000,106,FALSE)=\"\",\"No\",IF(LEFT(VLOOKUP($G708,$H$11:$DO$1000,106,FALSE),3)=\"The\",EN708,VLOOKUP(VLOOKUP($G708,$H$11:$DO$1000,106,FALSE),DeclMatrix!$A$2:$F$5,VLOOKUP('Enrollment Form'!$B708,DeclMatrix!$A$8:$B$12,2,FALSE),FALSE))))","v":""},{"$f":"IF($A708=\"\",\"\",IF(VLOOKUP($G708,$H$11:$DO$1000,109,FALSE)=\"\",\"No\",IF(LEFT(VLOOKUP($G708,$H$11:$DO$1000,109,FALSE),3)=\"The\",EO708,VLOOKUP(VLOOKUP($G708,$H$11:$DO$1000,109,FALSE),DeclMatrix!$A$2:$F$5,VLOOKUP('Enrollment Form'!$B708,DeclMatrix!$A$8:$B$12,2,FALSE),FALSE))))","v":""},{"$f":"IF($A708=\"\",\"\",IF(VLOOKUP($G708,$H$11:$DO$1000,112,FALSE)=\"\",\"No\",IF(LEFT(VLOOKUP($G708,$H$11:$DO$1000,112,FALSE),3)=\"The\",EP708,VLOOKUP(VLOOKUP($G708,$H$11:$DO$1000,112,FALSE),DeclMatrix!$A$2:$F$5,VLOOKUP('Enrollment Form'!$B708,DeclMatrix!$A$8:$B$12,2,FALSE),FALSE))))","v":""},null,null,null,null,null,null,null,null,"",null,"","","","","","","","","","","",""]
["",null,null,null,null,null,"","",null,null,null,null,null,null,null,null,null,null,null,null,null,null,null,null,null,null,"","","","",null,null,"",null,null,null,null,null,null,null,null,null,null,null,null,null,null,null,null,null,null,null,null,null,null,null,null,null,null,null,"","","",null,null,null,null,"","","","",null,null,null,null,null,null,null,null,null,null,null,null,null,null,null,null,null,null,null,null,null,null,null,null,null,null,null,null,null,null,null,null,null,null,null,null,null,null,null,null,null,null,null,null,null,null,null,null,null,null,null,null,"",{"$f":"IF($A711=\"\",\"\",IF(VLOOKUP($G711,$H$11:$DO$1000,103,FALSE)=\"\",\"No\",IF(LEFT(VLOOKUP($G711,$H$11:$DO$1000,103,FALSE),3)=\"The\",EM711,VLOOKUP(VLOOKUP($G711,$H$11:$DO$1000,103,FALSE),DeclMatrix!$A$2:$F$5,VLOOKUP('Enrollment Form'!$B711,DeclMatrix!$A$8:$B$12,2,FALSE),FALSE))))","v":""},{"$f":"IF($A711=\"\",\"\",IF(VLOOKUP($G711,$H$11:$DO$1000,106,FALSE)=\"\",\"No\",IF(LEFT(VLOOKUP($G711,$H$11:$DO$1000,106,FALSE),3)=\"The\",EN711,VLOOKUP(VLOOKUP($G711,$H$11:$DO$1000,106,FALSE),DeclMatrix!$A$2:$F$5,VLOOKUP('Enrollment Form'!$B711,DeclMatrix!$A$8:$B$12,2,FALSE),FALSE))))","v":""},{"$f":"IF($A711=\"\",\"\",IF(VLOOKUP($G711,$H$11:$DO$1000,109,FALSE)=\"\",\"No\",IF(LEFT(VLOOKUP($G711,$H$11:$DO$1000,109,FALSE),3)=\"The\",EO711,VLOOKUP(VLOOKUP($G711,$H$11:$DO$1000,109,FALSE),DeclMatrix!$A$2:$F$5,VLOOKUP('Enrollment Form'!$B711,DeclMatrix!$A$8:$B$12,2,FALSE),FALSE))))","v":""},{"$f":"IF($A711=\"\",\"\",IF(VLOOKUP($G711,$H$11:$DO$1000,112,FALSE)=\"\",\"No\",IF(LEFT(VLOOKUP($G711,$H$11:$DO$1000,112,FALSE),3)=\"The\",EP711,VLOOKUP(VLOOKUP($G711,$H$11:$DO$1000,112,FALSE),DeclMatrix!$A$2:$F$5,VLOOKUP('Enrollment Form'!$B711,DeclMatrix!$A$8:$B$12,2,FALSE),FALSE))))","v":""},null,null,null,null,null,null,null,null,"",null,"","","","","","","","","","","",""]
[{"$f":"IF(LEN($B715)>0,$C$2,\"\")","v":""},null,null,null,null,null,"","",null,null,null,null,null,null,null,null,null,null,null,null,null,null,null,null,null,null,"","","","",null,null,"",null,null,null,null,null,null,null,null,null,null,null,null,null,null,null,null,null,null,null,null,null,null,null,null,null,null,null,"","","",null,null,null,null,{"$f":"IF(AND($B715<>\"Subscriber\",$BO715=\"Yes\"),VLOOKUP($G715,$H$11:$Y$1000,15,FALSE),\"\")","v":""},{"$f":"IF(AND($B715<>\"Subscriber\",$BO715=\"Yes\"),VLOOKUP($G715,$H$11:$Y$1000,16,FALSE),\"\")","v":""},{"$f":"IF(AND($B715<>\"Subscriber\",$BO715=\"Yes\"),VLOOKUP($G715,$H$11:$Y$1000,17,FALSE),\"\")","v":""},{"$f":"IF(AND($B715<>\"Subscriber\",$BO715=\"Yes\"),VLOOKUP($G715,$H$11:$Y$1000,18,FALSE),\"\")","v":""},null,null,null,null,null,null,null,null,null,null,null,null,null,null,null,null,null,null,null,null,null,null,null,null,null,null,null,null,null,null,null,null,null,null,null,null,null,null,null,null,null,null,null,null,null,null,null,null,null,null,null,null,{"$f":"IF($A715=\"\",\"\",IF($B715=\"Subscriber\",$AG715,VLOOKUP($G715,$H$11:$AG$1000,26,FALSE)))","v":""},{"$f":"IF($A715=\"\",\"\",IF(VLOOKUP($G715,$H$11:$DO$1000,103,FALSE)=\"\",\"No\",IF(LEFT(VLOOKUP($G715,$H$11:$DO$1000,103,FALSE),3)=\"The\",EM715,VLOOKUP(VLOOKUP($G715,$H$11:$DO$1000,103,FALSE),DeclMatrix!$A$2:$F$5,VLOOKUP('Enrollment Form'!$B715,DeclMatrix!$A$8:$B$12,2,FALSE),FALSE))))","v":""},{"$f":"IF($A715=\"\",\"\",IF(VLOOKUP($G715,$H$11:$DO$1000,106,FALSE)=\"\",\"No\",IF(LEFT(VLOOKUP($G715,$H$11:$DO$1000,106,FALSE),3)=\"The\",EN715,VLOOKUP(VLOOKUP($G715,$H$11:$DO$1000,106,FALSE),DeclMatrix!$A$2:$F$5,VLOOKUP('Enrollment Form'!$B715,DeclMatrix!$A$8:$B$12,2,FALSE),FALSE))))","v":""},{"$f":"IF($A715=\"\",\"\",IF(VLOOKUP($G715,$H$11:$DO$1000,109,FALSE)=\"\",\"No\",IF(LEFT(VLOOKUP($G715,$H$11:$DO$1000,109,FALSE),3)=\"The\",EO715,VLOOKUP(VLOOKUP($G715,$H$11:$DO$1000,109,FALSE),DeclMatrix!$A$2:$F$5,VLOOKUP('Enrollment Form'!$B715,DeclMatrix!$A$8:$B$12,2,FALSE),FALSE))))","v":""},{"$f":"IF($A715=\"\",\"\",IF(VLOOKUP($G715,$H$11:$DO$1000,112,FALSE)=\"\",\"No\",IF(LEFT(VLOOKUP($G715,$H$11:$DO$1000,112,FALSE),3)=\"The\",EP715,VLOOKUP(VLOOKUP($G715,$H$11:$DO$1000,112,FALSE),DeclMatrix!$A$2:$F$5,VLOOKUP('Enrollment Form'!$B715,DeclMatrix!$A$8:$B$12,2,FALSE),FALSE))))","v":""},null,null,null,null,null,null,null,null,{"$f":"IF(A715<>\"\",\"1X\",\"\")","v":""},null,{"$f":"$B715&$G715&$J715","v":""},{"$f":"$B715&$G715&$L715","v":""},{"$f":"$B715&$G715&$N715","v":""},{"$f":"$B715&$G715&$O715","v":""},{"$f":"IF($A715=\"\",\"\",IF($B715=\"Subscriber\",\"No\",IF(OR($DF715=\"\",$DF715=\"No\"),\"No\",\"Yes\")))","v":""},{"$f":"IF($A715=\"\",\"\",IF($B715=\"Subscriber\",\"No\",IF(OR($DI715=\"\",$DI715=\"No\"),\"No\",\"Yes\")))","v":""},{"$f":"IF($A715=\"\",\"\",IF($B715=\"Subscriber\",\"No\",IF(OR($DL715=\"\",$DL715=\"No\"),\"No\",\"Yes\")))","v":""},{"$f":"IF($A715=\"\",\"\",IF($B715=\"Subscriber\",\"No\",IF(OR($DO715=\"\",$DO715=\"No\"),\"No\",\"Yes\")))","v":""},{"$f":"IF($A715=\"\",\"\",IF(AND($B715=\"Subscriber\",$I715<>\"Waive\",$I715<>\"\"),\"Yes\",IF(AND($B715<>\"Subscriber\",$BM715=\"Yes\"),VLOOKUP($G715,$H$11:$ET$1000,140,FALSE),IF(AND($C715=\"Enroll\",VLOOKUP($G716,$H$11:$ET$1000,103,FALSE)<>\"\"),VLOOKUP($DU715,$DV$2:$DW$3,2,FALSE),\"No\"))))","v":""},{"$f":"IF($A715=\"\",\"\",IF(AND($B715=\"Subscriber\",$K715<>\"Waive\",$K715<>\"\"),\"Yes\",IF(AND($B715<>\"Subscriber\",$BM715=\"Yes\"),VLOOKUP($G715,$H$11:$ET$1000,141,FALSE),IF(AND($C715=\"Enroll\",VLOOKUP($G716,$H$11:$ET$1000,106,FALSE)<>\"\"),VLOOKUP($DV715,$DV$2:$DW$3,2,FALSE),\"No\"))))","v":""},{"$f":"IF($A715=\"\",\"\",IF(AND($B715=\"Subscriber\",$M715<>\"Waive\",$M715<>\"\"),\"Yes\",IF(AND($B715<>\"Subscriber\",$BM715=\"Yes\"),VLOOKUP($G715,$H$11:$ET$1000,142,FALSE),IF(AND($C715=\"Enroll\",VLOOKUP($G716,$H$11:$ET$1000,109,FALSE)<>\"\"),VLOOKUP($DW715,$DV$2:$DW$3,2,FALSE),\"No\"))))","v":""},{"$f":"IF($A715=\"\",\"\",IF(AND($B715=\"Subscriber\",$O715<>\"Waive\",$O715<>\"\"),\"Yes\",IF(AND($B715<>\"Subscriber\",$BM715=\"Yes\"),VLOOKUP($G715,$H$11:$ET$1000,143,FALSE),IF(AND($C715=\"Enroll\",VLOOKUP($G716,$H$11:$ET$1000,112,FALSE)<>\"\"),VLOOKUP($DX715,$DV$2:$DW$3,2,FALSE),\"No\"))))","v":""}]
["",null,null,null,null,null,{"$f":"IF(A716=\"\",\"\",IF(AND(B716<>\"Subscriber\",B716<>\"\"),G715,\"\"))","v":""},{"$f":"IF(AND(B716=\"Subscriber\",G716<>\"\"),G716,\"\")","v":""},null,null,null,null,null,null,null,null,null,null,null,null,null,null,null,null,null,null,{"$f":"IF(AND($B716=\"Subscriber\",$Z716=\"Yes\"),V716,\"\")","v":""},{"$f":"IF(AND($B716=\"Subscriber\",$Z716=\"Yes\"),W716,\"\")","v":""},{"$f":"IF(AND($B716=\"Subscriber\",$Z716=\"Yes\"),X716,\"\")","v":""},{"$f":"IF(AND($B716=\"Subscriber\",$Z716=\"Yes\"),Y716,\"\")","v":""},null,null,{"$f":"IF(AND(B716=\"Subscriber\",AJ716<>\"\"),\"NS01 - Not Selected\",\"\")","v":""},null,null,null,null,null,null,null,null,null,null,null,null,null,null,null,null,null,null,null,null,null,null,null,null,null,null,null,{"$f":"IF(OR($B716=\"Subscriber\",$B716=\"\"),\"\",IF(OR(VLOOKUP($G716,$H:$BH,53,FALSE)=\"No\",VLOOKUP($G716,$H:$BH,53,FALSE)=\"\"),\"\",IF(VLOOKUP($G716,$H:$BH,53,FALSE)=\"Yes\",VLOOKUP(G716,$H:$BI,32,FALSE))))","v":""},{"$f":"IF(OR($B716=\"Subscriber\",$B716=\"\"),\"\",IF(OR(VLOOKUP($G716,$H:$BH,53,FALSE)=\"No\",VLOOKUP($G716,$H:$BH,53,FALSE)=\"\"),\"\",IF(VLOOKUP($G716,$H:$BH,53,FALSE)=\"Yes\",VLOOKUP(G716,$H:$BI,33,FALSE))))","v":""},{"$f":"IF(OR($B716=\"Subscriber\",$B716=\"\"),\"\",IF(OR(VLOOKUP($G716,$H:$BH,53,FALSE)=\"No\",VLOOKUP($G716,$H:$BH,53,FALSE)=\"\"),\"\",IF(VLOOKUP($G716,$H:$BH,53,FALSE)=\"Yes\",VLOOKUP(G716,$H:$BI,34,FALSE))))","v":""},null,null,null,null,"","","","",null,null,null,null,null,null,null,null,null,null,null,null,null,null,null,null,null,null,null,null,null,null,null,null,null,null,null,null,null,null,null,null,null,null,null,null,null,null,null,null,null,null,null,null,null,null,null,null,null,null,null,null,"",{"$f":"IF($A716=\"\",\"\",IF(VLOOKUP($G716,$H$11:$DO$1000,103,FALSE)=\"\",\"No\",IF(LEFT(VLOOKUP($G716,$H$11:$DO$1000,103,FALSE),3)=\"The\",EM716,VLOOKUP(VLOOKUP($G716,$H$11:$DO$1000,103,FALSE),DeclMatrix!$A$2:$F$5,VLOOKUP('Enrollment Form'!$B716,DeclMatrix!$A$8:$B$12,2,FALSE),FALSE))))","v":""},{"$f":"IF($A716=\"\",\"\",IF(VLOOKUP($G716,$H$11:$DO$1000,106,FALSE)=\"\",\"No\",IF(LEFT(VLOOKUP($G716,$H$11:$DO$1000,106,FALSE),3)=\"The\",EN716,VLOOKUP(VLOOKUP($G716,$H$11:$DO$1000,106,FALSE),DeclMatrix!$A$2:$F$5,VLOOKUP('Enrollment Form'!$B716,DeclMatrix!$A$8:$B$12,2,FALSE),FALSE))))","v":""},{"$f":"IF($A716=\"\",\"\",IF(VLOOKUP($G716,$H$11:$DO$1000,109,FALSE)=\"\",\"No\",IF(LEFT(VLOOKUP($G716,$H$11:$DO$1000,109,FALSE),3)=\"The\",EO716,VLOOKUP(VLOOKUP($G716,$H$11:$DO$1000,109,FALSE),DeclMatrix!$A$2:$F$5,VLOOKUP('Enrollment Form'!$B716,DeclMatrix!$A$8:$B$12,2,FALSE),FALSE))))","v":""},{"$f":"IF($A716=\"\",\"\",IF(VLOOKUP($G716,$H$11:$DO$1000,112,FALSE)=\"\",\"No\",IF(LEFT(VLOOKUP($G716,$H$11:$DO$1000,112,FALSE),3)=\"The\",EP716,VLOOKUP(VLOOKUP($G716,$H$11:$DO$1000,112,FALSE),DeclMatrix!$A$2:$F$5,VLOOKUP('Enrollment Form'!$B716,DeclMatrix!$A$8:$B$12,2,FALSE),FALSE))))","v":""},null,null,null,null,null,null,null,null,"",null,"","","","","","","","","","","",""]
["",null,null,null,null,null,"","",null,null,null,null,null,null,null,null,null,null,null,null,null,null,null,null,null,null,"","","","",null,null,"",null,null,null,null,null,null,null,null,null,null,null,null,null,null,null,null,null,null,null,null,null,null,null,null,null,null,null,"","","",null,null,null,null,"","","","",null,null,null,null,null,null,null,null,null,null,null,null,null,null,null,null,null,null,null,null,null,null,null,null,null,null,null,null,null,null,null,null,null,null,null,null,null,null,null,null,null,null,null,null,null,null,null,null,null,null,null,null,"",{"$f":"IF($A720=\"\",\"\",IF(VLOOKUP($G720,$H$11:$DO$1000,103,FALSE)=\"\",\"No\",IF(LEFT(VLOOKUP($G720,$H$11:$DO$1000,103,FALSE),3)=\"The\",EM720,VLOOKUP(VLOOKUP($G720,$H$11:$DO$1000,103,FALSE),DeclMatrix!$A$2:$F$5,VLOOKUP('Enrollment Form'!$B720,DeclMatrix!$A$8:$B$12,2,FALSE),FALSE))))","v":""},{"$f":"IF($A720=\"\",\"\",IF(VLOOKUP($G720,$H$11:$DO$1000,106,FALSE)=\"\",\"No\",IF(LEFT(VLOOKUP($G720,$H$11:$DO$1000,106,FALSE),3)=\"The\",EN720,VLOOKUP(VLOOKUP($G720,$H$11:$DO$1000,106,FALSE),DeclMatrix!$A$2:$F$5,VLOOKUP('Enrollment Form'!$B720,DeclMatrix!$A$8:$B$12,2,FALSE),FALSE))))","v":""},{"$f":"IF($A720=\"\",\"\",IF(VLOOKUP($G720,$H$11:$DO$1000,109,FALSE)=\"\",\"No\",IF(LEFT(VLOOKUP($G720,$H$11:$DO$1000,109,FALSE),3)=\"The\",EO720,VLOOKUP(VLOOKUP($G720,$H$11:$DO$1000,109,FALSE),DeclMatrix!$A$2:$F$5,VLOOKUP('Enrollment Form'!$B720,DeclMatrix!$A$8:$B$12,2,FALSE),FALSE))))","v":""},{"$f":"IF($A720=\"\",\"\",IF(VLOOKUP($G720,$H$11:$DO$1000,112,FALSE)=\"\",\"No\",IF(LEFT(VLOOKUP($G720,$H$11:$DO$1000,112,FALSE),3)=\"The\",EP720,VLOOKUP(VLOOKUP($G720,$H$11:$DO$1000,112,FALSE),DeclMatrix!$A$2:$F$5,VLOOKUP('Enrollment Form'!$B720,DeclMatrix!$A$8:$B$12,2,FALSE),FALSE))))","v":""},null,null,null,null,null,null,null,null,"",null,"","","","","","","","","","","",""]
["",null,null,null,null,null,"","",null,null,null,null,null,null,null,null,null,null,null,null,null,null,null,null,null,null,"","","","",null,null,"",null,null,null,null,null,null,null,null,null,null,null,null,null,null,null,null,null,null,null,null,null,null,null,null,null,null,null,"","","",null,null,null,null,"","","","",null,null,null,null,null,null,null,null,null,null,null,null,null,null,null,null,null,null,null,null,null,null,null,null,null,null,null,null,null,null,null,null,null,null,null,null,null,null,null,null,null,null,null,null,null,null,null,null,null,null,null,null,"",{"$f":"IF($A721=\"\",\"\",IF(VLOOKUP($G721,$H$11:$DO$1000,103,FALSE)=\"\",\"No\",IF(LEFT(VLOOKUP($G721,$H$11:$DO$1000,103,FALSE),3)=\"The\",EM721,VLOOKUP(VLOOKUP($G721,$H$11:$DO$1000,103,FALSE),DeclMatrix!$A$2:$F$5,VLOOKUP('Enrollment Form'!$B721,DeclMatrix!$A$8:$B$12,2,FALSE),FALSE))))","v":""},{"$f":"IF($A721=\"\",\"\",IF(VLOOKUP($G721,$H$11:$DO$1000,106,FALSE)=\"\",\"No\",IF(LEFT(VLOOKUP($G721,$H$11:$DO$1000,106,FALSE),3)=\"The\",EN721,VLOOKUP(VLOOKUP($G721,$H$11:$DO$1000,106,FALSE),DeclMatrix!$A$2:$F$5,VLOOKUP('Enrollment Form'!$B721,DeclMatrix!$A$8:$B$12,2,FALSE),FALSE))))","v":""},{"$f":"IF($A721=\"\",\"\",IF(VLOOKUP($G721,$H$11:$DO$1000,109,FALSE)=\"\",\"No\",IF(LEFT(VLOOKUP($G721,$H$11:$DO$1000,109,FALSE),3)=\"The\",EO721,VLOOKUP(VLOOKUP($G721,$H$11:$DO$1000,109,FALSE),DeclMatrix!$A$2:$F$5,VLOOKUP('Enrollment Form'!$B721,DeclMatrix!$A$8:$B$12,2,FALSE),FALSE))))","v":""},{"$f":"IF($A721=\"\",\"\",IF(VLOOKUP($G721,$H$11:$DO$1000,112,FALSE)=\"\",\"No\",IF(LEFT(VLOOKUP($G721,$H$11:$DO$1000,112,FALSE),3)=\"The\",EP721,VLOOKUP(VLOOKUP($G721,$H$11:$DO$1000,112,FALSE),DeclMatrix!$A$2:$F$5,VLOOKUP('Enrollment Form'!$B721,DeclMatrix!$A$8:$B$12,2,FALSE),FALSE))))","v":""},null,null,null,null,null,null,null,null,"",null,"","","","","","","","","","","",""]
["",null,null,null,null,null,"","",null,null,null,null,null,null,null,null,null,null,null,null,null,null,null,null,null,null,"","","","",null,null,"",null,null,null,null,null,null,null,null,null,null,null,null,null,null,null,null,null,null,null,null,null,null,null,null,null,null,null,"","","",null,null,null,null,"","","","",null,null,null,null,null,null,null,null,null,null,null,null,null,null,null,null,null,null,null,null,null,null,null,null,null,null,null,null,null,null,null,null,null,null,null,null,null,null,null,null,null,null,null,null,null,null,null,null,null,null,null,null,"",{"$f":"IF($A724=\"\",\"\",IF(VLOOKUP($G724,$H$11:$DO$1000,103,FALSE)=\"\",\"No\",IF(LEFT(VLOOKUP($G724,$H$11:$DO$1000,103,FALSE),3)=\"The\",EM724,VLOOKUP(VLOOKUP($G724,$H$11:$DO$1000,103,FALSE),DeclMatrix!$A$2:$F$5,VLOOKUP('Enrollment Form'!$B724,DeclMatrix!$A$8:$B$12,2,FALSE),FALSE))))","v":""},{"$f":"IF($A724=\"\",\"\",IF(VLOOKUP($G724,$H$11:$DO$1000,106,FALSE)=\"\",\"No\",IF(LEFT(VLOOKUP($G724,$H$11:$DO$1000,106,FALSE),3)=\"The\",EN724,VLOOKUP(VLOOKUP($G724,$H$11:$DO$1000,106,FALSE),DeclMatrix!$A$2:$F$5,VLOOKUP('Enrollment Form'!$B724,DeclMatrix!$A$8:$B$12,2,FALSE),FALSE))))","v":""},{"$f":"IF($A724=\"\",\"\",IF(VLOOKUP($G724,$H$11:$DO$1000,109,FALSE)=\"\",\"No\",IF(LEFT(VLOOKUP($G724,$H$11:$DO$1000,109,FALSE),3)=\"The\",EO724,VLOOKUP(VLOOKUP($G724,$H$11:$DO$1000,109,FALSE),DeclMatrix!$A$2:$F$5,VLOOKUP('Enrollment Form'!$B724,DeclMatrix!$A$8:$B$12,2,FALSE),FALSE))))","v":""},{"$f":"IF($A724=\"\",\"\",IF(VLOOKUP($G724,$H$11:$DO$1000,112,FALSE)=\"\",\"No\",IF(LEFT(VLOOKUP($G724,$H$11:$DO$1000,112,FALSE),3)=\"The\",EP724,VLOOKUP(VLOOKUP($G724,$H$11:$DO$1000,112,FALSE),DeclMatrix!$A$2:$F$5,VLOOKUP('Enrollment Form'!$B724,DeclMatrix!$A$8:$B$12,2,FALSE),FALSE))))","v":""},null,null,null,null,null,null,null,null,"",null,"","","","","","","","","","","",""]
["",null,null,null,null,null,"","",null,null,null,null,null,null,null,null,null,null,null,null,null,null,null,null,null,null,"","","","",null,null,"",null,null,null,null,null,null,null,null,null,null,null,null,null,null,null,null,null,null,null,null,null,null,null,null,null,null,null,"","","",null,null,null,null,"","","","",null,null,null,null,null,null,null,null,null,null,null,null,null,null,null,null,null,null,null,null,null,null,null,null,null,null,null,null,null,null,null,null,null,null,null,null,null,null,null,null,null,null,null,null,null,null,null,null,null,null,null,null,"",{"$f":"IF($A727=\"\",\"\",IF(VLOOKUP($G727,$H$11:$DO$1000,103,FALSE)=\"\",\"No\",IF(LEFT(VLOOKUP($G727,$H$11:$DO$1000,103,FALSE),3)=\"The\",EM727,VLOOKUP(VLOOKUP($G727,$H$11:$DO$1000,103,FALSE),DeclMatrix!$A$2:$F$5,VLOOKUP('Enrollment Form'!$B727,DeclMatrix!$A$8:$B$12,2,FALSE),FALSE))))","v":""},{"$f":"IF($A727=\"\",\"\",IF(VLOOKUP($G727,$H$11:$DO$1000,106,FALSE)=\"\",\"No\",IF(LEFT(VLOOKUP($G727,$H$11:$DO$1000,106,FALSE),3)=\"The\",EN727,VLOOKUP(VLOOKUP($G727,$H$11:$DO$1000,106,FALSE),DeclMatrix!$A$2:$F$5,VLOOKUP('Enrollment Form'!$B727,DeclMatrix!$A$8:$B$12,2,FALSE),FALSE))))","v":""},{"$f":"IF($A727=\"\",\"\",IF(VLOOKUP($G727,$H$11:$DO$1000,109,FALSE)=\"\",\"No\",IF(LEFT(VLOOKUP($G727,$H$11:$DO$1000,109,FALSE),3)=\"The\",EO727,VLOOKUP(VLOOKUP($G727,$H$11:$DO$1000,109,FALSE),DeclMatrix!$A$2:$F$5,VLOOKUP('Enrollment Form'!$B727,DeclMatrix!$A$8:$B$12,2,FALSE),FALSE))))","v":""},{"$f":"IF($A727=\"\",\"\",IF(VLOOKUP($G727,$H$11:$DO$1000,112,FALSE)=\"\",\"No\",IF(LEFT(VLOOKUP($G727,$H$11:$DO$1000,112,FALSE),3)=\"The\",EP727,VLOOKUP(VLOOKUP($G727,$H$11:$DO$1000,112,FALSE),DeclMatrix!$A$2:$F$5,VLOOKUP('Enrollment Form'!$B727,DeclMatrix!$A$8:$B$12,2,FALSE),FALSE))))","v":""},null,null,null,null,null,null,null,null,"",null,"","","","","","","","","","","",""]
["",null,null,null,null,null,"","",null,null,null,null,null,null,null,null,null,null,null,null,null,null,null,null,null,null,"","","","",null,null,"",null,null,null,null,null,null,null,null,null,null,null,null,null,null,null,null,null,null,null,null,null,null,null,null,null,null,null,"","","",null,null,null,null,"","","","",null,null,null,null,null,null,null,null,null,null,null,null,null,null,null,null,null,null,null,null,null,null,null,null,null,null,null,null,null,null,null,null,null,null,null,null,null,null,null,null,null,null,null,null,null,null,null,null,null,null,null,null,"",{"$f":"IF($A730=\"\",\"\",IF(VLOOKUP($G730,$H$11:$DO$1000,103,FALSE)=\"\",\"No\",IF(LEFT(VLOOKUP($G730,$H$11:$DO$1000,103,FALSE),3)=\"The\",EM730,VLOOKUP(VLOOKUP($G730,$H$11:$DO$1000,103,FALSE),DeclMatrix!$A$2:$F$5,VLOOKUP('Enrollment Form'!$B730,DeclMatrix!$A$8:$B$12,2,FALSE),FALSE))))","v":""},{"$f":"IF($A730=\"\",\"\",IF(VLOOKUP($G730,$H$11:$DO$1000,106,FALSE)=\"\",\"No\",IF(LEFT(VLOOKUP($G730,$H$11:$DO$1000,106,FALSE),3)=\"The\",EN730,VLOOKUP(VLOOKUP($G730,$H$11:$DO$1000,106,FALSE),DeclMatrix!$A$2:$F$5,VLOOKUP('Enrollment Form'!$B730,DeclMatrix!$A$8:$B$12,2,FALSE),FALSE))))","v":""},{"$f":"IF($A730=\"\",\"\",IF(VLOOKUP($G730,$H$11:$DO$1000,109,FALSE)=\"\",\"No\",IF(LEFT(VLOOKUP($G730,$H$11:$DO$1000,109,FALSE),3)=\"The\",EO730,VLOOKUP(VLOOKUP($G730,$H$11:$DO$1000,109,FALSE),DeclMatrix!$A$2:$F$5,VLOOKUP('Enrollment Form'!$B730,DeclMatrix!$A$8:$B$12,2,FALSE),FALSE))))","v":""},{"$f":"IF($A730=\"\",\"\",IF(VLOOKUP($G730,$H$11:$DO$1000,112,FALSE)=\"\",\"No\",IF(LEFT(VLOOKUP($G730,$H$11:$DO$1000,112,FALSE),3)=\"The\",EP730,VLOOKUP(VLOOKUP($G730,$H$11:$DO$1000,112,FALSE),DeclMatrix!$A$2:$F$5,VLOOKUP('Enrollment Form'!$B730,DeclMatrix!$A$8:$B$12,2,FALSE),FALSE))))","v":""},null,null,null,null,null,null,null,null,"",null,"","","","","","","","","","","",""]
["",null,null,null,null,null,"","",null,null,null,null,null,null,null,null,null,null,null,null,null,null,null,null,null,null,"","","","",null,null,"",null,null,null,null,null,null,null,null,null,null,null,null,null,null,null,null,null,null,null,null,null,null,null,null,null,null,null,"","","",null,null,null,null,"","","","",null,null,null,null,null,null,null,null,null,null,null,null,null,null,null,null,null,null,null,null,null,null,null,null,null,null,null,null,null,null,null,null,null,null,null,null,null,null,null,null,null,null,null,null,null,null,null,null,null,null,null,null,"",{"$f":"IF($A733=\"\",\"\",IF(VLOOKUP($G733,$H$11:$DO$1000,103,FALSE)=\"\",\"No\",IF(LEFT(VLOOKUP($G733,$H$11:$DO$1000,103,FALSE),3)=\"The\",EM733,VLOOKUP(VLOOKUP($G733,$H$11:$DO$1000,103,FALSE),DeclMatrix!$A$2:$F$5,VLOOKUP('Enrollment Form'!$B733,DeclMatrix!$A$8:$B$12,2,FALSE),FALSE))))","v":""},{"$f":"IF($A733=\"\",\"\",IF(VLOOKUP($G733,$H$11:$DO$1000,106,FALSE)=\"\",\"No\",IF(LEFT(VLOOKUP($G733,$H$11:$DO$1000,106,FALSE),3)=\"The\",EN733,VLOOKUP(VLOOKUP($G733,$H$11:$DO$1000,106,FALSE),DeclMatrix!$A$2:$F$5,VLOOKUP('Enrollment Form'!$B733,DeclMatrix!$A$8:$B$12,2,FALSE),FALSE))))","v":""},{"$f":"IF($A733=\"\",\"\",IF(VLOOKUP($G733,$H$11:$DO$1000,109,FALSE)=\"\",\"No\",IF(LEFT(VLOOKUP($G733,$H$11:$DO$1000,109,FALSE),3)=\"The\",EO733,VLOOKUP(VLOOKUP($G733,$H$11:$DO$1000,109,FALSE),DeclMatrix!$A$2:$F$5,VLOOKUP('Enrollment Form'!$B733,DeclMatrix!$A$8:$B$12,2,FALSE),FALSE))))","v":""},{"$f":"IF($A733=\"\",\"\",IF(VLOOKUP($G733,$H$11:$DO$1000,112,FALSE)=\"\",\"No\",IF(LEFT(VLOOKUP($G733,$H$11:$DO$1000,112,FALSE),3)=\"The\",EP733,VLOOKUP(VLOOKUP($G733,$H$11:$DO$1000,112,FALSE),DeclMatrix!$A$2:$F$5,VLOOKUP('Enrollment Form'!$B733,DeclMatrix!$A$8:$B$12,2,FALSE),FALSE))))","v":""},null,null,null,null,null,null,null,null,"",null,"","","","","","","","","","","",""]
["",null,null,null,null,null,"","",null,null,null,null,null,null,null,null,null,null,null,null,null,null,null,null,null,null,"","","","",null,null,"",null,null,null,null,null,null,null,null,null,null,null,null,null,null,null,null,null,null,null,null,null,null,null,null,null,null,null,"","","",null,null,null,null,"","","","",null,null,null,null,null,null,null,null,null,null,null,null,null,null,null,null,null,null,null,null,null,null,null,null,null,null,null,null,null,null,null,null,null,null,null,null,null,null,null,null,null,null,null,null,null,null,null,null,null,null,null,null,"",{"$f":"IF($A737=\"\",\"\",IF(VLOOKUP($G737,$H$11:$DO$1000,103,FALSE)=\"\",\"No\",IF(LEFT(VLOOKUP($G737,$H$11:$DO$1000,103,FALSE),3)=\"The\",EM737,VLOOKUP(VLOOKUP($G737,$H$11:$DO$1000,103,FALSE),DeclMatrix!$A$2:$F$5,VLOOKUP('Enrollment Form'!$B737,DeclMatrix!$A$8:$B$12,2,FALSE),FALSE))))","v":""},{"$f":"IF($A737=\"\",\"\",IF(VLOOKUP($G737,$H$11:$DO$1000,106,FALSE)=\"\",\"No\",IF(LEFT(VLOOKUP($G737,$H$11:$DO$1000,106,FALSE),3)=\"The\",EN737,VLOOKUP(VLOOKUP($G737,$H$11:$DO$1000,106,FALSE),DeclMatrix!$A$2:$F$5,VLOOKUP('Enrollment Form'!$B737,DeclMatrix!$A$8:$B$12,2,FALSE),FALSE))))","v":""},{"$f":"IF($A737=\"\",\"\",IF(VLOOKUP($G737,$H$11:$DO$1000,109,FALSE)=\"\",\"No\",IF(LEFT(VLOOKUP($G737,$H$11:$DO$1000,109,FALSE),3)=\"The\",EO737,VLOOKUP(VLOOKUP($G737,$H$11:$DO$1000,109,FALSE),DeclMatrix!$A$2:$F$5,VLOOKUP('Enrollment Form'!$B737,DeclMatrix!$A$8:$B$12,2,FALSE),FALSE))))","v":""},{"$f":"IF($A737=\"\",\"\",IF(VLOOKUP($G737,$H$11:$DO$1000,112,FALSE)=\"\",\"No\",IF(LEFT(VLOOKUP($G737,$H$11:$DO$1000,112,FALSE),3)=\"The\",EP737,VLOOKUP(VLOOKUP($G737,$H$11:$DO$1000,112,FALSE),DeclMatrix!$A$2:$F$5,VLOOKUP('Enrollment Form'!$B737,DeclMatrix!$A$8:$B$12,2,FALSE),FALSE))))","v":""},null,null,null,null,null,null,null,null,"",null,"","","","","","","","","","","",""]
["",null,null,null,null,null,"","",null,null,null,null,null,null,null,null,null,null,null,null,null,null,null,null,null,null,"","","","",null,null,"",null,null,null,null,null,null,null,null,null,null,null,null,null,null,null,null,null,null,null,null,null,null,null,null,null,null,null,"","","",null,null,null,null,"","","","",null,null,null,null,null,null,null,null,null,null,null,null,null,null,null,null,null,null,null,null,null,null,null,null,null,null,null,null,null,null,null,null,null,null,null,null,null,null,null,null,null,null,null,null,null,null,null,null,null,null,null,null,"",{"$f":"IF($A738=\"\",\"\",IF(VLOOKUP($G738,$H$11:$DO$1000,103,FALSE)=\"\",\"No\",IF(LEFT(VLOOKUP($G738,$H$11:$DO$1000,103,FALSE),3)=\"The\",EM738,VLOOKUP(VLOOKUP($G738,$H$11:$DO$1000,103,FALSE),DeclMatrix!$A$2:$F$5,VLOOKUP('Enrollment Form'!$B738,DeclMatrix!$A$8:$B$12,2,FALSE),FALSE))))","v":""},{"$f":"IF($A738=\"\",\"\",IF(VLOOKUP($G738,$H$11:$DO$1000,106,FALSE)=\"\",\"No\",IF(LEFT(VLOOKUP($G738,$H$11:$DO$1000,106,FALSE),3)=\"The\",EN738,VLOOKUP(VLOOKUP($G738,$H$11:$DO$1000,106,FALSE),DeclMatrix!$A$2:$F$5,VLOOKUP('Enrollment Form'!$B738,DeclMatrix!$A$8:$B$12,2,FALSE),FALSE))))","v":""},{"$f":"IF($A738=\"\",\"\",IF(VLOOKUP($G738,$H$11:$DO$1000,109,FALSE)=\"\",\"No\",IF(LEFT(VLOOKUP($G738,$H$11:$DO$1000,109,FALSE),3)=\"The\",EO738,VLOOKUP(VLOOKUP($G738,$H$11:$DO$1000,109,FALSE),DeclMatrix!$A$2:$F$5,VLOOKUP('Enrollment Form'!$B738,DeclMatrix!$A$8:$B$12,2,FALSE),FALSE))))","v":""},{"$f":"IF($A738=\"\",\"\",IF(VLOOKUP($G738,$H$11:$DO$1000,112,FALSE)=\"\",\"No\",IF(LEFT(VLOOKUP($G738,$H$11:$DO$1000,112,FALSE),3)=\"The\",EP738,VLOOKUP(VLOOKUP($G738,$H$11:$DO$1000,112,FALSE),DeclMatrix!$A$2:$F$5,VLOOKUP('Enrollment Form'!$B738,DeclMatrix!$A$8:$B$12,2,FALSE),FALSE))))","v":""},null,null,null,null,null,null,null,null,"",null,"","","","","","","","","","","",""]
["",null,null,null,null,null,"","",null,null,null,null,null,null,null,null,null,null,null,null,null,null,null,null,null,null,"","","","",null,null,"",null,null,null,null,null,null,null,null,null,null,null,null,null,null,null,null,null,null,null,null,null,null,null,null,null,null,null,"","","",null,null,null,null,"","","","",null,null,null,null,null,null,null,null,null,null,null,null,null,null,null,null,null,null,null,null,null,null,null,null,null,null,null,null,null,null,null,null,null,null,null,null,null,null,null,null,null,null,null,null,null,null,null,null,null,null,null,null,"",{"$f":"IF($A742=\"\",\"\",IF(VLOOKUP($G742,$H$11:$DO$1000,103,FALSE)=\"\",\"No\",IF(LEFT(VLOOKUP($G742,$H$11:$DO$1000,103,FALSE),3)=\"The\",EM742,VLOOKUP(VLOOKUP($G742,$H$11:$DO$1000,103,FALSE),DeclMatrix!$A$2:$F$5,VLOOKUP('Enrollment Form'!$B742,DeclMatrix!$A$8:$B$12,2,FALSE),FALSE))))","v":""},{"$f":"IF($A742=\"\",\"\",IF(VLOOKUP($G742,$H$11:$DO$1000,106,FALSE)=\"\",\"No\",IF(LEFT(VLOOKUP($G742,$H$11:$DO$1000,106,FALSE),3)=\"The\",EN742,VLOOKUP(VLOOKUP($G742,$H$11:$DO$1000,106,FALSE),DeclMatrix!$A$2:$F$5,VLOOKUP('Enrollment Form'!$B742,DeclMatrix!$A$8:$B$12,2,FALSE),FALSE))))","v":""},{"$f":"IF($A742=\"\",\"\",IF(VLOOKUP($G742,$H$11:$DO$1000,109,FALSE)=\"\",\"No\",IF(LEFT(VLOOKUP($G742,$H$11:$DO$1000,109,FALSE),3)=\"The\",EO742,VLOOKUP(VLOOKUP($G742,$H$11:$DO$1000,109,FALSE),DeclMatrix!$A$2:$F$5,VLOOKUP('Enrollment Form'!$B742,DeclMatrix!$A$8:$B$12,2,FALSE),FALSE))))","v":""},{"$f":"IF($A742=\"\",\"\",IF(VLOOKUP($G742,$H$11:$DO$1000,112,FALSE)=\"\",\"No\",IF(LEFT(VLOOKUP($G742,$H$11:$DO$1000,112,FALSE),3)=\"The\",EP742,VLOOKUP(VLOOKUP($G742,$H$11:$DO$1000,112,FALSE),DeclMatrix!$A$2:$F$5,VLOOKUP('Enrollment Form'!$B742,DeclMatrix!$A$8:$B$12,2,FALSE),FALSE))))","v":""},null,null,null,null,null,null,null,null,"",null,"","","","","","","","","","","",""]
["",null,null,null,null,null,"","",null,null,null,null,null,null,null,null,null,null,null,null,null,null,null,null,null,null,"","","","",null,null,"",null,null,null,null,null,null,null,null,null,null,null,null,null,null,null,null,null,null,null,null,null,null,null,null,null,null,null,"","","",null,null,null,null,"","","","",null,null,null,null,null,null,null,null,null,null,null,null,null,null,null,null,null,null,null,null,null,null,null,null,null,null,null,null,null,null,null,null,null,null,null,null,null,null,null,null,null,null,null,null,null,null,null,null,null,null,null,null,"",{"$f":"IF($A743=\"\",\"\",IF(VLOOKUP($G743,$H$11:$DO$1000,103,FALSE)=\"\",\"No\",IF(LEFT(VLOOKUP($G743,$H$11:$DO$1000,103,FALSE),3)=\"The\",EM743,VLOOKUP(VLOOKUP($G743,$H$11:$DO$1000,103,FALSE),DeclMatrix!$A$2:$F$5,VLOOKUP('Enrollment Form'!$B743,DeclMatrix!$A$8:$B$12,2,FALSE),FALSE))))","v":""},{"$f":"IF($A743=\"\",\"\",IF(VLOOKUP($G743,$H$11:$DO$1000,106,FALSE)=\"\",\"No\",IF(LEFT(VLOOKUP($G743,$H$11:$DO$1000,106,FALSE),3)=\"The\",EN743,VLOOKUP(VLOOKUP($G743,$H$11:$DO$1000,106,FALSE),DeclMatrix!$A$2:$F$5,VLOOKUP('Enrollment Form'!$B743,DeclMatrix!$A$8:$B$12,2,FALSE),FALSE))))","v":""},{"$f":"IF($A743=\"\",\"\",IF(VLOOKUP($G743,$H$11:$DO$1000,109,FALSE)=\"\",\"No\",IF(LEFT(VLOOKUP($G743,$H$11:$DO$1000,109,FALSE),3)=\"The\",EO743,VLOOKUP(VLOOKUP($G743,$H$11:$DO$1000,109,FALSE),DeclMatrix!$A$2:$F$5,VLOOKUP('Enrollment Form'!$B743,DeclMatrix!$A$8:$B$12,2,FALSE),FALSE))))","v":""},{"$f":"IF($A743=\"\",\"\",IF(VLOOKUP($G743,$H$11:$DO$1000,112,FALSE)=\"\",\"No\",IF(LEFT(VLOOKUP($G743,$H$11:$DO$1000,112,FALSE),3)=\"The\",EP743,VLOOKUP(VLOOKUP($G743,$H$11:$DO$1000,112,FALSE),DeclMatrix!$A$2:$F$5,VLOOKUP('Enrollment Form'!$B743,DeclMatrix!$A$8:$B$12,2,FALSE),FALSE))))","v":""},null,null,null,null,null,null,null,null,"",null,"","","","","","","","","","","",""]
["",null,null,null,null,null,"","",null,null,null,null,null,null,null,null,null,null,null,null,null,null,null,null,null,null,"","","","",null,null,"",null,null,null,null,null,null,null,null,null,null,null,null,null,null,null,null,null,null,null,null,null,null,null,null,null,null,null,"","","",null,null,null,null,"","","","",null,null,null,null,null,null,null,null,null,null,null,null,null,null,null,null,null,null,null,null,null,null,null,null,null,null,null,null,null,null,null,null,null,null,null,null,null,null,null,null,null,null,null,null,null,null,null,null,null,null,null,null,"",{"$f":"IF($A746=\"\",\"\",IF(VLOOKUP($G746,$H$11:$DO$1000,103,FALSE)=\"\",\"No\",IF(LEFT(VLOOKUP($G746,$H$11:$DO$1000,103,FALSE),3)=\"The\",EM746,VLOOKUP(VLOOKUP($G746,$H$11:$DO$1000,103,FALSE),DeclMatrix!$A$2:$F$5,VLOOKUP('Enrollment Form'!$B746,DeclMatrix!$A$8:$B$12,2,FALSE),FALSE))))","v":""},{"$f":"IF($A746=\"\",\"\",IF(VLOOKUP($G746,$H$11:$DO$1000,106,FALSE)=\"\",\"No\",IF(LEFT(VLOOKUP($G746,$H$11:$DO$1000,106,FALSE),3)=\"The\",EN746,VLOOKUP(VLOOKUP($G746,$H$11:$DO$1000,106,FALSE),DeclMatrix!$A$2:$F$5,VLOOKUP('Enrollment Form'!$B746,DeclMatrix!$A$8:$B$12,2,FALSE),FALSE))))","v":""},{"$f":"IF($A746=\"\",\"\",IF(VLOOKUP($G746,$H$11:$DO$1000,109,FALSE)=\"\",\"No\",IF(LEFT(VLOOKUP($G746,$H$11:$DO$1000,109,FALSE),3)=\"The\",EO746,VLOOKUP(VLOOKUP($G746,$H$11:$DO$1000,109,FALSE),DeclMatrix!$A$2:$F$5,VLOOKUP('Enrollment Form'!$B746,DeclMatrix!$A$8:$B$12,2,FALSE),FALSE))))","v":""},{"$f":"IF($A746=\"\",\"\",IF(VLOOKUP($G746,$H$11:$DO$1000,112,FALSE)=\"\",\"No\",IF(LEFT(VLOOKUP($G746,$H$11:$DO$1000,112,FALSE),3)=\"The\",EP746,VLOOKUP(VLOOKUP($G746,$H$11:$DO$1000,112,FALSE),DeclMatrix!$A$2:$F$5,VLOOKUP('Enrollment Form'!$B746,DeclMatrix!$A$8:$B$12,2,FALSE),FALSE))))","v":""},null,null,null,null,null,null,null,null,"",null,"","","","","","","","","","","",""]
["",null,null,null,null,null,"","",null,null,null,null,null,null,null,null,null,null,null,null,null,null,null,null,null,null,"","","","",null,null,"",null,null,null,null,null,null,null,null,null,null,null,null,null,null,null,null,null,null,null,null,null,null,null,null,null,null,null,"","","",null,null,null,null,"","","","",null,null,null,null,null,null,null,null,null,null,null,null,null,null,null,null,null,null,null,null,null,null,null,null,null,null,null,null,null,null,null,null,null,null,null,null,null,null,null,null,null,null,null,null,null,null,null,null,null,null,null,null,"",{"$f":"IF($A749=\"\",\"\",IF(VLOOKUP($G749,$H$11:$DO$1000,103,FALSE)=\"\",\"No\",IF(LEFT(VLOOKUP($G749,$H$11:$DO$1000,103,FALSE),3)=\"The\",EM749,VLOOKUP(VLOOKUP($G749,$H$11:$DO$1000,103,FALSE),DeclMatrix!$A$2:$F$5,VLOOKUP('Enrollment Form'!$B749,DeclMatrix!$A$8:$B$12,2,FALSE),FALSE))))","v":""},{"$f":"IF($A749=\"\",\"\",IF(VLOOKUP($G749,$H$11:$DO$1000,106,FALSE)=\"\",\"No\",IF(LEFT(VLOOKUP($G749,$H$11:$DO$1000,106,FALSE),3)=\"The\",EN749,VLOOKUP(VLOOKUP($G749,$H$11:$DO$1000,106,FALSE),DeclMatrix!$A$2:$F$5,VLOOKUP('Enrollment Form'!$B749,DeclMatrix!$A$8:$B$12,2,FALSE),FALSE))))","v":""},{"$f":"IF($A749=\"\",\"\",IF(VLOOKUP($G749,$H$11:$DO$1000,109,FALSE)=\"\",\"No\",IF(LEFT(VLOOKUP($G749,$H$11:$DO$1000,109,FALSE),3)=\"The\",EO749,VLOOKUP(VLOOKUP($G749,$H$11:$DO$1000,109,FALSE),DeclMatrix!$A$2:$F$5,VLOOKUP('Enrollment Form'!$B749,DeclMatrix!$A$8:$B$12,2,FALSE),FALSE))))","v":""},{"$f":"IF($A749=\"\",\"\",IF(VLOOKUP($G749,$H$11:$DO$1000,112,FALSE)=\"\",\"No\",IF(LEFT(VLOOKUP($G749,$H$11:$DO$1000,112,FALSE),3)=\"The\",EP749,VLOOKUP(VLOOKUP($G749,$H$11:$DO$1000,112,FALSE),DeclMatrix!$A$2:$F$5,VLOOKUP('Enrollment Form'!$B749,DeclMatrix!$A$8:$B$12,2,FALSE),FALSE))))","v":""},null,null,null,null,null,null,null,null,"",null,"","","","","","","","","","","",""]
["",null,null,null,null,null,"","",null,null,null,null,null,null,null,null,null,null,null,null,null,null,null,null,null,null,"","","","",null,null,"",null,null,null,null,null,null,null,null,null,null,null,null,null,null,null,null,null,null,null,null,null,null,null,null,null,null,null,"","","",null,null,null,null,"","","","",null,null,null,null,null,null,null,null,null,null,null,null,null,null,null,null,null,null,null,null,null,null,null,null,null,null,null,null,null,null,null,null,null,null,null,null,null,null,null,null,null,null,null,null,null,null,null,null,null,null,null,null,"",{"$f":"IF($A752=\"\",\"\",IF(VLOOKUP($G752,$H$11:$DO$1000,103,FALSE)=\"\",\"No\",IF(LEFT(VLOOKUP($G752,$H$11:$DO$1000,103,FALSE),3)=\"The\",EM752,VLOOKUP(VLOOKUP($G752,$H$11:$DO$1000,103,FALSE),DeclMatrix!$A$2:$F$5,VLOOKUP('Enrollment Form'!$B752,DeclMatrix!$A$8:$B$12,2,FALSE),FALSE))))","v":""},{"$f":"IF($A752=\"\",\"\",IF(VLOOKUP($G752,$H$11:$DO$1000,106,FALSE)=\"\",\"No\",IF(LEFT(VLOOKUP($G752,$H$11:$DO$1000,106,FALSE),3)=\"The\",EN752,VLOOKUP(VLOOKUP($G752,$H$11:$DO$1000,106,FALSE),DeclMatrix!$A$2:$F$5,VLOOKUP('Enrollment Form'!$B752,DeclMatrix!$A$8:$B$12,2,FALSE),FALSE))))","v":""},{"$f":"IF($A752=\"\",\"\",IF(VLOOKUP($G752,$H$11:$DO$1000,109,FALSE)=\"\",\"No\",IF(LEFT(VLOOKUP($G752,$H$11:$DO$1000,109,FALSE),3)=\"The\",EO752,VLOOKUP(VLOOKUP($G752,$H$11:$DO$1000,109,FALSE),DeclMatrix!$A$2:$F$5,VLOOKUP('Enrollment Form'!$B752,DeclMatrix!$A$8:$B$12,2,FALSE),FALSE))))","v":""},{"$f":"IF($A752=\"\",\"\",IF(VLOOKUP($G752,$H$11:$DO$1000,112,FALSE)=\"\",\"No\",IF(LEFT(VLOOKUP($G752,$H$11:$DO$1000,112,FALSE),3)=\"The\",EP752,VLOOKUP(VLOOKUP($G752,$H$11:$DO$1000,112,FALSE),DeclMatrix!$A$2:$F$5,VLOOKUP('Enrollment Form'!$B752,DeclMatrix!$A$8:$B$12,2,FALSE),FALSE))))","v":""},null,null,null,null,null,null,null,null,"",null,"","","","","","","","","","","",""]
["",null,null,null,null,null,"","",null,null,null,null,null,null,null,null,null,null,null,null,null,null,null,null,null,null,"","","","",null,null,"",null,null,null,null,null,null,null,null,null,null,null,null,null,null,null,null,null,null,null,null,null,null,null,null,null,null,null,"","","",null,null,null,null,"","","","",null,null,null,null,null,null,null,null,null,null,null,null,null,null,null,null,null,null,null,null,null,null,null,null,null,null,null,null,null,null,null,null,null,null,null,null,null,null,null,null,null,null,null,null,null,null,null,null,null,null,null,null,"",{"$f":"IF($A755=\"\",\"\",IF(VLOOKUP($G755,$H$11:$DO$1000,103,FALSE)=\"\",\"No\",IF(LEFT(VLOOKUP($G755,$H$11:$DO$1000,103,FALSE),3)=\"The\",EM755,VLOOKUP(VLOOKUP($G755,$H$11:$DO$1000,103,FALSE),DeclMatrix!$A$2:$F$5,VLOOKUP('Enrollment Form'!$B755,DeclMatrix!$A$8:$B$12,2,FALSE),FALSE))))","v":""},{"$f":"IF($A755=\"\",\"\",IF(VLOOKUP($G755,$H$11:$DO$1000,106,FALSE)=\"\",\"No\",IF(LEFT(VLOOKUP($G755,$H$11:$DO$1000,106,FALSE),3)=\"The\",EN755,VLOOKUP(VLOOKUP($G755,$H$11:$DO$1000,106,FALSE),DeclMatrix!$A$2:$F$5,VLOOKUP('Enrollment Form'!$B755,DeclMatrix!$A$8:$B$12,2,FALSE),FALSE))))","v":""},{"$f":"IF($A755=\"\",\"\",IF(VLOOKUP($G755,$H$11:$DO$1000,109,FALSE)=\"\",\"No\",IF(LEFT(VLOOKUP($G755,$H$11:$DO$1000,109,FALSE),3)=\"The\",EO755,VLOOKUP(VLOOKUP($G755,$H$11:$DO$1000,109,FALSE),DeclMatrix!$A$2:$F$5,VLOOKUP('Enrollment Form'!$B755,DeclMatrix!$A$8:$B$12,2,FALSE),FALSE))))","v":""},{"$f":"IF($A755=\"\",\"\",IF(VLOOKUP($G755,$H$11:$DO$1000,112,FALSE)=\"\",\"No\",IF(LEFT(VLOOKUP($G755,$H$11:$DO$1000,112,FALSE),3)=\"The\",EP755,VLOOKUP(VLOOKUP($G755,$H$11:$DO$1000,112,FALSE),DeclMatrix!$A$2:$F$5,VLOOKUP('Enrollment Form'!$B755,DeclMatrix!$A$8:$B$12,2,FALSE),FALSE))))","v":""},null,null,null,null,null,null,null,null,"",null,"","","","","","","","","","","",""]
["",null,null,null,null,null,"","",null,null,null,null,null,null,null,null,null,null,null,null,null,null,null,null,null,null,"","","","",null,null,"",null,null,null,null,null,null,null,null,null,null,null,null,null,null,null,null,null,null,null,null,null,null,null,null,null,null,null,"","","",null,null,null,null,"","","","",null,null,null,null,null,null,null,null,null,null,null,null,null,null,null,null,null,null,null,null,null,null,null,null,null,null,null,null,null,null,null,null,null,null,null,null,null,null,null,null,null,null,null,null,null,null,null,null,null,null,null,null,"",{"$f":"IF($A759=\"\",\"\",IF(VLOOKUP($G759,$H$11:$DO$1000,103,FALSE)=\"\",\"No\",IF(LEFT(VLOOKUP($G759,$H$11:$DO$1000,103,FALSE),3)=\"The\",EM759,VLOOKUP(VLOOKUP($G759,$H$11:$DO$1000,103,FALSE),DeclMatrix!$A$2:$F$5,VLOOKUP('Enrollment Form'!$B759,DeclMatrix!$A$8:$B$12,2,FALSE),FALSE))))","v":""},{"$f":"IF($A759=\"\",\"\",IF(VLOOKUP($G759,$H$11:$DO$1000,106,FALSE)=\"\",\"No\",IF(LEFT(VLOOKUP($G759,$H$11:$DO$1000,106,FALSE),3)=\"The\",EN759,VLOOKUP(VLOOKUP($G759,$H$11:$DO$1000,106,FALSE),DeclMatrix!$A$2:$F$5,VLOOKUP('Enrollment Form'!$B759,DeclMatrix!$A$8:$B$12,2,FALSE),FALSE))))","v":""},{"$f":"IF($A759=\"\",\"\",IF(VLOOKUP($G759,$H$11:$DO$1000,109,FALSE)=\"\",\"No\",IF(LEFT(VLOOKUP($G759,$H$11:$DO$1000,109,FALSE),3)=\"The\",EO759,VLOOKUP(VLOOKUP($G759,$H$11:$DO$1000,109,FALSE),DeclMatrix!$A$2:$F$5,VLOOKUP('Enrollment Form'!$B759,DeclMatrix!$A$8:$B$12,2,FALSE),FALSE))))","v":""},{"$f":"IF($A759=\"\",\"\",IF(VLOOKUP($G759,$H$11:$DO$1000,112,FALSE)=\"\",\"No\",IF(LEFT(VLOOKUP($G759,$H$11:$DO$1000,112,FALSE),3)=\"The\",EP759,VLOOKUP(VLOOKUP($G759,$H$11:$DO$1000,112,FALSE),DeclMatrix!$A$2:$F$5,VLOOKUP('Enrollment Form'!$B759,DeclMatrix!$A$8:$B$12,2,FALSE),FALSE))))","v":""},null,null,null,null,null,null,null,null,"",null,"","","","","","","","","","","",""]
["",null,null,null,null,null,"","",null,null,null,null,null,null,null,null,null,null,null,null,null,null,null,null,null,null,"","","","",null,null,"",null,null,null,null,null,null,null,null,null,null,null,null,null,null,null,null,null,null,null,null,null,null,null,null,null,null,null,"","","",null,null,null,null,"","","","",null,null,null,null,null,null,null,null,null,null,null,null,null,null,null,null,null,null,null,null,null,null,null,null,null,null,null,null,null,null,null,null,null,null,null,null,null,null,null,null,null,null,null,null,null,null,null,null,null,null,null,null,"",{"$f":"IF($A760=\"\",\"\",IF(VLOOKUP($G760,$H$11:$DO$1000,103,FALSE)=\"\",\"No\",IF(LEFT(VLOOKUP($G760,$H$11:$DO$1000,103,FALSE),3)=\"The\",EM760,VLOOKUP(VLOOKUP($G760,$H$11:$DO$1000,103,FALSE),DeclMatrix!$A$2:$F$5,VLOOKUP('Enrollment Form'!$B760,DeclMatrix!$A$8:$B$12,2,FALSE),FALSE))))","v":""},{"$f":"IF($A760=\"\",\"\",IF(VLOOKUP($G760,$H$11:$DO$1000,106,FALSE)=\"\",\"No\",IF(LEFT(VLOOKUP($G760,$H$11:$DO$1000,106,FALSE),3)=\"The\",EN760,VLOOKUP(VLOOKUP($G760,$H$11:$DO$1000,106,FALSE),DeclMatrix!$A$2:$F$5,VLOOKUP('Enrollment Form'!$B760,DeclMatrix!$A$8:$B$12,2,FALSE),FALSE))))","v":""},{"$f":"IF($A760=\"\",\"\",IF(VLOOKUP($G760,$H$11:$DO$1000,109,FALSE)=\"\",\"No\",IF(LEFT(VLOOKUP($G760,$H$11:$DO$1000,109,FALSE),3)=\"The\",EO760,VLOOKUP(VLOOKUP($G760,$H$11:$DO$1000,109,FALSE),DeclMatrix!$A$2:$F$5,VLOOKUP('Enrollment Form'!$B760,DeclMatrix!$A$8:$B$12,2,FALSE),FALSE))))","v":""},{"$f":"IF($A760=\"\",\"\",IF(VLOOKUP($G760,$H$11:$DO$1000,112,FALSE)=\"\",\"No\",IF(LEFT(VLOOKUP($G760,$H$11:$DO$1000,112,FALSE),3)=\"The\",EP760,VLOOKUP(VLOOKUP($G760,$H$11:$DO$1000,112,FALSE),DeclMatrix!$A$2:$F$5,VLOOKUP('Enrollment Form'!$B760,DeclMatrix!$A$8:$B$12,2,FALSE),FALSE))))","v":""},null,null,null,null,null,null,null,null,"",null,"","","","","","","","","","","",""]
["",null,null,null,null,null,"","",null,null,null,null,null,null,null,null,null,null,null,null,null,null,null,null,null,null,"","","","",null,null,"",null,null,null,null,null,null,null,null,null,null,null,null,null,null,null,null,null,null,null,null,null,null,null,null,null,null,null,"","","",null,null,null,null,"","","","",null,null,null,null,null,null,null,null,null,null,null,null,null,null,null,null,null,null,null,null,null,null,null,null,null,null,null,null,null,null,null,null,null,null,null,null,null,null,null,null,null,null,null,null,null,null,null,null,null,null,null,null,"",{"$f":"IF($A762=\"\",\"\",IF(VLOOKUP($G762,$H$11:$DO$1000,103,FALSE)=\"\",\"No\",IF(LEFT(VLOOKUP($G762,$H$11:$DO$1000,103,FALSE),3)=\"The\",EM762,VLOOKUP(VLOOKUP($G762,$H$11:$DO$1000,103,FALSE),DeclMatrix!$A$2:$F$5,VLOOKUP('Enrollment Form'!$B762,DeclMatrix!$A$8:$B$12,2,FALSE),FALSE))))","v":""},{"$f":"IF($A762=\"\",\"\",IF(VLOOKUP($G762,$H$11:$DO$1000,106,FALSE)=\"\",\"No\",IF(LEFT(VLOOKUP($G762,$H$11:$DO$1000,106,FALSE),3)=\"The\",EN762,VLOOKUP(VLOOKUP($G762,$H$11:$DO$1000,106,FALSE),DeclMatrix!$A$2:$F$5,VLOOKUP('Enrollment Form'!$B762,DeclMatrix!$A$8:$B$12,2,FALSE),FALSE))))","v":""},{"$f":"IF($A762=\"\",\"\",IF(VLOOKUP($G762,$H$11:$DO$1000,109,FALSE)=\"\",\"No\",IF(LEFT(VLOOKUP($G762,$H$11:$DO$1000,109,FALSE),3)=\"The\",EO762,VLOOKUP(VLOOKUP($G762,$H$11:$DO$1000,109,FALSE),DeclMatrix!$A$2:$F$5,VLOOKUP('Enrollment Form'!$B762,DeclMatrix!$A$8:$B$12,2,FALSE),FALSE))))","v":""},{"$f":"IF($A762=\"\",\"\",IF(VLOOKUP($G762,$H$11:$DO$1000,112,FALSE)=\"\",\"No\",IF(LEFT(VLOOKUP($G762,$H$11:$DO$1000,112,FALSE),3)=\"The\",EP762,VLOOKUP(VLOOKUP($G762,$H$11:$DO$1000,112,FALSE),DeclMatrix!$A$2:$F$5,VLOOKUP('Enrollment Form'!$B762,DeclMatrix!$A$8:$B$12,2,FALSE),FALSE))))","v":""},null,null,null,null,null,null,null,null,"",null,"","","","","","","","","","","",""]
["",null,null,null,null,null,"","",null,null,null,null,null,null,null,null,null,null,null,null,null,null,null,null,null,null,"","","","",null,null,"",null,null,null,null,null,null,null,null,null,null,null,null,null,null,null,null,null,null,null,null,null,null,null,null,null,null,null,"","","",null,null,null,null,"","","","",null,null,null,null,null,null,null,null,null,null,null,null,null,null,null,null,null,null,null,null,null,null,null,null,null,null,null,null,null,null,null,null,null,null,null,null,null,null,null,null,null,null,null,null,null,null,null,null,null,null,null,null,"",{"$f":"IF($A765=\"\",\"\",IF(VLOOKUP($G765,$H$11:$DO$1000,103,FALSE)=\"\",\"No\",IF(LEFT(VLOOKUP($G765,$H$11:$DO$1000,103,FALSE),3)=\"The\",EM765,VLOOKUP(VLOOKUP($G765,$H$11:$DO$1000,103,FALSE),DeclMatrix!$A$2:$F$5,VLOOKUP('Enrollment Form'!$B765,DeclMatrix!$A$8:$B$12,2,FALSE),FALSE))))","v":""},{"$f":"IF($A765=\"\",\"\",IF(VLOOKUP($G765,$H$11:$DO$1000,106,FALSE)=\"\",\"No\",IF(LEFT(VLOOKUP($G765,$H$11:$DO$1000,106,FALSE),3)=\"The\",EN765,VLOOKUP(VLOOKUP($G765,$H$11:$DO$1000,106,FALSE),DeclMatrix!$A$2:$F$5,VLOOKUP('Enrollment Form'!$B765,DeclMatrix!$A$8:$B$12,2,FALSE),FALSE))))","v":""},{"$f":"IF($A765=\"\",\"\",IF(VLOOKUP($G765,$H$11:$DO$1000,109,FALSE)=\"\",\"No\",IF(LEFT(VLOOKUP($G765,$H$11:$DO$1000,109,FALSE),3)=\"The\",EO765,VLOOKUP(VLOOKUP($G765,$H$11:$DO$1000,109,FALSE),DeclMatrix!$A$2:$F$5,VLOOKUP('Enrollment Form'!$B765,DeclMatrix!$A$8:$B$12,2,FALSE),FALSE))))","v":""},{"$f":"IF($A765=\"\",\"\",IF(VLOOKUP($G765,$H$11:$DO$1000,112,FALSE)=\"\",\"No\",IF(LEFT(VLOOKUP($G765,$H$11:$DO$1000,112,FALSE),3)=\"The\",EP765,VLOOKUP(VLOOKUP($G765,$H$11:$DO$1000,112,FALSE),DeclMatrix!$A$2:$F$5,VLOOKUP('Enrollment Form'!$B765,DeclMatrix!$A$8:$B$12,2,FALSE),FALSE))))","v":""},null,null,null,null,null,null,null,null,"",null,"","","","","","","","","","","",""]
["",null,null,null,null,null,"","",null,null,null,null,null,null,null,null,null,null,null,null,null,null,null,null,null,null,"","","","",null,null,"",null,null,null,null,null,null,null,null,null,null,null,null,null,null,null,null,null,null,null,null,null,null,null,null,null,null,null,"","","",null,null,null,null,"","","","",null,null,null,null,null,null,null,null,null,null,null,null,null,null,null,null,null,null,null,null,null,null,null,null,null,null,null,null,null,null,null,null,null,null,null,null,null,null,null,null,null,null,null,null,null,null,null,null,null,null,null,null,"",{"$f":"IF($A768=\"\",\"\",IF(VLOOKUP($G768,$H$11:$DO$1000,103,FALSE)=\"\",\"No\",IF(LEFT(VLOOKUP($G768,$H$11:$DO$1000,103,FALSE),3)=\"The\",EM768,VLOOKUP(VLOOKUP($G768,$H$11:$DO$1000,103,FALSE),DeclMatrix!$A$2:$F$5,VLOOKUP('Enrollment Form'!$B768,DeclMatrix!$A$8:$B$12,2,FALSE),FALSE))))","v":""},{"$f":"IF($A768=\"\",\"\",IF(VLOOKUP($G768,$H$11:$DO$1000,106,FALSE)=\"\",\"No\",IF(LEFT(VLOOKUP($G768,$H$11:$DO$1000,106,FALSE),3)=\"The\",EN768,VLOOKUP(VLOOKUP($G768,$H$11:$DO$1000,106,FALSE),DeclMatrix!$A$2:$F$5,VLOOKUP('Enrollment Form'!$B768,DeclMatrix!$A$8:$B$12,2,FALSE),FALSE))))","v":""},{"$f":"IF($A768=\"\",\"\",IF(VLOOKUP($G768,$H$11:$DO$1000,109,FALSE)=\"\",\"No\",IF(LEFT(VLOOKUP($G768,$H$11:$DO$1000,109,FALSE),3)=\"The\",EO768,VLOOKUP(VLOOKUP($G768,$H$11:$DO$1000,109,FALSE),DeclMatrix!$A$2:$F$5,VLOOKUP('Enrollment Form'!$B768,DeclMatrix!$A$8:$B$12,2,FALSE),FALSE))))","v":""},{"$f":"IF($A768=\"\",\"\",IF(VLOOKUP($G768,$H$11:$DO$1000,112,FALSE)=\"\",\"No\",IF(LEFT(VLOOKUP($G768,$H$11:$DO$1000,112,FALSE),3)=\"The\",EP768,VLOOKUP(VLOOKUP($G768,$H$11:$DO$1000,112,FALSE),DeclMatrix!$A$2:$F$5,VLOOKUP('Enrollment Form'!$B768,DeclMatrix!$A$8:$B$12,2,FALSE),FALSE))))","v":""},null,null,null,null,null,null,null,null,"",null,"","","","","","","","","","","",""]
["",null,null,null,null,null,"","",null,null,null,null,null,null,null,null,null,null,null,null,null,null,null,null,null,null,"","","","",null,null,"",null,null,null,null,null,null,null,null,null,null,null,null,null,null,null,null,null,null,null,null,null,null,null,null,null,null,null,"","","",null,null,null,null,"","","","",null,null,null,null,null,null,null,null,null,null,null,null,null,null,null,null,null,null,null,null,null,null,null,null,null,null,null,null,null,null,null,null,null,null,null,null,null,null,null,null,null,null,null,null,null,null,null,null,null,null,null,null,"",{"$f":"IF($A771=\"\",\"\",IF(VLOOKUP($G771,$H$11:$DO$1000,103,FALSE)=\"\",\"No\",IF(LEFT(VLOOKUP($G771,$H$11:$DO$1000,103,FALSE),3)=\"The\",EM771,VLOOKUP(VLOOKUP($G771,$H$11:$DO$1000,103,FALSE),DeclMatrix!$A$2:$F$5,VLOOKUP('Enrollment Form'!$B771,DeclMatrix!$A$8:$B$12,2,FALSE),FALSE))))","v":""},{"$f":"IF($A771=\"\",\"\",IF(VLOOKUP($G771,$H$11:$DO$1000,106,FALSE)=\"\",\"No\",IF(LEFT(VLOOKUP($G771,$H$11:$DO$1000,106,FALSE),3)=\"The\",EN771,VLOOKUP(VLOOKUP($G771,$H$11:$DO$1000,106,FALSE),DeclMatrix!$A$2:$F$5,VLOOKUP('Enrollment Form'!$B771,DeclMatrix!$A$8:$B$12,2,FALSE),FALSE))))","v":""},{"$f":"IF($A771=\"\",\"\",IF(VLOOKUP($G771,$H$11:$DO$1000,109,FALSE)=\"\",\"No\",IF(LEFT(VLOOKUP($G771,$H$11:$DO$1000,109,FALSE),3)=\"The\",EO771,VLOOKUP(VLOOKUP($G771,$H$11:$DO$1000,109,FALSE),DeclMatrix!$A$2:$F$5,VLOOKUP('Enrollment Form'!$B771,DeclMatrix!$A$8:$B$12,2,FALSE),FALSE))))","v":""},{"$f":"IF($A771=\"\",\"\",IF(VLOOKUP($G771,$H$11:$DO$1000,112,FALSE)=\"\",\"No\",IF(LEFT(VLOOKUP($G771,$H$11:$DO$1000,112,FALSE),3)=\"The\",EP771,VLOOKUP(VLOOKUP($G771,$H$11:$DO$1000,112,FALSE),DeclMatrix!$A$2:$F$5,VLOOKUP('Enrollment Form'!$B771,DeclMatrix!$A$8:$B$12,2,FALSE),FALSE))))","v":""},null,null,null,null,null,null,null,null,"",null,"","","","","","","","","","","",""]
["",null,null,null,null,null,"","",null,null,null,null,null,null,null,null,null,null,null,null,null,null,null,null,null,null,"","","","",null,null,"",null,null,null,null,null,null,null,null,null,null,null,null,null,null,null,null,null,null,null,null,null,null,null,null,null,null,null,"","","",null,null,null,null,"","","","",null,null,null,null,null,null,null,null,null,null,null,null,null,null,null,null,null,null,null,null,null,null,null,null,null,null,null,null,null,null,null,null,null,null,null,null,null,null,null,null,null,null,null,null,null,null,null,null,null,null,null,null,"",{"$f":"IF($A774=\"\",\"\",IF(VLOOKUP($G774,$H$11:$DO$1000,103,FALSE)=\"\",\"No\",IF(LEFT(VLOOKUP($G774,$H$11:$DO$1000,103,FALSE),3)=\"The\",EM774,VLOOKUP(VLOOKUP($G774,$H$11:$DO$1000,103,FALSE),DeclMatrix!$A$2:$F$5,VLOOKUP('Enrollment Form'!$B774,DeclMatrix!$A$8:$B$12,2,FALSE),FALSE))))","v":""},{"$f":"IF($A774=\"\",\"\",IF(VLOOKUP($G774,$H$11:$DO$1000,106,FALSE)=\"\",\"No\",IF(LEFT(VLOOKUP($G774,$H$11:$DO$1000,106,FALSE),3)=\"The\",EN774,VLOOKUP(VLOOKUP($G774,$H$11:$DO$1000,106,FALSE),DeclMatrix!$A$2:$F$5,VLOOKUP('Enrollment Form'!$B774,DeclMatrix!$A$8:$B$12,2,FALSE),FALSE))))","v":""},{"$f":"IF($A774=\"\",\"\",IF(VLOOKUP($G774,$H$11:$DO$1000,109,FALSE)=\"\",\"No\",IF(LEFT(VLOOKUP($G774,$H$11:$DO$1000,109,FALSE),3)=\"The\",EO774,VLOOKUP(VLOOKUP($G774,$H$11:$DO$1000,109,FALSE),DeclMatrix!$A$2:$F$5,VLOOKUP('Enrollment Form'!$B774,DeclMatrix!$A$8:$B$12,2,FALSE),FALSE))))","v":""},{"$f":"IF($A774=\"\",\"\",IF(VLOOKUP($G774,$H$11:$DO$1000,112,FALSE)=\"\",\"No\",IF(LEFT(VLOOKUP($G774,$H$11:$DO$1000,112,FALSE),3)=\"The\",EP774,VLOOKUP(VLOOKUP($G774,$H$11:$DO$1000,112,FALSE),DeclMatrix!$A$2:$F$5,VLOOKUP('Enrollment Form'!$B774,DeclMatrix!$A$8:$B$12,2,FALSE),FALSE))))","v":""},null,null,null,null,null,null,null,null,"",null,"","","","","","","","","","","",""]
["",null,null,null,null,null,"","",null,null,null,null,null,null,null,null,null,null,null,null,null,null,null,null,null,null,"","","","",null,null,"",null,null,null,null,null,null,null,null,null,null,null,null,null,null,null,null,null,null,null,null,null,null,null,null,null,null,null,"","","",null,null,null,null,"","","","",null,null,null,null,null,null,null,null,null,null,null,null,null,null,null,null,null,null,null,null,null,null,null,null,null,null,null,null,null,null,null,null,null,null,null,null,null,null,null,null,null,null,null,null,null,null,null,null,null,null,null,null,"",{"$f":"IF($A777=\"\",\"\",IF(VLOOKUP($G777,$H$11:$DO$1000,103,FALSE)=\"\",\"No\",IF(LEFT(VLOOKUP($G777,$H$11:$DO$1000,103,FALSE),3)=\"The\",EM777,VLOOKUP(VLOOKUP($G777,$H$11:$DO$1000,103,FALSE),DeclMatrix!$A$2:$F$5,VLOOKUP('Enrollment Form'!$B777,DeclMatrix!$A$8:$B$12,2,FALSE),FALSE))))","v":""},{"$f":"IF($A777=\"\",\"\",IF(VLOOKUP($G777,$H$11:$DO$1000,106,FALSE)=\"\",\"No\",IF(LEFT(VLOOKUP($G777,$H$11:$DO$1000,106,FALSE),3)=\"The\",EN777,VLOOKUP(VLOOKUP($G777,$H$11:$DO$1000,106,FALSE),DeclMatrix!$A$2:$F$5,VLOOKUP('Enrollment Form'!$B777,DeclMatrix!$A$8:$B$12,2,FALSE),FALSE))))","v":""},{"$f":"IF($A777=\"\",\"\",IF(VLOOKUP($G777,$H$11:$DO$1000,109,FALSE)=\"\",\"No\",IF(LEFT(VLOOKUP($G777,$H$11:$DO$1000,109,FALSE),3)=\"The\",EO777,VLOOKUP(VLOOKUP($G777,$H$11:$DO$1000,109,FALSE),DeclMatrix!$A$2:$F$5,VLOOKUP('Enrollment Form'!$B777,DeclMatrix!$A$8:$B$12,2,FALSE),FALSE))))","v":""},{"$f":"IF($A777=\"\",\"\",IF(VLOOKUP($G777,$H$11:$DO$1000,112,FALSE)=\"\",\"No\",IF(LEFT(VLOOKUP($G777,$H$11:$DO$1000,112,FALSE),3)=\"The\",EP777,VLOOKUP(VLOOKUP($G777,$H$11:$DO$1000,112,FALSE),DeclMatrix!$A$2:$F$5,VLOOKUP('Enrollment Form'!$B777,DeclMatrix!$A$8:$B$12,2,FALSE),FALSE))))","v":""},null,null,null,null,null,null,null,null,"",null,"","","","","","","","","","","",""]
["",null,null,null,null,null,"","",null,null,null,null,null,null,null,null,null,null,null,null,null,null,null,null,null,null,"","","","",null,null,"",null,null,null,null,null,null,null,null,null,null,null,null,null,null,null,null,null,null,null,null,null,null,null,null,null,null,null,"","","",null,null,null,null,"","","","",null,null,null,null,null,null,null,null,null,null,null,null,null,null,null,null,null,null,null,null,null,null,null,null,null,null,null,null,null,null,null,null,null,null,null,null,null,null,null,null,null,null,null,null,null,null,null,null,null,null,null,null,"",{"$f":"IF($A781=\"\",\"\",IF(VLOOKUP($G781,$H$11:$DO$1000,103,FALSE)=\"\",\"No\",IF(LEFT(VLOOKUP($G781,$H$11:$DO$1000,103,FALSE),3)=\"The\",EM781,VLOOKUP(VLOOKUP($G781,$H$11:$DO$1000,103,FALSE),DeclMatrix!$A$2:$F$5,VLOOKUP('Enrollment Form'!$B781,DeclMatrix!$A$8:$B$12,2,FALSE),FALSE))))","v":""},{"$f":"IF($A781=\"\",\"\",IF(VLOOKUP($G781,$H$11:$DO$1000,106,FALSE)=\"\",\"No\",IF(LEFT(VLOOKUP($G781,$H$11:$DO$1000,106,FALSE),3)=\"The\",EN781,VLOOKUP(VLOOKUP($G781,$H$11:$DO$1000,106,FALSE),DeclMatrix!$A$2:$F$5,VLOOKUP('Enrollment Form'!$B781,DeclMatrix!$A$8:$B$12,2,FALSE),FALSE))))","v":""},{"$f":"IF($A781=\"\",\"\",IF(VLOOKUP($G781,$H$11:$DO$1000,109,FALSE)=\"\",\"No\",IF(LEFT(VLOOKUP($G781,$H$11:$DO$1000,109,FALSE),3)=\"The\",EO781,VLOOKUP(VLOOKUP($G781,$H$11:$DO$1000,109,FALSE),DeclMatrix!$A$2:$F$5,VLOOKUP('Enrollment Form'!$B781,DeclMatrix!$A$8:$B$12,2,FALSE),FALSE))))","v":""},{"$f":"IF($A781=\"\",\"\",IF(VLOOKUP($G781,$H$11:$DO$1000,112,FALSE)=\"\",\"No\",IF(LEFT(VLOOKUP($G781,$H$11:$DO$1000,112,FALSE),3)=\"The\",EP781,VLOOKUP(VLOOKUP($G781,$H$11:$DO$1000,112,FALSE),DeclMatrix!$A$2:$F$5,VLOOKUP('Enrollment Form'!$B781,DeclMatrix!$A$8:$B$12,2,FALSE),FALSE))))","v":""},null,null,null,null,null,null,null,null,"",null,"","","","","","","","","","","",""]
["",null,null,null,null,null,"","",null,null,null,null,null,null,null,null,null,null,null,null,null,null,null,null,null,null,"","","","",null,null,"",null,null,null,null,null,null,null,null,null,null,null,null,null,null,null,null,null,null,null,null,null,null,null,null,null,null,null,"","","",null,null,null,null,"","","","",null,null,null,null,null,null,null,null,null,null,null,null,null,null,null,null,null,null,null,null,null,null,null,null,null,null,null,null,null,null,null,null,null,null,null,null,null,null,null,null,null,null,null,null,null,null,null,null,null,null,null,null,"",{"$f":"IF($A782=\"\",\"\",IF(VLOOKUP($G782,$H$11:$DO$1000,103,FALSE)=\"\",\"No\",IF(LEFT(VLOOKUP($G782,$H$11:$DO$1000,103,FALSE),3)=\"The\",EM782,VLOOKUP(VLOOKUP($G782,$H$11:$DO$1000,103,FALSE),DeclMatrix!$A$2:$F$5,VLOOKUP('Enrollment Form'!$B782,DeclMatrix!$A$8:$B$12,2,FALSE),FALSE))))","v":""},{"$f":"IF($A782=\"\",\"\",IF(VLOOKUP($G782,$H$11:$DO$1000,106,FALSE)=\"\",\"No\",IF(LEFT(VLOOKUP($G782,$H$11:$DO$1000,106,FALSE),3)=\"The\",EN782,VLOOKUP(VLOOKUP($G782,$H$11:$DO$1000,106,FALSE),DeclMatrix!$A$2:$F$5,VLOOKUP('Enrollment Form'!$B782,DeclMatrix!$A$8:$B$12,2,FALSE),FALSE))))","v":""},{"$f":"IF($A782=\"\",\"\",IF(VLOOKUP($G782,$H$11:$DO$1000,109,FALSE)=\"\",\"No\",IF(LEFT(VLOOKUP($G782,$H$11:$DO$1000,109,FALSE),3)=\"The\",EO782,VLOOKUP(VLOOKUP($G782,$H$11:$DO$1000,109,FALSE),DeclMatrix!$A$2:$F$5,VLOOKUP('Enrollment Form'!$B782,DeclMatrix!$A$8:$B$12,2,FALSE),FALSE))))","v":""},{"$f":"IF($A782=\"\",\"\",IF(VLOOKUP($G782,$H$11:$DO$1000,112,FALSE)=\"\",\"No\",IF(LEFT(VLOOKUP($G782,$H$11:$DO$1000,112,FALSE),3)=\"The\",EP782,VLOOKUP(VLOOKUP($G782,$H$11:$DO$1000,112,FALSE),DeclMatrix!$A$2:$F$5,VLOOKUP('Enrollment Form'!$B782,DeclMatrix!$A$8:$B$12,2,FALSE),FALSE))))","v":""},null,null,null,null,null,null,null,null,"",null,"","","","","","","","","","","",""]
["",null,null,null,null,null,"","",null,null,null,null,null,null,null,null,null,null,null,null,null,null,null,null,null,null,"","","","",null,null,"",null,null,null,null,null,null,null,null,null,null,null,null,null,null,null,null,null,null,null,null,null,null,null,null,null,null,null,"","","",null,null,null,null,"","","","",null,null,null,null,null,null,null,null,null,null,null,null,null,null,null,null,null,null,null,null,null,null,null,null,null,null,null,null,null,null,null,null,null,null,null,null,null,null,null,null,null,null,null,null,null,null,null,null,null,null,null,null,"",{"$f":"IF($A784=\"\",\"\",IF(VLOOKUP($G784,$H$11:$DO$1000,103,FALSE)=\"\",\"No\",IF(LEFT(VLOOKUP($G784,$H$11:$DO$1000,103,FALSE),3)=\"The\",EM784,VLOOKUP(VLOOKUP($G784,$H$11:$DO$1000,103,FALSE),DeclMatrix!$A$2:$F$5,VLOOKUP('Enrollment Form'!$B784,DeclMatrix!$A$8:$B$12,2,FALSE),FALSE))))","v":""},{"$f":"IF($A784=\"\",\"\",IF(VLOOKUP($G784,$H$11:$DO$1000,106,FALSE)=\"\",\"No\",IF(LEFT(VLOOKUP($G784,$H$11:$DO$1000,106,FALSE),3)=\"The\",EN784,VLOOKUP(VLOOKUP($G784,$H$11:$DO$1000,106,FALSE),DeclMatrix!$A$2:$F$5,VLOOKUP('Enrollment Form'!$B784,DeclMatrix!$A$8:$B$12,2,FALSE),FALSE))))","v":""},{"$f":"IF($A784=\"\",\"\",IF(VLOOKUP($G784,$H$11:$DO$1000,109,FALSE)=\"\",\"No\",IF(LEFT(VLOOKUP($G784,$H$11:$DO$1000,109,FALSE),3)=\"The\",EO784,VLOOKUP(VLOOKUP($G784,$H$11:$DO$1000,109,FALSE),DeclMatrix!$A$2:$F$5,VLOOKUP('Enrollment Form'!$B784,DeclMatrix!$A$8:$B$12,2,FALSE),FALSE))))","v":""},{"$f":"IF($A784=\"\",\"\",IF(VLOOKUP($G784,$H$11:$DO$1000,112,FALSE)=\"\",\"No\",IF(LEFT(VLOOKUP($G784,$H$11:$DO$1000,112,FALSE),3)=\"The\",EP784,VLOOKUP(VLOOKUP($G784,$H$11:$DO$1000,112,FALSE),DeclMatrix!$A$2:$F$5,VLOOKUP('Enrollment Form'!$B784,DeclMatrix!$A$8:$B$12,2,FALSE),FALSE))))","v":""},null,null,null,null,null,null,null,null,"",null,"","","","","","","","","","","",""]
["",null,null,null,null,null,"","",null,null,null,null,null,null,null,null,null,null,null,null,null,null,null,null,null,null,"","","","",null,null,"",null,null,null,null,null,null,null,null,null,null,null,null,null,null,null,null,null,null,null,null,null,null,null,null,null,null,null,"","","",null,null,null,null,"","","","",null,null,null,null,null,null,null,null,null,null,null,null,null,null,null,null,null,null,null,null,null,null,null,null,null,null,null,null,null,null,null,null,null,null,null,null,null,null,null,null,null,null,null,null,null,null,null,null,null,null,null,null,"",{"$f":"IF($A787=\"\",\"\",IF(VLOOKUP($G787,$H$11:$DO$1000,103,FALSE)=\"\",\"No\",IF(LEFT(VLOOKUP($G787,$H$11:$DO$1000,103,FALSE),3)=\"The\",EM787,VLOOKUP(VLOOKUP($G787,$H$11:$DO$1000,103,FALSE),DeclMatrix!$A$2:$F$5,VLOOKUP('Enrollment Form'!$B787,DeclMatrix!$A$8:$B$12,2,FALSE),FALSE))))","v":""},{"$f":"IF($A787=\"\",\"\",IF(VLOOKUP($G787,$H$11:$DO$1000,106,FALSE)=\"\",\"No\",IF(LEFT(VLOOKUP($G787,$H$11:$DO$1000,106,FALSE),3)=\"The\",EN787,VLOOKUP(VLOOKUP($G787,$H$11:$DO$1000,106,FALSE),DeclMatrix!$A$2:$F$5,VLOOKUP('Enrollment Form'!$B787,DeclMatrix!$A$8:$B$12,2,FALSE),FALSE))))","v":""},{"$f":"IF($A787=\"\",\"\",IF(VLOOKUP($G787,$H$11:$DO$1000,109,FALSE)=\"\",\"No\",IF(LEFT(VLOOKUP($G787,$H$11:$DO$1000,109,FALSE),3)=\"The\",EO787,VLOOKUP(VLOOKUP($G787,$H$11:$DO$1000,109,FALSE),DeclMatrix!$A$2:$F$5,VLOOKUP('Enrollment Form'!$B787,DeclMatrix!$A$8:$B$12,2,FALSE),FALSE))))","v":""},{"$f":"IF($A787=\"\",\"\",IF(VLOOKUP($G787,$H$11:$DO$1000,112,FALSE)=\"\",\"No\",IF(LEFT(VLOOKUP($G787,$H$11:$DO$1000,112,FALSE),3)=\"The\",EP787,VLOOKUP(VLOOKUP($G787,$H$11:$DO$1000,112,FALSE),DeclMatrix!$A$2:$F$5,VLOOKUP('Enrollment Form'!$B787,DeclMatrix!$A$8:$B$12,2,FALSE),FALSE))))","v":""},null,null,null,null,null,null,null,null,"",null,"","","","","","","","","","","",""]
["",null,null,null,null,null,"","",null,null,null,null,null,null,null,null,null,null,null,null,null,null,null,null,null,null,"","","","",null,null,"",null,null,null,null,null,null,null,null,null,null,null,null,null,null,null,null,null,null,null,null,null,null,null,null,null,null,null,"","","",null,null,null,null,"","","","",null,null,null,null,null,null,null,null,null,null,null,null,null,null,null,null,null,null,null,null,null,null,null,null,null,null,null,null,null,null,null,null,null,null,null,null,null,null,null,null,null,null,null,null,null,null,null,null,null,null,null,null,"",{"$f":"IF($A790=\"\",\"\",IF(VLOOKUP($G790,$H$11:$DO$1000,103,FALSE)=\"\",\"No\",IF(LEFT(VLOOKUP($G790,$H$11:$DO$1000,103,FALSE),3)=\"The\",EM790,VLOOKUP(VLOOKUP($G790,$H$11:$DO$1000,103,FALSE),DeclMatrix!$A$2:$F$5,VLOOKUP('Enrollment Form'!$B790,DeclMatrix!$A$8:$B$12,2,FALSE),FALSE))))","v":""},{"$f":"IF($A790=\"\",\"\",IF(VLOOKUP($G790,$H$11:$DO$1000,106,FALSE)=\"\",\"No\",IF(LEFT(VLOOKUP($G790,$H$11:$DO$1000,106,FALSE),3)=\"The\",EN790,VLOOKUP(VLOOKUP($G790,$H$11:$DO$1000,106,FALSE),DeclMatrix!$A$2:$F$5,VLOOKUP('Enrollment Form'!$B790,DeclMatrix!$A$8:$B$12,2,FALSE),FALSE))))","v":""},{"$f":"IF($A790=\"\",\"\",IF(VLOOKUP($G790,$H$11:$DO$1000,109,FALSE)=\"\",\"No\",IF(LEFT(VLOOKUP($G790,$H$11:$DO$1000,109,FALSE),3)=\"The\",EO790,VLOOKUP(VLOOKUP($G790,$H$11:$DO$1000,109,FALSE),DeclMatrix!$A$2:$F$5,VLOOKUP('Enrollment Form'!$B790,DeclMatrix!$A$8:$B$12,2,FALSE),FALSE))))","v":""},{"$f":"IF($A790=\"\",\"\",IF(VLOOKUP($G790,$H$11:$DO$1000,112,FALSE)=\"\",\"No\",IF(LEFT(VLOOKUP($G790,$H$11:$DO$1000,112,FALSE),3)=\"The\",EP790,VLOOKUP(VLOOKUP($G790,$H$11:$DO$1000,112,FALSE),DeclMatrix!$A$2:$F$5,VLOOKUP('Enrollment Form'!$B790,DeclMatrix!$A$8:$B$12,2,FALSE),FALSE))))","v":""},null,null,null,null,null,null,null,null,"",null,"","","","","","","","","","","",""]
["",null,null,null,null,null,"","",null,null,null,null,null,null,null,null,null,null,null,null,null,null,null,null,null,null,"","","","",null,null,"",null,null,null,null,null,null,null,null,null,null,null,null,null,null,null,null,null,null,null,null,null,null,null,null,null,null,null,"","","",null,null,null,null,"","","","",null,null,null,null,null,null,null,null,null,null,null,null,null,null,null,null,null,null,null,null,null,null,null,null,null,null,null,null,null,null,null,null,null,null,null,null,null,null,null,null,null,null,null,null,null,null,null,null,null,null,null,null,"",{"$f":"IF($A793=\"\",\"\",IF(VLOOKUP($G793,$H$11:$DO$1000,103,FALSE)=\"\",\"No\",IF(LEFT(VLOOKUP($G793,$H$11:$DO$1000,103,FALSE),3)=\"The\",EM793,VLOOKUP(VLOOKUP($G793,$H$11:$DO$1000,103,FALSE),DeclMatrix!$A$2:$F$5,VLOOKUP('Enrollment Form'!$B793,DeclMatrix!$A$8:$B$12,2,FALSE),FALSE))))","v":""},{"$f":"IF($A793=\"\",\"\",IF(VLOOKUP($G793,$H$11:$DO$1000,106,FALSE)=\"\",\"No\",IF(LEFT(VLOOKUP($G793,$H$11:$DO$1000,106,FALSE),3)=\"The\",EN793,VLOOKUP(VLOOKUP($G793,$H$11:$DO$1000,106,FALSE),DeclMatrix!$A$2:$F$5,VLOOKUP('Enrollment Form'!$B793,DeclMatrix!$A$8:$B$12,2,FALSE),FALSE))))","v":""},{"$f":"IF($A793=\"\",\"\",IF(VLOOKUP($G793,$H$11:$DO$1000,109,FALSE)=\"\",\"No\",IF(LEFT(VLOOKUP($G793,$H$11:$DO$1000,109,FALSE),3)=\"The\",EO793,VLOOKUP(VLOOKUP($G793,$H$11:$DO$1000,109,FALSE),DeclMatrix!$A$2:$F$5,VLOOKUP('Enrollment Form'!$B793,DeclMatrix!$A$8:$B$12,2,FALSE),FALSE))))","v":""},{"$f":"IF($A793=\"\",\"\",IF(VLOOKUP($G793,$H$11:$DO$1000,112,FALSE)=\"\",\"No\",IF(LEFT(VLOOKUP($G793,$H$11:$DO$1000,112,FALSE),3)=\"The\",EP793,VLOOKUP(VLOOKUP($G793,$H$11:$DO$1000,112,FALSE),DeclMatrix!$A$2:$F$5,VLOOKUP('Enrollment Form'!$B793,DeclMatrix!$A$8:$B$12,2,FALSE),FALSE))))","v":""},null,null,null,null,null,null,null,null,"",null,"","","","","","","","","","","",""]
["",null,null,null,null,null,"","",null,null,null,null,null,null,null,null,null,null,null,null,null,null,null,null,null,null,"","","","",null,null,"",null,null,null,null,null,null,null,null,null,null,null,null,null,null,null,null,null,null,null,null,null,null,null,null,null,null,null,"","","",null,null,null,null,"","","","",null,null,null,null,null,null,null,null,null,null,null,null,null,null,null,null,null,null,null,null,null,null,null,null,null,null,null,null,null,null,null,null,null,null,null,null,null,null,null,null,null,null,null,null,null,null,null,null,null,null,null,null,"",{"$f":"IF($A796=\"\",\"\",IF(VLOOKUP($G796,$H$11:$DO$1000,103,FALSE)=\"\",\"No\",IF(LEFT(VLOOKUP($G796,$H$11:$DO$1000,103,FALSE),3)=\"The\",EM796,VLOOKUP(VLOOKUP($G796,$H$11:$DO$1000,103,FALSE),DeclMatrix!$A$2:$F$5,VLOOKUP('Enrollment Form'!$B796,DeclMatrix!$A$8:$B$12,2,FALSE),FALSE))))","v":""},{"$f":"IF($A796=\"\",\"\",IF(VLOOKUP($G796,$H$11:$DO$1000,106,FALSE)=\"\",\"No\",IF(LEFT(VLOOKUP($G796,$H$11:$DO$1000,106,FALSE),3)=\"The\",EN796,VLOOKUP(VLOOKUP($G796,$H$11:$DO$1000,106,FALSE),DeclMatrix!$A$2:$F$5,VLOOKUP('Enrollment Form'!$B796,DeclMatrix!$A$8:$B$12,2,FALSE),FALSE))))","v":""},{"$f":"IF($A796=\"\",\"\",IF(VLOOKUP($G796,$H$11:$DO$1000,109,FALSE)=\"\",\"No\",IF(LEFT(VLOOKUP($G796,$H$11:$DO$1000,109,FALSE),3)=\"The\",EO796,VLOOKUP(VLOOKUP($G796,$H$11:$DO$1000,109,FALSE),DeclMatrix!$A$2:$F$5,VLOOKUP('Enrollment Form'!$B796,DeclMatrix!$A$8:$B$12,2,FALSE),FALSE))))","v":""},{"$f":"IF($A796=\"\",\"\",IF(VLOOKUP($G796,$H$11:$DO$1000,112,FALSE)=\"\",\"No\",IF(LEFT(VLOOKUP($G796,$H$11:$DO$1000,112,FALSE),3)=\"The\",EP796,VLOOKUP(VLOOKUP($G796,$H$11:$DO$1000,112,FALSE),DeclMatrix!$A$2:$F$5,VLOOKUP('Enrollment Form'!$B796,DeclMatrix!$A$8:$B$12,2,FALSE),FALSE))))","v":""},null,null,null,null,null,null,null,null,"",null,"","","","","","","","","","","",""]
["",null,null,null,null,null,"","",null,null,null,null,null,null,null,null,null,null,null,null,null,null,null,null,null,null,"","","","",null,null,"",null,null,null,null,null,null,null,null,null,null,null,null,null,null,null,null,null,null,null,null,null,null,null,null,null,null,null,"","","",null,null,null,null,"","","","",null,null,null,null,null,null,null,null,null,null,null,null,null,null,null,null,null,null,null,null,null,null,null,null,null,null,null,null,null,null,null,null,null,null,null,null,null,null,null,null,null,null,null,null,null,null,null,null,null,null,null,null,"",{"$f":"IF($A800=\"\",\"\",IF(VLOOKUP($G800,$H$11:$DO$1000,103,FALSE)=\"\",\"No\",IF(LEFT(VLOOKUP($G800,$H$11:$DO$1000,103,FALSE),3)=\"The\",EM800,VLOOKUP(VLOOKUP($G800,$H$11:$DO$1000,103,FALSE),DeclMatrix!$A$2:$F$5,VLOOKUP('Enrollment Form'!$B800,DeclMatrix!$A$8:$B$12,2,FALSE),FALSE))))","v":""},{"$f":"IF($A800=\"\",\"\",IF(VLOOKUP($G800,$H$11:$DO$1000,106,FALSE)=\"\",\"No\",IF(LEFT(VLOOKUP($G800,$H$11:$DO$1000,106,FALSE),3)=\"The\",EN800,VLOOKUP(VLOOKUP($G800,$H$11:$DO$1000,106,FALSE),DeclMatrix!$A$2:$F$5,VLOOKUP('Enrollment Form'!$B800,DeclMatrix!$A$8:$B$12,2,FALSE),FALSE))))","v":""},{"$f":"IF($A800=\"\",\"\",IF(VLOOKUP($G800,$H$11:$DO$1000,109,FALSE)=\"\",\"No\",IF(LEFT(VLOOKUP($G800,$H$11:$DO$1000,109,FALSE),3)=\"The\",EO800,VLOOKUP(VLOOKUP($G800,$H$11:$DO$1000,109,FALSE),DeclMatrix!$A$2:$F$5,VLOOKUP('Enrollment Form'!$B800,DeclMatrix!$A$8:$B$12,2,FALSE),FALSE))))","v":""},{"$f":"IF($A800=\"\",\"\",IF(VLOOKUP($G800,$H$11:$DO$1000,112,FALSE)=\"\",\"No\",IF(LEFT(VLOOKUP($G800,$H$11:$DO$1000,112,FALSE),3)=\"The\",EP800,VLOOKUP(VLOOKUP($G800,$H$11:$DO$1000,112,FALSE),DeclMatrix!$A$2:$F$5,VLOOKUP('Enrollment Form'!$B800,DeclMatrix!$A$8:$B$12,2,FALSE),FALSE))))","v":""},null,null,null,null,null,null,null,null,"",null,"","","","","","","","","","","",""]
["",null,null,null,null,null,"","",null,null,null,null,null,null,null,null,null,null,null,null,null,null,null,null,null,null,"","","","",null,null,"",null,null,null,null,null,null,null,null,null,null,null,null,null,null,null,null,null,null,null,null,null,null,null,null,null,null,null,"","","",null,null,null,null,"","","","",null,null,null,null,null,null,null,null,null,null,null,null,null,null,null,null,null,null,null,null,null,null,null,null,null,null,null,null,null,null,null,null,null,null,null,null,null,null,null,null,null,null,null,null,null,null,null,null,null,null,null,null,"",{"$f":"IF($A803=\"\",\"\",IF(VLOOKUP($G803,$H$11:$DO$1000,103,FALSE)=\"\",\"No\",IF(LEFT(VLOOKUP($G803,$H$11:$DO$1000,103,FALSE),3)=\"The\",EM803,VLOOKUP(VLOOKUP($G803,$H$11:$DO$1000,103,FALSE),DeclMatrix!$A$2:$F$5,VLOOKUP('Enrollment Form'!$B803,DeclMatrix!$A$8:$B$12,2,FALSE),FALSE))))","v":""},{"$f":"IF($A803=\"\",\"\",IF(VLOOKUP($G803,$H$11:$DO$1000,106,FALSE)=\"\",\"No\",IF(LEFT(VLOOKUP($G803,$H$11:$DO$1000,106,FALSE),3)=\"The\",EN803,VLOOKUP(VLOOKUP($G803,$H$11:$DO$1000,106,FALSE),DeclMatrix!$A$2:$F$5,VLOOKUP('Enrollment Form'!$B803,DeclMatrix!$A$8:$B$12,2,FALSE),FALSE))))","v":""},{"$f":"IF($A803=\"\",\"\",IF(VLOOKUP($G803,$H$11:$DO$1000,109,FALSE)=\"\",\"No\",IF(LEFT(VLOOKUP($G803,$H$11:$DO$1000,109,FALSE),3)=\"The\",EO803,VLOOKUP(VLOOKUP($G803,$H$11:$DO$1000,109,FALSE),DeclMatrix!$A$2:$F$5,VLOOKUP('Enrollment Form'!$B803,DeclMatrix!$A$8:$B$12,2,FALSE),FALSE))))","v":""},{"$f":"IF($A803=\"\",\"\",IF(VLOOKUP($G803,$H$11:$DO$1000,112,FALSE)=\"\",\"No\",IF(LEFT(VLOOKUP($G803,$H$11:$DO$1000,112,FALSE),3)=\"The\",EP803,VLOOKUP(VLOOKUP($G803,$H$11:$DO$1000,112,FALSE),DeclMatrix!$A$2:$F$5,VLOOKUP('Enrollment Form'!$B803,DeclMatrix!$A$8:$B$12,2,FALSE),FALSE))))","v":""},null,null,null,null,null,null,null,null,"",null,"","","","","","","","","","","",""]
["",null,null,null,null,null,"","",null,null,null,null,null,null,null,null,null,null,null,null,null,null,null,null,null,null,"","","","",null,null,"",null,null,null,null,null,null,null,null,null,null,null,null,null,null,null,null,null,null,null,null,null,null,null,null,null,null,null,"","","",null,null,null,null,"","","","",null,null,null,null,null,null,null,null,null,null,null,null,null,null,null,null,null,null,null,null,null,null,null,null,null,null,null,null,null,null,null,null,null,null,null,null,null,null,null,null,null,null,null,null,null,null,null,null,null,null,null,null,"",{"$f":"IF($A804=\"\",\"\",IF(VLOOKUP($G804,$H$11:$DO$1000,103,FALSE)=\"\",\"No\",IF(LEFT(VLOOKUP($G804,$H$11:$DO$1000,103,FALSE),3)=\"The\",EM804,VLOOKUP(VLOOKUP($G804,$H$11:$DO$1000,103,FALSE),DeclMatrix!$A$2:$F$5,VLOOKUP('Enrollment Form'!$B804,DeclMatrix!$A$8:$B$12,2,FALSE),FALSE))))","v":""},{"$f":"IF($A804=\"\",\"\",IF(VLOOKUP($G804,$H$11:$DO$1000,106,FALSE)=\"\",\"No\",IF(LEFT(VLOOKUP($G804,$H$11:$DO$1000,106,FALSE),3)=\"The\",EN804,VLOOKUP(VLOOKUP($G804,$H$11:$DO$1000,106,FALSE),DeclMatrix!$A$2:$F$5,VLOOKUP('Enrollment Form'!$B804,DeclMatrix!$A$8:$B$12,2,FALSE),FALSE))))","v":""},{"$f":"IF($A804=\"\",\"\",IF(VLOOKUP($G804,$H$11:$DO$1000,109,FALSE)=\"\",\"No\",IF(LEFT(VLOOKUP($G804,$H$11:$DO$1000,109,FALSE),3)=\"The\",EO804,VLOOKUP(VLOOKUP($G804,$H$11:$DO$1000,109,FALSE),DeclMatrix!$A$2:$F$5,VLOOKUP('Enrollment Form'!$B804,DeclMatrix!$A$8:$B$12,2,FALSE),FALSE))))","v":""},{"$f":"IF($A804=\"\",\"\",IF(VLOOKUP($G804,$H$11:$DO$1000,112,FALSE)=\"\",\"No\",IF(LEFT(VLOOKUP($G804,$H$11:$DO$1000,112,FALSE),3)=\"The\",EP804,VLOOKUP(VLOOKUP($G804,$H$11:$DO$1000,112,FALSE),DeclMatrix!$A$2:$F$5,VLOOKUP('Enrollment Form'!$B804,DeclMatrix!$A$8:$B$12,2,FALSE),FALSE))))","v":""},null,null,null,null,null,null,null,null,"",null,"","","","","","","","","","","",""]
["",null,null,null,null,null,"","",null,null,null,null,null,null,null,null,null,null,null,null,null,null,null,null,null,null,"","","","",null,null,"",null,null,null,null,null,null,null,null,null,null,null,null,null,null,null,null,null,null,null,null,null,null,null,null,null,null,null,"","","",null,null,null,null,"","","","",null,null,null,null,null,null,null,null,null,null,null,null,null,null,null,null,null,null,null,null,null,null,null,null,null,null,null,null,null,null,null,null,null,null,null,null,null,null,null,null,null,null,null,null,null,null,null,null,null,null,null,null,"",{"$f":"IF($A806=\"\",\"\",IF(VLOOKUP($G806,$H$11:$DO$1000,103,FALSE)=\"\",\"No\",IF(LEFT(VLOOKUP($G806,$H$11:$DO$1000,103,FALSE),3)=\"The\",EM806,VLOOKUP(VLOOKUP($G806,$H$11:$DO$1000,103,FALSE),DeclMatrix!$A$2:$F$5,VLOOKUP('Enrollment Form'!$B806,DeclMatrix!$A$8:$B$12,2,FALSE),FALSE))))","v":""},{"$f":"IF($A806=\"\",\"\",IF(VLOOKUP($G806,$H$11:$DO$1000,106,FALSE)=\"\",\"No\",IF(LEFT(VLOOKUP($G806,$H$11:$DO$1000,106,FALSE),3)=\"The\",EN806,VLOOKUP(VLOOKUP($G806,$H$11:$DO$1000,106,FALSE),DeclMatrix!$A$2:$F$5,VLOOKUP('Enrollment Form'!$B806,DeclMatrix!$A$8:$B$12,2,FALSE),FALSE))))","v":""},{"$f":"IF($A806=\"\",\"\",IF(VLOOKUP($G806,$H$11:$DO$1000,109,FALSE)=\"\",\"No\",IF(LEFT(VLOOKUP($G806,$H$11:$DO$1000,109,FALSE),3)=\"The\",EO806,VLOOKUP(VLOOKUP($G806,$H$11:$DO$1000,109,FALSE),DeclMatrix!$A$2:$F$5,VLOOKUP('Enrollment Form'!$B806,DeclMatrix!$A$8:$B$12,2,FALSE),FALSE))))","v":""},{"$f":"IF($A806=\"\",\"\",IF(VLOOKUP($G806,$H$11:$DO$1000,112,FALSE)=\"\",\"No\",IF(LEFT(VLOOKUP($G806,$H$11:$DO$1000,112,FALSE),3)=\"The\",EP806,VLOOKUP(VLOOKUP($G806,$H$11:$DO$1000,112,FALSE),DeclMatrix!$A$2:$F$5,VLOOKUP('Enrollment Form'!$B806,DeclMatrix!$A$8:$B$12,2,FALSE),FALSE))))","v":""},null,null,null,null,null,null,null,null,"",null,"","","","","","","","","","","",""]
["",null,null,null,null,null,"","",null,null,null,null,null,null,null,null,null,null,null,null,null,null,null,null,null,null,"","","","",null,null,"",null,null,null,null,null,null,null,null,null,null,null,null,null,null,null,null,null,null,null,null,null,null,null,null,null,null,null,"","","",null,null,null,null,"","","","",null,null,null,null,null,null,null,null,null,null,null,null,null,null,null,null,null,null,null,null,null,null,null,null,null,null,null,null,null,null,null,null,null,null,null,null,null,null,null,null,null,null,null,null,null,null,null,null,null,null,null,null,"",{"$f":"IF($A809=\"\",\"\",IF(VLOOKUP($G809,$H$11:$DO$1000,103,FALSE)=\"\",\"No\",IF(LEFT(VLOOKUP($G809,$H$11:$DO$1000,103,FALSE),3)=\"The\",EM809,VLOOKUP(VLOOKUP($G809,$H$11:$DO$1000,103,FALSE),DeclMatrix!$A$2:$F$5,VLOOKUP('Enrollment Form'!$B809,DeclMatrix!$A$8:$B$12,2,FALSE),FALSE))))","v":""},{"$f":"IF($A809=\"\",\"\",IF(VLOOKUP($G809,$H$11:$DO$1000,106,FALSE)=\"\",\"No\",IF(LEFT(VLOOKUP($G809,$H$11:$DO$1000,106,FALSE),3)=\"The\",EN809,VLOOKUP(VLOOKUP($G809,$H$11:$DO$1000,106,FALSE),DeclMatrix!$A$2:$F$5,VLOOKUP('Enrollment Form'!$B809,DeclMatrix!$A$8:$B$12,2,FALSE),FALSE))))","v":""},{"$f":"IF($A809=\"\",\"\",IF(VLOOKUP($G809,$H$11:$DO$1000,109,FALSE)=\"\",\"No\",IF(LEFT(VLOOKUP($G809,$H$11:$DO$1000,109,FALSE),3)=\"The\",EO809,VLOOKUP(VLOOKUP($G809,$H$11:$DO$1000,109,FALSE),DeclMatrix!$A$2:$F$5,VLOOKUP('Enrollment Form'!$B809,DeclMatrix!$A$8:$B$12,2,FALSE),FALSE))))","v":""},{"$f":"IF($A809=\"\",\"\",IF(VLOOKUP($G809,$H$11:$DO$1000,112,FALSE)=\"\",\"No\",IF(LEFT(VLOOKUP($G809,$H$11:$DO$1000,112,FALSE),3)=\"The\",EP809,VLOOKUP(VLOOKUP($G809,$H$11:$DO$1000,112,FALSE),DeclMatrix!$A$2:$F$5,VLOOKUP('Enrollment Form'!$B809,DeclMatrix!$A$8:$B$12,2,FALSE),FALSE))))","v":""},null,null,null,null,null,null,null,null,"",null,"","","","","","","","","","","",""]
["",null,null,null,null,null,"","",null,null,null,null,null,null,null,null,null,null,null,null,null,null,null,null,null,null,"","","","",null,null,"",null,null,null,null,null,null,null,null,null,null,null,null,null,null,null,null,null,null,null,null,null,null,null,null,null,null,null,"","","",null,null,null,null,"","","","",null,null,null,null,null,null,null,null,null,null,null,null,null,null,null,null,null,null,null,null,null,null,null,null,null,null,null,null,null,null,null,null,null,null,null,null,null,null,null,null,null,null,null,null,null,null,null,null,null,null,null,null,"",{"$f":"IF($A812=\"\",\"\",IF(VLOOKUP($G812,$H$11:$DO$1000,103,FALSE)=\"\",\"No\",IF(LEFT(VLOOKUP($G812,$H$11:$DO$1000,103,FALSE),3)=\"The\",EM812,VLOOKUP(VLOOKUP($G812,$H$11:$DO$1000,103,FALSE),DeclMatrix!$A$2:$F$5,VLOOKUP('Enrollment Form'!$B812,DeclMatrix!$A$8:$B$12,2,FALSE),FALSE))))","v":""},{"$f":"IF($A812=\"\",\"\",IF(VLOOKUP($G812,$H$11:$DO$1000,106,FALSE)=\"\",\"No\",IF(LEFT(VLOOKUP($G812,$H$11:$DO$1000,106,FALSE),3)=\"The\",EN812,VLOOKUP(VLOOKUP($G812,$H$11:$DO$1000,106,FALSE),DeclMatrix!$A$2:$F$5,VLOOKUP('Enrollment Form'!$B812,DeclMatrix!$A$8:$B$12,2,FALSE),FALSE))))","v":""},{"$f":"IF($A812=\"\",\"\",IF(VLOOKUP($G812,$H$11:$DO$1000,109,FALSE)=\"\",\"No\",IF(LEFT(VLOOKUP($G812,$H$11:$DO$1000,109,FALSE),3)=\"The\",EO812,VLOOKUP(VLOOKUP($G812,$H$11:$DO$1000,109,FALSE),DeclMatrix!$A$2:$F$5,VLOOKUP('Enrollment Form'!$B812,DeclMatrix!$A$8:$B$12,2,FALSE),FALSE))))","v":""},{"$f":"IF($A812=\"\",\"\",IF(VLOOKUP($G812,$H$11:$DO$1000,112,FALSE)=\"\",\"No\",IF(LEFT(VLOOKUP($G812,$H$11:$DO$1000,112,FALSE),3)=\"The\",EP812,VLOOKUP(VLOOKUP($G812,$H$11:$DO$1000,112,FALSE),DeclMatrix!$A$2:$F$5,VLOOKUP('Enrollment Form'!$B812,DeclMatrix!$A$8:$B$12,2,FALSE),FALSE))))","v":""},null,null,null,null,null,null,null,null,"",null,"","","","","","","","","","","",""]
["",null,null,null,null,null,"","",null,null,null,null,null,null,null,null,null,null,null,null,null,null,null,null,null,null,"","","","",null,null,"",null,null,null,null,null,null,null,null,null,null,null,null,null,null,null,null,null,null,null,null,null,null,null,null,null,null,null,"","","",null,null,null,null,"","","","",null,null,null,null,null,null,null,null,null,null,null,null,null,null,null,null,null,null,null,null,null,null,null,null,null,null,null,null,null,null,null,null,null,null,null,null,null,null,null,null,null,null,null,null,null,null,null,null,null,null,null,null,"",{"$f":"IF($A815=\"\",\"\",IF(VLOOKUP($G815,$H$11:$DO$1000,103,FALSE)=\"\",\"No\",IF(LEFT(VLOOKUP($G815,$H$11:$DO$1000,103,FALSE),3)=\"The\",EM815,VLOOKUP(VLOOKUP($G815,$H$11:$DO$1000,103,FALSE),DeclMatrix!$A$2:$F$5,VLOOKUP('Enrollment Form'!$B815,DeclMatrix!$A$8:$B$12,2,FALSE),FALSE))))","v":""},{"$f":"IF($A815=\"\",\"\",IF(VLOOKUP($G815,$H$11:$DO$1000,106,FALSE)=\"\",\"No\",IF(LEFT(VLOOKUP($G815,$H$11:$DO$1000,106,FALSE),3)=\"The\",EN815,VLOOKUP(VLOOKUP($G815,$H$11:$DO$1000,106,FALSE),DeclMatrix!$A$2:$F$5,VLOOKUP('Enrollment Form'!$B815,DeclMatrix!$A$8:$B$12,2,FALSE),FALSE))))","v":""},{"$f":"IF($A815=\"\",\"\",IF(VLOOKUP($G815,$H$11:$DO$1000,109,FALSE)=\"\",\"No\",IF(LEFT(VLOOKUP($G815,$H$11:$DO$1000,109,FALSE),3)=\"The\",EO815,VLOOKUP(VLOOKUP($G815,$H$11:$DO$1000,109,FALSE),DeclMatrix!$A$2:$F$5,VLOOKUP('Enrollment Form'!$B815,DeclMatrix!$A$8:$B$12,2,FALSE),FALSE))))","v":""},{"$f":"IF($A815=\"\",\"\",IF(VLOOKUP($G815,$H$11:$DO$1000,112,FALSE)=\"\",\"No\",IF(LEFT(VLOOKUP($G815,$H$11:$DO$1000,112,FALSE),3)=\"The\",EP815,VLOOKUP(VLOOKUP($G815,$H$11:$DO$1000,112,FALSE),DeclMatrix!$A$2:$F$5,VLOOKUP('Enrollment Form'!$B815,DeclMatrix!$A$8:$B$12,2,FALSE),FALSE))))","v":""},null,null,null,null,null,null,null,null,"",null,"","","","","","","","","","","",""]
["",null,null,null,null,null,"","",null,null,null,null,null,null,null,null,null,null,null,null,null,null,null,null,null,null,"","","","",null,null,"",null,null,null,null,null,null,null,null,null,null,null,null,null,null,null,null,null,null,null,null,null,null,null,null,null,null,null,"","","",null,null,null,null,"","","","",null,null,null,null,null,null,null,null,null,null,null,null,null,null,null,null,null,null,null,null,null,null,null,null,null,null,null,null,null,null,null,null,null,null,null,null,null,null,null,null,null,null,null,null,null,null,null,null,null,null,null,null,"",{"$f":"IF($A818=\"\",\"\",IF(VLOOKUP($G818,$H$11:$DO$1000,103,FALSE)=\"\",\"No\",IF(LEFT(VLOOKUP($G818,$H$11:$DO$1000,103,FALSE),3)=\"The\",EM818,VLOOKUP(VLOOKUP($G818,$H$11:$DO$1000,103,FALSE),DeclMatrix!$A$2:$F$5,VLOOKUP('Enrollment Form'!$B818,DeclMatrix!$A$8:$B$12,2,FALSE),FALSE))))","v":""},{"$f":"IF($A818=\"\",\"\",IF(VLOOKUP($G818,$H$11:$DO$1000,106,FALSE)=\"\",\"No\",IF(LEFT(VLOOKUP($G818,$H$11:$DO$1000,106,FALSE),3)=\"The\",EN818,VLOOKUP(VLOOKUP($G818,$H$11:$DO$1000,106,FALSE),DeclMatrix!$A$2:$F$5,VLOOKUP('Enrollment Form'!$B818,DeclMatrix!$A$8:$B$12,2,FALSE),FALSE))))","v":""},{"$f":"IF($A818=\"\",\"\",IF(VLOOKUP($G818,$H$11:$DO$1000,109,FALSE)=\"\",\"No\",IF(LEFT(VLOOKUP($G818,$H$11:$DO$1000,109,FALSE),3)=\"The\",EO818,VLOOKUP(VLOOKUP($G818,$H$11:$DO$1000,109,FALSE),DeclMatrix!$A$2:$F$5,VLOOKUP('Enrollment Form'!$B818,DeclMatrix!$A$8:$B$12,2,FALSE),FALSE))))","v":""},{"$f":"IF($A818=\"\",\"\",IF(VLOOKUP($G818,$H$11:$DO$1000,112,FALSE)=\"\",\"No\",IF(LEFT(VLOOKUP($G818,$H$11:$DO$1000,112,FALSE),3)=\"The\",EP818,VLOOKUP(VLOOKUP($G818,$H$11:$DO$1000,112,FALSE),DeclMatrix!$A$2:$F$5,VLOOKUP('Enrollment Form'!$B818,DeclMatrix!$A$8:$B$12,2,FALSE),FALSE))))","v":""},null,null,null,null,null,null,null,null,"",null,"","","","","","","","","","","",""]
["",null,null,null,null,null,"","",null,null,null,null,null,null,null,null,null,null,null,null,null,null,null,null,null,null,"","","","",null,null,"",null,null,null,null,null,null,null,null,null,null,null,null,null,null,null,null,null,null,null,null,null,null,null,null,null,null,null,"","","",null,null,null,null,"","","","",null,null,null,null,null,null,null,null,null,null,null,null,null,null,null,null,null,null,null,null,null,null,null,null,null,null,null,null,null,null,null,null,null,null,null,null,null,null,null,null,null,null,null,null,null,null,null,null,null,null,null,null,"",{"$f":"IF($A822=\"\",\"\",IF(VLOOKUP($G822,$H$11:$DO$1000,103,FALSE)=\"\",\"No\",IF(LEFT(VLOOKUP($G822,$H$11:$DO$1000,103,FALSE),3)=\"The\",EM822,VLOOKUP(VLOOKUP($G822,$H$11:$DO$1000,103,FALSE),DeclMatrix!$A$2:$F$5,VLOOKUP('Enrollment Form'!$B822,DeclMatrix!$A$8:$B$12,2,FALSE),FALSE))))","v":""},{"$f":"IF($A822=\"\",\"\",IF(VLOOKUP($G822,$H$11:$DO$1000,106,FALSE)=\"\",\"No\",IF(LEFT(VLOOKUP($G822,$H$11:$DO$1000,106,FALSE),3)=\"The\",EN822,VLOOKUP(VLOOKUP($G822,$H$11:$DO$1000,106,FALSE),DeclMatrix!$A$2:$F$5,VLOOKUP('Enrollment Form'!$B822,DeclMatrix!$A$8:$B$12,2,FALSE),FALSE))))","v":""},{"$f":"IF($A822=\"\",\"\",IF(VLOOKUP($G822,$H$11:$DO$1000,109,FALSE)=\"\",\"No\",IF(LEFT(VLOOKUP($G822,$H$11:$DO$1000,109,FALSE),3)=\"The\",EO822,VLOOKUP(VLOOKUP($G822,$H$11:$DO$1000,109,FALSE),DeclMatrix!$A$2:$F$5,VLOOKUP('Enrollment Form'!$B822,DeclMatrix!$A$8:$B$12,2,FALSE),FALSE))))","v":""},{"$f":"IF($A822=\"\",\"\",IF(VLOOKUP($G822,$H$11:$DO$1000,112,FALSE)=\"\",\"No\",IF(LEFT(VLOOKUP($G822,$H$11:$DO$1000,112,FALSE),3)=\"The\",EP822,VLOOKUP(VLOOKUP($G822,$H$11:$DO$1000,112,FALSE),DeclMatrix!$A$2:$F$5,VLOOKUP('Enrollment Form'!$B822,DeclMatrix!$A$8:$B$12,2,FALSE),FALSE))))","v":""},null,null,null,null,null,null,null,null,"",null,"","","","","","","","","","","",""]
["",null,null,null,null,null,"","",null,null,null,null,null,null,null,null,null,null,null,null,null,null,null,null,null,null,"","","","",null,null,"",null,null,null,null,null,null,null,null,null,null,null,null,null,null,null,null,null,null,null,null,null,null,null,null,null,null,null,"","","",null,null,null,null,"","","","",null,null,null,null,null,null,null,null,null,null,null,null,null,null,null,null,null,null,null,null,null,null,null,null,null,null,null,null,null,null,null,null,null,null,null,null,null,null,null,null,null,null,null,null,null,null,null,null,null,null,null,null,"",{"$f":"IF($A825=\"\",\"\",IF(VLOOKUP($G825,$H$11:$DO$1000,103,FALSE)=\"\",\"No\",IF(LEFT(VLOOKUP($G825,$H$11:$DO$1000,103,FALSE),3)=\"The\",EM825,VLOOKUP(VLOOKUP($G825,$H$11:$DO$1000,103,FALSE),DeclMatrix!$A$2:$F$5,VLOOKUP('Enrollment Form'!$B825,DeclMatrix!$A$8:$B$12,2,FALSE),FALSE))))","v":""},{"$f":"IF($A825=\"\",\"\",IF(VLOOKUP($G825,$H$11:$DO$1000,106,FALSE)=\"\",\"No\",IF(LEFT(VLOOKUP($G825,$H$11:$DO$1000,106,FALSE),3)=\"The\",EN825,VLOOKUP(VLOOKUP($G825,$H$11:$DO$1000,106,FALSE),DeclMatrix!$A$2:$F$5,VLOOKUP('Enrollment Form'!$B825,DeclMatrix!$A$8:$B$12,2,FALSE),FALSE))))","v":""},{"$f":"IF($A825=\"\",\"\",IF(VLOOKUP($G825,$H$11:$DO$1000,109,FALSE)=\"\",\"No\",IF(LEFT(VLOOKUP($G825,$H$11:$DO$1000,109,FALSE),3)=\"The\",EO825,VLOOKUP(VLOOKUP($G825,$H$11:$DO$1000,109,FALSE),DeclMatrix!$A$2:$F$5,VLOOKUP('Enrollment Form'!$B825,DeclMatrix!$A$8:$B$12,2,FALSE),FALSE))))","v":""},{"$f":"IF($A825=\"\",\"\",IF(VLOOKUP($G825,$H$11:$DO$1000,112,FALSE)=\"\",\"No\",IF(LEFT(VLOOKUP($G825,$H$11:$DO$1000,112,FALSE),3)=\"The\",EP825,VLOOKUP(VLOOKUP($G825,$H$11:$DO$1000,112,FALSE),DeclMatrix!$A$2:$F$5,VLOOKUP('Enrollment Form'!$B825,DeclMatrix!$A$8:$B$12,2,FALSE),FALSE))))","v":""},null,null,null,null,null,null,null,null,"",null,"","","","","","","","","","","",""]
["",null,null,null,null,null,"","",null,null,null,null,null,null,null,null,null,null,null,null,null,null,null,null,null,null,"","","","",null,null,"",null,null,null,null,null,null,null,null,null,null,null,null,null,null,null,null,null,null,null,null,null,null,null,null,null,null,null,"","","",null,null,null,null,"","","","",null,null,null,null,null,null,null,null,null,null,null,null,null,null,null,null,null,null,null,null,null,null,null,null,null,null,null,null,null,null,null,null,null,null,null,null,null,null,null,null,null,null,null,null,null,null,null,null,null,null,null,null,"",{"$f":"IF($A826=\"\",\"\",IF(VLOOKUP($G826,$H$11:$DO$1000,103,FALSE)=\"\",\"No\",IF(LEFT(VLOOKUP($G826,$H$11:$DO$1000,103,FALSE),3)=\"The\",EM826,VLOOKUP(VLOOKUP($G826,$H$11:$DO$1000,103,FALSE),DeclMatrix!$A$2:$F$5,VLOOKUP('Enrollment Form'!$B826,DeclMatrix!$A$8:$B$12,2,FALSE),FALSE))))","v":""},{"$f":"IF($A826=\"\",\"\",IF(VLOOKUP($G826,$H$11:$DO$1000,106,FALSE)=\"\",\"No\",IF(LEFT(VLOOKUP($G826,$H$11:$DO$1000,106,FALSE),3)=\"The\",EN826,VLOOKUP(VLOOKUP($G826,$H$11:$DO$1000,106,FALSE),DeclMatrix!$A$2:$F$5,VLOOKUP('Enrollment Form'!$B826,DeclMatrix!$A$8:$B$12,2,FALSE),FALSE))))","v":""},{"$f":"IF($A826=\"\",\"\",IF(VLOOKUP($G826,$H$11:$DO$1000,109,FALSE)=\"\",\"No\",IF(LEFT(VLOOKUP($G826,$H$11:$DO$1000,109,FALSE),3)=\"The\",EO826,VLOOKUP(VLOOKUP($G826,$H$11:$DO$1000,109,FALSE),DeclMatrix!$A$2:$F$5,VLOOKUP('Enrollment Form'!$B826,DeclMatrix!$A$8:$B$12,2,FALSE),FALSE))))","v":""},{"$f":"IF($A826=\"\",\"\",IF(VLOOKUP($G826,$H$11:$DO$1000,112,FALSE)=\"\",\"No\",IF(LEFT(VLOOKUP($G826,$H$11:$DO$1000,112,FALSE),3)=\"The\",EP826,VLOOKUP(VLOOKUP($G826,$H$11:$DO$1000,112,FALSE),DeclMatrix!$A$2:$F$5,VLOOKUP('Enrollment Form'!$B826,DeclMatrix!$A$8:$B$12,2,FALSE),FALSE))))","v":""},null,null,null,null,null,null,null,null,"",null,"","","","","","","","","","","",""]
["",null,null,null,null,null,"","",null,null,null,null,null,null,null,null,null,null,null,null,null,null,null,null,null,null,"","","","",null,null,"",null,null,null,null,null,null,null,null,null,null,null,null,null,null,null,null,null,null,null,null,null,null,null,null,null,null,null,"","","",null,null,null,null,"","","","",null,null,null,null,null,null,null,null,null,null,null,null,null,null,null,null,null,null,null,null,null,null,null,null,null,null,null,null,null,null,null,null,null,null,null,null,null,null,null,null,null,null,null,null,null,null,null,null,null,null,null,null,"",{"$f":"IF($A828=\"\",\"\",IF(VLOOKUP($G828,$H$11:$DO$1000,103,FALSE)=\"\",\"No\",IF(LEFT(VLOOKUP($G828,$H$11:$DO$1000,103,FALSE),3)=\"The\",EM828,VLOOKUP(VLOOKUP($G828,$H$11:$DO$1000,103,FALSE),DeclMatrix!$A$2:$F$5,VLOOKUP('Enrollment Form'!$B828,DeclMatrix!$A$8:$B$12,2,FALSE),FALSE))))","v":""},{"$f":"IF($A828=\"\",\"\",IF(VLOOKUP($G828,$H$11:$DO$1000,106,FALSE)=\"\",\"No\",IF(LEFT(VLOOKUP($G828,$H$11:$DO$1000,106,FALSE),3)=\"The\",EN828,VLOOKUP(VLOOKUP($G828,$H$11:$DO$1000,106,FALSE),DeclMatrix!$A$2:$F$5,VLOOKUP('Enrollment Form'!$B828,DeclMatrix!$A$8:$B$12,2,FALSE),FALSE))))","v":""},{"$f":"IF($A828=\"\",\"\",IF(VLOOKUP($G828,$H$11:$DO$1000,109,FALSE)=\"\",\"No\",IF(LEFT(VLOOKUP($G828,$H$11:$DO$1000,109,FALSE),3)=\"The\",EO828,VLOOKUP(VLOOKUP($G828,$H$11:$DO$1000,109,FALSE),DeclMatrix!$A$2:$F$5,VLOOKUP('Enrollment Form'!$B828,DeclMatrix!$A$8:$B$12,2,FALSE),FALSE))))","v":""},{"$f":"IF($A828=\"\",\"\",IF(VLOOKUP($G828,$H$11:$DO$1000,112,FALSE)=\"\",\"No\",IF(LEFT(VLOOKUP($G828,$H$11:$DO$1000,112,FALSE),3)=\"The\",EP828,VLOOKUP(VLOOKUP($G828,$H$11:$DO$1000,112,FALSE),DeclMatrix!$A$2:$F$5,VLOOKUP('Enrollment Form'!$B828,DeclMatrix!$A$8:$B$12,2,FALSE),FALSE))))","v":""},null,null,null,null,null,null,null,null,"",null,"","","","","","","","","","","",""]
["",null,null,null,null,null,"","",null,null,null,null,null,null,null,null,null,null,null,null,null,null,null,null,null,null,"","","","",null,null,"",null,null,null,null,null,null,null,null,null,null,null,null,null,null,null,null,null,null,null,null,null,null,null,null,null,null,null,"","","",null,null,null,null,"","","","",null,null,null,null,null,null,null,null,null,null,null,null,null,null,null,null,null,null,null,null,null,null,null,null,null,null,null,null,null,null,null,null,null,null,null,null,null,null,null,null,null,null,null,null,null,null,null,null,null,null,null,null,"",{"$f":"IF($A831=\"\",\"\",IF(VLOOKUP($G831,$H$11:$DO$1000,103,FALSE)=\"\",\"No\",IF(LEFT(VLOOKUP($G831,$H$11:$DO$1000,103,FALSE),3)=\"The\",EM831,VLOOKUP(VLOOKUP($G831,$H$11:$DO$1000,103,FALSE),DeclMatrix!$A$2:$F$5,VLOOKUP('Enrollment Form'!$B831,DeclMatrix!$A$8:$B$12,2,FALSE),FALSE))))","v":""},{"$f":"IF($A831=\"\",\"\",IF(VLOOKUP($G831,$H$11:$DO$1000,106,FALSE)=\"\",\"No\",IF(LEFT(VLOOKUP($G831,$H$11:$DO$1000,106,FALSE),3)=\"The\",EN831,VLOOKUP(VLOOKUP($G831,$H$11:$DO$1000,106,FALSE),DeclMatrix!$A$2:$F$5,VLOOKUP('Enrollment Form'!$B831,DeclMatrix!$A$8:$B$12,2,FALSE),FALSE))))","v":""},{"$f":"IF($A831=\"\",\"\",IF(VLOOKUP($G831,$H$11:$DO$1000,109,FALSE)=\"\",\"No\",IF(LEFT(VLOOKUP($G831,$H$11:$DO$1000,109,FALSE),3)=\"The\",EO831,VLOOKUP(VLOOKUP($G831,$H$11:$DO$1000,109,FALSE),DeclMatrix!$A$2:$F$5,VLOOKUP('Enrollment Form'!$B831,DeclMatrix!$A$8:$B$12,2,FALSE),FALSE))))","v":""},{"$f":"IF($A831=\"\",\"\",IF(VLOOKUP($G831,$H$11:$DO$1000,112,FALSE)=\"\",\"No\",IF(LEFT(VLOOKUP($G831,$H$11:$DO$1000,112,FALSE),3)=\"The\",EP831,VLOOKUP(VLOOKUP($G831,$H$11:$DO$1000,112,FALSE),DeclMatrix!$A$2:$F$5,VLOOKUP('Enrollment Form'!$B831,DeclMatrix!$A$8:$B$12,2,FALSE),FALSE))))","v":""},null,null,null,null,null,null,null,null,"",null,"","","","","","","","","","","",""]
["",null,null,null,null,null,"","",null,null,null,null,null,null,null,null,null,null,null,null,null,null,null,null,null,null,"","","","",null,null,"",null,null,null,null,null,null,null,null,null,null,null,null,null,null,null,null,null,null,null,null,null,null,null,null,null,null,null,"","","",null,null,null,null,"","","","",null,null,null,null,null,null,null,null,null,null,null,null,null,null,null,null,null,null,null,null,null,null,null,null,null,null,null,null,null,null,null,null,null,null,null,null,null,null,null,null,null,null,null,null,null,null,null,null,null,null,null,null,"",{"$f":"IF($A834=\"\",\"\",IF(VLOOKUP($G834,$H$11:$DO$1000,103,FALSE)=\"\",\"No\",IF(LEFT(VLOOKUP($G834,$H$11:$DO$1000,103,FALSE),3)=\"The\",EM834,VLOOKUP(VLOOKUP($G834,$H$11:$DO$1000,103,FALSE),DeclMatrix!$A$2:$F$5,VLOOKUP('Enrollment Form'!$B834,DeclMatrix!$A$8:$B$12,2,FALSE),FALSE))))","v":""},{"$f":"IF($A834=\"\",\"\",IF(VLOOKUP($G834,$H$11:$DO$1000,106,FALSE)=\"\",\"No\",IF(LEFT(VLOOKUP($G834,$H$11:$DO$1000,106,FALSE),3)=\"The\",EN834,VLOOKUP(VLOOKUP($G834,$H$11:$DO$1000,106,FALSE),DeclMatrix!$A$2:$F$5,VLOOKUP('Enrollment Form'!$B834,DeclMatrix!$A$8:$B$12,2,FALSE),FALSE))))","v":""},{"$f":"IF($A834=\"\",\"\",IF(VLOOKUP($G834,$H$11:$DO$1000,109,FALSE)=\"\",\"No\",IF(LEFT(VLOOKUP($G834,$H$11:$DO$1000,109,FALSE),3)=\"The\",EO834,VLOOKUP(VLOOKUP($G834,$H$11:$DO$1000,109,FALSE),DeclMatrix!$A$2:$F$5,VLOOKUP('Enrollment Form'!$B834,DeclMatrix!$A$8:$B$12,2,FALSE),FALSE))))","v":""},{"$f":"IF($A834=\"\",\"\",IF(VLOOKUP($G834,$H$11:$DO$1000,112,FALSE)=\"\",\"No\",IF(LEFT(VLOOKUP($G834,$H$11:$DO$1000,112,FALSE),3)=\"The\",EP834,VLOOKUP(VLOOKUP($G834,$H$11:$DO$1000,112,FALSE),DeclMatrix!$A$2:$F$5,VLOOKUP('Enrollment Form'!$B834,DeclMatrix!$A$8:$B$12,2,FALSE),FALSE))))","v":""},null,null,null,null,null,null,null,null,"",null,"","","","","","","","","","","",""]
["",null,null,null,null,null,"","",null,null,null,null,null,null,null,null,null,null,null,null,null,null,null,null,null,null,"","","","",null,null,"",null,null,null,null,null,null,null,null,null,null,null,null,null,null,null,null,null,null,null,null,null,null,null,null,null,null,null,"","","",null,null,null,null,"","","","",null,null,null,null,null,null,null,null,null,null,null,null,null,null,null,null,null,null,null,null,null,null,null,null,null,null,null,null,null,null,null,null,null,null,null,null,null,null,null,null,null,null,null,null,null,null,null,null,null,null,null,null,"",{"$f":"IF($A837=\"\",\"\",IF(VLOOKUP($G837,$H$11:$DO$1000,103,FALSE)=\"\",\"No\",IF(LEFT(VLOOKUP($G837,$H$11:$DO$1000,103,FALSE),3)=\"The\",EM837,VLOOKUP(VLOOKUP($G837,$H$11:$DO$1000,103,FALSE),DeclMatrix!$A$2:$F$5,VLOOKUP('Enrollment Form'!$B837,DeclMatrix!$A$8:$B$12,2,FALSE),FALSE))))","v":""},{"$f":"IF($A837=\"\",\"\",IF(VLOOKUP($G837,$H$11:$DO$1000,106,FALSE)=\"\",\"No\",IF(LEFT(VLOOKUP($G837,$H$11:$DO$1000,106,FALSE),3)=\"The\",EN837,VLOOKUP(VLOOKUP($G837,$H$11:$DO$1000,106,FALSE),DeclMatrix!$A$2:$F$5,VLOOKUP('Enrollment Form'!$B837,DeclMatrix!$A$8:$B$12,2,FALSE),FALSE))))","v":""},{"$f":"IF($A837=\"\",\"\",IF(VLOOKUP($G837,$H$11:$DO$1000,109,FALSE)=\"\",\"No\",IF(LEFT(VLOOKUP($G837,$H$11:$DO$1000,109,FALSE),3)=\"The\",EO837,VLOOKUP(VLOOKUP($G837,$H$11:$DO$1000,109,FALSE),DeclMatrix!$A$2:$F$5,VLOOKUP('Enrollment Form'!$B837,DeclMatrix!$A$8:$B$12,2,FALSE),FALSE))))","v":""},{"$f":"IF($A837=\"\",\"\",IF(VLOOKUP($G837,$H$11:$DO$1000,112,FALSE)=\"\",\"No\",IF(LEFT(VLOOKUP($G837,$H$11:$DO$1000,112,FALSE),3)=\"The\",EP837,VLOOKUP(VLOOKUP($G837,$H$11:$DO$1000,112,FALSE),DeclMatrix!$A$2:$F$5,VLOOKUP('Enrollment Form'!$B837,DeclMatrix!$A$8:$B$12,2,FALSE),FALSE))))","v":""},null,null,null,null,null,null,null,null,"",null,"","","","","","","","","","","",""]
["",null,null,null,null,null,"","",null,null,null,null,null,null,null,null,null,null,null,null,null,null,null,null,null,null,"","","","",null,null,"",null,null,null,null,null,null,null,null,null,null,null,null,null,null,null,null,null,null,null,null,null,null,null,null,null,null,null,"","","",null,null,null,null,"","","","",null,null,null,null,null,null,null,null,null,null,null,null,null,null,null,null,null,null,null,null,null,null,null,null,null,null,null,null,null,null,null,null,null,null,null,null,null,null,null,null,null,null,null,null,null,null,null,null,null,null,null,null,"",{"$f":"IF($A840=\"\",\"\",IF(VLOOKUP($G840,$H$11:$DO$1000,103,FALSE)=\"\",\"No\",IF(LEFT(VLOOKUP($G840,$H$11:$DO$1000,103,FALSE),3)=\"The\",EM840,VLOOKUP(VLOOKUP($G840,$H$11:$DO$1000,103,FALSE),DeclMatrix!$A$2:$F$5,VLOOKUP('Enrollment Form'!$B840,DeclMatrix!$A$8:$B$12,2,FALSE),FALSE))))","v":""},{"$f":"IF($A840=\"\",\"\",IF(VLOOKUP($G840,$H$11:$DO$1000,106,FALSE)=\"\",\"No\",IF(LEFT(VLOOKUP($G840,$H$11:$DO$1000,106,FALSE),3)=\"The\",EN840,VLOOKUP(VLOOKUP($G840,$H$11:$DO$1000,106,FALSE),DeclMatrix!$A$2:$F$5,VLOOKUP('Enrollment Form'!$B840,DeclMatrix!$A$8:$B$12,2,FALSE),FALSE))))","v":""},{"$f":"IF($A840=\"\",\"\",IF(VLOOKUP($G840,$H$11:$DO$1000,109,FALSE)=\"\",\"No\",IF(LEFT(VLOOKUP($G840,$H$11:$DO$1000,109,FALSE),3)=\"The\",EO840,VLOOKUP(VLOOKUP($G840,$H$11:$DO$1000,109,FALSE),DeclMatrix!$A$2:$F$5,VLOOKUP('Enrollment Form'!$B840,DeclMatrix!$A$8:$B$12,2,FALSE),FALSE))))","v":""},{"$f":"IF($A840=\"\",\"\",IF(VLOOKUP($G840,$H$11:$DO$1000,112,FALSE)=\"\",\"No\",IF(LEFT(VLOOKUP($G840,$H$11:$DO$1000,112,FALSE),3)=\"The\",EP840,VLOOKUP(VLOOKUP($G840,$H$11:$DO$1000,112,FALSE),DeclMatrix!$A$2:$F$5,VLOOKUP('Enrollment Form'!$B840,DeclMatrix!$A$8:$B$12,2,FALSE),FALSE))))","v":""},null,null,null,null,null,null,null,null,"",null,"","","","","","","","","","","",""]
["",null,null,null,null,null,{"$f":"IF(A844=\"\",\"\",IF(AND(B844<>\"Subscriber\",B844<>\"\"),G843,\"\"))","v":""},{"$f":"IF(AND(B844=\"Subscriber\",G844<>\"\"),G844,\"\")","v":""},null,null,null,null,null,null,null,null,null,null,null,null,null,null,null,null,null,null,{"$f":"IF(AND($B844=\"Subscriber\",$Z844=\"Yes\"),V844,\"\")","v":""},{"$f":"IF(AND($B844=\"Subscriber\",$Z844=\"Yes\"),W844,\"\")","v":""},{"$f":"IF(AND($B844=\"Subscriber\",$Z844=\"Yes\"),X844,\"\")","v":""},{"$f":"IF(AND($B844=\"Subscriber\",$Z844=\"Yes\"),Y844,\"\")","v":""},null,null,{"$f":"IF(AND(B844=\"Subscriber\",AJ844<>\"\"),\"NS01 - Not Selected\",\"\")","v":""},null,null,null,null,null,null,null,null,null,null,null,null,null,null,null,null,null,null,null,null,null,null,null,null,null,null,null,{"$f":"IF(OR($B844=\"Subscriber\",$B844=\"\"),\"\",IF(OR(VLOOKUP($G844,$H:$BH,53,FALSE)=\"No\",VLOOKUP($G844,$H:$BH,53,FALSE)=\"\"),\"\",IF(VLOOKUP($G844,$H:$BH,53,FALSE)=\"Yes\",VLOOKUP(G844,$H:$BI,32,FALSE))))","v":""},{"$f":"IF(OR($B844=\"Subscriber\",$B844=\"\"),\"\",IF(OR(VLOOKUP($G844,$H:$BH,53,FALSE)=\"No\",VLOOKUP($G844,$H:$BH,53,FALSE)=\"\"),\"\",IF(VLOOKUP($G844,$H:$BH,53,FALSE)=\"Yes\",VLOOKUP(G844,$H:$BI,33,FALSE))))","v":""},{"$f":"IF(OR($B844=\"Subscriber\",$B844=\"\"),\"\",IF(OR(VLOOKUP($G844,$H:$BH,53,FALSE)=\"No\",VLOOKUP($G844,$H:$BH,53,FALSE)=\"\"),\"\",IF(VLOOKUP($G844,$H:$BH,53,FALSE)=\"Yes\",VLOOKUP(G844,$H:$BI,34,FALSE))))","v":""},null,null,null,null,"","","","",null,null,null,null,null,null,null,null,null,null,null,null,null,null,null,null,null,null,null,null,null,null,null,null,null,null,null,null,null,null,null,null,null,null,null,null,null,null,null,null,null,null,null,null,null,null,null,null,null,null,null,null,"",{"$f":"IF($A844=\"\",\"\",IF(VLOOKUP($G844,$H$11:$DO$1000,103,FALSE)=\"\",\"No\",IF(LEFT(VLOOKUP($G844,$H$11:$DO$1000,103,FALSE),3)=\"The\",EM844,VLOOKUP(VLOOKUP($G844,$H$11:$DO$1000,103,FALSE),DeclMatrix!$A$2:$F$5,VLOOKUP('Enrollment Form'!$B844,DeclMatrix!$A$8:$B$12,2,FALSE),FALSE))))","v":""},{"$f":"IF($A844=\"\",\"\",IF(VLOOKUP($G844,$H$11:$DO$1000,106,FALSE)=\"\",\"No\",IF(LEFT(VLOOKUP($G844,$H$11:$DO$1000,106,FALSE),3)=\"The\",EN844,VLOOKUP(VLOOKUP($G844,$H$11:$DO$1000,106,FALSE),DeclMatrix!$A$2:$F$5,VLOOKUP('Enrollment Form'!$B844,DeclMatrix!$A$8:$B$12,2,FALSE),FALSE))))","v":""},{"$f":"IF($A844=\"\",\"\",IF(VLOOKUP($G844,$H$11:$DO$1000,109,FALSE)=\"\",\"No\",IF(LEFT(VLOOKUP($G844,$H$11:$DO$1000,109,FALSE),3)=\"The\",EO844,VLOOKUP(VLOOKUP($G844,$H$11:$DO$1000,109,FALSE),DeclMatrix!$A$2:$F$5,VLOOKUP('Enrollment Form'!$B844,DeclMatrix!$A$8:$B$12,2,FALSE),FALSE))))","v":""},{"$f":"IF($A844=\"\",\"\",IF(VLOOKUP($G844,$H$11:$DO$1000,112,FALSE)=\"\",\"No\",IF(LEFT(VLOOKUP($G844,$H$11:$DO$1000,112,FALSE),3)=\"The\",EP844,VLOOKUP(VLOOKUP($G844,$H$11:$DO$1000,112,FALSE),DeclMatrix!$A$2:$F$5,VLOOKUP('Enrollment Form'!$B844,DeclMatrix!$A$8:$B$12,2,FALSE),FALSE))))","v":""},null,null,null,null,null,null,null,null,"",null,"","","","","","","","","","","",""]
["",null,null,null,null,null,"","",null,null,null,null,null,null,null,null,null,null,null,null,null,null,null,null,null,null,"","","","",null,null,"",null,null,null,null,null,null,null,null,null,null,null,null,null,null,null,null,null,null,null,null,null,null,null,null,null,null,null,"","","",null,null,null,null,"","","","",null,null,null,null,null,null,null,null,null,null,null,null,null,null,null,null,null,null,null,null,null,null,null,null,null,null,null,null,null,null,null,null,null,null,null,null,null,null,null,null,null,null,null,null,null,null,null,null,null,null,null,null,"",{"$f":"IF($A847=\"\",\"\",IF(VLOOKUP($G847,$H$11:$DO$1000,103,FALSE)=\"\",\"No\",IF(LEFT(VLOOKUP($G847,$H$11:$DO$1000,103,FALSE),3)=\"The\",EM847,VLOOKUP(VLOOKUP($G847,$H$11:$DO$1000,103,FALSE),DeclMatrix!$A$2:$F$5,VLOOKUP('Enrollment Form'!$B847,DeclMatrix!$A$8:$B$12,2,FALSE),FALSE))))","v":""},{"$f":"IF($A847=\"\",\"\",IF(VLOOKUP($G847,$H$11:$DO$1000,106,FALSE)=\"\",\"No\",IF(LEFT(VLOOKUP($G847,$H$11:$DO$1000,106,FALSE),3)=\"The\",EN847,VLOOKUP(VLOOKUP($G847,$H$11:$DO$1000,106,FALSE),DeclMatrix!$A$2:$F$5,VLOOKUP('Enrollment Form'!$B847,DeclMatrix!$A$8:$B$12,2,FALSE),FALSE))))","v":""},{"$f":"IF($A847=\"\",\"\",IF(VLOOKUP($G847,$H$11:$DO$1000,109,FALSE)=\"\",\"No\",IF(LEFT(VLOOKUP($G847,$H$11:$DO$1000,109,FALSE),3)=\"The\",EO847,VLOOKUP(VLOOKUP($G847,$H$11:$DO$1000,109,FALSE),DeclMatrix!$A$2:$F$5,VLOOKUP('Enrollment Form'!$B847,DeclMatrix!$A$8:$B$12,2,FALSE),FALSE))))","v":""},{"$f":"IF($A847=\"\",\"\",IF(VLOOKUP($G847,$H$11:$DO$1000,112,FALSE)=\"\",\"No\",IF(LEFT(VLOOKUP($G847,$H$11:$DO$1000,112,FALSE),3)=\"The\",EP847,VLOOKUP(VLOOKUP($G847,$H$11:$DO$1000,112,FALSE),DeclMatrix!$A$2:$F$5,VLOOKUP('Enrollment Form'!$B847,DeclMatrix!$A$8:$B$12,2,FALSE),FALSE))))","v":""},null,null,null,null,null,null,null,null,"",null,"","","","","","","","","","","",""]
["",null,null,null,null,null,"","",null,null,null,null,null,null,null,null,null,null,null,null,null,null,null,null,null,null,"","","","",null,null,"",null,null,null,null,null,null,null,null,null,null,null,null,null,null,null,null,null,null,null,null,null,null,null,null,null,null,null,"","","",null,null,null,null,"","","","",null,null,null,null,null,null,null,null,null,null,null,null,null,null,null,null,null,null,null,null,null,null,null,null,null,null,null,null,null,null,null,null,null,null,null,null,null,null,null,null,null,null,null,null,null,null,null,null,null,null,null,null,"",{"$f":"IF($A848=\"\",\"\",IF(VLOOKUP($G848,$H$11:$DO$1000,103,FALSE)=\"\",\"No\",IF(LEFT(VLOOKUP($G848,$H$11:$DO$1000,103,FALSE),3)=\"The\",EM848,VLOOKUP(VLOOKUP($G848,$H$11:$DO$1000,103,FALSE),DeclMatrix!$A$2:$F$5,VLOOKUP('Enrollment Form'!$B848,DeclMatrix!$A$8:$B$12,2,FALSE),FALSE))))","v":""},{"$f":"IF($A848=\"\",\"\",IF(VLOOKUP($G848,$H$11:$DO$1000,106,FALSE)=\"\",\"No\",IF(LEFT(VLOOKUP($G848,$H$11:$DO$1000,106,FALSE),3)=\"The\",EN848,VLOOKUP(VLOOKUP($G848,$H$11:$DO$1000,106,FALSE),DeclMatrix!$A$2:$F$5,VLOOKUP('Enrollment Form'!$B848,DeclMatrix!$A$8:$B$12,2,FALSE),FALSE))))","v":""},{"$f":"IF($A848=\"\",\"\",IF(VLOOKUP($G848,$H$11:$DO$1000,109,FALSE)=\"\",\"No\",IF(LEFT(VLOOKUP($G848,$H$11:$DO$1000,109,FALSE),3)=\"The\",EO848,VLOOKUP(VLOOKUP($G848,$H$11:$DO$1000,109,FALSE),DeclMatrix!$A$2:$F$5,VLOOKUP('Enrollment Form'!$B848,DeclMatrix!$A$8:$B$12,2,FALSE),FALSE))))","v":""},{"$f":"IF($A848=\"\",\"\",IF(VLOOKUP($G848,$H$11:$DO$1000,112,FALSE)=\"\",\"No\",IF(LEFT(VLOOKUP($G848,$H$11:$DO$1000,112,FALSE),3)=\"The\",EP848,VLOOKUP(VLOOKUP($G848,$H$11:$DO$1000,112,FALSE),DeclMatrix!$A$2:$F$5,VLOOKUP('Enrollment Form'!$B848,DeclMatrix!$A$8:$B$12,2,FALSE),FALSE))))","v":""},null,null,null,null,null,null,null,null,"",null,"","","","","","","","","","","",""]
["",null,null,null,null,null,"","",null,null,null,null,null,null,null,null,null,null,null,null,null,null,null,null,null,null,"","","","",null,null,"",null,null,null,null,null,null,null,null,null,null,null,null,null,null,null,null,null,null,null,null,null,null,null,null,null,null,null,"","","",null,null,null,null,"","","","",null,null,null,null,null,null,null,null,null,null,null,null,null,null,null,null,null,null,null,null,null,null,null,null,null,null,null,null,null,null,null,null,null,null,null,null,null,null,null,null,null,null,null,null,null,null,null,null,null,null,null,null,"",{"$f":"IF($A850=\"\",\"\",IF(VLOOKUP($G850,$H$11:$DO$1000,103,FALSE)=\"\",\"No\",IF(LEFT(VLOOKUP($G850,$H$11:$DO$1000,103,FALSE),3)=\"The\",EM850,VLOOKUP(VLOOKUP($G850,$H$11:$DO$1000,103,FALSE),DeclMatrix!$A$2:$F$5,VLOOKUP('Enrollment Form'!$B850,DeclMatrix!$A$8:$B$12,2,FALSE),FALSE))))","v":""},{"$f":"IF($A850=\"\",\"\",IF(VLOOKUP($G850,$H$11:$DO$1000,106,FALSE)=\"\",\"No\",IF(LEFT(VLOOKUP($G850,$H$11:$DO$1000,106,FALSE),3)=\"The\",EN850,VLOOKUP(VLOOKUP($G850,$H$11:$DO$1000,106,FALSE),DeclMatrix!$A$2:$F$5,VLOOKUP('Enrollment Form'!$B850,DeclMatrix!$A$8:$B$12,2,FALSE),FALSE))))","v":""},{"$f":"IF($A850=\"\",\"\",IF(VLOOKUP($G850,$H$11:$DO$1000,109,FALSE)=\"\",\"No\",IF(LEFT(VLOOKUP($G850,$H$11:$DO$1000,109,FALSE),3)=\"The\",EO850,VLOOKUP(VLOOKUP($G850,$H$11:$DO$1000,109,FALSE),DeclMatrix!$A$2:$F$5,VLOOKUP('Enrollment Form'!$B850,DeclMatrix!$A$8:$B$12,2,FALSE),FALSE))))","v":""},{"$f":"IF($A850=\"\",\"\",IF(VLOOKUP($G850,$H$11:$DO$1000,112,FALSE)=\"\",\"No\",IF(LEFT(VLOOKUP($G850,$H$11:$DO$1000,112,FALSE),3)=\"The\",EP850,VLOOKUP(VLOOKUP($G850,$H$11:$DO$1000,112,FALSE),DeclMatrix!$A$2:$F$5,VLOOKUP('Enrollment Form'!$B850,DeclMatrix!$A$8:$B$12,2,FALSE),FALSE))))","v":""},null,null,null,null,null,null,null,null,"",null,"","","","","","","","","","","",""]
["",null,null,null,null,null,"","",null,null,null,null,null,null,null,null,null,null,null,null,null,null,null,null,null,null,"","","","",null,null,"",null,null,null,null,null,null,null,null,null,null,null,null,null,null,null,null,null,null,null,null,null,null,null,null,null,null,null,"","","",null,null,null,null,"","","","",null,null,null,null,null,null,null,null,null,null,null,null,null,null,null,null,null,null,null,null,null,null,null,null,null,null,null,null,null,null,null,null,null,null,null,null,null,null,null,null,null,null,null,null,null,null,null,null,null,null,null,null,"",{"$f":"IF($A853=\"\",\"\",IF(VLOOKUP($G853,$H$11:$DO$1000,103,FALSE)=\"\",\"No\",IF(LEFT(VLOOKUP($G853,$H$11:$DO$1000,103,FALSE),3)=\"The\",EM853,VLOOKUP(VLOOKUP($G853,$H$11:$DO$1000,103,FALSE),DeclMatrix!$A$2:$F$5,VLOOKUP('Enrollment Form'!$B853,DeclMatrix!$A$8:$B$12,2,FALSE),FALSE))))","v":""},{"$f":"IF($A853=\"\",\"\",IF(VLOOKUP($G853,$H$11:$DO$1000,106,FALSE)=\"\",\"No\",IF(LEFT(VLOOKUP($G853,$H$11:$DO$1000,106,FALSE),3)=\"The\",EN853,VLOOKUP(VLOOKUP($G853,$H$11:$DO$1000,106,FALSE),DeclMatrix!$A$2:$F$5,VLOOKUP('Enrollment Form'!$B853,DeclMatrix!$A$8:$B$12,2,FALSE),FALSE))))","v":""},{"$f":"IF($A853=\"\",\"\",IF(VLOOKUP($G853,$H$11:$DO$1000,109,FALSE)=\"\",\"No\",IF(LEFT(VLOOKUP($G853,$H$11:$DO$1000,109,FALSE),3)=\"The\",EO853,VLOOKUP(VLOOKUP($G853,$H$11:$DO$1000,109,FALSE),DeclMatrix!$A$2:$F$5,VLOOKUP('Enrollment Form'!$B853,DeclMatrix!$A$8:$B$12,2,FALSE),FALSE))))","v":""},{"$f":"IF($A853=\"\",\"\",IF(VLOOKUP($G853,$H$11:$DO$1000,112,FALSE)=\"\",\"No\",IF(LEFT(VLOOKUP($G853,$H$11:$DO$1000,112,FALSE),3)=\"The\",EP853,VLOOKUP(VLOOKUP($G853,$H$11:$DO$1000,112,FALSE),DeclMatrix!$A$2:$F$5,VLOOKUP('Enrollment Form'!$B853,DeclMatrix!$A$8:$B$12,2,FALSE),FALSE))))","v":""},null,null,null,null,null,null,null,null,"",null,"","","","","","","","","","","",""]
["",null,null,null,null,null,"","",null,null,null,null,null,null,null,null,null,null,null,null,null,null,null,null,null,null,"","","","",null,null,"",null,null,null,null,null,null,null,null,null,null,null,null,null,null,null,null,null,null,null,null,null,null,null,null,null,null,null,"","","",null,null,null,null,"","","","",null,null,null,null,null,null,null,null,null,null,null,null,null,null,null,null,null,null,null,null,null,null,null,null,null,null,null,null,null,null,null,null,null,null,null,null,null,null,null,null,null,null,null,null,null,null,null,null,null,null,null,null,"",{"$f":"IF($A857=\"\",\"\",IF(VLOOKUP($G857,$H$11:$DO$1000,103,FALSE)=\"\",\"No\",IF(LEFT(VLOOKUP($G857,$H$11:$DO$1000,103,FALSE),3)=\"The\",EM857,VLOOKUP(VLOOKUP($G857,$H$11:$DO$1000,103,FALSE),DeclMatrix!$A$2:$F$5,VLOOKUP('Enrollment Form'!$B857,DeclMatrix!$A$8:$B$12,2,FALSE),FALSE))))","v":""},{"$f":"IF($A857=\"\",\"\",IF(VLOOKUP($G857,$H$11:$DO$1000,106,FALSE)=\"\",\"No\",IF(LEFT(VLOOKUP($G857,$H$11:$DO$1000,106,FALSE),3)=\"The\",EN857,VLOOKUP(VLOOKUP($G857,$H$11:$DO$1000,106,FALSE),DeclMatrix!$A$2:$F$5,VLOOKUP('Enrollment Form'!$B857,DeclMatrix!$A$8:$B$12,2,FALSE),FALSE))))","v":""},{"$f":"IF($A857=\"\",\"\",IF(VLOOKUP($G857,$H$11:$DO$1000,109,FALSE)=\"\",\"No\",IF(LEFT(VLOOKUP($G857,$H$11:$DO$1000,109,FALSE),3)=\"The\",EO857,VLOOKUP(VLOOKUP($G857,$H$11:$DO$1000,109,FALSE),DeclMatrix!$A$2:$F$5,VLOOKUP('Enrollment Form'!$B857,DeclMatrix!$A$8:$B$12,2,FALSE),FALSE))))","v":""},{"$f":"IF($A857=\"\",\"\",IF(VLOOKUP($G857,$H$11:$DO$1000,112,FALSE)=\"\",\"No\",IF(LEFT(VLOOKUP($G857,$H$11:$DO$1000,112,FALSE),3)=\"The\",EP857,VLOOKUP(VLOOKUP($G857,$H$11:$DO$1000,112,FALSE),DeclMatrix!$A$2:$F$5,VLOOKUP('Enrollment Form'!$B857,DeclMatrix!$A$8:$B$12,2,FALSE),FALSE))))","v":""},null,null,null,null,null,null,null,null,"",null,"","","","","","","","","","","",""]
["",null,null,null,null,null,"","",null,null,null,null,null,null,null,null,null,null,null,null,null,null,null,null,null,null,"","","","",null,null,"",null,null,null,null,null,null,null,null,null,null,null,null,null,null,null,null,null,null,null,null,null,null,null,null,null,null,null,"","","",null,null,null,null,"","","","",null,null,null,null,null,null,null,null,null,null,null,null,null,null,null,null,null,null,null,null,null,null,null,null,null,null,null,null,null,null,null,null,null,null,null,null,null,null,null,null,null,null,null,null,null,null,null,null,null,null,null,null,"",{"$f":"IF($A859=\"\",\"\",IF(VLOOKUP($G859,$H$11:$DO$1000,103,FALSE)=\"\",\"No\",IF(LEFT(VLOOKUP($G859,$H$11:$DO$1000,103,FALSE),3)=\"The\",EM859,VLOOKUP(VLOOKUP($G859,$H$11:$DO$1000,103,FALSE),DeclMatrix!$A$2:$F$5,VLOOKUP('Enrollment Form'!$B859,DeclMatrix!$A$8:$B$12,2,FALSE),FALSE))))","v":""},{"$f":"IF($A859=\"\",\"\",IF(VLOOKUP($G859,$H$11:$DO$1000,106,FALSE)=\"\",\"No\",IF(LEFT(VLOOKUP($G859,$H$11:$DO$1000,106,FALSE),3)=\"The\",EN859,VLOOKUP(VLOOKUP($G859,$H$11:$DO$1000,106,FALSE),DeclMatrix!$A$2:$F$5,VLOOKUP('Enrollment Form'!$B859,DeclMatrix!$A$8:$B$12,2,FALSE),FALSE))))","v":""},{"$f":"IF($A859=\"\",\"\",IF(VLOOKUP($G859,$H$11:$DO$1000,109,FALSE)=\"\",\"No\",IF(LEFT(VLOOKUP($G859,$H$11:$DO$1000,109,FALSE),3)=\"The\",EO859,VLOOKUP(VLOOKUP($G859,$H$11:$DO$1000,109,FALSE),DeclMatrix!$A$2:$F$5,VLOOKUP('Enrollment Form'!$B859,DeclMatrix!$A$8:$B$12,2,FALSE),FALSE))))","v":""},{"$f":"IF($A859=\"\",\"\",IF(VLOOKUP($G859,$H$11:$DO$1000,112,FALSE)=\"\",\"No\",IF(LEFT(VLOOKUP($G859,$H$11:$DO$1000,112,FALSE),3)=\"The\",EP859,VLOOKUP(VLOOKUP($G859,$H$11:$DO$1000,112,FALSE),DeclMatrix!$A$2:$F$5,VLOOKUP('Enrollment Form'!$B859,DeclMatrix!$A$8:$B$12,2,FALSE),FALSE))))","v":""},null,null,null,null,null,null,null,null,"",null,"","","","","","","","","","","",""]
["",null,null,null,null,null,"","",null,null,null,null,null,null,null,null,null,null,null,null,null,null,null,null,null,null,"","","","",null,null,"",null,null,null,null,null,null,null,null,null,null,null,null,null,null,null,null,null,null,null,null,null,null,null,null,null,null,null,"","","",null,null,null,null,"","","","",null,null,null,null,null,null,null,null,null,null,null,null,null,null,null,null,null,null,null,null,null,null,null,null,null,null,null,null,null,null,null,null,null,null,null,null,null,null,null,null,null,null,null,null,null,null,null,null,null,null,null,null,"",{"$f":"IF($A862=\"\",\"\",IF(VLOOKUP($G862,$H$11:$DO$1000,103,FALSE)=\"\",\"No\",IF(LEFT(VLOOKUP($G862,$H$11:$DO$1000,103,FALSE),3)=\"The\",EM862,VLOOKUP(VLOOKUP($G862,$H$11:$DO$1000,103,FALSE),DeclMatrix!$A$2:$F$5,VLOOKUP('Enrollment Form'!$B862,DeclMatrix!$A$8:$B$12,2,FALSE),FALSE))))","v":""},{"$f":"IF($A862=\"\",\"\",IF(VLOOKUP($G862,$H$11:$DO$1000,106,FALSE)=\"\",\"No\",IF(LEFT(VLOOKUP($G862,$H$11:$DO$1000,106,FALSE),3)=\"The\",EN862,VLOOKUP(VLOOKUP($G862,$H$11:$DO$1000,106,FALSE),DeclMatrix!$A$2:$F$5,VLOOKUP('Enrollment Form'!$B862,DeclMatrix!$A$8:$B$12,2,FALSE),FALSE))))","v":""},{"$f":"IF($A862=\"\",\"\",IF(VLOOKUP($G862,$H$11:$DO$1000,109,FALSE)=\"\",\"No\",IF(LEFT(VLOOKUP($G862,$H$11:$DO$1000,109,FALSE),3)=\"The\",EO862,VLOOKUP(VLOOKUP($G862,$H$11:$DO$1000,109,FALSE),DeclMatrix!$A$2:$F$5,VLOOKUP('Enrollment Form'!$B862,DeclMatrix!$A$8:$B$12,2,FALSE),FALSE))))","v":""},{"$f":"IF($A862=\"\",\"\",IF(VLOOKUP($G862,$H$11:$DO$1000,112,FALSE)=\"\",\"No\",IF(LEFT(VLOOKUP($G862,$H$11:$DO$1000,112,FALSE),3)=\"The\",EP862,VLOOKUP(VLOOKUP($G862,$H$11:$DO$1000,112,FALSE),DeclMatrix!$A$2:$F$5,VLOOKUP('Enrollment Form'!$B862,DeclMatrix!$A$8:$B$12,2,FALSE),FALSE))))","v":""},null,null,null,null,null,null,null,null,"",null,"","","","","","","","","","","",""]
["",null,null,null,null,null,"","",null,null,null,null,null,null,null,null,null,null,null,null,null,null,null,null,null,null,"","","","",null,null,"",null,null,null,null,null,null,null,null,null,null,null,null,null,null,null,null,null,null,null,null,null,null,null,null,null,null,null,"","","",null,null,null,null,"","","","",null,null,null,null,null,null,null,null,null,null,null,null,null,null,null,null,null,null,null,null,null,null,null,null,null,null,null,null,null,null,null,null,null,null,null,null,null,null,null,null,null,null,null,null,null,null,null,null,null,null,null,null,"",{"$f":"IF($A866=\"\",\"\",IF(VLOOKUP($G866,$H$11:$DO$1000,103,FALSE)=\"\",\"No\",IF(LEFT(VLOOKUP($G866,$H$11:$DO$1000,103,FALSE),3)=\"The\",EM866,VLOOKUP(VLOOKUP($G866,$H$11:$DO$1000,103,FALSE),DeclMatrix!$A$2:$F$5,VLOOKUP('Enrollment Form'!$B866,DeclMatrix!$A$8:$B$12,2,FALSE),FALSE))))","v":""},{"$f":"IF($A866=\"\",\"\",IF(VLOOKUP($G866,$H$11:$DO$1000,106,FALSE)=\"\",\"No\",IF(LEFT(VLOOKUP($G866,$H$11:$DO$1000,106,FALSE),3)=\"The\",EN866,VLOOKUP(VLOOKUP($G866,$H$11:$DO$1000,106,FALSE),DeclMatrix!$A$2:$F$5,VLOOKUP('Enrollment Form'!$B866,DeclMatrix!$A$8:$B$12,2,FALSE),FALSE))))","v":""},{"$f":"IF($A866=\"\",\"\",IF(VLOOKUP($G866,$H$11:$DO$1000,109,FALSE)=\"\",\"No\",IF(LEFT(VLOOKUP($G866,$H$11:$DO$1000,109,FALSE),3)=\"The\",EO866,VLOOKUP(VLOOKUP($G866,$H$11:$DO$1000,109,FALSE),DeclMatrix!$A$2:$F$5,VLOOKUP('Enrollment Form'!$B866,DeclMatrix!$A$8:$B$12,2,FALSE),FALSE))))","v":""},{"$f":"IF($A866=\"\",\"\",IF(VLOOKUP($G866,$H$11:$DO$1000,112,FALSE)=\"\",\"No\",IF(LEFT(VLOOKUP($G866,$H$11:$DO$1000,112,FALSE),3)=\"The\",EP866,VLOOKUP(VLOOKUP($G866,$H$11:$DO$1000,112,FALSE),DeclMatrix!$A$2:$F$5,VLOOKUP('Enrollment Form'!$B866,DeclMatrix!$A$8:$B$12,2,FALSE),FALSE))))","v":""},null,null,null,null,null,null,null,null,"",null,"","","","","","","","","","","",""]
["",null,null,null,null,null,"","",null,null,null,null,null,null,null,null,null,null,null,null,null,null,null,null,null,null,"","","","",null,null,"",null,null,null,null,null,null,null,null,null,null,null,null,null,null,null,null,null,null,null,null,null,null,null,null,null,null,null,"","","",null,null,null,null,"","","","",null,null,null,null,null,null,null,null,null,null,null,null,null,null,null,null,null,null,null,null,null,null,null,null,null,null,null,null,null,null,null,null,null,null,null,null,null,null,null,null,null,null,null,null,null,null,null,null,null,null,null,null,"",{"$f":"IF($A869=\"\",\"\",IF(VLOOKUP($G869,$H$11:$DO$1000,103,FALSE)=\"\",\"No\",IF(LEFT(VLOOKUP($G869,$H$11:$DO$1000,103,FALSE),3)=\"The\",EM869,VLOOKUP(VLOOKUP($G869,$H$11:$DO$1000,103,FALSE),DeclMatrix!$A$2:$F$5,VLOOKUP('Enrollment Form'!$B869,DeclMatrix!$A$8:$B$12,2,FALSE),FALSE))))","v":""},{"$f":"IF($A869=\"\",\"\",IF(VLOOKUP($G869,$H$11:$DO$1000,106,FALSE)=\"\",\"No\",IF(LEFT(VLOOKUP($G869,$H$11:$DO$1000,106,FALSE),3)=\"The\",EN869,VLOOKUP(VLOOKUP($G869,$H$11:$DO$1000,106,FALSE),DeclMatrix!$A$2:$F$5,VLOOKUP('Enrollment Form'!$B869,DeclMatrix!$A$8:$B$12,2,FALSE),FALSE))))","v":""},{"$f":"IF($A869=\"\",\"\",IF(VLOOKUP($G869,$H$11:$DO$1000,109,FALSE)=\"\",\"No\",IF(LEFT(VLOOKUP($G869,$H$11:$DO$1000,109,FALSE),3)=\"The\",EO869,VLOOKUP(VLOOKUP($G869,$H$11:$DO$1000,109,FALSE),DeclMatrix!$A$2:$F$5,VLOOKUP('Enrollment Form'!$B869,DeclMatrix!$A$8:$B$12,2,FALSE),FALSE))))","v":""},{"$f":"IF($A869=\"\",\"\",IF(VLOOKUP($G869,$H$11:$DO$1000,112,FALSE)=\"\",\"No\",IF(LEFT(VLOOKUP($G869,$H$11:$DO$1000,112,FALSE),3)=\"The\",EP869,VLOOKUP(VLOOKUP($G869,$H$11:$DO$1000,112,FALSE),DeclMatrix!$A$2:$F$5,VLOOKUP('Enrollment Form'!$B869,DeclMatrix!$A$8:$B$12,2,FALSE),FALSE))))","v":""},null,null,null,null,null,null,null,null,"",null,"","","","","","","","","","","",""]
["",null,null,null,null,null,"","",null,null,null,null,null,null,null,null,null,null,null,null,null,null,null,null,null,null,"","","","",null,null,"",null,null,null,null,null,null,null,null,null,null,null,null,null,null,null,null,null,null,null,null,null,null,null,null,null,null,null,"","","",null,null,null,null,"","","","",null,null,null,null,null,null,null,null,null,null,null,null,null,null,null,null,null,null,null,null,null,null,null,null,null,null,null,null,null,null,null,null,null,null,null,null,null,null,null,null,null,null,null,null,null,null,null,null,null,null,null,null,"",{"$f":"IF($A870=\"\",\"\",IF(VLOOKUP($G870,$H$11:$DO$1000,103,FALSE)=\"\",\"No\",IF(LEFT(VLOOKUP($G870,$H$11:$DO$1000,103,FALSE),3)=\"The\",EM870,VLOOKUP(VLOOKUP($G870,$H$11:$DO$1000,103,FALSE),DeclMatrix!$A$2:$F$5,VLOOKUP('Enrollment Form'!$B870,DeclMatrix!$A$8:$B$12,2,FALSE),FALSE))))","v":""},{"$f":"IF($A870=\"\",\"\",IF(VLOOKUP($G870,$H$11:$DO$1000,106,FALSE)=\"\",\"No\",IF(LEFT(VLOOKUP($G870,$H$11:$DO$1000,106,FALSE),3)=\"The\",EN870,VLOOKUP(VLOOKUP($G870,$H$11:$DO$1000,106,FALSE),DeclMatrix!$A$2:$F$5,VLOOKUP('Enrollment Form'!$B870,DeclMatrix!$A$8:$B$12,2,FALSE),FALSE))))","v":""},{"$f":"IF($A870=\"\",\"\",IF(VLOOKUP($G870,$H$11:$DO$1000,109,FALSE)=\"\",\"No\",IF(LEFT(VLOOKUP($G870,$H$11:$DO$1000,109,FALSE),3)=\"The\",EO870,VLOOKUP(VLOOKUP($G870,$H$11:$DO$1000,109,FALSE),DeclMatrix!$A$2:$F$5,VLOOKUP('Enrollment Form'!$B870,DeclMatrix!$A$8:$B$12,2,FALSE),FALSE))))","v":""},{"$f":"IF($A870=\"\",\"\",IF(VLOOKUP($G870,$H$11:$DO$1000,112,FALSE)=\"\",\"No\",IF(LEFT(VLOOKUP($G870,$H$11:$DO$1000,112,FALSE),3)=\"The\",EP870,VLOOKUP(VLOOKUP($G870,$H$11:$DO$1000,112,FALSE),DeclMatrix!$A$2:$F$5,VLOOKUP('Enrollment Form'!$B870,DeclMatrix!$A$8:$B$12,2,FALSE),FALSE))))","v":""},null,null,null,null,null,null,null,null,"",null,"","","","","","","","","","","",""]
["",null,null,null,null,null,"","",null,null,null,null,null,null,null,null,null,null,null,null,null,null,null,null,null,null,"","","","",null,null,"",null,null,null,null,null,null,null,null,null,null,null,null,null,null,null,null,null,null,null,null,null,null,null,null,null,null,null,"","","",null,null,null,null,"","","","",null,null,null,null,null,null,null,null,null,null,null,null,null,null,null,null,null,null,null,null,null,null,null,null,null,null,null,null,null,null,null,null,null,null,null,null,null,null,null,null,null,null,null,null,null,null,null,null,null,null,null,null,"",{"$f":"IF($A872=\"\",\"\",IF(VLOOKUP($G872,$H$11:$DO$1000,103,FALSE)=\"\",\"No\",IF(LEFT(VLOOKUP($G872,$H$11:$DO$1000,103,FALSE),3)=\"The\",EM872,VLOOKUP(VLOOKUP($G872,$H$11:$DO$1000,103,FALSE),DeclMatrix!$A$2:$F$5,VLOOKUP('Enrollment Form'!$B872,DeclMatrix!$A$8:$B$12,2,FALSE),FALSE))))","v":""},{"$f":"IF($A872=\"\",\"\",IF(VLOOKUP($G872,$H$11:$DO$1000,106,FALSE)=\"\",\"No\",IF(LEFT(VLOOKUP($G872,$H$11:$DO$1000,106,FALSE),3)=\"The\",EN872,VLOOKUP(VLOOKUP($G872,$H$11:$DO$1000,106,FALSE),DeclMatrix!$A$2:$F$5,VLOOKUP('Enrollment Form'!$B872,DeclMatrix!$A$8:$B$12,2,FALSE),FALSE))))","v":""},{"$f":"IF($A872=\"\",\"\",IF(VLOOKUP($G872,$H$11:$DO$1000,109,FALSE)=\"\",\"No\",IF(LEFT(VLOOKUP($G872,$H$11:$DO$1000,109,FALSE),3)=\"The\",EO872,VLOOKUP(VLOOKUP($G872,$H$11:$DO$1000,109,FALSE),DeclMatrix!$A$2:$F$5,VLOOKUP('Enrollment Form'!$B872,DeclMatrix!$A$8:$B$12,2,FALSE),FALSE))))","v":""},{"$f":"IF($A872=\"\",\"\",IF(VLOOKUP($G872,$H$11:$DO$1000,112,FALSE)=\"\",\"No\",IF(LEFT(VLOOKUP($G872,$H$11:$DO$1000,112,FALSE),3)=\"The\",EP872,VLOOKUP(VLOOKUP($G872,$H$11:$DO$1000,112,FALSE),DeclMatrix!$A$2:$F$5,VLOOKUP('Enrollment Form'!$B872,DeclMatrix!$A$8:$B$12,2,FALSE),FALSE))))","v":""},null,null,null,null,null,null,null,null,"",null,"","","","","","","","","","","",""]
["",null,null,null,null,null,"","",null,null,null,null,null,null,null,null,null,null,null,null,null,null,null,null,null,null,"","","","",null,null,"",null,null,null,null,null,null,null,null,null,null,null,null,null,null,null,null,null,null,null,null,null,null,null,null,null,null,null,"","","",null,null,null,null,"","","","",null,null,null,null,null,null,null,null,null,null,null,null,null,null,null,null,null,null,null,null,null,null,null,null,null,null,null,null,null,null,null,null,null,null,null,null,null,null,null,null,null,null,null,null,null,null,null,null,null,null,null,null,"",{"$f":"IF($A875=\"\",\"\",IF(VLOOKUP($G875,$H$11:$DO$1000,103,FALSE)=\"\",\"No\",IF(LEFT(VLOOKUP($G875,$H$11:$DO$1000,103,FALSE),3)=\"The\",EM875,VLOOKUP(VLOOKUP($G875,$H$11:$DO$1000,103,FALSE),DeclMatrix!$A$2:$F$5,VLOOKUP('Enrollment Form'!$B875,DeclMatrix!$A$8:$B$12,2,FALSE),FALSE))))","v":""},{"$f":"IF($A875=\"\",\"\",IF(VLOOKUP($G875,$H$11:$DO$1000,106,FALSE)=\"\",\"No\",IF(LEFT(VLOOKUP($G875,$H$11:$DO$1000,106,FALSE),3)=\"The\",EN875,VLOOKUP(VLOOKUP($G875,$H$11:$DO$1000,106,FALSE),DeclMatrix!$A$2:$F$5,VLOOKUP('Enrollment Form'!$B875,DeclMatrix!$A$8:$B$12,2,FALSE),FALSE))))","v":""},{"$f":"IF($A875=\"\",\"\",IF(VLOOKUP($G875,$H$11:$DO$1000,109,FALSE)=\"\",\"No\",IF(LEFT(VLOOKUP($G875,$H$11:$DO$1000,109,FALSE),3)=\"The\",EO875,VLOOKUP(VLOOKUP($G875,$H$11:$DO$1000,109,FALSE),DeclMatrix!$A$2:$F$5,VLOOKUP('Enrollment Form'!$B875,DeclMatrix!$A$8:$B$12,2,FALSE),FALSE))))","v":""},{"$f":"IF($A875=\"\",\"\",IF(VLOOKUP($G875,$H$11:$DO$1000,112,FALSE)=\"\",\"No\",IF(LEFT(VLOOKUP($G875,$H$11:$DO$1000,112,FALSE),3)=\"The\",EP875,VLOOKUP(VLOOKUP($G875,$H$11:$DO$1000,112,FALSE),DeclMatrix!$A$2:$F$5,VLOOKUP('Enrollment Form'!$B875,DeclMatrix!$A$8:$B$12,2,FALSE),FALSE))))","v":""},null,null,null,null,null,null,null,null,"",null,"","","","","","","","","","","",""]
["",null,null,null,null,null,"","",null,null,null,null,null,null,null,null,null,null,null,null,null,null,null,null,null,null,"","","","",null,null,"",null,null,null,null,null,null,null,null,null,null,null,null,null,null,null,null,null,null,null,null,null,null,null,null,null,null,null,"","","",null,null,null,null,"","","","",null,null,null,null,null,null,null,null,null,null,null,null,null,null,null,null,null,null,null,null,null,null,null,null,null,null,null,null,null,null,null,null,null,null,null,null,null,null,null,null,null,null,null,null,null,null,null,null,null,null,null,null,"",{"$f":"IF($A879=\"\",\"\",IF(VLOOKUP($G879,$H$11:$DO$1000,103,FALSE)=\"\",\"No\",IF(LEFT(VLOOKUP($G879,$H$11:$DO$1000,103,FALSE),3)=\"The\",EM879,VLOOKUP(VLOOKUP($G879,$H$11:$DO$1000,103,FALSE),DeclMatrix!$A$2:$F$5,VLOOKUP('Enrollment Form'!$B879,DeclMatrix!$A$8:$B$12,2,FALSE),FALSE))))","v":""},{"$f":"IF($A879=\"\",\"\",IF(VLOOKUP($G879,$H$11:$DO$1000,106,FALSE)=\"\",\"No\",IF(LEFT(VLOOKUP($G879,$H$11:$DO$1000,106,FALSE),3)=\"The\",EN879,VLOOKUP(VLOOKUP($G879,$H$11:$DO$1000,106,FALSE),DeclMatrix!$A$2:$F$5,VLOOKUP('Enrollment Form'!$B879,DeclMatrix!$A$8:$B$12,2,FALSE),FALSE))))","v":""},{"$f":"IF($A879=\"\",\"\",IF(VLOOKUP($G879,$H$11:$DO$1000,109,FALSE)=\"\",\"No\",IF(LEFT(VLOOKUP($G879,$H$11:$DO$1000,109,FALSE),3)=\"The\",EO879,VLOOKUP(VLOOKUP($G879,$H$11:$DO$1000,109,FALSE),DeclMatrix!$A$2:$F$5,VLOOKUP('Enrollment Form'!$B879,DeclMatrix!$A$8:$B$12,2,FALSE),FALSE))))","v":""},{"$f":"IF($A879=\"\",\"\",IF(VLOOKUP($G879,$H$11:$DO$1000,112,FALSE)=\"\",\"No\",IF(LEFT(VLOOKUP($G879,$H$11:$DO$1000,112,FALSE),3)=\"The\",EP879,VLOOKUP(VLOOKUP($G879,$H$11:$DO$1000,112,FALSE),DeclMatrix!$A$2:$F$5,VLOOKUP('Enrollment Form'!$B879,DeclMatrix!$A$8:$B$12,2,FALSE),FALSE))))","v":""},null,null,null,null,null,null,null,null,"",null,"","","","","","","","","","","",""]
["",null,null,null,null,null,"","",null,null,null,null,null,null,null,null,null,null,null,null,null,null,null,null,null,null,"","","","",null,null,"",null,null,null,null,null,null,null,null,null,null,null,null,null,null,null,null,null,null,null,null,null,null,null,null,null,null,null,"","","",null,null,null,null,"","","","",null,null,null,null,null,null,null,null,null,null,null,null,null,null,null,null,null,null,null,null,null,null,null,null,null,null,null,null,null,null,null,null,null,null,null,null,null,null,null,null,null,null,null,null,null,null,null,null,null,null,null,null,"",{"$f":"IF($A881=\"\",\"\",IF(VLOOKUP($G881,$H$11:$DO$1000,103,FALSE)=\"\",\"No\",IF(LEFT(VLOOKUP($G881,$H$11:$DO$1000,103,FALSE),3)=\"The\",EM881,VLOOKUP(VLOOKUP($G881,$H$11:$DO$1000,103,FALSE),DeclMatrix!$A$2:$F$5,VLOOKUP('Enrollment Form'!$B881,DeclMatrix!$A$8:$B$12,2,FALSE),FALSE))))","v":""},{"$f":"IF($A881=\"\",\"\",IF(VLOOKUP($G881,$H$11:$DO$1000,106,FALSE)=\"\",\"No\",IF(LEFT(VLOOKUP($G881,$H$11:$DO$1000,106,FALSE),3)=\"The\",EN881,VLOOKUP(VLOOKUP($G881,$H$11:$DO$1000,106,FALSE),DeclMatrix!$A$2:$F$5,VLOOKUP('Enrollment Form'!$B881,DeclMatrix!$A$8:$B$12,2,FALSE),FALSE))))","v":""},{"$f":"IF($A881=\"\",\"\",IF(VLOOKUP($G881,$H$11:$DO$1000,109,FALSE)=\"\",\"No\",IF(LEFT(VLOOKUP($G881,$H$11:$DO$1000,109,FALSE),3)=\"The\",EO881,VLOOKUP(VLOOKUP($G881,$H$11:$DO$1000,109,FALSE),DeclMatrix!$A$2:$F$5,VLOOKUP('Enrollment Form'!$B881,DeclMatrix!$A$8:$B$12,2,FALSE),FALSE))))","v":""},{"$f":"IF($A881=\"\",\"\",IF(VLOOKUP($G881,$H$11:$DO$1000,112,FALSE)=\"\",\"No\",IF(LEFT(VLOOKUP($G881,$H$11:$DO$1000,112,FALSE),3)=\"The\",EP881,VLOOKUP(VLOOKUP($G881,$H$11:$DO$1000,112,FALSE),DeclMatrix!$A$2:$F$5,VLOOKUP('Enrollment Form'!$B881,DeclMatrix!$A$8:$B$12,2,FALSE),FALSE))))","v":""},null,null,null,null,null,null,null,null,"",null,"","","","","","","","","","","",""]
["",null,null,null,null,null,"","",null,null,null,null,null,null,null,null,null,null,null,null,null,null,null,null,null,null,"","","","",null,null,"",null,null,null,null,null,null,null,null,null,null,null,null,null,null,null,null,null,null,null,null,null,null,null,null,null,null,null,"","","",null,null,null,null,"","","","",null,null,null,null,null,null,null,null,null,null,null,null,null,null,null,null,null,null,null,null,null,null,null,null,null,null,null,null,null,null,null,null,null,null,null,null,null,null,null,null,null,null,null,null,null,null,null,null,null,null,null,null,"",{"$f":"IF($A884=\"\",\"\",IF(VLOOKUP($G884,$H$11:$DO$1000,103,FALSE)=\"\",\"No\",IF(LEFT(VLOOKUP($G884,$H$11:$DO$1000,103,FALSE),3)=\"The\",EM884,VLOOKUP(VLOOKUP($G884,$H$11:$DO$1000,103,FALSE),DeclMatrix!$A$2:$F$5,VLOOKUP('Enrollment Form'!$B884,DeclMatrix!$A$8:$B$12,2,FALSE),FALSE))))","v":""},{"$f":"IF($A884=\"\",\"\",IF(VLOOKUP($G884,$H$11:$DO$1000,106,FALSE)=\"\",\"No\",IF(LEFT(VLOOKUP($G884,$H$11:$DO$1000,106,FALSE),3)=\"The\",EN884,VLOOKUP(VLOOKUP($G884,$H$11:$DO$1000,106,FALSE),DeclMatrix!$A$2:$F$5,VLOOKUP('Enrollment Form'!$B884,DeclMatrix!$A$8:$B$12,2,FALSE),FALSE))))","v":""},{"$f":"IF($A884=\"\",\"\",IF(VLOOKUP($G884,$H$11:$DO$1000,109,FALSE)=\"\",\"No\",IF(LEFT(VLOOKUP($G884,$H$11:$DO$1000,109,FALSE),3)=\"The\",EO884,VLOOKUP(VLOOKUP($G884,$H$11:$DO$1000,109,FALSE),DeclMatrix!$A$2:$F$5,VLOOKUP('Enrollment Form'!$B884,DeclMatrix!$A$8:$B$12,2,FALSE),FALSE))))","v":""},{"$f":"IF($A884=\"\",\"\",IF(VLOOKUP($G884,$H$11:$DO$1000,112,FALSE)=\"\",\"No\",IF(LEFT(VLOOKUP($G884,$H$11:$DO$1000,112,FALSE),3)=\"The\",EP884,VLOOKUP(VLOOKUP($G884,$H$11:$DO$1000,112,FALSE),DeclMatrix!$A$2:$F$5,VLOOKUP('Enrollment Form'!$B884,DeclMatrix!$A$8:$B$12,2,FALSE),FALSE))))","v":""},null,null,null,null,null,null,null,null,"",null,"","","","","","","","","","","",""]
["",null,null,null,null,null,"","",null,null,null,null,null,null,null,null,null,null,null,null,null,null,null,null,null,null,"","","","",null,null,"",null,null,null,null,null,null,null,null,null,null,null,null,null,null,null,null,null,null,null,null,null,null,null,null,null,null,null,"","","",null,null,null,null,"","","","",null,null,null,null,null,null,null,null,null,null,null,null,null,null,null,null,null,null,null,null,null,null,null,null,null,null,null,null,null,null,null,null,null,null,null,null,null,null,null,null,null,null,null,null,null,null,null,null,null,null,null,null,"",{"$f":"IF($A888=\"\",\"\",IF(VLOOKUP($G888,$H$11:$DO$1000,103,FALSE)=\"\",\"No\",IF(LEFT(VLOOKUP($G888,$H$11:$DO$1000,103,FALSE),3)=\"The\",EM888,VLOOKUP(VLOOKUP($G888,$H$11:$DO$1000,103,FALSE),DeclMatrix!$A$2:$F$5,VLOOKUP('Enrollment Form'!$B888,DeclMatrix!$A$8:$B$12,2,FALSE),FALSE))))","v":""},{"$f":"IF($A888=\"\",\"\",IF(VLOOKUP($G888,$H$11:$DO$1000,106,FALSE)=\"\",\"No\",IF(LEFT(VLOOKUP($G888,$H$11:$DO$1000,106,FALSE),3)=\"The\",EN888,VLOOKUP(VLOOKUP($G888,$H$11:$DO$1000,106,FALSE),DeclMatrix!$A$2:$F$5,VLOOKUP('Enrollment Form'!$B888,DeclMatrix!$A$8:$B$12,2,FALSE),FALSE))))","v":""},{"$f":"IF($A888=\"\",\"\",IF(VLOOKUP($G888,$H$11:$DO$1000,109,FALSE)=\"\",\"No\",IF(LEFT(VLOOKUP($G888,$H$11:$DO$1000,109,FALSE),3)=\"The\",EO888,VLOOKUP(VLOOKUP($G888,$H$11:$DO$1000,109,FALSE),DeclMatrix!$A$2:$F$5,VLOOKUP('Enrollment Form'!$B888,DeclMatrix!$A$8:$B$12,2,FALSE),FALSE))))","v":""},{"$f":"IF($A888=\"\",\"\",IF(VLOOKUP($G888,$H$11:$DO$1000,112,FALSE)=\"\",\"No\",IF(LEFT(VLOOKUP($G888,$H$11:$DO$1000,112,FALSE),3)=\"The\",EP888,VLOOKUP(VLOOKUP($G888,$H$11:$DO$1000,112,FALSE),DeclMatrix!$A$2:$F$5,VLOOKUP('Enrollment Form'!$B888,DeclMatrix!$A$8:$B$12,2,FALSE),FALSE))))","v":""},null,null,null,null,null,null,null,null,"",null,"","","","","","","","","","","",""]
["",null,null,null,null,null,"","",null,null,null,null,null,null,null,null,null,null,null,null,null,null,null,null,null,null,"","","","",null,null,"",null,null,null,null,null,null,null,null,null,null,null,null,null,null,null,null,null,null,null,null,null,null,null,null,null,null,null,"","","",null,null,null,null,"","","","",null,null,null,null,null,null,null,null,null,null,null,null,null,null,null,null,null,null,null,null,null,null,null,null,null,null,null,null,null,null,null,null,null,null,null,null,null,null,null,null,null,null,null,null,null,null,null,null,null,null,null,null,"",{"$f":"IF($A891=\"\",\"\",IF(VLOOKUP($G891,$H$11:$DO$1000,103,FALSE)=\"\",\"No\",IF(LEFT(VLOOKUP($G891,$H$11:$DO$1000,103,FALSE),3)=\"The\",EM891,VLOOKUP(VLOOKUP($G891,$H$11:$DO$1000,103,FALSE),DeclMatrix!$A$2:$F$5,VLOOKUP('Enrollment Form'!$B891,DeclMatrix!$A$8:$B$12,2,FALSE),FALSE))))","v":""},{"$f":"IF($A891=\"\",\"\",IF(VLOOKUP($G891,$H$11:$DO$1000,106,FALSE)=\"\",\"No\",IF(LEFT(VLOOKUP($G891,$H$11:$DO$1000,106,FALSE),3)=\"The\",EN891,VLOOKUP(VLOOKUP($G891,$H$11:$DO$1000,106,FALSE),DeclMatrix!$A$2:$F$5,VLOOKUP('Enrollment Form'!$B891,DeclMatrix!$A$8:$B$12,2,FALSE),FALSE))))","v":""},{"$f":"IF($A891=\"\",\"\",IF(VLOOKUP($G891,$H$11:$DO$1000,109,FALSE)=\"\",\"No\",IF(LEFT(VLOOKUP($G891,$H$11:$DO$1000,109,FALSE),3)=\"The\",EO891,VLOOKUP(VLOOKUP($G891,$H$11:$DO$1000,109,FALSE),DeclMatrix!$A$2:$F$5,VLOOKUP('Enrollment Form'!$B891,DeclMatrix!$A$8:$B$12,2,FALSE),FALSE))))","v":""},{"$f":"IF($A891=\"\",\"\",IF(VLOOKUP($G891,$H$11:$DO$1000,112,FALSE)=\"\",\"No\",IF(LEFT(VLOOKUP($G891,$H$11:$DO$1000,112,FALSE),3)=\"The\",EP891,VLOOKUP(VLOOKUP($G891,$H$11:$DO$1000,112,FALSE),DeclMatrix!$A$2:$F$5,VLOOKUP('Enrollment Form'!$B891,DeclMatrix!$A$8:$B$12,2,FALSE),FALSE))))","v":""},null,null,null,null,null,null,null,null,"",null,"","","","","","","","","","","",""]
["",null,null,null,null,null,"","",null,null,null,null,null,null,null,null,null,null,null,null,null,null,null,null,null,null,"","","","",null,null,"",null,null,null,null,null,null,null,null,null,null,null,null,null,null,null,null,null,null,null,null,null,null,null,null,null,null,null,"","","",null,null,null,null,"","","","",null,null,null,null,null,null,null,null,null,null,null,null,null,null,null,null,null,null,null,null,null,null,null,null,null,null,null,null,null,null,null,null,null,null,null,null,null,null,null,null,null,null,null,null,null,null,null,null,null,null,null,null,"",{"$f":"IF($A892=\"\",\"\",IF(VLOOKUP($G892,$H$11:$DO$1000,103,FALSE)=\"\",\"No\",IF(LEFT(VLOOKUP($G892,$H$11:$DO$1000,103,FALSE),3)=\"The\",EM892,VLOOKUP(VLOOKUP($G892,$H$11:$DO$1000,103,FALSE),DeclMatrix!$A$2:$F$5,VLOOKUP('Enrollment Form'!$B892,DeclMatrix!$A$8:$B$12,2,FALSE),FALSE))))","v":""},{"$f":"IF($A892=\"\",\"\",IF(VLOOKUP($G892,$H$11:$DO$1000,106,FALSE)=\"\",\"No\",IF(LEFT(VLOOKUP($G892,$H$11:$DO$1000,106,FALSE),3)=\"The\",EN892,VLOOKUP(VLOOKUP($G892,$H$11:$DO$1000,106,FALSE),DeclMatrix!$A$2:$F$5,VLOOKUP('Enrollment Form'!$B892,DeclMatrix!$A$8:$B$12,2,FALSE),FALSE))))","v":""},{"$f":"IF($A892=\"\",\"\",IF(VLOOKUP($G892,$H$11:$DO$1000,109,FALSE)=\"\",\"No\",IF(LEFT(VLOOKUP($G892,$H$11:$DO$1000,109,FALSE),3)=\"The\",EO892,VLOOKUP(VLOOKUP($G892,$H$11:$DO$1000,109,FALSE),DeclMatrix!$A$2:$F$5,VLOOKUP('Enrollment Form'!$B892,DeclMatrix!$A$8:$B$12,2,FALSE),FALSE))))","v":""},{"$f":"IF($A892=\"\",\"\",IF(VLOOKUP($G892,$H$11:$DO$1000,112,FALSE)=\"\",\"No\",IF(LEFT(VLOOKUP($G892,$H$11:$DO$1000,112,FALSE),3)=\"The\",EP892,VLOOKUP(VLOOKUP($G892,$H$11:$DO$1000,112,FALSE),DeclMatrix!$A$2:$F$5,VLOOKUP('Enrollment Form'!$B892,DeclMatrix!$A$8:$B$12,2,FALSE),FALSE))))","v":""},null,null,null,null,null,null,null,null,"",null,"","","","","","","","","","","",""]
["",null,null,null,null,null,"","",null,null,null,null,null,null,null,null,null,null,null,null,null,null,null,null,null,null,"","","","",null,null,"",null,null,null,null,null,null,null,null,null,null,null,null,null,null,null,null,null,null,null,null,null,null,null,null,null,null,null,"","","",null,null,null,null,"","","","",null,null,null,null,null,null,null,null,null,null,null,null,null,null,null,null,null,null,null,null,null,null,null,null,null,null,null,null,null,null,null,null,null,null,null,null,null,null,null,null,null,null,null,null,null,null,null,null,null,null,null,null,"",{"$f":"IF($A894=\"\",\"\",IF(VLOOKUP($G894,$H$11:$DO$1000,103,FALSE)=\"\",\"No\",IF(LEFT(VLOOKUP($G894,$H$11:$DO$1000,103,FALSE),3)=\"The\",EM894,VLOOKUP(VLOOKUP($G894,$H$11:$DO$1000,103,FALSE),DeclMatrix!$A$2:$F$5,VLOOKUP('Enrollment Form'!$B894,DeclMatrix!$A$8:$B$12,2,FALSE),FALSE))))","v":""},{"$f":"IF($A894=\"\",\"\",IF(VLOOKUP($G894,$H$11:$DO$1000,106,FALSE)=\"\",\"No\",IF(LEFT(VLOOKUP($G894,$H$11:$DO$1000,106,FALSE),3)=\"The\",EN894,VLOOKUP(VLOOKUP($G894,$H$11:$DO$1000,106,FALSE),DeclMatrix!$A$2:$F$5,VLOOKUP('Enrollment Form'!$B894,DeclMatrix!$A$8:$B$12,2,FALSE),FALSE))))","v":""},{"$f":"IF($A894=\"\",\"\",IF(VLOOKUP($G894,$H$11:$DO$1000,109,FALSE)=\"\",\"No\",IF(LEFT(VLOOKUP($G894,$H$11:$DO$1000,109,FALSE),3)=\"The\",EO894,VLOOKUP(VLOOKUP($G894,$H$11:$DO$1000,109,FALSE),DeclMatrix!$A$2:$F$5,VLOOKUP('Enrollment Form'!$B894,DeclMatrix!$A$8:$B$12,2,FALSE),FALSE))))","v":""},{"$f":"IF($A894=\"\",\"\",IF(VLOOKUP($G894,$H$11:$DO$1000,112,FALSE)=\"\",\"No\",IF(LEFT(VLOOKUP($G894,$H$11:$DO$1000,112,FALSE),3)=\"The\",EP894,VLOOKUP(VLOOKUP($G894,$H$11:$DO$1000,112,FALSE),DeclMatrix!$A$2:$F$5,VLOOKUP('Enrollment Form'!$B894,DeclMatrix!$A$8:$B$12,2,FALSE),FALSE))))","v":""},null,null,null,null,null,null,null,null,"",null,"","","","","","","","","","","",""]
["",null,null,null,null,null,"","",null,null,null,null,null,null,null,null,null,null,null,null,null,null,null,null,null,null,"","","","",null,null,"",null,null,null,null,null,null,null,null,null,null,null,null,null,null,null,null,null,null,null,null,null,null,null,null,null,null,null,"","","",null,null,null,null,"","","","",null,null,null,null,null,null,null,null,null,null,null,null,null,null,null,null,null,null,null,null,null,null,null,null,null,null,null,null,null,null,null,null,null,null,null,null,null,null,null,null,null,null,null,null,null,null,null,null,null,null,null,null,"",{"$f":"IF($A897=\"\",\"\",IF(VLOOKUP($G897,$H$11:$DO$1000,103,FALSE)=\"\",\"No\",IF(LEFT(VLOOKUP($G897,$H$11:$DO$1000,103,FALSE),3)=\"The\",EM897,VLOOKUP(VLOOKUP($G897,$H$11:$DO$1000,103,FALSE),DeclMatrix!$A$2:$F$5,VLOOKUP('Enrollment Form'!$B897,DeclMatrix!$A$8:$B$12,2,FALSE),FALSE))))","v":""},{"$f":"IF($A897=\"\",\"\",IF(VLOOKUP($G897,$H$11:$DO$1000,106,FALSE)=\"\",\"No\",IF(LEFT(VLOOKUP($G897,$H$11:$DO$1000,106,FALSE),3)=\"The\",EN897,VLOOKUP(VLOOKUP($G897,$H$11:$DO$1000,106,FALSE),DeclMatrix!$A$2:$F$5,VLOOKUP('Enrollment Form'!$B897,DeclMatrix!$A$8:$B$12,2,FALSE),FALSE))))","v":""},{"$f":"IF($A897=\"\",\"\",IF(VLOOKUP($G897,$H$11:$DO$1000,109,FALSE)=\"\",\"No\",IF(LEFT(VLOOKUP($G897,$H$11:$DO$1000,109,FALSE),3)=\"The\",EO897,VLOOKUP(VLOOKUP($G897,$H$11:$DO$1000,109,FALSE),DeclMatrix!$A$2:$F$5,VLOOKUP('Enrollment Form'!$B897,DeclMatrix!$A$8:$B$12,2,FALSE),FALSE))))","v":""},{"$f":"IF($A897=\"\",\"\",IF(VLOOKUP($G897,$H$11:$DO$1000,112,FALSE)=\"\",\"No\",IF(LEFT(VLOOKUP($G897,$H$11:$DO$1000,112,FALSE),3)=\"The\",EP897,VLOOKUP(VLOOKUP($G897,$H$11:$DO$1000,112,FALSE),DeclMatrix!$A$2:$F$5,VLOOKUP('Enrollment Form'!$B897,DeclMatrix!$A$8:$B$12,2,FALSE),FALSE))))","v":""},null,null,null,null,null,null,null,null,"",null,"","","","","","","","","","","",""]
["",null,null,null,null,null,"","",null,null,null,null,null,null,null,null,null,null,null,null,null,null,null,null,null,null,"","","","",null,null,"",null,null,null,null,null,null,null,null,null,null,null,null,null,null,null,null,null,null,null,null,null,null,null,null,null,null,null,"","","",null,null,null,null,"","","","",null,null,null,null,null,null,null,null,null,null,null,null,null,null,null,null,null,null,null,null,null,null,null,null,null,null,null,null,null,null,null,null,null,null,null,null,null,null,null,null,null,null,null,null,null,null,null,null,null,null,null,null,"",{"$f":"IF($A901=\"\",\"\",IF(VLOOKUP($G901,$H$11:$DO$1000,103,FALSE)=\"\",\"No\",IF(LEFT(VLOOKUP($G901,$H$11:$DO$1000,103,FALSE),3)=\"The\",EM901,VLOOKUP(VLOOKUP($G901,$H$11:$DO$1000,103,FALSE),DeclMatrix!$A$2:$F$5,VLOOKUP('Enrollment Form'!$B901,DeclMatrix!$A$8:$B$12,2,FALSE),FALSE))))","v":""},{"$f":"IF($A901=\"\",\"\",IF(VLOOKUP($G901,$H$11:$DO$1000,106,FALSE)=\"\",\"No\",IF(LEFT(VLOOKUP($G901,$H$11:$DO$1000,106,FALSE),3)=\"The\",EN901,VLOOKUP(VLOOKUP($G901,$H$11:$DO$1000,106,FALSE),DeclMatrix!$A$2:$F$5,VLOOKUP('Enrollment Form'!$B901,DeclMatrix!$A$8:$B$12,2,FALSE),FALSE))))","v":""},{"$f":"IF($A901=\"\",\"\",IF(VLOOKUP($G901,$H$11:$DO$1000,109,FALSE)=\"\",\"No\",IF(LEFT(VLOOKUP($G901,$H$11:$DO$1000,109,FALSE),3)=\"The\",EO901,VLOOKUP(VLOOKUP($G901,$H$11:$DO$1000,109,FALSE),DeclMatrix!$A$2:$F$5,VLOOKUP('Enrollment Form'!$B901,DeclMatrix!$A$8:$B$12,2,FALSE),FALSE))))","v":""},{"$f":"IF($A901=\"\",\"\",IF(VLOOKUP($G901,$H$11:$DO$1000,112,FALSE)=\"\",\"No\",IF(LEFT(VLOOKUP($G901,$H$11:$DO$1000,112,FALSE),3)=\"The\",EP901,VLOOKUP(VLOOKUP($G901,$H$11:$DO$1000,112,FALSE),DeclMatrix!$A$2:$F$5,VLOOKUP('Enrollment Form'!$B901,DeclMatrix!$A$8:$B$12,2,FALSE),FALSE))))","v":""},null,null,null,null,null,null,null,null,"",null,"","","","","","","","","","","",""]
["",null,null,null,null,null,"","",null,null,null,null,null,null,null,null,null,null,null,null,null,null,null,null,null,null,"","","","",null,null,"",null,null,null,null,null,null,null,null,null,null,null,null,null,null,null,null,null,null,null,null,null,null,null,null,null,null,null,"","","",null,null,null,null,"","","","",null,null,null,null,null,null,null,null,null,null,null,null,null,null,null,null,null,null,null,null,null,null,null,null,null,null,null,null,null,null,null,null,null,null,null,null,null,null,null,null,null,null,null,null,null,null,null,null,null,null,null,null,"",{"$f":"IF($A903=\"\",\"\",IF(VLOOKUP($G903,$H$11:$DO$1000,103,FALSE)=\"\",\"No\",IF(LEFT(VLOOKUP($G903,$H$11:$DO$1000,103,FALSE),3)=\"The\",EM903,VLOOKUP(VLOOKUP($G903,$H$11:$DO$1000,103,FALSE),DeclMatrix!$A$2:$F$5,VLOOKUP('Enrollment Form'!$B903,DeclMatrix!$A$8:$B$12,2,FALSE),FALSE))))","v":""},{"$f":"IF($A903=\"\",\"\",IF(VLOOKUP($G903,$H$11:$DO$1000,106,FALSE)=\"\",\"No\",IF(LEFT(VLOOKUP($G903,$H$11:$DO$1000,106,FALSE),3)=\"The\",EN903,VLOOKUP(VLOOKUP($G903,$H$11:$DO$1000,106,FALSE),DeclMatrix!$A$2:$F$5,VLOOKUP('Enrollment Form'!$B903,DeclMatrix!$A$8:$B$12,2,FALSE),FALSE))))","v":""},{"$f":"IF($A903=\"\",\"\",IF(VLOOKUP($G903,$H$11:$DO$1000,109,FALSE)=\"\",\"No\",IF(LEFT(VLOOKUP($G903,$H$11:$DO$1000,109,FALSE),3)=\"The\",EO903,VLOOKUP(VLOOKUP($G903,$H$11:$DO$1000,109,FALSE),DeclMatrix!$A$2:$F$5,VLOOKUP('Enrollment Form'!$B903,DeclMatrix!$A$8:$B$12,2,FALSE),FALSE))))","v":""},{"$f":"IF($A903=\"\",\"\",IF(VLOOKUP($G903,$H$11:$DO$1000,112,FALSE)=\"\",\"No\",IF(LEFT(VLOOKUP($G903,$H$11:$DO$1000,112,FALSE),3)=\"The\",EP903,VLOOKUP(VLOOKUP($G903,$H$11:$DO$1000,112,FALSE),DeclMatrix!$A$2:$F$5,VLOOKUP('Enrollment Form'!$B903,DeclMatrix!$A$8:$B$12,2,FALSE),FALSE))))","v":""},null,null,null,null,null,null,null,null,"",null,"","","","","","","","","","","",""]
["",null,null,null,null,null,"","",null,null,null,null,null,null,null,null,null,null,null,null,null,null,null,null,null,null,"","","","",null,null,"",null,null,null,null,null,null,null,null,null,null,null,null,null,null,null,null,null,null,null,null,null,null,null,null,null,null,null,"","","",null,null,null,null,"","","","",null,null,null,null,null,null,null,null,null,null,null,null,null,null,null,null,null,null,null,null,null,null,null,null,null,null,null,null,null,null,null,null,null,null,null,null,null,null,null,null,null,null,null,null,null,null,null,null,null,null,null,null,"",{"$f":"IF($A906=\"\",\"\",IF(VLOOKUP($G906,$H$11:$DO$1000,103,FALSE)=\"\",\"No\",IF(LEFT(VLOOKUP($G906,$H$11:$DO$1000,103,FALSE),3)=\"The\",EM906,VLOOKUP(VLOOKUP($G906,$H$11:$DO$1000,103,FALSE),DeclMatrix!$A$2:$F$5,VLOOKUP('Enrollment Form'!$B906,DeclMatrix!$A$8:$B$12,2,FALSE),FALSE))))","v":""},{"$f":"IF($A906=\"\",\"\",IF(VLOOKUP($G906,$H$11:$DO$1000,106,FALSE)=\"\",\"No\",IF(LEFT(VLOOKUP($G906,$H$11:$DO$1000,106,FALSE),3)=\"The\",EN906,VLOOKUP(VLOOKUP($G906,$H$11:$DO$1000,106,FALSE),DeclMatrix!$A$2:$F$5,VLOOKUP('Enrollment Form'!$B906,DeclMatrix!$A$8:$B$12,2,FALSE),FALSE))))","v":""},{"$f":"IF($A906=\"\",\"\",IF(VLOOKUP($G906,$H$11:$DO$1000,109,FALSE)=\"\",\"No\",IF(LEFT(VLOOKUP($G906,$H$11:$DO$1000,109,FALSE),3)=\"The\",EO906,VLOOKUP(VLOOKUP($G906,$H$11:$DO$1000,109,FALSE),DeclMatrix!$A$2:$F$5,VLOOKUP('Enrollment Form'!$B906,DeclMatrix!$A$8:$B$12,2,FALSE),FALSE))))","v":""},{"$f":"IF($A906=\"\",\"\",IF(VLOOKUP($G906,$H$11:$DO$1000,112,FALSE)=\"\",\"No\",IF(LEFT(VLOOKUP($G906,$H$11:$DO$1000,112,FALSE),3)=\"The\",EP906,VLOOKUP(VLOOKUP($G906,$H$11:$DO$1000,112,FALSE),DeclMatrix!$A$2:$F$5,VLOOKUP('Enrollment Form'!$B906,DeclMatrix!$A$8:$B$12,2,FALSE),FALSE))))","v":""},null,null,null,null,null,null,null,null,"",null,"","","","","","","","","","","",""]
["",null,null,null,null,null,"","",null,null,null,null,null,null,null,null,null,null,null,null,null,null,null,null,null,null,"","","","",null,null,"",null,null,null,null,null,null,null,null,null,null,null,null,null,null,null,null,null,null,null,null,null,null,null,null,null,null,null,"","","",null,null,null,null,"","","","",null,null,null,null,null,null,null,null,null,null,null,null,null,null,null,null,null,null,null,null,null,null,null,null,null,null,null,null,null,null,null,null,null,null,null,null,null,null,null,null,null,null,null,null,null,null,null,null,null,null,null,null,"",{"$f":"IF($A910=\"\",\"\",IF(VLOOKUP($G910,$H$11:$DO$1000,103,FALSE)=\"\",\"No\",IF(LEFT(VLOOKUP($G910,$H$11:$DO$1000,103,FALSE),3)=\"The\",EM910,VLOOKUP(VLOOKUP($G910,$H$11:$DO$1000,103,FALSE),DeclMatrix!$A$2:$F$5,VLOOKUP('Enrollment Form'!$B910,DeclMatrix!$A$8:$B$12,2,FALSE),FALSE))))","v":""},{"$f":"IF($A910=\"\",\"\",IF(VLOOKUP($G910,$H$11:$DO$1000,106,FALSE)=\"\",\"No\",IF(LEFT(VLOOKUP($G910,$H$11:$DO$1000,106,FALSE),3)=\"The\",EN910,VLOOKUP(VLOOKUP($G910,$H$11:$DO$1000,106,FALSE),DeclMatrix!$A$2:$F$5,VLOOKUP('Enrollment Form'!$B910,DeclMatrix!$A$8:$B$12,2,FALSE),FALSE))))","v":""},{"$f":"IF($A910=\"\",\"\",IF(VLOOKUP($G910,$H$11:$DO$1000,109,FALSE)=\"\",\"No\",IF(LEFT(VLOOKUP($G910,$H$11:$DO$1000,109,FALSE),3)=\"The\",EO910,VLOOKUP(VLOOKUP($G910,$H$11:$DO$1000,109,FALSE),DeclMatrix!$A$2:$F$5,VLOOKUP('Enrollment Form'!$B910,DeclMatrix!$A$8:$B$12,2,FALSE),FALSE))))","v":""},{"$f":"IF($A910=\"\",\"\",IF(VLOOKUP($G910,$H$11:$DO$1000,112,FALSE)=\"\",\"No\",IF(LEFT(VLOOKUP($G910,$H$11:$DO$1000,112,FALSE),3)=\"The\",EP910,VLOOKUP(VLOOKUP($G910,$H$11:$DO$1000,112,FALSE),DeclMatrix!$A$2:$F$5,VLOOKUP('Enrollment Form'!$B910,DeclMatrix!$A$8:$B$12,2,FALSE),FALSE))))","v":""},null,null,null,null,null,null,null,null,"",null,"","","","","","","","","","","",""]
["",null,null,null,null,null,"","",null,null,null,null,null,null,null,null,null,null,null,null,null,null,null,null,null,null,"","","","",null,null,"",null,null,null,null,null,null,null,null,null,null,null,null,null,null,null,null,null,null,null,null,null,null,null,null,null,null,null,"","","",null,null,null,null,"","","","",null,null,null,null,null,null,null,null,null,null,null,null,null,null,null,null,null,null,null,null,null,null,null,null,null,null,null,null,null,null,null,null,null,null,null,null,null,null,null,null,null,null,null,null,null,null,null,null,null,null,null,null,"",{"$f":"IF($A913=\"\",\"\",IF(VLOOKUP($G913,$H$11:$DO$1000,103,FALSE)=\"\",\"No\",IF(LEFT(VLOOKUP($G913,$H$11:$DO$1000,103,FALSE),3)=\"The\",EM913,VLOOKUP(VLOOKUP($G913,$H$11:$DO$1000,103,FALSE),DeclMatrix!$A$2:$F$5,VLOOKUP('Enrollment Form'!$B913,DeclMatrix!$A$8:$B$12,2,FALSE),FALSE))))","v":""},{"$f":"IF($A913=\"\",\"\",IF(VLOOKUP($G913,$H$11:$DO$1000,106,FALSE)=\"\",\"No\",IF(LEFT(VLOOKUP($G913,$H$11:$DO$1000,106,FALSE),3)=\"The\",EN913,VLOOKUP(VLOOKUP($G913,$H$11:$DO$1000,106,FALSE),DeclMatrix!$A$2:$F$5,VLOOKUP('Enrollment Form'!$B913,DeclMatrix!$A$8:$B$12,2,FALSE),FALSE))))","v":""},{"$f":"IF($A913=\"\",\"\",IF(VLOOKUP($G913,$H$11:$DO$1000,109,FALSE)=\"\",\"No\",IF(LEFT(VLOOKUP($G913,$H$11:$DO$1000,109,FALSE),3)=\"The\",EO913,VLOOKUP(VLOOKUP($G913,$H$11:$DO$1000,109,FALSE),DeclMatrix!$A$2:$F$5,VLOOKUP('Enrollment Form'!$B913,DeclMatrix!$A$8:$B$12,2,FALSE),FALSE))))","v":""},{"$f":"IF($A913=\"\",\"\",IF(VLOOKUP($G913,$H$11:$DO$1000,112,FALSE)=\"\",\"No\",IF(LEFT(VLOOKUP($G913,$H$11:$DO$1000,112,FALSE),3)=\"The\",EP913,VLOOKUP(VLOOKUP($G913,$H$11:$DO$1000,112,FALSE),DeclMatrix!$A$2:$F$5,VLOOKUP('Enrollment Form'!$B913,DeclMatrix!$A$8:$B$12,2,FALSE),FALSE))))","v":""},null,null,null,null,null,null,null,null,"",null,"","","","","","","","","","","",""]
["",null,null,null,null,null,"","",null,null,null,null,null,null,null,null,null,null,null,null,null,null,null,null,null,null,"","","","",null,null,"",null,null,null,null,null,null,null,null,null,null,null,null,null,null,null,null,null,null,null,null,null,null,null,null,null,null,null,"","","",null,null,null,null,"","","","",null,null,null,null,null,null,null,null,null,null,null,null,null,null,null,null,null,null,null,null,null,null,null,null,null,null,null,null,null,null,null,null,null,null,null,null,null,null,null,null,null,null,null,null,null,null,null,null,null,null,null,null,"",{"$f":"IF($A914=\"\",\"\",IF(VLOOKUP($G914,$H$11:$DO$1000,103,FALSE)=\"\",\"No\",IF(LEFT(VLOOKUP($G914,$H$11:$DO$1000,103,FALSE),3)=\"The\",EM914,VLOOKUP(VLOOKUP($G914,$H$11:$DO$1000,103,FALSE),DeclMatrix!$A$2:$F$5,VLOOKUP('Enrollment Form'!$B914,DeclMatrix!$A$8:$B$12,2,FALSE),FALSE))))","v":""},{"$f":"IF($A914=\"\",\"\",IF(VLOOKUP($G914,$H$11:$DO$1000,106,FALSE)=\"\",\"No\",IF(LEFT(VLOOKUP($G914,$H$11:$DO$1000,106,FALSE),3)=\"The\",EN914,VLOOKUP(VLOOKUP($G914,$H$11:$DO$1000,106,FALSE),DeclMatrix!$A$2:$F$5,VLOOKUP('Enrollment Form'!$B914,DeclMatrix!$A$8:$B$12,2,FALSE),FALSE))))","v":""},{"$f":"IF($A914=\"\",\"\",IF(VLOOKUP($G914,$H$11:$DO$1000,109,FALSE)=\"\",\"No\",IF(LEFT(VLOOKUP($G914,$H$11:$DO$1000,109,FALSE),3)=\"The\",EO914,VLOOKUP(VLOOKUP($G914,$H$11:$DO$1000,109,FALSE),DeclMatrix!$A$2:$F$5,VLOOKUP('Enrollment Form'!$B914,DeclMatrix!$A$8:$B$12,2,FALSE),FALSE))))","v":""},{"$f":"IF($A914=\"\",\"\",IF(VLOOKUP($G914,$H$11:$DO$1000,112,FALSE)=\"\",\"No\",IF(LEFT(VLOOKUP($G914,$H$11:$DO$1000,112,FALSE),3)=\"The\",EP914,VLOOKUP(VLOOKUP($G914,$H$11:$DO$1000,112,FALSE),DeclMatrix!$A$2:$F$5,VLOOKUP('Enrollment Form'!$B914,DeclMatrix!$A$8:$B$12,2,FALSE),FALSE))))","v":""},null,null,null,null,null,null,null,null,"",null,"","","","","","","","","","","",""]
["",null,null,null,null,null,"","",null,null,null,null,null,null,null,null,null,null,null,null,null,null,null,null,null,null,"","","","",null,null,"",null,null,null,null,null,null,null,null,null,null,null,null,null,null,null,null,null,null,null,null,null,null,null,null,null,null,null,"","","",null,null,null,null,"","","","",null,null,null,null,null,null,null,null,null,null,null,null,null,null,null,null,null,null,null,null,null,null,null,null,null,null,null,null,null,null,null,null,null,null,null,null,null,null,null,null,null,null,null,null,null,null,null,null,null,null,null,null,"",{"$f":"IF($A916=\"\",\"\",IF(VLOOKUP($G916,$H$11:$DO$1000,103,FALSE)=\"\",\"No\",IF(LEFT(VLOOKUP($G916,$H$11:$DO$1000,103,FALSE),3)=\"The\",EM916,VLOOKUP(VLOOKUP($G916,$H$11:$DO$1000,103,FALSE),DeclMatrix!$A$2:$F$5,VLOOKUP('Enrollment Form'!$B916,DeclMatrix!$A$8:$B$12,2,FALSE),FALSE))))","v":""},{"$f":"IF($A916=\"\",\"\",IF(VLOOKUP($G916,$H$11:$DO$1000,106,FALSE)=\"\",\"No\",IF(LEFT(VLOOKUP($G916,$H$11:$DO$1000,106,FALSE),3)=\"The\",EN916,VLOOKUP(VLOOKUP($G916,$H$11:$DO$1000,106,FALSE),DeclMatrix!$A$2:$F$5,VLOOKUP('Enrollment Form'!$B916,DeclMatrix!$A$8:$B$12,2,FALSE),FALSE))))","v":""},{"$f":"IF($A916=\"\",\"\",IF(VLOOKUP($G916,$H$11:$DO$1000,109,FALSE)=\"\",\"No\",IF(LEFT(VLOOKUP($G916,$H$11:$DO$1000,109,FALSE),3)=\"The\",EO916,VLOOKUP(VLOOKUP($G916,$H$11:$DO$1000,109,FALSE),DeclMatrix!$A$2:$F$5,VLOOKUP('Enrollment Form'!$B916,DeclMatrix!$A$8:$B$12,2,FALSE),FALSE))))","v":""},{"$f":"IF($A916=\"\",\"\",IF(VLOOKUP($G916,$H$11:$DO$1000,112,FALSE)=\"\",\"No\",IF(LEFT(VLOOKUP($G916,$H$11:$DO$1000,112,FALSE),3)=\"The\",EP916,VLOOKUP(VLOOKUP($G916,$H$11:$DO$1000,112,FALSE),DeclMatrix!$A$2:$F$5,VLOOKUP('Enrollment Form'!$B916,DeclMatrix!$A$8:$B$12,2,FALSE),FALSE))))","v":""},null,null,null,null,null,null,null,null,"",null,"","","","","","","","","","","",""]
["",null,null,null,null,null,"","",null,null,null,null,null,null,null,null,null,null,null,null,null,null,null,null,null,null,"","","","",null,null,"",null,null,null,null,null,null,null,null,null,null,null,null,null,null,null,null,null,null,null,null,null,null,null,null,null,null,null,"","","",null,null,null,null,"","","","",null,null,null,null,null,null,null,null,null,null,null,null,null,null,null,null,null,null,null,null,null,null,null,null,null,null,null,null,null,null,null,null,null,null,null,null,null,null,null,null,null,null,null,null,null,null,null,null,null,null,null,null,"",{"$f":"IF($A919=\"\",\"\",IF(VLOOKUP($G919,$H$11:$DO$1000,103,FALSE)=\"\",\"No\",IF(LEFT(VLOOKUP($G919,$H$11:$DO$1000,103,FALSE),3)=\"The\",EM919,VLOOKUP(VLOOKUP($G919,$H$11:$DO$1000,103,FALSE),DeclMatrix!$A$2:$F$5,VLOOKUP('Enrollment Form'!$B919,DeclMatrix!$A$8:$B$12,2,FALSE),FALSE))))","v":""},{"$f":"IF($A919=\"\",\"\",IF(VLOOKUP($G919,$H$11:$DO$1000,106,FALSE)=\"\",\"No\",IF(LEFT(VLOOKUP($G919,$H$11:$DO$1000,106,FALSE),3)=\"The\",EN919,VLOOKUP(VLOOKUP($G919,$H$11:$DO$1000,106,FALSE),DeclMatrix!$A$2:$F$5,VLOOKUP('Enrollment Form'!$B919,DeclMatrix!$A$8:$B$12,2,FALSE),FALSE))))","v":""},{"$f":"IF($A919=\"\",\"\",IF(VLOOKUP($G919,$H$11:$DO$1000,109,FALSE)=\"\",\"No\",IF(LEFT(VLOOKUP($G919,$H$11:$DO$1000,109,FALSE),3)=\"The\",EO919,VLOOKUP(VLOOKUP($G919,$H$11:$DO$1000,109,FALSE),DeclMatrix!$A$2:$F$5,VLOOKUP('Enrollment Form'!$B919,DeclMatrix!$A$8:$B$12,2,FALSE),FALSE))))","v":""},{"$f":"IF($A919=\"\",\"\",IF(VLOOKUP($G919,$H$11:$DO$1000,112,FALSE)=\"\",\"No\",IF(LEFT(VLOOKUP($G919,$H$11:$DO$1000,112,FALSE),3)=\"The\",EP919,VLOOKUP(VLOOKUP($G919,$H$11:$DO$1000,112,FALSE),DeclMatrix!$A$2:$F$5,VLOOKUP('Enrollment Form'!$B919,DeclMatrix!$A$8:$B$12,2,FALSE),FALSE))))","v":""},null,null,null,null,null,null,null,null,"",null,"","","","","","","","","","","",""]
["",null,null,null,null,null,"","",null,null,null,null,null,null,null,null,null,null,null,null,null,null,null,null,null,null,"","","","",null,null,"",null,null,null,null,null,null,null,null,null,null,null,null,null,null,null,null,null,null,null,null,null,null,null,null,null,null,null,"","","",null,null,null,null,"","","","",null,null,null,null,null,null,null,null,null,null,null,null,null,null,null,null,null,null,null,null,null,null,null,null,null,null,null,null,null,null,null,null,null,null,null,null,null,null,null,null,null,null,null,null,null,null,null,null,null,null,null,null,"",{"$f":"IF($A923=\"\",\"\",IF(VLOOKUP($G923,$H$11:$DO$1000,103,FALSE)=\"\",\"No\",IF(LEFT(VLOOKUP($G923,$H$11:$DO$1000,103,FALSE),3)=\"The\",EM923,VLOOKUP(VLOOKUP($G923,$H$11:$DO$1000,103,FALSE),DeclMatrix!$A$2:$F$5,VLOOKUP('Enrollment Form'!$B923,DeclMatrix!$A$8:$B$12,2,FALSE),FALSE))))","v":""},{"$f":"IF($A923=\"\",\"\",IF(VLOOKUP($G923,$H$11:$DO$1000,106,FALSE)=\"\",\"No\",IF(LEFT(VLOOKUP($G923,$H$11:$DO$1000,106,FALSE),3)=\"The\",EN923,VLOOKUP(VLOOKUP($G923,$H$11:$DO$1000,106,FALSE),DeclMatrix!$A$2:$F$5,VLOOKUP('Enrollment Form'!$B923,DeclMatrix!$A$8:$B$12,2,FALSE),FALSE))))","v":""},{"$f":"IF($A923=\"\",\"\",IF(VLOOKUP($G923,$H$11:$DO$1000,109,FALSE)=\"\",\"No\",IF(LEFT(VLOOKUP($G923,$H$11:$DO$1000,109,FALSE),3)=\"The\",EO923,VLOOKUP(VLOOKUP($G923,$H$11:$DO$1000,109,FALSE),DeclMatrix!$A$2:$F$5,VLOOKUP('Enrollment Form'!$B923,DeclMatrix!$A$8:$B$12,2,FALSE),FALSE))))","v":""},{"$f":"IF($A923=\"\",\"\",IF(VLOOKUP($G923,$H$11:$DO$1000,112,FALSE)=\"\",\"No\",IF(LEFT(VLOOKUP($G923,$H$11:$DO$1000,112,FALSE),3)=\"The\",EP923,VLOOKUP(VLOOKUP($G923,$H$11:$DO$1000,112,FALSE),DeclMatrix!$A$2:$F$5,VLOOKUP('Enrollment Form'!$B923,DeclMatrix!$A$8:$B$12,2,FALSE),FALSE))))","v":""},null,null,null,null,null,null,null,null,"",null,"","","","","","","","","","","",""]
["",null,null,null,null,null,"","",null,null,null,null,null,null,null,null,null,null,null,null,null,null,null,null,null,null,"","","","",null,null,"",null,null,null,null,null,null,null,null,null,null,null,null,null,null,null,null,null,null,null,null,null,null,null,null,null,null,null,"","","",null,null,null,null,"","","","",null,null,null,null,null,null,null,null,null,null,null,null,null,null,null,null,null,null,null,null,null,null,null,null,null,null,null,null,null,null,null,null,null,null,null,null,null,null,null,null,null,null,null,null,null,null,null,null,null,null,null,null,"",{"$f":"IF($A925=\"\",\"\",IF(VLOOKUP($G925,$H$11:$DO$1000,103,FALSE)=\"\",\"No\",IF(LEFT(VLOOKUP($G925,$H$11:$DO$1000,103,FALSE),3)=\"The\",EM925,VLOOKUP(VLOOKUP($G925,$H$11:$DO$1000,103,FALSE),DeclMatrix!$A$2:$F$5,VLOOKUP('Enrollment Form'!$B925,DeclMatrix!$A$8:$B$12,2,FALSE),FALSE))))","v":""},{"$f":"IF($A925=\"\",\"\",IF(VLOOKUP($G925,$H$11:$DO$1000,106,FALSE)=\"\",\"No\",IF(LEFT(VLOOKUP($G925,$H$11:$DO$1000,106,FALSE),3)=\"The\",EN925,VLOOKUP(VLOOKUP($G925,$H$11:$DO$1000,106,FALSE),DeclMatrix!$A$2:$F$5,VLOOKUP('Enrollment Form'!$B925,DeclMatrix!$A$8:$B$12,2,FALSE),FALSE))))","v":""},{"$f":"IF($A925=\"\",\"\",IF(VLOOKUP($G925,$H$11:$DO$1000,109,FALSE)=\"\",\"No\",IF(LEFT(VLOOKUP($G925,$H$11:$DO$1000,109,FALSE),3)=\"The\",EO925,VLOOKUP(VLOOKUP($G925,$H$11:$DO$1000,109,FALSE),DeclMatrix!$A$2:$F$5,VLOOKUP('Enrollment Form'!$B925,DeclMatrix!$A$8:$B$12,2,FALSE),FALSE))))","v":""},{"$f":"IF($A925=\"\",\"\",IF(VLOOKUP($G925,$H$11:$DO$1000,112,FALSE)=\"\",\"No\",IF(LEFT(VLOOKUP($G925,$H$11:$DO$1000,112,FALSE),3)=\"The\",EP925,VLOOKUP(VLOOKUP($G925,$H$11:$DO$1000,112,FALSE),DeclMatrix!$A$2:$F$5,VLOOKUP('Enrollment Form'!$B925,DeclMatrix!$A$8:$B$12,2,FALSE),FALSE))))","v":""},null,null,null,null,null,null,null,null,"",null,"","","","","","","","","","","",""]
["",null,null,null,null,null,"","",null,null,null,null,null,null,null,null,null,null,null,null,null,null,null,null,null,null,"","","","",null,null,"",null,null,null,null,null,null,null,null,null,null,null,null,null,null,null,null,null,null,null,null,null,null,null,null,null,null,null,"","","",null,null,null,null,"","","","",null,null,null,null,null,null,null,null,null,null,null,null,null,null,null,null,null,null,null,null,null,null,null,null,null,null,null,null,null,null,null,null,null,null,null,null,null,null,null,null,null,null,null,null,null,null,null,null,null,null,null,null,"",{"$f":"IF($A928=\"\",\"\",IF(VLOOKUP($G928,$H$11:$DO$1000,103,FALSE)=\"\",\"No\",IF(LEFT(VLOOKUP($G928,$H$11:$DO$1000,103,FALSE),3)=\"The\",EM928,VLOOKUP(VLOOKUP($G928,$H$11:$DO$1000,103,FALSE),DeclMatrix!$A$2:$F$5,VLOOKUP('Enrollment Form'!$B928,DeclMatrix!$A$8:$B$12,2,FALSE),FALSE))))","v":""},{"$f":"IF($A928=\"\",\"\",IF(VLOOKUP($G928,$H$11:$DO$1000,106,FALSE)=\"\",\"No\",IF(LEFT(VLOOKUP($G928,$H$11:$DO$1000,106,FALSE),3)=\"The\",EN928,VLOOKUP(VLOOKUP($G928,$H$11:$DO$1000,106,FALSE),DeclMatrix!$A$2:$F$5,VLOOKUP('Enrollment Form'!$B928,DeclMatrix!$A$8:$B$12,2,FALSE),FALSE))))","v":""},{"$f":"IF($A928=\"\",\"\",IF(VLOOKUP($G928,$H$11:$DO$1000,109,FALSE)=\"\",\"No\",IF(LEFT(VLOOKUP($G928,$H$11:$DO$1000,109,FALSE),3)=\"The\",EO928,VLOOKUP(VLOOKUP($G928,$H$11:$DO$1000,109,FALSE),DeclMatrix!$A$2:$F$5,VLOOKUP('Enrollment Form'!$B928,DeclMatrix!$A$8:$B$12,2,FALSE),FALSE))))","v":""},{"$f":"IF($A928=\"\",\"\",IF(VLOOKUP($G928,$H$11:$DO$1000,112,FALSE)=\"\",\"No\",IF(LEFT(VLOOKUP($G928,$H$11:$DO$1000,112,FALSE),3)=\"The\",EP928,VLOOKUP(VLOOKUP($G928,$H$11:$DO$1000,112,FALSE),DeclMatrix!$A$2:$F$5,VLOOKUP('Enrollment Form'!$B928,DeclMatrix!$A$8:$B$12,2,FALSE),FALSE))))","v":""},null,null,null,null,null,null,null,null,"",null,"","","","","","","","","","","",""]
["",null,null,null,null,null,"","",null,null,null,null,null,null,null,null,null,null,null,null,null,null,null,null,null,null,"","","","",null,null,"",null,null,null,null,null,null,null,null,null,null,null,null,null,null,null,null,null,null,null,null,null,null,null,null,null,null,null,"","","",null,null,null,null,"","","","",null,null,null,null,null,null,null,null,null,null,null,null,null,null,null,null,null,null,null,null,null,null,null,null,null,null,null,null,null,null,null,null,null,null,null,null,null,null,null,null,null,null,null,null,null,null,null,null,null,null,null,null,"",{"$f":"IF($A932=\"\",\"\",IF(VLOOKUP($G932,$H$11:$DO$1000,103,FALSE)=\"\",\"No\",IF(LEFT(VLOOKUP($G932,$H$11:$DO$1000,103,FALSE),3)=\"The\",EM932,VLOOKUP(VLOOKUP($G932,$H$11:$DO$1000,103,FALSE),DeclMatrix!$A$2:$F$5,VLOOKUP('Enrollment Form'!$B932,DeclMatrix!$A$8:$B$12,2,FALSE),FALSE))))","v":""},{"$f":"IF($A932=\"\",\"\",IF(VLOOKUP($G932,$H$11:$DO$1000,106,FALSE)=\"\",\"No\",IF(LEFT(VLOOKUP($G932,$H$11:$DO$1000,106,FALSE),3)=\"The\",EN932,VLOOKUP(VLOOKUP($G932,$H$11:$DO$1000,106,FALSE),DeclMatrix!$A$2:$F$5,VLOOKUP('Enrollment Form'!$B932,DeclMatrix!$A$8:$B$12,2,FALSE),FALSE))))","v":""},{"$f":"IF($A932=\"\",\"\",IF(VLOOKUP($G932,$H$11:$DO$1000,109,FALSE)=\"\",\"No\",IF(LEFT(VLOOKUP($G932,$H$11:$DO$1000,109,FALSE),3)=\"The\",EO932,VLOOKUP(VLOOKUP($G932,$H$11:$DO$1000,109,FALSE),DeclMatrix!$A$2:$F$5,VLOOKUP('Enrollment Form'!$B932,DeclMatrix!$A$8:$B$12,2,FALSE),FALSE))))","v":""},{"$f":"IF($A932=\"\",\"\",IF(VLOOKUP($G932,$H$11:$DO$1000,112,FALSE)=\"\",\"No\",IF(LEFT(VLOOKUP($G932,$H$11:$DO$1000,112,FALSE),3)=\"The\",EP932,VLOOKUP(VLOOKUP($G932,$H$11:$DO$1000,112,FALSE),DeclMatrix!$A$2:$F$5,VLOOKUP('Enrollment Form'!$B932,DeclMatrix!$A$8:$B$12,2,FALSE),FALSE))))","v":""},null,null,null,null,null,null,null,null,"",null,"","","","","","","","","","","",""]
["",null,null,null,null,null,"","",null,null,null,null,null,null,null,null,null,null,null,null,null,null,null,null,null,null,"","","","",null,null,"",null,null,null,null,null,null,null,null,null,null,null,null,null,null,null,null,null,null,null,null,null,null,null,null,null,null,null,"","","",null,null,null,null,"","","","",null,null,null,null,null,null,null,null,null,null,null,null,null,null,null,null,null,null,null,null,null,null,null,null,null,null,null,null,null,null,null,null,null,null,null,null,null,null,null,null,null,null,null,null,null,null,null,null,null,null,null,null,"",{"$f":"IF($A935=\"\",\"\",IF(VLOOKUP($G935,$H$11:$DO$1000,103,FALSE)=\"\",\"No\",IF(LEFT(VLOOKUP($G935,$H$11:$DO$1000,103,FALSE),3)=\"The\",EM935,VLOOKUP(VLOOKUP($G935,$H$11:$DO$1000,103,FALSE),DeclMatrix!$A$2:$F$5,VLOOKUP('Enrollment Form'!$B935,DeclMatrix!$A$8:$B$12,2,FALSE),FALSE))))","v":""},{"$f":"IF($A935=\"\",\"\",IF(VLOOKUP($G935,$H$11:$DO$1000,106,FALSE)=\"\",\"No\",IF(LEFT(VLOOKUP($G935,$H$11:$DO$1000,106,FALSE),3)=\"The\",EN935,VLOOKUP(VLOOKUP($G935,$H$11:$DO$1000,106,FALSE),DeclMatrix!$A$2:$F$5,VLOOKUP('Enrollment Form'!$B935,DeclMatrix!$A$8:$B$12,2,FALSE),FALSE))))","v":""},{"$f":"IF($A935=\"\",\"\",IF(VLOOKUP($G935,$H$11:$DO$1000,109,FALSE)=\"\",\"No\",IF(LEFT(VLOOKUP($G935,$H$11:$DO$1000,109,FALSE),3)=\"The\",EO935,VLOOKUP(VLOOKUP($G935,$H$11:$DO$1000,109,FALSE),DeclMatrix!$A$2:$F$5,VLOOKUP('Enrollment Form'!$B935,DeclMatrix!$A$8:$B$12,2,FALSE),FALSE))))","v":""},{"$f":"IF($A935=\"\",\"\",IF(VLOOKUP($G935,$H$11:$DO$1000,112,FALSE)=\"\",\"No\",IF(LEFT(VLOOKUP($G935,$H$11:$DO$1000,112,FALSE),3)=\"The\",EP935,VLOOKUP(VLOOKUP($G935,$H$11:$DO$1000,112,FALSE),DeclMatrix!$A$2:$F$5,VLOOKUP('Enrollment Form'!$B935,DeclMatrix!$A$8:$B$12,2,FALSE),FALSE))))","v":""},null,null,null,null,null,null,null,null,"",null,"","","","","","","","","","","",""]
["",null,null,null,null,null,"","",null,null,null,null,null,null,null,null,null,null,null,null,null,null,null,null,null,null,"","","","",null,null,"",null,null,null,null,null,null,null,null,null,null,null,null,null,null,null,null,null,null,null,null,null,null,null,null,null,null,null,"","","",null,null,null,null,"","","","",null,null,null,null,null,null,null,null,null,null,null,null,null,null,null,null,null,null,null,null,null,null,null,null,null,null,null,null,null,null,null,null,null,null,null,null,null,null,null,null,null,null,null,null,null,null,null,null,null,null,null,null,"",{"$f":"IF($A936=\"\",\"\",IF(VLOOKUP($G936,$H$11:$DO$1000,103,FALSE)=\"\",\"No\",IF(LEFT(VLOOKUP($G936,$H$11:$DO$1000,103,FALSE),3)=\"The\",EM936,VLOOKUP(VLOOKUP($G936,$H$11:$DO$1000,103,FALSE),DeclMatrix!$A$2:$F$5,VLOOKUP('Enrollment Form'!$B936,DeclMatrix!$A$8:$B$12,2,FALSE),FALSE))))","v":""},{"$f":"IF($A936=\"\",\"\",IF(VLOOKUP($G936,$H$11:$DO$1000,106,FALSE)=\"\",\"No\",IF(LEFT(VLOOKUP($G936,$H$11:$DO$1000,106,FALSE),3)=\"The\",EN936,VLOOKUP(VLOOKUP($G936,$H$11:$DO$1000,106,FALSE),DeclMatrix!$A$2:$F$5,VLOOKUP('Enrollment Form'!$B936,DeclMatrix!$A$8:$B$12,2,FALSE),FALSE))))","v":""},{"$f":"IF($A936=\"\",\"\",IF(VLOOKUP($G936,$H$11:$DO$1000,109,FALSE)=\"\",\"No\",IF(LEFT(VLOOKUP($G936,$H$11:$DO$1000,109,FALSE),3)=\"The\",EO936,VLOOKUP(VLOOKUP($G936,$H$11:$DO$1000,109,FALSE),DeclMatrix!$A$2:$F$5,VLOOKUP('Enrollment Form'!$B936,DeclMatrix!$A$8:$B$12,2,FALSE),FALSE))))","v":""},{"$f":"IF($A936=\"\",\"\",IF(VLOOKUP($G936,$H$11:$DO$1000,112,FALSE)=\"\",\"No\",IF(LEFT(VLOOKUP($G936,$H$11:$DO$1000,112,FALSE),3)=\"The\",EP936,VLOOKUP(VLOOKUP($G936,$H$11:$DO$1000,112,FALSE),DeclMatrix!$A$2:$F$5,VLOOKUP('Enrollment Form'!$B936,DeclMatrix!$A$8:$B$12,2,FALSE),FALSE))))","v":""},null,null,null,null,null,null,null,null,"",null,"","","","","","","","","","","",""]
["",null,null,null,null,null,"","",null,null,null,null,null,null,null,null,null,null,null,null,null,null,null,null,null,null,"","","","",null,null,"",null,null,null,null,null,null,null,null,null,null,null,null,null,null,null,null,null,null,null,null,null,null,null,null,null,null,null,"","","",null,null,null,null,"","","","",null,null,null,null,null,null,null,null,null,null,null,null,null,null,null,null,null,null,null,null,null,null,null,null,null,null,null,null,null,null,null,null,null,null,null,null,null,null,null,null,null,null,null,null,null,null,null,null,null,null,null,null,"",{"$f":"IF($A939=\"\",\"\",IF(VLOOKUP($G939,$H$11:$DO$1000,103,FALSE)=\"\",\"No\",IF(LEFT(VLOOKUP($G939,$H$11:$DO$1000,103,FALSE),3)=\"The\",EM939,VLOOKUP(VLOOKUP($G939,$H$11:$DO$1000,103,FALSE),DeclMatrix!$A$2:$F$5,VLOOKUP('Enrollment Form'!$B939,DeclMatrix!$A$8:$B$12,2,FALSE),FALSE))))","v":""},{"$f":"IF($A939=\"\",\"\",IF(VLOOKUP($G939,$H$11:$DO$1000,106,FALSE)=\"\",\"No\",IF(LEFT(VLOOKUP($G939,$H$11:$DO$1000,106,FALSE),3)=\"The\",EN939,VLOOKUP(VLOOKUP($G939,$H$11:$DO$1000,106,FALSE),DeclMatrix!$A$2:$F$5,VLOOKUP('Enrollment Form'!$B939,DeclMatrix!$A$8:$B$12,2,FALSE),FALSE))))","v":""},{"$f":"IF($A939=\"\",\"\",IF(VLOOKUP($G939,$H$11:$DO$1000,109,FALSE)=\"\",\"No\",IF(LEFT(VLOOKUP($G939,$H$11:$DO$1000,109,FALSE),3)=\"The\",EO939,VLOOKUP(VLOOKUP($G939,$H$11:$DO$1000,109,FALSE),DeclMatrix!$A$2:$F$5,VLOOKUP('Enrollment Form'!$B939,DeclMatrix!$A$8:$B$12,2,FALSE),FALSE))))","v":""},{"$f":"IF($A939=\"\",\"\",IF(VLOOKUP($G939,$H$11:$DO$1000,112,FALSE)=\"\",\"No\",IF(LEFT(VLOOKUP($G939,$H$11:$DO$1000,112,FALSE),3)=\"The\",EP939,VLOOKUP(VLOOKUP($G939,$H$11:$DO$1000,112,FALSE),DeclMatrix!$A$2:$F$5,VLOOKUP('Enrollment Form'!$B939,DeclMatrix!$A$8:$B$12,2,FALSE),FALSE))))","v":""},null,null,null,null,null,null,null,null,"",null,"","","","","","","","","","","",""]
["",null,null,null,null,null,"","",null,null,null,null,null,null,null,null,null,null,null,null,null,null,null,null,null,null,"","","","",null,null,"",null,null,null,null,null,null,null,null,null,null,null,null,null,null,null,null,null,null,null,null,null,null,null,null,null,null,null,"","","",null,null,null,null,"","","","",null,null,null,null,null,null,null,null,null,null,null,null,null,null,null,null,null,null,null,null,null,null,null,null,null,null,null,null,null,null,null,null,null,null,null,null,null,null,null,null,null,null,null,null,null,null,null,null,null,null,null,null,"",{"$f":"IF($A940=\"\",\"\",IF(VLOOKUP($G940,$H$11:$DO$1000,103,FALSE)=\"\",\"No\",IF(LEFT(VLOOKUP($G940,$H$11:$DO$1000,103,FALSE),3)=\"The\",EM940,VLOOKUP(VLOOKUP($G940,$H$11:$DO$1000,103,FALSE),DeclMatrix!$A$2:$F$5,VLOOKUP('Enrollment Form'!$B940,DeclMatrix!$A$8:$B$12,2,FALSE),FALSE))))","v":""},{"$f":"IF($A940=\"\",\"\",IF(VLOOKUP($G940,$H$11:$DO$1000,106,FALSE)=\"\",\"No\",IF(LEFT(VLOOKUP($G940,$H$11:$DO$1000,106,FALSE),3)=\"The\",EN940,VLOOKUP(VLOOKUP($G940,$H$11:$DO$1000,106,FALSE),DeclMatrix!$A$2:$F$5,VLOOKUP('Enrollment Form'!$B940,DeclMatrix!$A$8:$B$12,2,FALSE),FALSE))))","v":""},{"$f":"IF($A940=\"\",\"\",IF(VLOOKUP($G940,$H$11:$DO$1000,109,FALSE)=\"\",\"No\",IF(LEFT(VLOOKUP($G940,$H$11:$DO$1000,109,FALSE),3)=\"The\",EO940,VLOOKUP(VLOOKUP($G940,$H$11:$DO$1000,109,FALSE),DeclMatrix!$A$2:$F$5,VLOOKUP('Enrollment Form'!$B940,DeclMatrix!$A$8:$B$12,2,FALSE),FALSE))))","v":""},{"$f":"IF($A940=\"\",\"\",IF(VLOOKUP($G940,$H$11:$DO$1000,112,FALSE)=\"\",\"No\",IF(LEFT(VLOOKUP($G940,$H$11:$DO$1000,112,FALSE),3)=\"The\",EP940,VLOOKUP(VLOOKUP($G940,$H$11:$DO$1000,112,FALSE),DeclMatrix!$A$2:$F$5,VLOOKUP('Enrollment Form'!$B940,DeclMatrix!$A$8:$B$12,2,FALSE),FALSE))))","v":""},null,null,null,null,null,null,null,null,"",null,"","","","","","","","","","","",""]
["",null,null,null,null,null,"","",null,null,null,null,null,null,null,null,null,null,null,null,null,null,null,null,null,null,"","","","",null,null,"",null,null,null,null,null,null,null,null,null,null,null,null,null,null,null,null,null,null,null,null,null,null,null,null,null,null,null,"","","",null,null,null,null,"","","","",null,null,null,null,null,null,null,null,null,null,null,null,null,null,null,null,null,null,null,null,null,null,null,null,null,null,null,null,null,null,null,null,null,null,null,null,null,null,null,null,null,null,null,null,null,null,null,null,null,null,null,null,"",{"$f":"IF($A941=\"\",\"\",IF(VLOOKUP($G941,$H$11:$DO$1000,103,FALSE)=\"\",\"No\",IF(LEFT(VLOOKUP($G941,$H$11:$DO$1000,103,FALSE),3)=\"The\",EM941,VLOOKUP(VLOOKUP($G941,$H$11:$DO$1000,103,FALSE),DeclMatrix!$A$2:$F$5,VLOOKUP('Enrollment Form'!$B941,DeclMatrix!$A$8:$B$12,2,FALSE),FALSE))))","v":""},{"$f":"IF($A941=\"\",\"\",IF(VLOOKUP($G941,$H$11:$DO$1000,106,FALSE)=\"\",\"No\",IF(LEFT(VLOOKUP($G941,$H$11:$DO$1000,106,FALSE),3)=\"The\",EN941,VLOOKUP(VLOOKUP($G941,$H$11:$DO$1000,106,FALSE),DeclMatrix!$A$2:$F$5,VLOOKUP('Enrollment Form'!$B941,DeclMatrix!$A$8:$B$12,2,FALSE),FALSE))))","v":""},{"$f":"IF($A941=\"\",\"\",IF(VLOOKUP($G941,$H$11:$DO$1000,109,FALSE)=\"\",\"No\",IF(LEFT(VLOOKUP($G941,$H$11:$DO$1000,109,FALSE),3)=\"The\",EO941,VLOOKUP(VLOOKUP($G941,$H$11:$DO$1000,109,FALSE),DeclMatrix!$A$2:$F$5,VLOOKUP('Enrollment Form'!$B941,DeclMatrix!$A$8:$B$12,2,FALSE),FALSE))))","v":""},{"$f":"IF($A941=\"\",\"\",IF(VLOOKUP($G941,$H$11:$DO$1000,112,FALSE)=\"\",\"No\",IF(LEFT(VLOOKUP($G941,$H$11:$DO$1000,112,FALSE),3)=\"The\",EP941,VLOOKUP(VLOOKUP($G941,$H$11:$DO$1000,112,FALSE),DeclMatrix!$A$2:$F$5,VLOOKUP('Enrollment Form'!$B941,DeclMatrix!$A$8:$B$12,2,FALSE),FALSE))))","v":""},null,null,null,null,null,null,null,null,"",null,"","","","","","","","","","","",""]
["",null,null,null,null,null,"","",null,null,null,null,null,null,null,null,null,null,null,null,null,null,null,null,null,null,"","","","",null,null,"",null,null,null,null,null,null,null,null,null,null,null,null,null,null,null,null,null,null,null,null,null,null,null,null,null,null,null,"","","",null,null,null,null,"","","","",null,null,null,null,null,null,null,null,null,null,null,null,null,null,null,null,null,null,null,null,null,null,null,null,null,null,null,null,null,null,null,null,null,null,null,null,null,null,null,null,null,null,null,null,null,null,null,null,null,null,null,null,"",{"$f":"IF($A942=\"\",\"\",IF(VLOOKUP($G942,$H$11:$DO$1000,103,FALSE)=\"\",\"No\",IF(LEFT(VLOOKUP($G942,$H$11:$DO$1000,103,FALSE),3)=\"The\",EM942,VLOOKUP(VLOOKUP($G942,$H$11:$DO$1000,103,FALSE),DeclMatrix!$A$2:$F$5,VLOOKUP('Enrollment Form'!$B942,DeclMatrix!$A$8:$B$12,2,FALSE),FALSE))))","v":""},{"$f":"IF($A942=\"\",\"\",IF(VLOOKUP($G942,$H$11:$DO$1000,106,FALSE)=\"\",\"No\",IF(LEFT(VLOOKUP($G942,$H$11:$DO$1000,106,FALSE),3)=\"The\",EN942,VLOOKUP(VLOOKUP($G942,$H$11:$DO$1000,106,FALSE),DeclMatrix!$A$2:$F$5,VLOOKUP('Enrollment Form'!$B942,DeclMatrix!$A$8:$B$12,2,FALSE),FALSE))))","v":""},{"$f":"IF($A942=\"\",\"\",IF(VLOOKUP($G942,$H$11:$DO$1000,109,FALSE)=\"\",\"No\",IF(LEFT(VLOOKUP($G942,$H$11:$DO$1000,109,FALSE),3)=\"The\",EO942,VLOOKUP(VLOOKUP($G942,$H$11:$DO$1000,109,FALSE),DeclMatrix!$A$2:$F$5,VLOOKUP('Enrollment Form'!$B942,DeclMatrix!$A$8:$B$12,2,FALSE),FALSE))))","v":""},{"$f":"IF($A942=\"\",\"\",IF(VLOOKUP($G942,$H$11:$DO$1000,112,FALSE)=\"\",\"No\",IF(LEFT(VLOOKUP($G942,$H$11:$DO$1000,112,FALSE),3)=\"The\",EP942,VLOOKUP(VLOOKUP($G942,$H$11:$DO$1000,112,FALSE),DeclMatrix!$A$2:$F$5,VLOOKUP('Enrollment Form'!$B942,DeclMatrix!$A$8:$B$12,2,FALSE),FALSE))))","v":""},null,null,null,null,null,null,null,null,"",null,"","","","","","","","","","","",""]
["",null,null,null,null,null,"","",null,null,null,null,null,null,null,null,null,null,null,null,null,null,null,null,null,null,"","","","",null,null,"",null,null,null,null,null,null,null,null,null,null,null,null,null,null,null,null,null,null,null,null,null,null,null,null,null,null,null,"","","",null,null,null,null,"","","","",null,null,null,null,null,null,null,null,null,null,null,null,null,null,null,null,null,null,null,null,null,null,null,null,null,null,null,null,null,null,null,null,null,null,null,null,null,null,null,null,null,null,null,null,null,null,null,null,null,null,null,null,"",{"$f":"IF($A943=\"\",\"\",IF(VLOOKUP($G943,$H$11:$DO$1000,103,FALSE)=\"\",\"No\",IF(LEFT(VLOOKUP($G943,$H$11:$DO$1000,103,FALSE),3)=\"The\",EM943,VLOOKUP(VLOOKUP($G943,$H$11:$DO$1000,103,FALSE),DeclMatrix!$A$2:$F$5,VLOOKUP('Enrollment Form'!$B943,DeclMatrix!$A$8:$B$12,2,FALSE),FALSE))))","v":""},{"$f":"IF($A943=\"\",\"\",IF(VLOOKUP($G943,$H$11:$DO$1000,106,FALSE)=\"\",\"No\",IF(LEFT(VLOOKUP($G943,$H$11:$DO$1000,106,FALSE),3)=\"The\",EN943,VLOOKUP(VLOOKUP($G943,$H$11:$DO$1000,106,FALSE),DeclMatrix!$A$2:$F$5,VLOOKUP('Enrollment Form'!$B943,DeclMatrix!$A$8:$B$12,2,FALSE),FALSE))))","v":""},{"$f":"IF($A943=\"\",\"\",IF(VLOOKUP($G943,$H$11:$DO$1000,109,FALSE)=\"\",\"No\",IF(LEFT(VLOOKUP($G943,$H$11:$DO$1000,109,FALSE),3)=\"The\",EO943,VLOOKUP(VLOOKUP($G943,$H$11:$DO$1000,109,FALSE),DeclMatrix!$A$2:$F$5,VLOOKUP('Enrollment Form'!$B943,DeclMatrix!$A$8:$B$12,2,FALSE),FALSE))))","v":""},{"$f":"IF($A943=\"\",\"\",IF(VLOOKUP($G943,$H$11:$DO$1000,112,FALSE)=\"\",\"No\",IF(LEFT(VLOOKUP($G943,$H$11:$DO$1000,112,FALSE),3)=\"The\",EP943,VLOOKUP(VLOOKUP($G943,$H$11:$DO$1000,112,FALSE),DeclMatrix!$A$2:$F$5,VLOOKUP('Enrollment Form'!$B943,DeclMatrix!$A$8:$B$12,2,FALSE),FALSE))))","v":""},null,null,null,null,null,null,null,null,"",null,"","","","","","","","","","","",""]
["",null,null,null,null,null,"","",null,null,null,null,null,null,null,null,null,null,null,null,null,null,null,null,null,null,"","","","",null,null,"",null,null,null,null,null,null,null,null,null,null,null,null,null,null,null,null,null,null,null,null,null,null,null,null,null,null,null,"","","",null,null,null,null,"","","","",null,null,null,null,null,null,null,null,null,null,null,null,null,null,null,null,null,null,null,null,null,null,null,null,null,null,null,null,null,null,null,null,null,null,null,null,null,null,null,null,null,null,null,null,null,null,null,null,null,null,null,null,"",{"$f":"IF($A944=\"\",\"\",IF(VLOOKUP($G944,$H$11:$DO$1000,103,FALSE)=\"\",\"No\",IF(LEFT(VLOOKUP($G944,$H$11:$DO$1000,103,FALSE),3)=\"The\",EM944,VLOOKUP(VLOOKUP($G944,$H$11:$DO$1000,103,FALSE),DeclMatrix!$A$2:$F$5,VLOOKUP('Enrollment Form'!$B944,DeclMatrix!$A$8:$B$12,2,FALSE),FALSE))))","v":""},{"$f":"IF($A944=\"\",\"\",IF(VLOOKUP($G944,$H$11:$DO$1000,106,FALSE)=\"\",\"No\",IF(LEFT(VLOOKUP($G944,$H$11:$DO$1000,106,FALSE),3)=\"The\",EN944,VLOOKUP(VLOOKUP($G944,$H$11:$DO$1000,106,FALSE),DeclMatrix!$A$2:$F$5,VLOOKUP('Enrollment Form'!$B944,DeclMatrix!$A$8:$B$12,2,FALSE),FALSE))))","v":""},{"$f":"IF($A944=\"\",\"\",IF(VLOOKUP($G944,$H$11:$DO$1000,109,FALSE)=\"\",\"No\",IF(LEFT(VLOOKUP($G944,$H$11:$DO$1000,109,FALSE),3)=\"The\",EO944,VLOOKUP(VLOOKUP($G944,$H$11:$DO$1000,109,FALSE),DeclMatrix!$A$2:$F$5,VLOOKUP('Enrollment Form'!$B944,DeclMatrix!$A$8:$B$12,2,FALSE),FALSE))))","v":""},{"$f":"IF($A944=\"\",\"\",IF(VLOOKUP($G944,$H$11:$DO$1000,112,FALSE)=\"\",\"No\",IF(LEFT(VLOOKUP($G944,$H$11:$DO$1000,112,FALSE),3)=\"The\",EP944,VLOOKUP(VLOOKUP($G944,$H$11:$DO$1000,112,FALSE),DeclMatrix!$A$2:$F$5,VLOOKUP('Enrollment Form'!$B944,DeclMatrix!$A$8:$B$12,2,FALSE),FALSE))))","v":""},null,null,null,null,null,null,null,null,"",null,"","","","","","","","","","","",""]
["",null,null,null,null,null,"","",null,null,null,null,null,null,null,null,null,null,null,null,null,null,null,null,null,null,"","","","",null,null,"",null,null,null,null,null,null,null,null,null,null,null,null,null,null,null,null,null,null,null,null,null,null,null,null,null,null,null,"","","",null,null,null,null,"","","","",null,null,null,null,null,null,null,null,null,null,null,null,null,null,null,null,null,null,null,null,null,null,null,null,null,null,null,null,null,null,null,null,null,null,null,null,null,null,null,null,null,null,null,null,null,null,null,null,null,null,null,null,"",{"$f":"IF($A945=\"\",\"\",IF(VLOOKUP($G945,$H$11:$DO$1000,103,FALSE)=\"\",\"No\",IF(LEFT(VLOOKUP($G945,$H$11:$DO$1000,103,FALSE),3)=\"The\",EM945,VLOOKUP(VLOOKUP($G945,$H$11:$DO$1000,103,FALSE),DeclMatrix!$A$2:$F$5,VLOOKUP('Enrollment Form'!$B945,DeclMatrix!$A$8:$B$12,2,FALSE),FALSE))))","v":""},{"$f":"IF($A945=\"\",\"\",IF(VLOOKUP($G945,$H$11:$DO$1000,106,FALSE)=\"\",\"No\",IF(LEFT(VLOOKUP($G945,$H$11:$DO$1000,106,FALSE),3)=\"The\",EN945,VLOOKUP(VLOOKUP($G945,$H$11:$DO$1000,106,FALSE),DeclMatrix!$A$2:$F$5,VLOOKUP('Enrollment Form'!$B945,DeclMatrix!$A$8:$B$12,2,FALSE),FALSE))))","v":""},{"$f":"IF($A945=\"\",\"\",IF(VLOOKUP($G945,$H$11:$DO$1000,109,FALSE)=\"\",\"No\",IF(LEFT(VLOOKUP($G945,$H$11:$DO$1000,109,FALSE),3)=\"The\",EO945,VLOOKUP(VLOOKUP($G945,$H$11:$DO$1000,109,FALSE),DeclMatrix!$A$2:$F$5,VLOOKUP('Enrollment Form'!$B945,DeclMatrix!$A$8:$B$12,2,FALSE),FALSE))))","v":""},{"$f":"IF($A945=\"\",\"\",IF(VLOOKUP($G945,$H$11:$DO$1000,112,FALSE)=\"\",\"No\",IF(LEFT(VLOOKUP($G945,$H$11:$DO$1000,112,FALSE),3)=\"The\",EP945,VLOOKUP(VLOOKUP($G945,$H$11:$DO$1000,112,FALSE),DeclMatrix!$A$2:$F$5,VLOOKUP('Enrollment Form'!$B945,DeclMatrix!$A$8:$B$12,2,FALSE),FALSE))))","v":""},null,null,null,null,null,null,null,null,"",null,"","","","","","","","","","","",""]
["",null,null,null,null,null,"","",null,null,null,null,null,null,null,null,null,null,null,null,null,null,null,null,null,null,"","","","",null,null,"",null,null,null,null,null,null,null,null,null,null,null,null,null,null,null,null,null,null,null,null,null,null,null,null,null,null,null,"","","",null,null,null,null,"","","","",null,null,null,null,null,null,null,null,null,null,null,null,null,null,null,null,null,null,null,null,null,null,null,null,null,null,null,null,null,null,null,null,null,null,null,null,null,null,null,null,null,null,null,null,null,null,null,null,null,null,null,null,"",{"$f":"IF($A946=\"\",\"\",IF(VLOOKUP($G946,$H$11:$DO$1000,103,FALSE)=\"\",\"No\",IF(LEFT(VLOOKUP($G946,$H$11:$DO$1000,103,FALSE),3)=\"The\",EM946,VLOOKUP(VLOOKUP($G946,$H$11:$DO$1000,103,FALSE),DeclMatrix!$A$2:$F$5,VLOOKUP('Enrollment Form'!$B946,DeclMatrix!$A$8:$B$12,2,FALSE),FALSE))))","v":""},{"$f":"IF($A946=\"\",\"\",IF(VLOOKUP($G946,$H$11:$DO$1000,106,FALSE)=\"\",\"No\",IF(LEFT(VLOOKUP($G946,$H$11:$DO$1000,106,FALSE),3)=\"The\",EN946,VLOOKUP(VLOOKUP($G946,$H$11:$DO$1000,106,FALSE),DeclMatrix!$A$2:$F$5,VLOOKUP('Enrollment Form'!$B946,DeclMatrix!$A$8:$B$12,2,FALSE),FALSE))))","v":""},{"$f":"IF($A946=\"\",\"\",IF(VLOOKUP($G946,$H$11:$DO$1000,109,FALSE)=\"\",\"No\",IF(LEFT(VLOOKUP($G946,$H$11:$DO$1000,109,FALSE),3)=\"The\",EO946,VLOOKUP(VLOOKUP($G946,$H$11:$DO$1000,109,FALSE),DeclMatrix!$A$2:$F$5,VLOOKUP('Enrollment Form'!$B946,DeclMatrix!$A$8:$B$12,2,FALSE),FALSE))))","v":""},{"$f":"IF($A946=\"\",\"\",IF(VLOOKUP($G946,$H$11:$DO$1000,112,FALSE)=\"\",\"No\",IF(LEFT(VLOOKUP($G946,$H$11:$DO$1000,112,FALSE),3)=\"The\",EP946,VLOOKUP(VLOOKUP($G946,$H$11:$DO$1000,112,FALSE),DeclMatrix!$A$2:$F$5,VLOOKUP('Enrollment Form'!$B946,DeclMatrix!$A$8:$B$12,2,FALSE),FALSE))))","v":""},null,null,null,null,null,null,null,null,"",null,"","","","","","","","","","","",""]
["",null,null,null,null,null,"","",null,null,null,null,null,null,null,null,null,null,null,null,null,null,null,null,null,null,"","","","",null,null,"",null,null,null,null,null,null,null,null,null,null,null,null,null,null,null,null,null,null,null,null,null,null,null,null,null,null,null,"","","",null,null,null,null,"","","","",null,null,null,null,null,null,null,null,null,null,null,null,null,null,null,null,null,null,null,null,null,null,null,null,null,null,null,null,null,null,null,null,null,null,null,null,null,null,null,null,null,null,null,null,null,null,null,null,null,null,null,null,"",{"$f":"IF($A947=\"\",\"\",IF(VLOOKUP($G947,$H$11:$DO$1000,103,FALSE)=\"\",\"No\",IF(LEFT(VLOOKUP($G947,$H$11:$DO$1000,103,FALSE),3)=\"The\",EM947,VLOOKUP(VLOOKUP($G947,$H$11:$DO$1000,103,FALSE),DeclMatrix!$A$2:$F$5,VLOOKUP('Enrollment Form'!$B947,DeclMatrix!$A$8:$B$12,2,FALSE),FALSE))))","v":""},{"$f":"IF($A947=\"\",\"\",IF(VLOOKUP($G947,$H$11:$DO$1000,106,FALSE)=\"\",\"No\",IF(LEFT(VLOOKUP($G947,$H$11:$DO$1000,106,FALSE),3)=\"The\",EN947,VLOOKUP(VLOOKUP($G947,$H$11:$DO$1000,106,FALSE),DeclMatrix!$A$2:$F$5,VLOOKUP('Enrollment Form'!$B947,DeclMatrix!$A$8:$B$12,2,FALSE),FALSE))))","v":""},{"$f":"IF($A947=\"\",\"\",IF(VLOOKUP($G947,$H$11:$DO$1000,109,FALSE)=\"\",\"No\",IF(LEFT(VLOOKUP($G947,$H$11:$DO$1000,109,FALSE),3)=\"The\",EO947,VLOOKUP(VLOOKUP($G947,$H$11:$DO$1000,109,FALSE),DeclMatrix!$A$2:$F$5,VLOOKUP('Enrollment Form'!$B947,DeclMatrix!$A$8:$B$12,2,FALSE),FALSE))))","v":""},{"$f":"IF($A947=\"\",\"\",IF(VLOOKUP($G947,$H$11:$DO$1000,112,FALSE)=\"\",\"No\",IF(LEFT(VLOOKUP($G947,$H$11:$DO$1000,112,FALSE),3)=\"The\",EP947,VLOOKUP(VLOOKUP($G947,$H$11:$DO$1000,112,FALSE),DeclMatrix!$A$2:$F$5,VLOOKUP('Enrollment Form'!$B947,DeclMatrix!$A$8:$B$12,2,FALSE),FALSE))))","v":""},null,null,null,null,null,null,null,null,"",null,"","","","","","","","","","","",""]
["",null,null,null,null,null,"","",null,null,null,null,null,null,null,null,null,null,null,null,null,null,null,null,null,null,"","","","",null,null,"",null,null,null,null,null,null,null,null,null,null,null,null,null,null,null,null,null,null,null,null,null,null,null,null,null,null,null,"","","",null,null,null,null,"","","","",null,null,null,null,null,null,null,null,null,null,null,null,null,null,null,null,null,null,null,null,null,null,null,null,null,null,null,null,null,null,null,null,null,null,null,null,null,null,null,null,null,null,null,null,null,null,null,null,null,null,null,null,"",{"$f":"IF($A948=\"\",\"\",IF(VLOOKUP($G948,$H$11:$DO$1000,103,FALSE)=\"\",\"No\",IF(LEFT(VLOOKUP($G948,$H$11:$DO$1000,103,FALSE),3)=\"The\",EM948,VLOOKUP(VLOOKUP($G948,$H$11:$DO$1000,103,FALSE),DeclMatrix!$A$2:$F$5,VLOOKUP('Enrollment Form'!$B948,DeclMatrix!$A$8:$B$12,2,FALSE),FALSE))))","v":""},{"$f":"IF($A948=\"\",\"\",IF(VLOOKUP($G948,$H$11:$DO$1000,106,FALSE)=\"\",\"No\",IF(LEFT(VLOOKUP($G948,$H$11:$DO$1000,106,FALSE),3)=\"The\",EN948,VLOOKUP(VLOOKUP($G948,$H$11:$DO$1000,106,FALSE),DeclMatrix!$A$2:$F$5,VLOOKUP('Enrollment Form'!$B948,DeclMatrix!$A$8:$B$12,2,FALSE),FALSE))))","v":""},{"$f":"IF($A948=\"\",\"\",IF(VLOOKUP($G948,$H$11:$DO$1000,109,FALSE)=\"\",\"No\",IF(LEFT(VLOOKUP($G948,$H$11:$DO$1000,109,FALSE),3)=\"The\",EO948,VLOOKUP(VLOOKUP($G948,$H$11:$DO$1000,109,FALSE),DeclMatrix!$A$2:$F$5,VLOOKUP('Enrollment Form'!$B948,DeclMatrix!$A$8:$B$12,2,FALSE),FALSE))))","v":""},{"$f":"IF($A948=\"\",\"\",IF(VLOOKUP($G948,$H$11:$DO$1000,112,FALSE)=\"\",\"No\",IF(LEFT(VLOOKUP($G948,$H$11:$DO$1000,112,FALSE),3)=\"The\",EP948,VLOOKUP(VLOOKUP($G948,$H$11:$DO$1000,112,FALSE),DeclMatrix!$A$2:$F$5,VLOOKUP('Enrollment Form'!$B948,DeclMatrix!$A$8:$B$12,2,FALSE),FALSE))))","v":""},null,null,null,null,null,null,null,null,"",null,"","","","","","","","","","","",""]
["",null,null,null,null,null,"","",null,null,null,null,null,null,null,null,null,null,null,null,null,null,null,null,null,null,"","","","",null,null,"",null,null,null,null,null,null,null,null,null,null,null,null,null,null,null,null,null,null,null,null,null,null,null,null,null,null,null,"","","",null,null,null,null,"","","","",null,null,null,null,null,null,null,null,null,null,null,null,null,null,null,null,null,null,null,null,null,null,null,null,null,null,null,null,null,null,null,null,null,null,null,null,null,null,null,null,null,null,null,null,null,null,null,null,null,null,null,null,"",{"$f":"IF($A949=\"\",\"\",IF(VLOOKUP($G949,$H$11:$DO$1000,103,FALSE)=\"\",\"No\",IF(LEFT(VLOOKUP($G949,$H$11:$DO$1000,103,FALSE),3)=\"The\",EM949,VLOOKUP(VLOOKUP($G949,$H$11:$DO$1000,103,FALSE),DeclMatrix!$A$2:$F$5,VLOOKUP('Enrollment Form'!$B949,DeclMatrix!$A$8:$B$12,2,FALSE),FALSE))))","v":""},{"$f":"IF($A949=\"\",\"\",IF(VLOOKUP($G949,$H$11:$DO$1000,106,FALSE)=\"\",\"No\",IF(LEFT(VLOOKUP($G949,$H$11:$DO$1000,106,FALSE),3)=\"The\",EN949,VLOOKUP(VLOOKUP($G949,$H$11:$DO$1000,106,FALSE),DeclMatrix!$A$2:$F$5,VLOOKUP('Enrollment Form'!$B949,DeclMatrix!$A$8:$B$12,2,FALSE),FALSE))))","v":""},{"$f":"IF($A949=\"\",\"\",IF(VLOOKUP($G949,$H$11:$DO$1000,109,FALSE)=\"\",\"No\",IF(LEFT(VLOOKUP($G949,$H$11:$DO$1000,109,FALSE),3)=\"The\",EO949,VLOOKUP(VLOOKUP($G949,$H$11:$DO$1000,109,FALSE),DeclMatrix!$A$2:$F$5,VLOOKUP('Enrollment Form'!$B949,DeclMatrix!$A$8:$B$12,2,FALSE),FALSE))))","v":""},{"$f":"IF($A949=\"\",\"\",IF(VLOOKUP($G949,$H$11:$DO$1000,112,FALSE)=\"\",\"No\",IF(LEFT(VLOOKUP($G949,$H$11:$DO$1000,112,FALSE),3)=\"The\",EP949,VLOOKUP(VLOOKUP($G949,$H$11:$DO$1000,112,FALSE),DeclMatrix!$A$2:$F$5,VLOOKUP('Enrollment Form'!$B949,DeclMatrix!$A$8:$B$12,2,FALSE),FALSE))))","v":""},null,null,null,null,null,null,null,null,"",null,"","","","","","","","","","","",""]
["",null,null,null,null,null,"","",null,null,null,null,null,null,null,null,null,null,null,null,null,null,null,null,null,null,"","","","",null,null,"",null,null,null,null,null,null,null,null,null,null,null,null,null,null,null,null,null,null,null,null,null,null,null,null,null,null,null,"","","",null,null,null,null,"","","","",null,null,null,null,null,null,null,null,null,null,null,null,null,null,null,null,null,null,null,null,null,null,null,null,null,null,null,null,null,null,null,null,null,null,null,null,null,null,null,null,null,null,null,null,null,null,null,null,null,null,null,null,"",{"$f":"IF($A950=\"\",\"\",IF(VLOOKUP($G950,$H$11:$DO$1000,103,FALSE)=\"\",\"No\",IF(LEFT(VLOOKUP($G950,$H$11:$DO$1000,103,FALSE),3)=\"The\",EM950,VLOOKUP(VLOOKUP($G950,$H$11:$DO$1000,103,FALSE),DeclMatrix!$A$2:$F$5,VLOOKUP('Enrollment Form'!$B950,DeclMatrix!$A$8:$B$12,2,FALSE),FALSE))))","v":""},{"$f":"IF($A950=\"\",\"\",IF(VLOOKUP($G950,$H$11:$DO$1000,106,FALSE)=\"\",\"No\",IF(LEFT(VLOOKUP($G950,$H$11:$DO$1000,106,FALSE),3)=\"The\",EN950,VLOOKUP(VLOOKUP($G950,$H$11:$DO$1000,106,FALSE),DeclMatrix!$A$2:$F$5,VLOOKUP('Enrollment Form'!$B950,DeclMatrix!$A$8:$B$12,2,FALSE),FALSE))))","v":""},{"$f":"IF($A950=\"\",\"\",IF(VLOOKUP($G950,$H$11:$DO$1000,109,FALSE)=\"\",\"No\",IF(LEFT(VLOOKUP($G950,$H$11:$DO$1000,109,FALSE),3)=\"The\",EO950,VLOOKUP(VLOOKUP($G950,$H$11:$DO$1000,109,FALSE),DeclMatrix!$A$2:$F$5,VLOOKUP('Enrollment Form'!$B950,DeclMatrix!$A$8:$B$12,2,FALSE),FALSE))))","v":""},{"$f":"IF($A950=\"\",\"\",IF(VLOOKUP($G950,$H$11:$DO$1000,112,FALSE)=\"\",\"No\",IF(LEFT(VLOOKUP($G950,$H$11:$DO$1000,112,FALSE),3)=\"The\",EP950,VLOOKUP(VLOOKUP($G950,$H$11:$DO$1000,112,FALSE),DeclMatrix!$A$2:$F$5,VLOOKUP('Enrollment Form'!$B950,DeclMatrix!$A$8:$B$12,2,FALSE),FALSE))))","v":""},null,null,null,null,null,null,null,null,"",null,"","","","","","","","","","","",""]
["",null,null,null,null,null,"","",null,null,null,null,null,null,null,null,null,null,null,null,null,null,null,null,null,null,"","","","",null,null,"",null,null,null,null,null,null,null,null,null,null,null,null,null,null,null,null,null,null,null,null,null,null,null,null,null,null,null,"","","",null,null,null,null,"","","","",null,null,null,null,null,null,null,null,null,null,null,null,null,null,null,null,null,null,null,null,null,null,null,null,null,null,null,null,null,null,null,null,null,null,null,null,null,null,null,null,null,null,null,null,null,null,null,null,null,null,null,null,"",{"$f":"IF($A951=\"\",\"\",IF(VLOOKUP($G951,$H$11:$DO$1000,103,FALSE)=\"\",\"No\",IF(LEFT(VLOOKUP($G951,$H$11:$DO$1000,103,FALSE),3)=\"The\",EM951,VLOOKUP(VLOOKUP($G951,$H$11:$DO$1000,103,FALSE),DeclMatrix!$A$2:$F$5,VLOOKUP('Enrollment Form'!$B951,DeclMatrix!$A$8:$B$12,2,FALSE),FALSE))))","v":""},{"$f":"IF($A951=\"\",\"\",IF(VLOOKUP($G951,$H$11:$DO$1000,106,FALSE)=\"\",\"No\",IF(LEFT(VLOOKUP($G951,$H$11:$DO$1000,106,FALSE),3)=\"The\",EN951,VLOOKUP(VLOOKUP($G951,$H$11:$DO$1000,106,FALSE),DeclMatrix!$A$2:$F$5,VLOOKUP('Enrollment Form'!$B951,DeclMatrix!$A$8:$B$12,2,FALSE),FALSE))))","v":""},{"$f":"IF($A951=\"\",\"\",IF(VLOOKUP($G951,$H$11:$DO$1000,109,FALSE)=\"\",\"No\",IF(LEFT(VLOOKUP($G951,$H$11:$DO$1000,109,FALSE),3)=\"The\",EO951,VLOOKUP(VLOOKUP($G951,$H$11:$DO$1000,109,FALSE),DeclMatrix!$A$2:$F$5,VLOOKUP('Enrollment Form'!$B951,DeclMatrix!$A$8:$B$12,2,FALSE),FALSE))))","v":""},{"$f":"IF($A951=\"\",\"\",IF(VLOOKUP($G951,$H$11:$DO$1000,112,FALSE)=\"\",\"No\",IF(LEFT(VLOOKUP($G951,$H$11:$DO$1000,112,FALSE),3)=\"The\",EP951,VLOOKUP(VLOOKUP($G951,$H$11:$DO$1000,112,FALSE),DeclMatrix!$A$2:$F$5,VLOOKUP('Enrollment Form'!$B951,DeclMatrix!$A$8:$B$12,2,FALSE),FALSE))))","v":""},null,null,null,null,null,null,null,null,"",null,"","","","","","","","","","","",""]
["",null,null,null,null,null,"","",null,null,null,null,null,null,null,null,null,null,null,null,null,null,null,null,null,null,"","","","",null,null,"",null,null,null,null,null,null,null,null,null,null,null,null,null,null,null,null,null,null,null,null,null,null,null,null,null,null,null,"","","",null,null,null,null,"","","","",null,null,null,null,null,null,null,null,null,null,null,null,null,null,null,null,null,null,null,null,null,null,null,null,null,null,null,null,null,null,null,null,null,null,null,null,null,null,null,null,null,null,null,null,null,null,null,null,null,null,null,null,"",{"$f":"IF($A952=\"\",\"\",IF(VLOOKUP($G952,$H$11:$DO$1000,103,FALSE)=\"\",\"No\",IF(LEFT(VLOOKUP($G952,$H$11:$DO$1000,103,FALSE),3)=\"The\",EM952,VLOOKUP(VLOOKUP($G952,$H$11:$DO$1000,103,FALSE),DeclMatrix!$A$2:$F$5,VLOOKUP('Enrollment Form'!$B952,DeclMatrix!$A$8:$B$12,2,FALSE),FALSE))))","v":""},{"$f":"IF($A952=\"\",\"\",IF(VLOOKUP($G952,$H$11:$DO$1000,106,FALSE)=\"\",\"No\",IF(LEFT(VLOOKUP($G952,$H$11:$DO$1000,106,FALSE),3)=\"The\",EN952,VLOOKUP(VLOOKUP($G952,$H$11:$DO$1000,106,FALSE),DeclMatrix!$A$2:$F$5,VLOOKUP('Enrollment Form'!$B952,DeclMatrix!$A$8:$B$12,2,FALSE),FALSE))))","v":""},{"$f":"IF($A952=\"\",\"\",IF(VLOOKUP($G952,$H$11:$DO$1000,109,FALSE)=\"\",\"No\",IF(LEFT(VLOOKUP($G952,$H$11:$DO$1000,109,FALSE),3)=\"The\",EO952,VLOOKUP(VLOOKUP($G952,$H$11:$DO$1000,109,FALSE),DeclMatrix!$A$2:$F$5,VLOOKUP('Enrollment Form'!$B952,DeclMatrix!$A$8:$B$12,2,FALSE),FALSE))))","v":""},{"$f":"IF($A952=\"\",\"\",IF(VLOOKUP($G952,$H$11:$DO$1000,112,FALSE)=\"\",\"No\",IF(LEFT(VLOOKUP($G952,$H$11:$DO$1000,112,FALSE),3)=\"The\",EP952,VLOOKUP(VLOOKUP($G952,$H$11:$DO$1000,112,FALSE),DeclMatrix!$A$2:$F$5,VLOOKUP('Enrollment Form'!$B952,DeclMatrix!$A$8:$B$12,2,FALSE),FALSE))))","v":""},null,null,null,null,null,null,null,null,"",null,"","","","","","","","","","","",""]
["",null,null,null,null,null,"","",null,null,null,null,null,null,null,null,null,null,null,null,null,null,null,null,null,null,"","","","",null,null,"",null,null,null,null,null,null,null,null,null,null,null,null,null,null,null,null,null,null,null,null,null,null,null,null,null,null,null,"","","",null,null,null,null,"","","","",null,null,null,null,null,null,null,null,null,null,null,null,null,null,null,null,null,null,null,null,null,null,null,null,null,null,null,null,null,null,null,null,null,null,null,null,null,null,null,null,null,null,null,null,null,null,null,null,null,null,null,null,"",{"$f":"IF($A953=\"\",\"\",IF(VLOOKUP($G953,$H$11:$DO$1000,103,FALSE)=\"\",\"No\",IF(LEFT(VLOOKUP($G953,$H$11:$DO$1000,103,FALSE),3)=\"The\",EM953,VLOOKUP(VLOOKUP($G953,$H$11:$DO$1000,103,FALSE),DeclMatrix!$A$2:$F$5,VLOOKUP('Enrollment Form'!$B953,DeclMatrix!$A$8:$B$12,2,FALSE),FALSE))))","v":""},{"$f":"IF($A953=\"\",\"\",IF(VLOOKUP($G953,$H$11:$DO$1000,106,FALSE)=\"\",\"No\",IF(LEFT(VLOOKUP($G953,$H$11:$DO$1000,106,FALSE),3)=\"The\",EN953,VLOOKUP(VLOOKUP($G953,$H$11:$DO$1000,106,FALSE),DeclMatrix!$A$2:$F$5,VLOOKUP('Enrollment Form'!$B953,DeclMatrix!$A$8:$B$12,2,FALSE),FALSE))))","v":""},{"$f":"IF($A953=\"\",\"\",IF(VLOOKUP($G953,$H$11:$DO$1000,109,FALSE)=\"\",\"No\",IF(LEFT(VLOOKUP($G953,$H$11:$DO$1000,109,FALSE),3)=\"The\",EO953,VLOOKUP(VLOOKUP($G953,$H$11:$DO$1000,109,FALSE),DeclMatrix!$A$2:$F$5,VLOOKUP('Enrollment Form'!$B953,DeclMatrix!$A$8:$B$12,2,FALSE),FALSE))))","v":""},{"$f":"IF($A953=\"\",\"\",IF(VLOOKUP($G953,$H$11:$DO$1000,112,FALSE)=\"\",\"No\",IF(LEFT(VLOOKUP($G953,$H$11:$DO$1000,112,FALSE),3)=\"The\",EP953,VLOOKUP(VLOOKUP($G953,$H$11:$DO$1000,112,FALSE),DeclMatrix!$A$2:$F$5,VLOOKUP('Enrollment Form'!$B953,DeclMatrix!$A$8:$B$12,2,FALSE),FALSE))))","v":""},null,null,null,null,null,null,null,null,"",null,"","","","","","","","","","","",""]
["",null,null,null,null,null,"","",null,null,null,null,null,null,null,null,null,null,null,null,null,null,null,null,null,null,"","","","",null,null,"",null,null,null,null,null,null,null,null,null,null,null,null,null,null,null,null,null,null,null,null,null,null,null,null,null,null,null,"","","",null,null,null,null,"","","","",null,null,null,null,null,null,null,null,null,null,null,null,null,null,null,null,null,null,null,null,null,null,null,null,null,null,null,null,null,null,null,null,null,null,null,null,null,null,null,null,null,null,null,null,null,null,null,null,null,null,null,null,"",{"$f":"IF($A954=\"\",\"\",IF(VLOOKUP($G954,$H$11:$DO$1000,103,FALSE)=\"\",\"No\",IF(LEFT(VLOOKUP($G954,$H$11:$DO$1000,103,FALSE),3)=\"The\",EM954,VLOOKUP(VLOOKUP($G954,$H$11:$DO$1000,103,FALSE),DeclMatrix!$A$2:$F$5,VLOOKUP('Enrollment Form'!$B954,DeclMatrix!$A$8:$B$12,2,FALSE),FALSE))))","v":""},{"$f":"IF($A954=\"\",\"\",IF(VLOOKUP($G954,$H$11:$DO$1000,106,FALSE)=\"\",\"No\",IF(LEFT(VLOOKUP($G954,$H$11:$DO$1000,106,FALSE),3)=\"The\",EN954,VLOOKUP(VLOOKUP($G954,$H$11:$DO$1000,106,FALSE),DeclMatrix!$A$2:$F$5,VLOOKUP('Enrollment Form'!$B954,DeclMatrix!$A$8:$B$12,2,FALSE),FALSE))))","v":""},{"$f":"IF($A954=\"\",\"\",IF(VLOOKUP($G954,$H$11:$DO$1000,109,FALSE)=\"\",\"No\",IF(LEFT(VLOOKUP($G954,$H$11:$DO$1000,109,FALSE),3)=\"The\",EO954,VLOOKUP(VLOOKUP($G954,$H$11:$DO$1000,109,FALSE),DeclMatrix!$A$2:$F$5,VLOOKUP('Enrollment Form'!$B954,DeclMatrix!$A$8:$B$12,2,FALSE),FALSE))))","v":""},{"$f":"IF($A954=\"\",\"\",IF(VLOOKUP($G954,$H$11:$DO$1000,112,FALSE)=\"\",\"No\",IF(LEFT(VLOOKUP($G954,$H$11:$DO$1000,112,FALSE),3)=\"The\",EP954,VLOOKUP(VLOOKUP($G954,$H$11:$DO$1000,112,FALSE),DeclMatrix!$A$2:$F$5,VLOOKUP('Enrollment Form'!$B954,DeclMatrix!$A$8:$B$12,2,FALSE),FALSE))))","v":""},null,null,null,null,null,null,null,null,"",null,"","","","","","","","","","","",""]
["",null,null,null,null,null,"","",null,null,null,null,null,null,null,null,null,null,null,null,null,null,null,null,null,null,"","","","",null,null,"",null,null,null,null,null,null,null,null,null,null,null,null,null,null,null,null,null,null,null,null,null,null,null,null,null,null,null,"","","",null,null,null,null,"","","","",null,null,null,null,null,null,null,null,null,null,null,null,null,null,null,null,null,null,null,null,null,null,null,null,null,null,null,null,null,null,null,null,null,null,null,null,null,null,null,null,null,null,null,null,null,null,null,null,null,null,null,null,"",{"$f":"IF($A955=\"\",\"\",IF(VLOOKUP($G955,$H$11:$DO$1000,103,FALSE)=\"\",\"No\",IF(LEFT(VLOOKUP($G955,$H$11:$DO$1000,103,FALSE),3)=\"The\",EM955,VLOOKUP(VLOOKUP($G955,$H$11:$DO$1000,103,FALSE),DeclMatrix!$A$2:$F$5,VLOOKUP('Enrollment Form'!$B955,DeclMatrix!$A$8:$B$12,2,FALSE),FALSE))))","v":""},{"$f":"IF($A955=\"\",\"\",IF(VLOOKUP($G955,$H$11:$DO$1000,106,FALSE)=\"\",\"No\",IF(LEFT(VLOOKUP($G955,$H$11:$DO$1000,106,FALSE),3)=\"The\",EN955,VLOOKUP(VLOOKUP($G955,$H$11:$DO$1000,106,FALSE),DeclMatrix!$A$2:$F$5,VLOOKUP('Enrollment Form'!$B955,DeclMatrix!$A$8:$B$12,2,FALSE),FALSE))))","v":""},{"$f":"IF($A955=\"\",\"\",IF(VLOOKUP($G955,$H$11:$DO$1000,109,FALSE)=\"\",\"No\",IF(LEFT(VLOOKUP($G955,$H$11:$DO$1000,109,FALSE),3)=\"The\",EO955,VLOOKUP(VLOOKUP($G955,$H$11:$DO$1000,109,FALSE),DeclMatrix!$A$2:$F$5,VLOOKUP('Enrollment Form'!$B955,DeclMatrix!$A$8:$B$12,2,FALSE),FALSE))))","v":""},{"$f":"IF($A955=\"\",\"\",IF(VLOOKUP($G955,$H$11:$DO$1000,112,FALSE)=\"\",\"No\",IF(LEFT(VLOOKUP($G955,$H$11:$DO$1000,112,FALSE),3)=\"The\",EP955,VLOOKUP(VLOOKUP($G955,$H$11:$DO$1000,112,FALSE),DeclMatrix!$A$2:$F$5,VLOOKUP('Enrollment Form'!$B955,DeclMatrix!$A$8:$B$12,2,FALSE),FALSE))))","v":""},null,null,null,null,null,null,null,null,"",null,"","","","","","","","","","","",""]
["",null,null,null,null,null,"","",null,null,null,null,null,null,null,null,null,null,null,null,null,null,null,null,null,null,"","","","",null,null,"",null,null,null,null,null,null,null,null,null,null,null,null,null,null,null,null,null,null,null,null,null,null,null,null,null,null,null,"","","",null,null,null,null,"","","","",null,null,null,null,null,null,null,null,null,null,null,null,null,null,null,null,null,null,null,null,null,null,null,null,null,null,null,null,null,null,null,null,null,null,null,null,null,null,null,null,null,null,null,null,null,null,null,null,null,null,null,null,"",{"$f":"IF($A956=\"\",\"\",IF(VLOOKUP($G956,$H$11:$DO$1000,103,FALSE)=\"\",\"No\",IF(LEFT(VLOOKUP($G956,$H$11:$DO$1000,103,FALSE),3)=\"The\",EM956,VLOOKUP(VLOOKUP($G956,$H$11:$DO$1000,103,FALSE),DeclMatrix!$A$2:$F$5,VLOOKUP('Enrollment Form'!$B956,DeclMatrix!$A$8:$B$12,2,FALSE),FALSE))))","v":""},{"$f":"IF($A956=\"\",\"\",IF(VLOOKUP($G956,$H$11:$DO$1000,106,FALSE)=\"\",\"No\",IF(LEFT(VLOOKUP($G956,$H$11:$DO$1000,106,FALSE),3)=\"The\",EN956,VLOOKUP(VLOOKUP($G956,$H$11:$DO$1000,106,FALSE),DeclMatrix!$A$2:$F$5,VLOOKUP('Enrollment Form'!$B956,DeclMatrix!$A$8:$B$12,2,FALSE),FALSE))))","v":""},{"$f":"IF($A956=\"\",\"\",IF(VLOOKUP($G956,$H$11:$DO$1000,109,FALSE)=\"\",\"No\",IF(LEFT(VLOOKUP($G956,$H$11:$DO$1000,109,FALSE),3)=\"The\",EO956,VLOOKUP(VLOOKUP($G956,$H$11:$DO$1000,109,FALSE),DeclMatrix!$A$2:$F$5,VLOOKUP('Enrollment Form'!$B956,DeclMatrix!$A$8:$B$12,2,FALSE),FALSE))))","v":""},{"$f":"IF($A956=\"\",\"\",IF(VLOOKUP($G956,$H$11:$DO$1000,112,FALSE)=\"\",\"No\",IF(LEFT(VLOOKUP($G956,$H$11:$DO$1000,112,FALSE),3)=\"The\",EP956,VLOOKUP(VLOOKUP($G956,$H$11:$DO$1000,112,FALSE),DeclMatrix!$A$2:$F$5,VLOOKUP('Enrollment Form'!$B956,DeclMatrix!$A$8:$B$12,2,FALSE),FALSE))))","v":""},null,null,null,null,null,null,null,null,"",null,"","","","","","","","","","","",""]
["",null,null,null,null,null,"","",null,null,null,null,null,null,null,null,null,null,null,null,null,null,null,null,null,null,"","","","",null,null,"",null,null,null,null,null,null,null,null,null,null,null,null,null,null,null,null,null,null,null,null,null,null,null,null,null,null,null,"","","",null,null,null,null,"","","","",null,null,null,null,null,null,null,null,null,null,null,null,null,null,null,null,null,null,null,null,null,null,null,null,null,null,null,null,null,null,null,null,null,null,null,null,null,null,null,null,null,null,null,null,null,null,null,null,null,null,null,null,"",{"$f":"IF($A957=\"\",\"\",IF(VLOOKUP($G957,$H$11:$DO$1000,103,FALSE)=\"\",\"No\",IF(LEFT(VLOOKUP($G957,$H$11:$DO$1000,103,FALSE),3)=\"The\",EM957,VLOOKUP(VLOOKUP($G957,$H$11:$DO$1000,103,FALSE),DeclMatrix!$A$2:$F$5,VLOOKUP('Enrollment Form'!$B957,DeclMatrix!$A$8:$B$12,2,FALSE),FALSE))))","v":""},{"$f":"IF($A957=\"\",\"\",IF(VLOOKUP($G957,$H$11:$DO$1000,106,FALSE)=\"\",\"No\",IF(LEFT(VLOOKUP($G957,$H$11:$DO$1000,106,FALSE),3)=\"The\",EN957,VLOOKUP(VLOOKUP($G957,$H$11:$DO$1000,106,FALSE),DeclMatrix!$A$2:$F$5,VLOOKUP('Enrollment Form'!$B957,DeclMatrix!$A$8:$B$12,2,FALSE),FALSE))))","v":""},{"$f":"IF($A957=\"\",\"\",IF(VLOOKUP($G957,$H$11:$DO$1000,109,FALSE)=\"\",\"No\",IF(LEFT(VLOOKUP($G957,$H$11:$DO$1000,109,FALSE),3)=\"The\",EO957,VLOOKUP(VLOOKUP($G957,$H$11:$DO$1000,109,FALSE),DeclMatrix!$A$2:$F$5,VLOOKUP('Enrollment Form'!$B957,DeclMatrix!$A$8:$B$12,2,FALSE),FALSE))))","v":""},{"$f":"IF($A957=\"\",\"\",IF(VLOOKUP($G957,$H$11:$DO$1000,112,FALSE)=\"\",\"No\",IF(LEFT(VLOOKUP($G957,$H$11:$DO$1000,112,FALSE),3)=\"The\",EP957,VLOOKUP(VLOOKUP($G957,$H$11:$DO$1000,112,FALSE),DeclMatrix!$A$2:$F$5,VLOOKUP('Enrollment Form'!$B957,DeclMatrix!$A$8:$B$12,2,FALSE),FALSE))))","v":""},null,null,null,null,null,null,null,null,"",null,"","","","","","","","","","","",""]
["",null,null,null,null,null,"","",null,null,null,null,null,null,null,null,null,null,null,null,null,null,null,null,null,null,"","","","",null,null,"",null,null,null,null,null,null,null,null,null,null,null,null,null,null,null,null,null,null,null,null,null,null,null,null,null,null,null,"","","",null,null,null,null,"","","","",null,null,null,null,null,null,null,null,null,null,null,null,null,null,null,null,null,null,null,null,null,null,null,null,null,null,null,null,null,null,null,null,null,null,null,null,null,null,null,null,null,null,null,null,null,null,null,null,null,null,null,null,"",{"$f":"IF($A958=\"\",\"\",IF(VLOOKUP($G958,$H$11:$DO$1000,103,FALSE)=\"\",\"No\",IF(LEFT(VLOOKUP($G958,$H$11:$DO$1000,103,FALSE),3)=\"The\",EM958,VLOOKUP(VLOOKUP($G958,$H$11:$DO$1000,103,FALSE),DeclMatrix!$A$2:$F$5,VLOOKUP('Enrollment Form'!$B958,DeclMatrix!$A$8:$B$12,2,FALSE),FALSE))))","v":""},{"$f":"IF($A958=\"\",\"\",IF(VLOOKUP($G958,$H$11:$DO$1000,106,FALSE)=\"\",\"No\",IF(LEFT(VLOOKUP($G958,$H$11:$DO$1000,106,FALSE),3)=\"The\",EN958,VLOOKUP(VLOOKUP($G958,$H$11:$DO$1000,106,FALSE),DeclMatrix!$A$2:$F$5,VLOOKUP('Enrollment Form'!$B958,DeclMatrix!$A$8:$B$12,2,FALSE),FALSE))))","v":""},{"$f":"IF($A958=\"\",\"\",IF(VLOOKUP($G958,$H$11:$DO$1000,109,FALSE)=\"\",\"No\",IF(LEFT(VLOOKUP($G958,$H$11:$DO$1000,109,FALSE),3)=\"The\",EO958,VLOOKUP(VLOOKUP($G958,$H$11:$DO$1000,109,FALSE),DeclMatrix!$A$2:$F$5,VLOOKUP('Enrollment Form'!$B958,DeclMatrix!$A$8:$B$12,2,FALSE),FALSE))))","v":""},{"$f":"IF($A958=\"\",\"\",IF(VLOOKUP($G958,$H$11:$DO$1000,112,FALSE)=\"\",\"No\",IF(LEFT(VLOOKUP($G958,$H$11:$DO$1000,112,FALSE),3)=\"The\",EP958,VLOOKUP(VLOOKUP($G958,$H$11:$DO$1000,112,FALSE),DeclMatrix!$A$2:$F$5,VLOOKUP('Enrollment Form'!$B958,DeclMatrix!$A$8:$B$12,2,FALSE),FALSE))))","v":""},null,null,null,null,null,null,null,null,"",null,"","","","","","","","","","","",""]
["",null,null,null,null,null,"","",null,null,null,null,null,null,null,null,null,null,null,null,null,null,null,null,null,null,"","","","",null,null,"",null,null,null,null,null,null,null,null,null,null,null,null,null,null,null,null,null,null,null,null,null,null,null,null,null,null,null,"","","",null,null,null,null,"","","","",null,null,null,null,null,null,null,null,null,null,null,null,null,null,null,null,null,null,null,null,null,null,null,null,null,null,null,null,null,null,null,null,null,null,null,null,null,null,null,null,null,null,null,null,null,null,null,null,null,null,null,null,"",{"$f":"IF($A959=\"\",\"\",IF(VLOOKUP($G959,$H$11:$DO$1000,103,FALSE)=\"\",\"No\",IF(LEFT(VLOOKUP($G959,$H$11:$DO$1000,103,FALSE),3)=\"The\",EM959,VLOOKUP(VLOOKUP($G959,$H$11:$DO$1000,103,FALSE),DeclMatrix!$A$2:$F$5,VLOOKUP('Enrollment Form'!$B959,DeclMatrix!$A$8:$B$12,2,FALSE),FALSE))))","v":""},{"$f":"IF($A959=\"\",\"\",IF(VLOOKUP($G959,$H$11:$DO$1000,106,FALSE)=\"\",\"No\",IF(LEFT(VLOOKUP($G959,$H$11:$DO$1000,106,FALSE),3)=\"The\",EN959,VLOOKUP(VLOOKUP($G959,$H$11:$DO$1000,106,FALSE),DeclMatrix!$A$2:$F$5,VLOOKUP('Enrollment Form'!$B959,DeclMatrix!$A$8:$B$12,2,FALSE),FALSE))))","v":""},{"$f":"IF($A959=\"\",\"\",IF(VLOOKUP($G959,$H$11:$DO$1000,109,FALSE)=\"\",\"No\",IF(LEFT(VLOOKUP($G959,$H$11:$DO$1000,109,FALSE),3)=\"The\",EO959,VLOOKUP(VLOOKUP($G959,$H$11:$DO$1000,109,FALSE),DeclMatrix!$A$2:$F$5,VLOOKUP('Enrollment Form'!$B959,DeclMatrix!$A$8:$B$12,2,FALSE),FALSE))))","v":""},{"$f":"IF($A959=\"\",\"\",IF(VLOOKUP($G959,$H$11:$DO$1000,112,FALSE)=\"\",\"No\",IF(LEFT(VLOOKUP($G959,$H$11:$DO$1000,112,FALSE),3)=\"The\",EP959,VLOOKUP(VLOOKUP($G959,$H$11:$DO$1000,112,FALSE),DeclMatrix!$A$2:$F$5,VLOOKUP('Enrollment Form'!$B959,DeclMatrix!$A$8:$B$12,2,FALSE),FALSE))))","v":""},null,null,null,null,null,null,null,null,"",null,"","","","","","","","","","","",""]
["",null,null,null,null,null,"","",null,null,null,null,null,null,null,null,null,null,null,null,null,null,null,null,null,null,"","","","",null,null,"",null,null,null,null,null,null,null,null,null,null,null,null,null,null,null,null,null,null,null,null,null,null,null,null,null,null,null,"","","",null,null,null,null,"","","","",null,null,null,null,null,null,null,null,null,null,null,null,null,null,null,null,null,null,null,null,null,null,null,null,null,null,null,null,null,null,null,null,null,null,null,null,null,null,null,null,null,null,null,null,null,null,null,null,null,null,null,null,"",{"$f":"IF($A960=\"\",\"\",IF(VLOOKUP($G960,$H$11:$DO$1000,103,FALSE)=\"\",\"No\",IF(LEFT(VLOOKUP($G960,$H$11:$DO$1000,103,FALSE),3)=\"The\",EM960,VLOOKUP(VLOOKUP($G960,$H$11:$DO$1000,103,FALSE),DeclMatrix!$A$2:$F$5,VLOOKUP('Enrollment Form'!$B960,DeclMatrix!$A$8:$B$12,2,FALSE),FALSE))))","v":""},{"$f":"IF($A960=\"\",\"\",IF(VLOOKUP($G960,$H$11:$DO$1000,106,FALSE)=\"\",\"No\",IF(LEFT(VLOOKUP($G960,$H$11:$DO$1000,106,FALSE),3)=\"The\",EN960,VLOOKUP(VLOOKUP($G960,$H$11:$DO$1000,106,FALSE),DeclMatrix!$A$2:$F$5,VLOOKUP('Enrollment Form'!$B960,DeclMatrix!$A$8:$B$12,2,FALSE),FALSE))))","v":""},{"$f":"IF($A960=\"\",\"\",IF(VLOOKUP($G960,$H$11:$DO$1000,109,FALSE)=\"\",\"No\",IF(LEFT(VLOOKUP($G960,$H$11:$DO$1000,109,FALSE),3)=\"The\",EO960,VLOOKUP(VLOOKUP($G960,$H$11:$DO$1000,109,FALSE),DeclMatrix!$A$2:$F$5,VLOOKUP('Enrollment Form'!$B960,DeclMatrix!$A$8:$B$12,2,FALSE),FALSE))))","v":""},{"$f":"IF($A960=\"\",\"\",IF(VLOOKUP($G960,$H$11:$DO$1000,112,FALSE)=\"\",\"No\",IF(LEFT(VLOOKUP($G960,$H$11:$DO$1000,112,FALSE),3)=\"The\",EP960,VLOOKUP(VLOOKUP($G960,$H$11:$DO$1000,112,FALSE),DeclMatrix!$A$2:$F$5,VLOOKUP('Enrollment Form'!$B960,DeclMatrix!$A$8:$B$12,2,FALSE),FALSE))))","v":""},null,null,null,null,null,null,null,null,"",null,"","","","","","","","","","","",""]
["",null,null,null,null,null,"","",null,null,null,null,null,null,null,null,null,null,null,null,null,null,null,null,null,null,"","","","",null,null,"",null,null,null,null,null,null,null,null,null,null,null,null,null,null,null,null,null,null,null,null,null,null,null,null,null,null,null,"","","",null,null,null,null,"","","","",null,null,null,null,null,null,null,null,null,null,null,null,null,null,null,null,null,null,null,null,null,null,null,null,null,null,null,null,null,null,null,null,null,null,null,null,null,null,null,null,null,null,null,null,null,null,null,null,null,null,null,null,"",{"$f":"IF($A961=\"\",\"\",IF(VLOOKUP($G961,$H$11:$DO$1000,103,FALSE)=\"\",\"No\",IF(LEFT(VLOOKUP($G961,$H$11:$DO$1000,103,FALSE),3)=\"The\",EM961,VLOOKUP(VLOOKUP($G961,$H$11:$DO$1000,103,FALSE),DeclMatrix!$A$2:$F$5,VLOOKUP('Enrollment Form'!$B961,DeclMatrix!$A$8:$B$12,2,FALSE),FALSE))))","v":""},{"$f":"IF($A961=\"\",\"\",IF(VLOOKUP($G961,$H$11:$DO$1000,106,FALSE)=\"\",\"No\",IF(LEFT(VLOOKUP($G961,$H$11:$DO$1000,106,FALSE),3)=\"The\",EN961,VLOOKUP(VLOOKUP($G961,$H$11:$DO$1000,106,FALSE),DeclMatrix!$A$2:$F$5,VLOOKUP('Enrollment Form'!$B961,DeclMatrix!$A$8:$B$12,2,FALSE),FALSE))))","v":""},{"$f":"IF($A961=\"\",\"\",IF(VLOOKUP($G961,$H$11:$DO$1000,109,FALSE)=\"\",\"No\",IF(LEFT(VLOOKUP($G961,$H$11:$DO$1000,109,FALSE),3)=\"The\",EO961,VLOOKUP(VLOOKUP($G961,$H$11:$DO$1000,109,FALSE),DeclMatrix!$A$2:$F$5,VLOOKUP('Enrollment Form'!$B961,DeclMatrix!$A$8:$B$12,2,FALSE),FALSE))))","v":""},{"$f":"IF($A961=\"\",\"\",IF(VLOOKUP($G961,$H$11:$DO$1000,112,FALSE)=\"\",\"No\",IF(LEFT(VLOOKUP($G961,$H$11:$DO$1000,112,FALSE),3)=\"The\",EP961,VLOOKUP(VLOOKUP($G961,$H$11:$DO$1000,112,FALSE),DeclMatrix!$A$2:$F$5,VLOOKUP('Enrollment Form'!$B961,DeclMatrix!$A$8:$B$12,2,FALSE),FALSE))))","v":""},null,null,null,null,null,null,null,null,"",null,"","","","","","","","","","","",""]
["",null,null,null,null,null,"","",null,null,null,null,null,null,null,null,null,null,null,null,null,null,null,null,null,null,"","","","",null,null,"",null,null,null,null,null,null,null,null,null,null,null,null,null,null,null,null,null,null,null,null,null,null,null,null,null,null,null,"","","",null,null,null,null,"","","","",null,null,null,null,null,null,null,null,null,null,null,null,null,null,null,null,null,null,null,null,null,null,null,null,null,null,null,null,null,null,null,null,null,null,null,null,null,null,null,null,null,null,null,null,null,null,null,null,null,null,null,null,"",{"$f":"IF($A962=\"\",\"\",IF(VLOOKUP($G962,$H$11:$DO$1000,103,FALSE)=\"\",\"No\",IF(LEFT(VLOOKUP($G962,$H$11:$DO$1000,103,FALSE),3)=\"The\",EM962,VLOOKUP(VLOOKUP($G962,$H$11:$DO$1000,103,FALSE),DeclMatrix!$A$2:$F$5,VLOOKUP('Enrollment Form'!$B962,DeclMatrix!$A$8:$B$12,2,FALSE),FALSE))))","v":""},{"$f":"IF($A962=\"\",\"\",IF(VLOOKUP($G962,$H$11:$DO$1000,106,FALSE)=\"\",\"No\",IF(LEFT(VLOOKUP($G962,$H$11:$DO$1000,106,FALSE),3)=\"The\",EN962,VLOOKUP(VLOOKUP($G962,$H$11:$DO$1000,106,FALSE),DeclMatrix!$A$2:$F$5,VLOOKUP('Enrollment Form'!$B962,DeclMatrix!$A$8:$B$12,2,FALSE),FALSE))))","v":""},{"$f":"IF($A962=\"\",\"\",IF(VLOOKUP($G962,$H$11:$DO$1000,109,FALSE)=\"\",\"No\",IF(LEFT(VLOOKUP($G962,$H$11:$DO$1000,109,FALSE),3)=\"The\",EO962,VLOOKUP(VLOOKUP($G962,$H$11:$DO$1000,109,FALSE),DeclMatrix!$A$2:$F$5,VLOOKUP('Enrollment Form'!$B962,DeclMatrix!$A$8:$B$12,2,FALSE),FALSE))))","v":""},{"$f":"IF($A962=\"\",\"\",IF(VLOOKUP($G962,$H$11:$DO$1000,112,FALSE)=\"\",\"No\",IF(LEFT(VLOOKUP($G962,$H$11:$DO$1000,112,FALSE),3)=\"The\",EP962,VLOOKUP(VLOOKUP($G962,$H$11:$DO$1000,112,FALSE),DeclMatrix!$A$2:$F$5,VLOOKUP('Enrollment Form'!$B962,DeclMatrix!$A$8:$B$12,2,FALSE),FALSE))))","v":""},null,null,null,null,null,null,null,null,"",null,"","","","","","","","","","","",""]
["",null,null,null,null,null,"","",null,null,null,null,null,null,null,null,null,null,null,null,null,null,null,null,null,null,"","","","",null,null,"",null,null,null,null,null,null,null,null,null,null,null,null,null,null,null,null,null,null,null,null,null,null,null,null,null,null,null,"","","",null,null,null,null,"","","","",null,null,null,null,null,null,null,null,null,null,null,null,null,null,null,null,null,null,null,null,null,null,null,null,null,null,null,null,null,null,null,null,null,null,null,null,null,null,null,null,null,null,null,null,null,null,null,null,null,null,null,null,"",{"$f":"IF($A963=\"\",\"\",IF(VLOOKUP($G963,$H$11:$DO$1000,103,FALSE)=\"\",\"No\",IF(LEFT(VLOOKUP($G963,$H$11:$DO$1000,103,FALSE),3)=\"The\",EM963,VLOOKUP(VLOOKUP($G963,$H$11:$DO$1000,103,FALSE),DeclMatrix!$A$2:$F$5,VLOOKUP('Enrollment Form'!$B963,DeclMatrix!$A$8:$B$12,2,FALSE),FALSE))))","v":""},{"$f":"IF($A963=\"\",\"\",IF(VLOOKUP($G963,$H$11:$DO$1000,106,FALSE)=\"\",\"No\",IF(LEFT(VLOOKUP($G963,$H$11:$DO$1000,106,FALSE),3)=\"The\",EN963,VLOOKUP(VLOOKUP($G963,$H$11:$DO$1000,106,FALSE),DeclMatrix!$A$2:$F$5,VLOOKUP('Enrollment Form'!$B963,DeclMatrix!$A$8:$B$12,2,FALSE),FALSE))))","v":""},{"$f":"IF($A963=\"\",\"\",IF(VLOOKUP($G963,$H$11:$DO$1000,109,FALSE)=\"\",\"No\",IF(LEFT(VLOOKUP($G963,$H$11:$DO$1000,109,FALSE),3)=\"The\",EO963,VLOOKUP(VLOOKUP($G963,$H$11:$DO$1000,109,FALSE),DeclMatrix!$A$2:$F$5,VLOOKUP('Enrollment Form'!$B963,DeclMatrix!$A$8:$B$12,2,FALSE),FALSE))))","v":""},{"$f":"IF($A963=\"\",\"\",IF(VLOOKUP($G963,$H$11:$DO$1000,112,FALSE)=\"\",\"No\",IF(LEFT(VLOOKUP($G963,$H$11:$DO$1000,112,FALSE),3)=\"The\",EP963,VLOOKUP(VLOOKUP($G963,$H$11:$DO$1000,112,FALSE),DeclMatrix!$A$2:$F$5,VLOOKUP('Enrollment Form'!$B963,DeclMatrix!$A$8:$B$12,2,FALSE),FALSE))))","v":""},null,null,null,null,null,null,null,null,"",null,"","","","","","","","","","","",""]
["",null,null,null,null,null,"","",null,null,null,null,null,null,null,null,null,null,null,null,null,null,null,null,null,null,"","","","",null,null,"",null,null,null,null,null,null,null,null,null,null,null,null,null,null,null,null,null,null,null,null,null,null,null,null,null,null,null,"","","",null,null,null,null,"","","","",null,null,null,null,null,null,null,null,null,null,null,null,null,null,null,null,null,null,null,null,null,null,null,null,null,null,null,null,null,null,null,null,null,null,null,null,null,null,null,null,null,null,null,null,null,null,null,null,null,null,null,null,"",{"$f":"IF($A964=\"\",\"\",IF(VLOOKUP($G964,$H$11:$DO$1000,103,FALSE)=\"\",\"No\",IF(LEFT(VLOOKUP($G964,$H$11:$DO$1000,103,FALSE),3)=\"The\",EM964,VLOOKUP(VLOOKUP($G964,$H$11:$DO$1000,103,FALSE),DeclMatrix!$A$2:$F$5,VLOOKUP('Enrollment Form'!$B964,DeclMatrix!$A$8:$B$12,2,FALSE),FALSE))))","v":""},{"$f":"IF($A964=\"\",\"\",IF(VLOOKUP($G964,$H$11:$DO$1000,106,FALSE)=\"\",\"No\",IF(LEFT(VLOOKUP($G964,$H$11:$DO$1000,106,FALSE),3)=\"The\",EN964,VLOOKUP(VLOOKUP($G964,$H$11:$DO$1000,106,FALSE),DeclMatrix!$A$2:$F$5,VLOOKUP('Enrollment Form'!$B964,DeclMatrix!$A$8:$B$12,2,FALSE),FALSE))))","v":""},{"$f":"IF($A964=\"\",\"\",IF(VLOOKUP($G964,$H$11:$DO$1000,109,FALSE)=\"\",\"No\",IF(LEFT(VLOOKUP($G964,$H$11:$DO$1000,109,FALSE),3)=\"The\",EO964,VLOOKUP(VLOOKUP($G964,$H$11:$DO$1000,109,FALSE),DeclMatrix!$A$2:$F$5,VLOOKUP('Enrollment Form'!$B964,DeclMatrix!$A$8:$B$12,2,FALSE),FALSE))))","v":""},{"$f":"IF($A964=\"\",\"\",IF(VLOOKUP($G964,$H$11:$DO$1000,112,FALSE)=\"\",\"No\",IF(LEFT(VLOOKUP($G964,$H$11:$DO$1000,112,FALSE),3)=\"The\",EP964,VLOOKUP(VLOOKUP($G964,$H$11:$DO$1000,112,FALSE),DeclMatrix!$A$2:$F$5,VLOOKUP('Enrollment Form'!$B964,DeclMatrix!$A$8:$B$12,2,FALSE),FALSE))))","v":""},null,null,null,null,null,null,null,null,"",null,"","","","","","","","","","","",""]
["",null,null,null,null,null,"","",null,null,null,null,null,null,null,null,null,null,null,null,null,null,null,null,null,null,"","","","",null,null,"",null,null,null,null,null,null,null,null,null,null,null,null,null,null,null,null,null,null,null,null,null,null,null,null,null,null,null,"","","",null,null,null,null,"","","","",null,null,null,null,null,null,null,null,null,null,null,null,null,null,null,null,null,null,null,null,null,null,null,null,null,null,null,null,null,null,null,null,null,null,null,null,null,null,null,null,null,null,null,null,null,null,null,null,null,null,null,null,"",{"$f":"IF($A965=\"\",\"\",IF(VLOOKUP($G965,$H$11:$DO$1000,103,FALSE)=\"\",\"No\",IF(LEFT(VLOOKUP($G965,$H$11:$DO$1000,103,FALSE),3)=\"The\",EM965,VLOOKUP(VLOOKUP($G965,$H$11:$DO$1000,103,FALSE),DeclMatrix!$A$2:$F$5,VLOOKUP('Enrollment Form'!$B965,DeclMatrix!$A$8:$B$12,2,FALSE),FALSE))))","v":""},{"$f":"IF($A965=\"\",\"\",IF(VLOOKUP($G965,$H$11:$DO$1000,106,FALSE)=\"\",\"No\",IF(LEFT(VLOOKUP($G965,$H$11:$DO$1000,106,FALSE),3)=\"The\",EN965,VLOOKUP(VLOOKUP($G965,$H$11:$DO$1000,106,FALSE),DeclMatrix!$A$2:$F$5,VLOOKUP('Enrollment Form'!$B965,DeclMatrix!$A$8:$B$12,2,FALSE),FALSE))))","v":""},{"$f":"IF($A965=\"\",\"\",IF(VLOOKUP($G965,$H$11:$DO$1000,109,FALSE)=\"\",\"No\",IF(LEFT(VLOOKUP($G965,$H$11:$DO$1000,109,FALSE),3)=\"The\",EO965,VLOOKUP(VLOOKUP($G965,$H$11:$DO$1000,109,FALSE),DeclMatrix!$A$2:$F$5,VLOOKUP('Enrollment Form'!$B965,DeclMatrix!$A$8:$B$12,2,FALSE),FALSE))))","v":""},{"$f":"IF($A965=\"\",\"\",IF(VLOOKUP($G965,$H$11:$DO$1000,112,FALSE)=\"\",\"No\",IF(LEFT(VLOOKUP($G965,$H$11:$DO$1000,112,FALSE),3)=\"The\",EP965,VLOOKUP(VLOOKUP($G965,$H$11:$DO$1000,112,FALSE),DeclMatrix!$A$2:$F$5,VLOOKUP('Enrollment Form'!$B965,DeclMatrix!$A$8:$B$12,2,FALSE),FALSE))))","v":""},null,null,null,null,null,null,null,null,"",null,"","","","","","","","","","","",""]
["",null,null,null,null,null,"","",null,null,null,null,null,null,null,null,null,null,null,null,null,null,null,null,null,null,"","","","",null,null,"",null,null,null,null,null,null,null,null,null,null,null,null,null,null,null,null,null,null,null,null,null,null,null,null,null,null,null,"","","",null,null,null,null,"","","","",null,null,null,null,null,null,null,null,null,null,null,null,null,null,null,null,null,null,null,null,null,null,null,null,null,null,null,null,null,null,null,null,null,null,null,null,null,null,null,null,null,null,null,null,null,null,null,null,null,null,null,null,"",{"$f":"IF($A966=\"\",\"\",IF(VLOOKUP($G966,$H$11:$DO$1000,103,FALSE)=\"\",\"No\",IF(LEFT(VLOOKUP($G966,$H$11:$DO$1000,103,FALSE),3)=\"The\",EM966,VLOOKUP(VLOOKUP($G966,$H$11:$DO$1000,103,FALSE),DeclMatrix!$A$2:$F$5,VLOOKUP('Enrollment Form'!$B966,DeclMatrix!$A$8:$B$12,2,FALSE),FALSE))))","v":""},{"$f":"IF($A966=\"\",\"\",IF(VLOOKUP($G966,$H$11:$DO$1000,106,FALSE)=\"\",\"No\",IF(LEFT(VLOOKUP($G966,$H$11:$DO$1000,106,FALSE),3)=\"The\",EN966,VLOOKUP(VLOOKUP($G966,$H$11:$DO$1000,106,FALSE),DeclMatrix!$A$2:$F$5,VLOOKUP('Enrollment Form'!$B966,DeclMatrix!$A$8:$B$12,2,FALSE),FALSE))))","v":""},{"$f":"IF($A966=\"\",\"\",IF(VLOOKUP($G966,$H$11:$DO$1000,109,FALSE)=\"\",\"No\",IF(LEFT(VLOOKUP($G966,$H$11:$DO$1000,109,FALSE),3)=\"The\",EO966,VLOOKUP(VLOOKUP($G966,$H$11:$DO$1000,109,FALSE),DeclMatrix!$A$2:$F$5,VLOOKUP('Enrollment Form'!$B966,DeclMatrix!$A$8:$B$12,2,FALSE),FALSE))))","v":""},{"$f":"IF($A966=\"\",\"\",IF(VLOOKUP($G966,$H$11:$DO$1000,112,FALSE)=\"\",\"No\",IF(LEFT(VLOOKUP($G966,$H$11:$DO$1000,112,FALSE),3)=\"The\",EP966,VLOOKUP(VLOOKUP($G966,$H$11:$DO$1000,112,FALSE),DeclMatrix!$A$2:$F$5,VLOOKUP('Enrollment Form'!$B966,DeclMatrix!$A$8:$B$12,2,FALSE),FALSE))))","v":""},null,null,null,null,null,null,null,null,"",null,"","","","","","","","","","","",""]
["",null,null,null,null,null,"","",null,null,null,null,null,null,null,null,null,null,null,null,null,null,null,null,null,null,"","","","",null,null,"",null,null,null,null,null,null,null,null,null,null,null,null,null,null,null,null,null,null,null,null,null,null,null,null,null,null,null,"","","",null,null,null,null,"","","","",null,null,null,null,null,null,null,null,null,null,null,null,null,null,null,null,null,null,null,null,null,null,null,null,null,null,null,null,null,null,null,null,null,null,null,null,null,null,null,null,null,null,null,null,null,null,null,null,null,null,null,null,"",{"$f":"IF($A967=\"\",\"\",IF(VLOOKUP($G967,$H$11:$DO$1000,103,FALSE)=\"\",\"No\",IF(LEFT(VLOOKUP($G967,$H$11:$DO$1000,103,FALSE),3)=\"The\",EM967,VLOOKUP(VLOOKUP($G967,$H$11:$DO$1000,103,FALSE),DeclMatrix!$A$2:$F$5,VLOOKUP('Enrollment Form'!$B967,DeclMatrix!$A$8:$B$12,2,FALSE),FALSE))))","v":""},{"$f":"IF($A967=\"\",\"\",IF(VLOOKUP($G967,$H$11:$DO$1000,106,FALSE)=\"\",\"No\",IF(LEFT(VLOOKUP($G967,$H$11:$DO$1000,106,FALSE),3)=\"The\",EN967,VLOOKUP(VLOOKUP($G967,$H$11:$DO$1000,106,FALSE),DeclMatrix!$A$2:$F$5,VLOOKUP('Enrollment Form'!$B967,DeclMatrix!$A$8:$B$12,2,FALSE),FALSE))))","v":""},{"$f":"IF($A967=\"\",\"\",IF(VLOOKUP($G967,$H$11:$DO$1000,109,FALSE)=\"\",\"No\",IF(LEFT(VLOOKUP($G967,$H$11:$DO$1000,109,FALSE),3)=\"The\",EO967,VLOOKUP(VLOOKUP($G967,$H$11:$DO$1000,109,FALSE),DeclMatrix!$A$2:$F$5,VLOOKUP('Enrollment Form'!$B967,DeclMatrix!$A$8:$B$12,2,FALSE),FALSE))))","v":""},{"$f":"IF($A967=\"\",\"\",IF(VLOOKUP($G967,$H$11:$DO$1000,112,FALSE)=\"\",\"No\",IF(LEFT(VLOOKUP($G967,$H$11:$DO$1000,112,FALSE),3)=\"The\",EP967,VLOOKUP(VLOOKUP($G967,$H$11:$DO$1000,112,FALSE),DeclMatrix!$A$2:$F$5,VLOOKUP('Enrollment Form'!$B967,DeclMatrix!$A$8:$B$12,2,FALSE),FALSE))))","v":""},null,null,null,null,null,null,null,null,"",null,"","","","","","","","","","","",""]
["",null,null,null,null,null,"","",null,null,null,null,null,null,null,null,null,null,null,null,null,null,null,null,null,null,"","","","",null,null,"",null,null,null,null,null,null,null,null,null,null,null,null,null,null,null,null,null,null,null,null,null,null,null,null,null,null,null,"","","",null,null,null,null,"","","","",null,null,null,null,null,null,null,null,null,null,null,null,null,null,null,null,null,null,null,null,null,null,null,null,null,null,null,null,null,null,null,null,null,null,null,null,null,null,null,null,null,null,null,null,null,null,null,null,null,null,null,null,"",{"$f":"IF($A968=\"\",\"\",IF(VLOOKUP($G968,$H$11:$DO$1000,103,FALSE)=\"\",\"No\",IF(LEFT(VLOOKUP($G968,$H$11:$DO$1000,103,FALSE),3)=\"The\",EM968,VLOOKUP(VLOOKUP($G968,$H$11:$DO$1000,103,FALSE),DeclMatrix!$A$2:$F$5,VLOOKUP('Enrollment Form'!$B968,DeclMatrix!$A$8:$B$12,2,FALSE),FALSE))))","v":""},{"$f":"IF($A968=\"\",\"\",IF(VLOOKUP($G968,$H$11:$DO$1000,106,FALSE)=\"\",\"No\",IF(LEFT(VLOOKUP($G968,$H$11:$DO$1000,106,FALSE),3)=\"The\",EN968,VLOOKUP(VLOOKUP($G968,$H$11:$DO$1000,106,FALSE),DeclMatrix!$A$2:$F$5,VLOOKUP('Enrollment Form'!$B968,DeclMatrix!$A$8:$B$12,2,FALSE),FALSE))))","v":""},{"$f":"IF($A968=\"\",\"\",IF(VLOOKUP($G968,$H$11:$DO$1000,109,FALSE)=\"\",\"No\",IF(LEFT(VLOOKUP($G968,$H$11:$DO$1000,109,FALSE),3)=\"The\",EO968,VLOOKUP(VLOOKUP($G968,$H$11:$DO$1000,109,FALSE),DeclMatrix!$A$2:$F$5,VLOOKUP('Enrollment Form'!$B968,DeclMatrix!$A$8:$B$12,2,FALSE),FALSE))))","v":""},{"$f":"IF($A968=\"\",\"\",IF(VLOOKUP($G968,$H$11:$DO$1000,112,FALSE)=\"\",\"No\",IF(LEFT(VLOOKUP($G968,$H$11:$DO$1000,112,FALSE),3)=\"The\",EP968,VLOOKUP(VLOOKUP($G968,$H$11:$DO$1000,112,FALSE),DeclMatrix!$A$2:$F$5,VLOOKUP('Enrollment Form'!$B968,DeclMatrix!$A$8:$B$12,2,FALSE),FALSE))))","v":""},null,null,null,null,null,null,null,null,"",null,"","","","","","","","","","","",""]
["",null,null,null,null,null,"","",null,null,null,null,null,null,null,null,null,null,null,null,null,null,null,null,null,null,"","","","",null,null,"",null,null,null,null,null,null,null,null,null,null,null,null,null,null,null,null,null,null,null,null,null,null,null,null,null,null,null,"","","",null,null,null,null,"","","","",null,null,null,null,null,null,null,null,null,null,null,null,null,null,null,null,null,null,null,null,null,null,null,null,null,null,null,null,null,null,null,null,null,null,null,null,null,null,null,null,null,null,null,null,null,null,null,null,null,null,null,null,"",{"$f":"IF($A969=\"\",\"\",IF(VLOOKUP($G969,$H$11:$DO$1000,103,FALSE)=\"\",\"No\",IF(LEFT(VLOOKUP($G969,$H$11:$DO$1000,103,FALSE),3)=\"The\",EM969,VLOOKUP(VLOOKUP($G969,$H$11:$DO$1000,103,FALSE),DeclMatrix!$A$2:$F$5,VLOOKUP('Enrollment Form'!$B969,DeclMatrix!$A$8:$B$12,2,FALSE),FALSE))))","v":""},{"$f":"IF($A969=\"\",\"\",IF(VLOOKUP($G969,$H$11:$DO$1000,106,FALSE)=\"\",\"No\",IF(LEFT(VLOOKUP($G969,$H$11:$DO$1000,106,FALSE),3)=\"The\",EN969,VLOOKUP(VLOOKUP($G969,$H$11:$DO$1000,106,FALSE),DeclMatrix!$A$2:$F$5,VLOOKUP('Enrollment Form'!$B969,DeclMatrix!$A$8:$B$12,2,FALSE),FALSE))))","v":""},{"$f":"IF($A969=\"\",\"\",IF(VLOOKUP($G969,$H$11:$DO$1000,109,FALSE)=\"\",\"No\",IF(LEFT(VLOOKUP($G969,$H$11:$DO$1000,109,FALSE),3)=\"The\",EO969,VLOOKUP(VLOOKUP($G969,$H$11:$DO$1000,109,FALSE),DeclMatrix!$A$2:$F$5,VLOOKUP('Enrollment Form'!$B969,DeclMatrix!$A$8:$B$12,2,FALSE),FALSE))))","v":""},{"$f":"IF($A969=\"\",\"\",IF(VLOOKUP($G969,$H$11:$DO$1000,112,FALSE)=\"\",\"No\",IF(LEFT(VLOOKUP($G969,$H$11:$DO$1000,112,FALSE),3)=\"The\",EP969,VLOOKUP(VLOOKUP($G969,$H$11:$DO$1000,112,FALSE),DeclMatrix!$A$2:$F$5,VLOOKUP('Enrollment Form'!$B969,DeclMatrix!$A$8:$B$12,2,FALSE),FALSE))))","v":""},null,null,null,null,null,null,null,null,"",null,"","","","","","","","","","","",""]
["",null,null,null,null,null,"","",null,null,null,null,null,null,null,null,null,null,null,null,null,null,null,null,null,null,"","","","",null,null,"",null,null,null,null,null,null,null,null,null,null,null,null,null,null,null,null,null,null,null,null,null,null,null,null,null,null,null,"","","",null,null,null,null,"","","","",null,null,null,null,null,null,null,null,null,null,null,null,null,null,null,null,null,null,null,null,null,null,null,null,null,null,null,null,null,null,null,null,null,null,null,null,null,null,null,null,null,null,null,null,null,null,null,null,null,null,null,null,"",{"$f":"IF($A970=\"\",\"\",IF(VLOOKUP($G970,$H$11:$DO$1000,103,FALSE)=\"\",\"No\",IF(LEFT(VLOOKUP($G970,$H$11:$DO$1000,103,FALSE),3)=\"The\",EM970,VLOOKUP(VLOOKUP($G970,$H$11:$DO$1000,103,FALSE),DeclMatrix!$A$2:$F$5,VLOOKUP('Enrollment Form'!$B970,DeclMatrix!$A$8:$B$12,2,FALSE),FALSE))))","v":""},{"$f":"IF($A970=\"\",\"\",IF(VLOOKUP($G970,$H$11:$DO$1000,106,FALSE)=\"\",\"No\",IF(LEFT(VLOOKUP($G970,$H$11:$DO$1000,106,FALSE),3)=\"The\",EN970,VLOOKUP(VLOOKUP($G970,$H$11:$DO$1000,106,FALSE),DeclMatrix!$A$2:$F$5,VLOOKUP('Enrollment Form'!$B970,DeclMatrix!$A$8:$B$12,2,FALSE),FALSE))))","v":""},{"$f":"IF($A970=\"\",\"\",IF(VLOOKUP($G970,$H$11:$DO$1000,109,FALSE)=\"\",\"No\",IF(LEFT(VLOOKUP($G970,$H$11:$DO$1000,109,FALSE),3)=\"The\",EO970,VLOOKUP(VLOOKUP($G970,$H$11:$DO$1000,109,FALSE),DeclMatrix!$A$2:$F$5,VLOOKUP('Enrollment Form'!$B970,DeclMatrix!$A$8:$B$12,2,FALSE),FALSE))))","v":""},{"$f":"IF($A970=\"\",\"\",IF(VLOOKUP($G970,$H$11:$DO$1000,112,FALSE)=\"\",\"No\",IF(LEFT(VLOOKUP($G970,$H$11:$DO$1000,112,FALSE),3)=\"The\",EP970,VLOOKUP(VLOOKUP($G970,$H$11:$DO$1000,112,FALSE),DeclMatrix!$A$2:$F$5,VLOOKUP('Enrollment Form'!$B970,DeclMatrix!$A$8:$B$12,2,FALSE),FALSE))))","v":""},null,null,null,null,null,null,null,null,"",null,"","","","","","","","","","","",""]
[{"$f":"IF(LEN($B971)>0,$C$2,\"\")","v":""},null,null,null,null,null,"","",null,null,null,null,null,null,null,null,null,null,null,null,null,null,null,null,null,null,"","","","",null,null,"",null,null,null,null,null,null,null,null,null,null,null,null,null,null,null,null,null,null,null,null,null,null,null,null,null,null,null,"","","",null,null,null,null,{"$f":"IF(AND($B971<>\"Subscriber\",$BO971=\"Yes\"),VLOOKUP($G971,$H$11:$Y$1000,15,FALSE),\"\")","v":""},{"$f":"IF(AND($B971<>\"Subscriber\",$BO971=\"Yes\"),VLOOKUP($G971,$H$11:$Y$1000,16,FALSE),\"\")","v":""},{"$f":"IF(AND($B971<>\"Subscriber\",$BO971=\"Yes\"),VLOOKUP($G971,$H$11:$Y$1000,17,FALSE),\"\")","v":""},{"$f":"IF(AND($B971<>\"Subscriber\",$BO971=\"Yes\"),VLOOKUP($G971,$H$11:$Y$1000,18,FALSE),\"\")","v":""},null,null,null,null,null,null,null,null,null,null,null,null,null,null,null,null,null,null,null,null,null,null,null,null,null,null,null,null,null,null,null,null,null,null,null,null,null,null,null,null,null,null,null,null,null,null,null,null,null,null,null,null,{"$f":"IF($A971=\"\",\"\",IF($B971=\"Subscriber\",$AG971,VLOOKUP($G971,$H$11:$AG$1000,26,FALSE)))","v":""},{"$f":"IF($A971=\"\",\"\",IF(VLOOKUP($G971,$H$11:$DO$1000,103,FALSE)=\"\",\"No\",IF(LEFT(VLOOKUP($G971,$H$11:$DO$1000,103,FALSE),3)=\"The\",EM971,VLOOKUP(VLOOKUP($G971,$H$11:$DO$1000,103,FALSE),DeclMatrix!$A$2:$F$5,VLOOKUP('Enrollment Form'!$B971,DeclMatrix!$A$8:$B$12,2,FALSE),FALSE))))","v":""},{"$f":"IF($A971=\"\",\"\",IF(VLOOKUP($G971,$H$11:$DO$1000,106,FALSE)=\"\",\"No\",IF(LEFT(VLOOKUP($G971,$H$11:$DO$1000,106,FALSE),3)=\"The\",EN971,VLOOKUP(VLOOKUP($G971,$H$11:$DO$1000,106,FALSE),DeclMatrix!$A$2:$F$5,VLOOKUP('Enrollment Form'!$B971,DeclMatrix!$A$8:$B$12,2,FALSE),FALSE))))","v":""},{"$f":"IF($A971=\"\",\"\",IF(VLOOKUP($G971,$H$11:$DO$1000,109,FALSE)=\"\",\"No\",IF(LEFT(VLOOKUP($G971,$H$11:$DO$1000,109,FALSE),3)=\"The\",EO971,VLOOKUP(VLOOKUP($G971,$H$11:$DO$1000,109,FALSE),DeclMatrix!$A$2:$F$5,VLOOKUP('Enrollment Form'!$B971,DeclMatrix!$A$8:$B$12,2,FALSE),FALSE))))","v":""},{"$f":"IF($A971=\"\",\"\",IF(VLOOKUP($G971,$H$11:$DO$1000,112,FALSE)=\"\",\"No\",IF(LEFT(VLOOKUP($G971,$H$11:$DO$1000,112,FALSE),3)=\"The\",EP971,VLOOKUP(VLOOKUP($G971,$H$11:$DO$1000,112,FALSE),DeclMatrix!$A$2:$F$5,VLOOKUP('Enrollment Form'!$B971,DeclMatrix!$A$8:$B$12,2,FALSE),FALSE))))","v":""},null,null,null,null,null,null,null,null,{"$f":"IF(A971<>\"\",\"1X\",\"\")","v":""},null,{"$f":"$B971&$G971&$J971","v":""},{"$f":"$B971&$G971&$L971","v":""},{"$f":"$B971&$G971&$N971","v":""},{"$f":"$B971&$G971&$O971","v":""},{"$f":"IF($A971=\"\",\"\",IF($B971=\"Subscriber\",\"No\",IF(OR($DF971=\"\",$DF971=\"No\"),\"No\",\"Yes\")))","v":""},{"$f":"IF($A971=\"\",\"\",IF($B971=\"Subscriber\",\"No\",IF(OR($DI971=\"\",$DI971=\"No\"),\"No\",\"Yes\")))","v":""},{"$f":"IF($A971=\"\",\"\",IF($B971=\"Subscriber\",\"No\",IF(OR($DL971=\"\",$DL971=\"No\"),\"No\",\"Yes\")))","v":""},{"$f":"IF($A971=\"\",\"\",IF($B971=\"Subscriber\",\"No\",IF(OR($DO971=\"\",$DO971=\"No\"),\"No\",\"Yes\")))","v":""},{"$f":"IF($A971=\"\",\"\",IF(AND($B971=\"Subscriber\",$I971<>\"Waive\",$I971<>\"\"),\"Yes\",IF(AND($B971<>\"Subscriber\",$BM971=\"Yes\"),VLOOKUP($G971,$H$11:$ET$1000,140,FALSE),IF(AND($C971=\"Enroll\",VLOOKUP($G972,$H$11:$ET$1000,103,FALSE)<>\"\"),VLOOKUP($DU971,$DV$2:$DW$3,2,FALSE),\"No\"))))","v":""},{"$f":"IF($A971=\"\",\"\",IF(AND($B971=\"Subscriber\",$K971<>\"Waive\",$K971<>\"\"),\"Yes\",IF(AND($B971<>\"Subscriber\",$BM971=\"Yes\"),VLOOKUP($G971,$H$11:$ET$1000,141,FALSE),IF(AND($C971=\"Enroll\",VLOOKUP($G972,$H$11:$ET$1000,106,FALSE)<>\"\"),VLOOKUP($DV971,$DV$2:$DW$3,2,FALSE),\"No\"))))","v":""},{"$f":"IF($A971=\"\",\"\",IF(AND($B971=\"Subscriber\",$M971<>\"Waive\",$M971<>\"\"),\"Yes\",IF(AND($B971<>\"Subscriber\",$BM971=\"Yes\"),VLOOKUP($G971,$H$11:$ET$1000,142,FALSE),IF(AND($C971=\"Enroll\",VLOOKUP($G972,$H$11:$ET$1000,109,FALSE)<>\"\"),VLOOKUP($DW971,$DV$2:$DW$3,2,FALSE),\"No\"))))","v":""},{"$f":"IF($A971=\"\",\"\",IF(AND($B971=\"Subscriber\",$O971<>\"Waive\",$O971<>\"\"),\"Yes\",IF(AND($B971<>\"Subscriber\",$BM971=\"Yes\"),VLOOKUP($G971,$H$11:$ET$1000,143,FALSE),IF(AND($C971=\"Enroll\",VLOOKUP($G972,$H$11:$ET$1000,112,FALSE)<>\"\"),VLOOKUP($DX971,$DV$2:$DW$3,2,FALSE),\"No\"))))","v":""}]
["",null,null,null,null,null,{"$f":"IF(A972=\"\",\"\",IF(AND(B972<>\"Subscriber\",B972<>\"\"),G971,\"\"))","v":""},{"$f":"IF(AND(B972=\"Subscriber\",G972<>\"\"),G972,\"\")","v":""},null,null,null,null,null,null,null,null,null,null,null,null,null,null,null,null,null,null,{"$f":"IF(AND($B972=\"Subscriber\",$Z972=\"Yes\"),V972,\"\")","v":""},{"$f":"IF(AND($B972=\"Subscriber\",$Z972=\"Yes\"),W972,\"\")","v":""},{"$f":"IF(AND($B972=\"Subscriber\",$Z972=\"Yes\"),X972,\"\")","v":""},{"$f":"IF(AND($B972=\"Subscriber\",$Z972=\"Yes\"),Y972,\"\")","v":""},null,null,{"$f":"IF(AND(B972=\"Subscriber\",AJ972<>\"\"),\"NS01 - Not Selected\",\"\")","v":""},null,null,null,null,null,null,null,null,null,null,null,null,null,null,null,null,null,null,null,null,null,null,null,null,null,null,null,{"$f":"IF(OR($B972=\"Subscriber\",$B972=\"\"),\"\",IF(OR(VLOOKUP($G972,$H:$BH,53,FALSE)=\"No\",VLOOKUP($G972,$H:$BH,53,FALSE)=\"\"),\"\",IF(VLOOKUP($G972,$H:$BH,53,FALSE)=\"Yes\",VLOOKUP(G972,$H:$BI,32,FALSE))))","v":""},{"$f":"IF(OR($B972=\"Subscriber\",$B972=\"\"),\"\",IF(OR(VLOOKUP($G972,$H:$BH,53,FALSE)=\"No\",VLOOKUP($G972,$H:$BH,53,FALSE)=\"\"),\"\",IF(VLOOKUP($G972,$H:$BH,53,FALSE)=\"Yes\",VLOOKUP(G972,$H:$BI,33,FALSE))))","v":""},{"$f":"IF(OR($B972=\"Subscriber\",$B972=\"\"),\"\",IF(OR(VLOOKUP($G972,$H:$BH,53,FALSE)=\"No\",VLOOKUP($G972,$H:$BH,53,FALSE)=\"\"),\"\",IF(VLOOKUP($G972,$H:$BH,53,FALSE)=\"Yes\",VLOOKUP(G972,$H:$BI,34,FALSE))))","v":""},null,null,null,null,"","","","",null,null,null,null,null,null,null,null,null,null,null,null,null,null,null,null,null,null,null,null,null,null,null,null,null,null,null,null,null,null,null,null,null,null,null,null,null,null,null,null,null,null,null,null,null,null,null,null,null,null,null,null,"",{"$f":"IF($A972=\"\",\"\",IF(VLOOKUP($G972,$H$11:$DO$1000,103,FALSE)=\"\",\"No\",IF(LEFT(VLOOKUP($G972,$H$11:$DO$1000,103,FALSE),3)=\"The\",EM972,VLOOKUP(VLOOKUP($G972,$H$11:$DO$1000,103,FALSE),DeclMatrix!$A$2:$F$5,VLOOKUP('Enrollment Form'!$B972,DeclMatrix!$A$8:$B$12,2,FALSE),FALSE))))","v":""},{"$f":"IF($A972=\"\",\"\",IF(VLOOKUP($G972,$H$11:$DO$1000,106,FALSE)=\"\",\"No\",IF(LEFT(VLOOKUP($G972,$H$11:$DO$1000,106,FALSE),3)=\"The\",EN972,VLOOKUP(VLOOKUP($G972,$H$11:$DO$1000,106,FALSE),DeclMatrix!$A$2:$F$5,VLOOKUP('Enrollment Form'!$B972,DeclMatrix!$A$8:$B$12,2,FALSE),FALSE))))","v":""},{"$f":"IF($A972=\"\",\"\",IF(VLOOKUP($G972,$H$11:$DO$1000,109,FALSE)=\"\",\"No\",IF(LEFT(VLOOKUP($G972,$H$11:$DO$1000,109,FALSE),3)=\"The\",EO972,VLOOKUP(VLOOKUP($G972,$H$11:$DO$1000,109,FALSE),DeclMatrix!$A$2:$F$5,VLOOKUP('Enrollment Form'!$B972,DeclMatrix!$A$8:$B$12,2,FALSE),FALSE))))","v":""},{"$f":"IF($A972=\"\",\"\",IF(VLOOKUP($G972,$H$11:$DO$1000,112,FALSE)=\"\",\"No\",IF(LEFT(VLOOKUP($G972,$H$11:$DO$1000,112,FALSE),3)=\"The\",EP972,VLOOKUP(VLOOKUP($G972,$H$11:$DO$1000,112,FALSE),DeclMatrix!$A$2:$F$5,VLOOKUP('Enrollment Form'!$B972,DeclMatrix!$A$8:$B$12,2,FALSE),FALSE))))","v":""},null,null,null,null,null,null,null,null,"",null,"","","","","","","","","","","",""]
["",null,null,null,null,null,"","",null,null,null,null,null,null,null,null,null,null,null,null,null,null,null,null,null,null,"","","","",null,null,"",null,null,null,null,null,null,null,null,null,null,null,null,null,null,null,null,null,null,null,null,null,null,null,null,null,null,null,"","","",null,null,null,null,"","","","",null,null,null,null,null,null,null,null,null,null,null,null,null,null,null,null,null,null,null,null,null,null,null,null,null,null,null,null,null,null,null,null,null,null,null,null,null,null,null,null,null,null,null,null,null,null,null,null,null,null,null,null,"",{"$f":"IF($A973=\"\",\"\",IF(VLOOKUP($G973,$H$11:$DO$1000,103,FALSE)=\"\",\"No\",IF(LEFT(VLOOKUP($G973,$H$11:$DO$1000,103,FALSE),3)=\"The\",EM973,VLOOKUP(VLOOKUP($G973,$H$11:$DO$1000,103,FALSE),DeclMatrix!$A$2:$F$5,VLOOKUP('Enrollment Form'!$B973,DeclMatrix!$A$8:$B$12,2,FALSE),FALSE))))","v":""},{"$f":"IF($A973=\"\",\"\",IF(VLOOKUP($G973,$H$11:$DO$1000,106,FALSE)=\"\",\"No\",IF(LEFT(VLOOKUP($G973,$H$11:$DO$1000,106,FALSE),3)=\"The\",EN973,VLOOKUP(VLOOKUP($G973,$H$11:$DO$1000,106,FALSE),DeclMatrix!$A$2:$F$5,VLOOKUP('Enrollment Form'!$B973,DeclMatrix!$A$8:$B$12,2,FALSE),FALSE))))","v":""},{"$f":"IF($A973=\"\",\"\",IF(VLOOKUP($G973,$H$11:$DO$1000,109,FALSE)=\"\",\"No\",IF(LEFT(VLOOKUP($G973,$H$11:$DO$1000,109,FALSE),3)=\"The\",EO973,VLOOKUP(VLOOKUP($G973,$H$11:$DO$1000,109,FALSE),DeclMatrix!$A$2:$F$5,VLOOKUP('Enrollment Form'!$B973,DeclMatrix!$A$8:$B$12,2,FALSE),FALSE))))","v":""},{"$f":"IF($A973=\"\",\"\",IF(VLOOKUP($G973,$H$11:$DO$1000,112,FALSE)=\"\",\"No\",IF(LEFT(VLOOKUP($G973,$H$11:$DO$1000,112,FALSE),3)=\"The\",EP973,VLOOKUP(VLOOKUP($G973,$H$11:$DO$1000,112,FALSE),DeclMatrix!$A$2:$F$5,VLOOKUP('Enrollment Form'!$B973,DeclMatrix!$A$8:$B$12,2,FALSE),FALSE))))","v":""},null,null,null,null,null,null,null,null,"",null,"","","","","","","","","","","",""]
["",null,null,null,null,null,"","",null,null,null,null,null,null,null,null,null,null,null,null,null,null,null,null,null,null,"","","","",null,null,"",null,null,null,null,null,null,null,null,null,null,null,null,null,null,null,null,null,null,null,null,null,null,null,null,null,null,null,"","","",null,null,null,null,"","","","",null,null,null,null,null,null,null,null,null,null,null,null,null,null,null,null,null,null,null,null,null,null,null,null,null,null,null,null,null,null,null,null,null,null,null,null,null,null,null,null,null,null,null,null,null,null,null,null,null,null,null,null,"",{"$f":"IF($A974=\"\",\"\",IF(VLOOKUP($G974,$H$11:$DO$1000,103,FALSE)=\"\",\"No\",IF(LEFT(VLOOKUP($G974,$H$11:$DO$1000,103,FALSE),3)=\"The\",EM974,VLOOKUP(VLOOKUP($G974,$H$11:$DO$1000,103,FALSE),DeclMatrix!$A$2:$F$5,VLOOKUP('Enrollment Form'!$B974,DeclMatrix!$A$8:$B$12,2,FALSE),FALSE))))","v":""},{"$f":"IF($A974=\"\",\"\",IF(VLOOKUP($G974,$H$11:$DO$1000,106,FALSE)=\"\",\"No\",IF(LEFT(VLOOKUP($G974,$H$11:$DO$1000,106,FALSE),3)=\"The\",EN974,VLOOKUP(VLOOKUP($G974,$H$11:$DO$1000,106,FALSE),DeclMatrix!$A$2:$F$5,VLOOKUP('Enrollment Form'!$B974,DeclMatrix!$A$8:$B$12,2,FALSE),FALSE))))","v":""},{"$f":"IF($A974=\"\",\"\",IF(VLOOKUP($G974,$H$11:$DO$1000,109,FALSE)=\"\",\"No\",IF(LEFT(VLOOKUP($G974,$H$11:$DO$1000,109,FALSE),3)=\"The\",EO974,VLOOKUP(VLOOKUP($G974,$H$11:$DO$1000,109,FALSE),DeclMatrix!$A$2:$F$5,VLOOKUP('Enrollment Form'!$B974,DeclMatrix!$A$8:$B$12,2,FALSE),FALSE))))","v":""},{"$f":"IF($A974=\"\",\"\",IF(VLOOKUP($G974,$H$11:$DO$1000,112,FALSE)=\"\",\"No\",IF(LEFT(VLOOKUP($G974,$H$11:$DO$1000,112,FALSE),3)=\"The\",EP974,VLOOKUP(VLOOKUP($G974,$H$11:$DO$1000,112,FALSE),DeclMatrix!$A$2:$F$5,VLOOKUP('Enrollment Form'!$B974,DeclMatrix!$A$8:$B$12,2,FALSE),FALSE))))","v":""},null,null,null,null,null,null,null,null,"",null,"","","","","","","","","","","",""]
["",null,null,null,null,null,"","",null,null,null,null,null,null,null,null,null,null,null,null,null,null,null,null,null,null,"","","","",null,null,"",null,null,null,null,null,null,null,null,null,null,null,null,null,null,null,null,null,null,null,null,null,null,null,null,null,null,null,"","","",null,null,null,null,"","","","",null,null,null,null,null,null,null,null,null,null,null,null,null,null,null,null,null,null,null,null,null,null,null,null,null,null,null,null,null,null,null,null,null,null,null,null,null,null,null,null,null,null,null,null,null,null,null,null,null,null,null,null,"",{"$f":"IF($A975=\"\",\"\",IF(VLOOKUP($G975,$H$11:$DO$1000,103,FALSE)=\"\",\"No\",IF(LEFT(VLOOKUP($G975,$H$11:$DO$1000,103,FALSE),3)=\"The\",EM975,VLOOKUP(VLOOKUP($G975,$H$11:$DO$1000,103,FALSE),DeclMatrix!$A$2:$F$5,VLOOKUP('Enrollment Form'!$B975,DeclMatrix!$A$8:$B$12,2,FALSE),FALSE))))","v":""},{"$f":"IF($A975=\"\",\"\",IF(VLOOKUP($G975,$H$11:$DO$1000,106,FALSE)=\"\",\"No\",IF(LEFT(VLOOKUP($G975,$H$11:$DO$1000,106,FALSE),3)=\"The\",EN975,VLOOKUP(VLOOKUP($G975,$H$11:$DO$1000,106,FALSE),DeclMatrix!$A$2:$F$5,VLOOKUP('Enrollment Form'!$B975,DeclMatrix!$A$8:$B$12,2,FALSE),FALSE))))","v":""},{"$f":"IF($A975=\"\",\"\",IF(VLOOKUP($G975,$H$11:$DO$1000,109,FALSE)=\"\",\"No\",IF(LEFT(VLOOKUP($G975,$H$11:$DO$1000,109,FALSE),3)=\"The\",EO975,VLOOKUP(VLOOKUP($G975,$H$11:$DO$1000,109,FALSE),DeclMatrix!$A$2:$F$5,VLOOKUP('Enrollment Form'!$B975,DeclMatrix!$A$8:$B$12,2,FALSE),FALSE))))","v":""},{"$f":"IF($A975=\"\",\"\",IF(VLOOKUP($G975,$H$11:$DO$1000,112,FALSE)=\"\",\"No\",IF(LEFT(VLOOKUP($G975,$H$11:$DO$1000,112,FALSE),3)=\"The\",EP975,VLOOKUP(VLOOKUP($G975,$H$11:$DO$1000,112,FALSE),DeclMatrix!$A$2:$F$5,VLOOKUP('Enrollment Form'!$B975,DeclMatrix!$A$8:$B$12,2,FALSE),FALSE))))","v":""},null,null,null,null,null,null,null,null,"",null,"","","","","","","","","","","",""]
["",null,null,null,null,null,"","",null,null,null,null,null,null,null,null,null,null,null,null,null,null,null,null,null,null,"","","","",null,null,"",null,null,null,null,null,null,null,null,null,null,null,null,null,null,null,null,null,null,null,null,null,null,null,null,null,null,null,"","","",null,null,null,null,"","","","",null,null,null,null,null,null,null,null,null,null,null,null,null,null,null,null,null,null,null,null,null,null,null,null,null,null,null,null,null,null,null,null,null,null,null,null,null,null,null,null,null,null,null,null,null,null,null,null,null,null,null,null,"",{"$f":"IF($A976=\"\",\"\",IF(VLOOKUP($G976,$H$11:$DO$1000,103,FALSE)=\"\",\"No\",IF(LEFT(VLOOKUP($G976,$H$11:$DO$1000,103,FALSE),3)=\"The\",EM976,VLOOKUP(VLOOKUP($G976,$H$11:$DO$1000,103,FALSE),DeclMatrix!$A$2:$F$5,VLOOKUP('Enrollment Form'!$B976,DeclMatrix!$A$8:$B$12,2,FALSE),FALSE))))","v":""},{"$f":"IF($A976=\"\",\"\",IF(VLOOKUP($G976,$H$11:$DO$1000,106,FALSE)=\"\",\"No\",IF(LEFT(VLOOKUP($G976,$H$11:$DO$1000,106,FALSE),3)=\"The\",EN976,VLOOKUP(VLOOKUP($G976,$H$11:$DO$1000,106,FALSE),DeclMatrix!$A$2:$F$5,VLOOKUP('Enrollment Form'!$B976,DeclMatrix!$A$8:$B$12,2,FALSE),FALSE))))","v":""},{"$f":"IF($A976=\"\",\"\",IF(VLOOKUP($G976,$H$11:$DO$1000,109,FALSE)=\"\",\"No\",IF(LEFT(VLOOKUP($G976,$H$11:$DO$1000,109,FALSE),3)=\"The\",EO976,VLOOKUP(VLOOKUP($G976,$H$11:$DO$1000,109,FALSE),DeclMatrix!$A$2:$F$5,VLOOKUP('Enrollment Form'!$B976,DeclMatrix!$A$8:$B$12,2,FALSE),FALSE))))","v":""},{"$f":"IF($A976=\"\",\"\",IF(VLOOKUP($G976,$H$11:$DO$1000,112,FALSE)=\"\",\"No\",IF(LEFT(VLOOKUP($G976,$H$11:$DO$1000,112,FALSE),3)=\"The\",EP976,VLOOKUP(VLOOKUP($G976,$H$11:$DO$1000,112,FALSE),DeclMatrix!$A$2:$F$5,VLOOKUP('Enrollment Form'!$B976,DeclMatrix!$A$8:$B$12,2,FALSE),FALSE))))","v":""},null,null,null,null,null,null,null,null,"",null,"","","","","","","","","","","",""]
["",null,null,null,null,null,"","",null,null,null,null,null,null,null,null,null,null,null,null,null,null,null,null,null,null,"","","","",null,null,"",null,null,null,null,null,null,null,null,null,null,null,null,null,null,null,null,null,null,null,null,null,null,null,null,null,null,null,"","","",null,null,null,null,"","","","",null,null,null,null,null,null,null,null,null,null,null,null,null,null,null,null,null,null,null,null,null,null,null,null,null,null,null,null,null,null,null,null,null,null,null,null,null,null,null,null,null,null,null,null,null,null,null,null,null,null,null,null,"",{"$f":"IF($A977=\"\",\"\",IF(VLOOKUP($G977,$H$11:$DO$1000,103,FALSE)=\"\",\"No\",IF(LEFT(VLOOKUP($G977,$H$11:$DO$1000,103,FALSE),3)=\"The\",EM977,VLOOKUP(VLOOKUP($G977,$H$11:$DO$1000,103,FALSE),DeclMatrix!$A$2:$F$5,VLOOKUP('Enrollment Form'!$B977,DeclMatrix!$A$8:$B$12,2,FALSE),FALSE))))","v":""},{"$f":"IF($A977=\"\",\"\",IF(VLOOKUP($G977,$H$11:$DO$1000,106,FALSE)=\"\",\"No\",IF(LEFT(VLOOKUP($G977,$H$11:$DO$1000,106,FALSE),3)=\"The\",EN977,VLOOKUP(VLOOKUP($G977,$H$11:$DO$1000,106,FALSE),DeclMatrix!$A$2:$F$5,VLOOKUP('Enrollment Form'!$B977,DeclMatrix!$A$8:$B$12,2,FALSE),FALSE))))","v":""},{"$f":"IF($A977=\"\",\"\",IF(VLOOKUP($G977,$H$11:$DO$1000,109,FALSE)=\"\",\"No\",IF(LEFT(VLOOKUP($G977,$H$11:$DO$1000,109,FALSE),3)=\"The\",EO977,VLOOKUP(VLOOKUP($G977,$H$11:$DO$1000,109,FALSE),DeclMatrix!$A$2:$F$5,VLOOKUP('Enrollment Form'!$B977,DeclMatrix!$A$8:$B$12,2,FALSE),FALSE))))","v":""},{"$f":"IF($A977=\"\",\"\",IF(VLOOKUP($G977,$H$11:$DO$1000,112,FALSE)=\"\",\"No\",IF(LEFT(VLOOKUP($G977,$H$11:$DO$1000,112,FALSE),3)=\"The\",EP977,VLOOKUP(VLOOKUP($G977,$H$11:$DO$1000,112,FALSE),DeclMatrix!$A$2:$F$5,VLOOKUP('Enrollment Form'!$B977,DeclMatrix!$A$8:$B$12,2,FALSE),FALSE))))","v":""},null,null,null,null,null,null,null,null,"",null,"","","","","","","","","","","",""]
["",null,null,null,null,null,"","",null,null,null,null,null,null,null,null,null,null,null,null,null,null,null,null,null,null,"","","","",null,null,"",null,null,null,null,null,null,null,null,null,null,null,null,null,null,null,null,null,null,null,null,null,null,null,null,null,null,null,"","","",null,null,null,null,"","","","",null,null,null,null,null,null,null,null,null,null,null,null,null,null,null,null,null,null,null,null,null,null,null,null,null,null,null,null,null,null,null,null,null,null,null,null,null,null,null,null,null,null,null,null,null,null,null,null,null,null,null,null,"",{"$f":"IF($A978=\"\",\"\",IF(VLOOKUP($G978,$H$11:$DO$1000,103,FALSE)=\"\",\"No\",IF(LEFT(VLOOKUP($G978,$H$11:$DO$1000,103,FALSE),3)=\"The\",EM978,VLOOKUP(VLOOKUP($G978,$H$11:$DO$1000,103,FALSE),DeclMatrix!$A$2:$F$5,VLOOKUP('Enrollment Form'!$B978,DeclMatrix!$A$8:$B$12,2,FALSE),FALSE))))","v":""},{"$f":"IF($A978=\"\",\"\",IF(VLOOKUP($G978,$H$11:$DO$1000,106,FALSE)=\"\",\"No\",IF(LEFT(VLOOKUP($G978,$H$11:$DO$1000,106,FALSE),3)=\"The\",EN978,VLOOKUP(VLOOKUP($G978,$H$11:$DO$1000,106,FALSE),DeclMatrix!$A$2:$F$5,VLOOKUP('Enrollment Form'!$B978,DeclMatrix!$A$8:$B$12,2,FALSE),FALSE))))","v":""},{"$f":"IF($A978=\"\",\"\",IF(VLOOKUP($G978,$H$11:$DO$1000,109,FALSE)=\"\",\"No\",IF(LEFT(VLOOKUP($G978,$H$11:$DO$1000,109,FALSE),3)=\"The\",EO978,VLOOKUP(VLOOKUP($G978,$H$11:$DO$1000,109,FALSE),DeclMatrix!$A$2:$F$5,VLOOKUP('Enrollment Form'!$B978,DeclMatrix!$A$8:$B$12,2,FALSE),FALSE))))","v":""},{"$f":"IF($A978=\"\",\"\",IF(VLOOKUP($G978,$H$11:$DO$1000,112,FALSE)=\"\",\"No\",IF(LEFT(VLOOKUP($G978,$H$11:$DO$1000,112,FALSE),3)=\"The\",EP978,VLOOKUP(VLOOKUP($G978,$H$11:$DO$1000,112,FALSE),DeclMatrix!$A$2:$F$5,VLOOKUP('Enrollment Form'!$B978,DeclMatrix!$A$8:$B$12,2,FALSE),FALSE))))","v":""},null,null,null,null,null,null,null,null,"",null,"","","","","","","","","","","",""]
["",null,null,null,null,null,"","",null,null,null,null,null,null,null,null,null,null,null,null,null,null,null,null,null,null,"","","","",null,null,"",null,null,null,null,null,null,null,null,null,null,null,null,null,null,null,null,null,null,null,null,null,null,null,null,null,null,null,"","","",null,null,null,null,"","","","",null,null,null,null,null,null,null,null,null,null,null,null,null,null,null,null,null,null,null,null,null,null,null,null,null,null,null,null,null,null,null,null,null,null,null,null,null,null,null,null,null,null,null,null,null,null,null,null,null,null,null,null,"",{"$f":"IF($A979=\"\",\"\",IF(VLOOKUP($G979,$H$11:$DO$1000,103,FALSE)=\"\",\"No\",IF(LEFT(VLOOKUP($G979,$H$11:$DO$1000,103,FALSE),3)=\"The\",EM979,VLOOKUP(VLOOKUP($G979,$H$11:$DO$1000,103,FALSE),DeclMatrix!$A$2:$F$5,VLOOKUP('Enrollment Form'!$B979,DeclMatrix!$A$8:$B$12,2,FALSE),FALSE))))","v":""},{"$f":"IF($A979=\"\",\"\",IF(VLOOKUP($G979,$H$11:$DO$1000,106,FALSE)=\"\",\"No\",IF(LEFT(VLOOKUP($G979,$H$11:$DO$1000,106,FALSE),3)=\"The\",EN979,VLOOKUP(VLOOKUP($G979,$H$11:$DO$1000,106,FALSE),DeclMatrix!$A$2:$F$5,VLOOKUP('Enrollment Form'!$B979,DeclMatrix!$A$8:$B$12,2,FALSE),FALSE))))","v":""},{"$f":"IF($A979=\"\",\"\",IF(VLOOKUP($G979,$H$11:$DO$1000,109,FALSE)=\"\",\"No\",IF(LEFT(VLOOKUP($G979,$H$11:$DO$1000,109,FALSE),3)=\"The\",EO979,VLOOKUP(VLOOKUP($G979,$H$11:$DO$1000,109,FALSE),DeclMatrix!$A$2:$F$5,VLOOKUP('Enrollment Form'!$B979,DeclMatrix!$A$8:$B$12,2,FALSE),FALSE))))","v":""},{"$f":"IF($A979=\"\",\"\",IF(VLOOKUP($G979,$H$11:$DO$1000,112,FALSE)=\"\",\"No\",IF(LEFT(VLOOKUP($G979,$H$11:$DO$1000,112,FALSE),3)=\"The\",EP979,VLOOKUP(VLOOKUP($G979,$H$11:$DO$1000,112,FALSE),DeclMatrix!$A$2:$F$5,VLOOKUP('Enrollment Form'!$B979,DeclMatrix!$A$8:$B$12,2,FALSE),FALSE))))","v":""},null,null,null,null,null,null,null,null,"",null,"","","","","","","","","","","",""]
["",null,null,null,null,null,"","",null,null,null,null,null,null,null,null,null,null,null,null,null,null,null,null,null,null,"","","","",null,null,"",null,null,null,null,null,null,null,null,null,null,null,null,null,null,null,null,null,null,null,null,null,null,null,null,null,null,null,"","","",null,null,null,null,"","","","",null,null,null,null,null,null,null,null,null,null,null,null,null,null,null,null,null,null,null,null,null,null,null,null,null,null,null,null,null,null,null,null,null,null,null,null,null,null,null,null,null,null,null,null,null,null,null,null,null,null,null,null,"",{"$f":"IF($A980=\"\",\"\",IF(VLOOKUP($G980,$H$11:$DO$1000,103,FALSE)=\"\",\"No\",IF(LEFT(VLOOKUP($G980,$H$11:$DO$1000,103,FALSE),3)=\"The\",EM980,VLOOKUP(VLOOKUP($G980,$H$11:$DO$1000,103,FALSE),DeclMatrix!$A$2:$F$5,VLOOKUP('Enrollment Form'!$B980,DeclMatrix!$A$8:$B$12,2,FALSE),FALSE))))","v":""},{"$f":"IF($A980=\"\",\"\",IF(VLOOKUP($G980,$H$11:$DO$1000,106,FALSE)=\"\",\"No\",IF(LEFT(VLOOKUP($G980,$H$11:$DO$1000,106,FALSE),3)=\"The\",EN980,VLOOKUP(VLOOKUP($G980,$H$11:$DO$1000,106,FALSE),DeclMatrix!$A$2:$F$5,VLOOKUP('Enrollment Form'!$B980,DeclMatrix!$A$8:$B$12,2,FALSE),FALSE))))","v":""},{"$f":"IF($A980=\"\",\"\",IF(VLOOKUP($G980,$H$11:$DO$1000,109,FALSE)=\"\",\"No\",IF(LEFT(VLOOKUP($G980,$H$11:$DO$1000,109,FALSE),3)=\"The\",EO980,VLOOKUP(VLOOKUP($G980,$H$11:$DO$1000,109,FALSE),DeclMatrix!$A$2:$F$5,VLOOKUP('Enrollment Form'!$B980,DeclMatrix!$A$8:$B$12,2,FALSE),FALSE))))","v":""},{"$f":"IF($A980=\"\",\"\",IF(VLOOKUP($G980,$H$11:$DO$1000,112,FALSE)=\"\",\"No\",IF(LEFT(VLOOKUP($G980,$H$11:$DO$1000,112,FALSE),3)=\"The\",EP980,VLOOKUP(VLOOKUP($G980,$H$11:$DO$1000,112,FALSE),DeclMatrix!$A$2:$F$5,VLOOKUP('Enrollment Form'!$B980,DeclMatrix!$A$8:$B$12,2,FALSE),FALSE))))","v":""},null,null,null,null,null,null,null,null,"",null,"","","","","","","","","","","",""]
["",null,null,null,null,null,"","",null,null,null,null,null,null,null,null,null,null,null,null,null,null,null,null,null,null,"","","","",null,null,"",null,null,null,null,null,null,null,null,null,null,null,null,null,null,null,null,null,null,null,null,null,null,null,null,null,null,null,"","","",null,null,null,null,"","","","",null,null,null,null,null,null,null,null,null,null,null,null,null,null,null,null,null,null,null,null,null,null,null,null,null,null,null,null,null,null,null,null,null,null,null,null,null,null,null,null,null,null,null,null,null,null,null,null,null,null,null,null,"",{"$f":"IF($A981=\"\",\"\",IF(VLOOKUP($G981,$H$11:$DO$1000,103,FALSE)=\"\",\"No\",IF(LEFT(VLOOKUP($G981,$H$11:$DO$1000,103,FALSE),3)=\"The\",EM981,VLOOKUP(VLOOKUP($G981,$H$11:$DO$1000,103,FALSE),DeclMatrix!$A$2:$F$5,VLOOKUP('Enrollment Form'!$B981,DeclMatrix!$A$8:$B$12,2,FALSE),FALSE))))","v":""},{"$f":"IF($A981=\"\",\"\",IF(VLOOKUP($G981,$H$11:$DO$1000,106,FALSE)=\"\",\"No\",IF(LEFT(VLOOKUP($G981,$H$11:$DO$1000,106,FALSE),3)=\"The\",EN981,VLOOKUP(VLOOKUP($G981,$H$11:$DO$1000,106,FALSE),DeclMatrix!$A$2:$F$5,VLOOKUP('Enrollment Form'!$B981,DeclMatrix!$A$8:$B$12,2,FALSE),FALSE))))","v":""},{"$f":"IF($A981=\"\",\"\",IF(VLOOKUP($G981,$H$11:$DO$1000,109,FALSE)=\"\",\"No\",IF(LEFT(VLOOKUP($G981,$H$11:$DO$1000,109,FALSE),3)=\"The\",EO981,VLOOKUP(VLOOKUP($G981,$H$11:$DO$1000,109,FALSE),DeclMatrix!$A$2:$F$5,VLOOKUP('Enrollment Form'!$B981,DeclMatrix!$A$8:$B$12,2,FALSE),FALSE))))","v":""},{"$f":"IF($A981=\"\",\"\",IF(VLOOKUP($G981,$H$11:$DO$1000,112,FALSE)=\"\",\"No\",IF(LEFT(VLOOKUP($G981,$H$11:$DO$1000,112,FALSE),3)=\"The\",EP981,VLOOKUP(VLOOKUP($G981,$H$11:$DO$1000,112,FALSE),DeclMatrix!$A$2:$F$5,VLOOKUP('Enrollment Form'!$B981,DeclMatrix!$A$8:$B$12,2,FALSE),FALSE))))","v":""},null,null,null,null,null,null,null,null,"",null,"","","","","","","","","","","",""]
["",null,null,null,null,null,"","",null,null,null,null,null,null,null,null,null,null,null,null,null,null,null,null,null,null,"","","","",null,null,"",null,null,null,null,null,null,null,null,null,null,null,null,null,null,null,null,null,null,null,null,null,null,null,null,null,null,null,"","","",null,null,null,null,"","","","",null,null,null,null,null,null,null,null,null,null,null,null,null,null,null,null,null,null,null,null,null,null,null,null,null,null,null,null,null,null,null,null,null,null,null,null,null,null,null,null,null,null,null,null,null,null,null,null,null,null,null,null,"",{"$f":"IF($A982=\"\",\"\",IF(VLOOKUP($G982,$H$11:$DO$1000,103,FALSE)=\"\",\"No\",IF(LEFT(VLOOKUP($G982,$H$11:$DO$1000,103,FALSE),3)=\"The\",EM982,VLOOKUP(VLOOKUP($G982,$H$11:$DO$1000,103,FALSE),DeclMatrix!$A$2:$F$5,VLOOKUP('Enrollment Form'!$B982,DeclMatrix!$A$8:$B$12,2,FALSE),FALSE))))","v":""},{"$f":"IF($A982=\"\",\"\",IF(VLOOKUP($G982,$H$11:$DO$1000,106,FALSE)=\"\",\"No\",IF(LEFT(VLOOKUP($G982,$H$11:$DO$1000,106,FALSE),3)=\"The\",EN982,VLOOKUP(VLOOKUP($G982,$H$11:$DO$1000,106,FALSE),DeclMatrix!$A$2:$F$5,VLOOKUP('Enrollment Form'!$B982,DeclMatrix!$A$8:$B$12,2,FALSE),FALSE))))","v":""},{"$f":"IF($A982=\"\",\"\",IF(VLOOKUP($G982,$H$11:$DO$1000,109,FALSE)=\"\",\"No\",IF(LEFT(VLOOKUP($G982,$H$11:$DO$1000,109,FALSE),3)=\"The\",EO982,VLOOKUP(VLOOKUP($G982,$H$11:$DO$1000,109,FALSE),DeclMatrix!$A$2:$F$5,VLOOKUP('Enrollment Form'!$B982,DeclMatrix!$A$8:$B$12,2,FALSE),FALSE))))","v":""},{"$f":"IF($A982=\"\",\"\",IF(VLOOKUP($G982,$H$11:$DO$1000,112,FALSE)=\"\",\"No\",IF(LEFT(VLOOKUP($G982,$H$11:$DO$1000,112,FALSE),3)=\"The\",EP982,VLOOKUP(VLOOKUP($G982,$H$11:$DO$1000,112,FALSE),DeclMatrix!$A$2:$F$5,VLOOKUP('Enrollment Form'!$B982,DeclMatrix!$A$8:$B$12,2,FALSE),FALSE))))","v":""},null,null,null,null,null,null,null,null,"",null,"","","","","","","","","","","",""]
["",null,null,null,null,null,"","",null,null,null,null,null,null,null,null,null,null,null,null,null,null,null,null,null,null,"","","","",null,null,"",null,null,null,null,null,null,null,null,null,null,null,null,null,null,null,null,null,null,null,null,null,null,null,null,null,null,null,"","","",null,null,null,null,"","","","",null,null,null,null,null,null,null,null,null,null,null,null,null,null,null,null,null,null,null,null,null,null,null,null,null,null,null,null,null,null,null,null,null,null,null,null,null,null,null,null,null,null,null,null,null,null,null,null,null,null,null,null,"",{"$f":"IF($A983=\"\",\"\",IF(VLOOKUP($G983,$H$11:$DO$1000,103,FALSE)=\"\",\"No\",IF(LEFT(VLOOKUP($G983,$H$11:$DO$1000,103,FALSE),3)=\"The\",EM983,VLOOKUP(VLOOKUP($G983,$H$11:$DO$1000,103,FALSE),DeclMatrix!$A$2:$F$5,VLOOKUP('Enrollment Form'!$B983,DeclMatrix!$A$8:$B$12,2,FALSE),FALSE))))","v":""},{"$f":"IF($A983=\"\",\"\",IF(VLOOKUP($G983,$H$11:$DO$1000,106,FALSE)=\"\",\"No\",IF(LEFT(VLOOKUP($G983,$H$11:$DO$1000,106,FALSE),3)=\"The\",EN983,VLOOKUP(VLOOKUP($G983,$H$11:$DO$1000,106,FALSE),DeclMatrix!$A$2:$F$5,VLOOKUP('Enrollment Form'!$B983,DeclMatrix!$A$8:$B$12,2,FALSE),FALSE))))","v":""},{"$f":"IF($A983=\"\",\"\",IF(VLOOKUP($G983,$H$11:$DO$1000,109,FALSE)=\"\",\"No\",IF(LEFT(VLOOKUP($G983,$H$11:$DO$1000,109,FALSE),3)=\"The\",EO983,VLOOKUP(VLOOKUP($G983,$H$11:$DO$1000,109,FALSE),DeclMatrix!$A$2:$F$5,VLOOKUP('Enrollment Form'!$B983,DeclMatrix!$A$8:$B$12,2,FALSE),FALSE))))","v":""},{"$f":"IF($A983=\"\",\"\",IF(VLOOKUP($G983,$H$11:$DO$1000,112,FALSE)=\"\",\"No\",IF(LEFT(VLOOKUP($G983,$H$11:$DO$1000,112,FALSE),3)=\"The\",EP983,VLOOKUP(VLOOKUP($G983,$H$11:$DO$1000,112,FALSE),DeclMatrix!$A$2:$F$5,VLOOKUP('Enrollment Form'!$B983,DeclMatrix!$A$8:$B$12,2,FALSE),FALSE))))","v":""},null,null,null,null,null,null,null,null,"",null,"","","","","","","","","","","",""]
["",null,null,null,null,null,"","",null,null,null,null,null,null,null,null,null,null,null,null,null,null,null,null,null,null,"","","","",null,null,"",null,null,null,null,null,null,null,null,null,null,null,null,null,null,null,null,null,null,null,null,null,null,null,null,null,null,null,"","","",null,null,null,null,"","","","",null,null,null,null,null,null,null,null,null,null,null,null,null,null,null,null,null,null,null,null,null,null,null,null,null,null,null,null,null,null,null,null,null,null,null,null,null,null,null,null,null,null,null,null,null,null,null,null,null,null,null,null,"",{"$f":"IF($A984=\"\",\"\",IF(VLOOKUP($G984,$H$11:$DO$1000,103,FALSE)=\"\",\"No\",IF(LEFT(VLOOKUP($G984,$H$11:$DO$1000,103,FALSE),3)=\"The\",EM984,VLOOKUP(VLOOKUP($G984,$H$11:$DO$1000,103,FALSE),DeclMatrix!$A$2:$F$5,VLOOKUP('Enrollment Form'!$B984,DeclMatrix!$A$8:$B$12,2,FALSE),FALSE))))","v":""},{"$f":"IF($A984=\"\",\"\",IF(VLOOKUP($G984,$H$11:$DO$1000,106,FALSE)=\"\",\"No\",IF(LEFT(VLOOKUP($G984,$H$11:$DO$1000,106,FALSE),3)=\"The\",EN984,VLOOKUP(VLOOKUP($G984,$H$11:$DO$1000,106,FALSE),DeclMatrix!$A$2:$F$5,VLOOKUP('Enrollment Form'!$B984,DeclMatrix!$A$8:$B$12,2,FALSE),FALSE))))","v":""},{"$f":"IF($A984=\"\",\"\",IF(VLOOKUP($G984,$H$11:$DO$1000,109,FALSE)=\"\",\"No\",IF(LEFT(VLOOKUP($G984,$H$11:$DO$1000,109,FALSE),3)=\"The\",EO984,VLOOKUP(VLOOKUP($G984,$H$11:$DO$1000,109,FALSE),DeclMatrix!$A$2:$F$5,VLOOKUP('Enrollment Form'!$B984,DeclMatrix!$A$8:$B$12,2,FALSE),FALSE))))","v":""},{"$f":"IF($A984=\"\",\"\",IF(VLOOKUP($G984,$H$11:$DO$1000,112,FALSE)=\"\",\"No\",IF(LEFT(VLOOKUP($G984,$H$11:$DO$1000,112,FALSE),3)=\"The\",EP984,VLOOKUP(VLOOKUP($G984,$H$11:$DO$1000,112,FALSE),DeclMatrix!$A$2:$F$5,VLOOKUP('Enrollment Form'!$B984,DeclMatrix!$A$8:$B$12,2,FALSE),FALSE))))","v":""},null,null,null,null,null,null,null,null,"",null,"","","","","","","","","","","",""]
["",null,null,null,null,null,"","",null,null,null,null,null,null,null,null,null,null,null,null,null,null,null,null,null,null,"","","","",null,null,"",null,null,null,null,null,null,null,null,null,null,null,null,null,null,null,null,null,null,null,null,null,null,null,null,null,null,null,"","","",null,null,null,null,"","","","",null,null,null,null,null,null,null,null,null,null,null,null,null,null,null,null,null,null,null,null,null,null,null,null,null,null,null,null,null,null,null,null,null,null,null,null,null,null,null,null,null,null,null,null,null,null,null,null,null,null,null,null,"",{"$f":"IF($A985=\"\",\"\",IF(VLOOKUP($G985,$H$11:$DO$1000,103,FALSE)=\"\",\"No\",IF(LEFT(VLOOKUP($G985,$H$11:$DO$1000,103,FALSE),3)=\"The\",EM985,VLOOKUP(VLOOKUP($G985,$H$11:$DO$1000,103,FALSE),DeclMatrix!$A$2:$F$5,VLOOKUP('Enrollment Form'!$B985,DeclMatrix!$A$8:$B$12,2,FALSE),FALSE))))","v":""},{"$f":"IF($A985=\"\",\"\",IF(VLOOKUP($G985,$H$11:$DO$1000,106,FALSE)=\"\",\"No\",IF(LEFT(VLOOKUP($G985,$H$11:$DO$1000,106,FALSE),3)=\"The\",EN985,VLOOKUP(VLOOKUP($G985,$H$11:$DO$1000,106,FALSE),DeclMatrix!$A$2:$F$5,VLOOKUP('Enrollment Form'!$B985,DeclMatrix!$A$8:$B$12,2,FALSE),FALSE))))","v":""},{"$f":"IF($A985=\"\",\"\",IF(VLOOKUP($G985,$H$11:$DO$1000,109,FALSE)=\"\",\"No\",IF(LEFT(VLOOKUP($G985,$H$11:$DO$1000,109,FALSE),3)=\"The\",EO985,VLOOKUP(VLOOKUP($G985,$H$11:$DO$1000,109,FALSE),DeclMatrix!$A$2:$F$5,VLOOKUP('Enrollment Form'!$B985,DeclMatrix!$A$8:$B$12,2,FALSE),FALSE))))","v":""},{"$f":"IF($A985=\"\",\"\",IF(VLOOKUP($G985,$H$11:$DO$1000,112,FALSE)=\"\",\"No\",IF(LEFT(VLOOKUP($G985,$H$11:$DO$1000,112,FALSE),3)=\"The\",EP985,VLOOKUP(VLOOKUP($G985,$H$11:$DO$1000,112,FALSE),DeclMatrix!$A$2:$F$5,VLOOKUP('Enrollment Form'!$B985,DeclMatrix!$A$8:$B$12,2,FALSE),FALSE))))","v":""},null,null,null,null,null,null,null,null,"",null,"","","","","","","","","","","",""]
["",null,null,null,null,null,"","",null,null,null,null,null,null,null,null,null,null,null,null,null,null,null,null,null,null,"","","","",null,null,"",null,null,null,null,null,null,null,null,null,null,null,null,null,null,null,null,null,null,null,null,null,null,null,null,null,null,null,"","","",null,null,null,null,"","","","",null,null,null,null,null,null,null,null,null,null,null,null,null,null,null,null,null,null,null,null,null,null,null,null,null,null,null,null,null,null,null,null,null,null,null,null,null,null,null,null,null,null,null,null,null,null,null,null,null,null,null,null,"",{"$f":"IF($A986=\"\",\"\",IF(VLOOKUP($G986,$H$11:$DO$1000,103,FALSE)=\"\",\"No\",IF(LEFT(VLOOKUP($G986,$H$11:$DO$1000,103,FALSE),3)=\"The\",EM986,VLOOKUP(VLOOKUP($G986,$H$11:$DO$1000,103,FALSE),DeclMatrix!$A$2:$F$5,VLOOKUP('Enrollment Form'!$B986,DeclMatrix!$A$8:$B$12,2,FALSE),FALSE))))","v":""},{"$f":"IF($A986=\"\",\"\",IF(VLOOKUP($G986,$H$11:$DO$1000,106,FALSE)=\"\",\"No\",IF(LEFT(VLOOKUP($G986,$H$11:$DO$1000,106,FALSE),3)=\"The\",EN986,VLOOKUP(VLOOKUP($G986,$H$11:$DO$1000,106,FALSE),DeclMatrix!$A$2:$F$5,VLOOKUP('Enrollment Form'!$B986,DeclMatrix!$A$8:$B$12,2,FALSE),FALSE))))","v":""},{"$f":"IF($A986=\"\",\"\",IF(VLOOKUP($G986,$H$11:$DO$1000,109,FALSE)=\"\",\"No\",IF(LEFT(VLOOKUP($G986,$H$11:$DO$1000,109,FALSE),3)=\"The\",EO986,VLOOKUP(VLOOKUP($G986,$H$11:$DO$1000,109,FALSE),DeclMatrix!$A$2:$F$5,VLOOKUP('Enrollment Form'!$B986,DeclMatrix!$A$8:$B$12,2,FALSE),FALSE))))","v":""},{"$f":"IF($A986=\"\",\"\",IF(VLOOKUP($G986,$H$11:$DO$1000,112,FALSE)=\"\",\"No\",IF(LEFT(VLOOKUP($G986,$H$11:$DO$1000,112,FALSE),3)=\"The\",EP986,VLOOKUP(VLOOKUP($G986,$H$11:$DO$1000,112,FALSE),DeclMatrix!$A$2:$F$5,VLOOKUP('Enrollment Form'!$B986,DeclMatrix!$A$8:$B$12,2,FALSE),FALSE))))","v":""},null,null,null,null,null,null,null,null,"",null,"","","","","","","","","","","",""]
["",null,null,null,null,null,"","",null,null,null,null,null,null,null,null,null,null,null,null,null,null,null,null,null,null,"","","","",null,null,"",null,null,null,null,null,null,null,null,null,null,null,null,null,null,null,null,null,null,null,null,null,null,null,null,null,null,null,"","","",null,null,null,null,"","","","",null,null,null,null,null,null,null,null,null,null,null,null,null,null,null,null,null,null,null,null,null,null,null,null,null,null,null,null,null,null,null,null,null,null,null,null,null,null,null,null,null,null,null,null,null,null,null,null,null,null,null,null,"",{"$f":"IF($A987=\"\",\"\",IF(VLOOKUP($G987,$H$11:$DO$1000,103,FALSE)=\"\",\"No\",IF(LEFT(VLOOKUP($G987,$H$11:$DO$1000,103,FALSE),3)=\"The\",EM987,VLOOKUP(VLOOKUP($G987,$H$11:$DO$1000,103,FALSE),DeclMatrix!$A$2:$F$5,VLOOKUP('Enrollment Form'!$B987,DeclMatrix!$A$8:$B$12,2,FALSE),FALSE))))","v":""},{"$f":"IF($A987=\"\",\"\",IF(VLOOKUP($G987,$H$11:$DO$1000,106,FALSE)=\"\",\"No\",IF(LEFT(VLOOKUP($G987,$H$11:$DO$1000,106,FALSE),3)=\"The\",EN987,VLOOKUP(VLOOKUP($G987,$H$11:$DO$1000,106,FALSE),DeclMatrix!$A$2:$F$5,VLOOKUP('Enrollment Form'!$B987,DeclMatrix!$A$8:$B$12,2,FALSE),FALSE))))","v":""},{"$f":"IF($A987=\"\",\"\",IF(VLOOKUP($G987,$H$11:$DO$1000,109,FALSE)=\"\",\"No\",IF(LEFT(VLOOKUP($G987,$H$11:$DO$1000,109,FALSE),3)=\"The\",EO987,VLOOKUP(VLOOKUP($G987,$H$11:$DO$1000,109,FALSE),DeclMatrix!$A$2:$F$5,VLOOKUP('Enrollment Form'!$B987,DeclMatrix!$A$8:$B$12,2,FALSE),FALSE))))","v":""},{"$f":"IF($A987=\"\",\"\",IF(VLOOKUP($G987,$H$11:$DO$1000,112,FALSE)=\"\",\"No\",IF(LEFT(VLOOKUP($G987,$H$11:$DO$1000,112,FALSE),3)=\"The\",EP987,VLOOKUP(VLOOKUP($G987,$H$11:$DO$1000,112,FALSE),DeclMatrix!$A$2:$F$5,VLOOKUP('Enrollment Form'!$B987,DeclMatrix!$A$8:$B$12,2,FALSE),FALSE))))","v":""},null,null,null,null,null,null,null,null,"",null,"","","","","","","","","","","",""]
["",null,null,null,null,null,"","",null,null,null,null,null,null,null,null,null,null,null,null,null,null,null,null,null,null,"","","","",null,null,"",null,null,null,null,null,null,null,null,null,null,null,null,null,null,null,null,null,null,null,null,null,null,null,null,null,null,null,"","","",null,null,null,null,"","","","",null,null,null,null,null,null,null,null,null,null,null,null,null,null,null,null,null,null,null,null,null,null,null,null,null,null,null,null,null,null,null,null,null,null,null,null,null,null,null,null,null,null,null,null,null,null,null,null,null,null,null,null,"",{"$f":"IF($A988=\"\",\"\",IF(VLOOKUP($G988,$H$11:$DO$1000,103,FALSE)=\"\",\"No\",IF(LEFT(VLOOKUP($G988,$H$11:$DO$1000,103,FALSE),3)=\"The\",EM988,VLOOKUP(VLOOKUP($G988,$H$11:$DO$1000,103,FALSE),DeclMatrix!$A$2:$F$5,VLOOKUP('Enrollment Form'!$B988,DeclMatrix!$A$8:$B$12,2,FALSE),FALSE))))","v":""},{"$f":"IF($A988=\"\",\"\",IF(VLOOKUP($G988,$H$11:$DO$1000,106,FALSE)=\"\",\"No\",IF(LEFT(VLOOKUP($G988,$H$11:$DO$1000,106,FALSE),3)=\"The\",EN988,VLOOKUP(VLOOKUP($G988,$H$11:$DO$1000,106,FALSE),DeclMatrix!$A$2:$F$5,VLOOKUP('Enrollment Form'!$B988,DeclMatrix!$A$8:$B$12,2,FALSE),FALSE))))","v":""},{"$f":"IF($A988=\"\",\"\",IF(VLOOKUP($G988,$H$11:$DO$1000,109,FALSE)=\"\",\"No\",IF(LEFT(VLOOKUP($G988,$H$11:$DO$1000,109,FALSE),3)=\"The\",EO988,VLOOKUP(VLOOKUP($G988,$H$11:$DO$1000,109,FALSE),DeclMatrix!$A$2:$F$5,VLOOKUP('Enrollment Form'!$B988,DeclMatrix!$A$8:$B$12,2,FALSE),FALSE))))","v":""},{"$f":"IF($A988=\"\",\"\",IF(VLOOKUP($G988,$H$11:$DO$1000,112,FALSE)=\"\",\"No\",IF(LEFT(VLOOKUP($G988,$H$11:$DO$1000,112,FALSE),3)=\"The\",EP988,VLOOKUP(VLOOKUP($G988,$H$11:$DO$1000,112,FALSE),DeclMatrix!$A$2:$F$5,VLOOKUP('Enrollment Form'!$B988,DeclMatrix!$A$8:$B$12,2,FALSE),FALSE))))","v":""},null,null,null,null,null,null,null,null,"",null,"","","","","","","","","","","",""]
["",null,null,null,null,null,"","",null,null,null,null,null,null,null,null,null,null,null,null,null,null,null,null,null,null,"","","","",null,null,"",null,null,null,null,null,null,null,null,null,null,null,null,null,null,null,null,null,null,null,null,null,null,null,null,null,null,null,"","","",null,null,null,null,"","","","",null,null,null,null,null,null,null,null,null,null,null,null,null,null,null,null,null,null,null,null,null,null,null,null,null,null,null,null,null,null,null,null,null,null,null,null,null,null,null,null,null,null,null,null,null,null,null,null,null,null,null,null,"",{"$f":"IF($A989=\"\",\"\",IF(VLOOKUP($G989,$H$11:$DO$1000,103,FALSE)=\"\",\"No\",IF(LEFT(VLOOKUP($G989,$H$11:$DO$1000,103,FALSE),3)=\"The\",EM989,VLOOKUP(VLOOKUP($G989,$H$11:$DO$1000,103,FALSE),DeclMatrix!$A$2:$F$5,VLOOKUP('Enrollment Form'!$B989,DeclMatrix!$A$8:$B$12,2,FALSE),FALSE))))","v":""},{"$f":"IF($A989=\"\",\"\",IF(VLOOKUP($G989,$H$11:$DO$1000,106,FALSE)=\"\",\"No\",IF(LEFT(VLOOKUP($G989,$H$11:$DO$1000,106,FALSE),3)=\"The\",EN989,VLOOKUP(VLOOKUP($G989,$H$11:$DO$1000,106,FALSE),DeclMatrix!$A$2:$F$5,VLOOKUP('Enrollment Form'!$B989,DeclMatrix!$A$8:$B$12,2,FALSE),FALSE))))","v":""},{"$f":"IF($A989=\"\",\"\",IF(VLOOKUP($G989,$H$11:$DO$1000,109,FALSE)=\"\",\"No\",IF(LEFT(VLOOKUP($G989,$H$11:$DO$1000,109,FALSE),3)=\"The\",EO989,VLOOKUP(VLOOKUP($G989,$H$11:$DO$1000,109,FALSE),DeclMatrix!$A$2:$F$5,VLOOKUP('Enrollment Form'!$B989,DeclMatrix!$A$8:$B$12,2,FALSE),FALSE))))","v":""},{"$f":"IF($A989=\"\",\"\",IF(VLOOKUP($G989,$H$11:$DO$1000,112,FALSE)=\"\",\"No\",IF(LEFT(VLOOKUP($G989,$H$11:$DO$1000,112,FALSE),3)=\"The\",EP989,VLOOKUP(VLOOKUP($G989,$H$11:$DO$1000,112,FALSE),DeclMatrix!$A$2:$F$5,VLOOKUP('Enrollment Form'!$B989,DeclMatrix!$A$8:$B$12,2,FALSE),FALSE))))","v":""},null,null,null,null,null,null,null,null,"",null,"","","","","","","","","","","",""]
["",null,null,null,null,null,"","",null,null,null,null,null,null,null,null,null,null,null,null,null,null,null,null,null,null,"","","","",null,null,"",null,null,null,null,null,null,null,null,null,null,null,null,null,null,null,null,null,null,null,null,null,null,null,null,null,null,null,"","","",null,null,null,null,"","","","",null,null,null,null,null,null,null,null,null,null,null,null,null,null,null,null,null,null,null,null,null,null,null,null,null,null,null,null,null,null,null,null,null,null,null,null,null,null,null,null,null,null,null,null,null,null,null,null,null,null,null,null,"",{"$f":"IF($A990=\"\",\"\",IF(VLOOKUP($G990,$H$11:$DO$1000,103,FALSE)=\"\",\"No\",IF(LEFT(VLOOKUP($G990,$H$11:$DO$1000,103,FALSE),3)=\"The\",EM990,VLOOKUP(VLOOKUP($G990,$H$11:$DO$1000,103,FALSE),DeclMatrix!$A$2:$F$5,VLOOKUP('Enrollment Form'!$B990,DeclMatrix!$A$8:$B$12,2,FALSE),FALSE))))","v":""},{"$f":"IF($A990=\"\",\"\",IF(VLOOKUP($G990,$H$11:$DO$1000,106,FALSE)=\"\",\"No\",IF(LEFT(VLOOKUP($G990,$H$11:$DO$1000,106,FALSE),3)=\"The\",EN990,VLOOKUP(VLOOKUP($G990,$H$11:$DO$1000,106,FALSE),DeclMatrix!$A$2:$F$5,VLOOKUP('Enrollment Form'!$B990,DeclMatrix!$A$8:$B$12,2,FALSE),FALSE))))","v":""},{"$f":"IF($A990=\"\",\"\",IF(VLOOKUP($G990,$H$11:$DO$1000,109,FALSE)=\"\",\"No\",IF(LEFT(VLOOKUP($G990,$H$11:$DO$1000,109,FALSE),3)=\"The\",EO990,VLOOKUP(VLOOKUP($G990,$H$11:$DO$1000,109,FALSE),DeclMatrix!$A$2:$F$5,VLOOKUP('Enrollment Form'!$B990,DeclMatrix!$A$8:$B$12,2,FALSE),FALSE))))","v":""},{"$f":"IF($A990=\"\",\"\",IF(VLOOKUP($G990,$H$11:$DO$1000,112,FALSE)=\"\",\"No\",IF(LEFT(VLOOKUP($G990,$H$11:$DO$1000,112,FALSE),3)=\"The\",EP990,VLOOKUP(VLOOKUP($G990,$H$11:$DO$1000,112,FALSE),DeclMatrix!$A$2:$F$5,VLOOKUP('Enrollment Form'!$B990,DeclMatrix!$A$8:$B$12,2,FALSE),FALSE))))","v":""},null,null,null,null,null,null,null,null,"",null,"","","","","","","","","","","",""]
["",null,null,null,null,null,"","",null,null,null,null,null,null,null,null,null,null,null,null,null,null,null,null,null,null,"","","","",null,null,"",null,null,null,null,null,null,null,null,null,null,null,null,null,null,null,null,null,null,null,null,null,null,null,null,null,null,null,"","","",null,null,null,null,"","","","",null,null,null,null,null,null,null,null,null,null,null,null,null,null,null,null,null,null,null,null,null,null,null,null,null,null,null,null,null,null,null,null,null,null,null,null,null,null,null,null,null,null,null,null,null,null,null,null,null,null,null,null,"",{"$f":"IF($A991=\"\",\"\",IF(VLOOKUP($G991,$H$11:$DO$1000,103,FALSE)=\"\",\"No\",IF(LEFT(VLOOKUP($G991,$H$11:$DO$1000,103,FALSE),3)=\"The\",EM991,VLOOKUP(VLOOKUP($G991,$H$11:$DO$1000,103,FALSE),DeclMatrix!$A$2:$F$5,VLOOKUP('Enrollment Form'!$B991,DeclMatrix!$A$8:$B$12,2,FALSE),FALSE))))","v":""},{"$f":"IF($A991=\"\",\"\",IF(VLOOKUP($G991,$H$11:$DO$1000,106,FALSE)=\"\",\"No\",IF(LEFT(VLOOKUP($G991,$H$11:$DO$1000,106,FALSE),3)=\"The\",EN991,VLOOKUP(VLOOKUP($G991,$H$11:$DO$1000,106,FALSE),DeclMatrix!$A$2:$F$5,VLOOKUP('Enrollment Form'!$B991,DeclMatrix!$A$8:$B$12,2,FALSE),FALSE))))","v":""},{"$f":"IF($A991=\"\",\"\",IF(VLOOKUP($G991,$H$11:$DO$1000,109,FALSE)=\"\",\"No\",IF(LEFT(VLOOKUP($G991,$H$11:$DO$1000,109,FALSE),3)=\"The\",EO991,VLOOKUP(VLOOKUP($G991,$H$11:$DO$1000,109,FALSE),DeclMatrix!$A$2:$F$5,VLOOKUP('Enrollment Form'!$B991,DeclMatrix!$A$8:$B$12,2,FALSE),FALSE))))","v":""},{"$f":"IF($A991=\"\",\"\",IF(VLOOKUP($G991,$H$11:$DO$1000,112,FALSE)=\"\",\"No\",IF(LEFT(VLOOKUP($G991,$H$11:$DO$1000,112,FALSE),3)=\"The\",EP991,VLOOKUP(VLOOKUP($G991,$H$11:$DO$1000,112,FALSE),DeclMatrix!$A$2:$F$5,VLOOKUP('Enrollment Form'!$B991,DeclMatrix!$A$8:$B$12,2,FALSE),FALSE))))","v":""},null,null,null,null,null,null,null,null,"",null,"","","","","","","","","","","",""]
["",null,null,null,null,null,"","",null,null,null,null,null,null,null,null,null,null,null,null,null,null,null,null,null,null,"","","","",null,null,"",null,null,null,null,null,null,null,null,null,null,null,null,null,null,null,null,null,null,null,null,null,null,null,null,null,null,null,"","","",null,null,null,null,"","","","",null,null,null,null,null,null,null,null,null,null,null,null,null,null,null,null,null,null,null,null,null,null,null,null,null,null,null,null,null,null,null,null,null,null,null,null,null,null,null,null,null,null,null,null,null,null,null,null,null,null,null,null,"",{"$f":"IF($A992=\"\",\"\",IF(VLOOKUP($G992,$H$11:$DO$1000,103,FALSE)=\"\",\"No\",IF(LEFT(VLOOKUP($G992,$H$11:$DO$1000,103,FALSE),3)=\"The\",EM992,VLOOKUP(VLOOKUP($G992,$H$11:$DO$1000,103,FALSE),DeclMatrix!$A$2:$F$5,VLOOKUP('Enrollment Form'!$B992,DeclMatrix!$A$8:$B$12,2,FALSE),FALSE))))","v":""},{"$f":"IF($A992=\"\",\"\",IF(VLOOKUP($G992,$H$11:$DO$1000,106,FALSE)=\"\",\"No\",IF(LEFT(VLOOKUP($G992,$H$11:$DO$1000,106,FALSE),3)=\"The\",EN992,VLOOKUP(VLOOKUP($G992,$H$11:$DO$1000,106,FALSE),DeclMatrix!$A$2:$F$5,VLOOKUP('Enrollment Form'!$B992,DeclMatrix!$A$8:$B$12,2,FALSE),FALSE))))","v":""},{"$f":"IF($A992=\"\",\"\",IF(VLOOKUP($G992,$H$11:$DO$1000,109,FALSE)=\"\",\"No\",IF(LEFT(VLOOKUP($G992,$H$11:$DO$1000,109,FALSE),3)=\"The\",EO992,VLOOKUP(VLOOKUP($G992,$H$11:$DO$1000,109,FALSE),DeclMatrix!$A$2:$F$5,VLOOKUP('Enrollment Form'!$B992,DeclMatrix!$A$8:$B$12,2,FALSE),FALSE))))","v":""},{"$f":"IF($A992=\"\",\"\",IF(VLOOKUP($G992,$H$11:$DO$1000,112,FALSE)=\"\",\"No\",IF(LEFT(VLOOKUP($G992,$H$11:$DO$1000,112,FALSE),3)=\"The\",EP992,VLOOKUP(VLOOKUP($G992,$H$11:$DO$1000,112,FALSE),DeclMatrix!$A$2:$F$5,VLOOKUP('Enrollment Form'!$B992,DeclMatrix!$A$8:$B$12,2,FALSE),FALSE))))","v":""},null,null,null,null,null,null,null,null,"",null,"","","","","","","","","","","",""]
["",null,null,null,null,null,"","",null,null,null,null,null,null,null,null,null,null,null,null,null,null,null,null,null,null,"","","","",null,null,"",null,null,null,null,null,null,null,null,null,null,null,null,null,null,null,null,null,null,null,null,null,null,null,null,null,null,null,"","","",null,null,null,null,"","","","",null,null,null,null,null,null,null,null,null,null,null,null,null,null,null,null,null,null,null,null,null,null,null,null,null,null,null,null,null,null,null,null,null,null,null,null,null,null,null,null,null,null,null,null,null,null,null,null,null,null,null,null,"",{"$f":"IF($A993=\"\",\"\",IF(VLOOKUP($G993,$H$11:$DO$1000,103,FALSE)=\"\",\"No\",IF(LEFT(VLOOKUP($G993,$H$11:$DO$1000,103,FALSE),3)=\"The\",EM993,VLOOKUP(VLOOKUP($G993,$H$11:$DO$1000,103,FALSE),DeclMatrix!$A$2:$F$5,VLOOKUP('Enrollment Form'!$B993,DeclMatrix!$A$8:$B$12,2,FALSE),FALSE))))","v":""},{"$f":"IF($A993=\"\",\"\",IF(VLOOKUP($G993,$H$11:$DO$1000,106,FALSE)=\"\",\"No\",IF(LEFT(VLOOKUP($G993,$H$11:$DO$1000,106,FALSE),3)=\"The\",EN993,VLOOKUP(VLOOKUP($G993,$H$11:$DO$1000,106,FALSE),DeclMatrix!$A$2:$F$5,VLOOKUP('Enrollment Form'!$B993,DeclMatrix!$A$8:$B$12,2,FALSE),FALSE))))","v":""},{"$f":"IF($A993=\"\",\"\",IF(VLOOKUP($G993,$H$11:$DO$1000,109,FALSE)=\"\",\"No\",IF(LEFT(VLOOKUP($G993,$H$11:$DO$1000,109,FALSE),3)=\"The\",EO993,VLOOKUP(VLOOKUP($G993,$H$11:$DO$1000,109,FALSE),DeclMatrix!$A$2:$F$5,VLOOKUP('Enrollment Form'!$B993,DeclMatrix!$A$8:$B$12,2,FALSE),FALSE))))","v":""},{"$f":"IF($A993=\"\",\"\",IF(VLOOKUP($G993,$H$11:$DO$1000,112,FALSE)=\"\",\"No\",IF(LEFT(VLOOKUP($G993,$H$11:$DO$1000,112,FALSE),3)=\"The\",EP993,VLOOKUP(VLOOKUP($G993,$H$11:$DO$1000,112,FALSE),DeclMatrix!$A$2:$F$5,VLOOKUP('Enrollment Form'!$B993,DeclMatrix!$A$8:$B$12,2,FALSE),FALSE))))","v":""},null,null,null,null,null,null,null,null,"",null,"","","","","","","","","","","",""]
["",null,null,null,null,null,"","",null,null,null,null,null,null,null,null,null,null,null,null,null,null,null,null,null,null,"","","","",null,null,"",null,null,null,null,null,null,null,null,null,null,null,null,null,null,null,null,null,null,null,null,null,null,null,null,null,null,null,"","","",null,null,null,null,"","","","",null,null,null,null,null,null,null,null,null,null,null,null,null,null,null,null,null,null,null,null,null,null,null,null,null,null,null,null,null,null,null,null,null,null,null,null,null,null,null,null,null,null,null,null,null,null,null,null,null,null,null,null,"",{"$f":"IF($A994=\"\",\"\",IF(VLOOKUP($G994,$H$11:$DO$1000,103,FALSE)=\"\",\"No\",IF(LEFT(VLOOKUP($G994,$H$11:$DO$1000,103,FALSE),3)=\"The\",EM994,VLOOKUP(VLOOKUP($G994,$H$11:$DO$1000,103,FALSE),DeclMatrix!$A$2:$F$5,VLOOKUP('Enrollment Form'!$B994,DeclMatrix!$A$8:$B$12,2,FALSE),FALSE))))","v":""},{"$f":"IF($A994=\"\",\"\",IF(VLOOKUP($G994,$H$11:$DO$1000,106,FALSE)=\"\",\"No\",IF(LEFT(VLOOKUP($G994,$H$11:$DO$1000,106,FALSE),3)=\"The\",EN994,VLOOKUP(VLOOKUP($G994,$H$11:$DO$1000,106,FALSE),DeclMatrix!$A$2:$F$5,VLOOKUP('Enrollment Form'!$B994,DeclMatrix!$A$8:$B$12,2,FALSE),FALSE))))","v":""},{"$f":"IF($A994=\"\",\"\",IF(VLOOKUP($G994,$H$11:$DO$1000,109,FALSE)=\"\",\"No\",IF(LEFT(VLOOKUP($G994,$H$11:$DO$1000,109,FALSE),3)=\"The\",EO994,VLOOKUP(VLOOKUP($G994,$H$11:$DO$1000,109,FALSE),DeclMatrix!$A$2:$F$5,VLOOKUP('Enrollment Form'!$B994,DeclMatrix!$A$8:$B$12,2,FALSE),FALSE))))","v":""},{"$f":"IF($A994=\"\",\"\",IF(VLOOKUP($G994,$H$11:$DO$1000,112,FALSE)=\"\",\"No\",IF(LEFT(VLOOKUP($G994,$H$11:$DO$1000,112,FALSE),3)=\"The\",EP994,VLOOKUP(VLOOKUP($G994,$H$11:$DO$1000,112,FALSE),DeclMatrix!$A$2:$F$5,VLOOKUP('Enrollment Form'!$B994,DeclMatrix!$A$8:$B$12,2,FALSE),FALSE))))","v":""},null,null,null,null,null,null,null,null,"",null,"","","","","","","","","","","",""]
["",null,null,null,null,null,"","",null,null,null,null,null,null,null,null,null,null,null,null,null,null,null,null,null,null,"","","","",null,null,"",null,null,null,null,null,null,null,null,null,null,null,null,null,null,null,null,null,null,null,null,null,null,null,null,null,null,null,"","","",null,null,null,null,"","","","",null,null,null,null,null,null,null,null,null,null,null,null,null,null,null,null,null,null,null,null,null,null,null,null,null,null,null,null,null,null,null,null,null,null,null,null,null,null,null,null,null,null,null,null,null,null,null,null,null,null,null,null,"",{"$f":"IF($A995=\"\",\"\",IF(VLOOKUP($G995,$H$11:$DO$1000,103,FALSE)=\"\",\"No\",IF(LEFT(VLOOKUP($G995,$H$11:$DO$1000,103,FALSE),3)=\"The\",EM995,VLOOKUP(VLOOKUP($G995,$H$11:$DO$1000,103,FALSE),DeclMatrix!$A$2:$F$5,VLOOKUP('Enrollment Form'!$B995,DeclMatrix!$A$8:$B$12,2,FALSE),FALSE))))","v":""},{"$f":"IF($A995=\"\",\"\",IF(VLOOKUP($G995,$H$11:$DO$1000,106,FALSE)=\"\",\"No\",IF(LEFT(VLOOKUP($G995,$H$11:$DO$1000,106,FALSE),3)=\"The\",EN995,VLOOKUP(VLOOKUP($G995,$H$11:$DO$1000,106,FALSE),DeclMatrix!$A$2:$F$5,VLOOKUP('Enrollment Form'!$B995,DeclMatrix!$A$8:$B$12,2,FALSE),FALSE))))","v":""},{"$f":"IF($A995=\"\",\"\",IF(VLOOKUP($G995,$H$11:$DO$1000,109,FALSE)=\"\",\"No\",IF(LEFT(VLOOKUP($G995,$H$11:$DO$1000,109,FALSE),3)=\"The\",EO995,VLOOKUP(VLOOKUP($G995,$H$11:$DO$1000,109,FALSE),DeclMatrix!$A$2:$F$5,VLOOKUP('Enrollment Form'!$B995,DeclMatrix!$A$8:$B$12,2,FALSE),FALSE))))","v":""},{"$f":"IF($A995=\"\",\"\",IF(VLOOKUP($G995,$H$11:$DO$1000,112,FALSE)=\"\",\"No\",IF(LEFT(VLOOKUP($G995,$H$11:$DO$1000,112,FALSE),3)=\"The\",EP995,VLOOKUP(VLOOKUP($G995,$H$11:$DO$1000,112,FALSE),DeclMatrix!$A$2:$F$5,VLOOKUP('Enrollment Form'!$B995,DeclMatrix!$A$8:$B$12,2,FALSE),FALSE))))","v":""},null,null,null,null,null,null,null,null,"",null,"","","","","","","","","","","",""]
["",null,null,null,null,null,"","",null,null,null,null,null,null,null,null,null,null,null,null,null,null,null,null,null,null,"","","","",null,null,"",null,null,null,null,null,null,null,null,null,null,null,null,null,null,null,null,null,null,null,null,null,null,null,null,null,null,null,"","","",null,null,null,null,"","","","",null,null,null,null,null,null,null,null,null,null,null,null,null,null,null,null,null,null,null,null,null,null,null,null,null,null,null,null,null,null,null,null,null,null,null,null,null,null,null,null,null,null,null,null,null,null,null,null,null,null,null,null,"",{"$f":"IF($A996=\"\",\"\",IF(VLOOKUP($G996,$H$11:$DO$1000,103,FALSE)=\"\",\"No\",IF(LEFT(VLOOKUP($G996,$H$11:$DO$1000,103,FALSE),3)=\"The\",EM996,VLOOKUP(VLOOKUP($G996,$H$11:$DO$1000,103,FALSE),DeclMatrix!$A$2:$F$5,VLOOKUP('Enrollment Form'!$B996,DeclMatrix!$A$8:$B$12,2,FALSE),FALSE))))","v":""},{"$f":"IF($A996=\"\",\"\",IF(VLOOKUP($G996,$H$11:$DO$1000,106,FALSE)=\"\",\"No\",IF(LEFT(VLOOKUP($G996,$H$11:$DO$1000,106,FALSE),3)=\"The\",EN996,VLOOKUP(VLOOKUP($G996,$H$11:$DO$1000,106,FALSE),DeclMatrix!$A$2:$F$5,VLOOKUP('Enrollment Form'!$B996,DeclMatrix!$A$8:$B$12,2,FALSE),FALSE))))","v":""},{"$f":"IF($A996=\"\",\"\",IF(VLOOKUP($G996,$H$11:$DO$1000,109,FALSE)=\"\",\"No\",IF(LEFT(VLOOKUP($G996,$H$11:$DO$1000,109,FALSE),3)=\"The\",EO996,VLOOKUP(VLOOKUP($G996,$H$11:$DO$1000,109,FALSE),DeclMatrix!$A$2:$F$5,VLOOKUP('Enrollment Form'!$B996,DeclMatrix!$A$8:$B$12,2,FALSE),FALSE))))","v":""},{"$f":"IF($A996=\"\",\"\",IF(VLOOKUP($G996,$H$11:$DO$1000,112,FALSE)=\"\",\"No\",IF(LEFT(VLOOKUP($G996,$H$11:$DO$1000,112,FALSE),3)=\"The\",EP996,VLOOKUP(VLOOKUP($G996,$H$11:$DO$1000,112,FALSE),DeclMatrix!$A$2:$F$5,VLOOKUP('Enrollment Form'!$B996,DeclMatrix!$A$8:$B$12,2,FALSE),FALSE))))","v":""},null,null,null,null,null,null,null,null,"",null,"","","","","","","","","","","",""]
["",null,null,null,null,null,"","",null,null,null,null,null,null,null,null,null,null,null,null,null,null,null,null,null,null,"","","","",null,null,"",null,null,null,null,null,null,null,null,null,null,null,null,null,null,null,null,null,null,null,null,null,null,null,null,null,null,null,"","","",null,null,null,null,"","","","",null,null,null,null,null,null,null,null,null,null,null,null,null,null,null,null,null,null,null,null,null,null,null,null,null,null,null,null,null,null,null,null,null,null,null,null,null,null,null,null,null,null,null,null,null,null,null,null,null,null,null,null,"",{"$f":"IF($A997=\"\",\"\",IF(VLOOKUP($G997,$H$11:$DO$1000,103,FALSE)=\"\",\"No\",IF(LEFT(VLOOKUP($G997,$H$11:$DO$1000,103,FALSE),3)=\"The\",EM997,VLOOKUP(VLOOKUP($G997,$H$11:$DO$1000,103,FALSE),DeclMatrix!$A$2:$F$5,VLOOKUP('Enrollment Form'!$B997,DeclMatrix!$A$8:$B$12,2,FALSE),FALSE))))","v":""},{"$f":"IF($A997=\"\",\"\",IF(VLOOKUP($G997,$H$11:$DO$1000,106,FALSE)=\"\",\"No\",IF(LEFT(VLOOKUP($G997,$H$11:$DO$1000,106,FALSE),3)=\"The\",EN997,VLOOKUP(VLOOKUP($G997,$H$11:$DO$1000,106,FALSE),DeclMatrix!$A$2:$F$5,VLOOKUP('Enrollment Form'!$B997,DeclMatrix!$A$8:$B$12,2,FALSE),FALSE))))","v":""},{"$f":"IF($A997=\"\",\"\",IF(VLOOKUP($G997,$H$11:$DO$1000,109,FALSE)=\"\",\"No\",IF(LEFT(VLOOKUP($G997,$H$11:$DO$1000,109,FALSE),3)=\"The\",EO997,VLOOKUP(VLOOKUP($G997,$H$11:$DO$1000,109,FALSE),DeclMatrix!$A$2:$F$5,VLOOKUP('Enrollment Form'!$B997,DeclMatrix!$A$8:$B$12,2,FALSE),FALSE))))","v":""},{"$f":"IF($A997=\"\",\"\",IF(VLOOKUP($G997,$H$11:$DO$1000,112,FALSE)=\"\",\"No\",IF(LEFT(VLOOKUP($G997,$H$11:$DO$1000,112,FALSE),3)=\"The\",EP997,VLOOKUP(VLOOKUP($G997,$H$11:$DO$1000,112,FALSE),DeclMatrix!$A$2:$F$5,VLOOKUP('Enrollment Form'!$B997,DeclMatrix!$A$8:$B$12,2,FALSE),FALSE))))","v":""},null,null,null,null,null,null,null,null,"",null,"","","","","","","","","","","",""]
["",null,null,null,null,null,"","",null,null,null,null,null,null,null,null,null,null,null,null,null,null,null,null,null,null,"","","","",null,null,"",null,null,null,null,null,null,null,null,null,null,null,null,null,null,null,null,null,null,null,null,null,null,null,null,null,null,null,"","","",null,null,null,null,"","","","",null,null,null,null,null,null,null,null,null,null,null,null,null,null,null,null,null,null,null,null,null,null,null,null,null,null,null,null,null,null,null,null,null,null,null,null,null,null,null,null,null,null,null,null,null,null,null,null,null,null,null,null,"",{"$f":"IF($A998=\"\",\"\",IF(VLOOKUP($G998,$H$11:$DO$1000,103,FALSE)=\"\",\"No\",IF(LEFT(VLOOKUP($G998,$H$11:$DO$1000,103,FALSE),3)=\"The\",EM998,VLOOKUP(VLOOKUP($G998,$H$11:$DO$1000,103,FALSE),DeclMatrix!$A$2:$F$5,VLOOKUP('Enrollment Form'!$B998,DeclMatrix!$A$8:$B$12,2,FALSE),FALSE))))","v":""},{"$f":"IF($A998=\"\",\"\",IF(VLOOKUP($G998,$H$11:$DO$1000,106,FALSE)=\"\",\"No\",IF(LEFT(VLOOKUP($G998,$H$11:$DO$1000,106,FALSE),3)=\"The\",EN998,VLOOKUP(VLOOKUP($G998,$H$11:$DO$1000,106,FALSE),DeclMatrix!$A$2:$F$5,VLOOKUP('Enrollment Form'!$B998,DeclMatrix!$A$8:$B$12,2,FALSE),FALSE))))","v":""},{"$f":"IF($A998=\"\",\"\",IF(VLOOKUP($G998,$H$11:$DO$1000,109,FALSE)=\"\",\"No\",IF(LEFT(VLOOKUP($G998,$H$11:$DO$1000,109,FALSE),3)=\"The\",EO998,VLOOKUP(VLOOKUP($G998,$H$11:$DO$1000,109,FALSE),DeclMatrix!$A$2:$F$5,VLOOKUP('Enrollment Form'!$B998,DeclMatrix!$A$8:$B$12,2,FALSE),FALSE))))","v":""},{"$f":"IF($A998=\"\",\"\",IF(VLOOKUP($G998,$H$11:$DO$1000,112,FALSE)=\"\",\"No\",IF(LEFT(VLOOKUP($G998,$H$11:$DO$1000,112,FALSE),3)=\"The\",EP998,VLOOKUP(VLOOKUP($G998,$H$11:$DO$1000,112,FALSE),DeclMatrix!$A$2:$F$5,VLOOKUP('Enrollment Form'!$B998,DeclMatrix!$A$8:$B$12,2,FALSE),FALSE))))","v":""},null,null,null,null,null,null,null,null,"",null,"","","","","","","","","","","",""]
["",null,null,null,null,null,"","",null,null,null,null,null,null,null,null,null,null,null,null,null,null,null,null,null,null,"","","","",null,null,"",null,null,null,null,null,null,null,null,null,null,null,null,null,null,null,null,null,null,null,null,null,null,null,null,null,null,null,"","","",null,null,null,null,"","","","",null,null,null,null,null,null,null,null,null,null,null,null,null,null,null,null,null,null,null,null,null,null,null,null,null,null,null,null,null,null,null,null,null,null,null,null,null,null,null,null,null,null,null,null,null,null,null,null,null,null,null,null,"",{"$f":"IF($A999=\"\",\"\",IF(VLOOKUP($G999,$H$11:$DO$1000,103,FALSE)=\"\",\"No\",IF(LEFT(VLOOKUP($G999,$H$11:$DO$1000,103,FALSE),3)=\"The\",EM999,VLOOKUP(VLOOKUP($G999,$H$11:$DO$1000,103,FALSE),DeclMatrix!$A$2:$F$5,VLOOKUP('Enrollment Form'!$B999,DeclMatrix!$A$8:$B$12,2,FALSE),FALSE))))","v":""},{"$f":"IF($A999=\"\",\"\",IF(VLOOKUP($G999,$H$11:$DO$1000,106,FALSE)=\"\",\"No\",IF(LEFT(VLOOKUP($G999,$H$11:$DO$1000,106,FALSE),3)=\"The\",EN999,VLOOKUP(VLOOKUP($G999,$H$11:$DO$1000,106,FALSE),DeclMatrix!$A$2:$F$5,VLOOKUP('Enrollment Form'!$B999,DeclMatrix!$A$8:$B$12,2,FALSE),FALSE))))","v":""},{"$f":"IF($A999=\"\",\"\",IF(VLOOKUP($G999,$H$11:$DO$1000,109,FALSE)=\"\",\"No\",IF(LEFT(VLOOKUP($G999,$H$11:$DO$1000,109,FALSE),3)=\"The\",EO999,VLOOKUP(VLOOKUP($G999,$H$11:$DO$1000,109,FALSE),DeclMatrix!$A$2:$F$5,VLOOKUP('Enrollment Form'!$B999,DeclMatrix!$A$8:$B$12,2,FALSE),FALSE))))","v":""},{"$f":"IF($A999=\"\",\"\",IF(VLOOKUP($G999,$H$11:$DO$1000,112,FALSE)=\"\",\"No\",IF(LEFT(VLOOKUP($G999,$H$11:$DO$1000,112,FALSE),3)=\"The\",EP999,VLOOKUP(VLOOKUP($G999,$H$11:$DO$1000,112,FALSE),DeclMatrix!$A$2:$F$5,VLOOKUP('Enrollment Form'!$B999,DeclMatrix!$A$8:$B$12,2,FALSE),FALSE))))","v":""},null,null,null,null,null,null,null,null,"",null,"","","","","","","","","","","",""]
["",null,null,null,null,null,"","",null,null,null,null,null,null,null,null,null,null,null,null,null,null,null,null,null,null,"","","","",null,null,"",null,null,null,null,null,null,null,null,null,null,null,null,null,null,null,null,null,null,null,null,null,null,null,null,null,null,null,"","","",null,null,null,null,"","","","",null,null,null,null,null,null,null,null,null,null,null,null,null,null,null,null,null,null,null,null,null,null,null,null,null,null,null,null,null,null,null,null,null,null,null,null,null,null,null,null,null,null,null,null,null,null,null,null,null,null,null,null,"",{"$f":"IF($A1000=\"\",\"\",IF(VLOOKUP($G1000,$H$11:$DO$1000,103,FALSE)=\"\",\"No\",IF(LEFT(VLOOKUP($G1000,$H$11:$DO$1000,103,FALSE),3)=\"The\",EM1000,VLOOKUP(VLOOKUP($G1000,$H$11:$DO$1000,103,FALSE),DeclMatrix!$A$2:$F$5,VLOOKUP('Enrollment Form'!$B1000,DeclMatrix!$A$8:$B$12,2,FALSE),FALSE))))","v":""},{"$f":"IF($A1000=\"\",\"\",IF(VLOOKUP($G1000,$H$11:$DO$1000,106,FALSE)=\"\",\"No\",IF(LEFT(VLOOKUP($G1000,$H$11:$DO$1000,106,FALSE),3)=\"The\",EN1000,VLOOKUP(VLOOKUP($G1000,$H$11:$DO$1000,106,FALSE),DeclMatrix!$A$2:$F$5,VLOOKUP('Enrollment Form'!$B1000,DeclMatrix!$A$8:$B$12,2,FALSE),FALSE))))","v":""},{"$f":"IF($A1000=\"\",\"\",IF(VLOOKUP($G1000,$H$11:$DO$1000,109,FALSE)=\"\",\"No\",IF(LEFT(VLOOKUP($G1000,$H$11:$DO$1000,109,FALSE),3)=\"The\",EO1000,VLOOKUP(VLOOKUP($G1000,$H$11:$DO$1000,109,FALSE),DeclMatrix!$A$2:$F$5,VLOOKUP('Enrollment Form'!$B1000,DeclMatrix!$A$8:$B$12,2,FALSE),FALSE))))","v":""},{"$f":"IF($A1000=\"\",\"\",IF(VLOOKUP($G1000,$H$11:$DO$1000,112,FALSE)=\"\",\"No\",IF(LEFT(VLOOKUP($G1000,$H$11:$DO$1000,112,FALSE),3)=\"The\",EP1000,VLOOKUP(VLOOKUP($G1000,$H$11:$DO$1000,112,FALSE),DeclMatrix!$A$2:$F$5,VLOOKUP('Enrollment Form'!$B1000,DeclMatrix!$A$8:$B$12,2,FALSE),FALSE))))","v":""},null,null,null,null,null,null,null,null,"",null,"","","","","","","","","","","",""]

{"sheet":"Validation","index":15,"n_rows":1001,"n_cols":51,"rows_kept":1001,"cut":false,"hidden":false,"merged":[[0,1,0,39]]}
[null,"Condition"]
[null,"01","02","03","04","05","06","07","08","09","10","11","12","13","14","15","16","17","18","19","20","21","22","23","24","25","26","27","28","29","30","31","32","33","34","35","36","37","38","39",null,null,null," = Error that needs to be corrected"]
["Row #","Valid record?","Applicant Type is populated?","If Sub, SSN match Appl SSN?","Non-Dupe Applicant SSN/Type?","Sub ZIP Code 5 digits?","Mail ZIP Code 5 digits?","Depend ZIP Code 5 digits?","Sub Work Phone 10 digits?","Sub Home Phone 10 digits?","Job Class filled if \"Graded\" LI?","Sub DOB filled?","Sub Gender filled?","Sub Marital Status filled?","Sub Date of Hire filled?","Sub Job Title filled?","Sub Dependents <26 filled?","Sub # Dependents <26 filled?","Sub Signature filled?","Sub Signature Date filled?","HMO provider info complete?","Dep DOB and Gender filled?","Enrolling in COBRA filled?","COBRA qual Reason & Date filled?","Reason Decl \"Other\" filled?","Existing COBRA filled?","Life Mult of Sal Earnings filled?","Life amount filled?","Sub ROC Signature filled?","Sub ROC Signature Date filled?","Correct email format?","Sub works full-time OR part-time?","Medicare Part A Date Filled?","Medicare Part B Date Filled?","Medicare dialysis date filled?","Medicare type of dialysis filled?","Sub Mailing Address filled?","Dependent Address filled?","SSN populated for Subscriber?","Sub & Dependent SSNs different?","Total Errors",null,"Records with errors",{"$f":"COUNTIF(AO:AO,\">0\")","v":0},"Total Errors",{"$f":"SUM(AO:AO)","v":0},null,"Validation\nRule","Validation\nDescription","Validation\nDetail","Reference Column(s) on Enrollment Form Tab"]
[11,{"$f":"IF('Enrollment Form'!$A11<>\"\",\"Y\",\"N\")","v":"N"},{"$f":"IF(AND('Enrollment Form'!$B11=\"\",'Enrollment Form'!$C11<>\"\"),\"N\",IF($B4=\"N\",\"\",\"Y\"))","v":""},{"$f":"IF(OR($B4=\"N\",'Enrollment Form'!G11=\"\"),\"\",IF('Enrollment Form'!$B11<>\"Subscriber\",\"\",IF('Enrollment Form'!$G11='Enrollment Form'!$H11,\"Y\",\"N\")))","v":""},{"$f":"IF($B4=\"N\",\"\",IF(AND(COUNTIFS('Enrollment Form'!$H$11:$H$1000,'Enrollment Form'!$H11,'Enrollment Form'!$B$11:$B$1000,'Enrollment Form'!$B11)>1,'Enrollment Form'!$H11<>\"\"),\"N\",\"Y\"))","v":""},{"$f":"IF($B4=\"N\",\"\",IF(LEN('Enrollment Form'!$Y11)=0,\"\",IF(LEN('Enrollment Form'!$Y11)<>5,\"N\",\"Y\")))","v":""},{"$f":"IF($B4=\"N\",\"\",IF(LEN('Enrollment Form'!$AD11=0),\"\",IF(LEN('Enrollment Form'!$AD11)<>5,\"N\",\"Y\")))","v":""},{"$f":"IF($B4=\"N\",\"\",IF(LEN('Enrollment Form'!$BS11=0),\"\",IF(LEN('Enrollment Form'!$BS11)<>5,\"N\",\"Y\")))","v":""},{"$f":"IF($B4=\"N\",\"\",IF(LEN('Enrollment Form'!$AE11)=0,\"\",IF(LEN('Enrollment Form'!$AE11)<>10,\"N\",\"Y\")))","v":""},{"$f":"IF($B4=\"N\",\"\",IF(LEN('Enrollment Form'!$AF11)=0,\"\",IF(LEN('Enrollment Form'!$AF11)<>10,\"N\",\"Y\")))","v":""},{"$f":"IF('Enrollment Form'!$O11<>\"Graded\",\"-\",IF(AND('Enrollment Form'!$O11=\"Graded\",'Enrollment Form'!$AR11<>\"\"),\"Y\",\"N\"))","v":"-"},{"$f":"IF($B4=\"N\",\"\",IF(OR('Enrollment Form'!$B11<>\"Subscriber\",'Enrollment Form'!$C11=\"ROC\"),\"-\",IF(AND('Enrollment Form'!$B11=\"Subscriber\",'Enrollment Form'!$C11=\"Enroll\",'Enrollment Form'!$AJ11<>\"\"),\"Y\",\"N\")))","v":""},{"$f":"IF($B4=\"N\",\"\",IF(OR('Enrollment Form'!$B11<>\"Subscriber\",'Enrollment Form'!$C11=\"ROC\"),\"-\",IF(AND('Enrollment Form'!$B11=\"Subscriber\",'Enrollment Form'!$C11=\"Enroll\",'Enrollment Form'!$AK11<>\"\"),\"Y\",\"N\")))","v":""},{"$f":"IF($B4=\"N\",\"\",IF(OR('Enrollment Form'!$B11<>\"Subscriber\",'Enrollment Form'!$C11=\"ROC\"),\"-\",IF(AND('Enrollment Form'!$B11=\"Subscriber\",'Enrollment Form'!$C11=\"Enroll\",'Enrollment Form'!$AL11<>\"\"),\"Y\",\"N\")))","v":""},{"$f":"IF($B4=\"N\",\"\",IF(OR('Enrollment Form'!$B11<>\"Subscriber\",'Enrollment Form'!$C11=\"ROC\"),\"-\",IF(AND('Enrollment Form'!$B11=\"Subscriber\",'Enrollment Form'!$C11=\"Enroll\",'Enrollment Form'!$AP11<>\"\"),\"Y\",\"N\")))","v":""},{"$f":"IF($B4=\"N\",\"\",IF(OR('Enrollment Form'!$B11<>\"Subscriber\",'Enrollment Form'!$C11=\"ROC\"),\"-\",IF(AND('Enrollment Form'!$B11=\"Subscriber\",'Enrollment Form'!$C11=\"Enroll\",'Enrollment Form'!$AQ11<>\"\"),\"Y\",\"N\")))","v":""},{"$f":"IF($B4=\"N\",\"\",IF(OR('Enrollment Form'!$B11<>\"Subscriber\",'Enrollment Form'!$C11=\"ROC\"),\"-\",IF(AND('Enrollment Form'!$B11=\"Subscriber\",'Enrollment Form'!$C11=\"Enroll\",'Enrollment Form'!$AS11<>\"\"),\"Y\",\"N\")))","v":""},{"$f":"IF($B4=\"N\",\"\",IF($Q4=\"-\",\"-\",IF(AND($Q4=\"Y\",'Enrollment Form'!$AS11=\"No\"),\"-\",IF(AND($Q4=\"Y\",'Enrollment Form'!$AS11=\"Yes\",'Enrollment Form'!$AT11<>\"\"),\"Y\",\"N\"))))","v":""},{"$f":"IF($B4=\"N\",\"\",IF(OR('Enrollment Form'!$B11<>\"Subscriber\",'Enrollment Form'!$C11=\"ROC\"),\"-\",IF(AND('Enrollment Form'!$B11=\"Subscriber\",'Enrollment Form'!$C11=\"Enroll\",'Enrollment Form'!$CV11<>\"\"),\"Y\",\"N\")))","v":""},{"$f":"IF($B4=\"N\",\"\",IF($S4=\"-\",\"-\",IF(AND($S4=\"Y\",'Enrollment Form'!$CV11=\"No\"),\"-\",IF(AND($S4=\"Y\",'Enrollment Form'!$CV11=\"Yes\",'Enrollment Form'!$CW11<>\"\"),\"Y\",\"N\"))))","v":""},{"$f":"IF(OR('Enrollment Form'!$AY11=\"Yes\",'Enrollment Form'!$AY11=\"\"),\"-\",IF(OR(AND('Enrollment Form'!$AY11=\"No\",ISERROR(FIND(\"HMO\",VLOOKUP('Enrollment Form'!G11,'Enrollment Form'!H$11:J$1000,3,FALSE),1))=FALSE,COUNTA('Enrollment Form'!$AZ11:$BC11)=4),AND('Enrollment Form'!$AY11=\"No\",ISERROR(FIND(\"HMO\",VLOOKUP('Enrollment Form'!G11,'Enrollment Form'!H$11:J$1000,3,FALSE),1))=FALSE,COUNTA('Enrollment Form'!$BT11:$BW11)=4)),\"Y\",\"N\"))","v":"-"},{"$f":"IF($B4=\"N\",\"\",IF('Enrollment Form'!$B11=\"Subscriber\",\"-\",IF(COUNTA('Enrollment Form'!$BL11,'Enrollment Form'!$BN11)=2,\"Y\",\"N\")))","v":""},{"$f":"IF($B4=\"N\",\"\",IF(OR('Enrollment Form'!$AX11=\"\",'Enrollment Form'!$AX11=\"No\"),\"-\",IF(AND('Enrollment Form'!$AX11=\"Yes\",COUNTA('Enrollment Form'!$CR11)=1),\"Y\",\"N\")))","v":""},{"$f":"IF(OR('Enrollment Form'!$CR11=\"\",'Enrollment Form'!$CR11=\"No\"),\"-\",IF(COUNTA('Enrollment Form'!$CT11:$CU11)=2,\"Y\",\"N\"))","v":"-"},{"$f":"IF($B4=\"N\",\"\",IF(COUNTIF('Enrollment Form'!$DG11:$DP11,\"Other\")=COUNTA('Enrollment Form'!$DK11,'Enrollment Form'!$DH11,'Enrollment Form'!$DN11,'Enrollment Form'!$DQ11),\"Y\",\"N\"))","v":""},{"$f":"IF($B4=\"N\",\"\",IF(OR('Enrollment Form'!B11<>\"Subscriber\",'Enrollment Form'!C11=\"ROC\",COUNTIF('Enrollment Form'!AV11:AW11,\"Yes\")>=1),\"-\",IF(AND('Enrollment Form'!C11=\"Enroll\",COUNTIF('Enrollment Form'!AV11:AW11,\"No\")=2,'Enrollment Form'!AX11=\"\"),\"N\",\"Y\")))","v":""},{"$f":"IF(OR(B4=\"N\",'Enrollment Form'!B11<>\"Subscriber\",'Enrollment Form'!C11=\"ROC\",'Enrollment Form'!O11<>\"Multiple of Salary\"),\"-\",IF(COUNTA('Enrollment Form'!T11:U11)<2,\"N\",\"Y\"))","v":"-"},{"$f":"IF(B4=\"N\",\"\",IF(OR('Enrollment Form'!C11=\"ROC\",'Enrollment Form'!B11<>\"Subscriber\",'Enrollment Form'!O11=\"Waive\",'Enrollment Form'!O11=\"\"),\"-\",IF('Enrollment Form'!P11=\"\",\"N\",\"Y\")))","v":""},{"$f":"IF($B4=\"N\",\"\",IF(AND('Enrollment Form'!$C11=\"ROC\",'Enrollment Form'!$DR11<>\"\"),\"Y\",IF(AND('Enrollment Form'!$C11=\"ROC\",'Enrollment Form'!$DR11=\"\"),\"N\",IF(AND('Enrollment Form'!$C11=\"Enroll\",'Enrollment Form'!$B11=\"Subscriber\",'Enrollment Form'!$CX11=\"No\",'Enrollment Form'!$DR11=\"\"),\"N\",IF(AND('Enrollment Form'!$C11=\"Enroll\",'Enrollment Form'!$B11=\"Subscriber\",'Enrollment Form'!$CX11=\"Yes\"),\"-\",\"Y\")))))","v":""},{"$f":"IF($B4=\"N\",\"\",IF(AND('Enrollment Form'!$C11=\"ROC\",'Enrollment Form'!$DS11<>\"\"),\"Y\",IF(AND('Enrollment Form'!$C11=\"ROC\",'Enrollment Form'!$DS11=\"\"),\"N\",IF(AND('Enrollment Form'!$C11=\"Enroll\",'Enrollment Form'!$B11=\"Subscriber\",'Enrollment Form'!$CX11=\"No\",'Enrollment Form'!$DS11=\"\"),\"N\",IF(AND('Enrollment Form'!$C11=\"Enroll\",'Enrollment Form'!$B11=\"Subscriber\",'Enrollment Form'!$CX11=\"Yes\"),\"-\",\"Y\")))))","v":""},{"$f":"IF('Enrollment Form'!AH11=\"\",\"\",IF(ISERROR(SEARCH(\".\",'Enrollment Form'!AH11,SEARCH(\"@\",'Enrollment Form'!AH11))),\"N\",\"Y\"))","v":""},{"$f":"IF(OR($B4=\"N\",'Enrollment Form'!$G11=\"\"),\"\",IF('Enrollment Form'!$B11<>\"Subscriber\",\"-\",IF(COUNTIF('Enrollment Form'!$AV11:$AW11,\"Yes\")=2,\"N\",\"Y\")))","v":""},{"$f":"IF(OR('Enrollment Form'!$CJ11=\"\",'Enrollment Form'!$CJ11=\"No\"),\"-\",IF(AND('Enrollment Form'!$CJ11=\"Yes\",'Enrollment Form'!$CK11=\"\"),\"N\",\"Y\"))","v":"-"},{"$f":"IF(OR('Enrollment Form'!$CL11=\"\",'Enrollment Form'!$CL11=\"No\"),\"-\",IF(AND('Enrollment Form'!$CL11=\"Yes\",'Enrollment Form'!$CM11=\"\"),\"N\",\"Y\"))","v":"-"},{"$f":"IF(OR('Enrollment Form'!$CN11=\"\",'Enrollment Form'!$CN11=\"No\"),\"-\",IF(AND('Enrollment Form'!$CN11=\"Yes\",'Enrollment Form'!$CO11=\"\"),\"N\",\"Y\"))","v":"-"},{"$f":"IF(OR('Enrollment Form'!$CN11=\"\",'Enrollment Form'!$CN11=\"No\"),\"-\",IF(AND('Enrollment Form'!$CN11=\"Yes\",'Enrollment Form'!$CP11=\"\"),\"N\",\"Y\"))","v":"-"},{"$f":"IF('Enrollment Form'!B11<>\"Subscriber\",\"-\",IF(AND('Enrollment Form'!B11=\"Subscriber\",'Enrollment Form'!C11=\"Enroll\",'Enrollment Form'!AA11=\"\"),\"N\",\"Y\"))","v":"-"},{"$f":"IF(OR('Enrollment Form'!B11=\"Subscriber\",'Enrollment Form'!B11=\"\"),\"-\",IF('Enrollment Form'!BP11=\"\",\"N\",\"Y\"))","v":"-"},{"$f":"IF('Enrollment Form'!B11<>\"Subscriber\",\"-\",IF(AND('Enrollment Form'!B11=\"Subscriber\",'Enrollment Form'!G11=\"\"),\"N\",\"Y\"))","v":"-"},{"$f":"IF('Enrollment Form'!A11=\"\",\"\",IF('Enrollment Form'!B11=\"Subscriber\",\"-\",IF(AND('Enrollment Form'!B11<>\"Subscriber\",'Enrollment Form'!G11='Enrollment Form'!H11),\"N\",\"Y\")))","v":""},{"$f":"COUNTIF(C4:AN4,\"N\")","v":0},null,null,null,null,null,null,"01","Valid Record?","First column in row must be populated for it to be a valid record","A"]
[{"$f":"1+A4","v":12},{"$f":"IF('Enrollment Form'!$A12<>\"\",\"Y\",\"N\")","v":"N"},{"$f":"IF(AND('Enrollment Form'!$B12=\"\",'Enrollment Form'!$C12<>\"\"),\"N\",IF($B5=\"N\",\"\",\"Y\"))","v":""},{"$f":"IF(OR($B5=\"N\",'Enrollment Form'!G12=\"\"),\"\",IF('Enrollment Form'!$B12<>\"Subscriber\",\"\",IF('Enrollment Form'!$G12='Enrollment Form'!$H12,\"Y\",\"N\")))","v":""},{"$f":"IF($B5=\"N\",\"\",IF(AND(COUNTIFS('Enrollment Form'!$H$11:$H$1000,'Enrollment Form'!$H12,'Enrollment Form'!$B$11:$B$1000,'Enrollment Form'!$B12)>1,'Enrollment Form'!$H12<>\"\"),\"N\",\"Y\"))","v":""},{"$f":"IF($B5=\"N\",\"\",IF(LEN('Enrollment Form'!$Y12)=0,\"\",IF(LEN('Enrollment Form'!$Y12)<>5,\"N\",\"Y\")))","v":""},{"$f":"IF($B5=\"N\",\"\",IF(LEN('Enrollment Form'!$AD12=0),\"\",IF(LEN('Enrollment Form'!$AD12)<>5,\"N\",\"Y\")))","v":""},{"$f":"IF($B5=\"N\",\"\",IF(LEN('Enrollment Form'!$BS12=0),\"\",IF(LEN('Enrollment Form'!$BS12)<>5,\"N\",\"Y\")))","v":""},{"$f":"IF($B5=\"N\",\"\",IF(LEN('Enrollment Form'!$AE12)=0,\"\",IF(LEN('Enrollment Form'!$AE12)<>10,\"N\",\"Y\")))","v":""},{"$f":"IF($B5=\"N\",\"\",IF(LEN('Enrollment Form'!$AF12)=0,\"\",IF(LEN('Enrollment Form'!$AF12)<>10,\"N\",\"Y\")))","v":""},{"$f":"IF('Enrollment Form'!$O12<>\"Graded\",\"-\",IF(AND('Enrollment Form'!$O12=\"Graded\",'Enrollment Form'!$AR12<>\"\"),\"Y\",\"N\"))","v":"-"},{"$f":"IF($B5=\"N\",\"\",IF(OR('Enrollment Form'!$B12<>\"Subscriber\",'Enrollment Form'!$C12=\"ROC\"),\"-\",IF(AND('Enrollment Form'!$B12=\"Subscriber\",'Enrollment Form'!$C12=\"Enroll\",'Enrollment Form'!$AJ12<>\"\"),\"Y\",\"N\")))","v":""},{"$f":"IF($B5=\"N\",\"\",IF(OR('Enrollment Form'!$B12<>\"Subscriber\",'Enrollment Form'!$C12=\"ROC\"),\"-\",IF(AND('Enrollment Form'!$B12=\"Subscriber\",'Enrollment Form'!$C12=\"Enroll\",'Enrollment Form'!$AK12<>\"\"),\"Y\",\"N\")))","v":""},{"$f":"IF($B5=\"N\",\"\",IF(OR('Enrollment Form'!$B12<>\"Subscriber\",'Enrollment Form'!$C12=\"ROC\"),\"-\",IF(AND('Enrollment Form'!$B12=\"Subscriber\",'Enrollment Form'!$C12=\"Enroll\",'Enrollment Form'!$AL12<>\"\"),\"Y\",\"N\")))","v":""},{"$f":"IF($B5=\"N\",\"\",IF(OR('Enrollment Form'!$B12<>\"Subscriber\",'Enrollment Form'!$C12=\"ROC\"),\"-\",IF(AND('Enrollment Form'!$B12=\"Subscriber\",'Enrollment Form'!$C12=\"Enroll\",'Enrollment Form'!$AP12<>\"\"),\"Y\",\"N\")))","v":""},{"$f":"IF($B5=\"N\",\"\",IF(OR('Enrollment Form'!$B12<>\"Subscriber\",'Enrollment Form'!$C12=\"ROC\"),\"-\",IF(AND('Enrollment Form'!$B12=\"Subscriber\",'Enrollment Form'!$C12=\"Enroll\",'Enrollment Form'!$AQ12<>\"\"),\"Y\",\"N\")))","v":""},{"$f":"IF($B5=\"N\",\"\",IF(OR('Enrollment Form'!$B12<>\"Subscriber\",'Enrollment Form'!$C12=\"ROC\"),\"-\",IF(AND('Enrollment Form'!$B12=\"Subscriber\",'Enrollment Form'!$C12=\"Enroll\",'Enrollment Form'!$AS12<>\"\"),\"Y\",\"N\")))","v":""},{"$f":"IF($B5=\"N\",\"\",IF($Q5=\"-\",\"-\",IF(AND($Q5=\"Y\",'Enrollment Form'!$AS12=\"No\"),\"-\",IF(AND($Q5=\"Y\",'Enrollment Form'!$AS12=\"Yes\",'Enrollment Form'!$AT12<>\"\"),\"Y\",\"N\"))))","v":""},{"$f":"IF($B5=\"N\",\"\",IF(OR('Enrollment Form'!$B12<>\"Subscriber\",'Enrollment Form'!$C12=\"ROC\"),\"-\",IF(AND('Enrollment Form'!$B12=\"Subscriber\",'Enrollment Form'!$C12=\"Enroll\",'Enrollment Form'!$CV12<>\"\"),\"Y\",\"N\")))","v":""},{"$f":"IF($B5=\"N\",\"\",IF($S5=\"-\",\"-\",IF(AND($S5=\"Y\",'Enrollment Form'!$CV12=\"No\"),\"-\",IF(AND($S5=\"Y\",'Enrollment Form'!$CV12=\"Yes\",'Enrollment Form'!$CW12<>\"\"),\"Y\",\"N\"))))","v":""},{"$f":"IF(OR('Enrollment Form'!$AY12=\"Yes\",'Enrollment Form'!$AY12=\"\"),\"-\",IF(OR(AND('Enrollment Form'!$AY12=\"No\",ISERROR(FIND(\"HMO\",VLOOKUP('Enrollment Form'!G12,'Enrollment Form'!H$11:J$1000,3,FALSE),1))=FALSE,COUNTA('Enrollment Form'!$AZ12:$BC12)=4),AND('Enrollment Form'!$AY12=\"No\",ISERROR(FIND(\"HMO\",VLOOKUP('Enrollment Form'!G12,'Enrollment Form'!H$11:J$1000,3,FALSE),1))=FALSE,COUNTA('Enrollment Form'!$BT12:$BW12)=4)),\"Y\",\"N\"))","v":"-"},{"$f":"IF($B5=\"N\",\"\",IF('Enrollment Form'!$B12=\"Subscriber\",\"-\",IF(COUNTA('Enrollment Form'!$BL12,'Enrollment Form'!$BN12)=2,\"Y\",\"N\")))","v":""},{"$f":"IF($B5=\"N\",\"\",IF(OR('Enrollment Form'!$AX12=\"\",'Enrollment Form'!$AX12=\"No\"),\"-\",IF(AND('Enrollment Form'!$AX12=\"Yes\",COUNTA('Enrollment Form'!$CR12)=1),\"Y\",\"N\")))","v":""},{"$f":"IF(OR('Enrollment Form'!$CR12=\"\",'Enrollment Form'!$CR12=\"No\"),\"-\",IF(COUNTA('Enrollment Form'!$CT12:$CU12)=2,\"Y\",\"N\"))","v":"-"},{"$f":"IF($B5=\"N\",\"\",IF(COUNTIF('Enrollment Form'!$DG12:$DP12,\"Other\")=COUNTA('Enrollment Form'!$DK12,'Enrollment Form'!$DH12,'Enrollment Form'!$DN12,'Enrollment Form'!$DQ12),\"Y\",\"N\"))","v":""},{"$f":"IF($B5=\"N\",\"\",IF(OR('Enrollment Form'!B12<>\"Subscriber\",'Enrollment Form'!C12=\"ROC\",COUNTIF('Enrollment Form'!AV12:AW12,\"Yes\")>=1),\"-\",IF(AND('Enrollment Form'!C12=\"Enroll\",COUNTIF('Enrollment Form'!AV12:AW12,\"No\")=2,'Enrollment Form'!AX12=\"\"),\"N\",\"Y\")))","v":""},{"$f":"IF(OR(B5=\"N\",'Enrollment Form'!B12<>\"Subscriber\",'Enrollment Form'!C12=\"ROC\",'Enrollment Form'!O12<>\"Multiple of Salary\"),\"-\",IF(COUNTA('Enrollment Form'!T12:U12)<2,\"N\",\"Y\"))","v":"-"},{"$f":"IF(B5=\"N\",\"\",IF(OR('Enrollment Form'!C12=\"ROC\",'Enrollment Form'!B12<>\"Subscriber\",'Enrollment Form'!O12=\"Waive\",'Enrollment Form'!O12=\"\"),\"-\",IF('Enrollment Form'!P12=\"\",\"N\",\"Y\")))","v":""},{"$f":"IF($B5=\"N\",\"\",IF(AND('Enrollment Form'!$C12=\"ROC\",'Enrollment Form'!$DR12<>\"\"),\"Y\",IF(AND('Enrollment Form'!$C12=\"ROC\",'Enrollment Form'!$DR12=\"\"),\"N\",IF(AND('Enrollment Form'!$C12=\"Enroll\",'Enrollment Form'!$B12=\"Subscriber\",'Enrollment Form'!$CX12=\"No\",'Enrollment Form'!$DR12=\"\"),\"N\",IF(AND('Enrollment Form'!$C12=\"Enroll\",'Enrollment Form'!$B12=\"Subscriber\",'Enrollment Form'!$CX12=\"Yes\"),\"-\",\"Y\")))))","v":""},{"$f":"IF($B5=\"N\",\"\",IF(AND('Enrollment Form'!$C12=\"ROC\",'Enrollment Form'!$DS12<>\"\"),\"Y\",IF(AND('Enrollment Form'!$C12=\"ROC\",'Enrollment Form'!$DS12=\"\"),\"N\",IF(AND('Enrollment Form'!$C12=\"Enroll\",'Enrollment Form'!$B12=\"Subscriber\",'Enrollment Form'!$CX12=\"No\",'Enrollment Form'!$DS12=\"\"),\"N\",IF(AND('Enrollment Form'!$C12=\"Enroll\",'Enrollment Form'!$B12=\"Subscriber\",'Enrollment Form'!$CX12=\"Yes\"),\"-\",\"Y\")))))","v":""},{"$f":"IF('Enrollment Form'!AH12=\"\",\"\",IF(ISERROR(SEARCH(\".\",'Enrollment Form'!AH12,SEARCH(\"@\",'Enrollment Form'!AH12))),\"N\",\"Y\"))","v":""},{"$f":"IF(OR($B5=\"N\",'Enrollment Form'!$G12=\"\"),\"\",IF('Enrollment Form'!$B12<>\"Subscriber\",\"-\",IF(COUNTIF('Enrollment Form'!$AV12:$AW12,\"Yes\")=2,\"N\",\"Y\")))","v":""},{"$f":"IF(OR('Enrollment Form'!$CJ12=\"\",'Enrollment Form'!$CJ12=\"No\"),\"-\",IF(AND('Enrollment Form'!$CJ12=\"Yes\",'Enrollment Form'!$CK12=\"\"),\"N\",\"Y\"))","v":"-"},{"$f":"IF(OR('Enrollment Form'!$CL12=\"\",'Enrollment Form'!$CL12=\"No\"),\"-\",IF(AND('Enrollment Form'!$CL12=\"Yes\",'Enrollment Form'!$CM12=\"\"),\"N\",\"Y\"))","v":"-"},{"$f":"IF(OR('Enrollment Form'!$CN12=\"\",'Enrollment Form'!$CN12=\"No\"),\"-\",IF(AND('Enrollment Form'!$CN12=\"Yes\",'Enrollment Form'!$CO12=\"\"),\"N\",\"Y\"))","v":"-"},{"$f":"IF(OR('Enrollment Form'!$CN12=\"\",'Enrollment Form'!$CN12=\"No\"),\"-\",IF(AND('Enrollment Form'!$CN12=\"Yes\",'Enrollment Form'!$CP12=\"\"),\"N\",\"Y\"))","v":"-"},{"$f":"IF('Enrollment Form'!B12<>\"Subscriber\",\"-\",IF(AND('Enrollment Form'!B12=\"Subscriber\",'Enrollment Form'!C12=\"Enroll\",'Enrollment Form'!AA12=\"\"),\"N\",\"Y\"))","v":"-"},{"$f":"IF(OR('Enrollment Form'!B12=\"Subscriber\",'Enrollment Form'!B12=\"\"),\"-\",IF('Enrollment Form'!BP12=\"\",\"N\",\"Y\"))","v":"-"},{"$f":"IF('Enrollment Form'!B12<>\"Subscriber\",\"-\",IF(AND('Enrollment Form'!B12=\"Subscriber\",'Enrollment Form'!G12=\"\"),\"N\",\"Y\"))","v":"-"},{"$f":"IF('Enrollment Form'!A12=\"\",\"\",IF('Enrollment Form'!B12=\"Subscriber\",\"-\",IF(AND('Enrollment Form'!B12<>\"Subscriber\",'Enrollment Form'!G12='Enrollment Form'!H12),\"N\",\"Y\")))","v":""},0,null,null,null,null,null,null,"02","Applicant Type is populated?","Value from dropdown must be selected","B"]
[{"$f":"1+A5","v":13},{"$f":"IF('Enrollment Form'!$A13<>\"\",\"Y\",\"N\")","v":"N"},{"$f":"IF(AND('Enrollment Form'!$B13=\"\",'Enrollment Form'!$C13<>\"\"),\"N\",IF($B6=\"N\",\"\",\"Y\"))","v":""},{"$f":"IF(OR($B6=\"N\",'Enrollment Form'!G13=\"\"),\"\",IF('Enrollment Form'!$B13<>\"Subscriber\",\"\",IF('Enrollment Form'!$G13='Enrollment Form'!$H13,\"Y\",\"N\")))","v":""},{"$f":"IF($B6=\"N\",\"\",IF(AND(COUNTIFS('Enrollment Form'!$H$11:$H$1000,'Enrollment Form'!$H13,'Enrollment Form'!$B$11:$B$1000,'Enrollment Form'!$B13)>1,'Enrollment Form'!$H13<>\"\"),\"N\",\"Y\"))","v":""},{"$f":"IF($B6=\"N\",\"\",IF(LEN('Enrollment Form'!$Y13)=0,\"\",IF(LEN('Enrollment Form'!$Y13)<>5,\"N\",\"Y\")))","v":""},{"$f":"IF($B6=\"N\",\"\",IF(LEN('Enrollment Form'!$AD13=0),\"\",IF(LEN('Enrollment Form'!$AD13)<>5,\"N\",\"Y\")))","v":""},{"$f":"IF($B6=\"N\",\"\",IF(LEN('Enrollment Form'!$BS13=0),\"\",IF(LEN('Enrollment Form'!$BS13)<>5,\"N\",\"Y\")))","v":""},{"$f":"IF($B6=\"N\",\"\",IF(LEN('Enrollment Form'!$AE13)=0,\"\",IF(LEN('Enrollment Form'!$AE13)<>10,\"N\",\"Y\")))","v":""},{"$f":"IF($B6=\"N\",\"\",IF(LEN('Enrollment Form'!$AF13)=0,\"\",IF(LEN('Enrollment Form'!$AF13)<>10,\"N\",\"Y\")))","v":""},{"$f":"IF('Enrollment Form'!$O13<>\"Graded\",\"-\",IF(AND('Enrollment Form'!$O13=\"Graded\",'Enrollment Form'!$AR13<>\"\"),\"Y\",\"N\"))","v":"-"},{"$f":"IF($B6=\"N\",\"\",IF(OR('Enrollment Form'!$B13<>\"Subscriber\",'Enrollment Form'!$C13=\"ROC\"),\"-\",IF(AND('Enrollment Form'!$B13=\"Subscriber\",'Enrollment Form'!$C13=\"Enroll\",'Enrollment Form'!$AJ13<>\"\"),\"Y\",\"N\")))","v":""},{"$f":"IF($B6=\"N\",\"\",IF(OR('Enrollment Form'!$B13<>\"Subscriber\",'Enrollment Form'!$C13=\"ROC\"),\"-\",IF(AND('Enrollment Form'!$B13=\"Subscriber\",'Enrollment Form'!$C13=\"Enroll\",'Enrollment Form'!$AK13<>\"\"),\"Y\",\"N\")))","v":""},{"$f":"IF($B6=\"N\",\"\",IF(OR('Enrollment Form'!$B13<>\"Subscriber\",'Enrollment Form'!$C13=\"ROC\"),\"-\",IF(AND('Enrollment Form'!$B13=\"Subscriber\",'Enrollment Form'!$C13=\"Enroll\",'Enrollment Form'!$AL13<>\"\"),\"Y\",\"N\")))","v":""},{"$f":"IF($B6=\"N\",\"\",IF(OR('Enrollment Form'!$B13<>\"Subscriber\",'Enrollment Form'!$C13=\"ROC\"),\"-\",IF(AND('Enrollment Form'!$B13=\"Subscriber\",'Enrollment Form'!$C13=\"Enroll\",'Enrollment Form'!$AP13<>\"\"),\"Y\",\"N\")))","v":""},{"$f":"IF($B6=\"N\",\"\",IF(OR('Enrollment Form'!$B13<>\"Subscriber\",'Enrollment Form'!$C13=\"ROC\"),\"-\",IF(AND('Enrollment Form'!$B13=\"Subscriber\",'Enrollment Form'!$C13=\"Enroll\",'Enrollment Form'!$AQ13<>\"\"),\"Y\",\"N\")))","v":""},{"$f":"IF($B6=\"N\",\"\",IF(OR('Enrollment Form'!$B13<>\"Subscriber\",'Enrollment Form'!$C13=\"ROC\"),\"-\",IF(AND('Enrollment Form'!$B13=\"Subscriber\",'Enrollment Form'!$C13=\"Enroll\",'Enrollment Form'!$AS13<>\"\"),\"Y\",\"N\")))","v":""},{"$f":"IF($B6=\"N\",\"\",IF($Q6=\"-\",\"-\",IF(AND($Q6=\"Y\",'Enrollment Form'!$AS13=\"No\"),\"-\",IF(AND($Q6=\"Y\",'Enrollment Form'!$AS13=\"Yes\",'Enrollment Form'!$AT13<>\"\"),\"Y\",\"N\"))))","v":""},{"$f":"IF($B6=\"N\",\"\",IF(OR('Enrollment Form'!$B13<>\"Subscriber\",'Enrollment Form'!$C13=\"ROC\"),\"-\",IF(AND('Enrollment Form'!$B13=\"Subscriber\",'Enrollment Form'!$C13=\"Enroll\",'Enrollment Form'!$CV13<>\"\"),\"Y\",\"N\")))","v":""},{"$f":"IF($B6=\"N\",\"\",IF($S6=\"-\",\"-\",IF(AND($S6=\"Y\",'Enrollment Form'!$CV13=\"No\"),\"-\",IF(AND($S6=\"Y\",'Enrollment Form'!$CV13=\"Yes\",'Enrollment Form'!$CW13<>\"\"),\"Y\",\"N\"))))","v":""},{"$f":"IF(OR('Enrollment Form'!$AY13=\"Yes\",'Enrollment Form'!$AY13=\"\"),\"-\",IF(OR(AND('Enrollment Form'!$AY13=\"No\",ISERROR(FIND(\"HMO\",VLOOKUP('Enrollment Form'!G13,'Enrollment Form'!H$11:J$1000,3,FALSE),1))=FALSE,COUNTA('Enrollment Form'!$AZ13:$BC13)=4),AND('Enrollment Form'!$AY13=\"No\",ISERROR(FIND(\"HMO\",VLOOKUP('Enrollment Form'!G13,'Enrollment Form'!H$11:J$1000,3,FALSE),1))=FALSE,COUNTA('Enrollment Form'!$BT13:$BW13)=4)),\"Y\",\"N\"))","v":"-"},{"$f":"IF($B6=\"N\",\"\",IF('Enrollment Form'!$B13=\"Subscriber\",\"-\",IF(COUNTA('Enrollment Form'!$BL13,'Enrollment Form'!$BN13)=2,\"Y\",\"N\")))","v":""},{"$f":"IF($B6=\"N\",\"\",IF(OR('Enrollment Form'!$AX13=\"\",'Enrollment Form'!$AX13=\"No\"),\"-\",IF(AND('Enrollment Form'!$AX13=\"Yes\",COUNTA('Enrollment Form'!$CR13)=1),\"Y\",\"N\")))","v":""},{"$f":"IF(OR('Enrollment Form'!$CR13=\"\",'Enrollment Form'!$CR13=\"No\"),\"-\",IF(COUNTA('Enrollment Form'!$CT13:$CU13)=2,\"Y\",\"N\"))","v":"-"},{"$f":"IF($B6=\"N\",\"\",IF(COUNTIF('Enrollment Form'!$DG13:$DP13,\"Other\")=COUNTA('Enrollment Form'!$DK13,'Enrollment Form'!$DH13,'Enrollment Form'!$DN13,'Enrollment Form'!$DQ13),\"Y\",\"N\"))","v":""},{"$f":"IF($B6=\"N\",\"\",IF(OR('Enrollment Form'!B13<>\"Subscriber\",'Enrollment Form'!C13=\"ROC\",COUNTIF('Enrollment Form'!AV13:AW13,\"Yes\")>=1),\"-\",IF(AND('Enrollment Form'!C13=\"Enroll\",COUNTIF('Enrollment Form'!AV13:AW13,\"No\")=2,'Enrollment Form'!AX13=\"\"),\"N\",\"Y\")))","v":""},{"$f":"IF(OR(B6=\"N\",'Enrollment Form'!B13<>\"Subscriber\",'Enrollment Form'!C13=\"ROC\",'Enrollment Form'!O13<>\"Multiple of Salary\"),\"-\",IF(COUNTA('Enrollment Form'!T13:U13)<2,\"N\",\"Y\"))","v":"-"},{"$f":"IF(B6=\"N\",\"\",IF(OR('Enrollment Form'!C13=\"ROC\",'Enrollment Form'!B13<>\"Subscriber\",'Enrollment Form'!O13=\"Waive\",'Enrollment Form'!O13=\"\"),\"-\",IF('Enrollment Form'!P13=\"\",\"N\",\"Y\")))","v":""},{"$f":"IF($B6=\"N\",\"\",IF(AND('Enrollment Form'!$C13=\"ROC\",'Enrollment Form'!$DR13<>\"\"),\"Y\",IF(AND('Enrollment Form'!$C13=\"ROC\",'Enrollment Form'!$DR13=\"\"),\"N\",IF(AND('Enrollment Form'!$C13=\"Enroll\",'Enrollment Form'!$B13=\"Subscriber\",'Enrollment Form'!$CX13=\"No\",'Enrollment Form'!$DR13=\"\"),\"N\",IF(AND('Enrollment Form'!$C13=\"Enroll\",'Enrollment Form'!$B13=\"Subscriber\",'Enrollment Form'!$CX13=\"Yes\"),\"-\",\"Y\")))))","v":""},{"$f":"IF($B6=\"N\",\"\",IF(AND('Enrollment Form'!$C13=\"ROC\",'Enrollment Form'!$DS13<>\"\"),\"Y\",IF(AND('Enrollment Form'!$C13=\"ROC\",'Enrollment Form'!$DS13=\"\"),\"N\",IF(AND('Enrollment Form'!$C13=\"Enroll\",'Enrollment Form'!$B13=\"Subscriber\",'Enrollment Form'!$CX13=\"No\",'Enrollment Form'!$DS13=\"\"),\"N\",IF(AND('Enrollment Form'!$C13=\"Enroll\",'Enrollment Form'!$B13=\"Subscriber\",'Enrollment Form'!$CX13=\"Yes\"),\"-\",\"Y\")))))","v":""},{"$f":"IF('Enrollment Form'!AH13=\"\",\"\",IF(ISERROR(SEARCH(\".\",'Enrollment Form'!AH13,SEARCH(\"@\",'Enrollment Form'!AH13))),\"N\",\"Y\"))","v":""},{"$f":"IF(OR($B6=\"N\",'Enrollment Form'!$G13=\"\"),\"\",IF('Enrollment Form'!$B13<>\"Subscriber\",\"-\",IF(COUNTIF('Enrollment Form'!$AV13:$AW13,\"Yes\")=2,\"N\",\"Y\")))","v":""},{"$f":"IF(OR('Enrollment Form'!$CJ13=\"\",'Enrollment Form'!$CJ13=\"No\"),\"-\",IF(AND('Enrollment Form'!$CJ13=\"Yes\",'Enrollment Form'!$CK13=\"\"),\"N\",\"Y\"))","v":"-"},{"$f":"IF(OR('Enrollment Form'!$CL13=\"\",'Enrollment Form'!$CL13=\"No\"),\"-\",IF(AND('Enrollment Form'!$CL13=\"Yes\",'Enrollment Form'!$CM13=\"\"),\"N\",\"Y\"))","v":"-"},{"$f":"IF(OR('Enrollment Form'!$CN13=\"\",'Enrollment Form'!$CN13=\"No\"),\"-\",IF(AND('Enrollment Form'!$CN13=\"Yes\",'Enrollment Form'!$CO13=\"\"),\"N\",\"Y\"))","v":"-"},{"$f":"IF(OR('Enrollment Form'!$CN13=\"\",'Enrollment Form'!$CN13=\"No\"),\"-\",IF(AND('Enrollment Form'!$CN13=\"Yes\",'Enrollment Form'!$CP13=\"\"),\"N\",\"Y\"))","v":"-"},{"$f":"IF('Enrollment Form'!B13<>\"Subscriber\",\"-\",IF(AND('Enrollment Form'!B13=\"Subscriber\",'Enrollment Form'!C13=\"Enroll\",'Enrollment Form'!AA13=\"\"),\"N\",\"Y\"))","v":"-"},{"$f":"IF(OR('Enrollment Form'!B13=\"Subscriber\",'Enrollment Form'!B13=\"\"),\"-\",IF('Enrollment Form'!BP13=\"\",\"N\",\"Y\"))","v":"-"},{"$f":"IF('Enrollment Form'!B13<>\"Subscriber\",\"-\",IF(AND('Enrollment Form'!B13=\"Subscriber\",'Enrollment Form'!G13=\"\"),\"N\",\"Y\"))","v":"-"},{"$f":"IF('Enrollment Form'!A13=\"\",\"\",IF('Enrollment Form'!B13=\"Subscriber\",\"-\",IF(AND('Enrollment Form'!B13<>\"Subscriber\",'Enrollment Form'!G13='Enrollment Form'!H13),\"N\",\"Y\")))","v":""},0,null,null,null,null,null,null,"03","If Sub, SSN match Appl SSN?","If Applicant Type = \"Subscriber\", then Subscriber SSN must match Applicant SSN for that record","G,H"]
[14,{"$f":"IF('Enrollment Form'!$A14<>\"\",\"Y\",\"N\")","v":"N"},{"$f":"IF(AND('Enrollment Form'!$B14=\"\",'Enrollment Form'!$C14<>\"\"),\"N\",IF($B7=\"N\",\"\",\"Y\"))","v":""},{"$f":"IF(OR($B7=\"N\",'Enrollment Form'!G14=\"\"),\"\",IF('Enrollment Form'!$B14<>\"Subscriber\",\"\",IF('Enrollment Form'!$G14='Enrollment Form'!$H14,\"Y\",\"N\")))","v":""},{"$f":"IF($B7=\"N\",\"\",IF(AND(COUNTIFS('Enrollment Form'!$H$11:$H$1000,'Enrollment Form'!$H14,'Enrollment Form'!$B$11:$B$1000,'Enrollment Form'!$B14)>1,'Enrollment Form'!$H14<>\"\"),\"N\",\"Y\"))","v":""},{"$f":"IF($B7=\"N\",\"\",IF(LEN('Enrollment Form'!$Y14)=0,\"\",IF(LEN('Enrollment Form'!$Y14)<>5,\"N\",\"Y\")))","v":""},{"$f":"IF($B7=\"N\",\"\",IF(LEN('Enrollment Form'!$AD14=0),\"\",IF(LEN('Enrollment Form'!$AD14)<>5,\"N\",\"Y\")))","v":""},{"$f":"IF($B7=\"N\",\"\",IF(LEN('Enrollment Form'!$BS14=0),\"\",IF(LEN('Enrollment Form'!$BS14)<>5,\"N\",\"Y\")))","v":""},{"$f":"IF($B7=\"N\",\"\",IF(LEN('Enrollment Form'!$AE14)=0,\"\",IF(LEN('Enrollment Form'!$AE14)<>10,\"N\",\"Y\")))","v":""},{"$f":"IF($B7=\"N\",\"\",IF(LEN('Enrollment Form'!$AF14)=0,\"\",IF(LEN('Enrollment Form'!$AF14)<>10,\"N\",\"Y\")))","v":""},{"$f":"IF('Enrollment Form'!$O14<>\"Graded\",\"-\",IF(AND('Enrollment Form'!$O14=\"Graded\",'Enrollment Form'!$AR14<>\"\"),\"Y\",\"N\"))","v":"-"},{"$f":"IF($B7=\"N\",\"\",IF(OR('Enrollment Form'!$B14<>\"Subscriber\",'Enrollment Form'!$C14=\"ROC\"),\"-\",IF(AND('Enrollment Form'!$B14=\"Subscriber\",'Enrollment Form'!$C14=\"Enroll\",'Enrollment Form'!$AJ14<>\"\"),\"Y\",\"N\")))","v":""},{"$f":"IF($B7=\"N\",\"\",IF(OR('Enrollment Form'!$B14<>\"Subscriber\",'Enrollment Form'!$C14=\"ROC\"),\"-\",IF(AND('Enrollment Form'!$B14=\"Subscriber\",'Enrollment Form'!$C14=\"Enroll\",'Enrollment Form'!$AK14<>\"\"),\"Y\",\"N\")))","v":""},{"$f":"IF($B7=\"N\",\"\",IF(OR('Enrollment Form'!$B14<>\"Subscriber\",'Enrollment Form'!$C14=\"ROC\"),\"-\",IF(AND('Enrollment Form'!$B14=\"Subscriber\",'Enrollment Form'!$C14=\"Enroll\",'Enrollment Form'!$AL14<>\"\"),\"Y\",\"N\")))","v":""},{"$f":"IF($B7=\"N\",\"\",IF(OR('Enrollment Form'!$B14<>\"Subscriber\",'Enrollment Form'!$C14=\"ROC\"),\"-\",IF(AND('Enrollment Form'!$B14=\"Subscriber\",'Enrollment Form'!$C14=\"Enroll\",'Enrollment Form'!$AP14<>\"\"),\"Y\",\"N\")))","v":""},{"$f":"IF($B7=\"N\",\"\",IF(OR('Enrollment Form'!$B14<>\"Subscriber\",'Enrollment Form'!$C14=\"ROC\"),\"-\",IF(AND('Enrollment Form'!$B14=\"Subscriber\",'Enrollment Form'!$C14=\"Enroll\",'Enrollment Form'!$AQ14<>\"\"),\"Y\",\"N\")))","v":""},{"$f":"IF($B7=\"N\",\"\",IF(OR('Enrollment Form'!$B14<>\"Subscriber\",'Enrollment Form'!$C14=\"ROC\"),\"-\",IF(AND('Enrollment Form'!$B14=\"Subscriber\",'Enrollment Form'!$C14=\"Enroll\",'Enrollment Form'!$AS14<>\"\"),\"Y\",\"N\")))","v":""},{"$f":"IF($B7=\"N\",\"\",IF($Q7=\"-\",\"-\",IF(AND($Q7=\"Y\",'Enrollment Form'!$AS14=\"No\"),\"-\",IF(AND($Q7=\"Y\",'Enrollment Form'!$AS14=\"Yes\",'Enrollment Form'!$AT14<>\"\"),\"Y\",\"N\"))))","v":""},{"$f":"IF($B7=\"N\",\"\",IF(OR('Enrollment Form'!$B14<>\"Subscriber\",'Enrollment Form'!$C14=\"ROC\"),\"-\",IF(AND('Enrollment Form'!$B14=\"Subscriber\",'Enrollment Form'!$C14=\"Enroll\",'Enrollment Form'!$CV14<>\"\"),\"Y\",\"N\")))","v":""},{"$f":"IF($B7=\"N\",\"\",IF($S7=\"-\",\"-\",IF(AND($S7=\"Y\",'Enrollment Form'!$CV14=\"No\"),\"-\",IF(AND($S7=\"Y\",'Enrollment Form'!$CV14=\"Yes\",'Enrollment Form'!$CW14<>\"\"),\"Y\",\"N\"))))","v":""},{"$f":"IF(OR('Enrollment Form'!$AY14=\"Yes\",'Enrollment Form'!$AY14=\"\"),\"-\",IF(OR(AND('Enrollment Form'!$AY14=\"No\",ISERROR(FIND(\"HMO\",VLOOKUP('Enrollment Form'!G14,'Enrollment Form'!H$11:J$1000,3,FALSE),1))=FALSE,COUNTA('Enrollment Form'!$AZ14:$BC14)=4),AND('Enrollment Form'!$AY14=\"No\",ISERROR(FIND(\"HMO\",VLOOKUP('Enrollment Form'!G14,'Enrollment Form'!H$11:J$1000,3,FALSE),1))=FALSE,COUNTA('Enrollment Form'!$BT14:$BW14)=4)),\"Y\",\"N\"))","v":"-"},{"$f":"IF($B7=\"N\",\"\",IF('Enrollment Form'!$B14=\"Subscriber\",\"-\",IF(COUNTA('Enrollment Form'!$BL14,'Enrollment Form'!$BN14)=2,\"Y\",\"N\")))","v":""},{"$f":"IF($B7=\"N\",\"\",IF(OR('Enrollment Form'!$AX14=\"\",'Enrollment Form'!$AX14=\"No\"),\"-\",IF(AND('Enrollment Form'!$AX14=\"Yes\",COUNTA('Enrollment Form'!$CR14)=1),\"Y\",\"N\")))","v":""},{"$f":"IF(OR('Enrollment Form'!$CR14=\"\",'Enrollment Form'!$CR14=\"No\"),\"-\",IF(COUNTA('Enrollment Form'!$CT14:$CU14)=2,\"Y\",\"N\"))","v":"-"},{"$f":"IF($B7=\"N\",\"\",IF(COUNTIF('Enrollment Form'!$DG14:$DP14,\"Other\")=COUNTA('Enrollment Form'!$DK14,'Enrollment Form'!$DH14,'Enrollment Form'!$DN14,'Enrollment Form'!$DQ14),\"Y\",\"N\"))","v":""},{"$f":"IF($B7=\"N\",\"\",IF(OR('Enrollment Form'!B14<>\"Subscriber\",'Enrollment Form'!C14=\"ROC\",COUNTIF('Enrollment Form'!AV14:AW14,\"Yes\")>=1),\"-\",IF(AND('Enrollment Form'!C14=\"Enroll\",COUNTIF('Enrollment Form'!AV14:AW14,\"No\")=2,'Enrollment Form'!AX14=\"\"),\"N\",\"Y\")))","v":""},{"$f":"IF(OR(B7=\"N\",'Enrollment Form'!B14<>\"Subscriber\",'Enrollment Form'!C14=\"ROC\",'Enrollment Form'!O14<>\"Multiple of Salary\"),\"-\",IF(COUNTA('Enrollment Form'!T14:U14)<2,\"N\",\"Y\"))","v":"-"},{"$f":"IF(B7=\"N\",\"\",IF(OR('Enrollment Form'!C14=\"ROC\",'Enrollment Form'!B14<>\"Subscriber\",'Enrollment Form'!O14=\"Waive\",'Enrollment Form'!O14=\"\"),\"-\",IF('Enrollment Form'!P14=\"\",\"N\",\"Y\")))","v":""},{"$f":"IF($B7=\"N\",\"\",IF(AND('Enrollment Form'!$C14=\"ROC\",'Enrollment Form'!$DR14<>\"\"),\"Y\",IF(AND('Enrollment Form'!$C14=\"ROC\",'Enrollment Form'!$DR14=\"\"),\"N\",IF(AND('Enrollment Form'!$C14=\"Enroll\",'Enrollment Form'!$B14=\"Subscriber\",'Enrollment Form'!$CX14=\"No\",'Enrollment Form'!$DR14=\"\"),\"N\",IF(AND('Enrollment Form'!$C14=\"Enroll\",'Enrollment Form'!$B14=\"Subscriber\",'Enrollment Form'!$CX14=\"Yes\"),\"-\",\"Y\")))))","v":""},{"$f":"IF($B7=\"N\",\"\",IF(AND('Enrollment Form'!$C14=\"ROC\",'Enrollment Form'!$DS14<>\"\"),\"Y\",IF(AND('Enrollment Form'!$C14=\"ROC\",'Enrollment Form'!$DS14=\"\"),\"N\",IF(AND('Enrollment Form'!$C14=\"Enroll\",'Enrollment Form'!$B14=\"Subscriber\",'Enrollment Form'!$CX14=\"No\",'Enrollment Form'!$DS14=\"\"),\"N\",IF(AND('Enrollment Form'!$C14=\"Enroll\",'Enrollment Form'!$B14=\"Subscriber\",'Enrollment Form'!$CX14=\"Yes\"),\"-\",\"Y\")))))","v":""},{"$f":"IF('Enrollment Form'!AH14=\"\",\"\",IF(ISERROR(SEARCH(\".\",'Enrollment Form'!AH14,SEARCH(\"@\",'Enrollment Form'!AH14))),\"N\",\"Y\"))","v":""},{"$f":"IF(OR($B7=\"N\",'Enrollment Form'!$G14=\"\"),\"\",IF('Enrollment Form'!$B14<>\"Subscriber\",\"-\",IF(COUNTIF('Enrollment Form'!$AV14:$AW14,\"Yes\")=2,\"N\",\"Y\")))","v":""},{"$f":"IF(OR('Enrollment Form'!$CJ14=\"\",'Enrollment Form'!$CJ14=\"No\"),\"-\",IF(AND('Enrollment Form'!$CJ14=\"Yes\",'Enrollment Form'!$CK14=\"\"),\"N\",\"Y\"))","v":"-"},{"$f":"IF(OR('Enrollment Form'!$CL14=\"\",'Enrollment Form'!$CL14=\"No\"),\"-\",IF(AND('Enrollment Form'!$CL14=\"Yes\",'Enrollment Form'!$CM14=\"\"),\"N\",\"Y\"))","v":"-"},{"$f":"IF(OR('Enrollment Form'!$CN14=\"\",'Enrollment Form'!$CN14=\"No\"),\"-\",IF(AND('Enrollment Form'!$CN14=\"Yes\",'Enrollment Form'!$CO14=\"\"),\"N\",\"Y\"))","v":"-"},{"$f":"IF(OR('Enrollment Form'!$CN14=\"\",'Enrollment Form'!$CN14=\"No\"),\"-\",IF(AND('Enrollment Form'!$CN14=\"Yes\",'Enrollment Form'!$CP14=\"\"),\"N\",\"Y\"))","v":"-"},{"$f":"IF('Enrollment Form'!B14<>\"Subscriber\",\"-\",IF(AND('Enrollment Form'!B14=\"Subscriber\",'Enrollment Form'!C14=\"Enroll\",'Enrollment Form'!AA14=\"\"),\"N\",\"Y\"))","v":"-"},{"$f":"IF(OR('Enrollment Form'!B14=\"Subscriber\",'Enrollment Form'!B14=\"\"),\"-\",IF('Enrollment Form'!BP14=\"\",\"N\",\"Y\"))","v":"-"},{"$f":"IF('Enrollment Form'!B14<>\"Subscriber\",\"-\",IF(AND('Enrollment Form'!B14=\"Subscriber\",'Enrollment Form'!G14=\"\"),\"N\",\"Y\"))","v":"-"},{"$f":"IF('Enrollment Form'!A14=\"\",\"\",IF('Enrollment Form'!B14=\"Subscriber\",\"-\",IF(AND('Enrollment Form'!B14<>\"Subscriber\",'Enrollment Form'!G14='Enrollment Form'!H14),\"N\",\"Y\")))","v":""},0,null,null,null,null,null,null,"04","Non-Dupe Applicant SSN?","Applicant SSN must be unique for every record on sheet","H"]
[15,{"$f":"IF('Enrollment Form'!$A15<>\"\",\"Y\",\"N\")","v":"N"},{"$f":"IF(AND('Enrollment Form'!$B15=\"\",'Enrollment Form'!$C15<>\"\"),\"N\",IF($B8=\"N\",\"\",\"Y\"))","v":""},{"$f":"IF(OR($B8=\"N\",'Enrollment Form'!G15=\"\"),\"\",IF('Enrollment Form'!$B15<>\"Subscriber\",\"\",IF('Enrollment Form'!$G15='Enrollment Form'!$H15,\"Y\",\"N\")))","v":""},{"$f":"IF($B8=\"N\",\"\",IF(AND(COUNTIFS('Enrollment Form'!$H$11:$H$1000,'Enrollment Form'!$H15,'Enrollment Form'!$B$11:$B$1000,'Enrollment Form'!$B15)>1,'Enrollment Form'!$H15<>\"\"),\"N\",\"Y\"))","v":""},{"$f":"IF($B8=\"N\",\"\",IF(LEN('Enrollment Form'!$Y15)=0,\"\",IF(LEN('Enrollment Form'!$Y15)<>5,\"N\",\"Y\")))","v":""},{"$f":"IF($B8=\"N\",\"\",IF(LEN('Enrollment Form'!$AD15=0),\"\",IF(LEN('Enrollment Form'!$AD15)<>5,\"N\",\"Y\")))","v":""},{"$f":"IF($B8=\"N\",\"\",IF(LEN('Enrollment Form'!$BS15=0),\"\",IF(LEN('Enrollment Form'!$BS15)<>5,\"N\",\"Y\")))","v":""},{"$f":"IF($B8=\"N\",\"\",IF(LEN('Enrollment Form'!$AE15)=0,\"\",IF(LEN('Enrollment Form'!$AE15)<>10,\"N\",\"Y\")))","v":""},{"$f":"IF($B8=\"N\",\"\",IF(LEN('Enrollment Form'!$AF15)=0,\"\",IF(LEN('Enrollment Form'!$AF15)<>10,\"N\",\"Y\")))","v":""},{"$f":"IF('Enrollment Form'!$O15<>\"Graded\",\"-\",IF(AND('Enrollment Form'!$O15=\"Graded\",'Enrollment Form'!$AR15<>\"\"),\"Y\",\"N\"))","v":"-"},{"$f":"IF($B8=\"N\",\"\",IF(OR('Enrollment Form'!$B15<>\"Subscriber\",'Enrollment Form'!$C15=\"ROC\"),\"-\",IF(AND('Enrollment Form'!$B15=\"Subscriber\",'Enrollment Form'!$C15=\"Enroll\",'Enrollment Form'!$AJ15<>\"\"),\"Y\",\"N\")))","v":""},{"$f":"IF($B8=\"N\",\"\",IF(OR('Enrollment Form'!$B15<>\"Subscriber\",'Enrollment Form'!$C15=\"ROC\"),\"-\",IF(AND('Enrollment Form'!$B15=\"Subscriber\",'Enrollment Form'!$C15=\"Enroll\",'Enrollment Form'!$AK15<>\"\"),\"Y\",\"N\")))","v":""},{"$f":"IF($B8=\"N\",\"\",IF(OR('Enrollment Form'!$B15<>\"Subscriber\",'Enrollment Form'!$C15=\"ROC\"),\"-\",IF(AND('Enrollment Form'!$B15=\"Subscriber\",'Enrollment Form'!$C15=\"Enroll\",'Enrollment Form'!$AL15<>\"\"),\"Y\",\"N\")))","v":""},{"$f":"IF($B8=\"N\",\"\",IF(OR('Enrollment Form'!$B15<>\"Subscriber\",'Enrollment Form'!$C15=\"ROC\"),\"-\",IF(AND('Enrollment Form'!$B15=\"Subscriber\",'Enrollment Form'!$C15=\"Enroll\",'Enrollment Form'!$AP15<>\"\"),\"Y\",\"N\")))","v":""},{"$f":"IF($B8=\"N\",\"\",IF(OR('Enrollment Form'!$B15<>\"Subscriber\",'Enrollment Form'!$C15=\"ROC\"),\"-\",IF(AND('Enrollment Form'!$B15=\"Subscriber\",'Enrollment Form'!$C15=\"Enroll\",'Enrollment Form'!$AQ15<>\"\"),\"Y\",\"N\")))","v":""},{"$f":"IF($B8=\"N\",\"\",IF(OR('Enrollment Form'!$B15<>\"Subscriber\",'Enrollment Form'!$C15=\"ROC\"),\"-\",IF(AND('Enrollment Form'!$B15=\"Subscriber\",'Enrollment Form'!$C15=\"Enroll\",'Enrollment Form'!$AS15<>\"\"),\"Y\",\"N\")))","v":""},{"$f":"IF($B8=\"N\",\"\",IF($Q8=\"-\",\"-\",IF(AND($Q8=\"Y\",'Enrollment Form'!$AS15=\"No\"),\"-\",IF(AND($Q8=\"Y\",'Enrollment Form'!$AS15=\"Yes\",'Enrollment Form'!$AT15<>\"\"),\"Y\",\"N\"))))","v":""},{"$f":"IF($B8=\"N\",\"\",IF(OR('Enrollment Form'!$B15<>\"Subscriber\",'Enrollment Form'!$C15=\"ROC\"),\"-\",IF(AND('Enrollment Form'!$B15=\"Subscriber\",'Enrollment Form'!$C15=\"Enroll\",'Enrollment Form'!$CV15<>\"\"),\"Y\",\"N\")))","v":""},{"$f":"IF($B8=\"N\",\"\",IF($S8=\"-\",\"-\",IF(AND($S8=\"Y\",'Enrollment Form'!$CV15=\"No\"),\"-\",IF(AND($S8=\"Y\",'Enrollment Form'!$CV15=\"Yes\",'Enrollment Form'!$CW15<>\"\"),\"Y\",\"N\"))))","v":""},{"$f":"IF(OR('Enrollment Form'!$AY15=\"Yes\",'Enrollment Form'!$AY15=\"\"),\"-\",IF(OR(AND('Enrollment Form'!$AY15=\"No\",ISERROR(FIND(\"HMO\",VLOOKUP('Enrollment Form'!G15,'Enrollment Form'!H$11:J$1000,3,FALSE),1))=FALSE,COUNTA('Enrollment Form'!$AZ15:$BC15)=4),AND('Enrollment Form'!$AY15=\"No\",ISERROR(FIND(\"HMO\",VLOOKUP('Enrollment Form'!G15,'Enrollment Form'!H$11:J$1000,3,FALSE),1))=FALSE,COUNTA('Enrollment Form'!$BT15:$BW15)=4)),\"Y\",\"N\"))","v":"-"},{"$f":"IF($B8=\"N\",\"\",IF('Enrollment Form'!$B15=\"Subscriber\",\"-\",IF(COUNTA('Enrollment Form'!$BL15,'Enrollment Form'!$BN15)=2,\"Y\",\"N\")))","v":""},{"$f":"IF($B8=\"N\",\"\",IF(OR('Enrollment Form'!$AX15=\"\",'Enrollment Form'!$AX15=\"No\"),\"-\",IF(AND('Enrollment Form'!$AX15=\"Yes\",COUNTA('Enrollment Form'!$CR15)=1),\"Y\",\"N\")))","v":""},{"$f":"IF(OR('Enrollment Form'!$CR15=\"\",'Enrollment Form'!$CR15=\"No\"),\"-\",IF(COUNTA('Enrollment Form'!$CT15:$CU15)=2,\"Y\",\"N\"))","v":"-"},{"$f":"IF($B8=\"N\",\"\",IF(COUNTIF('Enrollment Form'!$DG15:$DP15,\"Other\")=COUNTA('Enrollment Form'!$DK15,'Enrollment Form'!$DH15,'Enrollment Form'!$DN15,'Enrollment Form'!$DQ15),\"Y\",\"N\"))","v":""},{"$f":"IF($B8=\"N\",\"\",IF(OR('Enrollment Form'!B15<>\"Subscriber\",'Enrollment Form'!C15=\"ROC\",COUNTIF('Enrollment Form'!AV15:AW15,\"Yes\")>=1),\"-\",IF(AND('Enrollment Form'!C15=\"Enroll\",COUNTIF('Enrollment Form'!AV15:AW15,\"No\")=2,'Enrollment Form'!AX15=\"\"),\"N\",\"Y\")))","v":""},{"$f":"IF(OR(B8=\"N\",'Enrollment Form'!B15<>\"Subscriber\",'Enrollment Form'!C15=\"ROC\",'Enrollment Form'!O15<>\"Multiple of Salary\"),\"-\",IF(COUNTA('Enrollment Form'!T15:U15)<2,\"N\",\"Y\"))","v":"-"},{"$f":"IF(B8=\"N\",\"\",IF(OR('Enrollment Form'!C15=\"ROC\",'Enrollment Form'!B15<>\"Subscriber\",'Enrollment Form'!O15=\"Waive\",'Enrollment Form'!O15=\"\"),\"-\",IF('Enrollment Form'!P15=\"\",\"N\",\"Y\")))","v":""},{"$f":"IF($B8=\"N\",\"\",IF(AND('Enrollment Form'!$C15=\"ROC\",'Enrollment Form'!$DR15<>\"\"),\"Y\",IF(AND('Enrollment Form'!$C15=\"ROC\",'Enrollment Form'!$DR15=\"\"),\"N\",IF(AND('Enrollment Form'!$C15=\"Enroll\",'Enrollment Form'!$B15=\"Subscriber\",'Enrollment Form'!$CX15=\"No\",'Enrollment Form'!$DR15=\"\"),\"N\",IF(AND('Enrollment Form'!$C15=\"Enroll\",'Enrollment Form'!$B15=\"Subscriber\",'Enrollment Form'!$CX15=\"Yes\"),\"-\",\"Y\")))))","v":""},{"$f":"IF($B8=\"N\",\"\",IF(AND('Enrollment Form'!$C15=\"ROC\",'Enrollment Form'!$DS15<>\"\"),\"Y\",IF(AND('Enrollment Form'!$C15=\"ROC\",'Enrollment Form'!$DS15=\"\"),\"N\",IF(AND('Enrollment Form'!$C15=\"Enroll\",'Enrollment Form'!$B15=\"Subscriber\",'Enrollment Form'!$CX15=\"No\",'Enrollment Form'!$DS15=\"\"),\"N\",IF(AND('Enrollment Form'!$C15=\"Enroll\",'Enrollment Form'!$B15=\"Subscriber\",'Enrollment Form'!$CX15=\"Yes\"),\"-\",\"Y\")))))","v":""},{"$f":"IF('Enrollment Form'!AH15=\"\",\"\",IF(ISERROR(SEARCH(\".\",'Enrollment Form'!AH15,SEARCH(\"@\",'Enrollment Form'!AH15))),\"N\",\"Y\"))","v":""},{"$f":"IF(OR($B8=\"N\",'Enrollment Form'!$G15=\"\"),\"\",IF('Enrollment Form'!$B15<>\"Subscriber\",\"-\",IF(COUNTIF('Enrollment Form'!$AV15:$AW15,\"Yes\")=2,\"N\",\"Y\")))","v":""},{"$f":"IF(OR('Enrollment Form'!$CJ15=\"\",'Enrollment Form'!$CJ15=\"No\"),\"-\",IF(AND('Enrollment Form'!$CJ15=\"Yes\",'Enrollment Form'!$CK15=\"\"),\"N\",\"Y\"))","v":"-"},{"$f":"IF(OR('Enrollment Form'!$CL15=\"\",'Enrollment Form'!$CL15=\"No\"),\"-\",IF(AND('Enrollment Form'!$CL15=\"Yes\",'Enrollment Form'!$CM15=\"\"),\"N\",\"Y\"))","v":"-"},{"$f":"IF(OR('Enrollment Form'!$CN15=\"\",'Enrollment Form'!$CN15=\"No\"),\"-\",IF(AND('Enrollment Form'!$CN15=\"Yes\",'Enrollment Form'!$CO15=\"\"),\"N\",\"Y\"))","v":"-"},{"$f":"IF(OR('Enrollment Form'!$CN15=\"\",'Enrollment Form'!$CN15=\"No\"),\"-\",IF(AND('Enrollment Form'!$CN15=\"Yes\",'Enrollment Form'!$CP15=\"\"),\"N\",\"Y\"))","v":"-"},{"$f":"IF('Enrollment Form'!B15<>\"Subscriber\",\"-\",IF(AND('Enrollment Form'!B15=\"Subscriber\",'Enrollment Form'!C15=\"Enroll\",'Enrollment Form'!AA15=\"\"),\"N\",\"Y\"))","v":"-"},{"$f":"IF(OR('Enrollment Form'!B15=\"Subscriber\",'Enrollment Form'!B15=\"\"),\"-\",IF('Enrollment Form'!BP15=\"\",\"N\",\"Y\"))","v":"-"},{"$f":"IF('Enrollment Form'!B15<>\"Subscriber\",\"-\",IF(AND('Enrollment Form'!B15=\"Subscriber\",'Enrollment Form'!G15=\"\"),\"N\",\"Y\"))","v":"-"},{"$f":"IF('Enrollment Form'!A15=\"\",\"\",IF('Enrollment Form'!B15=\"Subscriber\",\"-\",IF(AND('Enrollment Form'!B15<>\"Subscriber\",'Enrollment Form'!G15='Enrollment Form'!H15),\"N\",\"Y\")))","v":""},0,null,null,null,null,null,null,"05","Sub ZIP Code 5 digits?","ZIP code must be 5 characters long","Y"]
[16,{"$f":"IF('Enrollment Form'!$A16<>\"\",\"Y\",\"N\")","v":"N"},{"$f":"IF(AND('Enrollment Form'!$B16=\"\",'Enrollment Form'!$C16<>\"\"),\"N\",IF($B9=\"N\",\"\",\"Y\"))","v":""},{"$f":"IF(OR($B9=\"N\",'Enrollment Form'!G16=\"\"),\"\",IF('Enrollment Form'!$B16<>\"Subscriber\",\"\",IF('Enrollment Form'!$G16='Enrollment Form'!$H16,\"Y\",\"N\")))","v":""},{"$f":"IF($B9=\"N\",\"\",IF(AND(COUNTIFS('Enrollment Form'!$H$11:$H$1000,'Enrollment Form'!$H16,'Enrollment Form'!$B$11:$B$1000,'Enrollment Form'!$B16)>1,'Enrollment Form'!$H16<>\"\"),\"N\",\"Y\"))","v":""},{"$f":"IF($B9=\"N\",\"\",IF(LEN('Enrollment Form'!$Y16)=0,\"\",IF(LEN('Enrollment Form'!$Y16)<>5,\"N\",\"Y\")))","v":""},{"$f":"IF($B9=\"N\",\"\",IF(LEN('Enrollment Form'!$AD16=0),\"\",IF(LEN('Enrollment Form'!$AD16)<>5,\"N\",\"Y\")))","v":""},{"$f":"IF($B9=\"N\",\"\",IF(LEN('Enrollment Form'!$BS16=0),\"\",IF(LEN('Enrollment Form'!$BS16)<>5,\"N\",\"Y\")))","v":""},{"$f":"IF($B9=\"N\",\"\",IF(LEN('Enrollment Form'!$AE16)=0,\"\",IF(LEN('Enrollment Form'!$AE16)<>10,\"N\",\"Y\")))","v":""},{"$f":"IF($B9=\"N\",\"\",IF(LEN('Enrollment Form'!$AF16)=0,\"\",IF(LEN('Enrollment Form'!$AF16)<>10,\"N\",\"Y\")))","v":""},{"$f":"IF('Enrollment Form'!$O16<>\"Graded\",\"-\",IF(AND('Enrollment Form'!$O16=\"Graded\",'Enrollment Form'!$AR16<>\"\"),\"Y\",\"N\"))","v":"-"},{"$f":"IF($B9=\"N\",\"\",IF(OR('Enrollment Form'!$B16<>\"Subscriber\",'Enrollment Form'!$C16=\"ROC\"),\"-\",IF(AND('Enrollment Form'!$B16=\"Subscriber\",'Enrollment Form'!$C16=\"Enroll\",'Enrollment Form'!$AJ16<>\"\"),\"Y\",\"N\")))","v":""},{"$f":"IF($B9=\"N\",\"\",IF(OR('Enrollment Form'!$B16<>\"Subscriber\",'Enrollment Form'!$C16=\"ROC\"),\"-\",IF(AND('Enrollment Form'!$B16=\"Subscriber\",'Enrollment Form'!$C16=\"Enroll\",'Enrollment Form'!$AK16<>\"\"),\"Y\",\"N\")))","v":""},{"$f":"IF($B9=\"N\",\"\",IF(OR('Enrollment Form'!$B16<>\"Subscriber\",'Enrollment Form'!$C16=\"ROC\"),\"-\",IF(AND('Enrollment Form'!$B16=\"Subscriber\",'Enrollment Form'!$C16=\"Enroll\",'Enrollment Form'!$AL16<>\"\"),\"Y\",\"N\")))","v":""},{"$f":"IF($B9=\"N\",\"\",IF(OR('Enrollment Form'!$B16<>\"Subscriber\",'Enrollment Form'!$C16=\"ROC\"),\"-\",IF(AND('Enrollment Form'!$B16=\"Subscriber\",'Enrollment Form'!$C16=\"Enroll\",'Enrollment Form'!$AP16<>\"\"),\"Y\",\"N\")))","v":""},{"$f":"IF($B9=\"N\",\"\",IF(OR('Enrollment Form'!$B16<>\"Subscriber\",'Enrollment Form'!$C16=\"ROC\"),\"-\",IF(AND('Enrollment Form'!$B16=\"Subscriber\",'Enrollment Form'!$C16=\"Enroll\",'Enrollment Form'!$AQ16<>\"\"),\"Y\",\"N\")))","v":""},{"$f":"IF($B9=\"N\",\"\",IF(OR('Enrollment Form'!$B16<>\"Subscriber\",'Enrollment Form'!$C16=\"ROC\"),\"-\",IF(AND('Enrollment Form'!$B16=\"Subscriber\",'Enrollment Form'!$C16=\"Enroll\",'Enrollment Form'!$AS16<>\"\"),\"Y\",\"N\")))","v":""},{"$f":"IF($B9=\"N\",\"\",IF($Q9=\"-\",\"-\",IF(AND($Q9=\"Y\",'Enrollment Form'!$AS16=\"No\"),\"-\",IF(AND($Q9=\"Y\",'Enrollment Form'!$AS16=\"Yes\",'Enrollment Form'!$AT16<>\"\"),\"Y\",\"N\"))))","v":""},{"$f":"IF($B9=\"N\",\"\",IF(OR('Enrollment Form'!$B16<>\"Subscriber\",'Enrollment Form'!$C16=\"ROC\"),\"-\",IF(AND('Enrollment Form'!$B16=\"Subscriber\",'Enrollment Form'!$C16=\"Enroll\",'Enrollment Form'!$CV16<>\"\"),\"Y\",\"N\")))","v":""},{"$f":"IF($B9=\"N\",\"\",IF($S9=\"-\",\"-\",IF(AND($S9=\"Y\",'Enrollment Form'!$CV16=\"No\"),\"-\",IF(AND($S9=\"Y\",'Enrollment Form'!$CV16=\"Yes\",'Enrollment Form'!$CW16<>\"\"),\"Y\",\"N\"))))","v":""},{"$f":"IF(OR('Enrollment Form'!$AY16=\"Yes\",'Enrollment Form'!$AY16=\"\"),\"-\",IF(OR(AND('Enrollment Form'!$AY16=\"No\",ISERROR(FIND(\"HMO\",VLOOKUP('Enrollment Form'!G16,'Enrollment Form'!H$11:J$1000,3,FALSE),1))=FALSE,COUNTA('Enrollment Form'!$AZ16:$BC16)=4),AND('Enrollment Form'!$AY16=\"No\",ISERROR(FIND(\"HMO\",VLOOKUP('Enrollment Form'!G16,'Enrollment Form'!H$11:J$1000,3,FALSE),1))=FALSE,COUNTA('Enrollment Form'!$BT16:$BW16)=4)),\"Y\",\"N\"))","v":"-"},{"$f":"IF($B9=\"N\",\"\",IF('Enrollment Form'!$B16=\"Subscriber\",\"-\",IF(COUNTA('Enrollment Form'!$BL16,'Enrollment Form'!$BN16)=2,\"Y\",\"N\")))","v":""},{"$f":"IF($B9=\"N\",\"\",IF(OR('Enrollment Form'!$AX16=\"\",'Enrollment Form'!$AX16=\"No\"),\"-\",IF(AND('Enrollment Form'!$AX16=\"Yes\",COUNTA('Enrollment Form'!$CR16)=1),\"Y\",\"N\")))","v":""},{"$f":"IF(OR('Enrollment Form'!$CR16=\"\",'Enrollment Form'!$CR16=\"No\"),\"-\",IF(COUNTA('Enrollment Form'!$CT16:$CU16)=2,\"Y\",\"N\"))","v":"-"},{"$f":"IF($B9=\"N\",\"\",IF(COUNTIF('Enrollment Form'!$DG16:$DP16,\"Other\")=COUNTA('Enrollment Form'!$DK16,'Enrollment Form'!$DH16,'Enrollment Form'!$DN16,'Enrollment Form'!$DQ16),\"Y\",\"N\"))","v":""},{"$f":"IF($B9=\"N\",\"\",IF(OR('Enrollment Form'!B16<>\"Subscriber\",'Enrollment Form'!C16=\"ROC\",COUNTIF('Enrollment Form'!AV16:AW16,\"Yes\")>=1),\"-\",IF(AND('Enrollment Form'!C16=\"Enroll\",COUNTIF('Enrollment Form'!AV16:AW16,\"No\")=2,'Enrollment Form'!AX16=\"\"),\"N\",\"Y\")))","v":""},{"$f":"IF(OR(B9=\"N\",'Enrollment Form'!B16<>\"Subscriber\",'Enrollment Form'!C16=\"ROC\",'Enrollment Form'!O16<>\"Multiple of Salary\"),\"-\",IF(COUNTA('Enrollment Form'!T16:U16)<2,\"N\",\"Y\"))","v":"-"},{"$f":"IF(B9=\"N\",\"\",IF(OR('Enrollment Form'!C16=\"ROC\",'Enrollment Form'!B16<>\"Subscriber\",'Enrollment Form'!O16=\"Waive\",'Enrollment Form'!O16=\"\"),\"-\",IF('Enrollment Form'!P16=\"\",\"N\",\"Y\")))","v":""},{"$f":"IF($B9=\"N\",\"\",IF(AND('Enrollment Form'!$C16=\"ROC\",'Enrollment Form'!$DR16<>\"\"),\"Y\",IF(AND('Enrollment Form'!$C16=\"ROC\",'Enrollment Form'!$DR16=\"\"),\"N\",IF(AND('Enrollment Form'!$C16=\"Enroll\",'Enrollment Form'!$B16=\"Subscriber\",'Enrollment Form'!$CX16=\"No\",'Enrollment Form'!$DR16=\"\"),\"N\",IF(AND('Enrollment Form'!$C16=\"Enroll\",'Enrollment Form'!$B16=\"Subscriber\",'Enrollment Form'!$CX16=\"Yes\"),\"-\",\"Y\")))))","v":""},{"$f":"IF($B9=\"N\",\"\",IF(AND('Enrollment Form'!$C16=\"ROC\",'Enrollment Form'!$DS16<>\"\"),\"Y\",IF(AND('Enrollment Form'!$C16=\"ROC\",'Enrollment Form'!$DS16=\"\"),\"N\",IF(AND('Enrollment Form'!$C16=\"Enroll\",'Enrollment Form'!$B16=\"Subscriber\",'Enrollment Form'!$CX16=\"No\",'Enrollment Form'!$DS16=\"\"),\"N\",IF(AND('Enrollment Form'!$C16=\"Enroll\",'Enrollment Form'!$B16=\"Subscriber\",'Enrollment Form'!$CX16=\"Yes\"),\"-\",\"Y\")))))","v":""},{"$f":"IF('Enrollment Form'!AH16=\"\",\"\",IF(ISERROR(SEARCH(\".\",'Enrollment Form'!AH16,SEARCH(\"@\",'Enrollment Form'!AH16))),\"N\",\"Y\"))","v":""},{"$f":"IF(OR($B9=\"N\",'Enrollment Form'!$G16=\"\"),\"\",IF('Enrollment Form'!$B16<>\"Subscriber\",\"-\",IF(COUNTIF('Enrollment Form'!$AV16:$AW16,\"Yes\")=2,\"N\",\"Y\")))","v":""},{"$f":"IF(OR('Enrollment Form'!$CJ16=\"\",'Enrollment Form'!$CJ16=\"No\"),\"-\",IF(AND('Enrollment Form'!$CJ16=\"Yes\",'Enrollment Form'!$CK16=\"\"),\"N\",\"Y\"))","v":"-"},{"$f":"IF(OR('Enrollment Form'!$CL16=\"\",'Enrollment Form'!$CL16=\"No\"),\"-\",IF(AND('Enrollment Form'!$CL16=\"Yes\",'Enrollment Form'!$CM16=\"\"),\"N\",\"Y\"))","v":"-"},{"$f":"IF(OR('Enrollment Form'!$CN16=\"\",'Enrollment Form'!$CN16=\"No\"),\"-\",IF(AND('Enrollment Form'!$CN16=\"Yes\",'Enrollment Form'!$CO16=\"\"),\"N\",\"Y\"))","v":"-"},{"$f":"IF(OR('Enrollment Form'!$CN16=\"\",'Enrollment Form'!$CN16=\"No\"),\"-\",IF(AND('Enrollment Form'!$CN16=\"Yes\",'Enrollment Form'!$CP16=\"\"),\"N\",\"Y\"))","v":"-"},{"$f":"IF('Enrollment Form'!B16<>\"Subscriber\",\"-\",IF(AND('Enrollment Form'!B16=\"Subscriber\",'Enrollment Form'!C16=\"Enroll\",'Enrollment Form'!AA16=\"\"),\"N\",\"Y\"))","v":"-"},{"$f":"IF(OR('Enrollment Form'!B16=\"Subscriber\",'Enrollment Form'!B16=\"\"),\"-\",IF('Enrollment Form'!BP16=\"\",\"N\",\"Y\"))","v":"-"},{"$f":"IF('Enrollment Form'!B16<>\"Subscriber\",\"-\",IF(AND('Enrollment Form'!B16=\"Subscriber\",'Enrollment Form'!G16=\"\"),\"N\",\"Y\"))","v":"-"},{"$f":"IF('Enrollment Form'!A16=\"\",\"\",IF('Enrollment Form'!B16=\"Subscriber\",\"-\",IF(AND('Enrollment Form'!B16<>\"Subscriber\",'Enrollment Form'!G16='Enrollment Form'!H16),\"N\",\"Y\")))","v":""},0,null,null,null,null,null,null,"06","Mail ZIP Code 5 digits?","ZIP code must be 5 characters long","AD"]
[17,{"$f":"IF('Enrollment Form'!$A17<>\"\",\"Y\",\"N\")","v":"N"},{"$f":"IF(AND('Enrollment Form'!$B17=\"\",'Enrollment Form'!$C17<>\"\"),\"N\",IF($B10=\"N\",\"\",\"Y\"))","v":""},{"$f":"IF(OR($B10=\"N\",'Enrollment Form'!G17=\"\"),\"\",IF('Enrollment Form'!$B17<>\"Subscriber\",\"\",IF('Enrollment Form'!$G17='Enrollment Form'!$H17,\"Y\",\"N\")))","v":""},{"$f":"IF($B10=\"N\",\"\",IF(AND(COUNTIFS('Enrollment Form'!$H$11:$H$1000,'Enrollment Form'!$H17,'Enrollment Form'!$B$11:$B$1000,'Enrollment Form'!$B17)>1,'Enrollment Form'!$H17<>\"\"),\"N\",\"Y\"))","v":""},{"$f":"IF($B10=\"N\",\"\",IF(LEN('Enrollment Form'!$Y17)=0,\"\",IF(LEN('Enrollment Form'!$Y17)<>5,\"N\",\"Y\")))","v":""},{"$f":"IF($B10=\"N\",\"\",IF(LEN('Enrollment Form'!$AD17=0),\"\",IF(LEN('Enrollment Form'!$AD17)<>5,\"N\",\"Y\")))","v":""},{"$f":"IF($B10=\"N\",\"\",IF(LEN('Enrollment Form'!$BS17=0),\"\",IF(LEN('Enrollment Form'!$BS17)<>5,\"N\",\"Y\")))","v":""},{"$f":"IF($B10=\"N\",\"\",IF(LEN('Enrollment Form'!$AE17)=0,\"\",IF(LEN('Enrollment Form'!$AE17)<>10,\"N\",\"Y\")))","v":""},{"$f":"IF($B10=\"N\",\"\",IF(LEN('Enrollment Form'!$AF17)=0,\"\",IF(LEN('Enrollment Form'!$AF17)<>10,\"N\",\"Y\")))","v":""},{"$f":"IF('Enrollment Form'!$O17<>\"Graded\",\"-\",IF(AND('Enrollment Form'!$O17=\"Graded\",'Enrollment Form'!$AR17<>\"\"),\"Y\",\"N\"))","v":"-"},{"$f":"IF($B10=\"N\",\"\",IF(OR('Enrollment Form'!$B17<>\"Subscriber\",'Enrollment Form'!$C17=\"ROC\"),\"-\",IF(AND('Enrollment Form'!$B17=\"Subscriber\",'Enrollment Form'!$C17=\"Enroll\",'Enrollment Form'!$AJ17<>\"\"),\"Y\",\"N\")))","v":""},{"$f":"IF($B10=\"N\",\"\",IF(OR('Enrollment Form'!$B17<>\"Subscriber\",'Enrollment Form'!$C17=\"ROC\"),\"-\",IF(AND('Enrollment Form'!$B17=\"Subscriber\",'Enrollment Form'!$C17=\"Enroll\",'Enrollment Form'!$AK17<>\"\"),\"Y\",\"N\")))","v":""},{"$f":"IF($B10=\"N\",\"\",IF(OR('Enrollment Form'!$B17<>\"Subscriber\",'Enrollment Form'!$C17=\"ROC\"),\"-\",IF(AND('Enrollment Form'!$B17=\"Subscriber\",'Enrollment Form'!$C17=\"Enroll\",'Enrollment Form'!$AL17<>\"\"),\"Y\",\"N\")))","v":""},{"$f":"IF($B10=\"N\",\"\",IF(OR('Enrollment Form'!$B17<>\"Subscriber\",'Enrollment Form'!$C17=\"ROC\"),\"-\",IF(AND('Enrollment Form'!$B17=\"Subscriber\",'Enrollment Form'!$C17=\"Enroll\",'Enrollment Form'!$AP17<>\"\"),\"Y\",\"N\")))","v":""},{"$f":"IF($B10=\"N\",\"\",IF(OR('Enrollment Form'!$B17<>\"Subscriber\",'Enrollment Form'!$C17=\"ROC\"),\"-\",IF(AND('Enrollment Form'!$B17=\"Subscriber\",'Enrollment Form'!$C17=\"Enroll\",'Enrollment Form'!$AQ17<>\"\"),\"Y\",\"N\")))","v":""},{"$f":"IF($B10=\"N\",\"\",IF(OR('Enrollment Form'!$B17<>\"Subscriber\",'Enrollment Form'!$C17=\"ROC\"),\"-\",IF(AND('Enrollment Form'!$B17=\"Subscriber\",'Enrollment Form'!$C17=\"Enroll\",'Enrollment Form'!$AS17<>\"\"),\"Y\",\"N\")))","v":""},{"$f":"IF($B10=\"N\",\"\",IF($Q10=\"-\",\"-\",IF(AND($Q10=\"Y\",'Enrollment Form'!$AS17=\"No\"),\"-\",IF(AND($Q10=\"Y\",'Enrollment Form'!$AS17=\"Yes\",'Enrollment Form'!$AT17<>\"\"),\"Y\",\"N\"))))","v":""},{"$f":"IF($B10=\"N\",\"\",IF(OR('Enrollment Form'!$B17<>\"Subscriber\",'Enrollment Form'!$C17=\"ROC\"),\"-\",IF(AND('Enrollment Form'!$B17=\"Subscriber\",'Enrollment Form'!$C17=\"Enroll\",'Enrollment Form'!$CV17<>\"\"),\"Y\",\"N\")))","v":""},{"$f":"IF($B10=\"N\",\"\",IF($S10=\"-\",\"-\",IF(AND($S10=\"Y\",'Enrollment Form'!$CV17=\"No\"),\"-\",IF(AND($S10=\"Y\",'Enrollment Form'!$CV17=\"Yes\",'Enrollment Form'!$CW17<>\"\"),\"Y\",\"N\"))))","v":""},{"$f":"IF(OR('Enrollment Form'!$AY17=\"Yes\",'Enrollment Form'!$AY17=\"\"),\"-\",IF(OR(AND('Enrollment Form'!$AY17=\"No\",ISERROR(FIND(\"HMO\",VLOOKUP('Enrollment Form'!G17,'Enrollment Form'!H$11:J$1000,3,FALSE),1))=FALSE,COUNTA('Enrollment Form'!$AZ17:$BC17)=4),AND('Enrollment Form'!$AY17=\"No\",ISERROR(FIND(\"HMO\",VLOOKUP('Enrollment Form'!G17,'Enrollment Form'!H$11:J$1000,3,FALSE),1))=FALSE,COUNTA('Enrollment Form'!$BT17:$BW17)=4)),\"Y\",\"N\"))","v":"-"},{"$f":"IF($B10=\"N\",\"\",IF('Enrollment Form'!$B17=\"Subscriber\",\"-\",IF(COUNTA('Enrollment Form'!$BL17,'Enrollment Form'!$BN17)=2,\"Y\",\"N\")))","v":""},{"$f":"IF($B10=\"N\",\"\",IF(OR('Enrollment Form'!$AX17=\"\",'Enrollment Form'!$AX17=\"No\"),\"-\",IF(AND('Enrollment Form'!$AX17=\"Yes\",COUNTA('Enrollment Form'!$CR17)=1),\"Y\",\"N\")))","v":""},{"$f":"IF(OR('Enrollment Form'!$CR17=\"\",'Enrollment Form'!$CR17=\"No\"),\"-\",IF(COUNTA('Enrollment Form'!$CT17:$CU17)=2,\"Y\",\"N\"))","v":"-"},{"$f":"IF($B10=\"N\",\"\",IF(COUNTIF('Enrollment Form'!$DG17:$DP17,\"Other\")=COUNTA('Enrollment Form'!$DK17,'Enrollment Form'!$DH17,'Enrollment Form'!$DN17,'Enrollment Form'!$DQ17),\"Y\",\"N\"))","v":""},{"$f":"IF($B10=\"N\",\"\",IF(OR('Enrollment Form'!B17<>\"Subscriber\",'Enrollment Form'!C17=\"ROC\",COUNTIF('Enrollment Form'!AV17:AW17,\"Yes\")>=1),\"-\",IF(AND('Enrollment Form'!C17=\"Enroll\",COUNTIF('Enrollment Form'!AV17:AW17,\"No\")=2,'Enrollment Form'!AX17=\"\"),\"N\",\"Y\")))","v":""},{"$f":"IF(OR(B10=\"N\",'Enrollment Form'!B17<>\"Subscriber\",'Enrollment Form'!C17=\"ROC\",'Enrollment Form'!O17<>\"Multiple of Salary\"),\"-\",IF(COUNTA('Enrollment Form'!T17:U17)<2,\"N\",\"Y\"))","v":"-"},{"$f":"IF(B10=\"N\",\"\",IF(OR('Enrollment Form'!C17=\"ROC\",'Enrollment Form'!B17<>\"Subscriber\",'Enrollment Form'!O17=\"Waive\",'Enrollment Form'!O17=\"\"),\"-\",IF('Enrollment Form'!P17=\"\",\"N\",\"Y\")))","v":""},{"$f":"IF($B10=\"N\",\"\",IF(AND('Enrollment Form'!$C17=\"ROC\",'Enrollment Form'!$DR17<>\"\"),\"Y\",IF(AND('Enrollment Form'!$C17=\"ROC\",'Enrollment Form'!$DR17=\"\"),\"N\",IF(AND('Enrollment Form'!$C17=\"Enroll\",'Enrollment Form'!$B17=\"Subscriber\",'Enrollment Form'!$CX17=\"No\",'Enrollment Form'!$DR17=\"\"),\"N\",IF(AND('Enrollment Form'!$C17=\"Enroll\",'Enrollment Form'!$B17=\"Subscriber\",'Enrollment Form'!$CX17=\"Yes\"),\"-\",\"Y\")))))","v":""},{"$f":"IF($B10=\"N\",\"\",IF(AND('Enrollment Form'!$C17=\"ROC\",'Enrollment Form'!$DS17<>\"\"),\"Y\",IF(AND('Enrollment Form'!$C17=\"ROC\",'Enrollment Form'!$DS17=\"\"),\"N\",IF(AND('Enrollment Form'!$C17=\"Enroll\",'Enrollment Form'!$B17=\"Subscriber\",'Enrollment Form'!$CX17=\"No\",'Enrollment Form'!$DS17=\"\"),\"N\",IF(AND('Enrollment Form'!$C17=\"Enroll\",'Enrollment Form'!$B17=\"Subscriber\",'Enrollment Form'!$CX17=\"Yes\"),\"-\",\"Y\")))))","v":""},{"$f":"IF('Enrollment Form'!AH17=\"\",\"\",IF(ISERROR(SEARCH(\".\",'Enrollment Form'!AH17,SEARCH(\"@\",'Enrollment Form'!AH17))),\"N\",\"Y\"))","v":""},{"$f":"IF(OR($B10=\"N\",'Enrollment Form'!$G17=\"\"),\"\",IF('Enrollment Form'!$B17<>\"Subscriber\",\"-\",IF(COUNTIF('Enrollment Form'!$AV17:$AW17,\"Yes\")=2,\"N\",\"Y\")))","v":""},{"$f":"IF(OR('Enrollment Form'!$CJ17=\"\",'Enrollment Form'!$CJ17=\"No\"),\"-\",IF(AND('Enrollment Form'!$CJ17=\"Yes\",'Enrollment Form'!$CK17=\"\"),\"N\",\"Y\"))","v":"-"},{"$f":"IF(OR('Enrollment Form'!$CL17=\"\",'Enrollment Form'!$CL17=\"No\"),\"-\",IF(AND('Enrollment Form'!$CL17=\"Yes\",'Enrollment Form'!$CM17=\"\"),\"N\",\"Y\"))","v":"-"},{"$f":"IF(OR('Enrollment Form'!$CN17=\"\",'Enrollment Form'!$CN17=\"No\"),\"-\",IF(AND('Enrollment Form'!$CN17=\"Yes\",'Enrollment Form'!$CO17=\"\"),\"N\",\"Y\"))","v":"-"},{"$f":"IF(OR('Enrollment Form'!$CN17=\"\",'Enrollment Form'!$CN17=\"No\"),\"-\",IF(AND('Enrollment Form'!$CN17=\"Yes\",'Enrollment Form'!$CP17=\"\"),\"N\",\"Y\"))","v":"-"},{"$f":"IF('Enrollment Form'!B17<>\"Subscriber\",\"-\",IF(AND('Enrollment Form'!B17=\"Subscriber\",'Enrollment Form'!C17=\"Enroll\",'Enrollment Form'!AA17=\"\"),\"N\",\"Y\"))","v":"-"},{"$f":"IF(OR('Enrollment Form'!B17=\"Subscriber\",'Enrollment Form'!B17=\"\"),\"-\",IF('Enrollment Form'!BP17=\"\",\"N\",\"Y\"))","v":"-"},{"$f":"IF('Enrollment Form'!B17<>\"Subscriber\",\"-\",IF(AND('Enrollment Form'!B17=\"Subscriber\",'Enrollment Form'!G17=\"\"),\"N\",\"Y\"))","v":"-"},{"$f":"IF('Enrollment Form'!A17=\"\",\"\",IF('Enrollment Form'!B17=\"Subscriber\",\"-\",IF(AND('Enrollment Form'!B17<>\"Subscriber\",'Enrollment Form'!G17='Enrollment Form'!H17),\"N\",\"Y\")))","v":""},0,null,null,null,null,null,null,"07","Depend ZIP Code 5 digits?","ZIP code must be 5 characters long","BS"]
[18,{"$f":"IF('Enrollment Form'!$A18<>\"\",\"Y\",\"N\")","v":"N"},{"$f":"IF(AND('Enrollment Form'!$B18=\"\",'Enrollment Form'!$C18<>\"\"),\"N\",IF($B11=\"N\",\"\",\"Y\"))","v":""},{"$f":"IF(OR($B11=\"N\",'Enrollment Form'!G18=\"\"),\"\",IF('Enrollment Form'!$B18<>\"Subscriber\",\"\",IF('Enrollment Form'!$G18='Enrollment Form'!$H18,\"Y\",\"N\")))","v":""},{"$f":"IF($B11=\"N\",\"\",IF(AND(COUNTIFS('Enrollment Form'!$H$11:$H$1000,'Enrollment Form'!$H18,'Enrollment Form'!$B$11:$B$1000,'Enrollment Form'!$B18)>1,'Enrollment Form'!$H18<>\"\"),\"N\",\"Y\"))","v":""},{"$f":"IF($B11=\"N\",\"\",IF(LEN('Enrollment Form'!$Y18)=0,\"\",IF(LEN('Enrollment Form'!$Y18)<>5,\"N\",\"Y\")))","v":""},{"$f":"IF($B11=\"N\",\"\",IF(LEN('Enrollment Form'!$AD18=0),\"\",IF(LEN('Enrollment Form'!$AD18)<>5,\"N\",\"Y\")))","v":""},{"$f":"IF($B11=\"N\",\"\",IF(LEN('Enrollment Form'!$BS18=0),\"\",IF(LEN('Enrollment Form'!$BS18)<>5,\"N\",\"Y\")))","v":""},{"$f":"IF($B11=\"N\",\"\",IF(LEN('Enrollment Form'!$AE18)=0,\"\",IF(LEN('Enrollment Form'!$AE18)<>10,\"N\",\"Y\")))","v":""},{"$f":"IF($B11=\"N\",\"\",IF(LEN('Enrollment Form'!$AF18)=0,\"\",IF(LEN('Enrollment Form'!$AF18)<>10,\"N\",\"Y\")))","v":""},{"$f":"IF('Enrollment Form'!$O18<>\"Graded\",\"-\",IF(AND('Enrollment Form'!$O18=\"Graded\",'Enrollment Form'!$AR18<>\"\"),\"Y\",\"N\"))","v":"-"},{"$f":"IF($B11=\"N\",\"\",IF(OR('Enrollment Form'!$B18<>\"Subscriber\",'Enrollment Form'!$C18=\"ROC\"),\"-\",IF(AND('Enrollment Form'!$B18=\"Subscriber\",'Enrollment Form'!$C18=\"Enroll\",'Enrollment Form'!$AJ18<>\"\"),\"Y\",\"N\")))","v":""},{"$f":"IF($B11=\"N\",\"\",IF(OR('Enrollment Form'!$B18<>\"Subscriber\",'Enrollment Form'!$C18=\"ROC\"),\"-\",IF(AND('Enrollment Form'!$B18=\"Subscriber\",'Enrollment Form'!$C18=\"Enroll\",'Enrollment Form'!$AK18<>\"\"),\"Y\",\"N\")))","v":""},{"$f":"IF($B11=\"N\",\"\",IF(OR('Enrollment Form'!$B18<>\"Subscriber\",'Enrollment Form'!$C18=\"ROC\"),\"-\",IF(AND('Enrollment Form'!$B18=\"Subscriber\",'Enrollment Form'!$C18=\"Enroll\",'Enrollment Form'!$AL18<>\"\"),\"Y\",\"N\")))","v":""},{"$f":"IF($B11=\"N\",\"\",IF(OR('Enrollment Form'!$B18<>\"Subscriber\",'Enrollment Form'!$C18=\"ROC\"),\"-\",IF(AND('Enrollment Form'!$B18=\"Subscriber\",'Enrollment Form'!$C18=\"Enroll\",'Enrollment Form'!$AP18<>\"\"),\"Y\",\"N\")))","v":""},{"$f":"IF($B11=\"N\",\"\",IF(OR('Enrollment Form'!$B18<>\"Subscriber\",'Enrollment Form'!$C18=\"ROC\"),\"-\",IF(AND('Enrollment Form'!$B18=\"Subscriber\",'Enrollment Form'!$C18=\"Enroll\",'Enrollment Form'!$AQ18<>\"\"),\"Y\",\"N\")))","v":""},{"$f":"IF($B11=\"N\",\"\",IF(OR('Enrollment Form'!$B18<>\"Subscriber\",'Enrollment Form'!$C18=\"ROC\"),\"-\",IF(AND('Enrollment Form'!$B18=\"Subscriber\",'Enrollment Form'!$C18=\"Enroll\",'Enrollment Form'!$AS18<>\"\"),\"Y\",\"N\")))","v":""},{"$f":"IF($B11=\"N\",\"\",IF($Q11=\"-\",\"-\",IF(AND($Q11=\"Y\",'Enrollment Form'!$AS18=\"No\"),\"-\",IF(AND($Q11=\"Y\",'Enrollment Form'!$AS18=\"Yes\",'Enrollment Form'!$AT18<>\"\"),\"Y\",\"N\"))))","v":""},{"$f":"IF($B11=\"N\",\"\",IF(OR('Enrollment Form'!$B18<>\"Subscriber\",'Enrollment Form'!$C18=\"ROC\"),\"-\",IF(AND('Enrollment Form'!$B18=\"Subscriber\",'Enrollment Form'!$C18=\"Enroll\",'Enrollment Form'!$CV18<>\"\"),\"Y\",\"N\")))","v":""},{"$f":"IF($B11=\"N\",\"\",IF($S11=\"-\",\"-\",IF(AND($S11=\"Y\",'Enrollment Form'!$CV18=\"No\"),\"-\",IF(AND($S11=\"Y\",'Enrollment Form'!$CV18=\"Yes\",'Enrollment Form'!$CW18<>\"\"),\"Y\",\"N\"))))","v":""},{"$f":"IF(OR('Enrollment Form'!$AY18=\"Yes\",'Enrollment Form'!$AY18=\"\"),\"-\",IF(OR(AND('Enrollment Form'!$AY18=\"No\",ISERROR(FIND(\"HMO\",VLOOKUP('Enrollment Form'!G18,'Enrollment Form'!H$11:J$1000,3,FALSE),1))=FALSE,COUNTA('Enrollment Form'!$AZ18:$BC18)=4),AND('Enrollment Form'!$AY18=\"No\",ISERROR(FIND(\"HMO\",VLOOKUP('Enrollment Form'!G18,'Enrollment Form'!H$11:J$1000,3,FALSE),1))=FALSE,COUNTA('Enrollment Form'!$BT18:$BW18)=4)),\"Y\",\"N\"))","v":"-"},{"$f":"IF($B11=\"N\",\"\",IF('Enrollment Form'!$B18=\"Subscriber\",\"-\",IF(COUNTA('Enrollment Form'!$BL18,'Enrollment Form'!$BN18)=2,\"Y\",\"N\")))","v":""},{"$f":"IF($B11=\"N\",\"\",IF(OR('Enrollment Form'!$AX18=\"\",'Enrollment Form'!$AX18=\"No\"),\"-\",IF(AND('Enrollment Form'!$AX18=\"Yes\",COUNTA('Enrollment Form'!$CR18)=1),\"Y\",\"N\")))","v":""},{"$f":"IF(OR('Enrollment Form'!$CR18=\"\",'Enrollment Form'!$CR18=\"No\"),\"-\",IF(COUNTA('Enrollment Form'!$CT18:$CU18)=2,\"Y\",\"N\"))","v":"-"},{"$f":"IF($B11=\"N\",\"\",IF(COUNTIF('Enrollment Form'!$DG18:$DP18,\"Other\")=COUNTA('Enrollment Form'!$DK18,'Enrollment Form'!$DH18,'Enrollment Form'!$DN18,'Enrollment Form'!$DQ18),\"Y\",\"N\"))","v":""},{"$f":"IF($B11=\"N\",\"\",IF(OR('Enrollment Form'!B18<>\"Subscriber\",'Enrollment Form'!C18=\"ROC\",COUNTIF('Enrollment Form'!AV18:AW18,\"Yes\")>=1),\"-\",IF(AND('Enrollment Form'!C18=\"Enroll\",COUNTIF('Enrollment Form'!AV18:AW18,\"No\")=2,'Enrollment Form'!AX18=\"\"),\"N\",\"Y\")))","v":""},{"$f":"IF(OR(B11=\"N\",'Enrollment Form'!B18<>\"Subscriber\",'Enrollment Form'!C18=\"ROC\",'Enrollment Form'!O18<>\"Multiple of Salary\"),\"-\",IF(COUNTA('Enrollment Form'!T18:U18)<2,\"N\",\"Y\"))","v":"-"},{"$f":"IF(B11=\"N\",\"\",IF(OR('Enrollment Form'!C18=\"ROC\",'Enrollment Form'!B18<>\"Subscriber\",'Enrollment Form'!O18=\"Waive\",'Enrollment Form'!O18=\"\"),\"-\",IF('Enrollment Form'!P18=\"\",\"N\",\"Y\")))","v":""},{"$f":"IF($B11=\"N\",\"\",IF(AND('Enrollment Form'!$C18=\"ROC\",'Enrollment Form'!$DR18<>\"\"),\"Y\",IF(AND('Enrollment Form'!$C18=\"ROC\",'Enrollment Form'!$DR18=\"\"),\"N\",IF(AND('Enrollment Form'!$C18=\"Enroll\",'Enrollment Form'!$B18=\"Subscriber\",'Enrollment Form'!$CX18=\"No\",'Enrollment Form'!$DR18=\"\"),\"N\",IF(AND('Enrollment Form'!$C18=\"Enroll\",'Enrollment Form'!$B18=\"Subscriber\",'Enrollment Form'!$CX18=\"Yes\"),\"-\",\"Y\")))))","v":""},{"$f":"IF($B11=\"N\",\"\",IF(AND('Enrollment Form'!$C18=\"ROC\",'Enrollment Form'!$DS18<>\"\"),\"Y\",IF(AND('Enrollment Form'!$C18=\"ROC\",'Enrollment Form'!$DS18=\"\"),\"N\",IF(AND('Enrollment Form'!$C18=\"Enroll\",'Enrollment Form'!$B18=\"Subscriber\",'Enrollment Form'!$CX18=\"No\",'Enrollment Form'!$DS18=\"\"),\"N\",IF(AND('Enrollment Form'!$C18=\"Enroll\",'Enrollment Form'!$B18=\"Subscriber\",'Enrollment Form'!$CX18=\"Yes\"),\"-\",\"Y\")))))","v":""},{"$f":"IF('Enrollment Form'!AH18=\"\",\"\",IF(ISERROR(SEARCH(\".\",'Enrollment Form'!AH18,SEARCH(\"@\",'Enrollment Form'!AH18))),\"N\",\"Y\"))","v":""},{"$f":"IF(OR($B11=\"N\",'Enrollment Form'!$G18=\"\"),\"\",IF('Enrollment Form'!$B18<>\"Subscriber\",\"-\",IF(COUNTIF('Enrollment Form'!$AV18:$AW18,\"Yes\")=2,\"N\",\"Y\")))","v":""},{"$f":"IF(OR('Enrollment Form'!$CJ18=\"\",'Enrollment Form'!$CJ18=\"No\"),\"-\",IF(AND('Enrollment Form'!$CJ18=\"Yes\",'Enrollment Form'!$CK18=\"\"),\"N\",\"Y\"))","v":"-"},{"$f":"IF(OR('Enrollment Form'!$CL18=\"\",'Enrollment Form'!$CL18=\"No\"),\"-\",IF(AND('Enrollment Form'!$CL18=\"Yes\",'Enrollment Form'!$CM18=\"\"),\"N\",\"Y\"))","v":"-"},{"$f":"IF(OR('Enrollment Form'!$CN18=\"\",'Enrollment Form'!$CN18=\"No\"),\"-\",IF(AND('Enrollment Form'!$CN18=\"Yes\",'Enrollment Form'!$CO18=\"\"),\"N\",\"Y\"))","v":"-"},{"$f":"IF(OR('Enrollment Form'!$CN18=\"\",'Enrollment Form'!$CN18=\"No\"),\"-\",IF(AND('Enrollment Form'!$CN18=\"Yes\",'Enrollment Form'!$CP18=\"\"),\"N\",\"Y\"))","v":"-"},{"$f":"IF('Enrollment Form'!B18<>\"Subscriber\",\"-\",IF(AND('Enrollment Form'!B18=\"Subscriber\",'Enrollment Form'!C18=\"Enroll\",'Enrollment Form'!AA18=\"\"),\"N\",\"Y\"))","v":"-"},{"$f":"IF(OR('Enrollment Form'!B18=\"Subscriber\",'Enrollment Form'!B18=\"\"),\"-\",IF('Enrollment Form'!BP18=\"\",\"N\",\"Y\"))","v":"-"},{"$f":"IF('Enrollment Form'!B18<>\"Subscriber\",\"-\",IF(AND('Enrollment Form'!B18=\"Subscriber\",'Enrollment Form'!G18=\"\"),\"N\",\"Y\"))","v":"-"},{"$f":"IF('Enrollment Form'!A18=\"\",\"\",IF('Enrollment Form'!B18=\"Subscriber\",\"-\",IF(AND('Enrollment Form'!B18<>\"Subscriber\",'Enrollment Form'!G18='Enrollment Form'!H18),\"N\",\"Y\")))","v":""},0,null,null,null,null,null,null,"08","Sub Work Phone 10 digits?","Phone number must be 10 characters long","AF"]
[19,{"$f":"IF('Enrollment Form'!$A19<>\"\",\"Y\",\"N\")","v":"N"},{"$f":"IF(AND('Enrollment Form'!$B19=\"\",'Enrollment Form'!$C19<>\"\"),\"N\",IF($B12=\"N\",\"\",\"Y\"))","v":""},{"$f":"IF(OR($B12=\"N\",'Enrollment Form'!G19=\"\"),\"\",IF('Enrollment Form'!$B19<>\"Subscriber\",\"\",IF('Enrollment Form'!$G19='Enrollment Form'!$H19,\"Y\",\"N\")))","v":""},{"$f":"IF($B12=\"N\",\"\",IF(AND(COUNTIFS('Enrollment Form'!$H$11:$H$1000,'Enrollment Form'!$H19,'Enrollment Form'!$B$11:$B$1000,'Enrollment Form'!$B19)>1,'Enrollment Form'!$H19<>\"\"),\"N\",\"Y\"))","v":""},{"$f":"IF($B12=\"N\",\"\",IF(LEN('Enrollment Form'!$Y19)=0,\"\",IF(LEN('Enrollment Form'!$Y19)<>5,\"N\",\"Y\")))","v":""},{"$f":"IF($B12=\"N\",\"\",IF(LEN('Enrollment Form'!$AD19=0),\"\",IF(LEN('Enrollment Form'!$AD19)<>5,\"N\",\"Y\")))","v":""},{"$f":"IF($B12=\"N\",\"\",IF(LEN('Enrollment Form'!$BS19=0),\"\",IF(LEN('Enrollment Form'!$BS19)<>5,\"N\",\"Y\")))","v":""},{"$f":"IF($B12=\"N\",\"\",IF(LEN('Enrollment Form'!$AE19)=0,\"\",IF(LEN('Enrollment Form'!$AE19)<>10,\"N\",\"Y\")))","v":""},{"$f":"IF($B12=\"N\",\"\",IF(LEN('Enrollment Form'!$AF19)=0,\"\",IF(LEN('Enrollment Form'!$AF19)<>10,\"N\",\"Y\")))","v":""},{"$f":"IF('Enrollment Form'!$O19<>\"Graded\",\"-\",IF(AND('Enrollment Form'!$O19=\"Graded\",'Enrollment Form'!$AR19<>\"\"),\"Y\",\"N\"))","v":"-"},{"$f":"IF($B12=\"N\",\"\",IF(OR('Enrollment Form'!$B19<>\"Subscriber\",'Enrollment Form'!$C19=\"ROC\"),\"-\",IF(AND('Enrollment Form'!$B19=\"Subscriber\",'Enrollment Form'!$C19=\"Enroll\",'Enrollment Form'!$AJ19<>\"\"),\"Y\",\"N\")))","v":""},{"$f":"IF($B12=\"N\",\"\",IF(OR('Enrollment Form'!$B19<>\"Subscriber\",'Enrollment Form'!$C19=\"ROC\"),\"-\",IF(AND('Enrollment Form'!$B19=\"Subscriber\",'Enrollment Form'!$C19=\"Enroll\",'Enrollment Form'!$AK19<>\"\"),\"Y\",\"N\")))","v":""},{"$f":"IF($B12=\"N\",\"\",IF(OR('Enrollment Form'!$B19<>\"Subscriber\",'Enrollment Form'!$C19=\"ROC\"),\"-\",IF(AND('Enrollment Form'!$B19=\"Subscriber\",'Enrollment Form'!$C19=\"Enroll\",'Enrollment Form'!$AL19<>\"\"),\"Y\",\"N\")))","v":""},{"$f":"IF($B12=\"N\",\"\",IF(OR('Enrollment Form'!$B19<>\"Subscriber\",'Enrollment Form'!$C19=\"ROC\"),\"-\",IF(AND('Enrollment Form'!$B19=\"Subscriber\",'Enrollment Form'!$C19=\"Enroll\",'Enrollment Form'!$AP19<>\"\"),\"Y\",\"N\")))","v":""},{"$f":"IF($B12=\"N\",\"\",IF(OR('Enrollment Form'!$B19<>\"Subscriber\",'Enrollment Form'!$C19=\"ROC\"),\"-\",IF(AND('Enrollment Form'!$B19=\"Subscriber\",'Enrollment Form'!$C19=\"Enroll\",'Enrollment Form'!$AQ19<>\"\"),\"Y\",\"N\")))","v":""},{"$f":"IF($B12=\"N\",\"\",IF(OR('Enrollment Form'!$B19<>\"Subscriber\",'Enrollment Form'!$C19=\"ROC\"),\"-\",IF(AND('Enrollment Form'!$B19=\"Subscriber\",'Enrollment Form'!$C19=\"Enroll\",'Enrollment Form'!$AS19<>\"\"),\"Y\",\"N\")))","v":""},{"$f":"IF($B12=\"N\",\"\",IF($Q12=\"-\",\"-\",IF(AND($Q12=\"Y\",'Enrollment Form'!$AS19=\"No\"),\"-\",IF(AND($Q12=\"Y\",'Enrollment Form'!$AS19=\"Yes\",'Enrollment Form'!$AT19<>\"\"),\"Y\",\"N\"))))","v":""},{"$f":"IF($B12=\"N\",\"\",IF(OR('Enrollment Form'!$B19<>\"Subscriber\",'Enrollment Form'!$C19=\"ROC\"),\"-\",IF(AND('Enrollment Form'!$B19=\"Subscriber\",'Enrollment Form'!$C19=\"Enroll\",'Enrollment Form'!$CV19<>\"\"),\"Y\",\"N\")))","v":""},{"$f":"IF($B12=\"N\",\"\",IF($S12=\"-\",\"-\",IF(AND($S12=\"Y\",'Enrollment Form'!$CV19=\"No\"),\"-\",IF(AND($S12=\"Y\",'Enrollment Form'!$CV19=\"Yes\",'Enrollment Form'!$CW19<>\"\"),\"Y\",\"N\"))))","v":""},{"$f":"IF(OR('Enrollment Form'!$AY19=\"Yes\",'Enrollment Form'!$AY19=\"\"),\"-\",IF(OR(AND('Enrollment Form'!$AY19=\"No\",ISERROR(FIND(\"HMO\",VLOOKUP('Enrollment Form'!G19,'Enrollment Form'!H$11:J$1000,3,FALSE),1))=FALSE,COUNTA('Enrollment Form'!$AZ19:$BC19)=4),AND('Enrollment Form'!$AY19=\"No\",ISERROR(FIND(\"HMO\",VLOOKUP('Enrollment Form'!G19,'Enrollment Form'!H$11:J$1000,3,FALSE),1))=FALSE,COUNTA('Enrollment Form'!$BT19:$BW19)=4)),\"Y\",\"N\"))","v":"-"},{"$f":"IF($B12=\"N\",\"\",IF('Enrollment Form'!$B19=\"Subscriber\",\"-\",IF(COUNTA('Enrollment Form'!$BL19,'Enrollment Form'!$BN19)=2,\"Y\",\"N\")))","v":""},{"$f":"IF($B12=\"N\",\"\",IF(OR('Enrollment Form'!$AX19=\"\",'Enrollment Form'!$AX19=\"No\"),\"-\",IF(AND('Enrollment Form'!$AX19=\"Yes\",COUNTA('Enrollment Form'!$CR19)=1),\"Y\",\"N\")))","v":""},{"$f":"IF(OR('Enrollment Form'!$CR19=\"\",'Enrollment Form'!$CR19=\"No\"),\"-\",IF(COUNTA('Enrollment Form'!$CT19:$CU19)=2,\"Y\",\"N\"))","v":"-"},{"$f":"IF($B12=\"N\",\"\",IF(COUNTIF('Enrollment Form'!$DG19:$DP19,\"Other\")=COUNTA('Enrollment Form'!$DK19,'Enrollment Form'!$DH19,'Enrollment Form'!$DN19,'Enrollment Form'!$DQ19),\"Y\",\"N\"))","v":""},{"$f":"IF($B12=\"N\",\"\",IF(OR('Enrollment Form'!B19<>\"Subscriber\",'Enrollment Form'!C19=\"ROC\",COUNTIF('Enrollment Form'!AV19:AW19,\"Yes\")>=1),\"-\",IF(AND('Enrollment Form'!C19=\"Enroll\",COUNTIF('Enrollment Form'!AV19:AW19,\"No\")=2,'Enrollment Form'!AX19=\"\"),\"N\",\"Y\")))","v":""},{"$f":"IF(OR(B12=\"N\",'Enrollment Form'!B19<>\"Subscriber\",'Enrollment Form'!C19=\"ROC\",'Enrollment Form'!O19<>\"Multiple of Salary\"),\"-\",IF(COUNTA('Enrollment Form'!T19:U19)<2,\"N\",\"Y\"))","v":"-"},{"$f":"IF(B12=\"N\",\"\",IF(OR('Enrollment Form'!C19=\"ROC\",'Enrollment Form'!B19<>\"Subscriber\",'Enrollment Form'!O19=\"Waive\",'Enrollment Form'!O19=\"\"),\"-\",IF('Enrollment Form'!P19=\"\",\"N\",\"Y\")))","v":""},{"$f":"IF($B12=\"N\",\"\",IF(AND('Enrollment Form'!$C19=\"ROC\",'Enrollment Form'!$DR19<>\"\"),\"Y\",IF(AND('Enrollment Form'!$C19=\"ROC\",'Enrollment Form'!$DR19=\"\"),\"N\",IF(AND('Enrollment Form'!$C19=\"Enroll\",'Enrollment Form'!$B19=\"Subscriber\",'Enrollment Form'!$CX19=\"No\",'Enrollment Form'!$DR19=\"\"),\"N\",IF(AND('Enrollment Form'!$C19=\"Enroll\",'Enrollment Form'!$B19=\"Subscriber\",'Enrollment Form'!$CX19=\"Yes\"),\"-\",\"Y\")))))","v":""},{"$f":"IF($B12=\"N\",\"\",IF(AND('Enrollment Form'!$C19=\"ROC\",'Enrollment Form'!$DS19<>\"\"),\"Y\",IF(AND('Enrollment Form'!$C19=\"ROC\",'Enrollment Form'!$DS19=\"\"),\"N\",IF(AND('Enrollment Form'!$C19=\"Enroll\",'Enrollment Form'!$B19=\"Subscriber\",'Enrollment Form'!$CX19=\"No\",'Enrollment Form'!$DS19=\"\"),\"N\",IF(AND('Enrollment Form'!$C19=\"Enroll\",'Enrollment Form'!$B19=\"Subscriber\",'Enrollment Form'!$CX19=\"Yes\"),\"-\",\"Y\")))))","v":""},{"$f":"IF('Enrollment Form'!AH19=\"\",\"\",IF(ISERROR(SEARCH(\".\",'Enrollment Form'!AH19,SEARCH(\"@\",'Enrollment Form'!AH19))),\"N\",\"Y\"))","v":""},{"$f":"IF(OR($B12=\"N\",'Enrollment Form'!$G19=\"\"),\"\",IF('Enrollment Form'!$B19<>\"Subscriber\",\"-\",IF(COUNTIF('Enrollment Form'!$AV19:$AW19,\"Yes\")=2,\"N\",\"Y\")))","v":""},{"$f":"IF(OR('Enrollment Form'!$CJ19=\"\",'Enrollment Form'!$CJ19=\"No\"),\"-\",IF(AND('Enrollment Form'!$CJ19=\"Yes\",'Enrollment Form'!$CK19=\"\"),\"N\",\"Y\"))","v":"-"},{"$f":"IF(OR('Enrollment Form'!$CL19=\"\",'Enrollment Form'!$CL19=\"No\"),\"-\",IF(AND('Enrollment Form'!$CL19=\"Yes\",'Enrollment Form'!$CM19=\"\"),\"N\",\"Y\"))","v":"-"},{"$f":"IF(OR('Enrollment Form'!$CN19=\"\",'Enrollment Form'!$CN19=\"No\"),\"-\",IF(AND('Enrollment Form'!$CN19=\"Yes\",'Enrollment Form'!$CO19=\"\"),\"N\",\"Y\"))","v":"-"},{"$f":"IF(OR('Enrollment Form'!$CN19=\"\",'Enrollment Form'!$CN19=\"No\"),\"-\",IF(AND('Enrollment Form'!$CN19=\"Yes\",'Enrollment Form'!$CP19=\"\"),\"N\",\"Y\"))","v":"-"},{"$f":"IF('Enrollment Form'!B19<>\"Subscriber\",\"-\",IF(AND('Enrollment Form'!B19=\"Subscriber\",'Enrollment Form'!C19=\"Enroll\",'Enrollment Form'!AA19=\"\"),\"N\",\"Y\"))","v":"-"},{"$f":"IF(OR('Enrollment Form'!B19=\"Subscriber\",'Enrollment Form'!B19=\"\"),\"-\",IF('Enrollment Form'!BP19=\"\",\"N\",\"Y\"))","v":"-"},{"$f":"IF('Enrollment Form'!B19<>\"Subscriber\",\"-\",IF(AND('Enrollment Form'!B19=\"Subscriber\",'Enrollment Form'!G19=\"\"),\"N\",\"Y\"))","v":"-"},{"$f":"IF('Enrollment Form'!A19=\"\",\"\",IF('Enrollment Form'!B19=\"Subscriber\",\"-\",IF(AND('Enrollment Form'!B19<>\"Subscriber\",'Enrollment Form'!G19='Enrollment Form'!H19),\"N\",\"Y\")))","v":""},0,null,null,null,null,null,null,"09","Sub Home Phone 10 digits?","Phone number must be 10 characters long","AE"]
[20,{"$f":"IF('Enrollment Form'!$A20<>\"\",\"Y\",\"N\")","v":"N"},{"$f":"IF(AND('Enrollment Form'!$B20=\"\",'Enrollment Form'!$C20<>\"\"),\"N\",IF($B13=\"N\",\"\",\"Y\"))","v":""},{"$f":"IF(OR($B13=\"N\",'Enrollment Form'!G20=\"\"),\"\",IF('Enrollment Form'!$B20<>\"Subscriber\",\"\",IF('Enrollment Form'!$G20='Enrollment Form'!$H20,\"Y\",\"N\")))","v":""},{"$f":"IF($B13=\"N\",\"\",IF(AND(COUNTIFS('Enrollment Form'!$H$11:$H$1000,'Enrollment Form'!$H20,'Enrollment Form'!$B$11:$B$1000,'Enrollment Form'!$B20)>1,'Enrollment Form'!$H20<>\"\"),\"N\",\"Y\"))","v":""},{"$f":"IF($B13=\"N\",\"\",IF(LEN('Enrollment Form'!$Y20)=0,\"\",IF(LEN('Enrollment Form'!$Y20)<>5,\"N\",\"Y\")))","v":""},{"$f":"IF($B13=\"N\",\"\",IF(LEN('Enrollment Form'!$AD20=0),\"\",IF(LEN('Enrollment Form'!$AD20)<>5,\"N\",\"Y\")))","v":""},{"$f":"IF($B13=\"N\",\"\",IF(LEN('Enrollment Form'!$BS20=0),\"\",IF(LEN('Enrollment Form'!$BS20)<>5,\"N\",\"Y\")))","v":""},{"$f":"IF($B13=\"N\",\"\",IF(LEN('Enrollment Form'!$AE20)=0,\"\",IF(LEN('Enrollment Form'!$AE20)<>10,\"N\",\"Y\")))","v":""},{"$f":"IF($B13=\"N\",\"\",IF(LEN('Enrollment Form'!$AF20)=0,\"\",IF(LEN('Enrollment Form'!$AF20)<>10,\"N\",\"Y\")))","v":""},{"$f":"IF('Enrollment Form'!$O20<>\"Graded\",\"-\",IF(AND('Enrollment Form'!$O20=\"Graded\",'Enrollment Form'!$AR20<>\"\"),\"Y\",\"N\"))","v":"-"},{"$f":"IF($B13=\"N\",\"\",IF(OR('Enrollment Form'!$B20<>\"Subscriber\",'Enrollment Form'!$C20=\"ROC\"),\"-\",IF(AND('Enrollment Form'!$B20=\"Subscriber\",'Enrollment Form'!$C20=\"Enroll\",'Enrollment Form'!$AJ20<>\"\"),\"Y\",\"N\")))","v":""},{"$f":"IF($B13=\"N\",\"\",IF(OR('Enrollment Form'!$B20<>\"Subscriber\",'Enrollment Form'!$C20=\"ROC\"),\"-\",IF(AND('Enrollment Form'!$B20=\"Subscriber\",'Enrollment Form'!$C20=\"Enroll\",'Enrollment Form'!$AK20<>\"\"),\"Y\",\"N\")))","v":""},{"$f":"IF($B13=\"N\",\"\",IF(OR('Enrollment Form'!$B20<>\"Subscriber\",'Enrollment Form'!$C20=\"ROC\"),\"-\",IF(AND('Enrollment Form'!$B20=\"Subscriber\",'Enrollment Form'!$C20=\"Enroll\",'Enrollment Form'!$AL20<>\"\"),\"Y\",\"N\")))","v":""},{"$f":"IF($B13=\"N\",\"\",IF(OR('Enrollment Form'!$B20<>\"Subscriber\",'Enrollment Form'!$C20=\"ROC\"),\"-\",IF(AND('Enrollment Form'!$B20=\"Subscriber\",'Enrollment Form'!$C20=\"Enroll\",'Enrollment Form'!$AP20<>\"\"),\"Y\",\"N\")))","v":""},{"$f":"IF($B13=\"N\",\"\",IF(OR('Enrollment Form'!$B20<>\"Subscriber\",'Enrollment Form'!$C20=\"ROC\"),\"-\",IF(AND('Enrollment Form'!$B20=\"Subscriber\",'Enrollment Form'!$C20=\"Enroll\",'Enrollment Form'!$AQ20<>\"\"),\"Y\",\"N\")))","v":""},{"$f":"IF($B13=\"N\",\"\",IF(OR('Enrollment Form'!$B20<>\"Subscriber\",'Enrollment Form'!$C20=\"ROC\"),\"-\",IF(AND('Enrollment Form'!$B20=\"Subscriber\",'Enrollment Form'!$C20=\"Enroll\",'Enrollment Form'!$AS20<>\"\"),\"Y\",\"N\")))","v":""},{"$f":"IF($B13=\"N\",\"\",IF($Q13=\"-\",\"-\",IF(AND($Q13=\"Y\",'Enrollment Form'!$AS20=\"No\"),\"-\",IF(AND($Q13=\"Y\",'Enrollment Form'!$AS20=\"Yes\",'Enrollment Form'!$AT20<>\"\"),\"Y\",\"N\"))))","v":""},{"$f":"IF($B13=\"N\",\"\",IF(OR('Enrollment Form'!$B20<>\"Subscriber\",'Enrollment Form'!$C20=\"ROC\"),\"-\",IF(AND('Enrollment Form'!$B20=\"Subscriber\",'Enrollment Form'!$C20=\"Enroll\",'Enrollment Form'!$CV20<>\"\"),\"Y\",\"N\")))","v":""},{"$f":"IF($B13=\"N\",\"\",IF($S13=\"-\",\"-\",IF(AND($S13=\"Y\",'Enrollment Form'!$CV20=\"No\"),\"-\",IF(AND($S13=\"Y\",'Enrollment Form'!$CV20=\"Yes\",'Enrollment Form'!$CW20<>\"\"),\"Y\",\"N\"))))","v":""},{"$f":"IF(OR('Enrollment Form'!$AY20=\"Yes\",'Enrollment Form'!$AY20=\"\"),\"-\",IF(OR(AND('Enrollment Form'!$AY20=\"No\",ISERROR(FIND(\"HMO\",VLOOKUP('Enrollment Form'!G20,'Enrollment Form'!H$11:J$1000,3,FALSE),1))=FALSE,COUNTA('Enrollment Form'!$AZ20:$BC20)=4),AND('Enrollment Form'!$AY20=\"No\",ISERROR(FIND(\"HMO\",VLOOKUP('Enrollment Form'!G20,'Enrollment Form'!H$11:J$1000,3,FALSE),1))=FALSE,COUNTA('Enrollment Form'!$BT20:$BW20)=4)),\"Y\",\"N\"))","v":"-"},{"$f":"IF($B13=\"N\",\"\",IF('Enrollment Form'!$B20=\"Subscriber\",\"-\",IF(COUNTA('Enrollment Form'!$BL20,'Enrollment Form'!$BN20)=2,\"Y\",\"N\")))","v":""},{"$f":"IF($B13=\"N\",\"\",IF(OR('Enrollment Form'!$AX20=\"\",'Enrollment Form'!$AX20=\"No\"),\"-\",IF(AND('Enrollment Form'!$AX20=\"Yes\",COUNTA('Enrollment Form'!$CR20)=1),\"Y\",\"N\")))","v":""},{"$f":"IF(OR('Enrollment Form'!$CR20=\"\",'Enrollment Form'!$CR20=\"No\"),\"-\",IF(COUNTA('Enrollment Form'!$CT20:$CU20)=2,\"Y\",\"N\"))","v":"-"},{"$f":"IF($B13=\"N\",\"\",IF(COUNTIF('Enrollment Form'!$DG20:$DP20,\"Other\")=COUNTA('Enrollment Form'!$DK20,'Enrollment Form'!$DH20,'Enrollment Form'!$DN20,'Enrollment Form'!$DQ20),\"Y\",\"N\"))","v":""},{"$f":"IF($B13=\"N\",\"\",IF(OR('Enrollment Form'!B20<>\"Subscriber\",'Enrollment Form'!C20=\"ROC\",COUNTIF('Enrollment Form'!AV20:AW20,\"Yes\")>=1),\"-\",IF(AND('Enrollment Form'!C20=\"Enroll\",COUNTIF('Enrollment Form'!AV20:AW20,\"No\")=2,'Enrollment Form'!AX20=\"\"),\"N\",\"Y\")))","v":""},{"$f":"IF(OR(B13=\"N\",'Enrollment Form'!B20<>\"Subscriber\",'Enrollment Form'!C20=\"ROC\",'Enrollment Form'!O20<>\"Multiple of Salary\"),\"-\",IF(COUNTA('Enrollment Form'!T20:U20)<2,\"N\",\"Y\"))","v":"-"},{"$f":"IF(B13=\"N\",\"\",IF(OR('Enrollment Form'!C20=\"ROC\",'Enrollment Form'!B20<>\"Subscriber\",'Enrollment Form'!O20=\"Waive\",'Enrollment Form'!O20=\"\"),\"-\",IF('Enrollment Form'!P20=\"\",\"N\",\"Y\")))","v":""},{"$f":"IF($B13=\"N\",\"\",IF(AND('Enrollment Form'!$C20=\"ROC\",'Enrollment Form'!$DR20<>\"\"),\"Y\",IF(AND('Enrollment Form'!$C20=\"ROC\",'Enrollment Form'!$DR20=\"\"),\"N\",IF(AND('Enrollment Form'!$C20=\"Enroll\",'Enrollment Form'!$B20=\"Subscriber\",'Enrollment Form'!$CX20=\"No\",'Enrollment Form'!$DR20=\"\"),\"N\",IF(AND('Enrollment Form'!$C20=\"Enroll\",'Enrollment Form'!$B20=\"Subscriber\",'Enrollment Form'!$CX20=\"Yes\"),\"-\",\"Y\")))))","v":""},{"$f":"IF($B13=\"N\",\"\",IF(AND('Enrollment Form'!$C20=\"ROC\",'Enrollment Form'!$DS20<>\"\"),\"Y\",IF(AND('Enrollment Form'!$C20=\"ROC\",'Enrollment Form'!$DS20=\"\"),\"N\",IF(AND('Enrollment Form'!$C20=\"Enroll\",'Enrollment Form'!$B20=\"Subscriber\",'Enrollment Form'!$CX20=\"No\",'Enrollment Form'!$DS20=\"\"),\"N\",IF(AND('Enrollment Form'!$C20=\"Enroll\",'Enrollment Form'!$B20=\"Subscriber\",'Enrollment Form'!$CX20=\"Yes\"),\"-\",\"Y\")))))","v":""},{"$f":"IF('Enrollment Form'!AH20=\"\",\"\",IF(ISERROR(SEARCH(\".\",'Enrollment Form'!AH20,SEARCH(\"@\",'Enrollment Form'!AH20))),\"N\",\"Y\"))","v":""},{"$f":"IF(OR($B13=\"N\",'Enrollment Form'!$G20=\"\"),\"\",IF('Enrollment Form'!$B20<>\"Subscriber\",\"-\",IF(COUNTIF('Enrollment Form'!$AV20:$AW20,\"Yes\")=2,\"N\",\"Y\")))","v":""},{"$f":"IF(OR('Enrollment Form'!$CJ20=\"\",'Enrollment Form'!$CJ20=\"No\"),\"-\",IF(AND('Enrollment Form'!$CJ20=\"Yes\",'Enrollment Form'!$CK20=\"\"),\"N\",\"Y\"))","v":"-"},{"$f":"IF(OR('Enrollment Form'!$CL20=\"\",'Enrollment Form'!$CL20=\"No\"),\"-\",IF(AND('Enrollment Form'!$CL20=\"Yes\",'Enrollment Form'!$CM20=\"\"),\"N\",\"Y\"))","v":"-"},{"$f":"IF(OR('Enrollment Form'!$CN20=\"\",'Enrollment Form'!$CN20=\"No\"),\"-\",IF(AND('Enrollment Form'!$CN20=\"Yes\",'Enrollment Form'!$CO20=\"\"),\"N\",\"Y\"))","v":"-"},{"$f":"IF(OR('Enrollment Form'!$CN20=\"\",'Enrollment Form'!$CN20=\"No\"),\"-\",IF(AND('Enrollment Form'!$CN20=\"Yes\",'Enrollment Form'!$CP20=\"\"),\"N\",\"Y\"))","v":"-"},{"$f":"IF('Enrollment Form'!B20<>\"Subscriber\",\"-\",IF(AND('Enrollment Form'!B20=\"Subscriber\",'Enrollment Form'!C20=\"Enroll\",'Enrollment Form'!AA20=\"\"),\"N\",\"Y\"))","v":"-"},{"$f":"IF(OR('Enrollment Form'!B20=\"Subscriber\",'Enrollment Form'!B20=\"\"),\"-\",IF('Enrollment Form'!BP20=\"\",\"N\",\"Y\"))","v":"-"},{"$f":"IF('Enrollment Form'!B20<>\"Subscriber\",\"-\",IF(AND('Enrollment Form'!B20=\"Subscriber\",'Enrollment Form'!G20=\"\"),\"N\",\"Y\"))","v":"-"},{"$f":"IF('Enrollment Form'!A20=\"\",\"\",IF('Enrollment Form'!B20=\"Subscriber\",\"-\",IF(AND('Enrollment Form'!B20<>\"Subscriber\",'Enrollment Form'!G20='Enrollment Form'!H20),\"N\",\"Y\")))","v":""},0,null,null,null,null,null,null,"10","Job Class filled if \"Graded\" LI?","Job Class must be populated if \"Graded\" Life Insurance is selected","O,AR"]
[21,{"$f":"IF('Enrollment Form'!$A21<>\"\",\"Y\",\"N\")","v":"N"},{"$f":"IF(AND('Enrollment Form'!$B21=\"\",'Enrollment Form'!$C21<>\"\"),\"N\",IF($B14=\"N\",\"\",\"Y\"))","v":""},{"$f":"IF(OR($B14=\"N\",'Enrollment Form'!G21=\"\"),\"\",IF('Enrollment Form'!$B21<>\"Subscriber\",\"\",IF('Enrollment Form'!$G21='Enrollment Form'!$H21,\"Y\",\"N\")))","v":""},{"$f":"IF($B14=\"N\",\"\",IF(AND(COUNTIFS('Enrollment Form'!$H$11:$H$1000,'Enrollment Form'!$H21,'Enrollment Form'!$B$11:$B$1000,'Enrollment Form'!$B21)>1,'Enrollment Form'!$H21<>\"\"),\"N\",\"Y\"))","v":""},{"$f":"IF($B14=\"N\",\"\",IF(LEN('Enrollment Form'!$Y21)=0,\"\",IF(LEN('Enrollment Form'!$Y21)<>5,\"N\",\"Y\")))","v":""},{"$f":"IF($B14=\"N\",\"\",IF(LEN('Enrollment Form'!$AD21=0),\"\",IF(LEN('Enrollment Form'!$AD21)<>5,\"N\",\"Y\")))","v":""},{"$f":"IF($B14=\"N\",\"\",IF(LEN('Enrollment Form'!$BS21=0),\"\",IF(LEN('Enrollment Form'!$BS21)<>5,\"N\",\"Y\")))","v":""},{"$f":"IF($B14=\"N\",\"\",IF(LEN('Enrollment Form'!$AE21)=0,\"\",IF(LEN('Enrollment Form'!$AE21)<>10,\"N\",\"Y\")))","v":""},{"$f":"IF($B14=\"N\",\"\",IF(LEN('Enrollment Form'!$AF21)=0,\"\",IF(LEN('Enrollment Form'!$AF21)<>10,\"N\",\"Y\")))","v":""},{"$f":"IF('Enrollment Form'!$O21<>\"Graded\",\"-\",IF(AND('Enrollment Form'!$O21=\"Graded\",'Enrollment Form'!$AR21<>\"\"),\"Y\",\"N\"))","v":"-"},{"$f":"IF($B14=\"N\",\"\",IF(OR('Enrollment Form'!$B21<>\"Subscriber\",'Enrollment Form'!$C21=\"ROC\"),\"-\",IF(AND('Enrollment Form'!$B21=\"Subscriber\",'Enrollment Form'!$C21=\"Enroll\",'Enrollment Form'!$AJ21<>\"\"),\"Y\",\"N\")))","v":""},{"$f":"IF($B14=\"N\",\"\",IF(OR('Enrollment Form'!$B21<>\"Subscriber\",'Enrollment Form'!$C21=\"ROC\"),\"-\",IF(AND('Enrollment Form'!$B21=\"Subscriber\",'Enrollment Form'!$C21=\"Enroll\",'Enrollment Form'!$AK21<>\"\"),\"Y\",\"N\")))","v":""},{"$f":"IF($B14=\"N\",\"\",IF(OR('Enrollment Form'!$B21<>\"Subscriber\",'Enrollment Form'!$C21=\"ROC\"),\"-\",IF(AND('Enrollment Form'!$B21=\"Subscriber\",'Enrollment Form'!$C21=\"Enroll\",'Enrollment Form'!$AL21<>\"\"),\"Y\",\"N\")))","v":""},{"$f":"IF($B14=\"N\",\"\",IF(OR('Enrollment Form'!$B21<>\"Subscriber\",'Enrollment Form'!$C21=\"ROC\"),\"-\",IF(AND('Enrollment Form'!$B21=\"Subscriber\",'Enrollment Form'!$C21=\"Enroll\",'Enrollment Form'!$AP21<>\"\"),\"Y\",\"N\")))","v":""},{"$f":"IF($B14=\"N\",\"\",IF(OR('Enrollment Form'!$B21<>\"Subscriber\",'Enrollment Form'!$C21=\"ROC\"),\"-\",IF(AND('Enrollment Form'!$B21=\"Subscriber\",'Enrollment Form'!$C21=\"Enroll\",'Enrollment Form'!$AQ21<>\"\"),\"Y\",\"N\")))","v":""},{"$f":"IF($B14=\"N\",\"\",IF(OR('Enrollment Form'!$B21<>\"Subscriber\",'Enrollment Form'!$C21=\"ROC\"),\"-\",IF(AND('Enrollment Form'!$B21=\"Subscriber\",'Enrollment Form'!$C21=\"Enroll\",'Enrollment Form'!$AS21<>\"\"),\"Y\",\"N\")))","v":""},{"$f":"IF($B14=\"N\",\"\",IF($Q14=\"-\",\"-\",IF(AND($Q14=\"Y\",'Enrollment Form'!$AS21=\"No\"),\"-\",IF(AND($Q14=\"Y\",'Enrollment Form'!$AS21=\"Yes\",'Enrollment Form'!$AT21<>\"\"),\"Y\",\"N\"))))","v":""},{"$f":"IF($B14=\"N\",\"\",IF(OR('Enrollment Form'!$B21<>\"Subscriber\",'Enrollment Form'!$C21=\"ROC\"),\"-\",IF(AND('Enrollment Form'!$B21=\"Subscriber\",'Enrollment Form'!$C21=\"Enroll\",'Enrollment Form'!$CV21<>\"\"),\"Y\",\"N\")))","v":""},{"$f":"IF($B14=\"N\",\"\",IF($S14=\"-\",\"-\",IF(AND($S14=\"Y\",'Enrollment Form'!$CV21=\"No\"),\"-\",IF(AND($S14=\"Y\",'Enrollment Form'!$CV21=\"Yes\",'Enrollment Form'!$CW21<>\"\"),\"Y\",\"N\"))))","v":""},{"$f":"IF(OR('Enrollment Form'!$AY21=\"Yes\",'Enrollment Form'!$AY21=\"\"),\"-\",IF(OR(AND('Enrollment Form'!$AY21=\"No\",ISERROR(FIND(\"HMO\",VLOOKUP('Enrollment Form'!G21,'Enrollment Form'!H$11:J$1000,3,FALSE),1))=FALSE,COUNTA('Enrollment Form'!$AZ21:$BC21)=4),AND('Enrollment Form'!$AY21=\"No\",ISERROR(FIND(\"HMO\",VLOOKUP('Enrollment Form'!G21,'Enrollment Form'!H$11:J$1000,3,FALSE),1))=FALSE,COUNTA('Enrollment Form'!$BT21:$BW21)=4)),\"Y\",\"N\"))","v":"-"},{"$f":"IF($B14=\"N\",\"\",IF('Enrollment Form'!$B21=\"Subscriber\",\"-\",IF(COUNTA('Enrollment Form'!$BL21,'Enrollment Form'!$BN21)=2,\"Y\",\"N\")))","v":""},{"$f":"IF($B14=\"N\",\"\",IF(OR('Enrollment Form'!$AX21=\"\",'Enrollment Form'!$AX21=\"No\"),\"-\",IF(AND('Enrollment Form'!$AX21=\"Yes\",COUNTA('Enrollment Form'!$CR21)=1),\"Y\",\"N\")))","v":""},{"$f":"IF(OR('Enrollment Form'!$CR21=\"\",'Enrollment Form'!$CR21=\"No\"),\"-\",IF(COUNTA('Enrollment Form'!$CT21:$CU21)=2,\"Y\",\"N\"))","v":"-"},{"$f":"IF($B14=\"N\",\"\",IF(COUNTIF('Enrollment Form'!$DG21:$DP21,\"Other\")=COUNTA('Enrollment Form'!$DK21,'Enrollment Form'!$DH21,'Enrollment Form'!$DN21,'Enrollment Form'!$DQ21),\"Y\",\"N\"))","v":""},{"$f":"IF($B14=\"N\",\"\",IF(OR('Enrollment Form'!B21<>\"Subscriber\",'Enrollment Form'!C21=\"ROC\",COUNTIF('Enrollment Form'!AV21:AW21,\"Yes\")>=1),\"-\",IF(AND('Enrollment Form'!C21=\"Enroll\",COUNTIF('Enrollment Form'!AV21:AW21,\"No\")=2,'Enrollment Form'!AX21=\"\"),\"N\",\"Y\")))","v":""},{"$f":"IF(OR(B14=\"N\",'Enrollment Form'!B21<>\"Subscriber\",'Enrollment Form'!C21=\"ROC\",'Enrollment Form'!O21<>\"Multiple of Salary\"),\"-\",IF(COUNTA('Enrollment Form'!T21:U21)<2,\"N\",\"Y\"))","v":"-"},{"$f":"IF(B14=\"N\",\"\",IF(OR('Enrollment Form'!C21=\"ROC\",'Enrollment Form'!B21<>\"Subscriber\",'Enrollment Form'!O21=\"Waive\",'Enrollment Form'!O21=\"\"),\"-\",IF('Enrollment Form'!P21=\"\",\"N\",\"Y\")))","v":""},{"$f":"IF($B14=\"N\",\"\",IF(AND('Enrollment Form'!$C21=\"ROC\",'Enrollment Form'!$DR21<>\"\"),\"Y\",IF(AND('Enrollment Form'!$C21=\"ROC\",'Enrollment Form'!$DR21=\"\"),\"N\",IF(AND('Enrollment Form'!$C21=\"Enroll\",'Enrollment Form'!$B21=\"Subscriber\",'Enrollment Form'!$CX21=\"No\",'Enrollment Form'!$DR21=\"\"),\"N\",IF(AND('Enrollment Form'!$C21=\"Enroll\",'Enrollment Form'!$B21=\"Subscriber\",'Enrollment Form'!$CX21=\"Yes\"),\"-\",\"Y\")))))","v":""},{"$f":"IF($B14=\"N\",\"\",IF(AND('Enrollment Form'!$C21=\"ROC\",'Enrollment Form'!$DS21<>\"\"),\"Y\",IF(AND('Enrollment Form'!$C21=\"ROC\",'Enrollment Form'!$DS21=\"\"),\"N\",IF(AND('Enrollment Form'!$C21=\"Enroll\",'Enrollment Form'!$B21=\"Subscriber\",'Enrollment Form'!$CX21=\"No\",'Enrollment Form'!$DS21=\"\"),\"N\",IF(AND('Enrollment Form'!$C21=\"Enroll\",'Enrollment Form'!$B21=\"Subscriber\",'Enrollment Form'!$CX21=\"Yes\"),\"-\",\"Y\")))))","v":""},{"$f":"IF('Enrollment Form'!AH21=\"\",\"\",IF(ISERROR(SEARCH(\".\",'Enrollment Form'!AH21,SEARCH(\"@\",'Enrollment Form'!AH21))),\"N\",\"Y\"))","v":""},{"$f":"IF(OR($B14=\"N\",'Enrollment Form'!$G21=\"\"),\"\",IF('Enrollment Form'!$B21<>\"Subscriber\",\"-\",IF(COUNTIF('Enrollment Form'!$AV21:$AW21,\"Yes\")=2,\"N\",\"Y\")))","v":""},{"$f":"IF(OR('Enrollment Form'!$CJ21=\"\",'Enrollment Form'!$CJ21=\"No\"),\"-\",IF(AND('Enrollment Form'!$CJ21=\"Yes\",'Enrollment Form'!$CK21=\"\"),\"N\",\"Y\"))","v":"-"},{"$f":"IF(OR('Enrollment Form'!$CL21=\"\",'Enrollment Form'!$CL21=\"No\"),\"-\",IF(AND('Enrollment Form'!$CL21=\"Yes\",'Enrollment Form'!$CM21=\"\"),\"N\",\"Y\"))","v":"-"},{"$f":"IF(OR('Enrollment Form'!$CN21=\"\",'Enrollment Form'!$CN21=\"No\"),\"-\",IF(AND('Enrollment Form'!$CN21=\"Yes\",'Enrollment Form'!$CO21=\"\"),\"N\",\"Y\"))","v":"-"},{"$f":"IF(OR('Enrollment Form'!$CN21=\"\",'Enrollment Form'!$CN21=\"No\"),\"-\",IF(AND('Enrollment Form'!$CN21=\"Yes\",'Enrollment Form'!$CP21=\"\"),\"N\",\"Y\"))","v":"-"},{"$f":"IF('Enrollment Form'!B21<>\"Subscriber\",\"-\",IF(AND('Enrollment Form'!B21=\"Subscriber\",'Enrollment Form'!C21=\"Enroll\",'Enrollment Form'!AA21=\"\"),\"N\",\"Y\"))","v":"-"},{"$f":"IF(OR('Enrollment Form'!B21=\"Subscriber\",'Enrollment Form'!B21=\"\"),\"-\",IF('Enrollment Form'!BP21=\"\",\"N\",\"Y\"))","v":"-"},{"$f":"IF('Enrollment Form'!B21<>\"Subscriber\",\"-\",IF(AND('Enrollment Form'!B21=\"Subscriber\",'Enrollment Form'!G21=\"\"),\"N\",\"Y\"))","v":"-"},{"$f":"IF('Enrollment Form'!A21=\"\",\"\",IF('Enrollment Form'!B21=\"Subscriber\",\"-\",IF(AND('Enrollment Form'!B21<>\"Subscriber\",'Enrollment Form'!G21='Enrollment Form'!H21),\"N\",\"Y\")))","v":""},0,null,null,null,null,null,null,"11","Sub DOB filled?","Subscriber Date of Birth must be populated","AJ"]
[22,{"$f":"IF('Enrollment Form'!$A22<>\"\",\"Y\",\"N\")","v":"N"},{"$f":"IF(AND('Enrollment Form'!$B22=\"\",'Enrollment Form'!$C22<>\"\"),\"N\",IF($B15=\"N\",\"\",\"Y\"))","v":""},{"$f":"IF(OR($B15=\"N\",'Enrollment Form'!G22=\"\"),\"\",IF('Enrollment Form'!$B22<>\"Subscriber\",\"\",IF('Enrollment Form'!$G22='Enrollment Form'!$H22,\"Y\",\"N\")))","v":""},{"$f":"IF($B15=\"N\",\"\",IF(AND(COUNTIFS('Enrollment Form'!$H$11:$H$1000,'Enrollment Form'!$H22,'Enrollment Form'!$B$11:$B$1000,'Enrollment Form'!$B22)>1,'Enrollment Form'!$H22<>\"\"),\"N\",\"Y\"))","v":""},{"$f":"IF($B15=\"N\",\"\",IF(LEN('Enrollment Form'!$Y22)=0,\"\",IF(LEN('Enrollment Form'!$Y22)<>5,\"N\",\"Y\")))","v":""},{"$f":"IF($B15=\"N\",\"\",IF(LEN('Enrollment Form'!$AD22=0),\"\",IF(LEN('Enrollment Form'!$AD22)<>5,\"N\",\"Y\")))","v":""},{"$f":"IF($B15=\"N\",\"\",IF(LEN('Enrollment Form'!$BS22=0),\"\",IF(LEN('Enrollment Form'!$BS22)<>5,\"N\",\"Y\")))","v":""},{"$f":"IF($B15=\"N\",\"\",IF(LEN('Enrollment Form'!$AE22)=0,\"\",IF(LEN('Enrollment Form'!$AE22)<>10,\"N\",\"Y\")))","v":""},{"$f":"IF($B15=\"N\",\"\",IF(LEN('Enrollment Form'!$AF22)=0,\"\",IF(LEN('Enrollment Form'!$AF22)<>10,\"N\",\"Y\")))","v":""},{"$f":"IF('Enrollment Form'!$O22<>\"Graded\",\"-\",IF(AND('Enrollment Form'!$O22=\"Graded\",'Enrollment Form'!$AR22<>\"\"),\"Y\",\"N\"))","v":"-"},{"$f":"IF($B15=\"N\",\"\",IF(OR('Enrollment Form'!$B22<>\"Subscriber\",'Enrollment Form'!$C22=\"ROC\"),\"-\",IF(AND('Enrollment Form'!$B22=\"Subscriber\",'Enrollment Form'!$C22=\"Enroll\",'Enrollment Form'!$AJ22<>\"\"),\"Y\",\"N\")))","v":""},{"$f":"IF($B15=\"N\",\"\",IF(OR('Enrollment Form'!$B22<>\"Subscriber\",'Enrollment Form'!$C22=\"ROC\"),\"-\",IF(AND('Enrollment Form'!$B22=\"Subscriber\",'Enrollment Form'!$C22=\"Enroll\",'Enrollment Form'!$AK22<>\"\"),\"Y\",\"N\")))","v":""},{"$f":"IF($B15=\"N\",\"\",IF(OR('Enrollment Form'!$B22<>\"Subscriber\",'Enrollment Form'!$C22=\"ROC\"),\"-\",IF(AND('Enrollment Form'!$B22=\"Subscriber\",'Enrollment Form'!$C22=\"Enroll\",'Enrollment Form'!$AL22<>\"\"),\"Y\",\"N\")))","v":""},{"$f":"IF($B15=\"N\",\"\",IF(OR('Enrollment Form'!$B22<>\"Subscriber\",'Enrollment Form'!$C22=\"ROC\"),\"-\",IF(AND('Enrollment Form'!$B22=\"Subscriber\",'Enrollment Form'!$C22=\"Enroll\",'Enrollment Form'!$AP22<>\"\"),\"Y\",\"N\")))","v":""},{"$f":"IF($B15=\"N\",\"\",IF(OR('Enrollment Form'!$B22<>\"Subscriber\",'Enrollment Form'!$C22=\"ROC\"),\"-\",IF(AND('Enrollment Form'!$B22=\"Subscriber\",'Enrollment Form'!$C22=\"Enroll\",'Enrollment Form'!$AQ22<>\"\"),\"Y\",\"N\")))","v":""},{"$f":"IF($B15=\"N\",\"\",IF(OR('Enrollment Form'!$B22<>\"Subscriber\",'Enrollment Form'!$C22=\"ROC\"),\"-\",IF(AND('Enrollment Form'!$B22=\"Subscriber\",'Enrollment Form'!$C22=\"Enroll\",'Enrollment Form'!$AS22<>\"\"),\"Y\",\"N\")))","v":""},{"$f":"IF($B15=\"N\",\"\",IF($Q15=\"-\",\"-\",IF(AND($Q15=\"Y\",'Enrollment Form'!$AS22=\"No\"),\"-\",IF(AND($Q15=\"Y\",'Enrollment Form'!$AS22=\"Yes\",'Enrollment Form'!$AT22<>\"\"),\"Y\",\"N\"))))","v":""},{"$f":"IF($B15=\"N\",\"\",IF(OR('Enrollment Form'!$B22<>\"Subscriber\",'Enrollment Form'!$C22=\"ROC\"),\"-\",IF(AND('Enrollment Form'!$B22=\"Subscriber\",'Enrollment Form'!$C22=\"Enroll\",'Enrollment Form'!$CV22<>\"\"),\"Y\",\"N\")))","v":""},{"$f":"IF($B15=\"N\",\"\",IF($S15=\"-\",\"-\",IF(AND($S15=\"Y\",'Enrollment Form'!$CV22=\"No\"),\"-\",IF(AND($S15=\"Y\",'Enrollment Form'!$CV22=\"Yes\",'Enrollment Form'!$CW22<>\"\"),\"Y\",\"N\"))))","v":""},{"$f":"IF(OR('Enrollment Form'!$AY22=\"Yes\",'Enrollment Form'!$AY22=\"\"),\"-\",IF(OR(AND('Enrollment Form'!$AY22=\"No\",ISERROR(FIND(\"HMO\",VLOOKUP('Enrollment Form'!G22,'Enrollment Form'!H$11:J$1000,3,FALSE),1))=FALSE,COUNTA('Enrollment Form'!$AZ22:$BC22)=4),AND('Enrollment Form'!$AY22=\"No\",ISERROR(FIND(\"HMO\",VLOOKUP('Enrollment Form'!G22,'Enrollment Form'!H$11:J$1000,3,FALSE),1))=FALSE,COUNTA('Enrollment Form'!$BT22:$BW22)=4)),\"Y\",\"N\"))","v":"-"},{"$f":"IF($B15=\"N\",\"\",IF('Enrollment Form'!$B22=\"Subscriber\",\"-\",IF(COUNTA('Enrollment Form'!$BL22,'Enrollment Form'!$BN22)=2,\"Y\",\"N\")))","v":""},{"$f":"IF($B15=\"N\",\"\",IF(OR('Enrollment Form'!$AX22=\"\",'Enrollment Form'!$AX22=\"No\"),\"-\",IF(AND('Enrollment Form'!$AX22=\"Yes\",COUNTA('Enrollment Form'!$CR22)=1),\"Y\",\"N\")))","v":""},{"$f":"IF(OR('Enrollment Form'!$CR22=\"\",'Enrollment Form'!$CR22=\"No\"),\"-\",IF(COUNTA('Enrollment Form'!$CT22:$CU22)=2,\"Y\",\"N\"))","v":"-"},{"$f":"IF($B15=\"N\",\"\",IF(COUNTIF('Enrollment Form'!$DG22:$DP22,\"Other\")=COUNTA('Enrollment Form'!$DK22,'Enrollment Form'!$DH22,'Enrollment Form'!$DN22,'Enrollment Form'!$DQ22),\"Y\",\"N\"))","v":""},{"$f":"IF($B15=\"N\",\"\",IF(OR('Enrollment Form'!B22<>\"Subscriber\",'Enrollment Form'!C22=\"ROC\",COUNTIF('Enrollment Form'!AV22:AW22,\"Yes\")>=1),\"-\",IF(AND('Enrollment Form'!C22=\"Enroll\",COUNTIF('Enrollment Form'!AV22:AW22,\"No\")=2,'Enrollment Form'!AX22=\"\"),\"N\",\"Y\")))","v":""},{"$f":"IF(OR(B15=\"N\",'Enrollment Form'!B22<>\"Subscriber\",'Enrollment Form'!C22=\"ROC\",'Enrollment Form'!O22<>\"Multiple of Salary\"),\"-\",IF(COUNTA('Enrollment Form'!T22:U22)<2,\"N\",\"Y\"))","v":"-"},{"$f":"IF(B15=\"N\",\"\",IF(OR('Enrollment Form'!C22=\"ROC\",'Enrollment Form'!B22<>\"Subscriber\",'Enrollment Form'!O22=\"Waive\",'Enrollment Form'!O22=\"\"),\"-\",IF('Enrollment Form'!P22=\"\",\"N\",\"Y\")))","v":""},{"$f":"IF($B15=\"N\",\"\",IF(AND('Enrollment Form'!$C22=\"ROC\",'Enrollment Form'!$DR22<>\"\"),\"Y\",IF(AND('Enrollment Form'!$C22=\"ROC\",'Enrollment Form'!$DR22=\"\"),\"N\",IF(AND('Enrollment Form'!$C22=\"Enroll\",'Enrollment Form'!$B22=\"Subscriber\",'Enrollment Form'!$CX22=\"No\",'Enrollment Form'!$DR22=\"\"),\"N\",IF(AND('Enrollment Form'!$C22=\"Enroll\",'Enrollment Form'!$B22=\"Subscriber\",'Enrollment Form'!$CX22=\"Yes\"),\"-\",\"Y\")))))","v":""},{"$f":"IF($B15=\"N\",\"\",IF(AND('Enrollment Form'!$C22=\"ROC\",'Enrollment Form'!$DS22<>\"\"),\"Y\",IF(AND('Enrollment Form'!$C22=\"ROC\",'Enrollment Form'!$DS22=\"\"),\"N\",IF(AND('Enrollment Form'!$C22=\"Enroll\",'Enrollment Form'!$B22=\"Subscriber\",'Enrollment Form'!$CX22=\"No\",'Enrollment Form'!$DS22=\"\"),\"N\",IF(AND('Enrollment Form'!$C22=\"Enroll\",'Enrollment Form'!$B22=\"Subscriber\",'Enrollment Form'!$CX22=\"Yes\"),\"-\",\"Y\")))))","v":""},{"$f":"IF('Enrollment Form'!AH22=\"\",\"\",IF(ISERROR(SEARCH(\".\",'Enrollment Form'!AH22,SEARCH(\"@\",'Enrollment Form'!AH22))),\"N\",\"Y\"))","v":""},{"$f":"IF(OR($B15=\"N\",'Enrollment Form'!$G22=\"\"),\"\",IF('Enrollment Form'!$B22<>\"Subscriber\",\"-\",IF(COUNTIF('Enrollment Form'!$AV22:$AW22,\"Yes\")=2,\"N\",\"Y\")))","v":""},{"$f":"IF(OR('Enrollment Form'!$CJ22=\"\",'Enrollment Form'!$CJ22=\"No\"),\"-\",IF(AND('Enrollment Form'!$CJ22=\"Yes\",'Enrollment Form'!$CK22=\"\"),\"N\",\"Y\"))","v":"-"},{"$f":"IF(OR('Enrollment Form'!$CL22=\"\",'Enrollment Form'!$CL22=\"No\"),\"-\",IF(AND('Enrollment Form'!$CL22=\"Yes\",'Enrollment Form'!$CM22=\"\"),\"N\",\"Y\"))","v":"-"},{"$f":"IF(OR('Enrollment Form'!$CN22=\"\",'Enrollment Form'!$CN22=\"No\"),\"-\",IF(AND('Enrollment Form'!$CN22=\"Yes\",'Enrollment Form'!$CO22=\"\"),\"N\",\"Y\"))","v":"-"},{"$f":"IF(OR('Enrollment Form'!$CN22=\"\",'Enrollment Form'!$CN22=\"No\"),\"-\",IF(AND('Enrollment Form'!$CN22=\"Yes\",'Enrollment Form'!$CP22=\"\"),\"N\",\"Y\"))","v":"-"},{"$f":"IF('Enrollment Form'!B22<>\"Subscriber\",\"-\",IF(AND('Enrollment Form'!B22=\"Subscriber\",'Enrollment Form'!C22=\"Enroll\",'Enrollment Form'!AA22=\"\"),\"N\",\"Y\"))","v":"-"},{"$f":"IF(OR('Enrollment Form'!B22=\"Subscriber\",'Enrollment Form'!B22=\"\"),\"-\",IF('Enrollment Form'!BP22=\"\",\"N\",\"Y\"))","v":"-"},{"$f":"IF('Enrollment Form'!B22<>\"Subscriber\",\"-\",IF(AND('Enrollment Form'!B22=\"Subscriber\",'Enrollment Form'!G22=\"\"),\"N\",\"Y\"))","v":"-"},{"$f":"IF('Enrollment Form'!A22=\"\",\"\",IF('Enrollment Form'!B22=\"Subscriber\",\"-\",IF(AND('Enrollment Form'!B22<>\"Subscriber\",'Enrollment Form'!G22='Enrollment Form'!H22),\"N\",\"Y\")))","v":""},0,null,null,null,null,null,null,"12","Sub Gender filled?","Subscriber Gender must be populated","AK"]
[23,{"$f":"IF('Enrollment Form'!$A23<>\"\",\"Y\",\"N\")","v":"N"},{"$f":"IF(AND('Enrollment Form'!$B23=\"\",'Enrollment Form'!$C23<>\"\"),\"N\",IF($B16=\"N\",\"\",\"Y\"))","v":""},{"$f":"IF(OR($B16=\"N\",'Enrollment Form'!G23=\"\"),\"\",IF('Enrollment Form'!$B23<>\"Subscriber\",\"\",IF('Enrollment Form'!$G23='Enrollment Form'!$H23,\"Y\",\"N\")))","v":""},{"$f":"IF($B16=\"N\",\"\",IF(AND(COUNTIFS('Enrollment Form'!$H$11:$H$1000,'Enrollment Form'!$H23,'Enrollment Form'!$B$11:$B$1000,'Enrollment Form'!$B23)>1,'Enrollment Form'!$H23<>\"\"),\"N\",\"Y\"))","v":""},{"$f":"IF($B16=\"N\",\"\",IF(LEN('Enrollment Form'!$Y23)=0,\"\",IF(LEN('Enrollment Form'!$Y23)<>5,\"N\",\"Y\")))","v":""},{"$f":"IF($B16=\"N\",\"\",IF(LEN('Enrollment Form'!$AD23=0),\"\",IF(LEN('Enrollment Form'!$AD23)<>5,\"N\",\"Y\")))","v":""},{"$f":"IF($B16=\"N\",\"\",IF(LEN('Enrollment Form'!$BS23=0),\"\",IF(LEN('Enrollment Form'!$BS23)<>5,\"N\",\"Y\")))","v":""},{"$f":"IF($B16=\"N\",\"\",IF(LEN('Enrollment Form'!$AE23)=0,\"\",IF(LEN('Enrollment Form'!$AE23)<>10,\"N\",\"Y\")))","v":""},{"$f":"IF($B16=\"N\",\"\",IF(LEN('Enrollment Form'!$AF23)=0,\"\",IF(LEN('Enrollment Form'!$AF23)<>10,\"N\",\"Y\")))","v":""},{"$f":"IF('Enrollment Form'!$O23<>\"Graded\",\"-\",IF(AND('Enrollment Form'!$O23=\"Graded\",'Enrollment Form'!$AR23<>\"\"),\"Y\",\"N\"))","v":"-"},{"$f":"IF($B16=\"N\",\"\",IF(OR('Enrollment Form'!$B23<>\"Subscriber\",'Enrollment Form'!$C23=\"ROC\"),\"-\",IF(AND('Enrollment Form'!$B23=\"Subscriber\",'Enrollment Form'!$C23=\"Enroll\",'Enrollment Form'!$AJ23<>\"\"),\"Y\",\"N\")))","v":""},{"$f":"IF($B16=\"N\",\"\",IF(OR('Enrollment Form'!$B23<>\"Subscriber\",'Enrollment Form'!$C23=\"ROC\"),\"-\",IF(AND('Enrollment Form'!$B23=\"Subscriber\",'Enrollment Form'!$C23=\"Enroll\",'Enrollment Form'!$AK23<>\"\"),\"Y\",\"N\")))","v":""},{"$f":"IF($B16=\"N\",\"\",IF(OR('Enrollment Form'!$B23<>\"Subscriber\",'Enrollment Form'!$C23=\"ROC\"),\"-\",IF(AND('Enrollment Form'!$B23=\"Subscriber\",'Enrollment Form'!$C23=\"Enroll\",'Enrollment Form'!$AL23<>\"\"),\"Y\",\"N\")))","v":""},{"$f":"IF($B16=\"N\",\"\",IF(OR('Enrollment Form'!$B23<>\"Subscriber\",'Enrollment Form'!$C23=\"ROC\"),\"-\",IF(AND('Enrollment Form'!$B23=\"Subscriber\",'Enrollment Form'!$C23=\"Enroll\",'Enrollment Form'!$AP23<>\"\"),\"Y\",\"N\")))","v":""},{"$f":"IF($B16=\"N\",\"\",IF(OR('Enrollment Form'!$B23<>\"Subscriber\",'Enrollment Form'!$C23=\"ROC\"),\"-\",IF(AND('Enrollment Form'!$B23=\"Subscriber\",'Enrollment Form'!$C23=\"Enroll\",'Enrollment Form'!$AQ23<>\"\"),\"Y\",\"N\")))","v":""},{"$f":"IF($B16=\"N\",\"\",IF(OR('Enrollment Form'!$B23<>\"Subscriber\",'Enrollment Form'!$C23=\"ROC\"),\"-\",IF(AND('Enrollment Form'!$B23=\"Subscriber\",'Enrollment Form'!$C23=\"Enroll\",'Enrollment Form'!$AS23<>\"\"),\"Y\",\"N\")))","v":""},{"$f":"IF($B16=\"N\",\"\",IF($Q16=\"-\",\"-\",IF(AND($Q16=\"Y\",'Enrollment Form'!$AS23=\"No\"),\"-\",IF(AND($Q16=\"Y\",'Enrollment Form'!$AS23=\"Yes\",'Enrollment Form'!$AT23<>\"\"),\"Y\",\"N\"))))","v":""},{"$f":"IF($B16=\"N\",\"\",IF(OR('Enrollment Form'!$B23<>\"Subscriber\",'Enrollment Form'!$C23=\"ROC\"),\"-\",IF(AND('Enrollment Form'!$B23=\"Subscriber\",'Enrollment Form'!$C23=\"Enroll\",'Enrollment Form'!$CV23<>\"\"),\"Y\",\"N\")))","v":""},{"$f":"IF($B16=\"N\",\"\",IF($S16=\"-\",\"-\",IF(AND($S16=\"Y\",'Enrollment Form'!$CV23=\"No\"),\"-\",IF(AND($S16=\"Y\",'Enrollment Form'!$CV23=\"Yes\",'Enrollment Form'!$CW23<>\"\"),\"Y\",\"N\"))))","v":""},{"$f":"IF(OR('Enrollment Form'!$AY23=\"Yes\",'Enrollment Form'!$AY23=\"\"),\"-\",IF(OR(AND('Enrollment Form'!$AY23=\"No\",ISERROR(FIND(\"HMO\",VLOOKUP('Enrollment Form'!G23,'Enrollment Form'!H$11:J$1000,3,FALSE),1))=FALSE,COUNTA('Enrollment Form'!$AZ23:$BC23)=4),AND('Enrollment Form'!$AY23=\"No\",ISERROR(FIND(\"HMO\",VLOOKUP('Enrollment Form'!G23,'Enrollment Form'!H$11:J$1000,3,FALSE),1))=FALSE,COUNTA('Enrollment Form'!$BT23:$BW23)=4)),\"Y\",\"N\"))","v":"-"},{"$f":"IF($B16=\"N\",\"\",IF('Enrollment Form'!$B23=\"Subscriber\",\"-\",IF(COUNTA('Enrollment Form'!$BL23,'Enrollment Form'!$BN23)=2,\"Y\",\"N\")))","v":""},{"$f":"IF($B16=\"N\",\"\",IF(OR('Enrollment Form'!$AX23=\"\",'Enrollment Form'!$AX23=\"No\"),\"-\",IF(AND('Enrollment Form'!$AX23=\"Yes\",COUNTA('Enrollment Form'!$CR23)=1),\"Y\",\"N\")))","v":""},{"$f":"IF(OR('Enrollment Form'!$CR23=\"\",'Enrollment Form'!$CR23=\"No\"),\"-\",IF(COUNTA('Enrollment Form'!$CT23:$CU23)=2,\"Y\",\"N\"))","v":"-"},{"$f":"IF($B16=\"N\",\"\",IF(COUNTIF('Enrollment Form'!$DG23:$DP23,\"Other\")=COUNTA('Enrollment Form'!$DK23,'Enrollment Form'!$DH23,'Enrollment Form'!$DN23,'Enrollment Form'!$DQ23),\"Y\",\"N\"))","v":""},{"$f":"IF($B16=\"N\",\"\",IF(OR('Enrollment Form'!B23<>\"Subscriber\",'Enrollment Form'!C23=\"ROC\",COUNTIF('Enrollment Form'!AV23:AW23,\"Yes\")>=1),\"-\",IF(AND('Enrollment Form'!C23=\"Enroll\",COUNTIF('Enrollment Form'!AV23:AW23,\"No\")=2,'Enrollment Form'!AX23=\"\"),\"N\",\"Y\")))","v":""},{"$f":"IF(OR(B16=\"N\",'Enrollment Form'!B23<>\"Subscriber\",'Enrollment Form'!C23=\"ROC\",'Enrollment Form'!O23<>\"Multiple of Salary\"),\"-\",IF(COUNTA('Enrollment Form'!T23:U23)<2,\"N\",\"Y\"))","v":"-"},{"$f":"IF(B16=\"N\",\"\",IF(OR('Enrollment Form'!C23=\"ROC\",'Enrollment Form'!B23<>\"Subscriber\",'Enrollment Form'!O23=\"Waive\",'Enrollment Form'!O23=\"\"),\"-\",IF('Enrollment Form'!P23=\"\",\"N\",\"Y\")))","v":""},{"$f":"IF($B16=\"N\",\"\",IF(AND('Enrollment Form'!$C23=\"ROC\",'Enrollment Form'!$DR23<>\"\"),\"Y\",IF(AND('Enrollment Form'!$C23=\"ROC\",'Enrollment Form'!$DR23=\"\"),\"N\",IF(AND('Enrollment Form'!$C23=\"Enroll\",'Enrollment Form'!$B23=\"Subscriber\",'Enrollment Form'!$CX23=\"No\",'Enrollment Form'!$DR23=\"\"),\"N\",IF(AND('Enrollment Form'!$C23=\"Enroll\",'Enrollment Form'!$B23=\"Subscriber\",'Enrollment Form'!$CX23=\"Yes\"),\"-\",\"Y\")))))","v":""},{"$f":"IF($B16=\"N\",\"\",IF(AND('Enrollment Form'!$C23=\"ROC\",'Enrollment Form'!$DS23<>\"\"),\"Y\",IF(AND('Enrollment Form'!$C23=\"ROC\",'Enrollment Form'!$DS23=\"\"),\"N\",IF(AND('Enrollment Form'!$C23=\"Enroll\",'Enrollment Form'!$B23=\"Subscriber\",'Enrollment Form'!$CX23=\"No\",'Enrollment Form'!$DS23=\"\"),\"N\",IF(AND('Enrollment Form'!$C23=\"Enroll\",'Enrollment Form'!$B23=\"Subscriber\",'Enrollment Form'!$CX23=\"Yes\"),\"-\",\"Y\")))))","v":""},{"$f":"IF('Enrollment Form'!AH23=\"\",\"\",IF(ISERROR(SEARCH(\".\",'Enrollment Form'!AH23,SEARCH(\"@\",'Enrollment Form'!AH23))),\"N\",\"Y\"))","v":""},{"$f":"IF(OR($B16=\"N\",'Enrollment Form'!$G23=\"\"),\"\",IF('Enrollment Form'!$B23<>\"Subscriber\",\"-\",IF(COUNTIF('Enrollment Form'!$AV23:$AW23,\"Yes\")=2,\"N\",\"Y\")))","v":""},{"$f":"IF(OR('Enrollment Form'!$CJ23=\"\",'Enrollment Form'!$CJ23=\"No\"),\"-\",IF(AND('Enrollment Form'!$CJ23=\"Yes\",'Enrollment Form'!$CK23=\"\"),\"N\",\"Y\"))","v":"-"},{"$f":"IF(OR('Enrollment Form'!$CL23=\"\",'Enrollment Form'!$CL23=\"No\"),\"-\",IF(AND('Enrollment Form'!$CL23=\"Yes\",'Enrollment Form'!$CM23=\"\"),\"N\",\"Y\"))","v":"-"},{"$f":"IF(OR('Enrollment Form'!$CN23=\"\",'Enrollment Form'!$CN23=\"No\"),\"-\",IF(AND('Enrollment Form'!$CN23=\"Yes\",'Enrollment Form'!$CO23=\"\"),\"N\",\"Y\"))","v":"-"},{"$f":"IF(OR('Enrollment Form'!$CN23=\"\",'Enrollment Form'!$CN23=\"No\"),\"-\",IF(AND('Enrollment Form'!$CN23=\"Yes\",'Enrollment Form'!$CP23=\"\"),\"N\",\"Y\"))","v":"-"},{"$f":"IF('Enrollment Form'!B23<>\"Subscriber\",\"-\",IF(AND('Enrollment Form'!B23=\"Subscriber\",'Enrollment Form'!C23=\"Enroll\",'Enrollment Form'!AA23=\"\"),\"N\",\"Y\"))","v":"-"},{"$f":"IF(OR('Enrollment Form'!B23=\"Subscriber\",'Enrollment Form'!B23=\"\"),\"-\",IF('Enrollment Form'!BP23=\"\",\"N\",\"Y\"))","v":"-"},{"$f":"IF('Enrollment Form'!B23<>\"Subscriber\",\"-\",IF(AND('Enrollment Form'!B23=\"Subscriber\",'Enrollment Form'!G23=\"\"),\"N\",\"Y\"))","v":"-"},{"$f":"IF('Enrollment Form'!A23=\"\",\"\",IF('Enrollment Form'!B23=\"Subscriber\",\"-\",IF(AND('Enrollment Form'!B23<>\"Subscriber\",'Enrollment Form'!G23='Enrollment Form'!H23),\"N\",\"Y\")))","v":""},0,null,null,null,null,null,null,"13","Sub Marital Status filled?","Subscriber Marital Status must be populated","AL"]
[24,{"$f":"IF('Enrollment Form'!$A24<>\"\",\"Y\",\"N\")","v":"N"},{"$f":"IF(AND('Enrollment Form'!$B24=\"\",'Enrollment Form'!$C24<>\"\"),\"N\",IF($B17=\"N\",\"\",\"Y\"))","v":""},{"$f":"IF(OR($B17=\"N\",'Enrollment Form'!G24=\"\"),\"\",IF('Enrollment Form'!$B24<>\"Subscriber\",\"\",IF('Enrollment Form'!$G24='Enrollment Form'!$H24,\"Y\",\"N\")))","v":""},{"$f":"IF($B17=\"N\",\"\",IF(AND(COUNTIFS('Enrollment Form'!$H$11:$H$1000,'Enrollment Form'!$H24,'Enrollment Form'!$B$11:$B$1000,'Enrollment Form'!$B24)>1,'Enrollment Form'!$H24<>\"\"),\"N\",\"Y\"))","v":""},{"$f":"IF($B17=\"N\",\"\",IF(LEN('Enrollment Form'!$Y24)=0,\"\",IF(LEN('Enrollment Form'!$Y24)<>5,\"N\",\"Y\")))","v":""},{"$f":"IF($B17=\"N\",\"\",IF(LEN('Enrollment Form'!$AD24=0),\"\",IF(LEN('Enrollment Form'!$AD24)<>5,\"N\",\"Y\")))","v":""},{"$f":"IF($B17=\"N\",\"\",IF(LEN('Enrollment Form'!$BS24=0),\"\",IF(LEN('Enrollment Form'!$BS24)<>5,\"N\",\"Y\")))","v":""},{"$f":"IF($B17=\"N\",\"\",IF(LEN('Enrollment Form'!$AE24)=0,\"\",IF(LEN('Enrollment Form'!$AE24)<>10,\"N\",\"Y\")))","v":""},{"$f":"IF($B17=\"N\",\"\",IF(LEN('Enrollment Form'!$AF24)=0,\"\",IF(LEN('Enrollment Form'!$AF24)<>10,\"N\",\"Y\")))","v":""},{"$f":"IF('Enrollment Form'!$O24<>\"Graded\",\"-\",IF(AND('Enrollment Form'!$O24=\"Graded\",'Enrollment Form'!$AR24<>\"\"),\"Y\",\"N\"))","v":"-"},{"$f":"IF($B17=\"N\",\"\",IF(OR('Enrollment Form'!$B24<>\"Subscriber\",'Enrollment Form'!$C24=\"ROC\"),\"-\",IF(AND('Enrollment Form'!$B24=\"Subscriber\",'Enrollment Form'!$C24=\"Enroll\",'Enrollment Form'!$AJ24<>\"\"),\"Y\",\"N\")))","v":""},{"$f":"IF($B17=\"N\",\"\",IF(OR('Enrollment Form'!$B24<>\"Subscriber\",'Enrollment Form'!$C24=\"ROC\"),\"-\",IF(AND('Enrollment Form'!$B24=\"Subscriber\",'Enrollment Form'!$C24=\"Enroll\",'Enrollment Form'!$AK24<>\"\"),\"Y\",\"N\")))","v":""},{"$f":"IF($B17=\"N\",\"\",IF(OR('Enrollment Form'!$B24<>\"Subscriber\",'Enrollment Form'!$C24=\"ROC\"),\"-\",IF(AND('Enrollment Form'!$B24=\"Subscriber\",'Enrollment Form'!$C24=\"Enroll\",'Enrollment Form'!$AL24<>\"\"),\"Y\",\"N\")))","v":""},{"$f":"IF($B17=\"N\",\"\",IF(OR('Enrollment Form'!$B24<>\"Subscriber\",'Enrollment Form'!$C24=\"ROC\"),\"-\",IF(AND('Enrollment Form'!$B24=\"Subscriber\",'Enrollment Form'!$C24=\"Enroll\",'Enrollment Form'!$AP24<>\"\"),\"Y\",\"N\")))","v":""},{"$f":"IF($B17=\"N\",\"\",IF(OR('Enrollment Form'!$B24<>\"Subscriber\",'Enrollment Form'!$C24=\"ROC\"),\"-\",IF(AND('Enrollment Form'!$B24=\"Subscriber\",'Enrollment Form'!$C24=\"Enroll\",'Enrollment Form'!$AQ24<>\"\"),\"Y\",\"N\")))","v":""},{"$f":"IF($B17=\"N\",\"\",IF(OR('Enrollment Form'!$B24<>\"Subscriber\",'Enrollment Form'!$C24=\"ROC\"),\"-\",IF(AND('Enrollment Form'!$B24=\"Subscriber\",'Enrollment Form'!$C24=\"Enroll\",'Enrollment Form'!$AS24<>\"\"),\"Y\",\"N\")))","v":""},{"$f":"IF($B17=\"N\",\"\",IF($Q17=\"-\",\"-\",IF(AND($Q17=\"Y\",'Enrollment Form'!$AS24=\"No\"),\"-\",IF(AND($Q17=\"Y\",'Enrollment Form'!$AS24=\"Yes\",'Enrollment Form'!$AT24<>\"\"),\"Y\",\"N\"))))","v":""},{"$f":"IF($B17=\"N\",\"\",IF(OR('Enrollment Form'!$B24<>\"Subscriber\",'Enrollment Form'!$C24=\"ROC\"),\"-\",IF(AND('Enrollment Form'!$B24=\"Subscriber\",'Enrollment Form'!$C24=\"Enroll\",'Enrollment Form'!$CV24<>\"\"),\"Y\",\"N\")))","v":""},{"$f":"IF($B17=\"N\",\"\",IF($S17=\"-\",\"-\",IF(AND($S17=\"Y\",'Enrollment Form'!$CV24=\"No\"),\"-\",IF(AND($S17=\"Y\",'Enrollment Form'!$CV24=\"Yes\",'Enrollment Form'!$CW24<>\"\"),\"Y\",\"N\"))))","v":""},{"$f":"IF(OR('Enrollment Form'!$AY24=\"Yes\",'Enrollment Form'!$AY24=\"\"),\"-\",IF(OR(AND('Enrollment Form'!$AY24=\"No\",ISERROR(FIND(\"HMO\",VLOOKUP('Enrollment Form'!G24,'Enrollment Form'!H$11:J$1000,3,FALSE),1))=FALSE,COUNTA('Enrollment Form'!$AZ24:$BC24)=4),AND('Enrollment Form'!$AY24=\"No\",ISERROR(FIND(\"HMO\",VLOOKUP('Enrollment Form'!G24,'Enrollment Form'!H$11:J$1000,3,FALSE),1))=FALSE,COUNTA('Enrollment Form'!$BT24:$BW24)=4)),\"Y\",\"N\"))","v":"-"},{"$f":"IF($B17=\"N\",\"\",IF('Enrollment Form'!$B24=\"Subscriber\",\"-\",IF(COUNTA('Enrollment Form'!$BL24,'Enrollment Form'!$BN24)=2,\"Y\",\"N\")))","v":""},{"$f":"IF($B17=\"N\",\"\",IF(OR('Enrollment Form'!$AX24=\"\",'Enrollment Form'!$AX24=\"No\"),\"-\",IF(AND('Enrollment Form'!$AX24=\"Yes\",COUNTA('Enrollment Form'!$CR24)=1),\"Y\",\"N\")))","v":""},{"$f":"IF(OR('Enrollment Form'!$CR24=\"\",'Enrollment Form'!$CR24=\"No\"),\"-\",IF(COUNTA('Enrollment Form'!$CT24:$CU24)=2,\"Y\",\"N\"))","v":"-"},{"$f":"IF($B17=\"N\",\"\",IF(COUNTIF('Enrollment Form'!$DG24:$DP24,\"Other\")=COUNTA('Enrollment Form'!$DK24,'Enrollment Form'!$DH24,'Enrollment Form'!$DN24,'Enrollment Form'!$DQ24),\"Y\",\"N\"))","v":""},{"$f":"IF($B17=\"N\",\"\",IF(OR('Enrollment Form'!B24<>\"Subscriber\",'Enrollment Form'!C24=\"ROC\",COUNTIF('Enrollment Form'!AV24:AW24,\"Yes\")>=1),\"-\",IF(AND('Enrollment Form'!C24=\"Enroll\",COUNTIF('Enrollment Form'!AV24:AW24,\"No\")=2,'Enrollment Form'!AX24=\"\"),\"N\",\"Y\")))","v":""},{"$f":"IF(OR(B17=\"N\",'Enrollment Form'!B24<>\"Subscriber\",'Enrollment Form'!C24=\"ROC\",'Enrollment Form'!O24<>\"Multiple of Salary\"),\"-\",IF(COUNTA('Enrollment Form'!T24:U24)<2,\"N\",\"Y\"))","v":"-"},{"$f":"IF(B17=\"N\",\"\",IF(OR('Enrollment Form'!C24=\"ROC\",'Enrollment Form'!B24<>\"Subscriber\",'Enrollment Form'!O24=\"Waive\",'Enrollment Form'!O24=\"\"),\"-\",IF('Enrollment Form'!P24=\"\",\"N\",\"Y\")))","v":""},{"$f":"IF($B17=\"N\",\"\",IF(AND('Enrollment Form'!$C24=\"ROC\",'Enrollment Form'!$DR24<>\"\"),\"Y\",IF(AND('Enrollment Form'!$C24=\"ROC\",'Enrollment Form'!$DR24=\"\"),\"N\",IF(AND('Enrollment Form'!$C24=\"Enroll\",'Enrollment Form'!$B24=\"Subscriber\",'Enrollment Form'!$CX24=\"No\",'Enrollment Form'!$DR24=\"\"),\"N\",IF(AND('Enrollment Form'!$C24=\"Enroll\",'Enrollment Form'!$B24=\"Subscriber\",'Enrollment Form'!$CX24=\"Yes\"),\"-\",\"Y\")))))","v":""},{"$f":"IF($B17=\"N\",\"\",IF(AND('Enrollment Form'!$C24=\"ROC\",'Enrollment Form'!$DS24<>\"\"),\"Y\",IF(AND('Enrollment Form'!$C24=\"ROC\",'Enrollment Form'!$DS24=\"\"),\"N\",IF(AND('Enrollment Form'!$C24=\"Enroll\",'Enrollment Form'!$B24=\"Subscriber\",'Enrollment Form'!$CX24=\"No\",'Enrollment Form'!$DS24=\"\"),\"N\",IF(AND('Enrollment Form'!$C24=\"Enroll\",'Enrollment Form'!$B24=\"Subscriber\",'Enrollment Form'!$CX24=\"Yes\"),\"-\",\"Y\")))))","v":""},{"$f":"IF('Enrollment Form'!AH24=\"\",\"\",IF(ISERROR(SEARCH(\".\",'Enrollment Form'!AH24,SEARCH(\"@\",'Enrollment Form'!AH24))),\"N\",\"Y\"))","v":""},{"$f":"IF(OR($B17=\"N\",'Enrollment Form'!$G24=\"\"),\"\",IF('Enrollment Form'!$B24<>\"Subscriber\",\"-\",IF(COUNTIF('Enrollment Form'!$AV24:$AW24,\"Yes\")=2,\"N\",\"Y\")))","v":""},{"$f":"IF(OR('Enrollment Form'!$CJ24=\"\",'Enrollment Form'!$CJ24=\"No\"),\"-\",IF(AND('Enrollment Form'!$CJ24=\"Yes\",'Enrollment Form'!$CK24=\"\"),\"N\",\"Y\"))","v":"-"},{"$f":"IF(OR('Enrollment Form'!$CL24=\"\",'Enrollment Form'!$CL24=\"No\"),\"-\",IF(AND('Enrollment Form'!$CL24=\"Yes\",'Enrollment Form'!$CM24=\"\"),\"N\",\"Y\"))","v":"-"},{"$f":"IF(OR('Enrollment Form'!$CN24=\"\",'Enrollment Form'!$CN24=\"No\"),\"-\",IF(AND('Enrollment Form'!$CN24=\"Yes\",'Enrollment Form'!$CO24=\"\"),\"N\",\"Y\"))","v":"-"},{"$f":"IF(OR('Enrollment Form'!$CN24=\"\",'Enrollment Form'!$CN24=\"No\"),\"-\",IF(AND('Enrollment Form'!$CN24=\"Yes\",'Enrollment Form'!$CP24=\"\"),\"N\",\"Y\"))","v":"-"},{"$f":"IF('Enrollment Form'!B24<>\"Subscriber\",\"-\",IF(AND('Enrollment Form'!B24=\"Subscriber\",'Enrollment Form'!C24=\"Enroll\",'Enrollment Form'!AA24=\"\"),\"N\",\"Y\"))","v":"-"},{"$f":"IF(OR('Enrollment Form'!B24=\"Subscriber\",'Enrollment Form'!B24=\"\"),\"-\",IF('Enrollment Form'!BP24=\"\",\"N\",\"Y\"))","v":"-"},{"$f":"IF('Enrollment Form'!B24<>\"Subscriber\",\"-\",IF(AND('Enrollment Form'!B24=\"Subscriber\",'Enrollment Form'!G24=\"\"),\"N\",\"Y\"))","v":"-"},{"$f":"IF('Enrollment Form'!A24=\"\",\"\",IF('Enrollment Form'!B24=\"Subscriber\",\"-\",IF(AND('Enrollment Form'!B24<>\"Subscriber\",'Enrollment Form'!G24='Enrollment Form'!H24),\"N\",\"Y\")))","v":""},0,null,null,null,null,null,null,"14","Sub Date of Hire filled?","Subscriber Date of Hire must be populated","AP"]
[25,{"$f":"IF('Enrollment Form'!$A25<>\"\",\"Y\",\"N\")","v":"N"},{"$f":"IF(AND('Enrollment Form'!$B25=\"\",'Enrollment Form'!$C25<>\"\"),\"N\",IF($B18=\"N\",\"\",\"Y\"))","v":""},{"$f":"IF(OR($B18=\"N\",'Enrollment Form'!G25=\"\"),\"\",IF('Enrollment Form'!$B25<>\"Subscriber\",\"\",IF('Enrollment Form'!$G25='Enrollment Form'!$H25,\"Y\",\"N\")))","v":""},{"$f":"IF($B18=\"N\",\"\",IF(AND(COUNTIFS('Enrollment Form'!$H$11:$H$1000,'Enrollment Form'!$H25,'Enrollment Form'!$B$11:$B$1000,'Enrollment Form'!$B25)>1,'Enrollment Form'!$H25<>\"\"),\"N\",\"Y\"))","v":""},{"$f":"IF($B18=\"N\",\"\",IF(LEN('Enrollment Form'!$Y25)=0,\"\",IF(LEN('Enrollment Form'!$Y25)<>5,\"N\",\"Y\")))","v":""},{"$f":"IF($B18=\"N\",\"\",IF(LEN('Enrollment Form'!$AD25=0),\"\",IF(LEN('Enrollment Form'!$AD25)<>5,\"N\",\"Y\")))","v":""},{"$f":"IF($B18=\"N\",\"\",IF(LEN('Enrollment Form'!$BS25=0),\"\",IF(LEN('Enrollment Form'!$BS25)<>5,\"N\",\"Y\")))","v":""},{"$f":"IF($B18=\"N\",\"\",IF(LEN('Enrollment Form'!$AE25)=0,\"\",IF(LEN('Enrollment Form'!$AE25)<>10,\"N\",\"Y\")))","v":""},{"$f":"IF($B18=\"N\",\"\",IF(LEN('Enrollment Form'!$AF25)=0,\"\",IF(LEN('Enrollment Form'!$AF25)<>10,\"N\",\"Y\")))","v":""},{"$f":"IF('Enrollment Form'!$O25<>\"Graded\",\"-\",IF(AND('Enrollment Form'!$O25=\"Graded\",'Enrollment Form'!$AR25<>\"\"),\"Y\",\"N\"))","v":"-"},{"$f":"IF($B18=\"N\",\"\",IF(OR('Enrollment Form'!$B25<>\"Subscriber\",'Enrollment Form'!$C25=\"ROC\"),\"-\",IF(AND('Enrollment Form'!$B25=\"Subscriber\",'Enrollment Form'!$C25=\"Enroll\",'Enrollment Form'!$AJ25<>\"\"),\"Y\",\"N\")))","v":""},{"$f":"IF($B18=\"N\",\"\",IF(OR('Enrollment Form'!$B25<>\"Subscriber\",'Enrollment Form'!$C25=\"ROC\"),\"-\",IF(AND('Enrollment Form'!$B25=\"Subscriber\",'Enrollment Form'!$C25=\"Enroll\",'Enrollment Form'!$AK25<>\"\"),\"Y\",\"N\")))","v":""},{"$f":"IF($B18=\"N\",\"\",IF(OR('Enrollment Form'!$B25<>\"Subscriber\",'Enrollment Form'!$C25=\"ROC\"),\"-\",IF(AND('Enrollment Form'!$B25=\"Subscriber\",'Enrollment Form'!$C25=\"Enroll\",'Enrollment Form'!$AL25<>\"\"),\"Y\",\"N\")))","v":""},{"$f":"IF($B18=\"N\",\"\",IF(OR('Enrollment Form'!$B25<>\"Subscriber\",'Enrollment Form'!$C25=\"ROC\"),\"-\",IF(AND('Enrollment Form'!$B25=\"Subscriber\",'Enrollment Form'!$C25=\"Enroll\",'Enrollment Form'!$AP25<>\"\"),\"Y\",\"N\")))","v":""},{"$f":"IF($B18=\"N\",\"\",IF(OR('Enrollment Form'!$B25<>\"Subscriber\",'Enrollment Form'!$C25=\"ROC\"),\"-\",IF(AND('Enrollment Form'!$B25=\"Subscriber\",'Enrollment Form'!$C25=\"Enroll\",'Enrollment Form'!$AQ25<>\"\"),\"Y\",\"N\")))","v":""},{"$f":"IF($B18=\"N\",\"\",IF(OR('Enrollment Form'!$B25<>\"Subscriber\",'Enrollment Form'!$C25=\"ROC\"),\"-\",IF(AND('Enrollment Form'!$B25=\"Subscriber\",'Enrollment Form'!$C25=\"Enroll\",'Enrollment Form'!$AS25<>\"\"),\"Y\",\"N\")))","v":""},{"$f":"IF($B18=\"N\",\"\",IF($Q18=\"-\",\"-\",IF(AND($Q18=\"Y\",'Enrollment Form'!$AS25=\"No\"),\"-\",IF(AND($Q18=\"Y\",'Enrollment Form'!$AS25=\"Yes\",'Enrollment Form'!$AT25<>\"\"),\"Y\",\"N\"))))","v":""},{"$f":"IF($B18=\"N\",\"\",IF(OR('Enrollment Form'!$B25<>\"Subscriber\",'Enrollment Form'!$C25=\"ROC\"),\"-\",IF(AND('Enrollment Form'!$B25=\"Subscriber\",'Enrollment Form'!$C25=\"Enroll\",'Enrollment Form'!$CV25<>\"\"),\"Y\",\"N\")))","v":""},{"$f":"IF($B18=\"N\",\"\",IF($S18=\"-\",\"-\",IF(AND($S18=\"Y\",'Enrollment Form'!$CV25=\"No\"),\"-\",IF(AND($S18=\"Y\",'Enrollment Form'!$CV25=\"Yes\",'Enrollment Form'!$CW25<>\"\"),\"Y\",\"N\"))))","v":""},{"$f":"IF(OR('Enrollment Form'!$AY25=\"Yes\",'Enrollment Form'!$AY25=\"\"),\"-\",IF(OR(AND('Enrollment Form'!$AY25=\"No\",ISERROR(FIND(\"HMO\",VLOOKUP('Enrollment Form'!G25,'Enrollment Form'!H$11:J$1000,3,FALSE),1))=FALSE,COUNTA('Enrollment Form'!$AZ25:$BC25)=4),AND('Enrollment Form'!$AY25=\"No\",ISERROR(FIND(\"HMO\",VLOOKUP('Enrollment Form'!G25,'Enrollment Form'!H$11:J$1000,3,FALSE),1))=FALSE,COUNTA('Enrollment Form'!$BT25:$BW25)=4)),\"Y\",\"N\"))","v":"-"},{"$f":"IF($B18=\"N\",\"\",IF('Enrollment Form'!$B25=\"Subscriber\",\"-\",IF(COUNTA('Enrollment Form'!$BL25,'Enrollment Form'!$BN25)=2,\"Y\",\"N\")))","v":""},{"$f":"IF($B18=\"N\",\"\",IF(OR('Enrollment Form'!$AX25=\"\",'Enrollment Form'!$AX25=\"No\"),\"-\",IF(AND('Enrollment Form'!$AX25=\"Yes\",COUNTA('Enrollment Form'!$CR25)=1),\"Y\",\"N\")))","v":""},{"$f":"IF(OR('Enrollment Form'!$CR25=\"\",'Enrollment Form'!$CR25=\"No\"),\"-\",IF(COUNTA('Enrollment Form'!$CT25:$CU25)=2,\"Y\",\"N\"))","v":"-"},{"$f":"IF($B18=\"N\",\"\",IF(COUNTIF('Enrollment Form'!$DG25:$DP25,\"Other\")=COUNTA('Enrollment Form'!$DK25,'Enrollment Form'!$DH25,'Enrollment Form'!$DN25,'Enrollment Form'!$DQ25),\"Y\",\"N\"))","v":""},{"$f":"IF($B18=\"N\",\"\",IF(OR('Enrollment Form'!B25<>\"Subscriber\",'Enrollment Form'!C25=\"ROC\",COUNTIF('Enrollment Form'!AV25:AW25,\"Yes\")>=1),\"-\",IF(AND('Enrollment Form'!C25=\"Enroll\",COUNTIF('Enrollment Form'!AV25:AW25,\"No\")=2,'Enrollment Form'!AX25=\"\"),\"N\",\"Y\")))","v":""},{"$f":"IF(OR(B18=\"N\",'Enrollment Form'!B25<>\"Subscriber\",'Enrollment Form'!C25=\"ROC\",'Enrollment Form'!O25<>\"Multiple of Salary\"),\"-\",IF(COUNTA('Enrollment Form'!T25:U25)<2,\"N\",\"Y\"))","v":"-"},{"$f":"IF(B18=\"N\",\"\",IF(OR('Enrollment Form'!C25=\"ROC\",'Enrollment Form'!B25<>\"Subscriber\",'Enrollment Form'!O25=\"Waive\",'Enrollment Form'!O25=\"\"),\"-\",IF('Enrollment Form'!P25=\"\",\"N\",\"Y\")))","v":""},{"$f":"IF($B18=\"N\",\"\",IF(AND('Enrollment Form'!$C25=\"ROC\",'Enrollment Form'!$DR25<>\"\"),\"Y\",IF(AND('Enrollment Form'!$C25=\"ROC\",'Enrollment Form'!$DR25=\"\"),\"N\",IF(AND('Enrollment Form'!$C25=\"Enroll\",'Enrollment Form'!$B25=\"Subscriber\",'Enrollment Form'!$CX25=\"No\",'Enrollment Form'!$DR25=\"\"),\"N\",IF(AND('Enrollment Form'!$C25=\"Enroll\",'Enrollment Form'!$B25=\"Subscriber\",'Enrollment Form'!$CX25=\"Yes\"),\"-\",\"Y\")))))","v":""},{"$f":"IF($B18=\"N\",\"\",IF(AND('Enrollment Form'!$C25=\"ROC\",'Enrollment Form'!$DS25<>\"\"),\"Y\",IF(AND('Enrollment Form'!$C25=\"ROC\",'Enrollment Form'!$DS25=\"\"),\"N\",IF(AND('Enrollment Form'!$C25=\"Enroll\",'Enrollment Form'!$B25=\"Subscriber\",'Enrollment Form'!$CX25=\"No\",'Enrollment Form'!$DS25=\"\"),\"N\",IF(AND('Enrollment Form'!$C25=\"Enroll\",'Enrollment Form'!$B25=\"Subscriber\",'Enrollment Form'!$CX25=\"Yes\"),\"-\",\"Y\")))))","v":""},{"$f":"IF('Enrollment Form'!AH25=\"\",\"\",IF(ISERROR(SEARCH(\".\",'Enrollment Form'!AH25,SEARCH(\"@\",'Enrollment Form'!AH25))),\"N\",\"Y\"))","v":""},{"$f":"IF(OR($B18=\"N\",'Enrollment Form'!$G25=\"\"),\"\",IF('Enrollment Form'!$B25<>\"Subscriber\",\"-\",IF(COUNTIF('Enrollment Form'!$AV25:$AW25,\"Yes\")=2,\"N\",\"Y\")))","v":""},{"$f":"IF(OR('Enrollment Form'!$CJ25=\"\",'Enrollment Form'!$CJ25=\"No\"),\"-\",IF(AND('Enrollment Form'!$CJ25=\"Yes\",'Enrollment Form'!$CK25=\"\"),\"N\",\"Y\"))","v":"-"},{"$f":"IF(OR('Enrollment Form'!$CL25=\"\",'Enrollment Form'!$CL25=\"No\"),\"-\",IF(AND('Enrollment Form'!$CL25=\"Yes\",'Enrollment Form'!$CM25=\"\"),\"N\",\"Y\"))","v":"-"},{"$f":"IF(OR('Enrollment Form'!$CN25=\"\",'Enrollment Form'!$CN25=\"No\"),\"-\",IF(AND('Enrollment Form'!$CN25=\"Yes\",'Enrollment Form'!$CO25=\"\"),\"N\",\"Y\"))","v":"-"},{"$f":"IF(OR('Enrollment Form'!$CN25=\"\",'Enrollment Form'!$CN25=\"No\"),\"-\",IF(AND('Enrollment Form'!$CN25=\"Yes\",'Enrollment Form'!$CP25=\"\"),\"N\",\"Y\"))","v":"-"},{"$f":"IF('Enrollment Form'!B25<>\"Subscriber\",\"-\",IF(AND('Enrollment Form'!B25=\"Subscriber\",'Enrollment Form'!C25=\"Enroll\",'Enrollment Form'!AA25=\"\"),\"N\",\"Y\"))","v":"-"},{"$f":"IF(OR('Enrollment Form'!B25=\"Subscriber\",'Enrollment Form'!B25=\"\"),\"-\",IF('Enrollment Form'!BP25=\"\",\"N\",\"Y\"))","v":"-"},{"$f":"IF('Enrollment Form'!B25<>\"Subscriber\",\"-\",IF(AND('Enrollment Form'!B25=\"Subscriber\",'Enrollment Form'!G25=\"\"),\"N\",\"Y\"))","v":"-"},{"$f":"IF('Enrollment Form'!A25=\"\",\"\",IF('Enrollment Form'!B25=\"Subscriber\",\"-\",IF(AND('Enrollment Form'!B25<>\"Subscriber\",'Enrollment Form'!G25='Enrollment Form'!H25),\"N\",\"Y\")))","v":""},0,null,null,null,null,null,null,"15","Sub Job Title filled?","Subscriber Job Title must be populated","AQ"]
[26,{"$f":"IF('Enrollment Form'!$A26<>\"\",\"Y\",\"N\")","v":"N"},{"$f":"IF(AND('Enrollment Form'!$B26=\"\",'Enrollment Form'!$C26<>\"\"),\"N\",IF($B19=\"N\",\"\",\"Y\"))","v":""},{"$f":"IF(OR($B19=\"N\",'Enrollment Form'!G26=\"\"),\"\",IF('Enrollment Form'!$B26<>\"Subscriber\",\"\",IF('Enrollment Form'!$G26='Enrollment Form'!$H26,\"Y\",\"N\")))","v":""},{"$f":"IF($B19=\"N\",\"\",IF(AND(COUNTIFS('Enrollment Form'!$H$11:$H$1000,'Enrollment Form'!$H26,'Enrollment Form'!$B$11:$B$1000,'Enrollment Form'!$B26)>1,'Enrollment Form'!$H26<>\"\"),\"N\",\"Y\"))","v":""},{"$f":"IF($B19=\"N\",\"\",IF(LEN('Enrollment Form'!$Y26)=0,\"\",IF(LEN('Enrollment Form'!$Y26)<>5,\"N\",\"Y\")))","v":""},{"$f":"IF($B19=\"N\",\"\",IF(LEN('Enrollment Form'!$AD26=0),\"\",IF(LEN('Enrollment Form'!$AD26)<>5,\"N\",\"Y\")))","v":""},{"$f":"IF($B19=\"N\",\"\",IF(LEN('Enrollment Form'!$BS26=0),\"\",IF(LEN('Enrollment Form'!$BS26)<>5,\"N\",\"Y\")))","v":""},{"$f":"IF($B19=\"N\",\"\",IF(LEN('Enrollment Form'!$AE26)=0,\"\",IF(LEN('Enrollment Form'!$AE26)<>10,\"N\",\"Y\")))","v":""},{"$f":"IF($B19=\"N\",\"\",IF(LEN('Enrollment Form'!$AF26)=0,\"\",IF(LEN('Enrollment Form'!$AF26)<>10,\"N\",\"Y\")))","v":""},{"$f":"IF('Enrollment Form'!$O26<>\"Graded\",\"-\",IF(AND('Enrollment Form'!$O26=\"Graded\",'Enrollment Form'!$AR26<>\"\"),\"Y\",\"N\"))","v":"-"},{"$f":"IF($B19=\"N\",\"\",IF(OR('Enrollment Form'!$B26<>\"Subscriber\",'Enrollment Form'!$C26=\"ROC\"),\"-\",IF(AND('Enrollment Form'!$B26=\"Subscriber\",'Enrollment Form'!$C26=\"Enroll\",'Enrollment Form'!$AJ26<>\"\"),\"Y\",\"N\")))","v":""},{"$f":"IF($B19=\"N\",\"\",IF(OR('Enrollment Form'!$B26<>\"Subscriber\",'Enrollment Form'!$C26=\"ROC\"),\"-\",IF(AND('Enrollment Form'!$B26=\"Subscriber\",'Enrollment Form'!$C26=\"Enroll\",'Enrollment Form'!$AK26<>\"\"),\"Y\",\"N\")))","v":""},{"$f":"IF($B19=\"N\",\"\",IF(OR('Enrollment Form'!$B26<>\"Subscriber\",'Enrollment Form'!$C26=\"ROC\"),\"-\",IF(AND('Enrollment Form'!$B26=\"Subscriber\",'Enrollment Form'!$C26=\"Enroll\",'Enrollment Form'!$AL26<>\"\"),\"Y\",\"N\")))","v":""},{"$f":"IF($B19=\"N\",\"\",IF(OR('Enrollment Form'!$B26<>\"Subscriber\",'Enrollment Form'!$C26=\"ROC\"),\"-\",IF(AND('Enrollment Form'!$B26=\"Subscriber\",'Enrollment Form'!$C26=\"Enroll\",'Enrollment Form'!$AP26<>\"\"),\"Y\",\"N\")))","v":""},{"$f":"IF($B19=\"N\",\"\",IF(OR('Enrollment Form'!$B26<>\"Subscriber\",'Enrollment Form'!$C26=\"ROC\"),\"-\",IF(AND('Enrollment Form'!$B26=\"Subscriber\",'Enrollment Form'!$C26=\"Enroll\",'Enrollment Form'!$AQ26<>\"\"),\"Y\",\"N\")))","v":""},{"$f":"IF($B19=\"N\",\"\",IF(OR('Enrollment Form'!$B26<>\"Subscriber\",'Enrollment Form'!$C26=\"ROC\"),\"-\",IF(AND('Enrollment Form'!$B26=\"Subscriber\",'Enrollment Form'!$C26=\"Enroll\",'Enrollment Form'!$AS26<>\"\"),\"Y\",\"N\")))","v":""},{"$f":"IF($B19=\"N\",\"\",IF($Q19=\"-\",\"-\",IF(AND($Q19=\"Y\",'Enrollment Form'!$AS26=\"No\"),\"-\",IF(AND($Q19=\"Y\",'Enrollment Form'!$AS26=\"Yes\",'Enrollment Form'!$AT26<>\"\"),\"Y\",\"N\"))))","v":""},{"$f":"IF($B19=\"N\",\"\",IF(OR('Enrollment Form'!$B26<>\"Subscriber\",'Enrollment Form'!$C26=\"ROC\"),\"-\",IF(AND('Enrollment Form'!$B26=\"Subscriber\",'Enrollment Form'!$C26=\"Enroll\",'Enrollment Form'!$CV26<>\"\"),\"Y\",\"N\")))","v":""},{"$f":"IF($B19=\"N\",\"\",IF($S19=\"-\",\"-\",IF(AND($S19=\"Y\",'Enrollment Form'!$CV26=\"No\"),\"-\",IF(AND($S19=\"Y\",'Enrollment Form'!$CV26=\"Yes\",'Enrollment Form'!$CW26<>\"\"),\"Y\",\"N\"))))","v":""},{"$f":"IF(OR('Enrollment Form'!$AY26=\"Yes\",'Enrollment Form'!$AY26=\"\"),\"-\",IF(OR(AND('Enrollment Form'!$AY26=\"No\",ISERROR(FIND(\"HMO\",VLOOKUP('Enrollment Form'!G26,'Enrollment Form'!H$11:J$1000,3,FALSE),1))=FALSE,COUNTA('Enrollment Form'!$AZ26:$BC26)=4),AND('Enrollment Form'!$AY26=\"No\",ISERROR(FIND(\"HMO\",VLOOKUP('Enrollment Form'!G26,'Enrollment Form'!H$11:J$1000,3,FALSE),1))=FALSE,COUNTA('Enrollment Form'!$BT26:$BW26)=4)),\"Y\",\"N\"))","v":"-"},{"$f":"IF($B19=\"N\",\"\",IF('Enrollment Form'!$B26=\"Subscriber\",\"-\",IF(COUNTA('Enrollment Form'!$BL26,'Enrollment Form'!$BN26)=2,\"Y\",\"N\")))","v":""},{"$f":"IF($B19=\"N\",\"\",IF(OR('Enrollment Form'!$AX26=\"\",'Enrollment Form'!$AX26=\"No\"),\"-\",IF(AND('Enrollment Form'!$AX26=\"Yes\",COUNTA('Enrollment Form'!$CR26)=1),\"Y\",\"N\")))","v":""},{"$f":"IF(OR('Enrollment Form'!$CR26=\"\",'Enrollment Form'!$CR26=\"No\"),\"-\",IF(COUNTA('Enrollment Form'!$CT26:$CU26)=2,\"Y\",\"N\"))","v":"-"},{"$f":"IF($B19=\"N\",\"\",IF(COUNTIF('Enrollment Form'!$DG26:$DP26,\"Other\")=COUNTA('Enrollment Form'!$DK26,'Enrollment Form'!$DH26,'Enrollment Form'!$DN26,'Enrollment Form'!$DQ26),\"Y\",\"N\"))","v":""},{"$f":"IF($B19=\"N\",\"\",IF(OR('Enrollment Form'!B26<>\"Subscriber\",'Enrollment Form'!C26=\"ROC\",COUNTIF('Enrollment Form'!AV26:AW26,\"Yes\")>=1),\"-\",IF(AND('Enrollment Form'!C26=\"Enroll\",COUNTIF('Enrollment Form'!AV26:AW26,\"No\")=2,'Enrollment Form'!AX26=\"\"),\"N\",\"Y\")))","v":""},{"$f":"IF(OR(B19=\"N\",'Enrollment Form'!B26<>\"Subscriber\",'Enrollment Form'!C26=\"ROC\",'Enrollment Form'!O26<>\"Multiple of Salary\"),\"-\",IF(COUNTA('Enrollment Form'!T26:U26)<2,\"N\",\"Y\"))","v":"-"},{"$f":"IF(B19=\"N\",\"\",IF(OR('Enrollment Form'!C26=\"ROC\",'Enrollment Form'!B26<>\"Subscriber\",'Enrollment Form'!O26=\"Waive\",'Enrollment Form'!O26=\"\"),\"-\",IF('Enrollment Form'!P26=\"\",\"N\",\"Y\")))","v":""},{"$f":"IF($B19=\"N\",\"\",IF(AND('Enrollment Form'!$C26=\"ROC\",'Enrollment Form'!$DR26<>\"\"),\"Y\",IF(AND('Enrollment Form'!$C26=\"ROC\",'Enrollment Form'!$DR26=\"\"),\"N\",IF(AND('Enrollment Form'!$C26=\"Enroll\",'Enrollment Form'!$B26=\"Subscriber\",'Enrollment Form'!$CX26=\"No\",'Enrollment Form'!$DR26=\"\"),\"N\",IF(AND('Enrollment Form'!$C26=\"Enroll\",'Enrollment Form'!$B26=\"Subscriber\",'Enrollment Form'!$CX26=\"Yes\"),\"-\",\"Y\")))))","v":""},{"$f":"IF($B19=\"N\",\"\",IF(AND('Enrollment Form'!$C26=\"ROC\",'Enrollment Form'!$DS26<>\"\"),\"Y\",IF(AND('Enrollment Form'!$C26=\"ROC\",'Enrollment Form'!$DS26=\"\"),\"N\",IF(AND('Enrollment Form'!$C26=\"Enroll\",'Enrollment Form'!$B26=\"Subscriber\",'Enrollment Form'!$CX26=\"No\",'Enrollment Form'!$DS26=\"\"),\"N\",IF(AND('Enrollment Form'!$C26=\"Enroll\",'Enrollment Form'!$B26=\"Subscriber\",'Enrollment Form'!$CX26=\"Yes\"),\"-\",\"Y\")))))","v":""},{"$f":"IF('Enrollment Form'!AH26=\"\",\"\",IF(ISERROR(SEARCH(\".\",'Enrollment Form'!AH26,SEARCH(\"@\",'Enrollment Form'!AH26))),\"N\",\"Y\"))","v":""},{"$f":"IF(OR($B19=\"N\",'Enrollment Form'!$G26=\"\"),\"\",IF('Enrollment Form'!$B26<>\"Subscriber\",\"-\",IF(COUNTIF('Enrollment Form'!$AV26:$AW26,\"Yes\")=2,\"N\",\"Y\")))","v":""},{"$f":"IF(OR('Enrollment Form'!$CJ26=\"\",'Enrollment Form'!$CJ26=\"No\"),\"-\",IF(AND('Enrollment Form'!$CJ26=\"Yes\",'Enrollment Form'!$CK26=\"\"),\"N\",\"Y\"))","v":"-"},{"$f":"IF(OR('Enrollment Form'!$CL26=\"\",'Enrollment Form'!$CL26=\"No\"),\"-\",IF(AND('Enrollment Form'!$CL26=\"Yes\",'Enrollment Form'!$CM26=\"\"),\"N\",\"Y\"))","v":"-"},{"$f":"IF(OR('Enrollment Form'!$CN26=\"\",'Enrollment Form'!$CN26=\"No\"),\"-\",IF(AND('Enrollment Form'!$CN26=\"Yes\",'Enrollment Form'!$CO26=\"\"),\"N\",\"Y\"))","v":"-"},{"$f":"IF(OR('Enrollment Form'!$CN26=\"\",'Enrollment Form'!$CN26=\"No\"),\"-\",IF(AND('Enrollment Form'!$CN26=\"Yes\",'Enrollment Form'!$CP26=\"\"),\"N\",\"Y\"))","v":"-"},{"$f":"IF('Enrollment Form'!B26<>\"Subscriber\",\"-\",IF(AND('Enrollment Form'!B26=\"Subscriber\",'Enrollment Form'!C26=\"Enroll\",'Enrollment Form'!AA26=\"\"),\"N\",\"Y\"))","v":"-"},{"$f":"IF(OR('Enrollment Form'!B26=\"Subscriber\",'Enrollment Form'!B26=\"\"),\"-\",IF('Enrollment Form'!BP26=\"\",\"N\",\"Y\"))","v":"-"},{"$f":"IF('Enrollment Form'!B26<>\"Subscriber\",\"-\",IF(AND('Enrollment Form'!B26=\"Subscriber\",'Enrollment Form'!G26=\"\"),\"N\",\"Y\"))","v":"-"},{"$f":"IF('Enrollment Form'!A26=\"\",\"\",IF('Enrollment Form'!B26=\"Subscriber\",\"-\",IF(AND('Enrollment Form'!B26<>\"Subscriber\",'Enrollment Form'!G26='Enrollment Form'!H26),\"N\",\"Y\")))","v":""},0,null,null,null,null,null,null,"16","Sub Dependents <26 filled?","Does Subscriber have any dependents under the age of 26 must be populated","AS"]
[27,{"$f":"IF('Enrollment Form'!$A27<>\"\",\"Y\",\"N\")","v":"N"},{"$f":"IF(AND('Enrollment Form'!$B27=\"\",'Enrollment Form'!$C27<>\"\"),\"N\",IF($B20=\"N\",\"\",\"Y\"))","v":""},{"$f":"IF(OR($B20=\"N\",'Enrollment Form'!G27=\"\"),\"\",IF('Enrollment Form'!$B27<>\"Subscriber\",\"\",IF('Enrollment Form'!$G27='Enrollment Form'!$H27,\"Y\",\"N\")))","v":""},{"$f":"IF($B20=\"N\",\"\",IF(AND(COUNTIFS('Enrollment Form'!$H$11:$H$1000,'Enrollment Form'!$H27,'Enrollment Form'!$B$11:$B$1000,'Enrollment Form'!$B27)>1,'Enrollment Form'!$H27<>\"\"),\"N\",\"Y\"))","v":""},{"$f":"IF($B20=\"N\",\"\",IF(LEN('Enrollment Form'!$Y27)=0,\"\",IF(LEN('Enrollment Form'!$Y27)<>5,\"N\",\"Y\")))","v":""},{"$f":"IF($B20=\"N\",\"\",IF(LEN('Enrollment Form'!$AD27=0),\"\",IF(LEN('Enrollment Form'!$AD27)<>5,\"N\",\"Y\")))","v":""},{"$f":"IF($B20=\"N\",\"\",IF(LEN('Enrollment Form'!$BS27=0),\"\",IF(LEN('Enrollment Form'!$BS27)<>5,\"N\",\"Y\")))","v":""},{"$f":"IF($B20=\"N\",\"\",IF(LEN('Enrollment Form'!$AE27)=0,\"\",IF(LEN('Enrollment Form'!$AE27)<>10,\"N\",\"Y\")))","v":""},{"$f":"IF($B20=\"N\",\"\",IF(LEN('Enrollment Form'!$AF27)=0,\"\",IF(LEN('Enrollment Form'!$AF27)<>10,\"N\",\"Y\")))","v":""},{"$f":"IF('Enrollment Form'!$O27<>\"Graded\",\"-\",IF(AND('Enrollment Form'!$O27=\"Graded\",'Enrollment Form'!$AR27<>\"\"),\"Y\",\"N\"))","v":"-"},{"$f":"IF($B20=\"N\",\"\",IF(OR('Enrollment Form'!$B27<>\"Subscriber\",'Enrollment Form'!$C27=\"ROC\"),\"-\",IF(AND('Enrollment Form'!$B27=\"Subscriber\",'Enrollment Form'!$C27=\"Enroll\",'Enrollment Form'!$AJ27<>\"\"),\"Y\",\"N\")))","v":""},{"$f":"IF($B20=\"N\",\"\",IF(OR('Enrollment Form'!$B27<>\"Subscriber\",'Enrollment Form'!$C27=\"ROC\"),\"-\",IF(AND('Enrollment Form'!$B27=\"Subscriber\",'Enrollment Form'!$C27=\"Enroll\",'Enrollment Form'!$AK27<>\"\"),\"Y\",\"N\")))","v":""},{"$f":"IF($B20=\"N\",\"\",IF(OR('Enrollment Form'!$B27<>\"Subscriber\",'Enrollment Form'!$C27=\"ROC\"),\"-\",IF(AND('Enrollment Form'!$B27=\"Subscriber\",'Enrollment Form'!$C27=\"Enroll\",'Enrollment Form'!$AL27<>\"\"),\"Y\",\"N\")))","v":""},{"$f":"IF($B20=\"N\",\"\",IF(OR('Enrollment Form'!$B27<>\"Subscriber\",'Enrollment Form'!$C27=\"ROC\"),\"-\",IF(AND('Enrollment Form'!$B27=\"Subscriber\",'Enrollment Form'!$C27=\"Enroll\",'Enrollment Form'!$AP27<>\"\"),\"Y\",\"N\")))","v":""},{"$f":"IF($B20=\"N\",\"\",IF(OR('Enrollment Form'!$B27<>\"Subscriber\",'Enrollment Form'!$C27=\"ROC\"),\"-\",IF(AND('Enrollment Form'!$B27=\"Subscriber\",'Enrollment Form'!$C27=\"Enroll\",'Enrollment Form'!$AQ27<>\"\"),\"Y\",\"N\")))","v":""},{"$f":"IF($B20=\"N\",\"\",IF(OR('Enrollment Form'!$B27<>\"Subscriber\",'Enrollment Form'!$C27=\"ROC\"),\"-\",IF(AND('Enrollment Form'!$B27=\"Subscriber\",'Enrollment Form'!$C27=\"Enroll\",'Enrollment Form'!$AS27<>\"\"),\"Y\",\"N\")))","v":""},{"$f":"IF($B20=\"N\",\"\",IF($Q20=\"-\",\"-\",IF(AND($Q20=\"Y\",'Enrollment Form'!$AS27=\"No\"),\"-\",IF(AND($Q20=\"Y\",'Enrollment Form'!$AS27=\"Yes\",'Enrollment Form'!$AT27<>\"\"),\"Y\",\"N\"))))","v":""},{"$f":"IF($B20=\"N\",\"\",IF(OR('Enrollment Form'!$B27<>\"Subscriber\",'Enrollment Form'!$C27=\"ROC\"),\"-\",IF(AND('Enrollment Form'!$B27=\"Subscriber\",'Enrollment Form'!$C27=\"Enroll\",'Enrollment Form'!$CV27<>\"\"),\"Y\",\"N\")))","v":""},{"$f":"IF($B20=\"N\",\"\",IF($S20=\"-\",\"-\",IF(AND($S20=\"Y\",'Enrollment Form'!$CV27=\"No\"),\"-\",IF(AND($S20=\"Y\",'Enrollment Form'!$CV27=\"Yes\",'Enrollment Form'!$CW27<>\"\"),\"Y\",\"N\"))))","v":""},{"$f":"IF(OR('Enrollment Form'!$AY27=\"Yes\",'Enrollment Form'!$AY27=\"\"),\"-\",IF(OR(AND('Enrollment Form'!$AY27=\"No\",ISERROR(FIND(\"HMO\",VLOOKUP('Enrollment Form'!G27,'Enrollment Form'!H$11:J$1000,3,FALSE),1))=FALSE,COUNTA('Enrollment Form'!$AZ27:$BC27)=4),AND('Enrollment Form'!$AY27=\"No\",ISERROR(FIND(\"HMO\",VLOOKUP('Enrollment Form'!G27,'Enrollment Form'!H$11:J$1000,3,FALSE),1))=FALSE,COUNTA('Enrollment Form'!$BT27:$BW27)=4)),\"Y\",\"N\"))","v":"-"},{"$f":"IF($B20=\"N\",\"\",IF('Enrollment Form'!$B27=\"Subscriber\",\"-\",IF(COUNTA('Enrollment Form'!$BL27,'Enrollment Form'!$BN27)=2,\"Y\",\"N\")))","v":""},{"$f":"IF($B20=\"N\",\"\",IF(OR('Enrollment Form'!$AX27=\"\",'Enrollment Form'!$AX27=\"No\"),\"-\",IF(AND('Enrollment Form'!$AX27=\"Yes\",COUNTA('Enrollment Form'!$CR27)=1),\"Y\",\"N\")))","v":""},{"$f":"IF(OR('Enrollment Form'!$CR27=\"\",'Enrollment Form'!$CR27=\"No\"),\"-\",IF(COUNTA('Enrollment Form'!$CT27:$CU27)=2,\"Y\",\"N\"))","v":"-"},{"$f":"IF($B20=\"N\",\"\",IF(COUNTIF('Enrollment Form'!$DG27:$DP27,\"Other\")=COUNTA('Enrollment Form'!$DK27,'Enrollment Form'!$DH27,'Enrollment Form'!$DN27,'Enrollment Form'!$DQ27),\"Y\",\"N\"))","v":""},{"$f":"IF($B20=\"N\",\"\",IF(OR('Enrollment Form'!B27<>\"Subscriber\",'Enrollment Form'!C27=\"ROC\",COUNTIF('Enrollment Form'!AV27:AW27,\"Yes\")>=1),\"-\",IF(AND('Enrollment Form'!C27=\"Enroll\",COUNTIF('Enrollment Form'!AV27:AW27,\"No\")=2,'Enrollment Form'!AX27=\"\"),\"N\",\"Y\")))","v":""},{"$f":"IF(OR(B20=\"N\",'Enrollment Form'!B27<>\"Subscriber\",'Enrollment Form'!C27=\"ROC\",'Enrollment Form'!O27<>\"Multiple of Salary\"),\"-\",IF(COUNTA('Enrollment Form'!T27:U27)<2,\"N\",\"Y\"))","v":"-"},{"$f":"IF(B20=\"N\",\"\",IF(OR('Enrollment Form'!C27=\"ROC\",'Enrollment Form'!B27<>\"Subscriber\",'Enrollment Form'!O27=\"Waive\",'Enrollment Form'!O27=\"\"),\"-\",IF('Enrollment Form'!P27=\"\",\"N\",\"Y\")))","v":""},{"$f":"IF($B20=\"N\",\"\",IF(AND('Enrollment Form'!$C27=\"ROC\",'Enrollment Form'!$DR27<>\"\"),\"Y\",IF(AND('Enrollment Form'!$C27=\"ROC\",'Enrollment Form'!$DR27=\"\"),\"N\",IF(AND('Enrollment Form'!$C27=\"Enroll\",'Enrollment Form'!$B27=\"Subscriber\",'Enrollment Form'!$CX27=\"No\",'Enrollment Form'!$DR27=\"\"),\"N\",IF(AND('Enrollment Form'!$C27=\"Enroll\",'Enrollment Form'!$B27=\"Subscriber\",'Enrollment Form'!$CX27=\"Yes\"),\"-\",\"Y\")))))","v":""},{"$f":"IF($B20=\"N\",\"\",IF(AND('Enrollment Form'!$C27=\"ROC\",'Enrollment Form'!$DS27<>\"\"),\"Y\",IF(AND('Enrollment Form'!$C27=\"ROC\",'Enrollment Form'!$DS27=\"\"),\"N\",IF(AND('Enrollment Form'!$C27=\"Enroll\",'Enrollment Form'!$B27=\"Subscriber\",'Enrollment Form'!$CX27=\"No\",'Enrollment Form'!$DS27=\"\"),\"N\",IF(AND('Enrollment Form'!$C27=\"Enroll\",'Enrollment Form'!$B27=\"Subscriber\",'Enrollment Form'!$CX27=\"Yes\"),\"-\",\"Y\")))))","v":""},{"$f":"IF('Enrollment Form'!AH27=\"\",\"\",IF(ISERROR(SEARCH(\".\",'Enrollment Form'!AH27,SEARCH(\"@\",'Enrollment Form'!AH27))),\"N\",\"Y\"))","v":""},{"$f":"IF(OR($B20=\"N\",'Enrollment Form'!$G27=\"\"),\"\",IF('Enrollment Form'!$B27<>\"Subscriber\",\"-\",IF(COUNTIF('Enrollment Form'!$AV27:$AW27,\"Yes\")=2,\"N\",\"Y\")))","v":""},{"$f":"IF(OR('Enrollment Form'!$CJ27=\"\",'Enrollment Form'!$CJ27=\"No\"),\"-\",IF(AND('Enrollment Form'!$CJ27=\"Yes\",'Enrollment Form'!$CK27=\"\"),\"N\",\"Y\"))","v":"-"},{"$f":"IF(OR('Enrollment Form'!$CL27=\"\",'Enrollment Form'!$CL27=\"No\"),\"-\",IF(AND('Enrollment Form'!$CL27=\"Yes\",'Enrollment Form'!$CM27=\"\"),\"N\",\"Y\"))","v":"-"},{"$f":"IF(OR('Enrollment Form'!$CN27=\"\",'Enrollment Form'!$CN27=\"No\"),\"-\",IF(AND('Enrollment Form'!$CN27=\"Yes\",'Enrollment Form'!$CO27=\"\"),\"N\",\"Y\"))","v":"-"},{"$f":"IF(OR('Enrollment Form'!$CN27=\"\",'Enrollment Form'!$CN27=\"No\"),\"-\",IF(AND('Enrollment Form'!$CN27=\"Yes\",'Enrollment Form'!$CP27=\"\"),\"N\",\"Y\"))","v":"-"},{"$f":"IF('Enrollment Form'!B27<>\"Subscriber\",\"-\",IF(AND('Enrollment Form'!B27=\"Subscriber\",'Enrollment Form'!C27=\"Enroll\",'Enrollment Form'!AA27=\"\"),\"N\",\"Y\"))","v":"-"},{"$f":"IF(OR('Enrollment Form'!B27=\"Subscriber\",'Enrollment Form'!B27=\"\"),\"-\",IF('Enrollment Form'!BP27=\"\",\"N\",\"Y\"))","v":"-"},{"$f":"IF('Enrollment Form'!B27<>\"Subscriber\",\"-\",IF(AND('Enrollment Form'!B27=\"Subscriber\",'Enrollment Form'!G27=\"\"),\"N\",\"Y\"))","v":"-"},{"$f":"IF('Enrollment Form'!A27=\"\",\"\",IF('Enrollment Form'!B27=\"Subscriber\",\"-\",IF(AND('Enrollment Form'!B27<>\"Subscriber\",'Enrollment Form'!G27='Enrollment Form'!H27),\"N\",\"Y\")))","v":""},0,null,null,null,null,null,null,"17","Sub # Dependents <26 filled?","If \"Yes\" to above question, then number of dependents under the age of 26 must be supplied","AS-AT"]
[28,{"$f":"IF('Enrollment Form'!$A28<>\"\",\"Y\",\"N\")","v":"N"},{"$f":"IF(AND('Enrollment Form'!$B28=\"\",'Enrollment Form'!$C28<>\"\"),\"N\",IF($B21=\"N\",\"\",\"Y\"))","v":""},{"$f":"IF(OR($B21=\"N\",'Enrollment Form'!G28=\"\"),\"\",IF('Enrollment Form'!$B28<>\"Subscriber\",\"\",IF('Enrollment Form'!$G28='Enrollment Form'!$H28,\"Y\",\"N\")))","v":""},{"$f":"IF($B21=\"N\",\"\",IF(AND(COUNTIFS('Enrollment Form'!$H$11:$H$1000,'Enrollment Form'!$H28,'Enrollment Form'!$B$11:$B$1000,'Enrollment Form'!$B28)>1,'Enrollment Form'!$H28<>\"\"),\"N\",\"Y\"))","v":""},{"$f":"IF($B21=\"N\",\"\",IF(LEN('Enrollment Form'!$Y28)=0,\"\",IF(LEN('Enrollment Form'!$Y28)<>5,\"N\",\"Y\")))","v":""},{"$f":"IF($B21=\"N\",\"\",IF(LEN('Enrollment Form'!$AD28=0),\"\",IF(LEN('Enrollment Form'!$AD28)<>5,\"N\",\"Y\")))","v":""},{"$f":"IF($B21=\"N\",\"\",IF(LEN('Enrollment Form'!$BS28=0),\"\",IF(LEN('Enrollment Form'!$BS28)<>5,\"N\",\"Y\")))","v":""},{"$f":"IF($B21=\"N\",\"\",IF(LEN('Enrollment Form'!$AE28)=0,\"\",IF(LEN('Enrollment Form'!$AE28)<>10,\"N\",\"Y\")))","v":""},{"$f":"IF($B21=\"N\",\"\",IF(LEN('Enrollment Form'!$AF28)=0,\"\",IF(LEN('Enrollment Form'!$AF28)<>10,\"N\",\"Y\")))","v":""},{"$f":"IF('Enrollment Form'!$O28<>\"Graded\",\"-\",IF(AND('Enrollment Form'!$O28=\"Graded\",'Enrollment Form'!$AR28<>\"\"),\"Y\",\"N\"))","v":"-"},{"$f":"IF($B21=\"N\",\"\",IF(OR('Enrollment Form'!$B28<>\"Subscriber\",'Enrollment Form'!$C28=\"ROC\"),\"-\",IF(AND('Enrollment Form'!$B28=\"Subscriber\",'Enrollment Form'!$C28=\"Enroll\",'Enrollment Form'!$AJ28<>\"\"),\"Y\",\"N\")))","v":""},{"$f":"IF($B21=\"N\",\"\",IF(OR('Enrollment Form'!$B28<>\"Subscriber\",'Enrollment Form'!$C28=\"ROC\"),\"-\",IF(AND('Enrollment Form'!$B28=\"Subscriber\",'Enrollment Form'!$C28=\"Enroll\",'Enrollment Form'!$AK28<>\"\"),\"Y\",\"N\")))","v":""},{"$f":"IF($B21=\"N\",\"\",IF(OR('Enrollment Form'!$B28<>\"Subscriber\",'Enrollment Form'!$C28=\"ROC\"),\"-\",IF(AND('Enrollment Form'!$B28=\"Subscriber\",'Enrollment Form'!$C28=\"Enroll\",'Enrollment Form'!$AL28<>\"\"),\"Y\",\"N\")))","v":""},{"$f":"IF($B21=\"N\",\"\",IF(OR('Enrollment Form'!$B28<>\"Subscriber\",'Enrollment Form'!$C28=\"ROC\"),\"-\",IF(AND('Enrollment Form'!$B28=\"Subscriber\",'Enrollment Form'!$C28=\"Enroll\",'Enrollment Form'!$AP28<>\"\"),\"Y\",\"N\")))","v":""},{"$f":"IF($B21=\"N\",\"\",IF(OR('Enrollment Form'!$B28<>\"Subscriber\",'Enrollment Form'!$C28=\"ROC\"),\"-\",IF(AND('Enrollment Form'!$B28=\"Subscriber\",'Enrollment Form'!$C28=\"Enroll\",'Enrollment Form'!$AQ28<>\"\"),\"Y\",\"N\")))","v":""},{"$f":"IF($B21=\"N\",\"\",IF(OR('Enrollment Form'!$B28<>\"Subscriber\",'Enrollment Form'!$C28=\"ROC\"),\"-\",IF(AND('Enrollment Form'!$B28=\"Subscriber\",'Enrollment Form'!$C28=\"Enroll\",'Enrollment Form'!$AS28<>\"\"),\"Y\",\"N\")))","v":""},{"$f":"IF($B21=\"N\",\"\",IF($Q21=\"-\",\"-\",IF(AND($Q21=\"Y\",'Enrollment Form'!$AS28=\"No\"),\"-\",IF(AND($Q21=\"Y\",'Enrollment Form'!$AS28=\"Yes\",'Enrollment Form'!$AT28<>\"\"),\"Y\",\"N\"))))","v":""},{"$f":"IF($B21=\"N\",\"\",IF(OR('Enrollment Form'!$B28<>\"Subscriber\",'Enrollment Form'!$C28=\"ROC\"),\"-\",IF(AND('Enrollment Form'!$B28=\"Subscriber\",'Enrollment Form'!$C28=\"Enroll\",'Enrollment Form'!$CV28<>\"\"),\"Y\",\"N\")))","v":""},{"$f":"IF($B21=\"N\",\"\",IF($S21=\"-\",\"-\",IF(AND($S21=\"Y\",'Enrollment Form'!$CV28=\"No\"),\"-\",IF(AND($S21=\"Y\",'Enrollment Form'!$CV28=\"Yes\",'Enrollment Form'!$CW28<>\"\"),\"Y\",\"N\"))))","v":""},{"$f":"IF(OR('Enrollment Form'!$AY28=\"Yes\",'Enrollment Form'!$AY28=\"\"),\"-\",IF(OR(AND('Enrollment Form'!$AY28=\"No\",ISERROR(FIND(\"HMO\",VLOOKUP('Enrollment Form'!G28,'Enrollment Form'!H$11:J$1000,3,FALSE),1))=FALSE,COUNTA('Enrollment Form'!$AZ28:$BC28)=4),AND('Enrollment Form'!$AY28=\"No\",ISERROR(FIND(\"HMO\",VLOOKUP('Enrollment Form'!G28,'Enrollment Form'!H$11:J$1000,3,FALSE),1))=FALSE,COUNTA('Enrollment Form'!$BT28:$BW28)=4)),\"Y\",\"N\"))","v":"-"},{"$f":"IF($B21=\"N\",\"\",IF('Enrollment Form'!$B28=\"Subscriber\",\"-\",IF(COUNTA('Enrollment Form'!$BL28,'Enrollment Form'!$BN28)=2,\"Y\",\"N\")))","v":""},{"$f":"IF($B21=\"N\",\"\",IF(OR('Enrollment Form'!$AX28=\"\",'Enrollment Form'!$AX28=\"No\"),\"-\",IF(AND('Enrollment Form'!$AX28=\"Yes\",COUNTA('Enrollment Form'!$CR28)=1),\"Y\",\"N\")))","v":""},{"$f":"IF(OR('Enrollment Form'!$CR28=\"\",'Enrollment Form'!$CR28=\"No\"),\"-\",IF(COUNTA('Enrollment Form'!$CT28:$CU28)=2,\"Y\",\"N\"))","v":"-"},{"$f":"IF($B21=\"N\",\"\",IF(COUNTIF('Enrollment Form'!$DG28:$DP28,\"Other\")=COUNTA('Enrollment Form'!$DK28,'Enrollment Form'!$DH28,'Enrollment Form'!$DN28,'Enrollment Form'!$DQ28),\"Y\",\"N\"))","v":""},{"$f":"IF($B21=\"N\",\"\",IF(OR('Enrollment Form'!B28<>\"Subscriber\",'Enrollment Form'!C28=\"ROC\",COUNTIF('Enrollment Form'!AV28:AW28,\"Yes\")>=1),\"-\",IF(AND('Enrollment Form'!C28=\"Enroll\",COUNTIF('Enrollment Form'!AV28:AW28,\"No\")=2,'Enrollment Form'!AX28=\"\"),\"N\",\"Y\")))","v":""},{"$f":"IF(OR(B21=\"N\",'Enrollment Form'!B28<>\"Subscriber\",'Enrollment Form'!C28=\"ROC\",'Enrollment Form'!O28<>\"Multiple of Salary\"),\"-\",IF(COUNTA('Enrollment Form'!T28:U28)<2,\"N\",\"Y\"))","v":"-"},{"$f":"IF(B21=\"N\",\"\",IF(OR('Enrollment Form'!C28=\"ROC\",'Enrollment Form'!B28<>\"Subscriber\",'Enrollment Form'!O28=\"Waive\",'Enrollment Form'!O28=\"\"),\"-\",IF('Enrollment Form'!P28=\"\",\"N\",\"Y\")))","v":""},{"$f":"IF($B21=\"N\",\"\",IF(AND('Enrollment Form'!$C28=\"ROC\",'Enrollment Form'!$DR28<>\"\"),\"Y\",IF(AND('Enrollment Form'!$C28=\"ROC\",'Enrollment Form'!$DR28=\"\"),\"N\",IF(AND('Enrollment Form'!$C28=\"Enroll\",'Enrollment Form'!$B28=\"Subscriber\",'Enrollment Form'!$CX28=\"No\",'Enrollment Form'!$DR28=\"\"),\"N\",IF(AND('Enrollment Form'!$C28=\"Enroll\",'Enrollment Form'!$B28=\"Subscriber\",'Enrollment Form'!$CX28=\"Yes\"),\"-\",\"Y\")))))","v":""},{"$f":"IF($B21=\"N\",\"\",IF(AND('Enrollment Form'!$C28=\"ROC\",'Enrollment Form'!$DS28<>\"\"),\"Y\",IF(AND('Enrollment Form'!$C28=\"ROC\",'Enrollment Form'!$DS28=\"\"),\"N\",IF(AND('Enrollment Form'!$C28=\"Enroll\",'Enrollment Form'!$B28=\"Subscriber\",'Enrollment Form'!$CX28=\"No\",'Enrollment Form'!$DS28=\"\"),\"N\",IF(AND('Enrollment Form'!$C28=\"Enroll\",'Enrollment Form'!$B28=\"Subscriber\",'Enrollment Form'!$CX28=\"Yes\"),\"-\",\"Y\")))))","v":""},{"$f":"IF('Enrollment Form'!AH28=\"\",\"\",IF(ISERROR(SEARCH(\".\",'Enrollment Form'!AH28,SEARCH(\"@\",'Enrollment Form'!AH28))),\"N\",\"Y\"))","v":""},{"$f":"IF(OR($B21=\"N\",'Enrollment Form'!$G28=\"\"),\"\",IF('Enrollment Form'!$B28<>\"Subscriber\",\"-\",IF(COUNTIF('Enrollment Form'!$AV28:$AW28,\"Yes\")=2,\"N\",\"Y\")))","v":""},{"$f":"IF(OR('Enrollment Form'!$CJ28=\"\",'Enrollment Form'!$CJ28=\"No\"),\"-\",IF(AND('Enrollment Form'!$CJ28=\"Yes\",'Enrollment Form'!$CK28=\"\"),\"N\",\"Y\"))","v":"-"},{"$f":"IF(OR('Enrollment Form'!$CL28=\"\",'Enrollment Form'!$CL28=\"No\"),\"-\",IF(AND('Enrollment Form'!$CL28=\"Yes\",'Enrollment Form'!$CM28=\"\"),\"N\",\"Y\"))","v":"-"},{"$f":"IF(OR('Enrollment Form'!$CN28=\"\",'Enrollment Form'!$CN28=\"No\"),\"-\",IF(AND('Enrollment Form'!$CN28=\"Yes\",'Enrollment Form'!$CO28=\"\"),\"N\",\"Y\"))","v":"-"},{"$f":"IF(OR('Enrollment Form'!$CN28=\"\",'Enrollment Form'!$CN28=\"No\"),\"-\",IF(AND('Enrollment Form'!$CN28=\"Yes\",'Enrollment Form'!$CP28=\"\"),\"N\",\"Y\"))","v":"-"},{"$f":"IF('Enrollment Form'!B28<>\"Subscriber\",\"-\",IF(AND('Enrollment Form'!B28=\"Subscriber\",'Enrollment Form'!C28=\"Enroll\",'Enrollment Form'!AA28=\"\"),\"N\",\"Y\"))","v":"-"},{"$f":"IF(OR('Enrollment Form'!B28=\"Subscriber\",'Enrollment Form'!B28=\"\"),\"-\",IF('Enrollment Form'!BP28=\"\",\"N\",\"Y\"))","v":"-"},{"$f":"IF('Enrollment Form'!B28<>\"Subscriber\",\"-\",IF(AND('Enrollment Form'!B28=\"Subscriber\",'Enrollment Form'!G28=\"\"),\"N\",\"Y\"))","v":"-"},{"$f":"IF('Enrollment Form'!A28=\"\",\"\",IF('Enrollment Form'!B28=\"Subscriber\",\"-\",IF(AND('Enrollment Form'!B28<>\"Subscriber\",'Enrollment Form'!G28='Enrollment Form'!H28),\"N\",\"Y\")))","v":""},0,null,null,null,null,null,null,"18","Sub Signature filled?","If Application Type = \"Enroll\" then Signature of Employee must be populated","CV"]
[29,{"$f":"IF('Enrollment Form'!$A29<>\"\",\"Y\",\"N\")","v":"N"},{"$f":"IF(AND('Enrollment Form'!$B29=\"\",'Enrollment Form'!$C29<>\"\"),\"N\",IF($B22=\"N\",\"\",\"Y\"))","v":""},{"$f":"IF(OR($B22=\"N\",'Enrollment Form'!G29=\"\"),\"\",IF('Enrollment Form'!$B29<>\"Subscriber\",\"\",IF('Enrollment Form'!$G29='Enrollment Form'!$H29,\"Y\",\"N\")))","v":""},{"$f":"IF($B22=\"N\",\"\",IF(AND(COUNTIFS('Enrollment Form'!$H$11:$H$1000,'Enrollment Form'!$H29,'Enrollment Form'!$B$11:$B$1000,'Enrollment Form'!$B29)>1,'Enrollment Form'!$H29<>\"\"),\"N\",\"Y\"))","v":""},{"$f":"IF($B22=\"N\",\"\",IF(LEN('Enrollment Form'!$Y29)=0,\"\",IF(LEN('Enrollment Form'!$Y29)<>5,\"N\",\"Y\")))","v":""},{"$f":"IF($B22=\"N\",\"\",IF(LEN('Enrollment Form'!$AD29=0),\"\",IF(LEN('Enrollment Form'!$AD29)<>5,\"N\",\"Y\")))","v":""},{"$f":"IF($B22=\"N\",\"\",IF(LEN('Enrollment Form'!$BS29=0),\"\",IF(LEN('Enrollment Form'!$BS29)<>5,\"N\",\"Y\")))","v":""},{"$f":"IF($B22=\"N\",\"\",IF(LEN('Enrollment Form'!$AE29)=0,\"\",IF(LEN('Enrollment Form'!$AE29)<>10,\"N\",\"Y\")))","v":""},{"$f":"IF($B22=\"N\",\"\",IF(LEN('Enrollment Form'!$AF29)=0,\"\",IF(LEN('Enrollment Form'!$AF29)<>10,\"N\",\"Y\")))","v":""},{"$f":"IF('Enrollment Form'!$O29<>\"Graded\",\"-\",IF(AND('Enrollment Form'!$O29=\"Graded\",'Enrollment Form'!$AR29<>\"\"),\"Y\",\"N\"))","v":"-"},{"$f":"IF($B22=\"N\",\"\",IF(OR('Enrollment Form'!$B29<>\"Subscriber\",'Enrollment Form'!$C29=\"ROC\"),\"-\",IF(AND('Enrollment Form'!$B29=\"Subscriber\",'Enrollment Form'!$C29=\"Enroll\",'Enrollment Form'!$AJ29<>\"\"),\"Y\",\"N\")))","v":""},{"$f":"IF($B22=\"N\",\"\",IF(OR('Enrollment Form'!$B29<>\"Subscriber\",'Enrollment Form'!$C29=\"ROC\"),\"-\",IF(AND('Enrollment Form'!$B29=\"Subscriber\",'Enrollment Form'!$C29=\"Enroll\",'Enrollment Form'!$AK29<>\"\"),\"Y\",\"N\")))","v":""},{"$f":"IF($B22=\"N\",\"\",IF(OR('Enrollment Form'!$B29<>\"Subscriber\",'Enrollment Form'!$C29=\"ROC\"),\"-\",IF(AND('Enrollment Form'!$B29=\"Subscriber\",'Enrollment Form'!$C29=\"Enroll\",'Enrollment Form'!$AL29<>\"\"),\"Y\",\"N\")))","v":""},{"$f":"IF($B22=\"N\",\"\",IF(OR('Enrollment Form'!$B29<>\"Subscriber\",'Enrollment Form'!$C29=\"ROC\"),\"-\",IF(AND('Enrollment Form'!$B29=\"Subscriber\",'Enrollment Form'!$C29=\"Enroll\",'Enrollment Form'!$AP29<>\"\"),\"Y\",\"N\")))","v":""},{"$f":"IF($B22=\"N\",\"\",IF(OR('Enrollment Form'!$B29<>\"Subscriber\",'Enrollment Form'!$C29=\"ROC\"),\"-\",IF(AND('Enrollment Form'!$B29=\"Subscriber\",'Enrollment Form'!$C29=\"Enroll\",'Enrollment Form'!$AQ29<>\"\"),\"Y\",\"N\")))","v":""},{"$f":"IF($B22=\"N\",\"\",IF(OR('Enrollment Form'!$B29<>\"Subscriber\",'Enrollment Form'!$C29=\"ROC\"),\"-\",IF(AND('Enrollment Form'!$B29=\"Subscriber\",'Enrollment Form'!$C29=\"Enroll\",'Enrollment Form'!$AS29<>\"\"),\"Y\",\"N\")))","v":""},{"$f":"IF($B22=\"N\",\"\",IF($Q22=\"-\",\"-\",IF(AND($Q22=\"Y\",'Enrollment Form'!$AS29=\"No\"),\"-\",IF(AND($Q22=\"Y\",'Enrollment Form'!$AS29=\"Yes\",'Enrollment Form'!$AT29<>\"\"),\"Y\",\"N\"))))","v":""},{"$f":"IF($B22=\"N\",\"\",IF(OR('Enrollment Form'!$B29<>\"Subscriber\",'Enrollment Form'!$C29=\"ROC\"),\"-\",IF(AND('Enrollment Form'!$B29=\"Subscriber\",'Enrollment Form'!$C29=\"Enroll\",'Enrollment Form'!$CV29<>\"\"),\"Y\",\"N\")))","v":""},{"$f":"IF($B22=\"N\",\"\",IF($S22=\"-\",\"-\",IF(AND($S22=\"Y\",'Enrollment Form'!$CV29=\"No\"),\"-\",IF(AND($S22=\"Y\",'Enrollment Form'!$CV29=\"Yes\",'Enrollment Form'!$CW29<>\"\"),\"Y\",\"N\"))))","v":""},{"$f":"IF(OR('Enrollment Form'!$AY29=\"Yes\",'Enrollment Form'!$AY29=\"\"),\"-\",IF(OR(AND('Enrollment Form'!$AY29=\"No\",ISERROR(FIND(\"HMO\",VLOOKUP('Enrollment Form'!G29,'Enrollment Form'!H$11:J$1000,3,FALSE),1))=FALSE,COUNTA('Enrollment Form'!$AZ29:$BC29)=4),AND('Enrollment Form'!$AY29=\"No\",ISERROR(FIND(\"HMO\",VLOOKUP('Enrollment Form'!G29,'Enrollment Form'!H$11:J$1000,3,FALSE),1))=FALSE,COUNTA('Enrollment Form'!$BT29:$BW29)=4)),\"Y\",\"N\"))","v":"-"},{"$f":"IF($B22=\"N\",\"\",IF('Enrollment Form'!$B29=\"Subscriber\",\"-\",IF(COUNTA('Enrollment Form'!$BL29,'Enrollment Form'!$BN29)=2,\"Y\",\"N\")))","v":""},{"$f":"IF($B22=\"N\",\"\",IF(OR('Enrollment Form'!$AX29=\"\",'Enrollment Form'!$AX29=\"No\"),\"-\",IF(AND('Enrollment Form'!$AX29=\"Yes\",COUNTA('Enrollment Form'!$CR29)=1),\"Y\",\"N\")))","v":""},{"$f":"IF(OR('Enrollment Form'!$CR29=\"\",'Enrollment Form'!$CR29=\"No\"),\"-\",IF(COUNTA('Enrollment Form'!$CT29:$CU29)=2,\"Y\",\"N\"))","v":"-"},{"$f":"IF($B22=\"N\",\"\",IF(COUNTIF('Enrollment Form'!$DG29:$DP29,\"Other\")=COUNTA('Enrollment Form'!$DK29,'Enrollment Form'!$DH29,'Enrollment Form'!$DN29,'Enrollment Form'!$DQ29),\"Y\",\"N\"))","v":""},{"$f":"IF($B22=\"N\",\"\",IF(OR('Enrollment Form'!B29<>\"Subscriber\",'Enrollment Form'!C29=\"ROC\",COUNTIF('Enrollment Form'!AV29:AW29,\"Yes\")>=1),\"-\",IF(AND('Enrollment Form'!C29=\"Enroll\",COUNTIF('Enrollment Form'!AV29:AW29,\"No\")=2,'Enrollment Form'!AX29=\"\"),\"N\",\"Y\")))","v":""},{"$f":"IF(OR(B22=\"N\",'Enrollment Form'!B29<>\"Subscriber\",'Enrollment Form'!C29=\"ROC\",'Enrollment Form'!O29<>\"Multiple of Salary\"),\"-\",IF(COUNTA('Enrollment Form'!T29:U29)<2,\"N\",\"Y\"))","v":"-"},{"$f":"IF(B22=\"N\",\"\",IF(OR('Enrollment Form'!C29=\"ROC\",'Enrollment Form'!B29<>\"Subscriber\",'Enrollment Form'!O29=\"Waive\",'Enrollment Form'!O29=\"\"),\"-\",IF('Enrollment Form'!P29=\"\",\"N\",\"Y\")))","v":""},{"$f":"IF($B22=\"N\",\"\",IF(AND('Enrollment Form'!$C29=\"ROC\",'Enrollment Form'!$DR29<>\"\"),\"Y\",IF(AND('Enrollment Form'!$C29=\"ROC\",'Enrollment Form'!$DR29=\"\"),\"N\",IF(AND('Enrollment Form'!$C29=\"Enroll\",'Enrollment Form'!$B29=\"Subscriber\",'Enrollment Form'!$CX29=\"No\",'Enrollment Form'!$DR29=\"\"),\"N\",IF(AND('Enrollment Form'!$C29=\"Enroll\",'Enrollment Form'!$B29=\"Subscriber\",'Enrollment Form'!$CX29=\"Yes\"),\"-\",\"Y\")))))","v":""},{"$f":"IF($B22=\"N\",\"\",IF(AND('Enrollment Form'!$C29=\"ROC\",'Enrollment Form'!$DS29<>\"\"),\"Y\",IF(AND('Enrollment Form'!$C29=\"ROC\",'Enrollment Form'!$DS29=\"\"),\"N\",IF(AND('Enrollment Form'!$C29=\"Enroll\",'Enrollment Form'!$B29=\"Subscriber\",'Enrollment Form'!$CX29=\"No\",'Enrollment Form'!$DS29=\"\"),\"N\",IF(AND('Enrollment Form'!$C29=\"Enroll\",'Enrollment Form'!$B29=\"Subscriber\",'Enrollment Form'!$CX29=\"Yes\"),\"-\",\"Y\")))))","v":""},{"$f":"IF('Enrollment Form'!AH29=\"\",\"\",IF(ISERROR(SEARCH(\".\",'Enrollment Form'!AH29,SEARCH(\"@\",'Enrollment Form'!AH29))),\"N\",\"Y\"))","v":""},{"$f":"IF(OR($B22=\"N\",'Enrollment Form'!$G29=\"\"),\"\",IF('Enrollment Form'!$B29<>\"Subscriber\",\"-\",IF(COUNTIF('Enrollment Form'!$AV29:$AW29,\"Yes\")=2,\"N\",\"Y\")))","v":""},{"$f":"IF(OR('Enrollment Form'!$CJ29=\"\",'Enrollment Form'!$CJ29=\"No\"),\"-\",IF(AND('Enrollment Form'!$CJ29=\"Yes\",'Enrollment Form'!$CK29=\"\"),\"N\",\"Y\"))","v":"-"},{"$f":"IF(OR('Enrollment Form'!$CL29=\"\",'Enrollment Form'!$CL29=\"No\"),\"-\",IF(AND('Enrollment Form'!$CL29=\"Yes\",'Enrollment Form'!$CM29=\"\"),\"N\",\"Y\"))","v":"-"},{"$f":"IF(OR('Enrollment Form'!$CN29=\"\",'Enrollment Form'!$CN29=\"No\"),\"-\",IF(AND('Enrollment Form'!$CN29=\"Yes\",'Enrollment Form'!$CO29=\"\"),\"N\",\"Y\"))","v":"-"},{"$f":"IF(OR('Enrollment Form'!$CN29=\"\",'Enrollment Form'!$CN29=\"No\"),\"-\",IF(AND('Enrollment Form'!$CN29=\"Yes\",'Enrollment Form'!$CP29=\"\"),\"N\",\"Y\"))","v":"-"},{"$f":"IF('Enrollment Form'!B29<>\"Subscriber\",\"-\",IF(AND('Enrollment Form'!B29=\"Subscriber\",'Enrollment Form'!C29=\"Enroll\",'Enrollment Form'!AA29=\"\"),\"N\",\"Y\"))","v":"-"},{"$f":"IF(OR('Enrollment Form'!B29=\"Subscriber\",'Enrollment Form'!B29=\"\"),\"-\",IF('Enrollment Form'!BP29=\"\",\"N\",\"Y\"))","v":"-"},{"$f":"IF('Enrollment Form'!B29<>\"Subscriber\",\"-\",IF(AND('Enrollment Form'!B29=\"Subscriber\",'Enrollment Form'!G29=\"\"),\"N\",\"Y\"))","v":"-"},{"$f":"IF('Enrollment Form'!A29=\"\",\"\",IF('Enrollment Form'!B29=\"Subscriber\",\"-\",IF(AND('Enrollment Form'!B29<>\"Subscriber\",'Enrollment Form'!G29='Enrollment Form'!H29),\"N\",\"Y\")))","v":""},0,null,null,null,null,null,null,"19","Sub Signature Date filled?","If Application Type = \"Enroll\" then Signature Date must be populated","CW"]
[30,{"$f":"IF('Enrollment Form'!$A30<>\"\",\"Y\",\"N\")","v":"N"},{"$f":"IF(AND('Enrollment Form'!$B30=\"\",'Enrollment Form'!$C30<>\"\"),\"N\",IF($B23=\"N\",\"\",\"Y\"))","v":""},{"$f":"IF(OR($B23=\"N\",'Enrollment Form'!G30=\"\"),\"\",IF('Enrollment Form'!$B30<>\"Subscriber\",\"\",IF('Enrollment Form'!$G30='Enrollment Form'!$H30,\"Y\",\"N\")))","v":""},{"$f":"IF($B23=\"N\",\"\",IF(AND(COUNTIFS('Enrollment Form'!$H$11:$H$1000,'Enrollment Form'!$H30,'Enrollment Form'!$B$11:$B$1000,'Enrollment Form'!$B30)>1,'Enrollment Form'!$H30<>\"\"),\"N\",\"Y\"))","v":""},{"$f":"IF($B23=\"N\",\"\",IF(LEN('Enrollment Form'!$Y30)=0,\"\",IF(LEN('Enrollment Form'!$Y30)<>5,\"N\",\"Y\")))","v":""},{"$f":"IF($B23=\"N\",\"\",IF(LEN('Enrollment Form'!$AD30=0),\"\",IF(LEN('Enrollment Form'!$AD30)<>5,\"N\",\"Y\")))","v":""},{"$f":"IF($B23=\"N\",\"\",IF(LEN('Enrollment Form'!$BS30=0),\"\",IF(LEN('Enrollment Form'!$BS30)<>5,\"N\",\"Y\")))","v":""},{"$f":"IF($B23=\"N\",\"\",IF(LEN('Enrollment Form'!$AE30)=0,\"\",IF(LEN('Enrollment Form'!$AE30)<>10,\"N\",\"Y\")))","v":""},{"$f":"IF($B23=\"N\",\"\",IF(LEN('Enrollment Form'!$AF30)=0,\"\",IF(LEN('Enrollment Form'!$AF30)<>10,\"N\",\"Y\")))","v":""},{"$f":"IF('Enrollment Form'!$O30<>\"Graded\",\"-\",IF(AND('Enrollment Form'!$O30=\"Graded\",'Enrollment Form'!$AR30<>\"\"),\"Y\",\"N\"))","v":"-"},{"$f":"IF($B23=\"N\",\"\",IF(OR('Enrollment Form'!$B30<>\"Subscriber\",'Enrollment Form'!$C30=\"ROC\"),\"-\",IF(AND('Enrollment Form'!$B30=\"Subscriber\",'Enrollment Form'!$C30=\"Enroll\",'Enrollment Form'!$AJ30<>\"\"),\"Y\",\"N\")))","v":""},{"$f":"IF($B23=\"N\",\"\",IF(OR('Enrollment Form'!$B30<>\"Subscriber\",'Enrollment Form'!$C30=\"ROC\"),\"-\",IF(AND('Enrollment Form'!$B30=\"Subscriber\",'Enrollment Form'!$C30=\"Enroll\",'Enrollment Form'!$AK30<>\"\"),\"Y\",\"N\")))","v":""},{"$f":"IF($B23=\"N\",\"\",IF(OR('Enrollment Form'!$B30<>\"Subscriber\",'Enrollment Form'!$C30=\"ROC\"),\"-\",IF(AND('Enrollment Form'!$B30=\"Subscriber\",'Enrollment Form'!$C30=\"Enroll\",'Enrollment Form'!$AL30<>\"\"),\"Y\",\"N\")))","v":""},{"$f":"IF($B23=\"N\",\"\",IF(OR('Enrollment Form'!$B30<>\"Subscriber\",'Enrollment Form'!$C30=\"ROC\"),\"-\",IF(AND('Enrollment Form'!$B30=\"Subscriber\",'Enrollment Form'!$C30=\"Enroll\",'Enrollment Form'!$AP30<>\"\"),\"Y\",\"N\")))","v":""},{"$f":"IF($B23=\"N\",\"\",IF(OR('Enrollment Form'!$B30<>\"Subscriber\",'Enrollment Form'!$C30=\"ROC\"),\"-\",IF(AND('Enrollment Form'!$B30=\"Subscriber\",'Enrollment Form'!$C30=\"Enroll\",'Enrollment Form'!$AQ30<>\"\"),\"Y\",\"N\")))","v":""},{"$f":"IF($B23=\"N\",\"\",IF(OR('Enrollment Form'!$B30<>\"Subscriber\",'Enrollment Form'!$C30=\"ROC\"),\"-\",IF(AND('Enrollment Form'!$B30=\"Subscriber\",'Enrollment Form'!$C30=\"Enroll\",'Enrollment Form'!$AS30<>\"\"),\"Y\",\"N\")))","v":""},{"$f":"IF($B23=\"N\",\"\",IF($Q23=\"-\",\"-\",IF(AND($Q23=\"Y\",'Enrollment Form'!$AS30=\"No\"),\"-\",IF(AND($Q23=\"Y\",'Enrollment Form'!$AS30=\"Yes\",'Enrollment Form'!$AT30<>\"\"),\"Y\",\"N\"))))","v":""},{"$f":"IF($B23=\"N\",\"\",IF(OR('Enrollment Form'!$B30<>\"Subscriber\",'Enrollment Form'!$C30=\"ROC\"),\"-\",IF(AND('Enrollment Form'!$B30=\"Subscriber\",'Enrollment Form'!$C30=\"Enroll\",'Enrollment Form'!$CV30<>\"\"),\"Y\",\"N\")))","v":""},{"$f":"IF($B23=\"N\",\"\",IF($S23=\"-\",\"-\",IF(AND($S23=\"Y\",'Enrollment Form'!$CV30=\"No\"),\"-\",IF(AND($S23=\"Y\",'Enrollment Form'!$CV30=\"Yes\",'Enrollment Form'!$CW30<>\"\"),\"Y\",\"N\"))))","v":""},{"$f":"IF(OR('Enrollment Form'!$AY30=\"Yes\",'Enrollment Form'!$AY30=\"\"),\"-\",IF(OR(AND('Enrollment Form'!$AY30=\"No\",ISERROR(FIND(\"HMO\",VLOOKUP('Enrollment Form'!G30,'Enrollment Form'!H$11:J$1000,3,FALSE),1))=FALSE,COUNTA('Enrollment Form'!$AZ30:$BC30)=4),AND('Enrollment Form'!$AY30=\"No\",ISERROR(FIND(\"HMO\",VLOOKUP('Enrollment Form'!G30,'Enrollment Form'!H$11:J$1000,3,FALSE),1))=FALSE,COUNTA('Enrollment Form'!$BT30:$BW30)=4)),\"Y\",\"N\"))","v":"-"},{"$f":"IF($B23=\"N\",\"\",IF('Enrollment Form'!$B30=\"Subscriber\",\"-\",IF(COUNTA('Enrollment Form'!$BL30,'Enrollment Form'!$BN30)=2,\"Y\",\"N\")))","v":""},{"$f":"IF($B23=\"N\",\"\",IF(OR('Enrollment Form'!$AX30=\"\",'Enrollment Form'!$AX30=\"No\"),\"-\",IF(AND('Enrollment Form'!$AX30=\"Yes\",COUNTA('Enrollment Form'!$CR30)=1),\"Y\",\"N\")))","v":""},{"$f":"IF(OR('Enrollment Form'!$CR30=\"\",'Enrollment Form'!$CR30=\"No\"),\"-\",IF(COUNTA('Enrollment Form'!$CT30:$CU30)=2,\"Y\",\"N\"))","v":"-"},{"$f":"IF($B23=\"N\",\"\",IF(COUNTIF('Enrollment Form'!$DG30:$DP30,\"Other\")=COUNTA('Enrollment Form'!$DK30,'Enrollment Form'!$DH30,'Enrollment Form'!$DN30,'Enrollment Form'!$DQ30),\"Y\",\"N\"))","v":""},{"$f":"IF($B23=\"N\",\"\",IF(OR('Enrollment Form'!B30<>\"Subscriber\",'Enrollment Form'!C30=\"ROC\",COUNTIF('Enrollment Form'!AV30:AW30,\"Yes\")>=1),\"-\",IF(AND('Enrollment Form'!C30=\"Enroll\",COUNTIF('Enrollment Form'!AV30:AW30,\"No\")=2,'Enrollment Form'!AX30=\"\"),\"N\",\"Y\")))","v":""},{"$f":"IF(OR(B23=\"N\",'Enrollment Form'!B30<>\"Subscriber\",'Enrollment Form'!C30=\"ROC\",'Enrollment Form'!O30<>\"Multiple of Salary\"),\"-\",IF(COUNTA('Enrollment Form'!T30:U30)<2,\"N\",\"Y\"))","v":"-"},{"$f":"IF(B23=\"N\",\"\",IF(OR('Enrollment Form'!C30=\"ROC\",'Enrollment Form'!B30<>\"Subscriber\",'Enrollment Form'!O30=\"Waive\",'Enrollment Form'!O30=\"\"),\"-\",IF('Enrollment Form'!P30=\"\",\"N\",\"Y\")))","v":""},{"$f":"IF($B23=\"N\",\"\",IF(AND('Enrollment Form'!$C30=\"ROC\",'Enrollment Form'!$DR30<>\"\"),\"Y\",IF(AND('Enrollment Form'!$C30=\"ROC\",'Enrollment Form'!$DR30=\"\"),\"N\",IF(AND('Enrollment Form'!$C30=\"Enroll\",'Enrollment Form'!$B30=\"Subscriber\",'Enrollment Form'!$CX30=\"No\",'Enrollment Form'!$DR30=\"\"),\"N\",IF(AND('Enrollment Form'!$C30=\"Enroll\",'Enrollment Form'!$B30=\"Subscriber\",'Enrollment Form'!$CX30=\"Yes\"),\"-\",\"Y\")))))","v":""},{"$f":"IF($B23=\"N\",\"\",IF(AND('Enrollment Form'!$C30=\"ROC\",'Enrollment Form'!$DS30<>\"\"),\"Y\",IF(AND('Enrollment Form'!$C30=\"ROC\",'Enrollment Form'!$DS30=\"\"),\"N\",IF(AND('Enrollment Form'!$C30=\"Enroll\",'Enrollment Form'!$B30=\"Subscriber\",'Enrollment Form'!$CX30=\"No\",'Enrollment Form'!$DS30=\"\"),\"N\",IF(AND('Enrollment Form'!$C30=\"Enroll\",'Enrollment Form'!$B30=\"Subscriber\",'Enrollment Form'!$CX30=\"Yes\"),\"-\",\"Y\")))))","v":""},{"$f":"IF('Enrollment Form'!AH30=\"\",\"\",IF(ISERROR(SEARCH(\".\",'Enrollment Form'!AH30,SEARCH(\"@\",'Enrollment Form'!AH30))),\"N\",\"Y\"))","v":""},{"$f":"IF(OR($B23=\"N\",'Enrollment Form'!$G30=\"\"),\"\",IF('Enrollment Form'!$B30<>\"Subscriber\",\"-\",IF(COUNTIF('Enrollment Form'!$AV30:$AW30,\"Yes\")=2,\"N\",\"Y\")))","v":""},{"$f":"IF(OR('Enrollment Form'!$CJ30=\"\",'Enrollment Form'!$CJ30=\"No\"),\"-\",IF(AND('Enrollment Form'!$CJ30=\"Yes\",'Enrollment Form'!$CK30=\"\"),\"N\",\"Y\"))","v":"-"},{"$f":"IF(OR('Enrollment Form'!$CL30=\"\",'Enrollment Form'!$CL30=\"No\"),\"-\",IF(AND('Enrollment Form'!$CL30=\"Yes\",'Enrollment Form'!$CM30=\"\"),\"N\",\"Y\"))","v":"-"},{"$f":"IF(OR('Enrollment Form'!$CN30=\"\",'Enrollment Form'!$CN30=\"No\"),\"-\",IF(AND('Enrollment Form'!$CN30=\"Yes\",'Enrollment Form'!$CO30=\"\"),\"N\",\"Y\"))","v":"-"},{"$f":"IF(OR('Enrollment Form'!$CN30=\"\",'Enrollment Form'!$CN30=\"No\"),\"-\",IF(AND('Enrollment Form'!$CN30=\"Yes\",'Enrollment Form'!$CP30=\"\"),\"N\",\"Y\"))","v":"-"},{"$f":"IF('Enrollment Form'!B30<>\"Subscriber\",\"-\",IF(AND('Enrollment Form'!B30=\"Subscriber\",'Enrollment Form'!C30=\"Enroll\",'Enrollment Form'!AA30=\"\"),\"N\",\"Y\"))","v":"-"},{"$f":"IF(OR('Enrollment Form'!B30=\"Subscriber\",'Enrollment Form'!B30=\"\"),\"-\",IF('Enrollment Form'!BP30=\"\",\"N\",\"Y\"))","v":"-"},{"$f":"IF('Enrollment Form'!B30<>\"Subscriber\",\"-\",IF(AND('Enrollment Form'!B30=\"Subscriber\",'Enrollment Form'!G30=\"\"),\"N\",\"Y\"))","v":"-"},{"$f":"IF('Enrollment Form'!A30=\"\",\"\",IF('Enrollment Form'!B30=\"Subscriber\",\"-\",IF(AND('Enrollment Form'!B30<>\"Subscriber\",'Enrollment Form'!G30='Enrollment Form'!H30),\"N\",\"Y\")))","v":""},0,null,null,null,null,null,null,"20","HMO provider info complete?","If BSC should designate a provider, then all 4 following fields must be populated","AY-BC"]
[31,{"$f":"IF('Enrollment Form'!$A31<>\"\",\"Y\",\"N\")","v":"N"},{"$f":"IF(AND('Enrollment Form'!$B31=\"\",'Enrollment Form'!$C31<>\"\"),\"N\",IF($B24=\"N\",\"\",\"Y\"))","v":""},{"$f":"IF(OR($B24=\"N\",'Enrollment Form'!G31=\"\"),\"\",IF('Enrollment Form'!$B31<>\"Subscriber\",\"\",IF('Enrollment Form'!$G31='Enrollment Form'!$H31,\"Y\",\"N\")))","v":""},{"$f":"IF($B24=\"N\",\"\",IF(AND(COUNTIFS('Enrollment Form'!$H$11:$H$1000,'Enrollment Form'!$H31,'Enrollment Form'!$B$11:$B$1000,'Enrollment Form'!$B31)>1,'Enrollment Form'!$H31<>\"\"),\"N\",\"Y\"))","v":""},{"$f":"IF($B24=\"N\",\"\",IF(LEN('Enrollment Form'!$Y31)=0,\"\",IF(LEN('Enrollment Form'!$Y31)<>5,\"N\",\"Y\")))","v":""},{"$f":"IF($B24=\"N\",\"\",IF(LEN('Enrollment Form'!$AD31=0),\"\",IF(LEN('Enrollment Form'!$AD31)<>5,\"N\",\"Y\")))","v":""},{"$f":"IF($B24=\"N\",\"\",IF(LEN('Enrollment Form'!$BS31=0),\"\",IF(LEN('Enrollment Form'!$BS31)<>5,\"N\",\"Y\")))","v":""},{"$f":"IF($B24=\"N\",\"\",IF(LEN('Enrollment Form'!$AE31)=0,\"\",IF(LEN('Enrollment Form'!$AE31)<>10,\"N\",\"Y\")))","v":""},{"$f":"IF($B24=\"N\",\"\",IF(LEN('Enrollment Form'!$AF31)=0,\"\",IF(LEN('Enrollment Form'!$AF31)<>10,\"N\",\"Y\")))","v":""},{"$f":"IF('Enrollment Form'!$O31<>\"Graded\",\"-\",IF(AND('Enrollment Form'!$O31=\"Graded\",'Enrollment Form'!$AR31<>\"\"),\"Y\",\"N\"))","v":"-"},{"$f":"IF($B24=\"N\",\"\",IF(OR('Enrollment Form'!$B31<>\"Subscriber\",'Enrollment Form'!$C31=\"ROC\"),\"-\",IF(AND('Enrollment Form'!$B31=\"Subscriber\",'Enrollment Form'!$C31=\"Enroll\",'Enrollment Form'!$AJ31<>\"\"),\"Y\",\"N\")))","v":""},{"$f":"IF($B24=\"N\",\"\",IF(OR('Enrollment Form'!$B31<>\"Subscriber\",'Enrollment Form'!$C31=\"ROC\"),\"-\",IF(AND('Enrollment Form'!$B31=\"Subscriber\",'Enrollment Form'!$C31=\"Enroll\",'Enrollment Form'!$AK31<>\"\"),\"Y\",\"N\")))","v":""},{"$f":"IF($B24=\"N\",\"\",IF(OR('Enrollment Form'!$B31<>\"Subscriber\",'Enrollment Form'!$C31=\"ROC\"),\"-\",IF(AND('Enrollment Form'!$B31=\"Subscriber\",'Enrollment Form'!$C31=\"Enroll\",'Enrollment Form'!$AL31<>\"\"),\"Y\",\"N\")))","v":""},{"$f":"IF($B24=\"N\",\"\",IF(OR('Enrollment Form'!$B31<>\"Subscriber\",'Enrollment Form'!$C31=\"ROC\"),\"-\",IF(AND('Enrollment Form'!$B31=\"Subscriber\",'Enrollment Form'!$C31=\"Enroll\",'Enrollment Form'!$AP31<>\"\"),\"Y\",\"N\")))","v":""},{"$f":"IF($B24=\"N\",\"\",IF(OR('Enrollment Form'!$B31<>\"Subscriber\",'Enrollment Form'!$C31=\"ROC\"),\"-\",IF(AND('Enrollment Form'!$B31=\"Subscriber\",'Enrollment Form'!$C31=\"Enroll\",'Enrollment Form'!$AQ31<>\"\"),\"Y\",\"N\")))","v":""},{"$f":"IF($B24=\"N\",\"\",IF(OR('Enrollment Form'!$B31<>\"Subscriber\",'Enrollment Form'!$C31=\"ROC\"),\"-\",IF(AND('Enrollment Form'!$B31=\"Subscriber\",'Enrollment Form'!$C31=\"Enroll\",'Enrollment Form'!$AS31<>\"\"),\"Y\",\"N\")))","v":""},{"$f":"IF($B24=\"N\",\"\",IF($Q24=\"-\",\"-\",IF(AND($Q24=\"Y\",'Enrollment Form'!$AS31=\"No\"),\"-\",IF(AND($Q24=\"Y\",'Enrollment Form'!$AS31=\"Yes\",'Enrollment Form'!$AT31<>\"\"),\"Y\",\"N\"))))","v":""},{"$f":"IF($B24=\"N\",\"\",IF(OR('Enrollment Form'!$B31<>\"Subscriber\",'Enrollment Form'!$C31=\"ROC\"),\"-\",IF(AND('Enrollment Form'!$B31=\"Subscriber\",'Enrollment Form'!$C31=\"Enroll\",'Enrollment Form'!$CV31<>\"\"),\"Y\",\"N\")))","v":""},{"$f":"IF($B24=\"N\",\"\",IF($S24=\"-\",\"-\",IF(AND($S24=\"Y\",'Enrollment Form'!$CV31=\"No\"),\"-\",IF(AND($S24=\"Y\",'Enrollment Form'!$CV31=\"Yes\",'Enrollment Form'!$CW31<>\"\"),\"Y\",\"N\"))))","v":""},{"$f":"IF(OR('Enrollment Form'!$AY31=\"Yes\",'Enrollment Form'!$AY31=\"\"),\"-\",IF(OR(AND('Enrollment Form'!$AY31=\"No\",ISERROR(FIND(\"HMO\",VLOOKUP('Enrollment Form'!G31,'Enrollment Form'!H$11:J$1000,3,FALSE),1))=FALSE,COUNTA('Enrollment Form'!$AZ31:$BC31)=4),AND('Enrollment Form'!$AY31=\"No\",ISERROR(FIND(\"HMO\",VLOOKUP('Enrollment Form'!G31,'Enrollment Form'!H$11:J$1000,3,FALSE),1))=FALSE,COUNTA('Enrollment Form'!$BT31:$BW31)=4)),\"Y\",\"N\"))","v":"-"},{"$f":"IF($B24=\"N\",\"\",IF('Enrollment Form'!$B31=\"Subscriber\",\"-\",IF(COUNTA('Enrollment Form'!$BL31,'Enrollment Form'!$BN31)=2,\"Y\",\"N\")))","v":""},{"$f":"IF($B24=\"N\",\"\",IF(OR('Enrollment Form'!$AX31=\"\",'Enrollment Form'!$AX31=\"No\"),\"-\",IF(AND('Enrollment Form'!$AX31=\"Yes\",COUNTA('Enrollment Form'!$CR31)=1),\"Y\",\"N\")))","v":""},{"$f":"IF(OR('Enrollment Form'!$CR31=\"\",'Enrollment Form'!$CR31=\"No\"),\"-\",IF(COUNTA('Enrollment Form'!$CT31:$CU31)=2,\"Y\",\"N\"))","v":"-"},{"$f":"IF($B24=\"N\",\"\",IF(COUNTIF('Enrollment Form'!$DG31:$DP31,\"Other\")=COUNTA('Enrollment Form'!$DK31,'Enrollment Form'!$DH31,'Enrollment Form'!$DN31,'Enrollment Form'!$DQ31),\"Y\",\"N\"))","v":""},{"$f":"IF($B24=\"N\",\"\",IF(OR('Enrollment Form'!B31<>\"Subscriber\",'Enrollment Form'!C31=\"ROC\",COUNTIF('Enrollment Form'!AV31:AW31,\"Yes\")>=1),\"-\",IF(AND('Enrollment Form'!C31=\"Enroll\",COUNTIF('Enrollment Form'!AV31:AW31,\"No\")=2,'Enrollment Form'!AX31=\"\"),\"N\",\"Y\")))","v":""},{"$f":"IF(OR(B24=\"N\",'Enrollment Form'!B31<>\"Subscriber\",'Enrollment Form'!C31=\"ROC\",'Enrollment Form'!O31<>\"Multiple of Salary\"),\"-\",IF(COUNTA('Enrollment Form'!T31:U31)<2,\"N\",\"Y\"))","v":"-"},{"$f":"IF(B24=\"N\",\"\",IF(OR('Enrollment Form'!C31=\"ROC\",'Enrollment Form'!B31<>\"Subscriber\",'Enrollment Form'!O31=\"Waive\",'Enrollment Form'!O31=\"\"),\"-\",IF('Enrollment Form'!P31=\"\",\"N\",\"Y\")))","v":""},{"$f":"IF($B24=\"N\",\"\",IF(AND('Enrollment Form'!$C31=\"ROC\",'Enrollment Form'!$DR31<>\"\"),\"Y\",IF(AND('Enrollment Form'!$C31=\"ROC\",'Enrollment Form'!$DR31=\"\"),\"N\",IF(AND('Enrollment Form'!$C31=\"Enroll\",'Enrollment Form'!$B31=\"Subscriber\",'Enrollment Form'!$CX31=\"No\",'Enrollment Form'!$DR31=\"\"),\"N\",IF(AND('Enrollment Form'!$C31=\"Enroll\",'Enrollment Form'!$B31=\"Subscriber\",'Enrollment Form'!$CX31=\"Yes\"),\"-\",\"Y\")))))","v":""},{"$f":"IF($B24=\"N\",\"\",IF(AND('Enrollment Form'!$C31=\"ROC\",'Enrollment Form'!$DS31<>\"\"),\"Y\",IF(AND('Enrollment Form'!$C31=\"ROC\",'Enrollment Form'!$DS31=\"\"),\"N\",IF(AND('Enrollment Form'!$C31=\"Enroll\",'Enrollment Form'!$B31=\"Subscriber\",'Enrollment Form'!$CX31=\"No\",'Enrollment Form'!$DS31=\"\"),\"N\",IF(AND('Enrollment Form'!$C31=\"Enroll\",'Enrollment Form'!$B31=\"Subscriber\",'Enrollment Form'!$CX31=\"Yes\"),\"-\",\"Y\")))))","v":""},{"$f":"IF('Enrollment Form'!AH31=\"\",\"\",IF(ISERROR(SEARCH(\".\",'Enrollment Form'!AH31,SEARCH(\"@\",'Enrollment Form'!AH31))),\"N\",\"Y\"))","v":""},{"$f":"IF(OR($B24=\"N\",'Enrollment Form'!$G31=\"\"),\"\",IF('Enrollment Form'!$B31<>\"Subscriber\",\"-\",IF(COUNTIF('Enrollment Form'!$AV31:$AW31,\"Yes\")=2,\"N\",\"Y\")))","v":""},{"$f":"IF(OR('Enrollment Form'!$CJ31=\"\",'Enrollment Form'!$CJ31=\"No\"),\"-\",IF(AND('Enrollment Form'!$CJ31=\"Yes\",'Enrollment Form'!$CK31=\"\"),\"N\",\"Y\"))","v":"-"},{"$f":"IF(OR('Enrollment Form'!$CL31=\"\",'Enrollment Form'!$CL31=\"No\"),\"-\",IF(AND('Enrollment Form'!$CL31=\"Yes\",'Enrollment Form'!$CM31=\"\"),\"N\",\"Y\"))","v":"-"},{"$f":"IF(OR('Enrollment Form'!$CN31=\"\",'Enrollment Form'!$CN31=\"No\"),\"-\",IF(AND('Enrollment Form'!$CN31=\"Yes\",'Enrollment Form'!$CO31=\"\"),\"N\",\"Y\"))","v":"-"},{"$f":"IF(OR('Enrollment Form'!$CN31=\"\",'Enrollment Form'!$CN31=\"No\"),\"-\",IF(AND('Enrollment Form'!$CN31=\"Yes\",'Enrollment Form'!$CP31=\"\"),\"N\",\"Y\"))","v":"-"},{"$f":"IF('Enrollment Form'!B31<>\"Subscriber\",\"-\",IF(AND('Enrollment Form'!B31=\"Subscriber\",'Enrollment Form'!C31=\"Enroll\",'Enrollment Form'!AA31=\"\"),\"N\",\"Y\"))","v":"-"},{"$f":"IF(OR('Enrollment Form'!B31=\"Subscriber\",'Enrollment Form'!B31=\"\"),\"-\",IF('Enrollment Form'!BP31=\"\",\"N\",\"Y\"))","v":"-"},{"$f":"IF('Enrollment Form'!B31<>\"Subscriber\",\"-\",IF(AND('Enrollment Form'!B31=\"Subscriber\",'Enrollment Form'!G31=\"\"),\"N\",\"Y\"))","v":"-"},{"$f":"IF('Enrollment Form'!A31=\"\",\"\",IF('Enrollment Form'!B31=\"Subscriber\",\"-\",IF(AND('Enrollment Form'!B31<>\"Subscriber\",'Enrollment Form'!G31='Enrollment Form'!H31),\"N\",\"Y\")))","v":""},0,null,null,null,null,null,null,"21","Dep DOB and Gender filled?","If Applicant Type <> \"Subscriber\", then Dependent DOB and Gender must be populated","BL,BN"]
[32,{"$f":"IF('Enrollment Form'!$A32<>\"\",\"Y\",\"N\")","v":"N"},{"$f":"IF(AND('Enrollment Form'!$B32=\"\",'Enrollment Form'!$C32<>\"\"),\"N\",IF($B25=\"N\",\"\",\"Y\"))","v":""},{"$f":"IF(OR($B25=\"N\",'Enrollment Form'!G32=\"\"),\"\",IF('Enrollment Form'!$B32<>\"Subscriber\",\"\",IF('Enrollment Form'!$G32='Enrollment Form'!$H32,\"Y\",\"N\")))","v":""},{"$f":"IF($B25=\"N\",\"\",IF(AND(COUNTIFS('Enrollment Form'!$H$11:$H$1000,'Enrollment Form'!$H32,'Enrollment Form'!$B$11:$B$1000,'Enrollment Form'!$B32)>1,'Enrollment Form'!$H32<>\"\"),\"N\",\"Y\"))","v":""},{"$f":"IF($B25=\"N\",\"\",IF(LEN('Enrollment Form'!$Y32)=0,\"\",IF(LEN('Enrollment Form'!$Y32)<>5,\"N\",\"Y\")))","v":""},{"$f":"IF($B25=\"N\",\"\",IF(LEN('Enrollment Form'!$AD32=0),\"\",IF(LEN('Enrollment Form'!$AD32)<>5,\"N\",\"Y\")))","v":""},{"$f":"IF($B25=\"N\",\"\",IF(LEN('Enrollment Form'!$BS32=0),\"\",IF(LEN('Enrollment Form'!$BS32)<>5,\"N\",\"Y\")))","v":""},{"$f":"IF($B25=\"N\",\"\",IF(LEN('Enrollment Form'!$AE32)=0,\"\",IF(LEN('Enrollment Form'!$AE32)<>10,\"N\",\"Y\")))","v":""},{"$f":"IF($B25=\"N\",\"\",IF(LEN('Enrollment Form'!$AF32)=0,\"\",IF(LEN('Enrollment Form'!$AF32)<>10,\"N\",\"Y\")))","v":""},{"$f":"IF('Enrollment Form'!$O32<>\"Graded\",\"-\",IF(AND('Enrollment Form'!$O32=\"Graded\",'Enrollment Form'!$AR32<>\"\"),\"Y\",\"N\"))","v":"-"},{"$f":"IF($B25=\"N\",\"\",IF(OR('Enrollment Form'!$B32<>\"Subscriber\",'Enrollment Form'!$C32=\"ROC\"),\"-\",IF(AND('Enrollment Form'!$B32=\"Subscriber\",'Enrollment Form'!$C32=\"Enroll\",'Enrollment Form'!$AJ32<>\"\"),\"Y\",\"N\")))","v":""},{"$f":"IF($B25=\"N\",\"\",IF(OR('Enrollment Form'!$B32<>\"Subscriber\",'Enrollment Form'!$C32=\"ROC\"),\"-\",IF(AND('Enrollment Form'!$B32=\"Subscriber\",'Enrollment Form'!$C32=\"Enroll\",'Enrollment Form'!$AK32<>\"\"),\"Y\",\"N\")))","v":""},{"$f":"IF($B25=\"N\",\"\",IF(OR('Enrollment Form'!$B32<>\"Subscriber\",'Enrollment Form'!$C32=\"ROC\"),\"-\",IF(AND('Enrollment Form'!$B32=\"Subscriber\",'Enrollment Form'!$C32=\"Enroll\",'Enrollment Form'!$AL32<>\"\"),\"Y\",\"N\")))","v":""},{"$f":"IF($B25=\"N\",\"\",IF(OR('Enrollment Form'!$B32<>\"Subscriber\",'Enrollment Form'!$C32=\"ROC\"),\"-\",IF(AND('Enrollment Form'!$B32=\"Subscriber\",'Enrollment Form'!$C32=\"Enroll\",'Enrollment Form'!$AP32<>\"\"),\"Y\",\"N\")))","v":""},{"$f":"IF($B25=\"N\",\"\",IF(OR('Enrollment Form'!$B32<>\"Subscriber\",'Enrollment Form'!$C32=\"ROC\"),\"-\",IF(AND('Enrollment Form'!$B32=\"Subscriber\",'Enrollment Form'!$C32=\"Enroll\",'Enrollment Form'!$AQ32<>\"\"),\"Y\",\"N\")))","v":""},{"$f":"IF($B25=\"N\",\"\",IF(OR('Enrollment Form'!$B32<>\"Subscriber\",'Enrollment Form'!$C32=\"ROC\"),\"-\",IF(AND('Enrollment Form'!$B32=\"Subscriber\",'Enrollment Form'!$C32=\"Enroll\",'Enrollment Form'!$AS32<>\"\"),\"Y\",\"N\")))","v":""},{"$f":"IF($B25=\"N\",\"\",IF($Q25=\"-\",\"-\",IF(AND($Q25=\"Y\",'Enrollment Form'!$AS32=\"No\"),\"-\",IF(AND($Q25=\"Y\",'Enrollment Form'!$AS32=\"Yes\",'Enrollment Form'!$AT32<>\"\"),\"Y\",\"N\"))))","v":""},{"$f":"IF($B25=\"N\",\"\",IF(OR('Enrollment Form'!$B32<>\"Subscriber\",'Enrollment Form'!$C32=\"ROC\"),\"-\",IF(AND('Enrollment Form'!$B32=\"Subscriber\",'Enrollment Form'!$C32=\"Enroll\",'Enrollment Form'!$CV32<>\"\"),\"Y\",\"N\")))","v":""},{"$f":"IF($B25=\"N\",\"\",IF($S25=\"-\",\"-\",IF(AND($S25=\"Y\",'Enrollment Form'!$CV32=\"No\"),\"-\",IF(AND($S25=\"Y\",'Enrollment Form'!$CV32=\"Yes\",'Enrollment Form'!$CW32<>\"\"),\"Y\",\"N\"))))","v":""},{"$f":"IF(OR('Enrollment Form'!$AY32=\"Yes\",'Enrollment Form'!$AY32=\"\"),\"-\",IF(OR(AND('Enrollment Form'!$AY32=\"No\",ISERROR(FIND(\"HMO\",VLOOKUP('Enrollment Form'!G32,'Enrollment Form'!H$11:J$1000,3,FALSE),1))=FALSE,COUNTA('Enrollment Form'!$AZ32:$BC32)=4),AND('Enrollment Form'!$AY32=\"No\",ISERROR(FIND(\"HMO\",VLOOKUP('Enrollment Form'!G32,'Enrollment Form'!H$11:J$1000,3,FALSE),1))=FALSE,COUNTA('Enrollment Form'!$BT32:$BW32)=4)),\"Y\",\"N\"))","v":"-"},{"$f":"IF($B25=\"N\",\"\",IF('Enrollment Form'!$B32=\"Subscriber\",\"-\",IF(COUNTA('Enrollment Form'!$BL32,'Enrollment Form'!$BN32)=2,\"Y\",\"N\")))","v":""},{"$f":"IF($B25=\"N\",\"\",IF(OR('Enrollment Form'!$AX32=\"\",'Enrollment Form'!$AX32=\"No\"),\"-\",IF(AND('Enrollment Form'!$AX32=\"Yes\",COUNTA('Enrollment Form'!$CR32)=1),\"Y\",\"N\")))","v":""},{"$f":"IF(OR('Enrollment Form'!$CR32=\"\",'Enrollment Form'!$CR32=\"No\"),\"-\",IF(COUNTA('Enrollment Form'!$CT32:$CU32)=2,\"Y\",\"N\"))","v":"-"},{"$f":"IF($B25=\"N\",\"\",IF(COUNTIF('Enrollment Form'!$DG32:$DP32,\"Other\")=COUNTA('Enrollment Form'!$DK32,'Enrollment Form'!$DH32,'Enrollment Form'!$DN32,'Enrollment Form'!$DQ32),\"Y\",\"N\"))","v":""},{"$f":"IF($B25=\"N\",\"\",IF(OR('Enrollment Form'!B32<>\"Subscriber\",'Enrollment Form'!C32=\"ROC\",COUNTIF('Enrollment Form'!AV32:AW32,\"Yes\")>=1),\"-\",IF(AND('Enrollment Form'!C32=\"Enroll\",COUNTIF('Enrollment Form'!AV32:AW32,\"No\")=2,'Enrollment Form'!AX32=\"\"),\"N\",\"Y\")))","v":""},{"$f":"IF(OR(B25=\"N\",'Enrollment Form'!B32<>\"Subscriber\",'Enrollment Form'!C32=\"ROC\",'Enrollment Form'!O32<>\"Multiple of Salary\"),\"-\",IF(COUNTA('Enrollment Form'!T32:U32)<2,\"N\",\"Y\"))","v":"-"},{"$f":"IF(B25=\"N\",\"\",IF(OR('Enrollment Form'!C32=\"ROC\",'Enrollment Form'!B32<>\"Subscriber\",'Enrollment Form'!O32=\"Waive\",'Enrollment Form'!O32=\"\"),\"-\",IF('Enrollment Form'!P32=\"\",\"N\",\"Y\")))","v":""},{"$f":"IF($B25=\"N\",\"\",IF(AND('Enrollment Form'!$C32=\"ROC\",'Enrollment Form'!$DR32<>\"\"),\"Y\",IF(AND('Enrollment Form'!$C32=\"ROC\",'Enrollment Form'!$DR32=\"\"),\"N\",IF(AND('Enrollment Form'!$C32=\"Enroll\",'Enrollment Form'!$B32=\"Subscriber\",'Enrollment Form'!$CX32=\"No\",'Enrollment Form'!$DR32=\"\"),\"N\",IF(AND('Enrollment Form'!$C32=\"Enroll\",'Enrollment Form'!$B32=\"Subscriber\",'Enrollment Form'!$CX32=\"Yes\"),\"-\",\"Y\")))))","v":""},{"$f":"IF($B25=\"N\",\"\",IF(AND('Enrollment Form'!$C32=\"ROC\",'Enrollment Form'!$DS32<>\"\"),\"Y\",IF(AND('Enrollment Form'!$C32=\"ROC\",'Enrollment Form'!$DS32=\"\"),\"N\",IF(AND('Enrollment Form'!$C32=\"Enroll\",'Enrollment Form'!$B32=\"Subscriber\",'Enrollment Form'!$CX32=\"No\",'Enrollment Form'!$DS32=\"\"),\"N\",IF(AND('Enrollment Form'!$C32=\"Enroll\",'Enrollment Form'!$B32=\"Subscriber\",'Enrollment Form'!$CX32=\"Yes\"),\"-\",\"Y\")))))","v":""},{"$f":"IF('Enrollment Form'!AH32=\"\",\"\",IF(ISERROR(SEARCH(\".\",'Enrollment Form'!AH32,SEARCH(\"@\",'Enrollment Form'!AH32))),\"N\",\"Y\"))","v":""},{"$f":"IF(OR($B25=\"N\",'Enrollment Form'!$G32=\"\"),\"\",IF('Enrollment Form'!$B32<>\"Subscriber\",\"-\",IF(COUNTIF('Enrollment Form'!$AV32:$AW32,\"Yes\")=2,\"N\",\"Y\")))","v":""},{"$f":"IF(OR('Enrollment Form'!$CJ32=\"\",'Enrollment Form'!$CJ32=\"No\"),\"-\",IF(AND('Enrollment Form'!$CJ32=\"Yes\",'Enrollment Form'!$CK32=\"\"),\"N\",\"Y\"))","v":"-"},{"$f":"IF(OR('Enrollment Form'!$CL32=\"\",'Enrollment Form'!$CL32=\"No\"),\"-\",IF(AND('Enrollment Form'!$CL32=\"Yes\",'Enrollment Form'!$CM32=\"\"),\"N\",\"Y\"))","v":"-"},{"$f":"IF(OR('Enrollment Form'!$CN32=\"\",'Enrollment Form'!$CN32=\"No\"),\"-\",IF(AND('Enrollment Form'!$CN32=\"Yes\",'Enrollment Form'!$CO32=\"\"),\"N\",\"Y\"))","v":"-"},{"$f":"IF(OR('Enrollment Form'!$CN32=\"\",'Enrollment Form'!$CN32=\"No\"),\"-\",IF(AND('Enrollment Form'!$CN32=\"Yes\",'Enrollment Form'!$CP32=\"\"),\"N\",\"Y\"))","v":"-"},{"$f":"IF('Enrollment Form'!B32<>\"Subscriber\",\"-\",IF(AND('Enrollment Form'!B32=\"Subscriber\",'Enrollment Form'!C32=\"Enroll\",'Enrollment Form'!AA32=\"\"),\"N\",\"Y\"))","v":"-"},{"$f":"IF(OR('Enrollment Form'!B32=\"Subscriber\",'Enrollment Form'!B32=\"\"),\"-\",IF('Enrollment Form'!BP32=\"\",\"N\",\"Y\"))","v":"-"},{"$f":"IF('Enrollment Form'!B32<>\"Subscriber\",\"-\",IF(AND('Enrollment Form'!B32=\"Subscriber\",'Enrollment Form'!G32=\"\"),\"N\",\"Y\"))","v":"-"},{"$f":"IF('Enrollment Form'!A32=\"\",\"\",IF('Enrollment Form'!B32=\"Subscriber\",\"-\",IF(AND('Enrollment Form'!B32<>\"Subscriber\",'Enrollment Form'!G32='Enrollment Form'!H32),\"N\",\"Y\")))","v":""},0,null,null,null,null,null,null,"22","Enrolling in COBRA filled?","If existing/enrolling in CalCOBRA, then both fields need to be populated","AX,CR"]
[33,{"$f":"IF('Enrollment Form'!$A33<>\"\",\"Y\",\"N\")","v":"N"},{"$f":"IF(AND('Enrollment Form'!$B33=\"\",'Enrollment Form'!$C33<>\"\"),\"N\",IF($B26=\"N\",\"\",\"Y\"))","v":""},{"$f":"IF(OR($B26=\"N\",'Enrollment Form'!G33=\"\"),\"\",IF('Enrollment Form'!$B33<>\"Subscriber\",\"\",IF('Enrollment Form'!$G33='Enrollment Form'!$H33,\"Y\",\"N\")))","v":""},{"$f":"IF($B26=\"N\",\"\",IF(AND(COUNTIFS('Enrollment Form'!$H$11:$H$1000,'Enrollment Form'!$H33,'Enrollment Form'!$B$11:$B$1000,'Enrollment Form'!$B33)>1,'Enrollment Form'!$H33<>\"\"),\"N\",\"Y\"))","v":""},{"$f":"IF($B26=\"N\",\"\",IF(LEN('Enrollment Form'!$Y33)=0,\"\",IF(LEN('Enrollment Form'!$Y33)<>5,\"N\",\"Y\")))","v":""},{"$f":"IF($B26=\"N\",\"\",IF(LEN('Enrollment Form'!$AD33=0),\"\",IF(LEN('Enrollment Form'!$AD33)<>5,\"N\",\"Y\")))","v":""},{"$f":"IF($B26=\"N\",\"\",IF(LEN('Enrollment Form'!$BS33=0),\"\",IF(LEN('Enrollment Form'!$BS33)<>5,\"N\",\"Y\")))","v":""},{"$f":"IF($B26=\"N\",\"\",IF(LEN('Enrollment Form'!$AE33)=0,\"\",IF(LEN('Enrollment Form'!$AE33)<>10,\"N\",\"Y\")))","v":""},{"$f":"IF($B26=\"N\",\"\",IF(LEN('Enrollment Form'!$AF33)=0,\"\",IF(LEN('Enrollment Form'!$AF33)<>10,\"N\",\"Y\")))","v":""},{"$f":"IF('Enrollment Form'!$O33<>\"Graded\",\"-\",IF(AND('Enrollment Form'!$O33=\"Graded\",'Enrollment Form'!$AR33<>\"\"),\"Y\",\"N\"))","v":"-"},{"$f":"IF($B26=\"N\",\"\",IF(OR('Enrollment Form'!$B33<>\"Subscriber\",'Enrollment Form'!$C33=\"ROC\"),\"-\",IF(AND('Enrollment Form'!$B33=\"Subscriber\",'Enrollment Form'!$C33=\"Enroll\",'Enrollment Form'!$AJ33<>\"\"),\"Y\",\"N\")))","v":""},{"$f":"IF($B26=\"N\",\"\",IF(OR('Enrollment Form'!$B33<>\"Subscriber\",'Enrollment Form'!$C33=\"ROC\"),\"-\",IF(AND('Enrollment Form'!$B33=\"Subscriber\",'Enrollment Form'!$C33=\"Enroll\",'Enrollment Form'!$AK33<>\"\"),\"Y\",\"N\")))","v":""},{"$f":"IF($B26=\"N\",\"\",IF(OR('Enrollment Form'!$B33<>\"Subscriber\",'Enrollment Form'!$C33=\"ROC\"),\"-\",IF(AND('Enrollment Form'!$B33=\"Subscriber\",'Enrollment Form'!$C33=\"Enroll\",'Enrollment Form'!$AL33<>\"\"),\"Y\",\"N\")))","v":""},{"$f":"IF($B26=\"N\",\"\",IF(OR('Enrollment Form'!$B33<>\"Subscriber\",'Enrollment Form'!$C33=\"ROC\"),\"-\",IF(AND('Enrollment Form'!$B33=\"Subscriber\",'Enrollment Form'!$C33=\"Enroll\",'Enrollment Form'!$AP33<>\"\"),\"Y\",\"N\")))","v":""},{"$f":"IF($B26=\"N\",\"\",IF(OR('Enrollment Form'!$B33<>\"Subscriber\",'Enrollment Form'!$C33=\"ROC\"),\"-\",IF(AND('Enrollment Form'!$B33=\"Subscriber\",'Enrollment Form'!$C33=\"Enroll\",'Enrollment Form'!$AQ33<>\"\"),\"Y\",\"N\")))","v":""},{"$f":"IF($B26=\"N\",\"\",IF(OR('Enrollment Form'!$B33<>\"Subscriber\",'Enrollment Form'!$C33=\"ROC\"),\"-\",IF(AND('Enrollment Form'!$B33=\"Subscriber\",'Enrollment Form'!$C33=\"Enroll\",'Enrollment Form'!$AS33<>\"\"),\"Y\",\"N\")))","v":""},{"$f":"IF($B26=\"N\",\"\",IF($Q26=\"-\",\"-\",IF(AND($Q26=\"Y\",'Enrollment Form'!$AS33=\"No\"),\"-\",IF(AND($Q26=\"Y\",'Enrollment Form'!$AS33=\"Yes\",'Enrollment Form'!$AT33<>\"\"),\"Y\",\"N\"))))","v":""},{"$f":"IF($B26=\"N\",\"\",IF(OR('Enrollment Form'!$B33<>\"Subscriber\",'Enrollment Form'!$C33=\"ROC\"),\"-\",IF(AND('Enrollment Form'!$B33=\"Subscriber\",'Enrollment Form'!$C33=\"Enroll\",'Enrollment Form'!$CV33<>\"\"),\"Y\",\"N\")))","v":""},{"$f":"IF($B26=\"N\",\"\",IF($S26=\"-\",\"-\",IF(AND($S26=\"Y\",'Enrollment Form'!$CV33=\"No\"),\"-\",IF(AND($S26=\"Y\",'Enrollment Form'!$CV33=\"Yes\",'Enrollment Form'!$CW33<>\"\"),\"Y\",\"N\"))))","v":""},{"$f":"IF(OR('Enrollment Form'!$AY33=\"Yes\",'Enrollment Form'!$AY33=\"\"),\"-\",IF(OR(AND('Enrollment Form'!$AY33=\"No\",ISERROR(FIND(\"HMO\",VLOOKUP('Enrollment Form'!G33,'Enrollment Form'!H$11:J$1000,3,FALSE),1))=FALSE,COUNTA('Enrollment Form'!$AZ33:$BC33)=4),AND('Enrollment Form'!$AY33=\"No\",ISERROR(FIND(\"HMO\",VLOOKUP('Enrollment Form'!G33,'Enrollment Form'!H$11:J$1000,3,FALSE),1))=FALSE,COUNTA('Enrollment Form'!$BT33:$BW33)=4)),\"Y\",\"N\"))","v":"-"},{"$f":"IF($B26=\"N\",\"\",IF('Enrollment Form'!$B33=\"Subscriber\",\"-\",IF(COUNTA('Enrollment Form'!$BL33,'Enrollment Form'!$BN33)=2,\"Y\",\"N\")))","v":""},{"$f":"IF($B26=\"N\",\"\",IF(OR('Enrollment Form'!$AX33=\"\",'Enrollment Form'!$AX33=\"No\"),\"-\",IF(AND('Enrollment Form'!$AX33=\"Yes\",COUNTA('Enrollment Form'!$CR33)=1),\"Y\",\"N\")))","v":""},{"$f":"IF(OR('Enrollment Form'!$CR33=\"\",'Enrollment Form'!$CR33=\"No\"),\"-\",IF(COUNTA('Enrollment Form'!$CT33:$CU33)=2,\"Y\",\"N\"))","v":"-"},{"$f":"IF($B26=\"N\",\"\",IF(COUNTIF('Enrollment Form'!$DG33:$DP33,\"Other\")=COUNTA('Enrollment Form'!$DK33,'Enrollment Form'!$DH33,'Enrollment Form'!$DN33,'Enrollment Form'!$DQ33),\"Y\",\"N\"))","v":""},{"$f":"IF($B26=\"N\",\"\",IF(OR('Enrollment Form'!B33<>\"Subscriber\",'Enrollment Form'!C33=\"ROC\",COUNTIF('Enrollment Form'!AV33:AW33,\"Yes\")>=1),\"-\",IF(AND('Enrollment Form'!C33=\"Enroll\",COUNTIF('Enrollment Form'!AV33:AW33,\"No\")=2,'Enrollment Form'!AX33=\"\"),\"N\",\"Y\")))","v":""},{"$f":"IF(OR(B26=\"N\",'Enrollment Form'!B33<>\"Subscriber\",'Enrollment Form'!C33=\"ROC\",'Enrollment Form'!O33<>\"Multiple of Salary\"),\"-\",IF(COUNTA('Enrollment Form'!T33:U33)<2,\"N\",\"Y\"))","v":"-"},{"$f":"IF(B26=\"N\",\"\",IF(OR('Enrollment Form'!C33=\"ROC\",'Enrollment Form'!B33<>\"Subscriber\",'Enrollment Form'!O33=\"Waive\",'Enrollment Form'!O33=\"\"),\"-\",IF('Enrollment Form'!P33=\"\",\"N\",\"Y\")))","v":""},{"$f":"IF($B26=\"N\",\"\",IF(AND('Enrollment Form'!$C33=\"ROC\",'Enrollment Form'!$DR33<>\"\"),\"Y\",IF(AND('Enrollment Form'!$C33=\"ROC\",'Enrollment Form'!$DR33=\"\"),\"N\",IF(AND('Enrollment Form'!$C33=\"Enroll\",'Enrollment Form'!$B33=\"Subscriber\",'Enrollment Form'!$CX33=\"No\",'Enrollment Form'!$DR33=\"\"),\"N\",IF(AND('Enrollment Form'!$C33=\"Enroll\",'Enrollment Form'!$B33=\"Subscriber\",'Enrollment Form'!$CX33=\"Yes\"),\"-\",\"Y\")))))","v":""},{"$f":"IF($B26=\"N\",\"\",IF(AND('Enrollment Form'!$C33=\"ROC\",'Enrollment Form'!$DS33<>\"\"),\"Y\",IF(AND('Enrollment Form'!$C33=\"ROC\",'Enrollment Form'!$DS33=\"\"),\"N\",IF(AND('Enrollment Form'!$C33=\"Enroll\",'Enrollment Form'!$B33=\"Subscriber\",'Enrollment Form'!$CX33=\"No\",'Enrollment Form'!$DS33=\"\"),\"N\",IF(AND('Enrollment Form'!$C33=\"Enroll\",'Enrollment Form'!$B33=\"Subscriber\",'Enrollment Form'!$CX33=\"Yes\"),\"-\",\"Y\")))))","v":""},{"$f":"IF('Enrollment Form'!AH33=\"\",\"\",IF(ISERROR(SEARCH(\".\",'Enrollment Form'!AH33,SEARCH(\"@\",'Enrollment Form'!AH33))),\"N\",\"Y\"))","v":""},{"$f":"IF(OR($B26=\"N\",'Enrollment Form'!$G33=\"\"),\"\",IF('Enrollment Form'!$B33<>\"Subscriber\",\"-\",IF(COUNTIF('Enrollment Form'!$AV33:$AW33,\"Yes\")=2,\"N\",\"Y\")))","v":""},{"$f":"IF(OR('Enrollment Form'!$CJ33=\"\",'Enrollment Form'!$CJ33=\"No\"),\"-\",IF(AND('Enrollment Form'!$CJ33=\"Yes\",'Enrollment Form'!$CK33=\"\"),\"N\",\"Y\"))","v":"-"},{"$f":"IF(OR('Enrollment Form'!$CL33=\"\",'Enrollment Form'!$CL33=\"No\"),\"-\",IF(AND('Enrollment Form'!$CL33=\"Yes\",'Enrollment Form'!$CM33=\"\"),\"N\",\"Y\"))","v":"-"},{"$f":"IF(OR('Enrollment Form'!$CN33=\"\",'Enrollment Form'!$CN33=\"No\"),\"-\",IF(AND('Enrollment Form'!$CN33=\"Yes\",'Enrollment Form'!$CO33=\"\"),\"N\",\"Y\"))","v":"-"},{"$f":"IF(OR('Enrollment Form'!$CN33=\"\",'Enrollment Form'!$CN33=\"No\"),\"-\",IF(AND('Enrollment Form'!$CN33=\"Yes\",'Enrollment Form'!$CP33=\"\"),\"N\",\"Y\"))","v":"-"},{"$f":"IF('Enrollment Form'!B33<>\"Subscriber\",\"-\",IF(AND('Enrollment Form'!B33=\"Subscriber\",'Enrollment Form'!C33=\"Enroll\",'Enrollment Form'!AA33=\"\"),\"N\",\"Y\"))","v":"-"},{"$f":"IF(OR('Enrollment Form'!B33=\"Subscriber\",'Enrollment Form'!B33=\"\"),\"-\",IF('Enrollment Form'!BP33=\"\",\"N\",\"Y\"))","v":"-"},{"$f":"IF('Enrollment Form'!B33<>\"Subscriber\",\"-\",IF(AND('Enrollment Form'!B33=\"Subscriber\",'Enrollment Form'!G33=\"\"),\"N\",\"Y\"))","v":"-"},{"$f":"IF('Enrollment Form'!A33=\"\",\"\",IF('Enrollment Form'!B33=\"Subscriber\",\"-\",IF(AND('Enrollment Form'!B33<>\"Subscriber\",'Enrollment Form'!G33='Enrollment Form'!H33),\"N\",\"Y\")))","v":""},0,null,null,null,null,null,null,"23","COBRA qual Reason & Date filled?","If original qualifying date is populated, event reason needed too","CT-CU"]
[34,{"$f":"IF('Enrollment Form'!$A34<>\"\",\"Y\",\"N\")","v":"N"},{"$f":"IF(AND('Enrollment Form'!$B34=\"\",'Enrollment Form'!$C34<>\"\"),\"N\",IF($B27=\"N\",\"\",\"Y\"))","v":""},{"$f":"IF(OR($B27=\"N\",'Enrollment Form'!G34=\"\"),\"\",IF('Enrollment Form'!$B34<>\"Subscriber\",\"\",IF('Enrollment Form'!$G34='Enrollment Form'!$H34,\"Y\",\"N\")))","v":""},{"$f":"IF($B27=\"N\",\"\",IF(AND(COUNTIFS('Enrollment Form'!$H$11:$H$1000,'Enrollment Form'!$H34,'Enrollment Form'!$B$11:$B$1000,'Enrollment Form'!$B34)>1,'Enrollment Form'!$H34<>\"\"),\"N\",\"Y\"))","v":""},{"$f":"IF($B27=\"N\",\"\",IF(LEN('Enrollment Form'!$Y34)=0,\"\",IF(LEN('Enrollment Form'!$Y34)<>5,\"N\",\"Y\")))","v":""},{"$f":"IF($B27=\"N\",\"\",IF(LEN('Enrollment Form'!$AD34=0),\"\",IF(LEN('Enrollment Form'!$AD34)<>5,\"N\",\"Y\")))","v":""},{"$f":"IF($B27=\"N\",\"\",IF(LEN('Enrollment Form'!$BS34=0),\"\",IF(LEN('Enrollment Form'!$BS34)<>5,\"N\",\"Y\")))","v":""},{"$f":"IF($B27=\"N\",\"\",IF(LEN('Enrollment Form'!$AE34)=0,\"\",IF(LEN('Enrollment Form'!$AE34)<>10,\"N\",\"Y\")))","v":""},{"$f":"IF($B27=\"N\",\"\",IF(LEN('Enrollment Form'!$AF34)=0,\"\",IF(LEN('Enrollment Form'!$AF34)<>10,\"N\",\"Y\")))","v":""},{"$f":"IF('Enrollment Form'!$O34<>\"Graded\",\"-\",IF(AND('Enrollment Form'!$O34=\"Graded\",'Enrollment Form'!$AR34<>\"\"),\"Y\",\"N\"))","v":"-"},{"$f":"IF($B27=\"N\",\"\",IF(OR('Enrollment Form'!$B34<>\"Subscriber\",'Enrollment Form'!$C34=\"ROC\"),\"-\",IF(AND('Enrollment Form'!$B34=\"Subscriber\",'Enrollment Form'!$C34=\"Enroll\",'Enrollment Form'!$AJ34<>\"\"),\"Y\",\"N\")))","v":""},{"$f":"IF($B27=\"N\",\"\",IF(OR('Enrollment Form'!$B34<>\"Subscriber\",'Enrollment Form'!$C34=\"ROC\"),\"-\",IF(AND('Enrollment Form'!$B34=\"Subscriber\",'Enrollment Form'!$C34=\"Enroll\",'Enrollment Form'!$AK34<>\"\"),\"Y\",\"N\")))","v":""},{"$f":"IF($B27=\"N\",\"\",IF(OR('Enrollment Form'!$B34<>\"Subscriber\",'Enrollment Form'!$C34=\"ROC\"),\"-\",IF(AND('Enrollment Form'!$B34=\"Subscriber\",'Enrollment Form'!$C34=\"Enroll\",'Enrollment Form'!$AL34<>\"\"),\"Y\",\"N\")))","v":""},{"$f":"IF($B27=\"N\",\"\",IF(OR('Enrollment Form'!$B34<>\"Subscriber\",'Enrollment Form'!$C34=\"ROC\"),\"-\",IF(AND('Enrollment Form'!$B34=\"Subscriber\",'Enrollment Form'!$C34=\"Enroll\",'Enrollment Form'!$AP34<>\"\"),\"Y\",\"N\")))","v":""},{"$f":"IF($B27=\"N\",\"\",IF(OR('Enrollment Form'!$B34<>\"Subscriber\",'Enrollment Form'!$C34=\"ROC\"),\"-\",IF(AND('Enrollment Form'!$B34=\"Subscriber\",'Enrollment Form'!$C34=\"Enroll\",'Enrollment Form'!$AQ34<>\"\"),\"Y\",\"N\")))","v":""},{"$f":"IF($B27=\"N\",\"\",IF(OR('Enrollment Form'!$B34<>\"Subscriber\",'Enrollment Form'!$C34=\"ROC\"),\"-\",IF(AND('Enrollment Form'!$B34=\"Subscriber\",'Enrollment Form'!$C34=\"Enroll\",'Enrollment Form'!$AS34<>\"\"),\"Y\",\"N\")))","v":""},{"$f":"IF($B27=\"N\",\"\",IF($Q27=\"-\",\"-\",IF(AND($Q27=\"Y\",'Enrollment Form'!$AS34=\"No\"),\"-\",IF(AND($Q27=\"Y\",'Enrollment Form'!$AS34=\"Yes\",'Enrollment Form'!$AT34<>\"\"),\"Y\",\"N\"))))","v":""},{"$f":"IF($B27=\"N\",\"\",IF(OR('Enrollment Form'!$B34<>\"Subscriber\",'Enrollment Form'!$C34=\"ROC\"),\"-\",IF(AND('Enrollment Form'!$B34=\"Subscriber\",'Enrollment Form'!$C34=\"Enroll\",'Enrollment Form'!$CV34<>\"\"),\"Y\",\"N\")))","v":""},{"$f":"IF($B27=\"N\",\"\",IF($S27=\"-\",\"-\",IF(AND($S27=\"Y\",'Enrollment Form'!$CV34=\"No\"),\"-\",IF(AND($S27=\"Y\",'Enrollment Form'!$CV34=\"Yes\",'Enrollment Form'!$CW34<>\"\"),\"Y\",\"N\"))))","v":""},{"$f":"IF(OR('Enrollment Form'!$AY34=\"Yes\",'Enrollment Form'!$AY34=\"\"),\"-\",IF(OR(AND('Enrollment Form'!$AY34=\"No\",ISERROR(FIND(\"HMO\",VLOOKUP('Enrollment Form'!G34,'Enrollment Form'!H$11:J$1000,3,FALSE),1))=FALSE,COUNTA('Enrollment Form'!$AZ34:$BC34)=4),AND('Enrollment Form'!$AY34=\"No\",ISERROR(FIND(\"HMO\",VLOOKUP('Enrollment Form'!G34,'Enrollment Form'!H$11:J$1000,3,FALSE),1))=FALSE,COUNTA('Enrollment Form'!$BT34:$BW34)=4)),\"Y\",\"N\"))","v":"-"},{"$f":"IF($B27=\"N\",\"\",IF('Enrollment Form'!$B34=\"Subscriber\",\"-\",IF(COUNTA('Enrollment Form'!$BL34,'Enrollment Form'!$BN34)=2,\"Y\",\"N\")))","v":""},{"$f":"IF($B27=\"N\",\"\",IF(OR('Enrollment Form'!$AX34=\"\",'Enrollment Form'!$AX34=\"No\"),\"-\",IF(AND('Enrollment Form'!$AX34=\"Yes\",COUNTA('Enrollment Form'!$CR34)=1),\"Y\",\"N\")))","v":""},{"$f":"IF(OR('Enrollment Form'!$CR34=\"\",'Enrollment Form'!$CR34=\"No\"),\"-\",IF(COUNTA('Enrollment Form'!$CT34:$CU34)=2,\"Y\",\"N\"))","v":"-"},{"$f":"IF($B27=\"N\",\"\",IF(COUNTIF('Enrollment Form'!$DG34:$DP34,\"Other\")=COUNTA('Enrollment Form'!$DK34,'Enrollment Form'!$DH34,'Enrollment Form'!$DN34,'Enrollment Form'!$DQ34),\"Y\",\"N\"))","v":""},{"$f":"IF($B27=\"N\",\"\",IF(OR('Enrollment Form'!B34<>\"Subscriber\",'Enrollment Form'!C34=\"ROC\",COUNTIF('Enrollment Form'!AV34:AW34,\"Yes\")>=1),\"-\",IF(AND('Enrollment Form'!C34=\"Enroll\",COUNTIF('Enrollment Form'!AV34:AW34,\"No\")=2,'Enrollment Form'!AX34=\"\"),\"N\",\"Y\")))","v":""},{"$f":"IF(OR(B27=\"N\",'Enrollment Form'!B34<>\"Subscriber\",'Enrollment Form'!C34=\"ROC\",'Enrollment Form'!O34<>\"Multiple of Salary\"),\"-\",IF(COUNTA('Enrollment Form'!T34:U34)<2,\"N\",\"Y\"))","v":"-"},{"$f":"IF(B27=\"N\",\"\",IF(OR('Enrollment Form'!C34=\"ROC\",'Enrollment Form'!B34<>\"Subscriber\",'Enrollment Form'!O34=\"Waive\",'Enrollment Form'!O34=\"\"),\"-\",IF('Enrollment Form'!P34=\"\",\"N\",\"Y\")))","v":""},{"$f":"IF($B27=\"N\",\"\",IF(AND('Enrollment Form'!$C34=\"ROC\",'Enrollment Form'!$DR34<>\"\"),\"Y\",IF(AND('Enrollment Form'!$C34=\"ROC\",'Enrollment Form'!$DR34=\"\"),\"N\",IF(AND('Enrollment Form'!$C34=\"Enroll\",'Enrollment Form'!$B34=\"Subscriber\",'Enrollment Form'!$CX34=\"No\",'Enrollment Form'!$DR34=\"\"),\"N\",IF(AND('Enrollment Form'!$C34=\"Enroll\",'Enrollment Form'!$B34=\"Subscriber\",'Enrollment Form'!$CX34=\"Yes\"),\"-\",\"Y\")))))","v":""},{"$f":"IF($B27=\"N\",\"\",IF(AND('Enrollment Form'!$C34=\"ROC\",'Enrollment Form'!$DS34<>\"\"),\"Y\",IF(AND('Enrollment Form'!$C34=\"ROC\",'Enrollment Form'!$DS34=\"\"),\"N\",IF(AND('Enrollment Form'!$C34=\"Enroll\",'Enrollment Form'!$B34=\"Subscriber\",'Enrollment Form'!$CX34=\"No\",'Enrollment Form'!$DS34=\"\"),\"N\",IF(AND('Enrollment Form'!$C34=\"Enroll\",'Enrollment Form'!$B34=\"Subscriber\",'Enrollment Form'!$CX34=\"Yes\"),\"-\",\"Y\")))))","v":""},{"$f":"IF('Enrollment Form'!AH34=\"\",\"\",IF(ISERROR(SEARCH(\".\",'Enrollment Form'!AH34,SEARCH(\"@\",'Enrollment Form'!AH34))),\"N\",\"Y\"))","v":""},{"$f":"IF(OR($B27=\"N\",'Enrollment Form'!$G34=\"\"),\"\",IF('Enrollment Form'!$B34<>\"Subscriber\",\"-\",IF(COUNTIF('Enrollment Form'!$AV34:$AW34,\"Yes\")=2,\"N\",\"Y\")))","v":""},{"$f":"IF(OR('Enrollment Form'!$CJ34=\"\",'Enrollment Form'!$CJ34=\"No\"),\"-\",IF(AND('Enrollment Form'!$CJ34=\"Yes\",'Enrollment Form'!$CK34=\"\"),\"N\",\"Y\"))","v":"-"},{"$f":"IF(OR('Enrollment Form'!$CL34=\"\",'Enrollment Form'!$CL34=\"No\"),\"-\",IF(AND('Enrollment Form'!$CL34=\"Yes\",'Enrollment Form'!$CM34=\"\"),\"N\",\"Y\"))","v":"-"},{"$f":"IF(OR('Enrollment Form'!$CN34=\"\",'Enrollment Form'!$CN34=\"No\"),\"-\",IF(AND('Enrollment Form'!$CN34=\"Yes\",'Enrollment Form'!$CO34=\"\"),\"N\",\"Y\"))","v":"-"},{"$f":"IF(OR('Enrollment Form'!$CN34=\"\",'Enrollment Form'!$CN34=\"No\"),\"-\",IF(AND('Enrollment Form'!$CN34=\"Yes\",'Enrollment Form'!$CP34=\"\"),\"N\",\"Y\"))","v":"-"},{"$f":"IF('Enrollment Form'!B34<>\"Subscriber\",\"-\",IF(AND('Enrollment Form'!B34=\"Subscriber\",'Enrollment Form'!C34=\"Enroll\",'Enrollment Form'!AA34=\"\"),\"N\",\"Y\"))","v":"-"},{"$f":"IF(OR('Enrollment Form'!B34=\"Subscriber\",'Enrollment Form'!B34=\"\"),\"-\",IF('Enrollment Form'!BP34=\"\",\"N\",\"Y\"))","v":"-"},{"$f":"IF('Enrollment Form'!B34<>\"Subscriber\",\"-\",IF(AND('Enrollment Form'!B34=\"Subscriber\",'Enrollment Form'!G34=\"\"),\"N\",\"Y\"))","v":"-"},{"$f":"IF('Enrollment Form'!A34=\"\",\"\",IF('Enrollment Form'!B34=\"Subscriber\",\"-\",IF(AND('Enrollment Form'!B34<>\"Subscriber\",'Enrollment Form'!G34='Enrollment Form'!H34),\"N\",\"Y\")))","v":""},0,null,null,null,null,null,null,"24","Reason Decl \"Other\" filled?","If reason for declining Medical, Dental, Vision, or Life = \"Other\", then reason for \"Other\" is required","DG-DH,DL-DM,DQ-DR,DV-DW"]
[35,{"$f":"IF('Enrollment Form'!$A35<>\"\",\"Y\",\"N\")","v":"N"},{"$f":"IF(AND('Enrollment Form'!$B35=\"\",'Enrollment Form'!$C35<>\"\"),\"N\",IF($B28=\"N\",\"\",\"Y\"))","v":""},{"$f":"IF(OR($B28=\"N\",'Enrollment Form'!G35=\"\"),\"\",IF('Enrollment Form'!$B35<>\"Subscriber\",\"\",IF('Enrollment Form'!$G35='Enrollment Form'!$H35,\"Y\",\"N\")))","v":""},{"$f":"IF($B28=\"N\",\"\",IF(AND(COUNTIFS('Enrollment Form'!$H$11:$H$1000,'Enrollment Form'!$H35,'Enrollment Form'!$B$11:$B$1000,'Enrollment Form'!$B35)>1,'Enrollment Form'!$H35<>\"\"),\"N\",\"Y\"))","v":""},{"$f":"IF($B28=\"N\",\"\",IF(LEN('Enrollment Form'!$Y35)=0,\"\",IF(LEN('Enrollment Form'!$Y35)<>5,\"N\",\"Y\")))","v":""},{"$f":"IF($B28=\"N\",\"\",IF(LEN('Enrollment Form'!$AD35=0),\"\",IF(LEN('Enrollment Form'!$AD35)<>5,\"N\",\"Y\")))","v":""},{"$f":"IF($B28=\"N\",\"\",IF(LEN('Enrollment Form'!$BS35=0),\"\",IF(LEN('Enrollment Form'!$BS35)<>5,\"N\",\"Y\")))","v":""},{"$f":"IF($B28=\"N\",\"\",IF(LEN('Enrollment Form'!$AE35)=0,\"\",IF(LEN('Enrollment Form'!$AE35)<>10,\"N\",\"Y\")))","v":""},{"$f":"IF($B28=\"N\",\"\",IF(LEN('Enrollment Form'!$AF35)=0,\"\",IF(LEN('Enrollment Form'!$AF35)<>10,\"N\",\"Y\")))","v":""},{"$f":"IF('Enrollment Form'!$O35<>\"Graded\",\"-\",IF(AND('Enrollment Form'!$O35=\"Graded\",'Enrollment Form'!$AR35<>\"\"),\"Y\",\"N\"))","v":"-"},{"$f":"IF($B28=\"N\",\"\",IF(OR('Enrollment Form'!$B35<>\"Subscriber\",'Enrollment Form'!$C35=\"ROC\"),\"-\",IF(AND('Enrollment Form'!$B35=\"Subscriber\",'Enrollment Form'!$C35=\"Enroll\",'Enrollment Form'!$AJ35<>\"\"),\"Y\",\"N\")))","v":""},{"$f":"IF($B28=\"N\",\"\",IF(OR('Enrollment Form'!$B35<>\"Subscriber\",'Enrollment Form'!$C35=\"ROC\"),\"-\",IF(AND('Enrollment Form'!$B35=\"Subscriber\",'Enrollment Form'!$C35=\"Enroll\",'Enrollment Form'!$AK35<>\"\"),\"Y\",\"N\")))","v":""},{"$f":"IF($B28=\"N\",\"\",IF(OR('Enrollment Form'!$B35<>\"Subscriber\",'Enrollment Form'!$C35=\"ROC\"),\"-\",IF(AND('Enrollment Form'!$B35=\"Subscriber\",'Enrollment Form'!$C35=\"Enroll\",'Enrollment Form'!$AL35<>\"\"),\"Y\",\"N\")))","v":""},{"$f":"IF($B28=\"N\",\"\",IF(OR('Enrollment Form'!$B35<>\"Subscriber\",'Enrollment Form'!$C35=\"ROC\"),\"-\",IF(AND('Enrollment Form'!$B35=\"Subscriber\",'Enrollment Form'!$C35=\"Enroll\",'Enrollment Form'!$AP35<>\"\"),\"Y\",\"N\")))","v":""},{"$f":"IF($B28=\"N\",\"\",IF(OR('Enrollment Form'!$B35<>\"Subscriber\",'Enrollment Form'!$C35=\"ROC\"),\"-\",IF(AND('Enrollment Form'!$B35=\"Subscriber\",'Enrollment Form'!$C35=\"Enroll\",'Enrollment Form'!$AQ35<>\"\"),\"Y\",\"N\")))","v":""},{"$f":"IF($B28=\"N\",\"\",IF(OR('Enrollment Form'!$B35<>\"Subscriber\",'Enrollment Form'!$C35=\"ROC\"),\"-\",IF(AND('Enrollment Form'!$B35=\"Subscriber\",'Enrollment Form'!$C35=\"Enroll\",'Enrollment Form'!$AS35<>\"\"),\"Y\",\"N\")))","v":""},{"$f":"IF($B28=\"N\",\"\",IF($Q28=\"-\",\"-\",IF(AND($Q28=\"Y\",'Enrollment Form'!$AS35=\"No\"),\"-\",IF(AND($Q28=\"Y\",'Enrollment Form'!$AS35=\"Yes\",'Enrollment Form'!$AT35<>\"\"),\"Y\",\"N\"))))","v":""},{"$f":"IF($B28=\"N\",\"\",IF(OR('Enrollment Form'!$B35<>\"Subscriber\",'Enrollment Form'!$C35=\"ROC\"),\"-\",IF(AND('Enrollment Form'!$B35=\"Subscriber\",'Enrollment Form'!$C35=\"Enroll\",'Enrollment Form'!$CV35<>\"\"),\"Y\",\"N\")))","v":""},{"$f":"IF($B28=\"N\",\"\",IF($S28=\"-\",\"-\",IF(AND($S28=\"Y\",'Enrollment Form'!$CV35=\"No\"),\"-\",IF(AND($S28=\"Y\",'Enrollment Form'!$CV35=\"Yes\",'Enrollment Form'!$CW35<>\"\"),\"Y\",\"N\"))))","v":""},{"$f":"IF(OR('Enrollment Form'!$AY35=\"Yes\",'Enrollment Form'!$AY35=\"\"),\"-\",IF(OR(AND('Enrollment Form'!$AY35=\"No\",ISERROR(FIND(\"HMO\",VLOOKUP('Enrollment Form'!G35,'Enrollment Form'!H$11:J$1000,3,FALSE),1))=FALSE,COUNTA('Enrollment Form'!$AZ35:$BC35)=4),AND('Enrollment Form'!$AY35=\"No\",ISERROR(FIND(\"HMO\",VLOOKUP('Enrollment Form'!G35,'Enrollment Form'!H$11:J$1000,3,FALSE),1))=FALSE,COUNTA('Enrollment Form'!$BT35:$BW35)=4)),\"Y\",\"N\"))","v":"-"},{"$f":"IF($B28=\"N\",\"\",IF('Enrollment Form'!$B35=\"Subscriber\",\"-\",IF(COUNTA('Enrollment Form'!$BL35,'Enrollment Form'!$BN35)=2,\"Y\",\"N\")))","v":""},{"$f":"IF($B28=\"N\",\"\",IF(OR('Enrollment Form'!$AX35=\"\",'Enrollment Form'!$AX35=\"No\"),\"-\",IF(AND('Enrollment Form'!$AX35=\"Yes\",COUNTA('Enrollment Form'!$CR35)=1),\"Y\",\"N\")))","v":""},{"$f":"IF(OR('Enrollment Form'!$CR35=\"\",'Enrollment Form'!$CR35=\"No\"),\"-\",IF(COUNTA('Enrollment Form'!$CT35:$CU35)=2,\"Y\",\"N\"))","v":"-"},{"$f":"IF($B28=\"N\",\"\",IF(COUNTIF('Enrollment Form'!$DG35:$DP35,\"Other\")=COUNTA('Enrollment Form'!$DK35,'Enrollment Form'!$DH35,'Enrollment Form'!$DN35,'Enrollment Form'!$DQ35),\"Y\",\"N\"))","v":""},{"$f":"IF($B28=\"N\",\"\",IF(OR('Enrollment Form'!B35<>\"Subscriber\",'Enrollment Form'!C35=\"ROC\",COUNTIF('Enrollment Form'!AV35:AW35,\"Yes\")>=1),\"-\",IF(AND('Enrollment Form'!C35=\"Enroll\",COUNTIF('Enrollment Form'!AV35:AW35,\"No\")=2,'Enrollment Form'!AX35=\"\"),\"N\",\"Y\")))","v":""},{"$f":"IF(OR(B28=\"N\",'Enrollment Form'!B35<>\"Subscriber\",'Enrollment Form'!C35=\"ROC\",'Enrollment Form'!O35<>\"Multiple of Salary\"),\"-\",IF(COUNTA('Enrollment Form'!T35:U35)<2,\"N\",\"Y\"))","v":"-"},{"$f":"IF(B28=\"N\",\"\",IF(OR('Enrollment Form'!C35=\"ROC\",'Enrollment Form'!B35<>\"Subscriber\",'Enrollment Form'!O35=\"Waive\",'Enrollment Form'!O35=\"\"),\"-\",IF('Enrollment Form'!P35=\"\",\"N\",\"Y\")))","v":""},{"$f":"IF($B28=\"N\",\"\",IF(AND('Enrollment Form'!$C35=\"ROC\",'Enrollment Form'!$DR35<>\"\"),\"Y\",IF(AND('Enrollment Form'!$C35=\"ROC\",'Enrollment Form'!$DR35=\"\"),\"N\",IF(AND('Enrollment Form'!$C35=\"Enroll\",'Enrollment Form'!$B35=\"Subscriber\",'Enrollment Form'!$CX35=\"No\",'Enrollment Form'!$DR35=\"\"),\"N\",IF(AND('Enrollment Form'!$C35=\"Enroll\",'Enrollment Form'!$B35=\"Subscriber\",'Enrollment Form'!$CX35=\"Yes\"),\"-\",\"Y\")))))","v":""},{"$f":"IF($B28=\"N\",\"\",IF(AND('Enrollment Form'!$C35=\"ROC\",'Enrollment Form'!$DS35<>\"\"),\"Y\",IF(AND('Enrollment Form'!$C35=\"ROC\",'Enrollment Form'!$DS35=\"\"),\"N\",IF(AND('Enrollment Form'!$C35=\"Enroll\",'Enrollment Form'!$B35=\"Subscriber\",'Enrollment Form'!$CX35=\"No\",'Enrollment Form'!$DS35=\"\"),\"N\",IF(AND('Enrollment Form'!$C35=\"Enroll\",'Enrollment Form'!$B35=\"Subscriber\",'Enrollment Form'!$CX35=\"Yes\"),\"-\",\"Y\")))))","v":""},{"$f":"IF('Enrollment Form'!AH35=\"\",\"\",IF(ISERROR(SEARCH(\".\",'Enrollment Form'!AH35,SEARCH(\"@\",'Enrollment Form'!AH35))),\"N\",\"Y\"))","v":""},{"$f":"IF(OR($B28=\"N\",'Enrollment Form'!$G35=\"\"),\"\",IF('Enrollment Form'!$B35<>\"Subscriber\",\"-\",IF(COUNTIF('Enrollment Form'!$AV35:$AW35,\"Yes\")=2,\"N\",\"Y\")))","v":""},{"$f":"IF(OR('Enrollment Form'!$CJ35=\"\",'Enrollment Form'!$CJ35=\"No\"),\"-\",IF(AND('Enrollment Form'!$CJ35=\"Yes\",'Enrollment Form'!$CK35=\"\"),\"N\",\"Y\"))","v":"-"},{"$f":"IF(OR('Enrollment Form'!$CL35=\"\",'Enrollment Form'!$CL35=\"No\"),\"-\",IF(AND('Enrollment Form'!$CL35=\"Yes\",'Enrollment Form'!$CM35=\"\"),\"N\",\"Y\"))","v":"-"},{"$f":"IF(OR('Enrollment Form'!$CN35=\"\",'Enrollment Form'!$CN35=\"No\"),\"-\",IF(AND('Enrollment Form'!$CN35=\"Yes\",'Enrollment Form'!$CO35=\"\"),\"N\",\"Y\"))","v":"-"},{"$f":"IF(OR('Enrollment Form'!$CN35=\"\",'Enrollment Form'!$CN35=\"No\"),\"-\",IF(AND('Enrollment Form'!$CN35=\"Yes\",'Enrollment Form'!$CP35=\"\"),\"N\",\"Y\"))","v":"-"},{"$f":"IF('Enrollment Form'!B35<>\"Subscriber\",\"-\",IF(AND('Enrollment Form'!B35=\"Subscriber\",'Enrollment Form'!C35=\"Enroll\",'Enrollment Form'!AA35=\"\"),\"N\",\"Y\"))","v":"-"},{"$f":"IF(OR('Enrollment Form'!B35=\"Subscriber\",'Enrollment Form'!B35=\"\"),\"-\",IF('Enrollment Form'!BP35=\"\",\"N\",\"Y\"))","v":"-"},{"$f":"IF('Enrollment Form'!B35<>\"Subscriber\",\"-\",IF(AND('Enrollment Form'!B35=\"Subscriber\",'Enrollment Form'!G35=\"\"),\"N\",\"Y\"))","v":"-"},{"$f":"IF('Enrollment Form'!A35=\"\",\"\",IF('Enrollment Form'!B35=\"Subscriber\",\"-\",IF(AND('Enrollment Form'!B35<>\"Subscriber\",'Enrollment Form'!G35='Enrollment Form'!H35),\"N\",\"Y\")))","v":""},0,null,null,null,null,null,null,"25","Existing COBRA filled?","If you work less than 20 hours a week, then must be specified if you are existing or enrolling","AV-AX"]
[36,{"$f":"IF('Enrollment Form'!$A36<>\"\",\"Y\",\"N\")","v":"N"},{"$f":"IF(AND('Enrollment Form'!$B36=\"\",'Enrollment Form'!$C36<>\"\"),\"N\",IF($B29=\"N\",\"\",\"Y\"))","v":""},{"$f":"IF(OR($B29=\"N\",'Enrollment Form'!G36=\"\"),\"\",IF('Enrollment Form'!$B36<>\"Subscriber\",\"\",IF('Enrollment Form'!$G36='Enrollment Form'!$H36,\"Y\",\"N\")))","v":""},{"$f":"IF($B29=\"N\",\"\",IF(AND(COUNTIFS('Enrollment Form'!$H$11:$H$1000,'Enrollment Form'!$H36,'Enrollment Form'!$B$11:$B$1000,'Enrollment Form'!$B36)>1,'Enrollment Form'!$H36<>\"\"),\"N\",\"Y\"))","v":""},{"$f":"IF($B29=\"N\",\"\",IF(LEN('Enrollment Form'!$Y36)=0,\"\",IF(LEN('Enrollment Form'!$Y36)<>5,\"N\",\"Y\")))","v":""},{"$f":"IF($B29=\"N\",\"\",IF(LEN('Enrollment Form'!$AD36=0),\"\",IF(LEN('Enrollment Form'!$AD36)<>5,\"N\",\"Y\")))","v":""},{"$f":"IF($B29=\"N\",\"\",IF(LEN('Enrollment Form'!$BS36=0),\"\",IF(LEN('Enrollment Form'!$BS36)<>5,\"N\",\"Y\")))","v":""},{"$f":"IF($B29=\"N\",\"\",IF(LEN('Enrollment Form'!$AE36)=0,\"\",IF(LEN('Enrollment Form'!$AE36)<>10,\"N\",\"Y\")))","v":""},{"$f":"IF($B29=\"N\",\"\",IF(LEN('Enrollment Form'!$AF36)=0,\"\",IF(LEN('Enrollment Form'!$AF36)<>10,\"N\",\"Y\")))","v":""},{"$f":"IF('Enrollment Form'!$O36<>\"Graded\",\"-\",IF(AND('Enrollment Form'!$O36=\"Graded\",'Enrollment Form'!$AR36<>\"\"),\"Y\",\"N\"))","v":"-"},{"$f":"IF($B29=\"N\",\"\",IF(OR('Enrollment Form'!$B36<>\"Subscriber\",'Enrollment Form'!$C36=\"ROC\"),\"-\",IF(AND('Enrollment Form'!$B36=\"Subscriber\",'Enrollment Form'!$C36=\"Enroll\",'Enrollment Form'!$AJ36<>\"\"),\"Y\",\"N\")))","v":""},{"$f":"IF($B29=\"N\",\"\",IF(OR('Enrollment Form'!$B36<>\"Subscriber\",'Enrollment Form'!$C36=\"ROC\"),\"-\",IF(AND('Enrollment Form'!$B36=\"Subscriber\",'Enrollment Form'!$C36=\"Enroll\",'Enrollment Form'!$AK36<>\"\"),\"Y\",\"N\")))","v":""},{"$f":"IF($B29=\"N\",\"\",IF(OR('Enrollment Form'!$B36<>\"Subscriber\",'Enrollment Form'!$C36=\"ROC\"),\"-\",IF(AND('Enrollment Form'!$B36=\"Subscriber\",'Enrollment Form'!$C36=\"Enroll\",'Enrollment Form'!$AL36<>\"\"),\"Y\",\"N\")))","v":""},{"$f":"IF($B29=\"N\",\"\",IF(OR('Enrollment Form'!$B36<>\"Subscriber\",'Enrollment Form'!$C36=\"ROC\"),\"-\",IF(AND('Enrollment Form'!$B36=\"Subscriber\",'Enrollment Form'!$C36=\"Enroll\",'Enrollment Form'!$AP36<>\"\"),\"Y\",\"N\")))","v":""},{"$f":"IF($B29=\"N\",\"\",IF(OR('Enrollment Form'!$B36<>\"Subscriber\",'Enrollment Form'!$C36=\"ROC\"),\"-\",IF(AND('Enrollment Form'!$B36=\"Subscriber\",'Enrollment Form'!$C36=\"Enroll\",'Enrollment Form'!$AQ36<>\"\"),\"Y\",\"N\")))","v":""},{"$f":"IF($B29=\"N\",\"\",IF(OR('Enrollment Form'!$B36<>\"Subscriber\",'Enrollment Form'!$C36=\"ROC\"),\"-\",IF(AND('Enrollment Form'!$B36=\"Subscriber\",'Enrollment Form'!$C36=\"Enroll\",'Enrollment Form'!$AS36<>\"\"),\"Y\",\"N\")))","v":""},{"$f":"IF($B29=\"N\",\"\",IF($Q29=\"-\",\"-\",IF(AND($Q29=\"Y\",'Enrollment Form'!$AS36=\"No\"),\"-\",IF(AND($Q29=\"Y\",'Enrollment Form'!$AS36=\"Yes\",'Enrollment Form'!$AT36<>\"\"),\"Y\",\"N\"))))","v":""},{"$f":"IF($B29=\"N\",\"\",IF(OR('Enrollment Form'!$B36<>\"Subscriber\",'Enrollment Form'!$C36=\"ROC\"),\"-\",IF(AND('Enrollment Form'!$B36=\"Subscriber\",'Enrollment Form'!$C36=\"Enroll\",'Enrollment Form'!$CV36<>\"\"),\"Y\",\"N\")))","v":""},{"$f":"IF($B29=\"N\",\"\",IF($S29=\"-\",\"-\",IF(AND($S29=\"Y\",'Enrollment Form'!$CV36=\"No\"),\"-\",IF(AND($S29=\"Y\",'Enrollment Form'!$CV36=\"Yes\",'Enrollment Form'!$CW36<>\"\"),\"Y\",\"N\"))))","v":""},{"$f":"IF(OR('Enrollment Form'!$AY36=\"Yes\",'Enrollment Form'!$AY36=\"\"),\"-\",IF(OR(AND('Enrollment Form'!$AY36=\"No\",ISERROR(FIND(\"HMO\",VLOOKUP('Enrollment Form'!G36,'Enrollment Form'!H$11:J$1000,3,FALSE),1))=FALSE,COUNTA('Enrollment Form'!$AZ36:$BC36)=4),AND('Enrollment Form'!$AY36=\"No\",ISERROR(FIND(\"HMO\",VLOOKUP('Enrollment Form'!G36,'Enrollment Form'!H$11:J$1000,3,FALSE),1))=FALSE,COUNTA('Enrollment Form'!$BT36:$BW36)=4)),\"Y\",\"N\"))","v":"-"},{"$f":"IF($B29=\"N\",\"\",IF('Enrollment Form'!$B36=\"Subscriber\",\"-\",IF(COUNTA('Enrollment Form'!$BL36,'Enrollment Form'!$BN36)=2,\"Y\",\"N\")))","v":""},{"$f":"IF($B29=\"N\",\"\",IF(OR('Enrollment Form'!$AX36=\"\",'Enrollment Form'!$AX36=\"No\"),\"-\",IF(AND('Enrollment Form'!$AX36=\"Yes\",COUNTA('Enrollment Form'!$CR36)=1),\"Y\",\"N\")))","v":""},{"$f":"IF(OR('Enrollment Form'!$CR36=\"\",'Enrollment Form'!$CR36=\"No\"),\"-\",IF(COUNTA('Enrollment Form'!$CT36:$CU36)=2,\"Y\",\"N\"))","v":"-"},{"$f":"IF($B29=\"N\",\"\",IF(COUNTIF('Enrollment Form'!$DG36:$DP36,\"Other\")=COUNTA('Enrollment Form'!$DK36,'Enrollment Form'!$DH36,'Enrollment Form'!$DN36,'Enrollment Form'!$DQ36),\"Y\",\"N\"))","v":""},{"$f":"IF($B29=\"N\",\"\",IF(OR('Enrollment Form'!B36<>\"Subscriber\",'Enrollment Form'!C36=\"ROC\",COUNTIF('Enrollment Form'!AV36:AW36,\"Yes\")>=1),\"-\",IF(AND('Enrollment Form'!C36=\"Enroll\",COUNTIF('Enrollment Form'!AV36:AW36,\"No\")=2,'Enrollment Form'!AX36=\"\"),\"N\",\"Y\")))","v":""},{"$f":"IF(OR(B29=\"N\",'Enrollment Form'!B36<>\"Subscriber\",'Enrollment Form'!C36=\"ROC\",'Enrollment Form'!O36<>\"Multiple of Salary\"),\"-\",IF(COUNTA('Enrollment Form'!T36:U36)<2,\"N\",\"Y\"))","v":"-"},{"$f":"IF(B29=\"N\",\"\",IF(OR('Enrollment Form'!C36=\"ROC\",'Enrollment Form'!B36<>\"Subscriber\",'Enrollment Form'!O36=\"Waive\",'Enrollment Form'!O36=\"\"),\"-\",IF('Enrollment Form'!P36=\"\",\"N\",\"Y\")))","v":""},{"$f":"IF($B29=\"N\",\"\",IF(AND('Enrollment Form'!$C36=\"ROC\",'Enrollment Form'!$DR36<>\"\"),\"Y\",IF(AND('Enrollment Form'!$C36=\"ROC\",'Enrollment Form'!$DR36=\"\"),\"N\",IF(AND('Enrollment Form'!$C36=\"Enroll\",'Enrollment Form'!$B36=\"Subscriber\",'Enrollment Form'!$CX36=\"No\",'Enrollment Form'!$DR36=\"\"),\"N\",IF(AND('Enrollment Form'!$C36=\"Enroll\",'Enrollment Form'!$B36=\"Subscriber\",'Enrollment Form'!$CX36=\"Yes\"),\"-\",\"Y\")))))","v":""},{"$f":"IF($B29=\"N\",\"\",IF(AND('Enrollment Form'!$C36=\"ROC\",'Enrollment Form'!$DS36<>\"\"),\"Y\",IF(AND('Enrollment Form'!$C36=\"ROC\",'Enrollment Form'!$DS36=\"\"),\"N\",IF(AND('Enrollment Form'!$C36=\"Enroll\",'Enrollment Form'!$B36=\"Subscriber\",'Enrollment Form'!$CX36=\"No\",'Enrollment Form'!$DS36=\"\"),\"N\",IF(AND('Enrollment Form'!$C36=\"Enroll\",'Enrollment Form'!$B36=\"Subscriber\",'Enrollment Form'!$CX36=\"Yes\"),\"-\",\"Y\")))))","v":""},{"$f":"IF('Enrollment Form'!AH36=\"\",\"\",IF(ISERROR(SEARCH(\".\",'Enrollment Form'!AH36,SEARCH(\"@\",'Enrollment Form'!AH36))),\"N\",\"Y\"))","v":""},{"$f":"IF(OR($B29=\"N\",'Enrollment Form'!$G36=\"\"),\"\",IF('Enrollment Form'!$B36<>\"Subscriber\",\"-\",IF(COUNTIF('Enrollment Form'!$AV36:$AW36,\"Yes\")=2,\"N\",\"Y\")))","v":""},{"$f":"IF(OR('Enrollment Form'!$CJ36=\"\",'Enrollment Form'!$CJ36=\"No\"),\"-\",IF(AND('Enrollment Form'!$CJ36=\"Yes\",'Enrollment Form'!$CK36=\"\"),\"N\",\"Y\"))","v":"-"},{"$f":"IF(OR('Enrollment Form'!$CL36=\"\",'Enrollment Form'!$CL36=\"No\"),\"-\",IF(AND('Enrollment Form'!$CL36=\"Yes\",'Enrollment Form'!$CM36=\"\"),\"N\",\"Y\"))","v":"-"},{"$f":"IF(OR('Enrollment Form'!$CN36=\"\",'Enrollment Form'!$CN36=\"No\"),\"-\",IF(AND('Enrollment Form'!$CN36=\"Yes\",'Enrollment Form'!$CO36=\"\"),\"N\",\"Y\"))","v":"-"},{"$f":"IF(OR('Enrollment Form'!$CN36=\"\",'Enrollment Form'!$CN36=\"No\"),\"-\",IF(AND('Enrollment Form'!$CN36=\"Yes\",'Enrollment Form'!$CP36=\"\"),\"N\",\"Y\"))","v":"-"},{"$f":"IF('Enrollment Form'!B36<>\"Subscriber\",\"-\",IF(AND('Enrollment Form'!B36=\"Subscriber\",'Enrollment Form'!C36=\"Enroll\",'Enrollment Form'!AA36=\"\"),\"N\",\"Y\"))","v":"-"},{"$f":"IF(OR('Enrollment Form'!B36=\"Subscriber\",'Enrollment Form'!B36=\"\"),\"-\",IF('Enrollment Form'!BP36=\"\",\"N\",\"Y\"))","v":"-"},{"$f":"IF('Enrollment Form'!B36<>\"Subscriber\",\"-\",IF(AND('Enrollment Form'!B36=\"Subscriber\",'Enrollment Form'!G36=\"\"),\"N\",\"Y\"))","v":"-"},{"$f":"IF('Enrollment Form'!A36=\"\",\"\",IF('Enrollment Form'!B36=\"Subscriber\",\"-\",IF(AND('Enrollment Form'!B36<>\"Subscriber\",'Enrollment Form'!G36='Enrollment Form'!H36),\"N\",\"Y\")))","v":""},0,null,null,null,null,null,null,"26","Life Mult of Sal Earnings filled?","If \"Multiple of Salary\" is selected for Life Ins, then earnings & frequency must be populated","O,T-U"]
[37,{"$f":"IF('Enrollment Form'!$A37<>\"\",\"Y\",\"N\")","v":"N"},{"$f":"IF(AND('Enrollment Form'!$B37=\"\",'Enrollment Form'!$C37<>\"\"),\"N\",IF($B30=\"N\",\"\",\"Y\"))","v":""},{"$f":"IF(OR($B30=\"N\",'Enrollment Form'!G37=\"\"),\"\",IF('Enrollment Form'!$B37<>\"Subscriber\",\"\",IF('Enrollment Form'!$G37='Enrollment Form'!$H37,\"Y\",\"N\")))","v":""},{"$f":"IF($B30=\"N\",\"\",IF(AND(COUNTIFS('Enrollment Form'!$H$11:$H$1000,'Enrollment Form'!$H37,'Enrollment Form'!$B$11:$B$1000,'Enrollment Form'!$B37)>1,'Enrollment Form'!$H37<>\"\"),\"N\",\"Y\"))","v":""},{"$f":"IF($B30=\"N\",\"\",IF(LEN('Enrollment Form'!$Y37)=0,\"\",IF(LEN('Enrollment Form'!$Y37)<>5,\"N\",\"Y\")))","v":""},{"$f":"IF($B30=\"N\",\"\",IF(LEN('Enrollment Form'!$AD37=0),\"\",IF(LEN('Enrollment Form'!$AD37)<>5,\"N\",\"Y\")))","v":""},{"$f":"IF($B30=\"N\",\"\",IF(LEN('Enrollment Form'!$BS37=0),\"\",IF(LEN('Enrollment Form'!$BS37)<>5,\"N\",\"Y\")))","v":""},{"$f":"IF($B30=\"N\",\"\",IF(LEN('Enrollment Form'!$AE37)=0,\"\",IF(LEN('Enrollment Form'!$AE37)<>10,\"N\",\"Y\")))","v":""},{"$f":"IF($B30=\"N\",\"\",IF(LEN('Enrollment Form'!$AF37)=0,\"\",IF(LEN('Enrollment Form'!$AF37)<>10,\"N\",\"Y\")))","v":""},{"$f":"IF('Enrollment Form'!$O37<>\"Graded\",\"-\",IF(AND('Enrollment Form'!$O37=\"Graded\",'Enrollment Form'!$AR37<>\"\"),\"Y\",\"N\"))","v":"-"},{"$f":"IF($B30=\"N\",\"\",IF(OR('Enrollment Form'!$B37<>\"Subscriber\",'Enrollment Form'!$C37=\"ROC\"),\"-\",IF(AND('Enrollment Form'!$B37=\"Subscriber\",'Enrollment Form'!$C37=\"Enroll\",'Enrollment Form'!$AJ37<>\"\"),\"Y\",\"N\")))","v":""},{"$f":"IF($B30=\"N\",\"\",IF(OR('Enrollment Form'!$B37<>\"Subscriber\",'Enrollment Form'!$C37=\"ROC\"),\"-\",IF(AND('Enrollment Form'!$B37=\"Subscriber\",'Enrollment Form'!$C37=\"Enroll\",'Enrollment Form'!$AK37<>\"\"),\"Y\",\"N\")))","v":""},{"$f":"IF($B30=\"N\",\"\",IF(OR('Enrollment Form'!$B37<>\"Subscriber\",'Enrollment Form'!$C37=\"ROC\"),\"-\",IF(AND('Enrollment Form'!$B37=\"Subscriber\",'Enrollment Form'!$C37=\"Enroll\",'Enrollment Form'!$AL37<>\"\"),\"Y\",\"N\")))","v":""},{"$f":"IF($B30=\"N\",\"\",IF(OR('Enrollment Form'!$B37<>\"Subscriber\",'Enrollment Form'!$C37=\"ROC\"),\"-\",IF(AND('Enrollment Form'!$B37=\"Subscriber\",'Enrollment Form'!$C37=\"Enroll\",'Enrollment Form'!$AP37<>\"\"),\"Y\",\"N\")))","v":""},{"$f":"IF($B30=\"N\",\"\",IF(OR('Enrollment Form'!$B37<>\"Subscriber\",'Enrollment Form'!$C37=\"ROC\"),\"-\",IF(AND('Enrollment Form'!$B37=\"Subscriber\",'Enrollment Form'!$C37=\"Enroll\",'Enrollment Form'!$AQ37<>\"\"),\"Y\",\"N\")))","v":""},{"$f":"IF($B30=\"N\",\"\",IF(OR('Enrollment Form'!$B37<>\"Subscriber\",'Enrollment Form'!$C37=\"ROC\"),\"-\",IF(AND('Enrollment Form'!$B37=\"Subscriber\",'Enrollment Form'!$C37=\"Enroll\",'Enrollment Form'!$AS37<>\"\"),\"Y\",\"N\")))","v":""},{"$f":"IF($B30=\"N\",\"\",IF($Q30=\"-\",\"-\",IF(AND($Q30=\"Y\",'Enrollment Form'!$AS37=\"No\"),\"-\",IF(AND($Q30=\"Y\",'Enrollment Form'!$AS37=\"Yes\",'Enrollment Form'!$AT37<>\"\"),\"Y\",\"N\"))))","v":""},{"$f":"IF($B30=\"N\",\"\",IF(OR('Enrollment Form'!$B37<>\"Subscriber\",'Enrollment Form'!$C37=\"ROC\"),\"-\",IF(AND('Enrollment Form'!$B37=\"Subscriber\",'Enrollment Form'!$C37=\"Enroll\",'Enrollment Form'!$CV37<>\"\"),\"Y\",\"N\")))","v":""},{"$f":"IF($B30=\"N\",\"\",IF($S30=\"-\",\"-\",IF(AND($S30=\"Y\",'Enrollment Form'!$CV37=\"No\"),\"-\",IF(AND($S30=\"Y\",'Enrollment Form'!$CV37=\"Yes\",'Enrollment Form'!$CW37<>\"\"),\"Y\",\"N\"))))","v":""},{"$f":"IF(OR('Enrollment Form'!$AY37=\"Yes\",'Enrollment Form'!$AY37=\"\"),\"-\",IF(OR(AND('Enrollment Form'!$AY37=\"No\",ISERROR(FIND(\"HMO\",VLOOKUP('Enrollment Form'!G37,'Enrollment Form'!H$11:J$1000,3,FALSE),1))=FALSE,COUNTA('Enrollment Form'!$AZ37:$BC37)=4),AND('Enrollment Form'!$AY37=\"No\",ISERROR(FIND(\"HMO\",VLOOKUP('Enrollment Form'!G37,'Enrollment Form'!H$11:J$1000,3,FALSE),1))=FALSE,COUNTA('Enrollment Form'!$BT37:$BW37)=4)),\"Y\",\"N\"))","v":"-"},{"$f":"IF($B30=\"N\",\"\",IF('Enrollment Form'!$B37=\"Subscriber\",\"-\",IF(COUNTA('Enrollment Form'!$BL37,'Enrollment Form'!$BN37)=2,\"Y\",\"N\")))","v":""},{"$f":"IF($B30=\"N\",\"\",IF(OR('Enrollment Form'!$AX37=\"\",'Enrollment Form'!$AX37=\"No\"),\"-\",IF(AND('Enrollment Form'!$AX37=\"Yes\",COUNTA('Enrollment Form'!$CR37)=1),\"Y\",\"N\")))","v":""},{"$f":"IF(OR('Enrollment Form'!$CR37=\"\",'Enrollment Form'!$CR37=\"No\"),\"-\",IF(COUNTA('Enrollment Form'!$CT37:$CU37)=2,\"Y\",\"N\"))","v":"-"},{"$f":"IF($B30=\"N\",\"\",IF(COUNTIF('Enrollment Form'!$DG37:$DP37,\"Other\")=COUNTA('Enrollment Form'!$DK37,'Enrollment Form'!$DH37,'Enrollment Form'!$DN37,'Enrollment Form'!$DQ37),\"Y\",\"N\"))","v":""},{"$f":"IF($B30=\"N\",\"\",IF(OR('Enrollment Form'!B37<>\"Subscriber\",'Enrollment Form'!C37=\"ROC\",COUNTIF('Enrollment Form'!AV37:AW37,\"Yes\")>=1),\"-\",IF(AND('Enrollment Form'!C37=\"Enroll\",COUNTIF('Enrollment Form'!AV37:AW37,\"No\")=2,'Enrollment Form'!AX37=\"\"),\"N\",\"Y\")))","v":""},{"$f":"IF(OR(B30=\"N\",'Enrollment Form'!B37<>\"Subscriber\",'Enrollment Form'!C37=\"ROC\",'Enrollment Form'!O37<>\"Multiple of Salary\"),\"-\",IF(COUNTA('Enrollment Form'!T37:U37)<2,\"N\",\"Y\"))","v":"-"},{"$f":"IF(B30=\"N\",\"\",IF(OR('Enrollment Form'!C37=\"ROC\",'Enrollment Form'!B37<>\"Subscriber\",'Enrollment Form'!O37=\"Waive\",'Enrollment Form'!O37=\"\"),\"-\",IF('Enrollment Form'!P37=\"\",\"N\",\"Y\")))","v":""},{"$f":"IF($B30=\"N\",\"\",IF(AND('Enrollment Form'!$C37=\"ROC\",'Enrollment Form'!$DR37<>\"\"),\"Y\",IF(AND('Enrollment Form'!$C37=\"ROC\",'Enrollment Form'!$DR37=\"\"),\"N\",IF(AND('Enrollment Form'!$C37=\"Enroll\",'Enrollment Form'!$B37=\"Subscriber\",'Enrollment Form'!$CX37=\"No\",'Enrollment Form'!$DR37=\"\"),\"N\",IF(AND('Enrollment Form'!$C37=\"Enroll\",'Enrollment Form'!$B37=\"Subscriber\",'Enrollment Form'!$CX37=\"Yes\"),\"-\",\"Y\")))))","v":""},{"$f":"IF($B30=\"N\",\"\",IF(AND('Enrollment Form'!$C37=\"ROC\",'Enrollment Form'!$DS37<>\"\"),\"Y\",IF(AND('Enrollment Form'!$C37=\"ROC\",'Enrollment Form'!$DS37=\"\"),\"N\",IF(AND('Enrollment Form'!$C37=\"Enroll\",'Enrollment Form'!$B37=\"Subscriber\",'Enrollment Form'!$CX37=\"No\",'Enrollment Form'!$DS37=\"\"),\"N\",IF(AND('Enrollment Form'!$C37=\"Enroll\",'Enrollment Form'!$B37=\"Subscriber\",'Enrollment Form'!$CX37=\"Yes\"),\"-\",\"Y\")))))","v":""},{"$f":"IF('Enrollment Form'!AH37=\"\",\"\",IF(ISERROR(SEARCH(\".\",'Enrollment Form'!AH37,SEARCH(\"@\",'Enrollment Form'!AH37))),\"N\",\"Y\"))","v":""},{"$f":"IF(OR($B30=\"N\",'Enrollment Form'!$G37=\"\"),\"\",IF('Enrollment Form'!$B37<>\"Subscriber\",\"-\",IF(COUNTIF('Enrollment Form'!$AV37:$AW37,\"Yes\")=2,\"N\",\"Y\")))","v":""},{"$f":"IF(OR('Enrollment Form'!$CJ37=\"\",'Enrollment Form'!$CJ37=\"No\"),\"-\",IF(AND('Enrollment Form'!$CJ37=\"Yes\",'Enrollment Form'!$CK37=\"\"),\"N\",\"Y\"))","v":"-"},{"$f":"IF(OR('Enrollment Form'!$CL37=\"\",'Enrollment Form'!$CL37=\"No\"),\"-\",IF(AND('Enrollment Form'!$CL37=\"Yes\",'Enrollment Form'!$CM37=\"\"),\"N\",\"Y\"))","v":"-"},{"$f":"IF(OR('Enrollment Form'!$CN37=\"\",'Enrollment Form'!$CN37=\"No\"),\"-\",IF(AND('Enrollment Form'!$CN37=\"Yes\",'Enrollment Form'!$CO37=\"\"),\"N\",\"Y\"))","v":"-"},{"$f":"IF(OR('Enrollment Form'!$CN37=\"\",'Enrollment Form'!$CN37=\"No\"),\"-\",IF(AND('Enrollment Form'!$CN37=\"Yes\",'Enrollment Form'!$CP37=\"\"),\"N\",\"Y\"))","v":"-"},{"$f":"IF('Enrollment Form'!B37<>\"Subscriber\",\"-\",IF(AND('Enrollment Form'!B37=\"Subscriber\",'Enrollment Form'!C37=\"Enroll\",'Enrollment Form'!AA37=\"\"),\"N\",\"Y\"))","v":"-"},{"$f":"IF(OR('Enrollment Form'!B37=\"Subscriber\",'Enrollment Form'!B37=\"\"),\"-\",IF('Enrollment Form'!BP37=\"\",\"N\",\"Y\"))","v":"-"},{"$f":"IF('Enrollment Form'!B37<>\"Subscriber\",\"-\",IF(AND('Enrollment Form'!B37=\"Subscriber\",'Enrollment Form'!G37=\"\"),\"N\",\"Y\"))","v":"-"},{"$f":"IF('Enrollment Form'!A37=\"\",\"\",IF('Enrollment Form'!B37=\"Subscriber\",\"-\",IF(AND('Enrollment Form'!B37<>\"Subscriber\",'Enrollment Form'!G37='Enrollment Form'!H37),\"N\",\"Y\")))","v":""},0,null,null,null,null,null,null,"27","Life amount filled?","If not waiving Life Insurance, then an amount must be selected","O-P"]
[38,{"$f":"IF('Enrollment Form'!$A38<>\"\",\"Y\",\"N\")","v":"N"},{"$f":"IF(AND('Enrollment Form'!$B38=\"\",'Enrollment Form'!$C38<>\"\"),\"N\",IF($B31=\"N\",\"\",\"Y\"))","v":""},{"$f":"IF(OR($B31=\"N\",'Enrollment Form'!G38=\"\"),\"\",IF('Enrollment Form'!$B38<>\"Subscriber\",\"\",IF('Enrollment Form'!$G38='Enrollment Form'!$H38,\"Y\",\"N\")))","v":""},{"$f":"IF($B31=\"N\",\"\",IF(AND(COUNTIFS('Enrollment Form'!$H$11:$H$1000,'Enrollment Form'!$H38,'Enrollment Form'!$B$11:$B$1000,'Enrollment Form'!$B38)>1,'Enrollment Form'!$H38<>\"\"),\"N\",\"Y\"))","v":""},{"$f":"IF($B31=\"N\",\"\",IF(LEN('Enrollment Form'!$Y38)=0,\"\",IF(LEN('Enrollment Form'!$Y38)<>5,\"N\",\"Y\")))","v":""},{"$f":"IF($B31=\"N\",\"\",IF(LEN('Enrollment Form'!$AD38=0),\"\",IF(LEN('Enrollment Form'!$AD38)<>5,\"N\",\"Y\")))","v":""},{"$f":"IF($B31=\"N\",\"\",IF(LEN('Enrollment Form'!$BS38=0),\"\",IF(LEN('Enrollment Form'!$BS38)<>5,\"N\",\"Y\")))","v":""},{"$f":"IF($B31=\"N\",\"\",IF(LEN('Enrollment Form'!$AE38)=0,\"\",IF(LEN('Enrollment Form'!$AE38)<>10,\"N\",\"Y\")))","v":""},{"$f":"IF($B31=\"N\",\"\",IF(LEN('Enrollment Form'!$AF38)=0,\"\",IF(LEN('Enrollment Form'!$AF38)<>10,\"N\",\"Y\")))","v":""},{"$f":"IF('Enrollment Form'!$O38<>\"Graded\",\"-\",IF(AND('Enrollment Form'!$O38=\"Graded\",'Enrollment Form'!$AR38<>\"\"),\"Y\",\"N\"))","v":"-"},{"$f":"IF($B31=\"N\",\"\",IF(OR('Enrollment Form'!$B38<>\"Subscriber\",'Enrollment Form'!$C38=\"ROC\"),\"-\",IF(AND('Enrollment Form'!$B38=\"Subscriber\",'Enrollment Form'!$C38=\"Enroll\",'Enrollment Form'!$AJ38<>\"\"),\"Y\",\"N\")))","v":""},{"$f":"IF($B31=\"N\",\"\",IF(OR('Enrollment Form'!$B38<>\"Subscriber\",'Enrollment Form'!$C38=\"ROC\"),\"-\",IF(AND('Enrollment Form'!$B38=\"Subscriber\",'Enrollment Form'!$C38=\"Enroll\",'Enrollment Form'!$AK38<>\"\"),\"Y\",\"N\")))","v":""},{"$f":"IF($B31=\"N\",\"\",IF(OR('Enrollment Form'!$B38<>\"Subscriber\",'Enrollment Form'!$C38=\"ROC\"),\"-\",IF(AND('Enrollment Form'!$B38=\"Subscriber\",'Enrollment Form'!$C38=\"Enroll\",'Enrollment Form'!$AL38<>\"\"),\"Y\",\"N\")))","v":""},{"$f":"IF($B31=\"N\",\"\",IF(OR('Enrollment Form'!$B38<>\"Subscriber\",'Enrollment Form'!$C38=\"ROC\"),\"-\",IF(AND('Enrollment Form'!$B38=\"Subscriber\",'Enrollment Form'!$C38=\"Enroll\",'Enrollment Form'!$AP38<>\"\"),\"Y\",\"N\")))","v":""},{"$f":"IF($B31=\"N\",\"\",IF(OR('Enrollment Form'!$B38<>\"Subscriber\",'Enrollment Form'!$C38=\"ROC\"),\"-\",IF(AND('Enrollment Form'!$B38=\"Subscriber\",'Enrollment Form'!$C38=\"Enroll\",'Enrollment Form'!$AQ38<>\"\"),\"Y\",\"N\")))","v":""},{"$f":"IF($B31=\"N\",\"\",IF(OR('Enrollment Form'!$B38<>\"Subscriber\",'Enrollment Form'!$C38=\"ROC\"),\"-\",IF(AND('Enrollment Form'!$B38=\"Subscriber\",'Enrollment Form'!$C38=\"Enroll\",'Enrollment Form'!$AS38<>\"\"),\"Y\",\"N\")))","v":""},{"$f":"IF($B31=\"N\",\"\",IF($Q31=\"-\",\"-\",IF(AND($Q31=\"Y\",'Enrollment Form'!$AS38=\"No\"),\"-\",IF(AND($Q31=\"Y\",'Enrollment Form'!$AS38=\"Yes\",'Enrollment Form'!$AT38<>\"\"),\"Y\",\"N\"))))","v":""},{"$f":"IF($B31=\"N\",\"\",IF(OR('Enrollment Form'!$B38<>\"Subscriber\",'Enrollment Form'!$C38=\"ROC\"),\"-\",IF(AND('Enrollment Form'!$B38=\"Subscriber\",'Enrollment Form'!$C38=\"Enroll\",'Enrollment Form'!$CV38<>\"\"),\"Y\",\"N\")))","v":""},{"$f":"IF($B31=\"N\",\"\",IF($S31=\"-\",\"-\",IF(AND($S31=\"Y\",'Enrollment Form'!$CV38=\"No\"),\"-\",IF(AND($S31=\"Y\",'Enrollment Form'!$CV38=\"Yes\",'Enrollment Form'!$CW38<>\"\"),\"Y\",\"N\"))))","v":""},{"$f":"IF(OR('Enrollment Form'!$AY38=\"Yes\",'Enrollment Form'!$AY38=\"\"),\"-\",IF(OR(AND('Enrollment Form'!$AY38=\"No\",ISERROR(FIND(\"HMO\",VLOOKUP('Enrollment Form'!G38,'Enrollment Form'!H$11:J$1000,3,FALSE),1))=FALSE,COUNTA('Enrollment Form'!$AZ38:$BC38)=4),AND('Enrollment Form'!$AY38=\"No\",ISERROR(FIND(\"HMO\",VLOOKUP('Enrollment Form'!G38,'Enrollment Form'!H$11:J$1000,3,FALSE),1))=FALSE,COUNTA('Enrollment Form'!$BT38:$BW38)=4)),\"Y\",\"N\"))","v":"-"},{"$f":"IF($B31=\"N\",\"\",IF('Enrollment Form'!$B38=\"Subscriber\",\"-\",IF(COUNTA('Enrollment Form'!$BL38,'Enrollment Form'!$BN38)=2,\"Y\",\"N\")))","v":""},{"$f":"IF($B31=\"N\",\"\",IF(OR('Enrollment Form'!$AX38=\"\",'Enrollment Form'!$AX38=\"No\"),\"-\",IF(AND('Enrollment Form'!$AX38=\"Yes\",COUNTA('Enrollment Form'!$CR38)=1),\"Y\",\"N\")))","v":""},{"$f":"IF(OR('Enrollment Form'!$CR38=\"\",'Enrollment Form'!$CR38=\"No\"),\"-\",IF(COUNTA('Enrollment Form'!$CT38:$CU38)=2,\"Y\",\"N\"))","v":"-"},{"$f":"IF($B31=\"N\",\"\",IF(COUNTIF('Enrollment Form'!$DG38:$DP38,\"Other\")=COUNTA('Enrollment Form'!$DK38,'Enrollment Form'!$DH38,'Enrollment Form'!$DN38,'Enrollment Form'!$DQ38),\"Y\",\"N\"))","v":""},{"$f":"IF($B31=\"N\",\"\",IF(OR('Enrollment Form'!B38<>\"Subscriber\",'Enrollment Form'!C38=\"ROC\",COUNTIF('Enrollment Form'!AV38:AW38,\"Yes\")>=1),\"-\",IF(AND('Enrollment Form'!C38=\"Enroll\",COUNTIF('Enrollment Form'!AV38:AW38,\"No\")=2,'Enrollment Form'!AX38=\"\"),\"N\",\"Y\")))","v":""},{"$f":"IF(OR(B31=\"N\",'Enrollment Form'!B38<>\"Subscriber\",'Enrollment Form'!C38=\"ROC\",'Enrollment Form'!O38<>\"Multiple of Salary\"),\"-\",IF(COUNTA('Enrollment Form'!T38:U38)<2,\"N\",\"Y\"))","v":"-"},{"$f":"IF(B31=\"N\",\"\",IF(OR('Enrollment Form'!C38=\"ROC\",'Enrollment Form'!B38<>\"Subscriber\",'Enrollment Form'!O38=\"Waive\",'Enrollment Form'!O38=\"\"),\"-\",IF('Enrollment Form'!P38=\"\",\"N\",\"Y\")))","v":""},{"$f":"IF($B31=\"N\",\"\",IF(AND('Enrollment Form'!$C38=\"ROC\",'Enrollment Form'!$DR38<>\"\"),\"Y\",IF(AND('Enrollment Form'!$C38=\"ROC\",'Enrollment Form'!$DR38=\"\"),\"N\",IF(AND('Enrollment Form'!$C38=\"Enroll\",'Enrollment Form'!$B38=\"Subscriber\",'Enrollment Form'!$CX38=\"No\",'Enrollment Form'!$DR38=\"\"),\"N\",IF(AND('Enrollment Form'!$C38=\"Enroll\",'Enrollment Form'!$B38=\"Subscriber\",'Enrollment Form'!$CX38=\"Yes\"),\"-\",\"Y\")))))","v":""},{"$f":"IF($B31=\"N\",\"\",IF(AND('Enrollment Form'!$C38=\"ROC\",'Enrollment Form'!$DS38<>\"\"),\"Y\",IF(AND('Enrollment Form'!$C38=\"ROC\",'Enrollment Form'!$DS38=\"\"),\"N\",IF(AND('Enrollment Form'!$C38=\"Enroll\",'Enrollment Form'!$B38=\"Subscriber\",'Enrollment Form'!$CX38=\"No\",'Enrollment Form'!$DS38=\"\"),\"N\",IF(AND('Enrollment Form'!$C38=\"Enroll\",'Enrollment Form'!$B38=\"Subscriber\",'Enrollment Form'!$CX38=\"Yes\"),\"-\",\"Y\")))))","v":""},{"$f":"IF('Enrollment Form'!AH38=\"\",\"\",IF(ISERROR(SEARCH(\".\",'Enrollment Form'!AH38,SEARCH(\"@\",'Enrollment Form'!AH38))),\"N\",\"Y\"))","v":""},{"$f":"IF(OR($B31=\"N\",'Enrollment Form'!$G38=\"\"),\"\",IF('Enrollment Form'!$B38<>\"Subscriber\",\"-\",IF(COUNTIF('Enrollment Form'!$AV38:$AW38,\"Yes\")=2,\"N\",\"Y\")))","v":""},{"$f":"IF(OR('Enrollment Form'!$CJ38=\"\",'Enrollment Form'!$CJ38=\"No\"),\"-\",IF(AND('Enrollment Form'!$CJ38=\"Yes\",'Enrollment Form'!$CK38=\"\"),\"N\",\"Y\"))","v":"-"},{"$f":"IF(OR('Enrollment Form'!$CL38=\"\",'Enrollment Form'!$CL38=\"No\"),\"-\",IF(AND('Enrollment Form'!$CL38=\"Yes\",'Enrollment Form'!$CM38=\"\"),\"N\",\"Y\"))","v":"-"},{"$f":"IF(OR('Enrollment Form'!$CN38=\"\",'Enrollment Form'!$CN38=\"No\"),\"-\",IF(AND('Enrollment Form'!$CN38=\"Yes\",'Enrollment Form'!$CO38=\"\"),\"N\",\"Y\"))","v":"-"},{"$f":"IF(OR('Enrollment Form'!$CN38=\"\",'Enrollment Form'!$CN38=\"No\"),\"-\",IF(AND('Enrollment Form'!$CN38=\"Yes\",'Enrollment Form'!$CP38=\"\"),\"N\",\"Y\"))","v":"-"},{"$f":"IF('Enrollment Form'!B38<>\"Subscriber\",\"-\",IF(AND('Enrollment Form'!B38=\"Subscriber\",'Enrollment Form'!C38=\"Enroll\",'Enrollment Form'!AA38=\"\"),\"N\",\"Y\"))","v":"-"},{"$f":"IF(OR('Enrollment Form'!B38=\"Subscriber\",'Enrollment Form'!B38=\"\"),\"-\",IF('Enrollment Form'!BP38=\"\",\"N\",\"Y\"))","v":"-"},{"$f":"IF('Enrollment Form'!B38<>\"Subscriber\",\"-\",IF(AND('Enrollment Form'!B38=\"Subscriber\",'Enrollment Form'!G38=\"\"),\"N\",\"Y\"))","v":"-"},{"$f":"IF('Enrollment Form'!A38=\"\",\"\",IF('Enrollment Form'!B38=\"Subscriber\",\"-\",IF(AND('Enrollment Form'!B38<>\"Subscriber\",'Enrollment Form'!G38='Enrollment Form'!H38),\"N\",\"Y\")))","v":""},0,null,null,null,null,null,null,"28","Sub ROC Signature filled?","If Application Type = \"ROC\" then ROC Signature of Employee must be populated","DZ"]
[39,{"$f":"IF('Enrollment Form'!$A39<>\"\",\"Y\",\"N\")","v":"N"},{"$f":"IF(AND('Enrollment Form'!$B39=\"\",'Enrollment Form'!$C39<>\"\"),\"N\",IF($B32=\"N\",\"\",\"Y\"))","v":""},{"$f":"IF(OR($B32=\"N\",'Enrollment Form'!G39=\"\"),\"\",IF('Enrollment Form'!$B39<>\"Subscriber\",\"\",IF('Enrollment Form'!$G39='Enrollment Form'!$H39,\"Y\",\"N\")))","v":""},{"$f":"IF($B32=\"N\",\"\",IF(AND(COUNTIFS('Enrollment Form'!$H$11:$H$1000,'Enrollment Form'!$H39,'Enrollment Form'!$B$11:$B$1000,'Enrollment Form'!$B39)>1,'Enrollment Form'!$H39<>\"\"),\"N\",\"Y\"))","v":""},{"$f":"IF($B32=\"N\",\"\",IF(LEN('Enrollment Form'!$Y39)=0,\"\",IF(LEN('Enrollment Form'!$Y39)<>5,\"N\",\"Y\")))","v":""},{"$f":"IF($B32=\"N\",\"\",IF(LEN('Enrollment Form'!$AD39=0),\"\",IF(LEN('Enrollment Form'!$AD39)<>5,\"N\",\"Y\")))","v":""},{"$f":"IF($B32=\"N\",\"\",IF(LEN('Enrollment Form'!$BS39=0),\"\",IF(LEN('Enrollment Form'!$BS39)<>5,\"N\",\"Y\")))","v":""},{"$f":"IF($B32=\"N\",\"\",IF(LEN('Enrollment Form'!$AE39)=0,\"\",IF(LEN('Enrollment Form'!$AE39)<>10,\"N\",\"Y\")))","v":""},{"$f":"IF($B32=\"N\",\"\",IF(LEN('Enrollment Form'!$AF39)=0,\"\",IF(LEN('Enrollment Form'!$AF39)<>10,\"N\",\"Y\")))","v":""},{"$f":"IF('Enrollment Form'!$O39<>\"Graded\",\"-\",IF(AND('Enrollment Form'!$O39=\"Graded\",'Enrollment Form'!$AR39<>\"\"),\"Y\",\"N\"))","v":"-"},{"$f":"IF($B32=\"N\",\"\",IF(OR('Enrollment Form'!$B39<>\"Subscriber\",'Enrollment Form'!$C39=\"ROC\"),\"-\",IF(AND('Enrollment Form'!$B39=\"Subscriber\",'Enrollment Form'!$C39=\"Enroll\",'Enrollment Form'!$AJ39<>\"\"),\"Y\",\"N\")))","v":""},{"$f":"IF($B32=\"N\",\"\",IF(OR('Enrollment Form'!$B39<>\"Subscriber\",'Enrollment Form'!$C39=\"ROC\"),\"-\",IF(AND('Enrollment Form'!$B39=\"Subscriber\",'Enrollment Form'!$C39=\"Enroll\",'Enrollment Form'!$AK39<>\"\"),\"Y\",\"N\")))","v":""},{"$f":"IF($B32=\"N\",\"\",IF(OR('Enrollment Form'!$B39<>\"Subscriber\",'Enrollment Form'!$C39=\"ROC\"),\"-\",IF(AND('Enrollment Form'!$B39=\"Subscriber\",'Enrollment Form'!$C39=\"Enroll\",'Enrollment Form'!$AL39<>\"\"),\"Y\",\"N\")))","v":""},{"$f":"IF($B32=\"N\",\"\",IF(OR('Enrollment Form'!$B39<>\"Subscriber\",'Enrollment Form'!$C39=\"ROC\"),\"-\",IF(AND('Enrollment Form'!$B39=\"Subscriber\",'Enrollment Form'!$C39=\"Enroll\",'Enrollment Form'!$AP39<>\"\"),\"Y\",\"N\")))","v":""},{"$f":"IF($B32=\"N\",\"\",IF(OR('Enrollment Form'!$B39<>\"Subscriber\",'Enrollment Form'!$C39=\"ROC\"),\"-\",IF(AND('Enrollment Form'!$B39=\"Subscriber\",'Enrollment Form'!$C39=\"Enroll\",'Enrollment Form'!$AQ39<>\"\"),\"Y\",\"N\")))","v":""},{"$f":"IF($B32=\"N\",\"\",IF(OR('Enrollment Form'!$B39<>\"Subscriber\",'Enrollment Form'!$C39=\"ROC\"),\"-\",IF(AND('Enrollment Form'!$B39=\"Subscriber\",'Enrollment Form'!$C39=\"Enroll\",'Enrollment Form'!$AS39<>\"\"),\"Y\",\"N\")))","v":""},{"$f":"IF($B32=\"N\",\"\",IF($Q32=\"-\",\"-\",IF(AND($Q32=\"Y\",'Enrollment Form'!$AS39=\"No\"),\"-\",IF(AND($Q32=\"Y\",'Enrollment Form'!$AS39=\"Yes\",'Enrollment Form'!$AT39<>\"\"),\"Y\",\"N\"))))","v":""},{"$f":"IF($B32=\"N\",\"\",IF(OR('Enrollment Form'!$B39<>\"Subscriber\",'Enrollment Form'!$C39=\"ROC\"),\"-\",IF(AND('Enrollment Form'!$B39=\"Subscriber\",'Enrollment Form'!$C39=\"Enroll\",'Enrollment Form'!$CV39<>\"\"),\"Y\",\"N\")))","v":""},{"$f":"IF($B32=\"N\",\"\",IF($S32=\"-\",\"-\",IF(AND($S32=\"Y\",'Enrollment Form'!$CV39=\"No\"),\"-\",IF(AND($S32=\"Y\",'Enrollment Form'!$CV39=\"Yes\",'Enrollment Form'!$CW39<>\"\"),\"Y\",\"N\"))))","v":""},{"$f":"IF(OR('Enrollment Form'!$AY39=\"Yes\",'Enrollment Form'!$AY39=\"\"),\"-\",IF(OR(AND('Enrollment Form'!$AY39=\"No\",ISERROR(FIND(\"HMO\",VLOOKUP('Enrollment Form'!G39,'Enrollment Form'!H$11:J$1000,3,FALSE),1))=FALSE,COUNTA('Enrollment Form'!$AZ39:$BC39)=4),AND('Enrollment Form'!$AY39=\"No\",ISERROR(FIND(\"HMO\",VLOOKUP('Enrollment Form'!G39,'Enrollment Form'!H$11:J$1000,3,FALSE),1))=FALSE,COUNTA('Enrollment Form'!$BT39:$BW39)=4)),\"Y\",\"N\"))","v":"-"},{"$f":"IF($B32=\"N\",\"\",IF('Enrollment Form'!$B39=\"Subscriber\",\"-\",IF(COUNTA('Enrollment Form'!$BL39,'Enrollment Form'!$BN39)=2,\"Y\",\"N\")))","v":""},{"$f":"IF($B32=\"N\",\"\",IF(OR('Enrollment Form'!$AX39=\"\",'Enrollment Form'!$AX39=\"No\"),\"-\",IF(AND('Enrollment Form'!$AX39=\"Yes\",COUNTA('Enrollment Form'!$CR39)=1),\"Y\",\"N\")))","v":""},{"$f":"IF(OR('Enrollment Form'!$CR39=\"\",'Enrollment Form'!$CR39=\"No\"),\"-\",IF(COUNTA('Enrollment Form'!$CT39:$CU39)=2,\"Y\",\"N\"))","v":"-"},{"$f":"IF($B32=\"N\",\"\",IF(COUNTIF('Enrollment Form'!$DG39:$DP39,\"Other\")=COUNTA('Enrollment Form'!$DK39,'Enrollment Form'!$DH39,'Enrollment Form'!$DN39,'Enrollment Form'!$DQ39),\"Y\",\"N\"))","v":""},{"$f":"IF($B32=\"N\",\"\",IF(OR('Enrollment Form'!B39<>\"Subscriber\",'Enrollment Form'!C39=\"ROC\",COUNTIF('Enrollment Form'!AV39:AW39,\"Yes\")>=1),\"-\",IF(AND('Enrollment Form'!C39=\"Enroll\",COUNTIF('Enrollment Form'!AV39:AW39,\"No\")=2,'Enrollment Form'!AX39=\"\"),\"N\",\"Y\")))","v":""},{"$f":"IF(OR(B32=\"N\",'Enrollment Form'!B39<>\"Subscriber\",'Enrollment Form'!C39=\"ROC\",'Enrollment Form'!O39<>\"Multiple of Salary\"),\"-\",IF(COUNTA('Enrollment Form'!T39:U39)<2,\"N\",\"Y\"))","v":"-"},{"$f":"IF(B32=\"N\",\"\",IF(OR('Enrollment Form'!C39=\"ROC\",'Enrollment Form'!B39<>\"Subscriber\",'Enrollment Form'!O39=\"Waive\",'Enrollment Form'!O39=\"\"),\"-\",IF('Enrollment Form'!P39=\"\",\"N\",\"Y\")))","v":""},{"$f":"IF($B32=\"N\",\"\",IF(AND('Enrollment Form'!$C39=\"ROC\",'Enrollment Form'!$DR39<>\"\"),\"Y\",IF(AND('Enrollment Form'!$C39=\"ROC\",'Enrollment Form'!$DR39=\"\"),\"N\",IF(AND('Enrollment Form'!$C39=\"Enroll\",'Enrollment Form'!$B39=\"Subscriber\",'Enrollment Form'!$CX39=\"No\",'Enrollment Form'!$DR39=\"\"),\"N\",IF(AND('Enrollment Form'!$C39=\"Enroll\",'Enrollment Form'!$B39=\"Subscriber\",'Enrollment Form'!$CX39=\"Yes\"),\"-\",\"Y\")))))","v":""},{"$f":"IF($B32=\"N\",\"\",IF(AND('Enrollment Form'!$C39=\"ROC\",'Enrollment Form'!$DS39<>\"\"),\"Y\",IF(AND('Enrollment Form'!$C39=\"ROC\",'Enrollment Form'!$DS39=\"\"),\"N\",IF(AND('Enrollment Form'!$C39=\"Enroll\",'Enrollment Form'!$B39=\"Subscriber\",'Enrollment Form'!$CX39=\"No\",'Enrollment Form'!$DS39=\"\"),\"N\",IF(AND('Enrollment Form'!$C39=\"Enroll\",'Enrollment Form'!$B39=\"Subscriber\",'Enrollment Form'!$CX39=\"Yes\"),\"-\",\"Y\")))))","v":""},{"$f":"IF('Enrollment Form'!AH39=\"\",\"\",IF(ISERROR(SEARCH(\".\",'Enrollment Form'!AH39,SEARCH(\"@\",'Enrollment Form'!AH39))),\"N\",\"Y\"))","v":""},{"$f":"IF(OR($B32=\"N\",'Enrollment Form'!$G39=\"\"),\"\",IF('Enrollment Form'!$B39<>\"Subscriber\",\"-\",IF(COUNTIF('Enrollment Form'!$AV39:$AW39,\"Yes\")=2,\"N\",\"Y\")))","v":""},{"$f":"IF(OR('Enrollment Form'!$CJ39=\"\",'Enrollment Form'!$CJ39=\"No\"),\"-\",IF(AND('Enrollment Form'!$CJ39=\"Yes\",'Enrollment Form'!$CK39=\"\"),\"N\",\"Y\"))","v":"-"},{"$f":"IF(OR('Enrollment Form'!$CL39=\"\",'Enrollment Form'!$CL39=\"No\"),\"-\",IF(AND('Enrollment Form'!$CL39=\"Yes\",'Enrollment Form'!$CM39=\"\"),\"N\",\"Y\"))","v":"-"},{"$f":"IF(OR('Enrollment Form'!$CN39=\"\",'Enrollment Form'!$CN39=\"No\"),\"-\",IF(AND('Enrollment Form'!$CN39=\"Yes\",'Enrollment Form'!$CO39=\"\"),\"N\",\"Y\"))","v":"-"},{"$f":"IF(OR('Enrollment Form'!$CN39=\"\",'Enrollment Form'!$CN39=\"No\"),\"-\",IF(AND('Enrollment Form'!$CN39=\"Yes\",'Enrollment Form'!$CP39=\"\"),\"N\",\"Y\"))","v":"-"},{"$f":"IF('Enrollment Form'!B39<>\"Subscriber\",\"-\",IF(AND('Enrollment Form'!B39=\"Subscriber\",'Enrollment Form'!C39=\"Enroll\",'Enrollment Form'!AA39=\"\"),\"N\",\"Y\"))","v":"-"},{"$f":"IF(OR('Enrollment Form'!B39=\"Subscriber\",'Enrollment Form'!B39=\"\"),\"-\",IF('Enrollment Form'!BP39=\"\",\"N\",\"Y\"))","v":"-"},{"$f":"IF('Enrollment Form'!B39<>\"Subscriber\",\"-\",IF(AND('Enrollment Form'!B39=\"Subscriber\",'Enrollment Form'!G39=\"\"),\"N\",\"Y\"))","v":"-"},{"$f":"IF('Enrollment Form'!A39=\"\",\"\",IF('Enrollment Form'!B39=\"Subscriber\",\"-\",IF(AND('Enrollment Form'!B39<>\"Subscriber\",'Enrollment Form'!G39='Enrollment Form'!H39),\"N\",\"Y\")))","v":""},0,null,null,null,null,null,null,"29","Sub ROC Signature Date filled?","If Application Type = \"ROC\" then Signature Date must be populated","EA"]
[40,{"$f":"IF('Enrollment Form'!$A40<>\"\",\"Y\",\"N\")","v":"N"},{"$f":"IF(AND('Enrollment Form'!$B40=\"\",'Enrollment Form'!$C40<>\"\"),\"N\",IF($B33=\"N\",\"\",\"Y\"))","v":""},{"$f":"IF(OR($B33=\"N\",'Enrollment Form'!G40=\"\"),\"\",IF('Enrollment Form'!$B40<>\"Subscriber\",\"\",IF('Enrollment Form'!$G40='Enrollment Form'!$H40,\"Y\",\"N\")))","v":""},{"$f":"IF($B33=\"N\",\"\",IF(AND(COUNTIFS('Enrollment Form'!$H$11:$H$1000,'Enrollment Form'!$H40,'Enrollment Form'!$B$11:$B$1000,'Enrollment Form'!$B40)>1,'Enrollment Form'!$H40<>\"\"),\"N\",\"Y\"))","v":""},{"$f":"IF($B33=\"N\",\"\",IF(LEN('Enrollment Form'!$Y40)=0,\"\",IF(LEN('Enrollment Form'!$Y40)<>5,\"N\",\"Y\")))","v":""},{"$f":"IF($B33=\"N\",\"\",IF(LEN('Enrollment Form'!$AD40=0),\"\",IF(LEN('Enrollment Form'!$AD40)<>5,\"N\",\"Y\")))","v":""},{"$f":"IF($B33=\"N\",\"\",IF(LEN('Enrollment Form'!$BS40=0),\"\",IF(LEN('Enrollment Form'!$BS40)<>5,\"N\",\"Y\")))","v":""},{"$f":"IF($B33=\"N\",\"\",IF(LEN('Enrollment Form'!$AE40)=0,\"\",IF(LEN('Enrollment Form'!$AE40)<>10,\"N\",\"Y\")))","v":""},{"$f":"IF($B33=\"N\",\"\",IF(LEN('Enrollment Form'!$AF40)=0,\"\",IF(LEN('Enrollment Form'!$AF40)<>10,\"N\",\"Y\")))","v":""},{"$f":"IF('Enrollment Form'!$O40<>\"Graded\",\"-\",IF(AND('Enrollment Form'!$O40=\"Graded\",'Enrollment Form'!$AR40<>\"\"),\"Y\",\"N\"))","v":"-"},{"$f":"IF($B33=\"N\",\"\",IF(OR('Enrollment Form'!$B40<>\"Subscriber\",'Enrollment Form'!$C40=\"ROC\"),\"-\",IF(AND('Enrollment Form'!$B40=\"Subscriber\",'Enrollment Form'!$C40=\"Enroll\",'Enrollment Form'!$AJ40<>\"\"),\"Y\",\"N\")))","v":""},{"$f":"IF($B33=\"N\",\"\",IF(OR('Enrollment Form'!$B40<>\"Subscriber\",'Enrollment Form'!$C40=\"ROC\"),\"-\",IF(AND('Enrollment Form'!$B40=\"Subscriber\",'Enrollment Form'!$C40=\"Enroll\",'Enrollment Form'!$AK40<>\"\"),\"Y\",\"N\")))","v":""},{"$f":"IF($B33=\"N\",\"\",IF(OR('Enrollment Form'!$B40<>\"Subscriber\",'Enrollment Form'!$C40=\"ROC\"),\"-\",IF(AND('Enrollment Form'!$B40=\"Subscriber\",'Enrollment Form'!$C40=\"Enroll\",'Enrollment Form'!$AL40<>\"\"),\"Y\",\"N\")))","v":""},{"$f":"IF($B33=\"N\",\"\",IF(OR('Enrollment Form'!$B40<>\"Subscriber\",'Enrollment Form'!$C40=\"ROC\"),\"-\",IF(AND('Enrollment Form'!$B40=\"Subscriber\",'Enrollment Form'!$C40=\"Enroll\",'Enrollment Form'!$AP40<>\"\"),\"Y\",\"N\")))","v":""},{"$f":"IF($B33=\"N\",\"\",IF(OR('Enrollment Form'!$B40<>\"Subscriber\",'Enrollment Form'!$C40=\"ROC\"),\"-\",IF(AND('Enrollment Form'!$B40=\"Subscriber\",'Enrollment Form'!$C40=\"Enroll\",'Enrollment Form'!$AQ40<>\"\"),\"Y\",\"N\")))","v":""},{"$f":"IF($B33=\"N\",\"\",IF(OR('Enrollment Form'!$B40<>\"Subscriber\",'Enrollment Form'!$C40=\"ROC\"),\"-\",IF(AND('Enrollment Form'!$B40=\"Subscriber\",'Enrollment Form'!$C40=\"Enroll\",'Enrollment Form'!$AS40<>\"\"),\"Y\",\"N\")))","v":""},{"$f":"IF($B33=\"N\",\"\",IF($Q33=\"-\",\"-\",IF(AND($Q33=\"Y\",'Enrollment Form'!$AS40=\"No\"),\"-\",IF(AND($Q33=\"Y\",'Enrollment Form'!$AS40=\"Yes\",'Enrollment Form'!$AT40<>\"\"),\"Y\",\"N\"))))","v":""},{"$f":"IF($B33=\"N\",\"\",IF(OR('Enrollment Form'!$B40<>\"Subscriber\",'Enrollment Form'!$C40=\"ROC\"),\"-\",IF(AND('Enrollment Form'!$B40=\"Subscriber\",'Enrollment Form'!$C40=\"Enroll\",'Enrollment Form'!$CV40<>\"\"),\"Y\",\"N\")))","v":""},{"$f":"IF($B33=\"N\",\"\",IF($S33=\"-\",\"-\",IF(AND($S33=\"Y\",'Enrollment Form'!$CV40=\"No\"),\"-\",IF(AND($S33=\"Y\",'Enrollment Form'!$CV40=\"Yes\",'Enrollment Form'!$CW40<>\"\"),\"Y\",\"N\"))))","v":""},{"$f":"IF(OR('Enrollment Form'!$AY40=\"Yes\",'Enrollment Form'!$AY40=\"\"),\"-\",IF(OR(AND('Enrollment Form'!$AY40=\"No\",ISERROR(FIND(\"HMO\",VLOOKUP('Enrollment Form'!G40,'Enrollment Form'!H$11:J$1000,3,FALSE),1))=FALSE,COUNTA('Enrollment Form'!$AZ40:$BC40)=4),AND('Enrollment Form'!$AY40=\"No\",ISERROR(FIND(\"HMO\",VLOOKUP('Enrollment Form'!G40,'Enrollment Form'!H$11:J$1000,3,FALSE),1))=FALSE,COUNTA('Enrollment Form'!$BT40:$BW40)=4)),\"Y\",\"N\"))","v":"-"},{"$f":"IF($B33=\"N\",\"\",IF('Enrollment Form'!$B40=\"Subscriber\",\"-\",IF(COUNTA('Enrollment Form'!$BL40,'Enrollment Form'!$BN40)=2,\"Y\",\"N\")))","v":""},{"$f":"IF($B33=\"N\",\"\",IF(OR('Enrollment Form'!$AX40=\"\",'Enrollment Form'!$AX40=\"No\"),\"-\",IF(AND('Enrollment Form'!$AX40=\"Yes\",COUNTA('Enrollment Form'!$CR40)=1),\"Y\",\"N\")))","v":""},{"$f":"IF(OR('Enrollment Form'!$CR40=\"\",'Enrollment Form'!$CR40=\"No\"),\"-\",IF(COUNTA('Enrollment Form'!$CT40:$CU40)=2,\"Y\",\"N\"))","v":"-"},{"$f":"IF($B33=\"N\",\"\",IF(COUNTIF('Enrollment Form'!$DG40:$DP40,\"Other\")=COUNTA('Enrollment Form'!$DK40,'Enrollment Form'!$DH40,'Enrollment Form'!$DN40,'Enrollment Form'!$DQ40),\"Y\",\"N\"))","v":""},{"$f":"IF($B33=\"N\",\"\",IF(OR('Enrollment Form'!B40<>\"Subscriber\",'Enrollment Form'!C40=\"ROC\",COUNTIF('Enrollment Form'!AV40:AW40,\"Yes\")>=1),\"-\",IF(AND('Enrollment Form'!C40=\"Enroll\",COUNTIF('Enrollment Form'!AV40:AW40,\"No\")=2,'Enrollment Form'!AX40=\"\"),\"N\",\"Y\")))","v":""},{"$f":"IF(OR(B33=\"N\",'Enrollment Form'!B40<>\"Subscriber\",'Enrollment Form'!C40=\"ROC\",'Enrollment Form'!O40<>\"Multiple of Salary\"),\"-\",IF(COUNTA('Enrollment Form'!T40:U40)<2,\"N\",\"Y\"))","v":"-"},{"$f":"IF(B33=\"N\",\"\",IF(OR('Enrollment Form'!C40=\"ROC\",'Enrollment Form'!B40<>\"Subscriber\",'Enrollment Form'!O40=\"Waive\",'Enrollment Form'!O40=\"\"),\"-\",IF('Enrollment Form'!P40=\"\",\"N\",\"Y\")))","v":""},{"$f":"IF($B33=\"N\",\"\",IF(AND('Enrollment Form'!$C40=\"ROC\",'Enrollment Form'!$DR40<>\"\"),\"Y\",IF(AND('Enrollment Form'!$C40=\"ROC\",'Enrollment Form'!$DR40=\"\"),\"N\",IF(AND('Enrollment Form'!$C40=\"Enroll\",'Enrollment Form'!$B40=\"Subscriber\",'Enrollment Form'!$CX40=\"No\",'Enrollment Form'!$DR40=\"\"),\"N\",IF(AND('Enrollment Form'!$C40=\"Enroll\",'Enrollment Form'!$B40=\"Subscriber\",'Enrollment Form'!$CX40=\"Yes\"),\"-\",\"Y\")))))","v":""},{"$f":"IF($B33=\"N\",\"\",IF(AND('Enrollment Form'!$C40=\"ROC\",'Enrollment Form'!$DS40<>\"\"),\"Y\",IF(AND('Enrollment Form'!$C40=\"ROC\",'Enrollment Form'!$DS40=\"\"),\"N\",IF(AND('Enrollment Form'!$C40=\"Enroll\",'Enrollment Form'!$B40=\"Subscriber\",'Enrollment Form'!$CX40=\"No\",'Enrollment Form'!$DS40=\"\"),\"N\",IF(AND('Enrollment Form'!$C40=\"Enroll\",'Enrollment Form'!$B40=\"Subscriber\",'Enrollment Form'!$CX40=\"Yes\"),\"-\",\"Y\")))))","v":""},{"$f":"IF('Enrollment Form'!AH40=\"\",\"\",IF(ISERROR(SEARCH(\".\",'Enrollment Form'!AH40,SEARCH(\"@\",'Enrollment Form'!AH40))),\"N\",\"Y\"))","v":""},{"$f":"IF(OR($B33=\"N\",'Enrollment Form'!$G40=\"\"),\"\",IF('Enrollment Form'!$B40<>\"Subscriber\",\"-\",IF(COUNTIF('Enrollment Form'!$AV40:$AW40,\"Yes\")=2,\"N\",\"Y\")))","v":""},{"$f":"IF(OR('Enrollment Form'!$CJ40=\"\",'Enrollment Form'!$CJ40=\"No\"),\"-\",IF(AND('Enrollment Form'!$CJ40=\"Yes\",'Enrollment Form'!$CK40=\"\"),\"N\",\"Y\"))","v":"-"},{"$f":"IF(OR('Enrollment Form'!$CL40=\"\",'Enrollment Form'!$CL40=\"No\"),\"-\",IF(AND('Enrollment Form'!$CL40=\"Yes\",'Enrollment Form'!$CM40=\"\"),\"N\",\"Y\"))","v":"-"},{"$f":"IF(OR('Enrollment Form'!$CN40=\"\",'Enrollment Form'!$CN40=\"No\"),\"-\",IF(AND('Enrollment Form'!$CN40=\"Yes\",'Enrollment Form'!$CO40=\"\"),\"N\",\"Y\"))","v":"-"},{"$f":"IF(OR('Enrollment Form'!$CN40=\"\",'Enrollment Form'!$CN40=\"No\"),\"-\",IF(AND('Enrollment Form'!$CN40=\"Yes\",'Enrollment Form'!$CP40=\"\"),\"N\",\"Y\"))","v":"-"},{"$f":"IF('Enrollment Form'!B40<>\"Subscriber\",\"-\",IF(AND('Enrollment Form'!B40=\"Subscriber\",'Enrollment Form'!C40=\"Enroll\",'Enrollment Form'!AA40=\"\"),\"N\",\"Y\"))","v":"-"},{"$f":"IF(OR('Enrollment Form'!B40=\"Subscriber\",'Enrollment Form'!B40=\"\"),\"-\",IF('Enrollment Form'!BP40=\"\",\"N\",\"Y\"))","v":"-"},{"$f":"IF('Enrollment Form'!B40<>\"Subscriber\",\"-\",IF(AND('Enrollment Form'!B40=\"Subscriber\",'Enrollment Form'!G40=\"\"),\"N\",\"Y\"))","v":"-"},{"$f":"IF('Enrollment Form'!A40=\"\",\"\",IF('Enrollment Form'!B40=\"Subscriber\",\"-\",IF(AND('Enrollment Form'!B40<>\"Subscriber\",'Enrollment Form'!G40='Enrollment Form'!H40),\"N\",\"Y\")))","v":""},0,null,null,null,null,null,null,"30","Correct email format?","E-mail format must contain an \"@\" and a \".\"","AH"]
[41,{"$f":"IF('Enrollment Form'!$A41<>\"\",\"Y\",\"N\")","v":"N"},{"$f":"IF(AND('Enrollment Form'!$B41=\"\",'Enrollment Form'!$C41<>\"\"),\"N\",IF($B34=\"N\",\"\",\"Y\"))","v":""},{"$f":"IF(OR($B34=\"N\",'Enrollment Form'!G41=\"\"),\"\",IF('Enrollment Form'!$B41<>\"Subscriber\",\"\",IF('Enrollment Form'!$G41='Enrollment Form'!$H41,\"Y\",\"N\")))","v":""},{"$f":"IF($B34=\"N\",\"\",IF(AND(COUNTIFS('Enrollment Form'!$H$11:$H$1000,'Enrollment Form'!$H41,'Enrollment Form'!$B$11:$B$1000,'Enrollment Form'!$B41)>1,'Enrollment Form'!$H41<>\"\"),\"N\",\"Y\"))","v":""},{"$f":"IF($B34=\"N\",\"\",IF(LEN('Enrollment Form'!$Y41)=0,\"\",IF(LEN('Enrollment Form'!$Y41)<>5,\"N\",\"Y\")))","v":""},{"$f":"IF($B34=\"N\",\"\",IF(LEN('Enrollment Form'!$AD41=0),\"\",IF(LEN('Enrollment Form'!$AD41)<>5,\"N\",\"Y\")))","v":""},{"$f":"IF($B34=\"N\",\"\",IF(LEN('Enrollment Form'!$BS41=0),\"\",IF(LEN('Enrollment Form'!$BS41)<>5,\"N\",\"Y\")))","v":""},{"$f":"IF($B34=\"N\",\"\",IF(LEN('Enrollment Form'!$AE41)=0,\"\",IF(LEN('Enrollment Form'!$AE41)<>10,\"N\",\"Y\")))","v":""},{"$f":"IF($B34=\"N\",\"\",IF(LEN('Enrollment Form'!$AF41)=0,\"\",IF(LEN('Enrollment Form'!$AF41)<>10,\"N\",\"Y\")))","v":""},{"$f":"IF('Enrollment Form'!$O41<>\"Graded\",\"-\",IF(AND('Enrollment Form'!$O41=\"Graded\",'Enrollment Form'!$AR41<>\"\"),\"Y\",\"N\"))","v":"-"},{"$f":"IF($B34=\"N\",\"\",IF(OR('Enrollment Form'!$B41<>\"Subscriber\",'Enrollment Form'!$C41=\"ROC\"),\"-\",IF(AND('Enrollment Form'!$B41=\"Subscriber\",'Enrollment Form'!$C41=\"Enroll\",'Enrollment Form'!$AJ41<>\"\"),\"Y\",\"N\")))","v":""},{"$f":"IF($B34=\"N\",\"\",IF(OR('Enrollment Form'!$B41<>\"Subscriber\",'Enrollment Form'!$C41=\"ROC\"),\"-\",IF(AND('Enrollment Form'!$B41=\"Subscriber\",'Enrollment Form'!$C41=\"Enroll\",'Enrollment Form'!$AK41<>\"\"),\"Y\",\"N\")))","v":""},{"$f":"IF($B34=\"N\",\"\",IF(OR('Enrollment Form'!$B41<>\"Subscriber\",'Enrollment Form'!$C41=\"ROC\"),\"-\",IF(AND('Enrollment Form'!$B41=\"Subscriber\",'Enrollment Form'!$C41=\"Enroll\",'Enrollment Form'!$AL41<>\"\"),\"Y\",\"N\")))","v":""},{"$f":"IF($B34=\"N\",\"\",IF(OR('Enrollment Form'!$B41<>\"Subscriber\",'Enrollment Form'!$C41=\"ROC\"),\"-\",IF(AND('Enrollment Form'!$B41=\"Subscriber\",'Enrollment Form'!$C41=\"Enroll\",'Enrollment Form'!$AP41<>\"\"),\"Y\",\"N\")))","v":""},{"$f":"IF($B34=\"N\",\"\",IF(OR('Enrollment Form'!$B41<>\"Subscriber\",'Enrollment Form'!$C41=\"ROC\"),\"-\",IF(AND('Enrollment Form'!$B41=\"Subscriber\",'Enrollment Form'!$C41=\"Enroll\",'Enrollment Form'!$AQ41<>\"\"),\"Y\",\"N\")))","v":""},{"$f":"IF($B34=\"N\",\"\",IF(OR('Enrollment Form'!$B41<>\"Subscriber\",'Enrollment Form'!$C41=\"ROC\"),\"-\",IF(AND('Enrollment Form'!$B41=\"Subscriber\",'Enrollment Form'!$C41=\"Enroll\",'Enrollment Form'!$AS41<>\"\"),\"Y\",\"N\")))","v":""},{"$f":"IF($B34=\"N\",\"\",IF($Q34=\"-\",\"-\",IF(AND($Q34=\"Y\",'Enrollment Form'!$AS41=\"No\"),\"-\",IF(AND($Q34=\"Y\",'Enrollment Form'!$AS41=\"Yes\",'Enrollment Form'!$AT41<>\"\"),\"Y\",\"N\"))))","v":""},{"$f":"IF($B34=\"N\",\"\",IF(OR('Enrollment Form'!$B41<>\"Subscriber\",'Enrollment Form'!$C41=\"ROC\"),\"-\",IF(AND('Enrollment Form'!$B41=\"Subscriber\",'Enrollment Form'!$C41=\"Enroll\",'Enrollment Form'!$CV41<>\"\"),\"Y\",\"N\")))","v":""},{"$f":"IF($B34=\"N\",\"\",IF($S34=\"-\",\"-\",IF(AND($S34=\"Y\",'Enrollment Form'!$CV41=\"No\"),\"-\",IF(AND($S34=\"Y\",'Enrollment Form'!$CV41=\"Yes\",'Enrollment Form'!$CW41<>\"\"),\"Y\",\"N\"))))","v":""},{"$f":"IF(OR('Enrollment Form'!$AY41=\"Yes\",'Enrollment Form'!$AY41=\"\"),\"-\",IF(OR(AND('Enrollment Form'!$AY41=\"No\",ISERROR(FIND(\"HMO\",VLOOKUP('Enrollment Form'!G41,'Enrollment Form'!H$11:J$1000,3,FALSE),1))=FALSE,COUNTA('Enrollment Form'!$AZ41:$BC41)=4),AND('Enrollment Form'!$AY41=\"No\",ISERROR(FIND(\"HMO\",VLOOKUP('Enrollment Form'!G41,'Enrollment Form'!H$11:J$1000,3,FALSE),1))=FALSE,COUNTA('Enrollment Form'!$BT41:$BW41)=4)),\"Y\",\"N\"))","v":"-"},{"$f":"IF($B34=\"N\",\"\",IF('Enrollment Form'!$B41=\"Subscriber\",\"-\",IF(COUNTA('Enrollment Form'!$BL41,'Enrollment Form'!$BN41)=2,\"Y\",\"N\")))","v":""},{"$f":"IF($B34=\"N\",\"\",IF(OR('Enrollment Form'!$AX41=\"\",'Enrollment Form'!$AX41=\"No\"),\"-\",IF(AND('Enrollment Form'!$AX41=\"Yes\",COUNTA('Enrollment Form'!$CR41)=1),\"Y\",\"N\")))","v":""},{"$f":"IF(OR('Enrollment Form'!$CR41=\"\",'Enrollment Form'!$CR41=\"No\"),\"-\",IF(COUNTA('Enrollment Form'!$CT41:$CU41)=2,\"Y\",\"N\"))","v":"-"},{"$f":"IF($B34=\"N\",\"\",IF(COUNTIF('Enrollment Form'!$DG41:$DP41,\"Other\")=COUNTA('Enrollment Form'!$DK41,'Enrollment Form'!$DH41,'Enrollment Form'!$DN41,'Enrollment Form'!$DQ41),\"Y\",\"N\"))","v":""},{"$f":"IF($B34=\"N\",\"\",IF(OR('Enrollment Form'!B41<>\"Subscriber\",'Enrollment Form'!C41=\"ROC\",COUNTIF('Enrollment Form'!AV41:AW41,\"Yes\")>=1),\"-\",IF(AND('Enrollment Form'!C41=\"Enroll\",COUNTIF('Enrollment Form'!AV41:AW41,\"No\")=2,'Enrollment Form'!AX41=\"\"),\"N\",\"Y\")))","v":""},{"$f":"IF(OR(B34=\"N\",'Enrollment Form'!B41<>\"Subscriber\",'Enrollment Form'!C41=\"ROC\",'Enrollment Form'!O41<>\"Multiple of Salary\"),\"-\",IF(COUNTA('Enrollment Form'!T41:U41)<2,\"N\",\"Y\"))","v":"-"},{"$f":"IF(B34=\"N\",\"\",IF(OR('Enrollment Form'!C41=\"ROC\",'Enrollment Form'!B41<>\"Subscriber\",'Enrollment Form'!O41=\"Waive\",'Enrollment Form'!O41=\"\"),\"-\",IF('Enrollment Form'!P41=\"\",\"N\",\"Y\")))","v":""},{"$f":"IF($B34=\"N\",\"\",IF(AND('Enrollment Form'!$C41=\"ROC\",'Enrollment Form'!$DR41<>\"\"),\"Y\",IF(AND('Enrollment Form'!$C41=\"ROC\",'Enrollment Form'!$DR41=\"\"),\"N\",IF(AND('Enrollment Form'!$C41=\"Enroll\",'Enrollment Form'!$B41=\"Subscriber\",'Enrollment Form'!$CX41=\"No\",'Enrollment Form'!$DR41=\"\"),\"N\",IF(AND('Enrollment Form'!$C41=\"Enroll\",'Enrollment Form'!$B41=\"Subscriber\",'Enrollment Form'!$CX41=\"Yes\"),\"-\",\"Y\")))))","v":""},{"$f":"IF($B34=\"N\",\"\",IF(AND('Enrollment Form'!$C41=\"ROC\",'Enrollment Form'!$DS41<>\"\"),\"Y\",IF(AND('Enrollment Form'!$C41=\"ROC\",'Enrollment Form'!$DS41=\"\"),\"N\",IF(AND('Enrollment Form'!$C41=\"Enroll\",'Enrollment Form'!$B41=\"Subscriber\",'Enrollment Form'!$CX41=\"No\",'Enrollment Form'!$DS41=\"\"),\"N\",IF(AND('Enrollment Form'!$C41=\"Enroll\",'Enrollment Form'!$B41=\"Subscriber\",'Enrollment Form'!$CX41=\"Yes\"),\"-\",\"Y\")))))","v":""},{"$f":"IF('Enrollment Form'!AH41=\"\",\"\",IF(ISERROR(SEARCH(\".\",'Enrollment Form'!AH41,SEARCH(\"@\",'Enrollment Form'!AH41))),\"N\",\"Y\"))","v":""},{"$f":"IF(OR($B34=\"N\",'Enrollment Form'!$G41=\"\"),\"\",IF('Enrollment Form'!$B41<>\"Subscriber\",\"-\",IF(COUNTIF('Enrollment Form'!$AV41:$AW41,\"Yes\")=2,\"N\",\"Y\")))","v":""},{"$f":"IF(OR('Enrollment Form'!$CJ41=\"\",'Enrollment Form'!$CJ41=\"No\"),\"-\",IF(AND('Enrollment Form'!$CJ41=\"Yes\",'Enrollment Form'!$CK41=\"\"),\"N\",\"Y\"))","v":"-"},{"$f":"IF(OR('Enrollment Form'!$CL41=\"\",'Enrollment Form'!$CL41=\"No\"),\"-\",IF(AND('Enrollment Form'!$CL41=\"Yes\",'Enrollment Form'!$CM41=\"\"),\"N\",\"Y\"))","v":"-"},{"$f":"IF(OR('Enrollment Form'!$CN41=\"\",'Enrollment Form'!$CN41=\"No\"),\"-\",IF(AND('Enrollment Form'!$CN41=\"Yes\",'Enrollment Form'!$CO41=\"\"),\"N\",\"Y\"))","v":"-"},{"$f":"IF(OR('Enrollment Form'!$CN41=\"\",'Enrollment Form'!$CN41=\"No\"),\"-\",IF(AND('Enrollment Form'!$CN41=\"Yes\",'Enrollment Form'!$CP41=\"\"),\"N\",\"Y\"))","v":"-"},{"$f":"IF('Enrollment Form'!B41<>\"Subscriber\",\"-\",IF(AND('Enrollment Form'!B41=\"Subscriber\",'Enrollment Form'!C41=\"Enroll\",'Enrollment Form'!AA41=\"\"),\"N\",\"Y\"))","v":"-"},{"$f":"IF(OR('Enrollment Form'!B41=\"Subscriber\",'Enrollment Form'!B41=\"\"),\"-\",IF('Enrollment Form'!BP41=\"\",\"N\",\"Y\"))","v":"-"},{"$f":"IF('Enrollment Form'!B41<>\"Subscriber\",\"-\",IF(AND('Enrollment Form'!B41=\"Subscriber\",'Enrollment Form'!G41=\"\"),\"N\",\"Y\"))","v":"-"},{"$f":"IF('Enrollment Form'!A41=\"\",\"\",IF('Enrollment Form'!B41=\"Subscriber\",\"-\",IF(AND('Enrollment Form'!B41<>\"Subscriber\",'Enrollment Form'!G41='Enrollment Form'!H41),\"N\",\"Y\")))","v":""},0,null,null,null,null,null,null,"31","Sub works full-time OR part-time?","A sub can work either full-time or part-time, but not both","AV-AW"]
[42,{"$f":"IF('Enrollment Form'!$A42<>\"\",\"Y\",\"N\")","v":"N"},{"$f":"IF(AND('Enrollment Form'!$B42=\"\",'Enrollment Form'!$C42<>\"\"),\"N\",IF($B35=\"N\",\"\",\"Y\"))","v":""},{"$f":"IF(OR($B35=\"N\",'Enrollment Form'!G42=\"\"),\"\",IF('Enrollment Form'!$B42<>\"Subscriber\",\"\",IF('Enrollment Form'!$G42='Enrollment Form'!$H42,\"Y\",\"N\")))","v":""},{"$f":"IF($B35=\"N\",\"\",IF(AND(COUNTIFS('Enrollment Form'!$H$11:$H$1000,'Enrollment Form'!$H42,'Enrollment Form'!$B$11:$B$1000,'Enrollment Form'!$B42)>1,'Enrollment Form'!$H42<>\"\"),\"N\",\"Y\"))","v":""},{"$f":"IF($B35=\"N\",\"\",IF(LEN('Enrollment Form'!$Y42)=0,\"\",IF(LEN('Enrollment Form'!$Y42)<>5,\"N\",\"Y\")))","v":""},{"$f":"IF($B35=\"N\",\"\",IF(LEN('Enrollment Form'!$AD42=0),\"\",IF(LEN('Enrollment Form'!$AD42)<>5,\"N\",\"Y\")))","v":""},{"$f":"IF($B35=\"N\",\"\",IF(LEN('Enrollment Form'!$BS42=0),\"\",IF(LEN('Enrollment Form'!$BS42)<>5,\"N\",\"Y\")))","v":""},{"$f":"IF($B35=\"N\",\"\",IF(LEN('Enrollment Form'!$AE42)=0,\"\",IF(LEN('Enrollment Form'!$AE42)<>10,\"N\",\"Y\")))","v":""},{"$f":"IF($B35=\"N\",\"\",IF(LEN('Enrollment Form'!$AF42)=0,\"\",IF(LEN('Enrollment Form'!$AF42)<>10,\"N\",\"Y\")))","v":""},{"$f":"IF('Enrollment Form'!$O42<>\"Graded\",\"-\",IF(AND('Enrollment Form'!$O42=\"Graded\",'Enrollment Form'!$AR42<>\"\"),\"Y\",\"N\"))","v":"-"},{"$f":"IF($B35=\"N\",\"\",IF(OR('Enrollment Form'!$B42<>\"Subscriber\",'Enrollment Form'!$C42=\"ROC\"),\"-\",IF(AND('Enrollment Form'!$B42=\"Subscriber\",'Enrollment Form'!$C42=\"Enroll\",'Enrollment Form'!$AJ42<>\"\"),\"Y\",\"N\")))","v":""},{"$f":"IF($B35=\"N\",\"\",IF(OR('Enrollment Form'!$B42<>\"Subscriber\",'Enrollment Form'!$C42=\"ROC\"),\"-\",IF(AND('Enrollment Form'!$B42=\"Subscriber\",'Enrollment Form'!$C42=\"Enroll\",'Enrollment Form'!$AK42<>\"\"),\"Y\",\"N\")))","v":""},{"$f":"IF($B35=\"N\",\"\",IF(OR('Enrollment Form'!$B42<>\"Subscriber\",'Enrollment Form'!$C42=\"ROC\"),\"-\",IF(AND('Enrollment Form'!$B42=\"Subscriber\",'Enrollment Form'!$C42=\"Enroll\",'Enrollment Form'!$AL42<>\"\"),\"Y\",\"N\")))","v":""},{"$f":"IF($B35=\"N\",\"\",IF(OR('Enrollment Form'!$B42<>\"Subscriber\",'Enrollment Form'!$C42=\"ROC\"),\"-\",IF(AND('Enrollment Form'!$B42=\"Subscriber\",'Enrollment Form'!$C42=\"Enroll\",'Enrollment Form'!$AP42<>\"\"),\"Y\",\"N\")))","v":""},{"$f":"IF($B35=\"N\",\"\",IF(OR('Enrollment Form'!$B42<>\"Subscriber\",'Enrollment Form'!$C42=\"ROC\"),\"-\",IF(AND('Enrollment Form'!$B42=\"Subscriber\",'Enrollment Form'!$C42=\"Enroll\",'Enrollment Form'!$AQ42<>\"\"),\"Y\",\"N\")))","v":""},{"$f":"IF($B35=\"N\",\"\",IF(OR('Enrollment Form'!$B42<>\"Subscriber\",'Enrollment Form'!$C42=\"ROC\"),\"-\",IF(AND('Enrollment Form'!$B42=\"Subscriber\",'Enrollment Form'!$C42=\"Enroll\",'Enrollment Form'!$AS42<>\"\"),\"Y\",\"N\")))","v":""},{"$f":"IF($B35=\"N\",\"\",IF($Q35=\"-\",\"-\",IF(AND($Q35=\"Y\",'Enrollment Form'!$AS42=\"No\"),\"-\",IF(AND($Q35=\"Y\",'Enrollment Form'!$AS42=\"Yes\",'Enrollment Form'!$AT42<>\"\"),\"Y\",\"N\"))))","v":""},{"$f":"IF($B35=\"N\",\"\",IF(OR('Enrollment Form'!$B42<>\"Subscriber\",'Enrollment Form'!$C42=\"ROC\"),\"-\",IF(AND('Enrollment Form'!$B42=\"Subscriber\",'Enrollment Form'!$C42=\"Enroll\",'Enrollment Form'!$CV42<>\"\"),\"Y\",\"N\")))","v":""},{"$f":"IF($B35=\"N\",\"\",IF($S35=\"-\",\"-\",IF(AND($S35=\"Y\",'Enrollment Form'!$CV42=\"No\"),\"-\",IF(AND($S35=\"Y\",'Enrollment Form'!$CV42=\"Yes\",'Enrollment Form'!$CW42<>\"\"),\"Y\",\"N\"))))","v":""},{"$f":"IF(OR('Enrollment Form'!$AY42=\"Yes\",'Enrollment Form'!$AY42=\"\"),\"-\",IF(OR(AND('Enrollment Form'!$AY42=\"No\",ISERROR(FIND(\"HMO\",VLOOKUP('Enrollment Form'!G42,'Enrollment Form'!H$11:J$1000,3,FALSE),1))=FALSE,COUNTA('Enrollment Form'!$AZ42:$BC42)=4),AND('Enrollment Form'!$AY42=\"No\",ISERROR(FIND(\"HMO\",VLOOKUP('Enrollment Form'!G42,'Enrollment Form'!H$11:J$1000,3,FALSE),1))=FALSE,COUNTA('Enrollment Form'!$BT42:$BW42)=4)),\"Y\",\"N\"))","v":"-"},{"$f":"IF($B35=\"N\",\"\",IF('Enrollment Form'!$B42=\"Subscriber\",\"-\",IF(COUNTA('Enrollment Form'!$BL42,'Enrollment Form'!$BN42)=2,\"Y\",\"N\")))","v":""},{"$f":"IF($B35=\"N\",\"\",IF(OR('Enrollment Form'!$AX42=\"\",'Enrollment Form'!$AX42=\"No\"),\"-\",IF(AND('Enrollment Form'!$AX42=\"Yes\",COUNTA('Enrollment Form'!$CR42)=1),\"Y\",\"N\")))","v":""},{"$f":"IF(OR('Enrollment Form'!$CR42=\"\",'Enrollment Form'!$CR42=\"No\"),\"-\",IF(COUNTA('Enrollment Form'!$CT42:$CU42)=2,\"Y\",\"N\"))","v":"-"},{"$f":"IF($B35=\"N\",\"\",IF(COUNTIF('Enrollment Form'!$DG42:$DP42,\"Other\")=COUNTA('Enrollment Form'!$DK42,'Enrollment Form'!$DH42,'Enrollment Form'!$DN42,'Enrollment Form'!$DQ42),\"Y\",\"N\"))","v":""},{"$f":"IF($B35=\"N\",\"\",IF(OR('Enrollment Form'!B42<>\"Subscriber\",'Enrollment Form'!C42=\"ROC\",COUNTIF('Enrollment Form'!AV42:AW42,\"Yes\")>=1),\"-\",IF(AND('Enrollment Form'!C42=\"Enroll\",COUNTIF('Enrollment Form'!AV42:AW42,\"No\")=2,'Enrollment Form'!AX42=\"\"),\"N\",\"Y\")))","v":""},{"$f":"IF(OR(B35=\"N\",'Enrollment Form'!B42<>\"Subscriber\",'Enrollment Form'!C42=\"ROC\",'Enrollment Form'!O42<>\"Multiple of Salary\"),\"-\",IF(COUNTA('Enrollment Form'!T42:U42)<2,\"N\",\"Y\"))","v":"-"},{"$f":"IF(B35=\"N\",\"\",IF(OR('Enrollment Form'!C42=\"ROC\",'Enrollment Form'!B42<>\"Subscriber\",'Enrollment Form'!O42=\"Waive\",'Enrollment Form'!O42=\"\"),\"-\",IF('Enrollment Form'!P42=\"\",\"N\",\"Y\")))","v":""},{"$f":"IF($B35=\"N\",\"\",IF(AND('Enrollment Form'!$C42=\"ROC\",'Enrollment Form'!$DR42<>\"\"),\"Y\",IF(AND('Enrollment Form'!$C42=\"ROC\",'Enrollment Form'!$DR42=\"\"),\"N\",IF(AND('Enrollment Form'!$C42=\"Enroll\",'Enrollment Form'!$B42=\"Subscriber\",'Enrollment Form'!$CX42=\"No\",'Enrollment Form'!$DR42=\"\"),\"N\",IF(AND('Enrollment Form'!$C42=\"Enroll\",'Enrollment Form'!$B42=\"Subscriber\",'Enrollment Form'!$CX42=\"Yes\"),\"-\",\"Y\")))))","v":""},{"$f":"IF($B35=\"N\",\"\",IF(AND('Enrollment Form'!$C42=\"ROC\",'Enrollment Form'!$DS42<>\"\"),\"Y\",IF(AND('Enrollment Form'!$C42=\"ROC\",'Enrollment Form'!$DS42=\"\"),\"N\",IF(AND('Enrollment Form'!$C42=\"Enroll\",'Enrollment Form'!$B42=\"Subscriber\",'Enrollment Form'!$CX42=\"No\",'Enrollment Form'!$DS42=\"\"),\"N\",IF(AND('Enrollment Form'!$C42=\"Enroll\",'Enrollment Form'!$B42=\"Subscriber\",'Enrollment Form'!$CX42=\"Yes\"),\"-\",\"Y\")))))","v":""},{"$f":"IF('Enrollment Form'!AH42=\"\",\"\",IF(ISERROR(SEARCH(\".\",'Enrollment Form'!AH42,SEARCH(\"@\",'Enrollment Form'!AH42))),\"N\",\"Y\"))","v":""},{"$f":"IF(OR($B35=\"N\",'Enrollment Form'!$G42=\"\"),\"\",IF('Enrollment Form'!$B42<>\"Subscriber\",\"-\",IF(COUNTIF('Enrollment Form'!$AV42:$AW42,\"Yes\")=2,\"N\",\"Y\")))","v":""},{"$f":"IF(OR('Enrollment Form'!$CJ42=\"\",'Enrollment Form'!$CJ42=\"No\"),\"-\",IF(AND('Enrollment Form'!$CJ42=\"Yes\",'Enrollment Form'!$CK42=\"\"),\"N\",\"Y\"))","v":"-"},{"$f":"IF(OR('Enrollment Form'!$CL42=\"\",'Enrollment Form'!$CL42=\"No\"),\"-\",IF(AND('Enrollment Form'!$CL42=\"Yes\",'Enrollment Form'!$CM42=\"\"),\"N\",\"Y\"))","v":"-"},{"$f":"IF(OR('Enrollment Form'!$CN42=\"\",'Enrollment Form'!$CN42=\"No\"),\"-\",IF(AND('Enrollment Form'!$CN42=\"Yes\",'Enrollment Form'!$CO42=\"\"),\"N\",\"Y\"))","v":"-"},{"$f":"IF(OR('Enrollment Form'!$CN42=\"\",'Enrollment Form'!$CN42=\"No\"),\"-\",IF(AND('Enrollment Form'!$CN42=\"Yes\",'Enrollment Form'!$CP42=\"\"),\"N\",\"Y\"))","v":"-"},{"$f":"IF('Enrollment Form'!B42<>\"Subscriber\",\"-\",IF(AND('Enrollment Form'!B42=\"Subscriber\",'Enrollment Form'!C42=\"Enroll\",'Enrollment Form'!AA42=\"\"),\"N\",\"Y\"))","v":"-"},{"$f":"IF(OR('Enrollment Form'!B42=\"Subscriber\",'Enrollment Form'!B42=\"\"),\"-\",IF('Enrollment Form'!BP42=\"\",\"N\",\"Y\"))","v":"-"},{"$f":"IF('Enrollment Form'!B42<>\"Subscriber\",\"-\",IF(AND('Enrollment Form'!B42=\"Subscriber\",'Enrollment Form'!G42=\"\"),\"N\",\"Y\"))","v":"-"},{"$f":"IF('Enrollment Form'!A42=\"\",\"\",IF('Enrollment Form'!B42=\"Subscriber\",\"-\",IF(AND('Enrollment Form'!B42<>\"Subscriber\",'Enrollment Form'!G42='Enrollment Form'!H42),\"N\",\"Y\")))","v":""},0,null,null,null,null,null,null,"32","Medicare Part A Date Filled?","If Part A coverage, then Part A date must be populated","CJ-CK"]
[43,{"$f":"IF('Enrollment Form'!$A43<>\"\",\"Y\",\"N\")","v":"N"},{"$f":"IF(AND('Enrollment Form'!$B43=\"\",'Enrollment Form'!$C43<>\"\"),\"N\",IF($B36=\"N\",\"\",\"Y\"))","v":""},{"$f":"IF(OR($B36=\"N\",'Enrollment Form'!G43=\"\"),\"\",IF('Enrollment Form'!$B43<>\"Subscriber\",\"\",IF('Enrollment Form'!$G43='Enrollment Form'!$H43,\"Y\",\"N\")))","v":""},{"$f":"IF($B36=\"N\",\"\",IF(AND(COUNTIFS('Enrollment Form'!$H$11:$H$1000,'Enrollment Form'!$H43,'Enrollment Form'!$B$11:$B$1000,'Enrollment Form'!$B43)>1,'Enrollment Form'!$H43<>\"\"),\"N\",\"Y\"))","v":""},{"$f":"IF($B36=\"N\",\"\",IF(LEN('Enrollment Form'!$Y43)=0,\"\",IF(LEN('Enrollment Form'!$Y43)<>5,\"N\",\"Y\")))","v":""},{"$f":"IF($B36=\"N\",\"\",IF(LEN('Enrollment Form'!$AD43=0),\"\",IF(LEN('Enrollment Form'!$AD43)<>5,\"N\",\"Y\")))","v":""},{"$f":"IF($B36=\"N\",\"\",IF(LEN('Enrollment Form'!$BS43=0),\"\",IF(LEN('Enrollment Form'!$BS43)<>5,\"N\",\"Y\")))","v":""},{"$f":"IF($B36=\"N\",\"\",IF(LEN('Enrollment Form'!$AE43)=0,\"\",IF(LEN('Enrollment Form'!$AE43)<>10,\"N\",\"Y\")))","v":""},{"$f":"IF($B36=\"N\",\"\",IF(LEN('Enrollment Form'!$AF43)=0,\"\",IF(LEN('Enrollment Form'!$AF43)<>10,\"N\",\"Y\")))","v":""},{"$f":"IF('Enrollment Form'!$O43<>\"Graded\",\"-\",IF(AND('Enrollment Form'!$O43=\"Graded\",'Enrollment Form'!$AR43<>\"\"),\"Y\",\"N\"))","v":"-"},{"$f":"IF($B36=\"N\",\"\",IF(OR('Enrollment Form'!$B43<>\"Subscriber\",'Enrollment Form'!$C43=\"ROC\"),\"-\",IF(AND('Enrollment Form'!$B43=\"Subscriber\",'Enrollment Form'!$C43=\"Enroll\",'Enrollment Form'!$AJ43<>\"\"),\"Y\",\"N\")))","v":""},{"$f":"IF($B36=\"N\",\"\",IF(OR('Enrollment Form'!$B43<>\"Subscriber\",'Enrollment Form'!$C43=\"ROC\"),\"-\",IF(AND('Enrollment Form'!$B43=\"Subscriber\",'Enrollment Form'!$C43=\"Enroll\",'Enrollment Form'!$AK43<>\"\"),\"Y\",\"N\")))","v":""},{"$f":"IF($B36=\"N\",\"\",IF(OR('Enrollment Form'!$B43<>\"Subscriber\",'Enrollment Form'!$C43=\"ROC\"),\"-\",IF(AND('Enrollment Form'!$B43=\"Subscriber\",'Enrollment Form'!$C43=\"Enroll\",'Enrollment Form'!$AL43<>\"\"),\"Y\",\"N\")))","v":""},{"$f":"IF($B36=\"N\",\"\",IF(OR('Enrollment Form'!$B43<>\"Subscriber\",'Enrollment Form'!$C43=\"ROC\"),\"-\",IF(AND('Enrollment Form'!$B43=\"Subscriber\",'Enrollment Form'!$C43=\"Enroll\",'Enrollment Form'!$AP43<>\"\"),\"Y\",\"N\")))","v":""},{"$f":"IF($B36=\"N\",\"\",IF(OR('Enrollment Form'!$B43<>\"Subscriber\",'Enrollment Form'!$C43=\"ROC\"),\"-\",IF(AND('Enrollment Form'!$B43=\"Subscriber\",'Enrollment Form'!$C43=\"Enroll\",'Enrollment Form'!$AQ43<>\"\"),\"Y\",\"N\")))","v":""},{"$f":"IF($B36=\"N\",\"\",IF(OR('Enrollment Form'!$B43<>\"Subscriber\",'Enrollment Form'!$C43=\"ROC\"),\"-\",IF(AND('Enrollment Form'!$B43=\"Subscriber\",'Enrollment Form'!$C43=\"Enroll\",'Enrollment Form'!$AS43<>\"\"),\"Y\",\"N\")))","v":""},{"$f":"IF($B36=\"N\",\"\",IF($Q36=\"-\",\"-\",IF(AND($Q36=\"Y\",'Enrollment Form'!$AS43=\"No\"),\"-\",IF(AND($Q36=\"Y\",'Enrollment Form'!$AS43=\"Yes\",'Enrollment Form'!$AT43<>\"\"),\"Y\",\"N\"))))","v":""},{"$f":"IF($B36=\"N\",\"\",IF(OR('Enrollment Form'!$B43<>\"Subscriber\",'Enrollment Form'!$C43=\"ROC\"),\"-\",IF(AND('Enrollment Form'!$B43=\"Subscriber\",'Enrollment Form'!$C43=\"Enroll\",'Enrollment Form'!$CV43<>\"\"),\"Y\",\"N\")))","v":""},{"$f":"IF($B36=\"N\",\"\",IF($S36=\"-\",\"-\",IF(AND($S36=\"Y\",'Enrollment Form'!$CV43=\"No\"),\"-\",IF(AND($S36=\"Y\",'Enrollment Form'!$CV43=\"Yes\",'Enrollment Form'!$CW43<>\"\"),\"Y\",\"N\"))))","v":""},{"$f":"IF(OR('Enrollment Form'!$AY43=\"Yes\",'Enrollment Form'!$AY43=\"\"),\"-\",IF(OR(AND('Enrollment Form'!$AY43=\"No\",ISERROR(FIND(\"HMO\",VLOOKUP('Enrollment Form'!G43,'Enrollment Form'!H$11:J$1000,3,FALSE),1))=FALSE,COUNTA('Enrollment Form'!$AZ43:$BC43)=4),AND('Enrollment Form'!$AY43=\"No\",ISERROR(FIND(\"HMO\",VLOOKUP('Enrollment Form'!G43,'Enrollment Form'!H$11:J$1000,3,FALSE),1))=FALSE,COUNTA('Enrollment Form'!$BT43:$BW43)=4)),\"Y\",\"N\"))","v":"-"},{"$f":"IF($B36=\"N\",\"\",IF('Enrollment Form'!$B43=\"Subscriber\",\"-\",IF(COUNTA('Enrollment Form'!$BL43,'Enrollment Form'!$BN43)=2,\"Y\",\"N\")))","v":""},{"$f":"IF($B36=\"N\",\"\",IF(OR('Enrollment Form'!$AX43=\"\",'Enrollment Form'!$AX43=\"No\"),\"-\",IF(AND('Enrollment Form'!$AX43=\"Yes\",COUNTA('Enrollment Form'!$CR43)=1),\"Y\",\"N\")))","v":""},{"$f":"IF(OR('Enrollment Form'!$CR43=\"\",'Enrollment Form'!$CR43=\"No\"),\"-\",IF(COUNTA('Enrollment Form'!$CT43:$CU43)=2,\"Y\",\"N\"))","v":"-"},{"$f":"IF($B36=\"N\",\"\",IF(COUNTIF('Enrollment Form'!$DG43:$DP43,\"Other\")=COUNTA('Enrollment Form'!$DK43,'Enrollment Form'!$DH43,'Enrollment Form'!$DN43,'Enrollment Form'!$DQ43),\"Y\",\"N\"))","v":""},{"$f":"IF($B36=\"N\",\"\",IF(OR('Enrollment Form'!B43<>\"Subscriber\",'Enrollment Form'!C43=\"ROC\",COUNTIF('Enrollment Form'!AV43:AW43,\"Yes\")>=1),\"-\",IF(AND('Enrollment Form'!C43=\"Enroll\",COUNTIF('Enrollment Form'!AV43:AW43,\"No\")=2,'Enrollment Form'!AX43=\"\"),\"N\",\"Y\")))","v":""},{"$f":"IF(OR(B36=\"N\",'Enrollment Form'!B43<>\"Subscriber\",'Enrollment Form'!C43=\"ROC\",'Enrollment Form'!O43<>\"Multiple of Salary\"),\"-\",IF(COUNTA('Enrollment Form'!T43:U43)<2,\"N\",\"Y\"))","v":"-"},{"$f":"IF(B36=\"N\",\"\",IF(OR('Enrollment Form'!C43=\"ROC\",'Enrollment Form'!B43<>\"Subscriber\",'Enrollment Form'!O43=\"Waive\",'Enrollment Form'!O43=\"\"),\"-\",IF('Enrollment Form'!P43=\"\",\"N\",\"Y\")))","v":""},{"$f":"IF($B36=\"N\",\"\",IF(AND('Enrollment Form'!$C43=\"ROC\",'Enrollment Form'!$DR43<>\"\"),\"Y\",IF(AND('Enrollment Form'!$C43=\"ROC\",'Enrollment Form'!$DR43=\"\"),\"N\",IF(AND('Enrollment Form'!$C43=\"Enroll\",'Enrollment Form'!$B43=\"Subscriber\",'Enrollment Form'!$CX43=\"No\",'Enrollment Form'!$DR43=\"\"),\"N\",IF(AND('Enrollment Form'!$C43=\"Enroll\",'Enrollment Form'!$B43=\"Subscriber\",'Enrollment Form'!$CX43=\"Yes\"),\"-\",\"Y\")))))","v":""},{"$f":"IF($B36=\"N\",\"\",IF(AND('Enrollment Form'!$C43=\"ROC\",'Enrollment Form'!$DS43<>\"\"),\"Y\",IF(AND('Enrollment Form'!$C43=\"ROC\",'Enrollment Form'!$DS43=\"\"),\"N\",IF(AND('Enrollment Form'!$C43=\"Enroll\",'Enrollment Form'!$B43=\"Subscriber\",'Enrollment Form'!$CX43=\"No\",'Enrollment Form'!$DS43=\"\"),\"N\",IF(AND('Enrollment Form'!$C43=\"Enroll\",'Enrollment Form'!$B43=\"Subscriber\",'Enrollment Form'!$CX43=\"Yes\"),\"-\",\"Y\")))))","v":""},{"$f":"IF('Enrollment Form'!AH43=\"\",\"\",IF(ISERROR(SEARCH(\".\",'Enrollment Form'!AH43,SEARCH(\"@\",'Enrollment Form'!AH43))),\"N\",\"Y\"))","v":""},{"$f":"IF(OR($B36=\"N\",'Enrollment Form'!$G43=\"\"),\"\",IF('Enrollment Form'!$B43<>\"Subscriber\",\"-\",IF(COUNTIF('Enrollment Form'!$AV43:$AW43,\"Yes\")=2,\"N\",\"Y\")))","v":""},{"$f":"IF(OR('Enrollment Form'!$CJ43=\"\",'Enrollment Form'!$CJ43=\"No\"),\"-\",IF(AND('Enrollment Form'!$CJ43=\"Yes\",'Enrollment Form'!$CK43=\"\"),\"N\",\"Y\"))","v":"-"},{"$f":"IF(OR('Enrollment Form'!$CL43=\"\",'Enrollment Form'!$CL43=\"No\"),\"-\",IF(AND('Enrollment Form'!$CL43=\"Yes\",'Enrollment Form'!$CM43=\"\"),\"N\",\"Y\"))","v":"-"},{"$f":"IF(OR('Enrollment Form'!$CN43=\"\",'Enrollment Form'!$CN43=\"No\"),\"-\",IF(AND('Enrollment Form'!$CN43=\"Yes\",'Enrollment Form'!$CO43=\"\"),\"N\",\"Y\"))","v":"-"},{"$f":"IF(OR('Enrollment Form'!$CN43=\"\",'Enrollment Form'!$CN43=\"No\"),\"-\",IF(AND('Enrollment Form'!$CN43=\"Yes\",'Enrollment Form'!$CP43=\"\"),\"N\",\"Y\"))","v":"-"},{"$f":"IF('Enrollment Form'!B43<>\"Subscriber\",\"-\",IF(AND('Enrollment Form'!B43=\"Subscriber\",'Enrollment Form'!C43=\"Enroll\",'Enrollment Form'!AA43=\"\"),\"N\",\"Y\"))","v":"-"},{"$f":"IF(OR('Enrollment Form'!B43=\"Subscriber\",'Enrollment Form'!B43=\"\"),\"-\",IF('Enrollment Form'!BP43=\"\",\"N\",\"Y\"))","v":"-"},{"$f":"IF('Enrollment Form'!B43<>\"Subscriber\",\"-\",IF(AND('Enrollment Form'!B43=\"Subscriber\",'Enrollment Form'!G43=\"\"),\"N\",\"Y\"))","v":"-"},{"$f":"IF('Enrollment Form'!A43=\"\",\"\",IF('Enrollment Form'!B43=\"Subscriber\",\"-\",IF(AND('Enrollment Form'!B43<>\"Subscriber\",'Enrollment Form'!G43='Enrollment Form'!H43),\"N\",\"Y\")))","v":""},0,null,null,null,null,null,null,"33","Medicare Part B Date Filled?","If Part B coverage, then Part B date must be populated","CL-CM"]
[44,{"$f":"IF('Enrollment Form'!$A44<>\"\",\"Y\",\"N\")","v":"N"},{"$f":"IF(AND('Enrollment Form'!$B44=\"\",'Enrollment Form'!$C44<>\"\"),\"N\",IF($B37=\"N\",\"\",\"Y\"))","v":""},{"$f":"IF(OR($B37=\"N\",'Enrollment Form'!G44=\"\"),\"\",IF('Enrollment Form'!$B44<>\"Subscriber\",\"\",IF('Enrollment Form'!$G44='Enrollment Form'!$H44,\"Y\",\"N\")))","v":""},{"$f":"IF($B37=\"N\",\"\",IF(AND(COUNTIFS('Enrollment Form'!$H$11:$H$1000,'Enrollment Form'!$H44,'Enrollment Form'!$B$11:$B$1000,'Enrollment Form'!$B44)>1,'Enrollment Form'!$H44<>\"\"),\"N\",\"Y\"))","v":""},{"$f":"IF($B37=\"N\",\"\",IF(LEN('Enrollment Form'!$Y44)=0,\"\",IF(LEN('Enrollment Form'!$Y44)<>5,\"N\",\"Y\")))","v":""},{"$f":"IF($B37=\"N\",\"\",IF(LEN('Enrollment Form'!$AD44=0),\"\",IF(LEN('Enrollment Form'!$AD44)<>5,\"N\",\"Y\")))","v":""},{"$f":"IF($B37=\"N\",\"\",IF(LEN('Enrollment Form'!$BS44=0),\"\",IF(LEN('Enrollment Form'!$BS44)<>5,\"N\",\"Y\")))","v":""},{"$f":"IF($B37=\"N\",\"\",IF(LEN('Enrollment Form'!$AE44)=0,\"\",IF(LEN('Enrollment Form'!$AE44)<>10,\"N\",\"Y\")))","v":""},{"$f":"IF($B37=\"N\",\"\",IF(LEN('Enrollment Form'!$AF44)=0,\"\",IF(LEN('Enrollment Form'!$AF44)<>10,\"N\",\"Y\")))","v":""},{"$f":"IF('Enrollment Form'!$O44<>\"Graded\",\"-\",IF(AND('Enrollment Form'!$O44=\"Graded\",'Enrollment Form'!$AR44<>\"\"),\"Y\",\"N\"))","v":"-"},{"$f":"IF($B37=\"N\",\"\",IF(OR('Enrollment Form'!$B44<>\"Subscriber\",'Enrollment Form'!$C44=\"ROC\"),\"-\",IF(AND('Enrollment Form'!$B44=\"Subscriber\",'Enrollment Form'!$C44=\"Enroll\",'Enrollment Form'!$AJ44<>\"\"),\"Y\",\"N\")))","v":""},{"$f":"IF($B37=\"N\",\"\",IF(OR('Enrollment Form'!$B44<>\"Subscriber\",'Enrollment Form'!$C44=\"ROC\"),\"-\",IF(AND('Enrollment Form'!$B44=\"Subscriber\",'Enrollment Form'!$C44=\"Enroll\",'Enrollment Form'!$AK44<>\"\"),\"Y\",\"N\")))","v":""},{"$f":"IF($B37=\"N\",\"\",IF(OR('Enrollment Form'!$B44<>\"Subscriber\",'Enrollment Form'!$C44=\"ROC\"),\"-\",IF(AND('Enrollment Form'!$B44=\"Subscriber\",'Enrollment Form'!$C44=\"Enroll\",'Enrollment Form'!$AL44<>\"\"),\"Y\",\"N\")))","v":""},{"$f":"IF($B37=\"N\",\"\",IF(OR('Enrollment Form'!$B44<>\"Subscriber\",'Enrollment Form'!$C44=\"ROC\"),\"-\",IF(AND('Enrollment Form'!$B44=\"Subscriber\",'Enrollment Form'!$C44=\"Enroll\",'Enrollment Form'!$AP44<>\"\"),\"Y\",\"N\")))","v":""},{"$f":"IF($B37=\"N\",\"\",IF(OR('Enrollment Form'!$B44<>\"Subscriber\",'Enrollment Form'!$C44=\"ROC\"),\"-\",IF(AND('Enrollment Form'!$B44=\"Subscriber\",'Enrollment Form'!$C44=\"Enroll\",'Enrollment Form'!$AQ44<>\"\"),\"Y\",\"N\")))","v":""},{"$f":"IF($B37=\"N\",\"\",IF(OR('Enrollment Form'!$B44<>\"Subscriber\",'Enrollment Form'!$C44=\"ROC\"),\"-\",IF(AND('Enrollment Form'!$B44=\"Subscriber\",'Enrollment Form'!$C44=\"Enroll\",'Enrollment Form'!$AS44<>\"\"),\"Y\",\"N\")))","v":""},{"$f":"IF($B37=\"N\",\"\",IF($Q37=\"-\",\"-\",IF(AND($Q37=\"Y\",'Enrollment Form'!$AS44=\"No\"),\"-\",IF(AND($Q37=\"Y\",'Enrollment Form'!$AS44=\"Yes\",'Enrollment Form'!$AT44<>\"\"),\"Y\",\"N\"))))","v":""},{"$f":"IF($B37=\"N\",\"\",IF(OR('Enrollment Form'!$B44<>\"Subscriber\",'Enrollment Form'!$C44=\"ROC\"),\"-\",IF(AND('Enrollment Form'!$B44=\"Subscriber\",'Enrollment Form'!$C44=\"Enroll\",'Enrollment Form'!$CV44<>\"\"),\"Y\",\"N\")))","v":""},{"$f":"IF($B37=\"N\",\"\",IF($S37=\"-\",\"-\",IF(AND($S37=\"Y\",'Enrollment Form'!$CV44=\"No\"),\"-\",IF(AND($S37=\"Y\",'Enrollment Form'!$CV44=\"Yes\",'Enrollment Form'!$CW44<>\"\"),\"Y\",\"N\"))))","v":""},{"$f":"IF(OR('Enrollment Form'!$AY44=\"Yes\",'Enrollment Form'!$AY44=\"\"),\"-\",IF(OR(AND('Enrollment Form'!$AY44=\"No\",ISERROR(FIND(\"HMO\",VLOOKUP('Enrollment Form'!G44,'Enrollment Form'!H$11:J$1000,3,FALSE),1))=FALSE,COUNTA('Enrollment Form'!$AZ44:$BC44)=4),AND('Enrollment Form'!$AY44=\"No\",ISERROR(FIND(\"HMO\",VLOOKUP('Enrollment Form'!G44,'Enrollment Form'!H$11:J$1000,3,FALSE),1))=FALSE,COUNTA('Enrollment Form'!$BT44:$BW44)=4)),\"Y\",\"N\"))","v":"-"},{"$f":"IF($B37=\"N\",\"\",IF('Enrollment Form'!$B44=\"Subscriber\",\"-\",IF(COUNTA('Enrollment Form'!$BL44,'Enrollment Form'!$BN44)=2,\"Y\",\"N\")))","v":""},{"$f":"IF($B37=\"N\",\"\",IF(OR('Enrollment Form'!$AX44=\"\",'Enrollment Form'!$AX44=\"No\"),\"-\",IF(AND('Enrollment Form'!$AX44=\"Yes\",COUNTA('Enrollment Form'!$CR44)=1),\"Y\",\"N\")))","v":""},{"$f":"IF(OR('Enrollment Form'!$CR44=\"\",'Enrollment Form'!$CR44=\"No\"),\"-\",IF(COUNTA('Enrollment Form'!$CT44:$CU44)=2,\"Y\",\"N\"))","v":"-"},{"$f":"IF($B37=\"N\",\"\",IF(COUNTIF('Enrollment Form'!$DG44:$DP44,\"Other\")=COUNTA('Enrollment Form'!$DK44,'Enrollment Form'!$DH44,'Enrollment Form'!$DN44,'Enrollment Form'!$DQ44),\"Y\",\"N\"))","v":""},{"$f":"IF($B37=\"N\",\"\",IF(OR('Enrollment Form'!B44<>\"Subscriber\",'Enrollment Form'!C44=\"ROC\",COUNTIF('Enrollment Form'!AV44:AW44,\"Yes\")>=1),\"-\",IF(AND('Enrollment Form'!C44=\"Enroll\",COUNTIF('Enrollment Form'!AV44:AW44,\"No\")=2,'Enrollment Form'!AX44=\"\"),\"N\",\"Y\")))","v":""},{"$f":"IF(OR(B37=\"N\",'Enrollment Form'!B44<>\"Subscriber\",'Enrollment Form'!C44=\"ROC\",'Enrollment Form'!O44<>\"Multiple of Salary\"),\"-\",IF(COUNTA('Enrollment Form'!T44:U44)<2,\"N\",\"Y\"))","v":"-"},{"$f":"IF(B37=\"N\",\"\",IF(OR('Enrollment Form'!C44=\"ROC\",'Enrollment Form'!B44<>\"Subscriber\",'Enrollment Form'!O44=\"Waive\",'Enrollment Form'!O44=\"\"),\"-\",IF('Enrollment Form'!P44=\"\",\"N\",\"Y\")))","v":""},{"$f":"IF($B37=\"N\",\"\",IF(AND('Enrollment Form'!$C44=\"ROC\",'Enrollment Form'!$DR44<>\"\"),\"Y\",IF(AND('Enrollment Form'!$C44=\"ROC\",'Enrollment Form'!$DR44=\"\"),\"N\",IF(AND('Enrollment Form'!$C44=\"Enroll\",'Enrollment Form'!$B44=\"Subscriber\",'Enrollment Form'!$CX44=\"No\",'Enrollment Form'!$DR44=\"\"),\"N\",IF(AND('Enrollment Form'!$C44=\"Enroll\",'Enrollment Form'!$B44=\"Subscriber\",'Enrollment Form'!$CX44=\"Yes\"),\"-\",\"Y\")))))","v":""},{"$f":"IF($B37=\"N\",\"\",IF(AND('Enrollment Form'!$C44=\"ROC\",'Enrollment Form'!$DS44<>\"\"),\"Y\",IF(AND('Enrollment Form'!$C44=\"ROC\",'Enrollment Form'!$DS44=\"\"),\"N\",IF(AND('Enrollment Form'!$C44=\"Enroll\",'Enrollment Form'!$B44=\"Subscriber\",'Enrollment Form'!$CX44=\"No\",'Enrollment Form'!$DS44=\"\"),\"N\",IF(AND('Enrollment Form'!$C44=\"Enroll\",'Enrollment Form'!$B44=\"Subscriber\",'Enrollment Form'!$CX44=\"Yes\"),\"-\",\"Y\")))))","v":""},{"$f":"IF('Enrollment Form'!AH44=\"\",\"\",IF(ISERROR(SEARCH(\".\",'Enrollment Form'!AH44,SEARCH(\"@\",'Enrollment Form'!AH44))),\"N\",\"Y\"))","v":""},{"$f":"IF(OR($B37=\"N\",'Enrollment Form'!$G44=\"\"),\"\",IF('Enrollment Form'!$B44<>\"Subscriber\",\"-\",IF(COUNTIF('Enrollment Form'!$AV44:$AW44,\"Yes\")=2,\"N\",\"Y\")))","v":""},{"$f":"IF(OR('Enrollment Form'!$CJ44=\"\",'Enrollment Form'!$CJ44=\"No\"),\"-\",IF(AND('Enrollment Form'!$CJ44=\"Yes\",'Enrollment Form'!$CK44=\"\"),\"N\",\"Y\"))","v":"-"},{"$f":"IF(OR('Enrollment Form'!$CL44=\"\",'Enrollment Form'!$CL44=\"No\"),\"-\",IF(AND('Enrollment Form'!$CL44=\"Yes\",'Enrollment Form'!$CM44=\"\"),\"N\",\"Y\"))","v":"-"},{"$f":"IF(OR('Enrollment Form'!$CN44=\"\",'Enrollment Form'!$CN44=\"No\"),\"-\",IF(AND('Enrollment Form'!$CN44=\"Yes\",'Enrollment Form'!$CO44=\"\"),\"N\",\"Y\"))","v":"-"},{"$f":"IF(OR('Enrollment Form'!$CN44=\"\",'Enrollment Form'!$CN44=\"No\"),\"-\",IF(AND('Enrollment Form'!$CN44=\"Yes\",'Enrollment Form'!$CP44=\"\"),\"N\",\"Y\"))","v":"-"},{"$f":"IF('Enrollment Form'!B44<>\"Subscriber\",\"-\",IF(AND('Enrollment Form'!B44=\"Subscriber\",'Enrollment Form'!C44=\"Enroll\",'Enrollment Form'!AA44=\"\"),\"N\",\"Y\"))","v":"-"},{"$f":"IF(OR('Enrollment Form'!B44=\"Subscriber\",'Enrollment Form'!B44=\"\"),\"-\",IF('Enrollment Form'!BP44=\"\",\"N\",\"Y\"))","v":"-"},{"$f":"IF('Enrollment Form'!B44<>\"Subscriber\",\"-\",IF(AND('Enrollment Form'!B44=\"Subscriber\",'Enrollment Form'!G44=\"\"),\"N\",\"Y\"))","v":"-"},{"$f":"IF('Enrollment Form'!A44=\"\",\"\",IF('Enrollment Form'!B44=\"Subscriber\",\"-\",IF(AND('Enrollment Form'!B44<>\"Subscriber\",'Enrollment Form'!G44='Enrollment Form'!H44),\"N\",\"Y\")))","v":""},0,null,null,null,null,null,null,"34","Medicare dialysis date filled?","If end stage renal disease, date of first treatment must be populated","CN,CO"]
[45,{"$f":"IF('Enrollment Form'!$A45<>\"\",\"Y\",\"N\")","v":"N"},{"$f":"IF(AND('Enrollment Form'!$B45=\"\",'Enrollment Form'!$C45<>\"\"),\"N\",IF($B38=\"N\",\"\",\"Y\"))","v":""},{"$f":"IF(OR($B38=\"N\",'Enrollment Form'!G45=\"\"),\"\",IF('Enrollment Form'!$B45<>\"Subscriber\",\"\",IF('Enrollment Form'!$G45='Enrollment Form'!$H45,\"Y\",\"N\")))","v":""},{"$f":"IF($B38=\"N\",\"\",IF(AND(COUNTIFS('Enrollment Form'!$H$11:$H$1000,'Enrollment Form'!$H45,'Enrollment Form'!$B$11:$B$1000,'Enrollment Form'!$B45)>1,'Enrollment Form'!$H45<>\"\"),\"N\",\"Y\"))","v":""},{"$f":"IF($B38=\"N\",\"\",IF(LEN('Enrollment Form'!$Y45)=0,\"\",IF(LEN('Enrollment Form'!$Y45)<>5,\"N\",\"Y\")))","v":""},{"$f":"IF($B38=\"N\",\"\",IF(LEN('Enrollment Form'!$AD45=0),\"\",IF(LEN('Enrollment Form'!$AD45)<>5,\"N\",\"Y\")))","v":""},{"$f":"IF($B38=\"N\",\"\",IF(LEN('Enrollment Form'!$BS45=0),\"\",IF(LEN('Enrollment Form'!$BS45)<>5,\"N\",\"Y\")))","v":""},{"$f":"IF($B38=\"N\",\"\",IF(LEN('Enrollment Form'!$AE45)=0,\"\",IF(LEN('Enrollment Form'!$AE45)<>10,\"N\",\"Y\")))","v":""},{"$f":"IF($B38=\"N\",\"\",IF(LEN('Enrollment Form'!$AF45)=0,\"\",IF(LEN('Enrollment Form'!$AF45)<>10,\"N\",\"Y\")))","v":""},{"$f":"IF('Enrollment Form'!$O45<>\"Graded\",\"-\",IF(AND('Enrollment Form'!$O45=\"Graded\",'Enrollment Form'!$AR45<>\"\"),\"Y\",\"N\"))","v":"-"},{"$f":"IF($B38=\"N\",\"\",IF(OR('Enrollment Form'!$B45<>\"Subscriber\",'Enrollment Form'!$C45=\"ROC\"),\"-\",IF(AND('Enrollment Form'!$B45=\"Subscriber\",'Enrollment Form'!$C45=\"Enroll\",'Enrollment Form'!$AJ45<>\"\"),\"Y\",\"N\")))","v":""},{"$f":"IF($B38=\"N\",\"\",IF(OR('Enrollment Form'!$B45<>\"Subscriber\",'Enrollment Form'!$C45=\"ROC\"),\"-\",IF(AND('Enrollment Form'!$B45=\"Subscriber\",'Enrollment Form'!$C45=\"Enroll\",'Enrollment Form'!$AK45<>\"\"),\"Y\",\"N\")))","v":""},{"$f":"IF($B38=\"N\",\"\",IF(OR('Enrollment Form'!$B45<>\"Subscriber\",'Enrollment Form'!$C45=\"ROC\"),\"-\",IF(AND('Enrollment Form'!$B45=\"Subscriber\",'Enrollment Form'!$C45=\"Enroll\",'Enrollment Form'!$AL45<>\"\"),\"Y\",\"N\")))","v":""},{"$f":"IF($B38=\"N\",\"\",IF(OR('Enrollment Form'!$B45<>\"Subscriber\",'Enrollment Form'!$C45=\"ROC\"),\"-\",IF(AND('Enrollment Form'!$B45=\"Subscriber\",'Enrollment Form'!$C45=\"Enroll\",'Enrollment Form'!$AP45<>\"\"),\"Y\",\"N\")))","v":""},{"$f":"IF($B38=\"N\",\"\",IF(OR('Enrollment Form'!$B45<>\"Subscriber\",'Enrollment Form'!$C45=\"ROC\"),\"-\",IF(AND('Enrollment Form'!$B45=\"Subscriber\",'Enrollment Form'!$C45=\"Enroll\",'Enrollment Form'!$AQ45<>\"\"),\"Y\",\"N\")))","v":""},{"$f":"IF($B38=\"N\",\"\",IF(OR('Enrollment Form'!$B45<>\"Subscriber\",'Enrollment Form'!$C45=\"ROC\"),\"-\",IF(AND('Enrollment Form'!$B45=\"Subscriber\",'Enrollment Form'!$C45=\"Enroll\",'Enrollment Form'!$AS45<>\"\"),\"Y\",\"N\")))","v":""},{"$f":"IF($B38=\"N\",\"\",IF($Q38=\"-\",\"-\",IF(AND($Q38=\"Y\",'Enrollment Form'!$AS45=\"No\"),\"-\",IF(AND($Q38=\"Y\",'Enrollment Form'!$AS45=\"Yes\",'Enrollment Form'!$AT45<>\"\"),\"Y\",\"N\"))))","v":""},{"$f":"IF($B38=\"N\",\"\",IF(OR('Enrollment Form'!$B45<>\"Subscriber\",'Enrollment Form'!$C45=\"ROC\"),\"-\",IF(AND('Enrollment Form'!$B45=\"Subscriber\",'Enrollment Form'!$C45=\"Enroll\",'Enrollment Form'!$CV45<>\"\"),\"Y\",\"N\")))","v":""},{"$f":"IF($B38=\"N\",\"\",IF($S38=\"-\",\"-\",IF(AND($S38=\"Y\",'Enrollment Form'!$CV45=\"No\"),\"-\",IF(AND($S38=\"Y\",'Enrollment Form'!$CV45=\"Yes\",'Enrollment Form'!$CW45<>\"\"),\"Y\",\"N\"))))","v":""},{"$f":"IF(OR('Enrollment Form'!$AY45=\"Yes\",'Enrollment Form'!$AY45=\"\"),\"-\",IF(OR(AND('Enrollment Form'!$AY45=\"No\",ISERROR(FIND(\"HMO\",VLOOKUP('Enrollment Form'!G45,'Enrollment Form'!H$11:J$1000,3,FALSE),1))=FALSE,COUNTA('Enrollment Form'!$AZ45:$BC45)=4),AND('Enrollment Form'!$AY45=\"No\",ISERROR(FIND(\"HMO\",VLOOKUP('Enrollment Form'!G45,'Enrollment Form'!H$11:J$1000,3,FALSE),1))=FALSE,COUNTA('Enrollment Form'!$BT45:$BW45)=4)),\"Y\",\"N\"))","v":"-"},{"$f":"IF($B38=\"N\",\"\",IF('Enrollment Form'!$B45=\"Subscriber\",\"-\",IF(COUNTA('Enrollment Form'!$BL45,'Enrollment Form'!$BN45)=2,\"Y\",\"N\")))","v":""},{"$f":"IF($B38=\"N\",\"\",IF(OR('Enrollment Form'!$AX45=\"\",'Enrollment Form'!$AX45=\"No\"),\"-\",IF(AND('Enrollment Form'!$AX45=\"Yes\",COUNTA('Enrollment Form'!$CR45)=1),\"Y\",\"N\")))","v":""},{"$f":"IF(OR('Enrollment Form'!$CR45=\"\",'Enrollment Form'!$CR45=\"No\"),\"-\",IF(COUNTA('Enrollment Form'!$CT45:$CU45)=2,\"Y\",\"N\"))","v":"-"},{"$f":"IF($B38=\"N\",\"\",IF(COUNTIF('Enrollment Form'!$DG45:$DP45,\"Other\")=COUNTA('Enrollment Form'!$DK45,'Enrollment Form'!$DH45,'Enrollment Form'!$DN45,'Enrollment Form'!$DQ45),\"Y\",\"N\"))","v":""},{"$f":"IF($B38=\"N\",\"\",IF(OR('Enrollment Form'!B45<>\"Subscriber\",'Enrollment Form'!C45=\"ROC\",COUNTIF('Enrollment Form'!AV45:AW45,\"Yes\")>=1),\"-\",IF(AND('Enrollment Form'!C45=\"Enroll\",COUNTIF('Enrollment Form'!AV45:AW45,\"No\")=2,'Enrollment Form'!AX45=\"\"),\"N\",\"Y\")))","v":""},{"$f":"IF(OR(B38=\"N\",'Enrollment Form'!B45<>\"Subscriber\",'Enrollment Form'!C45=\"ROC\",'Enrollment Form'!O45<>\"Multiple of Salary\"),\"-\",IF(COUNTA('Enrollment Form'!T45:U45)<2,\"N\",\"Y\"))","v":"-"},{"$f":"IF(B38=\"N\",\"\",IF(OR('Enrollment Form'!C45=\"ROC\",'Enrollment Form'!B45<>\"Subscriber\",'Enrollment Form'!O45=\"Waive\",'Enrollment Form'!O45=\"\"),\"-\",IF('Enrollment Form'!P45=\"\",\"N\",\"Y\")))","v":""},{"$f":"IF($B38=\"N\",\"\",IF(AND('Enrollment Form'!$C45=\"ROC\",'Enrollment Form'!$DR45<>\"\"),\"Y\",IF(AND('Enrollment Form'!$C45=\"ROC\",'Enrollment Form'!$DR45=\"\"),\"N\",IF(AND('Enrollment Form'!$C45=\"Enroll\",'Enrollment Form'!$B45=\"Subscriber\",'Enrollment Form'!$CX45=\"No\",'Enrollment Form'!$DR45=\"\"),\"N\",IF(AND('Enrollment Form'!$C45=\"Enroll\",'Enrollment Form'!$B45=\"Subscriber\",'Enrollment Form'!$CX45=\"Yes\"),\"-\",\"Y\")))))","v":""},{"$f":"IF($B38=\"N\",\"\",IF(AND('Enrollment Form'!$C45=\"ROC\",'Enrollment Form'!$DS45<>\"\"),\"Y\",IF(AND('Enrollment Form'!$C45=\"ROC\",'Enrollment Form'!$DS45=\"\"),\"N\",IF(AND('Enrollment Form'!$C45=\"Enroll\",'Enrollment Form'!$B45=\"Subscriber\",'Enrollment Form'!$CX45=\"No\",'Enrollment Form'!$DS45=\"\"),\"N\",IF(AND('Enrollment Form'!$C45=\"Enroll\",'Enrollment Form'!$B45=\"Subscriber\",'Enrollment Form'!$CX45=\"Yes\"),\"-\",\"Y\")))))","v":""},{"$f":"IF('Enrollment Form'!AH45=\"\",\"\",IF(ISERROR(SEARCH(\".\",'Enrollment Form'!AH45,SEARCH(\"@\",'Enrollment Form'!AH45))),\"N\",\"Y\"))","v":""},{"$f":"IF(OR($B38=\"N\",'Enrollment Form'!$G45=\"\"),\"\",IF('Enrollment Form'!$B45<>\"Subscriber\",\"-\",IF(COUNTIF('Enrollment Form'!$AV45:$AW45,\"Yes\")=2,\"N\",\"Y\")))","v":""},{"$f":"IF(OR('Enrollment Form'!$CJ45=\"\",'Enrollment Form'!$CJ45=\"No\"),\"-\",IF(AND('Enrollment Form'!$CJ45=\"Yes\",'Enrollment Form'!$CK45=\"\"),\"N\",\"Y\"))","v":"-"},{"$f":"IF(OR('Enrollment Form'!$CL45=\"\",'Enrollment Form'!$CL45=\"No\"),\"-\",IF(AND('Enrollment Form'!$CL45=\"Yes\",'Enrollment Form'!$CM45=\"\"),\"N\",\"Y\"))","v":"-"},{"$f":"IF(OR('Enrollment Form'!$CN45=\"\",'Enrollment Form'!$CN45=\"No\"),\"-\",IF(AND('Enrollment Form'!$CN45=\"Yes\",'Enrollment Form'!$CO45=\"\"),\"N\",\"Y\"))","v":"-"},{"$f":"IF(OR('Enrollment Form'!$CN45=\"\",'Enrollment Form'!$CN45=\"No\"),\"-\",IF(AND('Enrollment Form'!$CN45=\"Yes\",'Enrollment Form'!$CP45=\"\"),\"N\",\"Y\"))","v":"-"},{"$f":"IF('Enrollment Form'!B45<>\"Subscriber\",\"-\",IF(AND('Enrollment Form'!B45=\"Subscriber\",'Enrollment Form'!C45=\"Enroll\",'Enrollment Form'!AA45=\"\"),\"N\",\"Y\"))","v":"-"},{"$f":"IF(OR('Enrollment Form'!B45=\"Subscriber\",'Enrollment Form'!B45=\"\"),\"-\",IF('Enrollment Form'!BP45=\"\",\"N\",\"Y\"))","v":"-"},{"$f":"IF('Enrollment Form'!B45<>\"Subscriber\",\"-\",IF(AND('Enrollment Form'!B45=\"Subscriber\",'Enrollment Form'!G45=\"\"),\"N\",\"Y\"))","v":"-"},{"$f":"IF('Enrollment Form'!A45=\"\",\"\",IF('Enrollment Form'!B45=\"Subscriber\",\"-\",IF(AND('Enrollment Form'!B45<>\"Subscriber\",'Enrollment Form'!G45='Enrollment Form'!H45),\"N\",\"Y\")))","v":""},0,null,null,null,null,null,null,"35","Medicare type of dialysis filled?","If end stage renal disease, type of dialysis must be populated","CN,CP"]
[{"$f":"1+A38","v":46},{"$f":"IF('Enrollment Form'!$A46<>\"\",\"Y\",\"N\")","v":"N"},{"$f":"IF(AND('Enrollment Form'!$B46=\"\",'Enrollment Form'!$C46<>\"\"),\"N\",IF($B39=\"N\",\"\",\"Y\"))","v":""},{"$f":"IF(OR($B39=\"N\",'Enrollment Form'!G46=\"\"),\"\",IF('Enrollment Form'!$B46<>\"Subscriber\",\"\",IF('Enrollment Form'!$G46='Enrollment Form'!$H46,\"Y\",\"N\")))","v":""},{"$f":"IF($B39=\"N\",\"\",IF(AND(COUNTIFS('Enrollment Form'!$H$11:$H$1000,'Enrollment Form'!$H46,'Enrollment Form'!$B$11:$B$1000,'Enrollment Form'!$B46)>1,'Enrollment Form'!$H46<>\"\"),\"N\",\"Y\"))","v":""},{"$f":"IF($B39=\"N\",\"\",IF(LEN('Enrollment Form'!$Y46)=0,\"\",IF(LEN('Enrollment Form'!$Y46)<>5,\"N\",\"Y\")))","v":""},{"$f":"IF($B39=\"N\",\"\",IF(LEN('Enrollment Form'!$AD46=0),\"\",IF(LEN('Enrollment Form'!$AD46)<>5,\"N\",\"Y\")))","v":""},{"$f":"IF($B39=\"N\",\"\",IF(LEN('Enrollment Form'!$BS46=0),\"\",IF(LEN('Enrollment Form'!$BS46)<>5,\"N\",\"Y\")))","v":""},{"$f":"IF($B39=\"N\",\"\",IF(LEN('Enrollment Form'!$AE46)=0,\"\",IF(LEN('Enrollment Form'!$AE46)<>10,\"N\",\"Y\")))","v":""},{"$f":"IF($B39=\"N\",\"\",IF(LEN('Enrollment Form'!$AF46)=0,\"\",IF(LEN('Enrollment Form'!$AF46)<>10,\"N\",\"Y\")))","v":""},{"$f":"IF('Enrollment Form'!$O46<>\"Graded\",\"-\",IF(AND('Enrollment Form'!$O46=\"Graded\",'Enrollment Form'!$AR46<>\"\"),\"Y\",\"N\"))","v":"-"},{"$f":"IF($B39=\"N\",\"\",IF(OR('Enrollment Form'!$B46<>\"Subscriber\",'Enrollment Form'!$C46=\"ROC\"),\"-\",IF(AND('Enrollment Form'!$B46=\"Subscriber\",'Enrollment Form'!$C46=\"Enroll\",'Enrollment Form'!$AJ46<>\"\"),\"Y\",\"N\")))","v":""},{"$f":"IF($B39=\"N\",\"\",IF(OR('Enrollment Form'!$B46<>\"Subscriber\",'Enrollment Form'!$C46=\"ROC\"),\"-\",IF(AND('Enrollment Form'!$B46=\"Subscriber\",'Enrollment Form'!$C46=\"Enroll\",'Enrollment Form'!$AK46<>\"\"),\"Y\",\"N\")))","v":""},{"$f":"IF($B39=\"N\",\"\",IF(OR('Enrollment Form'!$B46<>\"Subscriber\",'Enrollment Form'!$C46=\"ROC\"),\"-\",IF(AND('Enrollment Form'!$B46=\"Subscriber\",'Enrollment Form'!$C46=\"Enroll\",'Enrollment Form'!$AL46<>\"\"),\"Y\",\"N\")))","v":""},{"$f":"IF($B39=\"N\",\"\",IF(OR('Enrollment Form'!$B46<>\"Subscriber\",'Enrollment Form'!$C46=\"ROC\"),\"-\",IF(AND('Enrollment Form'!$B46=\"Subscriber\",'Enrollment Form'!$C46=\"Enroll\",'Enrollment Form'!$AP46<>\"\"),\"Y\",\"N\")))","v":""},{"$f":"IF($B39=\"N\",\"\",IF(OR('Enrollment Form'!$B46<>\"Subscriber\",'Enrollment Form'!$C46=\"ROC\"),\"-\",IF(AND('Enrollment Form'!$B46=\"Subscriber\",'Enrollment Form'!$C46=\"Enroll\",'Enrollment Form'!$AQ46<>\"\"),\"Y\",\"N\")))","v":""},{"$f":"IF($B39=\"N\",\"\",IF(OR('Enrollment Form'!$B46<>\"Subscriber\",'Enrollment Form'!$C46=\"ROC\"),\"-\",IF(AND('Enrollment Form'!$B46=\"Subscriber\",'Enrollment Form'!$C46=\"Enroll\",'Enrollment Form'!$AS46<>\"\"),\"Y\",\"N\")))","v":""},{"$f":"IF($B39=\"N\",\"\",IF($Q39=\"-\",\"-\",IF(AND($Q39=\"Y\",'Enrollment Form'!$AS46=\"No\"),\"-\",IF(AND($Q39=\"Y\",'Enrollment Form'!$AS46=\"Yes\",'Enrollment Form'!$AT46<>\"\"),\"Y\",\"N\"))))","v":""},{"$f":"IF($B39=\"N\",\"\",IF(OR('Enrollment Form'!$B46<>\"Subscriber\",'Enrollment Form'!$C46=\"ROC\"),\"-\",IF(AND('Enrollment Form'!$B46=\"Subscriber\",'Enrollment Form'!$C46=\"Enroll\",'Enrollment Form'!$CV46<>\"\"),\"Y\",\"N\")))","v":""},{"$f":"IF($B39=\"N\",\"\",IF($S39=\"-\",\"-\",IF(AND($S39=\"Y\",'Enrollment Form'!$CV46=\"No\"),\"-\",IF(AND($S39=\"Y\",'Enrollment Form'!$CV46=\"Yes\",'Enrollment Form'!$CW46<>\"\"),\"Y\",\"N\"))))","v":""},{"$f":"IF(OR('Enrollment Form'!$AY46=\"Yes\",'Enrollment Form'!$AY46=\"\"),\"-\",IF(OR(AND('Enrollment Form'!$AY46=\"No\",ISERROR(FIND(\"HMO\",VLOOKUP('Enrollment Form'!G46,'Enrollment Form'!H$11:J$1000,3,FALSE),1))=FALSE,COUNTA('Enrollment Form'!$AZ46:$BC46)=4),AND('Enrollment Form'!$AY46=\"No\",ISERROR(FIND(\"HMO\",VLOOKUP('Enrollment Form'!G46,'Enrollment Form'!H$11:J$1000,3,FALSE),1))=FALSE,COUNTA('Enrollment Form'!$BT46:$BW46)=4)),\"Y\",\"N\"))","v":"-"},{"$f":"IF($B39=\"N\",\"\",IF('Enrollment Form'!$B46=\"Subscriber\",\"-\",IF(COUNTA('Enrollment Form'!$BL46,'Enrollment Form'!$BN46)=2,\"Y\",\"N\")))","v":""},{"$f":"IF($B39=\"N\",\"\",IF(OR('Enrollment Form'!$AX46=\"\",'Enrollment Form'!$AX46=\"No\"),\"-\",IF(AND('Enrollment Form'!$AX46=\"Yes\",COUNTA('Enrollment Form'!$CR46)=1),\"Y\",\"N\")))","v":""},{"$f":"IF(OR('Enrollment Form'!$CR46=\"\",'Enrollment Form'!$CR46=\"No\"),\"-\",IF(COUNTA('Enrollment Form'!$CT46:$CU46)=2,\"Y\",\"N\"))","v":"-"},{"$f":"IF($B39=\"N\",\"\",IF(COUNTIF('Enrollment Form'!$DG46:$DP46,\"Other\")=COUNTA('Enrollment Form'!$DK46,'Enrollment Form'!$DH46,'Enrollment Form'!$DN46,'Enrollment Form'!$DQ46),\"Y\",\"N\"))","v":""},{"$f":"IF($B39=\"N\",\"\",IF(OR('Enrollment Form'!B46<>\"Subscriber\",'Enrollment Form'!C46=\"ROC\",COUNTIF('Enrollment Form'!AV46:AW46,\"Yes\")>=1),\"-\",IF(AND('Enrollment Form'!C46=\"Enroll\",COUNTIF('Enrollment Form'!AV46:AW46,\"No\")=2,'Enrollment Form'!AX46=\"\"),\"N\",\"Y\")))","v":""},{"$f":"IF(OR(B39=\"N\",'Enrollment Form'!B46<>\"Subscriber\",'Enrollment Form'!C46=\"ROC\",'Enrollment Form'!O46<>\"Multiple of Salary\"),\"-\",IF(COUNTA('Enrollment Form'!T46:U46)<2,\"N\",\"Y\"))","v":"-"},{"$f":"IF(B39=\"N\",\"\",IF(OR('Enrollment Form'!C46=\"ROC\",'Enrollment Form'!B46<>\"Subscriber\",'Enrollment Form'!O46=\"Waive\",'Enrollment Form'!O46=\"\"),\"-\",IF('Enrollment Form'!P46=\"\",\"N\",\"Y\")))","v":""},{"$f":"IF($B39=\"N\",\"\",IF(AND('Enrollment Form'!$C46=\"ROC\",'Enrollment Form'!$DR46<>\"\"),\"Y\",IF(AND('Enrollment Form'!$C46=\"ROC\",'Enrollment Form'!$DR46=\"\"),\"N\",IF(AND('Enrollment Form'!$C46=\"Enroll\",'Enrollment Form'!$B46=\"Subscriber\",'Enrollment Form'!$CX46=\"No\",'Enrollment Form'!$DR46=\"\"),\"N\",IF(AND('Enrollment Form'!$C46=\"Enroll\",'Enrollment Form'!$B46=\"Subscriber\",'Enrollment Form'!$CX46=\"Yes\"),\"-\",\"Y\")))))","v":""},{"$f":"IF($B39=\"N\",\"\",IF(AND('Enrollment Form'!$C46=\"ROC\",'Enrollment Form'!$DS46<>\"\"),\"Y\",IF(AND('Enrollment Form'!$C46=\"ROC\",'Enrollment Form'!$DS46=\"\"),\"N\",IF(AND('Enrollment Form'!$C46=\"Enroll\",'Enrollment Form'!$B46=\"Subscriber\",'Enrollment Form'!$CX46=\"No\",'Enrollment Form'!$DS46=\"\"),\"N\",IF(AND('Enrollment Form'!$C46=\"Enroll\",'Enrollment Form'!$B46=\"Subscriber\",'Enrollment Form'!$CX46=\"Yes\"),\"-\",\"Y\")))))","v":""},{"$f":"IF('Enrollment Form'!AH46=\"\",\"\",IF(ISERROR(SEARCH(\".\",'Enrollment Form'!AH46,SEARCH(\"@\",'Enrollment Form'!AH46))),\"N\",\"Y\"))","v":""},{"$f":"IF(OR($B39=\"N\",'Enrollment Form'!$G46=\"\"),\"\",IF('Enrollment Form'!$B46<>\"Subscriber\",\"-\",IF(COUNTIF('Enrollment Form'!$AV46:$AW46,\"Yes\")=2,\"N\",\"Y\")))","v":""},{"$f":"IF(OR('Enrollment Form'!$CJ46=\"\",'Enrollment Form'!$CJ46=\"No\"),\"-\",IF(AND('Enrollment Form'!$CJ46=\"Yes\",'Enrollment Form'!$CK46=\"\"),\"N\",\"Y\"))","v":"-"},{"$f":"IF(OR('Enrollment Form'!$CL46=\"\",'Enrollment Form'!$CL46=\"No\"),\"-\",IF(AND('Enrollment Form'!$CL46=\"Yes\",'Enrollment Form'!$CM46=\"\"),\"N\",\"Y\"))","v":"-"},{"$f":"IF(OR('Enrollment Form'!$CN46=\"\",'Enrollment Form'!$CN46=\"No\"),\"-\",IF(AND('Enrollment Form'!$CN46=\"Yes\",'Enrollment Form'!$CO46=\"\"),\"N\",\"Y\"))","v":"-"},{"$f":"IF(OR('Enrollment Form'!$CN46=\"\",'Enrollment Form'!$CN46=\"No\"),\"-\",IF(AND('Enrollment Form'!$CN46=\"Yes\",'Enrollment Form'!$CP46=\"\"),\"N\",\"Y\"))","v":"-"},{"$f":"IF('Enrollment Form'!B46<>\"Subscriber\",\"-\",IF(AND('Enrollment Form'!B46=\"Subscriber\",'Enrollment Form'!C46=\"Enroll\",'Enrollment Form'!AA46=\"\"),\"N\",\"Y\"))","v":"-"},{"$f":"IF(OR('Enrollment Form'!B46=\"Subscriber\",'Enrollment Form'!B46=\"\"),\"-\",IF('Enrollment Form'!BP46=\"\",\"N\",\"Y\"))","v":"-"},{"$f":"IF('Enrollment Form'!B46<>\"Subscriber\",\"-\",IF(AND('Enrollment Form'!B46=\"Subscriber\",'Enrollment Form'!G46=\"\"),\"N\",\"Y\"))","v":"-"},{"$f":"IF('Enrollment Form'!A46=\"\",\"\",IF('Enrollment Form'!B46=\"Subscriber\",\"-\",IF(AND('Enrollment Form'!B46<>\"Subscriber\",'Enrollment Form'!G46='Enrollment Form'!H46),\"N\",\"Y\")))","v":""},0,null,null,null,null,null,null,"36","Sub Mailing Address filled?","If Applicant Type is Subscriber, then Subscriber Mailing Address must be populated","B,Z-AA"]
[47,{"$f":"IF('Enrollment Form'!$A47<>\"\",\"Y\",\"N\")","v":"N"},{"$f":"IF(AND('Enrollment Form'!$B47=\"\",'Enrollment Form'!$C47<>\"\"),\"N\",IF($B40=\"N\",\"\",\"Y\"))","v":""},{"$f":"IF(OR($B40=\"N\",'Enrollment Form'!G47=\"\"),\"\",IF('Enrollment Form'!$B47<>\"Subscriber\",\"\",IF('Enrollment Form'!$G47='Enrollment Form'!$H47,\"Y\",\"N\")))","v":""},{"$f":"IF($B40=\"N\",\"\",IF(AND(COUNTIFS('Enrollment Form'!$H$11:$H$1000,'Enrollment Form'!$H47,'Enrollment Form'!$B$11:$B$1000,'Enrollment Form'!$B47)>1,'Enrollment Form'!$H47<>\"\"),\"N\",\"Y\"))","v":""},{"$f":"IF($B40=\"N\",\"\",IF(LEN('Enrollment Form'!$Y47)=0,\"\",IF(LEN('Enrollment Form'!$Y47)<>5,\"N\",\"Y\")))","v":""},{"$f":"IF($B40=\"N\",\"\",IF(LEN('Enrollment Form'!$AD47=0),\"\",IF(LEN('Enrollment Form'!$AD47)<>5,\"N\",\"Y\")))","v":""},{"$f":"IF($B40=\"N\",\"\",IF(LEN('Enrollment Form'!$BS47=0),\"\",IF(LEN('Enrollment Form'!$BS47)<>5,\"N\",\"Y\")))","v":""},{"$f":"IF($B40=\"N\",\"\",IF(LEN('Enrollment Form'!$AE47)=0,\"\",IF(LEN('Enrollment Form'!$AE47)<>10,\"N\",\"Y\")))","v":""},{"$f":"IF($B40=\"N\",\"\",IF(LEN('Enrollment Form'!$AF47)=0,\"\",IF(LEN('Enrollment Form'!$AF47)<>10,\"N\",\"Y\")))","v":""},{"$f":"IF('Enrollment Form'!$O47<>\"Graded\",\"-\",IF(AND('Enrollment Form'!$O47=\"Graded\",'Enrollment Form'!$AR47<>\"\"),\"Y\",\"N\"))","v":"-"},{"$f":"IF($B40=\"N\",\"\",IF(OR('Enrollment Form'!$B47<>\"Subscriber\",'Enrollment Form'!$C47=\"ROC\"),\"-\",IF(AND('Enrollment Form'!$B47=\"Subscriber\",'Enrollment Form'!$C47=\"Enroll\",'Enrollment Form'!$AJ47<>\"\"),\"Y\",\"N\")))","v":""},{"$f":"IF($B40=\"N\",\"\",IF(OR('Enrollment Form'!$B47<>\"Subscriber\",'Enrollment Form'!$C47=\"ROC\"),\"-\",IF(AND('Enrollment Form'!$B47=\"Subscriber\",'Enrollment Form'!$C47=\"Enroll\",'Enrollment Form'!$AK47<>\"\"),\"Y\",\"N\")))","v":""},{"$f":"IF($B40=\"N\",\"\",IF(OR('Enrollment Form'!$B47<>\"Subscriber\",'Enrollment Form'!$C47=\"ROC\"),\"-\",IF(AND('Enrollment Form'!$B47=\"Subscriber\",'Enrollment Form'!$C47=\"Enroll\",'Enrollment Form'!$AL47<>\"\"),\"Y\",\"N\")))","v":""},{"$f":"IF($B40=\"N\",\"\",IF(OR('Enrollment Form'!$B47<>\"Subscriber\",'Enrollment Form'!$C47=\"ROC\"),\"-\",IF(AND('Enrollment Form'!$B47=\"Subscriber\",'Enrollment Form'!$C47=\"Enroll\",'Enrollment Form'!$AP47<>\"\"),\"Y\",\"N\")))","v":""},{"$f":"IF($B40=\"N\",\"\",IF(OR('Enrollment Form'!$B47<>\"Subscriber\",'Enrollment Form'!$C47=\"ROC\"),\"-\",IF(AND('Enrollment Form'!$B47=\"Subscriber\",'Enrollment Form'!$C47=\"Enroll\",'Enrollment Form'!$AQ47<>\"\"),\"Y\",\"N\")))","v":""},{"$f":"IF($B40=\"N\",\"\",IF(OR('Enrollment Form'!$B47<>\"Subscriber\",'Enrollment Form'!$C47=\"ROC\"),\"-\",IF(AND('Enrollment Form'!$B47=\"Subscriber\",'Enrollment Form'!$C47=\"Enroll\",'Enrollment Form'!$AS47<>\"\"),\"Y\",\"N\")))","v":""},{"$f":"IF($B40=\"N\",\"\",IF($Q40=\"-\",\"-\",IF(AND($Q40=\"Y\",'Enrollment Form'!$AS47=\"No\"),\"-\",IF(AND($Q40=\"Y\",'Enrollment Form'!$AS47=\"Yes\",'Enrollment Form'!$AT47<>\"\"),\"Y\",\"N\"))))","v":""},{"$f":"IF($B40=\"N\",\"\",IF(OR('Enrollment Form'!$B47<>\"Subscriber\",'Enrollment Form'!$C47=\"ROC\"),\"-\",IF(AND('Enrollment Form'!$B47=\"Subscriber\",'Enrollment Form'!$C47=\"Enroll\",'Enrollment Form'!$CV47<>\"\"),\"Y\",\"N\")))","v":""},{"$f":"IF($B40=\"N\",\"\",IF($S40=\"-\",\"-\",IF(AND($S40=\"Y\",'Enrollment Form'!$CV47=\"No\"),\"-\",IF(AND($S40=\"Y\",'Enrollment Form'!$CV47=\"Yes\",'Enrollment Form'!$CW47<>\"\"),\"Y\",\"N\"))))","v":""},{"$f":"IF(OR('Enrollment Form'!$AY47=\"Yes\",'Enrollment Form'!$AY47=\"\"),\"-\",IF(OR(AND('Enrollment Form'!$AY47=\"No\",ISERROR(FIND(\"HMO\",VLOOKUP('Enrollment Form'!G47,'Enrollment Form'!H$11:J$1000,3,FALSE),1))=FALSE,COUNTA('Enrollment Form'!$AZ47:$BC47)=4),AND('Enrollment Form'!$AY47=\"No\",ISERROR(FIND(\"HMO\",VLOOKUP('Enrollment Form'!G47,'Enrollment Form'!H$11:J$1000,3,FALSE),1))=FALSE,COUNTA('Enrollment Form'!$BT47:$BW47)=4)),\"Y\",\"N\"))","v":"-"},{"$f":"IF($B40=\"N\",\"\",IF('Enrollment Form'!$B47=\"Subscriber\",\"-\",IF(COUNTA('Enrollment Form'!$BL47,'Enrollment Form'!$BN47)=2,\"Y\",\"N\")))","v":""},{"$f":"IF($B40=\"N\",\"\",IF(OR('Enrollment Form'!$AX47=\"\",'Enrollment Form'!$AX47=\"No\"),\"-\",IF(AND('Enrollment Form'!$AX47=\"Yes\",COUNTA('Enrollment Form'!$CR47)=1),\"Y\",\"N\")))","v":""},{"$f":"IF(OR('Enrollment Form'!$CR47=\"\",'Enrollment Form'!$CR47=\"No\"),\"-\",IF(COUNTA('Enrollment Form'!$CT47:$CU47)=2,\"Y\",\"N\"))","v":"-"},{"$f":"IF($B40=\"N\",\"\",IF(COUNTIF('Enrollment Form'!$DG47:$DP47,\"Other\")=COUNTA('Enrollment Form'!$DK47,'Enrollment Form'!$DH47,'Enrollment Form'!$DN47,'Enrollment Form'!$DQ47),\"Y\",\"N\"))","v":""},{"$f":"IF($B40=\"N\",\"\",IF(OR('Enrollment Form'!B47<>\"Subscriber\",'Enrollment Form'!C47=\"ROC\",COUNTIF('Enrollment Form'!AV47:AW47,\"Yes\")>=1),\"-\",IF(AND('Enrollment Form'!C47=\"Enroll\",COUNTIF('Enrollment Form'!AV47:AW47,\"No\")=2,'Enrollment Form'!AX47=\"\"),\"N\",\"Y\")))","v":""},{"$f":"IF(OR(B40=\"N\",'Enrollment Form'!B47<>\"Subscriber\",'Enrollment Form'!C47=\"ROC\",'Enrollment Form'!O47<>\"Multiple of Salary\"),\"-\",IF(COUNTA('Enrollment Form'!T47:U47)<2,\"N\",\"Y\"))","v":"-"},{"$f":"IF(B40=\"N\",\"\",IF(OR('Enrollment Form'!C47=\"ROC\",'Enrollment Form'!B47<>\"Subscriber\",'Enrollment Form'!O47=\"Waive\",'Enrollment Form'!O47=\"\"),\"-\",IF('Enrollment Form'!P47=\"\",\"N\",\"Y\")))","v":""},{"$f":"IF($B40=\"N\",\"\",IF(AND('Enrollment Form'!$C47=\"ROC\",'Enrollment Form'!$DR47<>\"\"),\"Y\",IF(AND('Enrollment Form'!$C47=\"ROC\",'Enrollment Form'!$DR47=\"\"),\"N\",IF(AND('Enrollment Form'!$C47=\"Enroll\",'Enrollment Form'!$B47=\"Subscriber\",'Enrollment Form'!$CX47=\"No\",'Enrollment Form'!$DR47=\"\"),\"N\",IF(AND('Enrollment Form'!$C47=\"Enroll\",'Enrollment Form'!$B47=\"Subscriber\",'Enrollment Form'!$CX47=\"Yes\"),\"-\",\"Y\")))))","v":""},{"$f":"IF($B40=\"N\",\"\",IF(AND('Enrollment Form'!$C47=\"ROC\",'Enrollment Form'!$DS47<>\"\"),\"Y\",IF(AND('Enrollment Form'!$C47=\"ROC\",'Enrollment Form'!$DS47=\"\"),\"N\",IF(AND('Enrollment Form'!$C47=\"Enroll\",'Enrollment Form'!$B47=\"Subscriber\",'Enrollment Form'!$CX47=\"No\",'Enrollment Form'!$DS47=\"\"),\"N\",IF(AND('Enrollment Form'!$C47=\"Enroll\",'Enrollment Form'!$B47=\"Subscriber\",'Enrollment Form'!$CX47=\"Yes\"),\"-\",\"Y\")))))","v":""},{"$f":"IF('Enrollment Form'!AH47=\"\",\"\",IF(ISERROR(SEARCH(\".\",'Enrollment Form'!AH47,SEARCH(\"@\",'Enrollment Form'!AH47))),\"N\",\"Y\"))","v":""},{"$f":"IF(OR($B40=\"N\",'Enrollment Form'!$G47=\"\"),\"\",IF('Enrollment Form'!$B47<>\"Subscriber\",\"-\",IF(COUNTIF('Enrollment Form'!$AV47:$AW47,\"Yes\")=2,\"N\",\"Y\")))","v":""},{"$f":"IF(OR('Enrollment Form'!$CJ47=\"\",'Enrollment Form'!$CJ47=\"No\"),\"-\",IF(AND('Enrollment Form'!$CJ47=\"Yes\",'Enrollment Form'!$CK47=\"\"),\"N\",\"Y\"))","v":"-"},{"$f":"IF(OR('Enrollment Form'!$CL47=\"\",'Enrollment Form'!$CL47=\"No\"),\"-\",IF(AND('Enrollment Form'!$CL47=\"Yes\",'Enrollment Form'!$CM47=\"\"),\"N\",\"Y\"))","v":"-"},{"$f":"IF(OR('Enrollment Form'!$CN47=\"\",'Enrollment Form'!$CN47=\"No\"),\"-\",IF(AND('Enrollment Form'!$CN47=\"Yes\",'Enrollment Form'!$CO47=\"\"),\"N\",\"Y\"))","v":"-"},{"$f":"IF(OR('Enrollment Form'!$CN47=\"\",'Enrollment Form'!$CN47=\"No\"),\"-\",IF(AND('Enrollment Form'!$CN47=\"Yes\",'Enrollment Form'!$CP47=\"\"),\"N\",\"Y\"))","v":"-"},{"$f":"IF('Enrollment Form'!B47<>\"Subscriber\",\"-\",IF(AND('Enrollment Form'!B47=\"Subscriber\",'Enrollment Form'!C47=\"Enroll\",'Enrollment Form'!AA47=\"\"),\"N\",\"Y\"))","v":"-"},{"$f":"IF(OR('Enrollment Form'!B47=\"Subscriber\",'Enrollment Form'!B47=\"\"),\"-\",IF('Enrollment Form'!BP47=\"\",\"N\",\"Y\"))","v":"-"},{"$f":"IF('Enrollment Form'!B47<>\"Subscriber\",\"-\",IF(AND('Enrollment Form'!B47=\"Subscriber\",'Enrollment Form'!G47=\"\"),\"N\",\"Y\"))","v":"-"},{"$f":"IF('Enrollment Form'!A47=\"\",\"\",IF('Enrollment Form'!B47=\"Subscriber\",\"-\",IF(AND('Enrollment Form'!B47<>\"Subscriber\",'Enrollment Form'!G47='Enrollment Form'!H47),\"N\",\"Y\")))","v":""},0,null,null,null,null,null,null,"37","Dependent Address filled?","If Applicant Type is a dependent, then Dependent Address must be populated","B,BO-BP"]
[48,{"$f":"IF('Enrollment Form'!$A48<>\"\",\"Y\",\"N\")","v":"N"},{"$f":"IF(AND('Enrollment Form'!$B48=\"\",'Enrollment Form'!$C48<>\"\"),\"N\",IF($B41=\"N\",\"\",\"Y\"))","v":""},{"$f":"IF(OR($B41=\"N\",'Enrollment Form'!G48=\"\"),\"\",IF('Enrollment Form'!$B48<>\"Subscriber\",\"\",IF('Enrollment Form'!$G48='Enrollment Form'!$H48,\"Y\",\"N\")))","v":""},{"$f":"IF($B41=\"N\",\"\",IF(AND(COUNTIFS('Enrollment Form'!$H$11:$H$1000,'Enrollment Form'!$H48,'Enrollment Form'!$B$11:$B$1000,'Enrollment Form'!$B48)>1,'Enrollment Form'!$H48<>\"\"),\"N\",\"Y\"))","v":""},{"$f":"IF($B41=\"N\",\"\",IF(LEN('Enrollment Form'!$Y48)=0,\"\",IF(LEN('Enrollment Form'!$Y48)<>5,\"N\",\"Y\")))","v":""},{"$f":"IF($B41=\"N\",\"\",IF(LEN('Enrollment Form'!$AD48=0),\"\",IF(LEN('Enrollment Form'!$AD48)<>5,\"N\",\"Y\")))","v":""},{"$f":"IF($B41=\"N\",\"\",IF(LEN('Enrollment Form'!$BS48=0),\"\",IF(LEN('Enrollment Form'!$BS48)<>5,\"N\",\"Y\")))","v":""},{"$f":"IF($B41=\"N\",\"\",IF(LEN('Enrollment Form'!$AE48)=0,\"\",IF(LEN('Enrollment Form'!$AE48)<>10,\"N\",\"Y\")))","v":""},{"$f":"IF($B41=\"N\",\"\",IF(LEN('Enrollment Form'!$AF48)=0,\"\",IF(LEN('Enrollment Form'!$AF48)<>10,\"N\",\"Y\")))","v":""},{"$f":"IF('Enrollment Form'!$O48<>\"Graded\",\"-\",IF(AND('Enrollment Form'!$O48=\"Graded\",'Enrollment Form'!$AR48<>\"\"),\"Y\",\"N\"))","v":"-"},{"$f":"IF($B41=\"N\",\"\",IF(OR('Enrollment Form'!$B48<>\"Subscriber\",'Enrollment Form'!$C48=\"ROC\"),\"-\",IF(AND('Enrollment Form'!$B48=\"Subscriber\",'Enrollment Form'!$C48=\"Enroll\",'Enrollment Form'!$AJ48<>\"\"),\"Y\",\"N\")))","v":""},{"$f":"IF($B41=\"N\",\"\",IF(OR('Enrollment Form'!$B48<>\"Subscriber\",'Enrollment Form'!$C48=\"ROC\"),\"-\",IF(AND('Enrollment Form'!$B48=\"Subscriber\",'Enrollment Form'!$C48=\"Enroll\",'Enrollment Form'!$AK48<>\"\"),\"Y\",\"N\")))","v":""},{"$f":"IF($B41=\"N\",\"\",IF(OR('Enrollment Form'!$B48<>\"Subscriber\",'Enrollment Form'!$C48=\"ROC\"),\"-\",IF(AND('Enrollment Form'!$B48=\"Subscriber\",'Enrollment Form'!$C48=\"Enroll\",'Enrollment Form'!$AL48<>\"\"),\"Y\",\"N\")))","v":""},{"$f":"IF($B41=\"N\",\"\",IF(OR('Enrollment Form'!$B48<>\"Subscriber\",'Enrollment Form'!$C48=\"ROC\"),\"-\",IF(AND('Enrollment Form'!$B48=\"Subscriber\",'Enrollment Form'!$C48=\"Enroll\",'Enrollment Form'!$AP48<>\"\"),\"Y\",\"N\")))","v":""},{"$f":"IF($B41=\"N\",\"\",IF(OR('Enrollment Form'!$B48<>\"Subscriber\",'Enrollment Form'!$C48=\"ROC\"),\"-\",IF(AND('Enrollment Form'!$B48=\"Subscriber\",'Enrollment Form'!$C48=\"Enroll\",'Enrollment Form'!$AQ48<>\"\"),\"Y\",\"N\")))","v":""},{"$f":"IF($B41=\"N\",\"\",IF(OR('Enrollment Form'!$B48<>\"Subscriber\",'Enrollment Form'!$C48=\"ROC\"),\"-\",IF(AND('Enrollment Form'!$B48=\"Subscriber\",'Enrollment Form'!$C48=\"Enroll\",'Enrollment Form'!$AS48<>\"\"),\"Y\",\"N\")))","v":""},{"$f":"IF($B41=\"N\",\"\",IF($Q41=\"-\",\"-\",IF(AND($Q41=\"Y\",'Enrollment Form'!$AS48=\"No\"),\"-\",IF(AND($Q41=\"Y\",'Enrollment Form'!$AS48=\"Yes\",'Enrollment Form'!$AT48<>\"\"),\"Y\",\"N\"))))","v":""},{"$f":"IF($B41=\"N\",\"\",IF(OR('Enrollment Form'!$B48<>\"Subscriber\",'Enrollment Form'!$C48=\"ROC\"),\"-\",IF(AND('Enrollment Form'!$B48=\"Subscriber\",'Enrollment Form'!$C48=\"Enroll\",'Enrollment Form'!$CV48<>\"\"),\"Y\",\"N\")))","v":""},{"$f":"IF($B41=\"N\",\"\",IF($S41=\"-\",\"-\",IF(AND($S41=\"Y\",'Enrollment Form'!$CV48=\"No\"),\"-\",IF(AND($S41=\"Y\",'Enrollment Form'!$CV48=\"Yes\",'Enrollment Form'!$CW48<>\"\"),\"Y\",\"N\"))))","v":""},{"$f":"IF(OR('Enrollment Form'!$AY48=\"Yes\",'Enrollment Form'!$AY48=\"\"),\"-\",IF(OR(AND('Enrollment Form'!$AY48=\"No\",ISERROR(FIND(\"HMO\",VLOOKUP('Enrollment Form'!G48,'Enrollment Form'!H$11:J$1000,3,FALSE),1))=FALSE,COUNTA('Enrollment Form'!$AZ48:$BC48)=4),AND('Enrollment Form'!$AY48=\"No\",ISERROR(FIND(\"HMO\",VLOOKUP('Enrollment Form'!G48,'Enrollment Form'!H$11:J$1000,3,FALSE),1))=FALSE,COUNTA('Enrollment Form'!$BT48:$BW48)=4)),\"Y\",\"N\"))","v":"-"},{"$f":"IF($B41=\"N\",\"\",IF('Enrollment Form'!$B48=\"Subscriber\",\"-\",IF(COUNTA('Enrollment Form'!$BL48,'Enrollment Form'!$BN48)=2,\"Y\",\"N\")))","v":""},{"$f":"IF($B41=\"N\",\"\",IF(OR('Enrollment Form'!$AX48=\"\",'Enrollment Form'!$AX48=\"No\"),\"-\",IF(AND('Enrollment Form'!$AX48=\"Yes\",COUNTA('Enrollment Form'!$CR48)=1),\"Y\",\"N\")))","v":""},{"$f":"IF(OR('Enrollment Form'!$CR48=\"\",'Enrollment Form'!$CR48=\"No\"),\"-\",IF(COUNTA('Enrollment Form'!$CT48:$CU48)=2,\"Y\",\"N\"))","v":"-"},{"$f":"IF($B41=\"N\",\"\",IF(COUNTIF('Enrollment Form'!$DG48:$DP48,\"Other\")=COUNTA('Enrollment Form'!$DK48,'Enrollment Form'!$DH48,'Enrollment Form'!$DN48,'Enrollment Form'!$DQ48),\"Y\",\"N\"))","v":""},{"$f":"IF($B41=\"N\",\"\",IF(OR('Enrollment Form'!B48<>\"Subscriber\",'Enrollment Form'!C48=\"ROC\",COUNTIF('Enrollment Form'!AV48:AW48,\"Yes\")>=1),\"-\",IF(AND('Enrollment Form'!C48=\"Enroll\",COUNTIF('Enrollment Form'!AV48:AW48,\"No\")=2,'Enrollment Form'!AX48=\"\"),\"N\",\"Y\")))","v":""},{"$f":"IF(OR(B41=\"N\",'Enrollment Form'!B48<>\"Subscriber\",'Enrollment Form'!C48=\"ROC\",'Enrollment Form'!O48<>\"Multiple of Salary\"),\"-\",IF(COUNTA('Enrollment Form'!T48:U48)<2,\"N\",\"Y\"))","v":"-"},{"$f":"IF(B41=\"N\",\"\",IF(OR('Enrollment Form'!C48=\"ROC\",'Enrollment Form'!B48<>\"Subscriber\",'Enrollment Form'!O48=\"Waive\",'Enrollment Form'!O48=\"\"),\"-\",IF('Enrollment Form'!P48=\"\",\"N\",\"Y\")))","v":""},{"$f":"IF($B41=\"N\",\"\",IF(AND('Enrollment Form'!$C48=\"ROC\",'Enrollment Form'!$DR48<>\"\"),\"Y\",IF(AND('Enrollment Form'!$C48=\"ROC\",'Enrollment Form'!$DR48=\"\"),\"N\",IF(AND('Enrollment Form'!$C48=\"Enroll\",'Enrollment Form'!$B48=\"Subscriber\",'Enrollment Form'!$CX48=\"No\",'Enrollment Form'!$DR48=\"\"),\"N\",IF(AND('Enrollment Form'!$C48=\"Enroll\",'Enrollment Form'!$B48=\"Subscriber\",'Enrollment Form'!$CX48=\"Yes\"),\"-\",\"Y\")))))","v":""},{"$f":"IF($B41=\"N\",\"\",IF(AND('Enrollment Form'!$C48=\"ROC\",'Enrollment Form'!$DS48<>\"\"),\"Y\",IF(AND('Enrollment Form'!$C48=\"ROC\",'Enrollment Form'!$DS48=\"\"),\"N\",IF(AND('Enrollment Form'!$C48=\"Enroll\",'Enrollment Form'!$B48=\"Subscriber\",'Enrollment Form'!$CX48=\"No\",'Enrollment Form'!$DS48=\"\"),\"N\",IF(AND('Enrollment Form'!$C48=\"Enroll\",'Enrollment Form'!$B48=\"Subscriber\",'Enrollment Form'!$CX48=\"Yes\"),\"-\",\"Y\")))))","v":""},{"$f":"IF('Enrollment Form'!AH48=\"\",\"\",IF(ISERROR(SEARCH(\".\",'Enrollment Form'!AH48,SEARCH(\"@\",'Enrollment Form'!AH48))),\"N\",\"Y\"))","v":""},{"$f":"IF(OR($B41=\"N\",'Enrollment Form'!$G48=\"\"),\"\",IF('Enrollment Form'!$B48<>\"Subscriber\",\"-\",IF(COUNTIF('Enrollment Form'!$AV48:$AW48,\"Yes\")=2,\"N\",\"Y\")))","v":""},{"$f":"IF(OR('Enrollment Form'!$CJ48=\"\",'Enrollment Form'!$CJ48=\"No\"),\"-\",IF(AND('Enrollment Form'!$CJ48=\"Yes\",'Enrollment Form'!$CK48=\"\"),\"N\",\"Y\"))","v":"-"},{"$f":"IF(OR('Enrollment Form'!$CL48=\"\",'Enrollment Form'!$CL48=\"No\"),\"-\",IF(AND('Enrollment Form'!$CL48=\"Yes\",'Enrollment Form'!$CM48=\"\"),\"N\",\"Y\"))","v":"-"},{"$f":"IF(OR('Enrollment Form'!$CN48=\"\",'Enrollment Form'!$CN48=\"No\"),\"-\",IF(AND('Enrollment Form'!$CN48=\"Yes\",'Enrollment Form'!$CO48=\"\"),\"N\",\"Y\"))","v":"-"},{"$f":"IF(OR('Enrollment Form'!$CN48=\"\",'Enrollment Form'!$CN48=\"No\"),\"-\",IF(AND('Enrollment Form'!$CN48=\"Yes\",'Enrollment Form'!$CP48=\"\"),\"N\",\"Y\"))","v":"-"},{"$f":"IF('Enrollment Form'!B48<>\"Subscriber\",\"-\",IF(AND('Enrollment Form'!B48=\"Subscriber\",'Enrollment Form'!C48=\"Enroll\",'Enrollment Form'!AA48=\"\"),\"N\",\"Y\"))","v":"-"},{"$f":"IF(OR('Enrollment Form'!B48=\"Subscriber\",'Enrollment Form'!B48=\"\"),\"-\",IF('Enrollment Form'!BP48=\"\",\"N\",\"Y\"))","v":"-"},{"$f":"IF('Enrollment Form'!B48<>\"Subscriber\",\"-\",IF(AND('Enrollment Form'!B48=\"Subscriber\",'Enrollment Form'!G48=\"\"),\"N\",\"Y\"))","v":"-"},{"$f":"IF('Enrollment Form'!A48=\"\",\"\",IF('Enrollment Form'!B48=\"Subscriber\",\"-\",IF(AND('Enrollment Form'!B48<>\"Subscriber\",'Enrollment Form'!G48='Enrollment Form'!H48),\"N\",\"Y\")))","v":""},0,null,null,null,null,null,null,"38","SSN populated for Subscriber?","If Applicant Type is Subscriber, then Subscriber SSN must be populated","B,G"]
[49,{"$f":"IF('Enrollment Form'!$A49<>\"\",\"Y\",\"N\")","v":"N"},{"$f":"IF(AND('Enrollment Form'!$B49=\"\",'Enrollment Form'!$C49<>\"\"),\"N\",IF($B42=\"N\",\"\",\"Y\"))","v":""},{"$f":"IF(OR($B42=\"N\",'Enrollment Form'!G49=\"\"),\"\",IF('Enrollment Form'!$B49<>\"Subscriber\",\"\",IF('Enrollment Form'!$G49='Enrollment Form'!$H49,\"Y\",\"N\")))","v":""},{"$f":"IF($B42=\"N\",\"\",IF(AND(COUNTIFS('Enrollment Form'!$H$11:$H$1000,'Enrollment Form'!$H49,'Enrollment Form'!$B$11:$B$1000,'Enrollment Form'!$B49)>1,'Enrollment Form'!$H49<>\"\"),\"N\",\"Y\"))","v":""},{"$f":"IF($B42=\"N\",\"\",IF(LEN('Enrollment Form'!$Y49)=0,\"\",IF(LEN('Enrollment Form'!$Y49)<>5,\"N\",\"Y\")))","v":""},{"$f":"IF($B42=\"N\",\"\",IF(LEN('Enrollment Form'!$AD49=0),\"\",IF(LEN('Enrollment Form'!$AD49)<>5,\"N\",\"Y\")))","v":""},{"$f":"IF($B42=\"N\",\"\",IF(LEN('Enrollment Form'!$BS49=0),\"\",IF(LEN('Enrollment Form'!$BS49)<>5,\"N\",\"Y\")))","v":""},{"$f":"IF($B42=\"N\",\"\",IF(LEN('Enrollment Form'!$AE49)=0,\"\",IF(LEN('Enrollment Form'!$AE49)<>10,\"N\",\"Y\")))","v":""},{"$f":"IF($B42=\"N\",\"\",IF(LEN('Enrollment Form'!$AF49)=0,\"\",IF(LEN('Enrollment Form'!$AF49)<>10,\"N\",\"Y\")))","v":""},{"$f":"IF('Enrollment Form'!$O49<>\"Graded\",\"-\",IF(AND('Enrollment Form'!$O49=\"Graded\",'Enrollment Form'!$AR49<>\"\"),\"Y\",\"N\"))","v":"-"},{"$f":"IF($B42=\"N\",\"\",IF(OR('Enrollment Form'!$B49<>\"Subscriber\",'Enrollment Form'!$C49=\"ROC\"),\"-\",IF(AND('Enrollment Form'!$B49=\"Subscriber\",'Enrollment Form'!$C49=\"Enroll\",'Enrollment Form'!$AJ49<>\"\"),\"Y\",\"N\")))","v":""},{"$f":"IF($B42=\"N\",\"\",IF(OR('Enrollment Form'!$B49<>\"Subscriber\",'Enrollment Form'!$C49=\"ROC\"),\"-\",IF(AND('Enrollment Form'!$B49=\"Subscriber\",'Enrollment Form'!$C49=\"Enroll\",'Enrollment Form'!$AK49<>\"\"),\"Y\",\"N\")))","v":""},{"$f":"IF($B42=\"N\",\"\",IF(OR('Enrollment Form'!$B49<>\"Subscriber\",'Enrollment Form'!$C49=\"ROC\"),\"-\",IF(AND('Enrollment Form'!$B49=\"Subscriber\",'Enrollment Form'!$C49=\"Enroll\",'Enrollment Form'!$AL49<>\"\"),\"Y\",\"N\")))","v":""},{"$f":"IF($B42=\"N\",\"\",IF(OR('Enrollment Form'!$B49<>\"Subscriber\",'Enrollment Form'!$C49=\"ROC\"),\"-\",IF(AND('Enrollment Form'!$B49=\"Subscriber\",'Enrollment Form'!$C49=\"Enroll\",'Enrollment Form'!$AP49<>\"\"),\"Y\",\"N\")))","v":""},{"$f":"IF($B42=\"N\",\"\",IF(OR('Enrollment Form'!$B49<>\"Subscriber\",'Enrollment Form'!$C49=\"ROC\"),\"-\",IF(AND('Enrollment Form'!$B49=\"Subscriber\",'Enrollment Form'!$C49=\"Enroll\",'Enrollment Form'!$AQ49<>\"\"),\"Y\",\"N\")))","v":""},{"$f":"IF($B42=\"N\",\"\",IF(OR('Enrollment Form'!$B49<>\"Subscriber\",'Enrollment Form'!$C49=\"ROC\"),\"-\",IF(AND('Enrollment Form'!$B49=\"Subscriber\",'Enrollment Form'!$C49=\"Enroll\",'Enrollment Form'!$AS49<>\"\"),\"Y\",\"N\")))","v":""},{"$f":"IF($B42=\"N\",\"\",IF($Q42=\"-\",\"-\",IF(AND($Q42=\"Y\",'Enrollment Form'!$AS49=\"No\"),\"-\",IF(AND($Q42=\"Y\",'Enrollment Form'!$AS49=\"Yes\",'Enrollment Form'!$AT49<>\"\"),\"Y\",\"N\"))))","v":""},{"$f":"IF($B42=\"N\",\"\",IF(OR('Enrollment Form'!$B49<>\"Subscriber\",'Enrollment Form'!$C49=\"ROC\"),\"-\",IF(AND('Enrollment Form'!$B49=\"Subscriber\",'Enrollment Form'!$C49=\"Enroll\",'Enrollment Form'!$CV49<>\"\"),\"Y\",\"N\")))","v":""},{"$f":"IF($B42=\"N\",\"\",IF($S42=\"-\",\"-\",IF(AND($S42=\"Y\",'Enrollment Form'!$CV49=\"No\"),\"-\",IF(AND($S42=\"Y\",'Enrollment Form'!$CV49=\"Yes\",'Enrollment Form'!$CW49<>\"\"),\"Y\",\"N\"))))","v":""},{"$f":"IF(OR('Enrollment Form'!$AY49=\"Yes\",'Enrollment Form'!$AY49=\"\"),\"-\",IF(OR(AND('Enrollment Form'!$AY49=\"No\",ISERROR(FIND(\"HMO\",VLOOKUP('Enrollment Form'!G49,'Enrollment Form'!H$11:J$1000,3,FALSE),1))=FALSE,COUNTA('Enrollment Form'!$AZ49:$BC49)=4),AND('Enrollment Form'!$AY49=\"No\",ISERROR(FIND(\"HMO\",VLOOKUP('Enrollment Form'!G49,'Enrollment Form'!H$11:J$1000,3,FALSE),1))=FALSE,COUNTA('Enrollment Form'!$BT49:$BW49)=4)),\"Y\",\"N\"))","v":"-"},{"$f":"IF($B42=\"N\",\"\",IF('Enrollment Form'!$B49=\"Subscriber\",\"-\",IF(COUNTA('Enrollment Form'!$BL49,'Enrollment Form'!$BN49)=2,\"Y\",\"N\")))","v":""},{"$f":"IF($B42=\"N\",\"\",IF(OR('Enrollment Form'!$AX49=\"\",'Enrollment Form'!$AX49=\"No\"),\"-\",IF(AND('Enrollment Form'!$AX49=\"Yes\",COUNTA('Enrollment Form'!$CR49)=1),\"Y\",\"N\")))","v":""},{"$f":"IF(OR('Enrollment Form'!$CR49=\"\",'Enrollment Form'!$CR49=\"No\"),\"-\",IF(COUNTA('Enrollment Form'!$CT49:$CU49)=2,\"Y\",\"N\"))","v":"-"},{"$f":"IF($B42=\"N\",\"\",IF(COUNTIF('Enrollment Form'!$DG49:$DP49,\"Other\")=COUNTA('Enrollment Form'!$DK49,'Enrollment Form'!$DH49,'Enrollment Form'!$DN49,'Enrollment Form'!$DQ49),\"Y\",\"N\"))","v":""},{"$f":"IF($B42=\"N\",\"\",IF(OR('Enrollment Form'!B49<>\"Subscriber\",'Enrollment Form'!C49=\"ROC\",COUNTIF('Enrollment Form'!AV49:AW49,\"Yes\")>=1),\"-\",IF(AND('Enrollment Form'!C49=\"Enroll\",COUNTIF('Enrollment Form'!AV49:AW49,\"No\")=2,'Enrollment Form'!AX49=\"\"),\"N\",\"Y\")))","v":""},{"$f":"IF(OR(B42=\"N\",'Enrollment Form'!B49<>\"Subscriber\",'Enrollment Form'!C49=\"ROC\",'Enrollment Form'!O49<>\"Multiple of Salary\"),\"-\",IF(COUNTA('Enrollment Form'!T49:U49)<2,\"N\",\"Y\"))","v":"-"},{"$f":"IF(B42=\"N\",\"\",IF(OR('Enrollment Form'!C49=\"ROC\",'Enrollment Form'!B49<>\"Subscriber\",'Enrollment Form'!O49=\"Waive\",'Enrollment Form'!O49=\"\"),\"-\",IF('Enrollment Form'!P49=\"\",\"N\",\"Y\")))","v":""},{"$f":"IF($B42=\"N\",\"\",IF(AND('Enrollment Form'!$C49=\"ROC\",'Enrollment Form'!$DR49<>\"\"),\"Y\",IF(AND('Enrollment Form'!$C49=\"ROC\",'Enrollment Form'!$DR49=\"\"),\"N\",IF(AND('Enrollment Form'!$C49=\"Enroll\",'Enrollment Form'!$B49=\"Subscriber\",'Enrollment Form'!$CX49=\"No\",'Enrollment Form'!$DR49=\"\"),\"N\",IF(AND('Enrollment Form'!$C49=\"Enroll\",'Enrollment Form'!$B49=\"Subscriber\",'Enrollment Form'!$CX49=\"Yes\"),\"-\",\"Y\")))))","v":""},{"$f":"IF($B42=\"N\",\"\",IF(AND('Enrollment Form'!$C49=\"ROC\",'Enrollment Form'!$DS49<>\"\"),\"Y\",IF(AND('Enrollment Form'!$C49=\"ROC\",'Enrollment Form'!$DS49=\"\"),\"N\",IF(AND('Enrollment Form'!$C49=\"Enroll\",'Enrollment Form'!$B49=\"Subscriber\",'Enrollment Form'!$CX49=\"No\",'Enrollment Form'!$DS49=\"\"),\"N\",IF(AND('Enrollment Form'!$C49=\"Enroll\",'Enrollment Form'!$B49=\"Subscriber\",'Enrollment Form'!$CX49=\"Yes\"),\"-\",\"Y\")))))","v":""},{"$f":"IF('Enrollment Form'!AH49=\"\",\"\",IF(ISERROR(SEARCH(\".\",'Enrollment Form'!AH49,SEARCH(\"@\",'Enrollment Form'!AH49))),\"N\",\"Y\"))","v":""},{"$f":"IF(OR($B42=\"N\",'Enrollment Form'!$G49=\"\"),\"\",IF('Enrollment Form'!$B49<>\"Subscriber\",\"-\",IF(COUNTIF('Enrollment Form'!$AV49:$AW49,\"Yes\")=2,\"N\",\"Y\")))","v":""},{"$f":"IF(OR('Enrollment Form'!$CJ49=\"\",'Enrollment Form'!$CJ49=\"No\"),\"-\",IF(AND('Enrollment Form'!$CJ49=\"Yes\",'Enrollment Form'!$CK49=\"\"),\"N\",\"Y\"))","v":"-"},{"$f":"IF(OR('Enrollment Form'!$CL49=\"\",'Enrollment Form'!$CL49=\"No\"),\"-\",IF(AND('Enrollment Form'!$CL49=\"Yes\",'Enrollment Form'!$CM49=\"\"),\"N\",\"Y\"))","v":"-"},{"$f":"IF(OR('Enrollment Form'!$CN49=\"\",'Enrollment Form'!$CN49=\"No\"),\"-\",IF(AND('Enrollment Form'!$CN49=\"Yes\",'Enrollment Form'!$CO49=\"\"),\"N\",\"Y\"))","v":"-"},{"$f":"IF(OR('Enrollment Form'!$CN49=\"\",'Enrollment Form'!$CN49=\"No\"),\"-\",IF(AND('Enrollment Form'!$CN49=\"Yes\",'Enrollment Form'!$CP49=\"\"),\"N\",\"Y\"))","v":"-"},{"$f":"IF('Enrollment Form'!B49<>\"Subscriber\",\"-\",IF(AND('Enrollment Form'!B49=\"Subscriber\",'Enrollment Form'!C49=\"Enroll\",'Enrollment Form'!AA49=\"\"),\"N\",\"Y\"))","v":"-"},{"$f":"IF(OR('Enrollment Form'!B49=\"Subscriber\",'Enrollment Form'!B49=\"\"),\"-\",IF('Enrollment Form'!BP49=\"\",\"N\",\"Y\"))","v":"-"},{"$f":"IF('Enrollment Form'!B49<>\"Subscriber\",\"-\",IF(AND('Enrollment Form'!B49=\"Subscriber\",'Enrollment Form'!G49=\"\"),\"N\",\"Y\"))","v":"-"},{"$f":"IF('Enrollment Form'!A49=\"\",\"\",IF('Enrollment Form'!B49=\"Subscriber\",\"-\",IF(AND('Enrollment Form'!B49<>\"Subscriber\",'Enrollment Form'!G49='Enrollment Form'!H49),\"N\",\"Y\")))","v":""},0,null,null,null,null,null,null,"39","Sub & Dependent SSNs different?","If Applicant Type is not Subscriber, then SSN Dependent should not match that of Subscriber","G,H"]
[50,{"$f":"IF('Enrollment Form'!$A50<>\"\",\"Y\",\"N\")","v":"N"},{"$f":"IF(AND('Enrollment Form'!$B50=\"\",'Enrollment Form'!$C50<>\"\"),\"N\",IF($B43=\"N\",\"\",\"Y\"))","v":""},{"$f":"IF(OR($B43=\"N\",'Enrollment Form'!G50=\"\"),\"\",IF('Enrollment Form'!$B50<>\"Subscriber\",\"\",IF('Enrollment Form'!$G50='Enrollment Form'!$H50,\"Y\",\"N\")))","v":""},{"$f":"IF($B43=\"N\",\"\",IF(AND(COUNTIFS('Enrollment Form'!$H$11:$H$1000,'Enrollment Form'!$H50,'Enrollment Form'!$B$11:$B$1000,'Enrollment Form'!$B50)>1,'Enrollment Form'!$H50<>\"\"),\"N\",\"Y\"))","v":""},{"$f":"IF($B43=\"N\",\"\",IF(LEN('Enrollment Form'!$Y50)=0,\"\",IF(LEN('Enrollment Form'!$Y50)<>5,\"N\",\"Y\")))","v":""},{"$f":"IF($B43=\"N\",\"\",IF(LEN('Enrollment Form'!$AD50=0),\"\",IF(LEN('Enrollment Form'!$AD50)<>5,\"N\",\"Y\")))","v":""},{"$f":"IF($B43=\"N\",\"\",IF(LEN('Enrollment Form'!$BS50=0),\"\",IF(LEN('Enrollment Form'!$BS50)<>5,\"N\",\"Y\")))","v":""},{"$f":"IF($B43=\"N\",\"\",IF(LEN('Enrollment Form'!$AE50)=0,\"\",IF(LEN('Enrollment Form'!$AE50)<>10,\"N\",\"Y\")))","v":""},{"$f":"IF($B43=\"N\",\"\",IF(LEN('Enrollment Form'!$AF50)=0,\"\",IF(LEN('Enrollment Form'!$AF50)<>10,\"N\",\"Y\")))","v":""},{"$f":"IF('Enrollment Form'!$O50<>\"Graded\",\"-\",IF(AND('Enrollment Form'!$O50=\"Graded\",'Enrollment Form'!$AR50<>\"\"),\"Y\",\"N\"))","v":"-"},{"$f":"IF($B43=\"N\",\"\",IF(OR('Enrollment Form'!$B50<>\"Subscriber\",'Enrollment Form'!$C50=\"ROC\"),\"-\",IF(AND('Enrollment Form'!$B50=\"Subscriber\",'Enrollment Form'!$C50=\"Enroll\",'Enrollment Form'!$AJ50<>\"\"),\"Y\",\"N\")))","v":""},{"$f":"IF($B43=\"N\",\"\",IF(OR('Enrollment Form'!$B50<>\"Subscriber\",'Enrollment Form'!$C50=\"ROC\"),\"-\",IF(AND('Enrollment Form'!$B50=\"Subscriber\",'Enrollment Form'!$C50=\"Enroll\",'Enrollment Form'!$AK50<>\"\"),\"Y\",\"N\")))","v":""},{"$f":"IF($B43=\"N\",\"\",IF(OR('Enrollment Form'!$B50<>\"Subscriber\",'Enrollment Form'!$C50=\"ROC\"),\"-\",IF(AND('Enrollment Form'!$B50=\"Subscriber\",'Enrollment Form'!$C50=\"Enroll\",'Enrollment Form'!$AL50<>\"\"),\"Y\",\"N\")))","v":""},{"$f":"IF($B43=\"N\",\"\",IF(OR('Enrollment Form'!$B50<>\"Subscriber\",'Enrollment Form'!$C50=\"ROC\"),\"-\",IF(AND('Enrollment Form'!$B50=\"Subscriber\",'Enrollment Form'!$C50=\"Enroll\",'Enrollment Form'!$AP50<>\"\"),\"Y\",\"N\")))","v":""},{"$f":"IF($B43=\"N\",\"\",IF(OR('Enrollment Form'!$B50<>\"Subscriber\",'Enrollment Form'!$C50=\"ROC\"),\"-\",IF(AND('Enrollment Form'!$B50=\"Subscriber\",'Enrollment Form'!$C50=\"Enroll\",'Enrollment Form'!$AQ50<>\"\"),\"Y\",\"N\")))","v":""},{"$f":"IF($B43=\"N\",\"\",IF(OR('Enrollment Form'!$B50<>\"Subscriber\",'Enrollment Form'!$C50=\"ROC\"),\"-\",IF(AND('Enrollment Form'!$B50=\"Subscriber\",'Enrollment Form'!$C50=\"Enroll\",'Enrollment Form'!$AS50<>\"\"),\"Y\",\"N\")))","v":""},{"$f":"IF($B43=\"N\",\"\",IF($Q43=\"-\",\"-\",IF(AND($Q43=\"Y\",'Enrollment Form'!$AS50=\"No\"),\"-\",IF(AND($Q43=\"Y\",'Enrollment Form'!$AS50=\"Yes\",'Enrollment Form'!$AT50<>\"\"),\"Y\",\"N\"))))","v":""},{"$f":"IF($B43=\"N\",\"\",IF(OR('Enrollment Form'!$B50<>\"Subscriber\",'Enrollment Form'!$C50=\"ROC\"),\"-\",IF(AND('Enrollment Form'!$B50=\"Subscriber\",'Enrollment Form'!$C50=\"Enroll\",'Enrollment Form'!$CV50<>\"\"),\"Y\",\"N\")))","v":""},{"$f":"IF($B43=\"N\",\"\",IF($S43=\"-\",\"-\",IF(AND($S43=\"Y\",'Enrollment Form'!$CV50=\"No\"),\"-\",IF(AND($S43=\"Y\",'Enrollment Form'!$CV50=\"Yes\",'Enrollment Form'!$CW50<>\"\"),\"Y\",\"N\"))))","v":""},{"$f":"IF(OR('Enrollment Form'!$AY50=\"Yes\",'Enrollment Form'!$AY50=\"\"),\"-\",IF(OR(AND('Enrollment Form'!$AY50=\"No\",ISERROR(FIND(\"HMO\",VLOOKUP('Enrollment Form'!G50,'Enrollment Form'!H$11:J$1000,3,FALSE),1))=FALSE,COUNTA('Enrollment Form'!$AZ50:$BC50)=4),AND('Enrollment Form'!$AY50=\"No\",ISERROR(FIND(\"HMO\",VLOOKUP('Enrollment Form'!G50,'Enrollment Form'!H$11:J$1000,3,FALSE),1))=FALSE,COUNTA('Enrollment Form'!$BT50:$BW50)=4)),\"Y\",\"N\"))","v":"-"},{"$f":"IF($B43=\"N\",\"\",IF('Enrollment Form'!$B50=\"Subscriber\",\"-\",IF(COUNTA('Enrollment Form'!$BL50,'Enrollment Form'!$BN50)=2,\"Y\",\"N\")))","v":""},{"$f":"IF($B43=\"N\",\"\",IF(OR('Enrollment Form'!$AX50=\"\",'Enrollment Form'!$AX50=\"No\"),\"-\",IF(AND('Enrollment Form'!$AX50=\"Yes\",COUNTA('Enrollment Form'!$CR50)=1),\"Y\",\"N\")))","v":""},{"$f":"IF(OR('Enrollment Form'!$CR50=\"\",'Enrollment Form'!$CR50=\"No\"),\"-\",IF(COUNTA('Enrollment Form'!$CT50:$CU50)=2,\"Y\",\"N\"))","v":"-"},{"$f":"IF($B43=\"N\",\"\",IF(COUNTIF('Enrollment Form'!$DG50:$DP50,\"Other\")=COUNTA('Enrollment Form'!$DK50,'Enrollment Form'!$DH50,'Enrollment Form'!$DN50,'Enrollment Form'!$DQ50),\"Y\",\"N\"))","v":""},{"$f":"IF($B43=\"N\",\"\",IF(OR('Enrollment Form'!B50<>\"Subscriber\",'Enrollment Form'!C50=\"ROC\",COUNTIF('Enrollment Form'!AV50:AW50,\"Yes\")>=1),\"-\",IF(AND('Enrollment Form'!C50=\"Enroll\",COUNTIF('Enrollment Form'!AV50:AW50,\"No\")=2,'Enrollment Form'!AX50=\"\"),\"N\",\"Y\")))","v":""},{"$f":"IF(OR(B43=\"N\",'Enrollment Form'!B50<>\"Subscriber\",'Enrollment Form'!C50=\"ROC\",'Enrollment Form'!O50<>\"Multiple of Salary\"),\"-\",IF(COUNTA('Enrollment Form'!T50:U50)<2,\"N\",\"Y\"))","v":"-"},{"$f":"IF(B43=\"N\",\"\",IF(OR('Enrollment Form'!C50=\"ROC\",'Enrollment Form'!B50<>\"Subscriber\",'Enrollment Form'!O50=\"Waive\",'Enrollment Form'!O50=\"\"),\"-\",IF('Enrollment Form'!P50=\"\",\"N\",\"Y\")))","v":""},{"$f":"IF($B43=\"N\",\"\",IF(AND('Enrollment Form'!$C50=\"ROC\",'Enrollment Form'!$DR50<>\"\"),\"Y\",IF(AND('Enrollment Form'!$C50=\"ROC\",'Enrollment Form'!$DR50=\"\"),\"N\",IF(AND('Enrollment Form'!$C50=\"Enroll\",'Enrollment Form'!$B50=\"Subscriber\",'Enrollment Form'!$CX50=\"No\",'Enrollment Form'!$DR50=\"\"),\"N\",IF(AND('Enrollment Form'!$C50=\"Enroll\",'Enrollment Form'!$B50=\"Subscriber\",'Enrollment Form'!$CX50=\"Yes\"),\"-\",\"Y\")))))","v":""},{"$f":"IF($B43=\"N\",\"\",IF(AND('Enrollment Form'!$C50=\"ROC\",'Enrollment Form'!$DS50<>\"\"),\"Y\",IF(AND('Enrollment Form'!$C50=\"ROC\",'Enrollment Form'!$DS50=\"\"),\"N\",IF(AND('Enrollment Form'!$C50=\"Enroll\",'Enrollment Form'!$B50=\"Subscriber\",'Enrollment Form'!$CX50=\"No\",'Enrollment Form'!$DS50=\"\"),\"N\",IF(AND('Enrollment Form'!$C50=\"Enroll\",'Enrollment Form'!$B50=\"Subscriber\",'Enrollment Form'!$CX50=\"Yes\"),\"-\",\"Y\")))))","v":""},{"$f":"IF('Enrollment Form'!AH50=\"\",\"\",IF(ISERROR(SEARCH(\".\",'Enrollment Form'!AH50,SEARCH(\"@\",'Enrollment Form'!AH50))),\"N\",\"Y\"))","v":""},{"$f":"IF(OR($B43=\"N\",'Enrollment Form'!$G50=\"\"),\"\",IF('Enrollment Form'!$B50<>\"Subscriber\",\"-\",IF(COUNTIF('Enrollment Form'!$AV50:$AW50,\"Yes\")=2,\"N\",\"Y\")))","v":""},{"$f":"IF(OR('Enrollment Form'!$CJ50=\"\",'Enrollment Form'!$CJ50=\"No\"),\"-\",IF(AND('Enrollment Form'!$CJ50=\"Yes\",'Enrollment Form'!$CK50=\"\"),\"N\",\"Y\"))","v":"-"},{"$f":"IF(OR('Enrollment Form'!$CL50=\"\",'Enrollment Form'!$CL50=\"No\"),\"-\",IF(AND('Enrollment Form'!$CL50=\"Yes\",'Enrollment Form'!$CM50=\"\"),\"N\",\"Y\"))","v":"-"},{"$f":"IF(OR('Enrollment Form'!$CN50=\"\",'Enrollment Form'!$CN50=\"No\"),\"-\",IF(AND('Enrollment Form'!$CN50=\"Yes\",'Enrollment Form'!$CO50=\"\"),\"N\",\"Y\"))","v":"-"},{"$f":"IF(OR('Enrollment Form'!$CN50=\"\",'Enrollment Form'!$CN50=\"No\"),\"-\",IF(AND('Enrollment Form'!$CN50=\"Yes\",'Enrollment Form'!$CP50=\"\"),\"N\",\"Y\"))","v":"-"},{"$f":"IF('Enrollment Form'!B50<>\"Subscriber\",\"-\",IF(AND('Enrollment Form'!B50=\"Subscriber\",'Enrollment Form'!C50=\"Enroll\",'Enrollment Form'!AA50=\"\"),\"N\",\"Y\"))","v":"-"},{"$f":"IF(OR('Enrollment Form'!B50=\"Subscriber\",'Enrollment Form'!B50=\"\"),\"-\",IF('Enrollment Form'!BP50=\"\",\"N\",\"Y\"))","v":"-"},{"$f":"IF('Enrollment Form'!B50<>\"Subscriber\",\"-\",IF(AND('Enrollment Form'!B50=\"Subscriber\",'Enrollment Form'!G50=\"\"),\"N\",\"Y\"))","v":"-"},{"$f":"IF('Enrollment Form'!A50=\"\",\"\",IF('Enrollment Form'!B50=\"Subscriber\",\"-\",IF(AND('Enrollment Form'!B50<>\"Subscriber\",'Enrollment Form'!G50='Enrollment Form'!H50),\"N\",\"Y\")))","v":""},0]
[51,{"$f":"IF('Enrollment Form'!$A51<>\"\",\"Y\",\"N\")","v":"N"},{"$f":"IF(AND('Enrollment Form'!$B51=\"\",'Enrollment Form'!$C51<>\"\"),\"N\",IF($B44=\"N\",\"\",\"Y\"))","v":""},{"$f":"IF(OR($B44=\"N\",'Enrollment Form'!G51=\"\"),\"\",IF('Enrollment Form'!$B51<>\"Subscriber\",\"\",IF('Enrollment Form'!$G51='Enrollment Form'!$H51,\"Y\",\"N\")))","v":""},{"$f":"IF($B44=\"N\",\"\",IF(AND(COUNTIFS('Enrollment Form'!$H$11:$H$1000,'Enrollment Form'!$H51,'Enrollment Form'!$B$11:$B$1000,'Enrollment Form'!$B51)>1,'Enrollment Form'!$H51<>\"\"),\"N\",\"Y\"))","v":""},{"$f":"IF($B44=\"N\",\"\",IF(LEN('Enrollment Form'!$Y51)=0,\"\",IF(LEN('Enrollment Form'!$Y51)<>5,\"N\",\"Y\")))","v":""},{"$f":"IF($B44=\"N\",\"\",IF(LEN('Enrollment Form'!$AD51=0),\"\",IF(LEN('Enrollment Form'!$AD51)<>5,\"N\",\"Y\")))","v":""},{"$f":"IF($B44=\"N\",\"\",IF(LEN('Enrollment Form'!$BS51=0),\"\",IF(LEN('Enrollment Form'!$BS51)<>5,\"N\",\"Y\")))","v":""},{"$f":"IF($B44=\"N\",\"\",IF(LEN('Enrollment Form'!$AE51)=0,\"\",IF(LEN('Enrollment Form'!$AE51)<>10,\"N\",\"Y\")))","v":""},{"$f":"IF($B44=\"N\",\"\",IF(LEN('Enrollment Form'!$AF51)=0,\"\",IF(LEN('Enrollment Form'!$AF51)<>10,\"N\",\"Y\")))","v":""},{"$f":"IF('Enrollment Form'!$O51<>\"Graded\",\"-\",IF(AND('Enrollment Form'!$O51=\"Graded\",'Enrollment Form'!$AR51<>\"\"),\"Y\",\"N\"))","v":"-"},{"$f":"IF($B44=\"N\",\"\",IF(OR('Enrollment Form'!$B51<>\"Subscriber\",'Enrollment Form'!$C51=\"ROC\"),\"-\",IF(AND('Enrollment Form'!$B51=\"Subscriber\",'Enrollment Form'!$C51=\"Enroll\",'Enrollment Form'!$AJ51<>\"\"),\"Y\",\"N\")))","v":""},{"$f":"IF($B44=\"N\",\"\",IF(OR('Enrollment Form'!$B51<>\"Subscriber\",'Enrollment Form'!$C51=\"ROC\"),\"-\",IF(AND('Enrollment Form'!$B51=\"Subscriber\",'Enrollment Form'!$C51=\"Enroll\",'Enrollment Form'!$AK51<>\"\"),\"Y\",\"N\")))","v":""},{"$f":"IF($B44=\"N\",\"\",IF(OR('Enrollment Form'!$B51<>\"Subscriber\",'Enrollment Form'!$C51=\"ROC\"),\"-\",IF(AND('Enrollment Form'!$B51=\"Subscriber\",'Enrollment Form'!$C51=\"Enroll\",'Enrollment Form'!$AL51<>\"\"),\"Y\",\"N\")))","v":""},{"$f":"IF($B44=\"N\",\"\",IF(OR('Enrollment Form'!$B51<>\"Subscriber\",'Enrollment Form'!$C51=\"ROC\"),\"-\",IF(AND('Enrollment Form'!$B51=\"Subscriber\",'Enrollment Form'!$C51=\"Enroll\",'Enrollment Form'!$AP51<>\"\"),\"Y\",\"N\")))","v":""},{"$f":"IF($B44=\"N\",\"\",IF(OR('Enrollment Form'!$B51<>\"Subscriber\",'Enrollment Form'!$C51=\"ROC\"),\"-\",IF(AND('Enrollment Form'!$B51=\"Subscriber\",'Enrollment Form'!$C51=\"Enroll\",'Enrollment Form'!$AQ51<>\"\"),\"Y\",\"N\")))","v":""},{"$f":"IF($B44=\"N\",\"\",IF(OR('Enrollment Form'!$B51<>\"Subscriber\",'Enrollment Form'!$C51=\"ROC\"),\"-\",IF(AND('Enrollment Form'!$B51=\"Subscriber\",'Enrollment Form'!$C51=\"Enroll\",'Enrollment Form'!$AS51<>\"\"),\"Y\",\"N\")))","v":""},{"$f":"IF($B44=\"N\",\"\",IF($Q44=\"-\",\"-\",IF(AND($Q44=\"Y\",'Enrollment Form'!$AS51=\"No\"),\"-\",IF(AND($Q44=\"Y\",'Enrollment Form'!$AS51=\"Yes\",'Enrollment Form'!$AT51<>\"\"),\"Y\",\"N\"))))","v":""},{"$f":"IF($B44=\"N\",\"\",IF(OR('Enrollment Form'!$B51<>\"Subscriber\",'Enrollment Form'!$C51=\"ROC\"),\"-\",IF(AND('Enrollment Form'!$B51=\"Subscriber\",'Enrollment Form'!$C51=\"Enroll\",'Enrollment Form'!$CV51<>\"\"),\"Y\",\"N\")))","v":""},{"$f":"IF($B44=\"N\",\"\",IF($S44=\"-\",\"-\",IF(AND($S44=\"Y\",'Enrollment Form'!$CV51=\"No\"),\"-\",IF(AND($S44=\"Y\",'Enrollment Form'!$CV51=\"Yes\",'Enrollment Form'!$CW51<>\"\"),\"Y\",\"N\"))))","v":""},{"$f":"IF(OR('Enrollment Form'!$AY51=\"Yes\",'Enrollment Form'!$AY51=\"\"),\"-\",IF(OR(AND('Enrollment Form'!$AY51=\"No\",ISERROR(FIND(\"HMO\",VLOOKUP('Enrollment Form'!G51,'Enrollment Form'!H$11:J$1000,3,FALSE),1))=FALSE,COUNTA('Enrollment Form'!$AZ51:$BC51)=4),AND('Enrollment Form'!$AY51=\"No\",ISERROR(FIND(\"HMO\",VLOOKUP('Enrollment Form'!G51,'Enrollment Form'!H$11:J$1000,3,FALSE),1))=FALSE,COUNTA('Enrollment Form'!$BT51:$BW51)=4)),\"Y\",\"N\"))","v":"-"},{"$f":"IF($B44=\"N\",\"\",IF('Enrollment Form'!$B51=\"Subscriber\",\"-\",IF(COUNTA('Enrollment Form'!$BL51,'Enrollment Form'!$BN51)=2,\"Y\",\"N\")))","v":""},{"$f":"IF($B44=\"N\",\"\",IF(OR('Enrollment Form'!$AX51=\"\",'Enrollment Form'!$AX51=\"No\"),\"-\",IF(AND('Enrollment Form'!$AX51=\"Yes\",COUNTA('Enrollment Form'!$CR51)=1),\"Y\",\"N\")))","v":""},{"$f":"IF(OR('Enrollment Form'!$CR51=\"\",'Enrollment Form'!$CR51=\"No\"),\"-\",IF(COUNTA('Enrollment Form'!$CT51:$CU51)=2,\"Y\",\"N\"))","v":"-"},{"$f":"IF($B44=\"N\",\"\",IF(COUNTIF('Enrollment Form'!$DG51:$DP51,\"Other\")=COUNTA('Enrollment Form'!$DK51,'Enrollment Form'!$DH51,'Enrollment Form'!$DN51,'Enrollment Form'!$DQ51),\"Y\",\"N\"))","v":""},{"$f":"IF($B44=\"N\",\"\",IF(OR('Enrollment Form'!B51<>\"Subscriber\",'Enrollment Form'!C51=\"ROC\",COUNTIF('Enrollment Form'!AV51:AW51,\"Yes\")>=1),\"-\",IF(AND('Enrollment Form'!C51=\"Enroll\",COUNTIF('Enrollment Form'!AV51:AW51,\"No\")=2,'Enrollment Form'!AX51=\"\"),\"N\",\"Y\")))","v":""},{"$f":"IF(OR(B44=\"N\",'Enrollment Form'!B51<>\"Subscriber\",'Enrollment Form'!C51=\"ROC\",'Enrollment Form'!O51<>\"Multiple of Salary\"),\"-\",IF(COUNTA('Enrollment Form'!T51:U51)<2,\"N\",\"Y\"))","v":"-"},{"$f":"IF(B44=\"N\",\"\",IF(OR('Enrollment Form'!C51=\"ROC\",'Enrollment Form'!B51<>\"Subscriber\",'Enrollment Form'!O51=\"Waive\",'Enrollment Form'!O51=\"\"),\"-\",IF('Enrollment Form'!P51=\"\",\"N\",\"Y\")))","v":""},{"$f":"IF($B44=\"N\",\"\",IF(AND('Enrollment Form'!$C51=\"ROC\",'Enrollment Form'!$DR51<>\"\"),\"Y\",IF(AND('Enrollment Form'!$C51=\"ROC\",'Enrollment Form'!$DR51=\"\"),\"N\",IF(AND('Enrollment Form'!$C51=\"Enroll\",'Enrollment Form'!$B51=\"Subscriber\",'Enrollment Form'!$CX51=\"No\",'Enrollment Form'!$DR51=\"\"),\"N\",IF(AND('Enrollment Form'!$C51=\"Enroll\",'Enrollment Form'!$B51=\"Subscriber\",'Enrollment Form'!$CX51=\"Yes\"),\"-\",\"Y\")))))","v":""},{"$f":"IF($B44=\"N\",\"\",IF(AND('Enrollment Form'!$C51=\"ROC\",'Enrollment Form'!$DS51<>\"\"),\"Y\",IF(AND('Enrollment Form'!$C51=\"ROC\",'Enrollment Form'!$DS51=\"\"),\"N\",IF(AND('Enrollment Form'!$C51=\"Enroll\",'Enrollment Form'!$B51=\"Subscriber\",'Enrollment Form'!$CX51=\"No\",'Enrollment Form'!$DS51=\"\"),\"N\",IF(AND('Enrollment Form'!$C51=\"Enroll\",'Enrollment Form'!$B51=\"Subscriber\",'Enrollment Form'!$CX51=\"Yes\"),\"-\",\"Y\")))))","v":""},{"$f":"IF('Enrollment Form'!AH51=\"\",\"\",IF(ISERROR(SEARCH(\".\",'Enrollment Form'!AH51,SEARCH(\"@\",'Enrollment Form'!AH51))),\"N\",\"Y\"))","v":""},{"$f":"IF(OR($B44=\"N\",'Enrollment Form'!$G51=\"\"),\"\",IF('Enrollment Form'!$B51<>\"Subscriber\",\"-\",IF(COUNTIF('Enrollment Form'!$AV51:$AW51,\"Yes\")=2,\"N\",\"Y\")))","v":""},{"$f":"IF(OR('Enrollment Form'!$CJ51=\"\",'Enrollment Form'!$CJ51=\"No\"),\"-\",IF(AND('Enrollment Form'!$CJ51=\"Yes\",'Enrollment Form'!$CK51=\"\"),\"N\",\"Y\"))","v":"-"},{"$f":"IF(OR('Enrollment Form'!$CL51=\"\",'Enrollment Form'!$CL51=\"No\"),\"-\",IF(AND('Enrollment Form'!$CL51=\"Yes\",'Enrollment Form'!$CM51=\"\"),\"N\",\"Y\"))","v":"-"},{"$f":"IF(OR('Enrollment Form'!$CN51=\"\",'Enrollment Form'!$CN51=\"No\"),\"-\",IF(AND('Enrollment Form'!$CN51=\"Yes\",'Enrollment Form'!$CO51=\"\"),\"N\",\"Y\"))","v":"-"},{"$f":"IF(OR('Enrollment Form'!$CN51=\"\",'Enrollment Form'!$CN51=\"No\"),\"-\",IF(AND('Enrollment Form'!$CN51=\"Yes\",'Enrollment Form'!$CP51=\"\"),\"N\",\"Y\"))","v":"-"},{"$f":"IF('Enrollment Form'!B51<>\"Subscriber\",\"-\",IF(AND('Enrollment Form'!B51=\"Subscriber\",'Enrollment Form'!C51=\"Enroll\",'Enrollment Form'!AA51=\"\"),\"N\",\"Y\"))","v":"-"},{"$f":"IF(OR('Enrollment Form'!B51=\"Subscriber\",'Enrollment Form'!B51=\"\"),\"-\",IF('Enrollment Form'!BP51=\"\",\"N\",\"Y\"))","v":"-"},{"$f":"IF('Enrollment Form'!B51<>\"Subscriber\",\"-\",IF(AND('Enrollment Form'!B51=\"Subscriber\",'Enrollment Form'!G51=\"\"),\"N\",\"Y\"))","v":"-"},{"$f":"IF('Enrollment Form'!A51=\"\",\"\",IF('Enrollment Form'!B51=\"Subscriber\",\"-\",IF(AND('Enrollment Form'!B51<>\"Subscriber\",'Enrollment Form'!G51='Enrollment Form'!H51),\"N\",\"Y\")))","v":""},0]
[52,{"$f":"IF('Enrollment Form'!$A52<>\"\",\"Y\",\"N\")","v":"N"},{"$f":"IF(AND('Enrollment Form'!$B52=\"\",'Enrollment Form'!$C52<>\"\"),\"N\",IF($B45=\"N\",\"\",\"Y\"))","v":""},{"$f":"IF(OR($B45=\"N\",'Enrollment Form'!G52=\"\"),\"\",IF('Enrollment Form'!$B52<>\"Subscriber\",\"\",IF('Enrollment Form'!$G52='Enrollment Form'!$H52,\"Y\",\"N\")))","v":""},{"$f":"IF($B45=\"N\",\"\",IF(AND(COUNTIFS('Enrollment Form'!$H$11:$H$1000,'Enrollment Form'!$H52,'Enrollment Form'!$B$11:$B$1000,'Enrollment Form'!$B52)>1,'Enrollment Form'!$H52<>\"\"),\"N\",\"Y\"))","v":""},{"$f":"IF($B45=\"N\",\"\",IF(LEN('Enrollment Form'!$Y52)=0,\"\",IF(LEN('Enrollment Form'!$Y52)<>5,\"N\",\"Y\")))","v":""},{"$f":"IF($B45=\"N\",\"\",IF(LEN('Enrollment Form'!$AD52=0),\"\",IF(LEN('Enrollment Form'!$AD52)<>5,\"N\",\"Y\")))","v":""},{"$f":"IF($B45=\"N\",\"\",IF(LEN('Enrollment Form'!$BS52=0),\"\",IF(LEN('Enrollment Form'!$BS52)<>5,\"N\",\"Y\")))","v":""},{"$f":"IF($B45=\"N\",\"\",IF(LEN('Enrollment Form'!$AE52)=0,\"\",IF(LEN('Enrollment Form'!$AE52)<>10,\"N\",\"Y\")))","v":""},{"$f":"IF($B45=\"N\",\"\",IF(LEN('Enrollment Form'!$AF52)=0,\"\",IF(LEN('Enrollment Form'!$AF52)<>10,\"N\",\"Y\")))","v":""},{"$f":"IF('Enrollment Form'!$O52<>\"Graded\",\"-\",IF(AND('Enrollment Form'!$O52=\"Graded\",'Enrollment Form'!$AR52<>\"\"),\"Y\",\"N\"))","v":"-"},{"$f":"IF($B45=\"N\",\"\",IF(OR('Enrollment Form'!$B52<>\"Subscriber\",'Enrollment Form'!$C52=\"ROC\"),\"-\",IF(AND('Enrollment Form'!$B52=\"Subscriber\",'Enrollment Form'!$C52=\"Enroll\",'Enrollment Form'!$AJ52<>\"\"),\"Y\",\"N\")))","v":""},{"$f":"IF($B45=\"N\",\"\",IF(OR('Enrollment Form'!$B52<>\"Subscriber\",'Enrollment Form'!$C52=\"ROC\"),\"-\",IF(AND('Enrollment Form'!$B52=\"Subscriber\",'Enrollment Form'!$C52=\"Enroll\",'Enrollment Form'!$AK52<>\"\"),\"Y\",\"N\")))","v":""},{"$f":"IF($B45=\"N\",\"\",IF(OR('Enrollment Form'!$B52<>\"Subscriber\",'Enrollment Form'!$C52=\"ROC\"),\"-\",IF(AND('Enrollment Form'!$B52=\"Subscriber\",'Enrollment Form'!$C52=\"Enroll\",'Enrollment Form'!$AL52<>\"\"),\"Y\",\"N\")))","v":""},{"$f":"IF($B45=\"N\",\"\",IF(OR('Enrollment Form'!$B52<>\"Subscriber\",'Enrollment Form'!$C52=\"ROC\"),\"-\",IF(AND('Enrollment Form'!$B52=\"Subscriber\",'Enrollment Form'!$C52=\"Enroll\",'Enrollment Form'!$AP52<>\"\"),\"Y\",\"N\")))","v":""},{"$f":"IF($B45=\"N\",\"\",IF(OR('Enrollment Form'!$B52<>\"Subscriber\",'Enrollment Form'!$C52=\"ROC\"),\"-\",IF(AND('Enrollment Form'!$B52=\"Subscriber\",'Enrollment Form'!$C52=\"Enroll\",'Enrollment Form'!$AQ52<>\"\"),\"Y\",\"N\")))","v":""},{"$f":"IF($B45=\"N\",\"\",IF(OR('Enrollment Form'!$B52<>\"Subscriber\",'Enrollment Form'!$C52=\"ROC\"),\"-\",IF(AND('Enrollment Form'!$B52=\"Subscriber\",'Enrollment Form'!$C52=\"Enroll\",'Enrollment Form'!$AS52<>\"\"),\"Y\",\"N\")))","v":""},{"$f":"IF($B45=\"N\",\"\",IF($Q45=\"-\",\"-\",IF(AND($Q45=\"Y\",'Enrollment Form'!$AS52=\"No\"),\"-\",IF(AND($Q45=\"Y\",'Enrollment Form'!$AS52=\"Yes\",'Enrollment Form'!$AT52<>\"\"),\"Y\",\"N\"))))","v":""},{"$f":"IF($B45=\"N\",\"\",IF(OR('Enrollment Form'!$B52<>\"Subscriber\",'Enrollment Form'!$C52=\"ROC\"),\"-\",IF(AND('Enrollment Form'!$B52=\"Subscriber\",'Enrollment Form'!$C52=\"Enroll\",'Enrollment Form'!$CV52<>\"\"),\"Y\",\"N\")))","v":""},{"$f":"IF($B45=\"N\",\"\",IF($S45=\"-\",\"-\",IF(AND($S45=\"Y\",'Enrollment Form'!$CV52=\"No\"),\"-\",IF(AND($S45=\"Y\",'Enrollment Form'!$CV52=\"Yes\",'Enrollment Form'!$CW52<>\"\"),\"Y\",\"N\"))))","v":""},{"$f":"IF(OR('Enrollment Form'!$AY52=\"Yes\",'Enrollment Form'!$AY52=\"\"),\"-\",IF(OR(AND('Enrollment Form'!$AY52=\"No\",ISERROR(FIND(\"HMO\",VLOOKUP('Enrollment Form'!G52,'Enrollment Form'!H$11:J$1000,3,FALSE),1))=FALSE,COUNTA('Enrollment Form'!$AZ52:$BC52)=4),AND('Enrollment Form'!$AY52=\"No\",ISERROR(FIND(\"HMO\",VLOOKUP('Enrollment Form'!G52,'Enrollment Form'!H$11:J$1000,3,FALSE),1))=FALSE,COUNTA('Enrollment Form'!$BT52:$BW52)=4)),\"Y\",\"N\"))","v":"-"},{"$f":"IF($B45=\"N\",\"\",IF('Enrollment Form'!$B52=\"Subscriber\",\"-\",IF(COUNTA('Enrollment Form'!$BL52,'Enrollment Form'!$BN52)=2,\"Y\",\"N\")))","v":""},{"$f":"IF($B45=\"N\",\"\",IF(OR('Enrollment Form'!$AX52=\"\",'Enrollment Form'!$AX52=\"No\"),\"-\",IF(AND('Enrollment Form'!$AX52=\"Yes\",COUNTA('Enrollment Form'!$CR52)=1),\"Y\",\"N\")))","v":""},{"$f":"IF(OR('Enrollment Form'!$CR52=\"\",'Enrollment Form'!$CR52=\"No\"),\"-\",IF(COUNTA('Enrollment Form'!$CT52:$CU52)=2,\"Y\",\"N\"))","v":"-"},{"$f":"IF($B45=\"N\",\"\",IF(COUNTIF('Enrollment Form'!$DG52:$DP52,\"Other\")=COUNTA('Enrollment Form'!$DK52,'Enrollment Form'!$DH52,'Enrollment Form'!$DN52,'Enrollment Form'!$DQ52),\"Y\",\"N\"))","v":""},{"$f":"IF($B45=\"N\",\"\",IF(OR('Enrollment Form'!B52<>\"Subscriber\",'Enrollment Form'!C52=\"ROC\",COUNTIF('Enrollment Form'!AV52:AW52,\"Yes\")>=1),\"-\",IF(AND('Enrollment Form'!C52=\"Enroll\",COUNTIF('Enrollment Form'!AV52:AW52,\"No\")=2,'Enrollment Form'!AX52=\"\"),\"N\",\"Y\")))","v":""},{"$f":"IF(OR(B45=\"N\",'Enrollment Form'!B52<>\"Subscriber\",'Enrollment Form'!C52=\"ROC\",'Enrollment Form'!O52<>\"Multiple of Salary\"),\"-\",IF(COUNTA('Enrollment Form'!T52:U52)<2,\"N\",\"Y\"))","v":"-"},{"$f":"IF(B45=\"N\",\"\",IF(OR('Enrollment Form'!C52=\"ROC\",'Enrollment Form'!B52<>\"Subscriber\",'Enrollment Form'!O52=\"Waive\",'Enrollment Form'!O52=\"\"),\"-\",IF('Enrollment Form'!P52=\"\",\"N\",\"Y\")))","v":""},{"$f":"IF($B45=\"N\",\"\",IF(AND('Enrollment Form'!$C52=\"ROC\",'Enrollment Form'!$DR52<>\"\"),\"Y\",IF(AND('Enrollment Form'!$C52=\"ROC\",'Enrollment Form'!$DR52=\"\"),\"N\",IF(AND('Enrollment Form'!$C52=\"Enroll\",'Enrollment Form'!$B52=\"Subscriber\",'Enrollment Form'!$CX52=\"No\",'Enrollment Form'!$DR52=\"\"),\"N\",IF(AND('Enrollment Form'!$C52=\"Enroll\",'Enrollment Form'!$B52=\"Subscriber\",'Enrollment Form'!$CX52=\"Yes\"),\"-\",\"Y\")))))","v":""},{"$f":"IF($B45=\"N\",\"\",IF(AND('Enrollment Form'!$C52=\"ROC\",'Enrollment Form'!$DS52<>\"\"),\"Y\",IF(AND('Enrollment Form'!$C52=\"ROC\",'Enrollment Form'!$DS52=\"\"),\"N\",IF(AND('Enrollment Form'!$C52=\"Enroll\",'Enrollment Form'!$B52=\"Subscriber\",'Enrollment Form'!$CX52=\"No\",'Enrollment Form'!$DS52=\"\"),\"N\",IF(AND('Enrollment Form'!$C52=\"Enroll\",'Enrollment Form'!$B52=\"Subscriber\",'Enrollment Form'!$CX52=\"Yes\"),\"-\",\"Y\")))))","v":""},{"$f":"IF('Enrollment Form'!AH52=\"\",\"\",IF(ISERROR(SEARCH(\".\",'Enrollment Form'!AH52,SEARCH(\"@\",'Enrollment Form'!AH52))),\"N\",\"Y\"))","v":""},{"$f":"IF(OR($B45=\"N\",'Enrollment Form'!$G52=\"\"),\"\",IF('Enrollment Form'!$B52<>\"Subscriber\",\"-\",IF(COUNTIF('Enrollment Form'!$AV52:$AW52,\"Yes\")=2,\"N\",\"Y\")))","v":""},{"$f":"IF(OR('Enrollment Form'!$CJ52=\"\",'Enrollment Form'!$CJ52=\"No\"),\"-\",IF(AND('Enrollment Form'!$CJ52=\"Yes\",'Enrollment Form'!$CK52=\"\"),\"N\",\"Y\"))","v":"-"},{"$f":"IF(OR('Enrollment Form'!$CL52=\"\",'Enrollment Form'!$CL52=\"No\"),\"-\",IF(AND('Enrollment Form'!$CL52=\"Yes\",'Enrollment Form'!$CM52=\"\"),\"N\",\"Y\"))","v":"-"},{"$f":"IF(OR('Enrollment Form'!$CN52=\"\",'Enrollment Form'!$CN52=\"No\"),\"-\",IF(AND('Enrollment Form'!$CN52=\"Yes\",'Enrollment Form'!$CO52=\"\"),\"N\",\"Y\"))","v":"-"},{"$f":"IF(OR('Enrollment Form'!$CN52=\"\",'Enrollment Form'!$CN52=\"No\"),\"-\",IF(AND('Enrollment Form'!$CN52=\"Yes\",'Enrollment Form'!$CP52=\"\"),\"N\",\"Y\"))","v":"-"},{"$f":"IF('Enrollment Form'!B52<>\"Subscriber\",\"-\",IF(AND('Enrollment Form'!B52=\"Subscriber\",'Enrollment Form'!C52=\"Enroll\",'Enrollment Form'!AA52=\"\"),\"N\",\"Y\"))","v":"-"},{"$f":"IF(OR('Enrollment Form'!B52=\"Subscriber\",'Enrollment Form'!B52=\"\"),\"-\",IF('Enrollment Form'!BP52=\"\",\"N\",\"Y\"))","v":"-"},{"$f":"IF('Enrollment Form'!B52<>\"Subscriber\",\"-\",IF(AND('Enrollment Form'!B52=\"Subscriber\",'Enrollment Form'!G52=\"\"),\"N\",\"Y\"))","v":"-"},{"$f":"IF('Enrollment Form'!A52=\"\",\"\",IF('Enrollment Form'!B52=\"Subscriber\",\"-\",IF(AND('Enrollment Form'!B52<>\"Subscriber\",'Enrollment Form'!G52='Enrollment Form'!H52),\"N\",\"Y\")))","v":""},0]
[53,{"$f":"IF('Enrollment Form'!$A53<>\"\",\"Y\",\"N\")","v":"N"},{"$f":"IF(AND('Enrollment Form'!$B53=\"\",'Enrollment Form'!$C53<>\"\"),\"N\",IF($B46=\"N\",\"\",\"Y\"))","v":""},{"$f":"IF(OR($B46=\"N\",'Enrollment Form'!G53=\"\"),\"\",IF('Enrollment Form'!$B53<>\"Subscriber\",\"\",IF('Enrollment Form'!$G53='Enrollment Form'!$H53,\"Y\",\"N\")))","v":""},{"$f":"IF($B46=\"N\",\"\",IF(AND(COUNTIFS('Enrollment Form'!$H$11:$H$1000,'Enrollment Form'!$H53,'Enrollment Form'!$B$11:$B$1000,'Enrollment Form'!$B53)>1,'Enrollment Form'!$H53<>\"\"),\"N\",\"Y\"))","v":""},{"$f":"IF($B46=\"N\",\"\",IF(LEN('Enrollment Form'!$Y53)=0,\"\",IF(LEN('Enrollment Form'!$Y53)<>5,\"N\",\"Y\")))","v":""},{"$f":"IF($B46=\"N\",\"\",IF(LEN('Enrollment Form'!$AD53=0),\"\",IF(LEN('Enrollment Form'!$AD53)<>5,\"N\",\"Y\")))","v":""},{"$f":"IF($B46=\"N\",\"\",IF(LEN('Enrollment Form'!$BS53=0),\"\",IF(LEN('Enrollment Form'!$BS53)<>5,\"N\",\"Y\")))","v":""},{"$f":"IF($B46=\"N\",\"\",IF(LEN('Enrollment Form'!$AE53)=0,\"\",IF(LEN('Enrollment Form'!$AE53)<>10,\"N\",\"Y\")))","v":""},{"$f":"IF($B46=\"N\",\"\",IF(LEN('Enrollment Form'!$AF53)=0,\"\",IF(LEN('Enrollment Form'!$AF53)<>10,\"N\",\"Y\")))","v":""},{"$f":"IF('Enrollment Form'!$O53<>\"Graded\",\"-\",IF(AND('Enrollment Form'!$O53=\"Graded\",'Enrollment Form'!$AR53<>\"\"),\"Y\",\"N\"))","v":"-"},{"$f":"IF($B46=\"N\",\"\",IF(OR('Enrollment Form'!$B53<>\"Subscriber\",'Enrollment Form'!$C53=\"ROC\"),\"-\",IF(AND('Enrollment Form'!$B53=\"Subscriber\",'Enrollment Form'!$C53=\"Enroll\",'Enrollment Form'!$AJ53<>\"\"),\"Y\",\"N\")))","v":""},{"$f":"IF($B46=\"N\",\"\",IF(OR('Enrollment Form'!$B53<>\"Subscriber\",'Enrollment Form'!$C53=\"ROC\"),\"-\",IF(AND('Enrollment Form'!$B53=\"Subscriber\",'Enrollment Form'!$C53=\"Enroll\",'Enrollment Form'!$AK53<>\"\"),\"Y\",\"N\")))","v":""},{"$f":"IF($B46=\"N\",\"\",IF(OR('Enrollment Form'!$B53<>\"Subscriber\",'Enrollment Form'!$C53=\"ROC\"),\"-\",IF(AND('Enrollment Form'!$B53=\"Subscriber\",'Enrollment Form'!$C53=\"Enroll\",'Enrollment Form'!$AL53<>\"\"),\"Y\",\"N\")))","v":""},{"$f":"IF($B46=\"N\",\"\",IF(OR('Enrollment Form'!$B53<>\"Subscriber\",'Enrollment Form'!$C53=\"ROC\"),\"-\",IF(AND('Enrollment Form'!$B53=\"Subscriber\",'Enrollment Form'!$C53=\"Enroll\",'Enrollment Form'!$AP53<>\"\"),\"Y\",\"N\")))","v":""},{"$f":"IF($B46=\"N\",\"\",IF(OR('Enrollment Form'!$B53<>\"Subscriber\",'Enrollment Form'!$C53=\"ROC\"),\"-\",IF(AND('Enrollment Form'!$B53=\"Subscriber\",'Enrollment Form'!$C53=\"Enroll\",'Enrollment Form'!$AQ53<>\"\"),\"Y\",\"N\")))","v":""},{"$f":"IF($B46=\"N\",\"\",IF(OR('Enrollment Form'!$B53<>\"Subscriber\",'Enrollment Form'!$C53=\"ROC\"),\"-\",IF(AND('Enrollment Form'!$B53=\"Subscriber\",'Enrollment Form'!$C53=\"Enroll\",'Enrollment Form'!$AS53<>\"\"),\"Y\",\"N\")))","v":""},{"$f":"IF($B46=\"N\",\"\",IF($Q46=\"-\",\"-\",IF(AND($Q46=\"Y\",'Enrollment Form'!$AS53=\"No\"),\"-\",IF(AND($Q46=\"Y\",'Enrollment Form'!$AS53=\"Yes\",'Enrollment Form'!$AT53<>\"\"),\"Y\",\"N\"))))","v":""},{"$f":"IF($B46=\"N\",\"\",IF(OR('Enrollment Form'!$B53<>\"Subscriber\",'Enrollment Form'!$C53=\"ROC\"),\"-\",IF(AND('Enrollment Form'!$B53=\"Subscriber\",'Enrollment Form'!$C53=\"Enroll\",'Enrollment Form'!$CV53<>\"\"),\"Y\",\"N\")))","v":""},{"$f":"IF($B46=\"N\",\"\",IF($S46=\"-\",\"-\",IF(AND($S46=\"Y\",'Enrollment Form'!$CV53=\"No\"),\"-\",IF(AND($S46=\"Y\",'Enrollment Form'!$CV53=\"Yes\",'Enrollment Form'!$CW53<>\"\"),\"Y\",\"N\"))))","v":""},{"$f":"IF(OR('Enrollment Form'!$AY53=\"Yes\",'Enrollment Form'!$AY53=\"\"),\"-\",IF(OR(AND('Enrollment Form'!$AY53=\"No\",ISERROR(FIND(\"HMO\",VLOOKUP('Enrollment Form'!G53,'Enrollment Form'!H$11:J$1000,3,FALSE),1))=FALSE,COUNTA('Enrollment Form'!$AZ53:$BC53)=4),AND('Enrollment Form'!$AY53=\"No\",ISERROR(FIND(\"HMO\",VLOOKUP('Enrollment Form'!G53,'Enrollment Form'!H$11:J$1000,3,FALSE),1))=FALSE,COUNTA('Enrollment Form'!$BT53:$BW53)=4)),\"Y\",\"N\"))","v":"-"},{"$f":"IF($B46=\"N\",\"\",IF('Enrollment Form'!$B53=\"Subscriber\",\"-\",IF(COUNTA('Enrollment Form'!$BL53,'Enrollment Form'!$BN53)=2,\"Y\",\"N\")))","v":""},{"$f":"IF($B46=\"N\",\"\",IF(OR('Enrollment Form'!$AX53=\"\",'Enrollment Form'!$AX53=\"No\"),\"-\",IF(AND('Enrollment Form'!$AX53=\"Yes\",COUNTA('Enrollment Form'!$CR53)=1),\"Y\",\"N\")))","v":""},{"$f":"IF(OR('Enrollment Form'!$CR53=\"\",'Enrollment Form'!$CR53=\"No\"),\"-\",IF(COUNTA('Enrollment Form'!$CT53:$CU53)=2,\"Y\",\"N\"))","v":"-"},{"$f":"IF($B46=\"N\",\"\",IF(COUNTIF('Enrollment Form'!$DG53:$DP53,\"Other\")=COUNTA('Enrollment Form'!$DK53,'Enrollment Form'!$DH53,'Enrollment Form'!$DN53,'Enrollment Form'!$DQ53),\"Y\",\"N\"))","v":""},{"$f":"IF($B46=\"N\",\"\",IF(OR('Enrollment Form'!B53<>\"Subscriber\",'Enrollment Form'!C53=\"ROC\",COUNTIF('Enrollment Form'!AV53:AW53,\"Yes\")>=1),\"-\",IF(AND('Enrollment Form'!C53=\"Enroll\",COUNTIF('Enrollment Form'!AV53:AW53,\"No\")=2,'Enrollment Form'!AX53=\"\"),\"N\",\"Y\")))","v":""},{"$f":"IF(OR(B46=\"N\",'Enrollment Form'!B53<>\"Subscriber\",'Enrollment Form'!C53=\"ROC\",'Enrollment Form'!O53<>\"Multiple of Salary\"),\"-\",IF(COUNTA('Enrollment Form'!T53:U53)<2,\"N\",\"Y\"))","v":"-"},{"$f":"IF(B46=\"N\",\"\",IF(OR('Enrollment Form'!C53=\"ROC\",'Enrollment Form'!B53<>\"Subscriber\",'Enrollment Form'!O53=\"Waive\",'Enrollment Form'!O53=\"\"),\"-\",IF('Enrollment Form'!P53=\"\",\"N\",\"Y\")))","v":""},{"$f":"IF($B46=\"N\",\"\",IF(AND('Enrollment Form'!$C53=\"ROC\",'Enrollment Form'!$DR53<>\"\"),\"Y\",IF(AND('Enrollment Form'!$C53=\"ROC\",'Enrollment Form'!$DR53=\"\"),\"N\",IF(AND('Enrollment Form'!$C53=\"Enroll\",'Enrollment Form'!$B53=\"Subscriber\",'Enrollment Form'!$CX53=\"No\",'Enrollment Form'!$DR53=\"\"),\"N\",IF(AND('Enrollment Form'!$C53=\"Enroll\",'Enrollment Form'!$B53=\"Subscriber\",'Enrollment Form'!$CX53=\"Yes\"),\"-\",\"Y\")))))","v":""},{"$f":"IF($B46=\"N\",\"\",IF(AND('Enrollment Form'!$C53=\"ROC\",'Enrollment Form'!$DS53<>\"\"),\"Y\",IF(AND('Enrollment Form'!$C53=\"ROC\",'Enrollment Form'!$DS53=\"\"),\"N\",IF(AND('Enrollment Form'!$C53=\"Enroll\",'Enrollment Form'!$B53=\"Subscriber\",'Enrollment Form'!$CX53=\"No\",'Enrollment Form'!$DS53=\"\"),\"N\",IF(AND('Enrollment Form'!$C53=\"Enroll\",'Enrollment Form'!$B53=\"Subscriber\",'Enrollment Form'!$CX53=\"Yes\"),\"-\",\"Y\")))))","v":""},{"$f":"IF('Enrollment Form'!AH53=\"\",\"\",IF(ISERROR(SEARCH(\".\",'Enrollment Form'!AH53,SEARCH(\"@\",'Enrollment Form'!AH53))),\"N\",\"Y\"))","v":""},{"$f":"IF(OR($B46=\"N\",'Enrollment Form'!$G53=\"\"),\"\",IF('Enrollment Form'!$B53<>\"Subscriber\",\"-\",IF(COUNTIF('Enrollment Form'!$AV53:$AW53,\"Yes\")=2,\"N\",\"Y\")))","v":""},{"$f":"IF(OR('Enrollment Form'!$CJ53=\"\",'Enrollment Form'!$CJ53=\"No\"),\"-\",IF(AND('Enrollment Form'!$CJ53=\"Yes\",'Enrollment Form'!$CK53=\"\"),\"N\",\"Y\"))","v":"-"},{"$f":"IF(OR('Enrollment Form'!$CL53=\"\",'Enrollment Form'!$CL53=\"No\"),\"-\",IF(AND('Enrollment Form'!$CL53=\"Yes\",'Enrollment Form'!$CM53=\"\"),\"N\",\"Y\"))","v":"-"},{"$f":"IF(OR('Enrollment Form'!$CN53=\"\",'Enrollment Form'!$CN53=\"No\"),\"-\",IF(AND('Enrollment Form'!$CN53=\"Yes\",'Enrollment Form'!$CO53=\"\"),\"N\",\"Y\"))","v":"-"},{"$f":"IF(OR('Enrollment Form'!$CN53=\"\",'Enrollment Form'!$CN53=\"No\"),\"-\",IF(AND('Enrollment Form'!$CN53=\"Yes\",'Enrollment Form'!$CP53=\"\"),\"N\",\"Y\"))","v":"-"},{"$f":"IF('Enrollment Form'!B53<>\"Subscriber\",\"-\",IF(AND('Enrollment Form'!B53=\"Subscriber\",'Enrollment Form'!C53=\"Enroll\",'Enrollment Form'!AA53=\"\"),\"N\",\"Y\"))","v":"-"},{"$f":"IF(OR('Enrollment Form'!B53=\"Subscriber\",'Enrollment Form'!B53=\"\"),\"-\",IF('Enrollment Form'!BP53=\"\",\"N\",\"Y\"))","v":"-"},{"$f":"IF('Enrollment Form'!B53<>\"Subscriber\",\"-\",IF(AND('Enrollment Form'!B53=\"Subscriber\",'Enrollment Form'!G53=\"\"),\"N\",\"Y\"))","v":"-"},{"$f":"IF('Enrollment Form'!A53=\"\",\"\",IF('Enrollment Form'!B53=\"Subscriber\",\"-\",IF(AND('Enrollment Form'!B53<>\"Subscriber\",'Enrollment Form'!G53='Enrollment Form'!H53),\"N\",\"Y\")))","v":""},0]
[54,{"$f":"IF('Enrollment Form'!$A54<>\"\",\"Y\",\"N\")","v":"N"},{"$f":"IF(AND('Enrollment Form'!$B54=\"\",'Enrollment Form'!$C54<>\"\"),\"N\",IF($B47=\"N\",\"\",\"Y\"))","v":""},{"$f":"IF(OR($B47=\"N\",'Enrollment Form'!G54=\"\"),\"\",IF('Enrollment Form'!$B54<>\"Subscriber\",\"\",IF('Enrollment Form'!$G54='Enrollment Form'!$H54,\"Y\",\"N\")))","v":""},{"$f":"IF($B47=\"N\",\"\",IF(AND(COUNTIFS('Enrollment Form'!$H$11:$H$1000,'Enrollment Form'!$H54,'Enrollment Form'!$B$11:$B$1000,'Enrollment Form'!$B54)>1,'Enrollment Form'!$H54<>\"\"),\"N\",\"Y\"))","v":""},{"$f":"IF($B47=\"N\",\"\",IF(LEN('Enrollment Form'!$Y54)=0,\"\",IF(LEN('Enrollment Form'!$Y54)<>5,\"N\",\"Y\")))","v":""},{"$f":"IF($B47=\"N\",\"\",IF(LEN('Enrollment Form'!$AD54=0),\"\",IF(LEN('Enrollment Form'!$AD54)<>5,\"N\",\"Y\")))","v":""},{"$f":"IF($B47=\"N\",\"\",IF(LEN('Enrollment Form'!$BS54=0),\"\",IF(LEN('Enrollment Form'!$BS54)<>5,\"N\",\"Y\")))","v":""},{"$f":"IF($B47=\"N\",\"\",IF(LEN('Enrollment Form'!$AE54)=0,\"\",IF(LEN('Enrollment Form'!$AE54)<>10,\"N\",\"Y\")))","v":""},{"$f":"IF($B47=\"N\",\"\",IF(LEN('Enrollment Form'!$AF54)=0,\"\",IF(LEN('Enrollment Form'!$AF54)<>10,\"N\",\"Y\")))","v":""},{"$f":"IF('Enrollment Form'!$O54<>\"Graded\",\"-\",IF(AND('Enrollment Form'!$O54=\"Graded\",'Enrollment Form'!$AR54<>\"\"),\"Y\",\"N\"))","v":"-"},{"$f":"IF($B47=\"N\",\"\",IF(OR('Enrollment Form'!$B54<>\"Subscriber\",'Enrollment Form'!$C54=\"ROC\"),\"-\",IF(AND('Enrollment Form'!$B54=\"Subscriber\",'Enrollment Form'!$C54=\"Enroll\",'Enrollment Form'!$AJ54<>\"\"),\"Y\",\"N\")))","v":""},{"$f":"IF($B47=\"N\",\"\",IF(OR('Enrollment Form'!$B54<>\"Subscriber\",'Enrollment Form'!$C54=\"ROC\"),\"-\",IF(AND('Enrollment Form'!$B54=\"Subscriber\",'Enrollment Form'!$C54=\"Enroll\",'Enrollment Form'!$AK54<>\"\"),\"Y\",\"N\")))","v":""},{"$f":"IF($B47=\"N\",\"\",IF(OR('Enrollment Form'!$B54<>\"Subscriber\",'Enrollment Form'!$C54=\"ROC\"),\"-\",IF(AND('Enrollment Form'!$B54=\"Subscriber\",'Enrollment Form'!$C54=\"Enroll\",'Enrollment Form'!$AL54<>\"\"),\"Y\",\"N\")))","v":""},{"$f":"IF($B47=\"N\",\"\",IF(OR('Enrollment Form'!$B54<>\"Subscriber\",'Enrollment Form'!$C54=\"ROC\"),\"-\",IF(AND('Enrollment Form'!$B54=\"Subscriber\",'Enrollment Form'!$C54=\"Enroll\",'Enrollment Form'!$AP54<>\"\"),\"Y\",\"N\")))","v":""},{"$f":"IF($B47=\"N\",\"\",IF(OR('Enrollment Form'!$B54<>\"Subscriber\",'Enrollment Form'!$C54=\"ROC\"),\"-\",IF(AND('Enrollment Form'!$B54=\"Subscriber\",'Enrollment Form'!$C54=\"Enroll\",'Enrollment Form'!$AQ54<>\"\"),\"Y\",\"N\")))","v":""},{"$f":"IF($B47=\"N\",\"\",IF(OR('Enrollment Form'!$B54<>\"Subscriber\",'Enrollment Form'!$C54=\"ROC\"),\"-\",IF(AND('Enrollment Form'!$B54=\"Subscriber\",'Enrollment Form'!$C54=\"Enroll\",'Enrollment Form'!$AS54<>\"\"),\"Y\",\"N\")))","v":""},{"$f":"IF($B47=\"N\",\"\",IF($Q47=\"-\",\"-\",IF(AND($Q47=\"Y\",'Enrollment Form'!$AS54=\"No\"),\"-\",IF(AND($Q47=\"Y\",'Enrollment Form'!$AS54=\"Yes\",'Enrollment Form'!$AT54<>\"\"),\"Y\",\"N\"))))","v":""},{"$f":"IF($B47=\"N\",\"\",IF(OR('Enrollment Form'!$B54<>\"Subscriber\",'Enrollment Form'!$C54=\"ROC\"),\"-\",IF(AND('Enrollment Form'!$B54=\"Subscriber\",'Enrollment Form'!$C54=\"Enroll\",'Enrollment Form'!$CV54<>\"\"),\"Y\",\"N\")))","v":""},{"$f":"IF($B47=\"N\",\"\",IF($S47=\"-\",\"-\",IF(AND($S47=\"Y\",'Enrollment Form'!$CV54=\"No\"),\"-\",IF(AND($S47=\"Y\",'Enrollment Form'!$CV54=\"Yes\",'Enrollment Form'!$CW54<>\"\"),\"Y\",\"N\"))))","v":""},{"$f":"IF(OR('Enrollment Form'!$AY54=\"Yes\",'Enrollment Form'!$AY54=\"\"),\"-\",IF(OR(AND('Enrollment Form'!$AY54=\"No\",ISERROR(FIND(\"HMO\",VLOOKUP('Enrollment Form'!G54,'Enrollment Form'!H$11:J$1000,3,FALSE),1))=FALSE,COUNTA('Enrollment Form'!$AZ54:$BC54)=4),AND('Enrollment Form'!$AY54=\"No\",ISERROR(FIND(\"HMO\",VLOOKUP('Enrollment Form'!G54,'Enrollment Form'!H$11:J$1000,3,FALSE),1))=FALSE,COUNTA('Enrollment Form'!$BT54:$BW54)=4)),\"Y\",\"N\"))","v":"-"},{"$f":"IF($B47=\"N\",\"\",IF('Enrollment Form'!$B54=\"Subscriber\",\"-\",IF(COUNTA('Enrollment Form'!$BL54,'Enrollment Form'!$BN54)=2,\"Y\",\"N\")))","v":""},{"$f":"IF($B47=\"N\",\"\",IF(OR('Enrollment Form'!$AX54=\"\",'Enrollment Form'!$AX54=\"No\"),\"-\",IF(AND('Enrollment Form'!$AX54=\"Yes\",COUNTA('Enrollment Form'!$CR54)=1),\"Y\",\"N\")))","v":""},{"$f":"IF(OR('Enrollment Form'!$CR54=\"\",'Enrollment Form'!$CR54=\"No\"),\"-\",IF(COUNTA('Enrollment Form'!$CT54:$CU54)=2,\"Y\",\"N\"))","v":"-"},{"$f":"IF($B47=\"N\",\"\",IF(COUNTIF('Enrollment Form'!$DG54:$DP54,\"Other\")=COUNTA('Enrollment Form'!$DK54,'Enrollment Form'!$DH54,'Enrollment Form'!$DN54,'Enrollment Form'!$DQ54),\"Y\",\"N\"))","v":""},{"$f":"IF($B47=\"N\",\"\",IF(OR('Enrollment Form'!B54<>\"Subscriber\",'Enrollment Form'!C54=\"ROC\",COUNTIF('Enrollment Form'!AV54:AW54,\"Yes\")>=1),\"-\",IF(AND('Enrollment Form'!C54=\"Enroll\",COUNTIF('Enrollment Form'!AV54:AW54,\"No\")=2,'Enrollment Form'!AX54=\"\"),\"N\",\"Y\")))","v":""},{"$f":"IF(OR(B47=\"N\",'Enrollment Form'!B54<>\"Subscriber\",'Enrollment Form'!C54=\"ROC\",'Enrollment Form'!O54<>\"Multiple of Salary\"),\"-\",IF(COUNTA('Enrollment Form'!T54:U54)<2,\"N\",\"Y\"))","v":"-"},{"$f":"IF(B47=\"N\",\"\",IF(OR('Enrollment Form'!C54=\"ROC\",'Enrollment Form'!B54<>\"Subscriber\",'Enrollment Form'!O54=\"Waive\",'Enrollment Form'!O54=\"\"),\"-\",IF('Enrollment Form'!P54=\"\",\"N\",\"Y\")))","v":""},{"$f":"IF($B47=\"N\",\"\",IF(AND('Enrollment Form'!$C54=\"ROC\",'Enrollment Form'!$DR54<>\"\"),\"Y\",IF(AND('Enrollment Form'!$C54=\"ROC\",'Enrollment Form'!$DR54=\"\"),\"N\",IF(AND('Enrollment Form'!$C54=\"Enroll\",'Enrollment Form'!$B54=\"Subscriber\",'Enrollment Form'!$CX54=\"No\",'Enrollment Form'!$DR54=\"\"),\"N\",IF(AND('Enrollment Form'!$C54=\"Enroll\",'Enrollment Form'!$B54=\"Subscriber\",'Enrollment Form'!$CX54=\"Yes\"),\"-\",\"Y\")))))","v":""},{"$f":"IF($B47=\"N\",\"\",IF(AND('Enrollment Form'!$C54=\"ROC\",'Enrollment Form'!$DS54<>\"\"),\"Y\",IF(AND('Enrollment Form'!$C54=\"ROC\",'Enrollment Form'!$DS54=\"\"),\"N\",IF(AND('Enrollment Form'!$C54=\"Enroll\",'Enrollment Form'!$B54=\"Subscriber\",'Enrollment Form'!$CX54=\"No\",'Enrollment Form'!$DS54=\"\"),\"N\",IF(AND('Enrollment Form'!$C54=\"Enroll\",'Enrollment Form'!$B54=\"Subscriber\",'Enrollment Form'!$CX54=\"Yes\"),\"-\",\"Y\")))))","v":""},{"$f":"IF('Enrollment Form'!AH54=\"\",\"\",IF(ISERROR(SEARCH(\".\",'Enrollment Form'!AH54,SEARCH(\"@\",'Enrollment Form'!AH54))),\"N\",\"Y\"))","v":""},{"$f":"IF(OR($B47=\"N\",'Enrollment Form'!$G54=\"\"),\"\",IF('Enrollment Form'!$B54<>\"Subscriber\",\"-\",IF(COUNTIF('Enrollment Form'!$AV54:$AW54,\"Yes\")=2,\"N\",\"Y\")))","v":""},{"$f":"IF(OR('Enrollment Form'!$CJ54=\"\",'Enrollment Form'!$CJ54=\"No\"),\"-\",IF(AND('Enrollment Form'!$CJ54=\"Yes\",'Enrollment Form'!$CK54=\"\"),\"N\",\"Y\"))","v":"-"},{"$f":"IF(OR('Enrollment Form'!$CL54=\"\",'Enrollment Form'!$CL54=\"No\"),\"-\",IF(AND('Enrollment Form'!$CL54=\"Yes\",'Enrollment Form'!$CM54=\"\"),\"N\",\"Y\"))","v":"-"},{"$f":"IF(OR('Enrollment Form'!$CN54=\"\",'Enrollment Form'!$CN54=\"No\"),\"-\",IF(AND('Enrollment Form'!$CN54=\"Yes\",'Enrollment Form'!$CO54=\"\"),\"N\",\"Y\"))","v":"-"},{"$f":"IF(OR('Enrollment Form'!$CN54=\"\",'Enrollment Form'!$CN54=\"No\"),\"-\",IF(AND('Enrollment Form'!$CN54=\"Yes\",'Enrollment Form'!$CP54=\"\"),\"N\",\"Y\"))","v":"-"},{"$f":"IF('Enrollment Form'!B54<>\"Subscriber\",\"-\",IF(AND('Enrollment Form'!B54=\"Subscriber\",'Enrollment Form'!C54=\"Enroll\",'Enrollment Form'!AA54=\"\"),\"N\",\"Y\"))","v":"-"},{"$f":"IF(OR('Enrollment Form'!B54=\"Subscriber\",'Enrollment Form'!B54=\"\"),\"-\",IF('Enrollment Form'!BP54=\"\",\"N\",\"Y\"))","v":"-"},{"$f":"IF('Enrollment Form'!B54<>\"Subscriber\",\"-\",IF(AND('Enrollment Form'!B54=\"Subscriber\",'Enrollment Form'!G54=\"\"),\"N\",\"Y\"))","v":"-"},{"$f":"IF('Enrollment Form'!A54=\"\",\"\",IF('Enrollment Form'!B54=\"Subscriber\",\"-\",IF(AND('Enrollment Form'!B54<>\"Subscriber\",'Enrollment Form'!G54='Enrollment Form'!H54),\"N\",\"Y\")))","v":""},0]
[55,{"$f":"IF('Enrollment Form'!$A55<>\"\",\"Y\",\"N\")","v":"N"},{"$f":"IF(AND('Enrollment Form'!$B55=\"\",'Enrollment Form'!$C55<>\"\"),\"N\",IF($B48=\"N\",\"\",\"Y\"))","v":""},{"$f":"IF(OR($B48=\"N\",'Enrollment Form'!G55=\"\"),\"\",IF('Enrollment Form'!$B55<>\"Subscriber\",\"\",IF('Enrollment Form'!$G55='Enrollment Form'!$H55,\"Y\",\"N\")))","v":""},{"$f":"IF($B48=\"N\",\"\",IF(AND(COUNTIFS('Enrollment Form'!$H$11:$H$1000,'Enrollment Form'!$H55,'Enrollment Form'!$B$11:$B$1000,'Enrollment Form'!$B55)>1,'Enrollment Form'!$H55<>\"\"),\"N\",\"Y\"))","v":""},{"$f":"IF($B48=\"N\",\"\",IF(LEN('Enrollment Form'!$Y55)=0,\"\",IF(LEN('Enrollment Form'!$Y55)<>5,\"N\",\"Y\")))","v":""},{"$f":"IF($B48=\"N\",\"\",IF(LEN('Enrollment Form'!$AD55=0),\"\",IF(LEN('Enrollment Form'!$AD55)<>5,\"N\",\"Y\")))","v":""},{"$f":"IF($B48=\"N\",\"\",IF(LEN('Enrollment Form'!$BS55=0),\"\",IF(LEN('Enrollment Form'!$BS55)<>5,\"N\",\"Y\")))","v":""},{"$f":"IF($B48=\"N\",\"\",IF(LEN('Enrollment Form'!$AE55)=0,\"\",IF(LEN('Enrollment Form'!$AE55)<>10,\"N\",\"Y\")))","v":""},{"$f":"IF($B48=\"N\",\"\",IF(LEN('Enrollment Form'!$AF55)=0,\"\",IF(LEN('Enrollment Form'!$AF55)<>10,\"N\",\"Y\")))","v":""},{"$f":"IF('Enrollment Form'!$O55<>\"Graded\",\"-\",IF(AND('Enrollment Form'!$O55=\"Graded\",'Enrollment Form'!$AR55<>\"\"),\"Y\",\"N\"))","v":"-"},{"$f":"IF($B48=\"N\",\"\",IF(OR('Enrollment Form'!$B55<>\"Subscriber\",'Enrollment Form'!$C55=\"ROC\"),\"-\",IF(AND('Enrollment Form'!$B55=\"Subscriber\",'Enrollment Form'!$C55=\"Enroll\",'Enrollment Form'!$AJ55<>\"\"),\"Y\",\"N\")))","v":""},{"$f":"IF($B48=\"N\",\"\",IF(OR('Enrollment Form'!$B55<>\"Subscriber\",'Enrollment Form'!$C55=\"ROC\"),\"-\",IF(AND('Enrollment Form'!$B55=\"Subscriber\",'Enrollment Form'!$C55=\"Enroll\",'Enrollment Form'!$AK55<>\"\"),\"Y\",\"N\")))","v":""},{"$f":"IF($B48=\"N\",\"\",IF(OR('Enrollment Form'!$B55<>\"Subscriber\",'Enrollment Form'!$C55=\"ROC\"),\"-\",IF(AND('Enrollment Form'!$B55=\"Subscriber\",'Enrollment Form'!$C55=\"Enroll\",'Enrollment Form'!$AL55<>\"\"),\"Y\",\"N\")))","v":""},{"$f":"IF($B48=\"N\",\"\",IF(OR('Enrollment Form'!$B55<>\"Subscriber\",'Enrollment Form'!$C55=\"ROC\"),\"-\",IF(AND('Enrollment Form'!$B55=\"Subscriber\",'Enrollment Form'!$C55=\"Enroll\",'Enrollment Form'!$AP55<>\"\"),\"Y\",\"N\")))","v":""},{"$f":"IF($B48=\"N\",\"\",IF(OR('Enrollment Form'!$B55<>\"Subscriber\",'Enrollment Form'!$C55=\"ROC\"),\"-\",IF(AND('Enrollment Form'!$B55=\"Subscriber\",'Enrollment Form'!$C55=\"Enroll\",'Enrollment Form'!$AQ55<>\"\"),\"Y\",\"N\")))","v":""},{"$f":"IF($B48=\"N\",\"\",IF(OR('Enrollment Form'!$B55<>\"Subscriber\",'Enrollment Form'!$C55=\"ROC\"),\"-\",IF(AND('Enrollment Form'!$B55=\"Subscriber\",'Enrollment Form'!$C55=\"Enroll\",'Enrollment Form'!$AS55<>\"\"),\"Y\",\"N\")))","v":""},{"$f":"IF($B48=\"N\",\"\",IF($Q48=\"-\",\"-\",IF(AND($Q48=\"Y\",'Enrollment Form'!$AS55=\"No\"),\"-\",IF(AND($Q48=\"Y\",'Enrollment Form'!$AS55=\"Yes\",'Enrollment Form'!$AT55<>\"\"),\"Y\",\"N\"))))","v":""},{"$f":"IF($B48=\"N\",\"\",IF(OR('Enrollment Form'!$B55<>\"Subscriber\",'Enrollment Form'!$C55=\"ROC\"),\"-\",IF(AND('Enrollment Form'!$B55=\"Subscriber\",'Enrollment Form'!$C55=\"Enroll\",'Enrollment Form'!$CV55<>\"\"),\"Y\",\"N\")))","v":""},{"$f":"IF($B48=\"N\",\"\",IF($S48=\"-\",\"-\",IF(AND($S48=\"Y\",'Enrollment Form'!$CV55=\"No\"),\"-\",IF(AND($S48=\"Y\",'Enrollment Form'!$CV55=\"Yes\",'Enrollment Form'!$CW55<>\"\"),\"Y\",\"N\"))))","v":""},{"$f":"IF(OR('Enrollment Form'!$AY55=\"Yes\",'Enrollment Form'!$AY55=\"\"),\"-\",IF(OR(AND('Enrollment Form'!$AY55=\"No\",ISERROR(FIND(\"HMO\",VLOOKUP('Enrollment Form'!G55,'Enrollment Form'!H$11:J$1000,3,FALSE),1))=FALSE,COUNTA('Enrollment Form'!$AZ55:$BC55)=4),AND('Enrollment Form'!$AY55=\"No\",ISERROR(FIND(\"HMO\",VLOOKUP('Enrollment Form'!G55,'Enrollment Form'!H$11:J$1000,3,FALSE),1))=FALSE,COUNTA('Enrollment Form'!$BT55:$BW55)=4)),\"Y\",\"N\"))","v":"-"},{"$f":"IF($B48=\"N\",\"\",IF('Enrollment Form'!$B55=\"Subscriber\",\"-\",IF(COUNTA('Enrollment Form'!$BL55,'Enrollment Form'!$BN55)=2,\"Y\",\"N\")))","v":""},{"$f":"IF($B48=\"N\",\"\",IF(OR('Enrollment Form'!$AX55=\"\",'Enrollment Form'!$AX55=\"No\"),\"-\",IF(AND('Enrollment Form'!$AX55=\"Yes\",COUNTA('Enrollment Form'!$CR55)=1),\"Y\",\"N\")))","v":""},{"$f":"IF(OR('Enrollment Form'!$CR55=\"\",'Enrollment Form'!$CR55=\"No\"),\"-\",IF(COUNTA('Enrollment Form'!$CT55:$CU55)=2,\"Y\",\"N\"))","v":"-"},{"$f":"IF($B48=\"N\",\"\",IF(COUNTIF('Enrollment Form'!$DG55:$DP55,\"Other\")=COUNTA('Enrollment Form'!$DK55,'Enrollment Form'!$DH55,'Enrollment Form'!$DN55,'Enrollment Form'!$DQ55),\"Y\",\"N\"))","v":""},{"$f":"IF($B48=\"N\",\"\",IF(OR('Enrollment Form'!B55<>\"Subscriber\",'Enrollment Form'!C55=\"ROC\",COUNTIF('Enrollment Form'!AV55:AW55,\"Yes\")>=1),\"-\",IF(AND('Enrollment Form'!C55=\"Enroll\",COUNTIF('Enrollment Form'!AV55:AW55,\"No\")=2,'Enrollment Form'!AX55=\"\"),\"N\",\"Y\")))","v":""},{"$f":"IF(OR(B48=\"N\",'Enrollment Form'!B55<>\"Subscriber\",'Enrollment Form'!C55=\"ROC\",'Enrollment Form'!O55<>\"Multiple of Salary\"),\"-\",IF(COUNTA('Enrollment Form'!T55:U55)<2,\"N\",\"Y\"))","v":"-"},{"$f":"IF(B48=\"N\",\"\",IF(OR('Enrollment Form'!C55=\"ROC\",'Enrollment Form'!B55<>\"Subscriber\",'Enrollment Form'!O55=\"Waive\",'Enrollment Form'!O55=\"\"),\"-\",IF('Enrollment Form'!P55=\"\",\"N\",\"Y\")))","v":""},{"$f":"IF($B48=\"N\",\"\",IF(AND('Enrollment Form'!$C55=\"ROC\",'Enrollment Form'!$DR55<>\"\"),\"Y\",IF(AND('Enrollment Form'!$C55=\"ROC\",'Enrollment Form'!$DR55=\"\"),\"N\",IF(AND('Enrollment Form'!$C55=\"Enroll\",'Enrollment Form'!$B55=\"Subscriber\",'Enrollment Form'!$CX55=\"No\",'Enrollment Form'!$DR55=\"\"),\"N\",IF(AND('Enrollment Form'!$C55=\"Enroll\",'Enrollment Form'!$B55=\"Subscriber\",'Enrollment Form'!$CX55=\"Yes\"),\"-\",\"Y\")))))","v":""},{"$f":"IF($B48=\"N\",\"\",IF(AND('Enrollment Form'!$C55=\"ROC\",'Enrollment Form'!$DS55<>\"\"),\"Y\",IF(AND('Enrollment Form'!$C55=\"ROC\",'Enrollment Form'!$DS55=\"\"),\"N\",IF(AND('Enrollment Form'!$C55=\"Enroll\",'Enrollment Form'!$B55=\"Subscriber\",'Enrollment Form'!$CX55=\"No\",'Enrollment Form'!$DS55=\"\"),\"N\",IF(AND('Enrollment Form'!$C55=\"Enroll\",'Enrollment Form'!$B55=\"Subscriber\",'Enrollment Form'!$CX55=\"Yes\"),\"-\",\"Y\")))))","v":""},{"$f":"IF('Enrollment Form'!AH55=\"\",\"\",IF(ISERROR(SEARCH(\".\",'Enrollment Form'!AH55,SEARCH(\"@\",'Enrollment Form'!AH55))),\"N\",\"Y\"))","v":""},{"$f":"IF(OR($B48=\"N\",'Enrollment Form'!$G55=\"\"),\"\",IF('Enrollment Form'!$B55<>\"Subscriber\",\"-\",IF(COUNTIF('Enrollment Form'!$AV55:$AW55,\"Yes\")=2,\"N\",\"Y\")))","v":""},{"$f":"IF(OR('Enrollment Form'!$CJ55=\"\",'Enrollment Form'!$CJ55=\"No\"),\"-\",IF(AND('Enrollment Form'!$CJ55=\"Yes\",'Enrollment Form'!$CK55=\"\"),\"N\",\"Y\"))","v":"-"},{"$f":"IF(OR('Enrollment Form'!$CL55=\"\",'Enrollment Form'!$CL55=\"No\"),\"-\",IF(AND('Enrollment Form'!$CL55=\"Yes\",'Enrollment Form'!$CM55=\"\"),\"N\",\"Y\"))","v":"-"},{"$f":"IF(OR('Enrollment Form'!$CN55=\"\",'Enrollment Form'!$CN55=\"No\"),\"-\",IF(AND('Enrollment Form'!$CN55=\"Yes\",'Enrollment Form'!$CO55=\"\"),\"N\",\"Y\"))","v":"-"},{"$f":"IF(OR('Enrollment Form'!$CN55=\"\",'Enrollment Form'!$CN55=\"No\"),\"-\",IF(AND('Enrollment Form'!$CN55=\"Yes\",'Enrollment Form'!$CP55=\"\"),\"N\",\"Y\"))","v":"-"},{"$f":"IF('Enrollment Form'!B55<>\"Subscriber\",\"-\",IF(AND('Enrollment Form'!B55=\"Subscriber\",'Enrollment Form'!C55=\"Enroll\",'Enrollment Form'!AA55=\"\"),\"N\",\"Y\"))","v":"-"},{"$f":"IF(OR('Enrollment Form'!B55=\"Subscriber\",'Enrollment Form'!B55=\"\"),\"-\",IF('Enrollment Form'!BP55=\"\",\"N\",\"Y\"))","v":"-"},{"$f":"IF('Enrollment Form'!B55<>\"Subscriber\",\"-\",IF(AND('Enrollment Form'!B55=\"Subscriber\",'Enrollment Form'!G55=\"\"),\"N\",\"Y\"))","v":"-"},{"$f":"IF('Enrollment Form'!A55=\"\",\"\",IF('Enrollment Form'!B55=\"Subscriber\",\"-\",IF(AND('Enrollment Form'!B55<>\"Subscriber\",'Enrollment Form'!G55='Enrollment Form'!H55),\"N\",\"Y\")))","v":""},0]
[56,{"$f":"IF('Enrollment Form'!$A56<>\"\",\"Y\",\"N\")","v":"N"},{"$f":"IF(AND('Enrollment Form'!$B56=\"\",'Enrollment Form'!$C56<>\"\"),\"N\",IF($B49=\"N\",\"\",\"Y\"))","v":""},{"$f":"IF(OR($B49=\"N\",'Enrollment Form'!G56=\"\"),\"\",IF('Enrollment Form'!$B56<>\"Subscriber\",\"\",IF('Enrollment Form'!$G56='Enrollment Form'!$H56,\"Y\",\"N\")))","v":""},{"$f":"IF($B49=\"N\",\"\",IF(AND(COUNTIFS('Enrollment Form'!$H$11:$H$1000,'Enrollment Form'!$H56,'Enrollment Form'!$B$11:$B$1000,'Enrollment Form'!$B56)>1,'Enrollment Form'!$H56<>\"\"),\"N\",\"Y\"))","v":""},{"$f":"IF($B49=\"N\",\"\",IF(LEN('Enrollment Form'!$Y56)=0,\"\",IF(LEN('Enrollment Form'!$Y56)<>5,\"N\",\"Y\")))","v":""},{"$f":"IF($B49=\"N\",\"\",IF(LEN('Enrollment Form'!$AD56=0),\"\",IF(LEN('Enrollment Form'!$AD56)<>5,\"N\",\"Y\")))","v":""},{"$f":"IF($B49=\"N\",\"\",IF(LEN('Enrollment Form'!$BS56=0),\"\",IF(LEN('Enrollment Form'!$BS56)<>5,\"N\",\"Y\")))","v":""},{"$f":"IF($B49=\"N\",\"\",IF(LEN('Enrollment Form'!$AE56)=0,\"\",IF(LEN('Enrollment Form'!$AE56)<>10,\"N\",\"Y\")))","v":""},{"$f":"IF($B49=\"N\",\"\",IF(LEN('Enrollment Form'!$AF56)=0,\"\",IF(LEN('Enrollment Form'!$AF56)<>10,\"N\",\"Y\")))","v":""},{"$f":"IF('Enrollment Form'!$O56<>\"Graded\",\"-\",IF(AND('Enrollment Form'!$O56=\"Graded\",'Enrollment Form'!$AR56<>\"\"),\"Y\",\"N\"))","v":"-"},{"$f":"IF($B49=\"N\",\"\",IF(OR('Enrollment Form'!$B56<>\"Subscriber\",'Enrollment Form'!$C56=\"ROC\"),\"-\",IF(AND('Enrollment Form'!$B56=\"Subscriber\",'Enrollment Form'!$C56=\"Enroll\",'Enrollment Form'!$AJ56<>\"\"),\"Y\",\"N\")))","v":""},{"$f":"IF($B49=\"N\",\"\",IF(OR('Enrollment Form'!$B56<>\"Subscriber\",'Enrollment Form'!$C56=\"ROC\"),\"-\",IF(AND('Enrollment Form'!$B56=\"Subscriber\",'Enrollment Form'!$C56=\"Enroll\",'Enrollment Form'!$AK56<>\"\"),\"Y\",\"N\")))","v":""},{"$f":"IF($B49=\"N\",\"\",IF(OR('Enrollment Form'!$B56<>\"Subscriber\",'Enrollment Form'!$C56=\"ROC\"),\"-\",IF(AND('Enrollment Form'!$B56=\"Subscriber\",'Enrollment Form'!$C56=\"Enroll\",'Enrollment Form'!$AL56<>\"\"),\"Y\",\"N\")))","v":""},{"$f":"IF($B49=\"N\",\"\",IF(OR('Enrollment Form'!$B56<>\"Subscriber\",'Enrollment Form'!$C56=\"ROC\"),\"-\",IF(AND('Enrollment Form'!$B56=\"Subscriber\",'Enrollment Form'!$C56=\"Enroll\",'Enrollment Form'!$AP56<>\"\"),\"Y\",\"N\")))","v":""},{"$f":"IF($B49=\"N\",\"\",IF(OR('Enrollment Form'!$B56<>\"Subscriber\",'Enrollment Form'!$C56=\"ROC\"),\"-\",IF(AND('Enrollment Form'!$B56=\"Subscriber\",'Enrollment Form'!$C56=\"Enroll\",'Enrollment Form'!$AQ56<>\"\"),\"Y\",\"N\")))","v":""},{"$f":"IF($B49=\"N\",\"\",IF(OR('Enrollment Form'!$B56<>\"Subscriber\",'Enrollment Form'!$C56=\"ROC\"),\"-\",IF(AND('Enrollment Form'!$B56=\"Subscriber\",'Enrollment Form'!$C56=\"Enroll\",'Enrollment Form'!$AS56<>\"\"),\"Y\",\"N\")))","v":""},{"$f":"IF($B49=\"N\",\"\",IF($Q49=\"-\",\"-\",IF(AND($Q49=\"Y\",'Enrollment Form'!$AS56=\"No\"),\"-\",IF(AND($Q49=\"Y\",'Enrollment Form'!$AS56=\"Yes\",'Enrollment Form'!$AT56<>\"\"),\"Y\",\"N\"))))","v":""},{"$f":"IF($B49=\"N\",\"\",IF(OR('Enrollment Form'!$B56<>\"Subscriber\",'Enrollment Form'!$C56=\"ROC\"),\"-\",IF(AND('Enrollment Form'!$B56=\"Subscriber\",'Enrollment Form'!$C56=\"Enroll\",'Enrollment Form'!$CV56<>\"\"),\"Y\",\"N\")))","v":""},{"$f":"IF($B49=\"N\",\"\",IF($S49=\"-\",\"-\",IF(AND($S49=\"Y\",'Enrollment Form'!$CV56=\"No\"),\"-\",IF(AND($S49=\"Y\",'Enrollment Form'!$CV56=\"Yes\",'Enrollment Form'!$CW56<>\"\"),\"Y\",\"N\"))))","v":""},{"$f":"IF(OR('Enrollment Form'!$AY56=\"Yes\",'Enrollment Form'!$AY56=\"\"),\"-\",IF(OR(AND('Enrollment Form'!$AY56=\"No\",ISERROR(FIND(\"HMO\",VLOOKUP('Enrollment Form'!G56,'Enrollment Form'!H$11:J$1000,3,FALSE),1))=FALSE,COUNTA('Enrollment Form'!$AZ56:$BC56)=4),AND('Enrollment Form'!$AY56=\"No\",ISERROR(FIND(\"HMO\",VLOOKUP('Enrollment Form'!G56,'Enrollment Form'!H$11:J$1000,3,FALSE),1))=FALSE,COUNTA('Enrollment Form'!$BT56:$BW56)=4)),\"Y\",\"N\"))","v":"-"},{"$f":"IF($B49=\"N\",\"\",IF('Enrollment Form'!$B56=\"Subscriber\",\"-\",IF(COUNTA('Enrollment Form'!$BL56,'Enrollment Form'!$BN56)=2,\"Y\",\"N\")))","v":""},{"$f":"IF($B49=\"N\",\"\",IF(OR('Enrollment Form'!$AX56=\"\",'Enrollment Form'!$AX56=\"No\"),\"-\",IF(AND('Enrollment Form'!$AX56=\"Yes\",COUNTA('Enrollment Form'!$CR56)=1),\"Y\",\"N\")))","v":""},{"$f":"IF(OR('Enrollment Form'!$CR56=\"\",'Enrollment Form'!$CR56=\"No\"),\"-\",IF(COUNTA('Enrollment Form'!$CT56:$CU56)=2,\"Y\",\"N\"))","v":"-"},{"$f":"IF($B49=\"N\",\"\",IF(COUNTIF('Enrollment Form'!$DG56:$DP56,\"Other\")=COUNTA('Enrollment Form'!$DK56,'Enrollment Form'!$DH56,'Enrollment Form'!$DN56,'Enrollment Form'!$DQ56),\"Y\",\"N\"))","v":""},{"$f":"IF($B49=\"N\",\"\",IF(OR('Enrollment Form'!B56<>\"Subscriber\",'Enrollment Form'!C56=\"ROC\",COUNTIF('Enrollment Form'!AV56:AW56,\"Yes\")>=1),\"-\",IF(AND('Enrollment Form'!C56=\"Enroll\",COUNTIF('Enrollment Form'!AV56:AW56,\"No\")=2,'Enrollment Form'!AX56=\"\"),\"N\",\"Y\")))","v":""},{"$f":"IF(OR(B49=\"N\",'Enrollment Form'!B56<>\"Subscriber\",'Enrollment Form'!C56=\"ROC\",'Enrollment Form'!O56<>\"Multiple of Salary\"),\"-\",IF(COUNTA('Enrollment Form'!T56:U56)<2,\"N\",\"Y\"))","v":"-"},{"$f":"IF(B49=\"N\",\"\",IF(OR('Enrollment Form'!C56=\"ROC\",'Enrollment Form'!B56<>\"Subscriber\",'Enrollment Form'!O56=\"Waive\",'Enrollment Form'!O56=\"\"),\"-\",IF('Enrollment Form'!P56=\"\",\"N\",\"Y\")))","v":""},{"$f":"IF($B49=\"N\",\"\",IF(AND('Enrollment Form'!$C56=\"ROC\",'Enrollment Form'!$DR56<>\"\"),\"Y\",IF(AND('Enrollment Form'!$C56=\"ROC\",'Enrollment Form'!$DR56=\"\"),\"N\",IF(AND('Enrollment Form'!$C56=\"Enroll\",'Enrollment Form'!$B56=\"Subscriber\",'Enrollment Form'!$CX56=\"No\",'Enrollment Form'!$DR56=\"\"),\"N\",IF(AND('Enrollment Form'!$C56=\"Enroll\",'Enrollment Form'!$B56=\"Subscriber\",'Enrollment Form'!$CX56=\"Yes\"),\"-\",\"Y\")))))","v":""},{"$f":"IF($B49=\"N\",\"\",IF(AND('Enrollment Form'!$C56=\"ROC\",'Enrollment Form'!$DS56<>\"\"),\"Y\",IF(AND('Enrollment Form'!$C56=\"ROC\",'Enrollment Form'!$DS56=\"\"),\"N\",IF(AND('Enrollment Form'!$C56=\"Enroll\",'Enrollment Form'!$B56=\"Subscriber\",'Enrollment Form'!$CX56=\"No\",'Enrollment Form'!$DS56=\"\"),\"N\",IF(AND('Enrollment Form'!$C56=\"Enroll\",'Enrollment Form'!$B56=\"Subscriber\",'Enrollment Form'!$CX56=\"Yes\"),\"-\",\"Y\")))))","v":""},{"$f":"IF('Enrollment Form'!AH56=\"\",\"\",IF(ISERROR(SEARCH(\".\",'Enrollment Form'!AH56,SEARCH(\"@\",'Enrollment Form'!AH56))),\"N\",\"Y\"))","v":""},{"$f":"IF(OR($B49=\"N\",'Enrollment Form'!$G56=\"\"),\"\",IF('Enrollment Form'!$B56<>\"Subscriber\",\"-\",IF(COUNTIF('Enrollment Form'!$AV56:$AW56,\"Yes\")=2,\"N\",\"Y\")))","v":""},{"$f":"IF(OR('Enrollment Form'!$CJ56=\"\",'Enrollment Form'!$CJ56=\"No\"),\"-\",IF(AND('Enrollment Form'!$CJ56=\"Yes\",'Enrollment Form'!$CK56=\"\"),\"N\",\"Y\"))","v":"-"},{"$f":"IF(OR('Enrollment Form'!$CL56=\"\",'Enrollment Form'!$CL56=\"No\"),\"-\",IF(AND('Enrollment Form'!$CL56=\"Yes\",'Enrollment Form'!$CM56=\"\"),\"N\",\"Y\"))","v":"-"},{"$f":"IF(OR('Enrollment Form'!$CN56=\"\",'Enrollment Form'!$CN56=\"No\"),\"-\",IF(AND('Enrollment Form'!$CN56=\"Yes\",'Enrollment Form'!$CO56=\"\"),\"N\",\"Y\"))","v":"-"},{"$f":"IF(OR('Enrollment Form'!$CN56=\"\",'Enrollment Form'!$CN56=\"No\"),\"-\",IF(AND('Enrollment Form'!$CN56=\"Yes\",'Enrollment Form'!$CP56=\"\"),\"N\",\"Y\"))","v":"-"},{"$f":"IF('Enrollment Form'!B56<>\"Subscriber\",\"-\",IF(AND('Enrollment Form'!B56=\"Subscriber\",'Enrollment Form'!C56=\"Enroll\",'Enrollment Form'!AA56=\"\"),\"N\",\"Y\"))","v":"-"},{"$f":"IF(OR('Enrollment Form'!B56=\"Subscriber\",'Enrollment Form'!B56=\"\"),\"-\",IF('Enrollment Form'!BP56=\"\",\"N\",\"Y\"))","v":"-"},{"$f":"IF('Enrollment Form'!B56<>\"Subscriber\",\"-\",IF(AND('Enrollment Form'!B56=\"Subscriber\",'Enrollment Form'!G56=\"\"),\"N\",\"Y\"))","v":"-"},{"$f":"IF('Enrollment Form'!A56=\"\",\"\",IF('Enrollment Form'!B56=\"Subscriber\",\"-\",IF(AND('Enrollment Form'!B56<>\"Subscriber\",'Enrollment Form'!G56='Enrollment Form'!H56),\"N\",\"Y\")))","v":""},0]
[57,{"$f":"IF('Enrollment Form'!$A57<>\"\",\"Y\",\"N\")","v":"N"},{"$f":"IF(AND('Enrollment Form'!$B57=\"\",'Enrollment Form'!$C57<>\"\"),\"N\",IF($B50=\"N\",\"\",\"Y\"))","v":""},{"$f":"IF(OR($B50=\"N\",'Enrollment Form'!G57=\"\"),\"\",IF('Enrollment Form'!$B57<>\"Subscriber\",\"\",IF('Enrollment Form'!$G57='Enrollment Form'!$H57,\"Y\",\"N\")))","v":""},{"$f":"IF($B50=\"N\",\"\",IF(AND(COUNTIFS('Enrollment Form'!$H$11:$H$1000,'Enrollment Form'!$H57,'Enrollment Form'!$B$11:$B$1000,'Enrollment Form'!$B57)>1,'Enrollment Form'!$H57<>\"\"),\"N\",\"Y\"))","v":""},{"$f":"IF($B50=\"N\",\"\",IF(LEN('Enrollment Form'!$Y57)=0,\"\",IF(LEN('Enrollment Form'!$Y57)<>5,\"N\",\"Y\")))","v":""},{"$f":"IF($B50=\"N\",\"\",IF(LEN('Enrollment Form'!$AD57=0),\"\",IF(LEN('Enrollment Form'!$AD57)<>5,\"N\",\"Y\")))","v":""},{"$f":"IF($B50=\"N\",\"\",IF(LEN('Enrollment Form'!$BS57=0),\"\",IF(LEN('Enrollment Form'!$BS57)<>5,\"N\",\"Y\")))","v":""},{"$f":"IF($B50=\"N\",\"\",IF(LEN('Enrollment Form'!$AE57)=0,\"\",IF(LEN('Enrollment Form'!$AE57)<>10,\"N\",\"Y\")))","v":""},{"$f":"IF($B50=\"N\",\"\",IF(LEN('Enrollment Form'!$AF57)=0,\"\",IF(LEN('Enrollment Form'!$AF57)<>10,\"N\",\"Y\")))","v":""},{"$f":"IF('Enrollment Form'!$O57<>\"Graded\",\"-\",IF(AND('Enrollment Form'!$O57=\"Graded\",'Enrollment Form'!$AR57<>\"\"),\"Y\",\"N\"))","v":"-"},{"$f":"IF($B50=\"N\",\"\",IF(OR('Enrollment Form'!$B57<>\"Subscriber\",'Enrollment Form'!$C57=\"ROC\"),\"-\",IF(AND('Enrollment Form'!$B57=\"Subscriber\",'Enrollment Form'!$C57=\"Enroll\",'Enrollment Form'!$AJ57<>\"\"),\"Y\",\"N\")))","v":""},{"$f":"IF($B50=\"N\",\"\",IF(OR('Enrollment Form'!$B57<>\"Subscriber\",'Enrollment Form'!$C57=\"ROC\"),\"-\",IF(AND('Enrollment Form'!$B57=\"Subscriber\",'Enrollment Form'!$C57=\"Enroll\",'Enrollment Form'!$AK57<>\"\"),\"Y\",\"N\")))","v":""},{"$f":"IF($B50=\"N\",\"\",IF(OR('Enrollment Form'!$B57<>\"Subscriber\",'Enrollment Form'!$C57=\"ROC\"),\"-\",IF(AND('Enrollment Form'!$B57=\"Subscriber\",'Enrollment Form'!$C57=\"Enroll\",'Enrollment Form'!$AL57<>\"\"),\"Y\",\"N\")))","v":""},{"$f":"IF($B50=\"N\",\"\",IF(OR('Enrollment Form'!$B57<>\"Subscriber\",'Enrollment Form'!$C57=\"ROC\"),\"-\",IF(AND('Enrollment Form'!$B57=\"Subscriber\",'Enrollment Form'!$C57=\"Enroll\",'Enrollment Form'!$AP57<>\"\"),\"Y\",\"N\")))","v":""},{"$f":"IF($B50=\"N\",\"\",IF(OR('Enrollment Form'!$B57<>\"Subscriber\",'Enrollment Form'!$C57=\"ROC\"),\"-\",IF(AND('Enrollment Form'!$B57=\"Subscriber\",'Enrollment Form'!$C57=\"Enroll\",'Enrollment Form'!$AQ57<>\"\"),\"Y\",\"N\")))","v":""},{"$f":"IF($B50=\"N\",\"\",IF(OR('Enrollment Form'!$B57<>\"Subscriber\",'Enrollment Form'!$C57=\"ROC\"),\"-\",IF(AND('Enrollment Form'!$B57=\"Subscriber\",'Enrollment Form'!$C57=\"Enroll\",'Enrollment Form'!$AS57<>\"\"),\"Y\",\"N\")))","v":""},{"$f":"IF($B50=\"N\",\"\",IF($Q50=\"-\",\"-\",IF(AND($Q50=\"Y\",'Enrollment Form'!$AS57=\"No\"),\"-\",IF(AND($Q50=\"Y\",'Enrollment Form'!$AS57=\"Yes\",'Enrollment Form'!$AT57<>\"\"),\"Y\",\"N\"))))","v":""},{"$f":"IF($B50=\"N\",\"\",IF(OR('Enrollment Form'!$B57<>\"Subscriber\",'Enrollment Form'!$C57=\"ROC\"),\"-\",IF(AND('Enrollment Form'!$B57=\"Subscriber\",'Enrollment Form'!$C57=\"Enroll\",'Enrollment Form'!$CV57<>\"\"),\"Y\",\"N\")))","v":""},{"$f":"IF($B50=\"N\",\"\",IF($S50=\"-\",\"-\",IF(AND($S50=\"Y\",'Enrollment Form'!$CV57=\"No\"),\"-\",IF(AND($S50=\"Y\",'Enrollment Form'!$CV57=\"Yes\",'Enrollment Form'!$CW57<>\"\"),\"Y\",\"N\"))))","v":""},{"$f":"IF(OR('Enrollment Form'!$AY57=\"Yes\",'Enrollment Form'!$AY57=\"\"),\"-\",IF(OR(AND('Enrollment Form'!$AY57=\"No\",ISERROR(FIND(\"HMO\",VLOOKUP('Enrollment Form'!G57,'Enrollment Form'!H$11:J$1000,3,FALSE),1))=FALSE,COUNTA('Enrollment Form'!$AZ57:$BC57)=4),AND('Enrollment Form'!$AY57=\"No\",ISERROR(FIND(\"HMO\",VLOOKUP('Enrollment Form'!G57,'Enrollment Form'!H$11:J$1000,3,FALSE),1))=FALSE,COUNTA('Enrollment Form'!$BT57:$BW57)=4)),\"Y\",\"N\"))","v":"-"},{"$f":"IF($B50=\"N\",\"\",IF('Enrollment Form'!$B57=\"Subscriber\",\"-\",IF(COUNTA('Enrollment Form'!$BL57,'Enrollment Form'!$BN57)=2,\"Y\",\"N\")))","v":""},{"$f":"IF($B50=\"N\",\"\",IF(OR('Enrollment Form'!$AX57=\"\",'Enrollment Form'!$AX57=\"No\"),\"-\",IF(AND('Enrollment Form'!$AX57=\"Yes\",COUNTA('Enrollment Form'!$CR57)=1),\"Y\",\"N\")))","v":""},{"$f":"IF(OR('Enrollment Form'!$CR57=\"\",'Enrollment Form'!$CR57=\"No\"),\"-\",IF(COUNTA('Enrollment Form'!$CT57:$CU57)=2,\"Y\",\"N\"))","v":"-"},{"$f":"IF($B50=\"N\",\"\",IF(COUNTIF('Enrollment Form'!$DG57:$DP57,\"Other\")=COUNTA('Enrollment Form'!$DK57,'Enrollment Form'!$DH57,'Enrollment Form'!$DN57,'Enrollment Form'!$DQ57),\"Y\",\"N\"))","v":""},{"$f":"IF($B50=\"N\",\"\",IF(OR('Enrollment Form'!B57<>\"Subscriber\",'Enrollment Form'!C57=\"ROC\",COUNTIF('Enrollment Form'!AV57:AW57,\"Yes\")>=1),\"-\",IF(AND('Enrollment Form'!C57=\"Enroll\",COUNTIF('Enrollment Form'!AV57:AW57,\"No\")=2,'Enrollment Form'!AX57=\"\"),\"N\",\"Y\")))","v":""},{"$f":"IF(OR(B50=\"N\",'Enrollment Form'!B57<>\"Subscriber\",'Enrollment Form'!C57=\"ROC\",'Enrollment Form'!O57<>\"Multiple of Salary\"),\"-\",IF(COUNTA('Enrollment Form'!T57:U57)<2,\"N\",\"Y\"))","v":"-"},{"$f":"IF(B50=\"N\",\"\",IF(OR('Enrollment Form'!C57=\"ROC\",'Enrollment Form'!B57<>\"Subscriber\",'Enrollment Form'!O57=\"Waive\",'Enrollment Form'!O57=\"\"),\"-\",IF('Enrollment Form'!P57=\"\",\"N\",\"Y\")))","v":""},{"$f":"IF($B50=\"N\",\"\",IF(AND('Enrollment Form'!$C57=\"ROC\",'Enrollment Form'!$DR57<>\"\"),\"Y\",IF(AND('Enrollment Form'!$C57=\"ROC\",'Enrollment Form'!$DR57=\"\"),\"N\",IF(AND('Enrollment Form'!$C57=\"Enroll\",'Enrollment Form'!$B57=\"Subscriber\",'Enrollment Form'!$CX57=\"No\",'Enrollment Form'!$DR57=\"\"),\"N\",IF(AND('Enrollment Form'!$C57=\"Enroll\",'Enrollment Form'!$B57=\"Subscriber\",'Enrollment Form'!$CX57=\"Yes\"),\"-\",\"Y\")))))","v":""},{"$f":"IF($B50=\"N\",\"\",IF(AND('Enrollment Form'!$C57=\"ROC\",'Enrollment Form'!$DS57<>\"\"),\"Y\",IF(AND('Enrollment Form'!$C57=\"ROC\",'Enrollment Form'!$DS57=\"\"),\"N\",IF(AND('Enrollment Form'!$C57=\"Enroll\",'Enrollment Form'!$B57=\"Subscriber\",'Enrollment Form'!$CX57=\"No\",'Enrollment Form'!$DS57=\"\"),\"N\",IF(AND('Enrollment Form'!$C57=\"Enroll\",'Enrollment Form'!$B57=\"Subscriber\",'Enrollment Form'!$CX57=\"Yes\"),\"-\",\"Y\")))))","v":""},{"$f":"IF('Enrollment Form'!AH57=\"\",\"\",IF(ISERROR(SEARCH(\".\",'Enrollment Form'!AH57,SEARCH(\"@\",'Enrollment Form'!AH57))),\"N\",\"Y\"))","v":""},{"$f":"IF(OR($B50=\"N\",'Enrollment Form'!$G57=\"\"),\"\",IF('Enrollment Form'!$B57<>\"Subscriber\",\"-\",IF(COUNTIF('Enrollment Form'!$AV57:$AW57,\"Yes\")=2,\"N\",\"Y\")))","v":""},{"$f":"IF(OR('Enrollment Form'!$CJ57=\"\",'Enrollment Form'!$CJ57=\"No\"),\"-\",IF(AND('Enrollment Form'!$CJ57=\"Yes\",'Enrollment Form'!$CK57=\"\"),\"N\",\"Y\"))","v":"-"},{"$f":"IF(OR('Enrollment Form'!$CL57=\"\",'Enrollment Form'!$CL57=\"No\"),\"-\",IF(AND('Enrollment Form'!$CL57=\"Yes\",'Enrollment Form'!$CM57=\"\"),\"N\",\"Y\"))","v":"-"},{"$f":"IF(OR('Enrollment Form'!$CN57=\"\",'Enrollment Form'!$CN57=\"No\"),\"-\",IF(AND('Enrollment Form'!$CN57=\"Yes\",'Enrollment Form'!$CO57=\"\"),\"N\",\"Y\"))","v":"-"},{"$f":"IF(OR('Enrollment Form'!$CN57=\"\",'Enrollment Form'!$CN57=\"No\"),\"-\",IF(AND('Enrollment Form'!$CN57=\"Yes\",'Enrollment Form'!$CP57=\"\"),\"N\",\"Y\"))","v":"-"},{"$f":"IF('Enrollment Form'!B57<>\"Subscriber\",\"-\",IF(AND('Enrollment Form'!B57=\"Subscriber\",'Enrollment Form'!C57=\"Enroll\",'Enrollment Form'!AA57=\"\"),\"N\",\"Y\"))","v":"-"},{"$f":"IF(OR('Enrollment Form'!B57=\"Subscriber\",'Enrollment Form'!B57=\"\"),\"-\",IF('Enrollment Form'!BP57=\"\",\"N\",\"Y\"))","v":"-"},{"$f":"IF('Enrollment Form'!B57<>\"Subscriber\",\"-\",IF(AND('Enrollment Form'!B57=\"Subscriber\",'Enrollment Form'!G57=\"\"),\"N\",\"Y\"))","v":"-"},{"$f":"IF('Enrollment Form'!A57=\"\",\"\",IF('Enrollment Form'!B57=\"Subscriber\",\"-\",IF(AND('Enrollment Form'!B57<>\"Subscriber\",'Enrollment Form'!G57='Enrollment Form'!H57),\"N\",\"Y\")))","v":""},0]
[58,{"$f":"IF('Enrollment Form'!$A58<>\"\",\"Y\",\"N\")","v":"N"},{"$f":"IF(AND('Enrollment Form'!$B58=\"\",'Enrollment Form'!$C58<>\"\"),\"N\",IF($B51=\"N\",\"\",\"Y\"))","v":""},{"$f":"IF(OR($B51=\"N\",'Enrollment Form'!G58=\"\"),\"\",IF('Enrollment Form'!$B58<>\"Subscriber\",\"\",IF('Enrollment Form'!$G58='Enrollment Form'!$H58,\"Y\",\"N\")))","v":""},{"$f":"IF($B51=\"N\",\"\",IF(AND(COUNTIFS('Enrollment Form'!$H$11:$H$1000,'Enrollment Form'!$H58,'Enrollment Form'!$B$11:$B$1000,'Enrollment Form'!$B58)>1,'Enrollment Form'!$H58<>\"\"),\"N\",\"Y\"))","v":""},{"$f":"IF($B51=\"N\",\"\",IF(LEN('Enrollment Form'!$Y58)=0,\"\",IF(LEN('Enrollment Form'!$Y58)<>5,\"N\",\"Y\")))","v":""},{"$f":"IF($B51=\"N\",\"\",IF(LEN('Enrollment Form'!$AD58=0),\"\",IF(LEN('Enrollment Form'!$AD58)<>5,\"N\",\"Y\")))","v":""},{"$f":"IF($B51=\"N\",\"\",IF(LEN('Enrollment Form'!$BS58=0),\"\",IF(LEN('Enrollment Form'!$BS58)<>5,\"N\",\"Y\")))","v":""},{"$f":"IF($B51=\"N\",\"\",IF(LEN('Enrollment Form'!$AE58)=0,\"\",IF(LEN('Enrollment Form'!$AE58)<>10,\"N\",\"Y\")))","v":""},{"$f":"IF($B51=\"N\",\"\",IF(LEN('Enrollment Form'!$AF58)=0,\"\",IF(LEN('Enrollment Form'!$AF58)<>10,\"N\",\"Y\")))","v":""},{"$f":"IF('Enrollment Form'!$O58<>\"Graded\",\"-\",IF(AND('Enrollment Form'!$O58=\"Graded\",'Enrollment Form'!$AR58<>\"\"),\"Y\",\"N\"))","v":"-"},{"$f":"IF($B51=\"N\",\"\",IF(OR('Enrollment Form'!$B58<>\"Subscriber\",'Enrollment Form'!$C58=\"ROC\"),\"-\",IF(AND('Enrollment Form'!$B58=\"Subscriber\",'Enrollment Form'!$C58=\"Enroll\",'Enrollment Form'!$AJ58<>\"\"),\"Y\",\"N\")))","v":""},{"$f":"IF($B51=\"N\",\"\",IF(OR('Enrollment Form'!$B58<>\"Subscriber\",'Enrollment Form'!$C58=\"ROC\"),\"-\",IF(AND('Enrollment Form'!$B58=\"Subscriber\",'Enrollment Form'!$C58=\"Enroll\",'Enrollment Form'!$AK58<>\"\"),\"Y\",\"N\")))","v":""},{"$f":"IF($B51=\"N\",\"\",IF(OR('Enrollment Form'!$B58<>\"Subscriber\",'Enrollment Form'!$C58=\"ROC\"),\"-\",IF(AND('Enrollment Form'!$B58=\"Subscriber\",'Enrollment Form'!$C58=\"Enroll\",'Enrollment Form'!$AL58<>\"\"),\"Y\",\"N\")))","v":""},{"$f":"IF($B51=\"N\",\"\",IF(OR('Enrollment Form'!$B58<>\"Subscriber\",'Enrollment Form'!$C58=\"ROC\"),\"-\",IF(AND('Enrollment Form'!$B58=\"Subscriber\",'Enrollment Form'!$C58=\"Enroll\",'Enrollment Form'!$AP58<>\"\"),\"Y\",\"N\")))","v":""},{"$f":"IF($B51=\"N\",\"\",IF(OR('Enrollment Form'!$B58<>\"Subscriber\",'Enrollment Form'!$C58=\"ROC\"),\"-\",IF(AND('Enrollment Form'!$B58=\"Subscriber\",'Enrollment Form'!$C58=\"Enroll\",'Enrollment Form'!$AQ58<>\"\"),\"Y\",\"N\")))","v":""},{"$f":"IF($B51=\"N\",\"\",IF(OR('Enrollment Form'!$B58<>\"Subscriber\",'Enrollment Form'!$C58=\"ROC\"),\"-\",IF(AND('Enrollment Form'!$B58=\"Subscriber\",'Enrollment Form'!$C58=\"Enroll\",'Enrollment Form'!$AS58<>\"\"),\"Y\",\"N\")))","v":""},{"$f":"IF($B51=\"N\",\"\",IF($Q51=\"-\",\"-\",IF(AND($Q51=\"Y\",'Enrollment Form'!$AS58=\"No\"),\"-\",IF(AND($Q51=\"Y\",'Enrollment Form'!$AS58=\"Yes\",'Enrollment Form'!$AT58<>\"\"),\"Y\",\"N\"))))","v":""},{"$f":"IF($B51=\"N\",\"\",IF(OR('Enrollment Form'!$B58<>\"Subscriber\",'Enrollment Form'!$C58=\"ROC\"),\"-\",IF(AND('Enrollment Form'!$B58=\"Subscriber\",'Enrollment Form'!$C58=\"Enroll\",'Enrollment Form'!$CV58<>\"\"),\"Y\",\"N\")))","v":""},{"$f":"IF($B51=\"N\",\"\",IF($S51=\"-\",\"-\",IF(AND($S51=\"Y\",'Enrollment Form'!$CV58=\"No\"),\"-\",IF(AND($S51=\"Y\",'Enrollment Form'!$CV58=\"Yes\",'Enrollment Form'!$CW58<>\"\"),\"Y\",\"N\"))))","v":""},{"$f":"IF(OR('Enrollment Form'!$AY58=\"Yes\",'Enrollment Form'!$AY58=\"\"),\"-\",IF(OR(AND('Enrollment Form'!$AY58=\"No\",ISERROR(FIND(\"HMO\",VLOOKUP('Enrollment Form'!G58,'Enrollment Form'!H$11:J$1000,3,FALSE),1))=FALSE,COUNTA('Enrollment Form'!$AZ58:$BC58)=4),AND('Enrollment Form'!$AY58=\"No\",ISERROR(FIND(\"HMO\",VLOOKUP('Enrollment Form'!G58,'Enrollment Form'!H$11:J$1000,3,FALSE),1))=FALSE,COUNTA('Enrollment Form'!$BT58:$BW58)=4)),\"Y\",\"N\"))","v":"-"},{"$f":"IF($B51=\"N\",\"\",IF('Enrollment Form'!$B58=\"Subscriber\",\"-\",IF(COUNTA('Enrollment Form'!$BL58,'Enrollment Form'!$BN58)=2,\"Y\",\"N\")))","v":""},{"$f":"IF($B51=\"N\",\"\",IF(OR('Enrollment Form'!$AX58=\"\",'Enrollment Form'!$AX58=\"No\"),\"-\",IF(AND('Enrollment Form'!$AX58=\"Yes\",COUNTA('Enrollment Form'!$CR58)=1),\"Y\",\"N\")))","v":""},{"$f":"IF(OR('Enrollment Form'!$CR58=\"\",'Enrollment Form'!$CR58=\"No\"),\"-\",IF(COUNTA('Enrollment Form'!$CT58:$CU58)=2,\"Y\",\"N\"))","v":"-"},{"$f":"IF($B51=\"N\",\"\",IF(COUNTIF('Enrollment Form'!$DG58:$DP58,\"Other\")=COUNTA('Enrollment Form'!$DK58,'Enrollment Form'!$DH58,'Enrollment Form'!$DN58,'Enrollment Form'!$DQ58),\"Y\",\"N\"))","v":""},{"$f":"IF($B51=\"N\",\"\",IF(OR('Enrollment Form'!B58<>\"Subscriber\",'Enrollment Form'!C58=\"ROC\",COUNTIF('Enrollment Form'!AV58:AW58,\"Yes\")>=1),\"-\",IF(AND('Enrollment Form'!C58=\"Enroll\",COUNTIF('Enrollment Form'!AV58:AW58,\"No\")=2,'Enrollment Form'!AX58=\"\"),\"N\",\"Y\")))","v":""},{"$f":"IF(OR(B51=\"N\",'Enrollment Form'!B58<>\"Subscriber\",'Enrollment Form'!C58=\"ROC\",'Enrollment Form'!O58<>\"Multiple of Salary\"),\"-\",IF(COUNTA('Enrollment Form'!T58:U58)<2,\"N\",\"Y\"))","v":"-"},{"$f":"IF(B51=\"N\",\"\",IF(OR('Enrollment Form'!C58=\"ROC\",'Enrollment Form'!B58<>\"Subscriber\",'Enrollment Form'!O58=\"Waive\",'Enrollment Form'!O58=\"\"),\"-\",IF('Enrollment Form'!P58=\"\",\"N\",\"Y\")))","v":""},{"$f":"IF($B51=\"N\",\"\",IF(AND('Enrollment Form'!$C58=\"ROC\",'Enrollment Form'!$DR58<>\"\"),\"Y\",IF(AND('Enrollment Form'!$C58=\"ROC\",'Enrollment Form'!$DR58=\"\"),\"N\",IF(AND('Enrollment Form'!$C58=\"Enroll\",'Enrollment Form'!$B58=\"Subscriber\",'Enrollment Form'!$CX58=\"No\",'Enrollment Form'!$DR58=\"\"),\"N\",IF(AND('Enrollment Form'!$C58=\"Enroll\",'Enrollment Form'!$B58=\"Subscriber\",'Enrollment Form'!$CX58=\"Yes\"),\"-\",\"Y\")))))","v":""},{"$f":"IF($B51=\"N\",\"\",IF(AND('Enrollment Form'!$C58=\"ROC\",'Enrollment Form'!$DS58<>\"\"),\"Y\",IF(AND('Enrollment Form'!$C58=\"ROC\",'Enrollment Form'!$DS58=\"\"),\"N\",IF(AND('Enrollment Form'!$C58=\"Enroll\",'Enrollment Form'!$B58=\"Subscriber\",'Enrollment Form'!$CX58=\"No\",'Enrollment Form'!$DS58=\"\"),\"N\",IF(AND('Enrollment Form'!$C58=\"Enroll\",'Enrollment Form'!$B58=\"Subscriber\",'Enrollment Form'!$CX58=\"Yes\"),\"-\",\"Y\")))))","v":""},{"$f":"IF('Enrollment Form'!AH58=\"\",\"\",IF(ISERROR(SEARCH(\".\",'Enrollment Form'!AH58,SEARCH(\"@\",'Enrollment Form'!AH58))),\"N\",\"Y\"))","v":""},{"$f":"IF(OR($B51=\"N\",'Enrollment Form'!$G58=\"\"),\"\",IF('Enrollment Form'!$B58<>\"Subscriber\",\"-\",IF(COUNTIF('Enrollment Form'!$AV58:$AW58,\"Yes\")=2,\"N\",\"Y\")))","v":""},{"$f":"IF(OR('Enrollment Form'!$CJ58=\"\",'Enrollment Form'!$CJ58=\"No\"),\"-\",IF(AND('Enrollment Form'!$CJ58=\"Yes\",'Enrollment Form'!$CK58=\"\"),\"N\",\"Y\"))","v":"-"},{"$f":"IF(OR('Enrollment Form'!$CL58=\"\",'Enrollment Form'!$CL58=\"No\"),\"-\",IF(AND('Enrollment Form'!$CL58=\"Yes\",'Enrollment Form'!$CM58=\"\"),\"N\",\"Y\"))","v":"-"},{"$f":"IF(OR('Enrollment Form'!$CN58=\"\",'Enrollment Form'!$CN58=\"No\"),\"-\",IF(AND('Enrollment Form'!$CN58=\"Yes\",'Enrollment Form'!$CO58=\"\"),\"N\",\"Y\"))","v":"-"},{"$f":"IF(OR('Enrollment Form'!$CN58=\"\",'Enrollment Form'!$CN58=\"No\"),\"-\",IF(AND('Enrollment Form'!$CN58=\"Yes\",'Enrollment Form'!$CP58=\"\"),\"N\",\"Y\"))","v":"-"},{"$f":"IF('Enrollment Form'!B58<>\"Subscriber\",\"-\",IF(AND('Enrollment Form'!B58=\"Subscriber\",'Enrollment Form'!C58=\"Enroll\",'Enrollment Form'!AA58=\"\"),\"N\",\"Y\"))","v":"-"},{"$f":"IF(OR('Enrollment Form'!B58=\"Subscriber\",'Enrollment Form'!B58=\"\"),\"-\",IF('Enrollment Form'!BP58=\"\",\"N\",\"Y\"))","v":"-"},{"$f":"IF('Enrollment Form'!B58<>\"Subscriber\",\"-\",IF(AND('Enrollment Form'!B58=\"Subscriber\",'Enrollment Form'!G58=\"\"),\"N\",\"Y\"))","v":"-"},{"$f":"IF('Enrollment Form'!A58=\"\",\"\",IF('Enrollment Form'!B58=\"Subscriber\",\"-\",IF(AND('Enrollment Form'!B58<>\"Subscriber\",'Enrollment Form'!G58='Enrollment Form'!H58),\"N\",\"Y\")))","v":""},0]
[59,{"$f":"IF('Enrollment Form'!$A59<>\"\",\"Y\",\"N\")","v":"N"},{"$f":"IF(AND('Enrollment Form'!$B59=\"\",'Enrollment Form'!$C59<>\"\"),\"N\",IF($B52=\"N\",\"\",\"Y\"))","v":""},{"$f":"IF(OR($B52=\"N\",'Enrollment Form'!G59=\"\"),\"\",IF('Enrollment Form'!$B59<>\"Subscriber\",\"\",IF('Enrollment Form'!$G59='Enrollment Form'!$H59,\"Y\",\"N\")))","v":""},{"$f":"IF($B52=\"N\",\"\",IF(AND(COUNTIFS('Enrollment Form'!$H$11:$H$1000,'Enrollment Form'!$H59,'Enrollment Form'!$B$11:$B$1000,'Enrollment Form'!$B59)>1,'Enrollment Form'!$H59<>\"\"),\"N\",\"Y\"))","v":""},{"$f":"IF($B52=\"N\",\"\",IF(LEN('Enrollment Form'!$Y59)=0,\"\",IF(LEN('Enrollment Form'!$Y59)<>5,\"N\",\"Y\")))","v":""},{"$f":"IF($B52=\"N\",\"\",IF(LEN('Enrollment Form'!$AD59=0),\"\",IF(LEN('Enrollment Form'!$AD59)<>5,\"N\",\"Y\")))","v":""},{"$f":"IF($B52=\"N\",\"\",IF(LEN('Enrollment Form'!$BS59=0),\"\",IF(LEN('Enrollment Form'!$BS59)<>5,\"N\",\"Y\")))","v":""},{"$f":"IF($B52=\"N\",\"\",IF(LEN('Enrollment Form'!$AE59)=0,\"\",IF(LEN('Enrollment Form'!$AE59)<>10,\"N\",\"Y\")))","v":""},{"$f":"IF($B52=\"N\",\"\",IF(LEN('Enrollment Form'!$AF59)=0,\"\",IF(LEN('Enrollment Form'!$AF59)<>10,\"N\",\"Y\")))","v":""},{"$f":"IF('Enrollment Form'!$O59<>\"Graded\",\"-\",IF(AND('Enrollment Form'!$O59=\"Graded\",'Enrollment Form'!$AR59<>\"\"),\"Y\",\"N\"))","v":"-"},{"$f":"IF($B52=\"N\",\"\",IF(OR('Enrollment Form'!$B59<>\"Subscriber\",'Enrollment Form'!$C59=\"ROC\"),\"-\",IF(AND('Enrollment Form'!$B59=\"Subscriber\",'Enrollment Form'!$C59=\"Enroll\",'Enrollment Form'!$AJ59<>\"\"),\"Y\",\"N\")))","v":""},{"$f":"IF($B52=\"N\",\"\",IF(OR('Enrollment Form'!$B59<>\"Subscriber\",'Enrollment Form'!$C59=\"ROC\"),\"-\",IF(AND('Enrollment Form'!$B59=\"Subscriber\",'Enrollment Form'!$C59=\"Enroll\",'Enrollment Form'!$AK59<>\"\"),\"Y\",\"N\")))","v":""},{"$f":"IF($B52=\"N\",\"\",IF(OR('Enrollment Form'!$B59<>\"Subscriber\",'Enrollment Form'!$C59=\"ROC\"),\"-\",IF(AND('Enrollment Form'!$B59=\"Subscriber\",'Enrollment Form'!$C59=\"Enroll\",'Enrollment Form'!$AL59<>\"\"),\"Y\",\"N\")))","v":""},{"$f":"IF($B52=\"N\",\"\",IF(OR('Enrollment Form'!$B59<>\"Subscriber\",'Enrollment Form'!$C59=\"ROC\"),\"-\",IF(AND('Enrollment Form'!$B59=\"Subscriber\",'Enrollment Form'!$C59=\"Enroll\",'Enrollment Form'!$AP59<>\"\"),\"Y\",\"N\")))","v":""},{"$f":"IF($B52=\"N\",\"\",IF(OR('Enrollment Form'!$B59<>\"Subscriber\",'Enrollment Form'!$C59=\"ROC\"),\"-\",IF(AND('Enrollment Form'!$B59=\"Subscriber\",'Enrollment Form'!$C59=\"Enroll\",'Enrollment Form'!$AQ59<>\"\"),\"Y\",\"N\")))","v":""},{"$f":"IF($B52=\"N\",\"\",IF(OR('Enrollment Form'!$B59<>\"Subscriber\",'Enrollment Form'!$C59=\"ROC\"),\"-\",IF(AND('Enrollment Form'!$B59=\"Subscriber\",'Enrollment Form'!$C59=\"Enroll\",'Enrollment Form'!$AS59<>\"\"),\"Y\",\"N\")))","v":""},{"$f":"IF($B52=\"N\",\"\",IF($Q52=\"-\",\"-\",IF(AND($Q52=\"Y\",'Enrollment Form'!$AS59=\"No\"),\"-\",IF(AND($Q52=\"Y\",'Enrollment Form'!$AS59=\"Yes\",'Enrollment Form'!$AT59<>\"\"),\"Y\",\"N\"))))","v":""},{"$f":"IF($B52=\"N\",\"\",IF(OR('Enrollment Form'!$B59<>\"Subscriber\",'Enrollment Form'!$C59=\"ROC\"),\"-\",IF(AND('Enrollment Form'!$B59=\"Subscriber\",'Enrollment Form'!$C59=\"Enroll\",'Enrollment Form'!$CV59<>\"\"),\"Y\",\"N\")))","v":""},{"$f":"IF($B52=\"N\",\"\",IF($S52=\"-\",\"-\",IF(AND($S52=\"Y\",'Enrollment Form'!$CV59=\"No\"),\"-\",IF(AND($S52=\"Y\",'Enrollment Form'!$CV59=\"Yes\",'Enrollment Form'!$CW59<>\"\"),\"Y\",\"N\"))))","v":""},{"$f":"IF(OR('Enrollment Form'!$AY59=\"Yes\",'Enrollment Form'!$AY59=\"\"),\"-\",IF(OR(AND('Enrollment Form'!$AY59=\"No\",ISERROR(FIND(\"HMO\",VLOOKUP('Enrollment Form'!G59,'Enrollment Form'!H$11:J$1000,3,FALSE),1))=FALSE,COUNTA('Enrollment Form'!$AZ59:$BC59)=4),AND('Enrollment Form'!$AY59=\"No\",ISERROR(FIND(\"HMO\",VLOOKUP('Enrollment Form'!G59,'Enrollment Form'!H$11:J$1000,3,FALSE),1))=FALSE,COUNTA('Enrollment Form'!$BT59:$BW59)=4)),\"Y\",\"N\"))","v":"-"},{"$f":"IF($B52=\"N\",\"\",IF('Enrollment Form'!$B59=\"Subscriber\",\"-\",IF(COUNTA('Enrollment Form'!$BL59,'Enrollment Form'!$BN59)=2,\"Y\",\"N\")))","v":""},{"$f":"IF($B52=\"N\",\"\",IF(OR('Enrollment Form'!$AX59=\"\",'Enrollment Form'!$AX59=\"No\"),\"-\",IF(AND('Enrollment Form'!$AX59=\"Yes\",COUNTA('Enrollment Form'!$CR59)=1),\"Y\",\"N\")))","v":""},{"$f":"IF(OR('Enrollment Form'!$CR59=\"\",'Enrollment Form'!$CR59=\"No\"),\"-\",IF(COUNTA('Enrollment Form'!$CT59:$CU59)=2,\"Y\",\"N\"))","v":"-"},{"$f":"IF($B52=\"N\",\"\",IF(COUNTIF('Enrollment Form'!$DG59:$DP59,\"Other\")=COUNTA('Enrollment Form'!$DK59,'Enrollment Form'!$DH59,'Enrollment Form'!$DN59,'Enrollment Form'!$DQ59),\"Y\",\"N\"))","v":""},{"$f":"IF($B52=\"N\",\"\",IF(OR('Enrollment Form'!B59<>\"Subscriber\",'Enrollment Form'!C59=\"ROC\",COUNTIF('Enrollment Form'!AV59:AW59,\"Yes\")>=1),\"-\",IF(AND('Enrollment Form'!C59=\"Enroll\",COUNTIF('Enrollment Form'!AV59:AW59,\"No\")=2,'Enrollment Form'!AX59=\"\"),\"N\",\"Y\")))","v":""},{"$f":"IF(OR(B52=\"N\",'Enrollment Form'!B59<>\"Subscriber\",'Enrollment Form'!C59=\"ROC\",'Enrollment Form'!O59<>\"Multiple of Salary\"),\"-\",IF(COUNTA('Enrollment Form'!T59:U59)<2,\"N\",\"Y\"))","v":"-"},{"$f":"IF(B52=\"N\",\"\",IF(OR('Enrollment Form'!C59=\"ROC\",'Enrollment Form'!B59<>\"Subscriber\",'Enrollment Form'!O59=\"Waive\",'Enrollment Form'!O59=\"\"),\"-\",IF('Enrollment Form'!P59=\"\",\"N\",\"Y\")))","v":""},{"$f":"IF($B52=\"N\",\"\",IF(AND('Enrollment Form'!$C59=\"ROC\",'Enrollment Form'!$DR59<>\"\"),\"Y\",IF(AND('Enrollment Form'!$C59=\"ROC\",'Enrollment Form'!$DR59=\"\"),\"N\",IF(AND('Enrollment Form'!$C59=\"Enroll\",'Enrollment Form'!$B59=\"Subscriber\",'Enrollment Form'!$CX59=\"No\",'Enrollment Form'!$DR59=\"\"),\"N\",IF(AND('Enrollment Form'!$C59=\"Enroll\",'Enrollment Form'!$B59=\"Subscriber\",'Enrollment Form'!$CX59=\"Yes\"),\"-\",\"Y\")))))","v":""},{"$f":"IF($B52=\"N\",\"\",IF(AND('Enrollment Form'!$C59=\"ROC\",'Enrollment Form'!$DS59<>\"\"),\"Y\",IF(AND('Enrollment Form'!$C59=\"ROC\",'Enrollment Form'!$DS59=\"\"),\"N\",IF(AND('Enrollment Form'!$C59=\"Enroll\",'Enrollment Form'!$B59=\"Subscriber\",'Enrollment Form'!$CX59=\"No\",'Enrollment Form'!$DS59=\"\"),\"N\",IF(AND('Enrollment Form'!$C59=\"Enroll\",'Enrollment Form'!$B59=\"Subscriber\",'Enrollment Form'!$CX59=\"Yes\"),\"-\",\"Y\")))))","v":""},{"$f":"IF('Enrollment Form'!AH59=\"\",\"\",IF(ISERROR(SEARCH(\".\",'Enrollment Form'!AH59,SEARCH(\"@\",'Enrollment Form'!AH59))),\"N\",\"Y\"))","v":""},{"$f":"IF(OR($B52=\"N\",'Enrollment Form'!$G59=\"\"),\"\",IF('Enrollment Form'!$B59<>\"Subscriber\",\"-\",IF(COUNTIF('Enrollment Form'!$AV59:$AW59,\"Yes\")=2,\"N\",\"Y\")))","v":""},{"$f":"IF(OR('Enrollment Form'!$CJ59=\"\",'Enrollment Form'!$CJ59=\"No\"),\"-\",IF(AND('Enrollment Form'!$CJ59=\"Yes\",'Enrollment Form'!$CK59=\"\"),\"N\",\"Y\"))","v":"-"},{"$f":"IF(OR('Enrollment Form'!$CL59=\"\",'Enrollment Form'!$CL59=\"No\"),\"-\",IF(AND('Enrollment Form'!$CL59=\"Yes\",'Enrollment Form'!$CM59=\"\"),\"N\",\"Y\"))","v":"-"},{"$f":"IF(OR('Enrollment Form'!$CN59=\"\",'Enrollment Form'!$CN59=\"No\"),\"-\",IF(AND('Enrollment Form'!$CN59=\"Yes\",'Enrollment Form'!$CO59=\"\"),\"N\",\"Y\"))","v":"-"},{"$f":"IF(OR('Enrollment Form'!$CN59=\"\",'Enrollment Form'!$CN59=\"No\"),\"-\",IF(AND('Enrollment Form'!$CN59=\"Yes\",'Enrollment Form'!$CP59=\"\"),\"N\",\"Y\"))","v":"-"},{"$f":"IF('Enrollment Form'!B59<>\"Subscriber\",\"-\",IF(AND('Enrollment Form'!B59=\"Subscriber\",'Enrollment Form'!C59=\"Enroll\",'Enrollment Form'!AA59=\"\"),\"N\",\"Y\"))","v":"-"},{"$f":"IF(OR('Enrollment Form'!B59=\"Subscriber\",'Enrollment Form'!B59=\"\"),\"-\",IF('Enrollment Form'!BP59=\"\",\"N\",\"Y\"))","v":"-"},{"$f":"IF('Enrollment Form'!B59<>\"Subscriber\",\"-\",IF(AND('Enrollment Form'!B59=\"Subscriber\",'Enrollment Form'!G59=\"\"),\"N\",\"Y\"))","v":"-"},{"$f":"IF('Enrollment Form'!A59=\"\",\"\",IF('Enrollment Form'!B59=\"Subscriber\",\"-\",IF(AND('Enrollment Form'!B59<>\"Subscriber\",'Enrollment Form'!G59='Enrollment Form'!H59),\"N\",\"Y\")))","v":""},0]
[60,{"$f":"IF('Enrollment Form'!$A60<>\"\",\"Y\",\"N\")","v":"N"},{"$f":"IF(AND('Enrollment Form'!$B60=\"\",'Enrollment Form'!$C60<>\"\"),\"N\",IF($B53=\"N\",\"\",\"Y\"))","v":""},{"$f":"IF(OR($B53=\"N\",'Enrollment Form'!G60=\"\"),\"\",IF('Enrollment Form'!$B60<>\"Subscriber\",\"\",IF('Enrollment Form'!$G60='Enrollment Form'!$H60,\"Y\",\"N\")))","v":""},{"$f":"IF($B53=\"N\",\"\",IF(AND(COUNTIFS('Enrollment Form'!$H$11:$H$1000,'Enrollment Form'!$H60,'Enrollment Form'!$B$11:$B$1000,'Enrollment Form'!$B60)>1,'Enrollment Form'!$H60<>\"\"),\"N\",\"Y\"))","v":""},{"$f":"IF($B53=\"N\",\"\",IF(LEN('Enrollment Form'!$Y60)=0,\"\",IF(LEN('Enrollment Form'!$Y60)<>5,\"N\",\"Y\")))","v":""},{"$f":"IF($B53=\"N\",\"\",IF(LEN('Enrollment Form'!$AD60=0),\"\",IF(LEN('Enrollment Form'!$AD60)<>5,\"N\",\"Y\")))","v":""},{"$f":"IF($B53=\"N\",\"\",IF(LEN('Enrollment Form'!$BS60=0),\"\",IF(LEN('Enrollment Form'!$BS60)<>5,\"N\",\"Y\")))","v":""},{"$f":"IF($B53=\"N\",\"\",IF(LEN('Enrollment Form'!$AE60)=0,\"\",IF(LEN('Enrollment Form'!$AE60)<>10,\"N\",\"Y\")))","v":""},{"$f":"IF($B53=\"N\",\"\",IF(LEN('Enrollment Form'!$AF60)=0,\"\",IF(LEN('Enrollment Form'!$AF60)<>10,\"N\",\"Y\")))","v":""},{"$f":"IF('Enrollment Form'!$O60<>\"Graded\",\"-\",IF(AND('Enrollment Form'!$O60=\"Graded\",'Enrollment Form'!$AR60<>\"\"),\"Y\",\"N\"))","v":"-"},{"$f":"IF($B53=\"N\",\"\",IF(OR('Enrollment Form'!$B60<>\"Subscriber\",'Enrollment Form'!$C60=\"ROC\"),\"-\",IF(AND('Enrollment Form'!$B60=\"Subscriber\",'Enrollment Form'!$C60=\"Enroll\",'Enrollment Form'!$AJ60<>\"\"),\"Y\",\"N\")))","v":""},{"$f":"IF($B53=\"N\",\"\",IF(OR('Enrollment Form'!$B60<>\"Subscriber\",'Enrollment Form'!$C60=\"ROC\"),\"-\",IF(AND('Enrollment Form'!$B60=\"Subscriber\",'Enrollment Form'!$C60=\"Enroll\",'Enrollment Form'!$AK60<>\"\"),\"Y\",\"N\")))","v":""},{"$f":"IF($B53=\"N\",\"\",IF(OR('Enrollment Form'!$B60<>\"Subscriber\",'Enrollment Form'!$C60=\"ROC\"),\"-\",IF(AND('Enrollment Form'!$B60=\"Subscriber\",'Enrollment Form'!$C60=\"Enroll\",'Enrollment Form'!$AL60<>\"\"),\"Y\",\"N\")))","v":""},{"$f":"IF($B53=\"N\",\"\",IF(OR('Enrollment Form'!$B60<>\"Subscriber\",'Enrollment Form'!$C60=\"ROC\"),\"-\",IF(AND('Enrollment Form'!$B60=\"Subscriber\",'Enrollment Form'!$C60=\"Enroll\",'Enrollment Form'!$AP60<>\"\"),\"Y\",\"N\")))","v":""},{"$f":"IF($B53=\"N\",\"\",IF(OR('Enrollment Form'!$B60<>\"Subscriber\",'Enrollment Form'!$C60=\"ROC\"),\"-\",IF(AND('Enrollment Form'!$B60=\"Subscriber\",'Enrollment Form'!$C60=\"Enroll\",'Enrollment Form'!$AQ60<>\"\"),\"Y\",\"N\")))","v":""},{"$f":"IF($B53=\"N\",\"\",IF(OR('Enrollment Form'!$B60<>\"Subscriber\",'Enrollment Form'!$C60=\"ROC\"),\"-\",IF(AND('Enrollment Form'!$B60=\"Subscriber\",'Enrollment Form'!$C60=\"Enroll\",'Enrollment Form'!$AS60<>\"\"),\"Y\",\"N\")))","v":""},{"$f":"IF($B53=\"N\",\"\",IF($Q53=\"-\",\"-\",IF(AND($Q53=\"Y\",'Enrollment Form'!$AS60=\"No\"),\"-\",IF(AND($Q53=\"Y\",'Enrollment Form'!$AS60=\"Yes\",'Enrollment Form'!$AT60<>\"\"),\"Y\",\"N\"))))","v":""},{"$f":"IF($B53=\"N\",\"\",IF(OR('Enrollment Form'!$B60<>\"Subscriber\",'Enrollment Form'!$C60=\"ROC\"),\"-\",IF(AND('Enrollment Form'!$B60=\"Subscriber\",'Enrollment Form'!$C60=\"Enroll\",'Enrollment Form'!$CV60<>\"\"),\"Y\",\"N\")))","v":""},{"$f":"IF($B53=\"N\",\"\",IF($S53=\"-\",\"-\",IF(AND($S53=\"Y\",'Enrollment Form'!$CV60=\"No\"),\"-\",IF(AND($S53=\"Y\",'Enrollment Form'!$CV60=\"Yes\",'Enrollment Form'!$CW60<>\"\"),\"Y\",\"N\"))))","v":""},{"$f":"IF(OR('Enrollment Form'!$AY60=\"Yes\",'Enrollment Form'!$AY60=\"\"),\"-\",IF(OR(AND('Enrollment Form'!$AY60=\"No\",ISERROR(FIND(\"HMO\",VLOOKUP('Enrollment Form'!G60,'Enrollment Form'!H$11:J$1000,3,FALSE),1))=FALSE,COUNTA('Enrollment Form'!$AZ60:$BC60)=4),AND('Enrollment Form'!$AY60=\"No\",ISERROR(FIND(\"HMO\",VLOOKUP('Enrollment Form'!G60,'Enrollment Form'!H$11:J$1000,3,FALSE),1))=FALSE,COUNTA('Enrollment Form'!$BT60:$BW60)=4)),\"Y\",\"N\"))","v":"-"},{"$f":"IF($B53=\"N\",\"\",IF('Enrollment Form'!$B60=\"Subscriber\",\"-\",IF(COUNTA('Enrollment Form'!$BL60,'Enrollment Form'!$BN60)=2,\"Y\",\"N\")))","v":""},{"$f":"IF($B53=\"N\",\"\",IF(OR('Enrollment Form'!$AX60=\"\",'Enrollment Form'!$AX60=\"No\"),\"-\",IF(AND('Enrollment Form'!$AX60=\"Yes\",COUNTA('Enrollment Form'!$CR60)=1),\"Y\",\"N\")))","v":""},{"$f":"IF(OR('Enrollment Form'!$CR60=\"\",'Enrollment Form'!$CR60=\"No\"),\"-\",IF(COUNTA('Enrollment Form'!$CT60:$CU60)=2,\"Y\",\"N\"))","v":"-"},{"$f":"IF($B53=\"N\",\"\",IF(COUNTIF('Enrollment Form'!$DG60:$DP60,\"Other\")=COUNTA('Enrollment Form'!$DK60,'Enrollment Form'!$DH60,'Enrollment Form'!$DN60,'Enrollment Form'!$DQ60),\"Y\",\"N\"))","v":""},{"$f":"IF($B53=\"N\",\"\",IF(OR('Enrollment Form'!B60<>\"Subscriber\",'Enrollment Form'!C60=\"ROC\",COUNTIF('Enrollment Form'!AV60:AW60,\"Yes\")>=1),\"-\",IF(AND('Enrollment Form'!C60=\"Enroll\",COUNTIF('Enrollment Form'!AV60:AW60,\"No\")=2,'Enrollment Form'!AX60=\"\"),\"N\",\"Y\")))","v":""},{"$f":"IF(OR(B53=\"N\",'Enrollment Form'!B60<>\"Subscriber\",'Enrollment Form'!C60=\"ROC\",'Enrollment Form'!O60<>\"Multiple of Salary\"),\"-\",IF(COUNTA('Enrollment Form'!T60:U60)<2,\"N\",\"Y\"))","v":"-"},{"$f":"IF(B53=\"N\",\"\",IF(OR('Enrollment Form'!C60=\"ROC\",'Enrollment Form'!B60<>\"Subscriber\",'Enrollment Form'!O60=\"Waive\",'Enrollment Form'!O60=\"\"),\"-\",IF('Enrollment Form'!P60=\"\",\"N\",\"Y\")))","v":""},{"$f":"IF($B53=\"N\",\"\",IF(AND('Enrollment Form'!$C60=\"ROC\",'Enrollment Form'!$DR60<>\"\"),\"Y\",IF(AND('Enrollment Form'!$C60=\"ROC\",'Enrollment Form'!$DR60=\"\"),\"N\",IF(AND('Enrollment Form'!$C60=\"Enroll\",'Enrollment Form'!$B60=\"Subscriber\",'Enrollment Form'!$CX60=\"No\",'Enrollment Form'!$DR60=\"\"),\"N\",IF(AND('Enrollment Form'!$C60=\"Enroll\",'Enrollment Form'!$B60=\"Subscriber\",'Enrollment Form'!$CX60=\"Yes\"),\"-\",\"Y\")))))","v":""},{"$f":"IF($B53=\"N\",\"\",IF(AND('Enrollment Form'!$C60=\"ROC\",'Enrollment Form'!$DS60<>\"\"),\"Y\",IF(AND('Enrollment Form'!$C60=\"ROC\",'Enrollment Form'!$DS60=\"\"),\"N\",IF(AND('Enrollment Form'!$C60=\"Enroll\",'Enrollment Form'!$B60=\"Subscriber\",'Enrollment Form'!$CX60=\"No\",'Enrollment Form'!$DS60=\"\"),\"N\",IF(AND('Enrollment Form'!$C60=\"Enroll\",'Enrollment Form'!$B60=\"Subscriber\",'Enrollment Form'!$CX60=\"Yes\"),\"-\",\"Y\")))))","v":""},{"$f":"IF('Enrollment Form'!AH60=\"\",\"\",IF(ISERROR(SEARCH(\".\",'Enrollment Form'!AH60,SEARCH(\"@\",'Enrollment Form'!AH60))),\"N\",\"Y\"))","v":""},{"$f":"IF(OR($B53=\"N\",'Enrollment Form'!$G60=\"\"),\"\",IF('Enrollment Form'!$B60<>\"Subscriber\",\"-\",IF(COUNTIF('Enrollment Form'!$AV60:$AW60,\"Yes\")=2,\"N\",\"Y\")))","v":""},{"$f":"IF(OR('Enrollment Form'!$CJ60=\"\",'Enrollment Form'!$CJ60=\"No\"),\"-\",IF(AND('Enrollment Form'!$CJ60=\"Yes\",'Enrollment Form'!$CK60=\"\"),\"N\",\"Y\"))","v":"-"},{"$f":"IF(OR('Enrollment Form'!$CL60=\"\",'Enrollment Form'!$CL60=\"No\"),\"-\",IF(AND('Enrollment Form'!$CL60=\"Yes\",'Enrollment Form'!$CM60=\"\"),\"N\",\"Y\"))","v":"-"},{"$f":"IF(OR('Enrollment Form'!$CN60=\"\",'Enrollment Form'!$CN60=\"No\"),\"-\",IF(AND('Enrollment Form'!$CN60=\"Yes\",'Enrollment Form'!$CO60=\"\"),\"N\",\"Y\"))","v":"-"},{"$f":"IF(OR('Enrollment Form'!$CN60=\"\",'Enrollment Form'!$CN60=\"No\"),\"-\",IF(AND('Enrollment Form'!$CN60=\"Yes\",'Enrollment Form'!$CP60=\"\"),\"N\",\"Y\"))","v":"-"},{"$f":"IF('Enrollment Form'!B60<>\"Subscriber\",\"-\",IF(AND('Enrollment Form'!B60=\"Subscriber\",'Enrollment Form'!C60=\"Enroll\",'Enrollment Form'!AA60=\"\"),\"N\",\"Y\"))","v":"-"},{"$f":"IF(OR('Enrollment Form'!B60=\"Subscriber\",'Enrollment Form'!B60=\"\"),\"-\",IF('Enrollment Form'!BP60=\"\",\"N\",\"Y\"))","v":"-"},{"$f":"IF('Enrollment Form'!B60<>\"Subscriber\",\"-\",IF(AND('Enrollment Form'!B60=\"Subscriber\",'Enrollment Form'!G60=\"\"),\"N\",\"Y\"))","v":"-"},{"$f":"IF('Enrollment Form'!A60=\"\",\"\",IF('Enrollment Form'!B60=\"Subscriber\",\"-\",IF(AND('Enrollment Form'!B60<>\"Subscriber\",'Enrollment Form'!G60='Enrollment Form'!H60),\"N\",\"Y\")))","v":""},0]
[61,{"$f":"IF('Enrollment Form'!$A61<>\"\",\"Y\",\"N\")","v":"N"},{"$f":"IF(AND('Enrollment Form'!$B61=\"\",'Enrollment Form'!$C61<>\"\"),\"N\",IF($B54=\"N\",\"\",\"Y\"))","v":""},{"$f":"IF(OR($B54=\"N\",'Enrollment Form'!G61=\"\"),\"\",IF('Enrollment Form'!$B61<>\"Subscriber\",\"\",IF('Enrollment Form'!$G61='Enrollment Form'!$H61,\"Y\",\"N\")))","v":""},{"$f":"IF($B54=\"N\",\"\",IF(AND(COUNTIFS('Enrollment Form'!$H$11:$H$1000,'Enrollment Form'!$H61,'Enrollment Form'!$B$11:$B$1000,'Enrollment Form'!$B61)>1,'Enrollment Form'!$H61<>\"\"),\"N\",\"Y\"))","v":""},{"$f":"IF($B54=\"N\",\"\",IF(LEN('Enrollment Form'!$Y61)=0,\"\",IF(LEN('Enrollment Form'!$Y61)<>5,\"N\",\"Y\")))","v":""},{"$f":"IF($B54=\"N\",\"\",IF(LEN('Enrollment Form'!$AD61=0),\"\",IF(LEN('Enrollment Form'!$AD61)<>5,\"N\",\"Y\")))","v":""},{"$f":"IF($B54=\"N\",\"\",IF(LEN('Enrollment Form'!$BS61=0),\"\",IF(LEN('Enrollment Form'!$BS61)<>5,\"N\",\"Y\")))","v":""},{"$f":"IF($B54=\"N\",\"\",IF(LEN('Enrollment Form'!$AE61)=0,\"\",IF(LEN('Enrollment Form'!$AE61)<>10,\"N\",\"Y\")))","v":""},{"$f":"IF($B54=\"N\",\"\",IF(LEN('Enrollment Form'!$AF61)=0,\"\",IF(LEN('Enrollment Form'!$AF61)<>10,\"N\",\"Y\")))","v":""},{"$f":"IF('Enrollment Form'!$O61<>\"Graded\",\"-\",IF(AND('Enrollment Form'!$O61=\"Graded\",'Enrollment Form'!$AR61<>\"\"),\"Y\",\"N\"))","v":"-"},{"$f":"IF($B54=\"N\",\"\",IF(OR('Enrollment Form'!$B61<>\"Subscriber\",'Enrollment Form'!$C61=\"ROC\"),\"-\",IF(AND('Enrollment Form'!$B61=\"Subscriber\",'Enrollment Form'!$C61=\"Enroll\",'Enrollment Form'!$AJ61<>\"\"),\"Y\",\"N\")))","v":""},{"$f":"IF($B54=\"N\",\"\",IF(OR('Enrollment Form'!$B61<>\"Subscriber\",'Enrollment Form'!$C61=\"ROC\"),\"-\",IF(AND('Enrollment Form'!$B61=\"Subscriber\",'Enrollment Form'!$C61=\"Enroll\",'Enrollment Form'!$AK61<>\"\"),\"Y\",\"N\")))","v":""},{"$f":"IF($B54=\"N\",\"\",IF(OR('Enrollment Form'!$B61<>\"Subscriber\",'Enrollment Form'!$C61=\"ROC\"),\"-\",IF(AND('Enrollment Form'!$B61=\"Subscriber\",'Enrollment Form'!$C61=\"Enroll\",'Enrollment Form'!$AL61<>\"\"),\"Y\",\"N\")))","v":""},{"$f":"IF($B54=\"N\",\"\",IF(OR('Enrollment Form'!$B61<>\"Subscriber\",'Enrollment Form'!$C61=\"ROC\"),\"-\",IF(AND('Enrollment Form'!$B61=\"Subscriber\",'Enrollment Form'!$C61=\"Enroll\",'Enrollment Form'!$AP61<>\"\"),\"Y\",\"N\")))","v":""},{"$f":"IF($B54=\"N\",\"\",IF(OR('Enrollment Form'!$B61<>\"Subscriber\",'Enrollment Form'!$C61=\"ROC\"),\"-\",IF(AND('Enrollment Form'!$B61=\"Subscriber\",'Enrollment Form'!$C61=\"Enroll\",'Enrollment Form'!$AQ61<>\"\"),\"Y\",\"N\")))","v":""},{"$f":"IF($B54=\"N\",\"\",IF(OR('Enrollment Form'!$B61<>\"Subscriber\",'Enrollment Form'!$C61=\"ROC\"),\"-\",IF(AND('Enrollment Form'!$B61=\"Subscriber\",'Enrollment Form'!$C61=\"Enroll\",'Enrollment Form'!$AS61<>\"\"),\"Y\",\"N\")))","v":""},{"$f":"IF($B54=\"N\",\"\",IF($Q54=\"-\",\"-\",IF(AND($Q54=\"Y\",'Enrollment Form'!$AS61=\"No\"),\"-\",IF(AND($Q54=\"Y\",'Enrollment Form'!$AS61=\"Yes\",'Enrollment Form'!$AT61<>\"\"),\"Y\",\"N\"))))","v":""},{"$f":"IF($B54=\"N\",\"\",IF(OR('Enrollment Form'!$B61<>\"Subscriber\",'Enrollment Form'!$C61=\"ROC\"),\"-\",IF(AND('Enrollment Form'!$B61=\"Subscriber\",'Enrollment Form'!$C61=\"Enroll\",'Enrollment Form'!$CV61<>\"\"),\"Y\",\"N\")))","v":""},{"$f":"IF($B54=\"N\",\"\",IF($S54=\"-\",\"-\",IF(AND($S54=\"Y\",'Enrollment Form'!$CV61=\"No\"),\"-\",IF(AND($S54=\"Y\",'Enrollment Form'!$CV61=\"Yes\",'Enrollment Form'!$CW61<>\"\"),\"Y\",\"N\"))))","v":""},{"$f":"IF(OR('Enrollment Form'!$AY61=\"Yes\",'Enrollment Form'!$AY61=\"\"),\"-\",IF(OR(AND('Enrollment Form'!$AY61=\"No\",ISERROR(FIND(\"HMO\",VLOOKUP('Enrollment Form'!G61,'Enrollment Form'!H$11:J$1000,3,FALSE),1))=FALSE,COUNTA('Enrollment Form'!$AZ61:$BC61)=4),AND('Enrollment Form'!$AY61=\"No\",ISERROR(FIND(\"HMO\",VLOOKUP('Enrollment Form'!G61,'Enrollment Form'!H$11:J$1000,3,FALSE),1))=FALSE,COUNTA('Enrollment Form'!$BT61:$BW61)=4)),\"Y\",\"N\"))","v":"-"},{"$f":"IF($B54=\"N\",\"\",IF('Enrollment Form'!$B61=\"Subscriber\",\"-\",IF(COUNTA('Enrollment Form'!$BL61,'Enrollment Form'!$BN61)=2,\"Y\",\"N\")))","v":""},{"$f":"IF($B54=\"N\",\"\",IF(OR('Enrollment Form'!$AX61=\"\",'Enrollment Form'!$AX61=\"No\"),\"-\",IF(AND('Enrollment Form'!$AX61=\"Yes\",COUNTA('Enrollment Form'!$CR61)=1),\"Y\",\"N\")))","v":""},{"$f":"IF(OR('Enrollment Form'!$CR61=\"\",'Enrollment Form'!$CR61=\"No\"),\"-\",IF(COUNTA('Enrollment Form'!$CT61:$CU61)=2,\"Y\",\"N\"))","v":"-"},{"$f":"IF($B54=\"N\",\"\",IF(COUNTIF('Enrollment Form'!$DG61:$DP61,\"Other\")=COUNTA('Enrollment Form'!$DK61,'Enrollment Form'!$DH61,'Enrollment Form'!$DN61,'Enrollment Form'!$DQ61),\"Y\",\"N\"))","v":""},{"$f":"IF($B54=\"N\",\"\",IF(OR('Enrollment Form'!B61<>\"Subscriber\",'Enrollment Form'!C61=\"ROC\",COUNTIF('Enrollment Form'!AV61:AW61,\"Yes\")>=1),\"-\",IF(AND('Enrollment Form'!C61=\"Enroll\",COUNTIF('Enrollment Form'!AV61:AW61,\"No\")=2,'Enrollment Form'!AX61=\"\"),\"N\",\"Y\")))","v":""},{"$f":"IF(OR(B54=\"N\",'Enrollment Form'!B61<>\"Subscriber\",'Enrollment Form'!C61=\"ROC\",'Enrollment Form'!O61<>\"Multiple of Salary\"),\"-\",IF(COUNTA('Enrollment Form'!T61:U61)<2,\"N\",\"Y\"))","v":"-"},{"$f":"IF(B54=\"N\",\"\",IF(OR('Enrollment Form'!C61=\"ROC\",'Enrollment Form'!B61<>\"Subscriber\",'Enrollment Form'!O61=\"Waive\",'Enrollment Form'!O61=\"\"),\"-\",IF('Enrollment Form'!P61=\"\",\"N\",\"Y\")))","v":""},{"$f":"IF($B54=\"N\",\"\",IF(AND('Enrollment Form'!$C61=\"ROC\",'Enrollment Form'!$DR61<>\"\"),\"Y\",IF(AND('Enrollment Form'!$C61=\"ROC\",'Enrollment Form'!$DR61=\"\"),\"N\",IF(AND('Enrollment Form'!$C61=\"Enroll\",'Enrollment Form'!$B61=\"Subscriber\",'Enrollment Form'!$CX61=\"No\",'Enrollment Form'!$DR61=\"\"),\"N\",IF(AND('Enrollment Form'!$C61=\"Enroll\",'Enrollment Form'!$B61=\"Subscriber\",'Enrollment Form'!$CX61=\"Yes\"),\"-\",\"Y\")))))","v":""},{"$f":"IF($B54=\"N\",\"\",IF(AND('Enrollment Form'!$C61=\"ROC\",'Enrollment Form'!$DS61<>\"\"),\"Y\",IF(AND('Enrollment Form'!$C61=\"ROC\",'Enrollment Form'!$DS61=\"\"),\"N\",IF(AND('Enrollment Form'!$C61=\"Enroll\",'Enrollment Form'!$B61=\"Subscriber\",'Enrollment Form'!$CX61=\"No\",'Enrollment Form'!$DS61=\"\"),\"N\",IF(AND('Enrollment Form'!$C61=\"Enroll\",'Enrollment Form'!$B61=\"Subscriber\",'Enrollment Form'!$CX61=\"Yes\"),\"-\",\"Y\")))))","v":""},{"$f":"IF('Enrollment Form'!AH61=\"\",\"\",IF(ISERROR(SEARCH(\".\",'Enrollment Form'!AH61,SEARCH(\"@\",'Enrollment Form'!AH61))),\"N\",\"Y\"))","v":""},{"$f":"IF(OR($B54=\"N\",'Enrollment Form'!$G61=\"\"),\"\",IF('Enrollment Form'!$B61<>\"Subscriber\",\"-\",IF(COUNTIF('Enrollment Form'!$AV61:$AW61,\"Yes\")=2,\"N\",\"Y\")))","v":""},{"$f":"IF(OR('Enrollment Form'!$CJ61=\"\",'Enrollment Form'!$CJ61=\"No\"),\"-\",IF(AND('Enrollment Form'!$CJ61=\"Yes\",'Enrollment Form'!$CK61=\"\"),\"N\",\"Y\"))","v":"-"},{"$f":"IF(OR('Enrollment Form'!$CL61=\"\",'Enrollment Form'!$CL61=\"No\"),\"-\",IF(AND('Enrollment Form'!$CL61=\"Yes\",'Enrollment Form'!$CM61=\"\"),\"N\",\"Y\"))","v":"-"},{"$f":"IF(OR('Enrollment Form'!$CN61=\"\",'Enrollment Form'!$CN61=\"No\"),\"-\",IF(AND('Enrollment Form'!$CN61=\"Yes\",'Enrollment Form'!$CO61=\"\"),\"N\",\"Y\"))","v":"-"},{"$f":"IF(OR('Enrollment Form'!$CN61=\"\",'Enrollment Form'!$CN61=\"No\"),\"-\",IF(AND('Enrollment Form'!$CN61=\"Yes\",'Enrollment Form'!$CP61=\"\"),\"N\",\"Y\"))","v":"-"},{"$f":"IF('Enrollment Form'!B61<>\"Subscriber\",\"-\",IF(AND('Enrollment Form'!B61=\"Subscriber\",'Enrollment Form'!C61=\"Enroll\",'Enrollment Form'!AA61=\"\"),\"N\",\"Y\"))","v":"-"},{"$f":"IF(OR('Enrollment Form'!B61=\"Subscriber\",'Enrollment Form'!B61=\"\"),\"-\",IF('Enrollment Form'!BP61=\"\",\"N\",\"Y\"))","v":"-"},{"$f":"IF('Enrollment Form'!B61<>\"Subscriber\",\"-\",IF(AND('Enrollment Form'!B61=\"Subscriber\",'Enrollment Form'!G61=\"\"),\"N\",\"Y\"))","v":"-"},{"$f":"IF('Enrollment Form'!A61=\"\",\"\",IF('Enrollment Form'!B61=\"Subscriber\",\"-\",IF(AND('Enrollment Form'!B61<>\"Subscriber\",'Enrollment Form'!G61='Enrollment Form'!H61),\"N\",\"Y\")))","v":""},0]
[62,{"$f":"IF('Enrollment Form'!$A62<>\"\",\"Y\",\"N\")","v":"N"},{"$f":"IF(AND('Enrollment Form'!$B62=\"\",'Enrollment Form'!$C62<>\"\"),\"N\",IF($B55=\"N\",\"\",\"Y\"))","v":""},{"$f":"IF(OR($B55=\"N\",'Enrollment Form'!G62=\"\"),\"\",IF('Enrollment Form'!$B62<>\"Subscriber\",\"\",IF('Enrollment Form'!$G62='Enrollment Form'!$H62,\"Y\",\"N\")))","v":""},{"$f":"IF($B55=\"N\",\"\",IF(AND(COUNTIFS('Enrollment Form'!$H$11:$H$1000,'Enrollment Form'!$H62,'Enrollment Form'!$B$11:$B$1000,'Enrollment Form'!$B62)>1,'Enrollment Form'!$H62<>\"\"),\"N\",\"Y\"))","v":""},{"$f":"IF($B55=\"N\",\"\",IF(LEN('Enrollment Form'!$Y62)=0,\"\",IF(LEN('Enrollment Form'!$Y62)<>5,\"N\",\"Y\")))","v":""},{"$f":"IF($B55=\"N\",\"\",IF(LEN('Enrollment Form'!$AD62=0),\"\",IF(LEN('Enrollment Form'!$AD62)<>5,\"N\",\"Y\")))","v":""},{"$f":"IF($B55=\"N\",\"\",IF(LEN('Enrollment Form'!$BS62=0),\"\",IF(LEN('Enrollment Form'!$BS62)<>5,\"N\",\"Y\")))","v":""},{"$f":"IF($B55=\"N\",\"\",IF(LEN('Enrollment Form'!$AE62)=0,\"\",IF(LEN('Enrollment Form'!$AE62)<>10,\"N\",\"Y\")))","v":""},{"$f":"IF($B55=\"N\",\"\",IF(LEN('Enrollment Form'!$AF62)=0,\"\",IF(LEN('Enrollment Form'!$AF62)<>10,\"N\",\"Y\")))","v":""},{"$f":"IF('Enrollment Form'!$O62<>\"Graded\",\"-\",IF(AND('Enrollment Form'!$O62=\"Graded\",'Enrollment Form'!$AR62<>\"\"),\"Y\",\"N\"))","v":"-"},{"$f":"IF($B55=\"N\",\"\",IF(OR('Enrollment Form'!$B62<>\"Subscriber\",'Enrollment Form'!$C62=\"ROC\"),\"-\",IF(AND('Enrollment Form'!$B62=\"Subscriber\",'Enrollment Form'!$C62=\"Enroll\",'Enrollment Form'!$AJ62<>\"\"),\"Y\",\"N\")))","v":""},{"$f":"IF($B55=\"N\",\"\",IF(OR('Enrollment Form'!$B62<>\"Subscriber\",'Enrollment Form'!$C62=\"ROC\"),\"-\",IF(AND('Enrollment Form'!$B62=\"Subscriber\",'Enrollment Form'!$C62=\"Enroll\",'Enrollment Form'!$AK62<>\"\"),\"Y\",\"N\")))","v":""},{"$f":"IF($B55=\"N\",\"\",IF(OR('Enrollment Form'!$B62<>\"Subscriber\",'Enrollment Form'!$C62=\"ROC\"),\"-\",IF(AND('Enrollment Form'!$B62=\"Subscriber\",'Enrollment Form'!$C62=\"Enroll\",'Enrollment Form'!$AL62<>\"\"),\"Y\",\"N\")))","v":""},{"$f":"IF($B55=\"N\",\"\",IF(OR('Enrollment Form'!$B62<>\"Subscriber\",'Enrollment Form'!$C62=\"ROC\"),\"-\",IF(AND('Enrollment Form'!$B62=\"Subscriber\",'Enrollment Form'!$C62=\"Enroll\",'Enrollment Form'!$AP62<>\"\"),\"Y\",\"N\")))","v":""},{"$f":"IF($B55=\"N\",\"\",IF(OR('Enrollment Form'!$B62<>\"Subscriber\",'Enrollment Form'!$C62=\"ROC\"),\"-\",IF(AND('Enrollment Form'!$B62=\"Subscriber\",'Enrollment Form'!$C62=\"Enroll\",'Enrollment Form'!$AQ62<>\"\"),\"Y\",\"N\")))","v":""},{"$f":"IF($B55=\"N\",\"\",IF(OR('Enrollment Form'!$B62<>\"Subscriber\",'Enrollment Form'!$C62=\"ROC\"),\"-\",IF(AND('Enrollment Form'!$B62=\"Subscriber\",'Enrollment Form'!$C62=\"Enroll\",'Enrollment Form'!$AS62<>\"\"),\"Y\",\"N\")))","v":""},{"$f":"IF($B55=\"N\",\"\",IF($Q55=\"-\",\"-\",IF(AND($Q55=\"Y\",'Enrollment Form'!$AS62=\"No\"),\"-\",IF(AND($Q55=\"Y\",'Enrollment Form'!$AS62=\"Yes\",'Enrollment Form'!$AT62<>\"\"),\"Y\",\"N\"))))","v":""},{"$f":"IF($B55=\"N\",\"\",IF(OR('Enrollment Form'!$B62<>\"Subscriber\",'Enrollment Form'!$C62=\"ROC\"),\"-\",IF(AND('Enrollment Form'!$B62=\"Subscriber\",'Enrollment Form'!$C62=\"Enroll\",'Enrollment Form'!$CV62<>\"\"),\"Y\",\"N\")))","v":""},{"$f":"IF($B55=\"N\",\"\",IF($S55=\"-\",\"-\",IF(AND($S55=\"Y\",'Enrollment Form'!$CV62=\"No\"),\"-\",IF(AND($S55=\"Y\",'Enrollment Form'!$CV62=\"Yes\",'Enrollment Form'!$CW62<>\"\"),\"Y\",\"N\"))))","v":""},{"$f":"IF(OR('Enrollment Form'!$AY62=\"Yes\",'Enrollment Form'!$AY62=\"\"),\"-\",IF(OR(AND('Enrollment Form'!$AY62=\"No\",ISERROR(FIND(\"HMO\",VLOOKUP('Enrollment Form'!G62,'Enrollment Form'!H$11:J$1000,3,FALSE),1))=FALSE,COUNTA('Enrollment Form'!$AZ62:$BC62)=4),AND('Enrollment Form'!$AY62=\"No\",ISERROR(FIND(\"HMO\",VLOOKUP('Enrollment Form'!G62,'Enrollment Form'!H$11:J$1000,3,FALSE),1))=FALSE,COUNTA('Enrollment Form'!$BT62:$BW62)=4)),\"Y\",\"N\"))","v":"-"},{"$f":"IF($B55=\"N\",\"\",IF('Enrollment Form'!$B62=\"Subscriber\",\"-\",IF(COUNTA('Enrollment Form'!$BL62,'Enrollment Form'!$BN62)=2,\"Y\",\"N\")))","v":""},{"$f":"IF($B55=\"N\",\"\",IF(OR('Enrollment Form'!$AX62=\"\",'Enrollment Form'!$AX62=\"No\"),\"-\",IF(AND('Enrollment Form'!$AX62=\"Yes\",COUNTA('Enrollment Form'!$CR62)=1),\"Y\",\"N\")))","v":""},{"$f":"IF(OR('Enrollment Form'!$CR62=\"\",'Enrollment Form'!$CR62=\"No\"),\"-\",IF(COUNTA('Enrollment Form'!$CT62:$CU62)=2,\"Y\",\"N\"))","v":"-"},{"$f":"IF($B55=\"N\",\"\",IF(COUNTIF('Enrollment Form'!$DG62:$DP62,\"Other\")=COUNTA('Enrollment Form'!$DK62,'Enrollment Form'!$DH62,'Enrollment Form'!$DN62,'Enrollment Form'!$DQ62),\"Y\",\"N\"))","v":""},{"$f":"IF($B55=\"N\",\"\",IF(OR('Enrollment Form'!B62<>\"Subscriber\",'Enrollment Form'!C62=\"ROC\",COUNTIF('Enrollment Form'!AV62:AW62,\"Yes\")>=1),\"-\",IF(AND('Enrollment Form'!C62=\"Enroll\",COUNTIF('Enrollment Form'!AV62:AW62,\"No\")=2,'Enrollment Form'!AX62=\"\"),\"N\",\"Y\")))","v":""},{"$f":"IF(OR(B55=\"N\",'Enrollment Form'!B62<>\"Subscriber\",'Enrollment Form'!C62=\"ROC\",'Enrollment Form'!O62<>\"Multiple of Salary\"),\"-\",IF(COUNTA('Enrollment Form'!T62:U62)<2,\"N\",\"Y\"))","v":"-"},{"$f":"IF(B55=\"N\",\"\",IF(OR('Enrollment Form'!C62=\"ROC\",'Enrollment Form'!B62<>\"Subscriber\",'Enrollment Form'!O62=\"Waive\",'Enrollment Form'!O62=\"\"),\"-\",IF('Enrollment Form'!P62=\"\",\"N\",\"Y\")))","v":""},{"$f":"IF($B55=\"N\",\"\",IF(AND('Enrollment Form'!$C62=\"ROC\",'Enrollment Form'!$DR62<>\"\"),\"Y\",IF(AND('Enrollment Form'!$C62=\"ROC\",'Enrollment Form'!$DR62=\"\"),\"N\",IF(AND('Enrollment Form'!$C62=\"Enroll\",'Enrollment Form'!$B62=\"Subscriber\",'Enrollment Form'!$CX62=\"No\",'Enrollment Form'!$DR62=\"\"),\"N\",IF(AND('Enrollment Form'!$C62=\"Enroll\",'Enrollment Form'!$B62=\"Subscriber\",'Enrollment Form'!$CX62=\"Yes\"),\"-\",\"Y\")))))","v":""},{"$f":"IF($B55=\"N\",\"\",IF(AND('Enrollment Form'!$C62=\"ROC\",'Enrollment Form'!$DS62<>\"\"),\"Y\",IF(AND('Enrollment Form'!$C62=\"ROC\",'Enrollment Form'!$DS62=\"\"),\"N\",IF(AND('Enrollment Form'!$C62=\"Enroll\",'Enrollment Form'!$B62=\"Subscriber\",'Enrollment Form'!$CX62=\"No\",'Enrollment Form'!$DS62=\"\"),\"N\",IF(AND('Enrollment Form'!$C62=\"Enroll\",'Enrollment Form'!$B62=\"Subscriber\",'Enrollment Form'!$CX62=\"Yes\"),\"-\",\"Y\")))))","v":""},{"$f":"IF('Enrollment Form'!AH62=\"\",\"\",IF(ISERROR(SEARCH(\".\",'Enrollment Form'!AH62,SEARCH(\"@\",'Enrollment Form'!AH62))),\"N\",\"Y\"))","v":""},{"$f":"IF(OR($B55=\"N\",'Enrollment Form'!$G62=\"\"),\"\",IF('Enrollment Form'!$B62<>\"Subscriber\",\"-\",IF(COUNTIF('Enrollment Form'!$AV62:$AW62,\"Yes\")=2,\"N\",\"Y\")))","v":""},{"$f":"IF(OR('Enrollment Form'!$CJ62=\"\",'Enrollment Form'!$CJ62=\"No\"),\"-\",IF(AND('Enrollment Form'!$CJ62=\"Yes\",'Enrollment Form'!$CK62=\"\"),\"N\",\"Y\"))","v":"-"},{"$f":"IF(OR('Enrollment Form'!$CL62=\"\",'Enrollment Form'!$CL62=\"No\"),\"-\",IF(AND('Enrollment Form'!$CL62=\"Yes\",'Enrollment Form'!$CM62=\"\"),\"N\",\"Y\"))","v":"-"},{"$f":"IF(OR('Enrollment Form'!$CN62=\"\",'Enrollment Form'!$CN62=\"No\"),\"-\",IF(AND('Enrollment Form'!$CN62=\"Yes\",'Enrollment Form'!$CO62=\"\"),\"N\",\"Y\"))","v":"-"},{"$f":"IF(OR('Enrollment Form'!$CN62=\"\",'Enrollment Form'!$CN62=\"No\"),\"-\",IF(AND('Enrollment Form'!$CN62=\"Yes\",'Enrollment Form'!$CP62=\"\"),\"N\",\"Y\"))","v":"-"},{"$f":"IF('Enrollment Form'!B62<>\"Subscriber\",\"-\",IF(AND('Enrollment Form'!B62=\"Subscriber\",'Enrollment Form'!C62=\"Enroll\",'Enrollment Form'!AA62=\"\"),\"N\",\"Y\"))","v":"-"},{"$f":"IF(OR('Enrollment Form'!B62=\"Subscriber\",'Enrollment Form'!B62=\"\"),\"-\",IF('Enrollment Form'!BP62=\"\",\"N\",\"Y\"))","v":"-"},{"$f":"IF('Enrollment Form'!B62<>\"Subscriber\",\"-\",IF(AND('Enrollment Form'!B62=\"Subscriber\",'Enrollment Form'!G62=\"\"),\"N\",\"Y\"))","v":"-"},{"$f":"IF('Enrollment Form'!A62=\"\",\"\",IF('Enrollment Form'!B62=\"Subscriber\",\"-\",IF(AND('Enrollment Form'!B62<>\"Subscriber\",'Enrollment Form'!G62='Enrollment Form'!H62),\"N\",\"Y\")))","v":""},0]
[63,{"$f":"IF('Enrollment Form'!$A63<>\"\",\"Y\",\"N\")","v":"N"},{"$f":"IF(AND('Enrollment Form'!$B63=\"\",'Enrollment Form'!$C63<>\"\"),\"N\",IF($B56=\"N\",\"\",\"Y\"))","v":""},{"$f":"IF(OR($B56=\"N\",'Enrollment Form'!G63=\"\"),\"\",IF('Enrollment Form'!$B63<>\"Subscriber\",\"\",IF('Enrollment Form'!$G63='Enrollment Form'!$H63,\"Y\",\"N\")))","v":""},{"$f":"IF($B56=\"N\",\"\",IF(AND(COUNTIFS('Enrollment Form'!$H$11:$H$1000,'Enrollment Form'!$H63,'Enrollment Form'!$B$11:$B$1000,'Enrollment Form'!$B63)>1,'Enrollment Form'!$H63<>\"\"),\"N\",\"Y\"))","v":""},{"$f":"IF($B56=\"N\",\"\",IF(LEN('Enrollment Form'!$Y63)=0,\"\",IF(LEN('Enrollment Form'!$Y63)<>5,\"N\",\"Y\")))","v":""},{"$f":"IF($B56=\"N\",\"\",IF(LEN('Enrollment Form'!$AD63=0),\"\",IF(LEN('Enrollment Form'!$AD63)<>5,\"N\",\"Y\")))","v":""},{"$f":"IF($B56=\"N\",\"\",IF(LEN('Enrollment Form'!$BS63=0),\"\",IF(LEN('Enrollment Form'!$BS63)<>5,\"N\",\"Y\")))","v":""},{"$f":"IF($B56=\"N\",\"\",IF(LEN('Enrollment Form'!$AE63)=0,\"\",IF(LEN('Enrollment Form'!$AE63)<>10,\"N\",\"Y\")))","v":""},{"$f":"IF($B56=\"N\",\"\",IF(LEN('Enrollment Form'!$AF63)=0,\"\",IF(LEN('Enrollment Form'!$AF63)<>10,\"N\",\"Y\")))","v":""},{"$f":"IF('Enrollment Form'!$O63<>\"Graded\",\"-\",IF(AND('Enrollment Form'!$O63=\"Graded\",'Enrollment Form'!$AR63<>\"\"),\"Y\",\"N\"))","v":"-"},{"$f":"IF($B56=\"N\",\"\",IF(OR('Enrollment Form'!$B63<>\"Subscriber\",'Enrollment Form'!$C63=\"ROC\"),\"-\",IF(AND('Enrollment Form'!$B63=\"Subscriber\",'Enrollment Form'!$C63=\"Enroll\",'Enrollment Form'!$AJ63<>\"\"),\"Y\",\"N\")))","v":""},{"$f":"IF($B56=\"N\",\"\",IF(OR('Enrollment Form'!$B63<>\"Subscriber\",'Enrollment Form'!$C63=\"ROC\"),\"-\",IF(AND('Enrollment Form'!$B63=\"Subscriber\",'Enrollment Form'!$C63=\"Enroll\",'Enrollment Form'!$AK63<>\"\"),\"Y\",\"N\")))","v":""},{"$f":"IF($B56=\"N\",\"\",IF(OR('Enrollment Form'!$B63<>\"Subscriber\",'Enrollment Form'!$C63=\"ROC\"),\"-\",IF(AND('Enrollment Form'!$B63=\"Subscriber\",'Enrollment Form'!$C63=\"Enroll\",'Enrollment Form'!$AL63<>\"\"),\"Y\",\"N\")))","v":""},{"$f":"IF($B56=\"N\",\"\",IF(OR('Enrollment Form'!$B63<>\"Subscriber\",'Enrollment Form'!$C63=\"ROC\"),\"-\",IF(AND('Enrollment Form'!$B63=\"Subscriber\",'Enrollment Form'!$C63=\"Enroll\",'Enrollment Form'!$AP63<>\"\"),\"Y\",\"N\")))","v":""},{"$f":"IF($B56=\"N\",\"\",IF(OR('Enrollment Form'!$B63<>\"Subscriber\",'Enrollment Form'!$C63=\"ROC\"),\"-\",IF(AND('Enrollment Form'!$B63=\"Subscriber\",'Enrollment Form'!$C63=\"Enroll\",'Enrollment Form'!$AQ63<>\"\"),\"Y\",\"N\")))","v":""},{"$f":"IF($B56=\"N\",\"\",IF(OR('Enrollment Form'!$B63<>\"Subscriber\",'Enrollment Form'!$C63=\"ROC\"),\"-\",IF(AND('Enrollment Form'!$B63=\"Subscriber\",'Enrollment Form'!$C63=\"Enroll\",'Enrollment Form'!$AS63<>\"\"),\"Y\",\"N\")))","v":""},{"$f":"IF($B56=\"N\",\"\",IF($Q56=\"-\",\"-\",IF(AND($Q56=\"Y\",'Enrollment Form'!$AS63=\"No\"),\"-\",IF(AND($Q56=\"Y\",'Enrollment Form'!$AS63=\"Yes\",'Enrollment Form'!$AT63<>\"\"),\"Y\",\"N\"))))","v":""},{"$f":"IF($B56=\"N\",\"\",IF(OR('Enrollment Form'!$B63<>\"Subscriber\",'Enrollment Form'!$C63=\"ROC\"),\"-\",IF(AND('Enrollment Form'!$B63=\"Subscriber\",'Enrollment Form'!$C63=\"Enroll\",'Enrollment Form'!$CV63<>\"\"),\"Y\",\"N\")))","v":""},{"$f":"IF($B56=\"N\",\"\",IF($S56=\"-\",\"-\",IF(AND($S56=\"Y\",'Enrollment Form'!$CV63=\"No\"),\"-\",IF(AND($S56=\"Y\",'Enrollment Form'!$CV63=\"Yes\",'Enrollment Form'!$CW63<>\"\"),\"Y\",\"N\"))))","v":""},{"$f":"IF(OR('Enrollment Form'!$AY63=\"Yes\",'Enrollment Form'!$AY63=\"\"),\"-\",IF(OR(AND('Enrollment Form'!$AY63=\"No\",ISERROR(FIND(\"HMO\",VLOOKUP('Enrollment Form'!G63,'Enrollment Form'!H$11:J$1000,3,FALSE),1))=FALSE,COUNTA('Enrollment Form'!$AZ63:$BC63)=4),AND('Enrollment Form'!$AY63=\"No\",ISERROR(FIND(\"HMO\",VLOOKUP('Enrollment Form'!G63,'Enrollment Form'!H$11:J$1000,3,FALSE),1))=FALSE,COUNTA('Enrollment Form'!$BT63:$BW63)=4)),\"Y\",\"N\"))","v":"-"},{"$f":"IF($B56=\"N\",\"\",IF('Enrollment Form'!$B63=\"Subscriber\",\"-\",IF(COUNTA('Enrollment Form'!$BL63,'Enrollment Form'!$BN63)=2,\"Y\",\"N\")))","v":""},{"$f":"IF($B56=\"N\",\"\",IF(OR('Enrollment Form'!$AX63=\"\",'Enrollment Form'!$AX63=\"No\"),\"-\",IF(AND('Enrollment Form'!$AX63=\"Yes\",COUNTA('Enrollment Form'!$CR63)=1),\"Y\",\"N\")))","v":""},{"$f":"IF(OR('Enrollment Form'!$CR63=\"\",'Enrollment Form'!$CR63=\"No\"),\"-\",IF(COUNTA('Enrollment Form'!$CT63:$CU63)=2,\"Y\",\"N\"))","v":"-"},{"$f":"IF($B56=\"N\",\"\",IF(COUNTIF('Enrollment Form'!$DG63:$DP63,\"Other\")=COUNTA('Enrollment Form'!$DK63,'Enrollment Form'!$DH63,'Enrollment Form'!$DN63,'Enrollment Form'!$DQ63),\"Y\",\"N\"))","v":""},{"$f":"IF($B56=\"N\",\"\",IF(OR('Enrollment Form'!B63<>\"Subscriber\",'Enrollment Form'!C63=\"ROC\",COUNTIF('Enrollment Form'!AV63:AW63,\"Yes\")>=1),\"-\",IF(AND('Enrollment Form'!C63=\"Enroll\",COUNTIF('Enrollment Form'!AV63:AW63,\"No\")=2,'Enrollment Form'!AX63=\"\"),\"N\",\"Y\")))","v":""},{"$f":"IF(OR(B56=\"N\",'Enrollment Form'!B63<>\"Subscriber\",'Enrollment Form'!C63=\"ROC\",'Enrollment Form'!O63<>\"Multiple of Salary\"),\"-\",IF(COUNTA('Enrollment Form'!T63:U63)<2,\"N\",\"Y\"))","v":"-"},{"$f":"IF(B56=\"N\",\"\",IF(OR('Enrollment Form'!C63=\"ROC\",'Enrollment Form'!B63<>\"Subscriber\",'Enrollment Form'!O63=\"Waive\",'Enrollment Form'!O63=\"\"),\"-\",IF('Enrollment Form'!P63=\"\",\"N\",\"Y\")))","v":""},{"$f":"IF($B56=\"N\",\"\",IF(AND('Enrollment Form'!$C63=\"ROC\",'Enrollment Form'!$DR63<>\"\"),\"Y\",IF(AND('Enrollment Form'!$C63=\"ROC\",'Enrollment Form'!$DR63=\"\"),\"N\",IF(AND('Enrollment Form'!$C63=\"Enroll\",'Enrollment Form'!$B63=\"Subscriber\",'Enrollment Form'!$CX63=\"No\",'Enrollment Form'!$DR63=\"\"),\"N\",IF(AND('Enrollment Form'!$C63=\"Enroll\",'Enrollment Form'!$B63=\"Subscriber\",'Enrollment Form'!$CX63=\"Yes\"),\"-\",\"Y\")))))","v":""},{"$f":"IF($B56=\"N\",\"\",IF(AND('Enrollment Form'!$C63=\"ROC\",'Enrollment Form'!$DS63<>\"\"),\"Y\",IF(AND('Enrollment Form'!$C63=\"ROC\",'Enrollment Form'!$DS63=\"\"),\"N\",IF(AND('Enrollment Form'!$C63=\"Enroll\",'Enrollment Form'!$B63=\"Subscriber\",'Enrollment Form'!$CX63=\"No\",'Enrollment Form'!$DS63=\"\"),\"N\",IF(AND('Enrollment Form'!$C63=\"Enroll\",'Enrollment Form'!$B63=\"Subscriber\",'Enrollment Form'!$CX63=\"Yes\"),\"-\",\"Y\")))))","v":""},{"$f":"IF('Enrollment Form'!AH63=\"\",\"\",IF(ISERROR(SEARCH(\".\",'Enrollment Form'!AH63,SEARCH(\"@\",'Enrollment Form'!AH63))),\"N\",\"Y\"))","v":""},{"$f":"IF(OR($B56=\"N\",'Enrollment Form'!$G63=\"\"),\"\",IF('Enrollment Form'!$B63<>\"Subscriber\",\"-\",IF(COUNTIF('Enrollment Form'!$AV63:$AW63,\"Yes\")=2,\"N\",\"Y\")))","v":""},{"$f":"IF(OR('Enrollment Form'!$CJ63=\"\",'Enrollment Form'!$CJ63=\"No\"),\"-\",IF(AND('Enrollment Form'!$CJ63=\"Yes\",'Enrollment Form'!$CK63=\"\"),\"N\",\"Y\"))","v":"-"},{"$f":"IF(OR('Enrollment Form'!$CL63=\"\",'Enrollment Form'!$CL63=\"No\"),\"-\",IF(AND('Enrollment Form'!$CL63=\"Yes\",'Enrollment Form'!$CM63=\"\"),\"N\",\"Y\"))","v":"-"},{"$f":"IF(OR('Enrollment Form'!$CN63=\"\",'Enrollment Form'!$CN63=\"No\"),\"-\",IF(AND('Enrollment Form'!$CN63=\"Yes\",'Enrollment Form'!$CO63=\"\"),\"N\",\"Y\"))","v":"-"},{"$f":"IF(OR('Enrollment Form'!$CN63=\"\",'Enrollment Form'!$CN63=\"No\"),\"-\",IF(AND('Enrollment Form'!$CN63=\"Yes\",'Enrollment Form'!$CP63=\"\"),\"N\",\"Y\"))","v":"-"},{"$f":"IF('Enrollment Form'!B63<>\"Subscriber\",\"-\",IF(AND('Enrollment Form'!B63=\"Subscriber\",'Enrollment Form'!C63=\"Enroll\",'Enrollment Form'!AA63=\"\"),\"N\",\"Y\"))","v":"-"},{"$f":"IF(OR('Enrollment Form'!B63=\"Subscriber\",'Enrollment Form'!B63=\"\"),\"-\",IF('Enrollment Form'!BP63=\"\",\"N\",\"Y\"))","v":"-"},{"$f":"IF('Enrollment Form'!B63<>\"Subscriber\",\"-\",IF(AND('Enrollment Form'!B63=\"Subscriber\",'Enrollment Form'!G63=\"\"),\"N\",\"Y\"))","v":"-"},{"$f":"IF('Enrollment Form'!A63=\"\",\"\",IF('Enrollment Form'!B63=\"Subscriber\",\"-\",IF(AND('Enrollment Form'!B63<>\"Subscriber\",'Enrollment Form'!G63='Enrollment Form'!H63),\"N\",\"Y\")))","v":""},0]
[64,{"$f":"IF('Enrollment Form'!$A64<>\"\",\"Y\",\"N\")","v":"N"},{"$f":"IF(AND('Enrollment Form'!$B64=\"\",'Enrollment Form'!$C64<>\"\"),\"N\",IF($B57=\"N\",\"\",\"Y\"))","v":""},{"$f":"IF(OR($B57=\"N\",'Enrollment Form'!G64=\"\"),\"\",IF('Enrollment Form'!$B64<>\"Subscriber\",\"\",IF('Enrollment Form'!$G64='Enrollment Form'!$H64,\"Y\",\"N\")))","v":""},{"$f":"IF($B57=\"N\",\"\",IF(AND(COUNTIFS('Enrollment Form'!$H$11:$H$1000,'Enrollment Form'!$H64,'Enrollment Form'!$B$11:$B$1000,'Enrollment Form'!$B64)>1,'Enrollment Form'!$H64<>\"\"),\"N\",\"Y\"))","v":""},{"$f":"IF($B57=\"N\",\"\",IF(LEN('Enrollment Form'!$Y64)=0,\"\",IF(LEN('Enrollment Form'!$Y64)<>5,\"N\",\"Y\")))","v":""},{"$f":"IF($B57=\"N\",\"\",IF(LEN('Enrollment Form'!$AD64=0),\"\",IF(LEN('Enrollment Form'!$AD64)<>5,\"N\",\"Y\")))","v":""},{"$f":"IF($B57=\"N\",\"\",IF(LEN('Enrollment Form'!$BS64=0),\"\",IF(LEN('Enrollment Form'!$BS64)<>5,\"N\",\"Y\")))","v":""},{"$f":"IF($B57=\"N\",\"\",IF(LEN('Enrollment Form'!$AE64)=0,\"\",IF(LEN('Enrollment Form'!$AE64)<>10,\"N\",\"Y\")))","v":""},{"$f":"IF($B57=\"N\",\"\",IF(LEN('Enrollment Form'!$AF64)=0,\"\",IF(LEN('Enrollment Form'!$AF64)<>10,\"N\",\"Y\")))","v":""},{"$f":"IF('Enrollment Form'!$O64<>\"Graded\",\"-\",IF(AND('Enrollment Form'!$O64=\"Graded\",'Enrollment Form'!$AR64<>\"\"),\"Y\",\"N\"))","v":"-"},{"$f":"IF($B57=\"N\",\"\",IF(OR('Enrollment Form'!$B64<>\"Subscriber\",'Enrollment Form'!$C64=\"ROC\"),\"-\",IF(AND('Enrollment Form'!$B64=\"Subscriber\",'Enrollment Form'!$C64=\"Enroll\",'Enrollment Form'!$AJ64<>\"\"),\"Y\",\"N\")))","v":""},{"$f":"IF($B57=\"N\",\"\",IF(OR('Enrollment Form'!$B64<>\"Subscriber\",'Enrollment Form'!$C64=\"ROC\"),\"-\",IF(AND('Enrollment Form'!$B64=\"Subscriber\",'Enrollment Form'!$C64=\"Enroll\",'Enrollment Form'!$AK64<>\"\"),\"Y\",\"N\")))","v":""},{"$f":"IF($B57=\"N\",\"\",IF(OR('Enrollment Form'!$B64<>\"Subscriber\",'Enrollment Form'!$C64=\"ROC\"),\"-\",IF(AND('Enrollment Form'!$B64=\"Subscriber\",'Enrollment Form'!$C64=\"Enroll\",'Enrollment Form'!$AL64<>\"\"),\"Y\",\"N\")))","v":""},{"$f":"IF($B57=\"N\",\"\",IF(OR('Enrollment Form'!$B64<>\"Subscriber\",'Enrollment Form'!$C64=\"ROC\"),\"-\",IF(AND('Enrollment Form'!$B64=\"Subscriber\",'Enrollment Form'!$C64=\"Enroll\",'Enrollment Form'!$AP64<>\"\"),\"Y\",\"N\")))","v":""},{"$f":"IF($B57=\"N\",\"\",IF(OR('Enrollment Form'!$B64<>\"Subscriber\",'Enrollment Form'!$C64=\"ROC\"),\"-\",IF(AND('Enrollment Form'!$B64=\"Subscriber\",'Enrollment Form'!$C64=\"Enroll\",'Enrollment Form'!$AQ64<>\"\"),\"Y\",\"N\")))","v":""},{"$f":"IF($B57=\"N\",\"\",IF(OR('Enrollment Form'!$B64<>\"Subscriber\",'Enrollment Form'!$C64=\"ROC\"),\"-\",IF(AND('Enrollment Form'!$B64=\"Subscriber\",'Enrollment Form'!$C64=\"Enroll\",'Enrollment Form'!$AS64<>\"\"),\"Y\",\"N\")))","v":""},{"$f":"IF($B57=\"N\",\"\",IF($Q57=\"-\",\"-\",IF(AND($Q57=\"Y\",'Enrollment Form'!$AS64=\"No\"),\"-\",IF(AND($Q57=\"Y\",'Enrollment Form'!$AS64=\"Yes\",'Enrollment Form'!$AT64<>\"\"),\"Y\",\"N\"))))","v":""},{"$f":"IF($B57=\"N\",\"\",IF(OR('Enrollment Form'!$B64<>\"Subscriber\",'Enrollment Form'!$C64=\"ROC\"),\"-\",IF(AND('Enrollment Form'!$B64=\"Subscriber\",'Enrollment Form'!$C64=\"Enroll\",'Enrollment Form'!$CV64<>\"\"),\"Y\",\"N\")))","v":""},{"$f":"IF($B57=\"N\",\"\",IF($S57=\"-\",\"-\",IF(AND($S57=\"Y\",'Enrollment Form'!$CV64=\"No\"),\"-\",IF(AND($S57=\"Y\",'Enrollment Form'!$CV64=\"Yes\",'Enrollment Form'!$CW64<>\"\"),\"Y\",\"N\"))))","v":""},{"$f":"IF(OR('Enrollment Form'!$AY64=\"Yes\",'Enrollment Form'!$AY64=\"\"),\"-\",IF(OR(AND('Enrollment Form'!$AY64=\"No\",ISERROR(FIND(\"HMO\",VLOOKUP('Enrollment Form'!G64,'Enrollment Form'!H$11:J$1000,3,FALSE),1))=FALSE,COUNTA('Enrollment Form'!$AZ64:$BC64)=4),AND('Enrollment Form'!$AY64=\"No\",ISERROR(FIND(\"HMO\",VLOOKUP('Enrollment Form'!G64,'Enrollment Form'!H$11:J$1000,3,FALSE),1))=FALSE,COUNTA('Enrollment Form'!$BT64:$BW64)=4)),\"Y\",\"N\"))","v":"-"},{"$f":"IF($B57=\"N\",\"\",IF('Enrollment Form'!$B64=\"Subscriber\",\"-\",IF(COUNTA('Enrollment Form'!$BL64,'Enrollment Form'!$BN64)=2,\"Y\",\"N\")))","v":""},{"$f":"IF($B57=\"N\",\"\",IF(OR('Enrollment Form'!$AX64=\"\",'Enrollment Form'!$AX64=\"No\"),\"-\",IF(AND('Enrollment Form'!$AX64=\"Yes\",COUNTA('Enrollment Form'!$CR64)=1),\"Y\",\"N\")))","v":""},{"$f":"IF(OR('Enrollment Form'!$CR64=\"\",'Enrollment Form'!$CR64=\"No\"),\"-\",IF(COUNTA('Enrollment Form'!$CT64:$CU64)=2,\"Y\",\"N\"))","v":"-"},{"$f":"IF($B57=\"N\",\"\",IF(COUNTIF('Enrollment Form'!$DG64:$DP64,\"Other\")=COUNTA('Enrollment Form'!$DK64,'Enrollment Form'!$DH64,'Enrollment Form'!$DN64,'Enrollment Form'!$DQ64),\"Y\",\"N\"))","v":""},{"$f":"IF($B57=\"N\",\"\",IF(OR('Enrollment Form'!B64<>\"Subscriber\",'Enrollment Form'!C64=\"ROC\",COUNTIF('Enrollment Form'!AV64:AW64,\"Yes\")>=1),\"-\",IF(AND('Enrollment Form'!C64=\"Enroll\",COUNTIF('Enrollment Form'!AV64:AW64,\"No\")=2,'Enrollment Form'!AX64=\"\"),\"N\",\"Y\")))","v":""},{"$f":"IF(OR(B57=\"N\",'Enrollment Form'!B64<>\"Subscriber\",'Enrollment Form'!C64=\"ROC\",'Enrollment Form'!O64<>\"Multiple of Salary\"),\"-\",IF(COUNTA('Enrollment Form'!T64:U64)<2,\"N\",\"Y\"))","v":"-"},{"$f":"IF(B57=\"N\",\"\",IF(OR('Enrollment Form'!C64=\"ROC\",'Enrollment Form'!B64<>\"Subscriber\",'Enrollment Form'!O64=\"Waive\",'Enrollment Form'!O64=\"\"),\"-\",IF('Enrollment Form'!P64=\"\",\"N\",\"Y\")))","v":""},{"$f":"IF($B57=\"N\",\"\",IF(AND('Enrollment Form'!$C64=\"ROC\",'Enrollment Form'!$DR64<>\"\"),\"Y\",IF(AND('Enrollment Form'!$C64=\"ROC\",'Enrollment Form'!$DR64=\"\"),\"N\",IF(AND('Enrollment Form'!$C64=\"Enroll\",'Enrollment Form'!$B64=\"Subscriber\",'Enrollment Form'!$CX64=\"No\",'Enrollment Form'!$DR64=\"\"),\"N\",IF(AND('Enrollment Form'!$C64=\"Enroll\",'Enrollment Form'!$B64=\"Subscriber\",'Enrollment Form'!$CX64=\"Yes\"),\"-\",\"Y\")))))","v":""},{"$f":"IF($B57=\"N\",\"\",IF(AND('Enrollment Form'!$C64=\"ROC\",'Enrollment Form'!$DS64<>\"\"),\"Y\",IF(AND('Enrollment Form'!$C64=\"ROC\",'Enrollment Form'!$DS64=\"\"),\"N\",IF(AND('Enrollment Form'!$C64=\"Enroll\",'Enrollment Form'!$B64=\"Subscriber\",'Enrollment Form'!$CX64=\"No\",'Enrollment Form'!$DS64=\"\"),\"N\",IF(AND('Enrollment Form'!$C64=\"Enroll\",'Enrollment Form'!$B64=\"Subscriber\",'Enrollment Form'!$CX64=\"Yes\"),\"-\",\"Y\")))))","v":""},{"$f":"IF('Enrollment Form'!AH64=\"\",\"\",IF(ISERROR(SEARCH(\".\",'Enrollment Form'!AH64,SEARCH(\"@\",'Enrollment Form'!AH64))),\"N\",\"Y\"))","v":""},{"$f":"IF(OR($B57=\"N\",'Enrollment Form'!$G64=\"\"),\"\",IF('Enrollment Form'!$B64<>\"Subscriber\",\"-\",IF(COUNTIF('Enrollment Form'!$AV64:$AW64,\"Yes\")=2,\"N\",\"Y\")))","v":""},{"$f":"IF(OR('Enrollment Form'!$CJ64=\"\",'Enrollment Form'!$CJ64=\"No\"),\"-\",IF(AND('Enrollment Form'!$CJ64=\"Yes\",'Enrollment Form'!$CK64=\"\"),\"N\",\"Y\"))","v":"-"},{"$f":"IF(OR('Enrollment Form'!$CL64=\"\",'Enrollment Form'!$CL64=\"No\"),\"-\",IF(AND('Enrollment Form'!$CL64=\"Yes\",'Enrollment Form'!$CM64=\"\"),\"N\",\"Y\"))","v":"-"},{"$f":"IF(OR('Enrollment Form'!$CN64=\"\",'Enrollment Form'!$CN64=\"No\"),\"-\",IF(AND('Enrollment Form'!$CN64=\"Yes\",'Enrollment Form'!$CO64=\"\"),\"N\",\"Y\"))","v":"-"},{"$f":"IF(OR('Enrollment Form'!$CN64=\"\",'Enrollment Form'!$CN64=\"No\"),\"-\",IF(AND('Enrollment Form'!$CN64=\"Yes\",'Enrollment Form'!$CP64=\"\"),\"N\",\"Y\"))","v":"-"},{"$f":"IF('Enrollment Form'!B64<>\"Subscriber\",\"-\",IF(AND('Enrollment Form'!B64=\"Subscriber\",'Enrollment Form'!C64=\"Enroll\",'Enrollment Form'!AA64=\"\"),\"N\",\"Y\"))","v":"-"},{"$f":"IF(OR('Enrollment Form'!B64=\"Subscriber\",'Enrollment Form'!B64=\"\"),\"-\",IF('Enrollment Form'!BP64=\"\",\"N\",\"Y\"))","v":"-"},{"$f":"IF('Enrollment Form'!B64<>\"Subscriber\",\"-\",IF(AND('Enrollment Form'!B64=\"Subscriber\",'Enrollment Form'!G64=\"\"),\"N\",\"Y\"))","v":"-"},{"$f":"IF('Enrollment Form'!A64=\"\",\"\",IF('Enrollment Form'!B64=\"Subscriber\",\"-\",IF(AND('Enrollment Form'!B64<>\"Subscriber\",'Enrollment Form'!G64='Enrollment Form'!H64),\"N\",\"Y\")))","v":""},0]
[65,{"$f":"IF('Enrollment Form'!$A65<>\"\",\"Y\",\"N\")","v":"N"},{"$f":"IF(AND('Enrollment Form'!$B65=\"\",'Enrollment Form'!$C65<>\"\"),\"N\",IF($B58=\"N\",\"\",\"Y\"))","v":""},{"$f":"IF(OR($B58=\"N\",'Enrollment Form'!G65=\"\"),\"\",IF('Enrollment Form'!$B65<>\"Subscriber\",\"\",IF('Enrollment Form'!$G65='Enrollment Form'!$H65,\"Y\",\"N\")))","v":""},{"$f":"IF($B58=\"N\",\"\",IF(AND(COUNTIFS('Enrollment Form'!$H$11:$H$1000,'Enrollment Form'!$H65,'Enrollment Form'!$B$11:$B$1000,'Enrollment Form'!$B65)>1,'Enrollment Form'!$H65<>\"\"),\"N\",\"Y\"))","v":""},{"$f":"IF($B58=\"N\",\"\",IF(LEN('Enrollment Form'!$Y65)=0,\"\",IF(LEN('Enrollment Form'!$Y65)<>5,\"N\",\"Y\")))","v":""},{"$f":"IF($B58=\"N\",\"\",IF(LEN('Enrollment Form'!$AD65=0),\"\",IF(LEN('Enrollment Form'!$AD65)<>5,\"N\",\"Y\")))","v":""},{"$f":"IF($B58=\"N\",\"\",IF(LEN('Enrollment Form'!$BS65=0),\"\",IF(LEN('Enrollment Form'!$BS65)<>5,\"N\",\"Y\")))","v":""},{"$f":"IF($B58=\"N\",\"\",IF(LEN('Enrollment Form'!$AE65)=0,\"\",IF(LEN('Enrollment Form'!$AE65)<>10,\"N\",\"Y\")))","v":""},{"$f":"IF($B58=\"N\",\"\",IF(LEN('Enrollment Form'!$AF65)=0,\"\",IF(LEN('Enrollment Form'!$AF65)<>10,\"N\",\"Y\")))","v":""},{"$f":"IF('Enrollment Form'!$O65<>\"Graded\",\"-\",IF(AND('Enrollment Form'!$O65=\"Graded\",'Enrollment Form'!$AR65<>\"\"),\"Y\",\"N\"))","v":"-"},{"$f":"IF($B58=\"N\",\"\",IF(OR('Enrollment Form'!$B65<>\"Subscriber\",'Enrollment Form'!$C65=\"ROC\"),\"-\",IF(AND('Enrollment Form'!$B65=\"Subscriber\",'Enrollment Form'!$C65=\"Enroll\",'Enrollment Form'!$AJ65<>\"\"),\"Y\",\"N\")))","v":""},{"$f":"IF($B58=\"N\",\"\",IF(OR('Enrollment Form'!$B65<>\"Subscriber\",'Enrollment Form'!$C65=\"ROC\"),\"-\",IF(AND('Enrollment Form'!$B65=\"Subscriber\",'Enrollment Form'!$C65=\"Enroll\",'Enrollment Form'!$AK65<>\"\"),\"Y\",\"N\")))","v":""},{"$f":"IF($B58=\"N\",\"\",IF(OR('Enrollment Form'!$B65<>\"Subscriber\",'Enrollment Form'!$C65=\"ROC\"),\"-\",IF(AND('Enrollment Form'!$B65=\"Subscriber\",'Enrollment Form'!$C65=\"Enroll\",'Enrollment Form'!$AL65<>\"\"),\"Y\",\"N\")))","v":""},{"$f":"IF($B58=\"N\",\"\",IF(OR('Enrollment Form'!$B65<>\"Subscriber\",'Enrollment Form'!$C65=\"ROC\"),\"-\",IF(AND('Enrollment Form'!$B65=\"Subscriber\",'Enrollment Form'!$C65=\"Enroll\",'Enrollment Form'!$AP65<>\"\"),\"Y\",\"N\")))","v":""},{"$f":"IF($B58=\"N\",\"\",IF(OR('Enrollment Form'!$B65<>\"Subscriber\",'Enrollment Form'!$C65=\"ROC\"),\"-\",IF(AND('Enrollment Form'!$B65=\"Subscriber\",'Enrollment Form'!$C65=\"Enroll\",'Enrollment Form'!$AQ65<>\"\"),\"Y\",\"N\")))","v":""},{"$f":"IF($B58=\"N\",\"\",IF(OR('Enrollment Form'!$B65<>\"Subscriber\",'Enrollment Form'!$C65=\"ROC\"),\"-\",IF(AND('Enrollment Form'!$B65=\"Subscriber\",'Enrollment Form'!$C65=\"Enroll\",'Enrollment Form'!$AS65<>\"\"),\"Y\",\"N\")))","v":""},{"$f":"IF($B58=\"N\",\"\",IF($Q58=\"-\",\"-\",IF(AND($Q58=\"Y\",'Enrollment Form'!$AS65=\"No\"),\"-\",IF(AND($Q58=\"Y\",'Enrollment Form'!$AS65=\"Yes\",'Enrollment Form'!$AT65<>\"\"),\"Y\",\"N\"))))","v":""},{"$f":"IF($B58=\"N\",\"\",IF(OR('Enrollment Form'!$B65<>\"Subscriber\",'Enrollment Form'!$C65=\"ROC\"),\"-\",IF(AND('Enrollment Form'!$B65=\"Subscriber\",'Enrollment Form'!$C65=\"Enroll\",'Enrollment Form'!$CV65<>\"\"),\"Y\",\"N\")))","v":""},{"$f":"IF($B58=\"N\",\"\",IF($S58=\"-\",\"-\",IF(AND($S58=\"Y\",'Enrollment Form'!$CV65=\"No\"),\"-\",IF(AND($S58=\"Y\",'Enrollment Form'!$CV65=\"Yes\",'Enrollment Form'!$CW65<>\"\"),\"Y\",\"N\"))))","v":""},{"$f":"IF(OR('Enrollment Form'!$AY65=\"Yes\",'Enrollment Form'!$AY65=\"\"),\"-\",IF(OR(AND('Enrollment Form'!$AY65=\"No\",ISERROR(FIND(\"HMO\",VLOOKUP('Enrollment Form'!G65,'Enrollment Form'!H$11:J$1000,3,FALSE),1))=FALSE,COUNTA('Enrollment Form'!$AZ65:$BC65)=4),AND('Enrollment Form'!$AY65=\"No\",ISERROR(FIND(\"HMO\",VLOOKUP('Enrollment Form'!G65,'Enrollment Form'!H$11:J$1000,3,FALSE),1))=FALSE,COUNTA('Enrollment Form'!$BT65:$BW65)=4)),\"Y\",\"N\"))","v":"-"},{"$f":"IF($B58=\"N\",\"\",IF('Enrollment Form'!$B65=\"Subscriber\",\"-\",IF(COUNTA('Enrollment Form'!$BL65,'Enrollment Form'!$BN65)=2,\"Y\",\"N\")))","v":""},{"$f":"IF($B58=\"N\",\"\",IF(OR('Enrollment Form'!$AX65=\"\",'Enrollment Form'!$AX65=\"No\"),\"-\",IF(AND('Enrollment Form'!$AX65=\"Yes\",COUNTA('Enrollment Form'!$CR65)=1),\"Y\",\"N\")))","v":""},{"$f":"IF(OR('Enrollment Form'!$CR65=\"\",'Enrollment Form'!$CR65=\"No\"),\"-\",IF(COUNTA('Enrollment Form'!$CT65:$CU65)=2,\"Y\",\"N\"))","v":"-"},{"$f":"IF($B58=\"N\",\"\",IF(COUNTIF('Enrollment Form'!$DG65:$DP65,\"Other\")=COUNTA('Enrollment Form'!$DK65,'Enrollment Form'!$DH65,'Enrollment Form'!$DN65,'Enrollment Form'!$DQ65),\"Y\",\"N\"))","v":""},{"$f":"IF($B58=\"N\",\"\",IF(OR('Enrollment Form'!B65<>\"Subscriber\",'Enrollment Form'!C65=\"ROC\",COUNTIF('Enrollment Form'!AV65:AW65,\"Yes\")>=1),\"-\",IF(AND('Enrollment Form'!C65=\"Enroll\",COUNTIF('Enrollment Form'!AV65:AW65,\"No\")=2,'Enrollment Form'!AX65=\"\"),\"N\",\"Y\")))","v":""},{"$f":"IF(OR(B58=\"N\",'Enrollment Form'!B65<>\"Subscriber\",'Enrollment Form'!C65=\"ROC\",'Enrollment Form'!O65<>\"Multiple of Salary\"),\"-\",IF(COUNTA('Enrollment Form'!T65:U65)<2,\"N\",\"Y\"))","v":"-"},{"$f":"IF(B58=\"N\",\"\",IF(OR('Enrollment Form'!C65=\"ROC\",'Enrollment Form'!B65<>\"Subscriber\",'Enrollment Form'!O65=\"Waive\",'Enrollment Form'!O65=\"\"),\"-\",IF('Enrollment Form'!P65=\"\",\"N\",\"Y\")))","v":""},{"$f":"IF($B58=\"N\",\"\",IF(AND('Enrollment Form'!$C65=\"ROC\",'Enrollment Form'!$DR65<>\"\"),\"Y\",IF(AND('Enrollment Form'!$C65=\"ROC\",'Enrollment Form'!$DR65=\"\"),\"N\",IF(AND('Enrollment Form'!$C65=\"Enroll\",'Enrollment Form'!$B65=\"Subscriber\",'Enrollment Form'!$CX65=\"No\",'Enrollment Form'!$DR65=\"\"),\"N\",IF(AND('Enrollment Form'!$C65=\"Enroll\",'Enrollment Form'!$B65=\"Subscriber\",'Enrollment Form'!$CX65=\"Yes\"),\"-\",\"Y\")))))","v":""},{"$f":"IF($B58=\"N\",\"\",IF(AND('Enrollment Form'!$C65=\"ROC\",'Enrollment Form'!$DS65<>\"\"),\"Y\",IF(AND('Enrollment Form'!$C65=\"ROC\",'Enrollment Form'!$DS65=\"\"),\"N\",IF(AND('Enrollment Form'!$C65=\"Enroll\",'Enrollment Form'!$B65=\"Subscriber\",'Enrollment Form'!$CX65=\"No\",'Enrollment Form'!$DS65=\"\"),\"N\",IF(AND('Enrollment Form'!$C65=\"Enroll\",'Enrollment Form'!$B65=\"Subscriber\",'Enrollment Form'!$CX65=\"Yes\"),\"-\",\"Y\")))))","v":""},{"$f":"IF('Enrollment Form'!AH65=\"\",\"\",IF(ISERROR(SEARCH(\".\",'Enrollment Form'!AH65,SEARCH(\"@\",'Enrollment Form'!AH65))),\"N\",\"Y\"))","v":""},{"$f":"IF(OR($B58=\"N\",'Enrollment Form'!$G65=\"\"),\"\",IF('Enrollment Form'!$B65<>\"Subscriber\",\"-\",IF(COUNTIF('Enrollment Form'!$AV65:$AW65,\"Yes\")=2,\"N\",\"Y\")))","v":""},{"$f":"IF(OR('Enrollment Form'!$CJ65=\"\",'Enrollment Form'!$CJ65=\"No\"),\"-\",IF(AND('Enrollment Form'!$CJ65=\"Yes\",'Enrollment Form'!$CK65=\"\"),\"N\",\"Y\"))","v":"-"},{"$f":"IF(OR('Enrollment Form'!$CL65=\"\",'Enrollment Form'!$CL65=\"No\"),\"-\",IF(AND('Enrollment Form'!$CL65=\"Yes\",'Enrollment Form'!$CM65=\"\"),\"N\",\"Y\"))","v":"-"},{"$f":"IF(OR('Enrollment Form'!$CN65=\"\",'Enrollment Form'!$CN65=\"No\"),\"-\",IF(AND('Enrollment Form'!$CN65=\"Yes\",'Enrollment Form'!$CO65=\"\"),\"N\",\"Y\"))","v":"-"},{"$f":"IF(OR('Enrollment Form'!$CN65=\"\",'Enrollment Form'!$CN65=\"No\"),\"-\",IF(AND('Enrollment Form'!$CN65=\"Yes\",'Enrollment Form'!$CP65=\"\"),\"N\",\"Y\"))","v":"-"},{"$f":"IF('Enrollment Form'!B65<>\"Subscriber\",\"-\",IF(AND('Enrollment Form'!B65=\"Subscriber\",'Enrollment Form'!C65=\"Enroll\",'Enrollment Form'!AA65=\"\"),\"N\",\"Y\"))","v":"-"},{"$f":"IF(OR('Enrollment Form'!B65=\"Subscriber\",'Enrollment Form'!B65=\"\"),\"-\",IF('Enrollment Form'!BP65=\"\",\"N\",\"Y\"))","v":"-"},{"$f":"IF('Enrollment Form'!B65<>\"Subscriber\",\"-\",IF(AND('Enrollment Form'!B65=\"Subscriber\",'Enrollment Form'!G65=\"\"),\"N\",\"Y\"))","v":"-"},{"$f":"IF('Enrollment Form'!A65=\"\",\"\",IF('Enrollment Form'!B65=\"Subscriber\",\"-\",IF(AND('Enrollment Form'!B65<>\"Subscriber\",'Enrollment Form'!G65='Enrollment Form'!H65),\"N\",\"Y\")))","v":""},0]
[66,{"$f":"IF('Enrollment Form'!$A66<>\"\",\"Y\",\"N\")","v":"N"},{"$f":"IF(AND('Enrollment Form'!$B66=\"\",'Enrollment Form'!$C66<>\"\"),\"N\",IF($B59=\"N\",\"\",\"Y\"))","v":""},{"$f":"IF(OR($B59=\"N\",'Enrollment Form'!G66=\"\"),\"\",IF('Enrollment Form'!$B66<>\"Subscriber\",\"\",IF('Enrollment Form'!$G66='Enrollment Form'!$H66,\"Y\",\"N\")))","v":""},{"$f":"IF($B59=\"N\",\"\",IF(AND(COUNTIFS('Enrollment Form'!$H$11:$H$1000,'Enrollment Form'!$H66,'Enrollment Form'!$B$11:$B$1000,'Enrollment Form'!$B66)>1,'Enrollment Form'!$H66<>\"\"),\"N\",\"Y\"))","v":""},{"$f":"IF($B59=\"N\",\"\",IF(LEN('Enrollment Form'!$Y66)=0,\"\",IF(LEN('Enrollment Form'!$Y66)<>5,\"N\",\"Y\")))","v":""},{"$f":"IF($B59=\"N\",\"\",IF(LEN('Enrollment Form'!$AD66=0),\"\",IF(LEN('Enrollment Form'!$AD66)<>5,\"N\",\"Y\")))","v":""},{"$f":"IF($B59=\"N\",\"\",IF(LEN('Enrollment Form'!$BS66=0),\"\",IF(LEN('Enrollment Form'!$BS66)<>5,\"N\",\"Y\")))","v":""},{"$f":"IF($B59=\"N\",\"\",IF(LEN('Enrollment Form'!$AE66)=0,\"\",IF(LEN('Enrollment Form'!$AE66)<>10,\"N\",\"Y\")))","v":""},{"$f":"IF($B59=\"N\",\"\",IF(LEN('Enrollment Form'!$AF66)=0,\"\",IF(LEN('Enrollment Form'!$AF66)<>10,\"N\",\"Y\")))","v":""},{"$f":"IF('Enrollment Form'!$O66<>\"Graded\",\"-\",IF(AND('Enrollment Form'!$O66=\"Graded\",'Enrollment Form'!$AR66<>\"\"),\"Y\",\"N\"))","v":"-"},{"$f":"IF($B59=\"N\",\"\",IF(OR('Enrollment Form'!$B66<>\"Subscriber\",'Enrollment Form'!$C66=\"ROC\"),\"-\",IF(AND('Enrollment Form'!$B66=\"Subscriber\",'Enrollment Form'!$C66=\"Enroll\",'Enrollment Form'!$AJ66<>\"\"),\"Y\",\"N\")))","v":""},{"$f":"IF($B59=\"N\",\"\",IF(OR('Enrollment Form'!$B66<>\"Subscriber\",'Enrollment Form'!$C66=\"ROC\"),\"-\",IF(AND('Enrollment Form'!$B66=\"Subscriber\",'Enrollment Form'!$C66=\"Enroll\",'Enrollment Form'!$AK66<>\"\"),\"Y\",\"N\")))","v":""},{"$f":"IF($B59=\"N\",\"\",IF(OR('Enrollment Form'!$B66<>\"Subscriber\",'Enrollment Form'!$C66=\"ROC\"),\"-\",IF(AND('Enrollment Form'!$B66=\"Subscriber\",'Enrollment Form'!$C66=\"Enroll\",'Enrollment Form'!$AL66<>\"\"),\"Y\",\"N\")))","v":""},{"$f":"IF($B59=\"N\",\"\",IF(OR('Enrollment Form'!$B66<>\"Subscriber\",'Enrollment Form'!$C66=\"ROC\"),\"-\",IF(AND('Enrollment Form'!$B66=\"Subscriber\",'Enrollment Form'!$C66=\"Enroll\",'Enrollment Form'!$AP66<>\"\"),\"Y\",\"N\")))","v":""},{"$f":"IF($B59=\"N\",\"\",IF(OR('Enrollment Form'!$B66<>\"Subscriber\",'Enrollment Form'!$C66=\"ROC\"),\"-\",IF(AND('Enrollment Form'!$B66=\"Subscriber\",'Enrollment Form'!$C66=\"Enroll\",'Enrollment Form'!$AQ66<>\"\"),\"Y\",\"N\")))","v":""},{"$f":"IF($B59=\"N\",\"\",IF(OR('Enrollment Form'!$B66<>\"Subscriber\",'Enrollment Form'!$C66=\"ROC\"),\"-\",IF(AND('Enrollment Form'!$B66=\"Subscriber\",'Enrollment Form'!$C66=\"Enroll\",'Enrollment Form'!$AS66<>\"\"),\"Y\",\"N\")))","v":""},{"$f":"IF($B59=\"N\",\"\",IF($Q59=\"-\",\"-\",IF(AND($Q59=\"Y\",'Enrollment Form'!$AS66=\"No\"),\"-\",IF(AND($Q59=\"Y\",'Enrollment Form'!$AS66=\"Yes\",'Enrollment Form'!$AT66<>\"\"),\"Y\",\"N\"))))","v":""},{"$f":"IF($B59=\"N\",\"\",IF(OR('Enrollment Form'!$B66<>\"Subscriber\",'Enrollment Form'!$C66=\"ROC\"),\"-\",IF(AND('Enrollment Form'!$B66=\"Subscriber\",'Enrollment Form'!$C66=\"Enroll\",'Enrollment Form'!$CV66<>\"\"),\"Y\",\"N\")))","v":""},{"$f":"IF($B59=\"N\",\"\",IF($S59=\"-\",\"-\",IF(AND($S59=\"Y\",'Enrollment Form'!$CV66=\"No\"),\"-\",IF(AND($S59=\"Y\",'Enrollment Form'!$CV66=\"Yes\",'Enrollment Form'!$CW66<>\"\"),\"Y\",\"N\"))))","v":""},{"$f":"IF(OR('Enrollment Form'!$AY66=\"Yes\",'Enrollment Form'!$AY66=\"\"),\"-\",IF(OR(AND('Enrollment Form'!$AY66=\"No\",ISERROR(FIND(\"HMO\",VLOOKUP('Enrollment Form'!G66,'Enrollment Form'!H$11:J$1000,3,FALSE),1))=FALSE,COUNTA('Enrollment Form'!$AZ66:$BC66)=4),AND('Enrollment Form'!$AY66=\"No\",ISERROR(FIND(\"HMO\",VLOOKUP('Enrollment Form'!G66,'Enrollment Form'!H$11:J$1000,3,FALSE),1))=FALSE,COUNTA('Enrollment Form'!$BT66:$BW66)=4)),\"Y\",\"N\"))","v":"-"},{"$f":"IF($B59=\"N\",\"\",IF('Enrollment Form'!$B66=\"Subscriber\",\"-\",IF(COUNTA('Enrollment Form'!$BL66,'Enrollment Form'!$BN66)=2,\"Y\",\"N\")))","v":""},{"$f":"IF($B59=\"N\",\"\",IF(OR('Enrollment Form'!$AX66=\"\",'Enrollment Form'!$AX66=\"No\"),\"-\",IF(AND('Enrollment Form'!$AX66=\"Yes\",COUNTA('Enrollment Form'!$CR66)=1),\"Y\",\"N\")))","v":""},{"$f":"IF(OR('Enrollment Form'!$CR66=\"\",'Enrollment Form'!$CR66=\"No\"),\"-\",IF(COUNTA('Enrollment Form'!$CT66:$CU66)=2,\"Y\",\"N\"))","v":"-"},{"$f":"IF($B59=\"N\",\"\",IF(COUNTIF('Enrollment Form'!$DG66:$DP66,\"Other\")=COUNTA('Enrollment Form'!$DK66,'Enrollment Form'!$DH66,'Enrollment Form'!$DN66,'Enrollment Form'!$DQ66),\"Y\",\"N\"))","v":""},{"$f":"IF($B59=\"N\",\"\",IF(OR('Enrollment Form'!B66<>\"Subscriber\",'Enrollment Form'!C66=\"ROC\",COUNTIF('Enrollment Form'!AV66:AW66,\"Yes\")>=1),\"-\",IF(AND('Enrollment Form'!C66=\"Enroll\",COUNTIF('Enrollment Form'!AV66:AW66,\"No\")=2,'Enrollment Form'!AX66=\"\"),\"N\",\"Y\")))","v":""},{"$f":"IF(OR(B59=\"N\",'Enrollment Form'!B66<>\"Subscriber\",'Enrollment Form'!C66=\"ROC\",'Enrollment Form'!O66<>\"Multiple of Salary\"),\"-\",IF(COUNTA('Enrollment Form'!T66:U66)<2,\"N\",\"Y\"))","v":"-"},{"$f":"IF(B59=\"N\",\"\",IF(OR('Enrollment Form'!C66=\"ROC\",'Enrollment Form'!B66<>\"Subscriber\",'Enrollment Form'!O66=\"Waive\",'Enrollment Form'!O66=\"\"),\"-\",IF('Enrollment Form'!P66=\"\",\"N\",\"Y\")))","v":""},{"$f":"IF($B59=\"N\",\"\",IF(AND('Enrollment Form'!$C66=\"ROC\",'Enrollment Form'!$DR66<>\"\"),\"Y\",IF(AND('Enrollment Form'!$C66=\"ROC\",'Enrollment Form'!$DR66=\"\"),\"N\",IF(AND('Enrollment Form'!$C66=\"Enroll\",'Enrollment Form'!$B66=\"Subscriber\",'Enrollment Form'!$CX66=\"No\",'Enrollment Form'!$DR66=\"\"),\"N\",IF(AND('Enrollment Form'!$C66=\"Enroll\",'Enrollment Form'!$B66=\"Subscriber\",'Enrollment Form'!$CX66=\"Yes\"),\"-\",\"Y\")))))","v":""},{"$f":"IF($B59=\"N\",\"\",IF(AND('Enrollment Form'!$C66=\"ROC\",'Enrollment Form'!$DS66<>\"\"),\"Y\",IF(AND('Enrollment Form'!$C66=\"ROC\",'Enrollment Form'!$DS66=\"\"),\"N\",IF(AND('Enrollment Form'!$C66=\"Enroll\",'Enrollment Form'!$B66=\"Subscriber\",'Enrollment Form'!$CX66=\"No\",'Enrollment Form'!$DS66=\"\"),\"N\",IF(AND('Enrollment Form'!$C66=\"Enroll\",'Enrollment Form'!$B66=\"Subscriber\",'Enrollment Form'!$CX66=\"Yes\"),\"-\",\"Y\")))))","v":""},{"$f":"IF('Enrollment Form'!AH66=\"\",\"\",IF(ISERROR(SEARCH(\".\",'Enrollment Form'!AH66,SEARCH(\"@\",'Enrollment Form'!AH66))),\"N\",\"Y\"))","v":""},{"$f":"IF(OR($B59=\"N\",'Enrollment Form'!$G66=\"\"),\"\",IF('Enrollment Form'!$B66<>\"Subscriber\",\"-\",IF(COUNTIF('Enrollment Form'!$AV66:$AW66,\"Yes\")=2,\"N\",\"Y\")))","v":""},{"$f":"IF(OR('Enrollment Form'!$CJ66=\"\",'Enrollment Form'!$CJ66=\"No\"),\"-\",IF(AND('Enrollment Form'!$CJ66=\"Yes\",'Enrollment Form'!$CK66=\"\"),\"N\",\"Y\"))","v":"-"},{"$f":"IF(OR('Enrollment Form'!$CL66=\"\",'Enrollment Form'!$CL66=\"No\"),\"-\",IF(AND('Enrollment Form'!$CL66=\"Yes\",'Enrollment Form'!$CM66=\"\"),\"N\",\"Y\"))","v":"-"},{"$f":"IF(OR('Enrollment Form'!$CN66=\"\",'Enrollment Form'!$CN66=\"No\"),\"-\",IF(AND('Enrollment Form'!$CN66=\"Yes\",'Enrollment Form'!$CO66=\"\"),\"N\",\"Y\"))","v":"-"},{"$f":"IF(OR('Enrollment Form'!$CN66=\"\",'Enrollment Form'!$CN66=\"No\"),\"-\",IF(AND('Enrollment Form'!$CN66=\"Yes\",'Enrollment Form'!$CP66=\"\"),\"N\",\"Y\"))","v":"-"},{"$f":"IF('Enrollment Form'!B66<>\"Subscriber\",\"-\",IF(AND('Enrollment Form'!B66=\"Subscriber\",'Enrollment Form'!C66=\"Enroll\",'Enrollment Form'!AA66=\"\"),\"N\",\"Y\"))","v":"-"},{"$f":"IF(OR('Enrollment Form'!B66=\"Subscriber\",'Enrollment Form'!B66=\"\"),\"-\",IF('Enrollment Form'!BP66=\"\",\"N\",\"Y\"))","v":"-"},{"$f":"IF('Enrollment Form'!B66<>\"Subscriber\",\"-\",IF(AND('Enrollment Form'!B66=\"Subscriber\",'Enrollment Form'!G66=\"\"),\"N\",\"Y\"))","v":"-"},{"$f":"IF('Enrollment Form'!A66=\"\",\"\",IF('Enrollment Form'!B66=\"Subscriber\",\"-\",IF(AND('Enrollment Form'!B66<>\"Subscriber\",'Enrollment Form'!G66='Enrollment Form'!H66),\"N\",\"Y\")))","v":""},0]
[67,{"$f":"IF('Enrollment Form'!$A67<>\"\",\"Y\",\"N\")","v":"N"},{"$f":"IF(AND('Enrollment Form'!$B67=\"\",'Enrollment Form'!$C67<>\"\"),\"N\",IF($B60=\"N\",\"\",\"Y\"))","v":""},{"$f":"IF(OR($B60=\"N\",'Enrollment Form'!G67=\"\"),\"\",IF('Enrollment Form'!$B67<>\"Subscriber\",\"\",IF('Enrollment Form'!$G67='Enrollment Form'!$H67,\"Y\",\"N\")))","v":""},{"$f":"IF($B60=\"N\",\"\",IF(AND(COUNTIFS('Enrollment Form'!$H$11:$H$1000,'Enrollment Form'!$H67,'Enrollment Form'!$B$11:$B$1000,'Enrollment Form'!$B67)>1,'Enrollment Form'!$H67<>\"\"),\"N\",\"Y\"))","v":""},{"$f":"IF($B60=\"N\",\"\",IF(LEN('Enrollment Form'!$Y67)=0,\"\",IF(LEN('Enrollment Form'!$Y67)<>5,\"N\",\"Y\")))","v":""},{"$f":"IF($B60=\"N\",\"\",IF(LEN('Enrollment Form'!$AD67=0),\"\",IF(LEN('Enrollment Form'!$AD67)<>5,\"N\",\"Y\")))","v":""},{"$f":"IF($B60=\"N\",\"\",IF(LEN('Enrollment Form'!$BS67=0),\"\",IF(LEN('Enrollment Form'!$BS67)<>5,\"N\",\"Y\")))","v":""},{"$f":"IF($B60=\"N\",\"\",IF(LEN('Enrollment Form'!$AE67)=0,\"\",IF(LEN('Enrollment Form'!$AE67)<>10,\"N\",\"Y\")))","v":""},{"$f":"IF($B60=\"N\",\"\",IF(LEN('Enrollment Form'!$AF67)=0,\"\",IF(LEN('Enrollment Form'!$AF67)<>10,\"N\",\"Y\")))","v":""},{"$f":"IF('Enrollment Form'!$O67<>\"Graded\",\"-\",IF(AND('Enrollment Form'!$O67=\"Graded\",'Enrollment Form'!$AR67<>\"\"),\"Y\",\"N\"))","v":"-"},{"$f":"IF($B60=\"N\",\"\",IF(OR('Enrollment Form'!$B67<>\"Subscriber\",'Enrollment Form'!$C67=\"ROC\"),\"-\",IF(AND('Enrollment Form'!$B67=\"Subscriber\",'Enrollment Form'!$C67=\"Enroll\",'Enrollment Form'!$AJ67<>\"\"),\"Y\",\"N\")))","v":""},{"$f":"IF($B60=\"N\",\"\",IF(OR('Enrollment Form'!$B67<>\"Subscriber\",'Enrollment Form'!$C67=\"ROC\"),\"-\",IF(AND('Enrollment Form'!$B67=\"Subscriber\",'Enrollment Form'!$C67=\"Enroll\",'Enrollment Form'!$AK67<>\"\"),\"Y\",\"N\")))","v":""},{"$f":"IF($B60=\"N\",\"\",IF(OR('Enrollment Form'!$B67<>\"Subscriber\",'Enrollment Form'!$C67=\"ROC\"),\"-\",IF(AND('Enrollment Form'!$B67=\"Subscriber\",'Enrollment Form'!$C67=\"Enroll\",'Enrollment Form'!$AL67<>\"\"),\"Y\",\"N\")))","v":""},{"$f":"IF($B60=\"N\",\"\",IF(OR('Enrollment Form'!$B67<>\"Subscriber\",'Enrollment Form'!$C67=\"ROC\"),\"-\",IF(AND('Enrollment Form'!$B67=\"Subscriber\",'Enrollment Form'!$C67=\"Enroll\",'Enrollment Form'!$AP67<>\"\"),\"Y\",\"N\")))","v":""},{"$f":"IF($B60=\"N\",\"\",IF(OR('Enrollment Form'!$B67<>\"Subscriber\",'Enrollment Form'!$C67=\"ROC\"),\"-\",IF(AND('Enrollment Form'!$B67=\"Subscriber\",'Enrollment Form'!$C67=\"Enroll\",'Enrollment Form'!$AQ67<>\"\"),\"Y\",\"N\")))","v":""},{"$f":"IF($B60=\"N\",\"\",IF(OR('Enrollment Form'!$B67<>\"Subscriber\",'Enrollment Form'!$C67=\"ROC\"),\"-\",IF(AND('Enrollment Form'!$B67=\"Subscriber\",'Enrollment Form'!$C67=\"Enroll\",'Enrollment Form'!$AS67<>\"\"),\"Y\",\"N\")))","v":""},{"$f":"IF($B60=\"N\",\"\",IF($Q60=\"-\",\"-\",IF(AND($Q60=\"Y\",'Enrollment Form'!$AS67=\"No\"),\"-\",IF(AND($Q60=\"Y\",'Enrollment Form'!$AS67=\"Yes\",'Enrollment Form'!$AT67<>\"\"),\"Y\",\"N\"))))","v":""},{"$f":"IF($B60=\"N\",\"\",IF(OR('Enrollment Form'!$B67<>\"Subscriber\",'Enrollment Form'!$C67=\"ROC\"),\"-\",IF(AND('Enrollment Form'!$B67=\"Subscriber\",'Enrollment Form'!$C67=\"Enroll\",'Enrollment Form'!$CV67<>\"\"),\"Y\",\"N\")))","v":""},{"$f":"IF($B60=\"N\",\"\",IF($S60=\"-\",\"-\",IF(AND($S60=\"Y\",'Enrollment Form'!$CV67=\"No\"),\"-\",IF(AND($S60=\"Y\",'Enrollment Form'!$CV67=\"Yes\",'Enrollment Form'!$CW67<>\"\"),\"Y\",\"N\"))))","v":""},{"$f":"IF(OR('Enrollment Form'!$AY67=\"Yes\",'Enrollment Form'!$AY67=\"\"),\"-\",IF(OR(AND('Enrollment Form'!$AY67=\"No\",ISERROR(FIND(\"HMO\",VLOOKUP('Enrollment Form'!G67,'Enrollment Form'!H$11:J$1000,3,FALSE),1))=FALSE,COUNTA('Enrollment Form'!$AZ67:$BC67)=4),AND('Enrollment Form'!$AY67=\"No\",ISERROR(FIND(\"HMO\",VLOOKUP('Enrollment Form'!G67,'Enrollment Form'!H$11:J$1000,3,FALSE),1))=FALSE,COUNTA('Enrollment Form'!$BT67:$BW67)=4)),\"Y\",\"N\"))","v":"-"},{"$f":"IF($B60=\"N\",\"\",IF('Enrollment Form'!$B67=\"Subscriber\",\"-\",IF(COUNTA('Enrollment Form'!$BL67,'Enrollment Form'!$BN67)=2,\"Y\",\"N\")))","v":""},{"$f":"IF($B60=\"N\",\"\",IF(OR('Enrollment Form'!$AX67=\"\",'Enrollment Form'!$AX67=\"No\"),\"-\",IF(AND('Enrollment Form'!$AX67=\"Yes\",COUNTA('Enrollment Form'!$CR67)=1),\"Y\",\"N\")))","v":""},{"$f":"IF(OR('Enrollment Form'!$CR67=\"\",'Enrollment Form'!$CR67=\"No\"),\"-\",IF(COUNTA('Enrollment Form'!$CT67:$CU67)=2,\"Y\",\"N\"))","v":"-"},{"$f":"IF($B60=\"N\",\"\",IF(COUNTIF('Enrollment Form'!$DG67:$DP67,\"Other\")=COUNTA('Enrollment Form'!$DK67,'Enrollment Form'!$DH67,'Enrollment Form'!$DN67,'Enrollment Form'!$DQ67),\"Y\",\"N\"))","v":""},{"$f":"IF($B60=\"N\",\"\",IF(OR('Enrollment Form'!B67<>\"Subscriber\",'Enrollment Form'!C67=\"ROC\",COUNTIF('Enrollment Form'!AV67:AW67,\"Yes\")>=1),\"-\",IF(AND('Enrollment Form'!C67=\"Enroll\",COUNTIF('Enrollment Form'!AV67:AW67,\"No\")=2,'Enrollment Form'!AX67=\"\"),\"N\",\"Y\")))","v":""},{"$f":"IF(OR(B60=\"N\",'Enrollment Form'!B67<>\"Subscriber\",'Enrollment Form'!C67=\"ROC\",'Enrollment Form'!O67<>\"Multiple of Salary\"),\"-\",IF(COUNTA('Enrollment Form'!T67:U67)<2,\"N\",\"Y\"))","v":"-"},{"$f":"IF(B60=\"N\",\"\",IF(OR('Enrollment Form'!C67=\"ROC\",'Enrollment Form'!B67<>\"Subscriber\",'Enrollment Form'!O67=\"Waive\",'Enrollment Form'!O67=\"\"),\"-\",IF('Enrollment Form'!P67=\"\",\"N\",\"Y\")))","v":""},{"$f":"IF($B60=\"N\",\"\",IF(AND('Enrollment Form'!$C67=\"ROC\",'Enrollment Form'!$DR67<>\"\"),\"Y\",IF(AND('Enrollment Form'!$C67=\"ROC\",'Enrollment Form'!$DR67=\"\"),\"N\",IF(AND('Enrollment Form'!$C67=\"Enroll\",'Enrollment Form'!$B67=\"Subscriber\",'Enrollment Form'!$CX67=\"No\",'Enrollment Form'!$DR67=\"\"),\"N\",IF(AND('Enrollment Form'!$C67=\"Enroll\",'Enrollment Form'!$B67=\"Subscriber\",'Enrollment Form'!$CX67=\"Yes\"),\"-\",\"Y\")))))","v":""},{"$f":"IF($B60=\"N\",\"\",IF(AND('Enrollment Form'!$C67=\"ROC\",'Enrollment Form'!$DS67<>\"\"),\"Y\",IF(AND('Enrollment Form'!$C67=\"ROC\",'Enrollment Form'!$DS67=\"\"),\"N\",IF(AND('Enrollment Form'!$C67=\"Enroll\",'Enrollment Form'!$B67=\"Subscriber\",'Enrollment Form'!$CX67=\"No\",'Enrollment Form'!$DS67=\"\"),\"N\",IF(AND('Enrollment Form'!$C67=\"Enroll\",'Enrollment Form'!$B67=\"Subscriber\",'Enrollment Form'!$CX67=\"Yes\"),\"-\",\"Y\")))))","v":""},{"$f":"IF('Enrollment Form'!AH67=\"\",\"\",IF(ISERROR(SEARCH(\".\",'Enrollment Form'!AH67,SEARCH(\"@\",'Enrollment Form'!AH67))),\"N\",\"Y\"))","v":""},{"$f":"IF(OR($B60=\"N\",'Enrollment Form'!$G67=\"\"),\"\",IF('Enrollment Form'!$B67<>\"Subscriber\",\"-\",IF(COUNTIF('Enrollment Form'!$AV67:$AW67,\"Yes\")=2,\"N\",\"Y\")))","v":""},{"$f":"IF(OR('Enrollment Form'!$CJ67=\"\",'Enrollment Form'!$CJ67=\"No\"),\"-\",IF(AND('Enrollment Form'!$CJ67=\"Yes\",'Enrollment Form'!$CK67=\"\"),\"N\",\"Y\"))","v":"-"},{"$f":"IF(OR('Enrollment Form'!$CL67=\"\",'Enrollment Form'!$CL67=\"No\"),\"-\",IF(AND('Enrollment Form'!$CL67=\"Yes\",'Enrollment Form'!$CM67=\"\"),\"N\",\"Y\"))","v":"-"},{"$f":"IF(OR('Enrollment Form'!$CN67=\"\",'Enrollment Form'!$CN67=\"No\"),\"-\",IF(AND('Enrollment Form'!$CN67=\"Yes\",'Enrollment Form'!$CO67=\"\"),\"N\",\"Y\"))","v":"-"},{"$f":"IF(OR('Enrollment Form'!$CN67=\"\",'Enrollment Form'!$CN67=\"No\"),\"-\",IF(AND('Enrollment Form'!$CN67=\"Yes\",'Enrollment Form'!$CP67=\"\"),\"N\",\"Y\"))","v":"-"},{"$f":"IF('Enrollment Form'!B67<>\"Subscriber\",\"-\",IF(AND('Enrollment Form'!B67=\"Subscriber\",'Enrollment Form'!C67=\"Enroll\",'Enrollment Form'!AA67=\"\"),\"N\",\"Y\"))","v":"-"},{"$f":"IF(OR('Enrollment Form'!B67=\"Subscriber\",'Enrollment Form'!B67=\"\"),\"-\",IF('Enrollment Form'!BP67=\"\",\"N\",\"Y\"))","v":"-"},{"$f":"IF('Enrollment Form'!B67<>\"Subscriber\",\"-\",IF(AND('Enrollment Form'!B67=\"Subscriber\",'Enrollment Form'!G67=\"\"),\"N\",\"Y\"))","v":"-"},{"$f":"IF('Enrollment Form'!A67=\"\",\"\",IF('Enrollment Form'!B67=\"Subscriber\",\"-\",IF(AND('Enrollment Form'!B67<>\"Subscriber\",'Enrollment Form'!G67='Enrollment Form'!H67),\"N\",\"Y\")))","v":""},0]
[68,{"$f":"IF('Enrollment Form'!$A68<>\"\",\"Y\",\"N\")","v":"N"},{"$f":"IF(AND('Enrollment Form'!$B68=\"\",'Enrollment Form'!$C68<>\"\"),\"N\",IF($B61=\"N\",\"\",\"Y\"))","v":""},{"$f":"IF(OR($B61=\"N\",'Enrollment Form'!G68=\"\"),\"\",IF('Enrollment Form'!$B68<>\"Subscriber\",\"\",IF('Enrollment Form'!$G68='Enrollment Form'!$H68,\"Y\",\"N\")))","v":""},{"$f":"IF($B61=\"N\",\"\",IF(AND(COUNTIFS('Enrollment Form'!$H$11:$H$1000,'Enrollment Form'!$H68,'Enrollment Form'!$B$11:$B$1000,'Enrollment Form'!$B68)>1,'Enrollment Form'!$H68<>\"\"),\"N\",\"Y\"))","v":""},{"$f":"IF($B61=\"N\",\"\",IF(LEN('Enrollment Form'!$Y68)=0,\"\",IF(LEN('Enrollment Form'!$Y68)<>5,\"N\",\"Y\")))","v":""},{"$f":"IF($B61=\"N\",\"\",IF(LEN('Enrollment Form'!$AD68=0),\"\",IF(LEN('Enrollment Form'!$AD68)<>5,\"N\",\"Y\")))","v":""},{"$f":"IF($B61=\"N\",\"\",IF(LEN('Enrollment Form'!$BS68=0),\"\",IF(LEN('Enrollment Form'!$BS68)<>5,\"N\",\"Y\")))","v":""},{"$f":"IF($B61=\"N\",\"\",IF(LEN('Enrollment Form'!$AE68)=0,\"\",IF(LEN('Enrollment Form'!$AE68)<>10,\"N\",\"Y\")))","v":""},{"$f":"IF($B61=\"N\",\"\",IF(LEN('Enrollment Form'!$AF68)=0,\"\",IF(LEN('Enrollment Form'!$AF68)<>10,\"N\",\"Y\")))","v":""},{"$f":"IF('Enrollment Form'!$O68<>\"Graded\",\"-\",IF(AND('Enrollment Form'!$O68=\"Graded\",'Enrollment Form'!$AR68<>\"\"),\"Y\",\"N\"))","v":"-"},{"$f":"IF($B61=\"N\",\"\",IF(OR('Enrollment Form'!$B68<>\"Subscriber\",'Enrollment Form'!$C68=\"ROC\"),\"-\",IF(AND('Enrollment Form'!$B68=\"Subscriber\",'Enrollment Form'!$C68=\"Enroll\",'Enrollment Form'!$AJ68<>\"\"),\"Y\",\"N\")))","v":""},{"$f":"IF($B61=\"N\",\"\",IF(OR('Enrollment Form'!$B68<>\"Subscriber\",'Enrollment Form'!$C68=\"ROC\"),\"-\",IF(AND('Enrollment Form'!$B68=\"Subscriber\",'Enrollment Form'!$C68=\"Enroll\",'Enrollment Form'!$AK68<>\"\"),\"Y\",\"N\")))","v":""},{"$f":"IF($B61=\"N\",\"\",IF(OR('Enrollment Form'!$B68<>\"Subscriber\",'Enrollment Form'!$C68=\"ROC\"),\"-\",IF(AND('Enrollment Form'!$B68=\"Subscriber\",'Enrollment Form'!$C68=\"Enroll\",'Enrollment Form'!$AL68<>\"\"),\"Y\",\"N\")))","v":""},{"$f":"IF($B61=\"N\",\"\",IF(OR('Enrollment Form'!$B68<>\"Subscriber\",'Enrollment Form'!$C68=\"ROC\"),\"-\",IF(AND('Enrollment Form'!$B68=\"Subscriber\",'Enrollment Form'!$C68=\"Enroll\",'Enrollment Form'!$AP68<>\"\"),\"Y\",\"N\")))","v":""},{"$f":"IF($B61=\"N\",\"\",IF(OR('Enrollment Form'!$B68<>\"Subscriber\",'Enrollment Form'!$C68=\"ROC\"),\"-\",IF(AND('Enrollment Form'!$B68=\"Subscriber\",'Enrollment Form'!$C68=\"Enroll\",'Enrollment Form'!$AQ68<>\"\"),\"Y\",\"N\")))","v":""},{"$f":"IF($B61=\"N\",\"\",IF(OR('Enrollment Form'!$B68<>\"Subscriber\",'Enrollment Form'!$C68=\"ROC\"),\"-\",IF(AND('Enrollment Form'!$B68=\"Subscriber\",'Enrollment Form'!$C68=\"Enroll\",'Enrollment Form'!$AS68<>\"\"),\"Y\",\"N\")))","v":""},{"$f":"IF($B61=\"N\",\"\",IF($Q61=\"-\",\"-\",IF(AND($Q61=\"Y\",'Enrollment Form'!$AS68=\"No\"),\"-\",IF(AND($Q61=\"Y\",'Enrollment Form'!$AS68=\"Yes\",'Enrollment Form'!$AT68<>\"\"),\"Y\",\"N\"))))","v":""},{"$f":"IF($B61=\"N\",\"\",IF(OR('Enrollment Form'!$B68<>\"Subscriber\",'Enrollment Form'!$C68=\"ROC\"),\"-\",IF(AND('Enrollment Form'!$B68=\"Subscriber\",'Enrollment Form'!$C68=\"Enroll\",'Enrollment Form'!$CV68<>\"\"),\"Y\",\"N\")))","v":""},{"$f":"IF($B61=\"N\",\"\",IF($S61=\"-\",\"-\",IF(AND($S61=\"Y\",'Enrollment Form'!$CV68=\"No\"),\"-\",IF(AND($S61=\"Y\",'Enrollment Form'!$CV68=\"Yes\",'Enrollment Form'!$CW68<>\"\"),\"Y\",\"N\"))))","v":""},{"$f":"IF(OR('Enrollment Form'!$AY68=\"Yes\",'Enrollment Form'!$AY68=\"\"),\"-\",IF(OR(AND('Enrollment Form'!$AY68=\"No\",ISERROR(FIND(\"HMO\",VLOOKUP('Enrollment Form'!G68,'Enrollment Form'!H$11:J$1000,3,FALSE),1))=FALSE,COUNTA('Enrollment Form'!$AZ68:$BC68)=4),AND('Enrollment Form'!$AY68=\"No\",ISERROR(FIND(\"HMO\",VLOOKUP('Enrollment Form'!G68,'Enrollment Form'!H$11:J$1000,3,FALSE),1))=FALSE,COUNTA('Enrollment Form'!$BT68:$BW68)=4)),\"Y\",\"N\"))","v":"-"},{"$f":"IF($B61=\"N\",\"\",IF('Enrollment Form'!$B68=\"Subscriber\",\"-\",IF(COUNTA('Enrollment Form'!$BL68,'Enrollment Form'!$BN68)=2,\"Y\",\"N\")))","v":""},{"$f":"IF($B61=\"N\",\"\",IF(OR('Enrollment Form'!$AX68=\"\",'Enrollment Form'!$AX68=\"No\"),\"-\",IF(AND('Enrollment Form'!$AX68=\"Yes\",COUNTA('Enrollment Form'!$CR68)=1),\"Y\",\"N\")))","v":""},{"$f":"IF(OR('Enrollment Form'!$CR68=\"\",'Enrollment Form'!$CR68=\"No\"),\"-\",IF(COUNTA('Enrollment Form'!$CT68:$CU68)=2,\"Y\",\"N\"))","v":"-"},{"$f":"IF($B61=\"N\",\"\",IF(COUNTIF('Enrollment Form'!$DG68:$DP68,\"Other\")=COUNTA('Enrollment Form'!$DK68,'Enrollment Form'!$DH68,'Enrollment Form'!$DN68,'Enrollment Form'!$DQ68),\"Y\",\"N\"))","v":""},{"$f":"IF($B61=\"N\",\"\",IF(OR('Enrollment Form'!B68<>\"Subscriber\",'Enrollment Form'!C68=\"ROC\",COUNTIF('Enrollment Form'!AV68:AW68,\"Yes\")>=1),\"-\",IF(AND('Enrollment Form'!C68=\"Enroll\",COUNTIF('Enrollment Form'!AV68:AW68,\"No\")=2,'Enrollment Form'!AX68=\"\"),\"N\",\"Y\")))","v":""},{"$f":"IF(OR(B61=\"N\",'Enrollment Form'!B68<>\"Subscriber\",'Enrollment Form'!C68=\"ROC\",'Enrollment Form'!O68<>\"Multiple of Salary\"),\"-\",IF(COUNTA('Enrollment Form'!T68:U68)<2,\"N\",\"Y\"))","v":"-"},{"$f":"IF(B61=\"N\",\"\",IF(OR('Enrollment Form'!C68=\"ROC\",'Enrollment Form'!B68<>\"Subscriber\",'Enrollment Form'!O68=\"Waive\",'Enrollment Form'!O68=\"\"),\"-\",IF('Enrollment Form'!P68=\"\",\"N\",\"Y\")))","v":""},{"$f":"IF($B61=\"N\",\"\",IF(AND('Enrollment Form'!$C68=\"ROC\",'Enrollment Form'!$DR68<>\"\"),\"Y\",IF(AND('Enrollment Form'!$C68=\"ROC\",'Enrollment Form'!$DR68=\"\"),\"N\",IF(AND('Enrollment Form'!$C68=\"Enroll\",'Enrollment Form'!$B68=\"Subscriber\",'Enrollment Form'!$CX68=\"No\",'Enrollment Form'!$DR68=\"\"),\"N\",IF(AND('Enrollment Form'!$C68=\"Enroll\",'Enrollment Form'!$B68=\"Subscriber\",'Enrollment Form'!$CX68=\"Yes\"),\"-\",\"Y\")))))","v":""},{"$f":"IF($B61=\"N\",\"\",IF(AND('Enrollment Form'!$C68=\"ROC\",'Enrollment Form'!$DS68<>\"\"),\"Y\",IF(AND('Enrollment Form'!$C68=\"ROC\",'Enrollment Form'!$DS68=\"\"),\"N\",IF(AND('Enrollment Form'!$C68=\"Enroll\",'Enrollment Form'!$B68=\"Subscriber\",'Enrollment Form'!$CX68=\"No\",'Enrollment Form'!$DS68=\"\"),\"N\",IF(AND('Enrollment Form'!$C68=\"Enroll\",'Enrollment Form'!$B68=\"Subscriber\",'Enrollment Form'!$CX68=\"Yes\"),\"-\",\"Y\")))))","v":""},{"$f":"IF('Enrollment Form'!AH68=\"\",\"\",IF(ISERROR(SEARCH(\".\",'Enrollment Form'!AH68,SEARCH(\"@\",'Enrollment Form'!AH68))),\"N\",\"Y\"))","v":""},{"$f":"IF(OR($B61=\"N\",'Enrollment Form'!$G68=\"\"),\"\",IF('Enrollment Form'!$B68<>\"Subscriber\",\"-\",IF(COUNTIF('Enrollment Form'!$AV68:$AW68,\"Yes\")=2,\"N\",\"Y\")))","v":""},{"$f":"IF(OR('Enrollment Form'!$CJ68=\"\",'Enrollment Form'!$CJ68=\"No\"),\"-\",IF(AND('Enrollment Form'!$CJ68=\"Yes\",'Enrollment Form'!$CK68=\"\"),\"N\",\"Y\"))","v":"-"},{"$f":"IF(OR('Enrollment Form'!$CL68=\"\",'Enrollment Form'!$CL68=\"No\"),\"-\",IF(AND('Enrollment Form'!$CL68=\"Yes\",'Enrollment Form'!$CM68=\"\"),\"N\",\"Y\"))","v":"-"},{"$f":"IF(OR('Enrollment Form'!$CN68=\"\",'Enrollment Form'!$CN68=\"No\"),\"-\",IF(AND('Enrollment Form'!$CN68=\"Yes\",'Enrollment Form'!$CO68=\"\"),\"N\",\"Y\"))","v":"-"},{"$f":"IF(OR('Enrollment Form'!$CN68=\"\",'Enrollment Form'!$CN68=\"No\"),\"-\",IF(AND('Enrollment Form'!$CN68=\"Yes\",'Enrollment Form'!$CP68=\"\"),\"N\",\"Y\"))","v":"-"},{"$f":"IF('Enrollment Form'!B68<>\"Subscriber\",\"-\",IF(AND('Enrollment Form'!B68=\"Subscriber\",'Enrollment Form'!C68=\"Enroll\",'Enrollment Form'!AA68=\"\"),\"N\",\"Y\"))","v":"-"},{"$f":"IF(OR('Enrollment Form'!B68=\"Subscriber\",'Enrollment Form'!B68=\"\"),\"-\",IF('Enrollment Form'!BP68=\"\",\"N\",\"Y\"))","v":"-"},{"$f":"IF('Enrollment Form'!B68<>\"Subscriber\",\"-\",IF(AND('Enrollment Form'!B68=\"Subscriber\",'Enrollment Form'!G68=\"\"),\"N\",\"Y\"))","v":"-"},{"$f":"IF('Enrollment Form'!A68=\"\",\"\",IF('Enrollment Form'!B68=\"Subscriber\",\"-\",IF(AND('Enrollment Form'!B68<>\"Subscriber\",'Enrollment Form'!G68='Enrollment Form'!H68),\"N\",\"Y\")))","v":""},0]
[69,{"$f":"IF('Enrollment Form'!$A69<>\"\",\"Y\",\"N\")","v":"N"},{"$f":"IF(AND('Enrollment Form'!$B69=\"\",'Enrollment Form'!$C69<>\"\"),\"N\",IF($B62=\"N\",\"\",\"Y\"))","v":""},{"$f":"IF(OR($B62=\"N\",'Enrollment Form'!G69=\"\"),\"\",IF('Enrollment Form'!$B69<>\"Subscriber\",\"\",IF('Enrollment Form'!$G69='Enrollment Form'!$H69,\"Y\",\"N\")))","v":""},{"$f":"IF($B62=\"N\",\"\",IF(AND(COUNTIFS('Enrollment Form'!$H$11:$H$1000,'Enrollment Form'!$H69,'Enrollment Form'!$B$11:$B$1000,'Enrollment Form'!$B69)>1,'Enrollment Form'!$H69<>\"\"),\"N\",\"Y\"))","v":""},{"$f":"IF($B62=\"N\",\"\",IF(LEN('Enrollment Form'!$Y69)=0,\"\",IF(LEN('Enrollment Form'!$Y69)<>5,\"N\",\"Y\")))","v":""},{"$f":"IF($B62=\"N\",\"\",IF(LEN('Enrollment Form'!$AD69=0),\"\",IF(LEN('Enrollment Form'!$AD69)<>5,\"N\",\"Y\")))","v":""},{"$f":"IF($B62=\"N\",\"\",IF(LEN('Enrollment Form'!$BS69=0),\"\",IF(LEN('Enrollment Form'!$BS69)<>5,\"N\",\"Y\")))","v":""},{"$f":"IF($B62=\"N\",\"\",IF(LEN('Enrollment Form'!$AE69)=0,\"\",IF(LEN('Enrollment Form'!$AE69)<>10,\"N\",\"Y\")))","v":""},{"$f":"IF($B62=\"N\",\"\",IF(LEN('Enrollment Form'!$AF69)=0,\"\",IF(LEN('Enrollment Form'!$AF69)<>10,\"N\",\"Y\")))","v":""},{"$f":"IF('Enrollment Form'!$O69<>\"Graded\",\"-\",IF(AND('Enrollment Form'!$O69=\"Graded\",'Enrollment Form'!$AR69<>\"\"),\"Y\",\"N\"))","v":"-"},{"$f":"IF($B62=\"N\",\"\",IF(OR('Enrollment Form'!$B69<>\"Subscriber\",'Enrollment Form'!$C69=\"ROC\"),\"-\",IF(AND('Enrollment Form'!$B69=\"Subscriber\",'Enrollment Form'!$C69=\"Enroll\",'Enrollment Form'!$AJ69<>\"\"),\"Y\",\"N\")))","v":""},{"$f":"IF($B62=\"N\",\"\",IF(OR('Enrollment Form'!$B69<>\"Subscriber\",'Enrollment Form'!$C69=\"ROC\"),\"-\",IF(AND('Enrollment Form'!$B69=\"Subscriber\",'Enrollment Form'!$C69=\"Enroll\",'Enrollment Form'!$AK69<>\"\"),\"Y\",\"N\")))","v":""},{"$f":"IF($B62=\"N\",\"\",IF(OR('Enrollment Form'!$B69<>\"Subscriber\",'Enrollment Form'!$C69=\"ROC\"),\"-\",IF(AND('Enrollment Form'!$B69=\"Subscriber\",'Enrollment Form'!$C69=\"Enroll\",'Enrollment Form'!$AL69<>\"\"),\"Y\",\"N\")))","v":""},{"$f":"IF($B62=\"N\",\"\",IF(OR('Enrollment Form'!$B69<>\"Subscriber\",'Enrollment Form'!$C69=\"ROC\"),\"-\",IF(AND('Enrollment Form'!$B69=\"Subscriber\",'Enrollment Form'!$C69=\"Enroll\",'Enrollment Form'!$AP69<>\"\"),\"Y\",\"N\")))","v":""},{"$f":"IF($B62=\"N\",\"\",IF(OR('Enrollment Form'!$B69<>\"Subscriber\",'Enrollment Form'!$C69=\"ROC\"),\"-\",IF(AND('Enrollment Form'!$B69=\"Subscriber\",'Enrollment Form'!$C69=\"Enroll\",'Enrollment Form'!$AQ69<>\"\"),\"Y\",\"N\")))","v":""},{"$f":"IF($B62=\"N\",\"\",IF(OR('Enrollment Form'!$B69<>\"Subscriber\",'Enrollment Form'!$C69=\"ROC\"),\"-\",IF(AND('Enrollment Form'!$B69=\"Subscriber\",'Enrollment Form'!$C69=\"Enroll\",'Enrollment Form'!$AS69<>\"\"),\"Y\",\"N\")))","v":""},{"$f":"IF($B62=\"N\",\"\",IF($Q62=\"-\",\"-\",IF(AND($Q62=\"Y\",'Enrollment Form'!$AS69=\"No\"),\"-\",IF(AND($Q62=\"Y\",'Enrollment Form'!$AS69=\"Yes\",'Enrollment Form'!$AT69<>\"\"),\"Y\",\"N\"))))","v":""},{"$f":"IF($B62=\"N\",\"\",IF(OR('Enrollment Form'!$B69<>\"Subscriber\",'Enrollment Form'!$C69=\"ROC\"),\"-\",IF(AND('Enrollment Form'!$B69=\"Subscriber\",'Enrollment Form'!$C69=\"Enroll\",'Enrollment Form'!$CV69<>\"\"),\"Y\",\"N\")))","v":""},{"$f":"IF($B62=\"N\",\"\",IF($S62=\"-\",\"-\",IF(AND($S62=\"Y\",'Enrollment Form'!$CV69=\"No\"),\"-\",IF(AND($S62=\"Y\",'Enrollment Form'!$CV69=\"Yes\",'Enrollment Form'!$CW69<>\"\"),\"Y\",\"N\"))))","v":""},{"$f":"IF(OR('Enrollment Form'!$AY69=\"Yes\",'Enrollment Form'!$AY69=\"\"),\"-\",IF(OR(AND('Enrollment Form'!$AY69=\"No\",ISERROR(FIND(\"HMO\",VLOOKUP('Enrollment Form'!G69,'Enrollment Form'!H$11:J$1000,3,FALSE),1))=FALSE,COUNTA('Enrollment Form'!$AZ69:$BC69)=4),AND('Enrollment Form'!$AY69=\"No\",ISERROR(FIND(\"HMO\",VLOOKUP('Enrollment Form'!G69,'Enrollment Form'!H$11:J$1000,3,FALSE),1))=FALSE,COUNTA('Enrollment Form'!$BT69:$BW69)=4)),\"Y\",\"N\"))","v":"-"},{"$f":"IF($B62=\"N\",\"\",IF('Enrollment Form'!$B69=\"Subscriber\",\"-\",IF(COUNTA('Enrollment Form'!$BL69,'Enrollment Form'!$BN69)=2,\"Y\",\"N\")))","v":""},{"$f":"IF($B62=\"N\",\"\",IF(OR('Enrollment Form'!$AX69=\"\",'Enrollment Form'!$AX69=\"No\"),\"-\",IF(AND('Enrollment Form'!$AX69=\"Yes\",COUNTA('Enrollment Form'!$CR69)=1),\"Y\",\"N\")))","v":""},{"$f":"IF(OR('Enrollment Form'!$CR69=\"\",'Enrollment Form'!$CR69=\"No\"),\"-\",IF(COUNTA('Enrollment Form'!$CT69:$CU69)=2,\"Y\",\"N\"))","v":"-"},{"$f":"IF($B62=\"N\",\"\",IF(COUNTIF('Enrollment Form'!$DG69:$DP69,\"Other\")=COUNTA('Enrollment Form'!$DK69,'Enrollment Form'!$DH69,'Enrollment Form'!$DN69,'Enrollment Form'!$DQ69),\"Y\",\"N\"))","v":""},{"$f":"IF($B62=\"N\",\"\",IF(OR('Enrollment Form'!B69<>\"Subscriber\",'Enrollment Form'!C69=\"ROC\",COUNTIF('Enrollment Form'!AV69:AW69,\"Yes\")>=1),\"-\",IF(AND('Enrollment Form'!C69=\"Enroll\",COUNTIF('Enrollment Form'!AV69:AW69,\"No\")=2,'Enrollment Form'!AX69=\"\"),\"N\",\"Y\")))","v":""},{"$f":"IF(OR(B62=\"N\",'Enrollment Form'!B69<>\"Subscriber\",'Enrollment Form'!C69=\"ROC\",'Enrollment Form'!O69<>\"Multiple of Salary\"),\"-\",IF(COUNTA('Enrollment Form'!T69:U69)<2,\"N\",\"Y\"))","v":"-"},{"$f":"IF(B62=\"N\",\"\",IF(OR('Enrollment Form'!C69=\"ROC\",'Enrollment Form'!B69<>\"Subscriber\",'Enrollment Form'!O69=\"Waive\",'Enrollment Form'!O69=\"\"),\"-\",IF('Enrollment Form'!P69=\"\",\"N\",\"Y\")))","v":""},{"$f":"IF($B62=\"N\",\"\",IF(AND('Enrollment Form'!$C69=\"ROC\",'Enrollment Form'!$DR69<>\"\"),\"Y\",IF(AND('Enrollment Form'!$C69=\"ROC\",'Enrollment Form'!$DR69=\"\"),\"N\",IF(AND('Enrollment Form'!$C69=\"Enroll\",'Enrollment Form'!$B69=\"Subscriber\",'Enrollment Form'!$CX69=\"No\",'Enrollment Form'!$DR69=\"\"),\"N\",IF(AND('Enrollment Form'!$C69=\"Enroll\",'Enrollment Form'!$B69=\"Subscriber\",'Enrollment Form'!$CX69=\"Yes\"),\"-\",\"Y\")))))","v":""},{"$f":"IF($B62=\"N\",\"\",IF(AND('Enrollment Form'!$C69=\"ROC\",'Enrollment Form'!$DS69<>\"\"),\"Y\",IF(AND('Enrollment Form'!$C69=\"ROC\",'Enrollment Form'!$DS69=\"\"),\"N\",IF(AND('Enrollment Form'!$C69=\"Enroll\",'Enrollment Form'!$B69=\"Subscriber\",'Enrollment Form'!$CX69=\"No\",'Enrollment Form'!$DS69=\"\"),\"N\",IF(AND('Enrollment Form'!$C69=\"Enroll\",'Enrollment Form'!$B69=\"Subscriber\",'Enrollment Form'!$CX69=\"Yes\"),\"-\",\"Y\")))))","v":""},{"$f":"IF('Enrollment Form'!AH69=\"\",\"\",IF(ISERROR(SEARCH(\".\",'Enrollment Form'!AH69,SEARCH(\"@\",'Enrollment Form'!AH69))),\"N\",\"Y\"))","v":""},{"$f":"IF(OR($B62=\"N\",'Enrollment Form'!$G69=\"\"),\"\",IF('Enrollment Form'!$B69<>\"Subscriber\",\"-\",IF(COUNTIF('Enrollment Form'!$AV69:$AW69,\"Yes\")=2,\"N\",\"Y\")))","v":""},{"$f":"IF(OR('Enrollment Form'!$CJ69=\"\",'Enrollment Form'!$CJ69=\"No\"),\"-\",IF(AND('Enrollment Form'!$CJ69=\"Yes\",'Enrollment Form'!$CK69=\"\"),\"N\",\"Y\"))","v":"-"},{"$f":"IF(OR('Enrollment Form'!$CL69=\"\",'Enrollment Form'!$CL69=\"No\"),\"-\",IF(AND('Enrollment Form'!$CL69=\"Yes\",'Enrollment Form'!$CM69=\"\"),\"N\",\"Y\"))","v":"-"},{"$f":"IF(OR('Enrollment Form'!$CN69=\"\",'Enrollment Form'!$CN69=\"No\"),\"-\",IF(AND('Enrollment Form'!$CN69=\"Yes\",'Enrollment Form'!$CO69=\"\"),\"N\",\"Y\"))","v":"-"},{"$f":"IF(OR('Enrollment Form'!$CN69=\"\",'Enrollment Form'!$CN69=\"No\"),\"-\",IF(AND('Enrollment Form'!$CN69=\"Yes\",'Enrollment Form'!$CP69=\"\"),\"N\",\"Y\"))","v":"-"},{"$f":"IF('Enrollment Form'!B69<>\"Subscriber\",\"-\",IF(AND('Enrollment Form'!B69=\"Subscriber\",'Enrollment Form'!C69=\"Enroll\",'Enrollment Form'!AA69=\"\"),\"N\",\"Y\"))","v":"-"},{"$f":"IF(OR('Enrollment Form'!B69=\"Subscriber\",'Enrollment Form'!B69=\"\"),\"-\",IF('Enrollment Form'!BP69=\"\",\"N\",\"Y\"))","v":"-"},{"$f":"IF('Enrollment Form'!B69<>\"Subscriber\",\"-\",IF(AND('Enrollment Form'!B69=\"Subscriber\",'Enrollment Form'!G69=\"\"),\"N\",\"Y\"))","v":"-"},{"$f":"IF('Enrollment Form'!A69=\"\",\"\",IF('Enrollment Form'!B69=\"Subscriber\",\"-\",IF(AND('Enrollment Form'!B69<>\"Subscriber\",'Enrollment Form'!G69='Enrollment Form'!H69),\"N\",\"Y\")))","v":""},0]
[70,{"$f":"IF('Enrollment Form'!$A70<>\"\",\"Y\",\"N\")","v":"N"},{"$f":"IF(AND('Enrollment Form'!$B70=\"\",'Enrollment Form'!$C70<>\"\"),\"N\",IF($B63=\"N\",\"\",\"Y\"))","v":""},{"$f":"IF(OR($B63=\"N\",'Enrollment Form'!G70=\"\"),\"\",IF('Enrollment Form'!$B70<>\"Subscriber\",\"\",IF('Enrollment Form'!$G70='Enrollment Form'!$H70,\"Y\",\"N\")))","v":""},{"$f":"IF($B63=\"N\",\"\",IF(AND(COUNTIFS('Enrollment Form'!$H$11:$H$1000,'Enrollment Form'!$H70,'Enrollment Form'!$B$11:$B$1000,'Enrollment Form'!$B70)>1,'Enrollment Form'!$H70<>\"\"),\"N\",\"Y\"))","v":""},{"$f":"IF($B63=\"N\",\"\",IF(LEN('Enrollment Form'!$Y70)=0,\"\",IF(LEN('Enrollment Form'!$Y70)<>5,\"N\",\"Y\")))","v":""},{"$f":"IF($B63=\"N\",\"\",IF(LEN('Enrollment Form'!$AD70=0),\"\",IF(LEN('Enrollment Form'!$AD70)<>5,\"N\",\"Y\")))","v":""},{"$f":"IF($B63=\"N\",\"\",IF(LEN('Enrollment Form'!$BS70=0),\"\",IF(LEN('Enrollment Form'!$BS70)<>5,\"N\",\"Y\")))","v":""},{"$f":"IF($B63=\"N\",\"\",IF(LEN('Enrollment Form'!$AE70)=0,\"\",IF(LEN('Enrollment Form'!$AE70)<>10,\"N\",\"Y\")))","v":""},{"$f":"IF($B63=\"N\",\"\",IF(LEN('Enrollment Form'!$AF70)=0,\"\",IF(LEN('Enrollment Form'!$AF70)<>10,\"N\",\"Y\")))","v":""},{"$f":"IF('Enrollment Form'!$O70<>\"Graded\",\"-\",IF(AND('Enrollment Form'!$O70=\"Graded\",'Enrollment Form'!$AR70<>\"\"),\"Y\",\"N\"))","v":"-"},{"$f":"IF($B63=\"N\",\"\",IF(OR('Enrollment Form'!$B70<>\"Subscriber\",'Enrollment Form'!$C70=\"ROC\"),\"-\",IF(AND('Enrollment Form'!$B70=\"Subscriber\",'Enrollment Form'!$C70=\"Enroll\",'Enrollment Form'!$AJ70<>\"\"),\"Y\",\"N\")))","v":""},{"$f":"IF($B63=\"N\",\"\",IF(OR('Enrollment Form'!$B70<>\"Subscriber\",'Enrollment Form'!$C70=\"ROC\"),\"-\",IF(AND('Enrollment Form'!$B70=\"Subscriber\",'Enrollment Form'!$C70=\"Enroll\",'Enrollment Form'!$AK70<>\"\"),\"Y\",\"N\")))","v":""},{"$f":"IF($B63=\"N\",\"\",IF(OR('Enrollment Form'!$B70<>\"Subscriber\",'Enrollment Form'!$C70=\"ROC\"),\"-\",IF(AND('Enrollment Form'!$B70=\"Subscriber\",'Enrollment Form'!$C70=\"Enroll\",'Enrollment Form'!$AL70<>\"\"),\"Y\",\"N\")))","v":""},{"$f":"IF($B63=\"N\",\"\",IF(OR('Enrollment Form'!$B70<>\"Subscriber\",'Enrollment Form'!$C70=\"ROC\"),\"-\",IF(AND('Enrollment Form'!$B70=\"Subscriber\",'Enrollment Form'!$C70=\"Enroll\",'Enrollment Form'!$AP70<>\"\"),\"Y\",\"N\")))","v":""},{"$f":"IF($B63=\"N\",\"\",IF(OR('Enrollment Form'!$B70<>\"Subscriber\",'Enrollment Form'!$C70=\"ROC\"),\"-\",IF(AND('Enrollment Form'!$B70=\"Subscriber\",'Enrollment Form'!$C70=\"Enroll\",'Enrollment Form'!$AQ70<>\"\"),\"Y\",\"N\")))","v":""},{"$f":"IF($B63=\"N\",\"\",IF(OR('Enrollment Form'!$B70<>\"Subscriber\",'Enrollment Form'!$C70=\"ROC\"),\"-\",IF(AND('Enrollment Form'!$B70=\"Subscriber\",'Enrollment Form'!$C70=\"Enroll\",'Enrollment Form'!$AS70<>\"\"),\"Y\",\"N\")))","v":""},{"$f":"IF($B63=\"N\",\"\",IF($Q63=\"-\",\"-\",IF(AND($Q63=\"Y\",'Enrollment Form'!$AS70=\"No\"),\"-\",IF(AND($Q63=\"Y\",'Enrollment Form'!$AS70=\"Yes\",'Enrollment Form'!$AT70<>\"\"),\"Y\",\"N\"))))","v":""},{"$f":"IF($B63=\"N\",\"\",IF(OR('Enrollment Form'!$B70<>\"Subscriber\",'Enrollment Form'!$C70=\"ROC\"),\"-\",IF(AND('Enrollment Form'!$B70=\"Subscriber\",'Enrollment Form'!$C70=\"Enroll\",'Enrollment Form'!$CV70<>\"\"),\"Y\",\"N\")))","v":""},{"$f":"IF($B63=\"N\",\"\",IF($S63=\"-\",\"-\",IF(AND($S63=\"Y\",'Enrollment Form'!$CV70=\"No\"),\"-\",IF(AND($S63=\"Y\",'Enrollment Form'!$CV70=\"Yes\",'Enrollment Form'!$CW70<>\"\"),\"Y\",\"N\"))))","v":""},{"$f":"IF(OR('Enrollment Form'!$AY70=\"Yes\",'Enrollment Form'!$AY70=\"\"),\"-\",IF(OR(AND('Enrollment Form'!$AY70=\"No\",ISERROR(FIND(\"HMO\",VLOOKUP('Enrollment Form'!G70,'Enrollment Form'!H$11:J$1000,3,FALSE),1))=FALSE,COUNTA('Enrollment Form'!$AZ70:$BC70)=4),AND('Enrollment Form'!$AY70=\"No\",ISERROR(FIND(\"HMO\",VLOOKUP('Enrollment Form'!G70,'Enrollment Form'!H$11:J$1000,3,FALSE),1))=FALSE,COUNTA('Enrollment Form'!$BT70:$BW70)=4)),\"Y\",\"N\"))","v":"-"},{"$f":"IF($B63=\"N\",\"\",IF('Enrollment Form'!$B70=\"Subscriber\",\"-\",IF(COUNTA('Enrollment Form'!$BL70,'Enrollment Form'!$BN70)=2,\"Y\",\"N\")))","v":""},{"$f":"IF($B63=\"N\",\"\",IF(OR('Enrollment Form'!$AX70=\"\",'Enrollment Form'!$AX70=\"No\"),\"-\",IF(AND('Enrollment Form'!$AX70=\"Yes\",COUNTA('Enrollment Form'!$CR70)=1),\"Y\",\"N\")))","v":""},{"$f":"IF(OR('Enrollment Form'!$CR70=\"\",'Enrollment Form'!$CR70=\"No\"),\"-\",IF(COUNTA('Enrollment Form'!$CT70:$CU70)=2,\"Y\",\"N\"))","v":"-"},{"$f":"IF($B63=\"N\",\"\",IF(COUNTIF('Enrollment Form'!$DG70:$DP70,\"Other\")=COUNTA('Enrollment Form'!$DK70,'Enrollment Form'!$DH70,'Enrollment Form'!$DN70,'Enrollment Form'!$DQ70),\"Y\",\"N\"))","v":""},{"$f":"IF($B63=\"N\",\"\",IF(OR('Enrollment Form'!B70<>\"Subscriber\",'Enrollment Form'!C70=\"ROC\",COUNTIF('Enrollment Form'!AV70:AW70,\"Yes\")>=1),\"-\",IF(AND('Enrollment Form'!C70=\"Enroll\",COUNTIF('Enrollment Form'!AV70:AW70,\"No\")=2,'Enrollment Form'!AX70=\"\"),\"N\",\"Y\")))","v":""},{"$f":"IF(OR(B63=\"N\",'Enrollment Form'!B70<>\"Subscriber\",'Enrollment Form'!C70=\"ROC\",'Enrollment Form'!O70<>\"Multiple of Salary\"),\"-\",IF(COUNTA('Enrollment Form'!T70:U70)<2,\"N\",\"Y\"))","v":"-"},{"$f":"IF(B63=\"N\",\"\",IF(OR('Enrollment Form'!C70=\"ROC\",'Enrollment Form'!B70<>\"Subscriber\",'Enrollment Form'!O70=\"Waive\",'Enrollment Form'!O70=\"\"),\"-\",IF('Enrollment Form'!P70=\"\",\"N\",\"Y\")))","v":""},{"$f":"IF($B63=\"N\",\"\",IF(AND('Enrollment Form'!$C70=\"ROC\",'Enrollment Form'!$DR70<>\"\"),\"Y\",IF(AND('Enrollment Form'!$C70=\"ROC\",'Enrollment Form'!$DR70=\"\"),\"N\",IF(AND('Enrollment Form'!$C70=\"Enroll\",'Enrollment Form'!$B70=\"Subscriber\",'Enrollment Form'!$CX70=\"No\",'Enrollment Form'!$DR70=\"\"),\"N\",IF(AND('Enrollment Form'!$C70=\"Enroll\",'Enrollment Form'!$B70=\"Subscriber\",'Enrollment Form'!$CX70=\"Yes\"),\"-\",\"Y\")))))","v":""},{"$f":"IF($B63=\"N\",\"\",IF(AND('Enrollment Form'!$C70=\"ROC\",'Enrollment Form'!$DS70<>\"\"),\"Y\",IF(AND('Enrollment Form'!$C70=\"ROC\",'Enrollment Form'!$DS70=\"\"),\"N\",IF(AND('Enrollment Form'!$C70=\"Enroll\",'Enrollment Form'!$B70=\"Subscriber\",'Enrollment Form'!$CX70=\"No\",'Enrollment Form'!$DS70=\"\"),\"N\",IF(AND('Enrollment Form'!$C70=\"Enroll\",'Enrollment Form'!$B70=\"Subscriber\",'Enrollment Form'!$CX70=\"Yes\"),\"-\",\"Y\")))))","v":""},{"$f":"IF('Enrollment Form'!AH70=\"\",\"\",IF(ISERROR(SEARCH(\".\",'Enrollment Form'!AH70,SEARCH(\"@\",'Enrollment Form'!AH70))),\"N\",\"Y\"))","v":""},{"$f":"IF(OR($B63=\"N\",'Enrollment Form'!$G70=\"\"),\"\",IF('Enrollment Form'!$B70<>\"Subscriber\",\"-\",IF(COUNTIF('Enrollment Form'!$AV70:$AW70,\"Yes\")=2,\"N\",\"Y\")))","v":""},{"$f":"IF(OR('Enrollment Form'!$CJ70=\"\",'Enrollment Form'!$CJ70=\"No\"),\"-\",IF(AND('Enrollment Form'!$CJ70=\"Yes\",'Enrollment Form'!$CK70=\"\"),\"N\",\"Y\"))","v":"-"},{"$f":"IF(OR('Enrollment Form'!$CL70=\"\",'Enrollment Form'!$CL70=\"No\"),\"-\",IF(AND('Enrollment Form'!$CL70=\"Yes\",'Enrollment Form'!$CM70=\"\"),\"N\",\"Y\"))","v":"-"},{"$f":"IF(OR('Enrollment Form'!$CN70=\"\",'Enrollment Form'!$CN70=\"No\"),\"-\",IF(AND('Enrollment Form'!$CN70=\"Yes\",'Enrollment Form'!$CO70=\"\"),\"N\",\"Y\"))","v":"-"},{"$f":"IF(OR('Enrollment Form'!$CN70=\"\",'Enrollment Form'!$CN70=\"No\"),\"-\",IF(AND('Enrollment Form'!$CN70=\"Yes\",'Enrollment Form'!$CP70=\"\"),\"N\",\"Y\"))","v":"-"},{"$f":"IF('Enrollment Form'!B70<>\"Subscriber\",\"-\",IF(AND('Enrollment Form'!B70=\"Subscriber\",'Enrollment Form'!C70=\"Enroll\",'Enrollment Form'!AA70=\"\"),\"N\",\"Y\"))","v":"-"},{"$f":"IF(OR('Enrollment Form'!B70=\"Subscriber\",'Enrollment Form'!B70=\"\"),\"-\",IF('Enrollment Form'!BP70=\"\",\"N\",\"Y\"))","v":"-"},{"$f":"IF('Enrollment Form'!B70<>\"Subscriber\",\"-\",IF(AND('Enrollment Form'!B70=\"Subscriber\",'Enrollment Form'!G70=\"\"),\"N\",\"Y\"))","v":"-"},{"$f":"IF('Enrollment Form'!A70=\"\",\"\",IF('Enrollment Form'!B70=\"Subscriber\",\"-\",IF(AND('Enrollment Form'!B70<>\"Subscriber\",'Enrollment Form'!G70='Enrollment Form'!H70),\"N\",\"Y\")))","v":""},0]
[71,{"$f":"IF('Enrollment Form'!$A71<>\"\",\"Y\",\"N\")","v":"N"},{"$f":"IF(AND('Enrollment Form'!$B71=\"\",'Enrollment Form'!$C71<>\"\"),\"N\",IF($B64=\"N\",\"\",\"Y\"))","v":""},{"$f":"IF(OR($B64=\"N\",'Enrollment Form'!G71=\"\"),\"\",IF('Enrollment Form'!$B71<>\"Subscriber\",\"\",IF('Enrollment Form'!$G71='Enrollment Form'!$H71,\"Y\",\"N\")))","v":""},{"$f":"IF($B64=\"N\",\"\",IF(AND(COUNTIFS('Enrollment Form'!$H$11:$H$1000,'Enrollment Form'!$H71,'Enrollment Form'!$B$11:$B$1000,'Enrollment Form'!$B71)>1,'Enrollment Form'!$H71<>\"\"),\"N\",\"Y\"))","v":""},{"$f":"IF($B64=\"N\",\"\",IF(LEN('Enrollment Form'!$Y71)=0,\"\",IF(LEN('Enrollment Form'!$Y71)<>5,\"N\",\"Y\")))","v":""},{"$f":"IF($B64=\"N\",\"\",IF(LEN('Enrollment Form'!$AD71=0),\"\",IF(LEN('Enrollment Form'!$AD71)<>5,\"N\",\"Y\")))","v":""},{"$f":"IF($B64=\"N\",\"\",IF(LEN('Enrollment Form'!$BS71=0),\"\",IF(LEN('Enrollment Form'!$BS71)<>5,\"N\",\"Y\")))","v":""},{"$f":"IF($B64=\"N\",\"\",IF(LEN('Enrollment Form'!$AE71)=0,\"\",IF(LEN('Enrollment Form'!$AE71)<>10,\"N\",\"Y\")))","v":""},{"$f":"IF($B64=\"N\",\"\",IF(LEN('Enrollment Form'!$AF71)=0,\"\",IF(LEN('Enrollment Form'!$AF71)<>10,\"N\",\"Y\")))","v":""},{"$f":"IF('Enrollment Form'!$O71<>\"Graded\",\"-\",IF(AND('Enrollment Form'!$O71=\"Graded\",'Enrollment Form'!$AR71<>\"\"),\"Y\",\"N\"))","v":"-"},{"$f":"IF($B64=\"N\",\"\",IF(OR('Enrollment Form'!$B71<>\"Subscriber\",'Enrollment Form'!$C71=\"ROC\"),\"-\",IF(AND('Enrollment Form'!$B71=\"Subscriber\",'Enrollment Form'!$C71=\"Enroll\",'Enrollment Form'!$AJ71<>\"\"),\"Y\",\"N\")))","v":""},{"$f":"IF($B64=\"N\",\"\",IF(OR('Enrollment Form'!$B71<>\"Subscriber\",'Enrollment Form'!$C71=\"ROC\"),\"-\",IF(AND('Enrollment Form'!$B71=\"Subscriber\",'Enrollment Form'!$C71=\"Enroll\",'Enrollment Form'!$AK71<>\"\"),\"Y\",\"N\")))","v":""},{"$f":"IF($B64=\"N\",\"\",IF(OR('Enrollment Form'!$B71<>\"Subscriber\",'Enrollment Form'!$C71=\"ROC\"),\"-\",IF(AND('Enrollment Form'!$B71=\"Subscriber\",'Enrollment Form'!$C71=\"Enroll\",'Enrollment Form'!$AL71<>\"\"),\"Y\",\"N\")))","v":""},{"$f":"IF($B64=\"N\",\"\",IF(OR('Enrollment Form'!$B71<>\"Subscriber\",'Enrollment Form'!$C71=\"ROC\"),\"-\",IF(AND('Enrollment Form'!$B71=\"Subscriber\",'Enrollment Form'!$C71=\"Enroll\",'Enrollment Form'!$AP71<>\"\"),\"Y\",\"N\")))","v":""},{"$f":"IF($B64=\"N\",\"\",IF(OR('Enrollment Form'!$B71<>\"Subscriber\",'Enrollment Form'!$C71=\"ROC\"),\"-\",IF(AND('Enrollment Form'!$B71=\"Subscriber\",'Enrollment Form'!$C71=\"Enroll\",'Enrollment Form'!$AQ71<>\"\"),\"Y\",\"N\")))","v":""},{"$f":"IF($B64=\"N\",\"\",IF(OR('Enrollment Form'!$B71<>\"Subscriber\",'Enrollment Form'!$C71=\"ROC\"),\"-\",IF(AND('Enrollment Form'!$B71=\"Subscriber\",'Enrollment Form'!$C71=\"Enroll\",'Enrollment Form'!$AS71<>\"\"),\"Y\",\"N\")))","v":""},{"$f":"IF($B64=\"N\",\"\",IF($Q64=\"-\",\"-\",IF(AND($Q64=\"Y\",'Enrollment Form'!$AS71=\"No\"),\"-\",IF(AND($Q64=\"Y\",'Enrollment Form'!$AS71=\"Yes\",'Enrollment Form'!$AT71<>\"\"),\"Y\",\"N\"))))","v":""},{"$f":"IF($B64=\"N\",\"\",IF(OR('Enrollment Form'!$B71<>\"Subscriber\",'Enrollment Form'!$C71=\"ROC\"),\"-\",IF(AND('Enrollment Form'!$B71=\"Subscriber\",'Enrollment Form'!$C71=\"Enroll\",'Enrollment Form'!$CV71<>\"\"),\"Y\",\"N\")))","v":""},{"$f":"IF($B64=\"N\",\"\",IF($S64=\"-\",\"-\",IF(AND($S64=\"Y\",'Enrollment Form'!$CV71=\"No\"),\"-\",IF(AND($S64=\"Y\",'Enrollment Form'!$CV71=\"Yes\",'Enrollment Form'!$CW71<>\"\"),\"Y\",\"N\"))))","v":""},{"$f":"IF(OR('Enrollment Form'!$AY71=\"Yes\",'Enrollment Form'!$AY71=\"\"),\"-\",IF(OR(AND('Enrollment Form'!$AY71=\"No\",ISERROR(FIND(\"HMO\",VLOOKUP('Enrollment Form'!G71,'Enrollment Form'!H$11:J$1000,3,FALSE),1))=FALSE,COUNTA('Enrollment Form'!$AZ71:$BC71)=4),AND('Enrollment Form'!$AY71=\"No\",ISERROR(FIND(\"HMO\",VLOOKUP('Enrollment Form'!G71,'Enrollment Form'!H$11:J$1000,3,FALSE),1))=FALSE,COUNTA('Enrollment Form'!$BT71:$BW71)=4)),\"Y\",\"N\"))","v":"-"},{"$f":"IF($B64=\"N\",\"\",IF('Enrollment Form'!$B71=\"Subscriber\",\"-\",IF(COUNTA('Enrollment Form'!$BL71,'Enrollment Form'!$BN71)=2,\"Y\",\"N\")))","v":""},{"$f":"IF($B64=\"N\",\"\",IF(OR('Enrollment Form'!$AX71=\"\",'Enrollment Form'!$AX71=\"No\"),\"-\",IF(AND('Enrollment Form'!$AX71=\"Yes\",COUNTA('Enrollment Form'!$CR71)=1),\"Y\",\"N\")))","v":""},{"$f":"IF(OR('Enrollment Form'!$CR71=\"\",'Enrollment Form'!$CR71=\"No\"),\"-\",IF(COUNTA('Enrollment Form'!$CT71:$CU71)=2,\"Y\",\"N\"))","v":"-"},{"$f":"IF($B64=\"N\",\"\",IF(COUNTIF('Enrollment Form'!$DG71:$DP71,\"Other\")=COUNTA('Enrollment Form'!$DK71,'Enrollment Form'!$DH71,'Enrollment Form'!$DN71,'Enrollment Form'!$DQ71),\"Y\",\"N\"))","v":""},{"$f":"IF($B64=\"N\",\"\",IF(OR('Enrollment Form'!B71<>\"Subscriber\",'Enrollment Form'!C71=\"ROC\",COUNTIF('Enrollment Form'!AV71:AW71,\"Yes\")>=1),\"-\",IF(AND('Enrollment Form'!C71=\"Enroll\",COUNTIF('Enrollment Form'!AV71:AW71,\"No\")=2,'Enrollment Form'!AX71=\"\"),\"N\",\"Y\")))","v":""},{"$f":"IF(OR(B64=\"N\",'Enrollment Form'!B71<>\"Subscriber\",'Enrollment Form'!C71=\"ROC\",'Enrollment Form'!O71<>\"Multiple of Salary\"),\"-\",IF(COUNTA('Enrollment Form'!T71:U71)<2,\"N\",\"Y\"))","v":"-"},{"$f":"IF(B64=\"N\",\"\",IF(OR('Enrollment Form'!C71=\"ROC\",'Enrollment Form'!B71<>\"Subscriber\",'Enrollment Form'!O71=\"Waive\",'Enrollment Form'!O71=\"\"),\"-\",IF('Enrollment Form'!P71=\"\",\"N\",\"Y\")))","v":""},{"$f":"IF($B64=\"N\",\"\",IF(AND('Enrollment Form'!$C71=\"ROC\",'Enrollment Form'!$DR71<>\"\"),\"Y\",IF(AND('Enrollment Form'!$C71=\"ROC\",'Enrollment Form'!$DR71=\"\"),\"N\",IF(AND('Enrollment Form'!$C71=\"Enroll\",'Enrollment Form'!$B71=\"Subscriber\",'Enrollment Form'!$CX71=\"No\",'Enrollment Form'!$DR71=\"\"),\"N\",IF(AND('Enrollment Form'!$C71=\"Enroll\",'Enrollment Form'!$B71=\"Subscriber\",'Enrollment Form'!$CX71=\"Yes\"),\"-\",\"Y\")))))","v":""},{"$f":"IF($B64=\"N\",\"\",IF(AND('Enrollment Form'!$C71=\"ROC\",'Enrollment Form'!$DS71<>\"\"),\"Y\",IF(AND('Enrollment Form'!$C71=\"ROC\",'Enrollment Form'!$DS71=\"\"),\"N\",IF(AND('Enrollment Form'!$C71=\"Enroll\",'Enrollment Form'!$B71=\"Subscriber\",'Enrollment Form'!$CX71=\"No\",'Enrollment Form'!$DS71=\"\"),\"N\",IF(AND('Enrollment Form'!$C71=\"Enroll\",'Enrollment Form'!$B71=\"Subscriber\",'Enrollment Form'!$CX71=\"Yes\"),\"-\",\"Y\")))))","v":""},{"$f":"IF('Enrollment Form'!AH71=\"\",\"\",IF(ISERROR(SEARCH(\".\",'Enrollment Form'!AH71,SEARCH(\"@\",'Enrollment Form'!AH71))),\"N\",\"Y\"))","v":""},{"$f":"IF(OR($B64=\"N\",'Enrollment Form'!$G71=\"\"),\"\",IF('Enrollment Form'!$B71<>\"Subscriber\",\"-\",IF(COUNTIF('Enrollment Form'!$AV71:$AW71,\"Yes\")=2,\"N\",\"Y\")))","v":""},{"$f":"IF(OR('Enrollment Form'!$CJ71=\"\",'Enrollment Form'!$CJ71=\"No\"),\"-\",IF(AND('Enrollment Form'!$CJ71=\"Yes\",'Enrollment Form'!$CK71=\"\"),\"N\",\"Y\"))","v":"-"},{"$f":"IF(OR('Enrollment Form'!$CL71=\"\",'Enrollment Form'!$CL71=\"No\"),\"-\",IF(AND('Enrollment Form'!$CL71=\"Yes\",'Enrollment Form'!$CM71=\"\"),\"N\",\"Y\"))","v":"-"},{"$f":"IF(OR('Enrollment Form'!$CN71=\"\",'Enrollment Form'!$CN71=\"No\"),\"-\",IF(AND('Enrollment Form'!$CN71=\"Yes\",'Enrollment Form'!$CO71=\"\"),\"N\",\"Y\"))","v":"-"},{"$f":"IF(OR('Enrollment Form'!$CN71=\"\",'Enrollment Form'!$CN71=\"No\"),\"-\",IF(AND('Enrollment Form'!$CN71=\"Yes\",'Enrollment Form'!$CP71=\"\"),\"N\",\"Y\"))","v":"-"},{"$f":"IF('Enrollment Form'!B71<>\"Subscriber\",\"-\",IF(AND('Enrollment Form'!B71=\"Subscriber\",'Enrollment Form'!C71=\"Enroll\",'Enrollment Form'!AA71=\"\"),\"N\",\"Y\"))","v":"-"},{"$f":"IF(OR('Enrollment Form'!B71=\"Subscriber\",'Enrollment Form'!B71=\"\"),\"-\",IF('Enrollment Form'!BP71=\"\",\"N\",\"Y\"))","v":"-"},{"$f":"IF('Enrollment Form'!B71<>\"Subscriber\",\"-\",IF(AND('Enrollment Form'!B71=\"Subscriber\",'Enrollment Form'!G71=\"\"),\"N\",\"Y\"))","v":"-"},{"$f":"IF('Enrollment Form'!A71=\"\",\"\",IF('Enrollment Form'!B71=\"Subscriber\",\"-\",IF(AND('Enrollment Form'!B71<>\"Subscriber\",'Enrollment Form'!G71='Enrollment Form'!H71),\"N\",\"Y\")))","v":""},0]
[72,{"$f":"IF('Enrollment Form'!$A72<>\"\",\"Y\",\"N\")","v":"N"},{"$f":"IF(AND('Enrollment Form'!$B72=\"\",'Enrollment Form'!$C72<>\"\"),\"N\",IF($B65=\"N\",\"\",\"Y\"))","v":""},{"$f":"IF(OR($B65=\"N\",'Enrollment Form'!G72=\"\"),\"\",IF('Enrollment Form'!$B72<>\"Subscriber\",\"\",IF('Enrollment Form'!$G72='Enrollment Form'!$H72,\"Y\",\"N\")))","v":""},{"$f":"IF($B65=\"N\",\"\",IF(AND(COUNTIFS('Enrollment Form'!$H$11:$H$1000,'Enrollment Form'!$H72,'Enrollment Form'!$B$11:$B$1000,'Enrollment Form'!$B72)>1,'Enrollment Form'!$H72<>\"\"),\"N\",\"Y\"))","v":""},{"$f":"IF($B65=\"N\",\"\",IF(LEN('Enrollment Form'!$Y72)=0,\"\",IF(LEN('Enrollment Form'!$Y72)<>5,\"N\",\"Y\")))","v":""},{"$f":"IF($B65=\"N\",\"\",IF(LEN('Enrollment Form'!$AD72=0),\"\",IF(LEN('Enrollment Form'!$AD72)<>5,\"N\",\"Y\")))","v":""},{"$f":"IF($B65=\"N\",\"\",IF(LEN('Enrollment Form'!$BS72=0),\"\",IF(LEN('Enrollment Form'!$BS72)<>5,\"N\",\"Y\")))","v":""},{"$f":"IF($B65=\"N\",\"\",IF(LEN('Enrollment Form'!$AE72)=0,\"\",IF(LEN('Enrollment Form'!$AE72)<>10,\"N\",\"Y\")))","v":""},{"$f":"IF($B65=\"N\",\"\",IF(LEN('Enrollment Form'!$AF72)=0,\"\",IF(LEN('Enrollment Form'!$AF72)<>10,\"N\",\"Y\")))","v":""},{"$f":"IF('Enrollment Form'!$O72<>\"Graded\",\"-\",IF(AND('Enrollment Form'!$O72=\"Graded\",'Enrollment Form'!$AR72<>\"\"),\"Y\",\"N\"))","v":"-"},{"$f":"IF($B65=\"N\",\"\",IF(OR('Enrollment Form'!$B72<>\"Subscriber\",'Enrollment Form'!$C72=\"ROC\"),\"-\",IF(AND('Enrollment Form'!$B72=\"Subscriber\",'Enrollment Form'!$C72=\"Enroll\",'Enrollment Form'!$AJ72<>\"\"),\"Y\",\"N\")))","v":""},{"$f":"IF($B65=\"N\",\"\",IF(OR('Enrollment Form'!$B72<>\"Subscriber\",'Enrollment Form'!$C72=\"ROC\"),\"-\",IF(AND('Enrollment Form'!$B72=\"Subscriber\",'Enrollment Form'!$C72=\"Enroll\",'Enrollment Form'!$AK72<>\"\"),\"Y\",\"N\")))","v":""},{"$f":"IF($B65=\"N\",\"\",IF(OR('Enrollment Form'!$B72<>\"Subscriber\",'Enrollment Form'!$C72=\"ROC\"),\"-\",IF(AND('Enrollment Form'!$B72=\"Subscriber\",'Enrollment Form'!$C72=\"Enroll\",'Enrollment Form'!$AL72<>\"\"),\"Y\",\"N\")))","v":""},{"$f":"IF($B65=\"N\",\"\",IF(OR('Enrollment Form'!$B72<>\"Subscriber\",'Enrollment Form'!$C72=\"ROC\"),\"-\",IF(AND('Enrollment Form'!$B72=\"Subscriber\",'Enrollment Form'!$C72=\"Enroll\",'Enrollment Form'!$AP72<>\"\"),\"Y\",\"N\")))","v":""},{"$f":"IF($B65=\"N\",\"\",IF(OR('Enrollment Form'!$B72<>\"Subscriber\",'Enrollment Form'!$C72=\"ROC\"),\"-\",IF(AND('Enrollment Form'!$B72=\"Subscriber\",'Enrollment Form'!$C72=\"Enroll\",'Enrollment Form'!$AQ72<>\"\"),\"Y\",\"N\")))","v":""},{"$f":"IF($B65=\"N\",\"\",IF(OR('Enrollment Form'!$B72<>\"Subscriber\",'Enrollment Form'!$C72=\"ROC\"),\"-\",IF(AND('Enrollment Form'!$B72=\"Subscriber\",'Enrollment Form'!$C72=\"Enroll\",'Enrollment Form'!$AS72<>\"\"),\"Y\",\"N\")))","v":""},{"$f":"IF($B65=\"N\",\"\",IF($Q65=\"-\",\"-\",IF(AND($Q65=\"Y\",'Enrollment Form'!$AS72=\"No\"),\"-\",IF(AND($Q65=\"Y\",'Enrollment Form'!$AS72=\"Yes\",'Enrollment Form'!$AT72<>\"\"),\"Y\",\"N\"))))","v":""},{"$f":"IF($B65=\"N\",\"\",IF(OR('Enrollment Form'!$B72<>\"Subscriber\",'Enrollment Form'!$C72=\"ROC\"),\"-\",IF(AND('Enrollment Form'!$B72=\"Subscriber\",'Enrollment Form'!$C72=\"Enroll\",'Enrollment Form'!$CV72<>\"\"),\"Y\",\"N\")))","v":""},{"$f":"IF($B65=\"N\",\"\",IF($S65=\"-\",\"-\",IF(AND($S65=\"Y\",'Enrollment Form'!$CV72=\"No\"),\"-\",IF(AND($S65=\"Y\",'Enrollment Form'!$CV72=\"Yes\",'Enrollment Form'!$CW72<>\"\"),\"Y\",\"N\"))))","v":""},{"$f":"IF(OR('Enrollment Form'!$AY72=\"Yes\",'Enrollment Form'!$AY72=\"\"),\"-\",IF(OR(AND('Enrollment Form'!$AY72=\"No\",ISERROR(FIND(\"HMO\",VLOOKUP('Enrollment Form'!G72,'Enrollment Form'!H$11:J$1000,3,FALSE),1))=FALSE,COUNTA('Enrollment Form'!$AZ72:$BC72)=4),AND('Enrollment Form'!$AY72=\"No\",ISERROR(FIND(\"HMO\",VLOOKUP('Enrollment Form'!G72,'Enrollment Form'!H$11:J$1000,3,FALSE),1))=FALSE,COUNTA('Enrollment Form'!$BT72:$BW72)=4)),\"Y\",\"N\"))","v":"-"},{"$f":"IF($B65=\"N\",\"\",IF('Enrollment Form'!$B72=\"Subscriber\",\"-\",IF(COUNTA('Enrollment Form'!$BL72,'Enrollment Form'!$BN72)=2,\"Y\",\"N\")))","v":""},{"$f":"IF($B65=\"N\",\"\",IF(OR('Enrollment Form'!$AX72=\"\",'Enrollment Form'!$AX72=\"No\"),\"-\",IF(AND('Enrollment Form'!$AX72=\"Yes\",COUNTA('Enrollment Form'!$CR72)=1),\"Y\",\"N\")))","v":""},{"$f":"IF(OR('Enrollment Form'!$CR72=\"\",'Enrollment Form'!$CR72=\"No\"),\"-\",IF(COUNTA('Enrollment Form'!$CT72:$CU72)=2,\"Y\",\"N\"))","v":"-"},{"$f":"IF($B65=\"N\",\"\",IF(COUNTIF('Enrollment Form'!$DG72:$DP72,\"Other\")=COUNTA('Enrollment Form'!$DK72,'Enrollment Form'!$DH72,'Enrollment Form'!$DN72,'Enrollment Form'!$DQ72),\"Y\",\"N\"))","v":""},{"$f":"IF($B65=\"N\",\"\",IF(OR('Enrollment Form'!B72<>\"Subscriber\",'Enrollment Form'!C72=\"ROC\",COUNTIF('Enrollment Form'!AV72:AW72,\"Yes\")>=1),\"-\",IF(AND('Enrollment Form'!C72=\"Enroll\",COUNTIF('Enrollment Form'!AV72:AW72,\"No\")=2,'Enrollment Form'!AX72=\"\"),\"N\",\"Y\")))","v":""},{"$f":"IF(OR(B65=\"N\",'Enrollment Form'!B72<>\"Subscriber\",'Enrollment Form'!C72=\"ROC\",'Enrollment Form'!O72<>\"Multiple of Salary\"),\"-\",IF(COUNTA('Enrollment Form'!T72:U72)<2,\"N\",\"Y\"))","v":"-"},{"$f":"IF(B65=\"N\",\"\",IF(OR('Enrollment Form'!C72=\"ROC\",'Enrollment Form'!B72<>\"Subscriber\",'Enrollment Form'!O72=\"Waive\",'Enrollment Form'!O72=\"\"),\"-\",IF('Enrollment Form'!P72=\"\",\"N\",\"Y\")))","v":""},{"$f":"IF($B65=\"N\",\"\",IF(AND('Enrollment Form'!$C72=\"ROC\",'Enrollment Form'!$DR72<>\"\"),\"Y\",IF(AND('Enrollment Form'!$C72=\"ROC\",'Enrollment Form'!$DR72=\"\"),\"N\",IF(AND('Enrollment Form'!$C72=\"Enroll\",'Enrollment Form'!$B72=\"Subscriber\",'Enrollment Form'!$CX72=\"No\",'Enrollment Form'!$DR72=\"\"),\"N\",IF(AND('Enrollment Form'!$C72=\"Enroll\",'Enrollment Form'!$B72=\"Subscriber\",'Enrollment Form'!$CX72=\"Yes\"),\"-\",\"Y\")))))","v":""},{"$f":"IF($B65=\"N\",\"\",IF(AND('Enrollment Form'!$C72=\"ROC\",'Enrollment Form'!$DS72<>\"\"),\"Y\",IF(AND('Enrollment Form'!$C72=\"ROC\",'Enrollment Form'!$DS72=\"\"),\"N\",IF(AND('Enrollment Form'!$C72=\"Enroll\",'Enrollment Form'!$B72=\"Subscriber\",'Enrollment Form'!$CX72=\"No\",'Enrollment Form'!$DS72=\"\"),\"N\",IF(AND('Enrollment Form'!$C72=\"Enroll\",'Enrollment Form'!$B72=\"Subscriber\",'Enrollment Form'!$CX72=\"Yes\"),\"-\",\"Y\")))))","v":""},{"$f":"IF('Enrollment Form'!AH72=\"\",\"\",IF(ISERROR(SEARCH(\".\",'Enrollment Form'!AH72,SEARCH(\"@\",'Enrollment Form'!AH72))),\"N\",\"Y\"))","v":""},{"$f":"IF(OR($B65=\"N\",'Enrollment Form'!$G72=\"\"),\"\",IF('Enrollment Form'!$B72<>\"Subscriber\",\"-\",IF(COUNTIF('Enrollment Form'!$AV72:$AW72,\"Yes\")=2,\"N\",\"Y\")))","v":""},{"$f":"IF(OR('Enrollment Form'!$CJ72=\"\",'Enrollment Form'!$CJ72=\"No\"),\"-\",IF(AND('Enrollment Form'!$CJ72=\"Yes\",'Enrollment Form'!$CK72=\"\"),\"N\",\"Y\"))","v":"-"},{"$f":"IF(OR('Enrollment Form'!$CL72=\"\",'Enrollment Form'!$CL72=\"No\"),\"-\",IF(AND('Enrollment Form'!$CL72=\"Yes\",'Enrollment Form'!$CM72=\"\"),\"N\",\"Y\"))","v":"-"},{"$f":"IF(OR('Enrollment Form'!$CN72=\"\",'Enrollment Form'!$CN72=\"No\"),\"-\",IF(AND('Enrollment Form'!$CN72=\"Yes\",'Enrollment Form'!$CO72=\"\"),\"N\",\"Y\"))","v":"-"},{"$f":"IF(OR('Enrollment Form'!$CN72=\"\",'Enrollment Form'!$CN72=\"No\"),\"-\",IF(AND('Enrollment Form'!$CN72=\"Yes\",'Enrollment Form'!$CP72=\"\"),\"N\",\"Y\"))","v":"-"},{"$f":"IF('Enrollment Form'!B72<>\"Subscriber\",\"-\",IF(AND('Enrollment Form'!B72=\"Subscriber\",'Enrollment Form'!C72=\"Enroll\",'Enrollment Form'!AA72=\"\"),\"N\",\"Y\"))","v":"-"},{"$f":"IF(OR('Enrollment Form'!B72=\"Subscriber\",'Enrollment Form'!B72=\"\"),\"-\",IF('Enrollment Form'!BP72=\"\",\"N\",\"Y\"))","v":"-"},{"$f":"IF('Enrollment Form'!B72<>\"Subscriber\",\"-\",IF(AND('Enrollment Form'!B72=\"Subscriber\",'Enrollment Form'!G72=\"\"),\"N\",\"Y\"))","v":"-"},{"$f":"IF('Enrollment Form'!A72=\"\",\"\",IF('Enrollment Form'!B72=\"Subscriber\",\"-\",IF(AND('Enrollment Form'!B72<>\"Subscriber\",'Enrollment Form'!G72='Enrollment Form'!H72),\"N\",\"Y\")))","v":""},0]
[73,{"$f":"IF('Enrollment Form'!$A73<>\"\",\"Y\",\"N\")","v":"N"},{"$f":"IF(AND('Enrollment Form'!$B73=\"\",'Enrollment Form'!$C73<>\"\"),\"N\",IF($B66=\"N\",\"\",\"Y\"))","v":""},{"$f":"IF(OR($B66=\"N\",'Enrollment Form'!G73=\"\"),\"\",IF('Enrollment Form'!$B73<>\"Subscriber\",\"\",IF('Enrollment Form'!$G73='Enrollment Form'!$H73,\"Y\",\"N\")))","v":""},{"$f":"IF($B66=\"N\",\"\",IF(AND(COUNTIFS('Enrollment Form'!$H$11:$H$1000,'Enrollment Form'!$H73,'Enrollment Form'!$B$11:$B$1000,'Enrollment Form'!$B73)>1,'Enrollment Form'!$H73<>\"\"),\"N\",\"Y\"))","v":""},{"$f":"IF($B66=\"N\",\"\",IF(LEN('Enrollment Form'!$Y73)=0,\"\",IF(LEN('Enrollment Form'!$Y73)<>5,\"N\",\"Y\")))","v":""},{"$f":"IF($B66=\"N\",\"\",IF(LEN('Enrollment Form'!$AD73=0),\"\",IF(LEN('Enrollment Form'!$AD73)<>5,\"N\",\"Y\")))","v":""},{"$f":"IF($B66=\"N\",\"\",IF(LEN('Enrollment Form'!$BS73=0),\"\",IF(LEN('Enrollment Form'!$BS73)<>5,\"N\",\"Y\")))","v":""},{"$f":"IF($B66=\"N\",\"\",IF(LEN('Enrollment Form'!$AE73)=0,\"\",IF(LEN('Enrollment Form'!$AE73)<>10,\"N\",\"Y\")))","v":""},{"$f":"IF($B66=\"N\",\"\",IF(LEN('Enrollment Form'!$AF73)=0,\"\",IF(LEN('Enrollment Form'!$AF73)<>10,\"N\",\"Y\")))","v":""},{"$f":"IF('Enrollment Form'!$O73<>\"Graded\",\"-\",IF(AND('Enrollment Form'!$O73=\"Graded\",'Enrollment Form'!$AR73<>\"\"),\"Y\",\"N\"))","v":"-"},{"$f":"IF($B66=\"N\",\"\",IF(OR('Enrollment Form'!$B73<>\"Subscriber\",'Enrollment Form'!$C73=\"ROC\"),\"-\",IF(AND('Enrollment Form'!$B73=\"Subscriber\",'Enrollment Form'!$C73=\"Enroll\",'Enrollment Form'!$AJ73<>\"\"),\"Y\",\"N\")))","v":""},{"$f":"IF($B66=\"N\",\"\",IF(OR('Enrollment Form'!$B73<>\"Subscriber\",'Enrollment Form'!$C73=\"ROC\"),\"-\",IF(AND('Enrollment Form'!$B73=\"Subscriber\",'Enrollment Form'!$C73=\"Enroll\",'Enrollment Form'!$AK73<>\"\"),\"Y\",\"N\")))","v":""},{"$f":"IF($B66=\"N\",\"\",IF(OR('Enrollment Form'!$B73<>\"Subscriber\",'Enrollment Form'!$C73=\"ROC\"),\"-\",IF(AND('Enrollment Form'!$B73=\"Subscriber\",'Enrollment Form'!$C73=\"Enroll\",'Enrollment Form'!$AL73<>\"\"),\"Y\",\"N\")))","v":""},{"$f":"IF($B66=\"N\",\"\",IF(OR('Enrollment Form'!$B73<>\"Subscriber\",'Enrollment Form'!$C73=\"ROC\"),\"-\",IF(AND('Enrollment Form'!$B73=\"Subscriber\",'Enrollment Form'!$C73=\"Enroll\",'Enrollment Form'!$AP73<>\"\"),\"Y\",\"N\")))","v":""},{"$f":"IF($B66=\"N\",\"\",IF(OR('Enrollment Form'!$B73<>\"Subscriber\",'Enrollment Form'!$C73=\"ROC\"),\"-\",IF(AND('Enrollment Form'!$B73=\"Subscriber\",'Enrollment Form'!$C73=\"Enroll\",'Enrollment Form'!$AQ73<>\"\"),\"Y\",\"N\")))","v":""},{"$f":"IF($B66=\"N\",\"\",IF(OR('Enrollment Form'!$B73<>\"Subscriber\",'Enrollment Form'!$C73=\"ROC\"),\"-\",IF(AND('Enrollment Form'!$B73=\"Subscriber\",'Enrollment Form'!$C73=\"Enroll\",'Enrollment Form'!$AS73<>\"\"),\"Y\",\"N\")))","v":""},{"$f":"IF($B66=\"N\",\"\",IF($Q66=\"-\",\"-\",IF(AND($Q66=\"Y\",'Enrollment Form'!$AS73=\"No\"),\"-\",IF(AND($Q66=\"Y\",'Enrollment Form'!$AS73=\"Yes\",'Enrollment Form'!$AT73<>\"\"),\"Y\",\"N\"))))","v":""},{"$f":"IF($B66=\"N\",\"\",IF(OR('Enrollment Form'!$B73<>\"Subscriber\",'Enrollment Form'!$C73=\"ROC\"),\"-\",IF(AND('Enrollment Form'!$B73=\"Subscriber\",'Enrollment Form'!$C73=\"Enroll\",'Enrollment Form'!$CV73<>\"\"),\"Y\",\"N\")))","v":""},{"$f":"IF($B66=\"N\",\"\",IF($S66=\"-\",\"-\",IF(AND($S66=\"Y\",'Enrollment Form'!$CV73=\"No\"),\"-\",IF(AND($S66=\"Y\",'Enrollment Form'!$CV73=\"Yes\",'Enrollment Form'!$CW73<>\"\"),\"Y\",\"N\"))))","v":""},{"$f":"IF(OR('Enrollment Form'!$AY73=\"Yes\",'Enrollment Form'!$AY73=\"\"),\"-\",IF(OR(AND('Enrollment Form'!$AY73=\"No\",ISERROR(FIND(\"HMO\",VLOOKUP('Enrollment Form'!G73,'Enrollment Form'!H$11:J$1000,3,FALSE),1))=FALSE,COUNTA('Enrollment Form'!$AZ73:$BC73)=4),AND('Enrollment Form'!$AY73=\"No\",ISERROR(FIND(\"HMO\",VLOOKUP('Enrollment Form'!G73,'Enrollment Form'!H$11:J$1000,3,FALSE),1))=FALSE,COUNTA('Enrollment Form'!$BT73:$BW73)=4)),\"Y\",\"N\"))","v":"-"},{"$f":"IF($B66=\"N\",\"\",IF('Enrollment Form'!$B73=\"Subscriber\",\"-\",IF(COUNTA('Enrollment Form'!$BL73,'Enrollment Form'!$BN73)=2,\"Y\",\"N\")))","v":""},{"$f":"IF($B66=\"N\",\"\",IF(OR('Enrollment Form'!$AX73=\"\",'Enrollment Form'!$AX73=\"No\"),\"-\",IF(AND('Enrollment Form'!$AX73=\"Yes\",COUNTA('Enrollment Form'!$CR73)=1),\"Y\",\"N\")))","v":""},{"$f":"IF(OR('Enrollment Form'!$CR73=\"\",'Enrollment Form'!$CR73=\"No\"),\"-\",IF(COUNTA('Enrollment Form'!$CT73:$CU73)=2,\"Y\",\"N\"))","v":"-"},{"$f":"IF($B66=\"N\",\"\",IF(COUNTIF('Enrollment Form'!$DG73:$DP73,\"Other\")=COUNTA('Enrollment Form'!$DK73,'Enrollment Form'!$DH73,'Enrollment Form'!$DN73,'Enrollment Form'!$DQ73),\"Y\",\"N\"))","v":""},{"$f":"IF($B66=\"N\",\"\",IF(OR('Enrollment Form'!B73<>\"Subscriber\",'Enrollment Form'!C73=\"ROC\",COUNTIF('Enrollment Form'!AV73:AW73,\"Yes\")>=1),\"-\",IF(AND('Enrollment Form'!C73=\"Enroll\",COUNTIF('Enrollment Form'!AV73:AW73,\"No\")=2,'Enrollment Form'!AX73=\"\"),\"N\",\"Y\")))","v":""},{"$f":"IF(OR(B66=\"N\",'Enrollment Form'!B73<>\"Subscriber\",'Enrollment Form'!C73=\"ROC\",'Enrollment Form'!O73<>\"Multiple of Salary\"),\"-\",IF(COUNTA('Enrollment Form'!T73:U73)<2,\"N\",\"Y\"))","v":"-"},{"$f":"IF(B66=\"N\",\"\",IF(OR('Enrollment Form'!C73=\"ROC\",'Enrollment Form'!B73<>\"Subscriber\",'Enrollment Form'!O73=\"Waive\",'Enrollment Form'!O73=\"\"),\"-\",IF('Enrollment Form'!P73=\"\",\"N\",\"Y\")))","v":""},{"$f":"IF($B66=\"N\",\"\",IF(AND('Enrollment Form'!$C73=\"ROC\",'Enrollment Form'!$DR73<>\"\"),\"Y\",IF(AND('Enrollment Form'!$C73=\"ROC\",'Enrollment Form'!$DR73=\"\"),\"N\",IF(AND('Enrollment Form'!$C73=\"Enroll\",'Enrollment Form'!$B73=\"Subscriber\",'Enrollment Form'!$CX73=\"No\",'Enrollment Form'!$DR73=\"\"),\"N\",IF(AND('Enrollment Form'!$C73=\"Enroll\",'Enrollment Form'!$B73=\"Subscriber\",'Enrollment Form'!$CX73=\"Yes\"),\"-\",\"Y\")))))","v":""},{"$f":"IF($B66=\"N\",\"\",IF(AND('Enrollment Form'!$C73=\"ROC\",'Enrollment Form'!$DS73<>\"\"),\"Y\",IF(AND('Enrollment Form'!$C73=\"ROC\",'Enrollment Form'!$DS73=\"\"),\"N\",IF(AND('Enrollment Form'!$C73=\"Enroll\",'Enrollment Form'!$B73=\"Subscriber\",'Enrollment Form'!$CX73=\"No\",'Enrollment Form'!$DS73=\"\"),\"N\",IF(AND('Enrollment Form'!$C73=\"Enroll\",'Enrollment Form'!$B73=\"Subscriber\",'Enrollment Form'!$CX73=\"Yes\"),\"-\",\"Y\")))))","v":""},{"$f":"IF('Enrollment Form'!AH73=\"\",\"\",IF(ISERROR(SEARCH(\".\",'Enrollment Form'!AH73,SEARCH(\"@\",'Enrollment Form'!AH73))),\"N\",\"Y\"))","v":""},{"$f":"IF(OR($B66=\"N\",'Enrollment Form'!$G73=\"\"),\"\",IF('Enrollment Form'!$B73<>\"Subscriber\",\"-\",IF(COUNTIF('Enrollment Form'!$AV73:$AW73,\"Yes\")=2,\"N\",\"Y\")))","v":""},{"$f":"IF(OR('Enrollment Form'!$CJ73=\"\",'Enrollment Form'!$CJ73=\"No\"),\"-\",IF(AND('Enrollment Form'!$CJ73=\"Yes\",'Enrollment Form'!$CK73=\"\"),\"N\",\"Y\"))","v":"-"},{"$f":"IF(OR('Enrollment Form'!$CL73=\"\",'Enrollment Form'!$CL73=\"No\"),\"-\",IF(AND('Enrollment Form'!$CL73=\"Yes\",'Enrollment Form'!$CM73=\"\"),\"N\",\"Y\"))","v":"-"},{"$f":"IF(OR('Enrollment Form'!$CN73=\"\",'Enrollment Form'!$CN73=\"No\"),\"-\",IF(AND('Enrollment Form'!$CN73=\"Yes\",'Enrollment Form'!$CO73=\"\"),\"N\",\"Y\"))","v":"-"},{"$f":"IF(OR('Enrollment Form'!$CN73=\"\",'Enrollment Form'!$CN73=\"No\"),\"-\",IF(AND('Enrollment Form'!$CN73=\"Yes\",'Enrollment Form'!$CP73=\"\"),\"N\",\"Y\"))","v":"-"},{"$f":"IF('Enrollment Form'!B73<>\"Subscriber\",\"-\",IF(AND('Enrollment Form'!B73=\"Subscriber\",'Enrollment Form'!C73=\"Enroll\",'Enrollment Form'!AA73=\"\"),\"N\",\"Y\"))","v":"-"},{"$f":"IF(OR('Enrollment Form'!B73=\"Subscriber\",'Enrollment Form'!B73=\"\"),\"-\",IF('Enrollment Form'!BP73=\"\",\"N\",\"Y\"))","v":"-"},{"$f":"IF('Enrollment Form'!B73<>\"Subscriber\",\"-\",IF(AND('Enrollment Form'!B73=\"Subscriber\",'Enrollment Form'!G73=\"\"),\"N\",\"Y\"))","v":"-"},{"$f":"IF('Enrollment Form'!A73=\"\",\"\",IF('Enrollment Form'!B73=\"Subscriber\",\"-\",IF(AND('Enrollment Form'!B73<>\"Subscriber\",'Enrollment Form'!G73='Enrollment Form'!H73),\"N\",\"Y\")))","v":""},0]
[74,{"$f":"IF('Enrollment Form'!$A74<>\"\",\"Y\",\"N\")","v":"N"},{"$f":"IF(AND('Enrollment Form'!$B74=\"\",'Enrollment Form'!$C74<>\"\"),\"N\",IF($B67=\"N\",\"\",\"Y\"))","v":""},{"$f":"IF(OR($B67=\"N\",'Enrollment Form'!G74=\"\"),\"\",IF('Enrollment Form'!$B74<>\"Subscriber\",\"\",IF('Enrollment Form'!$G74='Enrollment Form'!$H74,\"Y\",\"N\")))","v":""},{"$f":"IF($B67=\"N\",\"\",IF(AND(COUNTIFS('Enrollment Form'!$H$11:$H$1000,'Enrollment Form'!$H74,'Enrollment Form'!$B$11:$B$1000,'Enrollment Form'!$B74)>1,'Enrollment Form'!$H74<>\"\"),\"N\",\"Y\"))","v":""},{"$f":"IF($B67=\"N\",\"\",IF(LEN('Enrollment Form'!$Y74)=0,\"\",IF(LEN('Enrollment Form'!$Y74)<>5,\"N\",\"Y\")))","v":""},{"$f":"IF($B67=\"N\",\"\",IF(LEN('Enrollment Form'!$AD74=0),\"\",IF(LEN('Enrollment Form'!$AD74)<>5,\"N\",\"Y\")))","v":""},{"$f":"IF($B67=\"N\",\"\",IF(LEN('Enrollment Form'!$BS74=0),\"\",IF(LEN('Enrollment Form'!$BS74)<>5,\"N\",\"Y\")))","v":""},{"$f":"IF($B67=\"N\",\"\",IF(LEN('Enrollment Form'!$AE74)=0,\"\",IF(LEN('Enrollment Form'!$AE74)<>10,\"N\",\"Y\")))","v":""},{"$f":"IF($B67=\"N\",\"\",IF(LEN('Enrollment Form'!$AF74)=0,\"\",IF(LEN('Enrollment Form'!$AF74)<>10,\"N\",\"Y\")))","v":""},{"$f":"IF('Enrollment Form'!$O74<>\"Graded\",\"-\",IF(AND('Enrollment Form'!$O74=\"Graded\",'Enrollment Form'!$AR74<>\"\"),\"Y\",\"N\"))","v":"-"},{"$f":"IF($B67=\"N\",\"\",IF(OR('Enrollment Form'!$B74<>\"Subscriber\",'Enrollment Form'!$C74=\"ROC\"),\"-\",IF(AND('Enrollment Form'!$B74=\"Subscriber\",'Enrollment Form'!$C74=\"Enroll\",'Enrollment Form'!$AJ74<>\"\"),\"Y\",\"N\")))","v":""},{"$f":"IF($B67=\"N\",\"\",IF(OR('Enrollment Form'!$B74<>\"Subscriber\",'Enrollment Form'!$C74=\"ROC\"),\"-\",IF(AND('Enrollment Form'!$B74=\"Subscriber\",'Enrollment Form'!$C74=\"Enroll\",'Enrollment Form'!$AK74<>\"\"),\"Y\",\"N\")))","v":""},{"$f":"IF($B67=\"N\",\"\",IF(OR('Enrollment Form'!$B74<>\"Subscriber\",'Enrollment Form'!$C74=\"ROC\"),\"-\",IF(AND('Enrollment Form'!$B74=\"Subscriber\",'Enrollment Form'!$C74=\"Enroll\",'Enrollment Form'!$AL74<>\"\"),\"Y\",\"N\")))","v":""},{"$f":"IF($B67=\"N\",\"\",IF(OR('Enrollment Form'!$B74<>\"Subscriber\",'Enrollment Form'!$C74=\"ROC\"),\"-\",IF(AND('Enrollment Form'!$B74=\"Subscriber\",'Enrollment Form'!$C74=\"Enroll\",'Enrollment Form'!$AP74<>\"\"),\"Y\",\"N\")))","v":""},{"$f":"IF($B67=\"N\",\"\",IF(OR('Enrollment Form'!$B74<>\"Subscriber\",'Enrollment Form'!$C74=\"ROC\"),\"-\",IF(AND('Enrollment Form'!$B74=\"Subscriber\",'Enrollment Form'!$C74=\"Enroll\",'Enrollment Form'!$AQ74<>\"\"),\"Y\",\"N\")))","v":""},{"$f":"IF($B67=\"N\",\"\",IF(OR('Enrollment Form'!$B74<>\"Subscriber\",'Enrollment Form'!$C74=\"ROC\"),\"-\",IF(AND('Enrollment Form'!$B74=\"Subscriber\",'Enrollment Form'!$C74=\"Enroll\",'Enrollment Form'!$AS74<>\"\"),\"Y\",\"N\")))","v":""},{"$f":"IF($B67=\"N\",\"\",IF($Q67=\"-\",\"-\",IF(AND($Q67=\"Y\",'Enrollment Form'!$AS74=\"No\"),\"-\",IF(AND($Q67=\"Y\",'Enrollment Form'!$AS74=\"Yes\",'Enrollment Form'!$AT74<>\"\"),\"Y\",\"N\"))))","v":""},{"$f":"IF($B67=\"N\",\"\",IF(OR('Enrollment Form'!$B74<>\"Subscriber\",'Enrollment Form'!$C74=\"ROC\"),\"-\",IF(AND('Enrollment Form'!$B74=\"Subscriber\",'Enrollment Form'!$C74=\"Enroll\",'Enrollment Form'!$CV74<>\"\"),\"Y\",\"N\")))","v":""},{"$f":"IF($B67=\"N\",\"\",IF($S67=\"-\",\"-\",IF(AND($S67=\"Y\",'Enrollment Form'!$CV74=\"No\"),\"-\",IF(AND($S67=\"Y\",'Enrollment Form'!$CV74=\"Yes\",'Enrollment Form'!$CW74<>\"\"),\"Y\",\"N\"))))","v":""},{"$f":"IF(OR('Enrollment Form'!$AY74=\"Yes\",'Enrollment Form'!$AY74=\"\"),\"-\",IF(OR(AND('Enrollment Form'!$AY74=\"No\",ISERROR(FIND(\"HMO\",VLOOKUP('Enrollment Form'!G74,'Enrollment Form'!H$11:J$1000,3,FALSE),1))=FALSE,COUNTA('Enrollment Form'!$AZ74:$BC74)=4),AND('Enrollment Form'!$AY74=\"No\",ISERROR(FIND(\"HMO\",VLOOKUP('Enrollment Form'!G74,'Enrollment Form'!H$11:J$1000,3,FALSE),1))=FALSE,COUNTA('Enrollment Form'!$BT74:$BW74)=4)),\"Y\",\"N\"))","v":"-"},{"$f":"IF($B67=\"N\",\"\",IF('Enrollment Form'!$B74=\"Subscriber\",\"-\",IF(COUNTA('Enrollment Form'!$BL74,'Enrollment Form'!$BN74)=2,\"Y\",\"N\")))","v":""},{"$f":"IF($B67=\"N\",\"\",IF(OR('Enrollment Form'!$AX74=\"\",'Enrollment Form'!$AX74=\"No\"),\"-\",IF(AND('Enrollment Form'!$AX74=\"Yes\",COUNTA('Enrollment Form'!$CR74)=1),\"Y\",\"N\")))","v":""},{"$f":"IF(OR('Enrollment Form'!$CR74=\"\",'Enrollment Form'!$CR74=\"No\"),\"-\",IF(COUNTA('Enrollment Form'!$CT74:$CU74)=2,\"Y\",\"N\"))","v":"-"},{"$f":"IF($B67=\"N\",\"\",IF(COUNTIF('Enrollment Form'!$DG74:$DP74,\"Other\")=COUNTA('Enrollment Form'!$DK74,'Enrollment Form'!$DH74,'Enrollment Form'!$DN74,'Enrollment Form'!$DQ74),\"Y\",\"N\"))","v":""},{"$f":"IF($B67=\"N\",\"\",IF(OR('Enrollment Form'!B74<>\"Subscriber\",'Enrollment Form'!C74=\"ROC\",COUNTIF('Enrollment Form'!AV74:AW74,\"Yes\")>=1),\"-\",IF(AND('Enrollment Form'!C74=\"Enroll\",COUNTIF('Enrollment Form'!AV74:AW74,\"No\")=2,'Enrollment Form'!AX74=\"\"),\"N\",\"Y\")))","v":""},{"$f":"IF(OR(B67=\"N\",'Enrollment Form'!B74<>\"Subscriber\",'Enrollment Form'!C74=\"ROC\",'Enrollment Form'!O74<>\"Multiple of Salary\"),\"-\",IF(COUNTA('Enrollment Form'!T74:U74)<2,\"N\",\"Y\"))","v":"-"},{"$f":"IF(B67=\"N\",\"\",IF(OR('Enrollment Form'!C74=\"ROC\",'Enrollment Form'!B74<>\"Subscriber\",'Enrollment Form'!O74=\"Waive\",'Enrollment Form'!O74=\"\"),\"-\",IF('Enrollment Form'!P74=\"\",\"N\",\"Y\")))","v":""},{"$f":"IF($B67=\"N\",\"\",IF(AND('Enrollment Form'!$C74=\"ROC\",'Enrollment Form'!$DR74<>\"\"),\"Y\",IF(AND('Enrollment Form'!$C74=\"ROC\",'Enrollment Form'!$DR74=\"\"),\"N\",IF(AND('Enrollment Form'!$C74=\"Enroll\",'Enrollment Form'!$B74=\"Subscriber\",'Enrollment Form'!$CX74=\"No\",'Enrollment Form'!$DR74=\"\"),\"N\",IF(AND('Enrollment Form'!$C74=\"Enroll\",'Enrollment Form'!$B74=\"Subscriber\",'Enrollment Form'!$CX74=\"Yes\"),\"-\",\"Y\")))))","v":""},{"$f":"IF($B67=\"N\",\"\",IF(AND('Enrollment Form'!$C74=\"ROC\",'Enrollment Form'!$DS74<>\"\"),\"Y\",IF(AND('Enrollment Form'!$C74=\"ROC\",'Enrollment Form'!$DS74=\"\"),\"N\",IF(AND('Enrollment Form'!$C74=\"Enroll\",'Enrollment Form'!$B74=\"Subscriber\",'Enrollment Form'!$CX74=\"No\",'Enrollment Form'!$DS74=\"\"),\"N\",IF(AND('Enrollment Form'!$C74=\"Enroll\",'Enrollment Form'!$B74=\"Subscriber\",'Enrollment Form'!$CX74=\"Yes\"),\"-\",\"Y\")))))","v":""},{"$f":"IF('Enrollment Form'!AH74=\"\",\"\",IF(ISERROR(SEARCH(\".\",'Enrollment Form'!AH74,SEARCH(\"@\",'Enrollment Form'!AH74))),\"N\",\"Y\"))","v":""},{"$f":"IF(OR($B67=\"N\",'Enrollment Form'!$G74=\"\"),\"\",IF('Enrollment Form'!$B74<>\"Subscriber\",\"-\",IF(COUNTIF('Enrollment Form'!$AV74:$AW74,\"Yes\")=2,\"N\",\"Y\")))","v":""},{"$f":"IF(OR('Enrollment Form'!$CJ74=\"\",'Enrollment Form'!$CJ74=\"No\"),\"-\",IF(AND('Enrollment Form'!$CJ74=\"Yes\",'Enrollment Form'!$CK74=\"\"),\"N\",\"Y\"))","v":"-"},{"$f":"IF(OR('Enrollment Form'!$CL74=\"\",'Enrollment Form'!$CL74=\"No\"),\"-\",IF(AND('Enrollment Form'!$CL74=\"Yes\",'Enrollment Form'!$CM74=\"\"),\"N\",\"Y\"))","v":"-"},{"$f":"IF(OR('Enrollment Form'!$CN74=\"\",'Enrollment Form'!$CN74=\"No\"),\"-\",IF(AND('Enrollment Form'!$CN74=\"Yes\",'Enrollment Form'!$CO74=\"\"),\"N\",\"Y\"))","v":"-"},{"$f":"IF(OR('Enrollment Form'!$CN74=\"\",'Enrollment Form'!$CN74=\"No\"),\"-\",IF(AND('Enrollment Form'!$CN74=\"Yes\",'Enrollment Form'!$CP74=\"\"),\"N\",\"Y\"))","v":"-"},{"$f":"IF('Enrollment Form'!B74<>\"Subscriber\",\"-\",IF(AND('Enrollment Form'!B74=\"Subscriber\",'Enrollment Form'!C74=\"Enroll\",'Enrollment Form'!AA74=\"\"),\"N\",\"Y\"))","v":"-"},{"$f":"IF(OR('Enrollment Form'!B74=\"Subscriber\",'Enrollment Form'!B74=\"\"),\"-\",IF('Enrollment Form'!BP74=\"\",\"N\",\"Y\"))","v":"-"},{"$f":"IF('Enrollment Form'!B74<>\"Subscriber\",\"-\",IF(AND('Enrollment Form'!B74=\"Subscriber\",'Enrollment Form'!G74=\"\"),\"N\",\"Y\"))","v":"-"},{"$f":"IF('Enrollment Form'!A74=\"\",\"\",IF('Enrollment Form'!B74=\"Subscriber\",\"-\",IF(AND('Enrollment Form'!B74<>\"Subscriber\",'Enrollment Form'!G74='Enrollment Form'!H74),\"N\",\"Y\")))","v":""},0]
[75,{"$f":"IF('Enrollment Form'!$A75<>\"\",\"Y\",\"N\")","v":"N"},{"$f":"IF(AND('Enrollment Form'!$B75=\"\",'Enrollment Form'!$C75<>\"\"),\"N\",IF($B68=\"N\",\"\",\"Y\"))","v":""},{"$f":"IF(OR($B68=\"N\",'Enrollment Form'!G75=\"\"),\"\",IF('Enrollment Form'!$B75<>\"Subscriber\",\"\",IF('Enrollment Form'!$G75='Enrollment Form'!$H75,\"Y\",\"N\")))","v":""},{"$f":"IF($B68=\"N\",\"\",IF(AND(COUNTIFS('Enrollment Form'!$H$11:$H$1000,'Enrollment Form'!$H75,'Enrollment Form'!$B$11:$B$1000,'Enrollment Form'!$B75)>1,'Enrollment Form'!$H75<>\"\"),\"N\",\"Y\"))","v":""},{"$f":"IF($B68=\"N\",\"\",IF(LEN('Enrollment Form'!$Y75)=0,\"\",IF(LEN('Enrollment Form'!$Y75)<>5,\"N\",\"Y\")))","v":""},{"$f":"IF($B68=\"N\",\"\",IF(LEN('Enrollment Form'!$AD75=0),\"\",IF(LEN('Enrollment Form'!$AD75)<>5,\"N\",\"Y\")))","v":""},{"$f":"IF($B68=\"N\",\"\",IF(LEN('Enrollment Form'!$BS75=0),\"\",IF(LEN('Enrollment Form'!$BS75)<>5,\"N\",\"Y\")))","v":""},{"$f":"IF($B68=\"N\",\"\",IF(LEN('Enrollment Form'!$AE75)=0,\"\",IF(LEN('Enrollment Form'!$AE75)<>10,\"N\",\"Y\")))","v":""},{"$f":"IF($B68=\"N\",\"\",IF(LEN('Enrollment Form'!$AF75)=0,\"\",IF(LEN('Enrollment Form'!$AF75)<>10,\"N\",\"Y\")))","v":""},{"$f":"IF('Enrollment Form'!$O75<>\"Graded\",\"-\",IF(AND('Enrollment Form'!$O75=\"Graded\",'Enrollment Form'!$AR75<>\"\"),\"Y\",\"N\"))","v":"-"},{"$f":"IF($B68=\"N\",\"\",IF(OR('Enrollment Form'!$B75<>\"Subscriber\",'Enrollment Form'!$C75=\"ROC\"),\"-\",IF(AND('Enrollment Form'!$B75=\"Subscriber\",'Enrollment Form'!$C75=\"Enroll\",'Enrollment Form'!$AJ75<>\"\"),\"Y\",\"N\")))","v":""},{"$f":"IF($B68=\"N\",\"\",IF(OR('Enrollment Form'!$B75<>\"Subscriber\",'Enrollment Form'!$C75=\"ROC\"),\"-\",IF(AND('Enrollment Form'!$B75=\"Subscriber\",'Enrollment Form'!$C75=\"Enroll\",'Enrollment Form'!$AK75<>\"\"),\"Y\",\"N\")))","v":""},{"$f":"IF($B68=\"N\",\"\",IF(OR('Enrollment Form'!$B75<>\"Subscriber\",'Enrollment Form'!$C75=\"ROC\"),\"-\",IF(AND('Enrollment Form'!$B75=\"Subscriber\",'Enrollment Form'!$C75=\"Enroll\",'Enrollment Form'!$AL75<>\"\"),\"Y\",\"N\")))","v":""},{"$f":"IF($B68=\"N\",\"\",IF(OR('Enrollment Form'!$B75<>\"Subscriber\",'Enrollment Form'!$C75=\"ROC\"),\"-\",IF(AND('Enrollment Form'!$B75=\"Subscriber\",'Enrollment Form'!$C75=\"Enroll\",'Enrollment Form'!$AP75<>\"\"),\"Y\",\"N\")))","v":""},{"$f":"IF($B68=\"N\",\"\",IF(OR('Enrollment Form'!$B75<>\"Subscriber\",'Enrollment Form'!$C75=\"ROC\"),\"-\",IF(AND('Enrollment Form'!$B75=\"Subscriber\",'Enrollment Form'!$C75=\"Enroll\",'Enrollment Form'!$AQ75<>\"\"),\"Y\",\"N\")))","v":""},{"$f":"IF($B68=\"N\",\"\",IF(OR('Enrollment Form'!$B75<>\"Subscriber\",'Enrollment Form'!$C75=\"ROC\"),\"-\",IF(AND('Enrollment Form'!$B75=\"Subscriber\",'Enrollment Form'!$C75=\"Enroll\",'Enrollment Form'!$AS75<>\"\"),\"Y\",\"N\")))","v":""},{"$f":"IF($B68=\"N\",\"\",IF($Q68=\"-\",\"-\",IF(AND($Q68=\"Y\",'Enrollment Form'!$AS75=\"No\"),\"-\",IF(AND($Q68=\"Y\",'Enrollment Form'!$AS75=\"Yes\",'Enrollment Form'!$AT75<>\"\"),\"Y\",\"N\"))))","v":""},{"$f":"IF($B68=\"N\",\"\",IF(OR('Enrollment Form'!$B75<>\"Subscriber\",'Enrollment Form'!$C75=\"ROC\"),\"-\",IF(AND('Enrollment Form'!$B75=\"Subscriber\",'Enrollment Form'!$C75=\"Enroll\",'Enrollment Form'!$CV75<>\"\"),\"Y\",\"N\")))","v":""},{"$f":"IF($B68=\"N\",\"\",IF($S68=\"-\",\"-\",IF(AND($S68=\"Y\",'Enrollment Form'!$CV75=\"No\"),\"-\",IF(AND($S68=\"Y\",'Enrollment Form'!$CV75=\"Yes\",'Enrollment Form'!$CW75<>\"\"),\"Y\",\"N\"))))","v":""},{"$f":"IF(OR('Enrollment Form'!$AY75=\"Yes\",'Enrollment Form'!$AY75=\"\"),\"-\",IF(OR(AND('Enrollment Form'!$AY75=\"No\",ISERROR(FIND(\"HMO\",VLOOKUP('Enrollment Form'!G75,'Enrollment Form'!H$11:J$1000,3,FALSE),1))=FALSE,COUNTA('Enrollment Form'!$AZ75:$BC75)=4),AND('Enrollment Form'!$AY75=\"No\",ISERROR(FIND(\"HMO\",VLOOKUP('Enrollment Form'!G75,'Enrollment Form'!H$11:J$1000,3,FALSE),1))=FALSE,COUNTA('Enrollment Form'!$BT75:$BW75)=4)),\"Y\",\"N\"))","v":"-"},{"$f":"IF($B68=\"N\",\"\",IF('Enrollment Form'!$B75=\"Subscriber\",\"-\",IF(COUNTA('Enrollment Form'!$BL75,'Enrollment Form'!$BN75)=2,\"Y\",\"N\")))","v":""},{"$f":"IF($B68=\"N\",\"\",IF(OR('Enrollment Form'!$AX75=\"\",'Enrollment Form'!$AX75=\"No\"),\"-\",IF(AND('Enrollment Form'!$AX75=\"Yes\",COUNTA('Enrollment Form'!$CR75)=1),\"Y\",\"N\")))","v":""},{"$f":"IF(OR('Enrollment Form'!$CR75=\"\",'Enrollment Form'!$CR75=\"No\"),\"-\",IF(COUNTA('Enrollment Form'!$CT75:$CU75)=2,\"Y\",\"N\"))","v":"-"},{"$f":"IF($B68=\"N\",\"\",IF(COUNTIF('Enrollment Form'!$DG75:$DP75,\"Other\")=COUNTA('Enrollment Form'!$DK75,'Enrollment Form'!$DH75,'Enrollment Form'!$DN75,'Enrollment Form'!$DQ75),\"Y\",\"N\"))","v":""},{"$f":"IF($B68=\"N\",\"\",IF(OR('Enrollment Form'!B75<>\"Subscriber\",'Enrollment Form'!C75=\"ROC\",COUNTIF('Enrollment Form'!AV75:AW75,\"Yes\")>=1),\"-\",IF(AND('Enrollment Form'!C75=\"Enroll\",COUNTIF('Enrollment Form'!AV75:AW75,\"No\")=2,'Enrollment Form'!AX75=\"\"),\"N\",\"Y\")))","v":""},{"$f":"IF(OR(B68=\"N\",'Enrollment Form'!B75<>\"Subscriber\",'Enrollment Form'!C75=\"ROC\",'Enrollment Form'!O75<>\"Multiple of Salary\"),\"-\",IF(COUNTA('Enrollment Form'!T75:U75)<2,\"N\",\"Y\"))","v":"-"},{"$f":"IF(B68=\"N\",\"\",IF(OR('Enrollment Form'!C75=\"ROC\",'Enrollment Form'!B75<>\"Subscriber\",'Enrollment Form'!O75=\"Waive\",'Enrollment Form'!O75=\"\"),\"-\",IF('Enrollment Form'!P75=\"\",\"N\",\"Y\")))","v":""},{"$f":"IF($B68=\"N\",\"\",IF(AND('Enrollment Form'!$C75=\"ROC\",'Enrollment Form'!$DR75<>\"\"),\"Y\",IF(AND('Enrollment Form'!$C75=\"ROC\",'Enrollment Form'!$DR75=\"\"),\"N\",IF(AND('Enrollment Form'!$C75=\"Enroll\",'Enrollment Form'!$B75=\"Subscriber\",'Enrollment Form'!$CX75=\"No\",'Enrollment Form'!$DR75=\"\"),\"N\",IF(AND('Enrollment Form'!$C75=\"Enroll\",'Enrollment Form'!$B75=\"Subscriber\",'Enrollment Form'!$CX75=\"Yes\"),\"-\",\"Y\")))))","v":""},{"$f":"IF($B68=\"N\",\"\",IF(AND('Enrollment Form'!$C75=\"ROC\",'Enrollment Form'!$DS75<>\"\"),\"Y\",IF(AND('Enrollment Form'!$C75=\"ROC\",'Enrollment Form'!$DS75=\"\"),\"N\",IF(AND('Enrollment Form'!$C75=\"Enroll\",'Enrollment Form'!$B75=\"Subscriber\",'Enrollment Form'!$CX75=\"No\",'Enrollment Form'!$DS75=\"\"),\"N\",IF(AND('Enrollment Form'!$C75=\"Enroll\",'Enrollment Form'!$B75=\"Subscriber\",'Enrollment Form'!$CX75=\"Yes\"),\"-\",\"Y\")))))","v":""},{"$f":"IF('Enrollment Form'!AH75=\"\",\"\",IF(ISERROR(SEARCH(\".\",'Enrollment Form'!AH75,SEARCH(\"@\",'Enrollment Form'!AH75))),\"N\",\"Y\"))","v":""},{"$f":"IF(OR($B68=\"N\",'Enrollment Form'!$G75=\"\"),\"\",IF('Enrollment Form'!$B75<>\"Subscriber\",\"-\",IF(COUNTIF('Enrollment Form'!$AV75:$AW75,\"Yes\")=2,\"N\",\"Y\")))","v":""},{"$f":"IF(OR('Enrollment Form'!$CJ75=\"\",'Enrollment Form'!$CJ75=\"No\"),\"-\",IF(AND('Enrollment Form'!$CJ75=\"Yes\",'Enrollment Form'!$CK75=\"\"),\"N\",\"Y\"))","v":"-"},{"$f":"IF(OR('Enrollment Form'!$CL75=\"\",'Enrollment Form'!$CL75=\"No\"),\"-\",IF(AND('Enrollment Form'!$CL75=\"Yes\",'Enrollment Form'!$CM75=\"\"),\"N\",\"Y\"))","v":"-"},{"$f":"IF(OR('Enrollment Form'!$CN75=\"\",'Enrollment Form'!$CN75=\"No\"),\"-\",IF(AND('Enrollment Form'!$CN75=\"Yes\",'Enrollment Form'!$CO75=\"\"),\"N\",\"Y\"))","v":"-"},{"$f":"IF(OR('Enrollment Form'!$CN75=\"\",'Enrollment Form'!$CN75=\"No\"),\"-\",IF(AND('Enrollment Form'!$CN75=\"Yes\",'Enrollment Form'!$CP75=\"\"),\"N\",\"Y\"))","v":"-"},{"$f":"IF('Enrollment Form'!B75<>\"Subscriber\",\"-\",IF(AND('Enrollment Form'!B75=\"Subscriber\",'Enrollment Form'!C75=\"Enroll\",'Enrollment Form'!AA75=\"\"),\"N\",\"Y\"))","v":"-"},{"$f":"IF(OR('Enrollment Form'!B75=\"Subscriber\",'Enrollment Form'!B75=\"\"),\"-\",IF('Enrollment Form'!BP75=\"\",\"N\",\"Y\"))","v":"-"},{"$f":"IF('Enrollment Form'!B75<>\"Subscriber\",\"-\",IF(AND('Enrollment Form'!B75=\"Subscriber\",'Enrollment Form'!G75=\"\"),\"N\",\"Y\"))","v":"-"},{"$f":"IF('Enrollment Form'!A75=\"\",\"\",IF('Enrollment Form'!B75=\"Subscriber\",\"-\",IF(AND('Enrollment Form'!B75<>\"Subscriber\",'Enrollment Form'!G75='Enrollment Form'!H75),\"N\",\"Y\")))","v":""},{"$f":"COUNTIF(C68:AN68,\"N\")","v":0}]
[76,{"$f":"IF('Enrollment Form'!$A76<>\"\",\"Y\",\"N\")","v":"N"},{"$f":"IF(AND('Enrollment Form'!$B76=\"\",'Enrollment Form'!$C76<>\"\"),\"N\",IF($B69=\"N\",\"\",\"Y\"))","v":""},{"$f":"IF(OR($B69=\"N\",'Enrollment Form'!G76=\"\"),\"\",IF('Enrollment Form'!$B76<>\"Subscriber\",\"\",IF('Enrollment Form'!$G76='Enrollment Form'!$H76,\"Y\",\"N\")))","v":""},{"$f":"IF($B69=\"N\",\"\",IF(AND(COUNTIFS('Enrollment Form'!$H$11:$H$1000,'Enrollment Form'!$H76,'Enrollment Form'!$B$11:$B$1000,'Enrollment Form'!$B76)>1,'Enrollment Form'!$H76<>\"\"),\"N\",\"Y\"))","v":""},{"$f":"IF($B69=\"N\",\"\",IF(LEN('Enrollment Form'!$Y76)=0,\"\",IF(LEN('Enrollment Form'!$Y76)<>5,\"N\",\"Y\")))","v":""},{"$f":"IF($B69=\"N\",\"\",IF(LEN('Enrollment Form'!$AD76=0),\"\",IF(LEN('Enrollment Form'!$AD76)<>5,\"N\",\"Y\")))","v":""},{"$f":"IF($B69=\"N\",\"\",IF(LEN('Enrollment Form'!$BS76=0),\"\",IF(LEN('Enrollment Form'!$BS76)<>5,\"N\",\"Y\")))","v":""},{"$f":"IF($B69=\"N\",\"\",IF(LEN('Enrollment Form'!$AE76)=0,\"\",IF(LEN('Enrollment Form'!$AE76)<>10,\"N\",\"Y\")))","v":""},{"$f":"IF($B69=\"N\",\"\",IF(LEN('Enrollment Form'!$AF76)=0,\"\",IF(LEN('Enrollment Form'!$AF76)<>10,\"N\",\"Y\")))","v":""},{"$f":"IF('Enrollment Form'!$O76<>\"Graded\",\"-\",IF(AND('Enrollment Form'!$O76=\"Graded\",'Enrollment Form'!$AR76<>\"\"),\"Y\",\"N\"))","v":"-"},{"$f":"IF($B69=\"N\",\"\",IF(OR('Enrollment Form'!$B76<>\"Subscriber\",'Enrollment Form'!$C76=\"ROC\"),\"-\",IF(AND('Enrollment Form'!$B76=\"Subscriber\",'Enrollment Form'!$C76=\"Enroll\",'Enrollment Form'!$AJ76<>\"\"),\"Y\",\"N\")))","v":""},{"$f":"IF($B69=\"N\",\"\",IF(OR('Enrollment Form'!$B76<>\"Subscriber\",'Enrollment Form'!$C76=\"ROC\"),\"-\",IF(AND('Enrollment Form'!$B76=\"Subscriber\",'Enrollment Form'!$C76=\"Enroll\",'Enrollment Form'!$AK76<>\"\"),\"Y\",\"N\")))","v":""},{"$f":"IF($B69=\"N\",\"\",IF(OR('Enrollment Form'!$B76<>\"Subscriber\",'Enrollment Form'!$C76=\"ROC\"),\"-\",IF(AND('Enrollment Form'!$B76=\"Subscriber\",'Enrollment Form'!$C76=\"Enroll\",'Enrollment Form'!$AL76<>\"\"),\"Y\",\"N\")))","v":""},{"$f":"IF($B69=\"N\",\"\",IF(OR('Enrollment Form'!$B76<>\"Subscriber\",'Enrollment Form'!$C76=\"ROC\"),\"-\",IF(AND('Enrollment Form'!$B76=\"Subscriber\",'Enrollment Form'!$C76=\"Enroll\",'Enrollment Form'!$AP76<>\"\"),\"Y\",\"N\")))","v":""},{"$f":"IF($B69=\"N\",\"\",IF(OR('Enrollment Form'!$B76<>\"Subscriber\",'Enrollment Form'!$C76=\"ROC\"),\"-\",IF(AND('Enrollment Form'!$B76=\"Subscriber\",'Enrollment Form'!$C76=\"Enroll\",'Enrollment Form'!$AQ76<>\"\"),\"Y\",\"N\")))","v":""},{"$f":"IF($B69=\"N\",\"\",IF(OR('Enrollment Form'!$B76<>\"Subscriber\",'Enrollment Form'!$C76=\"ROC\"),\"-\",IF(AND('Enrollment Form'!$B76=\"Subscriber\",'Enrollment Form'!$C76=\"Enroll\",'Enrollment Form'!$AS76<>\"\"),\"Y\",\"N\")))","v":""},{"$f":"IF($B69=\"N\",\"\",IF($Q69=\"-\",\"-\",IF(AND($Q69=\"Y\",'Enrollment Form'!$AS76=\"No\"),\"-\",IF(AND($Q69=\"Y\",'Enrollment Form'!$AS76=\"Yes\",'Enrollment Form'!$AT76<>\"\"),\"Y\",\"N\"))))","v":""},{"$f":"IF($B69=\"N\",\"\",IF(OR('Enrollment Form'!$B76<>\"Subscriber\",'Enrollment Form'!$C76=\"ROC\"),\"-\",IF(AND('Enrollment Form'!$B76=\"Subscriber\",'Enrollment Form'!$C76=\"Enroll\",'Enrollment Form'!$CV76<>\"\"),\"Y\",\"N\")))","v":""},{"$f":"IF($B69=\"N\",\"\",IF($S69=\"-\",\"-\",IF(AND($S69=\"Y\",'Enrollment Form'!$CV76=\"No\"),\"-\",IF(AND($S69=\"Y\",'Enrollment Form'!$CV76=\"Yes\",'Enrollment Form'!$CW76<>\"\"),\"Y\",\"N\"))))","v":""},{"$f":"IF(OR('Enrollment Form'!$AY76=\"Yes\",'Enrollment Form'!$AY76=\"\"),\"-\",IF(OR(AND('Enrollment Form'!$AY76=\"No\",ISERROR(FIND(\"HMO\",VLOOKUP('Enrollment Form'!G76,'Enrollment Form'!H$11:J$1000,3,FALSE),1))=FALSE,COUNTA('Enrollment Form'!$AZ76:$BC76)=4),AND('Enrollment Form'!$AY76=\"No\",ISERROR(FIND(\"HMO\",VLOOKUP('Enrollment Form'!G76,'Enrollment Form'!H$11:J$1000,3,FALSE),1))=FALSE,COUNTA('Enrollment Form'!$BT76:$BW76)=4)),\"Y\",\"N\"))","v":"-"},{"$f":"IF($B69=\"N\",\"\",IF('Enrollment Form'!$B76=\"Subscriber\",\"-\",IF(COUNTA('Enrollment Form'!$BL76,'Enrollment Form'!$BN76)=2,\"Y\",\"N\")))","v":""},{"$f":"IF($B69=\"N\",\"\",IF(OR('Enrollment Form'!$AX76=\"\",'Enrollment Form'!$AX76=\"No\"),\"-\",IF(AND('Enrollment Form'!$AX76=\"Yes\",COUNTA('Enrollment Form'!$CR76)=1),\"Y\",\"N\")))","v":""},{"$f":"IF(OR('Enrollment Form'!$CR76=\"\",'Enrollment Form'!$CR76=\"No\"),\"-\",IF(COUNTA('Enrollment Form'!$CT76:$CU76)=2,\"Y\",\"N\"))","v":"-"},{"$f":"IF($B69=\"N\",\"\",IF(COUNTIF('Enrollment Form'!$DG76:$DP76,\"Other\")=COUNTA('Enrollment Form'!$DK76,'Enrollment Form'!$DH76,'Enrollment Form'!$DN76,'Enrollment Form'!$DQ76),\"Y\",\"N\"))","v":""},{"$f":"IF($B69=\"N\",\"\",IF(OR('Enrollment Form'!B76<>\"Subscriber\",'Enrollment Form'!C76=\"ROC\",COUNTIF('Enrollment Form'!AV76:AW76,\"Yes\")>=1),\"-\",IF(AND('Enrollment Form'!C76=\"Enroll\",COUNTIF('Enrollment Form'!AV76:AW76,\"No\")=2,'Enrollment Form'!AX76=\"\"),\"N\",\"Y\")))","v":""},{"$f":"IF(OR(B69=\"N\",'Enrollment Form'!B76<>\"Subscriber\",'Enrollment Form'!C76=\"ROC\",'Enrollment Form'!O76<>\"Multiple of Salary\"),\"-\",IF(COUNTA('Enrollment Form'!T76:U76)<2,\"N\",\"Y\"))","v":"-"},{"$f":"IF(B69=\"N\",\"\",IF(OR('Enrollment Form'!C76=\"ROC\",'Enrollment Form'!B76<>\"Subscriber\",'Enrollment Form'!O76=\"Waive\",'Enrollment Form'!O76=\"\"),\"-\",IF('Enrollment Form'!P76=\"\",\"N\",\"Y\")))","v":""},{"$f":"IF($B69=\"N\",\"\",IF(AND('Enrollment Form'!$C76=\"ROC\",'Enrollment Form'!$DR76<>\"\"),\"Y\",IF(AND('Enrollment Form'!$C76=\"ROC\",'Enrollment Form'!$DR76=\"\"),\"N\",IF(AND('Enrollment Form'!$C76=\"Enroll\",'Enrollment Form'!$B76=\"Subscriber\",'Enrollment Form'!$CX76=\"No\",'Enrollment Form'!$DR76=\"\"),\"N\",IF(AND('Enrollment Form'!$C76=\"Enroll\",'Enrollment Form'!$B76=\"Subscriber\",'Enrollment Form'!$CX76=\"Yes\"),\"-\",\"Y\")))))","v":""},{"$f":"IF($B69=\"N\",\"\",IF(AND('Enrollment Form'!$C76=\"ROC\",'Enrollment Form'!$DS76<>\"\"),\"Y\",IF(AND('Enrollment Form'!$C76=\"ROC\",'Enrollment Form'!$DS76=\"\"),\"N\",IF(AND('Enrollment Form'!$C76=\"Enroll\",'Enrollment Form'!$B76=\"Subscriber\",'Enrollment Form'!$CX76=\"No\",'Enrollment Form'!$DS76=\"\"),\"N\",IF(AND('Enrollment Form'!$C76=\"Enroll\",'Enrollment Form'!$B76=\"Subscriber\",'Enrollment Form'!$CX76=\"Yes\"),\"-\",\"Y\")))))","v":""},{"$f":"IF('Enrollment Form'!AH76=\"\",\"\",IF(ISERROR(SEARCH(\".\",'Enrollment Form'!AH76,SEARCH(\"@\",'Enrollment Form'!AH76))),\"N\",\"Y\"))","v":""},{"$f":"IF(OR($B69=\"N\",'Enrollment Form'!$G76=\"\"),\"\",IF('Enrollment Form'!$B76<>\"Subscriber\",\"-\",IF(COUNTIF('Enrollment Form'!$AV76:$AW76,\"Yes\")=2,\"N\",\"Y\")))","v":""},{"$f":"IF(OR('Enrollment Form'!$CJ76=\"\",'Enrollment Form'!$CJ76=\"No\"),\"-\",IF(AND('Enrollment Form'!$CJ76=\"Yes\",'Enrollment Form'!$CK76=\"\"),\"N\",\"Y\"))","v":"-"},{"$f":"IF(OR('Enrollment Form'!$CL76=\"\",'Enrollment Form'!$CL76=\"No\"),\"-\",IF(AND('Enrollment Form'!$CL76=\"Yes\",'Enrollment Form'!$CM76=\"\"),\"N\",\"Y\"))","v":"-"},{"$f":"IF(OR('Enrollment Form'!$CN76=\"\",'Enrollment Form'!$CN76=\"No\"),\"-\",IF(AND('Enrollment Form'!$CN76=\"Yes\",'Enrollment Form'!$CO76=\"\"),\"N\",\"Y\"))","v":"-"},{"$f":"IF(OR('Enrollment Form'!$CN76=\"\",'Enrollment Form'!$CN76=\"No\"),\"-\",IF(AND('Enrollment Form'!$CN76=\"Yes\",'Enrollment Form'!$CP76=\"\"),\"N\",\"Y\"))","v":"-"},{"$f":"IF('Enrollment Form'!B76<>\"Subscriber\",\"-\",IF(AND('Enrollment Form'!B76=\"Subscriber\",'Enrollment Form'!C76=\"Enroll\",'Enrollment Form'!AA76=\"\"),\"N\",\"Y\"))","v":"-"},{"$f":"IF(OR('Enrollment Form'!B76=\"Subscriber\",'Enrollment Form'!B76=\"\"),\"-\",IF('Enrollment Form'!BP76=\"\",\"N\",\"Y\"))","v":"-"},{"$f":"IF('Enrollment Form'!B76<>\"Subscriber\",\"-\",IF(AND('Enrollment Form'!B76=\"Subscriber\",'Enrollment Form'!G76=\"\"),\"N\",\"Y\"))","v":"-"},{"$f":"IF('Enrollment Form'!A76=\"\",\"\",IF('Enrollment Form'!B76=\"Subscriber\",\"-\",IF(AND('Enrollment Form'!B76<>\"Subscriber\",'Enrollment Form'!G76='Enrollment Form'!H76),\"N\",\"Y\")))","v":""},0]
[{"$f":"1+A69","v":77},{"$f":"IF('Enrollment Form'!$A77<>\"\",\"Y\",\"N\")","v":"N"},{"$f":"IF(AND('Enrollment Form'!$B77=\"\",'Enrollment Form'!$C77<>\"\"),\"N\",IF($B70=\"N\",\"\",\"Y\"))","v":""},{"$f":"IF(OR($B70=\"N\",'Enrollment Form'!G77=\"\"),\"\",IF('Enrollment Form'!$B77<>\"Subscriber\",\"\",IF('Enrollment Form'!$G77='Enrollment Form'!$H77,\"Y\",\"N\")))","v":""},{"$f":"IF($B70=\"N\",\"\",IF(AND(COUNTIFS('Enrollment Form'!$H$11:$H$1000,'Enrollment Form'!$H77,'Enrollment Form'!$B$11:$B$1000,'Enrollment Form'!$B77)>1,'Enrollment Form'!$H77<>\"\"),\"N\",\"Y\"))","v":""},{"$f":"IF($B70=\"N\",\"\",IF(LEN('Enrollment Form'!$Y77)=0,\"\",IF(LEN('Enrollment Form'!$Y77)<>5,\"N\",\"Y\")))","v":""},{"$f":"IF($B70=\"N\",\"\",IF(LEN('Enrollment Form'!$AD77=0),\"\",IF(LEN('Enrollment Form'!$AD77)<>5,\"N\",\"Y\")))","v":""},{"$f":"IF($B70=\"N\",\"\",IF(LEN('Enrollment Form'!$BS77=0),\"\",IF(LEN('Enrollment Form'!$BS77)<>5,\"N\",\"Y\")))","v":""},{"$f":"IF($B70=\"N\",\"\",IF(LEN('Enrollment Form'!$AE77)=0,\"\",IF(LEN('Enrollment Form'!$AE77)<>10,\"N\",\"Y\")))","v":""},{"$f":"IF($B70=\"N\",\"\",IF(LEN('Enrollment Form'!$AF77)=0,\"\",IF(LEN('Enrollment Form'!$AF77)<>10,\"N\",\"Y\")))","v":""},{"$f":"IF('Enrollment Form'!$O77<>\"Graded\",\"-\",IF(AND('Enrollment Form'!$O77=\"Graded\",'Enrollment Form'!$AR77<>\"\"),\"Y\",\"N\"))","v":"-"},{"$f":"IF($B70=\"N\",\"\",IF(OR('Enrollment Form'!$B77<>\"Subscriber\",'Enrollment Form'!$C77=\"ROC\"),\"-\",IF(AND('Enrollment Form'!$B77=\"Subscriber\",'Enrollment Form'!$C77=\"Enroll\",'Enrollment Form'!$AJ77<>\"\"),\"Y\",\"N\")))","v":""},{"$f":"IF($B70=\"N\",\"\",IF(OR('Enrollment Form'!$B77<>\"Subscriber\",'Enrollment Form'!$C77=\"ROC\"),\"-\",IF(AND('Enrollment Form'!$B77=\"Subscriber\",'Enrollment Form'!$C77=\"Enroll\",'Enrollment Form'!$AK77<>\"\"),\"Y\",\"N\")))","v":""},{"$f":"IF($B70=\"N\",\"\",IF(OR('Enrollment Form'!$B77<>\"Subscriber\",'Enrollment Form'!$C77=\"ROC\"),\"-\",IF(AND('Enrollment Form'!$B77=\"Subscriber\",'Enrollment Form'!$C77=\"Enroll\",'Enrollment Form'!$AL77<>\"\"),\"Y\",\"N\")))","v":""},{"$f":"IF($B70=\"N\",\"\",IF(OR('Enrollment Form'!$B77<>\"Subscriber\",'Enrollment Form'!$C77=\"ROC\"),\"-\",IF(AND('Enrollment Form'!$B77=\"Subscriber\",'Enrollment Form'!$C77=\"Enroll\",'Enrollment Form'!$AP77<>\"\"),\"Y\",\"N\")))","v":""},{"$f":"IF($B70=\"N\",\"\",IF(OR('Enrollment Form'!$B77<>\"Subscriber\",'Enrollment Form'!$C77=\"ROC\"),\"-\",IF(AND('Enrollment Form'!$B77=\"Subscriber\",'Enrollment Form'!$C77=\"Enroll\",'Enrollment Form'!$AQ77<>\"\"),\"Y\",\"N\")))","v":""},{"$f":"IF($B70=\"N\",\"\",IF(OR('Enrollment Form'!$B77<>\"Subscriber\",'Enrollment Form'!$C77=\"ROC\"),\"-\",IF(AND('Enrollment Form'!$B77=\"Subscriber\",'Enrollment Form'!$C77=\"Enroll\",'Enrollment Form'!$AS77<>\"\"),\"Y\",\"N\")))","v":""},{"$f":"IF($B70=\"N\",\"\",IF($Q70=\"-\",\"-\",IF(AND($Q70=\"Y\",'Enrollment Form'!$AS77=\"No\"),\"-\",IF(AND($Q70=\"Y\",'Enrollment Form'!$AS77=\"Yes\",'Enrollment Form'!$AT77<>\"\"),\"Y\",\"N\"))))","v":""},{"$f":"IF($B70=\"N\",\"\",IF(OR('Enrollment Form'!$B77<>\"Subscriber\",'Enrollment Form'!$C77=\"ROC\"),\"-\",IF(AND('Enrollment Form'!$B77=\"Subscriber\",'Enrollment Form'!$C77=\"Enroll\",'Enrollment Form'!$CV77<>\"\"),\"Y\",\"N\")))","v":""},{"$f":"IF($B70=\"N\",\"\",IF($S70=\"-\",\"-\",IF(AND($S70=\"Y\",'Enrollment Form'!$CV77=\"No\"),\"-\",IF(AND($S70=\"Y\",'Enrollment Form'!$CV77=\"Yes\",'Enrollment Form'!$CW77<>\"\"),\"Y\",\"N\"))))","v":""},{"$f":"IF(OR('Enrollment Form'!$AY77=\"Yes\",'Enrollment Form'!$AY77=\"\"),\"-\",IF(OR(AND('Enrollment Form'!$AY77=\"No\",ISERROR(FIND(\"HMO\",VLOOKUP('Enrollment Form'!G77,'Enrollment Form'!H$11:J$1000,3,FALSE),1))=FALSE,COUNTA('Enrollment Form'!$AZ77:$BC77)=4),AND('Enrollment Form'!$AY77=\"No\",ISERROR(FIND(\"HMO\",VLOOKUP('Enrollment Form'!G77,'Enrollment Form'!H$11:J$1000,3,FALSE),1))=FALSE,COUNTA('Enrollment Form'!$BT77:$BW77)=4)),\"Y\",\"N\"))","v":"-"},{"$f":"IF($B70=\"N\",\"\",IF('Enrollment Form'!$B77=\"Subscriber\",\"-\",IF(COUNTA('Enrollment Form'!$BL77,'Enrollment Form'!$BN77)=2,\"Y\",\"N\")))","v":""},{"$f":"IF($B70=\"N\",\"\",IF(OR('Enrollment Form'!$AX77=\"\",'Enrollment Form'!$AX77=\"No\"),\"-\",IF(AND('Enrollment Form'!$AX77=\"Yes\",COUNTA('Enrollment Form'!$CR77)=1),\"Y\",\"N\")))","v":""},{"$f":"IF(OR('Enrollment Form'!$CR77=\"\",'Enrollment Form'!$CR77=\"No\"),\"-\",IF(COUNTA('Enrollment Form'!$CT77:$CU77)=2,\"Y\",\"N\"))","v":"-"},{"$f":"IF($B70=\"N\",\"\",IF(COUNTIF('Enrollment Form'!$DG77:$DP77,\"Other\")=COUNTA('Enrollment Form'!$DK77,'Enrollment Form'!$DH77,'Enrollment Form'!$DN77,'Enrollment Form'!$DQ77),\"Y\",\"N\"))","v":""},{"$f":"IF($B70=\"N\",\"\",IF(OR('Enrollment Form'!B77<>\"Subscriber\",'Enrollment Form'!C77=\"ROC\",COUNTIF('Enrollment Form'!AV77:AW77,\"Yes\")>=1),\"-\",IF(AND('Enrollment Form'!C77=\"Enroll\",COUNTIF('Enrollment Form'!AV77:AW77,\"No\")=2,'Enrollment Form'!AX77=\"\"),\"N\",\"Y\")))","v":""},{"$f":"IF(OR(B70=\"N\",'Enrollment Form'!B77<>\"Subscriber\",'Enrollment Form'!C77=\"ROC\",'Enrollment Form'!O77<>\"Multiple of Salary\"),\"-\",IF(COUNTA('Enrollment Form'!T77:U77)<2,\"N\",\"Y\"))","v":"-"},{"$f":"IF(B70=\"N\",\"\",IF(OR('Enrollment Form'!C77=\"ROC\",'Enrollment Form'!B77<>\"Subscriber\",'Enrollment Form'!O77=\"Waive\",'Enrollment Form'!O77=\"\"),\"-\",IF('Enrollment Form'!P77=\"\",\"N\",\"Y\")))","v":""},{"$f":"IF($B70=\"N\",\"\",IF(AND('Enrollment Form'!$C77=\"ROC\",'Enrollment Form'!$DR77<>\"\"),\"Y\",IF(AND('Enrollment Form'!$C77=\"ROC\",'Enrollment Form'!$DR77=\"\"),\"N\",IF(AND('Enrollment Form'!$C77=\"Enroll\",'Enrollment Form'!$B77=\"Subscriber\",'Enrollment Form'!$CX77=\"No\",'Enrollment Form'!$DR77=\"\"),\"N\",IF(AND('Enrollment Form'!$C77=\"Enroll\",'Enrollment Form'!$B77=\"Subscriber\",'Enrollment Form'!$CX77=\"Yes\"),\"-\",\"Y\")))))","v":""},{"$f":"IF($B70=\"N\",\"\",IF(AND('Enrollment Form'!$C77=\"ROC\",'Enrollment Form'!$DS77<>\"\"),\"Y\",IF(AND('Enrollment Form'!$C77=\"ROC\",'Enrollment Form'!$DS77=\"\"),\"N\",IF(AND('Enrollment Form'!$C77=\"Enroll\",'Enrollment Form'!$B77=\"Subscriber\",'Enrollment Form'!$CX77=\"No\",'Enrollment Form'!$DS77=\"\"),\"N\",IF(AND('Enrollment Form'!$C77=\"Enroll\",'Enrollment Form'!$B77=\"Subscriber\",'Enrollment Form'!$CX77=\"Yes\"),\"-\",\"Y\")))))","v":""},{"$f":"IF('Enrollment Form'!AH77=\"\",\"\",IF(ISERROR(SEARCH(\".\",'Enrollment Form'!AH77,SEARCH(\"@\",'Enrollment Form'!AH77))),\"N\",\"Y\"))","v":""},{"$f":"IF(OR($B70=\"N\",'Enrollment Form'!$G77=\"\"),\"\",IF('Enrollment Form'!$B77<>\"Subscriber\",\"-\",IF(COUNTIF('Enrollment Form'!$AV77:$AW77,\"Yes\")=2,\"N\",\"Y\")))","v":""},{"$f":"IF(OR('Enrollment Form'!$CJ77=\"\",'Enrollment Form'!$CJ77=\"No\"),\"-\",IF(AND('Enrollment Form'!$CJ77=\"Yes\",'Enrollment Form'!$CK77=\"\"),\"N\",\"Y\"))","v":"-"},{"$f":"IF(OR('Enrollment Form'!$CL77=\"\",'Enrollment Form'!$CL77=\"No\"),\"-\",IF(AND('Enrollment Form'!$CL77=\"Yes\",'Enrollment Form'!$CM77=\"\"),\"N\",\"Y\"))","v":"-"},{"$f":"IF(OR('Enrollment Form'!$CN77=\"\",'Enrollment Form'!$CN77=\"No\"),\"-\",IF(AND('Enrollment Form'!$CN77=\"Yes\",'Enrollment Form'!$CO77=\"\"),\"N\",\"Y\"))","v":"-"},{"$f":"IF(OR('Enrollment Form'!$CN77=\"\",'Enrollment Form'!$CN77=\"No\"),\"-\",IF(AND('Enrollment Form'!$CN77=\"Yes\",'Enrollment Form'!$CP77=\"\"),\"N\",\"Y\"))","v":"-"},{"$f":"IF('Enrollment Form'!B77<>\"Subscriber\",\"-\",IF(AND('Enrollment Form'!B77=\"Subscriber\",'Enrollment Form'!C77=\"Enroll\",'Enrollment Form'!AA77=\"\"),\"N\",\"Y\"))","v":"-"},{"$f":"IF(OR('Enrollment Form'!B77=\"Subscriber\",'Enrollment Form'!B77=\"\"),\"-\",IF('Enrollment Form'!BP77=\"\",\"N\",\"Y\"))","v":"-"},{"$f":"IF('Enrollment Form'!B77<>\"Subscriber\",\"-\",IF(AND('Enrollment Form'!B77=\"Subscriber\",'Enrollment Form'!G77=\"\"),\"N\",\"Y\"))","v":"-"},{"$f":"IF('Enrollment Form'!A77=\"\",\"\",IF('Enrollment Form'!B77=\"Subscriber\",\"-\",IF(AND('Enrollment Form'!B77<>\"Subscriber\",'Enrollment Form'!G77='Enrollment Form'!H77),\"N\",\"Y\")))","v":""},0]
[78,{"$f":"IF('Enrollment Form'!$A78<>\"\",\"Y\",\"N\")","v":"N"},{"$f":"IF(AND('Enrollment Form'!$B78=\"\",'Enrollment Form'!$C78<>\"\"),\"N\",IF($B71=\"N\",\"\",\"Y\"))","v":""},{"$f":"IF(OR($B71=\"N\",'Enrollment Form'!G78=\"\"),\"\",IF('Enrollment Form'!$B78<>\"Subscriber\",\"\",IF('Enrollment Form'!$G78='Enrollment Form'!$H78,\"Y\",\"N\")))","v":""},{"$f":"IF($B71=\"N\",\"\",IF(AND(COUNTIFS('Enrollment Form'!$H$11:$H$1000,'Enrollment Form'!$H78,'Enrollment Form'!$B$11:$B$1000,'Enrollment Form'!$B78)>1,'Enrollment Form'!$H78<>\"\"),\"N\",\"Y\"))","v":""},{"$f":"IF($B71=\"N\",\"\",IF(LEN('Enrollment Form'!$Y78)=0,\"\",IF(LEN('Enrollment Form'!$Y78)<>5,\"N\",\"Y\")))","v":""},{"$f":"IF($B71=\"N\",\"\",IF(LEN('Enrollment Form'!$AD78=0),\"\",IF(LEN('Enrollment Form'!$AD78)<>5,\"N\",\"Y\")))","v":""},{"$f":"IF($B71=\"N\",\"\",IF(LEN('Enrollment Form'!$BS78=0),\"\",IF(LEN('Enrollment Form'!$BS78)<>5,\"N\",\"Y\")))","v":""},{"$f":"IF($B71=\"N\",\"\",IF(LEN('Enrollment Form'!$AE78)=0,\"\",IF(LEN('Enrollment Form'!$AE78)<>10,\"N\",\"Y\")))","v":""},{"$f":"IF($B71=\"N\",\"\",IF(LEN('Enrollment Form'!$AF78)=0,\"\",IF(LEN('Enrollment Form'!$AF78)<>10,\"N\",\"Y\")))","v":""},{"$f":"IF('Enrollment Form'!$O78<>\"Graded\",\"-\",IF(AND('Enrollment Form'!$O78=\"Graded\",'Enrollment Form'!$AR78<>\"\"),\"Y\",\"N\"))","v":"-"},{"$f":"IF($B71=\"N\",\"\",IF(OR('Enrollment Form'!$B78<>\"Subscriber\",'Enrollment Form'!$C78=\"ROC\"),\"-\",IF(AND('Enrollment Form'!$B78=\"Subscriber\",'Enrollment Form'!$C78=\"Enroll\",'Enrollment Form'!$AJ78<>\"\"),\"Y\",\"N\")))","v":""},{"$f":"IF($B71=\"N\",\"\",IF(OR('Enrollment Form'!$B78<>\"Subscriber\",'Enrollment Form'!$C78=\"ROC\"),\"-\",IF(AND('Enrollment Form'!$B78=\"Subscriber\",'Enrollment Form'!$C78=\"Enroll\",'Enrollment Form'!$AK78<>\"\"),\"Y\",\"N\")))","v":""},{"$f":"IF($B71=\"N\",\"\",IF(OR('Enrollment Form'!$B78<>\"Subscriber\",'Enrollment Form'!$C78=\"ROC\"),\"-\",IF(AND('Enrollment Form'!$B78=\"Subscriber\",'Enrollment Form'!$C78=\"Enroll\",'Enrollment Form'!$AL78<>\"\"),\"Y\",\"N\")))","v":""},{"$f":"IF($B71=\"N\",\"\",IF(OR('Enrollment Form'!$B78<>\"Subscriber\",'Enrollment Form'!$C78=\"ROC\"),\"-\",IF(AND('Enrollment Form'!$B78=\"Subscriber\",'Enrollment Form'!$C78=\"Enroll\",'Enrollment Form'!$AP78<>\"\"),\"Y\",\"N\")))","v":""},{"$f":"IF($B71=\"N\",\"\",IF(OR('Enrollment Form'!$B78<>\"Subscriber\",'Enrollment Form'!$C78=\"ROC\"),\"-\",IF(AND('Enrollment Form'!$B78=\"Subscriber\",'Enrollment Form'!$C78=\"Enroll\",'Enrollment Form'!$AQ78<>\"\"),\"Y\",\"N\")))","v":""},{"$f":"IF($B71=\"N\",\"\",IF(OR('Enrollment Form'!$B78<>\"Subscriber\",'Enrollment Form'!$C78=\"ROC\"),\"-\",IF(AND('Enrollment Form'!$B78=\"Subscriber\",'Enrollment Form'!$C78=\"Enroll\",'Enrollment Form'!$AS78<>\"\"),\"Y\",\"N\")))","v":""},{"$f":"IF($B71=\"N\",\"\",IF($Q71=\"-\",\"-\",IF(AND($Q71=\"Y\",'Enrollment Form'!$AS78=\"No\"),\"-\",IF(AND($Q71=\"Y\",'Enrollment Form'!$AS78=\"Yes\",'Enrollment Form'!$AT78<>\"\"),\"Y\",\"N\"))))","v":""},{"$f":"IF($B71=\"N\",\"\",IF(OR('Enrollment Form'!$B78<>\"Subscriber\",'Enrollment Form'!$C78=\"ROC\"),\"-\",IF(AND('Enrollment Form'!$B78=\"Subscriber\",'Enrollment Form'!$C78=\"Enroll\",'Enrollment Form'!$CV78<>\"\"),\"Y\",\"N\")))","v":""},{"$f":"IF($B71=\"N\",\"\",IF($S71=\"-\",\"-\",IF(AND($S71=\"Y\",'Enrollment Form'!$CV78=\"No\"),\"-\",IF(AND($S71=\"Y\",'Enrollment Form'!$CV78=\"Yes\",'Enrollment Form'!$CW78<>\"\"),\"Y\",\"N\"))))","v":""},{"$f":"IF(OR('Enrollment Form'!$AY78=\"Yes\",'Enrollment Form'!$AY78=\"\"),\"-\",IF(OR(AND('Enrollment Form'!$AY78=\"No\",ISERROR(FIND(\"HMO\",VLOOKUP('Enrollment Form'!G78,'Enrollment Form'!H$11:J$1000,3,FALSE),1))=FALSE,COUNTA('Enrollment Form'!$AZ78:$BC78)=4),AND('Enrollment Form'!$AY78=\"No\",ISERROR(FIND(\"HMO\",VLOOKUP('Enrollment Form'!G78,'Enrollment Form'!H$11:J$1000,3,FALSE),1))=FALSE,COUNTA('Enrollment Form'!$BT78:$BW78)=4)),\"Y\",\"N\"))","v":"-"},{"$f":"IF($B71=\"N\",\"\",IF('Enrollment Form'!$B78=\"Subscriber\",\"-\",IF(COUNTA('Enrollment Form'!$BL78,'Enrollment Form'!$BN78)=2,\"Y\",\"N\")))","v":""},{"$f":"IF($B71=\"N\",\"\",IF(OR('Enrollment Form'!$AX78=\"\",'Enrollment Form'!$AX78=\"No\"),\"-\",IF(AND('Enrollment Form'!$AX78=\"Yes\",COUNTA('Enrollment Form'!$CR78)=1),\"Y\",\"N\")))","v":""},{"$f":"IF(OR('Enrollment Form'!$CR78=\"\",'Enrollment Form'!$CR78=\"No\"),\"-\",IF(COUNTA('Enrollment Form'!$CT78:$CU78)=2,\"Y\",\"N\"))","v":"-"},{"$f":"IF($B71=\"N\",\"\",IF(COUNTIF('Enrollment Form'!$DG78:$DP78,\"Other\")=COUNTA('Enrollment Form'!$DK78,'Enrollment Form'!$DH78,'Enrollment Form'!$DN78,'Enrollment Form'!$DQ78),\"Y\",\"N\"))","v":""},{"$f":"IF($B71=\"N\",\"\",IF(OR('Enrollment Form'!B78<>\"Subscriber\",'Enrollment Form'!C78=\"ROC\",COUNTIF('Enrollment Form'!AV78:AW78,\"Yes\")>=1),\"-\",IF(AND('Enrollment Form'!C78=\"Enroll\",COUNTIF('Enrollment Form'!AV78:AW78,\"No\")=2,'Enrollment Form'!AX78=\"\"),\"N\",\"Y\")))","v":""},{"$f":"IF(OR(B71=\"N\",'Enrollment Form'!B78<>\"Subscriber\",'Enrollment Form'!C78=\"ROC\",'Enrollment Form'!O78<>\"Multiple of Salary\"),\"-\",IF(COUNTA('Enrollment Form'!T78:U78)<2,\"N\",\"Y\"))","v":"-"},{"$f":"IF(B71=\"N\",\"\",IF(OR('Enrollment Form'!C78=\"ROC\",'Enrollment Form'!B78<>\"Subscriber\",'Enrollment Form'!O78=\"Waive\",'Enrollment Form'!O78=\"\"),\"-\",IF('Enrollment Form'!P78=\"\",\"N\",\"Y\")))","v":""},{"$f":"IF($B71=\"N\",\"\",IF(AND('Enrollment Form'!$C78=\"ROC\",'Enrollment Form'!$DR78<>\"\"),\"Y\",IF(AND('Enrollment Form'!$C78=\"ROC\",'Enrollment Form'!$DR78=\"\"),\"N\",IF(AND('Enrollment Form'!$C78=\"Enroll\",'Enrollment Form'!$B78=\"Subscriber\",'Enrollment Form'!$CX78=\"No\",'Enrollment Form'!$DR78=\"\"),\"N\",IF(AND('Enrollment Form'!$C78=\"Enroll\",'Enrollment Form'!$B78=\"Subscriber\",'Enrollment Form'!$CX78=\"Yes\"),\"-\",\"Y\")))))","v":""},{"$f":"IF($B71=\"N\",\"\",IF(AND('Enrollment Form'!$C78=\"ROC\",'Enrollment Form'!$DS78<>\"\"),\"Y\",IF(AND('Enrollment Form'!$C78=\"ROC\",'Enrollment Form'!$DS78=\"\"),\"N\",IF(AND('Enrollment Form'!$C78=\"Enroll\",'Enrollment Form'!$B78=\"Subscriber\",'Enrollment Form'!$CX78=\"No\",'Enrollment Form'!$DS78=\"\"),\"N\",IF(AND('Enrollment Form'!$C78=\"Enroll\",'Enrollment Form'!$B78=\"Subscriber\",'Enrollment Form'!$CX78=\"Yes\"),\"-\",\"Y\")))))","v":""},{"$f":"IF('Enrollment Form'!AH78=\"\",\"\",IF(ISERROR(SEARCH(\".\",'Enrollment Form'!AH78,SEARCH(\"@\",'Enrollment Form'!AH78))),\"N\",\"Y\"))","v":""},{"$f":"IF(OR($B71=\"N\",'Enrollment Form'!$G78=\"\"),\"\",IF('Enrollment Form'!$B78<>\"Subscriber\",\"-\",IF(COUNTIF('Enrollment Form'!$AV78:$AW78,\"Yes\")=2,\"N\",\"Y\")))","v":""},{"$f":"IF(OR('Enrollment Form'!$CJ78=\"\",'Enrollment Form'!$CJ78=\"No\"),\"-\",IF(AND('Enrollment Form'!$CJ78=\"Yes\",'Enrollment Form'!$CK78=\"\"),\"N\",\"Y\"))","v":"-"},{"$f":"IF(OR('Enrollment Form'!$CL78=\"\",'Enrollment Form'!$CL78=\"No\"),\"-\",IF(AND('Enrollment Form'!$CL78=\"Yes\",'Enrollment Form'!$CM78=\"\"),\"N\",\"Y\"))","v":"-"},{"$f":"IF(OR('Enrollment Form'!$CN78=\"\",'Enrollment Form'!$CN78=\"No\"),\"-\",IF(AND('Enrollment Form'!$CN78=\"Yes\",'Enrollment Form'!$CO78=\"\"),\"N\",\"Y\"))","v":"-"},{"$f":"IF(OR('Enrollment Form'!$CN78=\"\",'Enrollment Form'!$CN78=\"No\"),\"-\",IF(AND('Enrollment Form'!$CN78=\"Yes\",'Enrollment Form'!$CP78=\"\"),\"N\",\"Y\"))","v":"-"},{"$f":"IF('Enrollment Form'!B78<>\"Subscriber\",\"-\",IF(AND('Enrollment Form'!B78=\"Subscriber\",'Enrollment Form'!C78=\"Enroll\",'Enrollment Form'!AA78=\"\"),\"N\",\"Y\"))","v":"-"},{"$f":"IF(OR('Enrollment Form'!B78=\"Subscriber\",'Enrollment Form'!B78=\"\"),\"-\",IF('Enrollment Form'!BP78=\"\",\"N\",\"Y\"))","v":"-"},{"$f":"IF('Enrollment Form'!B78<>\"Subscriber\",\"-\",IF(AND('Enrollment Form'!B78=\"Subscriber\",'Enrollment Form'!G78=\"\"),\"N\",\"Y\"))","v":"-"},{"$f":"IF('Enrollment Form'!A78=\"\",\"\",IF('Enrollment Form'!B78=\"Subscriber\",\"-\",IF(AND('Enrollment Form'!B78<>\"Subscriber\",'Enrollment Form'!G78='Enrollment Form'!H78),\"N\",\"Y\")))","v":""},0]
[79,{"$f":"IF('Enrollment Form'!$A79<>\"\",\"Y\",\"N\")","v":"N"},{"$f":"IF(AND('Enrollment Form'!$B79=\"\",'Enrollment Form'!$C79<>\"\"),\"N\",IF($B72=\"N\",\"\",\"Y\"))","v":""},{"$f":"IF(OR($B72=\"N\",'Enrollment Form'!G79=\"\"),\"\",IF('Enrollment Form'!$B79<>\"Subscriber\",\"\",IF('Enrollment Form'!$G79='Enrollment Form'!$H79,\"Y\",\"N\")))","v":""},{"$f":"IF($B72=\"N\",\"\",IF(AND(COUNTIFS('Enrollment Form'!$H$11:$H$1000,'Enrollment Form'!$H79,'Enrollment Form'!$B$11:$B$1000,'Enrollment Form'!$B79)>1,'Enrollment Form'!$H79<>\"\"),\"N\",\"Y\"))","v":""},{"$f":"IF($B72=\"N\",\"\",IF(LEN('Enrollment Form'!$Y79)=0,\"\",IF(LEN('Enrollment Form'!$Y79)<>5,\"N\",\"Y\")))","v":""},{"$f":"IF($B72=\"N\",\"\",IF(LEN('Enrollment Form'!$AD79=0),\"\",IF(LEN('Enrollment Form'!$AD79)<>5,\"N\",\"Y\")))","v":""},{"$f":"IF($B72=\"N\",\"\",IF(LEN('Enrollment Form'!$BS79=0),\"\",IF(LEN('Enrollment Form'!$BS79)<>5,\"N\",\"Y\")))","v":""},{"$f":"IF($B72=\"N\",\"\",IF(LEN('Enrollment Form'!$AE79)=0,\"\",IF(LEN('Enrollment Form'!$AE79)<>10,\"N\",\"Y\")))","v":""},{"$f":"IF($B72=\"N\",\"\",IF(LEN('Enrollment Form'!$AF79)=0,\"\",IF(LEN('Enrollment Form'!$AF79)<>10,\"N\",\"Y\")))","v":""},{"$f":"IF('Enrollment Form'!$O79<>\"Graded\",\"-\",IF(AND('Enrollment Form'!$O79=\"Graded\",'Enrollment Form'!$AR79<>\"\"),\"Y\",\"N\"))","v":"-"},{"$f":"IF($B72=\"N\",\"\",IF(OR('Enrollment Form'!$B79<>\"Subscriber\",'Enrollment Form'!$C79=\"ROC\"),\"-\",IF(AND('Enrollment Form'!$B79=\"Subscriber\",'Enrollment Form'!$C79=\"Enroll\",'Enrollment Form'!$AJ79<>\"\"),\"Y\",\"N\")))","v":""},{"$f":"IF($B72=\"N\",\"\",IF(OR('Enrollment Form'!$B79<>\"Subscriber\",'Enrollment Form'!$C79=\"ROC\"),\"-\",IF(AND('Enrollment Form'!$B79=\"Subscriber\",'Enrollment Form'!$C79=\"Enroll\",'Enrollment Form'!$AK79<>\"\"),\"Y\",\"N\")))","v":""},{"$f":"IF($B72=\"N\",\"\",IF(OR('Enrollment Form'!$B79<>\"Subscriber\",'Enrollment Form'!$C79=\"ROC\"),\"-\",IF(AND('Enrollment Form'!$B79=\"Subscriber\",'Enrollment Form'!$C79=\"Enroll\",'Enrollment Form'!$AL79<>\"\"),\"Y\",\"N\")))","v":""},{"$f":"IF($B72=\"N\",\"\",IF(OR('Enrollment Form'!$B79<>\"Subscriber\",'Enrollment Form'!$C79=\"ROC\"),\"-\",IF(AND('Enrollment Form'!$B79=\"Subscriber\",'Enrollment Form'!$C79=\"Enroll\",'Enrollment Form'!$AP79<>\"\"),\"Y\",\"N\")))","v":""},{"$f":"IF($B72=\"N\",\"\",IF(OR('Enrollment Form'!$B79<>\"Subscriber\",'Enrollment Form'!$C79=\"ROC\"),\"-\",IF(AND('Enrollment Form'!$B79=\"Subscriber\",'Enrollment Form'!$C79=\"Enroll\",'Enrollment Form'!$AQ79<>\"\"),\"Y\",\"N\")))","v":""},{"$f":"IF($B72=\"N\",\"\",IF(OR('Enrollment Form'!$B79<>\"Subscriber\",'Enrollment Form'!$C79=\"ROC\"),\"-\",IF(AND('Enrollment Form'!$B79=\"Subscriber\",'Enrollment Form'!$C79=\"Enroll\",'Enrollment Form'!$AS79<>\"\"),\"Y\",\"N\")))","v":""},{"$f":"IF($B72=\"N\",\"\",IF($Q72=\"-\",\"-\",IF(AND($Q72=\"Y\",'Enrollment Form'!$AS79=\"No\"),\"-\",IF(AND($Q72=\"Y\",'Enrollment Form'!$AS79=\"Yes\",'Enrollment Form'!$AT79<>\"\"),\"Y\",\"N\"))))","v":""},{"$f":"IF($B72=\"N\",\"\",IF(OR('Enrollment Form'!$B79<>\"Subscriber\",'Enrollment Form'!$C79=\"ROC\"),\"-\",IF(AND('Enrollment Form'!$B79=\"Subscriber\",'Enrollment Form'!$C79=\"Enroll\",'Enrollment Form'!$CV79<>\"\"),\"Y\",\"N\")))","v":""},{"$f":"IF($B72=\"N\",\"\",IF($S72=\"-\",\"-\",IF(AND($S72=\"Y\",'Enrollment Form'!$CV79=\"No\"),\"-\",IF(AND($S72=\"Y\",'Enrollment Form'!$CV79=\"Yes\",'Enrollment Form'!$CW79<>\"\"),\"Y\",\"N\"))))","v":""},{"$f":"IF(OR('Enrollment Form'!$AY79=\"Yes\",'Enrollment Form'!$AY79=\"\"),\"-\",IF(OR(AND('Enrollment Form'!$AY79=\"No\",ISERROR(FIND(\"HMO\",VLOOKUP('Enrollment Form'!G79,'Enrollment Form'!H$11:J$1000,3,FALSE),1))=FALSE,COUNTA('Enrollment Form'!$AZ79:$BC79)=4),AND('Enrollment Form'!$AY79=\"No\",ISERROR(FIND(\"HMO\",VLOOKUP('Enrollment Form'!G79,'Enrollment Form'!H$11:J$1000,3,FALSE),1))=FALSE,COUNTA('Enrollment Form'!$BT79:$BW79)=4)),\"Y\",\"N\"))","v":"-"},{"$f":"IF($B72=\"N\",\"\",IF('Enrollment Form'!$B79=\"Subscriber\",\"-\",IF(COUNTA('Enrollment Form'!$BL79,'Enrollment Form'!$BN79)=2,\"Y\",\"N\")))","v":""},{"$f":"IF($B72=\"N\",\"\",IF(OR('Enrollment Form'!$AX79=\"\",'Enrollment Form'!$AX79=\"No\"),\"-\",IF(AND('Enrollment Form'!$AX79=\"Yes\",COUNTA('Enrollment Form'!$CR79)=1),\"Y\",\"N\")))","v":""},{"$f":"IF(OR('Enrollment Form'!$CR79=\"\",'Enrollment Form'!$CR79=\"No\"),\"-\",IF(COUNTA('Enrollment Form'!$CT79:$CU79)=2,\"Y\",\"N\"))","v":"-"},{"$f":"IF($B72=\"N\",\"\",IF(COUNTIF('Enrollment Form'!$DG79:$DP79,\"Other\")=COUNTA('Enrollment Form'!$DK79,'Enrollment Form'!$DH79,'Enrollment Form'!$DN79,'Enrollment Form'!$DQ79),\"Y\",\"N\"))","v":""},{"$f":"IF($B72=\"N\",\"\",IF(OR('Enrollment Form'!B79<>\"Subscriber\",'Enrollment Form'!C79=\"ROC\",COUNTIF('Enrollment Form'!AV79:AW79,\"Yes\")>=1),\"-\",IF(AND('Enrollment Form'!C79=\"Enroll\",COUNTIF('Enrollment Form'!AV79:AW79,\"No\")=2,'Enrollment Form'!AX79=\"\"),\"N\",\"Y\")))","v":""},{"$f":"IF(OR(B72=\"N\",'Enrollment Form'!B79<>\"Subscriber\",'Enrollment Form'!C79=\"ROC\",'Enrollment Form'!O79<>\"Multiple of Salary\"),\"-\",IF(COUNTA('Enrollment Form'!T79:U79)<2,\"N\",\"Y\"))","v":"-"},{"$f":"IF(B72=\"N\",\"\",IF(OR('Enrollment Form'!C79=\"ROC\",'Enrollment Form'!B79<>\"Subscriber\",'Enrollment Form'!O79=\"Waive\",'Enrollment Form'!O79=\"\"),\"-\",IF('Enrollment Form'!P79=\"\",\"N\",\"Y\")))","v":""},{"$f":"IF($B72=\"N\",\"\",IF(AND('Enrollment Form'!$C79=\"ROC\",'Enrollment Form'!$DR79<>\"\"),\"Y\",IF(AND('Enrollment Form'!$C79=\"ROC\",'Enrollment Form'!$DR79=\"\"),\"N\",IF(AND('Enrollment Form'!$C79=\"Enroll\",'Enrollment Form'!$B79=\"Subscriber\",'Enrollment Form'!$CX79=\"No\",'Enrollment Form'!$DR79=\"\"),\"N\",IF(AND('Enrollment Form'!$C79=\"Enroll\",'Enrollment Form'!$B79=\"Subscriber\",'Enrollment Form'!$CX79=\"Yes\"),\"-\",\"Y\")))))","v":""},{"$f":"IF($B72=\"N\",\"\",IF(AND('Enrollment Form'!$C79=\"ROC\",'Enrollment Form'!$DS79<>\"\"),\"Y\",IF(AND('Enrollment Form'!$C79=\"ROC\",'Enrollment Form'!$DS79=\"\"),\"N\",IF(AND('Enrollment Form'!$C79=\"Enroll\",'Enrollment Form'!$B79=\"Subscriber\",'Enrollment Form'!$CX79=\"No\",'Enrollment Form'!$DS79=\"\"),\"N\",IF(AND('Enrollment Form'!$C79=\"Enroll\",'Enrollment Form'!$B79=\"Subscriber\",'Enrollment Form'!$CX79=\"Yes\"),\"-\",\"Y\")))))","v":""},{"$f":"IF('Enrollment Form'!AH79=\"\",\"\",IF(ISERROR(SEARCH(\".\",'Enrollment Form'!AH79,SEARCH(\"@\",'Enrollment Form'!AH79))),\"N\",\"Y\"))","v":""},{"$f":"IF(OR($B72=\"N\",'Enrollment Form'!$G79=\"\"),\"\",IF('Enrollment Form'!$B79<>\"Subscriber\",\"-\",IF(COUNTIF('Enrollment Form'!$AV79:$AW79,\"Yes\")=2,\"N\",\"Y\")))","v":""},{"$f":"IF(OR('Enrollment Form'!$CJ79=\"\",'Enrollment Form'!$CJ79=\"No\"),\"-\",IF(AND('Enrollment Form'!$CJ79=\"Yes\",'Enrollment Form'!$CK79=\"\"),\"N\",\"Y\"))","v":"-"},{"$f":"IF(OR('Enrollment Form'!$CL79=\"\",'Enrollment Form'!$CL79=\"No\"),\"-\",IF(AND('Enrollment Form'!$CL79=\"Yes\",'Enrollment Form'!$CM79=\"\"),\"N\",\"Y\"))","v":"-"},{"$f":"IF(OR('Enrollment Form'!$CN79=\"\",'Enrollment Form'!$CN79=\"No\"),\"-\",IF(AND('Enrollment Form'!$CN79=\"Yes\",'Enrollment Form'!$CO79=\"\"),\"N\",\"Y\"))","v":"-"},{"$f":"IF(OR('Enrollment Form'!$CN79=\"\",'Enrollment Form'!$CN79=\"No\"),\"-\",IF(AND('Enrollment Form'!$CN79=\"Yes\",'Enrollment Form'!$CP79=\"\"),\"N\",\"Y\"))","v":"-"},{"$f":"IF('Enrollment Form'!B79<>\"Subscriber\",\"-\",IF(AND('Enrollment Form'!B79=\"Subscriber\",'Enrollment Form'!C79=\"Enroll\",'Enrollment Form'!AA79=\"\"),\"N\",\"Y\"))","v":"-"},{"$f":"IF(OR('Enrollment Form'!B79=\"Subscriber\",'Enrollment Form'!B79=\"\"),\"-\",IF('Enrollment Form'!BP79=\"\",\"N\",\"Y\"))","v":"-"},{"$f":"IF('Enrollment Form'!B79<>\"Subscriber\",\"-\",IF(AND('Enrollment Form'!B79=\"Subscriber\",'Enrollment Form'!G79=\"\"),\"N\",\"Y\"))","v":"-"},{"$f":"IF('Enrollment Form'!A79=\"\",\"\",IF('Enrollment Form'!B79=\"Subscriber\",\"-\",IF(AND('Enrollment Form'!B79<>\"Subscriber\",'Enrollment Form'!G79='Enrollment Form'!H79),\"N\",\"Y\")))","v":""},0]
[80,{"$f":"IF('Enrollment Form'!$A80<>\"\",\"Y\",\"N\")","v":"N"},{"$f":"IF(AND('Enrollment Form'!$B80=\"\",'Enrollment Form'!$C80<>\"\"),\"N\",IF($B73=\"N\",\"\",\"Y\"))","v":""},{"$f":"IF(OR($B73=\"N\",'Enrollment Form'!G80=\"\"),\"\",IF('Enrollment Form'!$B80<>\"Subscriber\",\"\",IF('Enrollment Form'!$G80='Enrollment Form'!$H80,\"Y\",\"N\")))","v":""},{"$f":"IF($B73=\"N\",\"\",IF(AND(COUNTIFS('Enrollment Form'!$H$11:$H$1000,'Enrollment Form'!$H80,'Enrollment Form'!$B$11:$B$1000,'Enrollment Form'!$B80)>1,'Enrollment Form'!$H80<>\"\"),\"N\",\"Y\"))","v":""},{"$f":"IF($B73=\"N\",\"\",IF(LEN('Enrollment Form'!$Y80)=0,\"\",IF(LEN('Enrollment Form'!$Y80)<>5,\"N\",\"Y\")))","v":""},{"$f":"IF($B73=\"N\",\"\",IF(LEN('Enrollment Form'!$AD80=0),\"\",IF(LEN('Enrollment Form'!$AD80)<>5,\"N\",\"Y\")))","v":""},{"$f":"IF($B73=\"N\",\"\",IF(LEN('Enrollment Form'!$BS80=0),\"\",IF(LEN('Enrollment Form'!$BS80)<>5,\"N\",\"Y\")))","v":""},{"$f":"IF($B73=\"N\",\"\",IF(LEN('Enrollment Form'!$AE80)=0,\"\",IF(LEN('Enrollment Form'!$AE80)<>10,\"N\",\"Y\")))","v":""},{"$f":"IF($B73=\"N\",\"\",IF(LEN('Enrollment Form'!$AF80)=0,\"\",IF(LEN('Enrollment Form'!$AF80)<>10,\"N\",\"Y\")))","v":""},{"$f":"IF('Enrollment Form'!$O80<>\"Graded\",\"-\",IF(AND('Enrollment Form'!$O80=\"Graded\",'Enrollment Form'!$AR80<>\"\"),\"Y\",\"N\"))","v":"-"},{"$f":"IF($B73=\"N\",\"\",IF(OR('Enrollment Form'!$B80<>\"Subscriber\",'Enrollment Form'!$C80=\"ROC\"),\"-\",IF(AND('Enrollment Form'!$B80=\"Subscriber\",'Enrollment Form'!$C80=\"Enroll\",'Enrollment Form'!$AJ80<>\"\"),\"Y\",\"N\")))","v":""},{"$f":"IF($B73=\"N\",\"\",IF(OR('Enrollment Form'!$B80<>\"Subscriber\",'Enrollment Form'!$C80=\"ROC\"),\"-\",IF(AND('Enrollment Form'!$B80=\"Subscriber\",'Enrollment Form'!$C80=\"Enroll\",'Enrollment Form'!$AK80<>\"\"),\"Y\",\"N\")))","v":""},{"$f":"IF($B73=\"N\",\"\",IF(OR('Enrollment Form'!$B80<>\"Subscriber\",'Enrollment Form'!$C80=\"ROC\"),\"-\",IF(AND('Enrollment Form'!$B80=\"Subscriber\",'Enrollment Form'!$C80=\"Enroll\",'Enrollment Form'!$AL80<>\"\"),\"Y\",\"N\")))","v":""},{"$f":"IF($B73=\"N\",\"\",IF(OR('Enrollment Form'!$B80<>\"Subscriber\",'Enrollment Form'!$C80=\"ROC\"),\"-\",IF(AND('Enrollment Form'!$B80=\"Subscriber\",'Enrollment Form'!$C80=\"Enroll\",'Enrollment Form'!$AP80<>\"\"),\"Y\",\"N\")))","v":""},{"$f":"IF($B73=\"N\",\"\",IF(OR('Enrollment Form'!$B80<>\"Subscriber\",'Enrollment Form'!$C80=\"ROC\"),\"-\",IF(AND('Enrollment Form'!$B80=\"Subscriber\",'Enrollment Form'!$C80=\"Enroll\",'Enrollment Form'!$AQ80<>\"\"),\"Y\",\"N\")))","v":""},{"$f":"IF($B73=\"N\",\"\",IF(OR('Enrollment Form'!$B80<>\"Subscriber\",'Enrollment Form'!$C80=\"ROC\"),\"-\",IF(AND('Enrollment Form'!$B80=\"Subscriber\",'Enrollment Form'!$C80=\"Enroll\",'Enrollment Form'!$AS80<>\"\"),\"Y\",\"N\")))","v":""},{"$f":"IF($B73=\"N\",\"\",IF($Q73=\"-\",\"-\",IF(AND($Q73=\"Y\",'Enrollment Form'!$AS80=\"No\"),\"-\",IF(AND($Q73=\"Y\",'Enrollment Form'!$AS80=\"Yes\",'Enrollment Form'!$AT80<>\"\"),\"Y\",\"N\"))))","v":""},{"$f":"IF($B73=\"N\",\"\",IF(OR('Enrollment Form'!$B80<>\"Subscriber\",'Enrollment Form'!$C80=\"ROC\"),\"-\",IF(AND('Enrollment Form'!$B80=\"Subscriber\",'Enrollment Form'!$C80=\"Enroll\",'Enrollment Form'!$CV80<>\"\"),\"Y\",\"N\")))","v":""},{"$f":"IF($B73=\"N\",\"\",IF($S73=\"-\",\"-\",IF(AND($S73=\"Y\",'Enrollment Form'!$CV80=\"No\"),\"-\",IF(AND($S73=\"Y\",'Enrollment Form'!$CV80=\"Yes\",'Enrollment Form'!$CW80<>\"\"),\"Y\",\"N\"))))","v":""},{"$f":"IF(OR('Enrollment Form'!$AY80=\"Yes\",'Enrollment Form'!$AY80=\"\"),\"-\",IF(OR(AND('Enrollment Form'!$AY80=\"No\",ISERROR(FIND(\"HMO\",VLOOKUP('Enrollment Form'!G80,'Enrollment Form'!H$11:J$1000,3,FALSE),1))=FALSE,COUNTA('Enrollment Form'!$AZ80:$BC80)=4),AND('Enrollment Form'!$AY80=\"No\",ISERROR(FIND(\"HMO\",VLOOKUP('Enrollment Form'!G80,'Enrollment Form'!H$11:J$1000,3,FALSE),1))=FALSE,COUNTA('Enrollment Form'!$BT80:$BW80)=4)),\"Y\",\"N\"))","v":"-"},{"$f":"IF($B73=\"N\",\"\",IF('Enrollment Form'!$B80=\"Subscriber\",\"-\",IF(COUNTA('Enrollment Form'!$BL80,'Enrollment Form'!$BN80)=2,\"Y\",\"N\")))","v":""},{"$f":"IF($B73=\"N\",\"\",IF(OR('Enrollment Form'!$AX80=\"\",'Enrollment Form'!$AX80=\"No\"),\"-\",IF(AND('Enrollment Form'!$AX80=\"Yes\",COUNTA('Enrollment Form'!$CR80)=1),\"Y\",\"N\")))","v":""},{"$f":"IF(OR('Enrollment Form'!$CR80=\"\",'Enrollment Form'!$CR80=\"No\"),\"-\",IF(COUNTA('Enrollment Form'!$CT80:$CU80)=2,\"Y\",\"N\"))","v":"-"},{"$f":"IF($B73=\"N\",\"\",IF(COUNTIF('Enrollment Form'!$DG80:$DP80,\"Other\")=COUNTA('Enrollment Form'!$DK80,'Enrollment Form'!$DH80,'Enrollment Form'!$DN80,'Enrollment Form'!$DQ80),\"Y\",\"N\"))","v":""},{"$f":"IF($B73=\"N\",\"\",IF(OR('Enrollment Form'!B80<>\"Subscriber\",'Enrollment Form'!C80=\"ROC\",COUNTIF('Enrollment Form'!AV80:AW80,\"Yes\")>=1),\"-\",IF(AND('Enrollment Form'!C80=\"Enroll\",COUNTIF('Enrollment Form'!AV80:AW80,\"No\")=2,'Enrollment Form'!AX80=\"\"),\"N\",\"Y\")))","v":""},{"$f":"IF(OR(B73=\"N\",'Enrollment Form'!B80<>\"Subscriber\",'Enrollment Form'!C80=\"ROC\",'Enrollment Form'!O80<>\"Multiple of Salary\"),\"-\",IF(COUNTA('Enrollment Form'!T80:U80)<2,\"N\",\"Y\"))","v":"-"},{"$f":"IF(B73=\"N\",\"\",IF(OR('Enrollment Form'!C80=\"ROC\",'Enrollment Form'!B80<>\"Subscriber\",'Enrollment Form'!O80=\"Waive\",'Enrollment Form'!O80=\"\"),\"-\",IF('Enrollment Form'!P80=\"\",\"N\",\"Y\")))","v":""},{"$f":"IF($B73=\"N\",\"\",IF(AND('Enrollment Form'!$C80=\"ROC\",'Enrollment Form'!$DR80<>\"\"),\"Y\",IF(AND('Enrollment Form'!$C80=\"ROC\",'Enrollment Form'!$DR80=\"\"),\"N\",IF(AND('Enrollment Form'!$C80=\"Enroll\",'Enrollment Form'!$B80=\"Subscriber\",'Enrollment Form'!$CX80=\"No\",'Enrollment Form'!$DR80=\"\"),\"N\",IF(AND('Enrollment Form'!$C80=\"Enroll\",'Enrollment Form'!$B80=\"Subscriber\",'Enrollment Form'!$CX80=\"Yes\"),\"-\",\"Y\")))))","v":""},{"$f":"IF($B73=\"N\",\"\",IF(AND('Enrollment Form'!$C80=\"ROC\",'Enrollment Form'!$DS80<>\"\"),\"Y\",IF(AND('Enrollment Form'!$C80=\"ROC\",'Enrollment Form'!$DS80=\"\"),\"N\",IF(AND('Enrollment Form'!$C80=\"Enroll\",'Enrollment Form'!$B80=\"Subscriber\",'Enrollment Form'!$CX80=\"No\",'Enrollment Form'!$DS80=\"\"),\"N\",IF(AND('Enrollment Form'!$C80=\"Enroll\",'Enrollment Form'!$B80=\"Subscriber\",'Enrollment Form'!$CX80=\"Yes\"),\"-\",\"Y\")))))","v":""},{"$f":"IF('Enrollment Form'!AH80=\"\",\"\",IF(ISERROR(SEARCH(\".\",'Enrollment Form'!AH80,SEARCH(\"@\",'Enrollment Form'!AH80))),\"N\",\"Y\"))","v":""},{"$f":"IF(OR($B73=\"N\",'Enrollment Form'!$G80=\"\"),\"\",IF('Enrollment Form'!$B80<>\"Subscriber\",\"-\",IF(COUNTIF('Enrollment Form'!$AV80:$AW80,\"Yes\")=2,\"N\",\"Y\")))","v":""},{"$f":"IF(OR('Enrollment Form'!$CJ80=\"\",'Enrollment Form'!$CJ80=\"No\"),\"-\",IF(AND('Enrollment Form'!$CJ80=\"Yes\",'Enrollment Form'!$CK80=\"\"),\"N\",\"Y\"))","v":"-"},{"$f":"IF(OR('Enrollment Form'!$CL80=\"\",'Enrollment Form'!$CL80=\"No\"),\"-\",IF(AND('Enrollment Form'!$CL80=\"Yes\",'Enrollment Form'!$CM80=\"\"),\"N\",\"Y\"))","v":"-"},{"$f":"IF(OR('Enrollment Form'!$CN80=\"\",'Enrollment Form'!$CN80=\"No\"),\"-\",IF(AND('Enrollment Form'!$CN80=\"Yes\",'Enrollment Form'!$CO80=\"\"),\"N\",\"Y\"))","v":"-"},{"$f":"IF(OR('Enrollment Form'!$CN80=\"\",'Enrollment Form'!$CN80=\"No\"),\"-\",IF(AND('Enrollment Form'!$CN80=\"Yes\",'Enrollment Form'!$CP80=\"\"),\"N\",\"Y\"))","v":"-"},{"$f":"IF('Enrollment Form'!B80<>\"Subscriber\",\"-\",IF(AND('Enrollment Form'!B80=\"Subscriber\",'Enrollment Form'!C80=\"Enroll\",'Enrollment Form'!AA80=\"\"),\"N\",\"Y\"))","v":"-"},{"$f":"IF(OR('Enrollment Form'!B80=\"Subscriber\",'Enrollment Form'!B80=\"\"),\"-\",IF('Enrollment Form'!BP80=\"\",\"N\",\"Y\"))","v":"-"},{"$f":"IF('Enrollment Form'!B80<>\"Subscriber\",\"-\",IF(AND('Enrollment Form'!B80=\"Subscriber\",'Enrollment Form'!G80=\"\"),\"N\",\"Y\"))","v":"-"},{"$f":"IF('Enrollment Form'!A80=\"\",\"\",IF('Enrollment Form'!B80=\"Subscriber\",\"-\",IF(AND('Enrollment Form'!B80<>\"Subscriber\",'Enrollment Form'!G80='Enrollment Form'!H80),\"N\",\"Y\")))","v":""},0]
[81,{"$f":"IF('Enrollment Form'!$A81<>\"\",\"Y\",\"N\")","v":"N"},{"$f":"IF(AND('Enrollment Form'!$B81=\"\",'Enrollment Form'!$C81<>\"\"),\"N\",IF($B74=\"N\",\"\",\"Y\"))","v":""},{"$f":"IF(OR($B74=\"N\",'Enrollment Form'!G81=\"\"),\"\",IF('Enrollment Form'!$B81<>\"Subscriber\",\"\",IF('Enrollment Form'!$G81='Enrollment Form'!$H81,\"Y\",\"N\")))","v":""},{"$f":"IF($B74=\"N\",\"\",IF(AND(COUNTIFS('Enrollment Form'!$H$11:$H$1000,'Enrollment Form'!$H81,'Enrollment Form'!$B$11:$B$1000,'Enrollment Form'!$B81)>1,'Enrollment Form'!$H81<>\"\"),\"N\",\"Y\"))","v":""},{"$f":"IF($B74=\"N\",\"\",IF(LEN('Enrollment Form'!$Y81)=0,\"\",IF(LEN('Enrollment Form'!$Y81)<>5,\"N\",\"Y\")))","v":""},{"$f":"IF($B74=\"N\",\"\",IF(LEN('Enrollment Form'!$AD81=0),\"\",IF(LEN('Enrollment Form'!$AD81)<>5,\"N\",\"Y\")))","v":""},{"$f":"IF($B74=\"N\",\"\",IF(LEN('Enrollment Form'!$BS81=0),\"\",IF(LEN('Enrollment Form'!$BS81)<>5,\"N\",\"Y\")))","v":""},{"$f":"IF($B74=\"N\",\"\",IF(LEN('Enrollment Form'!$AE81)=0,\"\",IF(LEN('Enrollment Form'!$AE81)<>10,\"N\",\"Y\")))","v":""},{"$f":"IF($B74=\"N\",\"\",IF(LEN('Enrollment Form'!$AF81)=0,\"\",IF(LEN('Enrollment Form'!$AF81)<>10,\"N\",\"Y\")))","v":""},{"$f":"IF('Enrollment Form'!$O81<>\"Graded\",\"-\",IF(AND('Enrollment Form'!$O81=\"Graded\",'Enrollment Form'!$AR81<>\"\"),\"Y\",\"N\"))","v":"-"},{"$f":"IF($B74=\"N\",\"\",IF(OR('Enrollment Form'!$B81<>\"Subscriber\",'Enrollment Form'!$C81=\"ROC\"),\"-\",IF(AND('Enrollment Form'!$B81=\"Subscriber\",'Enrollment Form'!$C81=\"Enroll\",'Enrollment Form'!$AJ81<>\"\"),\"Y\",\"N\")))","v":""},{"$f":"IF($B74=\"N\",\"\",IF(OR('Enrollment Form'!$B81<>\"Subscriber\",'Enrollment Form'!$C81=\"ROC\"),\"-\",IF(AND('Enrollment Form'!$B81=\"Subscriber\",'Enrollment Form'!$C81=\"Enroll\",'Enrollment Form'!$AK81<>\"\"),\"Y\",\"N\")))","v":""},{"$f":"IF($B74=\"N\",\"\",IF(OR('Enrollment Form'!$B81<>\"Subscriber\",'Enrollment Form'!$C81=\"ROC\"),\"-\",IF(AND('Enrollment Form'!$B81=\"Subscriber\",'Enrollment Form'!$C81=\"Enroll\",'Enrollment Form'!$AL81<>\"\"),\"Y\",\"N\")))","v":""},{"$f":"IF($B74=\"N\",\"\",IF(OR('Enrollment Form'!$B81<>\"Subscriber\",'Enrollment Form'!$C81=\"ROC\"),\"-\",IF(AND('Enrollment Form'!$B81=\"Subscriber\",'Enrollment Form'!$C81=\"Enroll\",'Enrollment Form'!$AP81<>\"\"),\"Y\",\"N\")))","v":""},{"$f":"IF($B74=\"N\",\"\",IF(OR('Enrollment Form'!$B81<>\"Subscriber\",'Enrollment Form'!$C81=\"ROC\"),\"-\",IF(AND('Enrollment Form'!$B81=\"Subscriber\",'Enrollment Form'!$C81=\"Enroll\",'Enrollment Form'!$AQ81<>\"\"),\"Y\",\"N\")))","v":""},{"$f":"IF($B74=\"N\",\"\",IF(OR('Enrollment Form'!$B81<>\"Subscriber\",'Enrollment Form'!$C81=\"ROC\"),\"-\",IF(AND('Enrollment Form'!$B81=\"Subscriber\",'Enrollment Form'!$C81=\"Enroll\",'Enrollment Form'!$AS81<>\"\"),\"Y\",\"N\")))","v":""},{"$f":"IF($B74=\"N\",\"\",IF($Q74=\"-\",\"-\",IF(AND($Q74=\"Y\",'Enrollment Form'!$AS81=\"No\"),\"-\",IF(AND($Q74=\"Y\",'Enrollment Form'!$AS81=\"Yes\",'Enrollment Form'!$AT81<>\"\"),\"Y\",\"N\"))))","v":""},{"$f":"IF($B74=\"N\",\"\",IF(OR('Enrollment Form'!$B81<>\"Subscriber\",'Enrollment Form'!$C81=\"ROC\"),\"-\",IF(AND('Enrollment Form'!$B81=\"Subscriber\",'Enrollment Form'!$C81=\"Enroll\",'Enrollment Form'!$CV81<>\"\"),\"Y\",\"N\")))","v":""},{"$f":"IF($B74=\"N\",\"\",IF($S74=\"-\",\"-\",IF(AND($S74=\"Y\",'Enrollment Form'!$CV81=\"No\"),\"-\",IF(AND($S74=\"Y\",'Enrollment Form'!$CV81=\"Yes\",'Enrollment Form'!$CW81<>\"\"),\"Y\",\"N\"))))","v":""},{"$f":"IF(OR('Enrollment Form'!$AY81=\"Yes\",'Enrollment Form'!$AY81=\"\"),\"-\",IF(OR(AND('Enrollment Form'!$AY81=\"No\",ISERROR(FIND(\"HMO\",VLOOKUP('Enrollment Form'!G81,'Enrollment Form'!H$11:J$1000,3,FALSE),1))=FALSE,COUNTA('Enrollment Form'!$AZ81:$BC81)=4),AND('Enrollment Form'!$AY81=\"No\",ISERROR(FIND(\"HMO\",VLOOKUP('Enrollment Form'!G81,'Enrollment Form'!H$11:J$1000,3,FALSE),1))=FALSE,COUNTA('Enrollment Form'!$BT81:$BW81)=4)),\"Y\",\"N\"))","v":"-"},{"$f":"IF($B74=\"N\",\"\",IF('Enrollment Form'!$B81=\"Subscriber\",\"-\",IF(COUNTA('Enrollment Form'!$BL81,'Enrollment Form'!$BN81)=2,\"Y\",\"N\")))","v":""},{"$f":"IF($B74=\"N\",\"\",IF(OR('Enrollment Form'!$AX81=\"\",'Enrollment Form'!$AX81=\"No\"),\"-\",IF(AND('Enrollment Form'!$AX81=\"Yes\",COUNTA('Enrollment Form'!$CR81)=1),\"Y\",\"N\")))","v":""},{"$f":"IF(OR('Enrollment Form'!$CR81=\"\",'Enrollment Form'!$CR81=\"No\"),\"-\",IF(COUNTA('Enrollment Form'!$CT81:$CU81)=2,\"Y\",\"N\"))","v":"-"},{"$f":"IF($B74=\"N\",\"\",IF(COUNTIF('Enrollment Form'!$DG81:$DP81,\"Other\")=COUNTA('Enrollment Form'!$DK81,'Enrollment Form'!$DH81,'Enrollment Form'!$DN81,'Enrollment Form'!$DQ81),\"Y\",\"N\"))","v":""},{"$f":"IF($B74=\"N\",\"\",IF(OR('Enrollment Form'!B81<>\"Subscriber\",'Enrollment Form'!C81=\"ROC\",COUNTIF('Enrollment Form'!AV81:AW81,\"Yes\")>=1),\"-\",IF(AND('Enrollment Form'!C81=\"Enroll\",COUNTIF('Enrollment Form'!AV81:AW81,\"No\")=2,'Enrollment Form'!AX81=\"\"),\"N\",\"Y\")))","v":""},{"$f":"IF(OR(B74=\"N\",'Enrollment Form'!B81<>\"Subscriber\",'Enrollment Form'!C81=\"ROC\",'Enrollment Form'!O81<>\"Multiple of Salary\"),\"-\",IF(COUNTA('Enrollment Form'!T81:U81)<2,\"N\",\"Y\"))","v":"-"},{"$f":"IF(B74=\"N\",\"\",IF(OR('Enrollment Form'!C81=\"ROC\",'Enrollment Form'!B81<>\"Subscriber\",'Enrollment Form'!O81=\"Waive\",'Enrollment Form'!O81=\"\"),\"-\",IF('Enrollment Form'!P81=\"\",\"N\",\"Y\")))","v":""},{"$f":"IF($B74=\"N\",\"\",IF(AND('Enrollment Form'!$C81=\"ROC\",'Enrollment Form'!$DR81<>\"\"),\"Y\",IF(AND('Enrollment Form'!$C81=\"ROC\",'Enrollment Form'!$DR81=\"\"),\"N\",IF(AND('Enrollment Form'!$C81=\"Enroll\",'Enrollment Form'!$B81=\"Subscriber\",'Enrollment Form'!$CX81=\"No\",'Enrollment Form'!$DR81=\"\"),\"N\",IF(AND('Enrollment Form'!$C81=\"Enroll\",'Enrollment Form'!$B81=\"Subscriber\",'Enrollment Form'!$CX81=\"Yes\"),\"-\",\"Y\")))))","v":""},{"$f":"IF($B74=\"N\",\"\",IF(AND('Enrollment Form'!$C81=\"ROC\",'Enrollment Form'!$DS81<>\"\"),\"Y\",IF(AND('Enrollment Form'!$C81=\"ROC\",'Enrollment Form'!$DS81=\"\"),\"N\",IF(AND('Enrollment Form'!$C81=\"Enroll\",'Enrollment Form'!$B81=\"Subscriber\",'Enrollment Form'!$CX81=\"No\",'Enrollment Form'!$DS81=\"\"),\"N\",IF(AND('Enrollment Form'!$C81=\"Enroll\",'Enrollment Form'!$B81=\"Subscriber\",'Enrollment Form'!$CX81=\"Yes\"),\"-\",\"Y\")))))","v":""},{"$f":"IF('Enrollment Form'!AH81=\"\",\"\",IF(ISERROR(SEARCH(\".\",'Enrollment Form'!AH81,SEARCH(\"@\",'Enrollment Form'!AH81))),\"N\",\"Y\"))","v":""},{"$f":"IF(OR($B74=\"N\",'Enrollment Form'!$G81=\"\"),\"\",IF('Enrollment Form'!$B81<>\"Subscriber\",\"-\",IF(COUNTIF('Enrollment Form'!$AV81:$AW81,\"Yes\")=2,\"N\",\"Y\")))","v":""},{"$f":"IF(OR('Enrollment Form'!$CJ81=\"\",'Enrollment Form'!$CJ81=\"No\"),\"-\",IF(AND('Enrollment Form'!$CJ81=\"Yes\",'Enrollment Form'!$CK81=\"\"),\"N\",\"Y\"))","v":"-"},{"$f":"IF(OR('Enrollment Form'!$CL81=\"\",'Enrollment Form'!$CL81=\"No\"),\"-\",IF(AND('Enrollment Form'!$CL81=\"Yes\",'Enrollment Form'!$CM81=\"\"),\"N\",\"Y\"))","v":"-"},{"$f":"IF(OR('Enrollment Form'!$CN81=\"\",'Enrollment Form'!$CN81=\"No\"),\"-\",IF(AND('Enrollment Form'!$CN81=\"Yes\",'Enrollment Form'!$CO81=\"\"),\"N\",\"Y\"))","v":"-"},{"$f":"IF(OR('Enrollment Form'!$CN81=\"\",'Enrollment Form'!$CN81=\"No\"),\"-\",IF(AND('Enrollment Form'!$CN81=\"Yes\",'Enrollment Form'!$CP81=\"\"),\"N\",\"Y\"))","v":"-"},{"$f":"IF('Enrollment Form'!B81<>\"Subscriber\",\"-\",IF(AND('Enrollment Form'!B81=\"Subscriber\",'Enrollment Form'!C81=\"Enroll\",'Enrollment Form'!AA81=\"\"),\"N\",\"Y\"))","v":"-"},{"$f":"IF(OR('Enrollment Form'!B81=\"Subscriber\",'Enrollment Form'!B81=\"\"),\"-\",IF('Enrollment Form'!BP81=\"\",\"N\",\"Y\"))","v":"-"},{"$f":"IF('Enrollment Form'!B81<>\"Subscriber\",\"-\",IF(AND('Enrollment Form'!B81=\"Subscriber\",'Enrollment Form'!G81=\"\"),\"N\",\"Y\"))","v":"-"},{"$f":"IF('Enrollment Form'!A81=\"\",\"\",IF('Enrollment Form'!B81=\"Subscriber\",\"-\",IF(AND('Enrollment Form'!B81<>\"Subscriber\",'Enrollment Form'!G81='Enrollment Form'!H81),\"N\",\"Y\")))","v":""},0]
[82,{"$f":"IF('Enrollment Form'!$A82<>\"\",\"Y\",\"N\")","v":"N"},{"$f":"IF(AND('Enrollment Form'!$B82=\"\",'Enrollment Form'!$C82<>\"\"),\"N\",IF($B75=\"N\",\"\",\"Y\"))","v":""},{"$f":"IF(OR($B75=\"N\",'Enrollment Form'!G82=\"\"),\"\",IF('Enrollment Form'!$B82<>\"Subscriber\",\"\",IF('Enrollment Form'!$G82='Enrollment Form'!$H82,\"Y\",\"N\")))","v":""},{"$f":"IF($B75=\"N\",\"\",IF(AND(COUNTIFS('Enrollment Form'!$H$11:$H$1000,'Enrollment Form'!$H82,'Enrollment Form'!$B$11:$B$1000,'Enrollment Form'!$B82)>1,'Enrollment Form'!$H82<>\"\"),\"N\",\"Y\"))","v":""},{"$f":"IF($B75=\"N\",\"\",IF(LEN('Enrollment Form'!$Y82)=0,\"\",IF(LEN('Enrollment Form'!$Y82)<>5,\"N\",\"Y\")))","v":""},{"$f":"IF($B75=\"N\",\"\",IF(LEN('Enrollment Form'!$AD82=0),\"\",IF(LEN('Enrollment Form'!$AD82)<>5,\"N\",\"Y\")))","v":""},{"$f":"IF($B75=\"N\",\"\",IF(LEN('Enrollment Form'!$BS82=0),\"\",IF(LEN('Enrollment Form'!$BS82)<>5,\"N\",\"Y\")))","v":""},{"$f":"IF($B75=\"N\",\"\",IF(LEN('Enrollment Form'!$AE82)=0,\"\",IF(LEN('Enrollment Form'!$AE82)<>10,\"N\",\"Y\")))","v":""},{"$f":"IF($B75=\"N\",\"\",IF(LEN('Enrollment Form'!$AF82)=0,\"\",IF(LEN('Enrollment Form'!$AF82)<>10,\"N\",\"Y\")))","v":""},{"$f":"IF('Enrollment Form'!$O82<>\"Graded\",\"-\",IF(AND('Enrollment Form'!$O82=\"Graded\",'Enrollment Form'!$AR82<>\"\"),\"Y\",\"N\"))","v":"-"},{"$f":"IF($B75=\"N\",\"\",IF(OR('Enrollment Form'!$B82<>\"Subscriber\",'Enrollment Form'!$C82=\"ROC\"),\"-\",IF(AND('Enrollment Form'!$B82=\"Subscriber\",'Enrollment Form'!$C82=\"Enroll\",'Enrollment Form'!$AJ82<>\"\"),\"Y\",\"N\")))","v":""},{"$f":"IF($B75=\"N\",\"\",IF(OR('Enrollment Form'!$B82<>\"Subscriber\",'Enrollment Form'!$C82=\"ROC\"),\"-\",IF(AND('Enrollment Form'!$B82=\"Subscriber\",'Enrollment Form'!$C82=\"Enroll\",'Enrollment Form'!$AK82<>\"\"),\"Y\",\"N\")))","v":""},{"$f":"IF($B75=\"N\",\"\",IF(OR('Enrollment Form'!$B82<>\"Subscriber\",'Enrollment Form'!$C82=\"ROC\"),\"-\",IF(AND('Enrollment Form'!$B82=\"Subscriber\",'Enrollment Form'!$C82=\"Enroll\",'Enrollment Form'!$AL82<>\"\"),\"Y\",\"N\")))","v":""},{"$f":"IF($B75=\"N\",\"\",IF(OR('Enrollment Form'!$B82<>\"Subscriber\",'Enrollment Form'!$C82=\"ROC\"),\"-\",IF(AND('Enrollment Form'!$B82=\"Subscriber\",'Enrollment Form'!$C82=\"Enroll\",'Enrollment Form'!$AP82<>\"\"),\"Y\",\"N\")))","v":""},{"$f":"IF($B75=\"N\",\"\",IF(OR('Enrollment Form'!$B82<>\"Subscriber\",'Enrollment Form'!$C82=\"ROC\"),\"-\",IF(AND('Enrollment Form'!$B82=\"Subscriber\",'Enrollment Form'!$C82=\"Enroll\",'Enrollment Form'!$AQ82<>\"\"),\"Y\",\"N\")))","v":""},{"$f":"IF($B75=\"N\",\"\",IF(OR('Enrollment Form'!$B82<>\"Subscriber\",'Enrollment Form'!$C82=\"ROC\"),\"-\",IF(AND('Enrollment Form'!$B82=\"Subscriber\",'Enrollment Form'!$C82=\"Enroll\",'Enrollment Form'!$AS82<>\"\"),\"Y\",\"N\")))","v":""},{"$f":"IF($B75=\"N\",\"\",IF($Q75=\"-\",\"-\",IF(AND($Q75=\"Y\",'Enrollment Form'!$AS82=\"No\"),\"-\",IF(AND($Q75=\"Y\",'Enrollment Form'!$AS82=\"Yes\",'Enrollment Form'!$AT82<>\"\"),\"Y\",\"N\"))))","v":""},{"$f":"IF($B75=\"N\",\"\",IF(OR('Enrollment Form'!$B82<>\"Subscriber\",'Enrollment Form'!$C82=\"ROC\"),\"-\",IF(AND('Enrollment Form'!$B82=\"Subscriber\",'Enrollment Form'!$C82=\"Enroll\",'Enrollment Form'!$CV82<>\"\"),\"Y\",\"N\")))","v":""},{"$f":"IF($B75=\"N\",\"\",IF($S75=\"-\",\"-\",IF(AND($S75=\"Y\",'Enrollment Form'!$CV82=\"No\"),\"-\",IF(AND($S75=\"Y\",'Enrollment Form'!$CV82=\"Yes\",'Enrollment Form'!$CW82<>\"\"),\"Y\",\"N\"))))","v":""},{"$f":"IF(OR('Enrollment Form'!$AY82=\"Yes\",'Enrollment Form'!$AY82=\"\"),\"-\",IF(OR(AND('Enrollment Form'!$AY82=\"No\",ISERROR(FIND(\"HMO\",VLOOKUP('Enrollment Form'!G82,'Enrollment Form'!H$11:J$1000,3,FALSE),1))=FALSE,COUNTA('Enrollment Form'!$AZ82:$BC82)=4),AND('Enrollment Form'!$AY82=\"No\",ISERROR(FIND(\"HMO\",VLOOKUP('Enrollment Form'!G82,'Enrollment Form'!H$11:J$1000,3,FALSE),1))=FALSE,COUNTA('Enrollment Form'!$BT82:$BW82)=4)),\"Y\",\"N\"))","v":"-"},{"$f":"IF($B75=\"N\",\"\",IF('Enrollment Form'!$B82=\"Subscriber\",\"-\",IF(COUNTA('Enrollment Form'!$BL82,'Enrollment Form'!$BN82)=2,\"Y\",\"N\")))","v":""},{"$f":"IF($B75=\"N\",\"\",IF(OR('Enrollment Form'!$AX82=\"\",'Enrollment Form'!$AX82=\"No\"),\"-\",IF(AND('Enrollment Form'!$AX82=\"Yes\",COUNTA('Enrollment Form'!$CR82)=1),\"Y\",\"N\")))","v":""},{"$f":"IF(OR('Enrollment Form'!$CR82=\"\",'Enrollment Form'!$CR82=\"No\"),\"-\",IF(COUNTA('Enrollment Form'!$CT82:$CU82)=2,\"Y\",\"N\"))","v":"-"},{"$f":"IF($B75=\"N\",\"\",IF(COUNTIF('Enrollment Form'!$DG82:$DP82,\"Other\")=COUNTA('Enrollment Form'!$DK82,'Enrollment Form'!$DH82,'Enrollment Form'!$DN82,'Enrollment Form'!$DQ82),\"Y\",\"N\"))","v":""},{"$f":"IF($B75=\"N\",\"\",IF(OR('Enrollment Form'!B82<>\"Subscriber\",'Enrollment Form'!C82=\"ROC\",COUNTIF('Enrollment Form'!AV82:AW82,\"Yes\")>=1),\"-\",IF(AND('Enrollment Form'!C82=\"Enroll\",COUNTIF('Enrollment Form'!AV82:AW82,\"No\")=2,'Enrollment Form'!AX82=\"\"),\"N\",\"Y\")))","v":""},{"$f":"IF(OR(B75=\"N\",'Enrollment Form'!B82<>\"Subscriber\",'Enrollment Form'!C82=\"ROC\",'Enrollment Form'!O82<>\"Multiple of Salary\"),\"-\",IF(COUNTA('Enrollment Form'!T82:U82)<2,\"N\",\"Y\"))","v":"-"},{"$f":"IF(B75=\"N\",\"\",IF(OR('Enrollment Form'!C82=\"ROC\",'Enrollment Form'!B82<>\"Subscriber\",'Enrollment Form'!O82=\"Waive\",'Enrollment Form'!O82=\"\"),\"-\",IF('Enrollment Form'!P82=\"\",\"N\",\"Y\")))","v":""},{"$f":"IF($B75=\"N\",\"\",IF(AND('Enrollment Form'!$C82=\"ROC\",'Enrollment Form'!$DR82<>\"\"),\"Y\",IF(AND('Enrollment Form'!$C82=\"ROC\",'Enrollment Form'!$DR82=\"\"),\"N\",IF(AND('Enrollment Form'!$C82=\"Enroll\",'Enrollment Form'!$B82=\"Subscriber\",'Enrollment Form'!$CX82=\"No\",'Enrollment Form'!$DR82=\"\"),\"N\",IF(AND('Enrollment Form'!$C82=\"Enroll\",'Enrollment Form'!$B82=\"Subscriber\",'Enrollment Form'!$CX82=\"Yes\"),\"-\",\"Y\")))))","v":""},{"$f":"IF($B75=\"N\",\"\",IF(AND('Enrollment Form'!$C82=\"ROC\",'Enrollment Form'!$DS82<>\"\"),\"Y\",IF(AND('Enrollment Form'!$C82=\"ROC\",'Enrollment Form'!$DS82=\"\"),\"N\",IF(AND('Enrollment Form'!$C82=\"Enroll\",'Enrollment Form'!$B82=\"Subscriber\",'Enrollment Form'!$CX82=\"No\",'Enrollment Form'!$DS82=\"\"),\"N\",IF(AND('Enrollment Form'!$C82=\"Enroll\",'Enrollment Form'!$B82=\"Subscriber\",'Enrollment Form'!$CX82=\"Yes\"),\"-\",\"Y\")))))","v":""},{"$f":"IF('Enrollment Form'!AH82=\"\",\"\",IF(ISERROR(SEARCH(\".\",'Enrollment Form'!AH82,SEARCH(\"@\",'Enrollment Form'!AH82))),\"N\",\"Y\"))","v":""},{"$f":"IF(OR($B75=\"N\",'Enrollment Form'!$G82=\"\"),\"\",IF('Enrollment Form'!$B82<>\"Subscriber\",\"-\",IF(COUNTIF('Enrollment Form'!$AV82:$AW82,\"Yes\")=2,\"N\",\"Y\")))","v":""},{"$f":"IF(OR('Enrollment Form'!$CJ82=\"\",'Enrollment Form'!$CJ82=\"No\"),\"-\",IF(AND('Enrollment Form'!$CJ82=\"Yes\",'Enrollment Form'!$CK82=\"\"),\"N\",\"Y\"))","v":"-"},{"$f":"IF(OR('Enrollment Form'!$CL82=\"\",'Enrollment Form'!$CL82=\"No\"),\"-\",IF(AND('Enrollment Form'!$CL82=\"Yes\",'Enrollment Form'!$CM82=\"\"),\"N\",\"Y\"))","v":"-"},{"$f":"IF(OR('Enrollment Form'!$CN82=\"\",'Enrollment Form'!$CN82=\"No\"),\"-\",IF(AND('Enrollment Form'!$CN82=\"Yes\",'Enrollment Form'!$CO82=\"\"),\"N\",\"Y\"))","v":"-"},{"$f":"IF(OR('Enrollment Form'!$CN82=\"\",'Enrollment Form'!$CN82=\"No\"),\"-\",IF(AND('Enrollment Form'!$CN82=\"Yes\",'Enrollment Form'!$CP82=\"\"),\"N\",\"Y\"))","v":"-"},{"$f":"IF('Enrollment Form'!B82<>\"Subscriber\",\"-\",IF(AND('Enrollment Form'!B82=\"Subscriber\",'Enrollment Form'!C82=\"Enroll\",'Enrollment Form'!AA82=\"\"),\"N\",\"Y\"))","v":"-"},{"$f":"IF(OR('Enrollment Form'!B82=\"Subscriber\",'Enrollment Form'!B82=\"\"),\"-\",IF('Enrollment Form'!BP82=\"\",\"N\",\"Y\"))","v":"-"},{"$f":"IF('Enrollment Form'!B82<>\"Subscriber\",\"-\",IF(AND('Enrollment Form'!B82=\"Subscriber\",'Enrollment Form'!G82=\"\"),\"N\",\"Y\"))","v":"-"},{"$f":"IF('Enrollment Form'!A82=\"\",\"\",IF('Enrollment Form'!B82=\"Subscriber\",\"-\",IF(AND('Enrollment Form'!B82<>\"Subscriber\",'Enrollment Form'!G82='Enrollment Form'!H82),\"N\",\"Y\")))","v":""},0]
[83,{"$f":"IF('Enrollment Form'!$A83<>\"\",\"Y\",\"N\")","v":"N"},{"$f":"IF(AND('Enrollment Form'!$B83=\"\",'Enrollment Form'!$C83<>\"\"),\"N\",IF($B76=\"N\",\"\",\"Y\"))","v":""},{"$f":"IF(OR($B76=\"N\",'Enrollment Form'!G83=\"\"),\"\",IF('Enrollment Form'!$B83<>\"Subscriber\",\"\",IF('Enrollment Form'!$G83='Enrollment Form'!$H83,\"Y\",\"N\")))","v":""},{"$f":"IF($B76=\"N\",\"\",IF(AND(COUNTIFS('Enrollment Form'!$H$11:$H$1000,'Enrollment Form'!$H83,'Enrollment Form'!$B$11:$B$1000,'Enrollment Form'!$B83)>1,'Enrollment Form'!$H83<>\"\"),\"N\",\"Y\"))","v":""},{"$f":"IF($B76=\"N\",\"\",IF(LEN('Enrollment Form'!$Y83)=0,\"\",IF(LEN('Enrollment Form'!$Y83)<>5,\"N\",\"Y\")))","v":""},{"$f":"IF($B76=\"N\",\"\",IF(LEN('Enrollment Form'!$AD83=0),\"\",IF(LEN('Enrollment Form'!$AD83)<>5,\"N\",\"Y\")))","v":""},{"$f":"IF($B76=\"N\",\"\",IF(LEN('Enrollment Form'!$BS83=0),\"\",IF(LEN('Enrollment Form'!$BS83)<>5,\"N\",\"Y\")))","v":""},{"$f":"IF($B76=\"N\",\"\",IF(LEN('Enrollment Form'!$AE83)=0,\"\",IF(LEN('Enrollment Form'!$AE83)<>10,\"N\",\"Y\")))","v":""},{"$f":"IF($B76=\"N\",\"\",IF(LEN('Enrollment Form'!$AF83)=0,\"\",IF(LEN('Enrollment Form'!$AF83)<>10,\"N\",\"Y\")))","v":""},{"$f":"IF('Enrollment Form'!$O83<>\"Graded\",\"-\",IF(AND('Enrollment Form'!$O83=\"Graded\",'Enrollment Form'!$AR83<>\"\"),\"Y\",\"N\"))","v":"-"},{"$f":"IF($B76=\"N\",\"\",IF(OR('Enrollment Form'!$B83<>\"Subscriber\",'Enrollment Form'!$C83=\"ROC\"),\"-\",IF(AND('Enrollment Form'!$B83=\"Subscriber\",'Enrollment Form'!$C83=\"Enroll\",'Enrollment Form'!$AJ83<>\"\"),\"Y\",\"N\")))","v":""},{"$f":"IF($B76=\"N\",\"\",IF(OR('Enrollment Form'!$B83<>\"Subscriber\",'Enrollment Form'!$C83=\"ROC\"),\"-\",IF(AND('Enrollment Form'!$B83=\"Subscriber\",'Enrollment Form'!$C83=\"Enroll\",'Enrollment Form'!$AK83<>\"\"),\"Y\",\"N\")))","v":""},{"$f":"IF($B76=\"N\",\"\",IF(OR('Enrollment Form'!$B83<>\"Subscriber\",'Enrollment Form'!$C83=\"ROC\"),\"-\",IF(AND('Enrollment Form'!$B83=\"Subscriber\",'Enrollment Form'!$C83=\"Enroll\",'Enrollment Form'!$AL83<>\"\"),\"Y\",\"N\")))","v":""},{"$f":"IF($B76=\"N\",\"\",IF(OR('Enrollment Form'!$B83<>\"Subscriber\",'Enrollment Form'!$C83=\"ROC\"),\"-\",IF(AND('Enrollment Form'!$B83=\"Subscriber\",'Enrollment Form'!$C83=\"Enroll\",'Enrollment Form'!$AP83<>\"\"),\"Y\",\"N\")))","v":""},{"$f":"IF($B76=\"N\",\"\",IF(OR('Enrollment Form'!$B83<>\"Subscriber\",'Enrollment Form'!$C83=\"ROC\"),\"-\",IF(AND('Enrollment Form'!$B83=\"Subscriber\",'Enrollment Form'!$C83=\"Enroll\",'Enrollment Form'!$AQ83<>\"\"),\"Y\",\"N\")))","v":""},{"$f":"IF($B76=\"N\",\"\",IF(OR('Enrollment Form'!$B83<>\"Subscriber\",'Enrollment Form'!$C83=\"ROC\"),\"-\",IF(AND('Enrollment Form'!$B83=\"Subscriber\",'Enrollment Form'!$C83=\"Enroll\",'Enrollment Form'!$AS83<>\"\"),\"Y\",\"N\")))","v":""},{"$f":"IF($B76=\"N\",\"\",IF($Q76=\"-\",\"-\",IF(AND($Q76=\"Y\",'Enrollment Form'!$AS83=\"No\"),\"-\",IF(AND($Q76=\"Y\",'Enrollment Form'!$AS83=\"Yes\",'Enrollment Form'!$AT83<>\"\"),\"Y\",\"N\"))))","v":""},{"$f":"IF($B76=\"N\",\"\",IF(OR('Enrollment Form'!$B83<>\"Subscriber\",'Enrollment Form'!$C83=\"ROC\"),\"-\",IF(AND('Enrollment Form'!$B83=\"Subscriber\",'Enrollment Form'!$C83=\"Enroll\",'Enrollment Form'!$CV83<>\"\"),\"Y\",\"N\")))","v":""},{"$f":"IF($B76=\"N\",\"\",IF($S76=\"-\",\"-\",IF(AND($S76=\"Y\",'Enrollment Form'!$CV83=\"No\"),\"-\",IF(AND($S76=\"Y\",'Enrollment Form'!$CV83=\"Yes\",'Enrollment Form'!$CW83<>\"\"),\"Y\",\"N\"))))","v":""},{"$f":"IF(OR('Enrollment Form'!$AY83=\"Yes\",'Enrollment Form'!$AY83=\"\"),\"-\",IF(OR(AND('Enrollment Form'!$AY83=\"No\",ISERROR(FIND(\"HMO\",VLOOKUP('Enrollment Form'!G83,'Enrollment Form'!H$11:J$1000,3,FALSE),1))=FALSE,COUNTA('Enrollment Form'!$AZ83:$BC83)=4),AND('Enrollment Form'!$AY83=\"No\",ISERROR(FIND(\"HMO\",VLOOKUP('Enrollment Form'!G83,'Enrollment Form'!H$11:J$1000,3,FALSE),1))=FALSE,COUNTA('Enrollment Form'!$BT83:$BW83)=4)),\"Y\",\"N\"))","v":"-"},{"$f":"IF($B76=\"N\",\"\",IF('Enrollment Form'!$B83=\"Subscriber\",\"-\",IF(COUNTA('Enrollment Form'!$BL83,'Enrollment Form'!$BN83)=2,\"Y\",\"N\")))","v":""},{"$f":"IF($B76=\"N\",\"\",IF(OR('Enrollment Form'!$AX83=\"\",'Enrollment Form'!$AX83=\"No\"),\"-\",IF(AND('Enrollment Form'!$AX83=\"Yes\",COUNTA('Enrollment Form'!$CR83)=1),\"Y\",\"N\")))","v":""},{"$f":"IF(OR('Enrollment Form'!$CR83=\"\",'Enrollment Form'!$CR83=\"No\"),\"-\",IF(COUNTA('Enrollment Form'!$CT83:$CU83)=2,\"Y\",\"N\"))","v":"-"},{"$f":"IF($B76=\"N\",\"\",IF(COUNTIF('Enrollment Form'!$DG83:$DP83,\"Other\")=COUNTA('Enrollment Form'!$DK83,'Enrollment Form'!$DH83,'Enrollment Form'!$DN83,'Enrollment Form'!$DQ83),\"Y\",\"N\"))","v":""},{"$f":"IF($B76=\"N\",\"\",IF(OR('Enrollment Form'!B83<>\"Subscriber\",'Enrollment Form'!C83=\"ROC\",COUNTIF('Enrollment Form'!AV83:AW83,\"Yes\")>=1),\"-\",IF(AND('Enrollment Form'!C83=\"Enroll\",COUNTIF('Enrollment Form'!AV83:AW83,\"No\")=2,'Enrollment Form'!AX83=\"\"),\"N\",\"Y\")))","v":""},{"$f":"IF(OR(B76=\"N\",'Enrollment Form'!B83<>\"Subscriber\",'Enrollment Form'!C83=\"ROC\",'Enrollment Form'!O83<>\"Multiple of Salary\"),\"-\",IF(COUNTA('Enrollment Form'!T83:U83)<2,\"N\",\"Y\"))","v":"-"},{"$f":"IF(B76=\"N\",\"\",IF(OR('Enrollment Form'!C83=\"ROC\",'Enrollment Form'!B83<>\"Subscriber\",'Enrollment Form'!O83=\"Waive\",'Enrollment Form'!O83=\"\"),\"-\",IF('Enrollment Form'!P83=\"\",\"N\",\"Y\")))","v":""},{"$f":"IF($B76=\"N\",\"\",IF(AND('Enrollment Form'!$C83=\"ROC\",'Enrollment Form'!$DR83<>\"\"),\"Y\",IF(AND('Enrollment Form'!$C83=\"ROC\",'Enrollment Form'!$DR83=\"\"),\"N\",IF(AND('Enrollment Form'!$C83=\"Enroll\",'Enrollment Form'!$B83=\"Subscriber\",'Enrollment Form'!$CX83=\"No\",'Enrollment Form'!$DR83=\"\"),\"N\",IF(AND('Enrollment Form'!$C83=\"Enroll\",'Enrollment Form'!$B83=\"Subscriber\",'Enrollment Form'!$CX83=\"Yes\"),\"-\",\"Y\")))))","v":""},{"$f":"IF($B76=\"N\",\"\",IF(AND('Enrollment Form'!$C83=\"ROC\",'Enrollment Form'!$DS83<>\"\"),\"Y\",IF(AND('Enrollment Form'!$C83=\"ROC\",'Enrollment Form'!$DS83=\"\"),\"N\",IF(AND('Enrollment Form'!$C83=\"Enroll\",'Enrollment Form'!$B83=\"Subscriber\",'Enrollment Form'!$CX83=\"No\",'Enrollment Form'!$DS83=\"\"),\"N\",IF(AND('Enrollment Form'!$C83=\"Enroll\",'Enrollment Form'!$B83=\"Subscriber\",'Enrollment Form'!$CX83=\"Yes\"),\"-\",\"Y\")))))","v":""},{"$f":"IF('Enrollment Form'!AH83=\"\",\"\",IF(ISERROR(SEARCH(\".\",'Enrollment Form'!AH83,SEARCH(\"@\",'Enrollment Form'!AH83))),\"N\",\"Y\"))","v":""},{"$f":"IF(OR($B76=\"N\",'Enrollment Form'!$G83=\"\"),\"\",IF('Enrollment Form'!$B83<>\"Subscriber\",\"-\",IF(COUNTIF('Enrollment Form'!$AV83:$AW83,\"Yes\")=2,\"N\",\"Y\")))","v":""},{"$f":"IF(OR('Enrollment Form'!$CJ83=\"\",'Enrollment Form'!$CJ83=\"No\"),\"-\",IF(AND('Enrollment Form'!$CJ83=\"Yes\",'Enrollment Form'!$CK83=\"\"),\"N\",\"Y\"))","v":"-"},{"$f":"IF(OR('Enrollment Form'!$CL83=\"\",'Enrollment Form'!$CL83=\"No\"),\"-\",IF(AND('Enrollment Form'!$CL83=\"Yes\",'Enrollment Form'!$CM83=\"\"),\"N\",\"Y\"))","v":"-"},{"$f":"IF(OR('Enrollment Form'!$CN83=\"\",'Enrollment Form'!$CN83=\"No\"),\"-\",IF(AND('Enrollment Form'!$CN83=\"Yes\",'Enrollment Form'!$CO83=\"\"),\"N\",\"Y\"))","v":"-"},{"$f":"IF(OR('Enrollment Form'!$CN83=\"\",'Enrollment Form'!$CN83=\"No\"),\"-\",IF(AND('Enrollment Form'!$CN83=\"Yes\",'Enrollment Form'!$CP83=\"\"),\"N\",\"Y\"))","v":"-"},{"$f":"IF('Enrollment Form'!B83<>\"Subscriber\",\"-\",IF(AND('Enrollment Form'!B83=\"Subscriber\",'Enrollment Form'!C83=\"Enroll\",'Enrollment Form'!AA83=\"\"),\"N\",\"Y\"))","v":"-"},{"$f":"IF(OR('Enrollment Form'!B83=\"Subscriber\",'Enrollment Form'!B83=\"\"),\"-\",IF('Enrollment Form'!BP83=\"\",\"N\",\"Y\"))","v":"-"},{"$f":"IF('Enrollment Form'!B83<>\"Subscriber\",\"-\",IF(AND('Enrollment Form'!B83=\"Subscriber\",'Enrollment Form'!G83=\"\"),\"N\",\"Y\"))","v":"-"},{"$f":"IF('Enrollment Form'!A83=\"\",\"\",IF('Enrollment Form'!B83=\"Subscriber\",\"-\",IF(AND('Enrollment Form'!B83<>\"Subscriber\",'Enrollment Form'!G83='Enrollment Form'!H83),\"N\",\"Y\")))","v":""},0]
[84,{"$f":"IF('Enrollment Form'!$A84<>\"\",\"Y\",\"N\")","v":"N"},{"$f":"IF(AND('Enrollment Form'!$B84=\"\",'Enrollment Form'!$C84<>\"\"),\"N\",IF($B77=\"N\",\"\",\"Y\"))","v":""},{"$f":"IF(OR($B77=\"N\",'Enrollment Form'!G84=\"\"),\"\",IF('Enrollment Form'!$B84<>\"Subscriber\",\"\",IF('Enrollment Form'!$G84='Enrollment Form'!$H84,\"Y\",\"N\")))","v":""},{"$f":"IF($B77=\"N\",\"\",IF(AND(COUNTIFS('Enrollment Form'!$H$11:$H$1000,'Enrollment Form'!$H84,'Enrollment Form'!$B$11:$B$1000,'Enrollment Form'!$B84)>1,'Enrollment Form'!$H84<>\"\"),\"N\",\"Y\"))","v":""},{"$f":"IF($B77=\"N\",\"\",IF(LEN('Enrollment Form'!$Y84)=0,\"\",IF(LEN('Enrollment Form'!$Y84)<>5,\"N\",\"Y\")))","v":""},{"$f":"IF($B77=\"N\",\"\",IF(LEN('Enrollment Form'!$AD84=0),\"\",IF(LEN('Enrollment Form'!$AD84)<>5,\"N\",\"Y\")))","v":""},{"$f":"IF($B77=\"N\",\"\",IF(LEN('Enrollment Form'!$BS84=0),\"\",IF(LEN('Enrollment Form'!$BS84)<>5,\"N\",\"Y\")))","v":""},{"$f":"IF($B77=\"N\",\"\",IF(LEN('Enrollment Form'!$AE84)=0,\"\",IF(LEN('Enrollment Form'!$AE84)<>10,\"N\",\"Y\")))","v":""},{"$f":"IF($B77=\"N\",\"\",IF(LEN('Enrollment Form'!$AF84)=0,\"\",IF(LEN('Enrollment Form'!$AF84)<>10,\"N\",\"Y\")))","v":""},{"$f":"IF('Enrollment Form'!$O84<>\"Graded\",\"-\",IF(AND('Enrollment Form'!$O84=\"Graded\",'Enrollment Form'!$AR84<>\"\"),\"Y\",\"N\"))","v":"-"},{"$f":"IF($B77=\"N\",\"\",IF(OR('Enrollment Form'!$B84<>\"Subscriber\",'Enrollment Form'!$C84=\"ROC\"),\"-\",IF(AND('Enrollment Form'!$B84=\"Subscriber\",'Enrollment Form'!$C84=\"Enroll\",'Enrollment Form'!$AJ84<>\"\"),\"Y\",\"N\")))","v":""},{"$f":"IF($B77=\"N\",\"\",IF(OR('Enrollment Form'!$B84<>\"Subscriber\",'Enrollment Form'!$C84=\"ROC\"),\"-\",IF(AND('Enrollment Form'!$B84=\"Subscriber\",'Enrollment Form'!$C84=\"Enroll\",'Enrollment Form'!$AK84<>\"\"),\"Y\",\"N\")))","v":""},{"$f":"IF($B77=\"N\",\"\",IF(OR('Enrollment Form'!$B84<>\"Subscriber\",'Enrollment Form'!$C84=\"ROC\"),\"-\",IF(AND('Enrollment Form'!$B84=\"Subscriber\",'Enrollment Form'!$C84=\"Enroll\",'Enrollment Form'!$AL84<>\"\"),\"Y\",\"N\")))","v":""},{"$f":"IF($B77=\"N\",\"\",IF(OR('Enrollment Form'!$B84<>\"Subscriber\",'Enrollment Form'!$C84=\"ROC\"),\"-\",IF(AND('Enrollment Form'!$B84=\"Subscriber\",'Enrollment Form'!$C84=\"Enroll\",'Enrollment Form'!$AP84<>\"\"),\"Y\",\"N\")))","v":""},{"$f":"IF($B77=\"N\",\"\",IF(OR('Enrollment Form'!$B84<>\"Subscriber\",'Enrollment Form'!$C84=\"ROC\"),\"-\",IF(AND('Enrollment Form'!$B84=\"Subscriber\",'Enrollment Form'!$C84=\"Enroll\",'Enrollment Form'!$AQ84<>\"\"),\"Y\",\"N\")))","v":""},{"$f":"IF($B77=\"N\",\"\",IF(OR('Enrollment Form'!$B84<>\"Subscriber\",'Enrollment Form'!$C84=\"ROC\"),\"-\",IF(AND('Enrollment Form'!$B84=\"Subscriber\",'Enrollment Form'!$C84=\"Enroll\",'Enrollment Form'!$AS84<>\"\"),\"Y\",\"N\")))","v":""},{"$f":"IF($B77=\"N\",\"\",IF($Q77=\"-\",\"-\",IF(AND($Q77=\"Y\",'Enrollment Form'!$AS84=\"No\"),\"-\",IF(AND($Q77=\"Y\",'Enrollment Form'!$AS84=\"Yes\",'Enrollment Form'!$AT84<>\"\"),\"Y\",\"N\"))))","v":""},{"$f":"IF($B77=\"N\",\"\",IF(OR('Enrollment Form'!$B84<>\"Subscriber\",'Enrollment Form'!$C84=\"ROC\"),\"-\",IF(AND('Enrollment Form'!$B84=\"Subscriber\",'Enrollment Form'!$C84=\"Enroll\",'Enrollment Form'!$CV84<>\"\"),\"Y\",\"N\")))","v":""},{"$f":"IF($B77=\"N\",\"\",IF($S77=\"-\",\"-\",IF(AND($S77=\"Y\",'Enrollment Form'!$CV84=\"No\"),\"-\",IF(AND($S77=\"Y\",'Enrollment Form'!$CV84=\"Yes\",'Enrollment Form'!$CW84<>\"\"),\"Y\",\"N\"))))","v":""},{"$f":"IF(OR('Enrollment Form'!$AY84=\"Yes\",'Enrollment Form'!$AY84=\"\"),\"-\",IF(OR(AND('Enrollment Form'!$AY84=\"No\",ISERROR(FIND(\"HMO\",VLOOKUP('Enrollment Form'!G84,'Enrollment Form'!H$11:J$1000,3,FALSE),1))=FALSE,COUNTA('Enrollment Form'!$AZ84:$BC84)=4),AND('Enrollment Form'!$AY84=\"No\",ISERROR(FIND(\"HMO\",VLOOKUP('Enrollment Form'!G84,'Enrollment Form'!H$11:J$1000,3,FALSE),1))=FALSE,COUNTA('Enrollment Form'!$BT84:$BW84)=4)),\"Y\",\"N\"))","v":"-"},{"$f":"IF($B77=\"N\",\"\",IF('Enrollment Form'!$B84=\"Subscriber\",\"-\",IF(COUNTA('Enrollment Form'!$BL84,'Enrollment Form'!$BN84)=2,\"Y\",\"N\")))","v":""},{"$f":"IF($B77=\"N\",\"\",IF(OR('Enrollment Form'!$AX84=\"\",'Enrollment Form'!$AX84=\"No\"),\"-\",IF(AND('Enrollment Form'!$AX84=\"Yes\",COUNTA('Enrollment Form'!$CR84)=1),\"Y\",\"N\")))","v":""},{"$f":"IF(OR('Enrollment Form'!$CR84=\"\",'Enrollment Form'!$CR84=\"No\"),\"-\",IF(COUNTA('Enrollment Form'!$CT84:$CU84)=2,\"Y\",\"N\"))","v":"-"},{"$f":"IF($B77=\"N\",\"\",IF(COUNTIF('Enrollment Form'!$DG84:$DP84,\"Other\")=COUNTA('Enrollment Form'!$DK84,'Enrollment Form'!$DH84,'Enrollment Form'!$DN84,'Enrollment Form'!$DQ84),\"Y\",\"N\"))","v":""},{"$f":"IF($B77=\"N\",\"\",IF(OR('Enrollment Form'!B84<>\"Subscriber\",'Enrollment Form'!C84=\"ROC\",COUNTIF('Enrollment Form'!AV84:AW84,\"Yes\")>=1),\"-\",IF(AND('Enrollment Form'!C84=\"Enroll\",COUNTIF('Enrollment Form'!AV84:AW84,\"No\")=2,'Enrollment Form'!AX84=\"\"),\"N\",\"Y\")))","v":""},{"$f":"IF(OR(B77=\"N\",'Enrollment Form'!B84<>\"Subscriber\",'Enrollment Form'!C84=\"ROC\",'Enrollment Form'!O84<>\"Multiple of Salary\"),\"-\",IF(COUNTA('Enrollment Form'!T84:U84)<2,\"N\",\"Y\"))","v":"-"},{"$f":"IF(B77=\"N\",\"\",IF(OR('Enrollment Form'!C84=\"ROC\",'Enrollment Form'!B84<>\"Subscriber\",'Enrollment Form'!O84=\"Waive\",'Enrollment Form'!O84=\"\"),\"-\",IF('Enrollment Form'!P84=\"\",\"N\",\"Y\")))","v":""},{"$f":"IF($B77=\"N\",\"\",IF(AND('Enrollment Form'!$C84=\"ROC\",'Enrollment Form'!$DR84<>\"\"),\"Y\",IF(AND('Enrollment Form'!$C84=\"ROC\",'Enrollment Form'!$DR84=\"\"),\"N\",IF(AND('Enrollment Form'!$C84=\"Enroll\",'Enrollment Form'!$B84=\"Subscriber\",'Enrollment Form'!$CX84=\"No\",'Enrollment Form'!$DR84=\"\"),\"N\",IF(AND('Enrollment Form'!$C84=\"Enroll\",'Enrollment Form'!$B84=\"Subscriber\",'Enrollment Form'!$CX84=\"Yes\"),\"-\",\"Y\")))))","v":""},{"$f":"IF($B77=\"N\",\"\",IF(AND('Enrollment Form'!$C84=\"ROC\",'Enrollment Form'!$DS84<>\"\"),\"Y\",IF(AND('Enrollment Form'!$C84=\"ROC\",'Enrollment Form'!$DS84=\"\"),\"N\",IF(AND('Enrollment Form'!$C84=\"Enroll\",'Enrollment Form'!$B84=\"Subscriber\",'Enrollment Form'!$CX84=\"No\",'Enrollment Form'!$DS84=\"\"),\"N\",IF(AND('Enrollment Form'!$C84=\"Enroll\",'Enrollment Form'!$B84=\"Subscriber\",'Enrollment Form'!$CX84=\"Yes\"),\"-\",\"Y\")))))","v":""},{"$f":"IF('Enrollment Form'!AH84=\"\",\"\",IF(ISERROR(SEARCH(\".\",'Enrollment Form'!AH84,SEARCH(\"@\",'Enrollment Form'!AH84))),\"N\",\"Y\"))","v":""},{"$f":"IF(OR($B77=\"N\",'Enrollment Form'!$G84=\"\"),\"\",IF('Enrollment Form'!$B84<>\"Subscriber\",\"-\",IF(COUNTIF('Enrollment Form'!$AV84:$AW84,\"Yes\")=2,\"N\",\"Y\")))","v":""},{"$f":"IF(OR('Enrollment Form'!$CJ84=\"\",'Enrollment Form'!$CJ84=\"No\"),\"-\",IF(AND('Enrollment Form'!$CJ84=\"Yes\",'Enrollment Form'!$CK84=\"\"),\"N\",\"Y\"))","v":"-"},{"$f":"IF(OR('Enrollment Form'!$CL84=\"\",'Enrollment Form'!$CL84=\"No\"),\"-\",IF(AND('Enrollment Form'!$CL84=\"Yes\",'Enrollment Form'!$CM84=\"\"),\"N\",\"Y\"))","v":"-"},{"$f":"IF(OR('Enrollment Form'!$CN84=\"\",'Enrollment Form'!$CN84=\"No\"),\"-\",IF(AND('Enrollment Form'!$CN84=\"Yes\",'Enrollment Form'!$CO84=\"\"),\"N\",\"Y\"))","v":"-"},{"$f":"IF(OR('Enrollment Form'!$CN84=\"\",'Enrollment Form'!$CN84=\"No\"),\"-\",IF(AND('Enrollment Form'!$CN84=\"Yes\",'Enrollment Form'!$CP84=\"\"),\"N\",\"Y\"))","v":"-"},{"$f":"IF('Enrollment Form'!B84<>\"Subscriber\",\"-\",IF(AND('Enrollment Form'!B84=\"Subscriber\",'Enrollment Form'!C84=\"Enroll\",'Enrollment Form'!AA84=\"\"),\"N\",\"Y\"))","v":"-"},{"$f":"IF(OR('Enrollment Form'!B84=\"Subscriber\",'Enrollment Form'!B84=\"\"),\"-\",IF('Enrollment Form'!BP84=\"\",\"N\",\"Y\"))","v":"-"},{"$f":"IF('Enrollment Form'!B84<>\"Subscriber\",\"-\",IF(AND('Enrollment Form'!B84=\"Subscriber\",'Enrollment Form'!G84=\"\"),\"N\",\"Y\"))","v":"-"},{"$f":"IF('Enrollment Form'!A84=\"\",\"\",IF('Enrollment Form'!B84=\"Subscriber\",\"-\",IF(AND('Enrollment Form'!B84<>\"Subscriber\",'Enrollment Form'!G84='Enrollment Form'!H84),\"N\",\"Y\")))","v":""},0]
[85,{"$f":"IF('Enrollment Form'!$A85<>\"\",\"Y\",\"N\")","v":"N"},{"$f":"IF(AND('Enrollment Form'!$B85=\"\",'Enrollment Form'!$C85<>\"\"),\"N\",IF($B78=\"N\",\"\",\"Y\"))","v":""},{"$f":"IF(OR($B78=\"N\",'Enrollment Form'!G85=\"\"),\"\",IF('Enrollment Form'!$B85<>\"Subscriber\",\"\",IF('Enrollment Form'!$G85='Enrollment Form'!$H85,\"Y\",\"N\")))","v":""},{"$f":"IF($B78=\"N\",\"\",IF(AND(COUNTIFS('Enrollment Form'!$H$11:$H$1000,'Enrollment Form'!$H85,'Enrollment Form'!$B$11:$B$1000,'Enrollment Form'!$B85)>1,'Enrollment Form'!$H85<>\"\"),\"N\",\"Y\"))","v":""},{"$f":"IF($B78=\"N\",\"\",IF(LEN('Enrollment Form'!$Y85)=0,\"\",IF(LEN('Enrollment Form'!$Y85)<>5,\"N\",\"Y\")))","v":""},{"$f":"IF($B78=\"N\",\"\",IF(LEN('Enrollment Form'!$AD85=0),\"\",IF(LEN('Enrollment Form'!$AD85)<>5,\"N\",\"Y\")))","v":""},{"$f":"IF($B78=\"N\",\"\",IF(LEN('Enrollment Form'!$BS85=0),\"\",IF(LEN('Enrollment Form'!$BS85)<>5,\"N\",\"Y\")))","v":""},{"$f":"IF($B78=\"N\",\"\",IF(LEN('Enrollment Form'!$AE85)=0,\"\",IF(LEN('Enrollment Form'!$AE85)<>10,\"N\",\"Y\")))","v":""},{"$f":"IF($B78=\"N\",\"\",IF(LEN('Enrollment Form'!$AF85)=0,\"\",IF(LEN('Enrollment Form'!$AF85)<>10,\"N\",\"Y\")))","v":""},{"$f":"IF('Enrollment Form'!$O85<>\"Graded\",\"-\",IF(AND('Enrollment Form'!$O85=\"Graded\",'Enrollment Form'!$AR85<>\"\"),\"Y\",\"N\"))","v":"-"},{"$f":"IF($B78=\"N\",\"\",IF(OR('Enrollment Form'!$B85<>\"Subscriber\",'Enrollment Form'!$C85=\"ROC\"),\"-\",IF(AND('Enrollment Form'!$B85=\"Subscriber\",'Enrollment Form'!$C85=\"Enroll\",'Enrollment Form'!$AJ85<>\"\"),\"Y\",\"N\")))","v":""},{"$f":"IF($B78=\"N\",\"\",IF(OR('Enrollment Form'!$B85<>\"Subscriber\",'Enrollment Form'!$C85=\"ROC\"),\"-\",IF(AND('Enrollment Form'!$B85=\"Subscriber\",'Enrollment Form'!$C85=\"Enroll\",'Enrollment Form'!$AK85<>\"\"),\"Y\",\"N\")))","v":""},{"$f":"IF($B78=\"N\",\"\",IF(OR('Enrollment Form'!$B85<>\"Subscriber\",'Enrollment Form'!$C85=\"ROC\"),\"-\",IF(AND('Enrollment Form'!$B85=\"Subscriber\",'Enrollment Form'!$C85=\"Enroll\",'Enrollment Form'!$AL85<>\"\"),\"Y\",\"N\")))","v":""},{"$f":"IF($B78=\"N\",\"\",IF(OR('Enrollment Form'!$B85<>\"Subscriber\",'Enrollment Form'!$C85=\"ROC\"),\"-\",IF(AND('Enrollment Form'!$B85=\"Subscriber\",'Enrollment Form'!$C85=\"Enroll\",'Enrollment Form'!$AP85<>\"\"),\"Y\",\"N\")))","v":""},{"$f":"IF($B78=\"N\",\"\",IF(OR('Enrollment Form'!$B85<>\"Subscriber\",'Enrollment Form'!$C85=\"ROC\"),\"-\",IF(AND('Enrollment Form'!$B85=\"Subscriber\",'Enrollment Form'!$C85=\"Enroll\",'Enrollment Form'!$AQ85<>\"\"),\"Y\",\"N\")))","v":""},{"$f":"IF($B78=\"N\",\"\",IF(OR('Enrollment Form'!$B85<>\"Subscriber\",'Enrollment Form'!$C85=\"ROC\"),\"-\",IF(AND('Enrollment Form'!$B85=\"Subscriber\",'Enrollment Form'!$C85=\"Enroll\",'Enrollment Form'!$AS85<>\"\"),\"Y\",\"N\")))","v":""},{"$f":"IF($B78=\"N\",\"\",IF($Q78=\"-\",\"-\",IF(AND($Q78=\"Y\",'Enrollment Form'!$AS85=\"No\"),\"-\",IF(AND($Q78=\"Y\",'Enrollment Form'!$AS85=\"Yes\",'Enrollment Form'!$AT85<>\"\"),\"Y\",\"N\"))))","v":""},{"$f":"IF($B78=\"N\",\"\",IF(OR('Enrollment Form'!$B85<>\"Subscriber\",'Enrollment Form'!$C85=\"ROC\"),\"-\",IF(AND('Enrollment Form'!$B85=\"Subscriber\",'Enrollment Form'!$C85=\"Enroll\",'Enrollment Form'!$CV85<>\"\"),\"Y\",\"N\")))","v":""},{"$f":"IF($B78=\"N\",\"\",IF($S78=\"-\",\"-\",IF(AND($S78=\"Y\",'Enrollment Form'!$CV85=\"No\"),\"-\",IF(AND($S78=\"Y\",'Enrollment Form'!$CV85=\"Yes\",'Enrollment Form'!$CW85<>\"\"),\"Y\",\"N\"))))","v":""},{"$f":"IF(OR('Enrollment Form'!$AY85=\"Yes\",'Enrollment Form'!$AY85=\"\"),\"-\",IF(OR(AND('Enrollment Form'!$AY85=\"No\",ISERROR(FIND(\"HMO\",VLOOKUP('Enrollment Form'!G85,'Enrollment Form'!H$11:J$1000,3,FALSE),1))=FALSE,COUNTA('Enrollment Form'!$AZ85:$BC85)=4),AND('Enrollment Form'!$AY85=\"No\",ISERROR(FIND(\"HMO\",VLOOKUP('Enrollment Form'!G85,'Enrollment Form'!H$11:J$1000,3,FALSE),1))=FALSE,COUNTA('Enrollment Form'!$BT85:$BW85)=4)),\"Y\",\"N\"))","v":"-"},{"$f":"IF($B78=\"N\",\"\",IF('Enrollment Form'!$B85=\"Subscriber\",\"-\",IF(COUNTA('Enrollment Form'!$BL85,'Enrollment Form'!$BN85)=2,\"Y\",\"N\")))","v":""},{"$f":"IF($B78=\"N\",\"\",IF(OR('Enrollment Form'!$AX85=\"\",'Enrollment Form'!$AX85=\"No\"),\"-\",IF(AND('Enrollment Form'!$AX85=\"Yes\",COUNTA('Enrollment Form'!$CR85)=1),\"Y\",\"N\")))","v":""},{"$f":"IF(OR('Enrollment Form'!$CR85=\"\",'Enrollment Form'!$CR85=\"No\"),\"-\",IF(COUNTA('Enrollment Form'!$CT85:$CU85)=2,\"Y\",\"N\"))","v":"-"},{"$f":"IF($B78=\"N\",\"\",IF(COUNTIF('Enrollment Form'!$DG85:$DP85,\"Other\")=COUNTA('Enrollment Form'!$DK85,'Enrollment Form'!$DH85,'Enrollment Form'!$DN85,'Enrollment Form'!$DQ85),\"Y\",\"N\"))","v":""},{"$f":"IF($B78=\"N\",\"\",IF(OR('Enrollment Form'!B85<>\"Subscriber\",'Enrollment Form'!C85=\"ROC\",COUNTIF('Enrollment Form'!AV85:AW85,\"Yes\")>=1),\"-\",IF(AND('Enrollment Form'!C85=\"Enroll\",COUNTIF('Enrollment Form'!AV85:AW85,\"No\")=2,'Enrollment Form'!AX85=\"\"),\"N\",\"Y\")))","v":""},{"$f":"IF(OR(B78=\"N\",'Enrollment Form'!B85<>\"Subscriber\",'Enrollment Form'!C85=\"ROC\",'Enrollment Form'!O85<>\"Multiple of Salary\"),\"-\",IF(COUNTA('Enrollment Form'!T85:U85)<2,\"N\",\"Y\"))","v":"-"},{"$f":"IF(B78=\"N\",\"\",IF(OR('Enrollment Form'!C85=\"ROC\",'Enrollment Form'!B85<>\"Subscriber\",'Enrollment Form'!O85=\"Waive\",'Enrollment Form'!O85=\"\"),\"-\",IF('Enrollment Form'!P85=\"\",\"N\",\"Y\")))","v":""},{"$f":"IF($B78=\"N\",\"\",IF(AND('Enrollment Form'!$C85=\"ROC\",'Enrollment Form'!$DR85<>\"\"),\"Y\",IF(AND('Enrollment Form'!$C85=\"ROC\",'Enrollment Form'!$DR85=\"\"),\"N\",IF(AND('Enrollment Form'!$C85=\"Enroll\",'Enrollment Form'!$B85=\"Subscriber\",'Enrollment Form'!$CX85=\"No\",'Enrollment Form'!$DR85=\"\"),\"N\",IF(AND('Enrollment Form'!$C85=\"Enroll\",'Enrollment Form'!$B85=\"Subscriber\",'Enrollment Form'!$CX85=\"Yes\"),\"-\",\"Y\")))))","v":""},{"$f":"IF($B78=\"N\",\"\",IF(AND('Enrollment Form'!$C85=\"ROC\",'Enrollment Form'!$DS85<>\"\"),\"Y\",IF(AND('Enrollment Form'!$C85=\"ROC\",'Enrollment Form'!$DS85=\"\"),\"N\",IF(AND('Enrollment Form'!$C85=\"Enroll\",'Enrollment Form'!$B85=\"Subscriber\",'Enrollment Form'!$CX85=\"No\",'Enrollment Form'!$DS85=\"\"),\"N\",IF(AND('Enrollment Form'!$C85=\"Enroll\",'Enrollment Form'!$B85=\"Subscriber\",'Enrollment Form'!$CX85=\"Yes\"),\"-\",\"Y\")))))","v":""},{"$f":"IF('Enrollment Form'!AH85=\"\",\"\",IF(ISERROR(SEARCH(\".\",'Enrollment Form'!AH85,SEARCH(\"@\",'Enrollment Form'!AH85))),\"N\",\"Y\"))","v":""},{"$f":"IF(OR($B78=\"N\",'Enrollment Form'!$G85=\"\"),\"\",IF('Enrollment Form'!$B85<>\"Subscriber\",\"-\",IF(COUNTIF('Enrollment Form'!$AV85:$AW85,\"Yes\")=2,\"N\",\"Y\")))","v":""},{"$f":"IF(OR('Enrollment Form'!$CJ85=\"\",'Enrollment Form'!$CJ85=\"No\"),\"-\",IF(AND('Enrollment Form'!$CJ85=\"Yes\",'Enrollment Form'!$CK85=\"\"),\"N\",\"Y\"))","v":"-"},{"$f":"IF(OR('Enrollment Form'!$CL85=\"\",'Enrollment Form'!$CL85=\"No\"),\"-\",IF(AND('Enrollment Form'!$CL85=\"Yes\",'Enrollment Form'!$CM85=\"\"),\"N\",\"Y\"))","v":"-"},{"$f":"IF(OR('Enrollment Form'!$CN85=\"\",'Enrollment Form'!$CN85=\"No\"),\"-\",IF(AND('Enrollment Form'!$CN85=\"Yes\",'Enrollment Form'!$CO85=\"\"),\"N\",\"Y\"))","v":"-"},{"$f":"IF(OR('Enrollment Form'!$CN85=\"\",'Enrollment Form'!$CN85=\"No\"),\"-\",IF(AND('Enrollment Form'!$CN85=\"Yes\",'Enrollment Form'!$CP85=\"\"),\"N\",\"Y\"))","v":"-"},{"$f":"IF('Enrollment Form'!B85<>\"Subscriber\",\"-\",IF(AND('Enrollment Form'!B85=\"Subscriber\",'Enrollment Form'!C85=\"Enroll\",'Enrollment Form'!AA85=\"\"),\"N\",\"Y\"))","v":"-"},{"$f":"IF(OR('Enrollment Form'!B85=\"Subscriber\",'Enrollment Form'!B85=\"\"),\"-\",IF('Enrollment Form'!BP85=\"\",\"N\",\"Y\"))","v":"-"},{"$f":"IF('Enrollment Form'!B85<>\"Subscriber\",\"-\",IF(AND('Enrollment Form'!B85=\"Subscriber\",'Enrollment Form'!G85=\"\"),\"N\",\"Y\"))","v":"-"},{"$f":"IF('Enrollment Form'!A85=\"\",\"\",IF('Enrollment Form'!B85=\"Subscriber\",\"-\",IF(AND('Enrollment Form'!B85<>\"Subscriber\",'Enrollment Form'!G85='Enrollment Form'!H85),\"N\",\"Y\")))","v":""},0]
[86,{"$f":"IF('Enrollment Form'!$A86<>\"\",\"Y\",\"N\")","v":"N"},{"$f":"IF(AND('Enrollment Form'!$B86=\"\",'Enrollment Form'!$C86<>\"\"),\"N\",IF($B79=\"N\",\"\",\"Y\"))","v":""},{"$f":"IF(OR($B79=\"N\",'Enrollment Form'!G86=\"\"),\"\",IF('Enrollment Form'!$B86<>\"Subscriber\",\"\",IF('Enrollment Form'!$G86='Enrollment Form'!$H86,\"Y\",\"N\")))","v":""},{"$f":"IF($B79=\"N\",\"\",IF(AND(COUNTIFS('Enrollment Form'!$H$11:$H$1000,'Enrollment Form'!$H86,'Enrollment Form'!$B$11:$B$1000,'Enrollment Form'!$B86)>1,'Enrollment Form'!$H86<>\"\"),\"N\",\"Y\"))","v":""},{"$f":"IF($B79=\"N\",\"\",IF(LEN('Enrollment Form'!$Y86)=0,\"\",IF(LEN('Enrollment Form'!$Y86)<>5,\"N\",\"Y\")))","v":""},{"$f":"IF($B79=\"N\",\"\",IF(LEN('Enrollment Form'!$AD86=0),\"\",IF(LEN('Enrollment Form'!$AD86)<>5,\"N\",\"Y\")))","v":""},{"$f":"IF($B79=\"N\",\"\",IF(LEN('Enrollment Form'!$BS86=0),\"\",IF(LEN('Enrollment Form'!$BS86)<>5,\"N\",\"Y\")))","v":""},{"$f":"IF($B79=\"N\",\"\",IF(LEN('Enrollment Form'!$AE86)=0,\"\",IF(LEN('Enrollment Form'!$AE86)<>10,\"N\",\"Y\")))","v":""},{"$f":"IF($B79=\"N\",\"\",IF(LEN('Enrollment Form'!$AF86)=0,\"\",IF(LEN('Enrollment Form'!$AF86)<>10,\"N\",\"Y\")))","v":""},{"$f":"IF('Enrollment Form'!$O86<>\"Graded\",\"-\",IF(AND('Enrollment Form'!$O86=\"Graded\",'Enrollment Form'!$AR86<>\"\"),\"Y\",\"N\"))","v":"-"},{"$f":"IF($B79=\"N\",\"\",IF(OR('Enrollment Form'!$B86<>\"Subscriber\",'Enrollment Form'!$C86=\"ROC\"),\"-\",IF(AND('Enrollment Form'!$B86=\"Subscriber\",'Enrollment Form'!$C86=\"Enroll\",'Enrollment Form'!$AJ86<>\"\"),\"Y\",\"N\")))","v":""},{"$f":"IF($B79=\"N\",\"\",IF(OR('Enrollment Form'!$B86<>\"Subscriber\",'Enrollment Form'!$C86=\"ROC\"),\"-\",IF(AND('Enrollment Form'!$B86=\"Subscriber\",'Enrollment Form'!$C86=\"Enroll\",'Enrollment Form'!$AK86<>\"\"),\"Y\",\"N\")))","v":""},{"$f":"IF($B79=\"N\",\"\",IF(OR('Enrollment Form'!$B86<>\"Subscriber\",'Enrollment Form'!$C86=\"ROC\"),\"-\",IF(AND('Enrollment Form'!$B86=\"Subscriber\",'Enrollment Form'!$C86=\"Enroll\",'Enrollment Form'!$AL86<>\"\"),\"Y\",\"N\")))","v":""},{"$f":"IF($B79=\"N\",\"\",IF(OR('Enrollment Form'!$B86<>\"Subscriber\",'Enrollment Form'!$C86=\"ROC\"),\"-\",IF(AND('Enrollment Form'!$B86=\"Subscriber\",'Enrollment Form'!$C86=\"Enroll\",'Enrollment Form'!$AP86<>\"\"),\"Y\",\"N\")))","v":""},{"$f":"IF($B79=\"N\",\"\",IF(OR('Enrollment Form'!$B86<>\"Subscriber\",'Enrollment Form'!$C86=\"ROC\"),\"-\",IF(AND('Enrollment Form'!$B86=\"Subscriber\",'Enrollment Form'!$C86=\"Enroll\",'Enrollment Form'!$AQ86<>\"\"),\"Y\",\"N\")))","v":""},{"$f":"IF($B79=\"N\",\"\",IF(OR('Enrollment Form'!$B86<>\"Subscriber\",'Enrollment Form'!$C86=\"ROC\"),\"-\",IF(AND('Enrollment Form'!$B86=\"Subscriber\",'Enrollment Form'!$C86=\"Enroll\",'Enrollment Form'!$AS86<>\"\"),\"Y\",\"N\")))","v":""},{"$f":"IF($B79=\"N\",\"\",IF($Q79=\"-\",\"-\",IF(AND($Q79=\"Y\",'Enrollment Form'!$AS86=\"No\"),\"-\",IF(AND($Q79=\"Y\",'Enrollment Form'!$AS86=\"Yes\",'Enrollment Form'!$AT86<>\"\"),\"Y\",\"N\"))))","v":""},{"$f":"IF($B79=\"N\",\"\",IF(OR('Enrollment Form'!$B86<>\"Subscriber\",'Enrollment Form'!$C86=\"ROC\"),\"-\",IF(AND('Enrollment Form'!$B86=\"Subscriber\",'Enrollment Form'!$C86=\"Enroll\",'Enrollment Form'!$CV86<>\"\"),\"Y\",\"N\")))","v":""},{"$f":"IF($B79=\"N\",\"\",IF($S79=\"-\",\"-\",IF(AND($S79=\"Y\",'Enrollment Form'!$CV86=\"No\"),\"-\",IF(AND($S79=\"Y\",'Enrollment Form'!$CV86=\"Yes\",'Enrollment Form'!$CW86<>\"\"),\"Y\",\"N\"))))","v":""},{"$f":"IF(OR('Enrollment Form'!$AY86=\"Yes\",'Enrollment Form'!$AY86=\"\"),\"-\",IF(OR(AND('Enrollment Form'!$AY86=\"No\",ISERROR(FIND(\"HMO\",VLOOKUP('Enrollment Form'!G86,'Enrollment Form'!H$11:J$1000,3,FALSE),1))=FALSE,COUNTA('Enrollment Form'!$AZ86:$BC86)=4),AND('Enrollment Form'!$AY86=\"No\",ISERROR(FIND(\"HMO\",VLOOKUP('Enrollment Form'!G86,'Enrollment Form'!H$11:J$1000,3,FALSE),1))=FALSE,COUNTA('Enrollment Form'!$BT86:$BW86)=4)),\"Y\",\"N\"))","v":"-"},{"$f":"IF($B79=\"N\",\"\",IF('Enrollment Form'!$B86=\"Subscriber\",\"-\",IF(COUNTA('Enrollment Form'!$BL86,'Enrollment Form'!$BN86)=2,\"Y\",\"N\")))","v":""},{"$f":"IF($B79=\"N\",\"\",IF(OR('Enrollment Form'!$AX86=\"\",'Enrollment Form'!$AX86=\"No\"),\"-\",IF(AND('Enrollment Form'!$AX86=\"Yes\",COUNTA('Enrollment Form'!$CR86)=1),\"Y\",\"N\")))","v":""},{"$f":"IF(OR('Enrollment Form'!$CR86=\"\",'Enrollment Form'!$CR86=\"No\"),\"-\",IF(COUNTA('Enrollment Form'!$CT86:$CU86)=2,\"Y\",\"N\"))","v":"-"},{"$f":"IF($B79=\"N\",\"\",IF(COUNTIF('Enrollment Form'!$DG86:$DP86,\"Other\")=COUNTA('Enrollment Form'!$DK86,'Enrollment Form'!$DH86,'Enrollment Form'!$DN86,'Enrollment Form'!$DQ86),\"Y\",\"N\"))","v":""},{"$f":"IF($B79=\"N\",\"\",IF(OR('Enrollment Form'!B86<>\"Subscriber\",'Enrollment Form'!C86=\"ROC\",COUNTIF('Enrollment Form'!AV86:AW86,\"Yes\")>=1),\"-\",IF(AND('Enrollment Form'!C86=\"Enroll\",COUNTIF('Enrollment Form'!AV86:AW86,\"No\")=2,'Enrollment Form'!AX86=\"\"),\"N\",\"Y\")))","v":""},{"$f":"IF(OR(B79=\"N\",'Enrollment Form'!B86<>\"Subscriber\",'Enrollment Form'!C86=\"ROC\",'Enrollment Form'!O86<>\"Multiple of Salary\"),\"-\",IF(COUNTA('Enrollment Form'!T86:U86)<2,\"N\",\"Y\"))","v":"-"},{"$f":"IF(B79=\"N\",\"\",IF(OR('Enrollment Form'!C86=\"ROC\",'Enrollment Form'!B86<>\"Subscriber\",'Enrollment Form'!O86=\"Waive\",'Enrollment Form'!O86=\"\"),\"-\",IF('Enrollment Form'!P86=\"\",\"N\",\"Y\")))","v":""},{"$f":"IF($B79=\"N\",\"\",IF(AND('Enrollment Form'!$C86=\"ROC\",'Enrollment Form'!$DR86<>\"\"),\"Y\",IF(AND('Enrollment Form'!$C86=\"ROC\",'Enrollment Form'!$DR86=\"\"),\"N\",IF(AND('Enrollment Form'!$C86=\"Enroll\",'Enrollment Form'!$B86=\"Subscriber\",'Enrollment Form'!$CX86=\"No\",'Enrollment Form'!$DR86=\"\"),\"N\",IF(AND('Enrollment Form'!$C86=\"Enroll\",'Enrollment Form'!$B86=\"Subscriber\",'Enrollment Form'!$CX86=\"Yes\"),\"-\",\"Y\")))))","v":""},{"$f":"IF($B79=\"N\",\"\",IF(AND('Enrollment Form'!$C86=\"ROC\",'Enrollment Form'!$DS86<>\"\"),\"Y\",IF(AND('Enrollment Form'!$C86=\"ROC\",'Enrollment Form'!$DS86=\"\"),\"N\",IF(AND('Enrollment Form'!$C86=\"Enroll\",'Enrollment Form'!$B86=\"Subscriber\",'Enrollment Form'!$CX86=\"No\",'Enrollment Form'!$DS86=\"\"),\"N\",IF(AND('Enrollment Form'!$C86=\"Enroll\",'Enrollment Form'!$B86=\"Subscriber\",'Enrollment Form'!$CX86=\"Yes\"),\"-\",\"Y\")))))","v":""},{"$f":"IF('Enrollment Form'!AH86=\"\",\"\",IF(ISERROR(SEARCH(\".\",'Enrollment Form'!AH86,SEARCH(\"@\",'Enrollment Form'!AH86))),\"N\",\"Y\"))","v":""},{"$f":"IF(OR($B79=\"N\",'Enrollment Form'!$G86=\"\"),\"\",IF('Enrollment Form'!$B86<>\"Subscriber\",\"-\",IF(COUNTIF('Enrollment Form'!$AV86:$AW86,\"Yes\")=2,\"N\",\"Y\")))","v":""},{"$f":"IF(OR('Enrollment Form'!$CJ86=\"\",'Enrollment Form'!$CJ86=\"No\"),\"-\",IF(AND('Enrollment Form'!$CJ86=\"Yes\",'Enrollment Form'!$CK86=\"\"),\"N\",\"Y\"))","v":"-"},{"$f":"IF(OR('Enrollment Form'!$CL86=\"\",'Enrollment Form'!$CL86=\"No\"),\"-\",IF(AND('Enrollment Form'!$CL86=\"Yes\",'Enrollment Form'!$CM86=\"\"),\"N\",\"Y\"))","v":"-"},{"$f":"IF(OR('Enrollment Form'!$CN86=\"\",'Enrollment Form'!$CN86=\"No\"),\"-\",IF(AND('Enrollment Form'!$CN86=\"Yes\",'Enrollment Form'!$CO86=\"\"),\"N\",\"Y\"))","v":"-"},{"$f":"IF(OR('Enrollment Form'!$CN86=\"\",'Enrollment Form'!$CN86=\"No\"),\"-\",IF(AND('Enrollment Form'!$CN86=\"Yes\",'Enrollment Form'!$CP86=\"\"),\"N\",\"Y\"))","v":"-"},{"$f":"IF('Enrollment Form'!B86<>\"Subscriber\",\"-\",IF(AND('Enrollment Form'!B86=\"Subscriber\",'Enrollment Form'!C86=\"Enroll\",'Enrollment Form'!AA86=\"\"),\"N\",\"Y\"))","v":"-"},{"$f":"IF(OR('Enrollment Form'!B86=\"Subscriber\",'Enrollment Form'!B86=\"\"),\"-\",IF('Enrollment Form'!BP86=\"\",\"N\",\"Y\"))","v":"-"},{"$f":"IF('Enrollment Form'!B86<>\"Subscriber\",\"-\",IF(AND('Enrollment Form'!B86=\"Subscriber\",'Enrollment Form'!G86=\"\"),\"N\",\"Y\"))","v":"-"},{"$f":"IF('Enrollment Form'!A86=\"\",\"\",IF('Enrollment Form'!B86=\"Subscriber\",\"-\",IF(AND('Enrollment Form'!B86<>\"Subscriber\",'Enrollment Form'!G86='Enrollment Form'!H86),\"N\",\"Y\")))","v":""},0]
[87,{"$f":"IF('Enrollment Form'!$A87<>\"\",\"Y\",\"N\")","v":"N"},{"$f":"IF(AND('Enrollment Form'!$B87=\"\",'Enrollment Form'!$C87<>\"\"),\"N\",IF($B80=\"N\",\"\",\"Y\"))","v":""},{"$f":"IF(OR($B80=\"N\",'Enrollment Form'!G87=\"\"),\"\",IF('Enrollment Form'!$B87<>\"Subscriber\",\"\",IF('Enrollment Form'!$G87='Enrollment Form'!$H87,\"Y\",\"N\")))","v":""},{"$f":"IF($B80=\"N\",\"\",IF(AND(COUNTIFS('Enrollment Form'!$H$11:$H$1000,'Enrollment Form'!$H87,'Enrollment Form'!$B$11:$B$1000,'Enrollment Form'!$B87)>1,'Enrollment Form'!$H87<>\"\"),\"N\",\"Y\"))","v":""},{"$f":"IF($B80=\"N\",\"\",IF(LEN('Enrollment Form'!$Y87)=0,\"\",IF(LEN('Enrollment Form'!$Y87)<>5,\"N\",\"Y\")))","v":""},{"$f":"IF($B80=\"N\",\"\",IF(LEN('Enrollment Form'!$AD87=0),\"\",IF(LEN('Enrollment Form'!$AD87)<>5,\"N\",\"Y\")))","v":""},{"$f":"IF($B80=\"N\",\"\",IF(LEN('Enrollment Form'!$BS87=0),\"\",IF(LEN('Enrollment Form'!$BS87)<>5,\"N\",\"Y\")))","v":""},{"$f":"IF($B80=\"N\",\"\",IF(LEN('Enrollment Form'!$AE87)=0,\"\",IF(LEN('Enrollment Form'!$AE87)<>10,\"N\",\"Y\")))","v":""},{"$f":"IF($B80=\"N\",\"\",IF(LEN('Enrollment Form'!$AF87)=0,\"\",IF(LEN('Enrollment Form'!$AF87)<>10,\"N\",\"Y\")))","v":""},{"$f":"IF('Enrollment Form'!$O87<>\"Graded\",\"-\",IF(AND('Enrollment Form'!$O87=\"Graded\",'Enrollment Form'!$AR87<>\"\"),\"Y\",\"N\"))","v":"-"},{"$f":"IF($B80=\"N\",\"\",IF(OR('Enrollment Form'!$B87<>\"Subscriber\",'Enrollment Form'!$C87=\"ROC\"),\"-\",IF(AND('Enrollment Form'!$B87=\"Subscriber\",'Enrollment Form'!$C87=\"Enroll\",'Enrollment Form'!$AJ87<>\"\"),\"Y\",\"N\")))","v":""},{"$f":"IF($B80=\"N\",\"\",IF(OR('Enrollment Form'!$B87<>\"Subscriber\",'Enrollment Form'!$C87=\"ROC\"),\"-\",IF(AND('Enrollment Form'!$B87=\"Subscriber\",'Enrollment Form'!$C87=\"Enroll\",'Enrollment Form'!$AK87<>\"\"),\"Y\",\"N\")))","v":""},{"$f":"IF($B80=\"N\",\"\",IF(OR('Enrollment Form'!$B87<>\"Subscriber\",'Enrollment Form'!$C87=\"ROC\"),\"-\",IF(AND('Enrollment Form'!$B87=\"Subscriber\",'Enrollment Form'!$C87=\"Enroll\",'Enrollment Form'!$AL87<>\"\"),\"Y\",\"N\")))","v":""},{"$f":"IF($B80=\"N\",\"\",IF(OR('Enrollment Form'!$B87<>\"Subscriber\",'Enrollment Form'!$C87=\"ROC\"),\"-\",IF(AND('Enrollment Form'!$B87=\"Subscriber\",'Enrollment Form'!$C87=\"Enroll\",'Enrollment Form'!$AP87<>\"\"),\"Y\",\"N\")))","v":""},{"$f":"IF($B80=\"N\",\"\",IF(OR('Enrollment Form'!$B87<>\"Subscriber\",'Enrollment Form'!$C87=\"ROC\"),\"-\",IF(AND('Enrollment Form'!$B87=\"Subscriber\",'Enrollment Form'!$C87=\"Enroll\",'Enrollment Form'!$AQ87<>\"\"),\"Y\",\"N\")))","v":""},{"$f":"IF($B80=\"N\",\"\",IF(OR('Enrollment Form'!$B87<>\"Subscriber\",'Enrollment Form'!$C87=\"ROC\"),\"-\",IF(AND('Enrollment Form'!$B87=\"Subscriber\",'Enrollment Form'!$C87=\"Enroll\",'Enrollment Form'!$AS87<>\"\"),\"Y\",\"N\")))","v":""},{"$f":"IF($B80=\"N\",\"\",IF($Q80=\"-\",\"-\",IF(AND($Q80=\"Y\",'Enrollment Form'!$AS87=\"No\"),\"-\",IF(AND($Q80=\"Y\",'Enrollment Form'!$AS87=\"Yes\",'Enrollment Form'!$AT87<>\"\"),\"Y\",\"N\"))))","v":""},{"$f":"IF($B80=\"N\",\"\",IF(OR('Enrollment Form'!$B87<>\"Subscriber\",'Enrollment Form'!$C87=\"ROC\"),\"-\",IF(AND('Enrollment Form'!$B87=\"Subscriber\",'Enrollment Form'!$C87=\"Enroll\",'Enrollment Form'!$CV87<>\"\"),\"Y\",\"N\")))","v":""},{"$f":"IF($B80=\"N\",\"\",IF($S80=\"-\",\"-\",IF(AND($S80=\"Y\",'Enrollment Form'!$CV87=\"No\"),\"-\",IF(AND($S80=\"Y\",'Enrollment Form'!$CV87=\"Yes\",'Enrollment Form'!$CW87<>\"\"),\"Y\",\"N\"))))","v":""},{"$f":"IF(OR('Enrollment Form'!$AY87=\"Yes\",'Enrollment Form'!$AY87=\"\"),\"-\",IF(OR(AND('Enrollment Form'!$AY87=\"No\",ISERROR(FIND(\"HMO\",VLOOKUP('Enrollment Form'!G87,'Enrollment Form'!H$11:J$1000,3,FALSE),1))=FALSE,COUNTA('Enrollment Form'!$AZ87:$BC87)=4),AND('Enrollment Form'!$AY87=\"No\",ISERROR(FIND(\"HMO\",VLOOKUP('Enrollment Form'!G87,'Enrollment Form'!H$11:J$1000,3,FALSE),1))=FALSE,COUNTA('Enrollment Form'!$BT87:$BW87)=4)),\"Y\",\"N\"))","v":"-"},{"$f":"IF($B80=\"N\",\"\",IF('Enrollment Form'!$B87=\"Subscriber\",\"-\",IF(COUNTA('Enrollment Form'!$BL87,'Enrollment Form'!$BN87)=2,\"Y\",\"N\")))","v":""},{"$f":"IF($B80=\"N\",\"\",IF(OR('Enrollment Form'!$AX87=\"\",'Enrollment Form'!$AX87=\"No\"),\"-\",IF(AND('Enrollment Form'!$AX87=\"Yes\",COUNTA('Enrollment Form'!$CR87)=1),\"Y\",\"N\")))","v":""},{"$f":"IF(OR('Enrollment Form'!$CR87=\"\",'Enrollment Form'!$CR87=\"No\"),\"-\",IF(COUNTA('Enrollment Form'!$CT87:$CU87)=2,\"Y\",\"N\"))","v":"-"},{"$f":"IF($B80=\"N\",\"\",IF(COUNTIF('Enrollment Form'!$DG87:$DP87,\"Other\")=COUNTA('Enrollment Form'!$DK87,'Enrollment Form'!$DH87,'Enrollment Form'!$DN87,'Enrollment Form'!$DQ87),\"Y\",\"N\"))","v":""},{"$f":"IF($B80=\"N\",\"\",IF(OR('Enrollment Form'!B87<>\"Subscriber\",'Enrollment Form'!C87=\"ROC\",COUNTIF('Enrollment Form'!AV87:AW87,\"Yes\")>=1),\"-\",IF(AND('Enrollment Form'!C87=\"Enroll\",COUNTIF('Enrollment Form'!AV87:AW87,\"No\")=2,'Enrollment Form'!AX87=\"\"),\"N\",\"Y\")))","v":""},{"$f":"IF(OR(B80=\"N\",'Enrollment Form'!B87<>\"Subscriber\",'Enrollment Form'!C87=\"ROC\",'Enrollment Form'!O87<>\"Multiple of Salary\"),\"-\",IF(COUNTA('Enrollment Form'!T87:U87)<2,\"N\",\"Y\"))","v":"-"},{"$f":"IF(B80=\"N\",\"\",IF(OR('Enrollment Form'!C87=\"ROC\",'Enrollment Form'!B87<>\"Subscriber\",'Enrollment Form'!O87=\"Waive\",'Enrollment Form'!O87=\"\"),\"-\",IF('Enrollment Form'!P87=\"\",\"N\",\"Y\")))","v":""},{"$f":"IF($B80=\"N\",\"\",IF(AND('Enrollment Form'!$C87=\"ROC\",'Enrollment Form'!$DR87<>\"\"),\"Y\",IF(AND('Enrollment Form'!$C87=\"ROC\",'Enrollment Form'!$DR87=\"\"),\"N\",IF(AND('Enrollment Form'!$C87=\"Enroll\",'Enrollment Form'!$B87=\"Subscriber\",'Enrollment Form'!$CX87=\"No\",'Enrollment Form'!$DR87=\"\"),\"N\",IF(AND('Enrollment Form'!$C87=\"Enroll\",'Enrollment Form'!$B87=\"Subscriber\",'Enrollment Form'!$CX87=\"Yes\"),\"-\",\"Y\")))))","v":""},{"$f":"IF($B80=\"N\",\"\",IF(AND('Enrollment Form'!$C87=\"ROC\",'Enrollment Form'!$DS87<>\"\"),\"Y\",IF(AND('Enrollment Form'!$C87=\"ROC\",'Enrollment Form'!$DS87=\"\"),\"N\",IF(AND('Enrollment Form'!$C87=\"Enroll\",'Enrollment Form'!$B87=\"Subscriber\",'Enrollment Form'!$CX87=\"No\",'Enrollment Form'!$DS87=\"\"),\"N\",IF(AND('Enrollment Form'!$C87=\"Enroll\",'Enrollment Form'!$B87=\"Subscriber\",'Enrollment Form'!$CX87=\"Yes\"),\"-\",\"Y\")))))","v":""},{"$f":"IF('Enrollment Form'!AH87=\"\",\"\",IF(ISERROR(SEARCH(\".\",'Enrollment Form'!AH87,SEARCH(\"@\",'Enrollment Form'!AH87))),\"N\",\"Y\"))","v":""},{"$f":"IF(OR($B80=\"N\",'Enrollment Form'!$G87=\"\"),\"\",IF('Enrollment Form'!$B87<>\"Subscriber\",\"-\",IF(COUNTIF('Enrollment Form'!$AV87:$AW87,\"Yes\")=2,\"N\",\"Y\")))","v":""},{"$f":"IF(OR('Enrollment Form'!$CJ87=\"\",'Enrollment Form'!$CJ87=\"No\"),\"-\",IF(AND('Enrollment Form'!$CJ87=\"Yes\",'Enrollment Form'!$CK87=\"\"),\"N\",\"Y\"))","v":"-"},{"$f":"IF(OR('Enrollment Form'!$CL87=\"\",'Enrollment Form'!$CL87=\"No\"),\"-\",IF(AND('Enrollment Form'!$CL87=\"Yes\",'Enrollment Form'!$CM87=\"\"),\"N\",\"Y\"))","v":"-"},{"$f":"IF(OR('Enrollment Form'!$CN87=\"\",'Enrollment Form'!$CN87=\"No\"),\"-\",IF(AND('Enrollment Form'!$CN87=\"Yes\",'Enrollment Form'!$CO87=\"\"),\"N\",\"Y\"))","v":"-"},{"$f":"IF(OR('Enrollment Form'!$CN87=\"\",'Enrollment Form'!$CN87=\"No\"),\"-\",IF(AND('Enrollment Form'!$CN87=\"Yes\",'Enrollment Form'!$CP87=\"\"),\"N\",\"Y\"))","v":"-"},{"$f":"IF('Enrollment Form'!B87<>\"Subscriber\",\"-\",IF(AND('Enrollment Form'!B87=\"Subscriber\",'Enrollment Form'!C87=\"Enroll\",'Enrollment Form'!AA87=\"\"),\"N\",\"Y\"))","v":"-"},{"$f":"IF(OR('Enrollment Form'!B87=\"Subscriber\",'Enrollment Form'!B87=\"\"),\"-\",IF('Enrollment Form'!BP87=\"\",\"N\",\"Y\"))","v":"-"},{"$f":"IF('Enrollment Form'!B87<>\"Subscriber\",\"-\",IF(AND('Enrollment Form'!B87=\"Subscriber\",'Enrollment Form'!G87=\"\"),\"N\",\"Y\"))","v":"-"},{"$f":"IF('Enrollment Form'!A87=\"\",\"\",IF('Enrollment Form'!B87=\"Subscriber\",\"-\",IF(AND('Enrollment Form'!B87<>\"Subscriber\",'Enrollment Form'!G87='Enrollment Form'!H87),\"N\",\"Y\")))","v":""},0]
[88,{"$f":"IF('Enrollment Form'!$A88<>\"\",\"Y\",\"N\")","v":"N"},{"$f":"IF(AND('Enrollment Form'!$B88=\"\",'Enrollment Form'!$C88<>\"\"),\"N\",IF($B81=\"N\",\"\",\"Y\"))","v":""},{"$f":"IF(OR($B81=\"N\",'Enrollment Form'!G88=\"\"),\"\",IF('Enrollment Form'!$B88<>\"Subscriber\",\"\",IF('Enrollment Form'!$G88='Enrollment Form'!$H88,\"Y\",\"N\")))","v":""},{"$f":"IF($B81=\"N\",\"\",IF(AND(COUNTIFS('Enrollment Form'!$H$11:$H$1000,'Enrollment Form'!$H88,'Enrollment Form'!$B$11:$B$1000,'Enrollment Form'!$B88)>1,'Enrollment Form'!$H88<>\"\"),\"N\",\"Y\"))","v":""},{"$f":"IF($B81=\"N\",\"\",IF(LEN('Enrollment Form'!$Y88)=0,\"\",IF(LEN('Enrollment Form'!$Y88)<>5,\"N\",\"Y\")))","v":""},{"$f":"IF($B81=\"N\",\"\",IF(LEN('Enrollment Form'!$AD88=0),\"\",IF(LEN('Enrollment Form'!$AD88)<>5,\"N\",\"Y\")))","v":""},{"$f":"IF($B81=\"N\",\"\",IF(LEN('Enrollment Form'!$BS88=0),\"\",IF(LEN('Enrollment Form'!$BS88)<>5,\"N\",\"Y\")))","v":""},{"$f":"IF($B81=\"N\",\"\",IF(LEN('Enrollment Form'!$AE88)=0,\"\",IF(LEN('Enrollment Form'!$AE88)<>10,\"N\",\"Y\")))","v":""},{"$f":"IF($B81=\"N\",\"\",IF(LEN('Enrollment Form'!$AF88)=0,\"\",IF(LEN('Enrollment Form'!$AF88)<>10,\"N\",\"Y\")))","v":""},{"$f":"IF('Enrollment Form'!$O88<>\"Graded\",\"-\",IF(AND('Enrollment Form'!$O88=\"Graded\",'Enrollment Form'!$AR88<>\"\"),\"Y\",\"N\"))","v":"-"},{"$f":"IF($B81=\"N\",\"\",IF(OR('Enrollment Form'!$B88<>\"Subscriber\",'Enrollment Form'!$C88=\"ROC\"),\"-\",IF(AND('Enrollment Form'!$B88=\"Subscriber\",'Enrollment Form'!$C88=\"Enroll\",'Enrollment Form'!$AJ88<>\"\"),\"Y\",\"N\")))","v":""},{"$f":"IF($B81=\"N\",\"\",IF(OR('Enrollment Form'!$B88<>\"Subscriber\",'Enrollment Form'!$C88=\"ROC\"),\"-\",IF(AND('Enrollment Form'!$B88=\"Subscriber\",'Enrollment Form'!$C88=\"Enroll\",'Enrollment Form'!$AK88<>\"\"),\"Y\",\"N\")))","v":""},{"$f":"IF($B81=\"N\",\"\",IF(OR('Enrollment Form'!$B88<>\"Subscriber\",'Enrollment Form'!$C88=\"ROC\"),\"-\",IF(AND('Enrollment Form'!$B88=\"Subscriber\",'Enrollment Form'!$C88=\"Enroll\",'Enrollment Form'!$AL88<>\"\"),\"Y\",\"N\")))","v":""},{"$f":"IF($B81=\"N\",\"\",IF(OR('Enrollment Form'!$B88<>\"Subscriber\",'Enrollment Form'!$C88=\"ROC\"),\"-\",IF(AND('Enrollment Form'!$B88=\"Subscriber\",'Enrollment Form'!$C88=\"Enroll\",'Enrollment Form'!$AP88<>\"\"),\"Y\",\"N\")))","v":""},{"$f":"IF($B81=\"N\",\"\",IF(OR('Enrollment Form'!$B88<>\"Subscriber\",'Enrollment Form'!$C88=\"ROC\"),\"-\",IF(AND('Enrollment Form'!$B88=\"Subscriber\",'Enrollment Form'!$C88=\"Enroll\",'Enrollment Form'!$AQ88<>\"\"),\"Y\",\"N\")))","v":""},{"$f":"IF($B81=\"N\",\"\",IF(OR('Enrollment Form'!$B88<>\"Subscriber\",'Enrollment Form'!$C88=\"ROC\"),\"-\",IF(AND('Enrollment Form'!$B88=\"Subscriber\",'Enrollment Form'!$C88=\"Enroll\",'Enrollment Form'!$AS88<>\"\"),\"Y\",\"N\")))","v":""},{"$f":"IF($B81=\"N\",\"\",IF($Q81=\"-\",\"-\",IF(AND($Q81=\"Y\",'Enrollment Form'!$AS88=\"No\"),\"-\",IF(AND($Q81=\"Y\",'Enrollment Form'!$AS88=\"Yes\",'Enrollment Form'!$AT88<>\"\"),\"Y\",\"N\"))))","v":""},{"$f":"IF($B81=\"N\",\"\",IF(OR('Enrollment Form'!$B88<>\"Subscriber\",'Enrollment Form'!$C88=\"ROC\"),\"-\",IF(AND('Enrollment Form'!$B88=\"Subscriber\",'Enrollment Form'!$C88=\"Enroll\",'Enrollment Form'!$CV88<>\"\"),\"Y\",\"N\")))","v":""},{"$f":"IF($B81=\"N\",\"\",IF($S81=\"-\",\"-\",IF(AND($S81=\"Y\",'Enrollment Form'!$CV88=\"No\"),\"-\",IF(AND($S81=\"Y\",'Enrollment Form'!$CV88=\"Yes\",'Enrollment Form'!$CW88<>\"\"),\"Y\",\"N\"))))","v":""},{"$f":"IF(OR('Enrollment Form'!$AY88=\"Yes\",'Enrollment Form'!$AY88=\"\"),\"-\",IF(OR(AND('Enrollment Form'!$AY88=\"No\",ISERROR(FIND(\"HMO\",VLOOKUP('Enrollment Form'!G88,'Enrollment Form'!H$11:J$1000,3,FALSE),1))=FALSE,COUNTA('Enrollment Form'!$AZ88:$BC88)=4),AND('Enrollment Form'!$AY88=\"No\",ISERROR(FIND(\"HMO\",VLOOKUP('Enrollment Form'!G88,'Enrollment Form'!H$11:J$1000,3,FALSE),1))=FALSE,COUNTA('Enrollment Form'!$BT88:$BW88)=4)),\"Y\",\"N\"))","v":"-"},{"$f":"IF($B81=\"N\",\"\",IF('Enrollment Form'!$B88=\"Subscriber\",\"-\",IF(COUNTA('Enrollment Form'!$BL88,'Enrollment Form'!$BN88)=2,\"Y\",\"N\")))","v":""},{"$f":"IF($B81=\"N\",\"\",IF(OR('Enrollment Form'!$AX88=\"\",'Enrollment Form'!$AX88=\"No\"),\"-\",IF(AND('Enrollment Form'!$AX88=\"Yes\",COUNTA('Enrollment Form'!$CR88)=1),\"Y\",\"N\")))","v":""},{"$f":"IF(OR('Enrollment Form'!$CR88=\"\",'Enrollment Form'!$CR88=\"No\"),\"-\",IF(COUNTA('Enrollment Form'!$CT88:$CU88)=2,\"Y\",\"N\"))","v":"-"},{"$f":"IF($B81=\"N\",\"\",IF(COUNTIF('Enrollment Form'!$DG88:$DP88,\"Other\")=COUNTA('Enrollment Form'!$DK88,'Enrollment Form'!$DH88,'Enrollment Form'!$DN88,'Enrollment Form'!$DQ88),\"Y\",\"N\"))","v":""},{"$f":"IF($B81=\"N\",\"\",IF(OR('Enrollment Form'!B88<>\"Subscriber\",'Enrollment Form'!C88=\"ROC\",COUNTIF('Enrollment Form'!AV88:AW88,\"Yes\")>=1),\"-\",IF(AND('Enrollment Form'!C88=\"Enroll\",COUNTIF('Enrollment Form'!AV88:AW88,\"No\")=2,'Enrollment Form'!AX88=\"\"),\"N\",\"Y\")))","v":""},{"$f":"IF(OR(B81=\"N\",'Enrollment Form'!B88<>\"Subscriber\",'Enrollment Form'!C88=\"ROC\",'Enrollment Form'!O88<>\"Multiple of Salary\"),\"-\",IF(COUNTA('Enrollment Form'!T88:U88)<2,\"N\",\"Y\"))","v":"-"},{"$f":"IF(B81=\"N\",\"\",IF(OR('Enrollment Form'!C88=\"ROC\",'Enrollment Form'!B88<>\"Subscriber\",'Enrollment Form'!O88=\"Waive\",'Enrollment Form'!O88=\"\"),\"-\",IF('Enrollment Form'!P88=\"\",\"N\",\"Y\")))","v":""},{"$f":"IF($B81=\"N\",\"\",IF(AND('Enrollment Form'!$C88=\"ROC\",'Enrollment Form'!$DR88<>\"\"),\"Y\",IF(AND('Enrollment Form'!$C88=\"ROC\",'Enrollment Form'!$DR88=\"\"),\"N\",IF(AND('Enrollment Form'!$C88=\"Enroll\",'Enrollment Form'!$B88=\"Subscriber\",'Enrollment Form'!$CX88=\"No\",'Enrollment Form'!$DR88=\"\"),\"N\",IF(AND('Enrollment Form'!$C88=\"Enroll\",'Enrollment Form'!$B88=\"Subscriber\",'Enrollment Form'!$CX88=\"Yes\"),\"-\",\"Y\")))))","v":""},{"$f":"IF($B81=\"N\",\"\",IF(AND('Enrollment Form'!$C88=\"ROC\",'Enrollment Form'!$DS88<>\"\"),\"Y\",IF(AND('Enrollment Form'!$C88=\"ROC\",'Enrollment Form'!$DS88=\"\"),\"N\",IF(AND('Enrollment Form'!$C88=\"Enroll\",'Enrollment Form'!$B88=\"Subscriber\",'Enrollment Form'!$CX88=\"No\",'Enrollment Form'!$DS88=\"\"),\"N\",IF(AND('Enrollment Form'!$C88=\"Enroll\",'Enrollment Form'!$B88=\"Subscriber\",'Enrollment Form'!$CX88=\"Yes\"),\"-\",\"Y\")))))","v":""},{"$f":"IF('Enrollment Form'!AH88=\"\",\"\",IF(ISERROR(SEARCH(\".\",'Enrollment Form'!AH88,SEARCH(\"@\",'Enrollment Form'!AH88))),\"N\",\"Y\"))","v":""},{"$f":"IF(OR($B81=\"N\",'Enrollment Form'!$G88=\"\"),\"\",IF('Enrollment Form'!$B88<>\"Subscriber\",\"-\",IF(COUNTIF('Enrollment Form'!$AV88:$AW88,\"Yes\")=2,\"N\",\"Y\")))","v":""},{"$f":"IF(OR('Enrollment Form'!$CJ88=\"\",'Enrollment Form'!$CJ88=\"No\"),\"-\",IF(AND('Enrollment Form'!$CJ88=\"Yes\",'Enrollment Form'!$CK88=\"\"),\"N\",\"Y\"))","v":"-"},{"$f":"IF(OR('Enrollment Form'!$CL88=\"\",'Enrollment Form'!$CL88=\"No\"),\"-\",IF(AND('Enrollment Form'!$CL88=\"Yes\",'Enrollment Form'!$CM88=\"\"),\"N\",\"Y\"))","v":"-"},{"$f":"IF(OR('Enrollment Form'!$CN88=\"\",'Enrollment Form'!$CN88=\"No\"),\"-\",IF(AND('Enrollment Form'!$CN88=\"Yes\",'Enrollment Form'!$CO88=\"\"),\"N\",\"Y\"))","v":"-"},{"$f":"IF(OR('Enrollment Form'!$CN88=\"\",'Enrollment Form'!$CN88=\"No\"),\"-\",IF(AND('Enrollment Form'!$CN88=\"Yes\",'Enrollment Form'!$CP88=\"\"),\"N\",\"Y\"))","v":"-"},{"$f":"IF('Enrollment Form'!B88<>\"Subscriber\",\"-\",IF(AND('Enrollment Form'!B88=\"Subscriber\",'Enrollment Form'!C88=\"Enroll\",'Enrollment Form'!AA88=\"\"),\"N\",\"Y\"))","v":"-"},{"$f":"IF(OR('Enrollment Form'!B88=\"Subscriber\",'Enrollment Form'!B88=\"\"),\"-\",IF('Enrollment Form'!BP88=\"\",\"N\",\"Y\"))","v":"-"},{"$f":"IF('Enrollment Form'!B88<>\"Subscriber\",\"-\",IF(AND('Enrollment Form'!B88=\"Subscriber\",'Enrollment Form'!G88=\"\"),\"N\",\"Y\"))","v":"-"},{"$f":"IF('Enrollment Form'!A88=\"\",\"\",IF('Enrollment Form'!B88=\"Subscriber\",\"-\",IF(AND('Enrollment Form'!B88<>\"Subscriber\",'Enrollment Form'!G88='Enrollment Form'!H88),\"N\",\"Y\")))","v":""},0]
[89,{"$f":"IF('Enrollment Form'!$A89<>\"\",\"Y\",\"N\")","v":"N"},{"$f":"IF(AND('Enrollment Form'!$B89=\"\",'Enrollment Form'!$C89<>\"\"),\"N\",IF($B82=\"N\",\"\",\"Y\"))","v":""},{"$f":"IF(OR($B82=\"N\",'Enrollment Form'!G89=\"\"),\"\",IF('Enrollment Form'!$B89<>\"Subscriber\",\"\",IF('Enrollment Form'!$G89='Enrollment Form'!$H89,\"Y\",\"N\")))","v":""},{"$f":"IF($B82=\"N\",\"\",IF(AND(COUNTIFS('Enrollment Form'!$H$11:$H$1000,'Enrollment Form'!$H89,'Enrollment Form'!$B$11:$B$1000,'Enrollment Form'!$B89)>1,'Enrollment Form'!$H89<>\"\"),\"N\",\"Y\"))","v":""},{"$f":"IF($B82=\"N\",\"\",IF(LEN('Enrollment Form'!$Y89)=0,\"\",IF(LEN('Enrollment Form'!$Y89)<>5,\"N\",\"Y\")))","v":""},{"$f":"IF($B82=\"N\",\"\",IF(LEN('Enrollment Form'!$AD89=0),\"\",IF(LEN('Enrollment Form'!$AD89)<>5,\"N\",\"Y\")))","v":""},{"$f":"IF($B82=\"N\",\"\",IF(LEN('Enrollment Form'!$BS89=0),\"\",IF(LEN('Enrollment Form'!$BS89)<>5,\"N\",\"Y\")))","v":""},{"$f":"IF($B82=\"N\",\"\",IF(LEN('Enrollment Form'!$AE89)=0,\"\",IF(LEN('Enrollment Form'!$AE89)<>10,\"N\",\"Y\")))","v":""},{"$f":"IF($B82=\"N\",\"\",IF(LEN('Enrollment Form'!$AF89)=0,\"\",IF(LEN('Enrollment Form'!$AF89)<>10,\"N\",\"Y\")))","v":""},{"$f":"IF('Enrollment Form'!$O89<>\"Graded\",\"-\",IF(AND('Enrollment Form'!$O89=\"Graded\",'Enrollment Form'!$AR89<>\"\"),\"Y\",\"N\"))","v":"-"},{"$f":"IF($B82=\"N\",\"\",IF(OR('Enrollment Form'!$B89<>\"Subscriber\",'Enrollment Form'!$C89=\"ROC\"),\"-\",IF(AND('Enrollment Form'!$B89=\"Subscriber\",'Enrollment Form'!$C89=\"Enroll\",'Enrollment Form'!$AJ89<>\"\"),\"Y\",\"N\")))","v":""},{"$f":"IF($B82=\"N\",\"\",IF(OR('Enrollment Form'!$B89<>\"Subscriber\",'Enrollment Form'!$C89=\"ROC\"),\"-\",IF(AND('Enrollment Form'!$B89=\"Subscriber\",'Enrollment Form'!$C89=\"Enroll\",'Enrollment Form'!$AK89<>\"\"),\"Y\",\"N\")))","v":""},{"$f":"IF($B82=\"N\",\"\",IF(OR('Enrollment Form'!$B89<>\"Subscriber\",'Enrollment Form'!$C89=\"ROC\"),\"-\",IF(AND('Enrollment Form'!$B89=\"Subscriber\",'Enrollment Form'!$C89=\"Enroll\",'Enrollment Form'!$AL89<>\"\"),\"Y\",\"N\")))","v":""},{"$f":"IF($B82=\"N\",\"\",IF(OR('Enrollment Form'!$B89<>\"Subscriber\",'Enrollment Form'!$C89=\"ROC\"),\"-\",IF(AND('Enrollment Form'!$B89=\"Subscriber\",'Enrollment Form'!$C89=\"Enroll\",'Enrollment Form'!$AP89<>\"\"),\"Y\",\"N\")))","v":""},{"$f":"IF($B82=\"N\",\"\",IF(OR('Enrollment Form'!$B89<>\"Subscriber\",'Enrollment Form'!$C89=\"ROC\"),\"-\",IF(AND('Enrollment Form'!$B89=\"Subscriber\",'Enrollment Form'!$C89=\"Enroll\",'Enrollment Form'!$AQ89<>\"\"),\"Y\",\"N\")))","v":""},{"$f":"IF($B82=\"N\",\"\",IF(OR('Enrollment Form'!$B89<>\"Subscriber\",'Enrollment Form'!$C89=\"ROC\"),\"-\",IF(AND('Enrollment Form'!$B89=\"Subscriber\",'Enrollment Form'!$C89=\"Enroll\",'Enrollment Form'!$AS89<>\"\"),\"Y\",\"N\")))","v":""},{"$f":"IF($B82=\"N\",\"\",IF($Q82=\"-\",\"-\",IF(AND($Q82=\"Y\",'Enrollment Form'!$AS89=\"No\"),\"-\",IF(AND($Q82=\"Y\",'Enrollment Form'!$AS89=\"Yes\",'Enrollment Form'!$AT89<>\"\"),\"Y\",\"N\"))))","v":""},{"$f":"IF($B82=\"N\",\"\",IF(OR('Enrollment Form'!$B89<>\"Subscriber\",'Enrollment Form'!$C89=\"ROC\"),\"-\",IF(AND('Enrollment Form'!$B89=\"Subscriber\",'Enrollment Form'!$C89=\"Enroll\",'Enrollment Form'!$CV89<>\"\"),\"Y\",\"N\")))","v":""},{"$f":"IF($B82=\"N\",\"\",IF($S82=\"-\",\"-\",IF(AND($S82=\"Y\",'Enrollment Form'!$CV89=\"No\"),\"-\",IF(AND($S82=\"Y\",'Enrollment Form'!$CV89=\"Yes\",'Enrollment Form'!$CW89<>\"\"),\"Y\",\"N\"))))","v":""},{"$f":"IF(OR('Enrollment Form'!$AY89=\"Yes\",'Enrollment Form'!$AY89=\"\"),\"-\",IF(OR(AND('Enrollment Form'!$AY89=\"No\",ISERROR(FIND(\"HMO\",VLOOKUP('Enrollment Form'!G89,'Enrollment Form'!H$11:J$1000,3,FALSE),1))=FALSE,COUNTA('Enrollment Form'!$AZ89:$BC89)=4),AND('Enrollment Form'!$AY89=\"No\",ISERROR(FIND(\"HMO\",VLOOKUP('Enrollment Form'!G89,'Enrollment Form'!H$11:J$1000,3,FALSE),1))=FALSE,COUNTA('Enrollment Form'!$BT89:$BW89)=4)),\"Y\",\"N\"))","v":"-"},{"$f":"IF($B82=\"N\",\"\",IF('Enrollment Form'!$B89=\"Subscriber\",\"-\",IF(COUNTA('Enrollment Form'!$BL89,'Enrollment Form'!$BN89)=2,\"Y\",\"N\")))","v":""},{"$f":"IF($B82=\"N\",\"\",IF(OR('Enrollment Form'!$AX89=\"\",'Enrollment Form'!$AX89=\"No\"),\"-\",IF(AND('Enrollment Form'!$AX89=\"Yes\",COUNTA('Enrollment Form'!$CR89)=1),\"Y\",\"N\")))","v":""},{"$f":"IF(OR('Enrollment Form'!$CR89=\"\",'Enrollment Form'!$CR89=\"No\"),\"-\",IF(COUNTA('Enrollment Form'!$CT89:$CU89)=2,\"Y\",\"N\"))","v":"-"},{"$f":"IF($B82=\"N\",\"\",IF(COUNTIF('Enrollment Form'!$DG89:$DP89,\"Other\")=COUNTA('Enrollment Form'!$DK89,'Enrollment Form'!$DH89,'Enrollment Form'!$DN89,'Enrollment Form'!$DQ89),\"Y\",\"N\"))","v":""},{"$f":"IF($B82=\"N\",\"\",IF(OR('Enrollment Form'!B89<>\"Subscriber\",'Enrollment Form'!C89=\"ROC\",COUNTIF('Enrollment Form'!AV89:AW89,\"Yes\")>=1),\"-\",IF(AND('Enrollment Form'!C89=\"Enroll\",COUNTIF('Enrollment Form'!AV89:AW89,\"No\")=2,'Enrollment Form'!AX89=\"\"),\"N\",\"Y\")))","v":""},{"$f":"IF(OR(B82=\"N\",'Enrollment Form'!B89<>\"Subscriber\",'Enrollment Form'!C89=\"ROC\",'Enrollment Form'!O89<>\"Multiple of Salary\"),\"-\",IF(COUNTA('Enrollment Form'!T89:U89)<2,\"N\",\"Y\"))","v":"-"},{"$f":"IF(B82=\"N\",\"\",IF(OR('Enrollment Form'!C89=\"ROC\",'Enrollment Form'!B89<>\"Subscriber\",'Enrollment Form'!O89=\"Waive\",'Enrollment Form'!O89=\"\"),\"-\",IF('Enrollment Form'!P89=\"\",\"N\",\"Y\")))","v":""},{"$f":"IF($B82=\"N\",\"\",IF(AND('Enrollment Form'!$C89=\"ROC\",'Enrollment Form'!$DR89<>\"\"),\"Y\",IF(AND('Enrollment Form'!$C89=\"ROC\",'Enrollment Form'!$DR89=\"\"),\"N\",IF(AND('Enrollment Form'!$C89=\"Enroll\",'Enrollment Form'!$B89=\"Subscriber\",'Enrollment Form'!$CX89=\"No\",'Enrollment Form'!$DR89=\"\"),\"N\",IF(AND('Enrollment Form'!$C89=\"Enroll\",'Enrollment Form'!$B89=\"Subscriber\",'Enrollment Form'!$CX89=\"Yes\"),\"-\",\"Y\")))))","v":""},{"$f":"IF($B82=\"N\",\"\",IF(AND('Enrollment Form'!$C89=\"ROC\",'Enrollment Form'!$DS89<>\"\"),\"Y\",IF(AND('Enrollment Form'!$C89=\"ROC\",'Enrollment Form'!$DS89=\"\"),\"N\",IF(AND('Enrollment Form'!$C89=\"Enroll\",'Enrollment Form'!$B89=\"Subscriber\",'Enrollment Form'!$CX89=\"No\",'Enrollment Form'!$DS89=\"\"),\"N\",IF(AND('Enrollment Form'!$C89=\"Enroll\",'Enrollment Form'!$B89=\"Subscriber\",'Enrollment Form'!$CX89=\"Yes\"),\"-\",\"Y\")))))","v":""},{"$f":"IF('Enrollment Form'!AH89=\"\",\"\",IF(ISERROR(SEARCH(\".\",'Enrollment Form'!AH89,SEARCH(\"@\",'Enrollment Form'!AH89))),\"N\",\"Y\"))","v":""},{"$f":"IF(OR($B82=\"N\",'Enrollment Form'!$G89=\"\"),\"\",IF('Enrollment Form'!$B89<>\"Subscriber\",\"-\",IF(COUNTIF('Enrollment Form'!$AV89:$AW89,\"Yes\")=2,\"N\",\"Y\")))","v":""},{"$f":"IF(OR('Enrollment Form'!$CJ89=\"\",'Enrollment Form'!$CJ89=\"No\"),\"-\",IF(AND('Enrollment Form'!$CJ89=\"Yes\",'Enrollment Form'!$CK89=\"\"),\"N\",\"Y\"))","v":"-"},{"$f":"IF(OR('Enrollment Form'!$CL89=\"\",'Enrollment Form'!$CL89=\"No\"),\"-\",IF(AND('Enrollment Form'!$CL89=\"Yes\",'Enrollment Form'!$CM89=\"\"),\"N\",\"Y\"))","v":"-"},{"$f":"IF(OR('Enrollment Form'!$CN89=\"\",'Enrollment Form'!$CN89=\"No\"),\"-\",IF(AND('Enrollment Form'!$CN89=\"Yes\",'Enrollment Form'!$CO89=\"\"),\"N\",\"Y\"))","v":"-"},{"$f":"IF(OR('Enrollment Form'!$CN89=\"\",'Enrollment Form'!$CN89=\"No\"),\"-\",IF(AND('Enrollment Form'!$CN89=\"Yes\",'Enrollment Form'!$CP89=\"\"),\"N\",\"Y\"))","v":"-"},{"$f":"IF('Enrollment Form'!B89<>\"Subscriber\",\"-\",IF(AND('Enrollment Form'!B89=\"Subscriber\",'Enrollment Form'!C89=\"Enroll\",'Enrollment Form'!AA89=\"\"),\"N\",\"Y\"))","v":"-"},{"$f":"IF(OR('Enrollment Form'!B89=\"Subscriber\",'Enrollment Form'!B89=\"\"),\"-\",IF('Enrollment Form'!BP89=\"\",\"N\",\"Y\"))","v":"-"},{"$f":"IF('Enrollment Form'!B89<>\"Subscriber\",\"-\",IF(AND('Enrollment Form'!B89=\"Subscriber\",'Enrollment Form'!G89=\"\"),\"N\",\"Y\"))","v":"-"},{"$f":"IF('Enrollment Form'!A89=\"\",\"\",IF('Enrollment Form'!B89=\"Subscriber\",\"-\",IF(AND('Enrollment Form'!B89<>\"Subscriber\",'Enrollment Form'!G89='Enrollment Form'!H89),\"N\",\"Y\")))","v":""},0]
[90,{"$f":"IF('Enrollment Form'!$A90<>\"\",\"Y\",\"N\")","v":"N"},{"$f":"IF(AND('Enrollment Form'!$B90=\"\",'Enrollment Form'!$C90<>\"\"),\"N\",IF($B83=\"N\",\"\",\"Y\"))","v":""},{"$f":"IF(OR($B83=\"N\",'Enrollment Form'!G90=\"\"),\"\",IF('Enrollment Form'!$B90<>\"Subscriber\",\"\",IF('Enrollment Form'!$G90='Enrollment Form'!$H90,\"Y\",\"N\")))","v":""},{"$f":"IF($B83=\"N\",\"\",IF(AND(COUNTIFS('Enrollment Form'!$H$11:$H$1000,'Enrollment Form'!$H90,'Enrollment Form'!$B$11:$B$1000,'Enrollment Form'!$B90)>1,'Enrollment Form'!$H90<>\"\"),\"N\",\"Y\"))","v":""},{"$f":"IF($B83=\"N\",\"\",IF(LEN('Enrollment Form'!$Y90)=0,\"\",IF(LEN('Enrollment Form'!$Y90)<>5,\"N\",\"Y\")))","v":""},{"$f":"IF($B83=\"N\",\"\",IF(LEN('Enrollment Form'!$AD90=0),\"\",IF(LEN('Enrollment Form'!$AD90)<>5,\"N\",\"Y\")))","v":""},{"$f":"IF($B83=\"N\",\"\",IF(LEN('Enrollment Form'!$BS90=0),\"\",IF(LEN('Enrollment Form'!$BS90)<>5,\"N\",\"Y\")))","v":""},{"$f":"IF($B83=\"N\",\"\",IF(LEN('Enrollment Form'!$AE90)=0,\"\",IF(LEN('Enrollment Form'!$AE90)<>10,\"N\",\"Y\")))","v":""},{"$f":"IF($B83=\"N\",\"\",IF(LEN('Enrollment Form'!$AF90)=0,\"\",IF(LEN('Enrollment Form'!$AF90)<>10,\"N\",\"Y\")))","v":""},{"$f":"IF('Enrollment Form'!$O90<>\"Graded\",\"-\",IF(AND('Enrollment Form'!$O90=\"Graded\",'Enrollment Form'!$AR90<>\"\"),\"Y\",\"N\"))","v":"-"},{"$f":"IF($B83=\"N\",\"\",IF(OR('Enrollment Form'!$B90<>\"Subscriber\",'Enrollment Form'!$C90=\"ROC\"),\"-\",IF(AND('Enrollment Form'!$B90=\"Subscriber\",'Enrollment Form'!$C90=\"Enroll\",'Enrollment Form'!$AJ90<>\"\"),\"Y\",\"N\")))","v":""},{"$f":"IF($B83=\"N\",\"\",IF(OR('Enrollment Form'!$B90<>\"Subscriber\",'Enrollment Form'!$C90=\"ROC\"),\"-\",IF(AND('Enrollment Form'!$B90=\"Subscriber\",'Enrollment Form'!$C90=\"Enroll\",'Enrollment Form'!$AK90<>\"\"),\"Y\",\"N\")))","v":""},{"$f":"IF($B83=\"N\",\"\",IF(OR('Enrollment Form'!$B90<>\"Subscriber\",'Enrollment Form'!$C90=\"ROC\"),\"-\",IF(AND('Enrollment Form'!$B90=\"Subscriber\",'Enrollment Form'!$C90=\"Enroll\",'Enrollment Form'!$AL90<>\"\"),\"Y\",\"N\")))","v":""},{"$f":"IF($B83=\"N\",\"\",IF(OR('Enrollment Form'!$B90<>\"Subscriber\",'Enrollment Form'!$C90=\"ROC\"),\"-\",IF(AND('Enrollment Form'!$B90=\"Subscriber\",'Enrollment Form'!$C90=\"Enroll\",'Enrollment Form'!$AP90<>\"\"),\"Y\",\"N\")))","v":""},{"$f":"IF($B83=\"N\",\"\",IF(OR('Enrollment Form'!$B90<>\"Subscriber\",'Enrollment Form'!$C90=\"ROC\"),\"-\",IF(AND('Enrollment Form'!$B90=\"Subscriber\",'Enrollment Form'!$C90=\"Enroll\",'Enrollment Form'!$AQ90<>\"\"),\"Y\",\"N\")))","v":""},{"$f":"IF($B83=\"N\",\"\",IF(OR('Enrollment Form'!$B90<>\"Subscriber\",'Enrollment Form'!$C90=\"ROC\"),\"-\",IF(AND('Enrollment Form'!$B90=\"Subscriber\",'Enrollment Form'!$C90=\"Enroll\",'Enrollment Form'!$AS90<>\"\"),\"Y\",\"N\")))","v":""},{"$f":"IF($B83=\"N\",\"\",IF($Q83=\"-\",\"-\",IF(AND($Q83=\"Y\",'Enrollment Form'!$AS90=\"No\"),\"-\",IF(AND($Q83=\"Y\",'Enrollment Form'!$AS90=\"Yes\",'Enrollment Form'!$AT90<>\"\"),\"Y\",\"N\"))))","v":""},{"$f":"IF($B83=\"N\",\"\",IF(OR('Enrollment Form'!$B90<>\"Subscriber\",'Enrollment Form'!$C90=\"ROC\"),\"-\",IF(AND('Enrollment Form'!$B90=\"Subscriber\",'Enrollment Form'!$C90=\"Enroll\",'Enrollment Form'!$CV90<>\"\"),\"Y\",\"N\")))","v":""},{"$f":"IF($B83=\"N\",\"\",IF($S83=\"-\",\"-\",IF(AND($S83=\"Y\",'Enrollment Form'!$CV90=\"No\"),\"-\",IF(AND($S83=\"Y\",'Enrollment Form'!$CV90=\"Yes\",'Enrollment Form'!$CW90<>\"\"),\"Y\",\"N\"))))","v":""},{"$f":"IF(OR('Enrollment Form'!$AY90=\"Yes\",'Enrollment Form'!$AY90=\"\"),\"-\",IF(OR(AND('Enrollment Form'!$AY90=\"No\",ISERROR(FIND(\"HMO\",VLOOKUP('Enrollment Form'!G90,'Enrollment Form'!H$11:J$1000,3,FALSE),1))=FALSE,COUNTA('Enrollment Form'!$AZ90:$BC90)=4),AND('Enrollment Form'!$AY90=\"No\",ISERROR(FIND(\"HMO\",VLOOKUP('Enrollment Form'!G90,'Enrollment Form'!H$11:J$1000,3,FALSE),1))=FALSE,COUNTA('Enrollment Form'!$BT90:$BW90)=4)),\"Y\",\"N\"))","v":"-"},{"$f":"IF($B83=\"N\",\"\",IF('Enrollment Form'!$B90=\"Subscriber\",\"-\",IF(COUNTA('Enrollment Form'!$BL90,'Enrollment Form'!$BN90)=2,\"Y\",\"N\")))","v":""},{"$f":"IF($B83=\"N\",\"\",IF(OR('Enrollment Form'!$AX90=\"\",'Enrollment Form'!$AX90=\"No\"),\"-\",IF(AND('Enrollment Form'!$AX90=\"Yes\",COUNTA('Enrollment Form'!$CR90)=1),\"Y\",\"N\")))","v":""},{"$f":"IF(OR('Enrollment Form'!$CR90=\"\",'Enrollment Form'!$CR90=\"No\"),\"-\",IF(COUNTA('Enrollment Form'!$CT90:$CU90)=2,\"Y\",\"N\"))","v":"-"},{"$f":"IF($B83=\"N\",\"\",IF(COUNTIF('Enrollment Form'!$DG90:$DP90,\"Other\")=COUNTA('Enrollment Form'!$DK90,'Enrollment Form'!$DH90,'Enrollment Form'!$DN90,'Enrollment Form'!$DQ90),\"Y\",\"N\"))","v":""},{"$f":"IF($B83=\"N\",\"\",IF(OR('Enrollment Form'!B90<>\"Subscriber\",'Enrollment Form'!C90=\"ROC\",COUNTIF('Enrollment Form'!AV90:AW90,\"Yes\")>=1),\"-\",IF(AND('Enrollment Form'!C90=\"Enroll\",COUNTIF('Enrollment Form'!AV90:AW90,\"No\")=2,'Enrollment Form'!AX90=\"\"),\"N\",\"Y\")))","v":""},{"$f":"IF(OR(B83=\"N\",'Enrollment Form'!B90<>\"Subscriber\",'Enrollment Form'!C90=\"ROC\",'Enrollment Form'!O90<>\"Multiple of Salary\"),\"-\",IF(COUNTA('Enrollment Form'!T90:U90)<2,\"N\",\"Y\"))","v":"-"},{"$f":"IF(B83=\"N\",\"\",IF(OR('Enrollment Form'!C90=\"ROC\",'Enrollment Form'!B90<>\"Subscriber\",'Enrollment Form'!O90=\"Waive\",'Enrollment Form'!O90=\"\"),\"-\",IF('Enrollment Form'!P90=\"\",\"N\",\"Y\")))","v":""},{"$f":"IF($B83=\"N\",\"\",IF(AND('Enrollment Form'!$C90=\"ROC\",'Enrollment Form'!$DR90<>\"\"),\"Y\",IF(AND('Enrollment Form'!$C90=\"ROC\",'Enrollment Form'!$DR90=\"\"),\"N\",IF(AND('Enrollment Form'!$C90=\"Enroll\",'Enrollment Form'!$B90=\"Subscriber\",'Enrollment Form'!$CX90=\"No\",'Enrollment Form'!$DR90=\"\"),\"N\",IF(AND('Enrollment Form'!$C90=\"Enroll\",'Enrollment Form'!$B90=\"Subscriber\",'Enrollment Form'!$CX90=\"Yes\"),\"-\",\"Y\")))))","v":""},{"$f":"IF($B83=\"N\",\"\",IF(AND('Enrollment Form'!$C90=\"ROC\",'Enrollment Form'!$DS90<>\"\"),\"Y\",IF(AND('Enrollment Form'!$C90=\"ROC\",'Enrollment Form'!$DS90=\"\"),\"N\",IF(AND('Enrollment Form'!$C90=\"Enroll\",'Enrollment Form'!$B90=\"Subscriber\",'Enrollment Form'!$CX90=\"No\",'Enrollment Form'!$DS90=\"\"),\"N\",IF(AND('Enrollment Form'!$C90=\"Enroll\",'Enrollment Form'!$B90=\"Subscriber\",'Enrollment Form'!$CX90=\"Yes\"),\"-\",\"Y\")))))","v":""},{"$f":"IF('Enrollment Form'!AH90=\"\",\"\",IF(ISERROR(SEARCH(\".\",'Enrollment Form'!AH90,SEARCH(\"@\",'Enrollment Form'!AH90))),\"N\",\"Y\"))","v":""},{"$f":"IF(OR($B83=\"N\",'Enrollment Form'!$G90=\"\"),\"\",IF('Enrollment Form'!$B90<>\"Subscriber\",\"-\",IF(COUNTIF('Enrollment Form'!$AV90:$AW90,\"Yes\")=2,\"N\",\"Y\")))","v":""},{"$f":"IF(OR('Enrollment Form'!$CJ90=\"\",'Enrollment Form'!$CJ90=\"No\"),\"-\",IF(AND('Enrollment Form'!$CJ90=\"Yes\",'Enrollment Form'!$CK90=\"\"),\"N\",\"Y\"))","v":"-"},{"$f":"IF(OR('Enrollment Form'!$CL90=\"\",'Enrollment Form'!$CL90=\"No\"),\"-\",IF(AND('Enrollment Form'!$CL90=\"Yes\",'Enrollment Form'!$CM90=\"\"),\"N\",\"Y\"))","v":"-"},{"$f":"IF(OR('Enrollment Form'!$CN90=\"\",'Enrollment Form'!$CN90=\"No\"),\"-\",IF(AND('Enrollment Form'!$CN90=\"Yes\",'Enrollment Form'!$CO90=\"\"),\"N\",\"Y\"))","v":"-"},{"$f":"IF(OR('Enrollment Form'!$CN90=\"\",'Enrollment Form'!$CN90=\"No\"),\"-\",IF(AND('Enrollment Form'!$CN90=\"Yes\",'Enrollment Form'!$CP90=\"\"),\"N\",\"Y\"))","v":"-"},{"$f":"IF('Enrollment Form'!B90<>\"Subscriber\",\"-\",IF(AND('Enrollment Form'!B90=\"Subscriber\",'Enrollment Form'!C90=\"Enroll\",'Enrollment Form'!AA90=\"\"),\"N\",\"Y\"))","v":"-"},{"$f":"IF(OR('Enrollment Form'!B90=\"Subscriber\",'Enrollment Form'!B90=\"\"),\"-\",IF('Enrollment Form'!BP90=\"\",\"N\",\"Y\"))","v":"-"},{"$f":"IF('Enrollment Form'!B90<>\"Subscriber\",\"-\",IF(AND('Enrollment Form'!B90=\"Subscriber\",'Enrollment Form'!G90=\"\"),\"N\",\"Y\"))","v":"-"},{"$f":"IF('Enrollment Form'!A90=\"\",\"\",IF('Enrollment Form'!B90=\"Subscriber\",\"-\",IF(AND('Enrollment Form'!B90<>\"Subscriber\",'Enrollment Form'!G90='Enrollment Form'!H90),\"N\",\"Y\")))","v":""},0]
[91,{"$f":"IF('Enrollment Form'!$A91<>\"\",\"Y\",\"N\")","v":"N"},{"$f":"IF(AND('Enrollment Form'!$B91=\"\",'Enrollment Form'!$C91<>\"\"),\"N\",IF($B84=\"N\",\"\",\"Y\"))","v":""},{"$f":"IF(OR($B84=\"N\",'Enrollment Form'!G91=\"\"),\"\",IF('Enrollment Form'!$B91<>\"Subscriber\",\"\",IF('Enrollment Form'!$G91='Enrollment Form'!$H91,\"Y\",\"N\")))","v":""},{"$f":"IF($B84=\"N\",\"\",IF(AND(COUNTIFS('Enrollment Form'!$H$11:$H$1000,'Enrollment Form'!$H91,'Enrollment Form'!$B$11:$B$1000,'Enrollment Form'!$B91)>1,'Enrollment Form'!$H91<>\"\"),\"N\",\"Y\"))","v":""},{"$f":"IF($B84=\"N\",\"\",IF(LEN('Enrollment Form'!$Y91)=0,\"\",IF(LEN('Enrollment Form'!$Y91)<>5,\"N\",\"Y\")))","v":""},{"$f":"IF($B84=\"N\",\"\",IF(LEN('Enrollment Form'!$AD91=0),\"\",IF(LEN('Enrollment Form'!$AD91)<>5,\"N\",\"Y\")))","v":""},{"$f":"IF($B84=\"N\",\"\",IF(LEN('Enrollment Form'!$BS91=0),\"\",IF(LEN('Enrollment Form'!$BS91)<>5,\"N\",\"Y\")))","v":""},{"$f":"IF($B84=\"N\",\"\",IF(LEN('Enrollment Form'!$AE91)=0,\"\",IF(LEN('Enrollment Form'!$AE91)<>10,\"N\",\"Y\")))","v":""},{"$f":"IF($B84=\"N\",\"\",IF(LEN('Enrollment Form'!$AF91)=0,\"\",IF(LEN('Enrollment Form'!$AF91)<>10,\"N\",\"Y\")))","v":""},{"$f":"IF('Enrollment Form'!$O91<>\"Graded\",\"-\",IF(AND('Enrollment Form'!$O91=\"Graded\",'Enrollment Form'!$AR91<>\"\"),\"Y\",\"N\"))","v":"-"},{"$f":"IF($B84=\"N\",\"\",IF(OR('Enrollment Form'!$B91<>\"Subscriber\",'Enrollment Form'!$C91=\"ROC\"),\"-\",IF(AND('Enrollment Form'!$B91=\"Subscriber\",'Enrollment Form'!$C91=\"Enroll\",'Enrollment Form'!$AJ91<>\"\"),\"Y\",\"N\")))","v":""},{"$f":"IF($B84=\"N\",\"\",IF(OR('Enrollment Form'!$B91<>\"Subscriber\",'Enrollment Form'!$C91=\"ROC\"),\"-\",IF(AND('Enrollment Form'!$B91=\"Subscriber\",'Enrollment Form'!$C91=\"Enroll\",'Enrollment Form'!$AK91<>\"\"),\"Y\",\"N\")))","v":""},{"$f":"IF($B84=\"N\",\"\",IF(OR('Enrollment Form'!$B91<>\"Subscriber\",'Enrollment Form'!$C91=\"ROC\"),\"-\",IF(AND('Enrollment Form'!$B91=\"Subscriber\",'Enrollment Form'!$C91=\"Enroll\",'Enrollment Form'!$AL91<>\"\"),\"Y\",\"N\")))","v":""},{"$f":"IF($B84=\"N\",\"\",IF(OR('Enrollment Form'!$B91<>\"Subscriber\",'Enrollment Form'!$C91=\"ROC\"),\"-\",IF(AND('Enrollment Form'!$B91=\"Subscriber\",'Enrollment Form'!$C91=\"Enroll\",'Enrollment Form'!$AP91<>\"\"),\"Y\",\"N\")))","v":""},{"$f":"IF($B84=\"N\",\"\",IF(OR('Enrollment Form'!$B91<>\"Subscriber\",'Enrollment Form'!$C91=\"ROC\"),\"-\",IF(AND('Enrollment Form'!$B91=\"Subscriber\",'Enrollment Form'!$C91=\"Enroll\",'Enrollment Form'!$AQ91<>\"\"),\"Y\",\"N\")))","v":""},{"$f":"IF($B84=\"N\",\"\",IF(OR('Enrollment Form'!$B91<>\"Subscriber\",'Enrollment Form'!$C91=\"ROC\"),\"-\",IF(AND('Enrollment Form'!$B91=\"Subscriber\",'Enrollment Form'!$C91=\"Enroll\",'Enrollment Form'!$AS91<>\"\"),\"Y\",\"N\")))","v":""},{"$f":"IF($B84=\"N\",\"\",IF($Q84=\"-\",\"-\",IF(AND($Q84=\"Y\",'Enrollment Form'!$AS91=\"No\"),\"-\",IF(AND($Q84=\"Y\",'Enrollment Form'!$AS91=\"Yes\",'Enrollment Form'!$AT91<>\"\"),\"Y\",\"N\"))))","v":""},{"$f":"IF($B84=\"N\",\"\",IF(OR('Enrollment Form'!$B91<>\"Subscriber\",'Enrollment Form'!$C91=\"ROC\"),\"-\",IF(AND('Enrollment Form'!$B91=\"Subscriber\",'Enrollment Form'!$C91=\"Enroll\",'Enrollment Form'!$CV91<>\"\"),\"Y\",\"N\")))","v":""},{"$f":"IF($B84=\"N\",\"\",IF($S84=\"-\",\"-\",IF(AND($S84=\"Y\",'Enrollment Form'!$CV91=\"No\"),\"-\",IF(AND($S84=\"Y\",'Enrollment Form'!$CV91=\"Yes\",'Enrollment Form'!$CW91<>\"\"),\"Y\",\"N\"))))","v":""},{"$f":"IF(OR('Enrollment Form'!$AY91=\"Yes\",'Enrollment Form'!$AY91=\"\"),\"-\",IF(OR(AND('Enrollment Form'!$AY91=\"No\",ISERROR(FIND(\"HMO\",VLOOKUP('Enrollment Form'!G91,'Enrollment Form'!H$11:J$1000,3,FALSE),1))=FALSE,COUNTA('Enrollment Form'!$AZ91:$BC91)=4),AND('Enrollment Form'!$AY91=\"No\",ISERROR(FIND(\"HMO\",VLOOKUP('Enrollment Form'!G91,'Enrollment Form'!H$11:J$1000,3,FALSE),1))=FALSE,COUNTA('Enrollment Form'!$BT91:$BW91)=4)),\"Y\",\"N\"))","v":"-"},{"$f":"IF($B84=\"N\",\"\",IF('Enrollment Form'!$B91=\"Subscriber\",\"-\",IF(COUNTA('Enrollment Form'!$BL91,'Enrollment Form'!$BN91)=2,\"Y\",\"N\")))","v":""},{"$f":"IF($B84=\"N\",\"\",IF(OR('Enrollment Form'!$AX91=\"\",'Enrollment Form'!$AX91=\"No\"),\"-\",IF(AND('Enrollment Form'!$AX91=\"Yes\",COUNTA('Enrollment Form'!$CR91)=1),\"Y\",\"N\")))","v":""},{"$f":"IF(OR('Enrollment Form'!$CR91=\"\",'Enrollment Form'!$CR91=\"No\"),\"-\",IF(COUNTA('Enrollment Form'!$CT91:$CU91)=2,\"Y\",\"N\"))","v":"-"},{"$f":"IF($B84=\"N\",\"\",IF(COUNTIF('Enrollment Form'!$DG91:$DP91,\"Other\")=COUNTA('Enrollment Form'!$DK91,'Enrollment Form'!$DH91,'Enrollment Form'!$DN91,'Enrollment Form'!$DQ91),\"Y\",\"N\"))","v":""},{"$f":"IF($B84=\"N\",\"\",IF(OR('Enrollment Form'!B91<>\"Subscriber\",'Enrollment Form'!C91=\"ROC\",COUNTIF('Enrollment Form'!AV91:AW91,\"Yes\")>=1),\"-\",IF(AND('Enrollment Form'!C91=\"Enroll\",COUNTIF('Enrollment Form'!AV91:AW91,\"No\")=2,'Enrollment Form'!AX91=\"\"),\"N\",\"Y\")))","v":""},{"$f":"IF(OR(B84=\"N\",'Enrollment Form'!B91<>\"Subscriber\",'Enrollment Form'!C91=\"ROC\",'Enrollment Form'!O91<>\"Multiple of Salary\"),\"-\",IF(COUNTA('Enrollment Form'!T91:U91)<2,\"N\",\"Y\"))","v":"-"},{"$f":"IF(B84=\"N\",\"\",IF(OR('Enrollment Form'!C91=\"ROC\",'Enrollment Form'!B91<>\"Subscriber\",'Enrollment Form'!O91=\"Waive\",'Enrollment Form'!O91=\"\"),\"-\",IF('Enrollment Form'!P91=\"\",\"N\",\"Y\")))","v":""},{"$f":"IF($B84=\"N\",\"\",IF(AND('Enrollment Form'!$C91=\"ROC\",'Enrollment Form'!$DR91<>\"\"),\"Y\",IF(AND('Enrollment Form'!$C91=\"ROC\",'Enrollment Form'!$DR91=\"\"),\"N\",IF(AND('Enrollment Form'!$C91=\"Enroll\",'Enrollment Form'!$B91=\"Subscriber\",'Enrollment Form'!$CX91=\"No\",'Enrollment Form'!$DR91=\"\"),\"N\",IF(AND('Enrollment Form'!$C91=\"Enroll\",'Enrollment Form'!$B91=\"Subscriber\",'Enrollment Form'!$CX91=\"Yes\"),\"-\",\"Y\")))))","v":""},{"$f":"IF($B84=\"N\",\"\",IF(AND('Enrollment Form'!$C91=\"ROC\",'Enrollment Form'!$DS91<>\"\"),\"Y\",IF(AND('Enrollment Form'!$C91=\"ROC\",'Enrollment Form'!$DS91=\"\"),\"N\",IF(AND('Enrollment Form'!$C91=\"Enroll\",'Enrollment Form'!$B91=\"Subscriber\",'Enrollment Form'!$CX91=\"No\",'Enrollment Form'!$DS91=\"\"),\"N\",IF(AND('Enrollment Form'!$C91=\"Enroll\",'Enrollment Form'!$B91=\"Subscriber\",'Enrollment Form'!$CX91=\"Yes\"),\"-\",\"Y\")))))","v":""},{"$f":"IF('Enrollment Form'!AH91=\"\",\"\",IF(ISERROR(SEARCH(\".\",'Enrollment Form'!AH91,SEARCH(\"@\",'Enrollment Form'!AH91))),\"N\",\"Y\"))","v":""},{"$f":"IF(OR($B84=\"N\",'Enrollment Form'!$G91=\"\"),\"\",IF('Enrollment Form'!$B91<>\"Subscriber\",\"-\",IF(COUNTIF('Enrollment Form'!$AV91:$AW91,\"Yes\")=2,\"N\",\"Y\")))","v":""},{"$f":"IF(OR('Enrollment Form'!$CJ91=\"\",'Enrollment Form'!$CJ91=\"No\"),\"-\",IF(AND('Enrollment Form'!$CJ91=\"Yes\",'Enrollment Form'!$CK91=\"\"),\"N\",\"Y\"))","v":"-"},{"$f":"IF(OR('Enrollment Form'!$CL91=\"\",'Enrollment Form'!$CL91=\"No\"),\"-\",IF(AND('Enrollment Form'!$CL91=\"Yes\",'Enrollment Form'!$CM91=\"\"),\"N\",\"Y\"))","v":"-"},{"$f":"IF(OR('Enrollment Form'!$CN91=\"\",'Enrollment Form'!$CN91=\"No\"),\"-\",IF(AND('Enrollment Form'!$CN91=\"Yes\",'Enrollment Form'!$CO91=\"\"),\"N\",\"Y\"))","v":"-"},{"$f":"IF(OR('Enrollment Form'!$CN91=\"\",'Enrollment Form'!$CN91=\"No\"),\"-\",IF(AND('Enrollment Form'!$CN91=\"Yes\",'Enrollment Form'!$CP91=\"\"),\"N\",\"Y\"))","v":"-"},{"$f":"IF('Enrollment Form'!B91<>\"Subscriber\",\"-\",IF(AND('Enrollment Form'!B91=\"Subscriber\",'Enrollment Form'!C91=\"Enroll\",'Enrollment Form'!AA91=\"\"),\"N\",\"Y\"))","v":"-"},{"$f":"IF(OR('Enrollment Form'!B91=\"Subscriber\",'Enrollment Form'!B91=\"\"),\"-\",IF('Enrollment Form'!BP91=\"\",\"N\",\"Y\"))","v":"-"},{"$f":"IF('Enrollment Form'!B91<>\"Subscriber\",\"-\",IF(AND('Enrollment Form'!B91=\"Subscriber\",'Enrollment Form'!G91=\"\"),\"N\",\"Y\"))","v":"-"},{"$f":"IF('Enrollment Form'!A91=\"\",\"\",IF('Enrollment Form'!B91=\"Subscriber\",\"-\",IF(AND('Enrollment Form'!B91<>\"Subscriber\",'Enrollment Form'!G91='Enrollment Form'!H91),\"N\",\"Y\")))","v":""},0]
[92,{"$f":"IF('Enrollment Form'!$A92<>\"\",\"Y\",\"N\")","v":"N"},{"$f":"IF(AND('Enrollment Form'!$B92=\"\",'Enrollment Form'!$C92<>\"\"),\"N\",IF($B85=\"N\",\"\",\"Y\"))","v":""},{"$f":"IF(OR($B85=\"N\",'Enrollment Form'!G92=\"\"),\"\",IF('Enrollment Form'!$B92<>\"Subscriber\",\"\",IF('Enrollment Form'!$G92='Enrollment Form'!$H92,\"Y\",\"N\")))","v":""},{"$f":"IF($B85=\"N\",\"\",IF(AND(COUNTIFS('Enrollment Form'!$H$11:$H$1000,'Enrollment Form'!$H92,'Enrollment Form'!$B$11:$B$1000,'Enrollment Form'!$B92)>1,'Enrollment Form'!$H92<>\"\"),\"N\",\"Y\"))","v":""},{"$f":"IF($B85=\"N\",\"\",IF(LEN('Enrollment Form'!$Y92)=0,\"\",IF(LEN('Enrollment Form'!$Y92)<>5,\"N\",\"Y\")))","v":""},{"$f":"IF($B85=\"N\",\"\",IF(LEN('Enrollment Form'!$AD92=0),\"\",IF(LEN('Enrollment Form'!$AD92)<>5,\"N\",\"Y\")))","v":""},{"$f":"IF($B85=\"N\",\"\",IF(LEN('Enrollment Form'!$BS92=0),\"\",IF(LEN('Enrollment Form'!$BS92)<>5,\"N\",\"Y\")))","v":""},{"$f":"IF($B85=\"N\",\"\",IF(LEN('Enrollment Form'!$AE92)=0,\"\",IF(LEN('Enrollment Form'!$AE92)<>10,\"N\",\"Y\")))","v":""},{"$f":"IF($B85=\"N\",\"\",IF(LEN('Enrollment Form'!$AF92)=0,\"\",IF(LEN('Enrollment Form'!$AF92)<>10,\"N\",\"Y\")))","v":""},{"$f":"IF('Enrollment Form'!$O92<>\"Graded\",\"-\",IF(AND('Enrollment Form'!$O92=\"Graded\",'Enrollment Form'!$AR92<>\"\"),\"Y\",\"N\"))","v":"-"},{"$f":"IF($B85=\"N\",\"\",IF(OR('Enrollment Form'!$B92<>\"Subscriber\",'Enrollment Form'!$C92=\"ROC\"),\"-\",IF(AND('Enrollment Form'!$B92=\"Subscriber\",'Enrollment Form'!$C92=\"Enroll\",'Enrollment Form'!$AJ92<>\"\"),\"Y\",\"N\")))","v":""},{"$f":"IF($B85=\"N\",\"\",IF(OR('Enrollment Form'!$B92<>\"Subscriber\",'Enrollment Form'!$C92=\"ROC\"),\"-\",IF(AND('Enrollment Form'!$B92=\"Subscriber\",'Enrollment Form'!$C92=\"Enroll\",'Enrollment Form'!$AK92<>\"\"),\"Y\",\"N\")))","v":""},{"$f":"IF($B85=\"N\",\"\",IF(OR('Enrollment Form'!$B92<>\"Subscriber\",'Enrollment Form'!$C92=\"ROC\"),\"-\",IF(AND('Enrollment Form'!$B92=\"Subscriber\",'Enrollment Form'!$C92=\"Enroll\",'Enrollment Form'!$AL92<>\"\"),\"Y\",\"N\")))","v":""},{"$f":"IF($B85=\"N\",\"\",IF(OR('Enrollment Form'!$B92<>\"Subscriber\",'Enrollment Form'!$C92=\"ROC\"),\"-\",IF(AND('Enrollment Form'!$B92=\"Subscriber\",'Enrollment Form'!$C92=\"Enroll\",'Enrollment Form'!$AP92<>\"\"),\"Y\",\"N\")))","v":""},{"$f":"IF($B85=\"N\",\"\",IF(OR('Enrollment Form'!$B92<>\"Subscriber\",'Enrollment Form'!$C92=\"ROC\"),\"-\",IF(AND('Enrollment Form'!$B92=\"Subscriber\",'Enrollment Form'!$C92=\"Enroll\",'Enrollment Form'!$AQ92<>\"\"),\"Y\",\"N\")))","v":""},{"$f":"IF($B85=\"N\",\"\",IF(OR('Enrollment Form'!$B92<>\"Subscriber\",'Enrollment Form'!$C92=\"ROC\"),\"-\",IF(AND('Enrollment Form'!$B92=\"Subscriber\",'Enrollment Form'!$C92=\"Enroll\",'Enrollment Form'!$AS92<>\"\"),\"Y\",\"N\")))","v":""},{"$f":"IF($B85=\"N\",\"\",IF($Q85=\"-\",\"-\",IF(AND($Q85=\"Y\",'Enrollment Form'!$AS92=\"No\"),\"-\",IF(AND($Q85=\"Y\",'Enrollment Form'!$AS92=\"Yes\",'Enrollment Form'!$AT92<>\"\"),\"Y\",\"N\"))))","v":""},{"$f":"IF($B85=\"N\",\"\",IF(OR('Enrollment Form'!$B92<>\"Subscriber\",'Enrollment Form'!$C92=\"ROC\"),\"-\",IF(AND('Enrollment Form'!$B92=\"Subscriber\",'Enrollment Form'!$C92=\"Enroll\",'Enrollment Form'!$CV92<>\"\"),\"Y\",\"N\")))","v":""},{"$f":"IF($B85=\"N\",\"\",IF($S85=\"-\",\"-\",IF(AND($S85=\"Y\",'Enrollment Form'!$CV92=\"No\"),\"-\",IF(AND($S85=\"Y\",'Enrollment Form'!$CV92=\"Yes\",'Enrollment Form'!$CW92<>\"\"),\"Y\",\"N\"))))","v":""},{"$f":"IF(OR('Enrollment Form'!$AY92=\"Yes\",'Enrollment Form'!$AY92=\"\"),\"-\",IF(OR(AND('Enrollment Form'!$AY92=\"No\",ISERROR(FIND(\"HMO\",VLOOKUP('Enrollment Form'!G92,'Enrollment Form'!H$11:J$1000,3,FALSE),1))=FALSE,COUNTA('Enrollment Form'!$AZ92:$BC92)=4),AND('Enrollment Form'!$AY92=\"No\",ISERROR(FIND(\"HMO\",VLOOKUP('Enrollment Form'!G92,'Enrollment Form'!H$11:J$1000,3,FALSE),1))=FALSE,COUNTA('Enrollment Form'!$BT92:$BW92)=4)),\"Y\",\"N\"))","v":"-"},{"$f":"IF($B85=\"N\",\"\",IF('Enrollment Form'!$B92=\"Subscriber\",\"-\",IF(COUNTA('Enrollment Form'!$BL92,'Enrollment Form'!$BN92)=2,\"Y\",\"N\")))","v":""},{"$f":"IF($B85=\"N\",\"\",IF(OR('Enrollment Form'!$AX92=\"\",'Enrollment Form'!$AX92=\"No\"),\"-\",IF(AND('Enrollment Form'!$AX92=\"Yes\",COUNTA('Enrollment Form'!$CR92)=1),\"Y\",\"N\")))","v":""},{"$f":"IF(OR('Enrollment Form'!$CR92=\"\",'Enrollment Form'!$CR92=\"No\"),\"-\",IF(COUNTA('Enrollment Form'!$CT92:$CU92)=2,\"Y\",\"N\"))","v":"-"},{"$f":"IF($B85=\"N\",\"\",IF(COUNTIF('Enrollment Form'!$DG92:$DP92,\"Other\")=COUNTA('Enrollment Form'!$DK92,'Enrollment Form'!$DH92,'Enrollment Form'!$DN92,'Enrollment Form'!$DQ92),\"Y\",\"N\"))","v":""},{"$f":"IF($B85=\"N\",\"\",IF(OR('Enrollment Form'!B92<>\"Subscriber\",'Enrollment Form'!C92=\"ROC\",COUNTIF('Enrollment Form'!AV92:AW92,\"Yes\")>=1),\"-\",IF(AND('Enrollment Form'!C92=\"Enroll\",COUNTIF('Enrollment Form'!AV92:AW92,\"No\")=2,'Enrollment Form'!AX92=\"\"),\"N\",\"Y\")))","v":""},{"$f":"IF(OR(B85=\"N\",'Enrollment Form'!B92<>\"Subscriber\",'Enrollment Form'!C92=\"ROC\",'Enrollment Form'!O92<>\"Multiple of Salary\"),\"-\",IF(COUNTA('Enrollment Form'!T92:U92)<2,\"N\",\"Y\"))","v":"-"},{"$f":"IF(B85=\"N\",\"\",IF(OR('Enrollment Form'!C92=\"ROC\",'Enrollment Form'!B92<>\"Subscriber\",'Enrollment Form'!O92=\"Waive\",'Enrollment Form'!O92=\"\"),\"-\",IF('Enrollment Form'!P92=\"\",\"N\",\"Y\")))","v":""},{"$f":"IF($B85=\"N\",\"\",IF(AND('Enrollment Form'!$C92=\"ROC\",'Enrollment Form'!$DR92<>\"\"),\"Y\",IF(AND('Enrollment Form'!$C92=\"ROC\",'Enrollment Form'!$DR92=\"\"),\"N\",IF(AND('Enrollment Form'!$C92=\"Enroll\",'Enrollment Form'!$B92=\"Subscriber\",'Enrollment Form'!$CX92=\"No\",'Enrollment Form'!$DR92=\"\"),\"N\",IF(AND('Enrollment Form'!$C92=\"Enroll\",'Enrollment Form'!$B92=\"Subscriber\",'Enrollment Form'!$CX92=\"Yes\"),\"-\",\"Y\")))))","v":""},{"$f":"IF($B85=\"N\",\"\",IF(AND('Enrollment Form'!$C92=\"ROC\",'Enrollment Form'!$DS92<>\"\"),\"Y\",IF(AND('Enrollment Form'!$C92=\"ROC\",'Enrollment Form'!$DS92=\"\"),\"N\",IF(AND('Enrollment Form'!$C92=\"Enroll\",'Enrollment Form'!$B92=\"Subscriber\",'Enrollment Form'!$CX92=\"No\",'Enrollment Form'!$DS92=\"\"),\"N\",IF(AND('Enrollment Form'!$C92=\"Enroll\",'Enrollment Form'!$B92=\"Subscriber\",'Enrollment Form'!$CX92=\"Yes\"),\"-\",\"Y\")))))","v":""},{"$f":"IF('Enrollment Form'!AH92=\"\",\"\",IF(ISERROR(SEARCH(\".\",'Enrollment Form'!AH92,SEARCH(\"@\",'Enrollment Form'!AH92))),\"N\",\"Y\"))","v":""},{"$f":"IF(OR($B85=\"N\",'Enrollment Form'!$G92=\"\"),\"\",IF('Enrollment Form'!$B92<>\"Subscriber\",\"-\",IF(COUNTIF('Enrollment Form'!$AV92:$AW92,\"Yes\")=2,\"N\",\"Y\")))","v":""},{"$f":"IF(OR('Enrollment Form'!$CJ92=\"\",'Enrollment Form'!$CJ92=\"No\"),\"-\",IF(AND('Enrollment Form'!$CJ92=\"Yes\",'Enrollment Form'!$CK92=\"\"),\"N\",\"Y\"))","v":"-"},{"$f":"IF(OR('Enrollment Form'!$CL92=\"\",'Enrollment Form'!$CL92=\"No\"),\"-\",IF(AND('Enrollment Form'!$CL92=\"Yes\",'Enrollment Form'!$CM92=\"\"),\"N\",\"Y\"))","v":"-"},{"$f":"IF(OR('Enrollment Form'!$CN92=\"\",'Enrollment Form'!$CN92=\"No\"),\"-\",IF(AND('Enrollment Form'!$CN92=\"Yes\",'Enrollment Form'!$CO92=\"\"),\"N\",\"Y\"))","v":"-"},{"$f":"IF(OR('Enrollment Form'!$CN92=\"\",'Enrollment Form'!$CN92=\"No\"),\"-\",IF(AND('Enrollment Form'!$CN92=\"Yes\",'Enrollment Form'!$CP92=\"\"),\"N\",\"Y\"))","v":"-"},{"$f":"IF('Enrollment Form'!B92<>\"Subscriber\",\"-\",IF(AND('Enrollment Form'!B92=\"Subscriber\",'Enrollment Form'!C92=\"Enroll\",'Enrollment Form'!AA92=\"\"),\"N\",\"Y\"))","v":"-"},{"$f":"IF(OR('Enrollment Form'!B92=\"Subscriber\",'Enrollment Form'!B92=\"\"),\"-\",IF('Enrollment Form'!BP92=\"\",\"N\",\"Y\"))","v":"-"},{"$f":"IF('Enrollment Form'!B92<>\"Subscriber\",\"-\",IF(AND('Enrollment Form'!B92=\"Subscriber\",'Enrollment Form'!G92=\"\"),\"N\",\"Y\"))","v":"-"},{"$f":"IF('Enrollment Form'!A92=\"\",\"\",IF('Enrollment Form'!B92=\"Subscriber\",\"-\",IF(AND('Enrollment Form'!B92<>\"Subscriber\",'Enrollment Form'!G92='Enrollment Form'!H92),\"N\",\"Y\")))","v":""},0]
[93,{"$f":"IF('Enrollment Form'!$A93<>\"\",\"Y\",\"N\")","v":"N"},{"$f":"IF(AND('Enrollment Form'!$B93=\"\",'Enrollment Form'!$C93<>\"\"),\"N\",IF($B86=\"N\",\"\",\"Y\"))","v":""},{"$f":"IF(OR($B86=\"N\",'Enrollment Form'!G93=\"\"),\"\",IF('Enrollment Form'!$B93<>\"Subscriber\",\"\",IF('Enrollment Form'!$G93='Enrollment Form'!$H93,\"Y\",\"N\")))","v":""},{"$f":"IF($B86=\"N\",\"\",IF(AND(COUNTIFS('Enrollment Form'!$H$11:$H$1000,'Enrollment Form'!$H93,'Enrollment Form'!$B$11:$B$1000,'Enrollment Form'!$B93)>1,'Enrollment Form'!$H93<>\"\"),\"N\",\"Y\"))","v":""},{"$f":"IF($B86=\"N\",\"\",IF(LEN('Enrollment Form'!$Y93)=0,\"\",IF(LEN('Enrollment Form'!$Y93)<>5,\"N\",\"Y\")))","v":""},{"$f":"IF($B86=\"N\",\"\",IF(LEN('Enrollment Form'!$AD93=0),\"\",IF(LEN('Enrollment Form'!$AD93)<>5,\"N\",\"Y\")))","v":""},{"$f":"IF($B86=\"N\",\"\",IF(LEN('Enrollment Form'!$BS93=0),\"\",IF(LEN('Enrollment Form'!$BS93)<>5,\"N\",\"Y\")))","v":""},{"$f":"IF($B86=\"N\",\"\",IF(LEN('Enrollment Form'!$AE93)=0,\"\",IF(LEN('Enrollment Form'!$AE93)<>10,\"N\",\"Y\")))","v":""},{"$f":"IF($B86=\"N\",\"\",IF(LEN('Enrollment Form'!$AF93)=0,\"\",IF(LEN('Enrollment Form'!$AF93)<>10,\"N\",\"Y\")))","v":""},{"$f":"IF('Enrollment Form'!$O93<>\"Graded\",\"-\",IF(AND('Enrollment Form'!$O93=\"Graded\",'Enrollment Form'!$AR93<>\"\"),\"Y\",\"N\"))","v":"-"},{"$f":"IF($B86=\"N\",\"\",IF(OR('Enrollment Form'!$B93<>\"Subscriber\",'Enrollment Form'!$C93=\"ROC\"),\"-\",IF(AND('Enrollment Form'!$B93=\"Subscriber\",'Enrollment Form'!$C93=\"Enroll\",'Enrollment Form'!$AJ93<>\"\"),\"Y\",\"N\")))","v":""},{"$f":"IF($B86=\"N\",\"\",IF(OR('Enrollment Form'!$B93<>\"Subscriber\",'Enrollment Form'!$C93=\"ROC\"),\"-\",IF(AND('Enrollment Form'!$B93=\"Subscriber\",'Enrollment Form'!$C93=\"Enroll\",'Enrollment Form'!$AK93<>\"\"),\"Y\",\"N\")))","v":""},{"$f":"IF($B86=\"N\",\"\",IF(OR('Enrollment Form'!$B93<>\"Subscriber\",'Enrollment Form'!$C93=\"ROC\"),\"-\",IF(AND('Enrollment Form'!$B93=\"Subscriber\",'Enrollment Form'!$C93=\"Enroll\",'Enrollment Form'!$AL93<>\"\"),\"Y\",\"N\")))","v":""},{"$f":"IF($B86=\"N\",\"\",IF(OR('Enrollment Form'!$B93<>\"Subscriber\",'Enrollment Form'!$C93=\"ROC\"),\"-\",IF(AND('Enrollment Form'!$B93=\"Subscriber\",'Enrollment Form'!$C93=\"Enroll\",'Enrollment Form'!$AP93<>\"\"),\"Y\",\"N\")))","v":""},{"$f":"IF($B86=\"N\",\"\",IF(OR('Enrollment Form'!$B93<>\"Subscriber\",'Enrollment Form'!$C93=\"ROC\"),\"-\",IF(AND('Enrollment Form'!$B93=\"Subscriber\",'Enrollment Form'!$C93=\"Enroll\",'Enrollment Form'!$AQ93<>\"\"),\"Y\",\"N\")))","v":""},{"$f":"IF($B86=\"N\",\"\",IF(OR('Enrollment Form'!$B93<>\"Subscriber\",'Enrollment Form'!$C93=\"ROC\"),\"-\",IF(AND('Enrollment Form'!$B93=\"Subscriber\",'Enrollment Form'!$C93=\"Enroll\",'Enrollment Form'!$AS93<>\"\"),\"Y\",\"N\")))","v":""},{"$f":"IF($B86=\"N\",\"\",IF($Q86=\"-\",\"-\",IF(AND($Q86=\"Y\",'Enrollment Form'!$AS93=\"No\"),\"-\",IF(AND($Q86=\"Y\",'Enrollment Form'!$AS93=\"Yes\",'Enrollment Form'!$AT93<>\"\"),\"Y\",\"N\"))))","v":""},{"$f":"IF($B86=\"N\",\"\",IF(OR('Enrollment Form'!$B93<>\"Subscriber\",'Enrollment Form'!$C93=\"ROC\"),\"-\",IF(AND('Enrollment Form'!$B93=\"Subscriber\",'Enrollment Form'!$C93=\"Enroll\",'Enrollment Form'!$CV93<>\"\"),\"Y\",\"N\")))","v":""},{"$f":"IF($B86=\"N\",\"\",IF($S86=\"-\",\"-\",IF(AND($S86=\"Y\",'Enrollment Form'!$CV93=\"No\"),\"-\",IF(AND($S86=\"Y\",'Enrollment Form'!$CV93=\"Yes\",'Enrollment Form'!$CW93<>\"\"),\"Y\",\"N\"))))","v":""},{"$f":"IF(OR('Enrollment Form'!$AY93=\"Yes\",'Enrollment Form'!$AY93=\"\"),\"-\",IF(OR(AND('Enrollment Form'!$AY93=\"No\",ISERROR(FIND(\"HMO\",VLOOKUP('Enrollment Form'!G93,'Enrollment Form'!H$11:J$1000,3,FALSE),1))=FALSE,COUNTA('Enrollment Form'!$AZ93:$BC93)=4),AND('Enrollment Form'!$AY93=\"No\",ISERROR(FIND(\"HMO\",VLOOKUP('Enrollment Form'!G93,'Enrollment Form'!H$11:J$1000,3,FALSE),1))=FALSE,COUNTA('Enrollment Form'!$BT93:$BW93)=4)),\"Y\",\"N\"))","v":"-"},{"$f":"IF($B86=\"N\",\"\",IF('Enrollment Form'!$B93=\"Subscriber\",\"-\",IF(COUNTA('Enrollment Form'!$BL93,'Enrollment Form'!$BN93)=2,\"Y\",\"N\")))","v":""},{"$f":"IF($B86=\"N\",\"\",IF(OR('Enrollment Form'!$AX93=\"\",'Enrollment Form'!$AX93=\"No\"),\"-\",IF(AND('Enrollment Form'!$AX93=\"Yes\",COUNTA('Enrollment Form'!$CR93)=1),\"Y\",\"N\")))","v":""},{"$f":"IF(OR('Enrollment Form'!$CR93=\"\",'Enrollment Form'!$CR93=\"No\"),\"-\",IF(COUNTA('Enrollment Form'!$CT93:$CU93)=2,\"Y\",\"N\"))","v":"-"},{"$f":"IF($B86=\"N\",\"\",IF(COUNTIF('Enrollment Form'!$DG93:$DP93,\"Other\")=COUNTA('Enrollment Form'!$DK93,'Enrollment Form'!$DH93,'Enrollment Form'!$DN93,'Enrollment Form'!$DQ93),\"Y\",\"N\"))","v":""},{"$f":"IF($B86=\"N\",\"\",IF(OR('Enrollment Form'!B93<>\"Subscriber\",'Enrollment Form'!C93=\"ROC\",COUNTIF('Enrollment Form'!AV93:AW93,\"Yes\")>=1),\"-\",IF(AND('Enrollment Form'!C93=\"Enroll\",COUNTIF('Enrollment Form'!AV93:AW93,\"No\")=2,'Enrollment Form'!AX93=\"\"),\"N\",\"Y\")))","v":""},{"$f":"IF(OR(B86=\"N\",'Enrollment Form'!B93<>\"Subscriber\",'Enrollment Form'!C93=\"ROC\",'Enrollment Form'!O93<>\"Multiple of Salary\"),\"-\",IF(COUNTA('Enrollment Form'!T93:U93)<2,\"N\",\"Y\"))","v":"-"},{"$f":"IF(B86=\"N\",\"\",IF(OR('Enrollment Form'!C93=\"ROC\",'Enrollment Form'!B93<>\"Subscriber\",'Enrollment Form'!O93=\"Waive\",'Enrollment Form'!O93=\"\"),\"-\",IF('Enrollment Form'!P93=\"\",\"N\",\"Y\")))","v":""},{"$f":"IF($B86=\"N\",\"\",IF(AND('Enrollment Form'!$C93=\"ROC\",'Enrollment Form'!$DR93<>\"\"),\"Y\",IF(AND('Enrollment Form'!$C93=\"ROC\",'Enrollment Form'!$DR93=\"\"),\"N\",IF(AND('Enrollment Form'!$C93=\"Enroll\",'Enrollment Form'!$B93=\"Subscriber\",'Enrollment Form'!$CX93=\"No\",'Enrollment Form'!$DR93=\"\"),\"N\",IF(AND('Enrollment Form'!$C93=\"Enroll\",'Enrollment Form'!$B93=\"Subscriber\",'Enrollment Form'!$CX93=\"Yes\"),\"-\",\"Y\")))))","v":""},{"$f":"IF($B86=\"N\",\"\",IF(AND('Enrollment Form'!$C93=\"ROC\",'Enrollment Form'!$DS93<>\"\"),\"Y\",IF(AND('Enrollment Form'!$C93=\"ROC\",'Enrollment Form'!$DS93=\"\"),\"N\",IF(AND('Enrollment Form'!$C93=\"Enroll\",'Enrollment Form'!$B93=\"Subscriber\",'Enrollment Form'!$CX93=\"No\",'Enrollment Form'!$DS93=\"\"),\"N\",IF(AND('Enrollment Form'!$C93=\"Enroll\",'Enrollment Form'!$B93=\"Subscriber\",'Enrollment Form'!$CX93=\"Yes\"),\"-\",\"Y\")))))","v":""},{"$f":"IF('Enrollment Form'!AH93=\"\",\"\",IF(ISERROR(SEARCH(\".\",'Enrollment Form'!AH93,SEARCH(\"@\",'Enrollment Form'!AH93))),\"N\",\"Y\"))","v":""},{"$f":"IF(OR($B86=\"N\",'Enrollment Form'!$G93=\"\"),\"\",IF('Enrollment Form'!$B93<>\"Subscriber\",\"-\",IF(COUNTIF('Enrollment Form'!$AV93:$AW93,\"Yes\")=2,\"N\",\"Y\")))","v":""},{"$f":"IF(OR('Enrollment Form'!$CJ93=\"\",'Enrollment Form'!$CJ93=\"No\"),\"-\",IF(AND('Enrollment Form'!$CJ93=\"Yes\",'Enrollment Form'!$CK93=\"\"),\"N\",\"Y\"))","v":"-"},{"$f":"IF(OR('Enrollment Form'!$CL93=\"\",'Enrollment Form'!$CL93=\"No\"),\"-\",IF(AND('Enrollment Form'!$CL93=\"Yes\",'Enrollment Form'!$CM93=\"\"),\"N\",\"Y\"))","v":"-"},{"$f":"IF(OR('Enrollment Form'!$CN93=\"\",'Enrollment Form'!$CN93=\"No\"),\"-\",IF(AND('Enrollment Form'!$CN93=\"Yes\",'Enrollment Form'!$CO93=\"\"),\"N\",\"Y\"))","v":"-"},{"$f":"IF(OR('Enrollment Form'!$CN93=\"\",'Enrollment Form'!$CN93=\"No\"),\"-\",IF(AND('Enrollment Form'!$CN93=\"Yes\",'Enrollment Form'!$CP93=\"\"),\"N\",\"Y\"))","v":"-"},{"$f":"IF('Enrollment Form'!B93<>\"Subscriber\",\"-\",IF(AND('Enrollment Form'!B93=\"Subscriber\",'Enrollment Form'!C93=\"Enroll\",'Enrollment Form'!AA93=\"\"),\"N\",\"Y\"))","v":"-"},{"$f":"IF(OR('Enrollment Form'!B93=\"Subscriber\",'Enrollment Form'!B93=\"\"),\"-\",IF('Enrollment Form'!BP93=\"\",\"N\",\"Y\"))","v":"-"},{"$f":"IF('Enrollment Form'!B93<>\"Subscriber\",\"-\",IF(AND('Enrollment Form'!B93=\"Subscriber\",'Enrollment Form'!G93=\"\"),\"N\",\"Y\"))","v":"-"},{"$f":"IF('Enrollment Form'!A93=\"\",\"\",IF('Enrollment Form'!B93=\"Subscriber\",\"-\",IF(AND('Enrollment Form'!B93<>\"Subscriber\",'Enrollment Form'!G93='Enrollment Form'!H93),\"N\",\"Y\")))","v":""},0]
[94,{"$f":"IF('Enrollment Form'!$A94<>\"\",\"Y\",\"N\")","v":"N"},{"$f":"IF(AND('Enrollment Form'!$B94=\"\",'Enrollment Form'!$C94<>\"\"),\"N\",IF($B87=\"N\",\"\",\"Y\"))","v":""},{"$f":"IF(OR($B87=\"N\",'Enrollment Form'!G94=\"\"),\"\",IF('Enrollment Form'!$B94<>\"Subscriber\",\"\",IF('Enrollment Form'!$G94='Enrollment Form'!$H94,\"Y\",\"N\")))","v":""},{"$f":"IF($B87=\"N\",\"\",IF(AND(COUNTIFS('Enrollment Form'!$H$11:$H$1000,'Enrollment Form'!$H94,'Enrollment Form'!$B$11:$B$1000,'Enrollment Form'!$B94)>1,'Enrollment Form'!$H94<>\"\"),\"N\",\"Y\"))","v":""},{"$f":"IF($B87=\"N\",\"\",IF(LEN('Enrollment Form'!$Y94)=0,\"\",IF(LEN('Enrollment Form'!$Y94)<>5,\"N\",\"Y\")))","v":""},{"$f":"IF($B87=\"N\",\"\",IF(LEN('Enrollment Form'!$AD94=0),\"\",IF(LEN('Enrollment Form'!$AD94)<>5,\"N\",\"Y\")))","v":""},{"$f":"IF($B87=\"N\",\"\",IF(LEN('Enrollment Form'!$BS94=0),\"\",IF(LEN('Enrollment Form'!$BS94)<>5,\"N\",\"Y\")))","v":""},{"$f":"IF($B87=\"N\",\"\",IF(LEN('Enrollment Form'!$AE94)=0,\"\",IF(LEN('Enrollment Form'!$AE94)<>10,\"N\",\"Y\")))","v":""},{"$f":"IF($B87=\"N\",\"\",IF(LEN('Enrollment Form'!$AF94)=0,\"\",IF(LEN('Enrollment Form'!$AF94)<>10,\"N\",\"Y\")))","v":""},{"$f":"IF('Enrollment Form'!$O94<>\"Graded\",\"-\",IF(AND('Enrollment Form'!$O94=\"Graded\",'Enrollment Form'!$AR94<>\"\"),\"Y\",\"N\"))","v":"-"},{"$f":"IF($B87=\"N\",\"\",IF(OR('Enrollment Form'!$B94<>\"Subscriber\",'Enrollment Form'!$C94=\"ROC\"),\"-\",IF(AND('Enrollment Form'!$B94=\"Subscriber\",'Enrollment Form'!$C94=\"Enroll\",'Enrollment Form'!$AJ94<>\"\"),\"Y\",\"N\")))","v":""},{"$f":"IF($B87=\"N\",\"\",IF(OR('Enrollment Form'!$B94<>\"Subscriber\",'Enrollment Form'!$C94=\"ROC\"),\"-\",IF(AND('Enrollment Form'!$B94=\"Subscriber\",'Enrollment Form'!$C94=\"Enroll\",'Enrollment Form'!$AK94<>\"\"),\"Y\",\"N\")))","v":""},{"$f":"IF($B87=\"N\",\"\",IF(OR('Enrollment Form'!$B94<>\"Subscriber\",'Enrollment Form'!$C94=\"ROC\"),\"-\",IF(AND('Enrollment Form'!$B94=\"Subscriber\",'Enrollment Form'!$C94=\"Enroll\",'Enrollment Form'!$AL94<>\"\"),\"Y\",\"N\")))","v":""},{"$f":"IF($B87=\"N\",\"\",IF(OR('Enrollment Form'!$B94<>\"Subscriber\",'Enrollment Form'!$C94=\"ROC\"),\"-\",IF(AND('Enrollment Form'!$B94=\"Subscriber\",'Enrollment Form'!$C94=\"Enroll\",'Enrollment Form'!$AP94<>\"\"),\"Y\",\"N\")))","v":""},{"$f":"IF($B87=\"N\",\"\",IF(OR('Enrollment Form'!$B94<>\"Subscriber\",'Enrollment Form'!$C94=\"ROC\"),\"-\",IF(AND('Enrollment Form'!$B94=\"Subscriber\",'Enrollment Form'!$C94=\"Enroll\",'Enrollment Form'!$AQ94<>\"\"),\"Y\",\"N\")))","v":""},{"$f":"IF($B87=\"N\",\"\",IF(OR('Enrollment Form'!$B94<>\"Subscriber\",'Enrollment Form'!$C94=\"ROC\"),\"-\",IF(AND('Enrollment Form'!$B94=\"Subscriber\",'Enrollment Form'!$C94=\"Enroll\",'Enrollment Form'!$AS94<>\"\"),\"Y\",\"N\")))","v":""},{"$f":"IF($B87=\"N\",\"\",IF($Q87=\"-\",\"-\",IF(AND($Q87=\"Y\",'Enrollment Form'!$AS94=\"No\"),\"-\",IF(AND($Q87=\"Y\",'Enrollment Form'!$AS94=\"Yes\",'Enrollment Form'!$AT94<>\"\"),\"Y\",\"N\"))))","v":""},{"$f":"IF($B87=\"N\",\"\",IF(OR('Enrollment Form'!$B94<>\"Subscriber\",'Enrollment Form'!$C94=\"ROC\"),\"-\",IF(AND('Enrollment Form'!$B94=\"Subscriber\",'Enrollment Form'!$C94=\"Enroll\",'Enrollment Form'!$CV94<>\"\"),\"Y\",\"N\")))","v":""},{"$f":"IF($B87=\"N\",\"\",IF($S87=\"-\",\"-\",IF(AND($S87=\"Y\",'Enrollment Form'!$CV94=\"No\"),\"-\",IF(AND($S87=\"Y\",'Enrollment Form'!$CV94=\"Yes\",'Enrollment Form'!$CW94<>\"\"),\"Y\",\"N\"))))","v":""},{"$f":"IF(OR('Enrollment Form'!$AY94=\"Yes\",'Enrollment Form'!$AY94=\"\"),\"-\",IF(OR(AND('Enrollment Form'!$AY94=\"No\",ISERROR(FIND(\"HMO\",VLOOKUP('Enrollment Form'!G94,'Enrollment Form'!H$11:J$1000,3,FALSE),1))=FALSE,COUNTA('Enrollment Form'!$AZ94:$BC94)=4),AND('Enrollment Form'!$AY94=\"No\",ISERROR(FIND(\"HMO\",VLOOKUP('Enrollment Form'!G94,'Enrollment Form'!H$11:J$1000,3,FALSE),1))=FALSE,COUNTA('Enrollment Form'!$BT94:$BW94)=4)),\"Y\",\"N\"))","v":"-"},{"$f":"IF($B87=\"N\",\"\",IF('Enrollment Form'!$B94=\"Subscriber\",\"-\",IF(COUNTA('Enrollment Form'!$BL94,'Enrollment Form'!$BN94)=2,\"Y\",\"N\")))","v":""},{"$f":"IF($B87=\"N\",\"\",IF(OR('Enrollment Form'!$AX94=\"\",'Enrollment Form'!$AX94=\"No\"),\"-\",IF(AND('Enrollment Form'!$AX94=\"Yes\",COUNTA('Enrollment Form'!$CR94)=1),\"Y\",\"N\")))","v":""},{"$f":"IF(OR('Enrollment Form'!$CR94=\"\",'Enrollment Form'!$CR94=\"No\"),\"-\",IF(COUNTA('Enrollment Form'!$CT94:$CU94)=2,\"Y\",\"N\"))","v":"-"},{"$f":"IF($B87=\"N\",\"\",IF(COUNTIF('Enrollment Form'!$DG94:$DP94,\"Other\")=COUNTA('Enrollment Form'!$DK94,'Enrollment Form'!$DH94,'Enrollment Form'!$DN94,'Enrollment Form'!$DQ94),\"Y\",\"N\"))","v":""},{"$f":"IF($B87=\"N\",\"\",IF(OR('Enrollment Form'!B94<>\"Subscriber\",'Enrollment Form'!C94=\"ROC\",COUNTIF('Enrollment Form'!AV94:AW94,\"Yes\")>=1),\"-\",IF(AND('Enrollment Form'!C94=\"Enroll\",COUNTIF('Enrollment Form'!AV94:AW94,\"No\")=2,'Enrollment Form'!AX94=\"\"),\"N\",\"Y\")))","v":""},{"$f":"IF(OR(B87=\"N\",'Enrollment Form'!B94<>\"Subscriber\",'Enrollment Form'!C94=\"ROC\",'Enrollment Form'!O94<>\"Multiple of Salary\"),\"-\",IF(COUNTA('Enrollment Form'!T94:U94)<2,\"N\",\"Y\"))","v":"-"},{"$f":"IF(B87=\"N\",\"\",IF(OR('Enrollment Form'!C94=\"ROC\",'Enrollment Form'!B94<>\"Subscriber\",'Enrollment Form'!O94=\"Waive\",'Enrollment Form'!O94=\"\"),\"-\",IF('Enrollment Form'!P94=\"\",\"N\",\"Y\")))","v":""},{"$f":"IF($B87=\"N\",\"\",IF(AND('Enrollment Form'!$C94=\"ROC\",'Enrollment Form'!$DR94<>\"\"),\"Y\",IF(AND('Enrollment Form'!$C94=\"ROC\",'Enrollment Form'!$DR94=\"\"),\"N\",IF(AND('Enrollment Form'!$C94=\"Enroll\",'Enrollment Form'!$B94=\"Subscriber\",'Enrollment Form'!$CX94=\"No\",'Enrollment Form'!$DR94=\"\"),\"N\",IF(AND('Enrollment Form'!$C94=\"Enroll\",'Enrollment Form'!$B94=\"Subscriber\",'Enrollment Form'!$CX94=\"Yes\"),\"-\",\"Y\")))))","v":""},{"$f":"IF($B87=\"N\",\"\",IF(AND('Enrollment Form'!$C94=\"ROC\",'Enrollment Form'!$DS94<>\"\"),\"Y\",IF(AND('Enrollment Form'!$C94=\"ROC\",'Enrollment Form'!$DS94=\"\"),\"N\",IF(AND('Enrollment Form'!$C94=\"Enroll\",'Enrollment Form'!$B94=\"Subscriber\",'Enrollment Form'!$CX94=\"No\",'Enrollment Form'!$DS94=\"\"),\"N\",IF(AND('Enrollment Form'!$C94=\"Enroll\",'Enrollment Form'!$B94=\"Subscriber\",'Enrollment Form'!$CX94=\"Yes\"),\"-\",\"Y\")))))","v":""},{"$f":"IF('Enrollment Form'!AH94=\"\",\"\",IF(ISERROR(SEARCH(\".\",'Enrollment Form'!AH94,SEARCH(\"@\",'Enrollment Form'!AH94))),\"N\",\"Y\"))","v":""},{"$f":"IF(OR($B87=\"N\",'Enrollment Form'!$G94=\"\"),\"\",IF('Enrollment Form'!$B94<>\"Subscriber\",\"-\",IF(COUNTIF('Enrollment Form'!$AV94:$AW94,\"Yes\")=2,\"N\",\"Y\")))","v":""},{"$f":"IF(OR('Enrollment Form'!$CJ94=\"\",'Enrollment Form'!$CJ94=\"No\"),\"-\",IF(AND('Enrollment Form'!$CJ94=\"Yes\",'Enrollment Form'!$CK94=\"\"),\"N\",\"Y\"))","v":"-"},{"$f":"IF(OR('Enrollment Form'!$CL94=\"\",'Enrollment Form'!$CL94=\"No\"),\"-\",IF(AND('Enrollment Form'!$CL94=\"Yes\",'Enrollment Form'!$CM94=\"\"),\"N\",\"Y\"))","v":"-"},{"$f":"IF(OR('Enrollment Form'!$CN94=\"\",'Enrollment Form'!$CN94=\"No\"),\"-\",IF(AND('Enrollment Form'!$CN94=\"Yes\",'Enrollment Form'!$CO94=\"\"),\"N\",\"Y\"))","v":"-"},{"$f":"IF(OR('Enrollment Form'!$CN94=\"\",'Enrollment Form'!$CN94=\"No\"),\"-\",IF(AND('Enrollment Form'!$CN94=\"Yes\",'Enrollment Form'!$CP94=\"\"),\"N\",\"Y\"))","v":"-"},{"$f":"IF('Enrollment Form'!B94<>\"Subscriber\",\"-\",IF(AND('Enrollment Form'!B94=\"Subscriber\",'Enrollment Form'!C94=\"Enroll\",'Enrollment Form'!AA94=\"\"),\"N\",\"Y\"))","v":"-"},{"$f":"IF(OR('Enrollment Form'!B94=\"Subscriber\",'Enrollment Form'!B94=\"\"),\"-\",IF('Enrollment Form'!BP94=\"\",\"N\",\"Y\"))","v":"-"},{"$f":"IF('Enrollment Form'!B94<>\"Subscriber\",\"-\",IF(AND('Enrollment Form'!B94=\"Subscriber\",'Enrollment Form'!G94=\"\"),\"N\",\"Y\"))","v":"-"},{"$f":"IF('Enrollment Form'!A94=\"\",\"\",IF('Enrollment Form'!B94=\"Subscriber\",\"-\",IF(AND('Enrollment Form'!B94<>\"Subscriber\",'Enrollment Form'!G94='Enrollment Form'!H94),\"N\",\"Y\")))","v":""},0]
[95,{"$f":"IF('Enrollment Form'!$A95<>\"\",\"Y\",\"N\")","v":"N"},{"$f":"IF(AND('Enrollment Form'!$B95=\"\",'Enrollment Form'!$C95<>\"\"),\"N\",IF($B88=\"N\",\"\",\"Y\"))","v":""},{"$f":"IF(OR($B88=\"N\",'Enrollment Form'!G95=\"\"),\"\",IF('Enrollment Form'!$B95<>\"Subscriber\",\"\",IF('Enrollment Form'!$G95='Enrollment Form'!$H95,\"Y\",\"N\")))","v":""},{"$f":"IF($B88=\"N\",\"\",IF(AND(COUNTIFS('Enrollment Form'!$H$11:$H$1000,'Enrollment Form'!$H95,'Enrollment Form'!$B$11:$B$1000,'Enrollment Form'!$B95)>1,'Enrollment Form'!$H95<>\"\"),\"N\",\"Y\"))","v":""},{"$f":"IF($B88=\"N\",\"\",IF(LEN('Enrollment Form'!$Y95)=0,\"\",IF(LEN('Enrollment Form'!$Y95)<>5,\"N\",\"Y\")))","v":""},{"$f":"IF($B88=\"N\",\"\",IF(LEN('Enrollment Form'!$AD95=0),\"\",IF(LEN('Enrollment Form'!$AD95)<>5,\"N\",\"Y\")))","v":""},{"$f":"IF($B88=\"N\",\"\",IF(LEN('Enrollment Form'!$BS95=0),\"\",IF(LEN('Enrollment Form'!$BS95)<>5,\"N\",\"Y\")))","v":""},{"$f":"IF($B88=\"N\",\"\",IF(LEN('Enrollment Form'!$AE95)=0,\"\",IF(LEN('Enrollment Form'!$AE95)<>10,\"N\",\"Y\")))","v":""},{"$f":"IF($B88=\"N\",\"\",IF(LEN('Enrollment Form'!$AF95)=0,\"\",IF(LEN('Enrollment Form'!$AF95)<>10,\"N\",\"Y\")))","v":""},{"$f":"IF('Enrollment Form'!$O95<>\"Graded\",\"-\",IF(AND('Enrollment Form'!$O95=\"Graded\",'Enrollment Form'!$AR95<>\"\"),\"Y\",\"N\"))","v":"-"},{"$f":"IF($B88=\"N\",\"\",IF(OR('Enrollment Form'!$B95<>\"Subscriber\",'Enrollment Form'!$C95=\"ROC\"),\"-\",IF(AND('Enrollment Form'!$B95=\"Subscriber\",'Enrollment Form'!$C95=\"Enroll\",'Enrollment Form'!$AJ95<>\"\"),\"Y\",\"N\")))","v":""},{"$f":"IF($B88=\"N\",\"\",IF(OR('Enrollment Form'!$B95<>\"Subscriber\",'Enrollment Form'!$C95=\"ROC\"),\"-\",IF(AND('Enrollment Form'!$B95=\"Subscriber\",'Enrollment Form'!$C95=\"Enroll\",'Enrollment Form'!$AK95<>\"\"),\"Y\",\"N\")))","v":""},{"$f":"IF($B88=\"N\",\"\",IF(OR('Enrollment Form'!$B95<>\"Subscriber\",'Enrollment Form'!$C95=\"ROC\"),\"-\",IF(AND('Enrollment Form'!$B95=\"Subscriber\",'Enrollment Form'!$C95=\"Enroll\",'Enrollment Form'!$AL95<>\"\"),\"Y\",\"N\")))","v":""},{"$f":"IF($B88=\"N\",\"\",IF(OR('Enrollment Form'!$B95<>\"Subscriber\",'Enrollment Form'!$C95=\"ROC\"),\"-\",IF(AND('Enrollment Form'!$B95=\"Subscriber\",'Enrollment Form'!$C95=\"Enroll\",'Enrollment Form'!$AP95<>\"\"),\"Y\",\"N\")))","v":""},{"$f":"IF($B88=\"N\",\"\",IF(OR('Enrollment Form'!$B95<>\"Subscriber\",'Enrollment Form'!$C95=\"ROC\"),\"-\",IF(AND('Enrollment Form'!$B95=\"Subscriber\",'Enrollment Form'!$C95=\"Enroll\",'Enrollment Form'!$AQ95<>\"\"),\"Y\",\"N\")))","v":""},{"$f":"IF($B88=\"N\",\"\",IF(OR('Enrollment Form'!$B95<>\"Subscriber\",'Enrollment Form'!$C95=\"ROC\"),\"-\",IF(AND('Enrollment Form'!$B95=\"Subscriber\",'Enrollment Form'!$C95=\"Enroll\",'Enrollment Form'!$AS95<>\"\"),\"Y\",\"N\")))","v":""},{"$f":"IF($B88=\"N\",\"\",IF($Q88=\"-\",\"-\",IF(AND($Q88=\"Y\",'Enrollment Form'!$AS95=\"No\"),\"-\",IF(AND($Q88=\"Y\",'Enrollment Form'!$AS95=\"Yes\",'Enrollment Form'!$AT95<>\"\"),\"Y\",\"N\"))))","v":""},{"$f":"IF($B88=\"N\",\"\",IF(OR('Enrollment Form'!$B95<>\"Subscriber\",'Enrollment Form'!$C95=\"ROC\"),\"-\",IF(AND('Enrollment Form'!$B95=\"Subscriber\",'Enrollment Form'!$C95=\"Enroll\",'Enrollment Form'!$CV95<>\"\"),\"Y\",\"N\")))","v":""},{"$f":"IF($B88=\"N\",\"\",IF($S88=\"-\",\"-\",IF(AND($S88=\"Y\",'Enrollment Form'!$CV95=\"No\"),\"-\",IF(AND($S88=\"Y\",'Enrollment Form'!$CV95=\"Yes\",'Enrollment Form'!$CW95<>\"\"),\"Y\",\"N\"))))","v":""},{"$f":"IF(OR('Enrollment Form'!$AY95=\"Yes\",'Enrollment Form'!$AY95=\"\"),\"-\",IF(OR(AND('Enrollment Form'!$AY95=\"No\",ISERROR(FIND(\"HMO\",VLOOKUP('Enrollment Form'!G95,'Enrollment Form'!H$11:J$1000,3,FALSE),1))=FALSE,COUNTA('Enrollment Form'!$AZ95:$BC95)=4),AND('Enrollment Form'!$AY95=\"No\",ISERROR(FIND(\"HMO\",VLOOKUP('Enrollment Form'!G95,'Enrollment Form'!H$11:J$1000,3,FALSE),1))=FALSE,COUNTA('Enrollment Form'!$BT95:$BW95)=4)),\"Y\",\"N\"))","v":"-"},{"$f":"IF($B88=\"N\",\"\",IF('Enrollment Form'!$B95=\"Subscriber\",\"-\",IF(COUNTA('Enrollment Form'!$BL95,'Enrollment Form'!$BN95)=2,\"Y\",\"N\")))","v":""},{"$f":"IF($B88=\"N\",\"\",IF(OR('Enrollment Form'!$AX95=\"\",'Enrollment Form'!$AX95=\"No\"),\"-\",IF(AND('Enrollment Form'!$AX95=\"Yes\",COUNTA('Enrollment Form'!$CR95)=1),\"Y\",\"N\")))","v":""},{"$f":"IF(OR('Enrollment Form'!$CR95=\"\",'Enrollment Form'!$CR95=\"No\"),\"-\",IF(COUNTA('Enrollment Form'!$CT95:$CU95)=2,\"Y\",\"N\"))","v":"-"},{"$f":"IF($B88=\"N\",\"\",IF(COUNTIF('Enrollment Form'!$DG95:$DP95,\"Other\")=COUNTA('Enrollment Form'!$DK95,'Enrollment Form'!$DH95,'Enrollment Form'!$DN95,'Enrollment Form'!$DQ95),\"Y\",\"N\"))","v":""},{"$f":"IF($B88=\"N\",\"\",IF(OR('Enrollment Form'!B95<>\"Subscriber\",'Enrollment Form'!C95=\"ROC\",COUNTIF('Enrollment Form'!AV95:AW95,\"Yes\")>=1),\"-\",IF(AND('Enrollment Form'!C95=\"Enroll\",COUNTIF('Enrollment Form'!AV95:AW95,\"No\")=2,'Enrollment Form'!AX95=\"\"),\"N\",\"Y\")))","v":""},{"$f":"IF(OR(B88=\"N\",'Enrollment Form'!B95<>\"Subscriber\",'Enrollment Form'!C95=\"ROC\",'Enrollment Form'!O95<>\"Multiple of Salary\"),\"-\",IF(COUNTA('Enrollment Form'!T95:U95)<2,\"N\",\"Y\"))","v":"-"},{"$f":"IF(B88=\"N\",\"\",IF(OR('Enrollment Form'!C95=\"ROC\",'Enrollment Form'!B95<>\"Subscriber\",'Enrollment Form'!O95=\"Waive\",'Enrollment Form'!O95=\"\"),\"-\",IF('Enrollment Form'!P95=\"\",\"N\",\"Y\")))","v":""},{"$f":"IF($B88=\"N\",\"\",IF(AND('Enrollment Form'!$C95=\"ROC\",'Enrollment Form'!$DR95<>\"\"),\"Y\",IF(AND('Enrollment Form'!$C95=\"ROC\",'Enrollment Form'!$DR95=\"\"),\"N\",IF(AND('Enrollment Form'!$C95=\"Enroll\",'Enrollment Form'!$B95=\"Subscriber\",'Enrollment Form'!$CX95=\"No\",'Enrollment Form'!$DR95=\"\"),\"N\",IF(AND('Enrollment Form'!$C95=\"Enroll\",'Enrollment Form'!$B95=\"Subscriber\",'Enrollment Form'!$CX95=\"Yes\"),\"-\",\"Y\")))))","v":""},{"$f":"IF($B88=\"N\",\"\",IF(AND('Enrollment Form'!$C95=\"ROC\",'Enrollment Form'!$DS95<>\"\"),\"Y\",IF(AND('Enrollment Form'!$C95=\"ROC\",'Enrollment Form'!$DS95=\"\"),\"N\",IF(AND('Enrollment Form'!$C95=\"Enroll\",'Enrollment Form'!$B95=\"Subscriber\",'Enrollment Form'!$CX95=\"No\",'Enrollment Form'!$DS95=\"\"),\"N\",IF(AND('Enrollment Form'!$C95=\"Enroll\",'Enrollment Form'!$B95=\"Subscriber\",'Enrollment Form'!$CX95=\"Yes\"),\"-\",\"Y\")))))","v":""},{"$f":"IF('Enrollment Form'!AH95=\"\",\"\",IF(ISERROR(SEARCH(\".\",'Enrollment Form'!AH95,SEARCH(\"@\",'Enrollment Form'!AH95))),\"N\",\"Y\"))","v":""},{"$f":"IF(OR($B88=\"N\",'Enrollment Form'!$G95=\"\"),\"\",IF('Enrollment Form'!$B95<>\"Subscriber\",\"-\",IF(COUNTIF('Enrollment Form'!$AV95:$AW95,\"Yes\")=2,\"N\",\"Y\")))","v":""},{"$f":"IF(OR('Enrollment Form'!$CJ95=\"\",'Enrollment Form'!$CJ95=\"No\"),\"-\",IF(AND('Enrollment Form'!$CJ95=\"Yes\",'Enrollment Form'!$CK95=\"\"),\"N\",\"Y\"))","v":"-"},{"$f":"IF(OR('Enrollment Form'!$CL95=\"\",'Enrollment Form'!$CL95=\"No\"),\"-\",IF(AND('Enrollment Form'!$CL95=\"Yes\",'Enrollment Form'!$CM95=\"\"),\"N\",\"Y\"))","v":"-"},{"$f":"IF(OR('Enrollment Form'!$CN95=\"\",'Enrollment Form'!$CN95=\"No\"),\"-\",IF(AND('Enrollment Form'!$CN95=\"Yes\",'Enrollment Form'!$CO95=\"\"),\"N\",\"Y\"))","v":"-"},{"$f":"IF(OR('Enrollment Form'!$CN95=\"\",'Enrollment Form'!$CN95=\"No\"),\"-\",IF(AND('Enrollment Form'!$CN95=\"Yes\",'Enrollment Form'!$CP95=\"\"),\"N\",\"Y\"))","v":"-"},{"$f":"IF('Enrollment Form'!B95<>\"Subscriber\",\"-\",IF(AND('Enrollment Form'!B95=\"Subscriber\",'Enrollment Form'!C95=\"Enroll\",'Enrollment Form'!AA95=\"\"),\"N\",\"Y\"))","v":"-"},{"$f":"IF(OR('Enrollment Form'!B95=\"Subscriber\",'Enrollment Form'!B95=\"\"),\"-\",IF('Enrollment Form'!BP95=\"\",\"N\",\"Y\"))","v":"-"},{"$f":"IF('Enrollment Form'!B95<>\"Subscriber\",\"-\",IF(AND('Enrollment Form'!B95=\"Subscriber\",'Enrollment Form'!G95=\"\"),\"N\",\"Y\"))","v":"-"},{"$f":"IF('Enrollment Form'!A95=\"\",\"\",IF('Enrollment Form'!B95=\"Subscriber\",\"-\",IF(AND('Enrollment Form'!B95<>\"Subscriber\",'Enrollment Form'!G95='Enrollment Form'!H95),\"N\",\"Y\")))","v":""},0]
[96,{"$f":"IF('Enrollment Form'!$A96<>\"\",\"Y\",\"N\")","v":"N"},{"$f":"IF(AND('Enrollment Form'!$B96=\"\",'Enrollment Form'!$C96<>\"\"),\"N\",IF($B89=\"N\",\"\",\"Y\"))","v":""},{"$f":"IF(OR($B89=\"N\",'Enrollment Form'!G96=\"\"),\"\",IF('Enrollment Form'!$B96<>\"Subscriber\",\"\",IF('Enrollment Form'!$G96='Enrollment Form'!$H96,\"Y\",\"N\")))","v":""},{"$f":"IF($B89=\"N\",\"\",IF(AND(COUNTIFS('Enrollment Form'!$H$11:$H$1000,'Enrollment Form'!$H96,'Enrollment Form'!$B$11:$B$1000,'Enrollment Form'!$B96)>1,'Enrollment Form'!$H96<>\"\"),\"N\",\"Y\"))","v":""},{"$f":"IF($B89=\"N\",\"\",IF(LEN('Enrollment Form'!$Y96)=0,\"\",IF(LEN('Enrollment Form'!$Y96)<>5,\"N\",\"Y\")))","v":""},{"$f":"IF($B89=\"N\",\"\",IF(LEN('Enrollment Form'!$AD96=0),\"\",IF(LEN('Enrollment Form'!$AD96)<>5,\"N\",\"Y\")))","v":""},{"$f":"IF($B89=\"N\",\"\",IF(LEN('Enrollment Form'!$BS96=0),\"\",IF(LEN('Enrollment Form'!$BS96)<>5,\"N\",\"Y\")))","v":""},{"$f":"IF($B89=\"N\",\"\",IF(LEN('Enrollment Form'!$AE96)=0,\"\",IF(LEN('Enrollment Form'!$AE96)<>10,\"N\",\"Y\")))","v":""},{"$f":"IF($B89=\"N\",\"\",IF(LEN('Enrollment Form'!$AF96)=0,\"\",IF(LEN('Enrollment Form'!$AF96)<>10,\"N\",\"Y\")))","v":""},{"$f":"IF('Enrollment Form'!$O96<>\"Graded\",\"-\",IF(AND('Enrollment Form'!$O96=\"Graded\",'Enrollment Form'!$AR96<>\"\"),\"Y\",\"N\"))","v":"-"},{"$f":"IF($B89=\"N\",\"\",IF(OR('Enrollment Form'!$B96<>\"Subscriber\",'Enrollment Form'!$C96=\"ROC\"),\"-\",IF(AND('Enrollment Form'!$B96=\"Subscriber\",'Enrollment Form'!$C96=\"Enroll\",'Enrollment Form'!$AJ96<>\"\"),\"Y\",\"N\")))","v":""},{"$f":"IF($B89=\"N\",\"\",IF(OR('Enrollment Form'!$B96<>\"Subscriber\",'Enrollment Form'!$C96=\"ROC\"),\"-\",IF(AND('Enrollment Form'!$B96=\"Subscriber\",'Enrollment Form'!$C96=\"Enroll\",'Enrollment Form'!$AK96<>\"\"),\"Y\",\"N\")))","v":""},{"$f":"IF($B89=\"N\",\"\",IF(OR('Enrollment Form'!$B96<>\"Subscriber\",'Enrollment Form'!$C96=\"ROC\"),\"-\",IF(AND('Enrollment Form'!$B96=\"Subscriber\",'Enrollment Form'!$C96=\"Enroll\",'Enrollment Form'!$AL96<>\"\"),\"Y\",\"N\")))","v":""},{"$f":"IF($B89=\"N\",\"\",IF(OR('Enrollment Form'!$B96<>\"Subscriber\",'Enrollment Form'!$C96=\"ROC\"),\"-\",IF(AND('Enrollment Form'!$B96=\"Subscriber\",'Enrollment Form'!$C96=\"Enroll\",'Enrollment Form'!$AP96<>\"\"),\"Y\",\"N\")))","v":""},{"$f":"IF($B89=\"N\",\"\",IF(OR('Enrollment Form'!$B96<>\"Subscriber\",'Enrollment Form'!$C96=\"ROC\"),\"-\",IF(AND('Enrollment Form'!$B96=\"Subscriber\",'Enrollment Form'!$C96=\"Enroll\",'Enrollment Form'!$AQ96<>\"\"),\"Y\",\"N\")))","v":""},{"$f":"IF($B89=\"N\",\"\",IF(OR('Enrollment Form'!$B96<>\"Subscriber\",'Enrollment Form'!$C96=\"ROC\"),\"-\",IF(AND('Enrollment Form'!$B96=\"Subscriber\",'Enrollment Form'!$C96=\"Enroll\",'Enrollment Form'!$AS96<>\"\"),\"Y\",\"N\")))","v":""},{"$f":"IF($B89=\"N\",\"\",IF($Q89=\"-\",\"-\",IF(AND($Q89=\"Y\",'Enrollment Form'!$AS96=\"No\"),\"-\",IF(AND($Q89=\"Y\",'Enrollment Form'!$AS96=\"Yes\",'Enrollment Form'!$AT96<>\"\"),\"Y\",\"N\"))))","v":""},{"$f":"IF($B89=\"N\",\"\",IF(OR('Enrollment Form'!$B96<>\"Subscriber\",'Enrollment Form'!$C96=\"ROC\"),\"-\",IF(AND('Enrollment Form'!$B96=\"Subscriber\",'Enrollment Form'!$C96=\"Enroll\",'Enrollment Form'!$CV96<>\"\"),\"Y\",\"N\")))","v":""},{"$f":"IF($B89=\"N\",\"\",IF($S89=\"-\",\"-\",IF(AND($S89=\"Y\",'Enrollment Form'!$CV96=\"No\"),\"-\",IF(AND($S89=\"Y\",'Enrollment Form'!$CV96=\"Yes\",'Enrollment Form'!$CW96<>\"\"),\"Y\",\"N\"))))","v":""},{"$f":"IF(OR('Enrollment Form'!$AY96=\"Yes\",'Enrollment Form'!$AY96=\"\"),\"-\",IF(OR(AND('Enrollment Form'!$AY96=\"No\",ISERROR(FIND(\"HMO\",VLOOKUP('Enrollment Form'!G96,'Enrollment Form'!H$11:J$1000,3,FALSE),1))=FALSE,COUNTA('Enrollment Form'!$AZ96:$BC96)=4),AND('Enrollment Form'!$AY96=\"No\",ISERROR(FIND(\"HMO\",VLOOKUP('Enrollment Form'!G96,'Enrollment Form'!H$11:J$1000,3,FALSE),1))=FALSE,COUNTA('Enrollment Form'!$BT96:$BW96)=4)),\"Y\",\"N\"))","v":"-"},{"$f":"IF($B89=\"N\",\"\",IF('Enrollment Form'!$B96=\"Subscriber\",\"-\",IF(COUNTA('Enrollment Form'!$BL96,'Enrollment Form'!$BN96)=2,\"Y\",\"N\")))","v":""},{"$f":"IF($B89=\"N\",\"\",IF(OR('Enrollment Form'!$AX96=\"\",'Enrollment Form'!$AX96=\"No\"),\"-\",IF(AND('Enrollment Form'!$AX96=\"Yes\",COUNTA('Enrollment Form'!$CR96)=1),\"Y\",\"N\")))","v":""},{"$f":"IF(OR('Enrollment Form'!$CR96=\"\",'Enrollment Form'!$CR96=\"No\"),\"-\",IF(COUNTA('Enrollment Form'!$CT96:$CU96)=2,\"Y\",\"N\"))","v":"-"},{"$f":"IF($B89=\"N\",\"\",IF(COUNTIF('Enrollment Form'!$DG96:$DP96,\"Other\")=COUNTA('Enrollment Form'!$DK96,'Enrollment Form'!$DH96,'Enrollment Form'!$DN96,'Enrollment Form'!$DQ96),\"Y\",\"N\"))","v":""},{"$f":"IF($B89=\"N\",\"\",IF(OR('Enrollment Form'!B96<>\"Subscriber\",'Enrollment Form'!C96=\"ROC\",COUNTIF('Enrollment Form'!AV96:AW96,\"Yes\")>=1),\"-\",IF(AND('Enrollment Form'!C96=\"Enroll\",COUNTIF('Enrollment Form'!AV96:AW96,\"No\")=2,'Enrollment Form'!AX96=\"\"),\"N\",\"Y\")))","v":""},{"$f":"IF(OR(B89=\"N\",'Enrollment Form'!B96<>\"Subscriber\",'Enrollment Form'!C96=\"ROC\",'Enrollment Form'!O96<>\"Multiple of Salary\"),\"-\",IF(COUNTA('Enrollment Form'!T96:U96)<2,\"N\",\"Y\"))","v":"-"},{"$f":"IF(B89=\"N\",\"\",IF(OR('Enrollment Form'!C96=\"ROC\",'Enrollment Form'!B96<>\"Subscriber\",'Enrollment Form'!O96=\"Waive\",'Enrollment Form'!O96=\"\"),\"-\",IF('Enrollment Form'!P96=\"\",\"N\",\"Y\")))","v":""},{"$f":"IF($B89=\"N\",\"\",IF(AND('Enrollment Form'!$C96=\"ROC\",'Enrollment Form'!$DR96<>\"\"),\"Y\",IF(AND('Enrollment Form'!$C96=\"ROC\",'Enrollment Form'!$DR96=\"\"),\"N\",IF(AND('Enrollment Form'!$C96=\"Enroll\",'Enrollment Form'!$B96=\"Subscriber\",'Enrollment Form'!$CX96=\"No\",'Enrollment Form'!$DR96=\"\"),\"N\",IF(AND('Enrollment Form'!$C96=\"Enroll\",'Enrollment Form'!$B96=\"Subscriber\",'Enrollment Form'!$CX96=\"Yes\"),\"-\",\"Y\")))))","v":""},{"$f":"IF($B89=\"N\",\"\",IF(AND('Enrollment Form'!$C96=\"ROC\",'Enrollment Form'!$DS96<>\"\"),\"Y\",IF(AND('Enrollment Form'!$C96=\"ROC\",'Enrollment Form'!$DS96=\"\"),\"N\",IF(AND('Enrollment Form'!$C96=\"Enroll\",'Enrollment Form'!$B96=\"Subscriber\",'Enrollment Form'!$CX96=\"No\",'Enrollment Form'!$DS96=\"\"),\"N\",IF(AND('Enrollment Form'!$C96=\"Enroll\",'Enrollment Form'!$B96=\"Subscriber\",'Enrollment Form'!$CX96=\"Yes\"),\"-\",\"Y\")))))","v":""},{"$f":"IF('Enrollment Form'!AH96=\"\",\"\",IF(ISERROR(SEARCH(\".\",'Enrollment Form'!AH96,SEARCH(\"@\",'Enrollment Form'!AH96))),\"N\",\"Y\"))","v":""},{"$f":"IF(OR($B89=\"N\",'Enrollment Form'!$G96=\"\"),\"\",IF('Enrollment Form'!$B96<>\"Subscriber\",\"-\",IF(COUNTIF('Enrollment Form'!$AV96:$AW96,\"Yes\")=2,\"N\",\"Y\")))","v":""},{"$f":"IF(OR('Enrollment Form'!$CJ96=\"\",'Enrollment Form'!$CJ96=\"No\"),\"-\",IF(AND('Enrollment Form'!$CJ96=\"Yes\",'Enrollment Form'!$CK96=\"\"),\"N\",\"Y\"))","v":"-"},{"$f":"IF(OR('Enrollment Form'!$CL96=\"\",'Enrollment Form'!$CL96=\"No\"),\"-\",IF(AND('Enrollment Form'!$CL96=\"Yes\",'Enrollment Form'!$CM96=\"\"),\"N\",\"Y\"))","v":"-"},{"$f":"IF(OR('Enrollment Form'!$CN96=\"\",'Enrollment Form'!$CN96=\"No\"),\"-\",IF(AND('Enrollment Form'!$CN96=\"Yes\",'Enrollment Form'!$CO96=\"\"),\"N\",\"Y\"))","v":"-"},{"$f":"IF(OR('Enrollment Form'!$CN96=\"\",'Enrollment Form'!$CN96=\"No\"),\"-\",IF(AND('Enrollment Form'!$CN96=\"Yes\",'Enrollment Form'!$CP96=\"\"),\"N\",\"Y\"))","v":"-"},{"$f":"IF('Enrollment Form'!B96<>\"Subscriber\",\"-\",IF(AND('Enrollment Form'!B96=\"Subscriber\",'Enrollment Form'!C96=\"Enroll\",'Enrollment Form'!AA96=\"\"),\"N\",\"Y\"))","v":"-"},{"$f":"IF(OR('Enrollment Form'!B96=\"Subscriber\",'Enrollment Form'!B96=\"\"),\"-\",IF('Enrollment Form'!BP96=\"\",\"N\",\"Y\"))","v":"-"},{"$f":"IF('Enrollment Form'!B96<>\"Subscriber\",\"-\",IF(AND('Enrollment Form'!B96=\"Subscriber\",'Enrollment Form'!G96=\"\"),\"N\",\"Y\"))","v":"-"},{"$f":"IF('Enrollment Form'!A96=\"\",\"\",IF('Enrollment Form'!B96=\"Subscriber\",\"-\",IF(AND('Enrollment Form'!B96<>\"Subscriber\",'Enrollment Form'!G96='Enrollment Form'!H96),\"N\",\"Y\")))","v":""},0]
[97,{"$f":"IF('Enrollment Form'!$A97<>\"\",\"Y\",\"N\")","v":"N"},{"$f":"IF(AND('Enrollment Form'!$B97=\"\",'Enrollment Form'!$C97<>\"\"),\"N\",IF($B90=\"N\",\"\",\"Y\"))","v":""},{"$f":"IF(OR($B90=\"N\",'Enrollment Form'!G97=\"\"),\"\",IF('Enrollment Form'!$B97<>\"Subscriber\",\"\",IF('Enrollment Form'!$G97='Enrollment Form'!$H97,\"Y\",\"N\")))","v":""},{"$f":"IF($B90=\"N\",\"\",IF(AND(COUNTIFS('Enrollment Form'!$H$11:$H$1000,'Enrollment Form'!$H97,'Enrollment Form'!$B$11:$B$1000,'Enrollment Form'!$B97)>1,'Enrollment Form'!$H97<>\"\"),\"N\",\"Y\"))","v":""},{"$f":"IF($B90=\"N\",\"\",IF(LEN('Enrollment Form'!$Y97)=0,\"\",IF(LEN('Enrollment Form'!$Y97)<>5,\"N\",\"Y\")))","v":""},{"$f":"IF($B90=\"N\",\"\",IF(LEN('Enrollment Form'!$AD97=0),\"\",IF(LEN('Enrollment Form'!$AD97)<>5,\"N\",\"Y\")))","v":""},{"$f":"IF($B90=\"N\",\"\",IF(LEN('Enrollment Form'!$BS97=0),\"\",IF(LEN('Enrollment Form'!$BS97)<>5,\"N\",\"Y\")))","v":""},{"$f":"IF($B90=\"N\",\"\",IF(LEN('Enrollment Form'!$AE97)=0,\"\",IF(LEN('Enrollment Form'!$AE97)<>10,\"N\",\"Y\")))","v":""},{"$f":"IF($B90=\"N\",\"\",IF(LEN('Enrollment Form'!$AF97)=0,\"\",IF(LEN('Enrollment Form'!$AF97)<>10,\"N\",\"Y\")))","v":""},{"$f":"IF('Enrollment Form'!$O97<>\"Graded\",\"-\",IF(AND('Enrollment Form'!$O97=\"Graded\",'Enrollment Form'!$AR97<>\"\"),\"Y\",\"N\"))","v":"-"},{"$f":"IF($B90=\"N\",\"\",IF(OR('Enrollment Form'!$B97<>\"Subscriber\",'Enrollment Form'!$C97=\"ROC\"),\"-\",IF(AND('Enrollment Form'!$B97=\"Subscriber\",'Enrollment Form'!$C97=\"Enroll\",'Enrollment Form'!$AJ97<>\"\"),\"Y\",\"N\")))","v":""},{"$f":"IF($B90=\"N\",\"\",IF(OR('Enrollment Form'!$B97<>\"Subscriber\",'Enrollment Form'!$C97=\"ROC\"),\"-\",IF(AND('Enrollment Form'!$B97=\"Subscriber\",'Enrollment Form'!$C97=\"Enroll\",'Enrollment Form'!$AK97<>\"\"),\"Y\",\"N\")))","v":""},{"$f":"IF($B90=\"N\",\"\",IF(OR('Enrollment Form'!$B97<>\"Subscriber\",'Enrollment Form'!$C97=\"ROC\"),\"-\",IF(AND('Enrollment Form'!$B97=\"Subscriber\",'Enrollment Form'!$C97=\"Enroll\",'Enrollment Form'!$AL97<>\"\"),\"Y\",\"N\")))","v":""},{"$f":"IF($B90=\"N\",\"\",IF(OR('Enrollment Form'!$B97<>\"Subscriber\",'Enrollment Form'!$C97=\"ROC\"),\"-\",IF(AND('Enrollment Form'!$B97=\"Subscriber\",'Enrollment Form'!$C97=\"Enroll\",'Enrollment Form'!$AP97<>\"\"),\"Y\",\"N\")))","v":""},{"$f":"IF($B90=\"N\",\"\",IF(OR('Enrollment Form'!$B97<>\"Subscriber\",'Enrollment Form'!$C97=\"ROC\"),\"-\",IF(AND('Enrollment Form'!$B97=\"Subscriber\",'Enrollment Form'!$C97=\"Enroll\",'Enrollment Form'!$AQ97<>\"\"),\"Y\",\"N\")))","v":""},{"$f":"IF($B90=\"N\",\"\",IF(OR('Enrollment Form'!$B97<>\"Subscriber\",'Enrollment Form'!$C97=\"ROC\"),\"-\",IF(AND('Enrollment Form'!$B97=\"Subscriber\",'Enrollment Form'!$C97=\"Enroll\",'Enrollment Form'!$AS97<>\"\"),\"Y\",\"N\")))","v":""},{"$f":"IF($B90=\"N\",\"\",IF($Q90=\"-\",\"-\",IF(AND($Q90=\"Y\",'Enrollment Form'!$AS97=\"No\"),\"-\",IF(AND($Q90=\"Y\",'Enrollment Form'!$AS97=\"Yes\",'Enrollment Form'!$AT97<>\"\"),\"Y\",\"N\"))))","v":""},{"$f":"IF($B90=\"N\",\"\",IF(OR('Enrollment Form'!$B97<>\"Subscriber\",'Enrollment Form'!$C97=\"ROC\"),\"-\",IF(AND('Enrollment Form'!$B97=\"Subscriber\",'Enrollment Form'!$C97=\"Enroll\",'Enrollment Form'!$CV97<>\"\"),\"Y\",\"N\")))","v":""},{"$f":"IF($B90=\"N\",\"\",IF($S90=\"-\",\"-\",IF(AND($S90=\"Y\",'Enrollment Form'!$CV97=\"No\"),\"-\",IF(AND($S90=\"Y\",'Enrollment Form'!$CV97=\"Yes\",'Enrollment Form'!$CW97<>\"\"),\"Y\",\"N\"))))","v":""},{"$f":"IF(OR('Enrollment Form'!$AY97=\"Yes\",'Enrollment Form'!$AY97=\"\"),\"-\",IF(OR(AND('Enrollment Form'!$AY97=\"No\",ISERROR(FIND(\"HMO\",VLOOKUP('Enrollment Form'!G97,'Enrollment Form'!H$11:J$1000,3,FALSE),1))=FALSE,COUNTA('Enrollment Form'!$AZ97:$BC97)=4),AND('Enrollment Form'!$AY97=\"No\",ISERROR(FIND(\"HMO\",VLOOKUP('Enrollment Form'!G97,'Enrollment Form'!H$11:J$1000,3,FALSE),1))=FALSE,COUNTA('Enrollment Form'!$BT97:$BW97)=4)),\"Y\",\"N\"))","v":"-"},{"$f":"IF($B90=\"N\",\"\",IF('Enrollment Form'!$B97=\"Subscriber\",\"-\",IF(COUNTA('Enrollment Form'!$BL97,'Enrollment Form'!$BN97)=2,\"Y\",\"N\")))","v":""},{"$f":"IF($B90=\"N\",\"\",IF(OR('Enrollment Form'!$AX97=\"\",'Enrollment Form'!$AX97=\"No\"),\"-\",IF(AND('Enrollment Form'!$AX97=\"Yes\",COUNTA('Enrollment Form'!$CR97)=1),\"Y\",\"N\")))","v":""},{"$f":"IF(OR('Enrollment Form'!$CR97=\"\",'Enrollment Form'!$CR97=\"No\"),\"-\",IF(COUNTA('Enrollment Form'!$CT97:$CU97)=2,\"Y\",\"N\"))","v":"-"},{"$f":"IF($B90=\"N\",\"\",IF(COUNTIF('Enrollment Form'!$DG97:$DP97,\"Other\")=COUNTA('Enrollment Form'!$DK97,'Enrollment Form'!$DH97,'Enrollment Form'!$DN97,'Enrollment Form'!$DQ97),\"Y\",\"N\"))","v":""},{"$f":"IF($B90=\"N\",\"\",IF(OR('Enrollment Form'!B97<>\"Subscriber\",'Enrollment Form'!C97=\"ROC\",COUNTIF('Enrollment Form'!AV97:AW97,\"Yes\")>=1),\"-\",IF(AND('Enrollment Form'!C97=\"Enroll\",COUNTIF('Enrollment Form'!AV97:AW97,\"No\")=2,'Enrollment Form'!AX97=\"\"),\"N\",\"Y\")))","v":""},{"$f":"IF(OR(B90=\"N\",'Enrollment Form'!B97<>\"Subscriber\",'Enrollment Form'!C97=\"ROC\",'Enrollment Form'!O97<>\"Multiple of Salary\"),\"-\",IF(COUNTA('Enrollment Form'!T97:U97)<2,\"N\",\"Y\"))","v":"-"},{"$f":"IF(B90=\"N\",\"\",IF(OR('Enrollment Form'!C97=\"ROC\",'Enrollment Form'!B97<>\"Subscriber\",'Enrollment Form'!O97=\"Waive\",'Enrollment Form'!O97=\"\"),\"-\",IF('Enrollment Form'!P97=\"\",\"N\",\"Y\")))","v":""},{"$f":"IF($B90=\"N\",\"\",IF(AND('Enrollment Form'!$C97=\"ROC\",'Enrollment Form'!$DR97<>\"\"),\"Y\",IF(AND('Enrollment Form'!$C97=\"ROC\",'Enrollment Form'!$DR97=\"\"),\"N\",IF(AND('Enrollment Form'!$C97=\"Enroll\",'Enrollment Form'!$B97=\"Subscriber\",'Enrollment Form'!$CX97=\"No\",'Enrollment Form'!$DR97=\"\"),\"N\",IF(AND('Enrollment Form'!$C97=\"Enroll\",'Enrollment Form'!$B97=\"Subscriber\",'Enrollment Form'!$CX97=\"Yes\"),\"-\",\"Y\")))))","v":""},{"$f":"IF($B90=\"N\",\"\",IF(AND('Enrollment Form'!$C97=\"ROC\",'Enrollment Form'!$DS97<>\"\"),\"Y\",IF(AND('Enrollment Form'!$C97=\"ROC\",'Enrollment Form'!$DS97=\"\"),\"N\",IF(AND('Enrollment Form'!$C97=\"Enroll\",'Enrollment Form'!$B97=\"Subscriber\",'Enrollment Form'!$CX97=\"No\",'Enrollment Form'!$DS97=\"\"),\"N\",IF(AND('Enrollment Form'!$C97=\"Enroll\",'Enrollment Form'!$B97=\"Subscriber\",'Enrollment Form'!$CX97=\"Yes\"),\"-\",\"Y\")))))","v":""},{"$f":"IF('Enrollment Form'!AH97=\"\",\"\",IF(ISERROR(SEARCH(\".\",'Enrollment Form'!AH97,SEARCH(\"@\",'Enrollment Form'!AH97))),\"N\",\"Y\"))","v":""},{"$f":"IF(OR($B90=\"N\",'Enrollment Form'!$G97=\"\"),\"\",IF('Enrollment Form'!$B97<>\"Subscriber\",\"-\",IF(COUNTIF('Enrollment Form'!$AV97:$AW97,\"Yes\")=2,\"N\",\"Y\")))","v":""},{"$f":"IF(OR('Enrollment Form'!$CJ97=\"\",'Enrollment Form'!$CJ97=\"No\"),\"-\",IF(AND('Enrollment Form'!$CJ97=\"Yes\",'Enrollment Form'!$CK97=\"\"),\"N\",\"Y\"))","v":"-"},{"$f":"IF(OR('Enrollment Form'!$CL97=\"\",'Enrollment Form'!$CL97=\"No\"),\"-\",IF(AND('Enrollment Form'!$CL97=\"Yes\",'Enrollment Form'!$CM97=\"\"),\"N\",\"Y\"))","v":"-"},{"$f":"IF(OR('Enrollment Form'!$CN97=\"\",'Enrollment Form'!$CN97=\"No\"),\"-\",IF(AND('Enrollment Form'!$CN97=\"Yes\",'Enrollment Form'!$CO97=\"\"),\"N\",\"Y\"))","v":"-"},{"$f":"IF(OR('Enrollment Form'!$CN97=\"\",'Enrollment Form'!$CN97=\"No\"),\"-\",IF(AND('Enrollment Form'!$CN97=\"Yes\",'Enrollment Form'!$CP97=\"\"),\"N\",\"Y\"))","v":"-"},{"$f":"IF('Enrollment Form'!B97<>\"Subscriber\",\"-\",IF(AND('Enrollment Form'!B97=\"Subscriber\",'Enrollment Form'!C97=\"Enroll\",'Enrollment Form'!AA97=\"\"),\"N\",\"Y\"))","v":"-"},{"$f":"IF(OR('Enrollment Form'!B97=\"Subscriber\",'Enrollment Form'!B97=\"\"),\"-\",IF('Enrollment Form'!BP97=\"\",\"N\",\"Y\"))","v":"-"},{"$f":"IF('Enrollment Form'!B97<>\"Subscriber\",\"-\",IF(AND('Enrollment Form'!B97=\"Subscriber\",'Enrollment Form'!G97=\"\"),\"N\",\"Y\"))","v":"-"},{"$f":"IF('Enrollment Form'!A97=\"\",\"\",IF('Enrollment Form'!B97=\"Subscriber\",\"-\",IF(AND('Enrollment Form'!B97<>\"Subscriber\",'Enrollment Form'!G97='Enrollment Form'!H97),\"N\",\"Y\")))","v":""},0]
[98,{"$f":"IF('Enrollment Form'!$A98<>\"\",\"Y\",\"N\")","v":"N"},{"$f":"IF(AND('Enrollment Form'!$B98=\"\",'Enrollment Form'!$C98<>\"\"),\"N\",IF($B91=\"N\",\"\",\"Y\"))","v":""},{"$f":"IF(OR($B91=\"N\",'Enrollment Form'!G98=\"\"),\"\",IF('Enrollment Form'!$B98<>\"Subscriber\",\"\",IF('Enrollment Form'!$G98='Enrollment Form'!$H98,\"Y\",\"N\")))","v":""},{"$f":"IF($B91=\"N\",\"\",IF(AND(COUNTIFS('Enrollment Form'!$H$11:$H$1000,'Enrollment Form'!$H98,'Enrollment Form'!$B$11:$B$1000,'Enrollment Form'!$B98)>1,'Enrollment Form'!$H98<>\"\"),\"N\",\"Y\"))","v":""},{"$f":"IF($B91=\"N\",\"\",IF(LEN('Enrollment Form'!$Y98)=0,\"\",IF(LEN('Enrollment Form'!$Y98)<>5,\"N\",\"Y\")))","v":""},{"$f":"IF($B91=\"N\",\"\",IF(LEN('Enrollment Form'!$AD98=0),\"\",IF(LEN('Enrollment Form'!$AD98)<>5,\"N\",\"Y\")))","v":""},{"$f":"IF($B91=\"N\",\"\",IF(LEN('Enrollment Form'!$BS98=0),\"\",IF(LEN('Enrollment Form'!$BS98)<>5,\"N\",\"Y\")))","v":""},{"$f":"IF($B91=\"N\",\"\",IF(LEN('Enrollment Form'!$AE98)=0,\"\",IF(LEN('Enrollment Form'!$AE98)<>10,\"N\",\"Y\")))","v":""},{"$f":"IF($B91=\"N\",\"\",IF(LEN('Enrollment Form'!$AF98)=0,\"\",IF(LEN('Enrollment Form'!$AF98)<>10,\"N\",\"Y\")))","v":""},{"$f":"IF('Enrollment Form'!$O98<>\"Graded\",\"-\",IF(AND('Enrollment Form'!$O98=\"Graded\",'Enrollment Form'!$AR98<>\"\"),\"Y\",\"N\"))","v":"-"},{"$f":"IF($B91=\"N\",\"\",IF(OR('Enrollment Form'!$B98<>\"Subscriber\",'Enrollment Form'!$C98=\"ROC\"),\"-\",IF(AND('Enrollment Form'!$B98=\"Subscriber\",'Enrollment Form'!$C98=\"Enroll\",'Enrollment Form'!$AJ98<>\"\"),\"Y\",\"N\")))","v":""},{"$f":"IF($B91=\"N\",\"\",IF(OR('Enrollment Form'!$B98<>\"Subscriber\",'Enrollment Form'!$C98=\"ROC\"),\"-\",IF(AND('Enrollment Form'!$B98=\"Subscriber\",'Enrollment Form'!$C98=\"Enroll\",'Enrollment Form'!$AK98<>\"\"),\"Y\",\"N\")))","v":""},{"$f":"IF($B91=\"N\",\"\",IF(OR('Enrollment Form'!$B98<>\"Subscriber\",'Enrollment Form'!$C98=\"ROC\"),\"-\",IF(AND('Enrollment Form'!$B98=\"Subscriber\",'Enrollment Form'!$C98=\"Enroll\",'Enrollment Form'!$AL98<>\"\"),\"Y\",\"N\")))","v":""},{"$f":"IF($B91=\"N\",\"\",IF(OR('Enrollment Form'!$B98<>\"Subscriber\",'Enrollment Form'!$C98=\"ROC\"),\"-\",IF(AND('Enrollment Form'!$B98=\"Subscriber\",'Enrollment Form'!$C98=\"Enroll\",'Enrollment Form'!$AP98<>\"\"),\"Y\",\"N\")))","v":""},{"$f":"IF($B91=\"N\",\"\",IF(OR('Enrollment Form'!$B98<>\"Subscriber\",'Enrollment Form'!$C98=\"ROC\"),\"-\",IF(AND('Enrollment Form'!$B98=\"Subscriber\",'Enrollment Form'!$C98=\"Enroll\",'Enrollment Form'!$AQ98<>\"\"),\"Y\",\"N\")))","v":""},{"$f":"IF($B91=\"N\",\"\",IF(OR('Enrollment Form'!$B98<>\"Subscriber\",'Enrollment Form'!$C98=\"ROC\"),\"-\",IF(AND('Enrollment Form'!$B98=\"Subscriber\",'Enrollment Form'!$C98=\"Enroll\",'Enrollment Form'!$AS98<>\"\"),\"Y\",\"N\")))","v":""},{"$f":"IF($B91=\"N\",\"\",IF($Q91=\"-\",\"-\",IF(AND($Q91=\"Y\",'Enrollment Form'!$AS98=\"No\"),\"-\",IF(AND($Q91=\"Y\",'Enrollment Form'!$AS98=\"Yes\",'Enrollment Form'!$AT98<>\"\"),\"Y\",\"N\"))))","v":""},{"$f":"IF($B91=\"N\",\"\",IF(OR('Enrollment Form'!$B98<>\"Subscriber\",'Enrollment Form'!$C98=\"ROC\"),\"-\",IF(AND('Enrollment Form'!$B98=\"Subscriber\",'Enrollment Form'!$C98=\"Enroll\",'Enrollment Form'!$CV98<>\"\"),\"Y\",\"N\")))","v":""},{"$f":"IF($B91=\"N\",\"\",IF($S91=\"-\",\"-\",IF(AND($S91=\"Y\",'Enrollment Form'!$CV98=\"No\"),\"-\",IF(AND($S91=\"Y\",'Enrollment Form'!$CV98=\"Yes\",'Enrollment Form'!$CW98<>\"\"),\"Y\",\"N\"))))","v":""},{"$f":"IF(OR('Enrollment Form'!$AY98=\"Yes\",'Enrollment Form'!$AY98=\"\"),\"-\",IF(OR(AND('Enrollment Form'!$AY98=\"No\",ISERROR(FIND(\"HMO\",VLOOKUP('Enrollment Form'!G98,'Enrollment Form'!H$11:J$1000,3,FALSE),1))=FALSE,COUNTA('Enrollment Form'!$AZ98:$BC98)=4),AND('Enrollment Form'!$AY98=\"No\",ISERROR(FIND(\"HMO\",VLOOKUP('Enrollment Form'!G98,'Enrollment Form'!H$11:J$1000,3,FALSE),1))=FALSE,COUNTA('Enrollment Form'!$BT98:$BW98)=4)),\"Y\",\"N\"))","v":"-"},{"$f":"IF($B91=\"N\",\"\",IF('Enrollment Form'!$B98=\"Subscriber\",\"-\",IF(COUNTA('Enrollment Form'!$BL98,'Enrollment Form'!$BN98)=2,\"Y\",\"N\")))","v":""},{"$f":"IF($B91=\"N\",\"\",IF(OR('Enrollment Form'!$AX98=\"\",'Enrollment Form'!$AX98=\"No\"),\"-\",IF(AND('Enrollment Form'!$AX98=\"Yes\",COUNTA('Enrollment Form'!$CR98)=1),\"Y\",\"N\")))","v":""},{"$f":"IF(OR('Enrollment Form'!$CR98=\"\",'Enrollment Form'!$CR98=\"No\"),\"-\",IF(COUNTA('Enrollment Form'!$CT98:$CU98)=2,\"Y\",\"N\"))","v":"-"},{"$f":"IF($B91=\"N\",\"\",IF(COUNTIF('Enrollment Form'!$DG98:$DP98,\"Other\")=COUNTA('Enrollment Form'!$DK98,'Enrollment Form'!$DH98,'Enrollment Form'!$DN98,'Enrollment Form'!$DQ98),\"Y\",\"N\"))","v":""},{"$f":"IF($B91=\"N\",\"\",IF(OR('Enrollment Form'!B98<>\"Subscriber\",'Enrollment Form'!C98=\"ROC\",COUNTIF('Enrollment Form'!AV98:AW98,\"Yes\")>=1),\"-\",IF(AND('Enrollment Form'!C98=\"Enroll\",COUNTIF('Enrollment Form'!AV98:AW98,\"No\")=2,'Enrollment Form'!AX98=\"\"),\"N\",\"Y\")))","v":""},{"$f":"IF(OR(B91=\"N\",'Enrollment Form'!B98<>\"Subscriber\",'Enrollment Form'!C98=\"ROC\",'Enrollment Form'!O98<>\"Multiple of Salary\"),\"-\",IF(COUNTA('Enrollment Form'!T98:U98)<2,\"N\",\"Y\"))","v":"-"},{"$f":"IF(B91=\"N\",\"\",IF(OR('Enrollment Form'!C98=\"ROC\",'Enrollment Form'!B98<>\"Subscriber\",'Enrollment Form'!O98=\"Waive\",'Enrollment Form'!O98=\"\"),\"-\",IF('Enrollment Form'!P98=\"\",\"N\",\"Y\")))","v":""},{"$f":"IF($B91=\"N\",\"\",IF(AND('Enrollment Form'!$C98=\"ROC\",'Enrollment Form'!$DR98<>\"\"),\"Y\",IF(AND('Enrollment Form'!$C98=\"ROC\",'Enrollment Form'!$DR98=\"\"),\"N\",IF(AND('Enrollment Form'!$C98=\"Enroll\",'Enrollment Form'!$B98=\"Subscriber\",'Enrollment Form'!$CX98=\"No\",'Enrollment Form'!$DR98=\"\"),\"N\",IF(AND('Enrollment Form'!$C98=\"Enroll\",'Enrollment Form'!$B98=\"Subscriber\",'Enrollment Form'!$CX98=\"Yes\"),\"-\",\"Y\")))))","v":""},{"$f":"IF($B91=\"N\",\"\",IF(AND('Enrollment Form'!$C98=\"ROC\",'Enrollment Form'!$DS98<>\"\"),\"Y\",IF(AND('Enrollment Form'!$C98=\"ROC\",'Enrollment Form'!$DS98=\"\"),\"N\",IF(AND('Enrollment Form'!$C98=\"Enroll\",'Enrollment Form'!$B98=\"Subscriber\",'Enrollment Form'!$CX98=\"No\",'Enrollment Form'!$DS98=\"\"),\"N\",IF(AND('Enrollment Form'!$C98=\"Enroll\",'Enrollment Form'!$B98=\"Subscriber\",'Enrollment Form'!$CX98=\"Yes\"),\"-\",\"Y\")))))","v":""},{"$f":"IF('Enrollment Form'!AH98=\"\",\"\",IF(ISERROR(SEARCH(\".\",'Enrollment Form'!AH98,SEARCH(\"@\",'Enrollment Form'!AH98))),\"N\",\"Y\"))","v":""},{"$f":"IF(OR($B91=\"N\",'Enrollment Form'!$G98=\"\"),\"\",IF('Enrollment Form'!$B98<>\"Subscriber\",\"-\",IF(COUNTIF('Enrollment Form'!$AV98:$AW98,\"Yes\")=2,\"N\",\"Y\")))","v":""},{"$f":"IF(OR('Enrollment Form'!$CJ98=\"\",'Enrollment Form'!$CJ98=\"No\"),\"-\",IF(AND('Enrollment Form'!$CJ98=\"Yes\",'Enrollment Form'!$CK98=\"\"),\"N\",\"Y\"))","v":"-"},{"$f":"IF(OR('Enrollment Form'!$CL98=\"\",'Enrollment Form'!$CL98=\"No\"),\"-\",IF(AND('Enrollment Form'!$CL98=\"Yes\",'Enrollment Form'!$CM98=\"\"),\"N\",\"Y\"))","v":"-"},{"$f":"IF(OR('Enrollment Form'!$CN98=\"\",'Enrollment Form'!$CN98=\"No\"),\"-\",IF(AND('Enrollment Form'!$CN98=\"Yes\",'Enrollment Form'!$CO98=\"\"),\"N\",\"Y\"))","v":"-"},{"$f":"IF(OR('Enrollment Form'!$CN98=\"\",'Enrollment Form'!$CN98=\"No\"),\"-\",IF(AND('Enrollment Form'!$CN98=\"Yes\",'Enrollment Form'!$CP98=\"\"),\"N\",\"Y\"))","v":"-"},{"$f":"IF('Enrollment Form'!B98<>\"Subscriber\",\"-\",IF(AND('Enrollment Form'!B98=\"Subscriber\",'Enrollment Form'!C98=\"Enroll\",'Enrollment Form'!AA98=\"\"),\"N\",\"Y\"))","v":"-"},{"$f":"IF(OR('Enrollment Form'!B98=\"Subscriber\",'Enrollment Form'!B98=\"\"),\"-\",IF('Enrollment Form'!BP98=\"\",\"N\",\"Y\"))","v":"-"},{"$f":"IF('Enrollment Form'!B98<>\"Subscriber\",\"-\",IF(AND('Enrollment Form'!B98=\"Subscriber\",'Enrollment Form'!G98=\"\"),\"N\",\"Y\"))","v":"-"},{"$f":"IF('Enrollment Form'!A98=\"\",\"\",IF('Enrollment Form'!B98=\"Subscriber\",\"-\",IF(AND('Enrollment Form'!B98<>\"Subscriber\",'Enrollment Form'!G98='Enrollment Form'!H98),\"N\",\"Y\")))","v":""},0]
[99,{"$f":"IF('Enrollment Form'!$A99<>\"\",\"Y\",\"N\")","v":"N"},{"$f":"IF(AND('Enrollment Form'!$B99=\"\",'Enrollment Form'!$C99<>\"\"),\"N\",IF($B92=\"N\",\"\",\"Y\"))","v":""},{"$f":"IF(OR($B92=\"N\",'Enrollment Form'!G99=\"\"),\"\",IF('Enrollment Form'!$B99<>\"Subscriber\",\"\",IF('Enrollment Form'!$G99='Enrollment Form'!$H99,\"Y\",\"N\")))","v":""},{"$f":"IF($B92=\"N\",\"\",IF(AND(COUNTIFS('Enrollment Form'!$H$11:$H$1000,'Enrollment Form'!$H99,'Enrollment Form'!$B$11:$B$1000,'Enrollment Form'!$B99)>1,'Enrollment Form'!$H99<>\"\"),\"N\",\"Y\"))","v":""},{"$f":"IF($B92=\"N\",\"\",IF(LEN('Enrollment Form'!$Y99)=0,\"\",IF(LEN('Enrollment Form'!$Y99)<>5,\"N\",\"Y\")))","v":""},{"$f":"IF($B92=\"N\",\"\",IF(LEN('Enrollment Form'!$AD99=0),\"\",IF(LEN('Enrollment Form'!$AD99)<>5,\"N\",\"Y\")))","v":""},{"$f":"IF($B92=\"N\",\"\",IF(LEN('Enrollment Form'!$BS99=0),\"\",IF(LEN('Enrollment Form'!$BS99)<>5,\"N\",\"Y\")))","v":""},{"$f":"IF($B92=\"N\",\"\",IF(LEN('Enrollment Form'!$AE99)=0,\"\",IF(LEN('Enrollment Form'!$AE99)<>10,\"N\",\"Y\")))","v":""},{"$f":"IF($B92=\"N\",\"\",IF(LEN('Enrollment Form'!$AF99)=0,\"\",IF(LEN('Enrollment Form'!$AF99)<>10,\"N\",\"Y\")))","v":""},{"$f":"IF('Enrollment Form'!$O99<>\"Graded\",\"-\",IF(AND('Enrollment Form'!$O99=\"Graded\",'Enrollment Form'!$AR99<>\"\"),\"Y\",\"N\"))","v":"-"},{"$f":"IF($B92=\"N\",\"\",IF(OR('Enrollment Form'!$B99<>\"Subscriber\",'Enrollment Form'!$C99=\"ROC\"),\"-\",IF(AND('Enrollment Form'!$B99=\"Subscriber\",'Enrollment Form'!$C99=\"Enroll\",'Enrollment Form'!$AJ99<>\"\"),\"Y\",\"N\")))","v":""},{"$f":"IF($B92=\"N\",\"\",IF(OR('Enrollment Form'!$B99<>\"Subscriber\",'Enrollment Form'!$C99=\"ROC\"),\"-\",IF(AND('Enrollment Form'!$B99=\"Subscriber\",'Enrollment Form'!$C99=\"Enroll\",'Enrollment Form'!$AK99<>\"\"),\"Y\",\"N\")))","v":""},{"$f":"IF($B92=\"N\",\"\",IF(OR('Enrollment Form'!$B99<>\"Subscriber\",'Enrollment Form'!$C99=\"ROC\"),\"-\",IF(AND('Enrollment Form'!$B99=\"Subscriber\",'Enrollment Form'!$C99=\"Enroll\",'Enrollment Form'!$AL99<>\"\"),\"Y\",\"N\")))","v":""},{"$f":"IF($B92=\"N\",\"\",IF(OR('Enrollment Form'!$B99<>\"Subscriber\",'Enrollment Form'!$C99=\"ROC\"),\"-\",IF(AND('Enrollment Form'!$B99=\"Subscriber\",'Enrollment Form'!$C99=\"Enroll\",'Enrollment Form'!$AP99<>\"\"),\"Y\",\"N\")))","v":""},{"$f":"IF($B92=\"N\",\"\",IF(OR('Enrollment Form'!$B99<>\"Subscriber\",'Enrollment Form'!$C99=\"ROC\"),\"-\",IF(AND('Enrollment Form'!$B99=\"Subscriber\",'Enrollment Form'!$C99=\"Enroll\",'Enrollment Form'!$AQ99<>\"\"),\"Y\",\"N\")))","v":""},{"$f":"IF($B92=\"N\",\"\",IF(OR('Enrollment Form'!$B99<>\"Subscriber\",'Enrollment Form'!$C99=\"ROC\"),\"-\",IF(AND('Enrollment Form'!$B99=\"Subscriber\",'Enrollment Form'!$C99=\"Enroll\",'Enrollment Form'!$AS99<>\"\"),\"Y\",\"N\")))","v":""},{"$f":"IF($B92=\"N\",\"\",IF($Q92=\"-\",\"-\",IF(AND($Q92=\"Y\",'Enrollment Form'!$AS99=\"No\"),\"-\",IF(AND($Q92=\"Y\",'Enrollment Form'!$AS99=\"Yes\",'Enrollment Form'!$AT99<>\"\"),\"Y\",\"N\"))))","v":""},{"$f":"IF($B92=\"N\",\"\",IF(OR('Enrollment Form'!$B99<>\"Subscriber\",'Enrollment Form'!$C99=\"ROC\"),\"-\",IF(AND('Enrollment Form'!$B99=\"Subscriber\",'Enrollment Form'!$C99=\"Enroll\",'Enrollment Form'!$CV99<>\"\"),\"Y\",\"N\")))","v":""},{"$f":"IF($B92=\"N\",\"\",IF($S92=\"-\",\"-\",IF(AND($S92=\"Y\",'Enrollment Form'!$CV99=\"No\"),\"-\",IF(AND($S92=\"Y\",'Enrollment Form'!$CV99=\"Yes\",'Enrollment Form'!$CW99<>\"\"),\"Y\",\"N\"))))","v":""},{"$f":"IF(OR('Enrollment Form'!$AY99=\"Yes\",'Enrollment Form'!$AY99=\"\"),\"-\",IF(OR(AND('Enrollment Form'!$AY99=\"No\",ISERROR(FIND(\"HMO\",VLOOKUP('Enrollment Form'!G99,'Enrollment Form'!H$11:J$1000,3,FALSE),1))=FALSE,COUNTA('Enrollment Form'!$AZ99:$BC99)=4),AND('Enrollment Form'!$AY99=\"No\",ISERROR(FIND(\"HMO\",VLOOKUP('Enrollment Form'!G99,'Enrollment Form'!H$11:J$1000,3,FALSE),1))=FALSE,COUNTA('Enrollment Form'!$BT99:$BW99)=4)),\"Y\",\"N\"))","v":"-"},{"$f":"IF($B92=\"N\",\"\",IF('Enrollment Form'!$B99=\"Subscriber\",\"-\",IF(COUNTA('Enrollment Form'!$BL99,'Enrollment Form'!$BN99)=2,\"Y\",\"N\")))","v":""},{"$f":"IF($B92=\"N\",\"\",IF(OR('Enrollment Form'!$AX99=\"\",'Enrollment Form'!$AX99=\"No\"),\"-\",IF(AND('Enrollment Form'!$AX99=\"Yes\",COUNTA('Enrollment Form'!$CR99)=1),\"Y\",\"N\")))","v":""},{"$f":"IF(OR('Enrollment Form'!$CR99=\"\",'Enrollment Form'!$CR99=\"No\"),\"-\",IF(COUNTA('Enrollment Form'!$CT99:$CU99)=2,\"Y\",\"N\"))","v":"-"},{"$f":"IF($B92=\"N\",\"\",IF(COUNTIF('Enrollment Form'!$DG99:$DP99,\"Other\")=COUNTA('Enrollment Form'!$DK99,'Enrollment Form'!$DH99,'Enrollment Form'!$DN99,'Enrollment Form'!$DQ99),\"Y\",\"N\"))","v":""},{"$f":"IF($B92=\"N\",\"\",IF(OR('Enrollment Form'!B99<>\"Subscriber\",'Enrollment Form'!C99=\"ROC\",COUNTIF('Enrollment Form'!AV99:AW99,\"Yes\")>=1),\"-\",IF(AND('Enrollment Form'!C99=\"Enroll\",COUNTIF('Enrollment Form'!AV99:AW99,\"No\")=2,'Enrollment Form'!AX99=\"\"),\"N\",\"Y\")))","v":""},{"$f":"IF(OR(B92=\"N\",'Enrollment Form'!B99<>\"Subscriber\",'Enrollment Form'!C99=\"ROC\",'Enrollment Form'!O99<>\"Multiple of Salary\"),\"-\",IF(COUNTA('Enrollment Form'!T99:U99)<2,\"N\",\"Y\"))","v":"-"},{"$f":"IF(B92=\"N\",\"\",IF(OR('Enrollment Form'!C99=\"ROC\",'Enrollment Form'!B99<>\"Subscriber\",'Enrollment Form'!O99=\"Waive\",'Enrollment Form'!O99=\"\"),\"-\",IF('Enrollment Form'!P99=\"\",\"N\",\"Y\")))","v":""},{"$f":"IF($B92=\"N\",\"\",IF(AND('Enrollment Form'!$C99=\"ROC\",'Enrollment Form'!$DR99<>\"\"),\"Y\",IF(AND('Enrollment Form'!$C99=\"ROC\",'Enrollment Form'!$DR99=\"\"),\"N\",IF(AND('Enrollment Form'!$C99=\"Enroll\",'Enrollment Form'!$B99=\"Subscriber\",'Enrollment Form'!$CX99=\"No\",'Enrollment Form'!$DR99=\"\"),\"N\",IF(AND('Enrollment Form'!$C99=\"Enroll\",'Enrollment Form'!$B99=\"Subscriber\",'Enrollment Form'!$CX99=\"Yes\"),\"-\",\"Y\")))))","v":""},{"$f":"IF($B92=\"N\",\"\",IF(AND('Enrollment Form'!$C99=\"ROC\",'Enrollment Form'!$DS99<>\"\"),\"Y\",IF(AND('Enrollment Form'!$C99=\"ROC\",'Enrollment Form'!$DS99=\"\"),\"N\",IF(AND('Enrollment Form'!$C99=\"Enroll\",'Enrollment Form'!$B99=\"Subscriber\",'Enrollment Form'!$CX99=\"No\",'Enrollment Form'!$DS99=\"\"),\"N\",IF(AND('Enrollment Form'!$C99=\"Enroll\",'Enrollment Form'!$B99=\"Subscriber\",'Enrollment Form'!$CX99=\"Yes\"),\"-\",\"Y\")))))","v":""},{"$f":"IF('Enrollment Form'!AH99=\"\",\"\",IF(ISERROR(SEARCH(\".\",'Enrollment Form'!AH99,SEARCH(\"@\",'Enrollment Form'!AH99))),\"N\",\"Y\"))","v":""},{"$f":"IF(OR($B92=\"N\",'Enrollment Form'!$G99=\"\"),\"\",IF('Enrollment Form'!$B99<>\"Subscriber\",\"-\",IF(COUNTIF('Enrollment Form'!$AV99:$AW99,\"Yes\")=2,\"N\",\"Y\")))","v":""},{"$f":"IF(OR('Enrollment Form'!$CJ99=\"\",'Enrollment Form'!$CJ99=\"No\"),\"-\",IF(AND('Enrollment Form'!$CJ99=\"Yes\",'Enrollment Form'!$CK99=\"\"),\"N\",\"Y\"))","v":"-"},{"$f":"IF(OR('Enrollment Form'!$CL99=\"\",'Enrollment Form'!$CL99=\"No\"),\"-\",IF(AND('Enrollment Form'!$CL99=\"Yes\",'Enrollment Form'!$CM99=\"\"),\"N\",\"Y\"))","v":"-"},{"$f":"IF(OR('Enrollment Form'!$CN99=\"\",'Enrollment Form'!$CN99=\"No\"),\"-\",IF(AND('Enrollment Form'!$CN99=\"Yes\",'Enrollment Form'!$CO99=\"\"),\"N\",\"Y\"))","v":"-"},{"$f":"IF(OR('Enrollment Form'!$CN99=\"\",'Enrollment Form'!$CN99=\"No\"),\"-\",IF(AND('Enrollment Form'!$CN99=\"Yes\",'Enrollment Form'!$CP99=\"\"),\"N\",\"Y\"))","v":"-"},{"$f":"IF('Enrollment Form'!B99<>\"Subscriber\",\"-\",IF(AND('Enrollment Form'!B99=\"Subscriber\",'Enrollment Form'!C99=\"Enroll\",'Enrollment Form'!AA99=\"\"),\"N\",\"Y\"))","v":"-"},{"$f":"IF(OR('Enrollment Form'!B99=\"Subscriber\",'Enrollment Form'!B99=\"\"),\"-\",IF('Enrollment Form'!BP99=\"\",\"N\",\"Y\"))","v":"-"},{"$f":"IF('Enrollment Form'!B99<>\"Subscriber\",\"-\",IF(AND('Enrollment Form'!B99=\"Subscriber\",'Enrollment Form'!G99=\"\"),\"N\",\"Y\"))","v":"-"},{"$f":"IF('Enrollment Form'!A99=\"\",\"\",IF('Enrollment Form'!B99=\"Subscriber\",\"-\",IF(AND('Enrollment Form'!B99<>\"Subscriber\",'Enrollment Form'!G99='Enrollment Form'!H99),\"N\",\"Y\")))","v":""},0]
[100,{"$f":"IF('Enrollment Form'!$A100<>\"\",\"Y\",\"N\")","v":"N"},{"$f":"IF(AND('Enrollment Form'!$B100=\"\",'Enrollment Form'!$C100<>\"\"),\"N\",IF($B93=\"N\",\"\",\"Y\"))","v":""},{"$f":"IF(OR($B93=\"N\",'Enrollment Form'!G100=\"\"),\"\",IF('Enrollment Form'!$B100<>\"Subscriber\",\"\",IF('Enrollment Form'!$G100='Enrollment Form'!$H100,\"Y\",\"N\")))","v":""},{"$f":"IF($B93=\"N\",\"\",IF(AND(COUNTIFS('Enrollment Form'!$H$11:$H$1000,'Enrollment Form'!$H100,'Enrollment Form'!$B$11:$B$1000,'Enrollment Form'!$B100)>1,'Enrollment Form'!$H100<>\"\"),\"N\",\"Y\"))","v":""},{"$f":"IF($B93=\"N\",\"\",IF(LEN('Enrollment Form'!$Y100)=0,\"\",IF(LEN('Enrollment Form'!$Y100)<>5,\"N\",\"Y\")))","v":""},{"$f":"IF($B93=\"N\",\"\",IF(LEN('Enrollment Form'!$AD100=0),\"\",IF(LEN('Enrollment Form'!$AD100)<>5,\"N\",\"Y\")))","v":""},{"$f":"IF($B93=\"N\",\"\",IF(LEN('Enrollment Form'!$BS100=0),\"\",IF(LEN('Enrollment Form'!$BS100)<>5,\"N\",\"Y\")))","v":""},{"$f":"IF($B93=\"N\",\"\",IF(LEN('Enrollment Form'!$AE100)=0,\"\",IF(LEN('Enrollment Form'!$AE100)<>10,\"N\",\"Y\")))","v":""},{"$f":"IF($B93=\"N\",\"\",IF(LEN('Enrollment Form'!$AF100)=0,\"\",IF(LEN('Enrollment Form'!$AF100)<>10,\"N\",\"Y\")))","v":""},{"$f":"IF('Enrollment Form'!$O100<>\"Graded\",\"-\",IF(AND('Enrollment Form'!$O100=\"Graded\",'Enrollment Form'!$AR100<>\"\"),\"Y\",\"N\"))","v":"-"},{"$f":"IF($B93=\"N\",\"\",IF(OR('Enrollment Form'!$B100<>\"Subscriber\",'Enrollment Form'!$C100=\"ROC\"),\"-\",IF(AND('Enrollment Form'!$B100=\"Subscriber\",'Enrollment Form'!$C100=\"Enroll\",'Enrollment Form'!$AJ100<>\"\"),\"Y\",\"N\")))","v":""},{"$f":"IF($B93=\"N\",\"\",IF(OR('Enrollment Form'!$B100<>\"Subscriber\",'Enrollment Form'!$C100=\"ROC\"),\"-\",IF(AND('Enrollment Form'!$B100=\"Subscriber\",'Enrollment Form'!$C100=\"Enroll\",'Enrollment Form'!$AK100<>\"\"),\"Y\",\"N\")))","v":""},{"$f":"IF($B93=\"N\",\"\",IF(OR('Enrollment Form'!$B100<>\"Subscriber\",'Enrollment Form'!$C100=\"ROC\"),\"-\",IF(AND('Enrollment Form'!$B100=\"Subscriber\",'Enrollment Form'!$C100=\"Enroll\",'Enrollment Form'!$AL100<>\"\"),\"Y\",\"N\")))","v":""},{"$f":"IF($B93=\"N\",\"\",IF(OR('Enrollment Form'!$B100<>\"Subscriber\",'Enrollment Form'!$C100=\"ROC\"),\"-\",IF(AND('Enrollment Form'!$B100=\"Subscriber\",'Enrollment Form'!$C100=\"Enroll\",'Enrollment Form'!$AP100<>\"\"),\"Y\",\"N\")))","v":""},{"$f":"IF($B93=\"N\",\"\",IF(OR('Enrollment Form'!$B100<>\"Subscriber\",'Enrollment Form'!$C100=\"ROC\"),\"-\",IF(AND('Enrollment Form'!$B100=\"Subscriber\",'Enrollment Form'!$C100=\"Enroll\",'Enrollment Form'!$AQ100<>\"\"),\"Y\",\"N\")))","v":""},{"$f":"IF($B93=\"N\",\"\",IF(OR('Enrollment Form'!$B100<>\"Subscriber\",'Enrollment Form'!$C100=\"ROC\"),\"-\",IF(AND('Enrollment Form'!$B100=\"Subscriber\",'Enrollment Form'!$C100=\"Enroll\",'Enrollment Form'!$AS100<>\"\"),\"Y\",\"N\")))","v":""},{"$f":"IF($B93=\"N\",\"\",IF($Q93=\"-\",\"-\",IF(AND($Q93=\"Y\",'Enrollment Form'!$AS100=\"No\"),\"-\",IF(AND($Q93=\"Y\",'Enrollment Form'!$AS100=\"Yes\",'Enrollment Form'!$AT100<>\"\"),\"Y\",\"N\"))))","v":""},{"$f":"IF($B93=\"N\",\"\",IF(OR('Enrollment Form'!$B100<>\"Subscriber\",'Enrollment Form'!$C100=\"ROC\"),\"-\",IF(AND('Enrollment Form'!$B100=\"Subscriber\",'Enrollment Form'!$C100=\"Enroll\",'Enrollment Form'!$CV100<>\"\"),\"Y\",\"N\")))","v":""},{"$f":"IF($B93=\"N\",\"\",IF($S93=\"-\",\"-\",IF(AND($S93=\"Y\",'Enrollment Form'!$CV100=\"No\"),\"-\",IF(AND($S93=\"Y\",'Enrollment Form'!$CV100=\"Yes\",'Enrollment Form'!$CW100<>\"\"),\"Y\",\"N\"))))","v":""},{"$f":"IF(OR('Enrollment Form'!$AY100=\"Yes\",'Enrollment Form'!$AY100=\"\"),\"-\",IF(OR(AND('Enrollment Form'!$AY100=\"No\",ISERROR(FIND(\"HMO\",VLOOKUP('Enrollment Form'!G100,'Enrollment Form'!H$11:J$1000,3,FALSE),1))=FALSE,COUNTA('Enrollment Form'!$AZ100:$BC100)=4),AND('Enrollment Form'!$AY100=\"No\",ISERROR(FIND(\"HMO\",VLOOKUP('Enrollment Form'!G100,'Enrollment Form'!H$11:J$1000,3,FALSE),1))=FALSE,COUNTA('Enrollment Form'!$BT100:$BW100)=4)),\"Y\",\"N\"))","v":"-"},{"$f":"IF($B93=\"N\",\"\",IF('Enrollment Form'!$B100=\"Subscriber\",\"-\",IF(COUNTA('Enrollment Form'!$BL100,'Enrollment Form'!$BN100)=2,\"Y\",\"N\")))","v":""},{"$f":"IF($B93=\"N\",\"\",IF(OR('Enrollment Form'!$AX100=\"\",'Enrollment Form'!$AX100=\"No\"),\"-\",IF(AND('Enrollment Form'!$AX100=\"Yes\",COUNTA('Enrollment Form'!$CR100)=1),\"Y\",\"N\")))","v":""},{"$f":"IF(OR('Enrollment Form'!$CR100=\"\",'Enrollment Form'!$CR100=\"No\"),\"-\",IF(COUNTA('Enrollment Form'!$CT100:$CU100)=2,\"Y\",\"N\"))","v":"-"},{"$f":"IF($B93=\"N\",\"\",IF(COUNTIF('Enrollment Form'!$DG100:$DP100,\"Other\")=COUNTA('Enrollment Form'!$DK100,'Enrollment Form'!$DH100,'Enrollment Form'!$DN100,'Enrollment Form'!$DQ100),\"Y\",\"N\"))","v":""},{"$f":"IF($B93=\"N\",\"\",IF(OR('Enrollment Form'!B100<>\"Subscriber\",'Enrollment Form'!C100=\"ROC\",COUNTIF('Enrollment Form'!AV100:AW100,\"Yes\")>=1),\"-\",IF(AND('Enrollment Form'!C100=\"Enroll\",COUNTIF('Enrollment Form'!AV100:AW100,\"No\")=2,'Enrollment Form'!AX100=\"\"),\"N\",\"Y\")))","v":""},{"$f":"IF(OR(B93=\"N\",'Enrollment Form'!B100<>\"Subscriber\",'Enrollment Form'!C100=\"ROC\",'Enrollment Form'!O100<>\"Multiple of Salary\"),\"-\",IF(COUNTA('Enrollment Form'!T100:U100)<2,\"N\",\"Y\"))","v":"-"},{"$f":"IF(B93=\"N\",\"\",IF(OR('Enrollment Form'!C100=\"ROC\",'Enrollment Form'!B100<>\"Subscriber\",'Enrollment Form'!O100=\"Waive\",'Enrollment Form'!O100=\"\"),\"-\",IF('Enrollment Form'!P100=\"\",\"N\",\"Y\")))","v":""},{"$f":"IF($B93=\"N\",\"\",IF(AND('Enrollment Form'!$C100=\"ROC\",'Enrollment Form'!$DR100<>\"\"),\"Y\",IF(AND('Enrollment Form'!$C100=\"ROC\",'Enrollment Form'!$DR100=\"\"),\"N\",IF(AND('Enrollment Form'!$C100=\"Enroll\",'Enrollment Form'!$B100=\"Subscriber\",'Enrollment Form'!$CX100=\"No\",'Enrollment Form'!$DR100=\"\"),\"N\",IF(AND('Enrollment Form'!$C100=\"Enroll\",'Enrollment Form'!$B100=\"Subscriber\",'Enrollment Form'!$CX100=\"Yes\"),\"-\",\"Y\")))))","v":""},{"$f":"IF($B93=\"N\",\"\",IF(AND('Enrollment Form'!$C100=\"ROC\",'Enrollment Form'!$DS100<>\"\"),\"Y\",IF(AND('Enrollment Form'!$C100=\"ROC\",'Enrollment Form'!$DS100=\"\"),\"N\",IF(AND('Enrollment Form'!$C100=\"Enroll\",'Enrollment Form'!$B100=\"Subscriber\",'Enrollment Form'!$CX100=\"No\",'Enrollment Form'!$DS100=\"\"),\"N\",IF(AND('Enrollment Form'!$C100=\"Enroll\",'Enrollment Form'!$B100=\"Subscriber\",'Enrollment Form'!$CX100=\"Yes\"),\"-\",\"Y\")))))","v":""},{"$f":"IF('Enrollment Form'!AH100=\"\",\"\",IF(ISERROR(SEARCH(\".\",'Enrollment Form'!AH100,SEARCH(\"@\",'Enrollment Form'!AH100))),\"N\",\"Y\"))","v":""},{"$f":"IF(OR($B93=\"N\",'Enrollment Form'!$G100=\"\"),\"\",IF('Enrollment Form'!$B100<>\"Subscriber\",\"-\",IF(COUNTIF('Enrollment Form'!$AV100:$AW100,\"Yes\")=2,\"N\",\"Y\")))","v":""},{"$f":"IF(OR('Enrollment Form'!$CJ100=\"\",'Enrollment Form'!$CJ100=\"No\"),\"-\",IF(AND('Enrollment Form'!$CJ100=\"Yes\",'Enrollment Form'!$CK100=\"\"),\"N\",\"Y\"))","v":"-"},{"$f":"IF(OR('Enrollment Form'!$CL100=\"\",'Enrollment Form'!$CL100=\"No\"),\"-\",IF(AND('Enrollment Form'!$CL100=\"Yes\",'Enrollment Form'!$CM100=\"\"),\"N\",\"Y\"))","v":"-"},{"$f":"IF(OR('Enrollment Form'!$CN100=\"\",'Enrollment Form'!$CN100=\"No\"),\"-\",IF(AND('Enrollment Form'!$CN100=\"Yes\",'Enrollment Form'!$CO100=\"\"),\"N\",\"Y\"))","v":"-"},{"$f":"IF(OR('Enrollment Form'!$CN100=\"\",'Enrollment Form'!$CN100=\"No\"),\"-\",IF(AND('Enrollment Form'!$CN100=\"Yes\",'Enrollment Form'!$CP100=\"\"),\"N\",\"Y\"))","v":"-"},{"$f":"IF('Enrollment Form'!B100<>\"Subscriber\",\"-\",IF(AND('Enrollment Form'!B100=\"Subscriber\",'Enrollment Form'!C100=\"Enroll\",'Enrollment Form'!AA100=\"\"),\"N\",\"Y\"))","v":"-"},{"$f":"IF(OR('Enrollment Form'!B100=\"Subscriber\",'Enrollment Form'!B100=\"\"),\"-\",IF('Enrollment Form'!BP100=\"\",\"N\",\"Y\"))","v":"-"},{"$f":"IF('Enrollment Form'!B100<>\"Subscriber\",\"-\",IF(AND('Enrollment Form'!B100=\"Subscriber\",'Enrollment Form'!G100=\"\"),\"N\",\"Y\"))","v":"-"},{"$f":"IF('Enrollment Form'!A100=\"\",\"\",IF('Enrollment Form'!B100=\"Subscriber\",\"-\",IF(AND('Enrollment Form'!B100<>\"Subscriber\",'Enrollment Form'!G100='Enrollment Form'!H100),\"N\",\"Y\")))","v":""},0]
[101,{"$f":"IF('Enrollment Form'!$A101<>\"\",\"Y\",\"N\")","v":"N"},{"$f":"IF(AND('Enrollment Form'!$B101=\"\",'Enrollment Form'!$C101<>\"\"),\"N\",IF($B94=\"N\",\"\",\"Y\"))","v":""},{"$f":"IF(OR($B94=\"N\",'Enrollment Form'!G101=\"\"),\"\",IF('Enrollment Form'!$B101<>\"Subscriber\",\"\",IF('Enrollment Form'!$G101='Enrollment Form'!$H101,\"Y\",\"N\")))","v":""},{"$f":"IF($B94=\"N\",\"\",IF(AND(COUNTIFS('Enrollment Form'!$H$11:$H$1000,'Enrollment Form'!$H101,'Enrollment Form'!$B$11:$B$1000,'Enrollment Form'!$B101)>1,'Enrollment Form'!$H101<>\"\"),\"N\",\"Y\"))","v":""},{"$f":"IF($B94=\"N\",\"\",IF(LEN('Enrollment Form'!$Y101)=0,\"\",IF(LEN('Enrollment Form'!$Y101)<>5,\"N\",\"Y\")))","v":""},{"$f":"IF($B94=\"N\",\"\",IF(LEN('Enrollment Form'!$AD101=0),\"\",IF(LEN('Enrollment Form'!$AD101)<>5,\"N\",\"Y\")))","v":""},{"$f":"IF($B94=\"N\",\"\",IF(LEN('Enrollment Form'!$BS101=0),\"\",IF(LEN('Enrollment Form'!$BS101)<>5,\"N\",\"Y\")))","v":""},{"$f":"IF($B94=\"N\",\"\",IF(LEN('Enrollment Form'!$AE101)=0,\"\",IF(LEN('Enrollment Form'!$AE101)<>10,\"N\",\"Y\")))","v":""},{"$f":"IF($B94=\"N\",\"\",IF(LEN('Enrollment Form'!$AF101)=0,\"\",IF(LEN('Enrollment Form'!$AF101)<>10,\"N\",\"Y\")))","v":""},{"$f":"IF('Enrollment Form'!$O101<>\"Graded\",\"-\",IF(AND('Enrollment Form'!$O101=\"Graded\",'Enrollment Form'!$AR101<>\"\"),\"Y\",\"N\"))","v":"-"},{"$f":"IF($B94=\"N\",\"\",IF(OR('Enrollment Form'!$B101<>\"Subscriber\",'Enrollment Form'!$C101=\"ROC\"),\"-\",IF(AND('Enrollment Form'!$B101=\"Subscriber\",'Enrollment Form'!$C101=\"Enroll\",'Enrollment Form'!$AJ101<>\"\"),\"Y\",\"N\")))","v":""},{"$f":"IF($B94=\"N\",\"\",IF(OR('Enrollment Form'!$B101<>\"Subscriber\",'Enrollment Form'!$C101=\"ROC\"),\"-\",IF(AND('Enrollment Form'!$B101=\"Subscriber\",'Enrollment Form'!$C101=\"Enroll\",'Enrollment Form'!$AK101<>\"\"),\"Y\",\"N\")))","v":""},{"$f":"IF($B94=\"N\",\"\",IF(OR('Enrollment Form'!$B101<>\"Subscriber\",'Enrollment Form'!$C101=\"ROC\"),\"-\",IF(AND('Enrollment Form'!$B101=\"Subscriber\",'Enrollment Form'!$C101=\"Enroll\",'Enrollment Form'!$AL101<>\"\"),\"Y\",\"N\")))","v":""},{"$f":"IF($B94=\"N\",\"\",IF(OR('Enrollment Form'!$B101<>\"Subscriber\",'Enrollment Form'!$C101=\"ROC\"),\"-\",IF(AND('Enrollment Form'!$B101=\"Subscriber\",'Enrollment Form'!$C101=\"Enroll\",'Enrollment Form'!$AP101<>\"\"),\"Y\",\"N\")))","v":""},{"$f":"IF($B94=\"N\",\"\",IF(OR('Enrollment Form'!$B101<>\"Subscriber\",'Enrollment Form'!$C101=\"ROC\"),\"-\",IF(AND('Enrollment Form'!$B101=\"Subscriber\",'Enrollment Form'!$C101=\"Enroll\",'Enrollment Form'!$AQ101<>\"\"),\"Y\",\"N\")))","v":""},{"$f":"IF($B94=\"N\",\"\",IF(OR('Enrollment Form'!$B101<>\"Subscriber\",'Enrollment Form'!$C101=\"ROC\"),\"-\",IF(AND('Enrollment Form'!$B101=\"Subscriber\",'Enrollment Form'!$C101=\"Enroll\",'Enrollment Form'!$AS101<>\"\"),\"Y\",\"N\")))","v":""},{"$f":"IF($B94=\"N\",\"\",IF($Q94=\"-\",\"-\",IF(AND($Q94=\"Y\",'Enrollment Form'!$AS101=\"No\"),\"-\",IF(AND($Q94=\"Y\",'Enrollment Form'!$AS101=\"Yes\",'Enrollment Form'!$AT101<>\"\"),\"Y\",\"N\"))))","v":""},{"$f":"IF($B94=\"N\",\"\",IF(OR('Enrollment Form'!$B101<>\"Subscriber\",'Enrollment Form'!$C101=\"ROC\"),\"-\",IF(AND('Enrollment Form'!$B101=\"Subscriber\",'Enrollment Form'!$C101=\"Enroll\",'Enrollment Form'!$CV101<>\"\"),\"Y\",\"N\")))","v":""},{"$f":"IF($B94=\"N\",\"\",IF($S94=\"-\",\"-\",IF(AND($S94=\"Y\",'Enrollment Form'!$CV101=\"No\"),\"-\",IF(AND($S94=\"Y\",'Enrollment Form'!$CV101=\"Yes\",'Enrollment Form'!$CW101<>\"\"),\"Y\",\"N\"))))","v":""},{"$f":"IF(OR('Enrollment Form'!$AY101=\"Yes\",'Enrollment Form'!$AY101=\"\"),\"-\",IF(OR(AND('Enrollment Form'!$AY101=\"No\",ISERROR(FIND(\"HMO\",VLOOKUP('Enrollment Form'!G101,'Enrollment Form'!H$11:J$1000,3,FALSE),1))=FALSE,COUNTA('Enrollment Form'!$AZ101:$BC101)=4),AND('Enrollment Form'!$AY101=\"No\",ISERROR(FIND(\"HMO\",VLOOKUP('Enrollment Form'!G101,'Enrollment Form'!H$11:J$1000,3,FALSE),1))=FALSE,COUNTA('Enrollment Form'!$BT101:$BW101)=4)),\"Y\",\"N\"))","v":"-"},{"$f":"IF($B94=\"N\",\"\",IF('Enrollment Form'!$B101=\"Subscriber\",\"-\",IF(COUNTA('Enrollment Form'!$BL101,'Enrollment Form'!$BN101)=2,\"Y\",\"N\")))","v":""},{"$f":"IF($B94=\"N\",\"\",IF(OR('Enrollment Form'!$AX101=\"\",'Enrollment Form'!$AX101=\"No\"),\"-\",IF(AND('Enrollment Form'!$AX101=\"Yes\",COUNTA('Enrollment Form'!$CR101)=1),\"Y\",\"N\")))","v":""},{"$f":"IF(OR('Enrollment Form'!$CR101=\"\",'Enrollment Form'!$CR101=\"No\"),\"-\",IF(COUNTA('Enrollment Form'!$CT101:$CU101)=2,\"Y\",\"N\"))","v":"-"},{"$f":"IF($B94=\"N\",\"\",IF(COUNTIF('Enrollment Form'!$DG101:$DP101,\"Other\")=COUNTA('Enrollment Form'!$DK101,'Enrollment Form'!$DH101,'Enrollment Form'!$DN101,'Enrollment Form'!$DQ101),\"Y\",\"N\"))","v":""},{"$f":"IF($B94=\"N\",\"\",IF(OR('Enrollment Form'!B101<>\"Subscriber\",'Enrollment Form'!C101=\"ROC\",COUNTIF('Enrollment Form'!AV101:AW101,\"Yes\")>=1),\"-\",IF(AND('Enrollment Form'!C101=\"Enroll\",COUNTIF('Enrollment Form'!AV101:AW101,\"No\")=2,'Enrollment Form'!AX101=\"\"),\"N\",\"Y\")))","v":""},{"$f":"IF(OR(B94=\"N\",'Enrollment Form'!B101<>\"Subscriber\",'Enrollment Form'!C101=\"ROC\",'Enrollment Form'!O101<>\"Multiple of Salary\"),\"-\",IF(COUNTA('Enrollment Form'!T101:U101)<2,\"N\",\"Y\"))","v":"-"},{"$f":"IF(B94=\"N\",\"\",IF(OR('Enrollment Form'!C101=\"ROC\",'Enrollment Form'!B101<>\"Subscriber\",'Enrollment Form'!O101=\"Waive\",'Enrollment Form'!O101=\"\"),\"-\",IF('Enrollment Form'!P101=\"\",\"N\",\"Y\")))","v":""},{"$f":"IF($B94=\"N\",\"\",IF(AND('Enrollment Form'!$C101=\"ROC\",'Enrollment Form'!$DR101<>\"\"),\"Y\",IF(AND('Enrollment Form'!$C101=\"ROC\",'Enrollment Form'!$DR101=\"\"),\"N\",IF(AND('Enrollment Form'!$C101=\"Enroll\",'Enrollment Form'!$B101=\"Subscriber\",'Enrollment Form'!$CX101=\"No\",'Enrollment Form'!$DR101=\"\"),\"N\",IF(AND('Enrollment Form'!$C101=\"Enroll\",'Enrollment Form'!$B101=\"Subscriber\",'Enrollment Form'!$CX101=\"Yes\"),\"-\",\"Y\")))))","v":""},{"$f":"IF($B94=\"N\",\"\",IF(AND('Enrollment Form'!$C101=\"ROC\",'Enrollment Form'!$DS101<>\"\"),\"Y\",IF(AND('Enrollment Form'!$C101=\"ROC\",'Enrollment Form'!$DS101=\"\"),\"N\",IF(AND('Enrollment Form'!$C101=\"Enroll\",'Enrollment Form'!$B101=\"Subscriber\",'Enrollment Form'!$CX101=\"No\",'Enrollment Form'!$DS101=\"\"),\"N\",IF(AND('Enrollment Form'!$C101=\"Enroll\",'Enrollment Form'!$B101=\"Subscriber\",'Enrollment Form'!$CX101=\"Yes\"),\"-\",\"Y\")))))","v":""},{"$f":"IF('Enrollment Form'!AH101=\"\",\"\",IF(ISERROR(SEARCH(\".\",'Enrollment Form'!AH101,SEARCH(\"@\",'Enrollment Form'!AH101))),\"N\",\"Y\"))","v":""},{"$f":"IF(OR($B94=\"N\",'Enrollment Form'!$G101=\"\"),\"\",IF('Enrollment Form'!$B101<>\"Subscriber\",\"-\",IF(COUNTIF('Enrollment Form'!$AV101:$AW101,\"Yes\")=2,\"N\",\"Y\")))","v":""},{"$f":"IF(OR('Enrollment Form'!$CJ101=\"\",'Enrollment Form'!$CJ101=\"No\"),\"-\",IF(AND('Enrollment Form'!$CJ101=\"Yes\",'Enrollment Form'!$CK101=\"\"),\"N\",\"Y\"))","v":"-"},{"$f":"IF(OR('Enrollment Form'!$CL101=\"\",'Enrollment Form'!$CL101=\"No\"),\"-\",IF(AND('Enrollment Form'!$CL101=\"Yes\",'Enrollment Form'!$CM101=\"\"),\"N\",\"Y\"))","v":"-"},{"$f":"IF(OR('Enrollment Form'!$CN101=\"\",'Enrollment Form'!$CN101=\"No\"),\"-\",IF(AND('Enrollment Form'!$CN101=\"Yes\",'Enrollment Form'!$CO101=\"\"),\"N\",\"Y\"))","v":"-"},{"$f":"IF(OR('Enrollment Form'!$CN101=\"\",'Enrollment Form'!$CN101=\"No\"),\"-\",IF(AND('Enrollment Form'!$CN101=\"Yes\",'Enrollment Form'!$CP101=\"\"),\"N\",\"Y\"))","v":"-"},{"$f":"IF('Enrollment Form'!B101<>\"Subscriber\",\"-\",IF(AND('Enrollment Form'!B101=\"Subscriber\",'Enrollment Form'!C101=\"Enroll\",'Enrollment Form'!AA101=\"\"),\"N\",\"Y\"))","v":"-"},{"$f":"IF(OR('Enrollment Form'!B101=\"Subscriber\",'Enrollment Form'!B101=\"\"),\"-\",IF('Enrollment Form'!BP101=\"\",\"N\",\"Y\"))","v":"-"},{"$f":"IF('Enrollment Form'!B101<>\"Subscriber\",\"-\",IF(AND('Enrollment Form'!B101=\"Subscriber\",'Enrollment Form'!G101=\"\"),\"N\",\"Y\"))","v":"-"},{"$f":"IF('Enrollment Form'!A101=\"\",\"\",IF('Enrollment Form'!B101=\"Subscriber\",\"-\",IF(AND('Enrollment Form'!B101<>\"Subscriber\",'Enrollment Form'!G101='Enrollment Form'!H101),\"N\",\"Y\")))","v":""},0]
[102,{"$f":"IF('Enrollment Form'!$A102<>\"\",\"Y\",\"N\")","v":"N"},{"$f":"IF(AND('Enrollment Form'!$B102=\"\",'Enrollment Form'!$C102<>\"\"),\"N\",IF($B95=\"N\",\"\",\"Y\"))","v":""},{"$f":"IF(OR($B95=\"N\",'Enrollment Form'!G102=\"\"),\"\",IF('Enrollment Form'!$B102<>\"Subscriber\",\"\",IF('Enrollment Form'!$G102='Enrollment Form'!$H102,\"Y\",\"N\")))","v":""},{"$f":"IF($B95=\"N\",\"\",IF(AND(COUNTIFS('Enrollment Form'!$H$11:$H$1000,'Enrollment Form'!$H102,'Enrollment Form'!$B$11:$B$1000,'Enrollment Form'!$B102)>1,'Enrollment Form'!$H102<>\"\"),\"N\",\"Y\"))","v":""},{"$f":"IF($B95=\"N\",\"\",IF(LEN('Enrollment Form'!$Y102)=0,\"\",IF(LEN('Enrollment Form'!$Y102)<>5,\"N\",\"Y\")))","v":""},{"$f":"IF($B95=\"N\",\"\",IF(LEN('Enrollment Form'!$AD102=0),\"\",IF(LEN('Enrollment Form'!$AD102)<>5,\"N\",\"Y\")))","v":""},{"$f":"IF($B95=\"N\",\"\",IF(LEN('Enrollment Form'!$BS102=0),\"\",IF(LEN('Enrollment Form'!$BS102)<>5,\"N\",\"Y\")))","v":""},{"$f":"IF($B95=\"N\",\"\",IF(LEN('Enrollment Form'!$AE102)=0,\"\",IF(LEN('Enrollment Form'!$AE102)<>10,\"N\",\"Y\")))","v":""},{"$f":"IF($B95=\"N\",\"\",IF(LEN('Enrollment Form'!$AF102)=0,\"\",IF(LEN('Enrollment Form'!$AF102)<>10,\"N\",\"Y\")))","v":""},{"$f":"IF('Enrollment Form'!$O102<>\"Graded\",\"-\",IF(AND('Enrollment Form'!$O102=\"Graded\",'Enrollment Form'!$AR102<>\"\"),\"Y\",\"N\"))","v":"-"},{"$f":"IF($B95=\"N\",\"\",IF(OR('Enrollment Form'!$B102<>\"Subscriber\",'Enrollment Form'!$C102=\"ROC\"),\"-\",IF(AND('Enrollment Form'!$B102=\"Subscriber\",'Enrollment Form'!$C102=\"Enroll\",'Enrollment Form'!$AJ102<>\"\"),\"Y\",\"N\")))","v":""},{"$f":"IF($B95=\"N\",\"\",IF(OR('Enrollment Form'!$B102<>\"Subscriber\",'Enrollment Form'!$C102=\"ROC\"),\"-\",IF(AND('Enrollment Form'!$B102=\"Subscriber\",'Enrollment Form'!$C102=\"Enroll\",'Enrollment Form'!$AK102<>\"\"),\"Y\",\"N\")))","v":""},{"$f":"IF($B95=\"N\",\"\",IF(OR('Enrollment Form'!$B102<>\"Subscriber\",'Enrollment Form'!$C102=\"ROC\"),\"-\",IF(AND('Enrollment Form'!$B102=\"Subscriber\",'Enrollment Form'!$C102=\"Enroll\",'Enrollment Form'!$AL102<>\"\"),\"Y\",\"N\")))","v":""},{"$f":"IF($B95=\"N\",\"\",IF(OR('Enrollment Form'!$B102<>\"Subscriber\",'Enrollment Form'!$C102=\"ROC\"),\"-\",IF(AND('Enrollment Form'!$B102=\"Subscriber\",'Enrollment Form'!$C102=\"Enroll\",'Enrollment Form'!$AP102<>\"\"),\"Y\",\"N\")))","v":""},{"$f":"IF($B95=\"N\",\"\",IF(OR('Enrollment Form'!$B102<>\"Subscriber\",'Enrollment Form'!$C102=\"ROC\"),\"-\",IF(AND('Enrollment Form'!$B102=\"Subscriber\",'Enrollment Form'!$C102=\"Enroll\",'Enrollment Form'!$AQ102<>\"\"),\"Y\",\"N\")))","v":""},{"$f":"IF($B95=\"N\",\"\",IF(OR('Enrollment Form'!$B102<>\"Subscriber\",'Enrollment Form'!$C102=\"ROC\"),\"-\",IF(AND('Enrollment Form'!$B102=\"Subscriber\",'Enrollment Form'!$C102=\"Enroll\",'Enrollment Form'!$AS102<>\"\"),\"Y\",\"N\")))","v":""},{"$f":"IF($B95=\"N\",\"\",IF($Q95=\"-\",\"-\",IF(AND($Q95=\"Y\",'Enrollment Form'!$AS102=\"No\"),\"-\",IF(AND($Q95=\"Y\",'Enrollment Form'!$AS102=\"Yes\",'Enrollment Form'!$AT102<>\"\"),\"Y\",\"N\"))))","v":""},{"$f":"IF($B95=\"N\",\"\",IF(OR('Enrollment Form'!$B102<>\"Subscriber\",'Enrollment Form'!$C102=\"ROC\"),\"-\",IF(AND('Enrollment Form'!$B102=\"Subscriber\",'Enrollment Form'!$C102=\"Enroll\",'Enrollment Form'!$CV102<>\"\"),\"Y\",\"N\")))","v":""},{"$f":"IF($B95=\"N\",\"\",IF($S95=\"-\",\"-\",IF(AND($S95=\"Y\",'Enrollment Form'!$CV102=\"No\"),\"-\",IF(AND($S95=\"Y\",'Enrollment Form'!$CV102=\"Yes\",'Enrollment Form'!$CW102<>\"\"),\"Y\",\"N\"))))","v":""},{"$f":"IF(OR('Enrollment Form'!$AY102=\"Yes\",'Enrollment Form'!$AY102=\"\"),\"-\",IF(OR(AND('Enrollment Form'!$AY102=\"No\",ISERROR(FIND(\"HMO\",VLOOKUP('Enrollment Form'!G102,'Enrollment Form'!H$11:J$1000,3,FALSE),1))=FALSE,COUNTA('Enrollment Form'!$AZ102:$BC102)=4),AND('Enrollment Form'!$AY102=\"No\",ISERROR(FIND(\"HMO\",VLOOKUP('Enrollment Form'!G102,'Enrollment Form'!H$11:J$1000,3,FALSE),1))=FALSE,COUNTA('Enrollment Form'!$BT102:$BW102)=4)),\"Y\",\"N\"))","v":"-"},{"$f":"IF($B95=\"N\",\"\",IF('Enrollment Form'!$B102=\"Subscriber\",\"-\",IF(COUNTA('Enrollment Form'!$BL102,'Enrollment Form'!$BN102)=2,\"Y\",\"N\")))","v":""},{"$f":"IF($B95=\"N\",\"\",IF(OR('Enrollment Form'!$AX102=\"\",'Enrollment Form'!$AX102=\"No\"),\"-\",IF(AND('Enrollment Form'!$AX102=\"Yes\",COUNTA('Enrollment Form'!$CR102)=1),\"Y\",\"N\")))","v":""},{"$f":"IF(OR('Enrollment Form'!$CR102=\"\",'Enrollment Form'!$CR102=\"No\"),\"-\",IF(COUNTA('Enrollment Form'!$CT102:$CU102)=2,\"Y\",\"N\"))","v":"-"},{"$f":"IF($B95=\"N\",\"\",IF(COUNTIF('Enrollment Form'!$DG102:$DP102,\"Other\")=COUNTA('Enrollment Form'!$DK102,'Enrollment Form'!$DH102,'Enrollment Form'!$DN102,'Enrollment Form'!$DQ102),\"Y\",\"N\"))","v":""},{"$f":"IF($B95=\"N\",\"\",IF(OR('Enrollment Form'!B102<>\"Subscriber\",'Enrollment Form'!C102=\"ROC\",COUNTIF('Enrollment Form'!AV102:AW102,\"Yes\")>=1),\"-\",IF(AND('Enrollment Form'!C102=\"Enroll\",COUNTIF('Enrollment Form'!AV102:AW102,\"No\")=2,'Enrollment Form'!AX102=\"\"),\"N\",\"Y\")))","v":""},{"$f":"IF(OR(B95=\"N\",'Enrollment Form'!B102<>\"Subscriber\",'Enrollment Form'!C102=\"ROC\",'Enrollment Form'!O102<>\"Multiple of Salary\"),\"-\",IF(COUNTA('Enrollment Form'!T102:U102)<2,\"N\",\"Y\"))","v":"-"},{"$f":"IF(B95=\"N\",\"\",IF(OR('Enrollment Form'!C102=\"ROC\",'Enrollment Form'!B102<>\"Subscriber\",'Enrollment Form'!O102=\"Waive\",'Enrollment Form'!O102=\"\"),\"-\",IF('Enrollment Form'!P102=\"\",\"N\",\"Y\")))","v":""},{"$f":"IF($B95=\"N\",\"\",IF(AND('Enrollment Form'!$C102=\"ROC\",'Enrollment Form'!$DR102<>\"\"),\"Y\",IF(AND('Enrollment Form'!$C102=\"ROC\",'Enrollment Form'!$DR102=\"\"),\"N\",IF(AND('Enrollment Form'!$C102=\"Enroll\",'Enrollment Form'!$B102=\"Subscriber\",'Enrollment Form'!$CX102=\"No\",'Enrollment Form'!$DR102=\"\"),\"N\",IF(AND('Enrollment Form'!$C102=\"Enroll\",'Enrollment Form'!$B102=\"Subscriber\",'Enrollment Form'!$CX102=\"Yes\"),\"-\",\"Y\")))))","v":""},{"$f":"IF($B95=\"N\",\"\",IF(AND('Enrollment Form'!$C102=\"ROC\",'Enrollment Form'!$DS102<>\"\"),\"Y\",IF(AND('Enrollment Form'!$C102=\"ROC\",'Enrollment Form'!$DS102=\"\"),\"N\",IF(AND('Enrollment Form'!$C102=\"Enroll\",'Enrollment Form'!$B102=\"Subscriber\",'Enrollment Form'!$CX102=\"No\",'Enrollment Form'!$DS102=\"\"),\"N\",IF(AND('Enrollment Form'!$C102=\"Enroll\",'Enrollment Form'!$B102=\"Subscriber\",'Enrollment Form'!$CX102=\"Yes\"),\"-\",\"Y\")))))","v":""},{"$f":"IF('Enrollment Form'!AH102=\"\",\"\",IF(ISERROR(SEARCH(\".\",'Enrollment Form'!AH102,SEARCH(\"@\",'Enrollment Form'!AH102))),\"N\",\"Y\"))","v":""},{"$f":"IF(OR($B95=\"N\",'Enrollment Form'!$G102=\"\"),\"\",IF('Enrollment Form'!$B102<>\"Subscriber\",\"-\",IF(COUNTIF('Enrollment Form'!$AV102:$AW102,\"Yes\")=2,\"N\",\"Y\")))","v":""},{"$f":"IF(OR('Enrollment Form'!$CJ102=\"\",'Enrollment Form'!$CJ102=\"No\"),\"-\",IF(AND('Enrollment Form'!$CJ102=\"Yes\",'Enrollment Form'!$CK102=\"\"),\"N\",\"Y\"))","v":"-"},{"$f":"IF(OR('Enrollment Form'!$CL102=\"\",'Enrollment Form'!$CL102=\"No\"),\"-\",IF(AND('Enrollment Form'!$CL102=\"Yes\",'Enrollment Form'!$CM102=\"\"),\"N\",\"Y\"))","v":"-"},{"$f":"IF(OR('Enrollment Form'!$CN102=\"\",'Enrollment Form'!$CN102=\"No\"),\"-\",IF(AND('Enrollment Form'!$CN102=\"Yes\",'Enrollment Form'!$CO102=\"\"),\"N\",\"Y\"))","v":"-"},{"$f":"IF(OR('Enrollment Form'!$CN102=\"\",'Enrollment Form'!$CN102=\"No\"),\"-\",IF(AND('Enrollment Form'!$CN102=\"Yes\",'Enrollment Form'!$CP102=\"\"),\"N\",\"Y\"))","v":"-"},{"$f":"IF('Enrollment Form'!B102<>\"Subscriber\",\"-\",IF(AND('Enrollment Form'!B102=\"Subscriber\",'Enrollment Form'!C102=\"Enroll\",'Enrollment Form'!AA102=\"\"),\"N\",\"Y\"))","v":"-"},{"$f":"IF(OR('Enrollment Form'!B102=\"Subscriber\",'Enrollment Form'!B102=\"\"),\"-\",IF('Enrollment Form'!BP102=\"\",\"N\",\"Y\"))","v":"-"},{"$f":"IF('Enrollment Form'!B102<>\"Subscriber\",\"-\",IF(AND('Enrollment Form'!B102=\"Subscriber\",'Enrollment Form'!G102=\"\"),\"N\",\"Y\"))","v":"-"},{"$f":"IF('Enrollment Form'!A102=\"\",\"\",IF('Enrollment Form'!B102=\"Subscriber\",\"-\",IF(AND('Enrollment Form'!B102<>\"Subscriber\",'Enrollment Form'!G102='Enrollment Form'!H102),\"N\",\"Y\")))","v":""},0]
[103,{"$f":"IF('Enrollment Form'!$A103<>\"\",\"Y\",\"N\")","v":"N"},{"$f":"IF(AND('Enrollment Form'!$B103=\"\",'Enrollment Form'!$C103<>\"\"),\"N\",IF($B96=\"N\",\"\",\"Y\"))","v":""},{"$f":"IF(OR($B96=\"N\",'Enrollment Form'!G103=\"\"),\"\",IF('Enrollment Form'!$B103<>\"Subscriber\",\"\",IF('Enrollment Form'!$G103='Enrollment Form'!$H103,\"Y\",\"N\")))","v":""},{"$f":"IF($B96=\"N\",\"\",IF(AND(COUNTIFS('Enrollment Form'!$H$11:$H$1000,'Enrollment Form'!$H103,'Enrollment Form'!$B$11:$B$1000,'Enrollment Form'!$B103)>1,'Enrollment Form'!$H103<>\"\"),\"N\",\"Y\"))","v":""},{"$f":"IF($B96=\"N\",\"\",IF(LEN('Enrollment Form'!$Y103)=0,\"\",IF(LEN('Enrollment Form'!$Y103)<>5,\"N\",\"Y\")))","v":""},{"$f":"IF($B96=\"N\",\"\",IF(LEN('Enrollment Form'!$AD103=0),\"\",IF(LEN('Enrollment Form'!$AD103)<>5,\"N\",\"Y\")))","v":""},{"$f":"IF($B96=\"N\",\"\",IF(LEN('Enrollment Form'!$BS103=0),\"\",IF(LEN('Enrollment Form'!$BS103)<>5,\"N\",\"Y\")))","v":""},{"$f":"IF($B96=\"N\",\"\",IF(LEN('Enrollment Form'!$AE103)=0,\"\",IF(LEN('Enrollment Form'!$AE103)<>10,\"N\",\"Y\")))","v":""},{"$f":"IF($B96=\"N\",\"\",IF(LEN('Enrollment Form'!$AF103)=0,\"\",IF(LEN('Enrollment Form'!$AF103)<>10,\"N\",\"Y\")))","v":""},{"$f":"IF('Enrollment Form'!$O103<>\"Graded\",\"-\",IF(AND('Enrollment Form'!$O103=\"Graded\",'Enrollment Form'!$AR103<>\"\"),\"Y\",\"N\"))","v":"-"},{"$f":"IF($B96=\"N\",\"\",IF(OR('Enrollment Form'!$B103<>\"Subscriber\",'Enrollment Form'!$C103=\"ROC\"),\"-\",IF(AND('Enrollment Form'!$B103=\"Subscriber\",'Enrollment Form'!$C103=\"Enroll\",'Enrollment Form'!$AJ103<>\"\"),\"Y\",\"N\")))","v":""},{"$f":"IF($B96=\"N\",\"\",IF(OR('Enrollment Form'!$B103<>\"Subscriber\",'Enrollment Form'!$C103=\"ROC\"),\"-\",IF(AND('Enrollment Form'!$B103=\"Subscriber\",'Enrollment Form'!$C103=\"Enroll\",'Enrollment Form'!$AK103<>\"\"),\"Y\",\"N\")))","v":""},{"$f":"IF($B96=\"N\",\"\",IF(OR('Enrollment Form'!$B103<>\"Subscriber\",'Enrollment Form'!$C103=\"ROC\"),\"-\",IF(AND('Enrollment Form'!$B103=\"Subscriber\",'Enrollment Form'!$C103=\"Enroll\",'Enrollment Form'!$AL103<>\"\"),\"Y\",\"N\")))","v":""},{"$f":"IF($B96=\"N\",\"\",IF(OR('Enrollment Form'!$B103<>\"Subscriber\",'Enrollment Form'!$C103=\"ROC\"),\"-\",IF(AND('Enrollment Form'!$B103=\"Subscriber\",'Enrollment Form'!$C103=\"Enroll\",'Enrollment Form'!$AP103<>\"\"),\"Y\",\"N\")))","v":""},{"$f":"IF($B96=\"N\",\"\",IF(OR('Enrollment Form'!$B103<>\"Subscriber\",'Enrollment Form'!$C103=\"ROC\"),\"-\",IF(AND('Enrollment Form'!$B103=\"Subscriber\",'Enrollment Form'!$C103=\"Enroll\",'Enrollment Form'!$AQ103<>\"\"),\"Y\",\"N\")))","v":""},{"$f":"IF($B96=\"N\",\"\",IF(OR('Enrollment Form'!$B103<>\"Subscriber\",'Enrollment Form'!$C103=\"ROC\"),\"-\",IF(AND('Enrollment Form'!$B103=\"Subscriber\",'Enrollment Form'!$C103=\"Enroll\",'Enrollment Form'!$AS103<>\"\"),\"Y\",\"N\")))","v":""},{"$f":"IF($B96=\"N\",\"\",IF($Q96=\"-\",\"-\",IF(AND($Q96=\"Y\",'Enrollment Form'!$AS103=\"No\"),\"-\",IF(AND($Q96=\"Y\",'Enrollment Form'!$AS103=\"Yes\",'Enrollment Form'!$AT103<>\"\"),\"Y\",\"N\"))))","v":""},{"$f":"IF($B96=\"N\",\"\",IF(OR('Enrollment Form'!$B103<>\"Subscriber\",'Enrollment Form'!$C103=\"ROC\"),\"-\",IF(AND('Enrollment Form'!$B103=\"Subscriber\",'Enrollment Form'!$C103=\"Enroll\",'Enrollment Form'!$CV103<>\"\"),\"Y\",\"N\")))","v":""},{"$f":"IF($B96=\"N\",\"\",IF($S96=\"-\",\"-\",IF(AND($S96=\"Y\",'Enrollment Form'!$CV103=\"No\"),\"-\",IF(AND($S96=\"Y\",'Enrollment Form'!$CV103=\"Yes\",'Enrollment Form'!$CW103<>\"\"),\"Y\",\"N\"))))","v":""},{"$f":"IF(OR('Enrollment Form'!$AY103=\"Yes\",'Enrollment Form'!$AY103=\"\"),\"-\",IF(OR(AND('Enrollment Form'!$AY103=\"No\",ISERROR(FIND(\"HMO\",VLOOKUP('Enrollment Form'!G103,'Enrollment Form'!H$11:J$1000,3,FALSE),1))=FALSE,COUNTA('Enrollment Form'!$AZ103:$BC103)=4),AND('Enrollment Form'!$AY103=\"No\",ISERROR(FIND(\"HMO\",VLOOKUP('Enrollment Form'!G103,'Enrollment Form'!H$11:J$1000,3,FALSE),1))=FALSE,COUNTA('Enrollment Form'!$BT103:$BW103)=4)),\"Y\",\"N\"))","v":"-"},{"$f":"IF($B96=\"N\",\"\",IF('Enrollment Form'!$B103=\"Subscriber\",\"-\",IF(COUNTA('Enrollment Form'!$BL103,'Enrollment Form'!$BN103)=2,\"Y\",\"N\")))","v":""},{"$f":"IF($B96=\"N\",\"\",IF(OR('Enrollment Form'!$AX103=\"\",'Enrollment Form'!$AX103=\"No\"),\"-\",IF(AND('Enrollment Form'!$AX103=\"Yes\",COUNTA('Enrollment Form'!$CR103)=1),\"Y\",\"N\")))","v":""},{"$f":"IF(OR('Enrollment Form'!$CR103=\"\",'Enrollment Form'!$CR103=\"No\"),\"-\",IF(COUNTA('Enrollment Form'!$CT103:$CU103)=2,\"Y\",\"N\"))","v":"-"},{"$f":"IF($B96=\"N\",\"\",IF(COUNTIF('Enrollment Form'!$DG103:$DP103,\"Other\")=COUNTA('Enrollment Form'!$DK103,'Enrollment Form'!$DH103,'Enrollment Form'!$DN103,'Enrollment Form'!$DQ103),\"Y\",\"N\"))","v":""},{"$f":"IF($B96=\"N\",\"\",IF(OR('Enrollment Form'!B103<>\"Subscriber\",'Enrollment Form'!C103=\"ROC\",COUNTIF('Enrollment Form'!AV103:AW103,\"Yes\")>=1),\"-\",IF(AND('Enrollment Form'!C103=\"Enroll\",COUNTIF('Enrollment Form'!AV103:AW103,\"No\")=2,'Enrollment Form'!AX103=\"\"),\"N\",\"Y\")))","v":""},{"$f":"IF(OR(B96=\"N\",'Enrollment Form'!B103<>\"Subscriber\",'Enrollment Form'!C103=\"ROC\",'Enrollment Form'!O103<>\"Multiple of Salary\"),\"-\",IF(COUNTA('Enrollment Form'!T103:U103)<2,\"N\",\"Y\"))","v":"-"},{"$f":"IF(B96=\"N\",\"\",IF(OR('Enrollment Form'!C103=\"ROC\",'Enrollment Form'!B103<>\"Subscriber\",'Enrollment Form'!O103=\"Waive\",'Enrollment Form'!O103=\"\"),\"-\",IF('Enrollment Form'!P103=\"\",\"N\",\"Y\")))","v":""},{"$f":"IF($B96=\"N\",\"\",IF(AND('Enrollment Form'!$C103=\"ROC\",'Enrollment Form'!$DR103<>\"\"),\"Y\",IF(AND('Enrollment Form'!$C103=\"ROC\",'Enrollment Form'!$DR103=\"\"),\"N\",IF(AND('Enrollment Form'!$C103=\"Enroll\",'Enrollment Form'!$B103=\"Subscriber\",'Enrollment Form'!$CX103=\"No\",'Enrollment Form'!$DR103=\"\"),\"N\",IF(AND('Enrollment Form'!$C103=\"Enroll\",'Enrollment Form'!$B103=\"Subscriber\",'Enrollment Form'!$CX103=\"Yes\"),\"-\",\"Y\")))))","v":""},{"$f":"IF($B96=\"N\",\"\",IF(AND('Enrollment Form'!$C103=\"ROC\",'Enrollment Form'!$DS103<>\"\"),\"Y\",IF(AND('Enrollment Form'!$C103=\"ROC\",'Enrollment Form'!$DS103=\"\"),\"N\",IF(AND('Enrollment Form'!$C103=\"Enroll\",'Enrollment Form'!$B103=\"Subscriber\",'Enrollment Form'!$CX103=\"No\",'Enrollment Form'!$DS103=\"\"),\"N\",IF(AND('Enrollment Form'!$C103=\"Enroll\",'Enrollment Form'!$B103=\"Subscriber\",'Enrollment Form'!$CX103=\"Yes\"),\"-\",\"Y\")))))","v":""},{"$f":"IF('Enrollment Form'!AH103=\"\",\"\",IF(ISERROR(SEARCH(\".\",'Enrollment Form'!AH103,SEARCH(\"@\",'Enrollment Form'!AH103))),\"N\",\"Y\"))","v":""},{"$f":"IF(OR($B96=\"N\",'Enrollment Form'!$G103=\"\"),\"\",IF('Enrollment Form'!$B103<>\"Subscriber\",\"-\",IF(COUNTIF('Enrollment Form'!$AV103:$AW103,\"Yes\")=2,\"N\",\"Y\")))","v":""},{"$f":"IF(OR('Enrollment Form'!$CJ103=\"\",'Enrollment Form'!$CJ103=\"No\"),\"-\",IF(AND('Enrollment Form'!$CJ103=\"Yes\",'Enrollment Form'!$CK103=\"\"),\"N\",\"Y\"))","v":"-"},{"$f":"IF(OR('Enrollment Form'!$CL103=\"\",'Enrollment Form'!$CL103=\"No\"),\"-\",IF(AND('Enrollment Form'!$CL103=\"Yes\",'Enrollment Form'!$CM103=\"\"),\"N\",\"Y\"))","v":"-"},{"$f":"IF(OR('Enrollment Form'!$CN103=\"\",'Enrollment Form'!$CN103=\"No\"),\"-\",IF(AND('Enrollment Form'!$CN103=\"Yes\",'Enrollment Form'!$CO103=\"\"),\"N\",\"Y\"))","v":"-"},{"$f":"IF(OR('Enrollment Form'!$CN103=\"\",'Enrollment Form'!$CN103=\"No\"),\"-\",IF(AND('Enrollment Form'!$CN103=\"Yes\",'Enrollment Form'!$CP103=\"\"),\"N\",\"Y\"))","v":"-"},{"$f":"IF('Enrollment Form'!B103<>\"Subscriber\",\"-\",IF(AND('Enrollment Form'!B103=\"Subscriber\",'Enrollment Form'!C103=\"Enroll\",'Enrollment Form'!AA103=\"\"),\"N\",\"Y\"))","v":"-"},{"$f":"IF(OR('Enrollment Form'!B103=\"Subscriber\",'Enrollment Form'!B103=\"\"),\"-\",IF('Enrollment Form'!BP103=\"\",\"N\",\"Y\"))","v":"-"},{"$f":"IF('Enrollment Form'!B103<>\"Subscriber\",\"-\",IF(AND('Enrollment Form'!B103=\"Subscriber\",'Enrollment Form'!G103=\"\"),\"N\",\"Y\"))","v":"-"},{"$f":"IF('Enrollment Form'!A103=\"\",\"\",IF('Enrollment Form'!B103=\"Subscriber\",\"-\",IF(AND('Enrollment Form'!B103<>\"Subscriber\",'Enrollment Form'!G103='Enrollment Form'!H103),\"N\",\"Y\")))","v":""},0]
[104,{"$f":"IF('Enrollment Form'!$A104<>\"\",\"Y\",\"N\")","v":"N"},{"$f":"IF(AND('Enrollment Form'!$B104=\"\",'Enrollment Form'!$C104<>\"\"),\"N\",IF($B97=\"N\",\"\",\"Y\"))","v":""},{"$f":"IF(OR($B97=\"N\",'Enrollment Form'!G104=\"\"),\"\",IF('Enrollment Form'!$B104<>\"Subscriber\",\"\",IF('Enrollment Form'!$G104='Enrollment Form'!$H104,\"Y\",\"N\")))","v":""},{"$f":"IF($B97=\"N\",\"\",IF(AND(COUNTIFS('Enrollment Form'!$H$11:$H$1000,'Enrollment Form'!$H104,'Enrollment Form'!$B$11:$B$1000,'Enrollment Form'!$B104)>1,'Enrollment Form'!$H104<>\"\"),\"N\",\"Y\"))","v":""},{"$f":"IF($B97=\"N\",\"\",IF(LEN('Enrollment Form'!$Y104)=0,\"\",IF(LEN('Enrollment Form'!$Y104)<>5,\"N\",\"Y\")))","v":""},{"$f":"IF($B97=\"N\",\"\",IF(LEN('Enrollment Form'!$AD104=0),\"\",IF(LEN('Enrollment Form'!$AD104)<>5,\"N\",\"Y\")))","v":""},{"$f":"IF($B97=\"N\",\"\",IF(LEN('Enrollment Form'!$BS104=0),\"\",IF(LEN('Enrollment Form'!$BS104)<>5,\"N\",\"Y\")))","v":""},{"$f":"IF($B97=\"N\",\"\",IF(LEN('Enrollment Form'!$AE104)=0,\"\",IF(LEN('Enrollment Form'!$AE104)<>10,\"N\",\"Y\")))","v":""},{"$f":"IF($B97=\"N\",\"\",IF(LEN('Enrollment Form'!$AF104)=0,\"\",IF(LEN('Enrollment Form'!$AF104)<>10,\"N\",\"Y\")))","v":""},{"$f":"IF('Enrollment Form'!$O104<>\"Graded\",\"-\",IF(AND('Enrollment Form'!$O104=\"Graded\",'Enrollment Form'!$AR104<>\"\"),\"Y\",\"N\"))","v":"-"},{"$f":"IF($B97=\"N\",\"\",IF(OR('Enrollment Form'!$B104<>\"Subscriber\",'Enrollment Form'!$C104=\"ROC\"),\"-\",IF(AND('Enrollment Form'!$B104=\"Subscriber\",'Enrollment Form'!$C104=\"Enroll\",'Enrollment Form'!$AJ104<>\"\"),\"Y\",\"N\")))","v":""},{"$f":"IF($B97=\"N\",\"\",IF(OR('Enrollment Form'!$B104<>\"Subscriber\",'Enrollment Form'!$C104=\"ROC\"),\"-\",IF(AND('Enrollment Form'!$B104=\"Subscriber\",'Enrollment Form'!$C104=\"Enroll\",'Enrollment Form'!$AK104<>\"\"),\"Y\",\"N\")))","v":""},{"$f":"IF($B97=\"N\",\"\",IF(OR('Enrollment Form'!$B104<>\"Subscriber\",'Enrollment Form'!$C104=\"ROC\"),\"-\",IF(AND('Enrollment Form'!$B104=\"Subscriber\",'Enrollment Form'!$C104=\"Enroll\",'Enrollment Form'!$AL104<>\"\"),\"Y\",\"N\")))","v":""},{"$f":"IF($B97=\"N\",\"\",IF(OR('Enrollment Form'!$B104<>\"Subscriber\",'Enrollment Form'!$C104=\"ROC\"),\"-\",IF(AND('Enrollment Form'!$B104=\"Subscriber\",'Enrollment Form'!$C104=\"Enroll\",'Enrollment Form'!$AP104<>\"\"),\"Y\",\"N\")))","v":""},{"$f":"IF($B97=\"N\",\"\",IF(OR('Enrollment Form'!$B104<>\"Subscriber\",'Enrollment Form'!$C104=\"ROC\"),\"-\",IF(AND('Enrollment Form'!$B104=\"Subscriber\",'Enrollment Form'!$C104=\"Enroll\",'Enrollment Form'!$AQ104<>\"\"),\"Y\",\"N\")))","v":""},{"$f":"IF($B97=\"N\",\"\",IF(OR('Enrollment Form'!$B104<>\"Subscriber\",'Enrollment Form'!$C104=\"ROC\"),\"-\",IF(AND('Enrollment Form'!$B104=\"Subscriber\",'Enrollment Form'!$C104=\"Enroll\",'Enrollment Form'!$AS104<>\"\"),\"Y\",\"N\")))","v":""},{"$f":"IF($B97=\"N\",\"\",IF($Q97=\"-\",\"-\",IF(AND($Q97=\"Y\",'Enrollment Form'!$AS104=\"No\"),\"-\",IF(AND($Q97=\"Y\",'Enrollment Form'!$AS104=\"Yes\",'Enrollment Form'!$AT104<>\"\"),\"Y\",\"N\"))))","v":""},{"$f":"IF($B97=\"N\",\"\",IF(OR('Enrollment Form'!$B104<>\"Subscriber\",'Enrollment Form'!$C104=\"ROC\"),\"-\",IF(AND('Enrollment Form'!$B104=\"Subscriber\",'Enrollment Form'!$C104=\"Enroll\",'Enrollment Form'!$CV104<>\"\"),\"Y\",\"N\")))","v":""},{"$f":"IF($B97=\"N\",\"\",IF($S97=\"-\",\"-\",IF(AND($S97=\"Y\",'Enrollment Form'!$CV104=\"No\"),\"-\",IF(AND($S97=\"Y\",'Enrollment Form'!$CV104=\"Yes\",'Enrollment Form'!$CW104<>\"\"),\"Y\",\"N\"))))","v":""},{"$f":"IF(OR('Enrollment Form'!$AY104=\"Yes\",'Enrollment Form'!$AY104=\"\"),\"-\",IF(OR(AND('Enrollment Form'!$AY104=\"No\",ISERROR(FIND(\"HMO\",VLOOKUP('Enrollment Form'!G104,'Enrollment Form'!H$11:J$1000,3,FALSE),1))=FALSE,COUNTA('Enrollment Form'!$AZ104:$BC104)=4),AND('Enrollment Form'!$AY104=\"No\",ISERROR(FIND(\"HMO\",VLOOKUP('Enrollment Form'!G104,'Enrollment Form'!H$11:J$1000,3,FALSE),1))=FALSE,COUNTA('Enrollment Form'!$BT104:$BW104)=4)),\"Y\",\"N\"))","v":"-"},{"$f":"IF($B97=\"N\",\"\",IF('Enrollment Form'!$B104=\"Subscriber\",\"-\",IF(COUNTA('Enrollment Form'!$BL104,'Enrollment Form'!$BN104)=2,\"Y\",\"N\")))","v":""},{"$f":"IF($B97=\"N\",\"\",IF(OR('Enrollment Form'!$AX104=\"\",'Enrollment Form'!$AX104=\"No\"),\"-\",IF(AND('Enrollment Form'!$AX104=\"Yes\",COUNTA('Enrollment Form'!$CR104)=1),\"Y\",\"N\")))","v":""},{"$f":"IF(OR('Enrollment Form'!$CR104=\"\",'Enrollment Form'!$CR104=\"No\"),\"-\",IF(COUNTA('Enrollment Form'!$CT104:$CU104)=2,\"Y\",\"N\"))","v":"-"},{"$f":"IF($B97=\"N\",\"\",IF(COUNTIF('Enrollment Form'!$DG104:$DP104,\"Other\")=COUNTA('Enrollment Form'!$DK104,'Enrollment Form'!$DH104,'Enrollment Form'!$DN104,'Enrollment Form'!$DQ104),\"Y\",\"N\"))","v":""},{"$f":"IF($B97=\"N\",\"\",IF(OR('Enrollment Form'!B104<>\"Subscriber\",'Enrollment Form'!C104=\"ROC\",COUNTIF('Enrollment Form'!AV104:AW104,\"Yes\")>=1),\"-\",IF(AND('Enrollment Form'!C104=\"Enroll\",COUNTIF('Enrollment Form'!AV104:AW104,\"No\")=2,'Enrollment Form'!AX104=\"\"),\"N\",\"Y\")))","v":""},{"$f":"IF(OR(B97=\"N\",'Enrollment Form'!B104<>\"Subscriber\",'Enrollment Form'!C104=\"ROC\",'Enrollment Form'!O104<>\"Multiple of Salary\"),\"-\",IF(COUNTA('Enrollment Form'!T104:U104)<2,\"N\",\"Y\"))","v":"-"},{"$f":"IF(B97=\"N\",\"\",IF(OR('Enrollment Form'!C104=\"ROC\",'Enrollment Form'!B104<>\"Subscriber\",'Enrollment Form'!O104=\"Waive\",'Enrollment Form'!O104=\"\"),\"-\",IF('Enrollment Form'!P104=\"\",\"N\",\"Y\")))","v":""},{"$f":"IF($B97=\"N\",\"\",IF(AND('Enrollment Form'!$C104=\"ROC\",'Enrollment Form'!$DR104<>\"\"),\"Y\",IF(AND('Enrollment Form'!$C104=\"ROC\",'Enrollment Form'!$DR104=\"\"),\"N\",IF(AND('Enrollment Form'!$C104=\"Enroll\",'Enrollment Form'!$B104=\"Subscriber\",'Enrollment Form'!$CX104=\"No\",'Enrollment Form'!$DR104=\"\"),\"N\",IF(AND('Enrollment Form'!$C104=\"Enroll\",'Enrollment Form'!$B104=\"Subscriber\",'Enrollment Form'!$CX104=\"Yes\"),\"-\",\"Y\")))))","v":""},{"$f":"IF($B97=\"N\",\"\",IF(AND('Enrollment Form'!$C104=\"ROC\",'Enrollment Form'!$DS104<>\"\"),\"Y\",IF(AND('Enrollment Form'!$C104=\"ROC\",'Enrollment Form'!$DS104=\"\"),\"N\",IF(AND('Enrollment Form'!$C104=\"Enroll\",'Enrollment Form'!$B104=\"Subscriber\",'Enrollment Form'!$CX104=\"No\",'Enrollment Form'!$DS104=\"\"),\"N\",IF(AND('Enrollment Form'!$C104=\"Enroll\",'Enrollment Form'!$B104=\"Subscriber\",'Enrollment Form'!$CX104=\"Yes\"),\"-\",\"Y\")))))","v":""},{"$f":"IF('Enrollment Form'!AH104=\"\",\"\",IF(ISERROR(SEARCH(\".\",'Enrollment Form'!AH104,SEARCH(\"@\",'Enrollment Form'!AH104))),\"N\",\"Y\"))","v":""},{"$f":"IF(OR($B97=\"N\",'Enrollment Form'!$G104=\"\"),\"\",IF('Enrollment Form'!$B104<>\"Subscriber\",\"-\",IF(COUNTIF('Enrollment Form'!$AV104:$AW104,\"Yes\")=2,\"N\",\"Y\")))","v":""},{"$f":"IF(OR('Enrollment Form'!$CJ104=\"\",'Enrollment Form'!$CJ104=\"No\"),\"-\",IF(AND('Enrollment Form'!$CJ104=\"Yes\",'Enrollment Form'!$CK104=\"\"),\"N\",\"Y\"))","v":"-"},{"$f":"IF(OR('Enrollment Form'!$CL104=\"\",'Enrollment Form'!$CL104=\"No\"),\"-\",IF(AND('Enrollment Form'!$CL104=\"Yes\",'Enrollment Form'!$CM104=\"\"),\"N\",\"Y\"))","v":"-"},{"$f":"IF(OR('Enrollment Form'!$CN104=\"\",'Enrollment Form'!$CN104=\"No\"),\"-\",IF(AND('Enrollment Form'!$CN104=\"Yes\",'Enrollment Form'!$CO104=\"\"),\"N\",\"Y\"))","v":"-"},{"$f":"IF(OR('Enrollment Form'!$CN104=\"\",'Enrollment Form'!$CN104=\"No\"),\"-\",IF(AND('Enrollment Form'!$CN104=\"Yes\",'Enrollment Form'!$CP104=\"\"),\"N\",\"Y\"))","v":"-"},{"$f":"IF('Enrollment Form'!B104<>\"Subscriber\",\"-\",IF(AND('Enrollment Form'!B104=\"Subscriber\",'Enrollment Form'!C104=\"Enroll\",'Enrollment Form'!AA104=\"\"),\"N\",\"Y\"))","v":"-"},{"$f":"IF(OR('Enrollment Form'!B104=\"Subscriber\",'Enrollment Form'!B104=\"\"),\"-\",IF('Enrollment Form'!BP104=\"\",\"N\",\"Y\"))","v":"-"},{"$f":"IF('Enrollment Form'!B104<>\"Subscriber\",\"-\",IF(AND('Enrollment Form'!B104=\"Subscriber\",'Enrollment Form'!G104=\"\"),\"N\",\"Y\"))","v":"-"},{"$f":"IF('Enrollment Form'!A104=\"\",\"\",IF('Enrollment Form'!B104=\"Subscriber\",\"-\",IF(AND('Enrollment Form'!B104<>\"Subscriber\",'Enrollment Form'!G104='Enrollment Form'!H104),\"N\",\"Y\")))","v":""},0]
[105,{"$f":"IF('Enrollment Form'!$A105<>\"\",\"Y\",\"N\")","v":"N"},{"$f":"IF(AND('Enrollment Form'!$B105=\"\",'Enrollment Form'!$C105<>\"\"),\"N\",IF($B98=\"N\",\"\",\"Y\"))","v":""},{"$f":"IF(OR($B98=\"N\",'Enrollment Form'!G105=\"\"),\"\",IF('Enrollment Form'!$B105<>\"Subscriber\",\"\",IF('Enrollment Form'!$G105='Enrollment Form'!$H105,\"Y\",\"N\")))","v":""},{"$f":"IF($B98=\"N\",\"\",IF(AND(COUNTIFS('Enrollment Form'!$H$11:$H$1000,'Enrollment Form'!$H105,'Enrollment Form'!$B$11:$B$1000,'Enrollment Form'!$B105)>1,'Enrollment Form'!$H105<>\"\"),\"N\",\"Y\"))","v":""},{"$f":"IF($B98=\"N\",\"\",IF(LEN('Enrollment Form'!$Y105)=0,\"\",IF(LEN('Enrollment Form'!$Y105)<>5,\"N\",\"Y\")))","v":""},{"$f":"IF($B98=\"N\",\"\",IF(LEN('Enrollment Form'!$AD105=0),\"\",IF(LEN('Enrollment Form'!$AD105)<>5,\"N\",\"Y\")))","v":""},{"$f":"IF($B98=\"N\",\"\",IF(LEN('Enrollment Form'!$BS105=0),\"\",IF(LEN('Enrollment Form'!$BS105)<>5,\"N\",\"Y\")))","v":""},{"$f":"IF($B98=\"N\",\"\",IF(LEN('Enrollment Form'!$AE105)=0,\"\",IF(LEN('Enrollment Form'!$AE105)<>10,\"N\",\"Y\")))","v":""},{"$f":"IF($B98=\"N\",\"\",IF(LEN('Enrollment Form'!$AF105)=0,\"\",IF(LEN('Enrollment Form'!$AF105)<>10,\"N\",\"Y\")))","v":""},{"$f":"IF('Enrollment Form'!$O105<>\"Graded\",\"-\",IF(AND('Enrollment Form'!$O105=\"Graded\",'Enrollment Form'!$AR105<>\"\"),\"Y\",\"N\"))","v":"-"},{"$f":"IF($B98=\"N\",\"\",IF(OR('Enrollment Form'!$B105<>\"Subscriber\",'Enrollment Form'!$C105=\"ROC\"),\"-\",IF(AND('Enrollment Form'!$B105=\"Subscriber\",'Enrollment Form'!$C105=\"Enroll\",'Enrollment Form'!$AJ105<>\"\"),\"Y\",\"N\")))","v":""},{"$f":"IF($B98=\"N\",\"\",IF(OR('Enrollment Form'!$B105<>\"Subscriber\",'Enrollment Form'!$C105=\"ROC\"),\"-\",IF(AND('Enrollment Form'!$B105=\"Subscriber\",'Enrollment Form'!$C105=\"Enroll\",'Enrollment Form'!$AK105<>\"\"),\"Y\",\"N\")))","v":""},{"$f":"IF($B98=\"N\",\"\",IF(OR('Enrollment Form'!$B105<>\"Subscriber\",'Enrollment Form'!$C105=\"ROC\"),\"-\",IF(AND('Enrollment Form'!$B105=\"Subscriber\",'Enrollment Form'!$C105=\"Enroll\",'Enrollment Form'!$AL105<>\"\"),\"Y\",\"N\")))","v":""},{"$f":"IF($B98=\"N\",\"\",IF(OR('Enrollment Form'!$B105<>\"Subscriber\",'Enrollment Form'!$C105=\"ROC\"),\"-\",IF(AND('Enrollment Form'!$B105=\"Subscriber\",'Enrollment Form'!$C105=\"Enroll\",'Enrollment Form'!$AP105<>\"\"),\"Y\",\"N\")))","v":""},{"$f":"IF($B98=\"N\",\"\",IF(OR('Enrollment Form'!$B105<>\"Subscriber\",'Enrollment Form'!$C105=\"ROC\"),\"-\",IF(AND('Enrollment Form'!$B105=\"Subscriber\",'Enrollment Form'!$C105=\"Enroll\",'Enrollment Form'!$AQ105<>\"\"),\"Y\",\"N\")))","v":""},{"$f":"IF($B98=\"N\",\"\",IF(OR('Enrollment Form'!$B105<>\"Subscriber\",'Enrollment Form'!$C105=\"ROC\"),\"-\",IF(AND('Enrollment Form'!$B105=\"Subscriber\",'Enrollment Form'!$C105=\"Enroll\",'Enrollment Form'!$AS105<>\"\"),\"Y\",\"N\")))","v":""},{"$f":"IF($B98=\"N\",\"\",IF($Q98=\"-\",\"-\",IF(AND($Q98=\"Y\",'Enrollment Form'!$AS105=\"No\"),\"-\",IF(AND($Q98=\"Y\",'Enrollment Form'!$AS105=\"Yes\",'Enrollment Form'!$AT105<>\"\"),\"Y\",\"N\"))))","v":""},{"$f":"IF($B98=\"N\",\"\",IF(OR('Enrollment Form'!$B105<>\"Subscriber\",'Enrollment Form'!$C105=\"ROC\"),\"-\",IF(AND('Enrollment Form'!$B105=\"Subscriber\",'Enrollment Form'!$C105=\"Enroll\",'Enrollment Form'!$CV105<>\"\"),\"Y\",\"N\")))","v":""},{"$f":"IF($B98=\"N\",\"\",IF($S98=\"-\",\"-\",IF(AND($S98=\"Y\",'Enrollment Form'!$CV105=\"No\"),\"-\",IF(AND($S98=\"Y\",'Enrollment Form'!$CV105=\"Yes\",'Enrollment Form'!$CW105<>\"\"),\"Y\",\"N\"))))","v":""},{"$f":"IF(OR('Enrollment Form'!$AY105=\"Yes\",'Enrollment Form'!$AY105=\"\"),\"-\",IF(OR(AND('Enrollment Form'!$AY105=\"No\",ISERROR(FIND(\"HMO\",VLOOKUP('Enrollment Form'!G105,'Enrollment Form'!H$11:J$1000,3,FALSE),1))=FALSE,COUNTA('Enrollment Form'!$AZ105:$BC105)=4),AND('Enrollment Form'!$AY105=\"No\",ISERROR(FIND(\"HMO\",VLOOKUP('Enrollment Form'!G105,'Enrollment Form'!H$11:J$1000,3,FALSE),1))=FALSE,COUNTA('Enrollment Form'!$BT105:$BW105)=4)),\"Y\",\"N\"))","v":"-"},{"$f":"IF($B98=\"N\",\"\",IF('Enrollment Form'!$B105=\"Subscriber\",\"-\",IF(COUNTA('Enrollment Form'!$BL105,'Enrollment Form'!$BN105)=2,\"Y\",\"N\")))","v":""},{"$f":"IF($B98=\"N\",\"\",IF(OR('Enrollment Form'!$AX105=\"\",'Enrollment Form'!$AX105=\"No\"),\"-\",IF(AND('Enrollment Form'!$AX105=\"Yes\",COUNTA('Enrollment Form'!$CR105)=1),\"Y\",\"N\")))","v":""},{"$f":"IF(OR('Enrollment Form'!$CR105=\"\",'Enrollment Form'!$CR105=\"No\"),\"-\",IF(COUNTA('Enrollment Form'!$CT105:$CU105)=2,\"Y\",\"N\"))","v":"-"},{"$f":"IF($B98=\"N\",\"\",IF(COUNTIF('Enrollment Form'!$DG105:$DP105,\"Other\")=COUNTA('Enrollment Form'!$DK105,'Enrollment Form'!$DH105,'Enrollment Form'!$DN105,'Enrollment Form'!$DQ105),\"Y\",\"N\"))","v":""},{"$f":"IF($B98=\"N\",\"\",IF(OR('Enrollment Form'!B105<>\"Subscriber\",'Enrollment Form'!C105=\"ROC\",COUNTIF('Enrollment Form'!AV105:AW105,\"Yes\")>=1),\"-\",IF(AND('Enrollment Form'!C105=\"Enroll\",COUNTIF('Enrollment Form'!AV105:AW105,\"No\")=2,'Enrollment Form'!AX105=\"\"),\"N\",\"Y\")))","v":""},{"$f":"IF(OR(B98=\"N\",'Enrollment Form'!B105<>\"Subscriber\",'Enrollment Form'!C105=\"ROC\",'Enrollment Form'!O105<>\"Multiple of Salary\"),\"-\",IF(COUNTA('Enrollment Form'!T105:U105)<2,\"N\",\"Y\"))","v":"-"},{"$f":"IF(B98=\"N\",\"\",IF(OR('Enrollment Form'!C105=\"ROC\",'Enrollment Form'!B105<>\"Subscriber\",'Enrollment Form'!O105=\"Waive\",'Enrollment Form'!O105=\"\"),\"-\",IF('Enrollment Form'!P105=\"\",\"N\",\"Y\")))","v":""},{"$f":"IF($B98=\"N\",\"\",IF(AND('Enrollment Form'!$C105=\"ROC\",'Enrollment Form'!$DR105<>\"\"),\"Y\",IF(AND('Enrollment Form'!$C105=\"ROC\",'Enrollment Form'!$DR105=\"\"),\"N\",IF(AND('Enrollment Form'!$C105=\"Enroll\",'Enrollment Form'!$B105=\"Subscriber\",'Enrollment Form'!$CX105=\"No\",'Enrollment Form'!$DR105=\"\"),\"N\",IF(AND('Enrollment Form'!$C105=\"Enroll\",'Enrollment Form'!$B105=\"Subscriber\",'Enrollment Form'!$CX105=\"Yes\"),\"-\",\"Y\")))))","v":""},{"$f":"IF($B98=\"N\",\"\",IF(AND('Enrollment Form'!$C105=\"ROC\",'Enrollment Form'!$DS105<>\"\"),\"Y\",IF(AND('Enrollment Form'!$C105=\"ROC\",'Enrollment Form'!$DS105=\"\"),\"N\",IF(AND('Enrollment Form'!$C105=\"Enroll\",'Enrollment Form'!$B105=\"Subscriber\",'Enrollment Form'!$CX105=\"No\",'Enrollment Form'!$DS105=\"\"),\"N\",IF(AND('Enrollment Form'!$C105=\"Enroll\",'Enrollment Form'!$B105=\"Subscriber\",'Enrollment Form'!$CX105=\"Yes\"),\"-\",\"Y\")))))","v":""},{"$f":"IF('Enrollment Form'!AH105=\"\",\"\",IF(ISERROR(SEARCH(\".\",'Enrollment Form'!AH105,SEARCH(\"@\",'Enrollment Form'!AH105))),\"N\",\"Y\"))","v":""},{"$f":"IF(OR($B98=\"N\",'Enrollment Form'!$G105=\"\"),\"\",IF('Enrollment Form'!$B105<>\"Subscriber\",\"-\",IF(COUNTIF('Enrollment Form'!$AV105:$AW105,\"Yes\")=2,\"N\",\"Y\")))","v":""},{"$f":"IF(OR('Enrollment Form'!$CJ105=\"\",'Enrollment Form'!$CJ105=\"No\"),\"-\",IF(AND('Enrollment Form'!$CJ105=\"Yes\",'Enrollment Form'!$CK105=\"\"),\"N\",\"Y\"))","v":"-"},{"$f":"IF(OR('Enrollment Form'!$CL105=\"\",'Enrollment Form'!$CL105=\"No\"),\"-\",IF(AND('Enrollment Form'!$CL105=\"Yes\",'Enrollment Form'!$CM105=\"\"),\"N\",\"Y\"))","v":"-"},{"$f":"IF(OR('Enrollment Form'!$CN105=\"\",'Enrollment Form'!$CN105=\"No\"),\"-\",IF(AND('Enrollment Form'!$CN105=\"Yes\",'Enrollment Form'!$CO105=\"\"),\"N\",\"Y\"))","v":"-"},{"$f":"IF(OR('Enrollment Form'!$CN105=\"\",'Enrollment Form'!$CN105=\"No\"),\"-\",IF(AND('Enrollment Form'!$CN105=\"Yes\",'Enrollment Form'!$CP105=\"\"),\"N\",\"Y\"))","v":"-"},{"$f":"IF('Enrollment Form'!B105<>\"Subscriber\",\"-\",IF(AND('Enrollment Form'!B105=\"Subscriber\",'Enrollment Form'!C105=\"Enroll\",'Enrollment Form'!AA105=\"\"),\"N\",\"Y\"))","v":"-"},{"$f":"IF(OR('Enrollment Form'!B105=\"Subscriber\",'Enrollment Form'!B105=\"\"),\"-\",IF('Enrollment Form'!BP105=\"\",\"N\",\"Y\"))","v":"-"},{"$f":"IF('Enrollment Form'!B105<>\"Subscriber\",\"-\",IF(AND('Enrollment Form'!B105=\"Subscriber\",'Enrollment Form'!G105=\"\"),\"N\",\"Y\"))","v":"-"},{"$f":"IF('Enrollment Form'!A105=\"\",\"\",IF('Enrollment Form'!B105=\"Subscriber\",\"-\",IF(AND('Enrollment Form'!B105<>\"Subscriber\",'Enrollment Form'!G105='Enrollment Form'!H105),\"N\",\"Y\")))","v":""},0]
[106,{"$f":"IF('Enrollment Form'!$A106<>\"\",\"Y\",\"N\")","v":"N"},{"$f":"IF(AND('Enrollment Form'!$B106=\"\",'Enrollment Form'!$C106<>\"\"),\"N\",IF($B99=\"N\",\"\",\"Y\"))","v":""},{"$f":"IF(OR($B99=\"N\",'Enrollment Form'!G106=\"\"),\"\",IF('Enrollment Form'!$B106<>\"Subscriber\",\"\",IF('Enrollment Form'!$G106='Enrollment Form'!$H106,\"Y\",\"N\")))","v":""},{"$f":"IF($B99=\"N\",\"\",IF(AND(COUNTIFS('Enrollment Form'!$H$11:$H$1000,'Enrollment Form'!$H106,'Enrollment Form'!$B$11:$B$1000,'Enrollment Form'!$B106)>1,'Enrollment Form'!$H106<>\"\"),\"N\",\"Y\"))","v":""},{"$f":"IF($B99=\"N\",\"\",IF(LEN('Enrollment Form'!$Y106)=0,\"\",IF(LEN('Enrollment Form'!$Y106)<>5,\"N\",\"Y\")))","v":""},{"$f":"IF($B99=\"N\",\"\",IF(LEN('Enrollment Form'!$AD106=0),\"\",IF(LEN('Enrollment Form'!$AD106)<>5,\"N\",\"Y\")))","v":""},{"$f":"IF($B99=\"N\",\"\",IF(LEN('Enrollment Form'!$BS106=0),\"\",IF(LEN('Enrollment Form'!$BS106)<>5,\"N\",\"Y\")))","v":""},{"$f":"IF($B99=\"N\",\"\",IF(LEN('Enrollment Form'!$AE106)=0,\"\",IF(LEN('Enrollment Form'!$AE106)<>10,\"N\",\"Y\")))","v":""},{"$f":"IF($B99=\"N\",\"\",IF(LEN('Enrollment Form'!$AF106)=0,\"\",IF(LEN('Enrollment Form'!$AF106)<>10,\"N\",\"Y\")))","v":""},{"$f":"IF('Enrollment Form'!$O106<>\"Graded\",\"-\",IF(AND('Enrollment Form'!$O106=\"Graded\",'Enrollment Form'!$AR106<>\"\"),\"Y\",\"N\"))","v":"-"},{"$f":"IF($B99=\"N\",\"\",IF(OR('Enrollment Form'!$B106<>\"Subscriber\",'Enrollment Form'!$C106=\"ROC\"),\"-\",IF(AND('Enrollment Form'!$B106=\"Subscriber\",'Enrollment Form'!$C106=\"Enroll\",'Enrollment Form'!$AJ106<>\"\"),\"Y\",\"N\")))","v":""},{"$f":"IF($B99=\"N\",\"\",IF(OR('Enrollment Form'!$B106<>\"Subscriber\",'Enrollment Form'!$C106=\"ROC\"),\"-\",IF(AND('Enrollment Form'!$B106=\"Subscriber\",'Enrollment Form'!$C106=\"Enroll\",'Enrollment Form'!$AK106<>\"\"),\"Y\",\"N\")))","v":""},{"$f":"IF($B99=\"N\",\"\",IF(OR('Enrollment Form'!$B106<>\"Subscriber\",'Enrollment Form'!$C106=\"ROC\"),\"-\",IF(AND('Enrollment Form'!$B106=\"Subscriber\",'Enrollment Form'!$C106=\"Enroll\",'Enrollment Form'!$AL106<>\"\"),\"Y\",\"N\")))","v":""},{"$f":"IF($B99=\"N\",\"\",IF(OR('Enrollment Form'!$B106<>\"Subscriber\",'Enrollment Form'!$C106=\"ROC\"),\"-\",IF(AND('Enrollment Form'!$B106=\"Subscriber\",'Enrollment Form'!$C106=\"Enroll\",'Enrollment Form'!$AP106<>\"\"),\"Y\",\"N\")))","v":""},{"$f":"IF($B99=\"N\",\"\",IF(OR('Enrollment Form'!$B106<>\"Subscriber\",'Enrollment Form'!$C106=\"ROC\"),\"-\",IF(AND('Enrollment Form'!$B106=\"Subscriber\",'Enrollment Form'!$C106=\"Enroll\",'Enrollment Form'!$AQ106<>\"\"),\"Y\",\"N\")))","v":""},{"$f":"IF($B99=\"N\",\"\",IF(OR('Enrollment Form'!$B106<>\"Subscriber\",'Enrollment Form'!$C106=\"ROC\"),\"-\",IF(AND('Enrollment Form'!$B106=\"Subscriber\",'Enrollment Form'!$C106=\"Enroll\",'Enrollment Form'!$AS106<>\"\"),\"Y\",\"N\")))","v":""},{"$f":"IF($B99=\"N\",\"\",IF($Q99=\"-\",\"-\",IF(AND($Q99=\"Y\",'Enrollment Form'!$AS106=\"No\"),\"-\",IF(AND($Q99=\"Y\",'Enrollment Form'!$AS106=\"Yes\",'Enrollment Form'!$AT106<>\"\"),\"Y\",\"N\"))))","v":""},{"$f":"IF($B99=\"N\",\"\",IF(OR('Enrollment Form'!$B106<>\"Subscriber\",'Enrollment Form'!$C106=\"ROC\"),\"-\",IF(AND('Enrollment Form'!$B106=\"Subscriber\",'Enrollment Form'!$C106=\"Enroll\",'Enrollment Form'!$CV106<>\"\"),\"Y\",\"N\")))","v":""},{"$f":"IF($B99=\"N\",\"\",IF($S99=\"-\",\"-\",IF(AND($S99=\"Y\",'Enrollment Form'!$CV106=\"No\"),\"-\",IF(AND($S99=\"Y\",'Enrollment Form'!$CV106=\"Yes\",'Enrollment Form'!$CW106<>\"\"),\"Y\",\"N\"))))","v":""},{"$f":"IF(OR('Enrollment Form'!$AY106=\"Yes\",'Enrollment Form'!$AY106=\"\"),\"-\",IF(OR(AND('Enrollment Form'!$AY106=\"No\",ISERROR(FIND(\"HMO\",VLOOKUP('Enrollment Form'!G106,'Enrollment Form'!H$11:J$1000,3,FALSE),1))=FALSE,COUNTA('Enrollment Form'!$AZ106:$BC106)=4),AND('Enrollment Form'!$AY106=\"No\",ISERROR(FIND(\"HMO\",VLOOKUP('Enrollment Form'!G106,'Enrollment Form'!H$11:J$1000,3,FALSE),1))=FALSE,COUNTA('Enrollment Form'!$BT106:$BW106)=4)),\"Y\",\"N\"))","v":"-"},{"$f":"IF($B99=\"N\",\"\",IF('Enrollment Form'!$B106=\"Subscriber\",\"-\",IF(COUNTA('Enrollment Form'!$BL106,'Enrollment Form'!$BN106)=2,\"Y\",\"N\")))","v":""},{"$f":"IF($B99=\"N\",\"\",IF(OR('Enrollment Form'!$AX106=\"\",'Enrollment Form'!$AX106=\"No\"),\"-\",IF(AND('Enrollment Form'!$AX106=\"Yes\",COUNTA('Enrollment Form'!$CR106)=1),\"Y\",\"N\")))","v":""},{"$f":"IF(OR('Enrollment Form'!$CR106=\"\",'Enrollment Form'!$CR106=\"No\"),\"-\",IF(COUNTA('Enrollment Form'!$CT106:$CU106)=2,\"Y\",\"N\"))","v":"-"},{"$f":"IF($B99=\"N\",\"\",IF(COUNTIF('Enrollment Form'!$DG106:$DP106,\"Other\")=COUNTA('Enrollment Form'!$DK106,'Enrollment Form'!$DH106,'Enrollment Form'!$DN106,'Enrollment Form'!$DQ106),\"Y\",\"N\"))","v":""},{"$f":"IF($B99=\"N\",\"\",IF(OR('Enrollment Form'!B106<>\"Subscriber\",'Enrollment Form'!C106=\"ROC\",COUNTIF('Enrollment Form'!AV106:AW106,\"Yes\")>=1),\"-\",IF(AND('Enrollment Form'!C106=\"Enroll\",COUNTIF('Enrollment Form'!AV106:AW106,\"No\")=2,'Enrollment Form'!AX106=\"\"),\"N\",\"Y\")))","v":""},{"$f":"IF(OR(B99=\"N\",'Enrollment Form'!B106<>\"Subscriber\",'Enrollment Form'!C106=\"ROC\",'Enrollment Form'!O106<>\"Multiple of Salary\"),\"-\",IF(COUNTA('Enrollment Form'!T106:U106)<2,\"N\",\"Y\"))","v":"-"},{"$f":"IF(B99=\"N\",\"\",IF(OR('Enrollment Form'!C106=\"ROC\",'Enrollment Form'!B106<>\"Subscriber\",'Enrollment Form'!O106=\"Waive\",'Enrollment Form'!O106=\"\"),\"-\",IF('Enrollment Form'!P106=\"\",\"N\",\"Y\")))","v":""},{"$f":"IF($B99=\"N\",\"\",IF(AND('Enrollment Form'!$C106=\"ROC\",'Enrollment Form'!$DR106<>\"\"),\"Y\",IF(AND('Enrollment Form'!$C106=\"ROC\",'Enrollment Form'!$DR106=\"\"),\"N\",IF(AND('Enrollment Form'!$C106=\"Enroll\",'Enrollment Form'!$B106=\"Subscriber\",'Enrollment Form'!$CX106=\"No\",'Enrollment Form'!$DR106=\"\"),\"N\",IF(AND('Enrollment Form'!$C106=\"Enroll\",'Enrollment Form'!$B106=\"Subscriber\",'Enrollment Form'!$CX106=\"Yes\"),\"-\",\"Y\")))))","v":""},{"$f":"IF($B99=\"N\",\"\",IF(AND('Enrollment Form'!$C106=\"ROC\",'Enrollment Form'!$DS106<>\"\"),\"Y\",IF(AND('Enrollment Form'!$C106=\"ROC\",'Enrollment Form'!$DS106=\"\"),\"N\",IF(AND('Enrollment Form'!$C106=\"Enroll\",'Enrollment Form'!$B106=\"Subscriber\",'Enrollment Form'!$CX106=\"No\",'Enrollment Form'!$DS106=\"\"),\"N\",IF(AND('Enrollment Form'!$C106=\"Enroll\",'Enrollment Form'!$B106=\"Subscriber\",'Enrollment Form'!$CX106=\"Yes\"),\"-\",\"Y\")))))","v":""},{"$f":"IF('Enrollment Form'!AH106=\"\",\"\",IF(ISERROR(SEARCH(\".\",'Enrollment Form'!AH106,SEARCH(\"@\",'Enrollment Form'!AH106))),\"N\",\"Y\"))","v":""},{"$f":"IF(OR($B99=\"N\",'Enrollment Form'!$G106=\"\"),\"\",IF('Enrollment Form'!$B106<>\"Subscriber\",\"-\",IF(COUNTIF('Enrollment Form'!$AV106:$AW106,\"Yes\")=2,\"N\",\"Y\")))","v":""},{"$f":"IF(OR('Enrollment Form'!$CJ106=\"\",'Enrollment Form'!$CJ106=\"No\"),\"-\",IF(AND('Enrollment Form'!$CJ106=\"Yes\",'Enrollment Form'!$CK106=\"\"),\"N\",\"Y\"))","v":"-"},{"$f":"IF(OR('Enrollment Form'!$CL106=\"\",'Enrollment Form'!$CL106=\"No\"),\"-\",IF(AND('Enrollment Form'!$CL106=\"Yes\",'Enrollment Form'!$CM106=\"\"),\"N\",\"Y\"))","v":"-"},{"$f":"IF(OR('Enrollment Form'!$CN106=\"\",'Enrollment Form'!$CN106=\"No\"),\"-\",IF(AND('Enrollment Form'!$CN106=\"Yes\",'Enrollment Form'!$CO106=\"\"),\"N\",\"Y\"))","v":"-"},{"$f":"IF(OR('Enrollment Form'!$CN106=\"\",'Enrollment Form'!$CN106=\"No\"),\"-\",IF(AND('Enrollment Form'!$CN106=\"Yes\",'Enrollment Form'!$CP106=\"\"),\"N\",\"Y\"))","v":"-"},{"$f":"IF('Enrollment Form'!B106<>\"Subscriber\",\"-\",IF(AND('Enrollment Form'!B106=\"Subscriber\",'Enrollment Form'!C106=\"Enroll\",'Enrollment Form'!AA106=\"\"),\"N\",\"Y\"))","v":"-"},{"$f":"IF(OR('Enrollment Form'!B106=\"Subscriber\",'Enrollment Form'!B106=\"\"),\"-\",IF('Enrollment Form'!BP106=\"\",\"N\",\"Y\"))","v":"-"},{"$f":"IF('Enrollment Form'!B106<>\"Subscriber\",\"-\",IF(AND('Enrollment Form'!B106=\"Subscriber\",'Enrollment Form'!G106=\"\"),\"N\",\"Y\"))","v":"-"},{"$f":"IF('Enrollment Form'!A106=\"\",\"\",IF('Enrollment Form'!B106=\"Subscriber\",\"-\",IF(AND('Enrollment Form'!B106<>\"Subscriber\",'Enrollment Form'!G106='Enrollment Form'!H106),\"N\",\"Y\")))","v":""},0]
[107,{"$f":"IF('Enrollment Form'!$A107<>\"\",\"Y\",\"N\")","v":"N"},{"$f":"IF(AND('Enrollment Form'!$B107=\"\",'Enrollment Form'!$C107<>\"\"),\"N\",IF($B100=\"N\",\"\",\"Y\"))","v":""},{"$f":"IF(OR($B100=\"N\",'Enrollment Form'!G107=\"\"),\"\",IF('Enrollment Form'!$B107<>\"Subscriber\",\"\",IF('Enrollment Form'!$G107='Enrollment Form'!$H107,\"Y\",\"N\")))","v":""},{"$f":"IF($B100=\"N\",\"\",IF(AND(COUNTIFS('Enrollment Form'!$H$11:$H$1000,'Enrollment Form'!$H107,'Enrollment Form'!$B$11:$B$1000,'Enrollment Form'!$B107)>1,'Enrollment Form'!$H107<>\"\"),\"N\",\"Y\"))","v":""},{"$f":"IF($B100=\"N\",\"\",IF(LEN('Enrollment Form'!$Y107)=0,\"\",IF(LEN('Enrollment Form'!$Y107)<>5,\"N\",\"Y\")))","v":""},{"$f":"IF($B100=\"N\",\"\",IF(LEN('Enrollment Form'!$AD107=0),\"\",IF(LEN('Enrollment Form'!$AD107)<>5,\"N\",\"Y\")))","v":""},{"$f":"IF($B100=\"N\",\"\",IF(LEN('Enrollment Form'!$BS107=0),\"\",IF(LEN('Enrollment Form'!$BS107)<>5,\"N\",\"Y\")))","v":""},{"$f":"IF($B100=\"N\",\"\",IF(LEN('Enrollment Form'!$AE107)=0,\"\",IF(LEN('Enrollment Form'!$AE107)<>10,\"N\",\"Y\")))","v":""},{"$f":"IF($B100=\"N\",\"\",IF(LEN('Enrollment Form'!$AF107)=0,\"\",IF(LEN('Enrollment Form'!$AF107)<>10,\"N\",\"Y\")))","v":""},{"$f":"IF('Enrollment Form'!$O107<>\"Graded\",\"-\",IF(AND('Enrollment Form'!$O107=\"Graded\",'Enrollment Form'!$AR107<>\"\"),\"Y\",\"N\"))","v":"-"},{"$f":"IF($B100=\"N\",\"\",IF(OR('Enrollment Form'!$B107<>\"Subscriber\",'Enrollment Form'!$C107=\"ROC\"),\"-\",IF(AND('Enrollment Form'!$B107=\"Subscriber\",'Enrollment Form'!$C107=\"Enroll\",'Enrollment Form'!$AJ107<>\"\"),\"Y\",\"N\")))","v":""},{"$f":"IF($B100=\"N\",\"\",IF(OR('Enrollment Form'!$B107<>\"Subscriber\",'Enrollment Form'!$C107=\"ROC\"),\"-\",IF(AND('Enrollment Form'!$B107=\"Subscriber\",'Enrollment Form'!$C107=\"Enroll\",'Enrollment Form'!$AK107<>\"\"),\"Y\",\"N\")))","v":""},{"$f":"IF($B100=\"N\",\"\",IF(OR('Enrollment Form'!$B107<>\"Subscriber\",'Enrollment Form'!$C107=\"ROC\"),\"-\",IF(AND('Enrollment Form'!$B107=\"Subscriber\",'Enrollment Form'!$C107=\"Enroll\",'Enrollment Form'!$AL107<>\"\"),\"Y\",\"N\")))","v":""},{"$f":"IF($B100=\"N\",\"\",IF(OR('Enrollment Form'!$B107<>\"Subscriber\",'Enrollment Form'!$C107=\"ROC\"),\"-\",IF(AND('Enrollment Form'!$B107=\"Subscriber\",'Enrollment Form'!$C107=\"Enroll\",'Enrollment Form'!$AP107<>\"\"),\"Y\",\"N\")))","v":""},{"$f":"IF($B100=\"N\",\"\",IF(OR('Enrollment Form'!$B107<>\"Subscriber\",'Enrollment Form'!$C107=\"ROC\"),\"-\",IF(AND('Enrollment Form'!$B107=\"Subscriber\",'Enrollment Form'!$C107=\"Enroll\",'Enrollment Form'!$AQ107<>\"\"),\"Y\",\"N\")))","v":""},{"$f":"IF($B100=\"N\",\"\",IF(OR('Enrollment Form'!$B107<>\"Subscriber\",'Enrollment Form'!$C107=\"ROC\"),\"-\",IF(AND('Enrollment Form'!$B107=\"Subscriber\",'Enrollment Form'!$C107=\"Enroll\",'Enrollment Form'!$AS107<>\"\"),\"Y\",\"N\")))","v":""},{"$f":"IF($B100=\"N\",\"\",IF($Q100=\"-\",\"-\",IF(AND($Q100=\"Y\",'Enrollment Form'!$AS107=\"No\"),\"-\",IF(AND($Q100=\"Y\",'Enrollment Form'!$AS107=\"Yes\",'Enrollment Form'!$AT107<>\"\"),\"Y\",\"N\"))))","v":""},{"$f":"IF($B100=\"N\",\"\",IF(OR('Enrollment Form'!$B107<>\"Subscriber\",'Enrollment Form'!$C107=\"ROC\"),\"-\",IF(AND('Enrollment Form'!$B107=\"Subscriber\",'Enrollment Form'!$C107=\"Enroll\",'Enrollment Form'!$CV107<>\"\"),\"Y\",\"N\")))","v":""},{"$f":"IF($B100=\"N\",\"\",IF($S100=\"-\",\"-\",IF(AND($S100=\"Y\",'Enrollment Form'!$CV107=\"No\"),\"-\",IF(AND($S100=\"Y\",'Enrollment Form'!$CV107=\"Yes\",'Enrollment Form'!$CW107<>\"\"),\"Y\",\"N\"))))","v":""},{"$f":"IF(OR('Enrollment Form'!$AY107=\"Yes\",'Enrollment Form'!$AY107=\"\"),\"-\",IF(OR(AND('Enrollment Form'!$AY107=\"No\",ISERROR(FIND(\"HMO\",VLOOKUP('Enrollment Form'!G107,'Enrollment Form'!H$11:J$1000,3,FALSE),1))=FALSE,COUNTA('Enrollment Form'!$AZ107:$BC107)=4),AND('Enrollment Form'!$AY107=\"No\",ISERROR(FIND(\"HMO\",VLOOKUP('Enrollment Form'!G107,'Enrollment Form'!H$11:J$1000,3,FALSE),1))=FALSE,COUNTA('Enrollment Form'!$BT107:$BW107)=4)),\"Y\",\"N\"))","v":"-"},{"$f":"IF($B100=\"N\",\"\",IF('Enrollment Form'!$B107=\"Subscriber\",\"-\",IF(COUNTA('Enrollment Form'!$BL107,'Enrollment Form'!$BN107)=2,\"Y\",\"N\")))","v":""},{"$f":"IF($B100=\"N\",\"\",IF(OR('Enrollment Form'!$AX107=\"\",'Enrollment Form'!$AX107=\"No\"),\"-\",IF(AND('Enrollment Form'!$AX107=\"Yes\",COUNTA('Enrollment Form'!$CR107)=1),\"Y\",\"N\")))","v":""},{"$f":"IF(OR('Enrollment Form'!$CR107=\"\",'Enrollment Form'!$CR107=\"No\"),\"-\",IF(COUNTA('Enrollment Form'!$CT107:$CU107)=2,\"Y\",\"N\"))","v":"-"},{"$f":"IF($B100=\"N\",\"\",IF(COUNTIF('Enrollment Form'!$DG107:$DP107,\"Other\")=COUNTA('Enrollment Form'!$DK107,'Enrollment Form'!$DH107,'Enrollment Form'!$DN107,'Enrollment Form'!$DQ107),\"Y\",\"N\"))","v":""},{"$f":"IF($B100=\"N\",\"\",IF(OR('Enrollment Form'!B107<>\"Subscriber\",'Enrollment Form'!C107=\"ROC\",COUNTIF('Enrollment Form'!AV107:AW107,\"Yes\")>=1),\"-\",IF(AND('Enrollment Form'!C107=\"Enroll\",COUNTIF('Enrollment Form'!AV107:AW107,\"No\")=2,'Enrollment Form'!AX107=\"\"),\"N\",\"Y\")))","v":""},{"$f":"IF(OR(B100=\"N\",'Enrollment Form'!B107<>\"Subscriber\",'Enrollment Form'!C107=\"ROC\",'Enrollment Form'!O107<>\"Multiple of Salary\"),\"-\",IF(COUNTA('Enrollment Form'!T107:U107)<2,\"N\",\"Y\"))","v":"-"},{"$f":"IF(B100=\"N\",\"\",IF(OR('Enrollment Form'!C107=\"ROC\",'Enrollment Form'!B107<>\"Subscriber\",'Enrollment Form'!O107=\"Waive\",'Enrollment Form'!O107=\"\"),\"-\",IF('Enrollment Form'!P107=\"\",\"N\",\"Y\")))","v":""},{"$f":"IF($B100=\"N\",\"\",IF(AND('Enrollment Form'!$C107=\"ROC\",'Enrollment Form'!$DR107<>\"\"),\"Y\",IF(AND('Enrollment Form'!$C107=\"ROC\",'Enrollment Form'!$DR107=\"\"),\"N\",IF(AND('Enrollment Form'!$C107=\"Enroll\",'Enrollment Form'!$B107=\"Subscriber\",'Enrollment Form'!$CX107=\"No\",'Enrollment Form'!$DR107=\"\"),\"N\",IF(AND('Enrollment Form'!$C107=\"Enroll\",'Enrollment Form'!$B107=\"Subscriber\",'Enrollment Form'!$CX107=\"Yes\"),\"-\",\"Y\")))))","v":""},{"$f":"IF($B100=\"N\",\"\",IF(AND('Enrollment Form'!$C107=\"ROC\",'Enrollment Form'!$DS107<>\"\"),\"Y\",IF(AND('Enrollment Form'!$C107=\"ROC\",'Enrollment Form'!$DS107=\"\"),\"N\",IF(AND('Enrollment Form'!$C107=\"Enroll\",'Enrollment Form'!$B107=\"Subscriber\",'Enrollment Form'!$CX107=\"No\",'Enrollment Form'!$DS107=\"\"),\"N\",IF(AND('Enrollment Form'!$C107=\"Enroll\",'Enrollment Form'!$B107=\"Subscriber\",'Enrollment Form'!$CX107=\"Yes\"),\"-\",\"Y\")))))","v":""},{"$f":"IF('Enrollment Form'!AH107=\"\",\"\",IF(ISERROR(SEARCH(\".\",'Enrollment Form'!AH107,SEARCH(\"@\",'Enrollment Form'!AH107))),\"N\",\"Y\"))","v":""},{"$f":"IF(OR($B100=\"N\",'Enrollment Form'!$G107=\"\"),\"\",IF('Enrollment Form'!$B107<>\"Subscriber\",\"-\",IF(COUNTIF('Enrollment Form'!$AV107:$AW107,\"Yes\")=2,\"N\",\"Y\")))","v":""},{"$f":"IF(OR('Enrollment Form'!$CJ107=\"\",'Enrollment Form'!$CJ107=\"No\"),\"-\",IF(AND('Enrollment Form'!$CJ107=\"Yes\",'Enrollment Form'!$CK107=\"\"),\"N\",\"Y\"))","v":"-"},{"$f":"IF(OR('Enrollment Form'!$CL107=\"\",'Enrollment Form'!$CL107=\"No\"),\"-\",IF(AND('Enrollment Form'!$CL107=\"Yes\",'Enrollment Form'!$CM107=\"\"),\"N\",\"Y\"))","v":"-"},{"$f":"IF(OR('Enrollment Form'!$CN107=\"\",'Enrollment Form'!$CN107=\"No\"),\"-\",IF(AND('Enrollment Form'!$CN107=\"Yes\",'Enrollment Form'!$CO107=\"\"),\"N\",\"Y\"))","v":"-"},{"$f":"IF(OR('Enrollment Form'!$CN107=\"\",'Enrollment Form'!$CN107=\"No\"),\"-\",IF(AND('Enrollment Form'!$CN107=\"Yes\",'Enrollment Form'!$CP107=\"\"),\"N\",\"Y\"))","v":"-"},{"$f":"IF('Enrollment Form'!B107<>\"Subscriber\",\"-\",IF(AND('Enrollment Form'!B107=\"Subscriber\",'Enrollment Form'!C107=\"Enroll\",'Enrollment Form'!AA107=\"\"),\"N\",\"Y\"))","v":"-"},{"$f":"IF(OR('Enrollment Form'!B107=\"Subscriber\",'Enrollment Form'!B107=\"\"),\"-\",IF('Enrollment Form'!BP107=\"\",\"N\",\"Y\"))","v":"-"},{"$f":"IF('Enrollment Form'!B107<>\"Subscriber\",\"-\",IF(AND('Enrollment Form'!B107=\"Subscriber\",'Enrollment Form'!G107=\"\"),\"N\",\"Y\"))","v":"-"},{"$f":"IF('Enrollment Form'!A107=\"\",\"\",IF('Enrollment Form'!B107=\"Subscriber\",\"-\",IF(AND('Enrollment Form'!B107<>\"Subscriber\",'Enrollment Form'!G107='Enrollment Form'!H107),\"N\",\"Y\")))","v":""},0]
[108,{"$f":"IF('Enrollment Form'!$A108<>\"\",\"Y\",\"N\")","v":"N"},{"$f":"IF(AND('Enrollment Form'!$B108=\"\",'Enrollment Form'!$C108<>\"\"),\"N\",IF($B101=\"N\",\"\",\"Y\"))","v":""},{"$f":"IF(OR($B101=\"N\",'Enrollment Form'!G108=\"\"),\"\",IF('Enrollment Form'!$B108<>\"Subscriber\",\"\",IF('Enrollment Form'!$G108='Enrollment Form'!$H108,\"Y\",\"N\")))","v":""},{"$f":"IF($B101=\"N\",\"\",IF(AND(COUNTIFS('Enrollment Form'!$H$11:$H$1000,'Enrollment Form'!$H108,'Enrollment Form'!$B$11:$B$1000,'Enrollment Form'!$B108)>1,'Enrollment Form'!$H108<>\"\"),\"N\",\"Y\"))","v":""},{"$f":"IF($B101=\"N\",\"\",IF(LEN('Enrollment Form'!$Y108)=0,\"\",IF(LEN('Enrollment Form'!$Y108)<>5,\"N\",\"Y\")))","v":""},{"$f":"IF($B101=\"N\",\"\",IF(LEN('Enrollment Form'!$AD108=0),\"\",IF(LEN('Enrollment Form'!$AD108)<>5,\"N\",\"Y\")))","v":""},{"$f":"IF($B101=\"N\",\"\",IF(LEN('Enrollment Form'!$BS108=0),\"\",IF(LEN('Enrollment Form'!$BS108)<>5,\"N\",\"Y\")))","v":""},{"$f":"IF($B101=\"N\",\"\",IF(LEN('Enrollment Form'!$AE108)=0,\"\",IF(LEN('Enrollment Form'!$AE108)<>10,\"N\",\"Y\")))","v":""},{"$f":"IF($B101=\"N\",\"\",IF(LEN('Enrollment Form'!$AF108)=0,\"\",IF(LEN('Enrollment Form'!$AF108)<>10,\"N\",\"Y\")))","v":""},{"$f":"IF('Enrollment Form'!$O108<>\"Graded\",\"-\",IF(AND('Enrollment Form'!$O108=\"Graded\",'Enrollment Form'!$AR108<>\"\"),\"Y\",\"N\"))","v":"-"},{"$f":"IF($B101=\"N\",\"\",IF(OR('Enrollment Form'!$B108<>\"Subscriber\",'Enrollment Form'!$C108=\"ROC\"),\"-\",IF(AND('Enrollment Form'!$B108=\"Subscriber\",'Enrollment Form'!$C108=\"Enroll\",'Enrollment Form'!$AJ108<>\"\"),\"Y\",\"N\")))","v":""},{"$f":"IF($B101=\"N\",\"\",IF(OR('Enrollment Form'!$B108<>\"Subscriber\",'Enrollment Form'!$C108=\"ROC\"),\"-\",IF(AND('Enrollment Form'!$B108=\"Subscriber\",'Enrollment Form'!$C108=\"Enroll\",'Enrollment Form'!$AK108<>\"\"),\"Y\",\"N\")))","v":""},{"$f":"IF($B101=\"N\",\"\",IF(OR('Enrollment Form'!$B108<>\"Subscriber\",'Enrollment Form'!$C108=\"ROC\"),\"-\",IF(AND('Enrollment Form'!$B108=\"Subscriber\",'Enrollment Form'!$C108=\"Enroll\",'Enrollment Form'!$AL108<>\"\"),\"Y\",\"N\")))","v":""},{"$f":"IF($B101=\"N\",\"\",IF(OR('Enrollment Form'!$B108<>\"Subscriber\",'Enrollment Form'!$C108=\"ROC\"),\"-\",IF(AND('Enrollment Form'!$B108=\"Subscriber\",'Enrollment Form'!$C108=\"Enroll\",'Enrollment Form'!$AP108<>\"\"),\"Y\",\"N\")))","v":""},{"$f":"IF($B101=\"N\",\"\",IF(OR('Enrollment Form'!$B108<>\"Subscriber\",'Enrollment Form'!$C108=\"ROC\"),\"-\",IF(AND('Enrollment Form'!$B108=\"Subscriber\",'Enrollment Form'!$C108=\"Enroll\",'Enrollment Form'!$AQ108<>\"\"),\"Y\",\"N\")))","v":""},{"$f":"IF($B101=\"N\",\"\",IF(OR('Enrollment Form'!$B108<>\"Subscriber\",'Enrollment Form'!$C108=\"ROC\"),\"-\",IF(AND('Enrollment Form'!$B108=\"Subscriber\",'Enrollment Form'!$C108=\"Enroll\",'Enrollment Form'!$AS108<>\"\"),\"Y\",\"N\")))","v":""},{"$f":"IF($B101=\"N\",\"\",IF($Q101=\"-\",\"-\",IF(AND($Q101=\"Y\",'Enrollment Form'!$AS108=\"No\"),\"-\",IF(AND($Q101=\"Y\",'Enrollment Form'!$AS108=\"Yes\",'Enrollment Form'!$AT108<>\"\"),\"Y\",\"N\"))))","v":""},{"$f":"IF($B101=\"N\",\"\",IF(OR('Enrollment Form'!$B108<>\"Subscriber\",'Enrollment Form'!$C108=\"ROC\"),\"-\",IF(AND('Enrollment Form'!$B108=\"Subscriber\",'Enrollment Form'!$C108=\"Enroll\",'Enrollment Form'!$CV108<>\"\"),\"Y\",\"N\")))","v":""},{"$f":"IF($B101=\"N\",\"\",IF($S101=\"-\",\"-\",IF(AND($S101=\"Y\",'Enrollment Form'!$CV108=\"No\"),\"-\",IF(AND($S101=\"Y\",'Enrollment Form'!$CV108=\"Yes\",'Enrollment Form'!$CW108<>\"\"),\"Y\",\"N\"))))","v":""},{"$f":"IF(OR('Enrollment Form'!$AY108=\"Yes\",'Enrollment Form'!$AY108=\"\"),\"-\",IF(OR(AND('Enrollment Form'!$AY108=\"No\",ISERROR(FIND(\"HMO\",VLOOKUP('Enrollment Form'!G108,'Enrollment Form'!H$11:J$1000,3,FALSE),1))=FALSE,COUNTA('Enrollment Form'!$AZ108:$BC108)=4),AND('Enrollment Form'!$AY108=\"No\",ISERROR(FIND(\"HMO\",VLOOKUP('Enrollment Form'!G108,'Enrollment Form'!H$11:J$1000,3,FALSE),1))=FALSE,COUNTA('Enrollment Form'!$BT108:$BW108)=4)),\"Y\",\"N\"))","v":"-"},{"$f":"IF($B101=\"N\",\"\",IF('Enrollment Form'!$B108=\"Subscriber\",\"-\",IF(COUNTA('Enrollment Form'!$BL108,'Enrollment Form'!$BN108)=2,\"Y\",\"N\")))","v":""},{"$f":"IF($B101=\"N\",\"\",IF(OR('Enrollment Form'!$AX108=\"\",'Enrollment Form'!$AX108=\"No\"),\"-\",IF(AND('Enrollment Form'!$AX108=\"Yes\",COUNTA('Enrollment Form'!$CR108)=1),\"Y\",\"N\")))","v":""},{"$f":"IF(OR('Enrollment Form'!$CR108=\"\",'Enrollment Form'!$CR108=\"No\"),\"-\",IF(COUNTA('Enrollment Form'!$CT108:$CU108)=2,\"Y\",\"N\"))","v":"-"},{"$f":"IF($B101=\"N\",\"\",IF(COUNTIF('Enrollment Form'!$DG108:$DP108,\"Other\")=COUNTA('Enrollment Form'!$DK108,'Enrollment Form'!$DH108,'Enrollment Form'!$DN108,'Enrollment Form'!$DQ108),\"Y\",\"N\"))","v":""},{"$f":"IF($B101=\"N\",\"\",IF(OR('Enrollment Form'!B108<>\"Subscriber\",'Enrollment Form'!C108=\"ROC\",COUNTIF('Enrollment Form'!AV108:AW108,\"Yes\")>=1),\"-\",IF(AND('Enrollment Form'!C108=\"Enroll\",COUNTIF('Enrollment Form'!AV108:AW108,\"No\")=2,'Enrollment Form'!AX108=\"\"),\"N\",\"Y\")))","v":""},{"$f":"IF(OR(B101=\"N\",'Enrollment Form'!B108<>\"Subscriber\",'Enrollment Form'!C108=\"ROC\",'Enrollment Form'!O108<>\"Multiple of Salary\"),\"-\",IF(COUNTA('Enrollment Form'!T108:U108)<2,\"N\",\"Y\"))","v":"-"},{"$f":"IF(B101=\"N\",\"\",IF(OR('Enrollment Form'!C108=\"ROC\",'Enrollment Form'!B108<>\"Subscriber\",'Enrollment Form'!O108=\"Waive\",'Enrollment Form'!O108=\"\"),\"-\",IF('Enrollment Form'!P108=\"\",\"N\",\"Y\")))","v":""},{"$f":"IF($B101=\"N\",\"\",IF(AND('Enrollment Form'!$C108=\"ROC\",'Enrollment Form'!$DR108<>\"\"),\"Y\",IF(AND('Enrollment Form'!$C108=\"ROC\",'Enrollment Form'!$DR108=\"\"),\"N\",IF(AND('Enrollment Form'!$C108=\"Enroll\",'Enrollment Form'!$B108=\"Subscriber\",'Enrollment Form'!$CX108=\"No\",'Enrollment Form'!$DR108=\"\"),\"N\",IF(AND('Enrollment Form'!$C108=\"Enroll\",'Enrollment Form'!$B108=\"Subscriber\",'Enrollment Form'!$CX108=\"Yes\"),\"-\",\"Y\")))))","v":""},{"$f":"IF($B101=\"N\",\"\",IF(AND('Enrollment Form'!$C108=\"ROC\",'Enrollment Form'!$DS108<>\"\"),\"Y\",IF(AND('Enrollment Form'!$C108=\"ROC\",'Enrollment Form'!$DS108=\"\"),\"N\",IF(AND('Enrollment Form'!$C108=\"Enroll\",'Enrollment Form'!$B108=\"Subscriber\",'Enrollment Form'!$CX108=\"No\",'Enrollment Form'!$DS108=\"\"),\"N\",IF(AND('Enrollment Form'!$C108=\"Enroll\",'Enrollment Form'!$B108=\"Subscriber\",'Enrollment Form'!$CX108=\"Yes\"),\"-\",\"Y\")))))","v":""},{"$f":"IF('Enrollment Form'!AH108=\"\",\"\",IF(ISERROR(SEARCH(\".\",'Enrollment Form'!AH108,SEARCH(\"@\",'Enrollment Form'!AH108))),\"N\",\"Y\"))","v":""},{"$f":"IF(OR($B101=\"N\",'Enrollment Form'!$G108=\"\"),\"\",IF('Enrollment Form'!$B108<>\"Subscriber\",\"-\",IF(COUNTIF('Enrollment Form'!$AV108:$AW108,\"Yes\")=2,\"N\",\"Y\")))","v":""},{"$f":"IF(OR('Enrollment Form'!$CJ108=\"\",'Enrollment Form'!$CJ108=\"No\"),\"-\",IF(AND('Enrollment Form'!$CJ108=\"Yes\",'Enrollment Form'!$CK108=\"\"),\"N\",\"Y\"))","v":"-"},{"$f":"IF(OR('Enrollment Form'!$CL108=\"\",'Enrollment Form'!$CL108=\"No\"),\"-\",IF(AND('Enrollment Form'!$CL108=\"Yes\",'Enrollment Form'!$CM108=\"\"),\"N\",\"Y\"))","v":"-"},{"$f":"IF(OR('Enrollment Form'!$CN108=\"\",'Enrollment Form'!$CN108=\"No\"),\"-\",IF(AND('Enrollment Form'!$CN108=\"Yes\",'Enrollment Form'!$CO108=\"\"),\"N\",\"Y\"))","v":"-"},{"$f":"IF(OR('Enrollment Form'!$CN108=\"\",'Enrollment Form'!$CN108=\"No\"),\"-\",IF(AND('Enrollment Form'!$CN108=\"Yes\",'Enrollment Form'!$CP108=\"\"),\"N\",\"Y\"))","v":"-"},{"$f":"IF('Enrollment Form'!B108<>\"Subscriber\",\"-\",IF(AND('Enrollment Form'!B108=\"Subscriber\",'Enrollment Form'!C108=\"Enroll\",'Enrollment Form'!AA108=\"\"),\"N\",\"Y\"))","v":"-"},{"$f":"IF(OR('Enrollment Form'!B108=\"Subscriber\",'Enrollment Form'!B108=\"\"),\"-\",IF('Enrollment Form'!BP108=\"\",\"N\",\"Y\"))","v":"-"},{"$f":"IF('Enrollment Form'!B108<>\"Subscriber\",\"-\",IF(AND('Enrollment Form'!B108=\"Subscriber\",'Enrollment Form'!G108=\"\"),\"N\",\"Y\"))","v":"-"},{"$f":"IF('Enrollment Form'!A108=\"\",\"\",IF('Enrollment Form'!B108=\"Subscriber\",\"-\",IF(AND('Enrollment Form'!B108<>\"Subscriber\",'Enrollment Form'!G108='Enrollment Form'!H108),\"N\",\"Y\")))","v":""},0]
[109,{"$f":"IF('Enrollment Form'!$A109<>\"\",\"Y\",\"N\")","v":"N"},{"$f":"IF(AND('Enrollment Form'!$B109=\"\",'Enrollment Form'!$C109<>\"\"),\"N\",IF($B102=\"N\",\"\",\"Y\"))","v":""},{"$f":"IF(OR($B102=\"N\",'Enrollment Form'!G109=\"\"),\"\",IF('Enrollment Form'!$B109<>\"Subscriber\",\"\",IF('Enrollment Form'!$G109='Enrollment Form'!$H109,\"Y\",\"N\")))","v":""},{"$f":"IF($B102=\"N\",\"\",IF(AND(COUNTIFS('Enrollment Form'!$H$11:$H$1000,'Enrollment Form'!$H109,'Enrollment Form'!$B$11:$B$1000,'Enrollment Form'!$B109)>1,'Enrollment Form'!$H109<>\"\"),\"N\",\"Y\"))","v":""},{"$f":"IF($B102=\"N\",\"\",IF(LEN('Enrollment Form'!$Y109)=0,\"\",IF(LEN('Enrollment Form'!$Y109)<>5,\"N\",\"Y\")))","v":""},{"$f":"IF($B102=\"N\",\"\",IF(LEN('Enrollment Form'!$AD109=0),\"\",IF(LEN('Enrollment Form'!$AD109)<>5,\"N\",\"Y\")))","v":""},{"$f":"IF($B102=\"N\",\"\",IF(LEN('Enrollment Form'!$BS109=0),\"\",IF(LEN('Enrollment Form'!$BS109)<>5,\"N\",\"Y\")))","v":""},{"$f":"IF($B102=\"N\",\"\",IF(LEN('Enrollment Form'!$AE109)=0,\"\",IF(LEN('Enrollment Form'!$AE109)<>10,\"N\",\"Y\")))","v":""},{"$f":"IF($B102=\"N\",\"\",IF(LEN('Enrollment Form'!$AF109)=0,\"\",IF(LEN('Enrollment Form'!$AF109)<>10,\"N\",\"Y\")))","v":""},{"$f":"IF('Enrollment Form'!$O109<>\"Graded\",\"-\",IF(AND('Enrollment Form'!$O109=\"Graded\",'Enrollment Form'!$AR109<>\"\"),\"Y\",\"N\"))","v":"-"},{"$f":"IF($B102=\"N\",\"\",IF(OR('Enrollment Form'!$B109<>\"Subscriber\",'Enrollment Form'!$C109=\"ROC\"),\"-\",IF(AND('Enrollment Form'!$B109=\"Subscriber\",'Enrollment Form'!$C109=\"Enroll\",'Enrollment Form'!$AJ109<>\"\"),\"Y\",\"N\")))","v":""},{"$f":"IF($B102=\"N\",\"\",IF(OR('Enrollment Form'!$B109<>\"Subscriber\",'Enrollment Form'!$C109=\"ROC\"),\"-\",IF(AND('Enrollment Form'!$B109=\"Subscriber\",'Enrollment Form'!$C109=\"Enroll\",'Enrollment Form'!$AK109<>\"\"),\"Y\",\"N\")))","v":""},{"$f":"IF($B102=\"N\",\"\",IF(OR('Enrollment Form'!$B109<>\"Subscriber\",'Enrollment Form'!$C109=\"ROC\"),\"-\",IF(AND('Enrollment Form'!$B109=\"Subscriber\",'Enrollment Form'!$C109=\"Enroll\",'Enrollment Form'!$AL109<>\"\"),\"Y\",\"N\")))","v":""},{"$f":"IF($B102=\"N\",\"\",IF(OR('Enrollment Form'!$B109<>\"Subscriber\",'Enrollment Form'!$C109=\"ROC\"),\"-\",IF(AND('Enrollment Form'!$B109=\"Subscriber\",'Enrollment Form'!$C109=\"Enroll\",'Enrollment Form'!$AP109<>\"\"),\"Y\",\"N\")))","v":""},{"$f":"IF($B102=\"N\",\"\",IF(OR('Enrollment Form'!$B109<>\"Subscriber\",'Enrollment Form'!$C109=\"ROC\"),\"-\",IF(AND('Enrollment Form'!$B109=\"Subscriber\",'Enrollment Form'!$C109=\"Enroll\",'Enrollment Form'!$AQ109<>\"\"),\"Y\",\"N\")))","v":""},{"$f":"IF($B102=\"N\",\"\",IF(OR('Enrollment Form'!$B109<>\"Subscriber\",'Enrollment Form'!$C109=\"ROC\"),\"-\",IF(AND('Enrollment Form'!$B109=\"Subscriber\",'Enrollment Form'!$C109=\"Enroll\",'Enrollment Form'!$AS109<>\"\"),\"Y\",\"N\")))","v":""},{"$f":"IF($B102=\"N\",\"\",IF($Q102=\"-\",\"-\",IF(AND($Q102=\"Y\",'Enrollment Form'!$AS109=\"No\"),\"-\",IF(AND($Q102=\"Y\",'Enrollment Form'!$AS109=\"Yes\",'Enrollment Form'!$AT109<>\"\"),\"Y\",\"N\"))))","v":""},{"$f":"IF($B102=\"N\",\"\",IF(OR('Enrollment Form'!$B109<>\"Subscriber\",'Enrollment Form'!$C109=\"ROC\"),\"-\",IF(AND('Enrollment Form'!$B109=\"Subscriber\",'Enrollment Form'!$C109=\"Enroll\",'Enrollment Form'!$CV109<>\"\"),\"Y\",\"N\")))","v":""},{"$f":"IF($B102=\"N\",\"\",IF($S102=\"-\",\"-\",IF(AND($S102=\"Y\",'Enrollment Form'!$CV109=\"No\"),\"-\",IF(AND($S102=\"Y\",'Enrollment Form'!$CV109=\"Yes\",'Enrollment Form'!$CW109<>\"\"),\"Y\",\"N\"))))","v":""},{"$f":"IF(OR('Enrollment Form'!$AY109=\"Yes\",'Enrollment Form'!$AY109=\"\"),\"-\",IF(OR(AND('Enrollment Form'!$AY109=\"No\",ISERROR(FIND(\"HMO\",VLOOKUP('Enrollment Form'!G109,'Enrollment Form'!H$11:J$1000,3,FALSE),1))=FALSE,COUNTA('Enrollment Form'!$AZ109:$BC109)=4),AND('Enrollment Form'!$AY109=\"No\",ISERROR(FIND(\"HMO\",VLOOKUP('Enrollment Form'!G109,'Enrollment Form'!H$11:J$1000,3,FALSE),1))=FALSE,COUNTA('Enrollment Form'!$BT109:$BW109)=4)),\"Y\",\"N\"))","v":"-"},{"$f":"IF($B102=\"N\",\"\",IF('Enrollment Form'!$B109=\"Subscriber\",\"-\",IF(COUNTA('Enrollment Form'!$BL109,'Enrollment Form'!$BN109)=2,\"Y\",\"N\")))","v":""},{"$f":"IF($B102=\"N\",\"\",IF(OR('Enrollment Form'!$AX109=\"\",'Enrollment Form'!$AX109=\"No\"),\"-\",IF(AND('Enrollment Form'!$AX109=\"Yes\",COUNTA('Enrollment Form'!$CR109)=1),\"Y\",\"N\")))","v":""},{"$f":"IF(OR('Enrollment Form'!$CR109=\"\",'Enrollment Form'!$CR109=\"No\"),\"-\",IF(COUNTA('Enrollment Form'!$CT109:$CU109)=2,\"Y\",\"N\"))","v":"-"},{"$f":"IF($B102=\"N\",\"\",IF(COUNTIF('Enrollment Form'!$DG109:$DP109,\"Other\")=COUNTA('Enrollment Form'!$DK109,'Enrollment Form'!$DH109,'Enrollment Form'!$DN109,'Enrollment Form'!$DQ109),\"Y\",\"N\"))","v":""},{"$f":"IF($B102=\"N\",\"\",IF(OR('Enrollment Form'!B109<>\"Subscriber\",'Enrollment Form'!C109=\"ROC\",COUNTIF('Enrollment Form'!AV109:AW109,\"Yes\")>=1),\"-\",IF(AND('Enrollment Form'!C109=\"Enroll\",COUNTIF('Enrollment Form'!AV109:AW109,\"No\")=2,'Enrollment Form'!AX109=\"\"),\"N\",\"Y\")))","v":""},{"$f":"IF(OR(B102=\"N\",'Enrollment Form'!B109<>\"Subscriber\",'Enrollment Form'!C109=\"ROC\",'Enrollment Form'!O109<>\"Multiple of Salary\"),\"-\",IF(COUNTA('Enrollment Form'!T109:U109)<2,\"N\",\"Y\"))","v":"-"},{"$f":"IF(B102=\"N\",\"\",IF(OR('Enrollment Form'!C109=\"ROC\",'Enrollment Form'!B109<>\"Subscriber\",'Enrollment Form'!O109=\"Waive\",'Enrollment Form'!O109=\"\"),\"-\",IF('Enrollment Form'!P109=\"\",\"N\",\"Y\")))","v":""},{"$f":"IF($B102=\"N\",\"\",IF(AND('Enrollment Form'!$C109=\"ROC\",'Enrollment Form'!$DR109<>\"\"),\"Y\",IF(AND('Enrollment Form'!$C109=\"ROC\",'Enrollment Form'!$DR109=\"\"),\"N\",IF(AND('Enrollment Form'!$C109=\"Enroll\",'Enrollment Form'!$B109=\"Subscriber\",'Enrollment Form'!$CX109=\"No\",'Enrollment Form'!$DR109=\"\"),\"N\",IF(AND('Enrollment Form'!$C109=\"Enroll\",'Enrollment Form'!$B109=\"Subscriber\",'Enrollment Form'!$CX109=\"Yes\"),\"-\",\"Y\")))))","v":""},{"$f":"IF($B102=\"N\",\"\",IF(AND('Enrollment Form'!$C109=\"ROC\",'Enrollment Form'!$DS109<>\"\"),\"Y\",IF(AND('Enrollment Form'!$C109=\"ROC\",'Enrollment Form'!$DS109=\"\"),\"N\",IF(AND('Enrollment Form'!$C109=\"Enroll\",'Enrollment Form'!$B109=\"Subscriber\",'Enrollment Form'!$CX109=\"No\",'Enrollment Form'!$DS109=\"\"),\"N\",IF(AND('Enrollment Form'!$C109=\"Enroll\",'Enrollment Form'!$B109=\"Subscriber\",'Enrollment Form'!$CX109=\"Yes\"),\"-\",\"Y\")))))","v":""},{"$f":"IF('Enrollment Form'!AH109=\"\",\"\",IF(ISERROR(SEARCH(\".\",'Enrollment Form'!AH109,SEARCH(\"@\",'Enrollment Form'!AH109))),\"N\",\"Y\"))","v":""},{"$f":"IF(OR($B102=\"N\",'Enrollment Form'!$G109=\"\"),\"\",IF('Enrollment Form'!$B109<>\"Subscriber\",\"-\",IF(COUNTIF('Enrollment Form'!$AV109:$AW109,\"Yes\")=2,\"N\",\"Y\")))","v":""},{"$f":"IF(OR('Enrollment Form'!$CJ109=\"\",'Enrollment Form'!$CJ109=\"No\"),\"-\",IF(AND('Enrollment Form'!$CJ109=\"Yes\",'Enrollment Form'!$CK109=\"\"),\"N\",\"Y\"))","v":"-"},{"$f":"IF(OR('Enrollment Form'!$CL109=\"\",'Enrollment Form'!$CL109=\"No\"),\"-\",IF(AND('Enrollment Form'!$CL109=\"Yes\",'Enrollment Form'!$CM109=\"\"),\"N\",\"Y\"))","v":"-"},{"$f":"IF(OR('Enrollment Form'!$CN109=\"\",'Enrollment Form'!$CN109=\"No\"),\"-\",IF(AND('Enrollment Form'!$CN109=\"Yes\",'Enrollment Form'!$CO109=\"\"),\"N\",\"Y\"))","v":"-"},{"$f":"IF(OR('Enrollment Form'!$CN109=\"\",'Enrollment Form'!$CN109=\"No\"),\"-\",IF(AND('Enrollment Form'!$CN109=\"Yes\",'Enrollment Form'!$CP109=\"\"),\"N\",\"Y\"))","v":"-"},{"$f":"IF('Enrollment Form'!B109<>\"Subscriber\",\"-\",IF(AND('Enrollment Form'!B109=\"Subscriber\",'Enrollment Form'!C109=\"Enroll\",'Enrollment Form'!AA109=\"\"),\"N\",\"Y\"))","v":"-"},{"$f":"IF(OR('Enrollment Form'!B109=\"Subscriber\",'Enrollment Form'!B109=\"\"),\"-\",IF('Enrollment Form'!BP109=\"\",\"N\",\"Y\"))","v":"-"},{"$f":"IF('Enrollment Form'!B109<>\"Subscriber\",\"-\",IF(AND('Enrollment Form'!B109=\"Subscriber\",'Enrollment Form'!G109=\"\"),\"N\",\"Y\"))","v":"-"},{"$f":"IF('Enrollment Form'!A109=\"\",\"\",IF('Enrollment Form'!B109=\"Subscriber\",\"-\",IF(AND('Enrollment Form'!B109<>\"Subscriber\",'Enrollment Form'!G109='Enrollment Form'!H109),\"N\",\"Y\")))","v":""},0]
[110,{"$f":"IF('Enrollment Form'!$A110<>\"\",\"Y\",\"N\")","v":"N"},{"$f":"IF(AND('Enrollment Form'!$B110=\"\",'Enrollment Form'!$C110<>\"\"),\"N\",IF($B103=\"N\",\"\",\"Y\"))","v":""},{"$f":"IF(OR($B103=\"N\",'Enrollment Form'!G110=\"\"),\"\",IF('Enrollment Form'!$B110<>\"Subscriber\",\"\",IF('Enrollment Form'!$G110='Enrollment Form'!$H110,\"Y\",\"N\")))","v":""},{"$f":"IF($B103=\"N\",\"\",IF(AND(COUNTIFS('Enrollment Form'!$H$11:$H$1000,'Enrollment Form'!$H110,'Enrollment Form'!$B$11:$B$1000,'Enrollment Form'!$B110)>1,'Enrollment Form'!$H110<>\"\"),\"N\",\"Y\"))","v":""},{"$f":"IF($B103=\"N\",\"\",IF(LEN('Enrollment Form'!$Y110)=0,\"\",IF(LEN('Enrollment Form'!$Y110)<>5,\"N\",\"Y\")))","v":""},{"$f":"IF($B103=\"N\",\"\",IF(LEN('Enrollment Form'!$AD110=0),\"\",IF(LEN('Enrollment Form'!$AD110)<>5,\"N\",\"Y\")))","v":""},{"$f":"IF($B103=\"N\",\"\",IF(LEN('Enrollment Form'!$BS110=0),\"\",IF(LEN('Enrollment Form'!$BS110)<>5,\"N\",\"Y\")))","v":""},{"$f":"IF($B103=\"N\",\"\",IF(LEN('Enrollment Form'!$AE110)=0,\"\",IF(LEN('Enrollment Form'!$AE110)<>10,\"N\",\"Y\")))","v":""},{"$f":"IF($B103=\"N\",\"\",IF(LEN('Enrollment Form'!$AF110)=0,\"\",IF(LEN('Enrollment Form'!$AF110)<>10,\"N\",\"Y\")))","v":""},{"$f":"IF('Enrollment Form'!$O110<>\"Graded\",\"-\",IF(AND('Enrollment Form'!$O110=\"Graded\",'Enrollment Form'!$AR110<>\"\"),\"Y\",\"N\"))","v":"-"},{"$f":"IF($B103=\"N\",\"\",IF(OR('Enrollment Form'!$B110<>\"Subscriber\",'Enrollment Form'!$C110=\"ROC\"),\"-\",IF(AND('Enrollment Form'!$B110=\"Subscriber\",'Enrollment Form'!$C110=\"Enroll\",'Enrollment Form'!$AJ110<>\"\"),\"Y\",\"N\")))","v":""},{"$f":"IF($B103=\"N\",\"\",IF(OR('Enrollment Form'!$B110<>\"Subscriber\",'Enrollment Form'!$C110=\"ROC\"),\"-\",IF(AND('Enrollment Form'!$B110=\"Subscriber\",'Enrollment Form'!$C110=\"Enroll\",'Enrollment Form'!$AK110<>\"\"),\"Y\",\"N\")))","v":""},{"$f":"IF($B103=\"N\",\"\",IF(OR('Enrollment Form'!$B110<>\"Subscriber\",'Enrollment Form'!$C110=\"ROC\"),\"-\",IF(AND('Enrollment Form'!$B110=\"Subscriber\",'Enrollment Form'!$C110=\"Enroll\",'Enrollment Form'!$AL110<>\"\"),\"Y\",\"N\")))","v":""},{"$f":"IF($B103=\"N\",\"\",IF(OR('Enrollment Form'!$B110<>\"Subscriber\",'Enrollment Form'!$C110=\"ROC\"),\"-\",IF(AND('Enrollment Form'!$B110=\"Subscriber\",'Enrollment Form'!$C110=\"Enroll\",'Enrollment Form'!$AP110<>\"\"),\"Y\",\"N\")))","v":""},{"$f":"IF($B103=\"N\",\"\",IF(OR('Enrollment Form'!$B110<>\"Subscriber\",'Enrollment Form'!$C110=\"ROC\"),\"-\",IF(AND('Enrollment Form'!$B110=\"Subscriber\",'Enrollment Form'!$C110=\"Enroll\",'Enrollment Form'!$AQ110<>\"\"),\"Y\",\"N\")))","v":""},{"$f":"IF($B103=\"N\",\"\",IF(OR('Enrollment Form'!$B110<>\"Subscriber\",'Enrollment Form'!$C110=\"ROC\"),\"-\",IF(AND('Enrollment Form'!$B110=\"Subscriber\",'Enrollment Form'!$C110=\"Enroll\",'Enrollment Form'!$AS110<>\"\"),\"Y\",\"N\")))","v":""},{"$f":"IF($B103=\"N\",\"\",IF($Q103=\"-\",\"-\",IF(AND($Q103=\"Y\",'Enrollment Form'!$AS110=\"No\"),\"-\",IF(AND($Q103=\"Y\",'Enrollment Form'!$AS110=\"Yes\",'Enrollment Form'!$AT110<>\"\"),\"Y\",\"N\"))))","v":""},{"$f":"IF($B103=\"N\",\"\",IF(OR('Enrollment Form'!$B110<>\"Subscriber\",'Enrollment Form'!$C110=\"ROC\"),\"-\",IF(AND('Enrollment Form'!$B110=\"Subscriber\",'Enrollment Form'!$C110=\"Enroll\",'Enrollment Form'!$CV110<>\"\"),\"Y\",\"N\")))","v":""},{"$f":"IF($B103=\"N\",\"\",IF($S103=\"-\",\"-\",IF(AND($S103=\"Y\",'Enrollment Form'!$CV110=\"No\"),\"-\",IF(AND($S103=\"Y\",'Enrollment Form'!$CV110=\"Yes\",'Enrollment Form'!$CW110<>\"\"),\"Y\",\"N\"))))","v":""},{"$f":"IF(OR('Enrollment Form'!$AY110=\"Yes\",'Enrollment Form'!$AY110=\"\"),\"-\",IF(OR(AND('Enrollment Form'!$AY110=\"No\",ISERROR(FIND(\"HMO\",VLOOKUP('Enrollment Form'!G110,'Enrollment Form'!H$11:J$1000,3,FALSE),1))=FALSE,COUNTA('Enrollment Form'!$AZ110:$BC110)=4),AND('Enrollment Form'!$AY110=\"No\",ISERROR(FIND(\"HMO\",VLOOKUP('Enrollment Form'!G110,'Enrollment Form'!H$11:J$1000,3,FALSE),1))=FALSE,COUNTA('Enrollment Form'!$BT110:$BW110)=4)),\"Y\",\"N\"))","v":"-"},{"$f":"IF($B103=\"N\",\"\",IF('Enrollment Form'!$B110=\"Subscriber\",\"-\",IF(COUNTA('Enrollment Form'!$BL110,'Enrollment Form'!$BN110)=2,\"Y\",\"N\")))","v":""},{"$f":"IF($B103=\"N\",\"\",IF(OR('Enrollment Form'!$AX110=\"\",'Enrollment Form'!$AX110=\"No\"),\"-\",IF(AND('Enrollment Form'!$AX110=\"Yes\",COUNTA('Enrollment Form'!$CR110)=1),\"Y\",\"N\")))","v":""},{"$f":"IF(OR('Enrollment Form'!$CR110=\"\",'Enrollment Form'!$CR110=\"No\"),\"-\",IF(COUNTA('Enrollment Form'!$CT110:$CU110)=2,\"Y\",\"N\"))","v":"-"},{"$f":"IF($B103=\"N\",\"\",IF(COUNTIF('Enrollment Form'!$DG110:$DP110,\"Other\")=COUNTA('Enrollment Form'!$DK110,'Enrollment Form'!$DH110,'Enrollment Form'!$DN110,'Enrollment Form'!$DQ110),\"Y\",\"N\"))","v":""},{"$f":"IF($B103=\"N\",\"\",IF(OR('Enrollment Form'!B110<>\"Subscriber\",'Enrollment Form'!C110=\"ROC\",COUNTIF('Enrollment Form'!AV110:AW110,\"Yes\")>=1),\"-\",IF(AND('Enrollment Form'!C110=\"Enroll\",COUNTIF('Enrollment Form'!AV110:AW110,\"No\")=2,'Enrollment Form'!AX110=\"\"),\"N\",\"Y\")))","v":""},{"$f":"IF(OR(B103=\"N\",'Enrollment Form'!B110<>\"Subscriber\",'Enrollment Form'!C110=\"ROC\",'Enrollment Form'!O110<>\"Multiple of Salary\"),\"-\",IF(COUNTA('Enrollment Form'!T110:U110)<2,\"N\",\"Y\"))","v":"-"},{"$f":"IF(B103=\"N\",\"\",IF(OR('Enrollment Form'!C110=\"ROC\",'Enrollment Form'!B110<>\"Subscriber\",'Enrollment Form'!O110=\"Waive\",'Enrollment Form'!O110=\"\"),\"-\",IF('Enrollment Form'!P110=\"\",\"N\",\"Y\")))","v":""},{"$f":"IF($B103=\"N\",\"\",IF(AND('Enrollment Form'!$C110=\"ROC\",'Enrollment Form'!$DR110<>\"\"),\"Y\",IF(AND('Enrollment Form'!$C110=\"ROC\",'Enrollment Form'!$DR110=\"\"),\"N\",IF(AND('Enrollment Form'!$C110=\"Enroll\",'Enrollment Form'!$B110=\"Subscriber\",'Enrollment Form'!$CX110=\"No\",'Enrollment Form'!$DR110=\"\"),\"N\",IF(AND('Enrollment Form'!$C110=\"Enroll\",'Enrollment Form'!$B110=\"Subscriber\",'Enrollment Form'!$CX110=\"Yes\"),\"-\",\"Y\")))))","v":""},{"$f":"IF($B103=\"N\",\"\",IF(AND('Enrollment Form'!$C110=\"ROC\",'Enrollment Form'!$DS110<>\"\"),\"Y\",IF(AND('Enrollment Form'!$C110=\"ROC\",'Enrollment Form'!$DS110=\"\"),\"N\",IF(AND('Enrollment Form'!$C110=\"Enroll\",'Enrollment Form'!$B110=\"Subscriber\",'Enrollment Form'!$CX110=\"No\",'Enrollment Form'!$DS110=\"\"),\"N\",IF(AND('Enrollment Form'!$C110=\"Enroll\",'Enrollment Form'!$B110=\"Subscriber\",'Enrollment Form'!$CX110=\"Yes\"),\"-\",\"Y\")))))","v":""},{"$f":"IF('Enrollment Form'!AH110=\"\",\"\",IF(ISERROR(SEARCH(\".\",'Enrollment Form'!AH110,SEARCH(\"@\",'Enrollment Form'!AH110))),\"N\",\"Y\"))","v":""},{"$f":"IF(OR($B103=\"N\",'Enrollment Form'!$G110=\"\"),\"\",IF('Enrollment Form'!$B110<>\"Subscriber\",\"-\",IF(COUNTIF('Enrollment Form'!$AV110:$AW110,\"Yes\")=2,\"N\",\"Y\")))","v":""},{"$f":"IF(OR('Enrollment Form'!$CJ110=\"\",'Enrollment Form'!$CJ110=\"No\"),\"-\",IF(AND('Enrollment Form'!$CJ110=\"Yes\",'Enrollment Form'!$CK110=\"\"),\"N\",\"Y\"))","v":"-"},{"$f":"IF(OR('Enrollment Form'!$CL110=\"\",'Enrollment Form'!$CL110=\"No\"),\"-\",IF(AND('Enrollment Form'!$CL110=\"Yes\",'Enrollment Form'!$CM110=\"\"),\"N\",\"Y\"))","v":"-"},{"$f":"IF(OR('Enrollment Form'!$CN110=\"\",'Enrollment Form'!$CN110=\"No\"),\"-\",IF(AND('Enrollment Form'!$CN110=\"Yes\",'Enrollment Form'!$CO110=\"\"),\"N\",\"Y\"))","v":"-"},{"$f":"IF(OR('Enrollment Form'!$CN110=\"\",'Enrollment Form'!$CN110=\"No\"),\"-\",IF(AND('Enrollment Form'!$CN110=\"Yes\",'Enrollment Form'!$CP110=\"\"),\"N\",\"Y\"))","v":"-"},{"$f":"IF('Enrollment Form'!B110<>\"Subscriber\",\"-\",IF(AND('Enrollment Form'!B110=\"Subscriber\",'Enrollment Form'!C110=\"Enroll\",'Enrollment Form'!AA110=\"\"),\"N\",\"Y\"))","v":"-"},{"$f":"IF(OR('Enrollment Form'!B110=\"Subscriber\",'Enrollment Form'!B110=\"\"),\"-\",IF('Enrollment Form'!BP110=\"\",\"N\",\"Y\"))","v":"-"},{"$f":"IF('Enrollment Form'!B110<>\"Subscriber\",\"-\",IF(AND('Enrollment Form'!B110=\"Subscriber\",'Enrollment Form'!G110=\"\"),\"N\",\"Y\"))","v":"-"},{"$f":"IF('Enrollment Form'!A110=\"\",\"\",IF('Enrollment Form'!B110=\"Subscriber\",\"-\",IF(AND('Enrollment Form'!B110<>\"Subscriber\",'Enrollment Form'!G110='Enrollment Form'!H110),\"N\",\"Y\")))","v":""},0]
[111,{"$f":"IF('Enrollment Form'!$A111<>\"\",\"Y\",\"N\")","v":"N"},{"$f":"IF(AND('Enrollment Form'!$B111=\"\",'Enrollment Form'!$C111<>\"\"),\"N\",IF($B104=\"N\",\"\",\"Y\"))","v":""},{"$f":"IF(OR($B104=\"N\",'Enrollment Form'!G111=\"\"),\"\",IF('Enrollment Form'!$B111<>\"Subscriber\",\"\",IF('Enrollment Form'!$G111='Enrollment Form'!$H111,\"Y\",\"N\")))","v":""},{"$f":"IF($B104=\"N\",\"\",IF(AND(COUNTIFS('Enrollment Form'!$H$11:$H$1000,'Enrollment Form'!$H111,'Enrollment Form'!$B$11:$B$1000,'Enrollment Form'!$B111)>1,'Enrollment Form'!$H111<>\"\"),\"N\",\"Y\"))","v":""},{"$f":"IF($B104=\"N\",\"\",IF(LEN('Enrollment Form'!$Y111)=0,\"\",IF(LEN('Enrollment Form'!$Y111)<>5,\"N\",\"Y\")))","v":""},{"$f":"IF($B104=\"N\",\"\",IF(LEN('Enrollment Form'!$AD111=0),\"\",IF(LEN('Enrollment Form'!$AD111)<>5,\"N\",\"Y\")))","v":""},{"$f":"IF($B104=\"N\",\"\",IF(LEN('Enrollment Form'!$BS111=0),\"\",IF(LEN('Enrollment Form'!$BS111)<>5,\"N\",\"Y\")))","v":""},{"$f":"IF($B104=\"N\",\"\",IF(LEN('Enrollment Form'!$AE111)=0,\"\",IF(LEN('Enrollment Form'!$AE111)<>10,\"N\",\"Y\")))","v":""},{"$f":"IF($B104=\"N\",\"\",IF(LEN('Enrollment Form'!$AF111)=0,\"\",IF(LEN('Enrollment Form'!$AF111)<>10,\"N\",\"Y\")))","v":""},{"$f":"IF('Enrollment Form'!$O111<>\"Graded\",\"-\",IF(AND('Enrollment Form'!$O111=\"Graded\",'Enrollment Form'!$AR111<>\"\"),\"Y\",\"N\"))","v":"-"},{"$f":"IF($B104=\"N\",\"\",IF(OR('Enrollment Form'!$B111<>\"Subscriber\",'Enrollment Form'!$C111=\"ROC\"),\"-\",IF(AND('Enrollment Form'!$B111=\"Subscriber\",'Enrollment Form'!$C111=\"Enroll\",'Enrollment Form'!$AJ111<>\"\"),\"Y\",\"N\")))","v":""},{"$f":"IF($B104=\"N\",\"\",IF(OR('Enrollment Form'!$B111<>\"Subscriber\",'Enrollment Form'!$C111=\"ROC\"),\"-\",IF(AND('Enrollment Form'!$B111=\"Subscriber\",'Enrollment Form'!$C111=\"Enroll\",'Enrollment Form'!$AK111<>\"\"),\"Y\",\"N\")))","v":""},{"$f":"IF($B104=\"N\",\"\",IF(OR('Enrollment Form'!$B111<>\"Subscriber\",'Enrollment Form'!$C111=\"ROC\"),\"-\",IF(AND('Enrollment Form'!$B111=\"Subscriber\",'Enrollment Form'!$C111=\"Enroll\",'Enrollment Form'!$AL111<>\"\"),\"Y\",\"N\")))","v":""},{"$f":"IF($B104=\"N\",\"\",IF(OR('Enrollment Form'!$B111<>\"Subscriber\",'Enrollment Form'!$C111=\"ROC\"),\"-\",IF(AND('Enrollment Form'!$B111=\"Subscriber\",'Enrollment Form'!$C111=\"Enroll\",'Enrollment Form'!$AP111<>\"\"),\"Y\",\"N\")))","v":""},{"$f":"IF($B104=\"N\",\"\",IF(OR('Enrollment Form'!$B111<>\"Subscriber\",'Enrollment Form'!$C111=\"ROC\"),\"-\",IF(AND('Enrollment Form'!$B111=\"Subscriber\",'Enrollment Form'!$C111=\"Enroll\",'Enrollment Form'!$AQ111<>\"\"),\"Y\",\"N\")))","v":""},{"$f":"IF($B104=\"N\",\"\",IF(OR('Enrollment Form'!$B111<>\"Subscriber\",'Enrollment Form'!$C111=\"ROC\"),\"-\",IF(AND('Enrollment Form'!$B111=\"Subscriber\",'Enrollment Form'!$C111=\"Enroll\",'Enrollment Form'!$AS111<>\"\"),\"Y\",\"N\")))","v":""},{"$f":"IF($B104=\"N\",\"\",IF($Q104=\"-\",\"-\",IF(AND($Q104=\"Y\",'Enrollment Form'!$AS111=\"No\"),\"-\",IF(AND($Q104=\"Y\",'Enrollment Form'!$AS111=\"Yes\",'Enrollment Form'!$AT111<>\"\"),\"Y\",\"N\"))))","v":""},{"$f":"IF($B104=\"N\",\"\",IF(OR('Enrollment Form'!$B111<>\"Subscriber\",'Enrollment Form'!$C111=\"ROC\"),\"-\",IF(AND('Enrollment Form'!$B111=\"Subscriber\",'Enrollment Form'!$C111=\"Enroll\",'Enrollment Form'!$CV111<>\"\"),\"Y\",\"N\")))","v":""},{"$f":"IF($B104=\"N\",\"\",IF($S104=\"-\",\"-\",IF(AND($S104=\"Y\",'Enrollment Form'!$CV111=\"No\"),\"-\",IF(AND($S104=\"Y\",'Enrollment Form'!$CV111=\"Yes\",'Enrollment Form'!$CW111<>\"\"),\"Y\",\"N\"))))","v":""},{"$f":"IF(OR('Enrollment Form'!$AY111=\"Yes\",'Enrollment Form'!$AY111=\"\"),\"-\",IF(OR(AND('Enrollment Form'!$AY111=\"No\",ISERROR(FIND(\"HMO\",VLOOKUP('Enrollment Form'!G111,'Enrollment Form'!H$11:J$1000,3,FALSE),1))=FALSE,COUNTA('Enrollment Form'!$AZ111:$BC111)=4),AND('Enrollment Form'!$AY111=\"No\",ISERROR(FIND(\"HMO\",VLOOKUP('Enrollment Form'!G111,'Enrollment Form'!H$11:J$1000,3,FALSE),1))=FALSE,COUNTA('Enrollment Form'!$BT111:$BW111)=4)),\"Y\",\"N\"))","v":"-"},{"$f":"IF($B104=\"N\",\"\",IF('Enrollment Form'!$B111=\"Subscriber\",\"-\",IF(COUNTA('Enrollment Form'!$BL111,'Enrollment Form'!$BN111)=2,\"Y\",\"N\")))","v":""},{"$f":"IF($B104=\"N\",\"\",IF(OR('Enrollment Form'!$AX111=\"\",'Enrollment Form'!$AX111=\"No\"),\"-\",IF(AND('Enrollment Form'!$AX111=\"Yes\",COUNTA('Enrollment Form'!$CR111)=1),\"Y\",\"N\")))","v":""},{"$f":"IF(OR('Enrollment Form'!$CR111=\"\",'Enrollment Form'!$CR111=\"No\"),\"-\",IF(COUNTA('Enrollment Form'!$CT111:$CU111)=2,\"Y\",\"N\"))","v":"-"},{"$f":"IF($B104=\"N\",\"\",IF(COUNTIF('Enrollment Form'!$DG111:$DP111,\"Other\")=COUNTA('Enrollment Form'!$DK111,'Enrollment Form'!$DH111,'Enrollment Form'!$DN111,'Enrollment Form'!$DQ111),\"Y\",\"N\"))","v":""},{"$f":"IF($B104=\"N\",\"\",IF(OR('Enrollment Form'!B111<>\"Subscriber\",'Enrollment Form'!C111=\"ROC\",COUNTIF('Enrollment Form'!AV111:AW111,\"Yes\")>=1),\"-\",IF(AND('Enrollment Form'!C111=\"Enroll\",COUNTIF('Enrollment Form'!AV111:AW111,\"No\")=2,'Enrollment Form'!AX111=\"\"),\"N\",\"Y\")))","v":""},{"$f":"IF(OR(B104=\"N\",'Enrollment Form'!B111<>\"Subscriber\",'Enrollment Form'!C111=\"ROC\",'Enrollment Form'!O111<>\"Multiple of Salary\"),\"-\",IF(COUNTA('Enrollment Form'!T111:U111)<2,\"N\",\"Y\"))","v":"-"},{"$f":"IF(B104=\"N\",\"\",IF(OR('Enrollment Form'!C111=\"ROC\",'Enrollment Form'!B111<>\"Subscriber\",'Enrollment Form'!O111=\"Waive\",'Enrollment Form'!O111=\"\"),\"-\",IF('Enrollment Form'!P111=\"\",\"N\",\"Y\")))","v":""},{"$f":"IF($B104=\"N\",\"\",IF(AND('Enrollment Form'!$C111=\"ROC\",'Enrollment Form'!$DR111<>\"\"),\"Y\",IF(AND('Enrollment Form'!$C111=\"ROC\",'Enrollment Form'!$DR111=\"\"),\"N\",IF(AND('Enrollment Form'!$C111=\"Enroll\",'Enrollment Form'!$B111=\"Subscriber\",'Enrollment Form'!$CX111=\"No\",'Enrollment Form'!$DR111=\"\"),\"N\",IF(AND('Enrollment Form'!$C111=\"Enroll\",'Enrollment Form'!$B111=\"Subscriber\",'Enrollment Form'!$CX111=\"Yes\"),\"-\",\"Y\")))))","v":""},{"$f":"IF($B104=\"N\",\"\",IF(AND('Enrollment Form'!$C111=\"ROC\",'Enrollment Form'!$DS111<>\"\"),\"Y\",IF(AND('Enrollment Form'!$C111=\"ROC\",'Enrollment Form'!$DS111=\"\"),\"N\",IF(AND('Enrollment Form'!$C111=\"Enroll\",'Enrollment Form'!$B111=\"Subscriber\",'Enrollment Form'!$CX111=\"No\",'Enrollment Form'!$DS111=\"\"),\"N\",IF(AND('Enrollment Form'!$C111=\"Enroll\",'Enrollment Form'!$B111=\"Subscriber\",'Enrollment Form'!$CX111=\"Yes\"),\"-\",\"Y\")))))","v":""},{"$f":"IF('Enrollment Form'!AH111=\"\",\"\",IF(ISERROR(SEARCH(\".\",'Enrollment Form'!AH111,SEARCH(\"@\",'Enrollment Form'!AH111))),\"N\",\"Y\"))","v":""},{"$f":"IF(OR($B104=\"N\",'Enrollment Form'!$G111=\"\"),\"\",IF('Enrollment Form'!$B111<>\"Subscriber\",\"-\",IF(COUNTIF('Enrollment Form'!$AV111:$AW111,\"Yes\")=2,\"N\",\"Y\")))","v":""},{"$f":"IF(OR('Enrollment Form'!$CJ111=\"\",'Enrollment Form'!$CJ111=\"No\"),\"-\",IF(AND('Enrollment Form'!$CJ111=\"Yes\",'Enrollment Form'!$CK111=\"\"),\"N\",\"Y\"))","v":"-"},{"$f":"IF(OR('Enrollment Form'!$CL111=\"\",'Enrollment Form'!$CL111=\"No\"),\"-\",IF(AND('Enrollment Form'!$CL111=\"Yes\",'Enrollment Form'!$CM111=\"\"),\"N\",\"Y\"))","v":"-"},{"$f":"IF(OR('Enrollment Form'!$CN111=\"\",'Enrollment Form'!$CN111=\"No\"),\"-\",IF(AND('Enrollment Form'!$CN111=\"Yes\",'Enrollment Form'!$CO111=\"\"),\"N\",\"Y\"))","v":"-"},{"$f":"IF(OR('Enrollment Form'!$CN111=\"\",'Enrollment Form'!$CN111=\"No\"),\"-\",IF(AND('Enrollment Form'!$CN111=\"Yes\",'Enrollment Form'!$CP111=\"\"),\"N\",\"Y\"))","v":"-"},{"$f":"IF('Enrollment Form'!B111<>\"Subscriber\",\"-\",IF(AND('Enrollment Form'!B111=\"Subscriber\",'Enrollment Form'!C111=\"Enroll\",'Enrollment Form'!AA111=\"\"),\"N\",\"Y\"))","v":"-"},{"$f":"IF(OR('Enrollment Form'!B111=\"Subscriber\",'Enrollment Form'!B111=\"\"),\"-\",IF('Enrollment Form'!BP111=\"\",\"N\",\"Y\"))","v":"-"},{"$f":"IF('Enrollment Form'!B111<>\"Subscriber\",\"-\",IF(AND('Enrollment Form'!B111=\"Subscriber\",'Enrollment Form'!G111=\"\"),\"N\",\"Y\"))","v":"-"},{"$f":"IF('Enrollment Form'!A111=\"\",\"\",IF('Enrollment Form'!B111=\"Subscriber\",\"-\",IF(AND('Enrollment Form'!B111<>\"Subscriber\",'Enrollment Form'!G111='Enrollment Form'!H111),\"N\",\"Y\")))","v":""},0]
[112,{"$f":"IF('Enrollment Form'!$A112<>\"\",\"Y\",\"N\")","v":"N"},{"$f":"IF(AND('Enrollment Form'!$B112=\"\",'Enrollment Form'!$C112<>\"\"),\"N\",IF($B105=\"N\",\"\",\"Y\"))","v":""},{"$f":"IF(OR($B105=\"N\",'Enrollment Form'!G112=\"\"),\"\",IF('Enrollment Form'!$B112<>\"Subscriber\",\"\",IF('Enrollment Form'!$G112='Enrollment Form'!$H112,\"Y\",\"N\")))","v":""},{"$f":"IF($B105=\"N\",\"\",IF(AND(COUNTIFS('Enrollment Form'!$H$11:$H$1000,'Enrollment Form'!$H112,'Enrollment Form'!$B$11:$B$1000,'Enrollment Form'!$B112)>1,'Enrollment Form'!$H112<>\"\"),\"N\",\"Y\"))","v":""},{"$f":"IF($B105=\"N\",\"\",IF(LEN('Enrollment Form'!$Y112)=0,\"\",IF(LEN('Enrollment Form'!$Y112)<>5,\"N\",\"Y\")))","v":""},{"$f":"IF($B105=\"N\",\"\",IF(LEN('Enrollment Form'!$AD112=0),\"\",IF(LEN('Enrollment Form'!$AD112)<>5,\"N\",\"Y\")))","v":""},{"$f":"IF($B105=\"N\",\"\",IF(LEN('Enrollment Form'!$BS112=0),\"\",IF(LEN('Enrollment Form'!$BS112)<>5,\"N\",\"Y\")))","v":""},{"$f":"IF($B105=\"N\",\"\",IF(LEN('Enrollment Form'!$AE112)=0,\"\",IF(LEN('Enrollment Form'!$AE112)<>10,\"N\",\"Y\")))","v":""},{"$f":"IF($B105=\"N\",\"\",IF(LEN('Enrollment Form'!$AF112)=0,\"\",IF(LEN('Enrollment Form'!$AF112)<>10,\"N\",\"Y\")))","v":""},{"$f":"IF('Enrollment Form'!$O112<>\"Graded\",\"-\",IF(AND('Enrollment Form'!$O112=\"Graded\",'Enrollment Form'!$AR112<>\"\"),\"Y\",\"N\"))","v":"-"},{"$f":"IF($B105=\"N\",\"\",IF(OR('Enrollment Form'!$B112<>\"Subscriber\",'Enrollment Form'!$C112=\"ROC\"),\"-\",IF(AND('Enrollment Form'!$B112=\"Subscriber\",'Enrollment Form'!$C112=\"Enroll\",'Enrollment Form'!$AJ112<>\"\"),\"Y\",\"N\")))","v":""},{"$f":"IF($B105=\"N\",\"\",IF(OR('Enrollment Form'!$B112<>\"Subscriber\",'Enrollment Form'!$C112=\"ROC\"),\"-\",IF(AND('Enrollment Form'!$B112=\"Subscriber\",'Enrollment Form'!$C112=\"Enroll\",'Enrollment Form'!$AK112<>\"\"),\"Y\",\"N\")))","v":""},{"$f":"IF($B105=\"N\",\"\",IF(OR('Enrollment Form'!$B112<>\"Subscriber\",'Enrollment Form'!$C112=\"ROC\"),\"-\",IF(AND('Enrollment Form'!$B112=\"Subscriber\",'Enrollment Form'!$C112=\"Enroll\",'Enrollment Form'!$AL112<>\"\"),\"Y\",\"N\")))","v":""},{"$f":"IF($B105=\"N\",\"\",IF(OR('Enrollment Form'!$B112<>\"Subscriber\",'Enrollment Form'!$C112=\"ROC\"),\"-\",IF(AND('Enrollment Form'!$B112=\"Subscriber\",'Enrollment Form'!$C112=\"Enroll\",'Enrollment Form'!$AP112<>\"\"),\"Y\",\"N\")))","v":""},{"$f":"IF($B105=\"N\",\"\",IF(OR('Enrollment Form'!$B112<>\"Subscriber\",'Enrollment Form'!$C112=\"ROC\"),\"-\",IF(AND('Enrollment Form'!$B112=\"Subscriber\",'Enrollment Form'!$C112=\"Enroll\",'Enrollment Form'!$AQ112<>\"\"),\"Y\",\"N\")))","v":""},{"$f":"IF($B105=\"N\",\"\",IF(OR('Enrollment Form'!$B112<>\"Subscriber\",'Enrollment Form'!$C112=\"ROC\"),\"-\",IF(AND('Enrollment Form'!$B112=\"Subscriber\",'Enrollment Form'!$C112=\"Enroll\",'Enrollment Form'!$AS112<>\"\"),\"Y\",\"N\")))","v":""},{"$f":"IF($B105=\"N\",\"\",IF($Q105=\"-\",\"-\",IF(AND($Q105=\"Y\",'Enrollment Form'!$AS112=\"No\"),\"-\",IF(AND($Q105=\"Y\",'Enrollment Form'!$AS112=\"Yes\",'Enrollment Form'!$AT112<>\"\"),\"Y\",\"N\"))))","v":""},{"$f":"IF($B105=\"N\",\"\",IF(OR('Enrollment Form'!$B112<>\"Subscriber\",'Enrollment Form'!$C112=\"ROC\"),\"-\",IF(AND('Enrollment Form'!$B112=\"Subscriber\",'Enrollment Form'!$C112=\"Enroll\",'Enrollment Form'!$CV112<>\"\"),\"Y\",\"N\")))","v":""},{"$f":"IF($B105=\"N\",\"\",IF($S105=\"-\",\"-\",IF(AND($S105=\"Y\",'Enrollment Form'!$CV112=\"No\"),\"-\",IF(AND($S105=\"Y\",'Enrollment Form'!$CV112=\"Yes\",'Enrollment Form'!$CW112<>\"\"),\"Y\",\"N\"))))","v":""},{"$f":"IF(OR('Enrollment Form'!$AY112=\"Yes\",'Enrollment Form'!$AY112=\"\"),\"-\",IF(OR(AND('Enrollment Form'!$AY112=\"No\",ISERROR(FIND(\"HMO\",VLOOKUP('Enrollment Form'!G112,'Enrollment Form'!H$11:J$1000,3,FALSE),1))=FALSE,COUNTA('Enrollment Form'!$AZ112:$BC112)=4),AND('Enrollment Form'!$AY112=\"No\",ISERROR(FIND(\"HMO\",VLOOKUP('Enrollment Form'!G112,'Enrollment Form'!H$11:J$1000,3,FALSE),1))=FALSE,COUNTA('Enrollment Form'!$BT112:$BW112)=4)),\"Y\",\"N\"))","v":"-"},{"$f":"IF($B105=\"N\",\"\",IF('Enrollment Form'!$B112=\"Subscriber\",\"-\",IF(COUNTA('Enrollment Form'!$BL112,'Enrollment Form'!$BN112)=2,\"Y\",\"N\")))","v":""},{"$f":"IF($B105=\"N\",\"\",IF(OR('Enrollment Form'!$AX112=\"\",'Enrollment Form'!$AX112=\"No\"),\"-\",IF(AND('Enrollment Form'!$AX112=\"Yes\",COUNTA('Enrollment Form'!$CR112)=1),\"Y\",\"N\")))","v":""},{"$f":"IF(OR('Enrollment Form'!$CR112=\"\",'Enrollment Form'!$CR112=\"No\"),\"-\",IF(COUNTA('Enrollment Form'!$CT112:$CU112)=2,\"Y\",\"N\"))","v":"-"},{"$f":"IF($B105=\"N\",\"\",IF(COUNTIF('Enrollment Form'!$DG112:$DP112,\"Other\")=COUNTA('Enrollment Form'!$DK112,'Enrollment Form'!$DH112,'Enrollment Form'!$DN112,'Enrollment Form'!$DQ112),\"Y\",\"N\"))","v":""},{"$f":"IF($B105=\"N\",\"\",IF(OR('Enrollment Form'!B112<>\"Subscriber\",'Enrollment Form'!C112=\"ROC\",COUNTIF('Enrollment Form'!AV112:AW112,\"Yes\")>=1),\"-\",IF(AND('Enrollment Form'!C112=\"Enroll\",COUNTIF('Enrollment Form'!AV112:AW112,\"No\")=2,'Enrollment Form'!AX112=\"\"),\"N\",\"Y\")))","v":""},{"$f":"IF(OR(B105=\"N\",'Enrollment Form'!B112<>\"Subscriber\",'Enrollment Form'!C112=\"ROC\",'Enrollment Form'!O112<>\"Multiple of Salary\"),\"-\",IF(COUNTA('Enrollment Form'!T112:U112)<2,\"N\",\"Y\"))","v":"-"},{"$f":"IF(B105=\"N\",\"\",IF(OR('Enrollment Form'!C112=\"ROC\",'Enrollment Form'!B112<>\"Subscriber\",'Enrollment Form'!O112=\"Waive\",'Enrollment Form'!O112=\"\"),\"-\",IF('Enrollment Form'!P112=\"\",\"N\",\"Y\")))","v":""},{"$f":"IF($B105=\"N\",\"\",IF(AND('Enrollment Form'!$C112=\"ROC\",'Enrollment Form'!$DR112<>\"\"),\"Y\",IF(AND('Enrollment Form'!$C112=\"ROC\",'Enrollment Form'!$DR112=\"\"),\"N\",IF(AND('Enrollment Form'!$C112=\"Enroll\",'Enrollment Form'!$B112=\"Subscriber\",'Enrollment Form'!$CX112=\"No\",'Enrollment Form'!$DR112=\"\"),\"N\",IF(AND('Enrollment Form'!$C112=\"Enroll\",'Enrollment Form'!$B112=\"Subscriber\",'Enrollment Form'!$CX112=\"Yes\"),\"-\",\"Y\")))))","v":""},{"$f":"IF($B105=\"N\",\"\",IF(AND('Enrollment Form'!$C112=\"ROC\",'Enrollment Form'!$DS112<>\"\"),\"Y\",IF(AND('Enrollment Form'!$C112=\"ROC\",'Enrollment Form'!$DS112=\"\"),\"N\",IF(AND('Enrollment Form'!$C112=\"Enroll\",'Enrollment Form'!$B112=\"Subscriber\",'Enrollment Form'!$CX112=\"No\",'Enrollment Form'!$DS112=\"\"),\"N\",IF(AND('Enrollment Form'!$C112=\"Enroll\",'Enrollment Form'!$B112=\"Subscriber\",'Enrollment Form'!$CX112=\"Yes\"),\"-\",\"Y\")))))","v":""},{"$f":"IF('Enrollment Form'!AH112=\"\",\"\",IF(ISERROR(SEARCH(\".\",'Enrollment Form'!AH112,SEARCH(\"@\",'Enrollment Form'!AH112))),\"N\",\"Y\"))","v":""},{"$f":"IF(OR($B105=\"N\",'Enrollment Form'!$G112=\"\"),\"\",IF('Enrollment Form'!$B112<>\"Subscriber\",\"-\",IF(COUNTIF('Enrollment Form'!$AV112:$AW112,\"Yes\")=2,\"N\",\"Y\")))","v":""},{"$f":"IF(OR('Enrollment Form'!$CJ112=\"\",'Enrollment Form'!$CJ112=\"No\"),\"-\",IF(AND('Enrollment Form'!$CJ112=\"Yes\",'Enrollment Form'!$CK112=\"\"),\"N\",\"Y\"))","v":"-"},{"$f":"IF(OR('Enrollment Form'!$CL112=\"\",'Enrollment Form'!$CL112=\"No\"),\"-\",IF(AND('Enrollment Form'!$CL112=\"Yes\",'Enrollment Form'!$CM112=\"\"),\"N\",\"Y\"))","v":"-"},{"$f":"IF(OR('Enrollment Form'!$CN112=\"\",'Enrollment Form'!$CN112=\"No\"),\"-\",IF(AND('Enrollment Form'!$CN112=\"Yes\",'Enrollment Form'!$CO112=\"\"),\"N\",\"Y\"))","v":"-"},{"$f":"IF(OR('Enrollment Form'!$CN112=\"\",'Enrollment Form'!$CN112=\"No\"),\"-\",IF(AND('Enrollment Form'!$CN112=\"Yes\",'Enrollment Form'!$CP112=\"\"),\"N\",\"Y\"))","v":"-"},{"$f":"IF('Enrollment Form'!B112<>\"Subscriber\",\"-\",IF(AND('Enrollment Form'!B112=\"Subscriber\",'Enrollment Form'!C112=\"Enroll\",'Enrollment Form'!AA112=\"\"),\"N\",\"Y\"))","v":"-"},{"$f":"IF(OR('Enrollment Form'!B112=\"Subscriber\",'Enrollment Form'!B112=\"\"),\"-\",IF('Enrollment Form'!BP112=\"\",\"N\",\"Y\"))","v":"-"},{"$f":"IF('Enrollment Form'!B112<>\"Subscriber\",\"-\",IF(AND('Enrollment Form'!B112=\"Subscriber\",'Enrollment Form'!G112=\"\"),\"N\",\"Y\"))","v":"-"},{"$f":"IF('Enrollment Form'!A112=\"\",\"\",IF('Enrollment Form'!B112=\"Subscriber\",\"-\",IF(AND('Enrollment Form'!B112<>\"Subscriber\",'Enrollment Form'!G112='Enrollment Form'!H112),\"N\",\"Y\")))","v":""},0]
[113,{"$f":"IF('Enrollment Form'!$A113<>\"\",\"Y\",\"N\")","v":"N"},{"$f":"IF(AND('Enrollment Form'!$B113=\"\",'Enrollment Form'!$C113<>\"\"),\"N\",IF($B106=\"N\",\"\",\"Y\"))","v":""},{"$f":"IF(OR($B106=\"N\",'Enrollment Form'!G113=\"\"),\"\",IF('Enrollment Form'!$B113<>\"Subscriber\",\"\",IF('Enrollment Form'!$G113='Enrollment Form'!$H113,\"Y\",\"N\")))","v":""},{"$f":"IF($B106=\"N\",\"\",IF(AND(COUNTIFS('Enrollment Form'!$H$11:$H$1000,'Enrollment Form'!$H113,'Enrollment Form'!$B$11:$B$1000,'Enrollment Form'!$B113)>1,'Enrollment Form'!$H113<>\"\"),\"N\",\"Y\"))","v":""},{"$f":"IF($B106=\"N\",\"\",IF(LEN('Enrollment Form'!$Y113)=0,\"\",IF(LEN('Enrollment Form'!$Y113)<>5,\"N\",\"Y\")))","v":""},{"$f":"IF($B106=\"N\",\"\",IF(LEN('Enrollment Form'!$AD113=0),\"\",IF(LEN('Enrollment Form'!$AD113)<>5,\"N\",\"Y\")))","v":""},{"$f":"IF($B106=\"N\",\"\",IF(LEN('Enrollment Form'!$BS113=0),\"\",IF(LEN('Enrollment Form'!$BS113)<>5,\"N\",\"Y\")))","v":""},{"$f":"IF($B106=\"N\",\"\",IF(LEN('Enrollment Form'!$AE113)=0,\"\",IF(LEN('Enrollment Form'!$AE113)<>10,\"N\",\"Y\")))","v":""},{"$f":"IF($B106=\"N\",\"\",IF(LEN('Enrollment Form'!$AF113)=0,\"\",IF(LEN('Enrollment Form'!$AF113)<>10,\"N\",\"Y\")))","v":""},{"$f":"IF('Enrollment Form'!$O113<>\"Graded\",\"-\",IF(AND('Enrollment Form'!$O113=\"Graded\",'Enrollment Form'!$AR113<>\"\"),\"Y\",\"N\"))","v":"-"},{"$f":"IF($B106=\"N\",\"\",IF(OR('Enrollment Form'!$B113<>\"Subscriber\",'Enrollment Form'!$C113=\"ROC\"),\"-\",IF(AND('Enrollment Form'!$B113=\"Subscriber\",'Enrollment Form'!$C113=\"Enroll\",'Enrollment Form'!$AJ113<>\"\"),\"Y\",\"N\")))","v":""},{"$f":"IF($B106=\"N\",\"\",IF(OR('Enrollment Form'!$B113<>\"Subscriber\",'Enrollment Form'!$C113=\"ROC\"),\"-\",IF(AND('Enrollment Form'!$B113=\"Subscriber\",'Enrollment Form'!$C113=\"Enroll\",'Enrollment Form'!$AK113<>\"\"),\"Y\",\"N\")))","v":""},{"$f":"IF($B106=\"N\",\"\",IF(OR('Enrollment Form'!$B113<>\"Subscriber\",'Enrollment Form'!$C113=\"ROC\"),\"-\",IF(AND('Enrollment Form'!$B113=\"Subscriber\",'Enrollment Form'!$C113=\"Enroll\",'Enrollment Form'!$AL113<>\"\"),\"Y\",\"N\")))","v":""},{"$f":"IF($B106=\"N\",\"\",IF(OR('Enrollment Form'!$B113<>\"Subscriber\",'Enrollment Form'!$C113=\"ROC\"),\"-\",IF(AND('Enrollment Form'!$B113=\"Subscriber\",'Enrollment Form'!$C113=\"Enroll\",'Enrollment Form'!$AP113<>\"\"),\"Y\",\"N\")))","v":""},{"$f":"IF($B106=\"N\",\"\",IF(OR('Enrollment Form'!$B113<>\"Subscriber\",'Enrollment Form'!$C113=\"ROC\"),\"-\",IF(AND('Enrollment Form'!$B113=\"Subscriber\",'Enrollment Form'!$C113=\"Enroll\",'Enrollment Form'!$AQ113<>\"\"),\"Y\",\"N\")))","v":""},{"$f":"IF($B106=\"N\",\"\",IF(OR('Enrollment Form'!$B113<>\"Subscriber\",'Enrollment Form'!$C113=\"ROC\"),\"-\",IF(AND('Enrollment Form'!$B113=\"Subscriber\",'Enrollment Form'!$C113=\"Enroll\",'Enrollment Form'!$AS113<>\"\"),\"Y\",\"N\")))","v":""},{"$f":"IF($B106=\"N\",\"\",IF($Q106=\"-\",\"-\",IF(AND($Q106=\"Y\",'Enrollment Form'!$AS113=\"No\"),\"-\",IF(AND($Q106=\"Y\",'Enrollment Form'!$AS113=\"Yes\",'Enrollment Form'!$AT113<>\"\"),\"Y\",\"N\"))))","v":""},{"$f":"IF($B106=\"N\",\"\",IF(OR('Enrollment Form'!$B113<>\"Subscriber\",'Enrollment Form'!$C113=\"ROC\"),\"-\",IF(AND('Enrollment Form'!$B113=\"Subscriber\",'Enrollment Form'!$C113=\"Enroll\",'Enrollment Form'!$CV113<>\"\"),\"Y\",\"N\")))","v":""},{"$f":"IF($B106=\"N\",\"\",IF($S106=\"-\",\"-\",IF(AND($S106=\"Y\",'Enrollment Form'!$CV113=\"No\"),\"-\",IF(AND($S106=\"Y\",'Enrollment Form'!$CV113=\"Yes\",'Enrollment Form'!$CW113<>\"\"),\"Y\",\"N\"))))","v":""},{"$f":"IF(OR('Enrollment Form'!$AY113=\"Yes\",'Enrollment Form'!$AY113=\"\"),\"-\",IF(OR(AND('Enrollment Form'!$AY113=\"No\",ISERROR(FIND(\"HMO\",VLOOKUP('Enrollment Form'!G113,'Enrollment Form'!H$11:J$1000,3,FALSE),1))=FALSE,COUNTA('Enrollment Form'!$AZ113:$BC113)=4),AND('Enrollment Form'!$AY113=\"No\",ISERROR(FIND(\"HMO\",VLOOKUP('Enrollment Form'!G113,'Enrollment Form'!H$11:J$1000,3,FALSE),1))=FALSE,COUNTA('Enrollment Form'!$BT113:$BW113)=4)),\"Y\",\"N\"))","v":"-"},{"$f":"IF($B106=\"N\",\"\",IF('Enrollment Form'!$B113=\"Subscriber\",\"-\",IF(COUNTA('Enrollment Form'!$BL113,'Enrollment Form'!$BN113)=2,\"Y\",\"N\")))","v":""},{"$f":"IF($B106=\"N\",\"\",IF(OR('Enrollment Form'!$AX113=\"\",'Enrollment Form'!$AX113=\"No\"),\"-\",IF(AND('Enrollment Form'!$AX113=\"Yes\",COUNTA('Enrollment Form'!$CR113)=1),\"Y\",\"N\")))","v":""},{"$f":"IF(OR('Enrollment Form'!$CR113=\"\",'Enrollment Form'!$CR113=\"No\"),\"-\",IF(COUNTA('Enrollment Form'!$CT113:$CU113)=2,\"Y\",\"N\"))","v":"-"},{"$f":"IF($B106=\"N\",\"\",IF(COUNTIF('Enrollment Form'!$DG113:$DP113,\"Other\")=COUNTA('Enrollment Form'!$DK113,'Enrollment Form'!$DH113,'Enrollment Form'!$DN113,'Enrollment Form'!$DQ113),\"Y\",\"N\"))","v":""},{"$f":"IF($B106=\"N\",\"\",IF(OR('Enrollment Form'!B113<>\"Subscriber\",'Enrollment Form'!C113=\"ROC\",COUNTIF('Enrollment Form'!AV113:AW113,\"Yes\")>=1),\"-\",IF(AND('Enrollment Form'!C113=\"Enroll\",COUNTIF('Enrollment Form'!AV113:AW113,\"No\")=2,'Enrollment Form'!AX113=\"\"),\"N\",\"Y\")))","v":""},{"$f":"IF(OR(B106=\"N\",'Enrollment Form'!B113<>\"Subscriber\",'Enrollment Form'!C113=\"ROC\",'Enrollment Form'!O113<>\"Multiple of Salary\"),\"-\",IF(COUNTA('Enrollment Form'!T113:U113)<2,\"N\",\"Y\"))","v":"-"},{"$f":"IF(B106=\"N\",\"\",IF(OR('Enrollment Form'!C113=\"ROC\",'Enrollment Form'!B113<>\"Subscriber\",'Enrollment Form'!O113=\"Waive\",'Enrollment Form'!O113=\"\"),\"-\",IF('Enrollment Form'!P113=\"\",\"N\",\"Y\")))","v":""},{"$f":"IF($B106=\"N\",\"\",IF(AND('Enrollment Form'!$C113=\"ROC\",'Enrollment Form'!$DR113<>\"\"),\"Y\",IF(AND('Enrollment Form'!$C113=\"ROC\",'Enrollment Form'!$DR113=\"\"),\"N\",IF(AND('Enrollment Form'!$C113=\"Enroll\",'Enrollment Form'!$B113=\"Subscriber\",'Enrollment Form'!$CX113=\"No\",'Enrollment Form'!$DR113=\"\"),\"N\",IF(AND('Enrollment Form'!$C113=\"Enroll\",'Enrollment Form'!$B113=\"Subscriber\",'Enrollment Form'!$CX113=\"Yes\"),\"-\",\"Y\")))))","v":""},{"$f":"IF($B106=\"N\",\"\",IF(AND('Enrollment Form'!$C113=\"ROC\",'Enrollment Form'!$DS113<>\"\"),\"Y\",IF(AND('Enrollment Form'!$C113=\"ROC\",'Enrollment Form'!$DS113=\"\"),\"N\",IF(AND('Enrollment Form'!$C113=\"Enroll\",'Enrollment Form'!$B113=\"Subscriber\",'Enrollment Form'!$CX113=\"No\",'Enrollment Form'!$DS113=\"\"),\"N\",IF(AND('Enrollment Form'!$C113=\"Enroll\",'Enrollment Form'!$B113=\"Subscriber\",'Enrollment Form'!$CX113=\"Yes\"),\"-\",\"Y\")))))","v":""},{"$f":"IF('Enrollment Form'!AH113=\"\",\"\",IF(ISERROR(SEARCH(\".\",'Enrollment Form'!AH113,SEARCH(\"@\",'Enrollment Form'!AH113))),\"N\",\"Y\"))","v":""},{"$f":"IF(OR($B106=\"N\",'Enrollment Form'!$G113=\"\"),\"\",IF('Enrollment Form'!$B113<>\"Subscriber\",\"-\",IF(COUNTIF('Enrollment Form'!$AV113:$AW113,\"Yes\")=2,\"N\",\"Y\")))","v":""},{"$f":"IF(OR('Enrollment Form'!$CJ113=\"\",'Enrollment Form'!$CJ113=\"No\"),\"-\",IF(AND('Enrollment Form'!$CJ113=\"Yes\",'Enrollment Form'!$CK113=\"\"),\"N\",\"Y\"))","v":"-"},{"$f":"IF(OR('Enrollment Form'!$CL113=\"\",'Enrollment Form'!$CL113=\"No\"),\"-\",IF(AND('Enrollment Form'!$CL113=\"Yes\",'Enrollment Form'!$CM113=\"\"),\"N\",\"Y\"))","v":"-"},{"$f":"IF(OR('Enrollment Form'!$CN113=\"\",'Enrollment Form'!$CN113=\"No\"),\"-\",IF(AND('Enrollment Form'!$CN113=\"Yes\",'Enrollment Form'!$CO113=\"\"),\"N\",\"Y\"))","v":"-"},{"$f":"IF(OR('Enrollment Form'!$CN113=\"\",'Enrollment Form'!$CN113=\"No\"),\"-\",IF(AND('Enrollment Form'!$CN113=\"Yes\",'Enrollment Form'!$CP113=\"\"),\"N\",\"Y\"))","v":"-"},{"$f":"IF('Enrollment Form'!B113<>\"Subscriber\",\"-\",IF(AND('Enrollment Form'!B113=\"Subscriber\",'Enrollment Form'!C113=\"Enroll\",'Enrollment Form'!AA113=\"\"),\"N\",\"Y\"))","v":"-"},{"$f":"IF(OR('Enrollment Form'!B113=\"Subscriber\",'Enrollment Form'!B113=\"\"),\"-\",IF('Enrollment Form'!BP113=\"\",\"N\",\"Y\"))","v":"-"},{"$f":"IF('Enrollment Form'!B113<>\"Subscriber\",\"-\",IF(AND('Enrollment Form'!B113=\"Subscriber\",'Enrollment Form'!G113=\"\"),\"N\",\"Y\"))","v":"-"},{"$f":"IF('Enrollment Form'!A113=\"\",\"\",IF('Enrollment Form'!B113=\"Subscriber\",\"-\",IF(AND('Enrollment Form'!B113<>\"Subscriber\",'Enrollment Form'!G113='Enrollment Form'!H113),\"N\",\"Y\")))","v":""},0]
[114,{"$f":"IF('Enrollment Form'!$A114<>\"\",\"Y\",\"N\")","v":"N"},{"$f":"IF(AND('Enrollment Form'!$B114=\"\",'Enrollment Form'!$C114<>\"\"),\"N\",IF($B107=\"N\",\"\",\"Y\"))","v":""},{"$f":"IF(OR($B107=\"N\",'Enrollment Form'!G114=\"\"),\"\",IF('Enrollment Form'!$B114<>\"Subscriber\",\"\",IF('Enrollment Form'!$G114='Enrollment Form'!$H114,\"Y\",\"N\")))","v":""},{"$f":"IF($B107=\"N\",\"\",IF(AND(COUNTIFS('Enrollment Form'!$H$11:$H$1000,'Enrollment Form'!$H114,'Enrollment Form'!$B$11:$B$1000,'Enrollment Form'!$B114)>1,'Enrollment Form'!$H114<>\"\"),\"N\",\"Y\"))","v":""},{"$f":"IF($B107=\"N\",\"\",IF(LEN('Enrollment Form'!$Y114)=0,\"\",IF(LEN('Enrollment Form'!$Y114)<>5,\"N\",\"Y\")))","v":""},{"$f":"IF($B107=\"N\",\"\",IF(LEN('Enrollment Form'!$AD114=0),\"\",IF(LEN('Enrollment Form'!$AD114)<>5,\"N\",\"Y\")))","v":""},{"$f":"IF($B107=\"N\",\"\",IF(LEN('Enrollment Form'!$BS114=0),\"\",IF(LEN('Enrollment Form'!$BS114)<>5,\"N\",\"Y\")))","v":""},{"$f":"IF($B107=\"N\",\"\",IF(LEN('Enrollment Form'!$AE114)=0,\"\",IF(LEN('Enrollment Form'!$AE114)<>10,\"N\",\"Y\")))","v":""},{"$f":"IF($B107=\"N\",\"\",IF(LEN('Enrollment Form'!$AF114)=0,\"\",IF(LEN('Enrollment Form'!$AF114)<>10,\"N\",\"Y\")))","v":""},{"$f":"IF('Enrollment Form'!$O114<>\"Graded\",\"-\",IF(AND('Enrollment Form'!$O114=\"Graded\",'Enrollment Form'!$AR114<>\"\"),\"Y\",\"N\"))","v":"-"},{"$f":"IF($B107=\"N\",\"\",IF(OR('Enrollment Form'!$B114<>\"Subscriber\",'Enrollment Form'!$C114=\"ROC\"),\"-\",IF(AND('Enrollment Form'!$B114=\"Subscriber\",'Enrollment Form'!$C114=\"Enroll\",'Enrollment Form'!$AJ114<>\"\"),\"Y\",\"N\")))","v":""},{"$f":"IF($B107=\"N\",\"\",IF(OR('Enrollment Form'!$B114<>\"Subscriber\",'Enrollment Form'!$C114=\"ROC\"),\"-\",IF(AND('Enrollment Form'!$B114=\"Subscriber\",'Enrollment Form'!$C114=\"Enroll\",'Enrollment Form'!$AK114<>\"\"),\"Y\",\"N\")))","v":""},{"$f":"IF($B107=\"N\",\"\",IF(OR('Enrollment Form'!$B114<>\"Subscriber\",'Enrollment Form'!$C114=\"ROC\"),\"-\",IF(AND('Enrollment Form'!$B114=\"Subscriber\",'Enrollment Form'!$C114=\"Enroll\",'Enrollment Form'!$AL114<>\"\"),\"Y\",\"N\")))","v":""},{"$f":"IF($B107=\"N\",\"\",IF(OR('Enrollment Form'!$B114<>\"Subscriber\",'Enrollment Form'!$C114=\"ROC\"),\"-\",IF(AND('Enrollment Form'!$B114=\"Subscriber\",'Enrollment Form'!$C114=\"Enroll\",'Enrollment Form'!$AP114<>\"\"),\"Y\",\"N\")))","v":""},{"$f":"IF($B107=\"N\",\"\",IF(OR('Enrollment Form'!$B114<>\"Subscriber\",'Enrollment Form'!$C114=\"ROC\"),\"-\",IF(AND('Enrollment Form'!$B114=\"Subscriber\",'Enrollment Form'!$C114=\"Enroll\",'Enrollment Form'!$AQ114<>\"\"),\"Y\",\"N\")))","v":""},{"$f":"IF($B107=\"N\",\"\",IF(OR('Enrollment Form'!$B114<>\"Subscriber\",'Enrollment Form'!$C114=\"ROC\"),\"-\",IF(AND('Enrollment Form'!$B114=\"Subscriber\",'Enrollment Form'!$C114=\"Enroll\",'Enrollment Form'!$AS114<>\"\"),\"Y\",\"N\")))","v":""},{"$f":"IF($B107=\"N\",\"\",IF($Q107=\"-\",\"-\",IF(AND($Q107=\"Y\",'Enrollment Form'!$AS114=\"No\"),\"-\",IF(AND($Q107=\"Y\",'Enrollment Form'!$AS114=\"Yes\",'Enrollment Form'!$AT114<>\"\"),\"Y\",\"N\"))))","v":""},{"$f":"IF($B107=\"N\",\"\",IF(OR('Enrollment Form'!$B114<>\"Subscriber\",'Enrollment Form'!$C114=\"ROC\"),\"-\",IF(AND('Enrollment Form'!$B114=\"Subscriber\",'Enrollment Form'!$C114=\"Enroll\",'Enrollment Form'!$CV114<>\"\"),\"Y\",\"N\")))","v":""},{"$f":"IF($B107=\"N\",\"\",IF($S107=\"-\",\"-\",IF(AND($S107=\"Y\",'Enrollment Form'!$CV114=\"No\"),\"-\",IF(AND($S107=\"Y\",'Enrollment Form'!$CV114=\"Yes\",'Enrollment Form'!$CW114<>\"\"),\"Y\",\"N\"))))","v":""},{"$f":"IF(OR('Enrollment Form'!$AY114=\"Yes\",'Enrollment Form'!$AY114=\"\"),\"-\",IF(OR(AND('Enrollment Form'!$AY114=\"No\",ISERROR(FIND(\"HMO\",VLOOKUP('Enrollment Form'!G114,'Enrollment Form'!H$11:J$1000,3,FALSE),1))=FALSE,COUNTA('Enrollment Form'!$AZ114:$BC114)=4),AND('Enrollment Form'!$AY114=\"No\",ISERROR(FIND(\"HMO\",VLOOKUP('Enrollment Form'!G114,'Enrollment Form'!H$11:J$1000,3,FALSE),1))=FALSE,COUNTA('Enrollment Form'!$BT114:$BW114)=4)),\"Y\",\"N\"))","v":"-"},{"$f":"IF($B107=\"N\",\"\",IF('Enrollment Form'!$B114=\"Subscriber\",\"-\",IF(COUNTA('Enrollment Form'!$BL114,'Enrollment Form'!$BN114)=2,\"Y\",\"N\")))","v":""},{"$f":"IF($B107=\"N\",\"\",IF(OR('Enrollment Form'!$AX114=\"\",'Enrollment Form'!$AX114=\"No\"),\"-\",IF(AND('Enrollment Form'!$AX114=\"Yes\",COUNTA('Enrollment Form'!$CR114)=1),\"Y\",\"N\")))","v":""},{"$f":"IF(OR('Enrollment Form'!$CR114=\"\",'Enrollment Form'!$CR114=\"No\"),\"-\",IF(COUNTA('Enrollment Form'!$CT114:$CU114)=2,\"Y\",\"N\"))","v":"-"},{"$f":"IF($B107=\"N\",\"\",IF(COUNTIF('Enrollment Form'!$DG114:$DP114,\"Other\")=COUNTA('Enrollment Form'!$DK114,'Enrollment Form'!$DH114,'Enrollment Form'!$DN114,'Enrollment Form'!$DQ114),\"Y\",\"N\"))","v":""},{"$f":"IF($B107=\"N\",\"\",IF(OR('Enrollment Form'!B114<>\"Subscriber\",'Enrollment Form'!C114=\"ROC\",COUNTIF('Enrollment Form'!AV114:AW114,\"Yes\")>=1),\"-\",IF(AND('Enrollment Form'!C114=\"Enroll\",COUNTIF('Enrollment Form'!AV114:AW114,\"No\")=2,'Enrollment Form'!AX114=\"\"),\"N\",\"Y\")))","v":""},{"$f":"IF(OR(B107=\"N\",'Enrollment Form'!B114<>\"Subscriber\",'Enrollment Form'!C114=\"ROC\",'Enrollment Form'!O114<>\"Multiple of Salary\"),\"-\",IF(COUNTA('Enrollment Form'!T114:U114)<2,\"N\",\"Y\"))","v":"-"},{"$f":"IF(B107=\"N\",\"\",IF(OR('Enrollment Form'!C114=\"ROC\",'Enrollment Form'!B114<>\"Subscriber\",'Enrollment Form'!O114=\"Waive\",'Enrollment Form'!O114=\"\"),\"-\",IF('Enrollment Form'!P114=\"\",\"N\",\"Y\")))","v":""},{"$f":"IF($B107=\"N\",\"\",IF(AND('Enrollment Form'!$C114=\"ROC\",'Enrollment Form'!$DR114<>\"\"),\"Y\",IF(AND('Enrollment Form'!$C114=\"ROC\",'Enrollment Form'!$DR114=\"\"),\"N\",IF(AND('Enrollment Form'!$C114=\"Enroll\",'Enrollment Form'!$B114=\"Subscriber\",'Enrollment Form'!$CX114=\"No\",'Enrollment Form'!$DR114=\"\"),\"N\",IF(AND('Enrollment Form'!$C114=\"Enroll\",'Enrollment Form'!$B114=\"Subscriber\",'Enrollment Form'!$CX114=\"Yes\"),\"-\",\"Y\")))))","v":""},{"$f":"IF($B107=\"N\",\"\",IF(AND('Enrollment Form'!$C114=\"ROC\",'Enrollment Form'!$DS114<>\"\"),\"Y\",IF(AND('Enrollment Form'!$C114=\"ROC\",'Enrollment Form'!$DS114=\"\"),\"N\",IF(AND('Enrollment Form'!$C114=\"Enroll\",'Enrollment Form'!$B114=\"Subscriber\",'Enrollment Form'!$CX114=\"No\",'Enrollment Form'!$DS114=\"\"),\"N\",IF(AND('Enrollment Form'!$C114=\"Enroll\",'Enrollment Form'!$B114=\"Subscriber\",'Enrollment Form'!$CX114=\"Yes\"),\"-\",\"Y\")))))","v":""},{"$f":"IF('Enrollment Form'!AH114=\"\",\"\",IF(ISERROR(SEARCH(\".\",'Enrollment Form'!AH114,SEARCH(\"@\",'Enrollment Form'!AH114))),\"N\",\"Y\"))","v":""},{"$f":"IF(OR($B107=\"N\",'Enrollment Form'!$G114=\"\"),\"\",IF('Enrollment Form'!$B114<>\"Subscriber\",\"-\",IF(COUNTIF('Enrollment Form'!$AV114:$AW114,\"Yes\")=2,\"N\",\"Y\")))","v":""},{"$f":"IF(OR('Enrollment Form'!$CJ114=\"\",'Enrollment Form'!$CJ114=\"No\"),\"-\",IF(AND('Enrollment Form'!$CJ114=\"Yes\",'Enrollment Form'!$CK114=\"\"),\"N\",\"Y\"))","v":"-"},{"$f":"IF(OR('Enrollment Form'!$CL114=\"\",'Enrollment Form'!$CL114=\"No\"),\"-\",IF(AND('Enrollment Form'!$CL114=\"Yes\",'Enrollment Form'!$CM114=\"\"),\"N\",\"Y\"))","v":"-"},{"$f":"IF(OR('Enrollment Form'!$CN114=\"\",'Enrollment Form'!$CN114=\"No\"),\"-\",IF(AND('Enrollment Form'!$CN114=\"Yes\",'Enrollment Form'!$CO114=\"\"),\"N\",\"Y\"))","v":"-"},{"$f":"IF(OR('Enrollment Form'!$CN114=\"\",'Enrollment Form'!$CN114=\"No\"),\"-\",IF(AND('Enrollment Form'!$CN114=\"Yes\",'Enrollment Form'!$CP114=\"\"),\"N\",\"Y\"))","v":"-"},{"$f":"IF('Enrollment Form'!B114<>\"Subscriber\",\"-\",IF(AND('Enrollment Form'!B114=\"Subscriber\",'Enrollment Form'!C114=\"Enroll\",'Enrollment Form'!AA114=\"\"),\"N\",\"Y\"))","v":"-"},{"$f":"IF(OR('Enrollment Form'!B114=\"Subscriber\",'Enrollment Form'!B114=\"\"),\"-\",IF('Enrollment Form'!BP114=\"\",\"N\",\"Y\"))","v":"-"},{"$f":"IF('Enrollment Form'!B114<>\"Subscriber\",\"-\",IF(AND('Enrollment Form'!B114=\"Subscriber\",'Enrollment Form'!G114=\"\"),\"N\",\"Y\"))","v":"-"},{"$f":"IF('Enrollment Form'!A114=\"\",\"\",IF('Enrollment Form'!B114=\"Subscriber\",\"-\",IF(AND('Enrollment Form'!B114<>\"Subscriber\",'Enrollment Form'!G114='Enrollment Form'!H114),\"N\",\"Y\")))","v":""},0]
[115,{"$f":"IF('Enrollment Form'!$A115<>\"\",\"Y\",\"N\")","v":"N"},{"$f":"IF(AND('Enrollment Form'!$B115=\"\",'Enrollment Form'!$C115<>\"\"),\"N\",IF($B108=\"N\",\"\",\"Y\"))","v":""},{"$f":"IF(OR($B108=\"N\",'Enrollment Form'!G115=\"\"),\"\",IF('Enrollment Form'!$B115<>\"Subscriber\",\"\",IF('Enrollment Form'!$G115='Enrollment Form'!$H115,\"Y\",\"N\")))","v":""},{"$f":"IF($B108=\"N\",\"\",IF(AND(COUNTIFS('Enrollment Form'!$H$11:$H$1000,'Enrollment Form'!$H115,'Enrollment Form'!$B$11:$B$1000,'Enrollment Form'!$B115)>1,'Enrollment Form'!$H115<>\"\"),\"N\",\"Y\"))","v":""},{"$f":"IF($B108=\"N\",\"\",IF(LEN('Enrollment Form'!$Y115)=0,\"\",IF(LEN('Enrollment Form'!$Y115)<>5,\"N\",\"Y\")))","v":""},{"$f":"IF($B108=\"N\",\"\",IF(LEN('Enrollment Form'!$AD115=0),\"\",IF(LEN('Enrollment Form'!$AD115)<>5,\"N\",\"Y\")))","v":""},{"$f":"IF($B108=\"N\",\"\",IF(LEN('Enrollment Form'!$BS115=0),\"\",IF(LEN('Enrollment Form'!$BS115)<>5,\"N\",\"Y\")))","v":""},{"$f":"IF($B108=\"N\",\"\",IF(LEN('Enrollment Form'!$AE115)=0,\"\",IF(LEN('Enrollment Form'!$AE115)<>10,\"N\",\"Y\")))","v":""},{"$f":"IF($B108=\"N\",\"\",IF(LEN('Enrollment Form'!$AF115)=0,\"\",IF(LEN('Enrollment Form'!$AF115)<>10,\"N\",\"Y\")))","v":""},{"$f":"IF('Enrollment Form'!$O115<>\"Graded\",\"-\",IF(AND('Enrollment Form'!$O115=\"Graded\",'Enrollment Form'!$AR115<>\"\"),\"Y\",\"N\"))","v":"-"},{"$f":"IF($B108=\"N\",\"\",IF(OR('Enrollment Form'!$B115<>\"Subscriber\",'Enrollment Form'!$C115=\"ROC\"),\"-\",IF(AND('Enrollment Form'!$B115=\"Subscriber\",'Enrollment Form'!$C115=\"Enroll\",'Enrollment Form'!$AJ115<>\"\"),\"Y\",\"N\")))","v":""},{"$f":"IF($B108=\"N\",\"\",IF(OR('Enrollment Form'!$B115<>\"Subscriber\",'Enrollment Form'!$C115=\"ROC\"),\"-\",IF(AND('Enrollment Form'!$B115=\"Subscriber\",'Enrollment Form'!$C115=\"Enroll\",'Enrollment Form'!$AK115<>\"\"),\"Y\",\"N\")))","v":""},{"$f":"IF($B108=\"N\",\"\",IF(OR('Enrollment Form'!$B115<>\"Subscriber\",'Enrollment Form'!$C115=\"ROC\"),\"-\",IF(AND('Enrollment Form'!$B115=\"Subscriber\",'Enrollment Form'!$C115=\"Enroll\",'Enrollment Form'!$AL115<>\"\"),\"Y\",\"N\")))","v":""},{"$f":"IF($B108=\"N\",\"\",IF(OR('Enrollment Form'!$B115<>\"Subscriber\",'Enrollment Form'!$C115=\"ROC\"),\"-\",IF(AND('Enrollment Form'!$B115=\"Subscriber\",'Enrollment Form'!$C115=\"Enroll\",'Enrollment Form'!$AP115<>\"\"),\"Y\",\"N\")))","v":""},{"$f":"IF($B108=\"N\",\"\",IF(OR('Enrollment Form'!$B115<>\"Subscriber\",'Enrollment Form'!$C115=\"ROC\"),\"-\",IF(AND('Enrollment Form'!$B115=\"Subscriber\",'Enrollment Form'!$C115=\"Enroll\",'Enrollment Form'!$AQ115<>\"\"),\"Y\",\"N\")))","v":""},{"$f":"IF($B108=\"N\",\"\",IF(OR('Enrollment Form'!$B115<>\"Subscriber\",'Enrollment Form'!$C115=\"ROC\"),\"-\",IF(AND('Enrollment Form'!$B115=\"Subscriber\",'Enrollment Form'!$C115=\"Enroll\",'Enrollment Form'!$AS115<>\"\"),\"Y\",\"N\")))","v":""},{"$f":"IF($B108=\"N\",\"\",IF($Q108=\"-\",\"-\",IF(AND($Q108=\"Y\",'Enrollment Form'!$AS115=\"No\"),\"-\",IF(AND($Q108=\"Y\",'Enrollment Form'!$AS115=\"Yes\",'Enrollment Form'!$AT115<>\"\"),\"Y\",\"N\"))))","v":""},{"$f":"IF($B108=\"N\",\"\",IF(OR('Enrollment Form'!$B115<>\"Subscriber\",'Enrollment Form'!$C115=\"ROC\"),\"-\",IF(AND('Enrollment Form'!$B115=\"Subscriber\",'Enrollment Form'!$C115=\"Enroll\",'Enrollment Form'!$CV115<>\"\"),\"Y\",\"N\")))","v":""},{"$f":"IF($B108=\"N\",\"\",IF($S108=\"-\",\"-\",IF(AND($S108=\"Y\",'Enrollment Form'!$CV115=\"No\"),\"-\",IF(AND($S108=\"Y\",'Enrollment Form'!$CV115=\"Yes\",'Enrollment Form'!$CW115<>\"\"),\"Y\",\"N\"))))","v":""},{"$f":"IF(OR('Enrollment Form'!$AY115=\"Yes\",'Enrollment Form'!$AY115=\"\"),\"-\",IF(OR(AND('Enrollment Form'!$AY115=\"No\",ISERROR(FIND(\"HMO\",VLOOKUP('Enrollment Form'!G115,'Enrollment Form'!H$11:J$1000,3,FALSE),1))=FALSE,COUNTA('Enrollment Form'!$AZ115:$BC115)=4),AND('Enrollment Form'!$AY115=\"No\",ISERROR(FIND(\"HMO\",VLOOKUP('Enrollment Form'!G115,'Enrollment Form'!H$11:J$1000,3,FALSE),1))=FALSE,COUNTA('Enrollment Form'!$BT115:$BW115)=4)),\"Y\",\"N\"))","v":"-"},{"$f":"IF($B108=\"N\",\"\",IF('Enrollment Form'!$B115=\"Subscriber\",\"-\",IF(COUNTA('Enrollment Form'!$BL115,'Enrollment Form'!$BN115)=2,\"Y\",\"N\")))","v":""},{"$f":"IF($B108=\"N\",\"\",IF(OR('Enrollment Form'!$AX115=\"\",'Enrollment Form'!$AX115=\"No\"),\"-\",IF(AND('Enrollment Form'!$AX115=\"Yes\",COUNTA('Enrollment Form'!$CR115)=1),\"Y\",\"N\")))","v":""},{"$f":"IF(OR('Enrollment Form'!$CR115=\"\",'Enrollment Form'!$CR115=\"No\"),\"-\",IF(COUNTA('Enrollment Form'!$CT115:$CU115)=2,\"Y\",\"N\"))","v":"-"},{"$f":"IF($B108=\"N\",\"\",IF(COUNTIF('Enrollment Form'!$DG115:$DP115,\"Other\")=COUNTA('Enrollment Form'!$DK115,'Enrollment Form'!$DH115,'Enrollment Form'!$DN115,'Enrollment Form'!$DQ115),\"Y\",\"N\"))","v":""},{"$f":"IF($B108=\"N\",\"\",IF(OR('Enrollment Form'!B115<>\"Subscriber\",'Enrollment Form'!C115=\"ROC\",COUNTIF('Enrollment Form'!AV115:AW115,\"Yes\")>=1),\"-\",IF(AND('Enrollment Form'!C115=\"Enroll\",COUNTIF('Enrollment Form'!AV115:AW115,\"No\")=2,'Enrollment Form'!AX115=\"\"),\"N\",\"Y\")))","v":""},{"$f":"IF(OR(B108=\"N\",'Enrollment Form'!B115<>\"Subscriber\",'Enrollment Form'!C115=\"ROC\",'Enrollment Form'!O115<>\"Multiple of Salary\"),\"-\",IF(COUNTA('Enrollment Form'!T115:U115)<2,\"N\",\"Y\"))","v":"-"},{"$f":"IF(B108=\"N\",\"\",IF(OR('Enrollment Form'!C115=\"ROC\",'Enrollment Form'!B115<>\"Subscriber\",'Enrollment Form'!O115=\"Waive\",'Enrollment Form'!O115=\"\"),\"-\",IF('Enrollment Form'!P115=\"\",\"N\",\"Y\")))","v":""},{"$f":"IF($B108=\"N\",\"\",IF(AND('Enrollment Form'!$C115=\"ROC\",'Enrollment Form'!$DR115<>\"\"),\"Y\",IF(AND('Enrollment Form'!$C115=\"ROC\",'Enrollment Form'!$DR115=\"\"),\"N\",IF(AND('Enrollment Form'!$C115=\"Enroll\",'Enrollment Form'!$B115=\"Subscriber\",'Enrollment Form'!$CX115=\"No\",'Enrollment Form'!$DR115=\"\"),\"N\",IF(AND('Enrollment Form'!$C115=\"Enroll\",'Enrollment Form'!$B115=\"Subscriber\",'Enrollment Form'!$CX115=\"Yes\"),\"-\",\"Y\")))))","v":""},{"$f":"IF($B108=\"N\",\"\",IF(AND('Enrollment Form'!$C115=\"ROC\",'Enrollment Form'!$DS115<>\"\"),\"Y\",IF(AND('Enrollment Form'!$C115=\"ROC\",'Enrollment Form'!$DS115=\"\"),\"N\",IF(AND('Enrollment Form'!$C115=\"Enroll\",'Enrollment Form'!$B115=\"Subscriber\",'Enrollment Form'!$CX115=\"No\",'Enrollment Form'!$DS115=\"\"),\"N\",IF(AND('Enrollment Form'!$C115=\"Enroll\",'Enrollment Form'!$B115=\"Subscriber\",'Enrollment Form'!$CX115=\"Yes\"),\"-\",\"Y\")))))","v":""},{"$f":"IF('Enrollment Form'!AH115=\"\",\"\",IF(ISERROR(SEARCH(\".\",'Enrollment Form'!AH115,SEARCH(\"@\",'Enrollment Form'!AH115))),\"N\",\"Y\"))","v":""},{"$f":"IF(OR($B108=\"N\",'Enrollment Form'!$G115=\"\"),\"\",IF('Enrollment Form'!$B115<>\"Subscriber\",\"-\",IF(COUNTIF('Enrollment Form'!$AV115:$AW115,\"Yes\")=2,\"N\",\"Y\")))","v":""},{"$f":"IF(OR('Enrollment Form'!$CJ115=\"\",'Enrollment Form'!$CJ115=\"No\"),\"-\",IF(AND('Enrollment Form'!$CJ115=\"Yes\",'Enrollment Form'!$CK115=\"\"),\"N\",\"Y\"))","v":"-"},{"$f":"IF(OR('Enrollment Form'!$CL115=\"\",'Enrollment Form'!$CL115=\"No\"),\"-\",IF(AND('Enrollment Form'!$CL115=\"Yes\",'Enrollment Form'!$CM115=\"\"),\"N\",\"Y\"))","v":"-"},{"$f":"IF(OR('Enrollment Form'!$CN115=\"\",'Enrollment Form'!$CN115=\"No\"),\"-\",IF(AND('Enrollment Form'!$CN115=\"Yes\",'Enrollment Form'!$CO115=\"\"),\"N\",\"Y\"))","v":"-"},{"$f":"IF(OR('Enrollment Form'!$CN115=\"\",'Enrollment Form'!$CN115=\"No\"),\"-\",IF(AND('Enrollment Form'!$CN115=\"Yes\",'Enrollment Form'!$CP115=\"\"),\"N\",\"Y\"))","v":"-"},{"$f":"IF('Enrollment Form'!B115<>\"Subscriber\",\"-\",IF(AND('Enrollment Form'!B115=\"Subscriber\",'Enrollment Form'!C115=\"Enroll\",'Enrollment Form'!AA115=\"\"),\"N\",\"Y\"))","v":"-"},{"$f":"IF(OR('Enrollment Form'!B115=\"Subscriber\",'Enrollment Form'!B115=\"\"),\"-\",IF('Enrollment Form'!BP115=\"\",\"N\",\"Y\"))","v":"-"},{"$f":"IF('Enrollment Form'!B115<>\"Subscriber\",\"-\",IF(AND('Enrollment Form'!B115=\"Subscriber\",'Enrollment Form'!G115=\"\"),\"N\",\"Y\"))","v":"-"},{"$f":"IF('Enrollment Form'!A115=\"\",\"\",IF('Enrollment Form'!B115=\"Subscriber\",\"-\",IF(AND('Enrollment Form'!B115<>\"Subscriber\",'Enrollment Form'!G115='Enrollment Form'!H115),\"N\",\"Y\")))","v":""},0]
[116,{"$f":"IF('Enrollment Form'!$A116<>\"\",\"Y\",\"N\")","v":"N"},{"$f":"IF(AND('Enrollment Form'!$B116=\"\",'Enrollment Form'!$C116<>\"\"),\"N\",IF($B109=\"N\",\"\",\"Y\"))","v":""},{"$f":"IF(OR($B109=\"N\",'Enrollment Form'!G116=\"\"),\"\",IF('Enrollment Form'!$B116<>\"Subscriber\",\"\",IF('Enrollment Form'!$G116='Enrollment Form'!$H116,\"Y\",\"N\")))","v":""},{"$f":"IF($B109=\"N\",\"\",IF(AND(COUNTIFS('Enrollment Form'!$H$11:$H$1000,'Enrollment Form'!$H116,'Enrollment Form'!$B$11:$B$1000,'Enrollment Form'!$B116)>1,'Enrollment Form'!$H116<>\"\"),\"N\",\"Y\"))","v":""},{"$f":"IF($B109=\"N\",\"\",IF(LEN('Enrollment Form'!$Y116)=0,\"\",IF(LEN('Enrollment Form'!$Y116)<>5,\"N\",\"Y\")))","v":""},{"$f":"IF($B109=\"N\",\"\",IF(LEN('Enrollment Form'!$AD116=0),\"\",IF(LEN('Enrollment Form'!$AD116)<>5,\"N\",\"Y\")))","v":""},{"$f":"IF($B109=\"N\",\"\",IF(LEN('Enrollment Form'!$BS116=0),\"\",IF(LEN('Enrollment Form'!$BS116)<>5,\"N\",\"Y\")))","v":""},{"$f":"IF($B109=\"N\",\"\",IF(LEN('Enrollment Form'!$AE116)=0,\"\",IF(LEN('Enrollment Form'!$AE116)<>10,\"N\",\"Y\")))","v":""},{"$f":"IF($B109=\"N\",\"\",IF(LEN('Enrollment Form'!$AF116)=0,\"\",IF(LEN('Enrollment Form'!$AF116)<>10,\"N\",\"Y\")))","v":""},{"$f":"IF('Enrollment Form'!$O116<>\"Graded\",\"-\",IF(AND('Enrollment Form'!$O116=\"Graded\",'Enrollment Form'!$AR116<>\"\"),\"Y\",\"N\"))","v":"-"},{"$f":"IF($B109=\"N\",\"\",IF(OR('Enrollment Form'!$B116<>\"Subscriber\",'Enrollment Form'!$C116=\"ROC\"),\"-\",IF(AND('Enrollment Form'!$B116=\"Subscriber\",'Enrollment Form'!$C116=\"Enroll\",'Enrollment Form'!$AJ116<>\"\"),\"Y\",\"N\")))","v":""},{"$f":"IF($B109=\"N\",\"\",IF(OR('Enrollment Form'!$B116<>\"Subscriber\",'Enrollment Form'!$C116=\"ROC\"),\"-\",IF(AND('Enrollment Form'!$B116=\"Subscriber\",'Enrollment Form'!$C116=\"Enroll\",'Enrollment Form'!$AK116<>\"\"),\"Y\",\"N\")))","v":""},{"$f":"IF($B109=\"N\",\"\",IF(OR('Enrollment Form'!$B116<>\"Subscriber\",'Enrollment Form'!$C116=\"ROC\"),\"-\",IF(AND('Enrollment Form'!$B116=\"Subscriber\",'Enrollment Form'!$C116=\"Enroll\",'Enrollment Form'!$AL116<>\"\"),\"Y\",\"N\")))","v":""},{"$f":"IF($B109=\"N\",\"\",IF(OR('Enrollment Form'!$B116<>\"Subscriber\",'Enrollment Form'!$C116=\"ROC\"),\"-\",IF(AND('Enrollment Form'!$B116=\"Subscriber\",'Enrollment Form'!$C116=\"Enroll\",'Enrollment Form'!$AP116<>\"\"),\"Y\",\"N\")))","v":""},{"$f":"IF($B109=\"N\",\"\",IF(OR('Enrollment Form'!$B116<>\"Subscriber\",'Enrollment Form'!$C116=\"ROC\"),\"-\",IF(AND('Enrollment Form'!$B116=\"Subscriber\",'Enrollment Form'!$C116=\"Enroll\",'Enrollment Form'!$AQ116<>\"\"),\"Y\",\"N\")))","v":""},{"$f":"IF($B109=\"N\",\"\",IF(OR('Enrollment Form'!$B116<>\"Subscriber\",'Enrollment Form'!$C116=\"ROC\"),\"-\",IF(AND('Enrollment Form'!$B116=\"Subscriber\",'Enrollment Form'!$C116=\"Enroll\",'Enrollment Form'!$AS116<>\"\"),\"Y\",\"N\")))","v":""},{"$f":"IF($B109=\"N\",\"\",IF($Q109=\"-\",\"-\",IF(AND($Q109=\"Y\",'Enrollment Form'!$AS116=\"No\"),\"-\",IF(AND($Q109=\"Y\",'Enrollment Form'!$AS116=\"Yes\",'Enrollment Form'!$AT116<>\"\"),\"Y\",\"N\"))))","v":""},{"$f":"IF($B109=\"N\",\"\",IF(OR('Enrollment Form'!$B116<>\"Subscriber\",'Enrollment Form'!$C116=\"ROC\"),\"-\",IF(AND('Enrollment Form'!$B116=\"Subscriber\",'Enrollment Form'!$C116=\"Enroll\",'Enrollment Form'!$CV116<>\"\"),\"Y\",\"N\")))","v":""},{"$f":"IF($B109=\"N\",\"\",IF($S109=\"-\",\"-\",IF(AND($S109=\"Y\",'Enrollment Form'!$CV116=\"No\"),\"-\",IF(AND($S109=\"Y\",'Enrollment Form'!$CV116=\"Yes\",'Enrollment Form'!$CW116<>\"\"),\"Y\",\"N\"))))","v":""},{"$f":"IF(OR('Enrollment Form'!$AY116=\"Yes\",'Enrollment Form'!$AY116=\"\"),\"-\",IF(OR(AND('Enrollment Form'!$AY116=\"No\",ISERROR(FIND(\"HMO\",VLOOKUP('Enrollment Form'!G116,'Enrollment Form'!H$11:J$1000,3,FALSE),1))=FALSE,COUNTA('Enrollment Form'!$AZ116:$BC116)=4),AND('Enrollment Form'!$AY116=\"No\",ISERROR(FIND(\"HMO\",VLOOKUP('Enrollment Form'!G116,'Enrollment Form'!H$11:J$1000,3,FALSE),1))=FALSE,COUNTA('Enrollment Form'!$BT116:$BW116)=4)),\"Y\",\"N\"))","v":"-"},{"$f":"IF($B109=\"N\",\"\",IF('Enrollment Form'!$B116=\"Subscriber\",\"-\",IF(COUNTA('Enrollment Form'!$BL116,'Enrollment Form'!$BN116)=2,\"Y\",\"N\")))","v":""},{"$f":"IF($B109=\"N\",\"\",IF(OR('Enrollment Form'!$AX116=\"\",'Enrollment Form'!$AX116=\"No\"),\"-\",IF(AND('Enrollment Form'!$AX116=\"Yes\",COUNTA('Enrollment Form'!$CR116)=1),\"Y\",\"N\")))","v":""},{"$f":"IF(OR('Enrollment Form'!$CR116=\"\",'Enrollment Form'!$CR116=\"No\"),\"-\",IF(COUNTA('Enrollment Form'!$CT116:$CU116)=2,\"Y\",\"N\"))","v":"-"},{"$f":"IF($B109=\"N\",\"\",IF(COUNTIF('Enrollment Form'!$DG116:$DP116,\"Other\")=COUNTA('Enrollment Form'!$DK116,'Enrollment Form'!$DH116,'Enrollment Form'!$DN116,'Enrollment Form'!$DQ116),\"Y\",\"N\"))","v":""},{"$f":"IF($B109=\"N\",\"\",IF(OR('Enrollment Form'!B116<>\"Subscriber\",'Enrollment Form'!C116=\"ROC\",COUNTIF('Enrollment Form'!AV116:AW116,\"Yes\")>=1),\"-\",IF(AND('Enrollment Form'!C116=\"Enroll\",COUNTIF('Enrollment Form'!AV116:AW116,\"No\")=2,'Enrollment Form'!AX116=\"\"),\"N\",\"Y\")))","v":""},{"$f":"IF(OR(B109=\"N\",'Enrollment Form'!B116<>\"Subscriber\",'Enrollment Form'!C116=\"ROC\",'Enrollment Form'!O116<>\"Multiple of Salary\"),\"-\",IF(COUNTA('Enrollment Form'!T116:U116)<2,\"N\",\"Y\"))","v":"-"},{"$f":"IF(B109=\"N\",\"\",IF(OR('Enrollment Form'!C116=\"ROC\",'Enrollment Form'!B116<>\"Subscriber\",'Enrollment Form'!O116=\"Waive\",'Enrollment Form'!O116=\"\"),\"-\",IF('Enrollment Form'!P116=\"\",\"N\",\"Y\")))","v":""},{"$f":"IF($B109=\"N\",\"\",IF(AND('Enrollment Form'!$C116=\"ROC\",'Enrollment Form'!$DR116<>\"\"),\"Y\",IF(AND('Enrollment Form'!$C116=\"ROC\",'Enrollment Form'!$DR116=\"\"),\"N\",IF(AND('Enrollment Form'!$C116=\"Enroll\",'Enrollment Form'!$B116=\"Subscriber\",'Enrollment Form'!$CX116=\"No\",'Enrollment Form'!$DR116=\"\"),\"N\",IF(AND('Enrollment Form'!$C116=\"Enroll\",'Enrollment Form'!$B116=\"Subscriber\",'Enrollment Form'!$CX116=\"Yes\"),\"-\",\"Y\")))))","v":""},{"$f":"IF($B109=\"N\",\"\",IF(AND('Enrollment Form'!$C116=\"ROC\",'Enrollment Form'!$DS116<>\"\"),\"Y\",IF(AND('Enrollment Form'!$C116=\"ROC\",'Enrollment Form'!$DS116=\"\"),\"N\",IF(AND('Enrollment Form'!$C116=\"Enroll\",'Enrollment Form'!$B116=\"Subscriber\",'Enrollment Form'!$CX116=\"No\",'Enrollment Form'!$DS116=\"\"),\"N\",IF(AND('Enrollment Form'!$C116=\"Enroll\",'Enrollment Form'!$B116=\"Subscriber\",'Enrollment Form'!$CX116=\"Yes\"),\"-\",\"Y\")))))","v":""},{"$f":"IF('Enrollment Form'!AH116=\"\",\"\",IF(ISERROR(SEARCH(\".\",'Enrollment Form'!AH116,SEARCH(\"@\",'Enrollment Form'!AH116))),\"N\",\"Y\"))","v":""},{"$f":"IF(OR($B109=\"N\",'Enrollment Form'!$G116=\"\"),\"\",IF('Enrollment Form'!$B116<>\"Subscriber\",\"-\",IF(COUNTIF('Enrollment Form'!$AV116:$AW116,\"Yes\")=2,\"N\",\"Y\")))","v":""},{"$f":"IF(OR('Enrollment Form'!$CJ116=\"\",'Enrollment Form'!$CJ116=\"No\"),\"-\",IF(AND('Enrollment Form'!$CJ116=\"Yes\",'Enrollment Form'!$CK116=\"\"),\"N\",\"Y\"))","v":"-"},{"$f":"IF(OR('Enrollment Form'!$CL116=\"\",'Enrollment Form'!$CL116=\"No\"),\"-\",IF(AND('Enrollment Form'!$CL116=\"Yes\",'Enrollment Form'!$CM116=\"\"),\"N\",\"Y\"))","v":"-"},{"$f":"IF(OR('Enrollment Form'!$CN116=\"\",'Enrollment Form'!$CN116=\"No\"),\"-\",IF(AND('Enrollment Form'!$CN116=\"Yes\",'Enrollment Form'!$CO116=\"\"),\"N\",\"Y\"))","v":"-"},{"$f":"IF(OR('Enrollment Form'!$CN116=\"\",'Enrollment Form'!$CN116=\"No\"),\"-\",IF(AND('Enrollment Form'!$CN116=\"Yes\",'Enrollment Form'!$CP116=\"\"),\"N\",\"Y\"))","v":"-"},{"$f":"IF('Enrollment Form'!B116<>\"Subscriber\",\"-\",IF(AND('Enrollment Form'!B116=\"Subscriber\",'Enrollment Form'!C116=\"Enroll\",'Enrollment Form'!AA116=\"\"),\"N\",\"Y\"))","v":"-"},{"$f":"IF(OR('Enrollment Form'!B116=\"Subscriber\",'Enrollment Form'!B116=\"\"),\"-\",IF('Enrollment Form'!BP116=\"\",\"N\",\"Y\"))","v":"-"},{"$f":"IF('Enrollment Form'!B116<>\"Subscriber\",\"-\",IF(AND('Enrollment Form'!B116=\"Subscriber\",'Enrollment Form'!G116=\"\"),\"N\",\"Y\"))","v":"-"},{"$f":"IF('Enrollment Form'!A116=\"\",\"\",IF('Enrollment Form'!B116=\"Subscriber\",\"-\",IF(AND('Enrollment Form'!B116<>\"Subscriber\",'Enrollment Form'!G116='Enrollment Form'!H116),\"N\",\"Y\")))","v":""},0]
[117,{"$f":"IF('Enrollment Form'!$A117<>\"\",\"Y\",\"N\")","v":"N"},{"$f":"IF(AND('Enrollment Form'!$B117=\"\",'Enrollment Form'!$C117<>\"\"),\"N\",IF($B110=\"N\",\"\",\"Y\"))","v":""},{"$f":"IF(OR($B110=\"N\",'Enrollment Form'!G117=\"\"),\"\",IF('Enrollment Form'!$B117<>\"Subscriber\",\"\",IF('Enrollment Form'!$G117='Enrollment Form'!$H117,\"Y\",\"N\")))","v":""},{"$f":"IF($B110=\"N\",\"\",IF(AND(COUNTIFS('Enrollment Form'!$H$11:$H$1000,'Enrollment Form'!$H117,'Enrollment Form'!$B$11:$B$1000,'Enrollment Form'!$B117)>1,'Enrollment Form'!$H117<>\"\"),\"N\",\"Y\"))","v":""},{"$f":"IF($B110=\"N\",\"\",IF(LEN('Enrollment Form'!$Y117)=0,\"\",IF(LEN('Enrollment Form'!$Y117)<>5,\"N\",\"Y\")))","v":""},{"$f":"IF($B110=\"N\",\"\",IF(LEN('Enrollment Form'!$AD117=0),\"\",IF(LEN('Enrollment Form'!$AD117)<>5,\"N\",\"Y\")))","v":""},{"$f":"IF($B110=\"N\",\"\",IF(LEN('Enrollment Form'!$BS117=0),\"\",IF(LEN('Enrollment Form'!$BS117)<>5,\"N\",\"Y\")))","v":""},{"$f":"IF($B110=\"N\",\"\",IF(LEN('Enrollment Form'!$AE117)=0,\"\",IF(LEN('Enrollment Form'!$AE117)<>10,\"N\",\"Y\")))","v":""},{"$f":"IF($B110=\"N\",\"\",IF(LEN('Enrollment Form'!$AF117)=0,\"\",IF(LEN('Enrollment Form'!$AF117)<>10,\"N\",\"Y\")))","v":""},{"$f":"IF('Enrollment Form'!$O117<>\"Graded\",\"-\",IF(AND('Enrollment Form'!$O117=\"Graded\",'Enrollment Form'!$AR117<>\"\"),\"Y\",\"N\"))","v":"-"},{"$f":"IF($B110=\"N\",\"\",IF(OR('Enrollment Form'!$B117<>\"Subscriber\",'Enrollment Form'!$C117=\"ROC\"),\"-\",IF(AND('Enrollment Form'!$B117=\"Subscriber\",'Enrollment Form'!$C117=\"Enroll\",'Enrollment Form'!$AJ117<>\"\"),\"Y\",\"N\")))","v":""},{"$f":"IF($B110=\"N\",\"\",IF(OR('Enrollment Form'!$B117<>\"Subscriber\",'Enrollment Form'!$C117=\"ROC\"),\"-\",IF(AND('Enrollment Form'!$B117=\"Subscriber\",'Enrollment Form'!$C117=\"Enroll\",'Enrollment Form'!$AK117<>\"\"),\"Y\",\"N\")))","v":""},{"$f":"IF($B110=\"N\",\"\",IF(OR('Enrollment Form'!$B117<>\"Subscriber\",'Enrollment Form'!$C117=\"ROC\"),\"-\",IF(AND('Enrollment Form'!$B117=\"Subscriber\",'Enrollment Form'!$C117=\"Enroll\",'Enrollment Form'!$AL117<>\"\"),\"Y\",\"N\")))","v":""},{"$f":"IF($B110=\"N\",\"\",IF(OR('Enrollment Form'!$B117<>\"Subscriber\",'Enrollment Form'!$C117=\"ROC\"),\"-\",IF(AND('Enrollment Form'!$B117=\"Subscriber\",'Enrollment Form'!$C117=\"Enroll\",'Enrollment Form'!$AP117<>\"\"),\"Y\",\"N\")))","v":""},{"$f":"IF($B110=\"N\",\"\",IF(OR('Enrollment Form'!$B117<>\"Subscriber\",'Enrollment Form'!$C117=\"ROC\"),\"-\",IF(AND('Enrollment Form'!$B117=\"Subscriber\",'Enrollment Form'!$C117=\"Enroll\",'Enrollment Form'!$AQ117<>\"\"),\"Y\",\"N\")))","v":""},{"$f":"IF($B110=\"N\",\"\",IF(OR('Enrollment Form'!$B117<>\"Subscriber\",'Enrollment Form'!$C117=\"ROC\"),\"-\",IF(AND('Enrollment Form'!$B117=\"Subscriber\",'Enrollment Form'!$C117=\"Enroll\",'Enrollment Form'!$AS117<>\"\"),\"Y\",\"N\")))","v":""},{"$f":"IF($B110=\"N\",\"\",IF($Q110=\"-\",\"-\",IF(AND($Q110=\"Y\",'Enrollment Form'!$AS117=\"No\"),\"-\",IF(AND($Q110=\"Y\",'Enrollment Form'!$AS117=\"Yes\",'Enrollment Form'!$AT117<>\"\"),\"Y\",\"N\"))))","v":""},{"$f":"IF($B110=\"N\",\"\",IF(OR('Enrollment Form'!$B117<>\"Subscriber\",'Enrollment Form'!$C117=\"ROC\"),\"-\",IF(AND('Enrollment Form'!$B117=\"Subscriber\",'Enrollment Form'!$C117=\"Enroll\",'Enrollment Form'!$CV117<>\"\"),\"Y\",\"N\")))","v":""},{"$f":"IF($B110=\"N\",\"\",IF($S110=\"-\",\"-\",IF(AND($S110=\"Y\",'Enrollment Form'!$CV117=\"No\"),\"-\",IF(AND($S110=\"Y\",'Enrollment Form'!$CV117=\"Yes\",'Enrollment Form'!$CW117<>\"\"),\"Y\",\"N\"))))","v":""},{"$f":"IF(OR('Enrollment Form'!$AY117=\"Yes\",'Enrollment Form'!$AY117=\"\"),\"-\",IF(OR(AND('Enrollment Form'!$AY117=\"No\",ISERROR(FIND(\"HMO\",VLOOKUP('Enrollment Form'!G117,'Enrollment Form'!H$11:J$1000,3,FALSE),1))=FALSE,COUNTA('Enrollment Form'!$AZ117:$BC117)=4),AND('Enrollment Form'!$AY117=\"No\",ISERROR(FIND(\"HMO\",VLOOKUP('Enrollment Form'!G117,'Enrollment Form'!H$11:J$1000,3,FALSE),1))=FALSE,COUNTA('Enrollment Form'!$BT117:$BW117)=4)),\"Y\",\"N\"))","v":"-"},{"$f":"IF($B110=\"N\",\"\",IF('Enrollment Form'!$B117=\"Subscriber\",\"-\",IF(COUNTA('Enrollment Form'!$BL117,'Enrollment Form'!$BN117)=2,\"Y\",\"N\")))","v":""},{"$f":"IF($B110=\"N\",\"\",IF(OR('Enrollment Form'!$AX117=\"\",'Enrollment Form'!$AX117=\"No\"),\"-\",IF(AND('Enrollment Form'!$AX117=\"Yes\",COUNTA('Enrollment Form'!$CR117)=1),\"Y\",\"N\")))","v":""},{"$f":"IF(OR('Enrollment Form'!$CR117=\"\",'Enrollment Form'!$CR117=\"No\"),\"-\",IF(COUNTA('Enrollment Form'!$CT117:$CU117)=2,\"Y\",\"N\"))","v":"-"},{"$f":"IF($B110=\"N\",\"\",IF(COUNTIF('Enrollment Form'!$DG117:$DP117,\"Other\")=COUNTA('Enrollment Form'!$DK117,'Enrollment Form'!$DH117,'Enrollment Form'!$DN117,'Enrollment Form'!$DQ117),\"Y\",\"N\"))","v":""},{"$f":"IF($B110=\"N\",\"\",IF(OR('Enrollment Form'!B117<>\"Subscriber\",'Enrollment Form'!C117=\"ROC\",COUNTIF('Enrollment Form'!AV117:AW117,\"Yes\")>=1),\"-\",IF(AND('Enrollment Form'!C117=\"Enroll\",COUNTIF('Enrollment Form'!AV117:AW117,\"No\")=2,'Enrollment Form'!AX117=\"\"),\"N\",\"Y\")))","v":""},{"$f":"IF(OR(B110=\"N\",'Enrollment Form'!B117<>\"Subscriber\",'Enrollment Form'!C117=\"ROC\",'Enrollment Form'!O117<>\"Multiple of Salary\"),\"-\",IF(COUNTA('Enrollment Form'!T117:U117)<2,\"N\",\"Y\"))","v":"-"},{"$f":"IF(B110=\"N\",\"\",IF(OR('Enrollment Form'!C117=\"ROC\",'Enrollment Form'!B117<>\"Subscriber\",'Enrollment Form'!O117=\"Waive\",'Enrollment Form'!O117=\"\"),\"-\",IF('Enrollment Form'!P117=\"\",\"N\",\"Y\")))","v":""},{"$f":"IF($B110=\"N\",\"\",IF(AND('Enrollment Form'!$C117=\"ROC\",'Enrollment Form'!$DR117<>\"\"),\"Y\",IF(AND('Enrollment Form'!$C117=\"ROC\",'Enrollment Form'!$DR117=\"\"),\"N\",IF(AND('Enrollment Form'!$C117=\"Enroll\",'Enrollment Form'!$B117=\"Subscriber\",'Enrollment Form'!$CX117=\"No\",'Enrollment Form'!$DR117=\"\"),\"N\",IF(AND('Enrollment Form'!$C117=\"Enroll\",'Enrollment Form'!$B117=\"Subscriber\",'Enrollment Form'!$CX117=\"Yes\"),\"-\",\"Y\")))))","v":""},{"$f":"IF($B110=\"N\",\"\",IF(AND('Enrollment Form'!$C117=\"ROC\",'Enrollment Form'!$DS117<>\"\"),\"Y\",IF(AND('Enrollment Form'!$C117=\"ROC\",'Enrollment Form'!$DS117=\"\"),\"N\",IF(AND('Enrollment Form'!$C117=\"Enroll\",'Enrollment Form'!$B117=\"Subscriber\",'Enrollment Form'!$CX117=\"No\",'Enrollment Form'!$DS117=\"\"),\"N\",IF(AND('Enrollment Form'!$C117=\"Enroll\",'Enrollment Form'!$B117=\"Subscriber\",'Enrollment Form'!$CX117=\"Yes\"),\"-\",\"Y\")))))","v":""},{"$f":"IF('Enrollment Form'!AH117=\"\",\"\",IF(ISERROR(SEARCH(\".\",'Enrollment Form'!AH117,SEARCH(\"@\",'Enrollment Form'!AH117))),\"N\",\"Y\"))","v":""},{"$f":"IF(OR($B110=\"N\",'Enrollment Form'!$G117=\"\"),\"\",IF('Enrollment Form'!$B117<>\"Subscriber\",\"-\",IF(COUNTIF('Enrollment Form'!$AV117:$AW117,\"Yes\")=2,\"N\",\"Y\")))","v":""},{"$f":"IF(OR('Enrollment Form'!$CJ117=\"\",'Enrollment Form'!$CJ117=\"No\"),\"-\",IF(AND('Enrollment Form'!$CJ117=\"Yes\",'Enrollment Form'!$CK117=\"\"),\"N\",\"Y\"))","v":"-"},{"$f":"IF(OR('Enrollment Form'!$CL117=\"\",'Enrollment Form'!$CL117=\"No\"),\"-\",IF(AND('Enrollment Form'!$CL117=\"Yes\",'Enrollment Form'!$CM117=\"\"),\"N\",\"Y\"))","v":"-"},{"$f":"IF(OR('Enrollment Form'!$CN117=\"\",'Enrollment Form'!$CN117=\"No\"),\"-\",IF(AND('Enrollment Form'!$CN117=\"Yes\",'Enrollment Form'!$CO117=\"\"),\"N\",\"Y\"))","v":"-"},{"$f":"IF(OR('Enrollment Form'!$CN117=\"\",'Enrollment Form'!$CN117=\"No\"),\"-\",IF(AND('Enrollment Form'!$CN117=\"Yes\",'Enrollment Form'!$CP117=\"\"),\"N\",\"Y\"))","v":"-"},{"$f":"IF('Enrollment Form'!B117<>\"Subscriber\",\"-\",IF(AND('Enrollment Form'!B117=\"Subscriber\",'Enrollment Form'!C117=\"Enroll\",'Enrollment Form'!AA117=\"\"),\"N\",\"Y\"))","v":"-"},{"$f":"IF(OR('Enrollment Form'!B117=\"Subscriber\",'Enrollment Form'!B117=\"\"),\"-\",IF('Enrollment Form'!BP117=\"\",\"N\",\"Y\"))","v":"-"},{"$f":"IF('Enrollment Form'!B117<>\"Subscriber\",\"-\",IF(AND('Enrollment Form'!B117=\"Subscriber\",'Enrollment Form'!G117=\"\"),\"N\",\"Y\"))","v":"-"},{"$f":"IF('Enrollment Form'!A117=\"\",\"\",IF('Enrollment Form'!B117=\"Subscriber\",\"-\",IF(AND('Enrollment Form'!B117<>\"Subscriber\",'Enrollment Form'!G117='Enrollment Form'!H117),\"N\",\"Y\")))","v":""},0]
[118,{"$f":"IF('Enrollment Form'!$A118<>\"\",\"Y\",\"N\")","v":"N"},{"$f":"IF(AND('Enrollment Form'!$B118=\"\",'Enrollment Form'!$C118<>\"\"),\"N\",IF($B111=\"N\",\"\",\"Y\"))","v":""},{"$f":"IF(OR($B111=\"N\",'Enrollment Form'!G118=\"\"),\"\",IF('Enrollment Form'!$B118<>\"Subscriber\",\"\",IF('Enrollment Form'!$G118='Enrollment Form'!$H118,\"Y\",\"N\")))","v":""},{"$f":"IF($B111=\"N\",\"\",IF(AND(COUNTIFS('Enrollment Form'!$H$11:$H$1000,'Enrollment Form'!$H118,'Enrollment Form'!$B$11:$B$1000,'Enrollment Form'!$B118)>1,'Enrollment Form'!$H118<>\"\"),\"N\",\"Y\"))","v":""},{"$f":"IF($B111=\"N\",\"\",IF(LEN('Enrollment Form'!$Y118)=0,\"\",IF(LEN('Enrollment Form'!$Y118)<>5,\"N\",\"Y\")))","v":""},{"$f":"IF($B111=\"N\",\"\",IF(LEN('Enrollment Form'!$AD118=0),\"\",IF(LEN('Enrollment Form'!$AD118)<>5,\"N\",\"Y\")))","v":""},{"$f":"IF($B111=\"N\",\"\",IF(LEN('Enrollment Form'!$BS118=0),\"\",IF(LEN('Enrollment Form'!$BS118)<>5,\"N\",\"Y\")))","v":""},{"$f":"IF($B111=\"N\",\"\",IF(LEN('Enrollment Form'!$AE118)=0,\"\",IF(LEN('Enrollment Form'!$AE118)<>10,\"N\",\"Y\")))","v":""},{"$f":"IF($B111=\"N\",\"\",IF(LEN('Enrollment Form'!$AF118)=0,\"\",IF(LEN('Enrollment Form'!$AF118)<>10,\"N\",\"Y\")))","v":""},{"$f":"IF('Enrollment Form'!$O118<>\"Graded\",\"-\",IF(AND('Enrollment Form'!$O118=\"Graded\",'Enrollment Form'!$AR118<>\"\"),\"Y\",\"N\"))","v":"-"},{"$f":"IF($B111=\"N\",\"\",IF(OR('Enrollment Form'!$B118<>\"Subscriber\",'Enrollment Form'!$C118=\"ROC\"),\"-\",IF(AND('Enrollment Form'!$B118=\"Subscriber\",'Enrollment Form'!$C118=\"Enroll\",'Enrollment Form'!$AJ118<>\"\"),\"Y\",\"N\")))","v":""},{"$f":"IF($B111=\"N\",\"\",IF(OR('Enrollment Form'!$B118<>\"Subscriber\",'Enrollment Form'!$C118=\"ROC\"),\"-\",IF(AND('Enrollment Form'!$B118=\"Subscriber\",'Enrollment Form'!$C118=\"Enroll\",'Enrollment Form'!$AK118<>\"\"),\"Y\",\"N\")))","v":""},{"$f":"IF($B111=\"N\",\"\",IF(OR('Enrollment Form'!$B118<>\"Subscriber\",'Enrollment Form'!$C118=\"ROC\"),\"-\",IF(AND('Enrollment Form'!$B118=\"Subscriber\",'Enrollment Form'!$C118=\"Enroll\",'Enrollment Form'!$AL118<>\"\"),\"Y\",\"N\")))","v":""},{"$f":"IF($B111=\"N\",\"\",IF(OR('Enrollment Form'!$B118<>\"Subscriber\",'Enrollment Form'!$C118=\"ROC\"),\"-\",IF(AND('Enrollment Form'!$B118=\"Subscriber\",'Enrollment Form'!$C118=\"Enroll\",'Enrollment Form'!$AP118<>\"\"),\"Y\",\"N\")))","v":""},{"$f":"IF($B111=\"N\",\"\",IF(OR('Enrollment Form'!$B118<>\"Subscriber\",'Enrollment Form'!$C118=\"ROC\"),\"-\",IF(AND('Enrollment Form'!$B118=\"Subscriber\",'Enrollment Form'!$C118=\"Enroll\",'Enrollment Form'!$AQ118<>\"\"),\"Y\",\"N\")))","v":""},{"$f":"IF($B111=\"N\",\"\",IF(OR('Enrollment Form'!$B118<>\"Subscriber\",'Enrollment Form'!$C118=\"ROC\"),\"-\",IF(AND('Enrollment Form'!$B118=\"Subscriber\",'Enrollment Form'!$C118=\"Enroll\",'Enrollment Form'!$AS118<>\"\"),\"Y\",\"N\")))","v":""},{"$f":"IF($B111=\"N\",\"\",IF($Q111=\"-\",\"-\",IF(AND($Q111=\"Y\",'Enrollment Form'!$AS118=\"No\"),\"-\",IF(AND($Q111=\"Y\",'Enrollment Form'!$AS118=\"Yes\",'Enrollment Form'!$AT118<>\"\"),\"Y\",\"N\"))))","v":""},{"$f":"IF($B111=\"N\",\"\",IF(OR('Enrollment Form'!$B118<>\"Subscriber\",'Enrollment Form'!$C118=\"ROC\"),\"-\",IF(AND('Enrollment Form'!$B118=\"Subscriber\",'Enrollment Form'!$C118=\"Enroll\",'Enrollment Form'!$CV118<>\"\"),\"Y\",\"N\")))","v":""},{"$f":"IF($B111=\"N\",\"\",IF($S111=\"-\",\"-\",IF(AND($S111=\"Y\",'Enrollment Form'!$CV118=\"No\"),\"-\",IF(AND($S111=\"Y\",'Enrollment Form'!$CV118=\"Yes\",'Enrollment Form'!$CW118<>\"\"),\"Y\",\"N\"))))","v":""},{"$f":"IF(OR('Enrollment Form'!$AY118=\"Yes\",'Enrollment Form'!$AY118=\"\"),\"-\",IF(OR(AND('Enrollment Form'!$AY118=\"No\",ISERROR(FIND(\"HMO\",VLOOKUP('Enrollment Form'!G118,'Enrollment Form'!H$11:J$1000,3,FALSE),1))=FALSE,COUNTA('Enrollment Form'!$AZ118:$BC118)=4),AND('Enrollment Form'!$AY118=\"No\",ISERROR(FIND(\"HMO\",VLOOKUP('Enrollment Form'!G118,'Enrollment Form'!H$11:J$1000,3,FALSE),1))=FALSE,COUNTA('Enrollment Form'!$BT118:$BW118)=4)),\"Y\",\"N\"))","v":"-"},{"$f":"IF($B111=\"N\",\"\",IF('Enrollment Form'!$B118=\"Subscriber\",\"-\",IF(COUNTA('Enrollment Form'!$BL118,'Enrollment Form'!$BN118)=2,\"Y\",\"N\")))","v":""},{"$f":"IF($B111=\"N\",\"\",IF(OR('Enrollment Form'!$AX118=\"\",'Enrollment Form'!$AX118=\"No\"),\"-\",IF(AND('Enrollment Form'!$AX118=\"Yes\",COUNTA('Enrollment Form'!$CR118)=1),\"Y\",\"N\")))","v":""},{"$f":"IF(OR('Enrollment Form'!$CR118=\"\",'Enrollment Form'!$CR118=\"No\"),\"-\",IF(COUNTA('Enrollment Form'!$CT118:$CU118)=2,\"Y\",\"N\"))","v":"-"},{"$f":"IF($B111=\"N\",\"\",IF(COUNTIF('Enrollment Form'!$DG118:$DP118,\"Other\")=COUNTA('Enrollment Form'!$DK118,'Enrollment Form'!$DH118,'Enrollment Form'!$DN118,'Enrollment Form'!$DQ118),\"Y\",\"N\"))","v":""},{"$f":"IF($B111=\"N\",\"\",IF(OR('Enrollment Form'!B118<>\"Subscriber\",'Enrollment Form'!C118=\"ROC\",COUNTIF('Enrollment Form'!AV118:AW118,\"Yes\")>=1),\"-\",IF(AND('Enrollment Form'!C118=\"Enroll\",COUNTIF('Enrollment Form'!AV118:AW118,\"No\")=2,'Enrollment Form'!AX118=\"\"),\"N\",\"Y\")))","v":""},{"$f":"IF(OR(B111=\"N\",'Enrollment Form'!B118<>\"Subscriber\",'Enrollment Form'!C118=\"ROC\",'Enrollment Form'!O118<>\"Multiple of Salary\"),\"-\",IF(COUNTA('Enrollment Form'!T118:U118)<2,\"N\",\"Y\"))","v":"-"},{"$f":"IF(B111=\"N\",\"\",IF(OR('Enrollment Form'!C118=\"ROC\",'Enrollment Form'!B118<>\"Subscriber\",'Enrollment Form'!O118=\"Waive\",'Enrollment Form'!O118=\"\"),\"-\",IF('Enrollment Form'!P118=\"\",\"N\",\"Y\")))","v":""},{"$f":"IF($B111=\"N\",\"\",IF(AND('Enrollment Form'!$C118=\"ROC\",'Enrollment Form'!$DR118<>\"\"),\"Y\",IF(AND('Enrollment Form'!$C118=\"ROC\",'Enrollment Form'!$DR118=\"\"),\"N\",IF(AND('Enrollment Form'!$C118=\"Enroll\",'Enrollment Form'!$B118=\"Subscriber\",'Enrollment Form'!$CX118=\"No\",'Enrollment Form'!$DR118=\"\"),\"N\",IF(AND('Enrollment Form'!$C118=\"Enroll\",'Enrollment Form'!$B118=\"Subscriber\",'Enrollment Form'!$CX118=\"Yes\"),\"-\",\"Y\")))))","v":""},{"$f":"IF($B111=\"N\",\"\",IF(AND('Enrollment Form'!$C118=\"ROC\",'Enrollment Form'!$DS118<>\"\"),\"Y\",IF(AND('Enrollment Form'!$C118=\"ROC\",'Enrollment Form'!$DS118=\"\"),\"N\",IF(AND('Enrollment Form'!$C118=\"Enroll\",'Enrollment Form'!$B118=\"Subscriber\",'Enrollment Form'!$CX118=\"No\",'Enrollment Form'!$DS118=\"\"),\"N\",IF(AND('Enrollment Form'!$C118=\"Enroll\",'Enrollment Form'!$B118=\"Subscriber\",'Enrollment Form'!$CX118=\"Yes\"),\"-\",\"Y\")))))","v":""},{"$f":"IF('Enrollment Form'!AH118=\"\",\"\",IF(ISERROR(SEARCH(\".\",'Enrollment Form'!AH118,SEARCH(\"@\",'Enrollment Form'!AH118))),\"N\",\"Y\"))","v":""},{"$f":"IF(OR($B111=\"N\",'Enrollment Form'!$G118=\"\"),\"\",IF('Enrollment Form'!$B118<>\"Subscriber\",\"-\",IF(COUNTIF('Enrollment Form'!$AV118:$AW118,\"Yes\")=2,\"N\",\"Y\")))","v":""},{"$f":"IF(OR('Enrollment Form'!$CJ118=\"\",'Enrollment Form'!$CJ118=\"No\"),\"-\",IF(AND('Enrollment Form'!$CJ118=\"Yes\",'Enrollment Form'!$CK118=\"\"),\"N\",\"Y\"))","v":"-"},{"$f":"IF(OR('Enrollment Form'!$CL118=\"\",'Enrollment Form'!$CL118=\"No\"),\"-\",IF(AND('Enrollment Form'!$CL118=\"Yes\",'Enrollment Form'!$CM118=\"\"),\"N\",\"Y\"))","v":"-"},{"$f":"IF(OR('Enrollment Form'!$CN118=\"\",'Enrollment Form'!$CN118=\"No\"),\"-\",IF(AND('Enrollment Form'!$CN118=\"Yes\",'Enrollment Form'!$CO118=\"\"),\"N\",\"Y\"))","v":"-"},{"$f":"IF(OR('Enrollment Form'!$CN118=\"\",'Enrollment Form'!$CN118=\"No\"),\"-\",IF(AND('Enrollment Form'!$CN118=\"Yes\",'Enrollment Form'!$CP118=\"\"),\"N\",\"Y\"))","v":"-"},{"$f":"IF('Enrollment Form'!B118<>\"Subscriber\",\"-\",IF(AND('Enrollment Form'!B118=\"Subscriber\",'Enrollment Form'!C118=\"Enroll\",'Enrollment Form'!AA118=\"\"),\"N\",\"Y\"))","v":"-"},{"$f":"IF(OR('Enrollment Form'!B118=\"Subscriber\",'Enrollment Form'!B118=\"\"),\"-\",IF('Enrollment Form'!BP118=\"\",\"N\",\"Y\"))","v":"-"},{"$f":"IF('Enrollment Form'!B118<>\"Subscriber\",\"-\",IF(AND('Enrollment Form'!B118=\"Subscriber\",'Enrollment Form'!G118=\"\"),\"N\",\"Y\"))","v":"-"},{"$f":"IF('Enrollment Form'!A118=\"\",\"\",IF('Enrollment Form'!B118=\"Subscriber\",\"-\",IF(AND('Enrollment Form'!B118<>\"Subscriber\",'Enrollment Form'!G118='Enrollment Form'!H118),\"N\",\"Y\")))","v":""},0]
[119,{"$f":"IF('Enrollment Form'!$A119<>\"\",\"Y\",\"N\")","v":"N"},{"$f":"IF(AND('Enrollment Form'!$B119=\"\",'Enrollment Form'!$C119<>\"\"),\"N\",IF($B112=\"N\",\"\",\"Y\"))","v":""},{"$f":"IF(OR($B112=\"N\",'Enrollment Form'!G119=\"\"),\"\",IF('Enrollment Form'!$B119<>\"Subscriber\",\"\",IF('Enrollment Form'!$G119='Enrollment Form'!$H119,\"Y\",\"N\")))","v":""},{"$f":"IF($B112=\"N\",\"\",IF(AND(COUNTIFS('Enrollment Form'!$H$11:$H$1000,'Enrollment Form'!$H119,'Enrollment Form'!$B$11:$B$1000,'Enrollment Form'!$B119)>1,'Enrollment Form'!$H119<>\"\"),\"N\",\"Y\"))","v":""},{"$f":"IF($B112=\"N\",\"\",IF(LEN('Enrollment Form'!$Y119)=0,\"\",IF(LEN('Enrollment Form'!$Y119)<>5,\"N\",\"Y\")))","v":""},{"$f":"IF($B112=\"N\",\"\",IF(LEN('Enrollment Form'!$AD119=0),\"\",IF(LEN('Enrollment Form'!$AD119)<>5,\"N\",\"Y\")))","v":""},{"$f":"IF($B112=\"N\",\"\",IF(LEN('Enrollment Form'!$BS119=0),\"\",IF(LEN('Enrollment Form'!$BS119)<>5,\"N\",\"Y\")))","v":""},{"$f":"IF($B112=\"N\",\"\",IF(LEN('Enrollment Form'!$AE119)=0,\"\",IF(LEN('Enrollment Form'!$AE119)<>10,\"N\",\"Y\")))","v":""},{"$f":"IF($B112=\"N\",\"\",IF(LEN('Enrollment Form'!$AF119)=0,\"\",IF(LEN('Enrollment Form'!$AF119)<>10,\"N\",\"Y\")))","v":""},{"$f":"IF('Enrollment Form'!$O119<>\"Graded\",\"-\",IF(AND('Enrollment Form'!$O119=\"Graded\",'Enrollment Form'!$AR119<>\"\"),\"Y\",\"N\"))","v":"-"},{"$f":"IF($B112=\"N\",\"\",IF(OR('Enrollment Form'!$B119<>\"Subscriber\",'Enrollment Form'!$C119=\"ROC\"),\"-\",IF(AND('Enrollment Form'!$B119=\"Subscriber\",'Enrollment Form'!$C119=\"Enroll\",'Enrollment Form'!$AJ119<>\"\"),\"Y\",\"N\")))","v":""},{"$f":"IF($B112=\"N\",\"\",IF(OR('Enrollment Form'!$B119<>\"Subscriber\",'Enrollment Form'!$C119=\"ROC\"),\"-\",IF(AND('Enrollment Form'!$B119=\"Subscriber\",'Enrollment Form'!$C119=\"Enroll\",'Enrollment Form'!$AK119<>\"\"),\"Y\",\"N\")))","v":""},{"$f":"IF($B112=\"N\",\"\",IF(OR('Enrollment Form'!$B119<>\"Subscriber\",'Enrollment Form'!$C119=\"ROC\"),\"-\",IF(AND('Enrollment Form'!$B119=\"Subscriber\",'Enrollment Form'!$C119=\"Enroll\",'Enrollment Form'!$AL119<>\"\"),\"Y\",\"N\")))","v":""},{"$f":"IF($B112=\"N\",\"\",IF(OR('Enrollment Form'!$B119<>\"Subscriber\",'Enrollment Form'!$C119=\"ROC\"),\"-\",IF(AND('Enrollment Form'!$B119=\"Subscriber\",'Enrollment Form'!$C119=\"Enroll\",'Enrollment Form'!$AP119<>\"\"),\"Y\",\"N\")))","v":""},{"$f":"IF($B112=\"N\",\"\",IF(OR('Enrollment Form'!$B119<>\"Subscriber\",'Enrollment Form'!$C119=\"ROC\"),\"-\",IF(AND('Enrollment Form'!$B119=\"Subscriber\",'Enrollment Form'!$C119=\"Enroll\",'Enrollment Form'!$AQ119<>\"\"),\"Y\",\"N\")))","v":""},{"$f":"IF($B112=\"N\",\"\",IF(OR('Enrollment Form'!$B119<>\"Subscriber\",'Enrollment Form'!$C119=\"ROC\"),\"-\",IF(AND('Enrollment Form'!$B119=\"Subscriber\",'Enrollment Form'!$C119=\"Enroll\",'Enrollment Form'!$AS119<>\"\"),\"Y\",\"N\")))","v":""},{"$f":"IF($B112=\"N\",\"\",IF($Q112=\"-\",\"-\",IF(AND($Q112=\"Y\",'Enrollment Form'!$AS119=\"No\"),\"-\",IF(AND($Q112=\"Y\",'Enrollment Form'!$AS119=\"Yes\",'Enrollment Form'!$AT119<>\"\"),\"Y\",\"N\"))))","v":""},{"$f":"IF($B112=\"N\",\"\",IF(OR('Enrollment Form'!$B119<>\"Subscriber\",'Enrollment Form'!$C119=\"ROC\"),\"-\",IF(AND('Enrollment Form'!$B119=\"Subscriber\",'Enrollment Form'!$C119=\"Enroll\",'Enrollment Form'!$CV119<>\"\"),\"Y\",\"N\")))","v":""},{"$f":"IF($B112=\"N\",\"\",IF($S112=\"-\",\"-\",IF(AND($S112=\"Y\",'Enrollment Form'!$CV119=\"No\"),\"-\",IF(AND($S112=\"Y\",'Enrollment Form'!$CV119=\"Yes\",'Enrollment Form'!$CW119<>\"\"),\"Y\",\"N\"))))","v":""},{"$f":"IF(OR('Enrollment Form'!$AY119=\"Yes\",'Enrollment Form'!$AY119=\"\"),\"-\",IF(OR(AND('Enrollment Form'!$AY119=\"No\",ISERROR(FIND(\"HMO\",VLOOKUP('Enrollment Form'!G119,'Enrollment Form'!H$11:J$1000,3,FALSE),1))=FALSE,COUNTA('Enrollment Form'!$AZ119:$BC119)=4),AND('Enrollment Form'!$AY119=\"No\",ISERROR(FIND(\"HMO\",VLOOKUP('Enrollment Form'!G119,'Enrollment Form'!H$11:J$1000,3,FALSE),1))=FALSE,COUNTA('Enrollment Form'!$BT119:$BW119)=4)),\"Y\",\"N\"))","v":"-"},{"$f":"IF($B112=\"N\",\"\",IF('Enrollment Form'!$B119=\"Subscriber\",\"-\",IF(COUNTA('Enrollment Form'!$BL119,'Enrollment Form'!$BN119)=2,\"Y\",\"N\")))","v":""},{"$f":"IF($B112=\"N\",\"\",IF(OR('Enrollment Form'!$AX119=\"\",'Enrollment Form'!$AX119=\"No\"),\"-\",IF(AND('Enrollment Form'!$AX119=\"Yes\",COUNTA('Enrollment Form'!$CR119)=1),\"Y\",\"N\")))","v":""},{"$f":"IF(OR('Enrollment Form'!$CR119=\"\",'Enrollment Form'!$CR119=\"No\"),\"-\",IF(COUNTA('Enrollment Form'!$CT119:$CU119)=2,\"Y\",\"N\"))","v":"-"},{"$f":"IF($B112=\"N\",\"\",IF(COUNTIF('Enrollment Form'!$DG119:$DP119,\"Other\")=COUNTA('Enrollment Form'!$DK119,'Enrollment Form'!$DH119,'Enrollment Form'!$DN119,'Enrollment Form'!$DQ119),\"Y\",\"N\"))","v":""},{"$f":"IF($B112=\"N\",\"\",IF(OR('Enrollment Form'!B119<>\"Subscriber\",'Enrollment Form'!C119=\"ROC\",COUNTIF('Enrollment Form'!AV119:AW119,\"Yes\")>=1),\"-\",IF(AND('Enrollment Form'!C119=\"Enroll\",COUNTIF('Enrollment Form'!AV119:AW119,\"No\")=2,'Enrollment Form'!AX119=\"\"),\"N\",\"Y\")))","v":""},{"$f":"IF(OR(B112=\"N\",'Enrollment Form'!B119<>\"Subscriber\",'Enrollment Form'!C119=\"ROC\",'Enrollment Form'!O119<>\"Multiple of Salary\"),\"-\",IF(COUNTA('Enrollment Form'!T119:U119)<2,\"N\",\"Y\"))","v":"-"},{"$f":"IF(B112=\"N\",\"\",IF(OR('Enrollment Form'!C119=\"ROC\",'Enrollment Form'!B119<>\"Subscriber\",'Enrollment Form'!O119=\"Waive\",'Enrollment Form'!O119=\"\"),\"-\",IF('Enrollment Form'!P119=\"\",\"N\",\"Y\")))","v":""},{"$f":"IF($B112=\"N\",\"\",IF(AND('Enrollment Form'!$C119=\"ROC\",'Enrollment Form'!$DR119<>\"\"),\"Y\",IF(AND('Enrollment Form'!$C119=\"ROC\",'Enrollment Form'!$DR119=\"\"),\"N\",IF(AND('Enrollment Form'!$C119=\"Enroll\",'Enrollment Form'!$B119=\"Subscriber\",'Enrollment Form'!$CX119=\"No\",'Enrollment Form'!$DR119=\"\"),\"N\",IF(AND('Enrollment Form'!$C119=\"Enroll\",'Enrollment Form'!$B119=\"Subscriber\",'Enrollment Form'!$CX119=\"Yes\"),\"-\",\"Y\")))))","v":""},{"$f":"IF($B112=\"N\",\"\",IF(AND('Enrollment Form'!$C119=\"ROC\",'Enrollment Form'!$DS119<>\"\"),\"Y\",IF(AND('Enrollment Form'!$C119=\"ROC\",'Enrollment Form'!$DS119=\"\"),\"N\",IF(AND('Enrollment Form'!$C119=\"Enroll\",'Enrollment Form'!$B119=\"Subscriber\",'Enrollment Form'!$CX119=\"No\",'Enrollment Form'!$DS119=\"\"),\"N\",IF(AND('Enrollment Form'!$C119=\"Enroll\",'Enrollment Form'!$B119=\"Subscriber\",'Enrollment Form'!$CX119=\"Yes\"),\"-\",\"Y\")))))","v":""},{"$f":"IF('Enrollment Form'!AH119=\"\",\"\",IF(ISERROR(SEARCH(\".\",'Enrollment Form'!AH119,SEARCH(\"@\",'Enrollment Form'!AH119))),\"N\",\"Y\"))","v":""},{"$f":"IF(OR($B112=\"N\",'Enrollment Form'!$G119=\"\"),\"\",IF('Enrollment Form'!$B119<>\"Subscriber\",\"-\",IF(COUNTIF('Enrollment Form'!$AV119:$AW119,\"Yes\")=2,\"N\",\"Y\")))","v":""},{"$f":"IF(OR('Enrollment Form'!$CJ119=\"\",'Enrollment Form'!$CJ119=\"No\"),\"-\",IF(AND('Enrollment Form'!$CJ119=\"Yes\",'Enrollment Form'!$CK119=\"\"),\"N\",\"Y\"))","v":"-"},{"$f":"IF(OR('Enrollment Form'!$CL119=\"\",'Enrollment Form'!$CL119=\"No\"),\"-\",IF(AND('Enrollment Form'!$CL119=\"Yes\",'Enrollment Form'!$CM119=\"\"),\"N\",\"Y\"))","v":"-"},{"$f":"IF(OR('Enrollment Form'!$CN119=\"\",'Enrollment Form'!$CN119=\"No\"),\"-\",IF(AND('Enrollment Form'!$CN119=\"Yes\",'Enrollment Form'!$CO119=\"\"),\"N\",\"Y\"))","v":"-"},{"$f":"IF(OR('Enrollment Form'!$CN119=\"\",'Enrollment Form'!$CN119=\"No\"),\"-\",IF(AND('Enrollment Form'!$CN119=\"Yes\",'Enrollment Form'!$CP119=\"\"),\"N\",\"Y\"))","v":"-"},{"$f":"IF('Enrollment Form'!B119<>\"Subscriber\",\"-\",IF(AND('Enrollment Form'!B119=\"Subscriber\",'Enrollment Form'!C119=\"Enroll\",'Enrollment Form'!AA119=\"\"),\"N\",\"Y\"))","v":"-"},{"$f":"IF(OR('Enrollment Form'!B119=\"Subscriber\",'Enrollment Form'!B119=\"\"),\"-\",IF('Enrollment Form'!BP119=\"\",\"N\",\"Y\"))","v":"-"},{"$f":"IF('Enrollment Form'!B119<>\"Subscriber\",\"-\",IF(AND('Enrollment Form'!B119=\"Subscriber\",'Enrollment Form'!G119=\"\"),\"N\",\"Y\"))","v":"-"},{"$f":"IF('Enrollment Form'!A119=\"\",\"\",IF('Enrollment Form'!B119=\"Subscriber\",\"-\",IF(AND('Enrollment Form'!B119<>\"Subscriber\",'Enrollment Form'!G119='Enrollment Form'!H119),\"N\",\"Y\")))","v":""},0]
[120,{"$f":"IF('Enrollment Form'!$A120<>\"\",\"Y\",\"N\")","v":"N"},{"$f":"IF(AND('Enrollment Form'!$B120=\"\",'Enrollment Form'!$C120<>\"\"),\"N\",IF($B113=\"N\",\"\",\"Y\"))","v":""},{"$f":"IF(OR($B113=\"N\",'Enrollment Form'!G120=\"\"),\"\",IF('Enrollment Form'!$B120<>\"Subscriber\",\"\",IF('Enrollment Form'!$G120='Enrollment Form'!$H120,\"Y\",\"N\")))","v":""},{"$f":"IF($B113=\"N\",\"\",IF(AND(COUNTIFS('Enrollment Form'!$H$11:$H$1000,'Enrollment Form'!$H120,'Enrollment Form'!$B$11:$B$1000,'Enrollment Form'!$B120)>1,'Enrollment Form'!$H120<>\"\"),\"N\",\"Y\"))","v":""},{"$f":"IF($B113=\"N\",\"\",IF(LEN('Enrollment Form'!$Y120)=0,\"\",IF(LEN('Enrollment Form'!$Y120)<>5,\"N\",\"Y\")))","v":""},{"$f":"IF($B113=\"N\",\"\",IF(LEN('Enrollment Form'!$AD120=0),\"\",IF(LEN('Enrollment Form'!$AD120)<>5,\"N\",\"Y\")))","v":""},{"$f":"IF($B113=\"N\",\"\",IF(LEN('Enrollment Form'!$BS120=0),\"\",IF(LEN('Enrollment Form'!$BS120)<>5,\"N\",\"Y\")))","v":""},{"$f":"IF($B113=\"N\",\"\",IF(LEN('Enrollment Form'!$AE120)=0,\"\",IF(LEN('Enrollment Form'!$AE120)<>10,\"N\",\"Y\")))","v":""},{"$f":"IF($B113=\"N\",\"\",IF(LEN('Enrollment Form'!$AF120)=0,\"\",IF(LEN('Enrollment Form'!$AF120)<>10,\"N\",\"Y\")))","v":""},{"$f":"IF('Enrollment Form'!$O120<>\"Graded\",\"-\",IF(AND('Enrollment Form'!$O120=\"Graded\",'Enrollment Form'!$AR120<>\"\"),\"Y\",\"N\"))","v":"-"},{"$f":"IF($B113=\"N\",\"\",IF(OR('Enrollment Form'!$B120<>\"Subscriber\",'Enrollment Form'!$C120=\"ROC\"),\"-\",IF(AND('Enrollment Form'!$B120=\"Subscriber\",'Enrollment Form'!$C120=\"Enroll\",'Enrollment Form'!$AJ120<>\"\"),\"Y\",\"N\")))","v":""},{"$f":"IF($B113=\"N\",\"\",IF(OR('Enrollment Form'!$B120<>\"Subscriber\",'Enrollment Form'!$C120=\"ROC\"),\"-\",IF(AND('Enrollment Form'!$B120=\"Subscriber\",'Enrollment Form'!$C120=\"Enroll\",'Enrollment Form'!$AK120<>\"\"),\"Y\",\"N\")))","v":""},{"$f":"IF($B113=\"N\",\"\",IF(OR('Enrollment Form'!$B120<>\"Subscriber\",'Enrollment Form'!$C120=\"ROC\"),\"-\",IF(AND('Enrollment Form'!$B120=\"Subscriber\",'Enrollment Form'!$C120=\"Enroll\",'Enrollment Form'!$AL120<>\"\"),\"Y\",\"N\")))","v":""},{"$f":"IF($B113=\"N\",\"\",IF(OR('Enrollment Form'!$B120<>\"Subscriber\",'Enrollment Form'!$C120=\"ROC\"),\"-\",IF(AND('Enrollment Form'!$B120=\"Subscriber\",'Enrollment Form'!$C120=\"Enroll\",'Enrollment Form'!$AP120<>\"\"),\"Y\",\"N\")))","v":""},{"$f":"IF($B113=\"N\",\"\",IF(OR('Enrollment Form'!$B120<>\"Subscriber\",'Enrollment Form'!$C120=\"ROC\"),\"-\",IF(AND('Enrollment Form'!$B120=\"Subscriber\",'Enrollment Form'!$C120=\"Enroll\",'Enrollment Form'!$AQ120<>\"\"),\"Y\",\"N\")))","v":""},{"$f":"IF($B113=\"N\",\"\",IF(OR('Enrollment Form'!$B120<>\"Subscriber\",'Enrollment Form'!$C120=\"ROC\"),\"-\",IF(AND('Enrollment Form'!$B120=\"Subscriber\",'Enrollment Form'!$C120=\"Enroll\",'Enrollment Form'!$AS120<>\"\"),\"Y\",\"N\")))","v":""},{"$f":"IF($B113=\"N\",\"\",IF($Q113=\"-\",\"-\",IF(AND($Q113=\"Y\",'Enrollment Form'!$AS120=\"No\"),\"-\",IF(AND($Q113=\"Y\",'Enrollment Form'!$AS120=\"Yes\",'Enrollment Form'!$AT120<>\"\"),\"Y\",\"N\"))))","v":""},{"$f":"IF($B113=\"N\",\"\",IF(OR('Enrollment Form'!$B120<>\"Subscriber\",'Enrollment Form'!$C120=\"ROC\"),\"-\",IF(AND('Enrollment Form'!$B120=\"Subscriber\",'Enrollment Form'!$C120=\"Enroll\",'Enrollment Form'!$CV120<>\"\"),\"Y\",\"N\")))","v":""},{"$f":"IF($B113=\"N\",\"\",IF($S113=\"-\",\"-\",IF(AND($S113=\"Y\",'Enrollment Form'!$CV120=\"No\"),\"-\",IF(AND($S113=\"Y\",'Enrollment Form'!$CV120=\"Yes\",'Enrollment Form'!$CW120<>\"\"),\"Y\",\"N\"))))","v":""},{"$f":"IF(OR('Enrollment Form'!$AY120=\"Yes\",'Enrollment Form'!$AY120=\"\"),\"-\",IF(OR(AND('Enrollment Form'!$AY120=\"No\",ISERROR(FIND(\"HMO\",VLOOKUP('Enrollment Form'!G120,'Enrollment Form'!H$11:J$1000,3,FALSE),1))=FALSE,COUNTA('Enrollment Form'!$AZ120:$BC120)=4),AND('Enrollment Form'!$AY120=\"No\",ISERROR(FIND(\"HMO\",VLOOKUP('Enrollment Form'!G120,'Enrollment Form'!H$11:J$1000,3,FALSE),1))=FALSE,COUNTA('Enrollment Form'!$BT120:$BW120)=4)),\"Y\",\"N\"))","v":"-"},{"$f":"IF($B113=\"N\",\"\",IF('Enrollment Form'!$B120=\"Subscriber\",\"-\",IF(COUNTA('Enrollment Form'!$BL120,'Enrollment Form'!$BN120)=2,\"Y\",\"N\")))","v":""},{"$f":"IF($B113=\"N\",\"\",IF(OR('Enrollment Form'!$AX120=\"\",'Enrollment Form'!$AX120=\"No\"),\"-\",IF(AND('Enrollment Form'!$AX120=\"Yes\",COUNTA('Enrollment Form'!$CR120)=1),\"Y\",\"N\")))","v":""},{"$f":"IF(OR('Enrollment Form'!$CR120=\"\",'Enrollment Form'!$CR120=\"No\"),\"-\",IF(COUNTA('Enrollment Form'!$CT120:$CU120)=2,\"Y\",\"N\"))","v":"-"},{"$f":"IF($B113=\"N\",\"\",IF(COUNTIF('Enrollment Form'!$DG120:$DP120,\"Other\")=COUNTA('Enrollment Form'!$DK120,'Enrollment Form'!$DH120,'Enrollment Form'!$DN120,'Enrollment Form'!$DQ120),\"Y\",\"N\"))","v":""},{"$f":"IF($B113=\"N\",\"\",IF(OR('Enrollment Form'!B120<>\"Subscriber\",'Enrollment Form'!C120=\"ROC\",COUNTIF('Enrollment Form'!AV120:AW120,\"Yes\")>=1),\"-\",IF(AND('Enrollment Form'!C120=\"Enroll\",COUNTIF('Enrollment Form'!AV120:AW120,\"No\")=2,'Enrollment Form'!AX120=\"\"),\"N\",\"Y\")))","v":""},{"$f":"IF(OR(B113=\"N\",'Enrollment Form'!B120<>\"Subscriber\",'Enrollment Form'!C120=\"ROC\",'Enrollment Form'!O120<>\"Multiple of Salary\"),\"-\",IF(COUNTA('Enrollment Form'!T120:U120)<2,\"N\",\"Y\"))","v":"-"},{"$f":"IF(B113=\"N\",\"\",IF(OR('Enrollment Form'!C120=\"ROC\",'Enrollment Form'!B120<>\"Subscriber\",'Enrollment Form'!O120=\"Waive\",'Enrollment Form'!O120=\"\"),\"-\",IF('Enrollment Form'!P120=\"\",\"N\",\"Y\")))","v":""},{"$f":"IF($B113=\"N\",\"\",IF(AND('Enrollment Form'!$C120=\"ROC\",'Enrollment Form'!$DR120<>\"\"),\"Y\",IF(AND('Enrollment Form'!$C120=\"ROC\",'Enrollment Form'!$DR120=\"\"),\"N\",IF(AND('Enrollment Form'!$C120=\"Enroll\",'Enrollment Form'!$B120=\"Subscriber\",'Enrollment Form'!$CX120=\"No\",'Enrollment Form'!$DR120=\"\"),\"N\",IF(AND('Enrollment Form'!$C120=\"Enroll\",'Enrollment Form'!$B120=\"Subscriber\",'Enrollment Form'!$CX120=\"Yes\"),\"-\",\"Y\")))))","v":""},{"$f":"IF($B113=\"N\",\"\",IF(AND('Enrollment Form'!$C120=\"ROC\",'Enrollment Form'!$DS120<>\"\"),\"Y\",IF(AND('Enrollment Form'!$C120=\"ROC\",'Enrollment Form'!$DS120=\"\"),\"N\",IF(AND('Enrollment Form'!$C120=\"Enroll\",'Enrollment Form'!$B120=\"Subscriber\",'Enrollment Form'!$CX120=\"No\",'Enrollment Form'!$DS120=\"\"),\"N\",IF(AND('Enrollment Form'!$C120=\"Enroll\",'Enrollment Form'!$B120=\"Subscriber\",'Enrollment Form'!$CX120=\"Yes\"),\"-\",\"Y\")))))","v":""},{"$f":"IF('Enrollment Form'!AH120=\"\",\"\",IF(ISERROR(SEARCH(\".\",'Enrollment Form'!AH120,SEARCH(\"@\",'Enrollment Form'!AH120))),\"N\",\"Y\"))","v":""},{"$f":"IF(OR($B113=\"N\",'Enrollment Form'!$G120=\"\"),\"\",IF('Enrollment Form'!$B120<>\"Subscriber\",\"-\",IF(COUNTIF('Enrollment Form'!$AV120:$AW120,\"Yes\")=2,\"N\",\"Y\")))","v":""},{"$f":"IF(OR('Enrollment Form'!$CJ120=\"\",'Enrollment Form'!$CJ120=\"No\"),\"-\",IF(AND('Enrollment Form'!$CJ120=\"Yes\",'Enrollment Form'!$CK120=\"\"),\"N\",\"Y\"))","v":"-"},{"$f":"IF(OR('Enrollment Form'!$CL120=\"\",'Enrollment Form'!$CL120=\"No\"),\"-\",IF(AND('Enrollment Form'!$CL120=\"Yes\",'Enrollment Form'!$CM120=\"\"),\"N\",\"Y\"))","v":"-"},{"$f":"IF(OR('Enrollment Form'!$CN120=\"\",'Enrollment Form'!$CN120=\"No\"),\"-\",IF(AND('Enrollment Form'!$CN120=\"Yes\",'Enrollment Form'!$CO120=\"\"),\"N\",\"Y\"))","v":"-"},{"$f":"IF(OR('Enrollment Form'!$CN120=\"\",'Enrollment Form'!$CN120=\"No\"),\"-\",IF(AND('Enrollment Form'!$CN120=\"Yes\",'Enrollment Form'!$CP120=\"\"),\"N\",\"Y\"))","v":"-"},{"$f":"IF('Enrollment Form'!B120<>\"Subscriber\",\"-\",IF(AND('Enrollment Form'!B120=\"Subscriber\",'Enrollment Form'!C120=\"Enroll\",'Enrollment Form'!AA120=\"\"),\"N\",\"Y\"))","v":"-"},{"$f":"IF(OR('Enrollment Form'!B120=\"Subscriber\",'Enrollment Form'!B120=\"\"),\"-\",IF('Enrollment Form'!BP120=\"\",\"N\",\"Y\"))","v":"-"},{"$f":"IF('Enrollment Form'!B120<>\"Subscriber\",\"-\",IF(AND('Enrollment Form'!B120=\"Subscriber\",'Enrollment Form'!G120=\"\"),\"N\",\"Y\"))","v":"-"},{"$f":"IF('Enrollment Form'!A120=\"\",\"\",IF('Enrollment Form'!B120=\"Subscriber\",\"-\",IF(AND('Enrollment Form'!B120<>\"Subscriber\",'Enrollment Form'!G120='Enrollment Form'!H120),\"N\",\"Y\")))","v":""},0]
[121,{"$f":"IF('Enrollment Form'!$A121<>\"\",\"Y\",\"N\")","v":"N"},{"$f":"IF(AND('Enrollment Form'!$B121=\"\",'Enrollment Form'!$C121<>\"\"),\"N\",IF($B114=\"N\",\"\",\"Y\"))","v":""},{"$f":"IF(OR($B114=\"N\",'Enrollment Form'!G121=\"\"),\"\",IF('Enrollment Form'!$B121<>\"Subscriber\",\"\",IF('Enrollment Form'!$G121='Enrollment Form'!$H121,\"Y\",\"N\")))","v":""},{"$f":"IF($B114=\"N\",\"\",IF(AND(COUNTIFS('Enrollment Form'!$H$11:$H$1000,'Enrollment Form'!$H121,'Enrollment Form'!$B$11:$B$1000,'Enrollment Form'!$B121)>1,'Enrollment Form'!$H121<>\"\"),\"N\",\"Y\"))","v":""},{"$f":"IF($B114=\"N\",\"\",IF(LEN('Enrollment Form'!$Y121)=0,\"\",IF(LEN('Enrollment Form'!$Y121)<>5,\"N\",\"Y\")))","v":""},{"$f":"IF($B114=\"N\",\"\",IF(LEN('Enrollment Form'!$AD121=0),\"\",IF(LEN('Enrollment Form'!$AD121)<>5,\"N\",\"Y\")))","v":""},{"$f":"IF($B114=\"N\",\"\",IF(LEN('Enrollment Form'!$BS121=0),\"\",IF(LEN('Enrollment Form'!$BS121)<>5,\"N\",\"Y\")))","v":""},{"$f":"IF($B114=\"N\",\"\",IF(LEN('Enrollment Form'!$AE121)=0,\"\",IF(LEN('Enrollment Form'!$AE121)<>10,\"N\",\"Y\")))","v":""},{"$f":"IF($B114=\"N\",\"\",IF(LEN('Enrollment Form'!$AF121)=0,\"\",IF(LEN('Enrollment Form'!$AF121)<>10,\"N\",\"Y\")))","v":""},{"$f":"IF('Enrollment Form'!$O121<>\"Graded\",\"-\",IF(AND('Enrollment Form'!$O121=\"Graded\",'Enrollment Form'!$AR121<>\"\"),\"Y\",\"N\"))","v":"-"},{"$f":"IF($B114=\"N\",\"\",IF(OR('Enrollment Form'!$B121<>\"Subscriber\",'Enrollment Form'!$C121=\"ROC\"),\"-\",IF(AND('Enrollment Form'!$B121=\"Subscriber\",'Enrollment Form'!$C121=\"Enroll\",'Enrollment Form'!$AJ121<>\"\"),\"Y\",\"N\")))","v":""},{"$f":"IF($B114=\"N\",\"\",IF(OR('Enrollment Form'!$B121<>\"Subscriber\",'Enrollment Form'!$C121=\"ROC\"),\"-\",IF(AND('Enrollment Form'!$B121=\"Subscriber\",'Enrollment Form'!$C121=\"Enroll\",'Enrollment Form'!$AK121<>\"\"),\"Y\",\"N\")))","v":""},{"$f":"IF($B114=\"N\",\"\",IF(OR('Enrollment Form'!$B121<>\"Subscriber\",'Enrollment Form'!$C121=\"ROC\"),\"-\",IF(AND('Enrollment Form'!$B121=\"Subscriber\",'Enrollment Form'!$C121=\"Enroll\",'Enrollment Form'!$AL121<>\"\"),\"Y\",\"N\")))","v":""},{"$f":"IF($B114=\"N\",\"\",IF(OR('Enrollment Form'!$B121<>\"Subscriber\",'Enrollment Form'!$C121=\"ROC\"),\"-\",IF(AND('Enrollment Form'!$B121=\"Subscriber\",'Enrollment Form'!$C121=\"Enroll\",'Enrollment Form'!$AP121<>\"\"),\"Y\",\"N\")))","v":""},{"$f":"IF($B114=\"N\",\"\",IF(OR('Enrollment Form'!$B121<>\"Subscriber\",'Enrollment Form'!$C121=\"ROC\"),\"-\",IF(AND('Enrollment Form'!$B121=\"Subscriber\",'Enrollment Form'!$C121=\"Enroll\",'Enrollment Form'!$AQ121<>\"\"),\"Y\",\"N\")))","v":""},{"$f":"IF($B114=\"N\",\"\",IF(OR('Enrollment Form'!$B121<>\"Subscriber\",'Enrollment Form'!$C121=\"ROC\"),\"-\",IF(AND('Enrollment Form'!$B121=\"Subscriber\",'Enrollment Form'!$C121=\"Enroll\",'Enrollment Form'!$AS121<>\"\"),\"Y\",\"N\")))","v":""},{"$f":"IF($B114=\"N\",\"\",IF($Q114=\"-\",\"-\",IF(AND($Q114=\"Y\",'Enrollment Form'!$AS121=\"No\"),\"-\",IF(AND($Q114=\"Y\",'Enrollment Form'!$AS121=\"Yes\",'Enrollment Form'!$AT121<>\"\"),\"Y\",\"N\"))))","v":""},{"$f":"IF($B114=\"N\",\"\",IF(OR('Enrollment Form'!$B121<>\"Subscriber\",'Enrollment Form'!$C121=\"ROC\"),\"-\",IF(AND('Enrollment Form'!$B121=\"Subscriber\",'Enrollment Form'!$C121=\"Enroll\",'Enrollment Form'!$CV121<>\"\"),\"Y\",\"N\")))","v":""},{"$f":"IF($B114=\"N\",\"\",IF($S114=\"-\",\"-\",IF(AND($S114=\"Y\",'Enrollment Form'!$CV121=\"No\"),\"-\",IF(AND($S114=\"Y\",'Enrollment Form'!$CV121=\"Yes\",'Enrollment Form'!$CW121<>\"\"),\"Y\",\"N\"))))","v":""},{"$f":"IF(OR('Enrollment Form'!$AY121=\"Yes\",'Enrollment Form'!$AY121=\"\"),\"-\",IF(OR(AND('Enrollment Form'!$AY121=\"No\",ISERROR(FIND(\"HMO\",VLOOKUP('Enrollment Form'!G121,'Enrollment Form'!H$11:J$1000,3,FALSE),1))=FALSE,COUNTA('Enrollment Form'!$AZ121:$BC121)=4),AND('Enrollment Form'!$AY121=\"No\",ISERROR(FIND(\"HMO\",VLOOKUP('Enrollment Form'!G121,'Enrollment Form'!H$11:J$1000,3,FALSE),1))=FALSE,COUNTA('Enrollment Form'!$BT121:$BW121)=4)),\"Y\",\"N\"))","v":"-"},{"$f":"IF($B114=\"N\",\"\",IF('Enrollment Form'!$B121=\"Subscriber\",\"-\",IF(COUNTA('Enrollment Form'!$BL121,'Enrollment Form'!$BN121)=2,\"Y\",\"N\")))","v":""},{"$f":"IF($B114=\"N\",\"\",IF(OR('Enrollment Form'!$AX121=\"\",'Enrollment Form'!$AX121=\"No\"),\"-\",IF(AND('Enrollment Form'!$AX121=\"Yes\",COUNTA('Enrollment Form'!$CR121)=1),\"Y\",\"N\")))","v":""},{"$f":"IF(OR('Enrollment Form'!$CR121=\"\",'Enrollment Form'!$CR121=\"No\"),\"-\",IF(COUNTA('Enrollment Form'!$CT121:$CU121)=2,\"Y\",\"N\"))","v":"-"},{"$f":"IF($B114=\"N\",\"\",IF(COUNTIF('Enrollment Form'!$DG121:$DP121,\"Other\")=COUNTA('Enrollment Form'!$DK121,'Enrollment Form'!$DH121,'Enrollment Form'!$DN121,'Enrollment Form'!$DQ121),\"Y\",\"N\"))","v":""},{"$f":"IF($B114=\"N\",\"\",IF(OR('Enrollment Form'!B121<>\"Subscriber\",'Enrollment Form'!C121=\"ROC\",COUNTIF('Enrollment Form'!AV121:AW121,\"Yes\")>=1),\"-\",IF(AND('Enrollment Form'!C121=\"Enroll\",COUNTIF('Enrollment Form'!AV121:AW121,\"No\")=2,'Enrollment Form'!AX121=\"\"),\"N\",\"Y\")))","v":""},{"$f":"IF(OR(B114=\"N\",'Enrollment Form'!B121<>\"Subscriber\",'Enrollment Form'!C121=\"ROC\",'Enrollment Form'!O121<>\"Multiple of Salary\"),\"-\",IF(COUNTA('Enrollment Form'!T121:U121)<2,\"N\",\"Y\"))","v":"-"},{"$f":"IF(B114=\"N\",\"\",IF(OR('Enrollment Form'!C121=\"ROC\",'Enrollment Form'!B121<>\"Subscriber\",'Enrollment Form'!O121=\"Waive\",'Enrollment Form'!O121=\"\"),\"-\",IF('Enrollment Form'!P121=\"\",\"N\",\"Y\")))","v":""},{"$f":"IF($B114=\"N\",\"\",IF(AND('Enrollment Form'!$C121=\"ROC\",'Enrollment Form'!$DR121<>\"\"),\"Y\",IF(AND('Enrollment Form'!$C121=\"ROC\",'Enrollment Form'!$DR121=\"\"),\"N\",IF(AND('Enrollment Form'!$C121=\"Enroll\",'Enrollment Form'!$B121=\"Subscriber\",'Enrollment Form'!$CX121=\"No\",'Enrollment Form'!$DR121=\"\"),\"N\",IF(AND('Enrollment Form'!$C121=\"Enroll\",'Enrollment Form'!$B121=\"Subscriber\",'Enrollment Form'!$CX121=\"Yes\"),\"-\",\"Y\")))))","v":""},{"$f":"IF($B114=\"N\",\"\",IF(AND('Enrollment Form'!$C121=\"ROC\",'Enrollment Form'!$DS121<>\"\"),\"Y\",IF(AND('Enrollment Form'!$C121=\"ROC\",'Enrollment Form'!$DS121=\"\"),\"N\",IF(AND('Enrollment Form'!$C121=\"Enroll\",'Enrollment Form'!$B121=\"Subscriber\",'Enrollment Form'!$CX121=\"No\",'Enrollment Form'!$DS121=\"\"),\"N\",IF(AND('Enrollment Form'!$C121=\"Enroll\",'Enrollment Form'!$B121=\"Subscriber\",'Enrollment Form'!$CX121=\"Yes\"),\"-\",\"Y\")))))","v":""},{"$f":"IF('Enrollment Form'!AH121=\"\",\"\",IF(ISERROR(SEARCH(\".\",'Enrollment Form'!AH121,SEARCH(\"@\",'Enrollment Form'!AH121))),\"N\",\"Y\"))","v":""},{"$f":"IF(OR($B114=\"N\",'Enrollment Form'!$G121=\"\"),\"\",IF('Enrollment Form'!$B121<>\"Subscriber\",\"-\",IF(COUNTIF('Enrollment Form'!$AV121:$AW121,\"Yes\")=2,\"N\",\"Y\")))","v":""},{"$f":"IF(OR('Enrollment Form'!$CJ121=\"\",'Enrollment Form'!$CJ121=\"No\"),\"-\",IF(AND('Enrollment Form'!$CJ121=\"Yes\",'Enrollment Form'!$CK121=\"\"),\"N\",\"Y\"))","v":"-"},{"$f":"IF(OR('Enrollment Form'!$CL121=\"\",'Enrollment Form'!$CL121=\"No\"),\"-\",IF(AND('Enrollment Form'!$CL121=\"Yes\",'Enrollment Form'!$CM121=\"\"),\"N\",\"Y\"))","v":"-"},{"$f":"IF(OR('Enrollment Form'!$CN121=\"\",'Enrollment Form'!$CN121=\"No\"),\"-\",IF(AND('Enrollment Form'!$CN121=\"Yes\",'Enrollment Form'!$CO121=\"\"),\"N\",\"Y\"))","v":"-"},{"$f":"IF(OR('Enrollment Form'!$CN121=\"\",'Enrollment Form'!$CN121=\"No\"),\"-\",IF(AND('Enrollment Form'!$CN121=\"Yes\",'Enrollment Form'!$CP121=\"\"),\"N\",\"Y\"))","v":"-"},{"$f":"IF('Enrollment Form'!B121<>\"Subscriber\",\"-\",IF(AND('Enrollment Form'!B121=\"Subscriber\",'Enrollment Form'!C121=\"Enroll\",'Enrollment Form'!AA121=\"\"),\"N\",\"Y\"))","v":"-"},{"$f":"IF(OR('Enrollment Form'!B121=\"Subscriber\",'Enrollment Form'!B121=\"\"),\"-\",IF('Enrollment Form'!BP121=\"\",\"N\",\"Y\"))","v":"-"},{"$f":"IF('Enrollment Form'!B121<>\"Subscriber\",\"-\",IF(AND('Enrollment Form'!B121=\"Subscriber\",'Enrollment Form'!G121=\"\"),\"N\",\"Y\"))","v":"-"},{"$f":"IF('Enrollment Form'!A121=\"\",\"\",IF('Enrollment Form'!B121=\"Subscriber\",\"-\",IF(AND('Enrollment Form'!B121<>\"Subscriber\",'Enrollment Form'!G121='Enrollment Form'!H121),\"N\",\"Y\")))","v":""},0]
[122,{"$f":"IF('Enrollment Form'!$A122<>\"\",\"Y\",\"N\")","v":"N"},{"$f":"IF(AND('Enrollment Form'!$B122=\"\",'Enrollment Form'!$C122<>\"\"),\"N\",IF($B115=\"N\",\"\",\"Y\"))","v":""},{"$f":"IF(OR($B115=\"N\",'Enrollment Form'!G122=\"\"),\"\",IF('Enrollment Form'!$B122<>\"Subscriber\",\"\",IF('Enrollment Form'!$G122='Enrollment Form'!$H122,\"Y\",\"N\")))","v":""},{"$f":"IF($B115=\"N\",\"\",IF(AND(COUNTIFS('Enrollment Form'!$H$11:$H$1000,'Enrollment Form'!$H122,'Enrollment Form'!$B$11:$B$1000,'Enrollment Form'!$B122)>1,'Enrollment Form'!$H122<>\"\"),\"N\",\"Y\"))","v":""},{"$f":"IF($B115=\"N\",\"\",IF(LEN('Enrollment Form'!$Y122)=0,\"\",IF(LEN('Enrollment Form'!$Y122)<>5,\"N\",\"Y\")))","v":""},{"$f":"IF($B115=\"N\",\"\",IF(LEN('Enrollment Form'!$AD122=0),\"\",IF(LEN('Enrollment Form'!$AD122)<>5,\"N\",\"Y\")))","v":""},{"$f":"IF($B115=\"N\",\"\",IF(LEN('Enrollment Form'!$BS122=0),\"\",IF(LEN('Enrollment Form'!$BS122)<>5,\"N\",\"Y\")))","v":""},{"$f":"IF($B115=\"N\",\"\",IF(LEN('Enrollment Form'!$AE122)=0,\"\",IF(LEN('Enrollment Form'!$AE122)<>10,\"N\",\"Y\")))","v":""},{"$f":"IF($B115=\"N\",\"\",IF(LEN('Enrollment Form'!$AF122)=0,\"\",IF(LEN('Enrollment Form'!$AF122)<>10,\"N\",\"Y\")))","v":""},{"$f":"IF('Enrollment Form'!$O122<>\"Graded\",\"-\",IF(AND('Enrollment Form'!$O122=\"Graded\",'Enrollment Form'!$AR122<>\"\"),\"Y\",\"N\"))","v":"-"},{"$f":"IF($B115=\"N\",\"\",IF(OR('Enrollment Form'!$B122<>\"Subscriber\",'Enrollment Form'!$C122=\"ROC\"),\"-\",IF(AND('Enrollment Form'!$B122=\"Subscriber\",'Enrollment Form'!$C122=\"Enroll\",'Enrollment Form'!$AJ122<>\"\"),\"Y\",\"N\")))","v":""},{"$f":"IF($B115=\"N\",\"\",IF(OR('Enrollment Form'!$B122<>\"Subscriber\",'Enrollment Form'!$C122=\"ROC\"),\"-\",IF(AND('Enrollment Form'!$B122=\"Subscriber\",'Enrollment Form'!$C122=\"Enroll\",'Enrollment Form'!$AK122<>\"\"),\"Y\",\"N\")))","v":""},{"$f":"IF($B115=\"N\",\"\",IF(OR('Enrollment Form'!$B122<>\"Subscriber\",'Enrollment Form'!$C122=\"ROC\"),\"-\",IF(AND('Enrollment Form'!$B122=\"Subscriber\",'Enrollment Form'!$C122=\"Enroll\",'Enrollment Form'!$AL122<>\"\"),\"Y\",\"N\")))","v":""},{"$f":"IF($B115=\"N\",\"\",IF(OR('Enrollment Form'!$B122<>\"Subscriber\",'Enrollment Form'!$C122=\"ROC\"),\"-\",IF(AND('Enrollment Form'!$B122=\"Subscriber\",'Enrollment Form'!$C122=\"Enroll\",'Enrollment Form'!$AP122<>\"\"),\"Y\",\"N\")))","v":""},{"$f":"IF($B115=\"N\",\"\",IF(OR('Enrollment Form'!$B122<>\"Subscriber\",'Enrollment Form'!$C122=\"ROC\"),\"-\",IF(AND('Enrollment Form'!$B122=\"Subscriber\",'Enrollment Form'!$C122=\"Enroll\",'Enrollment Form'!$AQ122<>\"\"),\"Y\",\"N\")))","v":""},{"$f":"IF($B115=\"N\",\"\",IF(OR('Enrollment Form'!$B122<>\"Subscriber\",'Enrollment Form'!$C122=\"ROC\"),\"-\",IF(AND('Enrollment Form'!$B122=\"Subscriber\",'Enrollment Form'!$C122=\"Enroll\",'Enrollment Form'!$AS122<>\"\"),\"Y\",\"N\")))","v":""},{"$f":"IF($B115=\"N\",\"\",IF($Q115=\"-\",\"-\",IF(AND($Q115=\"Y\",'Enrollment Form'!$AS122=\"No\"),\"-\",IF(AND($Q115=\"Y\",'Enrollment Form'!$AS122=\"Yes\",'Enrollment Form'!$AT122<>\"\"),\"Y\",\"N\"))))","v":""},{"$f":"IF($B115=\"N\",\"\",IF(OR('Enrollment Form'!$B122<>\"Subscriber\",'Enrollment Form'!$C122=\"ROC\"),\"-\",IF(AND('Enrollment Form'!$B122=\"Subscriber\",'Enrollment Form'!$C122=\"Enroll\",'Enrollment Form'!$CV122<>\"\"),\"Y\",\"N\")))","v":""},{"$f":"IF($B115=\"N\",\"\",IF($S115=\"-\",\"-\",IF(AND($S115=\"Y\",'Enrollment Form'!$CV122=\"No\"),\"-\",IF(AND($S115=\"Y\",'Enrollment Form'!$CV122=\"Yes\",'Enrollment Form'!$CW122<>\"\"),\"Y\",\"N\"))))","v":""},{"$f":"IF(OR('Enrollment Form'!$AY122=\"Yes\",'Enrollment Form'!$AY122=\"\"),\"-\",IF(OR(AND('Enrollment Form'!$AY122=\"No\",ISERROR(FIND(\"HMO\",VLOOKUP('Enrollment Form'!G122,'Enrollment Form'!H$11:J$1000,3,FALSE),1))=FALSE,COUNTA('Enrollment Form'!$AZ122:$BC122)=4),AND('Enrollment Form'!$AY122=\"No\",ISERROR(FIND(\"HMO\",VLOOKUP('Enrollment Form'!G122,'Enrollment Form'!H$11:J$1000,3,FALSE),1))=FALSE,COUNTA('Enrollment Form'!$BT122:$BW122)=4)),\"Y\",\"N\"))","v":"-"},{"$f":"IF($B115=\"N\",\"\",IF('Enrollment Form'!$B122=\"Subscriber\",\"-\",IF(COUNTA('Enrollment Form'!$BL122,'Enrollment Form'!$BN122)=2,\"Y\",\"N\")))","v":""},{"$f":"IF($B115=\"N\",\"\",IF(OR('Enrollment Form'!$AX122=\"\",'Enrollment Form'!$AX122=\"No\"),\"-\",IF(AND('Enrollment Form'!$AX122=\"Yes\",COUNTA('Enrollment Form'!$CR122)=1),\"Y\",\"N\")))","v":""},{"$f":"IF(OR('Enrollment Form'!$CR122=\"\",'Enrollment Form'!$CR122=\"No\"),\"-\",IF(COUNTA('Enrollment Form'!$CT122:$CU122)=2,\"Y\",\"N\"))","v":"-"},{"$f":"IF($B115=\"N\",\"\",IF(COUNTIF('Enrollment Form'!$DG122:$DP122,\"Other\")=COUNTA('Enrollment Form'!$DK122,'Enrollment Form'!$DH122,'Enrollment Form'!$DN122,'Enrollment Form'!$DQ122),\"Y\",\"N\"))","v":""},{"$f":"IF($B115=\"N\",\"\",IF(OR('Enrollment Form'!B122<>\"Subscriber\",'Enrollment Form'!C122=\"ROC\",COUNTIF('Enrollment Form'!AV122:AW122,\"Yes\")>=1),\"-\",IF(AND('Enrollment Form'!C122=\"Enroll\",COUNTIF('Enrollment Form'!AV122:AW122,\"No\")=2,'Enrollment Form'!AX122=\"\"),\"N\",\"Y\")))","v":""},{"$f":"IF(OR(B115=\"N\",'Enrollment Form'!B122<>\"Subscriber\",'Enrollment Form'!C122=\"ROC\",'Enrollment Form'!O122<>\"Multiple of Salary\"),\"-\",IF(COUNTA('Enrollment Form'!T122:U122)<2,\"N\",\"Y\"))","v":"-"},{"$f":"IF(B115=\"N\",\"\",IF(OR('Enrollment Form'!C122=\"ROC\",'Enrollment Form'!B122<>\"Subscriber\",'Enrollment Form'!O122=\"Waive\",'Enrollment Form'!O122=\"\"),\"-\",IF('Enrollment Form'!P122=\"\",\"N\",\"Y\")))","v":""},{"$f":"IF($B115=\"N\",\"\",IF(AND('Enrollment Form'!$C122=\"ROC\",'Enrollment Form'!$DR122<>\"\"),\"Y\",IF(AND('Enrollment Form'!$C122=\"ROC\",'Enrollment Form'!$DR122=\"\"),\"N\",IF(AND('Enrollment Form'!$C122=\"Enroll\",'Enrollment Form'!$B122=\"Subscriber\",'Enrollment Form'!$CX122=\"No\",'Enrollment Form'!$DR122=\"\"),\"N\",IF(AND('Enrollment Form'!$C122=\"Enroll\",'Enrollment Form'!$B122=\"Subscriber\",'Enrollment Form'!$CX122=\"Yes\"),\"-\",\"Y\")))))","v":""},{"$f":"IF($B115=\"N\",\"\",IF(AND('Enrollment Form'!$C122=\"ROC\",'Enrollment Form'!$DS122<>\"\"),\"Y\",IF(AND('Enrollment Form'!$C122=\"ROC\",'Enrollment Form'!$DS122=\"\"),\"N\",IF(AND('Enrollment Form'!$C122=\"Enroll\",'Enrollment Form'!$B122=\"Subscriber\",'Enrollment Form'!$CX122=\"No\",'Enrollment Form'!$DS122=\"\"),\"N\",IF(AND('Enrollment Form'!$C122=\"Enroll\",'Enrollment Form'!$B122=\"Subscriber\",'Enrollment Form'!$CX122=\"Yes\"),\"-\",\"Y\")))))","v":""},{"$f":"IF('Enrollment Form'!AH122=\"\",\"\",IF(ISERROR(SEARCH(\".\",'Enrollment Form'!AH122,SEARCH(\"@\",'Enrollment Form'!AH122))),\"N\",\"Y\"))","v":""},{"$f":"IF(OR($B115=\"N\",'Enrollment Form'!$G122=\"\"),\"\",IF('Enrollment Form'!$B122<>\"Subscriber\",\"-\",IF(COUNTIF('Enrollment Form'!$AV122:$AW122,\"Yes\")=2,\"N\",\"Y\")))","v":""},{"$f":"IF(OR('Enrollment Form'!$CJ122=\"\",'Enrollment Form'!$CJ122=\"No\"),\"-\",IF(AND('Enrollment Form'!$CJ122=\"Yes\",'Enrollment Form'!$CK122=\"\"),\"N\",\"Y\"))","v":"-"},{"$f":"IF(OR('Enrollment Form'!$CL122=\"\",'Enrollment Form'!$CL122=\"No\"),\"-\",IF(AND('Enrollment Form'!$CL122=\"Yes\",'Enrollment Form'!$CM122=\"\"),\"N\",\"Y\"))","v":"-"},{"$f":"IF(OR('Enrollment Form'!$CN122=\"\",'Enrollment Form'!$CN122=\"No\"),\"-\",IF(AND('Enrollment Form'!$CN122=\"Yes\",'Enrollment Form'!$CO122=\"\"),\"N\",\"Y\"))","v":"-"},{"$f":"IF(OR('Enrollment Form'!$CN122=\"\",'Enrollment Form'!$CN122=\"No\"),\"-\",IF(AND('Enrollment Form'!$CN122=\"Yes\",'Enrollment Form'!$CP122=\"\"),\"N\",\"Y\"))","v":"-"},{"$f":"IF('Enrollment Form'!B122<>\"Subscriber\",\"-\",IF(AND('Enrollment Form'!B122=\"Subscriber\",'Enrollment Form'!C122=\"Enroll\",'Enrollment Form'!AA122=\"\"),\"N\",\"Y\"))","v":"-"},{"$f":"IF(OR('Enrollment Form'!B122=\"Subscriber\",'Enrollment Form'!B122=\"\"),\"-\",IF('Enrollment Form'!BP122=\"\",\"N\",\"Y\"))","v":"-"},{"$f":"IF('Enrollment Form'!B122<>\"Subscriber\",\"-\",IF(AND('Enrollment Form'!B122=\"Subscriber\",'Enrollment Form'!G122=\"\"),\"N\",\"Y\"))","v":"-"},{"$f":"IF('Enrollment Form'!A122=\"\",\"\",IF('Enrollment Form'!B122=\"Subscriber\",\"-\",IF(AND('Enrollment Form'!B122<>\"Subscriber\",'Enrollment Form'!G122='Enrollment Form'!H122),\"N\",\"Y\")))","v":""},0]
[123,{"$f":"IF('Enrollment Form'!$A123<>\"\",\"Y\",\"N\")","v":"N"},{"$f":"IF(AND('Enrollment Form'!$B123=\"\",'Enrollment Form'!$C123<>\"\"),\"N\",IF($B116=\"N\",\"\",\"Y\"))","v":""},{"$f":"IF(OR($B116=\"N\",'Enrollment Form'!G123=\"\"),\"\",IF('Enrollment Form'!$B123<>\"Subscriber\",\"\",IF('Enrollment Form'!$G123='Enrollment Form'!$H123,\"Y\",\"N\")))","v":""},{"$f":"IF($B116=\"N\",\"\",IF(AND(COUNTIFS('Enrollment Form'!$H$11:$H$1000,'Enrollment Form'!$H123,'Enrollment Form'!$B$11:$B$1000,'Enrollment Form'!$B123)>1,'Enrollment Form'!$H123<>\"\"),\"N\",\"Y\"))","v":""},{"$f":"IF($B116=\"N\",\"\",IF(LEN('Enrollment Form'!$Y123)=0,\"\",IF(LEN('Enrollment Form'!$Y123)<>5,\"N\",\"Y\")))","v":""},{"$f":"IF($B116=\"N\",\"\",IF(LEN('Enrollment Form'!$AD123=0),\"\",IF(LEN('Enrollment Form'!$AD123)<>5,\"N\",\"Y\")))","v":""},{"$f":"IF($B116=\"N\",\"\",IF(LEN('Enrollment Form'!$BS123=0),\"\",IF(LEN('Enrollment Form'!$BS123)<>5,\"N\",\"Y\")))","v":""},{"$f":"IF($B116=\"N\",\"\",IF(LEN('Enrollment Form'!$AE123)=0,\"\",IF(LEN('Enrollment Form'!$AE123)<>10,\"N\",\"Y\")))","v":""},{"$f":"IF($B116=\"N\",\"\",IF(LEN('Enrollment Form'!$AF123)=0,\"\",IF(LEN('Enrollment Form'!$AF123)<>10,\"N\",\"Y\")))","v":""},{"$f":"IF('Enrollment Form'!$O123<>\"Graded\",\"-\",IF(AND('Enrollment Form'!$O123=\"Graded\",'Enrollment Form'!$AR123<>\"\"),\"Y\",\"N\"))","v":"-"},{"$f":"IF($B116=\"N\",\"\",IF(OR('Enrollment Form'!$B123<>\"Subscriber\",'Enrollment Form'!$C123=\"ROC\"),\"-\",IF(AND('Enrollment Form'!$B123=\"Subscriber\",'Enrollment Form'!$C123=\"Enroll\",'Enrollment Form'!$AJ123<>\"\"),\"Y\",\"N\")))","v":""},{"$f":"IF($B116=\"N\",\"\",IF(OR('Enrollment Form'!$B123<>\"Subscriber\",'Enrollment Form'!$C123=\"ROC\"),\"-\",IF(AND('Enrollment Form'!$B123=\"Subscriber\",'Enrollment Form'!$C123=\"Enroll\",'Enrollment Form'!$AK123<>\"\"),\"Y\",\"N\")))","v":""},{"$f":"IF($B116=\"N\",\"\",IF(OR('Enrollment Form'!$B123<>\"Subscriber\",'Enrollment Form'!$C123=\"ROC\"),\"-\",IF(AND('Enrollment Form'!$B123=\"Subscriber\",'Enrollment Form'!$C123=\"Enroll\",'Enrollment Form'!$AL123<>\"\"),\"Y\",\"N\")))","v":""},{"$f":"IF($B116=\"N\",\"\",IF(OR('Enrollment Form'!$B123<>\"Subscriber\",'Enrollment Form'!$C123=\"ROC\"),\"-\",IF(AND('Enrollment Form'!$B123=\"Subscriber\",'Enrollment Form'!$C123=\"Enroll\",'Enrollment Form'!$AP123<>\"\"),\"Y\",\"N\")))","v":""},{"$f":"IF($B116=\"N\",\"\",IF(OR('Enrollment Form'!$B123<>\"Subscriber\",'Enrollment Form'!$C123=\"ROC\"),\"-\",IF(AND('Enrollment Form'!$B123=\"Subscriber\",'Enrollment Form'!$C123=\"Enroll\",'Enrollment Form'!$AQ123<>\"\"),\"Y\",\"N\")))","v":""},{"$f":"IF($B116=\"N\",\"\",IF(OR('Enrollment Form'!$B123<>\"Subscriber\",'Enrollment Form'!$C123=\"ROC\"),\"-\",IF(AND('Enrollment Form'!$B123=\"Subscriber\",'Enrollment Form'!$C123=\"Enroll\",'Enrollment Form'!$AS123<>\"\"),\"Y\",\"N\")))","v":""},{"$f":"IF($B116=\"N\",\"\",IF($Q116=\"-\",\"-\",IF(AND($Q116=\"Y\",'Enrollment Form'!$AS123=\"No\"),\"-\",IF(AND($Q116=\"Y\",'Enrollment Form'!$AS123=\"Yes\",'Enrollment Form'!$AT123<>\"\"),\"Y\",\"N\"))))","v":""},{"$f":"IF($B116=\"N\",\"\",IF(OR('Enrollment Form'!$B123<>\"Subscriber\",'Enrollment Form'!$C123=\"ROC\"),\"-\",IF(AND('Enrollment Form'!$B123=\"Subscriber\",'Enrollment Form'!$C123=\"Enroll\",'Enrollment Form'!$CV123<>\"\"),\"Y\",\"N\")))","v":""},{"$f":"IF($B116=\"N\",\"\",IF($S116=\"-\",\"-\",IF(AND($S116=\"Y\",'Enrollment Form'!$CV123=\"No\"),\"-\",IF(AND($S116=\"Y\",'Enrollment Form'!$CV123=\"Yes\",'Enrollment Form'!$CW123<>\"\"),\"Y\",\"N\"))))","v":""},{"$f":"IF(OR('Enrollment Form'!$AY123=\"Yes\",'Enrollment Form'!$AY123=\"\"),\"-\",IF(OR(AND('Enrollment Form'!$AY123=\"No\",ISERROR(FIND(\"HMO\",VLOOKUP('Enrollment Form'!G123,'Enrollment Form'!H$11:J$1000,3,FALSE),1))=FALSE,COUNTA('Enrollment Form'!$AZ123:$BC123)=4),AND('Enrollment Form'!$AY123=\"No\",ISERROR(FIND(\"HMO\",VLOOKUP('Enrollment Form'!G123,'Enrollment Form'!H$11:J$1000,3,FALSE),1))=FALSE,COUNTA('Enrollment Form'!$BT123:$BW123)=4)),\"Y\",\"N\"))","v":"-"},{"$f":"IF($B116=\"N\",\"\",IF('Enrollment Form'!$B123=\"Subscriber\",\"-\",IF(COUNTA('Enrollment Form'!$BL123,'Enrollment Form'!$BN123)=2,\"Y\",\"N\")))","v":""},{"$f":"IF($B116=\"N\",\"\",IF(OR('Enrollment Form'!$AX123=\"\",'Enrollment Form'!$AX123=\"No\"),\"-\",IF(AND('Enrollment Form'!$AX123=\"Yes\",COUNTA('Enrollment Form'!$CR123)=1),\"Y\",\"N\")))","v":""},{"$f":"IF(OR('Enrollment Form'!$CR123=\"\",'Enrollment Form'!$CR123=\"No\"),\"-\",IF(COUNTA('Enrollment Form'!$CT123:$CU123)=2,\"Y\",\"N\"))","v":"-"},{"$f":"IF($B116=\"N\",\"\",IF(COUNTIF('Enrollment Form'!$DG123:$DP123,\"Other\")=COUNTA('Enrollment Form'!$DK123,'Enrollment Form'!$DH123,'Enrollment Form'!$DN123,'Enrollment Form'!$DQ123),\"Y\",\"N\"))","v":""},{"$f":"IF($B116=\"N\",\"\",IF(OR('Enrollment Form'!B123<>\"Subscriber\",'Enrollment Form'!C123=\"ROC\",COUNTIF('Enrollment Form'!AV123:AW123,\"Yes\")>=1),\"-\",IF(AND('Enrollment Form'!C123=\"Enroll\",COUNTIF('Enrollment Form'!AV123:AW123,\"No\")=2,'Enrollment Form'!AX123=\"\"),\"N\",\"Y\")))","v":""},{"$f":"IF(OR(B116=\"N\",'Enrollment Form'!B123<>\"Subscriber\",'Enrollment Form'!C123=\"ROC\",'Enrollment Form'!O123<>\"Multiple of Salary\"),\"-\",IF(COUNTA('Enrollment Form'!T123:U123)<2,\"N\",\"Y\"))","v":"-"},{"$f":"IF(B116=\"N\",\"\",IF(OR('Enrollment Form'!C123=\"ROC\",'Enrollment Form'!B123<>\"Subscriber\",'Enrollment Form'!O123=\"Waive\",'Enrollment Form'!O123=\"\"),\"-\",IF('Enrollment Form'!P123=\"\",\"N\",\"Y\")))","v":""},{"$f":"IF($B116=\"N\",\"\",IF(AND('Enrollment Form'!$C123=\"ROC\",'Enrollment Form'!$DR123<>\"\"),\"Y\",IF(AND('Enrollment Form'!$C123=\"ROC\",'Enrollment Form'!$DR123=\"\"),\"N\",IF(AND('Enrollment Form'!$C123=\"Enroll\",'Enrollment Form'!$B123=\"Subscriber\",'Enrollment Form'!$CX123=\"No\",'Enrollment Form'!$DR123=\"\"),\"N\",IF(AND('Enrollment Form'!$C123=\"Enroll\",'Enrollment Form'!$B123=\"Subscriber\",'Enrollment Form'!$CX123=\"Yes\"),\"-\",\"Y\")))))","v":""},{"$f":"IF($B116=\"N\",\"\",IF(AND('Enrollment Form'!$C123=\"ROC\",'Enrollment Form'!$DS123<>\"\"),\"Y\",IF(AND('Enrollment Form'!$C123=\"ROC\",'Enrollment Form'!$DS123=\"\"),\"N\",IF(AND('Enrollment Form'!$C123=\"Enroll\",'Enrollment Form'!$B123=\"Subscriber\",'Enrollment Form'!$CX123=\"No\",'Enrollment Form'!$DS123=\"\"),\"N\",IF(AND('Enrollment Form'!$C123=\"Enroll\",'Enrollment Form'!$B123=\"Subscriber\",'Enrollment Form'!$CX123=\"Yes\"),\"-\",\"Y\")))))","v":""},{"$f":"IF('Enrollment Form'!AH123=\"\",\"\",IF(ISERROR(SEARCH(\".\",'Enrollment Form'!AH123,SEARCH(\"@\",'Enrollment Form'!AH123))),\"N\",\"Y\"))","v":""},{"$f":"IF(OR($B116=\"N\",'Enrollment Form'!$G123=\"\"),\"\",IF('Enrollment Form'!$B123<>\"Subscriber\",\"-\",IF(COUNTIF('Enrollment Form'!$AV123:$AW123,\"Yes\")=2,\"N\",\"Y\")))","v":""},{"$f":"IF(OR('Enrollment Form'!$CJ123=\"\",'Enrollment Form'!$CJ123=\"No\"),\"-\",IF(AND('Enrollment Form'!$CJ123=\"Yes\",'Enrollment Form'!$CK123=\"\"),\"N\",\"Y\"))","v":"-"},{"$f":"IF(OR('Enrollment Form'!$CL123=\"\",'Enrollment Form'!$CL123=\"No\"),\"-\",IF(AND('Enrollment Form'!$CL123=\"Yes\",'Enrollment Form'!$CM123=\"\"),\"N\",\"Y\"))","v":"-"},{"$f":"IF(OR('Enrollment Form'!$CN123=\"\",'Enrollment Form'!$CN123=\"No\"),\"-\",IF(AND('Enrollment Form'!$CN123=\"Yes\",'Enrollment Form'!$CO123=\"\"),\"N\",\"Y\"))","v":"-"},{"$f":"IF(OR('Enrollment Form'!$CN123=\"\",'Enrollment Form'!$CN123=\"No\"),\"-\",IF(AND('Enrollment Form'!$CN123=\"Yes\",'Enrollment Form'!$CP123=\"\"),\"N\",\"Y\"))","v":"-"},{"$f":"IF('Enrollment Form'!B123<>\"Subscriber\",\"-\",IF(AND('Enrollment Form'!B123=\"Subscriber\",'Enrollment Form'!C123=\"Enroll\",'Enrollment Form'!AA123=\"\"),\"N\",\"Y\"))","v":"-"},{"$f":"IF(OR('Enrollment Form'!B123=\"Subscriber\",'Enrollment Form'!B123=\"\"),\"-\",IF('Enrollment Form'!BP123=\"\",\"N\",\"Y\"))","v":"-"},{"$f":"IF('Enrollment Form'!B123<>\"Subscriber\",\"-\",IF(AND('Enrollment Form'!B123=\"Subscriber\",'Enrollment Form'!G123=\"\"),\"N\",\"Y\"))","v":"-"},{"$f":"IF('Enrollment Form'!A123=\"\",\"\",IF('Enrollment Form'!B123=\"Subscriber\",\"-\",IF(AND('Enrollment Form'!B123<>\"Subscriber\",'Enrollment Form'!G123='Enrollment Form'!H123),\"N\",\"Y\")))","v":""},0]
[124,{"$f":"IF('Enrollment Form'!$A124<>\"\",\"Y\",\"N\")","v":"N"},{"$f":"IF(AND('Enrollment Form'!$B124=\"\",'Enrollment Form'!$C124<>\"\"),\"N\",IF($B117=\"N\",\"\",\"Y\"))","v":""},{"$f":"IF(OR($B117=\"N\",'Enrollment Form'!G124=\"\"),\"\",IF('Enrollment Form'!$B124<>\"Subscriber\",\"\",IF('Enrollment Form'!$G124='Enrollment Form'!$H124,\"Y\",\"N\")))","v":""},{"$f":"IF($B117=\"N\",\"\",IF(AND(COUNTIFS('Enrollment Form'!$H$11:$H$1000,'Enrollment Form'!$H124,'Enrollment Form'!$B$11:$B$1000,'Enrollment Form'!$B124)>1,'Enrollment Form'!$H124<>\"\"),\"N\",\"Y\"))","v":""},{"$f":"IF($B117=\"N\",\"\",IF(LEN('Enrollment Form'!$Y124)=0,\"\",IF(LEN('Enrollment Form'!$Y124)<>5,\"N\",\"Y\")))","v":""},{"$f":"IF($B117=\"N\",\"\",IF(LEN('Enrollment Form'!$AD124=0),\"\",IF(LEN('Enrollment Form'!$AD124)<>5,\"N\",\"Y\")))","v":""},{"$f":"IF($B117=\"N\",\"\",IF(LEN('Enrollment Form'!$BS124=0),\"\",IF(LEN('Enrollment Form'!$BS124)<>5,\"N\",\"Y\")))","v":""},{"$f":"IF($B117=\"N\",\"\",IF(LEN('Enrollment Form'!$AE124)=0,\"\",IF(LEN('Enrollment Form'!$AE124)<>10,\"N\",\"Y\")))","v":""},{"$f":"IF($B117=\"N\",\"\",IF(LEN('Enrollment Form'!$AF124)=0,\"\",IF(LEN('Enrollment Form'!$AF124)<>10,\"N\",\"Y\")))","v":""},{"$f":"IF('Enrollment Form'!$O124<>\"Graded\",\"-\",IF(AND('Enrollment Form'!$O124=\"Graded\",'Enrollment Form'!$AR124<>\"\"),\"Y\",\"N\"))","v":"-"},{"$f":"IF($B117=\"N\",\"\",IF(OR('Enrollment Form'!$B124<>\"Subscriber\",'Enrollment Form'!$C124=\"ROC\"),\"-\",IF(AND('Enrollment Form'!$B124=\"Subscriber\",'Enrollment Form'!$C124=\"Enroll\",'Enrollment Form'!$AJ124<>\"\"),\"Y\",\"N\")))","v":""},{"$f":"IF($B117=\"N\",\"\",IF(OR('Enrollment Form'!$B124<>\"Subscriber\",'Enrollment Form'!$C124=\"ROC\"),\"-\",IF(AND('Enrollment Form'!$B124=\"Subscriber\",'Enrollment Form'!$C124=\"Enroll\",'Enrollment Form'!$AK124<>\"\"),\"Y\",\"N\")))","v":""},{"$f":"IF($B117=\"N\",\"\",IF(OR('Enrollment Form'!$B124<>\"Subscriber\",'Enrollment Form'!$C124=\"ROC\"),\"-\",IF(AND('Enrollment Form'!$B124=\"Subscriber\",'Enrollment Form'!$C124=\"Enroll\",'Enrollment Form'!$AL124<>\"\"),\"Y\",\"N\")))","v":""},{"$f":"IF($B117=\"N\",\"\",IF(OR('Enrollment Form'!$B124<>\"Subscriber\",'Enrollment Form'!$C124=\"ROC\"),\"-\",IF(AND('Enrollment Form'!$B124=\"Subscriber\",'Enrollment Form'!$C124=\"Enroll\",'Enrollment Form'!$AP124<>\"\"),\"Y\",\"N\")))","v":""},{"$f":"IF($B117=\"N\",\"\",IF(OR('Enrollment Form'!$B124<>\"Subscriber\",'Enrollment Form'!$C124=\"ROC\"),\"-\",IF(AND('Enrollment Form'!$B124=\"Subscriber\",'Enrollment Form'!$C124=\"Enroll\",'Enrollment Form'!$AQ124<>\"\"),\"Y\",\"N\")))","v":""},{"$f":"IF($B117=\"N\",\"\",IF(OR('Enrollment Form'!$B124<>\"Subscriber\",'Enrollment Form'!$C124=\"ROC\"),\"-\",IF(AND('Enrollment Form'!$B124=\"Subscriber\",'Enrollment Form'!$C124=\"Enroll\",'Enrollment Form'!$AS124<>\"\"),\"Y\",\"N\")))","v":""},{"$f":"IF($B117=\"N\",\"\",IF($Q117=\"-\",\"-\",IF(AND($Q117=\"Y\",'Enrollment Form'!$AS124=\"No\"),\"-\",IF(AND($Q117=\"Y\",'Enrollment Form'!$AS124=\"Yes\",'Enrollment Form'!$AT124<>\"\"),\"Y\",\"N\"))))","v":""},{"$f":"IF($B117=\"N\",\"\",IF(OR('Enrollment Form'!$B124<>\"Subscriber\",'Enrollment Form'!$C124=\"ROC\"),\"-\",IF(AND('Enrollment Form'!$B124=\"Subscriber\",'Enrollment Form'!$C124=\"Enroll\",'Enrollment Form'!$CV124<>\"\"),\"Y\",\"N\")))","v":""},{"$f":"IF($B117=\"N\",\"\",IF($S117=\"-\",\"-\",IF(AND($S117=\"Y\",'Enrollment Form'!$CV124=\"No\"),\"-\",IF(AND($S117=\"Y\",'Enrollment Form'!$CV124=\"Yes\",'Enrollment Form'!$CW124<>\"\"),\"Y\",\"N\"))))","v":""},{"$f":"IF(OR('Enrollment Form'!$AY124=\"Yes\",'Enrollment Form'!$AY124=\"\"),\"-\",IF(OR(AND('Enrollment Form'!$AY124=\"No\",ISERROR(FIND(\"HMO\",VLOOKUP('Enrollment Form'!G124,'Enrollment Form'!H$11:J$1000,3,FALSE),1))=FALSE,COUNTA('Enrollment Form'!$AZ124:$BC124)=4),AND('Enrollment Form'!$AY124=\"No\",ISERROR(FIND(\"HMO\",VLOOKUP('Enrollment Form'!G124,'Enrollment Form'!H$11:J$1000,3,FALSE),1))=FALSE,COUNTA('Enrollment Form'!$BT124:$BW124)=4)),\"Y\",\"N\"))","v":"-"},{"$f":"IF($B117=\"N\",\"\",IF('Enrollment Form'!$B124=\"Subscriber\",\"-\",IF(COUNTA('Enrollment Form'!$BL124,'Enrollment Form'!$BN124)=2,\"Y\",\"N\")))","v":""},{"$f":"IF($B117=\"N\",\"\",IF(OR('Enrollment Form'!$AX124=\"\",'Enrollment Form'!$AX124=\"No\"),\"-\",IF(AND('Enrollment Form'!$AX124=\"Yes\",COUNTA('Enrollment Form'!$CR124)=1),\"Y\",\"N\")))","v":""},{"$f":"IF(OR('Enrollment Form'!$CR124=\"\",'Enrollment Form'!$CR124=\"No\"),\"-\",IF(COUNTA('Enrollment Form'!$CT124:$CU124)=2,\"Y\",\"N\"))","v":"-"},{"$f":"IF($B117=\"N\",\"\",IF(COUNTIF('Enrollment Form'!$DG124:$DP124,\"Other\")=COUNTA('Enrollment Form'!$DK124,'Enrollment Form'!$DH124,'Enrollment Form'!$DN124,'Enrollment Form'!$DQ124),\"Y\",\"N\"))","v":""},{"$f":"IF($B117=\"N\",\"\",IF(OR('Enrollment Form'!B124<>\"Subscriber\",'Enrollment Form'!C124=\"ROC\",COUNTIF('Enrollment Form'!AV124:AW124,\"Yes\")>=1),\"-\",IF(AND('Enrollment Form'!C124=\"Enroll\",COUNTIF('Enrollment Form'!AV124:AW124,\"No\")=2,'Enrollment Form'!AX124=\"\"),\"N\",\"Y\")))","v":""},{"$f":"IF(OR(B117=\"N\",'Enrollment Form'!B124<>\"Subscriber\",'Enrollment Form'!C124=\"ROC\",'Enrollment Form'!O124<>\"Multiple of Salary\"),\"-\",IF(COUNTA('Enrollment Form'!T124:U124)<2,\"N\",\"Y\"))","v":"-"},{"$f":"IF(B117=\"N\",\"\",IF(OR('Enrollment Form'!C124=\"ROC\",'Enrollment Form'!B124<>\"Subscriber\",'Enrollment Form'!O124=\"Waive\",'Enrollment Form'!O124=\"\"),\"-\",IF('Enrollment Form'!P124=\"\",\"N\",\"Y\")))","v":""},{"$f":"IF($B117=\"N\",\"\",IF(AND('Enrollment Form'!$C124=\"ROC\",'Enrollment Form'!$DR124<>\"\"),\"Y\",IF(AND('Enrollment Form'!$C124=\"ROC\",'Enrollment Form'!$DR124=\"\"),\"N\",IF(AND('Enrollment Form'!$C124=\"Enroll\",'Enrollment Form'!$B124=\"Subscriber\",'Enrollment Form'!$CX124=\"No\",'Enrollment Form'!$DR124=\"\"),\"N\",IF(AND('Enrollment Form'!$C124=\"Enroll\",'Enrollment Form'!$B124=\"Subscriber\",'Enrollment Form'!$CX124=\"Yes\"),\"-\",\"Y\")))))","v":""},{"$f":"IF($B117=\"N\",\"\",IF(AND('Enrollment Form'!$C124=\"ROC\",'Enrollment Form'!$DS124<>\"\"),\"Y\",IF(AND('Enrollment Form'!$C124=\"ROC\",'Enrollment Form'!$DS124=\"\"),\"N\",IF(AND('Enrollment Form'!$C124=\"Enroll\",'Enrollment Form'!$B124=\"Subscriber\",'Enrollment Form'!$CX124=\"No\",'Enrollment Form'!$DS124=\"\"),\"N\",IF(AND('Enrollment Form'!$C124=\"Enroll\",'Enrollment Form'!$B124=\"Subscriber\",'Enrollment Form'!$CX124=\"Yes\"),\"-\",\"Y\")))))","v":""},{"$f":"IF('Enrollment Form'!AH124=\"\",\"\",IF(ISERROR(SEARCH(\".\",'Enrollment Form'!AH124,SEARCH(\"@\",'Enrollment Form'!AH124))),\"N\",\"Y\"))","v":""},{"$f":"IF(OR($B117=\"N\",'Enrollment Form'!$G124=\"\"),\"\",IF('Enrollment Form'!$B124<>\"Subscriber\",\"-\",IF(COUNTIF('Enrollment Form'!$AV124:$AW124,\"Yes\")=2,\"N\",\"Y\")))","v":""},{"$f":"IF(OR('Enrollment Form'!$CJ124=\"\",'Enrollment Form'!$CJ124=\"No\"),\"-\",IF(AND('Enrollment Form'!$CJ124=\"Yes\",'Enrollment Form'!$CK124=\"\"),\"N\",\"Y\"))","v":"-"},{"$f":"IF(OR('Enrollment Form'!$CL124=\"\",'Enrollment Form'!$CL124=\"No\"),\"-\",IF(AND('Enrollment Form'!$CL124=\"Yes\",'Enrollment Form'!$CM124=\"\"),\"N\",\"Y\"))","v":"-"},{"$f":"IF(OR('Enrollment Form'!$CN124=\"\",'Enrollment Form'!$CN124=\"No\"),\"-\",IF(AND('Enrollment Form'!$CN124=\"Yes\",'Enrollment Form'!$CO124=\"\"),\"N\",\"Y\"))","v":"-"},{"$f":"IF(OR('Enrollment Form'!$CN124=\"\",'Enrollment Form'!$CN124=\"No\"),\"-\",IF(AND('Enrollment Form'!$CN124=\"Yes\",'Enrollment Form'!$CP124=\"\"),\"N\",\"Y\"))","v":"-"},{"$f":"IF('Enrollment Form'!B124<>\"Subscriber\",\"-\",IF(AND('Enrollment Form'!B124=\"Subscriber\",'Enrollment Form'!C124=\"Enroll\",'Enrollment Form'!AA124=\"\"),\"N\",\"Y\"))","v":"-"},{"$f":"IF(OR('Enrollment Form'!B124=\"Subscriber\",'Enrollment Form'!B124=\"\"),\"-\",IF('Enrollment Form'!BP124=\"\",\"N\",\"Y\"))","v":"-"},{"$f":"IF('Enrollment Form'!B124<>\"Subscriber\",\"-\",IF(AND('Enrollment Form'!B124=\"Subscriber\",'Enrollment Form'!G124=\"\"),\"N\",\"Y\"))","v":"-"},{"$f":"IF('Enrollment Form'!A124=\"\",\"\",IF('Enrollment Form'!B124=\"Subscriber\",\"-\",IF(AND('Enrollment Form'!B124<>\"Subscriber\",'Enrollment Form'!G124='Enrollment Form'!H124),\"N\",\"Y\")))","v":""},0]
[125,{"$f":"IF('Enrollment Form'!$A125<>\"\",\"Y\",\"N\")","v":"N"},{"$f":"IF(AND('Enrollment Form'!$B125=\"\",'Enrollment Form'!$C125<>\"\"),\"N\",IF($B118=\"N\",\"\",\"Y\"))","v":""},{"$f":"IF(OR($B118=\"N\",'Enrollment Form'!G125=\"\"),\"\",IF('Enrollment Form'!$B125<>\"Subscriber\",\"\",IF('Enrollment Form'!$G125='Enrollment Form'!$H125,\"Y\",\"N\")))","v":""},{"$f":"IF($B118=\"N\",\"\",IF(AND(COUNTIFS('Enrollment Form'!$H$11:$H$1000,'Enrollment Form'!$H125,'Enrollment Form'!$B$11:$B$1000,'Enrollment Form'!$B125)>1,'Enrollment Form'!$H125<>\"\"),\"N\",\"Y\"))","v":""},{"$f":"IF($B118=\"N\",\"\",IF(LEN('Enrollment Form'!$Y125)=0,\"\",IF(LEN('Enrollment Form'!$Y125)<>5,\"N\",\"Y\")))","v":""},{"$f":"IF($B118=\"N\",\"\",IF(LEN('Enrollment Form'!$AD125=0),\"\",IF(LEN('Enrollment Form'!$AD125)<>5,\"N\",\"Y\")))","v":""},{"$f":"IF($B118=\"N\",\"\",IF(LEN('Enrollment Form'!$BS125=0),\"\",IF(LEN('Enrollment Form'!$BS125)<>5,\"N\",\"Y\")))","v":""},{"$f":"IF($B118=\"N\",\"\",IF(LEN('Enrollment Form'!$AE125)=0,\"\",IF(LEN('Enrollment Form'!$AE125)<>10,\"N\",\"Y\")))","v":""},{"$f":"IF($B118=\"N\",\"\",IF(LEN('Enrollment Form'!$AF125)=0,\"\",IF(LEN('Enrollment Form'!$AF125)<>10,\"N\",\"Y\")))","v":""},{"$f":"IF('Enrollment Form'!$O125<>\"Graded\",\"-\",IF(AND('Enrollment Form'!$O125=\"Graded\",'Enrollment Form'!$AR125<>\"\"),\"Y\",\"N\"))","v":"-"},{"$f":"IF($B118=\"N\",\"\",IF(OR('Enrollment Form'!$B125<>\"Subscriber\",'Enrollment Form'!$C125=\"ROC\"),\"-\",IF(AND('Enrollment Form'!$B125=\"Subscriber\",'Enrollment Form'!$C125=\"Enroll\",'Enrollment Form'!$AJ125<>\"\"),\"Y\",\"N\")))","v":""},{"$f":"IF($B118=\"N\",\"\",IF(OR('Enrollment Form'!$B125<>\"Subscriber\",'Enrollment Form'!$C125=\"ROC\"),\"-\",IF(AND('Enrollment Form'!$B125=\"Subscriber\",'Enrollment Form'!$C125=\"Enroll\",'Enrollment Form'!$AK125<>\"\"),\"Y\",\"N\")))","v":""},{"$f":"IF($B118=\"N\",\"\",IF(OR('Enrollment Form'!$B125<>\"Subscriber\",'Enrollment Form'!$C125=\"ROC\"),\"-\",IF(AND('Enrollment Form'!$B125=\"Subscriber\",'Enrollment Form'!$C125=\"Enroll\",'Enrollment Form'!$AL125<>\"\"),\"Y\",\"N\")))","v":""},{"$f":"IF($B118=\"N\",\"\",IF(OR('Enrollment Form'!$B125<>\"Subscriber\",'Enrollment Form'!$C125=\"ROC\"),\"-\",IF(AND('Enrollment Form'!$B125=\"Subscriber\",'Enrollment Form'!$C125=\"Enroll\",'Enrollment Form'!$AP125<>\"\"),\"Y\",\"N\")))","v":""},{"$f":"IF($B118=\"N\",\"\",IF(OR('Enrollment Form'!$B125<>\"Subscriber\",'Enrollment Form'!$C125=\"ROC\"),\"-\",IF(AND('Enrollment Form'!$B125=\"Subscriber\",'Enrollment Form'!$C125=\"Enroll\",'Enrollment Form'!$AQ125<>\"\"),\"Y\",\"N\")))","v":""},{"$f":"IF($B118=\"N\",\"\",IF(OR('Enrollment Form'!$B125<>\"Subscriber\",'Enrollment Form'!$C125=\"ROC\"),\"-\",IF(AND('Enrollment Form'!$B125=\"Subscriber\",'Enrollment Form'!$C125=\"Enroll\",'Enrollment Form'!$AS125<>\"\"),\"Y\",\"N\")))","v":""},{"$f":"IF($B118=\"N\",\"\",IF($Q118=\"-\",\"-\",IF(AND($Q118=\"Y\",'Enrollment Form'!$AS125=\"No\"),\"-\",IF(AND($Q118=\"Y\",'Enrollment Form'!$AS125=\"Yes\",'Enrollment Form'!$AT125<>\"\"),\"Y\",\"N\"))))","v":""},{"$f":"IF($B118=\"N\",\"\",IF(OR('Enrollment Form'!$B125<>\"Subscriber\",'Enrollment Form'!$C125=\"ROC\"),\"-\",IF(AND('Enrollment Form'!$B125=\"Subscriber\",'Enrollment Form'!$C125=\"Enroll\",'Enrollment Form'!$CV125<>\"\"),\"Y\",\"N\")))","v":""},{"$f":"IF($B118=\"N\",\"\",IF($S118=\"-\",\"-\",IF(AND($S118=\"Y\",'Enrollment Form'!$CV125=\"No\"),\"-\",IF(AND($S118=\"Y\",'Enrollment Form'!$CV125=\"Yes\",'Enrollment Form'!$CW125<>\"\"),\"Y\",\"N\"))))","v":""},{"$f":"IF(OR('Enrollment Form'!$AY125=\"Yes\",'Enrollment Form'!$AY125=\"\"),\"-\",IF(OR(AND('Enrollment Form'!$AY125=\"No\",ISERROR(FIND(\"HMO\",VLOOKUP('Enrollment Form'!G125,'Enrollment Form'!H$11:J$1000,3,FALSE),1))=FALSE,COUNTA('Enrollment Form'!$AZ125:$BC125)=4),AND('Enrollment Form'!$AY125=\"No\",ISERROR(FIND(\"HMO\",VLOOKUP('Enrollment Form'!G125,'Enrollment Form'!H$11:J$1000,3,FALSE),1))=FALSE,COUNTA('Enrollment Form'!$BT125:$BW125)=4)),\"Y\",\"N\"))","v":"-"},{"$f":"IF($B118=\"N\",\"\",IF('Enrollment Form'!$B125=\"Subscriber\",\"-\",IF(COUNTA('Enrollment Form'!$BL125,'Enrollment Form'!$BN125)=2,\"Y\",\"N\")))","v":""},{"$f":"IF($B118=\"N\",\"\",IF(OR('Enrollment Form'!$AX125=\"\",'Enrollment Form'!$AX125=\"No\"),\"-\",IF(AND('Enrollment Form'!$AX125=\"Yes\",COUNTA('Enrollment Form'!$CR125)=1),\"Y\",\"N\")))","v":""},{"$f":"IF(OR('Enrollment Form'!$CR125=\"\",'Enrollment Form'!$CR125=\"No\"),\"-\",IF(COUNTA('Enrollment Form'!$CT125:$CU125)=2,\"Y\",\"N\"))","v":"-"},{"$f":"IF($B118=\"N\",\"\",IF(COUNTIF('Enrollment Form'!$DG125:$DP125,\"Other\")=COUNTA('Enrollment Form'!$DK125,'Enrollment Form'!$DH125,'Enrollment Form'!$DN125,'Enrollment Form'!$DQ125),\"Y\",\"N\"))","v":""},{"$f":"IF($B118=\"N\",\"\",IF(OR('Enrollment Form'!B125<>\"Subscriber\",'Enrollment Form'!C125=\"ROC\",COUNTIF('Enrollment Form'!AV125:AW125,\"Yes\")>=1),\"-\",IF(AND('Enrollment Form'!C125=\"Enroll\",COUNTIF('Enrollment Form'!AV125:AW125,\"No\")=2,'Enrollment Form'!AX125=\"\"),\"N\",\"Y\")))","v":""},{"$f":"IF(OR(B118=\"N\",'Enrollment Form'!B125<>\"Subscriber\",'Enrollment Form'!C125=\"ROC\",'Enrollment Form'!O125<>\"Multiple of Salary\"),\"-\",IF(COUNTA('Enrollment Form'!T125:U125)<2,\"N\",\"Y\"))","v":"-"},{"$f":"IF(B118=\"N\",\"\",IF(OR('Enrollment Form'!C125=\"ROC\",'Enrollment Form'!B125<>\"Subscriber\",'Enrollment Form'!O125=\"Waive\",'Enrollment Form'!O125=\"\"),\"-\",IF('Enrollment Form'!P125=\"\",\"N\",\"Y\")))","v":""},{"$f":"IF($B118=\"N\",\"\",IF(AND('Enrollment Form'!$C125=\"ROC\",'Enrollment Form'!$DR125<>\"\"),\"Y\",IF(AND('Enrollment Form'!$C125=\"ROC\",'Enrollment Form'!$DR125=\"\"),\"N\",IF(AND('Enrollment Form'!$C125=\"Enroll\",'Enrollment Form'!$B125=\"Subscriber\",'Enrollment Form'!$CX125=\"No\",'Enrollment Form'!$DR125=\"\"),\"N\",IF(AND('Enrollment Form'!$C125=\"Enroll\",'Enrollment Form'!$B125=\"Subscriber\",'Enrollment Form'!$CX125=\"Yes\"),\"-\",\"Y\")))))","v":""},{"$f":"IF($B118=\"N\",\"\",IF(AND('Enrollment Form'!$C125=\"ROC\",'Enrollment Form'!$DS125<>\"\"),\"Y\",IF(AND('Enrollment Form'!$C125=\"ROC\",'Enrollment Form'!$DS125=\"\"),\"N\",IF(AND('Enrollment Form'!$C125=\"Enroll\",'Enrollment Form'!$B125=\"Subscriber\",'Enrollment Form'!$CX125=\"No\",'Enrollment Form'!$DS125=\"\"),\"N\",IF(AND('Enrollment Form'!$C125=\"Enroll\",'Enrollment Form'!$B125=\"Subscriber\",'Enrollment Form'!$CX125=\"Yes\"),\"-\",\"Y\")))))","v":""},{"$f":"IF('Enrollment Form'!AH125=\"\",\"\",IF(ISERROR(SEARCH(\".\",'Enrollment Form'!AH125,SEARCH(\"@\",'Enrollment Form'!AH125))),\"N\",\"Y\"))","v":""},{"$f":"IF(OR($B118=\"N\",'Enrollment Form'!$G125=\"\"),\"\",IF('Enrollment Form'!$B125<>\"Subscriber\",\"-\",IF(COUNTIF('Enrollment Form'!$AV125:$AW125,\"Yes\")=2,\"N\",\"Y\")))","v":""},{"$f":"IF(OR('Enrollment Form'!$CJ125=\"\",'Enrollment Form'!$CJ125=\"No\"),\"-\",IF(AND('Enrollment Form'!$CJ125=\"Yes\",'Enrollment Form'!$CK125=\"\"),\"N\",\"Y\"))","v":"-"},{"$f":"IF(OR('Enrollment Form'!$CL125=\"\",'Enrollment Form'!$CL125=\"No\"),\"-\",IF(AND('Enrollment Form'!$CL125=\"Yes\",'Enrollment Form'!$CM125=\"\"),\"N\",\"Y\"))","v":"-"},{"$f":"IF(OR('Enrollment Form'!$CN125=\"\",'Enrollment Form'!$CN125=\"No\"),\"-\",IF(AND('Enrollment Form'!$CN125=\"Yes\",'Enrollment Form'!$CO125=\"\"),\"N\",\"Y\"))","v":"-"},{"$f":"IF(OR('Enrollment Form'!$CN125=\"\",'Enrollment Form'!$CN125=\"No\"),\"-\",IF(AND('Enrollment Form'!$CN125=\"Yes\",'Enrollment Form'!$CP125=\"\"),\"N\",\"Y\"))","v":"-"},{"$f":"IF('Enrollment Form'!B125<>\"Subscriber\",\"-\",IF(AND('Enrollment Form'!B125=\"Subscriber\",'Enrollment Form'!C125=\"Enroll\",'Enrollment Form'!AA125=\"\"),\"N\",\"Y\"))","v":"-"},{"$f":"IF(OR('Enrollment Form'!B125=\"Subscriber\",'Enrollment Form'!B125=\"\"),\"-\",IF('Enrollment Form'!BP125=\"\",\"N\",\"Y\"))","v":"-"},{"$f":"IF('Enrollment Form'!B125<>\"Subscriber\",\"-\",IF(AND('Enrollment Form'!B125=\"Subscriber\",'Enrollment Form'!G125=\"\"),\"N\",\"Y\"))","v":"-"},{"$f":"IF('Enrollment Form'!A125=\"\",\"\",IF('Enrollment Form'!B125=\"Subscriber\",\"-\",IF(AND('Enrollment Form'!B125<>\"Subscriber\",'Enrollment Form'!G125='Enrollment Form'!H125),\"N\",\"Y\")))","v":""},0]
[126,{"$f":"IF('Enrollment Form'!$A126<>\"\",\"Y\",\"N\")","v":"N"},{"$f":"IF(AND('Enrollment Form'!$B126=\"\",'Enrollment Form'!$C126<>\"\"),\"N\",IF($B119=\"N\",\"\",\"Y\"))","v":""},{"$f":"IF(OR($B119=\"N\",'Enrollment Form'!G126=\"\"),\"\",IF('Enrollment Form'!$B126<>\"Subscriber\",\"\",IF('Enrollment Form'!$G126='Enrollment Form'!$H126,\"Y\",\"N\")))","v":""},{"$f":"IF($B119=\"N\",\"\",IF(AND(COUNTIFS('Enrollment Form'!$H$11:$H$1000,'Enrollment Form'!$H126,'Enrollment Form'!$B$11:$B$1000,'Enrollment Form'!$B126)>1,'Enrollment Form'!$H126<>\"\"),\"N\",\"Y\"))","v":""},{"$f":"IF($B119=\"N\",\"\",IF(LEN('Enrollment Form'!$Y126)=0,\"\",IF(LEN('Enrollment Form'!$Y126)<>5,\"N\",\"Y\")))","v":""},{"$f":"IF($B119=\"N\",\"\",IF(LEN('Enrollment Form'!$AD126=0),\"\",IF(LEN('Enrollment Form'!$AD126)<>5,\"N\",\"Y\")))","v":""},{"$f":"IF($B119=\"N\",\"\",IF(LEN('Enrollment Form'!$BS126=0),\"\",IF(LEN('Enrollment Form'!$BS126)<>5,\"N\",\"Y\")))","v":""},{"$f":"IF($B119=\"N\",\"\",IF(LEN('Enrollment Form'!$AE126)=0,\"\",IF(LEN('Enrollment Form'!$AE126)<>10,\"N\",\"Y\")))","v":""},{"$f":"IF($B119=\"N\",\"\",IF(LEN('Enrollment Form'!$AF126)=0,\"\",IF(LEN('Enrollment Form'!$AF126)<>10,\"N\",\"Y\")))","v":""},{"$f":"IF('Enrollment Form'!$O126<>\"Graded\",\"-\",IF(AND('Enrollment Form'!$O126=\"Graded\",'Enrollment Form'!$AR126<>\"\"),\"Y\",\"N\"))","v":"-"},{"$f":"IF($B119=\"N\",\"\",IF(OR('Enrollment Form'!$B126<>\"Subscriber\",'Enrollment Form'!$C126=\"ROC\"),\"-\",IF(AND('Enrollment Form'!$B126=\"Subscriber\",'Enrollment Form'!$C126=\"Enroll\",'Enrollment Form'!$AJ126<>\"\"),\"Y\",\"N\")))","v":""},{"$f":"IF($B119=\"N\",\"\",IF(OR('Enrollment Form'!$B126<>\"Subscriber\",'Enrollment Form'!$C126=\"ROC\"),\"-\",IF(AND('Enrollment Form'!$B126=\"Subscriber\",'Enrollment Form'!$C126=\"Enroll\",'Enrollment Form'!$AK126<>\"\"),\"Y\",\"N\")))","v":""},{"$f":"IF($B119=\"N\",\"\",IF(OR('Enrollment Form'!$B126<>\"Subscriber\",'Enrollment Form'!$C126=\"ROC\"),\"-\",IF(AND('Enrollment Form'!$B126=\"Subscriber\",'Enrollment Form'!$C126=\"Enroll\",'Enrollment Form'!$AL126<>\"\"),\"Y\",\"N\")))","v":""},{"$f":"IF($B119=\"N\",\"\",IF(OR('Enrollment Form'!$B126<>\"Subscriber\",'Enrollment Form'!$C126=\"ROC\"),\"-\",IF(AND('Enrollment Form'!$B126=\"Subscriber\",'Enrollment Form'!$C126=\"Enroll\",'Enrollment Form'!$AP126<>\"\"),\"Y\",\"N\")))","v":""},{"$f":"IF($B119=\"N\",\"\",IF(OR('Enrollment Form'!$B126<>\"Subscriber\",'Enrollment Form'!$C126=\"ROC\"),\"-\",IF(AND('Enrollment Form'!$B126=\"Subscriber\",'Enrollment Form'!$C126=\"Enroll\",'Enrollment Form'!$AQ126<>\"\"),\"Y\",\"N\")))","v":""},{"$f":"IF($B119=\"N\",\"\",IF(OR('Enrollment Form'!$B126<>\"Subscriber\",'Enrollment Form'!$C126=\"ROC\"),\"-\",IF(AND('Enrollment Form'!$B126=\"Subscriber\",'Enrollment Form'!$C126=\"Enroll\",'Enrollment Form'!$AS126<>\"\"),\"Y\",\"N\")))","v":""},{"$f":"IF($B119=\"N\",\"\",IF($Q119=\"-\",\"-\",IF(AND($Q119=\"Y\",'Enrollment Form'!$AS126=\"No\"),\"-\",IF(AND($Q119=\"Y\",'Enrollment Form'!$AS126=\"Yes\",'Enrollment Form'!$AT126<>\"\"),\"Y\",\"N\"))))","v":""},{"$f":"IF($B119=\"N\",\"\",IF(OR('Enrollment Form'!$B126<>\"Subscriber\",'Enrollment Form'!$C126=\"ROC\"),\"-\",IF(AND('Enrollment Form'!$B126=\"Subscriber\",'Enrollment Form'!$C126=\"Enroll\",'Enrollment Form'!$CV126<>\"\"),\"Y\",\"N\")))","v":""},{"$f":"IF($B119=\"N\",\"\",IF($S119=\"-\",\"-\",IF(AND($S119=\"Y\",'Enrollment Form'!$CV126=\"No\"),\"-\",IF(AND($S119=\"Y\",'Enrollment Form'!$CV126=\"Yes\",'Enrollment Form'!$CW126<>\"\"),\"Y\",\"N\"))))","v":""},{"$f":"IF(OR('Enrollment Form'!$AY126=\"Yes\",'Enrollment Form'!$AY126=\"\"),\"-\",IF(OR(AND('Enrollment Form'!$AY126=\"No\",ISERROR(FIND(\"HMO\",VLOOKUP('Enrollment Form'!G126,'Enrollment Form'!H$11:J$1000,3,FALSE),1))=FALSE,COUNTA('Enrollment Form'!$AZ126:$BC126)=4),AND('Enrollment Form'!$AY126=\"No\",ISERROR(FIND(\"HMO\",VLOOKUP('Enrollment Form'!G126,'Enrollment Form'!H$11:J$1000,3,FALSE),1))=FALSE,COUNTA('Enrollment Form'!$BT126:$BW126)=4)),\"Y\",\"N\"))","v":"-"},{"$f":"IF($B119=\"N\",\"\",IF('Enrollment Form'!$B126=\"Subscriber\",\"-\",IF(COUNTA('Enrollment Form'!$BL126,'Enrollment Form'!$BN126)=2,\"Y\",\"N\")))","v":""},{"$f":"IF($B119=\"N\",\"\",IF(OR('Enrollment Form'!$AX126=\"\",'Enrollment Form'!$AX126=\"No\"),\"-\",IF(AND('Enrollment Form'!$AX126=\"Yes\",COUNTA('Enrollment Form'!$CR126)=1),\"Y\",\"N\")))","v":""},{"$f":"IF(OR('Enrollment Form'!$CR126=\"\",'Enrollment Form'!$CR126=\"No\"),\"-\",IF(COUNTA('Enrollment Form'!$CT126:$CU126)=2,\"Y\",\"N\"))","v":"-"},{"$f":"IF($B119=\"N\",\"\",IF(COUNTIF('Enrollment Form'!$DG126:$DP126,\"Other\")=COUNTA('Enrollment Form'!$DK126,'Enrollment Form'!$DH126,'Enrollment Form'!$DN126,'Enrollment Form'!$DQ126),\"Y\",\"N\"))","v":""},{"$f":"IF($B119=\"N\",\"\",IF(OR('Enrollment Form'!B126<>\"Subscriber\",'Enrollment Form'!C126=\"ROC\",COUNTIF('Enrollment Form'!AV126:AW126,\"Yes\")>=1),\"-\",IF(AND('Enrollment Form'!C126=\"Enroll\",COUNTIF('Enrollment Form'!AV126:AW126,\"No\")=2,'Enrollment Form'!AX126=\"\"),\"N\",\"Y\")))","v":""},{"$f":"IF(OR(B119=\"N\",'Enrollment Form'!B126<>\"Subscriber\",'Enrollment Form'!C126=\"ROC\",'Enrollment Form'!O126<>\"Multiple of Salary\"),\"-\",IF(COUNTA('Enrollment Form'!T126:U126)<2,\"N\",\"Y\"))","v":"-"},{"$f":"IF(B119=\"N\",\"\",IF(OR('Enrollment Form'!C126=\"ROC\",'Enrollment Form'!B126<>\"Subscriber\",'Enrollment Form'!O126=\"Waive\",'Enrollment Form'!O126=\"\"),\"-\",IF('Enrollment Form'!P126=\"\",\"N\",\"Y\")))","v":""},{"$f":"IF($B119=\"N\",\"\",IF(AND('Enrollment Form'!$C126=\"ROC\",'Enrollment Form'!$DR126<>\"\"),\"Y\",IF(AND('Enrollment Form'!$C126=\"ROC\",'Enrollment Form'!$DR126=\"\"),\"N\",IF(AND('Enrollment Form'!$C126=\"Enroll\",'Enrollment Form'!$B126=\"Subscriber\",'Enrollment Form'!$CX126=\"No\",'Enrollment Form'!$DR126=\"\"),\"N\",IF(AND('Enrollment Form'!$C126=\"Enroll\",'Enrollment Form'!$B126=\"Subscriber\",'Enrollment Form'!$CX126=\"Yes\"),\"-\",\"Y\")))))","v":""},{"$f":"IF($B119=\"N\",\"\",IF(AND('Enrollment Form'!$C126=\"ROC\",'Enrollment Form'!$DS126<>\"\"),\"Y\",IF(AND('Enrollment Form'!$C126=\"ROC\",'Enrollment Form'!$DS126=\"\"),\"N\",IF(AND('Enrollment Form'!$C126=\"Enroll\",'Enrollment Form'!$B126=\"Subscriber\",'Enrollment Form'!$CX126=\"No\",'Enrollment Form'!$DS126=\"\"),\"N\",IF(AND('Enrollment Form'!$C126=\"Enroll\",'Enrollment Form'!$B126=\"Subscriber\",'Enrollment Form'!$CX126=\"Yes\"),\"-\",\"Y\")))))","v":""},{"$f":"IF('Enrollment Form'!AH126=\"\",\"\",IF(ISERROR(SEARCH(\".\",'Enrollment Form'!AH126,SEARCH(\"@\",'Enrollment Form'!AH126))),\"N\",\"Y\"))","v":""},{"$f":"IF(OR($B119=\"N\",'Enrollment Form'!$G126=\"\"),\"\",IF('Enrollment Form'!$B126<>\"Subscriber\",\"-\",IF(COUNTIF('Enrollment Form'!$AV126:$AW126,\"Yes\")=2,\"N\",\"Y\")))","v":""},{"$f":"IF(OR('Enrollment Form'!$CJ126=\"\",'Enrollment Form'!$CJ126=\"No\"),\"-\",IF(AND('Enrollment Form'!$CJ126=\"Yes\",'Enrollment Form'!$CK126=\"\"),\"N\",\"Y\"))","v":"-"},{"$f":"IF(OR('Enrollment Form'!$CL126=\"\",'Enrollment Form'!$CL126=\"No\"),\"-\",IF(AND('Enrollment Form'!$CL126=\"Yes\",'Enrollment Form'!$CM126=\"\"),\"N\",\"Y\"))","v":"-"},{"$f":"IF(OR('Enrollment Form'!$CN126=\"\",'Enrollment Form'!$CN126=\"No\"),\"-\",IF(AND('Enrollment Form'!$CN126=\"Yes\",'Enrollment Form'!$CO126=\"\"),\"N\",\"Y\"))","v":"-"},{"$f":"IF(OR('Enrollment Form'!$CN126=\"\",'Enrollment Form'!$CN126=\"No\"),\"-\",IF(AND('Enrollment Form'!$CN126=\"Yes\",'Enrollment Form'!$CP126=\"\"),\"N\",\"Y\"))","v":"-"},{"$f":"IF('Enrollment Form'!B126<>\"Subscriber\",\"-\",IF(AND('Enrollment Form'!B126=\"Subscriber\",'Enrollment Form'!C126=\"Enroll\",'Enrollment Form'!AA126=\"\"),\"N\",\"Y\"))","v":"-"},{"$f":"IF(OR('Enrollment Form'!B126=\"Subscriber\",'Enrollment Form'!B126=\"\"),\"-\",IF('Enrollment Form'!BP126=\"\",\"N\",\"Y\"))","v":"-"},{"$f":"IF('Enrollment Form'!B126<>\"Subscriber\",\"-\",IF(AND('Enrollment Form'!B126=\"Subscriber\",'Enrollment Form'!G126=\"\"),\"N\",\"Y\"))","v":"-"},{"$f":"IF('Enrollment Form'!A126=\"\",\"\",IF('Enrollment Form'!B126=\"Subscriber\",\"-\",IF(AND('Enrollment Form'!B126<>\"Subscriber\",'Enrollment Form'!G126='Enrollment Form'!H126),\"N\",\"Y\")))","v":""},0]
[127,{"$f":"IF('Enrollment Form'!$A127<>\"\",\"Y\",\"N\")","v":"N"},{"$f":"IF(AND('Enrollment Form'!$B127=\"\",'Enrollment Form'!$C127<>\"\"),\"N\",IF($B120=\"N\",\"\",\"Y\"))","v":""},{"$f":"IF(OR($B120=\"N\",'Enrollment Form'!G127=\"\"),\"\",IF('Enrollment Form'!$B127<>\"Subscriber\",\"\",IF('Enrollment Form'!$G127='Enrollment Form'!$H127,\"Y\",\"N\")))","v":""},{"$f":"IF($B120=\"N\",\"\",IF(AND(COUNTIFS('Enrollment Form'!$H$11:$H$1000,'Enrollment Form'!$H127,'Enrollment Form'!$B$11:$B$1000,'Enrollment Form'!$B127)>1,'Enrollment Form'!$H127<>\"\"),\"N\",\"Y\"))","v":""},{"$f":"IF($B120=\"N\",\"\",IF(LEN('Enrollment Form'!$Y127)=0,\"\",IF(LEN('Enrollment Form'!$Y127)<>5,\"N\",\"Y\")))","v":""},{"$f":"IF($B120=\"N\",\"\",IF(LEN('Enrollment Form'!$AD127=0),\"\",IF(LEN('Enrollment Form'!$AD127)<>5,\"N\",\"Y\")))","v":""},{"$f":"IF($B120=\"N\",\"\",IF(LEN('Enrollment Form'!$BS127=0),\"\",IF(LEN('Enrollment Form'!$BS127)<>5,\"N\",\"Y\")))","v":""},{"$f":"IF($B120=\"N\",\"\",IF(LEN('Enrollment Form'!$AE127)=0,\"\",IF(LEN('Enrollment Form'!$AE127)<>10,\"N\",\"Y\")))","v":""},{"$f":"IF($B120=\"N\",\"\",IF(LEN('Enrollment Form'!$AF127)=0,\"\",IF(LEN('Enrollment Form'!$AF127)<>10,\"N\",\"Y\")))","v":""},{"$f":"IF('Enrollment Form'!$O127<>\"Graded\",\"-\",IF(AND('Enrollment Form'!$O127=\"Graded\",'Enrollment Form'!$AR127<>\"\"),\"Y\",\"N\"))","v":"-"},{"$f":"IF($B120=\"N\",\"\",IF(OR('Enrollment Form'!$B127<>\"Subscriber\",'Enrollment Form'!$C127=\"ROC\"),\"-\",IF(AND('Enrollment Form'!$B127=\"Subscriber\",'Enrollment Form'!$C127=\"Enroll\",'Enrollment Form'!$AJ127<>\"\"),\"Y\",\"N\")))","v":""},{"$f":"IF($B120=\"N\",\"\",IF(OR('Enrollment Form'!$B127<>\"Subscriber\",'Enrollment Form'!$C127=\"ROC\"),\"-\",IF(AND('Enrollment Form'!$B127=\"Subscriber\",'Enrollment Form'!$C127=\"Enroll\",'Enrollment Form'!$AK127<>\"\"),\"Y\",\"N\")))","v":""},{"$f":"IF($B120=\"N\",\"\",IF(OR('Enrollment Form'!$B127<>\"Subscriber\",'Enrollment Form'!$C127=\"ROC\"),\"-\",IF(AND('Enrollment Form'!$B127=\"Subscriber\",'Enrollment Form'!$C127=\"Enroll\",'Enrollment Form'!$AL127<>\"\"),\"Y\",\"N\")))","v":""},{"$f":"IF($B120=\"N\",\"\",IF(OR('Enrollment Form'!$B127<>\"Subscriber\",'Enrollment Form'!$C127=\"ROC\"),\"-\",IF(AND('Enrollment Form'!$B127=\"Subscriber\",'Enrollment Form'!$C127=\"Enroll\",'Enrollment Form'!$AP127<>\"\"),\"Y\",\"N\")))","v":""},{"$f":"IF($B120=\"N\",\"\",IF(OR('Enrollment Form'!$B127<>\"Subscriber\",'Enrollment Form'!$C127=\"ROC\"),\"-\",IF(AND('Enrollment Form'!$B127=\"Subscriber\",'Enrollment Form'!$C127=\"Enroll\",'Enrollment Form'!$AQ127<>\"\"),\"Y\",\"N\")))","v":""},{"$f":"IF($B120=\"N\",\"\",IF(OR('Enrollment Form'!$B127<>\"Subscriber\",'Enrollment Form'!$C127=\"ROC\"),\"-\",IF(AND('Enrollment Form'!$B127=\"Subscriber\",'Enrollment Form'!$C127=\"Enroll\",'Enrollment Form'!$AS127<>\"\"),\"Y\",\"N\")))","v":""},{"$f":"IF($B120=\"N\",\"\",IF($Q120=\"-\",\"-\",IF(AND($Q120=\"Y\",'Enrollment Form'!$AS127=\"No\"),\"-\",IF(AND($Q120=\"Y\",'Enrollment Form'!$AS127=\"Yes\",'Enrollment Form'!$AT127<>\"\"),\"Y\",\"N\"))))","v":""},{"$f":"IF($B120=\"N\",\"\",IF(OR('Enrollment Form'!$B127<>\"Subscriber\",'Enrollment Form'!$C127=\"ROC\"),\"-\",IF(AND('Enrollment Form'!$B127=\"Subscriber\",'Enrollment Form'!$C127=\"Enroll\",'Enrollment Form'!$CV127<>\"\"),\"Y\",\"N\")))","v":""},{"$f":"IF($B120=\"N\",\"\",IF($S120=\"-\",\"-\",IF(AND($S120=\"Y\",'Enrollment Form'!$CV127=\"No\"),\"-\",IF(AND($S120=\"Y\",'Enrollment Form'!$CV127=\"Yes\",'Enrollment Form'!$CW127<>\"\"),\"Y\",\"N\"))))","v":""},{"$f":"IF(OR('Enrollment Form'!$AY127=\"Yes\",'Enrollment Form'!$AY127=\"\"),\"-\",IF(OR(AND('Enrollment Form'!$AY127=\"No\",ISERROR(FIND(\"HMO\",VLOOKUP('Enrollment Form'!G127,'Enrollment Form'!H$11:J$1000,3,FALSE),1))=FALSE,COUNTA('Enrollment Form'!$AZ127:$BC127)=4),AND('Enrollment Form'!$AY127=\"No\",ISERROR(FIND(\"HMO\",VLOOKUP('Enrollment Form'!G127,'Enrollment Form'!H$11:J$1000,3,FALSE),1))=FALSE,COUNTA('Enrollment Form'!$BT127:$BW127)=4)),\"Y\",\"N\"))","v":"-"},{"$f":"IF($B120=\"N\",\"\",IF('Enrollment Form'!$B127=\"Subscriber\",\"-\",IF(COUNTA('Enrollment Form'!$BL127,'Enrollment Form'!$BN127)=2,\"Y\",\"N\")))","v":""},{"$f":"IF($B120=\"N\",\"\",IF(OR('Enrollment Form'!$AX127=\"\",'Enrollment Form'!$AX127=\"No\"),\"-\",IF(AND('Enrollment Form'!$AX127=\"Yes\",COUNTA('Enrollment Form'!$CR127)=1),\"Y\",\"N\")))","v":""},{"$f":"IF(OR('Enrollment Form'!$CR127=\"\",'Enrollment Form'!$CR127=\"No\"),\"-\",IF(COUNTA('Enrollment Form'!$CT127:$CU127)=2,\"Y\",\"N\"))","v":"-"},{"$f":"IF($B120=\"N\",\"\",IF(COUNTIF('Enrollment Form'!$DG127:$DP127,\"Other\")=COUNTA('Enrollment Form'!$DK127,'Enrollment Form'!$DH127,'Enrollment Form'!$DN127,'Enrollment Form'!$DQ127),\"Y\",\"N\"))","v":""},{"$f":"IF($B120=\"N\",\"\",IF(OR('Enrollment Form'!B127<>\"Subscriber\",'Enrollment Form'!C127=\"ROC\",COUNTIF('Enrollment Form'!AV127:AW127,\"Yes\")>=1),\"-\",IF(AND('Enrollment Form'!C127=\"Enroll\",COUNTIF('Enrollment Form'!AV127:AW127,\"No\")=2,'Enrollment Form'!AX127=\"\"),\"N\",\"Y\")))","v":""},{"$f":"IF(OR(B120=\"N\",'Enrollment Form'!B127<>\"Subscriber\",'Enrollment Form'!C127=\"ROC\",'Enrollment Form'!O127<>\"Multiple of Salary\"),\"-\",IF(COUNTA('Enrollment Form'!T127:U127)<2,\"N\",\"Y\"))","v":"-"},{"$f":"IF(B120=\"N\",\"\",IF(OR('Enrollment Form'!C127=\"ROC\",'Enrollment Form'!B127<>\"Subscriber\",'Enrollment Form'!O127=\"Waive\",'Enrollment Form'!O127=\"\"),\"-\",IF('Enrollment Form'!P127=\"\",\"N\",\"Y\")))","v":""},{"$f":"IF($B120=\"N\",\"\",IF(AND('Enrollment Form'!$C127=\"ROC\",'Enrollment Form'!$DR127<>\"\"),\"Y\",IF(AND('Enrollment Form'!$C127=\"ROC\",'Enrollment Form'!$DR127=\"\"),\"N\",IF(AND('Enrollment Form'!$C127=\"Enroll\",'Enrollment Form'!$B127=\"Subscriber\",'Enrollment Form'!$CX127=\"No\",'Enrollment Form'!$DR127=\"\"),\"N\",IF(AND('Enrollment Form'!$C127=\"Enroll\",'Enrollment Form'!$B127=\"Subscriber\",'Enrollment Form'!$CX127=\"Yes\"),\"-\",\"Y\")))))","v":""},{"$f":"IF($B120=\"N\",\"\",IF(AND('Enrollment Form'!$C127=\"ROC\",'Enrollment Form'!$DS127<>\"\"),\"Y\",IF(AND('Enrollment Form'!$C127=\"ROC\",'Enrollment Form'!$DS127=\"\"),\"N\",IF(AND('Enrollment Form'!$C127=\"Enroll\",'Enrollment Form'!$B127=\"Subscriber\",'Enrollment Form'!$CX127=\"No\",'Enrollment Form'!$DS127=\"\"),\"N\",IF(AND('Enrollment Form'!$C127=\"Enroll\",'Enrollment Form'!$B127=\"Subscriber\",'Enrollment Form'!$CX127=\"Yes\"),\"-\",\"Y\")))))","v":""},{"$f":"IF('Enrollment Form'!AH127=\"\",\"\",IF(ISERROR(SEARCH(\".\",'Enrollment Form'!AH127,SEARCH(\"@\",'Enrollment Form'!AH127))),\"N\",\"Y\"))","v":""},{"$f":"IF(OR($B120=\"N\",'Enrollment Form'!$G127=\"\"),\"\",IF('Enrollment Form'!$B127<>\"Subscriber\",\"-\",IF(COUNTIF('Enrollment Form'!$AV127:$AW127,\"Yes\")=2,\"N\",\"Y\")))","v":""},{"$f":"IF(OR('Enrollment Form'!$CJ127=\"\",'Enrollment Form'!$CJ127=\"No\"),\"-\",IF(AND('Enrollment Form'!$CJ127=\"Yes\",'Enrollment Form'!$CK127=\"\"),\"N\",\"Y\"))","v":"-"},{"$f":"IF(OR('Enrollment Form'!$CL127=\"\",'Enrollment Form'!$CL127=\"No\"),\"-\",IF(AND('Enrollment Form'!$CL127=\"Yes\",'Enrollment Form'!$CM127=\"\"),\"N\",\"Y\"))","v":"-"},{"$f":"IF(OR('Enrollment Form'!$CN127=\"\",'Enrollment Form'!$CN127=\"No\"),\"-\",IF(AND('Enrollment Form'!$CN127=\"Yes\",'Enrollment Form'!$CO127=\"\"),\"N\",\"Y\"))","v":"-"},{"$f":"IF(OR('Enrollment Form'!$CN127=\"\",'Enrollment Form'!$CN127=\"No\"),\"-\",IF(AND('Enrollment Form'!$CN127=\"Yes\",'Enrollment Form'!$CP127=\"\"),\"N\",\"Y\"))","v":"-"},{"$f":"IF('Enrollment Form'!B127<>\"Subscriber\",\"-\",IF(AND('Enrollment Form'!B127=\"Subscriber\",'Enrollment Form'!C127=\"Enroll\",'Enrollment Form'!AA127=\"\"),\"N\",\"Y\"))","v":"-"},{"$f":"IF(OR('Enrollment Form'!B127=\"Subscriber\",'Enrollment Form'!B127=\"\"),\"-\",IF('Enrollment Form'!BP127=\"\",\"N\",\"Y\"))","v":"-"},{"$f":"IF('Enrollment Form'!B127<>\"Subscriber\",\"-\",IF(AND('Enrollment Form'!B127=\"Subscriber\",'Enrollment Form'!G127=\"\"),\"N\",\"Y\"))","v":"-"},{"$f":"IF('Enrollment Form'!A127=\"\",\"\",IF('Enrollment Form'!B127=\"Subscriber\",\"-\",IF(AND('Enrollment Form'!B127<>\"Subscriber\",'Enrollment Form'!G127='Enrollment Form'!H127),\"N\",\"Y\")))","v":""},0]
[128,{"$f":"IF('Enrollment Form'!$A128<>\"\",\"Y\",\"N\")","v":"N"},{"$f":"IF(AND('Enrollment Form'!$B128=\"\",'Enrollment Form'!$C128<>\"\"),\"N\",IF($B121=\"N\",\"\",\"Y\"))","v":""},{"$f":"IF(OR($B121=\"N\",'Enrollment Form'!G128=\"\"),\"\",IF('Enrollment Form'!$B128<>\"Subscriber\",\"\",IF('Enrollment Form'!$G128='Enrollment Form'!$H128,\"Y\",\"N\")))","v":""},{"$f":"IF($B121=\"N\",\"\",IF(AND(COUNTIFS('Enrollment Form'!$H$11:$H$1000,'Enrollment Form'!$H128,'Enrollment Form'!$B$11:$B$1000,'Enrollment Form'!$B128)>1,'Enrollment Form'!$H128<>\"\"),\"N\",\"Y\"))","v":""},{"$f":"IF($B121=\"N\",\"\",IF(LEN('Enrollment Form'!$Y128)=0,\"\",IF(LEN('Enrollment Form'!$Y128)<>5,\"N\",\"Y\")))","v":""},{"$f":"IF($B121=\"N\",\"\",IF(LEN('Enrollment Form'!$AD128=0),\"\",IF(LEN('Enrollment Form'!$AD128)<>5,\"N\",\"Y\")))","v":""},{"$f":"IF($B121=\"N\",\"\",IF(LEN('Enrollment Form'!$BS128=0),\"\",IF(LEN('Enrollment Form'!$BS128)<>5,\"N\",\"Y\")))","v":""},{"$f":"IF($B121=\"N\",\"\",IF(LEN('Enrollment Form'!$AE128)=0,\"\",IF(LEN('Enrollment Form'!$AE128)<>10,\"N\",\"Y\")))","v":""},{"$f":"IF($B121=\"N\",\"\",IF(LEN('Enrollment Form'!$AF128)=0,\"\",IF(LEN('Enrollment Form'!$AF128)<>10,\"N\",\"Y\")))","v":""},{"$f":"IF('Enrollment Form'!$O128<>\"Graded\",\"-\",IF(AND('Enrollment Form'!$O128=\"Graded\",'Enrollment Form'!$AR128<>\"\"),\"Y\",\"N\"))","v":"-"},{"$f":"IF($B121=\"N\",\"\",IF(OR('Enrollment Form'!$B128<>\"Subscriber\",'Enrollment Form'!$C128=\"ROC\"),\"-\",IF(AND('Enrollment Form'!$B128=\"Subscriber\",'Enrollment Form'!$C128=\"Enroll\",'Enrollment Form'!$AJ128<>\"\"),\"Y\",\"N\")))","v":""},{"$f":"IF($B121=\"N\",\"\",IF(OR('Enrollment Form'!$B128<>\"Subscriber\",'Enrollment Form'!$C128=\"ROC\"),\"-\",IF(AND('Enrollment Form'!$B128=\"Subscriber\",'Enrollment Form'!$C128=\"Enroll\",'Enrollment Form'!$AK128<>\"\"),\"Y\",\"N\")))","v":""},{"$f":"IF($B121=\"N\",\"\",IF(OR('Enrollment Form'!$B128<>\"Subscriber\",'Enrollment Form'!$C128=\"ROC\"),\"-\",IF(AND('Enrollment Form'!$B128=\"Subscriber\",'Enrollment Form'!$C128=\"Enroll\",'Enrollment Form'!$AL128<>\"\"),\"Y\",\"N\")))","v":""},{"$f":"IF($B121=\"N\",\"\",IF(OR('Enrollment Form'!$B128<>\"Subscriber\",'Enrollment Form'!$C128=\"ROC\"),\"-\",IF(AND('Enrollment Form'!$B128=\"Subscriber\",'Enrollment Form'!$C128=\"Enroll\",'Enrollment Form'!$AP128<>\"\"),\"Y\",\"N\")))","v":""},{"$f":"IF($B121=\"N\",\"\",IF(OR('Enrollment Form'!$B128<>\"Subscriber\",'Enrollment Form'!$C128=\"ROC\"),\"-\",IF(AND('Enrollment Form'!$B128=\"Subscriber\",'Enrollment Form'!$C128=\"Enroll\",'Enrollment Form'!$AQ128<>\"\"),\"Y\",\"N\")))","v":""},{"$f":"IF($B121=\"N\",\"\",IF(OR('Enrollment Form'!$B128<>\"Subscriber\",'Enrollment Form'!$C128=\"ROC\"),\"-\",IF(AND('Enrollment Form'!$B128=\"Subscriber\",'Enrollment Form'!$C128=\"Enroll\",'Enrollment Form'!$AS128<>\"\"),\"Y\",\"N\")))","v":""},{"$f":"IF($B121=\"N\",\"\",IF($Q121=\"-\",\"-\",IF(AND($Q121=\"Y\",'Enrollment Form'!$AS128=\"No\"),\"-\",IF(AND($Q121=\"Y\",'Enrollment Form'!$AS128=\"Yes\",'Enrollment Form'!$AT128<>\"\"),\"Y\",\"N\"))))","v":""},{"$f":"IF($B121=\"N\",\"\",IF(OR('Enrollment Form'!$B128<>\"Subscriber\",'Enrollment Form'!$C128=\"ROC\"),\"-\",IF(AND('Enrollment Form'!$B128=\"Subscriber\",'Enrollment Form'!$C128=\"Enroll\",'Enrollment Form'!$CV128<>\"\"),\"Y\",\"N\")))","v":""},{"$f":"IF($B121=\"N\",\"\",IF($S121=\"-\",\"-\",IF(AND($S121=\"Y\",'Enrollment Form'!$CV128=\"No\"),\"-\",IF(AND($S121=\"Y\",'Enrollment Form'!$CV128=\"Yes\",'Enrollment Form'!$CW128<>\"\"),\"Y\",\"N\"))))","v":""},{"$f":"IF(OR('Enrollment Form'!$AY128=\"Yes\",'Enrollment Form'!$AY128=\"\"),\"-\",IF(OR(AND('Enrollment Form'!$AY128=\"No\",ISERROR(FIND(\"HMO\",VLOOKUP('Enrollment Form'!G128,'Enrollment Form'!H$11:J$1000,3,FALSE),1))=FALSE,COUNTA('Enrollment Form'!$AZ128:$BC128)=4),AND('Enrollment Form'!$AY128=\"No\",ISERROR(FIND(\"HMO\",VLOOKUP('Enrollment Form'!G128,'Enrollment Form'!H$11:J$1000,3,FALSE),1))=FALSE,COUNTA('Enrollment Form'!$BT128:$BW128)=4)),\"Y\",\"N\"))","v":"-"},{"$f":"IF($B121=\"N\",\"\",IF('Enrollment Form'!$B128=\"Subscriber\",\"-\",IF(COUNTA('Enrollment Form'!$BL128,'Enrollment Form'!$BN128)=2,\"Y\",\"N\")))","v":""},{"$f":"IF($B121=\"N\",\"\",IF(OR('Enrollment Form'!$AX128=\"\",'Enrollment Form'!$AX128=\"No\"),\"-\",IF(AND('Enrollment Form'!$AX128=\"Yes\",COUNTA('Enrollment Form'!$CR128)=1),\"Y\",\"N\")))","v":""},{"$f":"IF(OR('Enrollment Form'!$CR128=\"\",'Enrollment Form'!$CR128=\"No\"),\"-\",IF(COUNTA('Enrollment Form'!$CT128:$CU128)=2,\"Y\",\"N\"))","v":"-"},{"$f":"IF($B121=\"N\",\"\",IF(COUNTIF('Enrollment Form'!$DG128:$DP128,\"Other\")=COUNTA('Enrollment Form'!$DK128,'Enrollment Form'!$DH128,'Enrollment Form'!$DN128,'Enrollment Form'!$DQ128),\"Y\",\"N\"))","v":""},{"$f":"IF($B121=\"N\",\"\",IF(OR('Enrollment Form'!B128<>\"Subscriber\",'Enrollment Form'!C128=\"ROC\",COUNTIF('Enrollment Form'!AV128:AW128,\"Yes\")>=1),\"-\",IF(AND('Enrollment Form'!C128=\"Enroll\",COUNTIF('Enrollment Form'!AV128:AW128,\"No\")=2,'Enrollment Form'!AX128=\"\"),\"N\",\"Y\")))","v":""},{"$f":"IF(OR(B121=\"N\",'Enrollment Form'!B128<>\"Subscriber\",'Enrollment Form'!C128=\"ROC\",'Enrollment Form'!O128<>\"Multiple of Salary\"),\"-\",IF(COUNTA('Enrollment Form'!T128:U128)<2,\"N\",\"Y\"))","v":"-"},{"$f":"IF(B121=\"N\",\"\",IF(OR('Enrollment Form'!C128=\"ROC\",'Enrollment Form'!B128<>\"Subscriber\",'Enrollment Form'!O128=\"Waive\",'Enrollment Form'!O128=\"\"),\"-\",IF('Enrollment Form'!P128=\"\",\"N\",\"Y\")))","v":""},{"$f":"IF($B121=\"N\",\"\",IF(AND('Enrollment Form'!$C128=\"ROC\",'Enrollment Form'!$DR128<>\"\"),\"Y\",IF(AND('Enrollment Form'!$C128=\"ROC\",'Enrollment Form'!$DR128=\"\"),\"N\",IF(AND('Enrollment Form'!$C128=\"Enroll\",'Enrollment Form'!$B128=\"Subscriber\",'Enrollment Form'!$CX128=\"No\",'Enrollment Form'!$DR128=\"\"),\"N\",IF(AND('Enrollment Form'!$C128=\"Enroll\",'Enrollment Form'!$B128=\"Subscriber\",'Enrollment Form'!$CX128=\"Yes\"),\"-\",\"Y\")))))","v":""},{"$f":"IF($B121=\"N\",\"\",IF(AND('Enrollment Form'!$C128=\"ROC\",'Enrollment Form'!$DS128<>\"\"),\"Y\",IF(AND('Enrollment Form'!$C128=\"ROC\",'Enrollment Form'!$DS128=\"\"),\"N\",IF(AND('Enrollment Form'!$C128=\"Enroll\",'Enrollment Form'!$B128=\"Subscriber\",'Enrollment Form'!$CX128=\"No\",'Enrollment Form'!$DS128=\"\"),\"N\",IF(AND('Enrollment Form'!$C128=\"Enroll\",'Enrollment Form'!$B128=\"Subscriber\",'Enrollment Form'!$CX128=\"Yes\"),\"-\",\"Y\")))))","v":""},{"$f":"IF('Enrollment Form'!AH128=\"\",\"\",IF(ISERROR(SEARCH(\".\",'Enrollment Form'!AH128,SEARCH(\"@\",'Enrollment Form'!AH128))),\"N\",\"Y\"))","v":""},{"$f":"IF(OR($B121=\"N\",'Enrollment Form'!$G128=\"\"),\"\",IF('Enrollment Form'!$B128<>\"Subscriber\",\"-\",IF(COUNTIF('Enrollment Form'!$AV128:$AW128,\"Yes\")=2,\"N\",\"Y\")))","v":""},{"$f":"IF(OR('Enrollment Form'!$CJ128=\"\",'Enrollment Form'!$CJ128=\"No\"),\"-\",IF(AND('Enrollment Form'!$CJ128=\"Yes\",'Enrollment Form'!$CK128=\"\"),\"N\",\"Y\"))","v":"-"},{"$f":"IF(OR('Enrollment Form'!$CL128=\"\",'Enrollment Form'!$CL128=\"No\"),\"-\",IF(AND('Enrollment Form'!$CL128=\"Yes\",'Enrollment Form'!$CM128=\"\"),\"N\",\"Y\"))","v":"-"},{"$f":"IF(OR('Enrollment Form'!$CN128=\"\",'Enrollment Form'!$CN128=\"No\"),\"-\",IF(AND('Enrollment Form'!$CN128=\"Yes\",'Enrollment Form'!$CO128=\"\"),\"N\",\"Y\"))","v":"-"},{"$f":"IF(OR('Enrollment Form'!$CN128=\"\",'Enrollment Form'!$CN128=\"No\"),\"-\",IF(AND('Enrollment Form'!$CN128=\"Yes\",'Enrollment Form'!$CP128=\"\"),\"N\",\"Y\"))","v":"-"},{"$f":"IF('Enrollment Form'!B128<>\"Subscriber\",\"-\",IF(AND('Enrollment Form'!B128=\"Subscriber\",'Enrollment Form'!C128=\"Enroll\",'Enrollment Form'!AA128=\"\"),\"N\",\"Y\"))","v":"-"},{"$f":"IF(OR('Enrollment Form'!B128=\"Subscriber\",'Enrollment Form'!B128=\"\"),\"-\",IF('Enrollment Form'!BP128=\"\",\"N\",\"Y\"))","v":"-"},{"$f":"IF('Enrollment Form'!B128<>\"Subscriber\",\"-\",IF(AND('Enrollment Form'!B128=\"Subscriber\",'Enrollment Form'!G128=\"\"),\"N\",\"Y\"))","v":"-"},{"$f":"IF('Enrollment Form'!A128=\"\",\"\",IF('Enrollment Form'!B128=\"Subscriber\",\"-\",IF(AND('Enrollment Form'!B128<>\"Subscriber\",'Enrollment Form'!G128='Enrollment Form'!H128),\"N\",\"Y\")))","v":""},0]
[129,{"$f":"IF('Enrollment Form'!$A129<>\"\",\"Y\",\"N\")","v":"N"},{"$f":"IF(AND('Enrollment Form'!$B129=\"\",'Enrollment Form'!$C129<>\"\"),\"N\",IF($B122=\"N\",\"\",\"Y\"))","v":""},{"$f":"IF(OR($B122=\"N\",'Enrollment Form'!G129=\"\"),\"\",IF('Enrollment Form'!$B129<>\"Subscriber\",\"\",IF('Enrollment Form'!$G129='Enrollment Form'!$H129,\"Y\",\"N\")))","v":""},{"$f":"IF($B122=\"N\",\"\",IF(AND(COUNTIFS('Enrollment Form'!$H$11:$H$1000,'Enrollment Form'!$H129,'Enrollment Form'!$B$11:$B$1000,'Enrollment Form'!$B129)>1,'Enrollment Form'!$H129<>\"\"),\"N\",\"Y\"))","v":""},{"$f":"IF($B122=\"N\",\"\",IF(LEN('Enrollment Form'!$Y129)=0,\"\",IF(LEN('Enrollment Form'!$Y129)<>5,\"N\",\"Y\")))","v":""},{"$f":"IF($B122=\"N\",\"\",IF(LEN('Enrollment Form'!$AD129=0),\"\",IF(LEN('Enrollment Form'!$AD129)<>5,\"N\",\"Y\")))","v":""},{"$f":"IF($B122=\"N\",\"\",IF(LEN('Enrollment Form'!$BS129=0),\"\",IF(LEN('Enrollment Form'!$BS129)<>5,\"N\",\"Y\")))","v":""},{"$f":"IF($B122=\"N\",\"\",IF(LEN('Enrollment Form'!$AE129)=0,\"\",IF(LEN('Enrollment Form'!$AE129)<>10,\"N\",\"Y\")))","v":""},{"$f":"IF($B122=\"N\",\"\",IF(LEN('Enrollment Form'!$AF129)=0,\"\",IF(LEN('Enrollment Form'!$AF129)<>10,\"N\",\"Y\")))","v":""},{"$f":"IF('Enrollment Form'!$O129<>\"Graded\",\"-\",IF(AND('Enrollment Form'!$O129=\"Graded\",'Enrollment Form'!$AR129<>\"\"),\"Y\",\"N\"))","v":"-"},{"$f":"IF($B122=\"N\",\"\",IF(OR('Enrollment Form'!$B129<>\"Subscriber\",'Enrollment Form'!$C129=\"ROC\"),\"-\",IF(AND('Enrollment Form'!$B129=\"Subscriber\",'Enrollment Form'!$C129=\"Enroll\",'Enrollment Form'!$AJ129<>\"\"),\"Y\",\"N\")))","v":""},{"$f":"IF($B122=\"N\",\"\",IF(OR('Enrollment Form'!$B129<>\"Subscriber\",'Enrollment Form'!$C129=\"ROC\"),\"-\",IF(AND('Enrollment Form'!$B129=\"Subscriber\",'Enrollment Form'!$C129=\"Enroll\",'Enrollment Form'!$AK129<>\"\"),\"Y\",\"N\")))","v":""},{"$f":"IF($B122=\"N\",\"\",IF(OR('Enrollment Form'!$B129<>\"Subscriber\",'Enrollment Form'!$C129=\"ROC\"),\"-\",IF(AND('Enrollment Form'!$B129=\"Subscriber\",'Enrollment Form'!$C129=\"Enroll\",'Enrollment Form'!$AL129<>\"\"),\"Y\",\"N\")))","v":""},{"$f":"IF($B122=\"N\",\"\",IF(OR('Enrollment Form'!$B129<>\"Subscriber\",'Enrollment Form'!$C129=\"ROC\"),\"-\",IF(AND('Enrollment Form'!$B129=\"Subscriber\",'Enrollment Form'!$C129=\"Enroll\",'Enrollment Form'!$AP129<>\"\"),\"Y\",\"N\")))","v":""},{"$f":"IF($B122=\"N\",\"\",IF(OR('Enrollment Form'!$B129<>\"Subscriber\",'Enrollment Form'!$C129=\"ROC\"),\"-\",IF(AND('Enrollment Form'!$B129=\"Subscriber\",'Enrollment Form'!$C129=\"Enroll\",'Enrollment Form'!$AQ129<>\"\"),\"Y\",\"N\")))","v":""},{"$f":"IF($B122=\"N\",\"\",IF(OR('Enrollment Form'!$B129<>\"Subscriber\",'Enrollment Form'!$C129=\"ROC\"),\"-\",IF(AND('Enrollment Form'!$B129=\"Subscriber\",'Enrollment Form'!$C129=\"Enroll\",'Enrollment Form'!$AS129<>\"\"),\"Y\",\"N\")))","v":""},{"$f":"IF($B122=\"N\",\"\",IF($Q122=\"-\",\"-\",IF(AND($Q122=\"Y\",'Enrollment Form'!$AS129=\"No\"),\"-\",IF(AND($Q122=\"Y\",'Enrollment Form'!$AS129=\"Yes\",'Enrollment Form'!$AT129<>\"\"),\"Y\",\"N\"))))","v":""},{"$f":"IF($B122=\"N\",\"\",IF(OR('Enrollment Form'!$B129<>\"Subscriber\",'Enrollment Form'!$C129=\"ROC\"),\"-\",IF(AND('Enrollment Form'!$B129=\"Subscriber\",'Enrollment Form'!$C129=\"Enroll\",'Enrollment Form'!$CV129<>\"\"),\"Y\",\"N\")))","v":""},{"$f":"IF($B122=\"N\",\"\",IF($S122=\"-\",\"-\",IF(AND($S122=\"Y\",'Enrollment Form'!$CV129=\"No\"),\"-\",IF(AND($S122=\"Y\",'Enrollment Form'!$CV129=\"Yes\",'Enrollment Form'!$CW129<>\"\"),\"Y\",\"N\"))))","v":""},{"$f":"IF(OR('Enrollment Form'!$AY129=\"Yes\",'Enrollment Form'!$AY129=\"\"),\"-\",IF(OR(AND('Enrollment Form'!$AY129=\"No\",ISERROR(FIND(\"HMO\",VLOOKUP('Enrollment Form'!G129,'Enrollment Form'!H$11:J$1000,3,FALSE),1))=FALSE,COUNTA('Enrollment Form'!$AZ129:$BC129)=4),AND('Enrollment Form'!$AY129=\"No\",ISERROR(FIND(\"HMO\",VLOOKUP('Enrollment Form'!G129,'Enrollment Form'!H$11:J$1000,3,FALSE),1))=FALSE,COUNTA('Enrollment Form'!$BT129:$BW129)=4)),\"Y\",\"N\"))","v":"-"},{"$f":"IF($B122=\"N\",\"\",IF('Enrollment Form'!$B129=\"Subscriber\",\"-\",IF(COUNTA('Enrollment Form'!$BL129,'Enrollment Form'!$BN129)=2,\"Y\",\"N\")))","v":""},{"$f":"IF($B122=\"N\",\"\",IF(OR('Enrollment Form'!$AX129=\"\",'Enrollment Form'!$AX129=\"No\"),\"-\",IF(AND('Enrollment Form'!$AX129=\"Yes\",COUNTA('Enrollment Form'!$CR129)=1),\"Y\",\"N\")))","v":""},{"$f":"IF(OR('Enrollment Form'!$CR129=\"\",'Enrollment Form'!$CR129=\"No\"),\"-\",IF(COUNTA('Enrollment Form'!$CT129:$CU129)=2,\"Y\",\"N\"))","v":"-"},{"$f":"IF($B122=\"N\",\"\",IF(COUNTIF('Enrollment Form'!$DG129:$DP129,\"Other\")=COUNTA('Enrollment Form'!$DK129,'Enrollment Form'!$DH129,'Enrollment Form'!$DN129,'Enrollment Form'!$DQ129),\"Y\",\"N\"))","v":""},{"$f":"IF($B122=\"N\",\"\",IF(OR('Enrollment Form'!B129<>\"Subscriber\",'Enrollment Form'!C129=\"ROC\",COUNTIF('Enrollment Form'!AV129:AW129,\"Yes\")>=1),\"-\",IF(AND('Enrollment Form'!C129=\"Enroll\",COUNTIF('Enrollment Form'!AV129:AW129,\"No\")=2,'Enrollment Form'!AX129=\"\"),\"N\",\"Y\")))","v":""},{"$f":"IF(OR(B122=\"N\",'Enrollment Form'!B129<>\"Subscriber\",'Enrollment Form'!C129=\"ROC\",'Enrollment Form'!O129<>\"Multiple of Salary\"),\"-\",IF(COUNTA('Enrollment Form'!T129:U129)<2,\"N\",\"Y\"))","v":"-"},{"$f":"IF(B122=\"N\",\"\",IF(OR('Enrollment Form'!C129=\"ROC\",'Enrollment Form'!B129<>\"Subscriber\",'Enrollment Form'!O129=\"Waive\",'Enrollment Form'!O129=\"\"),\"-\",IF('Enrollment Form'!P129=\"\",\"N\",\"Y\")))","v":""},{"$f":"IF($B122=\"N\",\"\",IF(AND('Enrollment Form'!$C129=\"ROC\",'Enrollment Form'!$DR129<>\"\"),\"Y\",IF(AND('Enrollment Form'!$C129=\"ROC\",'Enrollment Form'!$DR129=\"\"),\"N\",IF(AND('Enrollment Form'!$C129=\"Enroll\",'Enrollment Form'!$B129=\"Subscriber\",'Enrollment Form'!$CX129=\"No\",'Enrollment Form'!$DR129=\"\"),\"N\",IF(AND('Enrollment Form'!$C129=\"Enroll\",'Enrollment Form'!$B129=\"Subscriber\",'Enrollment Form'!$CX129=\"Yes\"),\"-\",\"Y\")))))","v":""},{"$f":"IF($B122=\"N\",\"\",IF(AND('Enrollment Form'!$C129=\"ROC\",'Enrollment Form'!$DS129<>\"\"),\"Y\",IF(AND('Enrollment Form'!$C129=\"ROC\",'Enrollment Form'!$DS129=\"\"),\"N\",IF(AND('Enrollment Form'!$C129=\"Enroll\",'Enrollment Form'!$B129=\"Subscriber\",'Enrollment Form'!$CX129=\"No\",'Enrollment Form'!$DS129=\"\"),\"N\",IF(AND('Enrollment Form'!$C129=\"Enroll\",'Enrollment Form'!$B129=\"Subscriber\",'Enrollment Form'!$CX129=\"Yes\"),\"-\",\"Y\")))))","v":""},{"$f":"IF('Enrollment Form'!AH129=\"\",\"\",IF(ISERROR(SEARCH(\".\",'Enrollment Form'!AH129,SEARCH(\"@\",'Enrollment Form'!AH129))),\"N\",\"Y\"))","v":""},{"$f":"IF(OR($B122=\"N\",'Enrollment Form'!$G129=\"\"),\"\",IF('Enrollment Form'!$B129<>\"Subscriber\",\"-\",IF(COUNTIF('Enrollment Form'!$AV129:$AW129,\"Yes\")=2,\"N\",\"Y\")))","v":""},{"$f":"IF(OR('Enrollment Form'!$CJ129=\"\",'Enrollment Form'!$CJ129=\"No\"),\"-\",IF(AND('Enrollment Form'!$CJ129=\"Yes\",'Enrollment Form'!$CK129=\"\"),\"N\",\"Y\"))","v":"-"},{"$f":"IF(OR('Enrollment Form'!$CL129=\"\",'Enrollment Form'!$CL129=\"No\"),\"-\",IF(AND('Enrollment Form'!$CL129=\"Yes\",'Enrollment Form'!$CM129=\"\"),\"N\",\"Y\"))","v":"-"},{"$f":"IF(OR('Enrollment Form'!$CN129=\"\",'Enrollment Form'!$CN129=\"No\"),\"-\",IF(AND('Enrollment Form'!$CN129=\"Yes\",'Enrollment Form'!$CO129=\"\"),\"N\",\"Y\"))","v":"-"},{"$f":"IF(OR('Enrollment Form'!$CN129=\"\",'Enrollment Form'!$CN129=\"No\"),\"-\",IF(AND('Enrollment Form'!$CN129=\"Yes\",'Enrollment Form'!$CP129=\"\"),\"N\",\"Y\"))","v":"-"},{"$f":"IF('Enrollment Form'!B129<>\"Subscriber\",\"-\",IF(AND('Enrollment Form'!B129=\"Subscriber\",'Enrollment Form'!C129=\"Enroll\",'Enrollment Form'!AA129=\"\"),\"N\",\"Y\"))","v":"-"},{"$f":"IF(OR('Enrollment Form'!B129=\"Subscriber\",'Enrollment Form'!B129=\"\"),\"-\",IF('Enrollment Form'!BP129=\"\",\"N\",\"Y\"))","v":"-"},{"$f":"IF('Enrollment Form'!B129<>\"Subscriber\",\"-\",IF(AND('Enrollment Form'!B129=\"Subscriber\",'Enrollment Form'!G129=\"\"),\"N\",\"Y\"))","v":"-"},{"$f":"IF('Enrollment Form'!A129=\"\",\"\",IF('Enrollment Form'!B129=\"Subscriber\",\"-\",IF(AND('Enrollment Form'!B129<>\"Subscriber\",'Enrollment Form'!G129='Enrollment Form'!H129),\"N\",\"Y\")))","v":""},0]
[130,{"$f":"IF('Enrollment Form'!$A130<>\"\",\"Y\",\"N\")","v":"N"},{"$f":"IF(AND('Enrollment Form'!$B130=\"\",'Enrollment Form'!$C130<>\"\"),\"N\",IF($B123=\"N\",\"\",\"Y\"))","v":""},{"$f":"IF(OR($B123=\"N\",'Enrollment Form'!G130=\"\"),\"\",IF('Enrollment Form'!$B130<>\"Subscriber\",\"\",IF('Enrollment Form'!$G130='Enrollment Form'!$H130,\"Y\",\"N\")))","v":""},{"$f":"IF($B123=\"N\",\"\",IF(AND(COUNTIFS('Enrollment Form'!$H$11:$H$1000,'Enrollment Form'!$H130,'Enrollment Form'!$B$11:$B$1000,'Enrollment Form'!$B130)>1,'Enrollment Form'!$H130<>\"\"),\"N\",\"Y\"))","v":""},{"$f":"IF($B123=\"N\",\"\",IF(LEN('Enrollment Form'!$Y130)=0,\"\",IF(LEN('Enrollment Form'!$Y130)<>5,\"N\",\"Y\")))","v":""},{"$f":"IF($B123=\"N\",\"\",IF(LEN('Enrollment Form'!$AD130=0),\"\",IF(LEN('Enrollment Form'!$AD130)<>5,\"N\",\"Y\")))","v":""},{"$f":"IF($B123=\"N\",\"\",IF(LEN('Enrollment Form'!$BS130=0),\"\",IF(LEN('Enrollment Form'!$BS130)<>5,\"N\",\"Y\")))","v":""},{"$f":"IF($B123=\"N\",\"\",IF(LEN('Enrollment Form'!$AE130)=0,\"\",IF(LEN('Enrollment Form'!$AE130)<>10,\"N\",\"Y\")))","v":""},{"$f":"IF($B123=\"N\",\"\",IF(LEN('Enrollment Form'!$AF130)=0,\"\",IF(LEN('Enrollment Form'!$AF130)<>10,\"N\",\"Y\")))","v":""},{"$f":"IF('Enrollment Form'!$O130<>\"Graded\",\"-\",IF(AND('Enrollment Form'!$O130=\"Graded\",'Enrollment Form'!$AR130<>\"\"),\"Y\",\"N\"))","v":"-"},{"$f":"IF($B123=\"N\",\"\",IF(OR('Enrollment Form'!$B130<>\"Subscriber\",'Enrollment Form'!$C130=\"ROC\"),\"-\",IF(AND('Enrollment Form'!$B130=\"Subscriber\",'Enrollment Form'!$C130=\"Enroll\",'Enrollment Form'!$AJ130<>\"\"),\"Y\",\"N\")))","v":""},{"$f":"IF($B123=\"N\",\"\",IF(OR('Enrollment Form'!$B130<>\"Subscriber\",'Enrollment Form'!$C130=\"ROC\"),\"-\",IF(AND('Enrollment Form'!$B130=\"Subscriber\",'Enrollment Form'!$C130=\"Enroll\",'Enrollment Form'!$AK130<>\"\"),\"Y\",\"N\")))","v":""},{"$f":"IF($B123=\"N\",\"\",IF(OR('Enrollment Form'!$B130<>\"Subscriber\",'Enrollment Form'!$C130=\"ROC\"),\"-\",IF(AND('Enrollment Form'!$B130=\"Subscriber\",'Enrollment Form'!$C130=\"Enroll\",'Enrollment Form'!$AL130<>\"\"),\"Y\",\"N\")))","v":""},{"$f":"IF($B123=\"N\",\"\",IF(OR('Enrollment Form'!$B130<>\"Subscriber\",'Enrollment Form'!$C130=\"ROC\"),\"-\",IF(AND('Enrollment Form'!$B130=\"Subscriber\",'Enrollment Form'!$C130=\"Enroll\",'Enrollment Form'!$AP130<>\"\"),\"Y\",\"N\")))","v":""},{"$f":"IF($B123=\"N\",\"\",IF(OR('Enrollment Form'!$B130<>\"Subscriber\",'Enrollment Form'!$C130=\"ROC\"),\"-\",IF(AND('Enrollment Form'!$B130=\"Subscriber\",'Enrollment Form'!$C130=\"Enroll\",'Enrollment Form'!$AQ130<>\"\"),\"Y\",\"N\")))","v":""},{"$f":"IF($B123=\"N\",\"\",IF(OR('Enrollment Form'!$B130<>\"Subscriber\",'Enrollment Form'!$C130=\"ROC\"),\"-\",IF(AND('Enrollment Form'!$B130=\"Subscriber\",'Enrollment Form'!$C130=\"Enroll\",'Enrollment Form'!$AS130<>\"\"),\"Y\",\"N\")))","v":""},{"$f":"IF($B123=\"N\",\"\",IF($Q123=\"-\",\"-\",IF(AND($Q123=\"Y\",'Enrollment Form'!$AS130=\"No\"),\"-\",IF(AND($Q123=\"Y\",'Enrollment Form'!$AS130=\"Yes\",'Enrollment Form'!$AT130<>\"\"),\"Y\",\"N\"))))","v":""},{"$f":"IF($B123=\"N\",\"\",IF(OR('Enrollment Form'!$B130<>\"Subscriber\",'Enrollment Form'!$C130=\"ROC\"),\"-\",IF(AND('Enrollment Form'!$B130=\"Subscriber\",'Enrollment Form'!$C130=\"Enroll\",'Enrollment Form'!$CV130<>\"\"),\"Y\",\"N\")))","v":""},{"$f":"IF($B123=\"N\",\"\",IF($S123=\"-\",\"-\",IF(AND($S123=\"Y\",'Enrollment Form'!$CV130=\"No\"),\"-\",IF(AND($S123=\"Y\",'Enrollment Form'!$CV130=\"Yes\",'Enrollment Form'!$CW130<>\"\"),\"Y\",\"N\"))))","v":""},{"$f":"IF(OR('Enrollment Form'!$AY130=\"Yes\",'Enrollment Form'!$AY130=\"\"),\"-\",IF(OR(AND('Enrollment Form'!$AY130=\"No\",ISERROR(FIND(\"HMO\",VLOOKUP('Enrollment Form'!G130,'Enrollment Form'!H$11:J$1000,3,FALSE),1))=FALSE,COUNTA('Enrollment Form'!$AZ130:$BC130)=4),AND('Enrollment Form'!$AY130=\"No\",ISERROR(FIND(\"HMO\",VLOOKUP('Enrollment Form'!G130,'Enrollment Form'!H$11:J$1000,3,FALSE),1))=FALSE,COUNTA('Enrollment Form'!$BT130:$BW130)=4)),\"Y\",\"N\"))","v":"-"},{"$f":"IF($B123=\"N\",\"\",IF('Enrollment Form'!$B130=\"Subscriber\",\"-\",IF(COUNTA('Enrollment Form'!$BL130,'Enrollment Form'!$BN130)=2,\"Y\",\"N\")))","v":""},{"$f":"IF($B123=\"N\",\"\",IF(OR('Enrollment Form'!$AX130=\"\",'Enrollment Form'!$AX130=\"No\"),\"-\",IF(AND('Enrollment Form'!$AX130=\"Yes\",COUNTA('Enrollment Form'!$CR130)=1),\"Y\",\"N\")))","v":""},{"$f":"IF(OR('Enrollment Form'!$CR130=\"\",'Enrollment Form'!$CR130=\"No\"),\"-\",IF(COUNTA('Enrollment Form'!$CT130:$CU130)=2,\"Y\",\"N\"))","v":"-"},{"$f":"IF($B123=\"N\",\"\",IF(COUNTIF('Enrollment Form'!$DG130:$DP130,\"Other\")=COUNTA('Enrollment Form'!$DK130,'Enrollment Form'!$DH130,'Enrollment Form'!$DN130,'Enrollment Form'!$DQ130),\"Y\",\"N\"))","v":""},{"$f":"IF($B123=\"N\",\"\",IF(OR('Enrollment Form'!B130<>\"Subscriber\",'Enrollment Form'!C130=\"ROC\",COUNTIF('Enrollment Form'!AV130:AW130,\"Yes\")>=1),\"-\",IF(AND('Enrollment Form'!C130=\"Enroll\",COUNTIF('Enrollment Form'!AV130:AW130,\"No\")=2,'Enrollment Form'!AX130=\"\"),\"N\",\"Y\")))","v":""},{"$f":"IF(OR(B123=\"N\",'Enrollment Form'!B130<>\"Subscriber\",'Enrollment Form'!C130=\"ROC\",'Enrollment Form'!O130<>\"Multiple of Salary\"),\"-\",IF(COUNTA('Enrollment Form'!T130:U130)<2,\"N\",\"Y\"))","v":"-"},{"$f":"IF(B123=\"N\",\"\",IF(OR('Enrollment Form'!C130=\"ROC\",'Enrollment Form'!B130<>\"Subscriber\",'Enrollment Form'!O130=\"Waive\",'Enrollment Form'!O130=\"\"),\"-\",IF('Enrollment Form'!P130=\"\",\"N\",\"Y\")))","v":""},{"$f":"IF($B123=\"N\",\"\",IF(AND('Enrollment Form'!$C130=\"ROC\",'Enrollment Form'!$DR130<>\"\"),\"Y\",IF(AND('Enrollment Form'!$C130=\"ROC\",'Enrollment Form'!$DR130=\"\"),\"N\",IF(AND('Enrollment Form'!$C130=\"Enroll\",'Enrollment Form'!$B130=\"Subscriber\",'Enrollment Form'!$CX130=\"No\",'Enrollment Form'!$DR130=\"\"),\"N\",IF(AND('Enrollment Form'!$C130=\"Enroll\",'Enrollment Form'!$B130=\"Subscriber\",'Enrollment Form'!$CX130=\"Yes\"),\"-\",\"Y\")))))","v":""},{"$f":"IF($B123=\"N\",\"\",IF(AND('Enrollment Form'!$C130=\"ROC\",'Enrollment Form'!$DS130<>\"\"),\"Y\",IF(AND('Enrollment Form'!$C130=\"ROC\",'Enrollment Form'!$DS130=\"\"),\"N\",IF(AND('Enrollment Form'!$C130=\"Enroll\",'Enrollment Form'!$B130=\"Subscriber\",'Enrollment Form'!$CX130=\"No\",'Enrollment Form'!$DS130=\"\"),\"N\",IF(AND('Enrollment Form'!$C130=\"Enroll\",'Enrollment Form'!$B130=\"Subscriber\",'Enrollment Form'!$CX130=\"Yes\"),\"-\",\"Y\")))))","v":""},{"$f":"IF('Enrollment Form'!AH130=\"\",\"\",IF(ISERROR(SEARCH(\".\",'Enrollment Form'!AH130,SEARCH(\"@\",'Enrollment Form'!AH130))),\"N\",\"Y\"))","v":""},{"$f":"IF(OR($B123=\"N\",'Enrollment Form'!$G130=\"\"),\"\",IF('Enrollment Form'!$B130<>\"Subscriber\",\"-\",IF(COUNTIF('Enrollment Form'!$AV130:$AW130,\"Yes\")=2,\"N\",\"Y\")))","v":""},{"$f":"IF(OR('Enrollment Form'!$CJ130=\"\",'Enrollment Form'!$CJ130=\"No\"),\"-\",IF(AND('Enrollment Form'!$CJ130=\"Yes\",'Enrollment Form'!$CK130=\"\"),\"N\",\"Y\"))","v":"-"},{"$f":"IF(OR('Enrollment Form'!$CL130=\"\",'Enrollment Form'!$CL130=\"No\"),\"-\",IF(AND('Enrollment Form'!$CL130=\"Yes\",'Enrollment Form'!$CM130=\"\"),\"N\",\"Y\"))","v":"-"},{"$f":"IF(OR('Enrollment Form'!$CN130=\"\",'Enrollment Form'!$CN130=\"No\"),\"-\",IF(AND('Enrollment Form'!$CN130=\"Yes\",'Enrollment Form'!$CO130=\"\"),\"N\",\"Y\"))","v":"-"},{"$f":"IF(OR('Enrollment Form'!$CN130=\"\",'Enrollment Form'!$CN130=\"No\"),\"-\",IF(AND('Enrollment Form'!$CN130=\"Yes\",'Enrollment Form'!$CP130=\"\"),\"N\",\"Y\"))","v":"-"},{"$f":"IF('Enrollment Form'!B130<>\"Subscriber\",\"-\",IF(AND('Enrollment Form'!B130=\"Subscriber\",'Enrollment Form'!C130=\"Enroll\",'Enrollment Form'!AA130=\"\"),\"N\",\"Y\"))","v":"-"},{"$f":"IF(OR('Enrollment Form'!B130=\"Subscriber\",'Enrollment Form'!B130=\"\"),\"-\",IF('Enrollment Form'!BP130=\"\",\"N\",\"Y\"))","v":"-"},{"$f":"IF('Enrollment Form'!B130<>\"Subscriber\",\"-\",IF(AND('Enrollment Form'!B130=\"Subscriber\",'Enrollment Form'!G130=\"\"),\"N\",\"Y\"))","v":"-"},{"$f":"IF('Enrollment Form'!A130=\"\",\"\",IF('Enrollment Form'!B130=\"Subscriber\",\"-\",IF(AND('Enrollment Form'!B130<>\"Subscriber\",'Enrollment Form'!G130='Enrollment Form'!H130),\"N\",\"Y\")))","v":""},0]
[131,{"$f":"IF('Enrollment Form'!$A131<>\"\",\"Y\",\"N\")","v":"N"},{"$f":"IF(AND('Enrollment Form'!$B131=\"\",'Enrollment Form'!$C131<>\"\"),\"N\",IF($B124=\"N\",\"\",\"Y\"))","v":""},{"$f":"IF(OR($B124=\"N\",'Enrollment Form'!G131=\"\"),\"\",IF('Enrollment Form'!$B131<>\"Subscriber\",\"\",IF('Enrollment Form'!$G131='Enrollment Form'!$H131,\"Y\",\"N\")))","v":""},{"$f":"IF($B124=\"N\",\"\",IF(AND(COUNTIFS('Enrollment Form'!$H$11:$H$1000,'Enrollment Form'!$H131,'Enrollment Form'!$B$11:$B$1000,'Enrollment Form'!$B131)>1,'Enrollment Form'!$H131<>\"\"),\"N\",\"Y\"))","v":""},{"$f":"IF($B124=\"N\",\"\",IF(LEN('Enrollment Form'!$Y131)=0,\"\",IF(LEN('Enrollment Form'!$Y131)<>5,\"N\",\"Y\")))","v":""},{"$f":"IF($B124=\"N\",\"\",IF(LEN('Enrollment Form'!$AD131=0),\"\",IF(LEN('Enrollment Form'!$AD131)<>5,\"N\",\"Y\")))","v":""},{"$f":"IF($B124=\"N\",\"\",IF(LEN('Enrollment Form'!$BS131=0),\"\",IF(LEN('Enrollment Form'!$BS131)<>5,\"N\",\"Y\")))","v":""},{"$f":"IF($B124=\"N\",\"\",IF(LEN('Enrollment Form'!$AE131)=0,\"\",IF(LEN('Enrollment Form'!$AE131)<>10,\"N\",\"Y\")))","v":""},{"$f":"IF($B124=\"N\",\"\",IF(LEN('Enrollment Form'!$AF131)=0,\"\",IF(LEN('Enrollment Form'!$AF131)<>10,\"N\",\"Y\")))","v":""},{"$f":"IF('Enrollment Form'!$O131<>\"Graded\",\"-\",IF(AND('Enrollment Form'!$O131=\"Graded\",'Enrollment Form'!$AR131<>\"\"),\"Y\",\"N\"))","v":"-"},{"$f":"IF($B124=\"N\",\"\",IF(OR('Enrollment Form'!$B131<>\"Subscriber\",'Enrollment Form'!$C131=\"ROC\"),\"-\",IF(AND('Enrollment Form'!$B131=\"Subscriber\",'Enrollment Form'!$C131=\"Enroll\",'Enrollment Form'!$AJ131<>\"\"),\"Y\",\"N\")))","v":""},{"$f":"IF($B124=\"N\",\"\",IF(OR('Enrollment Form'!$B131<>\"Subscriber\",'Enrollment Form'!$C131=\"ROC\"),\"-\",IF(AND('Enrollment Form'!$B131=\"Subscriber\",'Enrollment Form'!$C131=\"Enroll\",'Enrollment Form'!$AK131<>\"\"),\"Y\",\"N\")))","v":""},{"$f":"IF($B124=\"N\",\"\",IF(OR('Enrollment Form'!$B131<>\"Subscriber\",'Enrollment Form'!$C131=\"ROC\"),\"-\",IF(AND('Enrollment Form'!$B131=\"Subscriber\",'Enrollment Form'!$C131=\"Enroll\",'Enrollment Form'!$AL131<>\"\"),\"Y\",\"N\")))","v":""},{"$f":"IF($B124=\"N\",\"\",IF(OR('Enrollment Form'!$B131<>\"Subscriber\",'Enrollment Form'!$C131=\"ROC\"),\"-\",IF(AND('Enrollment Form'!$B131=\"Subscriber\",'Enrollment Form'!$C131=\"Enroll\",'Enrollment Form'!$AP131<>\"\"),\"Y\",\"N\")))","v":""},{"$f":"IF($B124=\"N\",\"\",IF(OR('Enrollment Form'!$B131<>\"Subscriber\",'Enrollment Form'!$C131=\"ROC\"),\"-\",IF(AND('Enrollment Form'!$B131=\"Subscriber\",'Enrollment Form'!$C131=\"Enroll\",'Enrollment Form'!$AQ131<>\"\"),\"Y\",\"N\")))","v":""},{"$f":"IF($B124=\"N\",\"\",IF(OR('Enrollment Form'!$B131<>\"Subscriber\",'Enrollment Form'!$C131=\"ROC\"),\"-\",IF(AND('Enrollment Form'!$B131=\"Subscriber\",'Enrollment Form'!$C131=\"Enroll\",'Enrollment Form'!$AS131<>\"\"),\"Y\",\"N\")))","v":""},{"$f":"IF($B124=\"N\",\"\",IF($Q124=\"-\",\"-\",IF(AND($Q124=\"Y\",'Enrollment Form'!$AS131=\"No\"),\"-\",IF(AND($Q124=\"Y\",'Enrollment Form'!$AS131=\"Yes\",'Enrollment Form'!$AT131<>\"\"),\"Y\",\"N\"))))","v":""},{"$f":"IF($B124=\"N\",\"\",IF(OR('Enrollment Form'!$B131<>\"Subscriber\",'Enrollment Form'!$C131=\"ROC\"),\"-\",IF(AND('Enrollment Form'!$B131=\"Subscriber\",'Enrollment Form'!$C131=\"Enroll\",'Enrollment Form'!$CV131<>\"\"),\"Y\",\"N\")))","v":""},{"$f":"IF($B124=\"N\",\"\",IF($S124=\"-\",\"-\",IF(AND($S124=\"Y\",'Enrollment Form'!$CV131=\"No\"),\"-\",IF(AND($S124=\"Y\",'Enrollment Form'!$CV131=\"Yes\",'Enrollment Form'!$CW131<>\"\"),\"Y\",\"N\"))))","v":""},{"$f":"IF(OR('Enrollment Form'!$AY131=\"Yes\",'Enrollment Form'!$AY131=\"\"),\"-\",IF(OR(AND('Enrollment Form'!$AY131=\"No\",ISERROR(FIND(\"HMO\",VLOOKUP('Enrollment Form'!G131,'Enrollment Form'!H$11:J$1000,3,FALSE),1))=FALSE,COUNTA('Enrollment Form'!$AZ131:$BC131)=4),AND('Enrollment Form'!$AY131=\"No\",ISERROR(FIND(\"HMO\",VLOOKUP('Enrollment Form'!G131,'Enrollment Form'!H$11:J$1000,3,FALSE),1))=FALSE,COUNTA('Enrollment Form'!$BT131:$BW131)=4)),\"Y\",\"N\"))","v":"-"},{"$f":"IF($B124=\"N\",\"\",IF('Enrollment Form'!$B131=\"Subscriber\",\"-\",IF(COUNTA('Enrollment Form'!$BL131,'Enrollment Form'!$BN131)=2,\"Y\",\"N\")))","v":""},{"$f":"IF($B124=\"N\",\"\",IF(OR('Enrollment Form'!$AX131=\"\",'Enrollment Form'!$AX131=\"No\"),\"-\",IF(AND('Enrollment Form'!$AX131=\"Yes\",COUNTA('Enrollment Form'!$CR131)=1),\"Y\",\"N\")))","v":""},{"$f":"IF(OR('Enrollment Form'!$CR131=\"\",'Enrollment Form'!$CR131=\"No\"),\"-\",IF(COUNTA('Enrollment Form'!$CT131:$CU131)=2,\"Y\",\"N\"))","v":"-"},{"$f":"IF($B124=\"N\",\"\",IF(COUNTIF('Enrollment Form'!$DG131:$DP131,\"Other\")=COUNTA('Enrollment Form'!$DK131,'Enrollment Form'!$DH131,'Enrollment Form'!$DN131,'Enrollment Form'!$DQ131),\"Y\",\"N\"))","v":""},{"$f":"IF($B124=\"N\",\"\",IF(OR('Enrollment Form'!B131<>\"Subscriber\",'Enrollment Form'!C131=\"ROC\",COUNTIF('Enrollment Form'!AV131:AW131,\"Yes\")>=1),\"-\",IF(AND('Enrollment Form'!C131=\"Enroll\",COUNTIF('Enrollment Form'!AV131:AW131,\"No\")=2,'Enrollment Form'!AX131=\"\"),\"N\",\"Y\")))","v":""},{"$f":"IF(OR(B124=\"N\",'Enrollment Form'!B131<>\"Subscriber\",'Enrollment Form'!C131=\"ROC\",'Enrollment Form'!O131<>\"Multiple of Salary\"),\"-\",IF(COUNTA('Enrollment Form'!T131:U131)<2,\"N\",\"Y\"))","v":"-"},{"$f":"IF(B124=\"N\",\"\",IF(OR('Enrollment Form'!C131=\"ROC\",'Enrollment Form'!B131<>\"Subscriber\",'Enrollment Form'!O131=\"Waive\",'Enrollment Form'!O131=\"\"),\"-\",IF('Enrollment Form'!P131=\"\",\"N\",\"Y\")))","v":""},{"$f":"IF($B124=\"N\",\"\",IF(AND('Enrollment Form'!$C131=\"ROC\",'Enrollment Form'!$DR131<>\"\"),\"Y\",IF(AND('Enrollment Form'!$C131=\"ROC\",'Enrollment Form'!$DR131=\"\"),\"N\",IF(AND('Enrollment Form'!$C131=\"Enroll\",'Enrollment Form'!$B131=\"Subscriber\",'Enrollment Form'!$CX131=\"No\",'Enrollment Form'!$DR131=\"\"),\"N\",IF(AND('Enrollment Form'!$C131=\"Enroll\",'Enrollment Form'!$B131=\"Subscriber\",'Enrollment Form'!$CX131=\"Yes\"),\"-\",\"Y\")))))","v":""},{"$f":"IF($B124=\"N\",\"\",IF(AND('Enrollment Form'!$C131=\"ROC\",'Enrollment Form'!$DS131<>\"\"),\"Y\",IF(AND('Enrollment Form'!$C131=\"ROC\",'Enrollment Form'!$DS131=\"\"),\"N\",IF(AND('Enrollment Form'!$C131=\"Enroll\",'Enrollment Form'!$B131=\"Subscriber\",'Enrollment Form'!$CX131=\"No\",'Enrollment Form'!$DS131=\"\"),\"N\",IF(AND('Enrollment Form'!$C131=\"Enroll\",'Enrollment Form'!$B131=\"Subscriber\",'Enrollment Form'!$CX131=\"Yes\"),\"-\",\"Y\")))))","v":""},{"$f":"IF('Enrollment Form'!AH131=\"\",\"\",IF(ISERROR(SEARCH(\".\",'Enrollment Form'!AH131,SEARCH(\"@\",'Enrollment Form'!AH131))),\"N\",\"Y\"))","v":""},{"$f":"IF(OR($B124=\"N\",'Enrollment Form'!$G131=\"\"),\"\",IF('Enrollment Form'!$B131<>\"Subscriber\",\"-\",IF(COUNTIF('Enrollment Form'!$AV131:$AW131,\"Yes\")=2,\"N\",\"Y\")))","v":""},{"$f":"IF(OR('Enrollment Form'!$CJ131=\"\",'Enrollment Form'!$CJ131=\"No\"),\"-\",IF(AND('Enrollment Form'!$CJ131=\"Yes\",'Enrollment Form'!$CK131=\"\"),\"N\",\"Y\"))","v":"-"},{"$f":"IF(OR('Enrollment Form'!$CL131=\"\",'Enrollment Form'!$CL131=\"No\"),\"-\",IF(AND('Enrollment Form'!$CL131=\"Yes\",'Enrollment Form'!$CM131=\"\"),\"N\",\"Y\"))","v":"-"},{"$f":"IF(OR('Enrollment Form'!$CN131=\"\",'Enrollment Form'!$CN131=\"No\"),\"-\",IF(AND('Enrollment Form'!$CN131=\"Yes\",'Enrollment Form'!$CO131=\"\"),\"N\",\"Y\"))","v":"-"},{"$f":"IF(OR('Enrollment Form'!$CN131=\"\",'Enrollment Form'!$CN131=\"No\"),\"-\",IF(AND('Enrollment Form'!$CN131=\"Yes\",'Enrollment Form'!$CP131=\"\"),\"N\",\"Y\"))","v":"-"},{"$f":"IF('Enrollment Form'!B131<>\"Subscriber\",\"-\",IF(AND('Enrollment Form'!B131=\"Subscriber\",'Enrollment Form'!C131=\"Enroll\",'Enrollment Form'!AA131=\"\"),\"N\",\"Y\"))","v":"-"},{"$f":"IF(OR('Enrollment Form'!B131=\"Subscriber\",'Enrollment Form'!B131=\"\"),\"-\",IF('Enrollment Form'!BP131=\"\",\"N\",\"Y\"))","v":"-"},{"$f":"IF('Enrollment Form'!B131<>\"Subscriber\",\"-\",IF(AND('Enrollment Form'!B131=\"Subscriber\",'Enrollment Form'!G131=\"\"),\"N\",\"Y\"))","v":"-"},{"$f":"IF('Enrollment Form'!A131=\"\",\"\",IF('Enrollment Form'!B131=\"Subscriber\",\"-\",IF(AND('Enrollment Form'!B131<>\"Subscriber\",'Enrollment Form'!G131='Enrollment Form'!H131),\"N\",\"Y\")))","v":""},0]
[132,{"$f":"IF('Enrollment Form'!$A132<>\"\",\"Y\",\"N\")","v":"N"},{"$f":"IF(AND('Enrollment Form'!$B132=\"\",'Enrollment Form'!$C132<>\"\"),\"N\",IF($B125=\"N\",\"\",\"Y\"))","v":""},{"$f":"IF(OR($B125=\"N\",'Enrollment Form'!G132=\"\"),\"\",IF('Enrollment Form'!$B132<>\"Subscriber\",\"\",IF('Enrollment Form'!$G132='Enrollment Form'!$H132,\"Y\",\"N\")))","v":""},{"$f":"IF($B125=\"N\",\"\",IF(AND(COUNTIFS('Enrollment Form'!$H$11:$H$1000,'Enrollment Form'!$H132,'Enrollment Form'!$B$11:$B$1000,'Enrollment Form'!$B132)>1,'Enrollment Form'!$H132<>\"\"),\"N\",\"Y\"))","v":""},{"$f":"IF($B125=\"N\",\"\",IF(LEN('Enrollment Form'!$Y132)=0,\"\",IF(LEN('Enrollment Form'!$Y132)<>5,\"N\",\"Y\")))","v":""},{"$f":"IF($B125=\"N\",\"\",IF(LEN('Enrollment Form'!$AD132=0),\"\",IF(LEN('Enrollment Form'!$AD132)<>5,\"N\",\"Y\")))","v":""},{"$f":"IF($B125=\"N\",\"\",IF(LEN('Enrollment Form'!$BS132=0),\"\",IF(LEN('Enrollment Form'!$BS132)<>5,\"N\",\"Y\")))","v":""},{"$f":"IF($B125=\"N\",\"\",IF(LEN('Enrollment Form'!$AE132)=0,\"\",IF(LEN('Enrollment Form'!$AE132)<>10,\"N\",\"Y\")))","v":""},{"$f":"IF($B125=\"N\",\"\",IF(LEN('Enrollment Form'!$AF132)=0,\"\",IF(LEN('Enrollment Form'!$AF132)<>10,\"N\",\"Y\")))","v":""},{"$f":"IF('Enrollment Form'!$O132<>\"Graded\",\"-\",IF(AND('Enrollment Form'!$O132=\"Graded\",'Enrollment Form'!$AR132<>\"\"),\"Y\",\"N\"))","v":"-"},{"$f":"IF($B125=\"N\",\"\",IF(OR('Enrollment Form'!$B132<>\"Subscriber\",'Enrollment Form'!$C132=\"ROC\"),\"-\",IF(AND('Enrollment Form'!$B132=\"Subscriber\",'Enrollment Form'!$C132=\"Enroll\",'Enrollment Form'!$AJ132<>\"\"),\"Y\",\"N\")))","v":""},{"$f":"IF($B125=\"N\",\"\",IF(OR('Enrollment Form'!$B132<>\"Subscriber\",'Enrollment Form'!$C132=\"ROC\"),\"-\",IF(AND('Enrollment Form'!$B132=\"Subscriber\",'Enrollment Form'!$C132=\"Enroll\",'Enrollment Form'!$AK132<>\"\"),\"Y\",\"N\")))","v":""},{"$f":"IF($B125=\"N\",\"\",IF(OR('Enrollment Form'!$B132<>\"Subscriber\",'Enrollment Form'!$C132=\"ROC\"),\"-\",IF(AND('Enrollment Form'!$B132=\"Subscriber\",'Enrollment Form'!$C132=\"Enroll\",'Enrollment Form'!$AL132<>\"\"),\"Y\",\"N\")))","v":""},{"$f":"IF($B125=\"N\",\"\",IF(OR('Enrollment Form'!$B132<>\"Subscriber\",'Enrollment Form'!$C132=\"ROC\"),\"-\",IF(AND('Enrollment Form'!$B132=\"Subscriber\",'Enrollment Form'!$C132=\"Enroll\",'Enrollment Form'!$AP132<>\"\"),\"Y\",\"N\")))","v":""},{"$f":"IF($B125=\"N\",\"\",IF(OR('Enrollment Form'!$B132<>\"Subscriber\",'Enrollment Form'!$C132=\"ROC\"),\"-\",IF(AND('Enrollment Form'!$B132=\"Subscriber\",'Enrollment Form'!$C132=\"Enroll\",'Enrollment Form'!$AQ132<>\"\"),\"Y\",\"N\")))","v":""},{"$f":"IF($B125=\"N\",\"\",IF(OR('Enrollment Form'!$B132<>\"Subscriber\",'Enrollment Form'!$C132=\"ROC\"),\"-\",IF(AND('Enrollment Form'!$B132=\"Subscriber\",'Enrollment Form'!$C132=\"Enroll\",'Enrollment Form'!$AS132<>\"\"),\"Y\",\"N\")))","v":""},{"$f":"IF($B125=\"N\",\"\",IF($Q125=\"-\",\"-\",IF(AND($Q125=\"Y\",'Enrollment Form'!$AS132=\"No\"),\"-\",IF(AND($Q125=\"Y\",'Enrollment Form'!$AS132=\"Yes\",'Enrollment Form'!$AT132<>\"\"),\"Y\",\"N\"))))","v":""},{"$f":"IF($B125=\"N\",\"\",IF(OR('Enrollment Form'!$B132<>\"Subscriber\",'Enrollment Form'!$C132=\"ROC\"),\"-\",IF(AND('Enrollment Form'!$B132=\"Subscriber\",'Enrollment Form'!$C132=\"Enroll\",'Enrollment Form'!$CV132<>\"\"),\"Y\",\"N\")))","v":""},{"$f":"IF($B125=\"N\",\"\",IF($S125=\"-\",\"-\",IF(AND($S125=\"Y\",'Enrollment Form'!$CV132=\"No\"),\"-\",IF(AND($S125=\"Y\",'Enrollment Form'!$CV132=\"Yes\",'Enrollment Form'!$CW132<>\"\"),\"Y\",\"N\"))))","v":""},{"$f":"IF(OR('Enrollment Form'!$AY132=\"Yes\",'Enrollment Form'!$AY132=\"\"),\"-\",IF(OR(AND('Enrollment Form'!$AY132=\"No\",ISERROR(FIND(\"HMO\",VLOOKUP('Enrollment Form'!G132,'Enrollment Form'!H$11:J$1000,3,FALSE),1))=FALSE,COUNTA('Enrollment Form'!$AZ132:$BC132)=4),AND('Enrollment Form'!$AY132=\"No\",ISERROR(FIND(\"HMO\",VLOOKUP('Enrollment Form'!G132,'Enrollment Form'!H$11:J$1000,3,FALSE),1))=FALSE,COUNTA('Enrollment Form'!$BT132:$BW132)=4)),\"Y\",\"N\"))","v":"-"},{"$f":"IF($B125=\"N\",\"\",IF('Enrollment Form'!$B132=\"Subscriber\",\"-\",IF(COUNTA('Enrollment Form'!$BL132,'Enrollment Form'!$BN132)=2,\"Y\",\"N\")))","v":""},{"$f":"IF($B125=\"N\",\"\",IF(OR('Enrollment Form'!$AX132=\"\",'Enrollment Form'!$AX132=\"No\"),\"-\",IF(AND('Enrollment Form'!$AX132=\"Yes\",COUNTA('Enrollment Form'!$CR132)=1),\"Y\",\"N\")))","v":""},{"$f":"IF(OR('Enrollment Form'!$CR132=\"\",'Enrollment Form'!$CR132=\"No\"),\"-\",IF(COUNTA('Enrollment Form'!$CT132:$CU132)=2,\"Y\",\"N\"))","v":"-"},{"$f":"IF($B125=\"N\",\"\",IF(COUNTIF('Enrollment Form'!$DG132:$DP132,\"Other\")=COUNTA('Enrollment Form'!$DK132,'Enrollment Form'!$DH132,'Enrollment Form'!$DN132,'Enrollment Form'!$DQ132),\"Y\",\"N\"))","v":""},{"$f":"IF($B125=\"N\",\"\",IF(OR('Enrollment Form'!B132<>\"Subscriber\",'Enrollment Form'!C132=\"ROC\",COUNTIF('Enrollment Form'!AV132:AW132,\"Yes\")>=1),\"-\",IF(AND('Enrollment Form'!C132=\"Enroll\",COUNTIF('Enrollment Form'!AV132:AW132,\"No\")=2,'Enrollment Form'!AX132=\"\"),\"N\",\"Y\")))","v":""},{"$f":"IF(OR(B125=\"N\",'Enrollment Form'!B132<>\"Subscriber\",'Enrollment Form'!C132=\"ROC\",'Enrollment Form'!O132<>\"Multiple of Salary\"),\"-\",IF(COUNTA('Enrollment Form'!T132:U132)<2,\"N\",\"Y\"))","v":"-"},{"$f":"IF(B125=\"N\",\"\",IF(OR('Enrollment Form'!C132=\"ROC\",'Enrollment Form'!B132<>\"Subscriber\",'Enrollment Form'!O132=\"Waive\",'Enrollment Form'!O132=\"\"),\"-\",IF('Enrollment Form'!P132=\"\",\"N\",\"Y\")))","v":""},{"$f":"IF($B125=\"N\",\"\",IF(AND('Enrollment Form'!$C132=\"ROC\",'Enrollment Form'!$DR132<>\"\"),\"Y\",IF(AND('Enrollment Form'!$C132=\"ROC\",'Enrollment Form'!$DR132=\"\"),\"N\",IF(AND('Enrollment Form'!$C132=\"Enroll\",'Enrollment Form'!$B132=\"Subscriber\",'Enrollment Form'!$CX132=\"No\",'Enrollment Form'!$DR132=\"\"),\"N\",IF(AND('Enrollment Form'!$C132=\"Enroll\",'Enrollment Form'!$B132=\"Subscriber\",'Enrollment Form'!$CX132=\"Yes\"),\"-\",\"Y\")))))","v":""},{"$f":"IF($B125=\"N\",\"\",IF(AND('Enrollment Form'!$C132=\"ROC\",'Enrollment Form'!$DS132<>\"\"),\"Y\",IF(AND('Enrollment Form'!$C132=\"ROC\",'Enrollment Form'!$DS132=\"\"),\"N\",IF(AND('Enrollment Form'!$C132=\"Enroll\",'Enrollment Form'!$B132=\"Subscriber\",'Enrollment Form'!$CX132=\"No\",'Enrollment Form'!$DS132=\"\"),\"N\",IF(AND('Enrollment Form'!$C132=\"Enroll\",'Enrollment Form'!$B132=\"Subscriber\",'Enrollment Form'!$CX132=\"Yes\"),\"-\",\"Y\")))))","v":""},{"$f":"IF('Enrollment Form'!AH132=\"\",\"\",IF(ISERROR(SEARCH(\".\",'Enrollment Form'!AH132,SEARCH(\"@\",'Enrollment Form'!AH132))),\"N\",\"Y\"))","v":""},{"$f":"IF(OR($B125=\"N\",'Enrollment Form'!$G132=\"\"),\"\",IF('Enrollment Form'!$B132<>\"Subscriber\",\"-\",IF(COUNTIF('Enrollment Form'!$AV132:$AW132,\"Yes\")=2,\"N\",\"Y\")))","v":""},{"$f":"IF(OR('Enrollment Form'!$CJ132=\"\",'Enrollment Form'!$CJ132=\"No\"),\"-\",IF(AND('Enrollment Form'!$CJ132=\"Yes\",'Enrollment Form'!$CK132=\"\"),\"N\",\"Y\"))","v":"-"},{"$f":"IF(OR('Enrollment Form'!$CL132=\"\",'Enrollment Form'!$CL132=\"No\"),\"-\",IF(AND('Enrollment Form'!$CL132=\"Yes\",'Enrollment Form'!$CM132=\"\"),\"N\",\"Y\"))","v":"-"},{"$f":"IF(OR('Enrollment Form'!$CN132=\"\",'Enrollment Form'!$CN132=\"No\"),\"-\",IF(AND('Enrollment Form'!$CN132=\"Yes\",'Enrollment Form'!$CO132=\"\"),\"N\",\"Y\"))","v":"-"},{"$f":"IF(OR('Enrollment Form'!$CN132=\"\",'Enrollment Form'!$CN132=\"No\"),\"-\",IF(AND('Enrollment Form'!$CN132=\"Yes\",'Enrollment Form'!$CP132=\"\"),\"N\",\"Y\"))","v":"-"},{"$f":"IF('Enrollment Form'!B132<>\"Subscriber\",\"-\",IF(AND('Enrollment Form'!B132=\"Subscriber\",'Enrollment Form'!C132=\"Enroll\",'Enrollment Form'!AA132=\"\"),\"N\",\"Y\"))","v":"-"},{"$f":"IF(OR('Enrollment Form'!B132=\"Subscriber\",'Enrollment Form'!B132=\"\"),\"-\",IF('Enrollment Form'!BP132=\"\",\"N\",\"Y\"))","v":"-"},{"$f":"IF('Enrollment Form'!B132<>\"Subscriber\",\"-\",IF(AND('Enrollment Form'!B132=\"Subscriber\",'Enrollment Form'!G132=\"\"),\"N\",\"Y\"))","v":"-"},{"$f":"IF('Enrollment Form'!A132=\"\",\"\",IF('Enrollment Form'!B132=\"Subscriber\",\"-\",IF(AND('Enrollment Form'!B132<>\"Subscriber\",'Enrollment Form'!G132='Enrollment Form'!H132),\"N\",\"Y\")))","v":""},0]
[133,{"$f":"IF('Enrollment Form'!$A133<>\"\",\"Y\",\"N\")","v":"N"},{"$f":"IF(AND('Enrollment Form'!$B133=\"\",'Enrollment Form'!$C133<>\"\"),\"N\",IF($B126=\"N\",\"\",\"Y\"))","v":""},{"$f":"IF(OR($B126=\"N\",'Enrollment Form'!G133=\"\"),\"\",IF('Enrollment Form'!$B133<>\"Subscriber\",\"\",IF('Enrollment Form'!$G133='Enrollment Form'!$H133,\"Y\",\"N\")))","v":""},{"$f":"IF($B126=\"N\",\"\",IF(AND(COUNTIFS('Enrollment Form'!$H$11:$H$1000,'Enrollment Form'!$H133,'Enrollment Form'!$B$11:$B$1000,'Enrollment Form'!$B133)>1,'Enrollment Form'!$H133<>\"\"),\"N\",\"Y\"))","v":""},{"$f":"IF($B126=\"N\",\"\",IF(LEN('Enrollment Form'!$Y133)=0,\"\",IF(LEN('Enrollment Form'!$Y133)<>5,\"N\",\"Y\")))","v":""},{"$f":"IF($B126=\"N\",\"\",IF(LEN('Enrollment Form'!$AD133=0),\"\",IF(LEN('Enrollment Form'!$AD133)<>5,\"N\",\"Y\")))","v":""},{"$f":"IF($B126=\"N\",\"\",IF(LEN('Enrollment Form'!$BS133=0),\"\",IF(LEN('Enrollment Form'!$BS133)<>5,\"N\",\"Y\")))","v":""},{"$f":"IF($B126=\"N\",\"\",IF(LEN('Enrollment Form'!$AE133)=0,\"\",IF(LEN('Enrollment Form'!$AE133)<>10,\"N\",\"Y\")))","v":""},{"$f":"IF($B126=\"N\",\"\",IF(LEN('Enrollment Form'!$AF133)=0,\"\",IF(LEN('Enrollment Form'!$AF133)<>10,\"N\",\"Y\")))","v":""},{"$f":"IF('Enrollment Form'!$O133<>\"Graded\",\"-\",IF(AND('Enrollment Form'!$O133=\"Graded\",'Enrollment Form'!$AR133<>\"\"),\"Y\",\"N\"))","v":"-"},{"$f":"IF($B126=\"N\",\"\",IF(OR('Enrollment Form'!$B133<>\"Subscriber\",'Enrollment Form'!$C133=\"ROC\"),\"-\",IF(AND('Enrollment Form'!$B133=\"Subscriber\",'Enrollment Form'!$C133=\"Enroll\",'Enrollment Form'!$AJ133<>\"\"),\"Y\",\"N\")))","v":""},{"$f":"IF($B126=\"N\",\"\",IF(OR('Enrollment Form'!$B133<>\"Subscriber\",'Enrollment Form'!$C133=\"ROC\"),\"-\",IF(AND('Enrollment Form'!$B133=\"Subscriber\",'Enrollment Form'!$C133=\"Enroll\",'Enrollment Form'!$AK133<>\"\"),\"Y\",\"N\")))","v":""},{"$f":"IF($B126=\"N\",\"\",IF(OR('Enrollment Form'!$B133<>\"Subscriber\",'Enrollment Form'!$C133=\"ROC\"),\"-\",IF(AND('Enrollment Form'!$B133=\"Subscriber\",'Enrollment Form'!$C133=\"Enroll\",'Enrollment Form'!$AL133<>\"\"),\"Y\",\"N\")))","v":""},{"$f":"IF($B126=\"N\",\"\",IF(OR('Enrollment Form'!$B133<>\"Subscriber\",'Enrollment Form'!$C133=\"ROC\"),\"-\",IF(AND('Enrollment Form'!$B133=\"Subscriber\",'Enrollment Form'!$C133=\"Enroll\",'Enrollment Form'!$AP133<>\"\"),\"Y\",\"N\")))","v":""},{"$f":"IF($B126=\"N\",\"\",IF(OR('Enrollment Form'!$B133<>\"Subscriber\",'Enrollment Form'!$C133=\"ROC\"),\"-\",IF(AND('Enrollment Form'!$B133=\"Subscriber\",'Enrollment Form'!$C133=\"Enroll\",'Enrollment Form'!$AQ133<>\"\"),\"Y\",\"N\")))","v":""},{"$f":"IF($B126=\"N\",\"\",IF(OR('Enrollment Form'!$B133<>\"Subscriber\",'Enrollment Form'!$C133=\"ROC\"),\"-\",IF(AND('Enrollment Form'!$B133=\"Subscriber\",'Enrollment Form'!$C133=\"Enroll\",'Enrollment Form'!$AS133<>\"\"),\"Y\",\"N\")))","v":""},{"$f":"IF($B126=\"N\",\"\",IF($Q126=\"-\",\"-\",IF(AND($Q126=\"Y\",'Enrollment Form'!$AS133=\"No\"),\"-\",IF(AND($Q126=\"Y\",'Enrollment Form'!$AS133=\"Yes\",'Enrollment Form'!$AT133<>\"\"),\"Y\",\"N\"))))","v":""},{"$f":"IF($B126=\"N\",\"\",IF(OR('Enrollment Form'!$B133<>\"Subscriber\",'Enrollment Form'!$C133=\"ROC\"),\"-\",IF(AND('Enrollment Form'!$B133=\"Subscriber\",'Enrollment Form'!$C133=\"Enroll\",'Enrollment Form'!$CV133<>\"\"),\"Y\",\"N\")))","v":""},{"$f":"IF($B126=\"N\",\"\",IF($S126=\"-\",\"-\",IF(AND($S126=\"Y\",'Enrollment Form'!$CV133=\"No\"),\"-\",IF(AND($S126=\"Y\",'Enrollment Form'!$CV133=\"Yes\",'Enrollment Form'!$CW133<>\"\"),\"Y\",\"N\"))))","v":""},{"$f":"IF(OR('Enrollment Form'!$AY133=\"Yes\",'Enrollment Form'!$AY133=\"\"),\"-\",IF(OR(AND('Enrollment Form'!$AY133=\"No\",ISERROR(FIND(\"HMO\",VLOOKUP('Enrollment Form'!G133,'Enrollment Form'!H$11:J$1000,3,FALSE),1))=FALSE,COUNTA('Enrollment Form'!$AZ133:$BC133)=4),AND('Enrollment Form'!$AY133=\"No\",ISERROR(FIND(\"HMO\",VLOOKUP('Enrollment Form'!G133,'Enrollment Form'!H$11:J$1000,3,FALSE),1))=FALSE,COUNTA('Enrollment Form'!$BT133:$BW133)=4)),\"Y\",\"N\"))","v":"-"},{"$f":"IF($B126=\"N\",\"\",IF('Enrollment Form'!$B133=\"Subscriber\",\"-\",IF(COUNTA('Enrollment Form'!$BL133,'Enrollment Form'!$BN133)=2,\"Y\",\"N\")))","v":""},{"$f":"IF($B126=\"N\",\"\",IF(OR('Enrollment Form'!$AX133=\"\",'Enrollment Form'!$AX133=\"No\"),\"-\",IF(AND('Enrollment Form'!$AX133=\"Yes\",COUNTA('Enrollment Form'!$CR133)=1),\"Y\",\"N\")))","v":""},{"$f":"IF(OR('Enrollment Form'!$CR133=\"\",'Enrollment Form'!$CR133=\"No\"),\"-\",IF(COUNTA('Enrollment Form'!$CT133:$CU133)=2,\"Y\",\"N\"))","v":"-"},{"$f":"IF($B126=\"N\",\"\",IF(COUNTIF('Enrollment Form'!$DG133:$DP133,\"Other\")=COUNTA('Enrollment Form'!$DK133,'Enrollment Form'!$DH133,'Enrollment Form'!$DN133,'Enrollment Form'!$DQ133),\"Y\",\"N\"))","v":""},{"$f":"IF($B126=\"N\",\"\",IF(OR('Enrollment Form'!B133<>\"Subscriber\",'Enrollment Form'!C133=\"ROC\",COUNTIF('Enrollment Form'!AV133:AW133,\"Yes\")>=1),\"-\",IF(AND('Enrollment Form'!C133=\"Enroll\",COUNTIF('Enrollment Form'!AV133:AW133,\"No\")=2,'Enrollment Form'!AX133=\"\"),\"N\",\"Y\")))","v":""},{"$f":"IF(OR(B126=\"N\",'Enrollment Form'!B133<>\"Subscriber\",'Enrollment Form'!C133=\"ROC\",'Enrollment Form'!O133<>\"Multiple of Salary\"),\"-\",IF(COUNTA('Enrollment Form'!T133:U133)<2,\"N\",\"Y\"))","v":"-"},{"$f":"IF(B126=\"N\",\"\",IF(OR('Enrollment Form'!C133=\"ROC\",'Enrollment Form'!B133<>\"Subscriber\",'Enrollment Form'!O133=\"Waive\",'Enrollment Form'!O133=\"\"),\"-\",IF('Enrollment Form'!P133=\"\",\"N\",\"Y\")))","v":""},{"$f":"IF($B126=\"N\",\"\",IF(AND('Enrollment Form'!$C133=\"ROC\",'Enrollment Form'!$DR133<>\"\"),\"Y\",IF(AND('Enrollment Form'!$C133=\"ROC\",'Enrollment Form'!$DR133=\"\"),\"N\",IF(AND('Enrollment Form'!$C133=\"Enroll\",'Enrollment Form'!$B133=\"Subscriber\",'Enrollment Form'!$CX133=\"No\",'Enrollment Form'!$DR133=\"\"),\"N\",IF(AND('Enrollment Form'!$C133=\"Enroll\",'Enrollment Form'!$B133=\"Subscriber\",'Enrollment Form'!$CX133=\"Yes\"),\"-\",\"Y\")))))","v":""},{"$f":"IF($B126=\"N\",\"\",IF(AND('Enrollment Form'!$C133=\"ROC\",'Enrollment Form'!$DS133<>\"\"),\"Y\",IF(AND('Enrollment Form'!$C133=\"ROC\",'Enrollment Form'!$DS133=\"\"),\"N\",IF(AND('Enrollment Form'!$C133=\"Enroll\",'Enrollment Form'!$B133=\"Subscriber\",'Enrollment Form'!$CX133=\"No\",'Enrollment Form'!$DS133=\"\"),\"N\",IF(AND('Enrollment Form'!$C133=\"Enroll\",'Enrollment Form'!$B133=\"Subscriber\",'Enrollment Form'!$CX133=\"Yes\"),\"-\",\"Y\")))))","v":""},{"$f":"IF('Enrollment Form'!AH133=\"\",\"\",IF(ISERROR(SEARCH(\".\",'Enrollment Form'!AH133,SEARCH(\"@\",'Enrollment Form'!AH133))),\"N\",\"Y\"))","v":""},{"$f":"IF(OR($B126=\"N\",'Enrollment Form'!$G133=\"\"),\"\",IF('Enrollment Form'!$B133<>\"Subscriber\",\"-\",IF(COUNTIF('Enrollment Form'!$AV133:$AW133,\"Yes\")=2,\"N\",\"Y\")))","v":""},{"$f":"IF(OR('Enrollment Form'!$CJ133=\"\",'Enrollment Form'!$CJ133=\"No\"),\"-\",IF(AND('Enrollment Form'!$CJ133=\"Yes\",'Enrollment Form'!$CK133=\"\"),\"N\",\"Y\"))","v":"-"},{"$f":"IF(OR('Enrollment Form'!$CL133=\"\",'Enrollment Form'!$CL133=\"No\"),\"-\",IF(AND('Enrollment Form'!$CL133=\"Yes\",'Enrollment Form'!$CM133=\"\"),\"N\",\"Y\"))","v":"-"},{"$f":"IF(OR('Enrollment Form'!$CN133=\"\",'Enrollment Form'!$CN133=\"No\"),\"-\",IF(AND('Enrollment Form'!$CN133=\"Yes\",'Enrollment Form'!$CO133=\"\"),\"N\",\"Y\"))","v":"-"},{"$f":"IF(OR('Enrollment Form'!$CN133=\"\",'Enrollment Form'!$CN133=\"No\"),\"-\",IF(AND('Enrollment Form'!$CN133=\"Yes\",'Enrollment Form'!$CP133=\"\"),\"N\",\"Y\"))","v":"-"},{"$f":"IF('Enrollment Form'!B133<>\"Subscriber\",\"-\",IF(AND('Enrollment Form'!B133=\"Subscriber\",'Enrollment Form'!C133=\"Enroll\",'Enrollment Form'!AA133=\"\"),\"N\",\"Y\"))","v":"-"},{"$f":"IF(OR('Enrollment Form'!B133=\"Subscriber\",'Enrollment Form'!B133=\"\"),\"-\",IF('Enrollment Form'!BP133=\"\",\"N\",\"Y\"))","v":"-"},{"$f":"IF('Enrollment Form'!B133<>\"Subscriber\",\"-\",IF(AND('Enrollment Form'!B133=\"Subscriber\",'Enrollment Form'!G133=\"\"),\"N\",\"Y\"))","v":"-"},{"$f":"IF('Enrollment Form'!A133=\"\",\"\",IF('Enrollment Form'!B133=\"Subscriber\",\"-\",IF(AND('Enrollment Form'!B133<>\"Subscriber\",'Enrollment Form'!G133='Enrollment Form'!H133),\"N\",\"Y\")))","v":""},0]
[134,{"$f":"IF('Enrollment Form'!$A134<>\"\",\"Y\",\"N\")","v":"N"},{"$f":"IF(AND('Enrollment Form'!$B134=\"\",'Enrollment Form'!$C134<>\"\"),\"N\",IF($B127=\"N\",\"\",\"Y\"))","v":""},{"$f":"IF(OR($B127=\"N\",'Enrollment Form'!G134=\"\"),\"\",IF('Enrollment Form'!$B134<>\"Subscriber\",\"\",IF('Enrollment Form'!$G134='Enrollment Form'!$H134,\"Y\",\"N\")))","v":""},{"$f":"IF($B127=\"N\",\"\",IF(AND(COUNTIFS('Enrollment Form'!$H$11:$H$1000,'Enrollment Form'!$H134,'Enrollment Form'!$B$11:$B$1000,'Enrollment Form'!$B134)>1,'Enrollment Form'!$H134<>\"\"),\"N\",\"Y\"))","v":""},{"$f":"IF($B127=\"N\",\"\",IF(LEN('Enrollment Form'!$Y134)=0,\"\",IF(LEN('Enrollment Form'!$Y134)<>5,\"N\",\"Y\")))","v":""},{"$f":"IF($B127=\"N\",\"\",IF(LEN('Enrollment Form'!$AD134=0),\"\",IF(LEN('Enrollment Form'!$AD134)<>5,\"N\",\"Y\")))","v":""},{"$f":"IF($B127=\"N\",\"\",IF(LEN('Enrollment Form'!$BS134=0),\"\",IF(LEN('Enrollment Form'!$BS134)<>5,\"N\",\"Y\")))","v":""},{"$f":"IF($B127=\"N\",\"\",IF(LEN('Enrollment Form'!$AE134)=0,\"\",IF(LEN('Enrollment Form'!$AE134)<>10,\"N\",\"Y\")))","v":""},{"$f":"IF($B127=\"N\",\"\",IF(LEN('Enrollment Form'!$AF134)=0,\"\",IF(LEN('Enrollment Form'!$AF134)<>10,\"N\",\"Y\")))","v":""},{"$f":"IF('Enrollment Form'!$O134<>\"Graded\",\"-\",IF(AND('Enrollment Form'!$O134=\"Graded\",'Enrollment Form'!$AR134<>\"\"),\"Y\",\"N\"))","v":"-"},{"$f":"IF($B127=\"N\",\"\",IF(OR('Enrollment Form'!$B134<>\"Subscriber\",'Enrollment Form'!$C134=\"ROC\"),\"-\",IF(AND('Enrollment Form'!$B134=\"Subscriber\",'Enrollment Form'!$C134=\"Enroll\",'Enrollment Form'!$AJ134<>\"\"),\"Y\",\"N\")))","v":""},{"$f":"IF($B127=\"N\",\"\",IF(OR('Enrollment Form'!$B134<>\"Subscriber\",'Enrollment Form'!$C134=\"ROC\"),\"-\",IF(AND('Enrollment Form'!$B134=\"Subscriber\",'Enrollment Form'!$C134=\"Enroll\",'Enrollment Form'!$AK134<>\"\"),\"Y\",\"N\")))","v":""},{"$f":"IF($B127=\"N\",\"\",IF(OR('Enrollment Form'!$B134<>\"Subscriber\",'Enrollment Form'!$C134=\"ROC\"),\"-\",IF(AND('Enrollment Form'!$B134=\"Subscriber\",'Enrollment Form'!$C134=\"Enroll\",'Enrollment Form'!$AL134<>\"\"),\"Y\",\"N\")))","v":""},{"$f":"IF($B127=\"N\",\"\",IF(OR('Enrollment Form'!$B134<>\"Subscriber\",'Enrollment Form'!$C134=\"ROC\"),\"-\",IF(AND('Enrollment Form'!$B134=\"Subscriber\",'Enrollment Form'!$C134=\"Enroll\",'Enrollment Form'!$AP134<>\"\"),\"Y\",\"N\")))","v":""},{"$f":"IF($B127=\"N\",\"\",IF(OR('Enrollment Form'!$B134<>\"Subscriber\",'Enrollment Form'!$C134=\"ROC\"),\"-\",IF(AND('Enrollment Form'!$B134=\"Subscriber\",'Enrollment Form'!$C134=\"Enroll\",'Enrollment Form'!$AQ134<>\"\"),\"Y\",\"N\")))","v":""},{"$f":"IF($B127=\"N\",\"\",IF(OR('Enrollment Form'!$B134<>\"Subscriber\",'Enrollment Form'!$C134=\"ROC\"),\"-\",IF(AND('Enrollment Form'!$B134=\"Subscriber\",'Enrollment Form'!$C134=\"Enroll\",'Enrollment Form'!$AS134<>\"\"),\"Y\",\"N\")))","v":""},{"$f":"IF($B127=\"N\",\"\",IF($Q127=\"-\",\"-\",IF(AND($Q127=\"Y\",'Enrollment Form'!$AS134=\"No\"),\"-\",IF(AND($Q127=\"Y\",'Enrollment Form'!$AS134=\"Yes\",'Enrollment Form'!$AT134<>\"\"),\"Y\",\"N\"))))","v":""},{"$f":"IF($B127=\"N\",\"\",IF(OR('Enrollment Form'!$B134<>\"Subscriber\",'Enrollment Form'!$C134=\"ROC\"),\"-\",IF(AND('Enrollment Form'!$B134=\"Subscriber\",'Enrollment Form'!$C134=\"Enroll\",'Enrollment Form'!$CV134<>\"\"),\"Y\",\"N\")))","v":""},{"$f":"IF($B127=\"N\",\"\",IF($S127=\"-\",\"-\",IF(AND($S127=\"Y\",'Enrollment Form'!$CV134=\"No\"),\"-\",IF(AND($S127=\"Y\",'Enrollment Form'!$CV134=\"Yes\",'Enrollment Form'!$CW134<>\"\"),\"Y\",\"N\"))))","v":""},{"$f":"IF(OR('Enrollment Form'!$AY134=\"Yes\",'Enrollment Form'!$AY134=\"\"),\"-\",IF(OR(AND('Enrollment Form'!$AY134=\"No\",ISERROR(FIND(\"HMO\",VLOOKUP('Enrollment Form'!G134,'Enrollment Form'!H$11:J$1000,3,FALSE),1))=FALSE,COUNTA('Enrollment Form'!$AZ134:$BC134)=4),AND('Enrollment Form'!$AY134=\"No\",ISERROR(FIND(\"HMO\",VLOOKUP('Enrollment Form'!G134,'Enrollment Form'!H$11:J$1000,3,FALSE),1))=FALSE,COUNTA('Enrollment Form'!$BT134:$BW134)=4)),\"Y\",\"N\"))","v":"-"},{"$f":"IF($B127=\"N\",\"\",IF('Enrollment Form'!$B134=\"Subscriber\",\"-\",IF(COUNTA('Enrollment Form'!$BL134,'Enrollment Form'!$BN134)=2,\"Y\",\"N\")))","v":""},{"$f":"IF($B127=\"N\",\"\",IF(OR('Enrollment Form'!$AX134=\"\",'Enrollment Form'!$AX134=\"No\"),\"-\",IF(AND('Enrollment Form'!$AX134=\"Yes\",COUNTA('Enrollment Form'!$CR134)=1),\"Y\",\"N\")))","v":""},{"$f":"IF(OR('Enrollment Form'!$CR134=\"\",'Enrollment Form'!$CR134=\"No\"),\"-\",IF(COUNTA('Enrollment Form'!$CT134:$CU134)=2,\"Y\",\"N\"))","v":"-"},{"$f":"IF($B127=\"N\",\"\",IF(COUNTIF('Enrollment Form'!$DG134:$DP134,\"Other\")=COUNTA('Enrollment Form'!$DK134,'Enrollment Form'!$DH134,'Enrollment Form'!$DN134,'Enrollment Form'!$DQ134),\"Y\",\"N\"))","v":""},{"$f":"IF($B127=\"N\",\"\",IF(OR('Enrollment Form'!B134<>\"Subscriber\",'Enrollment Form'!C134=\"ROC\",COUNTIF('Enrollment Form'!AV134:AW134,\"Yes\")>=1),\"-\",IF(AND('Enrollment Form'!C134=\"Enroll\",COUNTIF('Enrollment Form'!AV134:AW134,\"No\")=2,'Enrollment Form'!AX134=\"\"),\"N\",\"Y\")))","v":""},{"$f":"IF(OR(B127=\"N\",'Enrollment Form'!B134<>\"Subscriber\",'Enrollment Form'!C134=\"ROC\",'Enrollment Form'!O134<>\"Multiple of Salary\"),\"-\",IF(COUNTA('Enrollment Form'!T134:U134)<2,\"N\",\"Y\"))","v":"-"},{"$f":"IF(B127=\"N\",\"\",IF(OR('Enrollment Form'!C134=\"ROC\",'Enrollment Form'!B134<>\"Subscriber\",'Enrollment Form'!O134=\"Waive\",'Enrollment Form'!O134=\"\"),\"-\",IF('Enrollment Form'!P134=\"\",\"N\",\"Y\")))","v":""},{"$f":"IF($B127=\"N\",\"\",IF(AND('Enrollment Form'!$C134=\"ROC\",'Enrollment Form'!$DR134<>\"\"),\"Y\",IF(AND('Enrollment Form'!$C134=\"ROC\",'Enrollment Form'!$DR134=\"\"),\"N\",IF(AND('Enrollment Form'!$C134=\"Enroll\",'Enrollment Form'!$B134=\"Subscriber\",'Enrollment Form'!$CX134=\"No\",'Enrollment Form'!$DR134=\"\"),\"N\",IF(AND('Enrollment Form'!$C134=\"Enroll\",'Enrollment Form'!$B134=\"Subscriber\",'Enrollment Form'!$CX134=\"Yes\"),\"-\",\"Y\")))))","v":""},{"$f":"IF($B127=\"N\",\"\",IF(AND('Enrollment Form'!$C134=\"ROC\",'Enrollment Form'!$DS134<>\"\"),\"Y\",IF(AND('Enrollment Form'!$C134=\"ROC\",'Enrollment Form'!$DS134=\"\"),\"N\",IF(AND('Enrollment Form'!$C134=\"Enroll\",'Enrollment Form'!$B134=\"Subscriber\",'Enrollment Form'!$CX134=\"No\",'Enrollment Form'!$DS134=\"\"),\"N\",IF(AND('Enrollment Form'!$C134=\"Enroll\",'Enrollment Form'!$B134=\"Subscriber\",'Enrollment Form'!$CX134=\"Yes\"),\"-\",\"Y\")))))","v":""},{"$f":"IF('Enrollment Form'!AH134=\"\",\"\",IF(ISERROR(SEARCH(\".\",'Enrollment Form'!AH134,SEARCH(\"@\",'Enrollment Form'!AH134))),\"N\",\"Y\"))","v":""},{"$f":"IF(OR($B127=\"N\",'Enrollment Form'!$G134=\"\"),\"\",IF('Enrollment Form'!$B134<>\"Subscriber\",\"-\",IF(COUNTIF('Enrollment Form'!$AV134:$AW134,\"Yes\")=2,\"N\",\"Y\")))","v":""},{"$f":"IF(OR('Enrollment Form'!$CJ134=\"\",'Enrollment Form'!$CJ134=\"No\"),\"-\",IF(AND('Enrollment Form'!$CJ134=\"Yes\",'Enrollment Form'!$CK134=\"\"),\"N\",\"Y\"))","v":"-"},{"$f":"IF(OR('Enrollment Form'!$CL134=\"\",'Enrollment Form'!$CL134=\"No\"),\"-\",IF(AND('Enrollment Form'!$CL134=\"Yes\",'Enrollment Form'!$CM134=\"\"),\"N\",\"Y\"))","v":"-"},{"$f":"IF(OR('Enrollment Form'!$CN134=\"\",'Enrollment Form'!$CN134=\"No\"),\"-\",IF(AND('Enrollment Form'!$CN134=\"Yes\",'Enrollment Form'!$CO134=\"\"),\"N\",\"Y\"))","v":"-"},{"$f":"IF(OR('Enrollment Form'!$CN134=\"\",'Enrollment Form'!$CN134=\"No\"),\"-\",IF(AND('Enrollment Form'!$CN134=\"Yes\",'Enrollment Form'!$CP134=\"\"),\"N\",\"Y\"))","v":"-"},{"$f":"IF('Enrollment Form'!B134<>\"Subscriber\",\"-\",IF(AND('Enrollment Form'!B134=\"Subscriber\",'Enrollment Form'!C134=\"Enroll\",'Enrollment Form'!AA134=\"\"),\"N\",\"Y\"))","v":"-"},{"$f":"IF(OR('Enrollment Form'!B134=\"Subscriber\",'Enrollment Form'!B134=\"\"),\"-\",IF('Enrollment Form'!BP134=\"\",\"N\",\"Y\"))","v":"-"},{"$f":"IF('Enrollment Form'!B134<>\"Subscriber\",\"-\",IF(AND('Enrollment Form'!B134=\"Subscriber\",'Enrollment Form'!G134=\"\"),\"N\",\"Y\"))","v":"-"},{"$f":"IF('Enrollment Form'!A134=\"\",\"\",IF('Enrollment Form'!B134=\"Subscriber\",\"-\",IF(AND('Enrollment Form'!B134<>\"Subscriber\",'Enrollment Form'!G134='Enrollment Form'!H134),\"N\",\"Y\")))","v":""},0]
[135,{"$f":"IF('Enrollment Form'!$A135<>\"\",\"Y\",\"N\")","v":"N"},{"$f":"IF(AND('Enrollment Form'!$B135=\"\",'Enrollment Form'!$C135<>\"\"),\"N\",IF($B128=\"N\",\"\",\"Y\"))","v":""},{"$f":"IF(OR($B128=\"N\",'Enrollment Form'!G135=\"\"),\"\",IF('Enrollment Form'!$B135<>\"Subscriber\",\"\",IF('Enrollment Form'!$G135='Enrollment Form'!$H135,\"Y\",\"N\")))","v":""},{"$f":"IF($B128=\"N\",\"\",IF(AND(COUNTIFS('Enrollment Form'!$H$11:$H$1000,'Enrollment Form'!$H135,'Enrollment Form'!$B$11:$B$1000,'Enrollment Form'!$B135)>1,'Enrollment Form'!$H135<>\"\"),\"N\",\"Y\"))","v":""},{"$f":"IF($B128=\"N\",\"\",IF(LEN('Enrollment Form'!$Y135)=0,\"\",IF(LEN('Enrollment Form'!$Y135)<>5,\"N\",\"Y\")))","v":""},{"$f":"IF($B128=\"N\",\"\",IF(LEN('Enrollment Form'!$AD135=0),\"\",IF(LEN('Enrollment Form'!$AD135)<>5,\"N\",\"Y\")))","v":""},{"$f":"IF($B128=\"N\",\"\",IF(LEN('Enrollment Form'!$BS135=0),\"\",IF(LEN('Enrollment Form'!$BS135)<>5,\"N\",\"Y\")))","v":""},{"$f":"IF($B128=\"N\",\"\",IF(LEN('Enrollment Form'!$AE135)=0,\"\",IF(LEN('Enrollment Form'!$AE135)<>10,\"N\",\"Y\")))","v":""},{"$f":"IF($B128=\"N\",\"\",IF(LEN('Enrollment Form'!$AF135)=0,\"\",IF(LEN('Enrollment Form'!$AF135)<>10,\"N\",\"Y\")))","v":""},{"$f":"IF('Enrollment Form'!$O135<>\"Graded\",\"-\",IF(AND('Enrollment Form'!$O135=\"Graded\",'Enrollment Form'!$AR135<>\"\"),\"Y\",\"N\"))","v":"-"},{"$f":"IF($B128=\"N\",\"\",IF(OR('Enrollment Form'!$B135<>\"Subscriber\",'Enrollment Form'!$C135=\"ROC\"),\"-\",IF(AND('Enrollment Form'!$B135=\"Subscriber\",'Enrollment Form'!$C135=\"Enroll\",'Enrollment Form'!$AJ135<>\"\"),\"Y\",\"N\")))","v":""},{"$f":"IF($B128=\"N\",\"\",IF(OR('Enrollment Form'!$B135<>\"Subscriber\",'Enrollment Form'!$C135=\"ROC\"),\"-\",IF(AND('Enrollment Form'!$B135=\"Subscriber\",'Enrollment Form'!$C135=\"Enroll\",'Enrollment Form'!$AK135<>\"\"),\"Y\",\"N\")))","v":""},{"$f":"IF($B128=\"N\",\"\",IF(OR('Enrollment Form'!$B135<>\"Subscriber\",'Enrollment Form'!$C135=\"ROC\"),\"-\",IF(AND('Enrollment Form'!$B135=\"Subscriber\",'Enrollment Form'!$C135=\"Enroll\",'Enrollment Form'!$AL135<>\"\"),\"Y\",\"N\")))","v":""},{"$f":"IF($B128=\"N\",\"\",IF(OR('Enrollment Form'!$B135<>\"Subscriber\",'Enrollment Form'!$C135=\"ROC\"),\"-\",IF(AND('Enrollment Form'!$B135=\"Subscriber\",'Enrollment Form'!$C135=\"Enroll\",'Enrollment Form'!$AP135<>\"\"),\"Y\",\"N\")))","v":""},{"$f":"IF($B128=\"N\",\"\",IF(OR('Enrollment Form'!$B135<>\"Subscriber\",'Enrollment Form'!$C135=\"ROC\"),\"-\",IF(AND('Enrollment Form'!$B135=\"Subscriber\",'Enrollment Form'!$C135=\"Enroll\",'Enrollment Form'!$AQ135<>\"\"),\"Y\",\"N\")))","v":""},{"$f":"IF($B128=\"N\",\"\",IF(OR('Enrollment Form'!$B135<>\"Subscriber\",'Enrollment Form'!$C135=\"ROC\"),\"-\",IF(AND('Enrollment Form'!$B135=\"Subscriber\",'Enrollment Form'!$C135=\"Enroll\",'Enrollment Form'!$AS135<>\"\"),\"Y\",\"N\")))","v":""},{"$f":"IF($B128=\"N\",\"\",IF($Q128=\"-\",\"-\",IF(AND($Q128=\"Y\",'Enrollment Form'!$AS135=\"No\"),\"-\",IF(AND($Q128=\"Y\",'Enrollment Form'!$AS135=\"Yes\",'Enrollment Form'!$AT135<>\"\"),\"Y\",\"N\"))))","v":""},{"$f":"IF($B128=\"N\",\"\",IF(OR('Enrollment Form'!$B135<>\"Subscriber\",'Enrollment Form'!$C135=\"ROC\"),\"-\",IF(AND('Enrollment Form'!$B135=\"Subscriber\",'Enrollment Form'!$C135=\"Enroll\",'Enrollment Form'!$CV135<>\"\"),\"Y\",\"N\")))","v":""},{"$f":"IF($B128=\"N\",\"\",IF($S128=\"-\",\"-\",IF(AND($S128=\"Y\",'Enrollment Form'!$CV135=\"No\"),\"-\",IF(AND($S128=\"Y\",'Enrollment Form'!$CV135=\"Yes\",'Enrollment Form'!$CW135<>\"\"),\"Y\",\"N\"))))","v":""},{"$f":"IF(OR('Enrollment Form'!$AY135=\"Yes\",'Enrollment Form'!$AY135=\"\"),\"-\",IF(OR(AND('Enrollment Form'!$AY135=\"No\",ISERROR(FIND(\"HMO\",VLOOKUP('Enrollment Form'!G135,'Enrollment Form'!H$11:J$1000,3,FALSE),1))=FALSE,COUNTA('Enrollment Form'!$AZ135:$BC135)=4),AND('Enrollment Form'!$AY135=\"No\",ISERROR(FIND(\"HMO\",VLOOKUP('Enrollment Form'!G135,'Enrollment Form'!H$11:J$1000,3,FALSE),1))=FALSE,COUNTA('Enrollment Form'!$BT135:$BW135)=4)),\"Y\",\"N\"))","v":"-"},{"$f":"IF($B128=\"N\",\"\",IF('Enrollment Form'!$B135=\"Subscriber\",\"-\",IF(COUNTA('Enrollment Form'!$BL135,'Enrollment Form'!$BN135)=2,\"Y\",\"N\")))","v":""},{"$f":"IF($B128=\"N\",\"\",IF(OR('Enrollment Form'!$AX135=\"\",'Enrollment Form'!$AX135=\"No\"),\"-\",IF(AND('Enrollment Form'!$AX135=\"Yes\",COUNTA('Enrollment Form'!$CR135)=1),\"Y\",\"N\")))","v":""},{"$f":"IF(OR('Enrollment Form'!$CR135=\"\",'Enrollment Form'!$CR135=\"No\"),\"-\",IF(COUNTA('Enrollment Form'!$CT135:$CU135)=2,\"Y\",\"N\"))","v":"-"},{"$f":"IF($B128=\"N\",\"\",IF(COUNTIF('Enrollment Form'!$DG135:$DP135,\"Other\")=COUNTA('Enrollment Form'!$DK135,'Enrollment Form'!$DH135,'Enrollment Form'!$DN135,'Enrollment Form'!$DQ135),\"Y\",\"N\"))","v":""},{"$f":"IF($B128=\"N\",\"\",IF(OR('Enrollment Form'!B135<>\"Subscriber\",'Enrollment Form'!C135=\"ROC\",COUNTIF('Enrollment Form'!AV135:AW135,\"Yes\")>=1),\"-\",IF(AND('Enrollment Form'!C135=\"Enroll\",COUNTIF('Enrollment Form'!AV135:AW135,\"No\")=2,'Enrollment Form'!AX135=\"\"),\"N\",\"Y\")))","v":""},{"$f":"IF(OR(B128=\"N\",'Enrollment Form'!B135<>\"Subscriber\",'Enrollment Form'!C135=\"ROC\",'Enrollment Form'!O135<>\"Multiple of Salary\"),\"-\",IF(COUNTA('Enrollment Form'!T135:U135)<2,\"N\",\"Y\"))","v":"-"},{"$f":"IF(B128=\"N\",\"\",IF(OR('Enrollment Form'!C135=\"ROC\",'Enrollment Form'!B135<>\"Subscriber\",'Enrollment Form'!O135=\"Waive\",'Enrollment Form'!O135=\"\"),\"-\",IF('Enrollment Form'!P135=\"\",\"N\",\"Y\")))","v":""},{"$f":"IF($B128=\"N\",\"\",IF(AND('Enrollment Form'!$C135=\"ROC\",'Enrollment Form'!$DR135<>\"\"),\"Y\",IF(AND('Enrollment Form'!$C135=\"ROC\",'Enrollment Form'!$DR135=\"\"),\"N\",IF(AND('Enrollment Form'!$C135=\"Enroll\",'Enrollment Form'!$B135=\"Subscriber\",'Enrollment Form'!$CX135=\"No\",'Enrollment Form'!$DR135=\"\"),\"N\",IF(AND('Enrollment Form'!$C135=\"Enroll\",'Enrollment Form'!$B135=\"Subscriber\",'Enrollment Form'!$CX135=\"Yes\"),\"-\",\"Y\")))))","v":""},{"$f":"IF($B128=\"N\",\"\",IF(AND('Enrollment Form'!$C135=\"ROC\",'Enrollment Form'!$DS135<>\"\"),\"Y\",IF(AND('Enrollment Form'!$C135=\"ROC\",'Enrollment Form'!$DS135=\"\"),\"N\",IF(AND('Enrollment Form'!$C135=\"Enroll\",'Enrollment Form'!$B135=\"Subscriber\",'Enrollment Form'!$CX135=\"No\",'Enrollment Form'!$DS135=\"\"),\"N\",IF(AND('Enrollment Form'!$C135=\"Enroll\",'Enrollment Form'!$B135=\"Subscriber\",'Enrollment Form'!$CX135=\"Yes\"),\"-\",\"Y\")))))","v":""},{"$f":"IF('Enrollment Form'!AH135=\"\",\"\",IF(ISERROR(SEARCH(\".\",'Enrollment Form'!AH135,SEARCH(\"@\",'Enrollment Form'!AH135))),\"N\",\"Y\"))","v":""},{"$f":"IF(OR($B128=\"N\",'Enrollment Form'!$G135=\"\"),\"\",IF('Enrollment Form'!$B135<>\"Subscriber\",\"-\",IF(COUNTIF('Enrollment Form'!$AV135:$AW135,\"Yes\")=2,\"N\",\"Y\")))","v":""},{"$f":"IF(OR('Enrollment Form'!$CJ135=\"\",'Enrollment Form'!$CJ135=\"No\"),\"-\",IF(AND('Enrollment Form'!$CJ135=\"Yes\",'Enrollment Form'!$CK135=\"\"),\"N\",\"Y\"))","v":"-"},{"$f":"IF(OR('Enrollment Form'!$CL135=\"\",'Enrollment Form'!$CL135=\"No\"),\"-\",IF(AND('Enrollment Form'!$CL135=\"Yes\",'Enrollment Form'!$CM135=\"\"),\"N\",\"Y\"))","v":"-"},{"$f":"IF(OR('Enrollment Form'!$CN135=\"\",'Enrollment Form'!$CN135=\"No\"),\"-\",IF(AND('Enrollment Form'!$CN135=\"Yes\",'Enrollment Form'!$CO135=\"\"),\"N\",\"Y\"))","v":"-"},{"$f":"IF(OR('Enrollment Form'!$CN135=\"\",'Enrollment Form'!$CN135=\"No\"),\"-\",IF(AND('Enrollment Form'!$CN135=\"Yes\",'Enrollment Form'!$CP135=\"\"),\"N\",\"Y\"))","v":"-"},{"$f":"IF('Enrollment Form'!B135<>\"Subscriber\",\"-\",IF(AND('Enrollment Form'!B135=\"Subscriber\",'Enrollment Form'!C135=\"Enroll\",'Enrollment Form'!AA135=\"\"),\"N\",\"Y\"))","v":"-"},{"$f":"IF(OR('Enrollment Form'!B135=\"Subscriber\",'Enrollment Form'!B135=\"\"),\"-\",IF('Enrollment Form'!BP135=\"\",\"N\",\"Y\"))","v":"-"},{"$f":"IF('Enrollment Form'!B135<>\"Subscriber\",\"-\",IF(AND('Enrollment Form'!B135=\"Subscriber\",'Enrollment Form'!G135=\"\"),\"N\",\"Y\"))","v":"-"},{"$f":"IF('Enrollment Form'!A135=\"\",\"\",IF('Enrollment Form'!B135=\"Subscriber\",\"-\",IF(AND('Enrollment Form'!B135<>\"Subscriber\",'Enrollment Form'!G135='Enrollment Form'!H135),\"N\",\"Y\")))","v":""},0]
[136,{"$f":"IF('Enrollment Form'!$A136<>\"\",\"Y\",\"N\")","v":"N"},{"$f":"IF(AND('Enrollment Form'!$B136=\"\",'Enrollment Form'!$C136<>\"\"),\"N\",IF($B129=\"N\",\"\",\"Y\"))","v":""},{"$f":"IF(OR($B129=\"N\",'Enrollment Form'!G136=\"\"),\"\",IF('Enrollment Form'!$B136<>\"Subscriber\",\"\",IF('Enrollment Form'!$G136='Enrollment Form'!$H136,\"Y\",\"N\")))","v":""},{"$f":"IF($B129=\"N\",\"\",IF(AND(COUNTIFS('Enrollment Form'!$H$11:$H$1000,'Enrollment Form'!$H136,'Enrollment Form'!$B$11:$B$1000,'Enrollment Form'!$B136)>1,'Enrollment Form'!$H136<>\"\"),\"N\",\"Y\"))","v":""},{"$f":"IF($B129=\"N\",\"\",IF(LEN('Enrollment Form'!$Y136)=0,\"\",IF(LEN('Enrollment Form'!$Y136)<>5,\"N\",\"Y\")))","v":""},{"$f":"IF($B129=\"N\",\"\",IF(LEN('Enrollment Form'!$AD136=0),\"\",IF(LEN('Enrollment Form'!$AD136)<>5,\"N\",\"Y\")))","v":""},{"$f":"IF($B129=\"N\",\"\",IF(LEN('Enrollment Form'!$BS136=0),\"\",IF(LEN('Enrollment Form'!$BS136)<>5,\"N\",\"Y\")))","v":""},{"$f":"IF($B129=\"N\",\"\",IF(LEN('Enrollment Form'!$AE136)=0,\"\",IF(LEN('Enrollment Form'!$AE136)<>10,\"N\",\"Y\")))","v":""},{"$f":"IF($B129=\"N\",\"\",IF(LEN('Enrollment Form'!$AF136)=0,\"\",IF(LEN('Enrollment Form'!$AF136)<>10,\"N\",\"Y\")))","v":""},{"$f":"IF('Enrollment Form'!$O136<>\"Graded\",\"-\",IF(AND('Enrollment Form'!$O136=\"Graded\",'Enrollment Form'!$AR136<>\"\"),\"Y\",\"N\"))","v":"-"},{"$f":"IF($B129=\"N\",\"\",IF(OR('Enrollment Form'!$B136<>\"Subscriber\",'Enrollment Form'!$C136=\"ROC\"),\"-\",IF(AND('Enrollment Form'!$B136=\"Subscriber\",'Enrollment Form'!$C136=\"Enroll\",'Enrollment Form'!$AJ136<>\"\"),\"Y\",\"N\")))","v":""},{"$f":"IF($B129=\"N\",\"\",IF(OR('Enrollment Form'!$B136<>\"Subscriber\",'Enrollment Form'!$C136=\"ROC\"),\"-\",IF(AND('Enrollment Form'!$B136=\"Subscriber\",'Enrollment Form'!$C136=\"Enroll\",'Enrollment Form'!$AK136<>\"\"),\"Y\",\"N\")))","v":""},{"$f":"IF($B129=\"N\",\"\",IF(OR('Enrollment Form'!$B136<>\"Subscriber\",'Enrollment Form'!$C136=\"ROC\"),\"-\",IF(AND('Enrollment Form'!$B136=\"Subscriber\",'Enrollment Form'!$C136=\"Enroll\",'Enrollment Form'!$AL136<>\"\"),\"Y\",\"N\")))","v":""},{"$f":"IF($B129=\"N\",\"\",IF(OR('Enrollment Form'!$B136<>\"Subscriber\",'Enrollment Form'!$C136=\"ROC\"),\"-\",IF(AND('Enrollment Form'!$B136=\"Subscriber\",'Enrollment Form'!$C136=\"Enroll\",'Enrollment Form'!$AP136<>\"\"),\"Y\",\"N\")))","v":""},{"$f":"IF($B129=\"N\",\"\",IF(OR('Enrollment Form'!$B136<>\"Subscriber\",'Enrollment Form'!$C136=\"ROC\"),\"-\",IF(AND('Enrollment Form'!$B136=\"Subscriber\",'Enrollment Form'!$C136=\"Enroll\",'Enrollment Form'!$AQ136<>\"\"),\"Y\",\"N\")))","v":""},{"$f":"IF($B129=\"N\",\"\",IF(OR('Enrollment Form'!$B136<>\"Subscriber\",'Enrollment Form'!$C136=\"ROC\"),\"-\",IF(AND('Enrollment Form'!$B136=\"Subscriber\",'Enrollment Form'!$C136=\"Enroll\",'Enrollment Form'!$AS136<>\"\"),\"Y\",\"N\")))","v":""},{"$f":"IF($B129=\"N\",\"\",IF($Q129=\"-\",\"-\",IF(AND($Q129=\"Y\",'Enrollment Form'!$AS136=\"No\"),\"-\",IF(AND($Q129=\"Y\",'Enrollment Form'!$AS136=\"Yes\",'Enrollment Form'!$AT136<>\"\"),\"Y\",\"N\"))))","v":""},{"$f":"IF($B129=\"N\",\"\",IF(OR('Enrollment Form'!$B136<>\"Subscriber\",'Enrollment Form'!$C136=\"ROC\"),\"-\",IF(AND('Enrollment Form'!$B136=\"Subscriber\",'Enrollment Form'!$C136=\"Enroll\",'Enrollment Form'!$CV136<>\"\"),\"Y\",\"N\")))","v":""},{"$f":"IF($B129=\"N\",\"\",IF($S129=\"-\",\"-\",IF(AND($S129=\"Y\",'Enrollment Form'!$CV136=\"No\"),\"-\",IF(AND($S129=\"Y\",'Enrollment Form'!$CV136=\"Yes\",'Enrollment Form'!$CW136<>\"\"),\"Y\",\"N\"))))","v":""},{"$f":"IF(OR('Enrollment Form'!$AY136=\"Yes\",'Enrollment Form'!$AY136=\"\"),\"-\",IF(OR(AND('Enrollment Form'!$AY136=\"No\",ISERROR(FIND(\"HMO\",VLOOKUP('Enrollment Form'!G136,'Enrollment Form'!H$11:J$1000,3,FALSE),1))=FALSE,COUNTA('Enrollment Form'!$AZ136:$BC136)=4),AND('Enrollment Form'!$AY136=\"No\",ISERROR(FIND(\"HMO\",VLOOKUP('Enrollment Form'!G136,'Enrollment Form'!H$11:J$1000,3,FALSE),1))=FALSE,COUNTA('Enrollment Form'!$BT136:$BW136)=4)),\"Y\",\"N\"))","v":"-"},{"$f":"IF($B129=\"N\",\"\",IF('Enrollment Form'!$B136=\"Subscriber\",\"-\",IF(COUNTA('Enrollment Form'!$BL136,'Enrollment Form'!$BN136)=2,\"Y\",\"N\")))","v":""},{"$f":"IF($B129=\"N\",\"\",IF(OR('Enrollment Form'!$AX136=\"\",'Enrollment Form'!$AX136=\"No\"),\"-\",IF(AND('Enrollment Form'!$AX136=\"Yes\",COUNTA('Enrollment Form'!$CR136)=1),\"Y\",\"N\")))","v":""},{"$f":"IF(OR('Enrollment Form'!$CR136=\"\",'Enrollment Form'!$CR136=\"No\"),\"-\",IF(COUNTA('Enrollment Form'!$CT136:$CU136)=2,\"Y\",\"N\"))","v":"-"},{"$f":"IF($B129=\"N\",\"\",IF(COUNTIF('Enrollment Form'!$DG136:$DP136,\"Other\")=COUNTA('Enrollment Form'!$DK136,'Enrollment Form'!$DH136,'Enrollment Form'!$DN136,'Enrollment Form'!$DQ136),\"Y\",\"N\"))","v":""},{"$f":"IF($B129=\"N\",\"\",IF(OR('Enrollment Form'!B136<>\"Subscriber\",'Enrollment Form'!C136=\"ROC\",COUNTIF('Enrollment Form'!AV136:AW136,\"Yes\")>=1),\"-\",IF(AND('Enrollment Form'!C136=\"Enroll\",COUNTIF('Enrollment Form'!AV136:AW136,\"No\")=2,'Enrollment Form'!AX136=\"\"),\"N\",\"Y\")))","v":""},{"$f":"IF(OR(B129=\"N\",'Enrollment Form'!B136<>\"Subscriber\",'Enrollment Form'!C136=\"ROC\",'Enrollment Form'!O136<>\"Multiple of Salary\"),\"-\",IF(COUNTA('Enrollment Form'!T136:U136)<2,\"N\",\"Y\"))","v":"-"},{"$f":"IF(B129=\"N\",\"\",IF(OR('Enrollment Form'!C136=\"ROC\",'Enrollment Form'!B136<>\"Subscriber\",'Enrollment Form'!O136=\"Waive\",'Enrollment Form'!O136=\"\"),\"-\",IF('Enrollment Form'!P136=\"\",\"N\",\"Y\")))","v":""},{"$f":"IF($B129=\"N\",\"\",IF(AND('Enrollment Form'!$C136=\"ROC\",'Enrollment Form'!$DR136<>\"\"),\"Y\",IF(AND('Enrollment Form'!$C136=\"ROC\",'Enrollment Form'!$DR136=\"\"),\"N\",IF(AND('Enrollment Form'!$C136=\"Enroll\",'Enrollment Form'!$B136=\"Subscriber\",'Enrollment Form'!$CX136=\"No\",'Enrollment Form'!$DR136=\"\"),\"N\",IF(AND('Enrollment Form'!$C136=\"Enroll\",'Enrollment Form'!$B136=\"Subscriber\",'Enrollment Form'!$CX136=\"Yes\"),\"-\",\"Y\")))))","v":""},{"$f":"IF($B129=\"N\",\"\",IF(AND('Enrollment Form'!$C136=\"ROC\",'Enrollment Form'!$DS136<>\"\"),\"Y\",IF(AND('Enrollment Form'!$C136=\"ROC\",'Enrollment Form'!$DS136=\"\"),\"N\",IF(AND('Enrollment Form'!$C136=\"Enroll\",'Enrollment Form'!$B136=\"Subscriber\",'Enrollment Form'!$CX136=\"No\",'Enrollment Form'!$DS136=\"\"),\"N\",IF(AND('Enrollment Form'!$C136=\"Enroll\",'Enrollment Form'!$B136=\"Subscriber\",'Enrollment Form'!$CX136=\"Yes\"),\"-\",\"Y\")))))","v":""},{"$f":"IF('Enrollment Form'!AH136=\"\",\"\",IF(ISERROR(SEARCH(\".\",'Enrollment Form'!AH136,SEARCH(\"@\",'Enrollment Form'!AH136))),\"N\",\"Y\"))","v":""},{"$f":"IF(OR($B129=\"N\",'Enrollment Form'!$G136=\"\"),\"\",IF('Enrollment Form'!$B136<>\"Subscriber\",\"-\",IF(COUNTIF('Enrollment Form'!$AV136:$AW136,\"Yes\")=2,\"N\",\"Y\")))","v":""},{"$f":"IF(OR('Enrollment Form'!$CJ136=\"\",'Enrollment Form'!$CJ136=\"No\"),\"-\",IF(AND('Enrollment Form'!$CJ136=\"Yes\",'Enrollment Form'!$CK136=\"\"),\"N\",\"Y\"))","v":"-"},{"$f":"IF(OR('Enrollment Form'!$CL136=\"\",'Enrollment Form'!$CL136=\"No\"),\"-\",IF(AND('Enrollment Form'!$CL136=\"Yes\",'Enrollment Form'!$CM136=\"\"),\"N\",\"Y\"))","v":"-"},{"$f":"IF(OR('Enrollment Form'!$CN136=\"\",'Enrollment Form'!$CN136=\"No\"),\"-\",IF(AND('Enrollment Form'!$CN136=\"Yes\",'Enrollment Form'!$CO136=\"\"),\"N\",\"Y\"))","v":"-"},{"$f":"IF(OR('Enrollment Form'!$CN136=\"\",'Enrollment Form'!$CN136=\"No\"),\"-\",IF(AND('Enrollment Form'!$CN136=\"Yes\",'Enrollment Form'!$CP136=\"\"),\"N\",\"Y\"))","v":"-"},{"$f":"IF('Enrollment Form'!B136<>\"Subscriber\",\"-\",IF(AND('Enrollment Form'!B136=\"Subscriber\",'Enrollment Form'!C136=\"Enroll\",'Enrollment Form'!AA136=\"\"),\"N\",\"Y\"))","v":"-"},{"$f":"IF(OR('Enrollment Form'!B136=\"Subscriber\",'Enrollment Form'!B136=\"\"),\"-\",IF('Enrollment Form'!BP136=\"\",\"N\",\"Y\"))","v":"-"},{"$f":"IF('Enrollment Form'!B136<>\"Subscriber\",\"-\",IF(AND('Enrollment Form'!B136=\"Subscriber\",'Enrollment Form'!G136=\"\"),\"N\",\"Y\"))","v":"-"},{"$f":"IF('Enrollment Form'!A136=\"\",\"\",IF('Enrollment Form'!B136=\"Subscriber\",\"-\",IF(AND('Enrollment Form'!B136<>\"Subscriber\",'Enrollment Form'!G136='Enrollment Form'!H136),\"N\",\"Y\")))","v":""},0]
[137,{"$f":"IF('Enrollment Form'!$A137<>\"\",\"Y\",\"N\")","v":"N"},{"$f":"IF(AND('Enrollment Form'!$B137=\"\",'Enrollment Form'!$C137<>\"\"),\"N\",IF($B130=\"N\",\"\",\"Y\"))","v":""},{"$f":"IF(OR($B130=\"N\",'Enrollment Form'!G137=\"\"),\"\",IF('Enrollment Form'!$B137<>\"Subscriber\",\"\",IF('Enrollment Form'!$G137='Enrollment Form'!$H137,\"Y\",\"N\")))","v":""},{"$f":"IF($B130=\"N\",\"\",IF(AND(COUNTIFS('Enrollment Form'!$H$11:$H$1000,'Enrollment Form'!$H137,'Enrollment Form'!$B$11:$B$1000,'Enrollment Form'!$B137)>1,'Enrollment Form'!$H137<>\"\"),\"N\",\"Y\"))","v":""},{"$f":"IF($B130=\"N\",\"\",IF(LEN('Enrollment Form'!$Y137)=0,\"\",IF(LEN('Enrollment Form'!$Y137)<>5,\"N\",\"Y\")))","v":""},{"$f":"IF($B130=\"N\",\"\",IF(LEN('Enrollment Form'!$AD137=0),\"\",IF(LEN('Enrollment Form'!$AD137)<>5,\"N\",\"Y\")))","v":""},{"$f":"IF($B130=\"N\",\"\",IF(LEN('Enrollment Form'!$BS137=0),\"\",IF(LEN('Enrollment Form'!$BS137)<>5,\"N\",\"Y\")))","v":""},{"$f":"IF($B130=\"N\",\"\",IF(LEN('Enrollment Form'!$AE137)=0,\"\",IF(LEN('Enrollment Form'!$AE137)<>10,\"N\",\"Y\")))","v":""},{"$f":"IF($B130=\"N\",\"\",IF(LEN('Enrollment Form'!$AF137)=0,\"\",IF(LEN('Enrollment Form'!$AF137)<>10,\"N\",\"Y\")))","v":""},{"$f":"IF('Enrollment Form'!$O137<>\"Graded\",\"-\",IF(AND('Enrollment Form'!$O137=\"Graded\",'Enrollment Form'!$AR137<>\"\"),\"Y\",\"N\"))","v":"-"},{"$f":"IF($B130=\"N\",\"\",IF(OR('Enrollment Form'!$B137<>\"Subscriber\",'Enrollment Form'!$C137=\"ROC\"),\"-\",IF(AND('Enrollment Form'!$B137=\"Subscriber\",'Enrollment Form'!$C137=\"Enroll\",'Enrollment Form'!$AJ137<>\"\"),\"Y\",\"N\")))","v":""},{"$f":"IF($B130=\"N\",\"\",IF(OR('Enrollment Form'!$B137<>\"Subscriber\",'Enrollment Form'!$C137=\"ROC\"),\"-\",IF(AND('Enrollment Form'!$B137=\"Subscriber\",'Enrollment Form'!$C137=\"Enroll\",'Enrollment Form'!$AK137<>\"\"),\"Y\",\"N\")))","v":""},{"$f":"IF($B130=\"N\",\"\",IF(OR('Enrollment Form'!$B137<>\"Subscriber\",'Enrollment Form'!$C137=\"ROC\"),\"-\",IF(AND('Enrollment Form'!$B137=\"Subscriber\",'Enrollment Form'!$C137=\"Enroll\",'Enrollment Form'!$AL137<>\"\"),\"Y\",\"N\")))","v":""},{"$f":"IF($B130=\"N\",\"\",IF(OR('Enrollment Form'!$B137<>\"Subscriber\",'Enrollment Form'!$C137=\"ROC\"),\"-\",IF(AND('Enrollment Form'!$B137=\"Subscriber\",'Enrollment Form'!$C137=\"Enroll\",'Enrollment Form'!$AP137<>\"\"),\"Y\",\"N\")))","v":""},{"$f":"IF($B130=\"N\",\"\",IF(OR('Enrollment Form'!$B137<>\"Subscriber\",'Enrollment Form'!$C137=\"ROC\"),\"-\",IF(AND('Enrollment Form'!$B137=\"Subscriber\",'Enrollment Form'!$C137=\"Enroll\",'Enrollment Form'!$AQ137<>\"\"),\"Y\",\"N\")))","v":""},{"$f":"IF($B130=\"N\",\"\",IF(OR('Enrollment Form'!$B137<>\"Subscriber\",'Enrollment Form'!$C137=\"ROC\"),\"-\",IF(AND('Enrollment Form'!$B137=\"Subscriber\",'Enrollment Form'!$C137=\"Enroll\",'Enrollment Form'!$AS137<>\"\"),\"Y\",\"N\")))","v":""},{"$f":"IF($B130=\"N\",\"\",IF($Q130=\"-\",\"-\",IF(AND($Q130=\"Y\",'Enrollment Form'!$AS137=\"No\"),\"-\",IF(AND($Q130=\"Y\",'Enrollment Form'!$AS137=\"Yes\",'Enrollment Form'!$AT137<>\"\"),\"Y\",\"N\"))))","v":""},{"$f":"IF($B130=\"N\",\"\",IF(OR('Enrollment Form'!$B137<>\"Subscriber\",'Enrollment Form'!$C137=\"ROC\"),\"-\",IF(AND('Enrollment Form'!$B137=\"Subscriber\",'Enrollment Form'!$C137=\"Enroll\",'Enrollment Form'!$CV137<>\"\"),\"Y\",\"N\")))","v":""},{"$f":"IF($B130=\"N\",\"\",IF($S130=\"-\",\"-\",IF(AND($S130=\"Y\",'Enrollment Form'!$CV137=\"No\"),\"-\",IF(AND($S130=\"Y\",'Enrollment Form'!$CV137=\"Yes\",'Enrollment Form'!$CW137<>\"\"),\"Y\",\"N\"))))","v":""},{"$f":"IF(OR('Enrollment Form'!$AY137=\"Yes\",'Enrollment Form'!$AY137=\"\"),\"-\",IF(OR(AND('Enrollment Form'!$AY137=\"No\",ISERROR(FIND(\"HMO\",VLOOKUP('Enrollment Form'!G137,'Enrollment Form'!H$11:J$1000,3,FALSE),1))=FALSE,COUNTA('Enrollment Form'!$AZ137:$BC137)=4),AND('Enrollment Form'!$AY137=\"No\",ISERROR(FIND(\"HMO\",VLOOKUP('Enrollment Form'!G137,'Enrollment Form'!H$11:J$1000,3,FALSE),1))=FALSE,COUNTA('Enrollment Form'!$BT137:$BW137)=4)),\"Y\",\"N\"))","v":"-"},{"$f":"IF($B130=\"N\",\"\",IF('Enrollment Form'!$B137=\"Subscriber\",\"-\",IF(COUNTA('Enrollment Form'!$BL137,'Enrollment Form'!$BN137)=2,\"Y\",\"N\")))","v":""},{"$f":"IF($B130=\"N\",\"\",IF(OR('Enrollment Form'!$AX137=\"\",'Enrollment Form'!$AX137=\"No\"),\"-\",IF(AND('Enrollment Form'!$AX137=\"Yes\",COUNTA('Enrollment Form'!$CR137)=1),\"Y\",\"N\")))","v":""},{"$f":"IF(OR('Enrollment Form'!$CR137=\"\",'Enrollment Form'!$CR137=\"No\"),\"-\",IF(COUNTA('Enrollment Form'!$CT137:$CU137)=2,\"Y\",\"N\"))","v":"-"},{"$f":"IF($B130=\"N\",\"\",IF(COUNTIF('Enrollment Form'!$DG137:$DP137,\"Other\")=COUNTA('Enrollment Form'!$DK137,'Enrollment Form'!$DH137,'Enrollment Form'!$DN137,'Enrollment Form'!$DQ137),\"Y\",\"N\"))","v":""},{"$f":"IF($B130=\"N\",\"\",IF(OR('Enrollment Form'!B137<>\"Subscriber\",'Enrollment Form'!C137=\"ROC\",COUNTIF('Enrollment Form'!AV137:AW137,\"Yes\")>=1),\"-\",IF(AND('Enrollment Form'!C137=\"Enroll\",COUNTIF('Enrollment Form'!AV137:AW137,\"No\")=2,'Enrollment Form'!AX137=\"\"),\"N\",\"Y\")))","v":""},{"$f":"IF(OR(B130=\"N\",'Enrollment Form'!B137<>\"Subscriber\",'Enrollment Form'!C137=\"ROC\",'Enrollment Form'!O137<>\"Multiple of Salary\"),\"-\",IF(COUNTA('Enrollment Form'!T137:U137)<2,\"N\",\"Y\"))","v":"-"},{"$f":"IF(B130=\"N\",\"\",IF(OR('Enrollment Form'!C137=\"ROC\",'Enrollment Form'!B137<>\"Subscriber\",'Enrollment Form'!O137=\"Waive\",'Enrollment Form'!O137=\"\"),\"-\",IF('Enrollment Form'!P137=\"\",\"N\",\"Y\")))","v":""},{"$f":"IF($B130=\"N\",\"\",IF(AND('Enrollment Form'!$C137=\"ROC\",'Enrollment Form'!$DR137<>\"\"),\"Y\",IF(AND('Enrollment Form'!$C137=\"ROC\",'Enrollment Form'!$DR137=\"\"),\"N\",IF(AND('Enrollment Form'!$C137=\"Enroll\",'Enrollment Form'!$B137=\"Subscriber\",'Enrollment Form'!$CX137=\"No\",'Enrollment Form'!$DR137=\"\"),\"N\",IF(AND('Enrollment Form'!$C137=\"Enroll\",'Enrollment Form'!$B137=\"Subscriber\",'Enrollment Form'!$CX137=\"Yes\"),\"-\",\"Y\")))))","v":""},{"$f":"IF($B130=\"N\",\"\",IF(AND('Enrollment Form'!$C137=\"ROC\",'Enrollment Form'!$DS137<>\"\"),\"Y\",IF(AND('Enrollment Form'!$C137=\"ROC\",'Enrollment Form'!$DS137=\"\"),\"N\",IF(AND('Enrollment Form'!$C137=\"Enroll\",'Enrollment Form'!$B137=\"Subscriber\",'Enrollment Form'!$CX137=\"No\",'Enrollment Form'!$DS137=\"\"),\"N\",IF(AND('Enrollment Form'!$C137=\"Enroll\",'Enrollment Form'!$B137=\"Subscriber\",'Enrollment Form'!$CX137=\"Yes\"),\"-\",\"Y\")))))","v":""},{"$f":"IF('Enrollment Form'!AH137=\"\",\"\",IF(ISERROR(SEARCH(\".\",'Enrollment Form'!AH137,SEARCH(\"@\",'Enrollment Form'!AH137))),\"N\",\"Y\"))","v":""},{"$f":"IF(OR($B130=\"N\",'Enrollment Form'!$G137=\"\"),\"\",IF('Enrollment Form'!$B137<>\"Subscriber\",\"-\",IF(COUNTIF('Enrollment Form'!$AV137:$AW137,\"Yes\")=2,\"N\",\"Y\")))","v":""},{"$f":"IF(OR('Enrollment Form'!$CJ137=\"\",'Enrollment Form'!$CJ137=\"No\"),\"-\",IF(AND('Enrollment Form'!$CJ137=\"Yes\",'Enrollment Form'!$CK137=\"\"),\"N\",\"Y\"))","v":"-"},{"$f":"IF(OR('Enrollment Form'!$CL137=\"\",'Enrollment Form'!$CL137=\"No\"),\"-\",IF(AND('Enrollment Form'!$CL137=\"Yes\",'Enrollment Form'!$CM137=\"\"),\"N\",\"Y\"))","v":"-"},{"$f":"IF(OR('Enrollment Form'!$CN137=\"\",'Enrollment Form'!$CN137=\"No\"),\"-\",IF(AND('Enrollment Form'!$CN137=\"Yes\",'Enrollment Form'!$CO137=\"\"),\"N\",\"Y\"))","v":"-"},{"$f":"IF(OR('Enrollment Form'!$CN137=\"\",'Enrollment Form'!$CN137=\"No\"),\"-\",IF(AND('Enrollment Form'!$CN137=\"Yes\",'Enrollment Form'!$CP137=\"\"),\"N\",\"Y\"))","v":"-"},{"$f":"IF('Enrollment Form'!B137<>\"Subscriber\",\"-\",IF(AND('Enrollment Form'!B137=\"Subscriber\",'Enrollment Form'!C137=\"Enroll\",'Enrollment Form'!AA137=\"\"),\"N\",\"Y\"))","v":"-"},{"$f":"IF(OR('Enrollment Form'!B137=\"Subscriber\",'Enrollment Form'!B137=\"\"),\"-\",IF('Enrollment Form'!BP137=\"\",\"N\",\"Y\"))","v":"-"},{"$f":"IF('Enrollment Form'!B137<>\"Subscriber\",\"-\",IF(AND('Enrollment Form'!B137=\"Subscriber\",'Enrollment Form'!G137=\"\"),\"N\",\"Y\"))","v":"-"},{"$f":"IF('Enrollment Form'!A137=\"\",\"\",IF('Enrollment Form'!B137=\"Subscriber\",\"-\",IF(AND('Enrollment Form'!B137<>\"Subscriber\",'Enrollment Form'!G137='Enrollment Form'!H137),\"N\",\"Y\")))","v":""},0]
[138,{"$f":"IF('Enrollment Form'!$A138<>\"\",\"Y\",\"N\")","v":"N"},{"$f":"IF(AND('Enrollment Form'!$B138=\"\",'Enrollment Form'!$C138<>\"\"),\"N\",IF($B131=\"N\",\"\",\"Y\"))","v":""},{"$f":"IF(OR($B131=\"N\",'Enrollment Form'!G138=\"\"),\"\",IF('Enrollment Form'!$B138<>\"Subscriber\",\"\",IF('Enrollment Form'!$G138='Enrollment Form'!$H138,\"Y\",\"N\")))","v":""},{"$f":"IF($B131=\"N\",\"\",IF(AND(COUNTIFS('Enrollment Form'!$H$11:$H$1000,'Enrollment Form'!$H138,'Enrollment Form'!$B$11:$B$1000,'Enrollment Form'!$B138)>1,'Enrollment Form'!$H138<>\"\"),\"N\",\"Y\"))","v":""},{"$f":"IF($B131=\"N\",\"\",IF(LEN('Enrollment Form'!$Y138)=0,\"\",IF(LEN('Enrollment Form'!$Y138)<>5,\"N\",\"Y\")))","v":""},{"$f":"IF($B131=\"N\",\"\",IF(LEN('Enrollment Form'!$AD138=0),\"\",IF(LEN('Enrollment Form'!$AD138)<>5,\"N\",\"Y\")))","v":""},{"$f":"IF($B131=\"N\",\"\",IF(LEN('Enrollment Form'!$BS138=0),\"\",IF(LEN('Enrollment Form'!$BS138)<>5,\"N\",\"Y\")))","v":""},{"$f":"IF($B131=\"N\",\"\",IF(LEN('Enrollment Form'!$AE138)=0,\"\",IF(LEN('Enrollment Form'!$AE138)<>10,\"N\",\"Y\")))","v":""},{"$f":"IF($B131=\"N\",\"\",IF(LEN('Enrollment Form'!$AF138)=0,\"\",IF(LEN('Enrollment Form'!$AF138)<>10,\"N\",\"Y\")))","v":""},{"$f":"IF('Enrollment Form'!$O138<>\"Graded\",\"-\",IF(AND('Enrollment Form'!$O138=\"Graded\",'Enrollment Form'!$AR138<>\"\"),\"Y\",\"N\"))","v":"-"},{"$f":"IF($B131=\"N\",\"\",IF(OR('Enrollment Form'!$B138<>\"Subscriber\",'Enrollment Form'!$C138=\"ROC\"),\"-\",IF(AND('Enrollment Form'!$B138=\"Subscriber\",'Enrollment Form'!$C138=\"Enroll\",'Enrollment Form'!$AJ138<>\"\"),\"Y\",\"N\")))","v":""},{"$f":"IF($B131=\"N\",\"\",IF(OR('Enrollment Form'!$B138<>\"Subscriber\",'Enrollment Form'!$C138=\"ROC\"),\"-\",IF(AND('Enrollment Form'!$B138=\"Subscriber\",'Enrollment Form'!$C138=\"Enroll\",'Enrollment Form'!$AK138<>\"\"),\"Y\",\"N\")))","v":""},{"$f":"IF($B131=\"N\",\"\",IF(OR('Enrollment Form'!$B138<>\"Subscriber\",'Enrollment Form'!$C138=\"ROC\"),\"-\",IF(AND('Enrollment Form'!$B138=\"Subscriber\",'Enrollment Form'!$C138=\"Enroll\",'Enrollment Form'!$AL138<>\"\"),\"Y\",\"N\")))","v":""},{"$f":"IF($B131=\"N\",\"\",IF(OR('Enrollment Form'!$B138<>\"Subscriber\",'Enrollment Form'!$C138=\"ROC\"),\"-\",IF(AND('Enrollment Form'!$B138=\"Subscriber\",'Enrollment Form'!$C138=\"Enroll\",'Enrollment Form'!$AP138<>\"\"),\"Y\",\"N\")))","v":""},{"$f":"IF($B131=\"N\",\"\",IF(OR('Enrollment Form'!$B138<>\"Subscriber\",'Enrollment Form'!$C138=\"ROC\"),\"-\",IF(AND('Enrollment Form'!$B138=\"Subscriber\",'Enrollment Form'!$C138=\"Enroll\",'Enrollment Form'!$AQ138<>\"\"),\"Y\",\"N\")))","v":""},{"$f":"IF($B131=\"N\",\"\",IF(OR('Enrollment Form'!$B138<>\"Subscriber\",'Enrollment Form'!$C138=\"ROC\"),\"-\",IF(AND('Enrollment Form'!$B138=\"Subscriber\",'Enrollment Form'!$C138=\"Enroll\",'Enrollment Form'!$AS138<>\"\"),\"Y\",\"N\")))","v":""},{"$f":"IF($B131=\"N\",\"\",IF($Q131=\"-\",\"-\",IF(AND($Q131=\"Y\",'Enrollment Form'!$AS138=\"No\"),\"-\",IF(AND($Q131=\"Y\",'Enrollment Form'!$AS138=\"Yes\",'Enrollment Form'!$AT138<>\"\"),\"Y\",\"N\"))))","v":""},{"$f":"IF($B131=\"N\",\"\",IF(OR('Enrollment Form'!$B138<>\"Subscriber\",'Enrollment Form'!$C138=\"ROC\"),\"-\",IF(AND('Enrollment Form'!$B138=\"Subscriber\",'Enrollment Form'!$C138=\"Enroll\",'Enrollment Form'!$CV138<>\"\"),\"Y\",\"N\")))","v":""},{"$f":"IF($B131=\"N\",\"\",IF($S131=\"-\",\"-\",IF(AND($S131=\"Y\",'Enrollment Form'!$CV138=\"No\"),\"-\",IF(AND($S131=\"Y\",'Enrollment Form'!$CV138=\"Yes\",'Enrollment Form'!$CW138<>\"\"),\"Y\",\"N\"))))","v":""},{"$f":"IF(OR('Enrollment Form'!$AY138=\"Yes\",'Enrollment Form'!$AY138=\"\"),\"-\",IF(OR(AND('Enrollment Form'!$AY138=\"No\",ISERROR(FIND(\"HMO\",VLOOKUP('Enrollment Form'!G138,'Enrollment Form'!H$11:J$1000,3,FALSE),1))=FALSE,COUNTA('Enrollment Form'!$AZ138:$BC138)=4),AND('Enrollment Form'!$AY138=\"No\",ISERROR(FIND(\"HMO\",VLOOKUP('Enrollment Form'!G138,'Enrollment Form'!H$11:J$1000,3,FALSE),1))=FALSE,COUNTA('Enrollment Form'!$BT138:$BW138)=4)),\"Y\",\"N\"))","v":"-"},{"$f":"IF($B131=\"N\",\"\",IF('Enrollment Form'!$B138=\"Subscriber\",\"-\",IF(COUNTA('Enrollment Form'!$BL138,'Enrollment Form'!$BN138)=2,\"Y\",\"N\")))","v":""},{"$f":"IF($B131=\"N\",\"\",IF(OR('Enrollment Form'!$AX138=\"\",'Enrollment Form'!$AX138=\"No\"),\"-\",IF(AND('Enrollment Form'!$AX138=\"Yes\",COUNTA('Enrollment Form'!$CR138)=1),\"Y\",\"N\")))","v":""},{"$f":"IF(OR('Enrollment Form'!$CR138=\"\",'Enrollment Form'!$CR138=\"No\"),\"-\",IF(COUNTA('Enrollment Form'!$CT138:$CU138)=2,\"Y\",\"N\"))","v":"-"},{"$f":"IF($B131=\"N\",\"\",IF(COUNTIF('Enrollment Form'!$DG138:$DP138,\"Other\")=COUNTA('Enrollment Form'!$DK138,'Enrollment Form'!$DH138,'Enrollment Form'!$DN138,'Enrollment Form'!$DQ138),\"Y\",\"N\"))","v":""},{"$f":"IF($B131=\"N\",\"\",IF(OR('Enrollment Form'!B138<>\"Subscriber\",'Enrollment Form'!C138=\"ROC\",COUNTIF('Enrollment Form'!AV138:AW138,\"Yes\")>=1),\"-\",IF(AND('Enrollment Form'!C138=\"Enroll\",COUNTIF('Enrollment Form'!AV138:AW138,\"No\")=2,'Enrollment Form'!AX138=\"\"),\"N\",\"Y\")))","v":""},{"$f":"IF(OR(B131=\"N\",'Enrollment Form'!B138<>\"Subscriber\",'Enrollment Form'!C138=\"ROC\",'Enrollment Form'!O138<>\"Multiple of Salary\"),\"-\",IF(COUNTA('Enrollment Form'!T138:U138)<2,\"N\",\"Y\"))","v":"-"},{"$f":"IF(B131=\"N\",\"\",IF(OR('Enrollment Form'!C138=\"ROC\",'Enrollment Form'!B138<>\"Subscriber\",'Enrollment Form'!O138=\"Waive\",'Enrollment Form'!O138=\"\"),\"-\",IF('Enrollment Form'!P138=\"\",\"N\",\"Y\")))","v":""},{"$f":"IF($B131=\"N\",\"\",IF(AND('Enrollment Form'!$C138=\"ROC\",'Enrollment Form'!$DR138<>\"\"),\"Y\",IF(AND('Enrollment Form'!$C138=\"ROC\",'Enrollment Form'!$DR138=\"\"),\"N\",IF(AND('Enrollment Form'!$C138=\"Enroll\",'Enrollment Form'!$B138=\"Subscriber\",'Enrollment Form'!$CX138=\"No\",'Enrollment Form'!$DR138=\"\"),\"N\",IF(AND('Enrollment Form'!$C138=\"Enroll\",'Enrollment Form'!$B138=\"Subscriber\",'Enrollment Form'!$CX138=\"Yes\"),\"-\",\"Y\")))))","v":""},{"$f":"IF($B131=\"N\",\"\",IF(AND('Enrollment Form'!$C138=\"ROC\",'Enrollment Form'!$DS138<>\"\"),\"Y\",IF(AND('Enrollment Form'!$C138=\"ROC\",'Enrollment Form'!$DS138=\"\"),\"N\",IF(AND('Enrollment Form'!$C138=\"Enroll\",'Enrollment Form'!$B138=\"Subscriber\",'Enrollment Form'!$CX138=\"No\",'Enrollment Form'!$DS138=\"\"),\"N\",IF(AND('Enrollment Form'!$C138=\"Enroll\",'Enrollment Form'!$B138=\"Subscriber\",'Enrollment Form'!$CX138=\"Yes\"),\"-\",\"Y\")))))","v":""},{"$f":"IF('Enrollment Form'!AH138=\"\",\"\",IF(ISERROR(SEARCH(\".\",'Enrollment Form'!AH138,SEARCH(\"@\",'Enrollment Form'!AH138))),\"N\",\"Y\"))","v":""},{"$f":"IF(OR($B131=\"N\",'Enrollment Form'!$G138=\"\"),\"\",IF('Enrollment Form'!$B138<>\"Subscriber\",\"-\",IF(COUNTIF('Enrollment Form'!$AV138:$AW138,\"Yes\")=2,\"N\",\"Y\")))","v":""},{"$f":"IF(OR('Enrollment Form'!$CJ138=\"\",'Enrollment Form'!$CJ138=\"No\"),\"-\",IF(AND('Enrollment Form'!$CJ138=\"Yes\",'Enrollment Form'!$CK138=\"\"),\"N\",\"Y\"))","v":"-"},{"$f":"IF(OR('Enrollment Form'!$CL138=\"\",'Enrollment Form'!$CL138=\"No\"),\"-\",IF(AND('Enrollment Form'!$CL138=\"Yes\",'Enrollment Form'!$CM138=\"\"),\"N\",\"Y\"))","v":"-"},{"$f":"IF(OR('Enrollment Form'!$CN138=\"\",'Enrollment Form'!$CN138=\"No\"),\"-\",IF(AND('Enrollment Form'!$CN138=\"Yes\",'Enrollment Form'!$CO138=\"\"),\"N\",\"Y\"))","v":"-"},{"$f":"IF(OR('Enrollment Form'!$CN138=\"\",'Enrollment Form'!$CN138=\"No\"),\"-\",IF(AND('Enrollment Form'!$CN138=\"Yes\",'Enrollment Form'!$CP138=\"\"),\"N\",\"Y\"))","v":"-"},{"$f":"IF('Enrollment Form'!B138<>\"Subscriber\",\"-\",IF(AND('Enrollment Form'!B138=\"Subscriber\",'Enrollment Form'!C138=\"Enroll\",'Enrollment Form'!AA138=\"\"),\"N\",\"Y\"))","v":"-"},{"$f":"IF(OR('Enrollment Form'!B138=\"Subscriber\",'Enrollment Form'!B138=\"\"),\"-\",IF('Enrollment Form'!BP138=\"\",\"N\",\"Y\"))","v":"-"},{"$f":"IF('Enrollment Form'!B138<>\"Subscriber\",\"-\",IF(AND('Enrollment Form'!B138=\"Subscriber\",'Enrollment Form'!G138=\"\"),\"N\",\"Y\"))","v":"-"},{"$f":"IF('Enrollment Form'!A138=\"\",\"\",IF('Enrollment Form'!B138=\"Subscriber\",\"-\",IF(AND('Enrollment Form'!B138<>\"Subscriber\",'Enrollment Form'!G138='Enrollment Form'!H138),\"N\",\"Y\")))","v":""},0]
[139,{"$f":"IF('Enrollment Form'!$A139<>\"\",\"Y\",\"N\")","v":"N"},{"$f":"IF(AND('Enrollment Form'!$B139=\"\",'Enrollment Form'!$C139<>\"\"),\"N\",IF($B132=\"N\",\"\",\"Y\"))","v":""},{"$f":"IF(OR($B132=\"N\",'Enrollment Form'!G139=\"\"),\"\",IF('Enrollment Form'!$B139<>\"Subscriber\",\"\",IF('Enrollment Form'!$G139='Enrollment Form'!$H139,\"Y\",\"N\")))","v":""},{"$f":"IF($B132=\"N\",\"\",IF(AND(COUNTIFS('Enrollment Form'!$H$11:$H$1000,'Enrollment Form'!$H139,'Enrollment Form'!$B$11:$B$1000,'Enrollment Form'!$B139)>1,'Enrollment Form'!$H139<>\"\"),\"N\",\"Y\"))","v":""},{"$f":"IF($B132=\"N\",\"\",IF(LEN('Enrollment Form'!$Y139)=0,\"\",IF(LEN('Enrollment Form'!$Y139)<>5,\"N\",\"Y\")))","v":""},{"$f":"IF($B132=\"N\",\"\",IF(LEN('Enrollment Form'!$AD139=0),\"\",IF(LEN('Enrollment Form'!$AD139)<>5,\"N\",\"Y\")))","v":""},{"$f":"IF($B132=\"N\",\"\",IF(LEN('Enrollment Form'!$BS139=0),\"\",IF(LEN('Enrollment Form'!$BS139)<>5,\"N\",\"Y\")))","v":""},{"$f":"IF($B132=\"N\",\"\",IF(LEN('Enrollment Form'!$AE139)=0,\"\",IF(LEN('Enrollment Form'!$AE139)<>10,\"N\",\"Y\")))","v":""},{"$f":"IF($B132=\"N\",\"\",IF(LEN('Enrollment Form'!$AF139)=0,\"\",IF(LEN('Enrollment Form'!$AF139)<>10,\"N\",\"Y\")))","v":""},{"$f":"IF('Enrollment Form'!$O139<>\"Graded\",\"-\",IF(AND('Enrollment Form'!$O139=\"Graded\",'Enrollment Form'!$AR139<>\"\"),\"Y\",\"N\"))","v":"-"},{"$f":"IF($B132=\"N\",\"\",IF(OR('Enrollment Form'!$B139<>\"Subscriber\",'Enrollment Form'!$C139=\"ROC\"),\"-\",IF(AND('Enrollment Form'!$B139=\"Subscriber\",'Enrollment Form'!$C139=\"Enroll\",'Enrollment Form'!$AJ139<>\"\"),\"Y\",\"N\")))","v":""},{"$f":"IF($B132=\"N\",\"\",IF(OR('Enrollment Form'!$B139<>\"Subscriber\",'Enrollment Form'!$C139=\"ROC\"),\"-\",IF(AND('Enrollment Form'!$B139=\"Subscriber\",'Enrollment Form'!$C139=\"Enroll\",'Enrollment Form'!$AK139<>\"\"),\"Y\",\"N\")))","v":""},{"$f":"IF($B132=\"N\",\"\",IF(OR('Enrollment Form'!$B139<>\"Subscriber\",'Enrollment Form'!$C139=\"ROC\"),\"-\",IF(AND('Enrollment Form'!$B139=\"Subscriber\",'Enrollment Form'!$C139=\"Enroll\",'Enrollment Form'!$AL139<>\"\"),\"Y\",\"N\")))","v":""},{"$f":"IF($B132=\"N\",\"\",IF(OR('Enrollment Form'!$B139<>\"Subscriber\",'Enrollment Form'!$C139=\"ROC\"),\"-\",IF(AND('Enrollment Form'!$B139=\"Subscriber\",'Enrollment Form'!$C139=\"Enroll\",'Enrollment Form'!$AP139<>\"\"),\"Y\",\"N\")))","v":""},{"$f":"IF($B132=\"N\",\"\",IF(OR('Enrollment Form'!$B139<>\"Subscriber\",'Enrollment Form'!$C139=\"ROC\"),\"-\",IF(AND('Enrollment Form'!$B139=\"Subscriber\",'Enrollment Form'!$C139=\"Enroll\",'Enrollment Form'!$AQ139<>\"\"),\"Y\",\"N\")))","v":""},{"$f":"IF($B132=\"N\",\"\",IF(OR('Enrollment Form'!$B139<>\"Subscriber\",'Enrollment Form'!$C139=\"ROC\"),\"-\",IF(AND('Enrollment Form'!$B139=\"Subscriber\",'Enrollment Form'!$C139=\"Enroll\",'Enrollment Form'!$AS139<>\"\"),\"Y\",\"N\")))","v":""},{"$f":"IF($B132=\"N\",\"\",IF($Q132=\"-\",\"-\",IF(AND($Q132=\"Y\",'Enrollment Form'!$AS139=\"No\"),\"-\",IF(AND($Q132=\"Y\",'Enrollment Form'!$AS139=\"Yes\",'Enrollment Form'!$AT139<>\"\"),\"Y\",\"N\"))))","v":""},{"$f":"IF($B132=\"N\",\"\",IF(OR('Enrollment Form'!$B139<>\"Subscriber\",'Enrollment Form'!$C139=\"ROC\"),\"-\",IF(AND('Enrollment Form'!$B139=\"Subscriber\",'Enrollment Form'!$C139=\"Enroll\",'Enrollment Form'!$CV139<>\"\"),\"Y\",\"N\")))","v":""},{"$f":"IF($B132=\"N\",\"\",IF($S132=\"-\",\"-\",IF(AND($S132=\"Y\",'Enrollment Form'!$CV139=\"No\"),\"-\",IF(AND($S132=\"Y\",'Enrollment Form'!$CV139=\"Yes\",'Enrollment Form'!$CW139<>\"\"),\"Y\",\"N\"))))","v":""},{"$f":"IF(OR('Enrollment Form'!$AY139=\"Yes\",'Enrollment Form'!$AY139=\"\"),\"-\",IF(OR(AND('Enrollment Form'!$AY139=\"No\",ISERROR(FIND(\"HMO\",VLOOKUP('Enrollment Form'!G139,'Enrollment Form'!H$11:J$1000,3,FALSE),1))=FALSE,COUNTA('Enrollment Form'!$AZ139:$BC139)=4),AND('Enrollment Form'!$AY139=\"No\",ISERROR(FIND(\"HMO\",VLOOKUP('Enrollment Form'!G139,'Enrollment Form'!H$11:J$1000,3,FALSE),1))=FALSE,COUNTA('Enrollment Form'!$BT139:$BW139)=4)),\"Y\",\"N\"))","v":"-"},{"$f":"IF($B132=\"N\",\"\",IF('Enrollment Form'!$B139=\"Subscriber\",\"-\",IF(COUNTA('Enrollment Form'!$BL139,'Enrollment Form'!$BN139)=2,\"Y\",\"N\")))","v":""},{"$f":"IF($B132=\"N\",\"\",IF(OR('Enrollment Form'!$AX139=\"\",'Enrollment Form'!$AX139=\"No\"),\"-\",IF(AND('Enrollment Form'!$AX139=\"Yes\",COUNTA('Enrollment Form'!$CR139)=1),\"Y\",\"N\")))","v":""},{"$f":"IF(OR('Enrollment Form'!$CR139=\"\",'Enrollment Form'!$CR139=\"No\"),\"-\",IF(COUNTA('Enrollment Form'!$CT139:$CU139)=2,\"Y\",\"N\"))","v":"-"},{"$f":"IF($B132=\"N\",\"\",IF(COUNTIF('Enrollment Form'!$DG139:$DP139,\"Other\")=COUNTA('Enrollment Form'!$DK139,'Enrollment Form'!$DH139,'Enrollment Form'!$DN139,'Enrollment Form'!$DQ139),\"Y\",\"N\"))","v":""},{"$f":"IF($B132=\"N\",\"\",IF(OR('Enrollment Form'!B139<>\"Subscriber\",'Enrollment Form'!C139=\"ROC\",COUNTIF('Enrollment Form'!AV139:AW139,\"Yes\")>=1),\"-\",IF(AND('Enrollment Form'!C139=\"Enroll\",COUNTIF('Enrollment Form'!AV139:AW139,\"No\")=2,'Enrollment Form'!AX139=\"\"),\"N\",\"Y\")))","v":""},{"$f":"IF(OR(B132=\"N\",'Enrollment Form'!B139<>\"Subscriber\",'Enrollment Form'!C139=\"ROC\",'Enrollment Form'!O139<>\"Multiple of Salary\"),\"-\",IF(COUNTA('Enrollment Form'!T139:U139)<2,\"N\",\"Y\"))","v":"-"},{"$f":"IF(B132=\"N\",\"\",IF(OR('Enrollment Form'!C139=\"ROC\",'Enrollment Form'!B139<>\"Subscriber\",'Enrollment Form'!O139=\"Waive\",'Enrollment Form'!O139=\"\"),\"-\",IF('Enrollment Form'!P139=\"\",\"N\",\"Y\")))","v":""},{"$f":"IF($B132=\"N\",\"\",IF(AND('Enrollment Form'!$C139=\"ROC\",'Enrollment Form'!$DR139<>\"\"),\"Y\",IF(AND('Enrollment Form'!$C139=\"ROC\",'Enrollment Form'!$DR139=\"\"),\"N\",IF(AND('Enrollment Form'!$C139=\"Enroll\",'Enrollment Form'!$B139=\"Subscriber\",'Enrollment Form'!$CX139=\"No\",'Enrollment Form'!$DR139=\"\"),\"N\",IF(AND('Enrollment Form'!$C139=\"Enroll\",'Enrollment Form'!$B139=\"Subscriber\",'Enrollment Form'!$CX139=\"Yes\"),\"-\",\"Y\")))))","v":""},{"$f":"IF($B132=\"N\",\"\",IF(AND('Enrollment Form'!$C139=\"ROC\",'Enrollment Form'!$DS139<>\"\"),\"Y\",IF(AND('Enrollment Form'!$C139=\"ROC\",'Enrollment Form'!$DS139=\"\"),\"N\",IF(AND('Enrollment Form'!$C139=\"Enroll\",'Enrollment Form'!$B139=\"Subscriber\",'Enrollment Form'!$CX139=\"No\",'Enrollment Form'!$DS139=\"\"),\"N\",IF(AND('Enrollment Form'!$C139=\"Enroll\",'Enrollment Form'!$B139=\"Subscriber\",'Enrollment Form'!$CX139=\"Yes\"),\"-\",\"Y\")))))","v":""},{"$f":"IF('Enrollment Form'!AH139=\"\",\"\",IF(ISERROR(SEARCH(\".\",'Enrollment Form'!AH139,SEARCH(\"@\",'Enrollment Form'!AH139))),\"N\",\"Y\"))","v":""},{"$f":"IF(OR($B132=\"N\",'Enrollment Form'!$G139=\"\"),\"\",IF('Enrollment Form'!$B139<>\"Subscriber\",\"-\",IF(COUNTIF('Enrollment Form'!$AV139:$AW139,\"Yes\")=2,\"N\",\"Y\")))","v":""},{"$f":"IF(OR('Enrollment Form'!$CJ139=\"\",'Enrollment Form'!$CJ139=\"No\"),\"-\",IF(AND('Enrollment Form'!$CJ139=\"Yes\",'Enrollment Form'!$CK139=\"\"),\"N\",\"Y\"))","v":"-"},{"$f":"IF(OR('Enrollment Form'!$CL139=\"\",'Enrollment Form'!$CL139=\"No\"),\"-\",IF(AND('Enrollment Form'!$CL139=\"Yes\",'Enrollment Form'!$CM139=\"\"),\"N\",\"Y\"))","v":"-"},{"$f":"IF(OR('Enrollment Form'!$CN139=\"\",'Enrollment Form'!$CN139=\"No\"),\"-\",IF(AND('Enrollment Form'!$CN139=\"Yes\",'Enrollment Form'!$CO139=\"\"),\"N\",\"Y\"))","v":"-"},{"$f":"IF(OR('Enrollment Form'!$CN139=\"\",'Enrollment Form'!$CN139=\"No\"),\"-\",IF(AND('Enrollment Form'!$CN139=\"Yes\",'Enrollment Form'!$CP139=\"\"),\"N\",\"Y\"))","v":"-"},{"$f":"IF('Enrollment Form'!B139<>\"Subscriber\",\"-\",IF(AND('Enrollment Form'!B139=\"Subscriber\",'Enrollment Form'!C139=\"Enroll\",'Enrollment Form'!AA139=\"\"),\"N\",\"Y\"))","v":"-"},{"$f":"IF(OR('Enrollment Form'!B139=\"Subscriber\",'Enrollment Form'!B139=\"\"),\"-\",IF('Enrollment Form'!BP139=\"\",\"N\",\"Y\"))","v":"-"},{"$f":"IF('Enrollment Form'!B139<>\"Subscriber\",\"-\",IF(AND('Enrollment Form'!B139=\"Subscriber\",'Enrollment Form'!G139=\"\"),\"N\",\"Y\"))","v":"-"},{"$f":"IF('Enrollment Form'!A139=\"\",\"\",IF('Enrollment Form'!B139=\"Subscriber\",\"-\",IF(AND('Enrollment Form'!B139<>\"Subscriber\",'Enrollment Form'!G139='Enrollment Form'!H139),\"N\",\"Y\")))","v":""},{"$f":"COUNTIF(C132:AN132,\"N\")","v":0}]
[140,{"$f":"IF('Enrollment Form'!$A140<>\"\",\"Y\",\"N\")","v":"N"},{"$f":"IF(AND('Enrollment Form'!$B140=\"\",'Enrollment Form'!$C140<>\"\"),\"N\",IF($B133=\"N\",\"\",\"Y\"))","v":""},{"$f":"IF(OR($B133=\"N\",'Enrollment Form'!G140=\"\"),\"\",IF('Enrollment Form'!$B140<>\"Subscriber\",\"\",IF('Enrollment Form'!$G140='Enrollment Form'!$H140,\"Y\",\"N\")))","v":""},{"$f":"IF($B133=\"N\",\"\",IF(AND(COUNTIFS('Enrollment Form'!$H$11:$H$1000,'Enrollment Form'!$H140,'Enrollment Form'!$B$11:$B$1000,'Enrollment Form'!$B140)>1,'Enrollment Form'!$H140<>\"\"),\"N\",\"Y\"))","v":""},{"$f":"IF($B133=\"N\",\"\",IF(LEN('Enrollment Form'!$Y140)=0,\"\",IF(LEN('Enrollment Form'!$Y140)<>5,\"N\",\"Y\")))","v":""},{"$f":"IF($B133=\"N\",\"\",IF(LEN('Enrollment Form'!$AD140=0),\"\",IF(LEN('Enrollment Form'!$AD140)<>5,\"N\",\"Y\")))","v":""},{"$f":"IF($B133=\"N\",\"\",IF(LEN('Enrollment Form'!$BS140=0),\"\",IF(LEN('Enrollment Form'!$BS140)<>5,\"N\",\"Y\")))","v":""},{"$f":"IF($B133=\"N\",\"\",IF(LEN('Enrollment Form'!$AE140)=0,\"\",IF(LEN('Enrollment Form'!$AE140)<>10,\"N\",\"Y\")))","v":""},{"$f":"IF($B133=\"N\",\"\",IF(LEN('Enrollment Form'!$AF140)=0,\"\",IF(LEN('Enrollment Form'!$AF140)<>10,\"N\",\"Y\")))","v":""},{"$f":"IF('Enrollment Form'!$O140<>\"Graded\",\"-\",IF(AND('Enrollment Form'!$O140=\"Graded\",'Enrollment Form'!$AR140<>\"\"),\"Y\",\"N\"))","v":"-"},{"$f":"IF($B133=\"N\",\"\",IF(OR('Enrollment Form'!$B140<>\"Subscriber\",'Enrollment Form'!$C140=\"ROC\"),\"-\",IF(AND('Enrollment Form'!$B140=\"Subscriber\",'Enrollment Form'!$C140=\"Enroll\",'Enrollment Form'!$AJ140<>\"\"),\"Y\",\"N\")))","v":""},{"$f":"IF($B133=\"N\",\"\",IF(OR('Enrollment Form'!$B140<>\"Subscriber\",'Enrollment Form'!$C140=\"ROC\"),\"-\",IF(AND('Enrollment Form'!$B140=\"Subscriber\",'Enrollment Form'!$C140=\"Enroll\",'Enrollment Form'!$AK140<>\"\"),\"Y\",\"N\")))","v":""},{"$f":"IF($B133=\"N\",\"\",IF(OR('Enrollment Form'!$B140<>\"Subscriber\",'Enrollment Form'!$C140=\"ROC\"),\"-\",IF(AND('Enrollment Form'!$B140=\"Subscriber\",'Enrollment Form'!$C140=\"Enroll\",'Enrollment Form'!$AL140<>\"\"),\"Y\",\"N\")))","v":""},{"$f":"IF($B133=\"N\",\"\",IF(OR('Enrollment Form'!$B140<>\"Subscriber\",'Enrollment Form'!$C140=\"ROC\"),\"-\",IF(AND('Enrollment Form'!$B140=\"Subscriber\",'Enrollment Form'!$C140=\"Enroll\",'Enrollment Form'!$AP140<>\"\"),\"Y\",\"N\")))","v":""},{"$f":"IF($B133=\"N\",\"\",IF(OR('Enrollment Form'!$B140<>\"Subscriber\",'Enrollment Form'!$C140=\"ROC\"),\"-\",IF(AND('Enrollment Form'!$B140=\"Subscriber\",'Enrollment Form'!$C140=\"Enroll\",'Enrollment Form'!$AQ140<>\"\"),\"Y\",\"N\")))","v":""},{"$f":"IF($B133=\"N\",\"\",IF(OR('Enrollment Form'!$B140<>\"Subscriber\",'Enrollment Form'!$C140=\"ROC\"),\"-\",IF(AND('Enrollment Form'!$B140=\"Subscriber\",'Enrollment Form'!$C140=\"Enroll\",'Enrollment Form'!$AS140<>\"\"),\"Y\",\"N\")))","v":""},{"$f":"IF($B133=\"N\",\"\",IF($Q133=\"-\",\"-\",IF(AND($Q133=\"Y\",'Enrollment Form'!$AS140=\"No\"),\"-\",IF(AND($Q133=\"Y\",'Enrollment Form'!$AS140=\"Yes\",'Enrollment Form'!$AT140<>\"\"),\"Y\",\"N\"))))","v":""},{"$f":"IF($B133=\"N\",\"\",IF(OR('Enrollment Form'!$B140<>\"Subscriber\",'Enrollment Form'!$C140=\"ROC\"),\"-\",IF(AND('Enrollment Form'!$B140=\"Subscriber\",'Enrollment Form'!$C140=\"Enroll\",'Enrollment Form'!$CV140<>\"\"),\"Y\",\"N\")))","v":""},{"$f":"IF($B133=\"N\",\"\",IF($S133=\"-\",\"-\",IF(AND($S133=\"Y\",'Enrollment Form'!$CV140=\"No\"),\"-\",IF(AND($S133=\"Y\",'Enrollment Form'!$CV140=\"Yes\",'Enrollment Form'!$CW140<>\"\"),\"Y\",\"N\"))))","v":""},{"$f":"IF(OR('Enrollment Form'!$AY140=\"Yes\",'Enrollment Form'!$AY140=\"\"),\"-\",IF(OR(AND('Enrollment Form'!$AY140=\"No\",ISERROR(FIND(\"HMO\",VLOOKUP('Enrollment Form'!G140,'Enrollment Form'!H$11:J$1000,3,FALSE),1))=FALSE,COUNTA('Enrollment Form'!$AZ140:$BC140)=4),AND('Enrollment Form'!$AY140=\"No\",ISERROR(FIND(\"HMO\",VLOOKUP('Enrollment Form'!G140,'Enrollment Form'!H$11:J$1000,3,FALSE),1))=FALSE,COUNTA('Enrollment Form'!$BT140:$BW140)=4)),\"Y\",\"N\"))","v":"-"},{"$f":"IF($B133=\"N\",\"\",IF('Enrollment Form'!$B140=\"Subscriber\",\"-\",IF(COUNTA('Enrollment Form'!$BL140,'Enrollment Form'!$BN140)=2,\"Y\",\"N\")))","v":""},{"$f":"IF($B133=\"N\",\"\",IF(OR('Enrollment Form'!$AX140=\"\",'Enrollment Form'!$AX140=\"No\"),\"-\",IF(AND('Enrollment Form'!$AX140=\"Yes\",COUNTA('Enrollment Form'!$CR140)=1),\"Y\",\"N\")))","v":""},{"$f":"IF(OR('Enrollment Form'!$CR140=\"\",'Enrollment Form'!$CR140=\"No\"),\"-\",IF(COUNTA('Enrollment Form'!$CT140:$CU140)=2,\"Y\",\"N\"))","v":"-"},{"$f":"IF($B133=\"N\",\"\",IF(COUNTIF('Enrollment Form'!$DG140:$DP140,\"Other\")=COUNTA('Enrollment Form'!$DK140,'Enrollment Form'!$DH140,'Enrollment Form'!$DN140,'Enrollment Form'!$DQ140),\"Y\",\"N\"))","v":""},{"$f":"IF($B133=\"N\",\"\",IF(OR('Enrollment Form'!B140<>\"Subscriber\",'Enrollment Form'!C140=\"ROC\",COUNTIF('Enrollment Form'!AV140:AW140,\"Yes\")>=1),\"-\",IF(AND('Enrollment Form'!C140=\"Enroll\",COUNTIF('Enrollment Form'!AV140:AW140,\"No\")=2,'Enrollment Form'!AX140=\"\"),\"N\",\"Y\")))","v":""},{"$f":"IF(OR(B133=\"N\",'Enrollment Form'!B140<>\"Subscriber\",'Enrollment Form'!C140=\"ROC\",'Enrollment Form'!O140<>\"Multiple of Salary\"),\"-\",IF(COUNTA('Enrollment Form'!T140:U140)<2,\"N\",\"Y\"))","v":"-"},{"$f":"IF(B133=\"N\",\"\",IF(OR('Enrollment Form'!C140=\"ROC\",'Enrollment Form'!B140<>\"Subscriber\",'Enrollment Form'!O140=\"Waive\",'Enrollment Form'!O140=\"\"),\"-\",IF('Enrollment Form'!P140=\"\",\"N\",\"Y\")))","v":""},{"$f":"IF($B133=\"N\",\"\",IF(AND('Enrollment Form'!$C140=\"ROC\",'Enrollment Form'!$DR140<>\"\"),\"Y\",IF(AND('Enrollment Form'!$C140=\"ROC\",'Enrollment Form'!$DR140=\"\"),\"N\",IF(AND('Enrollment Form'!$C140=\"Enroll\",'Enrollment Form'!$B140=\"Subscriber\",'Enrollment Form'!$CX140=\"No\",'Enrollment Form'!$DR140=\"\"),\"N\",IF(AND('Enrollment Form'!$C140=\"Enroll\",'Enrollment Form'!$B140=\"Subscriber\",'Enrollment Form'!$CX140=\"Yes\"),\"-\",\"Y\")))))","v":""},{"$f":"IF($B133=\"N\",\"\",IF(AND('Enrollment Form'!$C140=\"ROC\",'Enrollment Form'!$DS140<>\"\"),\"Y\",IF(AND('Enrollment Form'!$C140=\"ROC\",'Enrollment Form'!$DS140=\"\"),\"N\",IF(AND('Enrollment Form'!$C140=\"Enroll\",'Enrollment Form'!$B140=\"Subscriber\",'Enrollment Form'!$CX140=\"No\",'Enrollment Form'!$DS140=\"\"),\"N\",IF(AND('Enrollment Form'!$C140=\"Enroll\",'Enrollment Form'!$B140=\"Subscriber\",'Enrollment Form'!$CX140=\"Yes\"),\"-\",\"Y\")))))","v":""},{"$f":"IF('Enrollment Form'!AH140=\"\",\"\",IF(ISERROR(SEARCH(\".\",'Enrollment Form'!AH140,SEARCH(\"@\",'Enrollment Form'!AH140))),\"N\",\"Y\"))","v":""},{"$f":"IF(OR($B133=\"N\",'Enrollment Form'!$G140=\"\"),\"\",IF('Enrollment Form'!$B140<>\"Subscriber\",\"-\",IF(COUNTIF('Enrollment Form'!$AV140:$AW140,\"Yes\")=2,\"N\",\"Y\")))","v":""},{"$f":"IF(OR('Enrollment Form'!$CJ140=\"\",'Enrollment Form'!$CJ140=\"No\"),\"-\",IF(AND('Enrollment Form'!$CJ140=\"Yes\",'Enrollment Form'!$CK140=\"\"),\"N\",\"Y\"))","v":"-"},{"$f":"IF(OR('Enrollment Form'!$CL140=\"\",'Enrollment Form'!$CL140=\"No\"),\"-\",IF(AND('Enrollment Form'!$CL140=\"Yes\",'Enrollment Form'!$CM140=\"\"),\"N\",\"Y\"))","v":"-"},{"$f":"IF(OR('Enrollment Form'!$CN140=\"\",'Enrollment Form'!$CN140=\"No\"),\"-\",IF(AND('Enrollment Form'!$CN140=\"Yes\",'Enrollment Form'!$CO140=\"\"),\"N\",\"Y\"))","v":"-"},{"$f":"IF(OR('Enrollment Form'!$CN140=\"\",'Enrollment Form'!$CN140=\"No\"),\"-\",IF(AND('Enrollment Form'!$CN140=\"Yes\",'Enrollment Form'!$CP140=\"\"),\"N\",\"Y\"))","v":"-"},{"$f":"IF('Enrollment Form'!B140<>\"Subscriber\",\"-\",IF(AND('Enrollment Form'!B140=\"Subscriber\",'Enrollment Form'!C140=\"Enroll\",'Enrollment Form'!AA140=\"\"),\"N\",\"Y\"))","v":"-"},{"$f":"IF(OR('Enrollment Form'!B140=\"Subscriber\",'Enrollment Form'!B140=\"\"),\"-\",IF('Enrollment Form'!BP140=\"\",\"N\",\"Y\"))","v":"-"},{"$f":"IF('Enrollment Form'!B140<>\"Subscriber\",\"-\",IF(AND('Enrollment Form'!B140=\"Subscriber\",'Enrollment Form'!G140=\"\"),\"N\",\"Y\"))","v":"-"},{"$f":"IF('Enrollment Form'!A140=\"\",\"\",IF('Enrollment Form'!B140=\"Subscriber\",\"-\",IF(AND('Enrollment Form'!B140<>\"Subscriber\",'Enrollment Form'!G140='Enrollment Form'!H140),\"N\",\"Y\")))","v":""},0]
[{"$f":"1+A133","v":141},{"$f":"IF('Enrollment Form'!$A141<>\"\",\"Y\",\"N\")","v":"N"},{"$f":"IF(AND('Enrollment Form'!$B141=\"\",'Enrollment Form'!$C141<>\"\"),\"N\",IF($B134=\"N\",\"\",\"Y\"))","v":""},{"$f":"IF(OR($B134=\"N\",'Enrollment Form'!G141=\"\"),\"\",IF('Enrollment Form'!$B141<>\"Subscriber\",\"\",IF('Enrollment Form'!$G141='Enrollment Form'!$H141,\"Y\",\"N\")))","v":""},{"$f":"IF($B134=\"N\",\"\",IF(AND(COUNTIFS('Enrollment Form'!$H$11:$H$1000,'Enrollment Form'!$H141,'Enrollment Form'!$B$11:$B$1000,'Enrollment Form'!$B141)>1,'Enrollment Form'!$H141<>\"\"),\"N\",\"Y\"))","v":""},{"$f":"IF($B134=\"N\",\"\",IF(LEN('Enrollment Form'!$Y141)=0,\"\",IF(LEN('Enrollment Form'!$Y141)<>5,\"N\",\"Y\")))","v":""},{"$f":"IF($B134=\"N\",\"\",IF(LEN('Enrollment Form'!$AD141=0),\"\",IF(LEN('Enrollment Form'!$AD141)<>5,\"N\",\"Y\")))","v":""},{"$f":"IF($B134=\"N\",\"\",IF(LEN('Enrollment Form'!$BS141=0),\"\",IF(LEN('Enrollment Form'!$BS141)<>5,\"N\",\"Y\")))","v":""},{"$f":"IF($B134=\"N\",\"\",IF(LEN('Enrollment Form'!$AE141)=0,\"\",IF(LEN('Enrollment Form'!$AE141)<>10,\"N\",\"Y\")))","v":""},{"$f":"IF($B134=\"N\",\"\",IF(LEN('Enrollment Form'!$AF141)=0,\"\",IF(LEN('Enrollment Form'!$AF141)<>10,\"N\",\"Y\")))","v":""},{"$f":"IF('Enrollment Form'!$O141<>\"Graded\",\"-\",IF(AND('Enrollment Form'!$O141=\"Graded\",'Enrollment Form'!$AR141<>\"\"),\"Y\",\"N\"))","v":"-"},{"$f":"IF($B134=\"N\",\"\",IF(OR('Enrollment Form'!$B141<>\"Subscriber\",'Enrollment Form'!$C141=\"ROC\"),\"-\",IF(AND('Enrollment Form'!$B141=\"Subscriber\",'Enrollment Form'!$C141=\"Enroll\",'Enrollment Form'!$AJ141<>\"\"),\"Y\",\"N\")))","v":""},{"$f":"IF($B134=\"N\",\"\",IF(OR('Enrollment Form'!$B141<>\"Subscriber\",'Enrollment Form'!$C141=\"ROC\"),\"-\",IF(AND('Enrollment Form'!$B141=\"Subscriber\",'Enrollment Form'!$C141=\"Enroll\",'Enrollment Form'!$AK141<>\"\"),\"Y\",\"N\")))","v":""},{"$f":"IF($B134=\"N\",\"\",IF(OR('Enrollment Form'!$B141<>\"Subscriber\",'Enrollment Form'!$C141=\"ROC\"),\"-\",IF(AND('Enrollment Form'!$B141=\"Subscriber\",'Enrollment Form'!$C141=\"Enroll\",'Enrollment Form'!$AL141<>\"\"),\"Y\",\"N\")))","v":""},{"$f":"IF($B134=\"N\",\"\",IF(OR('Enrollment Form'!$B141<>\"Subscriber\",'Enrollment Form'!$C141=\"ROC\"),\"-\",IF(AND('Enrollment Form'!$B141=\"Subscriber\",'Enrollment Form'!$C141=\"Enroll\",'Enrollment Form'!$AP141<>\"\"),\"Y\",\"N\")))","v":""},{"$f":"IF($B134=\"N\",\"\",IF(OR('Enrollment Form'!$B141<>\"Subscriber\",'Enrollment Form'!$C141=\"ROC\"),\"-\",IF(AND('Enrollment Form'!$B141=\"Subscriber\",'Enrollment Form'!$C141=\"Enroll\",'Enrollment Form'!$AQ141<>\"\"),\"Y\",\"N\")))","v":""},{"$f":"IF($B134=\"N\",\"\",IF(OR('Enrollment Form'!$B141<>\"Subscriber\",'Enrollment Form'!$C141=\"ROC\"),\"-\",IF(AND('Enrollment Form'!$B141=\"Subscriber\",'Enrollment Form'!$C141=\"Enroll\",'Enrollment Form'!$AS141<>\"\"),\"Y\",\"N\")))","v":""},{"$f":"IF($B134=\"N\",\"\",IF($Q134=\"-\",\"-\",IF(AND($Q134=\"Y\",'Enrollment Form'!$AS141=\"No\"),\"-\",IF(AND($Q134=\"Y\",'Enrollment Form'!$AS141=\"Yes\",'Enrollment Form'!$AT141<>\"\"),\"Y\",\"N\"))))","v":""},{"$f":"IF($B134=\"N\",\"\",IF(OR('Enrollment Form'!$B141<>\"Subscriber\",'Enrollment Form'!$C141=\"ROC\"),\"-\",IF(AND('Enrollment Form'!$B141=\"Subscriber\",'Enrollment Form'!$C141=\"Enroll\",'Enrollment Form'!$CV141<>\"\"),\"Y\",\"N\")))","v":""},{"$f":"IF($B134=\"N\",\"\",IF($S134=\"-\",\"-\",IF(AND($S134=\"Y\",'Enrollment Form'!$CV141=\"No\"),\"-\",IF(AND($S134=\"Y\",'Enrollment Form'!$CV141=\"Yes\",'Enrollment Form'!$CW141<>\"\"),\"Y\",\"N\"))))","v":""},{"$f":"IF(OR('Enrollment Form'!$AY141=\"Yes\",'Enrollment Form'!$AY141=\"\"),\"-\",IF(OR(AND('Enrollment Form'!$AY141=\"No\",ISERROR(FIND(\"HMO\",VLOOKUP('Enrollment Form'!G141,'Enrollment Form'!H$11:J$1000,3,FALSE),1))=FALSE,COUNTA('Enrollment Form'!$AZ141:$BC141)=4),AND('Enrollment Form'!$AY141=\"No\",ISERROR(FIND(\"HMO\",VLOOKUP('Enrollment Form'!G141,'Enrollment Form'!H$11:J$1000,3,FALSE),1))=FALSE,COUNTA('Enrollment Form'!$BT141:$BW141)=4)),\"Y\",\"N\"))","v":"-"},{"$f":"IF($B134=\"N\",\"\",IF('Enrollment Form'!$B141=\"Subscriber\",\"-\",IF(COUNTA('Enrollment Form'!$BL141,'Enrollment Form'!$BN141)=2,\"Y\",\"N\")))","v":""},{"$f":"IF($B134=\"N\",\"\",IF(OR('Enrollment Form'!$AX141=\"\",'Enrollment Form'!$AX141=\"No\"),\"-\",IF(AND('Enrollment Form'!$AX141=\"Yes\",COUNTA('Enrollment Form'!$CR141)=1),\"Y\",\"N\")))","v":""},{"$f":"IF(OR('Enrollment Form'!$CR141=\"\",'Enrollment Form'!$CR141=\"No\"),\"-\",IF(COUNTA('Enrollment Form'!$CT141:$CU141)=2,\"Y\",\"N\"))","v":"-"},{"$f":"IF($B134=\"N\",\"\",IF(COUNTIF('Enrollment Form'!$DG141:$DP141,\"Other\")=COUNTA('Enrollment Form'!$DK141,'Enrollment Form'!$DH141,'Enrollment Form'!$DN141,'Enrollment Form'!$DQ141),\"Y\",\"N\"))","v":""},{"$f":"IF($B134=\"N\",\"\",IF(OR('Enrollment Form'!B141<>\"Subscriber\",'Enrollment Form'!C141=\"ROC\",COUNTIF('Enrollment Form'!AV141:AW141,\"Yes\")>=1),\"-\",IF(AND('Enrollment Form'!C141=\"Enroll\",COUNTIF('Enrollment Form'!AV141:AW141,\"No\")=2,'Enrollment Form'!AX141=\"\"),\"N\",\"Y\")))","v":""},{"$f":"IF(OR(B134=\"N\",'Enrollment Form'!B141<>\"Subscriber\",'Enrollment Form'!C141=\"ROC\",'Enrollment Form'!O141<>\"Multiple of Salary\"),\"-\",IF(COUNTA('Enrollment Form'!T141:U141)<2,\"N\",\"Y\"))","v":"-"},{"$f":"IF(B134=\"N\",\"\",IF(OR('Enrollment Form'!C141=\"ROC\",'Enrollment Form'!B141<>\"Subscriber\",'Enrollment Form'!O141=\"Waive\",'Enrollment Form'!O141=\"\"),\"-\",IF('Enrollment Form'!P141=\"\",\"N\",\"Y\")))","v":""},{"$f":"IF($B134=\"N\",\"\",IF(AND('Enrollment Form'!$C141=\"ROC\",'Enrollment Form'!$DR141<>\"\"),\"Y\",IF(AND('Enrollment Form'!$C141=\"ROC\",'Enrollment Form'!$DR141=\"\"),\"N\",IF(AND('Enrollment Form'!$C141=\"Enroll\",'Enrollment Form'!$B141=\"Subscriber\",'Enrollment Form'!$CX141=\"No\",'Enrollment Form'!$DR141=\"\"),\"N\",IF(AND('Enrollment Form'!$C141=\"Enroll\",'Enrollment Form'!$B141=\"Subscriber\",'Enrollment Form'!$CX141=\"Yes\"),\"-\",\"Y\")))))","v":""},{"$f":"IF($B134=\"N\",\"\",IF(AND('Enrollment Form'!$C141=\"ROC\",'Enrollment Form'!$DS141<>\"\"),\"Y\",IF(AND('Enrollment Form'!$C141=\"ROC\",'Enrollment Form'!$DS141=\"\"),\"N\",IF(AND('Enrollment Form'!$C141=\"Enroll\",'Enrollment Form'!$B141=\"Subscriber\",'Enrollment Form'!$CX141=\"No\",'Enrollment Form'!$DS141=\"\"),\"N\",IF(AND('Enrollment Form'!$C141=\"Enroll\",'Enrollment Form'!$B141=\"Subscriber\",'Enrollment Form'!$CX141=\"Yes\"),\"-\",\"Y\")))))","v":""},{"$f":"IF('Enrollment Form'!AH141=\"\",\"\",IF(ISERROR(SEARCH(\".\",'Enrollment Form'!AH141,SEARCH(\"@\",'Enrollment Form'!AH141))),\"N\",\"Y\"))","v":""},{"$f":"IF(OR($B134=\"N\",'Enrollment Form'!$G141=\"\"),\"\",IF('Enrollment Form'!$B141<>\"Subscriber\",\"-\",IF(COUNTIF('Enrollment Form'!$AV141:$AW141,\"Yes\")=2,\"N\",\"Y\")))","v":""},{"$f":"IF(OR('Enrollment Form'!$CJ141=\"\",'Enrollment Form'!$CJ141=\"No\"),\"-\",IF(AND('Enrollment Form'!$CJ141=\"Yes\",'Enrollment Form'!$CK141=\"\"),\"N\",\"Y\"))","v":"-"},{"$f":"IF(OR('Enrollment Form'!$CL141=\"\",'Enrollment Form'!$CL141=\"No\"),\"-\",IF(AND('Enrollment Form'!$CL141=\"Yes\",'Enrollment Form'!$CM141=\"\"),\"N\",\"Y\"))","v":"-"},{"$f":"IF(OR('Enrollment Form'!$CN141=\"\",'Enrollment Form'!$CN141=\"No\"),\"-\",IF(AND('Enrollment Form'!$CN141=\"Yes\",'Enrollment Form'!$CO141=\"\"),\"N\",\"Y\"))","v":"-"},{"$f":"IF(OR('Enrollment Form'!$CN141=\"\",'Enrollment Form'!$CN141=\"No\"),\"-\",IF(AND('Enrollment Form'!$CN141=\"Yes\",'Enrollment Form'!$CP141=\"\"),\"N\",\"Y\"))","v":"-"},{"$f":"IF('Enrollment Form'!B141<>\"Subscriber\",\"-\",IF(AND('Enrollment Form'!B141=\"Subscriber\",'Enrollment Form'!C141=\"Enroll\",'Enrollment Form'!AA141=\"\"),\"N\",\"Y\"))","v":"-"},{"$f":"IF(OR('Enrollment Form'!B141=\"Subscriber\",'Enrollment Form'!B141=\"\"),\"-\",IF('Enrollment Form'!BP141=\"\",\"N\",\"Y\"))","v":"-"},{"$f":"IF('Enrollment Form'!B141<>\"Subscriber\",\"-\",IF(AND('Enrollment Form'!B141=\"Subscriber\",'Enrollment Form'!G141=\"\"),\"N\",\"Y\"))","v":"-"},{"$f":"IF('Enrollment Form'!A141=\"\",\"\",IF('Enrollment Form'!B141=\"Subscriber\",\"-\",IF(AND('Enrollment Form'!B141<>\"Subscriber\",'Enrollment Form'!G141='Enrollment Form'!H141),\"N\",\"Y\")))","v":""},0]
[142,{"$f":"IF('Enrollment Form'!$A142<>\"\",\"Y\",\"N\")","v":"N"},{"$f":"IF(AND('Enrollment Form'!$B142=\"\",'Enrollment Form'!$C142<>\"\"),\"N\",IF($B135=\"N\",\"\",\"Y\"))","v":""},{"$f":"IF(OR($B135=\"N\",'Enrollment Form'!G142=\"\"),\"\",IF('Enrollment Form'!$B142<>\"Subscriber\",\"\",IF('Enrollment Form'!$G142='Enrollment Form'!$H142,\"Y\",\"N\")))","v":""},{"$f":"IF($B135=\"N\",\"\",IF(AND(COUNTIFS('Enrollment Form'!$H$11:$H$1000,'Enrollment Form'!$H142,'Enrollment Form'!$B$11:$B$1000,'Enrollment Form'!$B142)>1,'Enrollment Form'!$H142<>\"\"),\"N\",\"Y\"))","v":""},{"$f":"IF($B135=\"N\",\"\",IF(LEN('Enrollment Form'!$Y142)=0,\"\",IF(LEN('Enrollment Form'!$Y142)<>5,\"N\",\"Y\")))","v":""},{"$f":"IF($B135=\"N\",\"\",IF(LEN('Enrollment Form'!$AD142=0),\"\",IF(LEN('Enrollment Form'!$AD142)<>5,\"N\",\"Y\")))","v":""},{"$f":"IF($B135=\"N\",\"\",IF(LEN('Enrollment Form'!$BS142=0),\"\",IF(LEN('Enrollment Form'!$BS142)<>5,\"N\",\"Y\")))","v":""},{"$f":"IF($B135=\"N\",\"\",IF(LEN('Enrollment Form'!$AE142)=0,\"\",IF(LEN('Enrollment Form'!$AE142)<>10,\"N\",\"Y\")))","v":""},{"$f":"IF($B135=\"N\",\"\",IF(LEN('Enrollment Form'!$AF142)=0,\"\",IF(LEN('Enrollment Form'!$AF142)<>10,\"N\",\"Y\")))","v":""},{"$f":"IF('Enrollment Form'!$O142<>\"Graded\",\"-\",IF(AND('Enrollment Form'!$O142=\"Graded\",'Enrollment Form'!$AR142<>\"\"),\"Y\",\"N\"))","v":"-"},{"$f":"IF($B135=\"N\",\"\",IF(OR('Enrollment Form'!$B142<>\"Subscriber\",'Enrollment Form'!$C142=\"ROC\"),\"-\",IF(AND('Enrollment Form'!$B142=\"Subscriber\",'Enrollment Form'!$C142=\"Enroll\",'Enrollment Form'!$AJ142<>\"\"),\"Y\",\"N\")))","v":""},{"$f":"IF($B135=\"N\",\"\",IF(OR('Enrollment Form'!$B142<>\"Subscriber\",'Enrollment Form'!$C142=\"ROC\"),\"-\",IF(AND('Enrollment Form'!$B142=\"Subscriber\",'Enrollment Form'!$C142=\"Enroll\",'Enrollment Form'!$AK142<>\"\"),\"Y\",\"N\")))","v":""},{"$f":"IF($B135=\"N\",\"\",IF(OR('Enrollment Form'!$B142<>\"Subscriber\",'Enrollment Form'!$C142=\"ROC\"),\"-\",IF(AND('Enrollment Form'!$B142=\"Subscriber\",'Enrollment Form'!$C142=\"Enroll\",'Enrollment Form'!$AL142<>\"\"),\"Y\",\"N\")))","v":""},{"$f":"IF($B135=\"N\",\"\",IF(OR('Enrollment Form'!$B142<>\"Subscriber\",'Enrollment Form'!$C142=\"ROC\"),\"-\",IF(AND('Enrollment Form'!$B142=\"Subscriber\",'Enrollment Form'!$C142=\"Enroll\",'Enrollment Form'!$AP142<>\"\"),\"Y\",\"N\")))","v":""},{"$f":"IF($B135=\"N\",\"\",IF(OR('Enrollment Form'!$B142<>\"Subscriber\",'Enrollment Form'!$C142=\"ROC\"),\"-\",IF(AND('Enrollment Form'!$B142=\"Subscriber\",'Enrollment Form'!$C142=\"Enroll\",'Enrollment Form'!$AQ142<>\"\"),\"Y\",\"N\")))","v":""},{"$f":"IF($B135=\"N\",\"\",IF(OR('Enrollment Form'!$B142<>\"Subscriber\",'Enrollment Form'!$C142=\"ROC\"),\"-\",IF(AND('Enrollment Form'!$B142=\"Subscriber\",'Enrollment Form'!$C142=\"Enroll\",'Enrollment Form'!$AS142<>\"\"),\"Y\",\"N\")))","v":""},{"$f":"IF($B135=\"N\",\"\",IF($Q135=\"-\",\"-\",IF(AND($Q135=\"Y\",'Enrollment Form'!$AS142=\"No\"),\"-\",IF(AND($Q135=\"Y\",'Enrollment Form'!$AS142=\"Yes\",'Enrollment Form'!$AT142<>\"\"),\"Y\",\"N\"))))","v":""},{"$f":"IF($B135=\"N\",\"\",IF(OR('Enrollment Form'!$B142<>\"Subscriber\",'Enrollment Form'!$C142=\"ROC\"),\"-\",IF(AND('Enrollment Form'!$B142=\"Subscriber\",'Enrollment Form'!$C142=\"Enroll\",'Enrollment Form'!$CV142<>\"\"),\"Y\",\"N\")))","v":""},{"$f":"IF($B135=\"N\",\"\",IF($S135=\"-\",\"-\",IF(AND($S135=\"Y\",'Enrollment Form'!$CV142=\"No\"),\"-\",IF(AND($S135=\"Y\",'Enrollment Form'!$CV142=\"Yes\",'Enrollment Form'!$CW142<>\"\"),\"Y\",\"N\"))))","v":""},{"$f":"IF(OR('Enrollment Form'!$AY142=\"Yes\",'Enrollment Form'!$AY142=\"\"),\"-\",IF(OR(AND('Enrollment Form'!$AY142=\"No\",ISERROR(FIND(\"HMO\",VLOOKUP('Enrollment Form'!G142,'Enrollment Form'!H$11:J$1000,3,FALSE),1))=FALSE,COUNTA('Enrollment Form'!$AZ142:$BC142)=4),AND('Enrollment Form'!$AY142=\"No\",ISERROR(FIND(\"HMO\",VLOOKUP('Enrollment Form'!G142,'Enrollment Form'!H$11:J$1000,3,FALSE),1))=FALSE,COUNTA('Enrollment Form'!$BT142:$BW142)=4)),\"Y\",\"N\"))","v":"-"},{"$f":"IF($B135=\"N\",\"\",IF('Enrollment Form'!$B142=\"Subscriber\",\"-\",IF(COUNTA('Enrollment Form'!$BL142,'Enrollment Form'!$BN142)=2,\"Y\",\"N\")))","v":""},{"$f":"IF($B135=\"N\",\"\",IF(OR('Enrollment Form'!$AX142=\"\",'Enrollment Form'!$AX142=\"No\"),\"-\",IF(AND('Enrollment Form'!$AX142=\"Yes\",COUNTA('Enrollment Form'!$CR142)=1),\"Y\",\"N\")))","v":""},{"$f":"IF(OR('Enrollment Form'!$CR142=\"\",'Enrollment Form'!$CR142=\"No\"),\"-\",IF(COUNTA('Enrollment Form'!$CT142:$CU142)=2,\"Y\",\"N\"))","v":"-"},{"$f":"IF($B135=\"N\",\"\",IF(COUNTIF('Enrollment Form'!$DG142:$DP142,\"Other\")=COUNTA('Enrollment Form'!$DK142,'Enrollment Form'!$DH142,'Enrollment Form'!$DN142,'Enrollment Form'!$DQ142),\"Y\",\"N\"))","v":""},{"$f":"IF($B135=\"N\",\"\",IF(OR('Enrollment Form'!B142<>\"Subscriber\",'Enrollment Form'!C142=\"ROC\",COUNTIF('Enrollment Form'!AV142:AW142,\"Yes\")>=1),\"-\",IF(AND('Enrollment Form'!C142=\"Enroll\",COUNTIF('Enrollment Form'!AV142:AW142,\"No\")=2,'Enrollment Form'!AX142=\"\"),\"N\",\"Y\")))","v":""},{"$f":"IF(OR(B135=\"N\",'Enrollment Form'!B142<>\"Subscriber\",'Enrollment Form'!C142=\"ROC\",'Enrollment Form'!O142<>\"Multiple of Salary\"),\"-\",IF(COUNTA('Enrollment Form'!T142:U142)<2,\"N\",\"Y\"))","v":"-"},{"$f":"IF(B135=\"N\",\"\",IF(OR('Enrollment Form'!C142=\"ROC\",'Enrollment Form'!B142<>\"Subscriber\",'Enrollment Form'!O142=\"Waive\",'Enrollment Form'!O142=\"\"),\"-\",IF('Enrollment Form'!P142=\"\",\"N\",\"Y\")))","v":""},{"$f":"IF($B135=\"N\",\"\",IF(AND('Enrollment Form'!$C142=\"ROC\",'Enrollment Form'!$DR142<>\"\"),\"Y\",IF(AND('Enrollment Form'!$C142=\"ROC\",'Enrollment Form'!$DR142=\"\"),\"N\",IF(AND('Enrollment Form'!$C142=\"Enroll\",'Enrollment Form'!$B142=\"Subscriber\",'Enrollment Form'!$CX142=\"No\",'Enrollment Form'!$DR142=\"\"),\"N\",IF(AND('Enrollment Form'!$C142=\"Enroll\",'Enrollment Form'!$B142=\"Subscriber\",'Enrollment Form'!$CX142=\"Yes\"),\"-\",\"Y\")))))","v":""},{"$f":"IF($B135=\"N\",\"\",IF(AND('Enrollment Form'!$C142=\"ROC\",'Enrollment Form'!$DS142<>\"\"),\"Y\",IF(AND('Enrollment Form'!$C142=\"ROC\",'Enrollment Form'!$DS142=\"\"),\"N\",IF(AND('Enrollment Form'!$C142=\"Enroll\",'Enrollment Form'!$B142=\"Subscriber\",'Enrollment Form'!$CX142=\"No\",'Enrollment Form'!$DS142=\"\"),\"N\",IF(AND('Enrollment Form'!$C142=\"Enroll\",'Enrollment Form'!$B142=\"Subscriber\",'Enrollment Form'!$CX142=\"Yes\"),\"-\",\"Y\")))))","v":""},{"$f":"IF('Enrollment Form'!AH142=\"\",\"\",IF(ISERROR(SEARCH(\".\",'Enrollment Form'!AH142,SEARCH(\"@\",'Enrollment Form'!AH142))),\"N\",\"Y\"))","v":""},{"$f":"IF(OR($B135=\"N\",'Enrollment Form'!$G142=\"\"),\"\",IF('Enrollment Form'!$B142<>\"Subscriber\",\"-\",IF(COUNTIF('Enrollment Form'!$AV142:$AW142,\"Yes\")=2,\"N\",\"Y\")))","v":""},{"$f":"IF(OR('Enrollment Form'!$CJ142=\"\",'Enrollment Form'!$CJ142=\"No\"),\"-\",IF(AND('Enrollment Form'!$CJ142=\"Yes\",'Enrollment Form'!$CK142=\"\"),\"N\",\"Y\"))","v":"-"},{"$f":"IF(OR('Enrollment Form'!$CL142=\"\",'Enrollment Form'!$CL142=\"No\"),\"-\",IF(AND('Enrollment Form'!$CL142=\"Yes\",'Enrollment Form'!$CM142=\"\"),\"N\",\"Y\"))","v":"-"},{"$f":"IF(OR('Enrollment Form'!$CN142=\"\",'Enrollment Form'!$CN142=\"No\"),\"-\",IF(AND('Enrollment Form'!$CN142=\"Yes\",'Enrollment Form'!$CO142=\"\"),\"N\",\"Y\"))","v":"-"},{"$f":"IF(OR('Enrollment Form'!$CN142=\"\",'Enrollment Form'!$CN142=\"No\"),\"-\",IF(AND('Enrollment Form'!$CN142=\"Yes\",'Enrollment Form'!$CP142=\"\"),\"N\",\"Y\"))","v":"-"},{"$f":"IF('Enrollment Form'!B142<>\"Subscriber\",\"-\",IF(AND('Enrollment Form'!B142=\"Subscriber\",'Enrollment Form'!C142=\"Enroll\",'Enrollment Form'!AA142=\"\"),\"N\",\"Y\"))","v":"-"},{"$f":"IF(OR('Enrollment Form'!B142=\"Subscriber\",'Enrollment Form'!B142=\"\"),\"-\",IF('Enrollment Form'!BP142=\"\",\"N\",\"Y\"))","v":"-"},{"$f":"IF('Enrollment Form'!B142<>\"Subscriber\",\"-\",IF(AND('Enrollment Form'!B142=\"Subscriber\",'Enrollment Form'!G142=\"\"),\"N\",\"Y\"))","v":"-"},{"$f":"IF('Enrollment Form'!A142=\"\",\"\",IF('Enrollment Form'!B142=\"Subscriber\",\"-\",IF(AND('Enrollment Form'!B142<>\"Subscriber\",'Enrollment Form'!G142='Enrollment Form'!H142),\"N\",\"Y\")))","v":""},0]
[143,{"$f":"IF('Enrollment Form'!$A143<>\"\",\"Y\",\"N\")","v":"N"},{"$f":"IF(AND('Enrollment Form'!$B143=\"\",'Enrollment Form'!$C143<>\"\"),\"N\",IF($B136=\"N\",\"\",\"Y\"))","v":""},{"$f":"IF(OR($B136=\"N\",'Enrollment Form'!G143=\"\"),\"\",IF('Enrollment Form'!$B143<>\"Subscriber\",\"\",IF('Enrollment Form'!$G143='Enrollment Form'!$H143,\"Y\",\"N\")))","v":""},{"$f":"IF($B136=\"N\",\"\",IF(AND(COUNTIFS('Enrollment Form'!$H$11:$H$1000,'Enrollment Form'!$H143,'Enrollment Form'!$B$11:$B$1000,'Enrollment Form'!$B143)>1,'Enrollment Form'!$H143<>\"\"),\"N\",\"Y\"))","v":""},{"$f":"IF($B136=\"N\",\"\",IF(LEN('Enrollment Form'!$Y143)=0,\"\",IF(LEN('Enrollment Form'!$Y143)<>5,\"N\",\"Y\")))","v":""},{"$f":"IF($B136=\"N\",\"\",IF(LEN('Enrollment Form'!$AD143=0),\"\",IF(LEN('Enrollment Form'!$AD143)<>5,\"N\",\"Y\")))","v":""},{"$f":"IF($B136=\"N\",\"\",IF(LEN('Enrollment Form'!$BS143=0),\"\",IF(LEN('Enrollment Form'!$BS143)<>5,\"N\",\"Y\")))","v":""},{"$f":"IF($B136=\"N\",\"\",IF(LEN('Enrollment Form'!$AE143)=0,\"\",IF(LEN('Enrollment Form'!$AE143)<>10,\"N\",\"Y\")))","v":""},{"$f":"IF($B136=\"N\",\"\",IF(LEN('Enrollment Form'!$AF143)=0,\"\",IF(LEN('Enrollment Form'!$AF143)<>10,\"N\",\"Y\")))","v":""},{"$f":"IF('Enrollment Form'!$O143<>\"Graded\",\"-\",IF(AND('Enrollment Form'!$O143=\"Graded\",'Enrollment Form'!$AR143<>\"\"),\"Y\",\"N\"))","v":"-"},{"$f":"IF($B136=\"N\",\"\",IF(OR('Enrollment Form'!$B143<>\"Subscriber\",'Enrollment Form'!$C143=\"ROC\"),\"-\",IF(AND('Enrollment Form'!$B143=\"Subscriber\",'Enrollment Form'!$C143=\"Enroll\",'Enrollment Form'!$AJ143<>\"\"),\"Y\",\"N\")))","v":""},{"$f":"IF($B136=\"N\",\"\",IF(OR('Enrollment Form'!$B143<>\"Subscriber\",'Enrollment Form'!$C143=\"ROC\"),\"-\",IF(AND('Enrollment Form'!$B143=\"Subscriber\",'Enrollment Form'!$C143=\"Enroll\",'Enrollment Form'!$AK143<>\"\"),\"Y\",\"N\")))","v":""},{"$f":"IF($B136=\"N\",\"\",IF(OR('Enrollment Form'!$B143<>\"Subscriber\",'Enrollment Form'!$C143=\"ROC\"),\"-\",IF(AND('Enrollment Form'!$B143=\"Subscriber\",'Enrollment Form'!$C143=\"Enroll\",'Enrollment Form'!$AL143<>\"\"),\"Y\",\"N\")))","v":""},{"$f":"IF($B136=\"N\",\"\",IF(OR('Enrollment Form'!$B143<>\"Subscriber\",'Enrollment Form'!$C143=\"ROC\"),\"-\",IF(AND('Enrollment Form'!$B143=\"Subscriber\",'Enrollment Form'!$C143=\"Enroll\",'Enrollment Form'!$AP143<>\"\"),\"Y\",\"N\")))","v":""},{"$f":"IF($B136=\"N\",\"\",IF(OR('Enrollment Form'!$B143<>\"Subscriber\",'Enrollment Form'!$C143=\"ROC\"),\"-\",IF(AND('Enrollment Form'!$B143=\"Subscriber\",'Enrollment Form'!$C143=\"Enroll\",'Enrollment Form'!$AQ143<>\"\"),\"Y\",\"N\")))","v":""},{"$f":"IF($B136=\"N\",\"\",IF(OR('Enrollment Form'!$B143<>\"Subscriber\",'Enrollment Form'!$C143=\"ROC\"),\"-\",IF(AND('Enrollment Form'!$B143=\"Subscriber\",'Enrollment Form'!$C143=\"Enroll\",'Enrollment Form'!$AS143<>\"\"),\"Y\",\"N\")))","v":""},{"$f":"IF($B136=\"N\",\"\",IF($Q136=\"-\",\"-\",IF(AND($Q136=\"Y\",'Enrollment Form'!$AS143=\"No\"),\"-\",IF(AND($Q136=\"Y\",'Enrollment Form'!$AS143=\"Yes\",'Enrollment Form'!$AT143<>\"\"),\"Y\",\"N\"))))","v":""},{"$f":"IF($B136=\"N\",\"\",IF(OR('Enrollment Form'!$B143<>\"Subscriber\",'Enrollment Form'!$C143=\"ROC\"),\"-\",IF(AND('Enrollment Form'!$B143=\"Subscriber\",'Enrollment Form'!$C143=\"Enroll\",'Enrollment Form'!$CV143<>\"\"),\"Y\",\"N\")))","v":""},{"$f":"IF($B136=\"N\",\"\",IF($S136=\"-\",\"-\",IF(AND($S136=\"Y\",'Enrollment Form'!$CV143=\"No\"),\"-\",IF(AND($S136=\"Y\",'Enrollment Form'!$CV143=\"Yes\",'Enrollment Form'!$CW143<>\"\"),\"Y\",\"N\"))))","v":""},{"$f":"IF(OR('Enrollment Form'!$AY143=\"Yes\",'Enrollment Form'!$AY143=\"\"),\"-\",IF(OR(AND('Enrollment Form'!$AY143=\"No\",ISERROR(FIND(\"HMO\",VLOOKUP('Enrollment Form'!G143,'Enrollment Form'!H$11:J$1000,3,FALSE),1))=FALSE,COUNTA('Enrollment Form'!$AZ143:$BC143)=4),AND('Enrollment Form'!$AY143=\"No\",ISERROR(FIND(\"HMO\",VLOOKUP('Enrollment Form'!G143,'Enrollment Form'!H$11:J$1000,3,FALSE),1))=FALSE,COUNTA('Enrollment Form'!$BT143:$BW143)=4)),\"Y\",\"N\"))","v":"-"},{"$f":"IF($B136=\"N\",\"\",IF('Enrollment Form'!$B143=\"Subscriber\",\"-\",IF(COUNTA('Enrollment Form'!$BL143,'Enrollment Form'!$BN143)=2,\"Y\",\"N\")))","v":""},{"$f":"IF($B136=\"N\",\"\",IF(OR('Enrollment Form'!$AX143=\"\",'Enrollment Form'!$AX143=\"No\"),\"-\",IF(AND('Enrollment Form'!$AX143=\"Yes\",COUNTA('Enrollment Form'!$CR143)=1),\"Y\",\"N\")))","v":""},{"$f":"IF(OR('Enrollment Form'!$CR143=\"\",'Enrollment Form'!$CR143=\"No\"),\"-\",IF(COUNTA('Enrollment Form'!$CT143:$CU143)=2,\"Y\",\"N\"))","v":"-"},{"$f":"IF($B136=\"N\",\"\",IF(COUNTIF('Enrollment Form'!$DG143:$DP143,\"Other\")=COUNTA('Enrollment Form'!$DK143,'Enrollment Form'!$DH143,'Enrollment Form'!$DN143,'Enrollment Form'!$DQ143),\"Y\",\"N\"))","v":""},{"$f":"IF($B136=\"N\",\"\",IF(OR('Enrollment Form'!B143<>\"Subscriber\",'Enrollment Form'!C143=\"ROC\",COUNTIF('Enrollment Form'!AV143:AW143,\"Yes\")>=1),\"-\",IF(AND('Enrollment Form'!C143=\"Enroll\",COUNTIF('Enrollment Form'!AV143:AW143,\"No\")=2,'Enrollment Form'!AX143=\"\"),\"N\",\"Y\")))","v":""},{"$f":"IF(OR(B136=\"N\",'Enrollment Form'!B143<>\"Subscriber\",'Enrollment Form'!C143=\"ROC\",'Enrollment Form'!O143<>\"Multiple of Salary\"),\"-\",IF(COUNTA('Enrollment Form'!T143:U143)<2,\"N\",\"Y\"))","v":"-"},{"$f":"IF(B136=\"N\",\"\",IF(OR('Enrollment Form'!C143=\"ROC\",'Enrollment Form'!B143<>\"Subscriber\",'Enrollment Form'!O143=\"Waive\",'Enrollment Form'!O143=\"\"),\"-\",IF('Enrollment Form'!P143=\"\",\"N\",\"Y\")))","v":""},{"$f":"IF($B136=\"N\",\"\",IF(AND('Enrollment Form'!$C143=\"ROC\",'Enrollment Form'!$DR143<>\"\"),\"Y\",IF(AND('Enrollment Form'!$C143=\"ROC\",'Enrollment Form'!$DR143=\"\"),\"N\",IF(AND('Enrollment Form'!$C143=\"Enroll\",'Enrollment Form'!$B143=\"Subscriber\",'Enrollment Form'!$CX143=\"No\",'Enrollment Form'!$DR143=\"\"),\"N\",IF(AND('Enrollment Form'!$C143=\"Enroll\",'Enrollment Form'!$B143=\"Subscriber\",'Enrollment Form'!$CX143=\"Yes\"),\"-\",\"Y\")))))","v":""},{"$f":"IF($B136=\"N\",\"\",IF(AND('Enrollment Form'!$C143=\"ROC\",'Enrollment Form'!$DS143<>\"\"),\"Y\",IF(AND('Enrollment Form'!$C143=\"ROC\",'Enrollment Form'!$DS143=\"\"),\"N\",IF(AND('Enrollment Form'!$C143=\"Enroll\",'Enrollment Form'!$B143=\"Subscriber\",'Enrollment Form'!$CX143=\"No\",'Enrollment Form'!$DS143=\"\"),\"N\",IF(AND('Enrollment Form'!$C143=\"Enroll\",'Enrollment Form'!$B143=\"Subscriber\",'Enrollment Form'!$CX143=\"Yes\"),\"-\",\"Y\")))))","v":""},{"$f":"IF('Enrollment Form'!AH143=\"\",\"\",IF(ISERROR(SEARCH(\".\",'Enrollment Form'!AH143,SEARCH(\"@\",'Enrollment Form'!AH143))),\"N\",\"Y\"))","v":""},{"$f":"IF(OR($B136=\"N\",'Enrollment Form'!$G143=\"\"),\"\",IF('Enrollment Form'!$B143<>\"Subscriber\",\"-\",IF(COUNTIF('Enrollment Form'!$AV143:$AW143,\"Yes\")=2,\"N\",\"Y\")))","v":""},{"$f":"IF(OR('Enrollment Form'!$CJ143=\"\",'Enrollment Form'!$CJ143=\"No\"),\"-\",IF(AND('Enrollment Form'!$CJ143=\"Yes\",'Enrollment Form'!$CK143=\"\"),\"N\",\"Y\"))","v":"-"},{"$f":"IF(OR('Enrollment Form'!$CL143=\"\",'Enrollment Form'!$CL143=\"No\"),\"-\",IF(AND('Enrollment Form'!$CL143=\"Yes\",'Enrollment Form'!$CM143=\"\"),\"N\",\"Y\"))","v":"-"},{"$f":"IF(OR('Enrollment Form'!$CN143=\"\",'Enrollment Form'!$CN143=\"No\"),\"-\",IF(AND('Enrollment Form'!$CN143=\"Yes\",'Enrollment Form'!$CO143=\"\"),\"N\",\"Y\"))","v":"-"},{"$f":"IF(OR('Enrollment Form'!$CN143=\"\",'Enrollment Form'!$CN143=\"No\"),\"-\",IF(AND('Enrollment Form'!$CN143=\"Yes\",'Enrollment Form'!$CP143=\"\"),\"N\",\"Y\"))","v":"-"},{"$f":"IF('Enrollment Form'!B143<>\"Subscriber\",\"-\",IF(AND('Enrollment Form'!B143=\"Subscriber\",'Enrollment Form'!C143=\"Enroll\",'Enrollment Form'!AA143=\"\"),\"N\",\"Y\"))","v":"-"},{"$f":"IF(OR('Enrollment Form'!B143=\"Subscriber\",'Enrollment Form'!B143=\"\"),\"-\",IF('Enrollment Form'!BP143=\"\",\"N\",\"Y\"))","v":"-"},{"$f":"IF('Enrollment Form'!B143<>\"Subscriber\",\"-\",IF(AND('Enrollment Form'!B143=\"Subscriber\",'Enrollment Form'!G143=\"\"),\"N\",\"Y\"))","v":"-"},{"$f":"IF('Enrollment Form'!A143=\"\",\"\",IF('Enrollment Form'!B143=\"Subscriber\",\"-\",IF(AND('Enrollment Form'!B143<>\"Subscriber\",'Enrollment Form'!G143='Enrollment Form'!H143),\"N\",\"Y\")))","v":""},0]
[144,{"$f":"IF('Enrollment Form'!$A144<>\"\",\"Y\",\"N\")","v":"N"},{"$f":"IF(AND('Enrollment Form'!$B144=\"\",'Enrollment Form'!$C144<>\"\"),\"N\",IF($B137=\"N\",\"\",\"Y\"))","v":""},{"$f":"IF(OR($B137=\"N\",'Enrollment Form'!G144=\"\"),\"\",IF('Enrollment Form'!$B144<>\"Subscriber\",\"\",IF('Enrollment Form'!$G144='Enrollment Form'!$H144,\"Y\",\"N\")))","v":""},{"$f":"IF($B137=\"N\",\"\",IF(AND(COUNTIFS('Enrollment Form'!$H$11:$H$1000,'Enrollment Form'!$H144,'Enrollment Form'!$B$11:$B$1000,'Enrollment Form'!$B144)>1,'Enrollment Form'!$H144<>\"\"),\"N\",\"Y\"))","v":""},{"$f":"IF($B137=\"N\",\"\",IF(LEN('Enrollment Form'!$Y144)=0,\"\",IF(LEN('Enrollment Form'!$Y144)<>5,\"N\",\"Y\")))","v":""},{"$f":"IF($B137=\"N\",\"\",IF(LEN('Enrollment Form'!$AD144=0),\"\",IF(LEN('Enrollment Form'!$AD144)<>5,\"N\",\"Y\")))","v":""},{"$f":"IF($B137=\"N\",\"\",IF(LEN('Enrollment Form'!$BS144=0),\"\",IF(LEN('Enrollment Form'!$BS144)<>5,\"N\",\"Y\")))","v":""},{"$f":"IF($B137=\"N\",\"\",IF(LEN('Enrollment Form'!$AE144)=0,\"\",IF(LEN('Enrollment Form'!$AE144)<>10,\"N\",\"Y\")))","v":""},{"$f":"IF($B137=\"N\",\"\",IF(LEN('Enrollment Form'!$AF144)=0,\"\",IF(LEN('Enrollment Form'!$AF144)<>10,\"N\",\"Y\")))","v":""},{"$f":"IF('Enrollment Form'!$O144<>\"Graded\",\"-\",IF(AND('Enrollment Form'!$O144=\"Graded\",'Enrollment Form'!$AR144<>\"\"),\"Y\",\"N\"))","v":"-"},{"$f":"IF($B137=\"N\",\"\",IF(OR('Enrollment Form'!$B144<>\"Subscriber\",'Enrollment Form'!$C144=\"ROC\"),\"-\",IF(AND('Enrollment Form'!$B144=\"Subscriber\",'Enrollment Form'!$C144=\"Enroll\",'Enrollment Form'!$AJ144<>\"\"),\"Y\",\"N\")))","v":""},{"$f":"IF($B137=\"N\",\"\",IF(OR('Enrollment Form'!$B144<>\"Subscriber\",'Enrollment Form'!$C144=\"ROC\"),\"-\",IF(AND('Enrollment Form'!$B144=\"Subscriber\",'Enrollment Form'!$C144=\"Enroll\",'Enrollment Form'!$AK144<>\"\"),\"Y\",\"N\")))","v":""},{"$f":"IF($B137=\"N\",\"\",IF(OR('Enrollment Form'!$B144<>\"Subscriber\",'Enrollment Form'!$C144=\"ROC\"),\"-\",IF(AND('Enrollment Form'!$B144=\"Subscriber\",'Enrollment Form'!$C144=\"Enroll\",'Enrollment Form'!$AL144<>\"\"),\"Y\",\"N\")))","v":""},{"$f":"IF($B137=\"N\",\"\",IF(OR('Enrollment Form'!$B144<>\"Subscriber\",'Enrollment Form'!$C144=\"ROC\"),\"-\",IF(AND('Enrollment Form'!$B144=\"Subscriber\",'Enrollment Form'!$C144=\"Enroll\",'Enrollment Form'!$AP144<>\"\"),\"Y\",\"N\")))","v":""},{"$f":"IF($B137=\"N\",\"\",IF(OR('Enrollment Form'!$B144<>\"Subscriber\",'Enrollment Form'!$C144=\"ROC\"),\"-\",IF(AND('Enrollment Form'!$B144=\"Subscriber\",'Enrollment Form'!$C144=\"Enroll\",'Enrollment Form'!$AQ144<>\"\"),\"Y\",\"N\")))","v":""},{"$f":"IF($B137=\"N\",\"\",IF(OR('Enrollment Form'!$B144<>\"Subscriber\",'Enrollment Form'!$C144=\"ROC\"),\"-\",IF(AND('Enrollment Form'!$B144=\"Subscriber\",'Enrollment Form'!$C144=\"Enroll\",'Enrollment Form'!$AS144<>\"\"),\"Y\",\"N\")))","v":""},{"$f":"IF($B137=\"N\",\"\",IF($Q137=\"-\",\"-\",IF(AND($Q137=\"Y\",'Enrollment Form'!$AS144=\"No\"),\"-\",IF(AND($Q137=\"Y\",'Enrollment Form'!$AS144=\"Yes\",'Enrollment Form'!$AT144<>\"\"),\"Y\",\"N\"))))","v":""},{"$f":"IF($B137=\"N\",\"\",IF(OR('Enrollment Form'!$B144<>\"Subscriber\",'Enrollment Form'!$C144=\"ROC\"),\"-\",IF(AND('Enrollment Form'!$B144=\"Subscriber\",'Enrollment Form'!$C144=\"Enroll\",'Enrollment Form'!$CV144<>\"\"),\"Y\",\"N\")))","v":""},{"$f":"IF($B137=\"N\",\"\",IF($S137=\"-\",\"-\",IF(AND($S137=\"Y\",'Enrollment Form'!$CV144=\"No\"),\"-\",IF(AND($S137=\"Y\",'Enrollment Form'!$CV144=\"Yes\",'Enrollment Form'!$CW144<>\"\"),\"Y\",\"N\"))))","v":""},{"$f":"IF(OR('Enrollment Form'!$AY144=\"Yes\",'Enrollment Form'!$AY144=\"\"),\"-\",IF(OR(AND('Enrollment Form'!$AY144=\"No\",ISERROR(FIND(\"HMO\",VLOOKUP('Enrollment Form'!G144,'Enrollment Form'!H$11:J$1000,3,FALSE),1))=FALSE,COUNTA('Enrollment Form'!$AZ144:$BC144)=4),AND('Enrollment Form'!$AY144=\"No\",ISERROR(FIND(\"HMO\",VLOOKUP('Enrollment Form'!G144,'Enrollment Form'!H$11:J$1000,3,FALSE),1))=FALSE,COUNTA('Enrollment Form'!$BT144:$BW144)=4)),\"Y\",\"N\"))","v":"-"},{"$f":"IF($B137=\"N\",\"\",IF('Enrollment Form'!$B144=\"Subscriber\",\"-\",IF(COUNTA('Enrollment Form'!$BL144,'Enrollment Form'!$BN144)=2,\"Y\",\"N\")))","v":""},{"$f":"IF($B137=\"N\",\"\",IF(OR('Enrollment Form'!$AX144=\"\",'Enrollment Form'!$AX144=\"No\"),\"-\",IF(AND('Enrollment Form'!$AX144=\"Yes\",COUNTA('Enrollment Form'!$CR144)=1),\"Y\",\"N\")))","v":""},{"$f":"IF(OR('Enrollment Form'!$CR144=\"\",'Enrollment Form'!$CR144=\"No\"),\"-\",IF(COUNTA('Enrollment Form'!$CT144:$CU144)=2,\"Y\",\"N\"))","v":"-"},{"$f":"IF($B137=\"N\",\"\",IF(COUNTIF('Enrollment Form'!$DG144:$DP144,\"Other\")=COUNTA('Enrollment Form'!$DK144,'Enrollment Form'!$DH144,'Enrollment Form'!$DN144,'Enrollment Form'!$DQ144),\"Y\",\"N\"))","v":""},{"$f":"IF($B137=\"N\",\"\",IF(OR('Enrollment Form'!B144<>\"Subscriber\",'Enrollment Form'!C144=\"ROC\",COUNTIF('Enrollment Form'!AV144:AW144,\"Yes\")>=1),\"-\",IF(AND('Enrollment Form'!C144=\"Enroll\",COUNTIF('Enrollment Form'!AV144:AW144,\"No\")=2,'Enrollment Form'!AX144=\"\"),\"N\",\"Y\")))","v":""},{"$f":"IF(OR(B137=\"N\",'Enrollment Form'!B144<>\"Subscriber\",'Enrollment Form'!C144=\"ROC\",'Enrollment Form'!O144<>\"Multiple of Salary\"),\"-\",IF(COUNTA('Enrollment Form'!T144:U144)<2,\"N\",\"Y\"))","v":"-"},{"$f":"IF(B137=\"N\",\"\",IF(OR('Enrollment Form'!C144=\"ROC\",'Enrollment Form'!B144<>\"Subscriber\",'Enrollment Form'!O144=\"Waive\",'Enrollment Form'!O144=\"\"),\"-\",IF('Enrollment Form'!P144=\"\",\"N\",\"Y\")))","v":""},{"$f":"IF($B137=\"N\",\"\",IF(AND('Enrollment Form'!$C144=\"ROC\",'Enrollment Form'!$DR144<>\"\"),\"Y\",IF(AND('Enrollment Form'!$C144=\"ROC\",'Enrollment Form'!$DR144=\"\"),\"N\",IF(AND('Enrollment Form'!$C144=\"Enroll\",'Enrollment Form'!$B144=\"Subscriber\",'Enrollment Form'!$CX144=\"No\",'Enrollment Form'!$DR144=\"\"),\"N\",IF(AND('Enrollment Form'!$C144=\"Enroll\",'Enrollment Form'!$B144=\"Subscriber\",'Enrollment Form'!$CX144=\"Yes\"),\"-\",\"Y\")))))","v":""},{"$f":"IF($B137=\"N\",\"\",IF(AND('Enrollment Form'!$C144=\"ROC\",'Enrollment Form'!$DS144<>\"\"),\"Y\",IF(AND('Enrollment Form'!$C144=\"ROC\",'Enrollment Form'!$DS144=\"\"),\"N\",IF(AND('Enrollment Form'!$C144=\"Enroll\",'Enrollment Form'!$B144=\"Subscriber\",'Enrollment Form'!$CX144=\"No\",'Enrollment Form'!$DS144=\"\"),\"N\",IF(AND('Enrollment Form'!$C144=\"Enroll\",'Enrollment Form'!$B144=\"Subscriber\",'Enrollment Form'!$CX144=\"Yes\"),\"-\",\"Y\")))))","v":""},{"$f":"IF('Enrollment Form'!AH144=\"\",\"\",IF(ISERROR(SEARCH(\".\",'Enrollment Form'!AH144,SEARCH(\"@\",'Enrollment Form'!AH144))),\"N\",\"Y\"))","v":""},{"$f":"IF(OR($B137=\"N\",'Enrollment Form'!$G144=\"\"),\"\",IF('Enrollment Form'!$B144<>\"Subscriber\",\"-\",IF(COUNTIF('Enrollment Form'!$AV144:$AW144,\"Yes\")=2,\"N\",\"Y\")))","v":""},{"$f":"IF(OR('Enrollment Form'!$CJ144=\"\",'Enrollment Form'!$CJ144=\"No\"),\"-\",IF(AND('Enrollment Form'!$CJ144=\"Yes\",'Enrollment Form'!$CK144=\"\"),\"N\",\"Y\"))","v":"-"},{"$f":"IF(OR('Enrollment Form'!$CL144=\"\",'Enrollment Form'!$CL144=\"No\"),\"-\",IF(AND('Enrollment Form'!$CL144=\"Yes\",'Enrollment Form'!$CM144=\"\"),\"N\",\"Y\"))","v":"-"},{"$f":"IF(OR('Enrollment Form'!$CN144=\"\",'Enrollment Form'!$CN144=\"No\"),\"-\",IF(AND('Enrollment Form'!$CN144=\"Yes\",'Enrollment Form'!$CO144=\"\"),\"N\",\"Y\"))","v":"-"},{"$f":"IF(OR('Enrollment Form'!$CN144=\"\",'Enrollment Form'!$CN144=\"No\"),\"-\",IF(AND('Enrollment Form'!$CN144=\"Yes\",'Enrollment Form'!$CP144=\"\"),\"N\",\"Y\"))","v":"-"},{"$f":"IF('Enrollment Form'!B144<>\"Subscriber\",\"-\",IF(AND('Enrollment Form'!B144=\"Subscriber\",'Enrollment Form'!C144=\"Enroll\",'Enrollment Form'!AA144=\"\"),\"N\",\"Y\"))","v":"-"},{"$f":"IF(OR('Enrollment Form'!B144=\"Subscriber\",'Enrollment Form'!B144=\"\"),\"-\",IF('Enrollment Form'!BP144=\"\",\"N\",\"Y\"))","v":"-"},{"$f":"IF('Enrollment Form'!B144<>\"Subscriber\",\"-\",IF(AND('Enrollment Form'!B144=\"Subscriber\",'Enrollment Form'!G144=\"\"),\"N\",\"Y\"))","v":"-"},{"$f":"IF('Enrollment Form'!A144=\"\",\"\",IF('Enrollment Form'!B144=\"Subscriber\",\"-\",IF(AND('Enrollment Form'!B144<>\"Subscriber\",'Enrollment Form'!G144='Enrollment Form'!H144),\"N\",\"Y\")))","v":""},0]
[145,{"$f":"IF('Enrollment Form'!$A145<>\"\",\"Y\",\"N\")","v":"N"},{"$f":"IF(AND('Enrollment Form'!$B145=\"\",'Enrollment Form'!$C145<>\"\"),\"N\",IF($B138=\"N\",\"\",\"Y\"))","v":""},{"$f":"IF(OR($B138=\"N\",'Enrollment Form'!G145=\"\"),\"\",IF('Enrollment Form'!$B145<>\"Subscriber\",\"\",IF('Enrollment Form'!$G145='Enrollment Form'!$H145,\"Y\",\"N\")))","v":""},{"$f":"IF($B138=\"N\",\"\",IF(AND(COUNTIFS('Enrollment Form'!$H$11:$H$1000,'Enrollment Form'!$H145,'Enrollment Form'!$B$11:$B$1000,'Enrollment Form'!$B145)>1,'Enrollment Form'!$H145<>\"\"),\"N\",\"Y\"))","v":""},{"$f":"IF($B138=\"N\",\"\",IF(LEN('Enrollment Form'!$Y145)=0,\"\",IF(LEN('Enrollment Form'!$Y145)<>5,\"N\",\"Y\")))","v":""},{"$f":"IF($B138=\"N\",\"\",IF(LEN('Enrollment Form'!$AD145=0),\"\",IF(LEN('Enrollment Form'!$AD145)<>5,\"N\",\"Y\")))","v":""},{"$f":"IF($B138=\"N\",\"\",IF(LEN('Enrollment Form'!$BS145=0),\"\",IF(LEN('Enrollment Form'!$BS145)<>5,\"N\",\"Y\")))","v":""},{"$f":"IF($B138=\"N\",\"\",IF(LEN('Enrollment Form'!$AE145)=0,\"\",IF(LEN('Enrollment Form'!$AE145)<>10,\"N\",\"Y\")))","v":""},{"$f":"IF($B138=\"N\",\"\",IF(LEN('Enrollment Form'!$AF145)=0,\"\",IF(LEN('Enrollment Form'!$AF145)<>10,\"N\",\"Y\")))","v":""},{"$f":"IF('Enrollment Form'!$O145<>\"Graded\",\"-\",IF(AND('Enrollment Form'!$O145=\"Graded\",'Enrollment Form'!$AR145<>\"\"),\"Y\",\"N\"))","v":"-"},{"$f":"IF($B138=\"N\",\"\",IF(OR('Enrollment Form'!$B145<>\"Subscriber\",'Enrollment Form'!$C145=\"ROC\"),\"-\",IF(AND('Enrollment Form'!$B145=\"Subscriber\",'Enrollment Form'!$C145=\"Enroll\",'Enrollment Form'!$AJ145<>\"\"),\"Y\",\"N\")))","v":""},{"$f":"IF($B138=\"N\",\"\",IF(OR('Enrollment Form'!$B145<>\"Subscriber\",'Enrollment Form'!$C145=\"ROC\"),\"-\",IF(AND('Enrollment Form'!$B145=\"Subscriber\",'Enrollment Form'!$C145=\"Enroll\",'Enrollment Form'!$AK145<>\"\"),\"Y\",\"N\")))","v":""},{"$f":"IF($B138=\"N\",\"\",IF(OR('Enrollment Form'!$B145<>\"Subscriber\",'Enrollment Form'!$C145=\"ROC\"),\"-\",IF(AND('Enrollment Form'!$B145=\"Subscriber\",'Enrollment Form'!$C145=\"Enroll\",'Enrollment Form'!$AL145<>\"\"),\"Y\",\"N\")))","v":""},{"$f":"IF($B138=\"N\",\"\",IF(OR('Enrollment Form'!$B145<>\"Subscriber\",'Enrollment Form'!$C145=\"ROC\"),\"-\",IF(AND('Enrollment Form'!$B145=\"Subscriber\",'Enrollment Form'!$C145=\"Enroll\",'Enrollment Form'!$AP145<>\"\"),\"Y\",\"N\")))","v":""},{"$f":"IF($B138=\"N\",\"\",IF(OR('Enrollment Form'!$B145<>\"Subscriber\",'Enrollment Form'!$C145=\"ROC\"),\"-\",IF(AND('Enrollment Form'!$B145=\"Subscriber\",'Enrollment Form'!$C145=\"Enroll\",'Enrollment Form'!$AQ145<>\"\"),\"Y\",\"N\")))","v":""},{"$f":"IF($B138=\"N\",\"\",IF(OR('Enrollment Form'!$B145<>\"Subscriber\",'Enrollment Form'!$C145=\"ROC\"),\"-\",IF(AND('Enrollment Form'!$B145=\"Subscriber\",'Enrollment Form'!$C145=\"Enroll\",'Enrollment Form'!$AS145<>\"\"),\"Y\",\"N\")))","v":""},{"$f":"IF($B138=\"N\",\"\",IF($Q138=\"-\",\"-\",IF(AND($Q138=\"Y\",'Enrollment Form'!$AS145=\"No\"),\"-\",IF(AND($Q138=\"Y\",'Enrollment Form'!$AS145=\"Yes\",'Enrollment Form'!$AT145<>\"\"),\"Y\",\"N\"))))","v":""},{"$f":"IF($B138=\"N\",\"\",IF(OR('Enrollment Form'!$B145<>\"Subscriber\",'Enrollment Form'!$C145=\"ROC\"),\"-\",IF(AND('Enrollment Form'!$B145=\"Subscriber\",'Enrollment Form'!$C145=\"Enroll\",'Enrollment Form'!$CV145<>\"\"),\"Y\",\"N\")))","v":""},{"$f":"IF($B138=\"N\",\"\",IF($S138=\"-\",\"-\",IF(AND($S138=\"Y\",'Enrollment Form'!$CV145=\"No\"),\"-\",IF(AND($S138=\"Y\",'Enrollment Form'!$CV145=\"Yes\",'Enrollment Form'!$CW145<>\"\"),\"Y\",\"N\"))))","v":""},{"$f":"IF(OR('Enrollment Form'!$AY145=\"Yes\",'Enrollment Form'!$AY145=\"\"),\"-\",IF(OR(AND('Enrollment Form'!$AY145=\"No\",ISERROR(FIND(\"HMO\",VLOOKUP('Enrollment Form'!G145,'Enrollment Form'!H$11:J$1000,3,FALSE),1))=FALSE,COUNTA('Enrollment Form'!$AZ145:$BC145)=4),AND('Enrollment Form'!$AY145=\"No\",ISERROR(FIND(\"HMO\",VLOOKUP('Enrollment Form'!G145,'Enrollment Form'!H$11:J$1000,3,FALSE),1))=FALSE,COUNTA('Enrollment Form'!$BT145:$BW145)=4)),\"Y\",\"N\"))","v":"-"},{"$f":"IF($B138=\"N\",\"\",IF('Enrollment Form'!$B145=\"Subscriber\",\"-\",IF(COUNTA('Enrollment Form'!$BL145,'Enrollment Form'!$BN145)=2,\"Y\",\"N\")))","v":""},{"$f":"IF($B138=\"N\",\"\",IF(OR('Enrollment Form'!$AX145=\"\",'Enrollment Form'!$AX145=\"No\"),\"-\",IF(AND('Enrollment Form'!$AX145=\"Yes\",COUNTA('Enrollment Form'!$CR145)=1),\"Y\",\"N\")))","v":""},{"$f":"IF(OR('Enrollment Form'!$CR145=\"\",'Enrollment Form'!$CR145=\"No\"),\"-\",IF(COUNTA('Enrollment Form'!$CT145:$CU145)=2,\"Y\",\"N\"))","v":"-"},{"$f":"IF($B138=\"N\",\"\",IF(COUNTIF('Enrollment Form'!$DG145:$DP145,\"Other\")=COUNTA('Enrollment Form'!$DK145,'Enrollment Form'!$DH145,'Enrollment Form'!$DN145,'Enrollment Form'!$DQ145),\"Y\",\"N\"))","v":""},{"$f":"IF($B138=\"N\",\"\",IF(OR('Enrollment Form'!B145<>\"Subscriber\",'Enrollment Form'!C145=\"ROC\",COUNTIF('Enrollment Form'!AV145:AW145,\"Yes\")>=1),\"-\",IF(AND('Enrollment Form'!C145=\"Enroll\",COUNTIF('Enrollment Form'!AV145:AW145,\"No\")=2,'Enrollment Form'!AX145=\"\"),\"N\",\"Y\")))","v":""},{"$f":"IF(OR(B138=\"N\",'Enrollment Form'!B145<>\"Subscriber\",'Enrollment Form'!C145=\"ROC\",'Enrollment Form'!O145<>\"Multiple of Salary\"),\"-\",IF(COUNTA('Enrollment Form'!T145:U145)<2,\"N\",\"Y\"))","v":"-"},{"$f":"IF(B138=\"N\",\"\",IF(OR('Enrollment Form'!C145=\"ROC\",'Enrollment Form'!B145<>\"Subscriber\",'Enrollment Form'!O145=\"Waive\",'Enrollment Form'!O145=\"\"),\"-\",IF('Enrollment Form'!P145=\"\",\"N\",\"Y\")))","v":""},{"$f":"IF($B138=\"N\",\"\",IF(AND('Enrollment Form'!$C145=\"ROC\",'Enrollment Form'!$DR145<>\"\"),\"Y\",IF(AND('Enrollment Form'!$C145=\"ROC\",'Enrollment Form'!$DR145=\"\"),\"N\",IF(AND('Enrollment Form'!$C145=\"Enroll\",'Enrollment Form'!$B145=\"Subscriber\",'Enrollment Form'!$CX145=\"No\",'Enrollment Form'!$DR145=\"\"),\"N\",IF(AND('Enrollment Form'!$C145=\"Enroll\",'Enrollment Form'!$B145=\"Subscriber\",'Enrollment Form'!$CX145=\"Yes\"),\"-\",\"Y\")))))","v":""},{"$f":"IF($B138=\"N\",\"\",IF(AND('Enrollment Form'!$C145=\"ROC\",'Enrollment Form'!$DS145<>\"\"),\"Y\",IF(AND('Enrollment Form'!$C145=\"ROC\",'Enrollment Form'!$DS145=\"\"),\"N\",IF(AND('Enrollment Form'!$C145=\"Enroll\",'Enrollment Form'!$B145=\"Subscriber\",'Enrollment Form'!$CX145=\"No\",'Enrollment Form'!$DS145=\"\"),\"N\",IF(AND('Enrollment Form'!$C145=\"Enroll\",'Enrollment Form'!$B145=\"Subscriber\",'Enrollment Form'!$CX145=\"Yes\"),\"-\",\"Y\")))))","v":""},{"$f":"IF('Enrollment Form'!AH145=\"\",\"\",IF(ISERROR(SEARCH(\".\",'Enrollment Form'!AH145,SEARCH(\"@\",'Enrollment Form'!AH145))),\"N\",\"Y\"))","v":""},{"$f":"IF(OR($B138=\"N\",'Enrollment Form'!$G145=\"\"),\"\",IF('Enrollment Form'!$B145<>\"Subscriber\",\"-\",IF(COUNTIF('Enrollment Form'!$AV145:$AW145,\"Yes\")=2,\"N\",\"Y\")))","v":""},{"$f":"IF(OR('Enrollment Form'!$CJ145=\"\",'Enrollment Form'!$CJ145=\"No\"),\"-\",IF(AND('Enrollment Form'!$CJ145=\"Yes\",'Enrollment Form'!$CK145=\"\"),\"N\",\"Y\"))","v":"-"},{"$f":"IF(OR('Enrollment Form'!$CL145=\"\",'Enrollment Form'!$CL145=\"No\"),\"-\",IF(AND('Enrollment Form'!$CL145=\"Yes\",'Enrollment Form'!$CM145=\"\"),\"N\",\"Y\"))","v":"-"},{"$f":"IF(OR('Enrollment Form'!$CN145=\"\",'Enrollment Form'!$CN145=\"No\"),\"-\",IF(AND('Enrollment Form'!$CN145=\"Yes\",'Enrollment Form'!$CO145=\"\"),\"N\",\"Y\"))","v":"-"},{"$f":"IF(OR('Enrollment Form'!$CN145=\"\",'Enrollment Form'!$CN145=\"No\"),\"-\",IF(AND('Enrollment Form'!$CN145=\"Yes\",'Enrollment Form'!$CP145=\"\"),\"N\",\"Y\"))","v":"-"},{"$f":"IF('Enrollment Form'!B145<>\"Subscriber\",\"-\",IF(AND('Enrollment Form'!B145=\"Subscriber\",'Enrollment Form'!C145=\"Enroll\",'Enrollment Form'!AA145=\"\"),\"N\",\"Y\"))","v":"-"},{"$f":"IF(OR('Enrollment Form'!B145=\"Subscriber\",'Enrollment Form'!B145=\"\"),\"-\",IF('Enrollment Form'!BP145=\"\",\"N\",\"Y\"))","v":"-"},{"$f":"IF('Enrollment Form'!B145<>\"Subscriber\",\"-\",IF(AND('Enrollment Form'!B145=\"Subscriber\",'Enrollment Form'!G145=\"\"),\"N\",\"Y\"))","v":"-"},{"$f":"IF('Enrollment Form'!A145=\"\",\"\",IF('Enrollment Form'!B145=\"Subscriber\",\"-\",IF(AND('Enrollment Form'!B145<>\"Subscriber\",'Enrollment Form'!G145='Enrollment Form'!H145),\"N\",\"Y\")))","v":""},0]
[146,{"$f":"IF('Enrollment Form'!$A146<>\"\",\"Y\",\"N\")","v":"N"},{"$f":"IF(AND('Enrollment Form'!$B146=\"\",'Enrollment Form'!$C146<>\"\"),\"N\",IF($B139=\"N\",\"\",\"Y\"))","v":""},{"$f":"IF(OR($B139=\"N\",'Enrollment Form'!G146=\"\"),\"\",IF('Enrollment Form'!$B146<>\"Subscriber\",\"\",IF('Enrollment Form'!$G146='Enrollment Form'!$H146,\"Y\",\"N\")))","v":""},{"$f":"IF($B139=\"N\",\"\",IF(AND(COUNTIFS('Enrollment Form'!$H$11:$H$1000,'Enrollment Form'!$H146,'Enrollment Form'!$B$11:$B$1000,'Enrollment Form'!$B146)>1,'Enrollment Form'!$H146<>\"\"),\"N\",\"Y\"))","v":""},{"$f":"IF($B139=\"N\",\"\",IF(LEN('Enrollment Form'!$Y146)=0,\"\",IF(LEN('Enrollment Form'!$Y146)<>5,\"N\",\"Y\")))","v":""},{"$f":"IF($B139=\"N\",\"\",IF(LEN('Enrollment Form'!$AD146=0),\"\",IF(LEN('Enrollment Form'!$AD146)<>5,\"N\",\"Y\")))","v":""},{"$f":"IF($B139=\"N\",\"\",IF(LEN('Enrollment Form'!$BS146=0),\"\",IF(LEN('Enrollment Form'!$BS146)<>5,\"N\",\"Y\")))","v":""},{"$f":"IF($B139=\"N\",\"\",IF(LEN('Enrollment Form'!$AE146)=0,\"\",IF(LEN('Enrollment Form'!$AE146)<>10,\"N\",\"Y\")))","v":""},{"$f":"IF($B139=\"N\",\"\",IF(LEN('Enrollment Form'!$AF146)=0,\"\",IF(LEN('Enrollment Form'!$AF146)<>10,\"N\",\"Y\")))","v":""},{"$f":"IF('Enrollment Form'!$O146<>\"Graded\",\"-\",IF(AND('Enrollment Form'!$O146=\"Graded\",'Enrollment Form'!$AR146<>\"\"),\"Y\",\"N\"))","v":"-"},{"$f":"IF($B139=\"N\",\"\",IF(OR('Enrollment Form'!$B146<>\"Subscriber\",'Enrollment Form'!$C146=\"ROC\"),\"-\",IF(AND('Enrollment Form'!$B146=\"Subscriber\",'Enrollment Form'!$C146=\"Enroll\",'Enrollment Form'!$AJ146<>\"\"),\"Y\",\"N\")))","v":""},{"$f":"IF($B139=\"N\",\"\",IF(OR('Enrollment Form'!$B146<>\"Subscriber\",'Enrollment Form'!$C146=\"ROC\"),\"-\",IF(AND('Enrollment Form'!$B146=\"Subscriber\",'Enrollment Form'!$C146=\"Enroll\",'Enrollment Form'!$AK146<>\"\"),\"Y\",\"N\")))","v":""},{"$f":"IF($B139=\"N\",\"\",IF(OR('Enrollment Form'!$B146<>\"Subscriber\",'Enrollment Form'!$C146=\"ROC\"),\"-\",IF(AND('Enrollment Form'!$B146=\"Subscriber\",'Enrollment Form'!$C146=\"Enroll\",'Enrollment Form'!$AL146<>\"\"),\"Y\",\"N\")))","v":""},{"$f":"IF($B139=\"N\",\"\",IF(OR('Enrollment Form'!$B146<>\"Subscriber\",'Enrollment Form'!$C146=\"ROC\"),\"-\",IF(AND('Enrollment Form'!$B146=\"Subscriber\",'Enrollment Form'!$C146=\"Enroll\",'Enrollment Form'!$AP146<>\"\"),\"Y\",\"N\")))","v":""},{"$f":"IF($B139=\"N\",\"\",IF(OR('Enrollment Form'!$B146<>\"Subscriber\",'Enrollment Form'!$C146=\"ROC\"),\"-\",IF(AND('Enrollment Form'!$B146=\"Subscriber\",'Enrollment Form'!$C146=\"Enroll\",'Enrollment Form'!$AQ146<>\"\"),\"Y\",\"N\")))","v":""},{"$f":"IF($B139=\"N\",\"\",IF(OR('Enrollment Form'!$B146<>\"Subscriber\",'Enrollment Form'!$C146=\"ROC\"),\"-\",IF(AND('Enrollment Form'!$B146=\"Subscriber\",'Enrollment Form'!$C146=\"Enroll\",'Enrollment Form'!$AS146<>\"\"),\"Y\",\"N\")))","v":""},{"$f":"IF($B139=\"N\",\"\",IF($Q139=\"-\",\"-\",IF(AND($Q139=\"Y\",'Enrollment Form'!$AS146=\"No\"),\"-\",IF(AND($Q139=\"Y\",'Enrollment Form'!$AS146=\"Yes\",'Enrollment Form'!$AT146<>\"\"),\"Y\",\"N\"))))","v":""},{"$f":"IF($B139=\"N\",\"\",IF(OR('Enrollment Form'!$B146<>\"Subscriber\",'Enrollment Form'!$C146=\"ROC\"),\"-\",IF(AND('Enrollment Form'!$B146=\"Subscriber\",'Enrollment Form'!$C146=\"Enroll\",'Enrollment Form'!$CV146<>\"\"),\"Y\",\"N\")))","v":""},{"$f":"IF($B139=\"N\",\"\",IF($S139=\"-\",\"-\",IF(AND($S139=\"Y\",'Enrollment Form'!$CV146=\"No\"),\"-\",IF(AND($S139=\"Y\",'Enrollment Form'!$CV146=\"Yes\",'Enrollment Form'!$CW146<>\"\"),\"Y\",\"N\"))))","v":""},{"$f":"IF(OR('Enrollment Form'!$AY146=\"Yes\",'Enrollment Form'!$AY146=\"\"),\"-\",IF(OR(AND('Enrollment Form'!$AY146=\"No\",ISERROR(FIND(\"HMO\",VLOOKUP('Enrollment Form'!G146,'Enrollment Form'!H$11:J$1000,3,FALSE),1))=FALSE,COUNTA('Enrollment Form'!$AZ146:$BC146)=4),AND('Enrollment Form'!$AY146=\"No\",ISERROR(FIND(\"HMO\",VLOOKUP('Enrollment Form'!G146,'Enrollment Form'!H$11:J$1000,3,FALSE),1))=FALSE,COUNTA('Enrollment Form'!$BT146:$BW146)=4)),\"Y\",\"N\"))","v":"-"},{"$f":"IF($B139=\"N\",\"\",IF('Enrollment Form'!$B146=\"Subscriber\",\"-\",IF(COUNTA('Enrollment Form'!$BL146,'Enrollment Form'!$BN146)=2,\"Y\",\"N\")))","v":""},{"$f":"IF($B139=\"N\",\"\",IF(OR('Enrollment Form'!$AX146=\"\",'Enrollment Form'!$AX146=\"No\"),\"-\",IF(AND('Enrollment Form'!$AX146=\"Yes\",COUNTA('Enrollment Form'!$CR146)=1),\"Y\",\"N\")))","v":""},{"$f":"IF(OR('Enrollment Form'!$CR146=\"\",'Enrollment Form'!$CR146=\"No\"),\"-\",IF(COUNTA('Enrollment Form'!$CT146:$CU146)=2,\"Y\",\"N\"))","v":"-"},{"$f":"IF($B139=\"N\",\"\",IF(COUNTIF('Enrollment Form'!$DG146:$DP146,\"Other\")=COUNTA('Enrollment Form'!$DK146,'Enrollment Form'!$DH146,'Enrollment Form'!$DN146,'Enrollment Form'!$DQ146),\"Y\",\"N\"))","v":""},{"$f":"IF($B139=\"N\",\"\",IF(OR('Enrollment Form'!B146<>\"Subscriber\",'Enrollment Form'!C146=\"ROC\",COUNTIF('Enrollment Form'!AV146:AW146,\"Yes\")>=1),\"-\",IF(AND('Enrollment Form'!C146=\"Enroll\",COUNTIF('Enrollment Form'!AV146:AW146,\"No\")=2,'Enrollment Form'!AX146=\"\"),\"N\",\"Y\")))","v":""},{"$f":"IF(OR(B139=\"N\",'Enrollment Form'!B146<>\"Subscriber\",'Enrollment Form'!C146=\"ROC\",'Enrollment Form'!O146<>\"Multiple of Salary\"),\"-\",IF(COUNTA('Enrollment Form'!T146:U146)<2,\"N\",\"Y\"))","v":"-"},{"$f":"IF(B139=\"N\",\"\",IF(OR('Enrollment Form'!C146=\"ROC\",'Enrollment Form'!B146<>\"Subscriber\",'Enrollment Form'!O146=\"Waive\",'Enrollment Form'!O146=\"\"),\"-\",IF('Enrollment Form'!P146=\"\",\"N\",\"Y\")))","v":""},{"$f":"IF($B139=\"N\",\"\",IF(AND('Enrollment Form'!$C146=\"ROC\",'Enrollment Form'!$DR146<>\"\"),\"Y\",IF(AND('Enrollment Form'!$C146=\"ROC\",'Enrollment Form'!$DR146=\"\"),\"N\",IF(AND('Enrollment Form'!$C146=\"Enroll\",'Enrollment Form'!$B146=\"Subscriber\",'Enrollment Form'!$CX146=\"No\",'Enrollment Form'!$DR146=\"\"),\"N\",IF(AND('Enrollment Form'!$C146=\"Enroll\",'Enrollment Form'!$B146=\"Subscriber\",'Enrollment Form'!$CX146=\"Yes\"),\"-\",\"Y\")))))","v":""},{"$f":"IF($B139=\"N\",\"\",IF(AND('Enrollment Form'!$C146=\"ROC\",'Enrollment Form'!$DS146<>\"\"),\"Y\",IF(AND('Enrollment Form'!$C146=\"ROC\",'Enrollment Form'!$DS146=\"\"),\"N\",IF(AND('Enrollment Form'!$C146=\"Enroll\",'Enrollment Form'!$B146=\"Subscriber\",'Enrollment Form'!$CX146=\"No\",'Enrollment Form'!$DS146=\"\"),\"N\",IF(AND('Enrollment Form'!$C146=\"Enroll\",'Enrollment Form'!$B146=\"Subscriber\",'Enrollment Form'!$CX146=\"Yes\"),\"-\",\"Y\")))))","v":""},{"$f":"IF('Enrollment Form'!AH146=\"\",\"\",IF(ISERROR(SEARCH(\".\",'Enrollment Form'!AH146,SEARCH(\"@\",'Enrollment Form'!AH146))),\"N\",\"Y\"))","v":""},{"$f":"IF(OR($B139=\"N\",'Enrollment Form'!$G146=\"\"),\"\",IF('Enrollment Form'!$B146<>\"Subscriber\",\"-\",IF(COUNTIF('Enrollment Form'!$AV146:$AW146,\"Yes\")=2,\"N\",\"Y\")))","v":""},{"$f":"IF(OR('Enrollment Form'!$CJ146=\"\",'Enrollment Form'!$CJ146=\"No\"),\"-\",IF(AND('Enrollment Form'!$CJ146=\"Yes\",'Enrollment Form'!$CK146=\"\"),\"N\",\"Y\"))","v":"-"},{"$f":"IF(OR('Enrollment Form'!$CL146=\"\",'Enrollment Form'!$CL146=\"No\"),\"-\",IF(AND('Enrollment Form'!$CL146=\"Yes\",'Enrollment Form'!$CM146=\"\"),\"N\",\"Y\"))","v":"-"},{"$f":"IF(OR('Enrollment Form'!$CN146=\"\",'Enrollment Form'!$CN146=\"No\"),\"-\",IF(AND('Enrollment Form'!$CN146=\"Yes\",'Enrollment Form'!$CO146=\"\"),\"N\",\"Y\"))","v":"-"},{"$f":"IF(OR('Enrollment Form'!$CN146=\"\",'Enrollment Form'!$CN146=\"No\"),\"-\",IF(AND('Enrollment Form'!$CN146=\"Yes\",'Enrollment Form'!$CP146=\"\"),\"N\",\"Y\"))","v":"-"},{"$f":"IF('Enrollment Form'!B146<>\"Subscriber\",\"-\",IF(AND('Enrollment Form'!B146=\"Subscriber\",'Enrollment Form'!C146=\"Enroll\",'Enrollment Form'!AA146=\"\"),\"N\",\"Y\"))","v":"-"},{"$f":"IF(OR('Enrollment Form'!B146=\"Subscriber\",'Enrollment Form'!B146=\"\"),\"-\",IF('Enrollment Form'!BP146=\"\",\"N\",\"Y\"))","v":"-"},{"$f":"IF('Enrollment Form'!B146<>\"Subscriber\",\"-\",IF(AND('Enrollment Form'!B146=\"Subscriber\",'Enrollment Form'!G146=\"\"),\"N\",\"Y\"))","v":"-"},{"$f":"IF('Enrollment Form'!A146=\"\",\"\",IF('Enrollment Form'!B146=\"Subscriber\",\"-\",IF(AND('Enrollment Form'!B146<>\"Subscriber\",'Enrollment Form'!G146='Enrollment Form'!H146),\"N\",\"Y\")))","v":""},0]
[147,{"$f":"IF('Enrollment Form'!$A147<>\"\",\"Y\",\"N\")","v":"N"},{"$f":"IF(AND('Enrollment Form'!$B147=\"\",'Enrollment Form'!$C147<>\"\"),\"N\",IF($B140=\"N\",\"\",\"Y\"))","v":""},{"$f":"IF(OR($B140=\"N\",'Enrollment Form'!G147=\"\"),\"\",IF('Enrollment Form'!$B147<>\"Subscriber\",\"\",IF('Enrollment Form'!$G147='Enrollment Form'!$H147,\"Y\",\"N\")))","v":""},{"$f":"IF($B140=\"N\",\"\",IF(AND(COUNTIFS('Enrollment Form'!$H$11:$H$1000,'Enrollment Form'!$H147,'Enrollment Form'!$B$11:$B$1000,'Enrollment Form'!$B147)>1,'Enrollment Form'!$H147<>\"\"),\"N\",\"Y\"))","v":""},{"$f":"IF($B140=\"N\",\"\",IF(LEN('Enrollment Form'!$Y147)=0,\"\",IF(LEN('Enrollment Form'!$Y147)<>5,\"N\",\"Y\")))","v":""},{"$f":"IF($B140=\"N\",\"\",IF(LEN('Enrollment Form'!$AD147=0),\"\",IF(LEN('Enrollment Form'!$AD147)<>5,\"N\",\"Y\")))","v":""},{"$f":"IF($B140=\"N\",\"\",IF(LEN('Enrollment Form'!$BS147=0),\"\",IF(LEN('Enrollment Form'!$BS147)<>5,\"N\",\"Y\")))","v":""},{"$f":"IF($B140=\"N\",\"\",IF(LEN('Enrollment Form'!$AE147)=0,\"\",IF(LEN('Enrollment Form'!$AE147)<>10,\"N\",\"Y\")))","v":""},{"$f":"IF($B140=\"N\",\"\",IF(LEN('Enrollment Form'!$AF147)=0,\"\",IF(LEN('Enrollment Form'!$AF147)<>10,\"N\",\"Y\")))","v":""},{"$f":"IF('Enrollment Form'!$O147<>\"Graded\",\"-\",IF(AND('Enrollment Form'!$O147=\"Graded\",'Enrollment Form'!$AR147<>\"\"),\"Y\",\"N\"))","v":"-"},{"$f":"IF($B140=\"N\",\"\",IF(OR('Enrollment Form'!$B147<>\"Subscriber\",'Enrollment Form'!$C147=\"ROC\"),\"-\",IF(AND('Enrollment Form'!$B147=\"Subscriber\",'Enrollment Form'!$C147=\"Enroll\",'Enrollment Form'!$AJ147<>\"\"),\"Y\",\"N\")))","v":""},{"$f":"IF($B140=\"N\",\"\",IF(OR('Enrollment Form'!$B147<>\"Subscriber\",'Enrollment Form'!$C147=\"ROC\"),\"-\",IF(AND('Enrollment Form'!$B147=\"Subscriber\",'Enrollment Form'!$C147=\"Enroll\",'Enrollment Form'!$AK147<>\"\"),\"Y\",\"N\")))","v":""},{"$f":"IF($B140=\"N\",\"\",IF(OR('Enrollment Form'!$B147<>\"Subscriber\",'Enrollment Form'!$C147=\"ROC\"),\"-\",IF(AND('Enrollment Form'!$B147=\"Subscriber\",'Enrollment Form'!$C147=\"Enroll\",'Enrollment Form'!$AL147<>\"\"),\"Y\",\"N\")))","v":""},{"$f":"IF($B140=\"N\",\"\",IF(OR('Enrollment Form'!$B147<>\"Subscriber\",'Enrollment Form'!$C147=\"ROC\"),\"-\",IF(AND('Enrollment Form'!$B147=\"Subscriber\",'Enrollment Form'!$C147=\"Enroll\",'Enrollment Form'!$AP147<>\"\"),\"Y\",\"N\")))","v":""},{"$f":"IF($B140=\"N\",\"\",IF(OR('Enrollment Form'!$B147<>\"Subscriber\",'Enrollment Form'!$C147=\"ROC\"),\"-\",IF(AND('Enrollment Form'!$B147=\"Subscriber\",'Enrollment Form'!$C147=\"Enroll\",'Enrollment Form'!$AQ147<>\"\"),\"Y\",\"N\")))","v":""},{"$f":"IF($B140=\"N\",\"\",IF(OR('Enrollment Form'!$B147<>\"Subscriber\",'Enrollment Form'!$C147=\"ROC\"),\"-\",IF(AND('Enrollment Form'!$B147=\"Subscriber\",'Enrollment Form'!$C147=\"Enroll\",'Enrollment Form'!$AS147<>\"\"),\"Y\",\"N\")))","v":""},{"$f":"IF($B140=\"N\",\"\",IF($Q140=\"-\",\"-\",IF(AND($Q140=\"Y\",'Enrollment Form'!$AS147=\"No\"),\"-\",IF(AND($Q140=\"Y\",'Enrollment Form'!$AS147=\"Yes\",'Enrollment Form'!$AT147<>\"\"),\"Y\",\"N\"))))","v":""},{"$f":"IF($B140=\"N\",\"\",IF(OR('Enrollment Form'!$B147<>\"Subscriber\",'Enrollment Form'!$C147=\"ROC\"),\"-\",IF(AND('Enrollment Form'!$B147=\"Subscriber\",'Enrollment Form'!$C147=\"Enroll\",'Enrollment Form'!$CV147<>\"\"),\"Y\",\"N\")))","v":""},{"$f":"IF($B140=\"N\",\"\",IF($S140=\"-\",\"-\",IF(AND($S140=\"Y\",'Enrollment Form'!$CV147=\"No\"),\"-\",IF(AND($S140=\"Y\",'Enrollment Form'!$CV147=\"Yes\",'Enrollment Form'!$CW147<>\"\"),\"Y\",\"N\"))))","v":""},{"$f":"IF(OR('Enrollment Form'!$AY147=\"Yes\",'Enrollment Form'!$AY147=\"\"),\"-\",IF(OR(AND('Enrollment Form'!$AY147=\"No\",ISERROR(FIND(\"HMO\",VLOOKUP('Enrollment Form'!G147,'Enrollment Form'!H$11:J$1000,3,FALSE),1))=FALSE,COUNTA('Enrollment Form'!$AZ147:$BC147)=4),AND('Enrollment Form'!$AY147=\"No\",ISERROR(FIND(\"HMO\",VLOOKUP('Enrollment Form'!G147,'Enrollment Form'!H$11:J$1000,3,FALSE),1))=FALSE,COUNTA('Enrollment Form'!$BT147:$BW147)=4)),\"Y\",\"N\"))","v":"-"},{"$f":"IF($B140=\"N\",\"\",IF('Enrollment Form'!$B147=\"Subscriber\",\"-\",IF(COUNTA('Enrollment Form'!$BL147,'Enrollment Form'!$BN147)=2,\"Y\",\"N\")))","v":""},{"$f":"IF($B140=\"N\",\"\",IF(OR('Enrollment Form'!$AX147=\"\",'Enrollment Form'!$AX147=\"No\"),\"-\",IF(AND('Enrollment Form'!$AX147=\"Yes\",COUNTA('Enrollment Form'!$CR147)=1),\"Y\",\"N\")))","v":""},{"$f":"IF(OR('Enrollment Form'!$CR147=\"\",'Enrollment Form'!$CR147=\"No\"),\"-\",IF(COUNTA('Enrollment Form'!$CT147:$CU147)=2,\"Y\",\"N\"))","v":"-"},{"$f":"IF($B140=\"N\",\"\",IF(COUNTIF('Enrollment Form'!$DG147:$DP147,\"Other\")=COUNTA('Enrollment Form'!$DK147,'Enrollment Form'!$DH147,'Enrollment Form'!$DN147,'Enrollment Form'!$DQ147),\"Y\",\"N\"))","v":""},{"$f":"IF($B140=\"N\",\"\",IF(OR('Enrollment Form'!B147<>\"Subscriber\",'Enrollment Form'!C147=\"ROC\",COUNTIF('Enrollment Form'!AV147:AW147,\"Yes\")>=1),\"-\",IF(AND('Enrollment Form'!C147=\"Enroll\",COUNTIF('Enrollment Form'!AV147:AW147,\"No\")=2,'Enrollment Form'!AX147=\"\"),\"N\",\"Y\")))","v":""},{"$f":"IF(OR(B140=\"N\",'Enrollment Form'!B147<>\"Subscriber\",'Enrollment Form'!C147=\"ROC\",'Enrollment Form'!O147<>\"Multiple of Salary\"),\"-\",IF(COUNTA('Enrollment Form'!T147:U147)<2,\"N\",\"Y\"))","v":"-"},{"$f":"IF(B140=\"N\",\"\",IF(OR('Enrollment Form'!C147=\"ROC\",'Enrollment Form'!B147<>\"Subscriber\",'Enrollment Form'!O147=\"Waive\",'Enrollment Form'!O147=\"\"),\"-\",IF('Enrollment Form'!P147=\"\",\"N\",\"Y\")))","v":""},{"$f":"IF($B140=\"N\",\"\",IF(AND('Enrollment Form'!$C147=\"ROC\",'Enrollment Form'!$DR147<>\"\"),\"Y\",IF(AND('Enrollment Form'!$C147=\"ROC\",'Enrollment Form'!$DR147=\"\"),\"N\",IF(AND('Enrollment Form'!$C147=\"Enroll\",'Enrollment Form'!$B147=\"Subscriber\",'Enrollment Form'!$CX147=\"No\",'Enrollment Form'!$DR147=\"\"),\"N\",IF(AND('Enrollment Form'!$C147=\"Enroll\",'Enrollment Form'!$B147=\"Subscriber\",'Enrollment Form'!$CX147=\"Yes\"),\"-\",\"Y\")))))","v":""},{"$f":"IF($B140=\"N\",\"\",IF(AND('Enrollment Form'!$C147=\"ROC\",'Enrollment Form'!$DS147<>\"\"),\"Y\",IF(AND('Enrollment Form'!$C147=\"ROC\",'Enrollment Form'!$DS147=\"\"),\"N\",IF(AND('Enrollment Form'!$C147=\"Enroll\",'Enrollment Form'!$B147=\"Subscriber\",'Enrollment Form'!$CX147=\"No\",'Enrollment Form'!$DS147=\"\"),\"N\",IF(AND('Enrollment Form'!$C147=\"Enroll\",'Enrollment Form'!$B147=\"Subscriber\",'Enrollment Form'!$CX147=\"Yes\"),\"-\",\"Y\")))))","v":""},{"$f":"IF('Enrollment Form'!AH147=\"\",\"\",IF(ISERROR(SEARCH(\".\",'Enrollment Form'!AH147,SEARCH(\"@\",'Enrollment Form'!AH147))),\"N\",\"Y\"))","v":""},{"$f":"IF(OR($B140=\"N\",'Enrollment Form'!$G147=\"\"),\"\",IF('Enrollment Form'!$B147<>\"Subscriber\",\"-\",IF(COUNTIF('Enrollment Form'!$AV147:$AW147,\"Yes\")=2,\"N\",\"Y\")))","v":""},{"$f":"IF(OR('Enrollment Form'!$CJ147=\"\",'Enrollment Form'!$CJ147=\"No\"),\"-\",IF(AND('Enrollment Form'!$CJ147=\"Yes\",'Enrollment Form'!$CK147=\"\"),\"N\",\"Y\"))","v":"-"},{"$f":"IF(OR('Enrollment Form'!$CL147=\"\",'Enrollment Form'!$CL147=\"No\"),\"-\",IF(AND('Enrollment Form'!$CL147=\"Yes\",'Enrollment Form'!$CM147=\"\"),\"N\",\"Y\"))","v":"-"},{"$f":"IF(OR('Enrollment Form'!$CN147=\"\",'Enrollment Form'!$CN147=\"No\"),\"-\",IF(AND('Enrollment Form'!$CN147=\"Yes\",'Enrollment Form'!$CO147=\"\"),\"N\",\"Y\"))","v":"-"},{"$f":"IF(OR('Enrollment Form'!$CN147=\"\",'Enrollment Form'!$CN147=\"No\"),\"-\",IF(AND('Enrollment Form'!$CN147=\"Yes\",'Enrollment Form'!$CP147=\"\"),\"N\",\"Y\"))","v":"-"},{"$f":"IF('Enrollment Form'!B147<>\"Subscriber\",\"-\",IF(AND('Enrollment Form'!B147=\"Subscriber\",'Enrollment Form'!C147=\"Enroll\",'Enrollment Form'!AA147=\"\"),\"N\",\"Y\"))","v":"-"},{"$f":"IF(OR('Enrollment Form'!B147=\"Subscriber\",'Enrollment Form'!B147=\"\"),\"-\",IF('Enrollment Form'!BP147=\"\",\"N\",\"Y\"))","v":"-"},{"$f":"IF('Enrollment Form'!B147<>\"Subscriber\",\"-\",IF(AND('Enrollment Form'!B147=\"Subscriber\",'Enrollment Form'!G147=\"\"),\"N\",\"Y\"))","v":"-"},{"$f":"IF('Enrollment Form'!A147=\"\",\"\",IF('Enrollment Form'!B147=\"Subscriber\",\"-\",IF(AND('Enrollment Form'!B147<>\"Subscriber\",'Enrollment Form'!G147='Enrollment Form'!H147),\"N\",\"Y\")))","v":""},0]
[148,{"$f":"IF('Enrollment Form'!$A148<>\"\",\"Y\",\"N\")","v":"N"},{"$f":"IF(AND('Enrollment Form'!$B148=\"\",'Enrollment Form'!$C148<>\"\"),\"N\",IF($B141=\"N\",\"\",\"Y\"))","v":""},{"$f":"IF(OR($B141=\"N\",'Enrollment Form'!G148=\"\"),\"\",IF('Enrollment Form'!$B148<>\"Subscriber\",\"\",IF('Enrollment Form'!$G148='Enrollment Form'!$H148,\"Y\",\"N\")))","v":""},{"$f":"IF($B141=\"N\",\"\",IF(AND(COUNTIFS('Enrollment Form'!$H$11:$H$1000,'Enrollment Form'!$H148,'Enrollment Form'!$B$11:$B$1000,'Enrollment Form'!$B148)>1,'Enrollment Form'!$H148<>\"\"),\"N\",\"Y\"))","v":""},{"$f":"IF($B141=\"N\",\"\",IF(LEN('Enrollment Form'!$Y148)=0,\"\",IF(LEN('Enrollment Form'!$Y148)<>5,\"N\",\"Y\")))","v":""},{"$f":"IF($B141=\"N\",\"\",IF(LEN('Enrollment Form'!$AD148=0),\"\",IF(LEN('Enrollment Form'!$AD148)<>5,\"N\",\"Y\")))","v":""},{"$f":"IF($B141=\"N\",\"\",IF(LEN('Enrollment Form'!$BS148=0),\"\",IF(LEN('Enrollment Form'!$BS148)<>5,\"N\",\"Y\")))","v":""},{"$f":"IF($B141=\"N\",\"\",IF(LEN('Enrollment Form'!$AE148)=0,\"\",IF(LEN('Enrollment Form'!$AE148)<>10,\"N\",\"Y\")))","v":""},{"$f":"IF($B141=\"N\",\"\",IF(LEN('Enrollment Form'!$AF148)=0,\"\",IF(LEN('Enrollment Form'!$AF148)<>10,\"N\",\"Y\")))","v":""},{"$f":"IF('Enrollment Form'!$O148<>\"Graded\",\"-\",IF(AND('Enrollment Form'!$O148=\"Graded\",'Enrollment Form'!$AR148<>\"\"),\"Y\",\"N\"))","v":"-"},{"$f":"IF($B141=\"N\",\"\",IF(OR('Enrollment Form'!$B148<>\"Subscriber\",'Enrollment Form'!$C148=\"ROC\"),\"-\",IF(AND('Enrollment Form'!$B148=\"Subscriber\",'Enrollment Form'!$C148=\"Enroll\",'Enrollment Form'!$AJ148<>\"\"),\"Y\",\"N\")))","v":""},{"$f":"IF($B141=\"N\",\"\",IF(OR('Enrollment Form'!$B148<>\"Subscriber\",'Enrollment Form'!$C148=\"ROC\"),\"-\",IF(AND('Enrollment Form'!$B148=\"Subscriber\",'Enrollment Form'!$C148=\"Enroll\",'Enrollment Form'!$AK148<>\"\"),\"Y\",\"N\")))","v":""},{"$f":"IF($B141=\"N\",\"\",IF(OR('Enrollment Form'!$B148<>\"Subscriber\",'Enrollment Form'!$C148=\"ROC\"),\"-\",IF(AND('Enrollment Form'!$B148=\"Subscriber\",'Enrollment Form'!$C148=\"Enroll\",'Enrollment Form'!$AL148<>\"\"),\"Y\",\"N\")))","v":""},{"$f":"IF($B141=\"N\",\"\",IF(OR('Enrollment Form'!$B148<>\"Subscriber\",'Enrollment Form'!$C148=\"ROC\"),\"-\",IF(AND('Enrollment Form'!$B148=\"Subscriber\",'Enrollment Form'!$C148=\"Enroll\",'Enrollment Form'!$AP148<>\"\"),\"Y\",\"N\")))","v":""},{"$f":"IF($B141=\"N\",\"\",IF(OR('Enrollment Form'!$B148<>\"Subscriber\",'Enrollment Form'!$C148=\"ROC\"),\"-\",IF(AND('Enrollment Form'!$B148=\"Subscriber\",'Enrollment Form'!$C148=\"Enroll\",'Enrollment Form'!$AQ148<>\"\"),\"Y\",\"N\")))","v":""},{"$f":"IF($B141=\"N\",\"\",IF(OR('Enrollment Form'!$B148<>\"Subscriber\",'Enrollment Form'!$C148=\"ROC\"),\"-\",IF(AND('Enrollment Form'!$B148=\"Subscriber\",'Enrollment Form'!$C148=\"Enroll\",'Enrollment Form'!$AS148<>\"\"),\"Y\",\"N\")))","v":""},{"$f":"IF($B141=\"N\",\"\",IF($Q141=\"-\",\"-\",IF(AND($Q141=\"Y\",'Enrollment Form'!$AS148=\"No\"),\"-\",IF(AND($Q141=\"Y\",'Enrollment Form'!$AS148=\"Yes\",'Enrollment Form'!$AT148<>\"\"),\"Y\",\"N\"))))","v":""},{"$f":"IF($B141=\"N\",\"\",IF(OR('Enrollment Form'!$B148<>\"Subscriber\",'Enrollment Form'!$C148=\"ROC\"),\"-\",IF(AND('Enrollment Form'!$B148=\"Subscriber\",'Enrollment Form'!$C148=\"Enroll\",'Enrollment Form'!$CV148<>\"\"),\"Y\",\"N\")))","v":""},{"$f":"IF($B141=\"N\",\"\",IF($S141=\"-\",\"-\",IF(AND($S141=\"Y\",'Enrollment Form'!$CV148=\"No\"),\"-\",IF(AND($S141=\"Y\",'Enrollment Form'!$CV148=\"Yes\",'Enrollment Form'!$CW148<>\"\"),\"Y\",\"N\"))))","v":""},{"$f":"IF(OR('Enrollment Form'!$AY148=\"Yes\",'Enrollment Form'!$AY148=\"\"),\"-\",IF(OR(AND('Enrollment Form'!$AY148=\"No\",ISERROR(FIND(\"HMO\",VLOOKUP('Enrollment Form'!G148,'Enrollment Form'!H$11:J$1000,3,FALSE),1))=FALSE,COUNTA('Enrollment Form'!$AZ148:$BC148)=4),AND('Enrollment Form'!$AY148=\"No\",ISERROR(FIND(\"HMO\",VLOOKUP('Enrollment Form'!G148,'Enrollment Form'!H$11:J$1000,3,FALSE),1))=FALSE,COUNTA('Enrollment Form'!$BT148:$BW148)=4)),\"Y\",\"N\"))","v":"-"},{"$f":"IF($B141=\"N\",\"\",IF('Enrollment Form'!$B148=\"Subscriber\",\"-\",IF(COUNTA('Enrollment Form'!$BL148,'Enrollment Form'!$BN148)=2,\"Y\",\"N\")))","v":""},{"$f":"IF($B141=\"N\",\"\",IF(OR('Enrollment Form'!$AX148=\"\",'Enrollment Form'!$AX148=\"No\"),\"-\",IF(AND('Enrollment Form'!$AX148=\"Yes\",COUNTA('Enrollment Form'!$CR148)=1),\"Y\",\"N\")))","v":""},{"$f":"IF(OR('Enrollment Form'!$CR148=\"\",'Enrollment Form'!$CR148=\"No\"),\"-\",IF(COUNTA('Enrollment Form'!$CT148:$CU148)=2,\"Y\",\"N\"))","v":"-"},{"$f":"IF($B141=\"N\",\"\",IF(COUNTIF('Enrollment Form'!$DG148:$DP148,\"Other\")=COUNTA('Enrollment Form'!$DK148,'Enrollment Form'!$DH148,'Enrollment Form'!$DN148,'Enrollment Form'!$DQ148),\"Y\",\"N\"))","v":""},{"$f":"IF($B141=\"N\",\"\",IF(OR('Enrollment Form'!B148<>\"Subscriber\",'Enrollment Form'!C148=\"ROC\",COUNTIF('Enrollment Form'!AV148:AW148,\"Yes\")>=1),\"-\",IF(AND('Enrollment Form'!C148=\"Enroll\",COUNTIF('Enrollment Form'!AV148:AW148,\"No\")=2,'Enrollment Form'!AX148=\"\"),\"N\",\"Y\")))","v":""},{"$f":"IF(OR(B141=\"N\",'Enrollment Form'!B148<>\"Subscriber\",'Enrollment Form'!C148=\"ROC\",'Enrollment Form'!O148<>\"Multiple of Salary\"),\"-\",IF(COUNTA('Enrollment Form'!T148:U148)<2,\"N\",\"Y\"))","v":"-"},{"$f":"IF(B141=\"N\",\"\",IF(OR('Enrollment Form'!C148=\"ROC\",'Enrollment Form'!B148<>\"Subscriber\",'Enrollment Form'!O148=\"Waive\",'Enrollment Form'!O148=\"\"),\"-\",IF('Enrollment Form'!P148=\"\",\"N\",\"Y\")))","v":""},{"$f":"IF($B141=\"N\",\"\",IF(AND('Enrollment Form'!$C148=\"ROC\",'Enrollment Form'!$DR148<>\"\"),\"Y\",IF(AND('Enrollment Form'!$C148=\"ROC\",'Enrollment Form'!$DR148=\"\"),\"N\",IF(AND('Enrollment Form'!$C148=\"Enroll\",'Enrollment Form'!$B148=\"Subscriber\",'Enrollment Form'!$CX148=\"No\",'Enrollment Form'!$DR148=\"\"),\"N\",IF(AND('Enrollment Form'!$C148=\"Enroll\",'Enrollment Form'!$B148=\"Subscriber\",'Enrollment Form'!$CX148=\"Yes\"),\"-\",\"Y\")))))","v":""},{"$f":"IF($B141=\"N\",\"\",IF(AND('Enrollment Form'!$C148=\"ROC\",'Enrollment Form'!$DS148<>\"\"),\"Y\",IF(AND('Enrollment Form'!$C148=\"ROC\",'Enrollment Form'!$DS148=\"\"),\"N\",IF(AND('Enrollment Form'!$C148=\"Enroll\",'Enrollment Form'!$B148=\"Subscriber\",'Enrollment Form'!$CX148=\"No\",'Enrollment Form'!$DS148=\"\"),\"N\",IF(AND('Enrollment Form'!$C148=\"Enroll\",'Enrollment Form'!$B148=\"Subscriber\",'Enrollment Form'!$CX148=\"Yes\"),\"-\",\"Y\")))))","v":""},{"$f":"IF('Enrollment Form'!AH148=\"\",\"\",IF(ISERROR(SEARCH(\".\",'Enrollment Form'!AH148,SEARCH(\"@\",'Enrollment Form'!AH148))),\"N\",\"Y\"))","v":""},{"$f":"IF(OR($B141=\"N\",'Enrollment Form'!$G148=\"\"),\"\",IF('Enrollment Form'!$B148<>\"Subscriber\",\"-\",IF(COUNTIF('Enrollment Form'!$AV148:$AW148,\"Yes\")=2,\"N\",\"Y\")))","v":""},{"$f":"IF(OR('Enrollment Form'!$CJ148=\"\",'Enrollment Form'!$CJ148=\"No\"),\"-\",IF(AND('Enrollment Form'!$CJ148=\"Yes\",'Enrollment Form'!$CK148=\"\"),\"N\",\"Y\"))","v":"-"},{"$f":"IF(OR('Enrollment Form'!$CL148=\"\",'Enrollment Form'!$CL148=\"No\"),\"-\",IF(AND('Enrollment Form'!$CL148=\"Yes\",'Enrollment Form'!$CM148=\"\"),\"N\",\"Y\"))","v":"-"},{"$f":"IF(OR('Enrollment Form'!$CN148=\"\",'Enrollment Form'!$CN148=\"No\"),\"-\",IF(AND('Enrollment Form'!$CN148=\"Yes\",'Enrollment Form'!$CO148=\"\"),\"N\",\"Y\"))","v":"-"},{"$f":"IF(OR('Enrollment Form'!$CN148=\"\",'Enrollment Form'!$CN148=\"No\"),\"-\",IF(AND('Enrollment Form'!$CN148=\"Yes\",'Enrollment Form'!$CP148=\"\"),\"N\",\"Y\"))","v":"-"},{"$f":"IF('Enrollment Form'!B148<>\"Subscriber\",\"-\",IF(AND('Enrollment Form'!B148=\"Subscriber\",'Enrollment Form'!C148=\"Enroll\",'Enrollment Form'!AA148=\"\"),\"N\",\"Y\"))","v":"-"},{"$f":"IF(OR('Enrollment Form'!B148=\"Subscriber\",'Enrollment Form'!B148=\"\"),\"-\",IF('Enrollment Form'!BP148=\"\",\"N\",\"Y\"))","v":"-"},{"$f":"IF('Enrollment Form'!B148<>\"Subscriber\",\"-\",IF(AND('Enrollment Form'!B148=\"Subscriber\",'Enrollment Form'!G148=\"\"),\"N\",\"Y\"))","v":"-"},{"$f":"IF('Enrollment Form'!A148=\"\",\"\",IF('Enrollment Form'!B148=\"Subscriber\",\"-\",IF(AND('Enrollment Form'!B148<>\"Subscriber\",'Enrollment Form'!G148='Enrollment Form'!H148),\"N\",\"Y\")))","v":""},0]
[149,{"$f":"IF('Enrollment Form'!$A149<>\"\",\"Y\",\"N\")","v":"N"},{"$f":"IF(AND('Enrollment Form'!$B149=\"\",'Enrollment Form'!$C149<>\"\"),\"N\",IF($B142=\"N\",\"\",\"Y\"))","v":""},{"$f":"IF(OR($B142=\"N\",'Enrollment Form'!G149=\"\"),\"\",IF('Enrollment Form'!$B149<>\"Subscriber\",\"\",IF('Enrollment Form'!$G149='Enrollment Form'!$H149,\"Y\",\"N\")))","v":""},{"$f":"IF($B142=\"N\",\"\",IF(AND(COUNTIFS('Enrollment Form'!$H$11:$H$1000,'Enrollment Form'!$H149,'Enrollment Form'!$B$11:$B$1000,'Enrollment Form'!$B149)>1,'Enrollment Form'!$H149<>\"\"),\"N\",\"Y\"))","v":""},{"$f":"IF($B142=\"N\",\"\",IF(LEN('Enrollment Form'!$Y149)=0,\"\",IF(LEN('Enrollment Form'!$Y149)<>5,\"N\",\"Y\")))","v":""},{"$f":"IF($B142=\"N\",\"\",IF(LEN('Enrollment Form'!$AD149=0),\"\",IF(LEN('Enrollment Form'!$AD149)<>5,\"N\",\"Y\")))","v":""},{"$f":"IF($B142=\"N\",\"\",IF(LEN('Enrollment Form'!$BS149=0),\"\",IF(LEN('Enrollment Form'!$BS149)<>5,\"N\",\"Y\")))","v":""},{"$f":"IF($B142=\"N\",\"\",IF(LEN('Enrollment Form'!$AE149)=0,\"\",IF(LEN('Enrollment Form'!$AE149)<>10,\"N\",\"Y\")))","v":""},{"$f":"IF($B142=\"N\",\"\",IF(LEN('Enrollment Form'!$AF149)=0,\"\",IF(LEN('Enrollment Form'!$AF149)<>10,\"N\",\"Y\")))","v":""},{"$f":"IF('Enrollment Form'!$O149<>\"Graded\",\"-\",IF(AND('Enrollment Form'!$O149=\"Graded\",'Enrollment Form'!$AR149<>\"\"),\"Y\",\"N\"))","v":"-"},{"$f":"IF($B142=\"N\",\"\",IF(OR('Enrollment Form'!$B149<>\"Subscriber\",'Enrollment Form'!$C149=\"ROC\"),\"-\",IF(AND('Enrollment Form'!$B149=\"Subscriber\",'Enrollment Form'!$C149=\"Enroll\",'Enrollment Form'!$AJ149<>\"\"),\"Y\",\"N\")))","v":""},{"$f":"IF($B142=\"N\",\"\",IF(OR('Enrollment Form'!$B149<>\"Subscriber\",'Enrollment Form'!$C149=\"ROC\"),\"-\",IF(AND('Enrollment Form'!$B149=\"Subscriber\",'Enrollment Form'!$C149=\"Enroll\",'Enrollment Form'!$AK149<>\"\"),\"Y\",\"N\")))","v":""},{"$f":"IF($B142=\"N\",\"\",IF(OR('Enrollment Form'!$B149<>\"Subscriber\",'Enrollment Form'!$C149=\"ROC\"),\"-\",IF(AND('Enrollment Form'!$B149=\"Subscriber\",'Enrollment Form'!$C149=\"Enroll\",'Enrollment Form'!$AL149<>\"\"),\"Y\",\"N\")))","v":""},{"$f":"IF($B142=\"N\",\"\",IF(OR('Enrollment Form'!$B149<>\"Subscriber\",'Enrollment Form'!$C149=\"ROC\"),\"-\",IF(AND('Enrollment Form'!$B149=\"Subscriber\",'Enrollment Form'!$C149=\"Enroll\",'Enrollment Form'!$AP149<>\"\"),\"Y\",\"N\")))","v":""},{"$f":"IF($B142=\"N\",\"\",IF(OR('Enrollment Form'!$B149<>\"Subscriber\",'Enrollment Form'!$C149=\"ROC\"),\"-\",IF(AND('Enrollment Form'!$B149=\"Subscriber\",'Enrollment Form'!$C149=\"Enroll\",'Enrollment Form'!$AQ149<>\"\"),\"Y\",\"N\")))","v":""},{"$f":"IF($B142=\"N\",\"\",IF(OR('Enrollment Form'!$B149<>\"Subscriber\",'Enrollment Form'!$C149=\"ROC\"),\"-\",IF(AND('Enrollment Form'!$B149=\"Subscriber\",'Enrollment Form'!$C149=\"Enroll\",'Enrollment Form'!$AS149<>\"\"),\"Y\",\"N\")))","v":""},{"$f":"IF($B142=\"N\",\"\",IF($Q142=\"-\",\"-\",IF(AND($Q142=\"Y\",'Enrollment Form'!$AS149=\"No\"),\"-\",IF(AND($Q142=\"Y\",'Enrollment Form'!$AS149=\"Yes\",'Enrollment Form'!$AT149<>\"\"),\"Y\",\"N\"))))","v":""},{"$f":"IF($B142=\"N\",\"\",IF(OR('Enrollment Form'!$B149<>\"Subscriber\",'Enrollment Form'!$C149=\"ROC\"),\"-\",IF(AND('Enrollment Form'!$B149=\"Subscriber\",'Enrollment Form'!$C149=\"Enroll\",'Enrollment Form'!$CV149<>\"\"),\"Y\",\"N\")))","v":""},{"$f":"IF($B142=\"N\",\"\",IF($S142=\"-\",\"-\",IF(AND($S142=\"Y\",'Enrollment Form'!$CV149=\"No\"),\"-\",IF(AND($S142=\"Y\",'Enrollment Form'!$CV149=\"Yes\",'Enrollment Form'!$CW149<>\"\"),\"Y\",\"N\"))))","v":""},{"$f":"IF(OR('Enrollment Form'!$AY149=\"Yes\",'Enrollment Form'!$AY149=\"\"),\"-\",IF(OR(AND('Enrollment Form'!$AY149=\"No\",ISERROR(FIND(\"HMO\",VLOOKUP('Enrollment Form'!G149,'Enrollment Form'!H$11:J$1000,3,FALSE),1))=FALSE,COUNTA('Enrollment Form'!$AZ149:$BC149)=4),AND('Enrollment Form'!$AY149=\"No\",ISERROR(FIND(\"HMO\",VLOOKUP('Enrollment Form'!G149,'Enrollment Form'!H$11:J$1000,3,FALSE),1))=FALSE,COUNTA('Enrollment Form'!$BT149:$BW149)=4)),\"Y\",\"N\"))","v":"-"},{"$f":"IF($B142=\"N\",\"\",IF('Enrollment Form'!$B149=\"Subscriber\",\"-\",IF(COUNTA('Enrollment Form'!$BL149,'Enrollment Form'!$BN149)=2,\"Y\",\"N\")))","v":""},{"$f":"IF($B142=\"N\",\"\",IF(OR('Enrollment Form'!$AX149=\"\",'Enrollment Form'!$AX149=\"No\"),\"-\",IF(AND('Enrollment Form'!$AX149=\"Yes\",COUNTA('Enrollment Form'!$CR149)=1),\"Y\",\"N\")))","v":""},{"$f":"IF(OR('Enrollment Form'!$CR149=\"\",'Enrollment Form'!$CR149=\"No\"),\"-\",IF(COUNTA('Enrollment Form'!$CT149:$CU149)=2,\"Y\",\"N\"))","v":"-"},{"$f":"IF($B142=\"N\",\"\",IF(COUNTIF('Enrollment Form'!$DG149:$DP149,\"Other\")=COUNTA('Enrollment Form'!$DK149,'Enrollment Form'!$DH149,'Enrollment Form'!$DN149,'Enrollment Form'!$DQ149),\"Y\",\"N\"))","v":""},{"$f":"IF($B142=\"N\",\"\",IF(OR('Enrollment Form'!B149<>\"Subscriber\",'Enrollment Form'!C149=\"ROC\",COUNTIF('Enrollment Form'!AV149:AW149,\"Yes\")>=1),\"-\",IF(AND('Enrollment Form'!C149=\"Enroll\",COUNTIF('Enrollment Form'!AV149:AW149,\"No\")=2,'Enrollment Form'!AX149=\"\"),\"N\",\"Y\")))","v":""},{"$f":"IF(OR(B142=\"N\",'Enrollment Form'!B149<>\"Subscriber\",'Enrollment Form'!C149=\"ROC\",'Enrollment Form'!O149<>\"Multiple of Salary\"),\"-\",IF(COUNTA('Enrollment Form'!T149:U149)<2,\"N\",\"Y\"))","v":"-"},{"$f":"IF(B142=\"N\",\"\",IF(OR('Enrollment Form'!C149=\"ROC\",'Enrollment Form'!B149<>\"Subscriber\",'Enrollment Form'!O149=\"Waive\",'Enrollment Form'!O149=\"\"),\"-\",IF('Enrollment Form'!P149=\"\",\"N\",\"Y\")))","v":""},{"$f":"IF($B142=\"N\",\"\",IF(AND('Enrollment Form'!$C149=\"ROC\",'Enrollment Form'!$DR149<>\"\"),\"Y\",IF(AND('Enrollment Form'!$C149=\"ROC\",'Enrollment Form'!$DR149=\"\"),\"N\",IF(AND('Enrollment Form'!$C149=\"Enroll\",'Enrollment Form'!$B149=\"Subscriber\",'Enrollment Form'!$CX149=\"No\",'Enrollment Form'!$DR149=\"\"),\"N\",IF(AND('Enrollment Form'!$C149=\"Enroll\",'Enrollment Form'!$B149=\"Subscriber\",'Enrollment Form'!$CX149=\"Yes\"),\"-\",\"Y\")))))","v":""},{"$f":"IF($B142=\"N\",\"\",IF(AND('Enrollment Form'!$C149=\"ROC\",'Enrollment Form'!$DS149<>\"\"),\"Y\",IF(AND('Enrollment Form'!$C149=\"ROC\",'Enrollment Form'!$DS149=\"\"),\"N\",IF(AND('Enrollment Form'!$C149=\"Enroll\",'Enrollment Form'!$B149=\"Subscriber\",'Enrollment Form'!$CX149=\"No\",'Enrollment Form'!$DS149=\"\"),\"N\",IF(AND('Enrollment Form'!$C149=\"Enroll\",'Enrollment Form'!$B149=\"Subscriber\",'Enrollment Form'!$CX149=\"Yes\"),\"-\",\"Y\")))))","v":""},{"$f":"IF('Enrollment Form'!AH149=\"\",\"\",IF(ISERROR(SEARCH(\".\",'Enrollment Form'!AH149,SEARCH(\"@\",'Enrollment Form'!AH149))),\"N\",\"Y\"))","v":""},{"$f":"IF(OR($B142=\"N\",'Enrollment Form'!$G149=\"\"),\"\",IF('Enrollment Form'!$B149<>\"Subscriber\",\"-\",IF(COUNTIF('Enrollment Form'!$AV149:$AW149,\"Yes\")=2,\"N\",\"Y\")))","v":""},{"$f":"IF(OR('Enrollment Form'!$CJ149=\"\",'Enrollment Form'!$CJ149=\"No\"),\"-\",IF(AND('Enrollment Form'!$CJ149=\"Yes\",'Enrollment Form'!$CK149=\"\"),\"N\",\"Y\"))","v":"-"},{"$f":"IF(OR('Enrollment Form'!$CL149=\"\",'Enrollment Form'!$CL149=\"No\"),\"-\",IF(AND('Enrollment Form'!$CL149=\"Yes\",'Enrollment Form'!$CM149=\"\"),\"N\",\"Y\"))","v":"-"},{"$f":"IF(OR('Enrollment Form'!$CN149=\"\",'Enrollment Form'!$CN149=\"No\"),\"-\",IF(AND('Enrollment Form'!$CN149=\"Yes\",'Enrollment Form'!$CO149=\"\"),\"N\",\"Y\"))","v":"-"},{"$f":"IF(OR('Enrollment Form'!$CN149=\"\",'Enrollment Form'!$CN149=\"No\"),\"-\",IF(AND('Enrollment Form'!$CN149=\"Yes\",'Enrollment Form'!$CP149=\"\"),\"N\",\"Y\"))","v":"-"},{"$f":"IF('Enrollment Form'!B149<>\"Subscriber\",\"-\",IF(AND('Enrollment Form'!B149=\"Subscriber\",'Enrollment Form'!C149=\"Enroll\",'Enrollment Form'!AA149=\"\"),\"N\",\"Y\"))","v":"-"},{"$f":"IF(OR('Enrollment Form'!B149=\"Subscriber\",'Enrollment Form'!B149=\"\"),\"-\",IF('Enrollment Form'!BP149=\"\",\"N\",\"Y\"))","v":"-"},{"$f":"IF('Enrollment Form'!B149<>\"Subscriber\",\"-\",IF(AND('Enrollment Form'!B149=\"Subscriber\",'Enrollment Form'!G149=\"\"),\"N\",\"Y\"))","v":"-"},{"$f":"IF('Enrollment Form'!A149=\"\",\"\",IF('Enrollment Form'!B149=\"Subscriber\",\"-\",IF(AND('Enrollment Form'!B149<>\"Subscriber\",'Enrollment Form'!G149='Enrollment Form'!H149),\"N\",\"Y\")))","v":""},0]
[150,{"$f":"IF('Enrollment Form'!$A150<>\"\",\"Y\",\"N\")","v":"N"},{"$f":"IF(AND('Enrollment Form'!$B150=\"\",'Enrollment Form'!$C150<>\"\"),\"N\",IF($B143=\"N\",\"\",\"Y\"))","v":""},{"$f":"IF(OR($B143=\"N\",'Enrollment Form'!G150=\"\"),\"\",IF('Enrollment Form'!$B150<>\"Subscriber\",\"\",IF('Enrollment Form'!$G150='Enrollment Form'!$H150,\"Y\",\"N\")))","v":""},{"$f":"IF($B143=\"N\",\"\",IF(AND(COUNTIFS('Enrollment Form'!$H$11:$H$1000,'Enrollment Form'!$H150,'Enrollment Form'!$B$11:$B$1000,'Enrollment Form'!$B150)>1,'Enrollment Form'!$H150<>\"\"),\"N\",\"Y\"))","v":""},{"$f":"IF($B143=\"N\",\"\",IF(LEN('Enrollment Form'!$Y150)=0,\"\",IF(LEN('Enrollment Form'!$Y150)<>5,\"N\",\"Y\")))","v":""},{"$f":"IF($B143=\"N\",\"\",IF(LEN('Enrollment Form'!$AD150=0),\"\",IF(LEN('Enrollment Form'!$AD150)<>5,\"N\",\"Y\")))","v":""},{"$f":"IF($B143=\"N\",\"\",IF(LEN('Enrollment Form'!$BS150=0),\"\",IF(LEN('Enrollment Form'!$BS150)<>5,\"N\",\"Y\")))","v":""},{"$f":"IF($B143=\"N\",\"\",IF(LEN('Enrollment Form'!$AE150)=0,\"\",IF(LEN('Enrollment Form'!$AE150)<>10,\"N\",\"Y\")))","v":""},{"$f":"IF($B143=\"N\",\"\",IF(LEN('Enrollment Form'!$AF150)=0,\"\",IF(LEN('Enrollment Form'!$AF150)<>10,\"N\",\"Y\")))","v":""},{"$f":"IF('Enrollment Form'!$O150<>\"Graded\",\"-\",IF(AND('Enrollment Form'!$O150=\"Graded\",'Enrollment Form'!$AR150<>\"\"),\"Y\",\"N\"))","v":"-"},{"$f":"IF($B143=\"N\",\"\",IF(OR('Enrollment Form'!$B150<>\"Subscriber\",'Enrollment Form'!$C150=\"ROC\"),\"-\",IF(AND('Enrollment Form'!$B150=\"Subscriber\",'Enrollment Form'!$C150=\"Enroll\",'Enrollment Form'!$AJ150<>\"\"),\"Y\",\"N\")))","v":""},{"$f":"IF($B143=\"N\",\"\",IF(OR('Enrollment Form'!$B150<>\"Subscriber\",'Enrollment Form'!$C150=\"ROC\"),\"-\",IF(AND('Enrollment Form'!$B150=\"Subscriber\",'Enrollment Form'!$C150=\"Enroll\",'Enrollment Form'!$AK150<>\"\"),\"Y\",\"N\")))","v":""},{"$f":"IF($B143=\"N\",\"\",IF(OR('Enrollment Form'!$B150<>\"Subscriber\",'Enrollment Form'!$C150=\"ROC\"),\"-\",IF(AND('Enrollment Form'!$B150=\"Subscriber\",'Enrollment Form'!$C150=\"Enroll\",'Enrollment Form'!$AL150<>\"\"),\"Y\",\"N\")))","v":""},{"$f":"IF($B143=\"N\",\"\",IF(OR('Enrollment Form'!$B150<>\"Subscriber\",'Enrollment Form'!$C150=\"ROC\"),\"-\",IF(AND('Enrollment Form'!$B150=\"Subscriber\",'Enrollment Form'!$C150=\"Enroll\",'Enrollment Form'!$AP150<>\"\"),\"Y\",\"N\")))","v":""},{"$f":"IF($B143=\"N\",\"\",IF(OR('Enrollment Form'!$B150<>\"Subscriber\",'Enrollment Form'!$C150=\"ROC\"),\"-\",IF(AND('Enrollment Form'!$B150=\"Subscriber\",'Enrollment Form'!$C150=\"Enroll\",'Enrollment Form'!$AQ150<>\"\"),\"Y\",\"N\")))","v":""},{"$f":"IF($B143=\"N\",\"\",IF(OR('Enrollment Form'!$B150<>\"Subscriber\",'Enrollment Form'!$C150=\"ROC\"),\"-\",IF(AND('Enrollment Form'!$B150=\"Subscriber\",'Enrollment Form'!$C150=\"Enroll\",'Enrollment Form'!$AS150<>\"\"),\"Y\",\"N\")))","v":""},{"$f":"IF($B143=\"N\",\"\",IF($Q143=\"-\",\"-\",IF(AND($Q143=\"Y\",'Enrollment Form'!$AS150=\"No\"),\"-\",IF(AND($Q143=\"Y\",'Enrollment Form'!$AS150=\"Yes\",'Enrollment Form'!$AT150<>\"\"),\"Y\",\"N\"))))","v":""},{"$f":"IF($B143=\"N\",\"\",IF(OR('Enrollment Form'!$B150<>\"Subscriber\",'Enrollment Form'!$C150=\"ROC\"),\"-\",IF(AND('Enrollment Form'!$B150=\"Subscriber\",'Enrollment Form'!$C150=\"Enroll\",'Enrollment Form'!$CV150<>\"\"),\"Y\",\"N\")))","v":""},{"$f":"IF($B143=\"N\",\"\",IF($S143=\"-\",\"-\",IF(AND($S143=\"Y\",'Enrollment Form'!$CV150=\"No\"),\"-\",IF(AND($S143=\"Y\",'Enrollment Form'!$CV150=\"Yes\",'Enrollment Form'!$CW150<>\"\"),\"Y\",\"N\"))))","v":""},{"$f":"IF(OR('Enrollment Form'!$AY150=\"Yes\",'Enrollment Form'!$AY150=\"\"),\"-\",IF(OR(AND('Enrollment Form'!$AY150=\"No\",ISERROR(FIND(\"HMO\",VLOOKUP('Enrollment Form'!G150,'Enrollment Form'!H$11:J$1000,3,FALSE),1))=FALSE,COUNTA('Enrollment Form'!$AZ150:$BC150)=4),AND('Enrollment Form'!$AY150=\"No\",ISERROR(FIND(\"HMO\",VLOOKUP('Enrollment Form'!G150,'Enrollment Form'!H$11:J$1000,3,FALSE),1))=FALSE,COUNTA('Enrollment Form'!$BT150:$BW150)=4)),\"Y\",\"N\"))","v":"-"},{"$f":"IF($B143=\"N\",\"\",IF('Enrollment Form'!$B150=\"Subscriber\",\"-\",IF(COUNTA('Enrollment Form'!$BL150,'Enrollment Form'!$BN150)=2,\"Y\",\"N\")))","v":""},{"$f":"IF($B143=\"N\",\"\",IF(OR('Enrollment Form'!$AX150=\"\",'Enrollment Form'!$AX150=\"No\"),\"-\",IF(AND('Enrollment Form'!$AX150=\"Yes\",COUNTA('Enrollment Form'!$CR150)=1),\"Y\",\"N\")))","v":""},{"$f":"IF(OR('Enrollment Form'!$CR150=\"\",'Enrollment Form'!$CR150=\"No\"),\"-\",IF(COUNTA('Enrollment Form'!$CT150:$CU150)=2,\"Y\",\"N\"))","v":"-"},{"$f":"IF($B143=\"N\",\"\",IF(COUNTIF('Enrollment Form'!$DG150:$DP150,\"Other\")=COUNTA('Enrollment Form'!$DK150,'Enrollment Form'!$DH150,'Enrollment Form'!$DN150,'Enrollment Form'!$DQ150),\"Y\",\"N\"))","v":""},{"$f":"IF($B143=\"N\",\"\",IF(OR('Enrollment Form'!B150<>\"Subscriber\",'Enrollment Form'!C150=\"ROC\",COUNTIF('Enrollment Form'!AV150:AW150,\"Yes\")>=1),\"-\",IF(AND('Enrollment Form'!C150=\"Enroll\",COUNTIF('Enrollment Form'!AV150:AW150,\"No\")=2,'Enrollment Form'!AX150=\"\"),\"N\",\"Y\")))","v":""},{"$f":"IF(OR(B143=\"N\",'Enrollment Form'!B150<>\"Subscriber\",'Enrollment Form'!C150=\"ROC\",'Enrollment Form'!O150<>\"Multiple of Salary\"),\"-\",IF(COUNTA('Enrollment Form'!T150:U150)<2,\"N\",\"Y\"))","v":"-"},{"$f":"IF(B143=\"N\",\"\",IF(OR('Enrollment Form'!C150=\"ROC\",'Enrollment Form'!B150<>\"Subscriber\",'Enrollment Form'!O150=\"Waive\",'Enrollment Form'!O150=\"\"),\"-\",IF('Enrollment Form'!P150=\"\",\"N\",\"Y\")))","v":""},{"$f":"IF($B143=\"N\",\"\",IF(AND('Enrollment Form'!$C150=\"ROC\",'Enrollment Form'!$DR150<>\"\"),\"Y\",IF(AND('Enrollment Form'!$C150=\"ROC\",'Enrollment Form'!$DR150=\"\"),\"N\",IF(AND('Enrollment Form'!$C150=\"Enroll\",'Enrollment Form'!$B150=\"Subscriber\",'Enrollment Form'!$CX150=\"No\",'Enrollment Form'!$DR150=\"\"),\"N\",IF(AND('Enrollment Form'!$C150=\"Enroll\",'Enrollment Form'!$B150=\"Subscriber\",'Enrollment Form'!$CX150=\"Yes\"),\"-\",\"Y\")))))","v":""},{"$f":"IF($B143=\"N\",\"\",IF(AND('Enrollment Form'!$C150=\"ROC\",'Enrollment Form'!$DS150<>\"\"),\"Y\",IF(AND('Enrollment Form'!$C150=\"ROC\",'Enrollment Form'!$DS150=\"\"),\"N\",IF(AND('Enrollment Form'!$C150=\"Enroll\",'Enrollment Form'!$B150=\"Subscriber\",'Enrollment Form'!$CX150=\"No\",'Enrollment Form'!$DS150=\"\"),\"N\",IF(AND('Enrollment Form'!$C150=\"Enroll\",'Enrollment Form'!$B150=\"Subscriber\",'Enrollment Form'!$CX150=\"Yes\"),\"-\",\"Y\")))))","v":""},{"$f":"IF('Enrollment Form'!AH150=\"\",\"\",IF(ISERROR(SEARCH(\".\",'Enrollment Form'!AH150,SEARCH(\"@\",'Enrollment Form'!AH150))),\"N\",\"Y\"))","v":""},{"$f":"IF(OR($B143=\"N\",'Enrollment Form'!$G150=\"\"),\"\",IF('Enrollment Form'!$B150<>\"Subscriber\",\"-\",IF(COUNTIF('Enrollment Form'!$AV150:$AW150,\"Yes\")=2,\"N\",\"Y\")))","v":""},{"$f":"IF(OR('Enrollment Form'!$CJ150=\"\",'Enrollment Form'!$CJ150=\"No\"),\"-\",IF(AND('Enrollment Form'!$CJ150=\"Yes\",'Enrollment Form'!$CK150=\"\"),\"N\",\"Y\"))","v":"-"},{"$f":"IF(OR('Enrollment Form'!$CL150=\"\",'Enrollment Form'!$CL150=\"No\"),\"-\",IF(AND('Enrollment Form'!$CL150=\"Yes\",'Enrollment Form'!$CM150=\"\"),\"N\",\"Y\"))","v":"-"},{"$f":"IF(OR('Enrollment Form'!$CN150=\"\",'Enrollment Form'!$CN150=\"No\"),\"-\",IF(AND('Enrollment Form'!$CN150=\"Yes\",'Enrollment Form'!$CO150=\"\"),\"N\",\"Y\"))","v":"-"},{"$f":"IF(OR('Enrollment Form'!$CN150=\"\",'Enrollment Form'!$CN150=\"No\"),\"-\",IF(AND('Enrollment Form'!$CN150=\"Yes\",'Enrollment Form'!$CP150=\"\"),\"N\",\"Y\"))","v":"-"},{"$f":"IF('Enrollment Form'!B150<>\"Subscriber\",\"-\",IF(AND('Enrollment Form'!B150=\"Subscriber\",'Enrollment Form'!C150=\"Enroll\",'Enrollment Form'!AA150=\"\"),\"N\",\"Y\"))","v":"-"},{"$f":"IF(OR('Enrollment Form'!B150=\"Subscriber\",'Enrollment Form'!B150=\"\"),\"-\",IF('Enrollment Form'!BP150=\"\",\"N\",\"Y\"))","v":"-"},{"$f":"IF('Enrollment Form'!B150<>\"Subscriber\",\"-\",IF(AND('Enrollment Form'!B150=\"Subscriber\",'Enrollment Form'!G150=\"\"),\"N\",\"Y\"))","v":"-"},{"$f":"IF('Enrollment Form'!A150=\"\",\"\",IF('Enrollment Form'!B150=\"Subscriber\",\"-\",IF(AND('Enrollment Form'!B150<>\"Subscriber\",'Enrollment Form'!G150='Enrollment Form'!H150),\"N\",\"Y\")))","v":""},0]
[151,{"$f":"IF('Enrollment Form'!$A151<>\"\",\"Y\",\"N\")","v":"N"},{"$f":"IF(AND('Enrollment Form'!$B151=\"\",'Enrollment Form'!$C151<>\"\"),\"N\",IF($B144=\"N\",\"\",\"Y\"))","v":""},{"$f":"IF(OR($B144=\"N\",'Enrollment Form'!G151=\"\"),\"\",IF('Enrollment Form'!$B151<>\"Subscriber\",\"\",IF('Enrollment Form'!$G151='Enrollment Form'!$H151,\"Y\",\"N\")))","v":""},{"$f":"IF($B144=\"N\",\"\",IF(AND(COUNTIFS('Enrollment Form'!$H$11:$H$1000,'Enrollment Form'!$H151,'Enrollment Form'!$B$11:$B$1000,'Enrollment Form'!$B151)>1,'Enrollment Form'!$H151<>\"\"),\"N\",\"Y\"))","v":""},{"$f":"IF($B144=\"N\",\"\",IF(LEN('Enrollment Form'!$Y151)=0,\"\",IF(LEN('Enrollment Form'!$Y151)<>5,\"N\",\"Y\")))","v":""},{"$f":"IF($B144=\"N\",\"\",IF(LEN('Enrollment Form'!$AD151=0),\"\",IF(LEN('Enrollment Form'!$AD151)<>5,\"N\",\"Y\")))","v":""},{"$f":"IF($B144=\"N\",\"\",IF(LEN('Enrollment Form'!$BS151=0),\"\",IF(LEN('Enrollment Form'!$BS151)<>5,\"N\",\"Y\")))","v":""},{"$f":"IF($B144=\"N\",\"\",IF(LEN('Enrollment Form'!$AE151)=0,\"\",IF(LEN('Enrollment Form'!$AE151)<>10,\"N\",\"Y\")))","v":""},{"$f":"IF($B144=\"N\",\"\",IF(LEN('Enrollment Form'!$AF151)=0,\"\",IF(LEN('Enrollment Form'!$AF151)<>10,\"N\",\"Y\")))","v":""},{"$f":"IF('Enrollment Form'!$O151<>\"Graded\",\"-\",IF(AND('Enrollment Form'!$O151=\"Graded\",'Enrollment Form'!$AR151<>\"\"),\"Y\",\"N\"))","v":"-"},{"$f":"IF($B144=\"N\",\"\",IF(OR('Enrollment Form'!$B151<>\"Subscriber\",'Enrollment Form'!$C151=\"ROC\"),\"-\",IF(AND('Enrollment Form'!$B151=\"Subscriber\",'Enrollment Form'!$C151=\"Enroll\",'Enrollment Form'!$AJ151<>\"\"),\"Y\",\"N\")))","v":""},{"$f":"IF($B144=\"N\",\"\",IF(OR('Enrollment Form'!$B151<>\"Subscriber\",'Enrollment Form'!$C151=\"ROC\"),\"-\",IF(AND('Enrollment Form'!$B151=\"Subscriber\",'Enrollment Form'!$C151=\"Enroll\",'Enrollment Form'!$AK151<>\"\"),\"Y\",\"N\")))","v":""},{"$f":"IF($B144=\"N\",\"\",IF(OR('Enrollment Form'!$B151<>\"Subscriber\",'Enrollment Form'!$C151=\"ROC\"),\"-\",IF(AND('Enrollment Form'!$B151=\"Subscriber\",'Enrollment Form'!$C151=\"Enroll\",'Enrollment Form'!$AL151<>\"\"),\"Y\",\"N\")))","v":""},{"$f":"IF($B144=\"N\",\"\",IF(OR('Enrollment Form'!$B151<>\"Subscriber\",'Enrollment Form'!$C151=\"ROC\"),\"-\",IF(AND('Enrollment Form'!$B151=\"Subscriber\",'Enrollment Form'!$C151=\"Enroll\",'Enrollment Form'!$AP151<>\"\"),\"Y\",\"N\")))","v":""},{"$f":"IF($B144=\"N\",\"\",IF(OR('Enrollment Form'!$B151<>\"Subscriber\",'Enrollment Form'!$C151=\"ROC\"),\"-\",IF(AND('Enrollment Form'!$B151=\"Subscriber\",'Enrollment Form'!$C151=\"Enroll\",'Enrollment Form'!$AQ151<>\"\"),\"Y\",\"N\")))","v":""},{"$f":"IF($B144=\"N\",\"\",IF(OR('Enrollment Form'!$B151<>\"Subscriber\",'Enrollment Form'!$C151=\"ROC\"),\"-\",IF(AND('Enrollment Form'!$B151=\"Subscriber\",'Enrollment Form'!$C151=\"Enroll\",'Enrollment Form'!$AS151<>\"\"),\"Y\",\"N\")))","v":""},{"$f":"IF($B144=\"N\",\"\",IF($Q144=\"-\",\"-\",IF(AND($Q144=\"Y\",'Enrollment Form'!$AS151=\"No\"),\"-\",IF(AND($Q144=\"Y\",'Enrollment Form'!$AS151=\"Yes\",'Enrollment Form'!$AT151<>\"\"),\"Y\",\"N\"))))","v":""},{"$f":"IF($B144=\"N\",\"\",IF(OR('Enrollment Form'!$B151<>\"Subscriber\",'Enrollment Form'!$C151=\"ROC\"),\"-\",IF(AND('Enrollment Form'!$B151=\"Subscriber\",'Enrollment Form'!$C151=\"Enroll\",'Enrollment Form'!$CV151<>\"\"),\"Y\",\"N\")))","v":""},{"$f":"IF($B144=\"N\",\"\",IF($S144=\"-\",\"-\",IF(AND($S144=\"Y\",'Enrollment Form'!$CV151=\"No\"),\"-\",IF(AND($S144=\"Y\",'Enrollment Form'!$CV151=\"Yes\",'Enrollment Form'!$CW151<>\"\"),\"Y\",\"N\"))))","v":""},{"$f":"IF(OR('Enrollment Form'!$AY151=\"Yes\",'Enrollment Form'!$AY151=\"\"),\"-\",IF(OR(AND('Enrollment Form'!$AY151=\"No\",ISERROR(FIND(\"HMO\",VLOOKUP('Enrollment Form'!G151,'Enrollment Form'!H$11:J$1000,3,FALSE),1))=FALSE,COUNTA('Enrollment Form'!$AZ151:$BC151)=4),AND('Enrollment Form'!$AY151=\"No\",ISERROR(FIND(\"HMO\",VLOOKUP('Enrollment Form'!G151,'Enrollment Form'!H$11:J$1000,3,FALSE),1))=FALSE,COUNTA('Enrollment Form'!$BT151:$BW151)=4)),\"Y\",\"N\"))","v":"-"},{"$f":"IF($B144=\"N\",\"\",IF('Enrollment Form'!$B151=\"Subscriber\",\"-\",IF(COUNTA('Enrollment Form'!$BL151,'Enrollment Form'!$BN151)=2,\"Y\",\"N\")))","v":""},{"$f":"IF($B144=\"N\",\"\",IF(OR('Enrollment Form'!$AX151=\"\",'Enrollment Form'!$AX151=\"No\"),\"-\",IF(AND('Enrollment Form'!$AX151=\"Yes\",COUNTA('Enrollment Form'!$CR151)=1),\"Y\",\"N\")))","v":""},{"$f":"IF(OR('Enrollment Form'!$CR151=\"\",'Enrollment Form'!$CR151=\"No\"),\"-\",IF(COUNTA('Enrollment Form'!$CT151:$CU151)=2,\"Y\",\"N\"))","v":"-"},{"$f":"IF($B144=\"N\",\"\",IF(COUNTIF('Enrollment Form'!$DG151:$DP151,\"Other\")=COUNTA('Enrollment Form'!$DK151,'Enrollment Form'!$DH151,'Enrollment Form'!$DN151,'Enrollment Form'!$DQ151),\"Y\",\"N\"))","v":""},{"$f":"IF($B144=\"N\",\"\",IF(OR('Enrollment Form'!B151<>\"Subscriber\",'Enrollment Form'!C151=\"ROC\",COUNTIF('Enrollment Form'!AV151:AW151,\"Yes\")>=1),\"-\",IF(AND('Enrollment Form'!C151=\"Enroll\",COUNTIF('Enrollment Form'!AV151:AW151,\"No\")=2,'Enrollment Form'!AX151=\"\"),\"N\",\"Y\")))","v":""},{"$f":"IF(OR(B144=\"N\",'Enrollment Form'!B151<>\"Subscriber\",'Enrollment Form'!C151=\"ROC\",'Enrollment Form'!O151<>\"Multiple of Salary\"),\"-\",IF(COUNTA('Enrollment Form'!T151:U151)<2,\"N\",\"Y\"))","v":"-"},{"$f":"IF(B144=\"N\",\"\",IF(OR('Enrollment Form'!C151=\"ROC\",'Enrollment Form'!B151<>\"Subscriber\",'Enrollment Form'!O151=\"Waive\",'Enrollment Form'!O151=\"\"),\"-\",IF('Enrollment Form'!P151=\"\",\"N\",\"Y\")))","v":""},{"$f":"IF($B144=\"N\",\"\",IF(AND('Enrollment Form'!$C151=\"ROC\",'Enrollment Form'!$DR151<>\"\"),\"Y\",IF(AND('Enrollment Form'!$C151=\"ROC\",'Enrollment Form'!$DR151=\"\"),\"N\",IF(AND('Enrollment Form'!$C151=\"Enroll\",'Enrollment Form'!$B151=\"Subscriber\",'Enrollment Form'!$CX151=\"No\",'Enrollment Form'!$DR151=\"\"),\"N\",IF(AND('Enrollment Form'!$C151=\"Enroll\",'Enrollment Form'!$B151=\"Subscriber\",'Enrollment Form'!$CX151=\"Yes\"),\"-\",\"Y\")))))","v":""},{"$f":"IF($B144=\"N\",\"\",IF(AND('Enrollment Form'!$C151=\"ROC\",'Enrollment Form'!$DS151<>\"\"),\"Y\",IF(AND('Enrollment Form'!$C151=\"ROC\",'Enrollment Form'!$DS151=\"\"),\"N\",IF(AND('Enrollment Form'!$C151=\"Enroll\",'Enrollment Form'!$B151=\"Subscriber\",'Enrollment Form'!$CX151=\"No\",'Enrollment Form'!$DS151=\"\"),\"N\",IF(AND('Enrollment Form'!$C151=\"Enroll\",'Enrollment Form'!$B151=\"Subscriber\",'Enrollment Form'!$CX151=\"Yes\"),\"-\",\"Y\")))))","v":""},{"$f":"IF('Enrollment Form'!AH151=\"\",\"\",IF(ISERROR(SEARCH(\".\",'Enrollment Form'!AH151,SEARCH(\"@\",'Enrollment Form'!AH151))),\"N\",\"Y\"))","v":""},{"$f":"IF(OR($B144=\"N\",'Enrollment Form'!$G151=\"\"),\"\",IF('Enrollment Form'!$B151<>\"Subscriber\",\"-\",IF(COUNTIF('Enrollment Form'!$AV151:$AW151,\"Yes\")=2,\"N\",\"Y\")))","v":""},{"$f":"IF(OR('Enrollment Form'!$CJ151=\"\",'Enrollment Form'!$CJ151=\"No\"),\"-\",IF(AND('Enrollment Form'!$CJ151=\"Yes\",'Enrollment Form'!$CK151=\"\"),\"N\",\"Y\"))","v":"-"},{"$f":"IF(OR('Enrollment Form'!$CL151=\"\",'Enrollment Form'!$CL151=\"No\"),\"-\",IF(AND('Enrollment Form'!$CL151=\"Yes\",'Enrollment Form'!$CM151=\"\"),\"N\",\"Y\"))","v":"-"},{"$f":"IF(OR('Enrollment Form'!$CN151=\"\",'Enrollment Form'!$CN151=\"No\"),\"-\",IF(AND('Enrollment Form'!$CN151=\"Yes\",'Enrollment Form'!$CO151=\"\"),\"N\",\"Y\"))","v":"-"},{"$f":"IF(OR('Enrollment Form'!$CN151=\"\",'Enrollment Form'!$CN151=\"No\"),\"-\",IF(AND('Enrollment Form'!$CN151=\"Yes\",'Enrollment Form'!$CP151=\"\"),\"N\",\"Y\"))","v":"-"},{"$f":"IF('Enrollment Form'!B151<>\"Subscriber\",\"-\",IF(AND('Enrollment Form'!B151=\"Subscriber\",'Enrollment Form'!C151=\"Enroll\",'Enrollment Form'!AA151=\"\"),\"N\",\"Y\"))","v":"-"},{"$f":"IF(OR('Enrollment Form'!B151=\"Subscriber\",'Enrollment Form'!B151=\"\"),\"-\",IF('Enrollment Form'!BP151=\"\",\"N\",\"Y\"))","v":"-"},{"$f":"IF('Enrollment Form'!B151<>\"Subscriber\",\"-\",IF(AND('Enrollment Form'!B151=\"Subscriber\",'Enrollment Form'!G151=\"\"),\"N\",\"Y\"))","v":"-"},{"$f":"IF('Enrollment Form'!A151=\"\",\"\",IF('Enrollment Form'!B151=\"Subscriber\",\"-\",IF(AND('Enrollment Form'!B151<>\"Subscriber\",'Enrollment Form'!G151='Enrollment Form'!H151),\"N\",\"Y\")))","v":""},0]
[152,{"$f":"IF('Enrollment Form'!$A152<>\"\",\"Y\",\"N\")","v":"N"},{"$f":"IF(AND('Enrollment Form'!$B152=\"\",'Enrollment Form'!$C152<>\"\"),\"N\",IF($B145=\"N\",\"\",\"Y\"))","v":""},{"$f":"IF(OR($B145=\"N\",'Enrollment Form'!G152=\"\"),\"\",IF('Enrollment Form'!$B152<>\"Subscriber\",\"\",IF('Enrollment Form'!$G152='Enrollment Form'!$H152,\"Y\",\"N\")))","v":""},{"$f":"IF($B145=\"N\",\"\",IF(AND(COUNTIFS('Enrollment Form'!$H$11:$H$1000,'Enrollment Form'!$H152,'Enrollment Form'!$B$11:$B$1000,'Enrollment Form'!$B152)>1,'Enrollment Form'!$H152<>\"\"),\"N\",\"Y\"))","v":""},{"$f":"IF($B145=\"N\",\"\",IF(LEN('Enrollment Form'!$Y152)=0,\"\",IF(LEN('Enrollment Form'!$Y152)<>5,\"N\",\"Y\")))","v":""},{"$f":"IF($B145=\"N\",\"\",IF(LEN('Enrollment Form'!$AD152=0),\"\",IF(LEN('Enrollment Form'!$AD152)<>5,\"N\",\"Y\")))","v":""},{"$f":"IF($B145=\"N\",\"\",IF(LEN('Enrollment Form'!$BS152=0),\"\",IF(LEN('Enrollment Form'!$BS152)<>5,\"N\",\"Y\")))","v":""},{"$f":"IF($B145=\"N\",\"\",IF(LEN('Enrollment Form'!$AE152)=0,\"\",IF(LEN('Enrollment Form'!$AE152)<>10,\"N\",\"Y\")))","v":""},{"$f":"IF($B145=\"N\",\"\",IF(LEN('Enrollment Form'!$AF152)=0,\"\",IF(LEN('Enrollment Form'!$AF152)<>10,\"N\",\"Y\")))","v":""},{"$f":"IF('Enrollment Form'!$O152<>\"Graded\",\"-\",IF(AND('Enrollment Form'!$O152=\"Graded\",'Enrollment Form'!$AR152<>\"\"),\"Y\",\"N\"))","v":"-"},{"$f":"IF($B145=\"N\",\"\",IF(OR('Enrollment Form'!$B152<>\"Subscriber\",'Enrollment Form'!$C152=\"ROC\"),\"-\",IF(AND('Enrollment Form'!$B152=\"Subscriber\",'Enrollment Form'!$C152=\"Enroll\",'Enrollment Form'!$AJ152<>\"\"),\"Y\",\"N\")))","v":""},{"$f":"IF($B145=\"N\",\"\",IF(OR('Enrollment Form'!$B152<>\"Subscriber\",'Enrollment Form'!$C152=\"ROC\"),\"-\",IF(AND('Enrollment Form'!$B152=\"Subscriber\",'Enrollment Form'!$C152=\"Enroll\",'Enrollment Form'!$AK152<>\"\"),\"Y\",\"N\")))","v":""},{"$f":"IF($B145=\"N\",\"\",IF(OR('Enrollment Form'!$B152<>\"Subscriber\",'Enrollment Form'!$C152=\"ROC\"),\"-\",IF(AND('Enrollment Form'!$B152=\"Subscriber\",'Enrollment Form'!$C152=\"Enroll\",'Enrollment Form'!$AL152<>\"\"),\"Y\",\"N\")))","v":""},{"$f":"IF($B145=\"N\",\"\",IF(OR('Enrollment Form'!$B152<>\"Subscriber\",'Enrollment Form'!$C152=\"ROC\"),\"-\",IF(AND('Enrollment Form'!$B152=\"Subscriber\",'Enrollment Form'!$C152=\"Enroll\",'Enrollment Form'!$AP152<>\"\"),\"Y\",\"N\")))","v":""},{"$f":"IF($B145=\"N\",\"\",IF(OR('Enrollment Form'!$B152<>\"Subscriber\",'Enrollment Form'!$C152=\"ROC\"),\"-\",IF(AND('Enrollment Form'!$B152=\"Subscriber\",'Enrollment Form'!$C152=\"Enroll\",'Enrollment Form'!$AQ152<>\"\"),\"Y\",\"N\")))","v":""},{"$f":"IF($B145=\"N\",\"\",IF(OR('Enrollment Form'!$B152<>\"Subscriber\",'Enrollment Form'!$C152=\"ROC\"),\"-\",IF(AND('Enrollment Form'!$B152=\"Subscriber\",'Enrollment Form'!$C152=\"Enroll\",'Enrollment Form'!$AS152<>\"\"),\"Y\",\"N\")))","v":""},{"$f":"IF($B145=\"N\",\"\",IF($Q145=\"-\",\"-\",IF(AND($Q145=\"Y\",'Enrollment Form'!$AS152=\"No\"),\"-\",IF(AND($Q145=\"Y\",'Enrollment Form'!$AS152=\"Yes\",'Enrollment Form'!$AT152<>\"\"),\"Y\",\"N\"))))","v":""},{"$f":"IF($B145=\"N\",\"\",IF(OR('Enrollment Form'!$B152<>\"Subscriber\",'Enrollment Form'!$C152=\"ROC\"),\"-\",IF(AND('Enrollment Form'!$B152=\"Subscriber\",'Enrollment Form'!$C152=\"Enroll\",'Enrollment Form'!$CV152<>\"\"),\"Y\",\"N\")))","v":""},{"$f":"IF($B145=\"N\",\"\",IF($S145=\"-\",\"-\",IF(AND($S145=\"Y\",'Enrollment Form'!$CV152=\"No\"),\"-\",IF(AND($S145=\"Y\",'Enrollment Form'!$CV152=\"Yes\",'Enrollment Form'!$CW152<>\"\"),\"Y\",\"N\"))))","v":""},{"$f":"IF(OR('Enrollment Form'!$AY152=\"Yes\",'Enrollment Form'!$AY152=\"\"),\"-\",IF(OR(AND('Enrollment Form'!$AY152=\"No\",ISERROR(FIND(\"HMO\",VLOOKUP('Enrollment Form'!G152,'Enrollment Form'!H$11:J$1000,3,FALSE),1))=FALSE,COUNTA('Enrollment Form'!$AZ152:$BC152)=4),AND('Enrollment Form'!$AY152=\"No\",ISERROR(FIND(\"HMO\",VLOOKUP('Enrollment Form'!G152,'Enrollment Form'!H$11:J$1000,3,FALSE),1))=FALSE,COUNTA('Enrollment Form'!$BT152:$BW152)=4)),\"Y\",\"N\"))","v":"-"},{"$f":"IF($B145=\"N\",\"\",IF('Enrollment Form'!$B152=\"Subscriber\",\"-\",IF(COUNTA('Enrollment Form'!$BL152,'Enrollment Form'!$BN152)=2,\"Y\",\"N\")))","v":""},{"$f":"IF($B145=\"N\",\"\",IF(OR('Enrollment Form'!$AX152=\"\",'Enrollment Form'!$AX152=\"No\"),\"-\",IF(AND('Enrollment Form'!$AX152=\"Yes\",COUNTA('Enrollment Form'!$CR152)=1),\"Y\",\"N\")))","v":""},{"$f":"IF(OR('Enrollment Form'!$CR152=\"\",'Enrollment Form'!$CR152=\"No\"),\"-\",IF(COUNTA('Enrollment Form'!$CT152:$CU152)=2,\"Y\",\"N\"))","v":"-"},{"$f":"IF($B145=\"N\",\"\",IF(COUNTIF('Enrollment Form'!$DG152:$DP152,\"Other\")=COUNTA('Enrollment Form'!$DK152,'Enrollment Form'!$DH152,'Enrollment Form'!$DN152,'Enrollment Form'!$DQ152),\"Y\",\"N\"))","v":""},{"$f":"IF($B145=\"N\",\"\",IF(OR('Enrollment Form'!B152<>\"Subscriber\",'Enrollment Form'!C152=\"ROC\",COUNTIF('Enrollment Form'!AV152:AW152,\"Yes\")>=1),\"-\",IF(AND('Enrollment Form'!C152=\"Enroll\",COUNTIF('Enrollment Form'!AV152:AW152,\"No\")=2,'Enrollment Form'!AX152=\"\"),\"N\",\"Y\")))","v":""},{"$f":"IF(OR(B145=\"N\",'Enrollment Form'!B152<>\"Subscriber\",'Enrollment Form'!C152=\"ROC\",'Enrollment Form'!O152<>\"Multiple of Salary\"),\"-\",IF(COUNTA('Enrollment Form'!T152:U152)<2,\"N\",\"Y\"))","v":"-"},{"$f":"IF(B145=\"N\",\"\",IF(OR('Enrollment Form'!C152=\"ROC\",'Enrollment Form'!B152<>\"Subscriber\",'Enrollment Form'!O152=\"Waive\",'Enrollment Form'!O152=\"\"),\"-\",IF('Enrollment Form'!P152=\"\",\"N\",\"Y\")))","v":""},{"$f":"IF($B145=\"N\",\"\",IF(AND('Enrollment Form'!$C152=\"ROC\",'Enrollment Form'!$DR152<>\"\"),\"Y\",IF(AND('Enrollment Form'!$C152=\"ROC\",'Enrollment Form'!$DR152=\"\"),\"N\",IF(AND('Enrollment Form'!$C152=\"Enroll\",'Enrollment Form'!$B152=\"Subscriber\",'Enrollment Form'!$CX152=\"No\",'Enrollment Form'!$DR152=\"\"),\"N\",IF(AND('Enrollment Form'!$C152=\"Enroll\",'Enrollment Form'!$B152=\"Subscriber\",'Enrollment Form'!$CX152=\"Yes\"),\"-\",\"Y\")))))","v":""},{"$f":"IF($B145=\"N\",\"\",IF(AND('Enrollment Form'!$C152=\"ROC\",'Enrollment Form'!$DS152<>\"\"),\"Y\",IF(AND('Enrollment Form'!$C152=\"ROC\",'Enrollment Form'!$DS152=\"\"),\"N\",IF(AND('Enrollment Form'!$C152=\"Enroll\",'Enrollment Form'!$B152=\"Subscriber\",'Enrollment Form'!$CX152=\"No\",'Enrollment Form'!$DS152=\"\"),\"N\",IF(AND('Enrollment Form'!$C152=\"Enroll\",'Enrollment Form'!$B152=\"Subscriber\",'Enrollment Form'!$CX152=\"Yes\"),\"-\",\"Y\")))))","v":""},{"$f":"IF('Enrollment Form'!AH152=\"\",\"\",IF(ISERROR(SEARCH(\".\",'Enrollment Form'!AH152,SEARCH(\"@\",'Enrollment Form'!AH152))),\"N\",\"Y\"))","v":""},{"$f":"IF(OR($B145=\"N\",'Enrollment Form'!$G152=\"\"),\"\",IF('Enrollment Form'!$B152<>\"Subscriber\",\"-\",IF(COUNTIF('Enrollment Form'!$AV152:$AW152,\"Yes\")=2,\"N\",\"Y\")))","v":""},{"$f":"IF(OR('Enrollment Form'!$CJ152=\"\",'Enrollment Form'!$CJ152=\"No\"),\"-\",IF(AND('Enrollment Form'!$CJ152=\"Yes\",'Enrollment Form'!$CK152=\"\"),\"N\",\"Y\"))","v":"-"},{"$f":"IF(OR('Enrollment Form'!$CL152=\"\",'Enrollment Form'!$CL152=\"No\"),\"-\",IF(AND('Enrollment Form'!$CL152=\"Yes\",'Enrollment Form'!$CM152=\"\"),\"N\",\"Y\"))","v":"-"},{"$f":"IF(OR('Enrollment Form'!$CN152=\"\",'Enrollment Form'!$CN152=\"No\"),\"-\",IF(AND('Enrollment Form'!$CN152=\"Yes\",'Enrollment Form'!$CO152=\"\"),\"N\",\"Y\"))","v":"-"},{"$f":"IF(OR('Enrollment Form'!$CN152=\"\",'Enrollment Form'!$CN152=\"No\"),\"-\",IF(AND('Enrollment Form'!$CN152=\"Yes\",'Enrollment Form'!$CP152=\"\"),\"N\",\"Y\"))","v":"-"},{"$f":"IF('Enrollment Form'!B152<>\"Subscriber\",\"-\",IF(AND('Enrollment Form'!B152=\"Subscriber\",'Enrollment Form'!C152=\"Enroll\",'Enrollment Form'!AA152=\"\"),\"N\",\"Y\"))","v":"-"},{"$f":"IF(OR('Enrollment Form'!B152=\"Subscriber\",'Enrollment Form'!B152=\"\"),\"-\",IF('Enrollment Form'!BP152=\"\",\"N\",\"Y\"))","v":"-"},{"$f":"IF('Enrollment Form'!B152<>\"Subscriber\",\"-\",IF(AND('Enrollment Form'!B152=\"Subscriber\",'Enrollment Form'!G152=\"\"),\"N\",\"Y\"))","v":"-"},{"$f":"IF('Enrollment Form'!A152=\"\",\"\",IF('Enrollment Form'!B152=\"Subscriber\",\"-\",IF(AND('Enrollment Form'!B152<>\"Subscriber\",'Enrollment Form'!G152='Enrollment Form'!H152),\"N\",\"Y\")))","v":""},0]
[153,{"$f":"IF('Enrollment Form'!$A153<>\"\",\"Y\",\"N\")","v":"N"},{"$f":"IF(AND('Enrollment Form'!$B153=\"\",'Enrollment Form'!$C153<>\"\"),\"N\",IF($B146=\"N\",\"\",\"Y\"))","v":""},{"$f":"IF(OR($B146=\"N\",'Enrollment Form'!G153=\"\"),\"\",IF('Enrollment Form'!$B153<>\"Subscriber\",\"\",IF('Enrollment Form'!$G153='Enrollment Form'!$H153,\"Y\",\"N\")))","v":""},{"$f":"IF($B146=\"N\",\"\",IF(AND(COUNTIFS('Enrollment Form'!$H$11:$H$1000,'Enrollment Form'!$H153,'Enrollment Form'!$B$11:$B$1000,'Enrollment Form'!$B153)>1,'Enrollment Form'!$H153<>\"\"),\"N\",\"Y\"))","v":""},{"$f":"IF($B146=\"N\",\"\",IF(LEN('Enrollment Form'!$Y153)=0,\"\",IF(LEN('Enrollment Form'!$Y153)<>5,\"N\",\"Y\")))","v":""},{"$f":"IF($B146=\"N\",\"\",IF(LEN('Enrollment Form'!$AD153=0),\"\",IF(LEN('Enrollment Form'!$AD153)<>5,\"N\",\"Y\")))","v":""},{"$f":"IF($B146=\"N\",\"\",IF(LEN('Enrollment Form'!$BS153=0),\"\",IF(LEN('Enrollment Form'!$BS153)<>5,\"N\",\"Y\")))","v":""},{"$f":"IF($B146=\"N\",\"\",IF(LEN('Enrollment Form'!$AE153)=0,\"\",IF(LEN('Enrollment Form'!$AE153)<>10,\"N\",\"Y\")))","v":""},{"$f":"IF($B146=\"N\",\"\",IF(LEN('Enrollment Form'!$AF153)=0,\"\",IF(LEN('Enrollment Form'!$AF153)<>10,\"N\",\"Y\")))","v":""},{"$f":"IF('Enrollment Form'!$O153<>\"Graded\",\"-\",IF(AND('Enrollment Form'!$O153=\"Graded\",'Enrollment Form'!$AR153<>\"\"),\"Y\",\"N\"))","v":"-"},{"$f":"IF($B146=\"N\",\"\",IF(OR('Enrollment Form'!$B153<>\"Subscriber\",'Enrollment Form'!$C153=\"ROC\"),\"-\",IF(AND('Enrollment Form'!$B153=\"Subscriber\",'Enrollment Form'!$C153=\"Enroll\",'Enrollment Form'!$AJ153<>\"\"),\"Y\",\"N\")))","v":""},{"$f":"IF($B146=\"N\",\"\",IF(OR('Enrollment Form'!$B153<>\"Subscriber\",'Enrollment Form'!$C153=\"ROC\"),\"-\",IF(AND('Enrollment Form'!$B153=\"Subscriber\",'Enrollment Form'!$C153=\"Enroll\",'Enrollment Form'!$AK153<>\"\"),\"Y\",\"N\")))","v":""},{"$f":"IF($B146=\"N\",\"\",IF(OR('Enrollment Form'!$B153<>\"Subscriber\",'Enrollment Form'!$C153=\"ROC\"),\"-\",IF(AND('Enrollment Form'!$B153=\"Subscriber\",'Enrollment Form'!$C153=\"Enroll\",'Enrollment Form'!$AL153<>\"\"),\"Y\",\"N\")))","v":""},{"$f":"IF($B146=\"N\",\"\",IF(OR('Enrollment Form'!$B153<>\"Subscriber\",'Enrollment Form'!$C153=\"ROC\"),\"-\",IF(AND('Enrollment Form'!$B153=\"Subscriber\",'Enrollment Form'!$C153=\"Enroll\",'Enrollment Form'!$AP153<>\"\"),\"Y\",\"N\")))","v":""},{"$f":"IF($B146=\"N\",\"\",IF(OR('Enrollment Form'!$B153<>\"Subscriber\",'Enrollment Form'!$C153=\"ROC\"),\"-\",IF(AND('Enrollment Form'!$B153=\"Subscriber\",'Enrollment Form'!$C153=\"Enroll\",'Enrollment Form'!$AQ153<>\"\"),\"Y\",\"N\")))","v":""},{"$f":"IF($B146=\"N\",\"\",IF(OR('Enrollment Form'!$B153<>\"Subscriber\",'Enrollment Form'!$C153=\"ROC\"),\"-\",IF(AND('Enrollment Form'!$B153=\"Subscriber\",'Enrollment Form'!$C153=\"Enroll\",'Enrollment Form'!$AS153<>\"\"),\"Y\",\"N\")))","v":""},{"$f":"IF($B146=\"N\",\"\",IF($Q146=\"-\",\"-\",IF(AND($Q146=\"Y\",'Enrollment Form'!$AS153=\"No\"),\"-\",IF(AND($Q146=\"Y\",'Enrollment Form'!$AS153=\"Yes\",'Enrollment Form'!$AT153<>\"\"),\"Y\",\"N\"))))","v":""},{"$f":"IF($B146=\"N\",\"\",IF(OR('Enrollment Form'!$B153<>\"Subscriber\",'Enrollment Form'!$C153=\"ROC\"),\"-\",IF(AND('Enrollment Form'!$B153=\"Subscriber\",'Enrollment Form'!$C153=\"Enroll\",'Enrollment Form'!$CV153<>\"\"),\"Y\",\"N\")))","v":""},{"$f":"IF($B146=\"N\",\"\",IF($S146=\"-\",\"-\",IF(AND($S146=\"Y\",'Enrollment Form'!$CV153=\"No\"),\"-\",IF(AND($S146=\"Y\",'Enrollment Form'!$CV153=\"Yes\",'Enrollment Form'!$CW153<>\"\"),\"Y\",\"N\"))))","v":""},{"$f":"IF(OR('Enrollment Form'!$AY153=\"Yes\",'Enrollment Form'!$AY153=\"\"),\"-\",IF(OR(AND('Enrollment Form'!$AY153=\"No\",ISERROR(FIND(\"HMO\",VLOOKUP('Enrollment Form'!G153,'Enrollment Form'!H$11:J$1000,3,FALSE),1))=FALSE,COUNTA('Enrollment Form'!$AZ153:$BC153)=4),AND('Enrollment Form'!$AY153=\"No\",ISERROR(FIND(\"HMO\",VLOOKUP('Enrollment Form'!G153,'Enrollment Form'!H$11:J$1000,3,FALSE),1))=FALSE,COUNTA('Enrollment Form'!$BT153:$BW153)=4)),\"Y\",\"N\"))","v":"-"},{"$f":"IF($B146=\"N\",\"\",IF('Enrollment Form'!$B153=\"Subscriber\",\"-\",IF(COUNTA('Enrollment Form'!$BL153,'Enrollment Form'!$BN153)=2,\"Y\",\"N\")))","v":""},{"$f":"IF($B146=\"N\",\"\",IF(OR('Enrollment Form'!$AX153=\"\",'Enrollment Form'!$AX153=\"No\"),\"-\",IF(AND('Enrollment Form'!$AX153=\"Yes\",COUNTA('Enrollment Form'!$CR153)=1),\"Y\",\"N\")))","v":""},{"$f":"IF(OR('Enrollment Form'!$CR153=\"\",'Enrollment Form'!$CR153=\"No\"),\"-\",IF(COUNTA('Enrollment Form'!$CT153:$CU153)=2,\"Y\",\"N\"))","v":"-"},{"$f":"IF($B146=\"N\",\"\",IF(COUNTIF('Enrollment Form'!$DG153:$DP153,\"Other\")=COUNTA('Enrollment Form'!$DK153,'Enrollment Form'!$DH153,'Enrollment Form'!$DN153,'Enrollment Form'!$DQ153),\"Y\",\"N\"))","v":""},{"$f":"IF($B146=\"N\",\"\",IF(OR('Enrollment Form'!B153<>\"Subscriber\",'Enrollment Form'!C153=\"ROC\",COUNTIF('Enrollment Form'!AV153:AW153,\"Yes\")>=1),\"-\",IF(AND('Enrollment Form'!C153=\"Enroll\",COUNTIF('Enrollment Form'!AV153:AW153,\"No\")=2,'Enrollment Form'!AX153=\"\"),\"N\",\"Y\")))","v":""},{"$f":"IF(OR(B146=\"N\",'Enrollment Form'!B153<>\"Subscriber\",'Enrollment Form'!C153=\"ROC\",'Enrollment Form'!O153<>\"Multiple of Salary\"),\"-\",IF(COUNTA('Enrollment Form'!T153:U153)<2,\"N\",\"Y\"))","v":"-"},{"$f":"IF(B146=\"N\",\"\",IF(OR('Enrollment Form'!C153=\"ROC\",'Enrollment Form'!B153<>\"Subscriber\",'Enrollment Form'!O153=\"Waive\",'Enrollment Form'!O153=\"\"),\"-\",IF('Enrollment Form'!P153=\"\",\"N\",\"Y\")))","v":""},{"$f":"IF($B146=\"N\",\"\",IF(AND('Enrollment Form'!$C153=\"ROC\",'Enrollment Form'!$DR153<>\"\"),\"Y\",IF(AND('Enrollment Form'!$C153=\"ROC\",'Enrollment Form'!$DR153=\"\"),\"N\",IF(AND('Enrollment Form'!$C153=\"Enroll\",'Enrollment Form'!$B153=\"Subscriber\",'Enrollment Form'!$CX153=\"No\",'Enrollment Form'!$DR153=\"\"),\"N\",IF(AND('Enrollment Form'!$C153=\"Enroll\",'Enrollment Form'!$B153=\"Subscriber\",'Enrollment Form'!$CX153=\"Yes\"),\"-\",\"Y\")))))","v":""},{"$f":"IF($B146=\"N\",\"\",IF(AND('Enrollment Form'!$C153=\"ROC\",'Enrollment Form'!$DS153<>\"\"),\"Y\",IF(AND('Enrollment Form'!$C153=\"ROC\",'Enrollment Form'!$DS153=\"\"),\"N\",IF(AND('Enrollment Form'!$C153=\"Enroll\",'Enrollment Form'!$B153=\"Subscriber\",'Enrollment Form'!$CX153=\"No\",'Enrollment Form'!$DS153=\"\"),\"N\",IF(AND('Enrollment Form'!$C153=\"Enroll\",'Enrollment Form'!$B153=\"Subscriber\",'Enrollment Form'!$CX153=\"Yes\"),\"-\",\"Y\")))))","v":""},{"$f":"IF('Enrollment Form'!AH153=\"\",\"\",IF(ISERROR(SEARCH(\".\",'Enrollment Form'!AH153,SEARCH(\"@\",'Enrollment Form'!AH153))),\"N\",\"Y\"))","v":""},{"$f":"IF(OR($B146=\"N\",'Enrollment Form'!$G153=\"\"),\"\",IF('Enrollment Form'!$B153<>\"Subscriber\",\"-\",IF(COUNTIF('Enrollment Form'!$AV153:$AW153,\"Yes\")=2,\"N\",\"Y\")))","v":""},{"$f":"IF(OR('Enrollment Form'!$CJ153=\"\",'Enrollment Form'!$CJ153=\"No\"),\"-\",IF(AND('Enrollment Form'!$CJ153=\"Yes\",'Enrollment Form'!$CK153=\"\"),\"N\",\"Y\"))","v":"-"},{"$f":"IF(OR('Enrollment Form'!$CL153=\"\",'Enrollment Form'!$CL153=\"No\"),\"-\",IF(AND('Enrollment Form'!$CL153=\"Yes\",'Enrollment Form'!$CM153=\"\"),\"N\",\"Y\"))","v":"-"},{"$f":"IF(OR('Enrollment Form'!$CN153=\"\",'Enrollment Form'!$CN153=\"No\"),\"-\",IF(AND('Enrollment Form'!$CN153=\"Yes\",'Enrollment Form'!$CO153=\"\"),\"N\",\"Y\"))","v":"-"},{"$f":"IF(OR('Enrollment Form'!$CN153=\"\",'Enrollment Form'!$CN153=\"No\"),\"-\",IF(AND('Enrollment Form'!$CN153=\"Yes\",'Enrollment Form'!$CP153=\"\"),\"N\",\"Y\"))","v":"-"},{"$f":"IF('Enrollment Form'!B153<>\"Subscriber\",\"-\",IF(AND('Enrollment Form'!B153=\"Subscriber\",'Enrollment Form'!C153=\"Enroll\",'Enrollment Form'!AA153=\"\"),\"N\",\"Y\"))","v":"-"},{"$f":"IF(OR('Enrollment Form'!B153=\"Subscriber\",'Enrollment Form'!B153=\"\"),\"-\",IF('Enrollment Form'!BP153=\"\",\"N\",\"Y\"))","v":"-"},{"$f":"IF('Enrollment Form'!B153<>\"Subscriber\",\"-\",IF(AND('Enrollment Form'!B153=\"Subscriber\",'Enrollment Form'!G153=\"\"),\"N\",\"Y\"))","v":"-"},{"$f":"IF('Enrollment Form'!A153=\"\",\"\",IF('Enrollment Form'!B153=\"Subscriber\",\"-\",IF(AND('Enrollment Form'!B153<>\"Subscriber\",'Enrollment Form'!G153='Enrollment Form'!H153),\"N\",\"Y\")))","v":""},0]
[154,{"$f":"IF('Enrollment Form'!$A154<>\"\",\"Y\",\"N\")","v":"N"},{"$f":"IF(AND('Enrollment Form'!$B154=\"\",'Enrollment Form'!$C154<>\"\"),\"N\",IF($B147=\"N\",\"\",\"Y\"))","v":""},{"$f":"IF(OR($B147=\"N\",'Enrollment Form'!G154=\"\"),\"\",IF('Enrollment Form'!$B154<>\"Subscriber\",\"\",IF('Enrollment Form'!$G154='Enrollment Form'!$H154,\"Y\",\"N\")))","v":""},{"$f":"IF($B147=\"N\",\"\",IF(AND(COUNTIFS('Enrollment Form'!$H$11:$H$1000,'Enrollment Form'!$H154,'Enrollment Form'!$B$11:$B$1000,'Enrollment Form'!$B154)>1,'Enrollment Form'!$H154<>\"\"),\"N\",\"Y\"))","v":""},{"$f":"IF($B147=\"N\",\"\",IF(LEN('Enrollment Form'!$Y154)=0,\"\",IF(LEN('Enrollment Form'!$Y154)<>5,\"N\",\"Y\")))","v":""},{"$f":"IF($B147=\"N\",\"\",IF(LEN('Enrollment Form'!$AD154=0),\"\",IF(LEN('Enrollment Form'!$AD154)<>5,\"N\",\"Y\")))","v":""},{"$f":"IF($B147=\"N\",\"\",IF(LEN('Enrollment Form'!$BS154=0),\"\",IF(LEN('Enrollment Form'!$BS154)<>5,\"N\",\"Y\")))","v":""},{"$f":"IF($B147=\"N\",\"\",IF(LEN('Enrollment Form'!$AE154)=0,\"\",IF(LEN('Enrollment Form'!$AE154)<>10,\"N\",\"Y\")))","v":""},{"$f":"IF($B147=\"N\",\"\",IF(LEN('Enrollment Form'!$AF154)=0,\"\",IF(LEN('Enrollment Form'!$AF154)<>10,\"N\",\"Y\")))","v":""},{"$f":"IF('Enrollment Form'!$O154<>\"Graded\",\"-\",IF(AND('Enrollment Form'!$O154=\"Graded\",'Enrollment Form'!$AR154<>\"\"),\"Y\",\"N\"))","v":"-"},{"$f":"IF($B147=\"N\",\"\",IF(OR('Enrollment Form'!$B154<>\"Subscriber\",'Enrollment Form'!$C154=\"ROC\"),\"-\",IF(AND('Enrollment Form'!$B154=\"Subscriber\",'Enrollment Form'!$C154=\"Enroll\",'Enrollment Form'!$AJ154<>\"\"),\"Y\",\"N\")))","v":""},{"$f":"IF($B147=\"N\",\"\",IF(OR('Enrollment Form'!$B154<>\"Subscriber\",'Enrollment Form'!$C154=\"ROC\"),\"-\",IF(AND('Enrollment Form'!$B154=\"Subscriber\",'Enrollment Form'!$C154=\"Enroll\",'Enrollment Form'!$AK154<>\"\"),\"Y\",\"N\")))","v":""},{"$f":"IF($B147=\"N\",\"\",IF(OR('Enrollment Form'!$B154<>\"Subscriber\",'Enrollment Form'!$C154=\"ROC\"),\"-\",IF(AND('Enrollment Form'!$B154=\"Subscriber\",'Enrollment Form'!$C154=\"Enroll\",'Enrollment Form'!$AL154<>\"\"),\"Y\",\"N\")))","v":""},{"$f":"IF($B147=\"N\",\"\",IF(OR('Enrollment Form'!$B154<>\"Subscriber\",'Enrollment Form'!$C154=\"ROC\"),\"-\",IF(AND('Enrollment Form'!$B154=\"Subscriber\",'Enrollment Form'!$C154=\"Enroll\",'Enrollment Form'!$AP154<>\"\"),\"Y\",\"N\")))","v":""},{"$f":"IF($B147=\"N\",\"\",IF(OR('Enrollment Form'!$B154<>\"Subscriber\",'Enrollment Form'!$C154=\"ROC\"),\"-\",IF(AND('Enrollment Form'!$B154=\"Subscriber\",'Enrollment Form'!$C154=\"Enroll\",'Enrollment Form'!$AQ154<>\"\"),\"Y\",\"N\")))","v":""},{"$f":"IF($B147=\"N\",\"\",IF(OR('Enrollment Form'!$B154<>\"Subscriber\",'Enrollment Form'!$C154=\"ROC\"),\"-\",IF(AND('Enrollment Form'!$B154=\"Subscriber\",'Enrollment Form'!$C154=\"Enroll\",'Enrollment Form'!$AS154<>\"\"),\"Y\",\"N\")))","v":""},{"$f":"IF($B147=\"N\",\"\",IF($Q147=\"-\",\"-\",IF(AND($Q147=\"Y\",'Enrollment Form'!$AS154=\"No\"),\"-\",IF(AND($Q147=\"Y\",'Enrollment Form'!$AS154=\"Yes\",'Enrollment Form'!$AT154<>\"\"),\"Y\",\"N\"))))","v":""},{"$f":"IF($B147=\"N\",\"\",IF(OR('Enrollment Form'!$B154<>\"Subscriber\",'Enrollment Form'!$C154=\"ROC\"),\"-\",IF(AND('Enrollment Form'!$B154=\"Subscriber\",'Enrollment Form'!$C154=\"Enroll\",'Enrollment Form'!$CV154<>\"\"),\"Y\",\"N\")))","v":""},{"$f":"IF($B147=\"N\",\"\",IF($S147=\"-\",\"-\",IF(AND($S147=\"Y\",'Enrollment Form'!$CV154=\"No\"),\"-\",IF(AND($S147=\"Y\",'Enrollment Form'!$CV154=\"Yes\",'Enrollment Form'!$CW154<>\"\"),\"Y\",\"N\"))))","v":""},{"$f":"IF(OR('Enrollment Form'!$AY154=\"Yes\",'Enrollment Form'!$AY154=\"\"),\"-\",IF(OR(AND('Enrollment Form'!$AY154=\"No\",ISERROR(FIND(\"HMO\",VLOOKUP('Enrollment Form'!G154,'Enrollment Form'!H$11:J$1000,3,FALSE),1))=FALSE,COUNTA('Enrollment Form'!$AZ154:$BC154)=4),AND('Enrollment Form'!$AY154=\"No\",ISERROR(FIND(\"HMO\",VLOOKUP('Enrollment Form'!G154,'Enrollment Form'!H$11:J$1000,3,FALSE),1))=FALSE,COUNTA('Enrollment Form'!$BT154:$BW154)=4)),\"Y\",\"N\"))","v":"-"},{"$f":"IF($B147=\"N\",\"\",IF('Enrollment Form'!$B154=\"Subscriber\",\"-\",IF(COUNTA('Enrollment Form'!$BL154,'Enrollment Form'!$BN154)=2,\"Y\",\"N\")))","v":""},{"$f":"IF($B147=\"N\",\"\",IF(OR('Enrollment Form'!$AX154=\"\",'Enrollment Form'!$AX154=\"No\"),\"-\",IF(AND('Enrollment Form'!$AX154=\"Yes\",COUNTA('Enrollment Form'!$CR154)=1),\"Y\",\"N\")))","v":""},{"$f":"IF(OR('Enrollment Form'!$CR154=\"\",'Enrollment Form'!$CR154=\"No\"),\"-\",IF(COUNTA('Enrollment Form'!$CT154:$CU154)=2,\"Y\",\"N\"))","v":"-"},{"$f":"IF($B147=\"N\",\"\",IF(COUNTIF('Enrollment Form'!$DG154:$DP154,\"Other\")=COUNTA('Enrollment Form'!$DK154,'Enrollment Form'!$DH154,'Enrollment Form'!$DN154,'Enrollment Form'!$DQ154),\"Y\",\"N\"))","v":""},{"$f":"IF($B147=\"N\",\"\",IF(OR('Enrollment Form'!B154<>\"Subscriber\",'Enrollment Form'!C154=\"ROC\",COUNTIF('Enrollment Form'!AV154:AW154,\"Yes\")>=1),\"-\",IF(AND('Enrollment Form'!C154=\"Enroll\",COUNTIF('Enrollment Form'!AV154:AW154,\"No\")=2,'Enrollment Form'!AX154=\"\"),\"N\",\"Y\")))","v":""},{"$f":"IF(OR(B147=\"N\",'Enrollment Form'!B154<>\"Subscriber\",'Enrollment Form'!C154=\"ROC\",'Enrollment Form'!O154<>\"Multiple of Salary\"),\"-\",IF(COUNTA('Enrollment Form'!T154:U154)<2,\"N\",\"Y\"))","v":"-"},{"$f":"IF(B147=\"N\",\"\",IF(OR('Enrollment Form'!C154=\"ROC\",'Enrollment Form'!B154<>\"Subscriber\",'Enrollment Form'!O154=\"Waive\",'Enrollment Form'!O154=\"\"),\"-\",IF('Enrollment Form'!P154=\"\",\"N\",\"Y\")))","v":""},{"$f":"IF($B147=\"N\",\"\",IF(AND('Enrollment Form'!$C154=\"ROC\",'Enrollment Form'!$DR154<>\"\"),\"Y\",IF(AND('Enrollment Form'!$C154=\"ROC\",'Enrollment Form'!$DR154=\"\"),\"N\",IF(AND('Enrollment Form'!$C154=\"Enroll\",'Enrollment Form'!$B154=\"Subscriber\",'Enrollment Form'!$CX154=\"No\",'Enrollment Form'!$DR154=\"\"),\"N\",IF(AND('Enrollment Form'!$C154=\"Enroll\",'Enrollment Form'!$B154=\"Subscriber\",'Enrollment Form'!$CX154=\"Yes\"),\"-\",\"Y\")))))","v":""},{"$f":"IF($B147=\"N\",\"\",IF(AND('Enrollment Form'!$C154=\"ROC\",'Enrollment Form'!$DS154<>\"\"),\"Y\",IF(AND('Enrollment Form'!$C154=\"ROC\",'Enrollment Form'!$DS154=\"\"),\"N\",IF(AND('Enrollment Form'!$C154=\"Enroll\",'Enrollment Form'!$B154=\"Subscriber\",'Enrollment Form'!$CX154=\"No\",'Enrollment Form'!$DS154=\"\"),\"N\",IF(AND('Enrollment Form'!$C154=\"Enroll\",'Enrollment Form'!$B154=\"Subscriber\",'Enrollment Form'!$CX154=\"Yes\"),\"-\",\"Y\")))))","v":""},{"$f":"IF('Enrollment Form'!AH154=\"\",\"\",IF(ISERROR(SEARCH(\".\",'Enrollment Form'!AH154,SEARCH(\"@\",'Enrollment Form'!AH154))),\"N\",\"Y\"))","v":""},{"$f":"IF(OR($B147=\"N\",'Enrollment Form'!$G154=\"\"),\"\",IF('Enrollment Form'!$B154<>\"Subscriber\",\"-\",IF(COUNTIF('Enrollment Form'!$AV154:$AW154,\"Yes\")=2,\"N\",\"Y\")))","v":""},{"$f":"IF(OR('Enrollment Form'!$CJ154=\"\",'Enrollment Form'!$CJ154=\"No\"),\"-\",IF(AND('Enrollment Form'!$CJ154=\"Yes\",'Enrollment Form'!$CK154=\"\"),\"N\",\"Y\"))","v":"-"},{"$f":"IF(OR('Enrollment Form'!$CL154=\"\",'Enrollment Form'!$CL154=\"No\"),\"-\",IF(AND('Enrollment Form'!$CL154=\"Yes\",'Enrollment Form'!$CM154=\"\"),\"N\",\"Y\"))","v":"-"},{"$f":"IF(OR('Enrollment Form'!$CN154=\"\",'Enrollment Form'!$CN154=\"No\"),\"-\",IF(AND('Enrollment Form'!$CN154=\"Yes\",'Enrollment Form'!$CO154=\"\"),\"N\",\"Y\"))","v":"-"},{"$f":"IF(OR('Enrollment Form'!$CN154=\"\",'Enrollment Form'!$CN154=\"No\"),\"-\",IF(AND('Enrollment Form'!$CN154=\"Yes\",'Enrollment Form'!$CP154=\"\"),\"N\",\"Y\"))","v":"-"},{"$f":"IF('Enrollment Form'!B154<>\"Subscriber\",\"-\",IF(AND('Enrollment Form'!B154=\"Subscriber\",'Enrollment Form'!C154=\"Enroll\",'Enrollment Form'!AA154=\"\"),\"N\",\"Y\"))","v":"-"},{"$f":"IF(OR('Enrollment Form'!B154=\"Subscriber\",'Enrollment Form'!B154=\"\"),\"-\",IF('Enrollment Form'!BP154=\"\",\"N\",\"Y\"))","v":"-"},{"$f":"IF('Enrollment Form'!B154<>\"Subscriber\",\"-\",IF(AND('Enrollment Form'!B154=\"Subscriber\",'Enrollment Form'!G154=\"\"),\"N\",\"Y\"))","v":"-"},{"$f":"IF('Enrollment Form'!A154=\"\",\"\",IF('Enrollment Form'!B154=\"Subscriber\",\"-\",IF(AND('Enrollment Form'!B154<>\"Subscriber\",'Enrollment Form'!G154='Enrollment Form'!H154),\"N\",\"Y\")))","v":""},0]
[155,{"$f":"IF('Enrollment Form'!$A155<>\"\",\"Y\",\"N\")","v":"N"},{"$f":"IF(AND('Enrollment Form'!$B155=\"\",'Enrollment Form'!$C155<>\"\"),\"N\",IF($B148=\"N\",\"\",\"Y\"))","v":""},{"$f":"IF(OR($B148=\"N\",'Enrollment Form'!G155=\"\"),\"\",IF('Enrollment Form'!$B155<>\"Subscriber\",\"\",IF('Enrollment Form'!$G155='Enrollment Form'!$H155,\"Y\",\"N\")))","v":""},{"$f":"IF($B148=\"N\",\"\",IF(AND(COUNTIFS('Enrollment Form'!$H$11:$H$1000,'Enrollment Form'!$H155,'Enrollment Form'!$B$11:$B$1000,'Enrollment Form'!$B155)>1,'Enrollment Form'!$H155<>\"\"),\"N\",\"Y\"))","v":""},{"$f":"IF($B148=\"N\",\"\",IF(LEN('Enrollment Form'!$Y155)=0,\"\",IF(LEN('Enrollment Form'!$Y155)<>5,\"N\",\"Y\")))","v":""},{"$f":"IF($B148=\"N\",\"\",IF(LEN('Enrollment Form'!$AD155=0),\"\",IF(LEN('Enrollment Form'!$AD155)<>5,\"N\",\"Y\")))","v":""},{"$f":"IF($B148=\"N\",\"\",IF(LEN('Enrollment Form'!$BS155=0),\"\",IF(LEN('Enrollment Form'!$BS155)<>5,\"N\",\"Y\")))","v":""},{"$f":"IF($B148=\"N\",\"\",IF(LEN('Enrollment Form'!$AE155)=0,\"\",IF(LEN('Enrollment Form'!$AE155)<>10,\"N\",\"Y\")))","v":""},{"$f":"IF($B148=\"N\",\"\",IF(LEN('Enrollment Form'!$AF155)=0,\"\",IF(LEN('Enrollment Form'!$AF155)<>10,\"N\",\"Y\")))","v":""},{"$f":"IF('Enrollment Form'!$O155<>\"Graded\",\"-\",IF(AND('Enrollment Form'!$O155=\"Graded\",'Enrollment Form'!$AR155<>\"\"),\"Y\",\"N\"))","v":"-"},{"$f":"IF($B148=\"N\",\"\",IF(OR('Enrollment Form'!$B155<>\"Subscriber\",'Enrollment Form'!$C155=\"ROC\"),\"-\",IF(AND('Enrollment Form'!$B155=\"Subscriber\",'Enrollment Form'!$C155=\"Enroll\",'Enrollment Form'!$AJ155<>\"\"),\"Y\",\"N\")))","v":""},{"$f":"IF($B148=\"N\",\"\",IF(OR('Enrollment Form'!$B155<>\"Subscriber\",'Enrollment Form'!$C155=\"ROC\"),\"-\",IF(AND('Enrollment Form'!$B155=\"Subscriber\",'Enrollment Form'!$C155=\"Enroll\",'Enrollment Form'!$AK155<>\"\"),\"Y\",\"N\")))","v":""},{"$f":"IF($B148=\"N\",\"\",IF(OR('Enrollment Form'!$B155<>\"Subscriber\",'Enrollment Form'!$C155=\"ROC\"),\"-\",IF(AND('Enrollment Form'!$B155=\"Subscriber\",'Enrollment Form'!$C155=\"Enroll\",'Enrollment Form'!$AL155<>\"\"),\"Y\",\"N\")))","v":""},{"$f":"IF($B148=\"N\",\"\",IF(OR('Enrollment Form'!$B155<>\"Subscriber\",'Enrollment Form'!$C155=\"ROC\"),\"-\",IF(AND('Enrollment Form'!$B155=\"Subscriber\",'Enrollment Form'!$C155=\"Enroll\",'Enrollment Form'!$AP155<>\"\"),\"Y\",\"N\")))","v":""},{"$f":"IF($B148=\"N\",\"\",IF(OR('Enrollment Form'!$B155<>\"Subscriber\",'Enrollment Form'!$C155=\"ROC\"),\"-\",IF(AND('Enrollment Form'!$B155=\"Subscriber\",'Enrollment Form'!$C155=\"Enroll\",'Enrollment Form'!$AQ155<>\"\"),\"Y\",\"N\")))","v":""},{"$f":"IF($B148=\"N\",\"\",IF(OR('Enrollment Form'!$B155<>\"Subscriber\",'Enrollment Form'!$C155=\"ROC\"),\"-\",IF(AND('Enrollment Form'!$B155=\"Subscriber\",'Enrollment Form'!$C155=\"Enroll\",'Enrollment Form'!$AS155<>\"\"),\"Y\",\"N\")))","v":""},{"$f":"IF($B148=\"N\",\"\",IF($Q148=\"-\",\"-\",IF(AND($Q148=\"Y\",'Enrollment Form'!$AS155=\"No\"),\"-\",IF(AND($Q148=\"Y\",'Enrollment Form'!$AS155=\"Yes\",'Enrollment Form'!$AT155<>\"\"),\"Y\",\"N\"))))","v":""},{"$f":"IF($B148=\"N\",\"\",IF(OR('Enrollment Form'!$B155<>\"Subscriber\",'Enrollment Form'!$C155=\"ROC\"),\"-\",IF(AND('Enrollment Form'!$B155=\"Subscriber\",'Enrollment Form'!$C155=\"Enroll\",'Enrollment Form'!$CV155<>\"\"),\"Y\",\"N\")))","v":""},{"$f":"IF($B148=\"N\",\"\",IF($S148=\"-\",\"-\",IF(AND($S148=\"Y\",'Enrollment Form'!$CV155=\"No\"),\"-\",IF(AND($S148=\"Y\",'Enrollment Form'!$CV155=\"Yes\",'Enrollment Form'!$CW155<>\"\"),\"Y\",\"N\"))))","v":""},{"$f":"IF(OR('Enrollment Form'!$AY155=\"Yes\",'Enrollment Form'!$AY155=\"\"),\"-\",IF(OR(AND('Enrollment Form'!$AY155=\"No\",ISERROR(FIND(\"HMO\",VLOOKUP('Enrollment Form'!G155,'Enrollment Form'!H$11:J$1000,3,FALSE),1))=FALSE,COUNTA('Enrollment Form'!$AZ155:$BC155)=4),AND('Enrollment Form'!$AY155=\"No\",ISERROR(FIND(\"HMO\",VLOOKUP('Enrollment Form'!G155,'Enrollment Form'!H$11:J$1000,3,FALSE),1))=FALSE,COUNTA('Enrollment Form'!$BT155:$BW155)=4)),\"Y\",\"N\"))","v":"-"},{"$f":"IF($B148=\"N\",\"\",IF('Enrollment Form'!$B155=\"Subscriber\",\"-\",IF(COUNTA('Enrollment Form'!$BL155,'Enrollment Form'!$BN155)=2,\"Y\",\"N\")))","v":""},{"$f":"IF($B148=\"N\",\"\",IF(OR('Enrollment Form'!$AX155=\"\",'Enrollment Form'!$AX155=\"No\"),\"-\",IF(AND('Enrollment Form'!$AX155=\"Yes\",COUNTA('Enrollment Form'!$CR155)=1),\"Y\",\"N\")))","v":""},{"$f":"IF(OR('Enrollment Form'!$CR155=\"\",'Enrollment Form'!$CR155=\"No\"),\"-\",IF(COUNTA('Enrollment Form'!$CT155:$CU155)=2,\"Y\",\"N\"))","v":"-"},{"$f":"IF($B148=\"N\",\"\",IF(COUNTIF('Enrollment Form'!$DG155:$DP155,\"Other\")=COUNTA('Enrollment Form'!$DK155,'Enrollment Form'!$DH155,'Enrollment Form'!$DN155,'Enrollment Form'!$DQ155),\"Y\",\"N\"))","v":""},{"$f":"IF($B148=\"N\",\"\",IF(OR('Enrollment Form'!B155<>\"Subscriber\",'Enrollment Form'!C155=\"ROC\",COUNTIF('Enrollment Form'!AV155:AW155,\"Yes\")>=1),\"-\",IF(AND('Enrollment Form'!C155=\"Enroll\",COUNTIF('Enrollment Form'!AV155:AW155,\"No\")=2,'Enrollment Form'!AX155=\"\"),\"N\",\"Y\")))","v":""},{"$f":"IF(OR(B148=\"N\",'Enrollment Form'!B155<>\"Subscriber\",'Enrollment Form'!C155=\"ROC\",'Enrollment Form'!O155<>\"Multiple of Salary\"),\"-\",IF(COUNTA('Enrollment Form'!T155:U155)<2,\"N\",\"Y\"))","v":"-"},{"$f":"IF(B148=\"N\",\"\",IF(OR('Enrollment Form'!C155=\"ROC\",'Enrollment Form'!B155<>\"Subscriber\",'Enrollment Form'!O155=\"Waive\",'Enrollment Form'!O155=\"\"),\"-\",IF('Enrollment Form'!P155=\"\",\"N\",\"Y\")))","v":""},{"$f":"IF($B148=\"N\",\"\",IF(AND('Enrollment Form'!$C155=\"ROC\",'Enrollment Form'!$DR155<>\"\"),\"Y\",IF(AND('Enrollment Form'!$C155=\"ROC\",'Enrollment Form'!$DR155=\"\"),\"N\",IF(AND('Enrollment Form'!$C155=\"Enroll\",'Enrollment Form'!$B155=\"Subscriber\",'Enrollment Form'!$CX155=\"No\",'Enrollment Form'!$DR155=\"\"),\"N\",IF(AND('Enrollment Form'!$C155=\"Enroll\",'Enrollment Form'!$B155=\"Subscriber\",'Enrollment Form'!$CX155=\"Yes\"),\"-\",\"Y\")))))","v":""},{"$f":"IF($B148=\"N\",\"\",IF(AND('Enrollment Form'!$C155=\"ROC\",'Enrollment Form'!$DS155<>\"\"),\"Y\",IF(AND('Enrollment Form'!$C155=\"ROC\",'Enrollment Form'!$DS155=\"\"),\"N\",IF(AND('Enrollment Form'!$C155=\"Enroll\",'Enrollment Form'!$B155=\"Subscriber\",'Enrollment Form'!$CX155=\"No\",'Enrollment Form'!$DS155=\"\"),\"N\",IF(AND('Enrollment Form'!$C155=\"Enroll\",'Enrollment Form'!$B155=\"Subscriber\",'Enrollment Form'!$CX155=\"Yes\"),\"-\",\"Y\")))))","v":""},{"$f":"IF('Enrollment Form'!AH155=\"\",\"\",IF(ISERROR(SEARCH(\".\",'Enrollment Form'!AH155,SEARCH(\"@\",'Enrollment Form'!AH155))),\"N\",\"Y\"))","v":""},{"$f":"IF(OR($B148=\"N\",'Enrollment Form'!$G155=\"\"),\"\",IF('Enrollment Form'!$B155<>\"Subscriber\",\"-\",IF(COUNTIF('Enrollment Form'!$AV155:$AW155,\"Yes\")=2,\"N\",\"Y\")))","v":""},{"$f":"IF(OR('Enrollment Form'!$CJ155=\"\",'Enrollment Form'!$CJ155=\"No\"),\"-\",IF(AND('Enrollment Form'!$CJ155=\"Yes\",'Enrollment Form'!$CK155=\"\"),\"N\",\"Y\"))","v":"-"},{"$f":"IF(OR('Enrollment Form'!$CL155=\"\",'Enrollment Form'!$CL155=\"No\"),\"-\",IF(AND('Enrollment Form'!$CL155=\"Yes\",'Enrollment Form'!$CM155=\"\"),\"N\",\"Y\"))","v":"-"},{"$f":"IF(OR('Enrollment Form'!$CN155=\"\",'Enrollment Form'!$CN155=\"No\"),\"-\",IF(AND('Enrollment Form'!$CN155=\"Yes\",'Enrollment Form'!$CO155=\"\"),\"N\",\"Y\"))","v":"-"},{"$f":"IF(OR('Enrollment Form'!$CN155=\"\",'Enrollment Form'!$CN155=\"No\"),\"-\",IF(AND('Enrollment Form'!$CN155=\"Yes\",'Enrollment Form'!$CP155=\"\"),\"N\",\"Y\"))","v":"-"},{"$f":"IF('Enrollment Form'!B155<>\"Subscriber\",\"-\",IF(AND('Enrollment Form'!B155=\"Subscriber\",'Enrollment Form'!C155=\"Enroll\",'Enrollment Form'!AA155=\"\"),\"N\",\"Y\"))","v":"-"},{"$f":"IF(OR('Enrollment Form'!B155=\"Subscriber\",'Enrollment Form'!B155=\"\"),\"-\",IF('Enrollment Form'!BP155=\"\",\"N\",\"Y\"))","v":"-"},{"$f":"IF('Enrollment Form'!B155<>\"Subscriber\",\"-\",IF(AND('Enrollment Form'!B155=\"Subscriber\",'Enrollment Form'!G155=\"\"),\"N\",\"Y\"))","v":"-"},{"$f":"IF('Enrollment Form'!A155=\"\",\"\",IF('Enrollment Form'!B155=\"Subscriber\",\"-\",IF(AND('Enrollment Form'!B155<>\"Subscriber\",'Enrollment Form'!G155='Enrollment Form'!H155),\"N\",\"Y\")))","v":""},0]
[156,{"$f":"IF('Enrollment Form'!$A156<>\"\",\"Y\",\"N\")","v":"N"},{"$f":"IF(AND('Enrollment Form'!$B156=\"\",'Enrollment Form'!$C156<>\"\"),\"N\",IF($B149=\"N\",\"\",\"Y\"))","v":""},{"$f":"IF(OR($B149=\"N\",'Enrollment Form'!G156=\"\"),\"\",IF('Enrollment Form'!$B156<>\"Subscriber\",\"\",IF('Enrollment Form'!$G156='Enrollment Form'!$H156,\"Y\",\"N\")))","v":""},{"$f":"IF($B149=\"N\",\"\",IF(AND(COUNTIFS('Enrollment Form'!$H$11:$H$1000,'Enrollment Form'!$H156,'Enrollment Form'!$B$11:$B$1000,'Enrollment Form'!$B156)>1,'Enrollment Form'!$H156<>\"\"),\"N\",\"Y\"))","v":""},{"$f":"IF($B149=\"N\",\"\",IF(LEN('Enrollment Form'!$Y156)=0,\"\",IF(LEN('Enrollment Form'!$Y156)<>5,\"N\",\"Y\")))","v":""},{"$f":"IF($B149=\"N\",\"\",IF(LEN('Enrollment Form'!$AD156=0),\"\",IF(LEN('Enrollment Form'!$AD156)<>5,\"N\",\"Y\")))","v":""},{"$f":"IF($B149=\"N\",\"\",IF(LEN('Enrollment Form'!$BS156=0),\"\",IF(LEN('Enrollment Form'!$BS156)<>5,\"N\",\"Y\")))","v":""},{"$f":"IF($B149=\"N\",\"\",IF(LEN('Enrollment Form'!$AE156)=0,\"\",IF(LEN('Enrollment Form'!$AE156)<>10,\"N\",\"Y\")))","v":""},{"$f":"IF($B149=\"N\",\"\",IF(LEN('Enrollment Form'!$AF156)=0,\"\",IF(LEN('Enrollment Form'!$AF156)<>10,\"N\",\"Y\")))","v":""},{"$f":"IF('Enrollment Form'!$O156<>\"Graded\",\"-\",IF(AND('Enrollment Form'!$O156=\"Graded\",'Enrollment Form'!$AR156<>\"\"),\"Y\",\"N\"))","v":"-"},{"$f":"IF($B149=\"N\",\"\",IF(OR('Enrollment Form'!$B156<>\"Subscriber\",'Enrollment Form'!$C156=\"ROC\"),\"-\",IF(AND('Enrollment Form'!$B156=\"Subscriber\",'Enrollment Form'!$C156=\"Enroll\",'Enrollment Form'!$AJ156<>\"\"),\"Y\",\"N\")))","v":""},{"$f":"IF($B149=\"N\",\"\",IF(OR('Enrollment Form'!$B156<>\"Subscriber\",'Enrollment Form'!$C156=\"ROC\"),\"-\",IF(AND('Enrollment Form'!$B156=\"Subscriber\",'Enrollment Form'!$C156=\"Enroll\",'Enrollment Form'!$AK156<>\"\"),\"Y\",\"N\")))","v":""},{"$f":"IF($B149=\"N\",\"\",IF(OR('Enrollment Form'!$B156<>\"Subscriber\",'Enrollment Form'!$C156=\"ROC\"),\"-\",IF(AND('Enrollment Form'!$B156=\"Subscriber\",'Enrollment Form'!$C156=\"Enroll\",'Enrollment Form'!$AL156<>\"\"),\"Y\",\"N\")))","v":""},{"$f":"IF($B149=\"N\",\"\",IF(OR('Enrollment Form'!$B156<>\"Subscriber\",'Enrollment Form'!$C156=\"ROC\"),\"-\",IF(AND('Enrollment Form'!$B156=\"Subscriber\",'Enrollment Form'!$C156=\"Enroll\",'Enrollment Form'!$AP156<>\"\"),\"Y\",\"N\")))","v":""},{"$f":"IF($B149=\"N\",\"\",IF(OR('Enrollment Form'!$B156<>\"Subscriber\",'Enrollment Form'!$C156=\"ROC\"),\"-\",IF(AND('Enrollment Form'!$B156=\"Subscriber\",'Enrollment Form'!$C156=\"Enroll\",'Enrollment Form'!$AQ156<>\"\"),\"Y\",\"N\")))","v":""},{"$f":"IF($B149=\"N\",\"\",IF(OR('Enrollment Form'!$B156<>\"Subscriber\",'Enrollment Form'!$C156=\"ROC\"),\"-\",IF(AND('Enrollment Form'!$B156=\"Subscriber\",'Enrollment Form'!$C156=\"Enroll\",'Enrollment Form'!$AS156<>\"\"),\"Y\",\"N\")))","v":""},{"$f":"IF($B149=\"N\",\"\",IF($Q149=\"-\",\"-\",IF(AND($Q149=\"Y\",'Enrollment Form'!$AS156=\"No\"),\"-\",IF(AND($Q149=\"Y\",'Enrollment Form'!$AS156=\"Yes\",'Enrollment Form'!$AT156<>\"\"),\"Y\",\"N\"))))","v":""},{"$f":"IF($B149=\"N\",\"\",IF(OR('Enrollment Form'!$B156<>\"Subscriber\",'Enrollment Form'!$C156=\"ROC\"),\"-\",IF(AND('Enrollment Form'!$B156=\"Subscriber\",'Enrollment Form'!$C156=\"Enroll\",'Enrollment Form'!$CV156<>\"\"),\"Y\",\"N\")))","v":""},{"$f":"IF($B149=\"N\",\"\",IF($S149=\"-\",\"-\",IF(AND($S149=\"Y\",'Enrollment Form'!$CV156=\"No\"),\"-\",IF(AND($S149=\"Y\",'Enrollment Form'!$CV156=\"Yes\",'Enrollment Form'!$CW156<>\"\"),\"Y\",\"N\"))))","v":""},{"$f":"IF(OR('Enrollment Form'!$AY156=\"Yes\",'Enrollment Form'!$AY156=\"\"),\"-\",IF(OR(AND('Enrollment Form'!$AY156=\"No\",ISERROR(FIND(\"HMO\",VLOOKUP('Enrollment Form'!G156,'Enrollment Form'!H$11:J$1000,3,FALSE),1))=FALSE,COUNTA('Enrollment Form'!$AZ156:$BC156)=4),AND('Enrollment Form'!$AY156=\"No\",ISERROR(FIND(\"HMO\",VLOOKUP('Enrollment Form'!G156,'Enrollment Form'!H$11:J$1000,3,FALSE),1))=FALSE,COUNTA('Enrollment Form'!$BT156:$BW156)=4)),\"Y\",\"N\"))","v":"-"},{"$f":"IF($B149=\"N\",\"\",IF('Enrollment Form'!$B156=\"Subscriber\",\"-\",IF(COUNTA('Enrollment Form'!$BL156,'Enrollment Form'!$BN156)=2,\"Y\",\"N\")))","v":""},{"$f":"IF($B149=\"N\",\"\",IF(OR('Enrollment Form'!$AX156=\"\",'Enrollment Form'!$AX156=\"No\"),\"-\",IF(AND('Enrollment Form'!$AX156=\"Yes\",COUNTA('Enrollment Form'!$CR156)=1),\"Y\",\"N\")))","v":""},{"$f":"IF(OR('Enrollment Form'!$CR156=\"\",'Enrollment Form'!$CR156=\"No\"),\"-\",IF(COUNTA('Enrollment Form'!$CT156:$CU156)=2,\"Y\",\"N\"))","v":"-"},{"$f":"IF($B149=\"N\",\"\",IF(COUNTIF('Enrollment Form'!$DG156:$DP156,\"Other\")=COUNTA('Enrollment Form'!$DK156,'Enrollment Form'!$DH156,'Enrollment Form'!$DN156,'Enrollment Form'!$DQ156),\"Y\",\"N\"))","v":""},{"$f":"IF($B149=\"N\",\"\",IF(OR('Enrollment Form'!B156<>\"Subscriber\",'Enrollment Form'!C156=\"ROC\",COUNTIF('Enrollment Form'!AV156:AW156,\"Yes\")>=1),\"-\",IF(AND('Enrollment Form'!C156=\"Enroll\",COUNTIF('Enrollment Form'!AV156:AW156,\"No\")=2,'Enrollment Form'!AX156=\"\"),\"N\",\"Y\")))","v":""},{"$f":"IF(OR(B149=\"N\",'Enrollment Form'!B156<>\"Subscriber\",'Enrollment Form'!C156=\"ROC\",'Enrollment Form'!O156<>\"Multiple of Salary\"),\"-\",IF(COUNTA('Enrollment Form'!T156:U156)<2,\"N\",\"Y\"))","v":"-"},{"$f":"IF(B149=\"N\",\"\",IF(OR('Enrollment Form'!C156=\"ROC\",'Enrollment Form'!B156<>\"Subscriber\",'Enrollment Form'!O156=\"Waive\",'Enrollment Form'!O156=\"\"),\"-\",IF('Enrollment Form'!P156=\"\",\"N\",\"Y\")))","v":""},{"$f":"IF($B149=\"N\",\"\",IF(AND('Enrollment Form'!$C156=\"ROC\",'Enrollment Form'!$DR156<>\"\"),\"Y\",IF(AND('Enrollment Form'!$C156=\"ROC\",'Enrollment Form'!$DR156=\"\"),\"N\",IF(AND('Enrollment Form'!$C156=\"Enroll\",'Enrollment Form'!$B156=\"Subscriber\",'Enrollment Form'!$CX156=\"No\",'Enrollment Form'!$DR156=\"\"),\"N\",IF(AND('Enrollment Form'!$C156=\"Enroll\",'Enrollment Form'!$B156=\"Subscriber\",'Enrollment Form'!$CX156=\"Yes\"),\"-\",\"Y\")))))","v":""},{"$f":"IF($B149=\"N\",\"\",IF(AND('Enrollment Form'!$C156=\"ROC\",'Enrollment Form'!$DS156<>\"\"),\"Y\",IF(AND('Enrollment Form'!$C156=\"ROC\",'Enrollment Form'!$DS156=\"\"),\"N\",IF(AND('Enrollment Form'!$C156=\"Enroll\",'Enrollment Form'!$B156=\"Subscriber\",'Enrollment Form'!$CX156=\"No\",'Enrollment Form'!$DS156=\"\"),\"N\",IF(AND('Enrollment Form'!$C156=\"Enroll\",'Enrollment Form'!$B156=\"Subscriber\",'Enrollment Form'!$CX156=\"Yes\"),\"-\",\"Y\")))))","v":""},{"$f":"IF('Enrollment Form'!AH156=\"\",\"\",IF(ISERROR(SEARCH(\".\",'Enrollment Form'!AH156,SEARCH(\"@\",'Enrollment Form'!AH156))),\"N\",\"Y\"))","v":""},{"$f":"IF(OR($B149=\"N\",'Enrollment Form'!$G156=\"\"),\"\",IF('Enrollment Form'!$B156<>\"Subscriber\",\"-\",IF(COUNTIF('Enrollment Form'!$AV156:$AW156,\"Yes\")=2,\"N\",\"Y\")))","v":""},{"$f":"IF(OR('Enrollment Form'!$CJ156=\"\",'Enrollment Form'!$CJ156=\"No\"),\"-\",IF(AND('Enrollment Form'!$CJ156=\"Yes\",'Enrollment Form'!$CK156=\"\"),\"N\",\"Y\"))","v":"-"},{"$f":"IF(OR('Enrollment Form'!$CL156=\"\",'Enrollment Form'!$CL156=\"No\"),\"-\",IF(AND('Enrollment Form'!$CL156=\"Yes\",'Enrollment Form'!$CM156=\"\"),\"N\",\"Y\"))","v":"-"},{"$f":"IF(OR('Enrollment Form'!$CN156=\"\",'Enrollment Form'!$CN156=\"No\"),\"-\",IF(AND('Enrollment Form'!$CN156=\"Yes\",'Enrollment Form'!$CO156=\"\"),\"N\",\"Y\"))","v":"-"},{"$f":"IF(OR('Enrollment Form'!$CN156=\"\",'Enrollment Form'!$CN156=\"No\"),\"-\",IF(AND('Enrollment Form'!$CN156=\"Yes\",'Enrollment Form'!$CP156=\"\"),\"N\",\"Y\"))","v":"-"},{"$f":"IF('Enrollment Form'!B156<>\"Subscriber\",\"-\",IF(AND('Enrollment Form'!B156=\"Subscriber\",'Enrollment Form'!C156=\"Enroll\",'Enrollment Form'!AA156=\"\"),\"N\",\"Y\"))","v":"-"},{"$f":"IF(OR('Enrollment Form'!B156=\"Subscriber\",'Enrollment Form'!B156=\"\"),\"-\",IF('Enrollment Form'!BP156=\"\",\"N\",\"Y\"))","v":"-"},{"$f":"IF('Enrollment Form'!B156<>\"Subscriber\",\"-\",IF(AND('Enrollment Form'!B156=\"Subscriber\",'Enrollment Form'!G156=\"\"),\"N\",\"Y\"))","v":"-"},{"$f":"IF('Enrollment Form'!A156=\"\",\"\",IF('Enrollment Form'!B156=\"Subscriber\",\"-\",IF(AND('Enrollment Form'!B156<>\"Subscriber\",'Enrollment Form'!G156='Enrollment Form'!H156),\"N\",\"Y\")))","v":""},0]
[157,{"$f":"IF('Enrollment Form'!$A157<>\"\",\"Y\",\"N\")","v":"N"},{"$f":"IF(AND('Enrollment Form'!$B157=\"\",'Enrollment Form'!$C157<>\"\"),\"N\",IF($B150=\"N\",\"\",\"Y\"))","v":""},{"$f":"IF(OR($B150=\"N\",'Enrollment Form'!G157=\"\"),\"\",IF('Enrollment Form'!$B157<>\"Subscriber\",\"\",IF('Enrollment Form'!$G157='Enrollment Form'!$H157,\"Y\",\"N\")))","v":""},{"$f":"IF($B150=\"N\",\"\",IF(AND(COUNTIFS('Enrollment Form'!$H$11:$H$1000,'Enrollment Form'!$H157,'Enrollment Form'!$B$11:$B$1000,'Enrollment Form'!$B157)>1,'Enrollment Form'!$H157<>\"\"),\"N\",\"Y\"))","v":""},{"$f":"IF($B150=\"N\",\"\",IF(LEN('Enrollment Form'!$Y157)=0,\"\",IF(LEN('Enrollment Form'!$Y157)<>5,\"N\",\"Y\")))","v":""},{"$f":"IF($B150=\"N\",\"\",IF(LEN('Enrollment Form'!$AD157=0),\"\",IF(LEN('Enrollment Form'!$AD157)<>5,\"N\",\"Y\")))","v":""},{"$f":"IF($B150=\"N\",\"\",IF(LEN('Enrollment Form'!$BS157=0),\"\",IF(LEN('Enrollment Form'!$BS157)<>5,\"N\",\"Y\")))","v":""},{"$f":"IF($B150=\"N\",\"\",IF(LEN('Enrollment Form'!$AE157)=0,\"\",IF(LEN('Enrollment Form'!$AE157)<>10,\"N\",\"Y\")))","v":""},{"$f":"IF($B150=\"N\",\"\",IF(LEN('Enrollment Form'!$AF157)=0,\"\",IF(LEN('Enrollment Form'!$AF157)<>10,\"N\",\"Y\")))","v":""},{"$f":"IF('Enrollment Form'!$O157<>\"Graded\",\"-\",IF(AND('Enrollment Form'!$O157=\"Graded\",'Enrollment Form'!$AR157<>\"\"),\"Y\",\"N\"))","v":"-"},{"$f":"IF($B150=\"N\",\"\",IF(OR('Enrollment Form'!$B157<>\"Subscriber\",'Enrollment Form'!$C157=\"ROC\"),\"-\",IF(AND('Enrollment Form'!$B157=\"Subscriber\",'Enrollment Form'!$C157=\"Enroll\",'Enrollment Form'!$AJ157<>\"\"),\"Y\",\"N\")))","v":""},{"$f":"IF($B150=\"N\",\"\",IF(OR('Enrollment Form'!$B157<>\"Subscriber\",'Enrollment Form'!$C157=\"ROC\"),\"-\",IF(AND('Enrollment Form'!$B157=\"Subscriber\",'Enrollment Form'!$C157=\"Enroll\",'Enrollment Form'!$AK157<>\"\"),\"Y\",\"N\")))","v":""},{"$f":"IF($B150=\"N\",\"\",IF(OR('Enrollment Form'!$B157<>\"Subscriber\",'Enrollment Form'!$C157=\"ROC\"),\"-\",IF(AND('Enrollment Form'!$B157=\"Subscriber\",'Enrollment Form'!$C157=\"Enroll\",'Enrollment Form'!$AL157<>\"\"),\"Y\",\"N\")))","v":""},{"$f":"IF($B150=\"N\",\"\",IF(OR('Enrollment Form'!$B157<>\"Subscriber\",'Enrollment Form'!$C157=\"ROC\"),\"-\",IF(AND('Enrollment Form'!$B157=\"Subscriber\",'Enrollment Form'!$C157=\"Enroll\",'Enrollment Form'!$AP157<>\"\"),\"Y\",\"N\")))","v":""},{"$f":"IF($B150=\"N\",\"\",IF(OR('Enrollment Form'!$B157<>\"Subscriber\",'Enrollment Form'!$C157=\"ROC\"),\"-\",IF(AND('Enrollment Form'!$B157=\"Subscriber\",'Enrollment Form'!$C157=\"Enroll\",'Enrollment Form'!$AQ157<>\"\"),\"Y\",\"N\")))","v":""},{"$f":"IF($B150=\"N\",\"\",IF(OR('Enrollment Form'!$B157<>\"Subscriber\",'Enrollment Form'!$C157=\"ROC\"),\"-\",IF(AND('Enrollment Form'!$B157=\"Subscriber\",'Enrollment Form'!$C157=\"Enroll\",'Enrollment Form'!$AS157<>\"\"),\"Y\",\"N\")))","v":""},{"$f":"IF($B150=\"N\",\"\",IF($Q150=\"-\",\"-\",IF(AND($Q150=\"Y\",'Enrollment Form'!$AS157=\"No\"),\"-\",IF(AND($Q150=\"Y\",'Enrollment Form'!$AS157=\"Yes\",'Enrollment Form'!$AT157<>\"\"),\"Y\",\"N\"))))","v":""},{"$f":"IF($B150=\"N\",\"\",IF(OR('Enrollment Form'!$B157<>\"Subscriber\",'Enrollment Form'!$C157=\"ROC\"),\"-\",IF(AND('Enrollment Form'!$B157=\"Subscriber\",'Enrollment Form'!$C157=\"Enroll\",'Enrollment Form'!$CV157<>\"\"),\"Y\",\"N\")))","v":""},{"$f":"IF($B150=\"N\",\"\",IF($S150=\"-\",\"-\",IF(AND($S150=\"Y\",'Enrollment Form'!$CV157=\"No\"),\"-\",IF(AND($S150=\"Y\",'Enrollment Form'!$CV157=\"Yes\",'Enrollment Form'!$CW157<>\"\"),\"Y\",\"N\"))))","v":""},{"$f":"IF(OR('Enrollment Form'!$AY157=\"Yes\",'Enrollment Form'!$AY157=\"\"),\"-\",IF(OR(AND('Enrollment Form'!$AY157=\"No\",ISERROR(FIND(\"HMO\",VLOOKUP('Enrollment Form'!G157,'Enrollment Form'!H$11:J$1000,3,FALSE),1))=FALSE,COUNTA('Enrollment Form'!$AZ157:$BC157)=4),AND('Enrollment Form'!$AY157=\"No\",ISERROR(FIND(\"HMO\",VLOOKUP('Enrollment Form'!G157,'Enrollment Form'!H$11:J$1000,3,FALSE),1))=FALSE,COUNTA('Enrollment Form'!$BT157:$BW157)=4)),\"Y\",\"N\"))","v":"-"},{"$f":"IF($B150=\"N\",\"\",IF('Enrollment Form'!$B157=\"Subscriber\",\"-\",IF(COUNTA('Enrollment Form'!$BL157,'Enrollment Form'!$BN157)=2,\"Y\",\"N\")))","v":""},{"$f":"IF($B150=\"N\",\"\",IF(OR('Enrollment Form'!$AX157=\"\",'Enrollment Form'!$AX157=\"No\"),\"-\",IF(AND('Enrollment Form'!$AX157=\"Yes\",COUNTA('Enrollment Form'!$CR157)=1),\"Y\",\"N\")))","v":""},{"$f":"IF(OR('Enrollment Form'!$CR157=\"\",'Enrollment Form'!$CR157=\"No\"),\"-\",IF(COUNTA('Enrollment Form'!$CT157:$CU157)=2,\"Y\",\"N\"))","v":"-"},{"$f":"IF($B150=\"N\",\"\",IF(COUNTIF('Enrollment Form'!$DG157:$DP157,\"Other\")=COUNTA('Enrollment Form'!$DK157,'Enrollment Form'!$DH157,'Enrollment Form'!$DN157,'Enrollment Form'!$DQ157),\"Y\",\"N\"))","v":""},{"$f":"IF($B150=\"N\",\"\",IF(OR('Enrollment Form'!B157<>\"Subscriber\",'Enrollment Form'!C157=\"ROC\",COUNTIF('Enrollment Form'!AV157:AW157,\"Yes\")>=1),\"-\",IF(AND('Enrollment Form'!C157=\"Enroll\",COUNTIF('Enrollment Form'!AV157:AW157,\"No\")=2,'Enrollment Form'!AX157=\"\"),\"N\",\"Y\")))","v":""},{"$f":"IF(OR(B150=\"N\",'Enrollment Form'!B157<>\"Subscriber\",'Enrollment Form'!C157=\"ROC\",'Enrollment Form'!O157<>\"Multiple of Salary\"),\"-\",IF(COUNTA('Enrollment Form'!T157:U157)<2,\"N\",\"Y\"))","v":"-"},{"$f":"IF(B150=\"N\",\"\",IF(OR('Enrollment Form'!C157=\"ROC\",'Enrollment Form'!B157<>\"Subscriber\",'Enrollment Form'!O157=\"Waive\",'Enrollment Form'!O157=\"\"),\"-\",IF('Enrollment Form'!P157=\"\",\"N\",\"Y\")))","v":""},{"$f":"IF($B150=\"N\",\"\",IF(AND('Enrollment Form'!$C157=\"ROC\",'Enrollment Form'!$DR157<>\"\"),\"Y\",IF(AND('Enrollment Form'!$C157=\"ROC\",'Enrollment Form'!$DR157=\"\"),\"N\",IF(AND('Enrollment Form'!$C157=\"Enroll\",'Enrollment Form'!$B157=\"Subscriber\",'Enrollment Form'!$CX157=\"No\",'Enrollment Form'!$DR157=\"\"),\"N\",IF(AND('Enrollment Form'!$C157=\"Enroll\",'Enrollment Form'!$B157=\"Subscriber\",'Enrollment Form'!$CX157=\"Yes\"),\"-\",\"Y\")))))","v":""},{"$f":"IF($B150=\"N\",\"\",IF(AND('Enrollment Form'!$C157=\"ROC\",'Enrollment Form'!$DS157<>\"\"),\"Y\",IF(AND('Enrollment Form'!$C157=\"ROC\",'Enrollment Form'!$DS157=\"\"),\"N\",IF(AND('Enrollment Form'!$C157=\"Enroll\",'Enrollment Form'!$B157=\"Subscriber\",'Enrollment Form'!$CX157=\"No\",'Enrollment Form'!$DS157=\"\"),\"N\",IF(AND('Enrollment Form'!$C157=\"Enroll\",'Enrollment Form'!$B157=\"Subscriber\",'Enrollment Form'!$CX157=\"Yes\"),\"-\",\"Y\")))))","v":""},{"$f":"IF('Enrollment Form'!AH157=\"\",\"\",IF(ISERROR(SEARCH(\".\",'Enrollment Form'!AH157,SEARCH(\"@\",'Enrollment Form'!AH157))),\"N\",\"Y\"))","v":""},{"$f":"IF(OR($B150=\"N\",'Enrollment Form'!$G157=\"\"),\"\",IF('Enrollment Form'!$B157<>\"Subscriber\",\"-\",IF(COUNTIF('Enrollment Form'!$AV157:$AW157,\"Yes\")=2,\"N\",\"Y\")))","v":""},{"$f":"IF(OR('Enrollment Form'!$CJ157=\"\",'Enrollment Form'!$CJ157=\"No\"),\"-\",IF(AND('Enrollment Form'!$CJ157=\"Yes\",'Enrollment Form'!$CK157=\"\"),\"N\",\"Y\"))","v":"-"},{"$f":"IF(OR('Enrollment Form'!$CL157=\"\",'Enrollment Form'!$CL157=\"No\"),\"-\",IF(AND('Enrollment Form'!$CL157=\"Yes\",'Enrollment Form'!$CM157=\"\"),\"N\",\"Y\"))","v":"-"},{"$f":"IF(OR('Enrollment Form'!$CN157=\"\",'Enrollment Form'!$CN157=\"No\"),\"-\",IF(AND('Enrollment Form'!$CN157=\"Yes\",'Enrollment Form'!$CO157=\"\"),\"N\",\"Y\"))","v":"-"},{"$f":"IF(OR('Enrollment Form'!$CN157=\"\",'Enrollment Form'!$CN157=\"No\"),\"-\",IF(AND('Enrollment Form'!$CN157=\"Yes\",'Enrollment Form'!$CP157=\"\"),\"N\",\"Y\"))","v":"-"},{"$f":"IF('Enrollment Form'!B157<>\"Subscriber\",\"-\",IF(AND('Enrollment Form'!B157=\"Subscriber\",'Enrollment Form'!C157=\"Enroll\",'Enrollment Form'!AA157=\"\"),\"N\",\"Y\"))","v":"-"},{"$f":"IF(OR('Enrollment Form'!B157=\"Subscriber\",'Enrollment Form'!B157=\"\"),\"-\",IF('Enrollment Form'!BP157=\"\",\"N\",\"Y\"))","v":"-"},{"$f":"IF('Enrollment Form'!B157<>\"Subscriber\",\"-\",IF(AND('Enrollment Form'!B157=\"Subscriber\",'Enrollment Form'!G157=\"\"),\"N\",\"Y\"))","v":"-"},{"$f":"IF('Enrollment Form'!A157=\"\",\"\",IF('Enrollment Form'!B157=\"Subscriber\",\"-\",IF(AND('Enrollment Form'!B157<>\"Subscriber\",'Enrollment Form'!G157='Enrollment Form'!H157),\"N\",\"Y\")))","v":""},0]
[158,{"$f":"IF('Enrollment Form'!$A158<>\"\",\"Y\",\"N\")","v":"N"},{"$f":"IF(AND('Enrollment Form'!$B158=\"\",'Enrollment Form'!$C158<>\"\"),\"N\",IF($B151=\"N\",\"\",\"Y\"))","v":""},{"$f":"IF(OR($B151=\"N\",'Enrollment Form'!G158=\"\"),\"\",IF('Enrollment Form'!$B158<>\"Subscriber\",\"\",IF('Enrollment Form'!$G158='Enrollment Form'!$H158,\"Y\",\"N\")))","v":""},{"$f":"IF($B151=\"N\",\"\",IF(AND(COUNTIFS('Enrollment Form'!$H$11:$H$1000,'Enrollment Form'!$H158,'Enrollment Form'!$B$11:$B$1000,'Enrollment Form'!$B158)>1,'Enrollment Form'!$H158<>\"\"),\"N\",\"Y\"))","v":""},{"$f":"IF($B151=\"N\",\"\",IF(LEN('Enrollment Form'!$Y158)=0,\"\",IF(LEN('Enrollment Form'!$Y158)<>5,\"N\",\"Y\")))","v":""},{"$f":"IF($B151=\"N\",\"\",IF(LEN('Enrollment Form'!$AD158=0),\"\",IF(LEN('Enrollment Form'!$AD158)<>5,\"N\",\"Y\")))","v":""},{"$f":"IF($B151=\"N\",\"\",IF(LEN('Enrollment Form'!$BS158=0),\"\",IF(LEN('Enrollment Form'!$BS158)<>5,\"N\",\"Y\")))","v":""},{"$f":"IF($B151=\"N\",\"\",IF(LEN('Enrollment Form'!$AE158)=0,\"\",IF(LEN('Enrollment Form'!$AE158)<>10,\"N\",\"Y\")))","v":""},{"$f":"IF($B151=\"N\",\"\",IF(LEN('Enrollment Form'!$AF158)=0,\"\",IF(LEN('Enrollment Form'!$AF158)<>10,\"N\",\"Y\")))","v":""},{"$f":"IF('Enrollment Form'!$O158<>\"Graded\",\"-\",IF(AND('Enrollment Form'!$O158=\"Graded\",'Enrollment Form'!$AR158<>\"\"),\"Y\",\"N\"))","v":"-"},{"$f":"IF($B151=\"N\",\"\",IF(OR('Enrollment Form'!$B158<>\"Subscriber\",'Enrollment Form'!$C158=\"ROC\"),\"-\",IF(AND('Enrollment Form'!$B158=\"Subscriber\",'Enrollment Form'!$C158=\"Enroll\",'Enrollment Form'!$AJ158<>\"\"),\"Y\",\"N\")))","v":""},{"$f":"IF($B151=\"N\",\"\",IF(OR('Enrollment Form'!$B158<>\"Subscriber\",'Enrollment Form'!$C158=\"ROC\"),\"-\",IF(AND('Enrollment Form'!$B158=\"Subscriber\",'Enrollment Form'!$C158=\"Enroll\",'Enrollment Form'!$AK158<>\"\"),\"Y\",\"N\")))","v":""},{"$f":"IF($B151=\"N\",\"\",IF(OR('Enrollment Form'!$B158<>\"Subscriber\",'Enrollment Form'!$C158=\"ROC\"),\"-\",IF(AND('Enrollment Form'!$B158=\"Subscriber\",'Enrollment Form'!$C158=\"Enroll\",'Enrollment Form'!$AL158<>\"\"),\"Y\",\"N\")))","v":""},{"$f":"IF($B151=\"N\",\"\",IF(OR('Enrollment Form'!$B158<>\"Subscriber\",'Enrollment Form'!$C158=\"ROC\"),\"-\",IF(AND('Enrollment Form'!$B158=\"Subscriber\",'Enrollment Form'!$C158=\"Enroll\",'Enrollment Form'!$AP158<>\"\"),\"Y\",\"N\")))","v":""},{"$f":"IF($B151=\"N\",\"\",IF(OR('Enrollment Form'!$B158<>\"Subscriber\",'Enrollment Form'!$C158=\"ROC\"),\"-\",IF(AND('Enrollment Form'!$B158=\"Subscriber\",'Enrollment Form'!$C158=\"Enroll\",'Enrollment Form'!$AQ158<>\"\"),\"Y\",\"N\")))","v":""},{"$f":"IF($B151=\"N\",\"\",IF(OR('Enrollment Form'!$B158<>\"Subscriber\",'Enrollment Form'!$C158=\"ROC\"),\"-\",IF(AND('Enrollment Form'!$B158=\"Subscriber\",'Enrollment Form'!$C158=\"Enroll\",'Enrollment Form'!$AS158<>\"\"),\"Y\",\"N\")))","v":""},{"$f":"IF($B151=\"N\",\"\",IF($Q151=\"-\",\"-\",IF(AND($Q151=\"Y\",'Enrollment Form'!$AS158=\"No\"),\"-\",IF(AND($Q151=\"Y\",'Enrollment Form'!$AS158=\"Yes\",'Enrollment Form'!$AT158<>\"\"),\"Y\",\"N\"))))","v":""},{"$f":"IF($B151=\"N\",\"\",IF(OR('Enrollment Form'!$B158<>\"Subscriber\",'Enrollment Form'!$C158=\"ROC\"),\"-\",IF(AND('Enrollment Form'!$B158=\"Subscriber\",'Enrollment Form'!$C158=\"Enroll\",'Enrollment Form'!$CV158<>\"\"),\"Y\",\"N\")))","v":""},{"$f":"IF($B151=\"N\",\"\",IF($S151=\"-\",\"-\",IF(AND($S151=\"Y\",'Enrollment Form'!$CV158=\"No\"),\"-\",IF(AND($S151=\"Y\",'Enrollment Form'!$CV158=\"Yes\",'Enrollment Form'!$CW158<>\"\"),\"Y\",\"N\"))))","v":""},{"$f":"IF(OR('Enrollment Form'!$AY158=\"Yes\",'Enrollment Form'!$AY158=\"\"),\"-\",IF(OR(AND('Enrollment Form'!$AY158=\"No\",ISERROR(FIND(\"HMO\",VLOOKUP('Enrollment Form'!G158,'Enrollment Form'!H$11:J$1000,3,FALSE),1))=FALSE,COUNTA('Enrollment Form'!$AZ158:$BC158)=4),AND('Enrollment Form'!$AY158=\"No\",ISERROR(FIND(\"HMO\",VLOOKUP('Enrollment Form'!G158,'Enrollment Form'!H$11:J$1000,3,FALSE),1))=FALSE,COUNTA('Enrollment Form'!$BT158:$BW158)=4)),\"Y\",\"N\"))","v":"-"},{"$f":"IF($B151=\"N\",\"\",IF('Enrollment Form'!$B158=\"Subscriber\",\"-\",IF(COUNTA('Enrollment Form'!$BL158,'Enrollment Form'!$BN158)=2,\"Y\",\"N\")))","v":""},{"$f":"IF($B151=\"N\",\"\",IF(OR('Enrollment Form'!$AX158=\"\",'Enrollment Form'!$AX158=\"No\"),\"-\",IF(AND('Enrollment Form'!$AX158=\"Yes\",COUNTA('Enrollment Form'!$CR158)=1),\"Y\",\"N\")))","v":""},{"$f":"IF(OR('Enrollment Form'!$CR158=\"\",'Enrollment Form'!$CR158=\"No\"),\"-\",IF(COUNTA('Enrollment Form'!$CT158:$CU158)=2,\"Y\",\"N\"))","v":"-"},{"$f":"IF($B151=\"N\",\"\",IF(COUNTIF('Enrollment Form'!$DG158:$DP158,\"Other\")=COUNTA('Enrollment Form'!$DK158,'Enrollment Form'!$DH158,'Enrollment Form'!$DN158,'Enrollment Form'!$DQ158),\"Y\",\"N\"))","v":""},{"$f":"IF($B151=\"N\",\"\",IF(OR('Enrollment Form'!B158<>\"Subscriber\",'Enrollment Form'!C158=\"ROC\",COUNTIF('Enrollment Form'!AV158:AW158,\"Yes\")>=1),\"-\",IF(AND('Enrollment Form'!C158=\"Enroll\",COUNTIF('Enrollment Form'!AV158:AW158,\"No\")=2,'Enrollment Form'!AX158=\"\"),\"N\",\"Y\")))","v":""},{"$f":"IF(OR(B151=\"N\",'Enrollment Form'!B158<>\"Subscriber\",'Enrollment Form'!C158=\"ROC\",'Enrollment Form'!O158<>\"Multiple of Salary\"),\"-\",IF(COUNTA('Enrollment Form'!T158:U158)<2,\"N\",\"Y\"))","v":"-"},{"$f":"IF(B151=\"N\",\"\",IF(OR('Enrollment Form'!C158=\"ROC\",'Enrollment Form'!B158<>\"Subscriber\",'Enrollment Form'!O158=\"Waive\",'Enrollment Form'!O158=\"\"),\"-\",IF('Enrollment Form'!P158=\"\",\"N\",\"Y\")))","v":""},{"$f":"IF($B151=\"N\",\"\",IF(AND('Enrollment Form'!$C158=\"ROC\",'Enrollment Form'!$DR158<>\"\"),\"Y\",IF(AND('Enrollment Form'!$C158=\"ROC\",'Enrollment Form'!$DR158=\"\"),\"N\",IF(AND('Enrollment Form'!$C158=\"Enroll\",'Enrollment Form'!$B158=\"Subscriber\",'Enrollment Form'!$CX158=\"No\",'Enrollment Form'!$DR158=\"\"),\"N\",IF(AND('Enrollment Form'!$C158=\"Enroll\",'Enrollment Form'!$B158=\"Subscriber\",'Enrollment Form'!$CX158=\"Yes\"),\"-\",\"Y\")))))","v":""},{"$f":"IF($B151=\"N\",\"\",IF(AND('Enrollment Form'!$C158=\"ROC\",'Enrollment Form'!$DS158<>\"\"),\"Y\",IF(AND('Enrollment Form'!$C158=\"ROC\",'Enrollment Form'!$DS158=\"\"),\"N\",IF(AND('Enrollment Form'!$C158=\"Enroll\",'Enrollment Form'!$B158=\"Subscriber\",'Enrollment Form'!$CX158=\"No\",'Enrollment Form'!$DS158=\"\"),\"N\",IF(AND('Enrollment Form'!$C158=\"Enroll\",'Enrollment Form'!$B158=\"Subscriber\",'Enrollment Form'!$CX158=\"Yes\"),\"-\",\"Y\")))))","v":""},{"$f":"IF('Enrollment Form'!AH158=\"\",\"\",IF(ISERROR(SEARCH(\".\",'Enrollment Form'!AH158,SEARCH(\"@\",'Enrollment Form'!AH158))),\"N\",\"Y\"))","v":""},{"$f":"IF(OR($B151=\"N\",'Enrollment Form'!$G158=\"\"),\"\",IF('Enrollment Form'!$B158<>\"Subscriber\",\"-\",IF(COUNTIF('Enrollment Form'!$AV158:$AW158,\"Yes\")=2,\"N\",\"Y\")))","v":""},{"$f":"IF(OR('Enrollment Form'!$CJ158=\"\",'Enrollment Form'!$CJ158=\"No\"),\"-\",IF(AND('Enrollment Form'!$CJ158=\"Yes\",'Enrollment Form'!$CK158=\"\"),\"N\",\"Y\"))","v":"-"},{"$f":"IF(OR('Enrollment Form'!$CL158=\"\",'Enrollment Form'!$CL158=\"No\"),\"-\",IF(AND('Enrollment Form'!$CL158=\"Yes\",'Enrollment Form'!$CM158=\"\"),\"N\",\"Y\"))","v":"-"},{"$f":"IF(OR('Enrollment Form'!$CN158=\"\",'Enrollment Form'!$CN158=\"No\"),\"-\",IF(AND('Enrollment Form'!$CN158=\"Yes\",'Enrollment Form'!$CO158=\"\"),\"N\",\"Y\"))","v":"-"},{"$f":"IF(OR('Enrollment Form'!$CN158=\"\",'Enrollment Form'!$CN158=\"No\"),\"-\",IF(AND('Enrollment Form'!$CN158=\"Yes\",'Enrollment Form'!$CP158=\"\"),\"N\",\"Y\"))","v":"-"},{"$f":"IF('Enrollment Form'!B158<>\"Subscriber\",\"-\",IF(AND('Enrollment Form'!B158=\"Subscriber\",'Enrollment Form'!C158=\"Enroll\",'Enrollment Form'!AA158=\"\"),\"N\",\"Y\"))","v":"-"},{"$f":"IF(OR('Enrollment Form'!B158=\"Subscriber\",'Enrollment Form'!B158=\"\"),\"-\",IF('Enrollment Form'!BP158=\"\",\"N\",\"Y\"))","v":"-"},{"$f":"IF('Enrollment Form'!B158<>\"Subscriber\",\"-\",IF(AND('Enrollment Form'!B158=\"Subscriber\",'Enrollment Form'!G158=\"\"),\"N\",\"Y\"))","v":"-"},{"$f":"IF('Enrollment Form'!A158=\"\",\"\",IF('Enrollment Form'!B158=\"Subscriber\",\"-\",IF(AND('Enrollment Form'!B158<>\"Subscriber\",'Enrollment Form'!G158='Enrollment Form'!H158),\"N\",\"Y\")))","v":""},0]
[159,{"$f":"IF('Enrollment Form'!$A159<>\"\",\"Y\",\"N\")","v":"N"},{"$f":"IF(AND('Enrollment Form'!$B159=\"\",'Enrollment Form'!$C159<>\"\"),\"N\",IF($B152=\"N\",\"\",\"Y\"))","v":""},{"$f":"IF(OR($B152=\"N\",'Enrollment Form'!G159=\"\"),\"\",IF('Enrollment Form'!$B159<>\"Subscriber\",\"\",IF('Enrollment Form'!$G159='Enrollment Form'!$H159,\"Y\",\"N\")))","v":""},{"$f":"IF($B152=\"N\",\"\",IF(AND(COUNTIFS('Enrollment Form'!$H$11:$H$1000,'Enrollment Form'!$H159,'Enrollment Form'!$B$11:$B$1000,'Enrollment Form'!$B159)>1,'Enrollment Form'!$H159<>\"\"),\"N\",\"Y\"))","v":""},{"$f":"IF($B152=\"N\",\"\",IF(LEN('Enrollment Form'!$Y159)=0,\"\",IF(LEN('Enrollment Form'!$Y159)<>5,\"N\",\"Y\")))","v":""},{"$f":"IF($B152=\"N\",\"\",IF(LEN('Enrollment Form'!$AD159=0),\"\",IF(LEN('Enrollment Form'!$AD159)<>5,\"N\",\"Y\")))","v":""},{"$f":"IF($B152=\"N\",\"\",IF(LEN('Enrollment Form'!$BS159=0),\"\",IF(LEN('Enrollment Form'!$BS159)<>5,\"N\",\"Y\")))","v":""},{"$f":"IF($B152=\"N\",\"\",IF(LEN('Enrollment Form'!$AE159)=0,\"\",IF(LEN('Enrollment Form'!$AE159)<>10,\"N\",\"Y\")))","v":""},{"$f":"IF($B152=\"N\",\"\",IF(LEN('Enrollment Form'!$AF159)=0,\"\",IF(LEN('Enrollment Form'!$AF159)<>10,\"N\",\"Y\")))","v":""},{"$f":"IF('Enrollment Form'!$O159<>\"Graded\",\"-\",IF(AND('Enrollment Form'!$O159=\"Graded\",'Enrollment Form'!$AR159<>\"\"),\"Y\",\"N\"))","v":"-"},{"$f":"IF($B152=\"N\",\"\",IF(OR('Enrollment Form'!$B159<>\"Subscriber\",'Enrollment Form'!$C159=\"ROC\"),\"-\",IF(AND('Enrollment Form'!$B159=\"Subscriber\",'Enrollment Form'!$C159=\"Enroll\",'Enrollment Form'!$AJ159<>\"\"),\"Y\",\"N\")))","v":""},{"$f":"IF($B152=\"N\",\"\",IF(OR('Enrollment Form'!$B159<>\"Subscriber\",'Enrollment Form'!$C159=\"ROC\"),\"-\",IF(AND('Enrollment Form'!$B159=\"Subscriber\",'Enrollment Form'!$C159=\"Enroll\",'Enrollment Form'!$AK159<>\"\"),\"Y\",\"N\")))","v":""},{"$f":"IF($B152=\"N\",\"\",IF(OR('Enrollment Form'!$B159<>\"Subscriber\",'Enrollment Form'!$C159=\"ROC\"),\"-\",IF(AND('Enrollment Form'!$B159=\"Subscriber\",'Enrollment Form'!$C159=\"Enroll\",'Enrollment Form'!$AL159<>\"\"),\"Y\",\"N\")))","v":""},{"$f":"IF($B152=\"N\",\"\",IF(OR('Enrollment Form'!$B159<>\"Subscriber\",'Enrollment Form'!$C159=\"ROC\"),\"-\",IF(AND('Enrollment Form'!$B159=\"Subscriber\",'Enrollment Form'!$C159=\"Enroll\",'Enrollment Form'!$AP159<>\"\"),\"Y\",\"N\")))","v":""},{"$f":"IF($B152=\"N\",\"\",IF(OR('Enrollment Form'!$B159<>\"Subscriber\",'Enrollment Form'!$C159=\"ROC\"),\"-\",IF(AND('Enrollment Form'!$B159=\"Subscriber\",'Enrollment Form'!$C159=\"Enroll\",'Enrollment Form'!$AQ159<>\"\"),\"Y\",\"N\")))","v":""},{"$f":"IF($B152=\"N\",\"\",IF(OR('Enrollment Form'!$B159<>\"Subscriber\",'Enrollment Form'!$C159=\"ROC\"),\"-\",IF(AND('Enrollment Form'!$B159=\"Subscriber\",'Enrollment Form'!$C159=\"Enroll\",'Enrollment Form'!$AS159<>\"\"),\"Y\",\"N\")))","v":""},{"$f":"IF($B152=\"N\",\"\",IF($Q152=\"-\",\"-\",IF(AND($Q152=\"Y\",'Enrollment Form'!$AS159=\"No\"),\"-\",IF(AND($Q152=\"Y\",'Enrollment Form'!$AS159=\"Yes\",'Enrollment Form'!$AT159<>\"\"),\"Y\",\"N\"))))","v":""},{"$f":"IF($B152=\"N\",\"\",IF(OR('Enrollment Form'!$B159<>\"Subscriber\",'Enrollment Form'!$C159=\"ROC\"),\"-\",IF(AND('Enrollment Form'!$B159=\"Subscriber\",'Enrollment Form'!$C159=\"Enroll\",'Enrollment Form'!$CV159<>\"\"),\"Y\",\"N\")))","v":""},{"$f":"IF($B152=\"N\",\"\",IF($S152=\"-\",\"-\",IF(AND($S152=\"Y\",'Enrollment Form'!$CV159=\"No\"),\"-\",IF(AND($S152=\"Y\",'Enrollment Form'!$CV159=\"Yes\",'Enrollment Form'!$CW159<>\"\"),\"Y\",\"N\"))))","v":""},{"$f":"IF(OR('Enrollment Form'!$AY159=\"Yes\",'Enrollment Form'!$AY159=\"\"),\"-\",IF(OR(AND('Enrollment Form'!$AY159=\"No\",ISERROR(FIND(\"HMO\",VLOOKUP('Enrollment Form'!G159,'Enrollment Form'!H$11:J$1000,3,FALSE),1))=FALSE,COUNTA('Enrollment Form'!$AZ159:$BC159)=4),AND('Enrollment Form'!$AY159=\"No\",ISERROR(FIND(\"HMO\",VLOOKUP('Enrollment Form'!G159,'Enrollment Form'!H$11:J$1000,3,FALSE),1))=FALSE,COUNTA('Enrollment Form'!$BT159:$BW159)=4)),\"Y\",\"N\"))","v":"-"},{"$f":"IF($B152=\"N\",\"\",IF('Enrollment Form'!$B159=\"Subscriber\",\"-\",IF(COUNTA('Enrollment Form'!$BL159,'Enrollment Form'!$BN159)=2,\"Y\",\"N\")))","v":""},{"$f":"IF($B152=\"N\",\"\",IF(OR('Enrollment Form'!$AX159=\"\",'Enrollment Form'!$AX159=\"No\"),\"-\",IF(AND('Enrollment Form'!$AX159=\"Yes\",COUNTA('Enrollment Form'!$CR159)=1),\"Y\",\"N\")))","v":""},{"$f":"IF(OR('Enrollment Form'!$CR159=\"\",'Enrollment Form'!$CR159=\"No\"),\"-\",IF(COUNTA('Enrollment Form'!$CT159:$CU159)=2,\"Y\",\"N\"))","v":"-"},{"$f":"IF($B152=\"N\",\"\",IF(COUNTIF('Enrollment Form'!$DG159:$DP159,\"Other\")=COUNTA('Enrollment Form'!$DK159,'Enrollment Form'!$DH159,'Enrollment Form'!$DN159,'Enrollment Form'!$DQ159),\"Y\",\"N\"))","v":""},{"$f":"IF($B152=\"N\",\"\",IF(OR('Enrollment Form'!B159<>\"Subscriber\",'Enrollment Form'!C159=\"ROC\",COUNTIF('Enrollment Form'!AV159:AW159,\"Yes\")>=1),\"-\",IF(AND('Enrollment Form'!C159=\"Enroll\",COUNTIF('Enrollment Form'!AV159:AW159,\"No\")=2,'Enrollment Form'!AX159=\"\"),\"N\",\"Y\")))","v":""},{"$f":"IF(OR(B152=\"N\",'Enrollment Form'!B159<>\"Subscriber\",'Enrollment Form'!C159=\"ROC\",'Enrollment Form'!O159<>\"Multiple of Salary\"),\"-\",IF(COUNTA('Enrollment Form'!T159:U159)<2,\"N\",\"Y\"))","v":"-"},{"$f":"IF(B152=\"N\",\"\",IF(OR('Enrollment Form'!C159=\"ROC\",'Enrollment Form'!B159<>\"Subscriber\",'Enrollment Form'!O159=\"Waive\",'Enrollment Form'!O159=\"\"),\"-\",IF('Enrollment Form'!P159=\"\",\"N\",\"Y\")))","v":""},{"$f":"IF($B152=\"N\",\"\",IF(AND('Enrollment Form'!$C159=\"ROC\",'Enrollment Form'!$DR159<>\"\"),\"Y\",IF(AND('Enrollment Form'!$C159=\"ROC\",'Enrollment Form'!$DR159=\"\"),\"N\",IF(AND('Enrollment Form'!$C159=\"Enroll\",'Enrollment Form'!$B159=\"Subscriber\",'Enrollment Form'!$CX159=\"No\",'Enrollment Form'!$DR159=\"\"),\"N\",IF(AND('Enrollment Form'!$C159=\"Enroll\",'Enrollment Form'!$B159=\"Subscriber\",'Enrollment Form'!$CX159=\"Yes\"),\"-\",\"Y\")))))","v":""},{"$f":"IF($B152=\"N\",\"\",IF(AND('Enrollment Form'!$C159=\"ROC\",'Enrollment Form'!$DS159<>\"\"),\"Y\",IF(AND('Enrollment Form'!$C159=\"ROC\",'Enrollment Form'!$DS159=\"\"),\"N\",IF(AND('Enrollment Form'!$C159=\"Enroll\",'Enrollment Form'!$B159=\"Subscriber\",'Enrollment Form'!$CX159=\"No\",'Enrollment Form'!$DS159=\"\"),\"N\",IF(AND('Enrollment Form'!$C159=\"Enroll\",'Enrollment Form'!$B159=\"Subscriber\",'Enrollment Form'!$CX159=\"Yes\"),\"-\",\"Y\")))))","v":""},{"$f":"IF('Enrollment Form'!AH159=\"\",\"\",IF(ISERROR(SEARCH(\".\",'Enrollment Form'!AH159,SEARCH(\"@\",'Enrollment Form'!AH159))),\"N\",\"Y\"))","v":""},{"$f":"IF(OR($B152=\"N\",'Enrollment Form'!$G159=\"\"),\"\",IF('Enrollment Form'!$B159<>\"Subscriber\",\"-\",IF(COUNTIF('Enrollment Form'!$AV159:$AW159,\"Yes\")=2,\"N\",\"Y\")))","v":""},{"$f":"IF(OR('Enrollment Form'!$CJ159=\"\",'Enrollment Form'!$CJ159=\"No\"),\"-\",IF(AND('Enrollment Form'!$CJ159=\"Yes\",'Enrollment Form'!$CK159=\"\"),\"N\",\"Y\"))","v":"-"},{"$f":"IF(OR('Enrollment Form'!$CL159=\"\",'Enrollment Form'!$CL159=\"No\"),\"-\",IF(AND('Enrollment Form'!$CL159=\"Yes\",'Enrollment Form'!$CM159=\"\"),\"N\",\"Y\"))","v":"-"},{"$f":"IF(OR('Enrollment Form'!$CN159=\"\",'Enrollment Form'!$CN159=\"No\"),\"-\",IF(AND('Enrollment Form'!$CN159=\"Yes\",'Enrollment Form'!$CO159=\"\"),\"N\",\"Y\"))","v":"-"},{"$f":"IF(OR('Enrollment Form'!$CN159=\"\",'Enrollment Form'!$CN159=\"No\"),\"-\",IF(AND('Enrollment Form'!$CN159=\"Yes\",'Enrollment Form'!$CP159=\"\"),\"N\",\"Y\"))","v":"-"},{"$f":"IF('Enrollment Form'!B159<>\"Subscriber\",\"-\",IF(AND('Enrollment Form'!B159=\"Subscriber\",'Enrollment Form'!C159=\"Enroll\",'Enrollment Form'!AA159=\"\"),\"N\",\"Y\"))","v":"-"},{"$f":"IF(OR('Enrollment Form'!B159=\"Subscriber\",'Enrollment Form'!B159=\"\"),\"-\",IF('Enrollment Form'!BP159=\"\",\"N\",\"Y\"))","v":"-"},{"$f":"IF('Enrollment Form'!B159<>\"Subscriber\",\"-\",IF(AND('Enrollment Form'!B159=\"Subscriber\",'Enrollment Form'!G159=\"\"),\"N\",\"Y\"))","v":"-"},{"$f":"IF('Enrollment Form'!A159=\"\",\"\",IF('Enrollment Form'!B159=\"Subscriber\",\"-\",IF(AND('Enrollment Form'!B159<>\"Subscriber\",'Enrollment Form'!G159='Enrollment Form'!H159),\"N\",\"Y\")))","v":""},0]
[160,{"$f":"IF('Enrollment Form'!$A160<>\"\",\"Y\",\"N\")","v":"N"},{"$f":"IF(AND('Enrollment Form'!$B160=\"\",'Enrollment Form'!$C160<>\"\"),\"N\",IF($B153=\"N\",\"\",\"Y\"))","v":""},{"$f":"IF(OR($B153=\"N\",'Enrollment Form'!G160=\"\"),\"\",IF('Enrollment Form'!$B160<>\"Subscriber\",\"\",IF('Enrollment Form'!$G160='Enrollment Form'!$H160,\"Y\",\"N\")))","v":""},{"$f":"IF($B153=\"N\",\"\",IF(AND(COUNTIFS('Enrollment Form'!$H$11:$H$1000,'Enrollment Form'!$H160,'Enrollment Form'!$B$11:$B$1000,'Enrollment Form'!$B160)>1,'Enrollment Form'!$H160<>\"\"),\"N\",\"Y\"))","v":""},{"$f":"IF($B153=\"N\",\"\",IF(LEN('Enrollment Form'!$Y160)=0,\"\",IF(LEN('Enrollment Form'!$Y160)<>5,\"N\",\"Y\")))","v":""},{"$f":"IF($B153=\"N\",\"\",IF(LEN('Enrollment Form'!$AD160=0),\"\",IF(LEN('Enrollment Form'!$AD160)<>5,\"N\",\"Y\")))","v":""},{"$f":"IF($B153=\"N\",\"\",IF(LEN('Enrollment Form'!$BS160=0),\"\",IF(LEN('Enrollment Form'!$BS160)<>5,\"N\",\"Y\")))","v":""},{"$f":"IF($B153=\"N\",\"\",IF(LEN('Enrollment Form'!$AE160)=0,\"\",IF(LEN('Enrollment Form'!$AE160)<>10,\"N\",\"Y\")))","v":""},{"$f":"IF($B153=\"N\",\"\",IF(LEN('Enrollment Form'!$AF160)=0,\"\",IF(LEN('Enrollment Form'!$AF160)<>10,\"N\",\"Y\")))","v":""},{"$f":"IF('Enrollment Form'!$O160<>\"Graded\",\"-\",IF(AND('Enrollment Form'!$O160=\"Graded\",'Enrollment Form'!$AR160<>\"\"),\"Y\",\"N\"))","v":"-"},{"$f":"IF($B153=\"N\",\"\",IF(OR('Enrollment Form'!$B160<>\"Subscriber\",'Enrollment Form'!$C160=\"ROC\"),\"-\",IF(AND('Enrollment Form'!$B160=\"Subscriber\",'Enrollment Form'!$C160=\"Enroll\",'Enrollment Form'!$AJ160<>\"\"),\"Y\",\"N\")))","v":""},{"$f":"IF($B153=\"N\",\"\",IF(OR('Enrollment Form'!$B160<>\"Subscriber\",'Enrollment Form'!$C160=\"ROC\"),\"-\",IF(AND('Enrollment Form'!$B160=\"Subscriber\",'Enrollment Form'!$C160=\"Enroll\",'Enrollment Form'!$AK160<>\"\"),\"Y\",\"N\")))","v":""},{"$f":"IF($B153=\"N\",\"\",IF(OR('Enrollment Form'!$B160<>\"Subscriber\",'Enrollment Form'!$C160=\"ROC\"),\"-\",IF(AND('Enrollment Form'!$B160=\"Subscriber\",'Enrollment Form'!$C160=\"Enroll\",'Enrollment Form'!$AL160<>\"\"),\"Y\",\"N\")))","v":""},{"$f":"IF($B153=\"N\",\"\",IF(OR('Enrollment Form'!$B160<>\"Subscriber\",'Enrollment Form'!$C160=\"ROC\"),\"-\",IF(AND('Enrollment Form'!$B160=\"Subscriber\",'Enrollment Form'!$C160=\"Enroll\",'Enrollment Form'!$AP160<>\"\"),\"Y\",\"N\")))","v":""},{"$f":"IF($B153=\"N\",\"\",IF(OR('Enrollment Form'!$B160<>\"Subscriber\",'Enrollment Form'!$C160=\"ROC\"),\"-\",IF(AND('Enrollment Form'!$B160=\"Subscriber\",'Enrollment Form'!$C160=\"Enroll\",'Enrollment Form'!$AQ160<>\"\"),\"Y\",\"N\")))","v":""},{"$f":"IF($B153=\"N\",\"\",IF(OR('Enrollment Form'!$B160<>\"Subscriber\",'Enrollment Form'!$C160=\"ROC\"),\"-\",IF(AND('Enrollment Form'!$B160=\"Subscriber\",'Enrollment Form'!$C160=\"Enroll\",'Enrollment Form'!$AS160<>\"\"),\"Y\",\"N\")))","v":""},{"$f":"IF($B153=\"N\",\"\",IF($Q153=\"-\",\"-\",IF(AND($Q153=\"Y\",'Enrollment Form'!$AS160=\"No\"),\"-\",IF(AND($Q153=\"Y\",'Enrollment Form'!$AS160=\"Yes\",'Enrollment Form'!$AT160<>\"\"),\"Y\",\"N\"))))","v":""},{"$f":"IF($B153=\"N\",\"\",IF(OR('Enrollment Form'!$B160<>\"Subscriber\",'Enrollment Form'!$C160=\"ROC\"),\"-\",IF(AND('Enrollment Form'!$B160=\"Subscriber\",'Enrollment Form'!$C160=\"Enroll\",'Enrollment Form'!$CV160<>\"\"),\"Y\",\"N\")))","v":""},{"$f":"IF($B153=\"N\",\"\",IF($S153=\"-\",\"-\",IF(AND($S153=\"Y\",'Enrollment Form'!$CV160=\"No\"),\"-\",IF(AND($S153=\"Y\",'Enrollment Form'!$CV160=\"Yes\",'Enrollment Form'!$CW160<>\"\"),\"Y\",\"N\"))))","v":""},{"$f":"IF(OR('Enrollment Form'!$AY160=\"Yes\",'Enrollment Form'!$AY160=\"\"),\"-\",IF(OR(AND('Enrollment Form'!$AY160=\"No\",ISERROR(FIND(\"HMO\",VLOOKUP('Enrollment Form'!G160,'Enrollment Form'!H$11:J$1000,3,FALSE),1))=FALSE,COUNTA('Enrollment Form'!$AZ160:$BC160)=4),AND('Enrollment Form'!$AY160=\"No\",ISERROR(FIND(\"HMO\",VLOOKUP('Enrollment Form'!G160,'Enrollment Form'!H$11:J$1000,3,FALSE),1))=FALSE,COUNTA('Enrollment Form'!$BT160:$BW160)=4)),\"Y\",\"N\"))","v":"-"},{"$f":"IF($B153=\"N\",\"\",IF('Enrollment Form'!$B160=\"Subscriber\",\"-\",IF(COUNTA('Enrollment Form'!$BL160,'Enrollment Form'!$BN160)=2,\"Y\",\"N\")))","v":""},{"$f":"IF($B153=\"N\",\"\",IF(OR('Enrollment Form'!$AX160=\"\",'Enrollment Form'!$AX160=\"No\"),\"-\",IF(AND('Enrollment Form'!$AX160=\"Yes\",COUNTA('Enrollment Form'!$CR160)=1),\"Y\",\"N\")))","v":""},{"$f":"IF(OR('Enrollment Form'!$CR160=\"\",'Enrollment Form'!$CR160=\"No\"),\"-\",IF(COUNTA('Enrollment Form'!$CT160:$CU160)=2,\"Y\",\"N\"))","v":"-"},{"$f":"IF($B153=\"N\",\"\",IF(COUNTIF('Enrollment Form'!$DG160:$DP160,\"Other\")=COUNTA('Enrollment Form'!$DK160,'Enrollment Form'!$DH160,'Enrollment Form'!$DN160,'Enrollment Form'!$DQ160),\"Y\",\"N\"))","v":""},{"$f":"IF($B153=\"N\",\"\",IF(OR('Enrollment Form'!B160<>\"Subscriber\",'Enrollment Form'!C160=\"ROC\",COUNTIF('Enrollment Form'!AV160:AW160,\"Yes\")>=1),\"-\",IF(AND('Enrollment Form'!C160=\"Enroll\",COUNTIF('Enrollment Form'!AV160:AW160,\"No\")=2,'Enrollment Form'!AX160=\"\"),\"N\",\"Y\")))","v":""},{"$f":"IF(OR(B153=\"N\",'Enrollment Form'!B160<>\"Subscriber\",'Enrollment Form'!C160=\"ROC\",'Enrollment Form'!O160<>\"Multiple of Salary\"),\"-\",IF(COUNTA('Enrollment Form'!T160:U160)<2,\"N\",\"Y\"))","v":"-"},{"$f":"IF(B153=\"N\",\"\",IF(OR('Enrollment Form'!C160=\"ROC\",'Enrollment Form'!B160<>\"Subscriber\",'Enrollment Form'!O160=\"Waive\",'Enrollment Form'!O160=\"\"),\"-\",IF('Enrollment Form'!P160=\"\",\"N\",\"Y\")))","v":""},{"$f":"IF($B153=\"N\",\"\",IF(AND('Enrollment Form'!$C160=\"ROC\",'Enrollment Form'!$DR160<>\"\"),\"Y\",IF(AND('Enrollment Form'!$C160=\"ROC\",'Enrollment Form'!$DR160=\"\"),\"N\",IF(AND('Enrollment Form'!$C160=\"Enroll\",'Enrollment Form'!$B160=\"Subscriber\",'Enrollment Form'!$CX160=\"No\",'Enrollment Form'!$DR160=\"\"),\"N\",IF(AND('Enrollment Form'!$C160=\"Enroll\",'Enrollment Form'!$B160=\"Subscriber\",'Enrollment Form'!$CX160=\"Yes\"),\"-\",\"Y\")))))","v":""},{"$f":"IF($B153=\"N\",\"\",IF(AND('Enrollment Form'!$C160=\"ROC\",'Enrollment Form'!$DS160<>\"\"),\"Y\",IF(AND('Enrollment Form'!$C160=\"ROC\",'Enrollment Form'!$DS160=\"\"),\"N\",IF(AND('Enrollment Form'!$C160=\"Enroll\",'Enrollment Form'!$B160=\"Subscriber\",'Enrollment Form'!$CX160=\"No\",'Enrollment Form'!$DS160=\"\"),\"N\",IF(AND('Enrollment Form'!$C160=\"Enroll\",'Enrollment Form'!$B160=\"Subscriber\",'Enrollment Form'!$CX160=\"Yes\"),\"-\",\"Y\")))))","v":""},{"$f":"IF('Enrollment Form'!AH160=\"\",\"\",IF(ISERROR(SEARCH(\".\",'Enrollment Form'!AH160,SEARCH(\"@\",'Enrollment Form'!AH160))),\"N\",\"Y\"))","v":""},{"$f":"IF(OR($B153=\"N\",'Enrollment Form'!$G160=\"\"),\"\",IF('Enrollment Form'!$B160<>\"Subscriber\",\"-\",IF(COUNTIF('Enrollment Form'!$AV160:$AW160,\"Yes\")=2,\"N\",\"Y\")))","v":""},{"$f":"IF(OR('Enrollment Form'!$CJ160=\"\",'Enrollment Form'!$CJ160=\"No\"),\"-\",IF(AND('Enrollment Form'!$CJ160=\"Yes\",'Enrollment Form'!$CK160=\"\"),\"N\",\"Y\"))","v":"-"},{"$f":"IF(OR('Enrollment Form'!$CL160=\"\",'Enrollment Form'!$CL160=\"No\"),\"-\",IF(AND('Enrollment Form'!$CL160=\"Yes\",'Enrollment Form'!$CM160=\"\"),\"N\",\"Y\"))","v":"-"},{"$f":"IF(OR('Enrollment Form'!$CN160=\"\",'Enrollment Form'!$CN160=\"No\"),\"-\",IF(AND('Enrollment Form'!$CN160=\"Yes\",'Enrollment Form'!$CO160=\"\"),\"N\",\"Y\"))","v":"-"},{"$f":"IF(OR('Enrollment Form'!$CN160=\"\",'Enrollment Form'!$CN160=\"No\"),\"-\",IF(AND('Enrollment Form'!$CN160=\"Yes\",'Enrollment Form'!$CP160=\"\"),\"N\",\"Y\"))","v":"-"},{"$f":"IF('Enrollment Form'!B160<>\"Subscriber\",\"-\",IF(AND('Enrollment Form'!B160=\"Subscriber\",'Enrollment Form'!C160=\"Enroll\",'Enrollment Form'!AA160=\"\"),\"N\",\"Y\"))","v":"-"},{"$f":"IF(OR('Enrollment Form'!B160=\"Subscriber\",'Enrollment Form'!B160=\"\"),\"-\",IF('Enrollment Form'!BP160=\"\",\"N\",\"Y\"))","v":"-"},{"$f":"IF('Enrollment Form'!B160<>\"Subscriber\",\"-\",IF(AND('Enrollment Form'!B160=\"Subscriber\",'Enrollment Form'!G160=\"\"),\"N\",\"Y\"))","v":"-"},{"$f":"IF('Enrollment Form'!A160=\"\",\"\",IF('Enrollment Form'!B160=\"Subscriber\",\"-\",IF(AND('Enrollment Form'!B160<>\"Subscriber\",'Enrollment Form'!G160='Enrollment Form'!H160),\"N\",\"Y\")))","v":""},0]
[161,{"$f":"IF('Enrollment Form'!$A161<>\"\",\"Y\",\"N\")","v":"N"},{"$f":"IF(AND('Enrollment Form'!$B161=\"\",'Enrollment Form'!$C161<>\"\"),\"N\",IF($B154=\"N\",\"\",\"Y\"))","v":""},{"$f":"IF(OR($B154=\"N\",'Enrollment Form'!G161=\"\"),\"\",IF('Enrollment Form'!$B161<>\"Subscriber\",\"\",IF('Enrollment Form'!$G161='Enrollment Form'!$H161,\"Y\",\"N\")))","v":""},{"$f":"IF($B154=\"N\",\"\",IF(AND(COUNTIFS('Enrollment Form'!$H$11:$H$1000,'Enrollment Form'!$H161,'Enrollment Form'!$B$11:$B$1000,'Enrollment Form'!$B161)>1,'Enrollment Form'!$H161<>\"\"),\"N\",\"Y\"))","v":""},{"$f":"IF($B154=\"N\",\"\",IF(LEN('Enrollment Form'!$Y161)=0,\"\",IF(LEN('Enrollment Form'!$Y161)<>5,\"N\",\"Y\")))","v":""},{"$f":"IF($B154=\"N\",\"\",IF(LEN('Enrollment Form'!$AD161=0),\"\",IF(LEN('Enrollment Form'!$AD161)<>5,\"N\",\"Y\")))","v":""},{"$f":"IF($B154=\"N\",\"\",IF(LEN('Enrollment Form'!$BS161=0),\"\",IF(LEN('Enrollment Form'!$BS161)<>5,\"N\",\"Y\")))","v":""},{"$f":"IF($B154=\"N\",\"\",IF(LEN('Enrollment Form'!$AE161)=0,\"\",IF(LEN('Enrollment Form'!$AE161)<>10,\"N\",\"Y\")))","v":""},{"$f":"IF($B154=\"N\",\"\",IF(LEN('Enrollment Form'!$AF161)=0,\"\",IF(LEN('Enrollment Form'!$AF161)<>10,\"N\",\"Y\")))","v":""},{"$f":"IF('Enrollment Form'!$O161<>\"Graded\",\"-\",IF(AND('Enrollment Form'!$O161=\"Graded\",'Enrollment Form'!$AR161<>\"\"),\"Y\",\"N\"))","v":"-"},{"$f":"IF($B154=\"N\",\"\",IF(OR('Enrollment Form'!$B161<>\"Subscriber\",'Enrollment Form'!$C161=\"ROC\"),\"-\",IF(AND('Enrollment Form'!$B161=\"Subscriber\",'Enrollment Form'!$C161=\"Enroll\",'Enrollment Form'!$AJ161<>\"\"),\"Y\",\"N\")))","v":""},{"$f":"IF($B154=\"N\",\"\",IF(OR('Enrollment Form'!$B161<>\"Subscriber\",'Enrollment Form'!$C161=\"ROC\"),\"-\",IF(AND('Enrollment Form'!$B161=\"Subscriber\",'Enrollment Form'!$C161=\"Enroll\",'Enrollment Form'!$AK161<>\"\"),\"Y\",\"N\")))","v":""},{"$f":"IF($B154=\"N\",\"\",IF(OR('Enrollment Form'!$B161<>\"Subscriber\",'Enrollment Form'!$C161=\"ROC\"),\"-\",IF(AND('Enrollment Form'!$B161=\"Subscriber\",'Enrollment Form'!$C161=\"Enroll\",'Enrollment Form'!$AL161<>\"\"),\"Y\",\"N\")))","v":""},{"$f":"IF($B154=\"N\",\"\",IF(OR('Enrollment Form'!$B161<>\"Subscriber\",'Enrollment Form'!$C161=\"ROC\"),\"-\",IF(AND('Enrollment Form'!$B161=\"Subscriber\",'Enrollment Form'!$C161=\"Enroll\",'Enrollment Form'!$AP161<>\"\"),\"Y\",\"N\")))","v":""},{"$f":"IF($B154=\"N\",\"\",IF(OR('Enrollment Form'!$B161<>\"Subscriber\",'Enrollment Form'!$C161=\"ROC\"),\"-\",IF(AND('Enrollment Form'!$B161=\"Subscriber\",'Enrollment Form'!$C161=\"Enroll\",'Enrollment Form'!$AQ161<>\"\"),\"Y\",\"N\")))","v":""},{"$f":"IF($B154=\"N\",\"\",IF(OR('Enrollment Form'!$B161<>\"Subscriber\",'Enrollment Form'!$C161=\"ROC\"),\"-\",IF(AND('Enrollment Form'!$B161=\"Subscriber\",'Enrollment Form'!$C161=\"Enroll\",'Enrollment Form'!$AS161<>\"\"),\"Y\",\"N\")))","v":""},{"$f":"IF($B154=\"N\",\"\",IF($Q154=\"-\",\"-\",IF(AND($Q154=\"Y\",'Enrollment Form'!$AS161=\"No\"),\"-\",IF(AND($Q154=\"Y\",'Enrollment Form'!$AS161=\"Yes\",'Enrollment Form'!$AT161<>\"\"),\"Y\",\"N\"))))","v":""},{"$f":"IF($B154=\"N\",\"\",IF(OR('Enrollment Form'!$B161<>\"Subscriber\",'Enrollment Form'!$C161=\"ROC\"),\"-\",IF(AND('Enrollment Form'!$B161=\"Subscriber\",'Enrollment Form'!$C161=\"Enroll\",'Enrollment Form'!$CV161<>\"\"),\"Y\",\"N\")))","v":""},{"$f":"IF($B154=\"N\",\"\",IF($S154=\"-\",\"-\",IF(AND($S154=\"Y\",'Enrollment Form'!$CV161=\"No\"),\"-\",IF(AND($S154=\"Y\",'Enrollment Form'!$CV161=\"Yes\",'Enrollment Form'!$CW161<>\"\"),\"Y\",\"N\"))))","v":""},{"$f":"IF(OR('Enrollment Form'!$AY161=\"Yes\",'Enrollment Form'!$AY161=\"\"),\"-\",IF(OR(AND('Enrollment Form'!$AY161=\"No\",ISERROR(FIND(\"HMO\",VLOOKUP('Enrollment Form'!G161,'Enrollment Form'!H$11:J$1000,3,FALSE),1))=FALSE,COUNTA('Enrollment Form'!$AZ161:$BC161)=4),AND('Enrollment Form'!$AY161=\"No\",ISERROR(FIND(\"HMO\",VLOOKUP('Enrollment Form'!G161,'Enrollment Form'!H$11:J$1000,3,FALSE),1))=FALSE,COUNTA('Enrollment Form'!$BT161:$BW161)=4)),\"Y\",\"N\"))","v":"-"},{"$f":"IF($B154=\"N\",\"\",IF('Enrollment Form'!$B161=\"Subscriber\",\"-\",IF(COUNTA('Enrollment Form'!$BL161,'Enrollment Form'!$BN161)=2,\"Y\",\"N\")))","v":""},{"$f":"IF($B154=\"N\",\"\",IF(OR('Enrollment Form'!$AX161=\"\",'Enrollment Form'!$AX161=\"No\"),\"-\",IF(AND('Enrollment Form'!$AX161=\"Yes\",COUNTA('Enrollment Form'!$CR161)=1),\"Y\",\"N\")))","v":""},{"$f":"IF(OR('Enrollment Form'!$CR161=\"\",'Enrollment Form'!$CR161=\"No\"),\"-\",IF(COUNTA('Enrollment Form'!$CT161:$CU161)=2,\"Y\",\"N\"))","v":"-"},{"$f":"IF($B154=\"N\",\"\",IF(COUNTIF('Enrollment Form'!$DG161:$DP161,\"Other\")=COUNTA('Enrollment Form'!$DK161,'Enrollment Form'!$DH161,'Enrollment Form'!$DN161,'Enrollment Form'!$DQ161),\"Y\",\"N\"))","v":""},{"$f":"IF($B154=\"N\",\"\",IF(OR('Enrollment Form'!B161<>\"Subscriber\",'Enrollment Form'!C161=\"ROC\",COUNTIF('Enrollment Form'!AV161:AW161,\"Yes\")>=1),\"-\",IF(AND('Enrollment Form'!C161=\"Enroll\",COUNTIF('Enrollment Form'!AV161:AW161,\"No\")=2,'Enrollment Form'!AX161=\"\"),\"N\",\"Y\")))","v":""},{"$f":"IF(OR(B154=\"N\",'Enrollment Form'!B161<>\"Subscriber\",'Enrollment Form'!C161=\"ROC\",'Enrollment Form'!O161<>\"Multiple of Salary\"),\"-\",IF(COUNTA('Enrollment Form'!T161:U161)<2,\"N\",\"Y\"))","v":"-"},{"$f":"IF(B154=\"N\",\"\",IF(OR('Enrollment Form'!C161=\"ROC\",'Enrollment Form'!B161<>\"Subscriber\",'Enrollment Form'!O161=\"Waive\",'Enrollment Form'!O161=\"\"),\"-\",IF('Enrollment Form'!P161=\"\",\"N\",\"Y\")))","v":""},{"$f":"IF($B154=\"N\",\"\",IF(AND('Enrollment Form'!$C161=\"ROC\",'Enrollment Form'!$DR161<>\"\"),\"Y\",IF(AND('Enrollment Form'!$C161=\"ROC\",'Enrollment Form'!$DR161=\"\"),\"N\",IF(AND('Enrollment Form'!$C161=\"Enroll\",'Enrollment Form'!$B161=\"Subscriber\",'Enrollment Form'!$CX161=\"No\",'Enrollment Form'!$DR161=\"\"),\"N\",IF(AND('Enrollment Form'!$C161=\"Enroll\",'Enrollment Form'!$B161=\"Subscriber\",'Enrollment Form'!$CX161=\"Yes\"),\"-\",\"Y\")))))","v":""},{"$f":"IF($B154=\"N\",\"\",IF(AND('Enrollment Form'!$C161=\"ROC\",'Enrollment Form'!$DS161<>\"\"),\"Y\",IF(AND('Enrollment Form'!$C161=\"ROC\",'Enrollment Form'!$DS161=\"\"),\"N\",IF(AND('Enrollment Form'!$C161=\"Enroll\",'Enrollment Form'!$B161=\"Subscriber\",'Enrollment Form'!$CX161=\"No\",'Enrollment Form'!$DS161=\"\"),\"N\",IF(AND('Enrollment Form'!$C161=\"Enroll\",'Enrollment Form'!$B161=\"Subscriber\",'Enrollment Form'!$CX161=\"Yes\"),\"-\",\"Y\")))))","v":""},{"$f":"IF('Enrollment Form'!AH161=\"\",\"\",IF(ISERROR(SEARCH(\".\",'Enrollment Form'!AH161,SEARCH(\"@\",'Enrollment Form'!AH161))),\"N\",\"Y\"))","v":""},{"$f":"IF(OR($B154=\"N\",'Enrollment Form'!$G161=\"\"),\"\",IF('Enrollment Form'!$B161<>\"Subscriber\",\"-\",IF(COUNTIF('Enrollment Form'!$AV161:$AW161,\"Yes\")=2,\"N\",\"Y\")))","v":""},{"$f":"IF(OR('Enrollment Form'!$CJ161=\"\",'Enrollment Form'!$CJ161=\"No\"),\"-\",IF(AND('Enrollment Form'!$CJ161=\"Yes\",'Enrollment Form'!$CK161=\"\"),\"N\",\"Y\"))","v":"-"},{"$f":"IF(OR('Enrollment Form'!$CL161=\"\",'Enrollment Form'!$CL161=\"No\"),\"-\",IF(AND('Enrollment Form'!$CL161=\"Yes\",'Enrollment Form'!$CM161=\"\"),\"N\",\"Y\"))","v":"-"},{"$f":"IF(OR('Enrollment Form'!$CN161=\"\",'Enrollment Form'!$CN161=\"No\"),\"-\",IF(AND('Enrollment Form'!$CN161=\"Yes\",'Enrollment Form'!$CO161=\"\"),\"N\",\"Y\"))","v":"-"},{"$f":"IF(OR('Enrollment Form'!$CN161=\"\",'Enrollment Form'!$CN161=\"No\"),\"-\",IF(AND('Enrollment Form'!$CN161=\"Yes\",'Enrollment Form'!$CP161=\"\"),\"N\",\"Y\"))","v":"-"},{"$f":"IF('Enrollment Form'!B161<>\"Subscriber\",\"-\",IF(AND('Enrollment Form'!B161=\"Subscriber\",'Enrollment Form'!C161=\"Enroll\",'Enrollment Form'!AA161=\"\"),\"N\",\"Y\"))","v":"-"},{"$f":"IF(OR('Enrollment Form'!B161=\"Subscriber\",'Enrollment Form'!B161=\"\"),\"-\",IF('Enrollment Form'!BP161=\"\",\"N\",\"Y\"))","v":"-"},{"$f":"IF('Enrollment Form'!B161<>\"Subscriber\",\"-\",IF(AND('Enrollment Form'!B161=\"Subscriber\",'Enrollment Form'!G161=\"\"),\"N\",\"Y\"))","v":"-"},{"$f":"IF('Enrollment Form'!A161=\"\",\"\",IF('Enrollment Form'!B161=\"Subscriber\",\"-\",IF(AND('Enrollment Form'!B161<>\"Subscriber\",'Enrollment Form'!G161='Enrollment Form'!H161),\"N\",\"Y\")))","v":""},0]
[162,{"$f":"IF('Enrollment Form'!$A162<>\"\",\"Y\",\"N\")","v":"N"},{"$f":"IF(AND('Enrollment Form'!$B162=\"\",'Enrollment Form'!$C162<>\"\"),\"N\",IF($B155=\"N\",\"\",\"Y\"))","v":""},{"$f":"IF(OR($B155=\"N\",'Enrollment Form'!G162=\"\"),\"\",IF('Enrollment Form'!$B162<>\"Subscriber\",\"\",IF('Enrollment Form'!$G162='Enrollment Form'!$H162,\"Y\",\"N\")))","v":""},{"$f":"IF($B155=\"N\",\"\",IF(AND(COUNTIFS('Enrollment Form'!$H$11:$H$1000,'Enrollment Form'!$H162,'Enrollment Form'!$B$11:$B$1000,'Enrollment Form'!$B162)>1,'Enrollment Form'!$H162<>\"\"),\"N\",\"Y\"))","v":""},{"$f":"IF($B155=\"N\",\"\",IF(LEN('Enrollment Form'!$Y162)=0,\"\",IF(LEN('Enrollment Form'!$Y162)<>5,\"N\",\"Y\")))","v":""},{"$f":"IF($B155=\"N\",\"\",IF(LEN('Enrollment Form'!$AD162=0),\"\",IF(LEN('Enrollment Form'!$AD162)<>5,\"N\",\"Y\")))","v":""},{"$f":"IF($B155=\"N\",\"\",IF(LEN('Enrollment Form'!$BS162=0),\"\",IF(LEN('Enrollment Form'!$BS162)<>5,\"N\",\"Y\")))","v":""},{"$f":"IF($B155=\"N\",\"\",IF(LEN('Enrollment Form'!$AE162)=0,\"\",IF(LEN('Enrollment Form'!$AE162)<>10,\"N\",\"Y\")))","v":""},{"$f":"IF($B155=\"N\",\"\",IF(LEN('Enrollment Form'!$AF162)=0,\"\",IF(LEN('Enrollment Form'!$AF162)<>10,\"N\",\"Y\")))","v":""},{"$f":"IF('Enrollment Form'!$O162<>\"Graded\",\"-\",IF(AND('Enrollment Form'!$O162=\"Graded\",'Enrollment Form'!$AR162<>\"\"),\"Y\",\"N\"))","v":"-"},{"$f":"IF($B155=\"N\",\"\",IF(OR('Enrollment Form'!$B162<>\"Subscriber\",'Enrollment Form'!$C162=\"ROC\"),\"-\",IF(AND('Enrollment Form'!$B162=\"Subscriber\",'Enrollment Form'!$C162=\"Enroll\",'Enrollment Form'!$AJ162<>\"\"),\"Y\",\"N\")))","v":""},{"$f":"IF($B155=\"N\",\"\",IF(OR('Enrollment Form'!$B162<>\"Subscriber\",'Enrollment Form'!$C162=\"ROC\"),\"-\",IF(AND('Enrollment Form'!$B162=\"Subscriber\",'Enrollment Form'!$C162=\"Enroll\",'Enrollment Form'!$AK162<>\"\"),\"Y\",\"N\")))","v":""},{"$f":"IF($B155=\"N\",\"\",IF(OR('Enrollment Form'!$B162<>\"Subscriber\",'Enrollment Form'!$C162=\"ROC\"),\"-\",IF(AND('Enrollment Form'!$B162=\"Subscriber\",'Enrollment Form'!$C162=\"Enroll\",'Enrollment Form'!$AL162<>\"\"),\"Y\",\"N\")))","v":""},{"$f":"IF($B155=\"N\",\"\",IF(OR('Enrollment Form'!$B162<>\"Subscriber\",'Enrollment Form'!$C162=\"ROC\"),\"-\",IF(AND('Enrollment Form'!$B162=\"Subscriber\",'Enrollment Form'!$C162=\"Enroll\",'Enrollment Form'!$AP162<>\"\"),\"Y\",\"N\")))","v":""},{"$f":"IF($B155=\"N\",\"\",IF(OR('Enrollment Form'!$B162<>\"Subscriber\",'Enrollment Form'!$C162=\"ROC\"),\"-\",IF(AND('Enrollment Form'!$B162=\"Subscriber\",'Enrollment Form'!$C162=\"Enroll\",'Enrollment Form'!$AQ162<>\"\"),\"Y\",\"N\")))","v":""},{"$f":"IF($B155=\"N\",\"\",IF(OR('Enrollment Form'!$B162<>\"Subscriber\",'Enrollment Form'!$C162=\"ROC\"),\"-\",IF(AND('Enrollment Form'!$B162=\"Subscriber\",'Enrollment Form'!$C162=\"Enroll\",'Enrollment Form'!$AS162<>\"\"),\"Y\",\"N\")))","v":""},{"$f":"IF($B155=\"N\",\"\",IF($Q155=\"-\",\"-\",IF(AND($Q155=\"Y\",'Enrollment Form'!$AS162=\"No\"),\"-\",IF(AND($Q155=\"Y\",'Enrollment Form'!$AS162=\"Yes\",'Enrollment Form'!$AT162<>\"\"),\"Y\",\"N\"))))","v":""},{"$f":"IF($B155=\"N\",\"\",IF(OR('Enrollment Form'!$B162<>\"Subscriber\",'Enrollment Form'!$C162=\"ROC\"),\"-\",IF(AND('Enrollment Form'!$B162=\"Subscriber\",'Enrollment Form'!$C162=\"Enroll\",'Enrollment Form'!$CV162<>\"\"),\"Y\",\"N\")))","v":""},{"$f":"IF($B155=\"N\",\"\",IF($S155=\"-\",\"-\",IF(AND($S155=\"Y\",'Enrollment Form'!$CV162=\"No\"),\"-\",IF(AND($S155=\"Y\",'Enrollment Form'!$CV162=\"Yes\",'Enrollment Form'!$CW162<>\"\"),\"Y\",\"N\"))))","v":""},{"$f":"IF(OR('Enrollment Form'!$AY162=\"Yes\",'Enrollment Form'!$AY162=\"\"),\"-\",IF(OR(AND('Enrollment Form'!$AY162=\"No\",ISERROR(FIND(\"HMO\",VLOOKUP('Enrollment Form'!G162,'Enrollment Form'!H$11:J$1000,3,FALSE),1))=FALSE,COUNTA('Enrollment Form'!$AZ162:$BC162)=4),AND('Enrollment Form'!$AY162=\"No\",ISERROR(FIND(\"HMO\",VLOOKUP('Enrollment Form'!G162,'Enrollment Form'!H$11:J$1000,3,FALSE),1))=FALSE,COUNTA('Enrollment Form'!$BT162:$BW162)=4)),\"Y\",\"N\"))","v":"-"},{"$f":"IF($B155=\"N\",\"\",IF('Enrollment Form'!$B162=\"Subscriber\",\"-\",IF(COUNTA('Enrollment Form'!$BL162,'Enrollment Form'!$BN162)=2,\"Y\",\"N\")))","v":""},{"$f":"IF($B155=\"N\",\"\",IF(OR('Enrollment Form'!$AX162=\"\",'Enrollment Form'!$AX162=\"No\"),\"-\",IF(AND('Enrollment Form'!$AX162=\"Yes\",COUNTA('Enrollment Form'!$CR162)=1),\"Y\",\"N\")))","v":""},{"$f":"IF(OR('Enrollment Form'!$CR162=\"\",'Enrollment Form'!$CR162=\"No\"),\"-\",IF(COUNTA('Enrollment Form'!$CT162:$CU162)=2,\"Y\",\"N\"))","v":"-"},{"$f":"IF($B155=\"N\",\"\",IF(COUNTIF('Enrollment Form'!$DG162:$DP162,\"Other\")=COUNTA('Enrollment Form'!$DK162,'Enrollment Form'!$DH162,'Enrollment Form'!$DN162,'Enrollment Form'!$DQ162),\"Y\",\"N\"))","v":""},{"$f":"IF($B155=\"N\",\"\",IF(OR('Enrollment Form'!B162<>\"Subscriber\",'Enrollment Form'!C162=\"ROC\",COUNTIF('Enrollment Form'!AV162:AW162,\"Yes\")>=1),\"-\",IF(AND('Enrollment Form'!C162=\"Enroll\",COUNTIF('Enrollment Form'!AV162:AW162,\"No\")=2,'Enrollment Form'!AX162=\"\"),\"N\",\"Y\")))","v":""},{"$f":"IF(OR(B155=\"N\",'Enrollment Form'!B162<>\"Subscriber\",'Enrollment Form'!C162=\"ROC\",'Enrollment Form'!O162<>\"Multiple of Salary\"),\"-\",IF(COUNTA('Enrollment Form'!T162:U162)<2,\"N\",\"Y\"))","v":"-"},{"$f":"IF(B155=\"N\",\"\",IF(OR('Enrollment Form'!C162=\"ROC\",'Enrollment Form'!B162<>\"Subscriber\",'Enrollment Form'!O162=\"Waive\",'Enrollment Form'!O162=\"\"),\"-\",IF('Enrollment Form'!P162=\"\",\"N\",\"Y\")))","v":""},{"$f":"IF($B155=\"N\",\"\",IF(AND('Enrollment Form'!$C162=\"ROC\",'Enrollment Form'!$DR162<>\"\"),\"Y\",IF(AND('Enrollment Form'!$C162=\"ROC\",'Enrollment Form'!$DR162=\"\"),\"N\",IF(AND('Enrollment Form'!$C162=\"Enroll\",'Enrollment Form'!$B162=\"Subscriber\",'Enrollment Form'!$CX162=\"No\",'Enrollment Form'!$DR162=\"\"),\"N\",IF(AND('Enrollment Form'!$C162=\"Enroll\",'Enrollment Form'!$B162=\"Subscriber\",'Enrollment Form'!$CX162=\"Yes\"),\"-\",\"Y\")))))","v":""},{"$f":"IF($B155=\"N\",\"\",IF(AND('Enrollment Form'!$C162=\"ROC\",'Enrollment Form'!$DS162<>\"\"),\"Y\",IF(AND('Enrollment Form'!$C162=\"ROC\",'Enrollment Form'!$DS162=\"\"),\"N\",IF(AND('Enrollment Form'!$C162=\"Enroll\",'Enrollment Form'!$B162=\"Subscriber\",'Enrollment Form'!$CX162=\"No\",'Enrollment Form'!$DS162=\"\"),\"N\",IF(AND('Enrollment Form'!$C162=\"Enroll\",'Enrollment Form'!$B162=\"Subscriber\",'Enrollment Form'!$CX162=\"Yes\"),\"-\",\"Y\")))))","v":""},{"$f":"IF('Enrollment Form'!AH162=\"\",\"\",IF(ISERROR(SEARCH(\".\",'Enrollment Form'!AH162,SEARCH(\"@\",'Enrollment Form'!AH162))),\"N\",\"Y\"))","v":""},{"$f":"IF(OR($B155=\"N\",'Enrollment Form'!$G162=\"\"),\"\",IF('Enrollment Form'!$B162<>\"Subscriber\",\"-\",IF(COUNTIF('Enrollment Form'!$AV162:$AW162,\"Yes\")=2,\"N\",\"Y\")))","v":""},{"$f":"IF(OR('Enrollment Form'!$CJ162=\"\",'Enrollment Form'!$CJ162=\"No\"),\"-\",IF(AND('Enrollment Form'!$CJ162=\"Yes\",'Enrollment Form'!$CK162=\"\"),\"N\",\"Y\"))","v":"-"},{"$f":"IF(OR('Enrollment Form'!$CL162=\"\",'Enrollment Form'!$CL162=\"No\"),\"-\",IF(AND('Enrollment Form'!$CL162=\"Yes\",'Enrollment Form'!$CM162=\"\"),\"N\",\"Y\"))","v":"-"},{"$f":"IF(OR('Enrollment Form'!$CN162=\"\",'Enrollment Form'!$CN162=\"No\"),\"-\",IF(AND('Enrollment Form'!$CN162=\"Yes\",'Enrollment Form'!$CO162=\"\"),\"N\",\"Y\"))","v":"-"},{"$f":"IF(OR('Enrollment Form'!$CN162=\"\",'Enrollment Form'!$CN162=\"No\"),\"-\",IF(AND('Enrollment Form'!$CN162=\"Yes\",'Enrollment Form'!$CP162=\"\"),\"N\",\"Y\"))","v":"-"},{"$f":"IF('Enrollment Form'!B162<>\"Subscriber\",\"-\",IF(AND('Enrollment Form'!B162=\"Subscriber\",'Enrollment Form'!C162=\"Enroll\",'Enrollment Form'!AA162=\"\"),\"N\",\"Y\"))","v":"-"},{"$f":"IF(OR('Enrollment Form'!B162=\"Subscriber\",'Enrollment Form'!B162=\"\"),\"-\",IF('Enrollment Form'!BP162=\"\",\"N\",\"Y\"))","v":"-"},{"$f":"IF('Enrollment Form'!B162<>\"Subscriber\",\"-\",IF(AND('Enrollment Form'!B162=\"Subscriber\",'Enrollment Form'!G162=\"\"),\"N\",\"Y\"))","v":"-"},{"$f":"IF('Enrollment Form'!A162=\"\",\"\",IF('Enrollment Form'!B162=\"Subscriber\",\"-\",IF(AND('Enrollment Form'!B162<>\"Subscriber\",'Enrollment Form'!G162='Enrollment Form'!H162),\"N\",\"Y\")))","v":""},0]
[163,{"$f":"IF('Enrollment Form'!$A163<>\"\",\"Y\",\"N\")","v":"N"},{"$f":"IF(AND('Enrollment Form'!$B163=\"\",'Enrollment Form'!$C163<>\"\"),\"N\",IF($B156=\"N\",\"\",\"Y\"))","v":""},{"$f":"IF(OR($B156=\"N\",'Enrollment Form'!G163=\"\"),\"\",IF('Enrollment Form'!$B163<>\"Subscriber\",\"\",IF('Enrollment Form'!$G163='Enrollment Form'!$H163,\"Y\",\"N\")))","v":""},{"$f":"IF($B156=\"N\",\"\",IF(AND(COUNTIFS('Enrollment Form'!$H$11:$H$1000,'Enrollment Form'!$H163,'Enrollment Form'!$B$11:$B$1000,'Enrollment Form'!$B163)>1,'Enrollment Form'!$H163<>\"\"),\"N\",\"Y\"))","v":""},{"$f":"IF($B156=\"N\",\"\",IF(LEN('Enrollment Form'!$Y163)=0,\"\",IF(LEN('Enrollment Form'!$Y163)<>5,\"N\",\"Y\")))","v":""},{"$f":"IF($B156=\"N\",\"\",IF(LEN('Enrollment Form'!$AD163=0),\"\",IF(LEN('Enrollment Form'!$AD163)<>5,\"N\",\"Y\")))","v":""},{"$f":"IF($B156=\"N\",\"\",IF(LEN('Enrollment Form'!$BS163=0),\"\",IF(LEN('Enrollment Form'!$BS163)<>5,\"N\",\"Y\")))","v":""},{"$f":"IF($B156=\"N\",\"\",IF(LEN('Enrollment Form'!$AE163)=0,\"\",IF(LEN('Enrollment Form'!$AE163)<>10,\"N\",\"Y\")))","v":""},{"$f":"IF($B156=\"N\",\"\",IF(LEN('Enrollment Form'!$AF163)=0,\"\",IF(LEN('Enrollment Form'!$AF163)<>10,\"N\",\"Y\")))","v":""},{"$f":"IF('Enrollment Form'!$O163<>\"Graded\",\"-\",IF(AND('Enrollment Form'!$O163=\"Graded\",'Enrollment Form'!$AR163<>\"\"),\"Y\",\"N\"))","v":"-"},{"$f":"IF($B156=\"N\",\"\",IF(OR('Enrollment Form'!$B163<>\"Subscriber\",'Enrollment Form'!$C163=\"ROC\"),\"-\",IF(AND('Enrollment Form'!$B163=\"Subscriber\",'Enrollment Form'!$C163=\"Enroll\",'Enrollment Form'!$AJ163<>\"\"),\"Y\",\"N\")))","v":""},{"$f":"IF($B156=\"N\",\"\",IF(OR('Enrollment Form'!$B163<>\"Subscriber\",'Enrollment Form'!$C163=\"ROC\"),\"-\",IF(AND('Enrollment Form'!$B163=\"Subscriber\",'Enrollment Form'!$C163=\"Enroll\",'Enrollment Form'!$AK163<>\"\"),\"Y\",\"N\")))","v":""},{"$f":"IF($B156=\"N\",\"\",IF(OR('Enrollment Form'!$B163<>\"Subscriber\",'Enrollment Form'!$C163=\"ROC\"),\"-\",IF(AND('Enrollment Form'!$B163=\"Subscriber\",'Enrollment Form'!$C163=\"Enroll\",'Enrollment Form'!$AL163<>\"\"),\"Y\",\"N\")))","v":""},{"$f":"IF($B156=\"N\",\"\",IF(OR('Enrollment Form'!$B163<>\"Subscriber\",'Enrollment Form'!$C163=\"ROC\"),\"-\",IF(AND('Enrollment Form'!$B163=\"Subscriber\",'Enrollment Form'!$C163=\"Enroll\",'Enrollment Form'!$AP163<>\"\"),\"Y\",\"N\")))","v":""},{"$f":"IF($B156=\"N\",\"\",IF(OR('Enrollment Form'!$B163<>\"Subscriber\",'Enrollment Form'!$C163=\"ROC\"),\"-\",IF(AND('Enrollment Form'!$B163=\"Subscriber\",'Enrollment Form'!$C163=\"Enroll\",'Enrollment Form'!$AQ163<>\"\"),\"Y\",\"N\")))","v":""},{"$f":"IF($B156=\"N\",\"\",IF(OR('Enrollment Form'!$B163<>\"Subscriber\",'Enrollment Form'!$C163=\"ROC\"),\"-\",IF(AND('Enrollment Form'!$B163=\"Subscriber\",'Enrollment Form'!$C163=\"Enroll\",'Enrollment Form'!$AS163<>\"\"),\"Y\",\"N\")))","v":""},{"$f":"IF($B156=\"N\",\"\",IF($Q156=\"-\",\"-\",IF(AND($Q156=\"Y\",'Enrollment Form'!$AS163=\"No\"),\"-\",IF(AND($Q156=\"Y\",'Enrollment Form'!$AS163=\"Yes\",'Enrollment Form'!$AT163<>\"\"),\"Y\",\"N\"))))","v":""},{"$f":"IF($B156=\"N\",\"\",IF(OR('Enrollment Form'!$B163<>\"Subscriber\",'Enrollment Form'!$C163=\"ROC\"),\"-\",IF(AND('Enrollment Form'!$B163=\"Subscriber\",'Enrollment Form'!$C163=\"Enroll\",'Enrollment Form'!$CV163<>\"\"),\"Y\",\"N\")))","v":""},{"$f":"IF($B156=\"N\",\"\",IF($S156=\"-\",\"-\",IF(AND($S156=\"Y\",'Enrollment Form'!$CV163=\"No\"),\"-\",IF(AND($S156=\"Y\",'Enrollment Form'!$CV163=\"Yes\",'Enrollment Form'!$CW163<>\"\"),\"Y\",\"N\"))))","v":""},{"$f":"IF(OR('Enrollment Form'!$AY163=\"Yes\",'Enrollment Form'!$AY163=\"\"),\"-\",IF(OR(AND('Enrollment Form'!$AY163=\"No\",ISERROR(FIND(\"HMO\",VLOOKUP('Enrollment Form'!G163,'Enrollment Form'!H$11:J$1000,3,FALSE),1))=FALSE,COUNTA('Enrollment Form'!$AZ163:$BC163)=4),AND('Enrollment Form'!$AY163=\"No\",ISERROR(FIND(\"HMO\",VLOOKUP('Enrollment Form'!G163,'Enrollment Form'!H$11:J$1000,3,FALSE),1))=FALSE,COUNTA('Enrollment Form'!$BT163:$BW163)=4)),\"Y\",\"N\"))","v":"-"},{"$f":"IF($B156=\"N\",\"\",IF('Enrollment Form'!$B163=\"Subscriber\",\"-\",IF(COUNTA('Enrollment Form'!$BL163,'Enrollment Form'!$BN163)=2,\"Y\",\"N\")))","v":""},{"$f":"IF($B156=\"N\",\"\",IF(OR('Enrollment Form'!$AX163=\"\",'Enrollment Form'!$AX163=\"No\"),\"-\",IF(AND('Enrollment Form'!$AX163=\"Yes\",COUNTA('Enrollment Form'!$CR163)=1),\"Y\",\"N\")))","v":""},{"$f":"IF(OR('Enrollment Form'!$CR163=\"\",'Enrollment Form'!$CR163=\"No\"),\"-\",IF(COUNTA('Enrollment Form'!$CT163:$CU163)=2,\"Y\",\"N\"))","v":"-"},{"$f":"IF($B156=\"N\",\"\",IF(COUNTIF('Enrollment Form'!$DG163:$DP163,\"Other\")=COUNTA('Enrollment Form'!$DK163,'Enrollment Form'!$DH163,'Enrollment Form'!$DN163,'Enrollment Form'!$DQ163),\"Y\",\"N\"))","v":""},{"$f":"IF($B156=\"N\",\"\",IF(OR('Enrollment Form'!B163<>\"Subscriber\",'Enrollment Form'!C163=\"ROC\",COUNTIF('Enrollment Form'!AV163:AW163,\"Yes\")>=1),\"-\",IF(AND('Enrollment Form'!C163=\"Enroll\",COUNTIF('Enrollment Form'!AV163:AW163,\"No\")=2,'Enrollment Form'!AX163=\"\"),\"N\",\"Y\")))","v":""},{"$f":"IF(OR(B156=\"N\",'Enrollment Form'!B163<>\"Subscriber\",'Enrollment Form'!C163=\"ROC\",'Enrollment Form'!O163<>\"Multiple of Salary\"),\"-\",IF(COUNTA('Enrollment Form'!T163:U163)<2,\"N\",\"Y\"))","v":"-"},{"$f":"IF(B156=\"N\",\"\",IF(OR('Enrollment Form'!C163=\"ROC\",'Enrollment Form'!B163<>\"Subscriber\",'Enrollment Form'!O163=\"Waive\",'Enrollment Form'!O163=\"\"),\"-\",IF('Enrollment Form'!P163=\"\",\"N\",\"Y\")))","v":""},{"$f":"IF($B156=\"N\",\"\",IF(AND('Enrollment Form'!$C163=\"ROC\",'Enrollment Form'!$DR163<>\"\"),\"Y\",IF(AND('Enrollment Form'!$C163=\"ROC\",'Enrollment Form'!$DR163=\"\"),\"N\",IF(AND('Enrollment Form'!$C163=\"Enroll\",'Enrollment Form'!$B163=\"Subscriber\",'Enrollment Form'!$CX163=\"No\",'Enrollment Form'!$DR163=\"\"),\"N\",IF(AND('Enrollment Form'!$C163=\"Enroll\",'Enrollment Form'!$B163=\"Subscriber\",'Enrollment Form'!$CX163=\"Yes\"),\"-\",\"Y\")))))","v":""},{"$f":"IF($B156=\"N\",\"\",IF(AND('Enrollment Form'!$C163=\"ROC\",'Enrollment Form'!$DS163<>\"\"),\"Y\",IF(AND('Enrollment Form'!$C163=\"ROC\",'Enrollment Form'!$DS163=\"\"),\"N\",IF(AND('Enrollment Form'!$C163=\"Enroll\",'Enrollment Form'!$B163=\"Subscriber\",'Enrollment Form'!$CX163=\"No\",'Enrollment Form'!$DS163=\"\"),\"N\",IF(AND('Enrollment Form'!$C163=\"Enroll\",'Enrollment Form'!$B163=\"Subscriber\",'Enrollment Form'!$CX163=\"Yes\"),\"-\",\"Y\")))))","v":""},{"$f":"IF('Enrollment Form'!AH163=\"\",\"\",IF(ISERROR(SEARCH(\".\",'Enrollment Form'!AH163,SEARCH(\"@\",'Enrollment Form'!AH163))),\"N\",\"Y\"))","v":""},{"$f":"IF(OR($B156=\"N\",'Enrollment Form'!$G163=\"\"),\"\",IF('Enrollment Form'!$B163<>\"Subscriber\",\"-\",IF(COUNTIF('Enrollment Form'!$AV163:$AW163,\"Yes\")=2,\"N\",\"Y\")))","v":""},{"$f":"IF(OR('Enrollment Form'!$CJ163=\"\",'Enrollment Form'!$CJ163=\"No\"),\"-\",IF(AND('Enrollment Form'!$CJ163=\"Yes\",'Enrollment Form'!$CK163=\"\"),\"N\",\"Y\"))","v":"-"},{"$f":"IF(OR('Enrollment Form'!$CL163=\"\",'Enrollment Form'!$CL163=\"No\"),\"-\",IF(AND('Enrollment Form'!$CL163=\"Yes\",'Enrollment Form'!$CM163=\"\"),\"N\",\"Y\"))","v":"-"},{"$f":"IF(OR('Enrollment Form'!$CN163=\"\",'Enrollment Form'!$CN163=\"No\"),\"-\",IF(AND('Enrollment Form'!$CN163=\"Yes\",'Enrollment Form'!$CO163=\"\"),\"N\",\"Y\"))","v":"-"},{"$f":"IF(OR('Enrollment Form'!$CN163=\"\",'Enrollment Form'!$CN163=\"No\"),\"-\",IF(AND('Enrollment Form'!$CN163=\"Yes\",'Enrollment Form'!$CP163=\"\"),\"N\",\"Y\"))","v":"-"},{"$f":"IF('Enrollment Form'!B163<>\"Subscriber\",\"-\",IF(AND('Enrollment Form'!B163=\"Subscriber\",'Enrollment Form'!C163=\"Enroll\",'Enrollment Form'!AA163=\"\"),\"N\",\"Y\"))","v":"-"},{"$f":"IF(OR('Enrollment Form'!B163=\"Subscriber\",'Enrollment Form'!B163=\"\"),\"-\",IF('Enrollment Form'!BP163=\"\",\"N\",\"Y\"))","v":"-"},{"$f":"IF('Enrollment Form'!B163<>\"Subscriber\",\"-\",IF(AND('Enrollment Form'!B163=\"Subscriber\",'Enrollment Form'!G163=\"\"),\"N\",\"Y\"))","v":"-"},{"$f":"IF('Enrollment Form'!A163=\"\",\"\",IF('Enrollment Form'!B163=\"Subscriber\",\"-\",IF(AND('Enrollment Form'!B163<>\"Subscriber\",'Enrollment Form'!G163='Enrollment Form'!H163),\"N\",\"Y\")))","v":""},0]
[164,{"$f":"IF('Enrollment Form'!$A164<>\"\",\"Y\",\"N\")","v":"N"},{"$f":"IF(AND('Enrollment Form'!$B164=\"\",'Enrollment Form'!$C164<>\"\"),\"N\",IF($B157=\"N\",\"\",\"Y\"))","v":""},{"$f":"IF(OR($B157=\"N\",'Enrollment Form'!G164=\"\"),\"\",IF('Enrollment Form'!$B164<>\"Subscriber\",\"\",IF('Enrollment Form'!$G164='Enrollment Form'!$H164,\"Y\",\"N\")))","v":""},{"$f":"IF($B157=\"N\",\"\",IF(AND(COUNTIFS('Enrollment Form'!$H$11:$H$1000,'Enrollment Form'!$H164,'Enrollment Form'!$B$11:$B$1000,'Enrollment Form'!$B164)>1,'Enrollment Form'!$H164<>\"\"),\"N\",\"Y\"))","v":""},{"$f":"IF($B157=\"N\",\"\",IF(LEN('Enrollment Form'!$Y164)=0,\"\",IF(LEN('Enrollment Form'!$Y164)<>5,\"N\",\"Y\")))","v":""},{"$f":"IF($B157=\"N\",\"\",IF(LEN('Enrollment Form'!$AD164=0),\"\",IF(LEN('Enrollment Form'!$AD164)<>5,\"N\",\"Y\")))","v":""},{"$f":"IF($B157=\"N\",\"\",IF(LEN('Enrollment Form'!$BS164=0),\"\",IF(LEN('Enrollment Form'!$BS164)<>5,\"N\",\"Y\")))","v":""},{"$f":"IF($B157=\"N\",\"\",IF(LEN('Enrollment Form'!$AE164)=0,\"\",IF(LEN('Enrollment Form'!$AE164)<>10,\"N\",\"Y\")))","v":""},{"$f":"IF($B157=\"N\",\"\",IF(LEN('Enrollment Form'!$AF164)=0,\"\",IF(LEN('Enrollment Form'!$AF164)<>10,\"N\",\"Y\")))","v":""},{"$f":"IF('Enrollment Form'!$O164<>\"Graded\",\"-\",IF(AND('Enrollment Form'!$O164=\"Graded\",'Enrollment Form'!$AR164<>\"\"),\"Y\",\"N\"))","v":"-"},{"$f":"IF($B157=\"N\",\"\",IF(OR('Enrollment Form'!$B164<>\"Subscriber\",'Enrollment Form'!$C164=\"ROC\"),\"-\",IF(AND('Enrollment Form'!$B164=\"Subscriber\",'Enrollment Form'!$C164=\"Enroll\",'Enrollment Form'!$AJ164<>\"\"),\"Y\",\"N\")))","v":""},{"$f":"IF($B157=\"N\",\"\",IF(OR('Enrollment Form'!$B164<>\"Subscriber\",'Enrollment Form'!$C164=\"ROC\"),\"-\",IF(AND('Enrollment Form'!$B164=\"Subscriber\",'Enrollment Form'!$C164=\"Enroll\",'Enrollment Form'!$AK164<>\"\"),\"Y\",\"N\")))","v":""},{"$f":"IF($B157=\"N\",\"\",IF(OR('Enrollment Form'!$B164<>\"Subscriber\",'Enrollment Form'!$C164=\"ROC\"),\"-\",IF(AND('Enrollment Form'!$B164=\"Subscriber\",'Enrollment Form'!$C164=\"Enroll\",'Enrollment Form'!$AL164<>\"\"),\"Y\",\"N\")))","v":""},{"$f":"IF($B157=\"N\",\"\",IF(OR('Enrollment Form'!$B164<>\"Subscriber\",'Enrollment Form'!$C164=\"ROC\"),\"-\",IF(AND('Enrollment Form'!$B164=\"Subscriber\",'Enrollment Form'!$C164=\"Enroll\",'Enrollment Form'!$AP164<>\"\"),\"Y\",\"N\")))","v":""},{"$f":"IF($B157=\"N\",\"\",IF(OR('Enrollment Form'!$B164<>\"Subscriber\",'Enrollment Form'!$C164=\"ROC\"),\"-\",IF(AND('Enrollment Form'!$B164=\"Subscriber\",'Enrollment Form'!$C164=\"Enroll\",'Enrollment Form'!$AQ164<>\"\"),\"Y\",\"N\")))","v":""},{"$f":"IF($B157=\"N\",\"\",IF(OR('Enrollment Form'!$B164<>\"Subscriber\",'Enrollment Form'!$C164=\"ROC\"),\"-\",IF(AND('Enrollment Form'!$B164=\"Subscriber\",'Enrollment Form'!$C164=\"Enroll\",'Enrollment Form'!$AS164<>\"\"),\"Y\",\"N\")))","v":""},{"$f":"IF($B157=\"N\",\"\",IF($Q157=\"-\",\"-\",IF(AND($Q157=\"Y\",'Enrollment Form'!$AS164=\"No\"),\"-\",IF(AND($Q157=\"Y\",'Enrollment Form'!$AS164=\"Yes\",'Enrollment Form'!$AT164<>\"\"),\"Y\",\"N\"))))","v":""},{"$f":"IF($B157=\"N\",\"\",IF(OR('Enrollment Form'!$B164<>\"Subscriber\",'Enrollment Form'!$C164=\"ROC\"),\"-\",IF(AND('Enrollment Form'!$B164=\"Subscriber\",'Enrollment Form'!$C164=\"Enroll\",'Enrollment Form'!$CV164<>\"\"),\"Y\",\"N\")))","v":""},{"$f":"IF($B157=\"N\",\"\",IF($S157=\"-\",\"-\",IF(AND($S157=\"Y\",'Enrollment Form'!$CV164=\"No\"),\"-\",IF(AND($S157=\"Y\",'Enrollment Form'!$CV164=\"Yes\",'Enrollment Form'!$CW164<>\"\"),\"Y\",\"N\"))))","v":""},{"$f":"IF(OR('Enrollment Form'!$AY164=\"Yes\",'Enrollment Form'!$AY164=\"\"),\"-\",IF(OR(AND('Enrollment Form'!$AY164=\"No\",ISERROR(FIND(\"HMO\",VLOOKUP('Enrollment Form'!G164,'Enrollment Form'!H$11:J$1000,3,FALSE),1))=FALSE,COUNTA('Enrollment Form'!$AZ164:$BC164)=4),AND('Enrollment Form'!$AY164=\"No\",ISERROR(FIND(\"HMO\",VLOOKUP('Enrollment Form'!G164,'Enrollment Form'!H$11:J$1000,3,FALSE),1))=FALSE,COUNTA('Enrollment Form'!$BT164:$BW164)=4)),\"Y\",\"N\"))","v":"-"},{"$f":"IF($B157=\"N\",\"\",IF('Enrollment Form'!$B164=\"Subscriber\",\"-\",IF(COUNTA('Enrollment Form'!$BL164,'Enrollment Form'!$BN164)=2,\"Y\",\"N\")))","v":""},{"$f":"IF($B157=\"N\",\"\",IF(OR('Enrollment Form'!$AX164=\"\",'Enrollment Form'!$AX164=\"No\"),\"-\",IF(AND('Enrollment Form'!$AX164=\"Yes\",COUNTA('Enrollment Form'!$CR164)=1),\"Y\",\"N\")))","v":""},{"$f":"IF(OR('Enrollment Form'!$CR164=\"\",'Enrollment Form'!$CR164=\"No\"),\"-\",IF(COUNTA('Enrollment Form'!$CT164:$CU164)=2,\"Y\",\"N\"))","v":"-"},{"$f":"IF($B157=\"N\",\"\",IF(COUNTIF('Enrollment Form'!$DG164:$DP164,\"Other\")=COUNTA('Enrollment Form'!$DK164,'Enrollment Form'!$DH164,'Enrollment Form'!$DN164,'Enrollment Form'!$DQ164),\"Y\",\"N\"))","v":""},{"$f":"IF($B157=\"N\",\"\",IF(OR('Enrollment Form'!B164<>\"Subscriber\",'Enrollment Form'!C164=\"ROC\",COUNTIF('Enrollment Form'!AV164:AW164,\"Yes\")>=1),\"-\",IF(AND('Enrollment Form'!C164=\"Enroll\",COUNTIF('Enrollment Form'!AV164:AW164,\"No\")=2,'Enrollment Form'!AX164=\"\"),\"N\",\"Y\")))","v":""},{"$f":"IF(OR(B157=\"N\",'Enrollment Form'!B164<>\"Subscriber\",'Enrollment Form'!C164=\"ROC\",'Enrollment Form'!O164<>\"Multiple of Salary\"),\"-\",IF(COUNTA('Enrollment Form'!T164:U164)<2,\"N\",\"Y\"))","v":"-"},{"$f":"IF(B157=\"N\",\"\",IF(OR('Enrollment Form'!C164=\"ROC\",'Enrollment Form'!B164<>\"Subscriber\",'Enrollment Form'!O164=\"Waive\",'Enrollment Form'!O164=\"\"),\"-\",IF('Enrollment Form'!P164=\"\",\"N\",\"Y\")))","v":""},{"$f":"IF($B157=\"N\",\"\",IF(AND('Enrollment Form'!$C164=\"ROC\",'Enrollment Form'!$DR164<>\"\"),\"Y\",IF(AND('Enrollment Form'!$C164=\"ROC\",'Enrollment Form'!$DR164=\"\"),\"N\",IF(AND('Enrollment Form'!$C164=\"Enroll\",'Enrollment Form'!$B164=\"Subscriber\",'Enrollment Form'!$CX164=\"No\",'Enrollment Form'!$DR164=\"\"),\"N\",IF(AND('Enrollment Form'!$C164=\"Enroll\",'Enrollment Form'!$B164=\"Subscriber\",'Enrollment Form'!$CX164=\"Yes\"),\"-\",\"Y\")))))","v":""},{"$f":"IF($B157=\"N\",\"\",IF(AND('Enrollment Form'!$C164=\"ROC\",'Enrollment Form'!$DS164<>\"\"),\"Y\",IF(AND('Enrollment Form'!$C164=\"ROC\",'Enrollment Form'!$DS164=\"\"),\"N\",IF(AND('Enrollment Form'!$C164=\"Enroll\",'Enrollment Form'!$B164=\"Subscriber\",'Enrollment Form'!$CX164=\"No\",'Enrollment Form'!$DS164=\"\"),\"N\",IF(AND('Enrollment Form'!$C164=\"Enroll\",'Enrollment Form'!$B164=\"Subscriber\",'Enrollment Form'!$CX164=\"Yes\"),\"-\",\"Y\")))))","v":""},{"$f":"IF('Enrollment Form'!AH164=\"\",\"\",IF(ISERROR(SEARCH(\".\",'Enrollment Form'!AH164,SEARCH(\"@\",'Enrollment Form'!AH164))),\"N\",\"Y\"))","v":""},{"$f":"IF(OR($B157=\"N\",'Enrollment Form'!$G164=\"\"),\"\",IF('Enrollment Form'!$B164<>\"Subscriber\",\"-\",IF(COUNTIF('Enrollment Form'!$AV164:$AW164,\"Yes\")=2,\"N\",\"Y\")))","v":""},{"$f":"IF(OR('Enrollment Form'!$CJ164=\"\",'Enrollment Form'!$CJ164=\"No\"),\"-\",IF(AND('Enrollment Form'!$CJ164=\"Yes\",'Enrollment Form'!$CK164=\"\"),\"N\",\"Y\"))","v":"-"},{"$f":"IF(OR('Enrollment Form'!$CL164=\"\",'Enrollment Form'!$CL164=\"No\"),\"-\",IF(AND('Enrollment Form'!$CL164=\"Yes\",'Enrollment Form'!$CM164=\"\"),\"N\",\"Y\"))","v":"-"},{"$f":"IF(OR('Enrollment Form'!$CN164=\"\",'Enrollment Form'!$CN164=\"No\"),\"-\",IF(AND('Enrollment Form'!$CN164=\"Yes\",'Enrollment Form'!$CO164=\"\"),\"N\",\"Y\"))","v":"-"},{"$f":"IF(OR('Enrollment Form'!$CN164=\"\",'Enrollment Form'!$CN164=\"No\"),\"-\",IF(AND('Enrollment Form'!$CN164=\"Yes\",'Enrollment Form'!$CP164=\"\"),\"N\",\"Y\"))","v":"-"},{"$f":"IF('Enrollment Form'!B164<>\"Subscriber\",\"-\",IF(AND('Enrollment Form'!B164=\"Subscriber\",'Enrollment Form'!C164=\"Enroll\",'Enrollment Form'!AA164=\"\"),\"N\",\"Y\"))","v":"-"},{"$f":"IF(OR('Enrollment Form'!B164=\"Subscriber\",'Enrollment Form'!B164=\"\"),\"-\",IF('Enrollment Form'!BP164=\"\",\"N\",\"Y\"))","v":"-"},{"$f":"IF('Enrollment Form'!B164<>\"Subscriber\",\"-\",IF(AND('Enrollment Form'!B164=\"Subscriber\",'Enrollment Form'!G164=\"\"),\"N\",\"Y\"))","v":"-"},{"$f":"IF('Enrollment Form'!A164=\"\",\"\",IF('Enrollment Form'!B164=\"Subscriber\",\"-\",IF(AND('Enrollment Form'!B164<>\"Subscriber\",'Enrollment Form'!G164='Enrollment Form'!H164),\"N\",\"Y\")))","v":""},0]
[165,{"$f":"IF('Enrollment Form'!$A165<>\"\",\"Y\",\"N\")","v":"N"},{"$f":"IF(AND('Enrollment Form'!$B165=\"\",'Enrollment Form'!$C165<>\"\"),\"N\",IF($B158=\"N\",\"\",\"Y\"))","v":""},{"$f":"IF(OR($B158=\"N\",'Enrollment Form'!G165=\"\"),\"\",IF('Enrollment Form'!$B165<>\"Subscriber\",\"\",IF('Enrollment Form'!$G165='Enrollment Form'!$H165,\"Y\",\"N\")))","v":""},{"$f":"IF($B158=\"N\",\"\",IF(AND(COUNTIFS('Enrollment Form'!$H$11:$H$1000,'Enrollment Form'!$H165,'Enrollment Form'!$B$11:$B$1000,'Enrollment Form'!$B165)>1,'Enrollment Form'!$H165<>\"\"),\"N\",\"Y\"))","v":""},{"$f":"IF($B158=\"N\",\"\",IF(LEN('Enrollment Form'!$Y165)=0,\"\",IF(LEN('Enrollment Form'!$Y165)<>5,\"N\",\"Y\")))","v":""},{"$f":"IF($B158=\"N\",\"\",IF(LEN('Enrollment Form'!$AD165=0),\"\",IF(LEN('Enrollment Form'!$AD165)<>5,\"N\",\"Y\")))","v":""},{"$f":"IF($B158=\"N\",\"\",IF(LEN('Enrollment Form'!$BS165=0),\"\",IF(LEN('Enrollment Form'!$BS165)<>5,\"N\",\"Y\")))","v":""},{"$f":"IF($B158=\"N\",\"\",IF(LEN('Enrollment Form'!$AE165)=0,\"\",IF(LEN('Enrollment Form'!$AE165)<>10,\"N\",\"Y\")))","v":""},{"$f":"IF($B158=\"N\",\"\",IF(LEN('Enrollment Form'!$AF165)=0,\"\",IF(LEN('Enrollment Form'!$AF165)<>10,\"N\",\"Y\")))","v":""},{"$f":"IF('Enrollment Form'!$O165<>\"Graded\",\"-\",IF(AND('Enrollment Form'!$O165=\"Graded\",'Enrollment Form'!$AR165<>\"\"),\"Y\",\"N\"))","v":"-"},{"$f":"IF($B158=\"N\",\"\",IF(OR('Enrollment Form'!$B165<>\"Subscriber\",'Enrollment Form'!$C165=\"ROC\"),\"-\",IF(AND('Enrollment Form'!$B165=\"Subscriber\",'Enrollment Form'!$C165=\"Enroll\",'Enrollment Form'!$AJ165<>\"\"),\"Y\",\"N\")))","v":""},{"$f":"IF($B158=\"N\",\"\",IF(OR('Enrollment Form'!$B165<>\"Subscriber\",'Enrollment Form'!$C165=\"ROC\"),\"-\",IF(AND('Enrollment Form'!$B165=\"Subscriber\",'Enrollment Form'!$C165=\"Enroll\",'Enrollment Form'!$AK165<>\"\"),\"Y\",\"N\")))","v":""},{"$f":"IF($B158=\"N\",\"\",IF(OR('Enrollment Form'!$B165<>\"Subscriber\",'Enrollment Form'!$C165=\"ROC\"),\"-\",IF(AND('Enrollment Form'!$B165=\"Subscriber\",'Enrollment Form'!$C165=\"Enroll\",'Enrollment Form'!$AL165<>\"\"),\"Y\",\"N\")))","v":""},{"$f":"IF($B158=\"N\",\"\",IF(OR('Enrollment Form'!$B165<>\"Subscriber\",'Enrollment Form'!$C165=\"ROC\"),\"-\",IF(AND('Enrollment Form'!$B165=\"Subscriber\",'Enrollment Form'!$C165=\"Enroll\",'Enrollment Form'!$AP165<>\"\"),\"Y\",\"N\")))","v":""},{"$f":"IF($B158=\"N\",\"\",IF(OR('Enrollment Form'!$B165<>\"Subscriber\",'Enrollment Form'!$C165=\"ROC\"),\"-\",IF(AND('Enrollment Form'!$B165=\"Subscriber\",'Enrollment Form'!$C165=\"Enroll\",'Enrollment Form'!$AQ165<>\"\"),\"Y\",\"N\")))","v":""},{"$f":"IF($B158=\"N\",\"\",IF(OR('Enrollment Form'!$B165<>\"Subscriber\",'Enrollment Form'!$C165=\"ROC\"),\"-\",IF(AND('Enrollment Form'!$B165=\"Subscriber\",'Enrollment Form'!$C165=\"Enroll\",'Enrollment Form'!$AS165<>\"\"),\"Y\",\"N\")))","v":""},{"$f":"IF($B158=\"N\",\"\",IF($Q158=\"-\",\"-\",IF(AND($Q158=\"Y\",'Enrollment Form'!$AS165=\"No\"),\"-\",IF(AND($Q158=\"Y\",'Enrollment Form'!$AS165=\"Yes\",'Enrollment Form'!$AT165<>\"\"),\"Y\",\"N\"))))","v":""},{"$f":"IF($B158=\"N\",\"\",IF(OR('Enrollment Form'!$B165<>\"Subscriber\",'Enrollment Form'!$C165=\"ROC\"),\"-\",IF(AND('Enrollment Form'!$B165=\"Subscriber\",'Enrollment Form'!$C165=\"Enroll\",'Enrollment Form'!$CV165<>\"\"),\"Y\",\"N\")))","v":""},{"$f":"IF($B158=\"N\",\"\",IF($S158=\"-\",\"-\",IF(AND($S158=\"Y\",'Enrollment Form'!$CV165=\"No\"),\"-\",IF(AND($S158=\"Y\",'Enrollment Form'!$CV165=\"Yes\",'Enrollment Form'!$CW165<>\"\"),\"Y\",\"N\"))))","v":""},{"$f":"IF(OR('Enrollment Form'!$AY165=\"Yes\",'Enrollment Form'!$AY165=\"\"),\"-\",IF(OR(AND('Enrollment Form'!$AY165=\"No\",ISERROR(FIND(\"HMO\",VLOOKUP('Enrollment Form'!G165,'Enrollment Form'!H$11:J$1000,3,FALSE),1))=FALSE,COUNTA('Enrollment Form'!$AZ165:$BC165)=4),AND('Enrollment Form'!$AY165=\"No\",ISERROR(FIND(\"HMO\",VLOOKUP('Enrollment Form'!G165,'Enrollment Form'!H$11:J$1000,3,FALSE),1))=FALSE,COUNTA('Enrollment Form'!$BT165:$BW165)=4)),\"Y\",\"N\"))","v":"-"},{"$f":"IF($B158=\"N\",\"\",IF('Enrollment Form'!$B165=\"Subscriber\",\"-\",IF(COUNTA('Enrollment Form'!$BL165,'Enrollment Form'!$BN165)=2,\"Y\",\"N\")))","v":""},{"$f":"IF($B158=\"N\",\"\",IF(OR('Enrollment Form'!$AX165=\"\",'Enrollment Form'!$AX165=\"No\"),\"-\",IF(AND('Enrollment Form'!$AX165=\"Yes\",COUNTA('Enrollment Form'!$CR165)=1),\"Y\",\"N\")))","v":""},{"$f":"IF(OR('Enrollment Form'!$CR165=\"\",'Enrollment Form'!$CR165=\"No\"),\"-\",IF(COUNTA('Enrollment Form'!$CT165:$CU165)=2,\"Y\",\"N\"))","v":"-"},{"$f":"IF($B158=\"N\",\"\",IF(COUNTIF('Enrollment Form'!$DG165:$DP165,\"Other\")=COUNTA('Enrollment Form'!$DK165,'Enrollment Form'!$DH165,'Enrollment Form'!$DN165,'Enrollment Form'!$DQ165),\"Y\",\"N\"))","v":""},{"$f":"IF($B158=\"N\",\"\",IF(OR('Enrollment Form'!B165<>\"Subscriber\",'Enrollment Form'!C165=\"ROC\",COUNTIF('Enrollment Form'!AV165:AW165,\"Yes\")>=1),\"-\",IF(AND('Enrollment Form'!C165=\"Enroll\",COUNTIF('Enrollment Form'!AV165:AW165,\"No\")=2,'Enrollment Form'!AX165=\"\"),\"N\",\"Y\")))","v":""},{"$f":"IF(OR(B158=\"N\",'Enrollment Form'!B165<>\"Subscriber\",'Enrollment Form'!C165=\"ROC\",'Enrollment Form'!O165<>\"Multiple of Salary\"),\"-\",IF(COUNTA('Enrollment Form'!T165:U165)<2,\"N\",\"Y\"))","v":"-"},{"$f":"IF(B158=\"N\",\"\",IF(OR('Enrollment Form'!C165=\"ROC\",'Enrollment Form'!B165<>\"Subscriber\",'Enrollment Form'!O165=\"Waive\",'Enrollment Form'!O165=\"\"),\"-\",IF('Enrollment Form'!P165=\"\",\"N\",\"Y\")))","v":""},{"$f":"IF($B158=\"N\",\"\",IF(AND('Enrollment Form'!$C165=\"ROC\",'Enrollment Form'!$DR165<>\"\"),\"Y\",IF(AND('Enrollment Form'!$C165=\"ROC\",'Enrollment Form'!$DR165=\"\"),\"N\",IF(AND('Enrollment Form'!$C165=\"Enroll\",'Enrollment Form'!$B165=\"Subscriber\",'Enrollment Form'!$CX165=\"No\",'Enrollment Form'!$DR165=\"\"),\"N\",IF(AND('Enrollment Form'!$C165=\"Enroll\",'Enrollment Form'!$B165=\"Subscriber\",'Enrollment Form'!$CX165=\"Yes\"),\"-\",\"Y\")))))","v":""},{"$f":"IF($B158=\"N\",\"\",IF(AND('Enrollment Form'!$C165=\"ROC\",'Enrollment Form'!$DS165<>\"\"),\"Y\",IF(AND('Enrollment Form'!$C165=\"ROC\",'Enrollment Form'!$DS165=\"\"),\"N\",IF(AND('Enrollment Form'!$C165=\"Enroll\",'Enrollment Form'!$B165=\"Subscriber\",'Enrollment Form'!$CX165=\"No\",'Enrollment Form'!$DS165=\"\"),\"N\",IF(AND('Enrollment Form'!$C165=\"Enroll\",'Enrollment Form'!$B165=\"Subscriber\",'Enrollment Form'!$CX165=\"Yes\"),\"-\",\"Y\")))))","v":""},{"$f":"IF('Enrollment Form'!AH165=\"\",\"\",IF(ISERROR(SEARCH(\".\",'Enrollment Form'!AH165,SEARCH(\"@\",'Enrollment Form'!AH165))),\"N\",\"Y\"))","v":""},{"$f":"IF(OR($B158=\"N\",'Enrollment Form'!$G165=\"\"),\"\",IF('Enrollment Form'!$B165<>\"Subscriber\",\"-\",IF(COUNTIF('Enrollment Form'!$AV165:$AW165,\"Yes\")=2,\"N\",\"Y\")))","v":""},{"$f":"IF(OR('Enrollment Form'!$CJ165=\"\",'Enrollment Form'!$CJ165=\"No\"),\"-\",IF(AND('Enrollment Form'!$CJ165=\"Yes\",'Enrollment Form'!$CK165=\"\"),\"N\",\"Y\"))","v":"-"},{"$f":"IF(OR('Enrollment Form'!$CL165=\"\",'Enrollment Form'!$CL165=\"No\"),\"-\",IF(AND('Enrollment Form'!$CL165=\"Yes\",'Enrollment Form'!$CM165=\"\"),\"N\",\"Y\"))","v":"-"},{"$f":"IF(OR('Enrollment Form'!$CN165=\"\",'Enrollment Form'!$CN165=\"No\"),\"-\",IF(AND('Enrollment Form'!$CN165=\"Yes\",'Enrollment Form'!$CO165=\"\"),\"N\",\"Y\"))","v":"-"},{"$f":"IF(OR('Enrollment Form'!$CN165=\"\",'Enrollment Form'!$CN165=\"No\"),\"-\",IF(AND('Enrollment Form'!$CN165=\"Yes\",'Enrollment Form'!$CP165=\"\"),\"N\",\"Y\"))","v":"-"},{"$f":"IF('Enrollment Form'!B165<>\"Subscriber\",\"-\",IF(AND('Enrollment Form'!B165=\"Subscriber\",'Enrollment Form'!C165=\"Enroll\",'Enrollment Form'!AA165=\"\"),\"N\",\"Y\"))","v":"-"},{"$f":"IF(OR('Enrollment Form'!B165=\"Subscriber\",'Enrollment Form'!B165=\"\"),\"-\",IF('Enrollment Form'!BP165=\"\",\"N\",\"Y\"))","v":"-"},{"$f":"IF('Enrollment Form'!B165<>\"Subscriber\",\"-\",IF(AND('Enrollment Form'!B165=\"Subscriber\",'Enrollment Form'!G165=\"\"),\"N\",\"Y\"))","v":"-"},{"$f":"IF('Enrollment Form'!A165=\"\",\"\",IF('Enrollment Form'!B165=\"Subscriber\",\"-\",IF(AND('Enrollment Form'!B165<>\"Subscriber\",'Enrollment Form'!G165='Enrollment Form'!H165),\"N\",\"Y\")))","v":""},0]
[166,{"$f":"IF('Enrollment Form'!$A166<>\"\",\"Y\",\"N\")","v":"N"},{"$f":"IF(AND('Enrollment Form'!$B166=\"\",'Enrollment Form'!$C166<>\"\"),\"N\",IF($B159=\"N\",\"\",\"Y\"))","v":""},{"$f":"IF(OR($B159=\"N\",'Enrollment Form'!G166=\"\"),\"\",IF('Enrollment Form'!$B166<>\"Subscriber\",\"\",IF('Enrollment Form'!$G166='Enrollment Form'!$H166,\"Y\",\"N\")))","v":""},{"$f":"IF($B159=\"N\",\"\",IF(AND(COUNTIFS('Enrollment Form'!$H$11:$H$1000,'Enrollment Form'!$H166,'Enrollment Form'!$B$11:$B$1000,'Enrollment Form'!$B166)>1,'Enrollment Form'!$H166<>\"\"),\"N\",\"Y\"))","v":""},{"$f":"IF($B159=\"N\",\"\",IF(LEN('Enrollment Form'!$Y166)=0,\"\",IF(LEN('Enrollment Form'!$Y166)<>5,\"N\",\"Y\")))","v":""},{"$f":"IF($B159=\"N\",\"\",IF(LEN('Enrollment Form'!$AD166=0),\"\",IF(LEN('Enrollment Form'!$AD166)<>5,\"N\",\"Y\")))","v":""},{"$f":"IF($B159=\"N\",\"\",IF(LEN('Enrollment Form'!$BS166=0),\"\",IF(LEN('Enrollment Form'!$BS166)<>5,\"N\",\"Y\")))","v":""},{"$f":"IF($B159=\"N\",\"\",IF(LEN('Enrollment Form'!$AE166)=0,\"\",IF(LEN('Enrollment Form'!$AE166)<>10,\"N\",\"Y\")))","v":""},{"$f":"IF($B159=\"N\",\"\",IF(LEN('Enrollment Form'!$AF166)=0,\"\",IF(LEN('Enrollment Form'!$AF166)<>10,\"N\",\"Y\")))","v":""},{"$f":"IF('Enrollment Form'!$O166<>\"Graded\",\"-\",IF(AND('Enrollment Form'!$O166=\"Graded\",'Enrollment Form'!$AR166<>\"\"),\"Y\",\"N\"))","v":"-"},{"$f":"IF($B159=\"N\",\"\",IF(OR('Enrollment Form'!$B166<>\"Subscriber\",'Enrollment Form'!$C166=\"ROC\"),\"-\",IF(AND('Enrollment Form'!$B166=\"Subscriber\",'Enrollment Form'!$C166=\"Enroll\",'Enrollment Form'!$AJ166<>\"\"),\"Y\",\"N\")))","v":""},{"$f":"IF($B159=\"N\",\"\",IF(OR('Enrollment Form'!$B166<>\"Subscriber\",'Enrollment Form'!$C166=\"ROC\"),\"-\",IF(AND('Enrollment Form'!$B166=\"Subscriber\",'Enrollment Form'!$C166=\"Enroll\",'Enrollment Form'!$AK166<>\"\"),\"Y\",\"N\")))","v":""},{"$f":"IF($B159=\"N\",\"\",IF(OR('Enrollment Form'!$B166<>\"Subscriber\",'Enrollment Form'!$C166=\"ROC\"),\"-\",IF(AND('Enrollment Form'!$B166=\"Subscriber\",'Enrollment Form'!$C166=\"Enroll\",'Enrollment Form'!$AL166<>\"\"),\"Y\",\"N\")))","v":""},{"$f":"IF($B159=\"N\",\"\",IF(OR('Enrollment Form'!$B166<>\"Subscriber\",'Enrollment Form'!$C166=\"ROC\"),\"-\",IF(AND('Enrollment Form'!$B166=\"Subscriber\",'Enrollment Form'!$C166=\"Enroll\",'Enrollment Form'!$AP166<>\"\"),\"Y\",\"N\")))","v":""},{"$f":"IF($B159=\"N\",\"\",IF(OR('Enrollment Form'!$B166<>\"Subscriber\",'Enrollment Form'!$C166=\"ROC\"),\"-\",IF(AND('Enrollment Form'!$B166=\"Subscriber\",'Enrollment Form'!$C166=\"Enroll\",'Enrollment Form'!$AQ166<>\"\"),\"Y\",\"N\")))","v":""},{"$f":"IF($B159=\"N\",\"\",IF(OR('Enrollment Form'!$B166<>\"Subscriber\",'Enrollment Form'!$C166=\"ROC\"),\"-\",IF(AND('Enrollment Form'!$B166=\"Subscriber\",'Enrollment Form'!$C166=\"Enroll\",'Enrollment Form'!$AS166<>\"\"),\"Y\",\"N\")))","v":""},{"$f":"IF($B159=\"N\",\"\",IF($Q159=\"-\",\"-\",IF(AND($Q159=\"Y\",'Enrollment Form'!$AS166=\"No\"),\"-\",IF(AND($Q159=\"Y\",'Enrollment Form'!$AS166=\"Yes\",'Enrollment Form'!$AT166<>\"\"),\"Y\",\"N\"))))","v":""},{"$f":"IF($B159=\"N\",\"\",IF(OR('Enrollment Form'!$B166<>\"Subscriber\",'Enrollment Form'!$C166=\"ROC\"),\"-\",IF(AND('Enrollment Form'!$B166=\"Subscriber\",'Enrollment Form'!$C166=\"Enroll\",'Enrollment Form'!$CV166<>\"\"),\"Y\",\"N\")))","v":""},{"$f":"IF($B159=\"N\",\"\",IF($S159=\"-\",\"-\",IF(AND($S159=\"Y\",'Enrollment Form'!$CV166=\"No\"),\"-\",IF(AND($S159=\"Y\",'Enrollment Form'!$CV166=\"Yes\",'Enrollment Form'!$CW166<>\"\"),\"Y\",\"N\"))))","v":""},{"$f":"IF(OR('Enrollment Form'!$AY166=\"Yes\",'Enrollment Form'!$AY166=\"\"),\"-\",IF(OR(AND('Enrollment Form'!$AY166=\"No\",ISERROR(FIND(\"HMO\",VLOOKUP('Enrollment Form'!G166,'Enrollment Form'!H$11:J$1000,3,FALSE),1))=FALSE,COUNTA('Enrollment Form'!$AZ166:$BC166)=4),AND('Enrollment Form'!$AY166=\"No\",ISERROR(FIND(\"HMO\",VLOOKUP('Enrollment Form'!G166,'Enrollment Form'!H$11:J$1000,3,FALSE),1))=FALSE,COUNTA('Enrollment Form'!$BT166:$BW166)=4)),\"Y\",\"N\"))","v":"-"},{"$f":"IF($B159=\"N\",\"\",IF('Enrollment Form'!$B166=\"Subscriber\",\"-\",IF(COUNTA('Enrollment Form'!$BL166,'Enrollment Form'!$BN166)=2,\"Y\",\"N\")))","v":""},{"$f":"IF($B159=\"N\",\"\",IF(OR('Enrollment Form'!$AX166=\"\",'Enrollment Form'!$AX166=\"No\"),\"-\",IF(AND('Enrollment Form'!$AX166=\"Yes\",COUNTA('Enrollment Form'!$CR166)=1),\"Y\",\"N\")))","v":""},{"$f":"IF(OR('Enrollment Form'!$CR166=\"\",'Enrollment Form'!$CR166=\"No\"),\"-\",IF(COUNTA('Enrollment Form'!$CT166:$CU166)=2,\"Y\",\"N\"))","v":"-"},{"$f":"IF($B159=\"N\",\"\",IF(COUNTIF('Enrollment Form'!$DG166:$DP166,\"Other\")=COUNTA('Enrollment Form'!$DK166,'Enrollment Form'!$DH166,'Enrollment Form'!$DN166,'Enrollment Form'!$DQ166),\"Y\",\"N\"))","v":""},{"$f":"IF($B159=\"N\",\"\",IF(OR('Enrollment Form'!B166<>\"Subscriber\",'Enrollment Form'!C166=\"ROC\",COUNTIF('Enrollment Form'!AV166:AW166,\"Yes\")>=1),\"-\",IF(AND('Enrollment Form'!C166=\"Enroll\",COUNTIF('Enrollment Form'!AV166:AW166,\"No\")=2,'Enrollment Form'!AX166=\"\"),\"N\",\"Y\")))","v":""},{"$f":"IF(OR(B159=\"N\",'Enrollment Form'!B166<>\"Subscriber\",'Enrollment Form'!C166=\"ROC\",'Enrollment Form'!O166<>\"Multiple of Salary\"),\"-\",IF(COUNTA('Enrollment Form'!T166:U166)<2,\"N\",\"Y\"))","v":"-"},{"$f":"IF(B159=\"N\",\"\",IF(OR('Enrollment Form'!C166=\"ROC\",'Enrollment Form'!B166<>\"Subscriber\",'Enrollment Form'!O166=\"Waive\",'Enrollment Form'!O166=\"\"),\"-\",IF('Enrollment Form'!P166=\"\",\"N\",\"Y\")))","v":""},{"$f":"IF($B159=\"N\",\"\",IF(AND('Enrollment Form'!$C166=\"ROC\",'Enrollment Form'!$DR166<>\"\"),\"Y\",IF(AND('Enrollment Form'!$C166=\"ROC\",'Enrollment Form'!$DR166=\"\"),\"N\",IF(AND('Enrollment Form'!$C166=\"Enroll\",'Enrollment Form'!$B166=\"Subscriber\",'Enrollment Form'!$CX166=\"No\",'Enrollment Form'!$DR166=\"\"),\"N\",IF(AND('Enrollment Form'!$C166=\"Enroll\",'Enrollment Form'!$B166=\"Subscriber\",'Enrollment Form'!$CX166=\"Yes\"),\"-\",\"Y\")))))","v":""},{"$f":"IF($B159=\"N\",\"\",IF(AND('Enrollment Form'!$C166=\"ROC\",'Enrollment Form'!$DS166<>\"\"),\"Y\",IF(AND('Enrollment Form'!$C166=\"ROC\",'Enrollment Form'!$DS166=\"\"),\"N\",IF(AND('Enrollment Form'!$C166=\"Enroll\",'Enrollment Form'!$B166=\"Subscriber\",'Enrollment Form'!$CX166=\"No\",'Enrollment Form'!$DS166=\"\"),\"N\",IF(AND('Enrollment Form'!$C166=\"Enroll\",'Enrollment Form'!$B166=\"Subscriber\",'Enrollment Form'!$CX166=\"Yes\"),\"-\",\"Y\")))))","v":""},{"$f":"IF('Enrollment Form'!AH166=\"\",\"\",IF(ISERROR(SEARCH(\".\",'Enrollment Form'!AH166,SEARCH(\"@\",'Enrollment Form'!AH166))),\"N\",\"Y\"))","v":""},{"$f":"IF(OR($B159=\"N\",'Enrollment Form'!$G166=\"\"),\"\",IF('Enrollment Form'!$B166<>\"Subscriber\",\"-\",IF(COUNTIF('Enrollment Form'!$AV166:$AW166,\"Yes\")=2,\"N\",\"Y\")))","v":""},{"$f":"IF(OR('Enrollment Form'!$CJ166=\"\",'Enrollment Form'!$CJ166=\"No\"),\"-\",IF(AND('Enrollment Form'!$CJ166=\"Yes\",'Enrollment Form'!$CK166=\"\"),\"N\",\"Y\"))","v":"-"},{"$f":"IF(OR('Enrollment Form'!$CL166=\"\",'Enrollment Form'!$CL166=\"No\"),\"-\",IF(AND('Enrollment Form'!$CL166=\"Yes\",'Enrollment Form'!$CM166=\"\"),\"N\",\"Y\"))","v":"-"},{"$f":"IF(OR('Enrollment Form'!$CN166=\"\",'Enrollment Form'!$CN166=\"No\"),\"-\",IF(AND('Enrollment Form'!$CN166=\"Yes\",'Enrollment Form'!$CO166=\"\"),\"N\",\"Y\"))","v":"-"},{"$f":"IF(OR('Enrollment Form'!$CN166=\"\",'Enrollment Form'!$CN166=\"No\"),\"-\",IF(AND('Enrollment Form'!$CN166=\"Yes\",'Enrollment Form'!$CP166=\"\"),\"N\",\"Y\"))","v":"-"},{"$f":"IF('Enrollment Form'!B166<>\"Subscriber\",\"-\",IF(AND('Enrollment Form'!B166=\"Subscriber\",'Enrollment Form'!C166=\"Enroll\",'Enrollment Form'!AA166=\"\"),\"N\",\"Y\"))","v":"-"},{"$f":"IF(OR('Enrollment Form'!B166=\"Subscriber\",'Enrollment Form'!B166=\"\"),\"-\",IF('Enrollment Form'!BP166=\"\",\"N\",\"Y\"))","v":"-"},{"$f":"IF('Enrollment Form'!B166<>\"Subscriber\",\"-\",IF(AND('Enrollment Form'!B166=\"Subscriber\",'Enrollment Form'!G166=\"\"),\"N\",\"Y\"))","v":"-"},{"$f":"IF('Enrollment Form'!A166=\"\",\"\",IF('Enrollment Form'!B166=\"Subscriber\",\"-\",IF(AND('Enrollment Form'!B166<>\"Subscriber\",'Enrollment Form'!G166='Enrollment Form'!H166),\"N\",\"Y\")))","v":""},0]
[167,{"$f":"IF('Enrollment Form'!$A167<>\"\",\"Y\",\"N\")","v":"N"},{"$f":"IF(AND('Enrollment Form'!$B167=\"\",'Enrollment Form'!$C167<>\"\"),\"N\",IF($B160=\"N\",\"\",\"Y\"))","v":""},{"$f":"IF(OR($B160=\"N\",'Enrollment Form'!G167=\"\"),\"\",IF('Enrollment Form'!$B167<>\"Subscriber\",\"\",IF('Enrollment Form'!$G167='Enrollment Form'!$H167,\"Y\",\"N\")))","v":""},{"$f":"IF($B160=\"N\",\"\",IF(AND(COUNTIFS('Enrollment Form'!$H$11:$H$1000,'Enrollment Form'!$H167,'Enrollment Form'!$B$11:$B$1000,'Enrollment Form'!$B167)>1,'Enrollment Form'!$H167<>\"\"),\"N\",\"Y\"))","v":""},{"$f":"IF($B160=\"N\",\"\",IF(LEN('Enrollment Form'!$Y167)=0,\"\",IF(LEN('Enrollment Form'!$Y167)<>5,\"N\",\"Y\")))","v":""},{"$f":"IF($B160=\"N\",\"\",IF(LEN('Enrollment Form'!$AD167=0),\"\",IF(LEN('Enrollment Form'!$AD167)<>5,\"N\",\"Y\")))","v":""},{"$f":"IF($B160=\"N\",\"\",IF(LEN('Enrollment Form'!$BS167=0),\"\",IF(LEN('Enrollment Form'!$BS167)<>5,\"N\",\"Y\")))","v":""},{"$f":"IF($B160=\"N\",\"\",IF(LEN('Enrollment Form'!$AE167)=0,\"\",IF(LEN('Enrollment Form'!$AE167)<>10,\"N\",\"Y\")))","v":""},{"$f":"IF($B160=\"N\",\"\",IF(LEN('Enrollment Form'!$AF167)=0,\"\",IF(LEN('Enrollment Form'!$AF167)<>10,\"N\",\"Y\")))","v":""},{"$f":"IF('Enrollment Form'!$O167<>\"Graded\",\"-\",IF(AND('Enrollment Form'!$O167=\"Graded\",'Enrollment Form'!$AR167<>\"\"),\"Y\",\"N\"))","v":"-"},{"$f":"IF($B160=\"N\",\"\",IF(OR('Enrollment Form'!$B167<>\"Subscriber\",'Enrollment Form'!$C167=\"ROC\"),\"-\",IF(AND('Enrollment Form'!$B167=\"Subscriber\",'Enrollment Form'!$C167=\"Enroll\",'Enrollment Form'!$AJ167<>\"\"),\"Y\",\"N\")))","v":""},{"$f":"IF($B160=\"N\",\"\",IF(OR('Enrollment Form'!$B167<>\"Subscriber\",'Enrollment Form'!$C167=\"ROC\"),\"-\",IF(AND('Enrollment Form'!$B167=\"Subscriber\",'Enrollment Form'!$C167=\"Enroll\",'Enrollment Form'!$AK167<>\"\"),\"Y\",\"N\")))","v":""},{"$f":"IF($B160=\"N\",\"\",IF(OR('Enrollment Form'!$B167<>\"Subscriber\",'Enrollment Form'!$C167=\"ROC\"),\"-\",IF(AND('Enrollment Form'!$B167=\"Subscriber\",'Enrollment Form'!$C167=\"Enroll\",'Enrollment Form'!$AL167<>\"\"),\"Y\",\"N\")))","v":""},{"$f":"IF($B160=\"N\",\"\",IF(OR('Enrollment Form'!$B167<>\"Subscriber\",'Enrollment Form'!$C167=\"ROC\"),\"-\",IF(AND('Enrollment Form'!$B167=\"Subscriber\",'Enrollment Form'!$C167=\"Enroll\",'Enrollment Form'!$AP167<>\"\"),\"Y\",\"N\")))","v":""},{"$f":"IF($B160=\"N\",\"\",IF(OR('Enrollment Form'!$B167<>\"Subscriber\",'Enrollment Form'!$C167=\"ROC\"),\"-\",IF(AND('Enrollment Form'!$B167=\"Subscriber\",'Enrollment Form'!$C167=\"Enroll\",'Enrollment Form'!$AQ167<>\"\"),\"Y\",\"N\")))","v":""},{"$f":"IF($B160=\"N\",\"\",IF(OR('Enrollment Form'!$B167<>\"Subscriber\",'Enrollment Form'!$C167=\"ROC\"),\"-\",IF(AND('Enrollment Form'!$B167=\"Subscriber\",'Enrollment Form'!$C167=\"Enroll\",'Enrollment Form'!$AS167<>\"\"),\"Y\",\"N\")))","v":""},{"$f":"IF($B160=\"N\",\"\",IF($Q160=\"-\",\"-\",IF(AND($Q160=\"Y\",'Enrollment Form'!$AS167=\"No\"),\"-\",IF(AND($Q160=\"Y\",'Enrollment Form'!$AS167=\"Yes\",'Enrollment Form'!$AT167<>\"\"),\"Y\",\"N\"))))","v":""},{"$f":"IF($B160=\"N\",\"\",IF(OR('Enrollment Form'!$B167<>\"Subscriber\",'Enrollment Form'!$C167=\"ROC\"),\"-\",IF(AND('Enrollment Form'!$B167=\"Subscriber\",'Enrollment Form'!$C167=\"Enroll\",'Enrollment Form'!$CV167<>\"\"),\"Y\",\"N\")))","v":""},{"$f":"IF($B160=\"N\",\"\",IF($S160=\"-\",\"-\",IF(AND($S160=\"Y\",'Enrollment Form'!$CV167=\"No\"),\"-\",IF(AND($S160=\"Y\",'Enrollment Form'!$CV167=\"Yes\",'Enrollment Form'!$CW167<>\"\"),\"Y\",\"N\"))))","v":""},{"$f":"IF(OR('Enrollment Form'!$AY167=\"Yes\",'Enrollment Form'!$AY167=\"\"),\"-\",IF(OR(AND('Enrollment Form'!$AY167=\"No\",ISERROR(FIND(\"HMO\",VLOOKUP('Enrollment Form'!G167,'Enrollment Form'!H$11:J$1000,3,FALSE),1))=FALSE,COUNTA('Enrollment Form'!$AZ167:$BC167)=4),AND('Enrollment Form'!$AY167=\"No\",ISERROR(FIND(\"HMO\",VLOOKUP('Enrollment Form'!G167,'Enrollment Form'!H$11:J$1000,3,FALSE),1))=FALSE,COUNTA('Enrollment Form'!$BT167:$BW167)=4)),\"Y\",\"N\"))","v":"-"},{"$f":"IF($B160=\"N\",\"\",IF('Enrollment Form'!$B167=\"Subscriber\",\"-\",IF(COUNTA('Enrollment Form'!$BL167,'Enrollment Form'!$BN167)=2,\"Y\",\"N\")))","v":""},{"$f":"IF($B160=\"N\",\"\",IF(OR('Enrollment Form'!$AX167=\"\",'Enrollment Form'!$AX167=\"No\"),\"-\",IF(AND('Enrollment Form'!$AX167=\"Yes\",COUNTA('Enrollment Form'!$CR167)=1),\"Y\",\"N\")))","v":""},{"$f":"IF(OR('Enrollment Form'!$CR167=\"\",'Enrollment Form'!$CR167=\"No\"),\"-\",IF(COUNTA('Enrollment Form'!$CT167:$CU167)=2,\"Y\",\"N\"))","v":"-"},{"$f":"IF($B160=\"N\",\"\",IF(COUNTIF('Enrollment Form'!$DG167:$DP167,\"Other\")=COUNTA('Enrollment Form'!$DK167,'Enrollment Form'!$DH167,'Enrollment Form'!$DN167,'Enrollment Form'!$DQ167),\"Y\",\"N\"))","v":""},{"$f":"IF($B160=\"N\",\"\",IF(OR('Enrollment Form'!B167<>\"Subscriber\",'Enrollment Form'!C167=\"ROC\",COUNTIF('Enrollment Form'!AV167:AW167,\"Yes\")>=1),\"-\",IF(AND('Enrollment Form'!C167=\"Enroll\",COUNTIF('Enrollment Form'!AV167:AW167,\"No\")=2,'Enrollment Form'!AX167=\"\"),\"N\",\"Y\")))","v":""},{"$f":"IF(OR(B160=\"N\",'Enrollment Form'!B167<>\"Subscriber\",'Enrollment Form'!C167=\"ROC\",'Enrollment Form'!O167<>\"Multiple of Salary\"),\"-\",IF(COUNTA('Enrollment Form'!T167:U167)<2,\"N\",\"Y\"))","v":"-"},{"$f":"IF(B160=\"N\",\"\",IF(OR('Enrollment Form'!C167=\"ROC\",'Enrollment Form'!B167<>\"Subscriber\",'Enrollment Form'!O167=\"Waive\",'Enrollment Form'!O167=\"\"),\"-\",IF('Enrollment Form'!P167=\"\",\"N\",\"Y\")))","v":""},{"$f":"IF($B160=\"N\",\"\",IF(AND('Enrollment Form'!$C167=\"ROC\",'Enrollment Form'!$DR167<>\"\"),\"Y\",IF(AND('Enrollment Form'!$C167=\"ROC\",'Enrollment Form'!$DR167=\"\"),\"N\",IF(AND('Enrollment Form'!$C167=\"Enroll\",'Enrollment Form'!$B167=\"Subscriber\",'Enrollment Form'!$CX167=\"No\",'Enrollment Form'!$DR167=\"\"),\"N\",IF(AND('Enrollment Form'!$C167=\"Enroll\",'Enrollment Form'!$B167=\"Subscriber\",'Enrollment Form'!$CX167=\"Yes\"),\"-\",\"Y\")))))","v":""},{"$f":"IF($B160=\"N\",\"\",IF(AND('Enrollment Form'!$C167=\"ROC\",'Enrollment Form'!$DS167<>\"\"),\"Y\",IF(AND('Enrollment Form'!$C167=\"ROC\",'Enrollment Form'!$DS167=\"\"),\"N\",IF(AND('Enrollment Form'!$C167=\"Enroll\",'Enrollment Form'!$B167=\"Subscriber\",'Enrollment Form'!$CX167=\"No\",'Enrollment Form'!$DS167=\"\"),\"N\",IF(AND('Enrollment Form'!$C167=\"Enroll\",'Enrollment Form'!$B167=\"Subscriber\",'Enrollment Form'!$CX167=\"Yes\"),\"-\",\"Y\")))))","v":""},{"$f":"IF('Enrollment Form'!AH167=\"\",\"\",IF(ISERROR(SEARCH(\".\",'Enrollment Form'!AH167,SEARCH(\"@\",'Enrollment Form'!AH167))),\"N\",\"Y\"))","v":""},{"$f":"IF(OR($B160=\"N\",'Enrollment Form'!$G167=\"\"),\"\",IF('Enrollment Form'!$B167<>\"Subscriber\",\"-\",IF(COUNTIF('Enrollment Form'!$AV167:$AW167,\"Yes\")=2,\"N\",\"Y\")))","v":""},{"$f":"IF(OR('Enrollment Form'!$CJ167=\"\",'Enrollment Form'!$CJ167=\"No\"),\"-\",IF(AND('Enrollment Form'!$CJ167=\"Yes\",'Enrollment Form'!$CK167=\"\"),\"N\",\"Y\"))","v":"-"},{"$f":"IF(OR('Enrollment Form'!$CL167=\"\",'Enrollment Form'!$CL167=\"No\"),\"-\",IF(AND('Enrollment Form'!$CL167=\"Yes\",'Enrollment Form'!$CM167=\"\"),\"N\",\"Y\"))","v":"-"},{"$f":"IF(OR('Enrollment Form'!$CN167=\"\",'Enrollment Form'!$CN167=\"No\"),\"-\",IF(AND('Enrollment Form'!$CN167=\"Yes\",'Enrollment Form'!$CO167=\"\"),\"N\",\"Y\"))","v":"-"},{"$f":"IF(OR('Enrollment Form'!$CN167=\"\",'Enrollment Form'!$CN167=\"No\"),\"-\",IF(AND('Enrollment Form'!$CN167=\"Yes\",'Enrollment Form'!$CP167=\"\"),\"N\",\"Y\"))","v":"-"},{"$f":"IF('Enrollment Form'!B167<>\"Subscriber\",\"-\",IF(AND('Enrollment Form'!B167=\"Subscriber\",'Enrollment Form'!C167=\"Enroll\",'Enrollment Form'!AA167=\"\"),\"N\",\"Y\"))","v":"-"},{"$f":"IF(OR('Enrollment Form'!B167=\"Subscriber\",'Enrollment Form'!B167=\"\"),\"-\",IF('Enrollment Form'!BP167=\"\",\"N\",\"Y\"))","v":"-"},{"$f":"IF('Enrollment Form'!B167<>\"Subscriber\",\"-\",IF(AND('Enrollment Form'!B167=\"Subscriber\",'Enrollment Form'!G167=\"\"),\"N\",\"Y\"))","v":"-"},{"$f":"IF('Enrollment Form'!A167=\"\",\"\",IF('Enrollment Form'!B167=\"Subscriber\",\"-\",IF(AND('Enrollment Form'!B167<>\"Subscriber\",'Enrollment Form'!G167='Enrollment Form'!H167),\"N\",\"Y\")))","v":""},0]
[168,{"$f":"IF('Enrollment Form'!$A168<>\"\",\"Y\",\"N\")","v":"N"},{"$f":"IF(AND('Enrollment Form'!$B168=\"\",'Enrollment Form'!$C168<>\"\"),\"N\",IF($B161=\"N\",\"\",\"Y\"))","v":""},{"$f":"IF(OR($B161=\"N\",'Enrollment Form'!G168=\"\"),\"\",IF('Enrollment Form'!$B168<>\"Subscriber\",\"\",IF('Enrollment Form'!$G168='Enrollment Form'!$H168,\"Y\",\"N\")))","v":""},{"$f":"IF($B161=\"N\",\"\",IF(AND(COUNTIFS('Enrollment Form'!$H$11:$H$1000,'Enrollment Form'!$H168,'Enrollment Form'!$B$11:$B$1000,'Enrollment Form'!$B168)>1,'Enrollment Form'!$H168<>\"\"),\"N\",\"Y\"))","v":""},{"$f":"IF($B161=\"N\",\"\",IF(LEN('Enrollment Form'!$Y168)=0,\"\",IF(LEN('Enrollment Form'!$Y168)<>5,\"N\",\"Y\")))","v":""},{"$f":"IF($B161=\"N\",\"\",IF(LEN('Enrollment Form'!$AD168=0),\"\",IF(LEN('Enrollment Form'!$AD168)<>5,\"N\",\"Y\")))","v":""},{"$f":"IF($B161=\"N\",\"\",IF(LEN('Enrollment Form'!$BS168=0),\"\",IF(LEN('Enrollment Form'!$BS168)<>5,\"N\",\"Y\")))","v":""},{"$f":"IF($B161=\"N\",\"\",IF(LEN('Enrollment Form'!$AE168)=0,\"\",IF(LEN('Enrollment Form'!$AE168)<>10,\"N\",\"Y\")))","v":""},{"$f":"IF($B161=\"N\",\"\",IF(LEN('Enrollment Form'!$AF168)=0,\"\",IF(LEN('Enrollment Form'!$AF168)<>10,\"N\",\"Y\")))","v":""},{"$f":"IF('Enrollment Form'!$O168<>\"Graded\",\"-\",IF(AND('Enrollment Form'!$O168=\"Graded\",'Enrollment Form'!$AR168<>\"\"),\"Y\",\"N\"))","v":"-"},{"$f":"IF($B161=\"N\",\"\",IF(OR('Enrollment Form'!$B168<>\"Subscriber\",'Enrollment Form'!$C168=\"ROC\"),\"-\",IF(AND('Enrollment Form'!$B168=\"Subscriber\",'Enrollment Form'!$C168=\"Enroll\",'Enrollment Form'!$AJ168<>\"\"),\"Y\",\"N\")))","v":""},{"$f":"IF($B161=\"N\",\"\",IF(OR('Enrollment Form'!$B168<>\"Subscriber\",'Enrollment Form'!$C168=\"ROC\"),\"-\",IF(AND('Enrollment Form'!$B168=\"Subscriber\",'Enrollment Form'!$C168=\"Enroll\",'Enrollment Form'!$AK168<>\"\"),\"Y\",\"N\")))","v":""},{"$f":"IF($B161=\"N\",\"\",IF(OR('Enrollment Form'!$B168<>\"Subscriber\",'Enrollment Form'!$C168=\"ROC\"),\"-\",IF(AND('Enrollment Form'!$B168=\"Subscriber\",'Enrollment Form'!$C168=\"Enroll\",'Enrollment Form'!$AL168<>\"\"),\"Y\",\"N\")))","v":""},{"$f":"IF($B161=\"N\",\"\",IF(OR('Enrollment Form'!$B168<>\"Subscriber\",'Enrollment Form'!$C168=\"ROC\"),\"-\",IF(AND('Enrollment Form'!$B168=\"Subscriber\",'Enrollment Form'!$C168=\"Enroll\",'Enrollment Form'!$AP168<>\"\"),\"Y\",\"N\")))","v":""},{"$f":"IF($B161=\"N\",\"\",IF(OR('Enrollment Form'!$B168<>\"Subscriber\",'Enrollment Form'!$C168=\"ROC\"),\"-\",IF(AND('Enrollment Form'!$B168=\"Subscriber\",'Enrollment Form'!$C168=\"Enroll\",'Enrollment Form'!$AQ168<>\"\"),\"Y\",\"N\")))","v":""},{"$f":"IF($B161=\"N\",\"\",IF(OR('Enrollment Form'!$B168<>\"Subscriber\",'Enrollment Form'!$C168=\"ROC\"),\"-\",IF(AND('Enrollment Form'!$B168=\"Subscriber\",'Enrollment Form'!$C168=\"Enroll\",'Enrollment Form'!$AS168<>\"\"),\"Y\",\"N\")))","v":""},{"$f":"IF($B161=\"N\",\"\",IF($Q161=\"-\",\"-\",IF(AND($Q161=\"Y\",'Enrollment Form'!$AS168=\"No\"),\"-\",IF(AND($Q161=\"Y\",'Enrollment Form'!$AS168=\"Yes\",'Enrollment Form'!$AT168<>\"\"),\"Y\",\"N\"))))","v":""},{"$f":"IF($B161=\"N\",\"\",IF(OR('Enrollment Form'!$B168<>\"Subscriber\",'Enrollment Form'!$C168=\"ROC\"),\"-\",IF(AND('Enrollment Form'!$B168=\"Subscriber\",'Enrollment Form'!$C168=\"Enroll\",'Enrollment Form'!$CV168<>\"\"),\"Y\",\"N\")))","v":""},{"$f":"IF($B161=\"N\",\"\",IF($S161=\"-\",\"-\",IF(AND($S161=\"Y\",'Enrollment Form'!$CV168=\"No\"),\"-\",IF(AND($S161=\"Y\",'Enrollment Form'!$CV168=\"Yes\",'Enrollment Form'!$CW168<>\"\"),\"Y\",\"N\"))))","v":""},{"$f":"IF(OR('Enrollment Form'!$AY168=\"Yes\",'Enrollment Form'!$AY168=\"\"),\"-\",IF(OR(AND('Enrollment Form'!$AY168=\"No\",ISERROR(FIND(\"HMO\",VLOOKUP('Enrollment Form'!G168,'Enrollment Form'!H$11:J$1000,3,FALSE),1))=FALSE,COUNTA('Enrollment Form'!$AZ168:$BC168)=4),AND('Enrollment Form'!$AY168=\"No\",ISERROR(FIND(\"HMO\",VLOOKUP('Enrollment Form'!G168,'Enrollment Form'!H$11:J$1000,3,FALSE),1))=FALSE,COUNTA('Enrollment Form'!$BT168:$BW168)=4)),\"Y\",\"N\"))","v":"-"},{"$f":"IF($B161=\"N\",\"\",IF('Enrollment Form'!$B168=\"Subscriber\",\"-\",IF(COUNTA('Enrollment Form'!$BL168,'Enrollment Form'!$BN168)=2,\"Y\",\"N\")))","v":""},{"$f":"IF($B161=\"N\",\"\",IF(OR('Enrollment Form'!$AX168=\"\",'Enrollment Form'!$AX168=\"No\"),\"-\",IF(AND('Enrollment Form'!$AX168=\"Yes\",COUNTA('Enrollment Form'!$CR168)=1),\"Y\",\"N\")))","v":""},{"$f":"IF(OR('Enrollment Form'!$CR168=\"\",'Enrollment Form'!$CR168=\"No\"),\"-\",IF(COUNTA('Enrollment Form'!$CT168:$CU168)=2,\"Y\",\"N\"))","v":"-"},{"$f":"IF($B161=\"N\",\"\",IF(COUNTIF('Enrollment Form'!$DG168:$DP168,\"Other\")=COUNTA('Enrollment Form'!$DK168,'Enrollment Form'!$DH168,'Enrollment Form'!$DN168,'Enrollment Form'!$DQ168),\"Y\",\"N\"))","v":""},{"$f":"IF($B161=\"N\",\"\",IF(OR('Enrollment Form'!B168<>\"Subscriber\",'Enrollment Form'!C168=\"ROC\",COUNTIF('Enrollment Form'!AV168:AW168,\"Yes\")>=1),\"-\",IF(AND('Enrollment Form'!C168=\"Enroll\",COUNTIF('Enrollment Form'!AV168:AW168,\"No\")=2,'Enrollment Form'!AX168=\"\"),\"N\",\"Y\")))","v":""},{"$f":"IF(OR(B161=\"N\",'Enrollment Form'!B168<>\"Subscriber\",'Enrollment Form'!C168=\"ROC\",'Enrollment Form'!O168<>\"Multiple of Salary\"),\"-\",IF(COUNTA('Enrollment Form'!T168:U168)<2,\"N\",\"Y\"))","v":"-"},{"$f":"IF(B161=\"N\",\"\",IF(OR('Enrollment Form'!C168=\"ROC\",'Enrollment Form'!B168<>\"Subscriber\",'Enrollment Form'!O168=\"Waive\",'Enrollment Form'!O168=\"\"),\"-\",IF('Enrollment Form'!P168=\"\",\"N\",\"Y\")))","v":""},{"$f":"IF($B161=\"N\",\"\",IF(AND('Enrollment Form'!$C168=\"ROC\",'Enrollment Form'!$DR168<>\"\"),\"Y\",IF(AND('Enrollment Form'!$C168=\"ROC\",'Enrollment Form'!$DR168=\"\"),\"N\",IF(AND('Enrollment Form'!$C168=\"Enroll\",'Enrollment Form'!$B168=\"Subscriber\",'Enrollment Form'!$CX168=\"No\",'Enrollment Form'!$DR168=\"\"),\"N\",IF(AND('Enrollment Form'!$C168=\"Enroll\",'Enrollment Form'!$B168=\"Subscriber\",'Enrollment Form'!$CX168=\"Yes\"),\"-\",\"Y\")))))","v":""},{"$f":"IF($B161=\"N\",\"\",IF(AND('Enrollment Form'!$C168=\"ROC\",'Enrollment Form'!$DS168<>\"\"),\"Y\",IF(AND('Enrollment Form'!$C168=\"ROC\",'Enrollment Form'!$DS168=\"\"),\"N\",IF(AND('Enrollment Form'!$C168=\"Enroll\",'Enrollment Form'!$B168=\"Subscriber\",'Enrollment Form'!$CX168=\"No\",'Enrollment Form'!$DS168=\"\"),\"N\",IF(AND('Enrollment Form'!$C168=\"Enroll\",'Enrollment Form'!$B168=\"Subscriber\",'Enrollment Form'!$CX168=\"Yes\"),\"-\",\"Y\")))))","v":""},{"$f":"IF('Enrollment Form'!AH168=\"\",\"\",IF(ISERROR(SEARCH(\".\",'Enrollment Form'!AH168,SEARCH(\"@\",'Enrollment Form'!AH168))),\"N\",\"Y\"))","v":""},{"$f":"IF(OR($B161=\"N\",'Enrollment Form'!$G168=\"\"),\"\",IF('Enrollment Form'!$B168<>\"Subscriber\",\"-\",IF(COUNTIF('Enrollment Form'!$AV168:$AW168,\"Yes\")=2,\"N\",\"Y\")))","v":""},{"$f":"IF(OR('Enrollment Form'!$CJ168=\"\",'Enrollment Form'!$CJ168=\"No\"),\"-\",IF(AND('Enrollment Form'!$CJ168=\"Yes\",'Enrollment Form'!$CK168=\"\"),\"N\",\"Y\"))","v":"-"},{"$f":"IF(OR('Enrollment Form'!$CL168=\"\",'Enrollment Form'!$CL168=\"No\"),\"-\",IF(AND('Enrollment Form'!$CL168=\"Yes\",'Enrollment Form'!$CM168=\"\"),\"N\",\"Y\"))","v":"-"},{"$f":"IF(OR('Enrollment Form'!$CN168=\"\",'Enrollment Form'!$CN168=\"No\"),\"-\",IF(AND('Enrollment Form'!$CN168=\"Yes\",'Enrollment Form'!$CO168=\"\"),\"N\",\"Y\"))","v":"-"},{"$f":"IF(OR('Enrollment Form'!$CN168=\"\",'Enrollment Form'!$CN168=\"No\"),\"-\",IF(AND('Enrollment Form'!$CN168=\"Yes\",'Enrollment Form'!$CP168=\"\"),\"N\",\"Y\"))","v":"-"},{"$f":"IF('Enrollment Form'!B168<>\"Subscriber\",\"-\",IF(AND('Enrollment Form'!B168=\"Subscriber\",'Enrollment Form'!C168=\"Enroll\",'Enrollment Form'!AA168=\"\"),\"N\",\"Y\"))","v":"-"},{"$f":"IF(OR('Enrollment Form'!B168=\"Subscriber\",'Enrollment Form'!B168=\"\"),\"-\",IF('Enrollment Form'!BP168=\"\",\"N\",\"Y\"))","v":"-"},{"$f":"IF('Enrollment Form'!B168<>\"Subscriber\",\"-\",IF(AND('Enrollment Form'!B168=\"Subscriber\",'Enrollment Form'!G168=\"\"),\"N\",\"Y\"))","v":"-"},{"$f":"IF('Enrollment Form'!A168=\"\",\"\",IF('Enrollment Form'!B168=\"Subscriber\",\"-\",IF(AND('Enrollment Form'!B168<>\"Subscriber\",'Enrollment Form'!G168='Enrollment Form'!H168),\"N\",\"Y\")))","v":""},0]
[169,{"$f":"IF('Enrollment Form'!$A169<>\"\",\"Y\",\"N\")","v":"N"},{"$f":"IF(AND('Enrollment Form'!$B169=\"\",'Enrollment Form'!$C169<>\"\"),\"N\",IF($B162=\"N\",\"\",\"Y\"))","v":""},{"$f":"IF(OR($B162=\"N\",'Enrollment Form'!G169=\"\"),\"\",IF('Enrollment Form'!$B169<>\"Subscriber\",\"\",IF('Enrollment Form'!$G169='Enrollment Form'!$H169,\"Y\",\"N\")))","v":""},{"$f":"IF($B162=\"N\",\"\",IF(AND(COUNTIFS('Enrollment Form'!$H$11:$H$1000,'Enrollment Form'!$H169,'Enrollment Form'!$B$11:$B$1000,'Enrollment Form'!$B169)>1,'Enrollment Form'!$H169<>\"\"),\"N\",\"Y\"))","v":""},{"$f":"IF($B162=\"N\",\"\",IF(LEN('Enrollment Form'!$Y169)=0,\"\",IF(LEN('Enrollment Form'!$Y169)<>5,\"N\",\"Y\")))","v":""},{"$f":"IF($B162=\"N\",\"\",IF(LEN('Enrollment Form'!$AD169=0),\"\",IF(LEN('Enrollment Form'!$AD169)<>5,\"N\",\"Y\")))","v":""},{"$f":"IF($B162=\"N\",\"\",IF(LEN('Enrollment Form'!$BS169=0),\"\",IF(LEN('Enrollment Form'!$BS169)<>5,\"N\",\"Y\")))","v":""},{"$f":"IF($B162=\"N\",\"\",IF(LEN('Enrollment Form'!$AE169)=0,\"\",IF(LEN('Enrollment Form'!$AE169)<>10,\"N\",\"Y\")))","v":""},{"$f":"IF($B162=\"N\",\"\",IF(LEN('Enrollment Form'!$AF169)=0,\"\",IF(LEN('Enrollment Form'!$AF169)<>10,\"N\",\"Y\")))","v":""},{"$f":"IF('Enrollment Form'!$O169<>\"Graded\",\"-\",IF(AND('Enrollment Form'!$O169=\"Graded\",'Enrollment Form'!$AR169<>\"\"),\"Y\",\"N\"))","v":"-"},{"$f":"IF($B162=\"N\",\"\",IF(OR('Enrollment Form'!$B169<>\"Subscriber\",'Enrollment Form'!$C169=\"ROC\"),\"-\",IF(AND('Enrollment Form'!$B169=\"Subscriber\",'Enrollment Form'!$C169=\"Enroll\",'Enrollment Form'!$AJ169<>\"\"),\"Y\",\"N\")))","v":""},{"$f":"IF($B162=\"N\",\"\",IF(OR('Enrollment Form'!$B169<>\"Subscriber\",'Enrollment Form'!$C169=\"ROC\"),\"-\",IF(AND('Enrollment Form'!$B169=\"Subscriber\",'Enrollment Form'!$C169=\"Enroll\",'Enrollment Form'!$AK169<>\"\"),\"Y\",\"N\")))","v":""},{"$f":"IF($B162=\"N\",\"\",IF(OR('Enrollment Form'!$B169<>\"Subscriber\",'Enrollment Form'!$C169=\"ROC\"),\"-\",IF(AND('Enrollment Form'!$B169=\"Subscriber\",'Enrollment Form'!$C169=\"Enroll\",'Enrollment Form'!$AL169<>\"\"),\"Y\",\"N\")))","v":""},{"$f":"IF($B162=\"N\",\"\",IF(OR('Enrollment Form'!$B169<>\"Subscriber\",'Enrollment Form'!$C169=\"ROC\"),\"-\",IF(AND('Enrollment Form'!$B169=\"Subscriber\",'Enrollment Form'!$C169=\"Enroll\",'Enrollment Form'!$AP169<>\"\"),\"Y\",\"N\")))","v":""},{"$f":"IF($B162=\"N\",\"\",IF(OR('Enrollment Form'!$B169<>\"Subscriber\",'Enrollment Form'!$C169=\"ROC\"),\"-\",IF(AND('Enrollment Form'!$B169=\"Subscriber\",'Enrollment Form'!$C169=\"Enroll\",'Enrollment Form'!$AQ169<>\"\"),\"Y\",\"N\")))","v":""},{"$f":"IF($B162=\"N\",\"\",IF(OR('Enrollment Form'!$B169<>\"Subscriber\",'Enrollment Form'!$C169=\"ROC\"),\"-\",IF(AND('Enrollment Form'!$B169=\"Subscriber\",'Enrollment Form'!$C169=\"Enroll\",'Enrollment Form'!$AS169<>\"\"),\"Y\",\"N\")))","v":""},{"$f":"IF($B162=\"N\",\"\",IF($Q162=\"-\",\"-\",IF(AND($Q162=\"Y\",'Enrollment Form'!$AS169=\"No\"),\"-\",IF(AND($Q162=\"Y\",'Enrollment Form'!$AS169=\"Yes\",'Enrollment Form'!$AT169<>\"\"),\"Y\",\"N\"))))","v":""},{"$f":"IF($B162=\"N\",\"\",IF(OR('Enrollment Form'!$B169<>\"Subscriber\",'Enrollment Form'!$C169=\"ROC\"),\"-\",IF(AND('Enrollment Form'!$B169=\"Subscriber\",'Enrollment Form'!$C169=\"Enroll\",'Enrollment Form'!$CV169<>\"\"),\"Y\",\"N\")))","v":""},{"$f":"IF($B162=\"N\",\"\",IF($S162=\"-\",\"-\",IF(AND($S162=\"Y\",'Enrollment Form'!$CV169=\"No\"),\"-\",IF(AND($S162=\"Y\",'Enrollment Form'!$CV169=\"Yes\",'Enrollment Form'!$CW169<>\"\"),\"Y\",\"N\"))))","v":""},{"$f":"IF(OR('Enrollment Form'!$AY169=\"Yes\",'Enrollment Form'!$AY169=\"\"),\"-\",IF(OR(AND('Enrollment Form'!$AY169=\"No\",ISERROR(FIND(\"HMO\",VLOOKUP('Enrollment Form'!G169,'Enrollment Form'!H$11:J$1000,3,FALSE),1))=FALSE,COUNTA('Enrollment Form'!$AZ169:$BC169)=4),AND('Enrollment Form'!$AY169=\"No\",ISERROR(FIND(\"HMO\",VLOOKUP('Enrollment Form'!G169,'Enrollment Form'!H$11:J$1000,3,FALSE),1))=FALSE,COUNTA('Enrollment Form'!$BT169:$BW169)=4)),\"Y\",\"N\"))","v":"-"},{"$f":"IF($B162=\"N\",\"\",IF('Enrollment Form'!$B169=\"Subscriber\",\"-\",IF(COUNTA('Enrollment Form'!$BL169,'Enrollment Form'!$BN169)=2,\"Y\",\"N\")))","v":""},{"$f":"IF($B162=\"N\",\"\",IF(OR('Enrollment Form'!$AX169=\"\",'Enrollment Form'!$AX169=\"No\"),\"-\",IF(AND('Enrollment Form'!$AX169=\"Yes\",COUNTA('Enrollment Form'!$CR169)=1),\"Y\",\"N\")))","v":""},{"$f":"IF(OR('Enrollment Form'!$CR169=\"\",'Enrollment Form'!$CR169=\"No\"),\"-\",IF(COUNTA('Enrollment Form'!$CT169:$CU169)=2,\"Y\",\"N\"))","v":"-"},{"$f":"IF($B162=\"N\",\"\",IF(COUNTIF('Enrollment Form'!$DG169:$DP169,\"Other\")=COUNTA('Enrollment Form'!$DK169,'Enrollment Form'!$DH169,'Enrollment Form'!$DN169,'Enrollment Form'!$DQ169),\"Y\",\"N\"))","v":""},{"$f":"IF($B162=\"N\",\"\",IF(OR('Enrollment Form'!B169<>\"Subscriber\",'Enrollment Form'!C169=\"ROC\",COUNTIF('Enrollment Form'!AV169:AW169,\"Yes\")>=1),\"-\",IF(AND('Enrollment Form'!C169=\"Enroll\",COUNTIF('Enrollment Form'!AV169:AW169,\"No\")=2,'Enrollment Form'!AX169=\"\"),\"N\",\"Y\")))","v":""},{"$f":"IF(OR(B162=\"N\",'Enrollment Form'!B169<>\"Subscriber\",'Enrollment Form'!C169=\"ROC\",'Enrollment Form'!O169<>\"Multiple of Salary\"),\"-\",IF(COUNTA('Enrollment Form'!T169:U169)<2,\"N\",\"Y\"))","v":"-"},{"$f":"IF(B162=\"N\",\"\",IF(OR('Enrollment Form'!C169=\"ROC\",'Enrollment Form'!B169<>\"Subscriber\",'Enrollment Form'!O169=\"Waive\",'Enrollment Form'!O169=\"\"),\"-\",IF('Enrollment Form'!P169=\"\",\"N\",\"Y\")))","v":""},{"$f":"IF($B162=\"N\",\"\",IF(AND('Enrollment Form'!$C169=\"ROC\",'Enrollment Form'!$DR169<>\"\"),\"Y\",IF(AND('Enrollment Form'!$C169=\"ROC\",'Enrollment Form'!$DR169=\"\"),\"N\",IF(AND('Enrollment Form'!$C169=\"Enroll\",'Enrollment Form'!$B169=\"Subscriber\",'Enrollment Form'!$CX169=\"No\",'Enrollment Form'!$DR169=\"\"),\"N\",IF(AND('Enrollment Form'!$C169=\"Enroll\",'Enrollment Form'!$B169=\"Subscriber\",'Enrollment Form'!$CX169=\"Yes\"),\"-\",\"Y\")))))","v":""},{"$f":"IF($B162=\"N\",\"\",IF(AND('Enrollment Form'!$C169=\"ROC\",'Enrollment Form'!$DS169<>\"\"),\"Y\",IF(AND('Enrollment Form'!$C169=\"ROC\",'Enrollment Form'!$DS169=\"\"),\"N\",IF(AND('Enrollment Form'!$C169=\"Enroll\",'Enrollment Form'!$B169=\"Subscriber\",'Enrollment Form'!$CX169=\"No\",'Enrollment Form'!$DS169=\"\"),\"N\",IF(AND('Enrollment Form'!$C169=\"Enroll\",'Enrollment Form'!$B169=\"Subscriber\",'Enrollment Form'!$CX169=\"Yes\"),\"-\",\"Y\")))))","v":""},{"$f":"IF('Enrollment Form'!AH169=\"\",\"\",IF(ISERROR(SEARCH(\".\",'Enrollment Form'!AH169,SEARCH(\"@\",'Enrollment Form'!AH169))),\"N\",\"Y\"))","v":""},{"$f":"IF(OR($B162=\"N\",'Enrollment Form'!$G169=\"\"),\"\",IF('Enrollment Form'!$B169<>\"Subscriber\",\"-\",IF(COUNTIF('Enrollment Form'!$AV169:$AW169,\"Yes\")=2,\"N\",\"Y\")))","v":""},{"$f":"IF(OR('Enrollment Form'!$CJ169=\"\",'Enrollment Form'!$CJ169=\"No\"),\"-\",IF(AND('Enrollment Form'!$CJ169=\"Yes\",'Enrollment Form'!$CK169=\"\"),\"N\",\"Y\"))","v":"-"},{"$f":"IF(OR('Enrollment Form'!$CL169=\"\",'Enrollment Form'!$CL169=\"No\"),\"-\",IF(AND('Enrollment Form'!$CL169=\"Yes\",'Enrollment Form'!$CM169=\"\"),\"N\",\"Y\"))","v":"-"},{"$f":"IF(OR('Enrollment Form'!$CN169=\"\",'Enrollment Form'!$CN169=\"No\"),\"-\",IF(AND('Enrollment Form'!$CN169=\"Yes\",'Enrollment Form'!$CO169=\"\"),\"N\",\"Y\"))","v":"-"},{"$f":"IF(OR('Enrollment Form'!$CN169=\"\",'Enrollment Form'!$CN169=\"No\"),\"-\",IF(AND('Enrollment Form'!$CN169=\"Yes\",'Enrollment Form'!$CP169=\"\"),\"N\",\"Y\"))","v":"-"},{"$f":"IF('Enrollment Form'!B169<>\"Subscriber\",\"-\",IF(AND('Enrollment Form'!B169=\"Subscriber\",'Enrollment Form'!C169=\"Enroll\",'Enrollment Form'!AA169=\"\"),\"N\",\"Y\"))","v":"-"},{"$f":"IF(OR('Enrollment Form'!B169=\"Subscriber\",'Enrollment Form'!B169=\"\"),\"-\",IF('Enrollment Form'!BP169=\"\",\"N\",\"Y\"))","v":"-"},{"$f":"IF('Enrollment Form'!B169<>\"Subscriber\",\"-\",IF(AND('Enrollment Form'!B169=\"Subscriber\",'Enrollment Form'!G169=\"\"),\"N\",\"Y\"))","v":"-"},{"$f":"IF('Enrollment Form'!A169=\"\",\"\",IF('Enrollment Form'!B169=\"Subscriber\",\"-\",IF(AND('Enrollment Form'!B169<>\"Subscriber\",'Enrollment Form'!G169='Enrollment Form'!H169),\"N\",\"Y\")))","v":""},0]
[170,{"$f":"IF('Enrollment Form'!$A170<>\"\",\"Y\",\"N\")","v":"N"},{"$f":"IF(AND('Enrollment Form'!$B170=\"\",'Enrollment Form'!$C170<>\"\"),\"N\",IF($B163=\"N\",\"\",\"Y\"))","v":""},{"$f":"IF(OR($B163=\"N\",'Enrollment Form'!G170=\"\"),\"\",IF('Enrollment Form'!$B170<>\"Subscriber\",\"\",IF('Enrollment Form'!$G170='Enrollment Form'!$H170,\"Y\",\"N\")))","v":""},{"$f":"IF($B163=\"N\",\"\",IF(AND(COUNTIFS('Enrollment Form'!$H$11:$H$1000,'Enrollment Form'!$H170,'Enrollment Form'!$B$11:$B$1000,'Enrollment Form'!$B170)>1,'Enrollment Form'!$H170<>\"\"),\"N\",\"Y\"))","v":""},{"$f":"IF($B163=\"N\",\"\",IF(LEN('Enrollment Form'!$Y170)=0,\"\",IF(LEN('Enrollment Form'!$Y170)<>5,\"N\",\"Y\")))","v":""},{"$f":"IF($B163=\"N\",\"\",IF(LEN('Enrollment Form'!$AD170=0),\"\",IF(LEN('Enrollment Form'!$AD170)<>5,\"N\",\"Y\")))","v":""},{"$f":"IF($B163=\"N\",\"\",IF(LEN('Enrollment Form'!$BS170=0),\"\",IF(LEN('Enrollment Form'!$BS170)<>5,\"N\",\"Y\")))","v":""},{"$f":"IF($B163=\"N\",\"\",IF(LEN('Enrollment Form'!$AE170)=0,\"\",IF(LEN('Enrollment Form'!$AE170)<>10,\"N\",\"Y\")))","v":""},{"$f":"IF($B163=\"N\",\"\",IF(LEN('Enrollment Form'!$AF170)=0,\"\",IF(LEN('Enrollment Form'!$AF170)<>10,\"N\",\"Y\")))","v":""},{"$f":"IF('Enrollment Form'!$O170<>\"Graded\",\"-\",IF(AND('Enrollment Form'!$O170=\"Graded\",'Enrollment Form'!$AR170<>\"\"),\"Y\",\"N\"))","v":"-"},{"$f":"IF($B163=\"N\",\"\",IF(OR('Enrollment Form'!$B170<>\"Subscriber\",'Enrollment Form'!$C170=\"ROC\"),\"-\",IF(AND('Enrollment Form'!$B170=\"Subscriber\",'Enrollment Form'!$C170=\"Enroll\",'Enrollment Form'!$AJ170<>\"\"),\"Y\",\"N\")))","v":""},{"$f":"IF($B163=\"N\",\"\",IF(OR('Enrollment Form'!$B170<>\"Subscriber\",'Enrollment Form'!$C170=\"ROC\"),\"-\",IF(AND('Enrollment Form'!$B170=\"Subscriber\",'Enrollment Form'!$C170=\"Enroll\",'Enrollment Form'!$AK170<>\"\"),\"Y\",\"N\")))","v":""},{"$f":"IF($B163=\"N\",\"\",IF(OR('Enrollment Form'!$B170<>\"Subscriber\",'Enrollment Form'!$C170=\"ROC\"),\"-\",IF(AND('Enrollment Form'!$B170=\"Subscriber\",'Enrollment Form'!$C170=\"Enroll\",'Enrollment Form'!$AL170<>\"\"),\"Y\",\"N\")))","v":""},{"$f":"IF($B163=\"N\",\"\",IF(OR('Enrollment Form'!$B170<>\"Subscriber\",'Enrollment Form'!$C170=\"ROC\"),\"-\",IF(AND('Enrollment Form'!$B170=\"Subscriber\",'Enrollment Form'!$C170=\"Enroll\",'Enrollment Form'!$AP170<>\"\"),\"Y\",\"N\")))","v":""},{"$f":"IF($B163=\"N\",\"\",IF(OR('Enrollment Form'!$B170<>\"Subscriber\",'Enrollment Form'!$C170=\"ROC\"),\"-\",IF(AND('Enrollment Form'!$B170=\"Subscriber\",'Enrollment Form'!$C170=\"Enroll\",'Enrollment Form'!$AQ170<>\"\"),\"Y\",\"N\")))","v":""},{"$f":"IF($B163=\"N\",\"\",IF(OR('Enrollment Form'!$B170<>\"Subscriber\",'Enrollment Form'!$C170=\"ROC\"),\"-\",IF(AND('Enrollment Form'!$B170=\"Subscriber\",'Enrollment Form'!$C170=\"Enroll\",'Enrollment Form'!$AS170<>\"\"),\"Y\",\"N\")))","v":""},{"$f":"IF($B163=\"N\",\"\",IF($Q163=\"-\",\"-\",IF(AND($Q163=\"Y\",'Enrollment Form'!$AS170=\"No\"),\"-\",IF(AND($Q163=\"Y\",'Enrollment Form'!$AS170=\"Yes\",'Enrollment Form'!$AT170<>\"\"),\"Y\",\"N\"))))","v":""},{"$f":"IF($B163=\"N\",\"\",IF(OR('Enrollment Form'!$B170<>\"Subscriber\",'Enrollment Form'!$C170=\"ROC\"),\"-\",IF(AND('Enrollment Form'!$B170=\"Subscriber\",'Enrollment Form'!$C170=\"Enroll\",'Enrollment Form'!$CV170<>\"\"),\"Y\",\"N\")))","v":""},{"$f":"IF($B163=\"N\",\"\",IF($S163=\"-\",\"-\",IF(AND($S163=\"Y\",'Enrollment Form'!$CV170=\"No\"),\"-\",IF(AND($S163=\"Y\",'Enrollment Form'!$CV170=\"Yes\",'Enrollment Form'!$CW170<>\"\"),\"Y\",\"N\"))))","v":""},{"$f":"IF(OR('Enrollment Form'!$AY170=\"Yes\",'Enrollment Form'!$AY170=\"\"),\"-\",IF(OR(AND('Enrollment Form'!$AY170=\"No\",ISERROR(FIND(\"HMO\",VLOOKUP('Enrollment Form'!G170,'Enrollment Form'!H$11:J$1000,3,FALSE),1))=FALSE,COUNTA('Enrollment Form'!$AZ170:$BC170)=4),AND('Enrollment Form'!$AY170=\"No\",ISERROR(FIND(\"HMO\",VLOOKUP('Enrollment Form'!G170,'Enrollment Form'!H$11:J$1000,3,FALSE),1))=FALSE,COUNTA('Enrollment Form'!$BT170:$BW170)=4)),\"Y\",\"N\"))","v":"-"},{"$f":"IF($B163=\"N\",\"\",IF('Enrollment Form'!$B170=\"Subscriber\",\"-\",IF(COUNTA('Enrollment Form'!$BL170,'Enrollment Form'!$BN170)=2,\"Y\",\"N\")))","v":""},{"$f":"IF($B163=\"N\",\"\",IF(OR('Enrollment Form'!$AX170=\"\",'Enrollment Form'!$AX170=\"No\"),\"-\",IF(AND('Enrollment Form'!$AX170=\"Yes\",COUNTA('Enrollment Form'!$CR170)=1),\"Y\",\"N\")))","v":""},{"$f":"IF(OR('Enrollment Form'!$CR170=\"\",'Enrollment Form'!$CR170=\"No\"),\"-\",IF(COUNTA('Enrollment Form'!$CT170:$CU170)=2,\"Y\",\"N\"))","v":"-"},{"$f":"IF($B163=\"N\",\"\",IF(COUNTIF('Enrollment Form'!$DG170:$DP170,\"Other\")=COUNTA('Enrollment Form'!$DK170,'Enrollment Form'!$DH170,'Enrollment Form'!$DN170,'Enrollment Form'!$DQ170),\"Y\",\"N\"))","v":""},{"$f":"IF($B163=\"N\",\"\",IF(OR('Enrollment Form'!B170<>\"Subscriber\",'Enrollment Form'!C170=\"ROC\",COUNTIF('Enrollment Form'!AV170:AW170,\"Yes\")>=1),\"-\",IF(AND('Enrollment Form'!C170=\"Enroll\",COUNTIF('Enrollment Form'!AV170:AW170,\"No\")=2,'Enrollment Form'!AX170=\"\"),\"N\",\"Y\")))","v":""},{"$f":"IF(OR(B163=\"N\",'Enrollment Form'!B170<>\"Subscriber\",'Enrollment Form'!C170=\"ROC\",'Enrollment Form'!O170<>\"Multiple of Salary\"),\"-\",IF(COUNTA('Enrollment Form'!T170:U170)<2,\"N\",\"Y\"))","v":"-"},{"$f":"IF(B163=\"N\",\"\",IF(OR('Enrollment Form'!C170=\"ROC\",'Enrollment Form'!B170<>\"Subscriber\",'Enrollment Form'!O170=\"Waive\",'Enrollment Form'!O170=\"\"),\"-\",IF('Enrollment Form'!P170=\"\",\"N\",\"Y\")))","v":""},{"$f":"IF($B163=\"N\",\"\",IF(AND('Enrollment Form'!$C170=\"ROC\",'Enrollment Form'!$DR170<>\"\"),\"Y\",IF(AND('Enrollment Form'!$C170=\"ROC\",'Enrollment Form'!$DR170=\"\"),\"N\",IF(AND('Enrollment Form'!$C170=\"Enroll\",'Enrollment Form'!$B170=\"Subscriber\",'Enrollment Form'!$CX170=\"No\",'Enrollment Form'!$DR170=\"\"),\"N\",IF(AND('Enrollment Form'!$C170=\"Enroll\",'Enrollment Form'!$B170=\"Subscriber\",'Enrollment Form'!$CX170=\"Yes\"),\"-\",\"Y\")))))","v":""},{"$f":"IF($B163=\"N\",\"\",IF(AND('Enrollment Form'!$C170=\"ROC\",'Enrollment Form'!$DS170<>\"\"),\"Y\",IF(AND('Enrollment Form'!$C170=\"ROC\",'Enrollment Form'!$DS170=\"\"),\"N\",IF(AND('Enrollment Form'!$C170=\"Enroll\",'Enrollment Form'!$B170=\"Subscriber\",'Enrollment Form'!$CX170=\"No\",'Enrollment Form'!$DS170=\"\"),\"N\",IF(AND('Enrollment Form'!$C170=\"Enroll\",'Enrollment Form'!$B170=\"Subscriber\",'Enrollment Form'!$CX170=\"Yes\"),\"-\",\"Y\")))))","v":""},{"$f":"IF('Enrollment Form'!AH170=\"\",\"\",IF(ISERROR(SEARCH(\".\",'Enrollment Form'!AH170,SEARCH(\"@\",'Enrollment Form'!AH170))),\"N\",\"Y\"))","v":""},{"$f":"IF(OR($B163=\"N\",'Enrollment Form'!$G170=\"\"),\"\",IF('Enrollment Form'!$B170<>\"Subscriber\",\"-\",IF(COUNTIF('Enrollment Form'!$AV170:$AW170,\"Yes\")=2,\"N\",\"Y\")))","v":""},{"$f":"IF(OR('Enrollment Form'!$CJ170=\"\",'Enrollment Form'!$CJ170=\"No\"),\"-\",IF(AND('Enrollment Form'!$CJ170=\"Yes\",'Enrollment Form'!$CK170=\"\"),\"N\",\"Y\"))","v":"-"},{"$f":"IF(OR('Enrollment Form'!$CL170=\"\",'Enrollment Form'!$CL170=\"No\"),\"-\",IF(AND('Enrollment Form'!$CL170=\"Yes\",'Enrollment Form'!$CM170=\"\"),\"N\",\"Y\"))","v":"-"},{"$f":"IF(OR('Enrollment Form'!$CN170=\"\",'Enrollment Form'!$CN170=\"No\"),\"-\",IF(AND('Enrollment Form'!$CN170=\"Yes\",'Enrollment Form'!$CO170=\"\"),\"N\",\"Y\"))","v":"-"},{"$f":"IF(OR('Enrollment Form'!$CN170=\"\",'Enrollment Form'!$CN170=\"No\"),\"-\",IF(AND('Enrollment Form'!$CN170=\"Yes\",'Enrollment Form'!$CP170=\"\"),\"N\",\"Y\"))","v":"-"},{"$f":"IF('Enrollment Form'!B170<>\"Subscriber\",\"-\",IF(AND('Enrollment Form'!B170=\"Subscriber\",'Enrollment Form'!C170=\"Enroll\",'Enrollment Form'!AA170=\"\"),\"N\",\"Y\"))","v":"-"},{"$f":"IF(OR('Enrollment Form'!B170=\"Subscriber\",'Enrollment Form'!B170=\"\"),\"-\",IF('Enrollment Form'!BP170=\"\",\"N\",\"Y\"))","v":"-"},{"$f":"IF('Enrollment Form'!B170<>\"Subscriber\",\"-\",IF(AND('Enrollment Form'!B170=\"Subscriber\",'Enrollment Form'!G170=\"\"),\"N\",\"Y\"))","v":"-"},{"$f":"IF('Enrollment Form'!A170=\"\",\"\",IF('Enrollment Form'!B170=\"Subscriber\",\"-\",IF(AND('Enrollment Form'!B170<>\"Subscriber\",'Enrollment Form'!G170='Enrollment Form'!H170),\"N\",\"Y\")))","v":""},0]
[171,{"$f":"IF('Enrollment Form'!$A171<>\"\",\"Y\",\"N\")","v":"N"},{"$f":"IF(AND('Enrollment Form'!$B171=\"\",'Enrollment Form'!$C171<>\"\"),\"N\",IF($B164=\"N\",\"\",\"Y\"))","v":""},{"$f":"IF(OR($B164=\"N\",'Enrollment Form'!G171=\"\"),\"\",IF('Enrollment Form'!$B171<>\"Subscriber\",\"\",IF('Enrollment Form'!$G171='Enrollment Form'!$H171,\"Y\",\"N\")))","v":""},{"$f":"IF($B164=\"N\",\"\",IF(AND(COUNTIFS('Enrollment Form'!$H$11:$H$1000,'Enrollment Form'!$H171,'Enrollment Form'!$B$11:$B$1000,'Enrollment Form'!$B171)>1,'Enrollment Form'!$H171<>\"\"),\"N\",\"Y\"))","v":""},{"$f":"IF($B164=\"N\",\"\",IF(LEN('Enrollment Form'!$Y171)=0,\"\",IF(LEN('Enrollment Form'!$Y171)<>5,\"N\",\"Y\")))","v":""},{"$f":"IF($B164=\"N\",\"\",IF(LEN('Enrollment Form'!$AD171=0),\"\",IF(LEN('Enrollment Form'!$AD171)<>5,\"N\",\"Y\")))","v":""},{"$f":"IF($B164=\"N\",\"\",IF(LEN('Enrollment Form'!$BS171=0),\"\",IF(LEN('Enrollment Form'!$BS171)<>5,\"N\",\"Y\")))","v":""},{"$f":"IF($B164=\"N\",\"\",IF(LEN('Enrollment Form'!$AE171)=0,\"\",IF(LEN('Enrollment Form'!$AE171)<>10,\"N\",\"Y\")))","v":""},{"$f":"IF($B164=\"N\",\"\",IF(LEN('Enrollment Form'!$AF171)=0,\"\",IF(LEN('Enrollment Form'!$AF171)<>10,\"N\",\"Y\")))","v":""},{"$f":"IF('Enrollment Form'!$O171<>\"Graded\",\"-\",IF(AND('Enrollment Form'!$O171=\"Graded\",'Enrollment Form'!$AR171<>\"\"),\"Y\",\"N\"))","v":"-"},{"$f":"IF($B164=\"N\",\"\",IF(OR('Enrollment Form'!$B171<>\"Subscriber\",'Enrollment Form'!$C171=\"ROC\"),\"-\",IF(AND('Enrollment Form'!$B171=\"Subscriber\",'Enrollment Form'!$C171=\"Enroll\",'Enrollment Form'!$AJ171<>\"\"),\"Y\",\"N\")))","v":""},{"$f":"IF($B164=\"N\",\"\",IF(OR('Enrollment Form'!$B171<>\"Subscriber\",'Enrollment Form'!$C171=\"ROC\"),\"-\",IF(AND('Enrollment Form'!$B171=\"Subscriber\",'Enrollment Form'!$C171=\"Enroll\",'Enrollment Form'!$AK171<>\"\"),\"Y\",\"N\")))","v":""},{"$f":"IF($B164=\"N\",\"\",IF(OR('Enrollment Form'!$B171<>\"Subscriber\",'Enrollment Form'!$C171=\"ROC\"),\"-\",IF(AND('Enrollment Form'!$B171=\"Subscriber\",'Enrollment Form'!$C171=\"Enroll\",'Enrollment Form'!$AL171<>\"\"),\"Y\",\"N\")))","v":""},{"$f":"IF($B164=\"N\",\"\",IF(OR('Enrollment Form'!$B171<>\"Subscriber\",'Enrollment Form'!$C171=\"ROC\"),\"-\",IF(AND('Enrollment Form'!$B171=\"Subscriber\",'Enrollment Form'!$C171=\"Enroll\",'Enrollment Form'!$AP171<>\"\"),\"Y\",\"N\")))","v":""},{"$f":"IF($B164=\"N\",\"\",IF(OR('Enrollment Form'!$B171<>\"Subscriber\",'Enrollment Form'!$C171=\"ROC\"),\"-\",IF(AND('Enrollment Form'!$B171=\"Subscriber\",'Enrollment Form'!$C171=\"Enroll\",'Enrollment Form'!$AQ171<>\"\"),\"Y\",\"N\")))","v":""},{"$f":"IF($B164=\"N\",\"\",IF(OR('Enrollment Form'!$B171<>\"Subscriber\",'Enrollment Form'!$C171=\"ROC\"),\"-\",IF(AND('Enrollment Form'!$B171=\"Subscriber\",'Enrollment Form'!$C171=\"Enroll\",'Enrollment Form'!$AS171<>\"\"),\"Y\",\"N\")))","v":""},{"$f":"IF($B164=\"N\",\"\",IF($Q164=\"-\",\"-\",IF(AND($Q164=\"Y\",'Enrollment Form'!$AS171=\"No\"),\"-\",IF(AND($Q164=\"Y\",'Enrollment Form'!$AS171=\"Yes\",'Enrollment Form'!$AT171<>\"\"),\"Y\",\"N\"))))","v":""},{"$f":"IF($B164=\"N\",\"\",IF(OR('Enrollment Form'!$B171<>\"Subscriber\",'Enrollment Form'!$C171=\"ROC\"),\"-\",IF(AND('Enrollment Form'!$B171=\"Subscriber\",'Enrollment Form'!$C171=\"Enroll\",'Enrollment Form'!$CV171<>\"\"),\"Y\",\"N\")))","v":""},{"$f":"IF($B164=\"N\",\"\",IF($S164=\"-\",\"-\",IF(AND($S164=\"Y\",'Enrollment Form'!$CV171=\"No\"),\"-\",IF(AND($S164=\"Y\",'Enrollment Form'!$CV171=\"Yes\",'Enrollment Form'!$CW171<>\"\"),\"Y\",\"N\"))))","v":""},{"$f":"IF(OR('Enrollment Form'!$AY171=\"Yes\",'Enrollment Form'!$AY171=\"\"),\"-\",IF(OR(AND('Enrollment Form'!$AY171=\"No\",ISERROR(FIND(\"HMO\",VLOOKUP('Enrollment Form'!G171,'Enrollment Form'!H$11:J$1000,3,FALSE),1))=FALSE,COUNTA('Enrollment Form'!$AZ171:$BC171)=4),AND('Enrollment Form'!$AY171=\"No\",ISERROR(FIND(\"HMO\",VLOOKUP('Enrollment Form'!G171,'Enrollment Form'!H$11:J$1000,3,FALSE),1))=FALSE,COUNTA('Enrollment Form'!$BT171:$BW171)=4)),\"Y\",\"N\"))","v":"-"},{"$f":"IF($B164=\"N\",\"\",IF('Enrollment Form'!$B171=\"Subscriber\",\"-\",IF(COUNTA('Enrollment Form'!$BL171,'Enrollment Form'!$BN171)=2,\"Y\",\"N\")))","v":""},{"$f":"IF($B164=\"N\",\"\",IF(OR('Enrollment Form'!$AX171=\"\",'Enrollment Form'!$AX171=\"No\"),\"-\",IF(AND('Enrollment Form'!$AX171=\"Yes\",COUNTA('Enrollment Form'!$CR171)=1),\"Y\",\"N\")))","v":""},{"$f":"IF(OR('Enrollment Form'!$CR171=\"\",'Enrollment Form'!$CR171=\"No\"),\"-\",IF(COUNTA('Enrollment Form'!$CT171:$CU171)=2,\"Y\",\"N\"))","v":"-"},{"$f":"IF($B164=\"N\",\"\",IF(COUNTIF('Enrollment Form'!$DG171:$DP171,\"Other\")=COUNTA('Enrollment Form'!$DK171,'Enrollment Form'!$DH171,'Enrollment Form'!$DN171,'Enrollment Form'!$DQ171),\"Y\",\"N\"))","v":""},{"$f":"IF($B164=\"N\",\"\",IF(OR('Enrollment Form'!B171<>\"Subscriber\",'Enrollment Form'!C171=\"ROC\",COUNTIF('Enrollment Form'!AV171:AW171,\"Yes\")>=1),\"-\",IF(AND('Enrollment Form'!C171=\"Enroll\",COUNTIF('Enrollment Form'!AV171:AW171,\"No\")=2,'Enrollment Form'!AX171=\"\"),\"N\",\"Y\")))","v":""},{"$f":"IF(OR(B164=\"N\",'Enrollment Form'!B171<>\"Subscriber\",'Enrollment Form'!C171=\"ROC\",'Enrollment Form'!O171<>\"Multiple of Salary\"),\"-\",IF(COUNTA('Enrollment Form'!T171:U171)<2,\"N\",\"Y\"))","v":"-"},{"$f":"IF(B164=\"N\",\"\",IF(OR('Enrollment Form'!C171=\"ROC\",'Enrollment Form'!B171<>\"Subscriber\",'Enrollment Form'!O171=\"Waive\",'Enrollment Form'!O171=\"\"),\"-\",IF('Enrollment Form'!P171=\"\",\"N\",\"Y\")))","v":""},{"$f":"IF($B164=\"N\",\"\",IF(AND('Enrollment Form'!$C171=\"ROC\",'Enrollment Form'!$DR171<>\"\"),\"Y\",IF(AND('Enrollment Form'!$C171=\"ROC\",'Enrollment Form'!$DR171=\"\"),\"N\",IF(AND('Enrollment Form'!$C171=\"Enroll\",'Enrollment Form'!$B171=\"Subscriber\",'Enrollment Form'!$CX171=\"No\",'Enrollment Form'!$DR171=\"\"),\"N\",IF(AND('Enrollment Form'!$C171=\"Enroll\",'Enrollment Form'!$B171=\"Subscriber\",'Enrollment Form'!$CX171=\"Yes\"),\"-\",\"Y\")))))","v":""},{"$f":"IF($B164=\"N\",\"\",IF(AND('Enrollment Form'!$C171=\"ROC\",'Enrollment Form'!$DS171<>\"\"),\"Y\",IF(AND('Enrollment Form'!$C171=\"ROC\",'Enrollment Form'!$DS171=\"\"),\"N\",IF(AND('Enrollment Form'!$C171=\"Enroll\",'Enrollment Form'!$B171=\"Subscriber\",'Enrollment Form'!$CX171=\"No\",'Enrollment Form'!$DS171=\"\"),\"N\",IF(AND('Enrollment Form'!$C171=\"Enroll\",'Enrollment Form'!$B171=\"Subscriber\",'Enrollment Form'!$CX171=\"Yes\"),\"-\",\"Y\")))))","v":""},{"$f":"IF('Enrollment Form'!AH171=\"\",\"\",IF(ISERROR(SEARCH(\".\",'Enrollment Form'!AH171,SEARCH(\"@\",'Enrollment Form'!AH171))),\"N\",\"Y\"))","v":""},{"$f":"IF(OR($B164=\"N\",'Enrollment Form'!$G171=\"\"),\"\",IF('Enrollment Form'!$B171<>\"Subscriber\",\"-\",IF(COUNTIF('Enrollment Form'!$AV171:$AW171,\"Yes\")=2,\"N\",\"Y\")))","v":""},{"$f":"IF(OR('Enrollment Form'!$CJ171=\"\",'Enrollment Form'!$CJ171=\"No\"),\"-\",IF(AND('Enrollment Form'!$CJ171=\"Yes\",'Enrollment Form'!$CK171=\"\"),\"N\",\"Y\"))","v":"-"},{"$f":"IF(OR('Enrollment Form'!$CL171=\"\",'Enrollment Form'!$CL171=\"No\"),\"-\",IF(AND('Enrollment Form'!$CL171=\"Yes\",'Enrollment Form'!$CM171=\"\"),\"N\",\"Y\"))","v":"-"},{"$f":"IF(OR('Enrollment Form'!$CN171=\"\",'Enrollment Form'!$CN171=\"No\"),\"-\",IF(AND('Enrollment Form'!$CN171=\"Yes\",'Enrollment Form'!$CO171=\"\"),\"N\",\"Y\"))","v":"-"},{"$f":"IF(OR('Enrollment Form'!$CN171=\"\",'Enrollment Form'!$CN171=\"No\"),\"-\",IF(AND('Enrollment Form'!$CN171=\"Yes\",'Enrollment Form'!$CP171=\"\"),\"N\",\"Y\"))","v":"-"},{"$f":"IF('Enrollment Form'!B171<>\"Subscriber\",\"-\",IF(AND('Enrollment Form'!B171=\"Subscriber\",'Enrollment Form'!C171=\"Enroll\",'Enrollment Form'!AA171=\"\"),\"N\",\"Y\"))","v":"-"},{"$f":"IF(OR('Enrollment Form'!B171=\"Subscriber\",'Enrollment Form'!B171=\"\"),\"-\",IF('Enrollment Form'!BP171=\"\",\"N\",\"Y\"))","v":"-"},{"$f":"IF('Enrollment Form'!B171<>\"Subscriber\",\"-\",IF(AND('Enrollment Form'!B171=\"Subscriber\",'Enrollment Form'!G171=\"\"),\"N\",\"Y\"))","v":"-"},{"$f":"IF('Enrollment Form'!A171=\"\",\"\",IF('Enrollment Form'!B171=\"Subscriber\",\"-\",IF(AND('Enrollment Form'!B171<>\"Subscriber\",'Enrollment Form'!G171='Enrollment Form'!H171),\"N\",\"Y\")))","v":""},0]
[172,{"$f":"IF('Enrollment Form'!$A172<>\"\",\"Y\",\"N\")","v":"N"},{"$f":"IF(AND('Enrollment Form'!$B172=\"\",'Enrollment Form'!$C172<>\"\"),\"N\",IF($B165=\"N\",\"\",\"Y\"))","v":""},{"$f":"IF(OR($B165=\"N\",'Enrollment Form'!G172=\"\"),\"\",IF('Enrollment Form'!$B172<>\"Subscriber\",\"\",IF('Enrollment Form'!$G172='Enrollment Form'!$H172,\"Y\",\"N\")))","v":""},{"$f":"IF($B165=\"N\",\"\",IF(AND(COUNTIFS('Enrollment Form'!$H$11:$H$1000,'Enrollment Form'!$H172,'Enrollment Form'!$B$11:$B$1000,'Enrollment Form'!$B172)>1,'Enrollment Form'!$H172<>\"\"),\"N\",\"Y\"))","v":""},{"$f":"IF($B165=\"N\",\"\",IF(LEN('Enrollment Form'!$Y172)=0,\"\",IF(LEN('Enrollment Form'!$Y172)<>5,\"N\",\"Y\")))","v":""},{"$f":"IF($B165=\"N\",\"\",IF(LEN('Enrollment Form'!$AD172=0),\"\",IF(LEN('Enrollment Form'!$AD172)<>5,\"N\",\"Y\")))","v":""},{"$f":"IF($B165=\"N\",\"\",IF(LEN('Enrollment Form'!$BS172=0),\"\",IF(LEN('Enrollment Form'!$BS172)<>5,\"N\",\"Y\")))","v":""},{"$f":"IF($B165=\"N\",\"\",IF(LEN('Enrollment Form'!$AE172)=0,\"\",IF(LEN('Enrollment Form'!$AE172)<>10,\"N\",\"Y\")))","v":""},{"$f":"IF($B165=\"N\",\"\",IF(LEN('Enrollment Form'!$AF172)=0,\"\",IF(LEN('Enrollment Form'!$AF172)<>10,\"N\",\"Y\")))","v":""},{"$f":"IF('Enrollment Form'!$O172<>\"Graded\",\"-\",IF(AND('Enrollment Form'!$O172=\"Graded\",'Enrollment Form'!$AR172<>\"\"),\"Y\",\"N\"))","v":"-"},{"$f":"IF($B165=\"N\",\"\",IF(OR('Enrollment Form'!$B172<>\"Subscriber\",'Enrollment Form'!$C172=\"ROC\"),\"-\",IF(AND('Enrollment Form'!$B172=\"Subscriber\",'Enrollment Form'!$C172=\"Enroll\",'Enrollment Form'!$AJ172<>\"\"),\"Y\",\"N\")))","v":""},{"$f":"IF($B165=\"N\",\"\",IF(OR('Enrollment Form'!$B172<>\"Subscriber\",'Enrollment Form'!$C172=\"ROC\"),\"-\",IF(AND('Enrollment Form'!$B172=\"Subscriber\",'Enrollment Form'!$C172=\"Enroll\",'Enrollment Form'!$AK172<>\"\"),\"Y\",\"N\")))","v":""},{"$f":"IF($B165=\"N\",\"\",IF(OR('Enrollment Form'!$B172<>\"Subscriber\",'Enrollment Form'!$C172=\"ROC\"),\"-\",IF(AND('Enrollment Form'!$B172=\"Subscriber\",'Enrollment Form'!$C172=\"Enroll\",'Enrollment Form'!$AL172<>\"\"),\"Y\",\"N\")))","v":""},{"$f":"IF($B165=\"N\",\"\",IF(OR('Enrollment Form'!$B172<>\"Subscriber\",'Enrollment Form'!$C172=\"ROC\"),\"-\",IF(AND('Enrollment Form'!$B172=\"Subscriber\",'Enrollment Form'!$C172=\"Enroll\",'Enrollment Form'!$AP172<>\"\"),\"Y\",\"N\")))","v":""},{"$f":"IF($B165=\"N\",\"\",IF(OR('Enrollment Form'!$B172<>\"Subscriber\",'Enrollment Form'!$C172=\"ROC\"),\"-\",IF(AND('Enrollment Form'!$B172=\"Subscriber\",'Enrollment Form'!$C172=\"Enroll\",'Enrollment Form'!$AQ172<>\"\"),\"Y\",\"N\")))","v":""},{"$f":"IF($B165=\"N\",\"\",IF(OR('Enrollment Form'!$B172<>\"Subscriber\",'Enrollment Form'!$C172=\"ROC\"),\"-\",IF(AND('Enrollment Form'!$B172=\"Subscriber\",'Enrollment Form'!$C172=\"Enroll\",'Enrollment Form'!$AS172<>\"\"),\"Y\",\"N\")))","v":""},{"$f":"IF($B165=\"N\",\"\",IF($Q165=\"-\",\"-\",IF(AND($Q165=\"Y\",'Enrollment Form'!$AS172=\"No\"),\"-\",IF(AND($Q165=\"Y\",'Enrollment Form'!$AS172=\"Yes\",'Enrollment Form'!$AT172<>\"\"),\"Y\",\"N\"))))","v":""},{"$f":"IF($B165=\"N\",\"\",IF(OR('Enrollment Form'!$B172<>\"Subscriber\",'Enrollment Form'!$C172=\"ROC\"),\"-\",IF(AND('Enrollment Form'!$B172=\"Subscriber\",'Enrollment Form'!$C172=\"Enroll\",'Enrollment Form'!$CV172<>\"\"),\"Y\",\"N\")))","v":""},{"$f":"IF($B165=\"N\",\"\",IF($S165=\"-\",\"-\",IF(AND($S165=\"Y\",'Enrollment Form'!$CV172=\"No\"),\"-\",IF(AND($S165=\"Y\",'Enrollment Form'!$CV172=\"Yes\",'Enrollment Form'!$CW172<>\"\"),\"Y\",\"N\"))))","v":""},{"$f":"IF(OR('Enrollment Form'!$AY172=\"Yes\",'Enrollment Form'!$AY172=\"\"),\"-\",IF(OR(AND('Enrollment Form'!$AY172=\"No\",ISERROR(FIND(\"HMO\",VLOOKUP('Enrollment Form'!G172,'Enrollment Form'!H$11:J$1000,3,FALSE),1))=FALSE,COUNTA('Enrollment Form'!$AZ172:$BC172)=4),AND('Enrollment Form'!$AY172=\"No\",ISERROR(FIND(\"HMO\",VLOOKUP('Enrollment Form'!G172,'Enrollment Form'!H$11:J$1000,3,FALSE),1))=FALSE,COUNTA('Enrollment Form'!$BT172:$BW172)=4)),\"Y\",\"N\"))","v":"-"},{"$f":"IF($B165=\"N\",\"\",IF('Enrollment Form'!$B172=\"Subscriber\",\"-\",IF(COUNTA('Enrollment Form'!$BL172,'Enrollment Form'!$BN172)=2,\"Y\",\"N\")))","v":""},{"$f":"IF($B165=\"N\",\"\",IF(OR('Enrollment Form'!$AX172=\"\",'Enrollment Form'!$AX172=\"No\"),\"-\",IF(AND('Enrollment Form'!$AX172=\"Yes\",COUNTA('Enrollment Form'!$CR172)=1),\"Y\",\"N\")))","v":""},{"$f":"IF(OR('Enrollment Form'!$CR172=\"\",'Enrollment Form'!$CR172=\"No\"),\"-\",IF(COUNTA('Enrollment Form'!$CT172:$CU172)=2,\"Y\",\"N\"))","v":"-"},{"$f":"IF($B165=\"N\",\"\",IF(COUNTIF('Enrollment Form'!$DG172:$DP172,\"Other\")=COUNTA('Enrollment Form'!$DK172,'Enrollment Form'!$DH172,'Enrollment Form'!$DN172,'Enrollment Form'!$DQ172),\"Y\",\"N\"))","v":""},{"$f":"IF($B165=\"N\",\"\",IF(OR('Enrollment Form'!B172<>\"Subscriber\",'Enrollment Form'!C172=\"ROC\",COUNTIF('Enrollment Form'!AV172:AW172,\"Yes\")>=1),\"-\",IF(AND('Enrollment Form'!C172=\"Enroll\",COUNTIF('Enrollment Form'!AV172:AW172,\"No\")=2,'Enrollment Form'!AX172=\"\"),\"N\",\"Y\")))","v":""},{"$f":"IF(OR(B165=\"N\",'Enrollment Form'!B172<>\"Subscriber\",'Enrollment Form'!C172=\"ROC\",'Enrollment Form'!O172<>\"Multiple of Salary\"),\"-\",IF(COUNTA('Enrollment Form'!T172:U172)<2,\"N\",\"Y\"))","v":"-"},{"$f":"IF(B165=\"N\",\"\",IF(OR('Enrollment Form'!C172=\"ROC\",'Enrollment Form'!B172<>\"Subscriber\",'Enrollment Form'!O172=\"Waive\",'Enrollment Form'!O172=\"\"),\"-\",IF('Enrollment Form'!P172=\"\",\"N\",\"Y\")))","v":""},{"$f":"IF($B165=\"N\",\"\",IF(AND('Enrollment Form'!$C172=\"ROC\",'Enrollment Form'!$DR172<>\"\"),\"Y\",IF(AND('Enrollment Form'!$C172=\"ROC\",'Enrollment Form'!$DR172=\"\"),\"N\",IF(AND('Enrollment Form'!$C172=\"Enroll\",'Enrollment Form'!$B172=\"Subscriber\",'Enrollment Form'!$CX172=\"No\",'Enrollment Form'!$DR172=\"\"),\"N\",IF(AND('Enrollment Form'!$C172=\"Enroll\",'Enrollment Form'!$B172=\"Subscriber\",'Enrollment Form'!$CX172=\"Yes\"),\"-\",\"Y\")))))","v":""},{"$f":"IF($B165=\"N\",\"\",IF(AND('Enrollment Form'!$C172=\"ROC\",'Enrollment Form'!$DS172<>\"\"),\"Y\",IF(AND('Enrollment Form'!$C172=\"ROC\",'Enrollment Form'!$DS172=\"\"),\"N\",IF(AND('Enrollment Form'!$C172=\"Enroll\",'Enrollment Form'!$B172=\"Subscriber\",'Enrollment Form'!$CX172=\"No\",'Enrollment Form'!$DS172=\"\"),\"N\",IF(AND('Enrollment Form'!$C172=\"Enroll\",'Enrollment Form'!$B172=\"Subscriber\",'Enrollment Form'!$CX172=\"Yes\"),\"-\",\"Y\")))))","v":""},{"$f":"IF('Enrollment Form'!AH172=\"\",\"\",IF(ISERROR(SEARCH(\".\",'Enrollment Form'!AH172,SEARCH(\"@\",'Enrollment Form'!AH172))),\"N\",\"Y\"))","v":""},{"$f":"IF(OR($B165=\"N\",'Enrollment Form'!$G172=\"\"),\"\",IF('Enrollment Form'!$B172<>\"Subscriber\",\"-\",IF(COUNTIF('Enrollment Form'!$AV172:$AW172,\"Yes\")=2,\"N\",\"Y\")))","v":""},{"$f":"IF(OR('Enrollment Form'!$CJ172=\"\",'Enrollment Form'!$CJ172=\"No\"),\"-\",IF(AND('Enrollment Form'!$CJ172=\"Yes\",'Enrollment Form'!$CK172=\"\"),\"N\",\"Y\"))","v":"-"},{"$f":"IF(OR('Enrollment Form'!$CL172=\"\",'Enrollment Form'!$CL172=\"No\"),\"-\",IF(AND('Enrollment Form'!$CL172=\"Yes\",'Enrollment Form'!$CM172=\"\"),\"N\",\"Y\"))","v":"-"},{"$f":"IF(OR('Enrollment Form'!$CN172=\"\",'Enrollment Form'!$CN172=\"No\"),\"-\",IF(AND('Enrollment Form'!$CN172=\"Yes\",'Enrollment Form'!$CO172=\"\"),\"N\",\"Y\"))","v":"-"},{"$f":"IF(OR('Enrollment Form'!$CN172=\"\",'Enrollment Form'!$CN172=\"No\"),\"-\",IF(AND('Enrollment Form'!$CN172=\"Yes\",'Enrollment Form'!$CP172=\"\"),\"N\",\"Y\"))","v":"-"},{"$f":"IF('Enrollment Form'!B172<>\"Subscriber\",\"-\",IF(AND('Enrollment Form'!B172=\"Subscriber\",'Enrollment Form'!C172=\"Enroll\",'Enrollment Form'!AA172=\"\"),\"N\",\"Y\"))","v":"-"},{"$f":"IF(OR('Enrollment Form'!B172=\"Subscriber\",'Enrollment Form'!B172=\"\"),\"-\",IF('Enrollment Form'!BP172=\"\",\"N\",\"Y\"))","v":"-"},{"$f":"IF('Enrollment Form'!B172<>\"Subscriber\",\"-\",IF(AND('Enrollment Form'!B172=\"Subscriber\",'Enrollment Form'!G172=\"\"),\"N\",\"Y\"))","v":"-"},{"$f":"IF('Enrollment Form'!A172=\"\",\"\",IF('Enrollment Form'!B172=\"Subscriber\",\"-\",IF(AND('Enrollment Form'!B172<>\"Subscriber\",'Enrollment Form'!G172='Enrollment Form'!H172),\"N\",\"Y\")))","v":""},0]
[173,{"$f":"IF('Enrollment Form'!$A173<>\"\",\"Y\",\"N\")","v":"N"},{"$f":"IF(AND('Enrollment Form'!$B173=\"\",'Enrollment Form'!$C173<>\"\"),\"N\",IF($B166=\"N\",\"\",\"Y\"))","v":""},{"$f":"IF(OR($B166=\"N\",'Enrollment Form'!G173=\"\"),\"\",IF('Enrollment Form'!$B173<>\"Subscriber\",\"\",IF('Enrollment Form'!$G173='Enrollment Form'!$H173,\"Y\",\"N\")))","v":""},{"$f":"IF($B166=\"N\",\"\",IF(AND(COUNTIFS('Enrollment Form'!$H$11:$H$1000,'Enrollment Form'!$H173,'Enrollment Form'!$B$11:$B$1000,'Enrollment Form'!$B173)>1,'Enrollment Form'!$H173<>\"\"),\"N\",\"Y\"))","v":""},{"$f":"IF($B166=\"N\",\"\",IF(LEN('Enrollment Form'!$Y173)=0,\"\",IF(LEN('Enrollment Form'!$Y173)<>5,\"N\",\"Y\")))","v":""},{"$f":"IF($B166=\"N\",\"\",IF(LEN('Enrollment Form'!$AD173=0),\"\",IF(LEN('Enrollment Form'!$AD173)<>5,\"N\",\"Y\")))","v":""},{"$f":"IF($B166=\"N\",\"\",IF(LEN('Enrollment Form'!$BS173=0),\"\",IF(LEN('Enrollment Form'!$BS173)<>5,\"N\",\"Y\")))","v":""},{"$f":"IF($B166=\"N\",\"\",IF(LEN('Enrollment Form'!$AE173)=0,\"\",IF(LEN('Enrollment Form'!$AE173)<>10,\"N\",\"Y\")))","v":""},{"$f":"IF($B166=\"N\",\"\",IF(LEN('Enrollment Form'!$AF173)=0,\"\",IF(LEN('Enrollment Form'!$AF173)<>10,\"N\",\"Y\")))","v":""},{"$f":"IF('Enrollment Form'!$O173<>\"Graded\",\"-\",IF(AND('Enrollment Form'!$O173=\"Graded\",'Enrollment Form'!$AR173<>\"\"),\"Y\",\"N\"))","v":"-"},{"$f":"IF($B166=\"N\",\"\",IF(OR('Enrollment Form'!$B173<>\"Subscriber\",'Enrollment Form'!$C173=\"ROC\"),\"-\",IF(AND('Enrollment Form'!$B173=\"Subscriber\",'Enrollment Form'!$C173=\"Enroll\",'Enrollment Form'!$AJ173<>\"\"),\"Y\",\"N\")))","v":""},{"$f":"IF($B166=\"N\",\"\",IF(OR('Enrollment Form'!$B173<>\"Subscriber\",'Enrollment Form'!$C173=\"ROC\"),\"-\",IF(AND('Enrollment Form'!$B173=\"Subscriber\",'Enrollment Form'!$C173=\"Enroll\",'Enrollment Form'!$AK173<>\"\"),\"Y\",\"N\")))","v":""},{"$f":"IF($B166=\"N\",\"\",IF(OR('Enrollment Form'!$B173<>\"Subscriber\",'Enrollment Form'!$C173=\"ROC\"),\"-\",IF(AND('Enrollment Form'!$B173=\"Subscriber\",'Enrollment Form'!$C173=\"Enroll\",'Enrollment Form'!$AL173<>\"\"),\"Y\",\"N\")))","v":""},{"$f":"IF($B166=\"N\",\"\",IF(OR('Enrollment Form'!$B173<>\"Subscriber\",'Enrollment Form'!$C173=\"ROC\"),\"-\",IF(AND('Enrollment Form'!$B173=\"Subscriber\",'Enrollment Form'!$C173=\"Enroll\",'Enrollment Form'!$AP173<>\"\"),\"Y\",\"N\")))","v":""},{"$f":"IF($B166=\"N\",\"\",IF(OR('Enrollment Form'!$B173<>\"Subscriber\",'Enrollment Form'!$C173=\"ROC\"),\"-\",IF(AND('Enrollment Form'!$B173=\"Subscriber\",'Enrollment Form'!$C173=\"Enroll\",'Enrollment Form'!$AQ173<>\"\"),\"Y\",\"N\")))","v":""},{"$f":"IF($B166=\"N\",\"\",IF(OR('Enrollment Form'!$B173<>\"Subscriber\",'Enrollment Form'!$C173=\"ROC\"),\"-\",IF(AND('Enrollment Form'!$B173=\"Subscriber\",'Enrollment Form'!$C173=\"Enroll\",'Enrollment Form'!$AS173<>\"\"),\"Y\",\"N\")))","v":""},{"$f":"IF($B166=\"N\",\"\",IF($Q166=\"-\",\"-\",IF(AND($Q166=\"Y\",'Enrollment Form'!$AS173=\"No\"),\"-\",IF(AND($Q166=\"Y\",'Enrollment Form'!$AS173=\"Yes\",'Enrollment Form'!$AT173<>\"\"),\"Y\",\"N\"))))","v":""},{"$f":"IF($B166=\"N\",\"\",IF(OR('Enrollment Form'!$B173<>\"Subscriber\",'Enrollment Form'!$C173=\"ROC\"),\"-\",IF(AND('Enrollment Form'!$B173=\"Subscriber\",'Enrollment Form'!$C173=\"Enroll\",'Enrollment Form'!$CV173<>\"\"),\"Y\",\"N\")))","v":""},{"$f":"IF($B166=\"N\",\"\",IF($S166=\"-\",\"-\",IF(AND($S166=\"Y\",'Enrollment Form'!$CV173=\"No\"),\"-\",IF(AND($S166=\"Y\",'Enrollment Form'!$CV173=\"Yes\",'Enrollment Form'!$CW173<>\"\"),\"Y\",\"N\"))))","v":""},{"$f":"IF(OR('Enrollment Form'!$AY173=\"Yes\",'Enrollment Form'!$AY173=\"\"),\"-\",IF(OR(AND('Enrollment Form'!$AY173=\"No\",ISERROR(FIND(\"HMO\",VLOOKUP('Enrollment Form'!G173,'Enrollment Form'!H$11:J$1000,3,FALSE),1))=FALSE,COUNTA('Enrollment Form'!$AZ173:$BC173)=4),AND('Enrollment Form'!$AY173=\"No\",ISERROR(FIND(\"HMO\",VLOOKUP('Enrollment Form'!G173,'Enrollment Form'!H$11:J$1000,3,FALSE),1))=FALSE,COUNTA('Enrollment Form'!$BT173:$BW173)=4)),\"Y\",\"N\"))","v":"-"},{"$f":"IF($B166=\"N\",\"\",IF('Enrollment Form'!$B173=\"Subscriber\",\"-\",IF(COUNTA('Enrollment Form'!$BL173,'Enrollment Form'!$BN173)=2,\"Y\",\"N\")))","v":""},{"$f":"IF($B166=\"N\",\"\",IF(OR('Enrollment Form'!$AX173=\"\",'Enrollment Form'!$AX173=\"No\"),\"-\",IF(AND('Enrollment Form'!$AX173=\"Yes\",COUNTA('Enrollment Form'!$CR173)=1),\"Y\",\"N\")))","v":""},{"$f":"IF(OR('Enrollment Form'!$CR173=\"\",'Enrollment Form'!$CR173=\"No\"),\"-\",IF(COUNTA('Enrollment Form'!$CT173:$CU173)=2,\"Y\",\"N\"))","v":"-"},{"$f":"IF($B166=\"N\",\"\",IF(COUNTIF('Enrollment Form'!$DG173:$DP173,\"Other\")=COUNTA('Enrollment Form'!$DK173,'Enrollment Form'!$DH173,'Enrollment Form'!$DN173,'Enrollment Form'!$DQ173),\"Y\",\"N\"))","v":""},{"$f":"IF($B166=\"N\",\"\",IF(OR('Enrollment Form'!B173<>\"Subscriber\",'Enrollment Form'!C173=\"ROC\",COUNTIF('Enrollment Form'!AV173:AW173,\"Yes\")>=1),\"-\",IF(AND('Enrollment Form'!C173=\"Enroll\",COUNTIF('Enrollment Form'!AV173:AW173,\"No\")=2,'Enrollment Form'!AX173=\"\"),\"N\",\"Y\")))","v":""},{"$f":"IF(OR(B166=\"N\",'Enrollment Form'!B173<>\"Subscriber\",'Enrollment Form'!C173=\"ROC\",'Enrollment Form'!O173<>\"Multiple of Salary\"),\"-\",IF(COUNTA('Enrollment Form'!T173:U173)<2,\"N\",\"Y\"))","v":"-"},{"$f":"IF(B166=\"N\",\"\",IF(OR('Enrollment Form'!C173=\"ROC\",'Enrollment Form'!B173<>\"Subscriber\",'Enrollment Form'!O173=\"Waive\",'Enrollment Form'!O173=\"\"),\"-\",IF('Enrollment Form'!P173=\"\",\"N\",\"Y\")))","v":""},{"$f":"IF($B166=\"N\",\"\",IF(AND('Enrollment Form'!$C173=\"ROC\",'Enrollment Form'!$DR173<>\"\"),\"Y\",IF(AND('Enrollment Form'!$C173=\"ROC\",'Enrollment Form'!$DR173=\"\"),\"N\",IF(AND('Enrollment Form'!$C173=\"Enroll\",'Enrollment Form'!$B173=\"Subscriber\",'Enrollment Form'!$CX173=\"No\",'Enrollment Form'!$DR173=\"\"),\"N\",IF(AND('Enrollment Form'!$C173=\"Enroll\",'Enrollment Form'!$B173=\"Subscriber\",'Enrollment Form'!$CX173=\"Yes\"),\"-\",\"Y\")))))","v":""},{"$f":"IF($B166=\"N\",\"\",IF(AND('Enrollment Form'!$C173=\"ROC\",'Enrollment Form'!$DS173<>\"\"),\"Y\",IF(AND('Enrollment Form'!$C173=\"ROC\",'Enrollment Form'!$DS173=\"\"),\"N\",IF(AND('Enrollment Form'!$C173=\"Enroll\",'Enrollment Form'!$B173=\"Subscriber\",'Enrollment Form'!$CX173=\"No\",'Enrollment Form'!$DS173=\"\"),\"N\",IF(AND('Enrollment Form'!$C173=\"Enroll\",'Enrollment Form'!$B173=\"Subscriber\",'Enrollment Form'!$CX173=\"Yes\"),\"-\",\"Y\")))))","v":""},{"$f":"IF('Enrollment Form'!AH173=\"\",\"\",IF(ISERROR(SEARCH(\".\",'Enrollment Form'!AH173,SEARCH(\"@\",'Enrollment Form'!AH173))),\"N\",\"Y\"))","v":""},{"$f":"IF(OR($B166=\"N\",'Enrollment Form'!$G173=\"\"),\"\",IF('Enrollment Form'!$B173<>\"Subscriber\",\"-\",IF(COUNTIF('Enrollment Form'!$AV173:$AW173,\"Yes\")=2,\"N\",\"Y\")))","v":""},{"$f":"IF(OR('Enrollment Form'!$CJ173=\"\",'Enrollment Form'!$CJ173=\"No\"),\"-\",IF(AND('Enrollment Form'!$CJ173=\"Yes\",'Enrollment Form'!$CK173=\"\"),\"N\",\"Y\"))","v":"-"},{"$f":"IF(OR('Enrollment Form'!$CL173=\"\",'Enrollment Form'!$CL173=\"No\"),\"-\",IF(AND('Enrollment Form'!$CL173=\"Yes\",'Enrollment Form'!$CM173=\"\"),\"N\",\"Y\"))","v":"-"},{"$f":"IF(OR('Enrollment Form'!$CN173=\"\",'Enrollment Form'!$CN173=\"No\"),\"-\",IF(AND('Enrollment Form'!$CN173=\"Yes\",'Enrollment Form'!$CO173=\"\"),\"N\",\"Y\"))","v":"-"},{"$f":"IF(OR('Enrollment Form'!$CN173=\"\",'Enrollment Form'!$CN173=\"No\"),\"-\",IF(AND('Enrollment Form'!$CN173=\"Yes\",'Enrollment Form'!$CP173=\"\"),\"N\",\"Y\"))","v":"-"},{"$f":"IF('Enrollment Form'!B173<>\"Subscriber\",\"-\",IF(AND('Enrollment Form'!B173=\"Subscriber\",'Enrollment Form'!C173=\"Enroll\",'Enrollment Form'!AA173=\"\"),\"N\",\"Y\"))","v":"-"},{"$f":"IF(OR('Enrollment Form'!B173=\"Subscriber\",'Enrollment Form'!B173=\"\"),\"-\",IF('Enrollment Form'!BP173=\"\",\"N\",\"Y\"))","v":"-"},{"$f":"IF('Enrollment Form'!B173<>\"Subscriber\",\"-\",IF(AND('Enrollment Form'!B173=\"Subscriber\",'Enrollment Form'!G173=\"\"),\"N\",\"Y\"))","v":"-"},{"$f":"IF('Enrollment Form'!A173=\"\",\"\",IF('Enrollment Form'!B173=\"Subscriber\",\"-\",IF(AND('Enrollment Form'!B173<>\"Subscriber\",'Enrollment Form'!G173='Enrollment Form'!H173),\"N\",\"Y\")))","v":""},0]
[174,{"$f":"IF('Enrollment Form'!$A174<>\"\",\"Y\",\"N\")","v":"N"},{"$f":"IF(AND('Enrollment Form'!$B174=\"\",'Enrollment Form'!$C174<>\"\"),\"N\",IF($B167=\"N\",\"\",\"Y\"))","v":""},{"$f":"IF(OR($B167=\"N\",'Enrollment Form'!G174=\"\"),\"\",IF('Enrollment Form'!$B174<>\"Subscriber\",\"\",IF('Enrollment Form'!$G174='Enrollment Form'!$H174,\"Y\",\"N\")))","v":""},{"$f":"IF($B167=\"N\",\"\",IF(AND(COUNTIFS('Enrollment Form'!$H$11:$H$1000,'Enrollment Form'!$H174,'Enrollment Form'!$B$11:$B$1000,'Enrollment Form'!$B174)>1,'Enrollment Form'!$H174<>\"\"),\"N\",\"Y\"))","v":""},{"$f":"IF($B167=\"N\",\"\",IF(LEN('Enrollment Form'!$Y174)=0,\"\",IF(LEN('Enrollment Form'!$Y174)<>5,\"N\",\"Y\")))","v":""},{"$f":"IF($B167=\"N\",\"\",IF(LEN('Enrollment Form'!$AD174=0),\"\",IF(LEN('Enrollment Form'!$AD174)<>5,\"N\",\"Y\")))","v":""},{"$f":"IF($B167=\"N\",\"\",IF(LEN('Enrollment Form'!$BS174=0),\"\",IF(LEN('Enrollment Form'!$BS174)<>5,\"N\",\"Y\")))","v":""},{"$f":"IF($B167=\"N\",\"\",IF(LEN('Enrollment Form'!$AE174)=0,\"\",IF(LEN('Enrollment Form'!$AE174)<>10,\"N\",\"Y\")))","v":""},{"$f":"IF($B167=\"N\",\"\",IF(LEN('Enrollment Form'!$AF174)=0,\"\",IF(LEN('Enrollment Form'!$AF174)<>10,\"N\",\"Y\")))","v":""},{"$f":"IF('Enrollment Form'!$O174<>\"Graded\",\"-\",IF(AND('Enrollment Form'!$O174=\"Graded\",'Enrollment Form'!$AR174<>\"\"),\"Y\",\"N\"))","v":"-"},{"$f":"IF($B167=\"N\",\"\",IF(OR('Enrollment Form'!$B174<>\"Subscriber\",'Enrollment Form'!$C174=\"ROC\"),\"-\",IF(AND('Enrollment Form'!$B174=\"Subscriber\",'Enrollment Form'!$C174=\"Enroll\",'Enrollment Form'!$AJ174<>\"\"),\"Y\",\"N\")))","v":""},{"$f":"IF($B167=\"N\",\"\",IF(OR('Enrollment Form'!$B174<>\"Subscriber\",'Enrollment Form'!$C174=\"ROC\"),\"-\",IF(AND('Enrollment Form'!$B174=\"Subscriber\",'Enrollment Form'!$C174=\"Enroll\",'Enrollment Form'!$AK174<>\"\"),\"Y\",\"N\")))","v":""},{"$f":"IF($B167=\"N\",\"\",IF(OR('Enrollment Form'!$B174<>\"Subscriber\",'Enrollment Form'!$C174=\"ROC\"),\"-\",IF(AND('Enrollment Form'!$B174=\"Subscriber\",'Enrollment Form'!$C174=\"Enroll\",'Enrollment Form'!$AL174<>\"\"),\"Y\",\"N\")))","v":""},{"$f":"IF($B167=\"N\",\"\",IF(OR('Enrollment Form'!$B174<>\"Subscriber\",'Enrollment Form'!$C174=\"ROC\"),\"-\",IF(AND('Enrollment Form'!$B174=\"Subscriber\",'Enrollment Form'!$C174=\"Enroll\",'Enrollment Form'!$AP174<>\"\"),\"Y\",\"N\")))","v":""},{"$f":"IF($B167=\"N\",\"\",IF(OR('Enrollment Form'!$B174<>\"Subscriber\",'Enrollment Form'!$C174=\"ROC\"),\"-\",IF(AND('Enrollment Form'!$B174=\"Subscriber\",'Enrollment Form'!$C174=\"Enroll\",'Enrollment Form'!$AQ174<>\"\"),\"Y\",\"N\")))","v":""},{"$f":"IF($B167=\"N\",\"\",IF(OR('Enrollment Form'!$B174<>\"Subscriber\",'Enrollment Form'!$C174=\"ROC\"),\"-\",IF(AND('Enrollment Form'!$B174=\"Subscriber\",'Enrollment Form'!$C174=\"Enroll\",'Enrollment Form'!$AS174<>\"\"),\"Y\",\"N\")))","v":""},{"$f":"IF($B167=\"N\",\"\",IF($Q167=\"-\",\"-\",IF(AND($Q167=\"Y\",'Enrollment Form'!$AS174=\"No\"),\"-\",IF(AND($Q167=\"Y\",'Enrollment Form'!$AS174=\"Yes\",'Enrollment Form'!$AT174<>\"\"),\"Y\",\"N\"))))","v":""},{"$f":"IF($B167=\"N\",\"\",IF(OR('Enrollment Form'!$B174<>\"Subscriber\",'Enrollment Form'!$C174=\"ROC\"),\"-\",IF(AND('Enrollment Form'!$B174=\"Subscriber\",'Enrollment Form'!$C174=\"Enroll\",'Enrollment Form'!$CV174<>\"\"),\"Y\",\"N\")))","v":""},{"$f":"IF($B167=\"N\",\"\",IF($S167=\"-\",\"-\",IF(AND($S167=\"Y\",'Enrollment Form'!$CV174=\"No\"),\"-\",IF(AND($S167=\"Y\",'Enrollment Form'!$CV174=\"Yes\",'Enrollment Form'!$CW174<>\"\"),\"Y\",\"N\"))))","v":""},{"$f":"IF(OR('Enrollment Form'!$AY174=\"Yes\",'Enrollment Form'!$AY174=\"\"),\"-\",IF(OR(AND('Enrollment Form'!$AY174=\"No\",ISERROR(FIND(\"HMO\",VLOOKUP('Enrollment Form'!G174,'Enrollment Form'!H$11:J$1000,3,FALSE),1))=FALSE,COUNTA('Enrollment Form'!$AZ174:$BC174)=4),AND('Enrollment Form'!$AY174=\"No\",ISERROR(FIND(\"HMO\",VLOOKUP('Enrollment Form'!G174,'Enrollment Form'!H$11:J$1000,3,FALSE),1))=FALSE,COUNTA('Enrollment Form'!$BT174:$BW174)=4)),\"Y\",\"N\"))","v":"-"},{"$f":"IF($B167=\"N\",\"\",IF('Enrollment Form'!$B174=\"Subscriber\",\"-\",IF(COUNTA('Enrollment Form'!$BL174,'Enrollment Form'!$BN174)=2,\"Y\",\"N\")))","v":""},{"$f":"IF($B167=\"N\",\"\",IF(OR('Enrollment Form'!$AX174=\"\",'Enrollment Form'!$AX174=\"No\"),\"-\",IF(AND('Enrollment Form'!$AX174=\"Yes\",COUNTA('Enrollment Form'!$CR174)=1),\"Y\",\"N\")))","v":""},{"$f":"IF(OR('Enrollment Form'!$CR174=\"\",'Enrollment Form'!$CR174=\"No\"),\"-\",IF(COUNTA('Enrollment Form'!$CT174:$CU174)=2,\"Y\",\"N\"))","v":"-"},{"$f":"IF($B167=\"N\",\"\",IF(COUNTIF('Enrollment Form'!$DG174:$DP174,\"Other\")=COUNTA('Enrollment Form'!$DK174,'Enrollment Form'!$DH174,'Enrollment Form'!$DN174,'Enrollment Form'!$DQ174),\"Y\",\"N\"))","v":""},{"$f":"IF($B167=\"N\",\"\",IF(OR('Enrollment Form'!B174<>\"Subscriber\",'Enrollment Form'!C174=\"ROC\",COUNTIF('Enrollment Form'!AV174:AW174,\"Yes\")>=1),\"-\",IF(AND('Enrollment Form'!C174=\"Enroll\",COUNTIF('Enrollment Form'!AV174:AW174,\"No\")=2,'Enrollment Form'!AX174=\"\"),\"N\",\"Y\")))","v":""},{"$f":"IF(OR(B167=\"N\",'Enrollment Form'!B174<>\"Subscriber\",'Enrollment Form'!C174=\"ROC\",'Enrollment Form'!O174<>\"Multiple of Salary\"),\"-\",IF(COUNTA('Enrollment Form'!T174:U174)<2,\"N\",\"Y\"))","v":"-"},{"$f":"IF(B167=\"N\",\"\",IF(OR('Enrollment Form'!C174=\"ROC\",'Enrollment Form'!B174<>\"Subscriber\",'Enrollment Form'!O174=\"Waive\",'Enrollment Form'!O174=\"\"),\"-\",IF('Enrollment Form'!P174=\"\",\"N\",\"Y\")))","v":""},{"$f":"IF($B167=\"N\",\"\",IF(AND('Enrollment Form'!$C174=\"ROC\",'Enrollment Form'!$DR174<>\"\"),\"Y\",IF(AND('Enrollment Form'!$C174=\"ROC\",'Enrollment Form'!$DR174=\"\"),\"N\",IF(AND('Enrollment Form'!$C174=\"Enroll\",'Enrollment Form'!$B174=\"Subscriber\",'Enrollment Form'!$CX174=\"No\",'Enrollment Form'!$DR174=\"\"),\"N\",IF(AND('Enrollment Form'!$C174=\"Enroll\",'Enrollment Form'!$B174=\"Subscriber\",'Enrollment Form'!$CX174=\"Yes\"),\"-\",\"Y\")))))","v":""},{"$f":"IF($B167=\"N\",\"\",IF(AND('Enrollment Form'!$C174=\"ROC\",'Enrollment Form'!$DS174<>\"\"),\"Y\",IF(AND('Enrollment Form'!$C174=\"ROC\",'Enrollment Form'!$DS174=\"\"),\"N\",IF(AND('Enrollment Form'!$C174=\"Enroll\",'Enrollment Form'!$B174=\"Subscriber\",'Enrollment Form'!$CX174=\"No\",'Enrollment Form'!$DS174=\"\"),\"N\",IF(AND('Enrollment Form'!$C174=\"Enroll\",'Enrollment Form'!$B174=\"Subscriber\",'Enrollment Form'!$CX174=\"Yes\"),\"-\",\"Y\")))))","v":""},{"$f":"IF('Enrollment Form'!AH174=\"\",\"\",IF(ISERROR(SEARCH(\".\",'Enrollment Form'!AH174,SEARCH(\"@\",'Enrollment Form'!AH174))),\"N\",\"Y\"))","v":""},{"$f":"IF(OR($B167=\"N\",'Enrollment Form'!$G174=\"\"),\"\",IF('Enrollment Form'!$B174<>\"Subscriber\",\"-\",IF(COUNTIF('Enrollment Form'!$AV174:$AW174,\"Yes\")=2,\"N\",\"Y\")))","v":""},{"$f":"IF(OR('Enrollment Form'!$CJ174=\"\",'Enrollment Form'!$CJ174=\"No\"),\"-\",IF(AND('Enrollment Form'!$CJ174=\"Yes\",'Enrollment Form'!$CK174=\"\"),\"N\",\"Y\"))","v":"-"},{"$f":"IF(OR('Enrollment Form'!$CL174=\"\",'Enrollment Form'!$CL174=\"No\"),\"-\",IF(AND('Enrollment Form'!$CL174=\"Yes\",'Enrollment Form'!$CM174=\"\"),\"N\",\"Y\"))","v":"-"},{"$f":"IF(OR('Enrollment Form'!$CN174=\"\",'Enrollment Form'!$CN174=\"No\"),\"-\",IF(AND('Enrollment Form'!$CN174=\"Yes\",'Enrollment Form'!$CO174=\"\"),\"N\",\"Y\"))","v":"-"},{"$f":"IF(OR('Enrollment Form'!$CN174=\"\",'Enrollment Form'!$CN174=\"No\"),\"-\",IF(AND('Enrollment Form'!$CN174=\"Yes\",'Enrollment Form'!$CP174=\"\"),\"N\",\"Y\"))","v":"-"},{"$f":"IF('Enrollment Form'!B174<>\"Subscriber\",\"-\",IF(AND('Enrollment Form'!B174=\"Subscriber\",'Enrollment Form'!C174=\"Enroll\",'Enrollment Form'!AA174=\"\"),\"N\",\"Y\"))","v":"-"},{"$f":"IF(OR('Enrollment Form'!B174=\"Subscriber\",'Enrollment Form'!B174=\"\"),\"-\",IF('Enrollment Form'!BP174=\"\",\"N\",\"Y\"))","v":"-"},{"$f":"IF('Enrollment Form'!B174<>\"Subscriber\",\"-\",IF(AND('Enrollment Form'!B174=\"Subscriber\",'Enrollment Form'!G174=\"\"),\"N\",\"Y\"))","v":"-"},{"$f":"IF('Enrollment Form'!A174=\"\",\"\",IF('Enrollment Form'!B174=\"Subscriber\",\"-\",IF(AND('Enrollment Form'!B174<>\"Subscriber\",'Enrollment Form'!G174='Enrollment Form'!H174),\"N\",\"Y\")))","v":""},0]
[175,{"$f":"IF('Enrollment Form'!$A175<>\"\",\"Y\",\"N\")","v":"N"},{"$f":"IF(AND('Enrollment Form'!$B175=\"\",'Enrollment Form'!$C175<>\"\"),\"N\",IF($B168=\"N\",\"\",\"Y\"))","v":""},{"$f":"IF(OR($B168=\"N\",'Enrollment Form'!G175=\"\"),\"\",IF('Enrollment Form'!$B175<>\"Subscriber\",\"\",IF('Enrollment Form'!$G175='Enrollment Form'!$H175,\"Y\",\"N\")))","v":""},{"$f":"IF($B168=\"N\",\"\",IF(AND(COUNTIFS('Enrollment Form'!$H$11:$H$1000,'Enrollment Form'!$H175,'Enrollment Form'!$B$11:$B$1000,'Enrollment Form'!$B175)>1,'Enrollment Form'!$H175<>\"\"),\"N\",\"Y\"))","v":""},{"$f":"IF($B168=\"N\",\"\",IF(LEN('Enrollment Form'!$Y175)=0,\"\",IF(LEN('Enrollment Form'!$Y175)<>5,\"N\",\"Y\")))","v":""},{"$f":"IF($B168=\"N\",\"\",IF(LEN('Enrollment Form'!$AD175=0),\"\",IF(LEN('Enrollment Form'!$AD175)<>5,\"N\",\"Y\")))","v":""},{"$f":"IF($B168=\"N\",\"\",IF(LEN('Enrollment Form'!$BS175=0),\"\",IF(LEN('Enrollment Form'!$BS175)<>5,\"N\",\"Y\")))","v":""},{"$f":"IF($B168=\"N\",\"\",IF(LEN('Enrollment Form'!$AE175)=0,\"\",IF(LEN('Enrollment Form'!$AE175)<>10,\"N\",\"Y\")))","v":""},{"$f":"IF($B168=\"N\",\"\",IF(LEN('Enrollment Form'!$AF175)=0,\"\",IF(LEN('Enrollment Form'!$AF175)<>10,\"N\",\"Y\")))","v":""},{"$f":"IF('Enrollment Form'!$O175<>\"Graded\",\"-\",IF(AND('Enrollment Form'!$O175=\"Graded\",'Enrollment Form'!$AR175<>\"\"),\"Y\",\"N\"))","v":"-"},{"$f":"IF($B168=\"N\",\"\",IF(OR('Enrollment Form'!$B175<>\"Subscriber\",'Enrollment Form'!$C175=\"ROC\"),\"-\",IF(AND('Enrollment Form'!$B175=\"Subscriber\",'Enrollment Form'!$C175=\"Enroll\",'Enrollment Form'!$AJ175<>\"\"),\"Y\",\"N\")))","v":""},{"$f":"IF($B168=\"N\",\"\",IF(OR('Enrollment Form'!$B175<>\"Subscriber\",'Enrollment Form'!$C175=\"ROC\"),\"-\",IF(AND('Enrollment Form'!$B175=\"Subscriber\",'Enrollment Form'!$C175=\"Enroll\",'Enrollment Form'!$AK175<>\"\"),\"Y\",\"N\")))","v":""},{"$f":"IF($B168=\"N\",\"\",IF(OR('Enrollment Form'!$B175<>\"Subscriber\",'Enrollment Form'!$C175=\"ROC\"),\"-\",IF(AND('Enrollment Form'!$B175=\"Subscriber\",'Enrollment Form'!$C175=\"Enroll\",'Enrollment Form'!$AL175<>\"\"),\"Y\",\"N\")))","v":""},{"$f":"IF($B168=\"N\",\"\",IF(OR('Enrollment Form'!$B175<>\"Subscriber\",'Enrollment Form'!$C175=\"ROC\"),\"-\",IF(AND('Enrollment Form'!$B175=\"Subscriber\",'Enrollment Form'!$C175=\"Enroll\",'Enrollment Form'!$AP175<>\"\"),\"Y\",\"N\")))","v":""},{"$f":"IF($B168=\"N\",\"\",IF(OR('Enrollment Form'!$B175<>\"Subscriber\",'Enrollment Form'!$C175=\"ROC\"),\"-\",IF(AND('Enrollment Form'!$B175=\"Subscriber\",'Enrollment Form'!$C175=\"Enroll\",'Enrollment Form'!$AQ175<>\"\"),\"Y\",\"N\")))","v":""},{"$f":"IF($B168=\"N\",\"\",IF(OR('Enrollment Form'!$B175<>\"Subscriber\",'Enrollment Form'!$C175=\"ROC\"),\"-\",IF(AND('Enrollment Form'!$B175=\"Subscriber\",'Enrollment Form'!$C175=\"Enroll\",'Enrollment Form'!$AS175<>\"\"),\"Y\",\"N\")))","v":""},{"$f":"IF($B168=\"N\",\"\",IF($Q168=\"-\",\"-\",IF(AND($Q168=\"Y\",'Enrollment Form'!$AS175=\"No\"),\"-\",IF(AND($Q168=\"Y\",'Enrollment Form'!$AS175=\"Yes\",'Enrollment Form'!$AT175<>\"\"),\"Y\",\"N\"))))","v":""},{"$f":"IF($B168=\"N\",\"\",IF(OR('Enrollment Form'!$B175<>\"Subscriber\",'Enrollment Form'!$C175=\"ROC\"),\"-\",IF(AND('Enrollment Form'!$B175=\"Subscriber\",'Enrollment Form'!$C175=\"Enroll\",'Enrollment Form'!$CV175<>\"\"),\"Y\",\"N\")))","v":""},{"$f":"IF($B168=\"N\",\"\",IF($S168=\"-\",\"-\",IF(AND($S168=\"Y\",'Enrollment Form'!$CV175=\"No\"),\"-\",IF(AND($S168=\"Y\",'Enrollment Form'!$CV175=\"Yes\",'Enrollment Form'!$CW175<>\"\"),\"Y\",\"N\"))))","v":""},{"$f":"IF(OR('Enrollment Form'!$AY175=\"Yes\",'Enrollment Form'!$AY175=\"\"),\"-\",IF(OR(AND('Enrollment Form'!$AY175=\"No\",ISERROR(FIND(\"HMO\",VLOOKUP('Enrollment Form'!G175,'Enrollment Form'!H$11:J$1000,3,FALSE),1))=FALSE,COUNTA('Enrollment Form'!$AZ175:$BC175)=4),AND('Enrollment Form'!$AY175=\"No\",ISERROR(FIND(\"HMO\",VLOOKUP('Enrollment Form'!G175,'Enrollment Form'!H$11:J$1000,3,FALSE),1))=FALSE,COUNTA('Enrollment Form'!$BT175:$BW175)=4)),\"Y\",\"N\"))","v":"-"},{"$f":"IF($B168=\"N\",\"\",IF('Enrollment Form'!$B175=\"Subscriber\",\"-\",IF(COUNTA('Enrollment Form'!$BL175,'Enrollment Form'!$BN175)=2,\"Y\",\"N\")))","v":""},{"$f":"IF($B168=\"N\",\"\",IF(OR('Enrollment Form'!$AX175=\"\",'Enrollment Form'!$AX175=\"No\"),\"-\",IF(AND('Enrollment Form'!$AX175=\"Yes\",COUNTA('Enrollment Form'!$CR175)=1),\"Y\",\"N\")))","v":""},{"$f":"IF(OR('Enrollment Form'!$CR175=\"\",'Enrollment Form'!$CR175=\"No\"),\"-\",IF(COUNTA('Enrollment Form'!$CT175:$CU175)=2,\"Y\",\"N\"))","v":"-"},{"$f":"IF($B168=\"N\",\"\",IF(COUNTIF('Enrollment Form'!$DG175:$DP175,\"Other\")=COUNTA('Enrollment Form'!$DK175,'Enrollment Form'!$DH175,'Enrollment Form'!$DN175,'Enrollment Form'!$DQ175),\"Y\",\"N\"))","v":""},{"$f":"IF($B168=\"N\",\"\",IF(OR('Enrollment Form'!B175<>\"Subscriber\",'Enrollment Form'!C175=\"ROC\",COUNTIF('Enrollment Form'!AV175:AW175,\"Yes\")>=1),\"-\",IF(AND('Enrollment Form'!C175=\"Enroll\",COUNTIF('Enrollment Form'!AV175:AW175,\"No\")=2,'Enrollment Form'!AX175=\"\"),\"N\",\"Y\")))","v":""},{"$f":"IF(OR(B168=\"N\",'Enrollment Form'!B175<>\"Subscriber\",'Enrollment Form'!C175=\"ROC\",'Enrollment Form'!O175<>\"Multiple of Salary\"),\"-\",IF(COUNTA('Enrollment Form'!T175:U175)<2,\"N\",\"Y\"))","v":"-"},{"$f":"IF(B168=\"N\",\"\",IF(OR('Enrollment Form'!C175=\"ROC\",'Enrollment Form'!B175<>\"Subscriber\",'Enrollment Form'!O175=\"Waive\",'Enrollment Form'!O175=\"\"),\"-\",IF('Enrollment Form'!P175=\"\",\"N\",\"Y\")))","v":""},{"$f":"IF($B168=\"N\",\"\",IF(AND('Enrollment Form'!$C175=\"ROC\",'Enrollment Form'!$DR175<>\"\"),\"Y\",IF(AND('Enrollment Form'!$C175=\"ROC\",'Enrollment Form'!$DR175=\"\"),\"N\",IF(AND('Enrollment Form'!$C175=\"Enroll\",'Enrollment Form'!$B175=\"Subscriber\",'Enrollment Form'!$CX175=\"No\",'Enrollment Form'!$DR175=\"\"),\"N\",IF(AND('Enrollment Form'!$C175=\"Enroll\",'Enrollment Form'!$B175=\"Subscriber\",'Enrollment Form'!$CX175=\"Yes\"),\"-\",\"Y\")))))","v":""},{"$f":"IF($B168=\"N\",\"\",IF(AND('Enrollment Form'!$C175=\"ROC\",'Enrollment Form'!$DS175<>\"\"),\"Y\",IF(AND('Enrollment Form'!$C175=\"ROC\",'Enrollment Form'!$DS175=\"\"),\"N\",IF(AND('Enrollment Form'!$C175=\"Enroll\",'Enrollment Form'!$B175=\"Subscriber\",'Enrollment Form'!$CX175=\"No\",'Enrollment Form'!$DS175=\"\"),\"N\",IF(AND('Enrollment Form'!$C175=\"Enroll\",'Enrollment Form'!$B175=\"Subscriber\",'Enrollment Form'!$CX175=\"Yes\"),\"-\",\"Y\")))))","v":""},{"$f":"IF('Enrollment Form'!AH175=\"\",\"\",IF(ISERROR(SEARCH(\".\",'Enrollment Form'!AH175,SEARCH(\"@\",'Enrollment Form'!AH175))),\"N\",\"Y\"))","v":""},{"$f":"IF(OR($B168=\"N\",'Enrollment Form'!$G175=\"\"),\"\",IF('Enrollment Form'!$B175<>\"Subscriber\",\"-\",IF(COUNTIF('Enrollment Form'!$AV175:$AW175,\"Yes\")=2,\"N\",\"Y\")))","v":""},{"$f":"IF(OR('Enrollment Form'!$CJ175=\"\",'Enrollment Form'!$CJ175=\"No\"),\"-\",IF(AND('Enrollment Form'!$CJ175=\"Yes\",'Enrollment Form'!$CK175=\"\"),\"N\",\"Y\"))","v":"-"},{"$f":"IF(OR('Enrollment Form'!$CL175=\"\",'Enrollment Form'!$CL175=\"No\"),\"-\",IF(AND('Enrollment Form'!$CL175=\"Yes\",'Enrollment Form'!$CM175=\"\"),\"N\",\"Y\"))","v":"-"},{"$f":"IF(OR('Enrollment Form'!$CN175=\"\",'Enrollment Form'!$CN175=\"No\"),\"-\",IF(AND('Enrollment Form'!$CN175=\"Yes\",'Enrollment Form'!$CO175=\"\"),\"N\",\"Y\"))","v":"-"},{"$f":"IF(OR('Enrollment Form'!$CN175=\"\",'Enrollment Form'!$CN175=\"No\"),\"-\",IF(AND('Enrollment Form'!$CN175=\"Yes\",'Enrollment Form'!$CP175=\"\"),\"N\",\"Y\"))","v":"-"},{"$f":"IF('Enrollment Form'!B175<>\"Subscriber\",\"-\",IF(AND('Enrollment Form'!B175=\"Subscriber\",'Enrollment Form'!C175=\"Enroll\",'Enrollment Form'!AA175=\"\"),\"N\",\"Y\"))","v":"-"},{"$f":"IF(OR('Enrollment Form'!B175=\"Subscriber\",'Enrollment Form'!B175=\"\"),\"-\",IF('Enrollment Form'!BP175=\"\",\"N\",\"Y\"))","v":"-"},{"$f":"IF('Enrollment Form'!B175<>\"Subscriber\",\"-\",IF(AND('Enrollment Form'!B175=\"Subscriber\",'Enrollment Form'!G175=\"\"),\"N\",\"Y\"))","v":"-"},{"$f":"IF('Enrollment Form'!A175=\"\",\"\",IF('Enrollment Form'!B175=\"Subscriber\",\"-\",IF(AND('Enrollment Form'!B175<>\"Subscriber\",'Enrollment Form'!G175='Enrollment Form'!H175),\"N\",\"Y\")))","v":""},0]
[176,{"$f":"IF('Enrollment Form'!$A176<>\"\",\"Y\",\"N\")","v":"N"},{"$f":"IF(AND('Enrollment Form'!$B176=\"\",'Enrollment Form'!$C176<>\"\"),\"N\",IF($B169=\"N\",\"\",\"Y\"))","v":""},{"$f":"IF(OR($B169=\"N\",'Enrollment Form'!G176=\"\"),\"\",IF('Enrollment Form'!$B176<>\"Subscriber\",\"\",IF('Enrollment Form'!$G176='Enrollment Form'!$H176,\"Y\",\"N\")))","v":""},{"$f":"IF($B169=\"N\",\"\",IF(AND(COUNTIFS('Enrollment Form'!$H$11:$H$1000,'Enrollment Form'!$H176,'Enrollment Form'!$B$11:$B$1000,'Enrollment Form'!$B176)>1,'Enrollment Form'!$H176<>\"\"),\"N\",\"Y\"))","v":""},{"$f":"IF($B169=\"N\",\"\",IF(LEN('Enrollment Form'!$Y176)=0,\"\",IF(LEN('Enrollment Form'!$Y176)<>5,\"N\",\"Y\")))","v":""},{"$f":"IF($B169=\"N\",\"\",IF(LEN('Enrollment Form'!$AD176=0),\"\",IF(LEN('Enrollment Form'!$AD176)<>5,\"N\",\"Y\")))","v":""},{"$f":"IF($B169=\"N\",\"\",IF(LEN('Enrollment Form'!$BS176=0),\"\",IF(LEN('Enrollment Form'!$BS176)<>5,\"N\",\"Y\")))","v":""},{"$f":"IF($B169=\"N\",\"\",IF(LEN('Enrollment Form'!$AE176)=0,\"\",IF(LEN('Enrollment Form'!$AE176)<>10,\"N\",\"Y\")))","v":""},{"$f":"IF($B169=\"N\",\"\",IF(LEN('Enrollment Form'!$AF176)=0,\"\",IF(LEN('Enrollment Form'!$AF176)<>10,\"N\",\"Y\")))","v":""},{"$f":"IF('Enrollment Form'!$O176<>\"Graded\",\"-\",IF(AND('Enrollment Form'!$O176=\"Graded\",'Enrollment Form'!$AR176<>\"\"),\"Y\",\"N\"))","v":"-"},{"$f":"IF($B169=\"N\",\"\",IF(OR('Enrollment Form'!$B176<>\"Subscriber\",'Enrollment Form'!$C176=\"ROC\"),\"-\",IF(AND('Enrollment Form'!$B176=\"Subscriber\",'Enrollment Form'!$C176=\"Enroll\",'Enrollment Form'!$AJ176<>\"\"),\"Y\",\"N\")))","v":""},{"$f":"IF($B169=\"N\",\"\",IF(OR('Enrollment Form'!$B176<>\"Subscriber\",'Enrollment Form'!$C176=\"ROC\"),\"-\",IF(AND('Enrollment Form'!$B176=\"Subscriber\",'Enrollment Form'!$C176=\"Enroll\",'Enrollment Form'!$AK176<>\"\"),\"Y\",\"N\")))","v":""},{"$f":"IF($B169=\"N\",\"\",IF(OR('Enrollment Form'!$B176<>\"Subscriber\",'Enrollment Form'!$C176=\"ROC\"),\"-\",IF(AND('Enrollment Form'!$B176=\"Subscriber\",'Enrollment Form'!$C176=\"Enroll\",'Enrollment Form'!$AL176<>\"\"),\"Y\",\"N\")))","v":""},{"$f":"IF($B169=\"N\",\"\",IF(OR('Enrollment Form'!$B176<>\"Subscriber\",'Enrollment Form'!$C176=\"ROC\"),\"-\",IF(AND('Enrollment Form'!$B176=\"Subscriber\",'Enrollment Form'!$C176=\"Enroll\",'Enrollment Form'!$AP176<>\"\"),\"Y\",\"N\")))","v":""},{"$f":"IF($B169=\"N\",\"\",IF(OR('Enrollment Form'!$B176<>\"Subscriber\",'Enrollment Form'!$C176=\"ROC\"),\"-\",IF(AND('Enrollment Form'!$B176=\"Subscriber\",'Enrollment Form'!$C176=\"Enroll\",'Enrollment Form'!$AQ176<>\"\"),\"Y\",\"N\")))","v":""},{"$f":"IF($B169=\"N\",\"\",IF(OR('Enrollment Form'!$B176<>\"Subscriber\",'Enrollment Form'!$C176=\"ROC\"),\"-\",IF(AND('Enrollment Form'!$B176=\"Subscriber\",'Enrollment Form'!$C176=\"Enroll\",'Enrollment Form'!$AS176<>\"\"),\"Y\",\"N\")))","v":""},{"$f":"IF($B169=\"N\",\"\",IF($Q169=\"-\",\"-\",IF(AND($Q169=\"Y\",'Enrollment Form'!$AS176=\"No\"),\"-\",IF(AND($Q169=\"Y\",'Enrollment Form'!$AS176=\"Yes\",'Enrollment Form'!$AT176<>\"\"),\"Y\",\"N\"))))","v":""},{"$f":"IF($B169=\"N\",\"\",IF(OR('Enrollment Form'!$B176<>\"Subscriber\",'Enrollment Form'!$C176=\"ROC\"),\"-\",IF(AND('Enrollment Form'!$B176=\"Subscriber\",'Enrollment Form'!$C176=\"Enroll\",'Enrollment Form'!$CV176<>\"\"),\"Y\",\"N\")))","v":""},{"$f":"IF($B169=\"N\",\"\",IF($S169=\"-\",\"-\",IF(AND($S169=\"Y\",'Enrollment Form'!$CV176=\"No\"),\"-\",IF(AND($S169=\"Y\",'Enrollment Form'!$CV176=\"Yes\",'Enrollment Form'!$CW176<>\"\"),\"Y\",\"N\"))))","v":""},{"$f":"IF(OR('Enrollment Form'!$AY176=\"Yes\",'Enrollment Form'!$AY176=\"\"),\"-\",IF(OR(AND('Enrollment Form'!$AY176=\"No\",ISERROR(FIND(\"HMO\",VLOOKUP('Enrollment Form'!G176,'Enrollment Form'!H$11:J$1000,3,FALSE),1))=FALSE,COUNTA('Enrollment Form'!$AZ176:$BC176)=4),AND('Enrollment Form'!$AY176=\"No\",ISERROR(FIND(\"HMO\",VLOOKUP('Enrollment Form'!G176,'Enrollment Form'!H$11:J$1000,3,FALSE),1))=FALSE,COUNTA('Enrollment Form'!$BT176:$BW176)=4)),\"Y\",\"N\"))","v":"-"},{"$f":"IF($B169=\"N\",\"\",IF('Enrollment Form'!$B176=\"Subscriber\",\"-\",IF(COUNTA('Enrollment Form'!$BL176,'Enrollment Form'!$BN176)=2,\"Y\",\"N\")))","v":""},{"$f":"IF($B169=\"N\",\"\",IF(OR('Enrollment Form'!$AX176=\"\",'Enrollment Form'!$AX176=\"No\"),\"-\",IF(AND('Enrollment Form'!$AX176=\"Yes\",COUNTA('Enrollment Form'!$CR176)=1),\"Y\",\"N\")))","v":""},{"$f":"IF(OR('Enrollment Form'!$CR176=\"\",'Enrollment Form'!$CR176=\"No\"),\"-\",IF(COUNTA('Enrollment Form'!$CT176:$CU176)=2,\"Y\",\"N\"))","v":"-"},{"$f":"IF($B169=\"N\",\"\",IF(COUNTIF('Enrollment Form'!$DG176:$DP176,\"Other\")=COUNTA('Enrollment Form'!$DK176,'Enrollment Form'!$DH176,'Enrollment Form'!$DN176,'Enrollment Form'!$DQ176),\"Y\",\"N\"))","v":""},{"$f":"IF($B169=\"N\",\"\",IF(OR('Enrollment Form'!B176<>\"Subscriber\",'Enrollment Form'!C176=\"ROC\",COUNTIF('Enrollment Form'!AV176:AW176,\"Yes\")>=1),\"-\",IF(AND('Enrollment Form'!C176=\"Enroll\",COUNTIF('Enrollment Form'!AV176:AW176,\"No\")=2,'Enrollment Form'!AX176=\"\"),\"N\",\"Y\")))","v":""},{"$f":"IF(OR(B169=\"N\",'Enrollment Form'!B176<>\"Subscriber\",'Enrollment Form'!C176=\"ROC\",'Enrollment Form'!O176<>\"Multiple of Salary\"),\"-\",IF(COUNTA('Enrollment Form'!T176:U176)<2,\"N\",\"Y\"))","v":"-"},{"$f":"IF(B169=\"N\",\"\",IF(OR('Enrollment Form'!C176=\"ROC\",'Enrollment Form'!B176<>\"Subscriber\",'Enrollment Form'!O176=\"Waive\",'Enrollment Form'!O176=\"\"),\"-\",IF('Enrollment Form'!P176=\"\",\"N\",\"Y\")))","v":""},{"$f":"IF($B169=\"N\",\"\",IF(AND('Enrollment Form'!$C176=\"ROC\",'Enrollment Form'!$DR176<>\"\"),\"Y\",IF(AND('Enrollment Form'!$C176=\"ROC\",'Enrollment Form'!$DR176=\"\"),\"N\",IF(AND('Enrollment Form'!$C176=\"Enroll\",'Enrollment Form'!$B176=\"Subscriber\",'Enrollment Form'!$CX176=\"No\",'Enrollment Form'!$DR176=\"\"),\"N\",IF(AND('Enrollment Form'!$C176=\"Enroll\",'Enrollment Form'!$B176=\"Subscriber\",'Enrollment Form'!$CX176=\"Yes\"),\"-\",\"Y\")))))","v":""},{"$f":"IF($B169=\"N\",\"\",IF(AND('Enrollment Form'!$C176=\"ROC\",'Enrollment Form'!$DS176<>\"\"),\"Y\",IF(AND('Enrollment Form'!$C176=\"ROC\",'Enrollment Form'!$DS176=\"\"),\"N\",IF(AND('Enrollment Form'!$C176=\"Enroll\",'Enrollment Form'!$B176=\"Subscriber\",'Enrollment Form'!$CX176=\"No\",'Enrollment Form'!$DS176=\"\"),\"N\",IF(AND('Enrollment Form'!$C176=\"Enroll\",'Enrollment Form'!$B176=\"Subscriber\",'Enrollment Form'!$CX176=\"Yes\"),\"-\",\"Y\")))))","v":""},{"$f":"IF('Enrollment Form'!AH176=\"\",\"\",IF(ISERROR(SEARCH(\".\",'Enrollment Form'!AH176,SEARCH(\"@\",'Enrollment Form'!AH176))),\"N\",\"Y\"))","v":""},{"$f":"IF(OR($B169=\"N\",'Enrollment Form'!$G176=\"\"),\"\",IF('Enrollment Form'!$B176<>\"Subscriber\",\"-\",IF(COUNTIF('Enrollment Form'!$AV176:$AW176,\"Yes\")=2,\"N\",\"Y\")))","v":""},{"$f":"IF(OR('Enrollment Form'!$CJ176=\"\",'Enrollment Form'!$CJ176=\"No\"),\"-\",IF(AND('Enrollment Form'!$CJ176=\"Yes\",'Enrollment Form'!$CK176=\"\"),\"N\",\"Y\"))","v":"-"},{"$f":"IF(OR('Enrollment Form'!$CL176=\"\",'Enrollment Form'!$CL176=\"No\"),\"-\",IF(AND('Enrollment Form'!$CL176=\"Yes\",'Enrollment Form'!$CM176=\"\"),\"N\",\"Y\"))","v":"-"},{"$f":"IF(OR('Enrollment Form'!$CN176=\"\",'Enrollment Form'!$CN176=\"No\"),\"-\",IF(AND('Enrollment Form'!$CN176=\"Yes\",'Enrollment Form'!$CO176=\"\"),\"N\",\"Y\"))","v":"-"},{"$f":"IF(OR('Enrollment Form'!$CN176=\"\",'Enrollment Form'!$CN176=\"No\"),\"-\",IF(AND('Enrollment Form'!$CN176=\"Yes\",'Enrollment Form'!$CP176=\"\"),\"N\",\"Y\"))","v":"-"},{"$f":"IF('Enrollment Form'!B176<>\"Subscriber\",\"-\",IF(AND('Enrollment Form'!B176=\"Subscriber\",'Enrollment Form'!C176=\"Enroll\",'Enrollment Form'!AA176=\"\"),\"N\",\"Y\"))","v":"-"},{"$f":"IF(OR('Enrollment Form'!B176=\"Subscriber\",'Enrollment Form'!B176=\"\"),\"-\",IF('Enrollment Form'!BP176=\"\",\"N\",\"Y\"))","v":"-"},{"$f":"IF('Enrollment Form'!B176<>\"Subscriber\",\"-\",IF(AND('Enrollment Form'!B176=\"Subscriber\",'Enrollment Form'!G176=\"\"),\"N\",\"Y\"))","v":"-"},{"$f":"IF('Enrollment Form'!A176=\"\",\"\",IF('Enrollment Form'!B176=\"Subscriber\",\"-\",IF(AND('Enrollment Form'!B176<>\"Subscriber\",'Enrollment Form'!G176='Enrollment Form'!H176),\"N\",\"Y\")))","v":""},0]
[177,{"$f":"IF('Enrollment Form'!$A177<>\"\",\"Y\",\"N\")","v":"N"},{"$f":"IF(AND('Enrollment Form'!$B177=\"\",'Enrollment Form'!$C177<>\"\"),\"N\",IF($B170=\"N\",\"\",\"Y\"))","v":""},{"$f":"IF(OR($B170=\"N\",'Enrollment Form'!G177=\"\"),\"\",IF('Enrollment Form'!$B177<>\"Subscriber\",\"\",IF('Enrollment Form'!$G177='Enrollment Form'!$H177,\"Y\",\"N\")))","v":""},{"$f":"IF($B170=\"N\",\"\",IF(AND(COUNTIFS('Enrollment Form'!$H$11:$H$1000,'Enrollment Form'!$H177,'Enrollment Form'!$B$11:$B$1000,'Enrollment Form'!$B177)>1,'Enrollment Form'!$H177<>\"\"),\"N\",\"Y\"))","v":""},{"$f":"IF($B170=\"N\",\"\",IF(LEN('Enrollment Form'!$Y177)=0,\"\",IF(LEN('Enrollment Form'!$Y177)<>5,\"N\",\"Y\")))","v":""},{"$f":"IF($B170=\"N\",\"\",IF(LEN('Enrollment Form'!$AD177=0),\"\",IF(LEN('Enrollment Form'!$AD177)<>5,\"N\",\"Y\")))","v":""},{"$f":"IF($B170=\"N\",\"\",IF(LEN('Enrollment Form'!$BS177=0),\"\",IF(LEN('Enrollment Form'!$BS177)<>5,\"N\",\"Y\")))","v":""},{"$f":"IF($B170=\"N\",\"\",IF(LEN('Enrollment Form'!$AE177)=0,\"\",IF(LEN('Enrollment Form'!$AE177)<>10,\"N\",\"Y\")))","v":""},{"$f":"IF($B170=\"N\",\"\",IF(LEN('Enrollment Form'!$AF177)=0,\"\",IF(LEN('Enrollment Form'!$AF177)<>10,\"N\",\"Y\")))","v":""},{"$f":"IF('Enrollment Form'!$O177<>\"Graded\",\"-\",IF(AND('Enrollment Form'!$O177=\"Graded\",'Enrollment Form'!$AR177<>\"\"),\"Y\",\"N\"))","v":"-"},{"$f":"IF($B170=\"N\",\"\",IF(OR('Enrollment Form'!$B177<>\"Subscriber\",'Enrollment Form'!$C177=\"ROC\"),\"-\",IF(AND('Enrollment Form'!$B177=\"Subscriber\",'Enrollment Form'!$C177=\"Enroll\",'Enrollment Form'!$AJ177<>\"\"),\"Y\",\"N\")))","v":""},{"$f":"IF($B170=\"N\",\"\",IF(OR('Enrollment Form'!$B177<>\"Subscriber\",'Enrollment Form'!$C177=\"ROC\"),\"-\",IF(AND('Enrollment Form'!$B177=\"Subscriber\",'Enrollment Form'!$C177=\"Enroll\",'Enrollment Form'!$AK177<>\"\"),\"Y\",\"N\")))","v":""},{"$f":"IF($B170=\"N\",\"\",IF(OR('Enrollment Form'!$B177<>\"Subscriber\",'Enrollment Form'!$C177=\"ROC\"),\"-\",IF(AND('Enrollment Form'!$B177=\"Subscriber\",'Enrollment Form'!$C177=\"Enroll\",'Enrollment Form'!$AL177<>\"\"),\"Y\",\"N\")))","v":""},{"$f":"IF($B170=\"N\",\"\",IF(OR('Enrollment Form'!$B177<>\"Subscriber\",'Enrollment Form'!$C177=\"ROC\"),\"-\",IF(AND('Enrollment Form'!$B177=\"Subscriber\",'Enrollment Form'!$C177=\"Enroll\",'Enrollment Form'!$AP177<>\"\"),\"Y\",\"N\")))","v":""},{"$f":"IF($B170=\"N\",\"\",IF(OR('Enrollment Form'!$B177<>\"Subscriber\",'Enrollment Form'!$C177=\"ROC\"),\"-\",IF(AND('Enrollment Form'!$B177=\"Subscriber\",'Enrollment Form'!$C177=\"Enroll\",'Enrollment Form'!$AQ177<>\"\"),\"Y\",\"N\")))","v":""},{"$f":"IF($B170=\"N\",\"\",IF(OR('Enrollment Form'!$B177<>\"Subscriber\",'Enrollment Form'!$C177=\"ROC\"),\"-\",IF(AND('Enrollment Form'!$B177=\"Subscriber\",'Enrollment Form'!$C177=\"Enroll\",'Enrollment Form'!$AS177<>\"\"),\"Y\",\"N\")))","v":""},{"$f":"IF($B170=\"N\",\"\",IF($Q170=\"-\",\"-\",IF(AND($Q170=\"Y\",'Enrollment Form'!$AS177=\"No\"),\"-\",IF(AND($Q170=\"Y\",'Enrollment Form'!$AS177=\"Yes\",'Enrollment Form'!$AT177<>\"\"),\"Y\",\"N\"))))","v":""},{"$f":"IF($B170=\"N\",\"\",IF(OR('Enrollment Form'!$B177<>\"Subscriber\",'Enrollment Form'!$C177=\"ROC\"),\"-\",IF(AND('Enrollment Form'!$B177=\"Subscriber\",'Enrollment Form'!$C177=\"Enroll\",'Enrollment Form'!$CV177<>\"\"),\"Y\",\"N\")))","v":""},{"$f":"IF($B170=\"N\",\"\",IF($S170=\"-\",\"-\",IF(AND($S170=\"Y\",'Enrollment Form'!$CV177=\"No\"),\"-\",IF(AND($S170=\"Y\",'Enrollment Form'!$CV177=\"Yes\",'Enrollment Form'!$CW177<>\"\"),\"Y\",\"N\"))))","v":""},{"$f":"IF(OR('Enrollment Form'!$AY177=\"Yes\",'Enrollment Form'!$AY177=\"\"),\"-\",IF(OR(AND('Enrollment Form'!$AY177=\"No\",ISERROR(FIND(\"HMO\",VLOOKUP('Enrollment Form'!G177,'Enrollment Form'!H$11:J$1000,3,FALSE),1))=FALSE,COUNTA('Enrollment Form'!$AZ177:$BC177)=4),AND('Enrollment Form'!$AY177=\"No\",ISERROR(FIND(\"HMO\",VLOOKUP('Enrollment Form'!G177,'Enrollment Form'!H$11:J$1000,3,FALSE),1))=FALSE,COUNTA('Enrollment Form'!$BT177:$BW177)=4)),\"Y\",\"N\"))","v":"-"},{"$f":"IF($B170=\"N\",\"\",IF('Enrollment Form'!$B177=\"Subscriber\",\"-\",IF(COUNTA('Enrollment Form'!$BL177,'Enrollment Form'!$BN177)=2,\"Y\",\"N\")))","v":""},{"$f":"IF($B170=\"N\",\"\",IF(OR('Enrollment Form'!$AX177=\"\",'Enrollment Form'!$AX177=\"No\"),\"-\",IF(AND('Enrollment Form'!$AX177=\"Yes\",COUNTA('Enrollment Form'!$CR177)=1),\"Y\",\"N\")))","v":""},{"$f":"IF(OR('Enrollment Form'!$CR177=\"\",'Enrollment Form'!$CR177=\"No\"),\"-\",IF(COUNTA('Enrollment Form'!$CT177:$CU177)=2,\"Y\",\"N\"))","v":"-"},{"$f":"IF($B170=\"N\",\"\",IF(COUNTIF('Enrollment Form'!$DG177:$DP177,\"Other\")=COUNTA('Enrollment Form'!$DK177,'Enrollment Form'!$DH177,'Enrollment Form'!$DN177,'Enrollment Form'!$DQ177),\"Y\",\"N\"))","v":""},{"$f":"IF($B170=\"N\",\"\",IF(OR('Enrollment Form'!B177<>\"Subscriber\",'Enrollment Form'!C177=\"ROC\",COUNTIF('Enrollment Form'!AV177:AW177,\"Yes\")>=1),\"-\",IF(AND('Enrollment Form'!C177=\"Enroll\",COUNTIF('Enrollment Form'!AV177:AW177,\"No\")=2,'Enrollment Form'!AX177=\"\"),\"N\",\"Y\")))","v":""},{"$f":"IF(OR(B170=\"N\",'Enrollment Form'!B177<>\"Subscriber\",'Enrollment Form'!C177=\"ROC\",'Enrollment Form'!O177<>\"Multiple of Salary\"),\"-\",IF(COUNTA('Enrollment Form'!T177:U177)<2,\"N\",\"Y\"))","v":"-"},{"$f":"IF(B170=\"N\",\"\",IF(OR('Enrollment Form'!C177=\"ROC\",'Enrollment Form'!B177<>\"Subscriber\",'Enrollment Form'!O177=\"Waive\",'Enrollment Form'!O177=\"\"),\"-\",IF('Enrollment Form'!P177=\"\",\"N\",\"Y\")))","v":""},{"$f":"IF($B170=\"N\",\"\",IF(AND('Enrollment Form'!$C177=\"ROC\",'Enrollment Form'!$DR177<>\"\"),\"Y\",IF(AND('Enrollment Form'!$C177=\"ROC\",'Enrollment Form'!$DR177=\"\"),\"N\",IF(AND('Enrollment Form'!$C177=\"Enroll\",'Enrollment Form'!$B177=\"Subscriber\",'Enrollment Form'!$CX177=\"No\",'Enrollment Form'!$DR177=\"\"),\"N\",IF(AND('Enrollment Form'!$C177=\"Enroll\",'Enrollment Form'!$B177=\"Subscriber\",'Enrollment Form'!$CX177=\"Yes\"),\"-\",\"Y\")))))","v":""},{"$f":"IF($B170=\"N\",\"\",IF(AND('Enrollment Form'!$C177=\"ROC\",'Enrollment Form'!$DS177<>\"\"),\"Y\",IF(AND('Enrollment Form'!$C177=\"ROC\",'Enrollment Form'!$DS177=\"\"),\"N\",IF(AND('Enrollment Form'!$C177=\"Enroll\",'Enrollment Form'!$B177=\"Subscriber\",'Enrollment Form'!$CX177=\"No\",'Enrollment Form'!$DS177=\"\"),\"N\",IF(AND('Enrollment Form'!$C177=\"Enroll\",'Enrollment Form'!$B177=\"Subscriber\",'Enrollment Form'!$CX177=\"Yes\"),\"-\",\"Y\")))))","v":""},{"$f":"IF('Enrollment Form'!AH177=\"\",\"\",IF(ISERROR(SEARCH(\".\",'Enrollment Form'!AH177,SEARCH(\"@\",'Enrollment Form'!AH177))),\"N\",\"Y\"))","v":""},{"$f":"IF(OR($B170=\"N\",'Enrollment Form'!$G177=\"\"),\"\",IF('Enrollment Form'!$B177<>\"Subscriber\",\"-\",IF(COUNTIF('Enrollment Form'!$AV177:$AW177,\"Yes\")=2,\"N\",\"Y\")))","v":""},{"$f":"IF(OR('Enrollment Form'!$CJ177=\"\",'Enrollment Form'!$CJ177=\"No\"),\"-\",IF(AND('Enrollment Form'!$CJ177=\"Yes\",'Enrollment Form'!$CK177=\"\"),\"N\",\"Y\"))","v":"-"},{"$f":"IF(OR('Enrollment Form'!$CL177=\"\",'Enrollment Form'!$CL177=\"No\"),\"-\",IF(AND('Enrollment Form'!$CL177=\"Yes\",'Enrollment Form'!$CM177=\"\"),\"N\",\"Y\"))","v":"-"},{"$f":"IF(OR('Enrollment Form'!$CN177=\"\",'Enrollment Form'!$CN177=\"No\"),\"-\",IF(AND('Enrollment Form'!$CN177=\"Yes\",'Enrollment Form'!$CO177=\"\"),\"N\",\"Y\"))","v":"-"},{"$f":"IF(OR('Enrollment Form'!$CN177=\"\",'Enrollment Form'!$CN177=\"No\"),\"-\",IF(AND('Enrollment Form'!$CN177=\"Yes\",'Enrollment Form'!$CP177=\"\"),\"N\",\"Y\"))","v":"-"},{"$f":"IF('Enrollment Form'!B177<>\"Subscriber\",\"-\",IF(AND('Enrollment Form'!B177=\"Subscriber\",'Enrollment Form'!C177=\"Enroll\",'Enrollment Form'!AA177=\"\"),\"N\",\"Y\"))","v":"-"},{"$f":"IF(OR('Enrollment Form'!B177=\"Subscriber\",'Enrollment Form'!B177=\"\"),\"-\",IF('Enrollment Form'!BP177=\"\",\"N\",\"Y\"))","v":"-"},{"$f":"IF('Enrollment Form'!B177<>\"Subscriber\",\"-\",IF(AND('Enrollment Form'!B177=\"Subscriber\",'Enrollment Form'!G177=\"\"),\"N\",\"Y\"))","v":"-"},{"$f":"IF('Enrollment Form'!A177=\"\",\"\",IF('Enrollment Form'!B177=\"Subscriber\",\"-\",IF(AND('Enrollment Form'!B177<>\"Subscriber\",'Enrollment Form'!G177='Enrollment Form'!H177),\"N\",\"Y\")))","v":""},0]
[178,{"$f":"IF('Enrollment Form'!$A178<>\"\",\"Y\",\"N\")","v":"N"},{"$f":"IF(AND('Enrollment Form'!$B178=\"\",'Enrollment Form'!$C178<>\"\"),\"N\",IF($B171=\"N\",\"\",\"Y\"))","v":""},{"$f":"IF(OR($B171=\"N\",'Enrollment Form'!G178=\"\"),\"\",IF('Enrollment Form'!$B178<>\"Subscriber\",\"\",IF('Enrollment Form'!$G178='Enrollment Form'!$H178,\"Y\",\"N\")))","v":""},{"$f":"IF($B171=\"N\",\"\",IF(AND(COUNTIFS('Enrollment Form'!$H$11:$H$1000,'Enrollment Form'!$H178,'Enrollment Form'!$B$11:$B$1000,'Enrollment Form'!$B178)>1,'Enrollment Form'!$H178<>\"\"),\"N\",\"Y\"))","v":""},{"$f":"IF($B171=\"N\",\"\",IF(LEN('Enrollment Form'!$Y178)=0,\"\",IF(LEN('Enrollment Form'!$Y178)<>5,\"N\",\"Y\")))","v":""},{"$f":"IF($B171=\"N\",\"\",IF(LEN('Enrollment Form'!$AD178=0),\"\",IF(LEN('Enrollment Form'!$AD178)<>5,\"N\",\"Y\")))","v":""},{"$f":"IF($B171=\"N\",\"\",IF(LEN('Enrollment Form'!$BS178=0),\"\",IF(LEN('Enrollment Form'!$BS178)<>5,\"N\",\"Y\")))","v":""},{"$f":"IF($B171=\"N\",\"\",IF(LEN('Enrollment Form'!$AE178)=0,\"\",IF(LEN('Enrollment Form'!$AE178)<>10,\"N\",\"Y\")))","v":""},{"$f":"IF($B171=\"N\",\"\",IF(LEN('Enrollment Form'!$AF178)=0,\"\",IF(LEN('Enrollment Form'!$AF178)<>10,\"N\",\"Y\")))","v":""},{"$f":"IF('Enrollment Form'!$O178<>\"Graded\",\"-\",IF(AND('Enrollment Form'!$O178=\"Graded\",'Enrollment Form'!$AR178<>\"\"),\"Y\",\"N\"))","v":"-"},{"$f":"IF($B171=\"N\",\"\",IF(OR('Enrollment Form'!$B178<>\"Subscriber\",'Enrollment Form'!$C178=\"ROC\"),\"-\",IF(AND('Enrollment Form'!$B178=\"Subscriber\",'Enrollment Form'!$C178=\"Enroll\",'Enrollment Form'!$AJ178<>\"\"),\"Y\",\"N\")))","v":""},{"$f":"IF($B171=\"N\",\"\",IF(OR('Enrollment Form'!$B178<>\"Subscriber\",'Enrollment Form'!$C178=\"ROC\"),\"-\",IF(AND('Enrollment Form'!$B178=\"Subscriber\",'Enrollment Form'!$C178=\"Enroll\",'Enrollment Form'!$AK178<>\"\"),\"Y\",\"N\")))","v":""},{"$f":"IF($B171=\"N\",\"\",IF(OR('Enrollment Form'!$B178<>\"Subscriber\",'Enrollment Form'!$C178=\"ROC\"),\"-\",IF(AND('Enrollment Form'!$B178=\"Subscriber\",'Enrollment Form'!$C178=\"Enroll\",'Enrollment Form'!$AL178<>\"\"),\"Y\",\"N\")))","v":""},{"$f":"IF($B171=\"N\",\"\",IF(OR('Enrollment Form'!$B178<>\"Subscriber\",'Enrollment Form'!$C178=\"ROC\"),\"-\",IF(AND('Enrollment Form'!$B178=\"Subscriber\",'Enrollment Form'!$C178=\"Enroll\",'Enrollment Form'!$AP178<>\"\"),\"Y\",\"N\")))","v":""},{"$f":"IF($B171=\"N\",\"\",IF(OR('Enrollment Form'!$B178<>\"Subscriber\",'Enrollment Form'!$C178=\"ROC\"),\"-\",IF(AND('Enrollment Form'!$B178=\"Subscriber\",'Enrollment Form'!$C178=\"Enroll\",'Enrollment Form'!$AQ178<>\"\"),\"Y\",\"N\")))","v":""},{"$f":"IF($B171=\"N\",\"\",IF(OR('Enrollment Form'!$B178<>\"Subscriber\",'Enrollment Form'!$C178=\"ROC\"),\"-\",IF(AND('Enrollment Form'!$B178=\"Subscriber\",'Enrollment Form'!$C178=\"Enroll\",'Enrollment Form'!$AS178<>\"\"),\"Y\",\"N\")))","v":""},{"$f":"IF($B171=\"N\",\"\",IF($Q171=\"-\",\"-\",IF(AND($Q171=\"Y\",'Enrollment Form'!$AS178=\"No\"),\"-\",IF(AND($Q171=\"Y\",'Enrollment Form'!$AS178=\"Yes\",'Enrollment Form'!$AT178<>\"\"),\"Y\",\"N\"))))","v":""},{"$f":"IF($B171=\"N\",\"\",IF(OR('Enrollment Form'!$B178<>\"Subscriber\",'Enrollment Form'!$C178=\"ROC\"),\"-\",IF(AND('Enrollment Form'!$B178=\"Subscriber\",'Enrollment Form'!$C178=\"Enroll\",'Enrollment Form'!$CV178<>\"\"),\"Y\",\"N\")))","v":""},{"$f":"IF($B171=\"N\",\"\",IF($S171=\"-\",\"-\",IF(AND($S171=\"Y\",'Enrollment Form'!$CV178=\"No\"),\"-\",IF(AND($S171=\"Y\",'Enrollment Form'!$CV178=\"Yes\",'Enrollment Form'!$CW178<>\"\"),\"Y\",\"N\"))))","v":""},{"$f":"IF(OR('Enrollment Form'!$AY178=\"Yes\",'Enrollment Form'!$AY178=\"\"),\"-\",IF(OR(AND('Enrollment Form'!$AY178=\"No\",ISERROR(FIND(\"HMO\",VLOOKUP('Enrollment Form'!G178,'Enrollment Form'!H$11:J$1000,3,FALSE),1))=FALSE,COUNTA('Enrollment Form'!$AZ178:$BC178)=4),AND('Enrollment Form'!$AY178=\"No\",ISERROR(FIND(\"HMO\",VLOOKUP('Enrollment Form'!G178,'Enrollment Form'!H$11:J$1000,3,FALSE),1))=FALSE,COUNTA('Enrollment Form'!$BT178:$BW178)=4)),\"Y\",\"N\"))","v":"-"},{"$f":"IF($B171=\"N\",\"\",IF('Enrollment Form'!$B178=\"Subscriber\",\"-\",IF(COUNTA('Enrollment Form'!$BL178,'Enrollment Form'!$BN178)=2,\"Y\",\"N\")))","v":""},{"$f":"IF($B171=\"N\",\"\",IF(OR('Enrollment Form'!$AX178=\"\",'Enrollment Form'!$AX178=\"No\"),\"-\",IF(AND('Enrollment Form'!$AX178=\"Yes\",COUNTA('Enrollment Form'!$CR178)=1),\"Y\",\"N\")))","v":""},{"$f":"IF(OR('Enrollment Form'!$CR178=\"\",'Enrollment Form'!$CR178=\"No\"),\"-\",IF(COUNTA('Enrollment Form'!$CT178:$CU178)=2,\"Y\",\"N\"))","v":"-"},{"$f":"IF($B171=\"N\",\"\",IF(COUNTIF('Enrollment Form'!$DG178:$DP178,\"Other\")=COUNTA('Enrollment Form'!$DK178,'Enrollment Form'!$DH178,'Enrollment Form'!$DN178,'Enrollment Form'!$DQ178),\"Y\",\"N\"))","v":""},{"$f":"IF($B171=\"N\",\"\",IF(OR('Enrollment Form'!B178<>\"Subscriber\",'Enrollment Form'!C178=\"ROC\",COUNTIF('Enrollment Form'!AV178:AW178,\"Yes\")>=1),\"-\",IF(AND('Enrollment Form'!C178=\"Enroll\",COUNTIF('Enrollment Form'!AV178:AW178,\"No\")=2,'Enrollment Form'!AX178=\"\"),\"N\",\"Y\")))","v":""},{"$f":"IF(OR(B171=\"N\",'Enrollment Form'!B178<>\"Subscriber\",'Enrollment Form'!C178=\"ROC\",'Enrollment Form'!O178<>\"Multiple of Salary\"),\"-\",IF(COUNTA('Enrollment Form'!T178:U178)<2,\"N\",\"Y\"))","v":"-"},{"$f":"IF(B171=\"N\",\"\",IF(OR('Enrollment Form'!C178=\"ROC\",'Enrollment Form'!B178<>\"Subscriber\",'Enrollment Form'!O178=\"Waive\",'Enrollment Form'!O178=\"\"),\"-\",IF('Enrollment Form'!P178=\"\",\"N\",\"Y\")))","v":""},{"$f":"IF($B171=\"N\",\"\",IF(AND('Enrollment Form'!$C178=\"ROC\",'Enrollment Form'!$DR178<>\"\"),\"Y\",IF(AND('Enrollment Form'!$C178=\"ROC\",'Enrollment Form'!$DR178=\"\"),\"N\",IF(AND('Enrollment Form'!$C178=\"Enroll\",'Enrollment Form'!$B178=\"Subscriber\",'Enrollment Form'!$CX178=\"No\",'Enrollment Form'!$DR178=\"\"),\"N\",IF(AND('Enrollment Form'!$C178=\"Enroll\",'Enrollment Form'!$B178=\"Subscriber\",'Enrollment Form'!$CX178=\"Yes\"),\"-\",\"Y\")))))","v":""},{"$f":"IF($B171=\"N\",\"\",IF(AND('Enrollment Form'!$C178=\"ROC\",'Enrollment Form'!$DS178<>\"\"),\"Y\",IF(AND('Enrollment Form'!$C178=\"ROC\",'Enrollment Form'!$DS178=\"\"),\"N\",IF(AND('Enrollment Form'!$C178=\"Enroll\",'Enrollment Form'!$B178=\"Subscriber\",'Enrollment Form'!$CX178=\"No\",'Enrollment Form'!$DS178=\"\"),\"N\",IF(AND('Enrollment Form'!$C178=\"Enroll\",'Enrollment Form'!$B178=\"Subscriber\",'Enrollment Form'!$CX178=\"Yes\"),\"-\",\"Y\")))))","v":""},{"$f":"IF('Enrollment Form'!AH178=\"\",\"\",IF(ISERROR(SEARCH(\".\",'Enrollment Form'!AH178,SEARCH(\"@\",'Enrollment Form'!AH178))),\"N\",\"Y\"))","v":""},{"$f":"IF(OR($B171=\"N\",'Enrollment Form'!$G178=\"\"),\"\",IF('Enrollment Form'!$B178<>\"Subscriber\",\"-\",IF(COUNTIF('Enrollment Form'!$AV178:$AW178,\"Yes\")=2,\"N\",\"Y\")))","v":""},{"$f":"IF(OR('Enrollment Form'!$CJ178=\"\",'Enrollment Form'!$CJ178=\"No\"),\"-\",IF(AND('Enrollment Form'!$CJ178=\"Yes\",'Enrollment Form'!$CK178=\"\"),\"N\",\"Y\"))","v":"-"},{"$f":"IF(OR('Enrollment Form'!$CL178=\"\",'Enrollment Form'!$CL178=\"No\"),\"-\",IF(AND('Enrollment Form'!$CL178=\"Yes\",'Enrollment Form'!$CM178=\"\"),\"N\",\"Y\"))","v":"-"},{"$f":"IF(OR('Enrollment Form'!$CN178=\"\",'Enrollment Form'!$CN178=\"No\"),\"-\",IF(AND('Enrollment Form'!$CN178=\"Yes\",'Enrollment Form'!$CO178=\"\"),\"N\",\"Y\"))","v":"-"},{"$f":"IF(OR('Enrollment Form'!$CN178=\"\",'Enrollment Form'!$CN178=\"No\"),\"-\",IF(AND('Enrollment Form'!$CN178=\"Yes\",'Enrollment Form'!$CP178=\"\"),\"N\",\"Y\"))","v":"-"},{"$f":"IF('Enrollment Form'!B178<>\"Subscriber\",\"-\",IF(AND('Enrollment Form'!B178=\"Subscriber\",'Enrollment Form'!C178=\"Enroll\",'Enrollment Form'!AA178=\"\"),\"N\",\"Y\"))","v":"-"},{"$f":"IF(OR('Enrollment Form'!B178=\"Subscriber\",'Enrollment Form'!B178=\"\"),\"-\",IF('Enrollment Form'!BP178=\"\",\"N\",\"Y\"))","v":"-"},{"$f":"IF('Enrollment Form'!B178<>\"Subscriber\",\"-\",IF(AND('Enrollment Form'!B178=\"Subscriber\",'Enrollment Form'!G178=\"\"),\"N\",\"Y\"))","v":"-"},{"$f":"IF('Enrollment Form'!A178=\"\",\"\",IF('Enrollment Form'!B178=\"Subscriber\",\"-\",IF(AND('Enrollment Form'!B178<>\"Subscriber\",'Enrollment Form'!G178='Enrollment Form'!H178),\"N\",\"Y\")))","v":""},0]
[179,{"$f":"IF('Enrollment Form'!$A179<>\"\",\"Y\",\"N\")","v":"N"},{"$f":"IF(AND('Enrollment Form'!$B179=\"\",'Enrollment Form'!$C179<>\"\"),\"N\",IF($B172=\"N\",\"\",\"Y\"))","v":""},{"$f":"IF(OR($B172=\"N\",'Enrollment Form'!G179=\"\"),\"\",IF('Enrollment Form'!$B179<>\"Subscriber\",\"\",IF('Enrollment Form'!$G179='Enrollment Form'!$H179,\"Y\",\"N\")))","v":""},{"$f":"IF($B172=\"N\",\"\",IF(AND(COUNTIFS('Enrollment Form'!$H$11:$H$1000,'Enrollment Form'!$H179,'Enrollment Form'!$B$11:$B$1000,'Enrollment Form'!$B179)>1,'Enrollment Form'!$H179<>\"\"),\"N\",\"Y\"))","v":""},{"$f":"IF($B172=\"N\",\"\",IF(LEN('Enrollment Form'!$Y179)=0,\"\",IF(LEN('Enrollment Form'!$Y179)<>5,\"N\",\"Y\")))","v":""},{"$f":"IF($B172=\"N\",\"\",IF(LEN('Enrollment Form'!$AD179=0),\"\",IF(LEN('Enrollment Form'!$AD179)<>5,\"N\",\"Y\")))","v":""},{"$f":"IF($B172=\"N\",\"\",IF(LEN('Enrollment Form'!$BS179=0),\"\",IF(LEN('Enrollment Form'!$BS179)<>5,\"N\",\"Y\")))","v":""},{"$f":"IF($B172=\"N\",\"\",IF(LEN('Enrollment Form'!$AE179)=0,\"\",IF(LEN('Enrollment Form'!$AE179)<>10,\"N\",\"Y\")))","v":""},{"$f":"IF($B172=\"N\",\"\",IF(LEN('Enrollment Form'!$AF179)=0,\"\",IF(LEN('Enrollment Form'!$AF179)<>10,\"N\",\"Y\")))","v":""},{"$f":"IF('Enrollment Form'!$O179<>\"Graded\",\"-\",IF(AND('Enrollment Form'!$O179=\"Graded\",'Enrollment Form'!$AR179<>\"\"),\"Y\",\"N\"))","v":"-"},{"$f":"IF($B172=\"N\",\"\",IF(OR('Enrollment Form'!$B179<>\"Subscriber\",'Enrollment Form'!$C179=\"ROC\"),\"-\",IF(AND('Enrollment Form'!$B179=\"Subscriber\",'Enrollment Form'!$C179=\"Enroll\",'Enrollment Form'!$AJ179<>\"\"),\"Y\",\"N\")))","v":""},{"$f":"IF($B172=\"N\",\"\",IF(OR('Enrollment Form'!$B179<>\"Subscriber\",'Enrollment Form'!$C179=\"ROC\"),\"-\",IF(AND('Enrollment Form'!$B179=\"Subscriber\",'Enrollment Form'!$C179=\"Enroll\",'Enrollment Form'!$AK179<>\"\"),\"Y\",\"N\")))","v":""},{"$f":"IF($B172=\"N\",\"\",IF(OR('Enrollment Form'!$B179<>\"Subscriber\",'Enrollment Form'!$C179=\"ROC\"),\"-\",IF(AND('Enrollment Form'!$B179=\"Subscriber\",'Enrollment Form'!$C179=\"Enroll\",'Enrollment Form'!$AL179<>\"\"),\"Y\",\"N\")))","v":""},{"$f":"IF($B172=\"N\",\"\",IF(OR('Enrollment Form'!$B179<>\"Subscriber\",'Enrollment Form'!$C179=\"ROC\"),\"-\",IF(AND('Enrollment Form'!$B179=\"Subscriber\",'Enrollment Form'!$C179=\"Enroll\",'Enrollment Form'!$AP179<>\"\"),\"Y\",\"N\")))","v":""},{"$f":"IF($B172=\"N\",\"\",IF(OR('Enrollment Form'!$B179<>\"Subscriber\",'Enrollment Form'!$C179=\"ROC\"),\"-\",IF(AND('Enrollment Form'!$B179=\"Subscriber\",'Enrollment Form'!$C179=\"Enroll\",'Enrollment Form'!$AQ179<>\"\"),\"Y\",\"N\")))","v":""},{"$f":"IF($B172=\"N\",\"\",IF(OR('Enrollment Form'!$B179<>\"Subscriber\",'Enrollment Form'!$C179=\"ROC\"),\"-\",IF(AND('Enrollment Form'!$B179=\"Subscriber\",'Enrollment Form'!$C179=\"Enroll\",'Enrollment Form'!$AS179<>\"\"),\"Y\",\"N\")))","v":""},{"$f":"IF($B172=\"N\",\"\",IF($Q172=\"-\",\"-\",IF(AND($Q172=\"Y\",'Enrollment Form'!$AS179=\"No\"),\"-\",IF(AND($Q172=\"Y\",'Enrollment Form'!$AS179=\"Yes\",'Enrollment Form'!$AT179<>\"\"),\"Y\",\"N\"))))","v":""},{"$f":"IF($B172=\"N\",\"\",IF(OR('Enrollment Form'!$B179<>\"Subscriber\",'Enrollment Form'!$C179=\"ROC\"),\"-\",IF(AND('Enrollment Form'!$B179=\"Subscriber\",'Enrollment Form'!$C179=\"Enroll\",'Enrollment Form'!$CV179<>\"\"),\"Y\",\"N\")))","v":""},{"$f":"IF($B172=\"N\",\"\",IF($S172=\"-\",\"-\",IF(AND($S172=\"Y\",'Enrollment Form'!$CV179=\"No\"),\"-\",IF(AND($S172=\"Y\",'Enrollment Form'!$CV179=\"Yes\",'Enrollment Form'!$CW179<>\"\"),\"Y\",\"N\"))))","v":""},{"$f":"IF(OR('Enrollment Form'!$AY179=\"Yes\",'Enrollment Form'!$AY179=\"\"),\"-\",IF(OR(AND('Enrollment Form'!$AY179=\"No\",ISERROR(FIND(\"HMO\",VLOOKUP('Enrollment Form'!G179,'Enrollment Form'!H$11:J$1000,3,FALSE),1))=FALSE,COUNTA('Enrollment Form'!$AZ179:$BC179)=4),AND('Enrollment Form'!$AY179=\"No\",ISERROR(FIND(\"HMO\",VLOOKUP('Enrollment Form'!G179,'Enrollment Form'!H$11:J$1000,3,FALSE),1))=FALSE,COUNTA('Enrollment Form'!$BT179:$BW179)=4)),\"Y\",\"N\"))","v":"-"},{"$f":"IF($B172=\"N\",\"\",IF('Enrollment Form'!$B179=\"Subscriber\",\"-\",IF(COUNTA('Enrollment Form'!$BL179,'Enrollment Form'!$BN179)=2,\"Y\",\"N\")))","v":""},{"$f":"IF($B172=\"N\",\"\",IF(OR('Enrollment Form'!$AX179=\"\",'Enrollment Form'!$AX179=\"No\"),\"-\",IF(AND('Enrollment Form'!$AX179=\"Yes\",COUNTA('Enrollment Form'!$CR179)=1),\"Y\",\"N\")))","v":""},{"$f":"IF(OR('Enrollment Form'!$CR179=\"\",'Enrollment Form'!$CR179=\"No\"),\"-\",IF(COUNTA('Enrollment Form'!$CT179:$CU179)=2,\"Y\",\"N\"))","v":"-"},{"$f":"IF($B172=\"N\",\"\",IF(COUNTIF('Enrollment Form'!$DG179:$DP179,\"Other\")=COUNTA('Enrollment Form'!$DK179,'Enrollment Form'!$DH179,'Enrollment Form'!$DN179,'Enrollment Form'!$DQ179),\"Y\",\"N\"))","v":""},{"$f":"IF($B172=\"N\",\"\",IF(OR('Enrollment Form'!B179<>\"Subscriber\",'Enrollment Form'!C179=\"ROC\",COUNTIF('Enrollment Form'!AV179:AW179,\"Yes\")>=1),\"-\",IF(AND('Enrollment Form'!C179=\"Enroll\",COUNTIF('Enrollment Form'!AV179:AW179,\"No\")=2,'Enrollment Form'!AX179=\"\"),\"N\",\"Y\")))","v":""},{"$f":"IF(OR(B172=\"N\",'Enrollment Form'!B179<>\"Subscriber\",'Enrollment Form'!C179=\"ROC\",'Enrollment Form'!O179<>\"Multiple of Salary\"),\"-\",IF(COUNTA('Enrollment Form'!T179:U179)<2,\"N\",\"Y\"))","v":"-"},{"$f":"IF(B172=\"N\",\"\",IF(OR('Enrollment Form'!C179=\"ROC\",'Enrollment Form'!B179<>\"Subscriber\",'Enrollment Form'!O179=\"Waive\",'Enrollment Form'!O179=\"\"),\"-\",IF('Enrollment Form'!P179=\"\",\"N\",\"Y\")))","v":""},{"$f":"IF($B172=\"N\",\"\",IF(AND('Enrollment Form'!$C179=\"ROC\",'Enrollment Form'!$DR179<>\"\"),\"Y\",IF(AND('Enrollment Form'!$C179=\"ROC\",'Enrollment Form'!$DR179=\"\"),\"N\",IF(AND('Enrollment Form'!$C179=\"Enroll\",'Enrollment Form'!$B179=\"Subscriber\",'Enrollment Form'!$CX179=\"No\",'Enrollment Form'!$DR179=\"\"),\"N\",IF(AND('Enrollment Form'!$C179=\"Enroll\",'Enrollment Form'!$B179=\"Subscriber\",'Enrollment Form'!$CX179=\"Yes\"),\"-\",\"Y\")))))","v":""},{"$f":"IF($B172=\"N\",\"\",IF(AND('Enrollment Form'!$C179=\"ROC\",'Enrollment Form'!$DS179<>\"\"),\"Y\",IF(AND('Enrollment Form'!$C179=\"ROC\",'Enrollment Form'!$DS179=\"\"),\"N\",IF(AND('Enrollment Form'!$C179=\"Enroll\",'Enrollment Form'!$B179=\"Subscriber\",'Enrollment Form'!$CX179=\"No\",'Enrollment Form'!$DS179=\"\"),\"N\",IF(AND('Enrollment Form'!$C179=\"Enroll\",'Enrollment Form'!$B179=\"Subscriber\",'Enrollment Form'!$CX179=\"Yes\"),\"-\",\"Y\")))))","v":""},{"$f":"IF('Enrollment Form'!AH179=\"\",\"\",IF(ISERROR(SEARCH(\".\",'Enrollment Form'!AH179,SEARCH(\"@\",'Enrollment Form'!AH179))),\"N\",\"Y\"))","v":""},{"$f":"IF(OR($B172=\"N\",'Enrollment Form'!$G179=\"\"),\"\",IF('Enrollment Form'!$B179<>\"Subscriber\",\"-\",IF(COUNTIF('Enrollment Form'!$AV179:$AW179,\"Yes\")=2,\"N\",\"Y\")))","v":""},{"$f":"IF(OR('Enrollment Form'!$CJ179=\"\",'Enrollment Form'!$CJ179=\"No\"),\"-\",IF(AND('Enrollment Form'!$CJ179=\"Yes\",'Enrollment Form'!$CK179=\"\"),\"N\",\"Y\"))","v":"-"},{"$f":"IF(OR('Enrollment Form'!$CL179=\"\",'Enrollment Form'!$CL179=\"No\"),\"-\",IF(AND('Enrollment Form'!$CL179=\"Yes\",'Enrollment Form'!$CM179=\"\"),\"N\",\"Y\"))","v":"-"},{"$f":"IF(OR('Enrollment Form'!$CN179=\"\",'Enrollment Form'!$CN179=\"No\"),\"-\",IF(AND('Enrollment Form'!$CN179=\"Yes\",'Enrollment Form'!$CO179=\"\"),\"N\",\"Y\"))","v":"-"},{"$f":"IF(OR('Enrollment Form'!$CN179=\"\",'Enrollment Form'!$CN179=\"No\"),\"-\",IF(AND('Enrollment Form'!$CN179=\"Yes\",'Enrollment Form'!$CP179=\"\"),\"N\",\"Y\"))","v":"-"},{"$f":"IF('Enrollment Form'!B179<>\"Subscriber\",\"-\",IF(AND('Enrollment Form'!B179=\"Subscriber\",'Enrollment Form'!C179=\"Enroll\",'Enrollment Form'!AA179=\"\"),\"N\",\"Y\"))","v":"-"},{"$f":"IF(OR('Enrollment Form'!B179=\"Subscriber\",'Enrollment Form'!B179=\"\"),\"-\",IF('Enrollment Form'!BP179=\"\",\"N\",\"Y\"))","v":"-"},{"$f":"IF('Enrollment Form'!B179<>\"Subscriber\",\"-\",IF(AND('Enrollment Form'!B179=\"Subscriber\",'Enrollment Form'!G179=\"\"),\"N\",\"Y\"))","v":"-"},{"$f":"IF('Enrollment Form'!A179=\"\",\"\",IF('Enrollment Form'!B179=\"Subscriber\",\"-\",IF(AND('Enrollment Form'!B179<>\"Subscriber\",'Enrollment Form'!G179='Enrollment Form'!H179),\"N\",\"Y\")))","v":""},0]
[180,{"$f":"IF('Enrollment Form'!$A180<>\"\",\"Y\",\"N\")","v":"N"},{"$f":"IF(AND('Enrollment Form'!$B180=\"\",'Enrollment Form'!$C180<>\"\"),\"N\",IF($B173=\"N\",\"\",\"Y\"))","v":""},{"$f":"IF(OR($B173=\"N\",'Enrollment Form'!G180=\"\"),\"\",IF('Enrollment Form'!$B180<>\"Subscriber\",\"\",IF('Enrollment Form'!$G180='Enrollment Form'!$H180,\"Y\",\"N\")))","v":""},{"$f":"IF($B173=\"N\",\"\",IF(AND(COUNTIFS('Enrollment Form'!$H$11:$H$1000,'Enrollment Form'!$H180,'Enrollment Form'!$B$11:$B$1000,'Enrollment Form'!$B180)>1,'Enrollment Form'!$H180<>\"\"),\"N\",\"Y\"))","v":""},{"$f":"IF($B173=\"N\",\"\",IF(LEN('Enrollment Form'!$Y180)=0,\"\",IF(LEN('Enrollment Form'!$Y180)<>5,\"N\",\"Y\")))","v":""},{"$f":"IF($B173=\"N\",\"\",IF(LEN('Enrollment Form'!$AD180=0),\"\",IF(LEN('Enrollment Form'!$AD180)<>5,\"N\",\"Y\")))","v":""},{"$f":"IF($B173=\"N\",\"\",IF(LEN('Enrollment Form'!$BS180=0),\"\",IF(LEN('Enrollment Form'!$BS180)<>5,\"N\",\"Y\")))","v":""},{"$f":"IF($B173=\"N\",\"\",IF(LEN('Enrollment Form'!$AE180)=0,\"\",IF(LEN('Enrollment Form'!$AE180)<>10,\"N\",\"Y\")))","v":""},{"$f":"IF($B173=\"N\",\"\",IF(LEN('Enrollment Form'!$AF180)=0,\"\",IF(LEN('Enrollment Form'!$AF180)<>10,\"N\",\"Y\")))","v":""},{"$f":"IF('Enrollment Form'!$O180<>\"Graded\",\"-\",IF(AND('Enrollment Form'!$O180=\"Graded\",'Enrollment Form'!$AR180<>\"\"),\"Y\",\"N\"))","v":"-"},{"$f":"IF($B173=\"N\",\"\",IF(OR('Enrollment Form'!$B180<>\"Subscriber\",'Enrollment Form'!$C180=\"ROC\"),\"-\",IF(AND('Enrollment Form'!$B180=\"Subscriber\",'Enrollment Form'!$C180=\"Enroll\",'Enrollment Form'!$AJ180<>\"\"),\"Y\",\"N\")))","v":""},{"$f":"IF($B173=\"N\",\"\",IF(OR('Enrollment Form'!$B180<>\"Subscriber\",'Enrollment Form'!$C180=\"ROC\"),\"-\",IF(AND('Enrollment Form'!$B180=\"Subscriber\",'Enrollment Form'!$C180=\"Enroll\",'Enrollment Form'!$AK180<>\"\"),\"Y\",\"N\")))","v":""},{"$f":"IF($B173=\"N\",\"\",IF(OR('Enrollment Form'!$B180<>\"Subscriber\",'Enrollment Form'!$C180=\"ROC\"),\"-\",IF(AND('Enrollment Form'!$B180=\"Subscriber\",'Enrollment Form'!$C180=\"Enroll\",'Enrollment Form'!$AL180<>\"\"),\"Y\",\"N\")))","v":""},{"$f":"IF($B173=\"N\",\"\",IF(OR('Enrollment Form'!$B180<>\"Subscriber\",'Enrollment Form'!$C180=\"ROC\"),\"-\",IF(AND('Enrollment Form'!$B180=\"Subscriber\",'Enrollment Form'!$C180=\"Enroll\",'Enrollment Form'!$AP180<>\"\"),\"Y\",\"N\")))","v":""},{"$f":"IF($B173=\"N\",\"\",IF(OR('Enrollment Form'!$B180<>\"Subscriber\",'Enrollment Form'!$C180=\"ROC\"),\"-\",IF(AND('Enrollment Form'!$B180=\"Subscriber\",'Enrollment Form'!$C180=\"Enroll\",'Enrollment Form'!$AQ180<>\"\"),\"Y\",\"N\")))","v":""},{"$f":"IF($B173=\"N\",\"\",IF(OR('Enrollment Form'!$B180<>\"Subscriber\",'Enrollment Form'!$C180=\"ROC\"),\"-\",IF(AND('Enrollment Form'!$B180=\"Subscriber\",'Enrollment Form'!$C180=\"Enroll\",'Enrollment Form'!$AS180<>\"\"),\"Y\",\"N\")))","v":""},{"$f":"IF($B173=\"N\",\"\",IF($Q173=\"-\",\"-\",IF(AND($Q173=\"Y\",'Enrollment Form'!$AS180=\"No\"),\"-\",IF(AND($Q173=\"Y\",'Enrollment Form'!$AS180=\"Yes\",'Enrollment Form'!$AT180<>\"\"),\"Y\",\"N\"))))","v":""},{"$f":"IF($B173=\"N\",\"\",IF(OR('Enrollment Form'!$B180<>\"Subscriber\",'Enrollment Form'!$C180=\"ROC\"),\"-\",IF(AND('Enrollment Form'!$B180=\"Subscriber\",'Enrollment Form'!$C180=\"Enroll\",'Enrollment Form'!$CV180<>\"\"),\"Y\",\"N\")))","v":""},{"$f":"IF($B173=\"N\",\"\",IF($S173=\"-\",\"-\",IF(AND($S173=\"Y\",'Enrollment Form'!$CV180=\"No\"),\"-\",IF(AND($S173=\"Y\",'Enrollment Form'!$CV180=\"Yes\",'Enrollment Form'!$CW180<>\"\"),\"Y\",\"N\"))))","v":""},{"$f":"IF(OR('Enrollment Form'!$AY180=\"Yes\",'Enrollment Form'!$AY180=\"\"),\"-\",IF(OR(AND('Enrollment Form'!$AY180=\"No\",ISERROR(FIND(\"HMO\",VLOOKUP('Enrollment Form'!G180,'Enrollment Form'!H$11:J$1000,3,FALSE),1))=FALSE,COUNTA('Enrollment Form'!$AZ180:$BC180)=4),AND('Enrollment Form'!$AY180=\"No\",ISERROR(FIND(\"HMO\",VLOOKUP('Enrollment Form'!G180,'Enrollment Form'!H$11:J$1000,3,FALSE),1))=FALSE,COUNTA('Enrollment Form'!$BT180:$BW180)=4)),\"Y\",\"N\"))","v":"-"},{"$f":"IF($B173=\"N\",\"\",IF('Enrollment Form'!$B180=\"Subscriber\",\"-\",IF(COUNTA('Enrollment Form'!$BL180,'Enrollment Form'!$BN180)=2,\"Y\",\"N\")))","v":""},{"$f":"IF($B173=\"N\",\"\",IF(OR('Enrollment Form'!$AX180=\"\",'Enrollment Form'!$AX180=\"No\"),\"-\",IF(AND('Enrollment Form'!$AX180=\"Yes\",COUNTA('Enrollment Form'!$CR180)=1),\"Y\",\"N\")))","v":""},{"$f":"IF(OR('Enrollment Form'!$CR180=\"\",'Enrollment Form'!$CR180=\"No\"),\"-\",IF(COUNTA('Enrollment Form'!$CT180:$CU180)=2,\"Y\",\"N\"))","v":"-"},{"$f":"IF($B173=\"N\",\"\",IF(COUNTIF('Enrollment Form'!$DG180:$DP180,\"Other\")=COUNTA('Enrollment Form'!$DK180,'Enrollment Form'!$DH180,'Enrollment Form'!$DN180,'Enrollment Form'!$DQ180),\"Y\",\"N\"))","v":""},{"$f":"IF($B173=\"N\",\"\",IF(OR('Enrollment Form'!B180<>\"Subscriber\",'Enrollment Form'!C180=\"ROC\",COUNTIF('Enrollment Form'!AV180:AW180,\"Yes\")>=1),\"-\",IF(AND('Enrollment Form'!C180=\"Enroll\",COUNTIF('Enrollment Form'!AV180:AW180,\"No\")=2,'Enrollment Form'!AX180=\"\"),\"N\",\"Y\")))","v":""},{"$f":"IF(OR(B173=\"N\",'Enrollment Form'!B180<>\"Subscriber\",'Enrollment Form'!C180=\"ROC\",'Enrollment Form'!O180<>\"Multiple of Salary\"),\"-\",IF(COUNTA('Enrollment Form'!T180:U180)<2,\"N\",\"Y\"))","v":"-"},{"$f":"IF(B173=\"N\",\"\",IF(OR('Enrollment Form'!C180=\"ROC\",'Enrollment Form'!B180<>\"Subscriber\",'Enrollment Form'!O180=\"Waive\",'Enrollment Form'!O180=\"\"),\"-\",IF('Enrollment Form'!P180=\"\",\"N\",\"Y\")))","v":""},{"$f":"IF($B173=\"N\",\"\",IF(AND('Enrollment Form'!$C180=\"ROC\",'Enrollment Form'!$DR180<>\"\"),\"Y\",IF(AND('Enrollment Form'!$C180=\"ROC\",'Enrollment Form'!$DR180=\"\"),\"N\",IF(AND('Enrollment Form'!$C180=\"Enroll\",'Enrollment Form'!$B180=\"Subscriber\",'Enrollment Form'!$CX180=\"No\",'Enrollment Form'!$DR180=\"\"),\"N\",IF(AND('Enrollment Form'!$C180=\"Enroll\",'Enrollment Form'!$B180=\"Subscriber\",'Enrollment Form'!$CX180=\"Yes\"),\"-\",\"Y\")))))","v":""},{"$f":"IF($B173=\"N\",\"\",IF(AND('Enrollment Form'!$C180=\"ROC\",'Enrollment Form'!$DS180<>\"\"),\"Y\",IF(AND('Enrollment Form'!$C180=\"ROC\",'Enrollment Form'!$DS180=\"\"),\"N\",IF(AND('Enrollment Form'!$C180=\"Enroll\",'Enrollment Form'!$B180=\"Subscriber\",'Enrollment Form'!$CX180=\"No\",'Enrollment Form'!$DS180=\"\"),\"N\",IF(AND('Enrollment Form'!$C180=\"Enroll\",'Enrollment Form'!$B180=\"Subscriber\",'Enrollment Form'!$CX180=\"Yes\"),\"-\",\"Y\")))))","v":""},{"$f":"IF('Enrollment Form'!AH180=\"\",\"\",IF(ISERROR(SEARCH(\".\",'Enrollment Form'!AH180,SEARCH(\"@\",'Enrollment Form'!AH180))),\"N\",\"Y\"))","v":""},{"$f":"IF(OR($B173=\"N\",'Enrollment Form'!$G180=\"\"),\"\",IF('Enrollment Form'!$B180<>\"Subscriber\",\"-\",IF(COUNTIF('Enrollment Form'!$AV180:$AW180,\"Yes\")=2,\"N\",\"Y\")))","v":""},{"$f":"IF(OR('Enrollment Form'!$CJ180=\"\",'Enrollment Form'!$CJ180=\"No\"),\"-\",IF(AND('Enrollment Form'!$CJ180=\"Yes\",'Enrollment Form'!$CK180=\"\"),\"N\",\"Y\"))","v":"-"},{"$f":"IF(OR('Enrollment Form'!$CL180=\"\",'Enrollment Form'!$CL180=\"No\"),\"-\",IF(AND('Enrollment Form'!$CL180=\"Yes\",'Enrollment Form'!$CM180=\"\"),\"N\",\"Y\"))","v":"-"},{"$f":"IF(OR('Enrollment Form'!$CN180=\"\",'Enrollment Form'!$CN180=\"No\"),\"-\",IF(AND('Enrollment Form'!$CN180=\"Yes\",'Enrollment Form'!$CO180=\"\"),\"N\",\"Y\"))","v":"-"},{"$f":"IF(OR('Enrollment Form'!$CN180=\"\",'Enrollment Form'!$CN180=\"No\"),\"-\",IF(AND('Enrollment Form'!$CN180=\"Yes\",'Enrollment Form'!$CP180=\"\"),\"N\",\"Y\"))","v":"-"},{"$f":"IF('Enrollment Form'!B180<>\"Subscriber\",\"-\",IF(AND('Enrollment Form'!B180=\"Subscriber\",'Enrollment Form'!C180=\"Enroll\",'Enrollment Form'!AA180=\"\"),\"N\",\"Y\"))","v":"-"},{"$f":"IF(OR('Enrollment Form'!B180=\"Subscriber\",'Enrollment Form'!B180=\"\"),\"-\",IF('Enrollment Form'!BP180=\"\",\"N\",\"Y\"))","v":"-"},{"$f":"IF('Enrollment Form'!B180<>\"Subscriber\",\"-\",IF(AND('Enrollment Form'!B180=\"Subscriber\",'Enrollment Form'!G180=\"\"),\"N\",\"Y\"))","v":"-"},{"$f":"IF('Enrollment Form'!A180=\"\",\"\",IF('Enrollment Form'!B180=\"Subscriber\",\"-\",IF(AND('Enrollment Form'!B180<>\"Subscriber\",'Enrollment Form'!G180='Enrollment Form'!H180),\"N\",\"Y\")))","v":""},0]
[181,{"$f":"IF('Enrollment Form'!$A181<>\"\",\"Y\",\"N\")","v":"N"},{"$f":"IF(AND('Enrollment Form'!$B181=\"\",'Enrollment Form'!$C181<>\"\"),\"N\",IF($B174=\"N\",\"\",\"Y\"))","v":""},{"$f":"IF(OR($B174=\"N\",'Enrollment Form'!G181=\"\"),\"\",IF('Enrollment Form'!$B181<>\"Subscriber\",\"\",IF('Enrollment Form'!$G181='Enrollment Form'!$H181,\"Y\",\"N\")))","v":""},{"$f":"IF($B174=\"N\",\"\",IF(AND(COUNTIFS('Enrollment Form'!$H$11:$H$1000,'Enrollment Form'!$H181,'Enrollment Form'!$B$11:$B$1000,'Enrollment Form'!$B181)>1,'Enrollment Form'!$H181<>\"\"),\"N\",\"Y\"))","v":""},{"$f":"IF($B174=\"N\",\"\",IF(LEN('Enrollment Form'!$Y181)=0,\"\",IF(LEN('Enrollment Form'!$Y181)<>5,\"N\",\"Y\")))","v":""},{"$f":"IF($B174=\"N\",\"\",IF(LEN('Enrollment Form'!$AD181=0),\"\",IF(LEN('Enrollment Form'!$AD181)<>5,\"N\",\"Y\")))","v":""},{"$f":"IF($B174=\"N\",\"\",IF(LEN('Enrollment Form'!$BS181=0),\"\",IF(LEN('Enrollment Form'!$BS181)<>5,\"N\",\"Y\")))","v":""},{"$f":"IF($B174=\"N\",\"\",IF(LEN('Enrollment Form'!$AE181)=0,\"\",IF(LEN('Enrollment Form'!$AE181)<>10,\"N\",\"Y\")))","v":""},{"$f":"IF($B174=\"N\",\"\",IF(LEN('Enrollment Form'!$AF181)=0,\"\",IF(LEN('Enrollment Form'!$AF181)<>10,\"N\",\"Y\")))","v":""},{"$f":"IF('Enrollment Form'!$O181<>\"Graded\",\"-\",IF(AND('Enrollment Form'!$O181=\"Graded\",'Enrollment Form'!$AR181<>\"\"),\"Y\",\"N\"))","v":"-"},{"$f":"IF($B174=\"N\",\"\",IF(OR('Enrollment Form'!$B181<>\"Subscriber\",'Enrollment Form'!$C181=\"ROC\"),\"-\",IF(AND('Enrollment Form'!$B181=\"Subscriber\",'Enrollment Form'!$C181=\"Enroll\",'Enrollment Form'!$AJ181<>\"\"),\"Y\",\"N\")))","v":""},{"$f":"IF($B174=\"N\",\"\",IF(OR('Enrollment Form'!$B181<>\"Subscriber\",'Enrollment Form'!$C181=\"ROC\"),\"-\",IF(AND('Enrollment Form'!$B181=\"Subscriber\",'Enrollment Form'!$C181=\"Enroll\",'Enrollment Form'!$AK181<>\"\"),\"Y\",\"N\")))","v":""},{"$f":"IF($B174=\"N\",\"\",IF(OR('Enrollment Form'!$B181<>\"Subscriber\",'Enrollment Form'!$C181=\"ROC\"),\"-\",IF(AND('Enrollment Form'!$B181=\"Subscriber\",'Enrollment Form'!$C181=\"Enroll\",'Enrollment Form'!$AL181<>\"\"),\"Y\",\"N\")))","v":""},{"$f":"IF($B174=\"N\",\"\",IF(OR('Enrollment Form'!$B181<>\"Subscriber\",'Enrollment Form'!$C181=\"ROC\"),\"-\",IF(AND('Enrollment Form'!$B181=\"Subscriber\",'Enrollment Form'!$C181=\"Enroll\",'Enrollment Form'!$AP181<>\"\"),\"Y\",\"N\")))","v":""},{"$f":"IF($B174=\"N\",\"\",IF(OR('Enrollment Form'!$B181<>\"Subscriber\",'Enrollment Form'!$C181=\"ROC\"),\"-\",IF(AND('Enrollment Form'!$B181=\"Subscriber\",'Enrollment Form'!$C181=\"Enroll\",'Enrollment Form'!$AQ181<>\"\"),\"Y\",\"N\")))","v":""},{"$f":"IF($B174=\"N\",\"\",IF(OR('Enrollment Form'!$B181<>\"Subscriber\",'Enrollment Form'!$C181=\"ROC\"),\"-\",IF(AND('Enrollment Form'!$B181=\"Subscriber\",'Enrollment Form'!$C181=\"Enroll\",'Enrollment Form'!$AS181<>\"\"),\"Y\",\"N\")))","v":""},{"$f":"IF($B174=\"N\",\"\",IF($Q174=\"-\",\"-\",IF(AND($Q174=\"Y\",'Enrollment Form'!$AS181=\"No\"),\"-\",IF(AND($Q174=\"Y\",'Enrollment Form'!$AS181=\"Yes\",'Enrollment Form'!$AT181<>\"\"),\"Y\",\"N\"))))","v":""},{"$f":"IF($B174=\"N\",\"\",IF(OR('Enrollment Form'!$B181<>\"Subscriber\",'Enrollment Form'!$C181=\"ROC\"),\"-\",IF(AND('Enrollment Form'!$B181=\"Subscriber\",'Enrollment Form'!$C181=\"Enroll\",'Enrollment Form'!$CV181<>\"\"),\"Y\",\"N\")))","v":""},{"$f":"IF($B174=\"N\",\"\",IF($S174=\"-\",\"-\",IF(AND($S174=\"Y\",'Enrollment Form'!$CV181=\"No\"),\"-\",IF(AND($S174=\"Y\",'Enrollment Form'!$CV181=\"Yes\",'Enrollment Form'!$CW181<>\"\"),\"Y\",\"N\"))))","v":""},{"$f":"IF(OR('Enrollment Form'!$AY181=\"Yes\",'Enrollment Form'!$AY181=\"\"),\"-\",IF(OR(AND('Enrollment Form'!$AY181=\"No\",ISERROR(FIND(\"HMO\",VLOOKUP('Enrollment Form'!G181,'Enrollment Form'!H$11:J$1000,3,FALSE),1))=FALSE,COUNTA('Enrollment Form'!$AZ181:$BC181)=4),AND('Enrollment Form'!$AY181=\"No\",ISERROR(FIND(\"HMO\",VLOOKUP('Enrollment Form'!G181,'Enrollment Form'!H$11:J$1000,3,FALSE),1))=FALSE,COUNTA('Enrollment Form'!$BT181:$BW181)=4)),\"Y\",\"N\"))","v":"-"},{"$f":"IF($B174=\"N\",\"\",IF('Enrollment Form'!$B181=\"Subscriber\",\"-\",IF(COUNTA('Enrollment Form'!$BL181,'Enrollment Form'!$BN181)=2,\"Y\",\"N\")))","v":""},{"$f":"IF($B174=\"N\",\"\",IF(OR('Enrollment Form'!$AX181=\"\",'Enrollment Form'!$AX181=\"No\"),\"-\",IF(AND('Enrollment Form'!$AX181=\"Yes\",COUNTA('Enrollment Form'!$CR181)=1),\"Y\",\"N\")))","v":""},{"$f":"IF(OR('Enrollment Form'!$CR181=\"\",'Enrollment Form'!$CR181=\"No\"),\"-\",IF(COUNTA('Enrollment Form'!$CT181:$CU181)=2,\"Y\",\"N\"))","v":"-"},{"$f":"IF($B174=\"N\",\"\",IF(COUNTIF('Enrollment Form'!$DG181:$DP181,\"Other\")=COUNTA('Enrollment Form'!$DK181,'Enrollment Form'!$DH181,'Enrollment Form'!$DN181,'Enrollment Form'!$DQ181),\"Y\",\"N\"))","v":""},{"$f":"IF($B174=\"N\",\"\",IF(OR('Enrollment Form'!B181<>\"Subscriber\",'Enrollment Form'!C181=\"ROC\",COUNTIF('Enrollment Form'!AV181:AW181,\"Yes\")>=1),\"-\",IF(AND('Enrollment Form'!C181=\"Enroll\",COUNTIF('Enrollment Form'!AV181:AW181,\"No\")=2,'Enrollment Form'!AX181=\"\"),\"N\",\"Y\")))","v":""},{"$f":"IF(OR(B174=\"N\",'Enrollment Form'!B181<>\"Subscriber\",'Enrollment Form'!C181=\"ROC\",'Enrollment Form'!O181<>\"Multiple of Salary\"),\"-\",IF(COUNTA('Enrollment Form'!T181:U181)<2,\"N\",\"Y\"))","v":"-"},{"$f":"IF(B174=\"N\",\"\",IF(OR('Enrollment Form'!C181=\"ROC\",'Enrollment Form'!B181<>\"Subscriber\",'Enrollment Form'!O181=\"Waive\",'Enrollment Form'!O181=\"\"),\"-\",IF('Enrollment Form'!P181=\"\",\"N\",\"Y\")))","v":""},{"$f":"IF($B174=\"N\",\"\",IF(AND('Enrollment Form'!$C181=\"ROC\",'Enrollment Form'!$DR181<>\"\"),\"Y\",IF(AND('Enrollment Form'!$C181=\"ROC\",'Enrollment Form'!$DR181=\"\"),\"N\",IF(AND('Enrollment Form'!$C181=\"Enroll\",'Enrollment Form'!$B181=\"Subscriber\",'Enrollment Form'!$CX181=\"No\",'Enrollment Form'!$DR181=\"\"),\"N\",IF(AND('Enrollment Form'!$C181=\"Enroll\",'Enrollment Form'!$B181=\"Subscriber\",'Enrollment Form'!$CX181=\"Yes\"),\"-\",\"Y\")))))","v":""},{"$f":"IF($B174=\"N\",\"\",IF(AND('Enrollment Form'!$C181=\"ROC\",'Enrollment Form'!$DS181<>\"\"),\"Y\",IF(AND('Enrollment Form'!$C181=\"ROC\",'Enrollment Form'!$DS181=\"\"),\"N\",IF(AND('Enrollment Form'!$C181=\"Enroll\",'Enrollment Form'!$B181=\"Subscriber\",'Enrollment Form'!$CX181=\"No\",'Enrollment Form'!$DS181=\"\"),\"N\",IF(AND('Enrollment Form'!$C181=\"Enroll\",'Enrollment Form'!$B181=\"Subscriber\",'Enrollment Form'!$CX181=\"Yes\"),\"-\",\"Y\")))))","v":""},{"$f":"IF('Enrollment Form'!AH181=\"\",\"\",IF(ISERROR(SEARCH(\".\",'Enrollment Form'!AH181,SEARCH(\"@\",'Enrollment Form'!AH181))),\"N\",\"Y\"))","v":""},{"$f":"IF(OR($B174=\"N\",'Enrollment Form'!$G181=\"\"),\"\",IF('Enrollment Form'!$B181<>\"Subscriber\",\"-\",IF(COUNTIF('Enrollment Form'!$AV181:$AW181,\"Yes\")=2,\"N\",\"Y\")))","v":""},{"$f":"IF(OR('Enrollment Form'!$CJ181=\"\",'Enrollment Form'!$CJ181=\"No\"),\"-\",IF(AND('Enrollment Form'!$CJ181=\"Yes\",'Enrollment Form'!$CK181=\"\"),\"N\",\"Y\"))","v":"-"},{"$f":"IF(OR('Enrollment Form'!$CL181=\"\",'Enrollment Form'!$CL181=\"No\"),\"-\",IF(AND('Enrollment Form'!$CL181=\"Yes\",'Enrollment Form'!$CM181=\"\"),\"N\",\"Y\"))","v":"-"},{"$f":"IF(OR('Enrollment Form'!$CN181=\"\",'Enrollment Form'!$CN181=\"No\"),\"-\",IF(AND('Enrollment Form'!$CN181=\"Yes\",'Enrollment Form'!$CO181=\"\"),\"N\",\"Y\"))","v":"-"},{"$f":"IF(OR('Enrollment Form'!$CN181=\"\",'Enrollment Form'!$CN181=\"No\"),\"-\",IF(AND('Enrollment Form'!$CN181=\"Yes\",'Enrollment Form'!$CP181=\"\"),\"N\",\"Y\"))","v":"-"},{"$f":"IF('Enrollment Form'!B181<>\"Subscriber\",\"-\",IF(AND('Enrollment Form'!B181=\"Subscriber\",'Enrollment Form'!C181=\"Enroll\",'Enrollment Form'!AA181=\"\"),\"N\",\"Y\"))","v":"-"},{"$f":"IF(OR('Enrollment Form'!B181=\"Subscriber\",'Enrollment Form'!B181=\"\"),\"-\",IF('Enrollment Form'!BP181=\"\",\"N\",\"Y\"))","v":"-"},{"$f":"IF('Enrollment Form'!B181<>\"Subscriber\",\"-\",IF(AND('Enrollment Form'!B181=\"Subscriber\",'Enrollment Form'!G181=\"\"),\"N\",\"Y\"))","v":"-"},{"$f":"IF('Enrollment Form'!A181=\"\",\"\",IF('Enrollment Form'!B181=\"Subscriber\",\"-\",IF(AND('Enrollment Form'!B181<>\"Subscriber\",'Enrollment Form'!G181='Enrollment Form'!H181),\"N\",\"Y\")))","v":""},0]
[182,{"$f":"IF('Enrollment Form'!$A182<>\"\",\"Y\",\"N\")","v":"N"},{"$f":"IF(AND('Enrollment Form'!$B182=\"\",'Enrollment Form'!$C182<>\"\"),\"N\",IF($B175=\"N\",\"\",\"Y\"))","v":""},{"$f":"IF(OR($B175=\"N\",'Enrollment Form'!G182=\"\"),\"\",IF('Enrollment Form'!$B182<>\"Subscriber\",\"\",IF('Enrollment Form'!$G182='Enrollment Form'!$H182,\"Y\",\"N\")))","v":""},{"$f":"IF($B175=\"N\",\"\",IF(AND(COUNTIFS('Enrollment Form'!$H$11:$H$1000,'Enrollment Form'!$H182,'Enrollment Form'!$B$11:$B$1000,'Enrollment Form'!$B182)>1,'Enrollment Form'!$H182<>\"\"),\"N\",\"Y\"))","v":""},{"$f":"IF($B175=\"N\",\"\",IF(LEN('Enrollment Form'!$Y182)=0,\"\",IF(LEN('Enrollment Form'!$Y182)<>5,\"N\",\"Y\")))","v":""},{"$f":"IF($B175=\"N\",\"\",IF(LEN('Enrollment Form'!$AD182=0),\"\",IF(LEN('Enrollment Form'!$AD182)<>5,\"N\",\"Y\")))","v":""},{"$f":"IF($B175=\"N\",\"\",IF(LEN('Enrollment Form'!$BS182=0),\"\",IF(LEN('Enrollment Form'!$BS182)<>5,\"N\",\"Y\")))","v":""},{"$f":"IF($B175=\"N\",\"\",IF(LEN('Enrollment Form'!$AE182)=0,\"\",IF(LEN('Enrollment Form'!$AE182)<>10,\"N\",\"Y\")))","v":""},{"$f":"IF($B175=\"N\",\"\",IF(LEN('Enrollment Form'!$AF182)=0,\"\",IF(LEN('Enrollment Form'!$AF182)<>10,\"N\",\"Y\")))","v":""},{"$f":"IF('Enrollment Form'!$O182<>\"Graded\",\"-\",IF(AND('Enrollment Form'!$O182=\"Graded\",'Enrollment Form'!$AR182<>\"\"),\"Y\",\"N\"))","v":"-"},{"$f":"IF($B175=\"N\",\"\",IF(OR('Enrollment Form'!$B182<>\"Subscriber\",'Enrollment Form'!$C182=\"ROC\"),\"-\",IF(AND('Enrollment Form'!$B182=\"Subscriber\",'Enrollment Form'!$C182=\"Enroll\",'Enrollment Form'!$AJ182<>\"\"),\"Y\",\"N\")))","v":""},{"$f":"IF($B175=\"N\",\"\",IF(OR('Enrollment Form'!$B182<>\"Subscriber\",'Enrollment Form'!$C182=\"ROC\"),\"-\",IF(AND('Enrollment Form'!$B182=\"Subscriber\",'Enrollment Form'!$C182=\"Enroll\",'Enrollment Form'!$AK182<>\"\"),\"Y\",\"N\")))","v":""},{"$f":"IF($B175=\"N\",\"\",IF(OR('Enrollment Form'!$B182<>\"Subscriber\",'Enrollment Form'!$C182=\"ROC\"),\"-\",IF(AND('Enrollment Form'!$B182=\"Subscriber\",'Enrollment Form'!$C182=\"Enroll\",'Enrollment Form'!$AL182<>\"\"),\"Y\",\"N\")))","v":""},{"$f":"IF($B175=\"N\",\"\",IF(OR('Enrollment Form'!$B182<>\"Subscriber\",'Enrollment Form'!$C182=\"ROC\"),\"-\",IF(AND('Enrollment Form'!$B182=\"Subscriber\",'Enrollment Form'!$C182=\"Enroll\",'Enrollment Form'!$AP182<>\"\"),\"Y\",\"N\")))","v":""},{"$f":"IF($B175=\"N\",\"\",IF(OR('Enrollment Form'!$B182<>\"Subscriber\",'Enrollment Form'!$C182=\"ROC\"),\"-\",IF(AND('Enrollment Form'!$B182=\"Subscriber\",'Enrollment Form'!$C182=\"Enroll\",'Enrollment Form'!$AQ182<>\"\"),\"Y\",\"N\")))","v":""},{"$f":"IF($B175=\"N\",\"\",IF(OR('Enrollment Form'!$B182<>\"Subscriber\",'Enrollment Form'!$C182=\"ROC\"),\"-\",IF(AND('Enrollment Form'!$B182=\"Subscriber\",'Enrollment Form'!$C182=\"Enroll\",'Enrollment Form'!$AS182<>\"\"),\"Y\",\"N\")))","v":""},{"$f":"IF($B175=\"N\",\"\",IF($Q175=\"-\",\"-\",IF(AND($Q175=\"Y\",'Enrollment Form'!$AS182=\"No\"),\"-\",IF(AND($Q175=\"Y\",'Enrollment Form'!$AS182=\"Yes\",'Enrollment Form'!$AT182<>\"\"),\"Y\",\"N\"))))","v":""},{"$f":"IF($B175=\"N\",\"\",IF(OR('Enrollment Form'!$B182<>\"Subscriber\",'Enrollment Form'!$C182=\"ROC\"),\"-\",IF(AND('Enrollment Form'!$B182=\"Subscriber\",'Enrollment Form'!$C182=\"Enroll\",'Enrollment Form'!$CV182<>\"\"),\"Y\",\"N\")))","v":""},{"$f":"IF($B175=\"N\",\"\",IF($S175=\"-\",\"-\",IF(AND($S175=\"Y\",'Enrollment Form'!$CV182=\"No\"),\"-\",IF(AND($S175=\"Y\",'Enrollment Form'!$CV182=\"Yes\",'Enrollment Form'!$CW182<>\"\"),\"Y\",\"N\"))))","v":""},{"$f":"IF(OR('Enrollment Form'!$AY182=\"Yes\",'Enrollment Form'!$AY182=\"\"),\"-\",IF(OR(AND('Enrollment Form'!$AY182=\"No\",ISERROR(FIND(\"HMO\",VLOOKUP('Enrollment Form'!G182,'Enrollment Form'!H$11:J$1000,3,FALSE),1))=FALSE,COUNTA('Enrollment Form'!$AZ182:$BC182)=4),AND('Enrollment Form'!$AY182=\"No\",ISERROR(FIND(\"HMO\",VLOOKUP('Enrollment Form'!G182,'Enrollment Form'!H$11:J$1000,3,FALSE),1))=FALSE,COUNTA('Enrollment Form'!$BT182:$BW182)=4)),\"Y\",\"N\"))","v":"-"},{"$f":"IF($B175=\"N\",\"\",IF('Enrollment Form'!$B182=\"Subscriber\",\"-\",IF(COUNTA('Enrollment Form'!$BL182,'Enrollment Form'!$BN182)=2,\"Y\",\"N\")))","v":""},{"$f":"IF($B175=\"N\",\"\",IF(OR('Enrollment Form'!$AX182=\"\",'Enrollment Form'!$AX182=\"No\"),\"-\",IF(AND('Enrollment Form'!$AX182=\"Yes\",COUNTA('Enrollment Form'!$CR182)=1),\"Y\",\"N\")))","v":""},{"$f":"IF(OR('Enrollment Form'!$CR182=\"\",'Enrollment Form'!$CR182=\"No\"),\"-\",IF(COUNTA('Enrollment Form'!$CT182:$CU182)=2,\"Y\",\"N\"))","v":"-"},{"$f":"IF($B175=\"N\",\"\",IF(COUNTIF('Enrollment Form'!$DG182:$DP182,\"Other\")=COUNTA('Enrollment Form'!$DK182,'Enrollment Form'!$DH182,'Enrollment Form'!$DN182,'Enrollment Form'!$DQ182),\"Y\",\"N\"))","v":""},{"$f":"IF($B175=\"N\",\"\",IF(OR('Enrollment Form'!B182<>\"Subscriber\",'Enrollment Form'!C182=\"ROC\",COUNTIF('Enrollment Form'!AV182:AW182,\"Yes\")>=1),\"-\",IF(AND('Enrollment Form'!C182=\"Enroll\",COUNTIF('Enrollment Form'!AV182:AW182,\"No\")=2,'Enrollment Form'!AX182=\"\"),\"N\",\"Y\")))","v":""},{"$f":"IF(OR(B175=\"N\",'Enrollment Form'!B182<>\"Subscriber\",'Enrollment Form'!C182=\"ROC\",'Enrollment Form'!O182<>\"Multiple of Salary\"),\"-\",IF(COUNTA('Enrollment Form'!T182:U182)<2,\"N\",\"Y\"))","v":"-"},{"$f":"IF(B175=\"N\",\"\",IF(OR('Enrollment Form'!C182=\"ROC\",'Enrollment Form'!B182<>\"Subscriber\",'Enrollment Form'!O182=\"Waive\",'Enrollment Form'!O182=\"\"),\"-\",IF('Enrollment Form'!P182=\"\",\"N\",\"Y\")))","v":""},{"$f":"IF($B175=\"N\",\"\",IF(AND('Enrollment Form'!$C182=\"ROC\",'Enrollment Form'!$DR182<>\"\"),\"Y\",IF(AND('Enrollment Form'!$C182=\"ROC\",'Enrollment Form'!$DR182=\"\"),\"N\",IF(AND('Enrollment Form'!$C182=\"Enroll\",'Enrollment Form'!$B182=\"Subscriber\",'Enrollment Form'!$CX182=\"No\",'Enrollment Form'!$DR182=\"\"),\"N\",IF(AND('Enrollment Form'!$C182=\"Enroll\",'Enrollment Form'!$B182=\"Subscriber\",'Enrollment Form'!$CX182=\"Yes\"),\"-\",\"Y\")))))","v":""},{"$f":"IF($B175=\"N\",\"\",IF(AND('Enrollment Form'!$C182=\"ROC\",'Enrollment Form'!$DS182<>\"\"),\"Y\",IF(AND('Enrollment Form'!$C182=\"ROC\",'Enrollment Form'!$DS182=\"\"),\"N\",IF(AND('Enrollment Form'!$C182=\"Enroll\",'Enrollment Form'!$B182=\"Subscriber\",'Enrollment Form'!$CX182=\"No\",'Enrollment Form'!$DS182=\"\"),\"N\",IF(AND('Enrollment Form'!$C182=\"Enroll\",'Enrollment Form'!$B182=\"Subscriber\",'Enrollment Form'!$CX182=\"Yes\"),\"-\",\"Y\")))))","v":""},{"$f":"IF('Enrollment Form'!AH182=\"\",\"\",IF(ISERROR(SEARCH(\".\",'Enrollment Form'!AH182,SEARCH(\"@\",'Enrollment Form'!AH182))),\"N\",\"Y\"))","v":""},{"$f":"IF(OR($B175=\"N\",'Enrollment Form'!$G182=\"\"),\"\",IF('Enrollment Form'!$B182<>\"Subscriber\",\"-\",IF(COUNTIF('Enrollment Form'!$AV182:$AW182,\"Yes\")=2,\"N\",\"Y\")))","v":""},{"$f":"IF(OR('Enrollment Form'!$CJ182=\"\",'Enrollment Form'!$CJ182=\"No\"),\"-\",IF(AND('Enrollment Form'!$CJ182=\"Yes\",'Enrollment Form'!$CK182=\"\"),\"N\",\"Y\"))","v":"-"},{"$f":"IF(OR('Enrollment Form'!$CL182=\"\",'Enrollment Form'!$CL182=\"No\"),\"-\",IF(AND('Enrollment Form'!$CL182=\"Yes\",'Enrollment Form'!$CM182=\"\"),\"N\",\"Y\"))","v":"-"},{"$f":"IF(OR('Enrollment Form'!$CN182=\"\",'Enrollment Form'!$CN182=\"No\"),\"-\",IF(AND('Enrollment Form'!$CN182=\"Yes\",'Enrollment Form'!$CO182=\"\"),\"N\",\"Y\"))","v":"-"},{"$f":"IF(OR('Enrollment Form'!$CN182=\"\",'Enrollment Form'!$CN182=\"No\"),\"-\",IF(AND('Enrollment Form'!$CN182=\"Yes\",'Enrollment Form'!$CP182=\"\"),\"N\",\"Y\"))","v":"-"},{"$f":"IF('Enrollment Form'!B182<>\"Subscriber\",\"-\",IF(AND('Enrollment Form'!B182=\"Subscriber\",'Enrollment Form'!C182=\"Enroll\",'Enrollment Form'!AA182=\"\"),\"N\",\"Y\"))","v":"-"},{"$f":"IF(OR('Enrollment Form'!B182=\"Subscriber\",'Enrollment Form'!B182=\"\"),\"-\",IF('Enrollment Form'!BP182=\"\",\"N\",\"Y\"))","v":"-"},{"$f":"IF('Enrollment Form'!B182<>\"Subscriber\",\"-\",IF(AND('Enrollment Form'!B182=\"Subscriber\",'Enrollment Form'!G182=\"\"),\"N\",\"Y\"))","v":"-"},{"$f":"IF('Enrollment Form'!A182=\"\",\"\",IF('Enrollment Form'!B182=\"Subscriber\",\"-\",IF(AND('Enrollment Form'!B182<>\"Subscriber\",'Enrollment Form'!G182='Enrollment Form'!H182),\"N\",\"Y\")))","v":""},0]
[183,{"$f":"IF('Enrollment Form'!$A183<>\"\",\"Y\",\"N\")","v":"N"},{"$f":"IF(AND('Enrollment Form'!$B183=\"\",'Enrollment Form'!$C183<>\"\"),\"N\",IF($B176=\"N\",\"\",\"Y\"))","v":""},{"$f":"IF(OR($B176=\"N\",'Enrollment Form'!G183=\"\"),\"\",IF('Enrollment Form'!$B183<>\"Subscriber\",\"\",IF('Enrollment Form'!$G183='Enrollment Form'!$H183,\"Y\",\"N\")))","v":""},{"$f":"IF($B176=\"N\",\"\",IF(AND(COUNTIFS('Enrollment Form'!$H$11:$H$1000,'Enrollment Form'!$H183,'Enrollment Form'!$B$11:$B$1000,'Enrollment Form'!$B183)>1,'Enrollment Form'!$H183<>\"\"),\"N\",\"Y\"))","v":""},{"$f":"IF($B176=\"N\",\"\",IF(LEN('Enrollment Form'!$Y183)=0,\"\",IF(LEN('Enrollment Form'!$Y183)<>5,\"N\",\"Y\")))","v":""},{"$f":"IF($B176=\"N\",\"\",IF(LEN('Enrollment Form'!$AD183=0),\"\",IF(LEN('Enrollment Form'!$AD183)<>5,\"N\",\"Y\")))","v":""},{"$f":"IF($B176=\"N\",\"\",IF(LEN('Enrollment Form'!$BS183=0),\"\",IF(LEN('Enrollment Form'!$BS183)<>5,\"N\",\"Y\")))","v":""},{"$f":"IF($B176=\"N\",\"\",IF(LEN('Enrollment Form'!$AE183)=0,\"\",IF(LEN('Enrollment Form'!$AE183)<>10,\"N\",\"Y\")))","v":""},{"$f":"IF($B176=\"N\",\"\",IF(LEN('Enrollment Form'!$AF183)=0,\"\",IF(LEN('Enrollment Form'!$AF183)<>10,\"N\",\"Y\")))","v":""},{"$f":"IF('Enrollment Form'!$O183<>\"Graded\",\"-\",IF(AND('Enrollment Form'!$O183=\"Graded\",'Enrollment Form'!$AR183<>\"\"),\"Y\",\"N\"))","v":"-"},{"$f":"IF($B176=\"N\",\"\",IF(OR('Enrollment Form'!$B183<>\"Subscriber\",'Enrollment Form'!$C183=\"ROC\"),\"-\",IF(AND('Enrollment Form'!$B183=\"Subscriber\",'Enrollment Form'!$C183=\"Enroll\",'Enrollment Form'!$AJ183<>\"\"),\"Y\",\"N\")))","v":""},{"$f":"IF($B176=\"N\",\"\",IF(OR('Enrollment Form'!$B183<>\"Subscriber\",'Enrollment Form'!$C183=\"ROC\"),\"-\",IF(AND('Enrollment Form'!$B183=\"Subscriber\",'Enrollment Form'!$C183=\"Enroll\",'Enrollment Form'!$AK183<>\"\"),\"Y\",\"N\")))","v":""},{"$f":"IF($B176=\"N\",\"\",IF(OR('Enrollment Form'!$B183<>\"Subscriber\",'Enrollment Form'!$C183=\"ROC\"),\"-\",IF(AND('Enrollment Form'!$B183=\"Subscriber\",'Enrollment Form'!$C183=\"Enroll\",'Enrollment Form'!$AL183<>\"\"),\"Y\",\"N\")))","v":""},{"$f":"IF($B176=\"N\",\"\",IF(OR('Enrollment Form'!$B183<>\"Subscriber\",'Enrollment Form'!$C183=\"ROC\"),\"-\",IF(AND('Enrollment Form'!$B183=\"Subscriber\",'Enrollment Form'!$C183=\"Enroll\",'Enrollment Form'!$AP183<>\"\"),\"Y\",\"N\")))","v":""},{"$f":"IF($B176=\"N\",\"\",IF(OR('Enrollment Form'!$B183<>\"Subscriber\",'Enrollment Form'!$C183=\"ROC\"),\"-\",IF(AND('Enrollment Form'!$B183=\"Subscriber\",'Enrollment Form'!$C183=\"Enroll\",'Enrollment Form'!$AQ183<>\"\"),\"Y\",\"N\")))","v":""},{"$f":"IF($B176=\"N\",\"\",IF(OR('Enrollment Form'!$B183<>\"Subscriber\",'Enrollment Form'!$C183=\"ROC\"),\"-\",IF(AND('Enrollment Form'!$B183=\"Subscriber\",'Enrollment Form'!$C183=\"Enroll\",'Enrollment Form'!$AS183<>\"\"),\"Y\",\"N\")))","v":""},{"$f":"IF($B176=\"N\",\"\",IF($Q176=\"-\",\"-\",IF(AND($Q176=\"Y\",'Enrollment Form'!$AS183=\"No\"),\"-\",IF(AND($Q176=\"Y\",'Enrollment Form'!$AS183=\"Yes\",'Enrollment Form'!$AT183<>\"\"),\"Y\",\"N\"))))","v":""},{"$f":"IF($B176=\"N\",\"\",IF(OR('Enrollment Form'!$B183<>\"Subscriber\",'Enrollment Form'!$C183=\"ROC\"),\"-\",IF(AND('Enrollment Form'!$B183=\"Subscriber\",'Enrollment Form'!$C183=\"Enroll\",'Enrollment Form'!$CV183<>\"\"),\"Y\",\"N\")))","v":""},{"$f":"IF($B176=\"N\",\"\",IF($S176=\"-\",\"-\",IF(AND($S176=\"Y\",'Enrollment Form'!$CV183=\"No\"),\"-\",IF(AND($S176=\"Y\",'Enrollment Form'!$CV183=\"Yes\",'Enrollment Form'!$CW183<>\"\"),\"Y\",\"N\"))))","v":""},{"$f":"IF(OR('Enrollment Form'!$AY183=\"Yes\",'Enrollment Form'!$AY183=\"\"),\"-\",IF(OR(AND('Enrollment Form'!$AY183=\"No\",ISERROR(FIND(\"HMO\",VLOOKUP('Enrollment Form'!G183,'Enrollment Form'!H$11:J$1000,3,FALSE),1))=FALSE,COUNTA('Enrollment Form'!$AZ183:$BC183)=4),AND('Enrollment Form'!$AY183=\"No\",ISERROR(FIND(\"HMO\",VLOOKUP('Enrollment Form'!G183,'Enrollment Form'!H$11:J$1000,3,FALSE),1))=FALSE,COUNTA('Enrollment Form'!$BT183:$BW183)=4)),\"Y\",\"N\"))","v":"-"},{"$f":"IF($B176=\"N\",\"\",IF('Enrollment Form'!$B183=\"Subscriber\",\"-\",IF(COUNTA('Enrollment Form'!$BL183,'Enrollment Form'!$BN183)=2,\"Y\",\"N\")))","v":""},{"$f":"IF($B176=\"N\",\"\",IF(OR('Enrollment Form'!$AX183=\"\",'Enrollment Form'!$AX183=\"No\"),\"-\",IF(AND('Enrollment Form'!$AX183=\"Yes\",COUNTA('Enrollment Form'!$CR183)=1),\"Y\",\"N\")))","v":""},{"$f":"IF(OR('Enrollment Form'!$CR183=\"\",'Enrollment Form'!$CR183=\"No\"),\"-\",IF(COUNTA('Enrollment Form'!$CT183:$CU183)=2,\"Y\",\"N\"))","v":"-"},{"$f":"IF($B176=\"N\",\"\",IF(COUNTIF('Enrollment Form'!$DG183:$DP183,\"Other\")=COUNTA('Enrollment Form'!$DK183,'Enrollment Form'!$DH183,'Enrollment Form'!$DN183,'Enrollment Form'!$DQ183),\"Y\",\"N\"))","v":""},{"$f":"IF($B176=\"N\",\"\",IF(OR('Enrollment Form'!B183<>\"Subscriber\",'Enrollment Form'!C183=\"ROC\",COUNTIF('Enrollment Form'!AV183:AW183,\"Yes\")>=1),\"-\",IF(AND('Enrollment Form'!C183=\"Enroll\",COUNTIF('Enrollment Form'!AV183:AW183,\"No\")=2,'Enrollment Form'!AX183=\"\"),\"N\",\"Y\")))","v":""},{"$f":"IF(OR(B176=\"N\",'Enrollment Form'!B183<>\"Subscriber\",'Enrollment Form'!C183=\"ROC\",'Enrollment Form'!O183<>\"Multiple of Salary\"),\"-\",IF(COUNTA('Enrollment Form'!T183:U183)<2,\"N\",\"Y\"))","v":"-"},{"$f":"IF(B176=\"N\",\"\",IF(OR('Enrollment Form'!C183=\"ROC\",'Enrollment Form'!B183<>\"Subscriber\",'Enrollment Form'!O183=\"Waive\",'Enrollment Form'!O183=\"\"),\"-\",IF('Enrollment Form'!P183=\"\",\"N\",\"Y\")))","v":""},{"$f":"IF($B176=\"N\",\"\",IF(AND('Enrollment Form'!$C183=\"ROC\",'Enrollment Form'!$DR183<>\"\"),\"Y\",IF(AND('Enrollment Form'!$C183=\"ROC\",'Enrollment Form'!$DR183=\"\"),\"N\",IF(AND('Enrollment Form'!$C183=\"Enroll\",'Enrollment Form'!$B183=\"Subscriber\",'Enrollment Form'!$CX183=\"No\",'Enrollment Form'!$DR183=\"\"),\"N\",IF(AND('Enrollment Form'!$C183=\"Enroll\",'Enrollment Form'!$B183=\"Subscriber\",'Enrollment Form'!$CX183=\"Yes\"),\"-\",\"Y\")))))","v":""},{"$f":"IF($B176=\"N\",\"\",IF(AND('Enrollment Form'!$C183=\"ROC\",'Enrollment Form'!$DS183<>\"\"),\"Y\",IF(AND('Enrollment Form'!$C183=\"ROC\",'Enrollment Form'!$DS183=\"\"),\"N\",IF(AND('Enrollment Form'!$C183=\"Enroll\",'Enrollment Form'!$B183=\"Subscriber\",'Enrollment Form'!$CX183=\"No\",'Enrollment Form'!$DS183=\"\"),\"N\",IF(AND('Enrollment Form'!$C183=\"Enroll\",'Enrollment Form'!$B183=\"Subscriber\",'Enrollment Form'!$CX183=\"Yes\"),\"-\",\"Y\")))))","v":""},{"$f":"IF('Enrollment Form'!AH183=\"\",\"\",IF(ISERROR(SEARCH(\".\",'Enrollment Form'!AH183,SEARCH(\"@\",'Enrollment Form'!AH183))),\"N\",\"Y\"))","v":""},{"$f":"IF(OR($B176=\"N\",'Enrollment Form'!$G183=\"\"),\"\",IF('Enrollment Form'!$B183<>\"Subscriber\",\"-\",IF(COUNTIF('Enrollment Form'!$AV183:$AW183,\"Yes\")=2,\"N\",\"Y\")))","v":""},{"$f":"IF(OR('Enrollment Form'!$CJ183=\"\",'Enrollment Form'!$CJ183=\"No\"),\"-\",IF(AND('Enrollment Form'!$CJ183=\"Yes\",'Enrollment Form'!$CK183=\"\"),\"N\",\"Y\"))","v":"-"},{"$f":"IF(OR('Enrollment Form'!$CL183=\"\",'Enrollment Form'!$CL183=\"No\"),\"-\",IF(AND('Enrollment Form'!$CL183=\"Yes\",'Enrollment Form'!$CM183=\"\"),\"N\",\"Y\"))","v":"-"},{"$f":"IF(OR('Enrollment Form'!$CN183=\"\",'Enrollment Form'!$CN183=\"No\"),\"-\",IF(AND('Enrollment Form'!$CN183=\"Yes\",'Enrollment Form'!$CO183=\"\"),\"N\",\"Y\"))","v":"-"},{"$f":"IF(OR('Enrollment Form'!$CN183=\"\",'Enrollment Form'!$CN183=\"No\"),\"-\",IF(AND('Enrollment Form'!$CN183=\"Yes\",'Enrollment Form'!$CP183=\"\"),\"N\",\"Y\"))","v":"-"},{"$f":"IF('Enrollment Form'!B183<>\"Subscriber\",\"-\",IF(AND('Enrollment Form'!B183=\"Subscriber\",'Enrollment Form'!C183=\"Enroll\",'Enrollment Form'!AA183=\"\"),\"N\",\"Y\"))","v":"-"},{"$f":"IF(OR('Enrollment Form'!B183=\"Subscriber\",'Enrollment Form'!B183=\"\"),\"-\",IF('Enrollment Form'!BP183=\"\",\"N\",\"Y\"))","v":"-"},{"$f":"IF('Enrollment Form'!B183<>\"Subscriber\",\"-\",IF(AND('Enrollment Form'!B183=\"Subscriber\",'Enrollment Form'!G183=\"\"),\"N\",\"Y\"))","v":"-"},{"$f":"IF('Enrollment Form'!A183=\"\",\"\",IF('Enrollment Form'!B183=\"Subscriber\",\"-\",IF(AND('Enrollment Form'!B183<>\"Subscriber\",'Enrollment Form'!G183='Enrollment Form'!H183),\"N\",\"Y\")))","v":""},0]
[184,{"$f":"IF('Enrollment Form'!$A184<>\"\",\"Y\",\"N\")","v":"N"},{"$f":"IF(AND('Enrollment Form'!$B184=\"\",'Enrollment Form'!$C184<>\"\"),\"N\",IF($B177=\"N\",\"\",\"Y\"))","v":""},{"$f":"IF(OR($B177=\"N\",'Enrollment Form'!G184=\"\"),\"\",IF('Enrollment Form'!$B184<>\"Subscriber\",\"\",IF('Enrollment Form'!$G184='Enrollment Form'!$H184,\"Y\",\"N\")))","v":""},{"$f":"IF($B177=\"N\",\"\",IF(AND(COUNTIFS('Enrollment Form'!$H$11:$H$1000,'Enrollment Form'!$H184,'Enrollment Form'!$B$11:$B$1000,'Enrollment Form'!$B184)>1,'Enrollment Form'!$H184<>\"\"),\"N\",\"Y\"))","v":""},{"$f":"IF($B177=\"N\",\"\",IF(LEN('Enrollment Form'!$Y184)=0,\"\",IF(LEN('Enrollment Form'!$Y184)<>5,\"N\",\"Y\")))","v":""},{"$f":"IF($B177=\"N\",\"\",IF(LEN('Enrollment Form'!$AD184=0),\"\",IF(LEN('Enrollment Form'!$AD184)<>5,\"N\",\"Y\")))","v":""},{"$f":"IF($B177=\"N\",\"\",IF(LEN('Enrollment Form'!$BS184=0),\"\",IF(LEN('Enrollment Form'!$BS184)<>5,\"N\",\"Y\")))","v":""},{"$f":"IF($B177=\"N\",\"\",IF(LEN('Enrollment Form'!$AE184)=0,\"\",IF(LEN('Enrollment Form'!$AE184)<>10,\"N\",\"Y\")))","v":""},{"$f":"IF($B177=\"N\",\"\",IF(LEN('Enrollment Form'!$AF184)=0,\"\",IF(LEN('Enrollment Form'!$AF184)<>10,\"N\",\"Y\")))","v":""},{"$f":"IF('Enrollment Form'!$O184<>\"Graded\",\"-\",IF(AND('Enrollment Form'!$O184=\"Graded\",'Enrollment Form'!$AR184<>\"\"),\"Y\",\"N\"))","v":"-"},{"$f":"IF($B177=\"N\",\"\",IF(OR('Enrollment Form'!$B184<>\"Subscriber\",'Enrollment Form'!$C184=\"ROC\"),\"-\",IF(AND('Enrollment Form'!$B184=\"Subscriber\",'Enrollment Form'!$C184=\"Enroll\",'Enrollment Form'!$AJ184<>\"\"),\"Y\",\"N\")))","v":""},{"$f":"IF($B177=\"N\",\"\",IF(OR('Enrollment Form'!$B184<>\"Subscriber\",'Enrollment Form'!$C184=\"ROC\"),\"-\",IF(AND('Enrollment Form'!$B184=\"Subscriber\",'Enrollment Form'!$C184=\"Enroll\",'Enrollment Form'!$AK184<>\"\"),\"Y\",\"N\")))","v":""},{"$f":"IF($B177=\"N\",\"\",IF(OR('Enrollment Form'!$B184<>\"Subscriber\",'Enrollment Form'!$C184=\"ROC\"),\"-\",IF(AND('Enrollment Form'!$B184=\"Subscriber\",'Enrollment Form'!$C184=\"Enroll\",'Enrollment Form'!$AL184<>\"\"),\"Y\",\"N\")))","v":""},{"$f":"IF($B177=\"N\",\"\",IF(OR('Enrollment Form'!$B184<>\"Subscriber\",'Enrollment Form'!$C184=\"ROC\"),\"-\",IF(AND('Enrollment Form'!$B184=\"Subscriber\",'Enrollment Form'!$C184=\"Enroll\",'Enrollment Form'!$AP184<>\"\"),\"Y\",\"N\")))","v":""},{"$f":"IF($B177=\"N\",\"\",IF(OR('Enrollment Form'!$B184<>\"Subscriber\",'Enrollment Form'!$C184=\"ROC\"),\"-\",IF(AND('Enrollment Form'!$B184=\"Subscriber\",'Enrollment Form'!$C184=\"Enroll\",'Enrollment Form'!$AQ184<>\"\"),\"Y\",\"N\")))","v":""},{"$f":"IF($B177=\"N\",\"\",IF(OR('Enrollment Form'!$B184<>\"Subscriber\",'Enrollment Form'!$C184=\"ROC\"),\"-\",IF(AND('Enrollment Form'!$B184=\"Subscriber\",'Enrollment Form'!$C184=\"Enroll\",'Enrollment Form'!$AS184<>\"\"),\"Y\",\"N\")))","v":""},{"$f":"IF($B177=\"N\",\"\",IF($Q177=\"-\",\"-\",IF(AND($Q177=\"Y\",'Enrollment Form'!$AS184=\"No\"),\"-\",IF(AND($Q177=\"Y\",'Enrollment Form'!$AS184=\"Yes\",'Enrollment Form'!$AT184<>\"\"),\"Y\",\"N\"))))","v":""},{"$f":"IF($B177=\"N\",\"\",IF(OR('Enrollment Form'!$B184<>\"Subscriber\",'Enrollment Form'!$C184=\"ROC\"),\"-\",IF(AND('Enrollment Form'!$B184=\"Subscriber\",'Enrollment Form'!$C184=\"Enroll\",'Enrollment Form'!$CV184<>\"\"),\"Y\",\"N\")))","v":""},{"$f":"IF($B177=\"N\",\"\",IF($S177=\"-\",\"-\",IF(AND($S177=\"Y\",'Enrollment Form'!$CV184=\"No\"),\"-\",IF(AND($S177=\"Y\",'Enrollment Form'!$CV184=\"Yes\",'Enrollment Form'!$CW184<>\"\"),\"Y\",\"N\"))))","v":""},{"$f":"IF(OR('Enrollment Form'!$AY184=\"Yes\",'Enrollment Form'!$AY184=\"\"),\"-\",IF(OR(AND('Enrollment Form'!$AY184=\"No\",ISERROR(FIND(\"HMO\",VLOOKUP('Enrollment Form'!G184,'Enrollment Form'!H$11:J$1000,3,FALSE),1))=FALSE,COUNTA('Enrollment Form'!$AZ184:$BC184)=4),AND('Enrollment Form'!$AY184=\"No\",ISERROR(FIND(\"HMO\",VLOOKUP('Enrollment Form'!G184,'Enrollment Form'!H$11:J$1000,3,FALSE),1))=FALSE,COUNTA('Enrollment Form'!$BT184:$BW184)=4)),\"Y\",\"N\"))","v":"-"},{"$f":"IF($B177=\"N\",\"\",IF('Enrollment Form'!$B184=\"Subscriber\",\"-\",IF(COUNTA('Enrollment Form'!$BL184,'Enrollment Form'!$BN184)=2,\"Y\",\"N\")))","v":""},{"$f":"IF($B177=\"N\",\"\",IF(OR('Enrollment Form'!$AX184=\"\",'Enrollment Form'!$AX184=\"No\"),\"-\",IF(AND('Enrollment Form'!$AX184=\"Yes\",COUNTA('Enrollment Form'!$CR184)=1),\"Y\",\"N\")))","v":""},{"$f":"IF(OR('Enrollment Form'!$CR184=\"\",'Enrollment Form'!$CR184=\"No\"),\"-\",IF(COUNTA('Enrollment Form'!$CT184:$CU184)=2,\"Y\",\"N\"))","v":"-"},{"$f":"IF($B177=\"N\",\"\",IF(COUNTIF('Enrollment Form'!$DG184:$DP184,\"Other\")=COUNTA('Enrollment Form'!$DK184,'Enrollment Form'!$DH184,'Enrollment Form'!$DN184,'Enrollment Form'!$DQ184),\"Y\",\"N\"))","v":""},{"$f":"IF($B177=\"N\",\"\",IF(OR('Enrollment Form'!B184<>\"Subscriber\",'Enrollment Form'!C184=\"ROC\",COUNTIF('Enrollment Form'!AV184:AW184,\"Yes\")>=1),\"-\",IF(AND('Enrollment Form'!C184=\"Enroll\",COUNTIF('Enrollment Form'!AV184:AW184,\"No\")=2,'Enrollment Form'!AX184=\"\"),\"N\",\"Y\")))","v":""},{"$f":"IF(OR(B177=\"N\",'Enrollment Form'!B184<>\"Subscriber\",'Enrollment Form'!C184=\"ROC\",'Enrollment Form'!O184<>\"Multiple of Salary\"),\"-\",IF(COUNTA('Enrollment Form'!T184:U184)<2,\"N\",\"Y\"))","v":"-"},{"$f":"IF(B177=\"N\",\"\",IF(OR('Enrollment Form'!C184=\"ROC\",'Enrollment Form'!B184<>\"Subscriber\",'Enrollment Form'!O184=\"Waive\",'Enrollment Form'!O184=\"\"),\"-\",IF('Enrollment Form'!P184=\"\",\"N\",\"Y\")))","v":""},{"$f":"IF($B177=\"N\",\"\",IF(AND('Enrollment Form'!$C184=\"ROC\",'Enrollment Form'!$DR184<>\"\"),\"Y\",IF(AND('Enrollment Form'!$C184=\"ROC\",'Enrollment Form'!$DR184=\"\"),\"N\",IF(AND('Enrollment Form'!$C184=\"Enroll\",'Enrollment Form'!$B184=\"Subscriber\",'Enrollment Form'!$CX184=\"No\",'Enrollment Form'!$DR184=\"\"),\"N\",IF(AND('Enrollment Form'!$C184=\"Enroll\",'Enrollment Form'!$B184=\"Subscriber\",'Enrollment Form'!$CX184=\"Yes\"),\"-\",\"Y\")))))","v":""},{"$f":"IF($B177=\"N\",\"\",IF(AND('Enrollment Form'!$C184=\"ROC\",'Enrollment Form'!$DS184<>\"\"),\"Y\",IF(AND('Enrollment Form'!$C184=\"ROC\",'Enrollment Form'!$DS184=\"\"),\"N\",IF(AND('Enrollment Form'!$C184=\"Enroll\",'Enrollment Form'!$B184=\"Subscriber\",'Enrollment Form'!$CX184=\"No\",'Enrollment Form'!$DS184=\"\"),\"N\",IF(AND('Enrollment Form'!$C184=\"Enroll\",'Enrollment Form'!$B184=\"Subscriber\",'Enrollment Form'!$CX184=\"Yes\"),\"-\",\"Y\")))))","v":""},{"$f":"IF('Enrollment Form'!AH184=\"\",\"\",IF(ISERROR(SEARCH(\".\",'Enrollment Form'!AH184,SEARCH(\"@\",'Enrollment Form'!AH184))),\"N\",\"Y\"))","v":""},{"$f":"IF(OR($B177=\"N\",'Enrollment Form'!$G184=\"\"),\"\",IF('Enrollment Form'!$B184<>\"Subscriber\",\"-\",IF(COUNTIF('Enrollment Form'!$AV184:$AW184,\"Yes\")=2,\"N\",\"Y\")))","v":""},{"$f":"IF(OR('Enrollment Form'!$CJ184=\"\",'Enrollment Form'!$CJ184=\"No\"),\"-\",IF(AND('Enrollment Form'!$CJ184=\"Yes\",'Enrollment Form'!$CK184=\"\"),\"N\",\"Y\"))","v":"-"},{"$f":"IF(OR('Enrollment Form'!$CL184=\"\",'Enrollment Form'!$CL184=\"No\"),\"-\",IF(AND('Enrollment Form'!$CL184=\"Yes\",'Enrollment Form'!$CM184=\"\"),\"N\",\"Y\"))","v":"-"},{"$f":"IF(OR('Enrollment Form'!$CN184=\"\",'Enrollment Form'!$CN184=\"No\"),\"-\",IF(AND('Enrollment Form'!$CN184=\"Yes\",'Enrollment Form'!$CO184=\"\"),\"N\",\"Y\"))","v":"-"},{"$f":"IF(OR('Enrollment Form'!$CN184=\"\",'Enrollment Form'!$CN184=\"No\"),\"-\",IF(AND('Enrollment Form'!$CN184=\"Yes\",'Enrollment Form'!$CP184=\"\"),\"N\",\"Y\"))","v":"-"},{"$f":"IF('Enrollment Form'!B184<>\"Subscriber\",\"-\",IF(AND('Enrollment Form'!B184=\"Subscriber\",'Enrollment Form'!C184=\"Enroll\",'Enrollment Form'!AA184=\"\"),\"N\",\"Y\"))","v":"-"},{"$f":"IF(OR('Enrollment Form'!B184=\"Subscriber\",'Enrollment Form'!B184=\"\"),\"-\",IF('Enrollment Form'!BP184=\"\",\"N\",\"Y\"))","v":"-"},{"$f":"IF('Enrollment Form'!B184<>\"Subscriber\",\"-\",IF(AND('Enrollment Form'!B184=\"Subscriber\",'Enrollment Form'!G184=\"\"),\"N\",\"Y\"))","v":"-"},{"$f":"IF('Enrollment Form'!A184=\"\",\"\",IF('Enrollment Form'!B184=\"Subscriber\",\"-\",IF(AND('Enrollment Form'!B184<>\"Subscriber\",'Enrollment Form'!G184='Enrollment Form'!H184),\"N\",\"Y\")))","v":""},0]
[185,{"$f":"IF('Enrollment Form'!$A185<>\"\",\"Y\",\"N\")","v":"N"},{"$f":"IF(AND('Enrollment Form'!$B185=\"\",'Enrollment Form'!$C185<>\"\"),\"N\",IF($B178=\"N\",\"\",\"Y\"))","v":""},{"$f":"IF(OR($B178=\"N\",'Enrollment Form'!G185=\"\"),\"\",IF('Enrollment Form'!$B185<>\"Subscriber\",\"\",IF('Enrollment Form'!$G185='Enrollment Form'!$H185,\"Y\",\"N\")))","v":""},{"$f":"IF($B178=\"N\",\"\",IF(AND(COUNTIFS('Enrollment Form'!$H$11:$H$1000,'Enrollment Form'!$H185,'Enrollment Form'!$B$11:$B$1000,'Enrollment Form'!$B185)>1,'Enrollment Form'!$H185<>\"\"),\"N\",\"Y\"))","v":""},{"$f":"IF($B178=\"N\",\"\",IF(LEN('Enrollment Form'!$Y185)=0,\"\",IF(LEN('Enrollment Form'!$Y185)<>5,\"N\",\"Y\")))","v":""},{"$f":"IF($B178=\"N\",\"\",IF(LEN('Enrollment Form'!$AD185=0),\"\",IF(LEN('Enrollment Form'!$AD185)<>5,\"N\",\"Y\")))","v":""},{"$f":"IF($B178=\"N\",\"\",IF(LEN('Enrollment Form'!$BS185=0),\"\",IF(LEN('Enrollment Form'!$BS185)<>5,\"N\",\"Y\")))","v":""},{"$f":"IF($B178=\"N\",\"\",IF(LEN('Enrollment Form'!$AE185)=0,\"\",IF(LEN('Enrollment Form'!$AE185)<>10,\"N\",\"Y\")))","v":""},{"$f":"IF($B178=\"N\",\"\",IF(LEN('Enrollment Form'!$AF185)=0,\"\",IF(LEN('Enrollment Form'!$AF185)<>10,\"N\",\"Y\")))","v":""},{"$f":"IF('Enrollment Form'!$O185<>\"Graded\",\"-\",IF(AND('Enrollment Form'!$O185=\"Graded\",'Enrollment Form'!$AR185<>\"\"),\"Y\",\"N\"))","v":"-"},{"$f":"IF($B178=\"N\",\"\",IF(OR('Enrollment Form'!$B185<>\"Subscriber\",'Enrollment Form'!$C185=\"ROC\"),\"-\",IF(AND('Enrollment Form'!$B185=\"Subscriber\",'Enrollment Form'!$C185=\"Enroll\",'Enrollment Form'!$AJ185<>\"\"),\"Y\",\"N\")))","v":""},{"$f":"IF($B178=\"N\",\"\",IF(OR('Enrollment Form'!$B185<>\"Subscriber\",'Enrollment Form'!$C185=\"ROC\"),\"-\",IF(AND('Enrollment Form'!$B185=\"Subscriber\",'Enrollment Form'!$C185=\"Enroll\",'Enrollment Form'!$AK185<>\"\"),\"Y\",\"N\")))","v":""},{"$f":"IF($B178=\"N\",\"\",IF(OR('Enrollment Form'!$B185<>\"Subscriber\",'Enrollment Form'!$C185=\"ROC\"),\"-\",IF(AND('Enrollment Form'!$B185=\"Subscriber\",'Enrollment Form'!$C185=\"Enroll\",'Enrollment Form'!$AL185<>\"\"),\"Y\",\"N\")))","v":""},{"$f":"IF($B178=\"N\",\"\",IF(OR('Enrollment Form'!$B185<>\"Subscriber\",'Enrollment Form'!$C185=\"ROC\"),\"-\",IF(AND('Enrollment Form'!$B185=\"Subscriber\",'Enrollment Form'!$C185=\"Enroll\",'Enrollment Form'!$AP185<>\"\"),\"Y\",\"N\")))","v":""},{"$f":"IF($B178=\"N\",\"\",IF(OR('Enrollment Form'!$B185<>\"Subscriber\",'Enrollment Form'!$C185=\"ROC\"),\"-\",IF(AND('Enrollment Form'!$B185=\"Subscriber\",'Enrollment Form'!$C185=\"Enroll\",'Enrollment Form'!$AQ185<>\"\"),\"Y\",\"N\")))","v":""},{"$f":"IF($B178=\"N\",\"\",IF(OR('Enrollment Form'!$B185<>\"Subscriber\",'Enrollment Form'!$C185=\"ROC\"),\"-\",IF(AND('Enrollment Form'!$B185=\"Subscriber\",'Enrollment Form'!$C185=\"Enroll\",'Enrollment Form'!$AS185<>\"\"),\"Y\",\"N\")))","v":""},{"$f":"IF($B178=\"N\",\"\",IF($Q178=\"-\",\"-\",IF(AND($Q178=\"Y\",'Enrollment Form'!$AS185=\"No\"),\"-\",IF(AND($Q178=\"Y\",'Enrollment Form'!$AS185=\"Yes\",'Enrollment Form'!$AT185<>\"\"),\"Y\",\"N\"))))","v":""},{"$f":"IF($B178=\"N\",\"\",IF(OR('Enrollment Form'!$B185<>\"Subscriber\",'Enrollment Form'!$C185=\"ROC\"),\"-\",IF(AND('Enrollment Form'!$B185=\"Subscriber\",'Enrollment Form'!$C185=\"Enroll\",'Enrollment Form'!$CV185<>\"\"),\"Y\",\"N\")))","v":""},{"$f":"IF($B178=\"N\",\"\",IF($S178=\"-\",\"-\",IF(AND($S178=\"Y\",'Enrollment Form'!$CV185=\"No\"),\"-\",IF(AND($S178=\"Y\",'Enrollment Form'!$CV185=\"Yes\",'Enrollment Form'!$CW185<>\"\"),\"Y\",\"N\"))))","v":""},{"$f":"IF(OR('Enrollment Form'!$AY185=\"Yes\",'Enrollment Form'!$AY185=\"\"),\"-\",IF(OR(AND('Enrollment Form'!$AY185=\"No\",ISERROR(FIND(\"HMO\",VLOOKUP('Enrollment Form'!G185,'Enrollment Form'!H$11:J$1000,3,FALSE),1))=FALSE,COUNTA('Enrollment Form'!$AZ185:$BC185)=4),AND('Enrollment Form'!$AY185=\"No\",ISERROR(FIND(\"HMO\",VLOOKUP('Enrollment Form'!G185,'Enrollment Form'!H$11:J$1000,3,FALSE),1))=FALSE,COUNTA('Enrollment Form'!$BT185:$BW185)=4)),\"Y\",\"N\"))","v":"-"},{"$f":"IF($B178=\"N\",\"\",IF('Enrollment Form'!$B185=\"Subscriber\",\"-\",IF(COUNTA('Enrollment Form'!$BL185,'Enrollment Form'!$BN185)=2,\"Y\",\"N\")))","v":""},{"$f":"IF($B178=\"N\",\"\",IF(OR('Enrollment Form'!$AX185=\"\",'Enrollment Form'!$AX185=\"No\"),\"-\",IF(AND('Enrollment Form'!$AX185=\"Yes\",COUNTA('Enrollment Form'!$CR185)=1),\"Y\",\"N\")))","v":""},{"$f":"IF(OR('Enrollment Form'!$CR185=\"\",'Enrollment Form'!$CR185=\"No\"),\"-\",IF(COUNTA('Enrollment Form'!$CT185:$CU185)=2,\"Y\",\"N\"))","v":"-"},{"$f":"IF($B178=\"N\",\"\",IF(COUNTIF('Enrollment Form'!$DG185:$DP185,\"Other\")=COUNTA('Enrollment Form'!$DK185,'Enrollment Form'!$DH185,'Enrollment Form'!$DN185,'Enrollment Form'!$DQ185),\"Y\",\"N\"))","v":""},{"$f":"IF($B178=\"N\",\"\",IF(OR('Enrollment Form'!B185<>\"Subscriber\",'Enrollment Form'!C185=\"ROC\",COUNTIF('Enrollment Form'!AV185:AW185,\"Yes\")>=1),\"-\",IF(AND('Enrollment Form'!C185=\"Enroll\",COUNTIF('Enrollment Form'!AV185:AW185,\"No\")=2,'Enrollment Form'!AX185=\"\"),\"N\",\"Y\")))","v":""},{"$f":"IF(OR(B178=\"N\",'Enrollment Form'!B185<>\"Subscriber\",'Enrollment Form'!C185=\"ROC\",'Enrollment Form'!O185<>\"Multiple of Salary\"),\"-\",IF(COUNTA('Enrollment Form'!T185:U185)<2,\"N\",\"Y\"))","v":"-"},{"$f":"IF(B178=\"N\",\"\",IF(OR('Enrollment Form'!C185=\"ROC\",'Enrollment Form'!B185<>\"Subscriber\",'Enrollment Form'!O185=\"Waive\",'Enrollment Form'!O185=\"\"),\"-\",IF('Enrollment Form'!P185=\"\",\"N\",\"Y\")))","v":""},{"$f":"IF($B178=\"N\",\"\",IF(AND('Enrollment Form'!$C185=\"ROC\",'Enrollment Form'!$DR185<>\"\"),\"Y\",IF(AND('Enrollment Form'!$C185=\"ROC\",'Enrollment Form'!$DR185=\"\"),\"N\",IF(AND('Enrollment Form'!$C185=\"Enroll\",'Enrollment Form'!$B185=\"Subscriber\",'Enrollment Form'!$CX185=\"No\",'Enrollment Form'!$DR185=\"\"),\"N\",IF(AND('Enrollment Form'!$C185=\"Enroll\",'Enrollment Form'!$B185=\"Subscriber\",'Enrollment Form'!$CX185=\"Yes\"),\"-\",\"Y\")))))","v":""},{"$f":"IF($B178=\"N\",\"\",IF(AND('Enrollment Form'!$C185=\"ROC\",'Enrollment Form'!$DS185<>\"\"),\"Y\",IF(AND('Enrollment Form'!$C185=\"ROC\",'Enrollment Form'!$DS185=\"\"),\"N\",IF(AND('Enrollment Form'!$C185=\"Enroll\",'Enrollment Form'!$B185=\"Subscriber\",'Enrollment Form'!$CX185=\"No\",'Enrollment Form'!$DS185=\"\"),\"N\",IF(AND('Enrollment Form'!$C185=\"Enroll\",'Enrollment Form'!$B185=\"Subscriber\",'Enrollment Form'!$CX185=\"Yes\"),\"-\",\"Y\")))))","v":""},{"$f":"IF('Enrollment Form'!AH185=\"\",\"\",IF(ISERROR(SEARCH(\".\",'Enrollment Form'!AH185,SEARCH(\"@\",'Enrollment Form'!AH185))),\"N\",\"Y\"))","v":""},{"$f":"IF(OR($B178=\"N\",'Enrollment Form'!$G185=\"\"),\"\",IF('Enrollment Form'!$B185<>\"Subscriber\",\"-\",IF(COUNTIF('Enrollment Form'!$AV185:$AW185,\"Yes\")=2,\"N\",\"Y\")))","v":""},{"$f":"IF(OR('Enrollment Form'!$CJ185=\"\",'Enrollment Form'!$CJ185=\"No\"),\"-\",IF(AND('Enrollment Form'!$CJ185=\"Yes\",'Enrollment Form'!$CK185=\"\"),\"N\",\"Y\"))","v":"-"},{"$f":"IF(OR('Enrollment Form'!$CL185=\"\",'Enrollment Form'!$CL185=\"No\"),\"-\",IF(AND('Enrollment Form'!$CL185=\"Yes\",'Enrollment Form'!$CM185=\"\"),\"N\",\"Y\"))","v":"-"},{"$f":"IF(OR('Enrollment Form'!$CN185=\"\",'Enrollment Form'!$CN185=\"No\"),\"-\",IF(AND('Enrollment Form'!$CN185=\"Yes\",'Enrollment Form'!$CO185=\"\"),\"N\",\"Y\"))","v":"-"},{"$f":"IF(OR('Enrollment Form'!$CN185=\"\",'Enrollment Form'!$CN185=\"No\"),\"-\",IF(AND('Enrollment Form'!$CN185=\"Yes\",'Enrollment Form'!$CP185=\"\"),\"N\",\"Y\"))","v":"-"},{"$f":"IF('Enrollment Form'!B185<>\"Subscriber\",\"-\",IF(AND('Enrollment Form'!B185=\"Subscriber\",'Enrollment Form'!C185=\"Enroll\",'Enrollment Form'!AA185=\"\"),\"N\",\"Y\"))","v":"-"},{"$f":"IF(OR('Enrollment Form'!B185=\"Subscriber\",'Enrollment Form'!B185=\"\"),\"-\",IF('Enrollment Form'!BP185=\"\",\"N\",\"Y\"))","v":"-"},{"$f":"IF('Enrollment Form'!B185<>\"Subscriber\",\"-\",IF(AND('Enrollment Form'!B185=\"Subscriber\",'Enrollment Form'!G185=\"\"),\"N\",\"Y\"))","v":"-"},{"$f":"IF('Enrollment Form'!A185=\"\",\"\",IF('Enrollment Form'!B185=\"Subscriber\",\"-\",IF(AND('Enrollment Form'!B185<>\"Subscriber\",'Enrollment Form'!G185='Enrollment Form'!H185),\"N\",\"Y\")))","v":""},0]
[186,{"$f":"IF('Enrollment Form'!$A186<>\"\",\"Y\",\"N\")","v":"N"},{"$f":"IF(AND('Enrollment Form'!$B186=\"\",'Enrollment Form'!$C186<>\"\"),\"N\",IF($B179=\"N\",\"\",\"Y\"))","v":""},{"$f":"IF(OR($B179=\"N\",'Enrollment Form'!G186=\"\"),\"\",IF('Enrollment Form'!$B186<>\"Subscriber\",\"\",IF('Enrollment Form'!$G186='Enrollment Form'!$H186,\"Y\",\"N\")))","v":""},{"$f":"IF($B179=\"N\",\"\",IF(AND(COUNTIFS('Enrollment Form'!$H$11:$H$1000,'Enrollment Form'!$H186,'Enrollment Form'!$B$11:$B$1000,'Enrollment Form'!$B186)>1,'Enrollment Form'!$H186<>\"\"),\"N\",\"Y\"))","v":""},{"$f":"IF($B179=\"N\",\"\",IF(LEN('Enrollment Form'!$Y186)=0,\"\",IF(LEN('Enrollment Form'!$Y186)<>5,\"N\",\"Y\")))","v":""},{"$f":"IF($B179=\"N\",\"\",IF(LEN('Enrollment Form'!$AD186=0),\"\",IF(LEN('Enrollment Form'!$AD186)<>5,\"N\",\"Y\")))","v":""},{"$f":"IF($B179=\"N\",\"\",IF(LEN('Enrollment Form'!$BS186=0),\"\",IF(LEN('Enrollment Form'!$BS186)<>5,\"N\",\"Y\")))","v":""},{"$f":"IF($B179=\"N\",\"\",IF(LEN('Enrollment Form'!$AE186)=0,\"\",IF(LEN('Enrollment Form'!$AE186)<>10,\"N\",\"Y\")))","v":""},{"$f":"IF($B179=\"N\",\"\",IF(LEN('Enrollment Form'!$AF186)=0,\"\",IF(LEN('Enrollment Form'!$AF186)<>10,\"N\",\"Y\")))","v":""},{"$f":"IF('Enrollment Form'!$O186<>\"Graded\",\"-\",IF(AND('Enrollment Form'!$O186=\"Graded\",'Enrollment Form'!$AR186<>\"\"),\"Y\",\"N\"))","v":"-"},{"$f":"IF($B179=\"N\",\"\",IF(OR('Enrollment Form'!$B186<>\"Subscriber\",'Enrollment Form'!$C186=\"ROC\"),\"-\",IF(AND('Enrollment Form'!$B186=\"Subscriber\",'Enrollment Form'!$C186=\"Enroll\",'Enrollment Form'!$AJ186<>\"\"),\"Y\",\"N\")))","v":""},{"$f":"IF($B179=\"N\",\"\",IF(OR('Enrollment Form'!$B186<>\"Subscriber\",'Enrollment Form'!$C186=\"ROC\"),\"-\",IF(AND('Enrollment Form'!$B186=\"Subscriber\",'Enrollment Form'!$C186=\"Enroll\",'Enrollment Form'!$AK186<>\"\"),\"Y\",\"N\")))","v":""},{"$f":"IF($B179=\"N\",\"\",IF(OR('Enrollment Form'!$B186<>\"Subscriber\",'Enrollment Form'!$C186=\"ROC\"),\"-\",IF(AND('Enrollment Form'!$B186=\"Subscriber\",'Enrollment Form'!$C186=\"Enroll\",'Enrollment Form'!$AL186<>\"\"),\"Y\",\"N\")))","v":""},{"$f":"IF($B179=\"N\",\"\",IF(OR('Enrollment Form'!$B186<>\"Subscriber\",'Enrollment Form'!$C186=\"ROC\"),\"-\",IF(AND('Enrollment Form'!$B186=\"Subscriber\",'Enrollment Form'!$C186=\"Enroll\",'Enrollment Form'!$AP186<>\"\"),\"Y\",\"N\")))","v":""},{"$f":"IF($B179=\"N\",\"\",IF(OR('Enrollment Form'!$B186<>\"Subscriber\",'Enrollment Form'!$C186=\"ROC\"),\"-\",IF(AND('Enrollment Form'!$B186=\"Subscriber\",'Enrollment Form'!$C186=\"Enroll\",'Enrollment Form'!$AQ186<>\"\"),\"Y\",\"N\")))","v":""},{"$f":"IF($B179=\"N\",\"\",IF(OR('Enrollment Form'!$B186<>\"Subscriber\",'Enrollment Form'!$C186=\"ROC\"),\"-\",IF(AND('Enrollment Form'!$B186=\"Subscriber\",'Enrollment Form'!$C186=\"Enroll\",'Enrollment Form'!$AS186<>\"\"),\"Y\",\"N\")))","v":""},{"$f":"IF($B179=\"N\",\"\",IF($Q179=\"-\",\"-\",IF(AND($Q179=\"Y\",'Enrollment Form'!$AS186=\"No\"),\"-\",IF(AND($Q179=\"Y\",'Enrollment Form'!$AS186=\"Yes\",'Enrollment Form'!$AT186<>\"\"),\"Y\",\"N\"))))","v":""},{"$f":"IF($B179=\"N\",\"\",IF(OR('Enrollment Form'!$B186<>\"Subscriber\",'Enrollment Form'!$C186=\"ROC\"),\"-\",IF(AND('Enrollment Form'!$B186=\"Subscriber\",'Enrollment Form'!$C186=\"Enroll\",'Enrollment Form'!$CV186<>\"\"),\"Y\",\"N\")))","v":""},{"$f":"IF($B179=\"N\",\"\",IF($S179=\"-\",\"-\",IF(AND($S179=\"Y\",'Enrollment Form'!$CV186=\"No\"),\"-\",IF(AND($S179=\"Y\",'Enrollment Form'!$CV186=\"Yes\",'Enrollment Form'!$CW186<>\"\"),\"Y\",\"N\"))))","v":""},{"$f":"IF(OR('Enrollment Form'!$AY186=\"Yes\",'Enrollment Form'!$AY186=\"\"),\"-\",IF(OR(AND('Enrollment Form'!$AY186=\"No\",ISERROR(FIND(\"HMO\",VLOOKUP('Enrollment Form'!G186,'Enrollment Form'!H$11:J$1000,3,FALSE),1))=FALSE,COUNTA('Enrollment Form'!$AZ186:$BC186)=4),AND('Enrollment Form'!$AY186=\"No\",ISERROR(FIND(\"HMO\",VLOOKUP('Enrollment Form'!G186,'Enrollment Form'!H$11:J$1000,3,FALSE),1))=FALSE,COUNTA('Enrollment Form'!$BT186:$BW186)=4)),\"Y\",\"N\"))","v":"-"},{"$f":"IF($B179=\"N\",\"\",IF('Enrollment Form'!$B186=\"Subscriber\",\"-\",IF(COUNTA('Enrollment Form'!$BL186,'Enrollment Form'!$BN186)=2,\"Y\",\"N\")))","v":""},{"$f":"IF($B179=\"N\",\"\",IF(OR('Enrollment Form'!$AX186=\"\",'Enrollment Form'!$AX186=\"No\"),\"-\",IF(AND('Enrollment Form'!$AX186=\"Yes\",COUNTA('Enrollment Form'!$CR186)=1),\"Y\",\"N\")))","v":""},{"$f":"IF(OR('Enrollment Form'!$CR186=\"\",'Enrollment Form'!$CR186=\"No\"),\"-\",IF(COUNTA('Enrollment Form'!$CT186:$CU186)=2,\"Y\",\"N\"))","v":"-"},{"$f":"IF($B179=\"N\",\"\",IF(COUNTIF('Enrollment Form'!$DG186:$DP186,\"Other\")=COUNTA('Enrollment Form'!$DK186,'Enrollment Form'!$DH186,'Enrollment Form'!$DN186,'Enrollment Form'!$DQ186),\"Y\",\"N\"))","v":""},{"$f":"IF($B179=\"N\",\"\",IF(OR('Enrollment Form'!B186<>\"Subscriber\",'Enrollment Form'!C186=\"ROC\",COUNTIF('Enrollment Form'!AV186:AW186,\"Yes\")>=1),\"-\",IF(AND('Enrollment Form'!C186=\"Enroll\",COUNTIF('Enrollment Form'!AV186:AW186,\"No\")=2,'Enrollment Form'!AX186=\"\"),\"N\",\"Y\")))","v":""},{"$f":"IF(OR(B179=\"N\",'Enrollment Form'!B186<>\"Subscriber\",'Enrollment Form'!C186=\"ROC\",'Enrollment Form'!O186<>\"Multiple of Salary\"),\"-\",IF(COUNTA('Enrollment Form'!T186:U186)<2,\"N\",\"Y\"))","v":"-"},{"$f":"IF(B179=\"N\",\"\",IF(OR('Enrollment Form'!C186=\"ROC\",'Enrollment Form'!B186<>\"Subscriber\",'Enrollment Form'!O186=\"Waive\",'Enrollment Form'!O186=\"\"),\"-\",IF('Enrollment Form'!P186=\"\",\"N\",\"Y\")))","v":""},{"$f":"IF($B179=\"N\",\"\",IF(AND('Enrollment Form'!$C186=\"ROC\",'Enrollment Form'!$DR186<>\"\"),\"Y\",IF(AND('Enrollment Form'!$C186=\"ROC\",'Enrollment Form'!$DR186=\"\"),\"N\",IF(AND('Enrollment Form'!$C186=\"Enroll\",'Enrollment Form'!$B186=\"Subscriber\",'Enrollment Form'!$CX186=\"No\",'Enrollment Form'!$DR186=\"\"),\"N\",IF(AND('Enrollment Form'!$C186=\"Enroll\",'Enrollment Form'!$B186=\"Subscriber\",'Enrollment Form'!$CX186=\"Yes\"),\"-\",\"Y\")))))","v":""},{"$f":"IF($B179=\"N\",\"\",IF(AND('Enrollment Form'!$C186=\"ROC\",'Enrollment Form'!$DS186<>\"\"),\"Y\",IF(AND('Enrollment Form'!$C186=\"ROC\",'Enrollment Form'!$DS186=\"\"),\"N\",IF(AND('Enrollment Form'!$C186=\"Enroll\",'Enrollment Form'!$B186=\"Subscriber\",'Enrollment Form'!$CX186=\"No\",'Enrollment Form'!$DS186=\"\"),\"N\",IF(AND('Enrollment Form'!$C186=\"Enroll\",'Enrollment Form'!$B186=\"Subscriber\",'Enrollment Form'!$CX186=\"Yes\"),\"-\",\"Y\")))))","v":""},{"$f":"IF('Enrollment Form'!AH186=\"\",\"\",IF(ISERROR(SEARCH(\".\",'Enrollment Form'!AH186,SEARCH(\"@\",'Enrollment Form'!AH186))),\"N\",\"Y\"))","v":""},{"$f":"IF(OR($B179=\"N\",'Enrollment Form'!$G186=\"\"),\"\",IF('Enrollment Form'!$B186<>\"Subscriber\",\"-\",IF(COUNTIF('Enrollment Form'!$AV186:$AW186,\"Yes\")=2,\"N\",\"Y\")))","v":""},{"$f":"IF(OR('Enrollment Form'!$CJ186=\"\",'Enrollment Form'!$CJ186=\"No\"),\"-\",IF(AND('Enrollment Form'!$CJ186=\"Yes\",'Enrollment Form'!$CK186=\"\"),\"N\",\"Y\"))","v":"-"},{"$f":"IF(OR('Enrollment Form'!$CL186=\"\",'Enrollment Form'!$CL186=\"No\"),\"-\",IF(AND('Enrollment Form'!$CL186=\"Yes\",'Enrollment Form'!$CM186=\"\"),\"N\",\"Y\"))","v":"-"},{"$f":"IF(OR('Enrollment Form'!$CN186=\"\",'Enrollment Form'!$CN186=\"No\"),\"-\",IF(AND('Enrollment Form'!$CN186=\"Yes\",'Enrollment Form'!$CO186=\"\"),\"N\",\"Y\"))","v":"-"},{"$f":"IF(OR('Enrollment Form'!$CN186=\"\",'Enrollment Form'!$CN186=\"No\"),\"-\",IF(AND('Enrollment Form'!$CN186=\"Yes\",'Enrollment Form'!$CP186=\"\"),\"N\",\"Y\"))","v":"-"},{"$f":"IF('Enrollment Form'!B186<>\"Subscriber\",\"-\",IF(AND('Enrollment Form'!B186=\"Subscriber\",'Enrollment Form'!C186=\"Enroll\",'Enrollment Form'!AA186=\"\"),\"N\",\"Y\"))","v":"-"},{"$f":"IF(OR('Enrollment Form'!B186=\"Subscriber\",'Enrollment Form'!B186=\"\"),\"-\",IF('Enrollment Form'!BP186=\"\",\"N\",\"Y\"))","v":"-"},{"$f":"IF('Enrollment Form'!B186<>\"Subscriber\",\"-\",IF(AND('Enrollment Form'!B186=\"Subscriber\",'Enrollment Form'!G186=\"\"),\"N\",\"Y\"))","v":"-"},{"$f":"IF('Enrollment Form'!A186=\"\",\"\",IF('Enrollment Form'!B186=\"Subscriber\",\"-\",IF(AND('Enrollment Form'!B186<>\"Subscriber\",'Enrollment Form'!G186='Enrollment Form'!H186),\"N\",\"Y\")))","v":""},0]
[187,{"$f":"IF('Enrollment Form'!$A187<>\"\",\"Y\",\"N\")","v":"N"},{"$f":"IF(AND('Enrollment Form'!$B187=\"\",'Enrollment Form'!$C187<>\"\"),\"N\",IF($B180=\"N\",\"\",\"Y\"))","v":""},{"$f":"IF(OR($B180=\"N\",'Enrollment Form'!G187=\"\"),\"\",IF('Enrollment Form'!$B187<>\"Subscriber\",\"\",IF('Enrollment Form'!$G187='Enrollment Form'!$H187,\"Y\",\"N\")))","v":""},{"$f":"IF($B180=\"N\",\"\",IF(AND(COUNTIFS('Enrollment Form'!$H$11:$H$1000,'Enrollment Form'!$H187,'Enrollment Form'!$B$11:$B$1000,'Enrollment Form'!$B187)>1,'Enrollment Form'!$H187<>\"\"),\"N\",\"Y\"))","v":""},{"$f":"IF($B180=\"N\",\"\",IF(LEN('Enrollment Form'!$Y187)=0,\"\",IF(LEN('Enrollment Form'!$Y187)<>5,\"N\",\"Y\")))","v":""},{"$f":"IF($B180=\"N\",\"\",IF(LEN('Enrollment Form'!$AD187=0),\"\",IF(LEN('Enrollment Form'!$AD187)<>5,\"N\",\"Y\")))","v":""},{"$f":"IF($B180=\"N\",\"\",IF(LEN('Enrollment Form'!$BS187=0),\"\",IF(LEN('Enrollment Form'!$BS187)<>5,\"N\",\"Y\")))","v":""},{"$f":"IF($B180=\"N\",\"\",IF(LEN('Enrollment Form'!$AE187)=0,\"\",IF(LEN('Enrollment Form'!$AE187)<>10,\"N\",\"Y\")))","v":""},{"$f":"IF($B180=\"N\",\"\",IF(LEN('Enrollment Form'!$AF187)=0,\"\",IF(LEN('Enrollment Form'!$AF187)<>10,\"N\",\"Y\")))","v":""},{"$f":"IF('Enrollment Form'!$O187<>\"Graded\",\"-\",IF(AND('Enrollment Form'!$O187=\"Graded\",'Enrollment Form'!$AR187<>\"\"),\"Y\",\"N\"))","v":"-"},{"$f":"IF($B180=\"N\",\"\",IF(OR('Enrollment Form'!$B187<>\"Subscriber\",'Enrollment Form'!$C187=\"ROC\"),\"-\",IF(AND('Enrollment Form'!$B187=\"Subscriber\",'Enrollment Form'!$C187=\"Enroll\",'Enrollment Form'!$AJ187<>\"\"),\"Y\",\"N\")))","v":""},{"$f":"IF($B180=\"N\",\"\",IF(OR('Enrollment Form'!$B187<>\"Subscriber\",'Enrollment Form'!$C187=\"ROC\"),\"-\",IF(AND('Enrollment Form'!$B187=\"Subscriber\",'Enrollment Form'!$C187=\"Enroll\",'Enrollment Form'!$AK187<>\"\"),\"Y\",\"N\")))","v":""},{"$f":"IF($B180=\"N\",\"\",IF(OR('Enrollment Form'!$B187<>\"Subscriber\",'Enrollment Form'!$C187=\"ROC\"),\"-\",IF(AND('Enrollment Form'!$B187=\"Subscriber\",'Enrollment Form'!$C187=\"Enroll\",'Enrollment Form'!$AL187<>\"\"),\"Y\",\"N\")))","v":""},{"$f":"IF($B180=\"N\",\"\",IF(OR('Enrollment Form'!$B187<>\"Subscriber\",'Enrollment Form'!$C187=\"ROC\"),\"-\",IF(AND('Enrollment Form'!$B187=\"Subscriber\",'Enrollment Form'!$C187=\"Enroll\",'Enrollment Form'!$AP187<>\"\"),\"Y\",\"N\")))","v":""},{"$f":"IF($B180=\"N\",\"\",IF(OR('Enrollment Form'!$B187<>\"Subscriber\",'Enrollment Form'!$C187=\"ROC\"),\"-\",IF(AND('Enrollment Form'!$B187=\"Subscriber\",'Enrollment Form'!$C187=\"Enroll\",'Enrollment Form'!$AQ187<>\"\"),\"Y\",\"N\")))","v":""},{"$f":"IF($B180=\"N\",\"\",IF(OR('Enrollment Form'!$B187<>\"Subscriber\",'Enrollment Form'!$C187=\"ROC\"),\"-\",IF(AND('Enrollment Form'!$B187=\"Subscriber\",'Enrollment Form'!$C187=\"Enroll\",'Enrollment Form'!$AS187<>\"\"),\"Y\",\"N\")))","v":""},{"$f":"IF($B180=\"N\",\"\",IF($Q180=\"-\",\"-\",IF(AND($Q180=\"Y\",'Enrollment Form'!$AS187=\"No\"),\"-\",IF(AND($Q180=\"Y\",'Enrollment Form'!$AS187=\"Yes\",'Enrollment Form'!$AT187<>\"\"),\"Y\",\"N\"))))","v":""},{"$f":"IF($B180=\"N\",\"\",IF(OR('Enrollment Form'!$B187<>\"Subscriber\",'Enrollment Form'!$C187=\"ROC\"),\"-\",IF(AND('Enrollment Form'!$B187=\"Subscriber\",'Enrollment Form'!$C187=\"Enroll\",'Enrollment Form'!$CV187<>\"\"),\"Y\",\"N\")))","v":""},{"$f":"IF($B180=\"N\",\"\",IF($S180=\"-\",\"-\",IF(AND($S180=\"Y\",'Enrollment Form'!$CV187=\"No\"),\"-\",IF(AND($S180=\"Y\",'Enrollment Form'!$CV187=\"Yes\",'Enrollment Form'!$CW187<>\"\"),\"Y\",\"N\"))))","v":""},{"$f":"IF(OR('Enrollment Form'!$AY187=\"Yes\",'Enrollment Form'!$AY187=\"\"),\"-\",IF(OR(AND('Enrollment Form'!$AY187=\"No\",ISERROR(FIND(\"HMO\",VLOOKUP('Enrollment Form'!G187,'Enrollment Form'!H$11:J$1000,3,FALSE),1))=FALSE,COUNTA('Enrollment Form'!$AZ187:$BC187)=4),AND('Enrollment Form'!$AY187=\"No\",ISERROR(FIND(\"HMO\",VLOOKUP('Enrollment Form'!G187,'Enrollment Form'!H$11:J$1000,3,FALSE),1))=FALSE,COUNTA('Enrollment Form'!$BT187:$BW187)=4)),\"Y\",\"N\"))","v":"-"},{"$f":"IF($B180=\"N\",\"\",IF('Enrollment Form'!$B187=\"Subscriber\",\"-\",IF(COUNTA('Enrollment Form'!$BL187,'Enrollment Form'!$BN187)=2,\"Y\",\"N\")))","v":""},{"$f":"IF($B180=\"N\",\"\",IF(OR('Enrollment Form'!$AX187=\"\",'Enrollment Form'!$AX187=\"No\"),\"-\",IF(AND('Enrollment Form'!$AX187=\"Yes\",COUNTA('Enrollment Form'!$CR187)=1),\"Y\",\"N\")))","v":""},{"$f":"IF(OR('Enrollment Form'!$CR187=\"\",'Enrollment Form'!$CR187=\"No\"),\"-\",IF(COUNTA('Enrollment Form'!$CT187:$CU187)=2,\"Y\",\"N\"))","v":"-"},{"$f":"IF($B180=\"N\",\"\",IF(COUNTIF('Enrollment Form'!$DG187:$DP187,\"Other\")=COUNTA('Enrollment Form'!$DK187,'Enrollment Form'!$DH187,'Enrollment Form'!$DN187,'Enrollment Form'!$DQ187),\"Y\",\"N\"))","v":""},{"$f":"IF($B180=\"N\",\"\",IF(OR('Enrollment Form'!B187<>\"Subscriber\",'Enrollment Form'!C187=\"ROC\",COUNTIF('Enrollment Form'!AV187:AW187,\"Yes\")>=1),\"-\",IF(AND('Enrollment Form'!C187=\"Enroll\",COUNTIF('Enrollment Form'!AV187:AW187,\"No\")=2,'Enrollment Form'!AX187=\"\"),\"N\",\"Y\")))","v":""},{"$f":"IF(OR(B180=\"N\",'Enrollment Form'!B187<>\"Subscriber\",'Enrollment Form'!C187=\"ROC\",'Enrollment Form'!O187<>\"Multiple of Salary\"),\"-\",IF(COUNTA('Enrollment Form'!T187:U187)<2,\"N\",\"Y\"))","v":"-"},{"$f":"IF(B180=\"N\",\"\",IF(OR('Enrollment Form'!C187=\"ROC\",'Enrollment Form'!B187<>\"Subscriber\",'Enrollment Form'!O187=\"Waive\",'Enrollment Form'!O187=\"\"),\"-\",IF('Enrollment Form'!P187=\"\",\"N\",\"Y\")))","v":""},{"$f":"IF($B180=\"N\",\"\",IF(AND('Enrollment Form'!$C187=\"ROC\",'Enrollment Form'!$DR187<>\"\"),\"Y\",IF(AND('Enrollment Form'!$C187=\"ROC\",'Enrollment Form'!$DR187=\"\"),\"N\",IF(AND('Enrollment Form'!$C187=\"Enroll\",'Enrollment Form'!$B187=\"Subscriber\",'Enrollment Form'!$CX187=\"No\",'Enrollment Form'!$DR187=\"\"),\"N\",IF(AND('Enrollment Form'!$C187=\"Enroll\",'Enrollment Form'!$B187=\"Subscriber\",'Enrollment Form'!$CX187=\"Yes\"),\"-\",\"Y\")))))","v":""},{"$f":"IF($B180=\"N\",\"\",IF(AND('Enrollment Form'!$C187=\"ROC\",'Enrollment Form'!$DS187<>\"\"),\"Y\",IF(AND('Enrollment Form'!$C187=\"ROC\",'Enrollment Form'!$DS187=\"\"),\"N\",IF(AND('Enrollment Form'!$C187=\"Enroll\",'Enrollment Form'!$B187=\"Subscriber\",'Enrollment Form'!$CX187=\"No\",'Enrollment Form'!$DS187=\"\"),\"N\",IF(AND('Enrollment Form'!$C187=\"Enroll\",'Enrollment Form'!$B187=\"Subscriber\",'Enrollment Form'!$CX187=\"Yes\"),\"-\",\"Y\")))))","v":""},{"$f":"IF('Enrollment Form'!AH187=\"\",\"\",IF(ISERROR(SEARCH(\".\",'Enrollment Form'!AH187,SEARCH(\"@\",'Enrollment Form'!AH187))),\"N\",\"Y\"))","v":""},{"$f":"IF(OR($B180=\"N\",'Enrollment Form'!$G187=\"\"),\"\",IF('Enrollment Form'!$B187<>\"Subscriber\",\"-\",IF(COUNTIF('Enrollment Form'!$AV187:$AW187,\"Yes\")=2,\"N\",\"Y\")))","v":""},{"$f":"IF(OR('Enrollment Form'!$CJ187=\"\",'Enrollment Form'!$CJ187=\"No\"),\"-\",IF(AND('Enrollment Form'!$CJ187=\"Yes\",'Enrollment Form'!$CK187=\"\"),\"N\",\"Y\"))","v":"-"},{"$f":"IF(OR('Enrollment Form'!$CL187=\"\",'Enrollment Form'!$CL187=\"No\"),\"-\",IF(AND('Enrollment Form'!$CL187=\"Yes\",'Enrollment Form'!$CM187=\"\"),\"N\",\"Y\"))","v":"-"},{"$f":"IF(OR('Enrollment Form'!$CN187=\"\",'Enrollment Form'!$CN187=\"No\"),\"-\",IF(AND('Enrollment Form'!$CN187=\"Yes\",'Enrollment Form'!$CO187=\"\"),\"N\",\"Y\"))","v":"-"},{"$f":"IF(OR('Enrollment Form'!$CN187=\"\",'Enrollment Form'!$CN187=\"No\"),\"-\",IF(AND('Enrollment Form'!$CN187=\"Yes\",'Enrollment Form'!$CP187=\"\"),\"N\",\"Y\"))","v":"-"},{"$f":"IF('Enrollment Form'!B187<>\"Subscriber\",\"-\",IF(AND('Enrollment Form'!B187=\"Subscriber\",'Enrollment Form'!C187=\"Enroll\",'Enrollment Form'!AA187=\"\"),\"N\",\"Y\"))","v":"-"},{"$f":"IF(OR('Enrollment Form'!B187=\"Subscriber\",'Enrollment Form'!B187=\"\"),\"-\",IF('Enrollment Form'!BP187=\"\",\"N\",\"Y\"))","v":"-"},{"$f":"IF('Enrollment Form'!B187<>\"Subscriber\",\"-\",IF(AND('Enrollment Form'!B187=\"Subscriber\",'Enrollment Form'!G187=\"\"),\"N\",\"Y\"))","v":"-"},{"$f":"IF('Enrollment Form'!A187=\"\",\"\",IF('Enrollment Form'!B187=\"Subscriber\",\"-\",IF(AND('Enrollment Form'!B187<>\"Subscriber\",'Enrollment Form'!G187='Enrollment Form'!H187),\"N\",\"Y\")))","v":""},0]
[188,{"$f":"IF('Enrollment Form'!$A188<>\"\",\"Y\",\"N\")","v":"N"},{"$f":"IF(AND('Enrollment Form'!$B188=\"\",'Enrollment Form'!$C188<>\"\"),\"N\",IF($B181=\"N\",\"\",\"Y\"))","v":""},{"$f":"IF(OR($B181=\"N\",'Enrollment Form'!G188=\"\"),\"\",IF('Enrollment Form'!$B188<>\"Subscriber\",\"\",IF('Enrollment Form'!$G188='Enrollment Form'!$H188,\"Y\",\"N\")))","v":""},{"$f":"IF($B181=\"N\",\"\",IF(AND(COUNTIFS('Enrollment Form'!$H$11:$H$1000,'Enrollment Form'!$H188,'Enrollment Form'!$B$11:$B$1000,'Enrollment Form'!$B188)>1,'Enrollment Form'!$H188<>\"\"),\"N\",\"Y\"))","v":""},{"$f":"IF($B181=\"N\",\"\",IF(LEN('Enrollment Form'!$Y188)=0,\"\",IF(LEN('Enrollment Form'!$Y188)<>5,\"N\",\"Y\")))","v":""},{"$f":"IF($B181=\"N\",\"\",IF(LEN('Enrollment Form'!$AD188=0),\"\",IF(LEN('Enrollment Form'!$AD188)<>5,\"N\",\"Y\")))","v":""},{"$f":"IF($B181=\"N\",\"\",IF(LEN('Enrollment Form'!$BS188=0),\"\",IF(LEN('Enrollment Form'!$BS188)<>5,\"N\",\"Y\")))","v":""},{"$f":"IF($B181=\"N\",\"\",IF(LEN('Enrollment Form'!$AE188)=0,\"\",IF(LEN('Enrollment Form'!$AE188)<>10,\"N\",\"Y\")))","v":""},{"$f":"IF($B181=\"N\",\"\",IF(LEN('Enrollment Form'!$AF188)=0,\"\",IF(LEN('Enrollment Form'!$AF188)<>10,\"N\",\"Y\")))","v":""},{"$f":"IF('Enrollment Form'!$O188<>\"Graded\",\"-\",IF(AND('Enrollment Form'!$O188=\"Graded\",'Enrollment Form'!$AR188<>\"\"),\"Y\",\"N\"))","v":"-"},{"$f":"IF($B181=\"N\",\"\",IF(OR('Enrollment Form'!$B188<>\"Subscriber\",'Enrollment Form'!$C188=\"ROC\"),\"-\",IF(AND('Enrollment Form'!$B188=\"Subscriber\",'Enrollment Form'!$C188=\"Enroll\",'Enrollment Form'!$AJ188<>\"\"),\"Y\",\"N\")))","v":""},{"$f":"IF($B181=\"N\",\"\",IF(OR('Enrollment Form'!$B188<>\"Subscriber\",'Enrollment Form'!$C188=\"ROC\"),\"-\",IF(AND('Enrollment Form'!$B188=\"Subscriber\",'Enrollment Form'!$C188=\"Enroll\",'Enrollment Form'!$AK188<>\"\"),\"Y\",\"N\")))","v":""},{"$f":"IF($B181=\"N\",\"\",IF(OR('Enrollment Form'!$B188<>\"Subscriber\",'Enrollment Form'!$C188=\"ROC\"),\"-\",IF(AND('Enrollment Form'!$B188=\"Subscriber\",'Enrollment Form'!$C188=\"Enroll\",'Enrollment Form'!$AL188<>\"\"),\"Y\",\"N\")))","v":""},{"$f":"IF($B181=\"N\",\"\",IF(OR('Enrollment Form'!$B188<>\"Subscriber\",'Enrollment Form'!$C188=\"ROC\"),\"-\",IF(AND('Enrollment Form'!$B188=\"Subscriber\",'Enrollment Form'!$C188=\"Enroll\",'Enrollment Form'!$AP188<>\"\"),\"Y\",\"N\")))","v":""},{"$f":"IF($B181=\"N\",\"\",IF(OR('Enrollment Form'!$B188<>\"Subscriber\",'Enrollment Form'!$C188=\"ROC\"),\"-\",IF(AND('Enrollment Form'!$B188=\"Subscriber\",'Enrollment Form'!$C188=\"Enroll\",'Enrollment Form'!$AQ188<>\"\"),\"Y\",\"N\")))","v":""},{"$f":"IF($B181=\"N\",\"\",IF(OR('Enrollment Form'!$B188<>\"Subscriber\",'Enrollment Form'!$C188=\"ROC\"),\"-\",IF(AND('Enrollment Form'!$B188=\"Subscriber\",'Enrollment Form'!$C188=\"Enroll\",'Enrollment Form'!$AS188<>\"\"),\"Y\",\"N\")))","v":""},{"$f":"IF($B181=\"N\",\"\",IF($Q181=\"-\",\"-\",IF(AND($Q181=\"Y\",'Enrollment Form'!$AS188=\"No\"),\"-\",IF(AND($Q181=\"Y\",'Enrollment Form'!$AS188=\"Yes\",'Enrollment Form'!$AT188<>\"\"),\"Y\",\"N\"))))","v":""},{"$f":"IF($B181=\"N\",\"\",IF(OR('Enrollment Form'!$B188<>\"Subscriber\",'Enrollment Form'!$C188=\"ROC\"),\"-\",IF(AND('Enrollment Form'!$B188=\"Subscriber\",'Enrollment Form'!$C188=\"Enroll\",'Enrollment Form'!$CV188<>\"\"),\"Y\",\"N\")))","v":""},{"$f":"IF($B181=\"N\",\"\",IF($S181=\"-\",\"-\",IF(AND($S181=\"Y\",'Enrollment Form'!$CV188=\"No\"),\"-\",IF(AND($S181=\"Y\",'Enrollment Form'!$CV188=\"Yes\",'Enrollment Form'!$CW188<>\"\"),\"Y\",\"N\"))))","v":""},{"$f":"IF(OR('Enrollment Form'!$AY188=\"Yes\",'Enrollment Form'!$AY188=\"\"),\"-\",IF(OR(AND('Enrollment Form'!$AY188=\"No\",ISERROR(FIND(\"HMO\",VLOOKUP('Enrollment Form'!G188,'Enrollment Form'!H$11:J$1000,3,FALSE),1))=FALSE,COUNTA('Enrollment Form'!$AZ188:$BC188)=4),AND('Enrollment Form'!$AY188=\"No\",ISERROR(FIND(\"HMO\",VLOOKUP('Enrollment Form'!G188,'Enrollment Form'!H$11:J$1000,3,FALSE),1))=FALSE,COUNTA('Enrollment Form'!$BT188:$BW188)=4)),\"Y\",\"N\"))","v":"-"},{"$f":"IF($B181=\"N\",\"\",IF('Enrollment Form'!$B188=\"Subscriber\",\"-\",IF(COUNTA('Enrollment Form'!$BL188,'Enrollment Form'!$BN188)=2,\"Y\",\"N\")))","v":""},{"$f":"IF($B181=\"N\",\"\",IF(OR('Enrollment Form'!$AX188=\"\",'Enrollment Form'!$AX188=\"No\"),\"-\",IF(AND('Enrollment Form'!$AX188=\"Yes\",COUNTA('Enrollment Form'!$CR188)=1),\"Y\",\"N\")))","v":""},{"$f":"IF(OR('Enrollment Form'!$CR188=\"\",'Enrollment Form'!$CR188=\"No\"),\"-\",IF(COUNTA('Enrollment Form'!$CT188:$CU188)=2,\"Y\",\"N\"))","v":"-"},{"$f":"IF($B181=\"N\",\"\",IF(COUNTIF('Enrollment Form'!$DG188:$DP188,\"Other\")=COUNTA('Enrollment Form'!$DK188,'Enrollment Form'!$DH188,'Enrollment Form'!$DN188,'Enrollment Form'!$DQ188),\"Y\",\"N\"))","v":""},{"$f":"IF($B181=\"N\",\"\",IF(OR('Enrollment Form'!B188<>\"Subscriber\",'Enrollment Form'!C188=\"ROC\",COUNTIF('Enrollment Form'!AV188:AW188,\"Yes\")>=1),\"-\",IF(AND('Enrollment Form'!C188=\"Enroll\",COUNTIF('Enrollment Form'!AV188:AW188,\"No\")=2,'Enrollment Form'!AX188=\"\"),\"N\",\"Y\")))","v":""},{"$f":"IF(OR(B181=\"N\",'Enrollment Form'!B188<>\"Subscriber\",'Enrollment Form'!C188=\"ROC\",'Enrollment Form'!O188<>\"Multiple of Salary\"),\"-\",IF(COUNTA('Enrollment Form'!T188:U188)<2,\"N\",\"Y\"))","v":"-"},{"$f":"IF(B181=\"N\",\"\",IF(OR('Enrollment Form'!C188=\"ROC\",'Enrollment Form'!B188<>\"Subscriber\",'Enrollment Form'!O188=\"Waive\",'Enrollment Form'!O188=\"\"),\"-\",IF('Enrollment Form'!P188=\"\",\"N\",\"Y\")))","v":""},{"$f":"IF($B181=\"N\",\"\",IF(AND('Enrollment Form'!$C188=\"ROC\",'Enrollment Form'!$DR188<>\"\"),\"Y\",IF(AND('Enrollment Form'!$C188=\"ROC\",'Enrollment Form'!$DR188=\"\"),\"N\",IF(AND('Enrollment Form'!$C188=\"Enroll\",'Enrollment Form'!$B188=\"Subscriber\",'Enrollment Form'!$CX188=\"No\",'Enrollment Form'!$DR188=\"\"),\"N\",IF(AND('Enrollment Form'!$C188=\"Enroll\",'Enrollment Form'!$B188=\"Subscriber\",'Enrollment Form'!$CX188=\"Yes\"),\"-\",\"Y\")))))","v":""},{"$f":"IF($B181=\"N\",\"\",IF(AND('Enrollment Form'!$C188=\"ROC\",'Enrollment Form'!$DS188<>\"\"),\"Y\",IF(AND('Enrollment Form'!$C188=\"ROC\",'Enrollment Form'!$DS188=\"\"),\"N\",IF(AND('Enrollment Form'!$C188=\"Enroll\",'Enrollment Form'!$B188=\"Subscriber\",'Enrollment Form'!$CX188=\"No\",'Enrollment Form'!$DS188=\"\"),\"N\",IF(AND('Enrollment Form'!$C188=\"Enroll\",'Enrollment Form'!$B188=\"Subscriber\",'Enrollment Form'!$CX188=\"Yes\"),\"-\",\"Y\")))))","v":""},{"$f":"IF('Enrollment Form'!AH188=\"\",\"\",IF(ISERROR(SEARCH(\".\",'Enrollment Form'!AH188,SEARCH(\"@\",'Enrollment Form'!AH188))),\"N\",\"Y\"))","v":""},{"$f":"IF(OR($B181=\"N\",'Enrollment Form'!$G188=\"\"),\"\",IF('Enrollment Form'!$B188<>\"Subscriber\",\"-\",IF(COUNTIF('Enrollment Form'!$AV188:$AW188,\"Yes\")=2,\"N\",\"Y\")))","v":""},{"$f":"IF(OR('Enrollment Form'!$CJ188=\"\",'Enrollment Form'!$CJ188=\"No\"),\"-\",IF(AND('Enrollment Form'!$CJ188=\"Yes\",'Enrollment Form'!$CK188=\"\"),\"N\",\"Y\"))","v":"-"},{"$f":"IF(OR('Enrollment Form'!$CL188=\"\",'Enrollment Form'!$CL188=\"No\"),\"-\",IF(AND('Enrollment Form'!$CL188=\"Yes\",'Enrollment Form'!$CM188=\"\"),\"N\",\"Y\"))","v":"-"},{"$f":"IF(OR('Enrollment Form'!$CN188=\"\",'Enrollment Form'!$CN188=\"No\"),\"-\",IF(AND('Enrollment Form'!$CN188=\"Yes\",'Enrollment Form'!$CO188=\"\"),\"N\",\"Y\"))","v":"-"},{"$f":"IF(OR('Enrollment Form'!$CN188=\"\",'Enrollment Form'!$CN188=\"No\"),\"-\",IF(AND('Enrollment Form'!$CN188=\"Yes\",'Enrollment Form'!$CP188=\"\"),\"N\",\"Y\"))","v":"-"},{"$f":"IF('Enrollment Form'!B188<>\"Subscriber\",\"-\",IF(AND('Enrollment Form'!B188=\"Subscriber\",'Enrollment Form'!C188=\"Enroll\",'Enrollment Form'!AA188=\"\"),\"N\",\"Y\"))","v":"-"},{"$f":"IF(OR('Enrollment Form'!B188=\"Subscriber\",'Enrollment Form'!B188=\"\"),\"-\",IF('Enrollment Form'!BP188=\"\",\"N\",\"Y\"))","v":"-"},{"$f":"IF('Enrollment Form'!B188<>\"Subscriber\",\"-\",IF(AND('Enrollment Form'!B188=\"Subscriber\",'Enrollment Form'!G188=\"\"),\"N\",\"Y\"))","v":"-"},{"$f":"IF('Enrollment Form'!A188=\"\",\"\",IF('Enrollment Form'!B188=\"Subscriber\",\"-\",IF(AND('Enrollment Form'!B188<>\"Subscriber\",'Enrollment Form'!G188='Enrollment Form'!H188),\"N\",\"Y\")))","v":""},0]
[189,{"$f":"IF('Enrollment Form'!$A189<>\"\",\"Y\",\"N\")","v":"N"},{"$f":"IF(AND('Enrollment Form'!$B189=\"\",'Enrollment Form'!$C189<>\"\"),\"N\",IF($B182=\"N\",\"\",\"Y\"))","v":""},{"$f":"IF(OR($B182=\"N\",'Enrollment Form'!G189=\"\"),\"\",IF('Enrollment Form'!$B189<>\"Subscriber\",\"\",IF('Enrollment Form'!$G189='Enrollment Form'!$H189,\"Y\",\"N\")))","v":""},{"$f":"IF($B182=\"N\",\"\",IF(AND(COUNTIFS('Enrollment Form'!$H$11:$H$1000,'Enrollment Form'!$H189,'Enrollment Form'!$B$11:$B$1000,'Enrollment Form'!$B189)>1,'Enrollment Form'!$H189<>\"\"),\"N\",\"Y\"))","v":""},{"$f":"IF($B182=\"N\",\"\",IF(LEN('Enrollment Form'!$Y189)=0,\"\",IF(LEN('Enrollment Form'!$Y189)<>5,\"N\",\"Y\")))","v":""},{"$f":"IF($B182=\"N\",\"\",IF(LEN('Enrollment Form'!$AD189=0),\"\",IF(LEN('Enrollment Form'!$AD189)<>5,\"N\",\"Y\")))","v":""},{"$f":"IF($B182=\"N\",\"\",IF(LEN('Enrollment Form'!$BS189=0),\"\",IF(LEN('Enrollment Form'!$BS189)<>5,\"N\",\"Y\")))","v":""},{"$f":"IF($B182=\"N\",\"\",IF(LEN('Enrollment Form'!$AE189)=0,\"\",IF(LEN('Enrollment Form'!$AE189)<>10,\"N\",\"Y\")))","v":""},{"$f":"IF($B182=\"N\",\"\",IF(LEN('Enrollment Form'!$AF189)=0,\"\",IF(LEN('Enrollment Form'!$AF189)<>10,\"N\",\"Y\")))","v":""},{"$f":"IF('Enrollment Form'!$O189<>\"Graded\",\"-\",IF(AND('Enrollment Form'!$O189=\"Graded\",'Enrollment Form'!$AR189<>\"\"),\"Y\",\"N\"))","v":"-"},{"$f":"IF($B182=\"N\",\"\",IF(OR('Enrollment Form'!$B189<>\"Subscriber\",'Enrollment Form'!$C189=\"ROC\"),\"-\",IF(AND('Enrollment Form'!$B189=\"Subscriber\",'Enrollment Form'!$C189=\"Enroll\",'Enrollment Form'!$AJ189<>\"\"),\"Y\",\"N\")))","v":""},{"$f":"IF($B182=\"N\",\"\",IF(OR('Enrollment Form'!$B189<>\"Subscriber\",'Enrollment Form'!$C189=\"ROC\"),\"-\",IF(AND('Enrollment Form'!$B189=\"Subscriber\",'Enrollment Form'!$C189=\"Enroll\",'Enrollment Form'!$AK189<>\"\"),\"Y\",\"N\")))","v":""},{"$f":"IF($B182=\"N\",\"\",IF(OR('Enrollment Form'!$B189<>\"Subscriber\",'Enrollment Form'!$C189=\"ROC\"),\"-\",IF(AND('Enrollment Form'!$B189=\"Subscriber\",'Enrollment Form'!$C189=\"Enroll\",'Enrollment Form'!$AL189<>\"\"),\"Y\",\"N\")))","v":""},{"$f":"IF($B182=\"N\",\"\",IF(OR('Enrollment Form'!$B189<>\"Subscriber\",'Enrollment Form'!$C189=\"ROC\"),\"-\",IF(AND('Enrollment Form'!$B189=\"Subscriber\",'Enrollment Form'!$C189=\"Enroll\",'Enrollment Form'!$AP189<>\"\"),\"Y\",\"N\")))","v":""},{"$f":"IF($B182=\"N\",\"\",IF(OR('Enrollment Form'!$B189<>\"Subscriber\",'Enrollment Form'!$C189=\"ROC\"),\"-\",IF(AND('Enrollment Form'!$B189=\"Subscriber\",'Enrollment Form'!$C189=\"Enroll\",'Enrollment Form'!$AQ189<>\"\"),\"Y\",\"N\")))","v":""},{"$f":"IF($B182=\"N\",\"\",IF(OR('Enrollment Form'!$B189<>\"Subscriber\",'Enrollment Form'!$C189=\"ROC\"),\"-\",IF(AND('Enrollment Form'!$B189=\"Subscriber\",'Enrollment Form'!$C189=\"Enroll\",'Enrollment Form'!$AS189<>\"\"),\"Y\",\"N\")))","v":""},{"$f":"IF($B182=\"N\",\"\",IF($Q182=\"-\",\"-\",IF(AND($Q182=\"Y\",'Enrollment Form'!$AS189=\"No\"),\"-\",IF(AND($Q182=\"Y\",'Enrollment Form'!$AS189=\"Yes\",'Enrollment Form'!$AT189<>\"\"),\"Y\",\"N\"))))","v":""},{"$f":"IF($B182=\"N\",\"\",IF(OR('Enrollment Form'!$B189<>\"Subscriber\",'Enrollment Form'!$C189=\"ROC\"),\"-\",IF(AND('Enrollment Form'!$B189=\"Subscriber\",'Enrollment Form'!$C189=\"Enroll\",'Enrollment Form'!$CV189<>\"\"),\"Y\",\"N\")))","v":""},{"$f":"IF($B182=\"N\",\"\",IF($S182=\"-\",\"-\",IF(AND($S182=\"Y\",'Enrollment Form'!$CV189=\"No\"),\"-\",IF(AND($S182=\"Y\",'Enrollment Form'!$CV189=\"Yes\",'Enrollment Form'!$CW189<>\"\"),\"Y\",\"N\"))))","v":""},{"$f":"IF(OR('Enrollment Form'!$AY189=\"Yes\",'Enrollment Form'!$AY189=\"\"),\"-\",IF(OR(AND('Enrollment Form'!$AY189=\"No\",ISERROR(FIND(\"HMO\",VLOOKUP('Enrollment Form'!G189,'Enrollment Form'!H$11:J$1000,3,FALSE),1))=FALSE,COUNTA('Enrollment Form'!$AZ189:$BC189)=4),AND('Enrollment Form'!$AY189=\"No\",ISERROR(FIND(\"HMO\",VLOOKUP('Enrollment Form'!G189,'Enrollment Form'!H$11:J$1000,3,FALSE),1))=FALSE,COUNTA('Enrollment Form'!$BT189:$BW189)=4)),\"Y\",\"N\"))","v":"-"},{"$f":"IF($B182=\"N\",\"\",IF('Enrollment Form'!$B189=\"Subscriber\",\"-\",IF(COUNTA('Enrollment Form'!$BL189,'Enrollment Form'!$BN189)=2,\"Y\",\"N\")))","v":""},{"$f":"IF($B182=\"N\",\"\",IF(OR('Enrollment Form'!$AX189=\"\",'Enrollment Form'!$AX189=\"No\"),\"-\",IF(AND('Enrollment Form'!$AX189=\"Yes\",COUNTA('Enrollment Form'!$CR189)=1),\"Y\",\"N\")))","v":""},{"$f":"IF(OR('Enrollment Form'!$CR189=\"\",'Enrollment Form'!$CR189=\"No\"),\"-\",IF(COUNTA('Enrollment Form'!$CT189:$CU189)=2,\"Y\",\"N\"))","v":"-"},{"$f":"IF($B182=\"N\",\"\",IF(COUNTIF('Enrollment Form'!$DG189:$DP189,\"Other\")=COUNTA('Enrollment Form'!$DK189,'Enrollment Form'!$DH189,'Enrollment Form'!$DN189,'Enrollment Form'!$DQ189),\"Y\",\"N\"))","v":""},{"$f":"IF($B182=\"N\",\"\",IF(OR('Enrollment Form'!B189<>\"Subscriber\",'Enrollment Form'!C189=\"ROC\",COUNTIF('Enrollment Form'!AV189:AW189,\"Yes\")>=1),\"-\",IF(AND('Enrollment Form'!C189=\"Enroll\",COUNTIF('Enrollment Form'!AV189:AW189,\"No\")=2,'Enrollment Form'!AX189=\"\"),\"N\",\"Y\")))","v":""},{"$f":"IF(OR(B182=\"N\",'Enrollment Form'!B189<>\"Subscriber\",'Enrollment Form'!C189=\"ROC\",'Enrollment Form'!O189<>\"Multiple of Salary\"),\"-\",IF(COUNTA('Enrollment Form'!T189:U189)<2,\"N\",\"Y\"))","v":"-"},{"$f":"IF(B182=\"N\",\"\",IF(OR('Enrollment Form'!C189=\"ROC\",'Enrollment Form'!B189<>\"Subscriber\",'Enrollment Form'!O189=\"Waive\",'Enrollment Form'!O189=\"\"),\"-\",IF('Enrollment Form'!P189=\"\",\"N\",\"Y\")))","v":""},{"$f":"IF($B182=\"N\",\"\",IF(AND('Enrollment Form'!$C189=\"ROC\",'Enrollment Form'!$DR189<>\"\"),\"Y\",IF(AND('Enrollment Form'!$C189=\"ROC\",'Enrollment Form'!$DR189=\"\"),\"N\",IF(AND('Enrollment Form'!$C189=\"Enroll\",'Enrollment Form'!$B189=\"Subscriber\",'Enrollment Form'!$CX189=\"No\",'Enrollment Form'!$DR189=\"\"),\"N\",IF(AND('Enrollment Form'!$C189=\"Enroll\",'Enrollment Form'!$B189=\"Subscriber\",'Enrollment Form'!$CX189=\"Yes\"),\"-\",\"Y\")))))","v":""},{"$f":"IF($B182=\"N\",\"\",IF(AND('Enrollment Form'!$C189=\"ROC\",'Enrollment Form'!$DS189<>\"\"),\"Y\",IF(AND('Enrollment Form'!$C189=\"ROC\",'Enrollment Form'!$DS189=\"\"),\"N\",IF(AND('Enrollment Form'!$C189=\"Enroll\",'Enrollment Form'!$B189=\"Subscriber\",'Enrollment Form'!$CX189=\"No\",'Enrollment Form'!$DS189=\"\"),\"N\",IF(AND('Enrollment Form'!$C189=\"Enroll\",'Enrollment Form'!$B189=\"Subscriber\",'Enrollment Form'!$CX189=\"Yes\"),\"-\",\"Y\")))))","v":""},{"$f":"IF('Enrollment Form'!AH189=\"\",\"\",IF(ISERROR(SEARCH(\".\",'Enrollment Form'!AH189,SEARCH(\"@\",'Enrollment Form'!AH189))),\"N\",\"Y\"))","v":""},{"$f":"IF(OR($B182=\"N\",'Enrollment Form'!$G189=\"\"),\"\",IF('Enrollment Form'!$B189<>\"Subscriber\",\"-\",IF(COUNTIF('Enrollment Form'!$AV189:$AW189,\"Yes\")=2,\"N\",\"Y\")))","v":""},{"$f":"IF(OR('Enrollment Form'!$CJ189=\"\",'Enrollment Form'!$CJ189=\"No\"),\"-\",IF(AND('Enrollment Form'!$CJ189=\"Yes\",'Enrollment Form'!$CK189=\"\"),\"N\",\"Y\"))","v":"-"},{"$f":"IF(OR('Enrollment Form'!$CL189=\"\",'Enrollment Form'!$CL189=\"No\"),\"-\",IF(AND('Enrollment Form'!$CL189=\"Yes\",'Enrollment Form'!$CM189=\"\"),\"N\",\"Y\"))","v":"-"},{"$f":"IF(OR('Enrollment Form'!$CN189=\"\",'Enrollment Form'!$CN189=\"No\"),\"-\",IF(AND('Enrollment Form'!$CN189=\"Yes\",'Enrollment Form'!$CO189=\"\"),\"N\",\"Y\"))","v":"-"},{"$f":"IF(OR('Enrollment Form'!$CN189=\"\",'Enrollment Form'!$CN189=\"No\"),\"-\",IF(AND('Enrollment Form'!$CN189=\"Yes\",'Enrollment Form'!$CP189=\"\"),\"N\",\"Y\"))","v":"-"},{"$f":"IF('Enrollment Form'!B189<>\"Subscriber\",\"-\",IF(AND('Enrollment Form'!B189=\"Subscriber\",'Enrollment Form'!C189=\"Enroll\",'Enrollment Form'!AA189=\"\"),\"N\",\"Y\"))","v":"-"},{"$f":"IF(OR('Enrollment Form'!B189=\"Subscriber\",'Enrollment Form'!B189=\"\"),\"-\",IF('Enrollment Form'!BP189=\"\",\"N\",\"Y\"))","v":"-"},{"$f":"IF('Enrollment Form'!B189<>\"Subscriber\",\"-\",IF(AND('Enrollment Form'!B189=\"Subscriber\",'Enrollment Form'!G189=\"\"),\"N\",\"Y\"))","v":"-"},{"$f":"IF('Enrollment Form'!A189=\"\",\"\",IF('Enrollment Form'!B189=\"Subscriber\",\"-\",IF(AND('Enrollment Form'!B189<>\"Subscriber\",'Enrollment Form'!G189='Enrollment Form'!H189),\"N\",\"Y\")))","v":""},0]
[190,{"$f":"IF('Enrollment Form'!$A190<>\"\",\"Y\",\"N\")","v":"N"},{"$f":"IF(AND('Enrollment Form'!$B190=\"\",'Enrollment Form'!$C190<>\"\"),\"N\",IF($B183=\"N\",\"\",\"Y\"))","v":""},{"$f":"IF(OR($B183=\"N\",'Enrollment Form'!G190=\"\"),\"\",IF('Enrollment Form'!$B190<>\"Subscriber\",\"\",IF('Enrollment Form'!$G190='Enrollment Form'!$H190,\"Y\",\"N\")))","v":""},{"$f":"IF($B183=\"N\",\"\",IF(AND(COUNTIFS('Enrollment Form'!$H$11:$H$1000,'Enrollment Form'!$H190,'Enrollment Form'!$B$11:$B$1000,'Enrollment Form'!$B190)>1,'Enrollment Form'!$H190<>\"\"),\"N\",\"Y\"))","v":""},{"$f":"IF($B183=\"N\",\"\",IF(LEN('Enrollment Form'!$Y190)=0,\"\",IF(LEN('Enrollment Form'!$Y190)<>5,\"N\",\"Y\")))","v":""},{"$f":"IF($B183=\"N\",\"\",IF(LEN('Enrollment Form'!$AD190=0),\"\",IF(LEN('Enrollment Form'!$AD190)<>5,\"N\",\"Y\")))","v":""},{"$f":"IF($B183=\"N\",\"\",IF(LEN('Enrollment Form'!$BS190=0),\"\",IF(LEN('Enrollment Form'!$BS190)<>5,\"N\",\"Y\")))","v":""},{"$f":"IF($B183=\"N\",\"\",IF(LEN('Enrollment Form'!$AE190)=0,\"\",IF(LEN('Enrollment Form'!$AE190)<>10,\"N\",\"Y\")))","v":""},{"$f":"IF($B183=\"N\",\"\",IF(LEN('Enrollment Form'!$AF190)=0,\"\",IF(LEN('Enrollment Form'!$AF190)<>10,\"N\",\"Y\")))","v":""},{"$f":"IF('Enrollment Form'!$O190<>\"Graded\",\"-\",IF(AND('Enrollment Form'!$O190=\"Graded\",'Enrollment Form'!$AR190<>\"\"),\"Y\",\"N\"))","v":"-"},{"$f":"IF($B183=\"N\",\"\",IF(OR('Enrollment Form'!$B190<>\"Subscriber\",'Enrollment Form'!$C190=\"ROC\"),\"-\",IF(AND('Enrollment Form'!$B190=\"Subscriber\",'Enrollment Form'!$C190=\"Enroll\",'Enrollment Form'!$AJ190<>\"\"),\"Y\",\"N\")))","v":""},{"$f":"IF($B183=\"N\",\"\",IF(OR('Enrollment Form'!$B190<>\"Subscriber\",'Enrollment Form'!$C190=\"ROC\"),\"-\",IF(AND('Enrollment Form'!$B190=\"Subscriber\",'Enrollment Form'!$C190=\"Enroll\",'Enrollment Form'!$AK190<>\"\"),\"Y\",\"N\")))","v":""},{"$f":"IF($B183=\"N\",\"\",IF(OR('Enrollment Form'!$B190<>\"Subscriber\",'Enrollment Form'!$C190=\"ROC\"),\"-\",IF(AND('Enrollment Form'!$B190=\"Subscriber\",'Enrollment Form'!$C190=\"Enroll\",'Enrollment Form'!$AL190<>\"\"),\"Y\",\"N\")))","v":""},{"$f":"IF($B183=\"N\",\"\",IF(OR('Enrollment Form'!$B190<>\"Subscriber\",'Enrollment Form'!$C190=\"ROC\"),\"-\",IF(AND('Enrollment Form'!$B190=\"Subscriber\",'Enrollment Form'!$C190=\"Enroll\",'Enrollment Form'!$AP190<>\"\"),\"Y\",\"N\")))","v":""},{"$f":"IF($B183=\"N\",\"\",IF(OR('Enrollment Form'!$B190<>\"Subscriber\",'Enrollment Form'!$C190=\"ROC\"),\"-\",IF(AND('Enrollment Form'!$B190=\"Subscriber\",'Enrollment Form'!$C190=\"Enroll\",'Enrollment Form'!$AQ190<>\"\"),\"Y\",\"N\")))","v":""},{"$f":"IF($B183=\"N\",\"\",IF(OR('Enrollment Form'!$B190<>\"Subscriber\",'Enrollment Form'!$C190=\"ROC\"),\"-\",IF(AND('Enrollment Form'!$B190=\"Subscriber\",'Enrollment Form'!$C190=\"Enroll\",'Enrollment Form'!$AS190<>\"\"),\"Y\",\"N\")))","v":""},{"$f":"IF($B183=\"N\",\"\",IF($Q183=\"-\",\"-\",IF(AND($Q183=\"Y\",'Enrollment Form'!$AS190=\"No\"),\"-\",IF(AND($Q183=\"Y\",'Enrollment Form'!$AS190=\"Yes\",'Enrollment Form'!$AT190<>\"\"),\"Y\",\"N\"))))","v":""},{"$f":"IF($B183=\"N\",\"\",IF(OR('Enrollment Form'!$B190<>\"Subscriber\",'Enrollment Form'!$C190=\"ROC\"),\"-\",IF(AND('Enrollment Form'!$B190=\"Subscriber\",'Enrollment Form'!$C190=\"Enroll\",'Enrollment Form'!$CV190<>\"\"),\"Y\",\"N\")))","v":""},{"$f":"IF($B183=\"N\",\"\",IF($S183=\"-\",\"-\",IF(AND($S183=\"Y\",'Enrollment Form'!$CV190=\"No\"),\"-\",IF(AND($S183=\"Y\",'Enrollment Form'!$CV190=\"Yes\",'Enrollment Form'!$CW190<>\"\"),\"Y\",\"N\"))))","v":""},{"$f":"IF(OR('Enrollment Form'!$AY190=\"Yes\",'Enrollment Form'!$AY190=\"\"),\"-\",IF(OR(AND('Enrollment Form'!$AY190=\"No\",ISERROR(FIND(\"HMO\",VLOOKUP('Enrollment Form'!G190,'Enrollment Form'!H$11:J$1000,3,FALSE),1))=FALSE,COUNTA('Enrollment Form'!$AZ190:$BC190)=4),AND('Enrollment Form'!$AY190=\"No\",ISERROR(FIND(\"HMO\",VLOOKUP('Enrollment Form'!G190,'Enrollment Form'!H$11:J$1000,3,FALSE),1))=FALSE,COUNTA('Enrollment Form'!$BT190:$BW190)=4)),\"Y\",\"N\"))","v":"-"},{"$f":"IF($B183=\"N\",\"\",IF('Enrollment Form'!$B190=\"Subscriber\",\"-\",IF(COUNTA('Enrollment Form'!$BL190,'Enrollment Form'!$BN190)=2,\"Y\",\"N\")))","v":""},{"$f":"IF($B183=\"N\",\"\",IF(OR('Enrollment Form'!$AX190=\"\",'Enrollment Form'!$AX190=\"No\"),\"-\",IF(AND('Enrollment Form'!$AX190=\"Yes\",COUNTA('Enrollment Form'!$CR190)=1),\"Y\",\"N\")))","v":""},{"$f":"IF(OR('Enrollment Form'!$CR190=\"\",'Enrollment Form'!$CR190=\"No\"),\"-\",IF(COUNTA('Enrollment Form'!$CT190:$CU190)=2,\"Y\",\"N\"))","v":"-"},{"$f":"IF($B183=\"N\",\"\",IF(COUNTIF('Enrollment Form'!$DG190:$DP190,\"Other\")=COUNTA('Enrollment Form'!$DK190,'Enrollment Form'!$DH190,'Enrollment Form'!$DN190,'Enrollment Form'!$DQ190),\"Y\",\"N\"))","v":""},{"$f":"IF($B183=\"N\",\"\",IF(OR('Enrollment Form'!B190<>\"Subscriber\",'Enrollment Form'!C190=\"ROC\",COUNTIF('Enrollment Form'!AV190:AW190,\"Yes\")>=1),\"-\",IF(AND('Enrollment Form'!C190=\"Enroll\",COUNTIF('Enrollment Form'!AV190:AW190,\"No\")=2,'Enrollment Form'!AX190=\"\"),\"N\",\"Y\")))","v":""},{"$f":"IF(OR(B183=\"N\",'Enrollment Form'!B190<>\"Subscriber\",'Enrollment Form'!C190=\"ROC\",'Enrollment Form'!O190<>\"Multiple of Salary\"),\"-\",IF(COUNTA('Enrollment Form'!T190:U190)<2,\"N\",\"Y\"))","v":"-"},{"$f":"IF(B183=\"N\",\"\",IF(OR('Enrollment Form'!C190=\"ROC\",'Enrollment Form'!B190<>\"Subscriber\",'Enrollment Form'!O190=\"Waive\",'Enrollment Form'!O190=\"\"),\"-\",IF('Enrollment Form'!P190=\"\",\"N\",\"Y\")))","v":""},{"$f":"IF($B183=\"N\",\"\",IF(AND('Enrollment Form'!$C190=\"ROC\",'Enrollment Form'!$DR190<>\"\"),\"Y\",IF(AND('Enrollment Form'!$C190=\"ROC\",'Enrollment Form'!$DR190=\"\"),\"N\",IF(AND('Enrollment Form'!$C190=\"Enroll\",'Enrollment Form'!$B190=\"Subscriber\",'Enrollment Form'!$CX190=\"No\",'Enrollment Form'!$DR190=\"\"),\"N\",IF(AND('Enrollment Form'!$C190=\"Enroll\",'Enrollment Form'!$B190=\"Subscriber\",'Enrollment Form'!$CX190=\"Yes\"),\"-\",\"Y\")))))","v":""},{"$f":"IF($B183=\"N\",\"\",IF(AND('Enrollment Form'!$C190=\"ROC\",'Enrollment Form'!$DS190<>\"\"),\"Y\",IF(AND('Enrollment Form'!$C190=\"ROC\",'Enrollment Form'!$DS190=\"\"),\"N\",IF(AND('Enrollment Form'!$C190=\"Enroll\",'Enrollment Form'!$B190=\"Subscriber\",'Enrollment Form'!$CX190=\"No\",'Enrollment Form'!$DS190=\"\"),\"N\",IF(AND('Enrollment Form'!$C190=\"Enroll\",'Enrollment Form'!$B190=\"Subscriber\",'Enrollment Form'!$CX190=\"Yes\"),\"-\",\"Y\")))))","v":""},{"$f":"IF('Enrollment Form'!AH190=\"\",\"\",IF(ISERROR(SEARCH(\".\",'Enrollment Form'!AH190,SEARCH(\"@\",'Enrollment Form'!AH190))),\"N\",\"Y\"))","v":""},{"$f":"IF(OR($B183=\"N\",'Enrollment Form'!$G190=\"\"),\"\",IF('Enrollment Form'!$B190<>\"Subscriber\",\"-\",IF(COUNTIF('Enrollment Form'!$AV190:$AW190,\"Yes\")=2,\"N\",\"Y\")))","v":""},{"$f":"IF(OR('Enrollment Form'!$CJ190=\"\",'Enrollment Form'!$CJ190=\"No\"),\"-\",IF(AND('Enrollment Form'!$CJ190=\"Yes\",'Enrollment Form'!$CK190=\"\"),\"N\",\"Y\"))","v":"-"},{"$f":"IF(OR('Enrollment Form'!$CL190=\"\",'Enrollment Form'!$CL190=\"No\"),\"-\",IF(AND('Enrollment Form'!$CL190=\"Yes\",'Enrollment Form'!$CM190=\"\"),\"N\",\"Y\"))","v":"-"},{"$f":"IF(OR('Enrollment Form'!$CN190=\"\",'Enrollment Form'!$CN190=\"No\"),\"-\",IF(AND('Enrollment Form'!$CN190=\"Yes\",'Enrollment Form'!$CO190=\"\"),\"N\",\"Y\"))","v":"-"},{"$f":"IF(OR('Enrollment Form'!$CN190=\"\",'Enrollment Form'!$CN190=\"No\"),\"-\",IF(AND('Enrollment Form'!$CN190=\"Yes\",'Enrollment Form'!$CP190=\"\"),\"N\",\"Y\"))","v":"-"},{"$f":"IF('Enrollment Form'!B190<>\"Subscriber\",\"-\",IF(AND('Enrollment Form'!B190=\"Subscriber\",'Enrollment Form'!C190=\"Enroll\",'Enrollment Form'!AA190=\"\"),\"N\",\"Y\"))","v":"-"},{"$f":"IF(OR('Enrollment Form'!B190=\"Subscriber\",'Enrollment Form'!B190=\"\"),\"-\",IF('Enrollment Form'!BP190=\"\",\"N\",\"Y\"))","v":"-"},{"$f":"IF('Enrollment Form'!B190<>\"Subscriber\",\"-\",IF(AND('Enrollment Form'!B190=\"Subscriber\",'Enrollment Form'!G190=\"\"),\"N\",\"Y\"))","v":"-"},{"$f":"IF('Enrollment Form'!A190=\"\",\"\",IF('Enrollment Form'!B190=\"Subscriber\",\"-\",IF(AND('Enrollment Form'!B190<>\"Subscriber\",'Enrollment Form'!G190='Enrollment Form'!H190),\"N\",\"Y\")))","v":""},0]
[191,{"$f":"IF('Enrollment Form'!$A191<>\"\",\"Y\",\"N\")","v":"N"},{"$f":"IF(AND('Enrollment Form'!$B191=\"\",'Enrollment Form'!$C191<>\"\"),\"N\",IF($B184=\"N\",\"\",\"Y\"))","v":""},{"$f":"IF(OR($B184=\"N\",'Enrollment Form'!G191=\"\"),\"\",IF('Enrollment Form'!$B191<>\"Subscriber\",\"\",IF('Enrollment Form'!$G191='Enrollment Form'!$H191,\"Y\",\"N\")))","v":""},{"$f":"IF($B184=\"N\",\"\",IF(AND(COUNTIFS('Enrollment Form'!$H$11:$H$1000,'Enrollment Form'!$H191,'Enrollment Form'!$B$11:$B$1000,'Enrollment Form'!$B191)>1,'Enrollment Form'!$H191<>\"\"),\"N\",\"Y\"))","v":""},{"$f":"IF($B184=\"N\",\"\",IF(LEN('Enrollment Form'!$Y191)=0,\"\",IF(LEN('Enrollment Form'!$Y191)<>5,\"N\",\"Y\")))","v":""},{"$f":"IF($B184=\"N\",\"\",IF(LEN('Enrollment Form'!$AD191=0),\"\",IF(LEN('Enrollment Form'!$AD191)<>5,\"N\",\"Y\")))","v":""},{"$f":"IF($B184=\"N\",\"\",IF(LEN('Enrollment Form'!$BS191=0),\"\",IF(LEN('Enrollment Form'!$BS191)<>5,\"N\",\"Y\")))","v":""},{"$f":"IF($B184=\"N\",\"\",IF(LEN('Enrollment Form'!$AE191)=0,\"\",IF(LEN('Enrollment Form'!$AE191)<>10,\"N\",\"Y\")))","v":""},{"$f":"IF($B184=\"N\",\"\",IF(LEN('Enrollment Form'!$AF191)=0,\"\",IF(LEN('Enrollment Form'!$AF191)<>10,\"N\",\"Y\")))","v":""},{"$f":"IF('Enrollment Form'!$O191<>\"Graded\",\"-\",IF(AND('Enrollment Form'!$O191=\"Graded\",'Enrollment Form'!$AR191<>\"\"),\"Y\",\"N\"))","v":"-"},{"$f":"IF($B184=\"N\",\"\",IF(OR('Enrollment Form'!$B191<>\"Subscriber\",'Enrollment Form'!$C191=\"ROC\"),\"-\",IF(AND('Enrollment Form'!$B191=\"Subscriber\",'Enrollment Form'!$C191=\"Enroll\",'Enrollment Form'!$AJ191<>\"\"),\"Y\",\"N\")))","v":""},{"$f":"IF($B184=\"N\",\"\",IF(OR('Enrollment Form'!$B191<>\"Subscriber\",'Enrollment Form'!$C191=\"ROC\"),\"-\",IF(AND('Enrollment Form'!$B191=\"Subscriber\",'Enrollment Form'!$C191=\"Enroll\",'Enrollment Form'!$AK191<>\"\"),\"Y\",\"N\")))","v":""},{"$f":"IF($B184=\"N\",\"\",IF(OR('Enrollment Form'!$B191<>\"Subscriber\",'Enrollment Form'!$C191=\"ROC\"),\"-\",IF(AND('Enrollment Form'!$B191=\"Subscriber\",'Enrollment Form'!$C191=\"Enroll\",'Enrollment Form'!$AL191<>\"\"),\"Y\",\"N\")))","v":""},{"$f":"IF($B184=\"N\",\"\",IF(OR('Enrollment Form'!$B191<>\"Subscriber\",'Enrollment Form'!$C191=\"ROC\"),\"-\",IF(AND('Enrollment Form'!$B191=\"Subscriber\",'Enrollment Form'!$C191=\"Enroll\",'Enrollment Form'!$AP191<>\"\"),\"Y\",\"N\")))","v":""},{"$f":"IF($B184=\"N\",\"\",IF(OR('Enrollment Form'!$B191<>\"Subscriber\",'Enrollment Form'!$C191=\"ROC\"),\"-\",IF(AND('Enrollment Form'!$B191=\"Subscriber\",'Enrollment Form'!$C191=\"Enroll\",'Enrollment Form'!$AQ191<>\"\"),\"Y\",\"N\")))","v":""},{"$f":"IF($B184=\"N\",\"\",IF(OR('Enrollment Form'!$B191<>\"Subscriber\",'Enrollment Form'!$C191=\"ROC\"),\"-\",IF(AND('Enrollment Form'!$B191=\"Subscriber\",'Enrollment Form'!$C191=\"Enroll\",'Enrollment Form'!$AS191<>\"\"),\"Y\",\"N\")))","v":""},{"$f":"IF($B184=\"N\",\"\",IF($Q184=\"-\",\"-\",IF(AND($Q184=\"Y\",'Enrollment Form'!$AS191=\"No\"),\"-\",IF(AND($Q184=\"Y\",'Enrollment Form'!$AS191=\"Yes\",'Enrollment Form'!$AT191<>\"\"),\"Y\",\"N\"))))","v":""},{"$f":"IF($B184=\"N\",\"\",IF(OR('Enrollment Form'!$B191<>\"Subscriber\",'Enrollment Form'!$C191=\"ROC\"),\"-\",IF(AND('Enrollment Form'!$B191=\"Subscriber\",'Enrollment Form'!$C191=\"Enroll\",'Enrollment Form'!$CV191<>\"\"),\"Y\",\"N\")))","v":""},{"$f":"IF($B184=\"N\",\"\",IF($S184=\"-\",\"-\",IF(AND($S184=\"Y\",'Enrollment Form'!$CV191=\"No\"),\"-\",IF(AND($S184=\"Y\",'Enrollment Form'!$CV191=\"Yes\",'Enrollment Form'!$CW191<>\"\"),\"Y\",\"N\"))))","v":""},{"$f":"IF(OR('Enrollment Form'!$AY191=\"Yes\",'Enrollment Form'!$AY191=\"\"),\"-\",IF(OR(AND('Enrollment Form'!$AY191=\"No\",ISERROR(FIND(\"HMO\",VLOOKUP('Enrollment Form'!G191,'Enrollment Form'!H$11:J$1000,3,FALSE),1))=FALSE,COUNTA('Enrollment Form'!$AZ191:$BC191)=4),AND('Enrollment Form'!$AY191=\"No\",ISERROR(FIND(\"HMO\",VLOOKUP('Enrollment Form'!G191,'Enrollment Form'!H$11:J$1000,3,FALSE),1))=FALSE,COUNTA('Enrollment Form'!$BT191:$BW191)=4)),\"Y\",\"N\"))","v":"-"},{"$f":"IF($B184=\"N\",\"\",IF('Enrollment Form'!$B191=\"Subscriber\",\"-\",IF(COUNTA('Enrollment Form'!$BL191,'Enrollment Form'!$BN191)=2,\"Y\",\"N\")))","v":""},{"$f":"IF($B184=\"N\",\"\",IF(OR('Enrollment Form'!$AX191=\"\",'Enrollment Form'!$AX191=\"No\"),\"-\",IF(AND('Enrollment Form'!$AX191=\"Yes\",COUNTA('Enrollment Form'!$CR191)=1),\"Y\",\"N\")))","v":""},{"$f":"IF(OR('Enrollment Form'!$CR191=\"\",'Enrollment Form'!$CR191=\"No\"),\"-\",IF(COUNTA('Enrollment Form'!$CT191:$CU191)=2,\"Y\",\"N\"))","v":"-"},{"$f":"IF($B184=\"N\",\"\",IF(COUNTIF('Enrollment Form'!$DG191:$DP191,\"Other\")=COUNTA('Enrollment Form'!$DK191,'Enrollment Form'!$DH191,'Enrollment Form'!$DN191,'Enrollment Form'!$DQ191),\"Y\",\"N\"))","v":""},{"$f":"IF($B184=\"N\",\"\",IF(OR('Enrollment Form'!B191<>\"Subscriber\",'Enrollment Form'!C191=\"ROC\",COUNTIF('Enrollment Form'!AV191:AW191,\"Yes\")>=1),\"-\",IF(AND('Enrollment Form'!C191=\"Enroll\",COUNTIF('Enrollment Form'!AV191:AW191,\"No\")=2,'Enrollment Form'!AX191=\"\"),\"N\",\"Y\")))","v":""},{"$f":"IF(OR(B184=\"N\",'Enrollment Form'!B191<>\"Subscriber\",'Enrollment Form'!C191=\"ROC\",'Enrollment Form'!O191<>\"Multiple of Salary\"),\"-\",IF(COUNTA('Enrollment Form'!T191:U191)<2,\"N\",\"Y\"))","v":"-"},{"$f":"IF(B184=\"N\",\"\",IF(OR('Enrollment Form'!C191=\"ROC\",'Enrollment Form'!B191<>\"Subscriber\",'Enrollment Form'!O191=\"Waive\",'Enrollment Form'!O191=\"\"),\"-\",IF('Enrollment Form'!P191=\"\",\"N\",\"Y\")))","v":""},{"$f":"IF($B184=\"N\",\"\",IF(AND('Enrollment Form'!$C191=\"ROC\",'Enrollment Form'!$DR191<>\"\"),\"Y\",IF(AND('Enrollment Form'!$C191=\"ROC\",'Enrollment Form'!$DR191=\"\"),\"N\",IF(AND('Enrollment Form'!$C191=\"Enroll\",'Enrollment Form'!$B191=\"Subscriber\",'Enrollment Form'!$CX191=\"No\",'Enrollment Form'!$DR191=\"\"),\"N\",IF(AND('Enrollment Form'!$C191=\"Enroll\",'Enrollment Form'!$B191=\"Subscriber\",'Enrollment Form'!$CX191=\"Yes\"),\"-\",\"Y\")))))","v":""},{"$f":"IF($B184=\"N\",\"\",IF(AND('Enrollment Form'!$C191=\"ROC\",'Enrollment Form'!$DS191<>\"\"),\"Y\",IF(AND('Enrollment Form'!$C191=\"ROC\",'Enrollment Form'!$DS191=\"\"),\"N\",IF(AND('Enrollment Form'!$C191=\"Enroll\",'Enrollment Form'!$B191=\"Subscriber\",'Enrollment Form'!$CX191=\"No\",'Enrollment Form'!$DS191=\"\"),\"N\",IF(AND('Enrollment Form'!$C191=\"Enroll\",'Enrollment Form'!$B191=\"Subscriber\",'Enrollment Form'!$CX191=\"Yes\"),\"-\",\"Y\")))))","v":""},{"$f":"IF('Enrollment Form'!AH191=\"\",\"\",IF(ISERROR(SEARCH(\".\",'Enrollment Form'!AH191,SEARCH(\"@\",'Enrollment Form'!AH191))),\"N\",\"Y\"))","v":""},{"$f":"IF(OR($B184=\"N\",'Enrollment Form'!$G191=\"\"),\"\",IF('Enrollment Form'!$B191<>\"Subscriber\",\"-\",IF(COUNTIF('Enrollment Form'!$AV191:$AW191,\"Yes\")=2,\"N\",\"Y\")))","v":""},{"$f":"IF(OR('Enrollment Form'!$CJ191=\"\",'Enrollment Form'!$CJ191=\"No\"),\"-\",IF(AND('Enrollment Form'!$CJ191=\"Yes\",'Enrollment Form'!$CK191=\"\"),\"N\",\"Y\"))","v":"-"},{"$f":"IF(OR('Enrollment Form'!$CL191=\"\",'Enrollment Form'!$CL191=\"No\"),\"-\",IF(AND('Enrollment Form'!$CL191=\"Yes\",'Enrollment Form'!$CM191=\"\"),\"N\",\"Y\"))","v":"-"},{"$f":"IF(OR('Enrollment Form'!$CN191=\"\",'Enrollment Form'!$CN191=\"No\"),\"-\",IF(AND('Enrollment Form'!$CN191=\"Yes\",'Enrollment Form'!$CO191=\"\"),\"N\",\"Y\"))","v":"-"},{"$f":"IF(OR('Enrollment Form'!$CN191=\"\",'Enrollment Form'!$CN191=\"No\"),\"-\",IF(AND('Enrollment Form'!$CN191=\"Yes\",'Enrollment Form'!$CP191=\"\"),\"N\",\"Y\"))","v":"-"},{"$f":"IF('Enrollment Form'!B191<>\"Subscriber\",\"-\",IF(AND('Enrollment Form'!B191=\"Subscriber\",'Enrollment Form'!C191=\"Enroll\",'Enrollment Form'!AA191=\"\"),\"N\",\"Y\"))","v":"-"},{"$f":"IF(OR('Enrollment Form'!B191=\"Subscriber\",'Enrollment Form'!B191=\"\"),\"-\",IF('Enrollment Form'!BP191=\"\",\"N\",\"Y\"))","v":"-"},{"$f":"IF('Enrollment Form'!B191<>\"Subscriber\",\"-\",IF(AND('Enrollment Form'!B191=\"Subscriber\",'Enrollment Form'!G191=\"\"),\"N\",\"Y\"))","v":"-"},{"$f":"IF('Enrollment Form'!A191=\"\",\"\",IF('Enrollment Form'!B191=\"Subscriber\",\"-\",IF(AND('Enrollment Form'!B191<>\"Subscriber\",'Enrollment Form'!G191='Enrollment Form'!H191),\"N\",\"Y\")))","v":""},0]
[192,{"$f":"IF('Enrollment Form'!$A192<>\"\",\"Y\",\"N\")","v":"N"},{"$f":"IF(AND('Enrollment Form'!$B192=\"\",'Enrollment Form'!$C192<>\"\"),\"N\",IF($B185=\"N\",\"\",\"Y\"))","v":""},{"$f":"IF(OR($B185=\"N\",'Enrollment Form'!G192=\"\"),\"\",IF('Enrollment Form'!$B192<>\"Subscriber\",\"\",IF('Enrollment Form'!$G192='Enrollment Form'!$H192,\"Y\",\"N\")))","v":""},{"$f":"IF($B185=\"N\",\"\",IF(AND(COUNTIFS('Enrollment Form'!$H$11:$H$1000,'Enrollment Form'!$H192,'Enrollment Form'!$B$11:$B$1000,'Enrollment Form'!$B192)>1,'Enrollment Form'!$H192<>\"\"),\"N\",\"Y\"))","v":""},{"$f":"IF($B185=\"N\",\"\",IF(LEN('Enrollment Form'!$Y192)=0,\"\",IF(LEN('Enrollment Form'!$Y192)<>5,\"N\",\"Y\")))","v":""},{"$f":"IF($B185=\"N\",\"\",IF(LEN('Enrollment Form'!$AD192=0),\"\",IF(LEN('Enrollment Form'!$AD192)<>5,\"N\",\"Y\")))","v":""},{"$f":"IF($B185=\"N\",\"\",IF(LEN('Enrollment Form'!$BS192=0),\"\",IF(LEN('Enrollment Form'!$BS192)<>5,\"N\",\"Y\")))","v":""},{"$f":"IF($B185=\"N\",\"\",IF(LEN('Enrollment Form'!$AE192)=0,\"\",IF(LEN('Enrollment Form'!$AE192)<>10,\"N\",\"Y\")))","v":""},{"$f":"IF($B185=\"N\",\"\",IF(LEN('Enrollment Form'!$AF192)=0,\"\",IF(LEN('Enrollment Form'!$AF192)<>10,\"N\",\"Y\")))","v":""},{"$f":"IF('Enrollment Form'!$O192<>\"Graded\",\"-\",IF(AND('Enrollment Form'!$O192=\"Graded\",'Enrollment Form'!$AR192<>\"\"),\"Y\",\"N\"))","v":"-"},{"$f":"IF($B185=\"N\",\"\",IF(OR('Enrollment Form'!$B192<>\"Subscriber\",'Enrollment Form'!$C192=\"ROC\"),\"-\",IF(AND('Enrollment Form'!$B192=\"Subscriber\",'Enrollment Form'!$C192=\"Enroll\",'Enrollment Form'!$AJ192<>\"\"),\"Y\",\"N\")))","v":""},{"$f":"IF($B185=\"N\",\"\",IF(OR('Enrollment Form'!$B192<>\"Subscriber\",'Enrollment Form'!$C192=\"ROC\"),\"-\",IF(AND('Enrollment Form'!$B192=\"Subscriber\",'Enrollment Form'!$C192=\"Enroll\",'Enrollment Form'!$AK192<>\"\"),\"Y\",\"N\")))","v":""},{"$f":"IF($B185=\"N\",\"\",IF(OR('Enrollment Form'!$B192<>\"Subscriber\",'Enrollment Form'!$C192=\"ROC\"),\"-\",IF(AND('Enrollment Form'!$B192=\"Subscriber\",'Enrollment Form'!$C192=\"Enroll\",'Enrollment Form'!$AL192<>\"\"),\"Y\",\"N\")))","v":""},{"$f":"IF($B185=\"N\",\"\",IF(OR('Enrollment Form'!$B192<>\"Subscriber\",'Enrollment Form'!$C192=\"ROC\"),\"-\",IF(AND('Enrollment Form'!$B192=\"Subscriber\",'Enrollment Form'!$C192=\"Enroll\",'Enrollment Form'!$AP192<>\"\"),\"Y\",\"N\")))","v":""},{"$f":"IF($B185=\"N\",\"\",IF(OR('Enrollment Form'!$B192<>\"Subscriber\",'Enrollment Form'!$C192=\"ROC\"),\"-\",IF(AND('Enrollment Form'!$B192=\"Subscriber\",'Enrollment Form'!$C192=\"Enroll\",'Enrollment Form'!$AQ192<>\"\"),\"Y\",\"N\")))","v":""},{"$f":"IF($B185=\"N\",\"\",IF(OR('Enrollment Form'!$B192<>\"Subscriber\",'Enrollment Form'!$C192=\"ROC\"),\"-\",IF(AND('Enrollment Form'!$B192=\"Subscriber\",'Enrollment Form'!$C192=\"Enroll\",'Enrollment Form'!$AS192<>\"\"),\"Y\",\"N\")))","v":""},{"$f":"IF($B185=\"N\",\"\",IF($Q185=\"-\",\"-\",IF(AND($Q185=\"Y\",'Enrollment Form'!$AS192=\"No\"),\"-\",IF(AND($Q185=\"Y\",'Enrollment Form'!$AS192=\"Yes\",'Enrollment Form'!$AT192<>\"\"),\"Y\",\"N\"))))","v":""},{"$f":"IF($B185=\"N\",\"\",IF(OR('Enrollment Form'!$B192<>\"Subscriber\",'Enrollment Form'!$C192=\"ROC\"),\"-\",IF(AND('Enrollment Form'!$B192=\"Subscriber\",'Enrollment Form'!$C192=\"Enroll\",'Enrollment Form'!$CV192<>\"\"),\"Y\",\"N\")))","v":""},{"$f":"IF($B185=\"N\",\"\",IF($S185=\"-\",\"-\",IF(AND($S185=\"Y\",'Enrollment Form'!$CV192=\"No\"),\"-\",IF(AND($S185=\"Y\",'Enrollment Form'!$CV192=\"Yes\",'Enrollment Form'!$CW192<>\"\"),\"Y\",\"N\"))))","v":""},{"$f":"IF(OR('Enrollment Form'!$AY192=\"Yes\",'Enrollment Form'!$AY192=\"\"),\"-\",IF(OR(AND('Enrollment Form'!$AY192=\"No\",ISERROR(FIND(\"HMO\",VLOOKUP('Enrollment Form'!G192,'Enrollment Form'!H$11:J$1000,3,FALSE),1))=FALSE,COUNTA('Enrollment Form'!$AZ192:$BC192)=4),AND('Enrollment Form'!$AY192=\"No\",ISERROR(FIND(\"HMO\",VLOOKUP('Enrollment Form'!G192,'Enrollment Form'!H$11:J$1000,3,FALSE),1))=FALSE,COUNTA('Enrollment Form'!$BT192:$BW192)=4)),\"Y\",\"N\"))","v":"-"},{"$f":"IF($B185=\"N\",\"\",IF('Enrollment Form'!$B192=\"Subscriber\",\"-\",IF(COUNTA('Enrollment Form'!$BL192,'Enrollment Form'!$BN192)=2,\"Y\",\"N\")))","v":""},{"$f":"IF($B185=\"N\",\"\",IF(OR('Enrollment Form'!$AX192=\"\",'Enrollment Form'!$AX192=\"No\"),\"-\",IF(AND('Enrollment Form'!$AX192=\"Yes\",COUNTA('Enrollment Form'!$CR192)=1),\"Y\",\"N\")))","v":""},{"$f":"IF(OR('Enrollment Form'!$CR192=\"\",'Enrollment Form'!$CR192=\"No\"),\"-\",IF(COUNTA('Enrollment Form'!$CT192:$CU192)=2,\"Y\",\"N\"))","v":"-"},{"$f":"IF($B185=\"N\",\"\",IF(COUNTIF('Enrollment Form'!$DG192:$DP192,\"Other\")=COUNTA('Enrollment Form'!$DK192,'Enrollment Form'!$DH192,'Enrollment Form'!$DN192,'Enrollment Form'!$DQ192),\"Y\",\"N\"))","v":""},{"$f":"IF($B185=\"N\",\"\",IF(OR('Enrollment Form'!B192<>\"Subscriber\",'Enrollment Form'!C192=\"ROC\",COUNTIF('Enrollment Form'!AV192:AW192,\"Yes\")>=1),\"-\",IF(AND('Enrollment Form'!C192=\"Enroll\",COUNTIF('Enrollment Form'!AV192:AW192,\"No\")=2,'Enrollment Form'!AX192=\"\"),\"N\",\"Y\")))","v":""},{"$f":"IF(OR(B185=\"N\",'Enrollment Form'!B192<>\"Subscriber\",'Enrollment Form'!C192=\"ROC\",'Enrollment Form'!O192<>\"Multiple of Salary\"),\"-\",IF(COUNTA('Enrollment Form'!T192:U192)<2,\"N\",\"Y\"))","v":"-"},{"$f":"IF(B185=\"N\",\"\",IF(OR('Enrollment Form'!C192=\"ROC\",'Enrollment Form'!B192<>\"Subscriber\",'Enrollment Form'!O192=\"Waive\",'Enrollment Form'!O192=\"\"),\"-\",IF('Enrollment Form'!P192=\"\",\"N\",\"Y\")))","v":""},{"$f":"IF($B185=\"N\",\"\",IF(AND('Enrollment Form'!$C192=\"ROC\",'Enrollment Form'!$DR192<>\"\"),\"Y\",IF(AND('Enrollment Form'!$C192=\"ROC\",'Enrollment Form'!$DR192=\"\"),\"N\",IF(AND('Enrollment Form'!$C192=\"Enroll\",'Enrollment Form'!$B192=\"Subscriber\",'Enrollment Form'!$CX192=\"No\",'Enrollment Form'!$DR192=\"\"),\"N\",IF(AND('Enrollment Form'!$C192=\"Enroll\",'Enrollment Form'!$B192=\"Subscriber\",'Enrollment Form'!$CX192=\"Yes\"),\"-\",\"Y\")))))","v":""},{"$f":"IF($B185=\"N\",\"\",IF(AND('Enrollment Form'!$C192=\"ROC\",'Enrollment Form'!$DS192<>\"\"),\"Y\",IF(AND('Enrollment Form'!$C192=\"ROC\",'Enrollment Form'!$DS192=\"\"),\"N\",IF(AND('Enrollment Form'!$C192=\"Enroll\",'Enrollment Form'!$B192=\"Subscriber\",'Enrollment Form'!$CX192=\"No\",'Enrollment Form'!$DS192=\"\"),\"N\",IF(AND('Enrollment Form'!$C192=\"Enroll\",'Enrollment Form'!$B192=\"Subscriber\",'Enrollment Form'!$CX192=\"Yes\"),\"-\",\"Y\")))))","v":""},{"$f":"IF('Enrollment Form'!AH192=\"\",\"\",IF(ISERROR(SEARCH(\".\",'Enrollment Form'!AH192,SEARCH(\"@\",'Enrollment Form'!AH192))),\"N\",\"Y\"))","v":""},{"$f":"IF(OR($B185=\"N\",'Enrollment Form'!$G192=\"\"),\"\",IF('Enrollment Form'!$B192<>\"Subscriber\",\"-\",IF(COUNTIF('Enrollment Form'!$AV192:$AW192,\"Yes\")=2,\"N\",\"Y\")))","v":""},{"$f":"IF(OR('Enrollment Form'!$CJ192=\"\",'Enrollment Form'!$CJ192=\"No\"),\"-\",IF(AND('Enrollment Form'!$CJ192=\"Yes\",'Enrollment Form'!$CK192=\"\"),\"N\",\"Y\"))","v":"-"},{"$f":"IF(OR('Enrollment Form'!$CL192=\"\",'Enrollment Form'!$CL192=\"No\"),\"-\",IF(AND('Enrollment Form'!$CL192=\"Yes\",'Enrollment Form'!$CM192=\"\"),\"N\",\"Y\"))","v":"-"},{"$f":"IF(OR('Enrollment Form'!$CN192=\"\",'Enrollment Form'!$CN192=\"No\"),\"-\",IF(AND('Enrollment Form'!$CN192=\"Yes\",'Enrollment Form'!$CO192=\"\"),\"N\",\"Y\"))","v":"-"},{"$f":"IF(OR('Enrollment Form'!$CN192=\"\",'Enrollment Form'!$CN192=\"No\"),\"-\",IF(AND('Enrollment Form'!$CN192=\"Yes\",'Enrollment Form'!$CP192=\"\"),\"N\",\"Y\"))","v":"-"},{"$f":"IF('Enrollment Form'!B192<>\"Subscriber\",\"-\",IF(AND('Enrollment Form'!B192=\"Subscriber\",'Enrollment Form'!C192=\"Enroll\",'Enrollment Form'!AA192=\"\"),\"N\",\"Y\"))","v":"-"},{"$f":"IF(OR('Enrollment Form'!B192=\"Subscriber\",'Enrollment Form'!B192=\"\"),\"-\",IF('Enrollment Form'!BP192=\"\",\"N\",\"Y\"))","v":"-"},{"$f":"IF('Enrollment Form'!B192<>\"Subscriber\",\"-\",IF(AND('Enrollment Form'!B192=\"Subscriber\",'Enrollment Form'!G192=\"\"),\"N\",\"Y\"))","v":"-"},{"$f":"IF('Enrollment Form'!A192=\"\",\"\",IF('Enrollment Form'!B192=\"Subscriber\",\"-\",IF(AND('Enrollment Form'!B192<>\"Subscriber\",'Enrollment Form'!G192='Enrollment Form'!H192),\"N\",\"Y\")))","v":""},0]
[193,{"$f":"IF('Enrollment Form'!$A193<>\"\",\"Y\",\"N\")","v":"N"},{"$f":"IF(AND('Enrollment Form'!$B193=\"\",'Enrollment Form'!$C193<>\"\"),\"N\",IF($B186=\"N\",\"\",\"Y\"))","v":""},{"$f":"IF(OR($B186=\"N\",'Enrollment Form'!G193=\"\"),\"\",IF('Enrollment Form'!$B193<>\"Subscriber\",\"\",IF('Enrollment Form'!$G193='Enrollment Form'!$H193,\"Y\",\"N\")))","v":""},{"$f":"IF($B186=\"N\",\"\",IF(AND(COUNTIFS('Enrollment Form'!$H$11:$H$1000,'Enrollment Form'!$H193,'Enrollment Form'!$B$11:$B$1000,'Enrollment Form'!$B193)>1,'Enrollment Form'!$H193<>\"\"),\"N\",\"Y\"))","v":""},{"$f":"IF($B186=\"N\",\"\",IF(LEN('Enrollment Form'!$Y193)=0,\"\",IF(LEN('Enrollment Form'!$Y193)<>5,\"N\",\"Y\")))","v":""},{"$f":"IF($B186=\"N\",\"\",IF(LEN('Enrollment Form'!$AD193=0),\"\",IF(LEN('Enrollment Form'!$AD193)<>5,\"N\",\"Y\")))","v":""},{"$f":"IF($B186=\"N\",\"\",IF(LEN('Enrollment Form'!$BS193=0),\"\",IF(LEN('Enrollment Form'!$BS193)<>5,\"N\",\"Y\")))","v":""},{"$f":"IF($B186=\"N\",\"\",IF(LEN('Enrollment Form'!$AE193)=0,\"\",IF(LEN('Enrollment Form'!$AE193)<>10,\"N\",\"Y\")))","v":""},{"$f":"IF($B186=\"N\",\"\",IF(LEN('Enrollment Form'!$AF193)=0,\"\",IF(LEN('Enrollment Form'!$AF193)<>10,\"N\",\"Y\")))","v":""},{"$f":"IF('Enrollment Form'!$O193<>\"Graded\",\"-\",IF(AND('Enrollment Form'!$O193=\"Graded\",'Enrollment Form'!$AR193<>\"\"),\"Y\",\"N\"))","v":"-"},{"$f":"IF($B186=\"N\",\"\",IF(OR('Enrollment Form'!$B193<>\"Subscriber\",'Enrollment Form'!$C193=\"ROC\"),\"-\",IF(AND('Enrollment Form'!$B193=\"Subscriber\",'Enrollment Form'!$C193=\"Enroll\",'Enrollment Form'!$AJ193<>\"\"),\"Y\",\"N\")))","v":""},{"$f":"IF($B186=\"N\",\"\",IF(OR('Enrollment Form'!$B193<>\"Subscriber\",'Enrollment Form'!$C193=\"ROC\"),\"-\",IF(AND('Enrollment Form'!$B193=\"Subscriber\",'Enrollment Form'!$C193=\"Enroll\",'Enrollment Form'!$AK193<>\"\"),\"Y\",\"N\")))","v":""},{"$f":"IF($B186=\"N\",\"\",IF(OR('Enrollment Form'!$B193<>\"Subscriber\",'Enrollment Form'!$C193=\"ROC\"),\"-\",IF(AND('Enrollment Form'!$B193=\"Subscriber\",'Enrollment Form'!$C193=\"Enroll\",'Enrollment Form'!$AL193<>\"\"),\"Y\",\"N\")))","v":""},{"$f":"IF($B186=\"N\",\"\",IF(OR('Enrollment Form'!$B193<>\"Subscriber\",'Enrollment Form'!$C193=\"ROC\"),\"-\",IF(AND('Enrollment Form'!$B193=\"Subscriber\",'Enrollment Form'!$C193=\"Enroll\",'Enrollment Form'!$AP193<>\"\"),\"Y\",\"N\")))","v":""},{"$f":"IF($B186=\"N\",\"\",IF(OR('Enrollment Form'!$B193<>\"Subscriber\",'Enrollment Form'!$C193=\"ROC\"),\"-\",IF(AND('Enrollment Form'!$B193=\"Subscriber\",'Enrollment Form'!$C193=\"Enroll\",'Enrollment Form'!$AQ193<>\"\"),\"Y\",\"N\")))","v":""},{"$f":"IF($B186=\"N\",\"\",IF(OR('Enrollment Form'!$B193<>\"Subscriber\",'Enrollment Form'!$C193=\"ROC\"),\"-\",IF(AND('Enrollment Form'!$B193=\"Subscriber\",'Enrollment Form'!$C193=\"Enroll\",'Enrollment Form'!$AS193<>\"\"),\"Y\",\"N\")))","v":""},{"$f":"IF($B186=\"N\",\"\",IF($Q186=\"-\",\"-\",IF(AND($Q186=\"Y\",'Enrollment Form'!$AS193=\"No\"),\"-\",IF(AND($Q186=\"Y\",'Enrollment Form'!$AS193=\"Yes\",'Enrollment Form'!$AT193<>\"\"),\"Y\",\"N\"))))","v":""},{"$f":"IF($B186=\"N\",\"\",IF(OR('Enrollment Form'!$B193<>\"Subscriber\",'Enrollment Form'!$C193=\"ROC\"),\"-\",IF(AND('Enrollment Form'!$B193=\"Subscriber\",'Enrollment Form'!$C193=\"Enroll\",'Enrollment Form'!$CV193<>\"\"),\"Y\",\"N\")))","v":""},{"$f":"IF($B186=\"N\",\"\",IF($S186=\"-\",\"-\",IF(AND($S186=\"Y\",'Enrollment Form'!$CV193=\"No\"),\"-\",IF(AND($S186=\"Y\",'Enrollment Form'!$CV193=\"Yes\",'Enrollment Form'!$CW193<>\"\"),\"Y\",\"N\"))))","v":""},{"$f":"IF(OR('Enrollment Form'!$AY193=\"Yes\",'Enrollment Form'!$AY193=\"\"),\"-\",IF(OR(AND('Enrollment Form'!$AY193=\"No\",ISERROR(FIND(\"HMO\",VLOOKUP('Enrollment Form'!G193,'Enrollment Form'!H$11:J$1000,3,FALSE),1))=FALSE,COUNTA('Enrollment Form'!$AZ193:$BC193)=4),AND('Enrollment Form'!$AY193=\"No\",ISERROR(FIND(\"HMO\",VLOOKUP('Enrollment Form'!G193,'Enrollment Form'!H$11:J$1000,3,FALSE),1))=FALSE,COUNTA('Enrollment Form'!$BT193:$BW193)=4)),\"Y\",\"N\"))","v":"-"},{"$f":"IF($B186=\"N\",\"\",IF('Enrollment Form'!$B193=\"Subscriber\",\"-\",IF(COUNTA('Enrollment Form'!$BL193,'Enrollment Form'!$BN193)=2,\"Y\",\"N\")))","v":""},{"$f":"IF($B186=\"N\",\"\",IF(OR('Enrollment Form'!$AX193=\"\",'Enrollment Form'!$AX193=\"No\"),\"-\",IF(AND('Enrollment Form'!$AX193=\"Yes\",COUNTA('Enrollment Form'!$CR193)=1),\"Y\",\"N\")))","v":""},{"$f":"IF(OR('Enrollment Form'!$CR193=\"\",'Enrollment Form'!$CR193=\"No\"),\"-\",IF(COUNTA('Enrollment Form'!$CT193:$CU193)=2,\"Y\",\"N\"))","v":"-"},{"$f":"IF($B186=\"N\",\"\",IF(COUNTIF('Enrollment Form'!$DG193:$DP193,\"Other\")=COUNTA('Enrollment Form'!$DK193,'Enrollment Form'!$DH193,'Enrollment Form'!$DN193,'Enrollment Form'!$DQ193),\"Y\",\"N\"))","v":""},{"$f":"IF($B186=\"N\",\"\",IF(OR('Enrollment Form'!B193<>\"Subscriber\",'Enrollment Form'!C193=\"ROC\",COUNTIF('Enrollment Form'!AV193:AW193,\"Yes\")>=1),\"-\",IF(AND('Enrollment Form'!C193=\"Enroll\",COUNTIF('Enrollment Form'!AV193:AW193,\"No\")=2,'Enrollment Form'!AX193=\"\"),\"N\",\"Y\")))","v":""},{"$f":"IF(OR(B186=\"N\",'Enrollment Form'!B193<>\"Subscriber\",'Enrollment Form'!C193=\"ROC\",'Enrollment Form'!O193<>\"Multiple of Salary\"),\"-\",IF(COUNTA('Enrollment Form'!T193:U193)<2,\"N\",\"Y\"))","v":"-"},{"$f":"IF(B186=\"N\",\"\",IF(OR('Enrollment Form'!C193=\"ROC\",'Enrollment Form'!B193<>\"Subscriber\",'Enrollment Form'!O193=\"Waive\",'Enrollment Form'!O193=\"\"),\"-\",IF('Enrollment Form'!P193=\"\",\"N\",\"Y\")))","v":""},{"$f":"IF($B186=\"N\",\"\",IF(AND('Enrollment Form'!$C193=\"ROC\",'Enrollment Form'!$DR193<>\"\"),\"Y\",IF(AND('Enrollment Form'!$C193=\"ROC\",'Enrollment Form'!$DR193=\"\"),\"N\",IF(AND('Enrollment Form'!$C193=\"Enroll\",'Enrollment Form'!$B193=\"Subscriber\",'Enrollment Form'!$CX193=\"No\",'Enrollment Form'!$DR193=\"\"),\"N\",IF(AND('Enrollment Form'!$C193=\"Enroll\",'Enrollment Form'!$B193=\"Subscriber\",'Enrollment Form'!$CX193=\"Yes\"),\"-\",\"Y\")))))","v":""},{"$f":"IF($B186=\"N\",\"\",IF(AND('Enrollment Form'!$C193=\"ROC\",'Enrollment Form'!$DS193<>\"\"),\"Y\",IF(AND('Enrollment Form'!$C193=\"ROC\",'Enrollment Form'!$DS193=\"\"),\"N\",IF(AND('Enrollment Form'!$C193=\"Enroll\",'Enrollment Form'!$B193=\"Subscriber\",'Enrollment Form'!$CX193=\"No\",'Enrollment Form'!$DS193=\"\"),\"N\",IF(AND('Enrollment Form'!$C193=\"Enroll\",'Enrollment Form'!$B193=\"Subscriber\",'Enrollment Form'!$CX193=\"Yes\"),\"-\",\"Y\")))))","v":""},{"$f":"IF('Enrollment Form'!AH193=\"\",\"\",IF(ISERROR(SEARCH(\".\",'Enrollment Form'!AH193,SEARCH(\"@\",'Enrollment Form'!AH193))),\"N\",\"Y\"))","v":""},{"$f":"IF(OR($B186=\"N\",'Enrollment Form'!$G193=\"\"),\"\",IF('Enrollment Form'!$B193<>\"Subscriber\",\"-\",IF(COUNTIF('Enrollment Form'!$AV193:$AW193,\"Yes\")=2,\"N\",\"Y\")))","v":""},{"$f":"IF(OR('Enrollment Form'!$CJ193=\"\",'Enrollment Form'!$CJ193=\"No\"),\"-\",IF(AND('Enrollment Form'!$CJ193=\"Yes\",'Enrollment Form'!$CK193=\"\"),\"N\",\"Y\"))","v":"-"},{"$f":"IF(OR('Enrollment Form'!$CL193=\"\",'Enrollment Form'!$CL193=\"No\"),\"-\",IF(AND('Enrollment Form'!$CL193=\"Yes\",'Enrollment Form'!$CM193=\"\"),\"N\",\"Y\"))","v":"-"},{"$f":"IF(OR('Enrollment Form'!$CN193=\"\",'Enrollment Form'!$CN193=\"No\"),\"-\",IF(AND('Enrollment Form'!$CN193=\"Yes\",'Enrollment Form'!$CO193=\"\"),\"N\",\"Y\"))","v":"-"},{"$f":"IF(OR('Enrollment Form'!$CN193=\"\",'Enrollment Form'!$CN193=\"No\"),\"-\",IF(AND('Enrollment Form'!$CN193=\"Yes\",'Enrollment Form'!$CP193=\"\"),\"N\",\"Y\"))","v":"-"},{"$f":"IF('Enrollment Form'!B193<>\"Subscriber\",\"-\",IF(AND('Enrollment Form'!B193=\"Subscriber\",'Enrollment Form'!C193=\"Enroll\",'Enrollment Form'!AA193=\"\"),\"N\",\"Y\"))","v":"-"},{"$f":"IF(OR('Enrollment Form'!B193=\"Subscriber\",'Enrollment Form'!B193=\"\"),\"-\",IF('Enrollment Form'!BP193=\"\",\"N\",\"Y\"))","v":"-"},{"$f":"IF('Enrollment Form'!B193<>\"Subscriber\",\"-\",IF(AND('Enrollment Form'!B193=\"Subscriber\",'Enrollment Form'!G193=\"\"),\"N\",\"Y\"))","v":"-"},{"$f":"IF('Enrollment Form'!A193=\"\",\"\",IF('Enrollment Form'!B193=\"Subscriber\",\"-\",IF(AND('Enrollment Form'!B193<>\"Subscriber\",'Enrollment Form'!G193='Enrollment Form'!H193),\"N\",\"Y\")))","v":""},0]
[194,{"$f":"IF('Enrollment Form'!$A194<>\"\",\"Y\",\"N\")","v":"N"},{"$f":"IF(AND('Enrollment Form'!$B194=\"\",'Enrollment Form'!$C194<>\"\"),\"N\",IF($B187=\"N\",\"\",\"Y\"))","v":""},{"$f":"IF(OR($B187=\"N\",'Enrollment Form'!G194=\"\"),\"\",IF('Enrollment Form'!$B194<>\"Subscriber\",\"\",IF('Enrollment Form'!$G194='Enrollment Form'!$H194,\"Y\",\"N\")))","v":""},{"$f":"IF($B187=\"N\",\"\",IF(AND(COUNTIFS('Enrollment Form'!$H$11:$H$1000,'Enrollment Form'!$H194,'Enrollment Form'!$B$11:$B$1000,'Enrollment Form'!$B194)>1,'Enrollment Form'!$H194<>\"\"),\"N\",\"Y\"))","v":""},{"$f":"IF($B187=\"N\",\"\",IF(LEN('Enrollment Form'!$Y194)=0,\"\",IF(LEN('Enrollment Form'!$Y194)<>5,\"N\",\"Y\")))","v":""},{"$f":"IF($B187=\"N\",\"\",IF(LEN('Enrollment Form'!$AD194=0),\"\",IF(LEN('Enrollment Form'!$AD194)<>5,\"N\",\"Y\")))","v":""},{"$f":"IF($B187=\"N\",\"\",IF(LEN('Enrollment Form'!$BS194=0),\"\",IF(LEN('Enrollment Form'!$BS194)<>5,\"N\",\"Y\")))","v":""},{"$f":"IF($B187=\"N\",\"\",IF(LEN('Enrollment Form'!$AE194)=0,\"\",IF(LEN('Enrollment Form'!$AE194)<>10,\"N\",\"Y\")))","v":""},{"$f":"IF($B187=\"N\",\"\",IF(LEN('Enrollment Form'!$AF194)=0,\"\",IF(LEN('Enrollment Form'!$AF194)<>10,\"N\",\"Y\")))","v":""},{"$f":"IF('Enrollment Form'!$O194<>\"Graded\",\"-\",IF(AND('Enrollment Form'!$O194=\"Graded\",'Enrollment Form'!$AR194<>\"\"),\"Y\",\"N\"))","v":"-"},{"$f":"IF($B187=\"N\",\"\",IF(OR('Enrollment Form'!$B194<>\"Subscriber\",'Enrollment Form'!$C194=\"ROC\"),\"-\",IF(AND('Enrollment Form'!$B194=\"Subscriber\",'Enrollment Form'!$C194=\"Enroll\",'Enrollment Form'!$AJ194<>\"\"),\"Y\",\"N\")))","v":""},{"$f":"IF($B187=\"N\",\"\",IF(OR('Enrollment Form'!$B194<>\"Subscriber\",'Enrollment Form'!$C194=\"ROC\"),\"-\",IF(AND('Enrollment Form'!$B194=\"Subscriber\",'Enrollment Form'!$C194=\"Enroll\",'Enrollment Form'!$AK194<>\"\"),\"Y\",\"N\")))","v":""},{"$f":"IF($B187=\"N\",\"\",IF(OR('Enrollment Form'!$B194<>\"Subscriber\",'Enrollment Form'!$C194=\"ROC\"),\"-\",IF(AND('Enrollment Form'!$B194=\"Subscriber\",'Enrollment Form'!$C194=\"Enroll\",'Enrollment Form'!$AL194<>\"\"),\"Y\",\"N\")))","v":""},{"$f":"IF($B187=\"N\",\"\",IF(OR('Enrollment Form'!$B194<>\"Subscriber\",'Enrollment Form'!$C194=\"ROC\"),\"-\",IF(AND('Enrollment Form'!$B194=\"Subscriber\",'Enrollment Form'!$C194=\"Enroll\",'Enrollment Form'!$AP194<>\"\"),\"Y\",\"N\")))","v":""},{"$f":"IF($B187=\"N\",\"\",IF(OR('Enrollment Form'!$B194<>\"Subscriber\",'Enrollment Form'!$C194=\"ROC\"),\"-\",IF(AND('Enrollment Form'!$B194=\"Subscriber\",'Enrollment Form'!$C194=\"Enroll\",'Enrollment Form'!$AQ194<>\"\"),\"Y\",\"N\")))","v":""},{"$f":"IF($B187=\"N\",\"\",IF(OR('Enrollment Form'!$B194<>\"Subscriber\",'Enrollment Form'!$C194=\"ROC\"),\"-\",IF(AND('Enrollment Form'!$B194=\"Subscriber\",'Enrollment Form'!$C194=\"Enroll\",'Enrollment Form'!$AS194<>\"\"),\"Y\",\"N\")))","v":""},{"$f":"IF($B187=\"N\",\"\",IF($Q187=\"-\",\"-\",IF(AND($Q187=\"Y\",'Enrollment Form'!$AS194=\"No\"),\"-\",IF(AND($Q187=\"Y\",'Enrollment Form'!$AS194=\"Yes\",'Enrollment Form'!$AT194<>\"\"),\"Y\",\"N\"))))","v":""},{"$f":"IF($B187=\"N\",\"\",IF(OR('Enrollment Form'!$B194<>\"Subscriber\",'Enrollment Form'!$C194=\"ROC\"),\"-\",IF(AND('Enrollment Form'!$B194=\"Subscriber\",'Enrollment Form'!$C194=\"Enroll\",'Enrollment Form'!$CV194<>\"\"),\"Y\",\"N\")))","v":""},{"$f":"IF($B187=\"N\",\"\",IF($S187=\"-\",\"-\",IF(AND($S187=\"Y\",'Enrollment Form'!$CV194=\"No\"),\"-\",IF(AND($S187=\"Y\",'Enrollment Form'!$CV194=\"Yes\",'Enrollment Form'!$CW194<>\"\"),\"Y\",\"N\"))))","v":""},{"$f":"IF(OR('Enrollment Form'!$AY194=\"Yes\",'Enrollment Form'!$AY194=\"\"),\"-\",IF(OR(AND('Enrollment Form'!$AY194=\"No\",ISERROR(FIND(\"HMO\",VLOOKUP('Enrollment Form'!G194,'Enrollment Form'!H$11:J$1000,3,FALSE),1))=FALSE,COUNTA('Enrollment Form'!$AZ194:$BC194)=4),AND('Enrollment Form'!$AY194=\"No\",ISERROR(FIND(\"HMO\",VLOOKUP('Enrollment Form'!G194,'Enrollment Form'!H$11:J$1000,3,FALSE),1))=FALSE,COUNTA('Enrollment Form'!$BT194:$BW194)=4)),\"Y\",\"N\"))","v":"-"},{"$f":"IF($B187=\"N\",\"\",IF('Enrollment Form'!$B194=\"Subscriber\",\"-\",IF(COUNTA('Enrollment Form'!$BL194,'Enrollment Form'!$BN194)=2,\"Y\",\"N\")))","v":""},{"$f":"IF($B187=\"N\",\"\",IF(OR('Enrollment Form'!$AX194=\"\",'Enrollment Form'!$AX194=\"No\"),\"-\",IF(AND('Enrollment Form'!$AX194=\"Yes\",COUNTA('Enrollment Form'!$CR194)=1),\"Y\",\"N\")))","v":""},{"$f":"IF(OR('Enrollment Form'!$CR194=\"\",'Enrollment Form'!$CR194=\"No\"),\"-\",IF(COUNTA('Enrollment Form'!$CT194:$CU194)=2,\"Y\",\"N\"))","v":"-"},{"$f":"IF($B187=\"N\",\"\",IF(COUNTIF('Enrollment Form'!$DG194:$DP194,\"Other\")=COUNTA('Enrollment Form'!$DK194,'Enrollment Form'!$DH194,'Enrollment Form'!$DN194,'Enrollment Form'!$DQ194),\"Y\",\"N\"))","v":""},{"$f":"IF($B187=\"N\",\"\",IF(OR('Enrollment Form'!B194<>\"Subscriber\",'Enrollment Form'!C194=\"ROC\",COUNTIF('Enrollment Form'!AV194:AW194,\"Yes\")>=1),\"-\",IF(AND('Enrollment Form'!C194=\"Enroll\",COUNTIF('Enrollment Form'!AV194:AW194,\"No\")=2,'Enrollment Form'!AX194=\"\"),\"N\",\"Y\")))","v":""},{"$f":"IF(OR(B187=\"N\",'Enrollment Form'!B194<>\"Subscriber\",'Enrollment Form'!C194=\"ROC\",'Enrollment Form'!O194<>\"Multiple of Salary\"),\"-\",IF(COUNTA('Enrollment Form'!T194:U194)<2,\"N\",\"Y\"))","v":"-"},{"$f":"IF(B187=\"N\",\"\",IF(OR('Enrollment Form'!C194=\"ROC\",'Enrollment Form'!B194<>\"Subscriber\",'Enrollment Form'!O194=\"Waive\",'Enrollment Form'!O194=\"\"),\"-\",IF('Enrollment Form'!P194=\"\",\"N\",\"Y\")))","v":""},{"$f":"IF($B187=\"N\",\"\",IF(AND('Enrollment Form'!$C194=\"ROC\",'Enrollment Form'!$DR194<>\"\"),\"Y\",IF(AND('Enrollment Form'!$C194=\"ROC\",'Enrollment Form'!$DR194=\"\"),\"N\",IF(AND('Enrollment Form'!$C194=\"Enroll\",'Enrollment Form'!$B194=\"Subscriber\",'Enrollment Form'!$CX194=\"No\",'Enrollment Form'!$DR194=\"\"),\"N\",IF(AND('Enrollment Form'!$C194=\"Enroll\",'Enrollment Form'!$B194=\"Subscriber\",'Enrollment Form'!$CX194=\"Yes\"),\"-\",\"Y\")))))","v":""},{"$f":"IF($B187=\"N\",\"\",IF(AND('Enrollment Form'!$C194=\"ROC\",'Enrollment Form'!$DS194<>\"\"),\"Y\",IF(AND('Enrollment Form'!$C194=\"ROC\",'Enrollment Form'!$DS194=\"\"),\"N\",IF(AND('Enrollment Form'!$C194=\"Enroll\",'Enrollment Form'!$B194=\"Subscriber\",'Enrollment Form'!$CX194=\"No\",'Enrollment Form'!$DS194=\"\"),\"N\",IF(AND('Enrollment Form'!$C194=\"Enroll\",'Enrollment Form'!$B194=\"Subscriber\",'Enrollment Form'!$CX194=\"Yes\"),\"-\",\"Y\")))))","v":""},{"$f":"IF('Enrollment Form'!AH194=\"\",\"\",IF(ISERROR(SEARCH(\".\",'Enrollment Form'!AH194,SEARCH(\"@\",'Enrollment Form'!AH194))),\"N\",\"Y\"))","v":""},{"$f":"IF(OR($B187=\"N\",'Enrollment Form'!$G194=\"\"),\"\",IF('Enrollment Form'!$B194<>\"Subscriber\",\"-\",IF(COUNTIF('Enrollment Form'!$AV194:$AW194,\"Yes\")=2,\"N\",\"Y\")))","v":""},{"$f":"IF(OR('Enrollment Form'!$CJ194=\"\",'Enrollment Form'!$CJ194=\"No\"),\"-\",IF(AND('Enrollment Form'!$CJ194=\"Yes\",'Enrollment Form'!$CK194=\"\"),\"N\",\"Y\"))","v":"-"},{"$f":"IF(OR('Enrollment Form'!$CL194=\"\",'Enrollment Form'!$CL194=\"No\"),\"-\",IF(AND('Enrollment Form'!$CL194=\"Yes\",'Enrollment Form'!$CM194=\"\"),\"N\",\"Y\"))","v":"-"},{"$f":"IF(OR('Enrollment Form'!$CN194=\"\",'Enrollment Form'!$CN194=\"No\"),\"-\",IF(AND('Enrollment Form'!$CN194=\"Yes\",'Enrollment Form'!$CO194=\"\"),\"N\",\"Y\"))","v":"-"},{"$f":"IF(OR('Enrollment Form'!$CN194=\"\",'Enrollment Form'!$CN194=\"No\"),\"-\",IF(AND('Enrollment Form'!$CN194=\"Yes\",'Enrollment Form'!$CP194=\"\"),\"N\",\"Y\"))","v":"-"},{"$f":"IF('Enrollment Form'!B194<>\"Subscriber\",\"-\",IF(AND('Enrollment Form'!B194=\"Subscriber\",'Enrollment Form'!C194=\"Enroll\",'Enrollment Form'!AA194=\"\"),\"N\",\"Y\"))","v":"-"},{"$f":"IF(OR('Enrollment Form'!B194=\"Subscriber\",'Enrollment Form'!B194=\"\"),\"-\",IF('Enrollment Form'!BP194=\"\",\"N\",\"Y\"))","v":"-"},{"$f":"IF('Enrollment Form'!B194<>\"Subscriber\",\"-\",IF(AND('Enrollment Form'!B194=\"Subscriber\",'Enrollment Form'!G194=\"\"),\"N\",\"Y\"))","v":"-"},{"$f":"IF('Enrollment Form'!A194=\"\",\"\",IF('Enrollment Form'!B194=\"Subscriber\",\"-\",IF(AND('Enrollment Form'!B194<>\"Subscriber\",'Enrollment Form'!G194='Enrollment Form'!H194),\"N\",\"Y\")))","v":""},0]
[195,{"$f":"IF('Enrollment Form'!$A195<>\"\",\"Y\",\"N\")","v":"N"},{"$f":"IF(AND('Enrollment Form'!$B195=\"\",'Enrollment Form'!$C195<>\"\"),\"N\",IF($B188=\"N\",\"\",\"Y\"))","v":""},{"$f":"IF(OR($B188=\"N\",'Enrollment Form'!G195=\"\"),\"\",IF('Enrollment Form'!$B195<>\"Subscriber\",\"\",IF('Enrollment Form'!$G195='Enrollment Form'!$H195,\"Y\",\"N\")))","v":""},{"$f":"IF($B188=\"N\",\"\",IF(AND(COUNTIFS('Enrollment Form'!$H$11:$H$1000,'Enrollment Form'!$H195,'Enrollment Form'!$B$11:$B$1000,'Enrollment Form'!$B195)>1,'Enrollment Form'!$H195<>\"\"),\"N\",\"Y\"))","v":""},{"$f":"IF($B188=\"N\",\"\",IF(LEN('Enrollment Form'!$Y195)=0,\"\",IF(LEN('Enrollment Form'!$Y195)<>5,\"N\",\"Y\")))","v":""},{"$f":"IF($B188=\"N\",\"\",IF(LEN('Enrollment Form'!$AD195=0),\"\",IF(LEN('Enrollment Form'!$AD195)<>5,\"N\",\"Y\")))","v":""},{"$f":"IF($B188=\"N\",\"\",IF(LEN('Enrollment Form'!$BS195=0),\"\",IF(LEN('Enrollment Form'!$BS195)<>5,\"N\",\"Y\")))","v":""},{"$f":"IF($B188=\"N\",\"\",IF(LEN('Enrollment Form'!$AE195)=0,\"\",IF(LEN('Enrollment Form'!$AE195)<>10,\"N\",\"Y\")))","v":""},{"$f":"IF($B188=\"N\",\"\",IF(LEN('Enrollment Form'!$AF195)=0,\"\",IF(LEN('Enrollment Form'!$AF195)<>10,\"N\",\"Y\")))","v":""},{"$f":"IF('Enrollment Form'!$O195<>\"Graded\",\"-\",IF(AND('Enrollment Form'!$O195=\"Graded\",'Enrollment Form'!$AR195<>\"\"),\"Y\",\"N\"))","v":"-"},{"$f":"IF($B188=\"N\",\"\",IF(OR('Enrollment Form'!$B195<>\"Subscriber\",'Enrollment Form'!$C195=\"ROC\"),\"-\",IF(AND('Enrollment Form'!$B195=\"Subscriber\",'Enrollment Form'!$C195=\"Enroll\",'Enrollment Form'!$AJ195<>\"\"),\"Y\",\"N\")))","v":""},{"$f":"IF($B188=\"N\",\"\",IF(OR('Enrollment Form'!$B195<>\"Subscriber\",'Enrollment Form'!$C195=\"ROC\"),\"-\",IF(AND('Enrollment Form'!$B195=\"Subscriber\",'Enrollment Form'!$C195=\"Enroll\",'Enrollment Form'!$AK195<>\"\"),\"Y\",\"N\")))","v":""},{"$f":"IF($B188=\"N\",\"\",IF(OR('Enrollment Form'!$B195<>\"Subscriber\",'Enrollment Form'!$C195=\"ROC\"),\"-\",IF(AND('Enrollment Form'!$B195=\"Subscriber\",'Enrollment Form'!$C195=\"Enroll\",'Enrollment Form'!$AL195<>\"\"),\"Y\",\"N\")))","v":""},{"$f":"IF($B188=\"N\",\"\",IF(OR('Enrollment Form'!$B195<>\"Subscriber\",'Enrollment Form'!$C195=\"ROC\"),\"-\",IF(AND('Enrollment Form'!$B195=\"Subscriber\",'Enrollment Form'!$C195=\"Enroll\",'Enrollment Form'!$AP195<>\"\"),\"Y\",\"N\")))","v":""},{"$f":"IF($B188=\"N\",\"\",IF(OR('Enrollment Form'!$B195<>\"Subscriber\",'Enrollment Form'!$C195=\"ROC\"),\"-\",IF(AND('Enrollment Form'!$B195=\"Subscriber\",'Enrollment Form'!$C195=\"Enroll\",'Enrollment Form'!$AQ195<>\"\"),\"Y\",\"N\")))","v":""},{"$f":"IF($B188=\"N\",\"\",IF(OR('Enrollment Form'!$B195<>\"Subscriber\",'Enrollment Form'!$C195=\"ROC\"),\"-\",IF(AND('Enrollment Form'!$B195=\"Subscriber\",'Enrollment Form'!$C195=\"Enroll\",'Enrollment Form'!$AS195<>\"\"),\"Y\",\"N\")))","v":""},{"$f":"IF($B188=\"N\",\"\",IF($Q188=\"-\",\"-\",IF(AND($Q188=\"Y\",'Enrollment Form'!$AS195=\"No\"),\"-\",IF(AND($Q188=\"Y\",'Enrollment Form'!$AS195=\"Yes\",'Enrollment Form'!$AT195<>\"\"),\"Y\",\"N\"))))","v":""},{"$f":"IF($B188=\"N\",\"\",IF(OR('Enrollment Form'!$B195<>\"Subscriber\",'Enrollment Form'!$C195=\"ROC\"),\"-\",IF(AND('Enrollment Form'!$B195=\"Subscriber\",'Enrollment Form'!$C195=\"Enroll\",'Enrollment Form'!$CV195<>\"\"),\"Y\",\"N\")))","v":""},{"$f":"IF($B188=\"N\",\"\",IF($S188=\"-\",\"-\",IF(AND($S188=\"Y\",'Enrollment Form'!$CV195=\"No\"),\"-\",IF(AND($S188=\"Y\",'Enrollment Form'!$CV195=\"Yes\",'Enrollment Form'!$CW195<>\"\"),\"Y\",\"N\"))))","v":""},{"$f":"IF(OR('Enrollment Form'!$AY195=\"Yes\",'Enrollment Form'!$AY195=\"\"),\"-\",IF(OR(AND('Enrollment Form'!$AY195=\"No\",ISERROR(FIND(\"HMO\",VLOOKUP('Enrollment Form'!G195,'Enrollment Form'!H$11:J$1000,3,FALSE),1))=FALSE,COUNTA('Enrollment Form'!$AZ195:$BC195)=4),AND('Enrollment Form'!$AY195=\"No\",ISERROR(FIND(\"HMO\",VLOOKUP('Enrollment Form'!G195,'Enrollment Form'!H$11:J$1000,3,FALSE),1))=FALSE,COUNTA('Enrollment Form'!$BT195:$BW195)=4)),\"Y\",\"N\"))","v":"-"},{"$f":"IF($B188=\"N\",\"\",IF('Enrollment Form'!$B195=\"Subscriber\",\"-\",IF(COUNTA('Enrollment Form'!$BL195,'Enrollment Form'!$BN195)=2,\"Y\",\"N\")))","v":""},{"$f":"IF($B188=\"N\",\"\",IF(OR('Enrollment Form'!$AX195=\"\",'Enrollment Form'!$AX195=\"No\"),\"-\",IF(AND('Enrollment Form'!$AX195=\"Yes\",COUNTA('Enrollment Form'!$CR195)=1),\"Y\",\"N\")))","v":""},{"$f":"IF(OR('Enrollment Form'!$CR195=\"\",'Enrollment Form'!$CR195=\"No\"),\"-\",IF(COUNTA('Enrollment Form'!$CT195:$CU195)=2,\"Y\",\"N\"))","v":"-"},{"$f":"IF($B188=\"N\",\"\",IF(COUNTIF('Enrollment Form'!$DG195:$DP195,\"Other\")=COUNTA('Enrollment Form'!$DK195,'Enrollment Form'!$DH195,'Enrollment Form'!$DN195,'Enrollment Form'!$DQ195),\"Y\",\"N\"))","v":""},{"$f":"IF($B188=\"N\",\"\",IF(OR('Enrollment Form'!B195<>\"Subscriber\",'Enrollment Form'!C195=\"ROC\",COUNTIF('Enrollment Form'!AV195:AW195,\"Yes\")>=1),\"-\",IF(AND('Enrollment Form'!C195=\"Enroll\",COUNTIF('Enrollment Form'!AV195:AW195,\"No\")=2,'Enrollment Form'!AX195=\"\"),\"N\",\"Y\")))","v":""},{"$f":"IF(OR(B188=\"N\",'Enrollment Form'!B195<>\"Subscriber\",'Enrollment Form'!C195=\"ROC\",'Enrollment Form'!O195<>\"Multiple of Salary\"),\"-\",IF(COUNTA('Enrollment Form'!T195:U195)<2,\"N\",\"Y\"))","v":"-"},{"$f":"IF(B188=\"N\",\"\",IF(OR('Enrollment Form'!C195=\"ROC\",'Enrollment Form'!B195<>\"Subscriber\",'Enrollment Form'!O195=\"Waive\",'Enrollment Form'!O195=\"\"),\"-\",IF('Enrollment Form'!P195=\"\",\"N\",\"Y\")))","v":""},{"$f":"IF($B188=\"N\",\"\",IF(AND('Enrollment Form'!$C195=\"ROC\",'Enrollment Form'!$DR195<>\"\"),\"Y\",IF(AND('Enrollment Form'!$C195=\"ROC\",'Enrollment Form'!$DR195=\"\"),\"N\",IF(AND('Enrollment Form'!$C195=\"Enroll\",'Enrollment Form'!$B195=\"Subscriber\",'Enrollment Form'!$CX195=\"No\",'Enrollment Form'!$DR195=\"\"),\"N\",IF(AND('Enrollment Form'!$C195=\"Enroll\",'Enrollment Form'!$B195=\"Subscriber\",'Enrollment Form'!$CX195=\"Yes\"),\"-\",\"Y\")))))","v":""},{"$f":"IF($B188=\"N\",\"\",IF(AND('Enrollment Form'!$C195=\"ROC\",'Enrollment Form'!$DS195<>\"\"),\"Y\",IF(AND('Enrollment Form'!$C195=\"ROC\",'Enrollment Form'!$DS195=\"\"),\"N\",IF(AND('Enrollment Form'!$C195=\"Enroll\",'Enrollment Form'!$B195=\"Subscriber\",'Enrollment Form'!$CX195=\"No\",'Enrollment Form'!$DS195=\"\"),\"N\",IF(AND('Enrollment Form'!$C195=\"Enroll\",'Enrollment Form'!$B195=\"Subscriber\",'Enrollment Form'!$CX195=\"Yes\"),\"-\",\"Y\")))))","v":""},{"$f":"IF('Enrollment Form'!AH195=\"\",\"\",IF(ISERROR(SEARCH(\".\",'Enrollment Form'!AH195,SEARCH(\"@\",'Enrollment Form'!AH195))),\"N\",\"Y\"))","v":""},{"$f":"IF(OR($B188=\"N\",'Enrollment Form'!$G195=\"\"),\"\",IF('Enrollment Form'!$B195<>\"Subscriber\",\"-\",IF(COUNTIF('Enrollment Form'!$AV195:$AW195,\"Yes\")=2,\"N\",\"Y\")))","v":""},{"$f":"IF(OR('Enrollment Form'!$CJ195=\"\",'Enrollment Form'!$CJ195=\"No\"),\"-\",IF(AND('Enrollment Form'!$CJ195=\"Yes\",'Enrollment Form'!$CK195=\"\"),\"N\",\"Y\"))","v":"-"},{"$f":"IF(OR('Enrollment Form'!$CL195=\"\",'Enrollment Form'!$CL195=\"No\"),\"-\",IF(AND('Enrollment Form'!$CL195=\"Yes\",'Enrollment Form'!$CM195=\"\"),\"N\",\"Y\"))","v":"-"},{"$f":"IF(OR('Enrollment Form'!$CN195=\"\",'Enrollment Form'!$CN195=\"No\"),\"-\",IF(AND('Enrollment Form'!$CN195=\"Yes\",'Enrollment Form'!$CO195=\"\"),\"N\",\"Y\"))","v":"-"},{"$f":"IF(OR('Enrollment Form'!$CN195=\"\",'Enrollment Form'!$CN195=\"No\"),\"-\",IF(AND('Enrollment Form'!$CN195=\"Yes\",'Enrollment Form'!$CP195=\"\"),\"N\",\"Y\"))","v":"-"},{"$f":"IF('Enrollment Form'!B195<>\"Subscriber\",\"-\",IF(AND('Enrollment Form'!B195=\"Subscriber\",'Enrollment Form'!C195=\"Enroll\",'Enrollment Form'!AA195=\"\"),\"N\",\"Y\"))","v":"-"},{"$f":"IF(OR('Enrollment Form'!B195=\"Subscriber\",'Enrollment Form'!B195=\"\"),\"-\",IF('Enrollment Form'!BP195=\"\",\"N\",\"Y\"))","v":"-"},{"$f":"IF('Enrollment Form'!B195<>\"Subscriber\",\"-\",IF(AND('Enrollment Form'!B195=\"Subscriber\",'Enrollment Form'!G195=\"\"),\"N\",\"Y\"))","v":"-"},{"$f":"IF('Enrollment Form'!A195=\"\",\"\",IF('Enrollment Form'!B195=\"Subscriber\",\"-\",IF(AND('Enrollment Form'!B195<>\"Subscriber\",'Enrollment Form'!G195='Enrollment Form'!H195),\"N\",\"Y\")))","v":""},0]
[196,{"$f":"IF('Enrollment Form'!$A196<>\"\",\"Y\",\"N\")","v":"N"},{"$f":"IF(AND('Enrollment Form'!$B196=\"\",'Enrollment Form'!$C196<>\"\"),\"N\",IF($B189=\"N\",\"\",\"Y\"))","v":""},{"$f":"IF(OR($B189=\"N\",'Enrollment Form'!G196=\"\"),\"\",IF('Enrollment Form'!$B196<>\"Subscriber\",\"\",IF('Enrollment Form'!$G196='Enrollment Form'!$H196,\"Y\",\"N\")))","v":""},{"$f":"IF($B189=\"N\",\"\",IF(AND(COUNTIFS('Enrollment Form'!$H$11:$H$1000,'Enrollment Form'!$H196,'Enrollment Form'!$B$11:$B$1000,'Enrollment Form'!$B196)>1,'Enrollment Form'!$H196<>\"\"),\"N\",\"Y\"))","v":""},{"$f":"IF($B189=\"N\",\"\",IF(LEN('Enrollment Form'!$Y196)=0,\"\",IF(LEN('Enrollment Form'!$Y196)<>5,\"N\",\"Y\")))","v":""},{"$f":"IF($B189=\"N\",\"\",IF(LEN('Enrollment Form'!$AD196=0),\"\",IF(LEN('Enrollment Form'!$AD196)<>5,\"N\",\"Y\")))","v":""},{"$f":"IF($B189=\"N\",\"\",IF(LEN('Enrollment Form'!$BS196=0),\"\",IF(LEN('Enrollment Form'!$BS196)<>5,\"N\",\"Y\")))","v":""},{"$f":"IF($B189=\"N\",\"\",IF(LEN('Enrollment Form'!$AE196)=0,\"\",IF(LEN('Enrollment Form'!$AE196)<>10,\"N\",\"Y\")))","v":""},{"$f":"IF($B189=\"N\",\"\",IF(LEN('Enrollment Form'!$AF196)=0,\"\",IF(LEN('Enrollment Form'!$AF196)<>10,\"N\",\"Y\")))","v":""},{"$f":"IF('Enrollment Form'!$O196<>\"Graded\",\"-\",IF(AND('Enrollment Form'!$O196=\"Graded\",'Enrollment Form'!$AR196<>\"\"),\"Y\",\"N\"))","v":"-"},{"$f":"IF($B189=\"N\",\"\",IF(OR('Enrollment Form'!$B196<>\"Subscriber\",'Enrollment Form'!$C196=\"ROC\"),\"-\",IF(AND('Enrollment Form'!$B196=\"Subscriber\",'Enrollment Form'!$C196=\"Enroll\",'Enrollment Form'!$AJ196<>\"\"),\"Y\",\"N\")))","v":""},{"$f":"IF($B189=\"N\",\"\",IF(OR('Enrollment Form'!$B196<>\"Subscriber\",'Enrollment Form'!$C196=\"ROC\"),\"-\",IF(AND('Enrollment Form'!$B196=\"Subscriber\",'Enrollment Form'!$C196=\"Enroll\",'Enrollment Form'!$AK196<>\"\"),\"Y\",\"N\")))","v":""},{"$f":"IF($B189=\"N\",\"\",IF(OR('Enrollment Form'!$B196<>\"Subscriber\",'Enrollment Form'!$C196=\"ROC\"),\"-\",IF(AND('Enrollment Form'!$B196=\"Subscriber\",'Enrollment Form'!$C196=\"Enroll\",'Enrollment Form'!$AL196<>\"\"),\"Y\",\"N\")))","v":""},{"$f":"IF($B189=\"N\",\"\",IF(OR('Enrollment Form'!$B196<>\"Subscriber\",'Enrollment Form'!$C196=\"ROC\"),\"-\",IF(AND('Enrollment Form'!$B196=\"Subscriber\",'Enrollment Form'!$C196=\"Enroll\",'Enrollment Form'!$AP196<>\"\"),\"Y\",\"N\")))","v":""},{"$f":"IF($B189=\"N\",\"\",IF(OR('Enrollment Form'!$B196<>\"Subscriber\",'Enrollment Form'!$C196=\"ROC\"),\"-\",IF(AND('Enrollment Form'!$B196=\"Subscriber\",'Enrollment Form'!$C196=\"Enroll\",'Enrollment Form'!$AQ196<>\"\"),\"Y\",\"N\")))","v":""},{"$f":"IF($B189=\"N\",\"\",IF(OR('Enrollment Form'!$B196<>\"Subscriber\",'Enrollment Form'!$C196=\"ROC\"),\"-\",IF(AND('Enrollment Form'!$B196=\"Subscriber\",'Enrollment Form'!$C196=\"Enroll\",'Enrollment Form'!$AS196<>\"\"),\"Y\",\"N\")))","v":""},{"$f":"IF($B189=\"N\",\"\",IF($Q189=\"-\",\"-\",IF(AND($Q189=\"Y\",'Enrollment Form'!$AS196=\"No\"),\"-\",IF(AND($Q189=\"Y\",'Enrollment Form'!$AS196=\"Yes\",'Enrollment Form'!$AT196<>\"\"),\"Y\",\"N\"))))","v":""},{"$f":"IF($B189=\"N\",\"\",IF(OR('Enrollment Form'!$B196<>\"Subscriber\",'Enrollment Form'!$C196=\"ROC\"),\"-\",IF(AND('Enrollment Form'!$B196=\"Subscriber\",'Enrollment Form'!$C196=\"Enroll\",'Enrollment Form'!$CV196<>\"\"),\"Y\",\"N\")))","v":""},{"$f":"IF($B189=\"N\",\"\",IF($S189=\"-\",\"-\",IF(AND($S189=\"Y\",'Enrollment Form'!$CV196=\"No\"),\"-\",IF(AND($S189=\"Y\",'Enrollment Form'!$CV196=\"Yes\",'Enrollment Form'!$CW196<>\"\"),\"Y\",\"N\"))))","v":""},{"$f":"IF(OR('Enrollment Form'!$AY196=\"Yes\",'Enrollment Form'!$AY196=\"\"),\"-\",IF(OR(AND('Enrollment Form'!$AY196=\"No\",ISERROR(FIND(\"HMO\",VLOOKUP('Enrollment Form'!G196,'Enrollment Form'!H$11:J$1000,3,FALSE),1))=FALSE,COUNTA('Enrollment Form'!$AZ196:$BC196)=4),AND('Enrollment Form'!$AY196=\"No\",ISERROR(FIND(\"HMO\",VLOOKUP('Enrollment Form'!G196,'Enrollment Form'!H$11:J$1000,3,FALSE),1))=FALSE,COUNTA('Enrollment Form'!$BT196:$BW196)=4)),\"Y\",\"N\"))","v":"-"},{"$f":"IF($B189=\"N\",\"\",IF('Enrollment Form'!$B196=\"Subscriber\",\"-\",IF(COUNTA('Enrollment Form'!$BL196,'Enrollment Form'!$BN196)=2,\"Y\",\"N\")))","v":""},{"$f":"IF($B189=\"N\",\"\",IF(OR('Enrollment Form'!$AX196=\"\",'Enrollment Form'!$AX196=\"No\"),\"-\",IF(AND('Enrollment Form'!$AX196=\"Yes\",COUNTA('Enrollment Form'!$CR196)=1),\"Y\",\"N\")))","v":""},{"$f":"IF(OR('Enrollment Form'!$CR196=\"\",'Enrollment Form'!$CR196=\"No\"),\"-\",IF(COUNTA('Enrollment Form'!$CT196:$CU196)=2,\"Y\",\"N\"))","v":"-"},{"$f":"IF($B189=\"N\",\"\",IF(COUNTIF('Enrollment Form'!$DG196:$DP196,\"Other\")=COUNTA('Enrollment Form'!$DK196,'Enrollment Form'!$DH196,'Enrollment Form'!$DN196,'Enrollment Form'!$DQ196),\"Y\",\"N\"))","v":""},{"$f":"IF($B189=\"N\",\"\",IF(OR('Enrollment Form'!B196<>\"Subscriber\",'Enrollment Form'!C196=\"ROC\",COUNTIF('Enrollment Form'!AV196:AW196,\"Yes\")>=1),\"-\",IF(AND('Enrollment Form'!C196=\"Enroll\",COUNTIF('Enrollment Form'!AV196:AW196,\"No\")=2,'Enrollment Form'!AX196=\"\"),\"N\",\"Y\")))","v":""},{"$f":"IF(OR(B189=\"N\",'Enrollment Form'!B196<>\"Subscriber\",'Enrollment Form'!C196=\"ROC\",'Enrollment Form'!O196<>\"Multiple of Salary\"),\"-\",IF(COUNTA('Enrollment Form'!T196:U196)<2,\"N\",\"Y\"))","v":"-"},{"$f":"IF(B189=\"N\",\"\",IF(OR('Enrollment Form'!C196=\"ROC\",'Enrollment Form'!B196<>\"Subscriber\",'Enrollment Form'!O196=\"Waive\",'Enrollment Form'!O196=\"\"),\"-\",IF('Enrollment Form'!P196=\"\",\"N\",\"Y\")))","v":""},{"$f":"IF($B189=\"N\",\"\",IF(AND('Enrollment Form'!$C196=\"ROC\",'Enrollment Form'!$DR196<>\"\"),\"Y\",IF(AND('Enrollment Form'!$C196=\"ROC\",'Enrollment Form'!$DR196=\"\"),\"N\",IF(AND('Enrollment Form'!$C196=\"Enroll\",'Enrollment Form'!$B196=\"Subscriber\",'Enrollment Form'!$CX196=\"No\",'Enrollment Form'!$DR196=\"\"),\"N\",IF(AND('Enrollment Form'!$C196=\"Enroll\",'Enrollment Form'!$B196=\"Subscriber\",'Enrollment Form'!$CX196=\"Yes\"),\"-\",\"Y\")))))","v":""},{"$f":"IF($B189=\"N\",\"\",IF(AND('Enrollment Form'!$C196=\"ROC\",'Enrollment Form'!$DS196<>\"\"),\"Y\",IF(AND('Enrollment Form'!$C196=\"ROC\",'Enrollment Form'!$DS196=\"\"),\"N\",IF(AND('Enrollment Form'!$C196=\"Enroll\",'Enrollment Form'!$B196=\"Subscriber\",'Enrollment Form'!$CX196=\"No\",'Enrollment Form'!$DS196=\"\"),\"N\",IF(AND('Enrollment Form'!$C196=\"Enroll\",'Enrollment Form'!$B196=\"Subscriber\",'Enrollment Form'!$CX196=\"Yes\"),\"-\",\"Y\")))))","v":""},{"$f":"IF('Enrollment Form'!AH196=\"\",\"\",IF(ISERROR(SEARCH(\".\",'Enrollment Form'!AH196,SEARCH(\"@\",'Enrollment Form'!AH196))),\"N\",\"Y\"))","v":""},{"$f":"IF(OR($B189=\"N\",'Enrollment Form'!$G196=\"\"),\"\",IF('Enrollment Form'!$B196<>\"Subscriber\",\"-\",IF(COUNTIF('Enrollment Form'!$AV196:$AW196,\"Yes\")=2,\"N\",\"Y\")))","v":""},{"$f":"IF(OR('Enrollment Form'!$CJ196=\"\",'Enrollment Form'!$CJ196=\"No\"),\"-\",IF(AND('Enrollment Form'!$CJ196=\"Yes\",'Enrollment Form'!$CK196=\"\"),\"N\",\"Y\"))","v":"-"},{"$f":"IF(OR('Enrollment Form'!$CL196=\"\",'Enrollment Form'!$CL196=\"No\"),\"-\",IF(AND('Enrollment Form'!$CL196=\"Yes\",'Enrollment Form'!$CM196=\"\"),\"N\",\"Y\"))","v":"-"},{"$f":"IF(OR('Enrollment Form'!$CN196=\"\",'Enrollment Form'!$CN196=\"No\"),\"-\",IF(AND('Enrollment Form'!$CN196=\"Yes\",'Enrollment Form'!$CO196=\"\"),\"N\",\"Y\"))","v":"-"},{"$f":"IF(OR('Enrollment Form'!$CN196=\"\",'Enrollment Form'!$CN196=\"No\"),\"-\",IF(AND('Enrollment Form'!$CN196=\"Yes\",'Enrollment Form'!$CP196=\"\"),\"N\",\"Y\"))","v":"-"},{"$f":"IF('Enrollment Form'!B196<>\"Subscriber\",\"-\",IF(AND('Enrollment Form'!B196=\"Subscriber\",'Enrollment Form'!C196=\"Enroll\",'Enrollment Form'!AA196=\"\"),\"N\",\"Y\"))","v":"-"},{"$f":"IF(OR('Enrollment Form'!B196=\"Subscriber\",'Enrollment Form'!B196=\"\"),\"-\",IF('Enrollment Form'!BP196=\"\",\"N\",\"Y\"))","v":"-"},{"$f":"IF('Enrollment Form'!B196<>\"Subscriber\",\"-\",IF(AND('Enrollment Form'!B196=\"Subscriber\",'Enrollment Form'!G196=\"\"),\"N\",\"Y\"))","v":"-"},{"$f":"IF('Enrollment Form'!A196=\"\",\"\",IF('Enrollment Form'!B196=\"Subscriber\",\"-\",IF(AND('Enrollment Form'!B196<>\"Subscriber\",'Enrollment Form'!G196='Enrollment Form'!H196),\"N\",\"Y\")))","v":""},0]
[197,{"$f":"IF('Enrollment Form'!$A197<>\"\",\"Y\",\"N\")","v":"N"},{"$f":"IF(AND('Enrollment Form'!$B197=\"\",'Enrollment Form'!$C197<>\"\"),\"N\",IF($B190=\"N\",\"\",\"Y\"))","v":""},{"$f":"IF(OR($B190=\"N\",'Enrollment Form'!G197=\"\"),\"\",IF('Enrollment Form'!$B197<>\"Subscriber\",\"\",IF('Enrollment Form'!$G197='Enrollment Form'!$H197,\"Y\",\"N\")))","v":""},{"$f":"IF($B190=\"N\",\"\",IF(AND(COUNTIFS('Enrollment Form'!$H$11:$H$1000,'Enrollment Form'!$H197,'Enrollment Form'!$B$11:$B$1000,'Enrollment Form'!$B197)>1,'Enrollment Form'!$H197<>\"\"),\"N\",\"Y\"))","v":""},{"$f":"IF($B190=\"N\",\"\",IF(LEN('Enrollment Form'!$Y197)=0,\"\",IF(LEN('Enrollment Form'!$Y197)<>5,\"N\",\"Y\")))","v":""},{"$f":"IF($B190=\"N\",\"\",IF(LEN('Enrollment Form'!$AD197=0),\"\",IF(LEN('Enrollment Form'!$AD197)<>5,\"N\",\"Y\")))","v":""},{"$f":"IF($B190=\"N\",\"\",IF(LEN('Enrollment Form'!$BS197=0),\"\",IF(LEN('Enrollment Form'!$BS197)<>5,\"N\",\"Y\")))","v":""},{"$f":"IF($B190=\"N\",\"\",IF(LEN('Enrollment Form'!$AE197)=0,\"\",IF(LEN('Enrollment Form'!$AE197)<>10,\"N\",\"Y\")))","v":""},{"$f":"IF($B190=\"N\",\"\",IF(LEN('Enrollment Form'!$AF197)=0,\"\",IF(LEN('Enrollment Form'!$AF197)<>10,\"N\",\"Y\")))","v":""},{"$f":"IF('Enrollment Form'!$O197<>\"Graded\",\"-\",IF(AND('Enrollment Form'!$O197=\"Graded\",'Enrollment Form'!$AR197<>\"\"),\"Y\",\"N\"))","v":"-"},{"$f":"IF($B190=\"N\",\"\",IF(OR('Enrollment Form'!$B197<>\"Subscriber\",'Enrollment Form'!$C197=\"ROC\"),\"-\",IF(AND('Enrollment Form'!$B197=\"Subscriber\",'Enrollment Form'!$C197=\"Enroll\",'Enrollment Form'!$AJ197<>\"\"),\"Y\",\"N\")))","v":""},{"$f":"IF($B190=\"N\",\"\",IF(OR('Enrollment Form'!$B197<>\"Subscriber\",'Enrollment Form'!$C197=\"ROC\"),\"-\",IF(AND('Enrollment Form'!$B197=\"Subscriber\",'Enrollment Form'!$C197=\"Enroll\",'Enrollment Form'!$AK197<>\"\"),\"Y\",\"N\")))","v":""},{"$f":"IF($B190=\"N\",\"\",IF(OR('Enrollment Form'!$B197<>\"Subscriber\",'Enrollment Form'!$C197=\"ROC\"),\"-\",IF(AND('Enrollment Form'!$B197=\"Subscriber\",'Enrollment Form'!$C197=\"Enroll\",'Enrollment Form'!$AL197<>\"\"),\"Y\",\"N\")))","v":""},{"$f":"IF($B190=\"N\",\"\",IF(OR('Enrollment Form'!$B197<>\"Subscriber\",'Enrollment Form'!$C197=\"ROC\"),\"-\",IF(AND('Enrollment Form'!$B197=\"Subscriber\",'Enrollment Form'!$C197=\"Enroll\",'Enrollment Form'!$AP197<>\"\"),\"Y\",\"N\")))","v":""},{"$f":"IF($B190=\"N\",\"\",IF(OR('Enrollment Form'!$B197<>\"Subscriber\",'Enrollment Form'!$C197=\"ROC\"),\"-\",IF(AND('Enrollment Form'!$B197=\"Subscriber\",'Enrollment Form'!$C197=\"Enroll\",'Enrollment Form'!$AQ197<>\"\"),\"Y\",\"N\")))","v":""},{"$f":"IF($B190=\"N\",\"\",IF(OR('Enrollment Form'!$B197<>\"Subscriber\",'Enrollment Form'!$C197=\"ROC\"),\"-\",IF(AND('Enrollment Form'!$B197=\"Subscriber\",'Enrollment Form'!$C197=\"Enroll\",'Enrollment Form'!$AS197<>\"\"),\"Y\",\"N\")))","v":""},{"$f":"IF($B190=\"N\",\"\",IF($Q190=\"-\",\"-\",IF(AND($Q190=\"Y\",'Enrollment Form'!$AS197=\"No\"),\"-\",IF(AND($Q190=\"Y\",'Enrollment Form'!$AS197=\"Yes\",'Enrollment Form'!$AT197<>\"\"),\"Y\",\"N\"))))","v":""},{"$f":"IF($B190=\"N\",\"\",IF(OR('Enrollment Form'!$B197<>\"Subscriber\",'Enrollment Form'!$C197=\"ROC\"),\"-\",IF(AND('Enrollment Form'!$B197=\"Subscriber\",'Enrollment Form'!$C197=\"Enroll\",'Enrollment Form'!$CV197<>\"\"),\"Y\",\"N\")))","v":""},{"$f":"IF($B190=\"N\",\"\",IF($S190=\"-\",\"-\",IF(AND($S190=\"Y\",'Enrollment Form'!$CV197=\"No\"),\"-\",IF(AND($S190=\"Y\",'Enrollment Form'!$CV197=\"Yes\",'Enrollment Form'!$CW197<>\"\"),\"Y\",\"N\"))))","v":""},{"$f":"IF(OR('Enrollment Form'!$AY197=\"Yes\",'Enrollment Form'!$AY197=\"\"),\"-\",IF(OR(AND('Enrollment Form'!$AY197=\"No\",ISERROR(FIND(\"HMO\",VLOOKUP('Enrollment Form'!G197,'Enrollment Form'!H$11:J$1000,3,FALSE),1))=FALSE,COUNTA('Enrollment Form'!$AZ197:$BC197)=4),AND('Enrollment Form'!$AY197=\"No\",ISERROR(FIND(\"HMO\",VLOOKUP('Enrollment Form'!G197,'Enrollment Form'!H$11:J$1000,3,FALSE),1))=FALSE,COUNTA('Enrollment Form'!$BT197:$BW197)=4)),\"Y\",\"N\"))","v":"-"},{"$f":"IF($B190=\"N\",\"\",IF('Enrollment Form'!$B197=\"Subscriber\",\"-\",IF(COUNTA('Enrollment Form'!$BL197,'Enrollment Form'!$BN197)=2,\"Y\",\"N\")))","v":""},{"$f":"IF($B190=\"N\",\"\",IF(OR('Enrollment Form'!$AX197=\"\",'Enrollment Form'!$AX197=\"No\"),\"-\",IF(AND('Enrollment Form'!$AX197=\"Yes\",COUNTA('Enrollment Form'!$CR197)=1),\"Y\",\"N\")))","v":""},{"$f":"IF(OR('Enrollment Form'!$CR197=\"\",'Enrollment Form'!$CR197=\"No\"),\"-\",IF(COUNTA('Enrollment Form'!$CT197:$CU197)=2,\"Y\",\"N\"))","v":"-"},{"$f":"IF($B190=\"N\",\"\",IF(COUNTIF('Enrollment Form'!$DG197:$DP197,\"Other\")=COUNTA('Enrollment Form'!$DK197,'Enrollment Form'!$DH197,'Enrollment Form'!$DN197,'Enrollment Form'!$DQ197),\"Y\",\"N\"))","v":""},{"$f":"IF($B190=\"N\",\"\",IF(OR('Enrollment Form'!B197<>\"Subscriber\",'Enrollment Form'!C197=\"ROC\",COUNTIF('Enrollment Form'!AV197:AW197,\"Yes\")>=1),\"-\",IF(AND('Enrollment Form'!C197=\"Enroll\",COUNTIF('Enrollment Form'!AV197:AW197,\"No\")=2,'Enrollment Form'!AX197=\"\"),\"N\",\"Y\")))","v":""},{"$f":"IF(OR(B190=\"N\",'Enrollment Form'!B197<>\"Subscriber\",'Enrollment Form'!C197=\"ROC\",'Enrollment Form'!O197<>\"Multiple of Salary\"),\"-\",IF(COUNTA('Enrollment Form'!T197:U197)<2,\"N\",\"Y\"))","v":"-"},{"$f":"IF(B190=\"N\",\"\",IF(OR('Enrollment Form'!C197=\"ROC\",'Enrollment Form'!B197<>\"Subscriber\",'Enrollment Form'!O197=\"Waive\",'Enrollment Form'!O197=\"\"),\"-\",IF('Enrollment Form'!P197=\"\",\"N\",\"Y\")))","v":""},{"$f":"IF($B190=\"N\",\"\",IF(AND('Enrollment Form'!$C197=\"ROC\",'Enrollment Form'!$DR197<>\"\"),\"Y\",IF(AND('Enrollment Form'!$C197=\"ROC\",'Enrollment Form'!$DR197=\"\"),\"N\",IF(AND('Enrollment Form'!$C197=\"Enroll\",'Enrollment Form'!$B197=\"Subscriber\",'Enrollment Form'!$CX197=\"No\",'Enrollment Form'!$DR197=\"\"),\"N\",IF(AND('Enrollment Form'!$C197=\"Enroll\",'Enrollment Form'!$B197=\"Subscriber\",'Enrollment Form'!$CX197=\"Yes\"),\"-\",\"Y\")))))","v":""},{"$f":"IF($B190=\"N\",\"\",IF(AND('Enrollment Form'!$C197=\"ROC\",'Enrollment Form'!$DS197<>\"\"),\"Y\",IF(AND('Enrollment Form'!$C197=\"ROC\",'Enrollment Form'!$DS197=\"\"),\"N\",IF(AND('Enrollment Form'!$C197=\"Enroll\",'Enrollment Form'!$B197=\"Subscriber\",'Enrollment Form'!$CX197=\"No\",'Enrollment Form'!$DS197=\"\"),\"N\",IF(AND('Enrollment Form'!$C197=\"Enroll\",'Enrollment Form'!$B197=\"Subscriber\",'Enrollment Form'!$CX197=\"Yes\"),\"-\",\"Y\")))))","v":""},{"$f":"IF('Enrollment Form'!AH197=\"\",\"\",IF(ISERROR(SEARCH(\".\",'Enrollment Form'!AH197,SEARCH(\"@\",'Enrollment Form'!AH197))),\"N\",\"Y\"))","v":""},{"$f":"IF(OR($B190=\"N\",'Enrollment Form'!$G197=\"\"),\"\",IF('Enrollment Form'!$B197<>\"Subscriber\",\"-\",IF(COUNTIF('Enrollment Form'!$AV197:$AW197,\"Yes\")=2,\"N\",\"Y\")))","v":""},{"$f":"IF(OR('Enrollment Form'!$CJ197=\"\",'Enrollment Form'!$CJ197=\"No\"),\"-\",IF(AND('Enrollment Form'!$CJ197=\"Yes\",'Enrollment Form'!$CK197=\"\"),\"N\",\"Y\"))","v":"-"},{"$f":"IF(OR('Enrollment Form'!$CL197=\"\",'Enrollment Form'!$CL197=\"No\"),\"-\",IF(AND('Enrollment Form'!$CL197=\"Yes\",'Enrollment Form'!$CM197=\"\"),\"N\",\"Y\"))","v":"-"},{"$f":"IF(OR('Enrollment Form'!$CN197=\"\",'Enrollment Form'!$CN197=\"No\"),\"-\",IF(AND('Enrollment Form'!$CN197=\"Yes\",'Enrollment Form'!$CO197=\"\"),\"N\",\"Y\"))","v":"-"},{"$f":"IF(OR('Enrollment Form'!$CN197=\"\",'Enrollment Form'!$CN197=\"No\"),\"-\",IF(AND('Enrollment Form'!$CN197=\"Yes\",'Enrollment Form'!$CP197=\"\"),\"N\",\"Y\"))","v":"-"},{"$f":"IF('Enrollment Form'!B197<>\"Subscriber\",\"-\",IF(AND('Enrollment Form'!B197=\"Subscriber\",'Enrollment Form'!C197=\"Enroll\",'Enrollment Form'!AA197=\"\"),\"N\",\"Y\"))","v":"-"},{"$f":"IF(OR('Enrollment Form'!B197=\"Subscriber\",'Enrollment Form'!B197=\"\"),\"-\",IF('Enrollment Form'!BP197=\"\",\"N\",\"Y\"))","v":"-"},{"$f":"IF('Enrollment Form'!B197<>\"Subscriber\",\"-\",IF(AND('Enrollment Form'!B197=\"Subscriber\",'Enrollment Form'!G197=\"\"),\"N\",\"Y\"))","v":"-"},{"$f":"IF('Enrollment Form'!A197=\"\",\"\",IF('Enrollment Form'!B197=\"Subscriber\",\"-\",IF(AND('Enrollment Form'!B197<>\"Subscriber\",'Enrollment Form'!G197='Enrollment Form'!H197),\"N\",\"Y\")))","v":""},0]
[198,{"$f":"IF('Enrollment Form'!$A198<>\"\",\"Y\",\"N\")","v":"N"},{"$f":"IF(AND('Enrollment Form'!$B198=\"\",'Enrollment Form'!$C198<>\"\"),\"N\",IF($B191=\"N\",\"\",\"Y\"))","v":""},{"$f":"IF(OR($B191=\"N\",'Enrollment Form'!G198=\"\"),\"\",IF('Enrollment Form'!$B198<>\"Subscriber\",\"\",IF('Enrollment Form'!$G198='Enrollment Form'!$H198,\"Y\",\"N\")))","v":""},{"$f":"IF($B191=\"N\",\"\",IF(AND(COUNTIFS('Enrollment Form'!$H$11:$H$1000,'Enrollment Form'!$H198,'Enrollment Form'!$B$11:$B$1000,'Enrollment Form'!$B198)>1,'Enrollment Form'!$H198<>\"\"),\"N\",\"Y\"))","v":""},{"$f":"IF($B191=\"N\",\"\",IF(LEN('Enrollment Form'!$Y198)=0,\"\",IF(LEN('Enrollment Form'!$Y198)<>5,\"N\",\"Y\")))","v":""},{"$f":"IF($B191=\"N\",\"\",IF(LEN('Enrollment Form'!$AD198=0),\"\",IF(LEN('Enrollment Form'!$AD198)<>5,\"N\",\"Y\")))","v":""},{"$f":"IF($B191=\"N\",\"\",IF(LEN('Enrollment Form'!$BS198=0),\"\",IF(LEN('Enrollment Form'!$BS198)<>5,\"N\",\"Y\")))","v":""},{"$f":"IF($B191=\"N\",\"\",IF(LEN('Enrollment Form'!$AE198)=0,\"\",IF(LEN('Enrollment Form'!$AE198)<>10,\"N\",\"Y\")))","v":""},{"$f":"IF($B191=\"N\",\"\",IF(LEN('Enrollment Form'!$AF198)=0,\"\",IF(LEN('Enrollment Form'!$AF198)<>10,\"N\",\"Y\")))","v":""},{"$f":"IF('Enrollment Form'!$O198<>\"Graded\",\"-\",IF(AND('Enrollment Form'!$O198=\"Graded\",'Enrollment Form'!$AR198<>\"\"),\"Y\",\"N\"))","v":"-"},{"$f":"IF($B191=\"N\",\"\",IF(OR('Enrollment Form'!$B198<>\"Subscriber\",'Enrollment Form'!$C198=\"ROC\"),\"-\",IF(AND('Enrollment Form'!$B198=\"Subscriber\",'Enrollment Form'!$C198=\"Enroll\",'Enrollment Form'!$AJ198<>\"\"),\"Y\",\"N\")))","v":""},{"$f":"IF($B191=\"N\",\"\",IF(OR('Enrollment Form'!$B198<>\"Subscriber\",'Enrollment Form'!$C198=\"ROC\"),\"-\",IF(AND('Enrollment Form'!$B198=\"Subscriber\",'Enrollment Form'!$C198=\"Enroll\",'Enrollment Form'!$AK198<>\"\"),\"Y\",\"N\")))","v":""},{"$f":"IF($B191=\"N\",\"\",IF(OR('Enrollment Form'!$B198<>\"Subscriber\",'Enrollment Form'!$C198=\"ROC\"),\"-\",IF(AND('Enrollment Form'!$B198=\"Subscriber\",'Enrollment Form'!$C198=\"Enroll\",'Enrollment Form'!$AL198<>\"\"),\"Y\",\"N\")))","v":""},{"$f":"IF($B191=\"N\",\"\",IF(OR('Enrollment Form'!$B198<>\"Subscriber\",'Enrollment Form'!$C198=\"ROC\"),\"-\",IF(AND('Enrollment Form'!$B198=\"Subscriber\",'Enrollment Form'!$C198=\"Enroll\",'Enrollment Form'!$AP198<>\"\"),\"Y\",\"N\")))","v":""},{"$f":"IF($B191=\"N\",\"\",IF(OR('Enrollment Form'!$B198<>\"Subscriber\",'Enrollment Form'!$C198=\"ROC\"),\"-\",IF(AND('Enrollment Form'!$B198=\"Subscriber\",'Enrollment Form'!$C198=\"Enroll\",'Enrollment Form'!$AQ198<>\"\"),\"Y\",\"N\")))","v":""},{"$f":"IF($B191=\"N\",\"\",IF(OR('Enrollment Form'!$B198<>\"Subscriber\",'Enrollment Form'!$C198=\"ROC\"),\"-\",IF(AND('Enrollment Form'!$B198=\"Subscriber\",'Enrollment Form'!$C198=\"Enroll\",'Enrollment Form'!$AS198<>\"\"),\"Y\",\"N\")))","v":""},{"$f":"IF($B191=\"N\",\"\",IF($Q191=\"-\",\"-\",IF(AND($Q191=\"Y\",'Enrollment Form'!$AS198=\"No\"),\"-\",IF(AND($Q191=\"Y\",'Enrollment Form'!$AS198=\"Yes\",'Enrollment Form'!$AT198<>\"\"),\"Y\",\"N\"))))","v":""},{"$f":"IF($B191=\"N\",\"\",IF(OR('Enrollment Form'!$B198<>\"Subscriber\",'Enrollment Form'!$C198=\"ROC\"),\"-\",IF(AND('Enrollment Form'!$B198=\"Subscriber\",'Enrollment Form'!$C198=\"Enroll\",'Enrollment Form'!$CV198<>\"\"),\"Y\",\"N\")))","v":""},{"$f":"IF($B191=\"N\",\"\",IF($S191=\"-\",\"-\",IF(AND($S191=\"Y\",'Enrollment Form'!$CV198=\"No\"),\"-\",IF(AND($S191=\"Y\",'Enrollment Form'!$CV198=\"Yes\",'Enrollment Form'!$CW198<>\"\"),\"Y\",\"N\"))))","v":""},{"$f":"IF(OR('Enrollment Form'!$AY198=\"Yes\",'Enrollment Form'!$AY198=\"\"),\"-\",IF(OR(AND('Enrollment Form'!$AY198=\"No\",ISERROR(FIND(\"HMO\",VLOOKUP('Enrollment Form'!G198,'Enrollment Form'!H$11:J$1000,3,FALSE),1))=FALSE,COUNTA('Enrollment Form'!$AZ198:$BC198)=4),AND('Enrollment Form'!$AY198=\"No\",ISERROR(FIND(\"HMO\",VLOOKUP('Enrollment Form'!G198,'Enrollment Form'!H$11:J$1000,3,FALSE),1))=FALSE,COUNTA('Enrollment Form'!$BT198:$BW198)=4)),\"Y\",\"N\"))","v":"-"},{"$f":"IF($B191=\"N\",\"\",IF('Enrollment Form'!$B198=\"Subscriber\",\"-\",IF(COUNTA('Enrollment Form'!$BL198,'Enrollment Form'!$BN198)=2,\"Y\",\"N\")))","v":""},{"$f":"IF($B191=\"N\",\"\",IF(OR('Enrollment Form'!$AX198=\"\",'Enrollment Form'!$AX198=\"No\"),\"-\",IF(AND('Enrollment Form'!$AX198=\"Yes\",COUNTA('Enrollment Form'!$CR198)=1),\"Y\",\"N\")))","v":""},{"$f":"IF(OR('Enrollment Form'!$CR198=\"\",'Enrollment Form'!$CR198=\"No\"),\"-\",IF(COUNTA('Enrollment Form'!$CT198:$CU198)=2,\"Y\",\"N\"))","v":"-"},{"$f":"IF($B191=\"N\",\"\",IF(COUNTIF('Enrollment Form'!$DG198:$DP198,\"Other\")=COUNTA('Enrollment Form'!$DK198,'Enrollment Form'!$DH198,'Enrollment Form'!$DN198,'Enrollment Form'!$DQ198),\"Y\",\"N\"))","v":""},{"$f":"IF($B191=\"N\",\"\",IF(OR('Enrollment Form'!B198<>\"Subscriber\",'Enrollment Form'!C198=\"ROC\",COUNTIF('Enrollment Form'!AV198:AW198,\"Yes\")>=1),\"-\",IF(AND('Enrollment Form'!C198=\"Enroll\",COUNTIF('Enrollment Form'!AV198:AW198,\"No\")=2,'Enrollment Form'!AX198=\"\"),\"N\",\"Y\")))","v":""},{"$f":"IF(OR(B191=\"N\",'Enrollment Form'!B198<>\"Subscriber\",'Enrollment Form'!C198=\"ROC\",'Enrollment Form'!O198<>\"Multiple of Salary\"),\"-\",IF(COUNTA('Enrollment Form'!T198:U198)<2,\"N\",\"Y\"))","v":"-"},{"$f":"IF(B191=\"N\",\"\",IF(OR('Enrollment Form'!C198=\"ROC\",'Enrollment Form'!B198<>\"Subscriber\",'Enrollment Form'!O198=\"Waive\",'Enrollment Form'!O198=\"\"),\"-\",IF('Enrollment Form'!P198=\"\",\"N\",\"Y\")))","v":""},{"$f":"IF($B191=\"N\",\"\",IF(AND('Enrollment Form'!$C198=\"ROC\",'Enrollment Form'!$DR198<>\"\"),\"Y\",IF(AND('Enrollment Form'!$C198=\"ROC\",'Enrollment Form'!$DR198=\"\"),\"N\",IF(AND('Enrollment Form'!$C198=\"Enroll\",'Enrollment Form'!$B198=\"Subscriber\",'Enrollment Form'!$CX198=\"No\",'Enrollment Form'!$DR198=\"\"),\"N\",IF(AND('Enrollment Form'!$C198=\"Enroll\",'Enrollment Form'!$B198=\"Subscriber\",'Enrollment Form'!$CX198=\"Yes\"),\"-\",\"Y\")))))","v":""},{"$f":"IF($B191=\"N\",\"\",IF(AND('Enrollment Form'!$C198=\"ROC\",'Enrollment Form'!$DS198<>\"\"),\"Y\",IF(AND('Enrollment Form'!$C198=\"ROC\",'Enrollment Form'!$DS198=\"\"),\"N\",IF(AND('Enrollment Form'!$C198=\"Enroll\",'Enrollment Form'!$B198=\"Subscriber\",'Enrollment Form'!$CX198=\"No\",'Enrollment Form'!$DS198=\"\"),\"N\",IF(AND('Enrollment Form'!$C198=\"Enroll\",'Enrollment Form'!$B198=\"Subscriber\",'Enrollment Form'!$CX198=\"Yes\"),\"-\",\"Y\")))))","v":""},{"$f":"IF('Enrollment Form'!AH198=\"\",\"\",IF(ISERROR(SEARCH(\".\",'Enrollment Form'!AH198,SEARCH(\"@\",'Enrollment Form'!AH198))),\"N\",\"Y\"))","v":""},{"$f":"IF(OR($B191=\"N\",'Enrollment Form'!$G198=\"\"),\"\",IF('Enrollment Form'!$B198<>\"Subscriber\",\"-\",IF(COUNTIF('Enrollment Form'!$AV198:$AW198,\"Yes\")=2,\"N\",\"Y\")))","v":""},{"$f":"IF(OR('Enrollment Form'!$CJ198=\"\",'Enrollment Form'!$CJ198=\"No\"),\"-\",IF(AND('Enrollment Form'!$CJ198=\"Yes\",'Enrollment Form'!$CK198=\"\"),\"N\",\"Y\"))","v":"-"},{"$f":"IF(OR('Enrollment Form'!$CL198=\"\",'Enrollment Form'!$CL198=\"No\"),\"-\",IF(AND('Enrollment Form'!$CL198=\"Yes\",'Enrollment Form'!$CM198=\"\"),\"N\",\"Y\"))","v":"-"},{"$f":"IF(OR('Enrollment Form'!$CN198=\"\",'Enrollment Form'!$CN198=\"No\"),\"-\",IF(AND('Enrollment Form'!$CN198=\"Yes\",'Enrollment Form'!$CO198=\"\"),\"N\",\"Y\"))","v":"-"},{"$f":"IF(OR('Enrollment Form'!$CN198=\"\",'Enrollment Form'!$CN198=\"No\"),\"-\",IF(AND('Enrollment Form'!$CN198=\"Yes\",'Enrollment Form'!$CP198=\"\"),\"N\",\"Y\"))","v":"-"},{"$f":"IF('Enrollment Form'!B198<>\"Subscriber\",\"-\",IF(AND('Enrollment Form'!B198=\"Subscriber\",'Enrollment Form'!C198=\"Enroll\",'Enrollment Form'!AA198=\"\"),\"N\",\"Y\"))","v":"-"},{"$f":"IF(OR('Enrollment Form'!B198=\"Subscriber\",'Enrollment Form'!B198=\"\"),\"-\",IF('Enrollment Form'!BP198=\"\",\"N\",\"Y\"))","v":"-"},{"$f":"IF('Enrollment Form'!B198<>\"Subscriber\",\"-\",IF(AND('Enrollment Form'!B198=\"Subscriber\",'Enrollment Form'!G198=\"\"),\"N\",\"Y\"))","v":"-"},{"$f":"IF('Enrollment Form'!A198=\"\",\"\",IF('Enrollment Form'!B198=\"Subscriber\",\"-\",IF(AND('Enrollment Form'!B198<>\"Subscriber\",'Enrollment Form'!G198='Enrollment Form'!H198),\"N\",\"Y\")))","v":""},0]
[199,{"$f":"IF('Enrollment Form'!$A199<>\"\",\"Y\",\"N\")","v":"N"},{"$f":"IF(AND('Enrollment Form'!$B199=\"\",'Enrollment Form'!$C199<>\"\"),\"N\",IF($B192=\"N\",\"\",\"Y\"))","v":""},{"$f":"IF(OR($B192=\"N\",'Enrollment Form'!G199=\"\"),\"\",IF('Enrollment Form'!$B199<>\"Subscriber\",\"\",IF('Enrollment Form'!$G199='Enrollment Form'!$H199,\"Y\",\"N\")))","v":""},{"$f":"IF($B192=\"N\",\"\",IF(AND(COUNTIFS('Enrollment Form'!$H$11:$H$1000,'Enrollment Form'!$H199,'Enrollment Form'!$B$11:$B$1000,'Enrollment Form'!$B199)>1,'Enrollment Form'!$H199<>\"\"),\"N\",\"Y\"))","v":""},{"$f":"IF($B192=\"N\",\"\",IF(LEN('Enrollment Form'!$Y199)=0,\"\",IF(LEN('Enrollment Form'!$Y199)<>5,\"N\",\"Y\")))","v":""},{"$f":"IF($B192=\"N\",\"\",IF(LEN('Enrollment Form'!$AD199=0),\"\",IF(LEN('Enrollment Form'!$AD199)<>5,\"N\",\"Y\")))","v":""},{"$f":"IF($B192=\"N\",\"\",IF(LEN('Enrollment Form'!$BS199=0),\"\",IF(LEN('Enrollment Form'!$BS199)<>5,\"N\",\"Y\")))","v":""},{"$f":"IF($B192=\"N\",\"\",IF(LEN('Enrollment Form'!$AE199)=0,\"\",IF(LEN('Enrollment Form'!$AE199)<>10,\"N\",\"Y\")))","v":""},{"$f":"IF($B192=\"N\",\"\",IF(LEN('Enrollment Form'!$AF199)=0,\"\",IF(LEN('Enrollment Form'!$AF199)<>10,\"N\",\"Y\")))","v":""},{"$f":"IF('Enrollment Form'!$O199<>\"Graded\",\"-\",IF(AND('Enrollment Form'!$O199=\"Graded\",'Enrollment Form'!$AR199<>\"\"),\"Y\",\"N\"))","v":"-"},{"$f":"IF($B192=\"N\",\"\",IF(OR('Enrollment Form'!$B199<>\"Subscriber\",'Enrollment Form'!$C199=\"ROC\"),\"-\",IF(AND('Enrollment Form'!$B199=\"Subscriber\",'Enrollment Form'!$C199=\"Enroll\",'Enrollment Form'!$AJ199<>\"\"),\"Y\",\"N\")))","v":""},{"$f":"IF($B192=\"N\",\"\",IF(OR('Enrollment Form'!$B199<>\"Subscriber\",'Enrollment Form'!$C199=\"ROC\"),\"-\",IF(AND('Enrollment Form'!$B199=\"Subscriber\",'Enrollment Form'!$C199=\"Enroll\",'Enrollment Form'!$AK199<>\"\"),\"Y\",\"N\")))","v":""},{"$f":"IF($B192=\"N\",\"\",IF(OR('Enrollment Form'!$B199<>\"Subscriber\",'Enrollment Form'!$C199=\"ROC\"),\"-\",IF(AND('Enrollment Form'!$B199=\"Subscriber\",'Enrollment Form'!$C199=\"Enroll\",'Enrollment Form'!$AL199<>\"\"),\"Y\",\"N\")))","v":""},{"$f":"IF($B192=\"N\",\"\",IF(OR('Enrollment Form'!$B199<>\"Subscriber\",'Enrollment Form'!$C199=\"ROC\"),\"-\",IF(AND('Enrollment Form'!$B199=\"Subscriber\",'Enrollment Form'!$C199=\"Enroll\",'Enrollment Form'!$AP199<>\"\"),\"Y\",\"N\")))","v":""},{"$f":"IF($B192=\"N\",\"\",IF(OR('Enrollment Form'!$B199<>\"Subscriber\",'Enrollment Form'!$C199=\"ROC\"),\"-\",IF(AND('Enrollment Form'!$B199=\"Subscriber\",'Enrollment Form'!$C199=\"Enroll\",'Enrollment Form'!$AQ199<>\"\"),\"Y\",\"N\")))","v":""},{"$f":"IF($B192=\"N\",\"\",IF(OR('Enrollment Form'!$B199<>\"Subscriber\",'Enrollment Form'!$C199=\"ROC\"),\"-\",IF(AND('Enrollment Form'!$B199=\"Subscriber\",'Enrollment Form'!$C199=\"Enroll\",'Enrollment Form'!$AS199<>\"\"),\"Y\",\"N\")))","v":""},{"$f":"IF($B192=\"N\",\"\",IF($Q192=\"-\",\"-\",IF(AND($Q192=\"Y\",'Enrollment Form'!$AS199=\"No\"),\"-\",IF(AND($Q192=\"Y\",'Enrollment Form'!$AS199=\"Yes\",'Enrollment Form'!$AT199<>\"\"),\"Y\",\"N\"))))","v":""},{"$f":"IF($B192=\"N\",\"\",IF(OR('Enrollment Form'!$B199<>\"Subscriber\",'Enrollment Form'!$C199=\"ROC\"),\"-\",IF(AND('Enrollment Form'!$B199=\"Subscriber\",'Enrollment Form'!$C199=\"Enroll\",'Enrollment Form'!$CV199<>\"\"),\"Y\",\"N\")))","v":""},{"$f":"IF($B192=\"N\",\"\",IF($S192=\"-\",\"-\",IF(AND($S192=\"Y\",'Enrollment Form'!$CV199=\"No\"),\"-\",IF(AND($S192=\"Y\",'Enrollment Form'!$CV199=\"Yes\",'Enrollment Form'!$CW199<>\"\"),\"Y\",\"N\"))))","v":""},{"$f":"IF(OR('Enrollment Form'!$AY199=\"Yes\",'Enrollment Form'!$AY199=\"\"),\"-\",IF(OR(AND('Enrollment Form'!$AY199=\"No\",ISERROR(FIND(\"HMO\",VLOOKUP('Enrollment Form'!G199,'Enrollment Form'!H$11:J$1000,3,FALSE),1))=FALSE,COUNTA('Enrollment Form'!$AZ199:$BC199)=4),AND('Enrollment Form'!$AY199=\"No\",ISERROR(FIND(\"HMO\",VLOOKUP('Enrollment Form'!G199,'Enrollment Form'!H$11:J$1000,3,FALSE),1))=FALSE,COUNTA('Enrollment Form'!$BT199:$BW199)=4)),\"Y\",\"N\"))","v":"-"},{"$f":"IF($B192=\"N\",\"\",IF('Enrollment Form'!$B199=\"Subscriber\",\"-\",IF(COUNTA('Enrollment Form'!$BL199,'Enrollment Form'!$BN199)=2,\"Y\",\"N\")))","v":""},{"$f":"IF($B192=\"N\",\"\",IF(OR('Enrollment Form'!$AX199=\"\",'Enrollment Form'!$AX199=\"No\"),\"-\",IF(AND('Enrollment Form'!$AX199=\"Yes\",COUNTA('Enrollment Form'!$CR199)=1),\"Y\",\"N\")))","v":""},{"$f":"IF(OR('Enrollment Form'!$CR199=\"\",'Enrollment Form'!$CR199=\"No\"),\"-\",IF(COUNTA('Enrollment Form'!$CT199:$CU199)=2,\"Y\",\"N\"))","v":"-"},{"$f":"IF($B192=\"N\",\"\",IF(COUNTIF('Enrollment Form'!$DG199:$DP199,\"Other\")=COUNTA('Enrollment Form'!$DK199,'Enrollment Form'!$DH199,'Enrollment Form'!$DN199,'Enrollment Form'!$DQ199),\"Y\",\"N\"))","v":""},{"$f":"IF($B192=\"N\",\"\",IF(OR('Enrollment Form'!B199<>\"Subscriber\",'Enrollment Form'!C199=\"ROC\",COUNTIF('Enrollment Form'!AV199:AW199,\"Yes\")>=1),\"-\",IF(AND('Enrollment Form'!C199=\"Enroll\",COUNTIF('Enrollment Form'!AV199:AW199,\"No\")=2,'Enrollment Form'!AX199=\"\"),\"N\",\"Y\")))","v":""},{"$f":"IF(OR(B192=\"N\",'Enrollment Form'!B199<>\"Subscriber\",'Enrollment Form'!C199=\"ROC\",'Enrollment Form'!O199<>\"Multiple of Salary\"),\"-\",IF(COUNTA('Enrollment Form'!T199:U199)<2,\"N\",\"Y\"))","v":"-"},{"$f":"IF(B192=\"N\",\"\",IF(OR('Enrollment Form'!C199=\"ROC\",'Enrollment Form'!B199<>\"Subscriber\",'Enrollment Form'!O199=\"Waive\",'Enrollment Form'!O199=\"\"),\"-\",IF('Enrollment Form'!P199=\"\",\"N\",\"Y\")))","v":""},{"$f":"IF($B192=\"N\",\"\",IF(AND('Enrollment Form'!$C199=\"ROC\",'Enrollment Form'!$DR199<>\"\"),\"Y\",IF(AND('Enrollment Form'!$C199=\"ROC\",'Enrollment Form'!$DR199=\"\"),\"N\",IF(AND('Enrollment Form'!$C199=\"Enroll\",'Enrollment Form'!$B199=\"Subscriber\",'Enrollment Form'!$CX199=\"No\",'Enrollment Form'!$DR199=\"\"),\"N\",IF(AND('Enrollment Form'!$C199=\"Enroll\",'Enrollment Form'!$B199=\"Subscriber\",'Enrollment Form'!$CX199=\"Yes\"),\"-\",\"Y\")))))","v":""},{"$f":"IF($B192=\"N\",\"\",IF(AND('Enrollment Form'!$C199=\"ROC\",'Enrollment Form'!$DS199<>\"\"),\"Y\",IF(AND('Enrollment Form'!$C199=\"ROC\",'Enrollment Form'!$DS199=\"\"),\"N\",IF(AND('Enrollment Form'!$C199=\"Enroll\",'Enrollment Form'!$B199=\"Subscriber\",'Enrollment Form'!$CX199=\"No\",'Enrollment Form'!$DS199=\"\"),\"N\",IF(AND('Enrollment Form'!$C199=\"Enroll\",'Enrollment Form'!$B199=\"Subscriber\",'Enrollment Form'!$CX199=\"Yes\"),\"-\",\"Y\")))))","v":""},{"$f":"IF('Enrollment Form'!AH199=\"\",\"\",IF(ISERROR(SEARCH(\".\",'Enrollment Form'!AH199,SEARCH(\"@\",'Enrollment Form'!AH199))),\"N\",\"Y\"))","v":""},{"$f":"IF(OR($B192=\"N\",'Enrollment Form'!$G199=\"\"),\"\",IF('Enrollment Form'!$B199<>\"Subscriber\",\"-\",IF(COUNTIF('Enrollment Form'!$AV199:$AW199,\"Yes\")=2,\"N\",\"Y\")))","v":""},{"$f":"IF(OR('Enrollment Form'!$CJ199=\"\",'Enrollment Form'!$CJ199=\"No\"),\"-\",IF(AND('Enrollment Form'!$CJ199=\"Yes\",'Enrollment Form'!$CK199=\"\"),\"N\",\"Y\"))","v":"-"},{"$f":"IF(OR('Enrollment Form'!$CL199=\"\",'Enrollment Form'!$CL199=\"No\"),\"-\",IF(AND('Enrollment Form'!$CL199=\"Yes\",'Enrollment Form'!$CM199=\"\"),\"N\",\"Y\"))","v":"-"},{"$f":"IF(OR('Enrollment Form'!$CN199=\"\",'Enrollment Form'!$CN199=\"No\"),\"-\",IF(AND('Enrollment Form'!$CN199=\"Yes\",'Enrollment Form'!$CO199=\"\"),\"N\",\"Y\"))","v":"-"},{"$f":"IF(OR('Enrollment Form'!$CN199=\"\",'Enrollment Form'!$CN199=\"No\"),\"-\",IF(AND('Enrollment Form'!$CN199=\"Yes\",'Enrollment Form'!$CP199=\"\"),\"N\",\"Y\"))","v":"-"},{"$f":"IF('Enrollment Form'!B199<>\"Subscriber\",\"-\",IF(AND('Enrollment Form'!B199=\"Subscriber\",'Enrollment Form'!C199=\"Enroll\",'Enrollment Form'!AA199=\"\"),\"N\",\"Y\"))","v":"-"},{"$f":"IF(OR('Enrollment Form'!B199=\"Subscriber\",'Enrollment Form'!B199=\"\"),\"-\",IF('Enrollment Form'!BP199=\"\",\"N\",\"Y\"))","v":"-"},{"$f":"IF('Enrollment Form'!B199<>\"Subscriber\",\"-\",IF(AND('Enrollment Form'!B199=\"Subscriber\",'Enrollment Form'!G199=\"\"),\"N\",\"Y\"))","v":"-"},{"$f":"IF('Enrollment Form'!A199=\"\",\"\",IF('Enrollment Form'!B199=\"Subscriber\",\"-\",IF(AND('Enrollment Form'!B199<>\"Subscriber\",'Enrollment Form'!G199='Enrollment Form'!H199),\"N\",\"Y\")))","v":""},0]
[200,{"$f":"IF('Enrollment Form'!$A200<>\"\",\"Y\",\"N\")","v":"N"},{"$f":"IF(AND('Enrollment Form'!$B200=\"\",'Enrollment Form'!$C200<>\"\"),\"N\",IF($B193=\"N\",\"\",\"Y\"))","v":""},{"$f":"IF(OR($B193=\"N\",'Enrollment Form'!G200=\"\"),\"\",IF('Enrollment Form'!$B200<>\"Subscriber\",\"\",IF('Enrollment Form'!$G200='Enrollment Form'!$H200,\"Y\",\"N\")))","v":""},{"$f":"IF($B193=\"N\",\"\",IF(AND(COUNTIFS('Enrollment Form'!$H$11:$H$1000,'Enrollment Form'!$H200,'Enrollment Form'!$B$11:$B$1000,'Enrollment Form'!$B200)>1,'Enrollment Form'!$H200<>\"\"),\"N\",\"Y\"))","v":""},{"$f":"IF($B193=\"N\",\"\",IF(LEN('Enrollment Form'!$Y200)=0,\"\",IF(LEN('Enrollment Form'!$Y200)<>5,\"N\",\"Y\")))","v":""},{"$f":"IF($B193=\"N\",\"\",IF(LEN('Enrollment Form'!$AD200=0),\"\",IF(LEN('Enrollment Form'!$AD200)<>5,\"N\",\"Y\")))","v":""},{"$f":"IF($B193=\"N\",\"\",IF(LEN('Enrollment Form'!$BS200=0),\"\",IF(LEN('Enrollment Form'!$BS200)<>5,\"N\",\"Y\")))","v":""},{"$f":"IF($B193=\"N\",\"\",IF(LEN('Enrollment Form'!$AE200)=0,\"\",IF(LEN('Enrollment Form'!$AE200)<>10,\"N\",\"Y\")))","v":""},{"$f":"IF($B193=\"N\",\"\",IF(LEN('Enrollment Form'!$AF200)=0,\"\",IF(LEN('Enrollment Form'!$AF200)<>10,\"N\",\"Y\")))","v":""},{"$f":"IF('Enrollment Form'!$O200<>\"Graded\",\"-\",IF(AND('Enrollment Form'!$O200=\"Graded\",'Enrollment Form'!$AR200<>\"\"),\"Y\",\"N\"))","v":"-"},{"$f":"IF($B193=\"N\",\"\",IF(OR('Enrollment Form'!$B200<>\"Subscriber\",'Enrollment Form'!$C200=\"ROC\"),\"-\",IF(AND('Enrollment Form'!$B200=\"Subscriber\",'Enrollment Form'!$C200=\"Enroll\",'Enrollment Form'!$AJ200<>\"\"),\"Y\",\"N\")))","v":""},{"$f":"IF($B193=\"N\",\"\",IF(OR('Enrollment Form'!$B200<>\"Subscriber\",'Enrollment Form'!$C200=\"ROC\"),\"-\",IF(AND('Enrollment Form'!$B200=\"Subscriber\",'Enrollment Form'!$C200=\"Enroll\",'Enrollment Form'!$AK200<>\"\"),\"Y\",\"N\")))","v":""},{"$f":"IF($B193=\"N\",\"\",IF(OR('Enrollment Form'!$B200<>\"Subscriber\",'Enrollment Form'!$C200=\"ROC\"),\"-\",IF(AND('Enrollment Form'!$B200=\"Subscriber\",'Enrollment Form'!$C200=\"Enroll\",'Enrollment Form'!$AL200<>\"\"),\"Y\",\"N\")))","v":""},{"$f":"IF($B193=\"N\",\"\",IF(OR('Enrollment Form'!$B200<>\"Subscriber\",'Enrollment Form'!$C200=\"ROC\"),\"-\",IF(AND('Enrollment Form'!$B200=\"Subscriber\",'Enrollment Form'!$C200=\"Enroll\",'Enrollment Form'!$AP200<>\"\"),\"Y\",\"N\")))","v":""},{"$f":"IF($B193=\"N\",\"\",IF(OR('Enrollment Form'!$B200<>\"Subscriber\",'Enrollment Form'!$C200=\"ROC\"),\"-\",IF(AND('Enrollment Form'!$B200=\"Subscriber\",'Enrollment Form'!$C200=\"Enroll\",'Enrollment Form'!$AQ200<>\"\"),\"Y\",\"N\")))","v":""},{"$f":"IF($B193=\"N\",\"\",IF(OR('Enrollment Form'!$B200<>\"Subscriber\",'Enrollment Form'!$C200=\"ROC\"),\"-\",IF(AND('Enrollment Form'!$B200=\"Subscriber\",'Enrollment Form'!$C200=\"Enroll\",'Enrollment Form'!$AS200<>\"\"),\"Y\",\"N\")))","v":""},{"$f":"IF($B193=\"N\",\"\",IF($Q193=\"-\",\"-\",IF(AND($Q193=\"Y\",'Enrollment Form'!$AS200=\"No\"),\"-\",IF(AND($Q193=\"Y\",'Enrollment Form'!$AS200=\"Yes\",'Enrollment Form'!$AT200<>\"\"),\"Y\",\"N\"))))","v":""},{"$f":"IF($B193=\"N\",\"\",IF(OR('Enrollment Form'!$B200<>\"Subscriber\",'Enrollment Form'!$C200=\"ROC\"),\"-\",IF(AND('Enrollment Form'!$B200=\"Subscriber\",'Enrollment Form'!$C200=\"Enroll\",'Enrollment Form'!$CV200<>\"\"),\"Y\",\"N\")))","v":""},{"$f":"IF($B193=\"N\",\"\",IF($S193=\"-\",\"-\",IF(AND($S193=\"Y\",'Enrollment Form'!$CV200=\"No\"),\"-\",IF(AND($S193=\"Y\",'Enrollment Form'!$CV200=\"Yes\",'Enrollment Form'!$CW200<>\"\"),\"Y\",\"N\"))))","v":""},{"$f":"IF(OR('Enrollment Form'!$AY200=\"Yes\",'Enrollment Form'!$AY200=\"\"),\"-\",IF(OR(AND('Enrollment Form'!$AY200=\"No\",ISERROR(FIND(\"HMO\",VLOOKUP('Enrollment Form'!G200,'Enrollment Form'!H$11:J$1000,3,FALSE),1))=FALSE,COUNTA('Enrollment Form'!$AZ200:$BC200)=4),AND('Enrollment Form'!$AY200=\"No\",ISERROR(FIND(\"HMO\",VLOOKUP('Enrollment Form'!G200,'Enrollment Form'!H$11:J$1000,3,FALSE),1))=FALSE,COUNTA('Enrollment Form'!$BT200:$BW200)=4)),\"Y\",\"N\"))","v":"-"},{"$f":"IF($B193=\"N\",\"\",IF('Enrollment Form'!$B200=\"Subscriber\",\"-\",IF(COUNTA('Enrollment Form'!$BL200,'Enrollment Form'!$BN200)=2,\"Y\",\"N\")))","v":""},{"$f":"IF($B193=\"N\",\"\",IF(OR('Enrollment Form'!$AX200=\"\",'Enrollment Form'!$AX200=\"No\"),\"-\",IF(AND('Enrollment Form'!$AX200=\"Yes\",COUNTA('Enrollment Form'!$CR200)=1),\"Y\",\"N\")))","v":""},{"$f":"IF(OR('Enrollment Form'!$CR200=\"\",'Enrollment Form'!$CR200=\"No\"),\"-\",IF(COUNTA('Enrollment Form'!$CT200:$CU200)=2,\"Y\",\"N\"))","v":"-"},{"$f":"IF($B193=\"N\",\"\",IF(COUNTIF('Enrollment Form'!$DG200:$DP200,\"Other\")=COUNTA('Enrollment Form'!$DK200,'Enrollment Form'!$DH200,'Enrollment Form'!$DN200,'Enrollment Form'!$DQ200),\"Y\",\"N\"))","v":""},{"$f":"IF($B193=\"N\",\"\",IF(OR('Enrollment Form'!B200<>\"Subscriber\",'Enrollment Form'!C200=\"ROC\",COUNTIF('Enrollment Form'!AV200:AW200,\"Yes\")>=1),\"-\",IF(AND('Enrollment Form'!C200=\"Enroll\",COUNTIF('Enrollment Form'!AV200:AW200,\"No\")=2,'Enrollment Form'!AX200=\"\"),\"N\",\"Y\")))","v":""},{"$f":"IF(OR(B193=\"N\",'Enrollment Form'!B200<>\"Subscriber\",'Enrollment Form'!C200=\"ROC\",'Enrollment Form'!O200<>\"Multiple of Salary\"),\"-\",IF(COUNTA('Enrollment Form'!T200:U200)<2,\"N\",\"Y\"))","v":"-"},{"$f":"IF(B193=\"N\",\"\",IF(OR('Enrollment Form'!C200=\"ROC\",'Enrollment Form'!B200<>\"Subscriber\",'Enrollment Form'!O200=\"Waive\",'Enrollment Form'!O200=\"\"),\"-\",IF('Enrollment Form'!P200=\"\",\"N\",\"Y\")))","v":""},{"$f":"IF($B193=\"N\",\"\",IF(AND('Enrollment Form'!$C200=\"ROC\",'Enrollment Form'!$DR200<>\"\"),\"Y\",IF(AND('Enrollment Form'!$C200=\"ROC\",'Enrollment Form'!$DR200=\"\"),\"N\",IF(AND('Enrollment Form'!$C200=\"Enroll\",'Enrollment Form'!$B200=\"Subscriber\",'Enrollment Form'!$CX200=\"No\",'Enrollment Form'!$DR200=\"\"),\"N\",IF(AND('Enrollment Form'!$C200=\"Enroll\",'Enrollment Form'!$B200=\"Subscriber\",'Enrollment Form'!$CX200=\"Yes\"),\"-\",\"Y\")))))","v":""},{"$f":"IF($B193=\"N\",\"\",IF(AND('Enrollment Form'!$C200=\"ROC\",'Enrollment Form'!$DS200<>\"\"),\"Y\",IF(AND('Enrollment Form'!$C200=\"ROC\",'Enrollment Form'!$DS200=\"\"),\"N\",IF(AND('Enrollment Form'!$C200=\"Enroll\",'Enrollment Form'!$B200=\"Subscriber\",'Enrollment Form'!$CX200=\"No\",'Enrollment Form'!$DS200=\"\"),\"N\",IF(AND('Enrollment Form'!$C200=\"Enroll\",'Enrollment Form'!$B200=\"Subscriber\",'Enrollment Form'!$CX200=\"Yes\"),\"-\",\"Y\")))))","v":""},{"$f":"IF('Enrollment Form'!AH200=\"\",\"\",IF(ISERROR(SEARCH(\".\",'Enrollment Form'!AH200,SEARCH(\"@\",'Enrollment Form'!AH200))),\"N\",\"Y\"))","v":""},{"$f":"IF(OR($B193=\"N\",'Enrollment Form'!$G200=\"\"),\"\",IF('Enrollment Form'!$B200<>\"Subscriber\",\"-\",IF(COUNTIF('Enrollment Form'!$AV200:$AW200,\"Yes\")=2,\"N\",\"Y\")))","v":""},{"$f":"IF(OR('Enrollment Form'!$CJ200=\"\",'Enrollment Form'!$CJ200=\"No\"),\"-\",IF(AND('Enrollment Form'!$CJ200=\"Yes\",'Enrollment Form'!$CK200=\"\"),\"N\",\"Y\"))","v":"-"},{"$f":"IF(OR('Enrollment Form'!$CL200=\"\",'Enrollment Form'!$CL200=\"No\"),\"-\",IF(AND('Enrollment Form'!$CL200=\"Yes\",'Enrollment Form'!$CM200=\"\"),\"N\",\"Y\"))","v":"-"},{"$f":"IF(OR('Enrollment Form'!$CN200=\"\",'Enrollment Form'!$CN200=\"No\"),\"-\",IF(AND('Enrollment Form'!$CN200=\"Yes\",'Enrollment Form'!$CO200=\"\"),\"N\",\"Y\"))","v":"-"},{"$f":"IF(OR('Enrollment Form'!$CN200=\"\",'Enrollment Form'!$CN200=\"No\"),\"-\",IF(AND('Enrollment Form'!$CN200=\"Yes\",'Enrollment Form'!$CP200=\"\"),\"N\",\"Y\"))","v":"-"},{"$f":"IF('Enrollment Form'!B200<>\"Subscriber\",\"-\",IF(AND('Enrollment Form'!B200=\"Subscriber\",'Enrollment Form'!C200=\"Enroll\",'Enrollment Form'!AA200=\"\"),\"N\",\"Y\"))","v":"-"},{"$f":"IF(OR('Enrollment Form'!B200=\"Subscriber\",'Enrollment Form'!B200=\"\"),\"-\",IF('Enrollment Form'!BP200=\"\",\"N\",\"Y\"))","v":"-"},{"$f":"IF('Enrollment Form'!B200<>\"Subscriber\",\"-\",IF(AND('Enrollment Form'!B200=\"Subscriber\",'Enrollment Form'!G200=\"\"),\"N\",\"Y\"))","v":"-"},{"$f":"IF('Enrollment Form'!A200=\"\",\"\",IF('Enrollment Form'!B200=\"Subscriber\",\"-\",IF(AND('Enrollment Form'!B200<>\"Subscriber\",'Enrollment Form'!G200='Enrollment Form'!H200),\"N\",\"Y\")))","v":""},0]
[201,{"$f":"IF('Enrollment Form'!$A201<>\"\",\"Y\",\"N\")","v":"N"},{"$f":"IF(AND('Enrollment Form'!$B201=\"\",'Enrollment Form'!$C201<>\"\"),\"N\",IF($B194=\"N\",\"\",\"Y\"))","v":""},{"$f":"IF(OR($B194=\"N\",'Enrollment Form'!G201=\"\"),\"\",IF('Enrollment Form'!$B201<>\"Subscriber\",\"\",IF('Enrollment Form'!$G201='Enrollment Form'!$H201,\"Y\",\"N\")))","v":""},{"$f":"IF($B194=\"N\",\"\",IF(AND(COUNTIFS('Enrollment Form'!$H$11:$H$1000,'Enrollment Form'!$H201,'Enrollment Form'!$B$11:$B$1000,'Enrollment Form'!$B201)>1,'Enrollment Form'!$H201<>\"\"),\"N\",\"Y\"))","v":""},{"$f":"IF($B194=\"N\",\"\",IF(LEN('Enrollment Form'!$Y201)=0,\"\",IF(LEN('Enrollment Form'!$Y201)<>5,\"N\",\"Y\")))","v":""},{"$f":"IF($B194=\"N\",\"\",IF(LEN('Enrollment Form'!$AD201=0),\"\",IF(LEN('Enrollment Form'!$AD201)<>5,\"N\",\"Y\")))","v":""},{"$f":"IF($B194=\"N\",\"\",IF(LEN('Enrollment Form'!$BS201=0),\"\",IF(LEN('Enrollment Form'!$BS201)<>5,\"N\",\"Y\")))","v":""},{"$f":"IF($B194=\"N\",\"\",IF(LEN('Enrollment Form'!$AE201)=0,\"\",IF(LEN('Enrollment Form'!$AE201)<>10,\"N\",\"Y\")))","v":""},{"$f":"IF($B194=\"N\",\"\",IF(LEN('Enrollment Form'!$AF201)=0,\"\",IF(LEN('Enrollment Form'!$AF201)<>10,\"N\",\"Y\")))","v":""},{"$f":"IF('Enrollment Form'!$O201<>\"Graded\",\"-\",IF(AND('Enrollment Form'!$O201=\"Graded\",'Enrollment Form'!$AR201<>\"\"),\"Y\",\"N\"))","v":"-"},{"$f":"IF($B194=\"N\",\"\",IF(OR('Enrollment Form'!$B201<>\"Subscriber\",'Enrollment Form'!$C201=\"ROC\"),\"-\",IF(AND('Enrollment Form'!$B201=\"Subscriber\",'Enrollment Form'!$C201=\"Enroll\",'Enrollment Form'!$AJ201<>\"\"),\"Y\",\"N\")))","v":""},{"$f":"IF($B194=\"N\",\"\",IF(OR('Enrollment Form'!$B201<>\"Subscriber\",'Enrollment Form'!$C201=\"ROC\"),\"-\",IF(AND('Enrollment Form'!$B201=\"Subscriber\",'Enrollment Form'!$C201=\"Enroll\",'Enrollment Form'!$AK201<>\"\"),\"Y\",\"N\")))","v":""},{"$f":"IF($B194=\"N\",\"\",IF(OR('Enrollment Form'!$B201<>\"Subscriber\",'Enrollment Form'!$C201=\"ROC\"),\"-\",IF(AND('Enrollment Form'!$B201=\"Subscriber\",'Enrollment Form'!$C201=\"Enroll\",'Enrollment Form'!$AL201<>\"\"),\"Y\",\"N\")))","v":""},{"$f":"IF($B194=\"N\",\"\",IF(OR('Enrollment Form'!$B201<>\"Subscriber\",'Enrollment Form'!$C201=\"ROC\"),\"-\",IF(AND('Enrollment Form'!$B201=\"Subscriber\",'Enrollment Form'!$C201=\"Enroll\",'Enrollment Form'!$AP201<>\"\"),\"Y\",\"N\")))","v":""},{"$f":"IF($B194=\"N\",\"\",IF(OR('Enrollment Form'!$B201<>\"Subscriber\",'Enrollment Form'!$C201=\"ROC\"),\"-\",IF(AND('Enrollment Form'!$B201=\"Subscriber\",'Enrollment Form'!$C201=\"Enroll\",'Enrollment Form'!$AQ201<>\"\"),\"Y\",\"N\")))","v":""},{"$f":"IF($B194=\"N\",\"\",IF(OR('Enrollment Form'!$B201<>\"Subscriber\",'Enrollment Form'!$C201=\"ROC\"),\"-\",IF(AND('Enrollment Form'!$B201=\"Subscriber\",'Enrollment Form'!$C201=\"Enroll\",'Enrollment Form'!$AS201<>\"\"),\"Y\",\"N\")))","v":""},{"$f":"IF($B194=\"N\",\"\",IF($Q194=\"-\",\"-\",IF(AND($Q194=\"Y\",'Enrollment Form'!$AS201=\"No\"),\"-\",IF(AND($Q194=\"Y\",'Enrollment Form'!$AS201=\"Yes\",'Enrollment Form'!$AT201<>\"\"),\"Y\",\"N\"))))","v":""},{"$f":"IF($B194=\"N\",\"\",IF(OR('Enrollment Form'!$B201<>\"Subscriber\",'Enrollment Form'!$C201=\"ROC\"),\"-\",IF(AND('Enrollment Form'!$B201=\"Subscriber\",'Enrollment Form'!$C201=\"Enroll\",'Enrollment Form'!$CV201<>\"\"),\"Y\",\"N\")))","v":""},{"$f":"IF($B194=\"N\",\"\",IF($S194=\"-\",\"-\",IF(AND($S194=\"Y\",'Enrollment Form'!$CV201=\"No\"),\"-\",IF(AND($S194=\"Y\",'Enrollment Form'!$CV201=\"Yes\",'Enrollment Form'!$CW201<>\"\"),\"Y\",\"N\"))))","v":""},{"$f":"IF(OR('Enrollment Form'!$AY201=\"Yes\",'Enrollment Form'!$AY201=\"\"),\"-\",IF(OR(AND('Enrollment Form'!$AY201=\"No\",ISERROR(FIND(\"HMO\",VLOOKUP('Enrollment Form'!G201,'Enrollment Form'!H$11:J$1000,3,FALSE),1))=FALSE,COUNTA('Enrollment Form'!$AZ201:$BC201)=4),AND('Enrollment Form'!$AY201=\"No\",ISERROR(FIND(\"HMO\",VLOOKUP('Enrollment Form'!G201,'Enrollment Form'!H$11:J$1000,3,FALSE),1))=FALSE,COUNTA('Enrollment Form'!$BT201:$BW201)=4)),\"Y\",\"N\"))","v":"-"},{"$f":"IF($B194=\"N\",\"\",IF('Enrollment Form'!$B201=\"Subscriber\",\"-\",IF(COUNTA('Enrollment Form'!$BL201,'Enrollment Form'!$BN201)=2,\"Y\",\"N\")))","v":""},{"$f":"IF($B194=\"N\",\"\",IF(OR('Enrollment Form'!$AX201=\"\",'Enrollment Form'!$AX201=\"No\"),\"-\",IF(AND('Enrollment Form'!$AX201=\"Yes\",COUNTA('Enrollment Form'!$CR201)=1),\"Y\",\"N\")))","v":""},{"$f":"IF(OR('Enrollment Form'!$CR201=\"\",'Enrollment Form'!$CR201=\"No\"),\"-\",IF(COUNTA('Enrollment Form'!$CT201:$CU201)=2,\"Y\",\"N\"))","v":"-"},{"$f":"IF($B194=\"N\",\"\",IF(COUNTIF('Enrollment Form'!$DG201:$DP201,\"Other\")=COUNTA('Enrollment Form'!$DK201,'Enrollment Form'!$DH201,'Enrollment Form'!$DN201,'Enrollment Form'!$DQ201),\"Y\",\"N\"))","v":""},{"$f":"IF($B194=\"N\",\"\",IF(OR('Enrollment Form'!B201<>\"Subscriber\",'Enrollment Form'!C201=\"ROC\",COUNTIF('Enrollment Form'!AV201:AW201,\"Yes\")>=1),\"-\",IF(AND('Enrollment Form'!C201=\"Enroll\",COUNTIF('Enrollment Form'!AV201:AW201,\"No\")=2,'Enrollment Form'!AX201=\"\"),\"N\",\"Y\")))","v":""},{"$f":"IF(OR(B194=\"N\",'Enrollment Form'!B201<>\"Subscriber\",'Enrollment Form'!C201=\"ROC\",'Enrollment Form'!O201<>\"Multiple of Salary\"),\"-\",IF(COUNTA('Enrollment Form'!T201:U201)<2,\"N\",\"Y\"))","v":"-"},{"$f":"IF(B194=\"N\",\"\",IF(OR('Enrollment Form'!C201=\"ROC\",'Enrollment Form'!B201<>\"Subscriber\",'Enrollment Form'!O201=\"Waive\",'Enrollment Form'!O201=\"\"),\"-\",IF('Enrollment Form'!P201=\"\",\"N\",\"Y\")))","v":""},{"$f":"IF($B194=\"N\",\"\",IF(AND('Enrollment Form'!$C201=\"ROC\",'Enrollment Form'!$DR201<>\"\"),\"Y\",IF(AND('Enrollment Form'!$C201=\"ROC\",'Enrollment Form'!$DR201=\"\"),\"N\",IF(AND('Enrollment Form'!$C201=\"Enroll\",'Enrollment Form'!$B201=\"Subscriber\",'Enrollment Form'!$CX201=\"No\",'Enrollment Form'!$DR201=\"\"),\"N\",IF(AND('Enrollment Form'!$C201=\"Enroll\",'Enrollment Form'!$B201=\"Subscriber\",'Enrollment Form'!$CX201=\"Yes\"),\"-\",\"Y\")))))","v":""},{"$f":"IF($B194=\"N\",\"\",IF(AND('Enrollment Form'!$C201=\"ROC\",'Enrollment Form'!$DS201<>\"\"),\"Y\",IF(AND('Enrollment Form'!$C201=\"ROC\",'Enrollment Form'!$DS201=\"\"),\"N\",IF(AND('Enrollment Form'!$C201=\"Enroll\",'Enrollment Form'!$B201=\"Subscriber\",'Enrollment Form'!$CX201=\"No\",'Enrollment Form'!$DS201=\"\"),\"N\",IF(AND('Enrollment Form'!$C201=\"Enroll\",'Enrollment Form'!$B201=\"Subscriber\",'Enrollment Form'!$CX201=\"Yes\"),\"-\",\"Y\")))))","v":""},{"$f":"IF('Enrollment Form'!AH201=\"\",\"\",IF(ISERROR(SEARCH(\".\",'Enrollment Form'!AH201,SEARCH(\"@\",'Enrollment Form'!AH201))),\"N\",\"Y\"))","v":""},{"$f":"IF(OR($B194=\"N\",'Enrollment Form'!$G201=\"\"),\"\",IF('Enrollment Form'!$B201<>\"Subscriber\",\"-\",IF(COUNTIF('Enrollment Form'!$AV201:$AW201,\"Yes\")=2,\"N\",\"Y\")))","v":""},{"$f":"IF(OR('Enrollment Form'!$CJ201=\"\",'Enrollment Form'!$CJ201=\"No\"),\"-\",IF(AND('Enrollment Form'!$CJ201=\"Yes\",'Enrollment Form'!$CK201=\"\"),\"N\",\"Y\"))","v":"-"},{"$f":"IF(OR('Enrollment Form'!$CL201=\"\",'Enrollment Form'!$CL201=\"No\"),\"-\",IF(AND('Enrollment Form'!$CL201=\"Yes\",'Enrollment Form'!$CM201=\"\"),\"N\",\"Y\"))","v":"-"},{"$f":"IF(OR('Enrollment Form'!$CN201=\"\",'Enrollment Form'!$CN201=\"No\"),\"-\",IF(AND('Enrollment Form'!$CN201=\"Yes\",'Enrollment Form'!$CO201=\"\"),\"N\",\"Y\"))","v":"-"},{"$f":"IF(OR('Enrollment Form'!$CN201=\"\",'Enrollment Form'!$CN201=\"No\"),\"-\",IF(AND('Enrollment Form'!$CN201=\"Yes\",'Enrollment Form'!$CP201=\"\"),\"N\",\"Y\"))","v":"-"},{"$f":"IF('Enrollment Form'!B201<>\"Subscriber\",\"-\",IF(AND('Enrollment Form'!B201=\"Subscriber\",'Enrollment Form'!C201=\"Enroll\",'Enrollment Form'!AA201=\"\"),\"N\",\"Y\"))","v":"-"},{"$f":"IF(OR('Enrollment Form'!B201=\"Subscriber\",'Enrollment Form'!B201=\"\"),\"-\",IF('Enrollment Form'!BP201=\"\",\"N\",\"Y\"))","v":"-"},{"$f":"IF('Enrollment Form'!B201<>\"Subscriber\",\"-\",IF(AND('Enrollment Form'!B201=\"Subscriber\",'Enrollment Form'!G201=\"\"),\"N\",\"Y\"))","v":"-"},{"$f":"IF('Enrollment Form'!A201=\"\",\"\",IF('Enrollment Form'!B201=\"Subscriber\",\"-\",IF(AND('Enrollment Form'!B201<>\"Subscriber\",'Enrollment Form'!G201='Enrollment Form'!H201),\"N\",\"Y\")))","v":""},0]
[202,{"$f":"IF('Enrollment Form'!$A202<>\"\",\"Y\",\"N\")","v":"N"},{"$f":"IF(AND('Enrollment Form'!$B202=\"\",'Enrollment Form'!$C202<>\"\"),\"N\",IF($B195=\"N\",\"\",\"Y\"))","v":""},{"$f":"IF(OR($B195=\"N\",'Enrollment Form'!G202=\"\"),\"\",IF('Enrollment Form'!$B202<>\"Subscriber\",\"\",IF('Enrollment Form'!$G202='Enrollment Form'!$H202,\"Y\",\"N\")))","v":""},{"$f":"IF($B195=\"N\",\"\",IF(AND(COUNTIFS('Enrollment Form'!$H$11:$H$1000,'Enrollment Form'!$H202,'Enrollment Form'!$B$11:$B$1000,'Enrollment Form'!$B202)>1,'Enrollment Form'!$H202<>\"\"),\"N\",\"Y\"))","v":""},{"$f":"IF($B195=\"N\",\"\",IF(LEN('Enrollment Form'!$Y202)=0,\"\",IF(LEN('Enrollment Form'!$Y202)<>5,\"N\",\"Y\")))","v":""},{"$f":"IF($B195=\"N\",\"\",IF(LEN('Enrollment Form'!$AD202=0),\"\",IF(LEN('Enrollment Form'!$AD202)<>5,\"N\",\"Y\")))","v":""},{"$f":"IF($B195=\"N\",\"\",IF(LEN('Enrollment Form'!$BS202=0),\"\",IF(LEN('Enrollment Form'!$BS202)<>5,\"N\",\"Y\")))","v":""},{"$f":"IF($B195=\"N\",\"\",IF(LEN('Enrollment Form'!$AE202)=0,\"\",IF(LEN('Enrollment Form'!$AE202)<>10,\"N\",\"Y\")))","v":""},{"$f":"IF($B195=\"N\",\"\",IF(LEN('Enrollment Form'!$AF202)=0,\"\",IF(LEN('Enrollment Form'!$AF202)<>10,\"N\",\"Y\")))","v":""},{"$f":"IF('Enrollment Form'!$O202<>\"Graded\",\"-\",IF(AND('Enrollment Form'!$O202=\"Graded\",'Enrollment Form'!$AR202<>\"\"),\"Y\",\"N\"))","v":"-"},{"$f":"IF($B195=\"N\",\"\",IF(OR('Enrollment Form'!$B202<>\"Subscriber\",'Enrollment Form'!$C202=\"ROC\"),\"-\",IF(AND('Enrollment Form'!$B202=\"Subscriber\",'Enrollment Form'!$C202=\"Enroll\",'Enrollment Form'!$AJ202<>\"\"),\"Y\",\"N\")))","v":""},{"$f":"IF($B195=\"N\",\"\",IF(OR('Enrollment Form'!$B202<>\"Subscriber\",'Enrollment Form'!$C202=\"ROC\"),\"-\",IF(AND('Enrollment Form'!$B202=\"Subscriber\",'Enrollment Form'!$C202=\"Enroll\",'Enrollment Form'!$AK202<>\"\"),\"Y\",\"N\")))","v":""},{"$f":"IF($B195=\"N\",\"\",IF(OR('Enrollment Form'!$B202<>\"Subscriber\",'Enrollment Form'!$C202=\"ROC\"),\"-\",IF(AND('Enrollment Form'!$B202=\"Subscriber\",'Enrollment Form'!$C202=\"Enroll\",'Enrollment Form'!$AL202<>\"\"),\"Y\",\"N\")))","v":""},{"$f":"IF($B195=\"N\",\"\",IF(OR('Enrollment Form'!$B202<>\"Subscriber\",'Enrollment Form'!$C202=\"ROC\"),\"-\",IF(AND('Enrollment Form'!$B202=\"Subscriber\",'Enrollment Form'!$C202=\"Enroll\",'Enrollment Form'!$AP202<>\"\"),\"Y\",\"N\")))","v":""},{"$f":"IF($B195=\"N\",\"\",IF(OR('Enrollment Form'!$B202<>\"Subscriber\",'Enrollment Form'!$C202=\"ROC\"),\"-\",IF(AND('Enrollment Form'!$B202=\"Subscriber\",'Enrollment Form'!$C202=\"Enroll\",'Enrollment Form'!$AQ202<>\"\"),\"Y\",\"N\")))","v":""},{"$f":"IF($B195=\"N\",\"\",IF(OR('Enrollment Form'!$B202<>\"Subscriber\",'Enrollment Form'!$C202=\"ROC\"),\"-\",IF(AND('Enrollment Form'!$B202=\"Subscriber\",'Enrollment Form'!$C202=\"Enroll\",'Enrollment Form'!$AS202<>\"\"),\"Y\",\"N\")))","v":""},{"$f":"IF($B195=\"N\",\"\",IF($Q195=\"-\",\"-\",IF(AND($Q195=\"Y\",'Enrollment Form'!$AS202=\"No\"),\"-\",IF(AND($Q195=\"Y\",'Enrollment Form'!$AS202=\"Yes\",'Enrollment Form'!$AT202<>\"\"),\"Y\",\"N\"))))","v":""},{"$f":"IF($B195=\"N\",\"\",IF(OR('Enrollment Form'!$B202<>\"Subscriber\",'Enrollment Form'!$C202=\"ROC\"),\"-\",IF(AND('Enrollment Form'!$B202=\"Subscriber\",'Enrollment Form'!$C202=\"Enroll\",'Enrollment Form'!$CV202<>\"\"),\"Y\",\"N\")))","v":""},{"$f":"IF($B195=\"N\",\"\",IF($S195=\"-\",\"-\",IF(AND($S195=\"Y\",'Enrollment Form'!$CV202=\"No\"),\"-\",IF(AND($S195=\"Y\",'Enrollment Form'!$CV202=\"Yes\",'Enrollment Form'!$CW202<>\"\"),\"Y\",\"N\"))))","v":""},{"$f":"IF(OR('Enrollment Form'!$AY202=\"Yes\",'Enrollment Form'!$AY202=\"\"),\"-\",IF(OR(AND('Enrollment Form'!$AY202=\"No\",ISERROR(FIND(\"HMO\",VLOOKUP('Enrollment Form'!G202,'Enrollment Form'!H$11:J$1000,3,FALSE),1))=FALSE,COUNTA('Enrollment Form'!$AZ202:$BC202)=4),AND('Enrollment Form'!$AY202=\"No\",ISERROR(FIND(\"HMO\",VLOOKUP('Enrollment Form'!G202,'Enrollment Form'!H$11:J$1000,3,FALSE),1))=FALSE,COUNTA('Enrollment Form'!$BT202:$BW202)=4)),\"Y\",\"N\"))","v":"-"},{"$f":"IF($B195=\"N\",\"\",IF('Enrollment Form'!$B202=\"Subscriber\",\"-\",IF(COUNTA('Enrollment Form'!$BL202,'Enrollment Form'!$BN202)=2,\"Y\",\"N\")))","v":""},{"$f":"IF($B195=\"N\",\"\",IF(OR('Enrollment Form'!$AX202=\"\",'Enrollment Form'!$AX202=\"No\"),\"-\",IF(AND('Enrollment Form'!$AX202=\"Yes\",COUNTA('Enrollment Form'!$CR202)=1),\"Y\",\"N\")))","v":""},{"$f":"IF(OR('Enrollment Form'!$CR202=\"\",'Enrollment Form'!$CR202=\"No\"),\"-\",IF(COUNTA('Enrollment Form'!$CT202:$CU202)=2,\"Y\",\"N\"))","v":"-"},{"$f":"IF($B195=\"N\",\"\",IF(COUNTIF('Enrollment Form'!$DG202:$DP202,\"Other\")=COUNTA('Enrollment Form'!$DK202,'Enrollment Form'!$DH202,'Enrollment Form'!$DN202,'Enrollment Form'!$DQ202),\"Y\",\"N\"))","v":""},{"$f":"IF($B195=\"N\",\"\",IF(OR('Enrollment Form'!B202<>\"Subscriber\",'Enrollment Form'!C202=\"ROC\",COUNTIF('Enrollment Form'!AV202:AW202,\"Yes\")>=1),\"-\",IF(AND('Enrollment Form'!C202=\"Enroll\",COUNTIF('Enrollment Form'!AV202:AW202,\"No\")=2,'Enrollment Form'!AX202=\"\"),\"N\",\"Y\")))","v":""},{"$f":"IF(OR(B195=\"N\",'Enrollment Form'!B202<>\"Subscriber\",'Enrollment Form'!C202=\"ROC\",'Enrollment Form'!O202<>\"Multiple of Salary\"),\"-\",IF(COUNTA('Enrollment Form'!T202:U202)<2,\"N\",\"Y\"))","v":"-"},{"$f":"IF(B195=\"N\",\"\",IF(OR('Enrollment Form'!C202=\"ROC\",'Enrollment Form'!B202<>\"Subscriber\",'Enrollment Form'!O202=\"Waive\",'Enrollment Form'!O202=\"\"),\"-\",IF('Enrollment Form'!P202=\"\",\"N\",\"Y\")))","v":""},{"$f":"IF($B195=\"N\",\"\",IF(AND('Enrollment Form'!$C202=\"ROC\",'Enrollment Form'!$DR202<>\"\"),\"Y\",IF(AND('Enrollment Form'!$C202=\"ROC\",'Enrollment Form'!$DR202=\"\"),\"N\",IF(AND('Enrollment Form'!$C202=\"Enroll\",'Enrollment Form'!$B202=\"Subscriber\",'Enrollment Form'!$CX202=\"No\",'Enrollment Form'!$DR202=\"\"),\"N\",IF(AND('Enrollment Form'!$C202=\"Enroll\",'Enrollment Form'!$B202=\"Subscriber\",'Enrollment Form'!$CX202=\"Yes\"),\"-\",\"Y\")))))","v":""},{"$f":"IF($B195=\"N\",\"\",IF(AND('Enrollment Form'!$C202=\"ROC\",'Enrollment Form'!$DS202<>\"\"),\"Y\",IF(AND('Enrollment Form'!$C202=\"ROC\",'Enrollment Form'!$DS202=\"\"),\"N\",IF(AND('Enrollment Form'!$C202=\"Enroll\",'Enrollment Form'!$B202=\"Subscriber\",'Enrollment Form'!$CX202=\"No\",'Enrollment Form'!$DS202=\"\"),\"N\",IF(AND('Enrollment Form'!$C202=\"Enroll\",'Enrollment Form'!$B202=\"Subscriber\",'Enrollment Form'!$CX202=\"Yes\"),\"-\",\"Y\")))))","v":""},{"$f":"IF('Enrollment Form'!AH202=\"\",\"\",IF(ISERROR(SEARCH(\".\",'Enrollment Form'!AH202,SEARCH(\"@\",'Enrollment Form'!AH202))),\"N\",\"Y\"))","v":""},{"$f":"IF(OR($B195=\"N\",'Enrollment Form'!$G202=\"\"),\"\",IF('Enrollment Form'!$B202<>\"Subscriber\",\"-\",IF(COUNTIF('Enrollment Form'!$AV202:$AW202,\"Yes\")=2,\"N\",\"Y\")))","v":""},{"$f":"IF(OR('Enrollment Form'!$CJ202=\"\",'Enrollment Form'!$CJ202=\"No\"),\"-\",IF(AND('Enrollment Form'!$CJ202=\"Yes\",'Enrollment Form'!$CK202=\"\"),\"N\",\"Y\"))","v":"-"},{"$f":"IF(OR('Enrollment Form'!$CL202=\"\",'Enrollment Form'!$CL202=\"No\"),\"-\",IF(AND('Enrollment Form'!$CL202=\"Yes\",'Enrollment Form'!$CM202=\"\"),\"N\",\"Y\"))","v":"-"},{"$f":"IF(OR('Enrollment Form'!$CN202=\"\",'Enrollment Form'!$CN202=\"No\"),\"-\",IF(AND('Enrollment Form'!$CN202=\"Yes\",'Enrollment Form'!$CO202=\"\"),\"N\",\"Y\"))","v":"-"},{"$f":"IF(OR('Enrollment Form'!$CN202=\"\",'Enrollment Form'!$CN202=\"No\"),\"-\",IF(AND('Enrollment Form'!$CN202=\"Yes\",'Enrollment Form'!$CP202=\"\"),\"N\",\"Y\"))","v":"-"},{"$f":"IF('Enrollment Form'!B202<>\"Subscriber\",\"-\",IF(AND('Enrollment Form'!B202=\"Subscriber\",'Enrollment Form'!C202=\"Enroll\",'Enrollment Form'!AA202=\"\"),\"N\",\"Y\"))","v":"-"},{"$f":"IF(OR('Enrollment Form'!B202=\"Subscriber\",'Enrollment Form'!B202=\"\"),\"-\",IF('Enrollment Form'!BP202=\"\",\"N\",\"Y\"))","v":"-"},{"$f":"IF('Enrollment Form'!B202<>\"Subscriber\",\"-\",IF(AND('Enrollment Form'!B202=\"Subscriber\",'Enrollment Form'!G202=\"\"),\"N\",\"Y\"))","v":"-"},{"$f":"IF('Enrollment Form'!A202=\"\",\"\",IF('Enrollment Form'!B202=\"Subscriber\",\"-\",IF(AND('Enrollment Form'!B202<>\"Subscriber\",'Enrollment Form'!G202='Enrollment Form'!H202),\"N\",\"Y\")))","v":""},0]
[203,{"$f":"IF('Enrollment Form'!$A203<>\"\",\"Y\",\"N\")","v":"N"},{"$f":"IF(AND('Enrollment Form'!$B203=\"\",'Enrollment Form'!$C203<>\"\"),\"N\",IF($B196=\"N\",\"\",\"Y\"))","v":""},{"$f":"IF(OR($B196=\"N\",'Enrollment Form'!G203=\"\"),\"\",IF('Enrollment Form'!$B203<>\"Subscriber\",\"\",IF('Enrollment Form'!$G203='Enrollment Form'!$H203,\"Y\",\"N\")))","v":""},{"$f":"IF($B196=\"N\",\"\",IF(AND(COUNTIFS('Enrollment Form'!$H$11:$H$1000,'Enrollment Form'!$H203,'Enrollment Form'!$B$11:$B$1000,'Enrollment Form'!$B203)>1,'Enrollment Form'!$H203<>\"\"),\"N\",\"Y\"))","v":""},{"$f":"IF($B196=\"N\",\"\",IF(LEN('Enrollment Form'!$Y203)=0,\"\",IF(LEN('Enrollment Form'!$Y203)<>5,\"N\",\"Y\")))","v":""},{"$f":"IF($B196=\"N\",\"\",IF(LEN('Enrollment Form'!$AD203=0),\"\",IF(LEN('Enrollment Form'!$AD203)<>5,\"N\",\"Y\")))","v":""},{"$f":"IF($B196=\"N\",\"\",IF(LEN('Enrollment Form'!$BS203=0),\"\",IF(LEN('Enrollment Form'!$BS203)<>5,\"N\",\"Y\")))","v":""},{"$f":"IF($B196=\"N\",\"\",IF(LEN('Enrollment Form'!$AE203)=0,\"\",IF(LEN('Enrollment Form'!$AE203)<>10,\"N\",\"Y\")))","v":""},{"$f":"IF($B196=\"N\",\"\",IF(LEN('Enrollment Form'!$AF203)=0,\"\",IF(LEN('Enrollment Form'!$AF203)<>10,\"N\",\"Y\")))","v":""},{"$f":"IF('Enrollment Form'!$O203<>\"Graded\",\"-\",IF(AND('Enrollment Form'!$O203=\"Graded\",'Enrollment Form'!$AR203<>\"\"),\"Y\",\"N\"))","v":"-"},{"$f":"IF($B196=\"N\",\"\",IF(OR('Enrollment Form'!$B203<>\"Subscriber\",'Enrollment Form'!$C203=\"ROC\"),\"-\",IF(AND('Enrollment Form'!$B203=\"Subscriber\",'Enrollment Form'!$C203=\"Enroll\",'Enrollment Form'!$AJ203<>\"\"),\"Y\",\"N\")))","v":""},{"$f":"IF($B196=\"N\",\"\",IF(OR('Enrollment Form'!$B203<>\"Subscriber\",'Enrollment Form'!$C203=\"ROC\"),\"-\",IF(AND('Enrollment Form'!$B203=\"Subscriber\",'Enrollment Form'!$C203=\"Enroll\",'Enrollment Form'!$AK203<>\"\"),\"Y\",\"N\")))","v":""},{"$f":"IF($B196=\"N\",\"\",IF(OR('Enrollment Form'!$B203<>\"Subscriber\",'Enrollment Form'!$C203=\"ROC\"),\"-\",IF(AND('Enrollment Form'!$B203=\"Subscriber\",'Enrollment Form'!$C203=\"Enroll\",'Enrollment Form'!$AL203<>\"\"),\"Y\",\"N\")))","v":""},{"$f":"IF($B196=\"N\",\"\",IF(OR('Enrollment Form'!$B203<>\"Subscriber\",'Enrollment Form'!$C203=\"ROC\"),\"-\",IF(AND('Enrollment Form'!$B203=\"Subscriber\",'Enrollment Form'!$C203=\"Enroll\",'Enrollment Form'!$AP203<>\"\"),\"Y\",\"N\")))","v":""},{"$f":"IF($B196=\"N\",\"\",IF(OR('Enrollment Form'!$B203<>\"Subscriber\",'Enrollment Form'!$C203=\"ROC\"),\"-\",IF(AND('Enrollment Form'!$B203=\"Subscriber\",'Enrollment Form'!$C203=\"Enroll\",'Enrollment Form'!$AQ203<>\"\"),\"Y\",\"N\")))","v":""},{"$f":"IF($B196=\"N\",\"\",IF(OR('Enrollment Form'!$B203<>\"Subscriber\",'Enrollment Form'!$C203=\"ROC\"),\"-\",IF(AND('Enrollment Form'!$B203=\"Subscriber\",'Enrollment Form'!$C203=\"Enroll\",'Enrollment Form'!$AS203<>\"\"),\"Y\",\"N\")))","v":""},{"$f":"IF($B196=\"N\",\"\",IF($Q196=\"-\",\"-\",IF(AND($Q196=\"Y\",'Enrollment Form'!$AS203=\"No\"),\"-\",IF(AND($Q196=\"Y\",'Enrollment Form'!$AS203=\"Yes\",'Enrollment Form'!$AT203<>\"\"),\"Y\",\"N\"))))","v":""},{"$f":"IF($B196=\"N\",\"\",IF(OR('Enrollment Form'!$B203<>\"Subscriber\",'Enrollment Form'!$C203=\"ROC\"),\"-\",IF(AND('Enrollment Form'!$B203=\"Subscriber\",'Enrollment Form'!$C203=\"Enroll\",'Enrollment Form'!$CV203<>\"\"),\"Y\",\"N\")))","v":""},{"$f":"IF($B196=\"N\",\"\",IF($S196=\"-\",\"-\",IF(AND($S196=\"Y\",'Enrollment Form'!$CV203=\"No\"),\"-\",IF(AND($S196=\"Y\",'Enrollment Form'!$CV203=\"Yes\",'Enrollment Form'!$CW203<>\"\"),\"Y\",\"N\"))))","v":""},{"$f":"IF(OR('Enrollment Form'!$AY203=\"Yes\",'Enrollment Form'!$AY203=\"\"),\"-\",IF(OR(AND('Enrollment Form'!$AY203=\"No\",ISERROR(FIND(\"HMO\",VLOOKUP('Enrollment Form'!G203,'Enrollment Form'!H$11:J$1000,3,FALSE),1))=FALSE,COUNTA('Enrollment Form'!$AZ203:$BC203)=4),AND('Enrollment Form'!$AY203=\"No\",ISERROR(FIND(\"HMO\",VLOOKUP('Enrollment Form'!G203,'Enrollment Form'!H$11:J$1000,3,FALSE),1))=FALSE,COUNTA('Enrollment Form'!$BT203:$BW203)=4)),\"Y\",\"N\"))","v":"-"},{"$f":"IF($B196=\"N\",\"\",IF('Enrollment Form'!$B203=\"Subscriber\",\"-\",IF(COUNTA('Enrollment Form'!$BL203,'Enrollment Form'!$BN203)=2,\"Y\",\"N\")))","v":""},{"$f":"IF($B196=\"N\",\"\",IF(OR('Enrollment Form'!$AX203=\"\",'Enrollment Form'!$AX203=\"No\"),\"-\",IF(AND('Enrollment Form'!$AX203=\"Yes\",COUNTA('Enrollment Form'!$CR203)=1),\"Y\",\"N\")))","v":""},{"$f":"IF(OR('Enrollment Form'!$CR203=\"\",'Enrollment Form'!$CR203=\"No\"),\"-\",IF(COUNTA('Enrollment Form'!$CT203:$CU203)=2,\"Y\",\"N\"))","v":"-"},{"$f":"IF($B196=\"N\",\"\",IF(COUNTIF('Enrollment Form'!$DG203:$DP203,\"Other\")=COUNTA('Enrollment Form'!$DK203,'Enrollment Form'!$DH203,'Enrollment Form'!$DN203,'Enrollment Form'!$DQ203),\"Y\",\"N\"))","v":""},{"$f":"IF($B196=\"N\",\"\",IF(OR('Enrollment Form'!B203<>\"Subscriber\",'Enrollment Form'!C203=\"ROC\",COUNTIF('Enrollment Form'!AV203:AW203,\"Yes\")>=1),\"-\",IF(AND('Enrollment Form'!C203=\"Enroll\",COUNTIF('Enrollment Form'!AV203:AW203,\"No\")=2,'Enrollment Form'!AX203=\"\"),\"N\",\"Y\")))","v":""},{"$f":"IF(OR(B196=\"N\",'Enrollment Form'!B203<>\"Subscriber\",'Enrollment Form'!C203=\"ROC\",'Enrollment Form'!O203<>\"Multiple of Salary\"),\"-\",IF(COUNTA('Enrollment Form'!T203:U203)<2,\"N\",\"Y\"))","v":"-"},{"$f":"IF(B196=\"N\",\"\",IF(OR('Enrollment Form'!C203=\"ROC\",'Enrollment Form'!B203<>\"Subscriber\",'Enrollment Form'!O203=\"Waive\",'Enrollment Form'!O203=\"\"),\"-\",IF('Enrollment Form'!P203=\"\",\"N\",\"Y\")))","v":""},{"$f":"IF($B196=\"N\",\"\",IF(AND('Enrollment Form'!$C203=\"ROC\",'Enrollment Form'!$DR203<>\"\"),\"Y\",IF(AND('Enrollment Form'!$C203=\"ROC\",'Enrollment Form'!$DR203=\"\"),\"N\",IF(AND('Enrollment Form'!$C203=\"Enroll\",'Enrollment Form'!$B203=\"Subscriber\",'Enrollment Form'!$CX203=\"No\",'Enrollment Form'!$DR203=\"\"),\"N\",IF(AND('Enrollment Form'!$C203=\"Enroll\",'Enrollment Form'!$B203=\"Subscriber\",'Enrollment Form'!$CX203=\"Yes\"),\"-\",\"Y\")))))","v":""},{"$f":"IF($B196=\"N\",\"\",IF(AND('Enrollment Form'!$C203=\"ROC\",'Enrollment Form'!$DS203<>\"\"),\"Y\",IF(AND('Enrollment Form'!$C203=\"ROC\",'Enrollment Form'!$DS203=\"\"),\"N\",IF(AND('Enrollment Form'!$C203=\"Enroll\",'Enrollment Form'!$B203=\"Subscriber\",'Enrollment Form'!$CX203=\"No\",'Enrollment Form'!$DS203=\"\"),\"N\",IF(AND('Enrollment Form'!$C203=\"Enroll\",'Enrollment Form'!$B203=\"Subscriber\",'Enrollment Form'!$CX203=\"Yes\"),\"-\",\"Y\")))))","v":""},{"$f":"IF('Enrollment Form'!AH203=\"\",\"\",IF(ISERROR(SEARCH(\".\",'Enrollment Form'!AH203,SEARCH(\"@\",'Enrollment Form'!AH203))),\"N\",\"Y\"))","v":""},{"$f":"IF(OR($B196=\"N\",'Enrollment Form'!$G203=\"\"),\"\",IF('Enrollment Form'!$B203<>\"Subscriber\",\"-\",IF(COUNTIF('Enrollment Form'!$AV203:$AW203,\"Yes\")=2,\"N\",\"Y\")))","v":""},{"$f":"IF(OR('Enrollment Form'!$CJ203=\"\",'Enrollment Form'!$CJ203=\"No\"),\"-\",IF(AND('Enrollment Form'!$CJ203=\"Yes\",'Enrollment Form'!$CK203=\"\"),\"N\",\"Y\"))","v":"-"},{"$f":"IF(OR('Enrollment Form'!$CL203=\"\",'Enrollment Form'!$CL203=\"No\"),\"-\",IF(AND('Enrollment Form'!$CL203=\"Yes\",'Enrollment Form'!$CM203=\"\"),\"N\",\"Y\"))","v":"-"},{"$f":"IF(OR('Enrollment Form'!$CN203=\"\",'Enrollment Form'!$CN203=\"No\"),\"-\",IF(AND('Enrollment Form'!$CN203=\"Yes\",'Enrollment Form'!$CO203=\"\"),\"N\",\"Y\"))","v":"-"},{"$f":"IF(OR('Enrollment Form'!$CN203=\"\",'Enrollment Form'!$CN203=\"No\"),\"-\",IF(AND('Enrollment Form'!$CN203=\"Yes\",'Enrollment Form'!$CP203=\"\"),\"N\",\"Y\"))","v":"-"},{"$f":"IF('Enrollment Form'!B203<>\"Subscriber\",\"-\",IF(AND('Enrollment Form'!B203=\"Subscriber\",'Enrollment Form'!C203=\"Enroll\",'Enrollment Form'!AA203=\"\"),\"N\",\"Y\"))","v":"-"},{"$f":"IF(OR('Enrollment Form'!B203=\"Subscriber\",'Enrollment Form'!B203=\"\"),\"-\",IF('Enrollment Form'!BP203=\"\",\"N\",\"Y\"))","v":"-"},{"$f":"IF('Enrollment Form'!B203<>\"Subscriber\",\"-\",IF(AND('Enrollment Form'!B203=\"Subscriber\",'Enrollment Form'!G203=\"\"),\"N\",\"Y\"))","v":"-"},{"$f":"IF('Enrollment Form'!A203=\"\",\"\",IF('Enrollment Form'!B203=\"Subscriber\",\"-\",IF(AND('Enrollment Form'!B203<>\"Subscriber\",'Enrollment Form'!G203='Enrollment Form'!H203),\"N\",\"Y\")))","v":""},{"$f":"COUNTIF(C196:AN196,\"N\")","v":0}]
[204,{"$f":"IF('Enrollment Form'!$A204<>\"\",\"Y\",\"N\")","v":"N"},{"$f":"IF(AND('Enrollment Form'!$B204=\"\",'Enrollment Form'!$C204<>\"\"),\"N\",IF($B197=\"N\",\"\",\"Y\"))","v":""},{"$f":"IF(OR($B197=\"N\",'Enrollment Form'!G204=\"\"),\"\",IF('Enrollment Form'!$B204<>\"Subscriber\",\"\",IF('Enrollment Form'!$G204='Enrollment Form'!$H204,\"Y\",\"N\")))","v":""},{"$f":"IF($B197=\"N\",\"\",IF(AND(COUNTIFS('Enrollment Form'!$H$11:$H$1000,'Enrollment Form'!$H204,'Enrollment Form'!$B$11:$B$1000,'Enrollment Form'!$B204)>1,'Enrollment Form'!$H204<>\"\"),\"N\",\"Y\"))","v":""},{"$f":"IF($B197=\"N\",\"\",IF(LEN('Enrollment Form'!$Y204)=0,\"\",IF(LEN('Enrollment Form'!$Y204)<>5,\"N\",\"Y\")))","v":""},{"$f":"IF($B197=\"N\",\"\",IF(LEN('Enrollment Form'!$AD204=0),\"\",IF(LEN('Enrollment Form'!$AD204)<>5,\"N\",\"Y\")))","v":""},{"$f":"IF($B197=\"N\",\"\",IF(LEN('Enrollment Form'!$BS204=0),\"\",IF(LEN('Enrollment Form'!$BS204)<>5,\"N\",\"Y\")))","v":""},{"$f":"IF($B197=\"N\",\"\",IF(LEN('Enrollment Form'!$AE204)=0,\"\",IF(LEN('Enrollment Form'!$AE204)<>10,\"N\",\"Y\")))","v":""},{"$f":"IF($B197=\"N\",\"\",IF(LEN('Enrollment Form'!$AF204)=0,\"\",IF(LEN('Enrollment Form'!$AF204)<>10,\"N\",\"Y\")))","v":""},{"$f":"IF('Enrollment Form'!$O204<>\"Graded\",\"-\",IF(AND('Enrollment Form'!$O204=\"Graded\",'Enrollment Form'!$AR204<>\"\"),\"Y\",\"N\"))","v":"-"},{"$f":"IF($B197=\"N\",\"\",IF(OR('Enrollment Form'!$B204<>\"Subscriber\",'Enrollment Form'!$C204=\"ROC\"),\"-\",IF(AND('Enrollment Form'!$B204=\"Subscriber\",'Enrollment Form'!$C204=\"Enroll\",'Enrollment Form'!$AJ204<>\"\"),\"Y\",\"N\")))","v":""},{"$f":"IF($B197=\"N\",\"\",IF(OR('Enrollment Form'!$B204<>\"Subscriber\",'Enrollment Form'!$C204=\"ROC\"),\"-\",IF(AND('Enrollment Form'!$B204=\"Subscriber\",'Enrollment Form'!$C204=\"Enroll\",'Enrollment Form'!$AK204<>\"\"),\"Y\",\"N\")))","v":""},{"$f":"IF($B197=\"N\",\"\",IF(OR('Enrollment Form'!$B204<>\"Subscriber\",'Enrollment Form'!$C204=\"ROC\"),\"-\",IF(AND('Enrollment Form'!$B204=\"Subscriber\",'Enrollment Form'!$C204=\"Enroll\",'Enrollment Form'!$AL204<>\"\"),\"Y\",\"N\")))","v":""},{"$f":"IF($B197=\"N\",\"\",IF(OR('Enrollment Form'!$B204<>\"Subscriber\",'Enrollment Form'!$C204=\"ROC\"),\"-\",IF(AND('Enrollment Form'!$B204=\"Subscriber\",'Enrollment Form'!$C204=\"Enroll\",'Enrollment Form'!$AP204<>\"\"),\"Y\",\"N\")))","v":""},{"$f":"IF($B197=\"N\",\"\",IF(OR('Enrollment Form'!$B204<>\"Subscriber\",'Enrollment Form'!$C204=\"ROC\"),\"-\",IF(AND('Enrollment Form'!$B204=\"Subscriber\",'Enrollment Form'!$C204=\"Enroll\",'Enrollment Form'!$AQ204<>\"\"),\"Y\",\"N\")))","v":""},{"$f":"IF($B197=\"N\",\"\",IF(OR('Enrollment Form'!$B204<>\"Subscriber\",'Enrollment Form'!$C204=\"ROC\"),\"-\",IF(AND('Enrollment Form'!$B204=\"Subscriber\",'Enrollment Form'!$C204=\"Enroll\",'Enrollment Form'!$AS204<>\"\"),\"Y\",\"N\")))","v":""},{"$f":"IF($B197=\"N\",\"\",IF($Q197=\"-\",\"-\",IF(AND($Q197=\"Y\",'Enrollment Form'!$AS204=\"No\"),\"-\",IF(AND($Q197=\"Y\",'Enrollment Form'!$AS204=\"Yes\",'Enrollment Form'!$AT204<>\"\"),\"Y\",\"N\"))))","v":""},{"$f":"IF($B197=\"N\",\"\",IF(OR('Enrollment Form'!$B204<>\"Subscriber\",'Enrollment Form'!$C204=\"ROC\"),\"-\",IF(AND('Enrollment Form'!$B204=\"Subscriber\",'Enrollment Form'!$C204=\"Enroll\",'Enrollment Form'!$CV204<>\"\"),\"Y\",\"N\")))","v":""},{"$f":"IF($B197=\"N\",\"\",IF($S197=\"-\",\"-\",IF(AND($S197=\"Y\",'Enrollment Form'!$CV204=\"No\"),\"-\",IF(AND($S197=\"Y\",'Enrollment Form'!$CV204=\"Yes\",'Enrollment Form'!$CW204<>\"\"),\"Y\",\"N\"))))","v":""},{"$f":"IF(OR('Enrollment Form'!$AY204=\"Yes\",'Enrollment Form'!$AY204=\"\"),\"-\",IF(OR(AND('Enrollment Form'!$AY204=\"No\",ISERROR(FIND(\"HMO\",VLOOKUP('Enrollment Form'!G204,'Enrollment Form'!H$11:J$1000,3,FALSE),1))=FALSE,COUNTA('Enrollment Form'!$AZ204:$BC204)=4),AND('Enrollment Form'!$AY204=\"No\",ISERROR(FIND(\"HMO\",VLOOKUP('Enrollment Form'!G204,'Enrollment Form'!H$11:J$1000,3,FALSE),1))=FALSE,COUNTA('Enrollment Form'!$BT204:$BW204)=4)),\"Y\",\"N\"))","v":"-"},{"$f":"IF($B197=\"N\",\"\",IF('Enrollment Form'!$B204=\"Subscriber\",\"-\",IF(COUNTA('Enrollment Form'!$BL204,'Enrollment Form'!$BN204)=2,\"Y\",\"N\")))","v":""},{"$f":"IF($B197=\"N\",\"\",IF(OR('Enrollment Form'!$AX204=\"\",'Enrollment Form'!$AX204=\"No\"),\"-\",IF(AND('Enrollment Form'!$AX204=\"Yes\",COUNTA('Enrollment Form'!$CR204)=1),\"Y\",\"N\")))","v":""},{"$f":"IF(OR('Enrollment Form'!$CR204=\"\",'Enrollment Form'!$CR204=\"No\"),\"-\",IF(COUNTA('Enrollment Form'!$CT204:$CU204)=2,\"Y\",\"N\"))","v":"-"},{"$f":"IF($B197=\"N\",\"\",IF(COUNTIF('Enrollment Form'!$DG204:$DP204,\"Other\")=COUNTA('Enrollment Form'!$DK204,'Enrollment Form'!$DH204,'Enrollment Form'!$DN204,'Enrollment Form'!$DQ204),\"Y\",\"N\"))","v":""},{"$f":"IF($B197=\"N\",\"\",IF(OR('Enrollment Form'!B204<>\"Subscriber\",'Enrollment Form'!C204=\"ROC\",COUNTIF('Enrollment Form'!AV204:AW204,\"Yes\")>=1),\"-\",IF(AND('Enrollment Form'!C204=\"Enroll\",COUNTIF('Enrollment Form'!AV204:AW204,\"No\")=2,'Enrollment Form'!AX204=\"\"),\"N\",\"Y\")))","v":""},{"$f":"IF(OR(B197=\"N\",'Enrollment Form'!B204<>\"Subscriber\",'Enrollment Form'!C204=\"ROC\",'Enrollment Form'!O204<>\"Multiple of Salary\"),\"-\",IF(COUNTA('Enrollment Form'!T204:U204)<2,\"N\",\"Y\"))","v":"-"},{"$f":"IF(B197=\"N\",\"\",IF(OR('Enrollment Form'!C204=\"ROC\",'Enrollment Form'!B204<>\"Subscriber\",'Enrollment Form'!O204=\"Waive\",'Enrollment Form'!O204=\"\"),\"-\",IF('Enrollment Form'!P204=\"\",\"N\",\"Y\")))","v":""},{"$f":"IF($B197=\"N\",\"\",IF(AND('Enrollment Form'!$C204=\"ROC\",'Enrollment Form'!$DR204<>\"\"),\"Y\",IF(AND('Enrollment Form'!$C204=\"ROC\",'Enrollment Form'!$DR204=\"\"),\"N\",IF(AND('Enrollment Form'!$C204=\"Enroll\",'Enrollment Form'!$B204=\"Subscriber\",'Enrollment Form'!$CX204=\"No\",'Enrollment Form'!$DR204=\"\"),\"N\",IF(AND('Enrollment Form'!$C204=\"Enroll\",'Enrollment Form'!$B204=\"Subscriber\",'Enrollment Form'!$CX204=\"Yes\"),\"-\",\"Y\")))))","v":""},{"$f":"IF($B197=\"N\",\"\",IF(AND('Enrollment Form'!$C204=\"ROC\",'Enrollment Form'!$DS204<>\"\"),\"Y\",IF(AND('Enrollment Form'!$C204=\"ROC\",'Enrollment Form'!$DS204=\"\"),\"N\",IF(AND('Enrollment Form'!$C204=\"Enroll\",'Enrollment Form'!$B204=\"Subscriber\",'Enrollment Form'!$CX204=\"No\",'Enrollment Form'!$DS204=\"\"),\"N\",IF(AND('Enrollment Form'!$C204=\"Enroll\",'Enrollment Form'!$B204=\"Subscriber\",'Enrollment Form'!$CX204=\"Yes\"),\"-\",\"Y\")))))","v":""},{"$f":"IF('Enrollment Form'!AH204=\"\",\"\",IF(ISERROR(SEARCH(\".\",'Enrollment Form'!AH204,SEARCH(\"@\",'Enrollment Form'!AH204))),\"N\",\"Y\"))","v":""},{"$f":"IF(OR($B197=\"N\",'Enrollment Form'!$G204=\"\"),\"\",IF('Enrollment Form'!$B204<>\"Subscriber\",\"-\",IF(COUNTIF('Enrollment Form'!$AV204:$AW204,\"Yes\")=2,\"N\",\"Y\")))","v":""},{"$f":"IF(OR('Enrollment Form'!$CJ204=\"\",'Enrollment Form'!$CJ204=\"No\"),\"-\",IF(AND('Enrollment Form'!$CJ204=\"Yes\",'Enrollment Form'!$CK204=\"\"),\"N\",\"Y\"))","v":"-"},{"$f":"IF(OR('Enrollment Form'!$CL204=\"\",'Enrollment Form'!$CL204=\"No\"),\"-\",IF(AND('Enrollment Form'!$CL204=\"Yes\",'Enrollment Form'!$CM204=\"\"),\"N\",\"Y\"))","v":"-"},{"$f":"IF(OR('Enrollment Form'!$CN204=\"\",'Enrollment Form'!$CN204=\"No\"),\"-\",IF(AND('Enrollment Form'!$CN204=\"Yes\",'Enrollment Form'!$CO204=\"\"),\"N\",\"Y\"))","v":"-"},{"$f":"IF(OR('Enrollment Form'!$CN204=\"\",'Enrollment Form'!$CN204=\"No\"),\"-\",IF(AND('Enrollment Form'!$CN204=\"Yes\",'Enrollment Form'!$CP204=\"\"),\"N\",\"Y\"))","v":"-"},{"$f":"IF('Enrollment Form'!B204<>\"Subscriber\",\"-\",IF(AND('Enrollment Form'!B204=\"Subscriber\",'Enrollment Form'!C204=\"Enroll\",'Enrollment Form'!AA204=\"\"),\"N\",\"Y\"))","v":"-"},{"$f":"IF(OR('Enrollment Form'!B204=\"Subscriber\",'Enrollment Form'!B204=\"\"),\"-\",IF('Enrollment Form'!BP204=\"\",\"N\",\"Y\"))","v":"-"},{"$f":"IF('Enrollment Form'!B204<>\"Subscriber\",\"-\",IF(AND('Enrollment Form'!B204=\"Subscriber\",'Enrollment Form'!G204=\"\"),\"N\",\"Y\"))","v":"-"},{"$f":"IF('Enrollment Form'!A204=\"\",\"\",IF('Enrollment Form'!B204=\"Subscriber\",\"-\",IF(AND('Enrollment Form'!B204<>\"Subscriber\",'Enrollment Form'!G204='Enrollment Form'!H204),\"N\",\"Y\")))","v":""},0]
[{"$f":"1+A197","v":205},{"$f":"IF('Enrollment Form'!$A205<>\"\",\"Y\",\"N\")","v":"N"},{"$f":"IF(AND('Enrollment Form'!$B205=\"\",'Enrollment Form'!$C205<>\"\"),\"N\",IF($B198=\"N\",\"\",\"Y\"))","v":""},{"$f":"IF(OR($B198=\"N\",'Enrollment Form'!G205=\"\"),\"\",IF('Enrollment Form'!$B205<>\"Subscriber\",\"\",IF('Enrollment Form'!$G205='Enrollment Form'!$H205,\"Y\",\"N\")))","v":""},{"$f":"IF($B198=\"N\",\"\",IF(AND(COUNTIFS('Enrollment Form'!$H$11:$H$1000,'Enrollment Form'!$H205,'Enrollment Form'!$B$11:$B$1000,'Enrollment Form'!$B205)>1,'Enrollment Form'!$H205<>\"\"),\"N\",\"Y\"))","v":""},{"$f":"IF($B198=\"N\",\"\",IF(LEN('Enrollment Form'!$Y205)=0,\"\",IF(LEN('Enrollment Form'!$Y205)<>5,\"N\",\"Y\")))","v":""},{"$f":"IF($B198=\"N\",\"\",IF(LEN('Enrollment Form'!$AD205=0),\"\",IF(LEN('Enrollment Form'!$AD205)<>5,\"N\",\"Y\")))","v":""},{"$f":"IF($B198=\"N\",\"\",IF(LEN('Enrollment Form'!$BS205=0),\"\",IF(LEN('Enrollment Form'!$BS205)<>5,\"N\",\"Y\")))","v":""},{"$f":"IF($B198=\"N\",\"\",IF(LEN('Enrollment Form'!$AE205)=0,\"\",IF(LEN('Enrollment Form'!$AE205)<>10,\"N\",\"Y\")))","v":""},{"$f":"IF($B198=\"N\",\"\",IF(LEN('Enrollment Form'!$AF205)=0,\"\",IF(LEN('Enrollment Form'!$AF205)<>10,\"N\",\"Y\")))","v":""},{"$f":"IF('Enrollment Form'!$O205<>\"Graded\",\"-\",IF(AND('Enrollment Form'!$O205=\"Graded\",'Enrollment Form'!$AR205<>\"\"),\"Y\",\"N\"))","v":"-"},{"$f":"IF($B198=\"N\",\"\",IF(OR('Enrollment Form'!$B205<>\"Subscriber\",'Enrollment Form'!$C205=\"ROC\"),\"-\",IF(AND('Enrollment Form'!$B205=\"Subscriber\",'Enrollment Form'!$C205=\"Enroll\",'Enrollment Form'!$AJ205<>\"\"),\"Y\",\"N\")))","v":""},{"$f":"IF($B198=\"N\",\"\",IF(OR('Enrollment Form'!$B205<>\"Subscriber\",'Enrollment Form'!$C205=\"ROC\"),\"-\",IF(AND('Enrollment Form'!$B205=\"Subscriber\",'Enrollment Form'!$C205=\"Enroll\",'Enrollment Form'!$AK205<>\"\"),\"Y\",\"N\")))","v":""},{"$f":"IF($B198=\"N\",\"\",IF(OR('Enrollment Form'!$B205<>\"Subscriber\",'Enrollment Form'!$C205=\"ROC\"),\"-\",IF(AND('Enrollment Form'!$B205=\"Subscriber\",'Enrollment Form'!$C205=\"Enroll\",'Enrollment Form'!$AL205<>\"\"),\"Y\",\"N\")))","v":""},{"$f":"IF($B198=\"N\",\"\",IF(OR('Enrollment Form'!$B205<>\"Subscriber\",'Enrollment Form'!$C205=\"ROC\"),\"-\",IF(AND('Enrollment Form'!$B205=\"Subscriber\",'Enrollment Form'!$C205=\"Enroll\",'Enrollment Form'!$AP205<>\"\"),\"Y\",\"N\")))","v":""},{"$f":"IF($B198=\"N\",\"\",IF(OR('Enrollment Form'!$B205<>\"Subscriber\",'Enrollment Form'!$C205=\"ROC\"),\"-\",IF(AND('Enrollment Form'!$B205=\"Subscriber\",'Enrollment Form'!$C205=\"Enroll\",'Enrollment Form'!$AQ205<>\"\"),\"Y\",\"N\")))","v":""},{"$f":"IF($B198=\"N\",\"\",IF(OR('Enrollment Form'!$B205<>\"Subscriber\",'Enrollment Form'!$C205=\"ROC\"),\"-\",IF(AND('Enrollment Form'!$B205=\"Subscriber\",'Enrollment Form'!$C205=\"Enroll\",'Enrollment Form'!$AS205<>\"\"),\"Y\",\"N\")))","v":""},{"$f":"IF($B198=\"N\",\"\",IF($Q198=\"-\",\"-\",IF(AND($Q198=\"Y\",'Enrollment Form'!$AS205=\"No\"),\"-\",IF(AND($Q198=\"Y\",'Enrollment Form'!$AS205=\"Yes\",'Enrollment Form'!$AT205<>\"\"),\"Y\",\"N\"))))","v":""},{"$f":"IF($B198=\"N\",\"\",IF(OR('Enrollment Form'!$B205<>\"Subscriber\",'Enrollment Form'!$C205=\"ROC\"),\"-\",IF(AND('Enrollment Form'!$B205=\"Subscriber\",'Enrollment Form'!$C205=\"Enroll\",'Enrollment Form'!$CV205<>\"\"),\"Y\",\"N\")))","v":""},{"$f":"IF($B198=\"N\",\"\",IF($S198=\"-\",\"-\",IF(AND($S198=\"Y\",'Enrollment Form'!$CV205=\"No\"),\"-\",IF(AND($S198=\"Y\",'Enrollment Form'!$CV205=\"Yes\",'Enrollment Form'!$CW205<>\"\"),\"Y\",\"N\"))))","v":""},{"$f":"IF(OR('Enrollment Form'!$AY205=\"Yes\",'Enrollment Form'!$AY205=\"\"),\"-\",IF(OR(AND('Enrollment Form'!$AY205=\"No\",ISERROR(FIND(\"HMO\",VLOOKUP('Enrollment Form'!G205,'Enrollment Form'!H$11:J$1000,3,FALSE),1))=FALSE,COUNTA('Enrollment Form'!$AZ205:$BC205)=4),AND('Enrollment Form'!$AY205=\"No\",ISERROR(FIND(\"HMO\",VLOOKUP('Enrollment Form'!G205,'Enrollment Form'!H$11:J$1000,3,FALSE),1))=FALSE,COUNTA('Enrollment Form'!$BT205:$BW205)=4)),\"Y\",\"N\"))","v":"-"},{"$f":"IF($B198=\"N\",\"\",IF('Enrollment Form'!$B205=\"Subscriber\",\"-\",IF(COUNTA('Enrollment Form'!$BL205,'Enrollment Form'!$BN205)=2,\"Y\",\"N\")))","v":""},{"$f":"IF($B198=\"N\",\"\",IF(OR('Enrollment Form'!$AX205=\"\",'Enrollment Form'!$AX205=\"No\"),\"-\",IF(AND('Enrollment Form'!$AX205=\"Yes\",COUNTA('Enrollment Form'!$CR205)=1),\"Y\",\"N\")))","v":""},{"$f":"IF(OR('Enrollment Form'!$CR205=\"\",'Enrollment Form'!$CR205=\"No\"),\"-\",IF(COUNTA('Enrollment Form'!$CT205:$CU205)=2,\"Y\",\"N\"))","v":"-"},{"$f":"IF($B198=\"N\",\"\",IF(COUNTIF('Enrollment Form'!$DG205:$DP205,\"Other\")=COUNTA('Enrollment Form'!$DK205,'Enrollment Form'!$DH205,'Enrollment Form'!$DN205,'Enrollment Form'!$DQ205),\"Y\",\"N\"))","v":""},{"$f":"IF($B198=\"N\",\"\",IF(OR('Enrollment Form'!B205<>\"Subscriber\",'Enrollment Form'!C205=\"ROC\",COUNTIF('Enrollment Form'!AV205:AW205,\"Yes\")>=1),\"-\",IF(AND('Enrollment Form'!C205=\"Enroll\",COUNTIF('Enrollment Form'!AV205:AW205,\"No\")=2,'Enrollment Form'!AX205=\"\"),\"N\",\"Y\")))","v":""},{"$f":"IF(OR(B198=\"N\",'Enrollment Form'!B205<>\"Subscriber\",'Enrollment Form'!C205=\"ROC\",'Enrollment Form'!O205<>\"Multiple of Salary\"),\"-\",IF(COUNTA('Enrollment Form'!T205:U205)<2,\"N\",\"Y\"))","v":"-"},{"$f":"IF(B198=\"N\",\"\",IF(OR('Enrollment Form'!C205=\"ROC\",'Enrollment Form'!B205<>\"Subscriber\",'Enrollment Form'!O205=\"Waive\",'Enrollment Form'!O205=\"\"),\"-\",IF('Enrollment Form'!P205=\"\",\"N\",\"Y\")))","v":""},{"$f":"IF($B198=\"N\",\"\",IF(AND('Enrollment Form'!$C205=\"ROC\",'Enrollment Form'!$DR205<>\"\"),\"Y\",IF(AND('Enrollment Form'!$C205=\"ROC\",'Enrollment Form'!$DR205=\"\"),\"N\",IF(AND('Enrollment Form'!$C205=\"Enroll\",'Enrollment Form'!$B205=\"Subscriber\",'Enrollment Form'!$CX205=\"No\",'Enrollment Form'!$DR205=\"\"),\"N\",IF(AND('Enrollment Form'!$C205=\"Enroll\",'Enrollment Form'!$B205=\"Subscriber\",'Enrollment Form'!$CX205=\"Yes\"),\"-\",\"Y\")))))","v":""},{"$f":"IF($B198=\"N\",\"\",IF(AND('Enrollment Form'!$C205=\"ROC\",'Enrollment Form'!$DS205<>\"\"),\"Y\",IF(AND('Enrollment Form'!$C205=\"ROC\",'Enrollment Form'!$DS205=\"\"),\"N\",IF(AND('Enrollment Form'!$C205=\"Enroll\",'Enrollment Form'!$B205=\"Subscriber\",'Enrollment Form'!$CX205=\"No\",'Enrollment Form'!$DS205=\"\"),\"N\",IF(AND('Enrollment Form'!$C205=\"Enroll\",'Enrollment Form'!$B205=\"Subscriber\",'Enrollment Form'!$CX205=\"Yes\"),\"-\",\"Y\")))))","v":""},{"$f":"IF('Enrollment Form'!AH205=\"\",\"\",IF(ISERROR(SEARCH(\".\",'Enrollment Form'!AH205,SEARCH(\"@\",'Enrollment Form'!AH205))),\"N\",\"Y\"))","v":""},{"$f":"IF(OR($B198=\"N\",'Enrollment Form'!$G205=\"\"),\"\",IF('Enrollment Form'!$B205<>\"Subscriber\",\"-\",IF(COUNTIF('Enrollment Form'!$AV205:$AW205,\"Yes\")=2,\"N\",\"Y\")))","v":""},{"$f":"IF(OR('Enrollment Form'!$CJ205=\"\",'Enrollment Form'!$CJ205=\"No\"),\"-\",IF(AND('Enrollment Form'!$CJ205=\"Yes\",'Enrollment Form'!$CK205=\"\"),\"N\",\"Y\"))","v":"-"},{"$f":"IF(OR('Enrollment Form'!$CL205=\"\",'Enrollment Form'!$CL205=\"No\"),\"-\",IF(AND('Enrollment Form'!$CL205=\"Yes\",'Enrollment Form'!$CM205=\"\"),\"N\",\"Y\"))","v":"-"},{"$f":"IF(OR('Enrollment Form'!$CN205=\"\",'Enrollment Form'!$CN205=\"No\"),\"-\",IF(AND('Enrollment Form'!$CN205=\"Yes\",'Enrollment Form'!$CO205=\"\"),\"N\",\"Y\"))","v":"-"},{"$f":"IF(OR('Enrollment Form'!$CN205=\"\",'Enrollment Form'!$CN205=\"No\"),\"-\",IF(AND('Enrollment Form'!$CN205=\"Yes\",'Enrollment Form'!$CP205=\"\"),\"N\",\"Y\"))","v":"-"},{"$f":"IF('Enrollment Form'!B205<>\"Subscriber\",\"-\",IF(AND('Enrollment Form'!B205=\"Subscriber\",'Enrollment Form'!C205=\"Enroll\",'Enrollment Form'!AA205=\"\"),\"N\",\"Y\"))","v":"-"},{"$f":"IF(OR('Enrollment Form'!B205=\"Subscriber\",'Enrollment Form'!B205=\"\"),\"-\",IF('Enrollment Form'!BP205=\"\",\"N\",\"Y\"))","v":"-"},{"$f":"IF('Enrollment Form'!B205<>\"Subscriber\",\"-\",IF(AND('Enrollment Form'!B205=\"Subscriber\",'Enrollment Form'!G205=\"\"),\"N\",\"Y\"))","v":"-"},{"$f":"IF('Enrollment Form'!A205=\"\",\"\",IF('Enrollment Form'!B205=\"Subscriber\",\"-\",IF(AND('Enrollment Form'!B205<>\"Subscriber\",'Enrollment Form'!G205='Enrollment Form'!H205),\"N\",\"Y\")))","v":""},0]
[206,{"$f":"IF('Enrollment Form'!$A206<>\"\",\"Y\",\"N\")","v":"N"},{"$f":"IF(AND('Enrollment Form'!$B206=\"\",'Enrollment Form'!$C206<>\"\"),\"N\",IF($B199=\"N\",\"\",\"Y\"))","v":""},{"$f":"IF(OR($B199=\"N\",'Enrollment Form'!G206=\"\"),\"\",IF('Enrollment Form'!$B206<>\"Subscriber\",\"\",IF('Enrollment Form'!$G206='Enrollment Form'!$H206,\"Y\",\"N\")))","v":""},{"$f":"IF($B199=\"N\",\"\",IF(AND(COUNTIFS('Enrollment Form'!$H$11:$H$1000,'Enrollment Form'!$H206,'Enrollment Form'!$B$11:$B$1000,'Enrollment Form'!$B206)>1,'Enrollment Form'!$H206<>\"\"),\"N\",\"Y\"))","v":""},{"$f":"IF($B199=\"N\",\"\",IF(LEN('Enrollment Form'!$Y206)=0,\"\",IF(LEN('Enrollment Form'!$Y206)<>5,\"N\",\"Y\")))","v":""},{"$f":"IF($B199=\"N\",\"\",IF(LEN('Enrollment Form'!$AD206=0),\"\",IF(LEN('Enrollment Form'!$AD206)<>5,\"N\",\"Y\")))","v":""},{"$f":"IF($B199=\"N\",\"\",IF(LEN('Enrollment Form'!$BS206=0),\"\",IF(LEN('Enrollment Form'!$BS206)<>5,\"N\",\"Y\")))","v":""},{"$f":"IF($B199=\"N\",\"\",IF(LEN('Enrollment Form'!$AE206)=0,\"\",IF(LEN('Enrollment Form'!$AE206)<>10,\"N\",\"Y\")))","v":""},{"$f":"IF($B199=\"N\",\"\",IF(LEN('Enrollment Form'!$AF206)=0,\"\",IF(LEN('Enrollment Form'!$AF206)<>10,\"N\",\"Y\")))","v":""},{"$f":"IF('Enrollment Form'!$O206<>\"Graded\",\"-\",IF(AND('Enrollment Form'!$O206=\"Graded\",'Enrollment Form'!$AR206<>\"\"),\"Y\",\"N\"))","v":"-"},{"$f":"IF($B199=\"N\",\"\",IF(OR('Enrollment Form'!$B206<>\"Subscriber\",'Enrollment Form'!$C206=\"ROC\"),\"-\",IF(AND('Enrollment Form'!$B206=\"Subscriber\",'Enrollment Form'!$C206=\"Enroll\",'Enrollment Form'!$AJ206<>\"\"),\"Y\",\"N\")))","v":""},{"$f":"IF($B199=\"N\",\"\",IF(OR('Enrollment Form'!$B206<>\"Subscriber\",'Enrollment Form'!$C206=\"ROC\"),\"-\",IF(AND('Enrollment Form'!$B206=\"Subscriber\",'Enrollment Form'!$C206=\"Enroll\",'Enrollment Form'!$AK206<>\"\"),\"Y\",\"N\")))","v":""},{"$f":"IF($B199=\"N\",\"\",IF(OR('Enrollment Form'!$B206<>\"Subscriber\",'Enrollment Form'!$C206=\"ROC\"),\"-\",IF(AND('Enrollment Form'!$B206=\"Subscriber\",'Enrollment Form'!$C206=\"Enroll\",'Enrollment Form'!$AL206<>\"\"),\"Y\",\"N\")))","v":""},{"$f":"IF($B199=\"N\",\"\",IF(OR('Enrollment Form'!$B206<>\"Subscriber\",'Enrollment Form'!$C206=\"ROC\"),\"-\",IF(AND('Enrollment Form'!$B206=\"Subscriber\",'Enrollment Form'!$C206=\"Enroll\",'Enrollment Form'!$AP206<>\"\"),\"Y\",\"N\")))","v":""},{"$f":"IF($B199=\"N\",\"\",IF(OR('Enrollment Form'!$B206<>\"Subscriber\",'Enrollment Form'!$C206=\"ROC\"),\"-\",IF(AND('Enrollment Form'!$B206=\"Subscriber\",'Enrollment Form'!$C206=\"Enroll\",'Enrollment Form'!$AQ206<>\"\"),\"Y\",\"N\")))","v":""},{"$f":"IF($B199=\"N\",\"\",IF(OR('Enrollment Form'!$B206<>\"Subscriber\",'Enrollment Form'!$C206=\"ROC\"),\"-\",IF(AND('Enrollment Form'!$B206=\"Subscriber\",'Enrollment Form'!$C206=\"Enroll\",'Enrollment Form'!$AS206<>\"\"),\"Y\",\"N\")))","v":""},{"$f":"IF($B199=\"N\",\"\",IF($Q199=\"-\",\"-\",IF(AND($Q199=\"Y\",'Enrollment Form'!$AS206=\"No\"),\"-\",IF(AND($Q199=\"Y\",'Enrollment Form'!$AS206=\"Yes\",'Enrollment Form'!$AT206<>\"\"),\"Y\",\"N\"))))","v":""},{"$f":"IF($B199=\"N\",\"\",IF(OR('Enrollment Form'!$B206<>\"Subscriber\",'Enrollment Form'!$C206=\"ROC\"),\"-\",IF(AND('Enrollment Form'!$B206=\"Subscriber\",'Enrollment Form'!$C206=\"Enroll\",'Enrollment Form'!$CV206<>\"\"),\"Y\",\"N\")))","v":""},{"$f":"IF($B199=\"N\",\"\",IF($S199=\"-\",\"-\",IF(AND($S199=\"Y\",'Enrollment Form'!$CV206=\"No\"),\"-\",IF(AND($S199=\"Y\",'Enrollment Form'!$CV206=\"Yes\",'Enrollment Form'!$CW206<>\"\"),\"Y\",\"N\"))))","v":""},{"$f":"IF(OR('Enrollment Form'!$AY206=\"Yes\",'Enrollment Form'!$AY206=\"\"),\"-\",IF(OR(AND('Enrollment Form'!$AY206=\"No\",ISERROR(FIND(\"HMO\",VLOOKUP('Enrollment Form'!G206,'Enrollment Form'!H$11:J$1000,3,FALSE),1))=FALSE,COUNTA('Enrollment Form'!$AZ206:$BC206)=4),AND('Enrollment Form'!$AY206=\"No\",ISERROR(FIND(\"HMO\",VLOOKUP('Enrollment Form'!G206,'Enrollment Form'!H$11:J$1000,3,FALSE),1))=FALSE,COUNTA('Enrollment Form'!$BT206:$BW206)=4)),\"Y\",\"N\"))","v":"-"},{"$f":"IF($B199=\"N\",\"\",IF('Enrollment Form'!$B206=\"Subscriber\",\"-\",IF(COUNTA('Enrollment Form'!$BL206,'Enrollment Form'!$BN206)=2,\"Y\",\"N\")))","v":""},{"$f":"IF($B199=\"N\",\"\",IF(OR('Enrollment Form'!$AX206=\"\",'Enrollment Form'!$AX206=\"No\"),\"-\",IF(AND('Enrollment Form'!$AX206=\"Yes\",COUNTA('Enrollment Form'!$CR206)=1),\"Y\",\"N\")))","v":""},{"$f":"IF(OR('Enrollment Form'!$CR206=\"\",'Enrollment Form'!$CR206=\"No\"),\"-\",IF(COUNTA('Enrollment Form'!$CT206:$CU206)=2,\"Y\",\"N\"))","v":"-"},{"$f":"IF($B199=\"N\",\"\",IF(COUNTIF('Enrollment Form'!$DG206:$DP206,\"Other\")=COUNTA('Enrollment Form'!$DK206,'Enrollment Form'!$DH206,'Enrollment Form'!$DN206,'Enrollment Form'!$DQ206),\"Y\",\"N\"))","v":""},{"$f":"IF($B199=\"N\",\"\",IF(OR('Enrollment Form'!B206<>\"Subscriber\",'Enrollment Form'!C206=\"ROC\",COUNTIF('Enrollment Form'!AV206:AW206,\"Yes\")>=1),\"-\",IF(AND('Enrollment Form'!C206=\"Enroll\",COUNTIF('Enrollment Form'!AV206:AW206,\"No\")=2,'Enrollment Form'!AX206=\"\"),\"N\",\"Y\")))","v":""},{"$f":"IF(OR(B199=\"N\",'Enrollment Form'!B206<>\"Subscriber\",'Enrollment Form'!C206=\"ROC\",'Enrollment Form'!O206<>\"Multiple of Salary\"),\"-\",IF(COUNTA('Enrollment Form'!T206:U206)<2,\"N\",\"Y\"))","v":"-"},{"$f":"IF(B199=\"N\",\"\",IF(OR('Enrollment Form'!C206=\"ROC\",'Enrollment Form'!B206<>\"Subscriber\",'Enrollment Form'!O206=\"Waive\",'Enrollment Form'!O206=\"\"),\"-\",IF('Enrollment Form'!P206=\"\",\"N\",\"Y\")))","v":""},{"$f":"IF($B199=\"N\",\"\",IF(AND('Enrollment Form'!$C206=\"ROC\",'Enrollment Form'!$DR206<>\"\"),\"Y\",IF(AND('Enrollment Form'!$C206=\"ROC\",'Enrollment Form'!$DR206=\"\"),\"N\",IF(AND('Enrollment Form'!$C206=\"Enroll\",'Enrollment Form'!$B206=\"Subscriber\",'Enrollment Form'!$CX206=\"No\",'Enrollment Form'!$DR206=\"\"),\"N\",IF(AND('Enrollment Form'!$C206=\"Enroll\",'Enrollment Form'!$B206=\"Subscriber\",'Enrollment Form'!$CX206=\"Yes\"),\"-\",\"Y\")))))","v":""},{"$f":"IF($B199=\"N\",\"\",IF(AND('Enrollment Form'!$C206=\"ROC\",'Enrollment Form'!$DS206<>\"\"),\"Y\",IF(AND('Enrollment Form'!$C206=\"ROC\",'Enrollment Form'!$DS206=\"\"),\"N\",IF(AND('Enrollment Form'!$C206=\"Enroll\",'Enrollment Form'!$B206=\"Subscriber\",'Enrollment Form'!$CX206=\"No\",'Enrollment Form'!$DS206=\"\"),\"N\",IF(AND('Enrollment Form'!$C206=\"Enroll\",'Enrollment Form'!$B206=\"Subscriber\",'Enrollment Form'!$CX206=\"Yes\"),\"-\",\"Y\")))))","v":""},{"$f":"IF('Enrollment Form'!AH206=\"\",\"\",IF(ISERROR(SEARCH(\".\",'Enrollment Form'!AH206,SEARCH(\"@\",'Enrollment Form'!AH206))),\"N\",\"Y\"))","v":""},{"$f":"IF(OR($B199=\"N\",'Enrollment Form'!$G206=\"\"),\"\",IF('Enrollment Form'!$B206<>\"Subscriber\",\"-\",IF(COUNTIF('Enrollment Form'!$AV206:$AW206,\"Yes\")=2,\"N\",\"Y\")))","v":""},{"$f":"IF(OR('Enrollment Form'!$CJ206=\"\",'Enrollment Form'!$CJ206=\"No\"),\"-\",IF(AND('Enrollment Form'!$CJ206=\"Yes\",'Enrollment Form'!$CK206=\"\"),\"N\",\"Y\"))","v":"-"},{"$f":"IF(OR('Enrollment Form'!$CL206=\"\",'Enrollment Form'!$CL206=\"No\"),\"-\",IF(AND('Enrollment Form'!$CL206=\"Yes\",'Enrollment Form'!$CM206=\"\"),\"N\",\"Y\"))","v":"-"},{"$f":"IF(OR('Enrollment Form'!$CN206=\"\",'Enrollment Form'!$CN206=\"No\"),\"-\",IF(AND('Enrollment Form'!$CN206=\"Yes\",'Enrollment Form'!$CO206=\"\"),\"N\",\"Y\"))","v":"-"},{"$f":"IF(OR('Enrollment Form'!$CN206=\"\",'Enrollment Form'!$CN206=\"No\"),\"-\",IF(AND('Enrollment Form'!$CN206=\"Yes\",'Enrollment Form'!$CP206=\"\"),\"N\",\"Y\"))","v":"-"},{"$f":"IF('Enrollment Form'!B206<>\"Subscriber\",\"-\",IF(AND('Enrollment Form'!B206=\"Subscriber\",'Enrollment Form'!C206=\"Enroll\",'Enrollment Form'!AA206=\"\"),\"N\",\"Y\"))","v":"-"},{"$f":"IF(OR('Enrollment Form'!B206=\"Subscriber\",'Enrollment Form'!B206=\"\"),\"-\",IF('Enrollment Form'!BP206=\"\",\"N\",\"Y\"))","v":"-"},{"$f":"IF('Enrollment Form'!B206<>\"Subscriber\",\"-\",IF(AND('Enrollment Form'!B206=\"Subscriber\",'Enrollment Form'!G206=\"\"),\"N\",\"Y\"))","v":"-"},{"$f":"IF('Enrollment Form'!A206=\"\",\"\",IF('Enrollment Form'!B206=\"Subscriber\",\"-\",IF(AND('Enrollment Form'!B206<>\"Subscriber\",'Enrollment Form'!G206='Enrollment Form'!H206),\"N\",\"Y\")))","v":""},0]
[207,{"$f":"IF('Enrollment Form'!$A207<>\"\",\"Y\",\"N\")","v":"N"},{"$f":"IF(AND('Enrollment Form'!$B207=\"\",'Enrollment Form'!$C207<>\"\"),\"N\",IF($B200=\"N\",\"\",\"Y\"))","v":""},{"$f":"IF(OR($B200=\"N\",'Enrollment Form'!G207=\"\"),\"\",IF('Enrollment Form'!$B207<>\"Subscriber\",\"\",IF('Enrollment Form'!$G207='Enrollment Form'!$H207,\"Y\",\"N\")))","v":""},{"$f":"IF($B200=\"N\",\"\",IF(AND(COUNTIFS('Enrollment Form'!$H$11:$H$1000,'Enrollment Form'!$H207,'Enrollment Form'!$B$11:$B$1000,'Enrollment Form'!$B207)>1,'Enrollment Form'!$H207<>\"\"),\"N\",\"Y\"))","v":""},{"$f":"IF($B200=\"N\",\"\",IF(LEN('Enrollment Form'!$Y207)=0,\"\",IF(LEN('Enrollment Form'!$Y207)<>5,\"N\",\"Y\")))","v":""},{"$f":"IF($B200=\"N\",\"\",IF(LEN('Enrollment Form'!$AD207=0),\"\",IF(LEN('Enrollment Form'!$AD207)<>5,\"N\",\"Y\")))","v":""},{"$f":"IF($B200=\"N\",\"\",IF(LEN('Enrollment Form'!$BS207=0),\"\",IF(LEN('Enrollment Form'!$BS207)<>5,\"N\",\"Y\")))","v":""},{"$f":"IF($B200=\"N\",\"\",IF(LEN('Enrollment Form'!$AE207)=0,\"\",IF(LEN('Enrollment Form'!$AE207)<>10,\"N\",\"Y\")))","v":""},{"$f":"IF($B200=\"N\",\"\",IF(LEN('Enrollment Form'!$AF207)=0,\"\",IF(LEN('Enrollment Form'!$AF207)<>10,\"N\",\"Y\")))","v":""},{"$f":"IF('Enrollment Form'!$O207<>\"Graded\",\"-\",IF(AND('Enrollment Form'!$O207=\"Graded\",'Enrollment Form'!$AR207<>\"\"),\"Y\",\"N\"))","v":"-"},{"$f":"IF($B200=\"N\",\"\",IF(OR('Enrollment Form'!$B207<>\"Subscriber\",'Enrollment Form'!$C207=\"ROC\"),\"-\",IF(AND('Enrollment Form'!$B207=\"Subscriber\",'Enrollment Form'!$C207=\"Enroll\",'Enrollment Form'!$AJ207<>\"\"),\"Y\",\"N\")))","v":""},{"$f":"IF($B200=\"N\",\"\",IF(OR('Enrollment Form'!$B207<>\"Subscriber\",'Enrollment Form'!$C207=\"ROC\"),\"-\",IF(AND('Enrollment Form'!$B207=\"Subscriber\",'Enrollment Form'!$C207=\"Enroll\",'Enrollment Form'!$AK207<>\"\"),\"Y\",\"N\")))","v":""},{"$f":"IF($B200=\"N\",\"\",IF(OR('Enrollment Form'!$B207<>\"Subscriber\",'Enrollment Form'!$C207=\"ROC\"),\"-\",IF(AND('Enrollment Form'!$B207=\"Subscriber\",'Enrollment Form'!$C207=\"Enroll\",'Enrollment Form'!$AL207<>\"\"),\"Y\",\"N\")))","v":""},{"$f":"IF($B200=\"N\",\"\",IF(OR('Enrollment Form'!$B207<>\"Subscriber\",'Enrollment Form'!$C207=\"ROC\"),\"-\",IF(AND('Enrollment Form'!$B207=\"Subscriber\",'Enrollment Form'!$C207=\"Enroll\",'Enrollment Form'!$AP207<>\"\"),\"Y\",\"N\")))","v":""},{"$f":"IF($B200=\"N\",\"\",IF(OR('Enrollment Form'!$B207<>\"Subscriber\",'Enrollment Form'!$C207=\"ROC\"),\"-\",IF(AND('Enrollment Form'!$B207=\"Subscriber\",'Enrollment Form'!$C207=\"Enroll\",'Enrollment Form'!$AQ207<>\"\"),\"Y\",\"N\")))","v":""},{"$f":"IF($B200=\"N\",\"\",IF(OR('Enrollment Form'!$B207<>\"Subscriber\",'Enrollment Form'!$C207=\"ROC\"),\"-\",IF(AND('Enrollment Form'!$B207=\"Subscriber\",'Enrollment Form'!$C207=\"Enroll\",'Enrollment Form'!$AS207<>\"\"),\"Y\",\"N\")))","v":""},{"$f":"IF($B200=\"N\",\"\",IF($Q200=\"-\",\"-\",IF(AND($Q200=\"Y\",'Enrollment Form'!$AS207=\"No\"),\"-\",IF(AND($Q200=\"Y\",'Enrollment Form'!$AS207=\"Yes\",'Enrollment Form'!$AT207<>\"\"),\"Y\",\"N\"))))","v":""},{"$f":"IF($B200=\"N\",\"\",IF(OR('Enrollment Form'!$B207<>\"Subscriber\",'Enrollment Form'!$C207=\"ROC\"),\"-\",IF(AND('Enrollment Form'!$B207=\"Subscriber\",'Enrollment Form'!$C207=\"Enroll\",'Enrollment Form'!$CV207<>\"\"),\"Y\",\"N\")))","v":""},{"$f":"IF($B200=\"N\",\"\",IF($S200=\"-\",\"-\",IF(AND($S200=\"Y\",'Enrollment Form'!$CV207=\"No\"),\"-\",IF(AND($S200=\"Y\",'Enrollment Form'!$CV207=\"Yes\",'Enrollment Form'!$CW207<>\"\"),\"Y\",\"N\"))))","v":""},{"$f":"IF(OR('Enrollment Form'!$AY207=\"Yes\",'Enrollment Form'!$AY207=\"\"),\"-\",IF(OR(AND('Enrollment Form'!$AY207=\"No\",ISERROR(FIND(\"HMO\",VLOOKUP('Enrollment Form'!G207,'Enrollment Form'!H$11:J$1000,3,FALSE),1))=FALSE,COUNTA('Enrollment Form'!$AZ207:$BC207)=4),AND('Enrollment Form'!$AY207=\"No\",ISERROR(FIND(\"HMO\",VLOOKUP('Enrollment Form'!G207,'Enrollment Form'!H$11:J$1000,3,FALSE),1))=FALSE,COUNTA('Enrollment Form'!$BT207:$BW207)=4)),\"Y\",\"N\"))","v":"-"},{"$f":"IF($B200=\"N\",\"\",IF('Enrollment Form'!$B207=\"Subscriber\",\"-\",IF(COUNTA('Enrollment Form'!$BL207,'Enrollment Form'!$BN207)=2,\"Y\",\"N\")))","v":""},{"$f":"IF($B200=\"N\",\"\",IF(OR('Enrollment Form'!$AX207=\"\",'Enrollment Form'!$AX207=\"No\"),\"-\",IF(AND('Enrollment Form'!$AX207=\"Yes\",COUNTA('Enrollment Form'!$CR207)=1),\"Y\",\"N\")))","v":""},{"$f":"IF(OR('Enrollment Form'!$CR207=\"\",'Enrollment Form'!$CR207=\"No\"),\"-\",IF(COUNTA('Enrollment Form'!$CT207:$CU207)=2,\"Y\",\"N\"))","v":"-"},{"$f":"IF($B200=\"N\",\"\",IF(COUNTIF('Enrollment Form'!$DG207:$DP207,\"Other\")=COUNTA('Enrollment Form'!$DK207,'Enrollment Form'!$DH207,'Enrollment Form'!$DN207,'Enrollment Form'!$DQ207),\"Y\",\"N\"))","v":""},{"$f":"IF($B200=\"N\",\"\",IF(OR('Enrollment Form'!B207<>\"Subscriber\",'Enrollment Form'!C207=\"ROC\",COUNTIF('Enrollment Form'!AV207:AW207,\"Yes\")>=1),\"-\",IF(AND('Enrollment Form'!C207=\"Enroll\",COUNTIF('Enrollment Form'!AV207:AW207,\"No\")=2,'Enrollment Form'!AX207=\"\"),\"N\",\"Y\")))","v":""},{"$f":"IF(OR(B200=\"N\",'Enrollment Form'!B207<>\"Subscriber\",'Enrollment Form'!C207=\"ROC\",'Enrollment Form'!O207<>\"Multiple of Salary\"),\"-\",IF(COUNTA('Enrollment Form'!T207:U207)<2,\"N\",\"Y\"))","v":"-"},{"$f":"IF(B200=\"N\",\"\",IF(OR('Enrollment Form'!C207=\"ROC\",'Enrollment Form'!B207<>\"Subscriber\",'Enrollment Form'!O207=\"Waive\",'Enrollment Form'!O207=\"\"),\"-\",IF('Enrollment Form'!P207=\"\",\"N\",\"Y\")))","v":""},{"$f":"IF($B200=\"N\",\"\",IF(AND('Enrollment Form'!$C207=\"ROC\",'Enrollment Form'!$DR207<>\"\"),\"Y\",IF(AND('Enrollment Form'!$C207=\"ROC\",'Enrollment Form'!$DR207=\"\"),\"N\",IF(AND('Enrollment Form'!$C207=\"Enroll\",'Enrollment Form'!$B207=\"Subscriber\",'Enrollment Form'!$CX207=\"No\",'Enrollment Form'!$DR207=\"\"),\"N\",IF(AND('Enrollment Form'!$C207=\"Enroll\",'Enrollment Form'!$B207=\"Subscriber\",'Enrollment Form'!$CX207=\"Yes\"),\"-\",\"Y\")))))","v":""},{"$f":"IF($B200=\"N\",\"\",IF(AND('Enrollment Form'!$C207=\"ROC\",'Enrollment Form'!$DS207<>\"\"),\"Y\",IF(AND('Enrollment Form'!$C207=\"ROC\",'Enrollment Form'!$DS207=\"\"),\"N\",IF(AND('Enrollment Form'!$C207=\"Enroll\",'Enrollment Form'!$B207=\"Subscriber\",'Enrollment Form'!$CX207=\"No\",'Enrollment Form'!$DS207=\"\"),\"N\",IF(AND('Enrollment Form'!$C207=\"Enroll\",'Enrollment Form'!$B207=\"Subscriber\",'Enrollment Form'!$CX207=\"Yes\"),\"-\",\"Y\")))))","v":""},{"$f":"IF('Enrollment Form'!AH207=\"\",\"\",IF(ISERROR(SEARCH(\".\",'Enrollment Form'!AH207,SEARCH(\"@\",'Enrollment Form'!AH207))),\"N\",\"Y\"))","v":""},{"$f":"IF(OR($B200=\"N\",'Enrollment Form'!$G207=\"\"),\"\",IF('Enrollment Form'!$B207<>\"Subscriber\",\"-\",IF(COUNTIF('Enrollment Form'!$AV207:$AW207,\"Yes\")=2,\"N\",\"Y\")))","v":""},{"$f":"IF(OR('Enrollment Form'!$CJ207=\"\",'Enrollment Form'!$CJ207=\"No\"),\"-\",IF(AND('Enrollment Form'!$CJ207=\"Yes\",'Enrollment Form'!$CK207=\"\"),\"N\",\"Y\"))","v":"-"},{"$f":"IF(OR('Enrollment Form'!$CL207=\"\",'Enrollment Form'!$CL207=\"No\"),\"-\",IF(AND('Enrollment Form'!$CL207=\"Yes\",'Enrollment Form'!$CM207=\"\"),\"N\",\"Y\"))","v":"-"},{"$f":"IF(OR('Enrollment Form'!$CN207=\"\",'Enrollment Form'!$CN207=\"No\"),\"-\",IF(AND('Enrollment Form'!$CN207=\"Yes\",'Enrollment Form'!$CO207=\"\"),\"N\",\"Y\"))","v":"-"},{"$f":"IF(OR('Enrollment Form'!$CN207=\"\",'Enrollment Form'!$CN207=\"No\"),\"-\",IF(AND('Enrollment Form'!$CN207=\"Yes\",'Enrollment Form'!$CP207=\"\"),\"N\",\"Y\"))","v":"-"},{"$f":"IF('Enrollment Form'!B207<>\"Subscriber\",\"-\",IF(AND('Enrollment Form'!B207=\"Subscriber\",'Enrollment Form'!C207=\"Enroll\",'Enrollment Form'!AA207=\"\"),\"N\",\"Y\"))","v":"-"},{"$f":"IF(OR('Enrollment Form'!B207=\"Subscriber\",'Enrollment Form'!B207=\"\"),\"-\",IF('Enrollment Form'!BP207=\"\",\"N\",\"Y\"))","v":"-"},{"$f":"IF('Enrollment Form'!B207<>\"Subscriber\",\"-\",IF(AND('Enrollment Form'!B207=\"Subscriber\",'Enrollment Form'!G207=\"\"),\"N\",\"Y\"))","v":"-"},{"$f":"IF('Enrollment Form'!A207=\"\",\"\",IF('Enrollment Form'!B207=\"Subscriber\",\"-\",IF(AND('Enrollment Form'!B207<>\"Subscriber\",'Enrollment Form'!G207='Enrollment Form'!H207),\"N\",\"Y\")))","v":""},0]
[208,{"$f":"IF('Enrollment Form'!$A208<>\"\",\"Y\",\"N\")","v":"N"},{"$f":"IF(AND('Enrollment Form'!$B208=\"\",'Enrollment Form'!$C208<>\"\"),\"N\",IF($B201=\"N\",\"\",\"Y\"))","v":""},{"$f":"IF(OR($B201=\"N\",'Enrollment Form'!G208=\"\"),\"\",IF('Enrollment Form'!$B208<>\"Subscriber\",\"\",IF('Enrollment Form'!$G208='Enrollment Form'!$H208,\"Y\",\"N\")))","v":""},{"$f":"IF($B201=\"N\",\"\",IF(AND(COUNTIFS('Enrollment Form'!$H$11:$H$1000,'Enrollment Form'!$H208,'Enrollment Form'!$B$11:$B$1000,'Enrollment Form'!$B208)>1,'Enrollment Form'!$H208<>\"\"),\"N\",\"Y\"))","v":""},{"$f":"IF($B201=\"N\",\"\",IF(LEN('Enrollment Form'!$Y208)=0,\"\",IF(LEN('Enrollment Form'!$Y208)<>5,\"N\",\"Y\")))","v":""},{"$f":"IF($B201=\"N\",\"\",IF(LEN('Enrollment Form'!$AD208=0),\"\",IF(LEN('Enrollment Form'!$AD208)<>5,\"N\",\"Y\")))","v":""},{"$f":"IF($B201=\"N\",\"\",IF(LEN('Enrollment Form'!$BS208=0),\"\",IF(LEN('Enrollment Form'!$BS208)<>5,\"N\",\"Y\")))","v":""},{"$f":"IF($B201=\"N\",\"\",IF(LEN('Enrollment Form'!$AE208)=0,\"\",IF(LEN('Enrollment Form'!$AE208)<>10,\"N\",\"Y\")))","v":""},{"$f":"IF($B201=\"N\",\"\",IF(LEN('Enrollment Form'!$AF208)=0,\"\",IF(LEN('Enrollment Form'!$AF208)<>10,\"N\",\"Y\")))","v":""},{"$f":"IF('Enrollment Form'!$O208<>\"Graded\",\"-\",IF(AND('Enrollment Form'!$O208=\"Graded\",'Enrollment Form'!$AR208<>\"\"),\"Y\",\"N\"))","v":"-"},{"$f":"IF($B201=\"N\",\"\",IF(OR('Enrollment Form'!$B208<>\"Subscriber\",'Enrollment Form'!$C208=\"ROC\"),\"-\",IF(AND('Enrollment Form'!$B208=\"Subscriber\",'Enrollment Form'!$C208=\"Enroll\",'Enrollment Form'!$AJ208<>\"\"),\"Y\",\"N\")))","v":""},{"$f":"IF($B201=\"N\",\"\",IF(OR('Enrollment Form'!$B208<>\"Subscriber\",'Enrollment Form'!$C208=\"ROC\"),\"-\",IF(AND('Enrollment Form'!$B208=\"Subscriber\",'Enrollment Form'!$C208=\"Enroll\",'Enrollment Form'!$AK208<>\"\"),\"Y\",\"N\")))","v":""},{"$f":"IF($B201=\"N\",\"\",IF(OR('Enrollment Form'!$B208<>\"Subscriber\",'Enrollment Form'!$C208=\"ROC\"),\"-\",IF(AND('Enrollment Form'!$B208=\"Subscriber\",'Enrollment Form'!$C208=\"Enroll\",'Enrollment Form'!$AL208<>\"\"),\"Y\",\"N\")))","v":""},{"$f":"IF($B201=\"N\",\"\",IF(OR('Enrollment Form'!$B208<>\"Subscriber\",'Enrollment Form'!$C208=\"ROC\"),\"-\",IF(AND('Enrollment Form'!$B208=\"Subscriber\",'Enrollment Form'!$C208=\"Enroll\",'Enrollment Form'!$AP208<>\"\"),\"Y\",\"N\")))","v":""},{"$f":"IF($B201=\"N\",\"\",IF(OR('Enrollment Form'!$B208<>\"Subscriber\",'Enrollment Form'!$C208=\"ROC\"),\"-\",IF(AND('Enrollment Form'!$B208=\"Subscriber\",'Enrollment Form'!$C208=\"Enroll\",'Enrollment Form'!$AQ208<>\"\"),\"Y\",\"N\")))","v":""},{"$f":"IF($B201=\"N\",\"\",IF(OR('Enrollment Form'!$B208<>\"Subscriber\",'Enrollment Form'!$C208=\"ROC\"),\"-\",IF(AND('Enrollment Form'!$B208=\"Subscriber\",'Enrollment Form'!$C208=\"Enroll\",'Enrollment Form'!$AS208<>\"\"),\"Y\",\"N\")))","v":""},{"$f":"IF($B201=\"N\",\"\",IF($Q201=\"-\",\"-\",IF(AND($Q201=\"Y\",'Enrollment Form'!$AS208=\"No\"),\"-\",IF(AND($Q201=\"Y\",'Enrollment Form'!$AS208=\"Yes\",'Enrollment Form'!$AT208<>\"\"),\"Y\",\"N\"))))","v":""},{"$f":"IF($B201=\"N\",\"\",IF(OR('Enrollment Form'!$B208<>\"Subscriber\",'Enrollment Form'!$C208=\"ROC\"),\"-\",IF(AND('Enrollment Form'!$B208=\"Subscriber\",'Enrollment Form'!$C208=\"Enroll\",'Enrollment Form'!$CV208<>\"\"),\"Y\",\"N\")))","v":""},{"$f":"IF($B201=\"N\",\"\",IF($S201=\"-\",\"-\",IF(AND($S201=\"Y\",'Enrollment Form'!$CV208=\"No\"),\"-\",IF(AND($S201=\"Y\",'Enrollment Form'!$CV208=\"Yes\",'Enrollment Form'!$CW208<>\"\"),\"Y\",\"N\"))))","v":""},{"$f":"IF(OR('Enrollment Form'!$AY208=\"Yes\",'Enrollment Form'!$AY208=\"\"),\"-\",IF(OR(AND('Enrollment Form'!$AY208=\"No\",ISERROR(FIND(\"HMO\",VLOOKUP('Enrollment Form'!G208,'Enrollment Form'!H$11:J$1000,3,FALSE),1))=FALSE,COUNTA('Enrollment Form'!$AZ208:$BC208)=4),AND('Enrollment Form'!$AY208=\"No\",ISERROR(FIND(\"HMO\",VLOOKUP('Enrollment Form'!G208,'Enrollment Form'!H$11:J$1000,3,FALSE),1))=FALSE,COUNTA('Enrollment Form'!$BT208:$BW208)=4)),\"Y\",\"N\"))","v":"-"},{"$f":"IF($B201=\"N\",\"\",IF('Enrollment Form'!$B208=\"Subscriber\",\"-\",IF(COUNTA('Enrollment Form'!$BL208,'Enrollment Form'!$BN208)=2,\"Y\",\"N\")))","v":""},{"$f":"IF($B201=\"N\",\"\",IF(OR('Enrollment Form'!$AX208=\"\",'Enrollment Form'!$AX208=\"No\"),\"-\",IF(AND('Enrollment Form'!$AX208=\"Yes\",COUNTA('Enrollment Form'!$CR208)=1),\"Y\",\"N\")))","v":""},{"$f":"IF(OR('Enrollment Form'!$CR208=\"\",'Enrollment Form'!$CR208=\"No\"),\"-\",IF(COUNTA('Enrollment Form'!$CT208:$CU208)=2,\"Y\",\"N\"))","v":"-"},{"$f":"IF($B201=\"N\",\"\",IF(COUNTIF('Enrollment Form'!$DG208:$DP208,\"Other\")=COUNTA('Enrollment Form'!$DK208,'Enrollment Form'!$DH208,'Enrollment Form'!$DN208,'Enrollment Form'!$DQ208),\"Y\",\"N\"))","v":""},{"$f":"IF($B201=\"N\",\"\",IF(OR('Enrollment Form'!B208<>\"Subscriber\",'Enrollment Form'!C208=\"ROC\",COUNTIF('Enrollment Form'!AV208:AW208,\"Yes\")>=1),\"-\",IF(AND('Enrollment Form'!C208=\"Enroll\",COUNTIF('Enrollment Form'!AV208:AW208,\"No\")=2,'Enrollment Form'!AX208=\"\"),\"N\",\"Y\")))","v":""},{"$f":"IF(OR(B201=\"N\",'Enrollment Form'!B208<>\"Subscriber\",'Enrollment Form'!C208=\"ROC\",'Enrollment Form'!O208<>\"Multiple of Salary\"),\"-\",IF(COUNTA('Enrollment Form'!T208:U208)<2,\"N\",\"Y\"))","v":"-"},{"$f":"IF(B201=\"N\",\"\",IF(OR('Enrollment Form'!C208=\"ROC\",'Enrollment Form'!B208<>\"Subscriber\",'Enrollment Form'!O208=\"Waive\",'Enrollment Form'!O208=\"\"),\"-\",IF('Enrollment Form'!P208=\"\",\"N\",\"Y\")))","v":""},{"$f":"IF($B201=\"N\",\"\",IF(AND('Enrollment Form'!$C208=\"ROC\",'Enrollment Form'!$DR208<>\"\"),\"Y\",IF(AND('Enrollment Form'!$C208=\"ROC\",'Enrollment Form'!$DR208=\"\"),\"N\",IF(AND('Enrollment Form'!$C208=\"Enroll\",'Enrollment Form'!$B208=\"Subscriber\",'Enrollment Form'!$CX208=\"No\",'Enrollment Form'!$DR208=\"\"),\"N\",IF(AND('Enrollment Form'!$C208=\"Enroll\",'Enrollment Form'!$B208=\"Subscriber\",'Enrollment Form'!$CX208=\"Yes\"),\"-\",\"Y\")))))","v":""},{"$f":"IF($B201=\"N\",\"\",IF(AND('Enrollment Form'!$C208=\"ROC\",'Enrollment Form'!$DS208<>\"\"),\"Y\",IF(AND('Enrollment Form'!$C208=\"ROC\",'Enrollment Form'!$DS208=\"\"),\"N\",IF(AND('Enrollment Form'!$C208=\"Enroll\",'Enrollment Form'!$B208=\"Subscriber\",'Enrollment Form'!$CX208=\"No\",'Enrollment Form'!$DS208=\"\"),\"N\",IF(AND('Enrollment Form'!$C208=\"Enroll\",'Enrollment Form'!$B208=\"Subscriber\",'Enrollment Form'!$CX208=\"Yes\"),\"-\",\"Y\")))))","v":""},{"$f":"IF('Enrollment Form'!AH208=\"\",\"\",IF(ISERROR(SEARCH(\".\",'Enrollment Form'!AH208,SEARCH(\"@\",'Enrollment Form'!AH208))),\"N\",\"Y\"))","v":""},{"$f":"IF(OR($B201=\"N\",'Enrollment Form'!$G208=\"\"),\"\",IF('Enrollment Form'!$B208<>\"Subscriber\",\"-\",IF(COUNTIF('Enrollment Form'!$AV208:$AW208,\"Yes\")=2,\"N\",\"Y\")))","v":""},{"$f":"IF(OR('Enrollment Form'!$CJ208=\"\",'Enrollment Form'!$CJ208=\"No\"),\"-\",IF(AND('Enrollment Form'!$CJ208=\"Yes\",'Enrollment Form'!$CK208=\"\"),\"N\",\"Y\"))","v":"-"},{"$f":"IF(OR('Enrollment Form'!$CL208=\"\",'Enrollment Form'!$CL208=\"No\"),\"-\",IF(AND('Enrollment Form'!$CL208=\"Yes\",'Enrollment Form'!$CM208=\"\"),\"N\",\"Y\"))","v":"-"},{"$f":"IF(OR('Enrollment Form'!$CN208=\"\",'Enrollment Form'!$CN208=\"No\"),\"-\",IF(AND('Enrollment Form'!$CN208=\"Yes\",'Enrollment Form'!$CO208=\"\"),\"N\",\"Y\"))","v":"-"},{"$f":"IF(OR('Enrollment Form'!$CN208=\"\",'Enrollment Form'!$CN208=\"No\"),\"-\",IF(AND('Enrollment Form'!$CN208=\"Yes\",'Enrollment Form'!$CP208=\"\"),\"N\",\"Y\"))","v":"-"},{"$f":"IF('Enrollment Form'!B208<>\"Subscriber\",\"-\",IF(AND('Enrollment Form'!B208=\"Subscriber\",'Enrollment Form'!C208=\"Enroll\",'Enrollment Form'!AA208=\"\"),\"N\",\"Y\"))","v":"-"},{"$f":"IF(OR('Enrollment Form'!B208=\"Subscriber\",'Enrollment Form'!B208=\"\"),\"-\",IF('Enrollment Form'!BP208=\"\",\"N\",\"Y\"))","v":"-"},{"$f":"IF('Enrollment Form'!B208<>\"Subscriber\",\"-\",IF(AND('Enrollment Form'!B208=\"Subscriber\",'Enrollment Form'!G208=\"\"),\"N\",\"Y\"))","v":"-"},{"$f":"IF('Enrollment Form'!A208=\"\",\"\",IF('Enrollment Form'!B208=\"Subscriber\",\"-\",IF(AND('Enrollment Form'!B208<>\"Subscriber\",'Enrollment Form'!G208='Enrollment Form'!H208),\"N\",\"Y\")))","v":""},0]
[209,{"$f":"IF('Enrollment Form'!$A209<>\"\",\"Y\",\"N\")","v":"N"},{"$f":"IF(AND('Enrollment Form'!$B209=\"\",'Enrollment Form'!$C209<>\"\"),\"N\",IF($B202=\"N\",\"\",\"Y\"))","v":""},{"$f":"IF(OR($B202=\"N\",'Enrollment Form'!G209=\"\"),\"\",IF('Enrollment Form'!$B209<>\"Subscriber\",\"\",IF('Enrollment Form'!$G209='Enrollment Form'!$H209,\"Y\",\"N\")))","v":""},{"$f":"IF($B202=\"N\",\"\",IF(AND(COUNTIFS('Enrollment Form'!$H$11:$H$1000,'Enrollment Form'!$H209,'Enrollment Form'!$B$11:$B$1000,'Enrollment Form'!$B209)>1,'Enrollment Form'!$H209<>\"\"),\"N\",\"Y\"))","v":""},{"$f":"IF($B202=\"N\",\"\",IF(LEN('Enrollment Form'!$Y209)=0,\"\",IF(LEN('Enrollment Form'!$Y209)<>5,\"N\",\"Y\")))","v":""},{"$f":"IF($B202=\"N\",\"\",IF(LEN('Enrollment Form'!$AD209=0),\"\",IF(LEN('Enrollment Form'!$AD209)<>5,\"N\",\"Y\")))","v":""},{"$f":"IF($B202=\"N\",\"\",IF(LEN('Enrollment Form'!$BS209=0),\"\",IF(LEN('Enrollment Form'!$BS209)<>5,\"N\",\"Y\")))","v":""},{"$f":"IF($B202=\"N\",\"\",IF(LEN('Enrollment Form'!$AE209)=0,\"\",IF(LEN('Enrollment Form'!$AE209)<>10,\"N\",\"Y\")))","v":""},{"$f":"IF($B202=\"N\",\"\",IF(LEN('Enrollment Form'!$AF209)=0,\"\",IF(LEN('Enrollment Form'!$AF209)<>10,\"N\",\"Y\")))","v":""},{"$f":"IF('Enrollment Form'!$O209<>\"Graded\",\"-\",IF(AND('Enrollment Form'!$O209=\"Graded\",'Enrollment Form'!$AR209<>\"\"),\"Y\",\"N\"))","v":"-"},{"$f":"IF($B202=\"N\",\"\",IF(OR('Enrollment Form'!$B209<>\"Subscriber\",'Enrollment Form'!$C209=\"ROC\"),\"-\",IF(AND('Enrollment Form'!$B209=\"Subscriber\",'Enrollment Form'!$C209=\"Enroll\",'Enrollment Form'!$AJ209<>\"\"),\"Y\",\"N\")))","v":""},{"$f":"IF($B202=\"N\",\"\",IF(OR('Enrollment Form'!$B209<>\"Subscriber\",'Enrollment Form'!$C209=\"ROC\"),\"-\",IF(AND('Enrollment Form'!$B209=\"Subscriber\",'Enrollment Form'!$C209=\"Enroll\",'Enrollment Form'!$AK209<>\"\"),\"Y\",\"N\")))","v":""},{"$f":"IF($B202=\"N\",\"\",IF(OR('Enrollment Form'!$B209<>\"Subscriber\",'Enrollment Form'!$C209=\"ROC\"),\"-\",IF(AND('Enrollment Form'!$B209=\"Subscriber\",'Enrollment Form'!$C209=\"Enroll\",'Enrollment Form'!$AL209<>\"\"),\"Y\",\"N\")))","v":""},{"$f":"IF($B202=\"N\",\"\",IF(OR('Enrollment Form'!$B209<>\"Subscriber\",'Enrollment Form'!$C209=\"ROC\"),\"-\",IF(AND('Enrollment Form'!$B209=\"Subscriber\",'Enrollment Form'!$C209=\"Enroll\",'Enrollment Form'!$AP209<>\"\"),\"Y\",\"N\")))","v":""},{"$f":"IF($B202=\"N\",\"\",IF(OR('Enrollment Form'!$B209<>\"Subscriber\",'Enrollment Form'!$C209=\"ROC\"),\"-\",IF(AND('Enrollment Form'!$B209=\"Subscriber\",'Enrollment Form'!$C209=\"Enroll\",'Enrollment Form'!$AQ209<>\"\"),\"Y\",\"N\")))","v":""},{"$f":"IF($B202=\"N\",\"\",IF(OR('Enrollment Form'!$B209<>\"Subscriber\",'Enrollment Form'!$C209=\"ROC\"),\"-\",IF(AND('Enrollment Form'!$B209=\"Subscriber\",'Enrollment Form'!$C209=\"Enroll\",'Enrollment Form'!$AS209<>\"\"),\"Y\",\"N\")))","v":""},{"$f":"IF($B202=\"N\",\"\",IF($Q202=\"-\",\"-\",IF(AND($Q202=\"Y\",'Enrollment Form'!$AS209=\"No\"),\"-\",IF(AND($Q202=\"Y\",'Enrollment Form'!$AS209=\"Yes\",'Enrollment Form'!$AT209<>\"\"),\"Y\",\"N\"))))","v":""},{"$f":"IF($B202=\"N\",\"\",IF(OR('Enrollment Form'!$B209<>\"Subscriber\",'Enrollment Form'!$C209=\"ROC\"),\"-\",IF(AND('Enrollment Form'!$B209=\"Subscriber\",'Enrollment Form'!$C209=\"Enroll\",'Enrollment Form'!$CV209<>\"\"),\"Y\",\"N\")))","v":""},{"$f":"IF($B202=\"N\",\"\",IF($S202=\"-\",\"-\",IF(AND($S202=\"Y\",'Enrollment Form'!$CV209=\"No\"),\"-\",IF(AND($S202=\"Y\",'Enrollment Form'!$CV209=\"Yes\",'Enrollment Form'!$CW209<>\"\"),\"Y\",\"N\"))))","v":""},{"$f":"IF(OR('Enrollment Form'!$AY209=\"Yes\",'Enrollment Form'!$AY209=\"\"),\"-\",IF(OR(AND('Enrollment Form'!$AY209=\"No\",ISERROR(FIND(\"HMO\",VLOOKUP('Enrollment Form'!G209,'Enrollment Form'!H$11:J$1000,3,FALSE),1))=FALSE,COUNTA('Enrollment Form'!$AZ209:$BC209)=4),AND('Enrollment Form'!$AY209=\"No\",ISERROR(FIND(\"HMO\",VLOOKUP('Enrollment Form'!G209,'Enrollment Form'!H$11:J$1000,3,FALSE),1))=FALSE,COUNTA('Enrollment Form'!$BT209:$BW209)=4)),\"Y\",\"N\"))","v":"-"},{"$f":"IF($B202=\"N\",\"\",IF('Enrollment Form'!$B209=\"Subscriber\",\"-\",IF(COUNTA('Enrollment Form'!$BL209,'Enrollment Form'!$BN209)=2,\"Y\",\"N\")))","v":""},{"$f":"IF($B202=\"N\",\"\",IF(OR('Enrollment Form'!$AX209=\"\",'Enrollment Form'!$AX209=\"No\"),\"-\",IF(AND('Enrollment Form'!$AX209=\"Yes\",COUNTA('Enrollment Form'!$CR209)=1),\"Y\",\"N\")))","v":""},{"$f":"IF(OR('Enrollment Form'!$CR209=\"\",'Enrollment Form'!$CR209=\"No\"),\"-\",IF(COUNTA('Enrollment Form'!$CT209:$CU209)=2,\"Y\",\"N\"))","v":"-"},{"$f":"IF($B202=\"N\",\"\",IF(COUNTIF('Enrollment Form'!$DG209:$DP209,\"Other\")=COUNTA('Enrollment Form'!$DK209,'Enrollment Form'!$DH209,'Enrollment Form'!$DN209,'Enrollment Form'!$DQ209),\"Y\",\"N\"))","v":""},{"$f":"IF($B202=\"N\",\"\",IF(OR('Enrollment Form'!B209<>\"Subscriber\",'Enrollment Form'!C209=\"ROC\",COUNTIF('Enrollment Form'!AV209:AW209,\"Yes\")>=1),\"-\",IF(AND('Enrollment Form'!C209=\"Enroll\",COUNTIF('Enrollment Form'!AV209:AW209,\"No\")=2,'Enrollment Form'!AX209=\"\"),\"N\",\"Y\")))","v":""},{"$f":"IF(OR(B202=\"N\",'Enrollment Form'!B209<>\"Subscriber\",'Enrollment Form'!C209=\"ROC\",'Enrollment Form'!O209<>\"Multiple of Salary\"),\"-\",IF(COUNTA('Enrollment Form'!T209:U209)<2,\"N\",\"Y\"))","v":"-"},{"$f":"IF(B202=\"N\",\"\",IF(OR('Enrollment Form'!C209=\"ROC\",'Enrollment Form'!B209<>\"Subscriber\",'Enrollment Form'!O209=\"Waive\",'Enrollment Form'!O209=\"\"),\"-\",IF('Enrollment Form'!P209=\"\",\"N\",\"Y\")))","v":""},{"$f":"IF($B202=\"N\",\"\",IF(AND('Enrollment Form'!$C209=\"ROC\",'Enrollment Form'!$DR209<>\"\"),\"Y\",IF(AND('Enrollment Form'!$C209=\"ROC\",'Enrollment Form'!$DR209=\"\"),\"N\",IF(AND('Enrollment Form'!$C209=\"Enroll\",'Enrollment Form'!$B209=\"Subscriber\",'Enrollment Form'!$CX209=\"No\",'Enrollment Form'!$DR209=\"\"),\"N\",IF(AND('Enrollment Form'!$C209=\"Enroll\",'Enrollment Form'!$B209=\"Subscriber\",'Enrollment Form'!$CX209=\"Yes\"),\"-\",\"Y\")))))","v":""},{"$f":"IF($B202=\"N\",\"\",IF(AND('Enrollment Form'!$C209=\"ROC\",'Enrollment Form'!$DS209<>\"\"),\"Y\",IF(AND('Enrollment Form'!$C209=\"ROC\",'Enrollment Form'!$DS209=\"\"),\"N\",IF(AND('Enrollment Form'!$C209=\"Enroll\",'Enrollment Form'!$B209=\"Subscriber\",'Enrollment Form'!$CX209=\"No\",'Enrollment Form'!$DS209=\"\"),\"N\",IF(AND('Enrollment Form'!$C209=\"Enroll\",'Enrollment Form'!$B209=\"Subscriber\",'Enrollment Form'!$CX209=\"Yes\"),\"-\",\"Y\")))))","v":""},{"$f":"IF('Enrollment Form'!AH209=\"\",\"\",IF(ISERROR(SEARCH(\".\",'Enrollment Form'!AH209,SEARCH(\"@\",'Enrollment Form'!AH209))),\"N\",\"Y\"))","v":""},{"$f":"IF(OR($B202=\"N\",'Enrollment Form'!$G209=\"\"),\"\",IF('Enrollment Form'!$B209<>\"Subscriber\",\"-\",IF(COUNTIF('Enrollment Form'!$AV209:$AW209,\"Yes\")=2,\"N\",\"Y\")))","v":""},{"$f":"IF(OR('Enrollment Form'!$CJ209=\"\",'Enrollment Form'!$CJ209=\"No\"),\"-\",IF(AND('Enrollment Form'!$CJ209=\"Yes\",'Enrollment Form'!$CK209=\"\"),\"N\",\"Y\"))","v":"-"},{"$f":"IF(OR('Enrollment Form'!$CL209=\"\",'Enrollment Form'!$CL209=\"No\"),\"-\",IF(AND('Enrollment Form'!$CL209=\"Yes\",'Enrollment Form'!$CM209=\"\"),\"N\",\"Y\"))","v":"-"},{"$f":"IF(OR('Enrollment Form'!$CN209=\"\",'Enrollment Form'!$CN209=\"No\"),\"-\",IF(AND('Enrollment Form'!$CN209=\"Yes\",'Enrollment Form'!$CO209=\"\"),\"N\",\"Y\"))","v":"-"},{"$f":"IF(OR('Enrollment Form'!$CN209=\"\",'Enrollment Form'!$CN209=\"No\"),\"-\",IF(AND('Enrollment Form'!$CN209=\"Yes\",'Enrollment Form'!$CP209=\"\"),\"N\",\"Y\"))","v":"-"},{"$f":"IF('Enrollment Form'!B209<>\"Subscriber\",\"-\",IF(AND('Enrollment Form'!B209=\"Subscriber\",'Enrollment Form'!C209=\"Enroll\",'Enrollment Form'!AA209=\"\"),\"N\",\"Y\"))","v":"-"},{"$f":"IF(OR('Enrollment Form'!B209=\"Subscriber\",'Enrollment Form'!B209=\"\"),\"-\",IF('Enrollment Form'!BP209=\"\",\"N\",\"Y\"))","v":"-"},{"$f":"IF('Enrollment Form'!B209<>\"Subscriber\",\"-\",IF(AND('Enrollment Form'!B209=\"Subscriber\",'Enrollment Form'!G209=\"\"),\"N\",\"Y\"))","v":"-"},{"$f":"IF('Enrollment Form'!A209=\"\",\"\",IF('Enrollment Form'!B209=\"Subscriber\",\"-\",IF(AND('Enrollment Form'!B209<>\"Subscriber\",'Enrollment Form'!G209='Enrollment Form'!H209),\"N\",\"Y\")))","v":""},0]
[210,{"$f":"IF('Enrollment Form'!$A210<>\"\",\"Y\",\"N\")","v":"N"},{"$f":"IF(AND('Enrollment Form'!$B210=\"\",'Enrollment Form'!$C210<>\"\"),\"N\",IF($B203=\"N\",\"\",\"Y\"))","v":""},{"$f":"IF(OR($B203=\"N\",'Enrollment Form'!G210=\"\"),\"\",IF('Enrollment Form'!$B210<>\"Subscriber\",\"\",IF('Enrollment Form'!$G210='Enrollment Form'!$H210,\"Y\",\"N\")))","v":""},{"$f":"IF($B203=\"N\",\"\",IF(AND(COUNTIFS('Enrollment Form'!$H$11:$H$1000,'Enrollment Form'!$H210,'Enrollment Form'!$B$11:$B$1000,'Enrollment Form'!$B210)>1,'Enrollment Form'!$H210<>\"\"),\"N\",\"Y\"))","v":""},{"$f":"IF($B203=\"N\",\"\",IF(LEN('Enrollment Form'!$Y210)=0,\"\",IF(LEN('Enrollment Form'!$Y210)<>5,\"N\",\"Y\")))","v":""},{"$f":"IF($B203=\"N\",\"\",IF(LEN('Enrollment Form'!$AD210=0),\"\",IF(LEN('Enrollment Form'!$AD210)<>5,\"N\",\"Y\")))","v":""},{"$f":"IF($B203=\"N\",\"\",IF(LEN('Enrollment Form'!$BS210=0),\"\",IF(LEN('Enrollment Form'!$BS210)<>5,\"N\",\"Y\")))","v":""},{"$f":"IF($B203=\"N\",\"\",IF(LEN('Enrollment Form'!$AE210)=0,\"\",IF(LEN('Enrollment Form'!$AE210)<>10,\"N\",\"Y\")))","v":""},{"$f":"IF($B203=\"N\",\"\",IF(LEN('Enrollment Form'!$AF210)=0,\"\",IF(LEN('Enrollment Form'!$AF210)<>10,\"N\",\"Y\")))","v":""},{"$f":"IF('Enrollment Form'!$O210<>\"Graded\",\"-\",IF(AND('Enrollment Form'!$O210=\"Graded\",'Enrollment Form'!$AR210<>\"\"),\"Y\",\"N\"))","v":"-"},{"$f":"IF($B203=\"N\",\"\",IF(OR('Enrollment Form'!$B210<>\"Subscriber\",'Enrollment Form'!$C210=\"ROC\"),\"-\",IF(AND('Enrollment Form'!$B210=\"Subscriber\",'Enrollment Form'!$C210=\"Enroll\",'Enrollment Form'!$AJ210<>\"\"),\"Y\",\"N\")))","v":""},{"$f":"IF($B203=\"N\",\"\",IF(OR('Enrollment Form'!$B210<>\"Subscriber\",'Enrollment Form'!$C210=\"ROC\"),\"-\",IF(AND('Enrollment Form'!$B210=\"Subscriber\",'Enrollment Form'!$C210=\"Enroll\",'Enrollment Form'!$AK210<>\"\"),\"Y\",\"N\")))","v":""},{"$f":"IF($B203=\"N\",\"\",IF(OR('Enrollment Form'!$B210<>\"Subscriber\",'Enrollment Form'!$C210=\"ROC\"),\"-\",IF(AND('Enrollment Form'!$B210=\"Subscriber\",'Enrollment Form'!$C210=\"Enroll\",'Enrollment Form'!$AL210<>\"\"),\"Y\",\"N\")))","v":""},{"$f":"IF($B203=\"N\",\"\",IF(OR('Enrollment Form'!$B210<>\"Subscriber\",'Enrollment Form'!$C210=\"ROC\"),\"-\",IF(AND('Enrollment Form'!$B210=\"Subscriber\",'Enrollment Form'!$C210=\"Enroll\",'Enrollment Form'!$AP210<>\"\"),\"Y\",\"N\")))","v":""},{"$f":"IF($B203=\"N\",\"\",IF(OR('Enrollment Form'!$B210<>\"Subscriber\",'Enrollment Form'!$C210=\"ROC\"),\"-\",IF(AND('Enrollment Form'!$B210=\"Subscriber\",'Enrollment Form'!$C210=\"Enroll\",'Enrollment Form'!$AQ210<>\"\"),\"Y\",\"N\")))","v":""},{"$f":"IF($B203=\"N\",\"\",IF(OR('Enrollment Form'!$B210<>\"Subscriber\",'Enrollment Form'!$C210=\"ROC\"),\"-\",IF(AND('Enrollment Form'!$B210=\"Subscriber\",'Enrollment Form'!$C210=\"Enroll\",'Enrollment Form'!$AS210<>\"\"),\"Y\",\"N\")))","v":""},{"$f":"IF($B203=\"N\",\"\",IF($Q203=\"-\",\"-\",IF(AND($Q203=\"Y\",'Enrollment Form'!$AS210=\"No\"),\"-\",IF(AND($Q203=\"Y\",'Enrollment Form'!$AS210=\"Yes\",'Enrollment Form'!$AT210<>\"\"),\"Y\",\"N\"))))","v":""},{"$f":"IF($B203=\"N\",\"\",IF(OR('Enrollment Form'!$B210<>\"Subscriber\",'Enrollment Form'!$C210=\"ROC\"),\"-\",IF(AND('Enrollment Form'!$B210=\"Subscriber\",'Enrollment Form'!$C210=\"Enroll\",'Enrollment Form'!$CV210<>\"\"),\"Y\",\"N\")))","v":""},{"$f":"IF($B203=\"N\",\"\",IF($S203=\"-\",\"-\",IF(AND($S203=\"Y\",'Enrollment Form'!$CV210=\"No\"),\"-\",IF(AND($S203=\"Y\",'Enrollment Form'!$CV210=\"Yes\",'Enrollment Form'!$CW210<>\"\"),\"Y\",\"N\"))))","v":""},{"$f":"IF(OR('Enrollment Form'!$AY210=\"Yes\",'Enrollment Form'!$AY210=\"\"),\"-\",IF(OR(AND('Enrollment Form'!$AY210=\"No\",ISERROR(FIND(\"HMO\",VLOOKUP('Enrollment Form'!G210,'Enrollment Form'!H$11:J$1000,3,FALSE),1))=FALSE,COUNTA('Enrollment Form'!$AZ210:$BC210)=4),AND('Enrollment Form'!$AY210=\"No\",ISERROR(FIND(\"HMO\",VLOOKUP('Enrollment Form'!G210,'Enrollment Form'!H$11:J$1000,3,FALSE),1))=FALSE,COUNTA('Enrollment Form'!$BT210:$BW210)=4)),\"Y\",\"N\"))","v":"-"},{"$f":"IF($B203=\"N\",\"\",IF('Enrollment Form'!$B210=\"Subscriber\",\"-\",IF(COUNTA('Enrollment Form'!$BL210,'Enrollment Form'!$BN210)=2,\"Y\",\"N\")))","v":""},{"$f":"IF($B203=\"N\",\"\",IF(OR('Enrollment Form'!$AX210=\"\",'Enrollment Form'!$AX210=\"No\"),\"-\",IF(AND('Enrollment Form'!$AX210=\"Yes\",COUNTA('Enrollment Form'!$CR210)=1),\"Y\",\"N\")))","v":""},{"$f":"IF(OR('Enrollment Form'!$CR210=\"\",'Enrollment Form'!$CR210=\"No\"),\"-\",IF(COUNTA('Enrollment Form'!$CT210:$CU210)=2,\"Y\",\"N\"))","v":"-"},{"$f":"IF($B203=\"N\",\"\",IF(COUNTIF('Enrollment Form'!$DG210:$DP210,\"Other\")=COUNTA('Enrollment Form'!$DK210,'Enrollment Form'!$DH210,'Enrollment Form'!$DN210,'Enrollment Form'!$DQ210),\"Y\",\"N\"))","v":""},{"$f":"IF($B203=\"N\",\"\",IF(OR('Enrollment Form'!B210<>\"Subscriber\",'Enrollment Form'!C210=\"ROC\",COUNTIF('Enrollment Form'!AV210:AW210,\"Yes\")>=1),\"-\",IF(AND('Enrollment Form'!C210=\"Enroll\",COUNTIF('Enrollment Form'!AV210:AW210,\"No\")=2,'Enrollment Form'!AX210=\"\"),\"N\",\"Y\")))","v":""},{"$f":"IF(OR(B203=\"N\",'Enrollment Form'!B210<>\"Subscriber\",'Enrollment Form'!C210=\"ROC\",'Enrollment Form'!O210<>\"Multiple of Salary\"),\"-\",IF(COUNTA('Enrollment Form'!T210:U210)<2,\"N\",\"Y\"))","v":"-"},{"$f":"IF(B203=\"N\",\"\",IF(OR('Enrollment Form'!C210=\"ROC\",'Enrollment Form'!B210<>\"Subscriber\",'Enrollment Form'!O210=\"Waive\",'Enrollment Form'!O210=\"\"),\"-\",IF('Enrollment Form'!P210=\"\",\"N\",\"Y\")))","v":""},{"$f":"IF($B203=\"N\",\"\",IF(AND('Enrollment Form'!$C210=\"ROC\",'Enrollment Form'!$DR210<>\"\"),\"Y\",IF(AND('Enrollment Form'!$C210=\"ROC\",'Enrollment Form'!$DR210=\"\"),\"N\",IF(AND('Enrollment Form'!$C210=\"Enroll\",'Enrollment Form'!$B210=\"Subscriber\",'Enrollment Form'!$CX210=\"No\",'Enrollment Form'!$DR210=\"\"),\"N\",IF(AND('Enrollment Form'!$C210=\"Enroll\",'Enrollment Form'!$B210=\"Subscriber\",'Enrollment Form'!$CX210=\"Yes\"),\"-\",\"Y\")))))","v":""},{"$f":"IF($B203=\"N\",\"\",IF(AND('Enrollment Form'!$C210=\"ROC\",'Enrollment Form'!$DS210<>\"\"),\"Y\",IF(AND('Enrollment Form'!$C210=\"ROC\",'Enrollment Form'!$DS210=\"\"),\"N\",IF(AND('Enrollment Form'!$C210=\"Enroll\",'Enrollment Form'!$B210=\"Subscriber\",'Enrollment Form'!$CX210=\"No\",'Enrollment Form'!$DS210=\"\"),\"N\",IF(AND('Enrollment Form'!$C210=\"Enroll\",'Enrollment Form'!$B210=\"Subscriber\",'Enrollment Form'!$CX210=\"Yes\"),\"-\",\"Y\")))))","v":""},{"$f":"IF('Enrollment Form'!AH210=\"\",\"\",IF(ISERROR(SEARCH(\".\",'Enrollment Form'!AH210,SEARCH(\"@\",'Enrollment Form'!AH210))),\"N\",\"Y\"))","v":""},{"$f":"IF(OR($B203=\"N\",'Enrollment Form'!$G210=\"\"),\"\",IF('Enrollment Form'!$B210<>\"Subscriber\",\"-\",IF(COUNTIF('Enrollment Form'!$AV210:$AW210,\"Yes\")=2,\"N\",\"Y\")))","v":""},{"$f":"IF(OR('Enrollment Form'!$CJ210=\"\",'Enrollment Form'!$CJ210=\"No\"),\"-\",IF(AND('Enrollment Form'!$CJ210=\"Yes\",'Enrollment Form'!$CK210=\"\"),\"N\",\"Y\"))","v":"-"},{"$f":"IF(OR('Enrollment Form'!$CL210=\"\",'Enrollment Form'!$CL210=\"No\"),\"-\",IF(AND('Enrollment Form'!$CL210=\"Yes\",'Enrollment Form'!$CM210=\"\"),\"N\",\"Y\"))","v":"-"},{"$f":"IF(OR('Enrollment Form'!$CN210=\"\",'Enrollment Form'!$CN210=\"No\"),\"-\",IF(AND('Enrollment Form'!$CN210=\"Yes\",'Enrollment Form'!$CO210=\"\"),\"N\",\"Y\"))","v":"-"},{"$f":"IF(OR('Enrollment Form'!$CN210=\"\",'Enrollment Form'!$CN210=\"No\"),\"-\",IF(AND('Enrollment Form'!$CN210=\"Yes\",'Enrollment Form'!$CP210=\"\"),\"N\",\"Y\"))","v":"-"},{"$f":"IF('Enrollment Form'!B210<>\"Subscriber\",\"-\",IF(AND('Enrollment Form'!B210=\"Subscriber\",'Enrollment Form'!C210=\"Enroll\",'Enrollment Form'!AA210=\"\"),\"N\",\"Y\"))","v":"-"},{"$f":"IF(OR('Enrollment Form'!B210=\"Subscriber\",'Enrollment Form'!B210=\"\"),\"-\",IF('Enrollment Form'!BP210=\"\",\"N\",\"Y\"))","v":"-"},{"$f":"IF('Enrollment Form'!B210<>\"Subscriber\",\"-\",IF(AND('Enrollment Form'!B210=\"Subscriber\",'Enrollment Form'!G210=\"\"),\"N\",\"Y\"))","v":"-"},{"$f":"IF('Enrollment Form'!A210=\"\",\"\",IF('Enrollment Form'!B210=\"Subscriber\",\"-\",IF(AND('Enrollment Form'!B210<>\"Subscriber\",'Enrollment Form'!G210='Enrollment Form'!H210),\"N\",\"Y\")))","v":""},0]
[211,{"$f":"IF('Enrollment Form'!$A211<>\"\",\"Y\",\"N\")","v":"N"},{"$f":"IF(AND('Enrollment Form'!$B211=\"\",'Enrollment Form'!$C211<>\"\"),\"N\",IF($B204=\"N\",\"\",\"Y\"))","v":""},{"$f":"IF(OR($B204=\"N\",'Enrollment Form'!G211=\"\"),\"\",IF('Enrollment Form'!$B211<>\"Subscriber\",\"\",IF('Enrollment Form'!$G211='Enrollment Form'!$H211,\"Y\",\"N\")))","v":""},{"$f":"IF($B204=\"N\",\"\",IF(AND(COUNTIFS('Enrollment Form'!$H$11:$H$1000,'Enrollment Form'!$H211,'Enrollment Form'!$B$11:$B$1000,'Enrollment Form'!$B211)>1,'Enrollment Form'!$H211<>\"\"),\"N\",\"Y\"))","v":""},{"$f":"IF($B204=\"N\",\"\",IF(LEN('Enrollment Form'!$Y211)=0,\"\",IF(LEN('Enrollment Form'!$Y211)<>5,\"N\",\"Y\")))","v":""},{"$f":"IF($B204=\"N\",\"\",IF(LEN('Enrollment Form'!$AD211=0),\"\",IF(LEN('Enrollment Form'!$AD211)<>5,\"N\",\"Y\")))","v":""},{"$f":"IF($B204=\"N\",\"\",IF(LEN('Enrollment Form'!$BS211=0),\"\",IF(LEN('Enrollment Form'!$BS211)<>5,\"N\",\"Y\")))","v":""},{"$f":"IF($B204=\"N\",\"\",IF(LEN('Enrollment Form'!$AE211)=0,\"\",IF(LEN('Enrollment Form'!$AE211)<>10,\"N\",\"Y\")))","v":""},{"$f":"IF($B204=\"N\",\"\",IF(LEN('Enrollment Form'!$AF211)=0,\"\",IF(LEN('Enrollment Form'!$AF211)<>10,\"N\",\"Y\")))","v":""},{"$f":"IF('Enrollment Form'!$O211<>\"Graded\",\"-\",IF(AND('Enrollment Form'!$O211=\"Graded\",'Enrollment Form'!$AR211<>\"\"),\"Y\",\"N\"))","v":"-"},{"$f":"IF($B204=\"N\",\"\",IF(OR('Enrollment Form'!$B211<>\"Subscriber\",'Enrollment Form'!$C211=\"ROC\"),\"-\",IF(AND('Enrollment Form'!$B211=\"Subscriber\",'Enrollment Form'!$C211=\"Enroll\",'Enrollment Form'!$AJ211<>\"\"),\"Y\",\"N\")))","v":""},{"$f":"IF($B204=\"N\",\"\",IF(OR('Enrollment Form'!$B211<>\"Subscriber\",'Enrollment Form'!$C211=\"ROC\"),\"-\",IF(AND('Enrollment Form'!$B211=\"Subscriber\",'Enrollment Form'!$C211=\"Enroll\",'Enrollment Form'!$AK211<>\"\"),\"Y\",\"N\")))","v":""},{"$f":"IF($B204=\"N\",\"\",IF(OR('Enrollment Form'!$B211<>\"Subscriber\",'Enrollment Form'!$C211=\"ROC\"),\"-\",IF(AND('Enrollment Form'!$B211=\"Subscriber\",'Enrollment Form'!$C211=\"Enroll\",'Enrollment Form'!$AL211<>\"\"),\"Y\",\"N\")))","v":""},{"$f":"IF($B204=\"N\",\"\",IF(OR('Enrollment Form'!$B211<>\"Subscriber\",'Enrollment Form'!$C211=\"ROC\"),\"-\",IF(AND('Enrollment Form'!$B211=\"Subscriber\",'Enrollment Form'!$C211=\"Enroll\",'Enrollment Form'!$AP211<>\"\"),\"Y\",\"N\")))","v":""},{"$f":"IF($B204=\"N\",\"\",IF(OR('Enrollment Form'!$B211<>\"Subscriber\",'Enrollment Form'!$C211=\"ROC\"),\"-\",IF(AND('Enrollment Form'!$B211=\"Subscriber\",'Enrollment Form'!$C211=\"Enroll\",'Enrollment Form'!$AQ211<>\"\"),\"Y\",\"N\")))","v":""},{"$f":"IF($B204=\"N\",\"\",IF(OR('Enrollment Form'!$B211<>\"Subscriber\",'Enrollment Form'!$C211=\"ROC\"),\"-\",IF(AND('Enrollment Form'!$B211=\"Subscriber\",'Enrollment Form'!$C211=\"Enroll\",'Enrollment Form'!$AS211<>\"\"),\"Y\",\"N\")))","v":""},{"$f":"IF($B204=\"N\",\"\",IF($Q204=\"-\",\"-\",IF(AND($Q204=\"Y\",'Enrollment Form'!$AS211=\"No\"),\"-\",IF(AND($Q204=\"Y\",'Enrollment Form'!$AS211=\"Yes\",'Enrollment Form'!$AT211<>\"\"),\"Y\",\"N\"))))","v":""},{"$f":"IF($B204=\"N\",\"\",IF(OR('Enrollment Form'!$B211<>\"Subscriber\",'Enrollment Form'!$C211=\"ROC\"),\"-\",IF(AND('Enrollment Form'!$B211=\"Subscriber\",'Enrollment Form'!$C211=\"Enroll\",'Enrollment Form'!$CV211<>\"\"),\"Y\",\"N\")))","v":""},{"$f":"IF($B204=\"N\",\"\",IF($S204=\"-\",\"-\",IF(AND($S204=\"Y\",'Enrollment Form'!$CV211=\"No\"),\"-\",IF(AND($S204=\"Y\",'Enrollment Form'!$CV211=\"Yes\",'Enrollment Form'!$CW211<>\"\"),\"Y\",\"N\"))))","v":""},{"$f":"IF(OR('Enrollment Form'!$AY211=\"Yes\",'Enrollment Form'!$AY211=\"\"),\"-\",IF(OR(AND('Enrollment Form'!$AY211=\"No\",ISERROR(FIND(\"HMO\",VLOOKUP('Enrollment Form'!G211,'Enrollment Form'!H$11:J$1000,3,FALSE),1))=FALSE,COUNTA('Enrollment Form'!$AZ211:$BC211)=4),AND('Enrollment Form'!$AY211=\"No\",ISERROR(FIND(\"HMO\",VLOOKUP('Enrollment Form'!G211,'Enrollment Form'!H$11:J$1000,3,FALSE),1))=FALSE,COUNTA('Enrollment Form'!$BT211:$BW211)=4)),\"Y\",\"N\"))","v":"-"},{"$f":"IF($B204=\"N\",\"\",IF('Enrollment Form'!$B211=\"Subscriber\",\"-\",IF(COUNTA('Enrollment Form'!$BL211,'Enrollment Form'!$BN211)=2,\"Y\",\"N\")))","v":""},{"$f":"IF($B204=\"N\",\"\",IF(OR('Enrollment Form'!$AX211=\"\",'Enrollment Form'!$AX211=\"No\"),\"-\",IF(AND('Enrollment Form'!$AX211=\"Yes\",COUNTA('Enrollment Form'!$CR211)=1),\"Y\",\"N\")))","v":""},{"$f":"IF(OR('Enrollment Form'!$CR211=\"\",'Enrollment Form'!$CR211=\"No\"),\"-\",IF(COUNTA('Enrollment Form'!$CT211:$CU211)=2,\"Y\",\"N\"))","v":"-"},{"$f":"IF($B204=\"N\",\"\",IF(COUNTIF('Enrollment Form'!$DG211:$DP211,\"Other\")=COUNTA('Enrollment Form'!$DK211,'Enrollment Form'!$DH211,'Enrollment Form'!$DN211,'Enrollment Form'!$DQ211),\"Y\",\"N\"))","v":""},{"$f":"IF($B204=\"N\",\"\",IF(OR('Enrollment Form'!B211<>\"Subscriber\",'Enrollment Form'!C211=\"ROC\",COUNTIF('Enrollment Form'!AV211:AW211,\"Yes\")>=1),\"-\",IF(AND('Enrollment Form'!C211=\"Enroll\",COUNTIF('Enrollment Form'!AV211:AW211,\"No\")=2,'Enrollment Form'!AX211=\"\"),\"N\",\"Y\")))","v":""},{"$f":"IF(OR(B204=\"N\",'Enrollment Form'!B211<>\"Subscriber\",'Enrollment Form'!C211=\"ROC\",'Enrollment Form'!O211<>\"Multiple of Salary\"),\"-\",IF(COUNTA('Enrollment Form'!T211:U211)<2,\"N\",\"Y\"))","v":"-"},{"$f":"IF(B204=\"N\",\"\",IF(OR('Enrollment Form'!C211=\"ROC\",'Enrollment Form'!B211<>\"Subscriber\",'Enrollment Form'!O211=\"Waive\",'Enrollment Form'!O211=\"\"),\"-\",IF('Enrollment Form'!P211=\"\",\"N\",\"Y\")))","v":""},{"$f":"IF($B204=\"N\",\"\",IF(AND('Enrollment Form'!$C211=\"ROC\",'Enrollment Form'!$DR211<>\"\"),\"Y\",IF(AND('Enrollment Form'!$C211=\"ROC\",'Enrollment Form'!$DR211=\"\"),\"N\",IF(AND('Enrollment Form'!$C211=\"Enroll\",'Enrollment Form'!$B211=\"Subscriber\",'Enrollment Form'!$CX211=\"No\",'Enrollment Form'!$DR211=\"\"),\"N\",IF(AND('Enrollment Form'!$C211=\"Enroll\",'Enrollment Form'!$B211=\"Subscriber\",'Enrollment Form'!$CX211=\"Yes\"),\"-\",\"Y\")))))","v":""},{"$f":"IF($B204=\"N\",\"\",IF(AND('Enrollment Form'!$C211=\"ROC\",'Enrollment Form'!$DS211<>\"\"),\"Y\",IF(AND('Enrollment Form'!$C211=\"ROC\",'Enrollment Form'!$DS211=\"\"),\"N\",IF(AND('Enrollment Form'!$C211=\"Enroll\",'Enrollment Form'!$B211=\"Subscriber\",'Enrollment Form'!$CX211=\"No\",'Enrollment Form'!$DS211=\"\"),\"N\",IF(AND('Enrollment Form'!$C211=\"Enroll\",'Enrollment Form'!$B211=\"Subscriber\",'Enrollment Form'!$CX211=\"Yes\"),\"-\",\"Y\")))))","v":""},{"$f":"IF('Enrollment Form'!AH211=\"\",\"\",IF(ISERROR(SEARCH(\".\",'Enrollment Form'!AH211,SEARCH(\"@\",'Enrollment Form'!AH211))),\"N\",\"Y\"))","v":""},{"$f":"IF(OR($B204=\"N\",'Enrollment Form'!$G211=\"\"),\"\",IF('Enrollment Form'!$B211<>\"Subscriber\",\"-\",IF(COUNTIF('Enrollment Form'!$AV211:$AW211,\"Yes\")=2,\"N\",\"Y\")))","v":""},{"$f":"IF(OR('Enrollment Form'!$CJ211=\"\",'Enrollment Form'!$CJ211=\"No\"),\"-\",IF(AND('Enrollment Form'!$CJ211=\"Yes\",'Enrollment Form'!$CK211=\"\"),\"N\",\"Y\"))","v":"-"},{"$f":"IF(OR('Enrollment Form'!$CL211=\"\",'Enrollment Form'!$CL211=\"No\"),\"-\",IF(AND('Enrollment Form'!$CL211=\"Yes\",'Enrollment Form'!$CM211=\"\"),\"N\",\"Y\"))","v":"-"},{"$f":"IF(OR('Enrollment Form'!$CN211=\"\",'Enrollment Form'!$CN211=\"No\"),\"-\",IF(AND('Enrollment Form'!$CN211=\"Yes\",'Enrollment Form'!$CO211=\"\"),\"N\",\"Y\"))","v":"-"},{"$f":"IF(OR('Enrollment Form'!$CN211=\"\",'Enrollment Form'!$CN211=\"No\"),\"-\",IF(AND('Enrollment Form'!$CN211=\"Yes\",'Enrollment Form'!$CP211=\"\"),\"N\",\"Y\"))","v":"-"},{"$f":"IF('Enrollment Form'!B211<>\"Subscriber\",\"-\",IF(AND('Enrollment Form'!B211=\"Subscriber\",'Enrollment Form'!C211=\"Enroll\",'Enrollment Form'!AA211=\"\"),\"N\",\"Y\"))","v":"-"},{"$f":"IF(OR('Enrollment Form'!B211=\"Subscriber\",'Enrollment Form'!B211=\"\"),\"-\",IF('Enrollment Form'!BP211=\"\",\"N\",\"Y\"))","v":"-"},{"$f":"IF('Enrollment Form'!B211<>\"Subscriber\",\"-\",IF(AND('Enrollment Form'!B211=\"Subscriber\",'Enrollment Form'!G211=\"\"),\"N\",\"Y\"))","v":"-"},{"$f":"IF('Enrollment Form'!A211=\"\",\"\",IF('Enrollment Form'!B211=\"Subscriber\",\"-\",IF(AND('Enrollment Form'!B211<>\"Subscriber\",'Enrollment Form'!G211='Enrollment Form'!H211),\"N\",\"Y\")))","v":""},0]
[212,{"$f":"IF('Enrollment Form'!$A212<>\"\",\"Y\",\"N\")","v":"N"},{"$f":"IF(AND('Enrollment Form'!$B212=\"\",'Enrollment Form'!$C212<>\"\"),\"N\",IF($B205=\"N\",\"\",\"Y\"))","v":""},{"$f":"IF(OR($B205=\"N\",'Enrollment Form'!G212=\"\"),\"\",IF('Enrollment Form'!$B212<>\"Subscriber\",\"\",IF('Enrollment Form'!$G212='Enrollment Form'!$H212,\"Y\",\"N\")))","v":""},{"$f":"IF($B205=\"N\",\"\",IF(AND(COUNTIFS('Enrollment Form'!$H$11:$H$1000,'Enrollment Form'!$H212,'Enrollment Form'!$B$11:$B$1000,'Enrollment Form'!$B212)>1,'Enrollment Form'!$H212<>\"\"),\"N\",\"Y\"))","v":""},{"$f":"IF($B205=\"N\",\"\",IF(LEN('Enrollment Form'!$Y212)=0,\"\",IF(LEN('Enrollment Form'!$Y212)<>5,\"N\",\"Y\")))","v":""},{"$f":"IF($B205=\"N\",\"\",IF(LEN('Enrollment Form'!$AD212=0),\"\",IF(LEN('Enrollment Form'!$AD212)<>5,\"N\",\"Y\")))","v":""},{"$f":"IF($B205=\"N\",\"\",IF(LEN('Enrollment Form'!$BS212=0),\"\",IF(LEN('Enrollment Form'!$BS212)<>5,\"N\",\"Y\")))","v":""},{"$f":"IF($B205=\"N\",\"\",IF(LEN('Enrollment Form'!$AE212)=0,\"\",IF(LEN('Enrollment Form'!$AE212)<>10,\"N\",\"Y\")))","v":""},{"$f":"IF($B205=\"N\",\"\",IF(LEN('Enrollment Form'!$AF212)=0,\"\",IF(LEN('Enrollment Form'!$AF212)<>10,\"N\",\"Y\")))","v":""},{"$f":"IF('Enrollment Form'!$O212<>\"Graded\",\"-\",IF(AND('Enrollment Form'!$O212=\"Graded\",'Enrollment Form'!$AR212<>\"\"),\"Y\",\"N\"))","v":"-"},{"$f":"IF($B205=\"N\",\"\",IF(OR('Enrollment Form'!$B212<>\"Subscriber\",'Enrollment Form'!$C212=\"ROC\"),\"-\",IF(AND('Enrollment Form'!$B212=\"Subscriber\",'Enrollment Form'!$C212=\"Enroll\",'Enrollment Form'!$AJ212<>\"\"),\"Y\",\"N\")))","v":""},{"$f":"IF($B205=\"N\",\"\",IF(OR('Enrollment Form'!$B212<>\"Subscriber\",'Enrollment Form'!$C212=\"ROC\"),\"-\",IF(AND('Enrollment Form'!$B212=\"Subscriber\",'Enrollment Form'!$C212=\"Enroll\",'Enrollment Form'!$AK212<>\"\"),\"Y\",\"N\")))","v":""},{"$f":"IF($B205=\"N\",\"\",IF(OR('Enrollment Form'!$B212<>\"Subscriber\",'Enrollment Form'!$C212=\"ROC\"),\"-\",IF(AND('Enrollment Form'!$B212=\"Subscriber\",'Enrollment Form'!$C212=\"Enroll\",'Enrollment Form'!$AL212<>\"\"),\"Y\",\"N\")))","v":""},{"$f":"IF($B205=\"N\",\"\",IF(OR('Enrollment Form'!$B212<>\"Subscriber\",'Enrollment Form'!$C212=\"ROC\"),\"-\",IF(AND('Enrollment Form'!$B212=\"Subscriber\",'Enrollment Form'!$C212=\"Enroll\",'Enrollment Form'!$AP212<>\"\"),\"Y\",\"N\")))","v":""},{"$f":"IF($B205=\"N\",\"\",IF(OR('Enrollment Form'!$B212<>\"Subscriber\",'Enrollment Form'!$C212=\"ROC\"),\"-\",IF(AND('Enrollment Form'!$B212=\"Subscriber\",'Enrollment Form'!$C212=\"Enroll\",'Enrollment Form'!$AQ212<>\"\"),\"Y\",\"N\")))","v":""},{"$f":"IF($B205=\"N\",\"\",IF(OR('Enrollment Form'!$B212<>\"Subscriber\",'Enrollment Form'!$C212=\"ROC\"),\"-\",IF(AND('Enrollment Form'!$B212=\"Subscriber\",'Enrollment Form'!$C212=\"Enroll\",'Enrollment Form'!$AS212<>\"\"),\"Y\",\"N\")))","v":""},{"$f":"IF($B205=\"N\",\"\",IF($Q205=\"-\",\"-\",IF(AND($Q205=\"Y\",'Enrollment Form'!$AS212=\"No\"),\"-\",IF(AND($Q205=\"Y\",'Enrollment Form'!$AS212=\"Yes\",'Enrollment Form'!$AT212<>\"\"),\"Y\",\"N\"))))","v":""},{"$f":"IF($B205=\"N\",\"\",IF(OR('Enrollment Form'!$B212<>\"Subscriber\",'Enrollment Form'!$C212=\"ROC\"),\"-\",IF(AND('Enrollment Form'!$B212=\"Subscriber\",'Enrollment Form'!$C212=\"Enroll\",'Enrollment Form'!$CV212<>\"\"),\"Y\",\"N\")))","v":""},{"$f":"IF($B205=\"N\",\"\",IF($S205=\"-\",\"-\",IF(AND($S205=\"Y\",'Enrollment Form'!$CV212=\"No\"),\"-\",IF(AND($S205=\"Y\",'Enrollment Form'!$CV212=\"Yes\",'Enrollment Form'!$CW212<>\"\"),\"Y\",\"N\"))))","v":""},{"$f":"IF(OR('Enrollment Form'!$AY212=\"Yes\",'Enrollment Form'!$AY212=\"\"),\"-\",IF(OR(AND('Enrollment Form'!$AY212=\"No\",ISERROR(FIND(\"HMO\",VLOOKUP('Enrollment Form'!G212,'Enrollment Form'!H$11:J$1000,3,FALSE),1))=FALSE,COUNTA('Enrollment Form'!$AZ212:$BC212)=4),AND('Enrollment Form'!$AY212=\"No\",ISERROR(FIND(\"HMO\",VLOOKUP('Enrollment Form'!G212,'Enrollment Form'!H$11:J$1000,3,FALSE),1))=FALSE,COUNTA('Enrollment Form'!$BT212:$BW212)=4)),\"Y\",\"N\"))","v":"-"},{"$f":"IF($B205=\"N\",\"\",IF('Enrollment Form'!$B212=\"Subscriber\",\"-\",IF(COUNTA('Enrollment Form'!$BL212,'Enrollment Form'!$BN212)=2,\"Y\",\"N\")))","v":""},{"$f":"IF($B205=\"N\",\"\",IF(OR('Enrollment Form'!$AX212=\"\",'Enrollment Form'!$AX212=\"No\"),\"-\",IF(AND('Enrollment Form'!$AX212=\"Yes\",COUNTA('Enrollment Form'!$CR212)=1),\"Y\",\"N\")))","v":""},{"$f":"IF(OR('Enrollment Form'!$CR212=\"\",'Enrollment Form'!$CR212=\"No\"),\"-\",IF(COUNTA('Enrollment Form'!$CT212:$CU212)=2,\"Y\",\"N\"))","v":"-"},{"$f":"IF($B205=\"N\",\"\",IF(COUNTIF('Enrollment Form'!$DG212:$DP212,\"Other\")=COUNTA('Enrollment Form'!$DK212,'Enrollment Form'!$DH212,'Enrollment Form'!$DN212,'Enrollment Form'!$DQ212),\"Y\",\"N\"))","v":""},{"$f":"IF($B205=\"N\",\"\",IF(OR('Enrollment Form'!B212<>\"Subscriber\",'Enrollment Form'!C212=\"ROC\",COUNTIF('Enrollment Form'!AV212:AW212,\"Yes\")>=1),\"-\",IF(AND('Enrollment Form'!C212=\"Enroll\",COUNTIF('Enrollment Form'!AV212:AW212,\"No\")=2,'Enrollment Form'!AX212=\"\"),\"N\",\"Y\")))","v":""},{"$f":"IF(OR(B205=\"N\",'Enrollment Form'!B212<>\"Subscriber\",'Enrollment Form'!C212=\"ROC\",'Enrollment Form'!O212<>\"Multiple of Salary\"),\"-\",IF(COUNTA('Enrollment Form'!T212:U212)<2,\"N\",\"Y\"))","v":"-"},{"$f":"IF(B205=\"N\",\"\",IF(OR('Enrollment Form'!C212=\"ROC\",'Enrollment Form'!B212<>\"Subscriber\",'Enrollment Form'!O212=\"Waive\",'Enrollment Form'!O212=\"\"),\"-\",IF('Enrollment Form'!P212=\"\",\"N\",\"Y\")))","v":""},{"$f":"IF($B205=\"N\",\"\",IF(AND('Enrollment Form'!$C212=\"ROC\",'Enrollment Form'!$DR212<>\"\"),\"Y\",IF(AND('Enrollment Form'!$C212=\"ROC\",'Enrollment Form'!$DR212=\"\"),\"N\",IF(AND('Enrollment Form'!$C212=\"Enroll\",'Enrollment Form'!$B212=\"Subscriber\",'Enrollment Form'!$CX212=\"No\",'Enrollment Form'!$DR212=\"\"),\"N\",IF(AND('Enrollment Form'!$C212=\"Enroll\",'Enrollment Form'!$B212=\"Subscriber\",'Enrollment Form'!$CX212=\"Yes\"),\"-\",\"Y\")))))","v":""},{"$f":"IF($B205=\"N\",\"\",IF(AND('Enrollment Form'!$C212=\"ROC\",'Enrollment Form'!$DS212<>\"\"),\"Y\",IF(AND('Enrollment Form'!$C212=\"ROC\",'Enrollment Form'!$DS212=\"\"),\"N\",IF(AND('Enrollment Form'!$C212=\"Enroll\",'Enrollment Form'!$B212=\"Subscriber\",'Enrollment Form'!$CX212=\"No\",'Enrollment Form'!$DS212=\"\"),\"N\",IF(AND('Enrollment Form'!$C212=\"Enroll\",'Enrollment Form'!$B212=\"Subscriber\",'Enrollment Form'!$CX212=\"Yes\"),\"-\",\"Y\")))))","v":""},{"$f":"IF('Enrollment Form'!AH212=\"\",\"\",IF(ISERROR(SEARCH(\".\",'Enrollment Form'!AH212,SEARCH(\"@\",'Enrollment Form'!AH212))),\"N\",\"Y\"))","v":""},{"$f":"IF(OR($B205=\"N\",'Enrollment Form'!$G212=\"\"),\"\",IF('Enrollment Form'!$B212<>\"Subscriber\",\"-\",IF(COUNTIF('Enrollment Form'!$AV212:$AW212,\"Yes\")=2,\"N\",\"Y\")))","v":""},{"$f":"IF(OR('Enrollment Form'!$CJ212=\"\",'Enrollment Form'!$CJ212=\"No\"),\"-\",IF(AND('Enrollment Form'!$CJ212=\"Yes\",'Enrollment Form'!$CK212=\"\"),\"N\",\"Y\"))","v":"-"},{"$f":"IF(OR('Enrollment Form'!$CL212=\"\",'Enrollment Form'!$CL212=\"No\"),\"-\",IF(AND('Enrollment Form'!$CL212=\"Yes\",'Enrollment Form'!$CM212=\"\"),\"N\",\"Y\"))","v":"-"},{"$f":"IF(OR('Enrollment Form'!$CN212=\"\",'Enrollment Form'!$CN212=\"No\"),\"-\",IF(AND('Enrollment Form'!$CN212=\"Yes\",'Enrollment Form'!$CO212=\"\"),\"N\",\"Y\"))","v":"-"},{"$f":"IF(OR('Enrollment Form'!$CN212=\"\",'Enrollment Form'!$CN212=\"No\"),\"-\",IF(AND('Enrollment Form'!$CN212=\"Yes\",'Enrollment Form'!$CP212=\"\"),\"N\",\"Y\"))","v":"-"},{"$f":"IF('Enrollment Form'!B212<>\"Subscriber\",\"-\",IF(AND('Enrollment Form'!B212=\"Subscriber\",'Enrollment Form'!C212=\"Enroll\",'Enrollment Form'!AA212=\"\"),\"N\",\"Y\"))","v":"-"},{"$f":"IF(OR('Enrollment Form'!B212=\"Subscriber\",'Enrollment Form'!B212=\"\"),\"-\",IF('Enrollment Form'!BP212=\"\",\"N\",\"Y\"))","v":"-"},{"$f":"IF('Enrollment Form'!B212<>\"Subscriber\",\"-\",IF(AND('Enrollment Form'!B212=\"Subscriber\",'Enrollment Form'!G212=\"\"),\"N\",\"Y\"))","v":"-"},{"$f":"IF('Enrollment Form'!A212=\"\",\"\",IF('Enrollment Form'!B212=\"Subscriber\",\"-\",IF(AND('Enrollment Form'!B212<>\"Subscriber\",'Enrollment Form'!G212='Enrollment Form'!H212),\"N\",\"Y\")))","v":""},0]
[213,{"$f":"IF('Enrollment Form'!$A213<>\"\",\"Y\",\"N\")","v":"N"},{"$f":"IF(AND('Enrollment Form'!$B213=\"\",'Enrollment Form'!$C213<>\"\"),\"N\",IF($B206=\"N\",\"\",\"Y\"))","v":""},{"$f":"IF(OR($B206=\"N\",'Enrollment Form'!G213=\"\"),\"\",IF('Enrollment Form'!$B213<>\"Subscriber\",\"\",IF('Enrollment Form'!$G213='Enrollment Form'!$H213,\"Y\",\"N\")))","v":""},{"$f":"IF($B206=\"N\",\"\",IF(AND(COUNTIFS('Enrollment Form'!$H$11:$H$1000,'Enrollment Form'!$H213,'Enrollment Form'!$B$11:$B$1000,'Enrollment Form'!$B213)>1,'Enrollment Form'!$H213<>\"\"),\"N\",\"Y\"))","v":""},{"$f":"IF($B206=\"N\",\"\",IF(LEN('Enrollment Form'!$Y213)=0,\"\",IF(LEN('Enrollment Form'!$Y213)<>5,\"N\",\"Y\")))","v":""},{"$f":"IF($B206=\"N\",\"\",IF(LEN('Enrollment Form'!$AD213=0),\"\",IF(LEN('Enrollment Form'!$AD213)<>5,\"N\",\"Y\")))","v":""},{"$f":"IF($B206=\"N\",\"\",IF(LEN('Enrollment Form'!$BS213=0),\"\",IF(LEN('Enrollment Form'!$BS213)<>5,\"N\",\"Y\")))","v":""},{"$f":"IF($B206=\"N\",\"\",IF(LEN('Enrollment Form'!$AE213)=0,\"\",IF(LEN('Enrollment Form'!$AE213)<>10,\"N\",\"Y\")))","v":""},{"$f":"IF($B206=\"N\",\"\",IF(LEN('Enrollment Form'!$AF213)=0,\"\",IF(LEN('Enrollment Form'!$AF213)<>10,\"N\",\"Y\")))","v":""},{"$f":"IF('Enrollment Form'!$O213<>\"Graded\",\"-\",IF(AND('Enrollment Form'!$O213=\"Graded\",'Enrollment Form'!$AR213<>\"\"),\"Y\",\"N\"))","v":"-"},{"$f":"IF($B206=\"N\",\"\",IF(OR('Enrollment Form'!$B213<>\"Subscriber\",'Enrollment Form'!$C213=\"ROC\"),\"-\",IF(AND('Enrollment Form'!$B213=\"Subscriber\",'Enrollment Form'!$C213=\"Enroll\",'Enrollment Form'!$AJ213<>\"\"),\"Y\",\"N\")))","v":""},{"$f":"IF($B206=\"N\",\"\",IF(OR('Enrollment Form'!$B213<>\"Subscriber\",'Enrollment Form'!$C213=\"ROC\"),\"-\",IF(AND('Enrollment Form'!$B213=\"Subscriber\",'Enrollment Form'!$C213=\"Enroll\",'Enrollment Form'!$AK213<>\"\"),\"Y\",\"N\")))","v":""},{"$f":"IF($B206=\"N\",\"\",IF(OR('Enrollment Form'!$B213<>\"Subscriber\",'Enrollment Form'!$C213=\"ROC\"),\"-\",IF(AND('Enrollment Form'!$B213=\"Subscriber\",'Enrollment Form'!$C213=\"Enroll\",'Enrollment Form'!$AL213<>\"\"),\"Y\",\"N\")))","v":""},{"$f":"IF($B206=\"N\",\"\",IF(OR('Enrollment Form'!$B213<>\"Subscriber\",'Enrollment Form'!$C213=\"ROC\"),\"-\",IF(AND('Enrollment Form'!$B213=\"Subscriber\",'Enrollment Form'!$C213=\"Enroll\",'Enrollment Form'!$AP213<>\"\"),\"Y\",\"N\")))","v":""},{"$f":"IF($B206=\"N\",\"\",IF(OR('Enrollment Form'!$B213<>\"Subscriber\",'Enrollment Form'!$C213=\"ROC\"),\"-\",IF(AND('Enrollment Form'!$B213=\"Subscriber\",'Enrollment Form'!$C213=\"Enroll\",'Enrollment Form'!$AQ213<>\"\"),\"Y\",\"N\")))","v":""},{"$f":"IF($B206=\"N\",\"\",IF(OR('Enrollment Form'!$B213<>\"Subscriber\",'Enrollment Form'!$C213=\"ROC\"),\"-\",IF(AND('Enrollment Form'!$B213=\"Subscriber\",'Enrollment Form'!$C213=\"Enroll\",'Enrollment Form'!$AS213<>\"\"),\"Y\",\"N\")))","v":""},{"$f":"IF($B206=\"N\",\"\",IF($Q206=\"-\",\"-\",IF(AND($Q206=\"Y\",'Enrollment Form'!$AS213=\"No\"),\"-\",IF(AND($Q206=\"Y\",'Enrollment Form'!$AS213=\"Yes\",'Enrollment Form'!$AT213<>\"\"),\"Y\",\"N\"))))","v":""},{"$f":"IF($B206=\"N\",\"\",IF(OR('Enrollment Form'!$B213<>\"Subscriber\",'Enrollment Form'!$C213=\"ROC\"),\"-\",IF(AND('Enrollment Form'!$B213=\"Subscriber\",'Enrollment Form'!$C213=\"Enroll\",'Enrollment Form'!$CV213<>\"\"),\"Y\",\"N\")))","v":""},{"$f":"IF($B206=\"N\",\"\",IF($S206=\"-\",\"-\",IF(AND($S206=\"Y\",'Enrollment Form'!$CV213=\"No\"),\"-\",IF(AND($S206=\"Y\",'Enrollment Form'!$CV213=\"Yes\",'Enrollment Form'!$CW213<>\"\"),\"Y\",\"N\"))))","v":""},{"$f":"IF(OR('Enrollment Form'!$AY213=\"Yes\",'Enrollment Form'!$AY213=\"\"),\"-\",IF(OR(AND('Enrollment Form'!$AY213=\"No\",ISERROR(FIND(\"HMO\",VLOOKUP('Enrollment Form'!G213,'Enrollment Form'!H$11:J$1000,3,FALSE),1))=FALSE,COUNTA('Enrollment Form'!$AZ213:$BC213)=4),AND('Enrollment Form'!$AY213=\"No\",ISERROR(FIND(\"HMO\",VLOOKUP('Enrollment Form'!G213,'Enrollment Form'!H$11:J$1000,3,FALSE),1))=FALSE,COUNTA('Enrollment Form'!$BT213:$BW213)=4)),\"Y\",\"N\"))","v":"-"},{"$f":"IF($B206=\"N\",\"\",IF('Enrollment Form'!$B213=\"Subscriber\",\"-\",IF(COUNTA('Enrollment Form'!$BL213,'Enrollment Form'!$BN213)=2,\"Y\",\"N\")))","v":""},{"$f":"IF($B206=\"N\",\"\",IF(OR('Enrollment Form'!$AX213=\"\",'Enrollment Form'!$AX213=\"No\"),\"-\",IF(AND('Enrollment Form'!$AX213=\"Yes\",COUNTA('Enrollment Form'!$CR213)=1),\"Y\",\"N\")))","v":""},{"$f":"IF(OR('Enrollment Form'!$CR213=\"\",'Enrollment Form'!$CR213=\"No\"),\"-\",IF(COUNTA('Enrollment Form'!$CT213:$CU213)=2,\"Y\",\"N\"))","v":"-"},{"$f":"IF($B206=\"N\",\"\",IF(COUNTIF('Enrollment Form'!$DG213:$DP213,\"Other\")=COUNTA('Enrollment Form'!$DK213,'Enrollment Form'!$DH213,'Enrollment Form'!$DN213,'Enrollment Form'!$DQ213),\"Y\",\"N\"))","v":""},{"$f":"IF($B206=\"N\",\"\",IF(OR('Enrollment Form'!B213<>\"Subscriber\",'Enrollment Form'!C213=\"ROC\",COUNTIF('Enrollment Form'!AV213:AW213,\"Yes\")>=1),\"-\",IF(AND('Enrollment Form'!C213=\"Enroll\",COUNTIF('Enrollment Form'!AV213:AW213,\"No\")=2,'Enrollment Form'!AX213=\"\"),\"N\",\"Y\")))","v":""},{"$f":"IF(OR(B206=\"N\",'Enrollment Form'!B213<>\"Subscriber\",'Enrollment Form'!C213=\"ROC\",'Enrollment Form'!O213<>\"Multiple of Salary\"),\"-\",IF(COUNTA('Enrollment Form'!T213:U213)<2,\"N\",\"Y\"))","v":"-"},{"$f":"IF(B206=\"N\",\"\",IF(OR('Enrollment Form'!C213=\"ROC\",'Enrollment Form'!B213<>\"Subscriber\",'Enrollment Form'!O213=\"Waive\",'Enrollment Form'!O213=\"\"),\"-\",IF('Enrollment Form'!P213=\"\",\"N\",\"Y\")))","v":""},{"$f":"IF($B206=\"N\",\"\",IF(AND('Enrollment Form'!$C213=\"ROC\",'Enrollment Form'!$DR213<>\"\"),\"Y\",IF(AND('Enrollment Form'!$C213=\"ROC\",'Enrollment Form'!$DR213=\"\"),\"N\",IF(AND('Enrollment Form'!$C213=\"Enroll\",'Enrollment Form'!$B213=\"Subscriber\",'Enrollment Form'!$CX213=\"No\",'Enrollment Form'!$DR213=\"\"),\"N\",IF(AND('Enrollment Form'!$C213=\"Enroll\",'Enrollment Form'!$B213=\"Subscriber\",'Enrollment Form'!$CX213=\"Yes\"),\"-\",\"Y\")))))","v":""},{"$f":"IF($B206=\"N\",\"\",IF(AND('Enrollment Form'!$C213=\"ROC\",'Enrollment Form'!$DS213<>\"\"),\"Y\",IF(AND('Enrollment Form'!$C213=\"ROC\",'Enrollment Form'!$DS213=\"\"),\"N\",IF(AND('Enrollment Form'!$C213=\"Enroll\",'Enrollment Form'!$B213=\"Subscriber\",'Enrollment Form'!$CX213=\"No\",'Enrollment Form'!$DS213=\"\"),\"N\",IF(AND('Enrollment Form'!$C213=\"Enroll\",'Enrollment Form'!$B213=\"Subscriber\",'Enrollment Form'!$CX213=\"Yes\"),\"-\",\"Y\")))))","v":""},{"$f":"IF('Enrollment Form'!AH213=\"\",\"\",IF(ISERROR(SEARCH(\".\",'Enrollment Form'!AH213,SEARCH(\"@\",'Enrollment Form'!AH213))),\"N\",\"Y\"))","v":""},{"$f":"IF(OR($B206=\"N\",'Enrollment Form'!$G213=\"\"),\"\",IF('Enrollment Form'!$B213<>\"Subscriber\",\"-\",IF(COUNTIF('Enrollment Form'!$AV213:$AW213,\"Yes\")=2,\"N\",\"Y\")))","v":""},{"$f":"IF(OR('Enrollment Form'!$CJ213=\"\",'Enrollment Form'!$CJ213=\"No\"),\"-\",IF(AND('Enrollment Form'!$CJ213=\"Yes\",'Enrollment Form'!$CK213=\"\"),\"N\",\"Y\"))","v":"-"},{"$f":"IF(OR('Enrollment Form'!$CL213=\"\",'Enrollment Form'!$CL213=\"No\"),\"-\",IF(AND('Enrollment Form'!$CL213=\"Yes\",'Enrollment Form'!$CM213=\"\"),\"N\",\"Y\"))","v":"-"},{"$f":"IF(OR('Enrollment Form'!$CN213=\"\",'Enrollment Form'!$CN213=\"No\"),\"-\",IF(AND('Enrollment Form'!$CN213=\"Yes\",'Enrollment Form'!$CO213=\"\"),\"N\",\"Y\"))","v":"-"},{"$f":"IF(OR('Enrollment Form'!$CN213=\"\",'Enrollment Form'!$CN213=\"No\"),\"-\",IF(AND('Enrollment Form'!$CN213=\"Yes\",'Enrollment Form'!$CP213=\"\"),\"N\",\"Y\"))","v":"-"},{"$f":"IF('Enrollment Form'!B213<>\"Subscriber\",\"-\",IF(AND('Enrollment Form'!B213=\"Subscriber\",'Enrollment Form'!C213=\"Enroll\",'Enrollment Form'!AA213=\"\"),\"N\",\"Y\"))","v":"-"},{"$f":"IF(OR('Enrollment Form'!B213=\"Subscriber\",'Enrollment Form'!B213=\"\"),\"-\",IF('Enrollment Form'!BP213=\"\",\"N\",\"Y\"))","v":"-"},{"$f":"IF('Enrollment Form'!B213<>\"Subscriber\",\"-\",IF(AND('Enrollment Form'!B213=\"Subscriber\",'Enrollment Form'!G213=\"\"),\"N\",\"Y\"))","v":"-"},{"$f":"IF('Enrollment Form'!A213=\"\",\"\",IF('Enrollment Form'!B213=\"Subscriber\",\"-\",IF(AND('Enrollment Form'!B213<>\"Subscriber\",'Enrollment Form'!G213='Enrollment Form'!H213),\"N\",\"Y\")))","v":""},0]
[214,{"$f":"IF('Enrollment Form'!$A214<>\"\",\"Y\",\"N\")","v":"N"},{"$f":"IF(AND('Enrollment Form'!$B214=\"\",'Enrollment Form'!$C214<>\"\"),\"N\",IF($B207=\"N\",\"\",\"Y\"))","v":""},{"$f":"IF(OR($B207=\"N\",'Enrollment Form'!G214=\"\"),\"\",IF('Enrollment Form'!$B214<>\"Subscriber\",\"\",IF('Enrollment Form'!$G214='Enrollment Form'!$H214,\"Y\",\"N\")))","v":""},{"$f":"IF($B207=\"N\",\"\",IF(AND(COUNTIFS('Enrollment Form'!$H$11:$H$1000,'Enrollment Form'!$H214,'Enrollment Form'!$B$11:$B$1000,'Enrollment Form'!$B214)>1,'Enrollment Form'!$H214<>\"\"),\"N\",\"Y\"))","v":""},{"$f":"IF($B207=\"N\",\"\",IF(LEN('Enrollment Form'!$Y214)=0,\"\",IF(LEN('Enrollment Form'!$Y214)<>5,\"N\",\"Y\")))","v":""},{"$f":"IF($B207=\"N\",\"\",IF(LEN('Enrollment Form'!$AD214=0),\"\",IF(LEN('Enrollment Form'!$AD214)<>5,\"N\",\"Y\")))","v":""},{"$f":"IF($B207=\"N\",\"\",IF(LEN('Enrollment Form'!$BS214=0),\"\",IF(LEN('Enrollment Form'!$BS214)<>5,\"N\",\"Y\")))","v":""},{"$f":"IF($B207=\"N\",\"\",IF(LEN('Enrollment Form'!$AE214)=0,\"\",IF(LEN('Enrollment Form'!$AE214)<>10,\"N\",\"Y\")))","v":""},{"$f":"IF($B207=\"N\",\"\",IF(LEN('Enrollment Form'!$AF214)=0,\"\",IF(LEN('Enrollment Form'!$AF214)<>10,\"N\",\"Y\")))","v":""},{"$f":"IF('Enrollment Form'!$O214<>\"Graded\",\"-\",IF(AND('Enrollment Form'!$O214=\"Graded\",'Enrollment Form'!$AR214<>\"\"),\"Y\",\"N\"))","v":"-"},{"$f":"IF($B207=\"N\",\"\",IF(OR('Enrollment Form'!$B214<>\"Subscriber\",'Enrollment Form'!$C214=\"ROC\"),\"-\",IF(AND('Enrollment Form'!$B214=\"Subscriber\",'Enrollment Form'!$C214=\"Enroll\",'Enrollment Form'!$AJ214<>\"\"),\"Y\",\"N\")))","v":""},{"$f":"IF($B207=\"N\",\"\",IF(OR('Enrollment Form'!$B214<>\"Subscriber\",'Enrollment Form'!$C214=\"ROC\"),\"-\",IF(AND('Enrollment Form'!$B214=\"Subscriber\",'Enrollment Form'!$C214=\"Enroll\",'Enrollment Form'!$AK214<>\"\"),\"Y\",\"N\")))","v":""},{"$f":"IF($B207=\"N\",\"\",IF(OR('Enrollment Form'!$B214<>\"Subscriber\",'Enrollment Form'!$C214=\"ROC\"),\"-\",IF(AND('Enrollment Form'!$B214=\"Subscriber\",'Enrollment Form'!$C214=\"Enroll\",'Enrollment Form'!$AL214<>\"\"),\"Y\",\"N\")))","v":""},{"$f":"IF($B207=\"N\",\"\",IF(OR('Enrollment Form'!$B214<>\"Subscriber\",'Enrollment Form'!$C214=\"ROC\"),\"-\",IF(AND('Enrollment Form'!$B214=\"Subscriber\",'Enrollment Form'!$C214=\"Enroll\",'Enrollment Form'!$AP214<>\"\"),\"Y\",\"N\")))","v":""},{"$f":"IF($B207=\"N\",\"\",IF(OR('Enrollment Form'!$B214<>\"Subscriber\",'Enrollment Form'!$C214=\"ROC\"),\"-\",IF(AND('Enrollment Form'!$B214=\"Subscriber\",'Enrollment Form'!$C214=\"Enroll\",'Enrollment Form'!$AQ214<>\"\"),\"Y\",\"N\")))","v":""},{"$f":"IF($B207=\"N\",\"\",IF(OR('Enrollment Form'!$B214<>\"Subscriber\",'Enrollment Form'!$C214=\"ROC\"),\"-\",IF(AND('Enrollment Form'!$B214=\"Subscriber\",'Enrollment Form'!$C214=\"Enroll\",'Enrollment Form'!$AS214<>\"\"),\"Y\",\"N\")))","v":""},{"$f":"IF($B207=\"N\",\"\",IF($Q207=\"-\",\"-\",IF(AND($Q207=\"Y\",'Enrollment Form'!$AS214=\"No\"),\"-\",IF(AND($Q207=\"Y\",'Enrollment Form'!$AS214=\"Yes\",'Enrollment Form'!$AT214<>\"\"),\"Y\",\"N\"))))","v":""},{"$f":"IF($B207=\"N\",\"\",IF(OR('Enrollment Form'!$B214<>\"Subscriber\",'Enrollment Form'!$C214=\"ROC\"),\"-\",IF(AND('Enrollment Form'!$B214=\"Subscriber\",'Enrollment Form'!$C214=\"Enroll\",'Enrollment Form'!$CV214<>\"\"),\"Y\",\"N\")))","v":""},{"$f":"IF($B207=\"N\",\"\",IF($S207=\"-\",\"-\",IF(AND($S207=\"Y\",'Enrollment Form'!$CV214=\"No\"),\"-\",IF(AND($S207=\"Y\",'Enrollment Form'!$CV214=\"Yes\",'Enrollment Form'!$CW214<>\"\"),\"Y\",\"N\"))))","v":""},{"$f":"IF(OR('Enrollment Form'!$AY214=\"Yes\",'Enrollment Form'!$AY214=\"\"),\"-\",IF(OR(AND('Enrollment Form'!$AY214=\"No\",ISERROR(FIND(\"HMO\",VLOOKUP('Enrollment Form'!G214,'Enrollment Form'!H$11:J$1000,3,FALSE),1))=FALSE,COUNTA('Enrollment Form'!$AZ214:$BC214)=4),AND('Enrollment Form'!$AY214=\"No\",ISERROR(FIND(\"HMO\",VLOOKUP('Enrollment Form'!G214,'Enrollment Form'!H$11:J$1000,3,FALSE),1))=FALSE,COUNTA('Enrollment Form'!$BT214:$BW214)=4)),\"Y\",\"N\"))","v":"-"},{"$f":"IF($B207=\"N\",\"\",IF('Enrollment Form'!$B214=\"Subscriber\",\"-\",IF(COUNTA('Enrollment Form'!$BL214,'Enrollment Form'!$BN214)=2,\"Y\",\"N\")))","v":""},{"$f":"IF($B207=\"N\",\"\",IF(OR('Enrollment Form'!$AX214=\"\",'Enrollment Form'!$AX214=\"No\"),\"-\",IF(AND('Enrollment Form'!$AX214=\"Yes\",COUNTA('Enrollment Form'!$CR214)=1),\"Y\",\"N\")))","v":""},{"$f":"IF(OR('Enrollment Form'!$CR214=\"\",'Enrollment Form'!$CR214=\"No\"),\"-\",IF(COUNTA('Enrollment Form'!$CT214:$CU214)=2,\"Y\",\"N\"))","v":"-"},{"$f":"IF($B207=\"N\",\"\",IF(COUNTIF('Enrollment Form'!$DG214:$DP214,\"Other\")=COUNTA('Enrollment Form'!$DK214,'Enrollment Form'!$DH214,'Enrollment Form'!$DN214,'Enrollment Form'!$DQ214),\"Y\",\"N\"))","v":""},{"$f":"IF($B207=\"N\",\"\",IF(OR('Enrollment Form'!B214<>\"Subscriber\",'Enrollment Form'!C214=\"ROC\",COUNTIF('Enrollment Form'!AV214:AW214,\"Yes\")>=1),\"-\",IF(AND('Enrollment Form'!C214=\"Enroll\",COUNTIF('Enrollment Form'!AV214:AW214,\"No\")=2,'Enrollment Form'!AX214=\"\"),\"N\",\"Y\")))","v":""},{"$f":"IF(OR(B207=\"N\",'Enrollment Form'!B214<>\"Subscriber\",'Enrollment Form'!C214=\"ROC\",'Enrollment Form'!O214<>\"Multiple of Salary\"),\"-\",IF(COUNTA('Enrollment Form'!T214:U214)<2,\"N\",\"Y\"))","v":"-"},{"$f":"IF(B207=\"N\",\"\",IF(OR('Enrollment Form'!C214=\"ROC\",'Enrollment Form'!B214<>\"Subscriber\",'Enrollment Form'!O214=\"Waive\",'Enrollment Form'!O214=\"\"),\"-\",IF('Enrollment Form'!P214=\"\",\"N\",\"Y\")))","v":""},{"$f":"IF($B207=\"N\",\"\",IF(AND('Enrollment Form'!$C214=\"ROC\",'Enrollment Form'!$DR214<>\"\"),\"Y\",IF(AND('Enrollment Form'!$C214=\"ROC\",'Enrollment Form'!$DR214=\"\"),\"N\",IF(AND('Enrollment Form'!$C214=\"Enroll\",'Enrollment Form'!$B214=\"Subscriber\",'Enrollment Form'!$CX214=\"No\",'Enrollment Form'!$DR214=\"\"),\"N\",IF(AND('Enrollment Form'!$C214=\"Enroll\",'Enrollment Form'!$B214=\"Subscriber\",'Enrollment Form'!$CX214=\"Yes\"),\"-\",\"Y\")))))","v":""},{"$f":"IF($B207=\"N\",\"\",IF(AND('Enrollment Form'!$C214=\"ROC\",'Enrollment Form'!$DS214<>\"\"),\"Y\",IF(AND('Enrollment Form'!$C214=\"ROC\",'Enrollment Form'!$DS214=\"\"),\"N\",IF(AND('Enrollment Form'!$C214=\"Enroll\",'Enrollment Form'!$B214=\"Subscriber\",'Enrollment Form'!$CX214=\"No\",'Enrollment Form'!$DS214=\"\"),\"N\",IF(AND('Enrollment Form'!$C214=\"Enroll\",'Enrollment Form'!$B214=\"Subscriber\",'Enrollment Form'!$CX214=\"Yes\"),\"-\",\"Y\")))))","v":""},{"$f":"IF('Enrollment Form'!AH214=\"\",\"\",IF(ISERROR(SEARCH(\".\",'Enrollment Form'!AH214,SEARCH(\"@\",'Enrollment Form'!AH214))),\"N\",\"Y\"))","v":""},{"$f":"IF(OR($B207=\"N\",'Enrollment Form'!$G214=\"\"),\"\",IF('Enrollment Form'!$B214<>\"Subscriber\",\"-\",IF(COUNTIF('Enrollment Form'!$AV214:$AW214,\"Yes\")=2,\"N\",\"Y\")))","v":""},{"$f":"IF(OR('Enrollment Form'!$CJ214=\"\",'Enrollment Form'!$CJ214=\"No\"),\"-\",IF(AND('Enrollment Form'!$CJ214=\"Yes\",'Enrollment Form'!$CK214=\"\"),\"N\",\"Y\"))","v":"-"},{"$f":"IF(OR('Enrollment Form'!$CL214=\"\",'Enrollment Form'!$CL214=\"No\"),\"-\",IF(AND('Enrollment Form'!$CL214=\"Yes\",'Enrollment Form'!$CM214=\"\"),\"N\",\"Y\"))","v":"-"},{"$f":"IF(OR('Enrollment Form'!$CN214=\"\",'Enrollment Form'!$CN214=\"No\"),\"-\",IF(AND('Enrollment Form'!$CN214=\"Yes\",'Enrollment Form'!$CO214=\"\"),\"N\",\"Y\"))","v":"-"},{"$f":"IF(OR('Enrollment Form'!$CN214=\"\",'Enrollment Form'!$CN214=\"No\"),\"-\",IF(AND('Enrollment Form'!$CN214=\"Yes\",'Enrollment Form'!$CP214=\"\"),\"N\",\"Y\"))","v":"-"},{"$f":"IF('Enrollment Form'!B214<>\"Subscriber\",\"-\",IF(AND('Enrollment Form'!B214=\"Subscriber\",'Enrollment Form'!C214=\"Enroll\",'Enrollment Form'!AA214=\"\"),\"N\",\"Y\"))","v":"-"},{"$f":"IF(OR('Enrollment Form'!B214=\"Subscriber\",'Enrollment Form'!B214=\"\"),\"-\",IF('Enrollment Form'!BP214=\"\",\"N\",\"Y\"))","v":"-"},{"$f":"IF('Enrollment Form'!B214<>\"Subscriber\",\"-\",IF(AND('Enrollment Form'!B214=\"Subscriber\",'Enrollment Form'!G214=\"\"),\"N\",\"Y\"))","v":"-"},{"$f":"IF('Enrollment Form'!A214=\"\",\"\",IF('Enrollment Form'!B214=\"Subscriber\",\"-\",IF(AND('Enrollment Form'!B214<>\"Subscriber\",'Enrollment Form'!G214='Enrollment Form'!H214),\"N\",\"Y\")))","v":""},0]
[215,{"$f":"IF('Enrollment Form'!$A215<>\"\",\"Y\",\"N\")","v":"N"},{"$f":"IF(AND('Enrollment Form'!$B215=\"\",'Enrollment Form'!$C215<>\"\"),\"N\",IF($B208=\"N\",\"\",\"Y\"))","v":""},{"$f":"IF(OR($B208=\"N\",'Enrollment Form'!G215=\"\"),\"\",IF('Enrollment Form'!$B215<>\"Subscriber\",\"\",IF('Enrollment Form'!$G215='Enrollment Form'!$H215,\"Y\",\"N\")))","v":""},{"$f":"IF($B208=\"N\",\"\",IF(AND(COUNTIFS('Enrollment Form'!$H$11:$H$1000,'Enrollment Form'!$H215,'Enrollment Form'!$B$11:$B$1000,'Enrollment Form'!$B215)>1,'Enrollment Form'!$H215<>\"\"),\"N\",\"Y\"))","v":""},{"$f":"IF($B208=\"N\",\"\",IF(LEN('Enrollment Form'!$Y215)=0,\"\",IF(LEN('Enrollment Form'!$Y215)<>5,\"N\",\"Y\")))","v":""},{"$f":"IF($B208=\"N\",\"\",IF(LEN('Enrollment Form'!$AD215=0),\"\",IF(LEN('Enrollment Form'!$AD215)<>5,\"N\",\"Y\")))","v":""},{"$f":"IF($B208=\"N\",\"\",IF(LEN('Enrollment Form'!$BS215=0),\"\",IF(LEN('Enrollment Form'!$BS215)<>5,\"N\",\"Y\")))","v":""},{"$f":"IF($B208=\"N\",\"\",IF(LEN('Enrollment Form'!$AE215)=0,\"\",IF(LEN('Enrollment Form'!$AE215)<>10,\"N\",\"Y\")))","v":""},{"$f":"IF($B208=\"N\",\"\",IF(LEN('Enrollment Form'!$AF215)=0,\"\",IF(LEN('Enrollment Form'!$AF215)<>10,\"N\",\"Y\")))","v":""},{"$f":"IF('Enrollment Form'!$O215<>\"Graded\",\"-\",IF(AND('Enrollment Form'!$O215=\"Graded\",'Enrollment Form'!$AR215<>\"\"),\"Y\",\"N\"))","v":"-"},{"$f":"IF($B208=\"N\",\"\",IF(OR('Enrollment Form'!$B215<>\"Subscriber\",'Enrollment Form'!$C215=\"ROC\"),\"-\",IF(AND('Enrollment Form'!$B215=\"Subscriber\",'Enrollment Form'!$C215=\"Enroll\",'Enrollment Form'!$AJ215<>\"\"),\"Y\",\"N\")))","v":""},{"$f":"IF($B208=\"N\",\"\",IF(OR('Enrollment Form'!$B215<>\"Subscriber\",'Enrollment Form'!$C215=\"ROC\"),\"-\",IF(AND('Enrollment Form'!$B215=\"Subscriber\",'Enrollment Form'!$C215=\"Enroll\",'Enrollment Form'!$AK215<>\"\"),\"Y\",\"N\")))","v":""},{"$f":"IF($B208=\"N\",\"\",IF(OR('Enrollment Form'!$B215<>\"Subscriber\",'Enrollment Form'!$C215=\"ROC\"),\"-\",IF(AND('Enrollment Form'!$B215=\"Subscriber\",'Enrollment Form'!$C215=\"Enroll\",'Enrollment Form'!$AL215<>\"\"),\"Y\",\"N\")))","v":""},{"$f":"IF($B208=\"N\",\"\",IF(OR('Enrollment Form'!$B215<>\"Subscriber\",'Enrollment Form'!$C215=\"ROC\"),\"-\",IF(AND('Enrollment Form'!$B215=\"Subscriber\",'Enrollment Form'!$C215=\"Enroll\",'Enrollment Form'!$AP215<>\"\"),\"Y\",\"N\")))","v":""},{"$f":"IF($B208=\"N\",\"\",IF(OR('Enrollment Form'!$B215<>\"Subscriber\",'Enrollment Form'!$C215=\"ROC\"),\"-\",IF(AND('Enrollment Form'!$B215=\"Subscriber\",'Enrollment Form'!$C215=\"Enroll\",'Enrollment Form'!$AQ215<>\"\"),\"Y\",\"N\")))","v":""},{"$f":"IF($B208=\"N\",\"\",IF(OR('Enrollment Form'!$B215<>\"Subscriber\",'Enrollment Form'!$C215=\"ROC\"),\"-\",IF(AND('Enrollment Form'!$B215=\"Subscriber\",'Enrollment Form'!$C215=\"Enroll\",'Enrollment Form'!$AS215<>\"\"),\"Y\",\"N\")))","v":""},{"$f":"IF($B208=\"N\",\"\",IF($Q208=\"-\",\"-\",IF(AND($Q208=\"Y\",'Enrollment Form'!$AS215=\"No\"),\"-\",IF(AND($Q208=\"Y\",'Enrollment Form'!$AS215=\"Yes\",'Enrollment Form'!$AT215<>\"\"),\"Y\",\"N\"))))","v":""},{"$f":"IF($B208=\"N\",\"\",IF(OR('Enrollment Form'!$B215<>\"Subscriber\",'Enrollment Form'!$C215=\"ROC\"),\"-\",IF(AND('Enrollment Form'!$B215=\"Subscriber\",'Enrollment Form'!$C215=\"Enroll\",'Enrollment Form'!$CV215<>\"\"),\"Y\",\"N\")))","v":""},{"$f":"IF($B208=\"N\",\"\",IF($S208=\"-\",\"-\",IF(AND($S208=\"Y\",'Enrollment Form'!$CV215=\"No\"),\"-\",IF(AND($S208=\"Y\",'Enrollment Form'!$CV215=\"Yes\",'Enrollment Form'!$CW215<>\"\"),\"Y\",\"N\"))))","v":""},{"$f":"IF(OR('Enrollment Form'!$AY215=\"Yes\",'Enrollment Form'!$AY215=\"\"),\"-\",IF(OR(AND('Enrollment Form'!$AY215=\"No\",ISERROR(FIND(\"HMO\",VLOOKUP('Enrollment Form'!G215,'Enrollment Form'!H$11:J$1000,3,FALSE),1))=FALSE,COUNTA('Enrollment Form'!$AZ215:$BC215)=4),AND('Enrollment Form'!$AY215=\"No\",ISERROR(FIND(\"HMO\",VLOOKUP('Enrollment Form'!G215,'Enrollment Form'!H$11:J$1000,3,FALSE),1))=FALSE,COUNTA('Enrollment Form'!$BT215:$BW215)=4)),\"Y\",\"N\"))","v":"-"},{"$f":"IF($B208=\"N\",\"\",IF('Enrollment Form'!$B215=\"Subscriber\",\"-\",IF(COUNTA('Enrollment Form'!$BL215,'Enrollment Form'!$BN215)=2,\"Y\",\"N\")))","v":""},{"$f":"IF($B208=\"N\",\"\",IF(OR('Enrollment Form'!$AX215=\"\",'Enrollment Form'!$AX215=\"No\"),\"-\",IF(AND('Enrollment Form'!$AX215=\"Yes\",COUNTA('Enrollment Form'!$CR215)=1),\"Y\",\"N\")))","v":""},{"$f":"IF(OR('Enrollment Form'!$CR215=\"\",'Enrollment Form'!$CR215=\"No\"),\"-\",IF(COUNTA('Enrollment Form'!$CT215:$CU215)=2,\"Y\",\"N\"))","v":"-"},{"$f":"IF($B208=\"N\",\"\",IF(COUNTIF('Enrollment Form'!$DG215:$DP215,\"Other\")=COUNTA('Enrollment Form'!$DK215,'Enrollment Form'!$DH215,'Enrollment Form'!$DN215,'Enrollment Form'!$DQ215),\"Y\",\"N\"))","v":""},{"$f":"IF($B208=\"N\",\"\",IF(OR('Enrollment Form'!B215<>\"Subscriber\",'Enrollment Form'!C215=\"ROC\",COUNTIF('Enrollment Form'!AV215:AW215,\"Yes\")>=1),\"-\",IF(AND('Enrollment Form'!C215=\"Enroll\",COUNTIF('Enrollment Form'!AV215:AW215,\"No\")=2,'Enrollment Form'!AX215=\"\"),\"N\",\"Y\")))","v":""},{"$f":"IF(OR(B208=\"N\",'Enrollment Form'!B215<>\"Subscriber\",'Enrollment Form'!C215=\"ROC\",'Enrollment Form'!O215<>\"Multiple of Salary\"),\"-\",IF(COUNTA('Enrollment Form'!T215:U215)<2,\"N\",\"Y\"))","v":"-"},{"$f":"IF(B208=\"N\",\"\",IF(OR('Enrollment Form'!C215=\"ROC\",'Enrollment Form'!B215<>\"Subscriber\",'Enrollment Form'!O215=\"Waive\",'Enrollment Form'!O215=\"\"),\"-\",IF('Enrollment Form'!P215=\"\",\"N\",\"Y\")))","v":""},{"$f":"IF($B208=\"N\",\"\",IF(AND('Enrollment Form'!$C215=\"ROC\",'Enrollment Form'!$DR215<>\"\"),\"Y\",IF(AND('Enrollment Form'!$C215=\"ROC\",'Enrollment Form'!$DR215=\"\"),\"N\",IF(AND('Enrollment Form'!$C215=\"Enroll\",'Enrollment Form'!$B215=\"Subscriber\",'Enrollment Form'!$CX215=\"No\",'Enrollment Form'!$DR215=\"\"),\"N\",IF(AND('Enrollment Form'!$C215=\"Enroll\",'Enrollment Form'!$B215=\"Subscriber\",'Enrollment Form'!$CX215=\"Yes\"),\"-\",\"Y\")))))","v":""},{"$f":"IF($B208=\"N\",\"\",IF(AND('Enrollment Form'!$C215=\"ROC\",'Enrollment Form'!$DS215<>\"\"),\"Y\",IF(AND('Enrollment Form'!$C215=\"ROC\",'Enrollment Form'!$DS215=\"\"),\"N\",IF(AND('Enrollment Form'!$C215=\"Enroll\",'Enrollment Form'!$B215=\"Subscriber\",'Enrollment Form'!$CX215=\"No\",'Enrollment Form'!$DS215=\"\"),\"N\",IF(AND('Enrollment Form'!$C215=\"Enroll\",'Enrollment Form'!$B215=\"Subscriber\",'Enrollment Form'!$CX215=\"Yes\"),\"-\",\"Y\")))))","v":""},{"$f":"IF('Enrollment Form'!AH215=\"\",\"\",IF(ISERROR(SEARCH(\".\",'Enrollment Form'!AH215,SEARCH(\"@\",'Enrollment Form'!AH215))),\"N\",\"Y\"))","v":""},{"$f":"IF(OR($B208=\"N\",'Enrollment Form'!$G215=\"\"),\"\",IF('Enrollment Form'!$B215<>\"Subscriber\",\"-\",IF(COUNTIF('Enrollment Form'!$AV215:$AW215,\"Yes\")=2,\"N\",\"Y\")))","v":""},{"$f":"IF(OR('Enrollment Form'!$CJ215=\"\",'Enrollment Form'!$CJ215=\"No\"),\"-\",IF(AND('Enrollment Form'!$CJ215=\"Yes\",'Enrollment Form'!$CK215=\"\"),\"N\",\"Y\"))","v":"-"},{"$f":"IF(OR('Enrollment Form'!$CL215=\"\",'Enrollment Form'!$CL215=\"No\"),\"-\",IF(AND('Enrollment Form'!$CL215=\"Yes\",'Enrollment Form'!$CM215=\"\"),\"N\",\"Y\"))","v":"-"},{"$f":"IF(OR('Enrollment Form'!$CN215=\"\",'Enrollment Form'!$CN215=\"No\"),\"-\",IF(AND('Enrollment Form'!$CN215=\"Yes\",'Enrollment Form'!$CO215=\"\"),\"N\",\"Y\"))","v":"-"},{"$f":"IF(OR('Enrollment Form'!$CN215=\"\",'Enrollment Form'!$CN215=\"No\"),\"-\",IF(AND('Enrollment Form'!$CN215=\"Yes\",'Enrollment Form'!$CP215=\"\"),\"N\",\"Y\"))","v":"-"},{"$f":"IF('Enrollment Form'!B215<>\"Subscriber\",\"-\",IF(AND('Enrollment Form'!B215=\"Subscriber\",'Enrollment Form'!C215=\"Enroll\",'Enrollment Form'!AA215=\"\"),\"N\",\"Y\"))","v":"-"},{"$f":"IF(OR('Enrollment Form'!B215=\"Subscriber\",'Enrollment Form'!B215=\"\"),\"-\",IF('Enrollment Form'!BP215=\"\",\"N\",\"Y\"))","v":"-"},{"$f":"IF('Enrollment Form'!B215<>\"Subscriber\",\"-\",IF(AND('Enrollment Form'!B215=\"Subscriber\",'Enrollment Form'!G215=\"\"),\"N\",\"Y\"))","v":"-"},{"$f":"IF('Enrollment Form'!A215=\"\",\"\",IF('Enrollment Form'!B215=\"Subscriber\",\"-\",IF(AND('Enrollment Form'!B215<>\"Subscriber\",'Enrollment Form'!G215='Enrollment Form'!H215),\"N\",\"Y\")))","v":""},0]
[216,{"$f":"IF('Enrollment Form'!$A216<>\"\",\"Y\",\"N\")","v":"N"},{"$f":"IF(AND('Enrollment Form'!$B216=\"\",'Enrollment Form'!$C216<>\"\"),\"N\",IF($B209=\"N\",\"\",\"Y\"))","v":""},{"$f":"IF(OR($B209=\"N\",'Enrollment Form'!G216=\"\"),\"\",IF('Enrollment Form'!$B216<>\"Subscriber\",\"\",IF('Enrollment Form'!$G216='Enrollment Form'!$H216,\"Y\",\"N\")))","v":""},{"$f":"IF($B209=\"N\",\"\",IF(AND(COUNTIFS('Enrollment Form'!$H$11:$H$1000,'Enrollment Form'!$H216,'Enrollment Form'!$B$11:$B$1000,'Enrollment Form'!$B216)>1,'Enrollment Form'!$H216<>\"\"),\"N\",\"Y\"))","v":""},{"$f":"IF($B209=\"N\",\"\",IF(LEN('Enrollment Form'!$Y216)=0,\"\",IF(LEN('Enrollment Form'!$Y216)<>5,\"N\",\"Y\")))","v":""},{"$f":"IF($B209=\"N\",\"\",IF(LEN('Enrollment Form'!$AD216=0),\"\",IF(LEN('Enrollment Form'!$AD216)<>5,\"N\",\"Y\")))","v":""},{"$f":"IF($B209=\"N\",\"\",IF(LEN('Enrollment Form'!$BS216=0),\"\",IF(LEN('Enrollment Form'!$BS216)<>5,\"N\",\"Y\")))","v":""},{"$f":"IF($B209=\"N\",\"\",IF(LEN('Enrollment Form'!$AE216)=0,\"\",IF(LEN('Enrollment Form'!$AE216)<>10,\"N\",\"Y\")))","v":""},{"$f":"IF($B209=\"N\",\"\",IF(LEN('Enrollment Form'!$AF216)=0,\"\",IF(LEN('Enrollment Form'!$AF216)<>10,\"N\",\"Y\")))","v":""},{"$f":"IF('Enrollment Form'!$O216<>\"Graded\",\"-\",IF(AND('Enrollment Form'!$O216=\"Graded\",'Enrollment Form'!$AR216<>\"\"),\"Y\",\"N\"))","v":"-"},{"$f":"IF($B209=\"N\",\"\",IF(OR('Enrollment Form'!$B216<>\"Subscriber\",'Enrollment Form'!$C216=\"ROC\"),\"-\",IF(AND('Enrollment Form'!$B216=\"Subscriber\",'Enrollment Form'!$C216=\"Enroll\",'Enrollment Form'!$AJ216<>\"\"),\"Y\",\"N\")))","v":""},{"$f":"IF($B209=\"N\",\"\",IF(OR('Enrollment Form'!$B216<>\"Subscriber\",'Enrollment Form'!$C216=\"ROC\"),\"-\",IF(AND('Enrollment Form'!$B216=\"Subscriber\",'Enrollment Form'!$C216=\"Enroll\",'Enrollment Form'!$AK216<>\"\"),\"Y\",\"N\")))","v":""},{"$f":"IF($B209=\"N\",\"\",IF(OR('Enrollment Form'!$B216<>\"Subscriber\",'Enrollment Form'!$C216=\"ROC\"),\"-\",IF(AND('Enrollment Form'!$B216=\"Subscriber\",'Enrollment Form'!$C216=\"Enroll\",'Enrollment Form'!$AL216<>\"\"),\"Y\",\"N\")))","v":""},{"$f":"IF($B209=\"N\",\"\",IF(OR('Enrollment Form'!$B216<>\"Subscriber\",'Enrollment Form'!$C216=\"ROC\"),\"-\",IF(AND('Enrollment Form'!$B216=\"Subscriber\",'Enrollment Form'!$C216=\"Enroll\",'Enrollment Form'!$AP216<>\"\"),\"Y\",\"N\")))","v":""},{"$f":"IF($B209=\"N\",\"\",IF(OR('Enrollment Form'!$B216<>\"Subscriber\",'Enrollment Form'!$C216=\"ROC\"),\"-\",IF(AND('Enrollment Form'!$B216=\"Subscriber\",'Enrollment Form'!$C216=\"Enroll\",'Enrollment Form'!$AQ216<>\"\"),\"Y\",\"N\")))","v":""},{"$f":"IF($B209=\"N\",\"\",IF(OR('Enrollment Form'!$B216<>\"Subscriber\",'Enrollment Form'!$C216=\"ROC\"),\"-\",IF(AND('Enrollment Form'!$B216=\"Subscriber\",'Enrollment Form'!$C216=\"Enroll\",'Enrollment Form'!$AS216<>\"\"),\"Y\",\"N\")))","v":""},{"$f":"IF($B209=\"N\",\"\",IF($Q209=\"-\",\"-\",IF(AND($Q209=\"Y\",'Enrollment Form'!$AS216=\"No\"),\"-\",IF(AND($Q209=\"Y\",'Enrollment Form'!$AS216=\"Yes\",'Enrollment Form'!$AT216<>\"\"),\"Y\",\"N\"))))","v":""},{"$f":"IF($B209=\"N\",\"\",IF(OR('Enrollment Form'!$B216<>\"Subscriber\",'Enrollment Form'!$C216=\"ROC\"),\"-\",IF(AND('Enrollment Form'!$B216=\"Subscriber\",'Enrollment Form'!$C216=\"Enroll\",'Enrollment Form'!$CV216<>\"\"),\"Y\",\"N\")))","v":""},{"$f":"IF($B209=\"N\",\"\",IF($S209=\"-\",\"-\",IF(AND($S209=\"Y\",'Enrollment Form'!$CV216=\"No\"),\"-\",IF(AND($S209=\"Y\",'Enrollment Form'!$CV216=\"Yes\",'Enrollment Form'!$CW216<>\"\"),\"Y\",\"N\"))))","v":""},{"$f":"IF(OR('Enrollment Form'!$AY216=\"Yes\",'Enrollment Form'!$AY216=\"\"),\"-\",IF(OR(AND('Enrollment Form'!$AY216=\"No\",ISERROR(FIND(\"HMO\",VLOOKUP('Enrollment Form'!G216,'Enrollment Form'!H$11:J$1000,3,FALSE),1))=FALSE,COUNTA('Enrollment Form'!$AZ216:$BC216)=4),AND('Enrollment Form'!$AY216=\"No\",ISERROR(FIND(\"HMO\",VLOOKUP('Enrollment Form'!G216,'Enrollment Form'!H$11:J$1000,3,FALSE),1))=FALSE,COUNTA('Enrollment Form'!$BT216:$BW216)=4)),\"Y\",\"N\"))","v":"-"},{"$f":"IF($B209=\"N\",\"\",IF('Enrollment Form'!$B216=\"Subscriber\",\"-\",IF(COUNTA('Enrollment Form'!$BL216,'Enrollment Form'!$BN216)=2,\"Y\",\"N\")))","v":""},{"$f":"IF($B209=\"N\",\"\",IF(OR('Enrollment Form'!$AX216=\"\",'Enrollment Form'!$AX216=\"No\"),\"-\",IF(AND('Enrollment Form'!$AX216=\"Yes\",COUNTA('Enrollment Form'!$CR216)=1),\"Y\",\"N\")))","v":""},{"$f":"IF(OR('Enrollment Form'!$CR216=\"\",'Enrollment Form'!$CR216=\"No\"),\"-\",IF(COUNTA('Enrollment Form'!$CT216:$CU216)=2,\"Y\",\"N\"))","v":"-"},{"$f":"IF($B209=\"N\",\"\",IF(COUNTIF('Enrollment Form'!$DG216:$DP216,\"Other\")=COUNTA('Enrollment Form'!$DK216,'Enrollment Form'!$DH216,'Enrollment Form'!$DN216,'Enrollment Form'!$DQ216),\"Y\",\"N\"))","v":""},{"$f":"IF($B209=\"N\",\"\",IF(OR('Enrollment Form'!B216<>\"Subscriber\",'Enrollment Form'!C216=\"ROC\",COUNTIF('Enrollment Form'!AV216:AW216,\"Yes\")>=1),\"-\",IF(AND('Enrollment Form'!C216=\"Enroll\",COUNTIF('Enrollment Form'!AV216:AW216,\"No\")=2,'Enrollment Form'!AX216=\"\"),\"N\",\"Y\")))","v":""},{"$f":"IF(OR(B209=\"N\",'Enrollment Form'!B216<>\"Subscriber\",'Enrollment Form'!C216=\"ROC\",'Enrollment Form'!O216<>\"Multiple of Salary\"),\"-\",IF(COUNTA('Enrollment Form'!T216:U216)<2,\"N\",\"Y\"))","v":"-"},{"$f":"IF(B209=\"N\",\"\",IF(OR('Enrollment Form'!C216=\"ROC\",'Enrollment Form'!B216<>\"Subscriber\",'Enrollment Form'!O216=\"Waive\",'Enrollment Form'!O216=\"\"),\"-\",IF('Enrollment Form'!P216=\"\",\"N\",\"Y\")))","v":""},{"$f":"IF($B209=\"N\",\"\",IF(AND('Enrollment Form'!$C216=\"ROC\",'Enrollment Form'!$DR216<>\"\"),\"Y\",IF(AND('Enrollment Form'!$C216=\"ROC\",'Enrollment Form'!$DR216=\"\"),\"N\",IF(AND('Enrollment Form'!$C216=\"Enroll\",'Enrollment Form'!$B216=\"Subscriber\",'Enrollment Form'!$CX216=\"No\",'Enrollment Form'!$DR216=\"\"),\"N\",IF(AND('Enrollment Form'!$C216=\"Enroll\",'Enrollment Form'!$B216=\"Subscriber\",'Enrollment Form'!$CX216=\"Yes\"),\"-\",\"Y\")))))","v":""},{"$f":"IF($B209=\"N\",\"\",IF(AND('Enrollment Form'!$C216=\"ROC\",'Enrollment Form'!$DS216<>\"\"),\"Y\",IF(AND('Enrollment Form'!$C216=\"ROC\",'Enrollment Form'!$DS216=\"\"),\"N\",IF(AND('Enrollment Form'!$C216=\"Enroll\",'Enrollment Form'!$B216=\"Subscriber\",'Enrollment Form'!$CX216=\"No\",'Enrollment Form'!$DS216=\"\"),\"N\",IF(AND('Enrollment Form'!$C216=\"Enroll\",'Enrollment Form'!$B216=\"Subscriber\",'Enrollment Form'!$CX216=\"Yes\"),\"-\",\"Y\")))))","v":""},{"$f":"IF('Enrollment Form'!AH216=\"\",\"\",IF(ISERROR(SEARCH(\".\",'Enrollment Form'!AH216,SEARCH(\"@\",'Enrollment Form'!AH216))),\"N\",\"Y\"))","v":""},{"$f":"IF(OR($B209=\"N\",'Enrollment Form'!$G216=\"\"),\"\",IF('Enrollment Form'!$B216<>\"Subscriber\",\"-\",IF(COUNTIF('Enrollment Form'!$AV216:$AW216,\"Yes\")=2,\"N\",\"Y\")))","v":""},{"$f":"IF(OR('Enrollment Form'!$CJ216=\"\",'Enrollment Form'!$CJ216=\"No\"),\"-\",IF(AND('Enrollment Form'!$CJ216=\"Yes\",'Enrollment Form'!$CK216=\"\"),\"N\",\"Y\"))","v":"-"},{"$f":"IF(OR('Enrollment Form'!$CL216=\"\",'Enrollment Form'!$CL216=\"No\"),\"-\",IF(AND('Enrollment Form'!$CL216=\"Yes\",'Enrollment Form'!$CM216=\"\"),\"N\",\"Y\"))","v":"-"},{"$f":"IF(OR('Enrollment Form'!$CN216=\"\",'Enrollment Form'!$CN216=\"No\"),\"-\",IF(AND('Enrollment Form'!$CN216=\"Yes\",'Enrollment Form'!$CO216=\"\"),\"N\",\"Y\"))","v":"-"},{"$f":"IF(OR('Enrollment Form'!$CN216=\"\",'Enrollment Form'!$CN216=\"No\"),\"-\",IF(AND('Enrollment Form'!$CN216=\"Yes\",'Enrollment Form'!$CP216=\"\"),\"N\",\"Y\"))","v":"-"},{"$f":"IF('Enrollment Form'!B216<>\"Subscriber\",\"-\",IF(AND('Enrollment Form'!B216=\"Subscriber\",'Enrollment Form'!C216=\"Enroll\",'Enrollment Form'!AA216=\"\"),\"N\",\"Y\"))","v":"-"},{"$f":"IF(OR('Enrollment Form'!B216=\"Subscriber\",'Enrollment Form'!B216=\"\"),\"-\",IF('Enrollment Form'!BP216=\"\",\"N\",\"Y\"))","v":"-"},{"$f":"IF('Enrollment Form'!B216<>\"Subscriber\",\"-\",IF(AND('Enrollment Form'!B216=\"Subscriber\",'Enrollment Form'!G216=\"\"),\"N\",\"Y\"))","v":"-"},{"$f":"IF('Enrollment Form'!A216=\"\",\"\",IF('Enrollment Form'!B216=\"Subscriber\",\"-\",IF(AND('Enrollment Form'!B216<>\"Subscriber\",'Enrollment Form'!G216='Enrollment Form'!H216),\"N\",\"Y\")))","v":""},0]
[217,{"$f":"IF('Enrollment Form'!$A217<>\"\",\"Y\",\"N\")","v":"N"},{"$f":"IF(AND('Enrollment Form'!$B217=\"\",'Enrollment Form'!$C217<>\"\"),\"N\",IF($B210=\"N\",\"\",\"Y\"))","v":""},{"$f":"IF(OR($B210=\"N\",'Enrollment Form'!G217=\"\"),\"\",IF('Enrollment Form'!$B217<>\"Subscriber\",\"\",IF('Enrollment Form'!$G217='Enrollment Form'!$H217,\"Y\",\"N\")))","v":""},{"$f":"IF($B210=\"N\",\"\",IF(AND(COUNTIFS('Enrollment Form'!$H$11:$H$1000,'Enrollment Form'!$H217,'Enrollment Form'!$B$11:$B$1000,'Enrollment Form'!$B217)>1,'Enrollment Form'!$H217<>\"\"),\"N\",\"Y\"))","v":""},{"$f":"IF($B210=\"N\",\"\",IF(LEN('Enrollment Form'!$Y217)=0,\"\",IF(LEN('Enrollment Form'!$Y217)<>5,\"N\",\"Y\")))","v":""},{"$f":"IF($B210=\"N\",\"\",IF(LEN('Enrollment Form'!$AD217=0),\"\",IF(LEN('Enrollment Form'!$AD217)<>5,\"N\",\"Y\")))","v":""},{"$f":"IF($B210=\"N\",\"\",IF(LEN('Enrollment Form'!$BS217=0),\"\",IF(LEN('Enrollment Form'!$BS217)<>5,\"N\",\"Y\")))","v":""},{"$f":"IF($B210=\"N\",\"\",IF(LEN('Enrollment Form'!$AE217)=0,\"\",IF(LEN('Enrollment Form'!$AE217)<>10,\"N\",\"Y\")))","v":""},{"$f":"IF($B210=\"N\",\"\",IF(LEN('Enrollment Form'!$AF217)=0,\"\",IF(LEN('Enrollment Form'!$AF217)<>10,\"N\",\"Y\")))","v":""},{"$f":"IF('Enrollment Form'!$O217<>\"Graded\",\"-\",IF(AND('Enrollment Form'!$O217=\"Graded\",'Enrollment Form'!$AR217<>\"\"),\"Y\",\"N\"))","v":"-"},{"$f":"IF($B210=\"N\",\"\",IF(OR('Enrollment Form'!$B217<>\"Subscriber\",'Enrollment Form'!$C217=\"ROC\"),\"-\",IF(AND('Enrollment Form'!$B217=\"Subscriber\",'Enrollment Form'!$C217=\"Enroll\",'Enrollment Form'!$AJ217<>\"\"),\"Y\",\"N\")))","v":""},{"$f":"IF($B210=\"N\",\"\",IF(OR('Enrollment Form'!$B217<>\"Subscriber\",'Enrollment Form'!$C217=\"ROC\"),\"-\",IF(AND('Enrollment Form'!$B217=\"Subscriber\",'Enrollment Form'!$C217=\"Enroll\",'Enrollment Form'!$AK217<>\"\"),\"Y\",\"N\")))","v":""},{"$f":"IF($B210=\"N\",\"\",IF(OR('Enrollment Form'!$B217<>\"Subscriber\",'Enrollment Form'!$C217=\"ROC\"),\"-\",IF(AND('Enrollment Form'!$B217=\"Subscriber\",'Enrollment Form'!$C217=\"Enroll\",'Enrollment Form'!$AL217<>\"\"),\"Y\",\"N\")))","v":""},{"$f":"IF($B210=\"N\",\"\",IF(OR('Enrollment Form'!$B217<>\"Subscriber\",'Enrollment Form'!$C217=\"ROC\"),\"-\",IF(AND('Enrollment Form'!$B217=\"Subscriber\",'Enrollment Form'!$C217=\"Enroll\",'Enrollment Form'!$AP217<>\"\"),\"Y\",\"N\")))","v":""},{"$f":"IF($B210=\"N\",\"\",IF(OR('Enrollment Form'!$B217<>\"Subscriber\",'Enrollment Form'!$C217=\"ROC\"),\"-\",IF(AND('Enrollment Form'!$B217=\"Subscriber\",'Enrollment Form'!$C217=\"Enroll\",'Enrollment Form'!$AQ217<>\"\"),\"Y\",\"N\")))","v":""},{"$f":"IF($B210=\"N\",\"\",IF(OR('Enrollment Form'!$B217<>\"Subscriber\",'Enrollment Form'!$C217=\"ROC\"),\"-\",IF(AND('Enrollment Form'!$B217=\"Subscriber\",'Enrollment Form'!$C217=\"Enroll\",'Enrollment Form'!$AS217<>\"\"),\"Y\",\"N\")))","v":""},{"$f":"IF($B210=\"N\",\"\",IF($Q210=\"-\",\"-\",IF(AND($Q210=\"Y\",'Enrollment Form'!$AS217=\"No\"),\"-\",IF(AND($Q210=\"Y\",'Enrollment Form'!$AS217=\"Yes\",'Enrollment Form'!$AT217<>\"\"),\"Y\",\"N\"))))","v":""},{"$f":"IF($B210=\"N\",\"\",IF(OR('Enrollment Form'!$B217<>\"Subscriber\",'Enrollment Form'!$C217=\"ROC\"),\"-\",IF(AND('Enrollment Form'!$B217=\"Subscriber\",'Enrollment Form'!$C217=\"Enroll\",'Enrollment Form'!$CV217<>\"\"),\"Y\",\"N\")))","v":""},{"$f":"IF($B210=\"N\",\"\",IF($S210=\"-\",\"-\",IF(AND($S210=\"Y\",'Enrollment Form'!$CV217=\"No\"),\"-\",IF(AND($S210=\"Y\",'Enrollment Form'!$CV217=\"Yes\",'Enrollment Form'!$CW217<>\"\"),\"Y\",\"N\"))))","v":""},{"$f":"IF(OR('Enrollment Form'!$AY217=\"Yes\",'Enrollment Form'!$AY217=\"\"),\"-\",IF(OR(AND('Enrollment Form'!$AY217=\"No\",ISERROR(FIND(\"HMO\",VLOOKUP('Enrollment Form'!G217,'Enrollment Form'!H$11:J$1000,3,FALSE),1))=FALSE,COUNTA('Enrollment Form'!$AZ217:$BC217)=4),AND('Enrollment Form'!$AY217=\"No\",ISERROR(FIND(\"HMO\",VLOOKUP('Enrollment Form'!G217,'Enrollment Form'!H$11:J$1000,3,FALSE),1))=FALSE,COUNTA('Enrollment Form'!$BT217:$BW217)=4)),\"Y\",\"N\"))","v":"-"},{"$f":"IF($B210=\"N\",\"\",IF('Enrollment Form'!$B217=\"Subscriber\",\"-\",IF(COUNTA('Enrollment Form'!$BL217,'Enrollment Form'!$BN217)=2,\"Y\",\"N\")))","v":""},{"$f":"IF($B210=\"N\",\"\",IF(OR('Enrollment Form'!$AX217=\"\",'Enrollment Form'!$AX217=\"No\"),\"-\",IF(AND('Enrollment Form'!$AX217=\"Yes\",COUNTA('Enrollment Form'!$CR217)=1),\"Y\",\"N\")))","v":""},{"$f":"IF(OR('Enrollment Form'!$CR217=\"\",'Enrollment Form'!$CR217=\"No\"),\"-\",IF(COUNTA('Enrollment Form'!$CT217:$CU217)=2,\"Y\",\"N\"))","v":"-"},{"$f":"IF($B210=\"N\",\"\",IF(COUNTIF('Enrollment Form'!$DG217:$DP217,\"Other\")=COUNTA('Enrollment Form'!$DK217,'Enrollment Form'!$DH217,'Enrollment Form'!$DN217,'Enrollment Form'!$DQ217),\"Y\",\"N\"))","v":""},{"$f":"IF($B210=\"N\",\"\",IF(OR('Enrollment Form'!B217<>\"Subscriber\",'Enrollment Form'!C217=\"ROC\",COUNTIF('Enrollment Form'!AV217:AW217,\"Yes\")>=1),\"-\",IF(AND('Enrollment Form'!C217=\"Enroll\",COUNTIF('Enrollment Form'!AV217:AW217,\"No\")=2,'Enrollment Form'!AX217=\"\"),\"N\",\"Y\")))","v":""},{"$f":"IF(OR(B210=\"N\",'Enrollment Form'!B217<>\"Subscriber\",'Enrollment Form'!C217=\"ROC\",'Enrollment Form'!O217<>\"Multiple of Salary\"),\"-\",IF(COUNTA('Enrollment Form'!T217:U217)<2,\"N\",\"Y\"))","v":"-"},{"$f":"IF(B210=\"N\",\"\",IF(OR('Enrollment Form'!C217=\"ROC\",'Enrollment Form'!B217<>\"Subscriber\",'Enrollment Form'!O217=\"Waive\",'Enrollment Form'!O217=\"\"),\"-\",IF('Enrollment Form'!P217=\"\",\"N\",\"Y\")))","v":""},{"$f":"IF($B210=\"N\",\"\",IF(AND('Enrollment Form'!$C217=\"ROC\",'Enrollment Form'!$DR217<>\"\"),\"Y\",IF(AND('Enrollment Form'!$C217=\"ROC\",'Enrollment Form'!$DR217=\"\"),\"N\",IF(AND('Enrollment Form'!$C217=\"Enroll\",'Enrollment Form'!$B217=\"Subscriber\",'Enrollment Form'!$CX217=\"No\",'Enrollment Form'!$DR217=\"\"),\"N\",IF(AND('Enrollment Form'!$C217=\"Enroll\",'Enrollment Form'!$B217=\"Subscriber\",'Enrollment Form'!$CX217=\"Yes\"),\"-\",\"Y\")))))","v":""},{"$f":"IF($B210=\"N\",\"\",IF(AND('Enrollment Form'!$C217=\"ROC\",'Enrollment Form'!$DS217<>\"\"),\"Y\",IF(AND('Enrollment Form'!$C217=\"ROC\",'Enrollment Form'!$DS217=\"\"),\"N\",IF(AND('Enrollment Form'!$C217=\"Enroll\",'Enrollment Form'!$B217=\"Subscriber\",'Enrollment Form'!$CX217=\"No\",'Enrollment Form'!$DS217=\"\"),\"N\",IF(AND('Enrollment Form'!$C217=\"Enroll\",'Enrollment Form'!$B217=\"Subscriber\",'Enrollment Form'!$CX217=\"Yes\"),\"-\",\"Y\")))))","v":""},{"$f":"IF('Enrollment Form'!AH217=\"\",\"\",IF(ISERROR(SEARCH(\".\",'Enrollment Form'!AH217,SEARCH(\"@\",'Enrollment Form'!AH217))),\"N\",\"Y\"))","v":""},{"$f":"IF(OR($B210=\"N\",'Enrollment Form'!$G217=\"\"),\"\",IF('Enrollment Form'!$B217<>\"Subscriber\",\"-\",IF(COUNTIF('Enrollment Form'!$AV217:$AW217,\"Yes\")=2,\"N\",\"Y\")))","v":""},{"$f":"IF(OR('Enrollment Form'!$CJ217=\"\",'Enrollment Form'!$CJ217=\"No\"),\"-\",IF(AND('Enrollment Form'!$CJ217=\"Yes\",'Enrollment Form'!$CK217=\"\"),\"N\",\"Y\"))","v":"-"},{"$f":"IF(OR('Enrollment Form'!$CL217=\"\",'Enrollment Form'!$CL217=\"No\"),\"-\",IF(AND('Enrollment Form'!$CL217=\"Yes\",'Enrollment Form'!$CM217=\"\"),\"N\",\"Y\"))","v":"-"},{"$f":"IF(OR('Enrollment Form'!$CN217=\"\",'Enrollment Form'!$CN217=\"No\"),\"-\",IF(AND('Enrollment Form'!$CN217=\"Yes\",'Enrollment Form'!$CO217=\"\"),\"N\",\"Y\"))","v":"-"},{"$f":"IF(OR('Enrollment Form'!$CN217=\"\",'Enrollment Form'!$CN217=\"No\"),\"-\",IF(AND('Enrollment Form'!$CN217=\"Yes\",'Enrollment Form'!$CP217=\"\"),\"N\",\"Y\"))","v":"-"},{"$f":"IF('Enrollment Form'!B217<>\"Subscriber\",\"-\",IF(AND('Enrollment Form'!B217=\"Subscriber\",'Enrollment Form'!C217=\"Enroll\",'Enrollment Form'!AA217=\"\"),\"N\",\"Y\"))","v":"-"},{"$f":"IF(OR('Enrollment Form'!B217=\"Subscriber\",'Enrollment Form'!B217=\"\"),\"-\",IF('Enrollment Form'!BP217=\"\",\"N\",\"Y\"))","v":"-"},{"$f":"IF('Enrollment Form'!B217<>\"Subscriber\",\"-\",IF(AND('Enrollment Form'!B217=\"Subscriber\",'Enrollment Form'!G217=\"\"),\"N\",\"Y\"))","v":"-"},{"$f":"IF('Enrollment Form'!A217=\"\",\"\",IF('Enrollment Form'!B217=\"Subscriber\",\"-\",IF(AND('Enrollment Form'!B217<>\"Subscriber\",'Enrollment Form'!G217='Enrollment Form'!H217),\"N\",\"Y\")))","v":""},0]
[218,{"$f":"IF('Enrollment Form'!$A218<>\"\",\"Y\",\"N\")","v":"N"},{"$f":"IF(AND('Enrollment Form'!$B218=\"\",'Enrollment Form'!$C218<>\"\"),\"N\",IF($B211=\"N\",\"\",\"Y\"))","v":""},{"$f":"IF(OR($B211=\"N\",'Enrollment Form'!G218=\"\"),\"\",IF('Enrollment Form'!$B218<>\"Subscriber\",\"\",IF('Enrollment Form'!$G218='Enrollment Form'!$H218,\"Y\",\"N\")))","v":""},{"$f":"IF($B211=\"N\",\"\",IF(AND(COUNTIFS('Enrollment Form'!$H$11:$H$1000,'Enrollment Form'!$H218,'Enrollment Form'!$B$11:$B$1000,'Enrollment Form'!$B218)>1,'Enrollment Form'!$H218<>\"\"),\"N\",\"Y\"))","v":""},{"$f":"IF($B211=\"N\",\"\",IF(LEN('Enrollment Form'!$Y218)=0,\"\",IF(LEN('Enrollment Form'!$Y218)<>5,\"N\",\"Y\")))","v":""},{"$f":"IF($B211=\"N\",\"\",IF(LEN('Enrollment Form'!$AD218=0),\"\",IF(LEN('Enrollment Form'!$AD218)<>5,\"N\",\"Y\")))","v":""},{"$f":"IF($B211=\"N\",\"\",IF(LEN('Enrollment Form'!$BS218=0),\"\",IF(LEN('Enrollment Form'!$BS218)<>5,\"N\",\"Y\")))","v":""},{"$f":"IF($B211=\"N\",\"\",IF(LEN('Enrollment Form'!$AE218)=0,\"\",IF(LEN('Enrollment Form'!$AE218)<>10,\"N\",\"Y\")))","v":""},{"$f":"IF($B211=\"N\",\"\",IF(LEN('Enrollment Form'!$AF218)=0,\"\",IF(LEN('Enrollment Form'!$AF218)<>10,\"N\",\"Y\")))","v":""},{"$f":"IF('Enrollment Form'!$O218<>\"Graded\",\"-\",IF(AND('Enrollment Form'!$O218=\"Graded\",'Enrollment Form'!$AR218<>\"\"),\"Y\",\"N\"))","v":"-"},{"$f":"IF($B211=\"N\",\"\",IF(OR('Enrollment Form'!$B218<>\"Subscriber\",'Enrollment Form'!$C218=\"ROC\"),\"-\",IF(AND('Enrollment Form'!$B218=\"Subscriber\",'Enrollment Form'!$C218=\"Enroll\",'Enrollment Form'!$AJ218<>\"\"),\"Y\",\"N\")))","v":""},{"$f":"IF($B211=\"N\",\"\",IF(OR('Enrollment Form'!$B218<>\"Subscriber\",'Enrollment Form'!$C218=\"ROC\"),\"-\",IF(AND('Enrollment Form'!$B218=\"Subscriber\",'Enrollment Form'!$C218=\"Enroll\",'Enrollment Form'!$AK218<>\"\"),\"Y\",\"N\")))","v":""},{"$f":"IF($B211=\"N\",\"\",IF(OR('Enrollment Form'!$B218<>\"Subscriber\",'Enrollment Form'!$C218=\"ROC\"),\"-\",IF(AND('Enrollment Form'!$B218=\"Subscriber\",'Enrollment Form'!$C218=\"Enroll\",'Enrollment Form'!$AL218<>\"\"),\"Y\",\"N\")))","v":""},{"$f":"IF($B211=\"N\",\"\",IF(OR('Enrollment Form'!$B218<>\"Subscriber\",'Enrollment Form'!$C218=\"ROC\"),\"-\",IF(AND('Enrollment Form'!$B218=\"Subscriber\",'Enrollment Form'!$C218=\"Enroll\",'Enrollment Form'!$AP218<>\"\"),\"Y\",\"N\")))","v":""},{"$f":"IF($B211=\"N\",\"\",IF(OR('Enrollment Form'!$B218<>\"Subscriber\",'Enrollment Form'!$C218=\"ROC\"),\"-\",IF(AND('Enrollment Form'!$B218=\"Subscriber\",'Enrollment Form'!$C218=\"Enroll\",'Enrollment Form'!$AQ218<>\"\"),\"Y\",\"N\")))","v":""},{"$f":"IF($B211=\"N\",\"\",IF(OR('Enrollment Form'!$B218<>\"Subscriber\",'Enrollment Form'!$C218=\"ROC\"),\"-\",IF(AND('Enrollment Form'!$B218=\"Subscriber\",'Enrollment Form'!$C218=\"Enroll\",'Enrollment Form'!$AS218<>\"\"),\"Y\",\"N\")))","v":""},{"$f":"IF($B211=\"N\",\"\",IF($Q211=\"-\",\"-\",IF(AND($Q211=\"Y\",'Enrollment Form'!$AS218=\"No\"),\"-\",IF(AND($Q211=\"Y\",'Enrollment Form'!$AS218=\"Yes\",'Enrollment Form'!$AT218<>\"\"),\"Y\",\"N\"))))","v":""},{"$f":"IF($B211=\"N\",\"\",IF(OR('Enrollment Form'!$B218<>\"Subscriber\",'Enrollment Form'!$C218=\"ROC\"),\"-\",IF(AND('Enrollment Form'!$B218=\"Subscriber\",'Enrollment Form'!$C218=\"Enroll\",'Enrollment Form'!$CV218<>\"\"),\"Y\",\"N\")))","v":""},{"$f":"IF($B211=\"N\",\"\",IF($S211=\"-\",\"-\",IF(AND($S211=\"Y\",'Enrollment Form'!$CV218=\"No\"),\"-\",IF(AND($S211=\"Y\",'Enrollment Form'!$CV218=\"Yes\",'Enrollment Form'!$CW218<>\"\"),\"Y\",\"N\"))))","v":""},{"$f":"IF(OR('Enrollment Form'!$AY218=\"Yes\",'Enrollment Form'!$AY218=\"\"),\"-\",IF(OR(AND('Enrollment Form'!$AY218=\"No\",ISERROR(FIND(\"HMO\",VLOOKUP('Enrollment Form'!G218,'Enrollment Form'!H$11:J$1000,3,FALSE),1))=FALSE,COUNTA('Enrollment Form'!$AZ218:$BC218)=4),AND('Enrollment Form'!$AY218=\"No\",ISERROR(FIND(\"HMO\",VLOOKUP('Enrollment Form'!G218,'Enrollment Form'!H$11:J$1000,3,FALSE),1))=FALSE,COUNTA('Enrollment Form'!$BT218:$BW218)=4)),\"Y\",\"N\"))","v":"-"},{"$f":"IF($B211=\"N\",\"\",IF('Enrollment Form'!$B218=\"Subscriber\",\"-\",IF(COUNTA('Enrollment Form'!$BL218,'Enrollment Form'!$BN218)=2,\"Y\",\"N\")))","v":""},{"$f":"IF($B211=\"N\",\"\",IF(OR('Enrollment Form'!$AX218=\"\",'Enrollment Form'!$AX218=\"No\"),\"-\",IF(AND('Enrollment Form'!$AX218=\"Yes\",COUNTA('Enrollment Form'!$CR218)=1),\"Y\",\"N\")))","v":""},{"$f":"IF(OR('Enrollment Form'!$CR218=\"\",'Enrollment Form'!$CR218=\"No\"),\"-\",IF(COUNTA('Enrollment Form'!$CT218:$CU218)=2,\"Y\",\"N\"))","v":"-"},{"$f":"IF($B211=\"N\",\"\",IF(COUNTIF('Enrollment Form'!$DG218:$DP218,\"Other\")=COUNTA('Enrollment Form'!$DK218,'Enrollment Form'!$DH218,'Enrollment Form'!$DN218,'Enrollment Form'!$DQ218),\"Y\",\"N\"))","v":""},{"$f":"IF($B211=\"N\",\"\",IF(OR('Enrollment Form'!B218<>\"Subscriber\",'Enrollment Form'!C218=\"ROC\",COUNTIF('Enrollment Form'!AV218:AW218,\"Yes\")>=1),\"-\",IF(AND('Enrollment Form'!C218=\"Enroll\",COUNTIF('Enrollment Form'!AV218:AW218,\"No\")=2,'Enrollment Form'!AX218=\"\"),\"N\",\"Y\")))","v":""},{"$f":"IF(OR(B211=\"N\",'Enrollment Form'!B218<>\"Subscriber\",'Enrollment Form'!C218=\"ROC\",'Enrollment Form'!O218<>\"Multiple of Salary\"),\"-\",IF(COUNTA('Enrollment Form'!T218:U218)<2,\"N\",\"Y\"))","v":"-"},{"$f":"IF(B211=\"N\",\"\",IF(OR('Enrollment Form'!C218=\"ROC\",'Enrollment Form'!B218<>\"Subscriber\",'Enrollment Form'!O218=\"Waive\",'Enrollment Form'!O218=\"\"),\"-\",IF('Enrollment Form'!P218=\"\",\"N\",\"Y\")))","v":""},{"$f":"IF($B211=\"N\",\"\",IF(AND('Enrollment Form'!$C218=\"ROC\",'Enrollment Form'!$DR218<>\"\"),\"Y\",IF(AND('Enrollment Form'!$C218=\"ROC\",'Enrollment Form'!$DR218=\"\"),\"N\",IF(AND('Enrollment Form'!$C218=\"Enroll\",'Enrollment Form'!$B218=\"Subscriber\",'Enrollment Form'!$CX218=\"No\",'Enrollment Form'!$DR218=\"\"),\"N\",IF(AND('Enrollment Form'!$C218=\"Enroll\",'Enrollment Form'!$B218=\"Subscriber\",'Enrollment Form'!$CX218=\"Yes\"),\"-\",\"Y\")))))","v":""},{"$f":"IF($B211=\"N\",\"\",IF(AND('Enrollment Form'!$C218=\"ROC\",'Enrollment Form'!$DS218<>\"\"),\"Y\",IF(AND('Enrollment Form'!$C218=\"ROC\",'Enrollment Form'!$DS218=\"\"),\"N\",IF(AND('Enrollment Form'!$C218=\"Enroll\",'Enrollment Form'!$B218=\"Subscriber\",'Enrollment Form'!$CX218=\"No\",'Enrollment Form'!$DS218=\"\"),\"N\",IF(AND('Enrollment Form'!$C218=\"Enroll\",'Enrollment Form'!$B218=\"Subscriber\",'Enrollment Form'!$CX218=\"Yes\"),\"-\",\"Y\")))))","v":""},{"$f":"IF('Enrollment Form'!AH218=\"\",\"\",IF(ISERROR(SEARCH(\".\",'Enrollment Form'!AH218,SEARCH(\"@\",'Enrollment Form'!AH218))),\"N\",\"Y\"))","v":""},{"$f":"IF(OR($B211=\"N\",'Enrollment Form'!$G218=\"\"),\"\",IF('Enrollment Form'!$B218<>\"Subscriber\",\"-\",IF(COUNTIF('Enrollment Form'!$AV218:$AW218,\"Yes\")=2,\"N\",\"Y\")))","v":""},{"$f":"IF(OR('Enrollment Form'!$CJ218=\"\",'Enrollment Form'!$CJ218=\"No\"),\"-\",IF(AND('Enrollment Form'!$CJ218=\"Yes\",'Enrollment Form'!$CK218=\"\"),\"N\",\"Y\"))","v":"-"},{"$f":"IF(OR('Enrollment Form'!$CL218=\"\",'Enrollment Form'!$CL218=\"No\"),\"-\",IF(AND('Enrollment Form'!$CL218=\"Yes\",'Enrollment Form'!$CM218=\"\"),\"N\",\"Y\"))","v":"-"},{"$f":"IF(OR('Enrollment Form'!$CN218=\"\",'Enrollment Form'!$CN218=\"No\"),\"-\",IF(AND('Enrollment Form'!$CN218=\"Yes\",'Enrollment Form'!$CO218=\"\"),\"N\",\"Y\"))","v":"-"},{"$f":"IF(OR('Enrollment Form'!$CN218=\"\",'Enrollment Form'!$CN218=\"No\"),\"-\",IF(AND('Enrollment Form'!$CN218=\"Yes\",'Enrollment Form'!$CP218=\"\"),\"N\",\"Y\"))","v":"-"},{"$f":"IF('Enrollment Form'!B218<>\"Subscriber\",\"-\",IF(AND('Enrollment Form'!B218=\"Subscriber\",'Enrollment Form'!C218=\"Enroll\",'Enrollment Form'!AA218=\"\"),\"N\",\"Y\"))","v":"-"},{"$f":"IF(OR('Enrollment Form'!B218=\"Subscriber\",'Enrollment Form'!B218=\"\"),\"-\",IF('Enrollment Form'!BP218=\"\",\"N\",\"Y\"))","v":"-"},{"$f":"IF('Enrollment Form'!B218<>\"Subscriber\",\"-\",IF(AND('Enrollment Form'!B218=\"Subscriber\",'Enrollment Form'!G218=\"\"),\"N\",\"Y\"))","v":"-"},{"$f":"IF('Enrollment Form'!A218=\"\",\"\",IF('Enrollment Form'!B218=\"Subscriber\",\"-\",IF(AND('Enrollment Form'!B218<>\"Subscriber\",'Enrollment Form'!G218='Enrollment Form'!H218),\"N\",\"Y\")))","v":""},0]
[219,{"$f":"IF('Enrollment Form'!$A219<>\"\",\"Y\",\"N\")","v":"N"},{"$f":"IF(AND('Enrollment Form'!$B219=\"\",'Enrollment Form'!$C219<>\"\"),\"N\",IF($B212=\"N\",\"\",\"Y\"))","v":""},{"$f":"IF(OR($B212=\"N\",'Enrollment Form'!G219=\"\"),\"\",IF('Enrollment Form'!$B219<>\"Subscriber\",\"\",IF('Enrollment Form'!$G219='Enrollment Form'!$H219,\"Y\",\"N\")))","v":""},{"$f":"IF($B212=\"N\",\"\",IF(AND(COUNTIFS('Enrollment Form'!$H$11:$H$1000,'Enrollment Form'!$H219,'Enrollment Form'!$B$11:$B$1000,'Enrollment Form'!$B219)>1,'Enrollment Form'!$H219<>\"\"),\"N\",\"Y\"))","v":""},{"$f":"IF($B212=\"N\",\"\",IF(LEN('Enrollment Form'!$Y219)=0,\"\",IF(LEN('Enrollment Form'!$Y219)<>5,\"N\",\"Y\")))","v":""},{"$f":"IF($B212=\"N\",\"\",IF(LEN('Enrollment Form'!$AD219=0),\"\",IF(LEN('Enrollment Form'!$AD219)<>5,\"N\",\"Y\")))","v":""},{"$f":"IF($B212=\"N\",\"\",IF(LEN('Enrollment Form'!$BS219=0),\"\",IF(LEN('Enrollment Form'!$BS219)<>5,\"N\",\"Y\")))","v":""},{"$f":"IF($B212=\"N\",\"\",IF(LEN('Enrollment Form'!$AE219)=0,\"\",IF(LEN('Enrollment Form'!$AE219)<>10,\"N\",\"Y\")))","v":""},{"$f":"IF($B212=\"N\",\"\",IF(LEN('Enrollment Form'!$AF219)=0,\"\",IF(LEN('Enrollment Form'!$AF219)<>10,\"N\",\"Y\")))","v":""},{"$f":"IF('Enrollment Form'!$O219<>\"Graded\",\"-\",IF(AND('Enrollment Form'!$O219=\"Graded\",'Enrollment Form'!$AR219<>\"\"),\"Y\",\"N\"))","v":"-"},{"$f":"IF($B212=\"N\",\"\",IF(OR('Enrollment Form'!$B219<>\"Subscriber\",'Enrollment Form'!$C219=\"ROC\"),\"-\",IF(AND('Enrollment Form'!$B219=\"Subscriber\",'Enrollment Form'!$C219=\"Enroll\",'Enrollment Form'!$AJ219<>\"\"),\"Y\",\"N\")))","v":""},{"$f":"IF($B212=\"N\",\"\",IF(OR('Enrollment Form'!$B219<>\"Subscriber\",'Enrollment Form'!$C219=\"ROC\"),\"-\",IF(AND('Enrollment Form'!$B219=\"Subscriber\",'Enrollment Form'!$C219=\"Enroll\",'Enrollment Form'!$AK219<>\"\"),\"Y\",\"N\")))","v":""},{"$f":"IF($B212=\"N\",\"\",IF(OR('Enrollment Form'!$B219<>\"Subscriber\",'Enrollment Form'!$C219=\"ROC\"),\"-\",IF(AND('Enrollment Form'!$B219=\"Subscriber\",'Enrollment Form'!$C219=\"Enroll\",'Enrollment Form'!$AL219<>\"\"),\"Y\",\"N\")))","v":""},{"$f":"IF($B212=\"N\",\"\",IF(OR('Enrollment Form'!$B219<>\"Subscriber\",'Enrollment Form'!$C219=\"ROC\"),\"-\",IF(AND('Enrollment Form'!$B219=\"Subscriber\",'Enrollment Form'!$C219=\"Enroll\",'Enrollment Form'!$AP219<>\"\"),\"Y\",\"N\")))","v":""},{"$f":"IF($B212=\"N\",\"\",IF(OR('Enrollment Form'!$B219<>\"Subscriber\",'Enrollment Form'!$C219=\"ROC\"),\"-\",IF(AND('Enrollment Form'!$B219=\"Subscriber\",'Enrollment Form'!$C219=\"Enroll\",'Enrollment Form'!$AQ219<>\"\"),\"Y\",\"N\")))","v":""},{"$f":"IF($B212=\"N\",\"\",IF(OR('Enrollment Form'!$B219<>\"Subscriber\",'Enrollment Form'!$C219=\"ROC\"),\"-\",IF(AND('Enrollment Form'!$B219=\"Subscriber\",'Enrollment Form'!$C219=\"Enroll\",'Enrollment Form'!$AS219<>\"\"),\"Y\",\"N\")))","v":""},{"$f":"IF($B212=\"N\",\"\",IF($Q212=\"-\",\"-\",IF(AND($Q212=\"Y\",'Enrollment Form'!$AS219=\"No\"),\"-\",IF(AND($Q212=\"Y\",'Enrollment Form'!$AS219=\"Yes\",'Enrollment Form'!$AT219<>\"\"),\"Y\",\"N\"))))","v":""},{"$f":"IF($B212=\"N\",\"\",IF(OR('Enrollment Form'!$B219<>\"Subscriber\",'Enrollment Form'!$C219=\"ROC\"),\"-\",IF(AND('Enrollment Form'!$B219=\"Subscriber\",'Enrollment Form'!$C219=\"Enroll\",'Enrollment Form'!$CV219<>\"\"),\"Y\",\"N\")))","v":""},{"$f":"IF($B212=\"N\",\"\",IF($S212=\"-\",\"-\",IF(AND($S212=\"Y\",'Enrollment Form'!$CV219=\"No\"),\"-\",IF(AND($S212=\"Y\",'Enrollment Form'!$CV219=\"Yes\",'Enrollment Form'!$CW219<>\"\"),\"Y\",\"N\"))))","v":""},{"$f":"IF(OR('Enrollment Form'!$AY219=\"Yes\",'Enrollment Form'!$AY219=\"\"),\"-\",IF(OR(AND('Enrollment Form'!$AY219=\"No\",ISERROR(FIND(\"HMO\",VLOOKUP('Enrollment Form'!G219,'Enrollment Form'!H$11:J$1000,3,FALSE),1))=FALSE,COUNTA('Enrollment Form'!$AZ219:$BC219)=4),AND('Enrollment Form'!$AY219=\"No\",ISERROR(FIND(\"HMO\",VLOOKUP('Enrollment Form'!G219,'Enrollment Form'!H$11:J$1000,3,FALSE),1))=FALSE,COUNTA('Enrollment Form'!$BT219:$BW219)=4)),\"Y\",\"N\"))","v":"-"},{"$f":"IF($B212=\"N\",\"\",IF('Enrollment Form'!$B219=\"Subscriber\",\"-\",IF(COUNTA('Enrollment Form'!$BL219,'Enrollment Form'!$BN219)=2,\"Y\",\"N\")))","v":""},{"$f":"IF($B212=\"N\",\"\",IF(OR('Enrollment Form'!$AX219=\"\",'Enrollment Form'!$AX219=\"No\"),\"-\",IF(AND('Enrollment Form'!$AX219=\"Yes\",COUNTA('Enrollment Form'!$CR219)=1),\"Y\",\"N\")))","v":""},{"$f":"IF(OR('Enrollment Form'!$CR219=\"\",'Enrollment Form'!$CR219=\"No\"),\"-\",IF(COUNTA('Enrollment Form'!$CT219:$CU219)=2,\"Y\",\"N\"))","v":"-"},{"$f":"IF($B212=\"N\",\"\",IF(COUNTIF('Enrollment Form'!$DG219:$DP219,\"Other\")=COUNTA('Enrollment Form'!$DK219,'Enrollment Form'!$DH219,'Enrollment Form'!$DN219,'Enrollment Form'!$DQ219),\"Y\",\"N\"))","v":""},{"$f":"IF($B212=\"N\",\"\",IF(OR('Enrollment Form'!B219<>\"Subscriber\",'Enrollment Form'!C219=\"ROC\",COUNTIF('Enrollment Form'!AV219:AW219,\"Yes\")>=1),\"-\",IF(AND('Enrollment Form'!C219=\"Enroll\",COUNTIF('Enrollment Form'!AV219:AW219,\"No\")=2,'Enrollment Form'!AX219=\"\"),\"N\",\"Y\")))","v":""},{"$f":"IF(OR(B212=\"N\",'Enrollment Form'!B219<>\"Subscriber\",'Enrollment Form'!C219=\"ROC\",'Enrollment Form'!O219<>\"Multiple of Salary\"),\"-\",IF(COUNTA('Enrollment Form'!T219:U219)<2,\"N\",\"Y\"))","v":"-"},{"$f":"IF(B212=\"N\",\"\",IF(OR('Enrollment Form'!C219=\"ROC\",'Enrollment Form'!B219<>\"Subscriber\",'Enrollment Form'!O219=\"Waive\",'Enrollment Form'!O219=\"\"),\"-\",IF('Enrollment Form'!P219=\"\",\"N\",\"Y\")))","v":""},{"$f":"IF($B212=\"N\",\"\",IF(AND('Enrollment Form'!$C219=\"ROC\",'Enrollment Form'!$DR219<>\"\"),\"Y\",IF(AND('Enrollment Form'!$C219=\"ROC\",'Enrollment Form'!$DR219=\"\"),\"N\",IF(AND('Enrollment Form'!$C219=\"Enroll\",'Enrollment Form'!$B219=\"Subscriber\",'Enrollment Form'!$CX219=\"No\",'Enrollment Form'!$DR219=\"\"),\"N\",IF(AND('Enrollment Form'!$C219=\"Enroll\",'Enrollment Form'!$B219=\"Subscriber\",'Enrollment Form'!$CX219=\"Yes\"),\"-\",\"Y\")))))","v":""},{"$f":"IF($B212=\"N\",\"\",IF(AND('Enrollment Form'!$C219=\"ROC\",'Enrollment Form'!$DS219<>\"\"),\"Y\",IF(AND('Enrollment Form'!$C219=\"ROC\",'Enrollment Form'!$DS219=\"\"),\"N\",IF(AND('Enrollment Form'!$C219=\"Enroll\",'Enrollment Form'!$B219=\"Subscriber\",'Enrollment Form'!$CX219=\"No\",'Enrollment Form'!$DS219=\"\"),\"N\",IF(AND('Enrollment Form'!$C219=\"Enroll\",'Enrollment Form'!$B219=\"Subscriber\",'Enrollment Form'!$CX219=\"Yes\"),\"-\",\"Y\")))))","v":""},{"$f":"IF('Enrollment Form'!AH219=\"\",\"\",IF(ISERROR(SEARCH(\".\",'Enrollment Form'!AH219,SEARCH(\"@\",'Enrollment Form'!AH219))),\"N\",\"Y\"))","v":""},{"$f":"IF(OR($B212=\"N\",'Enrollment Form'!$G219=\"\"),\"\",IF('Enrollment Form'!$B219<>\"Subscriber\",\"-\",IF(COUNTIF('Enrollment Form'!$AV219:$AW219,\"Yes\")=2,\"N\",\"Y\")))","v":""},{"$f":"IF(OR('Enrollment Form'!$CJ219=\"\",'Enrollment Form'!$CJ219=\"No\"),\"-\",IF(AND('Enrollment Form'!$CJ219=\"Yes\",'Enrollment Form'!$CK219=\"\"),\"N\",\"Y\"))","v":"-"},{"$f":"IF(OR('Enrollment Form'!$CL219=\"\",'Enrollment Form'!$CL219=\"No\"),\"-\",IF(AND('Enrollment Form'!$CL219=\"Yes\",'Enrollment Form'!$CM219=\"\"),\"N\",\"Y\"))","v":"-"},{"$f":"IF(OR('Enrollment Form'!$CN219=\"\",'Enrollment Form'!$CN219=\"No\"),\"-\",IF(AND('Enrollment Form'!$CN219=\"Yes\",'Enrollment Form'!$CO219=\"\"),\"N\",\"Y\"))","v":"-"},{"$f":"IF(OR('Enrollment Form'!$CN219=\"\",'Enrollment Form'!$CN219=\"No\"),\"-\",IF(AND('Enrollment Form'!$CN219=\"Yes\",'Enrollment Form'!$CP219=\"\"),\"N\",\"Y\"))","v":"-"},{"$f":"IF('Enrollment Form'!B219<>\"Subscriber\",\"-\",IF(AND('Enrollment Form'!B219=\"Subscriber\",'Enrollment Form'!C219=\"Enroll\",'Enrollment Form'!AA219=\"\"),\"N\",\"Y\"))","v":"-"},{"$f":"IF(OR('Enrollment Form'!B219=\"Subscriber\",'Enrollment Form'!B219=\"\"),\"-\",IF('Enrollment Form'!BP219=\"\",\"N\",\"Y\"))","v":"-"},{"$f":"IF('Enrollment Form'!B219<>\"Subscriber\",\"-\",IF(AND('Enrollment Form'!B219=\"Subscriber\",'Enrollment Form'!G219=\"\"),\"N\",\"Y\"))","v":"-"},{"$f":"IF('Enrollment Form'!A219=\"\",\"\",IF('Enrollment Form'!B219=\"Subscriber\",\"-\",IF(AND('Enrollment Form'!B219<>\"Subscriber\",'Enrollment Form'!G219='Enrollment Form'!H219),\"N\",\"Y\")))","v":""},0]
[220,{"$f":"IF('Enrollment Form'!$A220<>\"\",\"Y\",\"N\")","v":"N"},{"$f":"IF(AND('Enrollment Form'!$B220=\"\",'Enrollment Form'!$C220<>\"\"),\"N\",IF($B213=\"N\",\"\",\"Y\"))","v":""},{"$f":"IF(OR($B213=\"N\",'Enrollment Form'!G220=\"\"),\"\",IF('Enrollment Form'!$B220<>\"Subscriber\",\"\",IF('Enrollment Form'!$G220='Enrollment Form'!$H220,\"Y\",\"N\")))","v":""},{"$f":"IF($B213=\"N\",\"\",IF(AND(COUNTIFS('Enrollment Form'!$H$11:$H$1000,'Enrollment Form'!$H220,'Enrollment Form'!$B$11:$B$1000,'Enrollment Form'!$B220)>1,'Enrollment Form'!$H220<>\"\"),\"N\",\"Y\"))","v":""},{"$f":"IF($B213=\"N\",\"\",IF(LEN('Enrollment Form'!$Y220)=0,\"\",IF(LEN('Enrollment Form'!$Y220)<>5,\"N\",\"Y\")))","v":""},{"$f":"IF($B213=\"N\",\"\",IF(LEN('Enrollment Form'!$AD220=0),\"\",IF(LEN('Enrollment Form'!$AD220)<>5,\"N\",\"Y\")))","v":""},{"$f":"IF($B213=\"N\",\"\",IF(LEN('Enrollment Form'!$BS220=0),\"\",IF(LEN('Enrollment Form'!$BS220)<>5,\"N\",\"Y\")))","v":""},{"$f":"IF($B213=\"N\",\"\",IF(LEN('Enrollment Form'!$AE220)=0,\"\",IF(LEN('Enrollment Form'!$AE220)<>10,\"N\",\"Y\")))","v":""},{"$f":"IF($B213=\"N\",\"\",IF(LEN('Enrollment Form'!$AF220)=0,\"\",IF(LEN('Enrollment Form'!$AF220)<>10,\"N\",\"Y\")))","v":""},{"$f":"IF('Enrollment Form'!$O220<>\"Graded\",\"-\",IF(AND('Enrollment Form'!$O220=\"Graded\",'Enrollment Form'!$AR220<>\"\"),\"Y\",\"N\"))","v":"-"},{"$f":"IF($B213=\"N\",\"\",IF(OR('Enrollment Form'!$B220<>\"Subscriber\",'Enrollment Form'!$C220=\"ROC\"),\"-\",IF(AND('Enrollment Form'!$B220=\"Subscriber\",'Enrollment Form'!$C220=\"Enroll\",'Enrollment Form'!$AJ220<>\"\"),\"Y\",\"N\")))","v":""},{"$f":"IF($B213=\"N\",\"\",IF(OR('Enrollment Form'!$B220<>\"Subscriber\",'Enrollment Form'!$C220=\"ROC\"),\"-\",IF(AND('Enrollment Form'!$B220=\"Subscriber\",'Enrollment Form'!$C220=\"Enroll\",'Enrollment Form'!$AK220<>\"\"),\"Y\",\"N\")))","v":""},{"$f":"IF($B213=\"N\",\"\",IF(OR('Enrollment Form'!$B220<>\"Subscriber\",'Enrollment Form'!$C220=\"ROC\"),\"-\",IF(AND('Enrollment Form'!$B220=\"Subscriber\",'Enrollment Form'!$C220=\"Enroll\",'Enrollment Form'!$AL220<>\"\"),\"Y\",\"N\")))","v":""},{"$f":"IF($B213=\"N\",\"\",IF(OR('Enrollment Form'!$B220<>\"Subscriber\",'Enrollment Form'!$C220=\"ROC\"),\"-\",IF(AND('Enrollment Form'!$B220=\"Subscriber\",'Enrollment Form'!$C220=\"Enroll\",'Enrollment Form'!$AP220<>\"\"),\"Y\",\"N\")))","v":""},{"$f":"IF($B213=\"N\",\"\",IF(OR('Enrollment Form'!$B220<>\"Subscriber\",'Enrollment Form'!$C220=\"ROC\"),\"-\",IF(AND('Enrollment Form'!$B220=\"Subscriber\",'Enrollment Form'!$C220=\"Enroll\",'Enrollment Form'!$AQ220<>\"\"),\"Y\",\"N\")))","v":""},{"$f":"IF($B213=\"N\",\"\",IF(OR('Enrollment Form'!$B220<>\"Subscriber\",'Enrollment Form'!$C220=\"ROC\"),\"-\",IF(AND('Enrollment Form'!$B220=\"Subscriber\",'Enrollment Form'!$C220=\"Enroll\",'Enrollment Form'!$AS220<>\"\"),\"Y\",\"N\")))","v":""},{"$f":"IF($B213=\"N\",\"\",IF($Q213=\"-\",\"-\",IF(AND($Q213=\"Y\",'Enrollment Form'!$AS220=\"No\"),\"-\",IF(AND($Q213=\"Y\",'Enrollment Form'!$AS220=\"Yes\",'Enrollment Form'!$AT220<>\"\"),\"Y\",\"N\"))))","v":""},{"$f":"IF($B213=\"N\",\"\",IF(OR('Enrollment Form'!$B220<>\"Subscriber\",'Enrollment Form'!$C220=\"ROC\"),\"-\",IF(AND('Enrollment Form'!$B220=\"Subscriber\",'Enrollment Form'!$C220=\"Enroll\",'Enrollment Form'!$CV220<>\"\"),\"Y\",\"N\")))","v":""},{"$f":"IF($B213=\"N\",\"\",IF($S213=\"-\",\"-\",IF(AND($S213=\"Y\",'Enrollment Form'!$CV220=\"No\"),\"-\",IF(AND($S213=\"Y\",'Enrollment Form'!$CV220=\"Yes\",'Enrollment Form'!$CW220<>\"\"),\"Y\",\"N\"))))","v":""},{"$f":"IF(OR('Enrollment Form'!$AY220=\"Yes\",'Enrollment Form'!$AY220=\"\"),\"-\",IF(OR(AND('Enrollment Form'!$AY220=\"No\",ISERROR(FIND(\"HMO\",VLOOKUP('Enrollment Form'!G220,'Enrollment Form'!H$11:J$1000,3,FALSE),1))=FALSE,COUNTA('Enrollment Form'!$AZ220:$BC220)=4),AND('Enrollment Form'!$AY220=\"No\",ISERROR(FIND(\"HMO\",VLOOKUP('Enrollment Form'!G220,'Enrollment Form'!H$11:J$1000,3,FALSE),1))=FALSE,COUNTA('Enrollment Form'!$BT220:$BW220)=4)),\"Y\",\"N\"))","v":"-"},{"$f":"IF($B213=\"N\",\"\",IF('Enrollment Form'!$B220=\"Subscriber\",\"-\",IF(COUNTA('Enrollment Form'!$BL220,'Enrollment Form'!$BN220)=2,\"Y\",\"N\")))","v":""},{"$f":"IF($B213=\"N\",\"\",IF(OR('Enrollment Form'!$AX220=\"\",'Enrollment Form'!$AX220=\"No\"),\"-\",IF(AND('Enrollment Form'!$AX220=\"Yes\",COUNTA('Enrollment Form'!$CR220)=1),\"Y\",\"N\")))","v":""},{"$f":"IF(OR('Enrollment Form'!$CR220=\"\",'Enrollment Form'!$CR220=\"No\"),\"-\",IF(COUNTA('Enrollment Form'!$CT220:$CU220)=2,\"Y\",\"N\"))","v":"-"},{"$f":"IF($B213=\"N\",\"\",IF(COUNTIF('Enrollment Form'!$DG220:$DP220,\"Other\")=COUNTA('Enrollment Form'!$DK220,'Enrollment Form'!$DH220,'Enrollment Form'!$DN220,'Enrollment Form'!$DQ220),\"Y\",\"N\"))","v":""},{"$f":"IF($B213=\"N\",\"\",IF(OR('Enrollment Form'!B220<>\"Subscriber\",'Enrollment Form'!C220=\"ROC\",COUNTIF('Enrollment Form'!AV220:AW220,\"Yes\")>=1),\"-\",IF(AND('Enrollment Form'!C220=\"Enroll\",COUNTIF('Enrollment Form'!AV220:AW220,\"No\")=2,'Enrollment Form'!AX220=\"\"),\"N\",\"Y\")))","v":""},{"$f":"IF(OR(B213=\"N\",'Enrollment Form'!B220<>\"Subscriber\",'Enrollment Form'!C220=\"ROC\",'Enrollment Form'!O220<>\"Multiple of Salary\"),\"-\",IF(COUNTA('Enrollment Form'!T220:U220)<2,\"N\",\"Y\"))","v":"-"},{"$f":"IF(B213=\"N\",\"\",IF(OR('Enrollment Form'!C220=\"ROC\",'Enrollment Form'!B220<>\"Subscriber\",'Enrollment Form'!O220=\"Waive\",'Enrollment Form'!O220=\"\"),\"-\",IF('Enrollment Form'!P220=\"\",\"N\",\"Y\")))","v":""},{"$f":"IF($B213=\"N\",\"\",IF(AND('Enrollment Form'!$C220=\"ROC\",'Enrollment Form'!$DR220<>\"\"),\"Y\",IF(AND('Enrollment Form'!$C220=\"ROC\",'Enrollment Form'!$DR220=\"\"),\"N\",IF(AND('Enrollment Form'!$C220=\"Enroll\",'Enrollment Form'!$B220=\"Subscriber\",'Enrollment Form'!$CX220=\"No\",'Enrollment Form'!$DR220=\"\"),\"N\",IF(AND('Enrollment Form'!$C220=\"Enroll\",'Enrollment Form'!$B220=\"Subscriber\",'Enrollment Form'!$CX220=\"Yes\"),\"-\",\"Y\")))))","v":""},{"$f":"IF($B213=\"N\",\"\",IF(AND('Enrollment Form'!$C220=\"ROC\",'Enrollment Form'!$DS220<>\"\"),\"Y\",IF(AND('Enrollment Form'!$C220=\"ROC\",'Enrollment Form'!$DS220=\"\"),\"N\",IF(AND('Enrollment Form'!$C220=\"Enroll\",'Enrollment Form'!$B220=\"Subscriber\",'Enrollment Form'!$CX220=\"No\",'Enrollment Form'!$DS220=\"\"),\"N\",IF(AND('Enrollment Form'!$C220=\"Enroll\",'Enrollment Form'!$B220=\"Subscriber\",'Enrollment Form'!$CX220=\"Yes\"),\"-\",\"Y\")))))","v":""},{"$f":"IF('Enrollment Form'!AH220=\"\",\"\",IF(ISERROR(SEARCH(\".\",'Enrollment Form'!AH220,SEARCH(\"@\",'Enrollment Form'!AH220))),\"N\",\"Y\"))","v":""},{"$f":"IF(OR($B213=\"N\",'Enrollment Form'!$G220=\"\"),\"\",IF('Enrollment Form'!$B220<>\"Subscriber\",\"-\",IF(COUNTIF('Enrollment Form'!$AV220:$AW220,\"Yes\")=2,\"N\",\"Y\")))","v":""},{"$f":"IF(OR('Enrollment Form'!$CJ220=\"\",'Enrollment Form'!$CJ220=\"No\"),\"-\",IF(AND('Enrollment Form'!$CJ220=\"Yes\",'Enrollment Form'!$CK220=\"\"),\"N\",\"Y\"))","v":"-"},{"$f":"IF(OR('Enrollment Form'!$CL220=\"\",'Enrollment Form'!$CL220=\"No\"),\"-\",IF(AND('Enrollment Form'!$CL220=\"Yes\",'Enrollment Form'!$CM220=\"\"),\"N\",\"Y\"))","v":"-"},{"$f":"IF(OR('Enrollment Form'!$CN220=\"\",'Enrollment Form'!$CN220=\"No\"),\"-\",IF(AND('Enrollment Form'!$CN220=\"Yes\",'Enrollment Form'!$CO220=\"\"),\"N\",\"Y\"))","v":"-"},{"$f":"IF(OR('Enrollment Form'!$CN220=\"\",'Enrollment Form'!$CN220=\"No\"),\"-\",IF(AND('Enrollment Form'!$CN220=\"Yes\",'Enrollment Form'!$CP220=\"\"),\"N\",\"Y\"))","v":"-"},{"$f":"IF('Enrollment Form'!B220<>\"Subscriber\",\"-\",IF(AND('Enrollment Form'!B220=\"Subscriber\",'Enrollment Form'!C220=\"Enroll\",'Enrollment Form'!AA220=\"\"),\"N\",\"Y\"))","v":"-"},{"$f":"IF(OR('Enrollment Form'!B220=\"Subscriber\",'Enrollment Form'!B220=\"\"),\"-\",IF('Enrollment Form'!BP220=\"\",\"N\",\"Y\"))","v":"-"},{"$f":"IF('Enrollment Form'!B220<>\"Subscriber\",\"-\",IF(AND('Enrollment Form'!B220=\"Subscriber\",'Enrollment Form'!G220=\"\"),\"N\",\"Y\"))","v":"-"},{"$f":"IF('Enrollment Form'!A220=\"\",\"\",IF('Enrollment Form'!B220=\"Subscriber\",\"-\",IF(AND('Enrollment Form'!B220<>\"Subscriber\",'Enrollment Form'!G220='Enrollment Form'!H220),\"N\",\"Y\")))","v":""},0]
[221,{"$f":"IF('Enrollment Form'!$A221<>\"\",\"Y\",\"N\")","v":"N"},{"$f":"IF(AND('Enrollment Form'!$B221=\"\",'Enrollment Form'!$C221<>\"\"),\"N\",IF($B214=\"N\",\"\",\"Y\"))","v":""},{"$f":"IF(OR($B214=\"N\",'Enrollment Form'!G221=\"\"),\"\",IF('Enrollment Form'!$B221<>\"Subscriber\",\"\",IF('Enrollment Form'!$G221='Enrollment Form'!$H221,\"Y\",\"N\")))","v":""},{"$f":"IF($B214=\"N\",\"\",IF(AND(COUNTIFS('Enrollment Form'!$H$11:$H$1000,'Enrollment Form'!$H221,'Enrollment Form'!$B$11:$B$1000,'Enrollment Form'!$B221)>1,'Enrollment Form'!$H221<>\"\"),\"N\",\"Y\"))","v":""},{"$f":"IF($B214=\"N\",\"\",IF(LEN('Enrollment Form'!$Y221)=0,\"\",IF(LEN('Enrollment Form'!$Y221)<>5,\"N\",\"Y\")))","v":""},{"$f":"IF($B214=\"N\",\"\",IF(LEN('Enrollment Form'!$AD221=0),\"\",IF(LEN('Enrollment Form'!$AD221)<>5,\"N\",\"Y\")))","v":""},{"$f":"IF($B214=\"N\",\"\",IF(LEN('Enrollment Form'!$BS221=0),\"\",IF(LEN('Enrollment Form'!$BS221)<>5,\"N\",\"Y\")))","v":""},{"$f":"IF($B214=\"N\",\"\",IF(LEN('Enrollment Form'!$AE221)=0,\"\",IF(LEN('Enrollment Form'!$AE221)<>10,\"N\",\"Y\")))","v":""},{"$f":"IF($B214=\"N\",\"\",IF(LEN('Enrollment Form'!$AF221)=0,\"\",IF(LEN('Enrollment Form'!$AF221)<>10,\"N\",\"Y\")))","v":""},{"$f":"IF('Enrollment Form'!$O221<>\"Graded\",\"-\",IF(AND('Enrollment Form'!$O221=\"Graded\",'Enrollment Form'!$AR221<>\"\"),\"Y\",\"N\"))","v":"-"},{"$f":"IF($B214=\"N\",\"\",IF(OR('Enrollment Form'!$B221<>\"Subscriber\",'Enrollment Form'!$C221=\"ROC\"),\"-\",IF(AND('Enrollment Form'!$B221=\"Subscriber\",'Enrollment Form'!$C221=\"Enroll\",'Enrollment Form'!$AJ221<>\"\"),\"Y\",\"N\")))","v":""},{"$f":"IF($B214=\"N\",\"\",IF(OR('Enrollment Form'!$B221<>\"Subscriber\",'Enrollment Form'!$C221=\"ROC\"),\"-\",IF(AND('Enrollment Form'!$B221=\"Subscriber\",'Enrollment Form'!$C221=\"Enroll\",'Enrollment Form'!$AK221<>\"\"),\"Y\",\"N\")))","v":""},{"$f":"IF($B214=\"N\",\"\",IF(OR('Enrollment Form'!$B221<>\"Subscriber\",'Enrollment Form'!$C221=\"ROC\"),\"-\",IF(AND('Enrollment Form'!$B221=\"Subscriber\",'Enrollment Form'!$C221=\"Enroll\",'Enrollment Form'!$AL221<>\"\"),\"Y\",\"N\")))","v":""},{"$f":"IF($B214=\"N\",\"\",IF(OR('Enrollment Form'!$B221<>\"Subscriber\",'Enrollment Form'!$C221=\"ROC\"),\"-\",IF(AND('Enrollment Form'!$B221=\"Subscriber\",'Enrollment Form'!$C221=\"Enroll\",'Enrollment Form'!$AP221<>\"\"),\"Y\",\"N\")))","v":""},{"$f":"IF($B214=\"N\",\"\",IF(OR('Enrollment Form'!$B221<>\"Subscriber\",'Enrollment Form'!$C221=\"ROC\"),\"-\",IF(AND('Enrollment Form'!$B221=\"Subscriber\",'Enrollment Form'!$C221=\"Enroll\",'Enrollment Form'!$AQ221<>\"\"),\"Y\",\"N\")))","v":""},{"$f":"IF($B214=\"N\",\"\",IF(OR('Enrollment Form'!$B221<>\"Subscriber\",'Enrollment Form'!$C221=\"ROC\"),\"-\",IF(AND('Enrollment Form'!$B221=\"Subscriber\",'Enrollment Form'!$C221=\"Enroll\",'Enrollment Form'!$AS221<>\"\"),\"Y\",\"N\")))","v":""},{"$f":"IF($B214=\"N\",\"\",IF($Q214=\"-\",\"-\",IF(AND($Q214=\"Y\",'Enrollment Form'!$AS221=\"No\"),\"-\",IF(AND($Q214=\"Y\",'Enrollment Form'!$AS221=\"Yes\",'Enrollment Form'!$AT221<>\"\"),\"Y\",\"N\"))))","v":""},{"$f":"IF($B214=\"N\",\"\",IF(OR('Enrollment Form'!$B221<>\"Subscriber\",'Enrollment Form'!$C221=\"ROC\"),\"-\",IF(AND('Enrollment Form'!$B221=\"Subscriber\",'Enrollment Form'!$C221=\"Enroll\",'Enrollment Form'!$CV221<>\"\"),\"Y\",\"N\")))","v":""},{"$f":"IF($B214=\"N\",\"\",IF($S214=\"-\",\"-\",IF(AND($S214=\"Y\",'Enrollment Form'!$CV221=\"No\"),\"-\",IF(AND($S214=\"Y\",'Enrollment Form'!$CV221=\"Yes\",'Enrollment Form'!$CW221<>\"\"),\"Y\",\"N\"))))","v":""},{"$f":"IF(OR('Enrollment Form'!$AY221=\"Yes\",'Enrollment Form'!$AY221=\"\"),\"-\",IF(OR(AND('Enrollment Form'!$AY221=\"No\",ISERROR(FIND(\"HMO\",VLOOKUP('Enrollment Form'!G221,'Enrollment Form'!H$11:J$1000,3,FALSE),1))=FALSE,COUNTA('Enrollment Form'!$AZ221:$BC221)=4),AND('Enrollment Form'!$AY221=\"No\",ISERROR(FIND(\"HMO\",VLOOKUP('Enrollment Form'!G221,'Enrollment Form'!H$11:J$1000,3,FALSE),1))=FALSE,COUNTA('Enrollment Form'!$BT221:$BW221)=4)),\"Y\",\"N\"))","v":"-"},{"$f":"IF($B214=\"N\",\"\",IF('Enrollment Form'!$B221=\"Subscriber\",\"-\",IF(COUNTA('Enrollment Form'!$BL221,'Enrollment Form'!$BN221)=2,\"Y\",\"N\")))","v":""},{"$f":"IF($B214=\"N\",\"\",IF(OR('Enrollment Form'!$AX221=\"\",'Enrollment Form'!$AX221=\"No\"),\"-\",IF(AND('Enrollment Form'!$AX221=\"Yes\",COUNTA('Enrollment Form'!$CR221)=1),\"Y\",\"N\")))","v":""},{"$f":"IF(OR('Enrollment Form'!$CR221=\"\",'Enrollment Form'!$CR221=\"No\"),\"-\",IF(COUNTA('Enrollment Form'!$CT221:$CU221)=2,\"Y\",\"N\"))","v":"-"},{"$f":"IF($B214=\"N\",\"\",IF(COUNTIF('Enrollment Form'!$DG221:$DP221,\"Other\")=COUNTA('Enrollment Form'!$DK221,'Enrollment Form'!$DH221,'Enrollment Form'!$DN221,'Enrollment Form'!$DQ221),\"Y\",\"N\"))","v":""},{"$f":"IF($B214=\"N\",\"\",IF(OR('Enrollment Form'!B221<>\"Subscriber\",'Enrollment Form'!C221=\"ROC\",COUNTIF('Enrollment Form'!AV221:AW221,\"Yes\")>=1),\"-\",IF(AND('Enrollment Form'!C221=\"Enroll\",COUNTIF('Enrollment Form'!AV221:AW221,\"No\")=2,'Enrollment Form'!AX221=\"\"),\"N\",\"Y\")))","v":""},{"$f":"IF(OR(B214=\"N\",'Enrollment Form'!B221<>\"Subscriber\",'Enrollment Form'!C221=\"ROC\",'Enrollment Form'!O221<>\"Multiple of Salary\"),\"-\",IF(COUNTA('Enrollment Form'!T221:U221)<2,\"N\",\"Y\"))","v":"-"},{"$f":"IF(B214=\"N\",\"\",IF(OR('Enrollment Form'!C221=\"ROC\",'Enrollment Form'!B221<>\"Subscriber\",'Enrollment Form'!O221=\"Waive\",'Enrollment Form'!O221=\"\"),\"-\",IF('Enrollment Form'!P221=\"\",\"N\",\"Y\")))","v":""},{"$f":"IF($B214=\"N\",\"\",IF(AND('Enrollment Form'!$C221=\"ROC\",'Enrollment Form'!$DR221<>\"\"),\"Y\",IF(AND('Enrollment Form'!$C221=\"ROC\",'Enrollment Form'!$DR221=\"\"),\"N\",IF(AND('Enrollment Form'!$C221=\"Enroll\",'Enrollment Form'!$B221=\"Subscriber\",'Enrollment Form'!$CX221=\"No\",'Enrollment Form'!$DR221=\"\"),\"N\",IF(AND('Enrollment Form'!$C221=\"Enroll\",'Enrollment Form'!$B221=\"Subscriber\",'Enrollment Form'!$CX221=\"Yes\"),\"-\",\"Y\")))))","v":""},{"$f":"IF($B214=\"N\",\"\",IF(AND('Enrollment Form'!$C221=\"ROC\",'Enrollment Form'!$DS221<>\"\"),\"Y\",IF(AND('Enrollment Form'!$C221=\"ROC\",'Enrollment Form'!$DS221=\"\"),\"N\",IF(AND('Enrollment Form'!$C221=\"Enroll\",'Enrollment Form'!$B221=\"Subscriber\",'Enrollment Form'!$CX221=\"No\",'Enrollment Form'!$DS221=\"\"),\"N\",IF(AND('Enrollment Form'!$C221=\"Enroll\",'Enrollment Form'!$B221=\"Subscriber\",'Enrollment Form'!$CX221=\"Yes\"),\"-\",\"Y\")))))","v":""},{"$f":"IF('Enrollment Form'!AH221=\"\",\"\",IF(ISERROR(SEARCH(\".\",'Enrollment Form'!AH221,SEARCH(\"@\",'Enrollment Form'!AH221))),\"N\",\"Y\"))","v":""},{"$f":"IF(OR($B214=\"N\",'Enrollment Form'!$G221=\"\"),\"\",IF('Enrollment Form'!$B221<>\"Subscriber\",\"-\",IF(COUNTIF('Enrollment Form'!$AV221:$AW221,\"Yes\")=2,\"N\",\"Y\")))","v":""},{"$f":"IF(OR('Enrollment Form'!$CJ221=\"\",'Enrollment Form'!$CJ221=\"No\"),\"-\",IF(AND('Enrollment Form'!$CJ221=\"Yes\",'Enrollment Form'!$CK221=\"\"),\"N\",\"Y\"))","v":"-"},{"$f":"IF(OR('Enrollment Form'!$CL221=\"\",'Enrollment Form'!$CL221=\"No\"),\"-\",IF(AND('Enrollment Form'!$CL221=\"Yes\",'Enrollment Form'!$CM221=\"\"),\"N\",\"Y\"))","v":"-"},{"$f":"IF(OR('Enrollment Form'!$CN221=\"\",'Enrollment Form'!$CN221=\"No\"),\"-\",IF(AND('Enrollment Form'!$CN221=\"Yes\",'Enrollment Form'!$CO221=\"\"),\"N\",\"Y\"))","v":"-"},{"$f":"IF(OR('Enrollment Form'!$CN221=\"\",'Enrollment Form'!$CN221=\"No\"),\"-\",IF(AND('Enrollment Form'!$CN221=\"Yes\",'Enrollment Form'!$CP221=\"\"),\"N\",\"Y\"))","v":"-"},{"$f":"IF('Enrollment Form'!B221<>\"Subscriber\",\"-\",IF(AND('Enrollment Form'!B221=\"Subscriber\",'Enrollment Form'!C221=\"Enroll\",'Enrollment Form'!AA221=\"\"),\"N\",\"Y\"))","v":"-"},{"$f":"IF(OR('Enrollment Form'!B221=\"Subscriber\",'Enrollment Form'!B221=\"\"),\"-\",IF('Enrollment Form'!BP221=\"\",\"N\",\"Y\"))","v":"-"},{"$f":"IF('Enrollment Form'!B221<>\"Subscriber\",\"-\",IF(AND('Enrollment Form'!B221=\"Subscriber\",'Enrollment Form'!G221=\"\"),\"N\",\"Y\"))","v":"-"},{"$f":"IF('Enrollment Form'!A221=\"\",\"\",IF('Enrollment Form'!B221=\"Subscriber\",\"-\",IF(AND('Enrollment Form'!B221<>\"Subscriber\",'Enrollment Form'!G221='Enrollment Form'!H221),\"N\",\"Y\")))","v":""},0]
[222,{"$f":"IF('Enrollment Form'!$A222<>\"\",\"Y\",\"N\")","v":"N"},{"$f":"IF(AND('Enrollment Form'!$B222=\"\",'Enrollment Form'!$C222<>\"\"),\"N\",IF($B215=\"N\",\"\",\"Y\"))","v":""},{"$f":"IF(OR($B215=\"N\",'Enrollment Form'!G222=\"\"),\"\",IF('Enrollment Form'!$B222<>\"Subscriber\",\"\",IF('Enrollment Form'!$G222='Enrollment Form'!$H222,\"Y\",\"N\")))","v":""},{"$f":"IF($B215=\"N\",\"\",IF(AND(COUNTIFS('Enrollment Form'!$H$11:$H$1000,'Enrollment Form'!$H222,'Enrollment Form'!$B$11:$B$1000,'Enrollment Form'!$B222)>1,'Enrollment Form'!$H222<>\"\"),\"N\",\"Y\"))","v":""},{"$f":"IF($B215=\"N\",\"\",IF(LEN('Enrollment Form'!$Y222)=0,\"\",IF(LEN('Enrollment Form'!$Y222)<>5,\"N\",\"Y\")))","v":""},{"$f":"IF($B215=\"N\",\"\",IF(LEN('Enrollment Form'!$AD222=0),\"\",IF(LEN('Enrollment Form'!$AD222)<>5,\"N\",\"Y\")))","v":""},{"$f":"IF($B215=\"N\",\"\",IF(LEN('Enrollment Form'!$BS222=0),\"\",IF(LEN('Enrollment Form'!$BS222)<>5,\"N\",\"Y\")))","v":""},{"$f":"IF($B215=\"N\",\"\",IF(LEN('Enrollment Form'!$AE222)=0,\"\",IF(LEN('Enrollment Form'!$AE222)<>10,\"N\",\"Y\")))","v":""},{"$f":"IF($B215=\"N\",\"\",IF(LEN('Enrollment Form'!$AF222)=0,\"\",IF(LEN('Enrollment Form'!$AF222)<>10,\"N\",\"Y\")))","v":""},{"$f":"IF('Enrollment Form'!$O222<>\"Graded\",\"-\",IF(AND('Enrollment Form'!$O222=\"Graded\",'Enrollment Form'!$AR222<>\"\"),\"Y\",\"N\"))","v":"-"},{"$f":"IF($B215=\"N\",\"\",IF(OR('Enrollment Form'!$B222<>\"Subscriber\",'Enrollment Form'!$C222=\"ROC\"),\"-\",IF(AND('Enrollment Form'!$B222=\"Subscriber\",'Enrollment Form'!$C222=\"Enroll\",'Enrollment Form'!$AJ222<>\"\"),\"Y\",\"N\")))","v":""},{"$f":"IF($B215=\"N\",\"\",IF(OR('Enrollment Form'!$B222<>\"Subscriber\",'Enrollment Form'!$C222=\"ROC\"),\"-\",IF(AND('Enrollment Form'!$B222=\"Subscriber\",'Enrollment Form'!$C222=\"Enroll\",'Enrollment Form'!$AK222<>\"\"),\"Y\",\"N\")))","v":""},{"$f":"IF($B215=\"N\",\"\",IF(OR('Enrollment Form'!$B222<>\"Subscriber\",'Enrollment Form'!$C222=\"ROC\"),\"-\",IF(AND('Enrollment Form'!$B222=\"Subscriber\",'Enrollment Form'!$C222=\"Enroll\",'Enrollment Form'!$AL222<>\"\"),\"Y\",\"N\")))","v":""},{"$f":"IF($B215=\"N\",\"\",IF(OR('Enrollment Form'!$B222<>\"Subscriber\",'Enrollment Form'!$C222=\"ROC\"),\"-\",IF(AND('Enrollment Form'!$B222=\"Subscriber\",'Enrollment Form'!$C222=\"Enroll\",'Enrollment Form'!$AP222<>\"\"),\"Y\",\"N\")))","v":""},{"$f":"IF($B215=\"N\",\"\",IF(OR('Enrollment Form'!$B222<>\"Subscriber\",'Enrollment Form'!$C222=\"ROC\"),\"-\",IF(AND('Enrollment Form'!$B222=\"Subscriber\",'Enrollment Form'!$C222=\"Enroll\",'Enrollment Form'!$AQ222<>\"\"),\"Y\",\"N\")))","v":""},{"$f":"IF($B215=\"N\",\"\",IF(OR('Enrollment Form'!$B222<>\"Subscriber\",'Enrollment Form'!$C222=\"ROC\"),\"-\",IF(AND('Enrollment Form'!$B222=\"Subscriber\",'Enrollment Form'!$C222=\"Enroll\",'Enrollment Form'!$AS222<>\"\"),\"Y\",\"N\")))","v":""},{"$f":"IF($B215=\"N\",\"\",IF($Q215=\"-\",\"-\",IF(AND($Q215=\"Y\",'Enrollment Form'!$AS222=\"No\"),\"-\",IF(AND($Q215=\"Y\",'Enrollment Form'!$AS222=\"Yes\",'Enrollment Form'!$AT222<>\"\"),\"Y\",\"N\"))))","v":""},{"$f":"IF($B215=\"N\",\"\",IF(OR('Enrollment Form'!$B222<>\"Subscriber\",'Enrollment Form'!$C222=\"ROC\"),\"-\",IF(AND('Enrollment Form'!$B222=\"Subscriber\",'Enrollment Form'!$C222=\"Enroll\",'Enrollment Form'!$CV222<>\"\"),\"Y\",\"N\")))","v":""},{"$f":"IF($B215=\"N\",\"\",IF($S215=\"-\",\"-\",IF(AND($S215=\"Y\",'Enrollment Form'!$CV222=\"No\"),\"-\",IF(AND($S215=\"Y\",'Enrollment Form'!$CV222=\"Yes\",'Enrollment Form'!$CW222<>\"\"),\"Y\",\"N\"))))","v":""},{"$f":"IF(OR('Enrollment Form'!$AY222=\"Yes\",'Enrollment Form'!$AY222=\"\"),\"-\",IF(OR(AND('Enrollment Form'!$AY222=\"No\",ISERROR(FIND(\"HMO\",VLOOKUP('Enrollment Form'!G222,'Enrollment Form'!H$11:J$1000,3,FALSE),1))=FALSE,COUNTA('Enrollment Form'!$AZ222:$BC222)=4),AND('Enrollment Form'!$AY222=\"No\",ISERROR(FIND(\"HMO\",VLOOKUP('Enrollment Form'!G222,'Enrollment Form'!H$11:J$1000,3,FALSE),1))=FALSE,COUNTA('Enrollment Form'!$BT222:$BW222)=4)),\"Y\",\"N\"))","v":"-"},{"$f":"IF($B215=\"N\",\"\",IF('Enrollment Form'!$B222=\"Subscriber\",\"-\",IF(COUNTA('Enrollment Form'!$BL222,'Enrollment Form'!$BN222)=2,\"Y\",\"N\")))","v":""},{"$f":"IF($B215=\"N\",\"\",IF(OR('Enrollment Form'!$AX222=\"\",'Enrollment Form'!$AX222=\"No\"),\"-\",IF(AND('Enrollment Form'!$AX222=\"Yes\",COUNTA('Enrollment Form'!$CR222)=1),\"Y\",\"N\")))","v":""},{"$f":"IF(OR('Enrollment Form'!$CR222=\"\",'Enrollment Form'!$CR222=\"No\"),\"-\",IF(COUNTA('Enrollment Form'!$CT222:$CU222)=2,\"Y\",\"N\"))","v":"-"},{"$f":"IF($B215=\"N\",\"\",IF(COUNTIF('Enrollment Form'!$DG222:$DP222,\"Other\")=COUNTA('Enrollment Form'!$DK222,'Enrollment Form'!$DH222,'Enrollment Form'!$DN222,'Enrollment Form'!$DQ222),\"Y\",\"N\"))","v":""},{"$f":"IF($B215=\"N\",\"\",IF(OR('Enrollment Form'!B222<>\"Subscriber\",'Enrollment Form'!C222=\"ROC\",COUNTIF('Enrollment Form'!AV222:AW222,\"Yes\")>=1),\"-\",IF(AND('Enrollment Form'!C222=\"Enroll\",COUNTIF('Enrollment Form'!AV222:AW222,\"No\")=2,'Enrollment Form'!AX222=\"\"),\"N\",\"Y\")))","v":""},{"$f":"IF(OR(B215=\"N\",'Enrollment Form'!B222<>\"Subscriber\",'Enrollment Form'!C222=\"ROC\",'Enrollment Form'!O222<>\"Multiple of Salary\"),\"-\",IF(COUNTA('Enrollment Form'!T222:U222)<2,\"N\",\"Y\"))","v":"-"},{"$f":"IF(B215=\"N\",\"\",IF(OR('Enrollment Form'!C222=\"ROC\",'Enrollment Form'!B222<>\"Subscriber\",'Enrollment Form'!O222=\"Waive\",'Enrollment Form'!O222=\"\"),\"-\",IF('Enrollment Form'!P222=\"\",\"N\",\"Y\")))","v":""},{"$f":"IF($B215=\"N\",\"\",IF(AND('Enrollment Form'!$C222=\"ROC\",'Enrollment Form'!$DR222<>\"\"),\"Y\",IF(AND('Enrollment Form'!$C222=\"ROC\",'Enrollment Form'!$DR222=\"\"),\"N\",IF(AND('Enrollment Form'!$C222=\"Enroll\",'Enrollment Form'!$B222=\"Subscriber\",'Enrollment Form'!$CX222=\"No\",'Enrollment Form'!$DR222=\"\"),\"N\",IF(AND('Enrollment Form'!$C222=\"Enroll\",'Enrollment Form'!$B222=\"Subscriber\",'Enrollment Form'!$CX222=\"Yes\"),\"-\",\"Y\")))))","v":""},{"$f":"IF($B215=\"N\",\"\",IF(AND('Enrollment Form'!$C222=\"ROC\",'Enrollment Form'!$DS222<>\"\"),\"Y\",IF(AND('Enrollment Form'!$C222=\"ROC\",'Enrollment Form'!$DS222=\"\"),\"N\",IF(AND('Enrollment Form'!$C222=\"Enroll\",'Enrollment Form'!$B222=\"Subscriber\",'Enrollment Form'!$CX222=\"No\",'Enrollment Form'!$DS222=\"\"),\"N\",IF(AND('Enrollment Form'!$C222=\"Enroll\",'Enrollment Form'!$B222=\"Subscriber\",'Enrollment Form'!$CX222=\"Yes\"),\"-\",\"Y\")))))","v":""},{"$f":"IF('Enrollment Form'!AH222=\"\",\"\",IF(ISERROR(SEARCH(\".\",'Enrollment Form'!AH222,SEARCH(\"@\",'Enrollment Form'!AH222))),\"N\",\"Y\"))","v":""},{"$f":"IF(OR($B215=\"N\",'Enrollment Form'!$G222=\"\"),\"\",IF('Enrollment Form'!$B222<>\"Subscriber\",\"-\",IF(COUNTIF('Enrollment Form'!$AV222:$AW222,\"Yes\")=2,\"N\",\"Y\")))","v":""},{"$f":"IF(OR('Enrollment Form'!$CJ222=\"\",'Enrollment Form'!$CJ222=\"No\"),\"-\",IF(AND('Enrollment Form'!$CJ222=\"Yes\",'Enrollment Form'!$CK222=\"\"),\"N\",\"Y\"))","v":"-"},{"$f":"IF(OR('Enrollment Form'!$CL222=\"\",'Enrollment Form'!$CL222=\"No\"),\"-\",IF(AND('Enrollment Form'!$CL222=\"Yes\",'Enrollment Form'!$CM222=\"\"),\"N\",\"Y\"))","v":"-"},{"$f":"IF(OR('Enrollment Form'!$CN222=\"\",'Enrollment Form'!$CN222=\"No\"),\"-\",IF(AND('Enrollment Form'!$CN222=\"Yes\",'Enrollment Form'!$CO222=\"\"),\"N\",\"Y\"))","v":"-"},{"$f":"IF(OR('Enrollment Form'!$CN222=\"\",'Enrollment Form'!$CN222=\"No\"),\"-\",IF(AND('Enrollment Form'!$CN222=\"Yes\",'Enrollment Form'!$CP222=\"\"),\"N\",\"Y\"))","v":"-"},{"$f":"IF('Enrollment Form'!B222<>\"Subscriber\",\"-\",IF(AND('Enrollment Form'!B222=\"Subscriber\",'Enrollment Form'!C222=\"Enroll\",'Enrollment Form'!AA222=\"\"),\"N\",\"Y\"))","v":"-"},{"$f":"IF(OR('Enrollment Form'!B222=\"Subscriber\",'Enrollment Form'!B222=\"\"),\"-\",IF('Enrollment Form'!BP222=\"\",\"N\",\"Y\"))","v":"-"},{"$f":"IF('Enrollment Form'!B222<>\"Subscriber\",\"-\",IF(AND('Enrollment Form'!B222=\"Subscriber\",'Enrollment Form'!G222=\"\"),\"N\",\"Y\"))","v":"-"},{"$f":"IF('Enrollment Form'!A222=\"\",\"\",IF('Enrollment Form'!B222=\"Subscriber\",\"-\",IF(AND('Enrollment Form'!B222<>\"Subscriber\",'Enrollment Form'!G222='Enrollment Form'!H222),\"N\",\"Y\")))","v":""},0]
[223,{"$f":"IF('Enrollment Form'!$A223<>\"\",\"Y\",\"N\")","v":"N"},{"$f":"IF(AND('Enrollment Form'!$B223=\"\",'Enrollment Form'!$C223<>\"\"),\"N\",IF($B216=\"N\",\"\",\"Y\"))","v":""},{"$f":"IF(OR($B216=\"N\",'Enrollment Form'!G223=\"\"),\"\",IF('Enrollment Form'!$B223<>\"Subscriber\",\"\",IF('Enrollment Form'!$G223='Enrollment Form'!$H223,\"Y\",\"N\")))","v":""},{"$f":"IF($B216=\"N\",\"\",IF(AND(COUNTIFS('Enrollment Form'!$H$11:$H$1000,'Enrollment Form'!$H223,'Enrollment Form'!$B$11:$B$1000,'Enrollment Form'!$B223)>1,'Enrollment Form'!$H223<>\"\"),\"N\",\"Y\"))","v":""},{"$f":"IF($B216=\"N\",\"\",IF(LEN('Enrollment Form'!$Y223)=0,\"\",IF(LEN('Enrollment Form'!$Y223)<>5,\"N\",\"Y\")))","v":""},{"$f":"IF($B216=\"N\",\"\",IF(LEN('Enrollment Form'!$AD223=0),\"\",IF(LEN('Enrollment Form'!$AD223)<>5,\"N\",\"Y\")))","v":""},{"$f":"IF($B216=\"N\",\"\",IF(LEN('Enrollment Form'!$BS223=0),\"\",IF(LEN('Enrollment Form'!$BS223)<>5,\"N\",\"Y\")))","v":""},{"$f":"IF($B216=\"N\",\"\",IF(LEN('Enrollment Form'!$AE223)=0,\"\",IF(LEN('Enrollment Form'!$AE223)<>10,\"N\",\"Y\")))","v":""},{"$f":"IF($B216=\"N\",\"\",IF(LEN('Enrollment Form'!$AF223)=0,\"\",IF(LEN('Enrollment Form'!$AF223)<>10,\"N\",\"Y\")))","v":""},{"$f":"IF('Enrollment Form'!$O223<>\"Graded\",\"-\",IF(AND('Enrollment Form'!$O223=\"Graded\",'Enrollment Form'!$AR223<>\"\"),\"Y\",\"N\"))","v":"-"},{"$f":"IF($B216=\"N\",\"\",IF(OR('Enrollment Form'!$B223<>\"Subscriber\",'Enrollment Form'!$C223=\"ROC\"),\"-\",IF(AND('Enrollment Form'!$B223=\"Subscriber\",'Enrollment Form'!$C223=\"Enroll\",'Enrollment Form'!$AJ223<>\"\"),\"Y\",\"N\")))","v":""},{"$f":"IF($B216=\"N\",\"\",IF(OR('Enrollment Form'!$B223<>\"Subscriber\",'Enrollment Form'!$C223=\"ROC\"),\"-\",IF(AND('Enrollment Form'!$B223=\"Subscriber\",'Enrollment Form'!$C223=\"Enroll\",'Enrollment Form'!$AK223<>\"\"),\"Y\",\"N\")))","v":""},{"$f":"IF($B216=\"N\",\"\",IF(OR('Enrollment Form'!$B223<>\"Subscriber\",'Enrollment Form'!$C223=\"ROC\"),\"-\",IF(AND('Enrollment Form'!$B223=\"Subscriber\",'Enrollment Form'!$C223=\"Enroll\",'Enrollment Form'!$AL223<>\"\"),\"Y\",\"N\")))","v":""},{"$f":"IF($B216=\"N\",\"\",IF(OR('Enrollment Form'!$B223<>\"Subscriber\",'Enrollment Form'!$C223=\"ROC\"),\"-\",IF(AND('Enrollment Form'!$B223=\"Subscriber\",'Enrollment Form'!$C223=\"Enroll\",'Enrollment Form'!$AP223<>\"\"),\"Y\",\"N\")))","v":""},{"$f":"IF($B216=\"N\",\"\",IF(OR('Enrollment Form'!$B223<>\"Subscriber\",'Enrollment Form'!$C223=\"ROC\"),\"-\",IF(AND('Enrollment Form'!$B223=\"Subscriber\",'Enrollment Form'!$C223=\"Enroll\",'Enrollment Form'!$AQ223<>\"\"),\"Y\",\"N\")))","v":""},{"$f":"IF($B216=\"N\",\"\",IF(OR('Enrollment Form'!$B223<>\"Subscriber\",'Enrollment Form'!$C223=\"ROC\"),\"-\",IF(AND('Enrollment Form'!$B223=\"Subscriber\",'Enrollment Form'!$C223=\"Enroll\",'Enrollment Form'!$AS223<>\"\"),\"Y\",\"N\")))","v":""},{"$f":"IF($B216=\"N\",\"\",IF($Q216=\"-\",\"-\",IF(AND($Q216=\"Y\",'Enrollment Form'!$AS223=\"No\"),\"-\",IF(AND($Q216=\"Y\",'Enrollment Form'!$AS223=\"Yes\",'Enrollment Form'!$AT223<>\"\"),\"Y\",\"N\"))))","v":""},{"$f":"IF($B216=\"N\",\"\",IF(OR('Enrollment Form'!$B223<>\"Subscriber\",'Enrollment Form'!$C223=\"ROC\"),\"-\",IF(AND('Enrollment Form'!$B223=\"Subscriber\",'Enrollment Form'!$C223=\"Enroll\",'Enrollment Form'!$CV223<>\"\"),\"Y\",\"N\")))","v":""},{"$f":"IF($B216=\"N\",\"\",IF($S216=\"-\",\"-\",IF(AND($S216=\"Y\",'Enrollment Form'!$CV223=\"No\"),\"-\",IF(AND($S216=\"Y\",'Enrollment Form'!$CV223=\"Yes\",'Enrollment Form'!$CW223<>\"\"),\"Y\",\"N\"))))","v":""},{"$f":"IF(OR('Enrollment Form'!$AY223=\"Yes\",'Enrollment Form'!$AY223=\"\"),\"-\",IF(OR(AND('Enrollment Form'!$AY223=\"No\",ISERROR(FIND(\"HMO\",VLOOKUP('Enrollment Form'!G223,'Enrollment Form'!H$11:J$1000,3,FALSE),1))=FALSE,COUNTA('Enrollment Form'!$AZ223:$BC223)=4),AND('Enrollment Form'!$AY223=\"No\",ISERROR(FIND(\"HMO\",VLOOKUP('Enrollment Form'!G223,'Enrollment Form'!H$11:J$1000,3,FALSE),1))=FALSE,COUNTA('Enrollment Form'!$BT223:$BW223)=4)),\"Y\",\"N\"))","v":"-"},{"$f":"IF($B216=\"N\",\"\",IF('Enrollment Form'!$B223=\"Subscriber\",\"-\",IF(COUNTA('Enrollment Form'!$BL223,'Enrollment Form'!$BN223)=2,\"Y\",\"N\")))","v":""},{"$f":"IF($B216=\"N\",\"\",IF(OR('Enrollment Form'!$AX223=\"\",'Enrollment Form'!$AX223=\"No\"),\"-\",IF(AND('Enrollment Form'!$AX223=\"Yes\",COUNTA('Enrollment Form'!$CR223)=1),\"Y\",\"N\")))","v":""},{"$f":"IF(OR('Enrollment Form'!$CR223=\"\",'Enrollment Form'!$CR223=\"No\"),\"-\",IF(COUNTA('Enrollment Form'!$CT223:$CU223)=2,\"Y\",\"N\"))","v":"-"},{"$f":"IF($B216=\"N\",\"\",IF(COUNTIF('Enrollment Form'!$DG223:$DP223,\"Other\")=COUNTA('Enrollment Form'!$DK223,'Enrollment Form'!$DH223,'Enrollment Form'!$DN223,'Enrollment Form'!$DQ223),\"Y\",\"N\"))","v":""},{"$f":"IF($B216=\"N\",\"\",IF(OR('Enrollment Form'!B223<>\"Subscriber\",'Enrollment Form'!C223=\"ROC\",COUNTIF('Enrollment Form'!AV223:AW223,\"Yes\")>=1),\"-\",IF(AND('Enrollment Form'!C223=\"Enroll\",COUNTIF('Enrollment Form'!AV223:AW223,\"No\")=2,'Enrollment Form'!AX223=\"\"),\"N\",\"Y\")))","v":""},{"$f":"IF(OR(B216=\"N\",'Enrollment Form'!B223<>\"Subscriber\",'Enrollment Form'!C223=\"ROC\",'Enrollment Form'!O223<>\"Multiple of Salary\"),\"-\",IF(COUNTA('Enrollment Form'!T223:U223)<2,\"N\",\"Y\"))","v":"-"},{"$f":"IF(B216=\"N\",\"\",IF(OR('Enrollment Form'!C223=\"ROC\",'Enrollment Form'!B223<>\"Subscriber\",'Enrollment Form'!O223=\"Waive\",'Enrollment Form'!O223=\"\"),\"-\",IF('Enrollment Form'!P223=\"\",\"N\",\"Y\")))","v":""},{"$f":"IF($B216=\"N\",\"\",IF(AND('Enrollment Form'!$C223=\"ROC\",'Enrollment Form'!$DR223<>\"\"),\"Y\",IF(AND('Enrollment Form'!$C223=\"ROC\",'Enrollment Form'!$DR223=\"\"),\"N\",IF(AND('Enrollment Form'!$C223=\"Enroll\",'Enrollment Form'!$B223=\"Subscriber\",'Enrollment Form'!$CX223=\"No\",'Enrollment Form'!$DR223=\"\"),\"N\",IF(AND('Enrollment Form'!$C223=\"Enroll\",'Enrollment Form'!$B223=\"Subscriber\",'Enrollment Form'!$CX223=\"Yes\"),\"-\",\"Y\")))))","v":""},{"$f":"IF($B216=\"N\",\"\",IF(AND('Enrollment Form'!$C223=\"ROC\",'Enrollment Form'!$DS223<>\"\"),\"Y\",IF(AND('Enrollment Form'!$C223=\"ROC\",'Enrollment Form'!$DS223=\"\"),\"N\",IF(AND('Enrollment Form'!$C223=\"Enroll\",'Enrollment Form'!$B223=\"Subscriber\",'Enrollment Form'!$CX223=\"No\",'Enrollment Form'!$DS223=\"\"),\"N\",IF(AND('Enrollment Form'!$C223=\"Enroll\",'Enrollment Form'!$B223=\"Subscriber\",'Enrollment Form'!$CX223=\"Yes\"),\"-\",\"Y\")))))","v":""},{"$f":"IF('Enrollment Form'!AH223=\"\",\"\",IF(ISERROR(SEARCH(\".\",'Enrollment Form'!AH223,SEARCH(\"@\",'Enrollment Form'!AH223))),\"N\",\"Y\"))","v":""},{"$f":"IF(OR($B216=\"N\",'Enrollment Form'!$G223=\"\"),\"\",IF('Enrollment Form'!$B223<>\"Subscriber\",\"-\",IF(COUNTIF('Enrollment Form'!$AV223:$AW223,\"Yes\")=2,\"N\",\"Y\")))","v":""},{"$f":"IF(OR('Enrollment Form'!$CJ223=\"\",'Enrollment Form'!$CJ223=\"No\"),\"-\",IF(AND('Enrollment Form'!$CJ223=\"Yes\",'Enrollment Form'!$CK223=\"\"),\"N\",\"Y\"))","v":"-"},{"$f":"IF(OR('Enrollment Form'!$CL223=\"\",'Enrollment Form'!$CL223=\"No\"),\"-\",IF(AND('Enrollment Form'!$CL223=\"Yes\",'Enrollment Form'!$CM223=\"\"),\"N\",\"Y\"))","v":"-"},{"$f":"IF(OR('Enrollment Form'!$CN223=\"\",'Enrollment Form'!$CN223=\"No\"),\"-\",IF(AND('Enrollment Form'!$CN223=\"Yes\",'Enrollment Form'!$CO223=\"\"),\"N\",\"Y\"))","v":"-"},{"$f":"IF(OR('Enrollment Form'!$CN223=\"\",'Enrollment Form'!$CN223=\"No\"),\"-\",IF(AND('Enrollment Form'!$CN223=\"Yes\",'Enrollment Form'!$CP223=\"\"),\"N\",\"Y\"))","v":"-"},{"$f":"IF('Enrollment Form'!B223<>\"Subscriber\",\"-\",IF(AND('Enrollment Form'!B223=\"Subscriber\",'Enrollment Form'!C223=\"Enroll\",'Enrollment Form'!AA223=\"\"),\"N\",\"Y\"))","v":"-"},{"$f":"IF(OR('Enrollment Form'!B223=\"Subscriber\",'Enrollment Form'!B223=\"\"),\"-\",IF('Enrollment Form'!BP223=\"\",\"N\",\"Y\"))","v":"-"},{"$f":"IF('Enrollment Form'!B223<>\"Subscriber\",\"-\",IF(AND('Enrollment Form'!B223=\"Subscriber\",'Enrollment Form'!G223=\"\"),\"N\",\"Y\"))","v":"-"},{"$f":"IF('Enrollment Form'!A223=\"\",\"\",IF('Enrollment Form'!B223=\"Subscriber\",\"-\",IF(AND('Enrollment Form'!B223<>\"Subscriber\",'Enrollment Form'!G223='Enrollment Form'!H223),\"N\",\"Y\")))","v":""},0]
[224,{"$f":"IF('Enrollment Form'!$A224<>\"\",\"Y\",\"N\")","v":"N"},{"$f":"IF(AND('Enrollment Form'!$B224=\"\",'Enrollment Form'!$C224<>\"\"),\"N\",IF($B217=\"N\",\"\",\"Y\"))","v":""},{"$f":"IF(OR($B217=\"N\",'Enrollment Form'!G224=\"\"),\"\",IF('Enrollment Form'!$B224<>\"Subscriber\",\"\",IF('Enrollment Form'!$G224='Enrollment Form'!$H224,\"Y\",\"N\")))","v":""},{"$f":"IF($B217=\"N\",\"\",IF(AND(COUNTIFS('Enrollment Form'!$H$11:$H$1000,'Enrollment Form'!$H224,'Enrollment Form'!$B$11:$B$1000,'Enrollment Form'!$B224)>1,'Enrollment Form'!$H224<>\"\"),\"N\",\"Y\"))","v":""},{"$f":"IF($B217=\"N\",\"\",IF(LEN('Enrollment Form'!$Y224)=0,\"\",IF(LEN('Enrollment Form'!$Y224)<>5,\"N\",\"Y\")))","v":""},{"$f":"IF($B217=\"N\",\"\",IF(LEN('Enrollment Form'!$AD224=0),\"\",IF(LEN('Enrollment Form'!$AD224)<>5,\"N\",\"Y\")))","v":""},{"$f":"IF($B217=\"N\",\"\",IF(LEN('Enrollment Form'!$BS224=0),\"\",IF(LEN('Enrollment Form'!$BS224)<>5,\"N\",\"Y\")))","v":""},{"$f":"IF($B217=\"N\",\"\",IF(LEN('Enrollment Form'!$AE224)=0,\"\",IF(LEN('Enrollment Form'!$AE224)<>10,\"N\",\"Y\")))","v":""},{"$f":"IF($B217=\"N\",\"\",IF(LEN('Enrollment Form'!$AF224)=0,\"\",IF(LEN('Enrollment Form'!$AF224)<>10,\"N\",\"Y\")))","v":""},{"$f":"IF('Enrollment Form'!$O224<>\"Graded\",\"-\",IF(AND('Enrollment Form'!$O224=\"Graded\",'Enrollment Form'!$AR224<>\"\"),\"Y\",\"N\"))","v":"-"},{"$f":"IF($B217=\"N\",\"\",IF(OR('Enrollment Form'!$B224<>\"Subscriber\",'Enrollment Form'!$C224=\"ROC\"),\"-\",IF(AND('Enrollment Form'!$B224=\"Subscriber\",'Enrollment Form'!$C224=\"Enroll\",'Enrollment Form'!$AJ224<>\"\"),\"Y\",\"N\")))","v":""},{"$f":"IF($B217=\"N\",\"\",IF(OR('Enrollment Form'!$B224<>\"Subscriber\",'Enrollment Form'!$C224=\"ROC\"),\"-\",IF(AND('Enrollment Form'!$B224=\"Subscriber\",'Enrollment Form'!$C224=\"Enroll\",'Enrollment Form'!$AK224<>\"\"),\"Y\",\"N\")))","v":""},{"$f":"IF($B217=\"N\",\"\",IF(OR('Enrollment Form'!$B224<>\"Subscriber\",'Enrollment Form'!$C224=\"ROC\"),\"-\",IF(AND('Enrollment Form'!$B224=\"Subscriber\",'Enrollment Form'!$C224=\"Enroll\",'Enrollment Form'!$AL224<>\"\"),\"Y\",\"N\")))","v":""},{"$f":"IF($B217=\"N\",\"\",IF(OR('Enrollment Form'!$B224<>\"Subscriber\",'Enrollment Form'!$C224=\"ROC\"),\"-\",IF(AND('Enrollment Form'!$B224=\"Subscriber\",'Enrollment Form'!$C224=\"Enroll\",'Enrollment Form'!$AP224<>\"\"),\"Y\",\"N\")))","v":""},{"$f":"IF($B217=\"N\",\"\",IF(OR('Enrollment Form'!$B224<>\"Subscriber\",'Enrollment Form'!$C224=\"ROC\"),\"-\",IF(AND('Enrollment Form'!$B224=\"Subscriber\",'Enrollment Form'!$C224=\"Enroll\",'Enrollment Form'!$AQ224<>\"\"),\"Y\",\"N\")))","v":""},{"$f":"IF($B217=\"N\",\"\",IF(OR('Enrollment Form'!$B224<>\"Subscriber\",'Enrollment Form'!$C224=\"ROC\"),\"-\",IF(AND('Enrollment Form'!$B224=\"Subscriber\",'Enrollment Form'!$C224=\"Enroll\",'Enrollment Form'!$AS224<>\"\"),\"Y\",\"N\")))","v":""},{"$f":"IF($B217=\"N\",\"\",IF($Q217=\"-\",\"-\",IF(AND($Q217=\"Y\",'Enrollment Form'!$AS224=\"No\"),\"-\",IF(AND($Q217=\"Y\",'Enrollment Form'!$AS224=\"Yes\",'Enrollment Form'!$AT224<>\"\"),\"Y\",\"N\"))))","v":""},{"$f":"IF($B217=\"N\",\"\",IF(OR('Enrollment Form'!$B224<>\"Subscriber\",'Enrollment Form'!$C224=\"ROC\"),\"-\",IF(AND('Enrollment Form'!$B224=\"Subscriber\",'Enrollment Form'!$C224=\"Enroll\",'Enrollment Form'!$CV224<>\"\"),\"Y\",\"N\")))","v":""},{"$f":"IF($B217=\"N\",\"\",IF($S217=\"-\",\"-\",IF(AND($S217=\"Y\",'Enrollment Form'!$CV224=\"No\"),\"-\",IF(AND($S217=\"Y\",'Enrollment Form'!$CV224=\"Yes\",'Enrollment Form'!$CW224<>\"\"),\"Y\",\"N\"))))","v":""},{"$f":"IF(OR('Enrollment Form'!$AY224=\"Yes\",'Enrollment Form'!$AY224=\"\"),\"-\",IF(OR(AND('Enrollment Form'!$AY224=\"No\",ISERROR(FIND(\"HMO\",VLOOKUP('Enrollment Form'!G224,'Enrollment Form'!H$11:J$1000,3,FALSE),1))=FALSE,COUNTA('Enrollment Form'!$AZ224:$BC224)=4),AND('Enrollment Form'!$AY224=\"No\",ISERROR(FIND(\"HMO\",VLOOKUP('Enrollment Form'!G224,'Enrollment Form'!H$11:J$1000,3,FALSE),1))=FALSE,COUNTA('Enrollment Form'!$BT224:$BW224)=4)),\"Y\",\"N\"))","v":"-"},{"$f":"IF($B217=\"N\",\"\",IF('Enrollment Form'!$B224=\"Subscriber\",\"-\",IF(COUNTA('Enrollment Form'!$BL224,'Enrollment Form'!$BN224)=2,\"Y\",\"N\")))","v":""},{"$f":"IF($B217=\"N\",\"\",IF(OR('Enrollment Form'!$AX224=\"\",'Enrollment Form'!$AX224=\"No\"),\"-\",IF(AND('Enrollment Form'!$AX224=\"Yes\",COUNTA('Enrollment Form'!$CR224)=1),\"Y\",\"N\")))","v":""},{"$f":"IF(OR('Enrollment Form'!$CR224=\"\",'Enrollment Form'!$CR224=\"No\"),\"-\",IF(COUNTA('Enrollment Form'!$CT224:$CU224)=2,\"Y\",\"N\"))","v":"-"},{"$f":"IF($B217=\"N\",\"\",IF(COUNTIF('Enrollment Form'!$DG224:$DP224,\"Other\")=COUNTA('Enrollment Form'!$DK224,'Enrollment Form'!$DH224,'Enrollment Form'!$DN224,'Enrollment Form'!$DQ224),\"Y\",\"N\"))","v":""},{"$f":"IF($B217=\"N\",\"\",IF(OR('Enrollment Form'!B224<>\"Subscriber\",'Enrollment Form'!C224=\"ROC\",COUNTIF('Enrollment Form'!AV224:AW224,\"Yes\")>=1),\"-\",IF(AND('Enrollment Form'!C224=\"Enroll\",COUNTIF('Enrollment Form'!AV224:AW224,\"No\")=2,'Enrollment Form'!AX224=\"\"),\"N\",\"Y\")))","v":""},{"$f":"IF(OR(B217=\"N\",'Enrollment Form'!B224<>\"Subscriber\",'Enrollment Form'!C224=\"ROC\",'Enrollment Form'!O224<>\"Multiple of Salary\"),\"-\",IF(COUNTA('Enrollment Form'!T224:U224)<2,\"N\",\"Y\"))","v":"-"},{"$f":"IF(B217=\"N\",\"\",IF(OR('Enrollment Form'!C224=\"ROC\",'Enrollment Form'!B224<>\"Subscriber\",'Enrollment Form'!O224=\"Waive\",'Enrollment Form'!O224=\"\"),\"-\",IF('Enrollment Form'!P224=\"\",\"N\",\"Y\")))","v":""},{"$f":"IF($B217=\"N\",\"\",IF(AND('Enrollment Form'!$C224=\"ROC\",'Enrollment Form'!$DR224<>\"\"),\"Y\",IF(AND('Enrollment Form'!$C224=\"ROC\",'Enrollment Form'!$DR224=\"\"),\"N\",IF(AND('Enrollment Form'!$C224=\"Enroll\",'Enrollment Form'!$B224=\"Subscriber\",'Enrollment Form'!$CX224=\"No\",'Enrollment Form'!$DR224=\"\"),\"N\",IF(AND('Enrollment Form'!$C224=\"Enroll\",'Enrollment Form'!$B224=\"Subscriber\",'Enrollment Form'!$CX224=\"Yes\"),\"-\",\"Y\")))))","v":""},{"$f":"IF($B217=\"N\",\"\",IF(AND('Enrollment Form'!$C224=\"ROC\",'Enrollment Form'!$DS224<>\"\"),\"Y\",IF(AND('Enrollment Form'!$C224=\"ROC\",'Enrollment Form'!$DS224=\"\"),\"N\",IF(AND('Enrollment Form'!$C224=\"Enroll\",'Enrollment Form'!$B224=\"Subscriber\",'Enrollment Form'!$CX224=\"No\",'Enrollment Form'!$DS224=\"\"),\"N\",IF(AND('Enrollment Form'!$C224=\"Enroll\",'Enrollment Form'!$B224=\"Subscriber\",'Enrollment Form'!$CX224=\"Yes\"),\"-\",\"Y\")))))","v":""},{"$f":"IF('Enrollment Form'!AH224=\"\",\"\",IF(ISERROR(SEARCH(\".\",'Enrollment Form'!AH224,SEARCH(\"@\",'Enrollment Form'!AH224))),\"N\",\"Y\"))","v":""},{"$f":"IF(OR($B217=\"N\",'Enrollment Form'!$G224=\"\"),\"\",IF('Enrollment Form'!$B224<>\"Subscriber\",\"-\",IF(COUNTIF('Enrollment Form'!$AV224:$AW224,\"Yes\")=2,\"N\",\"Y\")))","v":""},{"$f":"IF(OR('Enrollment Form'!$CJ224=\"\",'Enrollment Form'!$CJ224=\"No\"),\"-\",IF(AND('Enrollment Form'!$CJ224=\"Yes\",'Enrollment Form'!$CK224=\"\"),\"N\",\"Y\"))","v":"-"},{"$f":"IF(OR('Enrollment Form'!$CL224=\"\",'Enrollment Form'!$CL224=\"No\"),\"-\",IF(AND('Enrollment Form'!$CL224=\"Yes\",'Enrollment Form'!$CM224=\"\"),\"N\",\"Y\"))","v":"-"},{"$f":"IF(OR('Enrollment Form'!$CN224=\"\",'Enrollment Form'!$CN224=\"No\"),\"-\",IF(AND('Enrollment Form'!$CN224=\"Yes\",'Enrollment Form'!$CO224=\"\"),\"N\",\"Y\"))","v":"-"},{"$f":"IF(OR('Enrollment Form'!$CN224=\"\",'Enrollment Form'!$CN224=\"No\"),\"-\",IF(AND('Enrollment Form'!$CN224=\"Yes\",'Enrollment Form'!$CP224=\"\"),\"N\",\"Y\"))","v":"-"},{"$f":"IF('Enrollment Form'!B224<>\"Subscriber\",\"-\",IF(AND('Enrollment Form'!B224=\"Subscriber\",'Enrollment Form'!C224=\"Enroll\",'Enrollment Form'!AA224=\"\"),\"N\",\"Y\"))","v":"-"},{"$f":"IF(OR('Enrollment Form'!B224=\"Subscriber\",'Enrollment Form'!B224=\"\"),\"-\",IF('Enrollment Form'!BP224=\"\",\"N\",\"Y\"))","v":"-"},{"$f":"IF('Enrollment Form'!B224<>\"Subscriber\",\"-\",IF(AND('Enrollment Form'!B224=\"Subscriber\",'Enrollment Form'!G224=\"\"),\"N\",\"Y\"))","v":"-"},{"$f":"IF('Enrollment Form'!A224=\"\",\"\",IF('Enrollment Form'!B224=\"Subscriber\",\"-\",IF(AND('Enrollment Form'!B224<>\"Subscriber\",'Enrollment Form'!G224='Enrollment Form'!H224),\"N\",\"Y\")))","v":""},0]
[225,{"$f":"IF('Enrollment Form'!$A225<>\"\",\"Y\",\"N\")","v":"N"},{"$f":"IF(AND('Enrollment Form'!$B225=\"\",'Enrollment Form'!$C225<>\"\"),\"N\",IF($B218=\"N\",\"\",\"Y\"))","v":""},{"$f":"IF(OR($B218=\"N\",'Enrollment Form'!G225=\"\"),\"\",IF('Enrollment Form'!$B225<>\"Subscriber\",\"\",IF('Enrollment Form'!$G225='Enrollment Form'!$H225,\"Y\",\"N\")))","v":""},{"$f":"IF($B218=\"N\",\"\",IF(AND(COUNTIFS('Enrollment Form'!$H$11:$H$1000,'Enrollment Form'!$H225,'Enrollment Form'!$B$11:$B$1000,'Enrollment Form'!$B225)>1,'Enrollment Form'!$H225<>\"\"),\"N\",\"Y\"))","v":""},{"$f":"IF($B218=\"N\",\"\",IF(LEN('Enrollment Form'!$Y225)=0,\"\",IF(LEN('Enrollment Form'!$Y225)<>5,\"N\",\"Y\")))","v":""},{"$f":"IF($B218=\"N\",\"\",IF(LEN('Enrollment Form'!$AD225=0),\"\",IF(LEN('Enrollment Form'!$AD225)<>5,\"N\",\"Y\")))","v":""},{"$f":"IF($B218=\"N\",\"\",IF(LEN('Enrollment Form'!$BS225=0),\"\",IF(LEN('Enrollment Form'!$BS225)<>5,\"N\",\"Y\")))","v":""},{"$f":"IF($B218=\"N\",\"\",IF(LEN('Enrollment Form'!$AE225)=0,\"\",IF(LEN('Enrollment Form'!$AE225)<>10,\"N\",\"Y\")))","v":""},{"$f":"IF($B218=\"N\",\"\",IF(LEN('Enrollment Form'!$AF225)=0,\"\",IF(LEN('Enrollment Form'!$AF225)<>10,\"N\",\"Y\")))","v":""},{"$f":"IF('Enrollment Form'!$O225<>\"Graded\",\"-\",IF(AND('Enrollment Form'!$O225=\"Graded\",'Enrollment Form'!$AR225<>\"\"),\"Y\",\"N\"))","v":"-"},{"$f":"IF($B218=\"N\",\"\",IF(OR('Enrollment Form'!$B225<>\"Subscriber\",'Enrollment Form'!$C225=\"ROC\"),\"-\",IF(AND('Enrollment Form'!$B225=\"Subscriber\",'Enrollment Form'!$C225=\"Enroll\",'Enrollment Form'!$AJ225<>\"\"),\"Y\",\"N\")))","v":""},{"$f":"IF($B218=\"N\",\"\",IF(OR('Enrollment Form'!$B225<>\"Subscriber\",'Enrollment Form'!$C225=\"ROC\"),\"-\",IF(AND('Enrollment Form'!$B225=\"Subscriber\",'Enrollment Form'!$C225=\"Enroll\",'Enrollment Form'!$AK225<>\"\"),\"Y\",\"N\")))","v":""},{"$f":"IF($B218=\"N\",\"\",IF(OR('Enrollment Form'!$B225<>\"Subscriber\",'Enrollment Form'!$C225=\"ROC\"),\"-\",IF(AND('Enrollment Form'!$B225=\"Subscriber\",'Enrollment Form'!$C225=\"Enroll\",'Enrollment Form'!$AL225<>\"\"),\"Y\",\"N\")))","v":""},{"$f":"IF($B218=\"N\",\"\",IF(OR('Enrollment Form'!$B225<>\"Subscriber\",'Enrollment Form'!$C225=\"ROC\"),\"-\",IF(AND('Enrollment Form'!$B225=\"Subscriber\",'Enrollment Form'!$C225=\"Enroll\",'Enrollment Form'!$AP225<>\"\"),\"Y\",\"N\")))","v":""},{"$f":"IF($B218=\"N\",\"\",IF(OR('Enrollment Form'!$B225<>\"Subscriber\",'Enrollment Form'!$C225=\"ROC\"),\"-\",IF(AND('Enrollment Form'!$B225=\"Subscriber\",'Enrollment Form'!$C225=\"Enroll\",'Enrollment Form'!$AQ225<>\"\"),\"Y\",\"N\")))","v":""},{"$f":"IF($B218=\"N\",\"\",IF(OR('Enrollment Form'!$B225<>\"Subscriber\",'Enrollment Form'!$C225=\"ROC\"),\"-\",IF(AND('Enrollment Form'!$B225=\"Subscriber\",'Enrollment Form'!$C225=\"Enroll\",'Enrollment Form'!$AS225<>\"\"),\"Y\",\"N\")))","v":""},{"$f":"IF($B218=\"N\",\"\",IF($Q218=\"-\",\"-\",IF(AND($Q218=\"Y\",'Enrollment Form'!$AS225=\"No\"),\"-\",IF(AND($Q218=\"Y\",'Enrollment Form'!$AS225=\"Yes\",'Enrollment Form'!$AT225<>\"\"),\"Y\",\"N\"))))","v":""},{"$f":"IF($B218=\"N\",\"\",IF(OR('Enrollment Form'!$B225<>\"Subscriber\",'Enrollment Form'!$C225=\"ROC\"),\"-\",IF(AND('Enrollment Form'!$B225=\"Subscriber\",'Enrollment Form'!$C225=\"Enroll\",'Enrollment Form'!$CV225<>\"\"),\"Y\",\"N\")))","v":""},{"$f":"IF($B218=\"N\",\"\",IF($S218=\"-\",\"-\",IF(AND($S218=\"Y\",'Enrollment Form'!$CV225=\"No\"),\"-\",IF(AND($S218=\"Y\",'Enrollment Form'!$CV225=\"Yes\",'Enrollment Form'!$CW225<>\"\"),\"Y\",\"N\"))))","v":""},{"$f":"IF(OR('Enrollment Form'!$AY225=\"Yes\",'Enrollment Form'!$AY225=\"\"),\"-\",IF(OR(AND('Enrollment Form'!$AY225=\"No\",ISERROR(FIND(\"HMO\",VLOOKUP('Enrollment Form'!G225,'Enrollment Form'!H$11:J$1000,3,FALSE),1))=FALSE,COUNTA('Enrollment Form'!$AZ225:$BC225)=4),AND('Enrollment Form'!$AY225=\"No\",ISERROR(FIND(\"HMO\",VLOOKUP('Enrollment Form'!G225,'Enrollment Form'!H$11:J$1000,3,FALSE),1))=FALSE,COUNTA('Enrollment Form'!$BT225:$BW225)=4)),\"Y\",\"N\"))","v":"-"},{"$f":"IF($B218=\"N\",\"\",IF('Enrollment Form'!$B225=\"Subscriber\",\"-\",IF(COUNTA('Enrollment Form'!$BL225,'Enrollment Form'!$BN225)=2,\"Y\",\"N\")))","v":""},{"$f":"IF($B218=\"N\",\"\",IF(OR('Enrollment Form'!$AX225=\"\",'Enrollment Form'!$AX225=\"No\"),\"-\",IF(AND('Enrollment Form'!$AX225=\"Yes\",COUNTA('Enrollment Form'!$CR225)=1),\"Y\",\"N\")))","v":""},{"$f":"IF(OR('Enrollment Form'!$CR225=\"\",'Enrollment Form'!$CR225=\"No\"),\"-\",IF(COUNTA('Enrollment Form'!$CT225:$CU225)=2,\"Y\",\"N\"))","v":"-"},{"$f":"IF($B218=\"N\",\"\",IF(COUNTIF('Enrollment Form'!$DG225:$DP225,\"Other\")=COUNTA('Enrollment Form'!$DK225,'Enrollment Form'!$DH225,'Enrollment Form'!$DN225,'Enrollment Form'!$DQ225),\"Y\",\"N\"))","v":""},{"$f":"IF($B218=\"N\",\"\",IF(OR('Enrollment Form'!B225<>\"Subscriber\",'Enrollment Form'!C225=\"ROC\",COUNTIF('Enrollment Form'!AV225:AW225,\"Yes\")>=1),\"-\",IF(AND('Enrollment Form'!C225=\"Enroll\",COUNTIF('Enrollment Form'!AV225:AW225,\"No\")=2,'Enrollment Form'!AX225=\"\"),\"N\",\"Y\")))","v":""},{"$f":"IF(OR(B218=\"N\",'Enrollment Form'!B225<>\"Subscriber\",'Enrollment Form'!C225=\"ROC\",'Enrollment Form'!O225<>\"Multiple of Salary\"),\"-\",IF(COUNTA('Enrollment Form'!T225:U225)<2,\"N\",\"Y\"))","v":"-"},{"$f":"IF(B218=\"N\",\"\",IF(OR('Enrollment Form'!C225=\"ROC\",'Enrollment Form'!B225<>\"Subscriber\",'Enrollment Form'!O225=\"Waive\",'Enrollment Form'!O225=\"\"),\"-\",IF('Enrollment Form'!P225=\"\",\"N\",\"Y\")))","v":""},{"$f":"IF($B218=\"N\",\"\",IF(AND('Enrollment Form'!$C225=\"ROC\",'Enrollment Form'!$DR225<>\"\"),\"Y\",IF(AND('Enrollment Form'!$C225=\"ROC\",'Enrollment Form'!$DR225=\"\"),\"N\",IF(AND('Enrollment Form'!$C225=\"Enroll\",'Enrollment Form'!$B225=\"Subscriber\",'Enrollment Form'!$CX225=\"No\",'Enrollment Form'!$DR225=\"\"),\"N\",IF(AND('Enrollment Form'!$C225=\"Enroll\",'Enrollment Form'!$B225=\"Subscriber\",'Enrollment Form'!$CX225=\"Yes\"),\"-\",\"Y\")))))","v":""},{"$f":"IF($B218=\"N\",\"\",IF(AND('Enrollment Form'!$C225=\"ROC\",'Enrollment Form'!$DS225<>\"\"),\"Y\",IF(AND('Enrollment Form'!$C225=\"ROC\",'Enrollment Form'!$DS225=\"\"),\"N\",IF(AND('Enrollment Form'!$C225=\"Enroll\",'Enrollment Form'!$B225=\"Subscriber\",'Enrollment Form'!$CX225=\"No\",'Enrollment Form'!$DS225=\"\"),\"N\",IF(AND('Enrollment Form'!$C225=\"Enroll\",'Enrollment Form'!$B225=\"Subscriber\",'Enrollment Form'!$CX225=\"Yes\"),\"-\",\"Y\")))))","v":""},{"$f":"IF('Enrollment Form'!AH225=\"\",\"\",IF(ISERROR(SEARCH(\".\",'Enrollment Form'!AH225,SEARCH(\"@\",'Enrollment Form'!AH225))),\"N\",\"Y\"))","v":""},{"$f":"IF(OR($B218=\"N\",'Enrollment Form'!$G225=\"\"),\"\",IF('Enrollment Form'!$B225<>\"Subscriber\",\"-\",IF(COUNTIF('Enrollment Form'!$AV225:$AW225,\"Yes\")=2,\"N\",\"Y\")))","v":""},{"$f":"IF(OR('Enrollment Form'!$CJ225=\"\",'Enrollment Form'!$CJ225=\"No\"),\"-\",IF(AND('Enrollment Form'!$CJ225=\"Yes\",'Enrollment Form'!$CK225=\"\"),\"N\",\"Y\"))","v":"-"},{"$f":"IF(OR('Enrollment Form'!$CL225=\"\",'Enrollment Form'!$CL225=\"No\"),\"-\",IF(AND('Enrollment Form'!$CL225=\"Yes\",'Enrollment Form'!$CM225=\"\"),\"N\",\"Y\"))","v":"-"},{"$f":"IF(OR('Enrollment Form'!$CN225=\"\",'Enrollment Form'!$CN225=\"No\"),\"-\",IF(AND('Enrollment Form'!$CN225=\"Yes\",'Enrollment Form'!$CO225=\"\"),\"N\",\"Y\"))","v":"-"},{"$f":"IF(OR('Enrollment Form'!$CN225=\"\",'Enrollment Form'!$CN225=\"No\"),\"-\",IF(AND('Enrollment Form'!$CN225=\"Yes\",'Enrollment Form'!$CP225=\"\"),\"N\",\"Y\"))","v":"-"},{"$f":"IF('Enrollment Form'!B225<>\"Subscriber\",\"-\",IF(AND('Enrollment Form'!B225=\"Subscriber\",'Enrollment Form'!C225=\"Enroll\",'Enrollment Form'!AA225=\"\"),\"N\",\"Y\"))","v":"-"},{"$f":"IF(OR('Enrollment Form'!B225=\"Subscriber\",'Enrollment Form'!B225=\"\"),\"-\",IF('Enrollment Form'!BP225=\"\",\"N\",\"Y\"))","v":"-"},{"$f":"IF('Enrollment Form'!B225<>\"Subscriber\",\"-\",IF(AND('Enrollment Form'!B225=\"Subscriber\",'Enrollment Form'!G225=\"\"),\"N\",\"Y\"))","v":"-"},{"$f":"IF('Enrollment Form'!A225=\"\",\"\",IF('Enrollment Form'!B225=\"Subscriber\",\"-\",IF(AND('Enrollment Form'!B225<>\"Subscriber\",'Enrollment Form'!G225='Enrollment Form'!H225),\"N\",\"Y\")))","v":""},0]
[226,{"$f":"IF('Enrollment Form'!$A226<>\"\",\"Y\",\"N\")","v":"N"},{"$f":"IF(AND('Enrollment Form'!$B226=\"\",'Enrollment Form'!$C226<>\"\"),\"N\",IF($B219=\"N\",\"\",\"Y\"))","v":""},{"$f":"IF(OR($B219=\"N\",'Enrollment Form'!G226=\"\"),\"\",IF('Enrollment Form'!$B226<>\"Subscriber\",\"\",IF('Enrollment Form'!$G226='Enrollment Form'!$H226,\"Y\",\"N\")))","v":""},{"$f":"IF($B219=\"N\",\"\",IF(AND(COUNTIFS('Enrollment Form'!$H$11:$H$1000,'Enrollment Form'!$H226,'Enrollment Form'!$B$11:$B$1000,'Enrollment Form'!$B226)>1,'Enrollment Form'!$H226<>\"\"),\"N\",\"Y\"))","v":""},{"$f":"IF($B219=\"N\",\"\",IF(LEN('Enrollment Form'!$Y226)=0,\"\",IF(LEN('Enrollment Form'!$Y226)<>5,\"N\",\"Y\")))","v":""},{"$f":"IF($B219=\"N\",\"\",IF(LEN('Enrollment Form'!$AD226=0),\"\",IF(LEN('Enrollment Form'!$AD226)<>5,\"N\",\"Y\")))","v":""},{"$f":"IF($B219=\"N\",\"\",IF(LEN('Enrollment Form'!$BS226=0),\"\",IF(LEN('Enrollment Form'!$BS226)<>5,\"N\",\"Y\")))","v":""},{"$f":"IF($B219=\"N\",\"\",IF(LEN('Enrollment Form'!$AE226)=0,\"\",IF(LEN('Enrollment Form'!$AE226)<>10,\"N\",\"Y\")))","v":""},{"$f":"IF($B219=\"N\",\"\",IF(LEN('Enrollment Form'!$AF226)=0,\"\",IF(LEN('Enrollment Form'!$AF226)<>10,\"N\",\"Y\")))","v":""},{"$f":"IF('Enrollment Form'!$O226<>\"Graded\",\"-\",IF(AND('Enrollment Form'!$O226=\"Graded\",'Enrollment Form'!$AR226<>\"\"),\"Y\",\"N\"))","v":"-"},{"$f":"IF($B219=\"N\",\"\",IF(OR('Enrollment Form'!$B226<>\"Subscriber\",'Enrollment Form'!$C226=\"ROC\"),\"-\",IF(AND('Enrollment Form'!$B226=\"Subscriber\",'Enrollment Form'!$C226=\"Enroll\",'Enrollment Form'!$AJ226<>\"\"),\"Y\",\"N\")))","v":""},{"$f":"IF($B219=\"N\",\"\",IF(OR('Enrollment Form'!$B226<>\"Subscriber\",'Enrollment Form'!$C226=\"ROC\"),\"-\",IF(AND('Enrollment Form'!$B226=\"Subscriber\",'Enrollment Form'!$C226=\"Enroll\",'Enrollment Form'!$AK226<>\"\"),\"Y\",\"N\")))","v":""},{"$f":"IF($B219=\"N\",\"\",IF(OR('Enrollment Form'!$B226<>\"Subscriber\",'Enrollment Form'!$C226=\"ROC\"),\"-\",IF(AND('Enrollment Form'!$B226=\"Subscriber\",'Enrollment Form'!$C226=\"Enroll\",'Enrollment Form'!$AL226<>\"\"),\"Y\",\"N\")))","v":""},{"$f":"IF($B219=\"N\",\"\",IF(OR('Enrollment Form'!$B226<>\"Subscriber\",'Enrollment Form'!$C226=\"ROC\"),\"-\",IF(AND('Enrollment Form'!$B226=\"Subscriber\",'Enrollment Form'!$C226=\"Enroll\",'Enrollment Form'!$AP226<>\"\"),\"Y\",\"N\")))","v":""},{"$f":"IF($B219=\"N\",\"\",IF(OR('Enrollment Form'!$B226<>\"Subscriber\",'Enrollment Form'!$C226=\"ROC\"),\"-\",IF(AND('Enrollment Form'!$B226=\"Subscriber\",'Enrollment Form'!$C226=\"Enroll\",'Enrollment Form'!$AQ226<>\"\"),\"Y\",\"N\")))","v":""},{"$f":"IF($B219=\"N\",\"\",IF(OR('Enrollment Form'!$B226<>\"Subscriber\",'Enrollment Form'!$C226=\"ROC\"),\"-\",IF(AND('Enrollment Form'!$B226=\"Subscriber\",'Enrollment Form'!$C226=\"Enroll\",'Enrollment Form'!$AS226<>\"\"),\"Y\",\"N\")))","v":""},{"$f":"IF($B219=\"N\",\"\",IF($Q219=\"-\",\"-\",IF(AND($Q219=\"Y\",'Enrollment Form'!$AS226=\"No\"),\"-\",IF(AND($Q219=\"Y\",'Enrollment Form'!$AS226=\"Yes\",'Enrollment Form'!$AT226<>\"\"),\"Y\",\"N\"))))","v":""},{"$f":"IF($B219=\"N\",\"\",IF(OR('Enrollment Form'!$B226<>\"Subscriber\",'Enrollment Form'!$C226=\"ROC\"),\"-\",IF(AND('Enrollment Form'!$B226=\"Subscriber\",'Enrollment Form'!$C226=\"Enroll\",'Enrollment Form'!$CV226<>\"\"),\"Y\",\"N\")))","v":""},{"$f":"IF($B219=\"N\",\"\",IF($S219=\"-\",\"-\",IF(AND($S219=\"Y\",'Enrollment Form'!$CV226=\"No\"),\"-\",IF(AND($S219=\"Y\",'Enrollment Form'!$CV226=\"Yes\",'Enrollment Form'!$CW226<>\"\"),\"Y\",\"N\"))))","v":""},{"$f":"IF(OR('Enrollment Form'!$AY226=\"Yes\",'Enrollment Form'!$AY226=\"\"),\"-\",IF(OR(AND('Enrollment Form'!$AY226=\"No\",ISERROR(FIND(\"HMO\",VLOOKUP('Enrollment Form'!G226,'Enrollment Form'!H$11:J$1000,3,FALSE),1))=FALSE,COUNTA('Enrollment Form'!$AZ226:$BC226)=4),AND('Enrollment Form'!$AY226=\"No\",ISERROR(FIND(\"HMO\",VLOOKUP('Enrollment Form'!G226,'Enrollment Form'!H$11:J$1000,3,FALSE),1))=FALSE,COUNTA('Enrollment Form'!$BT226:$BW226)=4)),\"Y\",\"N\"))","v":"-"},{"$f":"IF($B219=\"N\",\"\",IF('Enrollment Form'!$B226=\"Subscriber\",\"-\",IF(COUNTA('Enrollment Form'!$BL226,'Enrollment Form'!$BN226)=2,\"Y\",\"N\")))","v":""},{"$f":"IF($B219=\"N\",\"\",IF(OR('Enrollment Form'!$AX226=\"\",'Enrollment Form'!$AX226=\"No\"),\"-\",IF(AND('Enrollment Form'!$AX226=\"Yes\",COUNTA('Enrollment Form'!$CR226)=1),\"Y\",\"N\")))","v":""},{"$f":"IF(OR('Enrollment Form'!$CR226=\"\",'Enrollment Form'!$CR226=\"No\"),\"-\",IF(COUNTA('Enrollment Form'!$CT226:$CU226)=2,\"Y\",\"N\"))","v":"-"},{"$f":"IF($B219=\"N\",\"\",IF(COUNTIF('Enrollment Form'!$DG226:$DP226,\"Other\")=COUNTA('Enrollment Form'!$DK226,'Enrollment Form'!$DH226,'Enrollment Form'!$DN226,'Enrollment Form'!$DQ226),\"Y\",\"N\"))","v":""},{"$f":"IF($B219=\"N\",\"\",IF(OR('Enrollment Form'!B226<>\"Subscriber\",'Enrollment Form'!C226=\"ROC\",COUNTIF('Enrollment Form'!AV226:AW226,\"Yes\")>=1),\"-\",IF(AND('Enrollment Form'!C226=\"Enroll\",COUNTIF('Enrollment Form'!AV226:AW226,\"No\")=2,'Enrollment Form'!AX226=\"\"),\"N\",\"Y\")))","v":""},{"$f":"IF(OR(B219=\"N\",'Enrollment Form'!B226<>\"Subscriber\",'Enrollment Form'!C226=\"ROC\",'Enrollment Form'!O226<>\"Multiple of Salary\"),\"-\",IF(COUNTA('Enrollment Form'!T226:U226)<2,\"N\",\"Y\"))","v":"-"},{"$f":"IF(B219=\"N\",\"\",IF(OR('Enrollment Form'!C226=\"ROC\",'Enrollment Form'!B226<>\"Subscriber\",'Enrollment Form'!O226=\"Waive\",'Enrollment Form'!O226=\"\"),\"-\",IF('Enrollment Form'!P226=\"\",\"N\",\"Y\")))","v":""},{"$f":"IF($B219=\"N\",\"\",IF(AND('Enrollment Form'!$C226=\"ROC\",'Enrollment Form'!$DR226<>\"\"),\"Y\",IF(AND('Enrollment Form'!$C226=\"ROC\",'Enrollment Form'!$DR226=\"\"),\"N\",IF(AND('Enrollment Form'!$C226=\"Enroll\",'Enrollment Form'!$B226=\"Subscriber\",'Enrollment Form'!$CX226=\"No\",'Enrollment Form'!$DR226=\"\"),\"N\",IF(AND('Enrollment Form'!$C226=\"Enroll\",'Enrollment Form'!$B226=\"Subscriber\",'Enrollment Form'!$CX226=\"Yes\"),\"-\",\"Y\")))))","v":""},{"$f":"IF($B219=\"N\",\"\",IF(AND('Enrollment Form'!$C226=\"ROC\",'Enrollment Form'!$DS226<>\"\"),\"Y\",IF(AND('Enrollment Form'!$C226=\"ROC\",'Enrollment Form'!$DS226=\"\"),\"N\",IF(AND('Enrollment Form'!$C226=\"Enroll\",'Enrollment Form'!$B226=\"Subscriber\",'Enrollment Form'!$CX226=\"No\",'Enrollment Form'!$DS226=\"\"),\"N\",IF(AND('Enrollment Form'!$C226=\"Enroll\",'Enrollment Form'!$B226=\"Subscriber\",'Enrollment Form'!$CX226=\"Yes\"),\"-\",\"Y\")))))","v":""},{"$f":"IF('Enrollment Form'!AH226=\"\",\"\",IF(ISERROR(SEARCH(\".\",'Enrollment Form'!AH226,SEARCH(\"@\",'Enrollment Form'!AH226))),\"N\",\"Y\"))","v":""},{"$f":"IF(OR($B219=\"N\",'Enrollment Form'!$G226=\"\"),\"\",IF('Enrollment Form'!$B226<>\"Subscriber\",\"-\",IF(COUNTIF('Enrollment Form'!$AV226:$AW226,\"Yes\")=2,\"N\",\"Y\")))","v":""},{"$f":"IF(OR('Enrollment Form'!$CJ226=\"\",'Enrollment Form'!$CJ226=\"No\"),\"-\",IF(AND('Enrollment Form'!$CJ226=\"Yes\",'Enrollment Form'!$CK226=\"\"),\"N\",\"Y\"))","v":"-"},{"$f":"IF(OR('Enrollment Form'!$CL226=\"\",'Enrollment Form'!$CL226=\"No\"),\"-\",IF(AND('Enrollment Form'!$CL226=\"Yes\",'Enrollment Form'!$CM226=\"\"),\"N\",\"Y\"))","v":"-"},{"$f":"IF(OR('Enrollment Form'!$CN226=\"\",'Enrollment Form'!$CN226=\"No\"),\"-\",IF(AND('Enrollment Form'!$CN226=\"Yes\",'Enrollment Form'!$CO226=\"\"),\"N\",\"Y\"))","v":"-"},{"$f":"IF(OR('Enrollment Form'!$CN226=\"\",'Enrollment Form'!$CN226=\"No\"),\"-\",IF(AND('Enrollment Form'!$CN226=\"Yes\",'Enrollment Form'!$CP226=\"\"),\"N\",\"Y\"))","v":"-"},{"$f":"IF('Enrollment Form'!B226<>\"Subscriber\",\"-\",IF(AND('Enrollment Form'!B226=\"Subscriber\",'Enrollment Form'!C226=\"Enroll\",'Enrollment Form'!AA226=\"\"),\"N\",\"Y\"))","v":"-"},{"$f":"IF(OR('Enrollment Form'!B226=\"Subscriber\",'Enrollment Form'!B226=\"\"),\"-\",IF('Enrollment Form'!BP226=\"\",\"N\",\"Y\"))","v":"-"},{"$f":"IF('Enrollment Form'!B226<>\"Subscriber\",\"-\",IF(AND('Enrollment Form'!B226=\"Subscriber\",'Enrollment Form'!G226=\"\"),\"N\",\"Y\"))","v":"-"},{"$f":"IF('Enrollment Form'!A226=\"\",\"\",IF('Enrollment Form'!B226=\"Subscriber\",\"-\",IF(AND('Enrollment Form'!B226<>\"Subscriber\",'Enrollment Form'!G226='Enrollment Form'!H226),\"N\",\"Y\")))","v":""},0]
[227,{"$f":"IF('Enrollment Form'!$A227<>\"\",\"Y\",\"N\")","v":"N"},{"$f":"IF(AND('Enrollment Form'!$B227=\"\",'Enrollment Form'!$C227<>\"\"),\"N\",IF($B220=\"N\",\"\",\"Y\"))","v":""},{"$f":"IF(OR($B220=\"N\",'Enrollment Form'!G227=\"\"),\"\",IF('Enrollment Form'!$B227<>\"Subscriber\",\"\",IF('Enrollment Form'!$G227='Enrollment Form'!$H227,\"Y\",\"N\")))","v":""},{"$f":"IF($B220=\"N\",\"\",IF(AND(COUNTIFS('Enrollment Form'!$H$11:$H$1000,'Enrollment Form'!$H227,'Enrollment Form'!$B$11:$B$1000,'Enrollment Form'!$B227)>1,'Enrollment Form'!$H227<>\"\"),\"N\",\"Y\"))","v":""},{"$f":"IF($B220=\"N\",\"\",IF(LEN('Enrollment Form'!$Y227)=0,\"\",IF(LEN('Enrollment Form'!$Y227)<>5,\"N\",\"Y\")))","v":""},{"$f":"IF($B220=\"N\",\"\",IF(LEN('Enrollment Form'!$AD227=0),\"\",IF(LEN('Enrollment Form'!$AD227)<>5,\"N\",\"Y\")))","v":""},{"$f":"IF($B220=\"N\",\"\",IF(LEN('Enrollment Form'!$BS227=0),\"\",IF(LEN('Enrollment Form'!$BS227)<>5,\"N\",\"Y\")))","v":""},{"$f":"IF($B220=\"N\",\"\",IF(LEN('Enrollment Form'!$AE227)=0,\"\",IF(LEN('Enrollment Form'!$AE227)<>10,\"N\",\"Y\")))","v":""},{"$f":"IF($B220=\"N\",\"\",IF(LEN('Enrollment Form'!$AF227)=0,\"\",IF(LEN('Enrollment Form'!$AF227)<>10,\"N\",\"Y\")))","v":""},{"$f":"IF('Enrollment Form'!$O227<>\"Graded\",\"-\",IF(AND('Enrollment Form'!$O227=\"Graded\",'Enrollment Form'!$AR227<>\"\"),\"Y\",\"N\"))","v":"-"},{"$f":"IF($B220=\"N\",\"\",IF(OR('Enrollment Form'!$B227<>\"Subscriber\",'Enrollment Form'!$C227=\"ROC\"),\"-\",IF(AND('Enrollment Form'!$B227=\"Subscriber\",'Enrollment Form'!$C227=\"Enroll\",'Enrollment Form'!$AJ227<>\"\"),\"Y\",\"N\")))","v":""},{"$f":"IF($B220=\"N\",\"\",IF(OR('Enrollment Form'!$B227<>\"Subscriber\",'Enrollment Form'!$C227=\"ROC\"),\"-\",IF(AND('Enrollment Form'!$B227=\"Subscriber\",'Enrollment Form'!$C227=\"Enroll\",'Enrollment Form'!$AK227<>\"\"),\"Y\",\"N\")))","v":""},{"$f":"IF($B220=\"N\",\"\",IF(OR('Enrollment Form'!$B227<>\"Subscriber\",'Enrollment Form'!$C227=\"ROC\"),\"-\",IF(AND('Enrollment Form'!$B227=\"Subscriber\",'Enrollment Form'!$C227=\"Enroll\",'Enrollment Form'!$AL227<>\"\"),\"Y\",\"N\")))","v":""},{"$f":"IF($B220=\"N\",\"\",IF(OR('Enrollment Form'!$B227<>\"Subscriber\",'Enrollment Form'!$C227=\"ROC\"),\"-\",IF(AND('Enrollment Form'!$B227=\"Subscriber\",'Enrollment Form'!$C227=\"Enroll\",'Enrollment Form'!$AP227<>\"\"),\"Y\",\"N\")))","v":""},{"$f":"IF($B220=\"N\",\"\",IF(OR('Enrollment Form'!$B227<>\"Subscriber\",'Enrollment Form'!$C227=\"ROC\"),\"-\",IF(AND('Enrollment Form'!$B227=\"Subscriber\",'Enrollment Form'!$C227=\"Enroll\",'Enrollment Form'!$AQ227<>\"\"),\"Y\",\"N\")))","v":""},{"$f":"IF($B220=\"N\",\"\",IF(OR('Enrollment Form'!$B227<>\"Subscriber\",'Enrollment Form'!$C227=\"ROC\"),\"-\",IF(AND('Enrollment Form'!$B227=\"Subscriber\",'Enrollment Form'!$C227=\"Enroll\",'Enrollment Form'!$AS227<>\"\"),\"Y\",\"N\")))","v":""},{"$f":"IF($B220=\"N\",\"\",IF($Q220=\"-\",\"-\",IF(AND($Q220=\"Y\",'Enrollment Form'!$AS227=\"No\"),\"-\",IF(AND($Q220=\"Y\",'Enrollment Form'!$AS227=\"Yes\",'Enrollment Form'!$AT227<>\"\"),\"Y\",\"N\"))))","v":""},{"$f":"IF($B220=\"N\",\"\",IF(OR('Enrollment Form'!$B227<>\"Subscriber\",'Enrollment Form'!$C227=\"ROC\"),\"-\",IF(AND('Enrollment Form'!$B227=\"Subscriber\",'Enrollment Form'!$C227=\"Enroll\",'Enrollment Form'!$CV227<>\"\"),\"Y\",\"N\")))","v":""},{"$f":"IF($B220=\"N\",\"\",IF($S220=\"-\",\"-\",IF(AND($S220=\"Y\",'Enrollment Form'!$CV227=\"No\"),\"-\",IF(AND($S220=\"Y\",'Enrollment Form'!$CV227=\"Yes\",'Enrollment Form'!$CW227<>\"\"),\"Y\",\"N\"))))","v":""},{"$f":"IF(OR('Enrollment Form'!$AY227=\"Yes\",'Enrollment Form'!$AY227=\"\"),\"-\",IF(OR(AND('Enrollment Form'!$AY227=\"No\",ISERROR(FIND(\"HMO\",VLOOKUP('Enrollment Form'!G227,'Enrollment Form'!H$11:J$1000,3,FALSE),1))=FALSE,COUNTA('Enrollment Form'!$AZ227:$BC227)=4),AND('Enrollment Form'!$AY227=\"No\",ISERROR(FIND(\"HMO\",VLOOKUP('Enrollment Form'!G227,'Enrollment Form'!H$11:J$1000,3,FALSE),1))=FALSE,COUNTA('Enrollment Form'!$BT227:$BW227)=4)),\"Y\",\"N\"))","v":"-"},{"$f":"IF($B220=\"N\",\"\",IF('Enrollment Form'!$B227=\"Subscriber\",\"-\",IF(COUNTA('Enrollment Form'!$BL227,'Enrollment Form'!$BN227)=2,\"Y\",\"N\")))","v":""},{"$f":"IF($B220=\"N\",\"\",IF(OR('Enrollment Form'!$AX227=\"\",'Enrollment Form'!$AX227=\"No\"),\"-\",IF(AND('Enrollment Form'!$AX227=\"Yes\",COUNTA('Enrollment Form'!$CR227)=1),\"Y\",\"N\")))","v":""},{"$f":"IF(OR('Enrollment Form'!$CR227=\"\",'Enrollment Form'!$CR227=\"No\"),\"-\",IF(COUNTA('Enrollment Form'!$CT227:$CU227)=2,\"Y\",\"N\"))","v":"-"},{"$f":"IF($B220=\"N\",\"\",IF(COUNTIF('Enrollment Form'!$DG227:$DP227,\"Other\")=COUNTA('Enrollment Form'!$DK227,'Enrollment Form'!$DH227,'Enrollment Form'!$DN227,'Enrollment Form'!$DQ227),\"Y\",\"N\"))","v":""},{"$f":"IF($B220=\"N\",\"\",IF(OR('Enrollment Form'!B227<>\"Subscriber\",'Enrollment Form'!C227=\"ROC\",COUNTIF('Enrollment Form'!AV227:AW227,\"Yes\")>=1),\"-\",IF(AND('Enrollment Form'!C227=\"Enroll\",COUNTIF('Enrollment Form'!AV227:AW227,\"No\")=2,'Enrollment Form'!AX227=\"\"),\"N\",\"Y\")))","v":""},{"$f":"IF(OR(B220=\"N\",'Enrollment Form'!B227<>\"Subscriber\",'Enrollment Form'!C227=\"ROC\",'Enrollment Form'!O227<>\"Multiple of Salary\"),\"-\",IF(COUNTA('Enrollment Form'!T227:U227)<2,\"N\",\"Y\"))","v":"-"},{"$f":"IF(B220=\"N\",\"\",IF(OR('Enrollment Form'!C227=\"ROC\",'Enrollment Form'!B227<>\"Subscriber\",'Enrollment Form'!O227=\"Waive\",'Enrollment Form'!O227=\"\"),\"-\",IF('Enrollment Form'!P227=\"\",\"N\",\"Y\")))","v":""},{"$f":"IF($B220=\"N\",\"\",IF(AND('Enrollment Form'!$C227=\"ROC\",'Enrollment Form'!$DR227<>\"\"),\"Y\",IF(AND('Enrollment Form'!$C227=\"ROC\",'Enrollment Form'!$DR227=\"\"),\"N\",IF(AND('Enrollment Form'!$C227=\"Enroll\",'Enrollment Form'!$B227=\"Subscriber\",'Enrollment Form'!$CX227=\"No\",'Enrollment Form'!$DR227=\"\"),\"N\",IF(AND('Enrollment Form'!$C227=\"Enroll\",'Enrollment Form'!$B227=\"Subscriber\",'Enrollment Form'!$CX227=\"Yes\"),\"-\",\"Y\")))))","v":""},{"$f":"IF($B220=\"N\",\"\",IF(AND('Enrollment Form'!$C227=\"ROC\",'Enrollment Form'!$DS227<>\"\"),\"Y\",IF(AND('Enrollment Form'!$C227=\"ROC\",'Enrollment Form'!$DS227=\"\"),\"N\",IF(AND('Enrollment Form'!$C227=\"Enroll\",'Enrollment Form'!$B227=\"Subscriber\",'Enrollment Form'!$CX227=\"No\",'Enrollment Form'!$DS227=\"\"),\"N\",IF(AND('Enrollment Form'!$C227=\"Enroll\",'Enrollment Form'!$B227=\"Subscriber\",'Enrollment Form'!$CX227=\"Yes\"),\"-\",\"Y\")))))","v":""},{"$f":"IF('Enrollment Form'!AH227=\"\",\"\",IF(ISERROR(SEARCH(\".\",'Enrollment Form'!AH227,SEARCH(\"@\",'Enrollment Form'!AH227))),\"N\",\"Y\"))","v":""},{"$f":"IF(OR($B220=\"N\",'Enrollment Form'!$G227=\"\"),\"\",IF('Enrollment Form'!$B227<>\"Subscriber\",\"-\",IF(COUNTIF('Enrollment Form'!$AV227:$AW227,\"Yes\")=2,\"N\",\"Y\")))","v":""},{"$f":"IF(OR('Enrollment Form'!$CJ227=\"\",'Enrollment Form'!$CJ227=\"No\"),\"-\",IF(AND('Enrollment Form'!$CJ227=\"Yes\",'Enrollment Form'!$CK227=\"\"),\"N\",\"Y\"))","v":"-"},{"$f":"IF(OR('Enrollment Form'!$CL227=\"\",'Enrollment Form'!$CL227=\"No\"),\"-\",IF(AND('Enrollment Form'!$CL227=\"Yes\",'Enrollment Form'!$CM227=\"\"),\"N\",\"Y\"))","v":"-"},{"$f":"IF(OR('Enrollment Form'!$CN227=\"\",'Enrollment Form'!$CN227=\"No\"),\"-\",IF(AND('Enrollment Form'!$CN227=\"Yes\",'Enrollment Form'!$CO227=\"\"),\"N\",\"Y\"))","v":"-"},{"$f":"IF(OR('Enrollment Form'!$CN227=\"\",'Enrollment Form'!$CN227=\"No\"),\"-\",IF(AND('Enrollment Form'!$CN227=\"Yes\",'Enrollment Form'!$CP227=\"\"),\"N\",\"Y\"))","v":"-"},{"$f":"IF('Enrollment Form'!B227<>\"Subscriber\",\"-\",IF(AND('Enrollment Form'!B227=\"Subscriber\",'Enrollment Form'!C227=\"Enroll\",'Enrollment Form'!AA227=\"\"),\"N\",\"Y\"))","v":"-"},{"$f":"IF(OR('Enrollment Form'!B227=\"Subscriber\",'Enrollment Form'!B227=\"\"),\"-\",IF('Enrollment Form'!BP227=\"\",\"N\",\"Y\"))","v":"-"},{"$f":"IF('Enrollment Form'!B227<>\"Subscriber\",\"-\",IF(AND('Enrollment Form'!B227=\"Subscriber\",'Enrollment Form'!G227=\"\"),\"N\",\"Y\"))","v":"-"},{"$f":"IF('Enrollment Form'!A227=\"\",\"\",IF('Enrollment Form'!B227=\"Subscriber\",\"-\",IF(AND('Enrollment Form'!B227<>\"Subscriber\",'Enrollment Form'!G227='Enrollment Form'!H227),\"N\",\"Y\")))","v":""},0]
[228,{"$f":"IF('Enrollment Form'!$A228<>\"\",\"Y\",\"N\")","v":"N"},{"$f":"IF(AND('Enrollment Form'!$B228=\"\",'Enrollment Form'!$C228<>\"\"),\"N\",IF($B221=\"N\",\"\",\"Y\"))","v":""},{"$f":"IF(OR($B221=\"N\",'Enrollment Form'!G228=\"\"),\"\",IF('Enrollment Form'!$B228<>\"Subscriber\",\"\",IF('Enrollment Form'!$G228='Enrollment Form'!$H228,\"Y\",\"N\")))","v":""},{"$f":"IF($B221=\"N\",\"\",IF(AND(COUNTIFS('Enrollment Form'!$H$11:$H$1000,'Enrollment Form'!$H228,'Enrollment Form'!$B$11:$B$1000,'Enrollment Form'!$B228)>1,'Enrollment Form'!$H228<>\"\"),\"N\",\"Y\"))","v":""},{"$f":"IF($B221=\"N\",\"\",IF(LEN('Enrollment Form'!$Y228)=0,\"\",IF(LEN('Enrollment Form'!$Y228)<>5,\"N\",\"Y\")))","v":""},{"$f":"IF($B221=\"N\",\"\",IF(LEN('Enrollment Form'!$AD228=0),\"\",IF(LEN('Enrollment Form'!$AD228)<>5,\"N\",\"Y\")))","v":""},{"$f":"IF($B221=\"N\",\"\",IF(LEN('Enrollment Form'!$BS228=0),\"\",IF(LEN('Enrollment Form'!$BS228)<>5,\"N\",\"Y\")))","v":""},{"$f":"IF($B221=\"N\",\"\",IF(LEN('Enrollment Form'!$AE228)=0,\"\",IF(LEN('Enrollment Form'!$AE228)<>10,\"N\",\"Y\")))","v":""},{"$f":"IF($B221=\"N\",\"\",IF(LEN('Enrollment Form'!$AF228)=0,\"\",IF(LEN('Enrollment Form'!$AF228)<>10,\"N\",\"Y\")))","v":""},{"$f":"IF('Enrollment Form'!$O228<>\"Graded\",\"-\",IF(AND('Enrollment Form'!$O228=\"Graded\",'Enrollment Form'!$AR228<>\"\"),\"Y\",\"N\"))","v":"-"},{"$f":"IF($B221=\"N\",\"\",IF(OR('Enrollment Form'!$B228<>\"Subscriber\",'Enrollment Form'!$C228=\"ROC\"),\"-\",IF(AND('Enrollment Form'!$B228=\"Subscriber\",'Enrollment Form'!$C228=\"Enroll\",'Enrollment Form'!$AJ228<>\"\"),\"Y\",\"N\")))","v":""},{"$f":"IF($B221=\"N\",\"\",IF(OR('Enrollment Form'!$B228<>\"Subscriber\",'Enrollment Form'!$C228=\"ROC\"),\"-\",IF(AND('Enrollment Form'!$B228=\"Subscriber\",'Enrollment Form'!$C228=\"Enroll\",'Enrollment Form'!$AK228<>\"\"),\"Y\",\"N\")))","v":""},{"$f":"IF($B221=\"N\",\"\",IF(OR('Enrollment Form'!$B228<>\"Subscriber\",'Enrollment Form'!$C228=\"ROC\"),\"-\",IF(AND('Enrollment Form'!$B228=\"Subscriber\",'Enrollment Form'!$C228=\"Enroll\",'Enrollment Form'!$AL228<>\"\"),\"Y\",\"N\")))","v":""},{"$f":"IF($B221=\"N\",\"\",IF(OR('Enrollment Form'!$B228<>\"Subscriber\",'Enrollment Form'!$C228=\"ROC\"),\"-\",IF(AND('Enrollment Form'!$B228=\"Subscriber\",'Enrollment Form'!$C228=\"Enroll\",'Enrollment Form'!$AP228<>\"\"),\"Y\",\"N\")))","v":""},{"$f":"IF($B221=\"N\",\"\",IF(OR('Enrollment Form'!$B228<>\"Subscriber\",'Enrollment Form'!$C228=\"ROC\"),\"-\",IF(AND('Enrollment Form'!$B228=\"Subscriber\",'Enrollment Form'!$C228=\"Enroll\",'Enrollment Form'!$AQ228<>\"\"),\"Y\",\"N\")))","v":""},{"$f":"IF($B221=\"N\",\"\",IF(OR('Enrollment Form'!$B228<>\"Subscriber\",'Enrollment Form'!$C228=\"ROC\"),\"-\",IF(AND('Enrollment Form'!$B228=\"Subscriber\",'Enrollment Form'!$C228=\"Enroll\",'Enrollment Form'!$AS228<>\"\"),\"Y\",\"N\")))","v":""},{"$f":"IF($B221=\"N\",\"\",IF($Q221=\"-\",\"-\",IF(AND($Q221=\"Y\",'Enrollment Form'!$AS228=\"No\"),\"-\",IF(AND($Q221=\"Y\",'Enrollment Form'!$AS228=\"Yes\",'Enrollment Form'!$AT228<>\"\"),\"Y\",\"N\"))))","v":""},{"$f":"IF($B221=\"N\",\"\",IF(OR('Enrollment Form'!$B228<>\"Subscriber\",'Enrollment Form'!$C228=\"ROC\"),\"-\",IF(AND('Enrollment Form'!$B228=\"Subscriber\",'Enrollment Form'!$C228=\"Enroll\",'Enrollment Form'!$CV228<>\"\"),\"Y\",\"N\")))","v":""},{"$f":"IF($B221=\"N\",\"\",IF($S221=\"-\",\"-\",IF(AND($S221=\"Y\",'Enrollment Form'!$CV228=\"No\"),\"-\",IF(AND($S221=\"Y\",'Enrollment Form'!$CV228=\"Yes\",'Enrollment Form'!$CW228<>\"\"),\"Y\",\"N\"))))","v":""},{"$f":"IF(OR('Enrollment Form'!$AY228=\"Yes\",'Enrollment Form'!$AY228=\"\"),\"-\",IF(OR(AND('Enrollment Form'!$AY228=\"No\",ISERROR(FIND(\"HMO\",VLOOKUP('Enrollment Form'!G228,'Enrollment Form'!H$11:J$1000,3,FALSE),1))=FALSE,COUNTA('Enrollment Form'!$AZ228:$BC228)=4),AND('Enrollment Form'!$AY228=\"No\",ISERROR(FIND(\"HMO\",VLOOKUP('Enrollment Form'!G228,'Enrollment Form'!H$11:J$1000,3,FALSE),1))=FALSE,COUNTA('Enrollment Form'!$BT228:$BW228)=4)),\"Y\",\"N\"))","v":"-"},{"$f":"IF($B221=\"N\",\"\",IF('Enrollment Form'!$B228=\"Subscriber\",\"-\",IF(COUNTA('Enrollment Form'!$BL228,'Enrollment Form'!$BN228)=2,\"Y\",\"N\")))","v":""},{"$f":"IF($B221=\"N\",\"\",IF(OR('Enrollment Form'!$AX228=\"\",'Enrollment Form'!$AX228=\"No\"),\"-\",IF(AND('Enrollment Form'!$AX228=\"Yes\",COUNTA('Enrollment Form'!$CR228)=1),\"Y\",\"N\")))","v":""},{"$f":"IF(OR('Enrollment Form'!$CR228=\"\",'Enrollment Form'!$CR228=\"No\"),\"-\",IF(COUNTA('Enrollment Form'!$CT228:$CU228)=2,\"Y\",\"N\"))","v":"-"},{"$f":"IF($B221=\"N\",\"\",IF(COUNTIF('Enrollment Form'!$DG228:$DP228,\"Other\")=COUNTA('Enrollment Form'!$DK228,'Enrollment Form'!$DH228,'Enrollment Form'!$DN228,'Enrollment Form'!$DQ228),\"Y\",\"N\"))","v":""},{"$f":"IF($B221=\"N\",\"\",IF(OR('Enrollment Form'!B228<>\"Subscriber\",'Enrollment Form'!C228=\"ROC\",COUNTIF('Enrollment Form'!AV228:AW228,\"Yes\")>=1),\"-\",IF(AND('Enrollment Form'!C228=\"Enroll\",COUNTIF('Enrollment Form'!AV228:AW228,\"No\")=2,'Enrollment Form'!AX228=\"\"),\"N\",\"Y\")))","v":""},{"$f":"IF(OR(B221=\"N\",'Enrollment Form'!B228<>\"Subscriber\",'Enrollment Form'!C228=\"ROC\",'Enrollment Form'!O228<>\"Multiple of Salary\"),\"-\",IF(COUNTA('Enrollment Form'!T228:U228)<2,\"N\",\"Y\"))","v":"-"},{"$f":"IF(B221=\"N\",\"\",IF(OR('Enrollment Form'!C228=\"ROC\",'Enrollment Form'!B228<>\"Subscriber\",'Enrollment Form'!O228=\"Waive\",'Enrollment Form'!O228=\"\"),\"-\",IF('Enrollment Form'!P228=\"\",\"N\",\"Y\")))","v":""},{"$f":"IF($B221=\"N\",\"\",IF(AND('Enrollment Form'!$C228=\"ROC\",'Enrollment Form'!$DR228<>\"\"),\"Y\",IF(AND('Enrollment Form'!$C228=\"ROC\",'Enrollment Form'!$DR228=\"\"),\"N\",IF(AND('Enrollment Form'!$C228=\"Enroll\",'Enrollment Form'!$B228=\"Subscriber\",'Enrollment Form'!$CX228=\"No\",'Enrollment Form'!$DR228=\"\"),\"N\",IF(AND('Enrollment Form'!$C228=\"Enroll\",'Enrollment Form'!$B228=\"Subscriber\",'Enrollment Form'!$CX228=\"Yes\"),\"-\",\"Y\")))))","v":""},{"$f":"IF($B221=\"N\",\"\",IF(AND('Enrollment Form'!$C228=\"ROC\",'Enrollment Form'!$DS228<>\"\"),\"Y\",IF(AND('Enrollment Form'!$C228=\"ROC\",'Enrollment Form'!$DS228=\"\"),\"N\",IF(AND('Enrollment Form'!$C228=\"Enroll\",'Enrollment Form'!$B228=\"Subscriber\",'Enrollment Form'!$CX228=\"No\",'Enrollment Form'!$DS228=\"\"),\"N\",IF(AND('Enrollment Form'!$C228=\"Enroll\",'Enrollment Form'!$B228=\"Subscriber\",'Enrollment Form'!$CX228=\"Yes\"),\"-\",\"Y\")))))","v":""},{"$f":"IF('Enrollment Form'!AH228=\"\",\"\",IF(ISERROR(SEARCH(\".\",'Enrollment Form'!AH228,SEARCH(\"@\",'Enrollment Form'!AH228))),\"N\",\"Y\"))","v":""},{"$f":"IF(OR($B221=\"N\",'Enrollment Form'!$G228=\"\"),\"\",IF('Enrollment Form'!$B228<>\"Subscriber\",\"-\",IF(COUNTIF('Enrollment Form'!$AV228:$AW228,\"Yes\")=2,\"N\",\"Y\")))","v":""},{"$f":"IF(OR('Enrollment Form'!$CJ228=\"\",'Enrollment Form'!$CJ228=\"No\"),\"-\",IF(AND('Enrollment Form'!$CJ228=\"Yes\",'Enrollment Form'!$CK228=\"\"),\"N\",\"Y\"))","v":"-"},{"$f":"IF(OR('Enrollment Form'!$CL228=\"\",'Enrollment Form'!$CL228=\"No\"),\"-\",IF(AND('Enrollment Form'!$CL228=\"Yes\",'Enrollment Form'!$CM228=\"\"),\"N\",\"Y\"))","v":"-"},{"$f":"IF(OR('Enrollment Form'!$CN228=\"\",'Enrollment Form'!$CN228=\"No\"),\"-\",IF(AND('Enrollment Form'!$CN228=\"Yes\",'Enrollment Form'!$CO228=\"\"),\"N\",\"Y\"))","v":"-"},{"$f":"IF(OR('Enrollment Form'!$CN228=\"\",'Enrollment Form'!$CN228=\"No\"),\"-\",IF(AND('Enrollment Form'!$CN228=\"Yes\",'Enrollment Form'!$CP228=\"\"),\"N\",\"Y\"))","v":"-"},{"$f":"IF('Enrollment Form'!B228<>\"Subscriber\",\"-\",IF(AND('Enrollment Form'!B228=\"Subscriber\",'Enrollment Form'!C228=\"Enroll\",'Enrollment Form'!AA228=\"\"),\"N\",\"Y\"))","v":"-"},{"$f":"IF(OR('Enrollment Form'!B228=\"Subscriber\",'Enrollment Form'!B228=\"\"),\"-\",IF('Enrollment Form'!BP228=\"\",\"N\",\"Y\"))","v":"-"},{"$f":"IF('Enrollment Form'!B228<>\"Subscriber\",\"-\",IF(AND('Enrollment Form'!B228=\"Subscriber\",'Enrollment Form'!G228=\"\"),\"N\",\"Y\"))","v":"-"},{"$f":"IF('Enrollment Form'!A228=\"\",\"\",IF('Enrollment Form'!B228=\"Subscriber\",\"-\",IF(AND('Enrollment Form'!B228<>\"Subscriber\",'Enrollment Form'!G228='Enrollment Form'!H228),\"N\",\"Y\")))","v":""},0]
[229,{"$f":"IF('Enrollment Form'!$A229<>\"\",\"Y\",\"N\")","v":"N"},{"$f":"IF(AND('Enrollment Form'!$B229=\"\",'Enrollment Form'!$C229<>\"\"),\"N\",IF($B222=\"N\",\"\",\"Y\"))","v":""},{"$f":"IF(OR($B222=\"N\",'Enrollment Form'!G229=\"\"),\"\",IF('Enrollment Form'!$B229<>\"Subscriber\",\"\",IF('Enrollment Form'!$G229='Enrollment Form'!$H229,\"Y\",\"N\")))","v":""},{"$f":"IF($B222=\"N\",\"\",IF(AND(COUNTIFS('Enrollment Form'!$H$11:$H$1000,'Enrollment Form'!$H229,'Enrollment Form'!$B$11:$B$1000,'Enrollment Form'!$B229)>1,'Enrollment Form'!$H229<>\"\"),\"N\",\"Y\"))","v":""},{"$f":"IF($B222=\"N\",\"\",IF(LEN('Enrollment Form'!$Y229)=0,\"\",IF(LEN('Enrollment Form'!$Y229)<>5,\"N\",\"Y\")))","v":""},{"$f":"IF($B222=\"N\",\"\",IF(LEN('Enrollment Form'!$AD229=0),\"\",IF(LEN('Enrollment Form'!$AD229)<>5,\"N\",\"Y\")))","v":""},{"$f":"IF($B222=\"N\",\"\",IF(LEN('Enrollment Form'!$BS229=0),\"\",IF(LEN('Enrollment Form'!$BS229)<>5,\"N\",\"Y\")))","v":""},{"$f":"IF($B222=\"N\",\"\",IF(LEN('Enrollment Form'!$AE229)=0,\"\",IF(LEN('Enrollment Form'!$AE229)<>10,\"N\",\"Y\")))","v":""},{"$f":"IF($B222=\"N\",\"\",IF(LEN('Enrollment Form'!$AF229)=0,\"\",IF(LEN('Enrollment Form'!$AF229)<>10,\"N\",\"Y\")))","v":""},{"$f":"IF('Enrollment Form'!$O229<>\"Graded\",\"-\",IF(AND('Enrollment Form'!$O229=\"Graded\",'Enrollment Form'!$AR229<>\"\"),\"Y\",\"N\"))","v":"-"},{"$f":"IF($B222=\"N\",\"\",IF(OR('Enrollment Form'!$B229<>\"Subscriber\",'Enrollment Form'!$C229=\"ROC\"),\"-\",IF(AND('Enrollment Form'!$B229=\"Subscriber\",'Enrollment Form'!$C229=\"Enroll\",'Enrollment Form'!$AJ229<>\"\"),\"Y\",\"N\")))","v":""},{"$f":"IF($B222=\"N\",\"\",IF(OR('Enrollment Form'!$B229<>\"Subscriber\",'Enrollment Form'!$C229=\"ROC\"),\"-\",IF(AND('Enrollment Form'!$B229=\"Subscriber\",'Enrollment Form'!$C229=\"Enroll\",'Enrollment Form'!$AK229<>\"\"),\"Y\",\"N\")))","v":""},{"$f":"IF($B222=\"N\",\"\",IF(OR('Enrollment Form'!$B229<>\"Subscriber\",'Enrollment Form'!$C229=\"ROC\"),\"-\",IF(AND('Enrollment Form'!$B229=\"Subscriber\",'Enrollment Form'!$C229=\"Enroll\",'Enrollment Form'!$AL229<>\"\"),\"Y\",\"N\")))","v":""},{"$f":"IF($B222=\"N\",\"\",IF(OR('Enrollment Form'!$B229<>\"Subscriber\",'Enrollment Form'!$C229=\"ROC\"),\"-\",IF(AND('Enrollment Form'!$B229=\"Subscriber\",'Enrollment Form'!$C229=\"Enroll\",'Enrollment Form'!$AP229<>\"\"),\"Y\",\"N\")))","v":""},{"$f":"IF($B222=\"N\",\"\",IF(OR('Enrollment Form'!$B229<>\"Subscriber\",'Enrollment Form'!$C229=\"ROC\"),\"-\",IF(AND('Enrollment Form'!$B229=\"Subscriber\",'Enrollment Form'!$C229=\"Enroll\",'Enrollment Form'!$AQ229<>\"\"),\"Y\",\"N\")))","v":""},{"$f":"IF($B222=\"N\",\"\",IF(OR('Enrollment Form'!$B229<>\"Subscriber\",'Enrollment Form'!$C229=\"ROC\"),\"-\",IF(AND('Enrollment Form'!$B229=\"Subscriber\",'Enrollment Form'!$C229=\"Enroll\",'Enrollment Form'!$AS229<>\"\"),\"Y\",\"N\")))","v":""},{"$f":"IF($B222=\"N\",\"\",IF($Q222=\"-\",\"-\",IF(AND($Q222=\"Y\",'Enrollment Form'!$AS229=\"No\"),\"-\",IF(AND($Q222=\"Y\",'Enrollment Form'!$AS229=\"Yes\",'Enrollment Form'!$AT229<>\"\"),\"Y\",\"N\"))))","v":""},{"$f":"IF($B222=\"N\",\"\",IF(OR('Enrollment Form'!$B229<>\"Subscriber\",'Enrollment Form'!$C229=\"ROC\"),\"-\",IF(AND('Enrollment Form'!$B229=\"Subscriber\",'Enrollment Form'!$C229=\"Enroll\",'Enrollment Form'!$CV229<>\"\"),\"Y\",\"N\")))","v":""},{"$f":"IF($B222=\"N\",\"\",IF($S222=\"-\",\"-\",IF(AND($S222=\"Y\",'Enrollment Form'!$CV229=\"No\"),\"-\",IF(AND($S222=\"Y\",'Enrollment Form'!$CV229=\"Yes\",'Enrollment Form'!$CW229<>\"\"),\"Y\",\"N\"))))","v":""},{"$f":"IF(OR('Enrollment Form'!$AY229=\"Yes\",'Enrollment Form'!$AY229=\"\"),\"-\",IF(OR(AND('Enrollment Form'!$AY229=\"No\",ISERROR(FIND(\"HMO\",VLOOKUP('Enrollment Form'!G229,'Enrollment Form'!H$11:J$1000,3,FALSE),1))=FALSE,COUNTA('Enrollment Form'!$AZ229:$BC229)=4),AND('Enrollment Form'!$AY229=\"No\",ISERROR(FIND(\"HMO\",VLOOKUP('Enrollment Form'!G229,'Enrollment Form'!H$11:J$1000,3,FALSE),1))=FALSE,COUNTA('Enrollment Form'!$BT229:$BW229)=4)),\"Y\",\"N\"))","v":"-"},{"$f":"IF($B222=\"N\",\"\",IF('Enrollment Form'!$B229=\"Subscriber\",\"-\",IF(COUNTA('Enrollment Form'!$BL229,'Enrollment Form'!$BN229)=2,\"Y\",\"N\")))","v":""},{"$f":"IF($B222=\"N\",\"\",IF(OR('Enrollment Form'!$AX229=\"\",'Enrollment Form'!$AX229=\"No\"),\"-\",IF(AND('Enrollment Form'!$AX229=\"Yes\",COUNTA('Enrollment Form'!$CR229)=1),\"Y\",\"N\")))","v":""},{"$f":"IF(OR('Enrollment Form'!$CR229=\"\",'Enrollment Form'!$CR229=\"No\"),\"-\",IF(COUNTA('Enrollment Form'!$CT229:$CU229)=2,\"Y\",\"N\"))","v":"-"},{"$f":"IF($B222=\"N\",\"\",IF(COUNTIF('Enrollment Form'!$DG229:$DP229,\"Other\")=COUNTA('Enrollment Form'!$DK229,'Enrollment Form'!$DH229,'Enrollment Form'!$DN229,'Enrollment Form'!$DQ229),\"Y\",\"N\"))","v":""},{"$f":"IF($B222=\"N\",\"\",IF(OR('Enrollment Form'!B229<>\"Subscriber\",'Enrollment Form'!C229=\"ROC\",COUNTIF('Enrollment Form'!AV229:AW229,\"Yes\")>=1),\"-\",IF(AND('Enrollment Form'!C229=\"Enroll\",COUNTIF('Enrollment Form'!AV229:AW229,\"No\")=2,'Enrollment Form'!AX229=\"\"),\"N\",\"Y\")))","v":""},{"$f":"IF(OR(B222=\"N\",'Enrollment Form'!B229<>\"Subscriber\",'Enrollment Form'!C229=\"ROC\",'Enrollment Form'!O229<>\"Multiple of Salary\"),\"-\",IF(COUNTA('Enrollment Form'!T229:U229)<2,\"N\",\"Y\"))","v":"-"},{"$f":"IF(B222=\"N\",\"\",IF(OR('Enrollment Form'!C229=\"ROC\",'Enrollment Form'!B229<>\"Subscriber\",'Enrollment Form'!O229=\"Waive\",'Enrollment Form'!O229=\"\"),\"-\",IF('Enrollment Form'!P229=\"\",\"N\",\"Y\")))","v":""},{"$f":"IF($B222=\"N\",\"\",IF(AND('Enrollment Form'!$C229=\"ROC\",'Enrollment Form'!$DR229<>\"\"),\"Y\",IF(AND('Enrollment Form'!$C229=\"ROC\",'Enrollment Form'!$DR229=\"\"),\"N\",IF(AND('Enrollment Form'!$C229=\"Enroll\",'Enrollment Form'!$B229=\"Subscriber\",'Enrollment Form'!$CX229=\"No\",'Enrollment Form'!$DR229=\"\"),\"N\",IF(AND('Enrollment Form'!$C229=\"Enroll\",'Enrollment Form'!$B229=\"Subscriber\",'Enrollment Form'!$CX229=\"Yes\"),\"-\",\"Y\")))))","v":""},{"$f":"IF($B222=\"N\",\"\",IF(AND('Enrollment Form'!$C229=\"ROC\",'Enrollment Form'!$DS229<>\"\"),\"Y\",IF(AND('Enrollment Form'!$C229=\"ROC\",'Enrollment Form'!$DS229=\"\"),\"N\",IF(AND('Enrollment Form'!$C229=\"Enroll\",'Enrollment Form'!$B229=\"Subscriber\",'Enrollment Form'!$CX229=\"No\",'Enrollment Form'!$DS229=\"\"),\"N\",IF(AND('Enrollment Form'!$C229=\"Enroll\",'Enrollment Form'!$B229=\"Subscriber\",'Enrollment Form'!$CX229=\"Yes\"),\"-\",\"Y\")))))","v":""},{"$f":"IF('Enrollment Form'!AH229=\"\",\"\",IF(ISERROR(SEARCH(\".\",'Enrollment Form'!AH229,SEARCH(\"@\",'Enrollment Form'!AH229))),\"N\",\"Y\"))","v":""},{"$f":"IF(OR($B222=\"N\",'Enrollment Form'!$G229=\"\"),\"\",IF('Enrollment Form'!$B229<>\"Subscriber\",\"-\",IF(COUNTIF('Enrollment Form'!$AV229:$AW229,\"Yes\")=2,\"N\",\"Y\")))","v":""},{"$f":"IF(OR('Enrollment Form'!$CJ229=\"\",'Enrollment Form'!$CJ229=\"No\"),\"-\",IF(AND('Enrollment Form'!$CJ229=\"Yes\",'Enrollment Form'!$CK229=\"\"),\"N\",\"Y\"))","v":"-"},{"$f":"IF(OR('Enrollment Form'!$CL229=\"\",'Enrollment Form'!$CL229=\"No\"),\"-\",IF(AND('Enrollment Form'!$CL229=\"Yes\",'Enrollment Form'!$CM229=\"\"),\"N\",\"Y\"))","v":"-"},{"$f":"IF(OR('Enrollment Form'!$CN229=\"\",'Enrollment Form'!$CN229=\"No\"),\"-\",IF(AND('Enrollment Form'!$CN229=\"Yes\",'Enrollment Form'!$CO229=\"\"),\"N\",\"Y\"))","v":"-"},{"$f":"IF(OR('Enrollment Form'!$CN229=\"\",'Enrollment Form'!$CN229=\"No\"),\"-\",IF(AND('Enrollment Form'!$CN229=\"Yes\",'Enrollment Form'!$CP229=\"\"),\"N\",\"Y\"))","v":"-"},{"$f":"IF('Enrollment Form'!B229<>\"Subscriber\",\"-\",IF(AND('Enrollment Form'!B229=\"Subscriber\",'Enrollment Form'!C229=\"Enroll\",'Enrollment Form'!AA229=\"\"),\"N\",\"Y\"))","v":"-"},{"$f":"IF(OR('Enrollment Form'!B229=\"Subscriber\",'Enrollment Form'!B229=\"\"),\"-\",IF('Enrollment Form'!BP229=\"\",\"N\",\"Y\"))","v":"-"},{"$f":"IF('Enrollment Form'!B229<>\"Subscriber\",\"-\",IF(AND('Enrollment Form'!B229=\"Subscriber\",'Enrollment Form'!G229=\"\"),\"N\",\"Y\"))","v":"-"},{"$f":"IF('Enrollment Form'!A229=\"\",\"\",IF('Enrollment Form'!B229=\"Subscriber\",\"-\",IF(AND('Enrollment Form'!B229<>\"Subscriber\",'Enrollment Form'!G229='Enrollment Form'!H229),\"N\",\"Y\")))","v":""},0]
[230,{"$f":"IF('Enrollment Form'!$A230<>\"\",\"Y\",\"N\")","v":"N"},{"$f":"IF(AND('Enrollment Form'!$B230=\"\",'Enrollment Form'!$C230<>\"\"),\"N\",IF($B223=\"N\",\"\",\"Y\"))","v":""},{"$f":"IF(OR($B223=\"N\",'Enrollment Form'!G230=\"\"),\"\",IF('Enrollment Form'!$B230<>\"Subscriber\",\"\",IF('Enrollment Form'!$G230='Enrollment Form'!$H230,\"Y\",\"N\")))","v":""},{"$f":"IF($B223=\"N\",\"\",IF(AND(COUNTIFS('Enrollment Form'!$H$11:$H$1000,'Enrollment Form'!$H230,'Enrollment Form'!$B$11:$B$1000,'Enrollment Form'!$B230)>1,'Enrollment Form'!$H230<>\"\"),\"N\",\"Y\"))","v":""},{"$f":"IF($B223=\"N\",\"\",IF(LEN('Enrollment Form'!$Y230)=0,\"\",IF(LEN('Enrollment Form'!$Y230)<>5,\"N\",\"Y\")))","v":""},{"$f":"IF($B223=\"N\",\"\",IF(LEN('Enrollment Form'!$AD230=0),\"\",IF(LEN('Enrollment Form'!$AD230)<>5,\"N\",\"Y\")))","v":""},{"$f":"IF($B223=\"N\",\"\",IF(LEN('Enrollment Form'!$BS230=0),\"\",IF(LEN('Enrollment Form'!$BS230)<>5,\"N\",\"Y\")))","v":""},{"$f":"IF($B223=\"N\",\"\",IF(LEN('Enrollment Form'!$AE230)=0,\"\",IF(LEN('Enrollment Form'!$AE230)<>10,\"N\",\"Y\")))","v":""},{"$f":"IF($B223=\"N\",\"\",IF(LEN('Enrollment Form'!$AF230)=0,\"\",IF(LEN('Enrollment Form'!$AF230)<>10,\"N\",\"Y\")))","v":""},{"$f":"IF('Enrollment Form'!$O230<>\"Graded\",\"-\",IF(AND('Enrollment Form'!$O230=\"Graded\",'Enrollment Form'!$AR230<>\"\"),\"Y\",\"N\"))","v":"-"},{"$f":"IF($B223=\"N\",\"\",IF(OR('Enrollment Form'!$B230<>\"Subscriber\",'Enrollment Form'!$C230=\"ROC\"),\"-\",IF(AND('Enrollment Form'!$B230=\"Subscriber\",'Enrollment Form'!$C230=\"Enroll\",'Enrollment Form'!$AJ230<>\"\"),\"Y\",\"N\")))","v":""},{"$f":"IF($B223=\"N\",\"\",IF(OR('Enrollment Form'!$B230<>\"Subscriber\",'Enrollment Form'!$C230=\"ROC\"),\"-\",IF(AND('Enrollment Form'!$B230=\"Subscriber\",'Enrollment Form'!$C230=\"Enroll\",'Enrollment Form'!$AK230<>\"\"),\"Y\",\"N\")))","v":""},{"$f":"IF($B223=\"N\",\"\",IF(OR('Enrollment Form'!$B230<>\"Subscriber\",'Enrollment Form'!$C230=\"ROC\"),\"-\",IF(AND('Enrollment Form'!$B230=\"Subscriber\",'Enrollment Form'!$C230=\"Enroll\",'Enrollment Form'!$AL230<>\"\"),\"Y\",\"N\")))","v":""},{"$f":"IF($B223=\"N\",\"\",IF(OR('Enrollment Form'!$B230<>\"Subscriber\",'Enrollment Form'!$C230=\"ROC\"),\"-\",IF(AND('Enrollment Form'!$B230=\"Subscriber\",'Enrollment Form'!$C230=\"Enroll\",'Enrollment Form'!$AP230<>\"\"),\"Y\",\"N\")))","v":""},{"$f":"IF($B223=\"N\",\"\",IF(OR('Enrollment Form'!$B230<>\"Subscriber\",'Enrollment Form'!$C230=\"ROC\"),\"-\",IF(AND('Enrollment Form'!$B230=\"Subscriber\",'Enrollment Form'!$C230=\"Enroll\",'Enrollment Form'!$AQ230<>\"\"),\"Y\",\"N\")))","v":""},{"$f":"IF($B223=\"N\",\"\",IF(OR('Enrollment Form'!$B230<>\"Subscriber\",'Enrollment Form'!$C230=\"ROC\"),\"-\",IF(AND('Enrollment Form'!$B230=\"Subscriber\",'Enrollment Form'!$C230=\"Enroll\",'Enrollment Form'!$AS230<>\"\"),\"Y\",\"N\")))","v":""},{"$f":"IF($B223=\"N\",\"\",IF($Q223=\"-\",\"-\",IF(AND($Q223=\"Y\",'Enrollment Form'!$AS230=\"No\"),\"-\",IF(AND($Q223=\"Y\",'Enrollment Form'!$AS230=\"Yes\",'Enrollment Form'!$AT230<>\"\"),\"Y\",\"N\"))))","v":""},{"$f":"IF($B223=\"N\",\"\",IF(OR('Enrollment Form'!$B230<>\"Subscriber\",'Enrollment Form'!$C230=\"ROC\"),\"-\",IF(AND('Enrollment Form'!$B230=\"Subscriber\",'Enrollment Form'!$C230=\"Enroll\",'Enrollment Form'!$CV230<>\"\"),\"Y\",\"N\")))","v":""},{"$f":"IF($B223=\"N\",\"\",IF($S223=\"-\",\"-\",IF(AND($S223=\"Y\",'Enrollment Form'!$CV230=\"No\"),\"-\",IF(AND($S223=\"Y\",'Enrollment Form'!$CV230=\"Yes\",'Enrollment Form'!$CW230<>\"\"),\"Y\",\"N\"))))","v":""},{"$f":"IF(OR('Enrollment Form'!$AY230=\"Yes\",'Enrollment Form'!$AY230=\"\"),\"-\",IF(OR(AND('Enrollment Form'!$AY230=\"No\",ISERROR(FIND(\"HMO\",VLOOKUP('Enrollment Form'!G230,'Enrollment Form'!H$11:J$1000,3,FALSE),1))=FALSE,COUNTA('Enrollment Form'!$AZ230:$BC230)=4),AND('Enrollment Form'!$AY230=\"No\",ISERROR(FIND(\"HMO\",VLOOKUP('Enrollment Form'!G230,'Enrollment Form'!H$11:J$1000,3,FALSE),1))=FALSE,COUNTA('Enrollment Form'!$BT230:$BW230)=4)),\"Y\",\"N\"))","v":"-"},{"$f":"IF($B223=\"N\",\"\",IF('Enrollment Form'!$B230=\"Subscriber\",\"-\",IF(COUNTA('Enrollment Form'!$BL230,'Enrollment Form'!$BN230)=2,\"Y\",\"N\")))","v":""},{"$f":"IF($B223=\"N\",\"\",IF(OR('Enrollment Form'!$AX230=\"\",'Enrollment Form'!$AX230=\"No\"),\"-\",IF(AND('Enrollment Form'!$AX230=\"Yes\",COUNTA('Enrollment Form'!$CR230)=1),\"Y\",\"N\")))","v":""},{"$f":"IF(OR('Enrollment Form'!$CR230=\"\",'Enrollment Form'!$CR230=\"No\"),\"-\",IF(COUNTA('Enrollment Form'!$CT230:$CU230)=2,\"Y\",\"N\"))","v":"-"},{"$f":"IF($B223=\"N\",\"\",IF(COUNTIF('Enrollment Form'!$DG230:$DP230,\"Other\")=COUNTA('Enrollment Form'!$DK230,'Enrollment Form'!$DH230,'Enrollment Form'!$DN230,'Enrollment Form'!$DQ230),\"Y\",\"N\"))","v":""},{"$f":"IF($B223=\"N\",\"\",IF(OR('Enrollment Form'!B230<>\"Subscriber\",'Enrollment Form'!C230=\"ROC\",COUNTIF('Enrollment Form'!AV230:AW230,\"Yes\")>=1),\"-\",IF(AND('Enrollment Form'!C230=\"Enroll\",COUNTIF('Enrollment Form'!AV230:AW230,\"No\")=2,'Enrollment Form'!AX230=\"\"),\"N\",\"Y\")))","v":""},{"$f":"IF(OR(B223=\"N\",'Enrollment Form'!B230<>\"Subscriber\",'Enrollment Form'!C230=\"ROC\",'Enrollment Form'!O230<>\"Multiple of Salary\"),\"-\",IF(COUNTA('Enrollment Form'!T230:U230)<2,\"N\",\"Y\"))","v":"-"},{"$f":"IF(B223=\"N\",\"\",IF(OR('Enrollment Form'!C230=\"ROC\",'Enrollment Form'!B230<>\"Subscriber\",'Enrollment Form'!O230=\"Waive\",'Enrollment Form'!O230=\"\"),\"-\",IF('Enrollment Form'!P230=\"\",\"N\",\"Y\")))","v":""},{"$f":"IF($B223=\"N\",\"\",IF(AND('Enrollment Form'!$C230=\"ROC\",'Enrollment Form'!$DR230<>\"\"),\"Y\",IF(AND('Enrollment Form'!$C230=\"ROC\",'Enrollment Form'!$DR230=\"\"),\"N\",IF(AND('Enrollment Form'!$C230=\"Enroll\",'Enrollment Form'!$B230=\"Subscriber\",'Enrollment Form'!$CX230=\"No\",'Enrollment Form'!$DR230=\"\"),\"N\",IF(AND('Enrollment Form'!$C230=\"Enroll\",'Enrollment Form'!$B230=\"Subscriber\",'Enrollment Form'!$CX230=\"Yes\"),\"-\",\"Y\")))))","v":""},{"$f":"IF($B223=\"N\",\"\",IF(AND('Enrollment Form'!$C230=\"ROC\",'Enrollment Form'!$DS230<>\"\"),\"Y\",IF(AND('Enrollment Form'!$C230=\"ROC\",'Enrollment Form'!$DS230=\"\"),\"N\",IF(AND('Enrollment Form'!$C230=\"Enroll\",'Enrollment Form'!$B230=\"Subscriber\",'Enrollment Form'!$CX230=\"No\",'Enrollment Form'!$DS230=\"\"),\"N\",IF(AND('Enrollment Form'!$C230=\"Enroll\",'Enrollment Form'!$B230=\"Subscriber\",'Enrollment Form'!$CX230=\"Yes\"),\"-\",\"Y\")))))","v":""},{"$f":"IF('Enrollment Form'!AH230=\"\",\"\",IF(ISERROR(SEARCH(\".\",'Enrollment Form'!AH230,SEARCH(\"@\",'Enrollment Form'!AH230))),\"N\",\"Y\"))","v":""},{"$f":"IF(OR($B223=\"N\",'Enrollment Form'!$G230=\"\"),\"\",IF('Enrollment Form'!$B230<>\"Subscriber\",\"-\",IF(COUNTIF('Enrollment Form'!$AV230:$AW230,\"Yes\")=2,\"N\",\"Y\")))","v":""},{"$f":"IF(OR('Enrollment Form'!$CJ230=\"\",'Enrollment Form'!$CJ230=\"No\"),\"-\",IF(AND('Enrollment Form'!$CJ230=\"Yes\",'Enrollment Form'!$CK230=\"\"),\"N\",\"Y\"))","v":"-"},{"$f":"IF(OR('Enrollment Form'!$CL230=\"\",'Enrollment Form'!$CL230=\"No\"),\"-\",IF(AND('Enrollment Form'!$CL230=\"Yes\",'Enrollment Form'!$CM230=\"\"),\"N\",\"Y\"))","v":"-"},{"$f":"IF(OR('Enrollment Form'!$CN230=\"\",'Enrollment Form'!$CN230=\"No\"),\"-\",IF(AND('Enrollment Form'!$CN230=\"Yes\",'Enrollment Form'!$CO230=\"\"),\"N\",\"Y\"))","v":"-"},{"$f":"IF(OR('Enrollment Form'!$CN230=\"\",'Enrollment Form'!$CN230=\"No\"),\"-\",IF(AND('Enrollment Form'!$CN230=\"Yes\",'Enrollment Form'!$CP230=\"\"),\"N\",\"Y\"))","v":"-"},{"$f":"IF('Enrollment Form'!B230<>\"Subscriber\",\"-\",IF(AND('Enrollment Form'!B230=\"Subscriber\",'Enrollment Form'!C230=\"Enroll\",'Enrollment Form'!AA230=\"\"),\"N\",\"Y\"))","v":"-"},{"$f":"IF(OR('Enrollment Form'!B230=\"Subscriber\",'Enrollment Form'!B230=\"\"),\"-\",IF('Enrollment Form'!BP230=\"\",\"N\",\"Y\"))","v":"-"},{"$f":"IF('Enrollment Form'!B230<>\"Subscriber\",\"-\",IF(AND('Enrollment Form'!B230=\"Subscriber\",'Enrollment Form'!G230=\"\"),\"N\",\"Y\"))","v":"-"},{"$f":"IF('Enrollment Form'!A230=\"\",\"\",IF('Enrollment Form'!B230=\"Subscriber\",\"-\",IF(AND('Enrollment Form'!B230<>\"Subscriber\",'Enrollment Form'!G230='Enrollment Form'!H230),\"N\",\"Y\")))","v":""},0]
[231,{"$f":"IF('Enrollment Form'!$A231<>\"\",\"Y\",\"N\")","v":"N"},{"$f":"IF(AND('Enrollment Form'!$B231=\"\",'Enrollment Form'!$C231<>\"\"),\"N\",IF($B224=\"N\",\"\",\"Y\"))","v":""},{"$f":"IF(OR($B224=\"N\",'Enrollment Form'!G231=\"\"),\"\",IF('Enrollment Form'!$B231<>\"Subscriber\",\"\",IF('Enrollment Form'!$G231='Enrollment Form'!$H231,\"Y\",\"N\")))","v":""},{"$f":"IF($B224=\"N\",\"\",IF(AND(COUNTIFS('Enrollment Form'!$H$11:$H$1000,'Enrollment Form'!$H231,'Enrollment Form'!$B$11:$B$1000,'Enrollment Form'!$B231)>1,'Enrollment Form'!$H231<>\"\"),\"N\",\"Y\"))","v":""},{"$f":"IF($B224=\"N\",\"\",IF(LEN('Enrollment Form'!$Y231)=0,\"\",IF(LEN('Enrollment Form'!$Y231)<>5,\"N\",\"Y\")))","v":""},{"$f":"IF($B224=\"N\",\"\",IF(LEN('Enrollment Form'!$AD231=0),\"\",IF(LEN('Enrollment Form'!$AD231)<>5,\"N\",\"Y\")))","v":""},{"$f":"IF($B224=\"N\",\"\",IF(LEN('Enrollment Form'!$BS231=0),\"\",IF(LEN('Enrollment Form'!$BS231)<>5,\"N\",\"Y\")))","v":""},{"$f":"IF($B224=\"N\",\"\",IF(LEN('Enrollment Form'!$AE231)=0,\"\",IF(LEN('Enrollment Form'!$AE231)<>10,\"N\",\"Y\")))","v":""},{"$f":"IF($B224=\"N\",\"\",IF(LEN('Enrollment Form'!$AF231)=0,\"\",IF(LEN('Enrollment Form'!$AF231)<>10,\"N\",\"Y\")))","v":""},{"$f":"IF('Enrollment Form'!$O231<>\"Graded\",\"-\",IF(AND('Enrollment Form'!$O231=\"Graded\",'Enrollment Form'!$AR231<>\"\"),\"Y\",\"N\"))","v":"-"},{"$f":"IF($B224=\"N\",\"\",IF(OR('Enrollment Form'!$B231<>\"Subscriber\",'Enrollment Form'!$C231=\"ROC\"),\"-\",IF(AND('Enrollment Form'!$B231=\"Subscriber\",'Enrollment Form'!$C231=\"Enroll\",'Enrollment Form'!$AJ231<>\"\"),\"Y\",\"N\")))","v":""},{"$f":"IF($B224=\"N\",\"\",IF(OR('Enrollment Form'!$B231<>\"Subscriber\",'Enrollment Form'!$C231=\"ROC\"),\"-\",IF(AND('Enrollment Form'!$B231=\"Subscriber\",'Enrollment Form'!$C231=\"Enroll\",'Enrollment Form'!$AK231<>\"\"),\"Y\",\"N\")))","v":""},{"$f":"IF($B224=\"N\",\"\",IF(OR('Enrollment Form'!$B231<>\"Subscriber\",'Enrollment Form'!$C231=\"ROC\"),\"-\",IF(AND('Enrollment Form'!$B231=\"Subscriber\",'Enrollment Form'!$C231=\"Enroll\",'Enrollment Form'!$AL231<>\"\"),\"Y\",\"N\")))","v":""},{"$f":"IF($B224=\"N\",\"\",IF(OR('Enrollment Form'!$B231<>\"Subscriber\",'Enrollment Form'!$C231=\"ROC\"),\"-\",IF(AND('Enrollment Form'!$B231=\"Subscriber\",'Enrollment Form'!$C231=\"Enroll\",'Enrollment Form'!$AP231<>\"\"),\"Y\",\"N\")))","v":""},{"$f":"IF($B224=\"N\",\"\",IF(OR('Enrollment Form'!$B231<>\"Subscriber\",'Enrollment Form'!$C231=\"ROC\"),\"-\",IF(AND('Enrollment Form'!$B231=\"Subscriber\",'Enrollment Form'!$C231=\"Enroll\",'Enrollment Form'!$AQ231<>\"\"),\"Y\",\"N\")))","v":""},{"$f":"IF($B224=\"N\",\"\",IF(OR('Enrollment Form'!$B231<>\"Subscriber\",'Enrollment Form'!$C231=\"ROC\"),\"-\",IF(AND('Enrollment Form'!$B231=\"Subscriber\",'Enrollment Form'!$C231=\"Enroll\",'Enrollment Form'!$AS231<>\"\"),\"Y\",\"N\")))","v":""},{"$f":"IF($B224=\"N\",\"\",IF($Q224=\"-\",\"-\",IF(AND($Q224=\"Y\",'Enrollment Form'!$AS231=\"No\"),\"-\",IF(AND($Q224=\"Y\",'Enrollment Form'!$AS231=\"Yes\",'Enrollment Form'!$AT231<>\"\"),\"Y\",\"N\"))))","v":""},{"$f":"IF($B224=\"N\",\"\",IF(OR('Enrollment Form'!$B231<>\"Subscriber\",'Enrollment Form'!$C231=\"ROC\"),\"-\",IF(AND('Enrollment Form'!$B231=\"Subscriber\",'Enrollment Form'!$C231=\"Enroll\",'Enrollment Form'!$CV231<>\"\"),\"Y\",\"N\")))","v":""},{"$f":"IF($B224=\"N\",\"\",IF($S224=\"-\",\"-\",IF(AND($S224=\"Y\",'Enrollment Form'!$CV231=\"No\"),\"-\",IF(AND($S224=\"Y\",'Enrollment Form'!$CV231=\"Yes\",'Enrollment Form'!$CW231<>\"\"),\"Y\",\"N\"))))","v":""},{"$f":"IF(OR('Enrollment Form'!$AY231=\"Yes\",'Enrollment Form'!$AY231=\"\"),\"-\",IF(OR(AND('Enrollment Form'!$AY231=\"No\",ISERROR(FIND(\"HMO\",VLOOKUP('Enrollment Form'!G231,'Enrollment Form'!H$11:J$1000,3,FALSE),1))=FALSE,COUNTA('Enrollment Form'!$AZ231:$BC231)=4),AND('Enrollment Form'!$AY231=\"No\",ISERROR(FIND(\"HMO\",VLOOKUP('Enrollment Form'!G231,'Enrollment Form'!H$11:J$1000,3,FALSE),1))=FALSE,COUNTA('Enrollment Form'!$BT231:$BW231)=4)),\"Y\",\"N\"))","v":"-"},{"$f":"IF($B224=\"N\",\"\",IF('Enrollment Form'!$B231=\"Subscriber\",\"-\",IF(COUNTA('Enrollment Form'!$BL231,'Enrollment Form'!$BN231)=2,\"Y\",\"N\")))","v":""},{"$f":"IF($B224=\"N\",\"\",IF(OR('Enrollment Form'!$AX231=\"\",'Enrollment Form'!$AX231=\"No\"),\"-\",IF(AND('Enrollment Form'!$AX231=\"Yes\",COUNTA('Enrollment Form'!$CR231)=1),\"Y\",\"N\")))","v":""},{"$f":"IF(OR('Enrollment Form'!$CR231=\"\",'Enrollment Form'!$CR231=\"No\"),\"-\",IF(COUNTA('Enrollment Form'!$CT231:$CU231)=2,\"Y\",\"N\"))","v":"-"},{"$f":"IF($B224=\"N\",\"\",IF(COUNTIF('Enrollment Form'!$DG231:$DP231,\"Other\")=COUNTA('Enrollment Form'!$DK231,'Enrollment Form'!$DH231,'Enrollment Form'!$DN231,'Enrollment Form'!$DQ231),\"Y\",\"N\"))","v":""},{"$f":"IF($B224=\"N\",\"\",IF(OR('Enrollment Form'!B231<>\"Subscriber\",'Enrollment Form'!C231=\"ROC\",COUNTIF('Enrollment Form'!AV231:AW231,\"Yes\")>=1),\"-\",IF(AND('Enrollment Form'!C231=\"Enroll\",COUNTIF('Enrollment Form'!AV231:AW231,\"No\")=2,'Enrollment Form'!AX231=\"\"),\"N\",\"Y\")))","v":""},{"$f":"IF(OR(B224=\"N\",'Enrollment Form'!B231<>\"Subscriber\",'Enrollment Form'!C231=\"ROC\",'Enrollment Form'!O231<>\"Multiple of Salary\"),\"-\",IF(COUNTA('Enrollment Form'!T231:U231)<2,\"N\",\"Y\"))","v":"-"},{"$f":"IF(B224=\"N\",\"\",IF(OR('Enrollment Form'!C231=\"ROC\",'Enrollment Form'!B231<>\"Subscriber\",'Enrollment Form'!O231=\"Waive\",'Enrollment Form'!O231=\"\"),\"-\",IF('Enrollment Form'!P231=\"\",\"N\",\"Y\")))","v":""},{"$f":"IF($B224=\"N\",\"\",IF(AND('Enrollment Form'!$C231=\"ROC\",'Enrollment Form'!$DR231<>\"\"),\"Y\",IF(AND('Enrollment Form'!$C231=\"ROC\",'Enrollment Form'!$DR231=\"\"),\"N\",IF(AND('Enrollment Form'!$C231=\"Enroll\",'Enrollment Form'!$B231=\"Subscriber\",'Enrollment Form'!$CX231=\"No\",'Enrollment Form'!$DR231=\"\"),\"N\",IF(AND('Enrollment Form'!$C231=\"Enroll\",'Enrollment Form'!$B231=\"Subscriber\",'Enrollment Form'!$CX231=\"Yes\"),\"-\",\"Y\")))))","v":""},{"$f":"IF($B224=\"N\",\"\",IF(AND('Enrollment Form'!$C231=\"ROC\",'Enrollment Form'!$DS231<>\"\"),\"Y\",IF(AND('Enrollment Form'!$C231=\"ROC\",'Enrollment Form'!$DS231=\"\"),\"N\",IF(AND('Enrollment Form'!$C231=\"Enroll\",'Enrollment Form'!$B231=\"Subscriber\",'Enrollment Form'!$CX231=\"No\",'Enrollment Form'!$DS231=\"\"),\"N\",IF(AND('Enrollment Form'!$C231=\"Enroll\",'Enrollment Form'!$B231=\"Subscriber\",'Enrollment Form'!$CX231=\"Yes\"),\"-\",\"Y\")))))","v":""},{"$f":"IF('Enrollment Form'!AH231=\"\",\"\",IF(ISERROR(SEARCH(\".\",'Enrollment Form'!AH231,SEARCH(\"@\",'Enrollment Form'!AH231))),\"N\",\"Y\"))","v":""},{"$f":"IF(OR($B224=\"N\",'Enrollment Form'!$G231=\"\"),\"\",IF('Enrollment Form'!$B231<>\"Subscriber\",\"-\",IF(COUNTIF('Enrollment Form'!$AV231:$AW231,\"Yes\")=2,\"N\",\"Y\")))","v":""},{"$f":"IF(OR('Enrollment Form'!$CJ231=\"\",'Enrollment Form'!$CJ231=\"No\"),\"-\",IF(AND('Enrollment Form'!$CJ231=\"Yes\",'Enrollment Form'!$CK231=\"\"),\"N\",\"Y\"))","v":"-"},{"$f":"IF(OR('Enrollment Form'!$CL231=\"\",'Enrollment Form'!$CL231=\"No\"),\"-\",IF(AND('Enrollment Form'!$CL231=\"Yes\",'Enrollment Form'!$CM231=\"\"),\"N\",\"Y\"))","v":"-"},{"$f":"IF(OR('Enrollment Form'!$CN231=\"\",'Enrollment Form'!$CN231=\"No\"),\"-\",IF(AND('Enrollment Form'!$CN231=\"Yes\",'Enrollment Form'!$CO231=\"\"),\"N\",\"Y\"))","v":"-"},{"$f":"IF(OR('Enrollment Form'!$CN231=\"\",'Enrollment Form'!$CN231=\"No\"),\"-\",IF(AND('Enrollment Form'!$CN231=\"Yes\",'Enrollment Form'!$CP231=\"\"),\"N\",\"Y\"))","v":"-"},{"$f":"IF('Enrollment Form'!B231<>\"Subscriber\",\"-\",IF(AND('Enrollment Form'!B231=\"Subscriber\",'Enrollment Form'!C231=\"Enroll\",'Enrollment Form'!AA231=\"\"),\"N\",\"Y\"))","v":"-"},{"$f":"IF(OR('Enrollment Form'!B231=\"Subscriber\",'Enrollment Form'!B231=\"\"),\"-\",IF('Enrollment Form'!BP231=\"\",\"N\",\"Y\"))","v":"-"},{"$f":"IF('Enrollment Form'!B231<>\"Subscriber\",\"-\",IF(AND('Enrollment Form'!B231=\"Subscriber\",'Enrollment Form'!G231=\"\"),\"N\",\"Y\"))","v":"-"},{"$f":"IF('Enrollment Form'!A231=\"\",\"\",IF('Enrollment Form'!B231=\"Subscriber\",\"-\",IF(AND('Enrollment Form'!B231<>\"Subscriber\",'Enrollment Form'!G231='Enrollment Form'!H231),\"N\",\"Y\")))","v":""},0]
[232,{"$f":"IF('Enrollment Form'!$A232<>\"\",\"Y\",\"N\")","v":"N"},{"$f":"IF(AND('Enrollment Form'!$B232=\"\",'Enrollment Form'!$C232<>\"\"),\"N\",IF($B225=\"N\",\"\",\"Y\"))","v":""},{"$f":"IF(OR($B225=\"N\",'Enrollment Form'!G232=\"\"),\"\",IF('Enrollment Form'!$B232<>\"Subscriber\",\"\",IF('Enrollment Form'!$G232='Enrollment Form'!$H232,\"Y\",\"N\")))","v":""},{"$f":"IF($B225=\"N\",\"\",IF(AND(COUNTIFS('Enrollment Form'!$H$11:$H$1000,'Enrollment Form'!$H232,'Enrollment Form'!$B$11:$B$1000,'Enrollment Form'!$B232)>1,'Enrollment Form'!$H232<>\"\"),\"N\",\"Y\"))","v":""},{"$f":"IF($B225=\"N\",\"\",IF(LEN('Enrollment Form'!$Y232)=0,\"\",IF(LEN('Enrollment Form'!$Y232)<>5,\"N\",\"Y\")))","v":""},{"$f":"IF($B225=\"N\",\"\",IF(LEN('Enrollment Form'!$AD232=0),\"\",IF(LEN('Enrollment Form'!$AD232)<>5,\"N\",\"Y\")))","v":""},{"$f":"IF($B225=\"N\",\"\",IF(LEN('Enrollment Form'!$BS232=0),\"\",IF(LEN('Enrollment Form'!$BS232)<>5,\"N\",\"Y\")))","v":""},{"$f":"IF($B225=\"N\",\"\",IF(LEN('Enrollment Form'!$AE232)=0,\"\",IF(LEN('Enrollment Form'!$AE232)<>10,\"N\",\"Y\")))","v":""},{"$f":"IF($B225=\"N\",\"\",IF(LEN('Enrollment Form'!$AF232)=0,\"\",IF(LEN('Enrollment Form'!$AF232)<>10,\"N\",\"Y\")))","v":""},{"$f":"IF('Enrollment Form'!$O232<>\"Graded\",\"-\",IF(AND('Enrollment Form'!$O232=\"Graded\",'Enrollment Form'!$AR232<>\"\"),\"Y\",\"N\"))","v":"-"},{"$f":"IF($B225=\"N\",\"\",IF(OR('Enrollment Form'!$B232<>\"Subscriber\",'Enrollment Form'!$C232=\"ROC\"),\"-\",IF(AND('Enrollment Form'!$B232=\"Subscriber\",'Enrollment Form'!$C232=\"Enroll\",'Enrollment Form'!$AJ232<>\"\"),\"Y\",\"N\")))","v":""},{"$f":"IF($B225=\"N\",\"\",IF(OR('Enrollment Form'!$B232<>\"Subscriber\",'Enrollment Form'!$C232=\"ROC\"),\"-\",IF(AND('Enrollment Form'!$B232=\"Subscriber\",'Enrollment Form'!$C232=\"Enroll\",'Enrollment Form'!$AK232<>\"\"),\"Y\",\"N\")))","v":""},{"$f":"IF($B225=\"N\",\"\",IF(OR('Enrollment Form'!$B232<>\"Subscriber\",'Enrollment Form'!$C232=\"ROC\"),\"-\",IF(AND('Enrollment Form'!$B232=\"Subscriber\",'Enrollment Form'!$C232=\"Enroll\",'Enrollment Form'!$AL232<>\"\"),\"Y\",\"N\")))","v":""},{"$f":"IF($B225=\"N\",\"\",IF(OR('Enrollment Form'!$B232<>\"Subscriber\",'Enrollment Form'!$C232=\"ROC\"),\"-\",IF(AND('Enrollment Form'!$B232=\"Subscriber\",'Enrollment Form'!$C232=\"Enroll\",'Enrollment Form'!$AP232<>\"\"),\"Y\",\"N\")))","v":""},{"$f":"IF($B225=\"N\",\"\",IF(OR('Enrollment Form'!$B232<>\"Subscriber\",'Enrollment Form'!$C232=\"ROC\"),\"-\",IF(AND('Enrollment Form'!$B232=\"Subscriber\",'Enrollment Form'!$C232=\"Enroll\",'Enrollment Form'!$AQ232<>\"\"),\"Y\",\"N\")))","v":""},{"$f":"IF($B225=\"N\",\"\",IF(OR('Enrollment Form'!$B232<>\"Subscriber\",'Enrollment Form'!$C232=\"ROC\"),\"-\",IF(AND('Enrollment Form'!$B232=\"Subscriber\",'Enrollment Form'!$C232=\"Enroll\",'Enrollment Form'!$AS232<>\"\"),\"Y\",\"N\")))","v":""},{"$f":"IF($B225=\"N\",\"\",IF($Q225=\"-\",\"-\",IF(AND($Q225=\"Y\",'Enrollment Form'!$AS232=\"No\"),\"-\",IF(AND($Q225=\"Y\",'Enrollment Form'!$AS232=\"Yes\",'Enrollment Form'!$AT232<>\"\"),\"Y\",\"N\"))))","v":""},{"$f":"IF($B225=\"N\",\"\",IF(OR('Enrollment Form'!$B232<>\"Subscriber\",'Enrollment Form'!$C232=\"ROC\"),\"-\",IF(AND('Enrollment Form'!$B232=\"Subscriber\",'Enrollment Form'!$C232=\"Enroll\",'Enrollment Form'!$CV232<>\"\"),\"Y\",\"N\")))","v":""},{"$f":"IF($B225=\"N\",\"\",IF($S225=\"-\",\"-\",IF(AND($S225=\"Y\",'Enrollment Form'!$CV232=\"No\"),\"-\",IF(AND($S225=\"Y\",'Enrollment Form'!$CV232=\"Yes\",'Enrollment Form'!$CW232<>\"\"),\"Y\",\"N\"))))","v":""},{"$f":"IF(OR('Enrollment Form'!$AY232=\"Yes\",'Enrollment Form'!$AY232=\"\"),\"-\",IF(OR(AND('Enrollment Form'!$AY232=\"No\",ISERROR(FIND(\"HMO\",VLOOKUP('Enrollment Form'!G232,'Enrollment Form'!H$11:J$1000,3,FALSE),1))=FALSE,COUNTA('Enrollment Form'!$AZ232:$BC232)=4),AND('Enrollment Form'!$AY232=\"No\",ISERROR(FIND(\"HMO\",VLOOKUP('Enrollment Form'!G232,'Enrollment Form'!H$11:J$1000,3,FALSE),1))=FALSE,COUNTA('Enrollment Form'!$BT232:$BW232)=4)),\"Y\",\"N\"))","v":"-"},{"$f":"IF($B225=\"N\",\"\",IF('Enrollment Form'!$B232=\"Subscriber\",\"-\",IF(COUNTA('Enrollment Form'!$BL232,'Enrollment Form'!$BN232)=2,\"Y\",\"N\")))","v":""},{"$f":"IF($B225=\"N\",\"\",IF(OR('Enrollment Form'!$AX232=\"\",'Enrollment Form'!$AX232=\"No\"),\"-\",IF(AND('Enrollment Form'!$AX232=\"Yes\",COUNTA('Enrollment Form'!$CR232)=1),\"Y\",\"N\")))","v":""},{"$f":"IF(OR('Enrollment Form'!$CR232=\"\",'Enrollment Form'!$CR232=\"No\"),\"-\",IF(COUNTA('Enrollment Form'!$CT232:$CU232)=2,\"Y\",\"N\"))","v":"-"},{"$f":"IF($B225=\"N\",\"\",IF(COUNTIF('Enrollment Form'!$DG232:$DP232,\"Other\")=COUNTA('Enrollment Form'!$DK232,'Enrollment Form'!$DH232,'Enrollment Form'!$DN232,'Enrollment Form'!$DQ232),\"Y\",\"N\"))","v":""},{"$f":"IF($B225=\"N\",\"\",IF(OR('Enrollment Form'!B232<>\"Subscriber\",'Enrollment Form'!C232=\"ROC\",COUNTIF('Enrollment Form'!AV232:AW232,\"Yes\")>=1),\"-\",IF(AND('Enrollment Form'!C232=\"Enroll\",COUNTIF('Enrollment Form'!AV232:AW232,\"No\")=2,'Enrollment Form'!AX232=\"\"),\"N\",\"Y\")))","v":""},{"$f":"IF(OR(B225=\"N\",'Enrollment Form'!B232<>\"Subscriber\",'Enrollment Form'!C232=\"ROC\",'Enrollment Form'!O232<>\"Multiple of Salary\"),\"-\",IF(COUNTA('Enrollment Form'!T232:U232)<2,\"N\",\"Y\"))","v":"-"},{"$f":"IF(B225=\"N\",\"\",IF(OR('Enrollment Form'!C232=\"ROC\",'Enrollment Form'!B232<>\"Subscriber\",'Enrollment Form'!O232=\"Waive\",'Enrollment Form'!O232=\"\"),\"-\",IF('Enrollment Form'!P232=\"\",\"N\",\"Y\")))","v":""},{"$f":"IF($B225=\"N\",\"\",IF(AND('Enrollment Form'!$C232=\"ROC\",'Enrollment Form'!$DR232<>\"\"),\"Y\",IF(AND('Enrollment Form'!$C232=\"ROC\",'Enrollment Form'!$DR232=\"\"),\"N\",IF(AND('Enrollment Form'!$C232=\"Enroll\",'Enrollment Form'!$B232=\"Subscriber\",'Enrollment Form'!$CX232=\"No\",'Enrollment Form'!$DR232=\"\"),\"N\",IF(AND('Enrollment Form'!$C232=\"Enroll\",'Enrollment Form'!$B232=\"Subscriber\",'Enrollment Form'!$CX232=\"Yes\"),\"-\",\"Y\")))))","v":""},{"$f":"IF($B225=\"N\",\"\",IF(AND('Enrollment Form'!$C232=\"ROC\",'Enrollment Form'!$DS232<>\"\"),\"Y\",IF(AND('Enrollment Form'!$C232=\"ROC\",'Enrollment Form'!$DS232=\"\"),\"N\",IF(AND('Enrollment Form'!$C232=\"Enroll\",'Enrollment Form'!$B232=\"Subscriber\",'Enrollment Form'!$CX232=\"No\",'Enrollment Form'!$DS232=\"\"),\"N\",IF(AND('Enrollment Form'!$C232=\"Enroll\",'Enrollment Form'!$B232=\"Subscriber\",'Enrollment Form'!$CX232=\"Yes\"),\"-\",\"Y\")))))","v":""},{"$f":"IF('Enrollment Form'!AH232=\"\",\"\",IF(ISERROR(SEARCH(\".\",'Enrollment Form'!AH232,SEARCH(\"@\",'Enrollment Form'!AH232))),\"N\",\"Y\"))","v":""},{"$f":"IF(OR($B225=\"N\",'Enrollment Form'!$G232=\"\"),\"\",IF('Enrollment Form'!$B232<>\"Subscriber\",\"-\",IF(COUNTIF('Enrollment Form'!$AV232:$AW232,\"Yes\")=2,\"N\",\"Y\")))","v":""},{"$f":"IF(OR('Enrollment Form'!$CJ232=\"\",'Enrollment Form'!$CJ232=\"No\"),\"-\",IF(AND('Enrollment Form'!$CJ232=\"Yes\",'Enrollment Form'!$CK232=\"\"),\"N\",\"Y\"))","v":"-"},{"$f":"IF(OR('Enrollment Form'!$CL232=\"\",'Enrollment Form'!$CL232=\"No\"),\"-\",IF(AND('Enrollment Form'!$CL232=\"Yes\",'Enrollment Form'!$CM232=\"\"),\"N\",\"Y\"))","v":"-"},{"$f":"IF(OR('Enrollment Form'!$CN232=\"\",'Enrollment Form'!$CN232=\"No\"),\"-\",IF(AND('Enrollment Form'!$CN232=\"Yes\",'Enrollment Form'!$CO232=\"\"),\"N\",\"Y\"))","v":"-"},{"$f":"IF(OR('Enrollment Form'!$CN232=\"\",'Enrollment Form'!$CN232=\"No\"),\"-\",IF(AND('Enrollment Form'!$CN232=\"Yes\",'Enrollment Form'!$CP232=\"\"),\"N\",\"Y\"))","v":"-"},{"$f":"IF('Enrollment Form'!B232<>\"Subscriber\",\"-\",IF(AND('Enrollment Form'!B232=\"Subscriber\",'Enrollment Form'!C232=\"Enroll\",'Enrollment Form'!AA232=\"\"),\"N\",\"Y\"))","v":"-"},{"$f":"IF(OR('Enrollment Form'!B232=\"Subscriber\",'Enrollment Form'!B232=\"\"),\"-\",IF('Enrollment Form'!BP232=\"\",\"N\",\"Y\"))","v":"-"},{"$f":"IF('Enrollment Form'!B232<>\"Subscriber\",\"-\",IF(AND('Enrollment Form'!B232=\"Subscriber\",'Enrollment Form'!G232=\"\"),\"N\",\"Y\"))","v":"-"},{"$f":"IF('Enrollment Form'!A232=\"\",\"\",IF('Enrollment Form'!B232=\"Subscriber\",\"-\",IF(AND('Enrollment Form'!B232<>\"Subscriber\",'Enrollment Form'!G232='Enrollment Form'!H232),\"N\",\"Y\")))","v":""},0]
[233,{"$f":"IF('Enrollment Form'!$A233<>\"\",\"Y\",\"N\")","v":"N"},{"$f":"IF(AND('Enrollment Form'!$B233=\"\",'Enrollment Form'!$C233<>\"\"),\"N\",IF($B226=\"N\",\"\",\"Y\"))","v":""},{"$f":"IF(OR($B226=\"N\",'Enrollment Form'!G233=\"\"),\"\",IF('Enrollment Form'!$B233<>\"Subscriber\",\"\",IF('Enrollment Form'!$G233='Enrollment Form'!$H233,\"Y\",\"N\")))","v":""},{"$f":"IF($B226=\"N\",\"\",IF(AND(COUNTIFS('Enrollment Form'!$H$11:$H$1000,'Enrollment Form'!$H233,'Enrollment Form'!$B$11:$B$1000,'Enrollment Form'!$B233)>1,'Enrollment Form'!$H233<>\"\"),\"N\",\"Y\"))","v":""},{"$f":"IF($B226=\"N\",\"\",IF(LEN('Enrollment Form'!$Y233)=0,\"\",IF(LEN('Enrollment Form'!$Y233)<>5,\"N\",\"Y\")))","v":""},{"$f":"IF($B226=\"N\",\"\",IF(LEN('Enrollment Form'!$AD233=0),\"\",IF(LEN('Enrollment Form'!$AD233)<>5,\"N\",\"Y\")))","v":""},{"$f":"IF($B226=\"N\",\"\",IF(LEN('Enrollment Form'!$BS233=0),\"\",IF(LEN('Enrollment Form'!$BS233)<>5,\"N\",\"Y\")))","v":""},{"$f":"IF($B226=\"N\",\"\",IF(LEN('Enrollment Form'!$AE233)=0,\"\",IF(LEN('Enrollment Form'!$AE233)<>10,\"N\",\"Y\")))","v":""},{"$f":"IF($B226=\"N\",\"\",IF(LEN('Enrollment Form'!$AF233)=0,\"\",IF(LEN('Enrollment Form'!$AF233)<>10,\"N\",\"Y\")))","v":""},{"$f":"IF('Enrollment Form'!$O233<>\"Graded\",\"-\",IF(AND('Enrollment Form'!$O233=\"Graded\",'Enrollment Form'!$AR233<>\"\"),\"Y\",\"N\"))","v":"-"},{"$f":"IF($B226=\"N\",\"\",IF(OR('Enrollment Form'!$B233<>\"Subscriber\",'Enrollment Form'!$C233=\"ROC\"),\"-\",IF(AND('Enrollment Form'!$B233=\"Subscriber\",'Enrollment Form'!$C233=\"Enroll\",'Enrollment Form'!$AJ233<>\"\"),\"Y\",\"N\")))","v":""},{"$f":"IF($B226=\"N\",\"\",IF(OR('Enrollment Form'!$B233<>\"Subscriber\",'Enrollment Form'!$C233=\"ROC\"),\"-\",IF(AND('Enrollment Form'!$B233=\"Subscriber\",'Enrollment Form'!$C233=\"Enroll\",'Enrollment Form'!$AK233<>\"\"),\"Y\",\"N\")))","v":""},{"$f":"IF($B226=\"N\",\"\",IF(OR('Enrollment Form'!$B233<>\"Subscriber\",'Enrollment Form'!$C233=\"ROC\"),\"-\",IF(AND('Enrollment Form'!$B233=\"Subscriber\",'Enrollment Form'!$C233=\"Enroll\",'Enrollment Form'!$AL233<>\"\"),\"Y\",\"N\")))","v":""},{"$f":"IF($B226=\"N\",\"\",IF(OR('Enrollment Form'!$B233<>\"Subscriber\",'Enrollment Form'!$C233=\"ROC\"),\"-\",IF(AND('Enrollment Form'!$B233=\"Subscriber\",'Enrollment Form'!$C233=\"Enroll\",'Enrollment Form'!$AP233<>\"\"),\"Y\",\"N\")))","v":""},{"$f":"IF($B226=\"N\",\"\",IF(OR('Enrollment Form'!$B233<>\"Subscriber\",'Enrollment Form'!$C233=\"ROC\"),\"-\",IF(AND('Enrollment Form'!$B233=\"Subscriber\",'Enrollment Form'!$C233=\"Enroll\",'Enrollment Form'!$AQ233<>\"\"),\"Y\",\"N\")))","v":""},{"$f":"IF($B226=\"N\",\"\",IF(OR('Enrollment Form'!$B233<>\"Subscriber\",'Enrollment Form'!$C233=\"ROC\"),\"-\",IF(AND('Enrollment Form'!$B233=\"Subscriber\",'Enrollment Form'!$C233=\"Enroll\",'Enrollment Form'!$AS233<>\"\"),\"Y\",\"N\")))","v":""},{"$f":"IF($B226=\"N\",\"\",IF($Q226=\"-\",\"-\",IF(AND($Q226=\"Y\",'Enrollment Form'!$AS233=\"No\"),\"-\",IF(AND($Q226=\"Y\",'Enrollment Form'!$AS233=\"Yes\",'Enrollment Form'!$AT233<>\"\"),\"Y\",\"N\"))))","v":""},{"$f":"IF($B226=\"N\",\"\",IF(OR('Enrollment Form'!$B233<>\"Subscriber\",'Enrollment Form'!$C233=\"ROC\"),\"-\",IF(AND('Enrollment Form'!$B233=\"Subscriber\",'Enrollment Form'!$C233=\"Enroll\",'Enrollment Form'!$CV233<>\"\"),\"Y\",\"N\")))","v":""},{"$f":"IF($B226=\"N\",\"\",IF($S226=\"-\",\"-\",IF(AND($S226=\"Y\",'Enrollment Form'!$CV233=\"No\"),\"-\",IF(AND($S226=\"Y\",'Enrollment Form'!$CV233=\"Yes\",'Enrollment Form'!$CW233<>\"\"),\"Y\",\"N\"))))","v":""},{"$f":"IF(OR('Enrollment Form'!$AY233=\"Yes\",'Enrollment Form'!$AY233=\"\"),\"-\",IF(OR(AND('Enrollment Form'!$AY233=\"No\",ISERROR(FIND(\"HMO\",VLOOKUP('Enrollment Form'!G233,'Enrollment Form'!H$11:J$1000,3,FALSE),1))=FALSE,COUNTA('Enrollment Form'!$AZ233:$BC233)=4),AND('Enrollment Form'!$AY233=\"No\",ISERROR(FIND(\"HMO\",VLOOKUP('Enrollment Form'!G233,'Enrollment Form'!H$11:J$1000,3,FALSE),1))=FALSE,COUNTA('Enrollment Form'!$BT233:$BW233)=4)),\"Y\",\"N\"))","v":"-"},{"$f":"IF($B226=\"N\",\"\",IF('Enrollment Form'!$B233=\"Subscriber\",\"-\",IF(COUNTA('Enrollment Form'!$BL233,'Enrollment Form'!$BN233)=2,\"Y\",\"N\")))","v":""},{"$f":"IF($B226=\"N\",\"\",IF(OR('Enrollment Form'!$AX233=\"\",'Enrollment Form'!$AX233=\"No\"),\"-\",IF(AND('Enrollment Form'!$AX233=\"Yes\",COUNTA('Enrollment Form'!$CR233)=1),\"Y\",\"N\")))","v":""},{"$f":"IF(OR('Enrollment Form'!$CR233=\"\",'Enrollment Form'!$CR233=\"No\"),\"-\",IF(COUNTA('Enrollment Form'!$CT233:$CU233)=2,\"Y\",\"N\"))","v":"-"},{"$f":"IF($B226=\"N\",\"\",IF(COUNTIF('Enrollment Form'!$DG233:$DP233,\"Other\")=COUNTA('Enrollment Form'!$DK233,'Enrollment Form'!$DH233,'Enrollment Form'!$DN233,'Enrollment Form'!$DQ233),\"Y\",\"N\"))","v":""},{"$f":"IF($B226=\"N\",\"\",IF(OR('Enrollment Form'!B233<>\"Subscriber\",'Enrollment Form'!C233=\"ROC\",COUNTIF('Enrollment Form'!AV233:AW233,\"Yes\")>=1),\"-\",IF(AND('Enrollment Form'!C233=\"Enroll\",COUNTIF('Enrollment Form'!AV233:AW233,\"No\")=2,'Enrollment Form'!AX233=\"\"),\"N\",\"Y\")))","v":""},{"$f":"IF(OR(B226=\"N\",'Enrollment Form'!B233<>\"Subscriber\",'Enrollment Form'!C233=\"ROC\",'Enrollment Form'!O233<>\"Multiple of Salary\"),\"-\",IF(COUNTA('Enrollment Form'!T233:U233)<2,\"N\",\"Y\"))","v":"-"},{"$f":"IF(B226=\"N\",\"\",IF(OR('Enrollment Form'!C233=\"ROC\",'Enrollment Form'!B233<>\"Subscriber\",'Enrollment Form'!O233=\"Waive\",'Enrollment Form'!O233=\"\"),\"-\",IF('Enrollment Form'!P233=\"\",\"N\",\"Y\")))","v":""},{"$f":"IF($B226=\"N\",\"\",IF(AND('Enrollment Form'!$C233=\"ROC\",'Enrollment Form'!$DR233<>\"\"),\"Y\",IF(AND('Enrollment Form'!$C233=\"ROC\",'Enrollment Form'!$DR233=\"\"),\"N\",IF(AND('Enrollment Form'!$C233=\"Enroll\",'Enrollment Form'!$B233=\"Subscriber\",'Enrollment Form'!$CX233=\"No\",'Enrollment Form'!$DR233=\"\"),\"N\",IF(AND('Enrollment Form'!$C233=\"Enroll\",'Enrollment Form'!$B233=\"Subscriber\",'Enrollment Form'!$CX233=\"Yes\"),\"-\",\"Y\")))))","v":""},{"$f":"IF($B226=\"N\",\"\",IF(AND('Enrollment Form'!$C233=\"ROC\",'Enrollment Form'!$DS233<>\"\"),\"Y\",IF(AND('Enrollment Form'!$C233=\"ROC\",'Enrollment Form'!$DS233=\"\"),\"N\",IF(AND('Enrollment Form'!$C233=\"Enroll\",'Enrollment Form'!$B233=\"Subscriber\",'Enrollment Form'!$CX233=\"No\",'Enrollment Form'!$DS233=\"\"),\"N\",IF(AND('Enrollment Form'!$C233=\"Enroll\",'Enrollment Form'!$B233=\"Subscriber\",'Enrollment Form'!$CX233=\"Yes\"),\"-\",\"Y\")))))","v":""},{"$f":"IF('Enrollment Form'!AH233=\"\",\"\",IF(ISERROR(SEARCH(\".\",'Enrollment Form'!AH233,SEARCH(\"@\",'Enrollment Form'!AH233))),\"N\",\"Y\"))","v":""},{"$f":"IF(OR($B226=\"N\",'Enrollment Form'!$G233=\"\"),\"\",IF('Enrollment Form'!$B233<>\"Subscriber\",\"-\",IF(COUNTIF('Enrollment Form'!$AV233:$AW233,\"Yes\")=2,\"N\",\"Y\")))","v":""},{"$f":"IF(OR('Enrollment Form'!$CJ233=\"\",'Enrollment Form'!$CJ233=\"No\"),\"-\",IF(AND('Enrollment Form'!$CJ233=\"Yes\",'Enrollment Form'!$CK233=\"\"),\"N\",\"Y\"))","v":"-"},{"$f":"IF(OR('Enrollment Form'!$CL233=\"\",'Enrollment Form'!$CL233=\"No\"),\"-\",IF(AND('Enrollment Form'!$CL233=\"Yes\",'Enrollment Form'!$CM233=\"\"),\"N\",\"Y\"))","v":"-"},{"$f":"IF(OR('Enrollment Form'!$CN233=\"\",'Enrollment Form'!$CN233=\"No\"),\"-\",IF(AND('Enrollment Form'!$CN233=\"Yes\",'Enrollment Form'!$CO233=\"\"),\"N\",\"Y\"))","v":"-"},{"$f":"IF(OR('Enrollment Form'!$CN233=\"\",'Enrollment Form'!$CN233=\"No\"),\"-\",IF(AND('Enrollment Form'!$CN233=\"Yes\",'Enrollment Form'!$CP233=\"\"),\"N\",\"Y\"))","v":"-"},{"$f":"IF('Enrollment Form'!B233<>\"Subscriber\",\"-\",IF(AND('Enrollment Form'!B233=\"Subscriber\",'Enrollment Form'!C233=\"Enroll\",'Enrollment Form'!AA233=\"\"),\"N\",\"Y\"))","v":"-"},{"$f":"IF(OR('Enrollment Form'!B233=\"Subscriber\",'Enrollment Form'!B233=\"\"),\"-\",IF('Enrollment Form'!BP233=\"\",\"N\",\"Y\"))","v":"-"},{"$f":"IF('Enrollment Form'!B233<>\"Subscriber\",\"-\",IF(AND('Enrollment Form'!B233=\"Subscriber\",'Enrollment Form'!G233=\"\"),\"N\",\"Y\"))","v":"-"},{"$f":"IF('Enrollment Form'!A233=\"\",\"\",IF('Enrollment Form'!B233=\"Subscriber\",\"-\",IF(AND('Enrollment Form'!B233<>\"Subscriber\",'Enrollment Form'!G233='Enrollment Form'!H233),\"N\",\"Y\")))","v":""},0]
[234,{"$f":"IF('Enrollment Form'!$A234<>\"\",\"Y\",\"N\")","v":"N"},{"$f":"IF(AND('Enrollment Form'!$B234=\"\",'Enrollment Form'!$C234<>\"\"),\"N\",IF($B227=\"N\",\"\",\"Y\"))","v":""},{"$f":"IF(OR($B227=\"N\",'Enrollment Form'!G234=\"\"),\"\",IF('Enrollment Form'!$B234<>\"Subscriber\",\"\",IF('Enrollment Form'!$G234='Enrollment Form'!$H234,\"Y\",\"N\")))","v":""},{"$f":"IF($B227=\"N\",\"\",IF(AND(COUNTIFS('Enrollment Form'!$H$11:$H$1000,'Enrollment Form'!$H234,'Enrollment Form'!$B$11:$B$1000,'Enrollment Form'!$B234)>1,'Enrollment Form'!$H234<>\"\"),\"N\",\"Y\"))","v":""},{"$f":"IF($B227=\"N\",\"\",IF(LEN('Enrollment Form'!$Y234)=0,\"\",IF(LEN('Enrollment Form'!$Y234)<>5,\"N\",\"Y\")))","v":""},{"$f":"IF($B227=\"N\",\"\",IF(LEN('Enrollment Form'!$AD234=0),\"\",IF(LEN('Enrollment Form'!$AD234)<>5,\"N\",\"Y\")))","v":""},{"$f":"IF($B227=\"N\",\"\",IF(LEN('Enrollment Form'!$BS234=0),\"\",IF(LEN('Enrollment Form'!$BS234)<>5,\"N\",\"Y\")))","v":""},{"$f":"IF($B227=\"N\",\"\",IF(LEN('Enrollment Form'!$AE234)=0,\"\",IF(LEN('Enrollment Form'!$AE234)<>10,\"N\",\"Y\")))","v":""},{"$f":"IF($B227=\"N\",\"\",IF(LEN('Enrollment Form'!$AF234)=0,\"\",IF(LEN('Enrollment Form'!$AF234)<>10,\"N\",\"Y\")))","v":""},{"$f":"IF('Enrollment Form'!$O234<>\"Graded\",\"-\",IF(AND('Enrollment Form'!$O234=\"Graded\",'Enrollment Form'!$AR234<>\"\"),\"Y\",\"N\"))","v":"-"},{"$f":"IF($B227=\"N\",\"\",IF(OR('Enrollment Form'!$B234<>\"Subscriber\",'Enrollment Form'!$C234=\"ROC\"),\"-\",IF(AND('Enrollment Form'!$B234=\"Subscriber\",'Enrollment Form'!$C234=\"Enroll\",'Enrollment Form'!$AJ234<>\"\"),\"Y\",\"N\")))","v":""},{"$f":"IF($B227=\"N\",\"\",IF(OR('Enrollment Form'!$B234<>\"Subscriber\",'Enrollment Form'!$C234=\"ROC\"),\"-\",IF(AND('Enrollment Form'!$B234=\"Subscriber\",'Enrollment Form'!$C234=\"Enroll\",'Enrollment Form'!$AK234<>\"\"),\"Y\",\"N\")))","v":""},{"$f":"IF($B227=\"N\",\"\",IF(OR('Enrollment Form'!$B234<>\"Subscriber\",'Enrollment Form'!$C234=\"ROC\"),\"-\",IF(AND('Enrollment Form'!$B234=\"Subscriber\",'Enrollment Form'!$C234=\"Enroll\",'Enrollment Form'!$AL234<>\"\"),\"Y\",\"N\")))","v":""},{"$f":"IF($B227=\"N\",\"\",IF(OR('Enrollment Form'!$B234<>\"Subscriber\",'Enrollment Form'!$C234=\"ROC\"),\"-\",IF(AND('Enrollment Form'!$B234=\"Subscriber\",'Enrollment Form'!$C234=\"Enroll\",'Enrollment Form'!$AP234<>\"\"),\"Y\",\"N\")))","v":""},{"$f":"IF($B227=\"N\",\"\",IF(OR('Enrollment Form'!$B234<>\"Subscriber\",'Enrollment Form'!$C234=\"ROC\"),\"-\",IF(AND('Enrollment Form'!$B234=\"Subscriber\",'Enrollment Form'!$C234=\"Enroll\",'Enrollment Form'!$AQ234<>\"\"),\"Y\",\"N\")))","v":""},{"$f":"IF($B227=\"N\",\"\",IF(OR('Enrollment Form'!$B234<>\"Subscriber\",'Enrollment Form'!$C234=\"ROC\"),\"-\",IF(AND('Enrollment Form'!$B234=\"Subscriber\",'Enrollment Form'!$C234=\"Enroll\",'Enrollment Form'!$AS234<>\"\"),\"Y\",\"N\")))","v":""},{"$f":"IF($B227=\"N\",\"\",IF($Q227=\"-\",\"-\",IF(AND($Q227=\"Y\",'Enrollment Form'!$AS234=\"No\"),\"-\",IF(AND($Q227=\"Y\",'Enrollment Form'!$AS234=\"Yes\",'Enrollment Form'!$AT234<>\"\"),\"Y\",\"N\"))))","v":""},{"$f":"IF($B227=\"N\",\"\",IF(OR('Enrollment Form'!$B234<>\"Subscriber\",'Enrollment Form'!$C234=\"ROC\"),\"-\",IF(AND('Enrollment Form'!$B234=\"Subscriber\",'Enrollment Form'!$C234=\"Enroll\",'Enrollment Form'!$CV234<>\"\"),\"Y\",\"N\")))","v":""},{"$f":"IF($B227=\"N\",\"\",IF($S227=\"-\",\"-\",IF(AND($S227=\"Y\",'Enrollment Form'!$CV234=\"No\"),\"-\",IF(AND($S227=\"Y\",'Enrollment Form'!$CV234=\"Yes\",'Enrollment Form'!$CW234<>\"\"),\"Y\",\"N\"))))","v":""},{"$f":"IF(OR('Enrollment Form'!$AY234=\"Yes\",'Enrollment Form'!$AY234=\"\"),\"-\",IF(OR(AND('Enrollment Form'!$AY234=\"No\",ISERROR(FIND(\"HMO\",VLOOKUP('Enrollment Form'!G234,'Enrollment Form'!H$11:J$1000,3,FALSE),1))=FALSE,COUNTA('Enrollment Form'!$AZ234:$BC234)=4),AND('Enrollment Form'!$AY234=\"No\",ISERROR(FIND(\"HMO\",VLOOKUP('Enrollment Form'!G234,'Enrollment Form'!H$11:J$1000,3,FALSE),1))=FALSE,COUNTA('Enrollment Form'!$BT234:$BW234)=4)),\"Y\",\"N\"))","v":"-"},{"$f":"IF($B227=\"N\",\"\",IF('Enrollment Form'!$B234=\"Subscriber\",\"-\",IF(COUNTA('Enrollment Form'!$BL234,'Enrollment Form'!$BN234)=2,\"Y\",\"N\")))","v":""},{"$f":"IF($B227=\"N\",\"\",IF(OR('Enrollment Form'!$AX234=\"\",'Enrollment Form'!$AX234=\"No\"),\"-\",IF(AND('Enrollment Form'!$AX234=\"Yes\",COUNTA('Enrollment Form'!$CR234)=1),\"Y\",\"N\")))","v":""},{"$f":"IF(OR('Enrollment Form'!$CR234=\"\",'Enrollment Form'!$CR234=\"No\"),\"-\",IF(COUNTA('Enrollment Form'!$CT234:$CU234)=2,\"Y\",\"N\"))","v":"-"},{"$f":"IF($B227=\"N\",\"\",IF(COUNTIF('Enrollment Form'!$DG234:$DP234,\"Other\")=COUNTA('Enrollment Form'!$DK234,'Enrollment Form'!$DH234,'Enrollment Form'!$DN234,'Enrollment Form'!$DQ234),\"Y\",\"N\"))","v":""},{"$f":"IF($B227=\"N\",\"\",IF(OR('Enrollment Form'!B234<>\"Subscriber\",'Enrollment Form'!C234=\"ROC\",COUNTIF('Enrollment Form'!AV234:AW234,\"Yes\")>=1),\"-\",IF(AND('Enrollment Form'!C234=\"Enroll\",COUNTIF('Enrollment Form'!AV234:AW234,\"No\")=2,'Enrollment Form'!AX234=\"\"),\"N\",\"Y\")))","v":""},{"$f":"IF(OR(B227=\"N\",'Enrollment Form'!B234<>\"Subscriber\",'Enrollment Form'!C234=\"ROC\",'Enrollment Form'!O234<>\"Multiple of Salary\"),\"-\",IF(COUNTA('Enrollment Form'!T234:U234)<2,\"N\",\"Y\"))","v":"-"},{"$f":"IF(B227=\"N\",\"\",IF(OR('Enrollment Form'!C234=\"ROC\",'Enrollment Form'!B234<>\"Subscriber\",'Enrollment Form'!O234=\"Waive\",'Enrollment Form'!O234=\"\"),\"-\",IF('Enrollment Form'!P234=\"\",\"N\",\"Y\")))","v":""},{"$f":"IF($B227=\"N\",\"\",IF(AND('Enrollment Form'!$C234=\"ROC\",'Enrollment Form'!$DR234<>\"\"),\"Y\",IF(AND('Enrollment Form'!$C234=\"ROC\",'Enrollment Form'!$DR234=\"\"),\"N\",IF(AND('Enrollment Form'!$C234=\"Enroll\",'Enrollment Form'!$B234=\"Subscriber\",'Enrollment Form'!$CX234=\"No\",'Enrollment Form'!$DR234=\"\"),\"N\",IF(AND('Enrollment Form'!$C234=\"Enroll\",'Enrollment Form'!$B234=\"Subscriber\",'Enrollment Form'!$CX234=\"Yes\"),\"-\",\"Y\")))))","v":""},{"$f":"IF($B227=\"N\",\"\",IF(AND('Enrollment Form'!$C234=\"ROC\",'Enrollment Form'!$DS234<>\"\"),\"Y\",IF(AND('Enrollment Form'!$C234=\"ROC\",'Enrollment Form'!$DS234=\"\"),\"N\",IF(AND('Enrollment Form'!$C234=\"Enroll\",'Enrollment Form'!$B234=\"Subscriber\",'Enrollment Form'!$CX234=\"No\",'Enrollment Form'!$DS234=\"\"),\"N\",IF(AND('Enrollment Form'!$C234=\"Enroll\",'Enrollment Form'!$B234=\"Subscriber\",'Enrollment Form'!$CX234=\"Yes\"),\"-\",\"Y\")))))","v":""},{"$f":"IF('Enrollment Form'!AH234=\"\",\"\",IF(ISERROR(SEARCH(\".\",'Enrollment Form'!AH234,SEARCH(\"@\",'Enrollment Form'!AH234))),\"N\",\"Y\"))","v":""},{"$f":"IF(OR($B227=\"N\",'Enrollment Form'!$G234=\"\"),\"\",IF('Enrollment Form'!$B234<>\"Subscriber\",\"-\",IF(COUNTIF('Enrollment Form'!$AV234:$AW234,\"Yes\")=2,\"N\",\"Y\")))","v":""},{"$f":"IF(OR('Enrollment Form'!$CJ234=\"\",'Enrollment Form'!$CJ234=\"No\"),\"-\",IF(AND('Enrollment Form'!$CJ234=\"Yes\",'Enrollment Form'!$CK234=\"\"),\"N\",\"Y\"))","v":"-"},{"$f":"IF(OR('Enrollment Form'!$CL234=\"\",'Enrollment Form'!$CL234=\"No\"),\"-\",IF(AND('Enrollment Form'!$CL234=\"Yes\",'Enrollment Form'!$CM234=\"\"),\"N\",\"Y\"))","v":"-"},{"$f":"IF(OR('Enrollment Form'!$CN234=\"\",'Enrollment Form'!$CN234=\"No\"),\"-\",IF(AND('Enrollment Form'!$CN234=\"Yes\",'Enrollment Form'!$CO234=\"\"),\"N\",\"Y\"))","v":"-"},{"$f":"IF(OR('Enrollment Form'!$CN234=\"\",'Enrollment Form'!$CN234=\"No\"),\"-\",IF(AND('Enrollment Form'!$CN234=\"Yes\",'Enrollment Form'!$CP234=\"\"),\"N\",\"Y\"))","v":"-"},{"$f":"IF('Enrollment Form'!B234<>\"Subscriber\",\"-\",IF(AND('Enrollment Form'!B234=\"Subscriber\",'Enrollment Form'!C234=\"Enroll\",'Enrollment Form'!AA234=\"\"),\"N\",\"Y\"))","v":"-"},{"$f":"IF(OR('Enrollment Form'!B234=\"Subscriber\",'Enrollment Form'!B234=\"\"),\"-\",IF('Enrollment Form'!BP234=\"\",\"N\",\"Y\"))","v":"-"},{"$f":"IF('Enrollment Form'!B234<>\"Subscriber\",\"-\",IF(AND('Enrollment Form'!B234=\"Subscriber\",'Enrollment Form'!G234=\"\"),\"N\",\"Y\"))","v":"-"},{"$f":"IF('Enrollment Form'!A234=\"\",\"\",IF('Enrollment Form'!B234=\"Subscriber\",\"-\",IF(AND('Enrollment Form'!B234<>\"Subscriber\",'Enrollment Form'!G234='Enrollment Form'!H234),\"N\",\"Y\")))","v":""},0]
[235,{"$f":"IF('Enrollment Form'!$A235<>\"\",\"Y\",\"N\")","v":"N"},{"$f":"IF(AND('Enrollment Form'!$B235=\"\",'Enrollment Form'!$C235<>\"\"),\"N\",IF($B228=\"N\",\"\",\"Y\"))","v":""},{"$f":"IF(OR($B228=\"N\",'Enrollment Form'!G235=\"\"),\"\",IF('Enrollment Form'!$B235<>\"Subscriber\",\"\",IF('Enrollment Form'!$G235='Enrollment Form'!$H235,\"Y\",\"N\")))","v":""},{"$f":"IF($B228=\"N\",\"\",IF(AND(COUNTIFS('Enrollment Form'!$H$11:$H$1000,'Enrollment Form'!$H235,'Enrollment Form'!$B$11:$B$1000,'Enrollment Form'!$B235)>1,'Enrollment Form'!$H235<>\"\"),\"N\",\"Y\"))","v":""},{"$f":"IF($B228=\"N\",\"\",IF(LEN('Enrollment Form'!$Y235)=0,\"\",IF(LEN('Enrollment Form'!$Y235)<>5,\"N\",\"Y\")))","v":""},{"$f":"IF($B228=\"N\",\"\",IF(LEN('Enrollment Form'!$AD235=0),\"\",IF(LEN('Enrollment Form'!$AD235)<>5,\"N\",\"Y\")))","v":""},{"$f":"IF($B228=\"N\",\"\",IF(LEN('Enrollment Form'!$BS235=0),\"\",IF(LEN('Enrollment Form'!$BS235)<>5,\"N\",\"Y\")))","v":""},{"$f":"IF($B228=\"N\",\"\",IF(LEN('Enrollment Form'!$AE235)=0,\"\",IF(LEN('Enrollment Form'!$AE235)<>10,\"N\",\"Y\")))","v":""},{"$f":"IF($B228=\"N\",\"\",IF(LEN('Enrollment Form'!$AF235)=0,\"\",IF(LEN('Enrollment Form'!$AF235)<>10,\"N\",\"Y\")))","v":""},{"$f":"IF('Enrollment Form'!$O235<>\"Graded\",\"-\",IF(AND('Enrollment Form'!$O235=\"Graded\",'Enrollment Form'!$AR235<>\"\"),\"Y\",\"N\"))","v":"-"},{"$f":"IF($B228=\"N\",\"\",IF(OR('Enrollment Form'!$B235<>\"Subscriber\",'Enrollment Form'!$C235=\"ROC\"),\"-\",IF(AND('Enrollment Form'!$B235=\"Subscriber\",'Enrollment Form'!$C235=\"Enroll\",'Enrollment Form'!$AJ235<>\"\"),\"Y\",\"N\")))","v":""},{"$f":"IF($B228=\"N\",\"\",IF(OR('Enrollment Form'!$B235<>\"Subscriber\",'Enrollment Form'!$C235=\"ROC\"),\"-\",IF(AND('Enrollment Form'!$B235=\"Subscriber\",'Enrollment Form'!$C235=\"Enroll\",'Enrollment Form'!$AK235<>\"\"),\"Y\",\"N\")))","v":""},{"$f":"IF($B228=\"N\",\"\",IF(OR('Enrollment Form'!$B235<>\"Subscriber\",'Enrollment Form'!$C235=\"ROC\"),\"-\",IF(AND('Enrollment Form'!$B235=\"Subscriber\",'Enrollment Form'!$C235=\"Enroll\",'Enrollment Form'!$AL235<>\"\"),\"Y\",\"N\")))","v":""},{"$f":"IF($B228=\"N\",\"\",IF(OR('Enrollment Form'!$B235<>\"Subscriber\",'Enrollment Form'!$C235=\"ROC\"),\"-\",IF(AND('Enrollment Form'!$B235=\"Subscriber\",'Enrollment Form'!$C235=\"Enroll\",'Enrollment Form'!$AP235<>\"\"),\"Y\",\"N\")))","v":""},{"$f":"IF($B228=\"N\",\"\",IF(OR('Enrollment Form'!$B235<>\"Subscriber\",'Enrollment Form'!$C235=\"ROC\"),\"-\",IF(AND('Enrollment Form'!$B235=\"Subscriber\",'Enrollment Form'!$C235=\"Enroll\",'Enrollment Form'!$AQ235<>\"\"),\"Y\",\"N\")))","v":""},{"$f":"IF($B228=\"N\",\"\",IF(OR('Enrollment Form'!$B235<>\"Subscriber\",'Enrollment Form'!$C235=\"ROC\"),\"-\",IF(AND('Enrollment Form'!$B235=\"Subscriber\",'Enrollment Form'!$C235=\"Enroll\",'Enrollment Form'!$AS235<>\"\"),\"Y\",\"N\")))","v":""},{"$f":"IF($B228=\"N\",\"\",IF($Q228=\"-\",\"-\",IF(AND($Q228=\"Y\",'Enrollment Form'!$AS235=\"No\"),\"-\",IF(AND($Q228=\"Y\",'Enrollment Form'!$AS235=\"Yes\",'Enrollment Form'!$AT235<>\"\"),\"Y\",\"N\"))))","v":""},{"$f":"IF($B228=\"N\",\"\",IF(OR('Enrollment Form'!$B235<>\"Subscriber\",'Enrollment Form'!$C235=\"ROC\"),\"-\",IF(AND('Enrollment Form'!$B235=\"Subscriber\",'Enrollment Form'!$C235=\"Enroll\",'Enrollment Form'!$CV235<>\"\"),\"Y\",\"N\")))","v":""},{"$f":"IF($B228=\"N\",\"\",IF($S228=\"-\",\"-\",IF(AND($S228=\"Y\",'Enrollment Form'!$CV235=\"No\"),\"-\",IF(AND($S228=\"Y\",'Enrollment Form'!$CV235=\"Yes\",'Enrollment Form'!$CW235<>\"\"),\"Y\",\"N\"))))","v":""},{"$f":"IF(OR('Enrollment Form'!$AY235=\"Yes\",'Enrollment Form'!$AY235=\"\"),\"-\",IF(OR(AND('Enrollment Form'!$AY235=\"No\",ISERROR(FIND(\"HMO\",VLOOKUP('Enrollment Form'!G235,'Enrollment Form'!H$11:J$1000,3,FALSE),1))=FALSE,COUNTA('Enrollment Form'!$AZ235:$BC235)=4),AND('Enrollment Form'!$AY235=\"No\",ISERROR(FIND(\"HMO\",VLOOKUP('Enrollment Form'!G235,'Enrollment Form'!H$11:J$1000,3,FALSE),1))=FALSE,COUNTA('Enrollment Form'!$BT235:$BW235)=4)),\"Y\",\"N\"))","v":"-"},{"$f":"IF($B228=\"N\",\"\",IF('Enrollment Form'!$B235=\"Subscriber\",\"-\",IF(COUNTA('Enrollment Form'!$BL235,'Enrollment Form'!$BN235)=2,\"Y\",\"N\")))","v":""},{"$f":"IF($B228=\"N\",\"\",IF(OR('Enrollment Form'!$AX235=\"\",'Enrollment Form'!$AX235=\"No\"),\"-\",IF(AND('Enrollment Form'!$AX235=\"Yes\",COUNTA('Enrollment Form'!$CR235)=1),\"Y\",\"N\")))","v":""},{"$f":"IF(OR('Enrollment Form'!$CR235=\"\",'Enrollment Form'!$CR235=\"No\"),\"-\",IF(COUNTA('Enrollment Form'!$CT235:$CU235)=2,\"Y\",\"N\"))","v":"-"},{"$f":"IF($B228=\"N\",\"\",IF(COUNTIF('Enrollment Form'!$DG235:$DP235,\"Other\")=COUNTA('Enrollment Form'!$DK235,'Enrollment Form'!$DH235,'Enrollment Form'!$DN235,'Enrollment Form'!$DQ235),\"Y\",\"N\"))","v":""},{"$f":"IF($B228=\"N\",\"\",IF(OR('Enrollment Form'!B235<>\"Subscriber\",'Enrollment Form'!C235=\"ROC\",COUNTIF('Enrollment Form'!AV235:AW235,\"Yes\")>=1),\"-\",IF(AND('Enrollment Form'!C235=\"Enroll\",COUNTIF('Enrollment Form'!AV235:AW235,\"No\")=2,'Enrollment Form'!AX235=\"\"),\"N\",\"Y\")))","v":""},{"$f":"IF(OR(B228=\"N\",'Enrollment Form'!B235<>\"Subscriber\",'Enrollment Form'!C235=\"ROC\",'Enrollment Form'!O235<>\"Multiple of Salary\"),\"-\",IF(COUNTA('Enrollment Form'!T235:U235)<2,\"N\",\"Y\"))","v":"-"},{"$f":"IF(B228=\"N\",\"\",IF(OR('Enrollment Form'!C235=\"ROC\",'Enrollment Form'!B235<>\"Subscriber\",'Enrollment Form'!O235=\"Waive\",'Enrollment Form'!O235=\"\"),\"-\",IF('Enrollment Form'!P235=\"\",\"N\",\"Y\")))","v":""},{"$f":"IF($B228=\"N\",\"\",IF(AND('Enrollment Form'!$C235=\"ROC\",'Enrollment Form'!$DR235<>\"\"),\"Y\",IF(AND('Enrollment Form'!$C235=\"ROC\",'Enrollment Form'!$DR235=\"\"),\"N\",IF(AND('Enrollment Form'!$C235=\"Enroll\",'Enrollment Form'!$B235=\"Subscriber\",'Enrollment Form'!$CX235=\"No\",'Enrollment Form'!$DR235=\"\"),\"N\",IF(AND('Enrollment Form'!$C235=\"Enroll\",'Enrollment Form'!$B235=\"Subscriber\",'Enrollment Form'!$CX235=\"Yes\"),\"-\",\"Y\")))))","v":""},{"$f":"IF($B228=\"N\",\"\",IF(AND('Enrollment Form'!$C235=\"ROC\",'Enrollment Form'!$DS235<>\"\"),\"Y\",IF(AND('Enrollment Form'!$C235=\"ROC\",'Enrollment Form'!$DS235=\"\"),\"N\",IF(AND('Enrollment Form'!$C235=\"Enroll\",'Enrollment Form'!$B235=\"Subscriber\",'Enrollment Form'!$CX235=\"No\",'Enrollment Form'!$DS235=\"\"),\"N\",IF(AND('Enrollment Form'!$C235=\"Enroll\",'Enrollment Form'!$B235=\"Subscriber\",'Enrollment Form'!$CX235=\"Yes\"),\"-\",\"Y\")))))","v":""},{"$f":"IF('Enrollment Form'!AH235=\"\",\"\",IF(ISERROR(SEARCH(\".\",'Enrollment Form'!AH235,SEARCH(\"@\",'Enrollment Form'!AH235))),\"N\",\"Y\"))","v":""},{"$f":"IF(OR($B228=\"N\",'Enrollment Form'!$G235=\"\"),\"\",IF('Enrollment Form'!$B235<>\"Subscriber\",\"-\",IF(COUNTIF('Enrollment Form'!$AV235:$AW235,\"Yes\")=2,\"N\",\"Y\")))","v":""},{"$f":"IF(OR('Enrollment Form'!$CJ235=\"\",'Enrollment Form'!$CJ235=\"No\"),\"-\",IF(AND('Enrollment Form'!$CJ235=\"Yes\",'Enrollment Form'!$CK235=\"\"),\"N\",\"Y\"))","v":"-"},{"$f":"IF(OR('Enrollment Form'!$CL235=\"\",'Enrollment Form'!$CL235=\"No\"),\"-\",IF(AND('Enrollment Form'!$CL235=\"Yes\",'Enrollment Form'!$CM235=\"\"),\"N\",\"Y\"))","v":"-"},{"$f":"IF(OR('Enrollment Form'!$CN235=\"\",'Enrollment Form'!$CN235=\"No\"),\"-\",IF(AND('Enrollment Form'!$CN235=\"Yes\",'Enrollment Form'!$CO235=\"\"),\"N\",\"Y\"))","v":"-"},{"$f":"IF(OR('Enrollment Form'!$CN235=\"\",'Enrollment Form'!$CN235=\"No\"),\"-\",IF(AND('Enrollment Form'!$CN235=\"Yes\",'Enrollment Form'!$CP235=\"\"),\"N\",\"Y\"))","v":"-"},{"$f":"IF('Enrollment Form'!B235<>\"Subscriber\",\"-\",IF(AND('Enrollment Form'!B235=\"Subscriber\",'Enrollment Form'!C235=\"Enroll\",'Enrollment Form'!AA235=\"\"),\"N\",\"Y\"))","v":"-"},{"$f":"IF(OR('Enrollment Form'!B235=\"Subscriber\",'Enrollment Form'!B235=\"\"),\"-\",IF('Enrollment Form'!BP235=\"\",\"N\",\"Y\"))","v":"-"},{"$f":"IF('Enrollment Form'!B235<>\"Subscriber\",\"-\",IF(AND('Enrollment Form'!B235=\"Subscriber\",'Enrollment Form'!G235=\"\"),\"N\",\"Y\"))","v":"-"},{"$f":"IF('Enrollment Form'!A235=\"\",\"\",IF('Enrollment Form'!B235=\"Subscriber\",\"-\",IF(AND('Enrollment Form'!B235<>\"Subscriber\",'Enrollment Form'!G235='Enrollment Form'!H235),\"N\",\"Y\")))","v":""},0]
[236,{"$f":"IF('Enrollment Form'!$A236<>\"\",\"Y\",\"N\")","v":"N"},{"$f":"IF(AND('Enrollment Form'!$B236=\"\",'Enrollment Form'!$C236<>\"\"),\"N\",IF($B229=\"N\",\"\",\"Y\"))","v":""},{"$f":"IF(OR($B229=\"N\",'Enrollment Form'!G236=\"\"),\"\",IF('Enrollment Form'!$B236<>\"Subscriber\",\"\",IF('Enrollment Form'!$G236='Enrollment Form'!$H236,\"Y\",\"N\")))","v":""},{"$f":"IF($B229=\"N\",\"\",IF(AND(COUNTIFS('Enrollment Form'!$H$11:$H$1000,'Enrollment Form'!$H236,'Enrollment Form'!$B$11:$B$1000,'Enrollment Form'!$B236)>1,'Enrollment Form'!$H236<>\"\"),\"N\",\"Y\"))","v":""},{"$f":"IF($B229=\"N\",\"\",IF(LEN('Enrollment Form'!$Y236)=0,\"\",IF(LEN('Enrollment Form'!$Y236)<>5,\"N\",\"Y\")))","v":""},{"$f":"IF($B229=\"N\",\"\",IF(LEN('Enrollment Form'!$AD236=0),\"\",IF(LEN('Enrollment Form'!$AD236)<>5,\"N\",\"Y\")))","v":""},{"$f":"IF($B229=\"N\",\"\",IF(LEN('Enrollment Form'!$BS236=0),\"\",IF(LEN('Enrollment Form'!$BS236)<>5,\"N\",\"Y\")))","v":""},{"$f":"IF($B229=\"N\",\"\",IF(LEN('Enrollment Form'!$AE236)=0,\"\",IF(LEN('Enrollment Form'!$AE236)<>10,\"N\",\"Y\")))","v":""},{"$f":"IF($B229=\"N\",\"\",IF(LEN('Enrollment Form'!$AF236)=0,\"\",IF(LEN('Enrollment Form'!$AF236)<>10,\"N\",\"Y\")))","v":""},{"$f":"IF('Enrollment Form'!$O236<>\"Graded\",\"-\",IF(AND('Enrollment Form'!$O236=\"Graded\",'Enrollment Form'!$AR236<>\"\"),\"Y\",\"N\"))","v":"-"},{"$f":"IF($B229=\"N\",\"\",IF(OR('Enrollment Form'!$B236<>\"Subscriber\",'Enrollment Form'!$C236=\"ROC\"),\"-\",IF(AND('Enrollment Form'!$B236=\"Subscriber\",'Enrollment Form'!$C236=\"Enroll\",'Enrollment Form'!$AJ236<>\"\"),\"Y\",\"N\")))","v":""},{"$f":"IF($B229=\"N\",\"\",IF(OR('Enrollment Form'!$B236<>\"Subscriber\",'Enrollment Form'!$C236=\"ROC\"),\"-\",IF(AND('Enrollment Form'!$B236=\"Subscriber\",'Enrollment Form'!$C236=\"Enroll\",'Enrollment Form'!$AK236<>\"\"),\"Y\",\"N\")))","v":""},{"$f":"IF($B229=\"N\",\"\",IF(OR('Enrollment Form'!$B236<>\"Subscriber\",'Enrollment Form'!$C236=\"ROC\"),\"-\",IF(AND('Enrollment Form'!$B236=\"Subscriber\",'Enrollment Form'!$C236=\"Enroll\",'Enrollment Form'!$AL236<>\"\"),\"Y\",\"N\")))","v":""},{"$f":"IF($B229=\"N\",\"\",IF(OR('Enrollment Form'!$B236<>\"Subscriber\",'Enrollment Form'!$C236=\"ROC\"),\"-\",IF(AND('Enrollment Form'!$B236=\"Subscriber\",'Enrollment Form'!$C236=\"Enroll\",'Enrollment Form'!$AP236<>\"\"),\"Y\",\"N\")))","v":""},{"$f":"IF($B229=\"N\",\"\",IF(OR('Enrollment Form'!$B236<>\"Subscriber\",'Enrollment Form'!$C236=\"ROC\"),\"-\",IF(AND('Enrollment Form'!$B236=\"Subscriber\",'Enrollment Form'!$C236=\"Enroll\",'Enrollment Form'!$AQ236<>\"\"),\"Y\",\"N\")))","v":""},{"$f":"IF($B229=\"N\",\"\",IF(OR('Enrollment Form'!$B236<>\"Subscriber\",'Enrollment Form'!$C236=\"ROC\"),\"-\",IF(AND('Enrollment Form'!$B236=\"Subscriber\",'Enrollment Form'!$C236=\"Enroll\",'Enrollment Form'!$AS236<>\"\"),\"Y\",\"N\")))","v":""},{"$f":"IF($B229=\"N\",\"\",IF($Q229=\"-\",\"-\",IF(AND($Q229=\"Y\",'Enrollment Form'!$AS236=\"No\"),\"-\",IF(AND($Q229=\"Y\",'Enrollment Form'!$AS236=\"Yes\",'Enrollment Form'!$AT236<>\"\"),\"Y\",\"N\"))))","v":""},{"$f":"IF($B229=\"N\",\"\",IF(OR('Enrollment Form'!$B236<>\"Subscriber\",'Enrollment Form'!$C236=\"ROC\"),\"-\",IF(AND('Enrollment Form'!$B236=\"Subscriber\",'Enrollment Form'!$C236=\"Enroll\",'Enrollment Form'!$CV236<>\"\"),\"Y\",\"N\")))","v":""},{"$f":"IF($B229=\"N\",\"\",IF($S229=\"-\",\"-\",IF(AND($S229=\"Y\",'Enrollment Form'!$CV236=\"No\"),\"-\",IF(AND($S229=\"Y\",'Enrollment Form'!$CV236=\"Yes\",'Enrollment Form'!$CW236<>\"\"),\"Y\",\"N\"))))","v":""},{"$f":"IF(OR('Enrollment Form'!$AY236=\"Yes\",'Enrollment Form'!$AY236=\"\"),\"-\",IF(OR(AND('Enrollment Form'!$AY236=\"No\",ISERROR(FIND(\"HMO\",VLOOKUP('Enrollment Form'!G236,'Enrollment Form'!H$11:J$1000,3,FALSE),1))=FALSE,COUNTA('Enrollment Form'!$AZ236:$BC236)=4),AND('Enrollment Form'!$AY236=\"No\",ISERROR(FIND(\"HMO\",VLOOKUP('Enrollment Form'!G236,'Enrollment Form'!H$11:J$1000,3,FALSE),1))=FALSE,COUNTA('Enrollment Form'!$BT236:$BW236)=4)),\"Y\",\"N\"))","v":"-"},{"$f":"IF($B229=\"N\",\"\",IF('Enrollment Form'!$B236=\"Subscriber\",\"-\",IF(COUNTA('Enrollment Form'!$BL236,'Enrollment Form'!$BN236)=2,\"Y\",\"N\")))","v":""},{"$f":"IF($B229=\"N\",\"\",IF(OR('Enrollment Form'!$AX236=\"\",'Enrollment Form'!$AX236=\"No\"),\"-\",IF(AND('Enrollment Form'!$AX236=\"Yes\",COUNTA('Enrollment Form'!$CR236)=1),\"Y\",\"N\")))","v":""},{"$f":"IF(OR('Enrollment Form'!$CR236=\"\",'Enrollment Form'!$CR236=\"No\"),\"-\",IF(COUNTA('Enrollment Form'!$CT236:$CU236)=2,\"Y\",\"N\"))","v":"-"},{"$f":"IF($B229=\"N\",\"\",IF(COUNTIF('Enrollment Form'!$DG236:$DP236,\"Other\")=COUNTA('Enrollment Form'!$DK236,'Enrollment Form'!$DH236,'Enrollment Form'!$DN236,'Enrollment Form'!$DQ236),\"Y\",\"N\"))","v":""},{"$f":"IF($B229=\"N\",\"\",IF(OR('Enrollment Form'!B236<>\"Subscriber\",'Enrollment Form'!C236=\"ROC\",COUNTIF('Enrollment Form'!AV236:AW236,\"Yes\")>=1),\"-\",IF(AND('Enrollment Form'!C236=\"Enroll\",COUNTIF('Enrollment Form'!AV236:AW236,\"No\")=2,'Enrollment Form'!AX236=\"\"),\"N\",\"Y\")))","v":""},{"$f":"IF(OR(B229=\"N\",'Enrollment Form'!B236<>\"Subscriber\",'Enrollment Form'!C236=\"ROC\",'Enrollment Form'!O236<>\"Multiple of Salary\"),\"-\",IF(COUNTA('Enrollment Form'!T236:U236)<2,\"N\",\"Y\"))","v":"-"},{"$f":"IF(B229=\"N\",\"\",IF(OR('Enrollment Form'!C236=\"ROC\",'Enrollment Form'!B236<>\"Subscriber\",'Enrollment Form'!O236=\"Waive\",'Enrollment Form'!O236=\"\"),\"-\",IF('Enrollment Form'!P236=\"\",\"N\",\"Y\")))","v":""},{"$f":"IF($B229=\"N\",\"\",IF(AND('Enrollment Form'!$C236=\"ROC\",'Enrollment Form'!$DR236<>\"\"),\"Y\",IF(AND('Enrollment Form'!$C236=\"ROC\",'Enrollment Form'!$DR236=\"\"),\"N\",IF(AND('Enrollment Form'!$C236=\"Enroll\",'Enrollment Form'!$B236=\"Subscriber\",'Enrollment Form'!$CX236=\"No\",'Enrollment Form'!$DR236=\"\"),\"N\",IF(AND('Enrollment Form'!$C236=\"Enroll\",'Enrollment Form'!$B236=\"Subscriber\",'Enrollment Form'!$CX236=\"Yes\"),\"-\",\"Y\")))))","v":""},{"$f":"IF($B229=\"N\",\"\",IF(AND('Enrollment Form'!$C236=\"ROC\",'Enrollment Form'!$DS236<>\"\"),\"Y\",IF(AND('Enrollment Form'!$C236=\"ROC\",'Enrollment Form'!$DS236=\"\"),\"N\",IF(AND('Enrollment Form'!$C236=\"Enroll\",'Enrollment Form'!$B236=\"Subscriber\",'Enrollment Form'!$CX236=\"No\",'Enrollment Form'!$DS236=\"\"),\"N\",IF(AND('Enrollment Form'!$C236=\"Enroll\",'Enrollment Form'!$B236=\"Subscriber\",'Enrollment Form'!$CX236=\"Yes\"),\"-\",\"Y\")))))","v":""},{"$f":"IF('Enrollment Form'!AH236=\"\",\"\",IF(ISERROR(SEARCH(\".\",'Enrollment Form'!AH236,SEARCH(\"@\",'Enrollment Form'!AH236))),\"N\",\"Y\"))","v":""},{"$f":"IF(OR($B229=\"N\",'Enrollment Form'!$G236=\"\"),\"\",IF('Enrollment Form'!$B236<>\"Subscriber\",\"-\",IF(COUNTIF('Enrollment Form'!$AV236:$AW236,\"Yes\")=2,\"N\",\"Y\")))","v":""},{"$f":"IF(OR('Enrollment Form'!$CJ236=\"\",'Enrollment Form'!$CJ236=\"No\"),\"-\",IF(AND('Enrollment Form'!$CJ236=\"Yes\",'Enrollment Form'!$CK236=\"\"),\"N\",\"Y\"))","v":"-"},{"$f":"IF(OR('Enrollment Form'!$CL236=\"\",'Enrollment Form'!$CL236=\"No\"),\"-\",IF(AND('Enrollment Form'!$CL236=\"Yes\",'Enrollment Form'!$CM236=\"\"),\"N\",\"Y\"))","v":"-"},{"$f":"IF(OR('Enrollment Form'!$CN236=\"\",'Enrollment Form'!$CN236=\"No\"),\"-\",IF(AND('Enrollment Form'!$CN236=\"Yes\",'Enrollment Form'!$CO236=\"\"),\"N\",\"Y\"))","v":"-"},{"$f":"IF(OR('Enrollment Form'!$CN236=\"\",'Enrollment Form'!$CN236=\"No\"),\"-\",IF(AND('Enrollment Form'!$CN236=\"Yes\",'Enrollment Form'!$CP236=\"\"),\"N\",\"Y\"))","v":"-"},{"$f":"IF('Enrollment Form'!B236<>\"Subscriber\",\"-\",IF(AND('Enrollment Form'!B236=\"Subscriber\",'Enrollment Form'!C236=\"Enroll\",'Enrollment Form'!AA236=\"\"),\"N\",\"Y\"))","v":"-"},{"$f":"IF(OR('Enrollment Form'!B236=\"Subscriber\",'Enrollment Form'!B236=\"\"),\"-\",IF('Enrollment Form'!BP236=\"\",\"N\",\"Y\"))","v":"-"},{"$f":"IF('Enrollment Form'!B236<>\"Subscriber\",\"-\",IF(AND('Enrollment Form'!B236=\"Subscriber\",'Enrollment Form'!G236=\"\"),\"N\",\"Y\"))","v":"-"},{"$f":"IF('Enrollment Form'!A236=\"\",\"\",IF('Enrollment Form'!B236=\"Subscriber\",\"-\",IF(AND('Enrollment Form'!B236<>\"Subscriber\",'Enrollment Form'!G236='Enrollment Form'!H236),\"N\",\"Y\")))","v":""},0]
[237,{"$f":"IF('Enrollment Form'!$A237<>\"\",\"Y\",\"N\")","v":"N"},{"$f":"IF(AND('Enrollment Form'!$B237=\"\",'Enrollment Form'!$C237<>\"\"),\"N\",IF($B230=\"N\",\"\",\"Y\"))","v":""},{"$f":"IF(OR($B230=\"N\",'Enrollment Form'!G237=\"\"),\"\",IF('Enrollment Form'!$B237<>\"Subscriber\",\"\",IF('Enrollment Form'!$G237='Enrollment Form'!$H237,\"Y\",\"N\")))","v":""},{"$f":"IF($B230=\"N\",\"\",IF(AND(COUNTIFS('Enrollment Form'!$H$11:$H$1000,'Enrollment Form'!$H237,'Enrollment Form'!$B$11:$B$1000,'Enrollment Form'!$B237)>1,'Enrollment Form'!$H237<>\"\"),\"N\",\"Y\"))","v":""},{"$f":"IF($B230=\"N\",\"\",IF(LEN('Enrollment Form'!$Y237)=0,\"\",IF(LEN('Enrollment Form'!$Y237)<>5,\"N\",\"Y\")))","v":""},{"$f":"IF($B230=\"N\",\"\",IF(LEN('Enrollment Form'!$AD237=0),\"\",IF(LEN('Enrollment Form'!$AD237)<>5,\"N\",\"Y\")))","v":""},{"$f":"IF($B230=\"N\",\"\",IF(LEN('Enrollment Form'!$BS237=0),\"\",IF(LEN('Enrollment Form'!$BS237)<>5,\"N\",\"Y\")))","v":""},{"$f":"IF($B230=\"N\",\"\",IF(LEN('Enrollment Form'!$AE237)=0,\"\",IF(LEN('Enrollment Form'!$AE237)<>10,\"N\",\"Y\")))","v":""},{"$f":"IF($B230=\"N\",\"\",IF(LEN('Enrollment Form'!$AF237)=0,\"\",IF(LEN('Enrollment Form'!$AF237)<>10,\"N\",\"Y\")))","v":""},{"$f":"IF('Enrollment Form'!$O237<>\"Graded\",\"-\",IF(AND('Enrollment Form'!$O237=\"Graded\",'Enrollment Form'!$AR237<>\"\"),\"Y\",\"N\"))","v":"-"},{"$f":"IF($B230=\"N\",\"\",IF(OR('Enrollment Form'!$B237<>\"Subscriber\",'Enrollment Form'!$C237=\"ROC\"),\"-\",IF(AND('Enrollment Form'!$B237=\"Subscriber\",'Enrollment Form'!$C237=\"Enroll\",'Enrollment Form'!$AJ237<>\"\"),\"Y\",\"N\")))","v":""},{"$f":"IF($B230=\"N\",\"\",IF(OR('Enrollment Form'!$B237<>\"Subscriber\",'Enrollment Form'!$C237=\"ROC\"),\"-\",IF(AND('Enrollment Form'!$B237=\"Subscriber\",'Enrollment Form'!$C237=\"Enroll\",'Enrollment Form'!$AK237<>\"\"),\"Y\",\"N\")))","v":""},{"$f":"IF($B230=\"N\",\"\",IF(OR('Enrollment Form'!$B237<>\"Subscriber\",'Enrollment Form'!$C237=\"ROC\"),\"-\",IF(AND('Enrollment Form'!$B237=\"Subscriber\",'Enrollment Form'!$C237=\"Enroll\",'Enrollment Form'!$AL237<>\"\"),\"Y\",\"N\")))","v":""},{"$f":"IF($B230=\"N\",\"\",IF(OR('Enrollment Form'!$B237<>\"Subscriber\",'Enrollment Form'!$C237=\"ROC\"),\"-\",IF(AND('Enrollment Form'!$B237=\"Subscriber\",'Enrollment Form'!$C237=\"Enroll\",'Enrollment Form'!$AP237<>\"\"),\"Y\",\"N\")))","v":""},{"$f":"IF($B230=\"N\",\"\",IF(OR('Enrollment Form'!$B237<>\"Subscriber\",'Enrollment Form'!$C237=\"ROC\"),\"-\",IF(AND('Enrollment Form'!$B237=\"Subscriber\",'Enrollment Form'!$C237=\"Enroll\",'Enrollment Form'!$AQ237<>\"\"),\"Y\",\"N\")))","v":""},{"$f":"IF($B230=\"N\",\"\",IF(OR('Enrollment Form'!$B237<>\"Subscriber\",'Enrollment Form'!$C237=\"ROC\"),\"-\",IF(AND('Enrollment Form'!$B237=\"Subscriber\",'Enrollment Form'!$C237=\"Enroll\",'Enrollment Form'!$AS237<>\"\"),\"Y\",\"N\")))","v":""},{"$f":"IF($B230=\"N\",\"\",IF($Q230=\"-\",\"-\",IF(AND($Q230=\"Y\",'Enrollment Form'!$AS237=\"No\"),\"-\",IF(AND($Q230=\"Y\",'Enrollment Form'!$AS237=\"Yes\",'Enrollment Form'!$AT237<>\"\"),\"Y\",\"N\"))))","v":""},{"$f":"IF($B230=\"N\",\"\",IF(OR('Enrollment Form'!$B237<>\"Subscriber\",'Enrollment Form'!$C237=\"ROC\"),\"-\",IF(AND('Enrollment Form'!$B237=\"Subscriber\",'Enrollment Form'!$C237=\"Enroll\",'Enrollment Form'!$CV237<>\"\"),\"Y\",\"N\")))","v":""},{"$f":"IF($B230=\"N\",\"\",IF($S230=\"-\",\"-\",IF(AND($S230=\"Y\",'Enrollment Form'!$CV237=\"No\"),\"-\",IF(AND($S230=\"Y\",'Enrollment Form'!$CV237=\"Yes\",'Enrollment Form'!$CW237<>\"\"),\"Y\",\"N\"))))","v":""},{"$f":"IF(OR('Enrollment Form'!$AY237=\"Yes\",'Enrollment Form'!$AY237=\"\"),\"-\",IF(OR(AND('Enrollment Form'!$AY237=\"No\",ISERROR(FIND(\"HMO\",VLOOKUP('Enrollment Form'!G237,'Enrollment Form'!H$11:J$1000,3,FALSE),1))=FALSE,COUNTA('Enrollment Form'!$AZ237:$BC237)=4),AND('Enrollment Form'!$AY237=\"No\",ISERROR(FIND(\"HMO\",VLOOKUP('Enrollment Form'!G237,'Enrollment Form'!H$11:J$1000,3,FALSE),1))=FALSE,COUNTA('Enrollment Form'!$BT237:$BW237)=4)),\"Y\",\"N\"))","v":"-"},{"$f":"IF($B230=\"N\",\"\",IF('Enrollment Form'!$B237=\"Subscriber\",\"-\",IF(COUNTA('Enrollment Form'!$BL237,'Enrollment Form'!$BN237)=2,\"Y\",\"N\")))","v":""},{"$f":"IF($B230=\"N\",\"\",IF(OR('Enrollment Form'!$AX237=\"\",'Enrollment Form'!$AX237=\"No\"),\"-\",IF(AND('Enrollment Form'!$AX237=\"Yes\",COUNTA('Enrollment Form'!$CR237)=1),\"Y\",\"N\")))","v":""},{"$f":"IF(OR('Enrollment Form'!$CR237=\"\",'Enrollment Form'!$CR237=\"No\"),\"-\",IF(COUNTA('Enrollment Form'!$CT237:$CU237)=2,\"Y\",\"N\"))","v":"-"},{"$f":"IF($B230=\"N\",\"\",IF(COUNTIF('Enrollment Form'!$DG237:$DP237,\"Other\")=COUNTA('Enrollment Form'!$DK237,'Enrollment Form'!$DH237,'Enrollment Form'!$DN237,'Enrollment Form'!$DQ237),\"Y\",\"N\"))","v":""},{"$f":"IF($B230=\"N\",\"\",IF(OR('Enrollment Form'!B237<>\"Subscriber\",'Enrollment Form'!C237=\"ROC\",COUNTIF('Enrollment Form'!AV237:AW237,\"Yes\")>=1),\"-\",IF(AND('Enrollment Form'!C237=\"Enroll\",COUNTIF('Enrollment Form'!AV237:AW237,\"No\")=2,'Enrollment Form'!AX237=\"\"),\"N\",\"Y\")))","v":""},{"$f":"IF(OR(B230=\"N\",'Enrollment Form'!B237<>\"Subscriber\",'Enrollment Form'!C237=\"ROC\",'Enrollment Form'!O237<>\"Multiple of Salary\"),\"-\",IF(COUNTA('Enrollment Form'!T237:U237)<2,\"N\",\"Y\"))","v":"-"},{"$f":"IF(B230=\"N\",\"\",IF(OR('Enrollment Form'!C237=\"ROC\",'Enrollment Form'!B237<>\"Subscriber\",'Enrollment Form'!O237=\"Waive\",'Enrollment Form'!O237=\"\"),\"-\",IF('Enrollment Form'!P237=\"\",\"N\",\"Y\")))","v":""},{"$f":"IF($B230=\"N\",\"\",IF(AND('Enrollment Form'!$C237=\"ROC\",'Enrollment Form'!$DR237<>\"\"),\"Y\",IF(AND('Enrollment Form'!$C237=\"ROC\",'Enrollment Form'!$DR237=\"\"),\"N\",IF(AND('Enrollment Form'!$C237=\"Enroll\",'Enrollment Form'!$B237=\"Subscriber\",'Enrollment Form'!$CX237=\"No\",'Enrollment Form'!$DR237=\"\"),\"N\",IF(AND('Enrollment Form'!$C237=\"Enroll\",'Enrollment Form'!$B237=\"Subscriber\",'Enrollment Form'!$CX237=\"Yes\"),\"-\",\"Y\")))))","v":""},{"$f":"IF($B230=\"N\",\"\",IF(AND('Enrollment Form'!$C237=\"ROC\",'Enrollment Form'!$DS237<>\"\"),\"Y\",IF(AND('Enrollment Form'!$C237=\"ROC\",'Enrollment Form'!$DS237=\"\"),\"N\",IF(AND('Enrollment Form'!$C237=\"Enroll\",'Enrollment Form'!$B237=\"Subscriber\",'Enrollment Form'!$CX237=\"No\",'Enrollment Form'!$DS237=\"\"),\"N\",IF(AND('Enrollment Form'!$C237=\"Enroll\",'Enrollment Form'!$B237=\"Subscriber\",'Enrollment Form'!$CX237=\"Yes\"),\"-\",\"Y\")))))","v":""},{"$f":"IF('Enrollment Form'!AH237=\"\",\"\",IF(ISERROR(SEARCH(\".\",'Enrollment Form'!AH237,SEARCH(\"@\",'Enrollment Form'!AH237))),\"N\",\"Y\"))","v":""},{"$f":"IF(OR($B230=\"N\",'Enrollment Form'!$G237=\"\"),\"\",IF('Enrollment Form'!$B237<>\"Subscriber\",\"-\",IF(COUNTIF('Enrollment Form'!$AV237:$AW237,\"Yes\")=2,\"N\",\"Y\")))","v":""},{"$f":"IF(OR('Enrollment Form'!$CJ237=\"\",'Enrollment Form'!$CJ237=\"No\"),\"-\",IF(AND('Enrollment Form'!$CJ237=\"Yes\",'Enrollment Form'!$CK237=\"\"),\"N\",\"Y\"))","v":"-"},{"$f":"IF(OR('Enrollment Form'!$CL237=\"\",'Enrollment Form'!$CL237=\"No\"),\"-\",IF(AND('Enrollment Form'!$CL237=\"Yes\",'Enrollment Form'!$CM237=\"\"),\"N\",\"Y\"))","v":"-"},{"$f":"IF(OR('Enrollment Form'!$CN237=\"\",'Enrollment Form'!$CN237=\"No\"),\"-\",IF(AND('Enrollment Form'!$CN237=\"Yes\",'Enrollment Form'!$CO237=\"\"),\"N\",\"Y\"))","v":"-"},{"$f":"IF(OR('Enrollment Form'!$CN237=\"\",'Enrollment Form'!$CN237=\"No\"),\"-\",IF(AND('Enrollment Form'!$CN237=\"Yes\",'Enrollment Form'!$CP237=\"\"),\"N\",\"Y\"))","v":"-"},{"$f":"IF('Enrollment Form'!B237<>\"Subscriber\",\"-\",IF(AND('Enrollment Form'!B237=\"Subscriber\",'Enrollment Form'!C237=\"Enroll\",'Enrollment Form'!AA237=\"\"),\"N\",\"Y\"))","v":"-"},{"$f":"IF(OR('Enrollment Form'!B237=\"Subscriber\",'Enrollment Form'!B237=\"\"),\"-\",IF('Enrollment Form'!BP237=\"\",\"N\",\"Y\"))","v":"-"},{"$f":"IF('Enrollment Form'!B237<>\"Subscriber\",\"-\",IF(AND('Enrollment Form'!B237=\"Subscriber\",'Enrollment Form'!G237=\"\"),\"N\",\"Y\"))","v":"-"},{"$f":"IF('Enrollment Form'!A237=\"\",\"\",IF('Enrollment Form'!B237=\"Subscriber\",\"-\",IF(AND('Enrollment Form'!B237<>\"Subscriber\",'Enrollment Form'!G237='Enrollment Form'!H237),\"N\",\"Y\")))","v":""},0]
[238,{"$f":"IF('Enrollment Form'!$A238<>\"\",\"Y\",\"N\")","v":"N"},{"$f":"IF(AND('Enrollment Form'!$B238=\"\",'Enrollment Form'!$C238<>\"\"),\"N\",IF($B231=\"N\",\"\",\"Y\"))","v":""},{"$f":"IF(OR($B231=\"N\",'Enrollment Form'!G238=\"\"),\"\",IF('Enrollment Form'!$B238<>\"Subscriber\",\"\",IF('Enrollment Form'!$G238='Enrollment Form'!$H238,\"Y\",\"N\")))","v":""},{"$f":"IF($B231=\"N\",\"\",IF(AND(COUNTIFS('Enrollment Form'!$H$11:$H$1000,'Enrollment Form'!$H238,'Enrollment Form'!$B$11:$B$1000,'Enrollment Form'!$B238)>1,'Enrollment Form'!$H238<>\"\"),\"N\",\"Y\"))","v":""},{"$f":"IF($B231=\"N\",\"\",IF(LEN('Enrollment Form'!$Y238)=0,\"\",IF(LEN('Enrollment Form'!$Y238)<>5,\"N\",\"Y\")))","v":""},{"$f":"IF($B231=\"N\",\"\",IF(LEN('Enrollment Form'!$AD238=0),\"\",IF(LEN('Enrollment Form'!$AD238)<>5,\"N\",\"Y\")))","v":""},{"$f":"IF($B231=\"N\",\"\",IF(LEN('Enrollment Form'!$BS238=0),\"\",IF(LEN('Enrollment Form'!$BS238)<>5,\"N\",\"Y\")))","v":""},{"$f":"IF($B231=\"N\",\"\",IF(LEN('Enrollment Form'!$AE238)=0,\"\",IF(LEN('Enrollment Form'!$AE238)<>10,\"N\",\"Y\")))","v":""},{"$f":"IF($B231=\"N\",\"\",IF(LEN('Enrollment Form'!$AF238)=0,\"\",IF(LEN('Enrollment Form'!$AF238)<>10,\"N\",\"Y\")))","v":""},{"$f":"IF('Enrollment Form'!$O238<>\"Graded\",\"-\",IF(AND('Enrollment Form'!$O238=\"Graded\",'Enrollment Form'!$AR238<>\"\"),\"Y\",\"N\"))","v":"-"},{"$f":"IF($B231=\"N\",\"\",IF(OR('Enrollment Form'!$B238<>\"Subscriber\",'Enrollment Form'!$C238=\"ROC\"),\"-\",IF(AND('Enrollment Form'!$B238=\"Subscriber\",'Enrollment Form'!$C238=\"Enroll\",'Enrollment Form'!$AJ238<>\"\"),\"Y\",\"N\")))","v":""},{"$f":"IF($B231=\"N\",\"\",IF(OR('Enrollment Form'!$B238<>\"Subscriber\",'Enrollment Form'!$C238=\"ROC\"),\"-\",IF(AND('Enrollment Form'!$B238=\"Subscriber\",'Enrollment Form'!$C238=\"Enroll\",'Enrollment Form'!$AK238<>\"\"),\"Y\",\"N\")))","v":""},{"$f":"IF($B231=\"N\",\"\",IF(OR('Enrollment Form'!$B238<>\"Subscriber\",'Enrollment Form'!$C238=\"ROC\"),\"-\",IF(AND('Enrollment Form'!$B238=\"Subscriber\",'Enrollment Form'!$C238=\"Enroll\",'Enrollment Form'!$AL238<>\"\"),\"Y\",\"N\")))","v":""},{"$f":"IF($B231=\"N\",\"\",IF(OR('Enrollment Form'!$B238<>\"Subscriber\",'Enrollment Form'!$C238=\"ROC\"),\"-\",IF(AND('Enrollment Form'!$B238=\"Subscriber\",'Enrollment Form'!$C238=\"Enroll\",'Enrollment Form'!$AP238<>\"\"),\"Y\",\"N\")))","v":""},{"$f":"IF($B231=\"N\",\"\",IF(OR('Enrollment Form'!$B238<>\"Subscriber\",'Enrollment Form'!$C238=\"ROC\"),\"-\",IF(AND('Enrollment Form'!$B238=\"Subscriber\",'Enrollment Form'!$C238=\"Enroll\",'Enrollment Form'!$AQ238<>\"\"),\"Y\",\"N\")))","v":""},{"$f":"IF($B231=\"N\",\"\",IF(OR('Enrollment Form'!$B238<>\"Subscriber\",'Enrollment Form'!$C238=\"ROC\"),\"-\",IF(AND('Enrollment Form'!$B238=\"Subscriber\",'Enrollment Form'!$C238=\"Enroll\",'Enrollment Form'!$AS238<>\"\"),\"Y\",\"N\")))","v":""},{"$f":"IF($B231=\"N\",\"\",IF($Q231=\"-\",\"-\",IF(AND($Q231=\"Y\",'Enrollment Form'!$AS238=\"No\"),\"-\",IF(AND($Q231=\"Y\",'Enrollment Form'!$AS238=\"Yes\",'Enrollment Form'!$AT238<>\"\"),\"Y\",\"N\"))))","v":""},{"$f":"IF($B231=\"N\",\"\",IF(OR('Enrollment Form'!$B238<>\"Subscriber\",'Enrollment Form'!$C238=\"ROC\"),\"-\",IF(AND('Enrollment Form'!$B238=\"Subscriber\",'Enrollment Form'!$C238=\"Enroll\",'Enrollment Form'!$CV238<>\"\"),\"Y\",\"N\")))","v":""},{"$f":"IF($B231=\"N\",\"\",IF($S231=\"-\",\"-\",IF(AND($S231=\"Y\",'Enrollment Form'!$CV238=\"No\"),\"-\",IF(AND($S231=\"Y\",'Enrollment Form'!$CV238=\"Yes\",'Enrollment Form'!$CW238<>\"\"),\"Y\",\"N\"))))","v":""},{"$f":"IF(OR('Enrollment Form'!$AY238=\"Yes\",'Enrollment Form'!$AY238=\"\"),\"-\",IF(OR(AND('Enrollment Form'!$AY238=\"No\",ISERROR(FIND(\"HMO\",VLOOKUP('Enrollment Form'!G238,'Enrollment Form'!H$11:J$1000,3,FALSE),1))=FALSE,COUNTA('Enrollment Form'!$AZ238:$BC238)=4),AND('Enrollment Form'!$AY238=\"No\",ISERROR(FIND(\"HMO\",VLOOKUP('Enrollment Form'!G238,'Enrollment Form'!H$11:J$1000,3,FALSE),1))=FALSE,COUNTA('Enrollment Form'!$BT238:$BW238)=4)),\"Y\",\"N\"))","v":"-"},{"$f":"IF($B231=\"N\",\"\",IF('Enrollment Form'!$B238=\"Subscriber\",\"-\",IF(COUNTA('Enrollment Form'!$BL238,'Enrollment Form'!$BN238)=2,\"Y\",\"N\")))","v":""},{"$f":"IF($B231=\"N\",\"\",IF(OR('Enrollment Form'!$AX238=\"\",'Enrollment Form'!$AX238=\"No\"),\"-\",IF(AND('Enrollment Form'!$AX238=\"Yes\",COUNTA('Enrollment Form'!$CR238)=1),\"Y\",\"N\")))","v":""},{"$f":"IF(OR('Enrollment Form'!$CR238=\"\",'Enrollment Form'!$CR238=\"No\"),\"-\",IF(COUNTA('Enrollment Form'!$CT238:$CU238)=2,\"Y\",\"N\"))","v":"-"},{"$f":"IF($B231=\"N\",\"\",IF(COUNTIF('Enrollment Form'!$DG238:$DP238,\"Other\")=COUNTA('Enrollment Form'!$DK238,'Enrollment Form'!$DH238,'Enrollment Form'!$DN238,'Enrollment Form'!$DQ238),\"Y\",\"N\"))","v":""},{"$f":"IF($B231=\"N\",\"\",IF(OR('Enrollment Form'!B238<>\"Subscriber\",'Enrollment Form'!C238=\"ROC\",COUNTIF('Enrollment Form'!AV238:AW238,\"Yes\")>=1),\"-\",IF(AND('Enrollment Form'!C238=\"Enroll\",COUNTIF('Enrollment Form'!AV238:AW238,\"No\")=2,'Enrollment Form'!AX238=\"\"),\"N\",\"Y\")))","v":""},{"$f":"IF(OR(B231=\"N\",'Enrollment Form'!B238<>\"Subscriber\",'Enrollment Form'!C238=\"ROC\",'Enrollment Form'!O238<>\"Multiple of Salary\"),\"-\",IF(COUNTA('Enrollment Form'!T238:U238)<2,\"N\",\"Y\"))","v":"-"},{"$f":"IF(B231=\"N\",\"\",IF(OR('Enrollment Form'!C238=\"ROC\",'Enrollment Form'!B238<>\"Subscriber\",'Enrollment Form'!O238=\"Waive\",'Enrollment Form'!O238=\"\"),\"-\",IF('Enrollment Form'!P238=\"\",\"N\",\"Y\")))","v":""},{"$f":"IF($B231=\"N\",\"\",IF(AND('Enrollment Form'!$C238=\"ROC\",'Enrollment Form'!$DR238<>\"\"),\"Y\",IF(AND('Enrollment Form'!$C238=\"ROC\",'Enrollment Form'!$DR238=\"\"),\"N\",IF(AND('Enrollment Form'!$C238=\"Enroll\",'Enrollment Form'!$B238=\"Subscriber\",'Enrollment Form'!$CX238=\"No\",'Enrollment Form'!$DR238=\"\"),\"N\",IF(AND('Enrollment Form'!$C238=\"Enroll\",'Enrollment Form'!$B238=\"Subscriber\",'Enrollment Form'!$CX238=\"Yes\"),\"-\",\"Y\")))))","v":""},{"$f":"IF($B231=\"N\",\"\",IF(AND('Enrollment Form'!$C238=\"ROC\",'Enrollment Form'!$DS238<>\"\"),\"Y\",IF(AND('Enrollment Form'!$C238=\"ROC\",'Enrollment Form'!$DS238=\"\"),\"N\",IF(AND('Enrollment Form'!$C238=\"Enroll\",'Enrollment Form'!$B238=\"Subscriber\",'Enrollment Form'!$CX238=\"No\",'Enrollment Form'!$DS238=\"\"),\"N\",IF(AND('Enrollment Form'!$C238=\"Enroll\",'Enrollment Form'!$B238=\"Subscriber\",'Enrollment Form'!$CX238=\"Yes\"),\"-\",\"Y\")))))","v":""},{"$f":"IF('Enrollment Form'!AH238=\"\",\"\",IF(ISERROR(SEARCH(\".\",'Enrollment Form'!AH238,SEARCH(\"@\",'Enrollment Form'!AH238))),\"N\",\"Y\"))","v":""},{"$f":"IF(OR($B231=\"N\",'Enrollment Form'!$G238=\"\"),\"\",IF('Enrollment Form'!$B238<>\"Subscriber\",\"-\",IF(COUNTIF('Enrollment Form'!$AV238:$AW238,\"Yes\")=2,\"N\",\"Y\")))","v":""},{"$f":"IF(OR('Enrollment Form'!$CJ238=\"\",'Enrollment Form'!$CJ238=\"No\"),\"-\",IF(AND('Enrollment Form'!$CJ238=\"Yes\",'Enrollment Form'!$CK238=\"\"),\"N\",\"Y\"))","v":"-"},{"$f":"IF(OR('Enrollment Form'!$CL238=\"\",'Enrollment Form'!$CL238=\"No\"),\"-\",IF(AND('Enrollment Form'!$CL238=\"Yes\",'Enrollment Form'!$CM238=\"\"),\"N\",\"Y\"))","v":"-"},{"$f":"IF(OR('Enrollment Form'!$CN238=\"\",'Enrollment Form'!$CN238=\"No\"),\"-\",IF(AND('Enrollment Form'!$CN238=\"Yes\",'Enrollment Form'!$CO238=\"\"),\"N\",\"Y\"))","v":"-"},{"$f":"IF(OR('Enrollment Form'!$CN238=\"\",'Enrollment Form'!$CN238=\"No\"),\"-\",IF(AND('Enrollment Form'!$CN238=\"Yes\",'Enrollment Form'!$CP238=\"\"),\"N\",\"Y\"))","v":"-"},{"$f":"IF('Enrollment Form'!B238<>\"Subscriber\",\"-\",IF(AND('Enrollment Form'!B238=\"Subscriber\",'Enrollment Form'!C238=\"Enroll\",'Enrollment Form'!AA238=\"\"),\"N\",\"Y\"))","v":"-"},{"$f":"IF(OR('Enrollment Form'!B238=\"Subscriber\",'Enrollment Form'!B238=\"\"),\"-\",IF('Enrollment Form'!BP238=\"\",\"N\",\"Y\"))","v":"-"},{"$f":"IF('Enrollment Form'!B238<>\"Subscriber\",\"-\",IF(AND('Enrollment Form'!B238=\"Subscriber\",'Enrollment Form'!G238=\"\"),\"N\",\"Y\"))","v":"-"},{"$f":"IF('Enrollment Form'!A238=\"\",\"\",IF('Enrollment Form'!B238=\"Subscriber\",\"-\",IF(AND('Enrollment Form'!B238<>\"Subscriber\",'Enrollment Form'!G238='Enrollment Form'!H238),\"N\",\"Y\")))","v":""},0]
[239,{"$f":"IF('Enrollment Form'!$A239<>\"\",\"Y\",\"N\")","v":"N"},{"$f":"IF(AND('Enrollment Form'!$B239=\"\",'Enrollment Form'!$C239<>\"\"),\"N\",IF($B232=\"N\",\"\",\"Y\"))","v":""},{"$f":"IF(OR($B232=\"N\",'Enrollment Form'!G239=\"\"),\"\",IF('Enrollment Form'!$B239<>\"Subscriber\",\"\",IF('Enrollment Form'!$G239='Enrollment Form'!$H239,\"Y\",\"N\")))","v":""},{"$f":"IF($B232=\"N\",\"\",IF(AND(COUNTIFS('Enrollment Form'!$H$11:$H$1000,'Enrollment Form'!$H239,'Enrollment Form'!$B$11:$B$1000,'Enrollment Form'!$B239)>1,'Enrollment Form'!$H239<>\"\"),\"N\",\"Y\"))","v":""},{"$f":"IF($B232=\"N\",\"\",IF(LEN('Enrollment Form'!$Y239)=0,\"\",IF(LEN('Enrollment Form'!$Y239)<>5,\"N\",\"Y\")))","v":""},{"$f":"IF($B232=\"N\",\"\",IF(LEN('Enrollment Form'!$AD239=0),\"\",IF(LEN('Enrollment Form'!$AD239)<>5,\"N\",\"Y\")))","v":""},{"$f":"IF($B232=\"N\",\"\",IF(LEN('Enrollment Form'!$BS239=0),\"\",IF(LEN('Enrollment Form'!$BS239)<>5,\"N\",\"Y\")))","v":""},{"$f":"IF($B232=\"N\",\"\",IF(LEN('Enrollment Form'!$AE239)=0,\"\",IF(LEN('Enrollment Form'!$AE239)<>10,\"N\",\"Y\")))","v":""},{"$f":"IF($B232=\"N\",\"\",IF(LEN('Enrollment Form'!$AF239)=0,\"\",IF(LEN('Enrollment Form'!$AF239)<>10,\"N\",\"Y\")))","v":""},{"$f":"IF('Enrollment Form'!$O239<>\"Graded\",\"-\",IF(AND('Enrollment Form'!$O239=\"Graded\",'Enrollment Form'!$AR239<>\"\"),\"Y\",\"N\"))","v":"-"},{"$f":"IF($B232=\"N\",\"\",IF(OR('Enrollment Form'!$B239<>\"Subscriber\",'Enrollment Form'!$C239=\"ROC\"),\"-\",IF(AND('Enrollment Form'!$B239=\"Subscriber\",'Enrollment Form'!$C239=\"Enroll\",'Enrollment Form'!$AJ239<>\"\"),\"Y\",\"N\")))","v":""},{"$f":"IF($B232=\"N\",\"\",IF(OR('Enrollment Form'!$B239<>\"Subscriber\",'Enrollment Form'!$C239=\"ROC\"),\"-\",IF(AND('Enrollment Form'!$B239=\"Subscriber\",'Enrollment Form'!$C239=\"Enroll\",'Enrollment Form'!$AK239<>\"\"),\"Y\",\"N\")))","v":""},{"$f":"IF($B232=\"N\",\"\",IF(OR('Enrollment Form'!$B239<>\"Subscriber\",'Enrollment Form'!$C239=\"ROC\"),\"-\",IF(AND('Enrollment Form'!$B239=\"Subscriber\",'Enrollment Form'!$C239=\"Enroll\",'Enrollment Form'!$AL239<>\"\"),\"Y\",\"N\")))","v":""},{"$f":"IF($B232=\"N\",\"\",IF(OR('Enrollment Form'!$B239<>\"Subscriber\",'Enrollment Form'!$C239=\"ROC\"),\"-\",IF(AND('Enrollment Form'!$B239=\"Subscriber\",'Enrollment Form'!$C239=\"Enroll\",'Enrollment Form'!$AP239<>\"\"),\"Y\",\"N\")))","v":""},{"$f":"IF($B232=\"N\",\"\",IF(OR('Enrollment Form'!$B239<>\"Subscriber\",'Enrollment Form'!$C239=\"ROC\"),\"-\",IF(AND('Enrollment Form'!$B239=\"Subscriber\",'Enrollment Form'!$C239=\"Enroll\",'Enrollment Form'!$AQ239<>\"\"),\"Y\",\"N\")))","v":""},{"$f":"IF($B232=\"N\",\"\",IF(OR('Enrollment Form'!$B239<>\"Subscriber\",'Enrollment Form'!$C239=\"ROC\"),\"-\",IF(AND('Enrollment Form'!$B239=\"Subscriber\",'Enrollment Form'!$C239=\"Enroll\",'Enrollment Form'!$AS239<>\"\"),\"Y\",\"N\")))","v":""},{"$f":"IF($B232=\"N\",\"\",IF($Q232=\"-\",\"-\",IF(AND($Q232=\"Y\",'Enrollment Form'!$AS239=\"No\"),\"-\",IF(AND($Q232=\"Y\",'Enrollment Form'!$AS239=\"Yes\",'Enrollment Form'!$AT239<>\"\"),\"Y\",\"N\"))))","v":""},{"$f":"IF($B232=\"N\",\"\",IF(OR('Enrollment Form'!$B239<>\"Subscriber\",'Enrollment Form'!$C239=\"ROC\"),\"-\",IF(AND('Enrollment Form'!$B239=\"Subscriber\",'Enrollment Form'!$C239=\"Enroll\",'Enrollment Form'!$CV239<>\"\"),\"Y\",\"N\")))","v":""},{"$f":"IF($B232=\"N\",\"\",IF($S232=\"-\",\"-\",IF(AND($S232=\"Y\",'Enrollment Form'!$CV239=\"No\"),\"-\",IF(AND($S232=\"Y\",'Enrollment Form'!$CV239=\"Yes\",'Enrollment Form'!$CW239<>\"\"),\"Y\",\"N\"))))","v":""},{"$f":"IF(OR('Enrollment Form'!$AY239=\"Yes\",'Enrollment Form'!$AY239=\"\"),\"-\",IF(OR(AND('Enrollment Form'!$AY239=\"No\",ISERROR(FIND(\"HMO\",VLOOKUP('Enrollment Form'!G239,'Enrollment Form'!H$11:J$1000,3,FALSE),1))=FALSE,COUNTA('Enrollment Form'!$AZ239:$BC239)=4),AND('Enrollment Form'!$AY239=\"No\",ISERROR(FIND(\"HMO\",VLOOKUP('Enrollment Form'!G239,'Enrollment Form'!H$11:J$1000,3,FALSE),1))=FALSE,COUNTA('Enrollment Form'!$BT239:$BW239)=4)),\"Y\",\"N\"))","v":"-"},{"$f":"IF($B232=\"N\",\"\",IF('Enrollment Form'!$B239=\"Subscriber\",\"-\",IF(COUNTA('Enrollment Form'!$BL239,'Enrollment Form'!$BN239)=2,\"Y\",\"N\")))","v":""},{"$f":"IF($B232=\"N\",\"\",IF(OR('Enrollment Form'!$AX239=\"\",'Enrollment Form'!$AX239=\"No\"),\"-\",IF(AND('Enrollment Form'!$AX239=\"Yes\",COUNTA('Enrollment Form'!$CR239)=1),\"Y\",\"N\")))","v":""},{"$f":"IF(OR('Enrollment Form'!$CR239=\"\",'Enrollment Form'!$CR239=\"No\"),\"-\",IF(COUNTA('Enrollment Form'!$CT239:$CU239)=2,\"Y\",\"N\"))","v":"-"},{"$f":"IF($B232=\"N\",\"\",IF(COUNTIF('Enrollment Form'!$DG239:$DP239,\"Other\")=COUNTA('Enrollment Form'!$DK239,'Enrollment Form'!$DH239,'Enrollment Form'!$DN239,'Enrollment Form'!$DQ239),\"Y\",\"N\"))","v":""},{"$f":"IF($B232=\"N\",\"\",IF(OR('Enrollment Form'!B239<>\"Subscriber\",'Enrollment Form'!C239=\"ROC\",COUNTIF('Enrollment Form'!AV239:AW239,\"Yes\")>=1),\"-\",IF(AND('Enrollment Form'!C239=\"Enroll\",COUNTIF('Enrollment Form'!AV239:AW239,\"No\")=2,'Enrollment Form'!AX239=\"\"),\"N\",\"Y\")))","v":""},{"$f":"IF(OR(B232=\"N\",'Enrollment Form'!B239<>\"Subscriber\",'Enrollment Form'!C239=\"ROC\",'Enrollment Form'!O239<>\"Multiple of Salary\"),\"-\",IF(COUNTA('Enrollment Form'!T239:U239)<2,\"N\",\"Y\"))","v":"-"},{"$f":"IF(B232=\"N\",\"\",IF(OR('Enrollment Form'!C239=\"ROC\",'Enrollment Form'!B239<>\"Subscriber\",'Enrollment Form'!O239=\"Waive\",'Enrollment Form'!O239=\"\"),\"-\",IF('Enrollment Form'!P239=\"\",\"N\",\"Y\")))","v":""},{"$f":"IF($B232=\"N\",\"\",IF(AND('Enrollment Form'!$C239=\"ROC\",'Enrollment Form'!$DR239<>\"\"),\"Y\",IF(AND('Enrollment Form'!$C239=\"ROC\",'Enrollment Form'!$DR239=\"\"),\"N\",IF(AND('Enrollment Form'!$C239=\"Enroll\",'Enrollment Form'!$B239=\"Subscriber\",'Enrollment Form'!$CX239=\"No\",'Enrollment Form'!$DR239=\"\"),\"N\",IF(AND('Enrollment Form'!$C239=\"Enroll\",'Enrollment Form'!$B239=\"Subscriber\",'Enrollment Form'!$CX239=\"Yes\"),\"-\",\"Y\")))))","v":""},{"$f":"IF($B232=\"N\",\"\",IF(AND('Enrollment Form'!$C239=\"ROC\",'Enrollment Form'!$DS239<>\"\"),\"Y\",IF(AND('Enrollment Form'!$C239=\"ROC\",'Enrollment Form'!$DS239=\"\"),\"N\",IF(AND('Enrollment Form'!$C239=\"Enroll\",'Enrollment Form'!$B239=\"Subscriber\",'Enrollment Form'!$CX239=\"No\",'Enrollment Form'!$DS239=\"\"),\"N\",IF(AND('Enrollment Form'!$C239=\"Enroll\",'Enrollment Form'!$B239=\"Subscriber\",'Enrollment Form'!$CX239=\"Yes\"),\"-\",\"Y\")))))","v":""},{"$f":"IF('Enrollment Form'!AH239=\"\",\"\",IF(ISERROR(SEARCH(\".\",'Enrollment Form'!AH239,SEARCH(\"@\",'Enrollment Form'!AH239))),\"N\",\"Y\"))","v":""},{"$f":"IF(OR($B232=\"N\",'Enrollment Form'!$G239=\"\"),\"\",IF('Enrollment Form'!$B239<>\"Subscriber\",\"-\",IF(COUNTIF('Enrollment Form'!$AV239:$AW239,\"Yes\")=2,\"N\",\"Y\")))","v":""},{"$f":"IF(OR('Enrollment Form'!$CJ239=\"\",'Enrollment Form'!$CJ239=\"No\"),\"-\",IF(AND('Enrollment Form'!$CJ239=\"Yes\",'Enrollment Form'!$CK239=\"\"),\"N\",\"Y\"))","v":"-"},{"$f":"IF(OR('Enrollment Form'!$CL239=\"\",'Enrollment Form'!$CL239=\"No\"),\"-\",IF(AND('Enrollment Form'!$CL239=\"Yes\",'Enrollment Form'!$CM239=\"\"),\"N\",\"Y\"))","v":"-"},{"$f":"IF(OR('Enrollment Form'!$CN239=\"\",'Enrollment Form'!$CN239=\"No\"),\"-\",IF(AND('Enrollment Form'!$CN239=\"Yes\",'Enrollment Form'!$CO239=\"\"),\"N\",\"Y\"))","v":"-"},{"$f":"IF(OR('Enrollment Form'!$CN239=\"\",'Enrollment Form'!$CN239=\"No\"),\"-\",IF(AND('Enrollment Form'!$CN239=\"Yes\",'Enrollment Form'!$CP239=\"\"),\"N\",\"Y\"))","v":"-"},{"$f":"IF('Enrollment Form'!B239<>\"Subscriber\",\"-\",IF(AND('Enrollment Form'!B239=\"Subscriber\",'Enrollment Form'!C239=\"Enroll\",'Enrollment Form'!AA239=\"\"),\"N\",\"Y\"))","v":"-"},{"$f":"IF(OR('Enrollment Form'!B239=\"Subscriber\",'Enrollment Form'!B239=\"\"),\"-\",IF('Enrollment Form'!BP239=\"\",\"N\",\"Y\"))","v":"-"},{"$f":"IF('Enrollment Form'!B239<>\"Subscriber\",\"-\",IF(AND('Enrollment Form'!B239=\"Subscriber\",'Enrollment Form'!G239=\"\"),\"N\",\"Y\"))","v":"-"},{"$f":"IF('Enrollment Form'!A239=\"\",\"\",IF('Enrollment Form'!B239=\"Subscriber\",\"-\",IF(AND('Enrollment Form'!B239<>\"Subscriber\",'Enrollment Form'!G239='Enrollment Form'!H239),\"N\",\"Y\")))","v":""},0]
[240,{"$f":"IF('Enrollment Form'!$A240<>\"\",\"Y\",\"N\")","v":"N"},{"$f":"IF(AND('Enrollment Form'!$B240=\"\",'Enrollment Form'!$C240<>\"\"),\"N\",IF($B233=\"N\",\"\",\"Y\"))","v":""},{"$f":"IF(OR($B233=\"N\",'Enrollment Form'!G240=\"\"),\"\",IF('Enrollment Form'!$B240<>\"Subscriber\",\"\",IF('Enrollment Form'!$G240='Enrollment Form'!$H240,\"Y\",\"N\")))","v":""},{"$f":"IF($B233=\"N\",\"\",IF(AND(COUNTIFS('Enrollment Form'!$H$11:$H$1000,'Enrollment Form'!$H240,'Enrollment Form'!$B$11:$B$1000,'Enrollment Form'!$B240)>1,'Enrollment Form'!$H240<>\"\"),\"N\",\"Y\"))","v":""},{"$f":"IF($B233=\"N\",\"\",IF(LEN('Enrollment Form'!$Y240)=0,\"\",IF(LEN('Enrollment Form'!$Y240)<>5,\"N\",\"Y\")))","v":""},{"$f":"IF($B233=\"N\",\"\",IF(LEN('Enrollment Form'!$AD240=0),\"\",IF(LEN('Enrollment Form'!$AD240)<>5,\"N\",\"Y\")))","v":""},{"$f":"IF($B233=\"N\",\"\",IF(LEN('Enrollment Form'!$BS240=0),\"\",IF(LEN('Enrollment Form'!$BS240)<>5,\"N\",\"Y\")))","v":""},{"$f":"IF($B233=\"N\",\"\",IF(LEN('Enrollment Form'!$AE240)=0,\"\",IF(LEN('Enrollment Form'!$AE240)<>10,\"N\",\"Y\")))","v":""},{"$f":"IF($B233=\"N\",\"\",IF(LEN('Enrollment Form'!$AF240)=0,\"\",IF(LEN('Enrollment Form'!$AF240)<>10,\"N\",\"Y\")))","v":""},{"$f":"IF('Enrollment Form'!$O240<>\"Graded\",\"-\",IF(AND('Enrollment Form'!$O240=\"Graded\",'Enrollment Form'!$AR240<>\"\"),\"Y\",\"N\"))","v":"-"},{"$f":"IF($B233=\"N\",\"\",IF(OR('Enrollment Form'!$B240<>\"Subscriber\",'Enrollment Form'!$C240=\"ROC\"),\"-\",IF(AND('Enrollment Form'!$B240=\"Subscriber\",'Enrollment Form'!$C240=\"Enroll\",'Enrollment Form'!$AJ240<>\"\"),\"Y\",\"N\")))","v":""},{"$f":"IF($B233=\"N\",\"\",IF(OR('Enrollment Form'!$B240<>\"Subscriber\",'Enrollment Form'!$C240=\"ROC\"),\"-\",IF(AND('Enrollment Form'!$B240=\"Subscriber\",'Enrollment Form'!$C240=\"Enroll\",'Enrollment Form'!$AK240<>\"\"),\"Y\",\"N\")))","v":""},{"$f":"IF($B233=\"N\",\"\",IF(OR('Enrollment Form'!$B240<>\"Subscriber\",'Enrollment Form'!$C240=\"ROC\"),\"-\",IF(AND('Enrollment Form'!$B240=\"Subscriber\",'Enrollment Form'!$C240=\"Enroll\",'Enrollment Form'!$AL240<>\"\"),\"Y\",\"N\")))","v":""},{"$f":"IF($B233=\"N\",\"\",IF(OR('Enrollment Form'!$B240<>\"Subscriber\",'Enrollment Form'!$C240=\"ROC\"),\"-\",IF(AND('Enrollment Form'!$B240=\"Subscriber\",'Enrollment Form'!$C240=\"Enroll\",'Enrollment Form'!$AP240<>\"\"),\"Y\",\"N\")))","v":""},{"$f":"IF($B233=\"N\",\"\",IF(OR('Enrollment Form'!$B240<>\"Subscriber\",'Enrollment Form'!$C240=\"ROC\"),\"-\",IF(AND('Enrollment Form'!$B240=\"Subscriber\",'Enrollment Form'!$C240=\"Enroll\",'Enrollment Form'!$AQ240<>\"\"),\"Y\",\"N\")))","v":""},{"$f":"IF($B233=\"N\",\"\",IF(OR('Enrollment Form'!$B240<>\"Subscriber\",'Enrollment Form'!$C240=\"ROC\"),\"-\",IF(AND('Enrollment Form'!$B240=\"Subscriber\",'Enrollment Form'!$C240=\"Enroll\",'Enrollment Form'!$AS240<>\"\"),\"Y\",\"N\")))","v":""},{"$f":"IF($B233=\"N\",\"\",IF($Q233=\"-\",\"-\",IF(AND($Q233=\"Y\",'Enrollment Form'!$AS240=\"No\"),\"-\",IF(AND($Q233=\"Y\",'Enrollment Form'!$AS240=\"Yes\",'Enrollment Form'!$AT240<>\"\"),\"Y\",\"N\"))))","v":""},{"$f":"IF($B233=\"N\",\"\",IF(OR('Enrollment Form'!$B240<>\"Subscriber\",'Enrollment Form'!$C240=\"ROC\"),\"-\",IF(AND('Enrollment Form'!$B240=\"Subscriber\",'Enrollment Form'!$C240=\"Enroll\",'Enrollment Form'!$CV240<>\"\"),\"Y\",\"N\")))","v":""},{"$f":"IF($B233=\"N\",\"\",IF($S233=\"-\",\"-\",IF(AND($S233=\"Y\",'Enrollment Form'!$CV240=\"No\"),\"-\",IF(AND($S233=\"Y\",'Enrollment Form'!$CV240=\"Yes\",'Enrollment Form'!$CW240<>\"\"),\"Y\",\"N\"))))","v":""},{"$f":"IF(OR('Enrollment Form'!$AY240=\"Yes\",'Enrollment Form'!$AY240=\"\"),\"-\",IF(OR(AND('Enrollment Form'!$AY240=\"No\",ISERROR(FIND(\"HMO\",VLOOKUP('Enrollment Form'!G240,'Enrollment Form'!H$11:J$1000,3,FALSE),1))=FALSE,COUNTA('Enrollment Form'!$AZ240:$BC240)=4),AND('Enrollment Form'!$AY240=\"No\",ISERROR(FIND(\"HMO\",VLOOKUP('Enrollment Form'!G240,'Enrollment Form'!H$11:J$1000,3,FALSE),1))=FALSE,COUNTA('Enrollment Form'!$BT240:$BW240)=4)),\"Y\",\"N\"))","v":"-"},{"$f":"IF($B233=\"N\",\"\",IF('Enrollment Form'!$B240=\"Subscriber\",\"-\",IF(COUNTA('Enrollment Form'!$BL240,'Enrollment Form'!$BN240)=2,\"Y\",\"N\")))","v":""},{"$f":"IF($B233=\"N\",\"\",IF(OR('Enrollment Form'!$AX240=\"\",'Enrollment Form'!$AX240=\"No\"),\"-\",IF(AND('Enrollment Form'!$AX240=\"Yes\",COUNTA('Enrollment Form'!$CR240)=1),\"Y\",\"N\")))","v":""},{"$f":"IF(OR('Enrollment Form'!$CR240=\"\",'Enrollment Form'!$CR240=\"No\"),\"-\",IF(COUNTA('Enrollment Form'!$CT240:$CU240)=2,\"Y\",\"N\"))","v":"-"},{"$f":"IF($B233=\"N\",\"\",IF(COUNTIF('Enrollment Form'!$DG240:$DP240,\"Other\")=COUNTA('Enrollment Form'!$DK240,'Enrollment Form'!$DH240,'Enrollment Form'!$DN240,'Enrollment Form'!$DQ240),\"Y\",\"N\"))","v":""},{"$f":"IF($B233=\"N\",\"\",IF(OR('Enrollment Form'!B240<>\"Subscriber\",'Enrollment Form'!C240=\"ROC\",COUNTIF('Enrollment Form'!AV240:AW240,\"Yes\")>=1),\"-\",IF(AND('Enrollment Form'!C240=\"Enroll\",COUNTIF('Enrollment Form'!AV240:AW240,\"No\")=2,'Enrollment Form'!AX240=\"\"),\"N\",\"Y\")))","v":""},{"$f":"IF(OR(B233=\"N\",'Enrollment Form'!B240<>\"Subscriber\",'Enrollment Form'!C240=\"ROC\",'Enrollment Form'!O240<>\"Multiple of Salary\"),\"-\",IF(COUNTA('Enrollment Form'!T240:U240)<2,\"N\",\"Y\"))","v":"-"},{"$f":"IF(B233=\"N\",\"\",IF(OR('Enrollment Form'!C240=\"ROC\",'Enrollment Form'!B240<>\"Subscriber\",'Enrollment Form'!O240=\"Waive\",'Enrollment Form'!O240=\"\"),\"-\",IF('Enrollment Form'!P240=\"\",\"N\",\"Y\")))","v":""},{"$f":"IF($B233=\"N\",\"\",IF(AND('Enrollment Form'!$C240=\"ROC\",'Enrollment Form'!$DR240<>\"\"),\"Y\",IF(AND('Enrollment Form'!$C240=\"ROC\",'Enrollment Form'!$DR240=\"\"),\"N\",IF(AND('Enrollment Form'!$C240=\"Enroll\",'Enrollment Form'!$B240=\"Subscriber\",'Enrollment Form'!$CX240=\"No\",'Enrollment Form'!$DR240=\"\"),\"N\",IF(AND('Enrollment Form'!$C240=\"Enroll\",'Enrollment Form'!$B240=\"Subscriber\",'Enrollment Form'!$CX240=\"Yes\"),\"-\",\"Y\")))))","v":""},{"$f":"IF($B233=\"N\",\"\",IF(AND('Enrollment Form'!$C240=\"ROC\",'Enrollment Form'!$DS240<>\"\"),\"Y\",IF(AND('Enrollment Form'!$C240=\"ROC\",'Enrollment Form'!$DS240=\"\"),\"N\",IF(AND('Enrollment Form'!$C240=\"Enroll\",'Enrollment Form'!$B240=\"Subscriber\",'Enrollment Form'!$CX240=\"No\",'Enrollment Form'!$DS240=\"\"),\"N\",IF(AND('Enrollment Form'!$C240=\"Enroll\",'Enrollment Form'!$B240=\"Subscriber\",'Enrollment Form'!$CX240=\"Yes\"),\"-\",\"Y\")))))","v":""},{"$f":"IF('Enrollment Form'!AH240=\"\",\"\",IF(ISERROR(SEARCH(\".\",'Enrollment Form'!AH240,SEARCH(\"@\",'Enrollment Form'!AH240))),\"N\",\"Y\"))","v":""},{"$f":"IF(OR($B233=\"N\",'Enrollment Form'!$G240=\"\"),\"\",IF('Enrollment Form'!$B240<>\"Subscriber\",\"-\",IF(COUNTIF('Enrollment Form'!$AV240:$AW240,\"Yes\")=2,\"N\",\"Y\")))","v":""},{"$f":"IF(OR('Enrollment Form'!$CJ240=\"\",'Enrollment Form'!$CJ240=\"No\"),\"-\",IF(AND('Enrollment Form'!$CJ240=\"Yes\",'Enrollment Form'!$CK240=\"\"),\"N\",\"Y\"))","v":"-"},{"$f":"IF(OR('Enrollment Form'!$CL240=\"\",'Enrollment Form'!$CL240=\"No\"),\"-\",IF(AND('Enrollment Form'!$CL240=\"Yes\",'Enrollment Form'!$CM240=\"\"),\"N\",\"Y\"))","v":"-"},{"$f":"IF(OR('Enrollment Form'!$CN240=\"\",'Enrollment Form'!$CN240=\"No\"),\"-\",IF(AND('Enrollment Form'!$CN240=\"Yes\",'Enrollment Form'!$CO240=\"\"),\"N\",\"Y\"))","v":"-"},{"$f":"IF(OR('Enrollment Form'!$CN240=\"\",'Enrollment Form'!$CN240=\"No\"),\"-\",IF(AND('Enrollment Form'!$CN240=\"Yes\",'Enrollment Form'!$CP240=\"\"),\"N\",\"Y\"))","v":"-"},{"$f":"IF('Enrollment Form'!B240<>\"Subscriber\",\"-\",IF(AND('Enrollment Form'!B240=\"Subscriber\",'Enrollment Form'!C240=\"Enroll\",'Enrollment Form'!AA240=\"\"),\"N\",\"Y\"))","v":"-"},{"$f":"IF(OR('Enrollment Form'!B240=\"Subscriber\",'Enrollment Form'!B240=\"\"),\"-\",IF('Enrollment Form'!BP240=\"\",\"N\",\"Y\"))","v":"-"},{"$f":"IF('Enrollment Form'!B240<>\"Subscriber\",\"-\",IF(AND('Enrollment Form'!B240=\"Subscriber\",'Enrollment Form'!G240=\"\"),\"N\",\"Y\"))","v":"-"},{"$f":"IF('Enrollment Form'!A240=\"\",\"\",IF('Enrollment Form'!B240=\"Subscriber\",\"-\",IF(AND('Enrollment Form'!B240<>\"Subscriber\",'Enrollment Form'!G240='Enrollment Form'!H240),\"N\",\"Y\")))","v":""},0]
[241,{"$f":"IF('Enrollment Form'!$A241<>\"\",\"Y\",\"N\")","v":"N"},{"$f":"IF(AND('Enrollment Form'!$B241=\"\",'Enrollment Form'!$C241<>\"\"),\"N\",IF($B234=\"N\",\"\",\"Y\"))","v":""},{"$f":"IF(OR($B234=\"N\",'Enrollment Form'!G241=\"\"),\"\",IF('Enrollment Form'!$B241<>\"Subscriber\",\"\",IF('Enrollment Form'!$G241='Enrollment Form'!$H241,\"Y\",\"N\")))","v":""},{"$f":"IF($B234=\"N\",\"\",IF(AND(COUNTIFS('Enrollment Form'!$H$11:$H$1000,'Enrollment Form'!$H241,'Enrollment Form'!$B$11:$B$1000,'Enrollment Form'!$B241)>1,'Enrollment Form'!$H241<>\"\"),\"N\",\"Y\"))","v":""},{"$f":"IF($B234=\"N\",\"\",IF(LEN('Enrollment Form'!$Y241)=0,\"\",IF(LEN('Enrollment Form'!$Y241)<>5,\"N\",\"Y\")))","v":""},{"$f":"IF($B234=\"N\",\"\",IF(LEN('Enrollment Form'!$AD241=0),\"\",IF(LEN('Enrollment Form'!$AD241)<>5,\"N\",\"Y\")))","v":""},{"$f":"IF($B234=\"N\",\"\",IF(LEN('Enrollment Form'!$BS241=0),\"\",IF(LEN('Enrollment Form'!$BS241)<>5,\"N\",\"Y\")))","v":""},{"$f":"IF($B234=\"N\",\"\",IF(LEN('Enrollment Form'!$AE241)=0,\"\",IF(LEN('Enrollment Form'!$AE241)<>10,\"N\",\"Y\")))","v":""},{"$f":"IF($B234=\"N\",\"\",IF(LEN('Enrollment Form'!$AF241)=0,\"\",IF(LEN('Enrollment Form'!$AF241)<>10,\"N\",\"Y\")))","v":""},{"$f":"IF('Enrollment Form'!$O241<>\"Graded\",\"-\",IF(AND('Enrollment Form'!$O241=\"Graded\",'Enrollment Form'!$AR241<>\"\"),\"Y\",\"N\"))","v":"-"},{"$f":"IF($B234=\"N\",\"\",IF(OR('Enrollment Form'!$B241<>\"Subscriber\",'Enrollment Form'!$C241=\"ROC\"),\"-\",IF(AND('Enrollment Form'!$B241=\"Subscriber\",'Enrollment Form'!$C241=\"Enroll\",'Enrollment Form'!$AJ241<>\"\"),\"Y\",\"N\")))","v":""},{"$f":"IF($B234=\"N\",\"\",IF(OR('Enrollment Form'!$B241<>\"Subscriber\",'Enrollment Form'!$C241=\"ROC\"),\"-\",IF(AND('Enrollment Form'!$B241=\"Subscriber\",'Enrollment Form'!$C241=\"Enroll\",'Enrollment Form'!$AK241<>\"\"),\"Y\",\"N\")))","v":""},{"$f":"IF($B234=\"N\",\"\",IF(OR('Enrollment Form'!$B241<>\"Subscriber\",'Enrollment Form'!$C241=\"ROC\"),\"-\",IF(AND('Enrollment Form'!$B241=\"Subscriber\",'Enrollment Form'!$C241=\"Enroll\",'Enrollment Form'!$AL241<>\"\"),\"Y\",\"N\")))","v":""},{"$f":"IF($B234=\"N\",\"\",IF(OR('Enrollment Form'!$B241<>\"Subscriber\",'Enrollment Form'!$C241=\"ROC\"),\"-\",IF(AND('Enrollment Form'!$B241=\"Subscriber\",'Enrollment Form'!$C241=\"Enroll\",'Enrollment Form'!$AP241<>\"\"),\"Y\",\"N\")))","v":""},{"$f":"IF($B234=\"N\",\"\",IF(OR('Enrollment Form'!$B241<>\"Subscriber\",'Enrollment Form'!$C241=\"ROC\"),\"-\",IF(AND('Enrollment Form'!$B241=\"Subscriber\",'Enrollment Form'!$C241=\"Enroll\",'Enrollment Form'!$AQ241<>\"\"),\"Y\",\"N\")))","v":""},{"$f":"IF($B234=\"N\",\"\",IF(OR('Enrollment Form'!$B241<>\"Subscriber\",'Enrollment Form'!$C241=\"ROC\"),\"-\",IF(AND('Enrollment Form'!$B241=\"Subscriber\",'Enrollment Form'!$C241=\"Enroll\",'Enrollment Form'!$AS241<>\"\"),\"Y\",\"N\")))","v":""},{"$f":"IF($B234=\"N\",\"\",IF($Q234=\"-\",\"-\",IF(AND($Q234=\"Y\",'Enrollment Form'!$AS241=\"No\"),\"-\",IF(AND($Q234=\"Y\",'Enrollment Form'!$AS241=\"Yes\",'Enrollment Form'!$AT241<>\"\"),\"Y\",\"N\"))))","v":""},{"$f":"IF($B234=\"N\",\"\",IF(OR('Enrollment Form'!$B241<>\"Subscriber\",'Enrollment Form'!$C241=\"ROC\"),\"-\",IF(AND('Enrollment Form'!$B241=\"Subscriber\",'Enrollment Form'!$C241=\"Enroll\",'Enrollment Form'!$CV241<>\"\"),\"Y\",\"N\")))","v":""},{"$f":"IF($B234=\"N\",\"\",IF($S234=\"-\",\"-\",IF(AND($S234=\"Y\",'Enrollment Form'!$CV241=\"No\"),\"-\",IF(AND($S234=\"Y\",'Enrollment Form'!$CV241=\"Yes\",'Enrollment Form'!$CW241<>\"\"),\"Y\",\"N\"))))","v":""},{"$f":"IF(OR('Enrollment Form'!$AY241=\"Yes\",'Enrollment Form'!$AY241=\"\"),\"-\",IF(OR(AND('Enrollment Form'!$AY241=\"No\",ISERROR(FIND(\"HMO\",VLOOKUP('Enrollment Form'!G241,'Enrollment Form'!H$11:J$1000,3,FALSE),1))=FALSE,COUNTA('Enrollment Form'!$AZ241:$BC241)=4),AND('Enrollment Form'!$AY241=\"No\",ISERROR(FIND(\"HMO\",VLOOKUP('Enrollment Form'!G241,'Enrollment Form'!H$11:J$1000,3,FALSE),1))=FALSE,COUNTA('Enrollment Form'!$BT241:$BW241)=4)),\"Y\",\"N\"))","v":"-"},{"$f":"IF($B234=\"N\",\"\",IF('Enrollment Form'!$B241=\"Subscriber\",\"-\",IF(COUNTA('Enrollment Form'!$BL241,'Enrollment Form'!$BN241)=2,\"Y\",\"N\")))","v":""},{"$f":"IF($B234=\"N\",\"\",IF(OR('Enrollment Form'!$AX241=\"\",'Enrollment Form'!$AX241=\"No\"),\"-\",IF(AND('Enrollment Form'!$AX241=\"Yes\",COUNTA('Enrollment Form'!$CR241)=1),\"Y\",\"N\")))","v":""},{"$f":"IF(OR('Enrollment Form'!$CR241=\"\",'Enrollment Form'!$CR241=\"No\"),\"-\",IF(COUNTA('Enrollment Form'!$CT241:$CU241)=2,\"Y\",\"N\"))","v":"-"},{"$f":"IF($B234=\"N\",\"\",IF(COUNTIF('Enrollment Form'!$DG241:$DP241,\"Other\")=COUNTA('Enrollment Form'!$DK241,'Enrollment Form'!$DH241,'Enrollment Form'!$DN241,'Enrollment Form'!$DQ241),\"Y\",\"N\"))","v":""},{"$f":"IF($B234=\"N\",\"\",IF(OR('Enrollment Form'!B241<>\"Subscriber\",'Enrollment Form'!C241=\"ROC\",COUNTIF('Enrollment Form'!AV241:AW241,\"Yes\")>=1),\"-\",IF(AND('Enrollment Form'!C241=\"Enroll\",COUNTIF('Enrollment Form'!AV241:AW241,\"No\")=2,'Enrollment Form'!AX241=\"\"),\"N\",\"Y\")))","v":""},{"$f":"IF(OR(B234=\"N\",'Enrollment Form'!B241<>\"Subscriber\",'Enrollment Form'!C241=\"ROC\",'Enrollment Form'!O241<>\"Multiple of Salary\"),\"-\",IF(COUNTA('Enrollment Form'!T241:U241)<2,\"N\",\"Y\"))","v":"-"},{"$f":"IF(B234=\"N\",\"\",IF(OR('Enrollment Form'!C241=\"ROC\",'Enrollment Form'!B241<>\"Subscriber\",'Enrollment Form'!O241=\"Waive\",'Enrollment Form'!O241=\"\"),\"-\",IF('Enrollment Form'!P241=\"\",\"N\",\"Y\")))","v":""},{"$f":"IF($B234=\"N\",\"\",IF(AND('Enrollment Form'!$C241=\"ROC\",'Enrollment Form'!$DR241<>\"\"),\"Y\",IF(AND('Enrollment Form'!$C241=\"ROC\",'Enrollment Form'!$DR241=\"\"),\"N\",IF(AND('Enrollment Form'!$C241=\"Enroll\",'Enrollment Form'!$B241=\"Subscriber\",'Enrollment Form'!$CX241=\"No\",'Enrollment Form'!$DR241=\"\"),\"N\",IF(AND('Enrollment Form'!$C241=\"Enroll\",'Enrollment Form'!$B241=\"Subscriber\",'Enrollment Form'!$CX241=\"Yes\"),\"-\",\"Y\")))))","v":""},{"$f":"IF($B234=\"N\",\"\",IF(AND('Enrollment Form'!$C241=\"ROC\",'Enrollment Form'!$DS241<>\"\"),\"Y\",IF(AND('Enrollment Form'!$C241=\"ROC\",'Enrollment Form'!$DS241=\"\"),\"N\",IF(AND('Enrollment Form'!$C241=\"Enroll\",'Enrollment Form'!$B241=\"Subscriber\",'Enrollment Form'!$CX241=\"No\",'Enrollment Form'!$DS241=\"\"),\"N\",IF(AND('Enrollment Form'!$C241=\"Enroll\",'Enrollment Form'!$B241=\"Subscriber\",'Enrollment Form'!$CX241=\"Yes\"),\"-\",\"Y\")))))","v":""},{"$f":"IF('Enrollment Form'!AH241=\"\",\"\",IF(ISERROR(SEARCH(\".\",'Enrollment Form'!AH241,SEARCH(\"@\",'Enrollment Form'!AH241))),\"N\",\"Y\"))","v":""},{"$f":"IF(OR($B234=\"N\",'Enrollment Form'!$G241=\"\"),\"\",IF('Enrollment Form'!$B241<>\"Subscriber\",\"-\",IF(COUNTIF('Enrollment Form'!$AV241:$AW241,\"Yes\")=2,\"N\",\"Y\")))","v":""},{"$f":"IF(OR('Enrollment Form'!$CJ241=\"\",'Enrollment Form'!$CJ241=\"No\"),\"-\",IF(AND('Enrollment Form'!$CJ241=\"Yes\",'Enrollment Form'!$CK241=\"\"),\"N\",\"Y\"))","v":"-"},{"$f":"IF(OR('Enrollment Form'!$CL241=\"\",'Enrollment Form'!$CL241=\"No\"),\"-\",IF(AND('Enrollment Form'!$CL241=\"Yes\",'Enrollment Form'!$CM241=\"\"),\"N\",\"Y\"))","v":"-"},{"$f":"IF(OR('Enrollment Form'!$CN241=\"\",'Enrollment Form'!$CN241=\"No\"),\"-\",IF(AND('Enrollment Form'!$CN241=\"Yes\",'Enrollment Form'!$CO241=\"\"),\"N\",\"Y\"))","v":"-"},{"$f":"IF(OR('Enrollment Form'!$CN241=\"\",'Enrollment Form'!$CN241=\"No\"),\"-\",IF(AND('Enrollment Form'!$CN241=\"Yes\",'Enrollment Form'!$CP241=\"\"),\"N\",\"Y\"))","v":"-"},{"$f":"IF('Enrollment Form'!B241<>\"Subscriber\",\"-\",IF(AND('Enrollment Form'!B241=\"Subscriber\",'Enrollment Form'!C241=\"Enroll\",'Enrollment Form'!AA241=\"\"),\"N\",\"Y\"))","v":"-"},{"$f":"IF(OR('Enrollment Form'!B241=\"Subscriber\",'Enrollment Form'!B241=\"\"),\"-\",IF('Enrollment Form'!BP241=\"\",\"N\",\"Y\"))","v":"-"},{"$f":"IF('Enrollment Form'!B241<>\"Subscriber\",\"-\",IF(AND('Enrollment Form'!B241=\"Subscriber\",'Enrollment Form'!G241=\"\"),\"N\",\"Y\"))","v":"-"},{"$f":"IF('Enrollment Form'!A241=\"\",\"\",IF('Enrollment Form'!B241=\"Subscriber\",\"-\",IF(AND('Enrollment Form'!B241<>\"Subscriber\",'Enrollment Form'!G241='Enrollment Form'!H241),\"N\",\"Y\")))","v":""},0]
[242,{"$f":"IF('Enrollment Form'!$A242<>\"\",\"Y\",\"N\")","v":"N"},{"$f":"IF(AND('Enrollment Form'!$B242=\"\",'Enrollment Form'!$C242<>\"\"),\"N\",IF($B235=\"N\",\"\",\"Y\"))","v":""},{"$f":"IF(OR($B235=\"N\",'Enrollment Form'!G242=\"\"),\"\",IF('Enrollment Form'!$B242<>\"Subscriber\",\"\",IF('Enrollment Form'!$G242='Enrollment Form'!$H242,\"Y\",\"N\")))","v":""},{"$f":"IF($B235=\"N\",\"\",IF(AND(COUNTIFS('Enrollment Form'!$H$11:$H$1000,'Enrollment Form'!$H242,'Enrollment Form'!$B$11:$B$1000,'Enrollment Form'!$B242)>1,'Enrollment Form'!$H242<>\"\"),\"N\",\"Y\"))","v":""},{"$f":"IF($B235=\"N\",\"\",IF(LEN('Enrollment Form'!$Y242)=0,\"\",IF(LEN('Enrollment Form'!$Y242)<>5,\"N\",\"Y\")))","v":""},{"$f":"IF($B235=\"N\",\"\",IF(LEN('Enrollment Form'!$AD242=0),\"\",IF(LEN('Enrollment Form'!$AD242)<>5,\"N\",\"Y\")))","v":""},{"$f":"IF($B235=\"N\",\"\",IF(LEN('Enrollment Form'!$BS242=0),\"\",IF(LEN('Enrollment Form'!$BS242)<>5,\"N\",\"Y\")))","v":""},{"$f":"IF($B235=\"N\",\"\",IF(LEN('Enrollment Form'!$AE242)=0,\"\",IF(LEN('Enrollment Form'!$AE242)<>10,\"N\",\"Y\")))","v":""},{"$f":"IF($B235=\"N\",\"\",IF(LEN('Enrollment Form'!$AF242)=0,\"\",IF(LEN('Enrollment Form'!$AF242)<>10,\"N\",\"Y\")))","v":""},{"$f":"IF('Enrollment Form'!$O242<>\"Graded\",\"-\",IF(AND('Enrollment Form'!$O242=\"Graded\",'Enrollment Form'!$AR242<>\"\"),\"Y\",\"N\"))","v":"-"},{"$f":"IF($B235=\"N\",\"\",IF(OR('Enrollment Form'!$B242<>\"Subscriber\",'Enrollment Form'!$C242=\"ROC\"),\"-\",IF(AND('Enrollment Form'!$B242=\"Subscriber\",'Enrollment Form'!$C242=\"Enroll\",'Enrollment Form'!$AJ242<>\"\"),\"Y\",\"N\")))","v":""},{"$f":"IF($B235=\"N\",\"\",IF(OR('Enrollment Form'!$B242<>\"Subscriber\",'Enrollment Form'!$C242=\"ROC\"),\"-\",IF(AND('Enrollment Form'!$B242=\"Subscriber\",'Enrollment Form'!$C242=\"Enroll\",'Enrollment Form'!$AK242<>\"\"),\"Y\",\"N\")))","v":""},{"$f":"IF($B235=\"N\",\"\",IF(OR('Enrollment Form'!$B242<>\"Subscriber\",'Enrollment Form'!$C242=\"ROC\"),\"-\",IF(AND('Enrollment Form'!$B242=\"Subscriber\",'Enrollment Form'!$C242=\"Enroll\",'Enrollment Form'!$AL242<>\"\"),\"Y\",\"N\")))","v":""},{"$f":"IF($B235=\"N\",\"\",IF(OR('Enrollment Form'!$B242<>\"Subscriber\",'Enrollment Form'!$C242=\"ROC\"),\"-\",IF(AND('Enrollment Form'!$B242=\"Subscriber\",'Enrollment Form'!$C242=\"Enroll\",'Enrollment Form'!$AP242<>\"\"),\"Y\",\"N\")))","v":""},{"$f":"IF($B235=\"N\",\"\",IF(OR('Enrollment Form'!$B242<>\"Subscriber\",'Enrollment Form'!$C242=\"ROC\"),\"-\",IF(AND('Enrollment Form'!$B242=\"Subscriber\",'Enrollment Form'!$C242=\"Enroll\",'Enrollment Form'!$AQ242<>\"\"),\"Y\",\"N\")))","v":""},{"$f":"IF($B235=\"N\",\"\",IF(OR('Enrollment Form'!$B242<>\"Subscriber\",'Enrollment Form'!$C242=\"ROC\"),\"-\",IF(AND('Enrollment Form'!$B242=\"Subscriber\",'Enrollment Form'!$C242=\"Enroll\",'Enrollment Form'!$AS242<>\"\"),\"Y\",\"N\")))","v":""},{"$f":"IF($B235=\"N\",\"\",IF($Q235=\"-\",\"-\",IF(AND($Q235=\"Y\",'Enrollment Form'!$AS242=\"No\"),\"-\",IF(AND($Q235=\"Y\",'Enrollment Form'!$AS242=\"Yes\",'Enrollment Form'!$AT242<>\"\"),\"Y\",\"N\"))))","v":""},{"$f":"IF($B235=\"N\",\"\",IF(OR('Enrollment Form'!$B242<>\"Subscriber\",'Enrollment Form'!$C242=\"ROC\"),\"-\",IF(AND('Enrollment Form'!$B242=\"Subscriber\",'Enrollment Form'!$C242=\"Enroll\",'Enrollment Form'!$CV242<>\"\"),\"Y\",\"N\")))","v":""},{"$f":"IF($B235=\"N\",\"\",IF($S235=\"-\",\"-\",IF(AND($S235=\"Y\",'Enrollment Form'!$CV242=\"No\"),\"-\",IF(AND($S235=\"Y\",'Enrollment Form'!$CV242=\"Yes\",'Enrollment Form'!$CW242<>\"\"),\"Y\",\"N\"))))","v":""},{"$f":"IF(OR('Enrollment Form'!$AY242=\"Yes\",'Enrollment Form'!$AY242=\"\"),\"-\",IF(OR(AND('Enrollment Form'!$AY242=\"No\",ISERROR(FIND(\"HMO\",VLOOKUP('Enrollment Form'!G242,'Enrollment Form'!H$11:J$1000,3,FALSE),1))=FALSE,COUNTA('Enrollment Form'!$AZ242:$BC242)=4),AND('Enrollment Form'!$AY242=\"No\",ISERROR(FIND(\"HMO\",VLOOKUP('Enrollment Form'!G242,'Enrollment Form'!H$11:J$1000,3,FALSE),1))=FALSE,COUNTA('Enrollment Form'!$BT242:$BW242)=4)),\"Y\",\"N\"))","v":"-"},{"$f":"IF($B235=\"N\",\"\",IF('Enrollment Form'!$B242=\"Subscriber\",\"-\",IF(COUNTA('Enrollment Form'!$BL242,'Enrollment Form'!$BN242)=2,\"Y\",\"N\")))","v":""},{"$f":"IF($B235=\"N\",\"\",IF(OR('Enrollment Form'!$AX242=\"\",'Enrollment Form'!$AX242=\"No\"),\"-\",IF(AND('Enrollment Form'!$AX242=\"Yes\",COUNTA('Enrollment Form'!$CR242)=1),\"Y\",\"N\")))","v":""},{"$f":"IF(OR('Enrollment Form'!$CR242=\"\",'Enrollment Form'!$CR242=\"No\"),\"-\",IF(COUNTA('Enrollment Form'!$CT242:$CU242)=2,\"Y\",\"N\"))","v":"-"},{"$f":"IF($B235=\"N\",\"\",IF(COUNTIF('Enrollment Form'!$DG242:$DP242,\"Other\")=COUNTA('Enrollment Form'!$DK242,'Enrollment Form'!$DH242,'Enrollment Form'!$DN242,'Enrollment Form'!$DQ242),\"Y\",\"N\"))","v":""},{"$f":"IF($B235=\"N\",\"\",IF(OR('Enrollment Form'!B242<>\"Subscriber\",'Enrollment Form'!C242=\"ROC\",COUNTIF('Enrollment Form'!AV242:AW242,\"Yes\")>=1),\"-\",IF(AND('Enrollment Form'!C242=\"Enroll\",COUNTIF('Enrollment Form'!AV242:AW242,\"No\")=2,'Enrollment Form'!AX242=\"\"),\"N\",\"Y\")))","v":""},{"$f":"IF(OR(B235=\"N\",'Enrollment Form'!B242<>\"Subscriber\",'Enrollment Form'!C242=\"ROC\",'Enrollment Form'!O242<>\"Multiple of Salary\"),\"-\",IF(COUNTA('Enrollment Form'!T242:U242)<2,\"N\",\"Y\"))","v":"-"},{"$f":"IF(B235=\"N\",\"\",IF(OR('Enrollment Form'!C242=\"ROC\",'Enrollment Form'!B242<>\"Subscriber\",'Enrollment Form'!O242=\"Waive\",'Enrollment Form'!O242=\"\"),\"-\",IF('Enrollment Form'!P242=\"\",\"N\",\"Y\")))","v":""},{"$f":"IF($B235=\"N\",\"\",IF(AND('Enrollment Form'!$C242=\"ROC\",'Enrollment Form'!$DR242<>\"\"),\"Y\",IF(AND('Enrollment Form'!$C242=\"ROC\",'Enrollment Form'!$DR242=\"\"),\"N\",IF(AND('Enrollment Form'!$C242=\"Enroll\",'Enrollment Form'!$B242=\"Subscriber\",'Enrollment Form'!$CX242=\"No\",'Enrollment Form'!$DR242=\"\"),\"N\",IF(AND('Enrollment Form'!$C242=\"Enroll\",'Enrollment Form'!$B242=\"Subscriber\",'Enrollment Form'!$CX242=\"Yes\"),\"-\",\"Y\")))))","v":""},{"$f":"IF($B235=\"N\",\"\",IF(AND('Enrollment Form'!$C242=\"ROC\",'Enrollment Form'!$DS242<>\"\"),\"Y\",IF(AND('Enrollment Form'!$C242=\"ROC\",'Enrollment Form'!$DS242=\"\"),\"N\",IF(AND('Enrollment Form'!$C242=\"Enroll\",'Enrollment Form'!$B242=\"Subscriber\",'Enrollment Form'!$CX242=\"No\",'Enrollment Form'!$DS242=\"\"),\"N\",IF(AND('Enrollment Form'!$C242=\"Enroll\",'Enrollment Form'!$B242=\"Subscriber\",'Enrollment Form'!$CX242=\"Yes\"),\"-\",\"Y\")))))","v":""},{"$f":"IF('Enrollment Form'!AH242=\"\",\"\",IF(ISERROR(SEARCH(\".\",'Enrollment Form'!AH242,SEARCH(\"@\",'Enrollment Form'!AH242))),\"N\",\"Y\"))","v":""},{"$f":"IF(OR($B235=\"N\",'Enrollment Form'!$G242=\"\"),\"\",IF('Enrollment Form'!$B242<>\"Subscriber\",\"-\",IF(COUNTIF('Enrollment Form'!$AV242:$AW242,\"Yes\")=2,\"N\",\"Y\")))","v":""},{"$f":"IF(OR('Enrollment Form'!$CJ242=\"\",'Enrollment Form'!$CJ242=\"No\"),\"-\",IF(AND('Enrollment Form'!$CJ242=\"Yes\",'Enrollment Form'!$CK242=\"\"),\"N\",\"Y\"))","v":"-"},{"$f":"IF(OR('Enrollment Form'!$CL242=\"\",'Enrollment Form'!$CL242=\"No\"),\"-\",IF(AND('Enrollment Form'!$CL242=\"Yes\",'Enrollment Form'!$CM242=\"\"),\"N\",\"Y\"))","v":"-"},{"$f":"IF(OR('Enrollment Form'!$CN242=\"\",'Enrollment Form'!$CN242=\"No\"),\"-\",IF(AND('Enrollment Form'!$CN242=\"Yes\",'Enrollment Form'!$CO242=\"\"),\"N\",\"Y\"))","v":"-"},{"$f":"IF(OR('Enrollment Form'!$CN242=\"\",'Enrollment Form'!$CN242=\"No\"),\"-\",IF(AND('Enrollment Form'!$CN242=\"Yes\",'Enrollment Form'!$CP242=\"\"),\"N\",\"Y\"))","v":"-"},{"$f":"IF('Enrollment Form'!B242<>\"Subscriber\",\"-\",IF(AND('Enrollment Form'!B242=\"Subscriber\",'Enrollment Form'!C242=\"Enroll\",'Enrollment Form'!AA242=\"\"),\"N\",\"Y\"))","v":"-"},{"$f":"IF(OR('Enrollment Form'!B242=\"Subscriber\",'Enrollment Form'!B242=\"\"),\"-\",IF('Enrollment Form'!BP242=\"\",\"N\",\"Y\"))","v":"-"},{"$f":"IF('Enrollment Form'!B242<>\"Subscriber\",\"-\",IF(AND('Enrollment Form'!B242=\"Subscriber\",'Enrollment Form'!G242=\"\"),\"N\",\"Y\"))","v":"-"},{"$f":"IF('Enrollment Form'!A242=\"\",\"\",IF('Enrollment Form'!B242=\"Subscriber\",\"-\",IF(AND('Enrollment Form'!B242<>\"Subscriber\",'Enrollment Form'!G242='Enrollment Form'!H242),\"N\",\"Y\")))","v":""},0]
[243,{"$f":"IF('Enrollment Form'!$A243<>\"\",\"Y\",\"N\")","v":"N"},{"$f":"IF(AND('Enrollment Form'!$B243=\"\",'Enrollment Form'!$C243<>\"\"),\"N\",IF($B236=\"N\",\"\",\"Y\"))","v":""},{"$f":"IF(OR($B236=\"N\",'Enrollment Form'!G243=\"\"),\"\",IF('Enrollment Form'!$B243<>\"Subscriber\",\"\",IF('Enrollment Form'!$G243='Enrollment Form'!$H243,\"Y\",\"N\")))","v":""},{"$f":"IF($B236=\"N\",\"\",IF(AND(COUNTIFS('Enrollment Form'!$H$11:$H$1000,'Enrollment Form'!$H243,'Enrollment Form'!$B$11:$B$1000,'Enrollment Form'!$B243)>1,'Enrollment Form'!$H243<>\"\"),\"N\",\"Y\"))","v":""},{"$f":"IF($B236=\"N\",\"\",IF(LEN('Enrollment Form'!$Y243)=0,\"\",IF(LEN('Enrollment Form'!$Y243)<>5,\"N\",\"Y\")))","v":""},{"$f":"IF($B236=\"N\",\"\",IF(LEN('Enrollment Form'!$AD243=0),\"\",IF(LEN('Enrollment Form'!$AD243)<>5,\"N\",\"Y\")))","v":""},{"$f":"IF($B236=\"N\",\"\",IF(LEN('Enrollment Form'!$BS243=0),\"\",IF(LEN('Enrollment Form'!$BS243)<>5,\"N\",\"Y\")))","v":""},{"$f":"IF($B236=\"N\",\"\",IF(LEN('Enrollment Form'!$AE243)=0,\"\",IF(LEN('Enrollment Form'!$AE243)<>10,\"N\",\"Y\")))","v":""},{"$f":"IF($B236=\"N\",\"\",IF(LEN('Enrollment Form'!$AF243)=0,\"\",IF(LEN('Enrollment Form'!$AF243)<>10,\"N\",\"Y\")))","v":""},{"$f":"IF('Enrollment Form'!$O243<>\"Graded\",\"-\",IF(AND('Enrollment Form'!$O243=\"Graded\",'Enrollment Form'!$AR243<>\"\"),\"Y\",\"N\"))","v":"-"},{"$f":"IF($B236=\"N\",\"\",IF(OR('Enrollment Form'!$B243<>\"Subscriber\",'Enrollment Form'!$C243=\"ROC\"),\"-\",IF(AND('Enrollment Form'!$B243=\"Subscriber\",'Enrollment Form'!$C243=\"Enroll\",'Enrollment Form'!$AJ243<>\"\"),\"Y\",\"N\")))","v":""},{"$f":"IF($B236=\"N\",\"\",IF(OR('Enrollment Form'!$B243<>\"Subscriber\",'Enrollment Form'!$C243=\"ROC\"),\"-\",IF(AND('Enrollment Form'!$B243=\"Subscriber\",'Enrollment Form'!$C243=\"Enroll\",'Enrollment Form'!$AK243<>\"\"),\"Y\",\"N\")))","v":""},{"$f":"IF($B236=\"N\",\"\",IF(OR('Enrollment Form'!$B243<>\"Subscriber\",'Enrollment Form'!$C243=\"ROC\"),\"-\",IF(AND('Enrollment Form'!$B243=\"Subscriber\",'Enrollment Form'!$C243=\"Enroll\",'Enrollment Form'!$AL243<>\"\"),\"Y\",\"N\")))","v":""},{"$f":"IF($B236=\"N\",\"\",IF(OR('Enrollment Form'!$B243<>\"Subscriber\",'Enrollment Form'!$C243=\"ROC\"),\"-\",IF(AND('Enrollment Form'!$B243=\"Subscriber\",'Enrollment Form'!$C243=\"Enroll\",'Enrollment Form'!$AP243<>\"\"),\"Y\",\"N\")))","v":""},{"$f":"IF($B236=\"N\",\"\",IF(OR('Enrollment Form'!$B243<>\"Subscriber\",'Enrollment Form'!$C243=\"ROC\"),\"-\",IF(AND('Enrollment Form'!$B243=\"Subscriber\",'Enrollment Form'!$C243=\"Enroll\",'Enrollment Form'!$AQ243<>\"\"),\"Y\",\"N\")))","v":""},{"$f":"IF($B236=\"N\",\"\",IF(OR('Enrollment Form'!$B243<>\"Subscriber\",'Enrollment Form'!$C243=\"ROC\"),\"-\",IF(AND('Enrollment Form'!$B243=\"Subscriber\",'Enrollment Form'!$C243=\"Enroll\",'Enrollment Form'!$AS243<>\"\"),\"Y\",\"N\")))","v":""},{"$f":"IF($B236=\"N\",\"\",IF($Q236=\"-\",\"-\",IF(AND($Q236=\"Y\",'Enrollment Form'!$AS243=\"No\"),\"-\",IF(AND($Q236=\"Y\",'Enrollment Form'!$AS243=\"Yes\",'Enrollment Form'!$AT243<>\"\"),\"Y\",\"N\"))))","v":""},{"$f":"IF($B236=\"N\",\"\",IF(OR('Enrollment Form'!$B243<>\"Subscriber\",'Enrollment Form'!$C243=\"ROC\"),\"-\",IF(AND('Enrollment Form'!$B243=\"Subscriber\",'Enrollment Form'!$C243=\"Enroll\",'Enrollment Form'!$CV243<>\"\"),\"Y\",\"N\")))","v":""},{"$f":"IF($B236=\"N\",\"\",IF($S236=\"-\",\"-\",IF(AND($S236=\"Y\",'Enrollment Form'!$CV243=\"No\"),\"-\",IF(AND($S236=\"Y\",'Enrollment Form'!$CV243=\"Yes\",'Enrollment Form'!$CW243<>\"\"),\"Y\",\"N\"))))","v":""},{"$f":"IF(OR('Enrollment Form'!$AY243=\"Yes\",'Enrollment Form'!$AY243=\"\"),\"-\",IF(OR(AND('Enrollment Form'!$AY243=\"No\",ISERROR(FIND(\"HMO\",VLOOKUP('Enrollment Form'!G243,'Enrollment Form'!H$11:J$1000,3,FALSE),1))=FALSE,COUNTA('Enrollment Form'!$AZ243:$BC243)=4),AND('Enrollment Form'!$AY243=\"No\",ISERROR(FIND(\"HMO\",VLOOKUP('Enrollment Form'!G243,'Enrollment Form'!H$11:J$1000,3,FALSE),1))=FALSE,COUNTA('Enrollment Form'!$BT243:$BW243)=4)),\"Y\",\"N\"))","v":"-"},{"$f":"IF($B236=\"N\",\"\",IF('Enrollment Form'!$B243=\"Subscriber\",\"-\",IF(COUNTA('Enrollment Form'!$BL243,'Enrollment Form'!$BN243)=2,\"Y\",\"N\")))","v":""},{"$f":"IF($B236=\"N\",\"\",IF(OR('Enrollment Form'!$AX243=\"\",'Enrollment Form'!$AX243=\"No\"),\"-\",IF(AND('Enrollment Form'!$AX243=\"Yes\",COUNTA('Enrollment Form'!$CR243)=1),\"Y\",\"N\")))","v":""},{"$f":"IF(OR('Enrollment Form'!$CR243=\"\",'Enrollment Form'!$CR243=\"No\"),\"-\",IF(COUNTA('Enrollment Form'!$CT243:$CU243)=2,\"Y\",\"N\"))","v":"-"},{"$f":"IF($B236=\"N\",\"\",IF(COUNTIF('Enrollment Form'!$DG243:$DP243,\"Other\")=COUNTA('Enrollment Form'!$DK243,'Enrollment Form'!$DH243,'Enrollment Form'!$DN243,'Enrollment Form'!$DQ243),\"Y\",\"N\"))","v":""},{"$f":"IF($B236=\"N\",\"\",IF(OR('Enrollment Form'!B243<>\"Subscriber\",'Enrollment Form'!C243=\"ROC\",COUNTIF('Enrollment Form'!AV243:AW243,\"Yes\")>=1),\"-\",IF(AND('Enrollment Form'!C243=\"Enroll\",COUNTIF('Enrollment Form'!AV243:AW243,\"No\")=2,'Enrollment Form'!AX243=\"\"),\"N\",\"Y\")))","v":""},{"$f":"IF(OR(B236=\"N\",'Enrollment Form'!B243<>\"Subscriber\",'Enrollment Form'!C243=\"ROC\",'Enrollment Form'!O243<>\"Multiple of Salary\"),\"-\",IF(COUNTA('Enrollment Form'!T243:U243)<2,\"N\",\"Y\"))","v":"-"},{"$f":"IF(B236=\"N\",\"\",IF(OR('Enrollment Form'!C243=\"ROC\",'Enrollment Form'!B243<>\"Subscriber\",'Enrollment Form'!O243=\"Waive\",'Enrollment Form'!O243=\"\"),\"-\",IF('Enrollment Form'!P243=\"\",\"N\",\"Y\")))","v":""},{"$f":"IF($B236=\"N\",\"\",IF(AND('Enrollment Form'!$C243=\"ROC\",'Enrollment Form'!$DR243<>\"\"),\"Y\",IF(AND('Enrollment Form'!$C243=\"ROC\",'Enrollment Form'!$DR243=\"\"),\"N\",IF(AND('Enrollment Form'!$C243=\"Enroll\",'Enrollment Form'!$B243=\"Subscriber\",'Enrollment Form'!$CX243=\"No\",'Enrollment Form'!$DR243=\"\"),\"N\",IF(AND('Enrollment Form'!$C243=\"Enroll\",'Enrollment Form'!$B243=\"Subscriber\",'Enrollment Form'!$CX243=\"Yes\"),\"-\",\"Y\")))))","v":""},{"$f":"IF($B236=\"N\",\"\",IF(AND('Enrollment Form'!$C243=\"ROC\",'Enrollment Form'!$DS243<>\"\"),\"Y\",IF(AND('Enrollment Form'!$C243=\"ROC\",'Enrollment Form'!$DS243=\"\"),\"N\",IF(AND('Enrollment Form'!$C243=\"Enroll\",'Enrollment Form'!$B243=\"Subscriber\",'Enrollment Form'!$CX243=\"No\",'Enrollment Form'!$DS243=\"\"),\"N\",IF(AND('Enrollment Form'!$C243=\"Enroll\",'Enrollment Form'!$B243=\"Subscriber\",'Enrollment Form'!$CX243=\"Yes\"),\"-\",\"Y\")))))","v":""},{"$f":"IF('Enrollment Form'!AH243=\"\",\"\",IF(ISERROR(SEARCH(\".\",'Enrollment Form'!AH243,SEARCH(\"@\",'Enrollment Form'!AH243))),\"N\",\"Y\"))","v":""},{"$f":"IF(OR($B236=\"N\",'Enrollment Form'!$G243=\"\"),\"\",IF('Enrollment Form'!$B243<>\"Subscriber\",\"-\",IF(COUNTIF('Enrollment Form'!$AV243:$AW243,\"Yes\")=2,\"N\",\"Y\")))","v":""},{"$f":"IF(OR('Enrollment Form'!$CJ243=\"\",'Enrollment Form'!$CJ243=\"No\"),\"-\",IF(AND('Enrollment Form'!$CJ243=\"Yes\",'Enrollment Form'!$CK243=\"\"),\"N\",\"Y\"))","v":"-"},{"$f":"IF(OR('Enrollment Form'!$CL243=\"\",'Enrollment Form'!$CL243=\"No\"),\"-\",IF(AND('Enrollment Form'!$CL243=\"Yes\",'Enrollment Form'!$CM243=\"\"),\"N\",\"Y\"))","v":"-"},{"$f":"IF(OR('Enrollment Form'!$CN243=\"\",'Enrollment Form'!$CN243=\"No\"),\"-\",IF(AND('Enrollment Form'!$CN243=\"Yes\",'Enrollment Form'!$CO243=\"\"),\"N\",\"Y\"))","v":"-"},{"$f":"IF(OR('Enrollment Form'!$CN243=\"\",'Enrollment Form'!$CN243=\"No\"),\"-\",IF(AND('Enrollment Form'!$CN243=\"Yes\",'Enrollment Form'!$CP243=\"\"),\"N\",\"Y\"))","v":"-"},{"$f":"IF('Enrollment Form'!B243<>\"Subscriber\",\"-\",IF(AND('Enrollment Form'!B243=\"Subscriber\",'Enrollment Form'!C243=\"Enroll\",'Enrollment Form'!AA243=\"\"),\"N\",\"Y\"))","v":"-"},{"$f":"IF(OR('Enrollment Form'!B243=\"Subscriber\",'Enrollment Form'!B243=\"\"),\"-\",IF('Enrollment Form'!BP243=\"\",\"N\",\"Y\"))","v":"-"},{"$f":"IF('Enrollment Form'!B243<>\"Subscriber\",\"-\",IF(AND('Enrollment Form'!B243=\"Subscriber\",'Enrollment Form'!G243=\"\"),\"N\",\"Y\"))","v":"-"},{"$f":"IF('Enrollment Form'!A243=\"\",\"\",IF('Enrollment Form'!B243=\"Subscriber\",\"-\",IF(AND('Enrollment Form'!B243<>\"Subscriber\",'Enrollment Form'!G243='Enrollment Form'!H243),\"N\",\"Y\")))","v":""},0]
[244,{"$f":"IF('Enrollment Form'!$A244<>\"\",\"Y\",\"N\")","v":"N"},{"$f":"IF(AND('Enrollment Form'!$B244=\"\",'Enrollment Form'!$C244<>\"\"),\"N\",IF($B237=\"N\",\"\",\"Y\"))","v":""},{"$f":"IF(OR($B237=\"N\",'Enrollment Form'!G244=\"\"),\"\",IF('Enrollment Form'!$B244<>\"Subscriber\",\"\",IF('Enrollment Form'!$G244='Enrollment Form'!$H244,\"Y\",\"N\")))","v":""},{"$f":"IF($B237=\"N\",\"\",IF(AND(COUNTIFS('Enrollment Form'!$H$11:$H$1000,'Enrollment Form'!$H244,'Enrollment Form'!$B$11:$B$1000,'Enrollment Form'!$B244)>1,'Enrollment Form'!$H244<>\"\"),\"N\",\"Y\"))","v":""},{"$f":"IF($B237=\"N\",\"\",IF(LEN('Enrollment Form'!$Y244)=0,\"\",IF(LEN('Enrollment Form'!$Y244)<>5,\"N\",\"Y\")))","v":""},{"$f":"IF($B237=\"N\",\"\",IF(LEN('Enrollment Form'!$AD244=0),\"\",IF(LEN('Enrollment Form'!$AD244)<>5,\"N\",\"Y\")))","v":""},{"$f":"IF($B237=\"N\",\"\",IF(LEN('Enrollment Form'!$BS244=0),\"\",IF(LEN('Enrollment Form'!$BS244)<>5,\"N\",\"Y\")))","v":""},{"$f":"IF($B237=\"N\",\"\",IF(LEN('Enrollment Form'!$AE244)=0,\"\",IF(LEN('Enrollment Form'!$AE244)<>10,\"N\",\"Y\")))","v":""},{"$f":"IF($B237=\"N\",\"\",IF(LEN('Enrollment Form'!$AF244)=0,\"\",IF(LEN('Enrollment Form'!$AF244)<>10,\"N\",\"Y\")))","v":""},{"$f":"IF('Enrollment Form'!$O244<>\"Graded\",\"-\",IF(AND('Enrollment Form'!$O244=\"Graded\",'Enrollment Form'!$AR244<>\"\"),\"Y\",\"N\"))","v":"-"},{"$f":"IF($B237=\"N\",\"\",IF(OR('Enrollment Form'!$B244<>\"Subscriber\",'Enrollment Form'!$C244=\"ROC\"),\"-\",IF(AND('Enrollment Form'!$B244=\"Subscriber\",'Enrollment Form'!$C244=\"Enroll\",'Enrollment Form'!$AJ244<>\"\"),\"Y\",\"N\")))","v":""},{"$f":"IF($B237=\"N\",\"\",IF(OR('Enrollment Form'!$B244<>\"Subscriber\",'Enrollment Form'!$C244=\"ROC\"),\"-\",IF(AND('Enrollment Form'!$B244=\"Subscriber\",'Enrollment Form'!$C244=\"Enroll\",'Enrollment Form'!$AK244<>\"\"),\"Y\",\"N\")))","v":""},{"$f":"IF($B237=\"N\",\"\",IF(OR('Enrollment Form'!$B244<>\"Subscriber\",'Enrollment Form'!$C244=\"ROC\"),\"-\",IF(AND('Enrollment Form'!$B244=\"Subscriber\",'Enrollment Form'!$C244=\"Enroll\",'Enrollment Form'!$AL244<>\"\"),\"Y\",\"N\")))","v":""},{"$f":"IF($B237=\"N\",\"\",IF(OR('Enrollment Form'!$B244<>\"Subscriber\",'Enrollment Form'!$C244=\"ROC\"),\"-\",IF(AND('Enrollment Form'!$B244=\"Subscriber\",'Enrollment Form'!$C244=\"Enroll\",'Enrollment Form'!$AP244<>\"\"),\"Y\",\"N\")))","v":""},{"$f":"IF($B237=\"N\",\"\",IF(OR('Enrollment Form'!$B244<>\"Subscriber\",'Enrollment Form'!$C244=\"ROC\"),\"-\",IF(AND('Enrollment Form'!$B244=\"Subscriber\",'Enrollment Form'!$C244=\"Enroll\",'Enrollment Form'!$AQ244<>\"\"),\"Y\",\"N\")))","v":""},{"$f":"IF($B237=\"N\",\"\",IF(OR('Enrollment Form'!$B244<>\"Subscriber\",'Enrollment Form'!$C244=\"ROC\"),\"-\",IF(AND('Enrollment Form'!$B244=\"Subscriber\",'Enrollment Form'!$C244=\"Enroll\",'Enrollment Form'!$AS244<>\"\"),\"Y\",\"N\")))","v":""},{"$f":"IF($B237=\"N\",\"\",IF($Q237=\"-\",\"-\",IF(AND($Q237=\"Y\",'Enrollment Form'!$AS244=\"No\"),\"-\",IF(AND($Q237=\"Y\",'Enrollment Form'!$AS244=\"Yes\",'Enrollment Form'!$AT244<>\"\"),\"Y\",\"N\"))))","v":""},{"$f":"IF($B237=\"N\",\"\",IF(OR('Enrollment Form'!$B244<>\"Subscriber\",'Enrollment Form'!$C244=\"ROC\"),\"-\",IF(AND('Enrollment Form'!$B244=\"Subscriber\",'Enrollment Form'!$C244=\"Enroll\",'Enrollment Form'!$CV244<>\"\"),\"Y\",\"N\")))","v":""},{"$f":"IF($B237=\"N\",\"\",IF($S237=\"-\",\"-\",IF(AND($S237=\"Y\",'Enrollment Form'!$CV244=\"No\"),\"-\",IF(AND($S237=\"Y\",'Enrollment Form'!$CV244=\"Yes\",'Enrollment Form'!$CW244<>\"\"),\"Y\",\"N\"))))","v":""},{"$f":"IF(OR('Enrollment Form'!$AY244=\"Yes\",'Enrollment Form'!$AY244=\"\"),\"-\",IF(OR(AND('Enrollment Form'!$AY244=\"No\",ISERROR(FIND(\"HMO\",VLOOKUP('Enrollment Form'!G244,'Enrollment Form'!H$11:J$1000,3,FALSE),1))=FALSE,COUNTA('Enrollment Form'!$AZ244:$BC244)=4),AND('Enrollment Form'!$AY244=\"No\",ISERROR(FIND(\"HMO\",VLOOKUP('Enrollment Form'!G244,'Enrollment Form'!H$11:J$1000,3,FALSE),1))=FALSE,COUNTA('Enrollment Form'!$BT244:$BW244)=4)),\"Y\",\"N\"))","v":"-"},{"$f":"IF($B237=\"N\",\"\",IF('Enrollment Form'!$B244=\"Subscriber\",\"-\",IF(COUNTA('Enrollment Form'!$BL244,'Enrollment Form'!$BN244)=2,\"Y\",\"N\")))","v":""},{"$f":"IF($B237=\"N\",\"\",IF(OR('Enrollment Form'!$AX244=\"\",'Enrollment Form'!$AX244=\"No\"),\"-\",IF(AND('Enrollment Form'!$AX244=\"Yes\",COUNTA('Enrollment Form'!$CR244)=1),\"Y\",\"N\")))","v":""},{"$f":"IF(OR('Enrollment Form'!$CR244=\"\",'Enrollment Form'!$CR244=\"No\"),\"-\",IF(COUNTA('Enrollment Form'!$CT244:$CU244)=2,\"Y\",\"N\"))","v":"-"},{"$f":"IF($B237=\"N\",\"\",IF(COUNTIF('Enrollment Form'!$DG244:$DP244,\"Other\")=COUNTA('Enrollment Form'!$DK244,'Enrollment Form'!$DH244,'Enrollment Form'!$DN244,'Enrollment Form'!$DQ244),\"Y\",\"N\"))","v":""},{"$f":"IF($B237=\"N\",\"\",IF(OR('Enrollment Form'!B244<>\"Subscriber\",'Enrollment Form'!C244=\"ROC\",COUNTIF('Enrollment Form'!AV244:AW244,\"Yes\")>=1),\"-\",IF(AND('Enrollment Form'!C244=\"Enroll\",COUNTIF('Enrollment Form'!AV244:AW244,\"No\")=2,'Enrollment Form'!AX244=\"\"),\"N\",\"Y\")))","v":""},{"$f":"IF(OR(B237=\"N\",'Enrollment Form'!B244<>\"Subscriber\",'Enrollment Form'!C244=\"ROC\",'Enrollment Form'!O244<>\"Multiple of Salary\"),\"-\",IF(COUNTA('Enrollment Form'!T244:U244)<2,\"N\",\"Y\"))","v":"-"},{"$f":"IF(B237=\"N\",\"\",IF(OR('Enrollment Form'!C244=\"ROC\",'Enrollment Form'!B244<>\"Subscriber\",'Enrollment Form'!O244=\"Waive\",'Enrollment Form'!O244=\"\"),\"-\",IF('Enrollment Form'!P244=\"\",\"N\",\"Y\")))","v":""},{"$f":"IF($B237=\"N\",\"\",IF(AND('Enrollment Form'!$C244=\"ROC\",'Enrollment Form'!$DR244<>\"\"),\"Y\",IF(AND('Enrollment Form'!$C244=\"ROC\",'Enrollment Form'!$DR244=\"\"),\"N\",IF(AND('Enrollment Form'!$C244=\"Enroll\",'Enrollment Form'!$B244=\"Subscriber\",'Enrollment Form'!$CX244=\"No\",'Enrollment Form'!$DR244=\"\"),\"N\",IF(AND('Enrollment Form'!$C244=\"Enroll\",'Enrollment Form'!$B244=\"Subscriber\",'Enrollment Form'!$CX244=\"Yes\"),\"-\",\"Y\")))))","v":""},{"$f":"IF($B237=\"N\",\"\",IF(AND('Enrollment Form'!$C244=\"ROC\",'Enrollment Form'!$DS244<>\"\"),\"Y\",IF(AND('Enrollment Form'!$C244=\"ROC\",'Enrollment Form'!$DS244=\"\"),\"N\",IF(AND('Enrollment Form'!$C244=\"Enroll\",'Enrollment Form'!$B244=\"Subscriber\",'Enrollment Form'!$CX244=\"No\",'Enrollment Form'!$DS244=\"\"),\"N\",IF(AND('Enrollment Form'!$C244=\"Enroll\",'Enrollment Form'!$B244=\"Subscriber\",'Enrollment Form'!$CX244=\"Yes\"),\"-\",\"Y\")))))","v":""},{"$f":"IF('Enrollment Form'!AH244=\"\",\"\",IF(ISERROR(SEARCH(\".\",'Enrollment Form'!AH244,SEARCH(\"@\",'Enrollment Form'!AH244))),\"N\",\"Y\"))","v":""},{"$f":"IF(OR($B237=\"N\",'Enrollment Form'!$G244=\"\"),\"\",IF('Enrollment Form'!$B244<>\"Subscriber\",\"-\",IF(COUNTIF('Enrollment Form'!$AV244:$AW244,\"Yes\")=2,\"N\",\"Y\")))","v":""},{"$f":"IF(OR('Enrollment Form'!$CJ244=\"\",'Enrollment Form'!$CJ244=\"No\"),\"-\",IF(AND('Enrollment Form'!$CJ244=\"Yes\",'Enrollment Form'!$CK244=\"\"),\"N\",\"Y\"))","v":"-"},{"$f":"IF(OR('Enrollment Form'!$CL244=\"\",'Enrollment Form'!$CL244=\"No\"),\"-\",IF(AND('Enrollment Form'!$CL244=\"Yes\",'Enrollment Form'!$CM244=\"\"),\"N\",\"Y\"))","v":"-"},{"$f":"IF(OR('Enrollment Form'!$CN244=\"\",'Enrollment Form'!$CN244=\"No\"),\"-\",IF(AND('Enrollment Form'!$CN244=\"Yes\",'Enrollment Form'!$CO244=\"\"),\"N\",\"Y\"))","v":"-"},{"$f":"IF(OR('Enrollment Form'!$CN244=\"\",'Enrollment Form'!$CN244=\"No\"),\"-\",IF(AND('Enrollment Form'!$CN244=\"Yes\",'Enrollment Form'!$CP244=\"\"),\"N\",\"Y\"))","v":"-"},{"$f":"IF('Enrollment Form'!B244<>\"Subscriber\",\"-\",IF(AND('Enrollment Form'!B244=\"Subscriber\",'Enrollment Form'!C244=\"Enroll\",'Enrollment Form'!AA244=\"\"),\"N\",\"Y\"))","v":"-"},{"$f":"IF(OR('Enrollment Form'!B244=\"Subscriber\",'Enrollment Form'!B244=\"\"),\"-\",IF('Enrollment Form'!BP244=\"\",\"N\",\"Y\"))","v":"-"},{"$f":"IF('Enrollment Form'!B244<>\"Subscriber\",\"-\",IF(AND('Enrollment Form'!B244=\"Subscriber\",'Enrollment Form'!G244=\"\"),\"N\",\"Y\"))","v":"-"},{"$f":"IF('Enrollment Form'!A244=\"\",\"\",IF('Enrollment Form'!B244=\"Subscriber\",\"-\",IF(AND('Enrollment Form'!B244<>\"Subscriber\",'Enrollment Form'!G244='Enrollment Form'!H244),\"N\",\"Y\")))","v":""},0]
[245,{"$f":"IF('Enrollment Form'!$A245<>\"\",\"Y\",\"N\")","v":"N"},{"$f":"IF(AND('Enrollment Form'!$B245=\"\",'Enrollment Form'!$C245<>\"\"),\"N\",IF($B238=\"N\",\"\",\"Y\"))","v":""},{"$f":"IF(OR($B238=\"N\",'Enrollment Form'!G245=\"\"),\"\",IF('Enrollment Form'!$B245<>\"Subscriber\",\"\",IF('Enrollment Form'!$G245='Enrollment Form'!$H245,\"Y\",\"N\")))","v":""},{"$f":"IF($B238=\"N\",\"\",IF(AND(COUNTIFS('Enrollment Form'!$H$11:$H$1000,'Enrollment Form'!$H245,'Enrollment Form'!$B$11:$B$1000,'Enrollment Form'!$B245)>1,'Enrollment Form'!$H245<>\"\"),\"N\",\"Y\"))","v":""},{"$f":"IF($B238=\"N\",\"\",IF(LEN('Enrollment Form'!$Y245)=0,\"\",IF(LEN('Enrollment Form'!$Y245)<>5,\"N\",\"Y\")))","v":""},{"$f":"IF($B238=\"N\",\"\",IF(LEN('Enrollment Form'!$AD245=0),\"\",IF(LEN('Enrollment Form'!$AD245)<>5,\"N\",\"Y\")))","v":""},{"$f":"IF($B238=\"N\",\"\",IF(LEN('Enrollment Form'!$BS245=0),\"\",IF(LEN('Enrollment Form'!$BS245)<>5,\"N\",\"Y\")))","v":""},{"$f":"IF($B238=\"N\",\"\",IF(LEN('Enrollment Form'!$AE245)=0,\"\",IF(LEN('Enrollment Form'!$AE245)<>10,\"N\",\"Y\")))","v":""},{"$f":"IF($B238=\"N\",\"\",IF(LEN('Enrollment Form'!$AF245)=0,\"\",IF(LEN('Enrollment Form'!$AF245)<>10,\"N\",\"Y\")))","v":""},{"$f":"IF('Enrollment Form'!$O245<>\"Graded\",\"-\",IF(AND('Enrollment Form'!$O245=\"Graded\",'Enrollment Form'!$AR245<>\"\"),\"Y\",\"N\"))","v":"-"},{"$f":"IF($B238=\"N\",\"\",IF(OR('Enrollment Form'!$B245<>\"Subscriber\",'Enrollment Form'!$C245=\"ROC\"),\"-\",IF(AND('Enrollment Form'!$B245=\"Subscriber\",'Enrollment Form'!$C245=\"Enroll\",'Enrollment Form'!$AJ245<>\"\"),\"Y\",\"N\")))","v":""},{"$f":"IF($B238=\"N\",\"\",IF(OR('Enrollment Form'!$B245<>\"Subscriber\",'Enrollment Form'!$C245=\"ROC\"),\"-\",IF(AND('Enrollment Form'!$B245=\"Subscriber\",'Enrollment Form'!$C245=\"Enroll\",'Enrollment Form'!$AK245<>\"\"),\"Y\",\"N\")))","v":""},{"$f":"IF($B238=\"N\",\"\",IF(OR('Enrollment Form'!$B245<>\"Subscriber\",'Enrollment Form'!$C245=\"ROC\"),\"-\",IF(AND('Enrollment Form'!$B245=\"Subscriber\",'Enrollment Form'!$C245=\"Enroll\",'Enrollment Form'!$AL245<>\"\"),\"Y\",\"N\")))","v":""},{"$f":"IF($B238=\"N\",\"\",IF(OR('Enrollment Form'!$B245<>\"Subscriber\",'Enrollment Form'!$C245=\"ROC\"),\"-\",IF(AND('Enrollment Form'!$B245=\"Subscriber\",'Enrollment Form'!$C245=\"Enroll\",'Enrollment Form'!$AP245<>\"\"),\"Y\",\"N\")))","v":""},{"$f":"IF($B238=\"N\",\"\",IF(OR('Enrollment Form'!$B245<>\"Subscriber\",'Enrollment Form'!$C245=\"ROC\"),\"-\",IF(AND('Enrollment Form'!$B245=\"Subscriber\",'Enrollment Form'!$C245=\"Enroll\",'Enrollment Form'!$AQ245<>\"\"),\"Y\",\"N\")))","v":""},{"$f":"IF($B238=\"N\",\"\",IF(OR('Enrollment Form'!$B245<>\"Subscriber\",'Enrollment Form'!$C245=\"ROC\"),\"-\",IF(AND('Enrollment Form'!$B245=\"Subscriber\",'Enrollment Form'!$C245=\"Enroll\",'Enrollment Form'!$AS245<>\"\"),\"Y\",\"N\")))","v":""},{"$f":"IF($B238=\"N\",\"\",IF($Q238=\"-\",\"-\",IF(AND($Q238=\"Y\",'Enrollment Form'!$AS245=\"No\"),\"-\",IF(AND($Q238=\"Y\",'Enrollment Form'!$AS245=\"Yes\",'Enrollment Form'!$AT245<>\"\"),\"Y\",\"N\"))))","v":""},{"$f":"IF($B238=\"N\",\"\",IF(OR('Enrollment Form'!$B245<>\"Subscriber\",'Enrollment Form'!$C245=\"ROC\"),\"-\",IF(AND('Enrollment Form'!$B245=\"Subscriber\",'Enrollment Form'!$C245=\"Enroll\",'Enrollment Form'!$CV245<>\"\"),\"Y\",\"N\")))","v":""},{"$f":"IF($B238=\"N\",\"\",IF($S238=\"-\",\"-\",IF(AND($S238=\"Y\",'Enrollment Form'!$CV245=\"No\"),\"-\",IF(AND($S238=\"Y\",'Enrollment Form'!$CV245=\"Yes\",'Enrollment Form'!$CW245<>\"\"),\"Y\",\"N\"))))","v":""},{"$f":"IF(OR('Enrollment Form'!$AY245=\"Yes\",'Enrollment Form'!$AY245=\"\"),\"-\",IF(OR(AND('Enrollment Form'!$AY245=\"No\",ISERROR(FIND(\"HMO\",VLOOKUP('Enrollment Form'!G245,'Enrollment Form'!H$11:J$1000,3,FALSE),1))=FALSE,COUNTA('Enrollment Form'!$AZ245:$BC245)=4),AND('Enrollment Form'!$AY245=\"No\",ISERROR(FIND(\"HMO\",VLOOKUP('Enrollment Form'!G245,'Enrollment Form'!H$11:J$1000,3,FALSE),1))=FALSE,COUNTA('Enrollment Form'!$BT245:$BW245)=4)),\"Y\",\"N\"))","v":"-"},{"$f":"IF($B238=\"N\",\"\",IF('Enrollment Form'!$B245=\"Subscriber\",\"-\",IF(COUNTA('Enrollment Form'!$BL245,'Enrollment Form'!$BN245)=2,\"Y\",\"N\")))","v":""},{"$f":"IF($B238=\"N\",\"\",IF(OR('Enrollment Form'!$AX245=\"\",'Enrollment Form'!$AX245=\"No\"),\"-\",IF(AND('Enrollment Form'!$AX245=\"Yes\",COUNTA('Enrollment Form'!$CR245)=1),\"Y\",\"N\")))","v":""},{"$f":"IF(OR('Enrollment Form'!$CR245=\"\",'Enrollment Form'!$CR245=\"No\"),\"-\",IF(COUNTA('Enrollment Form'!$CT245:$CU245)=2,\"Y\",\"N\"))","v":"-"},{"$f":"IF($B238=\"N\",\"\",IF(COUNTIF('Enrollment Form'!$DG245:$DP245,\"Other\")=COUNTA('Enrollment Form'!$DK245,'Enrollment Form'!$DH245,'Enrollment Form'!$DN245,'Enrollment Form'!$DQ245),\"Y\",\"N\"))","v":""},{"$f":"IF($B238=\"N\",\"\",IF(OR('Enrollment Form'!B245<>\"Subscriber\",'Enrollment Form'!C245=\"ROC\",COUNTIF('Enrollment Form'!AV245:AW245,\"Yes\")>=1),\"-\",IF(AND('Enrollment Form'!C245=\"Enroll\",COUNTIF('Enrollment Form'!AV245:AW245,\"No\")=2,'Enrollment Form'!AX245=\"\"),\"N\",\"Y\")))","v":""},{"$f":"IF(OR(B238=\"N\",'Enrollment Form'!B245<>\"Subscriber\",'Enrollment Form'!C245=\"ROC\",'Enrollment Form'!O245<>\"Multiple of Salary\"),\"-\",IF(COUNTA('Enrollment Form'!T245:U245)<2,\"N\",\"Y\"))","v":"-"},{"$f":"IF(B238=\"N\",\"\",IF(OR('Enrollment Form'!C245=\"ROC\",'Enrollment Form'!B245<>\"Subscriber\",'Enrollment Form'!O245=\"Waive\",'Enrollment Form'!O245=\"\"),\"-\",IF('Enrollment Form'!P245=\"\",\"N\",\"Y\")))","v":""},{"$f":"IF($B238=\"N\",\"\",IF(AND('Enrollment Form'!$C245=\"ROC\",'Enrollment Form'!$DR245<>\"\"),\"Y\",IF(AND('Enrollment Form'!$C245=\"ROC\",'Enrollment Form'!$DR245=\"\"),\"N\",IF(AND('Enrollment Form'!$C245=\"Enroll\",'Enrollment Form'!$B245=\"Subscriber\",'Enrollment Form'!$CX245=\"No\",'Enrollment Form'!$DR245=\"\"),\"N\",IF(AND('Enrollment Form'!$C245=\"Enroll\",'Enrollment Form'!$B245=\"Subscriber\",'Enrollment Form'!$CX245=\"Yes\"),\"-\",\"Y\")))))","v":""},{"$f":"IF($B238=\"N\",\"\",IF(AND('Enrollment Form'!$C245=\"ROC\",'Enrollment Form'!$DS245<>\"\"),\"Y\",IF(AND('Enrollment Form'!$C245=\"ROC\",'Enrollment Form'!$DS245=\"\"),\"N\",IF(AND('Enrollment Form'!$C245=\"Enroll\",'Enrollment Form'!$B245=\"Subscriber\",'Enrollment Form'!$CX245=\"No\",'Enrollment Form'!$DS245=\"\"),\"N\",IF(AND('Enrollment Form'!$C245=\"Enroll\",'Enrollment Form'!$B245=\"Subscriber\",'Enrollment Form'!$CX245=\"Yes\"),\"-\",\"Y\")))))","v":""},{"$f":"IF('Enrollment Form'!AH245=\"\",\"\",IF(ISERROR(SEARCH(\".\",'Enrollment Form'!AH245,SEARCH(\"@\",'Enrollment Form'!AH245))),\"N\",\"Y\"))","v":""},{"$f":"IF(OR($B238=\"N\",'Enrollment Form'!$G245=\"\"),\"\",IF('Enrollment Form'!$B245<>\"Subscriber\",\"-\",IF(COUNTIF('Enrollment Form'!$AV245:$AW245,\"Yes\")=2,\"N\",\"Y\")))","v":""},{"$f":"IF(OR('Enrollment Form'!$CJ245=\"\",'Enrollment Form'!$CJ245=\"No\"),\"-\",IF(AND('Enrollment Form'!$CJ245=\"Yes\",'Enrollment Form'!$CK245=\"\"),\"N\",\"Y\"))","v":"-"},{"$f":"IF(OR('Enrollment Form'!$CL245=\"\",'Enrollment Form'!$CL245=\"No\"),\"-\",IF(AND('Enrollment Form'!$CL245=\"Yes\",'Enrollment Form'!$CM245=\"\"),\"N\",\"Y\"))","v":"-"},{"$f":"IF(OR('Enrollment Form'!$CN245=\"\",'Enrollment Form'!$CN245=\"No\"),\"-\",IF(AND('Enrollment Form'!$CN245=\"Yes\",'Enrollment Form'!$CO245=\"\"),\"N\",\"Y\"))","v":"-"},{"$f":"IF(OR('Enrollment Form'!$CN245=\"\",'Enrollment Form'!$CN245=\"No\"),\"-\",IF(AND('Enrollment Form'!$CN245=\"Yes\",'Enrollment Form'!$CP245=\"\"),\"N\",\"Y\"))","v":"-"},{"$f":"IF('Enrollment Form'!B245<>\"Subscriber\",\"-\",IF(AND('Enrollment Form'!B245=\"Subscriber\",'Enrollment Form'!C245=\"Enroll\",'Enrollment Form'!AA245=\"\"),\"N\",\"Y\"))","v":"-"},{"$f":"IF(OR('Enrollment Form'!B245=\"Subscriber\",'Enrollment Form'!B245=\"\"),\"-\",IF('Enrollment Form'!BP245=\"\",\"N\",\"Y\"))","v":"-"},{"$f":"IF('Enrollment Form'!B245<>\"Subscriber\",\"-\",IF(AND('Enrollment Form'!B245=\"Subscriber\",'Enrollment Form'!G245=\"\"),\"N\",\"Y\"))","v":"-"},{"$f":"IF('Enrollment Form'!A245=\"\",\"\",IF('Enrollment Form'!B245=\"Subscriber\",\"-\",IF(AND('Enrollment Form'!B245<>\"Subscriber\",'Enrollment Form'!G245='Enrollment Form'!H245),\"N\",\"Y\")))","v":""},0]
[246,{"$f":"IF('Enrollment Form'!$A246<>\"\",\"Y\",\"N\")","v":"N"},{"$f":"IF(AND('Enrollment Form'!$B246=\"\",'Enrollment Form'!$C246<>\"\"),\"N\",IF($B239=\"N\",\"\",\"Y\"))","v":""},{"$f":"IF(OR($B239=\"N\",'Enrollment Form'!G246=\"\"),\"\",IF('Enrollment Form'!$B246<>\"Subscriber\",\"\",IF('Enrollment Form'!$G246='Enrollment Form'!$H246,\"Y\",\"N\")))","v":""},{"$f":"IF($B239=\"N\",\"\",IF(AND(COUNTIFS('Enrollment Form'!$H$11:$H$1000,'Enrollment Form'!$H246,'Enrollment Form'!$B$11:$B$1000,'Enrollment Form'!$B246)>1,'Enrollment Form'!$H246<>\"\"),\"N\",\"Y\"))","v":""},{"$f":"IF($B239=\"N\",\"\",IF(LEN('Enrollment Form'!$Y246)=0,\"\",IF(LEN('Enrollment Form'!$Y246)<>5,\"N\",\"Y\")))","v":""},{"$f":"IF($B239=\"N\",\"\",IF(LEN('Enrollment Form'!$AD246=0),\"\",IF(LEN('Enrollment Form'!$AD246)<>5,\"N\",\"Y\")))","v":""},{"$f":"IF($B239=\"N\",\"\",IF(LEN('Enrollment Form'!$BS246=0),\"\",IF(LEN('Enrollment Form'!$BS246)<>5,\"N\",\"Y\")))","v":""},{"$f":"IF($B239=\"N\",\"\",IF(LEN('Enrollment Form'!$AE246)=0,\"\",IF(LEN('Enrollment Form'!$AE246)<>10,\"N\",\"Y\")))","v":""},{"$f":"IF($B239=\"N\",\"\",IF(LEN('Enrollment Form'!$AF246)=0,\"\",IF(LEN('Enrollment Form'!$AF246)<>10,\"N\",\"Y\")))","v":""},{"$f":"IF('Enrollment Form'!$O246<>\"Graded\",\"-\",IF(AND('Enrollment Form'!$O246=\"Graded\",'Enrollment Form'!$AR246<>\"\"),\"Y\",\"N\"))","v":"-"},{"$f":"IF($B239=\"N\",\"\",IF(OR('Enrollment Form'!$B246<>\"Subscriber\",'Enrollment Form'!$C246=\"ROC\"),\"-\",IF(AND('Enrollment Form'!$B246=\"Subscriber\",'Enrollment Form'!$C246=\"Enroll\",'Enrollment Form'!$AJ246<>\"\"),\"Y\",\"N\")))","v":""},{"$f":"IF($B239=\"N\",\"\",IF(OR('Enrollment Form'!$B246<>\"Subscriber\",'Enrollment Form'!$C246=\"ROC\"),\"-\",IF(AND('Enrollment Form'!$B246=\"Subscriber\",'Enrollment Form'!$C246=\"Enroll\",'Enrollment Form'!$AK246<>\"\"),\"Y\",\"N\")))","v":""},{"$f":"IF($B239=\"N\",\"\",IF(OR('Enrollment Form'!$B246<>\"Subscriber\",'Enrollment Form'!$C246=\"ROC\"),\"-\",IF(AND('Enrollment Form'!$B246=\"Subscriber\",'Enrollment Form'!$C246=\"Enroll\",'Enrollment Form'!$AL246<>\"\"),\"Y\",\"N\")))","v":""},{"$f":"IF($B239=\"N\",\"\",IF(OR('Enrollment Form'!$B246<>\"Subscriber\",'Enrollment Form'!$C246=\"ROC\"),\"-\",IF(AND('Enrollment Form'!$B246=\"Subscriber\",'Enrollment Form'!$C246=\"Enroll\",'Enrollment Form'!$AP246<>\"\"),\"Y\",\"N\")))","v":""},{"$f":"IF($B239=\"N\",\"\",IF(OR('Enrollment Form'!$B246<>\"Subscriber\",'Enrollment Form'!$C246=\"ROC\"),\"-\",IF(AND('Enrollment Form'!$B246=\"Subscriber\",'Enrollment Form'!$C246=\"Enroll\",'Enrollment Form'!$AQ246<>\"\"),\"Y\",\"N\")))","v":""},{"$f":"IF($B239=\"N\",\"\",IF(OR('Enrollment Form'!$B246<>\"Subscriber\",'Enrollment Form'!$C246=\"ROC\"),\"-\",IF(AND('Enrollment Form'!$B246=\"Subscriber\",'Enrollment Form'!$C246=\"Enroll\",'Enrollment Form'!$AS246<>\"\"),\"Y\",\"N\")))","v":""},{"$f":"IF($B239=\"N\",\"\",IF($Q239=\"-\",\"-\",IF(AND($Q239=\"Y\",'Enrollment Form'!$AS246=\"No\"),\"-\",IF(AND($Q239=\"Y\",'Enrollment Form'!$AS246=\"Yes\",'Enrollment Form'!$AT246<>\"\"),\"Y\",\"N\"))))","v":""},{"$f":"IF($B239=\"N\",\"\",IF(OR('Enrollment Form'!$B246<>\"Subscriber\",'Enrollment Form'!$C246=\"ROC\"),\"-\",IF(AND('Enrollment Form'!$B246=\"Subscriber\",'Enrollment Form'!$C246=\"Enroll\",'Enrollment Form'!$CV246<>\"\"),\"Y\",\"N\")))","v":""},{"$f":"IF($B239=\"N\",\"\",IF($S239=\"-\",\"-\",IF(AND($S239=\"Y\",'Enrollment Form'!$CV246=\"No\"),\"-\",IF(AND($S239=\"Y\",'Enrollment Form'!$CV246=\"Yes\",'Enrollment Form'!$CW246<>\"\"),\"Y\",\"N\"))))","v":""},{"$f":"IF(OR('Enrollment Form'!$AY246=\"Yes\",'Enrollment Form'!$AY246=\"\"),\"-\",IF(OR(AND('Enrollment Form'!$AY246=\"No\",ISERROR(FIND(\"HMO\",VLOOKUP('Enrollment Form'!G246,'Enrollment Form'!H$11:J$1000,3,FALSE),1))=FALSE,COUNTA('Enrollment Form'!$AZ246:$BC246)=4),AND('Enrollment Form'!$AY246=\"No\",ISERROR(FIND(\"HMO\",VLOOKUP('Enrollment Form'!G246,'Enrollment Form'!H$11:J$1000,3,FALSE),1))=FALSE,COUNTA('Enrollment Form'!$BT246:$BW246)=4)),\"Y\",\"N\"))","v":"-"},{"$f":"IF($B239=\"N\",\"\",IF('Enrollment Form'!$B246=\"Subscriber\",\"-\",IF(COUNTA('Enrollment Form'!$BL246,'Enrollment Form'!$BN246)=2,\"Y\",\"N\")))","v":""},{"$f":"IF($B239=\"N\",\"\",IF(OR('Enrollment Form'!$AX246=\"\",'Enrollment Form'!$AX246=\"No\"),\"-\",IF(AND('Enrollment Form'!$AX246=\"Yes\",COUNTA('Enrollment Form'!$CR246)=1),\"Y\",\"N\")))","v":""},{"$f":"IF(OR('Enrollment Form'!$CR246=\"\",'Enrollment Form'!$CR246=\"No\"),\"-\",IF(COUNTA('Enrollment Form'!$CT246:$CU246)=2,\"Y\",\"N\"))","v":"-"},{"$f":"IF($B239=\"N\",\"\",IF(COUNTIF('Enrollment Form'!$DG246:$DP246,\"Other\")=COUNTA('Enrollment Form'!$DK246,'Enrollment Form'!$DH246,'Enrollment Form'!$DN246,'Enrollment Form'!$DQ246),\"Y\",\"N\"))","v":""},{"$f":"IF($B239=\"N\",\"\",IF(OR('Enrollment Form'!B246<>\"Subscriber\",'Enrollment Form'!C246=\"ROC\",COUNTIF('Enrollment Form'!AV246:AW246,\"Yes\")>=1),\"-\",IF(AND('Enrollment Form'!C246=\"Enroll\",COUNTIF('Enrollment Form'!AV246:AW246,\"No\")=2,'Enrollment Form'!AX246=\"\"),\"N\",\"Y\")))","v":""},{"$f":"IF(OR(B239=\"N\",'Enrollment Form'!B246<>\"Subscriber\",'Enrollment Form'!C246=\"ROC\",'Enrollment Form'!O246<>\"Multiple of Salary\"),\"-\",IF(COUNTA('Enrollment Form'!T246:U246)<2,\"N\",\"Y\"))","v":"-"},{"$f":"IF(B239=\"N\",\"\",IF(OR('Enrollment Form'!C246=\"ROC\",'Enrollment Form'!B246<>\"Subscriber\",'Enrollment Form'!O246=\"Waive\",'Enrollment Form'!O246=\"\"),\"-\",IF('Enrollment Form'!P246=\"\",\"N\",\"Y\")))","v":""},{"$f":"IF($B239=\"N\",\"\",IF(AND('Enrollment Form'!$C246=\"ROC\",'Enrollment Form'!$DR246<>\"\"),\"Y\",IF(AND('Enrollment Form'!$C246=\"ROC\",'Enrollment Form'!$DR246=\"\"),\"N\",IF(AND('Enrollment Form'!$C246=\"Enroll\",'Enrollment Form'!$B246=\"Subscriber\",'Enrollment Form'!$CX246=\"No\",'Enrollment Form'!$DR246=\"\"),\"N\",IF(AND('Enrollment Form'!$C246=\"Enroll\",'Enrollment Form'!$B246=\"Subscriber\",'Enrollment Form'!$CX246=\"Yes\"),\"-\",\"Y\")))))","v":""},{"$f":"IF($B239=\"N\",\"\",IF(AND('Enrollment Form'!$C246=\"ROC\",'Enrollment Form'!$DS246<>\"\"),\"Y\",IF(AND('Enrollment Form'!$C246=\"ROC\",'Enrollment Form'!$DS246=\"\"),\"N\",IF(AND('Enrollment Form'!$C246=\"Enroll\",'Enrollment Form'!$B246=\"Subscriber\",'Enrollment Form'!$CX246=\"No\",'Enrollment Form'!$DS246=\"\"),\"N\",IF(AND('Enrollment Form'!$C246=\"Enroll\",'Enrollment Form'!$B246=\"Subscriber\",'Enrollment Form'!$CX246=\"Yes\"),\"-\",\"Y\")))))","v":""},{"$f":"IF('Enrollment Form'!AH246=\"\",\"\",IF(ISERROR(SEARCH(\".\",'Enrollment Form'!AH246,SEARCH(\"@\",'Enrollment Form'!AH246))),\"N\",\"Y\"))","v":""},{"$f":"IF(OR($B239=\"N\",'Enrollment Form'!$G246=\"\"),\"\",IF('Enrollment Form'!$B246<>\"Subscriber\",\"-\",IF(COUNTIF('Enrollment Form'!$AV246:$AW246,\"Yes\")=2,\"N\",\"Y\")))","v":""},{"$f":"IF(OR('Enrollment Form'!$CJ246=\"\",'Enrollment Form'!$CJ246=\"No\"),\"-\",IF(AND('Enrollment Form'!$CJ246=\"Yes\",'Enrollment Form'!$CK246=\"\"),\"N\",\"Y\"))","v":"-"},{"$f":"IF(OR('Enrollment Form'!$CL246=\"\",'Enrollment Form'!$CL246=\"No\"),\"-\",IF(AND('Enrollment Form'!$CL246=\"Yes\",'Enrollment Form'!$CM246=\"\"),\"N\",\"Y\"))","v":"-"},{"$f":"IF(OR('Enrollment Form'!$CN246=\"\",'Enrollment Form'!$CN246=\"No\"),\"-\",IF(AND('Enrollment Form'!$CN246=\"Yes\",'Enrollment Form'!$CO246=\"\"),\"N\",\"Y\"))","v":"-"},{"$f":"IF(OR('Enrollment Form'!$CN246=\"\",'Enrollment Form'!$CN246=\"No\"),\"-\",IF(AND('Enrollment Form'!$CN246=\"Yes\",'Enrollment Form'!$CP246=\"\"),\"N\",\"Y\"))","v":"-"},{"$f":"IF('Enrollment Form'!B246<>\"Subscriber\",\"-\",IF(AND('Enrollment Form'!B246=\"Subscriber\",'Enrollment Form'!C246=\"Enroll\",'Enrollment Form'!AA246=\"\"),\"N\",\"Y\"))","v":"-"},{"$f":"IF(OR('Enrollment Form'!B246=\"Subscriber\",'Enrollment Form'!B246=\"\"),\"-\",IF('Enrollment Form'!BP246=\"\",\"N\",\"Y\"))","v":"-"},{"$f":"IF('Enrollment Form'!B246<>\"Subscriber\",\"-\",IF(AND('Enrollment Form'!B246=\"Subscriber\",'Enrollment Form'!G246=\"\"),\"N\",\"Y\"))","v":"-"},{"$f":"IF('Enrollment Form'!A246=\"\",\"\",IF('Enrollment Form'!B246=\"Subscriber\",\"-\",IF(AND('Enrollment Form'!B246<>\"Subscriber\",'Enrollment Form'!G246='Enrollment Form'!H246),\"N\",\"Y\")))","v":""},0]
[247,{"$f":"IF('Enrollment Form'!$A247<>\"\",\"Y\",\"N\")","v":"N"},{"$f":"IF(AND('Enrollment Form'!$B247=\"\",'Enrollment Form'!$C247<>\"\"),\"N\",IF($B240=\"N\",\"\",\"Y\"))","v":""},{"$f":"IF(OR($B240=\"N\",'Enrollment Form'!G247=\"\"),\"\",IF('Enrollment Form'!$B247<>\"Subscriber\",\"\",IF('Enrollment Form'!$G247='Enrollment Form'!$H247,\"Y\",\"N\")))","v":""},{"$f":"IF($B240=\"N\",\"\",IF(AND(COUNTIFS('Enrollment Form'!$H$11:$H$1000,'Enrollment Form'!$H247,'Enrollment Form'!$B$11:$B$1000,'Enrollment Form'!$B247)>1,'Enrollment Form'!$H247<>\"\"),\"N\",\"Y\"))","v":""},{"$f":"IF($B240=\"N\",\"\",IF(LEN('Enrollment Form'!$Y247)=0,\"\",IF(LEN('Enrollment Form'!$Y247)<>5,\"N\",\"Y\")))","v":""},{"$f":"IF($B240=\"N\",\"\",IF(LEN('Enrollment Form'!$AD247=0),\"\",IF(LEN('Enrollment Form'!$AD247)<>5,\"N\",\"Y\")))","v":""},{"$f":"IF($B240=\"N\",\"\",IF(LEN('Enrollment Form'!$BS247=0),\"\",IF(LEN('Enrollment Form'!$BS247)<>5,\"N\",\"Y\")))","v":""},{"$f":"IF($B240=\"N\",\"\",IF(LEN('Enrollment Form'!$AE247)=0,\"\",IF(LEN('Enrollment Form'!$AE247)<>10,\"N\",\"Y\")))","v":""},{"$f":"IF($B240=\"N\",\"\",IF(LEN('Enrollment Form'!$AF247)=0,\"\",IF(LEN('Enrollment Form'!$AF247)<>10,\"N\",\"Y\")))","v":""},{"$f":"IF('Enrollment Form'!$O247<>\"Graded\",\"-\",IF(AND('Enrollment Form'!$O247=\"Graded\",'Enrollment Form'!$AR247<>\"\"),\"Y\",\"N\"))","v":"-"},{"$f":"IF($B240=\"N\",\"\",IF(OR('Enrollment Form'!$B247<>\"Subscriber\",'Enrollment Form'!$C247=\"ROC\"),\"-\",IF(AND('Enrollment Form'!$B247=\"Subscriber\",'Enrollment Form'!$C247=\"Enroll\",'Enrollment Form'!$AJ247<>\"\"),\"Y\",\"N\")))","v":""},{"$f":"IF($B240=\"N\",\"\",IF(OR('Enrollment Form'!$B247<>\"Subscriber\",'Enrollment Form'!$C247=\"ROC\"),\"-\",IF(AND('Enrollment Form'!$B247=\"Subscriber\",'Enrollment Form'!$C247=\"Enroll\",'Enrollment Form'!$AK247<>\"\"),\"Y\",\"N\")))","v":""},{"$f":"IF($B240=\"N\",\"\",IF(OR('Enrollment Form'!$B247<>\"Subscriber\",'Enrollment Form'!$C247=\"ROC\"),\"-\",IF(AND('Enrollment Form'!$B247=\"Subscriber\",'Enrollment Form'!$C247=\"Enroll\",'Enrollment Form'!$AL247<>\"\"),\"Y\",\"N\")))","v":""},{"$f":"IF($B240=\"N\",\"\",IF(OR('Enrollment Form'!$B247<>\"Subscriber\",'Enrollment Form'!$C247=\"ROC\"),\"-\",IF(AND('Enrollment Form'!$B247=\"Subscriber\",'Enrollment Form'!$C247=\"Enroll\",'Enrollment Form'!$AP247<>\"\"),\"Y\",\"N\")))","v":""},{"$f":"IF($B240=\"N\",\"\",IF(OR('Enrollment Form'!$B247<>\"Subscriber\",'Enrollment Form'!$C247=\"ROC\"),\"-\",IF(AND('Enrollment Form'!$B247=\"Subscriber\",'Enrollment Form'!$C247=\"Enroll\",'Enrollment Form'!$AQ247<>\"\"),\"Y\",\"N\")))","v":""},{"$f":"IF($B240=\"N\",\"\",IF(OR('Enrollment Form'!$B247<>\"Subscriber\",'Enrollment Form'!$C247=\"ROC\"),\"-\",IF(AND('Enrollment Form'!$B247=\"Subscriber\",'Enrollment Form'!$C247=\"Enroll\",'Enrollment Form'!$AS247<>\"\"),\"Y\",\"N\")))","v":""},{"$f":"IF($B240=\"N\",\"\",IF($Q240=\"-\",\"-\",IF(AND($Q240=\"Y\",'Enrollment Form'!$AS247=\"No\"),\"-\",IF(AND($Q240=\"Y\",'Enrollment Form'!$AS247=\"Yes\",'Enrollment Form'!$AT247<>\"\"),\"Y\",\"N\"))))","v":""},{"$f":"IF($B240=\"N\",\"\",IF(OR('Enrollment Form'!$B247<>\"Subscriber\",'Enrollment Form'!$C247=\"ROC\"),\"-\",IF(AND('Enrollment Form'!$B247=\"Subscriber\",'Enrollment Form'!$C247=\"Enroll\",'Enrollment Form'!$CV247<>\"\"),\"Y\",\"N\")))","v":""},{"$f":"IF($B240=\"N\",\"\",IF($S240=\"-\",\"-\",IF(AND($S240=\"Y\",'Enrollment Form'!$CV247=\"No\"),\"-\",IF(AND($S240=\"Y\",'Enrollment Form'!$CV247=\"Yes\",'Enrollment Form'!$CW247<>\"\"),\"Y\",\"N\"))))","v":""},{"$f":"IF(OR('Enrollment Form'!$AY247=\"Yes\",'Enrollment Form'!$AY247=\"\"),\"-\",IF(OR(AND('Enrollment Form'!$AY247=\"No\",ISERROR(FIND(\"HMO\",VLOOKUP('Enrollment Form'!G247,'Enrollment Form'!H$11:J$1000,3,FALSE),1))=FALSE,COUNTA('Enrollment Form'!$AZ247:$BC247)=4),AND('Enrollment Form'!$AY247=\"No\",ISERROR(FIND(\"HMO\",VLOOKUP('Enrollment Form'!G247,'Enrollment Form'!H$11:J$1000,3,FALSE),1))=FALSE,COUNTA('Enrollment Form'!$BT247:$BW247)=4)),\"Y\",\"N\"))","v":"-"},{"$f":"IF($B240=\"N\",\"\",IF('Enrollment Form'!$B247=\"Subscriber\",\"-\",IF(COUNTA('Enrollment Form'!$BL247,'Enrollment Form'!$BN247)=2,\"Y\",\"N\")))","v":""},{"$f":"IF($B240=\"N\",\"\",IF(OR('Enrollment Form'!$AX247=\"\",'Enrollment Form'!$AX247=\"No\"),\"-\",IF(AND('Enrollment Form'!$AX247=\"Yes\",COUNTA('Enrollment Form'!$CR247)=1),\"Y\",\"N\")))","v":""},{"$f":"IF(OR('Enrollment Form'!$CR247=\"\",'Enrollment Form'!$CR247=\"No\"),\"-\",IF(COUNTA('Enrollment Form'!$CT247:$CU247)=2,\"Y\",\"N\"))","v":"-"},{"$f":"IF($B240=\"N\",\"\",IF(COUNTIF('Enrollment Form'!$DG247:$DP247,\"Other\")=COUNTA('Enrollment Form'!$DK247,'Enrollment Form'!$DH247,'Enrollment Form'!$DN247,'Enrollment Form'!$DQ247),\"Y\",\"N\"))","v":""},{"$f":"IF($B240=\"N\",\"\",IF(OR('Enrollment Form'!B247<>\"Subscriber\",'Enrollment Form'!C247=\"ROC\",COUNTIF('Enrollment Form'!AV247:AW247,\"Yes\")>=1),\"-\",IF(AND('Enrollment Form'!C247=\"Enroll\",COUNTIF('Enrollment Form'!AV247:AW247,\"No\")=2,'Enrollment Form'!AX247=\"\"),\"N\",\"Y\")))","v":""},{"$f":"IF(OR(B240=\"N\",'Enrollment Form'!B247<>\"Subscriber\",'Enrollment Form'!C247=\"ROC\",'Enrollment Form'!O247<>\"Multiple of Salary\"),\"-\",IF(COUNTA('Enrollment Form'!T247:U247)<2,\"N\",\"Y\"))","v":"-"},{"$f":"IF(B240=\"N\",\"\",IF(OR('Enrollment Form'!C247=\"ROC\",'Enrollment Form'!B247<>\"Subscriber\",'Enrollment Form'!O247=\"Waive\",'Enrollment Form'!O247=\"\"),\"-\",IF('Enrollment Form'!P247=\"\",\"N\",\"Y\")))","v":""},{"$f":"IF($B240=\"N\",\"\",IF(AND('Enrollment Form'!$C247=\"ROC\",'Enrollment Form'!$DR247<>\"\"),\"Y\",IF(AND('Enrollment Form'!$C247=\"ROC\",'Enrollment Form'!$DR247=\"\"),\"N\",IF(AND('Enrollment Form'!$C247=\"Enroll\",'Enrollment Form'!$B247=\"Subscriber\",'Enrollment Form'!$CX247=\"No\",'Enrollment Form'!$DR247=\"\"),\"N\",IF(AND('Enrollment Form'!$C247=\"Enroll\",'Enrollment Form'!$B247=\"Subscriber\",'Enrollment Form'!$CX247=\"Yes\"),\"-\",\"Y\")))))","v":""},{"$f":"IF($B240=\"N\",\"\",IF(AND('Enrollment Form'!$C247=\"ROC\",'Enrollment Form'!$DS247<>\"\"),\"Y\",IF(AND('Enrollment Form'!$C247=\"ROC\",'Enrollment Form'!$DS247=\"\"),\"N\",IF(AND('Enrollment Form'!$C247=\"Enroll\",'Enrollment Form'!$B247=\"Subscriber\",'Enrollment Form'!$CX247=\"No\",'Enrollment Form'!$DS247=\"\"),\"N\",IF(AND('Enrollment Form'!$C247=\"Enroll\",'Enrollment Form'!$B247=\"Subscriber\",'Enrollment Form'!$CX247=\"Yes\"),\"-\",\"Y\")))))","v":""},{"$f":"IF('Enrollment Form'!AH247=\"\",\"\",IF(ISERROR(SEARCH(\".\",'Enrollment Form'!AH247,SEARCH(\"@\",'Enrollment Form'!AH247))),\"N\",\"Y\"))","v":""},{"$f":"IF(OR($B240=\"N\",'Enrollment Form'!$G247=\"\"),\"\",IF('Enrollment Form'!$B247<>\"Subscriber\",\"-\",IF(COUNTIF('Enrollment Form'!$AV247:$AW247,\"Yes\")=2,\"N\",\"Y\")))","v":""},{"$f":"IF(OR('Enrollment Form'!$CJ247=\"\",'Enrollment Form'!$CJ247=\"No\"),\"-\",IF(AND('Enrollment Form'!$CJ247=\"Yes\",'Enrollment Form'!$CK247=\"\"),\"N\",\"Y\"))","v":"-"},{"$f":"IF(OR('Enrollment Form'!$CL247=\"\",'Enrollment Form'!$CL247=\"No\"),\"-\",IF(AND('Enrollment Form'!$CL247=\"Yes\",'Enrollment Form'!$CM247=\"\"),\"N\",\"Y\"))","v":"-"},{"$f":"IF(OR('Enrollment Form'!$CN247=\"\",'Enrollment Form'!$CN247=\"No\"),\"-\",IF(AND('Enrollment Form'!$CN247=\"Yes\",'Enrollment Form'!$CO247=\"\"),\"N\",\"Y\"))","v":"-"},{"$f":"IF(OR('Enrollment Form'!$CN247=\"\",'Enrollment Form'!$CN247=\"No\"),\"-\",IF(AND('Enrollment Form'!$CN247=\"Yes\",'Enrollment Form'!$CP247=\"\"),\"N\",\"Y\"))","v":"-"},{"$f":"IF('Enrollment Form'!B247<>\"Subscriber\",\"-\",IF(AND('Enrollment Form'!B247=\"Subscriber\",'Enrollment Form'!C247=\"Enroll\",'Enrollment Form'!AA247=\"\"),\"N\",\"Y\"))","v":"-"},{"$f":"IF(OR('Enrollment Form'!B247=\"Subscriber\",'Enrollment Form'!B247=\"\"),\"-\",IF('Enrollment Form'!BP247=\"\",\"N\",\"Y\"))","v":"-"},{"$f":"IF('Enrollment Form'!B247<>\"Subscriber\",\"-\",IF(AND('Enrollment Form'!B247=\"Subscriber\",'Enrollment Form'!G247=\"\"),\"N\",\"Y\"))","v":"-"},{"$f":"IF('Enrollment Form'!A247=\"\",\"\",IF('Enrollment Form'!B247=\"Subscriber\",\"-\",IF(AND('Enrollment Form'!B247<>\"Subscriber\",'Enrollment Form'!G247='Enrollment Form'!H247),\"N\",\"Y\")))","v":""},0]
[248,{"$f":"IF('Enrollment Form'!$A248<>\"\",\"Y\",\"N\")","v":"N"},{"$f":"IF(AND('Enrollment Form'!$B248=\"\",'Enrollment Form'!$C248<>\"\"),\"N\",IF($B241=\"N\",\"\",\"Y\"))","v":""},{"$f":"IF(OR($B241=\"N\",'Enrollment Form'!G248=\"\"),\"\",IF('Enrollment Form'!$B248<>\"Subscriber\",\"\",IF('Enrollment Form'!$G248='Enrollment Form'!$H248,\"Y\",\"N\")))","v":""},{"$f":"IF($B241=\"N\",\"\",IF(AND(COUNTIFS('Enrollment Form'!$H$11:$H$1000,'Enrollment Form'!$H248,'Enrollment Form'!$B$11:$B$1000,'Enrollment Form'!$B248)>1,'Enrollment Form'!$H248<>\"\"),\"N\",\"Y\"))","v":""},{"$f":"IF($B241=\"N\",\"\",IF(LEN('Enrollment Form'!$Y248)=0,\"\",IF(LEN('Enrollment Form'!$Y248)<>5,\"N\",\"Y\")))","v":""},{"$f":"IF($B241=\"N\",\"\",IF(LEN('Enrollment Form'!$AD248=0),\"\",IF(LEN('Enrollment Form'!$AD248)<>5,\"N\",\"Y\")))","v":""},{"$f":"IF($B241=\"N\",\"\",IF(LEN('Enrollment Form'!$BS248=0),\"\",IF(LEN('Enrollment Form'!$BS248)<>5,\"N\",\"Y\")))","v":""},{"$f":"IF($B241=\"N\",\"\",IF(LEN('Enrollment Form'!$AE248)=0,\"\",IF(LEN('Enrollment Form'!$AE248)<>10,\"N\",\"Y\")))","v":""},{"$f":"IF($B241=\"N\",\"\",IF(LEN('Enrollment Form'!$AF248)=0,\"\",IF(LEN('Enrollment Form'!$AF248)<>10,\"N\",\"Y\")))","v":""},{"$f":"IF('Enrollment Form'!$O248<>\"Graded\",\"-\",IF(AND('Enrollment Form'!$O248=\"Graded\",'Enrollment Form'!$AR248<>\"\"),\"Y\",\"N\"))","v":"-"},{"$f":"IF($B241=\"N\",\"\",IF(OR('Enrollment Form'!$B248<>\"Subscriber\",'Enrollment Form'!$C248=\"ROC\"),\"-\",IF(AND('Enrollment Form'!$B248=\"Subscriber\",'Enrollment Form'!$C248=\"Enroll\",'Enrollment Form'!$AJ248<>\"\"),\"Y\",\"N\")))","v":""},{"$f":"IF($B241=\"N\",\"\",IF(OR('Enrollment Form'!$B248<>\"Subscriber\",'Enrollment Form'!$C248=\"ROC\"),\"-\",IF(AND('Enrollment Form'!$B248=\"Subscriber\",'Enrollment Form'!$C248=\"Enroll\",'Enrollment Form'!$AK248<>\"\"),\"Y\",\"N\")))","v":""},{"$f":"IF($B241=\"N\",\"\",IF(OR('Enrollment Form'!$B248<>\"Subscriber\",'Enrollment Form'!$C248=\"ROC\"),\"-\",IF(AND('Enrollment Form'!$B248=\"Subscriber\",'Enrollment Form'!$C248=\"Enroll\",'Enrollment Form'!$AL248<>\"\"),\"Y\",\"N\")))","v":""},{"$f":"IF($B241=\"N\",\"\",IF(OR('Enrollment Form'!$B248<>\"Subscriber\",'Enrollment Form'!$C248=\"ROC\"),\"-\",IF(AND('Enrollment Form'!$B248=\"Subscriber\",'Enrollment Form'!$C248=\"Enroll\",'Enrollment Form'!$AP248<>\"\"),\"Y\",\"N\")))","v":""},{"$f":"IF($B241=\"N\",\"\",IF(OR('Enrollment Form'!$B248<>\"Subscriber\",'Enrollment Form'!$C248=\"ROC\"),\"-\",IF(AND('Enrollment Form'!$B248=\"Subscriber\",'Enrollment Form'!$C248=\"Enroll\",'Enrollment Form'!$AQ248<>\"\"),\"Y\",\"N\")))","v":""},{"$f":"IF($B241=\"N\",\"\",IF(OR('Enrollment Form'!$B248<>\"Subscriber\",'Enrollment Form'!$C248=\"ROC\"),\"-\",IF(AND('Enrollment Form'!$B248=\"Subscriber\",'Enrollment Form'!$C248=\"Enroll\",'Enrollment Form'!$AS248<>\"\"),\"Y\",\"N\")))","v":""},{"$f":"IF($B241=\"N\",\"\",IF($Q241=\"-\",\"-\",IF(AND($Q241=\"Y\",'Enrollment Form'!$AS248=\"No\"),\"-\",IF(AND($Q241=\"Y\",'Enrollment Form'!$AS248=\"Yes\",'Enrollment Form'!$AT248<>\"\"),\"Y\",\"N\"))))","v":""},{"$f":"IF($B241=\"N\",\"\",IF(OR('Enrollment Form'!$B248<>\"Subscriber\",'Enrollment Form'!$C248=\"ROC\"),\"-\",IF(AND('Enrollment Form'!$B248=\"Subscriber\",'Enrollment Form'!$C248=\"Enroll\",'Enrollment Form'!$CV248<>\"\"),\"Y\",\"N\")))","v":""},{"$f":"IF($B241=\"N\",\"\",IF($S241=\"-\",\"-\",IF(AND($S241=\"Y\",'Enrollment Form'!$CV248=\"No\"),\"-\",IF(AND($S241=\"Y\",'Enrollment Form'!$CV248=\"Yes\",'Enrollment Form'!$CW248<>\"\"),\"Y\",\"N\"))))","v":""},{"$f":"IF(OR('Enrollment Form'!$AY248=\"Yes\",'Enrollment Form'!$AY248=\"\"),\"-\",IF(OR(AND('Enrollment Form'!$AY248=\"No\",ISERROR(FIND(\"HMO\",VLOOKUP('Enrollment Form'!G248,'Enrollment Form'!H$11:J$1000,3,FALSE),1))=FALSE,COUNTA('Enrollment Form'!$AZ248:$BC248)=4),AND('Enrollment Form'!$AY248=\"No\",ISERROR(FIND(\"HMO\",VLOOKUP('Enrollment Form'!G248,'Enrollment Form'!H$11:J$1000,3,FALSE),1))=FALSE,COUNTA('Enrollment Form'!$BT248:$BW248)=4)),\"Y\",\"N\"))","v":"-"},{"$f":"IF($B241=\"N\",\"\",IF('Enrollment Form'!$B248=\"Subscriber\",\"-\",IF(COUNTA('Enrollment Form'!$BL248,'Enrollment Form'!$BN248)=2,\"Y\",\"N\")))","v":""},{"$f":"IF($B241=\"N\",\"\",IF(OR('Enrollment Form'!$AX248=\"\",'Enrollment Form'!$AX248=\"No\"),\"-\",IF(AND('Enrollment Form'!$AX248=\"Yes\",COUNTA('Enrollment Form'!$CR248)=1),\"Y\",\"N\")))","v":""},{"$f":"IF(OR('Enrollment Form'!$CR248=\"\",'Enrollment Form'!$CR248=\"No\"),\"-\",IF(COUNTA('Enrollment Form'!$CT248:$CU248)=2,\"Y\",\"N\"))","v":"-"},{"$f":"IF($B241=\"N\",\"\",IF(COUNTIF('Enrollment Form'!$DG248:$DP248,\"Other\")=COUNTA('Enrollment Form'!$DK248,'Enrollment Form'!$DH248,'Enrollment Form'!$DN248,'Enrollment Form'!$DQ248),\"Y\",\"N\"))","v":""},{"$f":"IF($B241=\"N\",\"\",IF(OR('Enrollment Form'!B248<>\"Subscriber\",'Enrollment Form'!C248=\"ROC\",COUNTIF('Enrollment Form'!AV248:AW248,\"Yes\")>=1),\"-\",IF(AND('Enrollment Form'!C248=\"Enroll\",COUNTIF('Enrollment Form'!AV248:AW248,\"No\")=2,'Enrollment Form'!AX248=\"\"),\"N\",\"Y\")))","v":""},{"$f":"IF(OR(B241=\"N\",'Enrollment Form'!B248<>\"Subscriber\",'Enrollment Form'!C248=\"ROC\",'Enrollment Form'!O248<>\"Multiple of Salary\"),\"-\",IF(COUNTA('Enrollment Form'!T248:U248)<2,\"N\",\"Y\"))","v":"-"},{"$f":"IF(B241=\"N\",\"\",IF(OR('Enrollment Form'!C248=\"ROC\",'Enrollment Form'!B248<>\"Subscriber\",'Enrollment Form'!O248=\"Waive\",'Enrollment Form'!O248=\"\"),\"-\",IF('Enrollment Form'!P248=\"\",\"N\",\"Y\")))","v":""},{"$f":"IF($B241=\"N\",\"\",IF(AND('Enrollment Form'!$C248=\"ROC\",'Enrollment Form'!$DR248<>\"\"),\"Y\",IF(AND('Enrollment Form'!$C248=\"ROC\",'Enrollment Form'!$DR248=\"\"),\"N\",IF(AND('Enrollment Form'!$C248=\"Enroll\",'Enrollment Form'!$B248=\"Subscriber\",'Enrollment Form'!$CX248=\"No\",'Enrollment Form'!$DR248=\"\"),\"N\",IF(AND('Enrollment Form'!$C248=\"Enroll\",'Enrollment Form'!$B248=\"Subscriber\",'Enrollment Form'!$CX248=\"Yes\"),\"-\",\"Y\")))))","v":""},{"$f":"IF($B241=\"N\",\"\",IF(AND('Enrollment Form'!$C248=\"ROC\",'Enrollment Form'!$DS248<>\"\"),\"Y\",IF(AND('Enrollment Form'!$C248=\"ROC\",'Enrollment Form'!$DS248=\"\"),\"N\",IF(AND('Enrollment Form'!$C248=\"Enroll\",'Enrollment Form'!$B248=\"Subscriber\",'Enrollment Form'!$CX248=\"No\",'Enrollment Form'!$DS248=\"\"),\"N\",IF(AND('Enrollment Form'!$C248=\"Enroll\",'Enrollment Form'!$B248=\"Subscriber\",'Enrollment Form'!$CX248=\"Yes\"),\"-\",\"Y\")))))","v":""},{"$f":"IF('Enrollment Form'!AH248=\"\",\"\",IF(ISERROR(SEARCH(\".\",'Enrollment Form'!AH248,SEARCH(\"@\",'Enrollment Form'!AH248))),\"N\",\"Y\"))","v":""},{"$f":"IF(OR($B241=\"N\",'Enrollment Form'!$G248=\"\"),\"\",IF('Enrollment Form'!$B248<>\"Subscriber\",\"-\",IF(COUNTIF('Enrollment Form'!$AV248:$AW248,\"Yes\")=2,\"N\",\"Y\")))","v":""},{"$f":"IF(OR('Enrollment Form'!$CJ248=\"\",'Enrollment Form'!$CJ248=\"No\"),\"-\",IF(AND('Enrollment Form'!$CJ248=\"Yes\",'Enrollment Form'!$CK248=\"\"),\"N\",\"Y\"))","v":"-"},{"$f":"IF(OR('Enrollment Form'!$CL248=\"\",'Enrollment Form'!$CL248=\"No\"),\"-\",IF(AND('Enrollment Form'!$CL248=\"Yes\",'Enrollment Form'!$CM248=\"\"),\"N\",\"Y\"))","v":"-"},{"$f":"IF(OR('Enrollment Form'!$CN248=\"\",'Enrollment Form'!$CN248=\"No\"),\"-\",IF(AND('Enrollment Form'!$CN248=\"Yes\",'Enrollment Form'!$CO248=\"\"),\"N\",\"Y\"))","v":"-"},{"$f":"IF(OR('Enrollment Form'!$CN248=\"\",'Enrollment Form'!$CN248=\"No\"),\"-\",IF(AND('Enrollment Form'!$CN248=\"Yes\",'Enrollment Form'!$CP248=\"\"),\"N\",\"Y\"))","v":"-"},{"$f":"IF('Enrollment Form'!B248<>\"Subscriber\",\"-\",IF(AND('Enrollment Form'!B248=\"Subscriber\",'Enrollment Form'!C248=\"Enroll\",'Enrollment Form'!AA248=\"\"),\"N\",\"Y\"))","v":"-"},{"$f":"IF(OR('Enrollment Form'!B248=\"Subscriber\",'Enrollment Form'!B248=\"\"),\"-\",IF('Enrollment Form'!BP248=\"\",\"N\",\"Y\"))","v":"-"},{"$f":"IF('Enrollment Form'!B248<>\"Subscriber\",\"-\",IF(AND('Enrollment Form'!B248=\"Subscriber\",'Enrollment Form'!G248=\"\"),\"N\",\"Y\"))","v":"-"},{"$f":"IF('Enrollment Form'!A248=\"\",\"\",IF('Enrollment Form'!B248=\"Subscriber\",\"-\",IF(AND('Enrollment Form'!B248<>\"Subscriber\",'Enrollment Form'!G248='Enrollment Form'!H248),\"N\",\"Y\")))","v":""},0]
[249,{"$f":"IF('Enrollment Form'!$A249<>\"\",\"Y\",\"N\")","v":"N"},{"$f":"IF(AND('Enrollment Form'!$B249=\"\",'Enrollment Form'!$C249<>\"\"),\"N\",IF($B242=\"N\",\"\",\"Y\"))","v":""},{"$f":"IF(OR($B242=\"N\",'Enrollment Form'!G249=\"\"),\"\",IF('Enrollment Form'!$B249<>\"Subscriber\",\"\",IF('Enrollment Form'!$G249='Enrollment Form'!$H249,\"Y\",\"N\")))","v":""},{"$f":"IF($B242=\"N\",\"\",IF(AND(COUNTIFS('Enrollment Form'!$H$11:$H$1000,'Enrollment Form'!$H249,'Enrollment Form'!$B$11:$B$1000,'Enrollment Form'!$B249)>1,'Enrollment Form'!$H249<>\"\"),\"N\",\"Y\"))","v":""},{"$f":"IF($B242=\"N\",\"\",IF(LEN('Enrollment Form'!$Y249)=0,\"\",IF(LEN('Enrollment Form'!$Y249)<>5,\"N\",\"Y\")))","v":""},{"$f":"IF($B242=\"N\",\"\",IF(LEN('Enrollment Form'!$AD249=0),\"\",IF(LEN('Enrollment Form'!$AD249)<>5,\"N\",\"Y\")))","v":""},{"$f":"IF($B242=\"N\",\"\",IF(LEN('Enrollment Form'!$BS249=0),\"\",IF(LEN('Enrollment Form'!$BS249)<>5,\"N\",\"Y\")))","v":""},{"$f":"IF($B242=\"N\",\"\",IF(LEN('Enrollment Form'!$AE249)=0,\"\",IF(LEN('Enrollment Form'!$AE249)<>10,\"N\",\"Y\")))","v":""},{"$f":"IF($B242=\"N\",\"\",IF(LEN('Enrollment Form'!$AF249)=0,\"\",IF(LEN('Enrollment Form'!$AF249)<>10,\"N\",\"Y\")))","v":""},{"$f":"IF('Enrollment Form'!$O249<>\"Graded\",\"-\",IF(AND('Enrollment Form'!$O249=\"Graded\",'Enrollment Form'!$AR249<>\"\"),\"Y\",\"N\"))","v":"-"},{"$f":"IF($B242=\"N\",\"\",IF(OR('Enrollment Form'!$B249<>\"Subscriber\",'Enrollment Form'!$C249=\"ROC\"),\"-\",IF(AND('Enrollment Form'!$B249=\"Subscriber\",'Enrollment Form'!$C249=\"Enroll\",'Enrollment Form'!$AJ249<>\"\"),\"Y\",\"N\")))","v":""},{"$f":"IF($B242=\"N\",\"\",IF(OR('Enrollment Form'!$B249<>\"Subscriber\",'Enrollment Form'!$C249=\"ROC\"),\"-\",IF(AND('Enrollment Form'!$B249=\"Subscriber\",'Enrollment Form'!$C249=\"Enroll\",'Enrollment Form'!$AK249<>\"\"),\"Y\",\"N\")))","v":""},{"$f":"IF($B242=\"N\",\"\",IF(OR('Enrollment Form'!$B249<>\"Subscriber\",'Enrollment Form'!$C249=\"ROC\"),\"-\",IF(AND('Enrollment Form'!$B249=\"Subscriber\",'Enrollment Form'!$C249=\"Enroll\",'Enrollment Form'!$AL249<>\"\"),\"Y\",\"N\")))","v":""},{"$f":"IF($B242=\"N\",\"\",IF(OR('Enrollment Form'!$B249<>\"Subscriber\",'Enrollment Form'!$C249=\"ROC\"),\"-\",IF(AND('Enrollment Form'!$B249=\"Subscriber\",'Enrollment Form'!$C249=\"Enroll\",'Enrollment Form'!$AP249<>\"\"),\"Y\",\"N\")))","v":""},{"$f":"IF($B242=\"N\",\"\",IF(OR('Enrollment Form'!$B249<>\"Subscriber\",'Enrollment Form'!$C249=\"ROC\"),\"-\",IF(AND('Enrollment Form'!$B249=\"Subscriber\",'Enrollment Form'!$C249=\"Enroll\",'Enrollment Form'!$AQ249<>\"\"),\"Y\",\"N\")))","v":""},{"$f":"IF($B242=\"N\",\"\",IF(OR('Enrollment Form'!$B249<>\"Subscriber\",'Enrollment Form'!$C249=\"ROC\"),\"-\",IF(AND('Enrollment Form'!$B249=\"Subscriber\",'Enrollment Form'!$C249=\"Enroll\",'Enrollment Form'!$AS249<>\"\"),\"Y\",\"N\")))","v":""},{"$f":"IF($B242=\"N\",\"\",IF($Q242=\"-\",\"-\",IF(AND($Q242=\"Y\",'Enrollment Form'!$AS249=\"No\"),\"-\",IF(AND($Q242=\"Y\",'Enrollment Form'!$AS249=\"Yes\",'Enrollment Form'!$AT249<>\"\"),\"Y\",\"N\"))))","v":""},{"$f":"IF($B242=\"N\",\"\",IF(OR('Enrollment Form'!$B249<>\"Subscriber\",'Enrollment Form'!$C249=\"ROC\"),\"-\",IF(AND('Enrollment Form'!$B249=\"Subscriber\",'Enrollment Form'!$C249=\"Enroll\",'Enrollment Form'!$CV249<>\"\"),\"Y\",\"N\")))","v":""},{"$f":"IF($B242=\"N\",\"\",IF($S242=\"-\",\"-\",IF(AND($S242=\"Y\",'Enrollment Form'!$CV249=\"No\"),\"-\",IF(AND($S242=\"Y\",'Enrollment Form'!$CV249=\"Yes\",'Enrollment Form'!$CW249<>\"\"),\"Y\",\"N\"))))","v":""},{"$f":"IF(OR('Enrollment Form'!$AY249=\"Yes\",'Enrollment Form'!$AY249=\"\"),\"-\",IF(OR(AND('Enrollment Form'!$AY249=\"No\",ISERROR(FIND(\"HMO\",VLOOKUP('Enrollment Form'!G249,'Enrollment Form'!H$11:J$1000,3,FALSE),1))=FALSE,COUNTA('Enrollment Form'!$AZ249:$BC249)=4),AND('Enrollment Form'!$AY249=\"No\",ISERROR(FIND(\"HMO\",VLOOKUP('Enrollment Form'!G249,'Enrollment Form'!H$11:J$1000,3,FALSE),1))=FALSE,COUNTA('Enrollment Form'!$BT249:$BW249)=4)),\"Y\",\"N\"))","v":"-"},{"$f":"IF($B242=\"N\",\"\",IF('Enrollment Form'!$B249=\"Subscriber\",\"-\",IF(COUNTA('Enrollment Form'!$BL249,'Enrollment Form'!$BN249)=2,\"Y\",\"N\")))","v":""},{"$f":"IF($B242=\"N\",\"\",IF(OR('Enrollment Form'!$AX249=\"\",'Enrollment Form'!$AX249=\"No\"),\"-\",IF(AND('Enrollment Form'!$AX249=\"Yes\",COUNTA('Enrollment Form'!$CR249)=1),\"Y\",\"N\")))","v":""},{"$f":"IF(OR('Enrollment Form'!$CR249=\"\",'Enrollment Form'!$CR249=\"No\"),\"-\",IF(COUNTA('Enrollment Form'!$CT249:$CU249)=2,\"Y\",\"N\"))","v":"-"},{"$f":"IF($B242=\"N\",\"\",IF(COUNTIF('Enrollment Form'!$DG249:$DP249,\"Other\")=COUNTA('Enrollment Form'!$DK249,'Enrollment Form'!$DH249,'Enrollment Form'!$DN249,'Enrollment Form'!$DQ249),\"Y\",\"N\"))","v":""},{"$f":"IF($B242=\"N\",\"\",IF(OR('Enrollment Form'!B249<>\"Subscriber\",'Enrollment Form'!C249=\"ROC\",COUNTIF('Enrollment Form'!AV249:AW249,\"Yes\")>=1),\"-\",IF(AND('Enrollment Form'!C249=\"Enroll\",COUNTIF('Enrollment Form'!AV249:AW249,\"No\")=2,'Enrollment Form'!AX249=\"\"),\"N\",\"Y\")))","v":""},{"$f":"IF(OR(B242=\"N\",'Enrollment Form'!B249<>\"Subscriber\",'Enrollment Form'!C249=\"ROC\",'Enrollment Form'!O249<>\"Multiple of Salary\"),\"-\",IF(COUNTA('Enrollment Form'!T249:U249)<2,\"N\",\"Y\"))","v":"-"},{"$f":"IF(B242=\"N\",\"\",IF(OR('Enrollment Form'!C249=\"ROC\",'Enrollment Form'!B249<>\"Subscriber\",'Enrollment Form'!O249=\"Waive\",'Enrollment Form'!O249=\"\"),\"-\",IF('Enrollment Form'!P249=\"\",\"N\",\"Y\")))","v":""},{"$f":"IF($B242=\"N\",\"\",IF(AND('Enrollment Form'!$C249=\"ROC\",'Enrollment Form'!$DR249<>\"\"),\"Y\",IF(AND('Enrollment Form'!$C249=\"ROC\",'Enrollment Form'!$DR249=\"\"),\"N\",IF(AND('Enrollment Form'!$C249=\"Enroll\",'Enrollment Form'!$B249=\"Subscriber\",'Enrollment Form'!$CX249=\"No\",'Enrollment Form'!$DR249=\"\"),\"N\",IF(AND('Enrollment Form'!$C249=\"Enroll\",'Enrollment Form'!$B249=\"Subscriber\",'Enrollment Form'!$CX249=\"Yes\"),\"-\",\"Y\")))))","v":""},{"$f":"IF($B242=\"N\",\"\",IF(AND('Enrollment Form'!$C249=\"ROC\",'Enrollment Form'!$DS249<>\"\"),\"Y\",IF(AND('Enrollment Form'!$C249=\"ROC\",'Enrollment Form'!$DS249=\"\"),\"N\",IF(AND('Enrollment Form'!$C249=\"Enroll\",'Enrollment Form'!$B249=\"Subscriber\",'Enrollment Form'!$CX249=\"No\",'Enrollment Form'!$DS249=\"\"),\"N\",IF(AND('Enrollment Form'!$C249=\"Enroll\",'Enrollment Form'!$B249=\"Subscriber\",'Enrollment Form'!$CX249=\"Yes\"),\"-\",\"Y\")))))","v":""},{"$f":"IF('Enrollment Form'!AH249=\"\",\"\",IF(ISERROR(SEARCH(\".\",'Enrollment Form'!AH249,SEARCH(\"@\",'Enrollment Form'!AH249))),\"N\",\"Y\"))","v":""},{"$f":"IF(OR($B242=\"N\",'Enrollment Form'!$G249=\"\"),\"\",IF('Enrollment Form'!$B249<>\"Subscriber\",\"-\",IF(COUNTIF('Enrollment Form'!$AV249:$AW249,\"Yes\")=2,\"N\",\"Y\")))","v":""},{"$f":"IF(OR('Enrollment Form'!$CJ249=\"\",'Enrollment Form'!$CJ249=\"No\"),\"-\",IF(AND('Enrollment Form'!$CJ249=\"Yes\",'Enrollment Form'!$CK249=\"\"),\"N\",\"Y\"))","v":"-"},{"$f":"IF(OR('Enrollment Form'!$CL249=\"\",'Enrollment Form'!$CL249=\"No\"),\"-\",IF(AND('Enrollment Form'!$CL249=\"Yes\",'Enrollment Form'!$CM249=\"\"),\"N\",\"Y\"))","v":"-"},{"$f":"IF(OR('Enrollment Form'!$CN249=\"\",'Enrollment Form'!$CN249=\"No\"),\"-\",IF(AND('Enrollment Form'!$CN249=\"Yes\",'Enrollment Form'!$CO249=\"\"),\"N\",\"Y\"))","v":"-"},{"$f":"IF(OR('Enrollment Form'!$CN249=\"\",'Enrollment Form'!$CN249=\"No\"),\"-\",IF(AND('Enrollment Form'!$CN249=\"Yes\",'Enrollment Form'!$CP249=\"\"),\"N\",\"Y\"))","v":"-"},{"$f":"IF('Enrollment Form'!B249<>\"Subscriber\",\"-\",IF(AND('Enrollment Form'!B249=\"Subscriber\",'Enrollment Form'!C249=\"Enroll\",'Enrollment Form'!AA249=\"\"),\"N\",\"Y\"))","v":"-"},{"$f":"IF(OR('Enrollment Form'!B249=\"Subscriber\",'Enrollment Form'!B249=\"\"),\"-\",IF('Enrollment Form'!BP249=\"\",\"N\",\"Y\"))","v":"-"},{"$f":"IF('Enrollment Form'!B249<>\"Subscriber\",\"-\",IF(AND('Enrollment Form'!B249=\"Subscriber\",'Enrollment Form'!G249=\"\"),\"N\",\"Y\"))","v":"-"},{"$f":"IF('Enrollment Form'!A249=\"\",\"\",IF('Enrollment Form'!B249=\"Subscriber\",\"-\",IF(AND('Enrollment Form'!B249<>\"Subscriber\",'Enrollment Form'!G249='Enrollment Form'!H249),\"N\",\"Y\")))","v":""},0]
[250,{"$f":"IF('Enrollment Form'!$A250<>\"\",\"Y\",\"N\")","v":"N"},{"$f":"IF(AND('Enrollment Form'!$B250=\"\",'Enrollment Form'!$C250<>\"\"),\"N\",IF($B243=\"N\",\"\",\"Y\"))","v":""},{"$f":"IF(OR($B243=\"N\",'Enrollment Form'!G250=\"\"),\"\",IF('Enrollment Form'!$B250<>\"Subscriber\",\"\",IF('Enrollment Form'!$G250='Enrollment Form'!$H250,\"Y\",\"N\")))","v":""},{"$f":"IF($B243=\"N\",\"\",IF(AND(COUNTIFS('Enrollment Form'!$H$11:$H$1000,'Enrollment Form'!$H250,'Enrollment Form'!$B$11:$B$1000,'Enrollment Form'!$B250)>1,'Enrollment Form'!$H250<>\"\"),\"N\",\"Y\"))","v":""},{"$f":"IF($B243=\"N\",\"\",IF(LEN('Enrollment Form'!$Y250)=0,\"\",IF(LEN('Enrollment Form'!$Y250)<>5,\"N\",\"Y\")))","v":""},{"$f":"IF($B243=\"N\",\"\",IF(LEN('Enrollment Form'!$AD250=0),\"\",IF(LEN('Enrollment Form'!$AD250)<>5,\"N\",\"Y\")))","v":""},{"$f":"IF($B243=\"N\",\"\",IF(LEN('Enrollment Form'!$BS250=0),\"\",IF(LEN('Enrollment Form'!$BS250)<>5,\"N\",\"Y\")))","v":""},{"$f":"IF($B243=\"N\",\"\",IF(LEN('Enrollment Form'!$AE250)=0,\"\",IF(LEN('Enrollment Form'!$AE250)<>10,\"N\",\"Y\")))","v":""},{"$f":"IF($B243=\"N\",\"\",IF(LEN('Enrollment Form'!$AF250)=0,\"\",IF(LEN('Enrollment Form'!$AF250)<>10,\"N\",\"Y\")))","v":""},{"$f":"IF('Enrollment Form'!$O250<>\"Graded\",\"-\",IF(AND('Enrollment Form'!$O250=\"Graded\",'Enrollment Form'!$AR250<>\"\"),\"Y\",\"N\"))","v":"-"},{"$f":"IF($B243=\"N\",\"\",IF(OR('Enrollment Form'!$B250<>\"Subscriber\",'Enrollment Form'!$C250=\"ROC\"),\"-\",IF(AND('Enrollment Form'!$B250=\"Subscriber\",'Enrollment Form'!$C250=\"Enroll\",'Enrollment Form'!$AJ250<>\"\"),\"Y\",\"N\")))","v":""},{"$f":"IF($B243=\"N\",\"\",IF(OR('Enrollment Form'!$B250<>\"Subscriber\",'Enrollment Form'!$C250=\"ROC\"),\"-\",IF(AND('Enrollment Form'!$B250=\"Subscriber\",'Enrollment Form'!$C250=\"Enroll\",'Enrollment Form'!$AK250<>\"\"),\"Y\",\"N\")))","v":""},{"$f":"IF($B243=\"N\",\"\",IF(OR('Enrollment Form'!$B250<>\"Subscriber\",'Enrollment Form'!$C250=\"ROC\"),\"-\",IF(AND('Enrollment Form'!$B250=\"Subscriber\",'Enrollment Form'!$C250=\"Enroll\",'Enrollment Form'!$AL250<>\"\"),\"Y\",\"N\")))","v":""},{"$f":"IF($B243=\"N\",\"\",IF(OR('Enrollment Form'!$B250<>\"Subscriber\",'Enrollment Form'!$C250=\"ROC\"),\"-\",IF(AND('Enrollment Form'!$B250=\"Subscriber\",'Enrollment Form'!$C250=\"Enroll\",'Enrollment Form'!$AP250<>\"\"),\"Y\",\"N\")))","v":""},{"$f":"IF($B243=\"N\",\"\",IF(OR('Enrollment Form'!$B250<>\"Subscriber\",'Enrollment Form'!$C250=\"ROC\"),\"-\",IF(AND('Enrollment Form'!$B250=\"Subscriber\",'Enrollment Form'!$C250=\"Enroll\",'Enrollment Form'!$AQ250<>\"\"),\"Y\",\"N\")))","v":""},{"$f":"IF($B243=\"N\",\"\",IF(OR('Enrollment Form'!$B250<>\"Subscriber\",'Enrollment Form'!$C250=\"ROC\"),\"-\",IF(AND('Enrollment Form'!$B250=\"Subscriber\",'Enrollment Form'!$C250=\"Enroll\",'Enrollment Form'!$AS250<>\"\"),\"Y\",\"N\")))","v":""},{"$f":"IF($B243=\"N\",\"\",IF($Q243=\"-\",\"-\",IF(AND($Q243=\"Y\",'Enrollment Form'!$AS250=\"No\"),\"-\",IF(AND($Q243=\"Y\",'Enrollment Form'!$AS250=\"Yes\",'Enrollment Form'!$AT250<>\"\"),\"Y\",\"N\"))))","v":""},{"$f":"IF($B243=\"N\",\"\",IF(OR('Enrollment Form'!$B250<>\"Subscriber\",'Enrollment Form'!$C250=\"ROC\"),\"-\",IF(AND('Enrollment Form'!$B250=\"Subscriber\",'Enrollment Form'!$C250=\"Enroll\",'Enrollment Form'!$CV250<>\"\"),\"Y\",\"N\")))","v":""},{"$f":"IF($B243=\"N\",\"\",IF($S243=\"-\",\"-\",IF(AND($S243=\"Y\",'Enrollment Form'!$CV250=\"No\"),\"-\",IF(AND($S243=\"Y\",'Enrollment Form'!$CV250=\"Yes\",'Enrollment Form'!$CW250<>\"\"),\"Y\",\"N\"))))","v":""},{"$f":"IF(OR('Enrollment Form'!$AY250=\"Yes\",'Enrollment Form'!$AY250=\"\"),\"-\",IF(OR(AND('Enrollment Form'!$AY250=\"No\",ISERROR(FIND(\"HMO\",VLOOKUP('Enrollment Form'!G250,'Enrollment Form'!H$11:J$1000,3,FALSE),1))=FALSE,COUNTA('Enrollment Form'!$AZ250:$BC250)=4),AND('Enrollment Form'!$AY250=\"No\",ISERROR(FIND(\"HMO\",VLOOKUP('Enrollment Form'!G250,'Enrollment Form'!H$11:J$1000,3,FALSE),1))=FALSE,COUNTA('Enrollment Form'!$BT250:$BW250)=4)),\"Y\",\"N\"))","v":"-"},{"$f":"IF($B243=\"N\",\"\",IF('Enrollment Form'!$B250=\"Subscriber\",\"-\",IF(COUNTA('Enrollment Form'!$BL250,'Enrollment Form'!$BN250)=2,\"Y\",\"N\")))","v":""},{"$f":"IF($B243=\"N\",\"\",IF(OR('Enrollment Form'!$AX250=\"\",'Enrollment Form'!$AX250=\"No\"),\"-\",IF(AND('Enrollment Form'!$AX250=\"Yes\",COUNTA('Enrollment Form'!$CR250)=1),\"Y\",\"N\")))","v":""},{"$f":"IF(OR('Enrollment Form'!$CR250=\"\",'Enrollment Form'!$CR250=\"No\"),\"-\",IF(COUNTA('Enrollment Form'!$CT250:$CU250)=2,\"Y\",\"N\"))","v":"-"},{"$f":"IF($B243=\"N\",\"\",IF(COUNTIF('Enrollment Form'!$DG250:$DP250,\"Other\")=COUNTA('Enrollment Form'!$DK250,'Enrollment Form'!$DH250,'Enrollment Form'!$DN250,'Enrollment Form'!$DQ250),\"Y\",\"N\"))","v":""},{"$f":"IF($B243=\"N\",\"\",IF(OR('Enrollment Form'!B250<>\"Subscriber\",'Enrollment Form'!C250=\"ROC\",COUNTIF('Enrollment Form'!AV250:AW250,\"Yes\")>=1),\"-\",IF(AND('Enrollment Form'!C250=\"Enroll\",COUNTIF('Enrollment Form'!AV250:AW250,\"No\")=2,'Enrollment Form'!AX250=\"\"),\"N\",\"Y\")))","v":""},{"$f":"IF(OR(B243=\"N\",'Enrollment Form'!B250<>\"Subscriber\",'Enrollment Form'!C250=\"ROC\",'Enrollment Form'!O250<>\"Multiple of Salary\"),\"-\",IF(COUNTA('Enrollment Form'!T250:U250)<2,\"N\",\"Y\"))","v":"-"},{"$f":"IF(B243=\"N\",\"\",IF(OR('Enrollment Form'!C250=\"ROC\",'Enrollment Form'!B250<>\"Subscriber\",'Enrollment Form'!O250=\"Waive\",'Enrollment Form'!O250=\"\"),\"-\",IF('Enrollment Form'!P250=\"\",\"N\",\"Y\")))","v":""},{"$f":"IF($B243=\"N\",\"\",IF(AND('Enrollment Form'!$C250=\"ROC\",'Enrollment Form'!$DR250<>\"\"),\"Y\",IF(AND('Enrollment Form'!$C250=\"ROC\",'Enrollment Form'!$DR250=\"\"),\"N\",IF(AND('Enrollment Form'!$C250=\"Enroll\",'Enrollment Form'!$B250=\"Subscriber\",'Enrollment Form'!$CX250=\"No\",'Enrollment Form'!$DR250=\"\"),\"N\",IF(AND('Enrollment Form'!$C250=\"Enroll\",'Enrollment Form'!$B250=\"Subscriber\",'Enrollment Form'!$CX250=\"Yes\"),\"-\",\"Y\")))))","v":""},{"$f":"IF($B243=\"N\",\"\",IF(AND('Enrollment Form'!$C250=\"ROC\",'Enrollment Form'!$DS250<>\"\"),\"Y\",IF(AND('Enrollment Form'!$C250=\"ROC\",'Enrollment Form'!$DS250=\"\"),\"N\",IF(AND('Enrollment Form'!$C250=\"Enroll\",'Enrollment Form'!$B250=\"Subscriber\",'Enrollment Form'!$CX250=\"No\",'Enrollment Form'!$DS250=\"\"),\"N\",IF(AND('Enrollment Form'!$C250=\"Enroll\",'Enrollment Form'!$B250=\"Subscriber\",'Enrollment Form'!$CX250=\"Yes\"),\"-\",\"Y\")))))","v":""},{"$f":"IF('Enrollment Form'!AH250=\"\",\"\",IF(ISERROR(SEARCH(\".\",'Enrollment Form'!AH250,SEARCH(\"@\",'Enrollment Form'!AH250))),\"N\",\"Y\"))","v":""},{"$f":"IF(OR($B243=\"N\",'Enrollment Form'!$G250=\"\"),\"\",IF('Enrollment Form'!$B250<>\"Subscriber\",\"-\",IF(COUNTIF('Enrollment Form'!$AV250:$AW250,\"Yes\")=2,\"N\",\"Y\")))","v":""},{"$f":"IF(OR('Enrollment Form'!$CJ250=\"\",'Enrollment Form'!$CJ250=\"No\"),\"-\",IF(AND('Enrollment Form'!$CJ250=\"Yes\",'Enrollment Form'!$CK250=\"\"),\"N\",\"Y\"))","v":"-"},{"$f":"IF(OR('Enrollment Form'!$CL250=\"\",'Enrollment Form'!$CL250=\"No\"),\"-\",IF(AND('Enrollment Form'!$CL250=\"Yes\",'Enrollment Form'!$CM250=\"\"),\"N\",\"Y\"))","v":"-"},{"$f":"IF(OR('Enrollment Form'!$CN250=\"\",'Enrollment Form'!$CN250=\"No\"),\"-\",IF(AND('Enrollment Form'!$CN250=\"Yes\",'Enrollment Form'!$CO250=\"\"),\"N\",\"Y\"))","v":"-"},{"$f":"IF(OR('Enrollment Form'!$CN250=\"\",'Enrollment Form'!$CN250=\"No\"),\"-\",IF(AND('Enrollment Form'!$CN250=\"Yes\",'Enrollment Form'!$CP250=\"\"),\"N\",\"Y\"))","v":"-"},{"$f":"IF('Enrollment Form'!B250<>\"Subscriber\",\"-\",IF(AND('Enrollment Form'!B250=\"Subscriber\",'Enrollment Form'!C250=\"Enroll\",'Enrollment Form'!AA250=\"\"),\"N\",\"Y\"))","v":"-"},{"$f":"IF(OR('Enrollment Form'!B250=\"Subscriber\",'Enrollment Form'!B250=\"\"),\"-\",IF('Enrollment Form'!BP250=\"\",\"N\",\"Y\"))","v":"-"},{"$f":"IF('Enrollment Form'!B250<>\"Subscriber\",\"-\",IF(AND('Enrollment Form'!B250=\"Subscriber\",'Enrollment Form'!G250=\"\"),\"N\",\"Y\"))","v":"-"},{"$f":"IF('Enrollment Form'!A250=\"\",\"\",IF('Enrollment Form'!B250=\"Subscriber\",\"-\",IF(AND('Enrollment Form'!B250<>\"Subscriber\",'Enrollment Form'!G250='Enrollment Form'!H250),\"N\",\"Y\")))","v":""},0]
[251,{"$f":"IF('Enrollment Form'!$A251<>\"\",\"Y\",\"N\")","v":"N"},{"$f":"IF(AND('Enrollment Form'!$B251=\"\",'Enrollment Form'!$C251<>\"\"),\"N\",IF($B244=\"N\",\"\",\"Y\"))","v":""},{"$f":"IF(OR($B244=\"N\",'Enrollment Form'!G251=\"\"),\"\",IF('Enrollment Form'!$B251<>\"Subscriber\",\"\",IF('Enrollment Form'!$G251='Enrollment Form'!$H251,\"Y\",\"N\")))","v":""},{"$f":"IF($B244=\"N\",\"\",IF(AND(COUNTIFS('Enrollment Form'!$H$11:$H$1000,'Enrollment Form'!$H251,'Enrollment Form'!$B$11:$B$1000,'Enrollment Form'!$B251)>1,'Enrollment Form'!$H251<>\"\"),\"N\",\"Y\"))","v":""},{"$f":"IF($B244=\"N\",\"\",IF(LEN('Enrollment Form'!$Y251)=0,\"\",IF(LEN('Enrollment Form'!$Y251)<>5,\"N\",\"Y\")))","v":""},{"$f":"IF($B244=\"N\",\"\",IF(LEN('Enrollment Form'!$AD251=0),\"\",IF(LEN('Enrollment Form'!$AD251)<>5,\"N\",\"Y\")))","v":""},{"$f":"IF($B244=\"N\",\"\",IF(LEN('Enrollment Form'!$BS251=0),\"\",IF(LEN('Enrollment Form'!$BS251)<>5,\"N\",\"Y\")))","v":""},{"$f":"IF($B244=\"N\",\"\",IF(LEN('Enrollment Form'!$AE251)=0,\"\",IF(LEN('Enrollment Form'!$AE251)<>10,\"N\",\"Y\")))","v":""},{"$f":"IF($B244=\"N\",\"\",IF(LEN('Enrollment Form'!$AF251)=0,\"\",IF(LEN('Enrollment Form'!$AF251)<>10,\"N\",\"Y\")))","v":""},{"$f":"IF('Enrollment Form'!$O251<>\"Graded\",\"-\",IF(AND('Enrollment Form'!$O251=\"Graded\",'Enrollment Form'!$AR251<>\"\"),\"Y\",\"N\"))","v":"-"},{"$f":"IF($B244=\"N\",\"\",IF(OR('Enrollment Form'!$B251<>\"Subscriber\",'Enrollment Form'!$C251=\"ROC\"),\"-\",IF(AND('Enrollment Form'!$B251=\"Subscriber\",'Enrollment Form'!$C251=\"Enroll\",'Enrollment Form'!$AJ251<>\"\"),\"Y\",\"N\")))","v":""},{"$f":"IF($B244=\"N\",\"\",IF(OR('Enrollment Form'!$B251<>\"Subscriber\",'Enrollment Form'!$C251=\"ROC\"),\"-\",IF(AND('Enrollment Form'!$B251=\"Subscriber\",'Enrollment Form'!$C251=\"Enroll\",'Enrollment Form'!$AK251<>\"\"),\"Y\",\"N\")))","v":""},{"$f":"IF($B244=\"N\",\"\",IF(OR('Enrollment Form'!$B251<>\"Subscriber\",'Enrollment Form'!$C251=\"ROC\"),\"-\",IF(AND('Enrollment Form'!$B251=\"Subscriber\",'Enrollment Form'!$C251=\"Enroll\",'Enrollment Form'!$AL251<>\"\"),\"Y\",\"N\")))","v":""},{"$f":"IF($B244=\"N\",\"\",IF(OR('Enrollment Form'!$B251<>\"Subscriber\",'Enrollment Form'!$C251=\"ROC\"),\"-\",IF(AND('Enrollment Form'!$B251=\"Subscriber\",'Enrollment Form'!$C251=\"Enroll\",'Enrollment Form'!$AP251<>\"\"),\"Y\",\"N\")))","v":""},{"$f":"IF($B244=\"N\",\"\",IF(OR('Enrollment Form'!$B251<>\"Subscriber\",'Enrollment Form'!$C251=\"ROC\"),\"-\",IF(AND('Enrollment Form'!$B251=\"Subscriber\",'Enrollment Form'!$C251=\"Enroll\",'Enrollment Form'!$AQ251<>\"\"),\"Y\",\"N\")))","v":""},{"$f":"IF($B244=\"N\",\"\",IF(OR('Enrollment Form'!$B251<>\"Subscriber\",'Enrollment Form'!$C251=\"ROC\"),\"-\",IF(AND('Enrollment Form'!$B251=\"Subscriber\",'Enrollment Form'!$C251=\"Enroll\",'Enrollment Form'!$AS251<>\"\"),\"Y\",\"N\")))","v":""},{"$f":"IF($B244=\"N\",\"\",IF($Q244=\"-\",\"-\",IF(AND($Q244=\"Y\",'Enrollment Form'!$AS251=\"No\"),\"-\",IF(AND($Q244=\"Y\",'Enrollment Form'!$AS251=\"Yes\",'Enrollment Form'!$AT251<>\"\"),\"Y\",\"N\"))))","v":""},{"$f":"IF($B244=\"N\",\"\",IF(OR('Enrollment Form'!$B251<>\"Subscriber\",'Enrollment Form'!$C251=\"ROC\"),\"-\",IF(AND('Enrollment Form'!$B251=\"Subscriber\",'Enrollment Form'!$C251=\"Enroll\",'Enrollment Form'!$CV251<>\"\"),\"Y\",\"N\")))","v":""},{"$f":"IF($B244=\"N\",\"\",IF($S244=\"-\",\"-\",IF(AND($S244=\"Y\",'Enrollment Form'!$CV251=\"No\"),\"-\",IF(AND($S244=\"Y\",'Enrollment Form'!$CV251=\"Yes\",'Enrollment Form'!$CW251<>\"\"),\"Y\",\"N\"))))","v":""},{"$f":"IF(OR('Enrollment Form'!$AY251=\"Yes\",'Enrollment Form'!$AY251=\"\"),\"-\",IF(OR(AND('Enrollment Form'!$AY251=\"No\",ISERROR(FIND(\"HMO\",VLOOKUP('Enrollment Form'!G251,'Enrollment Form'!H$11:J$1000,3,FALSE),1))=FALSE,COUNTA('Enrollment Form'!$AZ251:$BC251)=4),AND('Enrollment Form'!$AY251=\"No\",ISERROR(FIND(\"HMO\",VLOOKUP('Enrollment Form'!G251,'Enrollment Form'!H$11:J$1000,3,FALSE),1))=FALSE,COUNTA('Enrollment Form'!$BT251:$BW251)=4)),\"Y\",\"N\"))","v":"-"},{"$f":"IF($B244=\"N\",\"\",IF('Enrollment Form'!$B251=\"Subscriber\",\"-\",IF(COUNTA('Enrollment Form'!$BL251,'Enrollment Form'!$BN251)=2,\"Y\",\"N\")))","v":""},{"$f":"IF($B244=\"N\",\"\",IF(OR('Enrollment Form'!$AX251=\"\",'Enrollment Form'!$AX251=\"No\"),\"-\",IF(AND('Enrollment Form'!$AX251=\"Yes\",COUNTA('Enrollment Form'!$CR251)=1),\"Y\",\"N\")))","v":""},{"$f":"IF(OR('Enrollment Form'!$CR251=\"\",'Enrollment Form'!$CR251=\"No\"),\"-\",IF(COUNTA('Enrollment Form'!$CT251:$CU251)=2,\"Y\",\"N\"))","v":"-"},{"$f":"IF($B244=\"N\",\"\",IF(COUNTIF('Enrollment Form'!$DG251:$DP251,\"Other\")=COUNTA('Enrollment Form'!$DK251,'Enrollment Form'!$DH251,'Enrollment Form'!$DN251,'Enrollment Form'!$DQ251),\"Y\",\"N\"))","v":""},{"$f":"IF($B244=\"N\",\"\",IF(OR('Enrollment Form'!B251<>\"Subscriber\",'Enrollment Form'!C251=\"ROC\",COUNTIF('Enrollment Form'!AV251:AW251,\"Yes\")>=1),\"-\",IF(AND('Enrollment Form'!C251=\"Enroll\",COUNTIF('Enrollment Form'!AV251:AW251,\"No\")=2,'Enrollment Form'!AX251=\"\"),\"N\",\"Y\")))","v":""},{"$f":"IF(OR(B244=\"N\",'Enrollment Form'!B251<>\"Subscriber\",'Enrollment Form'!C251=\"ROC\",'Enrollment Form'!O251<>\"Multiple of Salary\"),\"-\",IF(COUNTA('Enrollment Form'!T251:U251)<2,\"N\",\"Y\"))","v":"-"},{"$f":"IF(B244=\"N\",\"\",IF(OR('Enrollment Form'!C251=\"ROC\",'Enrollment Form'!B251<>\"Subscriber\",'Enrollment Form'!O251=\"Waive\",'Enrollment Form'!O251=\"\"),\"-\",IF('Enrollment Form'!P251=\"\",\"N\",\"Y\")))","v":""},{"$f":"IF($B244=\"N\",\"\",IF(AND('Enrollment Form'!$C251=\"ROC\",'Enrollment Form'!$DR251<>\"\"),\"Y\",IF(AND('Enrollment Form'!$C251=\"ROC\",'Enrollment Form'!$DR251=\"\"),\"N\",IF(AND('Enrollment Form'!$C251=\"Enroll\",'Enrollment Form'!$B251=\"Subscriber\",'Enrollment Form'!$CX251=\"No\",'Enrollment Form'!$DR251=\"\"),\"N\",IF(AND('Enrollment Form'!$C251=\"Enroll\",'Enrollment Form'!$B251=\"Subscriber\",'Enrollment Form'!$CX251=\"Yes\"),\"-\",\"Y\")))))","v":""},{"$f":"IF($B244=\"N\",\"\",IF(AND('Enrollment Form'!$C251=\"ROC\",'Enrollment Form'!$DS251<>\"\"),\"Y\",IF(AND('Enrollment Form'!$C251=\"ROC\",'Enrollment Form'!$DS251=\"\"),\"N\",IF(AND('Enrollment Form'!$C251=\"Enroll\",'Enrollment Form'!$B251=\"Subscriber\",'Enrollment Form'!$CX251=\"No\",'Enrollment Form'!$DS251=\"\"),\"N\",IF(AND('Enrollment Form'!$C251=\"Enroll\",'Enrollment Form'!$B251=\"Subscriber\",'Enrollment Form'!$CX251=\"Yes\"),\"-\",\"Y\")))))","v":""},{"$f":"IF('Enrollment Form'!AH251=\"\",\"\",IF(ISERROR(SEARCH(\".\",'Enrollment Form'!AH251,SEARCH(\"@\",'Enrollment Form'!AH251))),\"N\",\"Y\"))","v":""},{"$f":"IF(OR($B244=\"N\",'Enrollment Form'!$G251=\"\"),\"\",IF('Enrollment Form'!$B251<>\"Subscriber\",\"-\",IF(COUNTIF('Enrollment Form'!$AV251:$AW251,\"Yes\")=2,\"N\",\"Y\")))","v":""},{"$f":"IF(OR('Enrollment Form'!$CJ251=\"\",'Enrollment Form'!$CJ251=\"No\"),\"-\",IF(AND('Enrollment Form'!$CJ251=\"Yes\",'Enrollment Form'!$CK251=\"\"),\"N\",\"Y\"))","v":"-"},{"$f":"IF(OR('Enrollment Form'!$CL251=\"\",'Enrollment Form'!$CL251=\"No\"),\"-\",IF(AND('Enrollment Form'!$CL251=\"Yes\",'Enrollment Form'!$CM251=\"\"),\"N\",\"Y\"))","v":"-"},{"$f":"IF(OR('Enrollment Form'!$CN251=\"\",'Enrollment Form'!$CN251=\"No\"),\"-\",IF(AND('Enrollment Form'!$CN251=\"Yes\",'Enrollment Form'!$CO251=\"\"),\"N\",\"Y\"))","v":"-"},{"$f":"IF(OR('Enrollment Form'!$CN251=\"\",'Enrollment Form'!$CN251=\"No\"),\"-\",IF(AND('Enrollment Form'!$CN251=\"Yes\",'Enrollment Form'!$CP251=\"\"),\"N\",\"Y\"))","v":"-"},{"$f":"IF('Enrollment Form'!B251<>\"Subscriber\",\"-\",IF(AND('Enrollment Form'!B251=\"Subscriber\",'Enrollment Form'!C251=\"Enroll\",'Enrollment Form'!AA251=\"\"),\"N\",\"Y\"))","v":"-"},{"$f":"IF(OR('Enrollment Form'!B251=\"Subscriber\",'Enrollment Form'!B251=\"\"),\"-\",IF('Enrollment Form'!BP251=\"\",\"N\",\"Y\"))","v":"-"},{"$f":"IF('Enrollment Form'!B251<>\"Subscriber\",\"-\",IF(AND('Enrollment Form'!B251=\"Subscriber\",'Enrollment Form'!G251=\"\"),\"N\",\"Y\"))","v":"-"},{"$f":"IF('Enrollment Form'!A251=\"\",\"\",IF('Enrollment Form'!B251=\"Subscriber\",\"-\",IF(AND('Enrollment Form'!B251<>\"Subscriber\",'Enrollment Form'!G251='Enrollment Form'!H251),\"N\",\"Y\")))","v":""},0]
[252,{"$f":"IF('Enrollment Form'!$A252<>\"\",\"Y\",\"N\")","v":"N"},{"$f":"IF(AND('Enrollment Form'!$B252=\"\",'Enrollment Form'!$C252<>\"\"),\"N\",IF($B245=\"N\",\"\",\"Y\"))","v":""},{"$f":"IF(OR($B245=\"N\",'Enrollment Form'!G252=\"\"),\"\",IF('Enrollment Form'!$B252<>\"Subscriber\",\"\",IF('Enrollment Form'!$G252='Enrollment Form'!$H252,\"Y\",\"N\")))","v":""},{"$f":"IF($B245=\"N\",\"\",IF(AND(COUNTIFS('Enrollment Form'!$H$11:$H$1000,'Enrollment Form'!$H252,'Enrollment Form'!$B$11:$B$1000,'Enrollment Form'!$B252)>1,'Enrollment Form'!$H252<>\"\"),\"N\",\"Y\"))","v":""},{"$f":"IF($B245=\"N\",\"\",IF(LEN('Enrollment Form'!$Y252)=0,\"\",IF(LEN('Enrollment Form'!$Y252)<>5,\"N\",\"Y\")))","v":""},{"$f":"IF($B245=\"N\",\"\",IF(LEN('Enrollment Form'!$AD252=0),\"\",IF(LEN('Enrollment Form'!$AD252)<>5,\"N\",\"Y\")))","v":""},{"$f":"IF($B245=\"N\",\"\",IF(LEN('Enrollment Form'!$BS252=0),\"\",IF(LEN('Enrollment Form'!$BS252)<>5,\"N\",\"Y\")))","v":""},{"$f":"IF($B245=\"N\",\"\",IF(LEN('Enrollment Form'!$AE252)=0,\"\",IF(LEN('Enrollment Form'!$AE252)<>10,\"N\",\"Y\")))","v":""},{"$f":"IF($B245=\"N\",\"\",IF(LEN('Enrollment Form'!$AF252)=0,\"\",IF(LEN('Enrollment Form'!$AF252)<>10,\"N\",\"Y\")))","v":""},{"$f":"IF('Enrollment Form'!$O252<>\"Graded\",\"-\",IF(AND('Enrollment Form'!$O252=\"Graded\",'Enrollment Form'!$AR252<>\"\"),\"Y\",\"N\"))","v":"-"},{"$f":"IF($B245=\"N\",\"\",IF(OR('Enrollment Form'!$B252<>\"Subscriber\",'Enrollment Form'!$C252=\"ROC\"),\"-\",IF(AND('Enrollment Form'!$B252=\"Subscriber\",'Enrollment Form'!$C252=\"Enroll\",'Enrollment Form'!$AJ252<>\"\"),\"Y\",\"N\")))","v":""},{"$f":"IF($B245=\"N\",\"\",IF(OR('Enrollment Form'!$B252<>\"Subscriber\",'Enrollment Form'!$C252=\"ROC\"),\"-\",IF(AND('Enrollment Form'!$B252=\"Subscriber\",'Enrollment Form'!$C252=\"Enroll\",'Enrollment Form'!$AK252<>\"\"),\"Y\",\"N\")))","v":""},{"$f":"IF($B245=\"N\",\"\",IF(OR('Enrollment Form'!$B252<>\"Subscriber\",'Enrollment Form'!$C252=\"ROC\"),\"-\",IF(AND('Enrollment Form'!$B252=\"Subscriber\",'Enrollment Form'!$C252=\"Enroll\",'Enrollment Form'!$AL252<>\"\"),\"Y\",\"N\")))","v":""},{"$f":"IF($B245=\"N\",\"\",IF(OR('Enrollment Form'!$B252<>\"Subscriber\",'Enrollment Form'!$C252=\"ROC\"),\"-\",IF(AND('Enrollment Form'!$B252=\"Subscriber\",'Enrollment Form'!$C252=\"Enroll\",'Enrollment Form'!$AP252<>\"\"),\"Y\",\"N\")))","v":""},{"$f":"IF($B245=\"N\",\"\",IF(OR('Enrollment Form'!$B252<>\"Subscriber\",'Enrollment Form'!$C252=\"ROC\"),\"-\",IF(AND('Enrollment Form'!$B252=\"Subscriber\",'Enrollment Form'!$C252=\"Enroll\",'Enrollment Form'!$AQ252<>\"\"),\"Y\",\"N\")))","v":""},{"$f":"IF($B245=\"N\",\"\",IF(OR('Enrollment Form'!$B252<>\"Subscriber\",'Enrollment Form'!$C252=\"ROC\"),\"-\",IF(AND('Enrollment Form'!$B252=\"Subscriber\",'Enrollment Form'!$C252=\"Enroll\",'Enrollment Form'!$AS252<>\"\"),\"Y\",\"N\")))","v":""},{"$f":"IF($B245=\"N\",\"\",IF($Q245=\"-\",\"-\",IF(AND($Q245=\"Y\",'Enrollment Form'!$AS252=\"No\"),\"-\",IF(AND($Q245=\"Y\",'Enrollment Form'!$AS252=\"Yes\",'Enrollment Form'!$AT252<>\"\"),\"Y\",\"N\"))))","v":""},{"$f":"IF($B245=\"N\",\"\",IF(OR('Enrollment Form'!$B252<>\"Subscriber\",'Enrollment Form'!$C252=\"ROC\"),\"-\",IF(AND('Enrollment Form'!$B252=\"Subscriber\",'Enrollment Form'!$C252=\"Enroll\",'Enrollment Form'!$CV252<>\"\"),\"Y\",\"N\")))","v":""},{"$f":"IF($B245=\"N\",\"\",IF($S245=\"-\",\"-\",IF(AND($S245=\"Y\",'Enrollment Form'!$CV252=\"No\"),\"-\",IF(AND($S245=\"Y\",'Enrollment Form'!$CV252=\"Yes\",'Enrollment Form'!$CW252<>\"\"),\"Y\",\"N\"))))","v":""},{"$f":"IF(OR('Enrollment Form'!$AY252=\"Yes\",'Enrollment Form'!$AY252=\"\"),\"-\",IF(OR(AND('Enrollment Form'!$AY252=\"No\",ISERROR(FIND(\"HMO\",VLOOKUP('Enrollment Form'!G252,'Enrollment Form'!H$11:J$1000,3,FALSE),1))=FALSE,COUNTA('Enrollment Form'!$AZ252:$BC252)=4),AND('Enrollment Form'!$AY252=\"No\",ISERROR(FIND(\"HMO\",VLOOKUP('Enrollment Form'!G252,'Enrollment Form'!H$11:J$1000,3,FALSE),1))=FALSE,COUNTA('Enrollment Form'!$BT252:$BW252)=4)),\"Y\",\"N\"))","v":"-"},{"$f":"IF($B245=\"N\",\"\",IF('Enrollment Form'!$B252=\"Subscriber\",\"-\",IF(COUNTA('Enrollment Form'!$BL252,'Enrollment Form'!$BN252)=2,\"Y\",\"N\")))","v":""},{"$f":"IF($B245=\"N\",\"\",IF(OR('Enrollment Form'!$AX252=\"\",'Enrollment Form'!$AX252=\"No\"),\"-\",IF(AND('Enrollment Form'!$AX252=\"Yes\",COUNTA('Enrollment Form'!$CR252)=1),\"Y\",\"N\")))","v":""},{"$f":"IF(OR('Enrollment Form'!$CR252=\"\",'Enrollment Form'!$CR252=\"No\"),\"-\",IF(COUNTA('Enrollment Form'!$CT252:$CU252)=2,\"Y\",\"N\"))","v":"-"},{"$f":"IF($B245=\"N\",\"\",IF(COUNTIF('Enrollment Form'!$DG252:$DP252,\"Other\")=COUNTA('Enrollment Form'!$DK252,'Enrollment Form'!$DH252,'Enrollment Form'!$DN252,'Enrollment Form'!$DQ252),\"Y\",\"N\"))","v":""},{"$f":"IF($B245=\"N\",\"\",IF(OR('Enrollment Form'!B252<>\"Subscriber\",'Enrollment Form'!C252=\"ROC\",COUNTIF('Enrollment Form'!AV252:AW252,\"Yes\")>=1),\"-\",IF(AND('Enrollment Form'!C252=\"Enroll\",COUNTIF('Enrollment Form'!AV252:AW252,\"No\")=2,'Enrollment Form'!AX252=\"\"),\"N\",\"Y\")))","v":""},{"$f":"IF(OR(B245=\"N\",'Enrollment Form'!B252<>\"Subscriber\",'Enrollment Form'!C252=\"ROC\",'Enrollment Form'!O252<>\"Multiple of Salary\"),\"-\",IF(COUNTA('Enrollment Form'!T252:U252)<2,\"N\",\"Y\"))","v":"-"},{"$f":"IF(B245=\"N\",\"\",IF(OR('Enrollment Form'!C252=\"ROC\",'Enrollment Form'!B252<>\"Subscriber\",'Enrollment Form'!O252=\"Waive\",'Enrollment Form'!O252=\"\"),\"-\",IF('Enrollment Form'!P252=\"\",\"N\",\"Y\")))","v":""},{"$f":"IF($B245=\"N\",\"\",IF(AND('Enrollment Form'!$C252=\"ROC\",'Enrollment Form'!$DR252<>\"\"),\"Y\",IF(AND('Enrollment Form'!$C252=\"ROC\",'Enrollment Form'!$DR252=\"\"),\"N\",IF(AND('Enrollment Form'!$C252=\"Enroll\",'Enrollment Form'!$B252=\"Subscriber\",'Enrollment Form'!$CX252=\"No\",'Enrollment Form'!$DR252=\"\"),\"N\",IF(AND('Enrollment Form'!$C252=\"Enroll\",'Enrollment Form'!$B252=\"Subscriber\",'Enrollment Form'!$CX252=\"Yes\"),\"-\",\"Y\")))))","v":""},{"$f":"IF($B245=\"N\",\"\",IF(AND('Enrollment Form'!$C252=\"ROC\",'Enrollment Form'!$DS252<>\"\"),\"Y\",IF(AND('Enrollment Form'!$C252=\"ROC\",'Enrollment Form'!$DS252=\"\"),\"N\",IF(AND('Enrollment Form'!$C252=\"Enroll\",'Enrollment Form'!$B252=\"Subscriber\",'Enrollment Form'!$CX252=\"No\",'Enrollment Form'!$DS252=\"\"),\"N\",IF(AND('Enrollment Form'!$C252=\"Enroll\",'Enrollment Form'!$B252=\"Subscriber\",'Enrollment Form'!$CX252=\"Yes\"),\"-\",\"Y\")))))","v":""},{"$f":"IF('Enrollment Form'!AH252=\"\",\"\",IF(ISERROR(SEARCH(\".\",'Enrollment Form'!AH252,SEARCH(\"@\",'Enrollment Form'!AH252))),\"N\",\"Y\"))","v":""},{"$f":"IF(OR($B245=\"N\",'Enrollment Form'!$G252=\"\"),\"\",IF('Enrollment Form'!$B252<>\"Subscriber\",\"-\",IF(COUNTIF('Enrollment Form'!$AV252:$AW252,\"Yes\")=2,\"N\",\"Y\")))","v":""},{"$f":"IF(OR('Enrollment Form'!$CJ252=\"\",'Enrollment Form'!$CJ252=\"No\"),\"-\",IF(AND('Enrollment Form'!$CJ252=\"Yes\",'Enrollment Form'!$CK252=\"\"),\"N\",\"Y\"))","v":"-"},{"$f":"IF(OR('Enrollment Form'!$CL252=\"\",'Enrollment Form'!$CL252=\"No\"),\"-\",IF(AND('Enrollment Form'!$CL252=\"Yes\",'Enrollment Form'!$CM252=\"\"),\"N\",\"Y\"))","v":"-"},{"$f":"IF(OR('Enrollment Form'!$CN252=\"\",'Enrollment Form'!$CN252=\"No\"),\"-\",IF(AND('Enrollment Form'!$CN252=\"Yes\",'Enrollment Form'!$CO252=\"\"),\"N\",\"Y\"))","v":"-"},{"$f":"IF(OR('Enrollment Form'!$CN252=\"\",'Enrollment Form'!$CN252=\"No\"),\"-\",IF(AND('Enrollment Form'!$CN252=\"Yes\",'Enrollment Form'!$CP252=\"\"),\"N\",\"Y\"))","v":"-"},{"$f":"IF('Enrollment Form'!B252<>\"Subscriber\",\"-\",IF(AND('Enrollment Form'!B252=\"Subscriber\",'Enrollment Form'!C252=\"Enroll\",'Enrollment Form'!AA252=\"\"),\"N\",\"Y\"))","v":"-"},{"$f":"IF(OR('Enrollment Form'!B252=\"Subscriber\",'Enrollment Form'!B252=\"\"),\"-\",IF('Enrollment Form'!BP252=\"\",\"N\",\"Y\"))","v":"-"},{"$f":"IF('Enrollment Form'!B252<>\"Subscriber\",\"-\",IF(AND('Enrollment Form'!B252=\"Subscriber\",'Enrollment Form'!G252=\"\"),\"N\",\"Y\"))","v":"-"},{"$f":"IF('Enrollment Form'!A252=\"\",\"\",IF('Enrollment Form'!B252=\"Subscriber\",\"-\",IF(AND('Enrollment Form'!B252<>\"Subscriber\",'Enrollment Form'!G252='Enrollment Form'!H252),\"N\",\"Y\")))","v":""},0]
[253,{"$f":"IF('Enrollment Form'!$A253<>\"\",\"Y\",\"N\")","v":"N"},{"$f":"IF(AND('Enrollment Form'!$B253=\"\",'Enrollment Form'!$C253<>\"\"),\"N\",IF($B246=\"N\",\"\",\"Y\"))","v":""},{"$f":"IF(OR($B246=\"N\",'Enrollment Form'!G253=\"\"),\"\",IF('Enrollment Form'!$B253<>\"Subscriber\",\"\",IF('Enrollment Form'!$G253='Enrollment Form'!$H253,\"Y\",\"N\")))","v":""},{"$f":"IF($B246=\"N\",\"\",IF(AND(COUNTIFS('Enrollment Form'!$H$11:$H$1000,'Enrollment Form'!$H253,'Enrollment Form'!$B$11:$B$1000,'Enrollment Form'!$B253)>1,'Enrollment Form'!$H253<>\"\"),\"N\",\"Y\"))","v":""},{"$f":"IF($B246=\"N\",\"\",IF(LEN('Enrollment Form'!$Y253)=0,\"\",IF(LEN('Enrollment Form'!$Y253)<>5,\"N\",\"Y\")))","v":""},{"$f":"IF($B246=\"N\",\"\",IF(LEN('Enrollment Form'!$AD253=0),\"\",IF(LEN('Enrollment Form'!$AD253)<>5,\"N\",\"Y\")))","v":""},{"$f":"IF($B246=\"N\",\"\",IF(LEN('Enrollment Form'!$BS253=0),\"\",IF(LEN('Enrollment Form'!$BS253)<>5,\"N\",\"Y\")))","v":""},{"$f":"IF($B246=\"N\",\"\",IF(LEN('Enrollment Form'!$AE253)=0,\"\",IF(LEN('Enrollment Form'!$AE253)<>10,\"N\",\"Y\")))","v":""},{"$f":"IF($B246=\"N\",\"\",IF(LEN('Enrollment Form'!$AF253)=0,\"\",IF(LEN('Enrollment Form'!$AF253)<>10,\"N\",\"Y\")))","v":""},{"$f":"IF('Enrollment Form'!$O253<>\"Graded\",\"-\",IF(AND('Enrollment Form'!$O253=\"Graded\",'Enrollment Form'!$AR253<>\"\"),\"Y\",\"N\"))","v":"-"},{"$f":"IF($B246=\"N\",\"\",IF(OR('Enrollment Form'!$B253<>\"Subscriber\",'Enrollment Form'!$C253=\"ROC\"),\"-\",IF(AND('Enrollment Form'!$B253=\"Subscriber\",'Enrollment Form'!$C253=\"Enroll\",'Enrollment Form'!$AJ253<>\"\"),\"Y\",\"N\")))","v":""},{"$f":"IF($B246=\"N\",\"\",IF(OR('Enrollment Form'!$B253<>\"Subscriber\",'Enrollment Form'!$C253=\"ROC\"),\"-\",IF(AND('Enrollment Form'!$B253=\"Subscriber\",'Enrollment Form'!$C253=\"Enroll\",'Enrollment Form'!$AK253<>\"\"),\"Y\",\"N\")))","v":""},{"$f":"IF($B246=\"N\",\"\",IF(OR('Enrollment Form'!$B253<>\"Subscriber\",'Enrollment Form'!$C253=\"ROC\"),\"-\",IF(AND('Enrollment Form'!$B253=\"Subscriber\",'Enrollment Form'!$C253=\"Enroll\",'Enrollment Form'!$AL253<>\"\"),\"Y\",\"N\")))","v":""},{"$f":"IF($B246=\"N\",\"\",IF(OR('Enrollment Form'!$B253<>\"Subscriber\",'Enrollment Form'!$C253=\"ROC\"),\"-\",IF(AND('Enrollment Form'!$B253=\"Subscriber\",'Enrollment Form'!$C253=\"Enroll\",'Enrollment Form'!$AP253<>\"\"),\"Y\",\"N\")))","v":""},{"$f":"IF($B246=\"N\",\"\",IF(OR('Enrollment Form'!$B253<>\"Subscriber\",'Enrollment Form'!$C253=\"ROC\"),\"-\",IF(AND('Enrollment Form'!$B253=\"Subscriber\",'Enrollment Form'!$C253=\"Enroll\",'Enrollment Form'!$AQ253<>\"\"),\"Y\",\"N\")))","v":""},{"$f":"IF($B246=\"N\",\"\",IF(OR('Enrollment Form'!$B253<>\"Subscriber\",'Enrollment Form'!$C253=\"ROC\"),\"-\",IF(AND('Enrollment Form'!$B253=\"Subscriber\",'Enrollment Form'!$C253=\"Enroll\",'Enrollment Form'!$AS253<>\"\"),\"Y\",\"N\")))","v":""},{"$f":"IF($B246=\"N\",\"\",IF($Q246=\"-\",\"-\",IF(AND($Q246=\"Y\",'Enrollment Form'!$AS253=\"No\"),\"-\",IF(AND($Q246=\"Y\",'Enrollment Form'!$AS253=\"Yes\",'Enrollment Form'!$AT253<>\"\"),\"Y\",\"N\"))))","v":""},{"$f":"IF($B246=\"N\",\"\",IF(OR('Enrollment Form'!$B253<>\"Subscriber\",'Enrollment Form'!$C253=\"ROC\"),\"-\",IF(AND('Enrollment Form'!$B253=\"Subscriber\",'Enrollment Form'!$C253=\"Enroll\",'Enrollment Form'!$CV253<>\"\"),\"Y\",\"N\")))","v":""},{"$f":"IF($B246=\"N\",\"\",IF($S246=\"-\",\"-\",IF(AND($S246=\"Y\",'Enrollment Form'!$CV253=\"No\"),\"-\",IF(AND($S246=\"Y\",'Enrollment Form'!$CV253=\"Yes\",'Enrollment Form'!$CW253<>\"\"),\"Y\",\"N\"))))","v":""},{"$f":"IF(OR('Enrollment Form'!$AY253=\"Yes\",'Enrollment Form'!$AY253=\"\"),\"-\",IF(OR(AND('Enrollment Form'!$AY253=\"No\",ISERROR(FIND(\"HMO\",VLOOKUP('Enrollment Form'!G253,'Enrollment Form'!H$11:J$1000,3,FALSE),1))=FALSE,COUNTA('Enrollment Form'!$AZ253:$BC253)=4),AND('Enrollment Form'!$AY253=\"No\",ISERROR(FIND(\"HMO\",VLOOKUP('Enrollment Form'!G253,'Enrollment Form'!H$11:J$1000,3,FALSE),1))=FALSE,COUNTA('Enrollment Form'!$BT253:$BW253)=4)),\"Y\",\"N\"))","v":"-"},{"$f":"IF($B246=\"N\",\"\",IF('Enrollment Form'!$B253=\"Subscriber\",\"-\",IF(COUNTA('Enrollment Form'!$BL253,'Enrollment Form'!$BN253)=2,\"Y\",\"N\")))","v":""},{"$f":"IF($B246=\"N\",\"\",IF(OR('Enrollment Form'!$AX253=\"\",'Enrollment Form'!$AX253=\"No\"),\"-\",IF(AND('Enrollment Form'!$AX253=\"Yes\",COUNTA('Enrollment Form'!$CR253)=1),\"Y\",\"N\")))","v":""},{"$f":"IF(OR('Enrollment Form'!$CR253=\"\",'Enrollment Form'!$CR253=\"No\"),\"-\",IF(COUNTA('Enrollment Form'!$CT253:$CU253)=2,\"Y\",\"N\"))","v":"-"},{"$f":"IF($B246=\"N\",\"\",IF(COUNTIF('Enrollment Form'!$DG253:$DP253,\"Other\")=COUNTA('Enrollment Form'!$DK253,'Enrollment Form'!$DH253,'Enrollment Form'!$DN253,'Enrollment Form'!$DQ253),\"Y\",\"N\"))","v":""},{"$f":"IF($B246=\"N\",\"\",IF(OR('Enrollment Form'!B253<>\"Subscriber\",'Enrollment Form'!C253=\"ROC\",COUNTIF('Enrollment Form'!AV253:AW253,\"Yes\")>=1),\"-\",IF(AND('Enrollment Form'!C253=\"Enroll\",COUNTIF('Enrollment Form'!AV253:AW253,\"No\")=2,'Enrollment Form'!AX253=\"\"),\"N\",\"Y\")))","v":""},{"$f":"IF(OR(B246=\"N\",'Enrollment Form'!B253<>\"Subscriber\",'Enrollment Form'!C253=\"ROC\",'Enrollment Form'!O253<>\"Multiple of Salary\"),\"-\",IF(COUNTA('Enrollment Form'!T253:U253)<2,\"N\",\"Y\"))","v":"-"},{"$f":"IF(B246=\"N\",\"\",IF(OR('Enrollment Form'!C253=\"ROC\",'Enrollment Form'!B253<>\"Subscriber\",'Enrollment Form'!O253=\"Waive\",'Enrollment Form'!O253=\"\"),\"-\",IF('Enrollment Form'!P253=\"\",\"N\",\"Y\")))","v":""},{"$f":"IF($B246=\"N\",\"\",IF(AND('Enrollment Form'!$C253=\"ROC\",'Enrollment Form'!$DR253<>\"\"),\"Y\",IF(AND('Enrollment Form'!$C253=\"ROC\",'Enrollment Form'!$DR253=\"\"),\"N\",IF(AND('Enrollment Form'!$C253=\"Enroll\",'Enrollment Form'!$B253=\"Subscriber\",'Enrollment Form'!$CX253=\"No\",'Enrollment Form'!$DR253=\"\"),\"N\",IF(AND('Enrollment Form'!$C253=\"Enroll\",'Enrollment Form'!$B253=\"Subscriber\",'Enrollment Form'!$CX253=\"Yes\"),\"-\",\"Y\")))))","v":""},{"$f":"IF($B246=\"N\",\"\",IF(AND('Enrollment Form'!$C253=\"ROC\",'Enrollment Form'!$DS253<>\"\"),\"Y\",IF(AND('Enrollment Form'!$C253=\"ROC\",'Enrollment Form'!$DS253=\"\"),\"N\",IF(AND('Enrollment Form'!$C253=\"Enroll\",'Enrollment Form'!$B253=\"Subscriber\",'Enrollment Form'!$CX253=\"No\",'Enrollment Form'!$DS253=\"\"),\"N\",IF(AND('Enrollment Form'!$C253=\"Enroll\",'Enrollment Form'!$B253=\"Subscriber\",'Enrollment Form'!$CX253=\"Yes\"),\"-\",\"Y\")))))","v":""},{"$f":"IF('Enrollment Form'!AH253=\"\",\"\",IF(ISERROR(SEARCH(\".\",'Enrollment Form'!AH253,SEARCH(\"@\",'Enrollment Form'!AH253))),\"N\",\"Y\"))","v":""},{"$f":"IF(OR($B246=\"N\",'Enrollment Form'!$G253=\"\"),\"\",IF('Enrollment Form'!$B253<>\"Subscriber\",\"-\",IF(COUNTIF('Enrollment Form'!$AV253:$AW253,\"Yes\")=2,\"N\",\"Y\")))","v":""},{"$f":"IF(OR('Enrollment Form'!$CJ253=\"\",'Enrollment Form'!$CJ253=\"No\"),\"-\",IF(AND('Enrollment Form'!$CJ253=\"Yes\",'Enrollment Form'!$CK253=\"\"),\"N\",\"Y\"))","v":"-"},{"$f":"IF(OR('Enrollment Form'!$CL253=\"\",'Enrollment Form'!$CL253=\"No\"),\"-\",IF(AND('Enrollment Form'!$CL253=\"Yes\",'Enrollment Form'!$CM253=\"\"),\"N\",\"Y\"))","v":"-"},{"$f":"IF(OR('Enrollment Form'!$CN253=\"\",'Enrollment Form'!$CN253=\"No\"),\"-\",IF(AND('Enrollment Form'!$CN253=\"Yes\",'Enrollment Form'!$CO253=\"\"),\"N\",\"Y\"))","v":"-"},{"$f":"IF(OR('Enrollment Form'!$CN253=\"\",'Enrollment Form'!$CN253=\"No\"),\"-\",IF(AND('Enrollment Form'!$CN253=\"Yes\",'Enrollment Form'!$CP253=\"\"),\"N\",\"Y\"))","v":"-"},{"$f":"IF('Enrollment Form'!B253<>\"Subscriber\",\"-\",IF(AND('Enrollment Form'!B253=\"Subscriber\",'Enrollment Form'!C253=\"Enroll\",'Enrollment Form'!AA253=\"\"),\"N\",\"Y\"))","v":"-"},{"$f":"IF(OR('Enrollment Form'!B253=\"Subscriber\",'Enrollment Form'!B253=\"\"),\"-\",IF('Enrollment Form'!BP253=\"\",\"N\",\"Y\"))","v":"-"},{"$f":"IF('Enrollment Form'!B253<>\"Subscriber\",\"-\",IF(AND('Enrollment Form'!B253=\"Subscriber\",'Enrollment Form'!G253=\"\"),\"N\",\"Y\"))","v":"-"},{"$f":"IF('Enrollment Form'!A253=\"\",\"\",IF('Enrollment Form'!B253=\"Subscriber\",\"-\",IF(AND('Enrollment Form'!B253<>\"Subscriber\",'Enrollment Form'!G253='Enrollment Form'!H253),\"N\",\"Y\")))","v":""},0]
[254,{"$f":"IF('Enrollment Form'!$A254<>\"\",\"Y\",\"N\")","v":"N"},{"$f":"IF(AND('Enrollment Form'!$B254=\"\",'Enrollment Form'!$C254<>\"\"),\"N\",IF($B247=\"N\",\"\",\"Y\"))","v":""},{"$f":"IF(OR($B247=\"N\",'Enrollment Form'!G254=\"\"),\"\",IF('Enrollment Form'!$B254<>\"Subscriber\",\"\",IF('Enrollment Form'!$G254='Enrollment Form'!$H254,\"Y\",\"N\")))","v":""},{"$f":"IF($B247=\"N\",\"\",IF(AND(COUNTIFS('Enrollment Form'!$H$11:$H$1000,'Enrollment Form'!$H254,'Enrollment Form'!$B$11:$B$1000,'Enrollment Form'!$B254)>1,'Enrollment Form'!$H254<>\"\"),\"N\",\"Y\"))","v":""},{"$f":"IF($B247=\"N\",\"\",IF(LEN('Enrollment Form'!$Y254)=0,\"\",IF(LEN('Enrollment Form'!$Y254)<>5,\"N\",\"Y\")))","v":""},{"$f":"IF($B247=\"N\",\"\",IF(LEN('Enrollment Form'!$AD254=0),\"\",IF(LEN('Enrollment Form'!$AD254)<>5,\"N\",\"Y\")))","v":""},{"$f":"IF($B247=\"N\",\"\",IF(LEN('Enrollment Form'!$BS254=0),\"\",IF(LEN('Enrollment Form'!$BS254)<>5,\"N\",\"Y\")))","v":""},{"$f":"IF($B247=\"N\",\"\",IF(LEN('Enrollment Form'!$AE254)=0,\"\",IF(LEN('Enrollment Form'!$AE254)<>10,\"N\",\"Y\")))","v":""},{"$f":"IF($B247=\"N\",\"\",IF(LEN('Enrollment Form'!$AF254)=0,\"\",IF(LEN('Enrollment Form'!$AF254)<>10,\"N\",\"Y\")))","v":""},{"$f":"IF('Enrollment Form'!$O254<>\"Graded\",\"-\",IF(AND('Enrollment Form'!$O254=\"Graded\",'Enrollment Form'!$AR254<>\"\"),\"Y\",\"N\"))","v":"-"},{"$f":"IF($B247=\"N\",\"\",IF(OR('Enrollment Form'!$B254<>\"Subscriber\",'Enrollment Form'!$C254=\"ROC\"),\"-\",IF(AND('Enrollment Form'!$B254=\"Subscriber\",'Enrollment Form'!$C254=\"Enroll\",'Enrollment Form'!$AJ254<>\"\"),\"Y\",\"N\")))","v":""},{"$f":"IF($B247=\"N\",\"\",IF(OR('Enrollment Form'!$B254<>\"Subscriber\",'Enrollment Form'!$C254=\"ROC\"),\"-\",IF(AND('Enrollment Form'!$B254=\"Subscriber\",'Enrollment Form'!$C254=\"Enroll\",'Enrollment Form'!$AK254<>\"\"),\"Y\",\"N\")))","v":""},{"$f":"IF($B247=\"N\",\"\",IF(OR('Enrollment Form'!$B254<>\"Subscriber\",'Enrollment Form'!$C254=\"ROC\"),\"-\",IF(AND('Enrollment Form'!$B254=\"Subscriber\",'Enrollment Form'!$C254=\"Enroll\",'Enrollment Form'!$AL254<>\"\"),\"Y\",\"N\")))","v":""},{"$f":"IF($B247=\"N\",\"\",IF(OR('Enrollment Form'!$B254<>\"Subscriber\",'Enrollment Form'!$C254=\"ROC\"),\"-\",IF(AND('Enrollment Form'!$B254=\"Subscriber\",'Enrollment Form'!$C254=\"Enroll\",'Enrollment Form'!$AP254<>\"\"),\"Y\",\"N\")))","v":""},{"$f":"IF($B247=\"N\",\"\",IF(OR('Enrollment Form'!$B254<>\"Subscriber\",'Enrollment Form'!$C254=\"ROC\"),\"-\",IF(AND('Enrollment Form'!$B254=\"Subscriber\",'Enrollment Form'!$C254=\"Enroll\",'Enrollment Form'!$AQ254<>\"\"),\"Y\",\"N\")))","v":""},{"$f":"IF($B247=\"N\",\"\",IF(OR('Enrollment Form'!$B254<>\"Subscriber\",'Enrollment Form'!$C254=\"ROC\"),\"-\",IF(AND('Enrollment Form'!$B254=\"Subscriber\",'Enrollment Form'!$C254=\"Enroll\",'Enrollment Form'!$AS254<>\"\"),\"Y\",\"N\")))","v":""},{"$f":"IF($B247=\"N\",\"\",IF($Q247=\"-\",\"-\",IF(AND($Q247=\"Y\",'Enrollment Form'!$AS254=\"No\"),\"-\",IF(AND($Q247=\"Y\",'Enrollment Form'!$AS254=\"Yes\",'Enrollment Form'!$AT254<>\"\"),\"Y\",\"N\"))))","v":""},{"$f":"IF($B247=\"N\",\"\",IF(OR('Enrollment Form'!$B254<>\"Subscriber\",'Enrollment Form'!$C254=\"ROC\"),\"-\",IF(AND('Enrollment Form'!$B254=\"Subscriber\",'Enrollment Form'!$C254=\"Enroll\",'Enrollment Form'!$CV254<>\"\"),\"Y\",\"N\")))","v":""},{"$f":"IF($B247=\"N\",\"\",IF($S247=\"-\",\"-\",IF(AND($S247=\"Y\",'Enrollment Form'!$CV254=\"No\"),\"-\",IF(AND($S247=\"Y\",'Enrollment Form'!$CV254=\"Yes\",'Enrollment Form'!$CW254<>\"\"),\"Y\",\"N\"))))","v":""},{"$f":"IF(OR('Enrollment Form'!$AY254=\"Yes\",'Enrollment Form'!$AY254=\"\"),\"-\",IF(OR(AND('Enrollment Form'!$AY254=\"No\",ISERROR(FIND(\"HMO\",VLOOKUP('Enrollment Form'!G254,'Enrollment Form'!H$11:J$1000,3,FALSE),1))=FALSE,COUNTA('Enrollment Form'!$AZ254:$BC254)=4),AND('Enrollment Form'!$AY254=\"No\",ISERROR(FIND(\"HMO\",VLOOKUP('Enrollment Form'!G254,'Enrollment Form'!H$11:J$1000,3,FALSE),1))=FALSE,COUNTA('Enrollment Form'!$BT254:$BW254)=4)),\"Y\",\"N\"))","v":"-"},{"$f":"IF($B247=\"N\",\"\",IF('Enrollment Form'!$B254=\"Subscriber\",\"-\",IF(COUNTA('Enrollment Form'!$BL254,'Enrollment Form'!$BN254)=2,\"Y\",\"N\")))","v":""},{"$f":"IF($B247=\"N\",\"\",IF(OR('Enrollment Form'!$AX254=\"\",'Enrollment Form'!$AX254=\"No\"),\"-\",IF(AND('Enrollment Form'!$AX254=\"Yes\",COUNTA('Enrollment Form'!$CR254)=1),\"Y\",\"N\")))","v":""},{"$f":"IF(OR('Enrollment Form'!$CR254=\"\",'Enrollment Form'!$CR254=\"No\"),\"-\",IF(COUNTA('Enrollment Form'!$CT254:$CU254)=2,\"Y\",\"N\"))","v":"-"},{"$f":"IF($B247=\"N\",\"\",IF(COUNTIF('Enrollment Form'!$DG254:$DP254,\"Other\")=COUNTA('Enrollment Form'!$DK254,'Enrollment Form'!$DH254,'Enrollment Form'!$DN254,'Enrollment Form'!$DQ254),\"Y\",\"N\"))","v":""},{"$f":"IF($B247=\"N\",\"\",IF(OR('Enrollment Form'!B254<>\"Subscriber\",'Enrollment Form'!C254=\"ROC\",COUNTIF('Enrollment Form'!AV254:AW254,\"Yes\")>=1),\"-\",IF(AND('Enrollment Form'!C254=\"Enroll\",COUNTIF('Enrollment Form'!AV254:AW254,\"No\")=2,'Enrollment Form'!AX254=\"\"),\"N\",\"Y\")))","v":""},{"$f":"IF(OR(B247=\"N\",'Enrollment Form'!B254<>\"Subscriber\",'Enrollment Form'!C254=\"ROC\",'Enrollment Form'!O254<>\"Multiple of Salary\"),\"-\",IF(COUNTA('Enrollment Form'!T254:U254)<2,\"N\",\"Y\"))","v":"-"},{"$f":"IF(B247=\"N\",\"\",IF(OR('Enrollment Form'!C254=\"ROC\",'Enrollment Form'!B254<>\"Subscriber\",'Enrollment Form'!O254=\"Waive\",'Enrollment Form'!O254=\"\"),\"-\",IF('Enrollment Form'!P254=\"\",\"N\",\"Y\")))","v":""},{"$f":"IF($B247=\"N\",\"\",IF(AND('Enrollment Form'!$C254=\"ROC\",'Enrollment Form'!$DR254<>\"\"),\"Y\",IF(AND('Enrollment Form'!$C254=\"ROC\",'Enrollment Form'!$DR254=\"\"),\"N\",IF(AND('Enrollment Form'!$C254=\"Enroll\",'Enrollment Form'!$B254=\"Subscriber\",'Enrollment Form'!$CX254=\"No\",'Enrollment Form'!$DR254=\"\"),\"N\",IF(AND('Enrollment Form'!$C254=\"Enroll\",'Enrollment Form'!$B254=\"Subscriber\",'Enrollment Form'!$CX254=\"Yes\"),\"-\",\"Y\")))))","v":""},{"$f":"IF($B247=\"N\",\"\",IF(AND('Enrollment Form'!$C254=\"ROC\",'Enrollment Form'!$DS254<>\"\"),\"Y\",IF(AND('Enrollment Form'!$C254=\"ROC\",'Enrollment Form'!$DS254=\"\"),\"N\",IF(AND('Enrollment Form'!$C254=\"Enroll\",'Enrollment Form'!$B254=\"Subscriber\",'Enrollment Form'!$CX254=\"No\",'Enrollment Form'!$DS254=\"\"),\"N\",IF(AND('Enrollment Form'!$C254=\"Enroll\",'Enrollment Form'!$B254=\"Subscriber\",'Enrollment Form'!$CX254=\"Yes\"),\"-\",\"Y\")))))","v":""},{"$f":"IF('Enrollment Form'!AH254=\"\",\"\",IF(ISERROR(SEARCH(\".\",'Enrollment Form'!AH254,SEARCH(\"@\",'Enrollment Form'!AH254))),\"N\",\"Y\"))","v":""},{"$f":"IF(OR($B247=\"N\",'Enrollment Form'!$G254=\"\"),\"\",IF('Enrollment Form'!$B254<>\"Subscriber\",\"-\",IF(COUNTIF('Enrollment Form'!$AV254:$AW254,\"Yes\")=2,\"N\",\"Y\")))","v":""},{"$f":"IF(OR('Enrollment Form'!$CJ254=\"\",'Enrollment Form'!$CJ254=\"No\"),\"-\",IF(AND('Enrollment Form'!$CJ254=\"Yes\",'Enrollment Form'!$CK254=\"\"),\"N\",\"Y\"))","v":"-"},{"$f":"IF(OR('Enrollment Form'!$CL254=\"\",'Enrollment Form'!$CL254=\"No\"),\"-\",IF(AND('Enrollment Form'!$CL254=\"Yes\",'Enrollment Form'!$CM254=\"\"),\"N\",\"Y\"))","v":"-"},{"$f":"IF(OR('Enrollment Form'!$CN254=\"\",'Enrollment Form'!$CN254=\"No\"),\"-\",IF(AND('Enrollment Form'!$CN254=\"Yes\",'Enrollment Form'!$CO254=\"\"),\"N\",\"Y\"))","v":"-"},{"$f":"IF(OR('Enrollment Form'!$CN254=\"\",'Enrollment Form'!$CN254=\"No\"),\"-\",IF(AND('Enrollment Form'!$CN254=\"Yes\",'Enrollment Form'!$CP254=\"\"),\"N\",\"Y\"))","v":"-"},{"$f":"IF('Enrollment Form'!B254<>\"Subscriber\",\"-\",IF(AND('Enrollment Form'!B254=\"Subscriber\",'Enrollment Form'!C254=\"Enroll\",'Enrollment Form'!AA254=\"\"),\"N\",\"Y\"))","v":"-"},{"$f":"IF(OR('Enrollment Form'!B254=\"Subscriber\",'Enrollment Form'!B254=\"\"),\"-\",IF('Enrollment Form'!BP254=\"\",\"N\",\"Y\"))","v":"-"},{"$f":"IF('Enrollment Form'!B254<>\"Subscriber\",\"-\",IF(AND('Enrollment Form'!B254=\"Subscriber\",'Enrollment Form'!G254=\"\"),\"N\",\"Y\"))","v":"-"},{"$f":"IF('Enrollment Form'!A254=\"\",\"\",IF('Enrollment Form'!B254=\"Subscriber\",\"-\",IF(AND('Enrollment Form'!B254<>\"Subscriber\",'Enrollment Form'!G254='Enrollment Form'!H254),\"N\",\"Y\")))","v":""},0]
[255,{"$f":"IF('Enrollment Form'!$A255<>\"\",\"Y\",\"N\")","v":"N"},{"$f":"IF(AND('Enrollment Form'!$B255=\"\",'Enrollment Form'!$C255<>\"\"),\"N\",IF($B248=\"N\",\"\",\"Y\"))","v":""},{"$f":"IF(OR($B248=\"N\",'Enrollment Form'!G255=\"\"),\"\",IF('Enrollment Form'!$B255<>\"Subscriber\",\"\",IF('Enrollment Form'!$G255='Enrollment Form'!$H255,\"Y\",\"N\")))","v":""},{"$f":"IF($B248=\"N\",\"\",IF(AND(COUNTIFS('Enrollment Form'!$H$11:$H$1000,'Enrollment Form'!$H255,'Enrollment Form'!$B$11:$B$1000,'Enrollment Form'!$B255)>1,'Enrollment Form'!$H255<>\"\"),\"N\",\"Y\"))","v":""},{"$f":"IF($B248=\"N\",\"\",IF(LEN('Enrollment Form'!$Y255)=0,\"\",IF(LEN('Enrollment Form'!$Y255)<>5,\"N\",\"Y\")))","v":""},{"$f":"IF($B248=\"N\",\"\",IF(LEN('Enrollment Form'!$AD255=0),\"\",IF(LEN('Enrollment Form'!$AD255)<>5,\"N\",\"Y\")))","v":""},{"$f":"IF($B248=\"N\",\"\",IF(LEN('Enrollment Form'!$BS255=0),\"\",IF(LEN('Enrollment Form'!$BS255)<>5,\"N\",\"Y\")))","v":""},{"$f":"IF($B248=\"N\",\"\",IF(LEN('Enrollment Form'!$AE255)=0,\"\",IF(LEN('Enrollment Form'!$AE255)<>10,\"N\",\"Y\")))","v":""},{"$f":"IF($B248=\"N\",\"\",IF(LEN('Enrollment Form'!$AF255)=0,\"\",IF(LEN('Enrollment Form'!$AF255)<>10,\"N\",\"Y\")))","v":""},{"$f":"IF('Enrollment Form'!$O255<>\"Graded\",\"-\",IF(AND('Enrollment Form'!$O255=\"Graded\",'Enrollment Form'!$AR255<>\"\"),\"Y\",\"N\"))","v":"-"},{"$f":"IF($B248=\"N\",\"\",IF(OR('Enrollment Form'!$B255<>\"Subscriber\",'Enrollment Form'!$C255=\"ROC\"),\"-\",IF(AND('Enrollment Form'!$B255=\"Subscriber\",'Enrollment Form'!$C255=\"Enroll\",'Enrollment Form'!$AJ255<>\"\"),\"Y\",\"N\")))","v":""},{"$f":"IF($B248=\"N\",\"\",IF(OR('Enrollment Form'!$B255<>\"Subscriber\",'Enrollment Form'!$C255=\"ROC\"),\"-\",IF(AND('Enrollment Form'!$B255=\"Subscriber\",'Enrollment Form'!$C255=\"Enroll\",'Enrollment Form'!$AK255<>\"\"),\"Y\",\"N\")))","v":""},{"$f":"IF($B248=\"N\",\"\",IF(OR('Enrollment Form'!$B255<>\"Subscriber\",'Enrollment Form'!$C255=\"ROC\"),\"-\",IF(AND('Enrollment Form'!$B255=\"Subscriber\",'Enrollment Form'!$C255=\"Enroll\",'Enrollment Form'!$AL255<>\"\"),\"Y\",\"N\")))","v":""},{"$f":"IF($B248=\"N\",\"\",IF(OR('Enrollment Form'!$B255<>\"Subscriber\",'Enrollment Form'!$C255=\"ROC\"),\"-\",IF(AND('Enrollment Form'!$B255=\"Subscriber\",'Enrollment Form'!$C255=\"Enroll\",'Enrollment Form'!$AP255<>\"\"),\"Y\",\"N\")))","v":""},{"$f":"IF($B248=\"N\",\"\",IF(OR('Enrollment Form'!$B255<>\"Subscriber\",'Enrollment Form'!$C255=\"ROC\"),\"-\",IF(AND('Enrollment Form'!$B255=\"Subscriber\",'Enrollment Form'!$C255=\"Enroll\",'Enrollment Form'!$AQ255<>\"\"),\"Y\",\"N\")))","v":""},{"$f":"IF($B248=\"N\",\"\",IF(OR('Enrollment Form'!$B255<>\"Subscriber\",'Enrollment Form'!$C255=\"ROC\"),\"-\",IF(AND('Enrollment Form'!$B255=\"Subscriber\",'Enrollment Form'!$C255=\"Enroll\",'Enrollment Form'!$AS255<>\"\"),\"Y\",\"N\")))","v":""},{"$f":"IF($B248=\"N\",\"\",IF($Q248=\"-\",\"-\",IF(AND($Q248=\"Y\",'Enrollment Form'!$AS255=\"No\"),\"-\",IF(AND($Q248=\"Y\",'Enrollment Form'!$AS255=\"Yes\",'Enrollment Form'!$AT255<>\"\"),\"Y\",\"N\"))))","v":""},{"$f":"IF($B248=\"N\",\"\",IF(OR('Enrollment Form'!$B255<>\"Subscriber\",'Enrollment Form'!$C255=\"ROC\"),\"-\",IF(AND('Enrollment Form'!$B255=\"Subscriber\",'Enrollment Form'!$C255=\"Enroll\",'Enrollment Form'!$CV255<>\"\"),\"Y\",\"N\")))","v":""},{"$f":"IF($B248=\"N\",\"\",IF($S248=\"-\",\"-\",IF(AND($S248=\"Y\",'Enrollment Form'!$CV255=\"No\"),\"-\",IF(AND($S248=\"Y\",'Enrollment Form'!$CV255=\"Yes\",'Enrollment Form'!$CW255<>\"\"),\"Y\",\"N\"))))","v":""},{"$f":"IF(OR('Enrollment Form'!$AY255=\"Yes\",'Enrollment Form'!$AY255=\"\"),\"-\",IF(OR(AND('Enrollment Form'!$AY255=\"No\",ISERROR(FIND(\"HMO\",VLOOKUP('Enrollment Form'!G255,'Enrollment Form'!H$11:J$1000,3,FALSE),1))=FALSE,COUNTA('Enrollment Form'!$AZ255:$BC255)=4),AND('Enrollment Form'!$AY255=\"No\",ISERROR(FIND(\"HMO\",VLOOKUP('Enrollment Form'!G255,'Enrollment Form'!H$11:J$1000,3,FALSE),1))=FALSE,COUNTA('Enrollment Form'!$BT255:$BW255)=4)),\"Y\",\"N\"))","v":"-"},{"$f":"IF($B248=\"N\",\"\",IF('Enrollment Form'!$B255=\"Subscriber\",\"-\",IF(COUNTA('Enrollment Form'!$BL255,'Enrollment Form'!$BN255)=2,\"Y\",\"N\")))","v":""},{"$f":"IF($B248=\"N\",\"\",IF(OR('Enrollment Form'!$AX255=\"\",'Enrollment Form'!$AX255=\"No\"),\"-\",IF(AND('Enrollment Form'!$AX255=\"Yes\",COUNTA('Enrollment Form'!$CR255)=1),\"Y\",\"N\")))","v":""},{"$f":"IF(OR('Enrollment Form'!$CR255=\"\",'Enrollment Form'!$CR255=\"No\"),\"-\",IF(COUNTA('Enrollment Form'!$CT255:$CU255)=2,\"Y\",\"N\"))","v":"-"},{"$f":"IF($B248=\"N\",\"\",IF(COUNTIF('Enrollment Form'!$DG255:$DP255,\"Other\")=COUNTA('Enrollment Form'!$DK255,'Enrollment Form'!$DH255,'Enrollment Form'!$DN255,'Enrollment Form'!$DQ255),\"Y\",\"N\"))","v":""},{"$f":"IF($B248=\"N\",\"\",IF(OR('Enrollment Form'!B255<>\"Subscriber\",'Enrollment Form'!C255=\"ROC\",COUNTIF('Enrollment Form'!AV255:AW255,\"Yes\")>=1),\"-\",IF(AND('Enrollment Form'!C255=\"Enroll\",COUNTIF('Enrollment Form'!AV255:AW255,\"No\")=2,'Enrollment Form'!AX255=\"\"),\"N\",\"Y\")))","v":""},{"$f":"IF(OR(B248=\"N\",'Enrollment Form'!B255<>\"Subscriber\",'Enrollment Form'!C255=\"ROC\",'Enrollment Form'!O255<>\"Multiple of Salary\"),\"-\",IF(COUNTA('Enrollment Form'!T255:U255)<2,\"N\",\"Y\"))","v":"-"},{"$f":"IF(B248=\"N\",\"\",IF(OR('Enrollment Form'!C255=\"ROC\",'Enrollment Form'!B255<>\"Subscriber\",'Enrollment Form'!O255=\"Waive\",'Enrollment Form'!O255=\"\"),\"-\",IF('Enrollment Form'!P255=\"\",\"N\",\"Y\")))","v":""},{"$f":"IF($B248=\"N\",\"\",IF(AND('Enrollment Form'!$C255=\"ROC\",'Enrollment Form'!$DR255<>\"\"),\"Y\",IF(AND('Enrollment Form'!$C255=\"ROC\",'Enrollment Form'!$DR255=\"\"),\"N\",IF(AND('Enrollment Form'!$C255=\"Enroll\",'Enrollment Form'!$B255=\"Subscriber\",'Enrollment Form'!$CX255=\"No\",'Enrollment Form'!$DR255=\"\"),\"N\",IF(AND('Enrollment Form'!$C255=\"Enroll\",'Enrollment Form'!$B255=\"Subscriber\",'Enrollment Form'!$CX255=\"Yes\"),\"-\",\"Y\")))))","v":""},{"$f":"IF($B248=\"N\",\"\",IF(AND('Enrollment Form'!$C255=\"ROC\",'Enrollment Form'!$DS255<>\"\"),\"Y\",IF(AND('Enrollment Form'!$C255=\"ROC\",'Enrollment Form'!$DS255=\"\"),\"N\",IF(AND('Enrollment Form'!$C255=\"Enroll\",'Enrollment Form'!$B255=\"Subscriber\",'Enrollment Form'!$CX255=\"No\",'Enrollment Form'!$DS255=\"\"),\"N\",IF(AND('Enrollment Form'!$C255=\"Enroll\",'Enrollment Form'!$B255=\"Subscriber\",'Enrollment Form'!$CX255=\"Yes\"),\"-\",\"Y\")))))","v":""},{"$f":"IF('Enrollment Form'!AH255=\"\",\"\",IF(ISERROR(SEARCH(\".\",'Enrollment Form'!AH255,SEARCH(\"@\",'Enrollment Form'!AH255))),\"N\",\"Y\"))","v":""},{"$f":"IF(OR($B248=\"N\",'Enrollment Form'!$G255=\"\"),\"\",IF('Enrollment Form'!$B255<>\"Subscriber\",\"-\",IF(COUNTIF('Enrollment Form'!$AV255:$AW255,\"Yes\")=2,\"N\",\"Y\")))","v":""},{"$f":"IF(OR('Enrollment Form'!$CJ255=\"\",'Enrollment Form'!$CJ255=\"No\"),\"-\",IF(AND('Enrollment Form'!$CJ255=\"Yes\",'Enrollment Form'!$CK255=\"\"),\"N\",\"Y\"))","v":"-"},{"$f":"IF(OR('Enrollment Form'!$CL255=\"\",'Enrollment Form'!$CL255=\"No\"),\"-\",IF(AND('Enrollment Form'!$CL255=\"Yes\",'Enrollment Form'!$CM255=\"\"),\"N\",\"Y\"))","v":"-"},{"$f":"IF(OR('Enrollment Form'!$CN255=\"\",'Enrollment Form'!$CN255=\"No\"),\"-\",IF(AND('Enrollment Form'!$CN255=\"Yes\",'Enrollment Form'!$CO255=\"\"),\"N\",\"Y\"))","v":"-"},{"$f":"IF(OR('Enrollment Form'!$CN255=\"\",'Enrollment Form'!$CN255=\"No\"),\"-\",IF(AND('Enrollment Form'!$CN255=\"Yes\",'Enrollment Form'!$CP255=\"\"),\"N\",\"Y\"))","v":"-"},{"$f":"IF('Enrollment Form'!B255<>\"Subscriber\",\"-\",IF(AND('Enrollment Form'!B255=\"Subscriber\",'Enrollment Form'!C255=\"Enroll\",'Enrollment Form'!AA255=\"\"),\"N\",\"Y\"))","v":"-"},{"$f":"IF(OR('Enrollment Form'!B255=\"Subscriber\",'Enrollment Form'!B255=\"\"),\"-\",IF('Enrollment Form'!BP255=\"\",\"N\",\"Y\"))","v":"-"},{"$f":"IF('Enrollment Form'!B255<>\"Subscriber\",\"-\",IF(AND('Enrollment Form'!B255=\"Subscriber\",'Enrollment Form'!G255=\"\"),\"N\",\"Y\"))","v":"-"},{"$f":"IF('Enrollment Form'!A255=\"\",\"\",IF('Enrollment Form'!B255=\"Subscriber\",\"-\",IF(AND('Enrollment Form'!B255<>\"Subscriber\",'Enrollment Form'!G255='Enrollment Form'!H255),\"N\",\"Y\")))","v":""},0]
[256,{"$f":"IF('Enrollment Form'!$A256<>\"\",\"Y\",\"N\")","v":"N"},{"$f":"IF(AND('Enrollment Form'!$B256=\"\",'Enrollment Form'!$C256<>\"\"),\"N\",IF($B249=\"N\",\"\",\"Y\"))","v":""},{"$f":"IF(OR($B249=\"N\",'Enrollment Form'!G256=\"\"),\"\",IF('Enrollment Form'!$B256<>\"Subscriber\",\"\",IF('Enrollment Form'!$G256='Enrollment Form'!$H256,\"Y\",\"N\")))","v":""},{"$f":"IF($B249=\"N\",\"\",IF(AND(COUNTIFS('Enrollment Form'!$H$11:$H$1000,'Enrollment Form'!$H256,'Enrollment Form'!$B$11:$B$1000,'Enrollment Form'!$B256)>1,'Enrollment Form'!$H256<>\"\"),\"N\",\"Y\"))","v":""},{"$f":"IF($B249=\"N\",\"\",IF(LEN('Enrollment Form'!$Y256)=0,\"\",IF(LEN('Enrollment Form'!$Y256)<>5,\"N\",\"Y\")))","v":""},{"$f":"IF($B249=\"N\",\"\",IF(LEN('Enrollment Form'!$AD256=0),\"\",IF(LEN('Enrollment Form'!$AD256)<>5,\"N\",\"Y\")))","v":""},{"$f":"IF($B249=\"N\",\"\",IF(LEN('Enrollment Form'!$BS256=0),\"\",IF(LEN('Enrollment Form'!$BS256)<>5,\"N\",\"Y\")))","v":""},{"$f":"IF($B249=\"N\",\"\",IF(LEN('Enrollment Form'!$AE256)=0,\"\",IF(LEN('Enrollment Form'!$AE256)<>10,\"N\",\"Y\")))","v":""},{"$f":"IF($B249=\"N\",\"\",IF(LEN('Enrollment Form'!$AF256)=0,\"\",IF(LEN('Enrollment Form'!$AF256)<>10,\"N\",\"Y\")))","v":""},{"$f":"IF('Enrollment Form'!$O256<>\"Graded\",\"-\",IF(AND('Enrollment Form'!$O256=\"Graded\",'Enrollment Form'!$AR256<>\"\"),\"Y\",\"N\"))","v":"-"},{"$f":"IF($B249=\"N\",\"\",IF(OR('Enrollment Form'!$B256<>\"Subscriber\",'Enrollment Form'!$C256=\"ROC\"),\"-\",IF(AND('Enrollment Form'!$B256=\"Subscriber\",'Enrollment Form'!$C256=\"Enroll\",'Enrollment Form'!$AJ256<>\"\"),\"Y\",\"N\")))","v":""},{"$f":"IF($B249=\"N\",\"\",IF(OR('Enrollment Form'!$B256<>\"Subscriber\",'Enrollment Form'!$C256=\"ROC\"),\"-\",IF(AND('Enrollment Form'!$B256=\"Subscriber\",'Enrollment Form'!$C256=\"Enroll\",'Enrollment Form'!$AK256<>\"\"),\"Y\",\"N\")))","v":""},{"$f":"IF($B249=\"N\",\"\",IF(OR('Enrollment Form'!$B256<>\"Subscriber\",'Enrollment Form'!$C256=\"ROC\"),\"-\",IF(AND('Enrollment Form'!$B256=\"Subscriber\",'Enrollment Form'!$C256=\"Enroll\",'Enrollment Form'!$AL256<>\"\"),\"Y\",\"N\")))","v":""},{"$f":"IF($B249=\"N\",\"\",IF(OR('Enrollment Form'!$B256<>\"Subscriber\",'Enrollment Form'!$C256=\"ROC\"),\"-\",IF(AND('Enrollment Form'!$B256=\"Subscriber\",'Enrollment Form'!$C256=\"Enroll\",'Enrollment Form'!$AP256<>\"\"),\"Y\",\"N\")))","v":""},{"$f":"IF($B249=\"N\",\"\",IF(OR('Enrollment Form'!$B256<>\"Subscriber\",'Enrollment Form'!$C256=\"ROC\"),\"-\",IF(AND('Enrollment Form'!$B256=\"Subscriber\",'Enrollment Form'!$C256=\"Enroll\",'Enrollment Form'!$AQ256<>\"\"),\"Y\",\"N\")))","v":""},{"$f":"IF($B249=\"N\",\"\",IF(OR('Enrollment Form'!$B256<>\"Subscriber\",'Enrollment Form'!$C256=\"ROC\"),\"-\",IF(AND('Enrollment Form'!$B256=\"Subscriber\",'Enrollment Form'!$C256=\"Enroll\",'Enrollment Form'!$AS256<>\"\"),\"Y\",\"N\")))","v":""},{"$f":"IF($B249=\"N\",\"\",IF($Q249=\"-\",\"-\",IF(AND($Q249=\"Y\",'Enrollment Form'!$AS256=\"No\"),\"-\",IF(AND($Q249=\"Y\",'Enrollment Form'!$AS256=\"Yes\",'Enrollment Form'!$AT256<>\"\"),\"Y\",\"N\"))))","v":""},{"$f":"IF($B249=\"N\",\"\",IF(OR('Enrollment Form'!$B256<>\"Subscriber\",'Enrollment Form'!$C256=\"ROC\"),\"-\",IF(AND('Enrollment Form'!$B256=\"Subscriber\",'Enrollment Form'!$C256=\"Enroll\",'Enrollment Form'!$CV256<>\"\"),\"Y\",\"N\")))","v":""},{"$f":"IF($B249=\"N\",\"\",IF($S249=\"-\",\"-\",IF(AND($S249=\"Y\",'Enrollment Form'!$CV256=\"No\"),\"-\",IF(AND($S249=\"Y\",'Enrollment Form'!$CV256=\"Yes\",'Enrollment Form'!$CW256<>\"\"),\"Y\",\"N\"))))","v":""},{"$f":"IF(OR('Enrollment Form'!$AY256=\"Yes\",'Enrollment Form'!$AY256=\"\"),\"-\",IF(OR(AND('Enrollment Form'!$AY256=\"No\",ISERROR(FIND(\"HMO\",VLOOKUP('Enrollment Form'!G256,'Enrollment Form'!H$11:J$1000,3,FALSE),1))=FALSE,COUNTA('Enrollment Form'!$AZ256:$BC256)=4),AND('Enrollment Form'!$AY256=\"No\",ISERROR(FIND(\"HMO\",VLOOKUP('Enrollment Form'!G256,'Enrollment Form'!H$11:J$1000,3,FALSE),1))=FALSE,COUNTA('Enrollment Form'!$BT256:$BW256)=4)),\"Y\",\"N\"))","v":"-"},{"$f":"IF($B249=\"N\",\"\",IF('Enrollment Form'!$B256=\"Subscriber\",\"-\",IF(COUNTA('Enrollment Form'!$BL256,'Enrollment Form'!$BN256)=2,\"Y\",\"N\")))","v":""},{"$f":"IF($B249=\"N\",\"\",IF(OR('Enrollment Form'!$AX256=\"\",'Enrollment Form'!$AX256=\"No\"),\"-\",IF(AND('Enrollment Form'!$AX256=\"Yes\",COUNTA('Enrollment Form'!$CR256)=1),\"Y\",\"N\")))","v":""},{"$f":"IF(OR('Enrollment Form'!$CR256=\"\",'Enrollment Form'!$CR256=\"No\"),\"-\",IF(COUNTA('Enrollment Form'!$CT256:$CU256)=2,\"Y\",\"N\"))","v":"-"},{"$f":"IF($B249=\"N\",\"\",IF(COUNTIF('Enrollment Form'!$DG256:$DP256,\"Other\")=COUNTA('Enrollment Form'!$DK256,'Enrollment Form'!$DH256,'Enrollment Form'!$DN256,'Enrollment Form'!$DQ256),\"Y\",\"N\"))","v":""},{"$f":"IF($B249=\"N\",\"\",IF(OR('Enrollment Form'!B256<>\"Subscriber\",'Enrollment Form'!C256=\"ROC\",COUNTIF('Enrollment Form'!AV256:AW256,\"Yes\")>=1),\"-\",IF(AND('Enrollment Form'!C256=\"Enroll\",COUNTIF('Enrollment Form'!AV256:AW256,\"No\")=2,'Enrollment Form'!AX256=\"\"),\"N\",\"Y\")))","v":""},{"$f":"IF(OR(B249=\"N\",'Enrollment Form'!B256<>\"Subscriber\",'Enrollment Form'!C256=\"ROC\",'Enrollment Form'!O256<>\"Multiple of Salary\"),\"-\",IF(COUNTA('Enrollment Form'!T256:U256)<2,\"N\",\"Y\"))","v":"-"},{"$f":"IF(B249=\"N\",\"\",IF(OR('Enrollment Form'!C256=\"ROC\",'Enrollment Form'!B256<>\"Subscriber\",'Enrollment Form'!O256=\"Waive\",'Enrollment Form'!O256=\"\"),\"-\",IF('Enrollment Form'!P256=\"\",\"N\",\"Y\")))","v":""},{"$f":"IF($B249=\"N\",\"\",IF(AND('Enrollment Form'!$C256=\"ROC\",'Enrollment Form'!$DR256<>\"\"),\"Y\",IF(AND('Enrollment Form'!$C256=\"ROC\",'Enrollment Form'!$DR256=\"\"),\"N\",IF(AND('Enrollment Form'!$C256=\"Enroll\",'Enrollment Form'!$B256=\"Subscriber\",'Enrollment Form'!$CX256=\"No\",'Enrollment Form'!$DR256=\"\"),\"N\",IF(AND('Enrollment Form'!$C256=\"Enroll\",'Enrollment Form'!$B256=\"Subscriber\",'Enrollment Form'!$CX256=\"Yes\"),\"-\",\"Y\")))))","v":""},{"$f":"IF($B249=\"N\",\"\",IF(AND('Enrollment Form'!$C256=\"ROC\",'Enrollment Form'!$DS256<>\"\"),\"Y\",IF(AND('Enrollment Form'!$C256=\"ROC\",'Enrollment Form'!$DS256=\"\"),\"N\",IF(AND('Enrollment Form'!$C256=\"Enroll\",'Enrollment Form'!$B256=\"Subscriber\",'Enrollment Form'!$CX256=\"No\",'Enrollment Form'!$DS256=\"\"),\"N\",IF(AND('Enrollment Form'!$C256=\"Enroll\",'Enrollment Form'!$B256=\"Subscriber\",'Enrollment Form'!$CX256=\"Yes\"),\"-\",\"Y\")))))","v":""},{"$f":"IF('Enrollment Form'!AH256=\"\",\"\",IF(ISERROR(SEARCH(\".\",'Enrollment Form'!AH256,SEARCH(\"@\",'Enrollment Form'!AH256))),\"N\",\"Y\"))","v":""},{"$f":"IF(OR($B249=\"N\",'Enrollment Form'!$G256=\"\"),\"\",IF('Enrollment Form'!$B256<>\"Subscriber\",\"-\",IF(COUNTIF('Enrollment Form'!$AV256:$AW256,\"Yes\")=2,\"N\",\"Y\")))","v":""},{"$f":"IF(OR('Enrollment Form'!$CJ256=\"\",'Enrollment Form'!$CJ256=\"No\"),\"-\",IF(AND('Enrollment Form'!$CJ256=\"Yes\",'Enrollment Form'!$CK256=\"\"),\"N\",\"Y\"))","v":"-"},{"$f":"IF(OR('Enrollment Form'!$CL256=\"\",'Enrollment Form'!$CL256=\"No\"),\"-\",IF(AND('Enrollment Form'!$CL256=\"Yes\",'Enrollment Form'!$CM256=\"\"),\"N\",\"Y\"))","v":"-"},{"$f":"IF(OR('Enrollment Form'!$CN256=\"\",'Enrollment Form'!$CN256=\"No\"),\"-\",IF(AND('Enrollment Form'!$CN256=\"Yes\",'Enrollment Form'!$CO256=\"\"),\"N\",\"Y\"))","v":"-"},{"$f":"IF(OR('Enrollment Form'!$CN256=\"\",'Enrollment Form'!$CN256=\"No\"),\"-\",IF(AND('Enrollment Form'!$CN256=\"Yes\",'Enrollment Form'!$CP256=\"\"),\"N\",\"Y\"))","v":"-"},{"$f":"IF('Enrollment Form'!B256<>\"Subscriber\",\"-\",IF(AND('Enrollment Form'!B256=\"Subscriber\",'Enrollment Form'!C256=\"Enroll\",'Enrollment Form'!AA256=\"\"),\"N\",\"Y\"))","v":"-"},{"$f":"IF(OR('Enrollment Form'!B256=\"Subscriber\",'Enrollment Form'!B256=\"\"),\"-\",IF('Enrollment Form'!BP256=\"\",\"N\",\"Y\"))","v":"-"},{"$f":"IF('Enrollment Form'!B256<>\"Subscriber\",\"-\",IF(AND('Enrollment Form'!B256=\"Subscriber\",'Enrollment Form'!G256=\"\"),\"N\",\"Y\"))","v":"-"},{"$f":"IF('Enrollment Form'!A256=\"\",\"\",IF('Enrollment Form'!B256=\"Subscriber\",\"-\",IF(AND('Enrollment Form'!B256<>\"Subscriber\",'Enrollment Form'!G256='Enrollment Form'!H256),\"N\",\"Y\")))","v":""},0]
[257,{"$f":"IF('Enrollment Form'!$A257<>\"\",\"Y\",\"N\")","v":"N"},{"$f":"IF(AND('Enrollment Form'!$B257=\"\",'Enrollment Form'!$C257<>\"\"),\"N\",IF($B250=\"N\",\"\",\"Y\"))","v":""},{"$f":"IF(OR($B250=\"N\",'Enrollment Form'!G257=\"\"),\"\",IF('Enrollment Form'!$B257<>\"Subscriber\",\"\",IF('Enrollment Form'!$G257='Enrollment Form'!$H257,\"Y\",\"N\")))","v":""},{"$f":"IF($B250=\"N\",\"\",IF(AND(COUNTIFS('Enrollment Form'!$H$11:$H$1000,'Enrollment Form'!$H257,'Enrollment Form'!$B$11:$B$1000,'Enrollment Form'!$B257)>1,'Enrollment Form'!$H257<>\"\"),\"N\",\"Y\"))","v":""},{"$f":"IF($B250=\"N\",\"\",IF(LEN('Enrollment Form'!$Y257)=0,\"\",IF(LEN('Enrollment Form'!$Y257)<>5,\"N\",\"Y\")))","v":""},{"$f":"IF($B250=\"N\",\"\",IF(LEN('Enrollment Form'!$AD257=0),\"\",IF(LEN('Enrollment Form'!$AD257)<>5,\"N\",\"Y\")))","v":""},{"$f":"IF($B250=\"N\",\"\",IF(LEN('Enrollment Form'!$BS257=0),\"\",IF(LEN('Enrollment Form'!$BS257)<>5,\"N\",\"Y\")))","v":""},{"$f":"IF($B250=\"N\",\"\",IF(LEN('Enrollment Form'!$AE257)=0,\"\",IF(LEN('Enrollment Form'!$AE257)<>10,\"N\",\"Y\")))","v":""},{"$f":"IF($B250=\"N\",\"\",IF(LEN('Enrollment Form'!$AF257)=0,\"\",IF(LEN('Enrollment Form'!$AF257)<>10,\"N\",\"Y\")))","v":""},{"$f":"IF('Enrollment Form'!$O257<>\"Graded\",\"-\",IF(AND('Enrollment Form'!$O257=\"Graded\",'Enrollment Form'!$AR257<>\"\"),\"Y\",\"N\"))","v":"-"},{"$f":"IF($B250=\"N\",\"\",IF(OR('Enrollment Form'!$B257<>\"Subscriber\",'Enrollment Form'!$C257=\"ROC\"),\"-\",IF(AND('Enrollment Form'!$B257=\"Subscriber\",'Enrollment Form'!$C257=\"Enroll\",'Enrollment Form'!$AJ257<>\"\"),\"Y\",\"N\")))","v":""},{"$f":"IF($B250=\"N\",\"\",IF(OR('Enrollment Form'!$B257<>\"Subscriber\",'Enrollment Form'!$C257=\"ROC\"),\"-\",IF(AND('Enrollment Form'!$B257=\"Subscriber\",'Enrollment Form'!$C257=\"Enroll\",'Enrollment Form'!$AK257<>\"\"),\"Y\",\"N\")))","v":""},{"$f":"IF($B250=\"N\",\"\",IF(OR('Enrollment Form'!$B257<>\"Subscriber\",'Enrollment Form'!$C257=\"ROC\"),\"-\",IF(AND('Enrollment Form'!$B257=\"Subscriber\",'Enrollment Form'!$C257=\"Enroll\",'Enrollment Form'!$AL257<>\"\"),\"Y\",\"N\")))","v":""},{"$f":"IF($B250=\"N\",\"\",IF(OR('Enrollment Form'!$B257<>\"Subscriber\",'Enrollment Form'!$C257=\"ROC\"),\"-\",IF(AND('Enrollment Form'!$B257=\"Subscriber\",'Enrollment Form'!$C257=\"Enroll\",'Enrollment Form'!$AP257<>\"\"),\"Y\",\"N\")))","v":""},{"$f":"IF($B250=\"N\",\"\",IF(OR('Enrollment Form'!$B257<>\"Subscriber\",'Enrollment Form'!$C257=\"ROC\"),\"-\",IF(AND('Enrollment Form'!$B257=\"Subscriber\",'Enrollment Form'!$C257=\"Enroll\",'Enrollment Form'!$AQ257<>\"\"),\"Y\",\"N\")))","v":""},{"$f":"IF($B250=\"N\",\"\",IF(OR('Enrollment Form'!$B257<>\"Subscriber\",'Enrollment Form'!$C257=\"ROC\"),\"-\",IF(AND('Enrollment Form'!$B257=\"Subscriber\",'Enrollment Form'!$C257=\"Enroll\",'Enrollment Form'!$AS257<>\"\"),\"Y\",\"N\")))","v":""},{"$f":"IF($B250=\"N\",\"\",IF($Q250=\"-\",\"-\",IF(AND($Q250=\"Y\",'Enrollment Form'!$AS257=\"No\"),\"-\",IF(AND($Q250=\"Y\",'Enrollment Form'!$AS257=\"Yes\",'Enrollment Form'!$AT257<>\"\"),\"Y\",\"N\"))))","v":""},{"$f":"IF($B250=\"N\",\"\",IF(OR('Enrollment Form'!$B257<>\"Subscriber\",'Enrollment Form'!$C257=\"ROC\"),\"-\",IF(AND('Enrollment Form'!$B257=\"Subscriber\",'Enrollment Form'!$C257=\"Enroll\",'Enrollment Form'!$CV257<>\"\"),\"Y\",\"N\")))","v":""},{"$f":"IF($B250=\"N\",\"\",IF($S250=\"-\",\"-\",IF(AND($S250=\"Y\",'Enrollment Form'!$CV257=\"No\"),\"-\",IF(AND($S250=\"Y\",'Enrollment Form'!$CV257=\"Yes\",'Enrollment Form'!$CW257<>\"\"),\"Y\",\"N\"))))","v":""},{"$f":"IF(OR('Enrollment Form'!$AY257=\"Yes\",'Enrollment Form'!$AY257=\"\"),\"-\",IF(OR(AND('Enrollment Form'!$AY257=\"No\",ISERROR(FIND(\"HMO\",VLOOKUP('Enrollment Form'!G257,'Enrollment Form'!H$11:J$1000,3,FALSE),1))=FALSE,COUNTA('Enrollment Form'!$AZ257:$BC257)=4),AND('Enrollment Form'!$AY257=\"No\",ISERROR(FIND(\"HMO\",VLOOKUP('Enrollment Form'!G257,'Enrollment Form'!H$11:J$1000,3,FALSE),1))=FALSE,COUNTA('Enrollment Form'!$BT257:$BW257)=4)),\"Y\",\"N\"))","v":"-"},{"$f":"IF($B250=\"N\",\"\",IF('Enrollment Form'!$B257=\"Subscriber\",\"-\",IF(COUNTA('Enrollment Form'!$BL257,'Enrollment Form'!$BN257)=2,\"Y\",\"N\")))","v":""},{"$f":"IF($B250=\"N\",\"\",IF(OR('Enrollment Form'!$AX257=\"\",'Enrollment Form'!$AX257=\"No\"),\"-\",IF(AND('Enrollment Form'!$AX257=\"Yes\",COUNTA('Enrollment Form'!$CR257)=1),\"Y\",\"N\")))","v":""},{"$f":"IF(OR('Enrollment Form'!$CR257=\"\",'Enrollment Form'!$CR257=\"No\"),\"-\",IF(COUNTA('Enrollment Form'!$CT257:$CU257)=2,\"Y\",\"N\"))","v":"-"},{"$f":"IF($B250=\"N\",\"\",IF(COUNTIF('Enrollment Form'!$DG257:$DP257,\"Other\")=COUNTA('Enrollment Form'!$DK257,'Enrollment Form'!$DH257,'Enrollment Form'!$DN257,'Enrollment Form'!$DQ257),\"Y\",\"N\"))","v":""},{"$f":"IF($B250=\"N\",\"\",IF(OR('Enrollment Form'!B257<>\"Subscriber\",'Enrollment Form'!C257=\"ROC\",COUNTIF('Enrollment Form'!AV257:AW257,\"Yes\")>=1),\"-\",IF(AND('Enrollment Form'!C257=\"Enroll\",COUNTIF('Enrollment Form'!AV257:AW257,\"No\")=2,'Enrollment Form'!AX257=\"\"),\"N\",\"Y\")))","v":""},{"$f":"IF(OR(B250=\"N\",'Enrollment Form'!B257<>\"Subscriber\",'Enrollment Form'!C257=\"ROC\",'Enrollment Form'!O257<>\"Multiple of Salary\"),\"-\",IF(COUNTA('Enrollment Form'!T257:U257)<2,\"N\",\"Y\"))","v":"-"},{"$f":"IF(B250=\"N\",\"\",IF(OR('Enrollment Form'!C257=\"ROC\",'Enrollment Form'!B257<>\"Subscriber\",'Enrollment Form'!O257=\"Waive\",'Enrollment Form'!O257=\"\"),\"-\",IF('Enrollment Form'!P257=\"\",\"N\",\"Y\")))","v":""},{"$f":"IF($B250=\"N\",\"\",IF(AND('Enrollment Form'!$C257=\"ROC\",'Enrollment Form'!$DR257<>\"\"),\"Y\",IF(AND('Enrollment Form'!$C257=\"ROC\",'Enrollment Form'!$DR257=\"\"),\"N\",IF(AND('Enrollment Form'!$C257=\"Enroll\",'Enrollment Form'!$B257=\"Subscriber\",'Enrollment Form'!$CX257=\"No\",'Enrollment Form'!$DR257=\"\"),\"N\",IF(AND('Enrollment Form'!$C257=\"Enroll\",'Enrollment Form'!$B257=\"Subscriber\",'Enrollment Form'!$CX257=\"Yes\"),\"-\",\"Y\")))))","v":""},{"$f":"IF($B250=\"N\",\"\",IF(AND('Enrollment Form'!$C257=\"ROC\",'Enrollment Form'!$DS257<>\"\"),\"Y\",IF(AND('Enrollment Form'!$C257=\"ROC\",'Enrollment Form'!$DS257=\"\"),\"N\",IF(AND('Enrollment Form'!$C257=\"Enroll\",'Enrollment Form'!$B257=\"Subscriber\",'Enrollment Form'!$CX257=\"No\",'Enrollment Form'!$DS257=\"\"),\"N\",IF(AND('Enrollment Form'!$C257=\"Enroll\",'Enrollment Form'!$B257=\"Subscriber\",'Enrollment Form'!$CX257=\"Yes\"),\"-\",\"Y\")))))","v":""},{"$f":"IF('Enrollment Form'!AH257=\"\",\"\",IF(ISERROR(SEARCH(\".\",'Enrollment Form'!AH257,SEARCH(\"@\",'Enrollment Form'!AH257))),\"N\",\"Y\"))","v":""},{"$f":"IF(OR($B250=\"N\",'Enrollment Form'!$G257=\"\"),\"\",IF('Enrollment Form'!$B257<>\"Subscriber\",\"-\",IF(COUNTIF('Enrollment Form'!$AV257:$AW257,\"Yes\")=2,\"N\",\"Y\")))","v":""},{"$f":"IF(OR('Enrollment Form'!$CJ257=\"\",'Enrollment Form'!$CJ257=\"No\"),\"-\",IF(AND('Enrollment Form'!$CJ257=\"Yes\",'Enrollment Form'!$CK257=\"\"),\"N\",\"Y\"))","v":"-"},{"$f":"IF(OR('Enrollment Form'!$CL257=\"\",'Enrollment Form'!$CL257=\"No\"),\"-\",IF(AND('Enrollment Form'!$CL257=\"Yes\",'Enrollment Form'!$CM257=\"\"),\"N\",\"Y\"))","v":"-"},{"$f":"IF(OR('Enrollment Form'!$CN257=\"\",'Enrollment Form'!$CN257=\"No\"),\"-\",IF(AND('Enrollment Form'!$CN257=\"Yes\",'Enrollment Form'!$CO257=\"\"),\"N\",\"Y\"))","v":"-"},{"$f":"IF(OR('Enrollment Form'!$CN257=\"\",'Enrollment Form'!$CN257=\"No\"),\"-\",IF(AND('Enrollment Form'!$CN257=\"Yes\",'Enrollment Form'!$CP257=\"\"),\"N\",\"Y\"))","v":"-"},{"$f":"IF('Enrollment Form'!B257<>\"Subscriber\",\"-\",IF(AND('Enrollment Form'!B257=\"Subscriber\",'Enrollment Form'!C257=\"Enroll\",'Enrollment Form'!AA257=\"\"),\"N\",\"Y\"))","v":"-"},{"$f":"IF(OR('Enrollment Form'!B257=\"Subscriber\",'Enrollment Form'!B257=\"\"),\"-\",IF('Enrollment Form'!BP257=\"\",\"N\",\"Y\"))","v":"-"},{"$f":"IF('Enrollment Form'!B257<>\"Subscriber\",\"-\",IF(AND('Enrollment Form'!B257=\"Subscriber\",'Enrollment Form'!G257=\"\"),\"N\",\"Y\"))","v":"-"},{"$f":"IF('Enrollment Form'!A257=\"\",\"\",IF('Enrollment Form'!B257=\"Subscriber\",\"-\",IF(AND('Enrollment Form'!B257<>\"Subscriber\",'Enrollment Form'!G257='Enrollment Form'!H257),\"N\",\"Y\")))","v":""},0]
[258,{"$f":"IF('Enrollment Form'!$A258<>\"\",\"Y\",\"N\")","v":"N"},{"$f":"IF(AND('Enrollment Form'!$B258=\"\",'Enrollment Form'!$C258<>\"\"),\"N\",IF($B251=\"N\",\"\",\"Y\"))","v":""},{"$f":"IF(OR($B251=\"N\",'Enrollment Form'!G258=\"\"),\"\",IF('Enrollment Form'!$B258<>\"Subscriber\",\"\",IF('Enrollment Form'!$G258='Enrollment Form'!$H258,\"Y\",\"N\")))","v":""},{"$f":"IF($B251=\"N\",\"\",IF(AND(COUNTIFS('Enrollment Form'!$H$11:$H$1000,'Enrollment Form'!$H258,'Enrollment Form'!$B$11:$B$1000,'Enrollment Form'!$B258)>1,'Enrollment Form'!$H258<>\"\"),\"N\",\"Y\"))","v":""},{"$f":"IF($B251=\"N\",\"\",IF(LEN('Enrollment Form'!$Y258)=0,\"\",IF(LEN('Enrollment Form'!$Y258)<>5,\"N\",\"Y\")))","v":""},{"$f":"IF($B251=\"N\",\"\",IF(LEN('Enrollment Form'!$AD258=0),\"\",IF(LEN('Enrollment Form'!$AD258)<>5,\"N\",\"Y\")))","v":""},{"$f":"IF($B251=\"N\",\"\",IF(LEN('Enrollment Form'!$BS258=0),\"\",IF(LEN('Enrollment Form'!$BS258)<>5,\"N\",\"Y\")))","v":""},{"$f":"IF($B251=\"N\",\"\",IF(LEN('Enrollment Form'!$AE258)=0,\"\",IF(LEN('Enrollment Form'!$AE258)<>10,\"N\",\"Y\")))","v":""},{"$f":"IF($B251=\"N\",\"\",IF(LEN('Enrollment Form'!$AF258)=0,\"\",IF(LEN('Enrollment Form'!$AF258)<>10,\"N\",\"Y\")))","v":""},{"$f":"IF('Enrollment Form'!$O258<>\"Graded\",\"-\",IF(AND('Enrollment Form'!$O258=\"Graded\",'Enrollment Form'!$AR258<>\"\"),\"Y\",\"N\"))","v":"-"},{"$f":"IF($B251=\"N\",\"\",IF(OR('Enrollment Form'!$B258<>\"Subscriber\",'Enrollment Form'!$C258=\"ROC\"),\"-\",IF(AND('Enrollment Form'!$B258=\"Subscriber\",'Enrollment Form'!$C258=\"Enroll\",'Enrollment Form'!$AJ258<>\"\"),\"Y\",\"N\")))","v":""},{"$f":"IF($B251=\"N\",\"\",IF(OR('Enrollment Form'!$B258<>\"Subscriber\",'Enrollment Form'!$C258=\"ROC\"),\"-\",IF(AND('Enrollment Form'!$B258=\"Subscriber\",'Enrollment Form'!$C258=\"Enroll\",'Enrollment Form'!$AK258<>\"\"),\"Y\",\"N\")))","v":""},{"$f":"IF($B251=\"N\",\"\",IF(OR('Enrollment Form'!$B258<>\"Subscriber\",'Enrollment Form'!$C258=\"ROC\"),\"-\",IF(AND('Enrollment Form'!$B258=\"Subscriber\",'Enrollment Form'!$C258=\"Enroll\",'Enrollment Form'!$AL258<>\"\"),\"Y\",\"N\")))","v":""},{"$f":"IF($B251=\"N\",\"\",IF(OR('Enrollment Form'!$B258<>\"Subscriber\",'Enrollment Form'!$C258=\"ROC\"),\"-\",IF(AND('Enrollment Form'!$B258=\"Subscriber\",'Enrollment Form'!$C258=\"Enroll\",'Enrollment Form'!$AP258<>\"\"),\"Y\",\"N\")))","v":""},{"$f":"IF($B251=\"N\",\"\",IF(OR('Enrollment Form'!$B258<>\"Subscriber\",'Enrollment Form'!$C258=\"ROC\"),\"-\",IF(AND('Enrollment Form'!$B258=\"Subscriber\",'Enrollment Form'!$C258=\"Enroll\",'Enrollment Form'!$AQ258<>\"\"),\"Y\",\"N\")))","v":""},{"$f":"IF($B251=\"N\",\"\",IF(OR('Enrollment Form'!$B258<>\"Subscriber\",'Enrollment Form'!$C258=\"ROC\"),\"-\",IF(AND('Enrollment Form'!$B258=\"Subscriber\",'Enrollment Form'!$C258=\"Enroll\",'Enrollment Form'!$AS258<>\"\"),\"Y\",\"N\")))","v":""},{"$f":"IF($B251=\"N\",\"\",IF($Q251=\"-\",\"-\",IF(AND($Q251=\"Y\",'Enrollment Form'!$AS258=\"No\"),\"-\",IF(AND($Q251=\"Y\",'Enrollment Form'!$AS258=\"Yes\",'Enrollment Form'!$AT258<>\"\"),\"Y\",\"N\"))))","v":""},{"$f":"IF($B251=\"N\",\"\",IF(OR('Enrollment Form'!$B258<>\"Subscriber\",'Enrollment Form'!$C258=\"ROC\"),\"-\",IF(AND('Enrollment Form'!$B258=\"Subscriber\",'Enrollment Form'!$C258=\"Enroll\",'Enrollment Form'!$CV258<>\"\"),\"Y\",\"N\")))","v":""},{"$f":"IF($B251=\"N\",\"\",IF($S251=\"-\",\"-\",IF(AND($S251=\"Y\",'Enrollment Form'!$CV258=\"No\"),\"-\",IF(AND($S251=\"Y\",'Enrollment Form'!$CV258=\"Yes\",'Enrollment Form'!$CW258<>\"\"),\"Y\",\"N\"))))","v":""},{"$f":"IF(OR('Enrollment Form'!$AY258=\"Yes\",'Enrollment Form'!$AY258=\"\"),\"-\",IF(OR(AND('Enrollment Form'!$AY258=\"No\",ISERROR(FIND(\"HMO\",VLOOKUP('Enrollment Form'!G258,'Enrollment Form'!H$11:J$1000,3,FALSE),1))=FALSE,COUNTA('Enrollment Form'!$AZ258:$BC258)=4),AND('Enrollment Form'!$AY258=\"No\",ISERROR(FIND(\"HMO\",VLOOKUP('Enrollment Form'!G258,'Enrollment Form'!H$11:J$1000,3,FALSE),1))=FALSE,COUNTA('Enrollment Form'!$BT258:$BW258)=4)),\"Y\",\"N\"))","v":"-"},{"$f":"IF($B251=\"N\",\"\",IF('Enrollment Form'!$B258=\"Subscriber\",\"-\",IF(COUNTA('Enrollment Form'!$BL258,'Enrollment Form'!$BN258)=2,\"Y\",\"N\")))","v":""},{"$f":"IF($B251=\"N\",\"\",IF(OR('Enrollment Form'!$AX258=\"\",'Enrollment Form'!$AX258=\"No\"),\"-\",IF(AND('Enrollment Form'!$AX258=\"Yes\",COUNTA('Enrollment Form'!$CR258)=1),\"Y\",\"N\")))","v":""},{"$f":"IF(OR('Enrollment Form'!$CR258=\"\",'Enrollment Form'!$CR258=\"No\"),\"-\",IF(COUNTA('Enrollment Form'!$CT258:$CU258)=2,\"Y\",\"N\"))","v":"-"},{"$f":"IF($B251=\"N\",\"\",IF(COUNTIF('Enrollment Form'!$DG258:$DP258,\"Other\")=COUNTA('Enrollment Form'!$DK258,'Enrollment Form'!$DH258,'Enrollment Form'!$DN258,'Enrollment Form'!$DQ258),\"Y\",\"N\"))","v":""},{"$f":"IF($B251=\"N\",\"\",IF(OR('Enrollment Form'!B258<>\"Subscriber\",'Enrollment Form'!C258=\"ROC\",COUNTIF('Enrollment Form'!AV258:AW258,\"Yes\")>=1),\"-\",IF(AND('Enrollment Form'!C258=\"Enroll\",COUNTIF('Enrollment Form'!AV258:AW258,\"No\")=2,'Enrollment Form'!AX258=\"\"),\"N\",\"Y\")))","v":""},{"$f":"IF(OR(B251=\"N\",'Enrollment Form'!B258<>\"Subscriber\",'Enrollment Form'!C258=\"ROC\",'Enrollment Form'!O258<>\"Multiple of Salary\"),\"-\",IF(COUNTA('Enrollment Form'!T258:U258)<2,\"N\",\"Y\"))","v":"-"},{"$f":"IF(B251=\"N\",\"\",IF(OR('Enrollment Form'!C258=\"ROC\",'Enrollment Form'!B258<>\"Subscriber\",'Enrollment Form'!O258=\"Waive\",'Enrollment Form'!O258=\"\"),\"-\",IF('Enrollment Form'!P258=\"\",\"N\",\"Y\")))","v":""},{"$f":"IF($B251=\"N\",\"\",IF(AND('Enrollment Form'!$C258=\"ROC\",'Enrollment Form'!$DR258<>\"\"),\"Y\",IF(AND('Enrollment Form'!$C258=\"ROC\",'Enrollment Form'!$DR258=\"\"),\"N\",IF(AND('Enrollment Form'!$C258=\"Enroll\",'Enrollment Form'!$B258=\"Subscriber\",'Enrollment Form'!$CX258=\"No\",'Enrollment Form'!$DR258=\"\"),\"N\",IF(AND('Enrollment Form'!$C258=\"Enroll\",'Enrollment Form'!$B258=\"Subscriber\",'Enrollment Form'!$CX258=\"Yes\"),\"-\",\"Y\")))))","v":""},{"$f":"IF($B251=\"N\",\"\",IF(AND('Enrollment Form'!$C258=\"ROC\",'Enrollment Form'!$DS258<>\"\"),\"Y\",IF(AND('Enrollment Form'!$C258=\"ROC\",'Enrollment Form'!$DS258=\"\"),\"N\",IF(AND('Enrollment Form'!$C258=\"Enroll\",'Enrollment Form'!$B258=\"Subscriber\",'Enrollment Form'!$CX258=\"No\",'Enrollment Form'!$DS258=\"\"),\"N\",IF(AND('Enrollment Form'!$C258=\"Enroll\",'Enrollment Form'!$B258=\"Subscriber\",'Enrollment Form'!$CX258=\"Yes\"),\"-\",\"Y\")))))","v":""},{"$f":"IF('Enrollment Form'!AH258=\"\",\"\",IF(ISERROR(SEARCH(\".\",'Enrollment Form'!AH258,SEARCH(\"@\",'Enrollment Form'!AH258))),\"N\",\"Y\"))","v":""},{"$f":"IF(OR($B251=\"N\",'Enrollment Form'!$G258=\"\"),\"\",IF('Enrollment Form'!$B258<>\"Subscriber\",\"-\",IF(COUNTIF('Enrollment Form'!$AV258:$AW258,\"Yes\")=2,\"N\",\"Y\")))","v":""},{"$f":"IF(OR('Enrollment Form'!$CJ258=\"\",'Enrollment Form'!$CJ258=\"No\"),\"-\",IF(AND('Enrollment Form'!$CJ258=\"Yes\",'Enrollment Form'!$CK258=\"\"),\"N\",\"Y\"))","v":"-"},{"$f":"IF(OR('Enrollment Form'!$CL258=\"\",'Enrollment Form'!$CL258=\"No\"),\"-\",IF(AND('Enrollment Form'!$CL258=\"Yes\",'Enrollment Form'!$CM258=\"\"),\"N\",\"Y\"))","v":"-"},{"$f":"IF(OR('Enrollment Form'!$CN258=\"\",'Enrollment Form'!$CN258=\"No\"),\"-\",IF(AND('Enrollment Form'!$CN258=\"Yes\",'Enrollment Form'!$CO258=\"\"),\"N\",\"Y\"))","v":"-"},{"$f":"IF(OR('Enrollment Form'!$CN258=\"\",'Enrollment Form'!$CN258=\"No\"),\"-\",IF(AND('Enrollment Form'!$CN258=\"Yes\",'Enrollment Form'!$CP258=\"\"),\"N\",\"Y\"))","v":"-"},{"$f":"IF('Enrollment Form'!B258<>\"Subscriber\",\"-\",IF(AND('Enrollment Form'!B258=\"Subscriber\",'Enrollment Form'!C258=\"Enroll\",'Enrollment Form'!AA258=\"\"),\"N\",\"Y\"))","v":"-"},{"$f":"IF(OR('Enrollment Form'!B258=\"Subscriber\",'Enrollment Form'!B258=\"\"),\"-\",IF('Enrollment Form'!BP258=\"\",\"N\",\"Y\"))","v":"-"},{"$f":"IF('Enrollment Form'!B258<>\"Subscriber\",\"-\",IF(AND('Enrollment Form'!B258=\"Subscriber\",'Enrollment Form'!G258=\"\"),\"N\",\"Y\"))","v":"-"},{"$f":"IF('Enrollment Form'!A258=\"\",\"\",IF('Enrollment Form'!B258=\"Subscriber\",\"-\",IF(AND('Enrollment Form'!B258<>\"Subscriber\",'Enrollment Form'!G258='Enrollment Form'!H258),\"N\",\"Y\")))","v":""},0]
[259,{"$f":"IF('Enrollment Form'!$A259<>\"\",\"Y\",\"N\")","v":"N"},{"$f":"IF(AND('Enrollment Form'!$B259=\"\",'Enrollment Form'!$C259<>\"\"),\"N\",IF($B252=\"N\",\"\",\"Y\"))","v":""},{"$f":"IF(OR($B252=\"N\",'Enrollment Form'!G259=\"\"),\"\",IF('Enrollment Form'!$B259<>\"Subscriber\",\"\",IF('Enrollment Form'!$G259='Enrollment Form'!$H259,\"Y\",\"N\")))","v":""},{"$f":"IF($B252=\"N\",\"\",IF(AND(COUNTIFS('Enrollment Form'!$H$11:$H$1000,'Enrollment Form'!$H259,'Enrollment Form'!$B$11:$B$1000,'Enrollment Form'!$B259)>1,'Enrollment Form'!$H259<>\"\"),\"N\",\"Y\"))","v":""},{"$f":"IF($B252=\"N\",\"\",IF(LEN('Enrollment Form'!$Y259)=0,\"\",IF(LEN('Enrollment Form'!$Y259)<>5,\"N\",\"Y\")))","v":""},{"$f":"IF($B252=\"N\",\"\",IF(LEN('Enrollment Form'!$AD259=0),\"\",IF(LEN('Enrollment Form'!$AD259)<>5,\"N\",\"Y\")))","v":""},{"$f":"IF($B252=\"N\",\"\",IF(LEN('Enrollment Form'!$BS259=0),\"\",IF(LEN('Enrollment Form'!$BS259)<>5,\"N\",\"Y\")))","v":""},{"$f":"IF($B252=\"N\",\"\",IF(LEN('Enrollment Form'!$AE259)=0,\"\",IF(LEN('Enrollment Form'!$AE259)<>10,\"N\",\"Y\")))","v":""},{"$f":"IF($B252=\"N\",\"\",IF(LEN('Enrollment Form'!$AF259)=0,\"\",IF(LEN('Enrollment Form'!$AF259)<>10,\"N\",\"Y\")))","v":""},{"$f":"IF('Enrollment Form'!$O259<>\"Graded\",\"-\",IF(AND('Enrollment Form'!$O259=\"Graded\",'Enrollment Form'!$AR259<>\"\"),\"Y\",\"N\"))","v":"-"},{"$f":"IF($B252=\"N\",\"\",IF(OR('Enrollment Form'!$B259<>\"Subscriber\",'Enrollment Form'!$C259=\"ROC\"),\"-\",IF(AND('Enrollment Form'!$B259=\"Subscriber\",'Enrollment Form'!$C259=\"Enroll\",'Enrollment Form'!$AJ259<>\"\"),\"Y\",\"N\")))","v":""},{"$f":"IF($B252=\"N\",\"\",IF(OR('Enrollment Form'!$B259<>\"Subscriber\",'Enrollment Form'!$C259=\"ROC\"),\"-\",IF(AND('Enrollment Form'!$B259=\"Subscriber\",'Enrollment Form'!$C259=\"Enroll\",'Enrollment Form'!$AK259<>\"\"),\"Y\",\"N\")))","v":""},{"$f":"IF($B252=\"N\",\"\",IF(OR('Enrollment Form'!$B259<>\"Subscriber\",'Enrollment Form'!$C259=\"ROC\"),\"-\",IF(AND('Enrollment Form'!$B259=\"Subscriber\",'Enrollment Form'!$C259=\"Enroll\",'Enrollment Form'!$AL259<>\"\"),\"Y\",\"N\")))","v":""},{"$f":"IF($B252=\"N\",\"\",IF(OR('Enrollment Form'!$B259<>\"Subscriber\",'Enrollment Form'!$C259=\"ROC\"),\"-\",IF(AND('Enrollment Form'!$B259=\"Subscriber\",'Enrollment Form'!$C259=\"Enroll\",'Enrollment Form'!$AP259<>\"\"),\"Y\",\"N\")))","v":""},{"$f":"IF($B252=\"N\",\"\",IF(OR('Enrollment Form'!$B259<>\"Subscriber\",'Enrollment Form'!$C259=\"ROC\"),\"-\",IF(AND('Enrollment Form'!$B259=\"Subscriber\",'Enrollment Form'!$C259=\"Enroll\",'Enrollment Form'!$AQ259<>\"\"),\"Y\",\"N\")))","v":""},{"$f":"IF($B252=\"N\",\"\",IF(OR('Enrollment Form'!$B259<>\"Subscriber\",'Enrollment Form'!$C259=\"ROC\"),\"-\",IF(AND('Enrollment Form'!$B259=\"Subscriber\",'Enrollment Form'!$C259=\"Enroll\",'Enrollment Form'!$AS259<>\"\"),\"Y\",\"N\")))","v":""},{"$f":"IF($B252=\"N\",\"\",IF($Q252=\"-\",\"-\",IF(AND($Q252=\"Y\",'Enrollment Form'!$AS259=\"No\"),\"-\",IF(AND($Q252=\"Y\",'Enrollment Form'!$AS259=\"Yes\",'Enrollment Form'!$AT259<>\"\"),\"Y\",\"N\"))))","v":""},{"$f":"IF($B252=\"N\",\"\",IF(OR('Enrollment Form'!$B259<>\"Subscriber\",'Enrollment Form'!$C259=\"ROC\"),\"-\",IF(AND('Enrollment Form'!$B259=\"Subscriber\",'Enrollment Form'!$C259=\"Enroll\",'Enrollment Form'!$CV259<>\"\"),\"Y\",\"N\")))","v":""},{"$f":"IF($B252=\"N\",\"\",IF($S252=\"-\",\"-\",IF(AND($S252=\"Y\",'Enrollment Form'!$CV259=\"No\"),\"-\",IF(AND($S252=\"Y\",'Enrollment Form'!$CV259=\"Yes\",'Enrollment Form'!$CW259<>\"\"),\"Y\",\"N\"))))","v":""},{"$f":"IF(OR('Enrollment Form'!$AY259=\"Yes\",'Enrollment Form'!$AY259=\"\"),\"-\",IF(OR(AND('Enrollment Form'!$AY259=\"No\",ISERROR(FIND(\"HMO\",VLOOKUP('Enrollment Form'!G259,'Enrollment Form'!H$11:J$1000,3,FALSE),1))=FALSE,COUNTA('Enrollment Form'!$AZ259:$BC259)=4),AND('Enrollment Form'!$AY259=\"No\",ISERROR(FIND(\"HMO\",VLOOKUP('Enrollment Form'!G259,'Enrollment Form'!H$11:J$1000,3,FALSE),1))=FALSE,COUNTA('Enrollment Form'!$BT259:$BW259)=4)),\"Y\",\"N\"))","v":"-"},{"$f":"IF($B252=\"N\",\"\",IF('Enrollment Form'!$B259=\"Subscriber\",\"-\",IF(COUNTA('Enrollment Form'!$BL259,'Enrollment Form'!$BN259)=2,\"Y\",\"N\")))","v":""},{"$f":"IF($B252=\"N\",\"\",IF(OR('Enrollment Form'!$AX259=\"\",'Enrollment Form'!$AX259=\"No\"),\"-\",IF(AND('Enrollment Form'!$AX259=\"Yes\",COUNTA('Enrollment Form'!$CR259)=1),\"Y\",\"N\")))","v":""},{"$f":"IF(OR('Enrollment Form'!$CR259=\"\",'Enrollment Form'!$CR259=\"No\"),\"-\",IF(COUNTA('Enrollment Form'!$CT259:$CU259)=2,\"Y\",\"N\"))","v":"-"},{"$f":"IF($B252=\"N\",\"\",IF(COUNTIF('Enrollment Form'!$DG259:$DP259,\"Other\")=COUNTA('Enrollment Form'!$DK259,'Enrollment Form'!$DH259,'Enrollment Form'!$DN259,'Enrollment Form'!$DQ259),\"Y\",\"N\"))","v":""},{"$f":"IF($B252=\"N\",\"\",IF(OR('Enrollment Form'!B259<>\"Subscriber\",'Enrollment Form'!C259=\"ROC\",COUNTIF('Enrollment Form'!AV259:AW259,\"Yes\")>=1),\"-\",IF(AND('Enrollment Form'!C259=\"Enroll\",COUNTIF('Enrollment Form'!AV259:AW259,\"No\")=2,'Enrollment Form'!AX259=\"\"),\"N\",\"Y\")))","v":""},{"$f":"IF(OR(B252=\"N\",'Enrollment Form'!B259<>\"Subscriber\",'Enrollment Form'!C259=\"ROC\",'Enrollment Form'!O259<>\"Multiple of Salary\"),\"-\",IF(COUNTA('Enrollment Form'!T259:U259)<2,\"N\",\"Y\"))","v":"-"},{"$f":"IF(B252=\"N\",\"\",IF(OR('Enrollment Form'!C259=\"ROC\",'Enrollment Form'!B259<>\"Subscriber\",'Enrollment Form'!O259=\"Waive\",'Enrollment Form'!O259=\"\"),\"-\",IF('Enrollment Form'!P259=\"\",\"N\",\"Y\")))","v":""},{"$f":"IF($B252=\"N\",\"\",IF(AND('Enrollment Form'!$C259=\"ROC\",'Enrollment Form'!$DR259<>\"\"),\"Y\",IF(AND('Enrollment Form'!$C259=\"ROC\",'Enrollment Form'!$DR259=\"\"),\"N\",IF(AND('Enrollment Form'!$C259=\"Enroll\",'Enrollment Form'!$B259=\"Subscriber\",'Enrollment Form'!$CX259=\"No\",'Enrollment Form'!$DR259=\"\"),\"N\",IF(AND('Enrollment Form'!$C259=\"Enroll\",'Enrollment Form'!$B259=\"Subscriber\",'Enrollment Form'!$CX259=\"Yes\"),\"-\",\"Y\")))))","v":""},{"$f":"IF($B252=\"N\",\"\",IF(AND('Enrollment Form'!$C259=\"ROC\",'Enrollment Form'!$DS259<>\"\"),\"Y\",IF(AND('Enrollment Form'!$C259=\"ROC\",'Enrollment Form'!$DS259=\"\"),\"N\",IF(AND('Enrollment Form'!$C259=\"Enroll\",'Enrollment Form'!$B259=\"Subscriber\",'Enrollment Form'!$CX259=\"No\",'Enrollment Form'!$DS259=\"\"),\"N\",IF(AND('Enrollment Form'!$C259=\"Enroll\",'Enrollment Form'!$B259=\"Subscriber\",'Enrollment Form'!$CX259=\"Yes\"),\"-\",\"Y\")))))","v":""},{"$f":"IF('Enrollment Form'!AH259=\"\",\"\",IF(ISERROR(SEARCH(\".\",'Enrollment Form'!AH259,SEARCH(\"@\",'Enrollment Form'!AH259))),\"N\",\"Y\"))","v":""},{"$f":"IF(OR($B252=\"N\",'Enrollment Form'!$G259=\"\"),\"\",IF('Enrollment Form'!$B259<>\"Subscriber\",\"-\",IF(COUNTIF('Enrollment Form'!$AV259:$AW259,\"Yes\")=2,\"N\",\"Y\")))","v":""},{"$f":"IF(OR('Enrollment Form'!$CJ259=\"\",'Enrollment Form'!$CJ259=\"No\"),\"-\",IF(AND('Enrollment Form'!$CJ259=\"Yes\",'Enrollment Form'!$CK259=\"\"),\"N\",\"Y\"))","v":"-"},{"$f":"IF(OR('Enrollment Form'!$CL259=\"\",'Enrollment Form'!$CL259=\"No\"),\"-\",IF(AND('Enrollment Form'!$CL259=\"Yes\",'Enrollment Form'!$CM259=\"\"),\"N\",\"Y\"))","v":"-"},{"$f":"IF(OR('Enrollment Form'!$CN259=\"\",'Enrollment Form'!$CN259=\"No\"),\"-\",IF(AND('Enrollment Form'!$CN259=\"Yes\",'Enrollment Form'!$CO259=\"\"),\"N\",\"Y\"))","v":"-"},{"$f":"IF(OR('Enrollment Form'!$CN259=\"\",'Enrollment Form'!$CN259=\"No\"),\"-\",IF(AND('Enrollment Form'!$CN259=\"Yes\",'Enrollment Form'!$CP259=\"\"),\"N\",\"Y\"))","v":"-"},{"$f":"IF('Enrollment Form'!B259<>\"Subscriber\",\"-\",IF(AND('Enrollment Form'!B259=\"Subscriber\",'Enrollment Form'!C259=\"Enroll\",'Enrollment Form'!AA259=\"\"),\"N\",\"Y\"))","v":"-"},{"$f":"IF(OR('Enrollment Form'!B259=\"Subscriber\",'Enrollment Form'!B259=\"\"),\"-\",IF('Enrollment Form'!BP259=\"\",\"N\",\"Y\"))","v":"-"},{"$f":"IF('Enrollment Form'!B259<>\"Subscriber\",\"-\",IF(AND('Enrollment Form'!B259=\"Subscriber\",'Enrollment Form'!G259=\"\"),\"N\",\"Y\"))","v":"-"},{"$f":"IF('Enrollment Form'!A259=\"\",\"\",IF('Enrollment Form'!B259=\"Subscriber\",\"-\",IF(AND('Enrollment Form'!B259<>\"Subscriber\",'Enrollment Form'!G259='Enrollment Form'!H259),\"N\",\"Y\")))","v":""},0]
[260,{"$f":"IF('Enrollment Form'!$A260<>\"\",\"Y\",\"N\")","v":"N"},{"$f":"IF(AND('Enrollment Form'!$B260=\"\",'Enrollment Form'!$C260<>\"\"),\"N\",IF($B253=\"N\",\"\",\"Y\"))","v":""},{"$f":"IF(OR($B253=\"N\",'Enrollment Form'!G260=\"\"),\"\",IF('Enrollment Form'!$B260<>\"Subscriber\",\"\",IF('Enrollment Form'!$G260='Enrollment Form'!$H260,\"Y\",\"N\")))","v":""},{"$f":"IF($B253=\"N\",\"\",IF(AND(COUNTIFS('Enrollment Form'!$H$11:$H$1000,'Enrollment Form'!$H260,'Enrollment Form'!$B$11:$B$1000,'Enrollment Form'!$B260)>1,'Enrollment Form'!$H260<>\"\"),\"N\",\"Y\"))","v":""},{"$f":"IF($B253=\"N\",\"\",IF(LEN('Enrollment Form'!$Y260)=0,\"\",IF(LEN('Enrollment Form'!$Y260)<>5,\"N\",\"Y\")))","v":""},{"$f":"IF($B253=\"N\",\"\",IF(LEN('Enrollment Form'!$AD260=0),\"\",IF(LEN('Enrollment Form'!$AD260)<>5,\"N\",\"Y\")))","v":""},{"$f":"IF($B253=\"N\",\"\",IF(LEN('Enrollment Form'!$BS260=0),\"\",IF(LEN('Enrollment Form'!$BS260)<>5,\"N\",\"Y\")))","v":""},{"$f":"IF($B253=\"N\",\"\",IF(LEN('Enrollment Form'!$AE260)=0,\"\",IF(LEN('Enrollment Form'!$AE260)<>10,\"N\",\"Y\")))","v":""},{"$f":"IF($B253=\"N\",\"\",IF(LEN('Enrollment Form'!$AF260)=0,\"\",IF(LEN('Enrollment Form'!$AF260)<>10,\"N\",\"Y\")))","v":""},{"$f":"IF('Enrollment Form'!$O260<>\"Graded\",\"-\",IF(AND('Enrollment Form'!$O260=\"Graded\",'Enrollment Form'!$AR260<>\"\"),\"Y\",\"N\"))","v":"-"},{"$f":"IF($B253=\"N\",\"\",IF(OR('Enrollment Form'!$B260<>\"Subscriber\",'Enrollment Form'!$C260=\"ROC\"),\"-\",IF(AND('Enrollment Form'!$B260=\"Subscriber\",'Enrollment Form'!$C260=\"Enroll\",'Enrollment Form'!$AJ260<>\"\"),\"Y\",\"N\")))","v":""},{"$f":"IF($B253=\"N\",\"\",IF(OR('Enrollment Form'!$B260<>\"Subscriber\",'Enrollment Form'!$C260=\"ROC\"),\"-\",IF(AND('Enrollment Form'!$B260=\"Subscriber\",'Enrollment Form'!$C260=\"Enroll\",'Enrollment Form'!$AK260<>\"\"),\"Y\",\"N\")))","v":""},{"$f":"IF($B253=\"N\",\"\",IF(OR('Enrollment Form'!$B260<>\"Subscriber\",'Enrollment Form'!$C260=\"ROC\"),\"-\",IF(AND('Enrollment Form'!$B260=\"Subscriber\",'Enrollment Form'!$C260=\"Enroll\",'Enrollment Form'!$AL260<>\"\"),\"Y\",\"N\")))","v":""},{"$f":"IF($B253=\"N\",\"\",IF(OR('Enrollment Form'!$B260<>\"Subscriber\",'Enrollment Form'!$C260=\"ROC\"),\"-\",IF(AND('Enrollment Form'!$B260=\"Subscriber\",'Enrollment Form'!$C260=\"Enroll\",'Enrollment Form'!$AP260<>\"\"),\"Y\",\"N\")))","v":""},{"$f":"IF($B253=\"N\",\"\",IF(OR('Enrollment Form'!$B260<>\"Subscriber\",'Enrollment Form'!$C260=\"ROC\"),\"-\",IF(AND('Enrollment Form'!$B260=\"Subscriber\",'Enrollment Form'!$C260=\"Enroll\",'Enrollment Form'!$AQ260<>\"\"),\"Y\",\"N\")))","v":""},{"$f":"IF($B253=\"N\",\"\",IF(OR('Enrollment Form'!$B260<>\"Subscriber\",'Enrollment Form'!$C260=\"ROC\"),\"-\",IF(AND('Enrollment Form'!$B260=\"Subscriber\",'Enrollment Form'!$C260=\"Enroll\",'Enrollment Form'!$AS260<>\"\"),\"Y\",\"N\")))","v":""},{"$f":"IF($B253=\"N\",\"\",IF($Q253=\"-\",\"-\",IF(AND($Q253=\"Y\",'Enrollment Form'!$AS260=\"No\"),\"-\",IF(AND($Q253=\"Y\",'Enrollment Form'!$AS260=\"Yes\",'Enrollment Form'!$AT260<>\"\"),\"Y\",\"N\"))))","v":""},{"$f":"IF($B253=\"N\",\"\",IF(OR('Enrollment Form'!$B260<>\"Subscriber\",'Enrollment Form'!$C260=\"ROC\"),\"-\",IF(AND('Enrollment Form'!$B260=\"Subscriber\",'Enrollment Form'!$C260=\"Enroll\",'Enrollment Form'!$CV260<>\"\"),\"Y\",\"N\")))","v":""},{"$f":"IF($B253=\"N\",\"\",IF($S253=\"-\",\"-\",IF(AND($S253=\"Y\",'Enrollment Form'!$CV260=\"No\"),\"-\",IF(AND($S253=\"Y\",'Enrollment Form'!$CV260=\"Yes\",'Enrollment Form'!$CW260<>\"\"),\"Y\",\"N\"))))","v":""},{"$f":"IF(OR('Enrollment Form'!$AY260=\"Yes\",'Enrollment Form'!$AY260=\"\"),\"-\",IF(OR(AND('Enrollment Form'!$AY260=\"No\",ISERROR(FIND(\"HMO\",VLOOKUP('Enrollment Form'!G260,'Enrollment Form'!H$11:J$1000,3,FALSE),1))=FALSE,COUNTA('Enrollment Form'!$AZ260:$BC260)=4),AND('Enrollment Form'!$AY260=\"No\",ISERROR(FIND(\"HMO\",VLOOKUP('Enrollment Form'!G260,'Enrollment Form'!H$11:J$1000,3,FALSE),1))=FALSE,COUNTA('Enrollment Form'!$BT260:$BW260)=4)),\"Y\",\"N\"))","v":"-"},{"$f":"IF($B253=\"N\",\"\",IF('Enrollment Form'!$B260=\"Subscriber\",\"-\",IF(COUNTA('Enrollment Form'!$BL260,'Enrollment Form'!$BN260)=2,\"Y\",\"N\")))","v":""},{"$f":"IF($B253=\"N\",\"\",IF(OR('Enrollment Form'!$AX260=\"\",'Enrollment Form'!$AX260=\"No\"),\"-\",IF(AND('Enrollment Form'!$AX260=\"Yes\",COUNTA('Enrollment Form'!$CR260)=1),\"Y\",\"N\")))","v":""},{"$f":"IF(OR('Enrollment Form'!$CR260=\"\",'Enrollment Form'!$CR260=\"No\"),\"-\",IF(COUNTA('Enrollment Form'!$CT260:$CU260)=2,\"Y\",\"N\"))","v":"-"},{"$f":"IF($B253=\"N\",\"\",IF(COUNTIF('Enrollment Form'!$DG260:$DP260,\"Other\")=COUNTA('Enrollment Form'!$DK260,'Enrollment Form'!$DH260,'Enrollment Form'!$DN260,'Enrollment Form'!$DQ260),\"Y\",\"N\"))","v":""},{"$f":"IF($B253=\"N\",\"\",IF(OR('Enrollment Form'!B260<>\"Subscriber\",'Enrollment Form'!C260=\"ROC\",COUNTIF('Enrollment Form'!AV260:AW260,\"Yes\")>=1),\"-\",IF(AND('Enrollment Form'!C260=\"Enroll\",COUNTIF('Enrollment Form'!AV260:AW260,\"No\")=2,'Enrollment Form'!AX260=\"\"),\"N\",\"Y\")))","v":""},{"$f":"IF(OR(B253=\"N\",'Enrollment Form'!B260<>\"Subscriber\",'Enrollment Form'!C260=\"ROC\",'Enrollment Form'!O260<>\"Multiple of Salary\"),\"-\",IF(COUNTA('Enrollment Form'!T260:U260)<2,\"N\",\"Y\"))","v":"-"},{"$f":"IF(B253=\"N\",\"\",IF(OR('Enrollment Form'!C260=\"ROC\",'Enrollment Form'!B260<>\"Subscriber\",'Enrollment Form'!O260=\"Waive\",'Enrollment Form'!O260=\"\"),\"-\",IF('Enrollment Form'!P260=\"\",\"N\",\"Y\")))","v":""},{"$f":"IF($B253=\"N\",\"\",IF(AND('Enrollment Form'!$C260=\"ROC\",'Enrollment Form'!$DR260<>\"\"),\"Y\",IF(AND('Enrollment Form'!$C260=\"ROC\",'Enrollment Form'!$DR260=\"\"),\"N\",IF(AND('Enrollment Form'!$C260=\"Enroll\",'Enrollment Form'!$B260=\"Subscriber\",'Enrollment Form'!$CX260=\"No\",'Enrollment Form'!$DR260=\"\"),\"N\",IF(AND('Enrollment Form'!$C260=\"Enroll\",'Enrollment Form'!$B260=\"Subscriber\",'Enrollment Form'!$CX260=\"Yes\"),\"-\",\"Y\")))))","v":""},{"$f":"IF($B253=\"N\",\"\",IF(AND('Enrollment Form'!$C260=\"ROC\",'Enrollment Form'!$DS260<>\"\"),\"Y\",IF(AND('Enrollment Form'!$C260=\"ROC\",'Enrollment Form'!$DS260=\"\"),\"N\",IF(AND('Enrollment Form'!$C260=\"Enroll\",'Enrollment Form'!$B260=\"Subscriber\",'Enrollment Form'!$CX260=\"No\",'Enrollment Form'!$DS260=\"\"),\"N\",IF(AND('Enrollment Form'!$C260=\"Enroll\",'Enrollment Form'!$B260=\"Subscriber\",'Enrollment Form'!$CX260=\"Yes\"),\"-\",\"Y\")))))","v":""},{"$f":"IF('Enrollment Form'!AH260=\"\",\"\",IF(ISERROR(SEARCH(\".\",'Enrollment Form'!AH260,SEARCH(\"@\",'Enrollment Form'!AH260))),\"N\",\"Y\"))","v":""},{"$f":"IF(OR($B253=\"N\",'Enrollment Form'!$G260=\"\"),\"\",IF('Enrollment Form'!$B260<>\"Subscriber\",\"-\",IF(COUNTIF('Enrollment Form'!$AV260:$AW260,\"Yes\")=2,\"N\",\"Y\")))","v":""},{"$f":"IF(OR('Enrollment Form'!$CJ260=\"\",'Enrollment Form'!$CJ260=\"No\"),\"-\",IF(AND('Enrollment Form'!$CJ260=\"Yes\",'Enrollment Form'!$CK260=\"\"),\"N\",\"Y\"))","v":"-"},{"$f":"IF(OR('Enrollment Form'!$CL260=\"\",'Enrollment Form'!$CL260=\"No\"),\"-\",IF(AND('Enrollment Form'!$CL260=\"Yes\",'Enrollment Form'!$CM260=\"\"),\"N\",\"Y\"))","v":"-"},{"$f":"IF(OR('Enrollment Form'!$CN260=\"\",'Enrollment Form'!$CN260=\"No\"),\"-\",IF(AND('Enrollment Form'!$CN260=\"Yes\",'Enrollment Form'!$CO260=\"\"),\"N\",\"Y\"))","v":"-"},{"$f":"IF(OR('Enrollment Form'!$CN260=\"\",'Enrollment Form'!$CN260=\"No\"),\"-\",IF(AND('Enrollment Form'!$CN260=\"Yes\",'Enrollment Form'!$CP260=\"\"),\"N\",\"Y\"))","v":"-"},{"$f":"IF('Enrollment Form'!B260<>\"Subscriber\",\"-\",IF(AND('Enrollment Form'!B260=\"Subscriber\",'Enrollment Form'!C260=\"Enroll\",'Enrollment Form'!AA260=\"\"),\"N\",\"Y\"))","v":"-"},{"$f":"IF(OR('Enrollment Form'!B260=\"Subscriber\",'Enrollment Form'!B260=\"\"),\"-\",IF('Enrollment Form'!BP260=\"\",\"N\",\"Y\"))","v":"-"},{"$f":"IF('Enrollment Form'!B260<>\"Subscriber\",\"-\",IF(AND('Enrollment Form'!B260=\"Subscriber\",'Enrollment Form'!G260=\"\"),\"N\",\"Y\"))","v":"-"},{"$f":"IF('Enrollment Form'!A260=\"\",\"\",IF('Enrollment Form'!B260=\"Subscriber\",\"-\",IF(AND('Enrollment Form'!B260<>\"Subscriber\",'Enrollment Form'!G260='Enrollment Form'!H260),\"N\",\"Y\")))","v":""},0]
[261,{"$f":"IF('Enrollment Form'!$A261<>\"\",\"Y\",\"N\")","v":"N"},{"$f":"IF(AND('Enrollment Form'!$B261=\"\",'Enrollment Form'!$C261<>\"\"),\"N\",IF($B254=\"N\",\"\",\"Y\"))","v":""},{"$f":"IF(OR($B254=\"N\",'Enrollment Form'!G261=\"\"),\"\",IF('Enrollment Form'!$B261<>\"Subscriber\",\"\",IF('Enrollment Form'!$G261='Enrollment Form'!$H261,\"Y\",\"N\")))","v":""},{"$f":"IF($B254=\"N\",\"\",IF(AND(COUNTIFS('Enrollment Form'!$H$11:$H$1000,'Enrollment Form'!$H261,'Enrollment Form'!$B$11:$B$1000,'Enrollment Form'!$B261)>1,'Enrollment Form'!$H261<>\"\"),\"N\",\"Y\"))","v":""},{"$f":"IF($B254=\"N\",\"\",IF(LEN('Enrollment Form'!$Y261)=0,\"\",IF(LEN('Enrollment Form'!$Y261)<>5,\"N\",\"Y\")))","v":""},{"$f":"IF($B254=\"N\",\"\",IF(LEN('Enrollment Form'!$AD261=0),\"\",IF(LEN('Enrollment Form'!$AD261)<>5,\"N\",\"Y\")))","v":""},{"$f":"IF($B254=\"N\",\"\",IF(LEN('Enrollment Form'!$BS261=0),\"\",IF(LEN('Enrollment Form'!$BS261)<>5,\"N\",\"Y\")))","v":""},{"$f":"IF($B254=\"N\",\"\",IF(LEN('Enrollment Form'!$AE261)=0,\"\",IF(LEN('Enrollment Form'!$AE261)<>10,\"N\",\"Y\")))","v":""},{"$f":"IF($B254=\"N\",\"\",IF(LEN('Enrollment Form'!$AF261)=0,\"\",IF(LEN('Enrollment Form'!$AF261)<>10,\"N\",\"Y\")))","v":""},{"$f":"IF('Enrollment Form'!$O261<>\"Graded\",\"-\",IF(AND('Enrollment Form'!$O261=\"Graded\",'Enrollment Form'!$AR261<>\"\"),\"Y\",\"N\"))","v":"-"},{"$f":"IF($B254=\"N\",\"\",IF(OR('Enrollment Form'!$B261<>\"Subscriber\",'Enrollment Form'!$C261=\"ROC\"),\"-\",IF(AND('Enrollment Form'!$B261=\"Subscriber\",'Enrollment Form'!$C261=\"Enroll\",'Enrollment Form'!$AJ261<>\"\"),\"Y\",\"N\")))","v":""},{"$f":"IF($B254=\"N\",\"\",IF(OR('Enrollment Form'!$B261<>\"Subscriber\",'Enrollment Form'!$C261=\"ROC\"),\"-\",IF(AND('Enrollment Form'!$B261=\"Subscriber\",'Enrollment Form'!$C261=\"Enroll\",'Enrollment Form'!$AK261<>\"\"),\"Y\",\"N\")))","v":""},{"$f":"IF($B254=\"N\",\"\",IF(OR('Enrollment Form'!$B261<>\"Subscriber\",'Enrollment Form'!$C261=\"ROC\"),\"-\",IF(AND('Enrollment Form'!$B261=\"Subscriber\",'Enrollment Form'!$C261=\"Enroll\",'Enrollment Form'!$AL261<>\"\"),\"Y\",\"N\")))","v":""},{"$f":"IF($B254=\"N\",\"\",IF(OR('Enrollment Form'!$B261<>\"Subscriber\",'Enrollment Form'!$C261=\"ROC\"),\"-\",IF(AND('Enrollment Form'!$B261=\"Subscriber\",'Enrollment Form'!$C261=\"Enroll\",'Enrollment Form'!$AP261<>\"\"),\"Y\",\"N\")))","v":""},{"$f":"IF($B254=\"N\",\"\",IF(OR('Enrollment Form'!$B261<>\"Subscriber\",'Enrollment Form'!$C261=\"ROC\"),\"-\",IF(AND('Enrollment Form'!$B261=\"Subscriber\",'Enrollment Form'!$C261=\"Enroll\",'Enrollment Form'!$AQ261<>\"\"),\"Y\",\"N\")))","v":""},{"$f":"IF($B254=\"N\",\"\",IF(OR('Enrollment Form'!$B261<>\"Subscriber\",'Enrollment Form'!$C261=\"ROC\"),\"-\",IF(AND('Enrollment Form'!$B261=\"Subscriber\",'Enrollment Form'!$C261=\"Enroll\",'Enrollment Form'!$AS261<>\"\"),\"Y\",\"N\")))","v":""},{"$f":"IF($B254=\"N\",\"\",IF($Q254=\"-\",\"-\",IF(AND($Q254=\"Y\",'Enrollment Form'!$AS261=\"No\"),\"-\",IF(AND($Q254=\"Y\",'Enrollment Form'!$AS261=\"Yes\",'Enrollment Form'!$AT261<>\"\"),\"Y\",\"N\"))))","v":""},{"$f":"IF($B254=\"N\",\"\",IF(OR('Enrollment Form'!$B261<>\"Subscriber\",'Enrollment Form'!$C261=\"ROC\"),\"-\",IF(AND('Enrollment Form'!$B261=\"Subscriber\",'Enrollment Form'!$C261=\"Enroll\",'Enrollment Form'!$CV261<>\"\"),\"Y\",\"N\")))","v":""},{"$f":"IF($B254=\"N\",\"\",IF($S254=\"-\",\"-\",IF(AND($S254=\"Y\",'Enrollment Form'!$CV261=\"No\"),\"-\",IF(AND($S254=\"Y\",'Enrollment Form'!$CV261=\"Yes\",'Enrollment Form'!$CW261<>\"\"),\"Y\",\"N\"))))","v":""},{"$f":"IF(OR('Enrollment Form'!$AY261=\"Yes\",'Enrollment Form'!$AY261=\"\"),\"-\",IF(OR(AND('Enrollment Form'!$AY261=\"No\",ISERROR(FIND(\"HMO\",VLOOKUP('Enrollment Form'!G261,'Enrollment Form'!H$11:J$1000,3,FALSE),1))=FALSE,COUNTA('Enrollment Form'!$AZ261:$BC261)=4),AND('Enrollment Form'!$AY261=\"No\",ISERROR(FIND(\"HMO\",VLOOKUP('Enrollment Form'!G261,'Enrollment Form'!H$11:J$1000,3,FALSE),1))=FALSE,COUNTA('Enrollment Form'!$BT261:$BW261)=4)),\"Y\",\"N\"))","v":"-"},{"$f":"IF($B254=\"N\",\"\",IF('Enrollment Form'!$B261=\"Subscriber\",\"-\",IF(COUNTA('Enrollment Form'!$BL261,'Enrollment Form'!$BN261)=2,\"Y\",\"N\")))","v":""},{"$f":"IF($B254=\"N\",\"\",IF(OR('Enrollment Form'!$AX261=\"\",'Enrollment Form'!$AX261=\"No\"),\"-\",IF(AND('Enrollment Form'!$AX261=\"Yes\",COUNTA('Enrollment Form'!$CR261)=1),\"Y\",\"N\")))","v":""},{"$f":"IF(OR('Enrollment Form'!$CR261=\"\",'Enrollment Form'!$CR261=\"No\"),\"-\",IF(COUNTA('Enrollment Form'!$CT261:$CU261)=2,\"Y\",\"N\"))","v":"-"},{"$f":"IF($B254=\"N\",\"\",IF(COUNTIF('Enrollment Form'!$DG261:$DP261,\"Other\")=COUNTA('Enrollment Form'!$DK261,'Enrollment Form'!$DH261,'Enrollment Form'!$DN261,'Enrollment Form'!$DQ261),\"Y\",\"N\"))","v":""},{"$f":"IF($B254=\"N\",\"\",IF(OR('Enrollment Form'!B261<>\"Subscriber\",'Enrollment Form'!C261=\"ROC\",COUNTIF('Enrollment Form'!AV261:AW261,\"Yes\")>=1),\"-\",IF(AND('Enrollment Form'!C261=\"Enroll\",COUNTIF('Enrollment Form'!AV261:AW261,\"No\")=2,'Enrollment Form'!AX261=\"\"),\"N\",\"Y\")))","v":""},{"$f":"IF(OR(B254=\"N\",'Enrollment Form'!B261<>\"Subscriber\",'Enrollment Form'!C261=\"ROC\",'Enrollment Form'!O261<>\"Multiple of Salary\"),\"-\",IF(COUNTA('Enrollment Form'!T261:U261)<2,\"N\",\"Y\"))","v":"-"},{"$f":"IF(B254=\"N\",\"\",IF(OR('Enrollment Form'!C261=\"ROC\",'Enrollment Form'!B261<>\"Subscriber\",'Enrollment Form'!O261=\"Waive\",'Enrollment Form'!O261=\"\"),\"-\",IF('Enrollment Form'!P261=\"\",\"N\",\"Y\")))","v":""},{"$f":"IF($B254=\"N\",\"\",IF(AND('Enrollment Form'!$C261=\"ROC\",'Enrollment Form'!$DR261<>\"\"),\"Y\",IF(AND('Enrollment Form'!$C261=\"ROC\",'Enrollment Form'!$DR261=\"\"),\"N\",IF(AND('Enrollment Form'!$C261=\"Enroll\",'Enrollment Form'!$B261=\"Subscriber\",'Enrollment Form'!$CX261=\"No\",'Enrollment Form'!$DR261=\"\"),\"N\",IF(AND('Enrollment Form'!$C261=\"Enroll\",'Enrollment Form'!$B261=\"Subscriber\",'Enrollment Form'!$CX261=\"Yes\"),\"-\",\"Y\")))))","v":""},{"$f":"IF($B254=\"N\",\"\",IF(AND('Enrollment Form'!$C261=\"ROC\",'Enrollment Form'!$DS261<>\"\"),\"Y\",IF(AND('Enrollment Form'!$C261=\"ROC\",'Enrollment Form'!$DS261=\"\"),\"N\",IF(AND('Enrollment Form'!$C261=\"Enroll\",'Enrollment Form'!$B261=\"Subscriber\",'Enrollment Form'!$CX261=\"No\",'Enrollment Form'!$DS261=\"\"),\"N\",IF(AND('Enrollment Form'!$C261=\"Enroll\",'Enrollment Form'!$B261=\"Subscriber\",'Enrollment Form'!$CX261=\"Yes\"),\"-\",\"Y\")))))","v":""},{"$f":"IF('Enrollment Form'!AH261=\"\",\"\",IF(ISERROR(SEARCH(\".\",'Enrollment Form'!AH261,SEARCH(\"@\",'Enrollment Form'!AH261))),\"N\",\"Y\"))","v":""},{"$f":"IF(OR($B254=\"N\",'Enrollment Form'!$G261=\"\"),\"\",IF('Enrollment Form'!$B261<>\"Subscriber\",\"-\",IF(COUNTIF('Enrollment Form'!$AV261:$AW261,\"Yes\")=2,\"N\",\"Y\")))","v":""},{"$f":"IF(OR('Enrollment Form'!$CJ261=\"\",'Enrollment Form'!$CJ261=\"No\"),\"-\",IF(AND('Enrollment Form'!$CJ261=\"Yes\",'Enrollment Form'!$CK261=\"\"),\"N\",\"Y\"))","v":"-"},{"$f":"IF(OR('Enrollment Form'!$CL261=\"\",'Enrollment Form'!$CL261=\"No\"),\"-\",IF(AND('Enrollment Form'!$CL261=\"Yes\",'Enrollment Form'!$CM261=\"\"),\"N\",\"Y\"))","v":"-"},{"$f":"IF(OR('Enrollment Form'!$CN261=\"\",'Enrollment Form'!$CN261=\"No\"),\"-\",IF(AND('Enrollment Form'!$CN261=\"Yes\",'Enrollment Form'!$CO261=\"\"),\"N\",\"Y\"))","v":"-"},{"$f":"IF(OR('Enrollment Form'!$CN261=\"\",'Enrollment Form'!$CN261=\"No\"),\"-\",IF(AND('Enrollment Form'!$CN261=\"Yes\",'Enrollment Form'!$CP261=\"\"),\"N\",\"Y\"))","v":"-"},{"$f":"IF('Enrollment Form'!B261<>\"Subscriber\",\"-\",IF(AND('Enrollment Form'!B261=\"Subscriber\",'Enrollment Form'!C261=\"Enroll\",'Enrollment Form'!AA261=\"\"),\"N\",\"Y\"))","v":"-"},{"$f":"IF(OR('Enrollment Form'!B261=\"Subscriber\",'Enrollment Form'!B261=\"\"),\"-\",IF('Enrollment Form'!BP261=\"\",\"N\",\"Y\"))","v":"-"},{"$f":"IF('Enrollment Form'!B261<>\"Subscriber\",\"-\",IF(AND('Enrollment Form'!B261=\"Subscriber\",'Enrollment Form'!G261=\"\"),\"N\",\"Y\"))","v":"-"},{"$f":"IF('Enrollment Form'!A261=\"\",\"\",IF('Enrollment Form'!B261=\"Subscriber\",\"-\",IF(AND('Enrollment Form'!B261<>\"Subscriber\",'Enrollment Form'!G261='Enrollment Form'!H261),\"N\",\"Y\")))","v":""},0]
[262,{"$f":"IF('Enrollment Form'!$A262<>\"\",\"Y\",\"N\")","v":"N"},{"$f":"IF(AND('Enrollment Form'!$B262=\"\",'Enrollment Form'!$C262<>\"\"),\"N\",IF($B255=\"N\",\"\",\"Y\"))","v":""},{"$f":"IF(OR($B255=\"N\",'Enrollment Form'!G262=\"\"),\"\",IF('Enrollment Form'!$B262<>\"Subscriber\",\"\",IF('Enrollment Form'!$G262='Enrollment Form'!$H262,\"Y\",\"N\")))","v":""},{"$f":"IF($B255=\"N\",\"\",IF(AND(COUNTIFS('Enrollment Form'!$H$11:$H$1000,'Enrollment Form'!$H262,'Enrollment Form'!$B$11:$B$1000,'Enrollment Form'!$B262)>1,'Enrollment Form'!$H262<>\"\"),\"N\",\"Y\"))","v":""},{"$f":"IF($B255=\"N\",\"\",IF(LEN('Enrollment Form'!$Y262)=0,\"\",IF(LEN('Enrollment Form'!$Y262)<>5,\"N\",\"Y\")))","v":""},{"$f":"IF($B255=\"N\",\"\",IF(LEN('Enrollment Form'!$AD262=0),\"\",IF(LEN('Enrollment Form'!$AD262)<>5,\"N\",\"Y\")))","v":""},{"$f":"IF($B255=\"N\",\"\",IF(LEN('Enrollment Form'!$BS262=0),\"\",IF(LEN('Enrollment Form'!$BS262)<>5,\"N\",\"Y\")))","v":""},{"$f":"IF($B255=\"N\",\"\",IF(LEN('Enrollment Form'!$AE262)=0,\"\",IF(LEN('Enrollment Form'!$AE262)<>10,\"N\",\"Y\")))","v":""},{"$f":"IF($B255=\"N\",\"\",IF(LEN('Enrollment Form'!$AF262)=0,\"\",IF(LEN('Enrollment Form'!$AF262)<>10,\"N\",\"Y\")))","v":""},{"$f":"IF('Enrollment Form'!$O262<>\"Graded\",\"-\",IF(AND('Enrollment Form'!$O262=\"Graded\",'Enrollment Form'!$AR262<>\"\"),\"Y\",\"N\"))","v":"-"},{"$f":"IF($B255=\"N\",\"\",IF(OR('Enrollment Form'!$B262<>\"Subscriber\",'Enrollment Form'!$C262=\"ROC\"),\"-\",IF(AND('Enrollment Form'!$B262=\"Subscriber\",'Enrollment Form'!$C262=\"Enroll\",'Enrollment Form'!$AJ262<>\"\"),\"Y\",\"N\")))","v":""},{"$f":"IF($B255=\"N\",\"\",IF(OR('Enrollment Form'!$B262<>\"Subscriber\",'Enrollment Form'!$C262=\"ROC\"),\"-\",IF(AND('Enrollment Form'!$B262=\"Subscriber\",'Enrollment Form'!$C262=\"Enroll\",'Enrollment Form'!$AK262<>\"\"),\"Y\",\"N\")))","v":""},{"$f":"IF($B255=\"N\",\"\",IF(OR('Enrollment Form'!$B262<>\"Subscriber\",'Enrollment Form'!$C262=\"ROC\"),\"-\",IF(AND('Enrollment Form'!$B262=\"Subscriber\",'Enrollment Form'!$C262=\"Enroll\",'Enrollment Form'!$AL262<>\"\"),\"Y\",\"N\")))","v":""},{"$f":"IF($B255=\"N\",\"\",IF(OR('Enrollment Form'!$B262<>\"Subscriber\",'Enrollment Form'!$C262=\"ROC\"),\"-\",IF(AND('Enrollment Form'!$B262=\"Subscriber\",'Enrollment Form'!$C262=\"Enroll\",'Enrollment Form'!$AP262<>\"\"),\"Y\",\"N\")))","v":""},{"$f":"IF($B255=\"N\",\"\",IF(OR('Enrollment Form'!$B262<>\"Subscriber\",'Enrollment Form'!$C262=\"ROC\"),\"-\",IF(AND('Enrollment Form'!$B262=\"Subscriber\",'Enrollment Form'!$C262=\"Enroll\",'Enrollment Form'!$AQ262<>\"\"),\"Y\",\"N\")))","v":""},{"$f":"IF($B255=\"N\",\"\",IF(OR('Enrollment Form'!$B262<>\"Subscriber\",'Enrollment Form'!$C262=\"ROC\"),\"-\",IF(AND('Enrollment Form'!$B262=\"Subscriber\",'Enrollment Form'!$C262=\"Enroll\",'Enrollment Form'!$AS262<>\"\"),\"Y\",\"N\")))","v":""},{"$f":"IF($B255=\"N\",\"\",IF($Q255=\"-\",\"-\",IF(AND($Q255=\"Y\",'Enrollment Form'!$AS262=\"No\"),\"-\",IF(AND($Q255=\"Y\",'Enrollment Form'!$AS262=\"Yes\",'Enrollment Form'!$AT262<>\"\"),\"Y\",\"N\"))))","v":""},{"$f":"IF($B255=\"N\",\"\",IF(OR('Enrollment Form'!$B262<>\"Subscriber\",'Enrollment Form'!$C262=\"ROC\"),\"-\",IF(AND('Enrollment Form'!$B262=\"Subscriber\",'Enrollment Form'!$C262=\"Enroll\",'Enrollment Form'!$CV262<>\"\"),\"Y\",\"N\")))","v":""},{"$f":"IF($B255=\"N\",\"\",IF($S255=\"-\",\"-\",IF(AND($S255=\"Y\",'Enrollment Form'!$CV262=\"No\"),\"-\",IF(AND($S255=\"Y\",'Enrollment Form'!$CV262=\"Yes\",'Enrollment Form'!$CW262<>\"\"),\"Y\",\"N\"))))","v":""},{"$f":"IF(OR('Enrollment Form'!$AY262=\"Yes\",'Enrollment Form'!$AY262=\"\"),\"-\",IF(OR(AND('Enrollment Form'!$AY262=\"No\",ISERROR(FIND(\"HMO\",VLOOKUP('Enrollment Form'!G262,'Enrollment Form'!H$11:J$1000,3,FALSE),1))=FALSE,COUNTA('Enrollment Form'!$AZ262:$BC262)=4),AND('Enrollment Form'!$AY262=\"No\",ISERROR(FIND(\"HMO\",VLOOKUP('Enrollment Form'!G262,'Enrollment Form'!H$11:J$1000,3,FALSE),1))=FALSE,COUNTA('Enrollment Form'!$BT262:$BW262)=4)),\"Y\",\"N\"))","v":"-"},{"$f":"IF($B255=\"N\",\"\",IF('Enrollment Form'!$B262=\"Subscriber\",\"-\",IF(COUNTA('Enrollment Form'!$BL262,'Enrollment Form'!$BN262)=2,\"Y\",\"N\")))","v":""},{"$f":"IF($B255=\"N\",\"\",IF(OR('Enrollment Form'!$AX262=\"\",'Enrollment Form'!$AX262=\"No\"),\"-\",IF(AND('Enrollment Form'!$AX262=\"Yes\",COUNTA('Enrollment Form'!$CR262)=1),\"Y\",\"N\")))","v":""},{"$f":"IF(OR('Enrollment Form'!$CR262=\"\",'Enrollment Form'!$CR262=\"No\"),\"-\",IF(COUNTA('Enrollment Form'!$CT262:$CU262)=2,\"Y\",\"N\"))","v":"-"},{"$f":"IF($B255=\"N\",\"\",IF(COUNTIF('Enrollment Form'!$DG262:$DP262,\"Other\")=COUNTA('Enrollment Form'!$DK262,'Enrollment Form'!$DH262,'Enrollment Form'!$DN262,'Enrollment Form'!$DQ262),\"Y\",\"N\"))","v":""},{"$f":"IF($B255=\"N\",\"\",IF(OR('Enrollment Form'!B262<>\"Subscriber\",'Enrollment Form'!C262=\"ROC\",COUNTIF('Enrollment Form'!AV262:AW262,\"Yes\")>=1),\"-\",IF(AND('Enrollment Form'!C262=\"Enroll\",COUNTIF('Enrollment Form'!AV262:AW262,\"No\")=2,'Enrollment Form'!AX262=\"\"),\"N\",\"Y\")))","v":""},{"$f":"IF(OR(B255=\"N\",'Enrollment Form'!B262<>\"Subscriber\",'Enrollment Form'!C262=\"ROC\",'Enrollment Form'!O262<>\"Multiple of Salary\"),\"-\",IF(COUNTA('Enrollment Form'!T262:U262)<2,\"N\",\"Y\"))","v":"-"},{"$f":"IF(B255=\"N\",\"\",IF(OR('Enrollment Form'!C262=\"ROC\",'Enrollment Form'!B262<>\"Subscriber\",'Enrollment Form'!O262=\"Waive\",'Enrollment Form'!O262=\"\"),\"-\",IF('Enrollment Form'!P262=\"\",\"N\",\"Y\")))","v":""},{"$f":"IF($B255=\"N\",\"\",IF(AND('Enrollment Form'!$C262=\"ROC\",'Enrollment Form'!$DR262<>\"\"),\"Y\",IF(AND('Enrollment Form'!$C262=\"ROC\",'Enrollment Form'!$DR262=\"\"),\"N\",IF(AND('Enrollment Form'!$C262=\"Enroll\",'Enrollment Form'!$B262=\"Subscriber\",'Enrollment Form'!$CX262=\"No\",'Enrollment Form'!$DR262=\"\"),\"N\",IF(AND('Enrollment Form'!$C262=\"Enroll\",'Enrollment Form'!$B262=\"Subscriber\",'Enrollment Form'!$CX262=\"Yes\"),\"-\",\"Y\")))))","v":""},{"$f":"IF($B255=\"N\",\"\",IF(AND('Enrollment Form'!$C262=\"ROC\",'Enrollment Form'!$DS262<>\"\"),\"Y\",IF(AND('Enrollment Form'!$C262=\"ROC\",'Enrollment Form'!$DS262=\"\"),\"N\",IF(AND('Enrollment Form'!$C262=\"Enroll\",'Enrollment Form'!$B262=\"Subscriber\",'Enrollment Form'!$CX262=\"No\",'Enrollment Form'!$DS262=\"\"),\"N\",IF(AND('Enrollment Form'!$C262=\"Enroll\",'Enrollment Form'!$B262=\"Subscriber\",'Enrollment Form'!$CX262=\"Yes\"),\"-\",\"Y\")))))","v":""},{"$f":"IF('Enrollment Form'!AH262=\"\",\"\",IF(ISERROR(SEARCH(\".\",'Enrollment Form'!AH262,SEARCH(\"@\",'Enrollment Form'!AH262))),\"N\",\"Y\"))","v":""},{"$f":"IF(OR($B255=\"N\",'Enrollment Form'!$G262=\"\"),\"\",IF('Enrollment Form'!$B262<>\"Subscriber\",\"-\",IF(COUNTIF('Enrollment Form'!$AV262:$AW262,\"Yes\")=2,\"N\",\"Y\")))","v":""},{"$f":"IF(OR('Enrollment Form'!$CJ262=\"\",'Enrollment Form'!$CJ262=\"No\"),\"-\",IF(AND('Enrollment Form'!$CJ262=\"Yes\",'Enrollment Form'!$CK262=\"\"),\"N\",\"Y\"))","v":"-"},{"$f":"IF(OR('Enrollment Form'!$CL262=\"\",'Enrollment Form'!$CL262=\"No\"),\"-\",IF(AND('Enrollment Form'!$CL262=\"Yes\",'Enrollment Form'!$CM262=\"\"),\"N\",\"Y\"))","v":"-"},{"$f":"IF(OR('Enrollment Form'!$CN262=\"\",'Enrollment Form'!$CN262=\"No\"),\"-\",IF(AND('Enrollment Form'!$CN262=\"Yes\",'Enrollment Form'!$CO262=\"\"),\"N\",\"Y\"))","v":"-"},{"$f":"IF(OR('Enrollment Form'!$CN262=\"\",'Enrollment Form'!$CN262=\"No\"),\"-\",IF(AND('Enrollment Form'!$CN262=\"Yes\",'Enrollment Form'!$CP262=\"\"),\"N\",\"Y\"))","v":"-"},{"$f":"IF('Enrollment Form'!B262<>\"Subscriber\",\"-\",IF(AND('Enrollment Form'!B262=\"Subscriber\",'Enrollment Form'!C262=\"Enroll\",'Enrollment Form'!AA262=\"\"),\"N\",\"Y\"))","v":"-"},{"$f":"IF(OR('Enrollment Form'!B262=\"Subscriber\",'Enrollment Form'!B262=\"\"),\"-\",IF('Enrollment Form'!BP262=\"\",\"N\",\"Y\"))","v":"-"},{"$f":"IF('Enrollment Form'!B262<>\"Subscriber\",\"-\",IF(AND('Enrollment Form'!B262=\"Subscriber\",'Enrollment Form'!G262=\"\"),\"N\",\"Y\"))","v":"-"},{"$f":"IF('Enrollment Form'!A262=\"\",\"\",IF('Enrollment Form'!B262=\"Subscriber\",\"-\",IF(AND('Enrollment Form'!B262<>\"Subscriber\",'Enrollment Form'!G262='Enrollment Form'!H262),\"N\",\"Y\")))","v":""},0]
[263,{"$f":"IF('Enrollment Form'!$A263<>\"\",\"Y\",\"N\")","v":"N"},{"$f":"IF(AND('Enrollment Form'!$B263=\"\",'Enrollment Form'!$C263<>\"\"),\"N\",IF($B256=\"N\",\"\",\"Y\"))","v":""},{"$f":"IF(OR($B256=\"N\",'Enrollment Form'!G263=\"\"),\"\",IF('Enrollment Form'!$B263<>\"Subscriber\",\"\",IF('Enrollment Form'!$G263='Enrollment Form'!$H263,\"Y\",\"N\")))","v":""},{"$f":"IF($B256=\"N\",\"\",IF(AND(COUNTIFS('Enrollment Form'!$H$11:$H$1000,'Enrollment Form'!$H263,'Enrollment Form'!$B$11:$B$1000,'Enrollment Form'!$B263)>1,'Enrollment Form'!$H263<>\"\"),\"N\",\"Y\"))","v":""},{"$f":"IF($B256=\"N\",\"\",IF(LEN('Enrollment Form'!$Y263)=0,\"\",IF(LEN('Enrollment Form'!$Y263)<>5,\"N\",\"Y\")))","v":""},{"$f":"IF($B256=\"N\",\"\",IF(LEN('Enrollment Form'!$AD263=0),\"\",IF(LEN('Enrollment Form'!$AD263)<>5,\"N\",\"Y\")))","v":""},{"$f":"IF($B256=\"N\",\"\",IF(LEN('Enrollment Form'!$BS263=0),\"\",IF(LEN('Enrollment Form'!$BS263)<>5,\"N\",\"Y\")))","v":""},{"$f":"IF($B256=\"N\",\"\",IF(LEN('Enrollment Form'!$AE263)=0,\"\",IF(LEN('Enrollment Form'!$AE263)<>10,\"N\",\"Y\")))","v":""},{"$f":"IF($B256=\"N\",\"\",IF(LEN('Enrollment Form'!$AF263)=0,\"\",IF(LEN('Enrollment Form'!$AF263)<>10,\"N\",\"Y\")))","v":""},{"$f":"IF('Enrollment Form'!$O263<>\"Graded\",\"-\",IF(AND('Enrollment Form'!$O263=\"Graded\",'Enrollment Form'!$AR263<>\"\"),\"Y\",\"N\"))","v":"-"},{"$f":"IF($B256=\"N\",\"\",IF(OR('Enrollment Form'!$B263<>\"Subscriber\",'Enrollment Form'!$C263=\"ROC\"),\"-\",IF(AND('Enrollment Form'!$B263=\"Subscriber\",'Enrollment Form'!$C263=\"Enroll\",'Enrollment Form'!$AJ263<>\"\"),\"Y\",\"N\")))","v":""},{"$f":"IF($B256=\"N\",\"\",IF(OR('Enrollment Form'!$B263<>\"Subscriber\",'Enrollment Form'!$C263=\"ROC\"),\"-\",IF(AND('Enrollment Form'!$B263=\"Subscriber\",'Enrollment Form'!$C263=\"Enroll\",'Enrollment Form'!$AK263<>\"\"),\"Y\",\"N\")))","v":""},{"$f":"IF($B256=\"N\",\"\",IF(OR('Enrollment Form'!$B263<>\"Subscriber\",'Enrollment Form'!$C263=\"ROC\"),\"-\",IF(AND('Enrollment Form'!$B263=\"Subscriber\",'Enrollment Form'!$C263=\"Enroll\",'Enrollment Form'!$AL263<>\"\"),\"Y\",\"N\")))","v":""},{"$f":"IF($B256=\"N\",\"\",IF(OR('Enrollment Form'!$B263<>\"Subscriber\",'Enrollment Form'!$C263=\"ROC\"),\"-\",IF(AND('Enrollment Form'!$B263=\"Subscriber\",'Enrollment Form'!$C263=\"Enroll\",'Enrollment Form'!$AP263<>\"\"),\"Y\",\"N\")))","v":""},{"$f":"IF($B256=\"N\",\"\",IF(OR('Enrollment Form'!$B263<>\"Subscriber\",'Enrollment Form'!$C263=\"ROC\"),\"-\",IF(AND('Enrollment Form'!$B263=\"Subscriber\",'Enrollment Form'!$C263=\"Enroll\",'Enrollment Form'!$AQ263<>\"\"),\"Y\",\"N\")))","v":""},{"$f":"IF($B256=\"N\",\"\",IF(OR('Enrollment Form'!$B263<>\"Subscriber\",'Enrollment Form'!$C263=\"ROC\"),\"-\",IF(AND('Enrollment Form'!$B263=\"Subscriber\",'Enrollment Form'!$C263=\"Enroll\",'Enrollment Form'!$AS263<>\"\"),\"Y\",\"N\")))","v":""},{"$f":"IF($B256=\"N\",\"\",IF($Q256=\"-\",\"-\",IF(AND($Q256=\"Y\",'Enrollment Form'!$AS263=\"No\"),\"-\",IF(AND($Q256=\"Y\",'Enrollment Form'!$AS263=\"Yes\",'Enrollment Form'!$AT263<>\"\"),\"Y\",\"N\"))))","v":""},{"$f":"IF($B256=\"N\",\"\",IF(OR('Enrollment Form'!$B263<>\"Subscriber\",'Enrollment Form'!$C263=\"ROC\"),\"-\",IF(AND('Enrollment Form'!$B263=\"Subscriber\",'Enrollment Form'!$C263=\"Enroll\",'Enrollment Form'!$CV263<>\"\"),\"Y\",\"N\")))","v":""},{"$f":"IF($B256=\"N\",\"\",IF($S256=\"-\",\"-\",IF(AND($S256=\"Y\",'Enrollment Form'!$CV263=\"No\"),\"-\",IF(AND($S256=\"Y\",'Enrollment Form'!$CV263=\"Yes\",'Enrollment Form'!$CW263<>\"\"),\"Y\",\"N\"))))","v":""},{"$f":"IF(OR('Enrollment Form'!$AY263=\"Yes\",'Enrollment Form'!$AY263=\"\"),\"-\",IF(OR(AND('Enrollment Form'!$AY263=\"No\",ISERROR(FIND(\"HMO\",VLOOKUP('Enrollment Form'!G263,'Enrollment Form'!H$11:J$1000,3,FALSE),1))=FALSE,COUNTA('Enrollment Form'!$AZ263:$BC263)=4),AND('Enrollment Form'!$AY263=\"No\",ISERROR(FIND(\"HMO\",VLOOKUP('Enrollment Form'!G263,'Enrollment Form'!H$11:J$1000,3,FALSE),1))=FALSE,COUNTA('Enrollment Form'!$BT263:$BW263)=4)),\"Y\",\"N\"))","v":"-"},{"$f":"IF($B256=\"N\",\"\",IF('Enrollment Form'!$B263=\"Subscriber\",\"-\",IF(COUNTA('Enrollment Form'!$BL263,'Enrollment Form'!$BN263)=2,\"Y\",\"N\")))","v":""},{"$f":"IF($B256=\"N\",\"\",IF(OR('Enrollment Form'!$AX263=\"\",'Enrollment Form'!$AX263=\"No\"),\"-\",IF(AND('Enrollment Form'!$AX263=\"Yes\",COUNTA('Enrollment Form'!$CR263)=1),\"Y\",\"N\")))","v":""},{"$f":"IF(OR('Enrollment Form'!$CR263=\"\",'Enrollment Form'!$CR263=\"No\"),\"-\",IF(COUNTA('Enrollment Form'!$CT263:$CU263)=2,\"Y\",\"N\"))","v":"-"},{"$f":"IF($B256=\"N\",\"\",IF(COUNTIF('Enrollment Form'!$DG263:$DP263,\"Other\")=COUNTA('Enrollment Form'!$DK263,'Enrollment Form'!$DH263,'Enrollment Form'!$DN263,'Enrollment Form'!$DQ263),\"Y\",\"N\"))","v":""},{"$f":"IF($B256=\"N\",\"\",IF(OR('Enrollment Form'!B263<>\"Subscriber\",'Enrollment Form'!C263=\"ROC\",COUNTIF('Enrollment Form'!AV263:AW263,\"Yes\")>=1),\"-\",IF(AND('Enrollment Form'!C263=\"Enroll\",COUNTIF('Enrollment Form'!AV263:AW263,\"No\")=2,'Enrollment Form'!AX263=\"\"),\"N\",\"Y\")))","v":""},{"$f":"IF(OR(B256=\"N\",'Enrollment Form'!B263<>\"Subscriber\",'Enrollment Form'!C263=\"ROC\",'Enrollment Form'!O263<>\"Multiple of Salary\"),\"-\",IF(COUNTA('Enrollment Form'!T263:U263)<2,\"N\",\"Y\"))","v":"-"},{"$f":"IF(B256=\"N\",\"\",IF(OR('Enrollment Form'!C263=\"ROC\",'Enrollment Form'!B263<>\"Subscriber\",'Enrollment Form'!O263=\"Waive\",'Enrollment Form'!O263=\"\"),\"-\",IF('Enrollment Form'!P263=\"\",\"N\",\"Y\")))","v":""},{"$f":"IF($B256=\"N\",\"\",IF(AND('Enrollment Form'!$C263=\"ROC\",'Enrollment Form'!$DR263<>\"\"),\"Y\",IF(AND('Enrollment Form'!$C263=\"ROC\",'Enrollment Form'!$DR263=\"\"),\"N\",IF(AND('Enrollment Form'!$C263=\"Enroll\",'Enrollment Form'!$B263=\"Subscriber\",'Enrollment Form'!$CX263=\"No\",'Enrollment Form'!$DR263=\"\"),\"N\",IF(AND('Enrollment Form'!$C263=\"Enroll\",'Enrollment Form'!$B263=\"Subscriber\",'Enrollment Form'!$CX263=\"Yes\"),\"-\",\"Y\")))))","v":""},{"$f":"IF($B256=\"N\",\"\",IF(AND('Enrollment Form'!$C263=\"ROC\",'Enrollment Form'!$DS263<>\"\"),\"Y\",IF(AND('Enrollment Form'!$C263=\"ROC\",'Enrollment Form'!$DS263=\"\"),\"N\",IF(AND('Enrollment Form'!$C263=\"Enroll\",'Enrollment Form'!$B263=\"Subscriber\",'Enrollment Form'!$CX263=\"No\",'Enrollment Form'!$DS263=\"\"),\"N\",IF(AND('Enrollment Form'!$C263=\"Enroll\",'Enrollment Form'!$B263=\"Subscriber\",'Enrollment Form'!$CX263=\"Yes\"),\"-\",\"Y\")))))","v":""},{"$f":"IF('Enrollment Form'!AH263=\"\",\"\",IF(ISERROR(SEARCH(\".\",'Enrollment Form'!AH263,SEARCH(\"@\",'Enrollment Form'!AH263))),\"N\",\"Y\"))","v":""},{"$f":"IF(OR($B256=\"N\",'Enrollment Form'!$G263=\"\"),\"\",IF('Enrollment Form'!$B263<>\"Subscriber\",\"-\",IF(COUNTIF('Enrollment Form'!$AV263:$AW263,\"Yes\")=2,\"N\",\"Y\")))","v":""},{"$f":"IF(OR('Enrollment Form'!$CJ263=\"\",'Enrollment Form'!$CJ263=\"No\"),\"-\",IF(AND('Enrollment Form'!$CJ263=\"Yes\",'Enrollment Form'!$CK263=\"\"),\"N\",\"Y\"))","v":"-"},{"$f":"IF(OR('Enrollment Form'!$CL263=\"\",'Enrollment Form'!$CL263=\"No\"),\"-\",IF(AND('Enrollment Form'!$CL263=\"Yes\",'Enrollment Form'!$CM263=\"\"),\"N\",\"Y\"))","v":"-"},{"$f":"IF(OR('Enrollment Form'!$CN263=\"\",'Enrollment Form'!$CN263=\"No\"),\"-\",IF(AND('Enrollment Form'!$CN263=\"Yes\",'Enrollment Form'!$CO263=\"\"),\"N\",\"Y\"))","v":"-"},{"$f":"IF(OR('Enrollment Form'!$CN263=\"\",'Enrollment Form'!$CN263=\"No\"),\"-\",IF(AND('Enrollment Form'!$CN263=\"Yes\",'Enrollment Form'!$CP263=\"\"),\"N\",\"Y\"))","v":"-"},{"$f":"IF('Enrollment Form'!B263<>\"Subscriber\",\"-\",IF(AND('Enrollment Form'!B263=\"Subscriber\",'Enrollment Form'!C263=\"Enroll\",'Enrollment Form'!AA263=\"\"),\"N\",\"Y\"))","v":"-"},{"$f":"IF(OR('Enrollment Form'!B263=\"Subscriber\",'Enrollment Form'!B263=\"\"),\"-\",IF('Enrollment Form'!BP263=\"\",\"N\",\"Y\"))","v":"-"},{"$f":"IF('Enrollment Form'!B263<>\"Subscriber\",\"-\",IF(AND('Enrollment Form'!B263=\"Subscriber\",'Enrollment Form'!G263=\"\"),\"N\",\"Y\"))","v":"-"},{"$f":"IF('Enrollment Form'!A263=\"\",\"\",IF('Enrollment Form'!B263=\"Subscriber\",\"-\",IF(AND('Enrollment Form'!B263<>\"Subscriber\",'Enrollment Form'!G263='Enrollment Form'!H263),\"N\",\"Y\")))","v":""},0]
[264,{"$f":"IF('Enrollment Form'!$A264<>\"\",\"Y\",\"N\")","v":"N"},{"$f":"IF(AND('Enrollment Form'!$B264=\"\",'Enrollment Form'!$C264<>\"\"),\"N\",IF($B257=\"N\",\"\",\"Y\"))","v":""},{"$f":"IF(OR($B257=\"N\",'Enrollment Form'!G264=\"\"),\"\",IF('Enrollment Form'!$B264<>\"Subscriber\",\"\",IF('Enrollment Form'!$G264='Enrollment Form'!$H264,\"Y\",\"N\")))","v":""},{"$f":"IF($B257=\"N\",\"\",IF(AND(COUNTIFS('Enrollment Form'!$H$11:$H$1000,'Enrollment Form'!$H264,'Enrollment Form'!$B$11:$B$1000,'Enrollment Form'!$B264)>1,'Enrollment Form'!$H264<>\"\"),\"N\",\"Y\"))","v":""},{"$f":"IF($B257=\"N\",\"\",IF(LEN('Enrollment Form'!$Y264)=0,\"\",IF(LEN('Enrollment Form'!$Y264)<>5,\"N\",\"Y\")))","v":""},{"$f":"IF($B257=\"N\",\"\",IF(LEN('Enrollment Form'!$AD264=0),\"\",IF(LEN('Enrollment Form'!$AD264)<>5,\"N\",\"Y\")))","v":""},{"$f":"IF($B257=\"N\",\"\",IF(LEN('Enrollment Form'!$BS264=0),\"\",IF(LEN('Enrollment Form'!$BS264)<>5,\"N\",\"Y\")))","v":""},{"$f":"IF($B257=\"N\",\"\",IF(LEN('Enrollment Form'!$AE264)=0,\"\",IF(LEN('Enrollment Form'!$AE264)<>10,\"N\",\"Y\")))","v":""},{"$f":"IF($B257=\"N\",\"\",IF(LEN('Enrollment Form'!$AF264)=0,\"\",IF(LEN('Enrollment Form'!$AF264)<>10,\"N\",\"Y\")))","v":""},{"$f":"IF('Enrollment Form'!$O264<>\"Graded\",\"-\",IF(AND('Enrollment Form'!$O264=\"Graded\",'Enrollment Form'!$AR264<>\"\"),\"Y\",\"N\"))","v":"-"},{"$f":"IF($B257=\"N\",\"\",IF(OR('Enrollment Form'!$B264<>\"Subscriber\",'Enrollment Form'!$C264=\"ROC\"),\"-\",IF(AND('Enrollment Form'!$B264=\"Subscriber\",'Enrollment Form'!$C264=\"Enroll\",'Enrollment Form'!$AJ264<>\"\"),\"Y\",\"N\")))","v":""},{"$f":"IF($B257=\"N\",\"\",IF(OR('Enrollment Form'!$B264<>\"Subscriber\",'Enrollment Form'!$C264=\"ROC\"),\"-\",IF(AND('Enrollment Form'!$B264=\"Subscriber\",'Enrollment Form'!$C264=\"Enroll\",'Enrollment Form'!$AK264<>\"\"),\"Y\",\"N\")))","v":""},{"$f":"IF($B257=\"N\",\"\",IF(OR('Enrollment Form'!$B264<>\"Subscriber\",'Enrollment Form'!$C264=\"ROC\"),\"-\",IF(AND('Enrollment Form'!$B264=\"Subscriber\",'Enrollment Form'!$C264=\"Enroll\",'Enrollment Form'!$AL264<>\"\"),\"Y\",\"N\")))","v":""},{"$f":"IF($B257=\"N\",\"\",IF(OR('Enrollment Form'!$B264<>\"Subscriber\",'Enrollment Form'!$C264=\"ROC\"),\"-\",IF(AND('Enrollment Form'!$B264=\"Subscriber\",'Enrollment Form'!$C264=\"Enroll\",'Enrollment Form'!$AP264<>\"\"),\"Y\",\"N\")))","v":""},{"$f":"IF($B257=\"N\",\"\",IF(OR('Enrollment Form'!$B264<>\"Subscriber\",'Enrollment Form'!$C264=\"ROC\"),\"-\",IF(AND('Enrollment Form'!$B264=\"Subscriber\",'Enrollment Form'!$C264=\"Enroll\",'Enrollment Form'!$AQ264<>\"\"),\"Y\",\"N\")))","v":""},{"$f":"IF($B257=\"N\",\"\",IF(OR('Enrollment Form'!$B264<>\"Subscriber\",'Enrollment Form'!$C264=\"ROC\"),\"-\",IF(AND('Enrollment Form'!$B264=\"Subscriber\",'Enrollment Form'!$C264=\"Enroll\",'Enrollment Form'!$AS264<>\"\"),\"Y\",\"N\")))","v":""},{"$f":"IF($B257=\"N\",\"\",IF($Q257=\"-\",\"-\",IF(AND($Q257=\"Y\",'Enrollment Form'!$AS264=\"No\"),\"-\",IF(AND($Q257=\"Y\",'Enrollment Form'!$AS264=\"Yes\",'Enrollment Form'!$AT264<>\"\"),\"Y\",\"N\"))))","v":""},{"$f":"IF($B257=\"N\",\"\",IF(OR('Enrollment Form'!$B264<>\"Subscriber\",'Enrollment Form'!$C264=\"ROC\"),\"-\",IF(AND('Enrollment Form'!$B264=\"Subscriber\",'Enrollment Form'!$C264=\"Enroll\",'Enrollment Form'!$CV264<>\"\"),\"Y\",\"N\")))","v":""},{"$f":"IF($B257=\"N\",\"\",IF($S257=\"-\",\"-\",IF(AND($S257=\"Y\",'Enrollment Form'!$CV264=\"No\"),\"-\",IF(AND($S257=\"Y\",'Enrollment Form'!$CV264=\"Yes\",'Enrollment Form'!$CW264<>\"\"),\"Y\",\"N\"))))","v":""},{"$f":"IF(OR('Enrollment Form'!$AY264=\"Yes\",'Enrollment Form'!$AY264=\"\"),\"-\",IF(OR(AND('Enrollment Form'!$AY264=\"No\",ISERROR(FIND(\"HMO\",VLOOKUP('Enrollment Form'!G264,'Enrollment Form'!H$11:J$1000,3,FALSE),1))=FALSE,COUNTA('Enrollment Form'!$AZ264:$BC264)=4),AND('Enrollment Form'!$AY264=\"No\",ISERROR(FIND(\"HMO\",VLOOKUP('Enrollment Form'!G264,'Enrollment Form'!H$11:J$1000,3,FALSE),1))=FALSE,COUNTA('Enrollment Form'!$BT264:$BW264)=4)),\"Y\",\"N\"))","v":"-"},{"$f":"IF($B257=\"N\",\"\",IF('Enrollment Form'!$B264=\"Subscriber\",\"-\",IF(COUNTA('Enrollment Form'!$BL264,'Enrollment Form'!$BN264)=2,\"Y\",\"N\")))","v":""},{"$f":"IF($B257=\"N\",\"\",IF(OR('Enrollment Form'!$AX264=\"\",'Enrollment Form'!$AX264=\"No\"),\"-\",IF(AND('Enrollment Form'!$AX264=\"Yes\",COUNTA('Enrollment Form'!$CR264)=1),\"Y\",\"N\")))","v":""},{"$f":"IF(OR('Enrollment Form'!$CR264=\"\",'Enrollment Form'!$CR264=\"No\"),\"-\",IF(COUNTA('Enrollment Form'!$CT264:$CU264)=2,\"Y\",\"N\"))","v":"-"},{"$f":"IF($B257=\"N\",\"\",IF(COUNTIF('Enrollment Form'!$DG264:$DP264,\"Other\")=COUNTA('Enrollment Form'!$DK264,'Enrollment Form'!$DH264,'Enrollment Form'!$DN264,'Enrollment Form'!$DQ264),\"Y\",\"N\"))","v":""},{"$f":"IF($B257=\"N\",\"\",IF(OR('Enrollment Form'!B264<>\"Subscriber\",'Enrollment Form'!C264=\"ROC\",COUNTIF('Enrollment Form'!AV264:AW264,\"Yes\")>=1),\"-\",IF(AND('Enrollment Form'!C264=\"Enroll\",COUNTIF('Enrollment Form'!AV264:AW264,\"No\")=2,'Enrollment Form'!AX264=\"\"),\"N\",\"Y\")))","v":""},{"$f":"IF(OR(B257=\"N\",'Enrollment Form'!B264<>\"Subscriber\",'Enrollment Form'!C264=\"ROC\",'Enrollment Form'!O264<>\"Multiple of Salary\"),\"-\",IF(COUNTA('Enrollment Form'!T264:U264)<2,\"N\",\"Y\"))","v":"-"},{"$f":"IF(B257=\"N\",\"\",IF(OR('Enrollment Form'!C264=\"ROC\",'Enrollment Form'!B264<>\"Subscriber\",'Enrollment Form'!O264=\"Waive\",'Enrollment Form'!O264=\"\"),\"-\",IF('Enrollment Form'!P264=\"\",\"N\",\"Y\")))","v":""},{"$f":"IF($B257=\"N\",\"\",IF(AND('Enrollment Form'!$C264=\"ROC\",'Enrollment Form'!$DR264<>\"\"),\"Y\",IF(AND('Enrollment Form'!$C264=\"ROC\",'Enrollment Form'!$DR264=\"\"),\"N\",IF(AND('Enrollment Form'!$C264=\"Enroll\",'Enrollment Form'!$B264=\"Subscriber\",'Enrollment Form'!$CX264=\"No\",'Enrollment Form'!$DR264=\"\"),\"N\",IF(AND('Enrollment Form'!$C264=\"Enroll\",'Enrollment Form'!$B264=\"Subscriber\",'Enrollment Form'!$CX264=\"Yes\"),\"-\",\"Y\")))))","v":""},{"$f":"IF($B257=\"N\",\"\",IF(AND('Enrollment Form'!$C264=\"ROC\",'Enrollment Form'!$DS264<>\"\"),\"Y\",IF(AND('Enrollment Form'!$C264=\"ROC\",'Enrollment Form'!$DS264=\"\"),\"N\",IF(AND('Enrollment Form'!$C264=\"Enroll\",'Enrollment Form'!$B264=\"Subscriber\",'Enrollment Form'!$CX264=\"No\",'Enrollment Form'!$DS264=\"\"),\"N\",IF(AND('Enrollment Form'!$C264=\"Enroll\",'Enrollment Form'!$B264=\"Subscriber\",'Enrollment Form'!$CX264=\"Yes\"),\"-\",\"Y\")))))","v":""},{"$f":"IF('Enrollment Form'!AH264=\"\",\"\",IF(ISERROR(SEARCH(\".\",'Enrollment Form'!AH264,SEARCH(\"@\",'Enrollment Form'!AH264))),\"N\",\"Y\"))","v":""},{"$f":"IF(OR($B257=\"N\",'Enrollment Form'!$G264=\"\"),\"\",IF('Enrollment Form'!$B264<>\"Subscriber\",\"-\",IF(COUNTIF('Enrollment Form'!$AV264:$AW264,\"Yes\")=2,\"N\",\"Y\")))","v":""},{"$f":"IF(OR('Enrollment Form'!$CJ264=\"\",'Enrollment Form'!$CJ264=\"No\"),\"-\",IF(AND('Enrollment Form'!$CJ264=\"Yes\",'Enrollment Form'!$CK264=\"\"),\"N\",\"Y\"))","v":"-"},{"$f":"IF(OR('Enrollment Form'!$CL264=\"\",'Enrollment Form'!$CL264=\"No\"),\"-\",IF(AND('Enrollment Form'!$CL264=\"Yes\",'Enrollment Form'!$CM264=\"\"),\"N\",\"Y\"))","v":"-"},{"$f":"IF(OR('Enrollment Form'!$CN264=\"\",'Enrollment Form'!$CN264=\"No\"),\"-\",IF(AND('Enrollment Form'!$CN264=\"Yes\",'Enrollment Form'!$CO264=\"\"),\"N\",\"Y\"))","v":"-"},{"$f":"IF(OR('Enrollment Form'!$CN264=\"\",'Enrollment Form'!$CN264=\"No\"),\"-\",IF(AND('Enrollment Form'!$CN264=\"Yes\",'Enrollment Form'!$CP264=\"\"),\"N\",\"Y\"))","v":"-"},{"$f":"IF('Enrollment Form'!B264<>\"Subscriber\",\"-\",IF(AND('Enrollment Form'!B264=\"Subscriber\",'Enrollment Form'!C264=\"Enroll\",'Enrollment Form'!AA264=\"\"),\"N\",\"Y\"))","v":"-"},{"$f":"IF(OR('Enrollment Form'!B264=\"Subscriber\",'Enrollment Form'!B264=\"\"),\"-\",IF('Enrollment Form'!BP264=\"\",\"N\",\"Y\"))","v":"-"},{"$f":"IF('Enrollment Form'!B264<>\"Subscriber\",\"-\",IF(AND('Enrollment Form'!B264=\"Subscriber\",'Enrollment Form'!G264=\"\"),\"N\",\"Y\"))","v":"-"},{"$f":"IF('Enrollment Form'!A264=\"\",\"\",IF('Enrollment Form'!B264=\"Subscriber\",\"-\",IF(AND('Enrollment Form'!B264<>\"Subscriber\",'Enrollment Form'!G264='Enrollment Form'!H264),\"N\",\"Y\")))","v":""},0]
[265,{"$f":"IF('Enrollment Form'!$A265<>\"\",\"Y\",\"N\")","v":"N"},{"$f":"IF(AND('Enrollment Form'!$B265=\"\",'Enrollment Form'!$C265<>\"\"),\"N\",IF($B258=\"N\",\"\",\"Y\"))","v":""},{"$f":"IF(OR($B258=\"N\",'Enrollment Form'!G265=\"\"),\"\",IF('Enrollment Form'!$B265<>\"Subscriber\",\"\",IF('Enrollment Form'!$G265='Enrollment Form'!$H265,\"Y\",\"N\")))","v":""},{"$f":"IF($B258=\"N\",\"\",IF(AND(COUNTIFS('Enrollment Form'!$H$11:$H$1000,'Enrollment Form'!$H265,'Enrollment Form'!$B$11:$B$1000,'Enrollment Form'!$B265)>1,'Enrollment Form'!$H265<>\"\"),\"N\",\"Y\"))","v":""},{"$f":"IF($B258=\"N\",\"\",IF(LEN('Enrollment Form'!$Y265)=0,\"\",IF(LEN('Enrollment Form'!$Y265)<>5,\"N\",\"Y\")))","v":""},{"$f":"IF($B258=\"N\",\"\",IF(LEN('Enrollment Form'!$AD265=0),\"\",IF(LEN('Enrollment Form'!$AD265)<>5,\"N\",\"Y\")))","v":""},{"$f":"IF($B258=\"N\",\"\",IF(LEN('Enrollment Form'!$BS265=0),\"\",IF(LEN('Enrollment Form'!$BS265)<>5,\"N\",\"Y\")))","v":""},{"$f":"IF($B258=\"N\",\"\",IF(LEN('Enrollment Form'!$AE265)=0,\"\",IF(LEN('Enrollment Form'!$AE265)<>10,\"N\",\"Y\")))","v":""},{"$f":"IF($B258=\"N\",\"\",IF(LEN('Enrollment Form'!$AF265)=0,\"\",IF(LEN('Enrollment Form'!$AF265)<>10,\"N\",\"Y\")))","v":""},{"$f":"IF('Enrollment Form'!$O265<>\"Graded\",\"-\",IF(AND('Enrollment Form'!$O265=\"Graded\",'Enrollment Form'!$AR265<>\"\"),\"Y\",\"N\"))","v":"-"},{"$f":"IF($B258=\"N\",\"\",IF(OR('Enrollment Form'!$B265<>\"Subscriber\",'Enrollment Form'!$C265=\"ROC\"),\"-\",IF(AND('Enrollment Form'!$B265=\"Subscriber\",'Enrollment Form'!$C265=\"Enroll\",'Enrollment Form'!$AJ265<>\"\"),\"Y\",\"N\")))","v":""},{"$f":"IF($B258=\"N\",\"\",IF(OR('Enrollment Form'!$B265<>\"Subscriber\",'Enrollment Form'!$C265=\"ROC\"),\"-\",IF(AND('Enrollment Form'!$B265=\"Subscriber\",'Enrollment Form'!$C265=\"Enroll\",'Enrollment Form'!$AK265<>\"\"),\"Y\",\"N\")))","v":""},{"$f":"IF($B258=\"N\",\"\",IF(OR('Enrollment Form'!$B265<>\"Subscriber\",'Enrollment Form'!$C265=\"ROC\"),\"-\",IF(AND('Enrollment Form'!$B265=\"Subscriber\",'Enrollment Form'!$C265=\"Enroll\",'Enrollment Form'!$AL265<>\"\"),\"Y\",\"N\")))","v":""},{"$f":"IF($B258=\"N\",\"\",IF(OR('Enrollment Form'!$B265<>\"Subscriber\",'Enrollment Form'!$C265=\"ROC\"),\"-\",IF(AND('Enrollment Form'!$B265=\"Subscriber\",'Enrollment Form'!$C265=\"Enroll\",'Enrollment Form'!$AP265<>\"\"),\"Y\",\"N\")))","v":""},{"$f":"IF($B258=\"N\",\"\",IF(OR('Enrollment Form'!$B265<>\"Subscriber\",'Enrollment Form'!$C265=\"ROC\"),\"-\",IF(AND('Enrollment Form'!$B265=\"Subscriber\",'Enrollment Form'!$C265=\"Enroll\",'Enrollment Form'!$AQ265<>\"\"),\"Y\",\"N\")))","v":""},{"$f":"IF($B258=\"N\",\"\",IF(OR('Enrollment Form'!$B265<>\"Subscriber\",'Enrollment Form'!$C265=\"ROC\"),\"-\",IF(AND('Enrollment Form'!$B265=\"Subscriber\",'Enrollment Form'!$C265=\"Enroll\",'Enrollment Form'!$AS265<>\"\"),\"Y\",\"N\")))","v":""},{"$f":"IF($B258=\"N\",\"\",IF($Q258=\"-\",\"-\",IF(AND($Q258=\"Y\",'Enrollment Form'!$AS265=\"No\"),\"-\",IF(AND($Q258=\"Y\",'Enrollment Form'!$AS265=\"Yes\",'Enrollment Form'!$AT265<>\"\"),\"Y\",\"N\"))))","v":""},{"$f":"IF($B258=\"N\",\"\",IF(OR('Enrollment Form'!$B265<>\"Subscriber\",'Enrollment Form'!$C265=\"ROC\"),\"-\",IF(AND('Enrollment Form'!$B265=\"Subscriber\",'Enrollment Form'!$C265=\"Enroll\",'Enrollment Form'!$CV265<>\"\"),\"Y\",\"N\")))","v":""},{"$f":"IF($B258=\"N\",\"\",IF($S258=\"-\",\"-\",IF(AND($S258=\"Y\",'Enrollment Form'!$CV265=\"No\"),\"-\",IF(AND($S258=\"Y\",'Enrollment Form'!$CV265=\"Yes\",'Enrollment Form'!$CW265<>\"\"),\"Y\",\"N\"))))","v":""},{"$f":"IF(OR('Enrollment Form'!$AY265=\"Yes\",'Enrollment Form'!$AY265=\"\"),\"-\",IF(OR(AND('Enrollment Form'!$AY265=\"No\",ISERROR(FIND(\"HMO\",VLOOKUP('Enrollment Form'!G265,'Enrollment Form'!H$11:J$1000,3,FALSE),1))=FALSE,COUNTA('Enrollment Form'!$AZ265:$BC265)=4),AND('Enrollment Form'!$AY265=\"No\",ISERROR(FIND(\"HMO\",VLOOKUP('Enrollment Form'!G265,'Enrollment Form'!H$11:J$1000,3,FALSE),1))=FALSE,COUNTA('Enrollment Form'!$BT265:$BW265)=4)),\"Y\",\"N\"))","v":"-"},{"$f":"IF($B258=\"N\",\"\",IF('Enrollment Form'!$B265=\"Subscriber\",\"-\",IF(COUNTA('Enrollment Form'!$BL265,'Enrollment Form'!$BN265)=2,\"Y\",\"N\")))","v":""},{"$f":"IF($B258=\"N\",\"\",IF(OR('Enrollment Form'!$AX265=\"\",'Enrollment Form'!$AX265=\"No\"),\"-\",IF(AND('Enrollment Form'!$AX265=\"Yes\",COUNTA('Enrollment Form'!$CR265)=1),\"Y\",\"N\")))","v":""},{"$f":"IF(OR('Enrollment Form'!$CR265=\"\",'Enrollment Form'!$CR265=\"No\"),\"-\",IF(COUNTA('Enrollment Form'!$CT265:$CU265)=2,\"Y\",\"N\"))","v":"-"},{"$f":"IF($B258=\"N\",\"\",IF(COUNTIF('Enrollment Form'!$DG265:$DP265,\"Other\")=COUNTA('Enrollment Form'!$DK265,'Enrollment Form'!$DH265,'Enrollment Form'!$DN265,'Enrollment Form'!$DQ265),\"Y\",\"N\"))","v":""},{"$f":"IF($B258=\"N\",\"\",IF(OR('Enrollment Form'!B265<>\"Subscriber\",'Enrollment Form'!C265=\"ROC\",COUNTIF('Enrollment Form'!AV265:AW265,\"Yes\")>=1),\"-\",IF(AND('Enrollment Form'!C265=\"Enroll\",COUNTIF('Enrollment Form'!AV265:AW265,\"No\")=2,'Enrollment Form'!AX265=\"\"),\"N\",\"Y\")))","v":""},{"$f":"IF(OR(B258=\"N\",'Enrollment Form'!B265<>\"Subscriber\",'Enrollment Form'!C265=\"ROC\",'Enrollment Form'!O265<>\"Multiple of Salary\"),\"-\",IF(COUNTA('Enrollment Form'!T265:U265)<2,\"N\",\"Y\"))","v":"-"},{"$f":"IF(B258=\"N\",\"\",IF(OR('Enrollment Form'!C265=\"ROC\",'Enrollment Form'!B265<>\"Subscriber\",'Enrollment Form'!O265=\"Waive\",'Enrollment Form'!O265=\"\"),\"-\",IF('Enrollment Form'!P265=\"\",\"N\",\"Y\")))","v":""},{"$f":"IF($B258=\"N\",\"\",IF(AND('Enrollment Form'!$C265=\"ROC\",'Enrollment Form'!$DR265<>\"\"),\"Y\",IF(AND('Enrollment Form'!$C265=\"ROC\",'Enrollment Form'!$DR265=\"\"),\"N\",IF(AND('Enrollment Form'!$C265=\"Enroll\",'Enrollment Form'!$B265=\"Subscriber\",'Enrollment Form'!$CX265=\"No\",'Enrollment Form'!$DR265=\"\"),\"N\",IF(AND('Enrollment Form'!$C265=\"Enroll\",'Enrollment Form'!$B265=\"Subscriber\",'Enrollment Form'!$CX265=\"Yes\"),\"-\",\"Y\")))))","v":""},{"$f":"IF($B258=\"N\",\"\",IF(AND('Enrollment Form'!$C265=\"ROC\",'Enrollment Form'!$DS265<>\"\"),\"Y\",IF(AND('Enrollment Form'!$C265=\"ROC\",'Enrollment Form'!$DS265=\"\"),\"N\",IF(AND('Enrollment Form'!$C265=\"Enroll\",'Enrollment Form'!$B265=\"Subscriber\",'Enrollment Form'!$CX265=\"No\",'Enrollment Form'!$DS265=\"\"),\"N\",IF(AND('Enrollment Form'!$C265=\"Enroll\",'Enrollment Form'!$B265=\"Subscriber\",'Enrollment Form'!$CX265=\"Yes\"),\"-\",\"Y\")))))","v":""},{"$f":"IF('Enrollment Form'!AH265=\"\",\"\",IF(ISERROR(SEARCH(\".\",'Enrollment Form'!AH265,SEARCH(\"@\",'Enrollment Form'!AH265))),\"N\",\"Y\"))","v":""},{"$f":"IF(OR($B258=\"N\",'Enrollment Form'!$G265=\"\"),\"\",IF('Enrollment Form'!$B265<>\"Subscriber\",\"-\",IF(COUNTIF('Enrollment Form'!$AV265:$AW265,\"Yes\")=2,\"N\",\"Y\")))","v":""},{"$f":"IF(OR('Enrollment Form'!$CJ265=\"\",'Enrollment Form'!$CJ265=\"No\"),\"-\",IF(AND('Enrollment Form'!$CJ265=\"Yes\",'Enrollment Form'!$CK265=\"\"),\"N\",\"Y\"))","v":"-"},{"$f":"IF(OR('Enrollment Form'!$CL265=\"\",'Enrollment Form'!$CL265=\"No\"),\"-\",IF(AND('Enrollment Form'!$CL265=\"Yes\",'Enrollment Form'!$CM265=\"\"),\"N\",\"Y\"))","v":"-"},{"$f":"IF(OR('Enrollment Form'!$CN265=\"\",'Enrollment Form'!$CN265=\"No\"),\"-\",IF(AND('Enrollment Form'!$CN265=\"Yes\",'Enrollment Form'!$CO265=\"\"),\"N\",\"Y\"))","v":"-"},{"$f":"IF(OR('Enrollment Form'!$CN265=\"\",'Enrollment Form'!$CN265=\"No\"),\"-\",IF(AND('Enrollment Form'!$CN265=\"Yes\",'Enrollment Form'!$CP265=\"\"),\"N\",\"Y\"))","v":"-"},{"$f":"IF('Enrollment Form'!B265<>\"Subscriber\",\"-\",IF(AND('Enrollment Form'!B265=\"Subscriber\",'Enrollment Form'!C265=\"Enroll\",'Enrollment Form'!AA265=\"\"),\"N\",\"Y\"))","v":"-"},{"$f":"IF(OR('Enrollment Form'!B265=\"Subscriber\",'Enrollment Form'!B265=\"\"),\"-\",IF('Enrollment Form'!BP265=\"\",\"N\",\"Y\"))","v":"-"},{"$f":"IF('Enrollment Form'!B265<>\"Subscriber\",\"-\",IF(AND('Enrollment Form'!B265=\"Subscriber\",'Enrollment Form'!G265=\"\"),\"N\",\"Y\"))","v":"-"},{"$f":"IF('Enrollment Form'!A265=\"\",\"\",IF('Enrollment Form'!B265=\"Subscriber\",\"-\",IF(AND('Enrollment Form'!B265<>\"Subscriber\",'Enrollment Form'!G265='Enrollment Form'!H265),\"N\",\"Y\")))","v":""},0]
[266,{"$f":"IF('Enrollment Form'!$A266<>\"\",\"Y\",\"N\")","v":"N"},{"$f":"IF(AND('Enrollment Form'!$B266=\"\",'Enrollment Form'!$C266<>\"\"),\"N\",IF($B259=\"N\",\"\",\"Y\"))","v":""},{"$f":"IF(OR($B259=\"N\",'Enrollment Form'!G266=\"\"),\"\",IF('Enrollment Form'!$B266<>\"Subscriber\",\"\",IF('Enrollment Form'!$G266='Enrollment Form'!$H266,\"Y\",\"N\")))","v":""},{"$f":"IF($B259=\"N\",\"\",IF(AND(COUNTIFS('Enrollment Form'!$H$11:$H$1000,'Enrollment Form'!$H266,'Enrollment Form'!$B$11:$B$1000,'Enrollment Form'!$B266)>1,'Enrollment Form'!$H266<>\"\"),\"N\",\"Y\"))","v":""},{"$f":"IF($B259=\"N\",\"\",IF(LEN('Enrollment Form'!$Y266)=0,\"\",IF(LEN('Enrollment Form'!$Y266)<>5,\"N\",\"Y\")))","v":""},{"$f":"IF($B259=\"N\",\"\",IF(LEN('Enrollment Form'!$AD266=0),\"\",IF(LEN('Enrollment Form'!$AD266)<>5,\"N\",\"Y\")))","v":""},{"$f":"IF($B259=\"N\",\"\",IF(LEN('Enrollment Form'!$BS266=0),\"\",IF(LEN('Enrollment Form'!$BS266)<>5,\"N\",\"Y\")))","v":""},{"$f":"IF($B259=\"N\",\"\",IF(LEN('Enrollment Form'!$AE266)=0,\"\",IF(LEN('Enrollment Form'!$AE266)<>10,\"N\",\"Y\")))","v":""},{"$f":"IF($B259=\"N\",\"\",IF(LEN('Enrollment Form'!$AF266)=0,\"\",IF(LEN('Enrollment Form'!$AF266)<>10,\"N\",\"Y\")))","v":""},{"$f":"IF('Enrollment Form'!$O266<>\"Graded\",\"-\",IF(AND('Enrollment Form'!$O266=\"Graded\",'Enrollment Form'!$AR266<>\"\"),\"Y\",\"N\"))","v":"-"},{"$f":"IF($B259=\"N\",\"\",IF(OR('Enrollment Form'!$B266<>\"Subscriber\",'Enrollment Form'!$C266=\"ROC\"),\"-\",IF(AND('Enrollment Form'!$B266=\"Subscriber\",'Enrollment Form'!$C266=\"Enroll\",'Enrollment Form'!$AJ266<>\"\"),\"Y\",\"N\")))","v":""},{"$f":"IF($B259=\"N\",\"\",IF(OR('Enrollment Form'!$B266<>\"Subscriber\",'Enrollment Form'!$C266=\"ROC\"),\"-\",IF(AND('Enrollment Form'!$B266=\"Subscriber\",'Enrollment Form'!$C266=\"Enroll\",'Enrollment Form'!$AK266<>\"\"),\"Y\",\"N\")))","v":""},{"$f":"IF($B259=\"N\",\"\",IF(OR('Enrollment Form'!$B266<>\"Subscriber\",'Enrollment Form'!$C266=\"ROC\"),\"-\",IF(AND('Enrollment Form'!$B266=\"Subscriber\",'Enrollment Form'!$C266=\"Enroll\",'Enrollment Form'!$AL266<>\"\"),\"Y\",\"N\")))","v":""},{"$f":"IF($B259=\"N\",\"\",IF(OR('Enrollment Form'!$B266<>\"Subscriber\",'Enrollment Form'!$C266=\"ROC\"),\"-\",IF(AND('Enrollment Form'!$B266=\"Subscriber\",'Enrollment Form'!$C266=\"Enroll\",'Enrollment Form'!$AP266<>\"\"),\"Y\",\"N\")))","v":""},{"$f":"IF($B259=\"N\",\"\",IF(OR('Enrollment Form'!$B266<>\"Subscriber\",'Enrollment Form'!$C266=\"ROC\"),\"-\",IF(AND('Enrollment Form'!$B266=\"Subscriber\",'Enrollment Form'!$C266=\"Enroll\",'Enrollment Form'!$AQ266<>\"\"),\"Y\",\"N\")))","v":""},{"$f":"IF($B259=\"N\",\"\",IF(OR('Enrollment Form'!$B266<>\"Subscriber\",'Enrollment Form'!$C266=\"ROC\"),\"-\",IF(AND('Enrollment Form'!$B266=\"Subscriber\",'Enrollment Form'!$C266=\"Enroll\",'Enrollment Form'!$AS266<>\"\"),\"Y\",\"N\")))","v":""},{"$f":"IF($B259=\"N\",\"\",IF($Q259=\"-\",\"-\",IF(AND($Q259=\"Y\",'Enrollment Form'!$AS266=\"No\"),\"-\",IF(AND($Q259=\"Y\",'Enrollment Form'!$AS266=\"Yes\",'Enrollment Form'!$AT266<>\"\"),\"Y\",\"N\"))))","v":""},{"$f":"IF($B259=\"N\",\"\",IF(OR('Enrollment Form'!$B266<>\"Subscriber\",'Enrollment Form'!$C266=\"ROC\"),\"-\",IF(AND('Enrollment Form'!$B266=\"Subscriber\",'Enrollment Form'!$C266=\"Enroll\",'Enrollment Form'!$CV266<>\"\"),\"Y\",\"N\")))","v":""},{"$f":"IF($B259=\"N\",\"\",IF($S259=\"-\",\"-\",IF(AND($S259=\"Y\",'Enrollment Form'!$CV266=\"No\"),\"-\",IF(AND($S259=\"Y\",'Enrollment Form'!$CV266=\"Yes\",'Enrollment Form'!$CW266<>\"\"),\"Y\",\"N\"))))","v":""},{"$f":"IF(OR('Enrollment Form'!$AY266=\"Yes\",'Enrollment Form'!$AY266=\"\"),\"-\",IF(OR(AND('Enrollment Form'!$AY266=\"No\",ISERROR(FIND(\"HMO\",VLOOKUP('Enrollment Form'!G266,'Enrollment Form'!H$11:J$1000,3,FALSE),1))=FALSE,COUNTA('Enrollment Form'!$AZ266:$BC266)=4),AND('Enrollment Form'!$AY266=\"No\",ISERROR(FIND(\"HMO\",VLOOKUP('Enrollment Form'!G266,'Enrollment Form'!H$11:J$1000,3,FALSE),1))=FALSE,COUNTA('Enrollment Form'!$BT266:$BW266)=4)),\"Y\",\"N\"))","v":"-"},{"$f":"IF($B259=\"N\",\"\",IF('Enrollment Form'!$B266=\"Subscriber\",\"-\",IF(COUNTA('Enrollment Form'!$BL266,'Enrollment Form'!$BN266)=2,\"Y\",\"N\")))","v":""},{"$f":"IF($B259=\"N\",\"\",IF(OR('Enrollment Form'!$AX266=\"\",'Enrollment Form'!$AX266=\"No\"),\"-\",IF(AND('Enrollment Form'!$AX266=\"Yes\",COUNTA('Enrollment Form'!$CR266)=1),\"Y\",\"N\")))","v":""},{"$f":"IF(OR('Enrollment Form'!$CR266=\"\",'Enrollment Form'!$CR266=\"No\"),\"-\",IF(COUNTA('Enrollment Form'!$CT266:$CU266)=2,\"Y\",\"N\"))","v":"-"},{"$f":"IF($B259=\"N\",\"\",IF(COUNTIF('Enrollment Form'!$DG266:$DP266,\"Other\")=COUNTA('Enrollment Form'!$DK266,'Enrollment Form'!$DH266,'Enrollment Form'!$DN266,'Enrollment Form'!$DQ266),\"Y\",\"N\"))","v":""},{"$f":"IF($B259=\"N\",\"\",IF(OR('Enrollment Form'!B266<>\"Subscriber\",'Enrollment Form'!C266=\"ROC\",COUNTIF('Enrollment Form'!AV266:AW266,\"Yes\")>=1),\"-\",IF(AND('Enrollment Form'!C266=\"Enroll\",COUNTIF('Enrollment Form'!AV266:AW266,\"No\")=2,'Enrollment Form'!AX266=\"\"),\"N\",\"Y\")))","v":""},{"$f":"IF(OR(B259=\"N\",'Enrollment Form'!B266<>\"Subscriber\",'Enrollment Form'!C266=\"ROC\",'Enrollment Form'!O266<>\"Multiple of Salary\"),\"-\",IF(COUNTA('Enrollment Form'!T266:U266)<2,\"N\",\"Y\"))","v":"-"},{"$f":"IF(B259=\"N\",\"\",IF(OR('Enrollment Form'!C266=\"ROC\",'Enrollment Form'!B266<>\"Subscriber\",'Enrollment Form'!O266=\"Waive\",'Enrollment Form'!O266=\"\"),\"-\",IF('Enrollment Form'!P266=\"\",\"N\",\"Y\")))","v":""},{"$f":"IF($B259=\"N\",\"\",IF(AND('Enrollment Form'!$C266=\"ROC\",'Enrollment Form'!$DR266<>\"\"),\"Y\",IF(AND('Enrollment Form'!$C266=\"ROC\",'Enrollment Form'!$DR266=\"\"),\"N\",IF(AND('Enrollment Form'!$C266=\"Enroll\",'Enrollment Form'!$B266=\"Subscriber\",'Enrollment Form'!$CX266=\"No\",'Enrollment Form'!$DR266=\"\"),\"N\",IF(AND('Enrollment Form'!$C266=\"Enroll\",'Enrollment Form'!$B266=\"Subscriber\",'Enrollment Form'!$CX266=\"Yes\"),\"-\",\"Y\")))))","v":""},{"$f":"IF($B259=\"N\",\"\",IF(AND('Enrollment Form'!$C266=\"ROC\",'Enrollment Form'!$DS266<>\"\"),\"Y\",IF(AND('Enrollment Form'!$C266=\"ROC\",'Enrollment Form'!$DS266=\"\"),\"N\",IF(AND('Enrollment Form'!$C266=\"Enroll\",'Enrollment Form'!$B266=\"Subscriber\",'Enrollment Form'!$CX266=\"No\",'Enrollment Form'!$DS266=\"\"),\"N\",IF(AND('Enrollment Form'!$C266=\"Enroll\",'Enrollment Form'!$B266=\"Subscriber\",'Enrollment Form'!$CX266=\"Yes\"),\"-\",\"Y\")))))","v":""},{"$f":"IF('Enrollment Form'!AH266=\"\",\"\",IF(ISERROR(SEARCH(\".\",'Enrollment Form'!AH266,SEARCH(\"@\",'Enrollment Form'!AH266))),\"N\",\"Y\"))","v":""},{"$f":"IF(OR($B259=\"N\",'Enrollment Form'!$G266=\"\"),\"\",IF('Enrollment Form'!$B266<>\"Subscriber\",\"-\",IF(COUNTIF('Enrollment Form'!$AV266:$AW266,\"Yes\")=2,\"N\",\"Y\")))","v":""},{"$f":"IF(OR('Enrollment Form'!$CJ266=\"\",'Enrollment Form'!$CJ266=\"No\"),\"-\",IF(AND('Enrollment Form'!$CJ266=\"Yes\",'Enrollment Form'!$CK266=\"\"),\"N\",\"Y\"))","v":"-"},{"$f":"IF(OR('Enrollment Form'!$CL266=\"\",'Enrollment Form'!$CL266=\"No\"),\"-\",IF(AND('Enrollment Form'!$CL266=\"Yes\",'Enrollment Form'!$CM266=\"\"),\"N\",\"Y\"))","v":"-"},{"$f":"IF(OR('Enrollment Form'!$CN266=\"\",'Enrollment Form'!$CN266=\"No\"),\"-\",IF(AND('Enrollment Form'!$CN266=\"Yes\",'Enrollment Form'!$CO266=\"\"),\"N\",\"Y\"))","v":"-"},{"$f":"IF(OR('Enrollment Form'!$CN266=\"\",'Enrollment Form'!$CN266=\"No\"),\"-\",IF(AND('Enrollment Form'!$CN266=\"Yes\",'Enrollment Form'!$CP266=\"\"),\"N\",\"Y\"))","v":"-"},{"$f":"IF('Enrollment Form'!B266<>\"Subscriber\",\"-\",IF(AND('Enrollment Form'!B266=\"Subscriber\",'Enrollment Form'!C266=\"Enroll\",'Enrollment Form'!AA266=\"\"),\"N\",\"Y\"))","v":"-"},{"$f":"IF(OR('Enrollment Form'!B266=\"Subscriber\",'Enrollment Form'!B266=\"\"),\"-\",IF('Enrollment Form'!BP266=\"\",\"N\",\"Y\"))","v":"-"},{"$f":"IF('Enrollment Form'!B266<>\"Subscriber\",\"-\",IF(AND('Enrollment Form'!B266=\"Subscriber\",'Enrollment Form'!G266=\"\"),\"N\",\"Y\"))","v":"-"},{"$f":"IF('Enrollment Form'!A266=\"\",\"\",IF('Enrollment Form'!B266=\"Subscriber\",\"-\",IF(AND('Enrollment Form'!B266<>\"Subscriber\",'Enrollment Form'!G266='Enrollment Form'!H266),\"N\",\"Y\")))","v":""},0]
[267,{"$f":"IF('Enrollment Form'!$A267<>\"\",\"Y\",\"N\")","v":"N"},{"$f":"IF(AND('Enrollment Form'!$B267=\"\",'Enrollment Form'!$C267<>\"\"),\"N\",IF($B260=\"N\",\"\",\"Y\"))","v":""},{"$f":"IF(OR($B260=\"N\",'Enrollment Form'!G267=\"\"),\"\",IF('Enrollment Form'!$B267<>\"Subscriber\",\"\",IF('Enrollment Form'!$G267='Enrollment Form'!$H267,\"Y\",\"N\")))","v":""},{"$f":"IF($B260=\"N\",\"\",IF(AND(COUNTIFS('Enrollment Form'!$H$11:$H$1000,'Enrollment Form'!$H267,'Enrollment Form'!$B$11:$B$1000,'Enrollment Form'!$B267)>1,'Enrollment Form'!$H267<>\"\"),\"N\",\"Y\"))","v":""},{"$f":"IF($B260=\"N\",\"\",IF(LEN('Enrollment Form'!$Y267)=0,\"\",IF(LEN('Enrollment Form'!$Y267)<>5,\"N\",\"Y\")))","v":""},{"$f":"IF($B260=\"N\",\"\",IF(LEN('Enrollment Form'!$AD267=0),\"\",IF(LEN('Enrollment Form'!$AD267)<>5,\"N\",\"Y\")))","v":""},{"$f":"IF($B260=\"N\",\"\",IF(LEN('Enrollment Form'!$BS267=0),\"\",IF(LEN('Enrollment Form'!$BS267)<>5,\"N\",\"Y\")))","v":""},{"$f":"IF($B260=\"N\",\"\",IF(LEN('Enrollment Form'!$AE267)=0,\"\",IF(LEN('Enrollment Form'!$AE267)<>10,\"N\",\"Y\")))","v":""},{"$f":"IF($B260=\"N\",\"\",IF(LEN('Enrollment Form'!$AF267)=0,\"\",IF(LEN('Enrollment Form'!$AF267)<>10,\"N\",\"Y\")))","v":""},{"$f":"IF('Enrollment Form'!$O267<>\"Graded\",\"-\",IF(AND('Enrollment Form'!$O267=\"Graded\",'Enrollment Form'!$AR267<>\"\"),\"Y\",\"N\"))","v":"-"},{"$f":"IF($B260=\"N\",\"\",IF(OR('Enrollment Form'!$B267<>\"Subscriber\",'Enrollment Form'!$C267=\"ROC\"),\"-\",IF(AND('Enrollment Form'!$B267=\"Subscriber\",'Enrollment Form'!$C267=\"Enroll\",'Enrollment Form'!$AJ267<>\"\"),\"Y\",\"N\")))","v":""},{"$f":"IF($B260=\"N\",\"\",IF(OR('Enrollment Form'!$B267<>\"Subscriber\",'Enrollment Form'!$C267=\"ROC\"),\"-\",IF(AND('Enrollment Form'!$B267=\"Subscriber\",'Enrollment Form'!$C267=\"Enroll\",'Enrollment Form'!$AK267<>\"\"),\"Y\",\"N\")))","v":""},{"$f":"IF($B260=\"N\",\"\",IF(OR('Enrollment Form'!$B267<>\"Subscriber\",'Enrollment Form'!$C267=\"ROC\"),\"-\",IF(AND('Enrollment Form'!$B267=\"Subscriber\",'Enrollment Form'!$C267=\"Enroll\",'Enrollment Form'!$AL267<>\"\"),\"Y\",\"N\")))","v":""},{"$f":"IF($B260=\"N\",\"\",IF(OR('Enrollment Form'!$B267<>\"Subscriber\",'Enrollment Form'!$C267=\"ROC\"),\"-\",IF(AND('Enrollment Form'!$B267=\"Subscriber\",'Enrollment Form'!$C267=\"Enroll\",'Enrollment Form'!$AP267<>\"\"),\"Y\",\"N\")))","v":""},{"$f":"IF($B260=\"N\",\"\",IF(OR('Enrollment Form'!$B267<>\"Subscriber\",'Enrollment Form'!$C267=\"ROC\"),\"-\",IF(AND('Enrollment Form'!$B267=\"Subscriber\",'Enrollment Form'!$C267=\"Enroll\",'Enrollment Form'!$AQ267<>\"\"),\"Y\",\"N\")))","v":""},{"$f":"IF($B260=\"N\",\"\",IF(OR('Enrollment Form'!$B267<>\"Subscriber\",'Enrollment Form'!$C267=\"ROC\"),\"-\",IF(AND('Enrollment Form'!$B267=\"Subscriber\",'Enrollment Form'!$C267=\"Enroll\",'Enrollment Form'!$AS267<>\"\"),\"Y\",\"N\")))","v":""},{"$f":"IF($B260=\"N\",\"\",IF($Q260=\"-\",\"-\",IF(AND($Q260=\"Y\",'Enrollment Form'!$AS267=\"No\"),\"-\",IF(AND($Q260=\"Y\",'Enrollment Form'!$AS267=\"Yes\",'Enrollment Form'!$AT267<>\"\"),\"Y\",\"N\"))))","v":""},{"$f":"IF($B260=\"N\",\"\",IF(OR('Enrollment Form'!$B267<>\"Subscriber\",'Enrollment Form'!$C267=\"ROC\"),\"-\",IF(AND('Enrollment Form'!$B267=\"Subscriber\",'Enrollment Form'!$C267=\"Enroll\",'Enrollment Form'!$CV267<>\"\"),\"Y\",\"N\")))","v":""},{"$f":"IF($B260=\"N\",\"\",IF($S260=\"-\",\"-\",IF(AND($S260=\"Y\",'Enrollment Form'!$CV267=\"No\"),\"-\",IF(AND($S260=\"Y\",'Enrollment Form'!$CV267=\"Yes\",'Enrollment Form'!$CW267<>\"\"),\"Y\",\"N\"))))","v":""},{"$f":"IF(OR('Enrollment Form'!$AY267=\"Yes\",'Enrollment Form'!$AY267=\"\"),\"-\",IF(OR(AND('Enrollment Form'!$AY267=\"No\",ISERROR(FIND(\"HMO\",VLOOKUP('Enrollment Form'!G267,'Enrollment Form'!H$11:J$1000,3,FALSE),1))=FALSE,COUNTA('Enrollment Form'!$AZ267:$BC267)=4),AND('Enrollment Form'!$AY267=\"No\",ISERROR(FIND(\"HMO\",VLOOKUP('Enrollment Form'!G267,'Enrollment Form'!H$11:J$1000,3,FALSE),1))=FALSE,COUNTA('Enrollment Form'!$BT267:$BW267)=4)),\"Y\",\"N\"))","v":"-"},{"$f":"IF($B260=\"N\",\"\",IF('Enrollment Form'!$B267=\"Subscriber\",\"-\",IF(COUNTA('Enrollment Form'!$BL267,'Enrollment Form'!$BN267)=2,\"Y\",\"N\")))","v":""},{"$f":"IF($B260=\"N\",\"\",IF(OR('Enrollment Form'!$AX267=\"\",'Enrollment Form'!$AX267=\"No\"),\"-\",IF(AND('Enrollment Form'!$AX267=\"Yes\",COUNTA('Enrollment Form'!$CR267)=1),\"Y\",\"N\")))","v":""},{"$f":"IF(OR('Enrollment Form'!$CR267=\"\",'Enrollment Form'!$CR267=\"No\"),\"-\",IF(COUNTA('Enrollment Form'!$CT267:$CU267)=2,\"Y\",\"N\"))","v":"-"},{"$f":"IF($B260=\"N\",\"\",IF(COUNTIF('Enrollment Form'!$DG267:$DP267,\"Other\")=COUNTA('Enrollment Form'!$DK267,'Enrollment Form'!$DH267,'Enrollment Form'!$DN267,'Enrollment Form'!$DQ267),\"Y\",\"N\"))","v":""},{"$f":"IF($B260=\"N\",\"\",IF(OR('Enrollment Form'!B267<>\"Subscriber\",'Enrollment Form'!C267=\"ROC\",COUNTIF('Enrollment Form'!AV267:AW267,\"Yes\")>=1),\"-\",IF(AND('Enrollment Form'!C267=\"Enroll\",COUNTIF('Enrollment Form'!AV267:AW267,\"No\")=2,'Enrollment Form'!AX267=\"\"),\"N\",\"Y\")))","v":""},{"$f":"IF(OR(B260=\"N\",'Enrollment Form'!B267<>\"Subscriber\",'Enrollment Form'!C267=\"ROC\",'Enrollment Form'!O267<>\"Multiple of Salary\"),\"-\",IF(COUNTA('Enrollment Form'!T267:U267)<2,\"N\",\"Y\"))","v":"-"},{"$f":"IF(B260=\"N\",\"\",IF(OR('Enrollment Form'!C267=\"ROC\",'Enrollment Form'!B267<>\"Subscriber\",'Enrollment Form'!O267=\"Waive\",'Enrollment Form'!O267=\"\"),\"-\",IF('Enrollment Form'!P267=\"\",\"N\",\"Y\")))","v":""},{"$f":"IF($B260=\"N\",\"\",IF(AND('Enrollment Form'!$C267=\"ROC\",'Enrollment Form'!$DR267<>\"\"),\"Y\",IF(AND('Enrollment Form'!$C267=\"ROC\",'Enrollment Form'!$DR267=\"\"),\"N\",IF(AND('Enrollment Form'!$C267=\"Enroll\",'Enrollment Form'!$B267=\"Subscriber\",'Enrollment Form'!$CX267=\"No\",'Enrollment Form'!$DR267=\"\"),\"N\",IF(AND('Enrollment Form'!$C267=\"Enroll\",'Enrollment Form'!$B267=\"Subscriber\",'Enrollment Form'!$CX267=\"Yes\"),\"-\",\"Y\")))))","v":""},{"$f":"IF($B260=\"N\",\"\",IF(AND('Enrollment Form'!$C267=\"ROC\",'Enrollment Form'!$DS267<>\"\"),\"Y\",IF(AND('Enrollment Form'!$C267=\"ROC\",'Enrollment Form'!$DS267=\"\"),\"N\",IF(AND('Enrollment Form'!$C267=\"Enroll\",'Enrollment Form'!$B267=\"Subscriber\",'Enrollment Form'!$CX267=\"No\",'Enrollment Form'!$DS267=\"\"),\"N\",IF(AND('Enrollment Form'!$C267=\"Enroll\",'Enrollment Form'!$B267=\"Subscriber\",'Enrollment Form'!$CX267=\"Yes\"),\"-\",\"Y\")))))","v":""},{"$f":"IF('Enrollment Form'!AH267=\"\",\"\",IF(ISERROR(SEARCH(\".\",'Enrollment Form'!AH267,SEARCH(\"@\",'Enrollment Form'!AH267))),\"N\",\"Y\"))","v":""},{"$f":"IF(OR($B260=\"N\",'Enrollment Form'!$G267=\"\"),\"\",IF('Enrollment Form'!$B267<>\"Subscriber\",\"-\",IF(COUNTIF('Enrollment Form'!$AV267:$AW267,\"Yes\")=2,\"N\",\"Y\")))","v":""},{"$f":"IF(OR('Enrollment Form'!$CJ267=\"\",'Enrollment Form'!$CJ267=\"No\"),\"-\",IF(AND('Enrollment Form'!$CJ267=\"Yes\",'Enrollment Form'!$CK267=\"\"),\"N\",\"Y\"))","v":"-"},{"$f":"IF(OR('Enrollment Form'!$CL267=\"\",'Enrollment Form'!$CL267=\"No\"),\"-\",IF(AND('Enrollment Form'!$CL267=\"Yes\",'Enrollment Form'!$CM267=\"\"),\"N\",\"Y\"))","v":"-"},{"$f":"IF(OR('Enrollment Form'!$CN267=\"\",'Enrollment Form'!$CN267=\"No\"),\"-\",IF(AND('Enrollment Form'!$CN267=\"Yes\",'Enrollment Form'!$CO267=\"\"),\"N\",\"Y\"))","v":"-"},{"$f":"IF(OR('Enrollment Form'!$CN267=\"\",'Enrollment Form'!$CN267=\"No\"),\"-\",IF(AND('Enrollment Form'!$CN267=\"Yes\",'Enrollment Form'!$CP267=\"\"),\"N\",\"Y\"))","v":"-"},{"$f":"IF('Enrollment Form'!B267<>\"Subscriber\",\"-\",IF(AND('Enrollment Form'!B267=\"Subscriber\",'Enrollment Form'!C267=\"Enroll\",'Enrollment Form'!AA267=\"\"),\"N\",\"Y\"))","v":"-"},{"$f":"IF(OR('Enrollment Form'!B267=\"Subscriber\",'Enrollment Form'!B267=\"\"),\"-\",IF('Enrollment Form'!BP267=\"\",\"N\",\"Y\"))","v":"-"},{"$f":"IF('Enrollment Form'!B267<>\"Subscriber\",\"-\",IF(AND('Enrollment Form'!B267=\"Subscriber\",'Enrollment Form'!G267=\"\"),\"N\",\"Y\"))","v":"-"},{"$f":"IF('Enrollment Form'!A267=\"\",\"\",IF('Enrollment Form'!B267=\"Subscriber\",\"-\",IF(AND('Enrollment Form'!B267<>\"Subscriber\",'Enrollment Form'!G267='Enrollment Form'!H267),\"N\",\"Y\")))","v":""},{"$f":"COUNTIF(C260:AN260,\"N\")","v":0}]
[268,{"$f":"IF('Enrollment Form'!$A268<>\"\",\"Y\",\"N\")","v":"N"},{"$f":"IF(AND('Enrollment Form'!$B268=\"\",'Enrollment Form'!$C268<>\"\"),\"N\",IF($B261=\"N\",\"\",\"Y\"))","v":""},{"$f":"IF(OR($B261=\"N\",'Enrollment Form'!G268=\"\"),\"\",IF('Enrollment Form'!$B268<>\"Subscriber\",\"\",IF('Enrollment Form'!$G268='Enrollment Form'!$H268,\"Y\",\"N\")))","v":""},{"$f":"IF($B261=\"N\",\"\",IF(AND(COUNTIFS('Enrollment Form'!$H$11:$H$1000,'Enrollment Form'!$H268,'Enrollment Form'!$B$11:$B$1000,'Enrollment Form'!$B268)>1,'Enrollment Form'!$H268<>\"\"),\"N\",\"Y\"))","v":""},{"$f":"IF($B261=\"N\",\"\",IF(LEN('Enrollment Form'!$Y268)=0,\"\",IF(LEN('Enrollment Form'!$Y268)<>5,\"N\",\"Y\")))","v":""},{"$f":"IF($B261=\"N\",\"\",IF(LEN('Enrollment Form'!$AD268=0),\"\",IF(LEN('Enrollment Form'!$AD268)<>5,\"N\",\"Y\")))","v":""},{"$f":"IF($B261=\"N\",\"\",IF(LEN('Enrollment Form'!$BS268=0),\"\",IF(LEN('Enrollment Form'!$BS268)<>5,\"N\",\"Y\")))","v":""},{"$f":"IF($B261=\"N\",\"\",IF(LEN('Enrollment Form'!$AE268)=0,\"\",IF(LEN('Enrollment Form'!$AE268)<>10,\"N\",\"Y\")))","v":""},{"$f":"IF($B261=\"N\",\"\",IF(LEN('Enrollment Form'!$AF268)=0,\"\",IF(LEN('Enrollment Form'!$AF268)<>10,\"N\",\"Y\")))","v":""},{"$f":"IF('Enrollment Form'!$O268<>\"Graded\",\"-\",IF(AND('Enrollment Form'!$O268=\"Graded\",'Enrollment Form'!$AR268<>\"\"),\"Y\",\"N\"))","v":"-"},{"$f":"IF($B261=\"N\",\"\",IF(OR('Enrollment Form'!$B268<>\"Subscriber\",'Enrollment Form'!$C268=\"ROC\"),\"-\",IF(AND('Enrollment Form'!$B268=\"Subscriber\",'Enrollment Form'!$C268=\"Enroll\",'Enrollment Form'!$AJ268<>\"\"),\"Y\",\"N\")))","v":""},{"$f":"IF($B261=\"N\",\"\",IF(OR('Enrollment Form'!$B268<>\"Subscriber\",'Enrollment Form'!$C268=\"ROC\"),\"-\",IF(AND('Enrollment Form'!$B268=\"Subscriber\",'Enrollment Form'!$C268=\"Enroll\",'Enrollment Form'!$AK268<>\"\"),\"Y\",\"N\")))","v":""},{"$f":"IF($B261=\"N\",\"\",IF(OR('Enrollment Form'!$B268<>\"Subscriber\",'Enrollment Form'!$C268=\"ROC\"),\"-\",IF(AND('Enrollment Form'!$B268=\"Subscriber\",'Enrollment Form'!$C268=\"Enroll\",'Enrollment Form'!$AL268<>\"\"),\"Y\",\"N\")))","v":""},{"$f":"IF($B261=\"N\",\"\",IF(OR('Enrollment Form'!$B268<>\"Subscriber\",'Enrollment Form'!$C268=\"ROC\"),\"-\",IF(AND('Enrollment Form'!$B268=\"Subscriber\",'Enrollment Form'!$C268=\"Enroll\",'Enrollment Form'!$AP268<>\"\"),\"Y\",\"N\")))","v":""},{"$f":"IF($B261=\"N\",\"\",IF(OR('Enrollment Form'!$B268<>\"Subscriber\",'Enrollment Form'!$C268=\"ROC\"),\"-\",IF(AND('Enrollment Form'!$B268=\"Subscriber\",'Enrollment Form'!$C268=\"Enroll\",'Enrollment Form'!$AQ268<>\"\"),\"Y\",\"N\")))","v":""},{"$f":"IF($B261=\"N\",\"\",IF(OR('Enrollment Form'!$B268<>\"Subscriber\",'Enrollment Form'!$C268=\"ROC\"),\"-\",IF(AND('Enrollment Form'!$B268=\"Subscriber\",'Enrollment Form'!$C268=\"Enroll\",'Enrollment Form'!$AS268<>\"\"),\"Y\",\"N\")))","v":""},{"$f":"IF($B261=\"N\",\"\",IF($Q261=\"-\",\"-\",IF(AND($Q261=\"Y\",'Enrollment Form'!$AS268=\"No\"),\"-\",IF(AND($Q261=\"Y\",'Enrollment Form'!$AS268=\"Yes\",'Enrollment Form'!$AT268<>\"\"),\"Y\",\"N\"))))","v":""},{"$f":"IF($B261=\"N\",\"\",IF(OR('Enrollment Form'!$B268<>\"Subscriber\",'Enrollment Form'!$C268=\"ROC\"),\"-\",IF(AND('Enrollment Form'!$B268=\"Subscriber\",'Enrollment Form'!$C268=\"Enroll\",'Enrollment Form'!$CV268<>\"\"),\"Y\",\"N\")))","v":""},{"$f":"IF($B261=\"N\",\"\",IF($S261=\"-\",\"-\",IF(AND($S261=\"Y\",'Enrollment Form'!$CV268=\"No\"),\"-\",IF(AND($S261=\"Y\",'Enrollment Form'!$CV268=\"Yes\",'Enrollment Form'!$CW268<>\"\"),\"Y\",\"N\"))))","v":""},{"$f":"IF(OR('Enrollment Form'!$AY268=\"Yes\",'Enrollment Form'!$AY268=\"\"),\"-\",IF(OR(AND('Enrollment Form'!$AY268=\"No\",ISERROR(FIND(\"HMO\",VLOOKUP('Enrollment Form'!G268,'Enrollment Form'!H$11:J$1000,3,FALSE),1))=FALSE,COUNTA('Enrollment Form'!$AZ268:$BC268)=4),AND('Enrollment Form'!$AY268=\"No\",ISERROR(FIND(\"HMO\",VLOOKUP('Enrollment Form'!G268,'Enrollment Form'!H$11:J$1000,3,FALSE),1))=FALSE,COUNTA('Enrollment Form'!$BT268:$BW268)=4)),\"Y\",\"N\"))","v":"-"},{"$f":"IF($B261=\"N\",\"\",IF('Enrollment Form'!$B268=\"Subscriber\",\"-\",IF(COUNTA('Enrollment Form'!$BL268,'Enrollment Form'!$BN268)=2,\"Y\",\"N\")))","v":""},{"$f":"IF($B261=\"N\",\"\",IF(OR('Enrollment Form'!$AX268=\"\",'Enrollment Form'!$AX268=\"No\"),\"-\",IF(AND('Enrollment Form'!$AX268=\"Yes\",COUNTA('Enrollment Form'!$CR268)=1),\"Y\",\"N\")))","v":""},{"$f":"IF(OR('Enrollment Form'!$CR268=\"\",'Enrollment Form'!$CR268=\"No\"),\"-\",IF(COUNTA('Enrollment Form'!$CT268:$CU268)=2,\"Y\",\"N\"))","v":"-"},{"$f":"IF($B261=\"N\",\"\",IF(COUNTIF('Enrollment Form'!$DG268:$DP268,\"Other\")=COUNTA('Enrollment Form'!$DK268,'Enrollment Form'!$DH268,'Enrollment Form'!$DN268,'Enrollment Form'!$DQ268),\"Y\",\"N\"))","v":""},{"$f":"IF($B261=\"N\",\"\",IF(OR('Enrollment Form'!B268<>\"Subscriber\",'Enrollment Form'!C268=\"ROC\",COUNTIF('Enrollment Form'!AV268:AW268,\"Yes\")>=1),\"-\",IF(AND('Enrollment Form'!C268=\"Enroll\",COUNTIF('Enrollment Form'!AV268:AW268,\"No\")=2,'Enrollment Form'!AX268=\"\"),\"N\",\"Y\")))","v":""},{"$f":"IF(OR(B261=\"N\",'Enrollment Form'!B268<>\"Subscriber\",'Enrollment Form'!C268=\"ROC\",'Enrollment Form'!O268<>\"Multiple of Salary\"),\"-\",IF(COUNTA('Enrollment Form'!T268:U268)<2,\"N\",\"Y\"))","v":"-"},{"$f":"IF(B261=\"N\",\"\",IF(OR('Enrollment Form'!C268=\"ROC\",'Enrollment Form'!B268<>\"Subscriber\",'Enrollment Form'!O268=\"Waive\",'Enrollment Form'!O268=\"\"),\"-\",IF('Enrollment Form'!P268=\"\",\"N\",\"Y\")))","v":""},{"$f":"IF($B261=\"N\",\"\",IF(AND('Enrollment Form'!$C268=\"ROC\",'Enrollment Form'!$DR268<>\"\"),\"Y\",IF(AND('Enrollment Form'!$C268=\"ROC\",'Enrollment Form'!$DR268=\"\"),\"N\",IF(AND('Enrollment Form'!$C268=\"Enroll\",'Enrollment Form'!$B268=\"Subscriber\",'Enrollment Form'!$CX268=\"No\",'Enrollment Form'!$DR268=\"\"),\"N\",IF(AND('Enrollment Form'!$C268=\"Enroll\",'Enrollment Form'!$B268=\"Subscriber\",'Enrollment Form'!$CX268=\"Yes\"),\"-\",\"Y\")))))","v":""},{"$f":"IF($B261=\"N\",\"\",IF(AND('Enrollment Form'!$C268=\"ROC\",'Enrollment Form'!$DS268<>\"\"),\"Y\",IF(AND('Enrollment Form'!$C268=\"ROC\",'Enrollment Form'!$DS268=\"\"),\"N\",IF(AND('Enrollment Form'!$C268=\"Enroll\",'Enrollment Form'!$B268=\"Subscriber\",'Enrollment Form'!$CX268=\"No\",'Enrollment Form'!$DS268=\"\"),\"N\",IF(AND('Enrollment Form'!$C268=\"Enroll\",'Enrollment Form'!$B268=\"Subscriber\",'Enrollment Form'!$CX268=\"Yes\"),\"-\",\"Y\")))))","v":""},{"$f":"IF('Enrollment Form'!AH268=\"\",\"\",IF(ISERROR(SEARCH(\".\",'Enrollment Form'!AH268,SEARCH(\"@\",'Enrollment Form'!AH268))),\"N\",\"Y\"))","v":""},{"$f":"IF(OR($B261=\"N\",'Enrollment Form'!$G268=\"\"),\"\",IF('Enrollment Form'!$B268<>\"Subscriber\",\"-\",IF(COUNTIF('Enrollment Form'!$AV268:$AW268,\"Yes\")=2,\"N\",\"Y\")))","v":""},{"$f":"IF(OR('Enrollment Form'!$CJ268=\"\",'Enrollment Form'!$CJ268=\"No\"),\"-\",IF(AND('Enrollment Form'!$CJ268=\"Yes\",'Enrollment Form'!$CK268=\"\"),\"N\",\"Y\"))","v":"-"},{"$f":"IF(OR('Enrollment Form'!$CL268=\"\",'Enrollment Form'!$CL268=\"No\"),\"-\",IF(AND('Enrollment Form'!$CL268=\"Yes\",'Enrollment Form'!$CM268=\"\"),\"N\",\"Y\"))","v":"-"},{"$f":"IF(OR('Enrollment Form'!$CN268=\"\",'Enrollment Form'!$CN268=\"No\"),\"-\",IF(AND('Enrollment Form'!$CN268=\"Yes\",'Enrollment Form'!$CO268=\"\"),\"N\",\"Y\"))","v":"-"},{"$f":"IF(OR('Enrollment Form'!$CN268=\"\",'Enrollment Form'!$CN268=\"No\"),\"-\",IF(AND('Enrollment Form'!$CN268=\"Yes\",'Enrollment Form'!$CP268=\"\"),\"N\",\"Y\"))","v":"-"},{"$f":"IF('Enrollment Form'!B268<>\"Subscriber\",\"-\",IF(AND('Enrollment Form'!B268=\"Subscriber\",'Enrollment Form'!C268=\"Enroll\",'Enrollment Form'!AA268=\"\"),\"N\",\"Y\"))","v":"-"},{"$f":"IF(OR('Enrollment Form'!B268=\"Subscriber\",'Enrollment Form'!B268=\"\"),\"-\",IF('Enrollment Form'!BP268=\"\",\"N\",\"Y\"))","v":"-"},{"$f":"IF('Enrollment Form'!B268<>\"Subscriber\",\"-\",IF(AND('Enrollment Form'!B268=\"Subscriber\",'Enrollment Form'!G268=\"\"),\"N\",\"Y\"))","v":"-"},{"$f":"IF('Enrollment Form'!A268=\"\",\"\",IF('Enrollment Form'!B268=\"Subscriber\",\"-\",IF(AND('Enrollment Form'!B268<>\"Subscriber\",'Enrollment Form'!G268='Enrollment Form'!H268),\"N\",\"Y\")))","v":""},0]
[{"$f":"1+A261","v":269},{"$f":"IF('Enrollment Form'!$A269<>\"\",\"Y\",\"N\")","v":"N"},{"$f":"IF(AND('Enrollment Form'!$B269=\"\",'Enrollment Form'!$C269<>\"\"),\"N\",IF($B262=\"N\",\"\",\"Y\"))","v":""},{"$f":"IF(OR($B262=\"N\",'Enrollment Form'!G269=\"\"),\"\",IF('Enrollment Form'!$B269<>\"Subscriber\",\"\",IF('Enrollment Form'!$G269='Enrollment Form'!$H269,\"Y\",\"N\")))","v":""},{"$f":"IF($B262=\"N\",\"\",IF(AND(COUNTIFS('Enrollment Form'!$H$11:$H$1000,'Enrollment Form'!$H269,'Enrollment Form'!$B$11:$B$1000,'Enrollment Form'!$B269)>1,'Enrollment Form'!$H269<>\"\"),\"N\",\"Y\"))","v":""},{"$f":"IF($B262=\"N\",\"\",IF(LEN('Enrollment Form'!$Y269)=0,\"\",IF(LEN('Enrollment Form'!$Y269)<>5,\"N\",\"Y\")))","v":""},{"$f":"IF($B262=\"N\",\"\",IF(LEN('Enrollment Form'!$AD269=0),\"\",IF(LEN('Enrollment Form'!$AD269)<>5,\"N\",\"Y\")))","v":""},{"$f":"IF($B262=\"N\",\"\",IF(LEN('Enrollment Form'!$BS269=0),\"\",IF(LEN('Enrollment Form'!$BS269)<>5,\"N\",\"Y\")))","v":""},{"$f":"IF($B262=\"N\",\"\",IF(LEN('Enrollment Form'!$AE269)=0,\"\",IF(LEN('Enrollment Form'!$AE269)<>10,\"N\",\"Y\")))","v":""},{"$f":"IF($B262=\"N\",\"\",IF(LEN('Enrollment Form'!$AF269)=0,\"\",IF(LEN('Enrollment Form'!$AF269)<>10,\"N\",\"Y\")))","v":""},{"$f":"IF('Enrollment Form'!$O269<>\"Graded\",\"-\",IF(AND('Enrollment Form'!$O269=\"Graded\",'Enrollment Form'!$AR269<>\"\"),\"Y\",\"N\"))","v":"-"},{"$f":"IF($B262=\"N\",\"\",IF(OR('Enrollment Form'!$B269<>\"Subscriber\",'Enrollment Form'!$C269=\"ROC\"),\"-\",IF(AND('Enrollment Form'!$B269=\"Subscriber\",'Enrollment Form'!$C269=\"Enroll\",'Enrollment Form'!$AJ269<>\"\"),\"Y\",\"N\")))","v":""},{"$f":"IF($B262=\"N\",\"\",IF(OR('Enrollment Form'!$B269<>\"Subscriber\",'Enrollment Form'!$C269=\"ROC\"),\"-\",IF(AND('Enrollment Form'!$B269=\"Subscriber\",'Enrollment Form'!$C269=\"Enroll\",'Enrollment Form'!$AK269<>\"\"),\"Y\",\"N\")))","v":""},{"$f":"IF($B262=\"N\",\"\",IF(OR('Enrollment Form'!$B269<>\"Subscriber\",'Enrollment Form'!$C269=\"ROC\"),\"-\",IF(AND('Enrollment Form'!$B269=\"Subscriber\",'Enrollment Form'!$C269=\"Enroll\",'Enrollment Form'!$AL269<>\"\"),\"Y\",\"N\")))","v":""},{"$f":"IF($B262=\"N\",\"\",IF(OR('Enrollment Form'!$B269<>\"Subscriber\",'Enrollment Form'!$C269=\"ROC\"),\"-\",IF(AND('Enrollment Form'!$B269=\"Subscriber\",'Enrollment Form'!$C269=\"Enroll\",'Enrollment Form'!$AP269<>\"\"),\"Y\",\"N\")))","v":""},{"$f":"IF($B262=\"N\",\"\",IF(OR('Enrollment Form'!$B269<>\"Subscriber\",'Enrollment Form'!$C269=\"ROC\"),\"-\",IF(AND('Enrollment Form'!$B269=\"Subscriber\",'Enrollment Form'!$C269=\"Enroll\",'Enrollment Form'!$AQ269<>\"\"),\"Y\",\"N\")))","v":""},{"$f":"IF($B262=\"N\",\"\",IF(OR('Enrollment Form'!$B269<>\"Subscriber\",'Enrollment Form'!$C269=\"ROC\"),\"-\",IF(AND('Enrollment Form'!$B269=\"Subscriber\",'Enrollment Form'!$C269=\"Enroll\",'Enrollment Form'!$AS269<>\"\"),\"Y\",\"N\")))","v":""},{"$f":"IF($B262=\"N\",\"\",IF($Q262=\"-\",\"-\",IF(AND($Q262=\"Y\",'Enrollment Form'!$AS269=\"No\"),\"-\",IF(AND($Q262=\"Y\",'Enrollment Form'!$AS269=\"Yes\",'Enrollment Form'!$AT269<>\"\"),\"Y\",\"N\"))))","v":""},{"$f":"IF($B262=\"N\",\"\",IF(OR('Enrollment Form'!$B269<>\"Subscriber\",'Enrollment Form'!$C269=\"ROC\"),\"-\",IF(AND('Enrollment Form'!$B269=\"Subscriber\",'Enrollment Form'!$C269=\"Enroll\",'Enrollment Form'!$CV269<>\"\"),\"Y\",\"N\")))","v":""},{"$f":"IF($B262=\"N\",\"\",IF($S262=\"-\",\"-\",IF(AND($S262=\"Y\",'Enrollment Form'!$CV269=\"No\"),\"-\",IF(AND($S262=\"Y\",'Enrollment Form'!$CV269=\"Yes\",'Enrollment Form'!$CW269<>\"\"),\"Y\",\"N\"))))","v":""},{"$f":"IF(OR('Enrollment Form'!$AY269=\"Yes\",'Enrollment Form'!$AY269=\"\"),\"-\",IF(OR(AND('Enrollment Form'!$AY269=\"No\",ISERROR(FIND(\"HMO\",VLOOKUP('Enrollment Form'!G269,'Enrollment Form'!H$11:J$1000,3,FALSE),1))=FALSE,COUNTA('Enrollment Form'!$AZ269:$BC269)=4),AND('Enrollment Form'!$AY269=\"No\",ISERROR(FIND(\"HMO\",VLOOKUP('Enrollment Form'!G269,'Enrollment Form'!H$11:J$1000,3,FALSE),1))=FALSE,COUNTA('Enrollment Form'!$BT269:$BW269)=4)),\"Y\",\"N\"))","v":"-"},{"$f":"IF($B262=\"N\",\"\",IF('Enrollment Form'!$B269=\"Subscriber\",\"-\",IF(COUNTA('Enrollment Form'!$BL269,'Enrollment Form'!$BN269)=2,\"Y\",\"N\")))","v":""},{"$f":"IF($B262=\"N\",\"\",IF(OR('Enrollment Form'!$AX269=\"\",'Enrollment Form'!$AX269=\"No\"),\"-\",IF(AND('Enrollment Form'!$AX269=\"Yes\",COUNTA('Enrollment Form'!$CR269)=1),\"Y\",\"N\")))","v":""},{"$f":"IF(OR('Enrollment Form'!$CR269=\"\",'Enrollment Form'!$CR269=\"No\"),\"-\",IF(COUNTA('Enrollment Form'!$CT269:$CU269)=2,\"Y\",\"N\"))","v":"-"},{"$f":"IF($B262=\"N\",\"\",IF(COUNTIF('Enrollment Form'!$DG269:$DP269,\"Other\")=COUNTA('Enrollment Form'!$DK269,'Enrollment Form'!$DH269,'Enrollment Form'!$DN269,'Enrollment Form'!$DQ269),\"Y\",\"N\"))","v":""},{"$f":"IF($B262=\"N\",\"\",IF(OR('Enrollment Form'!B269<>\"Subscriber\",'Enrollment Form'!C269=\"ROC\",COUNTIF('Enrollment Form'!AV269:AW269,\"Yes\")>=1),\"-\",IF(AND('Enrollment Form'!C269=\"Enroll\",COUNTIF('Enrollment Form'!AV269:AW269,\"No\")=2,'Enrollment Form'!AX269=\"\"),\"N\",\"Y\")))","v":""},{"$f":"IF(OR(B262=\"N\",'Enrollment Form'!B269<>\"Subscriber\",'Enrollment Form'!C269=\"ROC\",'Enrollment Form'!O269<>\"Multiple of Salary\"),\"-\",IF(COUNTA('Enrollment Form'!T269:U269)<2,\"N\",\"Y\"))","v":"-"},{"$f":"IF(B262=\"N\",\"\",IF(OR('Enrollment Form'!C269=\"ROC\",'Enrollment Form'!B269<>\"Subscriber\",'Enrollment Form'!O269=\"Waive\",'Enrollment Form'!O269=\"\"),\"-\",IF('Enrollment Form'!P269=\"\",\"N\",\"Y\")))","v":""},{"$f":"IF($B262=\"N\",\"\",IF(AND('Enrollment Form'!$C269=\"ROC\",'Enrollment Form'!$DR269<>\"\"),\"Y\",IF(AND('Enrollment Form'!$C269=\"ROC\",'Enrollment Form'!$DR269=\"\"),\"N\",IF(AND('Enrollment Form'!$C269=\"Enroll\",'Enrollment Form'!$B269=\"Subscriber\",'Enrollment Form'!$CX269=\"No\",'Enrollment Form'!$DR269=\"\"),\"N\",IF(AND('Enrollment Form'!$C269=\"Enroll\",'Enrollment Form'!$B269=\"Subscriber\",'Enrollment Form'!$CX269=\"Yes\"),\"-\",\"Y\")))))","v":""},{"$f":"IF($B262=\"N\",\"\",IF(AND('Enrollment Form'!$C269=\"ROC\",'Enrollment Form'!$DS269<>\"\"),\"Y\",IF(AND('Enrollment Form'!$C269=\"ROC\",'Enrollment Form'!$DS269=\"\"),\"N\",IF(AND('Enrollment Form'!$C269=\"Enroll\",'Enrollment Form'!$B269=\"Subscriber\",'Enrollment Form'!$CX269=\"No\",'Enrollment Form'!$DS269=\"\"),\"N\",IF(AND('Enrollment Form'!$C269=\"Enroll\",'Enrollment Form'!$B269=\"Subscriber\",'Enrollment Form'!$CX269=\"Yes\"),\"-\",\"Y\")))))","v":""},{"$f":"IF('Enrollment Form'!AH269=\"\",\"\",IF(ISERROR(SEARCH(\".\",'Enrollment Form'!AH269,SEARCH(\"@\",'Enrollment Form'!AH269))),\"N\",\"Y\"))","v":""},{"$f":"IF(OR($B262=\"N\",'Enrollment Form'!$G269=\"\"),\"\",IF('Enrollment Form'!$B269<>\"Subscriber\",\"-\",IF(COUNTIF('Enrollment Form'!$AV269:$AW269,\"Yes\")=2,\"N\",\"Y\")))","v":""},{"$f":"IF(OR('Enrollment Form'!$CJ269=\"\",'Enrollment Form'!$CJ269=\"No\"),\"-\",IF(AND('Enrollment Form'!$CJ269=\"Yes\",'Enrollment Form'!$CK269=\"\"),\"N\",\"Y\"))","v":"-"},{"$f":"IF(OR('Enrollment Form'!$CL269=\"\",'Enrollment Form'!$CL269=\"No\"),\"-\",IF(AND('Enrollment Form'!$CL269=\"Yes\",'Enrollment Form'!$CM269=\"\"),\"N\",\"Y\"))","v":"-"},{"$f":"IF(OR('Enrollment Form'!$CN269=\"\",'Enrollment Form'!$CN269=\"No\"),\"-\",IF(AND('Enrollment Form'!$CN269=\"Yes\",'Enrollment Form'!$CO269=\"\"),\"N\",\"Y\"))","v":"-"},{"$f":"IF(OR('Enrollment Form'!$CN269=\"\",'Enrollment Form'!$CN269=\"No\"),\"-\",IF(AND('Enrollment Form'!$CN269=\"Yes\",'Enrollment Form'!$CP269=\"\"),\"N\",\"Y\"))","v":"-"},{"$f":"IF('Enrollment Form'!B269<>\"Subscriber\",\"-\",IF(AND('Enrollment Form'!B269=\"Subscriber\",'Enrollment Form'!C269=\"Enroll\",'Enrollment Form'!AA269=\"\"),\"N\",\"Y\"))","v":"-"},{"$f":"IF(OR('Enrollment Form'!B269=\"Subscriber\",'Enrollment Form'!B269=\"\"),\"-\",IF('Enrollment Form'!BP269=\"\",\"N\",\"Y\"))","v":"-"},{"$f":"IF('Enrollment Form'!B269<>\"Subscriber\",\"-\",IF(AND('Enrollment Form'!B269=\"Subscriber\",'Enrollment Form'!G269=\"\"),\"N\",\"Y\"))","v":"-"},{"$f":"IF('Enrollment Form'!A269=\"\",\"\",IF('Enrollment Form'!B269=\"Subscriber\",\"-\",IF(AND('Enrollment Form'!B269<>\"Subscriber\",'Enrollment Form'!G269='Enrollment Form'!H269),\"N\",\"Y\")))","v":""},0]
[270,{"$f":"IF('Enrollment Form'!$A270<>\"\",\"Y\",\"N\")","v":"N"},{"$f":"IF(AND('Enrollment Form'!$B270=\"\",'Enrollment Form'!$C270<>\"\"),\"N\",IF($B263=\"N\",\"\",\"Y\"))","v":""},{"$f":"IF(OR($B263=\"N\",'Enrollment Form'!G270=\"\"),\"\",IF('Enrollment Form'!$B270<>\"Subscriber\",\"\",IF('Enrollment Form'!$G270='Enrollment Form'!$H270,\"Y\",\"N\")))","v":""},{"$f":"IF($B263=\"N\",\"\",IF(AND(COUNTIFS('Enrollment Form'!$H$11:$H$1000,'Enrollment Form'!$H270,'Enrollment Form'!$B$11:$B$1000,'Enrollment Form'!$B270)>1,'Enrollment Form'!$H270<>\"\"),\"N\",\"Y\"))","v":""},{"$f":"IF($B263=\"N\",\"\",IF(LEN('Enrollment Form'!$Y270)=0,\"\",IF(LEN('Enrollment Form'!$Y270)<>5,\"N\",\"Y\")))","v":""},{"$f":"IF($B263=\"N\",\"\",IF(LEN('Enrollment Form'!$AD270=0),\"\",IF(LEN('Enrollment Form'!$AD270)<>5,\"N\",\"Y\")))","v":""},{"$f":"IF($B263=\"N\",\"\",IF(LEN('Enrollment Form'!$BS270=0),\"\",IF(LEN('Enrollment Form'!$BS270)<>5,\"N\",\"Y\")))","v":""},{"$f":"IF($B263=\"N\",\"\",IF(LEN('Enrollment Form'!$AE270)=0,\"\",IF(LEN('Enrollment Form'!$AE270)<>10,\"N\",\"Y\")))","v":""},{"$f":"IF($B263=\"N\",\"\",IF(LEN('Enrollment Form'!$AF270)=0,\"\",IF(LEN('Enrollment Form'!$AF270)<>10,\"N\",\"Y\")))","v":""},{"$f":"IF('Enrollment Form'!$O270<>\"Graded\",\"-\",IF(AND('Enrollment Form'!$O270=\"Graded\",'Enrollment Form'!$AR270<>\"\"),\"Y\",\"N\"))","v":"-"},{"$f":"IF($B263=\"N\",\"\",IF(OR('Enrollment Form'!$B270<>\"Subscriber\",'Enrollment Form'!$C270=\"ROC\"),\"-\",IF(AND('Enrollment Form'!$B270=\"Subscriber\",'Enrollment Form'!$C270=\"Enroll\",'Enrollment Form'!$AJ270<>\"\"),\"Y\",\"N\")))","v":""},{"$f":"IF($B263=\"N\",\"\",IF(OR('Enrollment Form'!$B270<>\"Subscriber\",'Enrollment Form'!$C270=\"ROC\"),\"-\",IF(AND('Enrollment Form'!$B270=\"Subscriber\",'Enrollment Form'!$C270=\"Enroll\",'Enrollment Form'!$AK270<>\"\"),\"Y\",\"N\")))","v":""},{"$f":"IF($B263=\"N\",\"\",IF(OR('Enrollment Form'!$B270<>\"Subscriber\",'Enrollment Form'!$C270=\"ROC\"),\"-\",IF(AND('Enrollment Form'!$B270=\"Subscriber\",'Enrollment Form'!$C270=\"Enroll\",'Enrollment Form'!$AL270<>\"\"),\"Y\",\"N\")))","v":""},{"$f":"IF($B263=\"N\",\"\",IF(OR('Enrollment Form'!$B270<>\"Subscriber\",'Enrollment Form'!$C270=\"ROC\"),\"-\",IF(AND('Enrollment Form'!$B270=\"Subscriber\",'Enrollment Form'!$C270=\"Enroll\",'Enrollment Form'!$AP270<>\"\"),\"Y\",\"N\")))","v":""},{"$f":"IF($B263=\"N\",\"\",IF(OR('Enrollment Form'!$B270<>\"Subscriber\",'Enrollment Form'!$C270=\"ROC\"),\"-\",IF(AND('Enrollment Form'!$B270=\"Subscriber\",'Enrollment Form'!$C270=\"Enroll\",'Enrollment Form'!$AQ270<>\"\"),\"Y\",\"N\")))","v":""},{"$f":"IF($B263=\"N\",\"\",IF(OR('Enrollment Form'!$B270<>\"Subscriber\",'Enrollment Form'!$C270=\"ROC\"),\"-\",IF(AND('Enrollment Form'!$B270=\"Subscriber\",'Enrollment Form'!$C270=\"Enroll\",'Enrollment Form'!$AS270<>\"\"),\"Y\",\"N\")))","v":""},{"$f":"IF($B263=\"N\",\"\",IF($Q263=\"-\",\"-\",IF(AND($Q263=\"Y\",'Enrollment Form'!$AS270=\"No\"),\"-\",IF(AND($Q263=\"Y\",'Enrollment Form'!$AS270=\"Yes\",'Enrollment Form'!$AT270<>\"\"),\"Y\",\"N\"))))","v":""},{"$f":"IF($B263=\"N\",\"\",IF(OR('Enrollment Form'!$B270<>\"Subscriber\",'Enrollment Form'!$C270=\"ROC\"),\"-\",IF(AND('Enrollment Form'!$B270=\"Subscriber\",'Enrollment Form'!$C270=\"Enroll\",'Enrollment Form'!$CV270<>\"\"),\"Y\",\"N\")))","v":""},{"$f":"IF($B263=\"N\",\"\",IF($S263=\"-\",\"-\",IF(AND($S263=\"Y\",'Enrollment Form'!$CV270=\"No\"),\"-\",IF(AND($S263=\"Y\",'Enrollment Form'!$CV270=\"Yes\",'Enrollment Form'!$CW270<>\"\"),\"Y\",\"N\"))))","v":""},{"$f":"IF(OR('Enrollment Form'!$AY270=\"Yes\",'Enrollment Form'!$AY270=\"\"),\"-\",IF(OR(AND('Enrollment Form'!$AY270=\"No\",ISERROR(FIND(\"HMO\",VLOOKUP('Enrollment Form'!G270,'Enrollment Form'!H$11:J$1000,3,FALSE),1))=FALSE,COUNTA('Enrollment Form'!$AZ270:$BC270)=4),AND('Enrollment Form'!$AY270=\"No\",ISERROR(FIND(\"HMO\",VLOOKUP('Enrollment Form'!G270,'Enrollment Form'!H$11:J$1000,3,FALSE),1))=FALSE,COUNTA('Enrollment Form'!$BT270:$BW270)=4)),\"Y\",\"N\"))","v":"-"},{"$f":"IF($B263=\"N\",\"\",IF('Enrollment Form'!$B270=\"Subscriber\",\"-\",IF(COUNTA('Enrollment Form'!$BL270,'Enrollment Form'!$BN270)=2,\"Y\",\"N\")))","v":""},{"$f":"IF($B263=\"N\",\"\",IF(OR('Enrollment Form'!$AX270=\"\",'Enrollment Form'!$AX270=\"No\"),\"-\",IF(AND('Enrollment Form'!$AX270=\"Yes\",COUNTA('Enrollment Form'!$CR270)=1),\"Y\",\"N\")))","v":""},{"$f":"IF(OR('Enrollment Form'!$CR270=\"\",'Enrollment Form'!$CR270=\"No\"),\"-\",IF(COUNTA('Enrollment Form'!$CT270:$CU270)=2,\"Y\",\"N\"))","v":"-"},{"$f":"IF($B263=\"N\",\"\",IF(COUNTIF('Enrollment Form'!$DG270:$DP270,\"Other\")=COUNTA('Enrollment Form'!$DK270,'Enrollment Form'!$DH270,'Enrollment Form'!$DN270,'Enrollment Form'!$DQ270),\"Y\",\"N\"))","v":""},{"$f":"IF($B263=\"N\",\"\",IF(OR('Enrollment Form'!B270<>\"Subscriber\",'Enrollment Form'!C270=\"ROC\",COUNTIF('Enrollment Form'!AV270:AW270,\"Yes\")>=1),\"-\",IF(AND('Enrollment Form'!C270=\"Enroll\",COUNTIF('Enrollment Form'!AV270:AW270,\"No\")=2,'Enrollment Form'!AX270=\"\"),\"N\",\"Y\")))","v":""},{"$f":"IF(OR(B263=\"N\",'Enrollment Form'!B270<>\"Subscriber\",'Enrollment Form'!C270=\"ROC\",'Enrollment Form'!O270<>\"Multiple of Salary\"),\"-\",IF(COUNTA('Enrollment Form'!T270:U270)<2,\"N\",\"Y\"))","v":"-"},{"$f":"IF(B263=\"N\",\"\",IF(OR('Enrollment Form'!C270=\"ROC\",'Enrollment Form'!B270<>\"Subscriber\",'Enrollment Form'!O270=\"Waive\",'Enrollment Form'!O270=\"\"),\"-\",IF('Enrollment Form'!P270=\"\",\"N\",\"Y\")))","v":""},{"$f":"IF($B263=\"N\",\"\",IF(AND('Enrollment Form'!$C270=\"ROC\",'Enrollment Form'!$DR270<>\"\"),\"Y\",IF(AND('Enrollment Form'!$C270=\"ROC\",'Enrollment Form'!$DR270=\"\"),\"N\",IF(AND('Enrollment Form'!$C270=\"Enroll\",'Enrollment Form'!$B270=\"Subscriber\",'Enrollment Form'!$CX270=\"No\",'Enrollment Form'!$DR270=\"\"),\"N\",IF(AND('Enrollment Form'!$C270=\"Enroll\",'Enrollment Form'!$B270=\"Subscriber\",'Enrollment Form'!$CX270=\"Yes\"),\"-\",\"Y\")))))","v":""},{"$f":"IF($B263=\"N\",\"\",IF(AND('Enrollment Form'!$C270=\"ROC\",'Enrollment Form'!$DS270<>\"\"),\"Y\",IF(AND('Enrollment Form'!$C270=\"ROC\",'Enrollment Form'!$DS270=\"\"),\"N\",IF(AND('Enrollment Form'!$C270=\"Enroll\",'Enrollment Form'!$B270=\"Subscriber\",'Enrollment Form'!$CX270=\"No\",'Enrollment Form'!$DS270=\"\"),\"N\",IF(AND('Enrollment Form'!$C270=\"Enroll\",'Enrollment Form'!$B270=\"Subscriber\",'Enrollment Form'!$CX270=\"Yes\"),\"-\",\"Y\")))))","v":""},{"$f":"IF('Enrollment Form'!AH270=\"\",\"\",IF(ISERROR(SEARCH(\".\",'Enrollment Form'!AH270,SEARCH(\"@\",'Enrollment Form'!AH270))),\"N\",\"Y\"))","v":""},{"$f":"IF(OR($B263=\"N\",'Enrollment Form'!$G270=\"\"),\"\",IF('Enrollment Form'!$B270<>\"Subscriber\",\"-\",IF(COUNTIF('Enrollment Form'!$AV270:$AW270,\"Yes\")=2,\"N\",\"Y\")))","v":""},{"$f":"IF(OR('Enrollment Form'!$CJ270=\"\",'Enrollment Form'!$CJ270=\"No\"),\"-\",IF(AND('Enrollment Form'!$CJ270=\"Yes\",'Enrollment Form'!$CK270=\"\"),\"N\",\"Y\"))","v":"-"},{"$f":"IF(OR('Enrollment Form'!$CL270=\"\",'Enrollment Form'!$CL270=\"No\"),\"-\",IF(AND('Enrollment Form'!$CL270=\"Yes\",'Enrollment Form'!$CM270=\"\"),\"N\",\"Y\"))","v":"-"},{"$f":"IF(OR('Enrollment Form'!$CN270=\"\",'Enrollment Form'!$CN270=\"No\"),\"-\",IF(AND('Enrollment Form'!$CN270=\"Yes\",'Enrollment Form'!$CO270=\"\"),\"N\",\"Y\"))","v":"-"},{"$f":"IF(OR('Enrollment Form'!$CN270=\"\",'Enrollment Form'!$CN270=\"No\"),\"-\",IF(AND('Enrollment Form'!$CN270=\"Yes\",'Enrollment Form'!$CP270=\"\"),\"N\",\"Y\"))","v":"-"},{"$f":"IF('Enrollment Form'!B270<>\"Subscriber\",\"-\",IF(AND('Enrollment Form'!B270=\"Subscriber\",'Enrollment Form'!C270=\"Enroll\",'Enrollment Form'!AA270=\"\"),\"N\",\"Y\"))","v":"-"},{"$f":"IF(OR('Enrollment Form'!B270=\"Subscriber\",'Enrollment Form'!B270=\"\"),\"-\",IF('Enrollment Form'!BP270=\"\",\"N\",\"Y\"))","v":"-"},{"$f":"IF('Enrollment Form'!B270<>\"Subscriber\",\"-\",IF(AND('Enrollment Form'!B270=\"Subscriber\",'Enrollment Form'!G270=\"\"),\"N\",\"Y\"))","v":"-"},{"$f":"IF('Enrollment Form'!A270=\"\",\"\",IF('Enrollment Form'!B270=\"Subscriber\",\"-\",IF(AND('Enrollment Form'!B270<>\"Subscriber\",'Enrollment Form'!G270='Enrollment Form'!H270),\"N\",\"Y\")))","v":""},0]
[271,{"$f":"IF('Enrollment Form'!$A271<>\"\",\"Y\",\"N\")","v":"N"},{"$f":"IF(AND('Enrollment Form'!$B271=\"\",'Enrollment Form'!$C271<>\"\"),\"N\",IF($B264=\"N\",\"\",\"Y\"))","v":""},{"$f":"IF(OR($B264=\"N\",'Enrollment Form'!G271=\"\"),\"\",IF('Enrollment Form'!$B271<>\"Subscriber\",\"\",IF('Enrollment Form'!$G271='Enrollment Form'!$H271,\"Y\",\"N\")))","v":""},{"$f":"IF($B264=\"N\",\"\",IF(AND(COUNTIFS('Enrollment Form'!$H$11:$H$1000,'Enrollment Form'!$H271,'Enrollment Form'!$B$11:$B$1000,'Enrollment Form'!$B271)>1,'Enrollment Form'!$H271<>\"\"),\"N\",\"Y\"))","v":""},{"$f":"IF($B264=\"N\",\"\",IF(LEN('Enrollment Form'!$Y271)=0,\"\",IF(LEN('Enrollment Form'!$Y271)<>5,\"N\",\"Y\")))","v":""},{"$f":"IF($B264=\"N\",\"\",IF(LEN('Enrollment Form'!$AD271=0),\"\",IF(LEN('Enrollment Form'!$AD271)<>5,\"N\",\"Y\")))","v":""},{"$f":"IF($B264=\"N\",\"\",IF(LEN('Enrollment Form'!$BS271=0),\"\",IF(LEN('Enrollment Form'!$BS271)<>5,\"N\",\"Y\")))","v":""},{"$f":"IF($B264=\"N\",\"\",IF(LEN('Enrollment Form'!$AE271)=0,\"\",IF(LEN('Enrollment Form'!$AE271)<>10,\"N\",\"Y\")))","v":""},{"$f":"IF($B264=\"N\",\"\",IF(LEN('Enrollment Form'!$AF271)=0,\"\",IF(LEN('Enrollment Form'!$AF271)<>10,\"N\",\"Y\")))","v":""},{"$f":"IF('Enrollment Form'!$O271<>\"Graded\",\"-\",IF(AND('Enrollment Form'!$O271=\"Graded\",'Enrollment Form'!$AR271<>\"\"),\"Y\",\"N\"))","v":"-"},{"$f":"IF($B264=\"N\",\"\",IF(OR('Enrollment Form'!$B271<>\"Subscriber\",'Enrollment Form'!$C271=\"ROC\"),\"-\",IF(AND('Enrollment Form'!$B271=\"Subscriber\",'Enrollment Form'!$C271=\"Enroll\",'Enrollment Form'!$AJ271<>\"\"),\"Y\",\"N\")))","v":""},{"$f":"IF($B264=\"N\",\"\",IF(OR('Enrollment Form'!$B271<>\"Subscriber\",'Enrollment Form'!$C271=\"ROC\"),\"-\",IF(AND('Enrollment Form'!$B271=\"Subscriber\",'Enrollment Form'!$C271=\"Enroll\",'Enrollment Form'!$AK271<>\"\"),\"Y\",\"N\")))","v":""},{"$f":"IF($B264=\"N\",\"\",IF(OR('Enrollment Form'!$B271<>\"Subscriber\",'Enrollment Form'!$C271=\"ROC\"),\"-\",IF(AND('Enrollment Form'!$B271=\"Subscriber\",'Enrollment Form'!$C271=\"Enroll\",'Enrollment Form'!$AL271<>\"\"),\"Y\",\"N\")))","v":""},{"$f":"IF($B264=\"N\",\"\",IF(OR('Enrollment Form'!$B271<>\"Subscriber\",'Enrollment Form'!$C271=\"ROC\"),\"-\",IF(AND('Enrollment Form'!$B271=\"Subscriber\",'Enrollment Form'!$C271=\"Enroll\",'Enrollment Form'!$AP271<>\"\"),\"Y\",\"N\")))","v":""},{"$f":"IF($B264=\"N\",\"\",IF(OR('Enrollment Form'!$B271<>\"Subscriber\",'Enrollment Form'!$C271=\"ROC\"),\"-\",IF(AND('Enrollment Form'!$B271=\"Subscriber\",'Enrollment Form'!$C271=\"Enroll\",'Enrollment Form'!$AQ271<>\"\"),\"Y\",\"N\")))","v":""},{"$f":"IF($B264=\"N\",\"\",IF(OR('Enrollment Form'!$B271<>\"Subscriber\",'Enrollment Form'!$C271=\"ROC\"),\"-\",IF(AND('Enrollment Form'!$B271=\"Subscriber\",'Enrollment Form'!$C271=\"Enroll\",'Enrollment Form'!$AS271<>\"\"),\"Y\",\"N\")))","v":""},{"$f":"IF($B264=\"N\",\"\",IF($Q264=\"-\",\"-\",IF(AND($Q264=\"Y\",'Enrollment Form'!$AS271=\"No\"),\"-\",IF(AND($Q264=\"Y\",'Enrollment Form'!$AS271=\"Yes\",'Enrollment Form'!$AT271<>\"\"),\"Y\",\"N\"))))","v":""},{"$f":"IF($B264=\"N\",\"\",IF(OR('Enrollment Form'!$B271<>\"Subscriber\",'Enrollment Form'!$C271=\"ROC\"),\"-\",IF(AND('Enrollment Form'!$B271=\"Subscriber\",'Enrollment Form'!$C271=\"Enroll\",'Enrollment Form'!$CV271<>\"\"),\"Y\",\"N\")))","v":""},{"$f":"IF($B264=\"N\",\"\",IF($S264=\"-\",\"-\",IF(AND($S264=\"Y\",'Enrollment Form'!$CV271=\"No\"),\"-\",IF(AND($S264=\"Y\",'Enrollment Form'!$CV271=\"Yes\",'Enrollment Form'!$CW271<>\"\"),\"Y\",\"N\"))))","v":""},{"$f":"IF(OR('Enrollment Form'!$AY271=\"Yes\",'Enrollment Form'!$AY271=\"\"),\"-\",IF(OR(AND('Enrollment Form'!$AY271=\"No\",ISERROR(FIND(\"HMO\",VLOOKUP('Enrollment Form'!G271,'Enrollment Form'!H$11:J$1000,3,FALSE),1))=FALSE,COUNTA('Enrollment Form'!$AZ271:$BC271)=4),AND('Enrollment Form'!$AY271=\"No\",ISERROR(FIND(\"HMO\",VLOOKUP('Enrollment Form'!G271,'Enrollment Form'!H$11:J$1000,3,FALSE),1))=FALSE,COUNTA('Enrollment Form'!$BT271:$BW271)=4)),\"Y\",\"N\"))","v":"-"},{"$f":"IF($B264=\"N\",\"\",IF('Enrollment Form'!$B271=\"Subscriber\",\"-\",IF(COUNTA('Enrollment Form'!$BL271,'Enrollment Form'!$BN271)=2,\"Y\",\"N\")))","v":""},{"$f":"IF($B264=\"N\",\"\",IF(OR('Enrollment Form'!$AX271=\"\",'Enrollment Form'!$AX271=\"No\"),\"-\",IF(AND('Enrollment Form'!$AX271=\"Yes\",COUNTA('Enrollment Form'!$CR271)=1),\"Y\",\"N\")))","v":""},{"$f":"IF(OR('Enrollment Form'!$CR271=\"\",'Enrollment Form'!$CR271=\"No\"),\"-\",IF(COUNTA('Enrollment Form'!$CT271:$CU271)=2,\"Y\",\"N\"))","v":"-"},{"$f":"IF($B264=\"N\",\"\",IF(COUNTIF('Enrollment Form'!$DG271:$DP271,\"Other\")=COUNTA('Enrollment Form'!$DK271,'Enrollment Form'!$DH271,'Enrollment Form'!$DN271,'Enrollment Form'!$DQ271),\"Y\",\"N\"))","v":""},{"$f":"IF($B264=\"N\",\"\",IF(OR('Enrollment Form'!B271<>\"Subscriber\",'Enrollment Form'!C271=\"ROC\",COUNTIF('Enrollment Form'!AV271:AW271,\"Yes\")>=1),\"-\",IF(AND('Enrollment Form'!C271=\"Enroll\",COUNTIF('Enrollment Form'!AV271:AW271,\"No\")=2,'Enrollment Form'!AX271=\"\"),\"N\",\"Y\")))","v":""},{"$f":"IF(OR(B264=\"N\",'Enrollment Form'!B271<>\"Subscriber\",'Enrollment Form'!C271=\"ROC\",'Enrollment Form'!O271<>\"Multiple of Salary\"),\"-\",IF(COUNTA('Enrollment Form'!T271:U271)<2,\"N\",\"Y\"))","v":"-"},{"$f":"IF(B264=\"N\",\"\",IF(OR('Enrollment Form'!C271=\"ROC\",'Enrollment Form'!B271<>\"Subscriber\",'Enrollment Form'!O271=\"Waive\",'Enrollment Form'!O271=\"\"),\"-\",IF('Enrollment Form'!P271=\"\",\"N\",\"Y\")))","v":""},{"$f":"IF($B264=\"N\",\"\",IF(AND('Enrollment Form'!$C271=\"ROC\",'Enrollment Form'!$DR271<>\"\"),\"Y\",IF(AND('Enrollment Form'!$C271=\"ROC\",'Enrollment Form'!$DR271=\"\"),\"N\",IF(AND('Enrollment Form'!$C271=\"Enroll\",'Enrollment Form'!$B271=\"Subscriber\",'Enrollment Form'!$CX271=\"No\",'Enrollment Form'!$DR271=\"\"),\"N\",IF(AND('Enrollment Form'!$C271=\"Enroll\",'Enrollment Form'!$B271=\"Subscriber\",'Enrollment Form'!$CX271=\"Yes\"),\"-\",\"Y\")))))","v":""},{"$f":"IF($B264=\"N\",\"\",IF(AND('Enrollment Form'!$C271=\"ROC\",'Enrollment Form'!$DS271<>\"\"),\"Y\",IF(AND('Enrollment Form'!$C271=\"ROC\",'Enrollment Form'!$DS271=\"\"),\"N\",IF(AND('Enrollment Form'!$C271=\"Enroll\",'Enrollment Form'!$B271=\"Subscriber\",'Enrollment Form'!$CX271=\"No\",'Enrollment Form'!$DS271=\"\"),\"N\",IF(AND('Enrollment Form'!$C271=\"Enroll\",'Enrollment Form'!$B271=\"Subscriber\",'Enrollment Form'!$CX271=\"Yes\"),\"-\",\"Y\")))))","v":""},{"$f":"IF('Enrollment Form'!AH271=\"\",\"\",IF(ISERROR(SEARCH(\".\",'Enrollment Form'!AH271,SEARCH(\"@\",'Enrollment Form'!AH271))),\"N\",\"Y\"))","v":""},{"$f":"IF(OR($B264=\"N\",'Enrollment Form'!$G271=\"\"),\"\",IF('Enrollment Form'!$B271<>\"Subscriber\",\"-\",IF(COUNTIF('Enrollment Form'!$AV271:$AW271,\"Yes\")=2,\"N\",\"Y\")))","v":""},{"$f":"IF(OR('Enrollment Form'!$CJ271=\"\",'Enrollment Form'!$CJ271=\"No\"),\"-\",IF(AND('Enrollment Form'!$CJ271=\"Yes\",'Enrollment Form'!$CK271=\"\"),\"N\",\"Y\"))","v":"-"},{"$f":"IF(OR('Enrollment Form'!$CL271=\"\",'Enrollment Form'!$CL271=\"No\"),\"-\",IF(AND('Enrollment Form'!$CL271=\"Yes\",'Enrollment Form'!$CM271=\"\"),\"N\",\"Y\"))","v":"-"},{"$f":"IF(OR('Enrollment Form'!$CN271=\"\",'Enrollment Form'!$CN271=\"No\"),\"-\",IF(AND('Enrollment Form'!$CN271=\"Yes\",'Enrollment Form'!$CO271=\"\"),\"N\",\"Y\"))","v":"-"},{"$f":"IF(OR('Enrollment Form'!$CN271=\"\",'Enrollment Form'!$CN271=\"No\"),\"-\",IF(AND('Enrollment Form'!$CN271=\"Yes\",'Enrollment Form'!$CP271=\"\"),\"N\",\"Y\"))","v":"-"},{"$f":"IF('Enrollment Form'!B271<>\"Subscriber\",\"-\",IF(AND('Enrollment Form'!B271=\"Subscriber\",'Enrollment Form'!C271=\"Enroll\",'Enrollment Form'!AA271=\"\"),\"N\",\"Y\"))","v":"-"},{"$f":"IF(OR('Enrollment Form'!B271=\"Subscriber\",'Enrollment Form'!B271=\"\"),\"-\",IF('Enrollment Form'!BP271=\"\",\"N\",\"Y\"))","v":"-"},{"$f":"IF('Enrollment Form'!B271<>\"Subscriber\",\"-\",IF(AND('Enrollment Form'!B271=\"Subscriber\",'Enrollment Form'!G271=\"\"),\"N\",\"Y\"))","v":"-"},{"$f":"IF('Enrollment Form'!A271=\"\",\"\",IF('Enrollment Form'!B271=\"Subscriber\",\"-\",IF(AND('Enrollment Form'!B271<>\"Subscriber\",'Enrollment Form'!G271='Enrollment Form'!H271),\"N\",\"Y\")))","v":""},0]
[272,{"$f":"IF('Enrollment Form'!$A272<>\"\",\"Y\",\"N\")","v":"N"},{"$f":"IF(AND('Enrollment Form'!$B272=\"\",'Enrollment Form'!$C272<>\"\"),\"N\",IF($B265=\"N\",\"\",\"Y\"))","v":""},{"$f":"IF(OR($B265=\"N\",'Enrollment Form'!G272=\"\"),\"\",IF('Enrollment Form'!$B272<>\"Subscriber\",\"\",IF('Enrollment Form'!$G272='Enrollment Form'!$H272,\"Y\",\"N\")))","v":""},{"$f":"IF($B265=\"N\",\"\",IF(AND(COUNTIFS('Enrollment Form'!$H$11:$H$1000,'Enrollment Form'!$H272,'Enrollment Form'!$B$11:$B$1000,'Enrollment Form'!$B272)>1,'Enrollment Form'!$H272<>\"\"),\"N\",\"Y\"))","v":""},{"$f":"IF($B265=\"N\",\"\",IF(LEN('Enrollment Form'!$Y272)=0,\"\",IF(LEN('Enrollment Form'!$Y272)<>5,\"N\",\"Y\")))","v":""},{"$f":"IF($B265=\"N\",\"\",IF(LEN('Enrollment Form'!$AD272=0),\"\",IF(LEN('Enrollment Form'!$AD272)<>5,\"N\",\"Y\")))","v":""},{"$f":"IF($B265=\"N\",\"\",IF(LEN('Enrollment Form'!$BS272=0),\"\",IF(LEN('Enrollment Form'!$BS272)<>5,\"N\",\"Y\")))","v":""},{"$f":"IF($B265=\"N\",\"\",IF(LEN('Enrollment Form'!$AE272)=0,\"\",IF(LEN('Enrollment Form'!$AE272)<>10,\"N\",\"Y\")))","v":""},{"$f":"IF($B265=\"N\",\"\",IF(LEN('Enrollment Form'!$AF272)=0,\"\",IF(LEN('Enrollment Form'!$AF272)<>10,\"N\",\"Y\")))","v":""},{"$f":"IF('Enrollment Form'!$O272<>\"Graded\",\"-\",IF(AND('Enrollment Form'!$O272=\"Graded\",'Enrollment Form'!$AR272<>\"\"),\"Y\",\"N\"))","v":"-"},{"$f":"IF($B265=\"N\",\"\",IF(OR('Enrollment Form'!$B272<>\"Subscriber\",'Enrollment Form'!$C272=\"ROC\"),\"-\",IF(AND('Enrollment Form'!$B272=\"Subscriber\",'Enrollment Form'!$C272=\"Enroll\",'Enrollment Form'!$AJ272<>\"\"),\"Y\",\"N\")))","v":""},{"$f":"IF($B265=\"N\",\"\",IF(OR('Enrollment Form'!$B272<>\"Subscriber\",'Enrollment Form'!$C272=\"ROC\"),\"-\",IF(AND('Enrollment Form'!$B272=\"Subscriber\",'Enrollment Form'!$C272=\"Enroll\",'Enrollment Form'!$AK272<>\"\"),\"Y\",\"N\")))","v":""},{"$f":"IF($B265=\"N\",\"\",IF(OR('Enrollment Form'!$B272<>\"Subscriber\",'Enrollment Form'!$C272=\"ROC\"),\"-\",IF(AND('Enrollment Form'!$B272=\"Subscriber\",'Enrollment Form'!$C272=\"Enroll\",'Enrollment Form'!$AL272<>\"\"),\"Y\",\"N\")))","v":""},{"$f":"IF($B265=\"N\",\"\",IF(OR('Enrollment Form'!$B272<>\"Subscriber\",'Enrollment Form'!$C272=\"ROC\"),\"-\",IF(AND('Enrollment Form'!$B272=\"Subscriber\",'Enrollment Form'!$C272=\"Enroll\",'Enrollment Form'!$AP272<>\"\"),\"Y\",\"N\")))","v":""},{"$f":"IF($B265=\"N\",\"\",IF(OR('Enrollment Form'!$B272<>\"Subscriber\",'Enrollment Form'!$C272=\"ROC\"),\"-\",IF(AND('Enrollment Form'!$B272=\"Subscriber\",'Enrollment Form'!$C272=\"Enroll\",'Enrollment Form'!$AQ272<>\"\"),\"Y\",\"N\")))","v":""},{"$f":"IF($B265=\"N\",\"\",IF(OR('Enrollment Form'!$B272<>\"Subscriber\",'Enrollment Form'!$C272=\"ROC\"),\"-\",IF(AND('Enrollment Form'!$B272=\"Subscriber\",'Enrollment Form'!$C272=\"Enroll\",'Enrollment Form'!$AS272<>\"\"),\"Y\",\"N\")))","v":""},{"$f":"IF($B265=\"N\",\"\",IF($Q265=\"-\",\"-\",IF(AND($Q265=\"Y\",'Enrollment Form'!$AS272=\"No\"),\"-\",IF(AND($Q265=\"Y\",'Enrollment Form'!$AS272=\"Yes\",'Enrollment Form'!$AT272<>\"\"),\"Y\",\"N\"))))","v":""},{"$f":"IF($B265=\"N\",\"\",IF(OR('Enrollment Form'!$B272<>\"Subscriber\",'Enrollment Form'!$C272=\"ROC\"),\"-\",IF(AND('Enrollment Form'!$B272=\"Subscriber\",'Enrollment Form'!$C272=\"Enroll\",'Enrollment Form'!$CV272<>\"\"),\"Y\",\"N\")))","v":""},{"$f":"IF($B265=\"N\",\"\",IF($S265=\"-\",\"-\",IF(AND($S265=\"Y\",'Enrollment Form'!$CV272=\"No\"),\"-\",IF(AND($S265=\"Y\",'Enrollment Form'!$CV272=\"Yes\",'Enrollment Form'!$CW272<>\"\"),\"Y\",\"N\"))))","v":""},{"$f":"IF(OR('Enrollment Form'!$AY272=\"Yes\",'Enrollment Form'!$AY272=\"\"),\"-\",IF(OR(AND('Enrollment Form'!$AY272=\"No\",ISERROR(FIND(\"HMO\",VLOOKUP('Enrollment Form'!G272,'Enrollment Form'!H$11:J$1000,3,FALSE),1))=FALSE,COUNTA('Enrollment Form'!$AZ272:$BC272)=4),AND('Enrollment Form'!$AY272=\"No\",ISERROR(FIND(\"HMO\",VLOOKUP('Enrollment Form'!G272,'Enrollment Form'!H$11:J$1000,3,FALSE),1))=FALSE,COUNTA('Enrollment Form'!$BT272:$BW272)=4)),\"Y\",\"N\"))","v":"-"},{"$f":"IF($B265=\"N\",\"\",IF('Enrollment Form'!$B272=\"Subscriber\",\"-\",IF(COUNTA('Enrollment Form'!$BL272,'Enrollment Form'!$BN272)=2,\"Y\",\"N\")))","v":""},{"$f":"IF($B265=\"N\",\"\",IF(OR('Enrollment Form'!$AX272=\"\",'Enrollment Form'!$AX272=\"No\"),\"-\",IF(AND('Enrollment Form'!$AX272=\"Yes\",COUNTA('Enrollment Form'!$CR272)=1),\"Y\",\"N\")))","v":""},{"$f":"IF(OR('Enrollment Form'!$CR272=\"\",'Enrollment Form'!$CR272=\"No\"),\"-\",IF(COUNTA('Enrollment Form'!$CT272:$CU272)=2,\"Y\",\"N\"))","v":"-"},{"$f":"IF($B265=\"N\",\"\",IF(COUNTIF('Enrollment Form'!$DG272:$DP272,\"Other\")=COUNTA('Enrollment Form'!$DK272,'Enrollment Form'!$DH272,'Enrollment Form'!$DN272,'Enrollment Form'!$DQ272),\"Y\",\"N\"))","v":""},{"$f":"IF($B265=\"N\",\"\",IF(OR('Enrollment Form'!B272<>\"Subscriber\",'Enrollment Form'!C272=\"ROC\",COUNTIF('Enrollment Form'!AV272:AW272,\"Yes\")>=1),\"-\",IF(AND('Enrollment Form'!C272=\"Enroll\",COUNTIF('Enrollment Form'!AV272:AW272,\"No\")=2,'Enrollment Form'!AX272=\"\"),\"N\",\"Y\")))","v":""},{"$f":"IF(OR(B265=\"N\",'Enrollment Form'!B272<>\"Subscriber\",'Enrollment Form'!C272=\"ROC\",'Enrollment Form'!O272<>\"Multiple of Salary\"),\"-\",IF(COUNTA('Enrollment Form'!T272:U272)<2,\"N\",\"Y\"))","v":"-"},{"$f":"IF(B265=\"N\",\"\",IF(OR('Enrollment Form'!C272=\"ROC\",'Enrollment Form'!B272<>\"Subscriber\",'Enrollment Form'!O272=\"Waive\",'Enrollment Form'!O272=\"\"),\"-\",IF('Enrollment Form'!P272=\"\",\"N\",\"Y\")))","v":""},{"$f":"IF($B265=\"N\",\"\",IF(AND('Enrollment Form'!$C272=\"ROC\",'Enrollment Form'!$DR272<>\"\"),\"Y\",IF(AND('Enrollment Form'!$C272=\"ROC\",'Enrollment Form'!$DR272=\"\"),\"N\",IF(AND('Enrollment Form'!$C272=\"Enroll\",'Enrollment Form'!$B272=\"Subscriber\",'Enrollment Form'!$CX272=\"No\",'Enrollment Form'!$DR272=\"\"),\"N\",IF(AND('Enrollment Form'!$C272=\"Enroll\",'Enrollment Form'!$B272=\"Subscriber\",'Enrollment Form'!$CX272=\"Yes\"),\"-\",\"Y\")))))","v":""},{"$f":"IF($B265=\"N\",\"\",IF(AND('Enrollment Form'!$C272=\"ROC\",'Enrollment Form'!$DS272<>\"\"),\"Y\",IF(AND('Enrollment Form'!$C272=\"ROC\",'Enrollment Form'!$DS272=\"\"),\"N\",IF(AND('Enrollment Form'!$C272=\"Enroll\",'Enrollment Form'!$B272=\"Subscriber\",'Enrollment Form'!$CX272=\"No\",'Enrollment Form'!$DS272=\"\"),\"N\",IF(AND('Enrollment Form'!$C272=\"Enroll\",'Enrollment Form'!$B272=\"Subscriber\",'Enrollment Form'!$CX272=\"Yes\"),\"-\",\"Y\")))))","v":""},{"$f":"IF('Enrollment Form'!AH272=\"\",\"\",IF(ISERROR(SEARCH(\".\",'Enrollment Form'!AH272,SEARCH(\"@\",'Enrollment Form'!AH272))),\"N\",\"Y\"))","v":""},{"$f":"IF(OR($B265=\"N\",'Enrollment Form'!$G272=\"\"),\"\",IF('Enrollment Form'!$B272<>\"Subscriber\",\"-\",IF(COUNTIF('Enrollment Form'!$AV272:$AW272,\"Yes\")=2,\"N\",\"Y\")))","v":""},{"$f":"IF(OR('Enrollment Form'!$CJ272=\"\",'Enrollment Form'!$CJ272=\"No\"),\"-\",IF(AND('Enrollment Form'!$CJ272=\"Yes\",'Enrollment Form'!$CK272=\"\"),\"N\",\"Y\"))","v":"-"},{"$f":"IF(OR('Enrollment Form'!$CL272=\"\",'Enrollment Form'!$CL272=\"No\"),\"-\",IF(AND('Enrollment Form'!$CL272=\"Yes\",'Enrollment Form'!$CM272=\"\"),\"N\",\"Y\"))","v":"-"},{"$f":"IF(OR('Enrollment Form'!$CN272=\"\",'Enrollment Form'!$CN272=\"No\"),\"-\",IF(AND('Enrollment Form'!$CN272=\"Yes\",'Enrollment Form'!$CO272=\"\"),\"N\",\"Y\"))","v":"-"},{"$f":"IF(OR('Enrollment Form'!$CN272=\"\",'Enrollment Form'!$CN272=\"No\"),\"-\",IF(AND('Enrollment Form'!$CN272=\"Yes\",'Enrollment Form'!$CP272=\"\"),\"N\",\"Y\"))","v":"-"},{"$f":"IF('Enrollment Form'!B272<>\"Subscriber\",\"-\",IF(AND('Enrollment Form'!B272=\"Subscriber\",'Enrollment Form'!C272=\"Enroll\",'Enrollment Form'!AA272=\"\"),\"N\",\"Y\"))","v":"-"},{"$f":"IF(OR('Enrollment Form'!B272=\"Subscriber\",'Enrollment Form'!B272=\"\"),\"-\",IF('Enrollment Form'!BP272=\"\",\"N\",\"Y\"))","v":"-"},{"$f":"IF('Enrollment Form'!B272<>\"Subscriber\",\"-\",IF(AND('Enrollment Form'!B272=\"Subscriber\",'Enrollment Form'!G272=\"\"),\"N\",\"Y\"))","v":"-"},{"$f":"IF('Enrollment Form'!A272=\"\",\"\",IF('Enrollment Form'!B272=\"Subscriber\",\"-\",IF(AND('Enrollment Form'!B272<>\"Subscriber\",'Enrollment Form'!G272='Enrollment Form'!H272),\"N\",\"Y\")))","v":""},0]
[273,{"$f":"IF('Enrollment Form'!$A273<>\"\",\"Y\",\"N\")","v":"N"},{"$f":"IF(AND('Enrollment Form'!$B273=\"\",'Enrollment Form'!$C273<>\"\"),\"N\",IF($B266=\"N\",\"\",\"Y\"))","v":""},{"$f":"IF(OR($B266=\"N\",'Enrollment Form'!G273=\"\"),\"\",IF('Enrollment Form'!$B273<>\"Subscriber\",\"\",IF('Enrollment Form'!$G273='Enrollment Form'!$H273,\"Y\",\"N\")))","v":""},{"$f":"IF($B266=\"N\",\"\",IF(AND(COUNTIFS('Enrollment Form'!$H$11:$H$1000,'Enrollment Form'!$H273,'Enrollment Form'!$B$11:$B$1000,'Enrollment Form'!$B273)>1,'Enrollment Form'!$H273<>\"\"),\"N\",\"Y\"))","v":""},{"$f":"IF($B266=\"N\",\"\",IF(LEN('Enrollment Form'!$Y273)=0,\"\",IF(LEN('Enrollment Form'!$Y273)<>5,\"N\",\"Y\")))","v":""},{"$f":"IF($B266=\"N\",\"\",IF(LEN('Enrollment Form'!$AD273=0),\"\",IF(LEN('Enrollment Form'!$AD273)<>5,\"N\",\"Y\")))","v":""},{"$f":"IF($B266=\"N\",\"\",IF(LEN('Enrollment Form'!$BS273=0),\"\",IF(LEN('Enrollment Form'!$BS273)<>5,\"N\",\"Y\")))","v":""},{"$f":"IF($B266=\"N\",\"\",IF(LEN('Enrollment Form'!$AE273)=0,\"\",IF(LEN('Enrollment Form'!$AE273)<>10,\"N\",\"Y\")))","v":""},{"$f":"IF($B266=\"N\",\"\",IF(LEN('Enrollment Form'!$AF273)=0,\"\",IF(LEN('Enrollment Form'!$AF273)<>10,\"N\",\"Y\")))","v":""},{"$f":"IF('Enrollment Form'!$O273<>\"Graded\",\"-\",IF(AND('Enrollment Form'!$O273=\"Graded\",'Enrollment Form'!$AR273<>\"\"),\"Y\",\"N\"))","v":"-"},{"$f":"IF($B266=\"N\",\"\",IF(OR('Enrollment Form'!$B273<>\"Subscriber\",'Enrollment Form'!$C273=\"ROC\"),\"-\",IF(AND('Enrollment Form'!$B273=\"Subscriber\",'Enrollment Form'!$C273=\"Enroll\",'Enrollment Form'!$AJ273<>\"\"),\"Y\",\"N\")))","v":""},{"$f":"IF($B266=\"N\",\"\",IF(OR('Enrollment Form'!$B273<>\"Subscriber\",'Enrollment Form'!$C273=\"ROC\"),\"-\",IF(AND('Enrollment Form'!$B273=\"Subscriber\",'Enrollment Form'!$C273=\"Enroll\",'Enrollment Form'!$AK273<>\"\"),\"Y\",\"N\")))","v":""},{"$f":"IF($B266=\"N\",\"\",IF(OR('Enrollment Form'!$B273<>\"Subscriber\",'Enrollment Form'!$C273=\"ROC\"),\"-\",IF(AND('Enrollment Form'!$B273=\"Subscriber\",'Enrollment Form'!$C273=\"Enroll\",'Enrollment Form'!$AL273<>\"\"),\"Y\",\"N\")))","v":""},{"$f":"IF($B266=\"N\",\"\",IF(OR('Enrollment Form'!$B273<>\"Subscriber\",'Enrollment Form'!$C273=\"ROC\"),\"-\",IF(AND('Enrollment Form'!$B273=\"Subscriber\",'Enrollment Form'!$C273=\"Enroll\",'Enrollment Form'!$AP273<>\"\"),\"Y\",\"N\")))","v":""},{"$f":"IF($B266=\"N\",\"\",IF(OR('Enrollment Form'!$B273<>\"Subscriber\",'Enrollment Form'!$C273=\"ROC\"),\"-\",IF(AND('Enrollment Form'!$B273=\"Subscriber\",'Enrollment Form'!$C273=\"Enroll\",'Enrollment Form'!$AQ273<>\"\"),\"Y\",\"N\")))","v":""},{"$f":"IF($B266=\"N\",\"\",IF(OR('Enrollment Form'!$B273<>\"Subscriber\",'Enrollment Form'!$C273=\"ROC\"),\"-\",IF(AND('Enrollment Form'!$B273=\"Subscriber\",'Enrollment Form'!$C273=\"Enroll\",'Enrollment Form'!$AS273<>\"\"),\"Y\",\"N\")))","v":""},{"$f":"IF($B266=\"N\",\"\",IF($Q266=\"-\",\"-\",IF(AND($Q266=\"Y\",'Enrollment Form'!$AS273=\"No\"),\"-\",IF(AND($Q266=\"Y\",'Enrollment Form'!$AS273=\"Yes\",'Enrollment Form'!$AT273<>\"\"),\"Y\",\"N\"))))","v":""},{"$f":"IF($B266=\"N\",\"\",IF(OR('Enrollment Form'!$B273<>\"Subscriber\",'Enrollment Form'!$C273=\"ROC\"),\"-\",IF(AND('Enrollment Form'!$B273=\"Subscriber\",'Enrollment Form'!$C273=\"Enroll\",'Enrollment Form'!$CV273<>\"\"),\"Y\",\"N\")))","v":""},{"$f":"IF($B266=\"N\",\"\",IF($S266=\"-\",\"-\",IF(AND($S266=\"Y\",'Enrollment Form'!$CV273=\"No\"),\"-\",IF(AND($S266=\"Y\",'Enrollment Form'!$CV273=\"Yes\",'Enrollment Form'!$CW273<>\"\"),\"Y\",\"N\"))))","v":""},{"$f":"IF(OR('Enrollment Form'!$AY273=\"Yes\",'Enrollment Form'!$AY273=\"\"),\"-\",IF(OR(AND('Enrollment Form'!$AY273=\"No\",ISERROR(FIND(\"HMO\",VLOOKUP('Enrollment Form'!G273,'Enrollment Form'!H$11:J$1000,3,FALSE),1))=FALSE,COUNTA('Enrollment Form'!$AZ273:$BC273)=4),AND('Enrollment Form'!$AY273=\"No\",ISERROR(FIND(\"HMO\",VLOOKUP('Enrollment Form'!G273,'Enrollment Form'!H$11:J$1000,3,FALSE),1))=FALSE,COUNTA('Enrollment Form'!$BT273:$BW273)=4)),\"Y\",\"N\"))","v":"-"},{"$f":"IF($B266=\"N\",\"\",IF('Enrollment Form'!$B273=\"Subscriber\",\"-\",IF(COUNTA('Enrollment Form'!$BL273,'Enrollment Form'!$BN273)=2,\"Y\",\"N\")))","v":""},{"$f":"IF($B266=\"N\",\"\",IF(OR('Enrollment Form'!$AX273=\"\",'Enrollment Form'!$AX273=\"No\"),\"-\",IF(AND('Enrollment Form'!$AX273=\"Yes\",COUNTA('Enrollment Form'!$CR273)=1),\"Y\",\"N\")))","v":""},{"$f":"IF(OR('Enrollment Form'!$CR273=\"\",'Enrollment Form'!$CR273=\"No\"),\"-\",IF(COUNTA('Enrollment Form'!$CT273:$CU273)=2,\"Y\",\"N\"))","v":"-"},{"$f":"IF($B266=\"N\",\"\",IF(COUNTIF('Enrollment Form'!$DG273:$DP273,\"Other\")=COUNTA('Enrollment Form'!$DK273,'Enrollment Form'!$DH273,'Enrollment Form'!$DN273,'Enrollment Form'!$DQ273),\"Y\",\"N\"))","v":""},{"$f":"IF($B266=\"N\",\"\",IF(OR('Enrollment Form'!B273<>\"Subscriber\",'Enrollment Form'!C273=\"ROC\",COUNTIF('Enrollment Form'!AV273:AW273,\"Yes\")>=1),\"-\",IF(AND('Enrollment Form'!C273=\"Enroll\",COUNTIF('Enrollment Form'!AV273:AW273,\"No\")=2,'Enrollment Form'!AX273=\"\"),\"N\",\"Y\")))","v":""},{"$f":"IF(OR(B266=\"N\",'Enrollment Form'!B273<>\"Subscriber\",'Enrollment Form'!C273=\"ROC\",'Enrollment Form'!O273<>\"Multiple of Salary\"),\"-\",IF(COUNTA('Enrollment Form'!T273:U273)<2,\"N\",\"Y\"))","v":"-"},{"$f":"IF(B266=\"N\",\"\",IF(OR('Enrollment Form'!C273=\"ROC\",'Enrollment Form'!B273<>\"Subscriber\",'Enrollment Form'!O273=\"Waive\",'Enrollment Form'!O273=\"\"),\"-\",IF('Enrollment Form'!P273=\"\",\"N\",\"Y\")))","v":""},{"$f":"IF($B266=\"N\",\"\",IF(AND('Enrollment Form'!$C273=\"ROC\",'Enrollment Form'!$DR273<>\"\"),\"Y\",IF(AND('Enrollment Form'!$C273=\"ROC\",'Enrollment Form'!$DR273=\"\"),\"N\",IF(AND('Enrollment Form'!$C273=\"Enroll\",'Enrollment Form'!$B273=\"Subscriber\",'Enrollment Form'!$CX273=\"No\",'Enrollment Form'!$DR273=\"\"),\"N\",IF(AND('Enrollment Form'!$C273=\"Enroll\",'Enrollment Form'!$B273=\"Subscriber\",'Enrollment Form'!$CX273=\"Yes\"),\"-\",\"Y\")))))","v":""},{"$f":"IF($B266=\"N\",\"\",IF(AND('Enrollment Form'!$C273=\"ROC\",'Enrollment Form'!$DS273<>\"\"),\"Y\",IF(AND('Enrollment Form'!$C273=\"ROC\",'Enrollment Form'!$DS273=\"\"),\"N\",IF(AND('Enrollment Form'!$C273=\"Enroll\",'Enrollment Form'!$B273=\"Subscriber\",'Enrollment Form'!$CX273=\"No\",'Enrollment Form'!$DS273=\"\"),\"N\",IF(AND('Enrollment Form'!$C273=\"Enroll\",'Enrollment Form'!$B273=\"Subscriber\",'Enrollment Form'!$CX273=\"Yes\"),\"-\",\"Y\")))))","v":""},{"$f":"IF('Enrollment Form'!AH273=\"\",\"\",IF(ISERROR(SEARCH(\".\",'Enrollment Form'!AH273,SEARCH(\"@\",'Enrollment Form'!AH273))),\"N\",\"Y\"))","v":""},{"$f":"IF(OR($B266=\"N\",'Enrollment Form'!$G273=\"\"),\"\",IF('Enrollment Form'!$B273<>\"Subscriber\",\"-\",IF(COUNTIF('Enrollment Form'!$AV273:$AW273,\"Yes\")=2,\"N\",\"Y\")))","v":""},{"$f":"IF(OR('Enrollment Form'!$CJ273=\"\",'Enrollment Form'!$CJ273=\"No\"),\"-\",IF(AND('Enrollment Form'!$CJ273=\"Yes\",'Enrollment Form'!$CK273=\"\"),\"N\",\"Y\"))","v":"-"},{"$f":"IF(OR('Enrollment Form'!$CL273=\"\",'Enrollment Form'!$CL273=\"No\"),\"-\",IF(AND('Enrollment Form'!$CL273=\"Yes\",'Enrollment Form'!$CM273=\"\"),\"N\",\"Y\"))","v":"-"},{"$f":"IF(OR('Enrollment Form'!$CN273=\"\",'Enrollment Form'!$CN273=\"No\"),\"-\",IF(AND('Enrollment Form'!$CN273=\"Yes\",'Enrollment Form'!$CO273=\"\"),\"N\",\"Y\"))","v":"-"},{"$f":"IF(OR('Enrollment Form'!$CN273=\"\",'Enrollment Form'!$CN273=\"No\"),\"-\",IF(AND('Enrollment Form'!$CN273=\"Yes\",'Enrollment Form'!$CP273=\"\"),\"N\",\"Y\"))","v":"-"},{"$f":"IF('Enrollment Form'!B273<>\"Subscriber\",\"-\",IF(AND('Enrollment Form'!B273=\"Subscriber\",'Enrollment Form'!C273=\"Enroll\",'Enrollment Form'!AA273=\"\"),\"N\",\"Y\"))","v":"-"},{"$f":"IF(OR('Enrollment Form'!B273=\"Subscriber\",'Enrollment Form'!B273=\"\"),\"-\",IF('Enrollment Form'!BP273=\"\",\"N\",\"Y\"))","v":"-"},{"$f":"IF('Enrollment Form'!B273<>\"Subscriber\",\"-\",IF(AND('Enrollment Form'!B273=\"Subscriber\",'Enrollment Form'!G273=\"\"),\"N\",\"Y\"))","v":"-"},{"$f":"IF('Enrollment Form'!A273=\"\",\"\",IF('Enrollment Form'!B273=\"Subscriber\",\"-\",IF(AND('Enrollment Form'!B273<>\"Subscriber\",'Enrollment Form'!G273='Enrollment Form'!H273),\"N\",\"Y\")))","v":""},0]
[274,{"$f":"IF('Enrollment Form'!$A274<>\"\",\"Y\",\"N\")","v":"N"},{"$f":"IF(AND('Enrollment Form'!$B274=\"\",'Enrollment Form'!$C274<>\"\"),\"N\",IF($B267=\"N\",\"\",\"Y\"))","v":""},{"$f":"IF(OR($B267=\"N\",'Enrollment Form'!G274=\"\"),\"\",IF('Enrollment Form'!$B274<>\"Subscriber\",\"\",IF('Enrollment Form'!$G274='Enrollment Form'!$H274,\"Y\",\"N\")))","v":""},{"$f":"IF($B267=\"N\",\"\",IF(AND(COUNTIFS('Enrollment Form'!$H$11:$H$1000,'Enrollment Form'!$H274,'Enrollment Form'!$B$11:$B$1000,'Enrollment Form'!$B274)>1,'Enrollment Form'!$H274<>\"\"),\"N\",\"Y\"))","v":""},{"$f":"IF($B267=\"N\",\"\",IF(LEN('Enrollment Form'!$Y274)=0,\"\",IF(LEN('Enrollment Form'!$Y274)<>5,\"N\",\"Y\")))","v":""},{"$f":"IF($B267=\"N\",\"\",IF(LEN('Enrollment Form'!$AD274=0),\"\",IF(LEN('Enrollment Form'!$AD274)<>5,\"N\",\"Y\")))","v":""},{"$f":"IF($B267=\"N\",\"\",IF(LEN('Enrollment Form'!$BS274=0),\"\",IF(LEN('Enrollment Form'!$BS274)<>5,\"N\",\"Y\")))","v":""},{"$f":"IF($B267=\"N\",\"\",IF(LEN('Enrollment Form'!$AE274)=0,\"\",IF(LEN('Enrollment Form'!$AE274)<>10,\"N\",\"Y\")))","v":""},{"$f":"IF($B267=\"N\",\"\",IF(LEN('Enrollment Form'!$AF274)=0,\"\",IF(LEN('Enrollment Form'!$AF274)<>10,\"N\",\"Y\")))","v":""},{"$f":"IF('Enrollment Form'!$O274<>\"Graded\",\"-\",IF(AND('Enrollment Form'!$O274=\"Graded\",'Enrollment Form'!$AR274<>\"\"),\"Y\",\"N\"))","v":"-"},{"$f":"IF($B267=\"N\",\"\",IF(OR('Enrollment Form'!$B274<>\"Subscriber\",'Enrollment Form'!$C274=\"ROC\"),\"-\",IF(AND('Enrollment Form'!$B274=\"Subscriber\",'Enrollment Form'!$C274=\"Enroll\",'Enrollment Form'!$AJ274<>\"\"),\"Y\",\"N\")))","v":""},{"$f":"IF($B267=\"N\",\"\",IF(OR('Enrollment Form'!$B274<>\"Subscriber\",'Enrollment Form'!$C274=\"ROC\"),\"-\",IF(AND('Enrollment Form'!$B274=\"Subscriber\",'Enrollment Form'!$C274=\"Enroll\",'Enrollment Form'!$AK274<>\"\"),\"Y\",\"N\")))","v":""},{"$f":"IF($B267=\"N\",\"\",IF(OR('Enrollment Form'!$B274<>\"Subscriber\",'Enrollment Form'!$C274=\"ROC\"),\"-\",IF(AND('Enrollment Form'!$B274=\"Subscriber\",'Enrollment Form'!$C274=\"Enroll\",'Enrollment Form'!$AL274<>\"\"),\"Y\",\"N\")))","v":""},{"$f":"IF($B267=\"N\",\"\",IF(OR('Enrollment Form'!$B274<>\"Subscriber\",'Enrollment Form'!$C274=\"ROC\"),\"-\",IF(AND('Enrollment Form'!$B274=\"Subscriber\",'Enrollment Form'!$C274=\"Enroll\",'Enrollment Form'!$AP274<>\"\"),\"Y\",\"N\")))","v":""},{"$f":"IF($B267=\"N\",\"\",IF(OR('Enrollment Form'!$B274<>\"Subscriber\",'Enrollment Form'!$C274=\"ROC\"),\"-\",IF(AND('Enrollment Form'!$B274=\"Subscriber\",'Enrollment Form'!$C274=\"Enroll\",'Enrollment Form'!$AQ274<>\"\"),\"Y\",\"N\")))","v":""},{"$f":"IF($B267=\"N\",\"\",IF(OR('Enrollment Form'!$B274<>\"Subscriber\",'Enrollment Form'!$C274=\"ROC\"),\"-\",IF(AND('Enrollment Form'!$B274=\"Subscriber\",'Enrollment Form'!$C274=\"Enroll\",'Enrollment Form'!$AS274<>\"\"),\"Y\",\"N\")))","v":""},{"$f":"IF($B267=\"N\",\"\",IF($Q267=\"-\",\"-\",IF(AND($Q267=\"Y\",'Enrollment Form'!$AS274=\"No\"),\"-\",IF(AND($Q267=\"Y\",'Enrollment Form'!$AS274=\"Yes\",'Enrollment Form'!$AT274<>\"\"),\"Y\",\"N\"))))","v":""},{"$f":"IF($B267=\"N\",\"\",IF(OR('Enrollment Form'!$B274<>\"Subscriber\",'Enrollment Form'!$C274=\"ROC\"),\"-\",IF(AND('Enrollment Form'!$B274=\"Subscriber\",'Enrollment Form'!$C274=\"Enroll\",'Enrollment Form'!$CV274<>\"\"),\"Y\",\"N\")))","v":""},{"$f":"IF($B267=\"N\",\"\",IF($S267=\"-\",\"-\",IF(AND($S267=\"Y\",'Enrollment Form'!$CV274=\"No\"),\"-\",IF(AND($S267=\"Y\",'Enrollment Form'!$CV274=\"Yes\",'Enrollment Form'!$CW274<>\"\"),\"Y\",\"N\"))))","v":""},{"$f":"IF(OR('Enrollment Form'!$AY274=\"Yes\",'Enrollment Form'!$AY274=\"\"),\"-\",IF(OR(AND('Enrollment Form'!$AY274=\"No\",ISERROR(FIND(\"HMO\",VLOOKUP('Enrollment Form'!G274,'Enrollment Form'!H$11:J$1000,3,FALSE),1))=FALSE,COUNTA('Enrollment Form'!$AZ274:$BC274)=4),AND('Enrollment Form'!$AY274=\"No\",ISERROR(FIND(\"HMO\",VLOOKUP('Enrollment Form'!G274,'Enrollment Form'!H$11:J$1000,3,FALSE),1))=FALSE,COUNTA('Enrollment Form'!$BT274:$BW274)=4)),\"Y\",\"N\"))","v":"-"},{"$f":"IF($B267=\"N\",\"\",IF('Enrollment Form'!$B274=\"Subscriber\",\"-\",IF(COUNTA('Enrollment Form'!$BL274,'Enrollment Form'!$BN274)=2,\"Y\",\"N\")))","v":""},{"$f":"IF($B267=\"N\",\"\",IF(OR('Enrollment Form'!$AX274=\"\",'Enrollment Form'!$AX274=\"No\"),\"-\",IF(AND('Enrollment Form'!$AX274=\"Yes\",COUNTA('Enrollment Form'!$CR274)=1),\"Y\",\"N\")))","v":""},{"$f":"IF(OR('Enrollment Form'!$CR274=\"\",'Enrollment Form'!$CR274=\"No\"),\"-\",IF(COUNTA('Enrollment Form'!$CT274:$CU274)=2,\"Y\",\"N\"))","v":"-"},{"$f":"IF($B267=\"N\",\"\",IF(COUNTIF('Enrollment Form'!$DG274:$DP274,\"Other\")=COUNTA('Enrollment Form'!$DK274,'Enrollment Form'!$DH274,'Enrollment Form'!$DN274,'Enrollment Form'!$DQ274),\"Y\",\"N\"))","v":""},{"$f":"IF($B267=\"N\",\"\",IF(OR('Enrollment Form'!B274<>\"Subscriber\",'Enrollment Form'!C274=\"ROC\",COUNTIF('Enrollment Form'!AV274:AW274,\"Yes\")>=1),\"-\",IF(AND('Enrollment Form'!C274=\"Enroll\",COUNTIF('Enrollment Form'!AV274:AW274,\"No\")=2,'Enrollment Form'!AX274=\"\"),\"N\",\"Y\")))","v":""},{"$f":"IF(OR(B267=\"N\",'Enrollment Form'!B274<>\"Subscriber\",'Enrollment Form'!C274=\"ROC\",'Enrollment Form'!O274<>\"Multiple of Salary\"),\"-\",IF(COUNTA('Enrollment Form'!T274:U274)<2,\"N\",\"Y\"))","v":"-"},{"$f":"IF(B267=\"N\",\"\",IF(OR('Enrollment Form'!C274=\"ROC\",'Enrollment Form'!B274<>\"Subscriber\",'Enrollment Form'!O274=\"Waive\",'Enrollment Form'!O274=\"\"),\"-\",IF('Enrollment Form'!P274=\"\",\"N\",\"Y\")))","v":""},{"$f":"IF($B267=\"N\",\"\",IF(AND('Enrollment Form'!$C274=\"ROC\",'Enrollment Form'!$DR274<>\"\"),\"Y\",IF(AND('Enrollment Form'!$C274=\"ROC\",'Enrollment Form'!$DR274=\"\"),\"N\",IF(AND('Enrollment Form'!$C274=\"Enroll\",'Enrollment Form'!$B274=\"Subscriber\",'Enrollment Form'!$CX274=\"No\",'Enrollment Form'!$DR274=\"\"),\"N\",IF(AND('Enrollment Form'!$C274=\"Enroll\",'Enrollment Form'!$B274=\"Subscriber\",'Enrollment Form'!$CX274=\"Yes\"),\"-\",\"Y\")))))","v":""},{"$f":"IF($B267=\"N\",\"\",IF(AND('Enrollment Form'!$C274=\"ROC\",'Enrollment Form'!$DS274<>\"\"),\"Y\",IF(AND('Enrollment Form'!$C274=\"ROC\",'Enrollment Form'!$DS274=\"\"),\"N\",IF(AND('Enrollment Form'!$C274=\"Enroll\",'Enrollment Form'!$B274=\"Subscriber\",'Enrollment Form'!$CX274=\"No\",'Enrollment Form'!$DS274=\"\"),\"N\",IF(AND('Enrollment Form'!$C274=\"Enroll\",'Enrollment Form'!$B274=\"Subscriber\",'Enrollment Form'!$CX274=\"Yes\"),\"-\",\"Y\")))))","v":""},{"$f":"IF('Enrollment Form'!AH274=\"\",\"\",IF(ISERROR(SEARCH(\".\",'Enrollment Form'!AH274,SEARCH(\"@\",'Enrollment Form'!AH274))),\"N\",\"Y\"))","v":""},{"$f":"IF(OR($B267=\"N\",'Enrollment Form'!$G274=\"\"),\"\",IF('Enrollment Form'!$B274<>\"Subscriber\",\"-\",IF(COUNTIF('Enrollment Form'!$AV274:$AW274,\"Yes\")=2,\"N\",\"Y\")))","v":""},{"$f":"IF(OR('Enrollment Form'!$CJ274=\"\",'Enrollment Form'!$CJ274=\"No\"),\"-\",IF(AND('Enrollment Form'!$CJ274=\"Yes\",'Enrollment Form'!$CK274=\"\"),\"N\",\"Y\"))","v":"-"},{"$f":"IF(OR('Enrollment Form'!$CL274=\"\",'Enrollment Form'!$CL274=\"No\"),\"-\",IF(AND('Enrollment Form'!$CL274=\"Yes\",'Enrollment Form'!$CM274=\"\"),\"N\",\"Y\"))","v":"-"},{"$f":"IF(OR('Enrollment Form'!$CN274=\"\",'Enrollment Form'!$CN274=\"No\"),\"-\",IF(AND('Enrollment Form'!$CN274=\"Yes\",'Enrollment Form'!$CO274=\"\"),\"N\",\"Y\"))","v":"-"},{"$f":"IF(OR('Enrollment Form'!$CN274=\"\",'Enrollment Form'!$CN274=\"No\"),\"-\",IF(AND('Enrollment Form'!$CN274=\"Yes\",'Enrollment Form'!$CP274=\"\"),\"N\",\"Y\"))","v":"-"},{"$f":"IF('Enrollment Form'!B274<>\"Subscriber\",\"-\",IF(AND('Enrollment Form'!B274=\"Subscriber\",'Enrollment Form'!C274=\"Enroll\",'Enrollment Form'!AA274=\"\"),\"N\",\"Y\"))","v":"-"},{"$f":"IF(OR('Enrollment Form'!B274=\"Subscriber\",'Enrollment Form'!B274=\"\"),\"-\",IF('Enrollment Form'!BP274=\"\",\"N\",\"Y\"))","v":"-"},{"$f":"IF('Enrollment Form'!B274<>\"Subscriber\",\"-\",IF(AND('Enrollment Form'!B274=\"Subscriber\",'Enrollment Form'!G274=\"\"),\"N\",\"Y\"))","v":"-"},{"$f":"IF('Enrollment Form'!A274=\"\",\"\",IF('Enrollment Form'!B274=\"Subscriber\",\"-\",IF(AND('Enrollment Form'!B274<>\"Subscriber\",'Enrollment Form'!G274='Enrollment Form'!H274),\"N\",\"Y\")))","v":""},0]
[275,{"$f":"IF('Enrollment Form'!$A275<>\"\",\"Y\",\"N\")","v":"N"},{"$f":"IF(AND('Enrollment Form'!$B275=\"\",'Enrollment Form'!$C275<>\"\"),\"N\",IF($B268=\"N\",\"\",\"Y\"))","v":""},{"$f":"IF(OR($B268=\"N\",'Enrollment Form'!G275=\"\"),\"\",IF('Enrollment Form'!$B275<>\"Subscriber\",\"\",IF('Enrollment Form'!$G275='Enrollment Form'!$H275,\"Y\",\"N\")))","v":""},{"$f":"IF($B268=\"N\",\"\",IF(AND(COUNTIFS('Enrollment Form'!$H$11:$H$1000,'Enrollment Form'!$H275,'Enrollment Form'!$B$11:$B$1000,'Enrollment Form'!$B275)>1,'Enrollment Form'!$H275<>\"\"),\"N\",\"Y\"))","v":""},{"$f":"IF($B268=\"N\",\"\",IF(LEN('Enrollment Form'!$Y275)=0,\"\",IF(LEN('Enrollment Form'!$Y275)<>5,\"N\",\"Y\")))","v":""},{"$f":"IF($B268=\"N\",\"\",IF(LEN('Enrollment Form'!$AD275=0),\"\",IF(LEN('Enrollment Form'!$AD275)<>5,\"N\",\"Y\")))","v":""},{"$f":"IF($B268=\"N\",\"\",IF(LEN('Enrollment Form'!$BS275=0),\"\",IF(LEN('Enrollment Form'!$BS275)<>5,\"N\",\"Y\")))","v":""},{"$f":"IF($B268=\"N\",\"\",IF(LEN('Enrollment Form'!$AE275)=0,\"\",IF(LEN('Enrollment Form'!$AE275)<>10,\"N\",\"Y\")))","v":""},{"$f":"IF($B268=\"N\",\"\",IF(LEN('Enrollment Form'!$AF275)=0,\"\",IF(LEN('Enrollment Form'!$AF275)<>10,\"N\",\"Y\")))","v":""},{"$f":"IF('Enrollment Form'!$O275<>\"Graded\",\"-\",IF(AND('Enrollment Form'!$O275=\"Graded\",'Enrollment Form'!$AR275<>\"\"),\"Y\",\"N\"))","v":"-"},{"$f":"IF($B268=\"N\",\"\",IF(OR('Enrollment Form'!$B275<>\"Subscriber\",'Enrollment Form'!$C275=\"ROC\"),\"-\",IF(AND('Enrollment Form'!$B275=\"Subscriber\",'Enrollment Form'!$C275=\"Enroll\",'Enrollment Form'!$AJ275<>\"\"),\"Y\",\"N\")))","v":""},{"$f":"IF($B268=\"N\",\"\",IF(OR('Enrollment Form'!$B275<>\"Subscriber\",'Enrollment Form'!$C275=\"ROC\"),\"-\",IF(AND('Enrollment Form'!$B275=\"Subscriber\",'Enrollment Form'!$C275=\"Enroll\",'Enrollment Form'!$AK275<>\"\"),\"Y\",\"N\")))","v":""},{"$f":"IF($B268=\"N\",\"\",IF(OR('Enrollment Form'!$B275<>\"Subscriber\",'Enrollment Form'!$C275=\"ROC\"),\"-\",IF(AND('Enrollment Form'!$B275=\"Subscriber\",'Enrollment Form'!$C275=\"Enroll\",'Enrollment Form'!$AL275<>\"\"),\"Y\",\"N\")))","v":""},{"$f":"IF($B268=\"N\",\"\",IF(OR('Enrollment Form'!$B275<>\"Subscriber\",'Enrollment Form'!$C275=\"ROC\"),\"-\",IF(AND('Enrollment Form'!$B275=\"Subscriber\",'Enrollment Form'!$C275=\"Enroll\",'Enrollment Form'!$AP275<>\"\"),\"Y\",\"N\")))","v":""},{"$f":"IF($B268=\"N\",\"\",IF(OR('Enrollment Form'!$B275<>\"Subscriber\",'Enrollment Form'!$C275=\"ROC\"),\"-\",IF(AND('Enrollment Form'!$B275=\"Subscriber\",'Enrollment Form'!$C275=\"Enroll\",'Enrollment Form'!$AQ275<>\"\"),\"Y\",\"N\")))","v":""},{"$f":"IF($B268=\"N\",\"\",IF(OR('Enrollment Form'!$B275<>\"Subscriber\",'Enrollment Form'!$C275=\"ROC\"),\"-\",IF(AND('Enrollment Form'!$B275=\"Subscriber\",'Enrollment Form'!$C275=\"Enroll\",'Enrollment Form'!$AS275<>\"\"),\"Y\",\"N\")))","v":""},{"$f":"IF($B268=\"N\",\"\",IF($Q268=\"-\",\"-\",IF(AND($Q268=\"Y\",'Enrollment Form'!$AS275=\"No\"),\"-\",IF(AND($Q268=\"Y\",'Enrollment Form'!$AS275=\"Yes\",'Enrollment Form'!$AT275<>\"\"),\"Y\",\"N\"))))","v":""},{"$f":"IF($B268=\"N\",\"\",IF(OR('Enrollment Form'!$B275<>\"Subscriber\",'Enrollment Form'!$C275=\"ROC\"),\"-\",IF(AND('Enrollment Form'!$B275=\"Subscriber\",'Enrollment Form'!$C275=\"Enroll\",'Enrollment Form'!$CV275<>\"\"),\"Y\",\"N\")))","v":""},{"$f":"IF($B268=\"N\",\"\",IF($S268=\"-\",\"-\",IF(AND($S268=\"Y\",'Enrollment Form'!$CV275=\"No\"),\"-\",IF(AND($S268=\"Y\",'Enrollment Form'!$CV275=\"Yes\",'Enrollment Form'!$CW275<>\"\"),\"Y\",\"N\"))))","v":""},{"$f":"IF(OR('Enrollment Form'!$AY275=\"Yes\",'Enrollment Form'!$AY275=\"\"),\"-\",IF(OR(AND('Enrollment Form'!$AY275=\"No\",ISERROR(FIND(\"HMO\",VLOOKUP('Enrollment Form'!G275,'Enrollment Form'!H$11:J$1000,3,FALSE),1))=FALSE,COUNTA('Enrollment Form'!$AZ275:$BC275)=4),AND('Enrollment Form'!$AY275=\"No\",ISERROR(FIND(\"HMO\",VLOOKUP('Enrollment Form'!G275,'Enrollment Form'!H$11:J$1000,3,FALSE),1))=FALSE,COUNTA('Enrollment Form'!$BT275:$BW275)=4)),\"Y\",\"N\"))","v":"-"},{"$f":"IF($B268=\"N\",\"\",IF('Enrollment Form'!$B275=\"Subscriber\",\"-\",IF(COUNTA('Enrollment Form'!$BL275,'Enrollment Form'!$BN275)=2,\"Y\",\"N\")))","v":""},{"$f":"IF($B268=\"N\",\"\",IF(OR('Enrollment Form'!$AX275=\"\",'Enrollment Form'!$AX275=\"No\"),\"-\",IF(AND('Enrollment Form'!$AX275=\"Yes\",COUNTA('Enrollment Form'!$CR275)=1),\"Y\",\"N\")))","v":""},{"$f":"IF(OR('Enrollment Form'!$CR275=\"\",'Enrollment Form'!$CR275=\"No\"),\"-\",IF(COUNTA('Enrollment Form'!$CT275:$CU275)=2,\"Y\",\"N\"))","v":"-"},{"$f":"IF($B268=\"N\",\"\",IF(COUNTIF('Enrollment Form'!$DG275:$DP275,\"Other\")=COUNTA('Enrollment Form'!$DK275,'Enrollment Form'!$DH275,'Enrollment Form'!$DN275,'Enrollment Form'!$DQ275),\"Y\",\"N\"))","v":""},{"$f":"IF($B268=\"N\",\"\",IF(OR('Enrollment Form'!B275<>\"Subscriber\",'Enrollment Form'!C275=\"ROC\",COUNTIF('Enrollment Form'!AV275:AW275,\"Yes\")>=1),\"-\",IF(AND('Enrollment Form'!C275=\"Enroll\",COUNTIF('Enrollment Form'!AV275:AW275,\"No\")=2,'Enrollment Form'!AX275=\"\"),\"N\",\"Y\")))","v":""},{"$f":"IF(OR(B268=\"N\",'Enrollment Form'!B275<>\"Subscriber\",'Enrollment Form'!C275=\"ROC\",'Enrollment Form'!O275<>\"Multiple of Salary\"),\"-\",IF(COUNTA('Enrollment Form'!T275:U275)<2,\"N\",\"Y\"))","v":"-"},{"$f":"IF(B268=\"N\",\"\",IF(OR('Enrollment Form'!C275=\"ROC\",'Enrollment Form'!B275<>\"Subscriber\",'Enrollment Form'!O275=\"Waive\",'Enrollment Form'!O275=\"\"),\"-\",IF('Enrollment Form'!P275=\"\",\"N\",\"Y\")))","v":""},{"$f":"IF($B268=\"N\",\"\",IF(AND('Enrollment Form'!$C275=\"ROC\",'Enrollment Form'!$DR275<>\"\"),\"Y\",IF(AND('Enrollment Form'!$C275=\"ROC\",'Enrollment Form'!$DR275=\"\"),\"N\",IF(AND('Enrollment Form'!$C275=\"Enroll\",'Enrollment Form'!$B275=\"Subscriber\",'Enrollment Form'!$CX275=\"No\",'Enrollment Form'!$DR275=\"\"),\"N\",IF(AND('Enrollment Form'!$C275=\"Enroll\",'Enrollment Form'!$B275=\"Subscriber\",'Enrollment Form'!$CX275=\"Yes\"),\"-\",\"Y\")))))","v":""},{"$f":"IF($B268=\"N\",\"\",IF(AND('Enrollment Form'!$C275=\"ROC\",'Enrollment Form'!$DS275<>\"\"),\"Y\",IF(AND('Enrollment Form'!$C275=\"ROC\",'Enrollment Form'!$DS275=\"\"),\"N\",IF(AND('Enrollment Form'!$C275=\"Enroll\",'Enrollment Form'!$B275=\"Subscriber\",'Enrollment Form'!$CX275=\"No\",'Enrollment Form'!$DS275=\"\"),\"N\",IF(AND('Enrollment Form'!$C275=\"Enroll\",'Enrollment Form'!$B275=\"Subscriber\",'Enrollment Form'!$CX275=\"Yes\"),\"-\",\"Y\")))))","v":""},{"$f":"IF('Enrollment Form'!AH275=\"\",\"\",IF(ISERROR(SEARCH(\".\",'Enrollment Form'!AH275,SEARCH(\"@\",'Enrollment Form'!AH275))),\"N\",\"Y\"))","v":""},{"$f":"IF(OR($B268=\"N\",'Enrollment Form'!$G275=\"\"),\"\",IF('Enrollment Form'!$B275<>\"Subscriber\",\"-\",IF(COUNTIF('Enrollment Form'!$AV275:$AW275,\"Yes\")=2,\"N\",\"Y\")))","v":""},{"$f":"IF(OR('Enrollment Form'!$CJ275=\"\",'Enrollment Form'!$CJ275=\"No\"),\"-\",IF(AND('Enrollment Form'!$CJ275=\"Yes\",'Enrollment Form'!$CK275=\"\"),\"N\",\"Y\"))","v":"-"},{"$f":"IF(OR('Enrollment Form'!$CL275=\"\",'Enrollment Form'!$CL275=\"No\"),\"-\",IF(AND('Enrollment Form'!$CL275=\"Yes\",'Enrollment Form'!$CM275=\"\"),\"N\",\"Y\"))","v":"-"},{"$f":"IF(OR('Enrollment Form'!$CN275=\"\",'Enrollment Form'!$CN275=\"No\"),\"-\",IF(AND('Enrollment Form'!$CN275=\"Yes\",'Enrollment Form'!$CO275=\"\"),\"N\",\"Y\"))","v":"-"},{"$f":"IF(OR('Enrollment Form'!$CN275=\"\",'Enrollment Form'!$CN275=\"No\"),\"-\",IF(AND('Enrollment Form'!$CN275=\"Yes\",'Enrollment Form'!$CP275=\"\"),\"N\",\"Y\"))","v":"-"},{"$f":"IF('Enrollment Form'!B275<>\"Subscriber\",\"-\",IF(AND('Enrollment Form'!B275=\"Subscriber\",'Enrollment Form'!C275=\"Enroll\",'Enrollment Form'!AA275=\"\"),\"N\",\"Y\"))","v":"-"},{"$f":"IF(OR('Enrollment Form'!B275=\"Subscriber\",'Enrollment Form'!B275=\"\"),\"-\",IF('Enrollment Form'!BP275=\"\",\"N\",\"Y\"))","v":"-"},{"$f":"IF('Enrollment Form'!B275<>\"Subscriber\",\"-\",IF(AND('Enrollment Form'!B275=\"Subscriber\",'Enrollment Form'!G275=\"\"),\"N\",\"Y\"))","v":"-"},{"$f":"IF('Enrollment Form'!A275=\"\",\"\",IF('Enrollment Form'!B275=\"Subscriber\",\"-\",IF(AND('Enrollment Form'!B275<>\"Subscriber\",'Enrollment Form'!G275='Enrollment Form'!H275),\"N\",\"Y\")))","v":""},0]
[276,{"$f":"IF('Enrollment Form'!$A276<>\"\",\"Y\",\"N\")","v":"N"},{"$f":"IF(AND('Enrollment Form'!$B276=\"\",'Enrollment Form'!$C276<>\"\"),\"N\",IF($B269=\"N\",\"\",\"Y\"))","v":""},{"$f":"IF(OR($B269=\"N\",'Enrollment Form'!G276=\"\"),\"\",IF('Enrollment Form'!$B276<>\"Subscriber\",\"\",IF('Enrollment Form'!$G276='Enrollment Form'!$H276,\"Y\",\"N\")))","v":""},{"$f":"IF($B269=\"N\",\"\",IF(AND(COUNTIFS('Enrollment Form'!$H$11:$H$1000,'Enrollment Form'!$H276,'Enrollment Form'!$B$11:$B$1000,'Enrollment Form'!$B276)>1,'Enrollment Form'!$H276<>\"\"),\"N\",\"Y\"))","v":""},{"$f":"IF($B269=\"N\",\"\",IF(LEN('Enrollment Form'!$Y276)=0,\"\",IF(LEN('Enrollment Form'!$Y276)<>5,\"N\",\"Y\")))","v":""},{"$f":"IF($B269=\"N\",\"\",IF(LEN('Enrollment Form'!$AD276=0),\"\",IF(LEN('Enrollment Form'!$AD276)<>5,\"N\",\"Y\")))","v":""},{"$f":"IF($B269=\"N\",\"\",IF(LEN('Enrollment Form'!$BS276=0),\"\",IF(LEN('Enrollment Form'!$BS276)<>5,\"N\",\"Y\")))","v":""},{"$f":"IF($B269=\"N\",\"\",IF(LEN('Enrollment Form'!$AE276)=0,\"\",IF(LEN('Enrollment Form'!$AE276)<>10,\"N\",\"Y\")))","v":""},{"$f":"IF($B269=\"N\",\"\",IF(LEN('Enrollment Form'!$AF276)=0,\"\",IF(LEN('Enrollment Form'!$AF276)<>10,\"N\",\"Y\")))","v":""},{"$f":"IF('Enrollment Form'!$O276<>\"Graded\",\"-\",IF(AND('Enrollment Form'!$O276=\"Graded\",'Enrollment Form'!$AR276<>\"\"),\"Y\",\"N\"))","v":"-"},{"$f":"IF($B269=\"N\",\"\",IF(OR('Enrollment Form'!$B276<>\"Subscriber\",'Enrollment Form'!$C276=\"ROC\"),\"-\",IF(AND('Enrollment Form'!$B276=\"Subscriber\",'Enrollment Form'!$C276=\"Enroll\",'Enrollment Form'!$AJ276<>\"\"),\"Y\",\"N\")))","v":""},{"$f":"IF($B269=\"N\",\"\",IF(OR('Enrollment Form'!$B276<>\"Subscriber\",'Enrollment Form'!$C276=\"ROC\"),\"-\",IF(AND('Enrollment Form'!$B276=\"Subscriber\",'Enrollment Form'!$C276=\"Enroll\",'Enrollment Form'!$AK276<>\"\"),\"Y\",\"N\")))","v":""},{"$f":"IF($B269=\"N\",\"\",IF(OR('Enrollment Form'!$B276<>\"Subscriber\",'Enrollment Form'!$C276=\"ROC\"),\"-\",IF(AND('Enrollment Form'!$B276=\"Subscriber\",'Enrollment Form'!$C276=\"Enroll\",'Enrollment Form'!$AL276<>\"\"),\"Y\",\"N\")))","v":""},{"$f":"IF($B269=\"N\",\"\",IF(OR('Enrollment Form'!$B276<>\"Subscriber\",'Enrollment Form'!$C276=\"ROC\"),\"-\",IF(AND('Enrollment Form'!$B276=\"Subscriber\",'Enrollment Form'!$C276=\"Enroll\",'Enrollment Form'!$AP276<>\"\"),\"Y\",\"N\")))","v":""},{"$f":"IF($B269=\"N\",\"\",IF(OR('Enrollment Form'!$B276<>\"Subscriber\",'Enrollment Form'!$C276=\"ROC\"),\"-\",IF(AND('Enrollment Form'!$B276=\"Subscriber\",'Enrollment Form'!$C276=\"Enroll\",'Enrollment Form'!$AQ276<>\"\"),\"Y\",\"N\")))","v":""},{"$f":"IF($B269=\"N\",\"\",IF(OR('Enrollment Form'!$B276<>\"Subscriber\",'Enrollment Form'!$C276=\"ROC\"),\"-\",IF(AND('Enrollment Form'!$B276=\"Subscriber\",'Enrollment Form'!$C276=\"Enroll\",'Enrollment Form'!$AS276<>\"\"),\"Y\",\"N\")))","v":""},{"$f":"IF($B269=\"N\",\"\",IF($Q269=\"-\",\"-\",IF(AND($Q269=\"Y\",'Enrollment Form'!$AS276=\"No\"),\"-\",IF(AND($Q269=\"Y\",'Enrollment Form'!$AS276=\"Yes\",'Enrollment Form'!$AT276<>\"\"),\"Y\",\"N\"))))","v":""},{"$f":"IF($B269=\"N\",\"\",IF(OR('Enrollment Form'!$B276<>\"Subscriber\",'Enrollment Form'!$C276=\"ROC\"),\"-\",IF(AND('Enrollment Form'!$B276=\"Subscriber\",'Enrollment Form'!$C276=\"Enroll\",'Enrollment Form'!$CV276<>\"\"),\"Y\",\"N\")))","v":""},{"$f":"IF($B269=\"N\",\"\",IF($S269=\"-\",\"-\",IF(AND($S269=\"Y\",'Enrollment Form'!$CV276=\"No\"),\"-\",IF(AND($S269=\"Y\",'Enrollment Form'!$CV276=\"Yes\",'Enrollment Form'!$CW276<>\"\"),\"Y\",\"N\"))))","v":""},{"$f":"IF(OR('Enrollment Form'!$AY276=\"Yes\",'Enrollment Form'!$AY276=\"\"),\"-\",IF(OR(AND('Enrollment Form'!$AY276=\"No\",ISERROR(FIND(\"HMO\",VLOOKUP('Enrollment Form'!G276,'Enrollment Form'!H$11:J$1000,3,FALSE),1))=FALSE,COUNTA('Enrollment Form'!$AZ276:$BC276)=4),AND('Enrollment Form'!$AY276=\"No\",ISERROR(FIND(\"HMO\",VLOOKUP('Enrollment Form'!G276,'Enrollment Form'!H$11:J$1000,3,FALSE),1))=FALSE,COUNTA('Enrollment Form'!$BT276:$BW276)=4)),\"Y\",\"N\"))","v":"-"},{"$f":"IF($B269=\"N\",\"\",IF('Enrollment Form'!$B276=\"Subscriber\",\"-\",IF(COUNTA('Enrollment Form'!$BL276,'Enrollment Form'!$BN276)=2,\"Y\",\"N\")))","v":""},{"$f":"IF($B269=\"N\",\"\",IF(OR('Enrollment Form'!$AX276=\"\",'Enrollment Form'!$AX276=\"No\"),\"-\",IF(AND('Enrollment Form'!$AX276=\"Yes\",COUNTA('Enrollment Form'!$CR276)=1),\"Y\",\"N\")))","v":""},{"$f":"IF(OR('Enrollment Form'!$CR276=\"\",'Enrollment Form'!$CR276=\"No\"),\"-\",IF(COUNTA('Enrollment Form'!$CT276:$CU276)=2,\"Y\",\"N\"))","v":"-"},{"$f":"IF($B269=\"N\",\"\",IF(COUNTIF('Enrollment Form'!$DG276:$DP276,\"Other\")=COUNTA('Enrollment Form'!$DK276,'Enrollment Form'!$DH276,'Enrollment Form'!$DN276,'Enrollment Form'!$DQ276),\"Y\",\"N\"))","v":""},{"$f":"IF($B269=\"N\",\"\",IF(OR('Enrollment Form'!B276<>\"Subscriber\",'Enrollment Form'!C276=\"ROC\",COUNTIF('Enrollment Form'!AV276:AW276,\"Yes\")>=1),\"-\",IF(AND('Enrollment Form'!C276=\"Enroll\",COUNTIF('Enrollment Form'!AV276:AW276,\"No\")=2,'Enrollment Form'!AX276=\"\"),\"N\",\"Y\")))","v":""},{"$f":"IF(OR(B269=\"N\",'Enrollment Form'!B276<>\"Subscriber\",'Enrollment Form'!C276=\"ROC\",'Enrollment Form'!O276<>\"Multiple of Salary\"),\"-\",IF(COUNTA('Enrollment Form'!T276:U276)<2,\"N\",\"Y\"))","v":"-"},{"$f":"IF(B269=\"N\",\"\",IF(OR('Enrollment Form'!C276=\"ROC\",'Enrollment Form'!B276<>\"Subscriber\",'Enrollment Form'!O276=\"Waive\",'Enrollment Form'!O276=\"\"),\"-\",IF('Enrollment Form'!P276=\"\",\"N\",\"Y\")))","v":""},{"$f":"IF($B269=\"N\",\"\",IF(AND('Enrollment Form'!$C276=\"ROC\",'Enrollment Form'!$DR276<>\"\"),\"Y\",IF(AND('Enrollment Form'!$C276=\"ROC\",'Enrollment Form'!$DR276=\"\"),\"N\",IF(AND('Enrollment Form'!$C276=\"Enroll\",'Enrollment Form'!$B276=\"Subscriber\",'Enrollment Form'!$CX276=\"No\",'Enrollment Form'!$DR276=\"\"),\"N\",IF(AND('Enrollment Form'!$C276=\"Enroll\",'Enrollment Form'!$B276=\"Subscriber\",'Enrollment Form'!$CX276=\"Yes\"),\"-\",\"Y\")))))","v":""},{"$f":"IF($B269=\"N\",\"\",IF(AND('Enrollment Form'!$C276=\"ROC\",'Enrollment Form'!$DS276<>\"\"),\"Y\",IF(AND('Enrollment Form'!$C276=\"ROC\",'Enrollment Form'!$DS276=\"\"),\"N\",IF(AND('Enrollment Form'!$C276=\"Enroll\",'Enrollment Form'!$B276=\"Subscriber\",'Enrollment Form'!$CX276=\"No\",'Enrollment Form'!$DS276=\"\"),\"N\",IF(AND('Enrollment Form'!$C276=\"Enroll\",'Enrollment Form'!$B276=\"Subscriber\",'Enrollment Form'!$CX276=\"Yes\"),\"-\",\"Y\")))))","v":""},{"$f":"IF('Enrollment Form'!AH276=\"\",\"\",IF(ISERROR(SEARCH(\".\",'Enrollment Form'!AH276,SEARCH(\"@\",'Enrollment Form'!AH276))),\"N\",\"Y\"))","v":""},{"$f":"IF(OR($B269=\"N\",'Enrollment Form'!$G276=\"\"),\"\",IF('Enrollment Form'!$B276<>\"Subscriber\",\"-\",IF(COUNTIF('Enrollment Form'!$AV276:$AW276,\"Yes\")=2,\"N\",\"Y\")))","v":""},{"$f":"IF(OR('Enrollment Form'!$CJ276=\"\",'Enrollment Form'!$CJ276=\"No\"),\"-\",IF(AND('Enrollment Form'!$CJ276=\"Yes\",'Enrollment Form'!$CK276=\"\"),\"N\",\"Y\"))","v":"-"},{"$f":"IF(OR('Enrollment Form'!$CL276=\"\",'Enrollment Form'!$CL276=\"No\"),\"-\",IF(AND('Enrollment Form'!$CL276=\"Yes\",'Enrollment Form'!$CM276=\"\"),\"N\",\"Y\"))","v":"-"},{"$f":"IF(OR('Enrollment Form'!$CN276=\"\",'Enrollment Form'!$CN276=\"No\"),\"-\",IF(AND('Enrollment Form'!$CN276=\"Yes\",'Enrollment Form'!$CO276=\"\"),\"N\",\"Y\"))","v":"-"},{"$f":"IF(OR('Enrollment Form'!$CN276=\"\",'Enrollment Form'!$CN276=\"No\"),\"-\",IF(AND('Enrollment Form'!$CN276=\"Yes\",'Enrollment Form'!$CP276=\"\"),\"N\",\"Y\"))","v":"-"},{"$f":"IF('Enrollment Form'!B276<>\"Subscriber\",\"-\",IF(AND('Enrollment Form'!B276=\"Subscriber\",'Enrollment Form'!C276=\"Enroll\",'Enrollment Form'!AA276=\"\"),\"N\",\"Y\"))","v":"-"},{"$f":"IF(OR('Enrollment Form'!B276=\"Subscriber\",'Enrollment Form'!B276=\"\"),\"-\",IF('Enrollment Form'!BP276=\"\",\"N\",\"Y\"))","v":"-"},{"$f":"IF('Enrollment Form'!B276<>\"Subscriber\",\"-\",IF(AND('Enrollment Form'!B276=\"Subscriber\",'Enrollment Form'!G276=\"\"),\"N\",\"Y\"))","v":"-"},{"$f":"IF('Enrollment Form'!A276=\"\",\"\",IF('Enrollment Form'!B276=\"Subscriber\",\"-\",IF(AND('Enrollment Form'!B276<>\"Subscriber\",'Enrollment Form'!G276='Enrollment Form'!H276),\"N\",\"Y\")))","v":""},0]
[277,{"$f":"IF('Enrollment Form'!$A277<>\"\",\"Y\",\"N\")","v":"N"},{"$f":"IF(AND('Enrollment Form'!$B277=\"\",'Enrollment Form'!$C277<>\"\"),\"N\",IF($B270=\"N\",\"\",\"Y\"))","v":""},{"$f":"IF(OR($B270=\"N\",'Enrollment Form'!G277=\"\"),\"\",IF('Enrollment Form'!$B277<>\"Subscriber\",\"\",IF('Enrollment Form'!$G277='Enrollment Form'!$H277,\"Y\",\"N\")))","v":""},{"$f":"IF($B270=\"N\",\"\",IF(AND(COUNTIFS('Enrollment Form'!$H$11:$H$1000,'Enrollment Form'!$H277,'Enrollment Form'!$B$11:$B$1000,'Enrollment Form'!$B277)>1,'Enrollment Form'!$H277<>\"\"),\"N\",\"Y\"))","v":""},{"$f":"IF($B270=\"N\",\"\",IF(LEN('Enrollment Form'!$Y277)=0,\"\",IF(LEN('Enrollment Form'!$Y277)<>5,\"N\",\"Y\")))","v":""},{"$f":"IF($B270=\"N\",\"\",IF(LEN('Enrollment Form'!$AD277=0),\"\",IF(LEN('Enrollment Form'!$AD277)<>5,\"N\",\"Y\")))","v":""},{"$f":"IF($B270=\"N\",\"\",IF(LEN('Enrollment Form'!$BS277=0),\"\",IF(LEN('Enrollment Form'!$BS277)<>5,\"N\",\"Y\")))","v":""},{"$f":"IF($B270=\"N\",\"\",IF(LEN('Enrollment Form'!$AE277)=0,\"\",IF(LEN('Enrollment Form'!$AE277)<>10,\"N\",\"Y\")))","v":""},{"$f":"IF($B270=\"N\",\"\",IF(LEN('Enrollment Form'!$AF277)=0,\"\",IF(LEN('Enrollment Form'!$AF277)<>10,\"N\",\"Y\")))","v":""},{"$f":"IF('Enrollment Form'!$O277<>\"Graded\",\"-\",IF(AND('Enrollment Form'!$O277=\"Graded\",'Enrollment Form'!$AR277<>\"\"),\"Y\",\"N\"))","v":"-"},{"$f":"IF($B270=\"N\",\"\",IF(OR('Enrollment Form'!$B277<>\"Subscriber\",'Enrollment Form'!$C277=\"ROC\"),\"-\",IF(AND('Enrollment Form'!$B277=\"Subscriber\",'Enrollment Form'!$C277=\"Enroll\",'Enrollment Form'!$AJ277<>\"\"),\"Y\",\"N\")))","v":""},{"$f":"IF($B270=\"N\",\"\",IF(OR('Enrollment Form'!$B277<>\"Subscriber\",'Enrollment Form'!$C277=\"ROC\"),\"-\",IF(AND('Enrollment Form'!$B277=\"Subscriber\",'Enrollment Form'!$C277=\"Enroll\",'Enrollment Form'!$AK277<>\"\"),\"Y\",\"N\")))","v":""},{"$f":"IF($B270=\"N\",\"\",IF(OR('Enrollment Form'!$B277<>\"Subscriber\",'Enrollment Form'!$C277=\"ROC\"),\"-\",IF(AND('Enrollment Form'!$B277=\"Subscriber\",'Enrollment Form'!$C277=\"Enroll\",'Enrollment Form'!$AL277<>\"\"),\"Y\",\"N\")))","v":""},{"$f":"IF($B270=\"N\",\"\",IF(OR('Enrollment Form'!$B277<>\"Subscriber\",'Enrollment Form'!$C277=\"ROC\"),\"-\",IF(AND('Enrollment Form'!$B277=\"Subscriber\",'Enrollment Form'!$C277=\"Enroll\",'Enrollment Form'!$AP277<>\"\"),\"Y\",\"N\")))","v":""},{"$f":"IF($B270=\"N\",\"\",IF(OR('Enrollment Form'!$B277<>\"Subscriber\",'Enrollment Form'!$C277=\"ROC\"),\"-\",IF(AND('Enrollment Form'!$B277=\"Subscriber\",'Enrollment Form'!$C277=\"Enroll\",'Enrollment Form'!$AQ277<>\"\"),\"Y\",\"N\")))","v":""},{"$f":"IF($B270=\"N\",\"\",IF(OR('Enrollment Form'!$B277<>\"Subscriber\",'Enrollment Form'!$C277=\"ROC\"),\"-\",IF(AND('Enrollment Form'!$B277=\"Subscriber\",'Enrollment Form'!$C277=\"Enroll\",'Enrollment Form'!$AS277<>\"\"),\"Y\",\"N\")))","v":""},{"$f":"IF($B270=\"N\",\"\",IF($Q270=\"-\",\"-\",IF(AND($Q270=\"Y\",'Enrollment Form'!$AS277=\"No\"),\"-\",IF(AND($Q270=\"Y\",'Enrollment Form'!$AS277=\"Yes\",'Enrollment Form'!$AT277<>\"\"),\"Y\",\"N\"))))","v":""},{"$f":"IF($B270=\"N\",\"\",IF(OR('Enrollment Form'!$B277<>\"Subscriber\",'Enrollment Form'!$C277=\"ROC\"),\"-\",IF(AND('Enrollment Form'!$B277=\"Subscriber\",'Enrollment Form'!$C277=\"Enroll\",'Enrollment Form'!$CV277<>\"\"),\"Y\",\"N\")))","v":""},{"$f":"IF($B270=\"N\",\"\",IF($S270=\"-\",\"-\",IF(AND($S270=\"Y\",'Enrollment Form'!$CV277=\"No\"),\"-\",IF(AND($S270=\"Y\",'Enrollment Form'!$CV277=\"Yes\",'Enrollment Form'!$CW277<>\"\"),\"Y\",\"N\"))))","v":""},{"$f":"IF(OR('Enrollment Form'!$AY277=\"Yes\",'Enrollment Form'!$AY277=\"\"),\"-\",IF(OR(AND('Enrollment Form'!$AY277=\"No\",ISERROR(FIND(\"HMO\",VLOOKUP('Enrollment Form'!G277,'Enrollment Form'!H$11:J$1000,3,FALSE),1))=FALSE,COUNTA('Enrollment Form'!$AZ277:$BC277)=4),AND('Enrollment Form'!$AY277=\"No\",ISERROR(FIND(\"HMO\",VLOOKUP('Enrollment Form'!G277,'Enrollment Form'!H$11:J$1000,3,FALSE),1))=FALSE,COUNTA('Enrollment Form'!$BT277:$BW277)=4)),\"Y\",\"N\"))","v":"-"},{"$f":"IF($B270=\"N\",\"\",IF('Enrollment Form'!$B277=\"Subscriber\",\"-\",IF(COUNTA('Enrollment Form'!$BL277,'Enrollment Form'!$BN277)=2,\"Y\",\"N\")))","v":""},{"$f":"IF($B270=\"N\",\"\",IF(OR('Enrollment Form'!$AX277=\"\",'Enrollment Form'!$AX277=\"No\"),\"-\",IF(AND('Enrollment Form'!$AX277=\"Yes\",COUNTA('Enrollment Form'!$CR277)=1),\"Y\",\"N\")))","v":""},{"$f":"IF(OR('Enrollment Form'!$CR277=\"\",'Enrollment Form'!$CR277=\"No\"),\"-\",IF(COUNTA('Enrollment Form'!$CT277:$CU277)=2,\"Y\",\"N\"))","v":"-"},{"$f":"IF($B270=\"N\",\"\",IF(COUNTIF('Enrollment Form'!$DG277:$DP277,\"Other\")=COUNTA('Enrollment Form'!$DK277,'Enrollment Form'!$DH277,'Enrollment Form'!$DN277,'Enrollment Form'!$DQ277),\"Y\",\"N\"))","v":""},{"$f":"IF($B270=\"N\",\"\",IF(OR('Enrollment Form'!B277<>\"Subscriber\",'Enrollment Form'!C277=\"ROC\",COUNTIF('Enrollment Form'!AV277:AW277,\"Yes\")>=1),\"-\",IF(AND('Enrollment Form'!C277=\"Enroll\",COUNTIF('Enrollment Form'!AV277:AW277,\"No\")=2,'Enrollment Form'!AX277=\"\"),\"N\",\"Y\")))","v":""},{"$f":"IF(OR(B270=\"N\",'Enrollment Form'!B277<>\"Subscriber\",'Enrollment Form'!C277=\"ROC\",'Enrollment Form'!O277<>\"Multiple of Salary\"),\"-\",IF(COUNTA('Enrollment Form'!T277:U277)<2,\"N\",\"Y\"))","v":"-"},{"$f":"IF(B270=\"N\",\"\",IF(OR('Enrollment Form'!C277=\"ROC\",'Enrollment Form'!B277<>\"Subscriber\",'Enrollment Form'!O277=\"Waive\",'Enrollment Form'!O277=\"\"),\"-\",IF('Enrollment Form'!P277=\"\",\"N\",\"Y\")))","v":""},{"$f":"IF($B270=\"N\",\"\",IF(AND('Enrollment Form'!$C277=\"ROC\",'Enrollment Form'!$DR277<>\"\"),\"Y\",IF(AND('Enrollment Form'!$C277=\"ROC\",'Enrollment Form'!$DR277=\"\"),\"N\",IF(AND('Enrollment Form'!$C277=\"Enroll\",'Enrollment Form'!$B277=\"Subscriber\",'Enrollment Form'!$CX277=\"No\",'Enrollment Form'!$DR277=\"\"),\"N\",IF(AND('Enrollment Form'!$C277=\"Enroll\",'Enrollment Form'!$B277=\"Subscriber\",'Enrollment Form'!$CX277=\"Yes\"),\"-\",\"Y\")))))","v":""},{"$f":"IF($B270=\"N\",\"\",IF(AND('Enrollment Form'!$C277=\"ROC\",'Enrollment Form'!$DS277<>\"\"),\"Y\",IF(AND('Enrollment Form'!$C277=\"ROC\",'Enrollment Form'!$DS277=\"\"),\"N\",IF(AND('Enrollment Form'!$C277=\"Enroll\",'Enrollment Form'!$B277=\"Subscriber\",'Enrollment Form'!$CX277=\"No\",'Enrollment Form'!$DS277=\"\"),\"N\",IF(AND('Enrollment Form'!$C277=\"Enroll\",'Enrollment Form'!$B277=\"Subscriber\",'Enrollment Form'!$CX277=\"Yes\"),\"-\",\"Y\")))))","v":""},{"$f":"IF('Enrollment Form'!AH277=\"\",\"\",IF(ISERROR(SEARCH(\".\",'Enrollment Form'!AH277,SEARCH(\"@\",'Enrollment Form'!AH277))),\"N\",\"Y\"))","v":""},{"$f":"IF(OR($B270=\"N\",'Enrollment Form'!$G277=\"\"),\"\",IF('Enrollment Form'!$B277<>\"Subscriber\",\"-\",IF(COUNTIF('Enrollment Form'!$AV277:$AW277,\"Yes\")=2,\"N\",\"Y\")))","v":""},{"$f":"IF(OR('Enrollment Form'!$CJ277=\"\",'Enrollment Form'!$CJ277=\"No\"),\"-\",IF(AND('Enrollment Form'!$CJ277=\"Yes\",'Enrollment Form'!$CK277=\"\"),\"N\",\"Y\"))","v":"-"},{"$f":"IF(OR('Enrollment Form'!$CL277=\"\",'Enrollment Form'!$CL277=\"No\"),\"-\",IF(AND('Enrollment Form'!$CL277=\"Yes\",'Enrollment Form'!$CM277=\"\"),\"N\",\"Y\"))","v":"-"},{"$f":"IF(OR('Enrollment Form'!$CN277=\"\",'Enrollment Form'!$CN277=\"No\"),\"-\",IF(AND('Enrollment Form'!$CN277=\"Yes\",'Enrollment Form'!$CO277=\"\"),\"N\",\"Y\"))","v":"-"},{"$f":"IF(OR('Enrollment Form'!$CN277=\"\",'Enrollment Form'!$CN277=\"No\"),\"-\",IF(AND('Enrollment Form'!$CN277=\"Yes\",'Enrollment Form'!$CP277=\"\"),\"N\",\"Y\"))","v":"-"},{"$f":"IF('Enrollment Form'!B277<>\"Subscriber\",\"-\",IF(AND('Enrollment Form'!B277=\"Subscriber\",'Enrollment Form'!C277=\"Enroll\",'Enrollment Form'!AA277=\"\"),\"N\",\"Y\"))","v":"-"},{"$f":"IF(OR('Enrollment Form'!B277=\"Subscriber\",'Enrollment Form'!B277=\"\"),\"-\",IF('Enrollment Form'!BP277=\"\",\"N\",\"Y\"))","v":"-"},{"$f":"IF('Enrollment Form'!B277<>\"Subscriber\",\"-\",IF(AND('Enrollment Form'!B277=\"Subscriber\",'Enrollment Form'!G277=\"\"),\"N\",\"Y\"))","v":"-"},{"$f":"IF('Enrollment Form'!A277=\"\",\"\",IF('Enrollment Form'!B277=\"Subscriber\",\"-\",IF(AND('Enrollment Form'!B277<>\"Subscriber\",'Enrollment Form'!G277='Enrollment Form'!H277),\"N\",\"Y\")))","v":""},0]
[278,{"$f":"IF('Enrollment Form'!$A278<>\"\",\"Y\",\"N\")","v":"N"},{"$f":"IF(AND('Enrollment Form'!$B278=\"\",'Enrollment Form'!$C278<>\"\"),\"N\",IF($B271=\"N\",\"\",\"Y\"))","v":""},{"$f":"IF(OR($B271=\"N\",'Enrollment Form'!G278=\"\"),\"\",IF('Enrollment Form'!$B278<>\"Subscriber\",\"\",IF('Enrollment Form'!$G278='Enrollment Form'!$H278,\"Y\",\"N\")))","v":""},{"$f":"IF($B271=\"N\",\"\",IF(AND(COUNTIFS('Enrollment Form'!$H$11:$H$1000,'Enrollment Form'!$H278,'Enrollment Form'!$B$11:$B$1000,'Enrollment Form'!$B278)>1,'Enrollment Form'!$H278<>\"\"),\"N\",\"Y\"))","v":""},{"$f":"IF($B271=\"N\",\"\",IF(LEN('Enrollment Form'!$Y278)=0,\"\",IF(LEN('Enrollment Form'!$Y278)<>5,\"N\",\"Y\")))","v":""},{"$f":"IF($B271=\"N\",\"\",IF(LEN('Enrollment Form'!$AD278=0),\"\",IF(LEN('Enrollment Form'!$AD278)<>5,\"N\",\"Y\")))","v":""},{"$f":"IF($B271=\"N\",\"\",IF(LEN('Enrollment Form'!$BS278=0),\"\",IF(LEN('Enrollment Form'!$BS278)<>5,\"N\",\"Y\")))","v":""},{"$f":"IF($B271=\"N\",\"\",IF(LEN('Enrollment Form'!$AE278)=0,\"\",IF(LEN('Enrollment Form'!$AE278)<>10,\"N\",\"Y\")))","v":""},{"$f":"IF($B271=\"N\",\"\",IF(LEN('Enrollment Form'!$AF278)=0,\"\",IF(LEN('Enrollment Form'!$AF278)<>10,\"N\",\"Y\")))","v":""},{"$f":"IF('Enrollment Form'!$O278<>\"Graded\",\"-\",IF(AND('Enrollment Form'!$O278=\"Graded\",'Enrollment Form'!$AR278<>\"\"),\"Y\",\"N\"))","v":"-"},{"$f":"IF($B271=\"N\",\"\",IF(OR('Enrollment Form'!$B278<>\"Subscriber\",'Enrollment Form'!$C278=\"ROC\"),\"-\",IF(AND('Enrollment Form'!$B278=\"Subscriber\",'Enrollment Form'!$C278=\"Enroll\",'Enrollment Form'!$AJ278<>\"\"),\"Y\",\"N\")))","v":""},{"$f":"IF($B271=\"N\",\"\",IF(OR('Enrollment Form'!$B278<>\"Subscriber\",'Enrollment Form'!$C278=\"ROC\"),\"-\",IF(AND('Enrollment Form'!$B278=\"Subscriber\",'Enrollment Form'!$C278=\"Enroll\",'Enrollment Form'!$AK278<>\"\"),\"Y\",\"N\")))","v":""},{"$f":"IF($B271=\"N\",\"\",IF(OR('Enrollment Form'!$B278<>\"Subscriber\",'Enrollment Form'!$C278=\"ROC\"),\"-\",IF(AND('Enrollment Form'!$B278=\"Subscriber\",'Enrollment Form'!$C278=\"Enroll\",'Enrollment Form'!$AL278<>\"\"),\"Y\",\"N\")))","v":""},{"$f":"IF($B271=\"N\",\"\",IF(OR('Enrollment Form'!$B278<>\"Subscriber\",'Enrollment Form'!$C278=\"ROC\"),\"-\",IF(AND('Enrollment Form'!$B278=\"Subscriber\",'Enrollment Form'!$C278=\"Enroll\",'Enrollment Form'!$AP278<>\"\"),\"Y\",\"N\")))","v":""},{"$f":"IF($B271=\"N\",\"\",IF(OR('Enrollment Form'!$B278<>\"Subscriber\",'Enrollment Form'!$C278=\"ROC\"),\"-\",IF(AND('Enrollment Form'!$B278=\"Subscriber\",'Enrollment Form'!$C278=\"Enroll\",'Enrollment Form'!$AQ278<>\"\"),\"Y\",\"N\")))","v":""},{"$f":"IF($B271=\"N\",\"\",IF(OR('Enrollment Form'!$B278<>\"Subscriber\",'Enrollment Form'!$C278=\"ROC\"),\"-\",IF(AND('Enrollment Form'!$B278=\"Subscriber\",'Enrollment Form'!$C278=\"Enroll\",'Enrollment Form'!$AS278<>\"\"),\"Y\",\"N\")))","v":""},{"$f":"IF($B271=\"N\",\"\",IF($Q271=\"-\",\"-\",IF(AND($Q271=\"Y\",'Enrollment Form'!$AS278=\"No\"),\"-\",IF(AND($Q271=\"Y\",'Enrollment Form'!$AS278=\"Yes\",'Enrollment Form'!$AT278<>\"\"),\"Y\",\"N\"))))","v":""},{"$f":"IF($B271=\"N\",\"\",IF(OR('Enrollment Form'!$B278<>\"Subscriber\",'Enrollment Form'!$C278=\"ROC\"),\"-\",IF(AND('Enrollment Form'!$B278=\"Subscriber\",'Enrollment Form'!$C278=\"Enroll\",'Enrollment Form'!$CV278<>\"\"),\"Y\",\"N\")))","v":""},{"$f":"IF($B271=\"N\",\"\",IF($S271=\"-\",\"-\",IF(AND($S271=\"Y\",'Enrollment Form'!$CV278=\"No\"),\"-\",IF(AND($S271=\"Y\",'Enrollment Form'!$CV278=\"Yes\",'Enrollment Form'!$CW278<>\"\"),\"Y\",\"N\"))))","v":""},{"$f":"IF(OR('Enrollment Form'!$AY278=\"Yes\",'Enrollment Form'!$AY278=\"\"),\"-\",IF(OR(AND('Enrollment Form'!$AY278=\"No\",ISERROR(FIND(\"HMO\",VLOOKUP('Enrollment Form'!G278,'Enrollment Form'!H$11:J$1000,3,FALSE),1))=FALSE,COUNTA('Enrollment Form'!$AZ278:$BC278)=4),AND('Enrollment Form'!$AY278=\"No\",ISERROR(FIND(\"HMO\",VLOOKUP('Enrollment Form'!G278,'Enrollment Form'!H$11:J$1000,3,FALSE),1))=FALSE,COUNTA('Enrollment Form'!$BT278:$BW278)=4)),\"Y\",\"N\"))","v":"-"},{"$f":"IF($B271=\"N\",\"\",IF('Enrollment Form'!$B278=\"Subscriber\",\"-\",IF(COUNTA('Enrollment Form'!$BL278,'Enrollment Form'!$BN278)=2,\"Y\",\"N\")))","v":""},{"$f":"IF($B271=\"N\",\"\",IF(OR('Enrollment Form'!$AX278=\"\",'Enrollment Form'!$AX278=\"No\"),\"-\",IF(AND('Enrollment Form'!$AX278=\"Yes\",COUNTA('Enrollment Form'!$CR278)=1),\"Y\",\"N\")))","v":""},{"$f":"IF(OR('Enrollment Form'!$CR278=\"\",'Enrollment Form'!$CR278=\"No\"),\"-\",IF(COUNTA('Enrollment Form'!$CT278:$CU278)=2,\"Y\",\"N\"))","v":"-"},{"$f":"IF($B271=\"N\",\"\",IF(COUNTIF('Enrollment Form'!$DG278:$DP278,\"Other\")=COUNTA('Enrollment Form'!$DK278,'Enrollment Form'!$DH278,'Enrollment Form'!$DN278,'Enrollment Form'!$DQ278),\"Y\",\"N\"))","v":""},{"$f":"IF($B271=\"N\",\"\",IF(OR('Enrollment Form'!B278<>\"Subscriber\",'Enrollment Form'!C278=\"ROC\",COUNTIF('Enrollment Form'!AV278:AW278,\"Yes\")>=1),\"-\",IF(AND('Enrollment Form'!C278=\"Enroll\",COUNTIF('Enrollment Form'!AV278:AW278,\"No\")=2,'Enrollment Form'!AX278=\"\"),\"N\",\"Y\")))","v":""},{"$f":"IF(OR(B271=\"N\",'Enrollment Form'!B278<>\"Subscriber\",'Enrollment Form'!C278=\"ROC\",'Enrollment Form'!O278<>\"Multiple of Salary\"),\"-\",IF(COUNTA('Enrollment Form'!T278:U278)<2,\"N\",\"Y\"))","v":"-"},{"$f":"IF(B271=\"N\",\"\",IF(OR('Enrollment Form'!C278=\"ROC\",'Enrollment Form'!B278<>\"Subscriber\",'Enrollment Form'!O278=\"Waive\",'Enrollment Form'!O278=\"\"),\"-\",IF('Enrollment Form'!P278=\"\",\"N\",\"Y\")))","v":""},{"$f":"IF($B271=\"N\",\"\",IF(AND('Enrollment Form'!$C278=\"ROC\",'Enrollment Form'!$DR278<>\"\"),\"Y\",IF(AND('Enrollment Form'!$C278=\"ROC\",'Enrollment Form'!$DR278=\"\"),\"N\",IF(AND('Enrollment Form'!$C278=\"Enroll\",'Enrollment Form'!$B278=\"Subscriber\",'Enrollment Form'!$CX278=\"No\",'Enrollment Form'!$DR278=\"\"),\"N\",IF(AND('Enrollment Form'!$C278=\"Enroll\",'Enrollment Form'!$B278=\"Subscriber\",'Enrollment Form'!$CX278=\"Yes\"),\"-\",\"Y\")))))","v":""},{"$f":"IF($B271=\"N\",\"\",IF(AND('Enrollment Form'!$C278=\"ROC\",'Enrollment Form'!$DS278<>\"\"),\"Y\",IF(AND('Enrollment Form'!$C278=\"ROC\",'Enrollment Form'!$DS278=\"\"),\"N\",IF(AND('Enrollment Form'!$C278=\"Enroll\",'Enrollment Form'!$B278=\"Subscriber\",'Enrollment Form'!$CX278=\"No\",'Enrollment Form'!$DS278=\"\"),\"N\",IF(AND('Enrollment Form'!$C278=\"Enroll\",'Enrollment Form'!$B278=\"Subscriber\",'Enrollment Form'!$CX278=\"Yes\"),\"-\",\"Y\")))))","v":""},{"$f":"IF('Enrollment Form'!AH278=\"\",\"\",IF(ISERROR(SEARCH(\".\",'Enrollment Form'!AH278,SEARCH(\"@\",'Enrollment Form'!AH278))),\"N\",\"Y\"))","v":""},{"$f":"IF(OR($B271=\"N\",'Enrollment Form'!$G278=\"\"),\"\",IF('Enrollment Form'!$B278<>\"Subscriber\",\"-\",IF(COUNTIF('Enrollment Form'!$AV278:$AW278,\"Yes\")=2,\"N\",\"Y\")))","v":""},{"$f":"IF(OR('Enrollment Form'!$CJ278=\"\",'Enrollment Form'!$CJ278=\"No\"),\"-\",IF(AND('Enrollment Form'!$CJ278=\"Yes\",'Enrollment Form'!$CK278=\"\"),\"N\",\"Y\"))","v":"-"},{"$f":"IF(OR('Enrollment Form'!$CL278=\"\",'Enrollment Form'!$CL278=\"No\"),\"-\",IF(AND('Enrollment Form'!$CL278=\"Yes\",'Enrollment Form'!$CM278=\"\"),\"N\",\"Y\"))","v":"-"},{"$f":"IF(OR('Enrollment Form'!$CN278=\"\",'Enrollment Form'!$CN278=\"No\"),\"-\",IF(AND('Enrollment Form'!$CN278=\"Yes\",'Enrollment Form'!$CO278=\"\"),\"N\",\"Y\"))","v":"-"},{"$f":"IF(OR('Enrollment Form'!$CN278=\"\",'Enrollment Form'!$CN278=\"No\"),\"-\",IF(AND('Enrollment Form'!$CN278=\"Yes\",'Enrollment Form'!$CP278=\"\"),\"N\",\"Y\"))","v":"-"},{"$f":"IF('Enrollment Form'!B278<>\"Subscriber\",\"-\",IF(AND('Enrollment Form'!B278=\"Subscriber\",'Enrollment Form'!C278=\"Enroll\",'Enrollment Form'!AA278=\"\"),\"N\",\"Y\"))","v":"-"},{"$f":"IF(OR('Enrollment Form'!B278=\"Subscriber\",'Enrollment Form'!B278=\"\"),\"-\",IF('Enrollment Form'!BP278=\"\",\"N\",\"Y\"))","v":"-"},{"$f":"IF('Enrollment Form'!B278<>\"Subscriber\",\"-\",IF(AND('Enrollment Form'!B278=\"Subscriber\",'Enrollment Form'!G278=\"\"),\"N\",\"Y\"))","v":"-"},{"$f":"IF('Enrollment Form'!A278=\"\",\"\",IF('Enrollment Form'!B278=\"Subscriber\",\"-\",IF(AND('Enrollment Form'!B278<>\"Subscriber\",'Enrollment Form'!G278='Enrollment Form'!H278),\"N\",\"Y\")))","v":""},0]
[279,{"$f":"IF('Enrollment Form'!$A279<>\"\",\"Y\",\"N\")","v":"N"},{"$f":"IF(AND('Enrollment Form'!$B279=\"\",'Enrollment Form'!$C279<>\"\"),\"N\",IF($B272=\"N\",\"\",\"Y\"))","v":""},{"$f":"IF(OR($B272=\"N\",'Enrollment Form'!G279=\"\"),\"\",IF('Enrollment Form'!$B279<>\"Subscriber\",\"\",IF('Enrollment Form'!$G279='Enrollment Form'!$H279,\"Y\",\"N\")))","v":""},{"$f":"IF($B272=\"N\",\"\",IF(AND(COUNTIFS('Enrollment Form'!$H$11:$H$1000,'Enrollment Form'!$H279,'Enrollment Form'!$B$11:$B$1000,'Enrollment Form'!$B279)>1,'Enrollment Form'!$H279<>\"\"),\"N\",\"Y\"))","v":""},{"$f":"IF($B272=\"N\",\"\",IF(LEN('Enrollment Form'!$Y279)=0,\"\",IF(LEN('Enrollment Form'!$Y279)<>5,\"N\",\"Y\")))","v":""},{"$f":"IF($B272=\"N\",\"\",IF(LEN('Enrollment Form'!$AD279=0),\"\",IF(LEN('Enrollment Form'!$AD279)<>5,\"N\",\"Y\")))","v":""},{"$f":"IF($B272=\"N\",\"\",IF(LEN('Enrollment Form'!$BS279=0),\"\",IF(LEN('Enrollment Form'!$BS279)<>5,\"N\",\"Y\")))","v":""},{"$f":"IF($B272=\"N\",\"\",IF(LEN('Enrollment Form'!$AE279)=0,\"\",IF(LEN('Enrollment Form'!$AE279)<>10,\"N\",\"Y\")))","v":""},{"$f":"IF($B272=\"N\",\"\",IF(LEN('Enrollment Form'!$AF279)=0,\"\",IF(LEN('Enrollment Form'!$AF279)<>10,\"N\",\"Y\")))","v":""},{"$f":"IF('Enrollment Form'!$O279<>\"Graded\",\"-\",IF(AND('Enrollment Form'!$O279=\"Graded\",'Enrollment Form'!$AR279<>\"\"),\"Y\",\"N\"))","v":"-"},{"$f":"IF($B272=\"N\",\"\",IF(OR('Enrollment Form'!$B279<>\"Subscriber\",'Enrollment Form'!$C279=\"ROC\"),\"-\",IF(AND('Enrollment Form'!$B279=\"Subscriber\",'Enrollment Form'!$C279=\"Enroll\",'Enrollment Form'!$AJ279<>\"\"),\"Y\",\"N\")))","v":""},{"$f":"IF($B272=\"N\",\"\",IF(OR('Enrollment Form'!$B279<>\"Subscriber\",'Enrollment Form'!$C279=\"ROC\"),\"-\",IF(AND('Enrollment Form'!$B279=\"Subscriber\",'Enrollment Form'!$C279=\"Enroll\",'Enrollment Form'!$AK279<>\"\"),\"Y\",\"N\")))","v":""},{"$f":"IF($B272=\"N\",\"\",IF(OR('Enrollment Form'!$B279<>\"Subscriber\",'Enrollment Form'!$C279=\"ROC\"),\"-\",IF(AND('Enrollment Form'!$B279=\"Subscriber\",'Enrollment Form'!$C279=\"Enroll\",'Enrollment Form'!$AL279<>\"\"),\"Y\",\"N\")))","v":""},{"$f":"IF($B272=\"N\",\"\",IF(OR('Enrollment Form'!$B279<>\"Subscriber\",'Enrollment Form'!$C279=\"ROC\"),\"-\",IF(AND('Enrollment Form'!$B279=\"Subscriber\",'Enrollment Form'!$C279=\"Enroll\",'Enrollment Form'!$AP279<>\"\"),\"Y\",\"N\")))","v":""},{"$f":"IF($B272=\"N\",\"\",IF(OR('Enrollment Form'!$B279<>\"Subscriber\",'Enrollment Form'!$C279=\"ROC\"),\"-\",IF(AND('Enrollment Form'!$B279=\"Subscriber\",'Enrollment Form'!$C279=\"Enroll\",'Enrollment Form'!$AQ279<>\"\"),\"Y\",\"N\")))","v":""},{"$f":"IF($B272=\"N\",\"\",IF(OR('Enrollment Form'!$B279<>\"Subscriber\",'Enrollment Form'!$C279=\"ROC\"),\"-\",IF(AND('Enrollment Form'!$B279=\"Subscriber\",'Enrollment Form'!$C279=\"Enroll\",'Enrollment Form'!$AS279<>\"\"),\"Y\",\"N\")))","v":""},{"$f":"IF($B272=\"N\",\"\",IF($Q272=\"-\",\"-\",IF(AND($Q272=\"Y\",'Enrollment Form'!$AS279=\"No\"),\"-\",IF(AND($Q272=\"Y\",'Enrollment Form'!$AS279=\"Yes\",'Enrollment Form'!$AT279<>\"\"),\"Y\",\"N\"))))","v":""},{"$f":"IF($B272=\"N\",\"\",IF(OR('Enrollment Form'!$B279<>\"Subscriber\",'Enrollment Form'!$C279=\"ROC\"),\"-\",IF(AND('Enrollment Form'!$B279=\"Subscriber\",'Enrollment Form'!$C279=\"Enroll\",'Enrollment Form'!$CV279<>\"\"),\"Y\",\"N\")))","v":""},{"$f":"IF($B272=\"N\",\"\",IF($S272=\"-\",\"-\",IF(AND($S272=\"Y\",'Enrollment Form'!$CV279=\"No\"),\"-\",IF(AND($S272=\"Y\",'Enrollment Form'!$CV279=\"Yes\",'Enrollment Form'!$CW279<>\"\"),\"Y\",\"N\"))))","v":""},{"$f":"IF(OR('Enrollment Form'!$AY279=\"Yes\",'Enrollment Form'!$AY279=\"\"),\"-\",IF(OR(AND('Enrollment Form'!$AY279=\"No\",ISERROR(FIND(\"HMO\",VLOOKUP('Enrollment Form'!G279,'Enrollment Form'!H$11:J$1000,3,FALSE),1))=FALSE,COUNTA('Enrollment Form'!$AZ279:$BC279)=4),AND('Enrollment Form'!$AY279=\"No\",ISERROR(FIND(\"HMO\",VLOOKUP('Enrollment Form'!G279,'Enrollment Form'!H$11:J$1000,3,FALSE),1))=FALSE,COUNTA('Enrollment Form'!$BT279:$BW279)=4)),\"Y\",\"N\"))","v":"-"},{"$f":"IF($B272=\"N\",\"\",IF('Enrollment Form'!$B279=\"Subscriber\",\"-\",IF(COUNTA('Enrollment Form'!$BL279,'Enrollment Form'!$BN279)=2,\"Y\",\"N\")))","v":""},{"$f":"IF($B272=\"N\",\"\",IF(OR('Enrollment Form'!$AX279=\"\",'Enrollment Form'!$AX279=\"No\"),\"-\",IF(AND('Enrollment Form'!$AX279=\"Yes\",COUNTA('Enrollment Form'!$CR279)=1),\"Y\",\"N\")))","v":""},{"$f":"IF(OR('Enrollment Form'!$CR279=\"\",'Enrollment Form'!$CR279=\"No\"),\"-\",IF(COUNTA('Enrollment Form'!$CT279:$CU279)=2,\"Y\",\"N\"))","v":"-"},{"$f":"IF($B272=\"N\",\"\",IF(COUNTIF('Enrollment Form'!$DG279:$DP279,\"Other\")=COUNTA('Enrollment Form'!$DK279,'Enrollment Form'!$DH279,'Enrollment Form'!$DN279,'Enrollment Form'!$DQ279),\"Y\",\"N\"))","v":""},{"$f":"IF($B272=\"N\",\"\",IF(OR('Enrollment Form'!B279<>\"Subscriber\",'Enrollment Form'!C279=\"ROC\",COUNTIF('Enrollment Form'!AV279:AW279,\"Yes\")>=1),\"-\",IF(AND('Enrollment Form'!C279=\"Enroll\",COUNTIF('Enrollment Form'!AV279:AW279,\"No\")=2,'Enrollment Form'!AX279=\"\"),\"N\",\"Y\")))","v":""},{"$f":"IF(OR(B272=\"N\",'Enrollment Form'!B279<>\"Subscriber\",'Enrollment Form'!C279=\"ROC\",'Enrollment Form'!O279<>\"Multiple of Salary\"),\"-\",IF(COUNTA('Enrollment Form'!T279:U279)<2,\"N\",\"Y\"))","v":"-"},{"$f":"IF(B272=\"N\",\"\",IF(OR('Enrollment Form'!C279=\"ROC\",'Enrollment Form'!B279<>\"Subscriber\",'Enrollment Form'!O279=\"Waive\",'Enrollment Form'!O279=\"\"),\"-\",IF('Enrollment Form'!P279=\"\",\"N\",\"Y\")))","v":""},{"$f":"IF($B272=\"N\",\"\",IF(AND('Enrollment Form'!$C279=\"ROC\",'Enrollment Form'!$DR279<>\"\"),\"Y\",IF(AND('Enrollment Form'!$C279=\"ROC\",'Enrollment Form'!$DR279=\"\"),\"N\",IF(AND('Enrollment Form'!$C279=\"Enroll\",'Enrollment Form'!$B279=\"Subscriber\",'Enrollment Form'!$CX279=\"No\",'Enrollment Form'!$DR279=\"\"),\"N\",IF(AND('Enrollment Form'!$C279=\"Enroll\",'Enrollment Form'!$B279=\"Subscriber\",'Enrollment Form'!$CX279=\"Yes\"),\"-\",\"Y\")))))","v":""},{"$f":"IF($B272=\"N\",\"\",IF(AND('Enrollment Form'!$C279=\"ROC\",'Enrollment Form'!$DS279<>\"\"),\"Y\",IF(AND('Enrollment Form'!$C279=\"ROC\",'Enrollment Form'!$DS279=\"\"),\"N\",IF(AND('Enrollment Form'!$C279=\"Enroll\",'Enrollment Form'!$B279=\"Subscriber\",'Enrollment Form'!$CX279=\"No\",'Enrollment Form'!$DS279=\"\"),\"N\",IF(AND('Enrollment Form'!$C279=\"Enroll\",'Enrollment Form'!$B279=\"Subscriber\",'Enrollment Form'!$CX279=\"Yes\"),\"-\",\"Y\")))))","v":""},{"$f":"IF('Enrollment Form'!AH279=\"\",\"\",IF(ISERROR(SEARCH(\".\",'Enrollment Form'!AH279,SEARCH(\"@\",'Enrollment Form'!AH279))),\"N\",\"Y\"))","v":""},{"$f":"IF(OR($B272=\"N\",'Enrollment Form'!$G279=\"\"),\"\",IF('Enrollment Form'!$B279<>\"Subscriber\",\"-\",IF(COUNTIF('Enrollment Form'!$AV279:$AW279,\"Yes\")=2,\"N\",\"Y\")))","v":""},{"$f":"IF(OR('Enrollment Form'!$CJ279=\"\",'Enrollment Form'!$CJ279=\"No\"),\"-\",IF(AND('Enrollment Form'!$CJ279=\"Yes\",'Enrollment Form'!$CK279=\"\"),\"N\",\"Y\"))","v":"-"},{"$f":"IF(OR('Enrollment Form'!$CL279=\"\",'Enrollment Form'!$CL279=\"No\"),\"-\",IF(AND('Enrollment Form'!$CL279=\"Yes\",'Enrollment Form'!$CM279=\"\"),\"N\",\"Y\"))","v":"-"},{"$f":"IF(OR('Enrollment Form'!$CN279=\"\",'Enrollment Form'!$CN279=\"No\"),\"-\",IF(AND('Enrollment Form'!$CN279=\"Yes\",'Enrollment Form'!$CO279=\"\"),\"N\",\"Y\"))","v":"-"},{"$f":"IF(OR('Enrollment Form'!$CN279=\"\",'Enrollment Form'!$CN279=\"No\"),\"-\",IF(AND('Enrollment Form'!$CN279=\"Yes\",'Enrollment Form'!$CP279=\"\"),\"N\",\"Y\"))","v":"-"},{"$f":"IF('Enrollment Form'!B279<>\"Subscriber\",\"-\",IF(AND('Enrollment Form'!B279=\"Subscriber\",'Enrollment Form'!C279=\"Enroll\",'Enrollment Form'!AA279=\"\"),\"N\",\"Y\"))","v":"-"},{"$f":"IF(OR('Enrollment Form'!B279=\"Subscriber\",'Enrollment Form'!B279=\"\"),\"-\",IF('Enrollment Form'!BP279=\"\",\"N\",\"Y\"))","v":"-"},{"$f":"IF('Enrollment Form'!B279<>\"Subscriber\",\"-\",IF(AND('Enrollment Form'!B279=\"Subscriber\",'Enrollment Form'!G279=\"\"),\"N\",\"Y\"))","v":"-"},{"$f":"IF('Enrollment Form'!A279=\"\",\"\",IF('Enrollment Form'!B279=\"Subscriber\",\"-\",IF(AND('Enrollment Form'!B279<>\"Subscriber\",'Enrollment Form'!G279='Enrollment Form'!H279),\"N\",\"Y\")))","v":""},0]
[280,{"$f":"IF('Enrollment Form'!$A280<>\"\",\"Y\",\"N\")","v":"N"},{"$f":"IF(AND('Enrollment Form'!$B280=\"\",'Enrollment Form'!$C280<>\"\"),\"N\",IF($B273=\"N\",\"\",\"Y\"))","v":""},{"$f":"IF(OR($B273=\"N\",'Enrollment Form'!G280=\"\"),\"\",IF('Enrollment Form'!$B280<>\"Subscriber\",\"\",IF('Enrollment Form'!$G280='Enrollment Form'!$H280,\"Y\",\"N\")))","v":""},{"$f":"IF($B273=\"N\",\"\",IF(AND(COUNTIFS('Enrollment Form'!$H$11:$H$1000,'Enrollment Form'!$H280,'Enrollment Form'!$B$11:$B$1000,'Enrollment Form'!$B280)>1,'Enrollment Form'!$H280<>\"\"),\"N\",\"Y\"))","v":""},{"$f":"IF($B273=\"N\",\"\",IF(LEN('Enrollment Form'!$Y280)=0,\"\",IF(LEN('Enrollment Form'!$Y280)<>5,\"N\",\"Y\")))","v":""},{"$f":"IF($B273=\"N\",\"\",IF(LEN('Enrollment Form'!$AD280=0),\"\",IF(LEN('Enrollment Form'!$AD280)<>5,\"N\",\"Y\")))","v":""},{"$f":"IF($B273=\"N\",\"\",IF(LEN('Enrollment Form'!$BS280=0),\"\",IF(LEN('Enrollment Form'!$BS280)<>5,\"N\",\"Y\")))","v":""},{"$f":"IF($B273=\"N\",\"\",IF(LEN('Enrollment Form'!$AE280)=0,\"\",IF(LEN('Enrollment Form'!$AE280)<>10,\"N\",\"Y\")))","v":""},{"$f":"IF($B273=\"N\",\"\",IF(LEN('Enrollment Form'!$AF280)=0,\"\",IF(LEN('Enrollment Form'!$AF280)<>10,\"N\",\"Y\")))","v":""},{"$f":"IF('Enrollment Form'!$O280<>\"Graded\",\"-\",IF(AND('Enrollment Form'!$O280=\"Graded\",'Enrollment Form'!$AR280<>\"\"),\"Y\",\"N\"))","v":"-"},{"$f":"IF($B273=\"N\",\"\",IF(OR('Enrollment Form'!$B280<>\"Subscriber\",'Enrollment Form'!$C280=\"ROC\"),\"-\",IF(AND('Enrollment Form'!$B280=\"Subscriber\",'Enrollment Form'!$C280=\"Enroll\",'Enrollment Form'!$AJ280<>\"\"),\"Y\",\"N\")))","v":""},{"$f":"IF($B273=\"N\",\"\",IF(OR('Enrollment Form'!$B280<>\"Subscriber\",'Enrollment Form'!$C280=\"ROC\"),\"-\",IF(AND('Enrollment Form'!$B280=\"Subscriber\",'Enrollment Form'!$C280=\"Enroll\",'Enrollment Form'!$AK280<>\"\"),\"Y\",\"N\")))","v":""},{"$f":"IF($B273=\"N\",\"\",IF(OR('Enrollment Form'!$B280<>\"Subscriber\",'Enrollment Form'!$C280=\"ROC\"),\"-\",IF(AND('Enrollment Form'!$B280=\"Subscriber\",'Enrollment Form'!$C280=\"Enroll\",'Enrollment Form'!$AL280<>\"\"),\"Y\",\"N\")))","v":""},{"$f":"IF($B273=\"N\",\"\",IF(OR('Enrollment Form'!$B280<>\"Subscriber\",'Enrollment Form'!$C280=\"ROC\"),\"-\",IF(AND('Enrollment Form'!$B280=\"Subscriber\",'Enrollment Form'!$C280=\"Enroll\",'Enrollment Form'!$AP280<>\"\"),\"Y\",\"N\")))","v":""},{"$f":"IF($B273=\"N\",\"\",IF(OR('Enrollment Form'!$B280<>\"Subscriber\",'Enrollment Form'!$C280=\"ROC\"),\"-\",IF(AND('Enrollment Form'!$B280=\"Subscriber\",'Enrollment Form'!$C280=\"Enroll\",'Enrollment Form'!$AQ280<>\"\"),\"Y\",\"N\")))","v":""},{"$f":"IF($B273=\"N\",\"\",IF(OR('Enrollment Form'!$B280<>\"Subscriber\",'Enrollment Form'!$C280=\"ROC\"),\"-\",IF(AND('Enrollment Form'!$B280=\"Subscriber\",'Enrollment Form'!$C280=\"Enroll\",'Enrollment Form'!$AS280<>\"\"),\"Y\",\"N\")))","v":""},{"$f":"IF($B273=\"N\",\"\",IF($Q273=\"-\",\"-\",IF(AND($Q273=\"Y\",'Enrollment Form'!$AS280=\"No\"),\"-\",IF(AND($Q273=\"Y\",'Enrollment Form'!$AS280=\"Yes\",'Enrollment Form'!$AT280<>\"\"),\"Y\",\"N\"))))","v":""},{"$f":"IF($B273=\"N\",\"\",IF(OR('Enrollment Form'!$B280<>\"Subscriber\",'Enrollment Form'!$C280=\"ROC\"),\"-\",IF(AND('Enrollment Form'!$B280=\"Subscriber\",'Enrollment Form'!$C280=\"Enroll\",'Enrollment Form'!$CV280<>\"\"),\"Y\",\"N\")))","v":""},{"$f":"IF($B273=\"N\",\"\",IF($S273=\"-\",\"-\",IF(AND($S273=\"Y\",'Enrollment Form'!$CV280=\"No\"),\"-\",IF(AND($S273=\"Y\",'Enrollment Form'!$CV280=\"Yes\",'Enrollment Form'!$CW280<>\"\"),\"Y\",\"N\"))))","v":""},{"$f":"IF(OR('Enrollment Form'!$AY280=\"Yes\",'Enrollment Form'!$AY280=\"\"),\"-\",IF(OR(AND('Enrollment Form'!$AY280=\"No\",ISERROR(FIND(\"HMO\",VLOOKUP('Enrollment Form'!G280,'Enrollment Form'!H$11:J$1000,3,FALSE),1))=FALSE,COUNTA('Enrollment Form'!$AZ280:$BC280)=4),AND('Enrollment Form'!$AY280=\"No\",ISERROR(FIND(\"HMO\",VLOOKUP('Enrollment Form'!G280,'Enrollment Form'!H$11:J$1000,3,FALSE),1))=FALSE,COUNTA('Enrollment Form'!$BT280:$BW280)=4)),\"Y\",\"N\"))","v":"-"},{"$f":"IF($B273=\"N\",\"\",IF('Enrollment Form'!$B280=\"Subscriber\",\"-\",IF(COUNTA('Enrollment Form'!$BL280,'Enrollment Form'!$BN280)=2,\"Y\",\"N\")))","v":""},{"$f":"IF($B273=\"N\",\"\",IF(OR('Enrollment Form'!$AX280=\"\",'Enrollment Form'!$AX280=\"No\"),\"-\",IF(AND('Enrollment Form'!$AX280=\"Yes\",COUNTA('Enrollment Form'!$CR280)=1),\"Y\",\"N\")))","v":""},{"$f":"IF(OR('Enrollment Form'!$CR280=\"\",'Enrollment Form'!$CR280=\"No\"),\"-\",IF(COUNTA('Enrollment Form'!$CT280:$CU280)=2,\"Y\",\"N\"))","v":"-"},{"$f":"IF($B273=\"N\",\"\",IF(COUNTIF('Enrollment Form'!$DG280:$DP280,\"Other\")=COUNTA('Enrollment Form'!$DK280,'Enrollment Form'!$DH280,'Enrollment Form'!$DN280,'Enrollment Form'!$DQ280),\"Y\",\"N\"))","v":""},{"$f":"IF($B273=\"N\",\"\",IF(OR('Enrollment Form'!B280<>\"Subscriber\",'Enrollment Form'!C280=\"ROC\",COUNTIF('Enrollment Form'!AV280:AW280,\"Yes\")>=1),\"-\",IF(AND('Enrollment Form'!C280=\"Enroll\",COUNTIF('Enrollment Form'!AV280:AW280,\"No\")=2,'Enrollment Form'!AX280=\"\"),\"N\",\"Y\")))","v":""},{"$f":"IF(OR(B273=\"N\",'Enrollment Form'!B280<>\"Subscriber\",'Enrollment Form'!C280=\"ROC\",'Enrollment Form'!O280<>\"Multiple of Salary\"),\"-\",IF(COUNTA('Enrollment Form'!T280:U280)<2,\"N\",\"Y\"))","v":"-"},{"$f":"IF(B273=\"N\",\"\",IF(OR('Enrollment Form'!C280=\"ROC\",'Enrollment Form'!B280<>\"Subscriber\",'Enrollment Form'!O280=\"Waive\",'Enrollment Form'!O280=\"\"),\"-\",IF('Enrollment Form'!P280=\"\",\"N\",\"Y\")))","v":""},{"$f":"IF($B273=\"N\",\"\",IF(AND('Enrollment Form'!$C280=\"ROC\",'Enrollment Form'!$DR280<>\"\"),\"Y\",IF(AND('Enrollment Form'!$C280=\"ROC\",'Enrollment Form'!$DR280=\"\"),\"N\",IF(AND('Enrollment Form'!$C280=\"Enroll\",'Enrollment Form'!$B280=\"Subscriber\",'Enrollment Form'!$CX280=\"No\",'Enrollment Form'!$DR280=\"\"),\"N\",IF(AND('Enrollment Form'!$C280=\"Enroll\",'Enrollment Form'!$B280=\"Subscriber\",'Enrollment Form'!$CX280=\"Yes\"),\"-\",\"Y\")))))","v":""},{"$f":"IF($B273=\"N\",\"\",IF(AND('Enrollment Form'!$C280=\"ROC\",'Enrollment Form'!$DS280<>\"\"),\"Y\",IF(AND('Enrollment Form'!$C280=\"ROC\",'Enrollment Form'!$DS280=\"\"),\"N\",IF(AND('Enrollment Form'!$C280=\"Enroll\",'Enrollment Form'!$B280=\"Subscriber\",'Enrollment Form'!$CX280=\"No\",'Enrollment Form'!$DS280=\"\"),\"N\",IF(AND('Enrollment Form'!$C280=\"Enroll\",'Enrollment Form'!$B280=\"Subscriber\",'Enrollment Form'!$CX280=\"Yes\"),\"-\",\"Y\")))))","v":""},{"$f":"IF('Enrollment Form'!AH280=\"\",\"\",IF(ISERROR(SEARCH(\".\",'Enrollment Form'!AH280,SEARCH(\"@\",'Enrollment Form'!AH280))),\"N\",\"Y\"))","v":""},{"$f":"IF(OR($B273=\"N\",'Enrollment Form'!$G280=\"\"),\"\",IF('Enrollment Form'!$B280<>\"Subscriber\",\"-\",IF(COUNTIF('Enrollment Form'!$AV280:$AW280,\"Yes\")=2,\"N\",\"Y\")))","v":""},{"$f":"IF(OR('Enrollment Form'!$CJ280=\"\",'Enrollment Form'!$CJ280=\"No\"),\"-\",IF(AND('Enrollment Form'!$CJ280=\"Yes\",'Enrollment Form'!$CK280=\"\"),\"N\",\"Y\"))","v":"-"},{"$f":"IF(OR('Enrollment Form'!$CL280=\"\",'Enrollment Form'!$CL280=\"No\"),\"-\",IF(AND('Enrollment Form'!$CL280=\"Yes\",'Enrollment Form'!$CM280=\"\"),\"N\",\"Y\"))","v":"-"},{"$f":"IF(OR('Enrollment Form'!$CN280=\"\",'Enrollment Form'!$CN280=\"No\"),\"-\",IF(AND('Enrollment Form'!$CN280=\"Yes\",'Enrollment Form'!$CO280=\"\"),\"N\",\"Y\"))","v":"-"},{"$f":"IF(OR('Enrollment Form'!$CN280=\"\",'Enrollment Form'!$CN280=\"No\"),\"-\",IF(AND('Enrollment Form'!$CN280=\"Yes\",'Enrollment Form'!$CP280=\"\"),\"N\",\"Y\"))","v":"-"},{"$f":"IF('Enrollment Form'!B280<>\"Subscriber\",\"-\",IF(AND('Enrollment Form'!B280=\"Subscriber\",'Enrollment Form'!C280=\"Enroll\",'Enrollment Form'!AA280=\"\"),\"N\",\"Y\"))","v":"-"},{"$f":"IF(OR('Enrollment Form'!B280=\"Subscriber\",'Enrollment Form'!B280=\"\"),\"-\",IF('Enrollment Form'!BP280=\"\",\"N\",\"Y\"))","v":"-"},{"$f":"IF('Enrollment Form'!B280<>\"Subscriber\",\"-\",IF(AND('Enrollment Form'!B280=\"Subscriber\",'Enrollment Form'!G280=\"\"),\"N\",\"Y\"))","v":"-"},{"$f":"IF('Enrollment Form'!A280=\"\",\"\",IF('Enrollment Form'!B280=\"Subscriber\",\"-\",IF(AND('Enrollment Form'!B280<>\"Subscriber\",'Enrollment Form'!G280='Enrollment Form'!H280),\"N\",\"Y\")))","v":""},0]
[281,{"$f":"IF('Enrollment Form'!$A281<>\"\",\"Y\",\"N\")","v":"N"},{"$f":"IF(AND('Enrollment Form'!$B281=\"\",'Enrollment Form'!$C281<>\"\"),\"N\",IF($B274=\"N\",\"\",\"Y\"))","v":""},{"$f":"IF(OR($B274=\"N\",'Enrollment Form'!G281=\"\"),\"\",IF('Enrollment Form'!$B281<>\"Subscriber\",\"\",IF('Enrollment Form'!$G281='Enrollment Form'!$H281,\"Y\",\"N\")))","v":""},{"$f":"IF($B274=\"N\",\"\",IF(AND(COUNTIFS('Enrollment Form'!$H$11:$H$1000,'Enrollment Form'!$H281,'Enrollment Form'!$B$11:$B$1000,'Enrollment Form'!$B281)>1,'Enrollment Form'!$H281<>\"\"),\"N\",\"Y\"))","v":""},{"$f":"IF($B274=\"N\",\"\",IF(LEN('Enrollment Form'!$Y281)=0,\"\",IF(LEN('Enrollment Form'!$Y281)<>5,\"N\",\"Y\")))","v":""},{"$f":"IF($B274=\"N\",\"\",IF(LEN('Enrollment Form'!$AD281=0),\"\",IF(LEN('Enrollment Form'!$AD281)<>5,\"N\",\"Y\")))","v":""},{"$f":"IF($B274=\"N\",\"\",IF(LEN('Enrollment Form'!$BS281=0),\"\",IF(LEN('Enrollment Form'!$BS281)<>5,\"N\",\"Y\")))","v":""},{"$f":"IF($B274=\"N\",\"\",IF(LEN('Enrollment Form'!$AE281)=0,\"\",IF(LEN('Enrollment Form'!$AE281)<>10,\"N\",\"Y\")))","v":""},{"$f":"IF($B274=\"N\",\"\",IF(LEN('Enrollment Form'!$AF281)=0,\"\",IF(LEN('Enrollment Form'!$AF281)<>10,\"N\",\"Y\")))","v":""},{"$f":"IF('Enrollment Form'!$O281<>\"Graded\",\"-\",IF(AND('Enrollment Form'!$O281=\"Graded\",'Enrollment Form'!$AR281<>\"\"),\"Y\",\"N\"))","v":"-"},{"$f":"IF($B274=\"N\",\"\",IF(OR('Enrollment Form'!$B281<>\"Subscriber\",'Enrollment Form'!$C281=\"ROC\"),\"-\",IF(AND('Enrollment Form'!$B281=\"Subscriber\",'Enrollment Form'!$C281=\"Enroll\",'Enrollment Form'!$AJ281<>\"\"),\"Y\",\"N\")))","v":""},{"$f":"IF($B274=\"N\",\"\",IF(OR('Enrollment Form'!$B281<>\"Subscriber\",'Enrollment Form'!$C281=\"ROC\"),\"-\",IF(AND('Enrollment Form'!$B281=\"Subscriber\",'Enrollment Form'!$C281=\"Enroll\",'Enrollment Form'!$AK281<>\"\"),\"Y\",\"N\")))","v":""},{"$f":"IF($B274=\"N\",\"\",IF(OR('Enrollment Form'!$B281<>\"Subscriber\",'Enrollment Form'!$C281=\"ROC\"),\"-\",IF(AND('Enrollment Form'!$B281=\"Subscriber\",'Enrollment Form'!$C281=\"Enroll\",'Enrollment Form'!$AL281<>\"\"),\"Y\",\"N\")))","v":""},{"$f":"IF($B274=\"N\",\"\",IF(OR('Enrollment Form'!$B281<>\"Subscriber\",'Enrollment Form'!$C281=\"ROC\"),\"-\",IF(AND('Enrollment Form'!$B281=\"Subscriber\",'Enrollment Form'!$C281=\"Enroll\",'Enrollment Form'!$AP281<>\"\"),\"Y\",\"N\")))","v":""},{"$f":"IF($B274=\"N\",\"\",IF(OR('Enrollment Form'!$B281<>\"Subscriber\",'Enrollment Form'!$C281=\"ROC\"),\"-\",IF(AND('Enrollment Form'!$B281=\"Subscriber\",'Enrollment Form'!$C281=\"Enroll\",'Enrollment Form'!$AQ281<>\"\"),\"Y\",\"N\")))","v":""},{"$f":"IF($B274=\"N\",\"\",IF(OR('Enrollment Form'!$B281<>\"Subscriber\",'Enrollment Form'!$C281=\"ROC\"),\"-\",IF(AND('Enrollment Form'!$B281=\"Subscriber\",'Enrollment Form'!$C281=\"Enroll\",'Enrollment Form'!$AS281<>\"\"),\"Y\",\"N\")))","v":""},{"$f":"IF($B274=\"N\",\"\",IF($Q274=\"-\",\"-\",IF(AND($Q274=\"Y\",'Enrollment Form'!$AS281=\"No\"),\"-\",IF(AND($Q274=\"Y\",'Enrollment Form'!$AS281=\"Yes\",'Enrollment Form'!$AT281<>\"\"),\"Y\",\"N\"))))","v":""},{"$f":"IF($B274=\"N\",\"\",IF(OR('Enrollment Form'!$B281<>\"Subscriber\",'Enrollment Form'!$C281=\"ROC\"),\"-\",IF(AND('Enrollment Form'!$B281=\"Subscriber\",'Enrollment Form'!$C281=\"Enroll\",'Enrollment Form'!$CV281<>\"\"),\"Y\",\"N\")))","v":""},{"$f":"IF($B274=\"N\",\"\",IF($S274=\"-\",\"-\",IF(AND($S274=\"Y\",'Enrollment Form'!$CV281=\"No\"),\"-\",IF(AND($S274=\"Y\",'Enrollment Form'!$CV281=\"Yes\",'Enrollment Form'!$CW281<>\"\"),\"Y\",\"N\"))))","v":""},{"$f":"IF(OR('Enrollment Form'!$AY281=\"Yes\",'Enrollment Form'!$AY281=\"\"),\"-\",IF(OR(AND('Enrollment Form'!$AY281=\"No\",ISERROR(FIND(\"HMO\",VLOOKUP('Enrollment Form'!G281,'Enrollment Form'!H$11:J$1000,3,FALSE),1))=FALSE,COUNTA('Enrollment Form'!$AZ281:$BC281)=4),AND('Enrollment Form'!$AY281=\"No\",ISERROR(FIND(\"HMO\",VLOOKUP('Enrollment Form'!G281,'Enrollment Form'!H$11:J$1000,3,FALSE),1))=FALSE,COUNTA('Enrollment Form'!$BT281:$BW281)=4)),\"Y\",\"N\"))","v":"-"},{"$f":"IF($B274=\"N\",\"\",IF('Enrollment Form'!$B281=\"Subscriber\",\"-\",IF(COUNTA('Enrollment Form'!$BL281,'Enrollment Form'!$BN281)=2,\"Y\",\"N\")))","v":""},{"$f":"IF($B274=\"N\",\"\",IF(OR('Enrollment Form'!$AX281=\"\",'Enrollment Form'!$AX281=\"No\"),\"-\",IF(AND('Enrollment Form'!$AX281=\"Yes\",COUNTA('Enrollment Form'!$CR281)=1),\"Y\",\"N\")))","v":""},{"$f":"IF(OR('Enrollment Form'!$CR281=\"\",'Enrollment Form'!$CR281=\"No\"),\"-\",IF(COUNTA('Enrollment Form'!$CT281:$CU281)=2,\"Y\",\"N\"))","v":"-"},{"$f":"IF($B274=\"N\",\"\",IF(COUNTIF('Enrollment Form'!$DG281:$DP281,\"Other\")=COUNTA('Enrollment Form'!$DK281,'Enrollment Form'!$DH281,'Enrollment Form'!$DN281,'Enrollment Form'!$DQ281),\"Y\",\"N\"))","v":""},{"$f":"IF($B274=\"N\",\"\",IF(OR('Enrollment Form'!B281<>\"Subscriber\",'Enrollment Form'!C281=\"ROC\",COUNTIF('Enrollment Form'!AV281:AW281,\"Yes\")>=1),\"-\",IF(AND('Enrollment Form'!C281=\"Enroll\",COUNTIF('Enrollment Form'!AV281:AW281,\"No\")=2,'Enrollment Form'!AX281=\"\"),\"N\",\"Y\")))","v":""},{"$f":"IF(OR(B274=\"N\",'Enrollment Form'!B281<>\"Subscriber\",'Enrollment Form'!C281=\"ROC\",'Enrollment Form'!O281<>\"Multiple of Salary\"),\"-\",IF(COUNTA('Enrollment Form'!T281:U281)<2,\"N\",\"Y\"))","v":"-"},{"$f":"IF(B274=\"N\",\"\",IF(OR('Enrollment Form'!C281=\"ROC\",'Enrollment Form'!B281<>\"Subscriber\",'Enrollment Form'!O281=\"Waive\",'Enrollment Form'!O281=\"\"),\"-\",IF('Enrollment Form'!P281=\"\",\"N\",\"Y\")))","v":""},{"$f":"IF($B274=\"N\",\"\",IF(AND('Enrollment Form'!$C281=\"ROC\",'Enrollment Form'!$DR281<>\"\"),\"Y\",IF(AND('Enrollment Form'!$C281=\"ROC\",'Enrollment Form'!$DR281=\"\"),\"N\",IF(AND('Enrollment Form'!$C281=\"Enroll\",'Enrollment Form'!$B281=\"Subscriber\",'Enrollment Form'!$CX281=\"No\",'Enrollment Form'!$DR281=\"\"),\"N\",IF(AND('Enrollment Form'!$C281=\"Enroll\",'Enrollment Form'!$B281=\"Subscriber\",'Enrollment Form'!$CX281=\"Yes\"),\"-\",\"Y\")))))","v":""},{"$f":"IF($B274=\"N\",\"\",IF(AND('Enrollment Form'!$C281=\"ROC\",'Enrollment Form'!$DS281<>\"\"),\"Y\",IF(AND('Enrollment Form'!$C281=\"ROC\",'Enrollment Form'!$DS281=\"\"),\"N\",IF(AND('Enrollment Form'!$C281=\"Enroll\",'Enrollment Form'!$B281=\"Subscriber\",'Enrollment Form'!$CX281=\"No\",'Enrollment Form'!$DS281=\"\"),\"N\",IF(AND('Enrollment Form'!$C281=\"Enroll\",'Enrollment Form'!$B281=\"Subscriber\",'Enrollment Form'!$CX281=\"Yes\"),\"-\",\"Y\")))))","v":""},{"$f":"IF('Enrollment Form'!AH281=\"\",\"\",IF(ISERROR(SEARCH(\".\",'Enrollment Form'!AH281,SEARCH(\"@\",'Enrollment Form'!AH281))),\"N\",\"Y\"))","v":""},{"$f":"IF(OR($B274=\"N\",'Enrollment Form'!$G281=\"\"),\"\",IF('Enrollment Form'!$B281<>\"Subscriber\",\"-\",IF(COUNTIF('Enrollment Form'!$AV281:$AW281,\"Yes\")=2,\"N\",\"Y\")))","v":""},{"$f":"IF(OR('Enrollment Form'!$CJ281=\"\",'Enrollment Form'!$CJ281=\"No\"),\"-\",IF(AND('Enrollment Form'!$CJ281=\"Yes\",'Enrollment Form'!$CK281=\"\"),\"N\",\"Y\"))","v":"-"},{"$f":"IF(OR('Enrollment Form'!$CL281=\"\",'Enrollment Form'!$CL281=\"No\"),\"-\",IF(AND('Enrollment Form'!$CL281=\"Yes\",'Enrollment Form'!$CM281=\"\"),\"N\",\"Y\"))","v":"-"},{"$f":"IF(OR('Enrollment Form'!$CN281=\"\",'Enrollment Form'!$CN281=\"No\"),\"-\",IF(AND('Enrollment Form'!$CN281=\"Yes\",'Enrollment Form'!$CO281=\"\"),\"N\",\"Y\"))","v":"-"},{"$f":"IF(OR('Enrollment Form'!$CN281=\"\",'Enrollment Form'!$CN281=\"No\"),\"-\",IF(AND('Enrollment Form'!$CN281=\"Yes\",'Enrollment Form'!$CP281=\"\"),\"N\",\"Y\"))","v":"-"},{"$f":"IF('Enrollment Form'!B281<>\"Subscriber\",\"-\",IF(AND('Enrollment Form'!B281=\"Subscriber\",'Enrollment Form'!C281=\"Enroll\",'Enrollment Form'!AA281=\"\"),\"N\",\"Y\"))","v":"-"},{"$f":"IF(OR('Enrollment Form'!B281=\"Subscriber\",'Enrollment Form'!B281=\"\"),\"-\",IF('Enrollment Form'!BP281=\"\",\"N\",\"Y\"))","v":"-"},{"$f":"IF('Enrollment Form'!B281<>\"Subscriber\",\"-\",IF(AND('Enrollment Form'!B281=\"Subscriber\",'Enrollment Form'!G281=\"\"),\"N\",\"Y\"))","v":"-"},{"$f":"IF('Enrollment Form'!A281=\"\",\"\",IF('Enrollment Form'!B281=\"Subscriber\",\"-\",IF(AND('Enrollment Form'!B281<>\"Subscriber\",'Enrollment Form'!G281='Enrollment Form'!H281),\"N\",\"Y\")))","v":""},0]
[282,{"$f":"IF('Enrollment Form'!$A282<>\"\",\"Y\",\"N\")","v":"N"},{"$f":"IF(AND('Enrollment Form'!$B282=\"\",'Enrollment Form'!$C282<>\"\"),\"N\",IF($B275=\"N\",\"\",\"Y\"))","v":""},{"$f":"IF(OR($B275=\"N\",'Enrollment Form'!G282=\"\"),\"\",IF('Enrollment Form'!$B282<>\"Subscriber\",\"\",IF('Enrollment Form'!$G282='Enrollment Form'!$H282,\"Y\",\"N\")))","v":""},{"$f":"IF($B275=\"N\",\"\",IF(AND(COUNTIFS('Enrollment Form'!$H$11:$H$1000,'Enrollment Form'!$H282,'Enrollment Form'!$B$11:$B$1000,'Enrollment Form'!$B282)>1,'Enrollment Form'!$H282<>\"\"),\"N\",\"Y\"))","v":""},{"$f":"IF($B275=\"N\",\"\",IF(LEN('Enrollment Form'!$Y282)=0,\"\",IF(LEN('Enrollment Form'!$Y282)<>5,\"N\",\"Y\")))","v":""},{"$f":"IF($B275=\"N\",\"\",IF(LEN('Enrollment Form'!$AD282=0),\"\",IF(LEN('Enrollment Form'!$AD282)<>5,\"N\",\"Y\")))","v":""},{"$f":"IF($B275=\"N\",\"\",IF(LEN('Enrollment Form'!$BS282=0),\"\",IF(LEN('Enrollment Form'!$BS282)<>5,\"N\",\"Y\")))","v":""},{"$f":"IF($B275=\"N\",\"\",IF(LEN('Enrollment Form'!$AE282)=0,\"\",IF(LEN('Enrollment Form'!$AE282)<>10,\"N\",\"Y\")))","v":""},{"$f":"IF($B275=\"N\",\"\",IF(LEN('Enrollment Form'!$AF282)=0,\"\",IF(LEN('Enrollment Form'!$AF282)<>10,\"N\",\"Y\")))","v":""},{"$f":"IF('Enrollment Form'!$O282<>\"Graded\",\"-\",IF(AND('Enrollment Form'!$O282=\"Graded\",'Enrollment Form'!$AR282<>\"\"),\"Y\",\"N\"))","v":"-"},{"$f":"IF($B275=\"N\",\"\",IF(OR('Enrollment Form'!$B282<>\"Subscriber\",'Enrollment Form'!$C282=\"ROC\"),\"-\",IF(AND('Enrollment Form'!$B282=\"Subscriber\",'Enrollment Form'!$C282=\"Enroll\",'Enrollment Form'!$AJ282<>\"\"),\"Y\",\"N\")))","v":""},{"$f":"IF($B275=\"N\",\"\",IF(OR('Enrollment Form'!$B282<>\"Subscriber\",'Enrollment Form'!$C282=\"ROC\"),\"-\",IF(AND('Enrollment Form'!$B282=\"Subscriber\",'Enrollment Form'!$C282=\"Enroll\",'Enrollment Form'!$AK282<>\"\"),\"Y\",\"N\")))","v":""},{"$f":"IF($B275=\"N\",\"\",IF(OR('Enrollment Form'!$B282<>\"Subscriber\",'Enrollment Form'!$C282=\"ROC\"),\"-\",IF(AND('Enrollment Form'!$B282=\"Subscriber\",'Enrollment Form'!$C282=\"Enroll\",'Enrollment Form'!$AL282<>\"\"),\"Y\",\"N\")))","v":""},{"$f":"IF($B275=\"N\",\"\",IF(OR('Enrollment Form'!$B282<>\"Subscriber\",'Enrollment Form'!$C282=\"ROC\"),\"-\",IF(AND('Enrollment Form'!$B282=\"Subscriber\",'Enrollment Form'!$C282=\"Enroll\",'Enrollment Form'!$AP282<>\"\"),\"Y\",\"N\")))","v":""},{"$f":"IF($B275=\"N\",\"\",IF(OR('Enrollment Form'!$B282<>\"Subscriber\",'Enrollment Form'!$C282=\"ROC\"),\"-\",IF(AND('Enrollment Form'!$B282=\"Subscriber\",'Enrollment Form'!$C282=\"Enroll\",'Enrollment Form'!$AQ282<>\"\"),\"Y\",\"N\")))","v":""},{"$f":"IF($B275=\"N\",\"\",IF(OR('Enrollment Form'!$B282<>\"Subscriber\",'Enrollment Form'!$C282=\"ROC\"),\"-\",IF(AND('Enrollment Form'!$B282=\"Subscriber\",'Enrollment Form'!$C282=\"Enroll\",'Enrollment Form'!$AS282<>\"\"),\"Y\",\"N\")))","v":""},{"$f":"IF($B275=\"N\",\"\",IF($Q275=\"-\",\"-\",IF(AND($Q275=\"Y\",'Enrollment Form'!$AS282=\"No\"),\"-\",IF(AND($Q275=\"Y\",'Enrollment Form'!$AS282=\"Yes\",'Enrollment Form'!$AT282<>\"\"),\"Y\",\"N\"))))","v":""},{"$f":"IF($B275=\"N\",\"\",IF(OR('Enrollment Form'!$B282<>\"Subscriber\",'Enrollment Form'!$C282=\"ROC\"),\"-\",IF(AND('Enrollment Form'!$B282=\"Subscriber\",'Enrollment Form'!$C282=\"Enroll\",'Enrollment Form'!$CV282<>\"\"),\"Y\",\"N\")))","v":""},{"$f":"IF($B275=\"N\",\"\",IF($S275=\"-\",\"-\",IF(AND($S275=\"Y\",'Enrollment Form'!$CV282=\"No\"),\"-\",IF(AND($S275=\"Y\",'Enrollment Form'!$CV282=\"Yes\",'Enrollment Form'!$CW282<>\"\"),\"Y\",\"N\"))))","v":""},{"$f":"IF(OR('Enrollment Form'!$AY282=\"Yes\",'Enrollment Form'!$AY282=\"\"),\"-\",IF(OR(AND('Enrollment Form'!$AY282=\"No\",ISERROR(FIND(\"HMO\",VLOOKUP('Enrollment Form'!G282,'Enrollment Form'!H$11:J$1000,3,FALSE),1))=FALSE,COUNTA('Enrollment Form'!$AZ282:$BC282)=4),AND('Enrollment Form'!$AY282=\"No\",ISERROR(FIND(\"HMO\",VLOOKUP('Enrollment Form'!G282,'Enrollment Form'!H$11:J$1000,3,FALSE),1))=FALSE,COUNTA('Enrollment Form'!$BT282:$BW282)=4)),\"Y\",\"N\"))","v":"-"},{"$f":"IF($B275=\"N\",\"\",IF('Enrollment Form'!$B282=\"Subscriber\",\"-\",IF(COUNTA('Enrollment Form'!$BL282,'Enrollment Form'!$BN282)=2,\"Y\",\"N\")))","v":""},{"$f":"IF($B275=\"N\",\"\",IF(OR('Enrollment Form'!$AX282=\"\",'Enrollment Form'!$AX282=\"No\"),\"-\",IF(AND('Enrollment Form'!$AX282=\"Yes\",COUNTA('Enrollment Form'!$CR282)=1),\"Y\",\"N\")))","v":""},{"$f":"IF(OR('Enrollment Form'!$CR282=\"\",'Enrollment Form'!$CR282=\"No\"),\"-\",IF(COUNTA('Enrollment Form'!$CT282:$CU282)=2,\"Y\",\"N\"))","v":"-"},{"$f":"IF($B275=\"N\",\"\",IF(COUNTIF('Enrollment Form'!$DG282:$DP282,\"Other\")=COUNTA('Enrollment Form'!$DK282,'Enrollment Form'!$DH282,'Enrollment Form'!$DN282,'Enrollment Form'!$DQ282),\"Y\",\"N\"))","v":""},{"$f":"IF($B275=\"N\",\"\",IF(OR('Enrollment Form'!B282<>\"Subscriber\",'Enrollment Form'!C282=\"ROC\",COUNTIF('Enrollment Form'!AV282:AW282,\"Yes\")>=1),\"-\",IF(AND('Enrollment Form'!C282=\"Enroll\",COUNTIF('Enrollment Form'!AV282:AW282,\"No\")=2,'Enrollment Form'!AX282=\"\"),\"N\",\"Y\")))","v":""},{"$f":"IF(OR(B275=\"N\",'Enrollment Form'!B282<>\"Subscriber\",'Enrollment Form'!C282=\"ROC\",'Enrollment Form'!O282<>\"Multiple of Salary\"),\"-\",IF(COUNTA('Enrollment Form'!T282:U282)<2,\"N\",\"Y\"))","v":"-"},{"$f":"IF(B275=\"N\",\"\",IF(OR('Enrollment Form'!C282=\"ROC\",'Enrollment Form'!B282<>\"Subscriber\",'Enrollment Form'!O282=\"Waive\",'Enrollment Form'!O282=\"\"),\"-\",IF('Enrollment Form'!P282=\"\",\"N\",\"Y\")))","v":""},{"$f":"IF($B275=\"N\",\"\",IF(AND('Enrollment Form'!$C282=\"ROC\",'Enrollment Form'!$DR282<>\"\"),\"Y\",IF(AND('Enrollment Form'!$C282=\"ROC\",'Enrollment Form'!$DR282=\"\"),\"N\",IF(AND('Enrollment Form'!$C282=\"Enroll\",'Enrollment Form'!$B282=\"Subscriber\",'Enrollment Form'!$CX282=\"No\",'Enrollment Form'!$DR282=\"\"),\"N\",IF(AND('Enrollment Form'!$C282=\"Enroll\",'Enrollment Form'!$B282=\"Subscriber\",'Enrollment Form'!$CX282=\"Yes\"),\"-\",\"Y\")))))","v":""},{"$f":"IF($B275=\"N\",\"\",IF(AND('Enrollment Form'!$C282=\"ROC\",'Enrollment Form'!$DS282<>\"\"),\"Y\",IF(AND('Enrollment Form'!$C282=\"ROC\",'Enrollment Form'!$DS282=\"\"),\"N\",IF(AND('Enrollment Form'!$C282=\"Enroll\",'Enrollment Form'!$B282=\"Subscriber\",'Enrollment Form'!$CX282=\"No\",'Enrollment Form'!$DS282=\"\"),\"N\",IF(AND('Enrollment Form'!$C282=\"Enroll\",'Enrollment Form'!$B282=\"Subscriber\",'Enrollment Form'!$CX282=\"Yes\"),\"-\",\"Y\")))))","v":""},{"$f":"IF('Enrollment Form'!AH282=\"\",\"\",IF(ISERROR(SEARCH(\".\",'Enrollment Form'!AH282,SEARCH(\"@\",'Enrollment Form'!AH282))),\"N\",\"Y\"))","v":""},{"$f":"IF(OR($B275=\"N\",'Enrollment Form'!$G282=\"\"),\"\",IF('Enrollment Form'!$B282<>\"Subscriber\",\"-\",IF(COUNTIF('Enrollment Form'!$AV282:$AW282,\"Yes\")=2,\"N\",\"Y\")))","v":""},{"$f":"IF(OR('Enrollment Form'!$CJ282=\"\",'Enrollment Form'!$CJ282=\"No\"),\"-\",IF(AND('Enrollment Form'!$CJ282=\"Yes\",'Enrollment Form'!$CK282=\"\"),\"N\",\"Y\"))","v":"-"},{"$f":"IF(OR('Enrollment Form'!$CL282=\"\",'Enrollment Form'!$CL282=\"No\"),\"-\",IF(AND('Enrollment Form'!$CL282=\"Yes\",'Enrollment Form'!$CM282=\"\"),\"N\",\"Y\"))","v":"-"},{"$f":"IF(OR('Enrollment Form'!$CN282=\"\",'Enrollment Form'!$CN282=\"No\"),\"-\",IF(AND('Enrollment Form'!$CN282=\"Yes\",'Enrollment Form'!$CO282=\"\"),\"N\",\"Y\"))","v":"-"},{"$f":"IF(OR('Enrollment Form'!$CN282=\"\",'Enrollment Form'!$CN282=\"No\"),\"-\",IF(AND('Enrollment Form'!$CN282=\"Yes\",'Enrollment Form'!$CP282=\"\"),\"N\",\"Y\"))","v":"-"},{"$f":"IF('Enrollment Form'!B282<>\"Subscriber\",\"-\",IF(AND('Enrollment Form'!B282=\"Subscriber\",'Enrollment Form'!C282=\"Enroll\",'Enrollment Form'!AA282=\"\"),\"N\",\"Y\"))","v":"-"},{"$f":"IF(OR('Enrollment Form'!B282=\"Subscriber\",'Enrollment Form'!B282=\"\"),\"-\",IF('Enrollment Form'!BP282=\"\",\"N\",\"Y\"))","v":"-"},{"$f":"IF('Enrollment Form'!B282<>\"Subscriber\",\"-\",IF(AND('Enrollment Form'!B282=\"Subscriber\",'Enrollment Form'!G282=\"\"),\"N\",\"Y\"))","v":"-"},{"$f":"IF('Enrollment Form'!A282=\"\",\"\",IF('Enrollment Form'!B282=\"Subscriber\",\"-\",IF(AND('Enrollment Form'!B282<>\"Subscriber\",'Enrollment Form'!G282='Enrollment Form'!H282),\"N\",\"Y\")))","v":""},0]
[283,{"$f":"IF('Enrollment Form'!$A283<>\"\",\"Y\",\"N\")","v":"N"},{"$f":"IF(AND('Enrollment Form'!$B283=\"\",'Enrollment Form'!$C283<>\"\"),\"N\",IF($B276=\"N\",\"\",\"Y\"))","v":""},{"$f":"IF(OR($B276=\"N\",'Enrollment Form'!G283=\"\"),\"\",IF('Enrollment Form'!$B283<>\"Subscriber\",\"\",IF('Enrollment Form'!$G283='Enrollment Form'!$H283,\"Y\",\"N\")))","v":""},{"$f":"IF($B276=\"N\",\"\",IF(AND(COUNTIFS('Enrollment Form'!$H$11:$H$1000,'Enrollment Form'!$H283,'Enrollment Form'!$B$11:$B$1000,'Enrollment Form'!$B283)>1,'Enrollment Form'!$H283<>\"\"),\"N\",\"Y\"))","v":""},{"$f":"IF($B276=\"N\",\"\",IF(LEN('Enrollment Form'!$Y283)=0,\"\",IF(LEN('Enrollment Form'!$Y283)<>5,\"N\",\"Y\")))","v":""},{"$f":"IF($B276=\"N\",\"\",IF(LEN('Enrollment Form'!$AD283=0),\"\",IF(LEN('Enrollment Form'!$AD283)<>5,\"N\",\"Y\")))","v":""},{"$f":"IF($B276=\"N\",\"\",IF(LEN('Enrollment Form'!$BS283=0),\"\",IF(LEN('Enrollment Form'!$BS283)<>5,\"N\",\"Y\")))","v":""},{"$f":"IF($B276=\"N\",\"\",IF(LEN('Enrollment Form'!$AE283)=0,\"\",IF(LEN('Enrollment Form'!$AE283)<>10,\"N\",\"Y\")))","v":""},{"$f":"IF($B276=\"N\",\"\",IF(LEN('Enrollment Form'!$AF283)=0,\"\",IF(LEN('Enrollment Form'!$AF283)<>10,\"N\",\"Y\")))","v":""},{"$f":"IF('Enrollment Form'!$O283<>\"Graded\",\"-\",IF(AND('Enrollment Form'!$O283=\"Graded\",'Enrollment Form'!$AR283<>\"\"),\"Y\",\"N\"))","v":"-"},{"$f":"IF($B276=\"N\",\"\",IF(OR('Enrollment Form'!$B283<>\"Subscriber\",'Enrollment Form'!$C283=\"ROC\"),\"-\",IF(AND('Enrollment Form'!$B283=\"Subscriber\",'Enrollment Form'!$C283=\"Enroll\",'Enrollment Form'!$AJ283<>\"\"),\"Y\",\"N\")))","v":""},{"$f":"IF($B276=\"N\",\"\",IF(OR('Enrollment Form'!$B283<>\"Subscriber\",'Enrollment Form'!$C283=\"ROC\"),\"-\",IF(AND('Enrollment Form'!$B283=\"Subscriber\",'Enrollment Form'!$C283=\"Enroll\",'Enrollment Form'!$AK283<>\"\"),\"Y\",\"N\")))","v":""},{"$f":"IF($B276=\"N\",\"\",IF(OR('Enrollment Form'!$B283<>\"Subscriber\",'Enrollment Form'!$C283=\"ROC\"),\"-\",IF(AND('Enrollment Form'!$B283=\"Subscriber\",'Enrollment Form'!$C283=\"Enroll\",'Enrollment Form'!$AL283<>\"\"),\"Y\",\"N\")))","v":""},{"$f":"IF($B276=\"N\",\"\",IF(OR('Enrollment Form'!$B283<>\"Subscriber\",'Enrollment Form'!$C283=\"ROC\"),\"-\",IF(AND('Enrollment Form'!$B283=\"Subscriber\",'Enrollment Form'!$C283=\"Enroll\",'Enrollment Form'!$AP283<>\"\"),\"Y\",\"N\")))","v":""},{"$f":"IF($B276=\"N\",\"\",IF(OR('Enrollment Form'!$B283<>\"Subscriber\",'Enrollment Form'!$C283=\"ROC\"),\"-\",IF(AND('Enrollment Form'!$B283=\"Subscriber\",'Enrollment Form'!$C283=\"Enroll\",'Enrollment Form'!$AQ283<>\"\"),\"Y\",\"N\")))","v":""},{"$f":"IF($B276=\"N\",\"\",IF(OR('Enrollment Form'!$B283<>\"Subscriber\",'Enrollment Form'!$C283=\"ROC\"),\"-\",IF(AND('Enrollment Form'!$B283=\"Subscriber\",'Enrollment Form'!$C283=\"Enroll\",'Enrollment Form'!$AS283<>\"\"),\"Y\",\"N\")))","v":""},{"$f":"IF($B276=\"N\",\"\",IF($Q276=\"-\",\"-\",IF(AND($Q276=\"Y\",'Enrollment Form'!$AS283=\"No\"),\"-\",IF(AND($Q276=\"Y\",'Enrollment Form'!$AS283=\"Yes\",'Enrollment Form'!$AT283<>\"\"),\"Y\",\"N\"))))","v":""},{"$f":"IF($B276=\"N\",\"\",IF(OR('Enrollment Form'!$B283<>\"Subscriber\",'Enrollment Form'!$C283=\"ROC\"),\"-\",IF(AND('Enrollment Form'!$B283=\"Subscriber\",'Enrollment Form'!$C283=\"Enroll\",'Enrollment Form'!$CV283<>\"\"),\"Y\",\"N\")))","v":""},{"$f":"IF($B276=\"N\",\"\",IF($S276=\"-\",\"-\",IF(AND($S276=\"Y\",'Enrollment Form'!$CV283=\"No\"),\"-\",IF(AND($S276=\"Y\",'Enrollment Form'!$CV283=\"Yes\",'Enrollment Form'!$CW283<>\"\"),\"Y\",\"N\"))))","v":""},{"$f":"IF(OR('Enrollment Form'!$AY283=\"Yes\",'Enrollment Form'!$AY283=\"\"),\"-\",IF(OR(AND('Enrollment Form'!$AY283=\"No\",ISERROR(FIND(\"HMO\",VLOOKUP('Enrollment Form'!G283,'Enrollment Form'!H$11:J$1000,3,FALSE),1))=FALSE,COUNTA('Enrollment Form'!$AZ283:$BC283)=4),AND('Enrollment Form'!$AY283=\"No\",ISERROR(FIND(\"HMO\",VLOOKUP('Enrollment Form'!G283,'Enrollment Form'!H$11:J$1000,3,FALSE),1))=FALSE,COUNTA('Enrollment Form'!$BT283:$BW283)=4)),\"Y\",\"N\"))","v":"-"},{"$f":"IF($B276=\"N\",\"\",IF('Enrollment Form'!$B283=\"Subscriber\",\"-\",IF(COUNTA('Enrollment Form'!$BL283,'Enrollment Form'!$BN283)=2,\"Y\",\"N\")))","v":""},{"$f":"IF($B276=\"N\",\"\",IF(OR('Enrollment Form'!$AX283=\"\",'Enrollment Form'!$AX283=\"No\"),\"-\",IF(AND('Enrollment Form'!$AX283=\"Yes\",COUNTA('Enrollment Form'!$CR283)=1),\"Y\",\"N\")))","v":""},{"$f":"IF(OR('Enrollment Form'!$CR283=\"\",'Enrollment Form'!$CR283=\"No\"),\"-\",IF(COUNTA('Enrollment Form'!$CT283:$CU283)=2,\"Y\",\"N\"))","v":"-"},{"$f":"IF($B276=\"N\",\"\",IF(COUNTIF('Enrollment Form'!$DG283:$DP283,\"Other\")=COUNTA('Enrollment Form'!$DK283,'Enrollment Form'!$DH283,'Enrollment Form'!$DN283,'Enrollment Form'!$DQ283),\"Y\",\"N\"))","v":""},{"$f":"IF($B276=\"N\",\"\",IF(OR('Enrollment Form'!B283<>\"Subscriber\",'Enrollment Form'!C283=\"ROC\",COUNTIF('Enrollment Form'!AV283:AW283,\"Yes\")>=1),\"-\",IF(AND('Enrollment Form'!C283=\"Enroll\",COUNTIF('Enrollment Form'!AV283:AW283,\"No\")=2,'Enrollment Form'!AX283=\"\"),\"N\",\"Y\")))","v":""},{"$f":"IF(OR(B276=\"N\",'Enrollment Form'!B283<>\"Subscriber\",'Enrollment Form'!C283=\"ROC\",'Enrollment Form'!O283<>\"Multiple of Salary\"),\"-\",IF(COUNTA('Enrollment Form'!T283:U283)<2,\"N\",\"Y\"))","v":"-"},{"$f":"IF(B276=\"N\",\"\",IF(OR('Enrollment Form'!C283=\"ROC\",'Enrollment Form'!B283<>\"Subscriber\",'Enrollment Form'!O283=\"Waive\",'Enrollment Form'!O283=\"\"),\"-\",IF('Enrollment Form'!P283=\"\",\"N\",\"Y\")))","v":""},{"$f":"IF($B276=\"N\",\"\",IF(AND('Enrollment Form'!$C283=\"ROC\",'Enrollment Form'!$DR283<>\"\"),\"Y\",IF(AND('Enrollment Form'!$C283=\"ROC\",'Enrollment Form'!$DR283=\"\"),\"N\",IF(AND('Enrollment Form'!$C283=\"Enroll\",'Enrollment Form'!$B283=\"Subscriber\",'Enrollment Form'!$CX283=\"No\",'Enrollment Form'!$DR283=\"\"),\"N\",IF(AND('Enrollment Form'!$C283=\"Enroll\",'Enrollment Form'!$B283=\"Subscriber\",'Enrollment Form'!$CX283=\"Yes\"),\"-\",\"Y\")))))","v":""},{"$f":"IF($B276=\"N\",\"\",IF(AND('Enrollment Form'!$C283=\"ROC\",'Enrollment Form'!$DS283<>\"\"),\"Y\",IF(AND('Enrollment Form'!$C283=\"ROC\",'Enrollment Form'!$DS283=\"\"),\"N\",IF(AND('Enrollment Form'!$C283=\"Enroll\",'Enrollment Form'!$B283=\"Subscriber\",'Enrollment Form'!$CX283=\"No\",'Enrollment Form'!$DS283=\"\"),\"N\",IF(AND('Enrollment Form'!$C283=\"Enroll\",'Enrollment Form'!$B283=\"Subscriber\",'Enrollment Form'!$CX283=\"Yes\"),\"-\",\"Y\")))))","v":""},{"$f":"IF('Enrollment Form'!AH283=\"\",\"\",IF(ISERROR(SEARCH(\".\",'Enrollment Form'!AH283,SEARCH(\"@\",'Enrollment Form'!AH283))),\"N\",\"Y\"))","v":""},{"$f":"IF(OR($B276=\"N\",'Enrollment Form'!$G283=\"\"),\"\",IF('Enrollment Form'!$B283<>\"Subscriber\",\"-\",IF(COUNTIF('Enrollment Form'!$AV283:$AW283,\"Yes\")=2,\"N\",\"Y\")))","v":""},{"$f":"IF(OR('Enrollment Form'!$CJ283=\"\",'Enrollment Form'!$CJ283=\"No\"),\"-\",IF(AND('Enrollment Form'!$CJ283=\"Yes\",'Enrollment Form'!$CK283=\"\"),\"N\",\"Y\"))","v":"-"},{"$f":"IF(OR('Enrollment Form'!$CL283=\"\",'Enrollment Form'!$CL283=\"No\"),\"-\",IF(AND('Enrollment Form'!$CL283=\"Yes\",'Enrollment Form'!$CM283=\"\"),\"N\",\"Y\"))","v":"-"},{"$f":"IF(OR('Enrollment Form'!$CN283=\"\",'Enrollment Form'!$CN283=\"No\"),\"-\",IF(AND('Enrollment Form'!$CN283=\"Yes\",'Enrollment Form'!$CO283=\"\"),\"N\",\"Y\"))","v":"-"},{"$f":"IF(OR('Enrollment Form'!$CN283=\"\",'Enrollment Form'!$CN283=\"No\"),\"-\",IF(AND('Enrollment Form'!$CN283=\"Yes\",'Enrollment Form'!$CP283=\"\"),\"N\",\"Y\"))","v":"-"},{"$f":"IF('Enrollment Form'!B283<>\"Subscriber\",\"-\",IF(AND('Enrollment Form'!B283=\"Subscriber\",'Enrollment Form'!C283=\"Enroll\",'Enrollment Form'!AA283=\"\"),\"N\",\"Y\"))","v":"-"},{"$f":"IF(OR('Enrollment Form'!B283=\"Subscriber\",'Enrollment Form'!B283=\"\"),\"-\",IF('Enrollment Form'!BP283=\"\",\"N\",\"Y\"))","v":"-"},{"$f":"IF('Enrollment Form'!B283<>\"Subscriber\",\"-\",IF(AND('Enrollment Form'!B283=\"Subscriber\",'Enrollment Form'!G283=\"\"),\"N\",\"Y\"))","v":"-"},{"$f":"IF('Enrollment Form'!A283=\"\",\"\",IF('Enrollment Form'!B283=\"Subscriber\",\"-\",IF(AND('Enrollment Form'!B283<>\"Subscriber\",'Enrollment Form'!G283='Enrollment Form'!H283),\"N\",\"Y\")))","v":""},0]
[284,{"$f":"IF('Enrollment Form'!$A284<>\"\",\"Y\",\"N\")","v":"N"},{"$f":"IF(AND('Enrollment Form'!$B284=\"\",'Enrollment Form'!$C284<>\"\"),\"N\",IF($B277=\"N\",\"\",\"Y\"))","v":""},{"$f":"IF(OR($B277=\"N\",'Enrollment Form'!G284=\"\"),\"\",IF('Enrollment Form'!$B284<>\"Subscriber\",\"\",IF('Enrollment Form'!$G284='Enrollment Form'!$H284,\"Y\",\"N\")))","v":""},{"$f":"IF($B277=\"N\",\"\",IF(AND(COUNTIFS('Enrollment Form'!$H$11:$H$1000,'Enrollment Form'!$H284,'Enrollment Form'!$B$11:$B$1000,'Enrollment Form'!$B284)>1,'Enrollment Form'!$H284<>\"\"),\"N\",\"Y\"))","v":""},{"$f":"IF($B277=\"N\",\"\",IF(LEN('Enrollment Form'!$Y284)=0,\"\",IF(LEN('Enrollment Form'!$Y284)<>5,\"N\",\"Y\")))","v":""},{"$f":"IF($B277=\"N\",\"\",IF(LEN('Enrollment Form'!$AD284=0),\"\",IF(LEN('Enrollment Form'!$AD284)<>5,\"N\",\"Y\")))","v":""},{"$f":"IF($B277=\"N\",\"\",IF(LEN('Enrollment Form'!$BS284=0),\"\",IF(LEN('Enrollment Form'!$BS284)<>5,\"N\",\"Y\")))","v":""},{"$f":"IF($B277=\"N\",\"\",IF(LEN('Enrollment Form'!$AE284)=0,\"\",IF(LEN('Enrollment Form'!$AE284)<>10,\"N\",\"Y\")))","v":""},{"$f":"IF($B277=\"N\",\"\",IF(LEN('Enrollment Form'!$AF284)=0,\"\",IF(LEN('Enrollment Form'!$AF284)<>10,\"N\",\"Y\")))","v":""},{"$f":"IF('Enrollment Form'!$O284<>\"Graded\",\"-\",IF(AND('Enrollment Form'!$O284=\"Graded\",'Enrollment Form'!$AR284<>\"\"),\"Y\",\"N\"))","v":"-"},{"$f":"IF($B277=\"N\",\"\",IF(OR('Enrollment Form'!$B284<>\"Subscriber\",'Enrollment Form'!$C284=\"ROC\"),\"-\",IF(AND('Enrollment Form'!$B284=\"Subscriber\",'Enrollment Form'!$C284=\"Enroll\",'Enrollment Form'!$AJ284<>\"\"),\"Y\",\"N\")))","v":""},{"$f":"IF($B277=\"N\",\"\",IF(OR('Enrollment Form'!$B284<>\"Subscriber\",'Enrollment Form'!$C284=\"ROC\"),\"-\",IF(AND('Enrollment Form'!$B284=\"Subscriber\",'Enrollment Form'!$C284=\"Enroll\",'Enrollment Form'!$AK284<>\"\"),\"Y\",\"N\")))","v":""},{"$f":"IF($B277=\"N\",\"\",IF(OR('Enrollment Form'!$B284<>\"Subscriber\",'Enrollment Form'!$C284=\"ROC\"),\"-\",IF(AND('Enrollment Form'!$B284=\"Subscriber\",'Enrollment Form'!$C284=\"Enroll\",'Enrollment Form'!$AL284<>\"\"),\"Y\",\"N\")))","v":""},{"$f":"IF($B277=\"N\",\"\",IF(OR('Enrollment Form'!$B284<>\"Subscriber\",'Enrollment Form'!$C284=\"ROC\"),\"-\",IF(AND('Enrollment Form'!$B284=\"Subscriber\",'Enrollment Form'!$C284=\"Enroll\",'Enrollment Form'!$AP284<>\"\"),\"Y\",\"N\")))","v":""},{"$f":"IF($B277=\"N\",\"\",IF(OR('Enrollment Form'!$B284<>\"Subscriber\",'Enrollment Form'!$C284=\"ROC\"),\"-\",IF(AND('Enrollment Form'!$B284=\"Subscriber\",'Enrollment Form'!$C284=\"Enroll\",'Enrollment Form'!$AQ284<>\"\"),\"Y\",\"N\")))","v":""},{"$f":"IF($B277=\"N\",\"\",IF(OR('Enrollment Form'!$B284<>\"Subscriber\",'Enrollment Form'!$C284=\"ROC\"),\"-\",IF(AND('Enrollment Form'!$B284=\"Subscriber\",'Enrollment Form'!$C284=\"Enroll\",'Enrollment Form'!$AS284<>\"\"),\"Y\",\"N\")))","v":""},{"$f":"IF($B277=\"N\",\"\",IF($Q277=\"-\",\"-\",IF(AND($Q277=\"Y\",'Enrollment Form'!$AS284=\"No\"),\"-\",IF(AND($Q277=\"Y\",'Enrollment Form'!$AS284=\"Yes\",'Enrollment Form'!$AT284<>\"\"),\"Y\",\"N\"))))","v":""},{"$f":"IF($B277=\"N\",\"\",IF(OR('Enrollment Form'!$B284<>\"Subscriber\",'Enrollment Form'!$C284=\"ROC\"),\"-\",IF(AND('Enrollment Form'!$B284=\"Subscriber\",'Enrollment Form'!$C284=\"Enroll\",'Enrollment Form'!$CV284<>\"\"),\"Y\",\"N\")))","v":""},{"$f":"IF($B277=\"N\",\"\",IF($S277=\"-\",\"-\",IF(AND($S277=\"Y\",'Enrollment Form'!$CV284=\"No\"),\"-\",IF(AND($S277=\"Y\",'Enrollment Form'!$CV284=\"Yes\",'Enrollment Form'!$CW284<>\"\"),\"Y\",\"N\"))))","v":""},{"$f":"IF(OR('Enrollment Form'!$AY284=\"Yes\",'Enrollment Form'!$AY284=\"\"),\"-\",IF(OR(AND('Enrollment Form'!$AY284=\"No\",ISERROR(FIND(\"HMO\",VLOOKUP('Enrollment Form'!G284,'Enrollment Form'!H$11:J$1000,3,FALSE),1))=FALSE,COUNTA('Enrollment Form'!$AZ284:$BC284)=4),AND('Enrollment Form'!$AY284=\"No\",ISERROR(FIND(\"HMO\",VLOOKUP('Enrollment Form'!G284,'Enrollment Form'!H$11:J$1000,3,FALSE),1))=FALSE,COUNTA('Enrollment Form'!$BT284:$BW284)=4)),\"Y\",\"N\"))","v":"-"},{"$f":"IF($B277=\"N\",\"\",IF('Enrollment Form'!$B284=\"Subscriber\",\"-\",IF(COUNTA('Enrollment Form'!$BL284,'Enrollment Form'!$BN284)=2,\"Y\",\"N\")))","v":""},{"$f":"IF($B277=\"N\",\"\",IF(OR('Enrollment Form'!$AX284=\"\",'Enrollment Form'!$AX284=\"No\"),\"-\",IF(AND('Enrollment Form'!$AX284=\"Yes\",COUNTA('Enrollment Form'!$CR284)=1),\"Y\",\"N\")))","v":""},{"$f":"IF(OR('Enrollment Form'!$CR284=\"\",'Enrollment Form'!$CR284=\"No\"),\"-\",IF(COUNTA('Enrollment Form'!$CT284:$CU284)=2,\"Y\",\"N\"))","v":"-"},{"$f":"IF($B277=\"N\",\"\",IF(COUNTIF('Enrollment Form'!$DG284:$DP284,\"Other\")=COUNTA('Enrollment Form'!$DK284,'Enrollment Form'!$DH284,'Enrollment Form'!$DN284,'Enrollment Form'!$DQ284),\"Y\",\"N\"))","v":""},{"$f":"IF($B277=\"N\",\"\",IF(OR('Enrollment Form'!B284<>\"Subscriber\",'Enrollment Form'!C284=\"ROC\",COUNTIF('Enrollment Form'!AV284:AW284,\"Yes\")>=1),\"-\",IF(AND('Enrollment Form'!C284=\"Enroll\",COUNTIF('Enrollment Form'!AV284:AW284,\"No\")=2,'Enrollment Form'!AX284=\"\"),\"N\",\"Y\")))","v":""},{"$f":"IF(OR(B277=\"N\",'Enrollment Form'!B284<>\"Subscriber\",'Enrollment Form'!C284=\"ROC\",'Enrollment Form'!O284<>\"Multiple of Salary\"),\"-\",IF(COUNTA('Enrollment Form'!T284:U284)<2,\"N\",\"Y\"))","v":"-"},{"$f":"IF(B277=\"N\",\"\",IF(OR('Enrollment Form'!C284=\"ROC\",'Enrollment Form'!B284<>\"Subscriber\",'Enrollment Form'!O284=\"Waive\",'Enrollment Form'!O284=\"\"),\"-\",IF('Enrollment Form'!P284=\"\",\"N\",\"Y\")))","v":""},{"$f":"IF($B277=\"N\",\"\",IF(AND('Enrollment Form'!$C284=\"ROC\",'Enrollment Form'!$DR284<>\"\"),\"Y\",IF(AND('Enrollment Form'!$C284=\"ROC\",'Enrollment Form'!$DR284=\"\"),\"N\",IF(AND('Enrollment Form'!$C284=\"Enroll\",'Enrollment Form'!$B284=\"Subscriber\",'Enrollment Form'!$CX284=\"No\",'Enrollment Form'!$DR284=\"\"),\"N\",IF(AND('Enrollment Form'!$C284=\"Enroll\",'Enrollment Form'!$B284=\"Subscriber\",'Enrollment Form'!$CX284=\"Yes\"),\"-\",\"Y\")))))","v":""},{"$f":"IF($B277=\"N\",\"\",IF(AND('Enrollment Form'!$C284=\"ROC\",'Enrollment Form'!$DS284<>\"\"),\"Y\",IF(AND('Enrollment Form'!$C284=\"ROC\",'Enrollment Form'!$DS284=\"\"),\"N\",IF(AND('Enrollment Form'!$C284=\"Enroll\",'Enrollment Form'!$B284=\"Subscriber\",'Enrollment Form'!$CX284=\"No\",'Enrollment Form'!$DS284=\"\"),\"N\",IF(AND('Enrollment Form'!$C284=\"Enroll\",'Enrollment Form'!$B284=\"Subscriber\",'Enrollment Form'!$CX284=\"Yes\"),\"-\",\"Y\")))))","v":""},{"$f":"IF('Enrollment Form'!AH284=\"\",\"\",IF(ISERROR(SEARCH(\".\",'Enrollment Form'!AH284,SEARCH(\"@\",'Enrollment Form'!AH284))),\"N\",\"Y\"))","v":""},{"$f":"IF(OR($B277=\"N\",'Enrollment Form'!$G284=\"\"),\"\",IF('Enrollment Form'!$B284<>\"Subscriber\",\"-\",IF(COUNTIF('Enrollment Form'!$AV284:$AW284,\"Yes\")=2,\"N\",\"Y\")))","v":""},{"$f":"IF(OR('Enrollment Form'!$CJ284=\"\",'Enrollment Form'!$CJ284=\"No\"),\"-\",IF(AND('Enrollment Form'!$CJ284=\"Yes\",'Enrollment Form'!$CK284=\"\"),\"N\",\"Y\"))","v":"-"},{"$f":"IF(OR('Enrollment Form'!$CL284=\"\",'Enrollment Form'!$CL284=\"No\"),\"-\",IF(AND('Enrollment Form'!$CL284=\"Yes\",'Enrollment Form'!$CM284=\"\"),\"N\",\"Y\"))","v":"-"},{"$f":"IF(OR('Enrollment Form'!$CN284=\"\",'Enrollment Form'!$CN284=\"No\"),\"-\",IF(AND('Enrollment Form'!$CN284=\"Yes\",'Enrollment Form'!$CO284=\"\"),\"N\",\"Y\"))","v":"-"},{"$f":"IF(OR('Enrollment Form'!$CN284=\"\",'Enrollment Form'!$CN284=\"No\"),\"-\",IF(AND('Enrollment Form'!$CN284=\"Yes\",'Enrollment Form'!$CP284=\"\"),\"N\",\"Y\"))","v":"-"},{"$f":"IF('Enrollment Form'!B284<>\"Subscriber\",\"-\",IF(AND('Enrollment Form'!B284=\"Subscriber\",'Enrollment Form'!C284=\"Enroll\",'Enrollment Form'!AA284=\"\"),\"N\",\"Y\"))","v":"-"},{"$f":"IF(OR('Enrollment Form'!B284=\"Subscriber\",'Enrollment Form'!B284=\"\"),\"-\",IF('Enrollment Form'!BP284=\"\",\"N\",\"Y\"))","v":"-"},{"$f":"IF('Enrollment Form'!B284<>\"Subscriber\",\"-\",IF(AND('Enrollment Form'!B284=\"Subscriber\",'Enrollment Form'!G284=\"\"),\"N\",\"Y\"))","v":"-"},{"$f":"IF('Enrollment Form'!A284=\"\",\"\",IF('Enrollment Form'!B284=\"Subscriber\",\"-\",IF(AND('Enrollment Form'!B284<>\"Subscriber\",'Enrollment Form'!G284='Enrollment Form'!H284),\"N\",\"Y\")))","v":""},0]
[285,{"$f":"IF('Enrollment Form'!$A285<>\"\",\"Y\",\"N\")","v":"N"},{"$f":"IF(AND('Enrollment Form'!$B285=\"\",'Enrollment Form'!$C285<>\"\"),\"N\",IF($B278=\"N\",\"\",\"Y\"))","v":""},{"$f":"IF(OR($B278=\"N\",'Enrollment Form'!G285=\"\"),\"\",IF('Enrollment Form'!$B285<>\"Subscriber\",\"\",IF('Enrollment Form'!$G285='Enrollment Form'!$H285,\"Y\",\"N\")))","v":""},{"$f":"IF($B278=\"N\",\"\",IF(AND(COUNTIFS('Enrollment Form'!$H$11:$H$1000,'Enrollment Form'!$H285,'Enrollment Form'!$B$11:$B$1000,'Enrollment Form'!$B285)>1,'Enrollment Form'!$H285<>\"\"),\"N\",\"Y\"))","v":""},{"$f":"IF($B278=\"N\",\"\",IF(LEN('Enrollment Form'!$Y285)=0,\"\",IF(LEN('Enrollment Form'!$Y285)<>5,\"N\",\"Y\")))","v":""},{"$f":"IF($B278=\"N\",\"\",IF(LEN('Enrollment Form'!$AD285=0),\"\",IF(LEN('Enrollment Form'!$AD285)<>5,\"N\",\"Y\")))","v":""},{"$f":"IF($B278=\"N\",\"\",IF(LEN('Enrollment Form'!$BS285=0),\"\",IF(LEN('Enrollment Form'!$BS285)<>5,\"N\",\"Y\")))","v":""},{"$f":"IF($B278=\"N\",\"\",IF(LEN('Enrollment Form'!$AE285)=0,\"\",IF(LEN('Enrollment Form'!$AE285)<>10,\"N\",\"Y\")))","v":""},{"$f":"IF($B278=\"N\",\"\",IF(LEN('Enrollment Form'!$AF285)=0,\"\",IF(LEN('Enrollment Form'!$AF285)<>10,\"N\",\"Y\")))","v":""},{"$f":"IF('Enrollment Form'!$O285<>\"Graded\",\"-\",IF(AND('Enrollment Form'!$O285=\"Graded\",'Enrollment Form'!$AR285<>\"\"),\"Y\",\"N\"))","v":"-"},{"$f":"IF($B278=\"N\",\"\",IF(OR('Enrollment Form'!$B285<>\"Subscriber\",'Enrollment Form'!$C285=\"ROC\"),\"-\",IF(AND('Enrollment Form'!$B285=\"Subscriber\",'Enrollment Form'!$C285=\"Enroll\",'Enrollment Form'!$AJ285<>\"\"),\"Y\",\"N\")))","v":""},{"$f":"IF($B278=\"N\",\"\",IF(OR('Enrollment Form'!$B285<>\"Subscriber\",'Enrollment Form'!$C285=\"ROC\"),\"-\",IF(AND('Enrollment Form'!$B285=\"Subscriber\",'Enrollment Form'!$C285=\"Enroll\",'Enrollment Form'!$AK285<>\"\"),\"Y\",\"N\")))","v":""},{"$f":"IF($B278=\"N\",\"\",IF(OR('Enrollment Form'!$B285<>\"Subscriber\",'Enrollment Form'!$C285=\"ROC\"),\"-\",IF(AND('Enrollment Form'!$B285=\"Subscriber\",'Enrollment Form'!$C285=\"Enroll\",'Enrollment Form'!$AL285<>\"\"),\"Y\",\"N\")))","v":""},{"$f":"IF($B278=\"N\",\"\",IF(OR('Enrollment Form'!$B285<>\"Subscriber\",'Enrollment Form'!$C285=\"ROC\"),\"-\",IF(AND('Enrollment Form'!$B285=\"Subscriber\",'Enrollment Form'!$C285=\"Enroll\",'Enrollment Form'!$AP285<>\"\"),\"Y\",\"N\")))","v":""},{"$f":"IF($B278=\"N\",\"\",IF(OR('Enrollment Form'!$B285<>\"Subscriber\",'Enrollment Form'!$C285=\"ROC\"),\"-\",IF(AND('Enrollment Form'!$B285=\"Subscriber\",'Enrollment Form'!$C285=\"Enroll\",'Enrollment Form'!$AQ285<>\"\"),\"Y\",\"N\")))","v":""},{"$f":"IF($B278=\"N\",\"\",IF(OR('Enrollment Form'!$B285<>\"Subscriber\",'Enrollment Form'!$C285=\"ROC\"),\"-\",IF(AND('Enrollment Form'!$B285=\"Subscriber\",'Enrollment Form'!$C285=\"Enroll\",'Enrollment Form'!$AS285<>\"\"),\"Y\",\"N\")))","v":""},{"$f":"IF($B278=\"N\",\"\",IF($Q278=\"-\",\"-\",IF(AND($Q278=\"Y\",'Enrollment Form'!$AS285=\"No\"),\"-\",IF(AND($Q278=\"Y\",'Enrollment Form'!$AS285=\"Yes\",'Enrollment Form'!$AT285<>\"\"),\"Y\",\"N\"))))","v":""},{"$f":"IF($B278=\"N\",\"\",IF(OR('Enrollment Form'!$B285<>\"Subscriber\",'Enrollment Form'!$C285=\"ROC\"),\"-\",IF(AND('Enrollment Form'!$B285=\"Subscriber\",'Enrollment Form'!$C285=\"Enroll\",'Enrollment Form'!$CV285<>\"\"),\"Y\",\"N\")))","v":""},{"$f":"IF($B278=\"N\",\"\",IF($S278=\"-\",\"-\",IF(AND($S278=\"Y\",'Enrollment Form'!$CV285=\"No\"),\"-\",IF(AND($S278=\"Y\",'Enrollment Form'!$CV285=\"Yes\",'Enrollment Form'!$CW285<>\"\"),\"Y\",\"N\"))))","v":""},{"$f":"IF(OR('Enrollment Form'!$AY285=\"Yes\",'Enrollment Form'!$AY285=\"\"),\"-\",IF(OR(AND('Enrollment Form'!$AY285=\"No\",ISERROR(FIND(\"HMO\",VLOOKUP('Enrollment Form'!G285,'Enrollment Form'!H$11:J$1000,3,FALSE),1))=FALSE,COUNTA('Enrollment Form'!$AZ285:$BC285)=4),AND('Enrollment Form'!$AY285=\"No\",ISERROR(FIND(\"HMO\",VLOOKUP('Enrollment Form'!G285,'Enrollment Form'!H$11:J$1000,3,FALSE),1))=FALSE,COUNTA('Enrollment Form'!$BT285:$BW285)=4)),\"Y\",\"N\"))","v":"-"},{"$f":"IF($B278=\"N\",\"\",IF('Enrollment Form'!$B285=\"Subscriber\",\"-\",IF(COUNTA('Enrollment Form'!$BL285,'Enrollment Form'!$BN285)=2,\"Y\",\"N\")))","v":""},{"$f":"IF($B278=\"N\",\"\",IF(OR('Enrollment Form'!$AX285=\"\",'Enrollment Form'!$AX285=\"No\"),\"-\",IF(AND('Enrollment Form'!$AX285=\"Yes\",COUNTA('Enrollment Form'!$CR285)=1),\"Y\",\"N\")))","v":""},{"$f":"IF(OR('Enrollment Form'!$CR285=\"\",'Enrollment Form'!$CR285=\"No\"),\"-\",IF(COUNTA('Enrollment Form'!$CT285:$CU285)=2,\"Y\",\"N\"))","v":"-"},{"$f":"IF($B278=\"N\",\"\",IF(COUNTIF('Enrollment Form'!$DG285:$DP285,\"Other\")=COUNTA('Enrollment Form'!$DK285,'Enrollment Form'!$DH285,'Enrollment Form'!$DN285,'Enrollment Form'!$DQ285),\"Y\",\"N\"))","v":""},{"$f":"IF($B278=\"N\",\"\",IF(OR('Enrollment Form'!B285<>\"Subscriber\",'Enrollment Form'!C285=\"ROC\",COUNTIF('Enrollment Form'!AV285:AW285,\"Yes\")>=1),\"-\",IF(AND('Enrollment Form'!C285=\"Enroll\",COUNTIF('Enrollment Form'!AV285:AW285,\"No\")=2,'Enrollment Form'!AX285=\"\"),\"N\",\"Y\")))","v":""},{"$f":"IF(OR(B278=\"N\",'Enrollment Form'!B285<>\"Subscriber\",'Enrollment Form'!C285=\"ROC\",'Enrollment Form'!O285<>\"Multiple of Salary\"),\"-\",IF(COUNTA('Enrollment Form'!T285:U285)<2,\"N\",\"Y\"))","v":"-"},{"$f":"IF(B278=\"N\",\"\",IF(OR('Enrollment Form'!C285=\"ROC\",'Enrollment Form'!B285<>\"Subscriber\",'Enrollment Form'!O285=\"Waive\",'Enrollment Form'!O285=\"\"),\"-\",IF('Enrollment Form'!P285=\"\",\"N\",\"Y\")))","v":""},{"$f":"IF($B278=\"N\",\"\",IF(AND('Enrollment Form'!$C285=\"ROC\",'Enrollment Form'!$DR285<>\"\"),\"Y\",IF(AND('Enrollment Form'!$C285=\"ROC\",'Enrollment Form'!$DR285=\"\"),\"N\",IF(AND('Enrollment Form'!$C285=\"Enroll\",'Enrollment Form'!$B285=\"Subscriber\",'Enrollment Form'!$CX285=\"No\",'Enrollment Form'!$DR285=\"\"),\"N\",IF(AND('Enrollment Form'!$C285=\"Enroll\",'Enrollment Form'!$B285=\"Subscriber\",'Enrollment Form'!$CX285=\"Yes\"),\"-\",\"Y\")))))","v":""},{"$f":"IF($B278=\"N\",\"\",IF(AND('Enrollment Form'!$C285=\"ROC\",'Enrollment Form'!$DS285<>\"\"),\"Y\",IF(AND('Enrollment Form'!$C285=\"ROC\",'Enrollment Form'!$DS285=\"\"),\"N\",IF(AND('Enrollment Form'!$C285=\"Enroll\",'Enrollment Form'!$B285=\"Subscriber\",'Enrollment Form'!$CX285=\"No\",'Enrollment Form'!$DS285=\"\"),\"N\",IF(AND('Enrollment Form'!$C285=\"Enroll\",'Enrollment Form'!$B285=\"Subscriber\",'Enrollment Form'!$CX285=\"Yes\"),\"-\",\"Y\")))))","v":""},{"$f":"IF('Enrollment Form'!AH285=\"\",\"\",IF(ISERROR(SEARCH(\".\",'Enrollment Form'!AH285,SEARCH(\"@\",'Enrollment Form'!AH285))),\"N\",\"Y\"))","v":""},{"$f":"IF(OR($B278=\"N\",'Enrollment Form'!$G285=\"\"),\"\",IF('Enrollment Form'!$B285<>\"Subscriber\",\"-\",IF(COUNTIF('Enrollment Form'!$AV285:$AW285,\"Yes\")=2,\"N\",\"Y\")))","v":""},{"$f":"IF(OR('Enrollment Form'!$CJ285=\"\",'Enrollment Form'!$CJ285=\"No\"),\"-\",IF(AND('Enrollment Form'!$CJ285=\"Yes\",'Enrollment Form'!$CK285=\"\"),\"N\",\"Y\"))","v":"-"},{"$f":"IF(OR('Enrollment Form'!$CL285=\"\",'Enrollment Form'!$CL285=\"No\"),\"-\",IF(AND('Enrollment Form'!$CL285=\"Yes\",'Enrollment Form'!$CM285=\"\"),\"N\",\"Y\"))","v":"-"},{"$f":"IF(OR('Enrollment Form'!$CN285=\"\",'Enrollment Form'!$CN285=\"No\"),\"-\",IF(AND('Enrollment Form'!$CN285=\"Yes\",'Enrollment Form'!$CO285=\"\"),\"N\",\"Y\"))","v":"-"},{"$f":"IF(OR('Enrollment Form'!$CN285=\"\",'Enrollment Form'!$CN285=\"No\"),\"-\",IF(AND('Enrollment Form'!$CN285=\"Yes\",'Enrollment Form'!$CP285=\"\"),\"N\",\"Y\"))","v":"-"},{"$f":"IF('Enrollment Form'!B285<>\"Subscriber\",\"-\",IF(AND('Enrollment Form'!B285=\"Subscriber\",'Enrollment Form'!C285=\"Enroll\",'Enrollment Form'!AA285=\"\"),\"N\",\"Y\"))","v":"-"},{"$f":"IF(OR('Enrollment Form'!B285=\"Subscriber\",'Enrollment Form'!B285=\"\"),\"-\",IF('Enrollment Form'!BP285=\"\",\"N\",\"Y\"))","v":"-"},{"$f":"IF('Enrollment Form'!B285<>\"Subscriber\",\"-\",IF(AND('Enrollment Form'!B285=\"Subscriber\",'Enrollment Form'!G285=\"\"),\"N\",\"Y\"))","v":"-"},{"$f":"IF('Enrollment Form'!A285=\"\",\"\",IF('Enrollment Form'!B285=\"Subscriber\",\"-\",IF(AND('Enrollment Form'!B285<>\"Subscriber\",'Enrollment Form'!G285='Enrollment Form'!H285),\"N\",\"Y\")))","v":""},0]
[286,{"$f":"IF('Enrollment Form'!$A286<>\"\",\"Y\",\"N\")","v":"N"},{"$f":"IF(AND('Enrollment Form'!$B286=\"\",'Enrollment Form'!$C286<>\"\"),\"N\",IF($B279=\"N\",\"\",\"Y\"))","v":""},{"$f":"IF(OR($B279=\"N\",'Enrollment Form'!G286=\"\"),\"\",IF('Enrollment Form'!$B286<>\"Subscriber\",\"\",IF('Enrollment Form'!$G286='Enrollment Form'!$H286,\"Y\",\"N\")))","v":""},{"$f":"IF($B279=\"N\",\"\",IF(AND(COUNTIFS('Enrollment Form'!$H$11:$H$1000,'Enrollment Form'!$H286,'Enrollment Form'!$B$11:$B$1000,'Enrollment Form'!$B286)>1,'Enrollment Form'!$H286<>\"\"),\"N\",\"Y\"))","v":""},{"$f":"IF($B279=\"N\",\"\",IF(LEN('Enrollment Form'!$Y286)=0,\"\",IF(LEN('Enrollment Form'!$Y286)<>5,\"N\",\"Y\")))","v":""},{"$f":"IF($B279=\"N\",\"\",IF(LEN('Enrollment Form'!$AD286=0),\"\",IF(LEN('Enrollment Form'!$AD286)<>5,\"N\",\"Y\")))","v":""},{"$f":"IF($B279=\"N\",\"\",IF(LEN('Enrollment Form'!$BS286=0),\"\",IF(LEN('Enrollment Form'!$BS286)<>5,\"N\",\"Y\")))","v":""},{"$f":"IF($B279=\"N\",\"\",IF(LEN('Enrollment Form'!$AE286)=0,\"\",IF(LEN('Enrollment Form'!$AE286)<>10,\"N\",\"Y\")))","v":""},{"$f":"IF($B279=\"N\",\"\",IF(LEN('Enrollment Form'!$AF286)=0,\"\",IF(LEN('Enrollment Form'!$AF286)<>10,\"N\",\"Y\")))","v":""},{"$f":"IF('Enrollment Form'!$O286<>\"Graded\",\"-\",IF(AND('Enrollment Form'!$O286=\"Graded\",'Enrollment Form'!$AR286<>\"\"),\"Y\",\"N\"))","v":"-"},{"$f":"IF($B279=\"N\",\"\",IF(OR('Enrollment Form'!$B286<>\"Subscriber\",'Enrollment Form'!$C286=\"ROC\"),\"-\",IF(AND('Enrollment Form'!$B286=\"Subscriber\",'Enrollment Form'!$C286=\"Enroll\",'Enrollment Form'!$AJ286<>\"\"),\"Y\",\"N\")))","v":""},{"$f":"IF($B279=\"N\",\"\",IF(OR('Enrollment Form'!$B286<>\"Subscriber\",'Enrollment Form'!$C286=\"ROC\"),\"-\",IF(AND('Enrollment Form'!$B286=\"Subscriber\",'Enrollment Form'!$C286=\"Enroll\",'Enrollment Form'!$AK286<>\"\"),\"Y\",\"N\")))","v":""},{"$f":"IF($B279=\"N\",\"\",IF(OR('Enrollment Form'!$B286<>\"Subscriber\",'Enrollment Form'!$C286=\"ROC\"),\"-\",IF(AND('Enrollment Form'!$B286=\"Subscriber\",'Enrollment Form'!$C286=\"Enroll\",'Enrollment Form'!$AL286<>\"\"),\"Y\",\"N\")))","v":""},{"$f":"IF($B279=\"N\",\"\",IF(OR('Enrollment Form'!$B286<>\"Subscriber\",'Enrollment Form'!$C286=\"ROC\"),\"-\",IF(AND('Enrollment Form'!$B286=\"Subscriber\",'Enrollment Form'!$C286=\"Enroll\",'Enrollment Form'!$AP286<>\"\"),\"Y\",\"N\")))","v":""},{"$f":"IF($B279=\"N\",\"\",IF(OR('Enrollment Form'!$B286<>\"Subscriber\",'Enrollment Form'!$C286=\"ROC\"),\"-\",IF(AND('Enrollment Form'!$B286=\"Subscriber\",'Enrollment Form'!$C286=\"Enroll\",'Enrollment Form'!$AQ286<>\"\"),\"Y\",\"N\")))","v":""},{"$f":"IF($B279=\"N\",\"\",IF(OR('Enrollment Form'!$B286<>\"Subscriber\",'Enrollment Form'!$C286=\"ROC\"),\"-\",IF(AND('Enrollment Form'!$B286=\"Subscriber\",'Enrollment Form'!$C286=\"Enroll\",'Enrollment Form'!$AS286<>\"\"),\"Y\",\"N\")))","v":""},{"$f":"IF($B279=\"N\",\"\",IF($Q279=\"-\",\"-\",IF(AND($Q279=\"Y\",'Enrollment Form'!$AS286=\"No\"),\"-\",IF(AND($Q279=\"Y\",'Enrollment Form'!$AS286=\"Yes\",'Enrollment Form'!$AT286<>\"\"),\"Y\",\"N\"))))","v":""},{"$f":"IF($B279=\"N\",\"\",IF(OR('Enrollment Form'!$B286<>\"Subscriber\",'Enrollment Form'!$C286=\"ROC\"),\"-\",IF(AND('Enrollment Form'!$B286=\"Subscriber\",'Enrollment Form'!$C286=\"Enroll\",'Enrollment Form'!$CV286<>\"\"),\"Y\",\"N\")))","v":""},{"$f":"IF($B279=\"N\",\"\",IF($S279=\"-\",\"-\",IF(AND($S279=\"Y\",'Enrollment Form'!$CV286=\"No\"),\"-\",IF(AND($S279=\"Y\",'Enrollment Form'!$CV286=\"Yes\",'Enrollment Form'!$CW286<>\"\"),\"Y\",\"N\"))))","v":""},{"$f":"IF(OR('Enrollment Form'!$AY286=\"Yes\",'Enrollment Form'!$AY286=\"\"),\"-\",IF(OR(AND('Enrollment Form'!$AY286=\"No\",ISERROR(FIND(\"HMO\",VLOOKUP('Enrollment Form'!G286,'Enrollment Form'!H$11:J$1000,3,FALSE),1))=FALSE,COUNTA('Enrollment Form'!$AZ286:$BC286)=4),AND('Enrollment Form'!$AY286=\"No\",ISERROR(FIND(\"HMO\",VLOOKUP('Enrollment Form'!G286,'Enrollment Form'!H$11:J$1000,3,FALSE),1))=FALSE,COUNTA('Enrollment Form'!$BT286:$BW286)=4)),\"Y\",\"N\"))","v":"-"},{"$f":"IF($B279=\"N\",\"\",IF('Enrollment Form'!$B286=\"Subscriber\",\"-\",IF(COUNTA('Enrollment Form'!$BL286,'Enrollment Form'!$BN286)=2,\"Y\",\"N\")))","v":""},{"$f":"IF($B279=\"N\",\"\",IF(OR('Enrollment Form'!$AX286=\"\",'Enrollment Form'!$AX286=\"No\"),\"-\",IF(AND('Enrollment Form'!$AX286=\"Yes\",COUNTA('Enrollment Form'!$CR286)=1),\"Y\",\"N\")))","v":""},{"$f":"IF(OR('Enrollment Form'!$CR286=\"\",'Enrollment Form'!$CR286=\"No\"),\"-\",IF(COUNTA('Enrollment Form'!$CT286:$CU286)=2,\"Y\",\"N\"))","v":"-"},{"$f":"IF($B279=\"N\",\"\",IF(COUNTIF('Enrollment Form'!$DG286:$DP286,\"Other\")=COUNTA('Enrollment Form'!$DK286,'Enrollment Form'!$DH286,'Enrollment Form'!$DN286,'Enrollment Form'!$DQ286),\"Y\",\"N\"))","v":""},{"$f":"IF($B279=\"N\",\"\",IF(OR('Enrollment Form'!B286<>\"Subscriber\",'Enrollment Form'!C286=\"ROC\",COUNTIF('Enrollment Form'!AV286:AW286,\"Yes\")>=1),\"-\",IF(AND('Enrollment Form'!C286=\"Enroll\",COUNTIF('Enrollment Form'!AV286:AW286,\"No\")=2,'Enrollment Form'!AX286=\"\"),\"N\",\"Y\")))","v":""},{"$f":"IF(OR(B279=\"N\",'Enrollment Form'!B286<>\"Subscriber\",'Enrollment Form'!C286=\"ROC\",'Enrollment Form'!O286<>\"Multiple of Salary\"),\"-\",IF(COUNTA('Enrollment Form'!T286:U286)<2,\"N\",\"Y\"))","v":"-"},{"$f":"IF(B279=\"N\",\"\",IF(OR('Enrollment Form'!C286=\"ROC\",'Enrollment Form'!B286<>\"Subscriber\",'Enrollment Form'!O286=\"Waive\",'Enrollment Form'!O286=\"\"),\"-\",IF('Enrollment Form'!P286=\"\",\"N\",\"Y\")))","v":""},{"$f":"IF($B279=\"N\",\"\",IF(AND('Enrollment Form'!$C286=\"ROC\",'Enrollment Form'!$DR286<>\"\"),\"Y\",IF(AND('Enrollment Form'!$C286=\"ROC\",'Enrollment Form'!$DR286=\"\"),\"N\",IF(AND('Enrollment Form'!$C286=\"Enroll\",'Enrollment Form'!$B286=\"Subscriber\",'Enrollment Form'!$CX286=\"No\",'Enrollment Form'!$DR286=\"\"),\"N\",IF(AND('Enrollment Form'!$C286=\"Enroll\",'Enrollment Form'!$B286=\"Subscriber\",'Enrollment Form'!$CX286=\"Yes\"),\"-\",\"Y\")))))","v":""},{"$f":"IF($B279=\"N\",\"\",IF(AND('Enrollment Form'!$C286=\"ROC\",'Enrollment Form'!$DS286<>\"\"),\"Y\",IF(AND('Enrollment Form'!$C286=\"ROC\",'Enrollment Form'!$DS286=\"\"),\"N\",IF(AND('Enrollment Form'!$C286=\"Enroll\",'Enrollment Form'!$B286=\"Subscriber\",'Enrollment Form'!$CX286=\"No\",'Enrollment Form'!$DS286=\"\"),\"N\",IF(AND('Enrollment Form'!$C286=\"Enroll\",'Enrollment Form'!$B286=\"Subscriber\",'Enrollment Form'!$CX286=\"Yes\"),\"-\",\"Y\")))))","v":""},{"$f":"IF('Enrollment Form'!AH286=\"\",\"\",IF(ISERROR(SEARCH(\".\",'Enrollment Form'!AH286,SEARCH(\"@\",'Enrollment Form'!AH286))),\"N\",\"Y\"))","v":""},{"$f":"IF(OR($B279=\"N\",'Enrollment Form'!$G286=\"\"),\"\",IF('Enrollment Form'!$B286<>\"Subscriber\",\"-\",IF(COUNTIF('Enrollment Form'!$AV286:$AW286,\"Yes\")=2,\"N\",\"Y\")))","v":""},{"$f":"IF(OR('Enrollment Form'!$CJ286=\"\",'Enrollment Form'!$CJ286=\"No\"),\"-\",IF(AND('Enrollment Form'!$CJ286=\"Yes\",'Enrollment Form'!$CK286=\"\"),\"N\",\"Y\"))","v":"-"},{"$f":"IF(OR('Enrollment Form'!$CL286=\"\",'Enrollment Form'!$CL286=\"No\"),\"-\",IF(AND('Enrollment Form'!$CL286=\"Yes\",'Enrollment Form'!$CM286=\"\"),\"N\",\"Y\"))","v":"-"},{"$f":"IF(OR('Enrollment Form'!$CN286=\"\",'Enrollment Form'!$CN286=\"No\"),\"-\",IF(AND('Enrollment Form'!$CN286=\"Yes\",'Enrollment Form'!$CO286=\"\"),\"N\",\"Y\"))","v":"-"},{"$f":"IF(OR('Enrollment Form'!$CN286=\"\",'Enrollment Form'!$CN286=\"No\"),\"-\",IF(AND('Enrollment Form'!$CN286=\"Yes\",'Enrollment Form'!$CP286=\"\"),\"N\",\"Y\"))","v":"-"},{"$f":"IF('Enrollment Form'!B286<>\"Subscriber\",\"-\",IF(AND('Enrollment Form'!B286=\"Subscriber\",'Enrollment Form'!C286=\"Enroll\",'Enrollment Form'!AA286=\"\"),\"N\",\"Y\"))","v":"-"},{"$f":"IF(OR('Enrollment Form'!B286=\"Subscriber\",'Enrollment Form'!B286=\"\"),\"-\",IF('Enrollment Form'!BP286=\"\",\"N\",\"Y\"))","v":"-"},{"$f":"IF('Enrollment Form'!B286<>\"Subscriber\",\"-\",IF(AND('Enrollment Form'!B286=\"Subscriber\",'Enrollment Form'!G286=\"\"),\"N\",\"Y\"))","v":"-"},{"$f":"IF('Enrollment Form'!A286=\"\",\"\",IF('Enrollment Form'!B286=\"Subscriber\",\"-\",IF(AND('Enrollment Form'!B286<>\"Subscriber\",'Enrollment Form'!G286='Enrollment Form'!H286),\"N\",\"Y\")))","v":""},0]
[287,{"$f":"IF('Enrollment Form'!$A287<>\"\",\"Y\",\"N\")","v":"N"},{"$f":"IF(AND('Enrollment Form'!$B287=\"\",'Enrollment Form'!$C287<>\"\"),\"N\",IF($B280=\"N\",\"\",\"Y\"))","v":""},{"$f":"IF(OR($B280=\"N\",'Enrollment Form'!G287=\"\"),\"\",IF('Enrollment Form'!$B287<>\"Subscriber\",\"\",IF('Enrollment Form'!$G287='Enrollment Form'!$H287,\"Y\",\"N\")))","v":""},{"$f":"IF($B280=\"N\",\"\",IF(AND(COUNTIFS('Enrollment Form'!$H$11:$H$1000,'Enrollment Form'!$H287,'Enrollment Form'!$B$11:$B$1000,'Enrollment Form'!$B287)>1,'Enrollment Form'!$H287<>\"\"),\"N\",\"Y\"))","v":""},{"$f":"IF($B280=\"N\",\"\",IF(LEN('Enrollment Form'!$Y287)=0,\"\",IF(LEN('Enrollment Form'!$Y287)<>5,\"N\",\"Y\")))","v":""},{"$f":"IF($B280=\"N\",\"\",IF(LEN('Enrollment Form'!$AD287=0),\"\",IF(LEN('Enrollment Form'!$AD287)<>5,\"N\",\"Y\")))","v":""},{"$f":"IF($B280=\"N\",\"\",IF(LEN('Enrollment Form'!$BS287=0),\"\",IF(LEN('Enrollment Form'!$BS287)<>5,\"N\",\"Y\")))","v":""},{"$f":"IF($B280=\"N\",\"\",IF(LEN('Enrollment Form'!$AE287)=0,\"\",IF(LEN('Enrollment Form'!$AE287)<>10,\"N\",\"Y\")))","v":""},{"$f":"IF($B280=\"N\",\"\",IF(LEN('Enrollment Form'!$AF287)=0,\"\",IF(LEN('Enrollment Form'!$AF287)<>10,\"N\",\"Y\")))","v":""},{"$f":"IF('Enrollment Form'!$O287<>\"Graded\",\"-\",IF(AND('Enrollment Form'!$O287=\"Graded\",'Enrollment Form'!$AR287<>\"\"),\"Y\",\"N\"))","v":"-"},{"$f":"IF($B280=\"N\",\"\",IF(OR('Enrollment Form'!$B287<>\"Subscriber\",'Enrollment Form'!$C287=\"ROC\"),\"-\",IF(AND('Enrollment Form'!$B287=\"Subscriber\",'Enrollment Form'!$C287=\"Enroll\",'Enrollment Form'!$AJ287<>\"\"),\"Y\",\"N\")))","v":""},{"$f":"IF($B280=\"N\",\"\",IF(OR('Enrollment Form'!$B287<>\"Subscriber\",'Enrollment Form'!$C287=\"ROC\"),\"-\",IF(AND('Enrollment Form'!$B287=\"Subscriber\",'Enrollment Form'!$C287=\"Enroll\",'Enrollment Form'!$AK287<>\"\"),\"Y\",\"N\")))","v":""},{"$f":"IF($B280=\"N\",\"\",IF(OR('Enrollment Form'!$B287<>\"Subscriber\",'Enrollment Form'!$C287=\"ROC\"),\"-\",IF(AND('Enrollment Form'!$B287=\"Subscriber\",'Enrollment Form'!$C287=\"Enroll\",'Enrollment Form'!$AL287<>\"\"),\"Y\",\"N\")))","v":""},{"$f":"IF($B280=\"N\",\"\",IF(OR('Enrollment Form'!$B287<>\"Subscriber\",'Enrollment Form'!$C287=\"ROC\"),\"-\",IF(AND('Enrollment Form'!$B287=\"Subscriber\",'Enrollment Form'!$C287=\"Enroll\",'Enrollment Form'!$AP287<>\"\"),\"Y\",\"N\")))","v":""},{"$f":"IF($B280=\"N\",\"\",IF(OR('Enrollment Form'!$B287<>\"Subscriber\",'Enrollment Form'!$C287=\"ROC\"),\"-\",IF(AND('Enrollment Form'!$B287=\"Subscriber\",'Enrollment Form'!$C287=\"Enroll\",'Enrollment Form'!$AQ287<>\"\"),\"Y\",\"N\")))","v":""},{"$f":"IF($B280=\"N\",\"\",IF(OR('Enrollment Form'!$B287<>\"Subscriber\",'Enrollment Form'!$C287=\"ROC\"),\"-\",IF(AND('Enrollment Form'!$B287=\"Subscriber\",'Enrollment Form'!$C287=\"Enroll\",'Enrollment Form'!$AS287<>\"\"),\"Y\",\"N\")))","v":""},{"$f":"IF($B280=\"N\",\"\",IF($Q280=\"-\",\"-\",IF(AND($Q280=\"Y\",'Enrollment Form'!$AS287=\"No\"),\"-\",IF(AND($Q280=\"Y\",'Enrollment Form'!$AS287=\"Yes\",'Enrollment Form'!$AT287<>\"\"),\"Y\",\"N\"))))","v":""},{"$f":"IF($B280=\"N\",\"\",IF(OR('Enrollment Form'!$B287<>\"Subscriber\",'Enrollment Form'!$C287=\"ROC\"),\"-\",IF(AND('Enrollment Form'!$B287=\"Subscriber\",'Enrollment Form'!$C287=\"Enroll\",'Enrollment Form'!$CV287<>\"\"),\"Y\",\"N\")))","v":""},{"$f":"IF($B280=\"N\",\"\",IF($S280=\"-\",\"-\",IF(AND($S280=\"Y\",'Enrollment Form'!$CV287=\"No\"),\"-\",IF(AND($S280=\"Y\",'Enrollment Form'!$CV287=\"Yes\",'Enrollment Form'!$CW287<>\"\"),\"Y\",\"N\"))))","v":""},{"$f":"IF(OR('Enrollment Form'!$AY287=\"Yes\",'Enrollment Form'!$AY287=\"\"),\"-\",IF(OR(AND('Enrollment Form'!$AY287=\"No\",ISERROR(FIND(\"HMO\",VLOOKUP('Enrollment Form'!G287,'Enrollment Form'!H$11:J$1000,3,FALSE),1))=FALSE,COUNTA('Enrollment Form'!$AZ287:$BC287)=4),AND('Enrollment Form'!$AY287=\"No\",ISERROR(FIND(\"HMO\",VLOOKUP('Enrollment Form'!G287,'Enrollment Form'!H$11:J$1000,3,FALSE),1))=FALSE,COUNTA('Enrollment Form'!$BT287:$BW287)=4)),\"Y\",\"N\"))","v":"-"},{"$f":"IF($B280=\"N\",\"\",IF('Enrollment Form'!$B287=\"Subscriber\",\"-\",IF(COUNTA('Enrollment Form'!$BL287,'Enrollment Form'!$BN287)=2,\"Y\",\"N\")))","v":""},{"$f":"IF($B280=\"N\",\"\",IF(OR('Enrollment Form'!$AX287=\"\",'Enrollment Form'!$AX287=\"No\"),\"-\",IF(AND('Enrollment Form'!$AX287=\"Yes\",COUNTA('Enrollment Form'!$CR287)=1),\"Y\",\"N\")))","v":""},{"$f":"IF(OR('Enrollment Form'!$CR287=\"\",'Enrollment Form'!$CR287=\"No\"),\"-\",IF(COUNTA('Enrollment Form'!$CT287:$CU287)=2,\"Y\",\"N\"))","v":"-"},{"$f":"IF($B280=\"N\",\"\",IF(COUNTIF('Enrollment Form'!$DG287:$DP287,\"Other\")=COUNTA('Enrollment Form'!$DK287,'Enrollment Form'!$DH287,'Enrollment Form'!$DN287,'Enrollment Form'!$DQ287),\"Y\",\"N\"))","v":""},{"$f":"IF($B280=\"N\",\"\",IF(OR('Enrollment Form'!B287<>\"Subscriber\",'Enrollment Form'!C287=\"ROC\",COUNTIF('Enrollment Form'!AV287:AW287,\"Yes\")>=1),\"-\",IF(AND('Enrollment Form'!C287=\"Enroll\",COUNTIF('Enrollment Form'!AV287:AW287,\"No\")=2,'Enrollment Form'!AX287=\"\"),\"N\",\"Y\")))","v":""},{"$f":"IF(OR(B280=\"N\",'Enrollment Form'!B287<>\"Subscriber\",'Enrollment Form'!C287=\"ROC\",'Enrollment Form'!O287<>\"Multiple of Salary\"),\"-\",IF(COUNTA('Enrollment Form'!T287:U287)<2,\"N\",\"Y\"))","v":"-"},{"$f":"IF(B280=\"N\",\"\",IF(OR('Enrollment Form'!C287=\"ROC\",'Enrollment Form'!B287<>\"Subscriber\",'Enrollment Form'!O287=\"Waive\",'Enrollment Form'!O287=\"\"),\"-\",IF('Enrollment Form'!P287=\"\",\"N\",\"Y\")))","v":""},{"$f":"IF($B280=\"N\",\"\",IF(AND('Enrollment Form'!$C287=\"ROC\",'Enrollment Form'!$DR287<>\"\"),\"Y\",IF(AND('Enrollment Form'!$C287=\"ROC\",'Enrollment Form'!$DR287=\"\"),\"N\",IF(AND('Enrollment Form'!$C287=\"Enroll\",'Enrollment Form'!$B287=\"Subscriber\",'Enrollment Form'!$CX287=\"No\",'Enrollment Form'!$DR287=\"\"),\"N\",IF(AND('Enrollment Form'!$C287=\"Enroll\",'Enrollment Form'!$B287=\"Subscriber\",'Enrollment Form'!$CX287=\"Yes\"),\"-\",\"Y\")))))","v":""},{"$f":"IF($B280=\"N\",\"\",IF(AND('Enrollment Form'!$C287=\"ROC\",'Enrollment Form'!$DS287<>\"\"),\"Y\",IF(AND('Enrollment Form'!$C287=\"ROC\",'Enrollment Form'!$DS287=\"\"),\"N\",IF(AND('Enrollment Form'!$C287=\"Enroll\",'Enrollment Form'!$B287=\"Subscriber\",'Enrollment Form'!$CX287=\"No\",'Enrollment Form'!$DS287=\"\"),\"N\",IF(AND('Enrollment Form'!$C287=\"Enroll\",'Enrollment Form'!$B287=\"Subscriber\",'Enrollment Form'!$CX287=\"Yes\"),\"-\",\"Y\")))))","v":""},{"$f":"IF('Enrollment Form'!AH287=\"\",\"\",IF(ISERROR(SEARCH(\".\",'Enrollment Form'!AH287,SEARCH(\"@\",'Enrollment Form'!AH287))),\"N\",\"Y\"))","v":""},{"$f":"IF(OR($B280=\"N\",'Enrollment Form'!$G287=\"\"),\"\",IF('Enrollment Form'!$B287<>\"Subscriber\",\"-\",IF(COUNTIF('Enrollment Form'!$AV287:$AW287,\"Yes\")=2,\"N\",\"Y\")))","v":""},{"$f":"IF(OR('Enrollment Form'!$CJ287=\"\",'Enrollment Form'!$CJ287=\"No\"),\"-\",IF(AND('Enrollment Form'!$CJ287=\"Yes\",'Enrollment Form'!$CK287=\"\"),\"N\",\"Y\"))","v":"-"},{"$f":"IF(OR('Enrollment Form'!$CL287=\"\",'Enrollment Form'!$CL287=\"No\"),\"-\",IF(AND('Enrollment Form'!$CL287=\"Yes\",'Enrollment Form'!$CM287=\"\"),\"N\",\"Y\"))","v":"-"},{"$f":"IF(OR('Enrollment Form'!$CN287=\"\",'Enrollment Form'!$CN287=\"No\"),\"-\",IF(AND('Enrollment Form'!$CN287=\"Yes\",'Enrollment Form'!$CO287=\"\"),\"N\",\"Y\"))","v":"-"},{"$f":"IF(OR('Enrollment Form'!$CN287=\"\",'Enrollment Form'!$CN287=\"No\"),\"-\",IF(AND('Enrollment Form'!$CN287=\"Yes\",'Enrollment Form'!$CP287=\"\"),\"N\",\"Y\"))","v":"-"},{"$f":"IF('Enrollment Form'!B287<>\"Subscriber\",\"-\",IF(AND('Enrollment Form'!B287=\"Subscriber\",'Enrollment Form'!C287=\"Enroll\",'Enrollment Form'!AA287=\"\"),\"N\",\"Y\"))","v":"-"},{"$f":"IF(OR('Enrollment Form'!B287=\"Subscriber\",'Enrollment Form'!B287=\"\"),\"-\",IF('Enrollment Form'!BP287=\"\",\"N\",\"Y\"))","v":"-"},{"$f":"IF('Enrollment Form'!B287<>\"Subscriber\",\"-\",IF(AND('Enrollment Form'!B287=\"Subscriber\",'Enrollment Form'!G287=\"\"),\"N\",\"Y\"))","v":"-"},{"$f":"IF('Enrollment Form'!A287=\"\",\"\",IF('Enrollment Form'!B287=\"Subscriber\",\"-\",IF(AND('Enrollment Form'!B287<>\"Subscriber\",'Enrollment Form'!G287='Enrollment Form'!H287),\"N\",\"Y\")))","v":""},0]
[288,{"$f":"IF('Enrollment Form'!$A288<>\"\",\"Y\",\"N\")","v":"N"},{"$f":"IF(AND('Enrollment Form'!$B288=\"\",'Enrollment Form'!$C288<>\"\"),\"N\",IF($B281=\"N\",\"\",\"Y\"))","v":""},{"$f":"IF(OR($B281=\"N\",'Enrollment Form'!G288=\"\"),\"\",IF('Enrollment Form'!$B288<>\"Subscriber\",\"\",IF('Enrollment Form'!$G288='Enrollment Form'!$H288,\"Y\",\"N\")))","v":""},{"$f":"IF($B281=\"N\",\"\",IF(AND(COUNTIFS('Enrollment Form'!$H$11:$H$1000,'Enrollment Form'!$H288,'Enrollment Form'!$B$11:$B$1000,'Enrollment Form'!$B288)>1,'Enrollment Form'!$H288<>\"\"),\"N\",\"Y\"))","v":""},{"$f":"IF($B281=\"N\",\"\",IF(LEN('Enrollment Form'!$Y288)=0,\"\",IF(LEN('Enrollment Form'!$Y288)<>5,\"N\",\"Y\")))","v":""},{"$f":"IF($B281=\"N\",\"\",IF(LEN('Enrollment Form'!$AD288=0),\"\",IF(LEN('Enrollment Form'!$AD288)<>5,\"N\",\"Y\")))","v":""},{"$f":"IF($B281=\"N\",\"\",IF(LEN('Enrollment Form'!$BS288=0),\"\",IF(LEN('Enrollment Form'!$BS288)<>5,\"N\",\"Y\")))","v":""},{"$f":"IF($B281=\"N\",\"\",IF(LEN('Enrollment Form'!$AE288)=0,\"\",IF(LEN('Enrollment Form'!$AE288)<>10,\"N\",\"Y\")))","v":""},{"$f":"IF($B281=\"N\",\"\",IF(LEN('Enrollment Form'!$AF288)=0,\"\",IF(LEN('Enrollment Form'!$AF288)<>10,\"N\",\"Y\")))","v":""},{"$f":"IF('Enrollment Form'!$O288<>\"Graded\",\"-\",IF(AND('Enrollment Form'!$O288=\"Graded\",'Enrollment Form'!$AR288<>\"\"),\"Y\",\"N\"))","v":"-"},{"$f":"IF($B281=\"N\",\"\",IF(OR('Enrollment Form'!$B288<>\"Subscriber\",'Enrollment Form'!$C288=\"ROC\"),\"-\",IF(AND('Enrollment Form'!$B288=\"Subscriber\",'Enrollment Form'!$C288=\"Enroll\",'Enrollment Form'!$AJ288<>\"\"),\"Y\",\"N\")))","v":""},{"$f":"IF($B281=\"N\",\"\",IF(OR('Enrollment Form'!$B288<>\"Subscriber\",'Enrollment Form'!$C288=\"ROC\"),\"-\",IF(AND('Enrollment Form'!$B288=\"Subscriber\",'Enrollment Form'!$C288=\"Enroll\",'Enrollment Form'!$AK288<>\"\"),\"Y\",\"N\")))","v":""},{"$f":"IF($B281=\"N\",\"\",IF(OR('Enrollment Form'!$B288<>\"Subscriber\",'Enrollment Form'!$C288=\"ROC\"),\"-\",IF(AND('Enrollment Form'!$B288=\"Subscriber\",'Enrollment Form'!$C288=\"Enroll\",'Enrollment Form'!$AL288<>\"\"),\"Y\",\"N\")))","v":""},{"$f":"IF($B281=\"N\",\"\",IF(OR('Enrollment Form'!$B288<>\"Subscriber\",'Enrollment Form'!$C288=\"ROC\"),\"-\",IF(AND('Enrollment Form'!$B288=\"Subscriber\",'Enrollment Form'!$C288=\"Enroll\",'Enrollment Form'!$AP288<>\"\"),\"Y\",\"N\")))","v":""},{"$f":"IF($B281=\"N\",\"\",IF(OR('Enrollment Form'!$B288<>\"Subscriber\",'Enrollment Form'!$C288=\"ROC\"),\"-\",IF(AND('Enrollment Form'!$B288=\"Subscriber\",'Enrollment Form'!$C288=\"Enroll\",'Enrollment Form'!$AQ288<>\"\"),\"Y\",\"N\")))","v":""},{"$f":"IF($B281=\"N\",\"\",IF(OR('Enrollment Form'!$B288<>\"Subscriber\",'Enrollment Form'!$C288=\"ROC\"),\"-\",IF(AND('Enrollment Form'!$B288=\"Subscriber\",'Enrollment Form'!$C288=\"Enroll\",'Enrollment Form'!$AS288<>\"\"),\"Y\",\"N\")))","v":""},{"$f":"IF($B281=\"N\",\"\",IF($Q281=\"-\",\"-\",IF(AND($Q281=\"Y\",'Enrollment Form'!$AS288=\"No\"),\"-\",IF(AND($Q281=\"Y\",'Enrollment Form'!$AS288=\"Yes\",'Enrollment Form'!$AT288<>\"\"),\"Y\",\"N\"))))","v":""},{"$f":"IF($B281=\"N\",\"\",IF(OR('Enrollment Form'!$B288<>\"Subscriber\",'Enrollment Form'!$C288=\"ROC\"),\"-\",IF(AND('Enrollment Form'!$B288=\"Subscriber\",'Enrollment Form'!$C288=\"Enroll\",'Enrollment Form'!$CV288<>\"\"),\"Y\",\"N\")))","v":""},{"$f":"IF($B281=\"N\",\"\",IF($S281=\"-\",\"-\",IF(AND($S281=\"Y\",'Enrollment Form'!$CV288=\"No\"),\"-\",IF(AND($S281=\"Y\",'Enrollment Form'!$CV288=\"Yes\",'Enrollment Form'!$CW288<>\"\"),\"Y\",\"N\"))))","v":""},{"$f":"IF(OR('Enrollment Form'!$AY288=\"Yes\",'Enrollment Form'!$AY288=\"\"),\"-\",IF(OR(AND('Enrollment Form'!$AY288=\"No\",ISERROR(FIND(\"HMO\",VLOOKUP('Enrollment Form'!G288,'Enrollment Form'!H$11:J$1000,3,FALSE),1))=FALSE,COUNTA('Enrollment Form'!$AZ288:$BC288)=4),AND('Enrollment Form'!$AY288=\"No\",ISERROR(FIND(\"HMO\",VLOOKUP('Enrollment Form'!G288,'Enrollment Form'!H$11:J$1000,3,FALSE),1))=FALSE,COUNTA('Enrollment Form'!$BT288:$BW288)=4)),\"Y\",\"N\"))","v":"-"},{"$f":"IF($B281=\"N\",\"\",IF('Enrollment Form'!$B288=\"Subscriber\",\"-\",IF(COUNTA('Enrollment Form'!$BL288,'Enrollment Form'!$BN288)=2,\"Y\",\"N\")))","v":""},{"$f":"IF($B281=\"N\",\"\",IF(OR('Enrollment Form'!$AX288=\"\",'Enrollment Form'!$AX288=\"No\"),\"-\",IF(AND('Enrollment Form'!$AX288=\"Yes\",COUNTA('Enrollment Form'!$CR288)=1),\"Y\",\"N\")))","v":""},{"$f":"IF(OR('Enrollment Form'!$CR288=\"\",'Enrollment Form'!$CR288=\"No\"),\"-\",IF(COUNTA('Enrollment Form'!$CT288:$CU288)=2,\"Y\",\"N\"))","v":"-"},{"$f":"IF($B281=\"N\",\"\",IF(COUNTIF('Enrollment Form'!$DG288:$DP288,\"Other\")=COUNTA('Enrollment Form'!$DK288,'Enrollment Form'!$DH288,'Enrollment Form'!$DN288,'Enrollment Form'!$DQ288),\"Y\",\"N\"))","v":""},{"$f":"IF($B281=\"N\",\"\",IF(OR('Enrollment Form'!B288<>\"Subscriber\",'Enrollment Form'!C288=\"ROC\",COUNTIF('Enrollment Form'!AV288:AW288,\"Yes\")>=1),\"-\",IF(AND('Enrollment Form'!C288=\"Enroll\",COUNTIF('Enrollment Form'!AV288:AW288,\"No\")=2,'Enrollment Form'!AX288=\"\"),\"N\",\"Y\")))","v":""},{"$f":"IF(OR(B281=\"N\",'Enrollment Form'!B288<>\"Subscriber\",'Enrollment Form'!C288=\"ROC\",'Enrollment Form'!O288<>\"Multiple of Salary\"),\"-\",IF(COUNTA('Enrollment Form'!T288:U288)<2,\"N\",\"Y\"))","v":"-"},{"$f":"IF(B281=\"N\",\"\",IF(OR('Enrollment Form'!C288=\"ROC\",'Enrollment Form'!B288<>\"Subscriber\",'Enrollment Form'!O288=\"Waive\",'Enrollment Form'!O288=\"\"),\"-\",IF('Enrollment Form'!P288=\"\",\"N\",\"Y\")))","v":""},{"$f":"IF($B281=\"N\",\"\",IF(AND('Enrollment Form'!$C288=\"ROC\",'Enrollment Form'!$DR288<>\"\"),\"Y\",IF(AND('Enrollment Form'!$C288=\"ROC\",'Enrollment Form'!$DR288=\"\"),\"N\",IF(AND('Enrollment Form'!$C288=\"Enroll\",'Enrollment Form'!$B288=\"Subscriber\",'Enrollment Form'!$CX288=\"No\",'Enrollment Form'!$DR288=\"\"),\"N\",IF(AND('Enrollment Form'!$C288=\"Enroll\",'Enrollment Form'!$B288=\"Subscriber\",'Enrollment Form'!$CX288=\"Yes\"),\"-\",\"Y\")))))","v":""},{"$f":"IF($B281=\"N\",\"\",IF(AND('Enrollment Form'!$C288=\"ROC\",'Enrollment Form'!$DS288<>\"\"),\"Y\",IF(AND('Enrollment Form'!$C288=\"ROC\",'Enrollment Form'!$DS288=\"\"),\"N\",IF(AND('Enrollment Form'!$C288=\"Enroll\",'Enrollment Form'!$B288=\"Subscriber\",'Enrollment Form'!$CX288=\"No\",'Enrollment Form'!$DS288=\"\"),\"N\",IF(AND('Enrollment Form'!$C288=\"Enroll\",'Enrollment Form'!$B288=\"Subscriber\",'Enrollment Form'!$CX288=\"Yes\"),\"-\",\"Y\")))))","v":""},{"$f":"IF('Enrollment Form'!AH288=\"\",\"\",IF(ISERROR(SEARCH(\".\",'Enrollment Form'!AH288,SEARCH(\"@\",'Enrollment Form'!AH288))),\"N\",\"Y\"))","v":""},{"$f":"IF(OR($B281=\"N\",'Enrollment Form'!$G288=\"\"),\"\",IF('Enrollment Form'!$B288<>\"Subscriber\",\"-\",IF(COUNTIF('Enrollment Form'!$AV288:$AW288,\"Yes\")=2,\"N\",\"Y\")))","v":""},{"$f":"IF(OR('Enrollment Form'!$CJ288=\"\",'Enrollment Form'!$CJ288=\"No\"),\"-\",IF(AND('Enrollment Form'!$CJ288=\"Yes\",'Enrollment Form'!$CK288=\"\"),\"N\",\"Y\"))","v":"-"},{"$f":"IF(OR('Enrollment Form'!$CL288=\"\",'Enrollment Form'!$CL288=\"No\"),\"-\",IF(AND('Enrollment Form'!$CL288=\"Yes\",'Enrollment Form'!$CM288=\"\"),\"N\",\"Y\"))","v":"-"},{"$f":"IF(OR('Enrollment Form'!$CN288=\"\",'Enrollment Form'!$CN288=\"No\"),\"-\",IF(AND('Enrollment Form'!$CN288=\"Yes\",'Enrollment Form'!$CO288=\"\"),\"N\",\"Y\"))","v":"-"},{"$f":"IF(OR('Enrollment Form'!$CN288=\"\",'Enrollment Form'!$CN288=\"No\"),\"-\",IF(AND('Enrollment Form'!$CN288=\"Yes\",'Enrollment Form'!$CP288=\"\"),\"N\",\"Y\"))","v":"-"},{"$f":"IF('Enrollment Form'!B288<>\"Subscriber\",\"-\",IF(AND('Enrollment Form'!B288=\"Subscriber\",'Enrollment Form'!C288=\"Enroll\",'Enrollment Form'!AA288=\"\"),\"N\",\"Y\"))","v":"-"},{"$f":"IF(OR('Enrollment Form'!B288=\"Subscriber\",'Enrollment Form'!B288=\"\"),\"-\",IF('Enrollment Form'!BP288=\"\",\"N\",\"Y\"))","v":"-"},{"$f":"IF('Enrollment Form'!B288<>\"Subscriber\",\"-\",IF(AND('Enrollment Form'!B288=\"Subscriber\",'Enrollment Form'!G288=\"\"),\"N\",\"Y\"))","v":"-"},{"$f":"IF('Enrollment Form'!A288=\"\",\"\",IF('Enrollment Form'!B288=\"Subscriber\",\"-\",IF(AND('Enrollment Form'!B288<>\"Subscriber\",'Enrollment Form'!G288='Enrollment Form'!H288),\"N\",\"Y\")))","v":""},0]
[289,{"$f":"IF('Enrollment Form'!$A289<>\"\",\"Y\",\"N\")","v":"N"},{"$f":"IF(AND('Enrollment Form'!$B289=\"\",'Enrollment Form'!$C289<>\"\"),\"N\",IF($B282=\"N\",\"\",\"Y\"))","v":""},{"$f":"IF(OR($B282=\"N\",'Enrollment Form'!G289=\"\"),\"\",IF('Enrollment Form'!$B289<>\"Subscriber\",\"\",IF('Enrollment Form'!$G289='Enrollment Form'!$H289,\"Y\",\"N\")))","v":""},{"$f":"IF($B282=\"N\",\"\",IF(AND(COUNTIFS('Enrollment Form'!$H$11:$H$1000,'Enrollment Form'!$H289,'Enrollment Form'!$B$11:$B$1000,'Enrollment Form'!$B289)>1,'Enrollment Form'!$H289<>\"\"),\"N\",\"Y\"))","v":""},{"$f":"IF($B282=\"N\",\"\",IF(LEN('Enrollment Form'!$Y289)=0,\"\",IF(LEN('Enrollment Form'!$Y289)<>5,\"N\",\"Y\")))","v":""},{"$f":"IF($B282=\"N\",\"\",IF(LEN('Enrollment Form'!$AD289=0),\"\",IF(LEN('Enrollment Form'!$AD289)<>5,\"N\",\"Y\")))","v":""},{"$f":"IF($B282=\"N\",\"\",IF(LEN('Enrollment Form'!$BS289=0),\"\",IF(LEN('Enrollment Form'!$BS289)<>5,\"N\",\"Y\")))","v":""},{"$f":"IF($B282=\"N\",\"\",IF(LEN('Enrollment Form'!$AE289)=0,\"\",IF(LEN('Enrollment Form'!$AE289)<>10,\"N\",\"Y\")))","v":""},{"$f":"IF($B282=\"N\",\"\",IF(LEN('Enrollment Form'!$AF289)=0,\"\",IF(LEN('Enrollment Form'!$AF289)<>10,\"N\",\"Y\")))","v":""},{"$f":"IF('Enrollment Form'!$O289<>\"Graded\",\"-\",IF(AND('Enrollment Form'!$O289=\"Graded\",'Enrollment Form'!$AR289<>\"\"),\"Y\",\"N\"))","v":"-"},{"$f":"IF($B282=\"N\",\"\",IF(OR('Enrollment Form'!$B289<>\"Subscriber\",'Enrollment Form'!$C289=\"ROC\"),\"-\",IF(AND('Enrollment Form'!$B289=\"Subscriber\",'Enrollment Form'!$C289=\"Enroll\",'Enrollment Form'!$AJ289<>\"\"),\"Y\",\"N\")))","v":""},{"$f":"IF($B282=\"N\",\"\",IF(OR('Enrollment Form'!$B289<>\"Subscriber\",'Enrollment Form'!$C289=\"ROC\"),\"-\",IF(AND('Enrollment Form'!$B289=\"Subscriber\",'Enrollment Form'!$C289=\"Enroll\",'Enrollment Form'!$AK289<>\"\"),\"Y\",\"N\")))","v":""},{"$f":"IF($B282=\"N\",\"\",IF(OR('Enrollment Form'!$B289<>\"Subscriber\",'Enrollment Form'!$C289=\"ROC\"),\"-\",IF(AND('Enrollment Form'!$B289=\"Subscriber\",'Enrollment Form'!$C289=\"Enroll\",'Enrollment Form'!$AL289<>\"\"),\"Y\",\"N\")))","v":""},{"$f":"IF($B282=\"N\",\"\",IF(OR('Enrollment Form'!$B289<>\"Subscriber\",'Enrollment Form'!$C289=\"ROC\"),\"-\",IF(AND('Enrollment Form'!$B289=\"Subscriber\",'Enrollment Form'!$C289=\"Enroll\",'Enrollment Form'!$AP289<>\"\"),\"Y\",\"N\")))","v":""},{"$f":"IF($B282=\"N\",\"\",IF(OR('Enrollment Form'!$B289<>\"Subscriber\",'Enrollment Form'!$C289=\"ROC\"),\"-\",IF(AND('Enrollment Form'!$B289=\"Subscriber\",'Enrollment Form'!$C289=\"Enroll\",'Enrollment Form'!$AQ289<>\"\"),\"Y\",\"N\")))","v":""},{"$f":"IF($B282=\"N\",\"\",IF(OR('Enrollment Form'!$B289<>\"Subscriber\",'Enrollment Form'!$C289=\"ROC\"),\"-\",IF(AND('Enrollment Form'!$B289=\"Subscriber\",'Enrollment Form'!$C289=\"Enroll\",'Enrollment Form'!$AS289<>\"\"),\"Y\",\"N\")))","v":""},{"$f":"IF($B282=\"N\",\"\",IF($Q282=\"-\",\"-\",IF(AND($Q282=\"Y\",'Enrollment Form'!$AS289=\"No\"),\"-\",IF(AND($Q282=\"Y\",'Enrollment Form'!$AS289=\"Yes\",'Enrollment Form'!$AT289<>\"\"),\"Y\",\"N\"))))","v":""},{"$f":"IF($B282=\"N\",\"\",IF(OR('Enrollment Form'!$B289<>\"Subscriber\",'Enrollment Form'!$C289=\"ROC\"),\"-\",IF(AND('Enrollment Form'!$B289=\"Subscriber\",'Enrollment Form'!$C289=\"Enroll\",'Enrollment Form'!$CV289<>\"\"),\"Y\",\"N\")))","v":""},{"$f":"IF($B282=\"N\",\"\",IF($S282=\"-\",\"-\",IF(AND($S282=\"Y\",'Enrollment Form'!$CV289=\"No\"),\"-\",IF(AND($S282=\"Y\",'Enrollment Form'!$CV289=\"Yes\",'Enrollment Form'!$CW289<>\"\"),\"Y\",\"N\"))))","v":""},{"$f":"IF(OR('Enrollment Form'!$AY289=\"Yes\",'Enrollment Form'!$AY289=\"\"),\"-\",IF(OR(AND('Enrollment Form'!$AY289=\"No\",ISERROR(FIND(\"HMO\",VLOOKUP('Enrollment Form'!G289,'Enrollment Form'!H$11:J$1000,3,FALSE),1))=FALSE,COUNTA('Enrollment Form'!$AZ289:$BC289)=4),AND('Enrollment Form'!$AY289=\"No\",ISERROR(FIND(\"HMO\",VLOOKUP('Enrollment Form'!G289,'Enrollment Form'!H$11:J$1000,3,FALSE),1))=FALSE,COUNTA('Enrollment Form'!$BT289:$BW289)=4)),\"Y\",\"N\"))","v":"-"},{"$f":"IF($B282=\"N\",\"\",IF('Enrollment Form'!$B289=\"Subscriber\",\"-\",IF(COUNTA('Enrollment Form'!$BL289,'Enrollment Form'!$BN289)=2,\"Y\",\"N\")))","v":""},{"$f":"IF($B282=\"N\",\"\",IF(OR('Enrollment Form'!$AX289=\"\",'Enrollment Form'!$AX289=\"No\"),\"-\",IF(AND('Enrollment Form'!$AX289=\"Yes\",COUNTA('Enrollment Form'!$CR289)=1),\"Y\",\"N\")))","v":""},{"$f":"IF(OR('Enrollment Form'!$CR289=\"\",'Enrollment Form'!$CR289=\"No\"),\"-\",IF(COUNTA('Enrollment Form'!$CT289:$CU289)=2,\"Y\",\"N\"))","v":"-"},{"$f":"IF($B282=\"N\",\"\",IF(COUNTIF('Enrollment Form'!$DG289:$DP289,\"Other\")=COUNTA('Enrollment Form'!$DK289,'Enrollment Form'!$DH289,'Enrollment Form'!$DN289,'Enrollment Form'!$DQ289),\"Y\",\"N\"))","v":""},{"$f":"IF($B282=\"N\",\"\",IF(OR('Enrollment Form'!B289<>\"Subscriber\",'Enrollment Form'!C289=\"ROC\",COUNTIF('Enrollment Form'!AV289:AW289,\"Yes\")>=1),\"-\",IF(AND('Enrollment Form'!C289=\"Enroll\",COUNTIF('Enrollment Form'!AV289:AW289,\"No\")=2,'Enrollment Form'!AX289=\"\"),\"N\",\"Y\")))","v":""},{"$f":"IF(OR(B282=\"N\",'Enrollment Form'!B289<>\"Subscriber\",'Enrollment Form'!C289=\"ROC\",'Enrollment Form'!O289<>\"Multiple of Salary\"),\"-\",IF(COUNTA('Enrollment Form'!T289:U289)<2,\"N\",\"Y\"))","v":"-"},{"$f":"IF(B282=\"N\",\"\",IF(OR('Enrollment Form'!C289=\"ROC\",'Enrollment Form'!B289<>\"Subscriber\",'Enrollment Form'!O289=\"Waive\",'Enrollment Form'!O289=\"\"),\"-\",IF('Enrollment Form'!P289=\"\",\"N\",\"Y\")))","v":""},{"$f":"IF($B282=\"N\",\"\",IF(AND('Enrollment Form'!$C289=\"ROC\",'Enrollment Form'!$DR289<>\"\"),\"Y\",IF(AND('Enrollment Form'!$C289=\"ROC\",'Enrollment Form'!$DR289=\"\"),\"N\",IF(AND('Enrollment Form'!$C289=\"Enroll\",'Enrollment Form'!$B289=\"Subscriber\",'Enrollment Form'!$CX289=\"No\",'Enrollment Form'!$DR289=\"\"),\"N\",IF(AND('Enrollment Form'!$C289=\"Enroll\",'Enrollment Form'!$B289=\"Subscriber\",'Enrollment Form'!$CX289=\"Yes\"),\"-\",\"Y\")))))","v":""},{"$f":"IF($B282=\"N\",\"\",IF(AND('Enrollment Form'!$C289=\"ROC\",'Enrollment Form'!$DS289<>\"\"),\"Y\",IF(AND('Enrollment Form'!$C289=\"ROC\",'Enrollment Form'!$DS289=\"\"),\"N\",IF(AND('Enrollment Form'!$C289=\"Enroll\",'Enrollment Form'!$B289=\"Subscriber\",'Enrollment Form'!$CX289=\"No\",'Enrollment Form'!$DS289=\"\"),\"N\",IF(AND('Enrollment Form'!$C289=\"Enroll\",'Enrollment Form'!$B289=\"Subscriber\",'Enrollment Form'!$CX289=\"Yes\"),\"-\",\"Y\")))))","v":""},{"$f":"IF('Enrollment Form'!AH289=\"\",\"\",IF(ISERROR(SEARCH(\".\",'Enrollment Form'!AH289,SEARCH(\"@\",'Enrollment Form'!AH289))),\"N\",\"Y\"))","v":""},{"$f":"IF(OR($B282=\"N\",'Enrollment Form'!$G289=\"\"),\"\",IF('Enrollment Form'!$B289<>\"Subscriber\",\"-\",IF(COUNTIF('Enrollment Form'!$AV289:$AW289,\"Yes\")=2,\"N\",\"Y\")))","v":""},{"$f":"IF(OR('Enrollment Form'!$CJ289=\"\",'Enrollment Form'!$CJ289=\"No\"),\"-\",IF(AND('Enrollment Form'!$CJ289=\"Yes\",'Enrollment Form'!$CK289=\"\"),\"N\",\"Y\"))","v":"-"},{"$f":"IF(OR('Enrollment Form'!$CL289=\"\",'Enrollment Form'!$CL289=\"No\"),\"-\",IF(AND('Enrollment Form'!$CL289=\"Yes\",'Enrollment Form'!$CM289=\"\"),\"N\",\"Y\"))","v":"-"},{"$f":"IF(OR('Enrollment Form'!$CN289=\"\",'Enrollment Form'!$CN289=\"No\"),\"-\",IF(AND('Enrollment Form'!$CN289=\"Yes\",'Enrollment Form'!$CO289=\"\"),\"N\",\"Y\"))","v":"-"},{"$f":"IF(OR('Enrollment Form'!$CN289=\"\",'Enrollment Form'!$CN289=\"No\"),\"-\",IF(AND('Enrollment Form'!$CN289=\"Yes\",'Enrollment Form'!$CP289=\"\"),\"N\",\"Y\"))","v":"-"},{"$f":"IF('Enrollment Form'!B289<>\"Subscriber\",\"-\",IF(AND('Enrollment Form'!B289=\"Subscriber\",'Enrollment Form'!C289=\"Enroll\",'Enrollment Form'!AA289=\"\"),\"N\",\"Y\"))","v":"-"},{"$f":"IF(OR('Enrollment Form'!B289=\"Subscriber\",'Enrollment Form'!B289=\"\"),\"-\",IF('Enrollment Form'!BP289=\"\",\"N\",\"Y\"))","v":"-"},{"$f":"IF('Enrollment Form'!B289<>\"Subscriber\",\"-\",IF(AND('Enrollment Form'!B289=\"Subscriber\",'Enrollment Form'!G289=\"\"),\"N\",\"Y\"))","v":"-"},{"$f":"IF('Enrollment Form'!A289=\"\",\"\",IF('Enrollment Form'!B289=\"Subscriber\",\"-\",IF(AND('Enrollment Form'!B289<>\"Subscriber\",'Enrollment Form'!G289='Enrollment Form'!H289),\"N\",\"Y\")))","v":""},0]
[290,{"$f":"IF('Enrollment Form'!$A290<>\"\",\"Y\",\"N\")","v":"N"},{"$f":"IF(AND('Enrollment Form'!$B290=\"\",'Enrollment Form'!$C290<>\"\"),\"N\",IF($B283=\"N\",\"\",\"Y\"))","v":""},{"$f":"IF(OR($B283=\"N\",'Enrollment Form'!G290=\"\"),\"\",IF('Enrollment Form'!$B290<>\"Subscriber\",\"\",IF('Enrollment Form'!$G290='Enrollment Form'!$H290,\"Y\",\"N\")))","v":""},{"$f":"IF($B283=\"N\",\"\",IF(AND(COUNTIFS('Enrollment Form'!$H$11:$H$1000,'Enrollment Form'!$H290,'Enrollment Form'!$B$11:$B$1000,'Enrollment Form'!$B290)>1,'Enrollment Form'!$H290<>\"\"),\"N\",\"Y\"))","v":""},{"$f":"IF($B283=\"N\",\"\",IF(LEN('Enrollment Form'!$Y290)=0,\"\",IF(LEN('Enrollment Form'!$Y290)<>5,\"N\",\"Y\")))","v":""},{"$f":"IF($B283=\"N\",\"\",IF(LEN('Enrollment Form'!$AD290=0),\"\",IF(LEN('Enrollment Form'!$AD290)<>5,\"N\",\"Y\")))","v":""},{"$f":"IF($B283=\"N\",\"\",IF(LEN('Enrollment Form'!$BS290=0),\"\",IF(LEN('Enrollment Form'!$BS290)<>5,\"N\",\"Y\")))","v":""},{"$f":"IF($B283=\"N\",\"\",IF(LEN('Enrollment Form'!$AE290)=0,\"\",IF(LEN('Enrollment Form'!$AE290)<>10,\"N\",\"Y\")))","v":""},{"$f":"IF($B283=\"N\",\"\",IF(LEN('Enrollment Form'!$AF290)=0,\"\",IF(LEN('Enrollment Form'!$AF290)<>10,\"N\",\"Y\")))","v":""},{"$f":"IF('Enrollment Form'!$O290<>\"Graded\",\"-\",IF(AND('Enrollment Form'!$O290=\"Graded\",'Enrollment Form'!$AR290<>\"\"),\"Y\",\"N\"))","v":"-"},{"$f":"IF($B283=\"N\",\"\",IF(OR('Enrollment Form'!$B290<>\"Subscriber\",'Enrollment Form'!$C290=\"ROC\"),\"-\",IF(AND('Enrollment Form'!$B290=\"Subscriber\",'Enrollment Form'!$C290=\"Enroll\",'Enrollment Form'!$AJ290<>\"\"),\"Y\",\"N\")))","v":""},{"$f":"IF($B283=\"N\",\"\",IF(OR('Enrollment Form'!$B290<>\"Subscriber\",'Enrollment Form'!$C290=\"ROC\"),\"-\",IF(AND('Enrollment Form'!$B290=\"Subscriber\",'Enrollment Form'!$C290=\"Enroll\",'Enrollment Form'!$AK290<>\"\"),\"Y\",\"N\")))","v":""},{"$f":"IF($B283=\"N\",\"\",IF(OR('Enrollment Form'!$B290<>\"Subscriber\",'Enrollment Form'!$C290=\"ROC\"),\"-\",IF(AND('Enrollment Form'!$B290=\"Subscriber\",'Enrollment Form'!$C290=\"Enroll\",'Enrollment Form'!$AL290<>\"\"),\"Y\",\"N\")))","v":""},{"$f":"IF($B283=\"N\",\"\",IF(OR('Enrollment Form'!$B290<>\"Subscriber\",'Enrollment Form'!$C290=\"ROC\"),\"-\",IF(AND('Enrollment Form'!$B290=\"Subscriber\",'Enrollment Form'!$C290=\"Enroll\",'Enrollment Form'!$AP290<>\"\"),\"Y\",\"N\")))","v":""},{"$f":"IF($B283=\"N\",\"\",IF(OR('Enrollment Form'!$B290<>\"Subscriber\",'Enrollment Form'!$C290=\"ROC\"),\"-\",IF(AND('Enrollment Form'!$B290=\"Subscriber\",'Enrollment Form'!$C290=\"Enroll\",'Enrollment Form'!$AQ290<>\"\"),\"Y\",\"N\")))","v":""},{"$f":"IF($B283=\"N\",\"\",IF(OR('Enrollment Form'!$B290<>\"Subscriber\",'Enrollment Form'!$C290=\"ROC\"),\"-\",IF(AND('Enrollment Form'!$B290=\"Subscriber\",'Enrollment Form'!$C290=\"Enroll\",'Enrollment Form'!$AS290<>\"\"),\"Y\",\"N\")))","v":""},{"$f":"IF($B283=\"N\",\"\",IF($Q283=\"-\",\"-\",IF(AND($Q283=\"Y\",'Enrollment Form'!$AS290=\"No\"),\"-\",IF(AND($Q283=\"Y\",'Enrollment Form'!$AS290=\"Yes\",'Enrollment Form'!$AT290<>\"\"),\"Y\",\"N\"))))","v":""},{"$f":"IF($B283=\"N\",\"\",IF(OR('Enrollment Form'!$B290<>\"Subscriber\",'Enrollment Form'!$C290=\"ROC\"),\"-\",IF(AND('Enrollment Form'!$B290=\"Subscriber\",'Enrollment Form'!$C290=\"Enroll\",'Enrollment Form'!$CV290<>\"\"),\"Y\",\"N\")))","v":""},{"$f":"IF($B283=\"N\",\"\",IF($S283=\"-\",\"-\",IF(AND($S283=\"Y\",'Enrollment Form'!$CV290=\"No\"),\"-\",IF(AND($S283=\"Y\",'Enrollment Form'!$CV290=\"Yes\",'Enrollment Form'!$CW290<>\"\"),\"Y\",\"N\"))))","v":""},{"$f":"IF(OR('Enrollment Form'!$AY290=\"Yes\",'Enrollment Form'!$AY290=\"\"),\"-\",IF(OR(AND('Enrollment Form'!$AY290=\"No\",ISERROR(FIND(\"HMO\",VLOOKUP('Enrollment Form'!G290,'Enrollment Form'!H$11:J$1000,3,FALSE),1))=FALSE,COUNTA('Enrollment Form'!$AZ290:$BC290)=4),AND('Enrollment Form'!$AY290=\"No\",ISERROR(FIND(\"HMO\",VLOOKUP('Enrollment Form'!G290,'Enrollment Form'!H$11:J$1000,3,FALSE),1))=FALSE,COUNTA('Enrollment Form'!$BT290:$BW290)=4)),\"Y\",\"N\"))","v":"-"},{"$f":"IF($B283=\"N\",\"\",IF('Enrollment Form'!$B290=\"Subscriber\",\"-\",IF(COUNTA('Enrollment Form'!$BL290,'Enrollment Form'!$BN290)=2,\"Y\",\"N\")))","v":""},{"$f":"IF($B283=\"N\",\"\",IF(OR('Enrollment Form'!$AX290=\"\",'Enrollment Form'!$AX290=\"No\"),\"-\",IF(AND('Enrollment Form'!$AX290=\"Yes\",COUNTA('Enrollment Form'!$CR290)=1),\"Y\",\"N\")))","v":""},{"$f":"IF(OR('Enrollment Form'!$CR290=\"\",'Enrollment Form'!$CR290=\"No\"),\"-\",IF(COUNTA('Enrollment Form'!$CT290:$CU290)=2,\"Y\",\"N\"))","v":"-"},{"$f":"IF($B283=\"N\",\"\",IF(COUNTIF('Enrollment Form'!$DG290:$DP290,\"Other\")=COUNTA('Enrollment Form'!$DK290,'Enrollment Form'!$DH290,'Enrollment Form'!$DN290,'Enrollment Form'!$DQ290),\"Y\",\"N\"))","v":""},{"$f":"IF($B283=\"N\",\"\",IF(OR('Enrollment Form'!B290<>\"Subscriber\",'Enrollment Form'!C290=\"ROC\",COUNTIF('Enrollment Form'!AV290:AW290,\"Yes\")>=1),\"-\",IF(AND('Enrollment Form'!C290=\"Enroll\",COUNTIF('Enrollment Form'!AV290:AW290,\"No\")=2,'Enrollment Form'!AX290=\"\"),\"N\",\"Y\")))","v":""},{"$f":"IF(OR(B283=\"N\",'Enrollment Form'!B290<>\"Subscriber\",'Enrollment Form'!C290=\"ROC\",'Enrollment Form'!O290<>\"Multiple of Salary\"),\"-\",IF(COUNTA('Enrollment Form'!T290:U290)<2,\"N\",\"Y\"))","v":"-"},{"$f":"IF(B283=\"N\",\"\",IF(OR('Enrollment Form'!C290=\"ROC\",'Enrollment Form'!B290<>\"Subscriber\",'Enrollment Form'!O290=\"Waive\",'Enrollment Form'!O290=\"\"),\"-\",IF('Enrollment Form'!P290=\"\",\"N\",\"Y\")))","v":""},{"$f":"IF($B283=\"N\",\"\",IF(AND('Enrollment Form'!$C290=\"ROC\",'Enrollment Form'!$DR290<>\"\"),\"Y\",IF(AND('Enrollment Form'!$C290=\"ROC\",'Enrollment Form'!$DR290=\"\"),\"N\",IF(AND('Enrollment Form'!$C290=\"Enroll\",'Enrollment Form'!$B290=\"Subscriber\",'Enrollment Form'!$CX290=\"No\",'Enrollment Form'!$DR290=\"\"),\"N\",IF(AND('Enrollment Form'!$C290=\"Enroll\",'Enrollment Form'!$B290=\"Subscriber\",'Enrollment Form'!$CX290=\"Yes\"),\"-\",\"Y\")))))","v":""},{"$f":"IF($B283=\"N\",\"\",IF(AND('Enrollment Form'!$C290=\"ROC\",'Enrollment Form'!$DS290<>\"\"),\"Y\",IF(AND('Enrollment Form'!$C290=\"ROC\",'Enrollment Form'!$DS290=\"\"),\"N\",IF(AND('Enrollment Form'!$C290=\"Enroll\",'Enrollment Form'!$B290=\"Subscriber\",'Enrollment Form'!$CX290=\"No\",'Enrollment Form'!$DS290=\"\"),\"N\",IF(AND('Enrollment Form'!$C290=\"Enroll\",'Enrollment Form'!$B290=\"Subscriber\",'Enrollment Form'!$CX290=\"Yes\"),\"-\",\"Y\")))))","v":""},{"$f":"IF('Enrollment Form'!AH290=\"\",\"\",IF(ISERROR(SEARCH(\".\",'Enrollment Form'!AH290,SEARCH(\"@\",'Enrollment Form'!AH290))),\"N\",\"Y\"))","v":""},{"$f":"IF(OR($B283=\"N\",'Enrollment Form'!$G290=\"\"),\"\",IF('Enrollment Form'!$B290<>\"Subscriber\",\"-\",IF(COUNTIF('Enrollment Form'!$AV290:$AW290,\"Yes\")=2,\"N\",\"Y\")))","v":""},{"$f":"IF(OR('Enrollment Form'!$CJ290=\"\",'Enrollment Form'!$CJ290=\"No\"),\"-\",IF(AND('Enrollment Form'!$CJ290=\"Yes\",'Enrollment Form'!$CK290=\"\"),\"N\",\"Y\"))","v":"-"},{"$f":"IF(OR('Enrollment Form'!$CL290=\"\",'Enrollment Form'!$CL290=\"No\"),\"-\",IF(AND('Enrollment Form'!$CL290=\"Yes\",'Enrollment Form'!$CM290=\"\"),\"N\",\"Y\"))","v":"-"},{"$f":"IF(OR('Enrollment Form'!$CN290=\"\",'Enrollment Form'!$CN290=\"No\"),\"-\",IF(AND('Enrollment Form'!$CN290=\"Yes\",'Enrollment Form'!$CO290=\"\"),\"N\",\"Y\"))","v":"-"},{"$f":"IF(OR('Enrollment Form'!$CN290=\"\",'Enrollment Form'!$CN290=\"No\"),\"-\",IF(AND('Enrollment Form'!$CN290=\"Yes\",'Enrollment Form'!$CP290=\"\"),\"N\",\"Y\"))","v":"-"},{"$f":"IF('Enrollment Form'!B290<>\"Subscriber\",\"-\",IF(AND('Enrollment Form'!B290=\"Subscriber\",'Enrollment Form'!C290=\"Enroll\",'Enrollment Form'!AA290=\"\"),\"N\",\"Y\"))","v":"-"},{"$f":"IF(OR('Enrollment Form'!B290=\"Subscriber\",'Enrollment Form'!B290=\"\"),\"-\",IF('Enrollment Form'!BP290=\"\",\"N\",\"Y\"))","v":"-"},{"$f":"IF('Enrollment Form'!B290<>\"Subscriber\",\"-\",IF(AND('Enrollment Form'!B290=\"Subscriber\",'Enrollment Form'!G290=\"\"),\"N\",\"Y\"))","v":"-"},{"$f":"IF('Enrollment Form'!A290=\"\",\"\",IF('Enrollment Form'!B290=\"Subscriber\",\"-\",IF(AND('Enrollment Form'!B290<>\"Subscriber\",'Enrollment Form'!G290='Enrollment Form'!H290),\"N\",\"Y\")))","v":""},0]
[291,{"$f":"IF('Enrollment Form'!$A291<>\"\",\"Y\",\"N\")","v":"N"},{"$f":"IF(AND('Enrollment Form'!$B291=\"\",'Enrollment Form'!$C291<>\"\"),\"N\",IF($B284=\"N\",\"\",\"Y\"))","v":""},{"$f":"IF(OR($B284=\"N\",'Enrollment Form'!G291=\"\"),\"\",IF('Enrollment Form'!$B291<>\"Subscriber\",\"\",IF('Enrollment Form'!$G291='Enrollment Form'!$H291,\"Y\",\"N\")))","v":""},{"$f":"IF($B284=\"N\",\"\",IF(AND(COUNTIFS('Enrollment Form'!$H$11:$H$1000,'Enrollment Form'!$H291,'Enrollment Form'!$B$11:$B$1000,'Enrollment Form'!$B291)>1,'Enrollment Form'!$H291<>\"\"),\"N\",\"Y\"))","v":""},{"$f":"IF($B284=\"N\",\"\",IF(LEN('Enrollment Form'!$Y291)=0,\"\",IF(LEN('Enrollment Form'!$Y291)<>5,\"N\",\"Y\")))","v":""},{"$f":"IF($B284=\"N\",\"\",IF(LEN('Enrollment Form'!$AD291=0),\"\",IF(LEN('Enrollment Form'!$AD291)<>5,\"N\",\"Y\")))","v":""},{"$f":"IF($B284=\"N\",\"\",IF(LEN('Enrollment Form'!$BS291=0),\"\",IF(LEN('Enrollment Form'!$BS291)<>5,\"N\",\"Y\")))","v":""},{"$f":"IF($B284=\"N\",\"\",IF(LEN('Enrollment Form'!$AE291)=0,\"\",IF(LEN('Enrollment Form'!$AE291)<>10,\"N\",\"Y\")))","v":""},{"$f":"IF($B284=\"N\",\"\",IF(LEN('Enrollment Form'!$AF291)=0,\"\",IF(LEN('Enrollment Form'!$AF291)<>10,\"N\",\"Y\")))","v":""},{"$f":"IF('Enrollment Form'!$O291<>\"Graded\",\"-\",IF(AND('Enrollment Form'!$O291=\"Graded\",'Enrollment Form'!$AR291<>\"\"),\"Y\",\"N\"))","v":"-"},{"$f":"IF($B284=\"N\",\"\",IF(OR('Enrollment Form'!$B291<>\"Subscriber\",'Enrollment Form'!$C291=\"ROC\"),\"-\",IF(AND('Enrollment Form'!$B291=\"Subscriber\",'Enrollment Form'!$C291=\"Enroll\",'Enrollment Form'!$AJ291<>\"\"),\"Y\",\"N\")))","v":""},{"$f":"IF($B284=\"N\",\"\",IF(OR('Enrollment Form'!$B291<>\"Subscriber\",'Enrollment Form'!$C291=\"ROC\"),\"-\",IF(AND('Enrollment Form'!$B291=\"Subscriber\",'Enrollment Form'!$C291=\"Enroll\",'Enrollment Form'!$AK291<>\"\"),\"Y\",\"N\")))","v":""},{"$f":"IF($B284=\"N\",\"\",IF(OR('Enrollment Form'!$B291<>\"Subscriber\",'Enrollment Form'!$C291=\"ROC\"),\"-\",IF(AND('Enrollment Form'!$B291=\"Subscriber\",'Enrollment Form'!$C291=\"Enroll\",'Enrollment Form'!$AL291<>\"\"),\"Y\",\"N\")))","v":""},{"$f":"IF($B284=\"N\",\"\",IF(OR('Enrollment Form'!$B291<>\"Subscriber\",'Enrollment Form'!$C291=\"ROC\"),\"-\",IF(AND('Enrollment Form'!$B291=\"Subscriber\",'Enrollment Form'!$C291=\"Enroll\",'Enrollment Form'!$AP291<>\"\"),\"Y\",\"N\")))","v":""},{"$f":"IF($B284=\"N\",\"\",IF(OR('Enrollment Form'!$B291<>\"Subscriber\",'Enrollment Form'!$C291=\"ROC\"),\"-\",IF(AND('Enrollment Form'!$B291=\"Subscriber\",'Enrollment Form'!$C291=\"Enroll\",'Enrollment Form'!$AQ291<>\"\"),\"Y\",\"N\")))","v":""},{"$f":"IF($B284=\"N\",\"\",IF(OR('Enrollment Form'!$B291<>\"Subscriber\",'Enrollment Form'!$C291=\"ROC\"),\"-\",IF(AND('Enrollment Form'!$B291=\"Subscriber\",'Enrollment Form'!$C291=\"Enroll\",'Enrollment Form'!$AS291<>\"\"),\"Y\",\"N\")))","v":""},{"$f":"IF($B284=\"N\",\"\",IF($Q284=\"-\",\"-\",IF(AND($Q284=\"Y\",'Enrollment Form'!$AS291=\"No\"),\"-\",IF(AND($Q284=\"Y\",'Enrollment Form'!$AS291=\"Yes\",'Enrollment Form'!$AT291<>\"\"),\"Y\",\"N\"))))","v":""},{"$f":"IF($B284=\"N\",\"\",IF(OR('Enrollment Form'!$B291<>\"Subscriber\",'Enrollment Form'!$C291=\"ROC\"),\"-\",IF(AND('Enrollment Form'!$B291=\"Subscriber\",'Enrollment Form'!$C291=\"Enroll\",'Enrollment Form'!$CV291<>\"\"),\"Y\",\"N\")))","v":""},{"$f":"IF($B284=\"N\",\"\",IF($S284=\"-\",\"-\",IF(AND($S284=\"Y\",'Enrollment Form'!$CV291=\"No\"),\"-\",IF(AND($S284=\"Y\",'Enrollment Form'!$CV291=\"Yes\",'Enrollment Form'!$CW291<>\"\"),\"Y\",\"N\"))))","v":""},{"$f":"IF(OR('Enrollment Form'!$AY291=\"Yes\",'Enrollment Form'!$AY291=\"\"),\"-\",IF(OR(AND('Enrollment Form'!$AY291=\"No\",ISERROR(FIND(\"HMO\",VLOOKUP('Enrollment Form'!G291,'Enrollment Form'!H$11:J$1000,3,FALSE),1))=FALSE,COUNTA('Enrollment Form'!$AZ291:$BC291)=4),AND('Enrollment Form'!$AY291=\"No\",ISERROR(FIND(\"HMO\",VLOOKUP('Enrollment Form'!G291,'Enrollment Form'!H$11:J$1000,3,FALSE),1))=FALSE,COUNTA('Enrollment Form'!$BT291:$BW291)=4)),\"Y\",\"N\"))","v":"-"},{"$f":"IF($B284=\"N\",\"\",IF('Enrollment Form'!$B291=\"Subscriber\",\"-\",IF(COUNTA('Enrollment Form'!$BL291,'Enrollment Form'!$BN291)=2,\"Y\",\"N\")))","v":""},{"$f":"IF($B284=\"N\",\"\",IF(OR('Enrollment Form'!$AX291=\"\",'Enrollment Form'!$AX291=\"No\"),\"-\",IF(AND('Enrollment Form'!$AX291=\"Yes\",COUNTA('Enrollment Form'!$CR291)=1),\"Y\",\"N\")))","v":""},{"$f":"IF(OR('Enrollment Form'!$CR291=\"\",'Enrollment Form'!$CR291=\"No\"),\"-\",IF(COUNTA('Enrollment Form'!$CT291:$CU291)=2,\"Y\",\"N\"))","v":"-"},{"$f":"IF($B284=\"N\",\"\",IF(COUNTIF('Enrollment Form'!$DG291:$DP291,\"Other\")=COUNTA('Enrollment Form'!$DK291,'Enrollment Form'!$DH291,'Enrollment Form'!$DN291,'Enrollment Form'!$DQ291),\"Y\",\"N\"))","v":""},{"$f":"IF($B284=\"N\",\"\",IF(OR('Enrollment Form'!B291<>\"Subscriber\",'Enrollment Form'!C291=\"ROC\",COUNTIF('Enrollment Form'!AV291:AW291,\"Yes\")>=1),\"-\",IF(AND('Enrollment Form'!C291=\"Enroll\",COUNTIF('Enrollment Form'!AV291:AW291,\"No\")=2,'Enrollment Form'!AX291=\"\"),\"N\",\"Y\")))","v":""},{"$f":"IF(OR(B284=\"N\",'Enrollment Form'!B291<>\"Subscriber\",'Enrollment Form'!C291=\"ROC\",'Enrollment Form'!O291<>\"Multiple of Salary\"),\"-\",IF(COUNTA('Enrollment Form'!T291:U291)<2,\"N\",\"Y\"))","v":"-"},{"$f":"IF(B284=\"N\",\"\",IF(OR('Enrollment Form'!C291=\"ROC\",'Enrollment Form'!B291<>\"Subscriber\",'Enrollment Form'!O291=\"Waive\",'Enrollment Form'!O291=\"\"),\"-\",IF('Enrollment Form'!P291=\"\",\"N\",\"Y\")))","v":""},{"$f":"IF($B284=\"N\",\"\",IF(AND('Enrollment Form'!$C291=\"ROC\",'Enrollment Form'!$DR291<>\"\"),\"Y\",IF(AND('Enrollment Form'!$C291=\"ROC\",'Enrollment Form'!$DR291=\"\"),\"N\",IF(AND('Enrollment Form'!$C291=\"Enroll\",'Enrollment Form'!$B291=\"Subscriber\",'Enrollment Form'!$CX291=\"No\",'Enrollment Form'!$DR291=\"\"),\"N\",IF(AND('Enrollment Form'!$C291=\"Enroll\",'Enrollment Form'!$B291=\"Subscriber\",'Enrollment Form'!$CX291=\"Yes\"),\"-\",\"Y\")))))","v":""},{"$f":"IF($B284=\"N\",\"\",IF(AND('Enrollment Form'!$C291=\"ROC\",'Enrollment Form'!$DS291<>\"\"),\"Y\",IF(AND('Enrollment Form'!$C291=\"ROC\",'Enrollment Form'!$DS291=\"\"),\"N\",IF(AND('Enrollment Form'!$C291=\"Enroll\",'Enrollment Form'!$B291=\"Subscriber\",'Enrollment Form'!$CX291=\"No\",'Enrollment Form'!$DS291=\"\"),\"N\",IF(AND('Enrollment Form'!$C291=\"Enroll\",'Enrollment Form'!$B291=\"Subscriber\",'Enrollment Form'!$CX291=\"Yes\"),\"-\",\"Y\")))))","v":""},{"$f":"IF('Enrollment Form'!AH291=\"\",\"\",IF(ISERROR(SEARCH(\".\",'Enrollment Form'!AH291,SEARCH(\"@\",'Enrollment Form'!AH291))),\"N\",\"Y\"))","v":""},{"$f":"IF(OR($B284=\"N\",'Enrollment Form'!$G291=\"\"),\"\",IF('Enrollment Form'!$B291<>\"Subscriber\",\"-\",IF(COUNTIF('Enrollment Form'!$AV291:$AW291,\"Yes\")=2,\"N\",\"Y\")))","v":""},{"$f":"IF(OR('Enrollment Form'!$CJ291=\"\",'Enrollment Form'!$CJ291=\"No\"),\"-\",IF(AND('Enrollment Form'!$CJ291=\"Yes\",'Enrollment Form'!$CK291=\"\"),\"N\",\"Y\"))","v":"-"},{"$f":"IF(OR('Enrollment Form'!$CL291=\"\",'Enrollment Form'!$CL291=\"No\"),\"-\",IF(AND('Enrollment Form'!$CL291=\"Yes\",'Enrollment Form'!$CM291=\"\"),\"N\",\"Y\"))","v":"-"},{"$f":"IF(OR('Enrollment Form'!$CN291=\"\",'Enrollment Form'!$CN291=\"No\"),\"-\",IF(AND('Enrollment Form'!$CN291=\"Yes\",'Enrollment Form'!$CO291=\"\"),\"N\",\"Y\"))","v":"-"},{"$f":"IF(OR('Enrollment Form'!$CN291=\"\",'Enrollment Form'!$CN291=\"No\"),\"-\",IF(AND('Enrollment Form'!$CN291=\"Yes\",'Enrollment Form'!$CP291=\"\"),\"N\",\"Y\"))","v":"-"},{"$f":"IF('Enrollment Form'!B291<>\"Subscriber\",\"-\",IF(AND('Enrollment Form'!B291=\"Subscriber\",'Enrollment Form'!C291=\"Enroll\",'Enrollment Form'!AA291=\"\"),\"N\",\"Y\"))","v":"-"},{"$f":"IF(OR('Enrollment Form'!B291=\"Subscriber\",'Enrollment Form'!B291=\"\"),\"-\",IF('Enrollment Form'!BP291=\"\",\"N\",\"Y\"))","v":"-"},{"$f":"IF('Enrollment Form'!B291<>\"Subscriber\",\"-\",IF(AND('Enrollment Form'!B291=\"Subscriber\",'Enrollment Form'!G291=\"\"),\"N\",\"Y\"))","v":"-"},{"$f":"IF('Enrollment Form'!A291=\"\",\"\",IF('Enrollment Form'!B291=\"Subscriber\",\"-\",IF(AND('Enrollment Form'!B291<>\"Subscriber\",'Enrollment Form'!G291='Enrollment Form'!H291),\"N\",\"Y\")))","v":""},0]
[292,{"$f":"IF('Enrollment Form'!$A292<>\"\",\"Y\",\"N\")","v":"N"},{"$f":"IF(AND('Enrollment Form'!$B292=\"\",'Enrollment Form'!$C292<>\"\"),\"N\",IF($B285=\"N\",\"\",\"Y\"))","v":""},{"$f":"IF(OR($B285=\"N\",'Enrollment Form'!G292=\"\"),\"\",IF('Enrollment Form'!$B292<>\"Subscriber\",\"\",IF('Enrollment Form'!$G292='Enrollment Form'!$H292,\"Y\",\"N\")))","v":""},{"$f":"IF($B285=\"N\",\"\",IF(AND(COUNTIFS('Enrollment Form'!$H$11:$H$1000,'Enrollment Form'!$H292,'Enrollment Form'!$B$11:$B$1000,'Enrollment Form'!$B292)>1,'Enrollment Form'!$H292<>\"\"),\"N\",\"Y\"))","v":""},{"$f":"IF($B285=\"N\",\"\",IF(LEN('Enrollment Form'!$Y292)=0,\"\",IF(LEN('Enrollment Form'!$Y292)<>5,\"N\",\"Y\")))","v":""},{"$f":"IF($B285=\"N\",\"\",IF(LEN('Enrollment Form'!$AD292=0),\"\",IF(LEN('Enrollment Form'!$AD292)<>5,\"N\",\"Y\")))","v":""},{"$f":"IF($B285=\"N\",\"\",IF(LEN('Enrollment Form'!$BS292=0),\"\",IF(LEN('Enrollment Form'!$BS292)<>5,\"N\",\"Y\")))","v":""},{"$f":"IF($B285=\"N\",\"\",IF(LEN('Enrollment Form'!$AE292)=0,\"\",IF(LEN('Enrollment Form'!$AE292)<>10,\"N\",\"Y\")))","v":""},{"$f":"IF($B285=\"N\",\"\",IF(LEN('Enrollment Form'!$AF292)=0,\"\",IF(LEN('Enrollment Form'!$AF292)<>10,\"N\",\"Y\")))","v":""},{"$f":"IF('Enrollment Form'!$O292<>\"Graded\",\"-\",IF(AND('Enrollment Form'!$O292=\"Graded\",'Enrollment Form'!$AR292<>\"\"),\"Y\",\"N\"))","v":"-"},{"$f":"IF($B285=\"N\",\"\",IF(OR('Enrollment Form'!$B292<>\"Subscriber\",'Enrollment Form'!$C292=\"ROC\"),\"-\",IF(AND('Enrollment Form'!$B292=\"Subscriber\",'Enrollment Form'!$C292=\"Enroll\",'Enrollment Form'!$AJ292<>\"\"),\"Y\",\"N\")))","v":""},{"$f":"IF($B285=\"N\",\"\",IF(OR('Enrollment Form'!$B292<>\"Subscriber\",'Enrollment Form'!$C292=\"ROC\"),\"-\",IF(AND('Enrollment Form'!$B292=\"Subscriber\",'Enrollment Form'!$C292=\"Enroll\",'Enrollment Form'!$AK292<>\"\"),\"Y\",\"N\")))","v":""},{"$f":"IF($B285=\"N\",\"\",IF(OR('Enrollment Form'!$B292<>\"Subscriber\",'Enrollment Form'!$C292=\"ROC\"),\"-\",IF(AND('Enrollment Form'!$B292=\"Subscriber\",'Enrollment Form'!$C292=\"Enroll\",'Enrollment Form'!$AL292<>\"\"),\"Y\",\"N\")))","v":""},{"$f":"IF($B285=\"N\",\"\",IF(OR('Enrollment Form'!$B292<>\"Subscriber\",'Enrollment Form'!$C292=\"ROC\"),\"-\",IF(AND('Enrollment Form'!$B292=\"Subscriber\",'Enrollment Form'!$C292=\"Enroll\",'Enrollment Form'!$AP292<>\"\"),\"Y\",\"N\")))","v":""},{"$f":"IF($B285=\"N\",\"\",IF(OR('Enrollment Form'!$B292<>\"Subscriber\",'Enrollment Form'!$C292=\"ROC\"),\"-\",IF(AND('Enrollment Form'!$B292=\"Subscriber\",'Enrollment Form'!$C292=\"Enroll\",'Enrollment Form'!$AQ292<>\"\"),\"Y\",\"N\")))","v":""},{"$f":"IF($B285=\"N\",\"\",IF(OR('Enrollment Form'!$B292<>\"Subscriber\",'Enrollment Form'!$C292=\"ROC\"),\"-\",IF(AND('Enrollment Form'!$B292=\"Subscriber\",'Enrollment Form'!$C292=\"Enroll\",'Enrollment Form'!$AS292<>\"\"),\"Y\",\"N\")))","v":""},{"$f":"IF($B285=\"N\",\"\",IF($Q285=\"-\",\"-\",IF(AND($Q285=\"Y\",'Enrollment Form'!$AS292=\"No\"),\"-\",IF(AND($Q285=\"Y\",'Enrollment Form'!$AS292=\"Yes\",'Enrollment Form'!$AT292<>\"\"),\"Y\",\"N\"))))","v":""},{"$f":"IF($B285=\"N\",\"\",IF(OR('Enrollment Form'!$B292<>\"Subscriber\",'Enrollment Form'!$C292=\"ROC\"),\"-\",IF(AND('Enrollment Form'!$B292=\"Subscriber\",'Enrollment Form'!$C292=\"Enroll\",'Enrollment Form'!$CV292<>\"\"),\"Y\",\"N\")))","v":""},{"$f":"IF($B285=\"N\",\"\",IF($S285=\"-\",\"-\",IF(AND($S285=\"Y\",'Enrollment Form'!$CV292=\"No\"),\"-\",IF(AND($S285=\"Y\",'Enrollment Form'!$CV292=\"Yes\",'Enrollment Form'!$CW292<>\"\"),\"Y\",\"N\"))))","v":""},{"$f":"IF(OR('Enrollment Form'!$AY292=\"Yes\",'Enrollment Form'!$AY292=\"\"),\"-\",IF(OR(AND('Enrollment Form'!$AY292=\"No\",ISERROR(FIND(\"HMO\",VLOOKUP('Enrollment Form'!G292,'Enrollment Form'!H$11:J$1000,3,FALSE),1))=FALSE,COUNTA('Enrollment Form'!$AZ292:$BC292)=4),AND('Enrollment Form'!$AY292=\"No\",ISERROR(FIND(\"HMO\",VLOOKUP('Enrollment Form'!G292,'Enrollment Form'!H$11:J$1000,3,FALSE),1))=FALSE,COUNTA('Enrollment Form'!$BT292:$BW292)=4)),\"Y\",\"N\"))","v":"-"},{"$f":"IF($B285=\"N\",\"\",IF('Enrollment Form'!$B292=\"Subscriber\",\"-\",IF(COUNTA('Enrollment Form'!$BL292,'Enrollment Form'!$BN292)=2,\"Y\",\"N\")))","v":""},{"$f":"IF($B285=\"N\",\"\",IF(OR('Enrollment Form'!$AX292=\"\",'Enrollment Form'!$AX292=\"No\"),\"-\",IF(AND('Enrollment Form'!$AX292=\"Yes\",COUNTA('Enrollment Form'!$CR292)=1),\"Y\",\"N\")))","v":""},{"$f":"IF(OR('Enrollment Form'!$CR292=\"\",'Enrollment Form'!$CR292=\"No\"),\"-\",IF(COUNTA('Enrollment Form'!$CT292:$CU292)=2,\"Y\",\"N\"))","v":"-"},{"$f":"IF($B285=\"N\",\"\",IF(COUNTIF('Enrollment Form'!$DG292:$DP292,\"Other\")=COUNTA('Enrollment Form'!$DK292,'Enrollment Form'!$DH292,'Enrollment Form'!$DN292,'Enrollment Form'!$DQ292),\"Y\",\"N\"))","v":""},{"$f":"IF($B285=\"N\",\"\",IF(OR('Enrollment Form'!B292<>\"Subscriber\",'Enrollment Form'!C292=\"ROC\",COUNTIF('Enrollment Form'!AV292:AW292,\"Yes\")>=1),\"-\",IF(AND('Enrollment Form'!C292=\"Enroll\",COUNTIF('Enrollment Form'!AV292:AW292,\"No\")=2,'Enrollment Form'!AX292=\"\"),\"N\",\"Y\")))","v":""},{"$f":"IF(OR(B285=\"N\",'Enrollment Form'!B292<>\"Subscriber\",'Enrollment Form'!C292=\"ROC\",'Enrollment Form'!O292<>\"Multiple of Salary\"),\"-\",IF(COUNTA('Enrollment Form'!T292:U292)<2,\"N\",\"Y\"))","v":"-"},{"$f":"IF(B285=\"N\",\"\",IF(OR('Enrollment Form'!C292=\"ROC\",'Enrollment Form'!B292<>\"Subscriber\",'Enrollment Form'!O292=\"Waive\",'Enrollment Form'!O292=\"\"),\"-\",IF('Enrollment Form'!P292=\"\",\"N\",\"Y\")))","v":""},{"$f":"IF($B285=\"N\",\"\",IF(AND('Enrollment Form'!$C292=\"ROC\",'Enrollment Form'!$DR292<>\"\"),\"Y\",IF(AND('Enrollment Form'!$C292=\"ROC\",'Enrollment Form'!$DR292=\"\"),\"N\",IF(AND('Enrollment Form'!$C292=\"Enroll\",'Enrollment Form'!$B292=\"Subscriber\",'Enrollment Form'!$CX292=\"No\",'Enrollment Form'!$DR292=\"\"),\"N\",IF(AND('Enrollment Form'!$C292=\"Enroll\",'Enrollment Form'!$B292=\"Subscriber\",'Enrollment Form'!$CX292=\"Yes\"),\"-\",\"Y\")))))","v":""},{"$f":"IF($B285=\"N\",\"\",IF(AND('Enrollment Form'!$C292=\"ROC\",'Enrollment Form'!$DS292<>\"\"),\"Y\",IF(AND('Enrollment Form'!$C292=\"ROC\",'Enrollment Form'!$DS292=\"\"),\"N\",IF(AND('Enrollment Form'!$C292=\"Enroll\",'Enrollment Form'!$B292=\"Subscriber\",'Enrollment Form'!$CX292=\"No\",'Enrollment Form'!$DS292=\"\"),\"N\",IF(AND('Enrollment Form'!$C292=\"Enroll\",'Enrollment Form'!$B292=\"Subscriber\",'Enrollment Form'!$CX292=\"Yes\"),\"-\",\"Y\")))))","v":""},{"$f":"IF('Enrollment Form'!AH292=\"\",\"\",IF(ISERROR(SEARCH(\".\",'Enrollment Form'!AH292,SEARCH(\"@\",'Enrollment Form'!AH292))),\"N\",\"Y\"))","v":""},{"$f":"IF(OR($B285=\"N\",'Enrollment Form'!$G292=\"\"),\"\",IF('Enrollment Form'!$B292<>\"Subscriber\",\"-\",IF(COUNTIF('Enrollment Form'!$AV292:$AW292,\"Yes\")=2,\"N\",\"Y\")))","v":""},{"$f":"IF(OR('Enrollment Form'!$CJ292=\"\",'Enrollment Form'!$CJ292=\"No\"),\"-\",IF(AND('Enrollment Form'!$CJ292=\"Yes\",'Enrollment Form'!$CK292=\"\"),\"N\",\"Y\"))","v":"-"},{"$f":"IF(OR('Enrollment Form'!$CL292=\"\",'Enrollment Form'!$CL292=\"No\"),\"-\",IF(AND('Enrollment Form'!$CL292=\"Yes\",'Enrollment Form'!$CM292=\"\"),\"N\",\"Y\"))","v":"-"},{"$f":"IF(OR('Enrollment Form'!$CN292=\"\",'Enrollment Form'!$CN292=\"No\"),\"-\",IF(AND('Enrollment Form'!$CN292=\"Yes\",'Enrollment Form'!$CO292=\"\"),\"N\",\"Y\"))","v":"-"},{"$f":"IF(OR('Enrollment Form'!$CN292=\"\",'Enrollment Form'!$CN292=\"No\"),\"-\",IF(AND('Enrollment Form'!$CN292=\"Yes\",'Enrollment Form'!$CP292=\"\"),\"N\",\"Y\"))","v":"-"},{"$f":"IF('Enrollment Form'!B292<>\"Subscriber\",\"-\",IF(AND('Enrollment Form'!B292=\"Subscriber\",'Enrollment Form'!C292=\"Enroll\",'Enrollment Form'!AA292=\"\"),\"N\",\"Y\"))","v":"-"},{"$f":"IF(OR('Enrollment Form'!B292=\"Subscriber\",'Enrollment Form'!B292=\"\"),\"-\",IF('Enrollment Form'!BP292=\"\",\"N\",\"Y\"))","v":"-"},{"$f":"IF('Enrollment Form'!B292<>\"Subscriber\",\"-\",IF(AND('Enrollment Form'!B292=\"Subscriber\",'Enrollment Form'!G292=\"\"),\"N\",\"Y\"))","v":"-"},{"$f":"IF('Enrollment Form'!A292=\"\",\"\",IF('Enrollment Form'!B292=\"Subscriber\",\"-\",IF(AND('Enrollment Form'!B292<>\"Subscriber\",'Enrollment Form'!G292='Enrollment Form'!H292),\"N\",\"Y\")))","v":""},0]
[293,{"$f":"IF('Enrollment Form'!$A293<>\"\",\"Y\",\"N\")","v":"N"},{"$f":"IF(AND('Enrollment Form'!$B293=\"\",'Enrollment Form'!$C293<>\"\"),\"N\",IF($B286=\"N\",\"\",\"Y\"))","v":""},{"$f":"IF(OR($B286=\"N\",'Enrollment Form'!G293=\"\"),\"\",IF('Enrollment Form'!$B293<>\"Subscriber\",\"\",IF('Enrollment Form'!$G293='Enrollment Form'!$H293,\"Y\",\"N\")))","v":""},{"$f":"IF($B286=\"N\",\"\",IF(AND(COUNTIFS('Enrollment Form'!$H$11:$H$1000,'Enrollment Form'!$H293,'Enrollment Form'!$B$11:$B$1000,'Enrollment Form'!$B293)>1,'Enrollment Form'!$H293<>\"\"),\"N\",\"Y\"))","v":""},{"$f":"IF($B286=\"N\",\"\",IF(LEN('Enrollment Form'!$Y293)=0,\"\",IF(LEN('Enrollment Form'!$Y293)<>5,\"N\",\"Y\")))","v":""},{"$f":"IF($B286=\"N\",\"\",IF(LEN('Enrollment Form'!$AD293=0),\"\",IF(LEN('Enrollment Form'!$AD293)<>5,\"N\",\"Y\")))","v":""},{"$f":"IF($B286=\"N\",\"\",IF(LEN('Enrollment Form'!$BS293=0),\"\",IF(LEN('Enrollment Form'!$BS293)<>5,\"N\",\"Y\")))","v":""},{"$f":"IF($B286=\"N\",\"\",IF(LEN('Enrollment Form'!$AE293)=0,\"\",IF(LEN('Enrollment Form'!$AE293)<>10,\"N\",\"Y\")))","v":""},{"$f":"IF($B286=\"N\",\"\",IF(LEN('Enrollment Form'!$AF293)=0,\"\",IF(LEN('Enrollment Form'!$AF293)<>10,\"N\",\"Y\")))","v":""},{"$f":"IF('Enrollment Form'!$O293<>\"Graded\",\"-\",IF(AND('Enrollment Form'!$O293=\"Graded\",'Enrollment Form'!$AR293<>\"\"),\"Y\",\"N\"))","v":"-"},{"$f":"IF($B286=\"N\",\"\",IF(OR('Enrollment Form'!$B293<>\"Subscriber\",'Enrollment Form'!$C293=\"ROC\"),\"-\",IF(AND('Enrollment Form'!$B293=\"Subscriber\",'Enrollment Form'!$C293=\"Enroll\",'Enrollment Form'!$AJ293<>\"\"),\"Y\",\"N\")))","v":""},{"$f":"IF($B286=\"N\",\"\",IF(OR('Enrollment Form'!$B293<>\"Subscriber\",'Enrollment Form'!$C293=\"ROC\"),\"-\",IF(AND('Enrollment Form'!$B293=\"Subscriber\",'Enrollment Form'!$C293=\"Enroll\",'Enrollment Form'!$AK293<>\"\"),\"Y\",\"N\")))","v":""},{"$f":"IF($B286=\"N\",\"\",IF(OR('Enrollment Form'!$B293<>\"Subscriber\",'Enrollment Form'!$C293=\"ROC\"),\"-\",IF(AND('Enrollment Form'!$B293=\"Subscriber\",'Enrollment Form'!$C293=\"Enroll\",'Enrollment Form'!$AL293<>\"\"),\"Y\",\"N\")))","v":""},{"$f":"IF($B286=\"N\",\"\",IF(OR('Enrollment Form'!$B293<>\"Subscriber\",'Enrollment Form'!$C293=\"ROC\"),\"-\",IF(AND('Enrollment Form'!$B293=\"Subscriber\",'Enrollment Form'!$C293=\"Enroll\",'Enrollment Form'!$AP293<>\"\"),\"Y\",\"N\")))","v":""},{"$f":"IF($B286=\"N\",\"\",IF(OR('Enrollment Form'!$B293<>\"Subscriber\",'Enrollment Form'!$C293=\"ROC\"),\"-\",IF(AND('Enrollment Form'!$B293=\"Subscriber\",'Enrollment Form'!$C293=\"Enroll\",'Enrollment Form'!$AQ293<>\"\"),\"Y\",\"N\")))","v":""},{"$f":"IF($B286=\"N\",\"\",IF(OR('Enrollment Form'!$B293<>\"Subscriber\",'Enrollment Form'!$C293=\"ROC\"),\"-\",IF(AND('Enrollment Form'!$B293=\"Subscriber\",'Enrollment Form'!$C293=\"Enroll\",'Enrollment Form'!$AS293<>\"\"),\"Y\",\"N\")))","v":""},{"$f":"IF($B286=\"N\",\"\",IF($Q286=\"-\",\"-\",IF(AND($Q286=\"Y\",'Enrollment Form'!$AS293=\"No\"),\"-\",IF(AND($Q286=\"Y\",'Enrollment Form'!$AS293=\"Yes\",'Enrollment Form'!$AT293<>\"\"),\"Y\",\"N\"))))","v":""},{"$f":"IF($B286=\"N\",\"\",IF(OR('Enrollment Form'!$B293<>\"Subscriber\",'Enrollment Form'!$C293=\"ROC\"),\"-\",IF(AND('Enrollment Form'!$B293=\"Subscriber\",'Enrollment Form'!$C293=\"Enroll\",'Enrollment Form'!$CV293<>\"\"),\"Y\",\"N\")))","v":""},{"$f":"IF($B286=\"N\",\"\",IF($S286=\"-\",\"-\",IF(AND($S286=\"Y\",'Enrollment Form'!$CV293=\"No\"),\"-\",IF(AND($S286=\"Y\",'Enrollment Form'!$CV293=\"Yes\",'Enrollment Form'!$CW293<>\"\"),\"Y\",\"N\"))))","v":""},{"$f":"IF(OR('Enrollment Form'!$AY293=\"Yes\",'Enrollment Form'!$AY293=\"\"),\"-\",IF(OR(AND('Enrollment Form'!$AY293=\"No\",ISERROR(FIND(\"HMO\",VLOOKUP('Enrollment Form'!G293,'Enrollment Form'!H$11:J$1000,3,FALSE),1))=FALSE,COUNTA('Enrollment Form'!$AZ293:$BC293)=4),AND('Enrollment Form'!$AY293=\"No\",ISERROR(FIND(\"HMO\",VLOOKUP('Enrollment Form'!G293,'Enrollment Form'!H$11:J$1000,3,FALSE),1))=FALSE,COUNTA('Enrollment Form'!$BT293:$BW293)=4)),\"Y\",\"N\"))","v":"-"},{"$f":"IF($B286=\"N\",\"\",IF('Enrollment Form'!$B293=\"Subscriber\",\"-\",IF(COUNTA('Enrollment Form'!$BL293,'Enrollment Form'!$BN293)=2,\"Y\",\"N\")))","v":""},{"$f":"IF($B286=\"N\",\"\",IF(OR('Enrollment Form'!$AX293=\"\",'Enrollment Form'!$AX293=\"No\"),\"-\",IF(AND('Enrollment Form'!$AX293=\"Yes\",COUNTA('Enrollment Form'!$CR293)=1),\"Y\",\"N\")))","v":""},{"$f":"IF(OR('Enrollment Form'!$CR293=\"\",'Enrollment Form'!$CR293=\"No\"),\"-\",IF(COUNTA('Enrollment Form'!$CT293:$CU293)=2,\"Y\",\"N\"))","v":"-"},{"$f":"IF($B286=\"N\",\"\",IF(COUNTIF('Enrollment Form'!$DG293:$DP293,\"Other\")=COUNTA('Enrollment Form'!$DK293,'Enrollment Form'!$DH293,'Enrollment Form'!$DN293,'Enrollment Form'!$DQ293),\"Y\",\"N\"))","v":""},{"$f":"IF($B286=\"N\",\"\",IF(OR('Enrollment Form'!B293<>\"Subscriber\",'Enrollment Form'!C293=\"ROC\",COUNTIF('Enrollment Form'!AV293:AW293,\"Yes\")>=1),\"-\",IF(AND('Enrollment Form'!C293=\"Enroll\",COUNTIF('Enrollment Form'!AV293:AW293,\"No\")=2,'Enrollment Form'!AX293=\"\"),\"N\",\"Y\")))","v":""},{"$f":"IF(OR(B286=\"N\",'Enrollment Form'!B293<>\"Subscriber\",'Enrollment Form'!C293=\"ROC\",'Enrollment Form'!O293<>\"Multiple of Salary\"),\"-\",IF(COUNTA('Enrollment Form'!T293:U293)<2,\"N\",\"Y\"))","v":"-"},{"$f":"IF(B286=\"N\",\"\",IF(OR('Enrollment Form'!C293=\"ROC\",'Enrollment Form'!B293<>\"Subscriber\",'Enrollment Form'!O293=\"Waive\",'Enrollment Form'!O293=\"\"),\"-\",IF('Enrollment Form'!P293=\"\",\"N\",\"Y\")))","v":""},{"$f":"IF($B286=\"N\",\"\",IF(AND('Enrollment Form'!$C293=\"ROC\",'Enrollment Form'!$DR293<>\"\"),\"Y\",IF(AND('Enrollment Form'!$C293=\"ROC\",'Enrollment Form'!$DR293=\"\"),\"N\",IF(AND('Enrollment Form'!$C293=\"Enroll\",'Enrollment Form'!$B293=\"Subscriber\",'Enrollment Form'!$CX293=\"No\",'Enrollment Form'!$DR293=\"\"),\"N\",IF(AND('Enrollment Form'!$C293=\"Enroll\",'Enrollment Form'!$B293=\"Subscriber\",'Enrollment Form'!$CX293=\"Yes\"),\"-\",\"Y\")))))","v":""},{"$f":"IF($B286=\"N\",\"\",IF(AND('Enrollment Form'!$C293=\"ROC\",'Enrollment Form'!$DS293<>\"\"),\"Y\",IF(AND('Enrollment Form'!$C293=\"ROC\",'Enrollment Form'!$DS293=\"\"),\"N\",IF(AND('Enrollment Form'!$C293=\"Enroll\",'Enrollment Form'!$B293=\"Subscriber\",'Enrollment Form'!$CX293=\"No\",'Enrollment Form'!$DS293=\"\"),\"N\",IF(AND('Enrollment Form'!$C293=\"Enroll\",'Enrollment Form'!$B293=\"Subscriber\",'Enrollment Form'!$CX293=\"Yes\"),\"-\",\"Y\")))))","v":""},{"$f":"IF('Enrollment Form'!AH293=\"\",\"\",IF(ISERROR(SEARCH(\".\",'Enrollment Form'!AH293,SEARCH(\"@\",'Enrollment Form'!AH293))),\"N\",\"Y\"))","v":""},{"$f":"IF(OR($B286=\"N\",'Enrollment Form'!$G293=\"\"),\"\",IF('Enrollment Form'!$B293<>\"Subscriber\",\"-\",IF(COUNTIF('Enrollment Form'!$AV293:$AW293,\"Yes\")=2,\"N\",\"Y\")))","v":""},{"$f":"IF(OR('Enrollment Form'!$CJ293=\"\",'Enrollment Form'!$CJ293=\"No\"),\"-\",IF(AND('Enrollment Form'!$CJ293=\"Yes\",'Enrollment Form'!$CK293=\"\"),\"N\",\"Y\"))","v":"-"},{"$f":"IF(OR('Enrollment Form'!$CL293=\"\",'Enrollment Form'!$CL293=\"No\"),\"-\",IF(AND('Enrollment Form'!$CL293=\"Yes\",'Enrollment Form'!$CM293=\"\"),\"N\",\"Y\"))","v":"-"},{"$f":"IF(OR('Enrollment Form'!$CN293=\"\",'Enrollment Form'!$CN293=\"No\"),\"-\",IF(AND('Enrollment Form'!$CN293=\"Yes\",'Enrollment Form'!$CO293=\"\"),\"N\",\"Y\"))","v":"-"},{"$f":"IF(OR('Enrollment Form'!$CN293=\"\",'Enrollment Form'!$CN293=\"No\"),\"-\",IF(AND('Enrollment Form'!$CN293=\"Yes\",'Enrollment Form'!$CP293=\"\"),\"N\",\"Y\"))","v":"-"},{"$f":"IF('Enrollment Form'!B293<>\"Subscriber\",\"-\",IF(AND('Enrollment Form'!B293=\"Subscriber\",'Enrollment Form'!C293=\"Enroll\",'Enrollment Form'!AA293=\"\"),\"N\",\"Y\"))","v":"-"},{"$f":"IF(OR('Enrollment Form'!B293=\"Subscriber\",'Enrollment Form'!B293=\"\"),\"-\",IF('Enrollment Form'!BP293=\"\",\"N\",\"Y\"))","v":"-"},{"$f":"IF('Enrollment Form'!B293<>\"Subscriber\",\"-\",IF(AND('Enrollment Form'!B293=\"Subscriber\",'Enrollment Form'!G293=\"\"),\"N\",\"Y\"))","v":"-"},{"$f":"IF('Enrollment Form'!A293=\"\",\"\",IF('Enrollment Form'!B293=\"Subscriber\",\"-\",IF(AND('Enrollment Form'!B293<>\"Subscriber\",'Enrollment Form'!G293='Enrollment Form'!H293),\"N\",\"Y\")))","v":""},0]
[294,{"$f":"IF('Enrollment Form'!$A294<>\"\",\"Y\",\"N\")","v":"N"},{"$f":"IF(AND('Enrollment Form'!$B294=\"\",'Enrollment Form'!$C294<>\"\"),\"N\",IF($B287=\"N\",\"\",\"Y\"))","v":""},{"$f":"IF(OR($B287=\"N\",'Enrollment Form'!G294=\"\"),\"\",IF('Enrollment Form'!$B294<>\"Subscriber\",\"\",IF('Enrollment Form'!$G294='Enrollment Form'!$H294,\"Y\",\"N\")))","v":""},{"$f":"IF($B287=\"N\",\"\",IF(AND(COUNTIFS('Enrollment Form'!$H$11:$H$1000,'Enrollment Form'!$H294,'Enrollment Form'!$B$11:$B$1000,'Enrollment Form'!$B294)>1,'Enrollment Form'!$H294<>\"\"),\"N\",\"Y\"))","v":""},{"$f":"IF($B287=\"N\",\"\",IF(LEN('Enrollment Form'!$Y294)=0,\"\",IF(LEN('Enrollment Form'!$Y294)<>5,\"N\",\"Y\")))","v":""},{"$f":"IF($B287=\"N\",\"\",IF(LEN('Enrollment Form'!$AD294=0),\"\",IF(LEN('Enrollment Form'!$AD294)<>5,\"N\",\"Y\")))","v":""},{"$f":"IF($B287=\"N\",\"\",IF(LEN('Enrollment Form'!$BS294=0),\"\",IF(LEN('Enrollment Form'!$BS294)<>5,\"N\",\"Y\")))","v":""},{"$f":"IF($B287=\"N\",\"\",IF(LEN('Enrollment Form'!$AE294)=0,\"\",IF(LEN('Enrollment Form'!$AE294)<>10,\"N\",\"Y\")))","v":""},{"$f":"IF($B287=\"N\",\"\",IF(LEN('Enrollment Form'!$AF294)=0,\"\",IF(LEN('Enrollment Form'!$AF294)<>10,\"N\",\"Y\")))","v":""},{"$f":"IF('Enrollment Form'!$O294<>\"Graded\",\"-\",IF(AND('Enrollment Form'!$O294=\"Graded\",'Enrollment Form'!$AR294<>\"\"),\"Y\",\"N\"))","v":"-"},{"$f":"IF($B287=\"N\",\"\",IF(OR('Enrollment Form'!$B294<>\"Subscriber\",'Enrollment Form'!$C294=\"ROC\"),\"-\",IF(AND('Enrollment Form'!$B294=\"Subscriber\",'Enrollment Form'!$C294=\"Enroll\",'Enrollment Form'!$AJ294<>\"\"),\"Y\",\"N\")))","v":""},{"$f":"IF($B287=\"N\",\"\",IF(OR('Enrollment Form'!$B294<>\"Subscriber\",'Enrollment Form'!$C294=\"ROC\"),\"-\",IF(AND('Enrollment Form'!$B294=\"Subscriber\",'Enrollment Form'!$C294=\"Enroll\",'Enrollment Form'!$AK294<>\"\"),\"Y\",\"N\")))","v":""},{"$f":"IF($B287=\"N\",\"\",IF(OR('Enrollment Form'!$B294<>\"Subscriber\",'Enrollment Form'!$C294=\"ROC\"),\"-\",IF(AND('Enrollment Form'!$B294=\"Subscriber\",'Enrollment Form'!$C294=\"Enroll\",'Enrollment Form'!$AL294<>\"\"),\"Y\",\"N\")))","v":""},{"$f":"IF($B287=\"N\",\"\",IF(OR('Enrollment Form'!$B294<>\"Subscriber\",'Enrollment Form'!$C294=\"ROC\"),\"-\",IF(AND('Enrollment Form'!$B294=\"Subscriber\",'Enrollment Form'!$C294=\"Enroll\",'Enrollment Form'!$AP294<>\"\"),\"Y\",\"N\")))","v":""},{"$f":"IF($B287=\"N\",\"\",IF(OR('Enrollment Form'!$B294<>\"Subscriber\",'Enrollment Form'!$C294=\"ROC\"),\"-\",IF(AND('Enrollment Form'!$B294=\"Subscriber\",'Enrollment Form'!$C294=\"Enroll\",'Enrollment Form'!$AQ294<>\"\"),\"Y\",\"N\")))","v":""},{"$f":"IF($B287=\"N\",\"\",IF(OR('Enrollment Form'!$B294<>\"Subscriber\",'Enrollment Form'!$C294=\"ROC\"),\"-\",IF(AND('Enrollment Form'!$B294=\"Subscriber\",'Enrollment Form'!$C294=\"Enroll\",'Enrollment Form'!$AS294<>\"\"),\"Y\",\"N\")))","v":""},{"$f":"IF($B287=\"N\",\"\",IF($Q287=\"-\",\"-\",IF(AND($Q287=\"Y\",'Enrollment Form'!$AS294=\"No\"),\"-\",IF(AND($Q287=\"Y\",'Enrollment Form'!$AS294=\"Yes\",'Enrollment Form'!$AT294<>\"\"),\"Y\",\"N\"))))","v":""},{"$f":"IF($B287=\"N\",\"\",IF(OR('Enrollment Form'!$B294<>\"Subscriber\",'Enrollment Form'!$C294=\"ROC\"),\"-\",IF(AND('Enrollment Form'!$B294=\"Subscriber\",'Enrollment Form'!$C294=\"Enroll\",'Enrollment Form'!$CV294<>\"\"),\"Y\",\"N\")))","v":""},{"$f":"IF($B287=\"N\",\"\",IF($S287=\"-\",\"-\",IF(AND($S287=\"Y\",'Enrollment Form'!$CV294=\"No\"),\"-\",IF(AND($S287=\"Y\",'Enrollment Form'!$CV294=\"Yes\",'Enrollment Form'!$CW294<>\"\"),\"Y\",\"N\"))))","v":""},{"$f":"IF(OR('Enrollment Form'!$AY294=\"Yes\",'Enrollment Form'!$AY294=\"\"),\"-\",IF(OR(AND('Enrollment Form'!$AY294=\"No\",ISERROR(FIND(\"HMO\",VLOOKUP('Enrollment Form'!G294,'Enrollment Form'!H$11:J$1000,3,FALSE),1))=FALSE,COUNTA('Enrollment Form'!$AZ294:$BC294)=4),AND('Enrollment Form'!$AY294=\"No\",ISERROR(FIND(\"HMO\",VLOOKUP('Enrollment Form'!G294,'Enrollment Form'!H$11:J$1000,3,FALSE),1))=FALSE,COUNTA('Enrollment Form'!$BT294:$BW294)=4)),\"Y\",\"N\"))","v":"-"},{"$f":"IF($B287=\"N\",\"\",IF('Enrollment Form'!$B294=\"Subscriber\",\"-\",IF(COUNTA('Enrollment Form'!$BL294,'Enrollment Form'!$BN294)=2,\"Y\",\"N\")))","v":""},{"$f":"IF($B287=\"N\",\"\",IF(OR('Enrollment Form'!$AX294=\"\",'Enrollment Form'!$AX294=\"No\"),\"-\",IF(AND('Enrollment Form'!$AX294=\"Yes\",COUNTA('Enrollment Form'!$CR294)=1),\"Y\",\"N\")))","v":""},{"$f":"IF(OR('Enrollment Form'!$CR294=\"\",'Enrollment Form'!$CR294=\"No\"),\"-\",IF(COUNTA('Enrollment Form'!$CT294:$CU294)=2,\"Y\",\"N\"))","v":"-"},{"$f":"IF($B287=\"N\",\"\",IF(COUNTIF('Enrollment Form'!$DG294:$DP294,\"Other\")=COUNTA('Enrollment Form'!$DK294,'Enrollment Form'!$DH294,'Enrollment Form'!$DN294,'Enrollment Form'!$DQ294),\"Y\",\"N\"))","v":""},{"$f":"IF($B287=\"N\",\"\",IF(OR('Enrollment Form'!B294<>\"Subscriber\",'Enrollment Form'!C294=\"ROC\",COUNTIF('Enrollment Form'!AV294:AW294,\"Yes\")>=1),\"-\",IF(AND('Enrollment Form'!C294=\"Enroll\",COUNTIF('Enrollment Form'!AV294:AW294,\"No\")=2,'Enrollment Form'!AX294=\"\"),\"N\",\"Y\")))","v":""},{"$f":"IF(OR(B287=\"N\",'Enrollment Form'!B294<>\"Subscriber\",'Enrollment Form'!C294=\"ROC\",'Enrollment Form'!O294<>\"Multiple of Salary\"),\"-\",IF(COUNTA('Enrollment Form'!T294:U294)<2,\"N\",\"Y\"))","v":"-"},{"$f":"IF(B287=\"N\",\"\",IF(OR('Enrollment Form'!C294=\"ROC\",'Enrollment Form'!B294<>\"Subscriber\",'Enrollment Form'!O294=\"Waive\",'Enrollment Form'!O294=\"\"),\"-\",IF('Enrollment Form'!P294=\"\",\"N\",\"Y\")))","v":""},{"$f":"IF($B287=\"N\",\"\",IF(AND('Enrollment Form'!$C294=\"ROC\",'Enrollment Form'!$DR294<>\"\"),\"Y\",IF(AND('Enrollment Form'!$C294=\"ROC\",'Enrollment Form'!$DR294=\"\"),\"N\",IF(AND('Enrollment Form'!$C294=\"Enroll\",'Enrollment Form'!$B294=\"Subscriber\",'Enrollment Form'!$CX294=\"No\",'Enrollment Form'!$DR294=\"\"),\"N\",IF(AND('Enrollment Form'!$C294=\"Enroll\",'Enrollment Form'!$B294=\"Subscriber\",'Enrollment Form'!$CX294=\"Yes\"),\"-\",\"Y\")))))","v":""},{"$f":"IF($B287=\"N\",\"\",IF(AND('Enrollment Form'!$C294=\"ROC\",'Enrollment Form'!$DS294<>\"\"),\"Y\",IF(AND('Enrollment Form'!$C294=\"ROC\",'Enrollment Form'!$DS294=\"\"),\"N\",IF(AND('Enrollment Form'!$C294=\"Enroll\",'Enrollment Form'!$B294=\"Subscriber\",'Enrollment Form'!$CX294=\"No\",'Enrollment Form'!$DS294=\"\"),\"N\",IF(AND('Enrollment Form'!$C294=\"Enroll\",'Enrollment Form'!$B294=\"Subscriber\",'Enrollment Form'!$CX294=\"Yes\"),\"-\",\"Y\")))))","v":""},{"$f":"IF('Enrollment Form'!AH294=\"\",\"\",IF(ISERROR(SEARCH(\".\",'Enrollment Form'!AH294,SEARCH(\"@\",'Enrollment Form'!AH294))),\"N\",\"Y\"))","v":""},{"$f":"IF(OR($B287=\"N\",'Enrollment Form'!$G294=\"\"),\"\",IF('Enrollment Form'!$B294<>\"Subscriber\",\"-\",IF(COUNTIF('Enrollment Form'!$AV294:$AW294,\"Yes\")=2,\"N\",\"Y\")))","v":""},{"$f":"IF(OR('Enrollment Form'!$CJ294=\"\",'Enrollment Form'!$CJ294=\"No\"),\"-\",IF(AND('Enrollment Form'!$CJ294=\"Yes\",'Enrollment Form'!$CK294=\"\"),\"N\",\"Y\"))","v":"-"},{"$f":"IF(OR('Enrollment Form'!$CL294=\"\",'Enrollment Form'!$CL294=\"No\"),\"-\",IF(AND('Enrollment Form'!$CL294=\"Yes\",'Enrollment Form'!$CM294=\"\"),\"N\",\"Y\"))","v":"-"},{"$f":"IF(OR('Enrollment Form'!$CN294=\"\",'Enrollment Form'!$CN294=\"No\"),\"-\",IF(AND('Enrollment Form'!$CN294=\"Yes\",'Enrollment Form'!$CO294=\"\"),\"N\",\"Y\"))","v":"-"},{"$f":"IF(OR('Enrollment Form'!$CN294=\"\",'Enrollment Form'!$CN294=\"No\"),\"-\",IF(AND('Enrollment Form'!$CN294=\"Yes\",'Enrollment Form'!$CP294=\"\"),\"N\",\"Y\"))","v":"-"},{"$f":"IF('Enrollment Form'!B294<>\"Subscriber\",\"-\",IF(AND('Enrollment Form'!B294=\"Subscriber\",'Enrollment Form'!C294=\"Enroll\",'Enrollment Form'!AA294=\"\"),\"N\",\"Y\"))","v":"-"},{"$f":"IF(OR('Enrollment Form'!B294=\"Subscriber\",'Enrollment Form'!B294=\"\"),\"-\",IF('Enrollment Form'!BP294=\"\",\"N\",\"Y\"))","v":"-"},{"$f":"IF('Enrollment Form'!B294<>\"Subscriber\",\"-\",IF(AND('Enrollment Form'!B294=\"Subscriber\",'Enrollment Form'!G294=\"\"),\"N\",\"Y\"))","v":"-"},{"$f":"IF('Enrollment Form'!A294=\"\",\"\",IF('Enrollment Form'!B294=\"Subscriber\",\"-\",IF(AND('Enrollment Form'!B294<>\"Subscriber\",'Enrollment Form'!G294='Enrollment Form'!H294),\"N\",\"Y\")))","v":""},0]
[295,{"$f":"IF('Enrollment Form'!$A295<>\"\",\"Y\",\"N\")","v":"N"},{"$f":"IF(AND('Enrollment Form'!$B295=\"\",'Enrollment Form'!$C295<>\"\"),\"N\",IF($B288=\"N\",\"\",\"Y\"))","v":""},{"$f":"IF(OR($B288=\"N\",'Enrollment Form'!G295=\"\"),\"\",IF('Enrollment Form'!$B295<>\"Subscriber\",\"\",IF('Enrollment Form'!$G295='Enrollment Form'!$H295,\"Y\",\"N\")))","v":""},{"$f":"IF($B288=\"N\",\"\",IF(AND(COUNTIFS('Enrollment Form'!$H$11:$H$1000,'Enrollment Form'!$H295,'Enrollment Form'!$B$11:$B$1000,'Enrollment Form'!$B295)>1,'Enrollment Form'!$H295<>\"\"),\"N\",\"Y\"))","v":""},{"$f":"IF($B288=\"N\",\"\",IF(LEN('Enrollment Form'!$Y295)=0,\"\",IF(LEN('Enrollment Form'!$Y295)<>5,\"N\",\"Y\")))","v":""},{"$f":"IF($B288=\"N\",\"\",IF(LEN('Enrollment Form'!$AD295=0),\"\",IF(LEN('Enrollment Form'!$AD295)<>5,\"N\",\"Y\")))","v":""},{"$f":"IF($B288=\"N\",\"\",IF(LEN('Enrollment Form'!$BS295=0),\"\",IF(LEN('Enrollment Form'!$BS295)<>5,\"N\",\"Y\")))","v":""},{"$f":"IF($B288=\"N\",\"\",IF(LEN('Enrollment Form'!$AE295)=0,\"\",IF(LEN('Enrollment Form'!$AE295)<>10,\"N\",\"Y\")))","v":""},{"$f":"IF($B288=\"N\",\"\",IF(LEN('Enrollment Form'!$AF295)=0,\"\",IF(LEN('Enrollment Form'!$AF295)<>10,\"N\",\"Y\")))","v":""},{"$f":"IF('Enrollment Form'!$O295<>\"Graded\",\"-\",IF(AND('Enrollment Form'!$O295=\"Graded\",'Enrollment Form'!$AR295<>\"\"),\"Y\",\"N\"))","v":"-"},{"$f":"IF($B288=\"N\",\"\",IF(OR('Enrollment Form'!$B295<>\"Subscriber\",'Enrollment Form'!$C295=\"ROC\"),\"-\",IF(AND('Enrollment Form'!$B295=\"Subscriber\",'Enrollment Form'!$C295=\"Enroll\",'Enrollment Form'!$AJ295<>\"\"),\"Y\",\"N\")))","v":""},{"$f":"IF($B288=\"N\",\"\",IF(OR('Enrollment Form'!$B295<>\"Subscriber\",'Enrollment Form'!$C295=\"ROC\"),\"-\",IF(AND('Enrollment Form'!$B295=\"Subscriber\",'Enrollment Form'!$C295=\"Enroll\",'Enrollment Form'!$AK295<>\"\"),\"Y\",\"N\")))","v":""},{"$f":"IF($B288=\"N\",\"\",IF(OR('Enrollment Form'!$B295<>\"Subscriber\",'Enrollment Form'!$C295=\"ROC\"),\"-\",IF(AND('Enrollment Form'!$B295=\"Subscriber\",'Enrollment Form'!$C295=\"Enroll\",'Enrollment Form'!$AL295<>\"\"),\"Y\",\"N\")))","v":""},{"$f":"IF($B288=\"N\",\"\",IF(OR('Enrollment Form'!$B295<>\"Subscriber\",'Enrollment Form'!$C295=\"ROC\"),\"-\",IF(AND('Enrollment Form'!$B295=\"Subscriber\",'Enrollment Form'!$C295=\"Enroll\",'Enrollment Form'!$AP295<>\"\"),\"Y\",\"N\")))","v":""},{"$f":"IF($B288=\"N\",\"\",IF(OR('Enrollment Form'!$B295<>\"Subscriber\",'Enrollment Form'!$C295=\"ROC\"),\"-\",IF(AND('Enrollment Form'!$B295=\"Subscriber\",'Enrollment Form'!$C295=\"Enroll\",'Enrollment Form'!$AQ295<>\"\"),\"Y\",\"N\")))","v":""},{"$f":"IF($B288=\"N\",\"\",IF(OR('Enrollment Form'!$B295<>\"Subscriber\",'Enrollment Form'!$C295=\"ROC\"),\"-\",IF(AND('Enrollment Form'!$B295=\"Subscriber\",'Enrollment Form'!$C295=\"Enroll\",'Enrollment Form'!$AS295<>\"\"),\"Y\",\"N\")))","v":""},{"$f":"IF($B288=\"N\",\"\",IF($Q288=\"-\",\"-\",IF(AND($Q288=\"Y\",'Enrollment Form'!$AS295=\"No\"),\"-\",IF(AND($Q288=\"Y\",'Enrollment Form'!$AS295=\"Yes\",'Enrollment Form'!$AT295<>\"\"),\"Y\",\"N\"))))","v":""},{"$f":"IF($B288=\"N\",\"\",IF(OR('Enrollment Form'!$B295<>\"Subscriber\",'Enrollment Form'!$C295=\"ROC\"),\"-\",IF(AND('Enrollment Form'!$B295=\"Subscriber\",'Enrollment Form'!$C295=\"Enroll\",'Enrollment Form'!$CV295<>\"\"),\"Y\",\"N\")))","v":""},{"$f":"IF($B288=\"N\",\"\",IF($S288=\"-\",\"-\",IF(AND($S288=\"Y\",'Enrollment Form'!$CV295=\"No\"),\"-\",IF(AND($S288=\"Y\",'Enrollment Form'!$CV295=\"Yes\",'Enrollment Form'!$CW295<>\"\"),\"Y\",\"N\"))))","v":""},{"$f":"IF(OR('Enrollment Form'!$AY295=\"Yes\",'Enrollment Form'!$AY295=\"\"),\"-\",IF(OR(AND('Enrollment Form'!$AY295=\"No\",ISERROR(FIND(\"HMO\",VLOOKUP('Enrollment Form'!G295,'Enrollment Form'!H$11:J$1000,3,FALSE),1))=FALSE,COUNTA('Enrollment Form'!$AZ295:$BC295)=4),AND('Enrollment Form'!$AY295=\"No\",ISERROR(FIND(\"HMO\",VLOOKUP('Enrollment Form'!G295,'Enrollment Form'!H$11:J$1000,3,FALSE),1))=FALSE,COUNTA('Enrollment Form'!$BT295:$BW295)=4)),\"Y\",\"N\"))","v":"-"},{"$f":"IF($B288=\"N\",\"\",IF('Enrollment Form'!$B295=\"Subscriber\",\"-\",IF(COUNTA('Enrollment Form'!$BL295,'Enrollment Form'!$BN295)=2,\"Y\",\"N\")))","v":""},{"$f":"IF($B288=\"N\",\"\",IF(OR('Enrollment Form'!$AX295=\"\",'Enrollment Form'!$AX295=\"No\"),\"-\",IF(AND('Enrollment Form'!$AX295=\"Yes\",COUNTA('Enrollment Form'!$CR295)=1),\"Y\",\"N\")))","v":""},{"$f":"IF(OR('Enrollment Form'!$CR295=\"\",'Enrollment Form'!$CR295=\"No\"),\"-\",IF(COUNTA('Enrollment Form'!$CT295:$CU295)=2,\"Y\",\"N\"))","v":"-"},{"$f":"IF($B288=\"N\",\"\",IF(COUNTIF('Enrollment Form'!$DG295:$DP295,\"Other\")=COUNTA('Enrollment Form'!$DK295,'Enrollment Form'!$DH295,'Enrollment Form'!$DN295,'Enrollment Form'!$DQ295),\"Y\",\"N\"))","v":""},{"$f":"IF($B288=\"N\",\"\",IF(OR('Enrollment Form'!B295<>\"Subscriber\",'Enrollment Form'!C295=\"ROC\",COUNTIF('Enrollment Form'!AV295:AW295,\"Yes\")>=1),\"-\",IF(AND('Enrollment Form'!C295=\"Enroll\",COUNTIF('Enrollment Form'!AV295:AW295,\"No\")=2,'Enrollment Form'!AX295=\"\"),\"N\",\"Y\")))","v":""},{"$f":"IF(OR(B288=\"N\",'Enrollment Form'!B295<>\"Subscriber\",'Enrollment Form'!C295=\"ROC\",'Enrollment Form'!O295<>\"Multiple of Salary\"),\"-\",IF(COUNTA('Enrollment Form'!T295:U295)<2,\"N\",\"Y\"))","v":"-"},{"$f":"IF(B288=\"N\",\"\",IF(OR('Enrollment Form'!C295=\"ROC\",'Enrollment Form'!B295<>\"Subscriber\",'Enrollment Form'!O295=\"Waive\",'Enrollment Form'!O295=\"\"),\"-\",IF('Enrollment Form'!P295=\"\",\"N\",\"Y\")))","v":""},{"$f":"IF($B288=\"N\",\"\",IF(AND('Enrollment Form'!$C295=\"ROC\",'Enrollment Form'!$DR295<>\"\"),\"Y\",IF(AND('Enrollment Form'!$C295=\"ROC\",'Enrollment Form'!$DR295=\"\"),\"N\",IF(AND('Enrollment Form'!$C295=\"Enroll\",'Enrollment Form'!$B295=\"Subscriber\",'Enrollment Form'!$CX295=\"No\",'Enrollment Form'!$DR295=\"\"),\"N\",IF(AND('Enrollment Form'!$C295=\"Enroll\",'Enrollment Form'!$B295=\"Subscriber\",'Enrollment Form'!$CX295=\"Yes\"),\"-\",\"Y\")))))","v":""},{"$f":"IF($B288=\"N\",\"\",IF(AND('Enrollment Form'!$C295=\"ROC\",'Enrollment Form'!$DS295<>\"\"),\"Y\",IF(AND('Enrollment Form'!$C295=\"ROC\",'Enrollment Form'!$DS295=\"\"),\"N\",IF(AND('Enrollment Form'!$C295=\"Enroll\",'Enrollment Form'!$B295=\"Subscriber\",'Enrollment Form'!$CX295=\"No\",'Enrollment Form'!$DS295=\"\"),\"N\",IF(AND('Enrollment Form'!$C295=\"Enroll\",'Enrollment Form'!$B295=\"Subscriber\",'Enrollment Form'!$CX295=\"Yes\"),\"-\",\"Y\")))))","v":""},{"$f":"IF('Enrollment Form'!AH295=\"\",\"\",IF(ISERROR(SEARCH(\".\",'Enrollment Form'!AH295,SEARCH(\"@\",'Enrollment Form'!AH295))),\"N\",\"Y\"))","v":""},{"$f":"IF(OR($B288=\"N\",'Enrollment Form'!$G295=\"\"),\"\",IF('Enrollment Form'!$B295<>\"Subscriber\",\"-\",IF(COUNTIF('Enrollment Form'!$AV295:$AW295,\"Yes\")=2,\"N\",\"Y\")))","v":""},{"$f":"IF(OR('Enrollment Form'!$CJ295=\"\",'Enrollment Form'!$CJ295=\"No\"),\"-\",IF(AND('Enrollment Form'!$CJ295=\"Yes\",'Enrollment Form'!$CK295=\"\"),\"N\",\"Y\"))","v":"-"},{"$f":"IF(OR('Enrollment Form'!$CL295=\"\",'Enrollment Form'!$CL295=\"No\"),\"-\",IF(AND('Enrollment Form'!$CL295=\"Yes\",'Enrollment Form'!$CM295=\"\"),\"N\",\"Y\"))","v":"-"},{"$f":"IF(OR('Enrollment Form'!$CN295=\"\",'Enrollment Form'!$CN295=\"No\"),\"-\",IF(AND('Enrollment Form'!$CN295=\"Yes\",'Enrollment Form'!$CO295=\"\"),\"N\",\"Y\"))","v":"-"},{"$f":"IF(OR('Enrollment Form'!$CN295=\"\",'Enrollment Form'!$CN295=\"No\"),\"-\",IF(AND('Enrollment Form'!$CN295=\"Yes\",'Enrollment Form'!$CP295=\"\"),\"N\",\"Y\"))","v":"-"},{"$f":"IF('Enrollment Form'!B295<>\"Subscriber\",\"-\",IF(AND('Enrollment Form'!B295=\"Subscriber\",'Enrollment Form'!C295=\"Enroll\",'Enrollment Form'!AA295=\"\"),\"N\",\"Y\"))","v":"-"},{"$f":"IF(OR('Enrollment Form'!B295=\"Subscriber\",'Enrollment Form'!B295=\"\"),\"-\",IF('Enrollment Form'!BP295=\"\",\"N\",\"Y\"))","v":"-"},{"$f":"IF('Enrollment Form'!B295<>\"Subscriber\",\"-\",IF(AND('Enrollment Form'!B295=\"Subscriber\",'Enrollment Form'!G295=\"\"),\"N\",\"Y\"))","v":"-"},{"$f":"IF('Enrollment Form'!A295=\"\",\"\",IF('Enrollment Form'!B295=\"Subscriber\",\"-\",IF(AND('Enrollment Form'!B295<>\"Subscriber\",'Enrollment Form'!G295='Enrollment Form'!H295),\"N\",\"Y\")))","v":""},0]
[296,{"$f":"IF('Enrollment Form'!$A296<>\"\",\"Y\",\"N\")","v":"N"},{"$f":"IF(AND('Enrollment Form'!$B296=\"\",'Enrollment Form'!$C296<>\"\"),\"N\",IF($B289=\"N\",\"\",\"Y\"))","v":""},{"$f":"IF(OR($B289=\"N\",'Enrollment Form'!G296=\"\"),\"\",IF('Enrollment Form'!$B296<>\"Subscriber\",\"\",IF('Enrollment Form'!$G296='Enrollment Form'!$H296,\"Y\",\"N\")))","v":""},{"$f":"IF($B289=\"N\",\"\",IF(AND(COUNTIFS('Enrollment Form'!$H$11:$H$1000,'Enrollment Form'!$H296,'Enrollment Form'!$B$11:$B$1000,'Enrollment Form'!$B296)>1,'Enrollment Form'!$H296<>\"\"),\"N\",\"Y\"))","v":""},{"$f":"IF($B289=\"N\",\"\",IF(LEN('Enrollment Form'!$Y296)=0,\"\",IF(LEN('Enrollment Form'!$Y296)<>5,\"N\",\"Y\")))","v":""},{"$f":"IF($B289=\"N\",\"\",IF(LEN('Enrollment Form'!$AD296=0),\"\",IF(LEN('Enrollment Form'!$AD296)<>5,\"N\",\"Y\")))","v":""},{"$f":"IF($B289=\"N\",\"\",IF(LEN('Enrollment Form'!$BS296=0),\"\",IF(LEN('Enrollment Form'!$BS296)<>5,\"N\",\"Y\")))","v":""},{"$f":"IF($B289=\"N\",\"\",IF(LEN('Enrollment Form'!$AE296)=0,\"\",IF(LEN('Enrollment Form'!$AE296)<>10,\"N\",\"Y\")))","v":""},{"$f":"IF($B289=\"N\",\"\",IF(LEN('Enrollment Form'!$AF296)=0,\"\",IF(LEN('Enrollment Form'!$AF296)<>10,\"N\",\"Y\")))","v":""},{"$f":"IF('Enrollment Form'!$O296<>\"Graded\",\"-\",IF(AND('Enrollment Form'!$O296=\"Graded\",'Enrollment Form'!$AR296<>\"\"),\"Y\",\"N\"))","v":"-"},{"$f":"IF($B289=\"N\",\"\",IF(OR('Enrollment Form'!$B296<>\"Subscriber\",'Enrollment Form'!$C296=\"ROC\"),\"-\",IF(AND('Enrollment Form'!$B296=\"Subscriber\",'Enrollment Form'!$C296=\"Enroll\",'Enrollment Form'!$AJ296<>\"\"),\"Y\",\"N\")))","v":""},{"$f":"IF($B289=\"N\",\"\",IF(OR('Enrollment Form'!$B296<>\"Subscriber\",'Enrollment Form'!$C296=\"ROC\"),\"-\",IF(AND('Enrollment Form'!$B296=\"Subscriber\",'Enrollment Form'!$C296=\"Enroll\",'Enrollment Form'!$AK296<>\"\"),\"Y\",\"N\")))","v":""},{"$f":"IF($B289=\"N\",\"\",IF(OR('Enrollment Form'!$B296<>\"Subscriber\",'Enrollment Form'!$C296=\"ROC\"),\"-\",IF(AND('Enrollment Form'!$B296=\"Subscriber\",'Enrollment Form'!$C296=\"Enroll\",'Enrollment Form'!$AL296<>\"\"),\"Y\",\"N\")))","v":""},{"$f":"IF($B289=\"N\",\"\",IF(OR('Enrollment Form'!$B296<>\"Subscriber\",'Enrollment Form'!$C296=\"ROC\"),\"-\",IF(AND('Enrollment Form'!$B296=\"Subscriber\",'Enrollment Form'!$C296=\"Enroll\",'Enrollment Form'!$AP296<>\"\"),\"Y\",\"N\")))","v":""},{"$f":"IF($B289=\"N\",\"\",IF(OR('Enrollment Form'!$B296<>\"Subscriber\",'Enrollment Form'!$C296=\"ROC\"),\"-\",IF(AND('Enrollment Form'!$B296=\"Subscriber\",'Enrollment Form'!$C296=\"Enroll\",'Enrollment Form'!$AQ296<>\"\"),\"Y\",\"N\")))","v":""},{"$f":"IF($B289=\"N\",\"\",IF(OR('Enrollment Form'!$B296<>\"Subscriber\",'Enrollment Form'!$C296=\"ROC\"),\"-\",IF(AND('Enrollment Form'!$B296=\"Subscriber\",'Enrollment Form'!$C296=\"Enroll\",'Enrollment Form'!$AS296<>\"\"),\"Y\",\"N\")))","v":""},{"$f":"IF($B289=\"N\",\"\",IF($Q289=\"-\",\"-\",IF(AND($Q289=\"Y\",'Enrollment Form'!$AS296=\"No\"),\"-\",IF(AND($Q289=\"Y\",'Enrollment Form'!$AS296=\"Yes\",'Enrollment Form'!$AT296<>\"\"),\"Y\",\"N\"))))","v":""},{"$f":"IF($B289=\"N\",\"\",IF(OR('Enrollment Form'!$B296<>\"Subscriber\",'Enrollment Form'!$C296=\"ROC\"),\"-\",IF(AND('Enrollment Form'!$B296=\"Subscriber\",'Enrollment Form'!$C296=\"Enroll\",'Enrollment Form'!$CV296<>\"\"),\"Y\",\"N\")))","v":""},{"$f":"IF($B289=\"N\",\"\",IF($S289=\"-\",\"-\",IF(AND($S289=\"Y\",'Enrollment Form'!$CV296=\"No\"),\"-\",IF(AND($S289=\"Y\",'Enrollment Form'!$CV296=\"Yes\",'Enrollment Form'!$CW296<>\"\"),\"Y\",\"N\"))))","v":""},{"$f":"IF(OR('Enrollment Form'!$AY296=\"Yes\",'Enrollment Form'!$AY296=\"\"),\"-\",IF(OR(AND('Enrollment Form'!$AY296=\"No\",ISERROR(FIND(\"HMO\",VLOOKUP('Enrollment Form'!G296,'Enrollment Form'!H$11:J$1000,3,FALSE),1))=FALSE,COUNTA('Enrollment Form'!$AZ296:$BC296)=4),AND('Enrollment Form'!$AY296=\"No\",ISERROR(FIND(\"HMO\",VLOOKUP('Enrollment Form'!G296,'Enrollment Form'!H$11:J$1000,3,FALSE),1))=FALSE,COUNTA('Enrollment Form'!$BT296:$BW296)=4)),\"Y\",\"N\"))","v":"-"},{"$f":"IF($B289=\"N\",\"\",IF('Enrollment Form'!$B296=\"Subscriber\",\"-\",IF(COUNTA('Enrollment Form'!$BL296,'Enrollment Form'!$BN296)=2,\"Y\",\"N\")))","v":""},{"$f":"IF($B289=\"N\",\"\",IF(OR('Enrollment Form'!$AX296=\"\",'Enrollment Form'!$AX296=\"No\"),\"-\",IF(AND('Enrollment Form'!$AX296=\"Yes\",COUNTA('Enrollment Form'!$CR296)=1),\"Y\",\"N\")))","v":""},{"$f":"IF(OR('Enrollment Form'!$CR296=\"\",'Enrollment Form'!$CR296=\"No\"),\"-\",IF(COUNTA('Enrollment Form'!$CT296:$CU296)=2,\"Y\",\"N\"))","v":"-"},{"$f":"IF($B289=\"N\",\"\",IF(COUNTIF('Enrollment Form'!$DG296:$DP296,\"Other\")=COUNTA('Enrollment Form'!$DK296,'Enrollment Form'!$DH296,'Enrollment Form'!$DN296,'Enrollment Form'!$DQ296),\"Y\",\"N\"))","v":""},{"$f":"IF($B289=\"N\",\"\",IF(OR('Enrollment Form'!B296<>\"Subscriber\",'Enrollment Form'!C296=\"ROC\",COUNTIF('Enrollment Form'!AV296:AW296,\"Yes\")>=1),\"-\",IF(AND('Enrollment Form'!C296=\"Enroll\",COUNTIF('Enrollment Form'!AV296:AW296,\"No\")=2,'Enrollment Form'!AX296=\"\"),\"N\",\"Y\")))","v":""},{"$f":"IF(OR(B289=\"N\",'Enrollment Form'!B296<>\"Subscriber\",'Enrollment Form'!C296=\"ROC\",'Enrollment Form'!O296<>\"Multiple of Salary\"),\"-\",IF(COUNTA('Enrollment Form'!T296:U296)<2,\"N\",\"Y\"))","v":"-"},{"$f":"IF(B289=\"N\",\"\",IF(OR('Enrollment Form'!C296=\"ROC\",'Enrollment Form'!B296<>\"Subscriber\",'Enrollment Form'!O296=\"Waive\",'Enrollment Form'!O296=\"\"),\"-\",IF('Enrollment Form'!P296=\"\",\"N\",\"Y\")))","v":""},{"$f":"IF($B289=\"N\",\"\",IF(AND('Enrollment Form'!$C296=\"ROC\",'Enrollment Form'!$DR296<>\"\"),\"Y\",IF(AND('Enrollment Form'!$C296=\"ROC\",'Enrollment Form'!$DR296=\"\"),\"N\",IF(AND('Enrollment Form'!$C296=\"Enroll\",'Enrollment Form'!$B296=\"Subscriber\",'Enrollment Form'!$CX296=\"No\",'Enrollment Form'!$DR296=\"\"),\"N\",IF(AND('Enrollment Form'!$C296=\"Enroll\",'Enrollment Form'!$B296=\"Subscriber\",'Enrollment Form'!$CX296=\"Yes\"),\"-\",\"Y\")))))","v":""},{"$f":"IF($B289=\"N\",\"\",IF(AND('Enrollment Form'!$C296=\"ROC\",'Enrollment Form'!$DS296<>\"\"),\"Y\",IF(AND('Enrollment Form'!$C296=\"ROC\",'Enrollment Form'!$DS296=\"\"),\"N\",IF(AND('Enrollment Form'!$C296=\"Enroll\",'Enrollment Form'!$B296=\"Subscriber\",'Enrollment Form'!$CX296=\"No\",'Enrollment Form'!$DS296=\"\"),\"N\",IF(AND('Enrollment Form'!$C296=\"Enroll\",'Enrollment Form'!$B296=\"Subscriber\",'Enrollment Form'!$CX296=\"Yes\"),\"-\",\"Y\")))))","v":""},{"$f":"IF('Enrollment Form'!AH296=\"\",\"\",IF(ISERROR(SEARCH(\".\",'Enrollment Form'!AH296,SEARCH(\"@\",'Enrollment Form'!AH296))),\"N\",\"Y\"))","v":""},{"$f":"IF(OR($B289=\"N\",'Enrollment Form'!$G296=\"\"),\"\",IF('Enrollment Form'!$B296<>\"Subscriber\",\"-\",IF(COUNTIF('Enrollment Form'!$AV296:$AW296,\"Yes\")=2,\"N\",\"Y\")))","v":""},{"$f":"IF(OR('Enrollment Form'!$CJ296=\"\",'Enrollment Form'!$CJ296=\"No\"),\"-\",IF(AND('Enrollment Form'!$CJ296=\"Yes\",'Enrollment Form'!$CK296=\"\"),\"N\",\"Y\"))","v":"-"},{"$f":"IF(OR('Enrollment Form'!$CL296=\"\",'Enrollment Form'!$CL296=\"No\"),\"-\",IF(AND('Enrollment Form'!$CL296=\"Yes\",'Enrollment Form'!$CM296=\"\"),\"N\",\"Y\"))","v":"-"},{"$f":"IF(OR('Enrollment Form'!$CN296=\"\",'Enrollment Form'!$CN296=\"No\"),\"-\",IF(AND('Enrollment Form'!$CN296=\"Yes\",'Enrollment Form'!$CO296=\"\"),\"N\",\"Y\"))","v":"-"},{"$f":"IF(OR('Enrollment Form'!$CN296=\"\",'Enrollment Form'!$CN296=\"No\"),\"-\",IF(AND('Enrollment Form'!$CN296=\"Yes\",'Enrollment Form'!$CP296=\"\"),\"N\",\"Y\"))","v":"-"},{"$f":"IF('Enrollment Form'!B296<>\"Subscriber\",\"-\",IF(AND('Enrollment Form'!B296=\"Subscriber\",'Enrollment Form'!C296=\"Enroll\",'Enrollment Form'!AA296=\"\"),\"N\",\"Y\"))","v":"-"},{"$f":"IF(OR('Enrollment Form'!B296=\"Subscriber\",'Enrollment Form'!B296=\"\"),\"-\",IF('Enrollment Form'!BP296=\"\",\"N\",\"Y\"))","v":"-"},{"$f":"IF('Enrollment Form'!B296<>\"Subscriber\",\"-\",IF(AND('Enrollment Form'!B296=\"Subscriber\",'Enrollment Form'!G296=\"\"),\"N\",\"Y\"))","v":"-"},{"$f":"IF('Enrollment Form'!A296=\"\",\"\",IF('Enrollment Form'!B296=\"Subscriber\",\"-\",IF(AND('Enrollment Form'!B296<>\"Subscriber\",'Enrollment Form'!G296='Enrollment Form'!H296),\"N\",\"Y\")))","v":""},0]
[297,{"$f":"IF('Enrollment Form'!$A297<>\"\",\"Y\",\"N\")","v":"N"},{"$f":"IF(AND('Enrollment Form'!$B297=\"\",'Enrollment Form'!$C297<>\"\"),\"N\",IF($B290=\"N\",\"\",\"Y\"))","v":""},{"$f":"IF(OR($B290=\"N\",'Enrollment Form'!G297=\"\"),\"\",IF('Enrollment Form'!$B297<>\"Subscriber\",\"\",IF('Enrollment Form'!$G297='Enrollment Form'!$H297,\"Y\",\"N\")))","v":""},{"$f":"IF($B290=\"N\",\"\",IF(AND(COUNTIFS('Enrollment Form'!$H$11:$H$1000,'Enrollment Form'!$H297,'Enrollment Form'!$B$11:$B$1000,'Enrollment Form'!$B297)>1,'Enrollment Form'!$H297<>\"\"),\"N\",\"Y\"))","v":""},{"$f":"IF($B290=\"N\",\"\",IF(LEN('Enrollment Form'!$Y297)=0,\"\",IF(LEN('Enrollment Form'!$Y297)<>5,\"N\",\"Y\")))","v":""},{"$f":"IF($B290=\"N\",\"\",IF(LEN('Enrollment Form'!$AD297=0),\"\",IF(LEN('Enrollment Form'!$AD297)<>5,\"N\",\"Y\")))","v":""},{"$f":"IF($B290=\"N\",\"\",IF(LEN('Enrollment Form'!$BS297=0),\"\",IF(LEN('Enrollment Form'!$BS297)<>5,\"N\",\"Y\")))","v":""},{"$f":"IF($B290=\"N\",\"\",IF(LEN('Enrollment Form'!$AE297)=0,\"\",IF(LEN('Enrollment Form'!$AE297)<>10,\"N\",\"Y\")))","v":""},{"$f":"IF($B290=\"N\",\"\",IF(LEN('Enrollment Form'!$AF297)=0,\"\",IF(LEN('Enrollment Form'!$AF297)<>10,\"N\",\"Y\")))","v":""},{"$f":"IF('Enrollment Form'!$O297<>\"Graded\",\"-\",IF(AND('Enrollment Form'!$O297=\"Graded\",'Enrollment Form'!$AR297<>\"\"),\"Y\",\"N\"))","v":"-"},{"$f":"IF($B290=\"N\",\"\",IF(OR('Enrollment Form'!$B297<>\"Subscriber\",'Enrollment Form'!$C297=\"ROC\"),\"-\",IF(AND('Enrollment Form'!$B297=\"Subscriber\",'Enrollment Form'!$C297=\"Enroll\",'Enrollment Form'!$AJ297<>\"\"),\"Y\",\"N\")))","v":""},{"$f":"IF($B290=\"N\",\"\",IF(OR('Enrollment Form'!$B297<>\"Subscriber\",'Enrollment Form'!$C297=\"ROC\"),\"-\",IF(AND('Enrollment Form'!$B297=\"Subscriber\",'Enrollment Form'!$C297=\"Enroll\",'Enrollment Form'!$AK297<>\"\"),\"Y\",\"N\")))","v":""},{"$f":"IF($B290=\"N\",\"\",IF(OR('Enrollment Form'!$B297<>\"Subscriber\",'Enrollment Form'!$C297=\"ROC\"),\"-\",IF(AND('Enrollment Form'!$B297=\"Subscriber\",'Enrollment Form'!$C297=\"Enroll\",'Enrollment Form'!$AL297<>\"\"),\"Y\",\"N\")))","v":""},{"$f":"IF($B290=\"N\",\"\",IF(OR('Enrollment Form'!$B297<>\"Subscriber\",'Enrollment Form'!$C297=\"ROC\"),\"-\",IF(AND('Enrollment Form'!$B297=\"Subscriber\",'Enrollment Form'!$C297=\"Enroll\",'Enrollment Form'!$AP297<>\"\"),\"Y\",\"N\")))","v":""},{"$f":"IF($B290=\"N\",\"\",IF(OR('Enrollment Form'!$B297<>\"Subscriber\",'Enrollment Form'!$C297=\"ROC\"),\"-\",IF(AND('Enrollment Form'!$B297=\"Subscriber\",'Enrollment Form'!$C297=\"Enroll\",'Enrollment Form'!$AQ297<>\"\"),\"Y\",\"N\")))","v":""},{"$f":"IF($B290=\"N\",\"\",IF(OR('Enrollment Form'!$B297<>\"Subscriber\",'Enrollment Form'!$C297=\"ROC\"),\"-\",IF(AND('Enrollment Form'!$B297=\"Subscriber\",'Enrollment Form'!$C297=\"Enroll\",'Enrollment Form'!$AS297<>\"\"),\"Y\",\"N\")))","v":""},{"$f":"IF($B290=\"N\",\"\",IF($Q290=\"-\",\"-\",IF(AND($Q290=\"Y\",'Enrollment Form'!$AS297=\"No\"),\"-\",IF(AND($Q290=\"Y\",'Enrollment Form'!$AS297=\"Yes\",'Enrollment Form'!$AT297<>\"\"),\"Y\",\"N\"))))","v":""},{"$f":"IF($B290=\"N\",\"\",IF(OR('Enrollment Form'!$B297<>\"Subscriber\",'Enrollment Form'!$C297=\"ROC\"),\"-\",IF(AND('Enrollment Form'!$B297=\"Subscriber\",'Enrollment Form'!$C297=\"Enroll\",'Enrollment Form'!$CV297<>\"\"),\"Y\",\"N\")))","v":""},{"$f":"IF($B290=\"N\",\"\",IF($S290=\"-\",\"-\",IF(AND($S290=\"Y\",'Enrollment Form'!$CV297=\"No\"),\"-\",IF(AND($S290=\"Y\",'Enrollment Form'!$CV297=\"Yes\",'Enrollment Form'!$CW297<>\"\"),\"Y\",\"N\"))))","v":""},{"$f":"IF(OR('Enrollment Form'!$AY297=\"Yes\",'Enrollment Form'!$AY297=\"\"),\"-\",IF(OR(AND('Enrollment Form'!$AY297=\"No\",ISERROR(FIND(\"HMO\",VLOOKUP('Enrollment Form'!G297,'Enrollment Form'!H$11:J$1000,3,FALSE),1))=FALSE,COUNTA('Enrollment Form'!$AZ297:$BC297)=4),AND('Enrollment Form'!$AY297=\"No\",ISERROR(FIND(\"HMO\",VLOOKUP('Enrollment Form'!G297,'Enrollment Form'!H$11:J$1000,3,FALSE),1))=FALSE,COUNTA('Enrollment Form'!$BT297:$BW297)=4)),\"Y\",\"N\"))","v":"-"},{"$f":"IF($B290=\"N\",\"\",IF('Enrollment Form'!$B297=\"Subscriber\",\"-\",IF(COUNTA('Enrollment Form'!$BL297,'Enrollment Form'!$BN297)=2,\"Y\",\"N\")))","v":""},{"$f":"IF($B290=\"N\",\"\",IF(OR('Enrollment Form'!$AX297=\"\",'Enrollment Form'!$AX297=\"No\"),\"-\",IF(AND('Enrollment Form'!$AX297=\"Yes\",COUNTA('Enrollment Form'!$CR297)=1),\"Y\",\"N\")))","v":""},{"$f":"IF(OR('Enrollment Form'!$CR297=\"\",'Enrollment Form'!$CR297=\"No\"),\"-\",IF(COUNTA('Enrollment Form'!$CT297:$CU297)=2,\"Y\",\"N\"))","v":"-"},{"$f":"IF($B290=\"N\",\"\",IF(COUNTIF('Enrollment Form'!$DG297:$DP297,\"Other\")=COUNTA('Enrollment Form'!$DK297,'Enrollment Form'!$DH297,'Enrollment Form'!$DN297,'Enrollment Form'!$DQ297),\"Y\",\"N\"))","v":""},{"$f":"IF($B290=\"N\",\"\",IF(OR('Enrollment Form'!B297<>\"Subscriber\",'Enrollment Form'!C297=\"ROC\",COUNTIF('Enrollment Form'!AV297:AW297,\"Yes\")>=1),\"-\",IF(AND('Enrollment Form'!C297=\"Enroll\",COUNTIF('Enrollment Form'!AV297:AW297,\"No\")=2,'Enrollment Form'!AX297=\"\"),\"N\",\"Y\")))","v":""},{"$f":"IF(OR(B290=\"N\",'Enrollment Form'!B297<>\"Subscriber\",'Enrollment Form'!C297=\"ROC\",'Enrollment Form'!O297<>\"Multiple of Salary\"),\"-\",IF(COUNTA('Enrollment Form'!T297:U297)<2,\"N\",\"Y\"))","v":"-"},{"$f":"IF(B290=\"N\",\"\",IF(OR('Enrollment Form'!C297=\"ROC\",'Enrollment Form'!B297<>\"Subscriber\",'Enrollment Form'!O297=\"Waive\",'Enrollment Form'!O297=\"\"),\"-\",IF('Enrollment Form'!P297=\"\",\"N\",\"Y\")))","v":""},{"$f":"IF($B290=\"N\",\"\",IF(AND('Enrollment Form'!$C297=\"ROC\",'Enrollment Form'!$DR297<>\"\"),\"Y\",IF(AND('Enrollment Form'!$C297=\"ROC\",'Enrollment Form'!$DR297=\"\"),\"N\",IF(AND('Enrollment Form'!$C297=\"Enroll\",'Enrollment Form'!$B297=\"Subscriber\",'Enrollment Form'!$CX297=\"No\",'Enrollment Form'!$DR297=\"\"),\"N\",IF(AND('Enrollment Form'!$C297=\"Enroll\",'Enrollment Form'!$B297=\"Subscriber\",'Enrollment Form'!$CX297=\"Yes\"),\"-\",\"Y\")))))","v":""},{"$f":"IF($B290=\"N\",\"\",IF(AND('Enrollment Form'!$C297=\"ROC\",'Enrollment Form'!$DS297<>\"\"),\"Y\",IF(AND('Enrollment Form'!$C297=\"ROC\",'Enrollment Form'!$DS297=\"\"),\"N\",IF(AND('Enrollment Form'!$C297=\"Enroll\",'Enrollment Form'!$B297=\"Subscriber\",'Enrollment Form'!$CX297=\"No\",'Enrollment Form'!$DS297=\"\"),\"N\",IF(AND('Enrollment Form'!$C297=\"Enroll\",'Enrollment Form'!$B297=\"Subscriber\",'Enrollment Form'!$CX297=\"Yes\"),\"-\",\"Y\")))))","v":""},{"$f":"IF('Enrollment Form'!AH297=\"\",\"\",IF(ISERROR(SEARCH(\".\",'Enrollment Form'!AH297,SEARCH(\"@\",'Enrollment Form'!AH297))),\"N\",\"Y\"))","v":""},{"$f":"IF(OR($B290=\"N\",'Enrollment Form'!$G297=\"\"),\"\",IF('Enrollment Form'!$B297<>\"Subscriber\",\"-\",IF(COUNTIF('Enrollment Form'!$AV297:$AW297,\"Yes\")=2,\"N\",\"Y\")))","v":""},{"$f":"IF(OR('Enrollment Form'!$CJ297=\"\",'Enrollment Form'!$CJ297=\"No\"),\"-\",IF(AND('Enrollment Form'!$CJ297=\"Yes\",'Enrollment Form'!$CK297=\"\"),\"N\",\"Y\"))","v":"-"},{"$f":"IF(OR('Enrollment Form'!$CL297=\"\",'Enrollment Form'!$CL297=\"No\"),\"-\",IF(AND('Enrollment Form'!$CL297=\"Yes\",'Enrollment Form'!$CM297=\"\"),\"N\",\"Y\"))","v":"-"},{"$f":"IF(OR('Enrollment Form'!$CN297=\"\",'Enrollment Form'!$CN297=\"No\"),\"-\",IF(AND('Enrollment Form'!$CN297=\"Yes\",'Enrollment Form'!$CO297=\"\"),\"N\",\"Y\"))","v":"-"},{"$f":"IF(OR('Enrollment Form'!$CN297=\"\",'Enrollment Form'!$CN297=\"No\"),\"-\",IF(AND('Enrollment Form'!$CN297=\"Yes\",'Enrollment Form'!$CP297=\"\"),\"N\",\"Y\"))","v":"-"},{"$f":"IF('Enrollment Form'!B297<>\"Subscriber\",\"-\",IF(AND('Enrollment Form'!B297=\"Subscriber\",'Enrollment Form'!C297=\"Enroll\",'Enrollment Form'!AA297=\"\"),\"N\",\"Y\"))","v":"-"},{"$f":"IF(OR('Enrollment Form'!B297=\"Subscriber\",'Enrollment Form'!B297=\"\"),\"-\",IF('Enrollment Form'!BP297=\"\",\"N\",\"Y\"))","v":"-"},{"$f":"IF('Enrollment Form'!B297<>\"Subscriber\",\"-\",IF(AND('Enrollment Form'!B297=\"Subscriber\",'Enrollment Form'!G297=\"\"),\"N\",\"Y\"))","v":"-"},{"$f":"IF('Enrollment Form'!A297=\"\",\"\",IF('Enrollment Form'!B297=\"Subscriber\",\"-\",IF(AND('Enrollment Form'!B297<>\"Subscriber\",'Enrollment Form'!G297='Enrollment Form'!H297),\"N\",\"Y\")))","v":""},0]
[298,{"$f":"IF('Enrollment Form'!$A298<>\"\",\"Y\",\"N\")","v":"N"},{"$f":"IF(AND('Enrollment Form'!$B298=\"\",'Enrollment Form'!$C298<>\"\"),\"N\",IF($B291=\"N\",\"\",\"Y\"))","v":""},{"$f":"IF(OR($B291=\"N\",'Enrollment Form'!G298=\"\"),\"\",IF('Enrollment Form'!$B298<>\"Subscriber\",\"\",IF('Enrollment Form'!$G298='Enrollment Form'!$H298,\"Y\",\"N\")))","v":""},{"$f":"IF($B291=\"N\",\"\",IF(AND(COUNTIFS('Enrollment Form'!$H$11:$H$1000,'Enrollment Form'!$H298,'Enrollment Form'!$B$11:$B$1000,'Enrollment Form'!$B298)>1,'Enrollment Form'!$H298<>\"\"),\"N\",\"Y\"))","v":""},{"$f":"IF($B291=\"N\",\"\",IF(LEN('Enrollment Form'!$Y298)=0,\"\",IF(LEN('Enrollment Form'!$Y298)<>5,\"N\",\"Y\")))","v":""},{"$f":"IF($B291=\"N\",\"\",IF(LEN('Enrollment Form'!$AD298=0),\"\",IF(LEN('Enrollment Form'!$AD298)<>5,\"N\",\"Y\")))","v":""},{"$f":"IF($B291=\"N\",\"\",IF(LEN('Enrollment Form'!$BS298=0),\"\",IF(LEN('Enrollment Form'!$BS298)<>5,\"N\",\"Y\")))","v":""},{"$f":"IF($B291=\"N\",\"\",IF(LEN('Enrollment Form'!$AE298)=0,\"\",IF(LEN('Enrollment Form'!$AE298)<>10,\"N\",\"Y\")))","v":""},{"$f":"IF($B291=\"N\",\"\",IF(LEN('Enrollment Form'!$AF298)=0,\"\",IF(LEN('Enrollment Form'!$AF298)<>10,\"N\",\"Y\")))","v":""},{"$f":"IF('Enrollment Form'!$O298<>\"Graded\",\"-\",IF(AND('Enrollment Form'!$O298=\"Graded\",'Enrollment Form'!$AR298<>\"\"),\"Y\",\"N\"))","v":"-"},{"$f":"IF($B291=\"N\",\"\",IF(OR('Enrollment Form'!$B298<>\"Subscriber\",'Enrollment Form'!$C298=\"ROC\"),\"-\",IF(AND('Enrollment Form'!$B298=\"Subscriber\",'Enrollment Form'!$C298=\"Enroll\",'Enrollment Form'!$AJ298<>\"\"),\"Y\",\"N\")))","v":""},{"$f":"IF($B291=\"N\",\"\",IF(OR('Enrollment Form'!$B298<>\"Subscriber\",'Enrollment Form'!$C298=\"ROC\"),\"-\",IF(AND('Enrollment Form'!$B298=\"Subscriber\",'Enrollment Form'!$C298=\"Enroll\",'Enrollment Form'!$AK298<>\"\"),\"Y\",\"N\")))","v":""},{"$f":"IF($B291=\"N\",\"\",IF(OR('Enrollment Form'!$B298<>\"Subscriber\",'Enrollment Form'!$C298=\"ROC\"),\"-\",IF(AND('Enrollment Form'!$B298=\"Subscriber\",'Enrollment Form'!$C298=\"Enroll\",'Enrollment Form'!$AL298<>\"\"),\"Y\",\"N\")))","v":""},{"$f":"IF($B291=\"N\",\"\",IF(OR('Enrollment Form'!$B298<>\"Subscriber\",'Enrollment Form'!$C298=\"ROC\"),\"-\",IF(AND('Enrollment Form'!$B298=\"Subscriber\",'Enrollment Form'!$C298=\"Enroll\",'Enrollment Form'!$AP298<>\"\"),\"Y\",\"N\")))","v":""},{"$f":"IF($B291=\"N\",\"\",IF(OR('Enrollment Form'!$B298<>\"Subscriber\",'Enrollment Form'!$C298=\"ROC\"),\"-\",IF(AND('Enrollment Form'!$B298=\"Subscriber\",'Enrollment Form'!$C298=\"Enroll\",'Enrollment Form'!$AQ298<>\"\"),\"Y\",\"N\")))","v":""},{"$f":"IF($B291=\"N\",\"\",IF(OR('Enrollment Form'!$B298<>\"Subscriber\",'Enrollment Form'!$C298=\"ROC\"),\"-\",IF(AND('Enrollment Form'!$B298=\"Subscriber\",'Enrollment Form'!$C298=\"Enroll\",'Enrollment Form'!$AS298<>\"\"),\"Y\",\"N\")))","v":""},{"$f":"IF($B291=\"N\",\"\",IF($Q291=\"-\",\"-\",IF(AND($Q291=\"Y\",'Enrollment Form'!$AS298=\"No\"),\"-\",IF(AND($Q291=\"Y\",'Enrollment Form'!$AS298=\"Yes\",'Enrollment Form'!$AT298<>\"\"),\"Y\",\"N\"))))","v":""},{"$f":"IF($B291=\"N\",\"\",IF(OR('Enrollment Form'!$B298<>\"Subscriber\",'Enrollment Form'!$C298=\"ROC\"),\"-\",IF(AND('Enrollment Form'!$B298=\"Subscriber\",'Enrollment Form'!$C298=\"Enroll\",'Enrollment Form'!$CV298<>\"\"),\"Y\",\"N\")))","v":""},{"$f":"IF($B291=\"N\",\"\",IF($S291=\"-\",\"-\",IF(AND($S291=\"Y\",'Enrollment Form'!$CV298=\"No\"),\"-\",IF(AND($S291=\"Y\",'Enrollment Form'!$CV298=\"Yes\",'Enrollment Form'!$CW298<>\"\"),\"Y\",\"N\"))))","v":""},{"$f":"IF(OR('Enrollment Form'!$AY298=\"Yes\",'Enrollment Form'!$AY298=\"\"),\"-\",IF(OR(AND('Enrollment Form'!$AY298=\"No\",ISERROR(FIND(\"HMO\",VLOOKUP('Enrollment Form'!G298,'Enrollment Form'!H$11:J$1000,3,FALSE),1))=FALSE,COUNTA('Enrollment Form'!$AZ298:$BC298)=4),AND('Enrollment Form'!$AY298=\"No\",ISERROR(FIND(\"HMO\",VLOOKUP('Enrollment Form'!G298,'Enrollment Form'!H$11:J$1000,3,FALSE),1))=FALSE,COUNTA('Enrollment Form'!$BT298:$BW298)=4)),\"Y\",\"N\"))","v":"-"},{"$f":"IF($B291=\"N\",\"\",IF('Enrollment Form'!$B298=\"Subscriber\",\"-\",IF(COUNTA('Enrollment Form'!$BL298,'Enrollment Form'!$BN298)=2,\"Y\",\"N\")))","v":""},{"$f":"IF($B291=\"N\",\"\",IF(OR('Enrollment Form'!$AX298=\"\",'Enrollment Form'!$AX298=\"No\"),\"-\",IF(AND('Enrollment Form'!$AX298=\"Yes\",COUNTA('Enrollment Form'!$CR298)=1),\"Y\",\"N\")))","v":""},{"$f":"IF(OR('Enrollment Form'!$CR298=\"\",'Enrollment Form'!$CR298=\"No\"),\"-\",IF(COUNTA('Enrollment Form'!$CT298:$CU298)=2,\"Y\",\"N\"))","v":"-"},{"$f":"IF($B291=\"N\",\"\",IF(COUNTIF('Enrollment Form'!$DG298:$DP298,\"Other\")=COUNTA('Enrollment Form'!$DK298,'Enrollment Form'!$DH298,'Enrollment Form'!$DN298,'Enrollment Form'!$DQ298),\"Y\",\"N\"))","v":""},{"$f":"IF($B291=\"N\",\"\",IF(OR('Enrollment Form'!B298<>\"Subscriber\",'Enrollment Form'!C298=\"ROC\",COUNTIF('Enrollment Form'!AV298:AW298,\"Yes\")>=1),\"-\",IF(AND('Enrollment Form'!C298=\"Enroll\",COUNTIF('Enrollment Form'!AV298:AW298,\"No\")=2,'Enrollment Form'!AX298=\"\"),\"N\",\"Y\")))","v":""},{"$f":"IF(OR(B291=\"N\",'Enrollment Form'!B298<>\"Subscriber\",'Enrollment Form'!C298=\"ROC\",'Enrollment Form'!O298<>\"Multiple of Salary\"),\"-\",IF(COUNTA('Enrollment Form'!T298:U298)<2,\"N\",\"Y\"))","v":"-"},{"$f":"IF(B291=\"N\",\"\",IF(OR('Enrollment Form'!C298=\"ROC\",'Enrollment Form'!B298<>\"Subscriber\",'Enrollment Form'!O298=\"Waive\",'Enrollment Form'!O298=\"\"),\"-\",IF('Enrollment Form'!P298=\"\",\"N\",\"Y\")))","v":""},{"$f":"IF($B291=\"N\",\"\",IF(AND('Enrollment Form'!$C298=\"ROC\",'Enrollment Form'!$DR298<>\"\"),\"Y\",IF(AND('Enrollment Form'!$C298=\"ROC\",'Enrollment Form'!$DR298=\"\"),\"N\",IF(AND('Enrollment Form'!$C298=\"Enroll\",'Enrollment Form'!$B298=\"Subscriber\",'Enrollment Form'!$CX298=\"No\",'Enrollment Form'!$DR298=\"\"),\"N\",IF(AND('Enrollment Form'!$C298=\"Enroll\",'Enrollment Form'!$B298=\"Subscriber\",'Enrollment Form'!$CX298=\"Yes\"),\"-\",\"Y\")))))","v":""},{"$f":"IF($B291=\"N\",\"\",IF(AND('Enrollment Form'!$C298=\"ROC\",'Enrollment Form'!$DS298<>\"\"),\"Y\",IF(AND('Enrollment Form'!$C298=\"ROC\",'Enrollment Form'!$DS298=\"\"),\"N\",IF(AND('Enrollment Form'!$C298=\"Enroll\",'Enrollment Form'!$B298=\"Subscriber\",'Enrollment Form'!$CX298=\"No\",'Enrollment Form'!$DS298=\"\"),\"N\",IF(AND('Enrollment Form'!$C298=\"Enroll\",'Enrollment Form'!$B298=\"Subscriber\",'Enrollment Form'!$CX298=\"Yes\"),\"-\",\"Y\")))))","v":""},{"$f":"IF('Enrollment Form'!AH298=\"\",\"\",IF(ISERROR(SEARCH(\".\",'Enrollment Form'!AH298,SEARCH(\"@\",'Enrollment Form'!AH298))),\"N\",\"Y\"))","v":""},{"$f":"IF(OR($B291=\"N\",'Enrollment Form'!$G298=\"\"),\"\",IF('Enrollment Form'!$B298<>\"Subscriber\",\"-\",IF(COUNTIF('Enrollment Form'!$AV298:$AW298,\"Yes\")=2,\"N\",\"Y\")))","v":""},{"$f":"IF(OR('Enrollment Form'!$CJ298=\"\",'Enrollment Form'!$CJ298=\"No\"),\"-\",IF(AND('Enrollment Form'!$CJ298=\"Yes\",'Enrollment Form'!$CK298=\"\"),\"N\",\"Y\"))","v":"-"},{"$f":"IF(OR('Enrollment Form'!$CL298=\"\",'Enrollment Form'!$CL298=\"No\"),\"-\",IF(AND('Enrollment Form'!$CL298=\"Yes\",'Enrollment Form'!$CM298=\"\"),\"N\",\"Y\"))","v":"-"},{"$f":"IF(OR('Enrollment Form'!$CN298=\"\",'Enrollment Form'!$CN298=\"No\"),\"-\",IF(AND('Enrollment Form'!$CN298=\"Yes\",'Enrollment Form'!$CO298=\"\"),\"N\",\"Y\"))","v":"-"},{"$f":"IF(OR('Enrollment Form'!$CN298=\"\",'Enrollment Form'!$CN298=\"No\"),\"-\",IF(AND('Enrollment Form'!$CN298=\"Yes\",'Enrollment Form'!$CP298=\"\"),\"N\",\"Y\"))","v":"-"},{"$f":"IF('Enrollment Form'!B298<>\"Subscriber\",\"-\",IF(AND('Enrollment Form'!B298=\"Subscriber\",'Enrollment Form'!C298=\"Enroll\",'Enrollment Form'!AA298=\"\"),\"N\",\"Y\"))","v":"-"},{"$f":"IF(OR('Enrollment Form'!B298=\"Subscriber\",'Enrollment Form'!B298=\"\"),\"-\",IF('Enrollment Form'!BP298=\"\",\"N\",\"Y\"))","v":"-"},{"$f":"IF('Enrollment Form'!B298<>\"Subscriber\",\"-\",IF(AND('Enrollment Form'!B298=\"Subscriber\",'Enrollment Form'!G298=\"\"),\"N\",\"Y\"))","v":"-"},{"$f":"IF('Enrollment Form'!A298=\"\",\"\",IF('Enrollment Form'!B298=\"Subscriber\",\"-\",IF(AND('Enrollment Form'!B298<>\"Subscriber\",'Enrollment Form'!G298='Enrollment Form'!H298),\"N\",\"Y\")))","v":""},0]
[299,{"$f":"IF('Enrollment Form'!$A299<>\"\",\"Y\",\"N\")","v":"N"},{"$f":"IF(AND('Enrollment Form'!$B299=\"\",'Enrollment Form'!$C299<>\"\"),\"N\",IF($B292=\"N\",\"\",\"Y\"))","v":""},{"$f":"IF(OR($B292=\"N\",'Enrollment Form'!G299=\"\"),\"\",IF('Enrollment Form'!$B299<>\"Subscriber\",\"\",IF('Enrollment Form'!$G299='Enrollment Form'!$H299,\"Y\",\"N\")))","v":""},{"$f":"IF($B292=\"N\",\"\",IF(AND(COUNTIFS('Enrollment Form'!$H$11:$H$1000,'Enrollment Form'!$H299,'Enrollment Form'!$B$11:$B$1000,'Enrollment Form'!$B299)>1,'Enrollment Form'!$H299<>\"\"),\"N\",\"Y\"))","v":""},{"$f":"IF($B292=\"N\",\"\",IF(LEN('Enrollment Form'!$Y299)=0,\"\",IF(LEN('Enrollment Form'!$Y299)<>5,\"N\",\"Y\")))","v":""},{"$f":"IF($B292=\"N\",\"\",IF(LEN('Enrollment Form'!$AD299=0),\"\",IF(LEN('Enrollment Form'!$AD299)<>5,\"N\",\"Y\")))","v":""},{"$f":"IF($B292=\"N\",\"\",IF(LEN('Enrollment Form'!$BS299=0),\"\",IF(LEN('Enrollment Form'!$BS299)<>5,\"N\",\"Y\")))","v":""},{"$f":"IF($B292=\"N\",\"\",IF(LEN('Enrollment Form'!$AE299)=0,\"\",IF(LEN('Enrollment Form'!$AE299)<>10,\"N\",\"Y\")))","v":""},{"$f":"IF($B292=\"N\",\"\",IF(LEN('Enrollment Form'!$AF299)=0,\"\",IF(LEN('Enrollment Form'!$AF299)<>10,\"N\",\"Y\")))","v":""},{"$f":"IF('Enrollment Form'!$O299<>\"Graded\",\"-\",IF(AND('Enrollment Form'!$O299=\"Graded\",'Enrollment Form'!$AR299<>\"\"),\"Y\",\"N\"))","v":"-"},{"$f":"IF($B292=\"N\",\"\",IF(OR('Enrollment Form'!$B299<>\"Subscriber\",'Enrollment Form'!$C299=\"ROC\"),\"-\",IF(AND('Enrollment Form'!$B299=\"Subscriber\",'Enrollment Form'!$C299=\"Enroll\",'Enrollment Form'!$AJ299<>\"\"),\"Y\",\"N\")))","v":""},{"$f":"IF($B292=\"N\",\"\",IF(OR('Enrollment Form'!$B299<>\"Subscriber\",'Enrollment Form'!$C299=\"ROC\"),\"-\",IF(AND('Enrollment Form'!$B299=\"Subscriber\",'Enrollment Form'!$C299=\"Enroll\",'Enrollment Form'!$AK299<>\"\"),\"Y\",\"N\")))","v":""},{"$f":"IF($B292=\"N\",\"\",IF(OR('Enrollment Form'!$B299<>\"Subscriber\",'Enrollment Form'!$C299=\"ROC\"),\"-\",IF(AND('Enrollment Form'!$B299=\"Subscriber\",'Enrollment Form'!$C299=\"Enroll\",'Enrollment Form'!$AL299<>\"\"),\"Y\",\"N\")))","v":""},{"$f":"IF($B292=\"N\",\"\",IF(OR('Enrollment Form'!$B299<>\"Subscriber\",'Enrollment Form'!$C299=\"ROC\"),\"-\",IF(AND('Enrollment Form'!$B299=\"Subscriber\",'Enrollment Form'!$C299=\"Enroll\",'Enrollment Form'!$AP299<>\"\"),\"Y\",\"N\")))","v":""},{"$f":"IF($B292=\"N\",\"\",IF(OR('Enrollment Form'!$B299<>\"Subscriber\",'Enrollment Form'!$C299=\"ROC\"),\"-\",IF(AND('Enrollment Form'!$B299=\"Subscriber\",'Enrollment Form'!$C299=\"Enroll\",'Enrollment Form'!$AQ299<>\"\"),\"Y\",\"N\")))","v":""},{"$f":"IF($B292=\"N\",\"\",IF(OR('Enrollment Form'!$B299<>\"Subscriber\",'Enrollment Form'!$C299=\"ROC\"),\"-\",IF(AND('Enrollment Form'!$B299=\"Subscriber\",'Enrollment Form'!$C299=\"Enroll\",'Enrollment Form'!$AS299<>\"\"),\"Y\",\"N\")))","v":""},{"$f":"IF($B292=\"N\",\"\",IF($Q292=\"-\",\"-\",IF(AND($Q292=\"Y\",'Enrollment Form'!$AS299=\"No\"),\"-\",IF(AND($Q292=\"Y\",'Enrollment Form'!$AS299=\"Yes\",'Enrollment Form'!$AT299<>\"\"),\"Y\",\"N\"))))","v":""},{"$f":"IF($B292=\"N\",\"\",IF(OR('Enrollment Form'!$B299<>\"Subscriber\",'Enrollment Form'!$C299=\"ROC\"),\"-\",IF(AND('Enrollment Form'!$B299=\"Subscriber\",'Enrollment Form'!$C299=\"Enroll\",'Enrollment Form'!$CV299<>\"\"),\"Y\",\"N\")))","v":""},{"$f":"IF($B292=\"N\",\"\",IF($S292=\"-\",\"-\",IF(AND($S292=\"Y\",'Enrollment Form'!$CV299=\"No\"),\"-\",IF(AND($S292=\"Y\",'Enrollment Form'!$CV299=\"Yes\",'Enrollment Form'!$CW299<>\"\"),\"Y\",\"N\"))))","v":""},{"$f":"IF(OR('Enrollment Form'!$AY299=\"Yes\",'Enrollment Form'!$AY299=\"\"),\"-\",IF(OR(AND('Enrollment Form'!$AY299=\"No\",ISERROR(FIND(\"HMO\",VLOOKUP('Enrollment Form'!G299,'Enrollment Form'!H$11:J$1000,3,FALSE),1))=FALSE,COUNTA('Enrollment Form'!$AZ299:$BC299)=4),AND('Enrollment Form'!$AY299=\"No\",ISERROR(FIND(\"HMO\",VLOOKUP('Enrollment Form'!G299,'Enrollment Form'!H$11:J$1000,3,FALSE),1))=FALSE,COUNTA('Enrollment Form'!$BT299:$BW299)=4)),\"Y\",\"N\"))","v":"-"},{"$f":"IF($B292=\"N\",\"\",IF('Enrollment Form'!$B299=\"Subscriber\",\"-\",IF(COUNTA('Enrollment Form'!$BL299,'Enrollment Form'!$BN299)=2,\"Y\",\"N\")))","v":""},{"$f":"IF($B292=\"N\",\"\",IF(OR('Enrollment Form'!$AX299=\"\",'Enrollment Form'!$AX299=\"No\"),\"-\",IF(AND('Enrollment Form'!$AX299=\"Yes\",COUNTA('Enrollment Form'!$CR299)=1),\"Y\",\"N\")))","v":""},{"$f":"IF(OR('Enrollment Form'!$CR299=\"\",'Enrollment Form'!$CR299=\"No\"),\"-\",IF(COUNTA('Enrollment Form'!$CT299:$CU299)=2,\"Y\",\"N\"))","v":"-"},{"$f":"IF($B292=\"N\",\"\",IF(COUNTIF('Enrollment Form'!$DG299:$DP299,\"Other\")=COUNTA('Enrollment Form'!$DK299,'Enrollment Form'!$DH299,'Enrollment Form'!$DN299,'Enrollment Form'!$DQ299),\"Y\",\"N\"))","v":""},{"$f":"IF($B292=\"N\",\"\",IF(OR('Enrollment Form'!B299<>\"Subscriber\",'Enrollment Form'!C299=\"ROC\",COUNTIF('Enrollment Form'!AV299:AW299,\"Yes\")>=1),\"-\",IF(AND('Enrollment Form'!C299=\"Enroll\",COUNTIF('Enrollment Form'!AV299:AW299,\"No\")=2,'Enrollment Form'!AX299=\"\"),\"N\",\"Y\")))","v":""},{"$f":"IF(OR(B292=\"N\",'Enrollment Form'!B299<>\"Subscriber\",'Enrollment Form'!C299=\"ROC\",'Enrollment Form'!O299<>\"Multiple of Salary\"),\"-\",IF(COUNTA('Enrollment Form'!T299:U299)<2,\"N\",\"Y\"))","v":"-"},{"$f":"IF(B292=\"N\",\"\",IF(OR('Enrollment Form'!C299=\"ROC\",'Enrollment Form'!B299<>\"Subscriber\",'Enrollment Form'!O299=\"Waive\",'Enrollment Form'!O299=\"\"),\"-\",IF('Enrollment Form'!P299=\"\",\"N\",\"Y\")))","v":""},{"$f":"IF($B292=\"N\",\"\",IF(AND('Enrollment Form'!$C299=\"ROC\",'Enrollment Form'!$DR299<>\"\"),\"Y\",IF(AND('Enrollment Form'!$C299=\"ROC\",'Enrollment Form'!$DR299=\"\"),\"N\",IF(AND('Enrollment Form'!$C299=\"Enroll\",'Enrollment Form'!$B299=\"Subscriber\",'Enrollment Form'!$CX299=\"No\",'Enrollment Form'!$DR299=\"\"),\"N\",IF(AND('Enrollment Form'!$C299=\"Enroll\",'Enrollment Form'!$B299=\"Subscriber\",'Enrollment Form'!$CX299=\"Yes\"),\"-\",\"Y\")))))","v":""},{"$f":"IF($B292=\"N\",\"\",IF(AND('Enrollment Form'!$C299=\"ROC\",'Enrollment Form'!$DS299<>\"\"),\"Y\",IF(AND('Enrollment Form'!$C299=\"ROC\",'Enrollment Form'!$DS299=\"\"),\"N\",IF(AND('Enrollment Form'!$C299=\"Enroll\",'Enrollment Form'!$B299=\"Subscriber\",'Enrollment Form'!$CX299=\"No\",'Enrollment Form'!$DS299=\"\"),\"N\",IF(AND('Enrollment Form'!$C299=\"Enroll\",'Enrollment Form'!$B299=\"Subscriber\",'Enrollment Form'!$CX299=\"Yes\"),\"-\",\"Y\")))))","v":""},{"$f":"IF('Enrollment Form'!AH299=\"\",\"\",IF(ISERROR(SEARCH(\".\",'Enrollment Form'!AH299,SEARCH(\"@\",'Enrollment Form'!AH299))),\"N\",\"Y\"))","v":""},{"$f":"IF(OR($B292=\"N\",'Enrollment Form'!$G299=\"\"),\"\",IF('Enrollment Form'!$B299<>\"Subscriber\",\"-\",IF(COUNTIF('Enrollment Form'!$AV299:$AW299,\"Yes\")=2,\"N\",\"Y\")))","v":""},{"$f":"IF(OR('Enrollment Form'!$CJ299=\"\",'Enrollment Form'!$CJ299=\"No\"),\"-\",IF(AND('Enrollment Form'!$CJ299=\"Yes\",'Enrollment Form'!$CK299=\"\"),\"N\",\"Y\"))","v":"-"},{"$f":"IF(OR('Enrollment Form'!$CL299=\"\",'Enrollment Form'!$CL299=\"No\"),\"-\",IF(AND('Enrollment Form'!$CL299=\"Yes\",'Enrollment Form'!$CM299=\"\"),\"N\",\"Y\"))","v":"-"},{"$f":"IF(OR('Enrollment Form'!$CN299=\"\",'Enrollment Form'!$CN299=\"No\"),\"-\",IF(AND('Enrollment Form'!$CN299=\"Yes\",'Enrollment Form'!$CO299=\"\"),\"N\",\"Y\"))","v":"-"},{"$f":"IF(OR('Enrollment Form'!$CN299=\"\",'Enrollment Form'!$CN299=\"No\"),\"-\",IF(AND('Enrollment Form'!$CN299=\"Yes\",'Enrollment Form'!$CP299=\"\"),\"N\",\"Y\"))","v":"-"},{"$f":"IF('Enrollment Form'!B299<>\"Subscriber\",\"-\",IF(AND('Enrollment Form'!B299=\"Subscriber\",'Enrollment Form'!C299=\"Enroll\",'Enrollment Form'!AA299=\"\"),\"N\",\"Y\"))","v":"-"},{"$f":"IF(OR('Enrollment Form'!B299=\"Subscriber\",'Enrollment Form'!B299=\"\"),\"-\",IF('Enrollment Form'!BP299=\"\",\"N\",\"Y\"))","v":"-"},{"$f":"IF('Enrollment Form'!B299<>\"Subscriber\",\"-\",IF(AND('Enrollment Form'!B299=\"Subscriber\",'Enrollment Form'!G299=\"\"),\"N\",\"Y\"))","v":"-"},{"$f":"IF('Enrollment Form'!A299=\"\",\"\",IF('Enrollment Form'!B299=\"Subscriber\",\"-\",IF(AND('Enrollment Form'!B299<>\"Subscriber\",'Enrollment Form'!G299='Enrollment Form'!H299),\"N\",\"Y\")))","v":""},0]
[300,{"$f":"IF('Enrollment Form'!$A300<>\"\",\"Y\",\"N\")","v":"N"},{"$f":"IF(AND('Enrollment Form'!$B300=\"\",'Enrollment Form'!$C300<>\"\"),\"N\",IF($B293=\"N\",\"\",\"Y\"))","v":""},{"$f":"IF(OR($B293=\"N\",'Enrollment Form'!G300=\"\"),\"\",IF('Enrollment Form'!$B300<>\"Subscriber\",\"\",IF('Enrollment Form'!$G300='Enrollment Form'!$H300,\"Y\",\"N\")))","v":""},{"$f":"IF($B293=\"N\",\"\",IF(AND(COUNTIFS('Enrollment Form'!$H$11:$H$1000,'Enrollment Form'!$H300,'Enrollment Form'!$B$11:$B$1000,'Enrollment Form'!$B300)>1,'Enrollment Form'!$H300<>\"\"),\"N\",\"Y\"))","v":""},{"$f":"IF($B293=\"N\",\"\",IF(LEN('Enrollment Form'!$Y300)=0,\"\",IF(LEN('Enrollment Form'!$Y300)<>5,\"N\",\"Y\")))","v":""},{"$f":"IF($B293=\"N\",\"\",IF(LEN('Enrollment Form'!$AD300=0),\"\",IF(LEN('Enrollment Form'!$AD300)<>5,\"N\",\"Y\")))","v":""},{"$f":"IF($B293=\"N\",\"\",IF(LEN('Enrollment Form'!$BS300=0),\"\",IF(LEN('Enrollment Form'!$BS300)<>5,\"N\",\"Y\")))","v":""},{"$f":"IF($B293=\"N\",\"\",IF(LEN('Enrollment Form'!$AE300)=0,\"\",IF(LEN('Enrollment Form'!$AE300)<>10,\"N\",\"Y\")))","v":""},{"$f":"IF($B293=\"N\",\"\",IF(LEN('Enrollment Form'!$AF300)=0,\"\",IF(LEN('Enrollment Form'!$AF300)<>10,\"N\",\"Y\")))","v":""},{"$f":"IF('Enrollment Form'!$O300<>\"Graded\",\"-\",IF(AND('Enrollment Form'!$O300=\"Graded\",'Enrollment Form'!$AR300<>\"\"),\"Y\",\"N\"))","v":"-"},{"$f":"IF($B293=\"N\",\"\",IF(OR('Enrollment Form'!$B300<>\"Subscriber\",'Enrollment Form'!$C300=\"ROC\"),\"-\",IF(AND('Enrollment Form'!$B300=\"Subscriber\",'Enrollment Form'!$C300=\"Enroll\",'Enrollment Form'!$AJ300<>\"\"),\"Y\",\"N\")))","v":""},{"$f":"IF($B293=\"N\",\"\",IF(OR('Enrollment Form'!$B300<>\"Subscriber\",'Enrollment Form'!$C300=\"ROC\"),\"-\",IF(AND('Enrollment Form'!$B300=\"Subscriber\",'Enrollment Form'!$C300=\"Enroll\",'Enrollment Form'!$AK300<>\"\"),\"Y\",\"N\")))","v":""},{"$f":"IF($B293=\"N\",\"\",IF(OR('Enrollment Form'!$B300<>\"Subscriber\",'Enrollment Form'!$C300=\"ROC\"),\"-\",IF(AND('Enrollment Form'!$B300=\"Subscriber\",'Enrollment Form'!$C300=\"Enroll\",'Enrollment Form'!$AL300<>\"\"),\"Y\",\"N\")))","v":""},{"$f":"IF($B293=\"N\",\"\",IF(OR('Enrollment Form'!$B300<>\"Subscriber\",'Enrollment Form'!$C300=\"ROC\"),\"-\",IF(AND('Enrollment Form'!$B300=\"Subscriber\",'Enrollment Form'!$C300=\"Enroll\",'Enrollment Form'!$AP300<>\"\"),\"Y\",\"N\")))","v":""},{"$f":"IF($B293=\"N\",\"\",IF(OR('Enrollment Form'!$B300<>\"Subscriber\",'Enrollment Form'!$C300=\"ROC\"),\"-\",IF(AND('Enrollment Form'!$B300=\"Subscriber\",'Enrollment Form'!$C300=\"Enroll\",'Enrollment Form'!$AQ300<>\"\"),\"Y\",\"N\")))","v":""},{"$f":"IF($B293=\"N\",\"\",IF(OR('Enrollment Form'!$B300<>\"Subscriber\",'Enrollment Form'!$C300=\"ROC\"),\"-\",IF(AND('Enrollment Form'!$B300=\"Subscriber\",'Enrollment Form'!$C300=\"Enroll\",'Enrollment Form'!$AS300<>\"\"),\"Y\",\"N\")))","v":""},{"$f":"IF($B293=\"N\",\"\",IF($Q293=\"-\",\"-\",IF(AND($Q293=\"Y\",'Enrollment Form'!$AS300=\"No\"),\"-\",IF(AND($Q293=\"Y\",'Enrollment Form'!$AS300=\"Yes\",'Enrollment Form'!$AT300<>\"\"),\"Y\",\"N\"))))","v":""},{"$f":"IF($B293=\"N\",\"\",IF(OR('Enrollment Form'!$B300<>\"Subscriber\",'Enrollment Form'!$C300=\"ROC\"),\"-\",IF(AND('Enrollment Form'!$B300=\"Subscriber\",'Enrollment Form'!$C300=\"Enroll\",'Enrollment Form'!$CV300<>\"\"),\"Y\",\"N\")))","v":""},{"$f":"IF($B293=\"N\",\"\",IF($S293=\"-\",\"-\",IF(AND($S293=\"Y\",'Enrollment Form'!$CV300=\"No\"),\"-\",IF(AND($S293=\"Y\",'Enrollment Form'!$CV300=\"Yes\",'Enrollment Form'!$CW300<>\"\"),\"Y\",\"N\"))))","v":""},{"$f":"IF(OR('Enrollment Form'!$AY300=\"Yes\",'Enrollment Form'!$AY300=\"\"),\"-\",IF(OR(AND('Enrollment Form'!$AY300=\"No\",ISERROR(FIND(\"HMO\",VLOOKUP('Enrollment Form'!G300,'Enrollment Form'!H$11:J$1000,3,FALSE),1))=FALSE,COUNTA('Enrollment Form'!$AZ300:$BC300)=4),AND('Enrollment Form'!$AY300=\"No\",ISERROR(FIND(\"HMO\",VLOOKUP('Enrollment Form'!G300,'Enrollment Form'!H$11:J$1000,3,FALSE),1))=FALSE,COUNTA('Enrollment Form'!$BT300:$BW300)=4)),\"Y\",\"N\"))","v":"-"},{"$f":"IF($B293=\"N\",\"\",IF('Enrollment Form'!$B300=\"Subscriber\",\"-\",IF(COUNTA('Enrollment Form'!$BL300,'Enrollment Form'!$BN300)=2,\"Y\",\"N\")))","v":""},{"$f":"IF($B293=\"N\",\"\",IF(OR('Enrollment Form'!$AX300=\"\",'Enrollment Form'!$AX300=\"No\"),\"-\",IF(AND('Enrollment Form'!$AX300=\"Yes\",COUNTA('Enrollment Form'!$CR300)=1),\"Y\",\"N\")))","v":""},{"$f":"IF(OR('Enrollment Form'!$CR300=\"\",'Enrollment Form'!$CR300=\"No\"),\"-\",IF(COUNTA('Enrollment Form'!$CT300:$CU300)=2,\"Y\",\"N\"))","v":"-"},{"$f":"IF($B293=\"N\",\"\",IF(COUNTIF('Enrollment Form'!$DG300:$DP300,\"Other\")=COUNTA('Enrollment Form'!$DK300,'Enrollment Form'!$DH300,'Enrollment Form'!$DN300,'Enrollment Form'!$DQ300),\"Y\",\"N\"))","v":""},{"$f":"IF($B293=\"N\",\"\",IF(OR('Enrollment Form'!B300<>\"Subscriber\",'Enrollment Form'!C300=\"ROC\",COUNTIF('Enrollment Form'!AV300:AW300,\"Yes\")>=1),\"-\",IF(AND('Enrollment Form'!C300=\"Enroll\",COUNTIF('Enrollment Form'!AV300:AW300,\"No\")=2,'Enrollment Form'!AX300=\"\"),\"N\",\"Y\")))","v":""},{"$f":"IF(OR(B293=\"N\",'Enrollment Form'!B300<>\"Subscriber\",'Enrollment Form'!C300=\"ROC\",'Enrollment Form'!O300<>\"Multiple of Salary\"),\"-\",IF(COUNTA('Enrollment Form'!T300:U300)<2,\"N\",\"Y\"))","v":"-"},{"$f":"IF(B293=\"N\",\"\",IF(OR('Enrollment Form'!C300=\"ROC\",'Enrollment Form'!B300<>\"Subscriber\",'Enrollment Form'!O300=\"Waive\",'Enrollment Form'!O300=\"\"),\"-\",IF('Enrollment Form'!P300=\"\",\"N\",\"Y\")))","v":""},{"$f":"IF($B293=\"N\",\"\",IF(AND('Enrollment Form'!$C300=\"ROC\",'Enrollment Form'!$DR300<>\"\"),\"Y\",IF(AND('Enrollment Form'!$C300=\"ROC\",'Enrollment Form'!$DR300=\"\"),\"N\",IF(AND('Enrollment Form'!$C300=\"Enroll\",'Enrollment Form'!$B300=\"Subscriber\",'Enrollment Form'!$CX300=\"No\",'Enrollment Form'!$DR300=\"\"),\"N\",IF(AND('Enrollment Form'!$C300=\"Enroll\",'Enrollment Form'!$B300=\"Subscriber\",'Enrollment Form'!$CX300=\"Yes\"),\"-\",\"Y\")))))","v":""},{"$f":"IF($B293=\"N\",\"\",IF(AND('Enrollment Form'!$C300=\"ROC\",'Enrollment Form'!$DS300<>\"\"),\"Y\",IF(AND('Enrollment Form'!$C300=\"ROC\",'Enrollment Form'!$DS300=\"\"),\"N\",IF(AND('Enrollment Form'!$C300=\"Enroll\",'Enrollment Form'!$B300=\"Subscriber\",'Enrollment Form'!$CX300=\"No\",'Enrollment Form'!$DS300=\"\"),\"N\",IF(AND('Enrollment Form'!$C300=\"Enroll\",'Enrollment Form'!$B300=\"Subscriber\",'Enrollment Form'!$CX300=\"Yes\"),\"-\",\"Y\")))))","v":""},{"$f":"IF('Enrollment Form'!AH300=\"\",\"\",IF(ISERROR(SEARCH(\".\",'Enrollment Form'!AH300,SEARCH(\"@\",'Enrollment Form'!AH300))),\"N\",\"Y\"))","v":""},{"$f":"IF(OR($B293=\"N\",'Enrollment Form'!$G300=\"\"),\"\",IF('Enrollment Form'!$B300<>\"Subscriber\",\"-\",IF(COUNTIF('Enrollment Form'!$AV300:$AW300,\"Yes\")=2,\"N\",\"Y\")))","v":""},{"$f":"IF(OR('Enrollment Form'!$CJ300=\"\",'Enrollment Form'!$CJ300=\"No\"),\"-\",IF(AND('Enrollment Form'!$CJ300=\"Yes\",'Enrollment Form'!$CK300=\"\"),\"N\",\"Y\"))","v":"-"},{"$f":"IF(OR('Enrollment Form'!$CL300=\"\",'Enrollment Form'!$CL300=\"No\"),\"-\",IF(AND('Enrollment Form'!$CL300=\"Yes\",'Enrollment Form'!$CM300=\"\"),\"N\",\"Y\"))","v":"-"},{"$f":"IF(OR('Enrollment Form'!$CN300=\"\",'Enrollment Form'!$CN300=\"No\"),\"-\",IF(AND('Enrollment Form'!$CN300=\"Yes\",'Enrollment Form'!$CO300=\"\"),\"N\",\"Y\"))","v":"-"},{"$f":"IF(OR('Enrollment Form'!$CN300=\"\",'Enrollment Form'!$CN300=\"No\"),\"-\",IF(AND('Enrollment Form'!$CN300=\"Yes\",'Enrollment Form'!$CP300=\"\"),\"N\",\"Y\"))","v":"-"},{"$f":"IF('Enrollment Form'!B300<>\"Subscriber\",\"-\",IF(AND('Enrollment Form'!B300=\"Subscriber\",'Enrollment Form'!C300=\"Enroll\",'Enrollment Form'!AA300=\"\"),\"N\",\"Y\"))","v":"-"},{"$f":"IF(OR('Enrollment Form'!B300=\"Subscriber\",'Enrollment Form'!B300=\"\"),\"-\",IF('Enrollment Form'!BP300=\"\",\"N\",\"Y\"))","v":"-"},{"$f":"IF('Enrollment Form'!B300<>\"Subscriber\",\"-\",IF(AND('Enrollment Form'!B300=\"Subscriber\",'Enrollment Form'!G300=\"\"),\"N\",\"Y\"))","v":"-"},{"$f":"IF('Enrollment Form'!A300=\"\",\"\",IF('Enrollment Form'!B300=\"Subscriber\",\"-\",IF(AND('Enrollment Form'!B300<>\"Subscriber\",'Enrollment Form'!G300='Enrollment Form'!H300),\"N\",\"Y\")))","v":""},0]
[301,{"$f":"IF('Enrollment Form'!$A301<>\"\",\"Y\",\"N\")","v":"N"},{"$f":"IF(AND('Enrollment Form'!$B301=\"\",'Enrollment Form'!$C301<>\"\"),\"N\",IF($B294=\"N\",\"\",\"Y\"))","v":""},{"$f":"IF(OR($B294=\"N\",'Enrollment Form'!G301=\"\"),\"\",IF('Enrollment Form'!$B301<>\"Subscriber\",\"\",IF('Enrollment Form'!$G301='Enrollment Form'!$H301,\"Y\",\"N\")))","v":""},{"$f":"IF($B294=\"N\",\"\",IF(AND(COUNTIFS('Enrollment Form'!$H$11:$H$1000,'Enrollment Form'!$H301,'Enrollment Form'!$B$11:$B$1000,'Enrollment Form'!$B301)>1,'Enrollment Form'!$H301<>\"\"),\"N\",\"Y\"))","v":""},{"$f":"IF($B294=\"N\",\"\",IF(LEN('Enrollment Form'!$Y301)=0,\"\",IF(LEN('Enrollment Form'!$Y301)<>5,\"N\",\"Y\")))","v":""},{"$f":"IF($B294=\"N\",\"\",IF(LEN('Enrollment Form'!$AD301=0),\"\",IF(LEN('Enrollment Form'!$AD301)<>5,\"N\",\"Y\")))","v":""},{"$f":"IF($B294=\"N\",\"\",IF(LEN('Enrollment Form'!$BS301=0),\"\",IF(LEN('Enrollment Form'!$BS301)<>5,\"N\",\"Y\")))","v":""},{"$f":"IF($B294=\"N\",\"\",IF(LEN('Enrollment Form'!$AE301)=0,\"\",IF(LEN('Enrollment Form'!$AE301)<>10,\"N\",\"Y\")))","v":""},{"$f":"IF($B294=\"N\",\"\",IF(LEN('Enrollment Form'!$AF301)=0,\"\",IF(LEN('Enrollment Form'!$AF301)<>10,\"N\",\"Y\")))","v":""},{"$f":"IF('Enrollment Form'!$O301<>\"Graded\",\"-\",IF(AND('Enrollment Form'!$O301=\"Graded\",'Enrollment Form'!$AR301<>\"\"),\"Y\",\"N\"))","v":"-"},{"$f":"IF($B294=\"N\",\"\",IF(OR('Enrollment Form'!$B301<>\"Subscriber\",'Enrollment Form'!$C301=\"ROC\"),\"-\",IF(AND('Enrollment Form'!$B301=\"Subscriber\",'Enrollment Form'!$C301=\"Enroll\",'Enrollment Form'!$AJ301<>\"\"),\"Y\",\"N\")))","v":""},{"$f":"IF($B294=\"N\",\"\",IF(OR('Enrollment Form'!$B301<>\"Subscriber\",'Enrollment Form'!$C301=\"ROC\"),\"-\",IF(AND('Enrollment Form'!$B301=\"Subscriber\",'Enrollment Form'!$C301=\"Enroll\",'Enrollment Form'!$AK301<>\"\"),\"Y\",\"N\")))","v":""},{"$f":"IF($B294=\"N\",\"\",IF(OR('Enrollment Form'!$B301<>\"Subscriber\",'Enrollment Form'!$C301=\"ROC\"),\"-\",IF(AND('Enrollment Form'!$B301=\"Subscriber\",'Enrollment Form'!$C301=\"Enroll\",'Enrollment Form'!$AL301<>\"\"),\"Y\",\"N\")))","v":""},{"$f":"IF($B294=\"N\",\"\",IF(OR('Enrollment Form'!$B301<>\"Subscriber\",'Enrollment Form'!$C301=\"ROC\"),\"-\",IF(AND('Enrollment Form'!$B301=\"Subscriber\",'Enrollment Form'!$C301=\"Enroll\",'Enrollment Form'!$AP301<>\"\"),\"Y\",\"N\")))","v":""},{"$f":"IF($B294=\"N\",\"\",IF(OR('Enrollment Form'!$B301<>\"Subscriber\",'Enrollment Form'!$C301=\"ROC\"),\"-\",IF(AND('Enrollment Form'!$B301=\"Subscriber\",'Enrollment Form'!$C301=\"Enroll\",'Enrollment Form'!$AQ301<>\"\"),\"Y\",\"N\")))","v":""},{"$f":"IF($B294=\"N\",\"\",IF(OR('Enrollment Form'!$B301<>\"Subscriber\",'Enrollment Form'!$C301=\"ROC\"),\"-\",IF(AND('Enrollment Form'!$B301=\"Subscriber\",'Enrollment Form'!$C301=\"Enroll\",'Enrollment Form'!$AS301<>\"\"),\"Y\",\"N\")))","v":""},{"$f":"IF($B294=\"N\",\"\",IF($Q294=\"-\",\"-\",IF(AND($Q294=\"Y\",'Enrollment Form'!$AS301=\"No\"),\"-\",IF(AND($Q294=\"Y\",'Enrollment Form'!$AS301=\"Yes\",'Enrollment Form'!$AT301<>\"\"),\"Y\",\"N\"))))","v":""},{"$f":"IF($B294=\"N\",\"\",IF(OR('Enrollment Form'!$B301<>\"Subscriber\",'Enrollment Form'!$C301=\"ROC\"),\"-\",IF(AND('Enrollment Form'!$B301=\"Subscriber\",'Enrollment Form'!$C301=\"Enroll\",'Enrollment Form'!$CV301<>\"\"),\"Y\",\"N\")))","v":""},{"$f":"IF($B294=\"N\",\"\",IF($S294=\"-\",\"-\",IF(AND($S294=\"Y\",'Enrollment Form'!$CV301=\"No\"),\"-\",IF(AND($S294=\"Y\",'Enrollment Form'!$CV301=\"Yes\",'Enrollment Form'!$CW301<>\"\"),\"Y\",\"N\"))))","v":""},{"$f":"IF(OR('Enrollment Form'!$AY301=\"Yes\",'Enrollment Form'!$AY301=\"\"),\"-\",IF(OR(AND('Enrollment Form'!$AY301=\"No\",ISERROR(FIND(\"HMO\",VLOOKUP('Enrollment Form'!G301,'Enrollment Form'!H$11:J$1000,3,FALSE),1))=FALSE,COUNTA('Enrollment Form'!$AZ301:$BC301)=4),AND('Enrollment Form'!$AY301=\"No\",ISERROR(FIND(\"HMO\",VLOOKUP('Enrollment Form'!G301,'Enrollment Form'!H$11:J$1000,3,FALSE),1))=FALSE,COUNTA('Enrollment Form'!$BT301:$BW301)=4)),\"Y\",\"N\"))","v":"-"},{"$f":"IF($B294=\"N\",\"\",IF('Enrollment Form'!$B301=\"Subscriber\",\"-\",IF(COUNTA('Enrollment Form'!$BL301,'Enrollment Form'!$BN301)=2,\"Y\",\"N\")))","v":""},{"$f":"IF($B294=\"N\",\"\",IF(OR('Enrollment Form'!$AX301=\"\",'Enrollment Form'!$AX301=\"No\"),\"-\",IF(AND('Enrollment Form'!$AX301=\"Yes\",COUNTA('Enrollment Form'!$CR301)=1),\"Y\",\"N\")))","v":""},{"$f":"IF(OR('Enrollment Form'!$CR301=\"\",'Enrollment Form'!$CR301=\"No\"),\"-\",IF(COUNTA('Enrollment Form'!$CT301:$CU301)=2,\"Y\",\"N\"))","v":"-"},{"$f":"IF($B294=\"N\",\"\",IF(COUNTIF('Enrollment Form'!$DG301:$DP301,\"Other\")=COUNTA('Enrollment Form'!$DK301,'Enrollment Form'!$DH301,'Enrollment Form'!$DN301,'Enrollment Form'!$DQ301),\"Y\",\"N\"))","v":""},{"$f":"IF($B294=\"N\",\"\",IF(OR('Enrollment Form'!B301<>\"Subscriber\",'Enrollment Form'!C301=\"ROC\",COUNTIF('Enrollment Form'!AV301:AW301,\"Yes\")>=1),\"-\",IF(AND('Enrollment Form'!C301=\"Enroll\",COUNTIF('Enrollment Form'!AV301:AW301,\"No\")=2,'Enrollment Form'!AX301=\"\"),\"N\",\"Y\")))","v":""},{"$f":"IF(OR(B294=\"N\",'Enrollment Form'!B301<>\"Subscriber\",'Enrollment Form'!C301=\"ROC\",'Enrollment Form'!O301<>\"Multiple of Salary\"),\"-\",IF(COUNTA('Enrollment Form'!T301:U301)<2,\"N\",\"Y\"))","v":"-"},{"$f":"IF(B294=\"N\",\"\",IF(OR('Enrollment Form'!C301=\"ROC\",'Enrollment Form'!B301<>\"Subscriber\",'Enrollment Form'!O301=\"Waive\",'Enrollment Form'!O301=\"\"),\"-\",IF('Enrollment Form'!P301=\"\",\"N\",\"Y\")))","v":""},{"$f":"IF($B294=\"N\",\"\",IF(AND('Enrollment Form'!$C301=\"ROC\",'Enrollment Form'!$DR301<>\"\"),\"Y\",IF(AND('Enrollment Form'!$C301=\"ROC\",'Enrollment Form'!$DR301=\"\"),\"N\",IF(AND('Enrollment Form'!$C301=\"Enroll\",'Enrollment Form'!$B301=\"Subscriber\",'Enrollment Form'!$CX301=\"No\",'Enrollment Form'!$DR301=\"\"),\"N\",IF(AND('Enrollment Form'!$C301=\"Enroll\",'Enrollment Form'!$B301=\"Subscriber\",'Enrollment Form'!$CX301=\"Yes\"),\"-\",\"Y\")))))","v":""},{"$f":"IF($B294=\"N\",\"\",IF(AND('Enrollment Form'!$C301=\"ROC\",'Enrollment Form'!$DS301<>\"\"),\"Y\",IF(AND('Enrollment Form'!$C301=\"ROC\",'Enrollment Form'!$DS301=\"\"),\"N\",IF(AND('Enrollment Form'!$C301=\"Enroll\",'Enrollment Form'!$B301=\"Subscriber\",'Enrollment Form'!$CX301=\"No\",'Enrollment Form'!$DS301=\"\"),\"N\",IF(AND('Enrollment Form'!$C301=\"Enroll\",'Enrollment Form'!$B301=\"Subscriber\",'Enrollment Form'!$CX301=\"Yes\"),\"-\",\"Y\")))))","v":""},{"$f":"IF('Enrollment Form'!AH301=\"\",\"\",IF(ISERROR(SEARCH(\".\",'Enrollment Form'!AH301,SEARCH(\"@\",'Enrollment Form'!AH301))),\"N\",\"Y\"))","v":""},{"$f":"IF(OR($B294=\"N\",'Enrollment Form'!$G301=\"\"),\"\",IF('Enrollment Form'!$B301<>\"Subscriber\",\"-\",IF(COUNTIF('Enrollment Form'!$AV301:$AW301,\"Yes\")=2,\"N\",\"Y\")))","v":""},{"$f":"IF(OR('Enrollment Form'!$CJ301=\"\",'Enrollment Form'!$CJ301=\"No\"),\"-\",IF(AND('Enrollment Form'!$CJ301=\"Yes\",'Enrollment Form'!$CK301=\"\"),\"N\",\"Y\"))","v":"-"},{"$f":"IF(OR('Enrollment Form'!$CL301=\"\",'Enrollment Form'!$CL301=\"No\"),\"-\",IF(AND('Enrollment Form'!$CL301=\"Yes\",'Enrollment Form'!$CM301=\"\"),\"N\",\"Y\"))","v":"-"},{"$f":"IF(OR('Enrollment Form'!$CN301=\"\",'Enrollment Form'!$CN301=\"No\"),\"-\",IF(AND('Enrollment Form'!$CN301=\"Yes\",'Enrollment Form'!$CO301=\"\"),\"N\",\"Y\"))","v":"-"},{"$f":"IF(OR('Enrollment Form'!$CN301=\"\",'Enrollment Form'!$CN301=\"No\"),\"-\",IF(AND('Enrollment Form'!$CN301=\"Yes\",'Enrollment Form'!$CP301=\"\"),\"N\",\"Y\"))","v":"-"},{"$f":"IF('Enrollment Form'!B301<>\"Subscriber\",\"-\",IF(AND('Enrollment Form'!B301=\"Subscriber\",'Enrollment Form'!C301=\"Enroll\",'Enrollment Form'!AA301=\"\"),\"N\",\"Y\"))","v":"-"},{"$f":"IF(OR('Enrollment Form'!B301=\"Subscriber\",'Enrollment Form'!B301=\"\"),\"-\",IF('Enrollment Form'!BP301=\"\",\"N\",\"Y\"))","v":"-"},{"$f":"IF('Enrollment Form'!B301<>\"Subscriber\",\"-\",IF(AND('Enrollment Form'!B301=\"Subscriber\",'Enrollment Form'!G301=\"\"),\"N\",\"Y\"))","v":"-"},{"$f":"IF('Enrollment Form'!A301=\"\",\"\",IF('Enrollment Form'!B301=\"Subscriber\",\"-\",IF(AND('Enrollment Form'!B301<>\"Subscriber\",'Enrollment Form'!G301='Enrollment Form'!H301),\"N\",\"Y\")))","v":""},0]
[302,{"$f":"IF('Enrollment Form'!$A302<>\"\",\"Y\",\"N\")","v":"N"},{"$f":"IF(AND('Enrollment Form'!$B302=\"\",'Enrollment Form'!$C302<>\"\"),\"N\",IF($B295=\"N\",\"\",\"Y\"))","v":""},{"$f":"IF(OR($B295=\"N\",'Enrollment Form'!G302=\"\"),\"\",IF('Enrollment Form'!$B302<>\"Subscriber\",\"\",IF('Enrollment Form'!$G302='Enrollment Form'!$H302,\"Y\",\"N\")))","v":""},{"$f":"IF($B295=\"N\",\"\",IF(AND(COUNTIFS('Enrollment Form'!$H$11:$H$1000,'Enrollment Form'!$H302,'Enrollment Form'!$B$11:$B$1000,'Enrollment Form'!$B302)>1,'Enrollment Form'!$H302<>\"\"),\"N\",\"Y\"))","v":""},{"$f":"IF($B295=\"N\",\"\",IF(LEN('Enrollment Form'!$Y302)=0,\"\",IF(LEN('Enrollment Form'!$Y302)<>5,\"N\",\"Y\")))","v":""},{"$f":"IF($B295=\"N\",\"\",IF(LEN('Enrollment Form'!$AD302=0),\"\",IF(LEN('Enrollment Form'!$AD302)<>5,\"N\",\"Y\")))","v":""},{"$f":"IF($B295=\"N\",\"\",IF(LEN('Enrollment Form'!$BS302=0),\"\",IF(LEN('Enrollment Form'!$BS302)<>5,\"N\",\"Y\")))","v":""},{"$f":"IF($B295=\"N\",\"\",IF(LEN('Enrollment Form'!$AE302)=0,\"\",IF(LEN('Enrollment Form'!$AE302)<>10,\"N\",\"Y\")))","v":""},{"$f":"IF($B295=\"N\",\"\",IF(LEN('Enrollment Form'!$AF302)=0,\"\",IF(LEN('Enrollment Form'!$AF302)<>10,\"N\",\"Y\")))","v":""},{"$f":"IF('Enrollment Form'!$O302<>\"Graded\",\"-\",IF(AND('Enrollment Form'!$O302=\"Graded\",'Enrollment Form'!$AR302<>\"\"),\"Y\",\"N\"))","v":"-"},{"$f":"IF($B295=\"N\",\"\",IF(OR('Enrollment Form'!$B302<>\"Subscriber\",'Enrollment Form'!$C302=\"ROC\"),\"-\",IF(AND('Enrollment Form'!$B302=\"Subscriber\",'Enrollment Form'!$C302=\"Enroll\",'Enrollment Form'!$AJ302<>\"\"),\"Y\",\"N\")))","v":""},{"$f":"IF($B295=\"N\",\"\",IF(OR('Enrollment Form'!$B302<>\"Subscriber\",'Enrollment Form'!$C302=\"ROC\"),\"-\",IF(AND('Enrollment Form'!$B302=\"Subscriber\",'Enrollment Form'!$C302=\"Enroll\",'Enrollment Form'!$AK302<>\"\"),\"Y\",\"N\")))","v":""},{"$f":"IF($B295=\"N\",\"\",IF(OR('Enrollment Form'!$B302<>\"Subscriber\",'Enrollment Form'!$C302=\"ROC\"),\"-\",IF(AND('Enrollment Form'!$B302=\"Subscriber\",'Enrollment Form'!$C302=\"Enroll\",'Enrollment Form'!$AL302<>\"\"),\"Y\",\"N\")))","v":""},{"$f":"IF($B295=\"N\",\"\",IF(OR('Enrollment Form'!$B302<>\"Subscriber\",'Enrollment Form'!$C302=\"ROC\"),\"-\",IF(AND('Enrollment Form'!$B302=\"Subscriber\",'Enrollment Form'!$C302=\"Enroll\",'Enrollment Form'!$AP302<>\"\"),\"Y\",\"N\")))","v":""},{"$f":"IF($B295=\"N\",\"\",IF(OR('Enrollment Form'!$B302<>\"Subscriber\",'Enrollment Form'!$C302=\"ROC\"),\"-\",IF(AND('Enrollment Form'!$B302=\"Subscriber\",'Enrollment Form'!$C302=\"Enroll\",'Enrollment Form'!$AQ302<>\"\"),\"Y\",\"N\")))","v":""},{"$f":"IF($B295=\"N\",\"\",IF(OR('Enrollment Form'!$B302<>\"Subscriber\",'Enrollment Form'!$C302=\"ROC\"),\"-\",IF(AND('Enrollment Form'!$B302=\"Subscriber\",'Enrollment Form'!$C302=\"Enroll\",'Enrollment Form'!$AS302<>\"\"),\"Y\",\"N\")))","v":""},{"$f":"IF($B295=\"N\",\"\",IF($Q295=\"-\",\"-\",IF(AND($Q295=\"Y\",'Enrollment Form'!$AS302=\"No\"),\"-\",IF(AND($Q295=\"Y\",'Enrollment Form'!$AS302=\"Yes\",'Enrollment Form'!$AT302<>\"\"),\"Y\",\"N\"))))","v":""},{"$f":"IF($B295=\"N\",\"\",IF(OR('Enrollment Form'!$B302<>\"Subscriber\",'Enrollment Form'!$C302=\"ROC\"),\"-\",IF(AND('Enrollment Form'!$B302=\"Subscriber\",'Enrollment Form'!$C302=\"Enroll\",'Enrollment Form'!$CV302<>\"\"),\"Y\",\"N\")))","v":""},{"$f":"IF($B295=\"N\",\"\",IF($S295=\"-\",\"-\",IF(AND($S295=\"Y\",'Enrollment Form'!$CV302=\"No\"),\"-\",IF(AND($S295=\"Y\",'Enrollment Form'!$CV302=\"Yes\",'Enrollment Form'!$CW302<>\"\"),\"Y\",\"N\"))))","v":""},{"$f":"IF(OR('Enrollment Form'!$AY302=\"Yes\",'Enrollment Form'!$AY302=\"\"),\"-\",IF(OR(AND('Enrollment Form'!$AY302=\"No\",ISERROR(FIND(\"HMO\",VLOOKUP('Enrollment Form'!G302,'Enrollment Form'!H$11:J$1000,3,FALSE),1))=FALSE,COUNTA('Enrollment Form'!$AZ302:$BC302)=4),AND('Enrollment Form'!$AY302=\"No\",ISERROR(FIND(\"HMO\",VLOOKUP('Enrollment Form'!G302,'Enrollment Form'!H$11:J$1000,3,FALSE),1))=FALSE,COUNTA('Enrollment Form'!$BT302:$BW302)=4)),\"Y\",\"N\"))","v":"-"},{"$f":"IF($B295=\"N\",\"\",IF('Enrollment Form'!$B302=\"Subscriber\",\"-\",IF(COUNTA('Enrollment Form'!$BL302,'Enrollment Form'!$BN302)=2,\"Y\",\"N\")))","v":""},{"$f":"IF($B295=\"N\",\"\",IF(OR('Enrollment Form'!$AX302=\"\",'Enrollment Form'!$AX302=\"No\"),\"-\",IF(AND('Enrollment Form'!$AX302=\"Yes\",COUNTA('Enrollment Form'!$CR302)=1),\"Y\",\"N\")))","v":""},{"$f":"IF(OR('Enrollment Form'!$CR302=\"\",'Enrollment Form'!$CR302=\"No\"),\"-\",IF(COUNTA('Enrollment Form'!$CT302:$CU302)=2,\"Y\",\"N\"))","v":"-"},{"$f":"IF($B295=\"N\",\"\",IF(COUNTIF('Enrollment Form'!$DG302:$DP302,\"Other\")=COUNTA('Enrollment Form'!$DK302,'Enrollment Form'!$DH302,'Enrollment Form'!$DN302,'Enrollment Form'!$DQ302),\"Y\",\"N\"))","v":""},{"$f":"IF($B295=\"N\",\"\",IF(OR('Enrollment Form'!B302<>\"Subscriber\",'Enrollment Form'!C302=\"ROC\",COUNTIF('Enrollment Form'!AV302:AW302,\"Yes\")>=1),\"-\",IF(AND('Enrollment Form'!C302=\"Enroll\",COUNTIF('Enrollment Form'!AV302:AW302,\"No\")=2,'Enrollment Form'!AX302=\"\"),\"N\",\"Y\")))","v":""},{"$f":"IF(OR(B295=\"N\",'Enrollment Form'!B302<>\"Subscriber\",'Enrollment Form'!C302=\"ROC\",'Enrollment Form'!O302<>\"Multiple of Salary\"),\"-\",IF(COUNTA('Enrollment Form'!T302:U302)<2,\"N\",\"Y\"))","v":"-"},{"$f":"IF(B295=\"N\",\"\",IF(OR('Enrollment Form'!C302=\"ROC\",'Enrollment Form'!B302<>\"Subscriber\",'Enrollment Form'!O302=\"Waive\",'Enrollment Form'!O302=\"\"),\"-\",IF('Enrollment Form'!P302=\"\",\"N\",\"Y\")))","v":""},{"$f":"IF($B295=\"N\",\"\",IF(AND('Enrollment Form'!$C302=\"ROC\",'Enrollment Form'!$DR302<>\"\"),\"Y\",IF(AND('Enrollment Form'!$C302=\"ROC\",'Enrollment Form'!$DR302=\"\"),\"N\",IF(AND('Enrollment Form'!$C302=\"Enroll\",'Enrollment Form'!$B302=\"Subscriber\",'Enrollment Form'!$CX302=\"No\",'Enrollment Form'!$DR302=\"\"),\"N\",IF(AND('Enrollment Form'!$C302=\"Enroll\",'Enrollment Form'!$B302=\"Subscriber\",'Enrollment Form'!$CX302=\"Yes\"),\"-\",\"Y\")))))","v":""},{"$f":"IF($B295=\"N\",\"\",IF(AND('Enrollment Form'!$C302=\"ROC\",'Enrollment Form'!$DS302<>\"\"),\"Y\",IF(AND('Enrollment Form'!$C302=\"ROC\",'Enrollment Form'!$DS302=\"\"),\"N\",IF(AND('Enrollment Form'!$C302=\"Enroll\",'Enrollment Form'!$B302=\"Subscriber\",'Enrollment Form'!$CX302=\"No\",'Enrollment Form'!$DS302=\"\"),\"N\",IF(AND('Enrollment Form'!$C302=\"Enroll\",'Enrollment Form'!$B302=\"Subscriber\",'Enrollment Form'!$CX302=\"Yes\"),\"-\",\"Y\")))))","v":""},{"$f":"IF('Enrollment Form'!AH302=\"\",\"\",IF(ISERROR(SEARCH(\".\",'Enrollment Form'!AH302,SEARCH(\"@\",'Enrollment Form'!AH302))),\"N\",\"Y\"))","v":""},{"$f":"IF(OR($B295=\"N\",'Enrollment Form'!$G302=\"\"),\"\",IF('Enrollment Form'!$B302<>\"Subscriber\",\"-\",IF(COUNTIF('Enrollment Form'!$AV302:$AW302,\"Yes\")=2,\"N\",\"Y\")))","v":""},{"$f":"IF(OR('Enrollment Form'!$CJ302=\"\",'Enrollment Form'!$CJ302=\"No\"),\"-\",IF(AND('Enrollment Form'!$CJ302=\"Yes\",'Enrollment Form'!$CK302=\"\"),\"N\",\"Y\"))","v":"-"},{"$f":"IF(OR('Enrollment Form'!$CL302=\"\",'Enrollment Form'!$CL302=\"No\"),\"-\",IF(AND('Enrollment Form'!$CL302=\"Yes\",'Enrollment Form'!$CM302=\"\"),\"N\",\"Y\"))","v":"-"},{"$f":"IF(OR('Enrollment Form'!$CN302=\"\",'Enrollment Form'!$CN302=\"No\"),\"-\",IF(AND('Enrollment Form'!$CN302=\"Yes\",'Enrollment Form'!$CO302=\"\"),\"N\",\"Y\"))","v":"-"},{"$f":"IF(OR('Enrollment Form'!$CN302=\"\",'Enrollment Form'!$CN302=\"No\"),\"-\",IF(AND('Enrollment Form'!$CN302=\"Yes\",'Enrollment Form'!$CP302=\"\"),\"N\",\"Y\"))","v":"-"},{"$f":"IF('Enrollment Form'!B302<>\"Subscriber\",\"-\",IF(AND('Enrollment Form'!B302=\"Subscriber\",'Enrollment Form'!C302=\"Enroll\",'Enrollment Form'!AA302=\"\"),\"N\",\"Y\"))","v":"-"},{"$f":"IF(OR('Enrollment Form'!B302=\"Subscriber\",'Enrollment Form'!B302=\"\"),\"-\",IF('Enrollment Form'!BP302=\"\",\"N\",\"Y\"))","v":"-"},{"$f":"IF('Enrollment Form'!B302<>\"Subscriber\",\"-\",IF(AND('Enrollment Form'!B302=\"Subscriber\",'Enrollment Form'!G302=\"\"),\"N\",\"Y\"))","v":"-"},{"$f":"IF('Enrollment Form'!A302=\"\",\"\",IF('Enrollment Form'!B302=\"Subscriber\",\"-\",IF(AND('Enrollment Form'!B302<>\"Subscriber\",'Enrollment Form'!G302='Enrollment Form'!H302),\"N\",\"Y\")))","v":""},0]
[303,{"$f":"IF('Enrollment Form'!$A303<>\"\",\"Y\",\"N\")","v":"N"},{"$f":"IF(AND('Enrollment Form'!$B303=\"\",'Enrollment Form'!$C303<>\"\"),\"N\",IF($B296=\"N\",\"\",\"Y\"))","v":""},{"$f":"IF(OR($B296=\"N\",'Enrollment Form'!G303=\"\"),\"\",IF('Enrollment Form'!$B303<>\"Subscriber\",\"\",IF('Enrollment Form'!$G303='Enrollment Form'!$H303,\"Y\",\"N\")))","v":""},{"$f":"IF($B296=\"N\",\"\",IF(AND(COUNTIFS('Enrollment Form'!$H$11:$H$1000,'Enrollment Form'!$H303,'Enrollment Form'!$B$11:$B$1000,'Enrollment Form'!$B303)>1,'Enrollment Form'!$H303<>\"\"),\"N\",\"Y\"))","v":""},{"$f":"IF($B296=\"N\",\"\",IF(LEN('Enrollment Form'!$Y303)=0,\"\",IF(LEN('Enrollment Form'!$Y303)<>5,\"N\",\"Y\")))","v":""},{"$f":"IF($B296=\"N\",\"\",IF(LEN('Enrollment Form'!$AD303=0),\"\",IF(LEN('Enrollment Form'!$AD303)<>5,\"N\",\"Y\")))","v":""},{"$f":"IF($B296=\"N\",\"\",IF(LEN('Enrollment Form'!$BS303=0),\"\",IF(LEN('Enrollment Form'!$BS303)<>5,\"N\",\"Y\")))","v":""},{"$f":"IF($B296=\"N\",\"\",IF(LEN('Enrollment Form'!$AE303)=0,\"\",IF(LEN('Enrollment Form'!$AE303)<>10,\"N\",\"Y\")))","v":""},{"$f":"IF($B296=\"N\",\"\",IF(LEN('Enrollment Form'!$AF303)=0,\"\",IF(LEN('Enrollment Form'!$AF303)<>10,\"N\",\"Y\")))","v":""},{"$f":"IF('Enrollment Form'!$O303<>\"Graded\",\"-\",IF(AND('Enrollment Form'!$O303=\"Graded\",'Enrollment Form'!$AR303<>\"\"),\"Y\",\"N\"))","v":"-"},{"$f":"IF($B296=\"N\",\"\",IF(OR('Enrollment Form'!$B303<>\"Subscriber\",'Enrollment Form'!$C303=\"ROC\"),\"-\",IF(AND('Enrollment Form'!$B303=\"Subscriber\",'Enrollment Form'!$C303=\"Enroll\",'Enrollment Form'!$AJ303<>\"\"),\"Y\",\"N\")))","v":""},{"$f":"IF($B296=\"N\",\"\",IF(OR('Enrollment Form'!$B303<>\"Subscriber\",'Enrollment Form'!$C303=\"ROC\"),\"-\",IF(AND('Enrollment Form'!$B303=\"Subscriber\",'Enrollment Form'!$C303=\"Enroll\",'Enrollment Form'!$AK303<>\"\"),\"Y\",\"N\")))","v":""},{"$f":"IF($B296=\"N\",\"\",IF(OR('Enrollment Form'!$B303<>\"Subscriber\",'Enrollment Form'!$C303=\"ROC\"),\"-\",IF(AND('Enrollment Form'!$B303=\"Subscriber\",'Enrollment Form'!$C303=\"Enroll\",'Enrollment Form'!$AL303<>\"\"),\"Y\",\"N\")))","v":""},{"$f":"IF($B296=\"N\",\"\",IF(OR('Enrollment Form'!$B303<>\"Subscriber\",'Enrollment Form'!$C303=\"ROC\"),\"-\",IF(AND('Enrollment Form'!$B303=\"Subscriber\",'Enrollment Form'!$C303=\"Enroll\",'Enrollment Form'!$AP303<>\"\"),\"Y\",\"N\")))","v":""},{"$f":"IF($B296=\"N\",\"\",IF(OR('Enrollment Form'!$B303<>\"Subscriber\",'Enrollment Form'!$C303=\"ROC\"),\"-\",IF(AND('Enrollment Form'!$B303=\"Subscriber\",'Enrollment Form'!$C303=\"Enroll\",'Enrollment Form'!$AQ303<>\"\"),\"Y\",\"N\")))","v":""},{"$f":"IF($B296=\"N\",\"\",IF(OR('Enrollment Form'!$B303<>\"Subscriber\",'Enrollment Form'!$C303=\"ROC\"),\"-\",IF(AND('Enrollment Form'!$B303=\"Subscriber\",'Enrollment Form'!$C303=\"Enroll\",'Enrollment Form'!$AS303<>\"\"),\"Y\",\"N\")))","v":""},{"$f":"IF($B296=\"N\",\"\",IF($Q296=\"-\",\"-\",IF(AND($Q296=\"Y\",'Enrollment Form'!$AS303=\"No\"),\"-\",IF(AND($Q296=\"Y\",'Enrollment Form'!$AS303=\"Yes\",'Enrollment Form'!$AT303<>\"\"),\"Y\",\"N\"))))","v":""},{"$f":"IF($B296=\"N\",\"\",IF(OR('Enrollment Form'!$B303<>\"Subscriber\",'Enrollment Form'!$C303=\"ROC\"),\"-\",IF(AND('Enrollment Form'!$B303=\"Subscriber\",'Enrollment Form'!$C303=\"Enroll\",'Enrollment Form'!$CV303<>\"\"),\"Y\",\"N\")))","v":""},{"$f":"IF($B296=\"N\",\"\",IF($S296=\"-\",\"-\",IF(AND($S296=\"Y\",'Enrollment Form'!$CV303=\"No\"),\"-\",IF(AND($S296=\"Y\",'Enrollment Form'!$CV303=\"Yes\",'Enrollment Form'!$CW303<>\"\"),\"Y\",\"N\"))))","v":""},{"$f":"IF(OR('Enrollment Form'!$AY303=\"Yes\",'Enrollment Form'!$AY303=\"\"),\"-\",IF(OR(AND('Enrollment Form'!$AY303=\"No\",ISERROR(FIND(\"HMO\",VLOOKUP('Enrollment Form'!G303,'Enrollment Form'!H$11:J$1000,3,FALSE),1))=FALSE,COUNTA('Enrollment Form'!$AZ303:$BC303)=4),AND('Enrollment Form'!$AY303=\"No\",ISERROR(FIND(\"HMO\",VLOOKUP('Enrollment Form'!G303,'Enrollment Form'!H$11:J$1000,3,FALSE),1))=FALSE,COUNTA('Enrollment Form'!$BT303:$BW303)=4)),\"Y\",\"N\"))","v":"-"},{"$f":"IF($B296=\"N\",\"\",IF('Enrollment Form'!$B303=\"Subscriber\",\"-\",IF(COUNTA('Enrollment Form'!$BL303,'Enrollment Form'!$BN303)=2,\"Y\",\"N\")))","v":""},{"$f":"IF($B296=\"N\",\"\",IF(OR('Enrollment Form'!$AX303=\"\",'Enrollment Form'!$AX303=\"No\"),\"-\",IF(AND('Enrollment Form'!$AX303=\"Yes\",COUNTA('Enrollment Form'!$CR303)=1),\"Y\",\"N\")))","v":""},{"$f":"IF(OR('Enrollment Form'!$CR303=\"\",'Enrollment Form'!$CR303=\"No\"),\"-\",IF(COUNTA('Enrollment Form'!$CT303:$CU303)=2,\"Y\",\"N\"))","v":"-"},{"$f":"IF($B296=\"N\",\"\",IF(COUNTIF('Enrollment Form'!$DG303:$DP303,\"Other\")=COUNTA('Enrollment Form'!$DK303,'Enrollment Form'!$DH303,'Enrollment Form'!$DN303,'Enrollment Form'!$DQ303),\"Y\",\"N\"))","v":""},{"$f":"IF($B296=\"N\",\"\",IF(OR('Enrollment Form'!B303<>\"Subscriber\",'Enrollment Form'!C303=\"ROC\",COUNTIF('Enrollment Form'!AV303:AW303,\"Yes\")>=1),\"-\",IF(AND('Enrollment Form'!C303=\"Enroll\",COUNTIF('Enrollment Form'!AV303:AW303,\"No\")=2,'Enrollment Form'!AX303=\"\"),\"N\",\"Y\")))","v":""},{"$f":"IF(OR(B296=\"N\",'Enrollment Form'!B303<>\"Subscriber\",'Enrollment Form'!C303=\"ROC\",'Enrollment Form'!O303<>\"Multiple of Salary\"),\"-\",IF(COUNTA('Enrollment Form'!T303:U303)<2,\"N\",\"Y\"))","v":"-"},{"$f":"IF(B296=\"N\",\"\",IF(OR('Enrollment Form'!C303=\"ROC\",'Enrollment Form'!B303<>\"Subscriber\",'Enrollment Form'!O303=\"Waive\",'Enrollment Form'!O303=\"\"),\"-\",IF('Enrollment Form'!P303=\"\",\"N\",\"Y\")))","v":""},{"$f":"IF($B296=\"N\",\"\",IF(AND('Enrollment Form'!$C303=\"ROC\",'Enrollment Form'!$DR303<>\"\"),\"Y\",IF(AND('Enrollment Form'!$C303=\"ROC\",'Enrollment Form'!$DR303=\"\"),\"N\",IF(AND('Enrollment Form'!$C303=\"Enroll\",'Enrollment Form'!$B303=\"Subscriber\",'Enrollment Form'!$CX303=\"No\",'Enrollment Form'!$DR303=\"\"),\"N\",IF(AND('Enrollment Form'!$C303=\"Enroll\",'Enrollment Form'!$B303=\"Subscriber\",'Enrollment Form'!$CX303=\"Yes\"),\"-\",\"Y\")))))","v":""},{"$f":"IF($B296=\"N\",\"\",IF(AND('Enrollment Form'!$C303=\"ROC\",'Enrollment Form'!$DS303<>\"\"),\"Y\",IF(AND('Enrollment Form'!$C303=\"ROC\",'Enrollment Form'!$DS303=\"\"),\"N\",IF(AND('Enrollment Form'!$C303=\"Enroll\",'Enrollment Form'!$B303=\"Subscriber\",'Enrollment Form'!$CX303=\"No\",'Enrollment Form'!$DS303=\"\"),\"N\",IF(AND('Enrollment Form'!$C303=\"Enroll\",'Enrollment Form'!$B303=\"Subscriber\",'Enrollment Form'!$CX303=\"Yes\"),\"-\",\"Y\")))))","v":""},{"$f":"IF('Enrollment Form'!AH303=\"\",\"\",IF(ISERROR(SEARCH(\".\",'Enrollment Form'!AH303,SEARCH(\"@\",'Enrollment Form'!AH303))),\"N\",\"Y\"))","v":""},{"$f":"IF(OR($B296=\"N\",'Enrollment Form'!$G303=\"\"),\"\",IF('Enrollment Form'!$B303<>\"Subscriber\",\"-\",IF(COUNTIF('Enrollment Form'!$AV303:$AW303,\"Yes\")=2,\"N\",\"Y\")))","v":""},{"$f":"IF(OR('Enrollment Form'!$CJ303=\"\",'Enrollment Form'!$CJ303=\"No\"),\"-\",IF(AND('Enrollment Form'!$CJ303=\"Yes\",'Enrollment Form'!$CK303=\"\"),\"N\",\"Y\"))","v":"-"},{"$f":"IF(OR('Enrollment Form'!$CL303=\"\",'Enrollment Form'!$CL303=\"No\"),\"-\",IF(AND('Enrollment Form'!$CL303=\"Yes\",'Enrollment Form'!$CM303=\"\"),\"N\",\"Y\"))","v":"-"},{"$f":"IF(OR('Enrollment Form'!$CN303=\"\",'Enrollment Form'!$CN303=\"No\"),\"-\",IF(AND('Enrollment Form'!$CN303=\"Yes\",'Enrollment Form'!$CO303=\"\"),\"N\",\"Y\"))","v":"-"},{"$f":"IF(OR('Enrollment Form'!$CN303=\"\",'Enrollment Form'!$CN303=\"No\"),\"-\",IF(AND('Enrollment Form'!$CN303=\"Yes\",'Enrollment Form'!$CP303=\"\"),\"N\",\"Y\"))","v":"-"},{"$f":"IF('Enrollment Form'!B303<>\"Subscriber\",\"-\",IF(AND('Enrollment Form'!B303=\"Subscriber\",'Enrollment Form'!C303=\"Enroll\",'Enrollment Form'!AA303=\"\"),\"N\",\"Y\"))","v":"-"},{"$f":"IF(OR('Enrollment Form'!B303=\"Subscriber\",'Enrollment Form'!B303=\"\"),\"-\",IF('Enrollment Form'!BP303=\"\",\"N\",\"Y\"))","v":"-"},{"$f":"IF('Enrollment Form'!B303<>\"Subscriber\",\"-\",IF(AND('Enrollment Form'!B303=\"Subscriber\",'Enrollment Form'!G303=\"\"),\"N\",\"Y\"))","v":"-"},{"$f":"IF('Enrollment Form'!A303=\"\",\"\",IF('Enrollment Form'!B303=\"Subscriber\",\"-\",IF(AND('Enrollment Form'!B303<>\"Subscriber\",'Enrollment Form'!G303='Enrollment Form'!H303),\"N\",\"Y\")))","v":""},0]
[304,{"$f":"IF('Enrollment Form'!$A304<>\"\",\"Y\",\"N\")","v":"N"},{"$f":"IF(AND('Enrollment Form'!$B304=\"\",'Enrollment Form'!$C304<>\"\"),\"N\",IF($B297=\"N\",\"\",\"Y\"))","v":""},{"$f":"IF(OR($B297=\"N\",'Enrollment Form'!G304=\"\"),\"\",IF('Enrollment Form'!$B304<>\"Subscriber\",\"\",IF('Enrollment Form'!$G304='Enrollment Form'!$H304,\"Y\",\"N\")))","v":""},{"$f":"IF($B297=\"N\",\"\",IF(AND(COUNTIFS('Enrollment Form'!$H$11:$H$1000,'Enrollment Form'!$H304,'Enrollment Form'!$B$11:$B$1000,'Enrollment Form'!$B304)>1,'Enrollment Form'!$H304<>\"\"),\"N\",\"Y\"))","v":""},{"$f":"IF($B297=\"N\",\"\",IF(LEN('Enrollment Form'!$Y304)=0,\"\",IF(LEN('Enrollment Form'!$Y304)<>5,\"N\",\"Y\")))","v":""},{"$f":"IF($B297=\"N\",\"\",IF(LEN('Enrollment Form'!$AD304=0),\"\",IF(LEN('Enrollment Form'!$AD304)<>5,\"N\",\"Y\")))","v":""},{"$f":"IF($B297=\"N\",\"\",IF(LEN('Enrollment Form'!$BS304=0),\"\",IF(LEN('Enrollment Form'!$BS304)<>5,\"N\",\"Y\")))","v":""},{"$f":"IF($B297=\"N\",\"\",IF(LEN('Enrollment Form'!$AE304)=0,\"\",IF(LEN('Enrollment Form'!$AE304)<>10,\"N\",\"Y\")))","v":""},{"$f":"IF($B297=\"N\",\"\",IF(LEN('Enrollment Form'!$AF304)=0,\"\",IF(LEN('Enrollment Form'!$AF304)<>10,\"N\",\"Y\")))","v":""},{"$f":"IF('Enrollment Form'!$O304<>\"Graded\",\"-\",IF(AND('Enrollment Form'!$O304=\"Graded\",'Enrollment Form'!$AR304<>\"\"),\"Y\",\"N\"))","v":"-"},{"$f":"IF($B297=\"N\",\"\",IF(OR('Enrollment Form'!$B304<>\"Subscriber\",'Enrollment Form'!$C304=\"ROC\"),\"-\",IF(AND('Enrollment Form'!$B304=\"Subscriber\",'Enrollment Form'!$C304=\"Enroll\",'Enrollment Form'!$AJ304<>\"\"),\"Y\",\"N\")))","v":""},{"$f":"IF($B297=\"N\",\"\",IF(OR('Enrollment Form'!$B304<>\"Subscriber\",'Enrollment Form'!$C304=\"ROC\"),\"-\",IF(AND('Enrollment Form'!$B304=\"Subscriber\",'Enrollment Form'!$C304=\"Enroll\",'Enrollment Form'!$AK304<>\"\"),\"Y\",\"N\")))","v":""},{"$f":"IF($B297=\"N\",\"\",IF(OR('Enrollment Form'!$B304<>\"Subscriber\",'Enrollment Form'!$C304=\"ROC\"),\"-\",IF(AND('Enrollment Form'!$B304=\"Subscriber\",'Enrollment Form'!$C304=\"Enroll\",'Enrollment Form'!$AL304<>\"\"),\"Y\",\"N\")))","v":""},{"$f":"IF($B297=\"N\",\"\",IF(OR('Enrollment Form'!$B304<>\"Subscriber\",'Enrollment Form'!$C304=\"ROC\"),\"-\",IF(AND('Enrollment Form'!$B304=\"Subscriber\",'Enrollment Form'!$C304=\"Enroll\",'Enrollment Form'!$AP304<>\"\"),\"Y\",\"N\")))","v":""},{"$f":"IF($B297=\"N\",\"\",IF(OR('Enrollment Form'!$B304<>\"Subscriber\",'Enrollment Form'!$C304=\"ROC\"),\"-\",IF(AND('Enrollment Form'!$B304=\"Subscriber\",'Enrollment Form'!$C304=\"Enroll\",'Enrollment Form'!$AQ304<>\"\"),\"Y\",\"N\")))","v":""},{"$f":"IF($B297=\"N\",\"\",IF(OR('Enrollment Form'!$B304<>\"Subscriber\",'Enrollment Form'!$C304=\"ROC\"),\"-\",IF(AND('Enrollment Form'!$B304=\"Subscriber\",'Enrollment Form'!$C304=\"Enroll\",'Enrollment Form'!$AS304<>\"\"),\"Y\",\"N\")))","v":""},{"$f":"IF($B297=\"N\",\"\",IF($Q297=\"-\",\"-\",IF(AND($Q297=\"Y\",'Enrollment Form'!$AS304=\"No\"),\"-\",IF(AND($Q297=\"Y\",'Enrollment Form'!$AS304=\"Yes\",'Enrollment Form'!$AT304<>\"\"),\"Y\",\"N\"))))","v":""},{"$f":"IF($B297=\"N\",\"\",IF(OR('Enrollment Form'!$B304<>\"Subscriber\",'Enrollment Form'!$C304=\"ROC\"),\"-\",IF(AND('Enrollment Form'!$B304=\"Subscriber\",'Enrollment Form'!$C304=\"Enroll\",'Enrollment Form'!$CV304<>\"\"),\"Y\",\"N\")))","v":""},{"$f":"IF($B297=\"N\",\"\",IF($S297=\"-\",\"-\",IF(AND($S297=\"Y\",'Enrollment Form'!$CV304=\"No\"),\"-\",IF(AND($S297=\"Y\",'Enrollment Form'!$CV304=\"Yes\",'Enrollment Form'!$CW304<>\"\"),\"Y\",\"N\"))))","v":""},{"$f":"IF(OR('Enrollment Form'!$AY304=\"Yes\",'Enrollment Form'!$AY304=\"\"),\"-\",IF(OR(AND('Enrollment Form'!$AY304=\"No\",ISERROR(FIND(\"HMO\",VLOOKUP('Enrollment Form'!G304,'Enrollment Form'!H$11:J$1000,3,FALSE),1))=FALSE,COUNTA('Enrollment Form'!$AZ304:$BC304)=4),AND('Enrollment Form'!$AY304=\"No\",ISERROR(FIND(\"HMO\",VLOOKUP('Enrollment Form'!G304,'Enrollment Form'!H$11:J$1000,3,FALSE),1))=FALSE,COUNTA('Enrollment Form'!$BT304:$BW304)=4)),\"Y\",\"N\"))","v":"-"},{"$f":"IF($B297=\"N\",\"\",IF('Enrollment Form'!$B304=\"Subscriber\",\"-\",IF(COUNTA('Enrollment Form'!$BL304,'Enrollment Form'!$BN304)=2,\"Y\",\"N\")))","v":""},{"$f":"IF($B297=\"N\",\"\",IF(OR('Enrollment Form'!$AX304=\"\",'Enrollment Form'!$AX304=\"No\"),\"-\",IF(AND('Enrollment Form'!$AX304=\"Yes\",COUNTA('Enrollment Form'!$CR304)=1),\"Y\",\"N\")))","v":""},{"$f":"IF(OR('Enrollment Form'!$CR304=\"\",'Enrollment Form'!$CR304=\"No\"),\"-\",IF(COUNTA('Enrollment Form'!$CT304:$CU304)=2,\"Y\",\"N\"))","v":"-"},{"$f":"IF($B297=\"N\",\"\",IF(COUNTIF('Enrollment Form'!$DG304:$DP304,\"Other\")=COUNTA('Enrollment Form'!$DK304,'Enrollment Form'!$DH304,'Enrollment Form'!$DN304,'Enrollment Form'!$DQ304),\"Y\",\"N\"))","v":""},{"$f":"IF($B297=\"N\",\"\",IF(OR('Enrollment Form'!B304<>\"Subscriber\",'Enrollment Form'!C304=\"ROC\",COUNTIF('Enrollment Form'!AV304:AW304,\"Yes\")>=1),\"-\",IF(AND('Enrollment Form'!C304=\"Enroll\",COUNTIF('Enrollment Form'!AV304:AW304,\"No\")=2,'Enrollment Form'!AX304=\"\"),\"N\",\"Y\")))","v":""},{"$f":"IF(OR(B297=\"N\",'Enrollment Form'!B304<>\"Subscriber\",'Enrollment Form'!C304=\"ROC\",'Enrollment Form'!O304<>\"Multiple of Salary\"),\"-\",IF(COUNTA('Enrollment Form'!T304:U304)<2,\"N\",\"Y\"))","v":"-"},{"$f":"IF(B297=\"N\",\"\",IF(OR('Enrollment Form'!C304=\"ROC\",'Enrollment Form'!B304<>\"Subscriber\",'Enrollment Form'!O304=\"Waive\",'Enrollment Form'!O304=\"\"),\"-\",IF('Enrollment Form'!P304=\"\",\"N\",\"Y\")))","v":""},{"$f":"IF($B297=\"N\",\"\",IF(AND('Enrollment Form'!$C304=\"ROC\",'Enrollment Form'!$DR304<>\"\"),\"Y\",IF(AND('Enrollment Form'!$C304=\"ROC\",'Enrollment Form'!$DR304=\"\"),\"N\",IF(AND('Enrollment Form'!$C304=\"Enroll\",'Enrollment Form'!$B304=\"Subscriber\",'Enrollment Form'!$CX304=\"No\",'Enrollment Form'!$DR304=\"\"),\"N\",IF(AND('Enrollment Form'!$C304=\"Enroll\",'Enrollment Form'!$B304=\"Subscriber\",'Enrollment Form'!$CX304=\"Yes\"),\"-\",\"Y\")))))","v":""},{"$f":"IF($B297=\"N\",\"\",IF(AND('Enrollment Form'!$C304=\"ROC\",'Enrollment Form'!$DS304<>\"\"),\"Y\",IF(AND('Enrollment Form'!$C304=\"ROC\",'Enrollment Form'!$DS304=\"\"),\"N\",IF(AND('Enrollment Form'!$C304=\"Enroll\",'Enrollment Form'!$B304=\"Subscriber\",'Enrollment Form'!$CX304=\"No\",'Enrollment Form'!$DS304=\"\"),\"N\",IF(AND('Enrollment Form'!$C304=\"Enroll\",'Enrollment Form'!$B304=\"Subscriber\",'Enrollment Form'!$CX304=\"Yes\"),\"-\",\"Y\")))))","v":""},{"$f":"IF('Enrollment Form'!AH304=\"\",\"\",IF(ISERROR(SEARCH(\".\",'Enrollment Form'!AH304,SEARCH(\"@\",'Enrollment Form'!AH304))),\"N\",\"Y\"))","v":""},{"$f":"IF(OR($B297=\"N\",'Enrollment Form'!$G304=\"\"),\"\",IF('Enrollment Form'!$B304<>\"Subscriber\",\"-\",IF(COUNTIF('Enrollment Form'!$AV304:$AW304,\"Yes\")=2,\"N\",\"Y\")))","v":""},{"$f":"IF(OR('Enrollment Form'!$CJ304=\"\",'Enrollment Form'!$CJ304=\"No\"),\"-\",IF(AND('Enrollment Form'!$CJ304=\"Yes\",'Enrollment Form'!$CK304=\"\"),\"N\",\"Y\"))","v":"-"},{"$f":"IF(OR('Enrollment Form'!$CL304=\"\",'Enrollment Form'!$CL304=\"No\"),\"-\",IF(AND('Enrollment Form'!$CL304=\"Yes\",'Enrollment Form'!$CM304=\"\"),\"N\",\"Y\"))","v":"-"},{"$f":"IF(OR('Enrollment Form'!$CN304=\"\",'Enrollment Form'!$CN304=\"No\"),\"-\",IF(AND('Enrollment Form'!$CN304=\"Yes\",'Enrollment Form'!$CO304=\"\"),\"N\",\"Y\"))","v":"-"},{"$f":"IF(OR('Enrollment Form'!$CN304=\"\",'Enrollment Form'!$CN304=\"No\"),\"-\",IF(AND('Enrollment Form'!$CN304=\"Yes\",'Enrollment Form'!$CP304=\"\"),\"N\",\"Y\"))","v":"-"},{"$f":"IF('Enrollment Form'!B304<>\"Subscriber\",\"-\",IF(AND('Enrollment Form'!B304=\"Subscriber\",'Enrollment Form'!C304=\"Enroll\",'Enrollment Form'!AA304=\"\"),\"N\",\"Y\"))","v":"-"},{"$f":"IF(OR('Enrollment Form'!B304=\"Subscriber\",'Enrollment Form'!B304=\"\"),\"-\",IF('Enrollment Form'!BP304=\"\",\"N\",\"Y\"))","v":"-"},{"$f":"IF('Enrollment Form'!B304<>\"Subscriber\",\"-\",IF(AND('Enrollment Form'!B304=\"Subscriber\",'Enrollment Form'!G304=\"\"),\"N\",\"Y\"))","v":"-"},{"$f":"IF('Enrollment Form'!A304=\"\",\"\",IF('Enrollment Form'!B304=\"Subscriber\",\"-\",IF(AND('Enrollment Form'!B304<>\"Subscriber\",'Enrollment Form'!G304='Enrollment Form'!H304),\"N\",\"Y\")))","v":""},0]
[305,{"$f":"IF('Enrollment Form'!$A305<>\"\",\"Y\",\"N\")","v":"N"},{"$f":"IF(AND('Enrollment Form'!$B305=\"\",'Enrollment Form'!$C305<>\"\"),\"N\",IF($B298=\"N\",\"\",\"Y\"))","v":""},{"$f":"IF(OR($B298=\"N\",'Enrollment Form'!G305=\"\"),\"\",IF('Enrollment Form'!$B305<>\"Subscriber\",\"\",IF('Enrollment Form'!$G305='Enrollment Form'!$H305,\"Y\",\"N\")))","v":""},{"$f":"IF($B298=\"N\",\"\",IF(AND(COUNTIFS('Enrollment Form'!$H$11:$H$1000,'Enrollment Form'!$H305,'Enrollment Form'!$B$11:$B$1000,'Enrollment Form'!$B305)>1,'Enrollment Form'!$H305<>\"\"),\"N\",\"Y\"))","v":""},{"$f":"IF($B298=\"N\",\"\",IF(LEN('Enrollment Form'!$Y305)=0,\"\",IF(LEN('Enrollment Form'!$Y305)<>5,\"N\",\"Y\")))","v":""},{"$f":"IF($B298=\"N\",\"\",IF(LEN('Enrollment Form'!$AD305=0),\"\",IF(LEN('Enrollment Form'!$AD305)<>5,\"N\",\"Y\")))","v":""},{"$f":"IF($B298=\"N\",\"\",IF(LEN('Enrollment Form'!$BS305=0),\"\",IF(LEN('Enrollment Form'!$BS305)<>5,\"N\",\"Y\")))","v":""},{"$f":"IF($B298=\"N\",\"\",IF(LEN('Enrollment Form'!$AE305)=0,\"\",IF(LEN('Enrollment Form'!$AE305)<>10,\"N\",\"Y\")))","v":""},{"$f":"IF($B298=\"N\",\"\",IF(LEN('Enrollment Form'!$AF305)=0,\"\",IF(LEN('Enrollment Form'!$AF305)<>10,\"N\",\"Y\")))","v":""},{"$f":"IF('Enrollment Form'!$O305<>\"Graded\",\"-\",IF(AND('Enrollment Form'!$O305=\"Graded\",'Enrollment Form'!$AR305<>\"\"),\"Y\",\"N\"))","v":"-"},{"$f":"IF($B298=\"N\",\"\",IF(OR('Enrollment Form'!$B305<>\"Subscriber\",'Enrollment Form'!$C305=\"ROC\"),\"-\",IF(AND('Enrollment Form'!$B305=\"Subscriber\",'Enrollment Form'!$C305=\"Enroll\",'Enrollment Form'!$AJ305<>\"\"),\"Y\",\"N\")))","v":""},{"$f":"IF($B298=\"N\",\"\",IF(OR('Enrollment Form'!$B305<>\"Subscriber\",'Enrollment Form'!$C305=\"ROC\"),\"-\",IF(AND('Enrollment Form'!$B305=\"Subscriber\",'Enrollment Form'!$C305=\"Enroll\",'Enrollment Form'!$AK305<>\"\"),\"Y\",\"N\")))","v":""},{"$f":"IF($B298=\"N\",\"\",IF(OR('Enrollment Form'!$B305<>\"Subscriber\",'Enrollment Form'!$C305=\"ROC\"),\"-\",IF(AND('Enrollment Form'!$B305=\"Subscriber\",'Enrollment Form'!$C305=\"Enroll\",'Enrollment Form'!$AL305<>\"\"),\"Y\",\"N\")))","v":""},{"$f":"IF($B298=\"N\",\"\",IF(OR('Enrollment Form'!$B305<>\"Subscriber\",'Enrollment Form'!$C305=\"ROC\"),\"-\",IF(AND('Enrollment Form'!$B305=\"Subscriber\",'Enrollment Form'!$C305=\"Enroll\",'Enrollment Form'!$AP305<>\"\"),\"Y\",\"N\")))","v":""},{"$f":"IF($B298=\"N\",\"\",IF(OR('Enrollment Form'!$B305<>\"Subscriber\",'Enrollment Form'!$C305=\"ROC\"),\"-\",IF(AND('Enrollment Form'!$B305=\"Subscriber\",'Enrollment Form'!$C305=\"Enroll\",'Enrollment Form'!$AQ305<>\"\"),\"Y\",\"N\")))","v":""},{"$f":"IF($B298=\"N\",\"\",IF(OR('Enrollment Form'!$B305<>\"Subscriber\",'Enrollment Form'!$C305=\"ROC\"),\"-\",IF(AND('Enrollment Form'!$B305=\"Subscriber\",'Enrollment Form'!$C305=\"Enroll\",'Enrollment Form'!$AS305<>\"\"),\"Y\",\"N\")))","v":""},{"$f":"IF($B298=\"N\",\"\",IF($Q298=\"-\",\"-\",IF(AND($Q298=\"Y\",'Enrollment Form'!$AS305=\"No\"),\"-\",IF(AND($Q298=\"Y\",'Enrollment Form'!$AS305=\"Yes\",'Enrollment Form'!$AT305<>\"\"),\"Y\",\"N\"))))","v":""},{"$f":"IF($B298=\"N\",\"\",IF(OR('Enrollment Form'!$B305<>\"Subscriber\",'Enrollment Form'!$C305=\"ROC\"),\"-\",IF(AND('Enrollment Form'!$B305=\"Subscriber\",'Enrollment Form'!$C305=\"Enroll\",'Enrollment Form'!$CV305<>\"\"),\"Y\",\"N\")))","v":""},{"$f":"IF($B298=\"N\",\"\",IF($S298=\"-\",\"-\",IF(AND($S298=\"Y\",'Enrollment Form'!$CV305=\"No\"),\"-\",IF(AND($S298=\"Y\",'Enrollment Form'!$CV305=\"Yes\",'Enrollment Form'!$CW305<>\"\"),\"Y\",\"N\"))))","v":""},{"$f":"IF(OR('Enrollment Form'!$AY305=\"Yes\",'Enrollment Form'!$AY305=\"\"),\"-\",IF(OR(AND('Enrollment Form'!$AY305=\"No\",ISERROR(FIND(\"HMO\",VLOOKUP('Enrollment Form'!G305,'Enrollment Form'!H$11:J$1000,3,FALSE),1))=FALSE,COUNTA('Enrollment Form'!$AZ305:$BC305)=4),AND('Enrollment Form'!$AY305=\"No\",ISERROR(FIND(\"HMO\",VLOOKUP('Enrollment Form'!G305,'Enrollment Form'!H$11:J$1000,3,FALSE),1))=FALSE,COUNTA('Enrollment Form'!$BT305:$BW305)=4)),\"Y\",\"N\"))","v":"-"},{"$f":"IF($B298=\"N\",\"\",IF('Enrollment Form'!$B305=\"Subscriber\",\"-\",IF(COUNTA('Enrollment Form'!$BL305,'Enrollment Form'!$BN305)=2,\"Y\",\"N\")))","v":""},{"$f":"IF($B298=\"N\",\"\",IF(OR('Enrollment Form'!$AX305=\"\",'Enrollment Form'!$AX305=\"No\"),\"-\",IF(AND('Enrollment Form'!$AX305=\"Yes\",COUNTA('Enrollment Form'!$CR305)=1),\"Y\",\"N\")))","v":""},{"$f":"IF(OR('Enrollment Form'!$CR305=\"\",'Enrollment Form'!$CR305=\"No\"),\"-\",IF(COUNTA('Enrollment Form'!$CT305:$CU305)=2,\"Y\",\"N\"))","v":"-"},{"$f":"IF($B298=\"N\",\"\",IF(COUNTIF('Enrollment Form'!$DG305:$DP305,\"Other\")=COUNTA('Enrollment Form'!$DK305,'Enrollment Form'!$DH305,'Enrollment Form'!$DN305,'Enrollment Form'!$DQ305),\"Y\",\"N\"))","v":""},{"$f":"IF($B298=\"N\",\"\",IF(OR('Enrollment Form'!B305<>\"Subscriber\",'Enrollment Form'!C305=\"ROC\",COUNTIF('Enrollment Form'!AV305:AW305,\"Yes\")>=1),\"-\",IF(AND('Enrollment Form'!C305=\"Enroll\",COUNTIF('Enrollment Form'!AV305:AW305,\"No\")=2,'Enrollment Form'!AX305=\"\"),\"N\",\"Y\")))","v":""},{"$f":"IF(OR(B298=\"N\",'Enrollment Form'!B305<>\"Subscriber\",'Enrollment Form'!C305=\"ROC\",'Enrollment Form'!O305<>\"Multiple of Salary\"),\"-\",IF(COUNTA('Enrollment Form'!T305:U305)<2,\"N\",\"Y\"))","v":"-"},{"$f":"IF(B298=\"N\",\"\",IF(OR('Enrollment Form'!C305=\"ROC\",'Enrollment Form'!B305<>\"Subscriber\",'Enrollment Form'!O305=\"Waive\",'Enrollment Form'!O305=\"\"),\"-\",IF('Enrollment Form'!P305=\"\",\"N\",\"Y\")))","v":""},{"$f":"IF($B298=\"N\",\"\",IF(AND('Enrollment Form'!$C305=\"ROC\",'Enrollment Form'!$DR305<>\"\"),\"Y\",IF(AND('Enrollment Form'!$C305=\"ROC\",'Enrollment Form'!$DR305=\"\"),\"N\",IF(AND('Enrollment Form'!$C305=\"Enroll\",'Enrollment Form'!$B305=\"Subscriber\",'Enrollment Form'!$CX305=\"No\",'Enrollment Form'!$DR305=\"\"),\"N\",IF(AND('Enrollment Form'!$C305=\"Enroll\",'Enrollment Form'!$B305=\"Subscriber\",'Enrollment Form'!$CX305=\"Yes\"),\"-\",\"Y\")))))","v":""},{"$f":"IF($B298=\"N\",\"\",IF(AND('Enrollment Form'!$C305=\"ROC\",'Enrollment Form'!$DS305<>\"\"),\"Y\",IF(AND('Enrollment Form'!$C305=\"ROC\",'Enrollment Form'!$DS305=\"\"),\"N\",IF(AND('Enrollment Form'!$C305=\"Enroll\",'Enrollment Form'!$B305=\"Subscriber\",'Enrollment Form'!$CX305=\"No\",'Enrollment Form'!$DS305=\"\"),\"N\",IF(AND('Enrollment Form'!$C305=\"Enroll\",'Enrollment Form'!$B305=\"Subscriber\",'Enrollment Form'!$CX305=\"Yes\"),\"-\",\"Y\")))))","v":""},{"$f":"IF('Enrollment Form'!AH305=\"\",\"\",IF(ISERROR(SEARCH(\".\",'Enrollment Form'!AH305,SEARCH(\"@\",'Enrollment Form'!AH305))),\"N\",\"Y\"))","v":""},{"$f":"IF(OR($B298=\"N\",'Enrollment Form'!$G305=\"\"),\"\",IF('Enrollment Form'!$B305<>\"Subscriber\",\"-\",IF(COUNTIF('Enrollment Form'!$AV305:$AW305,\"Yes\")=2,\"N\",\"Y\")))","v":""},{"$f":"IF(OR('Enrollment Form'!$CJ305=\"\",'Enrollment Form'!$CJ305=\"No\"),\"-\",IF(AND('Enrollment Form'!$CJ305=\"Yes\",'Enrollment Form'!$CK305=\"\"),\"N\",\"Y\"))","v":"-"},{"$f":"IF(OR('Enrollment Form'!$CL305=\"\",'Enrollment Form'!$CL305=\"No\"),\"-\",IF(AND('Enrollment Form'!$CL305=\"Yes\",'Enrollment Form'!$CM305=\"\"),\"N\",\"Y\"))","v":"-"},{"$f":"IF(OR('Enrollment Form'!$CN305=\"\",'Enrollment Form'!$CN305=\"No\"),\"-\",IF(AND('Enrollment Form'!$CN305=\"Yes\",'Enrollment Form'!$CO305=\"\"),\"N\",\"Y\"))","v":"-"},{"$f":"IF(OR('Enrollment Form'!$CN305=\"\",'Enrollment Form'!$CN305=\"No\"),\"-\",IF(AND('Enrollment Form'!$CN305=\"Yes\",'Enrollment Form'!$CP305=\"\"),\"N\",\"Y\"))","v":"-"},{"$f":"IF('Enrollment Form'!B305<>\"Subscriber\",\"-\",IF(AND('Enrollment Form'!B305=\"Subscriber\",'Enrollment Form'!C305=\"Enroll\",'Enrollment Form'!AA305=\"\"),\"N\",\"Y\"))","v":"-"},{"$f":"IF(OR('Enrollment Form'!B305=\"Subscriber\",'Enrollment Form'!B305=\"\"),\"-\",IF('Enrollment Form'!BP305=\"\",\"N\",\"Y\"))","v":"-"},{"$f":"IF('Enrollment Form'!B305<>\"Subscriber\",\"-\",IF(AND('Enrollment Form'!B305=\"Subscriber\",'Enrollment Form'!G305=\"\"),\"N\",\"Y\"))","v":"-"},{"$f":"IF('Enrollment Form'!A305=\"\",\"\",IF('Enrollment Form'!B305=\"Subscriber\",\"-\",IF(AND('Enrollment Form'!B305<>\"Subscriber\",'Enrollment Form'!G305='Enrollment Form'!H305),\"N\",\"Y\")))","v":""},0]
[306,{"$f":"IF('Enrollment Form'!$A306<>\"\",\"Y\",\"N\")","v":"N"},{"$f":"IF(AND('Enrollment Form'!$B306=\"\",'Enrollment Form'!$C306<>\"\"),\"N\",IF($B299=\"N\",\"\",\"Y\"))","v":""},{"$f":"IF(OR($B299=\"N\",'Enrollment Form'!G306=\"\"),\"\",IF('Enrollment Form'!$B306<>\"Subscriber\",\"\",IF('Enrollment Form'!$G306='Enrollment Form'!$H306,\"Y\",\"N\")))","v":""},{"$f":"IF($B299=\"N\",\"\",IF(AND(COUNTIFS('Enrollment Form'!$H$11:$H$1000,'Enrollment Form'!$H306,'Enrollment Form'!$B$11:$B$1000,'Enrollment Form'!$B306)>1,'Enrollment Form'!$H306<>\"\"),\"N\",\"Y\"))","v":""},{"$f":"IF($B299=\"N\",\"\",IF(LEN('Enrollment Form'!$Y306)=0,\"\",IF(LEN('Enrollment Form'!$Y306)<>5,\"N\",\"Y\")))","v":""},{"$f":"IF($B299=\"N\",\"\",IF(LEN('Enrollment Form'!$AD306=0),\"\",IF(LEN('Enrollment Form'!$AD306)<>5,\"N\",\"Y\")))","v":""},{"$f":"IF($B299=\"N\",\"\",IF(LEN('Enrollment Form'!$BS306=0),\"\",IF(LEN('Enrollment Form'!$BS306)<>5,\"N\",\"Y\")))","v":""},{"$f":"IF($B299=\"N\",\"\",IF(LEN('Enrollment Form'!$AE306)=0,\"\",IF(LEN('Enrollment Form'!$AE306)<>10,\"N\",\"Y\")))","v":""},{"$f":"IF($B299=\"N\",\"\",IF(LEN('Enrollment Form'!$AF306)=0,\"\",IF(LEN('Enrollment Form'!$AF306)<>10,\"N\",\"Y\")))","v":""},{"$f":"IF('Enrollment Form'!$O306<>\"Graded\",\"-\",IF(AND('Enrollment Form'!$O306=\"Graded\",'Enrollment Form'!$AR306<>\"\"),\"Y\",\"N\"))","v":"-"},{"$f":"IF($B299=\"N\",\"\",IF(OR('Enrollment Form'!$B306<>\"Subscriber\",'Enrollment Form'!$C306=\"ROC\"),\"-\",IF(AND('Enrollment Form'!$B306=\"Subscriber\",'Enrollment Form'!$C306=\"Enroll\",'Enrollment Form'!$AJ306<>\"\"),\"Y\",\"N\")))","v":""},{"$f":"IF($B299=\"N\",\"\",IF(OR('Enrollment Form'!$B306<>\"Subscriber\",'Enrollment Form'!$C306=\"ROC\"),\"-\",IF(AND('Enrollment Form'!$B306=\"Subscriber\",'Enrollment Form'!$C306=\"Enroll\",'Enrollment Form'!$AK306<>\"\"),\"Y\",\"N\")))","v":""},{"$f":"IF($B299=\"N\",\"\",IF(OR('Enrollment Form'!$B306<>\"Subscriber\",'Enrollment Form'!$C306=\"ROC\"),\"-\",IF(AND('Enrollment Form'!$B306=\"Subscriber\",'Enrollment Form'!$C306=\"Enroll\",'Enrollment Form'!$AL306<>\"\"),\"Y\",\"N\")))","v":""},{"$f":"IF($B299=\"N\",\"\",IF(OR('Enrollment Form'!$B306<>\"Subscriber\",'Enrollment Form'!$C306=\"ROC\"),\"-\",IF(AND('Enrollment Form'!$B306=\"Subscriber\",'Enrollment Form'!$C306=\"Enroll\",'Enrollment Form'!$AP306<>\"\"),\"Y\",\"N\")))","v":""},{"$f":"IF($B299=\"N\",\"\",IF(OR('Enrollment Form'!$B306<>\"Subscriber\",'Enrollment Form'!$C306=\"ROC\"),\"-\",IF(AND('Enrollment Form'!$B306=\"Subscriber\",'Enrollment Form'!$C306=\"Enroll\",'Enrollment Form'!$AQ306<>\"\"),\"Y\",\"N\")))","v":""},{"$f":"IF($B299=\"N\",\"\",IF(OR('Enrollment Form'!$B306<>\"Subscriber\",'Enrollment Form'!$C306=\"ROC\"),\"-\",IF(AND('Enrollment Form'!$B306=\"Subscriber\",'Enrollment Form'!$C306=\"Enroll\",'Enrollment Form'!$AS306<>\"\"),\"Y\",\"N\")))","v":""},{"$f":"IF($B299=\"N\",\"\",IF($Q299=\"-\",\"-\",IF(AND($Q299=\"Y\",'Enrollment Form'!$AS306=\"No\"),\"-\",IF(AND($Q299=\"Y\",'Enrollment Form'!$AS306=\"Yes\",'Enrollment Form'!$AT306<>\"\"),\"Y\",\"N\"))))","v":""},{"$f":"IF($B299=\"N\",\"\",IF(OR('Enrollment Form'!$B306<>\"Subscriber\",'Enrollment Form'!$C306=\"ROC\"),\"-\",IF(AND('Enrollment Form'!$B306=\"Subscriber\",'Enrollment Form'!$C306=\"Enroll\",'Enrollment Form'!$CV306<>\"\"),\"Y\",\"N\")))","v":""},{"$f":"IF($B299=\"N\",\"\",IF($S299=\"-\",\"-\",IF(AND($S299=\"Y\",'Enrollment Form'!$CV306=\"No\"),\"-\",IF(AND($S299=\"Y\",'Enrollment Form'!$CV306=\"Yes\",'Enrollment Form'!$CW306<>\"\"),\"Y\",\"N\"))))","v":""},{"$f":"IF(OR('Enrollment Form'!$AY306=\"Yes\",'Enrollment Form'!$AY306=\"\"),\"-\",IF(OR(AND('Enrollment Form'!$AY306=\"No\",ISERROR(FIND(\"HMO\",VLOOKUP('Enrollment Form'!G306,'Enrollment Form'!H$11:J$1000,3,FALSE),1))=FALSE,COUNTA('Enrollment Form'!$AZ306:$BC306)=4),AND('Enrollment Form'!$AY306=\"No\",ISERROR(FIND(\"HMO\",VLOOKUP('Enrollment Form'!G306,'Enrollment Form'!H$11:J$1000,3,FALSE),1))=FALSE,COUNTA('Enrollment Form'!$BT306:$BW306)=4)),\"Y\",\"N\"))","v":"-"},{"$f":"IF($B299=\"N\",\"\",IF('Enrollment Form'!$B306=\"Subscriber\",\"-\",IF(COUNTA('Enrollment Form'!$BL306,'Enrollment Form'!$BN306)=2,\"Y\",\"N\")))","v":""},{"$f":"IF($B299=\"N\",\"\",IF(OR('Enrollment Form'!$AX306=\"\",'Enrollment Form'!$AX306=\"No\"),\"-\",IF(AND('Enrollment Form'!$AX306=\"Yes\",COUNTA('Enrollment Form'!$CR306)=1),\"Y\",\"N\")))","v":""},{"$f":"IF(OR('Enrollment Form'!$CR306=\"\",'Enrollment Form'!$CR306=\"No\"),\"-\",IF(COUNTA('Enrollment Form'!$CT306:$CU306)=2,\"Y\",\"N\"))","v":"-"},{"$f":"IF($B299=\"N\",\"\",IF(COUNTIF('Enrollment Form'!$DG306:$DP306,\"Other\")=COUNTA('Enrollment Form'!$DK306,'Enrollment Form'!$DH306,'Enrollment Form'!$DN306,'Enrollment Form'!$DQ306),\"Y\",\"N\"))","v":""},{"$f":"IF($B299=\"N\",\"\",IF(OR('Enrollment Form'!B306<>\"Subscriber\",'Enrollment Form'!C306=\"ROC\",COUNTIF('Enrollment Form'!AV306:AW306,\"Yes\")>=1),\"-\",IF(AND('Enrollment Form'!C306=\"Enroll\",COUNTIF('Enrollment Form'!AV306:AW306,\"No\")=2,'Enrollment Form'!AX306=\"\"),\"N\",\"Y\")))","v":""},{"$f":"IF(OR(B299=\"N\",'Enrollment Form'!B306<>\"Subscriber\",'Enrollment Form'!C306=\"ROC\",'Enrollment Form'!O306<>\"Multiple of Salary\"),\"-\",IF(COUNTA('Enrollment Form'!T306:U306)<2,\"N\",\"Y\"))","v":"-"},{"$f":"IF(B299=\"N\",\"\",IF(OR('Enrollment Form'!C306=\"ROC\",'Enrollment Form'!B306<>\"Subscriber\",'Enrollment Form'!O306=\"Waive\",'Enrollment Form'!O306=\"\"),\"-\",IF('Enrollment Form'!P306=\"\",\"N\",\"Y\")))","v":""},{"$f":"IF($B299=\"N\",\"\",IF(AND('Enrollment Form'!$C306=\"ROC\",'Enrollment Form'!$DR306<>\"\"),\"Y\",IF(AND('Enrollment Form'!$C306=\"ROC\",'Enrollment Form'!$DR306=\"\"),\"N\",IF(AND('Enrollment Form'!$C306=\"Enroll\",'Enrollment Form'!$B306=\"Subscriber\",'Enrollment Form'!$CX306=\"No\",'Enrollment Form'!$DR306=\"\"),\"N\",IF(AND('Enrollment Form'!$C306=\"Enroll\",'Enrollment Form'!$B306=\"Subscriber\",'Enrollment Form'!$CX306=\"Yes\"),\"-\",\"Y\")))))","v":""},{"$f":"IF($B299=\"N\",\"\",IF(AND('Enrollment Form'!$C306=\"ROC\",'Enrollment Form'!$DS306<>\"\"),\"Y\",IF(AND('Enrollment Form'!$C306=\"ROC\",'Enrollment Form'!$DS306=\"\"),\"N\",IF(AND('Enrollment Form'!$C306=\"Enroll\",'Enrollment Form'!$B306=\"Subscriber\",'Enrollment Form'!$CX306=\"No\",'Enrollment Form'!$DS306=\"\"),\"N\",IF(AND('Enrollment Form'!$C306=\"Enroll\",'Enrollment Form'!$B306=\"Subscriber\",'Enrollment Form'!$CX306=\"Yes\"),\"-\",\"Y\")))))","v":""},{"$f":"IF('Enrollment Form'!AH306=\"\",\"\",IF(ISERROR(SEARCH(\".\",'Enrollment Form'!AH306,SEARCH(\"@\",'Enrollment Form'!AH306))),\"N\",\"Y\"))","v":""},{"$f":"IF(OR($B299=\"N\",'Enrollment Form'!$G306=\"\"),\"\",IF('Enrollment Form'!$B306<>\"Subscriber\",\"-\",IF(COUNTIF('Enrollment Form'!$AV306:$AW306,\"Yes\")=2,\"N\",\"Y\")))","v":""},{"$f":"IF(OR('Enrollment Form'!$CJ306=\"\",'Enrollment Form'!$CJ306=\"No\"),\"-\",IF(AND('Enrollment Form'!$CJ306=\"Yes\",'Enrollment Form'!$CK306=\"\"),\"N\",\"Y\"))","v":"-"},{"$f":"IF(OR('Enrollment Form'!$CL306=\"\",'Enrollment Form'!$CL306=\"No\"),\"-\",IF(AND('Enrollment Form'!$CL306=\"Yes\",'Enrollment Form'!$CM306=\"\"),\"N\",\"Y\"))","v":"-"},{"$f":"IF(OR('Enrollment Form'!$CN306=\"\",'Enrollment Form'!$CN306=\"No\"),\"-\",IF(AND('Enrollment Form'!$CN306=\"Yes\",'Enrollment Form'!$CO306=\"\"),\"N\",\"Y\"))","v":"-"},{"$f":"IF(OR('Enrollment Form'!$CN306=\"\",'Enrollment Form'!$CN306=\"No\"),\"-\",IF(AND('Enrollment Form'!$CN306=\"Yes\",'Enrollment Form'!$CP306=\"\"),\"N\",\"Y\"))","v":"-"},{"$f":"IF('Enrollment Form'!B306<>\"Subscriber\",\"-\",IF(AND('Enrollment Form'!B306=\"Subscriber\",'Enrollment Form'!C306=\"Enroll\",'Enrollment Form'!AA306=\"\"),\"N\",\"Y\"))","v":"-"},{"$f":"IF(OR('Enrollment Form'!B306=\"Subscriber\",'Enrollment Form'!B306=\"\"),\"-\",IF('Enrollment Form'!BP306=\"\",\"N\",\"Y\"))","v":"-"},{"$f":"IF('Enrollment Form'!B306<>\"Subscriber\",\"-\",IF(AND('Enrollment Form'!B306=\"Subscriber\",'Enrollment Form'!G306=\"\"),\"N\",\"Y\"))","v":"-"},{"$f":"IF('Enrollment Form'!A306=\"\",\"\",IF('Enrollment Form'!B306=\"Subscriber\",\"-\",IF(AND('Enrollment Form'!B306<>\"Subscriber\",'Enrollment Form'!G306='Enrollment Form'!H306),\"N\",\"Y\")))","v":""},0]
[307,{"$f":"IF('Enrollment Form'!$A307<>\"\",\"Y\",\"N\")","v":"N"},{"$f":"IF(AND('Enrollment Form'!$B307=\"\",'Enrollment Form'!$C307<>\"\"),\"N\",IF($B300=\"N\",\"\",\"Y\"))","v":""},{"$f":"IF(OR($B300=\"N\",'Enrollment Form'!G307=\"\"),\"\",IF('Enrollment Form'!$B307<>\"Subscriber\",\"\",IF('Enrollment Form'!$G307='Enrollment Form'!$H307,\"Y\",\"N\")))","v":""},{"$f":"IF($B300=\"N\",\"\",IF(AND(COUNTIFS('Enrollment Form'!$H$11:$H$1000,'Enrollment Form'!$H307,'Enrollment Form'!$B$11:$B$1000,'Enrollment Form'!$B307)>1,'Enrollment Form'!$H307<>\"\"),\"N\",\"Y\"))","v":""},{"$f":"IF($B300=\"N\",\"\",IF(LEN('Enrollment Form'!$Y307)=0,\"\",IF(LEN('Enrollment Form'!$Y307)<>5,\"N\",\"Y\")))","v":""},{"$f":"IF($B300=\"N\",\"\",IF(LEN('Enrollment Form'!$AD307=0),\"\",IF(LEN('Enrollment Form'!$AD307)<>5,\"N\",\"Y\")))","v":""},{"$f":"IF($B300=\"N\",\"\",IF(LEN('Enrollment Form'!$BS307=0),\"\",IF(LEN('Enrollment Form'!$BS307)<>5,\"N\",\"Y\")))","v":""},{"$f":"IF($B300=\"N\",\"\",IF(LEN('Enrollment Form'!$AE307)=0,\"\",IF(LEN('Enrollment Form'!$AE307)<>10,\"N\",\"Y\")))","v":""},{"$f":"IF($B300=\"N\",\"\",IF(LEN('Enrollment Form'!$AF307)=0,\"\",IF(LEN('Enrollment Form'!$AF307)<>10,\"N\",\"Y\")))","v":""},{"$f":"IF('Enrollment Form'!$O307<>\"Graded\",\"-\",IF(AND('Enrollment Form'!$O307=\"Graded\",'Enrollment Form'!$AR307<>\"\"),\"Y\",\"N\"))","v":"-"},{"$f":"IF($B300=\"N\",\"\",IF(OR('Enrollment Form'!$B307<>\"Subscriber\",'Enrollment Form'!$C307=\"ROC\"),\"-\",IF(AND('Enrollment Form'!$B307=\"Subscriber\",'Enrollment Form'!$C307=\"Enroll\",'Enrollment Form'!$AJ307<>\"\"),\"Y\",\"N\")))","v":""},{"$f":"IF($B300=\"N\",\"\",IF(OR('Enrollment Form'!$B307<>\"Subscriber\",'Enrollment Form'!$C307=\"ROC\"),\"-\",IF(AND('Enrollment Form'!$B307=\"Subscriber\",'Enrollment Form'!$C307=\"Enroll\",'Enrollment Form'!$AK307<>\"\"),\"Y\",\"N\")))","v":""},{"$f":"IF($B300=\"N\",\"\",IF(OR('Enrollment Form'!$B307<>\"Subscriber\",'Enrollment Form'!$C307=\"ROC\"),\"-\",IF(AND('Enrollment Form'!$B307=\"Subscriber\",'Enrollment Form'!$C307=\"Enroll\",'Enrollment Form'!$AL307<>\"\"),\"Y\",\"N\")))","v":""},{"$f":"IF($B300=\"N\",\"\",IF(OR('Enrollment Form'!$B307<>\"Subscriber\",'Enrollment Form'!$C307=\"ROC\"),\"-\",IF(AND('Enrollment Form'!$B307=\"Subscriber\",'Enrollment Form'!$C307=\"Enroll\",'Enrollment Form'!$AP307<>\"\"),\"Y\",\"N\")))","v":""},{"$f":"IF($B300=\"N\",\"\",IF(OR('Enrollment Form'!$B307<>\"Subscriber\",'Enrollment Form'!$C307=\"ROC\"),\"-\",IF(AND('Enrollment Form'!$B307=\"Subscriber\",'Enrollment Form'!$C307=\"Enroll\",'Enrollment Form'!$AQ307<>\"\"),\"Y\",\"N\")))","v":""},{"$f":"IF($B300=\"N\",\"\",IF(OR('Enrollment Form'!$B307<>\"Subscriber\",'Enrollment Form'!$C307=\"ROC\"),\"-\",IF(AND('Enrollment Form'!$B307=\"Subscriber\",'Enrollment Form'!$C307=\"Enroll\",'Enrollment Form'!$AS307<>\"\"),\"Y\",\"N\")))","v":""},{"$f":"IF($B300=\"N\",\"\",IF($Q300=\"-\",\"-\",IF(AND($Q300=\"Y\",'Enrollment Form'!$AS307=\"No\"),\"-\",IF(AND($Q300=\"Y\",'Enrollment Form'!$AS307=\"Yes\",'Enrollment Form'!$AT307<>\"\"),\"Y\",\"N\"))))","v":""},{"$f":"IF($B300=\"N\",\"\",IF(OR('Enrollment Form'!$B307<>\"Subscriber\",'Enrollment Form'!$C307=\"ROC\"),\"-\",IF(AND('Enrollment Form'!$B307=\"Subscriber\",'Enrollment Form'!$C307=\"Enroll\",'Enrollment Form'!$CV307<>\"\"),\"Y\",\"N\")))","v":""},{"$f":"IF($B300=\"N\",\"\",IF($S300=\"-\",\"-\",IF(AND($S300=\"Y\",'Enrollment Form'!$CV307=\"No\"),\"-\",IF(AND($S300=\"Y\",'Enrollment Form'!$CV307=\"Yes\",'Enrollment Form'!$CW307<>\"\"),\"Y\",\"N\"))))","v":""},{"$f":"IF(OR('Enrollment Form'!$AY307=\"Yes\",'Enrollment Form'!$AY307=\"\"),\"-\",IF(OR(AND('Enrollment Form'!$AY307=\"No\",ISERROR(FIND(\"HMO\",VLOOKUP('Enrollment Form'!G307,'Enrollment Form'!H$11:J$1000,3,FALSE),1))=FALSE,COUNTA('Enrollment Form'!$AZ307:$BC307)=4),AND('Enrollment Form'!$AY307=\"No\",ISERROR(FIND(\"HMO\",VLOOKUP('Enrollment Form'!G307,'Enrollment Form'!H$11:J$1000,3,FALSE),1))=FALSE,COUNTA('Enrollment Form'!$BT307:$BW307)=4)),\"Y\",\"N\"))","v":"-"},{"$f":"IF($B300=\"N\",\"\",IF('Enrollment Form'!$B307=\"Subscriber\",\"-\",IF(COUNTA('Enrollment Form'!$BL307,'Enrollment Form'!$BN307)=2,\"Y\",\"N\")))","v":""},{"$f":"IF($B300=\"N\",\"\",IF(OR('Enrollment Form'!$AX307=\"\",'Enrollment Form'!$AX307=\"No\"),\"-\",IF(AND('Enrollment Form'!$AX307=\"Yes\",COUNTA('Enrollment Form'!$CR307)=1),\"Y\",\"N\")))","v":""},{"$f":"IF(OR('Enrollment Form'!$CR307=\"\",'Enrollment Form'!$CR307=\"No\"),\"-\",IF(COUNTA('Enrollment Form'!$CT307:$CU307)=2,\"Y\",\"N\"))","v":"-"},{"$f":"IF($B300=\"N\",\"\",IF(COUNTIF('Enrollment Form'!$DG307:$DP307,\"Other\")=COUNTA('Enrollment Form'!$DK307,'Enrollment Form'!$DH307,'Enrollment Form'!$DN307,'Enrollment Form'!$DQ307),\"Y\",\"N\"))","v":""},{"$f":"IF($B300=\"N\",\"\",IF(OR('Enrollment Form'!B307<>\"Subscriber\",'Enrollment Form'!C307=\"ROC\",COUNTIF('Enrollment Form'!AV307:AW307,\"Yes\")>=1),\"-\",IF(AND('Enrollment Form'!C307=\"Enroll\",COUNTIF('Enrollment Form'!AV307:AW307,\"No\")=2,'Enrollment Form'!AX307=\"\"),\"N\",\"Y\")))","v":""},{"$f":"IF(OR(B300=\"N\",'Enrollment Form'!B307<>\"Subscriber\",'Enrollment Form'!C307=\"ROC\",'Enrollment Form'!O307<>\"Multiple of Salary\"),\"-\",IF(COUNTA('Enrollment Form'!T307:U307)<2,\"N\",\"Y\"))","v":"-"},{"$f":"IF(B300=\"N\",\"\",IF(OR('Enrollment Form'!C307=\"ROC\",'Enrollment Form'!B307<>\"Subscriber\",'Enrollment Form'!O307=\"Waive\",'Enrollment Form'!O307=\"\"),\"-\",IF('Enrollment Form'!P307=\"\",\"N\",\"Y\")))","v":""},{"$f":"IF($B300=\"N\",\"\",IF(AND('Enrollment Form'!$C307=\"ROC\",'Enrollment Form'!$DR307<>\"\"),\"Y\",IF(AND('Enrollment Form'!$C307=\"ROC\",'Enrollment Form'!$DR307=\"\"),\"N\",IF(AND('Enrollment Form'!$C307=\"Enroll\",'Enrollment Form'!$B307=\"Subscriber\",'Enrollment Form'!$CX307=\"No\",'Enrollment Form'!$DR307=\"\"),\"N\",IF(AND('Enrollment Form'!$C307=\"Enroll\",'Enrollment Form'!$B307=\"Subscriber\",'Enrollment Form'!$CX307=\"Yes\"),\"-\",\"Y\")))))","v":""},{"$f":"IF($B300=\"N\",\"\",IF(AND('Enrollment Form'!$C307=\"ROC\",'Enrollment Form'!$DS307<>\"\"),\"Y\",IF(AND('Enrollment Form'!$C307=\"ROC\",'Enrollment Form'!$DS307=\"\"),\"N\",IF(AND('Enrollment Form'!$C307=\"Enroll\",'Enrollment Form'!$B307=\"Subscriber\",'Enrollment Form'!$CX307=\"No\",'Enrollment Form'!$DS307=\"\"),\"N\",IF(AND('Enrollment Form'!$C307=\"Enroll\",'Enrollment Form'!$B307=\"Subscriber\",'Enrollment Form'!$CX307=\"Yes\"),\"-\",\"Y\")))))","v":""},{"$f":"IF('Enrollment Form'!AH307=\"\",\"\",IF(ISERROR(SEARCH(\".\",'Enrollment Form'!AH307,SEARCH(\"@\",'Enrollment Form'!AH307))),\"N\",\"Y\"))","v":""},{"$f":"IF(OR($B300=\"N\",'Enrollment Form'!$G307=\"\"),\"\",IF('Enrollment Form'!$B307<>\"Subscriber\",\"-\",IF(COUNTIF('Enrollment Form'!$AV307:$AW307,\"Yes\")=2,\"N\",\"Y\")))","v":""},{"$f":"IF(OR('Enrollment Form'!$CJ307=\"\",'Enrollment Form'!$CJ307=\"No\"),\"-\",IF(AND('Enrollment Form'!$CJ307=\"Yes\",'Enrollment Form'!$CK307=\"\"),\"N\",\"Y\"))","v":"-"},{"$f":"IF(OR('Enrollment Form'!$CL307=\"\",'Enrollment Form'!$CL307=\"No\"),\"-\",IF(AND('Enrollment Form'!$CL307=\"Yes\",'Enrollment Form'!$CM307=\"\"),\"N\",\"Y\"))","v":"-"},{"$f":"IF(OR('Enrollment Form'!$CN307=\"\",'Enrollment Form'!$CN307=\"No\"),\"-\",IF(AND('Enrollment Form'!$CN307=\"Yes\",'Enrollment Form'!$CO307=\"\"),\"N\",\"Y\"))","v":"-"},{"$f":"IF(OR('Enrollment Form'!$CN307=\"\",'Enrollment Form'!$CN307=\"No\"),\"-\",IF(AND('Enrollment Form'!$CN307=\"Yes\",'Enrollment Form'!$CP307=\"\"),\"N\",\"Y\"))","v":"-"},{"$f":"IF('Enrollment Form'!B307<>\"Subscriber\",\"-\",IF(AND('Enrollment Form'!B307=\"Subscriber\",'Enrollment Form'!C307=\"Enroll\",'Enrollment Form'!AA307=\"\"),\"N\",\"Y\"))","v":"-"},{"$f":"IF(OR('Enrollment Form'!B307=\"Subscriber\",'Enrollment Form'!B307=\"\"),\"-\",IF('Enrollment Form'!BP307=\"\",\"N\",\"Y\"))","v":"-"},{"$f":"IF('Enrollment Form'!B307<>\"Subscriber\",\"-\",IF(AND('Enrollment Form'!B307=\"Subscriber\",'Enrollment Form'!G307=\"\"),\"N\",\"Y\"))","v":"-"},{"$f":"IF('Enrollment Form'!A307=\"\",\"\",IF('Enrollment Form'!B307=\"Subscriber\",\"-\",IF(AND('Enrollment Form'!B307<>\"Subscriber\",'Enrollment Form'!G307='Enrollment Form'!H307),\"N\",\"Y\")))","v":""},0]
[308,{"$f":"IF('Enrollment Form'!$A308<>\"\",\"Y\",\"N\")","v":"N"},{"$f":"IF(AND('Enrollment Form'!$B308=\"\",'Enrollment Form'!$C308<>\"\"),\"N\",IF($B301=\"N\",\"\",\"Y\"))","v":""},{"$f":"IF(OR($B301=\"N\",'Enrollment Form'!G308=\"\"),\"\",IF('Enrollment Form'!$B308<>\"Subscriber\",\"\",IF('Enrollment Form'!$G308='Enrollment Form'!$H308,\"Y\",\"N\")))","v":""},{"$f":"IF($B301=\"N\",\"\",IF(AND(COUNTIFS('Enrollment Form'!$H$11:$H$1000,'Enrollment Form'!$H308,'Enrollment Form'!$B$11:$B$1000,'Enrollment Form'!$B308)>1,'Enrollment Form'!$H308<>\"\"),\"N\",\"Y\"))","v":""},{"$f":"IF($B301=\"N\",\"\",IF(LEN('Enrollment Form'!$Y308)=0,\"\",IF(LEN('Enrollment Form'!$Y308)<>5,\"N\",\"Y\")))","v":""},{"$f":"IF($B301=\"N\",\"\",IF(LEN('Enrollment Form'!$AD308=0),\"\",IF(LEN('Enrollment Form'!$AD308)<>5,\"N\",\"Y\")))","v":""},{"$f":"IF($B301=\"N\",\"\",IF(LEN('Enrollment Form'!$BS308=0),\"\",IF(LEN('Enrollment Form'!$BS308)<>5,\"N\",\"Y\")))","v":""},{"$f":"IF($B301=\"N\",\"\",IF(LEN('Enrollment Form'!$AE308)=0,\"\",IF(LEN('Enrollment Form'!$AE308)<>10,\"N\",\"Y\")))","v":""},{"$f":"IF($B301=\"N\",\"\",IF(LEN('Enrollment Form'!$AF308)=0,\"\",IF(LEN('Enrollment Form'!$AF308)<>10,\"N\",\"Y\")))","v":""},{"$f":"IF('Enrollment Form'!$O308<>\"Graded\",\"-\",IF(AND('Enrollment Form'!$O308=\"Graded\",'Enrollment Form'!$AR308<>\"\"),\"Y\",\"N\"))","v":"-"},{"$f":"IF($B301=\"N\",\"\",IF(OR('Enrollment Form'!$B308<>\"Subscriber\",'Enrollment Form'!$C308=\"ROC\"),\"-\",IF(AND('Enrollment Form'!$B308=\"Subscriber\",'Enrollment Form'!$C308=\"Enroll\",'Enrollment Form'!$AJ308<>\"\"),\"Y\",\"N\")))","v":""},{"$f":"IF($B301=\"N\",\"\",IF(OR('Enrollment Form'!$B308<>\"Subscriber\",'Enrollment Form'!$C308=\"ROC\"),\"-\",IF(AND('Enrollment Form'!$B308=\"Subscriber\",'Enrollment Form'!$C308=\"Enroll\",'Enrollment Form'!$AK308<>\"\"),\"Y\",\"N\")))","v":""},{"$f":"IF($B301=\"N\",\"\",IF(OR('Enrollment Form'!$B308<>\"Subscriber\",'Enrollment Form'!$C308=\"ROC\"),\"-\",IF(AND('Enrollment Form'!$B308=\"Subscriber\",'Enrollment Form'!$C308=\"Enroll\",'Enrollment Form'!$AL308<>\"\"),\"Y\",\"N\")))","v":""},{"$f":"IF($B301=\"N\",\"\",IF(OR('Enrollment Form'!$B308<>\"Subscriber\",'Enrollment Form'!$C308=\"ROC\"),\"-\",IF(AND('Enrollment Form'!$B308=\"Subscriber\",'Enrollment Form'!$C308=\"Enroll\",'Enrollment Form'!$AP308<>\"\"),\"Y\",\"N\")))","v":""},{"$f":"IF($B301=\"N\",\"\",IF(OR('Enrollment Form'!$B308<>\"Subscriber\",'Enrollment Form'!$C308=\"ROC\"),\"-\",IF(AND('Enrollment Form'!$B308=\"Subscriber\",'Enrollment Form'!$C308=\"Enroll\",'Enrollment Form'!$AQ308<>\"\"),\"Y\",\"N\")))","v":""},{"$f":"IF($B301=\"N\",\"\",IF(OR('Enrollment Form'!$B308<>\"Subscriber\",'Enrollment Form'!$C308=\"ROC\"),\"-\",IF(AND('Enrollment Form'!$B308=\"Subscriber\",'Enrollment Form'!$C308=\"Enroll\",'Enrollment Form'!$AS308<>\"\"),\"Y\",\"N\")))","v":""},{"$f":"IF($B301=\"N\",\"\",IF($Q301=\"-\",\"-\",IF(AND($Q301=\"Y\",'Enrollment Form'!$AS308=\"No\"),\"-\",IF(AND($Q301=\"Y\",'Enrollment Form'!$AS308=\"Yes\",'Enrollment Form'!$AT308<>\"\"),\"Y\",\"N\"))))","v":""},{"$f":"IF($B301=\"N\",\"\",IF(OR('Enrollment Form'!$B308<>\"Subscriber\",'Enrollment Form'!$C308=\"ROC\"),\"-\",IF(AND('Enrollment Form'!$B308=\"Subscriber\",'Enrollment Form'!$C308=\"Enroll\",'Enrollment Form'!$CV308<>\"\"),\"Y\",\"N\")))","v":""},{"$f":"IF($B301=\"N\",\"\",IF($S301=\"-\",\"-\",IF(AND($S301=\"Y\",'Enrollment Form'!$CV308=\"No\"),\"-\",IF(AND($S301=\"Y\",'Enrollment Form'!$CV308=\"Yes\",'Enrollment Form'!$CW308<>\"\"),\"Y\",\"N\"))))","v":""},{"$f":"IF(OR('Enrollment Form'!$AY308=\"Yes\",'Enrollment Form'!$AY308=\"\"),\"-\",IF(OR(AND('Enrollment Form'!$AY308=\"No\",ISERROR(FIND(\"HMO\",VLOOKUP('Enrollment Form'!G308,'Enrollment Form'!H$11:J$1000,3,FALSE),1))=FALSE,COUNTA('Enrollment Form'!$AZ308:$BC308)=4),AND('Enrollment Form'!$AY308=\"No\",ISERROR(FIND(\"HMO\",VLOOKUP('Enrollment Form'!G308,'Enrollment Form'!H$11:J$1000,3,FALSE),1))=FALSE,COUNTA('Enrollment Form'!$BT308:$BW308)=4)),\"Y\",\"N\"))","v":"-"},{"$f":"IF($B301=\"N\",\"\",IF('Enrollment Form'!$B308=\"Subscriber\",\"-\",IF(COUNTA('Enrollment Form'!$BL308,'Enrollment Form'!$BN308)=2,\"Y\",\"N\")))","v":""},{"$f":"IF($B301=\"N\",\"\",IF(OR('Enrollment Form'!$AX308=\"\",'Enrollment Form'!$AX308=\"No\"),\"-\",IF(AND('Enrollment Form'!$AX308=\"Yes\",COUNTA('Enrollment Form'!$CR308)=1),\"Y\",\"N\")))","v":""},{"$f":"IF(OR('Enrollment Form'!$CR308=\"\",'Enrollment Form'!$CR308=\"No\"),\"-\",IF(COUNTA('Enrollment Form'!$CT308:$CU308)=2,\"Y\",\"N\"))","v":"-"},{"$f":"IF($B301=\"N\",\"\",IF(COUNTIF('Enrollment Form'!$DG308:$DP308,\"Other\")=COUNTA('Enrollment Form'!$DK308,'Enrollment Form'!$DH308,'Enrollment Form'!$DN308,'Enrollment Form'!$DQ308),\"Y\",\"N\"))","v":""},{"$f":"IF($B301=\"N\",\"\",IF(OR('Enrollment Form'!B308<>\"Subscriber\",'Enrollment Form'!C308=\"ROC\",COUNTIF('Enrollment Form'!AV308:AW308,\"Yes\")>=1),\"-\",IF(AND('Enrollment Form'!C308=\"Enroll\",COUNTIF('Enrollment Form'!AV308:AW308,\"No\")=2,'Enrollment Form'!AX308=\"\"),\"N\",\"Y\")))","v":""},{"$f":"IF(OR(B301=\"N\",'Enrollment Form'!B308<>\"Subscriber\",'Enrollment Form'!C308=\"ROC\",'Enrollment Form'!O308<>\"Multiple of Salary\"),\"-\",IF(COUNTA('Enrollment Form'!T308:U308)<2,\"N\",\"Y\"))","v":"-"},{"$f":"IF(B301=\"N\",\"\",IF(OR('Enrollment Form'!C308=\"ROC\",'Enrollment Form'!B308<>\"Subscriber\",'Enrollment Form'!O308=\"Waive\",'Enrollment Form'!O308=\"\"),\"-\",IF('Enrollment Form'!P308=\"\",\"N\",\"Y\")))","v":""},{"$f":"IF($B301=\"N\",\"\",IF(AND('Enrollment Form'!$C308=\"ROC\",'Enrollment Form'!$DR308<>\"\"),\"Y\",IF(AND('Enrollment Form'!$C308=\"ROC\",'Enrollment Form'!$DR308=\"\"),\"N\",IF(AND('Enrollment Form'!$C308=\"Enroll\",'Enrollment Form'!$B308=\"Subscriber\",'Enrollment Form'!$CX308=\"No\",'Enrollment Form'!$DR308=\"\"),\"N\",IF(AND('Enrollment Form'!$C308=\"Enroll\",'Enrollment Form'!$B308=\"Subscriber\",'Enrollment Form'!$CX308=\"Yes\"),\"-\",\"Y\")))))","v":""},{"$f":"IF($B301=\"N\",\"\",IF(AND('Enrollment Form'!$C308=\"ROC\",'Enrollment Form'!$DS308<>\"\"),\"Y\",IF(AND('Enrollment Form'!$C308=\"ROC\",'Enrollment Form'!$DS308=\"\"),\"N\",IF(AND('Enrollment Form'!$C308=\"Enroll\",'Enrollment Form'!$B308=\"Subscriber\",'Enrollment Form'!$CX308=\"No\",'Enrollment Form'!$DS308=\"\"),\"N\",IF(AND('Enrollment Form'!$C308=\"Enroll\",'Enrollment Form'!$B308=\"Subscriber\",'Enrollment Form'!$CX308=\"Yes\"),\"-\",\"Y\")))))","v":""},{"$f":"IF('Enrollment Form'!AH308=\"\",\"\",IF(ISERROR(SEARCH(\".\",'Enrollment Form'!AH308,SEARCH(\"@\",'Enrollment Form'!AH308))),\"N\",\"Y\"))","v":""},{"$f":"IF(OR($B301=\"N\",'Enrollment Form'!$G308=\"\"),\"\",IF('Enrollment Form'!$B308<>\"Subscriber\",\"-\",IF(COUNTIF('Enrollment Form'!$AV308:$AW308,\"Yes\")=2,\"N\",\"Y\")))","v":""},{"$f":"IF(OR('Enrollment Form'!$CJ308=\"\",'Enrollment Form'!$CJ308=\"No\"),\"-\",IF(AND('Enrollment Form'!$CJ308=\"Yes\",'Enrollment Form'!$CK308=\"\"),\"N\",\"Y\"))","v":"-"},{"$f":"IF(OR('Enrollment Form'!$CL308=\"\",'Enrollment Form'!$CL308=\"No\"),\"-\",IF(AND('Enrollment Form'!$CL308=\"Yes\",'Enrollment Form'!$CM308=\"\"),\"N\",\"Y\"))","v":"-"},{"$f":"IF(OR('Enrollment Form'!$CN308=\"\",'Enrollment Form'!$CN308=\"No\"),\"-\",IF(AND('Enrollment Form'!$CN308=\"Yes\",'Enrollment Form'!$CO308=\"\"),\"N\",\"Y\"))","v":"-"},{"$f":"IF(OR('Enrollment Form'!$CN308=\"\",'Enrollment Form'!$CN308=\"No\"),\"-\",IF(AND('Enrollment Form'!$CN308=\"Yes\",'Enrollment Form'!$CP308=\"\"),\"N\",\"Y\"))","v":"-"},{"$f":"IF('Enrollment Form'!B308<>\"Subscriber\",\"-\",IF(AND('Enrollment Form'!B308=\"Subscriber\",'Enrollment Form'!C308=\"Enroll\",'Enrollment Form'!AA308=\"\"),\"N\",\"Y\"))","v":"-"},{"$f":"IF(OR('Enrollment Form'!B308=\"Subscriber\",'Enrollment Form'!B308=\"\"),\"-\",IF('Enrollment Form'!BP308=\"\",\"N\",\"Y\"))","v":"-"},{"$f":"IF('Enrollment Form'!B308<>\"Subscriber\",\"-\",IF(AND('Enrollment Form'!B308=\"Subscriber\",'Enrollment Form'!G308=\"\"),\"N\",\"Y\"))","v":"-"},{"$f":"IF('Enrollment Form'!A308=\"\",\"\",IF('Enrollment Form'!B308=\"Subscriber\",\"-\",IF(AND('Enrollment Form'!B308<>\"Subscriber\",'Enrollment Form'!G308='Enrollment Form'!H308),\"N\",\"Y\")))","v":""},0]
[309,{"$f":"IF('Enrollment Form'!$A309<>\"\",\"Y\",\"N\")","v":"N"},{"$f":"IF(AND('Enrollment Form'!$B309=\"\",'Enrollment Form'!$C309<>\"\"),\"N\",IF($B302=\"N\",\"\",\"Y\"))","v":""},{"$f":"IF(OR($B302=\"N\",'Enrollment Form'!G309=\"\"),\"\",IF('Enrollment Form'!$B309<>\"Subscriber\",\"\",IF('Enrollment Form'!$G309='Enrollment Form'!$H309,\"Y\",\"N\")))","v":""},{"$f":"IF($B302=\"N\",\"\",IF(AND(COUNTIFS('Enrollment Form'!$H$11:$H$1000,'Enrollment Form'!$H309,'Enrollment Form'!$B$11:$B$1000,'Enrollment Form'!$B309)>1,'Enrollment Form'!$H309<>\"\"),\"N\",\"Y\"))","v":""},{"$f":"IF($B302=\"N\",\"\",IF(LEN('Enrollment Form'!$Y309)=0,\"\",IF(LEN('Enrollment Form'!$Y309)<>5,\"N\",\"Y\")))","v":""},{"$f":"IF($B302=\"N\",\"\",IF(LEN('Enrollment Form'!$AD309=0),\"\",IF(LEN('Enrollment Form'!$AD309)<>5,\"N\",\"Y\")))","v":""},{"$f":"IF($B302=\"N\",\"\",IF(LEN('Enrollment Form'!$BS309=0),\"\",IF(LEN('Enrollment Form'!$BS309)<>5,\"N\",\"Y\")))","v":""},{"$f":"IF($B302=\"N\",\"\",IF(LEN('Enrollment Form'!$AE309)=0,\"\",IF(LEN('Enrollment Form'!$AE309)<>10,\"N\",\"Y\")))","v":""},{"$f":"IF($B302=\"N\",\"\",IF(LEN('Enrollment Form'!$AF309)=0,\"\",IF(LEN('Enrollment Form'!$AF309)<>10,\"N\",\"Y\")))","v":""},{"$f":"IF('Enrollment Form'!$O309<>\"Graded\",\"-\",IF(AND('Enrollment Form'!$O309=\"Graded\",'Enrollment Form'!$AR309<>\"\"),\"Y\",\"N\"))","v":"-"},{"$f":"IF($B302=\"N\",\"\",IF(OR('Enrollment Form'!$B309<>\"Subscriber\",'Enrollment Form'!$C309=\"ROC\"),\"-\",IF(AND('Enrollment Form'!$B309=\"Subscriber\",'Enrollment Form'!$C309=\"Enroll\",'Enrollment Form'!$AJ309<>\"\"),\"Y\",\"N\")))","v":""},{"$f":"IF($B302=\"N\",\"\",IF(OR('Enrollment Form'!$B309<>\"Subscriber\",'Enrollment Form'!$C309=\"ROC\"),\"-\",IF(AND('Enrollment Form'!$B309=\"Subscriber\",'Enrollment Form'!$C309=\"Enroll\",'Enrollment Form'!$AK309<>\"\"),\"Y\",\"N\")))","v":""},{"$f":"IF($B302=\"N\",\"\",IF(OR('Enrollment Form'!$B309<>\"Subscriber\",'Enrollment Form'!$C309=\"ROC\"),\"-\",IF(AND('Enrollment Form'!$B309=\"Subscriber\",'Enrollment Form'!$C309=\"Enroll\",'Enrollment Form'!$AL309<>\"\"),\"Y\",\"N\")))","v":""},{"$f":"IF($B302=\"N\",\"\",IF(OR('Enrollment Form'!$B309<>\"Subscriber\",'Enrollment Form'!$C309=\"ROC\"),\"-\",IF(AND('Enrollment Form'!$B309=\"Subscriber\",'Enrollment Form'!$C309=\"Enroll\",'Enrollment Form'!$AP309<>\"\"),\"Y\",\"N\")))","v":""},{"$f":"IF($B302=\"N\",\"\",IF(OR('Enrollment Form'!$B309<>\"Subscriber\",'Enrollment Form'!$C309=\"ROC\"),\"-\",IF(AND('Enrollment Form'!$B309=\"Subscriber\",'Enrollment Form'!$C309=\"Enroll\",'Enrollment Form'!$AQ309<>\"\"),\"Y\",\"N\")))","v":""},{"$f":"IF($B302=\"N\",\"\",IF(OR('Enrollment Form'!$B309<>\"Subscriber\",'Enrollment Form'!$C309=\"ROC\"),\"-\",IF(AND('Enrollment Form'!$B309=\"Subscriber\",'Enrollment Form'!$C309=\"Enroll\",'Enrollment Form'!$AS309<>\"\"),\"Y\",\"N\")))","v":""},{"$f":"IF($B302=\"N\",\"\",IF($Q302=\"-\",\"-\",IF(AND($Q302=\"Y\",'Enrollment Form'!$AS309=\"No\"),\"-\",IF(AND($Q302=\"Y\",'Enrollment Form'!$AS309=\"Yes\",'Enrollment Form'!$AT309<>\"\"),\"Y\",\"N\"))))","v":""},{"$f":"IF($B302=\"N\",\"\",IF(OR('Enrollment Form'!$B309<>\"Subscriber\",'Enrollment Form'!$C309=\"ROC\"),\"-\",IF(AND('Enrollment Form'!$B309=\"Subscriber\",'Enrollment Form'!$C309=\"Enroll\",'Enrollment Form'!$CV309<>\"\"),\"Y\",\"N\")))","v":""},{"$f":"IF($B302=\"N\",\"\",IF($S302=\"-\",\"-\",IF(AND($S302=\"Y\",'Enrollment Form'!$CV309=\"No\"),\"-\",IF(AND($S302=\"Y\",'Enrollment Form'!$CV309=\"Yes\",'Enrollment Form'!$CW309<>\"\"),\"Y\",\"N\"))))","v":""},{"$f":"IF(OR('Enrollment Form'!$AY309=\"Yes\",'Enrollment Form'!$AY309=\"\"),\"-\",IF(OR(AND('Enrollment Form'!$AY309=\"No\",ISERROR(FIND(\"HMO\",VLOOKUP('Enrollment Form'!G309,'Enrollment Form'!H$11:J$1000,3,FALSE),1))=FALSE,COUNTA('Enrollment Form'!$AZ309:$BC309)=4),AND('Enrollment Form'!$AY309=\"No\",ISERROR(FIND(\"HMO\",VLOOKUP('Enrollment Form'!G309,'Enrollment Form'!H$11:J$1000,3,FALSE),1))=FALSE,COUNTA('Enrollment Form'!$BT309:$BW309)=4)),\"Y\",\"N\"))","v":"-"},{"$f":"IF($B302=\"N\",\"\",IF('Enrollment Form'!$B309=\"Subscriber\",\"-\",IF(COUNTA('Enrollment Form'!$BL309,'Enrollment Form'!$BN309)=2,\"Y\",\"N\")))","v":""},{"$f":"IF($B302=\"N\",\"\",IF(OR('Enrollment Form'!$AX309=\"\",'Enrollment Form'!$AX309=\"No\"),\"-\",IF(AND('Enrollment Form'!$AX309=\"Yes\",COUNTA('Enrollment Form'!$CR309)=1),\"Y\",\"N\")))","v":""},{"$f":"IF(OR('Enrollment Form'!$CR309=\"\",'Enrollment Form'!$CR309=\"No\"),\"-\",IF(COUNTA('Enrollment Form'!$CT309:$CU309)=2,\"Y\",\"N\"))","v":"-"},{"$f":"IF($B302=\"N\",\"\",IF(COUNTIF('Enrollment Form'!$DG309:$DP309,\"Other\")=COUNTA('Enrollment Form'!$DK309,'Enrollment Form'!$DH309,'Enrollment Form'!$DN309,'Enrollment Form'!$DQ309),\"Y\",\"N\"))","v":""},{"$f":"IF($B302=\"N\",\"\",IF(OR('Enrollment Form'!B309<>\"Subscriber\",'Enrollment Form'!C309=\"ROC\",COUNTIF('Enrollment Form'!AV309:AW309,\"Yes\")>=1),\"-\",IF(AND('Enrollment Form'!C309=\"Enroll\",COUNTIF('Enrollment Form'!AV309:AW309,\"No\")=2,'Enrollment Form'!AX309=\"\"),\"N\",\"Y\")))","v":""},{"$f":"IF(OR(B302=\"N\",'Enrollment Form'!B309<>\"Subscriber\",'Enrollment Form'!C309=\"ROC\",'Enrollment Form'!O309<>\"Multiple of Salary\"),\"-\",IF(COUNTA('Enrollment Form'!T309:U309)<2,\"N\",\"Y\"))","v":"-"},{"$f":"IF(B302=\"N\",\"\",IF(OR('Enrollment Form'!C309=\"ROC\",'Enrollment Form'!B309<>\"Subscriber\",'Enrollment Form'!O309=\"Waive\",'Enrollment Form'!O309=\"\"),\"-\",IF('Enrollment Form'!P309=\"\",\"N\",\"Y\")))","v":""},{"$f":"IF($B302=\"N\",\"\",IF(AND('Enrollment Form'!$C309=\"ROC\",'Enrollment Form'!$DR309<>\"\"),\"Y\",IF(AND('Enrollment Form'!$C309=\"ROC\",'Enrollment Form'!$DR309=\"\"),\"N\",IF(AND('Enrollment Form'!$C309=\"Enroll\",'Enrollment Form'!$B309=\"Subscriber\",'Enrollment Form'!$CX309=\"No\",'Enrollment Form'!$DR309=\"\"),\"N\",IF(AND('Enrollment Form'!$C309=\"Enroll\",'Enrollment Form'!$B309=\"Subscriber\",'Enrollment Form'!$CX309=\"Yes\"),\"-\",\"Y\")))))","v":""},{"$f":"IF($B302=\"N\",\"\",IF(AND('Enrollment Form'!$C309=\"ROC\",'Enrollment Form'!$DS309<>\"\"),\"Y\",IF(AND('Enrollment Form'!$C309=\"ROC\",'Enrollment Form'!$DS309=\"\"),\"N\",IF(AND('Enrollment Form'!$C309=\"Enroll\",'Enrollment Form'!$B309=\"Subscriber\",'Enrollment Form'!$CX309=\"No\",'Enrollment Form'!$DS309=\"\"),\"N\",IF(AND('Enrollment Form'!$C309=\"Enroll\",'Enrollment Form'!$B309=\"Subscriber\",'Enrollment Form'!$CX309=\"Yes\"),\"-\",\"Y\")))))","v":""},{"$f":"IF('Enrollment Form'!AH309=\"\",\"\",IF(ISERROR(SEARCH(\".\",'Enrollment Form'!AH309,SEARCH(\"@\",'Enrollment Form'!AH309))),\"N\",\"Y\"))","v":""},{"$f":"IF(OR($B302=\"N\",'Enrollment Form'!$G309=\"\"),\"\",IF('Enrollment Form'!$B309<>\"Subscriber\",\"-\",IF(COUNTIF('Enrollment Form'!$AV309:$AW309,\"Yes\")=2,\"N\",\"Y\")))","v":""},{"$f":"IF(OR('Enrollment Form'!$CJ309=\"\",'Enrollment Form'!$CJ309=\"No\"),\"-\",IF(AND('Enrollment Form'!$CJ309=\"Yes\",'Enrollment Form'!$CK309=\"\"),\"N\",\"Y\"))","v":"-"},{"$f":"IF(OR('Enrollment Form'!$CL309=\"\",'Enrollment Form'!$CL309=\"No\"),\"-\",IF(AND('Enrollment Form'!$CL309=\"Yes\",'Enrollment Form'!$CM309=\"\"),\"N\",\"Y\"))","v":"-"},{"$f":"IF(OR('Enrollment Form'!$CN309=\"\",'Enrollment Form'!$CN309=\"No\"),\"-\",IF(AND('Enrollment Form'!$CN309=\"Yes\",'Enrollment Form'!$CO309=\"\"),\"N\",\"Y\"))","v":"-"},{"$f":"IF(OR('Enrollment Form'!$CN309=\"\",'Enrollment Form'!$CN309=\"No\"),\"-\",IF(AND('Enrollment Form'!$CN309=\"Yes\",'Enrollment Form'!$CP309=\"\"),\"N\",\"Y\"))","v":"-"},{"$f":"IF('Enrollment Form'!B309<>\"Subscriber\",\"-\",IF(AND('Enrollment Form'!B309=\"Subscriber\",'Enrollment Form'!C309=\"Enroll\",'Enrollment Form'!AA309=\"\"),\"N\",\"Y\"))","v":"-"},{"$f":"IF(OR('Enrollment Form'!B309=\"Subscriber\",'Enrollment Form'!B309=\"\"),\"-\",IF('Enrollment Form'!BP309=\"\",\"N\",\"Y\"))","v":"-"},{"$f":"IF('Enrollment Form'!B309<>\"Subscriber\",\"-\",IF(AND('Enrollment Form'!B309=\"Subscriber\",'Enrollment Form'!G309=\"\"),\"N\",\"Y\"))","v":"-"},{"$f":"IF('Enrollment Form'!A309=\"\",\"\",IF('Enrollment Form'!B309=\"Subscriber\",\"-\",IF(AND('Enrollment Form'!B309<>\"Subscriber\",'Enrollment Form'!G309='Enrollment Form'!H309),\"N\",\"Y\")))","v":""},0]
[310,{"$f":"IF('Enrollment Form'!$A310<>\"\",\"Y\",\"N\")","v":"N"},{"$f":"IF(AND('Enrollment Form'!$B310=\"\",'Enrollment Form'!$C310<>\"\"),\"N\",IF($B303=\"N\",\"\",\"Y\"))","v":""},{"$f":"IF(OR($B303=\"N\",'Enrollment Form'!G310=\"\"),\"\",IF('Enrollment Form'!$B310<>\"Subscriber\",\"\",IF('Enrollment Form'!$G310='Enrollment Form'!$H310,\"Y\",\"N\")))","v":""},{"$f":"IF($B303=\"N\",\"\",IF(AND(COUNTIFS('Enrollment Form'!$H$11:$H$1000,'Enrollment Form'!$H310,'Enrollment Form'!$B$11:$B$1000,'Enrollment Form'!$B310)>1,'Enrollment Form'!$H310<>\"\"),\"N\",\"Y\"))","v":""},{"$f":"IF($B303=\"N\",\"\",IF(LEN('Enrollment Form'!$Y310)=0,\"\",IF(LEN('Enrollment Form'!$Y310)<>5,\"N\",\"Y\")))","v":""},{"$f":"IF($B303=\"N\",\"\",IF(LEN('Enrollment Form'!$AD310=0),\"\",IF(LEN('Enrollment Form'!$AD310)<>5,\"N\",\"Y\")))","v":""},{"$f":"IF($B303=\"N\",\"\",IF(LEN('Enrollment Form'!$BS310=0),\"\",IF(LEN('Enrollment Form'!$BS310)<>5,\"N\",\"Y\")))","v":""},{"$f":"IF($B303=\"N\",\"\",IF(LEN('Enrollment Form'!$AE310)=0,\"\",IF(LEN('Enrollment Form'!$AE310)<>10,\"N\",\"Y\")))","v":""},{"$f":"IF($B303=\"N\",\"\",IF(LEN('Enrollment Form'!$AF310)=0,\"\",IF(LEN('Enrollment Form'!$AF310)<>10,\"N\",\"Y\")))","v":""},{"$f":"IF('Enrollment Form'!$O310<>\"Graded\",\"-\",IF(AND('Enrollment Form'!$O310=\"Graded\",'Enrollment Form'!$AR310<>\"\"),\"Y\",\"N\"))","v":"-"},{"$f":"IF($B303=\"N\",\"\",IF(OR('Enrollment Form'!$B310<>\"Subscriber\",'Enrollment Form'!$C310=\"ROC\"),\"-\",IF(AND('Enrollment Form'!$B310=\"Subscriber\",'Enrollment Form'!$C310=\"Enroll\",'Enrollment Form'!$AJ310<>\"\"),\"Y\",\"N\")))","v":""},{"$f":"IF($B303=\"N\",\"\",IF(OR('Enrollment Form'!$B310<>\"Subscriber\",'Enrollment Form'!$C310=\"ROC\"),\"-\",IF(AND('Enrollment Form'!$B310=\"Subscriber\",'Enrollment Form'!$C310=\"Enroll\",'Enrollment Form'!$AK310<>\"\"),\"Y\",\"N\")))","v":""},{"$f":"IF($B303=\"N\",\"\",IF(OR('Enrollment Form'!$B310<>\"Subscriber\",'Enrollment Form'!$C310=\"ROC\"),\"-\",IF(AND('Enrollment Form'!$B310=\"Subscriber\",'Enrollment Form'!$C310=\"Enroll\",'Enrollment Form'!$AL310<>\"\"),\"Y\",\"N\")))","v":""},{"$f":"IF($B303=\"N\",\"\",IF(OR('Enrollment Form'!$B310<>\"Subscriber\",'Enrollment Form'!$C310=\"ROC\"),\"-\",IF(AND('Enrollment Form'!$B310=\"Subscriber\",'Enrollment Form'!$C310=\"Enroll\",'Enrollment Form'!$AP310<>\"\"),\"Y\",\"N\")))","v":""},{"$f":"IF($B303=\"N\",\"\",IF(OR('Enrollment Form'!$B310<>\"Subscriber\",'Enrollment Form'!$C310=\"ROC\"),\"-\",IF(AND('Enrollment Form'!$B310=\"Subscriber\",'Enrollment Form'!$C310=\"Enroll\",'Enrollment Form'!$AQ310<>\"\"),\"Y\",\"N\")))","v":""},{"$f":"IF($B303=\"N\",\"\",IF(OR('Enrollment Form'!$B310<>\"Subscriber\",'Enrollment Form'!$C310=\"ROC\"),\"-\",IF(AND('Enrollment Form'!$B310=\"Subscriber\",'Enrollment Form'!$C310=\"Enroll\",'Enrollment Form'!$AS310<>\"\"),\"Y\",\"N\")))","v":""},{"$f":"IF($B303=\"N\",\"\",IF($Q303=\"-\",\"-\",IF(AND($Q303=\"Y\",'Enrollment Form'!$AS310=\"No\"),\"-\",IF(AND($Q303=\"Y\",'Enrollment Form'!$AS310=\"Yes\",'Enrollment Form'!$AT310<>\"\"),\"Y\",\"N\"))))","v":""},{"$f":"IF($B303=\"N\",\"\",IF(OR('Enrollment Form'!$B310<>\"Subscriber\",'Enrollment Form'!$C310=\"ROC\"),\"-\",IF(AND('Enrollment Form'!$B310=\"Subscriber\",'Enrollment Form'!$C310=\"Enroll\",'Enrollment Form'!$CV310<>\"\"),\"Y\",\"N\")))","v":""},{"$f":"IF($B303=\"N\",\"\",IF($S303=\"-\",\"-\",IF(AND($S303=\"Y\",'Enrollment Form'!$CV310=\"No\"),\"-\",IF(AND($S303=\"Y\",'Enrollment Form'!$CV310=\"Yes\",'Enrollment Form'!$CW310<>\"\"),\"Y\",\"N\"))))","v":""},{"$f":"IF(OR('Enrollment Form'!$AY310=\"Yes\",'Enrollment Form'!$AY310=\"\"),\"-\",IF(OR(AND('Enrollment Form'!$AY310=\"No\",ISERROR(FIND(\"HMO\",VLOOKUP('Enrollment Form'!G310,'Enrollment Form'!H$11:J$1000,3,FALSE),1))=FALSE,COUNTA('Enrollment Form'!$AZ310:$BC310)=4),AND('Enrollment Form'!$AY310=\"No\",ISERROR(FIND(\"HMO\",VLOOKUP('Enrollment Form'!G310,'Enrollment Form'!H$11:J$1000,3,FALSE),1))=FALSE,COUNTA('Enrollment Form'!$BT310:$BW310)=4)),\"Y\",\"N\"))","v":"-"},{"$f":"IF($B303=\"N\",\"\",IF('Enrollment Form'!$B310=\"Subscriber\",\"-\",IF(COUNTA('Enrollment Form'!$BL310,'Enrollment Form'!$BN310)=2,\"Y\",\"N\")))","v":""},{"$f":"IF($B303=\"N\",\"\",IF(OR('Enrollment Form'!$AX310=\"\",'Enrollment Form'!$AX310=\"No\"),\"-\",IF(AND('Enrollment Form'!$AX310=\"Yes\",COUNTA('Enrollment Form'!$CR310)=1),\"Y\",\"N\")))","v":""},{"$f":"IF(OR('Enrollment Form'!$CR310=\"\",'Enrollment Form'!$CR310=\"No\"),\"-\",IF(COUNTA('Enrollment Form'!$CT310:$CU310)=2,\"Y\",\"N\"))","v":"-"},{"$f":"IF($B303=\"N\",\"\",IF(COUNTIF('Enrollment Form'!$DG310:$DP310,\"Other\")=COUNTA('Enrollment Form'!$DK310,'Enrollment Form'!$DH310,'Enrollment Form'!$DN310,'Enrollment Form'!$DQ310),\"Y\",\"N\"))","v":""},{"$f":"IF($B303=\"N\",\"\",IF(OR('Enrollment Form'!B310<>\"Subscriber\",'Enrollment Form'!C310=\"ROC\",COUNTIF('Enrollment Form'!AV310:AW310,\"Yes\")>=1),\"-\",IF(AND('Enrollment Form'!C310=\"Enroll\",COUNTIF('Enrollment Form'!AV310:AW310,\"No\")=2,'Enrollment Form'!AX310=\"\"),\"N\",\"Y\")))","v":""},{"$f":"IF(OR(B303=\"N\",'Enrollment Form'!B310<>\"Subscriber\",'Enrollment Form'!C310=\"ROC\",'Enrollment Form'!O310<>\"Multiple of Salary\"),\"-\",IF(COUNTA('Enrollment Form'!T310:U310)<2,\"N\",\"Y\"))","v":"-"},{"$f":"IF(B303=\"N\",\"\",IF(OR('Enrollment Form'!C310=\"ROC\",'Enrollment Form'!B310<>\"Subscriber\",'Enrollment Form'!O310=\"Waive\",'Enrollment Form'!O310=\"\"),\"-\",IF('Enrollment Form'!P310=\"\",\"N\",\"Y\")))","v":""},{"$f":"IF($B303=\"N\",\"\",IF(AND('Enrollment Form'!$C310=\"ROC\",'Enrollment Form'!$DR310<>\"\"),\"Y\",IF(AND('Enrollment Form'!$C310=\"ROC\",'Enrollment Form'!$DR310=\"\"),\"N\",IF(AND('Enrollment Form'!$C310=\"Enroll\",'Enrollment Form'!$B310=\"Subscriber\",'Enrollment Form'!$CX310=\"No\",'Enrollment Form'!$DR310=\"\"),\"N\",IF(AND('Enrollment Form'!$C310=\"Enroll\",'Enrollment Form'!$B310=\"Subscriber\",'Enrollment Form'!$CX310=\"Yes\"),\"-\",\"Y\")))))","v":""},{"$f":"IF($B303=\"N\",\"\",IF(AND('Enrollment Form'!$C310=\"ROC\",'Enrollment Form'!$DS310<>\"\"),\"Y\",IF(AND('Enrollment Form'!$C310=\"ROC\",'Enrollment Form'!$DS310=\"\"),\"N\",IF(AND('Enrollment Form'!$C310=\"Enroll\",'Enrollment Form'!$B310=\"Subscriber\",'Enrollment Form'!$CX310=\"No\",'Enrollment Form'!$DS310=\"\"),\"N\",IF(AND('Enrollment Form'!$C310=\"Enroll\",'Enrollment Form'!$B310=\"Subscriber\",'Enrollment Form'!$CX310=\"Yes\"),\"-\",\"Y\")))))","v":""},{"$f":"IF('Enrollment Form'!AH310=\"\",\"\",IF(ISERROR(SEARCH(\".\",'Enrollment Form'!AH310,SEARCH(\"@\",'Enrollment Form'!AH310))),\"N\",\"Y\"))","v":""},{"$f":"IF(OR($B303=\"N\",'Enrollment Form'!$G310=\"\"),\"\",IF('Enrollment Form'!$B310<>\"Subscriber\",\"-\",IF(COUNTIF('Enrollment Form'!$AV310:$AW310,\"Yes\")=2,\"N\",\"Y\")))","v":""},{"$f":"IF(OR('Enrollment Form'!$CJ310=\"\",'Enrollment Form'!$CJ310=\"No\"),\"-\",IF(AND('Enrollment Form'!$CJ310=\"Yes\",'Enrollment Form'!$CK310=\"\"),\"N\",\"Y\"))","v":"-"},{"$f":"IF(OR('Enrollment Form'!$CL310=\"\",'Enrollment Form'!$CL310=\"No\"),\"-\",IF(AND('Enrollment Form'!$CL310=\"Yes\",'Enrollment Form'!$CM310=\"\"),\"N\",\"Y\"))","v":"-"},{"$f":"IF(OR('Enrollment Form'!$CN310=\"\",'Enrollment Form'!$CN310=\"No\"),\"-\",IF(AND('Enrollment Form'!$CN310=\"Yes\",'Enrollment Form'!$CO310=\"\"),\"N\",\"Y\"))","v":"-"},{"$f":"IF(OR('Enrollment Form'!$CN310=\"\",'Enrollment Form'!$CN310=\"No\"),\"-\",IF(AND('Enrollment Form'!$CN310=\"Yes\",'Enrollment Form'!$CP310=\"\"),\"N\",\"Y\"))","v":"-"},{"$f":"IF('Enrollment Form'!B310<>\"Subscriber\",\"-\",IF(AND('Enrollment Form'!B310=\"Subscriber\",'Enrollment Form'!C310=\"Enroll\",'Enrollment Form'!AA310=\"\"),\"N\",\"Y\"))","v":"-"},{"$f":"IF(OR('Enrollment Form'!B310=\"Subscriber\",'Enrollment Form'!B310=\"\"),\"-\",IF('Enrollment Form'!BP310=\"\",\"N\",\"Y\"))","v":"-"},{"$f":"IF('Enrollment Form'!B310<>\"Subscriber\",\"-\",IF(AND('Enrollment Form'!B310=\"Subscriber\",'Enrollment Form'!G310=\"\"),\"N\",\"Y\"))","v":"-"},{"$f":"IF('Enrollment Form'!A310=\"\",\"\",IF('Enrollment Form'!B310=\"Subscriber\",\"-\",IF(AND('Enrollment Form'!B310<>\"Subscriber\",'Enrollment Form'!G310='Enrollment Form'!H310),\"N\",\"Y\")))","v":""},0]
[311,{"$f":"IF('Enrollment Form'!$A311<>\"\",\"Y\",\"N\")","v":"N"},{"$f":"IF(AND('Enrollment Form'!$B311=\"\",'Enrollment Form'!$C311<>\"\"),\"N\",IF($B304=\"N\",\"\",\"Y\"))","v":""},{"$f":"IF(OR($B304=\"N\",'Enrollment Form'!G311=\"\"),\"\",IF('Enrollment Form'!$B311<>\"Subscriber\",\"\",IF('Enrollment Form'!$G311='Enrollment Form'!$H311,\"Y\",\"N\")))","v":""},{"$f":"IF($B304=\"N\",\"\",IF(AND(COUNTIFS('Enrollment Form'!$H$11:$H$1000,'Enrollment Form'!$H311,'Enrollment Form'!$B$11:$B$1000,'Enrollment Form'!$B311)>1,'Enrollment Form'!$H311<>\"\"),\"N\",\"Y\"))","v":""},{"$f":"IF($B304=\"N\",\"\",IF(LEN('Enrollment Form'!$Y311)=0,\"\",IF(LEN('Enrollment Form'!$Y311)<>5,\"N\",\"Y\")))","v":""},{"$f":"IF($B304=\"N\",\"\",IF(LEN('Enrollment Form'!$AD311=0),\"\",IF(LEN('Enrollment Form'!$AD311)<>5,\"N\",\"Y\")))","v":""},{"$f":"IF($B304=\"N\",\"\",IF(LEN('Enrollment Form'!$BS311=0),\"\",IF(LEN('Enrollment Form'!$BS311)<>5,\"N\",\"Y\")))","v":""},{"$f":"IF($B304=\"N\",\"\",IF(LEN('Enrollment Form'!$AE311)=0,\"\",IF(LEN('Enrollment Form'!$AE311)<>10,\"N\",\"Y\")))","v":""},{"$f":"IF($B304=\"N\",\"\",IF(LEN('Enrollment Form'!$AF311)=0,\"\",IF(LEN('Enrollment Form'!$AF311)<>10,\"N\",\"Y\")))","v":""},{"$f":"IF('Enrollment Form'!$O311<>\"Graded\",\"-\",IF(AND('Enrollment Form'!$O311=\"Graded\",'Enrollment Form'!$AR311<>\"\"),\"Y\",\"N\"))","v":"-"},{"$f":"IF($B304=\"N\",\"\",IF(OR('Enrollment Form'!$B311<>\"Subscriber\",'Enrollment Form'!$C311=\"ROC\"),\"-\",IF(AND('Enrollment Form'!$B311=\"Subscriber\",'Enrollment Form'!$C311=\"Enroll\",'Enrollment Form'!$AJ311<>\"\"),\"Y\",\"N\")))","v":""},{"$f":"IF($B304=\"N\",\"\",IF(OR('Enrollment Form'!$B311<>\"Subscriber\",'Enrollment Form'!$C311=\"ROC\"),\"-\",IF(AND('Enrollment Form'!$B311=\"Subscriber\",'Enrollment Form'!$C311=\"Enroll\",'Enrollment Form'!$AK311<>\"\"),\"Y\",\"N\")))","v":""},{"$f":"IF($B304=\"N\",\"\",IF(OR('Enrollment Form'!$B311<>\"Subscriber\",'Enrollment Form'!$C311=\"ROC\"),\"-\",IF(AND('Enrollment Form'!$B311=\"Subscriber\",'Enrollment Form'!$C311=\"Enroll\",'Enrollment Form'!$AL311<>\"\"),\"Y\",\"N\")))","v":""},{"$f":"IF($B304=\"N\",\"\",IF(OR('Enrollment Form'!$B311<>\"Subscriber\",'Enrollment Form'!$C311=\"ROC\"),\"-\",IF(AND('Enrollment Form'!$B311=\"Subscriber\",'Enrollment Form'!$C311=\"Enroll\",'Enrollment Form'!$AP311<>\"\"),\"Y\",\"N\")))","v":""},{"$f":"IF($B304=\"N\",\"\",IF(OR('Enrollment Form'!$B311<>\"Subscriber\",'Enrollment Form'!$C311=\"ROC\"),\"-\",IF(AND('Enrollment Form'!$B311=\"Subscriber\",'Enrollment Form'!$C311=\"Enroll\",'Enrollment Form'!$AQ311<>\"\"),\"Y\",\"N\")))","v":""},{"$f":"IF($B304=\"N\",\"\",IF(OR('Enrollment Form'!$B311<>\"Subscriber\",'Enrollment Form'!$C311=\"ROC\"),\"-\",IF(AND('Enrollment Form'!$B311=\"Subscriber\",'Enrollment Form'!$C311=\"Enroll\",'Enrollment Form'!$AS311<>\"\"),\"Y\",\"N\")))","v":""},{"$f":"IF($B304=\"N\",\"\",IF($Q304=\"-\",\"-\",IF(AND($Q304=\"Y\",'Enrollment Form'!$AS311=\"No\"),\"-\",IF(AND($Q304=\"Y\",'Enrollment Form'!$AS311=\"Yes\",'Enrollment Form'!$AT311<>\"\"),\"Y\",\"N\"))))","v":""},{"$f":"IF($B304=\"N\",\"\",IF(OR('Enrollment Form'!$B311<>\"Subscriber\",'Enrollment Form'!$C311=\"ROC\"),\"-\",IF(AND('Enrollment Form'!$B311=\"Subscriber\",'Enrollment Form'!$C311=\"Enroll\",'Enrollment Form'!$CV311<>\"\"),\"Y\",\"N\")))","v":""},{"$f":"IF($B304=\"N\",\"\",IF($S304=\"-\",\"-\",IF(AND($S304=\"Y\",'Enrollment Form'!$CV311=\"No\"),\"-\",IF(AND($S304=\"Y\",'Enrollment Form'!$CV311=\"Yes\",'Enrollment Form'!$CW311<>\"\"),\"Y\",\"N\"))))","v":""},{"$f":"IF(OR('Enrollment Form'!$AY311=\"Yes\",'Enrollment Form'!$AY311=\"\"),\"-\",IF(OR(AND('Enrollment Form'!$AY311=\"No\",ISERROR(FIND(\"HMO\",VLOOKUP('Enrollment Form'!G311,'Enrollment Form'!H$11:J$1000,3,FALSE),1))=FALSE,COUNTA('Enrollment Form'!$AZ311:$BC311)=4),AND('Enrollment Form'!$AY311=\"No\",ISERROR(FIND(\"HMO\",VLOOKUP('Enrollment Form'!G311,'Enrollment Form'!H$11:J$1000,3,FALSE),1))=FALSE,COUNTA('Enrollment Form'!$BT311:$BW311)=4)),\"Y\",\"N\"))","v":"-"},{"$f":"IF($B304=\"N\",\"\",IF('Enrollment Form'!$B311=\"Subscriber\",\"-\",IF(COUNTA('Enrollment Form'!$BL311,'Enrollment Form'!$BN311)=2,\"Y\",\"N\")))","v":""},{"$f":"IF($B304=\"N\",\"\",IF(OR('Enrollment Form'!$AX311=\"\",'Enrollment Form'!$AX311=\"No\"),\"-\",IF(AND('Enrollment Form'!$AX311=\"Yes\",COUNTA('Enrollment Form'!$CR311)=1),\"Y\",\"N\")))","v":""},{"$f":"IF(OR('Enrollment Form'!$CR311=\"\",'Enrollment Form'!$CR311=\"No\"),\"-\",IF(COUNTA('Enrollment Form'!$CT311:$CU311)=2,\"Y\",\"N\"))","v":"-"},{"$f":"IF($B304=\"N\",\"\",IF(COUNTIF('Enrollment Form'!$DG311:$DP311,\"Other\")=COUNTA('Enrollment Form'!$DK311,'Enrollment Form'!$DH311,'Enrollment Form'!$DN311,'Enrollment Form'!$DQ311),\"Y\",\"N\"))","v":""},{"$f":"IF($B304=\"N\",\"\",IF(OR('Enrollment Form'!B311<>\"Subscriber\",'Enrollment Form'!C311=\"ROC\",COUNTIF('Enrollment Form'!AV311:AW311,\"Yes\")>=1),\"-\",IF(AND('Enrollment Form'!C311=\"Enroll\",COUNTIF('Enrollment Form'!AV311:AW311,\"No\")=2,'Enrollment Form'!AX311=\"\"),\"N\",\"Y\")))","v":""},{"$f":"IF(OR(B304=\"N\",'Enrollment Form'!B311<>\"Subscriber\",'Enrollment Form'!C311=\"ROC\",'Enrollment Form'!O311<>\"Multiple of Salary\"),\"-\",IF(COUNTA('Enrollment Form'!T311:U311)<2,\"N\",\"Y\"))","v":"-"},{"$f":"IF(B304=\"N\",\"\",IF(OR('Enrollment Form'!C311=\"ROC\",'Enrollment Form'!B311<>\"Subscriber\",'Enrollment Form'!O311=\"Waive\",'Enrollment Form'!O311=\"\"),\"-\",IF('Enrollment Form'!P311=\"\",\"N\",\"Y\")))","v":""},{"$f":"IF($B304=\"N\",\"\",IF(AND('Enrollment Form'!$C311=\"ROC\",'Enrollment Form'!$DR311<>\"\"),\"Y\",IF(AND('Enrollment Form'!$C311=\"ROC\",'Enrollment Form'!$DR311=\"\"),\"N\",IF(AND('Enrollment Form'!$C311=\"Enroll\",'Enrollment Form'!$B311=\"Subscriber\",'Enrollment Form'!$CX311=\"No\",'Enrollment Form'!$DR311=\"\"),\"N\",IF(AND('Enrollment Form'!$C311=\"Enroll\",'Enrollment Form'!$B311=\"Subscriber\",'Enrollment Form'!$CX311=\"Yes\"),\"-\",\"Y\")))))","v":""},{"$f":"IF($B304=\"N\",\"\",IF(AND('Enrollment Form'!$C311=\"ROC\",'Enrollment Form'!$DS311<>\"\"),\"Y\",IF(AND('Enrollment Form'!$C311=\"ROC\",'Enrollment Form'!$DS311=\"\"),\"N\",IF(AND('Enrollment Form'!$C311=\"Enroll\",'Enrollment Form'!$B311=\"Subscriber\",'Enrollment Form'!$CX311=\"No\",'Enrollment Form'!$DS311=\"\"),\"N\",IF(AND('Enrollment Form'!$C311=\"Enroll\",'Enrollment Form'!$B311=\"Subscriber\",'Enrollment Form'!$CX311=\"Yes\"),\"-\",\"Y\")))))","v":""},{"$f":"IF('Enrollment Form'!AH311=\"\",\"\",IF(ISERROR(SEARCH(\".\",'Enrollment Form'!AH311,SEARCH(\"@\",'Enrollment Form'!AH311))),\"N\",\"Y\"))","v":""},{"$f":"IF(OR($B304=\"N\",'Enrollment Form'!$G311=\"\"),\"\",IF('Enrollment Form'!$B311<>\"Subscriber\",\"-\",IF(COUNTIF('Enrollment Form'!$AV311:$AW311,\"Yes\")=2,\"N\",\"Y\")))","v":""},{"$f":"IF(OR('Enrollment Form'!$CJ311=\"\",'Enrollment Form'!$CJ311=\"No\"),\"-\",IF(AND('Enrollment Form'!$CJ311=\"Yes\",'Enrollment Form'!$CK311=\"\"),\"N\",\"Y\"))","v":"-"},{"$f":"IF(OR('Enrollment Form'!$CL311=\"\",'Enrollment Form'!$CL311=\"No\"),\"-\",IF(AND('Enrollment Form'!$CL311=\"Yes\",'Enrollment Form'!$CM311=\"\"),\"N\",\"Y\"))","v":"-"},{"$f":"IF(OR('Enrollment Form'!$CN311=\"\",'Enrollment Form'!$CN311=\"No\"),\"-\",IF(AND('Enrollment Form'!$CN311=\"Yes\",'Enrollment Form'!$CO311=\"\"),\"N\",\"Y\"))","v":"-"},{"$f":"IF(OR('Enrollment Form'!$CN311=\"\",'Enrollment Form'!$CN311=\"No\"),\"-\",IF(AND('Enrollment Form'!$CN311=\"Yes\",'Enrollment Form'!$CP311=\"\"),\"N\",\"Y\"))","v":"-"},{"$f":"IF('Enrollment Form'!B311<>\"Subscriber\",\"-\",IF(AND('Enrollment Form'!B311=\"Subscriber\",'Enrollment Form'!C311=\"Enroll\",'Enrollment Form'!AA311=\"\"),\"N\",\"Y\"))","v":"-"},{"$f":"IF(OR('Enrollment Form'!B311=\"Subscriber\",'Enrollment Form'!B311=\"\"),\"-\",IF('Enrollment Form'!BP311=\"\",\"N\",\"Y\"))","v":"-"},{"$f":"IF('Enrollment Form'!B311<>\"Subscriber\",\"-\",IF(AND('Enrollment Form'!B311=\"Subscriber\",'Enrollment Form'!G311=\"\"),\"N\",\"Y\"))","v":"-"},{"$f":"IF('Enrollment Form'!A311=\"\",\"\",IF('Enrollment Form'!B311=\"Subscriber\",\"-\",IF(AND('Enrollment Form'!B311<>\"Subscriber\",'Enrollment Form'!G311='Enrollment Form'!H311),\"N\",\"Y\")))","v":""},0]
[312,{"$f":"IF('Enrollment Form'!$A312<>\"\",\"Y\",\"N\")","v":"N"},{"$f":"IF(AND('Enrollment Form'!$B312=\"\",'Enrollment Form'!$C312<>\"\"),\"N\",IF($B305=\"N\",\"\",\"Y\"))","v":""},{"$f":"IF(OR($B305=\"N\",'Enrollment Form'!G312=\"\"),\"\",IF('Enrollment Form'!$B312<>\"Subscriber\",\"\",IF('Enrollment Form'!$G312='Enrollment Form'!$H312,\"Y\",\"N\")))","v":""},{"$f":"IF($B305=\"N\",\"\",IF(AND(COUNTIFS('Enrollment Form'!$H$11:$H$1000,'Enrollment Form'!$H312,'Enrollment Form'!$B$11:$B$1000,'Enrollment Form'!$B312)>1,'Enrollment Form'!$H312<>\"\"),\"N\",\"Y\"))","v":""},{"$f":"IF($B305=\"N\",\"\",IF(LEN('Enrollment Form'!$Y312)=0,\"\",IF(LEN('Enrollment Form'!$Y312)<>5,\"N\",\"Y\")))","v":""},{"$f":"IF($B305=\"N\",\"\",IF(LEN('Enrollment Form'!$AD312=0),\"\",IF(LEN('Enrollment Form'!$AD312)<>5,\"N\",\"Y\")))","v":""},{"$f":"IF($B305=\"N\",\"\",IF(LEN('Enrollment Form'!$BS312=0),\"\",IF(LEN('Enrollment Form'!$BS312)<>5,\"N\",\"Y\")))","v":""},{"$f":"IF($B305=\"N\",\"\",IF(LEN('Enrollment Form'!$AE312)=0,\"\",IF(LEN('Enrollment Form'!$AE312)<>10,\"N\",\"Y\")))","v":""},{"$f":"IF($B305=\"N\",\"\",IF(LEN('Enrollment Form'!$AF312)=0,\"\",IF(LEN('Enrollment Form'!$AF312)<>10,\"N\",\"Y\")))","v":""},{"$f":"IF('Enrollment Form'!$O312<>\"Graded\",\"-\",IF(AND('Enrollment Form'!$O312=\"Graded\",'Enrollment Form'!$AR312<>\"\"),\"Y\",\"N\"))","v":"-"},{"$f":"IF($B305=\"N\",\"\",IF(OR('Enrollment Form'!$B312<>\"Subscriber\",'Enrollment Form'!$C312=\"ROC\"),\"-\",IF(AND('Enrollment Form'!$B312=\"Subscriber\",'Enrollment Form'!$C312=\"Enroll\",'Enrollment Form'!$AJ312<>\"\"),\"Y\",\"N\")))","v":""},{"$f":"IF($B305=\"N\",\"\",IF(OR('Enrollment Form'!$B312<>\"Subscriber\",'Enrollment Form'!$C312=\"ROC\"),\"-\",IF(AND('Enrollment Form'!$B312=\"Subscriber\",'Enrollment Form'!$C312=\"Enroll\",'Enrollment Form'!$AK312<>\"\"),\"Y\",\"N\")))","v":""},{"$f":"IF($B305=\"N\",\"\",IF(OR('Enrollment Form'!$B312<>\"Subscriber\",'Enrollment Form'!$C312=\"ROC\"),\"-\",IF(AND('Enrollment Form'!$B312=\"Subscriber\",'Enrollment Form'!$C312=\"Enroll\",'Enrollment Form'!$AL312<>\"\"),\"Y\",\"N\")))","v":""},{"$f":"IF($B305=\"N\",\"\",IF(OR('Enrollment Form'!$B312<>\"Subscriber\",'Enrollment Form'!$C312=\"ROC\"),\"-\",IF(AND('Enrollment Form'!$B312=\"Subscriber\",'Enrollment Form'!$C312=\"Enroll\",'Enrollment Form'!$AP312<>\"\"),\"Y\",\"N\")))","v":""},{"$f":"IF($B305=\"N\",\"\",IF(OR('Enrollment Form'!$B312<>\"Subscriber\",'Enrollment Form'!$C312=\"ROC\"),\"-\",IF(AND('Enrollment Form'!$B312=\"Subscriber\",'Enrollment Form'!$C312=\"Enroll\",'Enrollment Form'!$AQ312<>\"\"),\"Y\",\"N\")))","v":""},{"$f":"IF($B305=\"N\",\"\",IF(OR('Enrollment Form'!$B312<>\"Subscriber\",'Enrollment Form'!$C312=\"ROC\"),\"-\",IF(AND('Enrollment Form'!$B312=\"Subscriber\",'Enrollment Form'!$C312=\"Enroll\",'Enrollment Form'!$AS312<>\"\"),\"Y\",\"N\")))","v":""},{"$f":"IF($B305=\"N\",\"\",IF($Q305=\"-\",\"-\",IF(AND($Q305=\"Y\",'Enrollment Form'!$AS312=\"No\"),\"-\",IF(AND($Q305=\"Y\",'Enrollment Form'!$AS312=\"Yes\",'Enrollment Form'!$AT312<>\"\"),\"Y\",\"N\"))))","v":""},{"$f":"IF($B305=\"N\",\"\",IF(OR('Enrollment Form'!$B312<>\"Subscriber\",'Enrollment Form'!$C312=\"ROC\"),\"-\",IF(AND('Enrollment Form'!$B312=\"Subscriber\",'Enrollment Form'!$C312=\"Enroll\",'Enrollment Form'!$CV312<>\"\"),\"Y\",\"N\")))","v":""},{"$f":"IF($B305=\"N\",\"\",IF($S305=\"-\",\"-\",IF(AND($S305=\"Y\",'Enrollment Form'!$CV312=\"No\"),\"-\",IF(AND($S305=\"Y\",'Enrollment Form'!$CV312=\"Yes\",'Enrollment Form'!$CW312<>\"\"),\"Y\",\"N\"))))","v":""},{"$f":"IF(OR('Enrollment Form'!$AY312=\"Yes\",'Enrollment Form'!$AY312=\"\"),\"-\",IF(OR(AND('Enrollment Form'!$AY312=\"No\",ISERROR(FIND(\"HMO\",VLOOKUP('Enrollment Form'!G312,'Enrollment Form'!H$11:J$1000,3,FALSE),1))=FALSE,COUNTA('Enrollment Form'!$AZ312:$BC312)=4),AND('Enrollment Form'!$AY312=\"No\",ISERROR(FIND(\"HMO\",VLOOKUP('Enrollment Form'!G312,'Enrollment Form'!H$11:J$1000,3,FALSE),1))=FALSE,COUNTA('Enrollment Form'!$BT312:$BW312)=4)),\"Y\",\"N\"))","v":"-"},{"$f":"IF($B305=\"N\",\"\",IF('Enrollment Form'!$B312=\"Subscriber\",\"-\",IF(COUNTA('Enrollment Form'!$BL312,'Enrollment Form'!$BN312)=2,\"Y\",\"N\")))","v":""},{"$f":"IF($B305=\"N\",\"\",IF(OR('Enrollment Form'!$AX312=\"\",'Enrollment Form'!$AX312=\"No\"),\"-\",IF(AND('Enrollment Form'!$AX312=\"Yes\",COUNTA('Enrollment Form'!$CR312)=1),\"Y\",\"N\")))","v":""},{"$f":"IF(OR('Enrollment Form'!$CR312=\"\",'Enrollment Form'!$CR312=\"No\"),\"-\",IF(COUNTA('Enrollment Form'!$CT312:$CU312)=2,\"Y\",\"N\"))","v":"-"},{"$f":"IF($B305=\"N\",\"\",IF(COUNTIF('Enrollment Form'!$DG312:$DP312,\"Other\")=COUNTA('Enrollment Form'!$DK312,'Enrollment Form'!$DH312,'Enrollment Form'!$DN312,'Enrollment Form'!$DQ312),\"Y\",\"N\"))","v":""},{"$f":"IF($B305=\"N\",\"\",IF(OR('Enrollment Form'!B312<>\"Subscriber\",'Enrollment Form'!C312=\"ROC\",COUNTIF('Enrollment Form'!AV312:AW312,\"Yes\")>=1),\"-\",IF(AND('Enrollment Form'!C312=\"Enroll\",COUNTIF('Enrollment Form'!AV312:AW312,\"No\")=2,'Enrollment Form'!AX312=\"\"),\"N\",\"Y\")))","v":""},{"$f":"IF(OR(B305=\"N\",'Enrollment Form'!B312<>\"Subscriber\",'Enrollment Form'!C312=\"ROC\",'Enrollment Form'!O312<>\"Multiple of Salary\"),\"-\",IF(COUNTA('Enrollment Form'!T312:U312)<2,\"N\",\"Y\"))","v":"-"},{"$f":"IF(B305=\"N\",\"\",IF(OR('Enrollment Form'!C312=\"ROC\",'Enrollment Form'!B312<>\"Subscriber\",'Enrollment Form'!O312=\"Waive\",'Enrollment Form'!O312=\"\"),\"-\",IF('Enrollment Form'!P312=\"\",\"N\",\"Y\")))","v":""},{"$f":"IF($B305=\"N\",\"\",IF(AND('Enrollment Form'!$C312=\"ROC\",'Enrollment Form'!$DR312<>\"\"),\"Y\",IF(AND('Enrollment Form'!$C312=\"ROC\",'Enrollment Form'!$DR312=\"\"),\"N\",IF(AND('Enrollment Form'!$C312=\"Enroll\",'Enrollment Form'!$B312=\"Subscriber\",'Enrollment Form'!$CX312=\"No\",'Enrollment Form'!$DR312=\"\"),\"N\",IF(AND('Enrollment Form'!$C312=\"Enroll\",'Enrollment Form'!$B312=\"Subscriber\",'Enrollment Form'!$CX312=\"Yes\"),\"-\",\"Y\")))))","v":""},{"$f":"IF($B305=\"N\",\"\",IF(AND('Enrollment Form'!$C312=\"ROC\",'Enrollment Form'!$DS312<>\"\"),\"Y\",IF(AND('Enrollment Form'!$C312=\"ROC\",'Enrollment Form'!$DS312=\"\"),\"N\",IF(AND('Enrollment Form'!$C312=\"Enroll\",'Enrollment Form'!$B312=\"Subscriber\",'Enrollment Form'!$CX312=\"No\",'Enrollment Form'!$DS312=\"\"),\"N\",IF(AND('Enrollment Form'!$C312=\"Enroll\",'Enrollment Form'!$B312=\"Subscriber\",'Enrollment Form'!$CX312=\"Yes\"),\"-\",\"Y\")))))","v":""},{"$f":"IF('Enrollment Form'!AH312=\"\",\"\",IF(ISERROR(SEARCH(\".\",'Enrollment Form'!AH312,SEARCH(\"@\",'Enrollment Form'!AH312))),\"N\",\"Y\"))","v":""},{"$f":"IF(OR($B305=\"N\",'Enrollment Form'!$G312=\"\"),\"\",IF('Enrollment Form'!$B312<>\"Subscriber\",\"-\",IF(COUNTIF('Enrollment Form'!$AV312:$AW312,\"Yes\")=2,\"N\",\"Y\")))","v":""},{"$f":"IF(OR('Enrollment Form'!$CJ312=\"\",'Enrollment Form'!$CJ312=\"No\"),\"-\",IF(AND('Enrollment Form'!$CJ312=\"Yes\",'Enrollment Form'!$CK312=\"\"),\"N\",\"Y\"))","v":"-"},{"$f":"IF(OR('Enrollment Form'!$CL312=\"\",'Enrollment Form'!$CL312=\"No\"),\"-\",IF(AND('Enrollment Form'!$CL312=\"Yes\",'Enrollment Form'!$CM312=\"\"),\"N\",\"Y\"))","v":"-"},{"$f":"IF(OR('Enrollment Form'!$CN312=\"\",'Enrollment Form'!$CN312=\"No\"),\"-\",IF(AND('Enrollment Form'!$CN312=\"Yes\",'Enrollment Form'!$CO312=\"\"),\"N\",\"Y\"))","v":"-"},{"$f":"IF(OR('Enrollment Form'!$CN312=\"\",'Enrollment Form'!$CN312=\"No\"),\"-\",IF(AND('Enrollment Form'!$CN312=\"Yes\",'Enrollment Form'!$CP312=\"\"),\"N\",\"Y\"))","v":"-"},{"$f":"IF('Enrollment Form'!B312<>\"Subscriber\",\"-\",IF(AND('Enrollment Form'!B312=\"Subscriber\",'Enrollment Form'!C312=\"Enroll\",'Enrollment Form'!AA312=\"\"),\"N\",\"Y\"))","v":"-"},{"$f":"IF(OR('Enrollment Form'!B312=\"Subscriber\",'Enrollment Form'!B312=\"\"),\"-\",IF('Enrollment Form'!BP312=\"\",\"N\",\"Y\"))","v":"-"},{"$f":"IF('Enrollment Form'!B312<>\"Subscriber\",\"-\",IF(AND('Enrollment Form'!B312=\"Subscriber\",'Enrollment Form'!G312=\"\"),\"N\",\"Y\"))","v":"-"},{"$f":"IF('Enrollment Form'!A312=\"\",\"\",IF('Enrollment Form'!B312=\"Subscriber\",\"-\",IF(AND('Enrollment Form'!B312<>\"Subscriber\",'Enrollment Form'!G312='Enrollment Form'!H312),\"N\",\"Y\")))","v":""},0]
[313,{"$f":"IF('Enrollment Form'!$A313<>\"\",\"Y\",\"N\")","v":"N"},{"$f":"IF(AND('Enrollment Form'!$B313=\"\",'Enrollment Form'!$C313<>\"\"),\"N\",IF($B306=\"N\",\"\",\"Y\"))","v":""},{"$f":"IF(OR($B306=\"N\",'Enrollment Form'!G313=\"\"),\"\",IF('Enrollment Form'!$B313<>\"Subscriber\",\"\",IF('Enrollment Form'!$G313='Enrollment Form'!$H313,\"Y\",\"N\")))","v":""},{"$f":"IF($B306=\"N\",\"\",IF(AND(COUNTIFS('Enrollment Form'!$H$11:$H$1000,'Enrollment Form'!$H313,'Enrollment Form'!$B$11:$B$1000,'Enrollment Form'!$B313)>1,'Enrollment Form'!$H313<>\"\"),\"N\",\"Y\"))","v":""},{"$f":"IF($B306=\"N\",\"\",IF(LEN('Enrollment Form'!$Y313)=0,\"\",IF(LEN('Enrollment Form'!$Y313)<>5,\"N\",\"Y\")))","v":""},{"$f":"IF($B306=\"N\",\"\",IF(LEN('Enrollment Form'!$AD313=0),\"\",IF(LEN('Enrollment Form'!$AD313)<>5,\"N\",\"Y\")))","v":""},{"$f":"IF($B306=\"N\",\"\",IF(LEN('Enrollment Form'!$BS313=0),\"\",IF(LEN('Enrollment Form'!$BS313)<>5,\"N\",\"Y\")))","v":""},{"$f":"IF($B306=\"N\",\"\",IF(LEN('Enrollment Form'!$AE313)=0,\"\",IF(LEN('Enrollment Form'!$AE313)<>10,\"N\",\"Y\")))","v":""},{"$f":"IF($B306=\"N\",\"\",IF(LEN('Enrollment Form'!$AF313)=0,\"\",IF(LEN('Enrollment Form'!$AF313)<>10,\"N\",\"Y\")))","v":""},{"$f":"IF('Enrollment Form'!$O313<>\"Graded\",\"-\",IF(AND('Enrollment Form'!$O313=\"Graded\",'Enrollment Form'!$AR313<>\"\"),\"Y\",\"N\"))","v":"-"},{"$f":"IF($B306=\"N\",\"\",IF(OR('Enrollment Form'!$B313<>\"Subscriber\",'Enrollment Form'!$C313=\"ROC\"),\"-\",IF(AND('Enrollment Form'!$B313=\"Subscriber\",'Enrollment Form'!$C313=\"Enroll\",'Enrollment Form'!$AJ313<>\"\"),\"Y\",\"N\")))","v":""},{"$f":"IF($B306=\"N\",\"\",IF(OR('Enrollment Form'!$B313<>\"Subscriber\",'Enrollment Form'!$C313=\"ROC\"),\"-\",IF(AND('Enrollment Form'!$B313=\"Subscriber\",'Enrollment Form'!$C313=\"Enroll\",'Enrollment Form'!$AK313<>\"\"),\"Y\",\"N\")))","v":""},{"$f":"IF($B306=\"N\",\"\",IF(OR('Enrollment Form'!$B313<>\"Subscriber\",'Enrollment Form'!$C313=\"ROC\"),\"-\",IF(AND('Enrollment Form'!$B313=\"Subscriber\",'Enrollment Form'!$C313=\"Enroll\",'Enrollment Form'!$AL313<>\"\"),\"Y\",\"N\")))","v":""},{"$f":"IF($B306=\"N\",\"\",IF(OR('Enrollment Form'!$B313<>\"Subscriber\",'Enrollment Form'!$C313=\"ROC\"),\"-\",IF(AND('Enrollment Form'!$B313=\"Subscriber\",'Enrollment Form'!$C313=\"Enroll\",'Enrollment Form'!$AP313<>\"\"),\"Y\",\"N\")))","v":""},{"$f":"IF($B306=\"N\",\"\",IF(OR('Enrollment Form'!$B313<>\"Subscriber\",'Enrollment Form'!$C313=\"ROC\"),\"-\",IF(AND('Enrollment Form'!$B313=\"Subscriber\",'Enrollment Form'!$C313=\"Enroll\",'Enrollment Form'!$AQ313<>\"\"),\"Y\",\"N\")))","v":""},{"$f":"IF($B306=\"N\",\"\",IF(OR('Enrollment Form'!$B313<>\"Subscriber\",'Enrollment Form'!$C313=\"ROC\"),\"-\",IF(AND('Enrollment Form'!$B313=\"Subscriber\",'Enrollment Form'!$C313=\"Enroll\",'Enrollment Form'!$AS313<>\"\"),\"Y\",\"N\")))","v":""},{"$f":"IF($B306=\"N\",\"\",IF($Q306=\"-\",\"-\",IF(AND($Q306=\"Y\",'Enrollment Form'!$AS313=\"No\"),\"-\",IF(AND($Q306=\"Y\",'Enrollment Form'!$AS313=\"Yes\",'Enrollment Form'!$AT313<>\"\"),\"Y\",\"N\"))))","v":""},{"$f":"IF($B306=\"N\",\"\",IF(OR('Enrollment Form'!$B313<>\"Subscriber\",'Enrollment Form'!$C313=\"ROC\"),\"-\",IF(AND('Enrollment Form'!$B313=\"Subscriber\",'Enrollment Form'!$C313=\"Enroll\",'Enrollment Form'!$CV313<>\"\"),\"Y\",\"N\")))","v":""},{"$f":"IF($B306=\"N\",\"\",IF($S306=\"-\",\"-\",IF(AND($S306=\"Y\",'Enrollment Form'!$CV313=\"No\"),\"-\",IF(AND($S306=\"Y\",'Enrollment Form'!$CV313=\"Yes\",'Enrollment Form'!$CW313<>\"\"),\"Y\",\"N\"))))","v":""},{"$f":"IF(OR('Enrollment Form'!$AY313=\"Yes\",'Enrollment Form'!$AY313=\"\"),\"-\",IF(OR(AND('Enrollment Form'!$AY313=\"No\",ISERROR(FIND(\"HMO\",VLOOKUP('Enrollment Form'!G313,'Enrollment Form'!H$11:J$1000,3,FALSE),1))=FALSE,COUNTA('Enrollment Form'!$AZ313:$BC313)=4),AND('Enrollment Form'!$AY313=\"No\",ISERROR(FIND(\"HMO\",VLOOKUP('Enrollment Form'!G313,'Enrollment Form'!H$11:J$1000,3,FALSE),1))=FALSE,COUNTA('Enrollment Form'!$BT313:$BW313)=4)),\"Y\",\"N\"))","v":"-"},{"$f":"IF($B306=\"N\",\"\",IF('Enrollment Form'!$B313=\"Subscriber\",\"-\",IF(COUNTA('Enrollment Form'!$BL313,'Enrollment Form'!$BN313)=2,\"Y\",\"N\")))","v":""},{"$f":"IF($B306=\"N\",\"\",IF(OR('Enrollment Form'!$AX313=\"\",'Enrollment Form'!$AX313=\"No\"),\"-\",IF(AND('Enrollment Form'!$AX313=\"Yes\",COUNTA('Enrollment Form'!$CR313)=1),\"Y\",\"N\")))","v":""},{"$f":"IF(OR('Enrollment Form'!$CR313=\"\",'Enrollment Form'!$CR313=\"No\"),\"-\",IF(COUNTA('Enrollment Form'!$CT313:$CU313)=2,\"Y\",\"N\"))","v":"-"},{"$f":"IF($B306=\"N\",\"\",IF(COUNTIF('Enrollment Form'!$DG313:$DP313,\"Other\")=COUNTA('Enrollment Form'!$DK313,'Enrollment Form'!$DH313,'Enrollment Form'!$DN313,'Enrollment Form'!$DQ313),\"Y\",\"N\"))","v":""},{"$f":"IF($B306=\"N\",\"\",IF(OR('Enrollment Form'!B313<>\"Subscriber\",'Enrollment Form'!C313=\"ROC\",COUNTIF('Enrollment Form'!AV313:AW313,\"Yes\")>=1),\"-\",IF(AND('Enrollment Form'!C313=\"Enroll\",COUNTIF('Enrollment Form'!AV313:AW313,\"No\")=2,'Enrollment Form'!AX313=\"\"),\"N\",\"Y\")))","v":""},{"$f":"IF(OR(B306=\"N\",'Enrollment Form'!B313<>\"Subscriber\",'Enrollment Form'!C313=\"ROC\",'Enrollment Form'!O313<>\"Multiple of Salary\"),\"-\",IF(COUNTA('Enrollment Form'!T313:U313)<2,\"N\",\"Y\"))","v":"-"},{"$f":"IF(B306=\"N\",\"\",IF(OR('Enrollment Form'!C313=\"ROC\",'Enrollment Form'!B313<>\"Subscriber\",'Enrollment Form'!O313=\"Waive\",'Enrollment Form'!O313=\"\"),\"-\",IF('Enrollment Form'!P313=\"\",\"N\",\"Y\")))","v":""},{"$f":"IF($B306=\"N\",\"\",IF(AND('Enrollment Form'!$C313=\"ROC\",'Enrollment Form'!$DR313<>\"\"),\"Y\",IF(AND('Enrollment Form'!$C313=\"ROC\",'Enrollment Form'!$DR313=\"\"),\"N\",IF(AND('Enrollment Form'!$C313=\"Enroll\",'Enrollment Form'!$B313=\"Subscriber\",'Enrollment Form'!$CX313=\"No\",'Enrollment Form'!$DR313=\"\"),\"N\",IF(AND('Enrollment Form'!$C313=\"Enroll\",'Enrollment Form'!$B313=\"Subscriber\",'Enrollment Form'!$CX313=\"Yes\"),\"-\",\"Y\")))))","v":""},{"$f":"IF($B306=\"N\",\"\",IF(AND('Enrollment Form'!$C313=\"ROC\",'Enrollment Form'!$DS313<>\"\"),\"Y\",IF(AND('Enrollment Form'!$C313=\"ROC\",'Enrollment Form'!$DS313=\"\"),\"N\",IF(AND('Enrollment Form'!$C313=\"Enroll\",'Enrollment Form'!$B313=\"Subscriber\",'Enrollment Form'!$CX313=\"No\",'Enrollment Form'!$DS313=\"\"),\"N\",IF(AND('Enrollment Form'!$C313=\"Enroll\",'Enrollment Form'!$B313=\"Subscriber\",'Enrollment Form'!$CX313=\"Yes\"),\"-\",\"Y\")))))","v":""},{"$f":"IF('Enrollment Form'!AH313=\"\",\"\",IF(ISERROR(SEARCH(\".\",'Enrollment Form'!AH313,SEARCH(\"@\",'Enrollment Form'!AH313))),\"N\",\"Y\"))","v":""},{"$f":"IF(OR($B306=\"N\",'Enrollment Form'!$G313=\"\"),\"\",IF('Enrollment Form'!$B313<>\"Subscriber\",\"-\",IF(COUNTIF('Enrollment Form'!$AV313:$AW313,\"Yes\")=2,\"N\",\"Y\")))","v":""},{"$f":"IF(OR('Enrollment Form'!$CJ313=\"\",'Enrollment Form'!$CJ313=\"No\"),\"-\",IF(AND('Enrollment Form'!$CJ313=\"Yes\",'Enrollment Form'!$CK313=\"\"),\"N\",\"Y\"))","v":"-"},{"$f":"IF(OR('Enrollment Form'!$CL313=\"\",'Enrollment Form'!$CL313=\"No\"),\"-\",IF(AND('Enrollment Form'!$CL313=\"Yes\",'Enrollment Form'!$CM313=\"\"),\"N\",\"Y\"))","v":"-"},{"$f":"IF(OR('Enrollment Form'!$CN313=\"\",'Enrollment Form'!$CN313=\"No\"),\"-\",IF(AND('Enrollment Form'!$CN313=\"Yes\",'Enrollment Form'!$CO313=\"\"),\"N\",\"Y\"))","v":"-"},{"$f":"IF(OR('Enrollment Form'!$CN313=\"\",'Enrollment Form'!$CN313=\"No\"),\"-\",IF(AND('Enrollment Form'!$CN313=\"Yes\",'Enrollment Form'!$CP313=\"\"),\"N\",\"Y\"))","v":"-"},{"$f":"IF('Enrollment Form'!B313<>\"Subscriber\",\"-\",IF(AND('Enrollment Form'!B313=\"Subscriber\",'Enrollment Form'!C313=\"Enroll\",'Enrollment Form'!AA313=\"\"),\"N\",\"Y\"))","v":"-"},{"$f":"IF(OR('Enrollment Form'!B313=\"Subscriber\",'Enrollment Form'!B313=\"\"),\"-\",IF('Enrollment Form'!BP313=\"\",\"N\",\"Y\"))","v":"-"},{"$f":"IF('Enrollment Form'!B313<>\"Subscriber\",\"-\",IF(AND('Enrollment Form'!B313=\"Subscriber\",'Enrollment Form'!G313=\"\"),\"N\",\"Y\"))","v":"-"},{"$f":"IF('Enrollment Form'!A313=\"\",\"\",IF('Enrollment Form'!B313=\"Subscriber\",\"-\",IF(AND('Enrollment Form'!B313<>\"Subscriber\",'Enrollment Form'!G313='Enrollment Form'!H313),\"N\",\"Y\")))","v":""},0]
[314,{"$f":"IF('Enrollment Form'!$A314<>\"\",\"Y\",\"N\")","v":"N"},{"$f":"IF(AND('Enrollment Form'!$B314=\"\",'Enrollment Form'!$C314<>\"\"),\"N\",IF($B307=\"N\",\"\",\"Y\"))","v":""},{"$f":"IF(OR($B307=\"N\",'Enrollment Form'!G314=\"\"),\"\",IF('Enrollment Form'!$B314<>\"Subscriber\",\"\",IF('Enrollment Form'!$G314='Enrollment Form'!$H314,\"Y\",\"N\")))","v":""},{"$f":"IF($B307=\"N\",\"\",IF(AND(COUNTIFS('Enrollment Form'!$H$11:$H$1000,'Enrollment Form'!$H314,'Enrollment Form'!$B$11:$B$1000,'Enrollment Form'!$B314)>1,'Enrollment Form'!$H314<>\"\"),\"N\",\"Y\"))","v":""},{"$f":"IF($B307=\"N\",\"\",IF(LEN('Enrollment Form'!$Y314)=0,\"\",IF(LEN('Enrollment Form'!$Y314)<>5,\"N\",\"Y\")))","v":""},{"$f":"IF($B307=\"N\",\"\",IF(LEN('Enrollment Form'!$AD314=0),\"\",IF(LEN('Enrollment Form'!$AD314)<>5,\"N\",\"Y\")))","v":""},{"$f":"IF($B307=\"N\",\"\",IF(LEN('Enrollment Form'!$BS314=0),\"\",IF(LEN('Enrollment Form'!$BS314)<>5,\"N\",\"Y\")))","v":""},{"$f":"IF($B307=\"N\",\"\",IF(LEN('Enrollment Form'!$AE314)=0,\"\",IF(LEN('Enrollment Form'!$AE314)<>10,\"N\",\"Y\")))","v":""},{"$f":"IF($B307=\"N\",\"\",IF(LEN('Enrollment Form'!$AF314)=0,\"\",IF(LEN('Enrollment Form'!$AF314)<>10,\"N\",\"Y\")))","v":""},{"$f":"IF('Enrollment Form'!$O314<>\"Graded\",\"-\",IF(AND('Enrollment Form'!$O314=\"Graded\",'Enrollment Form'!$AR314<>\"\"),\"Y\",\"N\"))","v":"-"},{"$f":"IF($B307=\"N\",\"\",IF(OR('Enrollment Form'!$B314<>\"Subscriber\",'Enrollment Form'!$C314=\"ROC\"),\"-\",IF(AND('Enrollment Form'!$B314=\"Subscriber\",'Enrollment Form'!$C314=\"Enroll\",'Enrollment Form'!$AJ314<>\"\"),\"Y\",\"N\")))","v":""},{"$f":"IF($B307=\"N\",\"\",IF(OR('Enrollment Form'!$B314<>\"Subscriber\",'Enrollment Form'!$C314=\"ROC\"),\"-\",IF(AND('Enrollment Form'!$B314=\"Subscriber\",'Enrollment Form'!$C314=\"Enroll\",'Enrollment Form'!$AK314<>\"\"),\"Y\",\"N\")))","v":""},{"$f":"IF($B307=\"N\",\"\",IF(OR('Enrollment Form'!$B314<>\"Subscriber\",'Enrollment Form'!$C314=\"ROC\"),\"-\",IF(AND('Enrollment Form'!$B314=\"Subscriber\",'Enrollment Form'!$C314=\"Enroll\",'Enrollment Form'!$AL314<>\"\"),\"Y\",\"N\")))","v":""},{"$f":"IF($B307=\"N\",\"\",IF(OR('Enrollment Form'!$B314<>\"Subscriber\",'Enrollment Form'!$C314=\"ROC\"),\"-\",IF(AND('Enrollment Form'!$B314=\"Subscriber\",'Enrollment Form'!$C314=\"Enroll\",'Enrollment Form'!$AP314<>\"\"),\"Y\",\"N\")))","v":""},{"$f":"IF($B307=\"N\",\"\",IF(OR('Enrollment Form'!$B314<>\"Subscriber\",'Enrollment Form'!$C314=\"ROC\"),\"-\",IF(AND('Enrollment Form'!$B314=\"Subscriber\",'Enrollment Form'!$C314=\"Enroll\",'Enrollment Form'!$AQ314<>\"\"),\"Y\",\"N\")))","v":""},{"$f":"IF($B307=\"N\",\"\",IF(OR('Enrollment Form'!$B314<>\"Subscriber\",'Enrollment Form'!$C314=\"ROC\"),\"-\",IF(AND('Enrollment Form'!$B314=\"Subscriber\",'Enrollment Form'!$C314=\"Enroll\",'Enrollment Form'!$AS314<>\"\"),\"Y\",\"N\")))","v":""},{"$f":"IF($B307=\"N\",\"\",IF($Q307=\"-\",\"-\",IF(AND($Q307=\"Y\",'Enrollment Form'!$AS314=\"No\"),\"-\",IF(AND($Q307=\"Y\",'Enrollment Form'!$AS314=\"Yes\",'Enrollment Form'!$AT314<>\"\"),\"Y\",\"N\"))))","v":""},{"$f":"IF($B307=\"N\",\"\",IF(OR('Enrollment Form'!$B314<>\"Subscriber\",'Enrollment Form'!$C314=\"ROC\"),\"-\",IF(AND('Enrollment Form'!$B314=\"Subscriber\",'Enrollment Form'!$C314=\"Enroll\",'Enrollment Form'!$CV314<>\"\"),\"Y\",\"N\")))","v":""},{"$f":"IF($B307=\"N\",\"\",IF($S307=\"-\",\"-\",IF(AND($S307=\"Y\",'Enrollment Form'!$CV314=\"No\"),\"-\",IF(AND($S307=\"Y\",'Enrollment Form'!$CV314=\"Yes\",'Enrollment Form'!$CW314<>\"\"),\"Y\",\"N\"))))","v":""},{"$f":"IF(OR('Enrollment Form'!$AY314=\"Yes\",'Enrollment Form'!$AY314=\"\"),\"-\",IF(OR(AND('Enrollment Form'!$AY314=\"No\",ISERROR(FIND(\"HMO\",VLOOKUP('Enrollment Form'!G314,'Enrollment Form'!H$11:J$1000,3,FALSE),1))=FALSE,COUNTA('Enrollment Form'!$AZ314:$BC314)=4),AND('Enrollment Form'!$AY314=\"No\",ISERROR(FIND(\"HMO\",VLOOKUP('Enrollment Form'!G314,'Enrollment Form'!H$11:J$1000,3,FALSE),1))=FALSE,COUNTA('Enrollment Form'!$BT314:$BW314)=4)),\"Y\",\"N\"))","v":"-"},{"$f":"IF($B307=\"N\",\"\",IF('Enrollment Form'!$B314=\"Subscriber\",\"-\",IF(COUNTA('Enrollment Form'!$BL314,'Enrollment Form'!$BN314)=2,\"Y\",\"N\")))","v":""},{"$f":"IF($B307=\"N\",\"\",IF(OR('Enrollment Form'!$AX314=\"\",'Enrollment Form'!$AX314=\"No\"),\"-\",IF(AND('Enrollment Form'!$AX314=\"Yes\",COUNTA('Enrollment Form'!$CR314)=1),\"Y\",\"N\")))","v":""},{"$f":"IF(OR('Enrollment Form'!$CR314=\"\",'Enrollment Form'!$CR314=\"No\"),\"-\",IF(COUNTA('Enrollment Form'!$CT314:$CU314)=2,\"Y\",\"N\"))","v":"-"},{"$f":"IF($B307=\"N\",\"\",IF(COUNTIF('Enrollment Form'!$DG314:$DP314,\"Other\")=COUNTA('Enrollment Form'!$DK314,'Enrollment Form'!$DH314,'Enrollment Form'!$DN314,'Enrollment Form'!$DQ314),\"Y\",\"N\"))","v":""},{"$f":"IF($B307=\"N\",\"\",IF(OR('Enrollment Form'!B314<>\"Subscriber\",'Enrollment Form'!C314=\"ROC\",COUNTIF('Enrollment Form'!AV314:AW314,\"Yes\")>=1),\"-\",IF(AND('Enrollment Form'!C314=\"Enroll\",COUNTIF('Enrollment Form'!AV314:AW314,\"No\")=2,'Enrollment Form'!AX314=\"\"),\"N\",\"Y\")))","v":""},{"$f":"IF(OR(B307=\"N\",'Enrollment Form'!B314<>\"Subscriber\",'Enrollment Form'!C314=\"ROC\",'Enrollment Form'!O314<>\"Multiple of Salary\"),\"-\",IF(COUNTA('Enrollment Form'!T314:U314)<2,\"N\",\"Y\"))","v":"-"},{"$f":"IF(B307=\"N\",\"\",IF(OR('Enrollment Form'!C314=\"ROC\",'Enrollment Form'!B314<>\"Subscriber\",'Enrollment Form'!O314=\"Waive\",'Enrollment Form'!O314=\"\"),\"-\",IF('Enrollment Form'!P314=\"\",\"N\",\"Y\")))","v":""},{"$f":"IF($B307=\"N\",\"\",IF(AND('Enrollment Form'!$C314=\"ROC\",'Enrollment Form'!$DR314<>\"\"),\"Y\",IF(AND('Enrollment Form'!$C314=\"ROC\",'Enrollment Form'!$DR314=\"\"),\"N\",IF(AND('Enrollment Form'!$C314=\"Enroll\",'Enrollment Form'!$B314=\"Subscriber\",'Enrollment Form'!$CX314=\"No\",'Enrollment Form'!$DR314=\"\"),\"N\",IF(AND('Enrollment Form'!$C314=\"Enroll\",'Enrollment Form'!$B314=\"Subscriber\",'Enrollment Form'!$CX314=\"Yes\"),\"-\",\"Y\")))))","v":""},{"$f":"IF($B307=\"N\",\"\",IF(AND('Enrollment Form'!$C314=\"ROC\",'Enrollment Form'!$DS314<>\"\"),\"Y\",IF(AND('Enrollment Form'!$C314=\"ROC\",'Enrollment Form'!$DS314=\"\"),\"N\",IF(AND('Enrollment Form'!$C314=\"Enroll\",'Enrollment Form'!$B314=\"Subscriber\",'Enrollment Form'!$CX314=\"No\",'Enrollment Form'!$DS314=\"\"),\"N\",IF(AND('Enrollment Form'!$C314=\"Enroll\",'Enrollment Form'!$B314=\"Subscriber\",'Enrollment Form'!$CX314=\"Yes\"),\"-\",\"Y\")))))","v":""},{"$f":"IF('Enrollment Form'!AH314=\"\",\"\",IF(ISERROR(SEARCH(\".\",'Enrollment Form'!AH314,SEARCH(\"@\",'Enrollment Form'!AH314))),\"N\",\"Y\"))","v":""},{"$f":"IF(OR($B307=\"N\",'Enrollment Form'!$G314=\"\"),\"\",IF('Enrollment Form'!$B314<>\"Subscriber\",\"-\",IF(COUNTIF('Enrollment Form'!$AV314:$AW314,\"Yes\")=2,\"N\",\"Y\")))","v":""},{"$f":"IF(OR('Enrollment Form'!$CJ314=\"\",'Enrollment Form'!$CJ314=\"No\"),\"-\",IF(AND('Enrollment Form'!$CJ314=\"Yes\",'Enrollment Form'!$CK314=\"\"),\"N\",\"Y\"))","v":"-"},{"$f":"IF(OR('Enrollment Form'!$CL314=\"\",'Enrollment Form'!$CL314=\"No\"),\"-\",IF(AND('Enrollment Form'!$CL314=\"Yes\",'Enrollment Form'!$CM314=\"\"),\"N\",\"Y\"))","v":"-"},{"$f":"IF(OR('Enrollment Form'!$CN314=\"\",'Enrollment Form'!$CN314=\"No\"),\"-\",IF(AND('Enrollment Form'!$CN314=\"Yes\",'Enrollment Form'!$CO314=\"\"),\"N\",\"Y\"))","v":"-"},{"$f":"IF(OR('Enrollment Form'!$CN314=\"\",'Enrollment Form'!$CN314=\"No\"),\"-\",IF(AND('Enrollment Form'!$CN314=\"Yes\",'Enrollment Form'!$CP314=\"\"),\"N\",\"Y\"))","v":"-"},{"$f":"IF('Enrollment Form'!B314<>\"Subscriber\",\"-\",IF(AND('Enrollment Form'!B314=\"Subscriber\",'Enrollment Form'!C314=\"Enroll\",'Enrollment Form'!AA314=\"\"),\"N\",\"Y\"))","v":"-"},{"$f":"IF(OR('Enrollment Form'!B314=\"Subscriber\",'Enrollment Form'!B314=\"\"),\"-\",IF('Enrollment Form'!BP314=\"\",\"N\",\"Y\"))","v":"-"},{"$f":"IF('Enrollment Form'!B314<>\"Subscriber\",\"-\",IF(AND('Enrollment Form'!B314=\"Subscriber\",'Enrollment Form'!G314=\"\"),\"N\",\"Y\"))","v":"-"},{"$f":"IF('Enrollment Form'!A314=\"\",\"\",IF('Enrollment Form'!B314=\"Subscriber\",\"-\",IF(AND('Enrollment Form'!B314<>\"Subscriber\",'Enrollment Form'!G314='Enrollment Form'!H314),\"N\",\"Y\")))","v":""},0]
[315,{"$f":"IF('Enrollment Form'!$A315<>\"\",\"Y\",\"N\")","v":"N"},{"$f":"IF(AND('Enrollment Form'!$B315=\"\",'Enrollment Form'!$C315<>\"\"),\"N\",IF($B308=\"N\",\"\",\"Y\"))","v":""},{"$f":"IF(OR($B308=\"N\",'Enrollment Form'!G315=\"\"),\"\",IF('Enrollment Form'!$B315<>\"Subscriber\",\"\",IF('Enrollment Form'!$G315='Enrollment Form'!$H315,\"Y\",\"N\")))","v":""},{"$f":"IF($B308=\"N\",\"\",IF(AND(COUNTIFS('Enrollment Form'!$H$11:$H$1000,'Enrollment Form'!$H315,'Enrollment Form'!$B$11:$B$1000,'Enrollment Form'!$B315)>1,'Enrollment Form'!$H315<>\"\"),\"N\",\"Y\"))","v":""},{"$f":"IF($B308=\"N\",\"\",IF(LEN('Enrollment Form'!$Y315)=0,\"\",IF(LEN('Enrollment Form'!$Y315)<>5,\"N\",\"Y\")))","v":""},{"$f":"IF($B308=\"N\",\"\",IF(LEN('Enrollment Form'!$AD315=0),\"\",IF(LEN('Enrollment Form'!$AD315)<>5,\"N\",\"Y\")))","v":""},{"$f":"IF($B308=\"N\",\"\",IF(LEN('Enrollment Form'!$BS315=0),\"\",IF(LEN('Enrollment Form'!$BS315)<>5,\"N\",\"Y\")))","v":""},{"$f":"IF($B308=\"N\",\"\",IF(LEN('Enrollment Form'!$AE315)=0,\"\",IF(LEN('Enrollment Form'!$AE315)<>10,\"N\",\"Y\")))","v":""},{"$f":"IF($B308=\"N\",\"\",IF(LEN('Enrollment Form'!$AF315)=0,\"\",IF(LEN('Enrollment Form'!$AF315)<>10,\"N\",\"Y\")))","v":""},{"$f":"IF('Enrollment Form'!$O315<>\"Graded\",\"-\",IF(AND('Enrollment Form'!$O315=\"Graded\",'Enrollment Form'!$AR315<>\"\"),\"Y\",\"N\"))","v":"-"},{"$f":"IF($B308=\"N\",\"\",IF(OR('Enrollment Form'!$B315<>\"Subscriber\",'Enrollment Form'!$C315=\"ROC\"),\"-\",IF(AND('Enrollment Form'!$B315=\"Subscriber\",'Enrollment Form'!$C315=\"Enroll\",'Enrollment Form'!$AJ315<>\"\"),\"Y\",\"N\")))","v":""},{"$f":"IF($B308=\"N\",\"\",IF(OR('Enrollment Form'!$B315<>\"Subscriber\",'Enrollment Form'!$C315=\"ROC\"),\"-\",IF(AND('Enrollment Form'!$B315=\"Subscriber\",'Enrollment Form'!$C315=\"Enroll\",'Enrollment Form'!$AK315<>\"\"),\"Y\",\"N\")))","v":""},{"$f":"IF($B308=\"N\",\"\",IF(OR('Enrollment Form'!$B315<>\"Subscriber\",'Enrollment Form'!$C315=\"ROC\"),\"-\",IF(AND('Enrollment Form'!$B315=\"Subscriber\",'Enrollment Form'!$C315=\"Enroll\",'Enrollment Form'!$AL315<>\"\"),\"Y\",\"N\")))","v":""},{"$f":"IF($B308=\"N\",\"\",IF(OR('Enrollment Form'!$B315<>\"Subscriber\",'Enrollment Form'!$C315=\"ROC\"),\"-\",IF(AND('Enrollment Form'!$B315=\"Subscriber\",'Enrollment Form'!$C315=\"Enroll\",'Enrollment Form'!$AP315<>\"\"),\"Y\",\"N\")))","v":""},{"$f":"IF($B308=\"N\",\"\",IF(OR('Enrollment Form'!$B315<>\"Subscriber\",'Enrollment Form'!$C315=\"ROC\"),\"-\",IF(AND('Enrollment Form'!$B315=\"Subscriber\",'Enrollment Form'!$C315=\"Enroll\",'Enrollment Form'!$AQ315<>\"\"),\"Y\",\"N\")))","v":""},{"$f":"IF($B308=\"N\",\"\",IF(OR('Enrollment Form'!$B315<>\"Subscriber\",'Enrollment Form'!$C315=\"ROC\"),\"-\",IF(AND('Enrollment Form'!$B315=\"Subscriber\",'Enrollment Form'!$C315=\"Enroll\",'Enrollment Form'!$AS315<>\"\"),\"Y\",\"N\")))","v":""},{"$f":"IF($B308=\"N\",\"\",IF($Q308=\"-\",\"-\",IF(AND($Q308=\"Y\",'Enrollment Form'!$AS315=\"No\"),\"-\",IF(AND($Q308=\"Y\",'Enrollment Form'!$AS315=\"Yes\",'Enrollment Form'!$AT315<>\"\"),\"Y\",\"N\"))))","v":""},{"$f":"IF($B308=\"N\",\"\",IF(OR('Enrollment Form'!$B315<>\"Subscriber\",'Enrollment Form'!$C315=\"ROC\"),\"-\",IF(AND('Enrollment Form'!$B315=\"Subscriber\",'Enrollment Form'!$C315=\"Enroll\",'Enrollment Form'!$CV315<>\"\"),\"Y\",\"N\")))","v":""},{"$f":"IF($B308=\"N\",\"\",IF($S308=\"-\",\"-\",IF(AND($S308=\"Y\",'Enrollment Form'!$CV315=\"No\"),\"-\",IF(AND($S308=\"Y\",'Enrollment Form'!$CV315=\"Yes\",'Enrollment Form'!$CW315<>\"\"),\"Y\",\"N\"))))","v":""},{"$f":"IF(OR('Enrollment Form'!$AY315=\"Yes\",'Enrollment Form'!$AY315=\"\"),\"-\",IF(OR(AND('Enrollment Form'!$AY315=\"No\",ISERROR(FIND(\"HMO\",VLOOKUP('Enrollment Form'!G315,'Enrollment Form'!H$11:J$1000,3,FALSE),1))=FALSE,COUNTA('Enrollment Form'!$AZ315:$BC315)=4),AND('Enrollment Form'!$AY315=\"No\",ISERROR(FIND(\"HMO\",VLOOKUP('Enrollment Form'!G315,'Enrollment Form'!H$11:J$1000,3,FALSE),1))=FALSE,COUNTA('Enrollment Form'!$BT315:$BW315)=4)),\"Y\",\"N\"))","v":"-"},{"$f":"IF($B308=\"N\",\"\",IF('Enrollment Form'!$B315=\"Subscriber\",\"-\",IF(COUNTA('Enrollment Form'!$BL315,'Enrollment Form'!$BN315)=2,\"Y\",\"N\")))","v":""},{"$f":"IF($B308=\"N\",\"\",IF(OR('Enrollment Form'!$AX315=\"\",'Enrollment Form'!$AX315=\"No\"),\"-\",IF(AND('Enrollment Form'!$AX315=\"Yes\",COUNTA('Enrollment Form'!$CR315)=1),\"Y\",\"N\")))","v":""},{"$f":"IF(OR('Enrollment Form'!$CR315=\"\",'Enrollment Form'!$CR315=\"No\"),\"-\",IF(COUNTA('Enrollment Form'!$CT315:$CU315)=2,\"Y\",\"N\"))","v":"-"},{"$f":"IF($B308=\"N\",\"\",IF(COUNTIF('Enrollment Form'!$DG315:$DP315,\"Other\")=COUNTA('Enrollment Form'!$DK315,'Enrollment Form'!$DH315,'Enrollment Form'!$DN315,'Enrollment Form'!$DQ315),\"Y\",\"N\"))","v":""},{"$f":"IF($B308=\"N\",\"\",IF(OR('Enrollment Form'!B315<>\"Subscriber\",'Enrollment Form'!C315=\"ROC\",COUNTIF('Enrollment Form'!AV315:AW315,\"Yes\")>=1),\"-\",IF(AND('Enrollment Form'!C315=\"Enroll\",COUNTIF('Enrollment Form'!AV315:AW315,\"No\")=2,'Enrollment Form'!AX315=\"\"),\"N\",\"Y\")))","v":""},{"$f":"IF(OR(B308=\"N\",'Enrollment Form'!B315<>\"Subscriber\",'Enrollment Form'!C315=\"ROC\",'Enrollment Form'!O315<>\"Multiple of Salary\"),\"-\",IF(COUNTA('Enrollment Form'!T315:U315)<2,\"N\",\"Y\"))","v":"-"},{"$f":"IF(B308=\"N\",\"\",IF(OR('Enrollment Form'!C315=\"ROC\",'Enrollment Form'!B315<>\"Subscriber\",'Enrollment Form'!O315=\"Waive\",'Enrollment Form'!O315=\"\"),\"-\",IF('Enrollment Form'!P315=\"\",\"N\",\"Y\")))","v":""},{"$f":"IF($B308=\"N\",\"\",IF(AND('Enrollment Form'!$C315=\"ROC\",'Enrollment Form'!$DR315<>\"\"),\"Y\",IF(AND('Enrollment Form'!$C315=\"ROC\",'Enrollment Form'!$DR315=\"\"),\"N\",IF(AND('Enrollment Form'!$C315=\"Enroll\",'Enrollment Form'!$B315=\"Subscriber\",'Enrollment Form'!$CX315=\"No\",'Enrollment Form'!$DR315=\"\"),\"N\",IF(AND('Enrollment Form'!$C315=\"Enroll\",'Enrollment Form'!$B315=\"Subscriber\",'Enrollment Form'!$CX315=\"Yes\"),\"-\",\"Y\")))))","v":""},{"$f":"IF($B308=\"N\",\"\",IF(AND('Enrollment Form'!$C315=\"ROC\",'Enrollment Form'!$DS315<>\"\"),\"Y\",IF(AND('Enrollment Form'!$C315=\"ROC\",'Enrollment Form'!$DS315=\"\"),\"N\",IF(AND('Enrollment Form'!$C315=\"Enroll\",'Enrollment Form'!$B315=\"Subscriber\",'Enrollment Form'!$CX315=\"No\",'Enrollment Form'!$DS315=\"\"),\"N\",IF(AND('Enrollment Form'!$C315=\"Enroll\",'Enrollment Form'!$B315=\"Subscriber\",'Enrollment Form'!$CX315=\"Yes\"),\"-\",\"Y\")))))","v":""},{"$f":"IF('Enrollment Form'!AH315=\"\",\"\",IF(ISERROR(SEARCH(\".\",'Enrollment Form'!AH315,SEARCH(\"@\",'Enrollment Form'!AH315))),\"N\",\"Y\"))","v":""},{"$f":"IF(OR($B308=\"N\",'Enrollment Form'!$G315=\"\"),\"\",IF('Enrollment Form'!$B315<>\"Subscriber\",\"-\",IF(COUNTIF('Enrollment Form'!$AV315:$AW315,\"Yes\")=2,\"N\",\"Y\")))","v":""},{"$f":"IF(OR('Enrollment Form'!$CJ315=\"\",'Enrollment Form'!$CJ315=\"No\"),\"-\",IF(AND('Enrollment Form'!$CJ315=\"Yes\",'Enrollment Form'!$CK315=\"\"),\"N\",\"Y\"))","v":"-"},{"$f":"IF(OR('Enrollment Form'!$CL315=\"\",'Enrollment Form'!$CL315=\"No\"),\"-\",IF(AND('Enrollment Form'!$CL315=\"Yes\",'Enrollment Form'!$CM315=\"\"),\"N\",\"Y\"))","v":"-"},{"$f":"IF(OR('Enrollment Form'!$CN315=\"\",'Enrollment Form'!$CN315=\"No\"),\"-\",IF(AND('Enrollment Form'!$CN315=\"Yes\",'Enrollment Form'!$CO315=\"\"),\"N\",\"Y\"))","v":"-"},{"$f":"IF(OR('Enrollment Form'!$CN315=\"\",'Enrollment Form'!$CN315=\"No\"),\"-\",IF(AND('Enrollment Form'!$CN315=\"Yes\",'Enrollment Form'!$CP315=\"\"),\"N\",\"Y\"))","v":"-"},{"$f":"IF('Enrollment Form'!B315<>\"Subscriber\",\"-\",IF(AND('Enrollment Form'!B315=\"Subscriber\",'Enrollment Form'!C315=\"Enroll\",'Enrollment Form'!AA315=\"\"),\"N\",\"Y\"))","v":"-"},{"$f":"IF(OR('Enrollment Form'!B315=\"Subscriber\",'Enrollment Form'!B315=\"\"),\"-\",IF('Enrollment Form'!BP315=\"\",\"N\",\"Y\"))","v":"-"},{"$f":"IF('Enrollment Form'!B315<>\"Subscriber\",\"-\",IF(AND('Enrollment Form'!B315=\"Subscriber\",'Enrollment Form'!G315=\"\"),\"N\",\"Y\"))","v":"-"},{"$f":"IF('Enrollment Form'!A315=\"\",\"\",IF('Enrollment Form'!B315=\"Subscriber\",\"-\",IF(AND('Enrollment Form'!B315<>\"Subscriber\",'Enrollment Form'!G315='Enrollment Form'!H315),\"N\",\"Y\")))","v":""},0]
[316,{"$f":"IF('Enrollment Form'!$A316<>\"\",\"Y\",\"N\")","v":"N"},{"$f":"IF(AND('Enrollment Form'!$B316=\"\",'Enrollment Form'!$C316<>\"\"),\"N\",IF($B309=\"N\",\"\",\"Y\"))","v":""},{"$f":"IF(OR($B309=\"N\",'Enrollment Form'!G316=\"\"),\"\",IF('Enrollment Form'!$B316<>\"Subscriber\",\"\",IF('Enrollment Form'!$G316='Enrollment Form'!$H316,\"Y\",\"N\")))","v":""},{"$f":"IF($B309=\"N\",\"\",IF(AND(COUNTIFS('Enrollment Form'!$H$11:$H$1000,'Enrollment Form'!$H316,'Enrollment Form'!$B$11:$B$1000,'Enrollment Form'!$B316)>1,'Enrollment Form'!$H316<>\"\"),\"N\",\"Y\"))","v":""},{"$f":"IF($B309=\"N\",\"\",IF(LEN('Enrollment Form'!$Y316)=0,\"\",IF(LEN('Enrollment Form'!$Y316)<>5,\"N\",\"Y\")))","v":""},{"$f":"IF($B309=\"N\",\"\",IF(LEN('Enrollment Form'!$AD316=0),\"\",IF(LEN('Enrollment Form'!$AD316)<>5,\"N\",\"Y\")))","v":""},{"$f":"IF($B309=\"N\",\"\",IF(LEN('Enrollment Form'!$BS316=0),\"\",IF(LEN('Enrollment Form'!$BS316)<>5,\"N\",\"Y\")))","v":""},{"$f":"IF($B309=\"N\",\"\",IF(LEN('Enrollment Form'!$AE316)=0,\"\",IF(LEN('Enrollment Form'!$AE316)<>10,\"N\",\"Y\")))","v":""},{"$f":"IF($B309=\"N\",\"\",IF(LEN('Enrollment Form'!$AF316)=0,\"\",IF(LEN('Enrollment Form'!$AF316)<>10,\"N\",\"Y\")))","v":""},{"$f":"IF('Enrollment Form'!$O316<>\"Graded\",\"-\",IF(AND('Enrollment Form'!$O316=\"Graded\",'Enrollment Form'!$AR316<>\"\"),\"Y\",\"N\"))","v":"-"},{"$f":"IF($B309=\"N\",\"\",IF(OR('Enrollment Form'!$B316<>\"Subscriber\",'Enrollment Form'!$C316=\"ROC\"),\"-\",IF(AND('Enrollment Form'!$B316=\"Subscriber\",'Enrollment Form'!$C316=\"Enroll\",'Enrollment Form'!$AJ316<>\"\"),\"Y\",\"N\")))","v":""},{"$f":"IF($B309=\"N\",\"\",IF(OR('Enrollment Form'!$B316<>\"Subscriber\",'Enrollment Form'!$C316=\"ROC\"),\"-\",IF(AND('Enrollment Form'!$B316=\"Subscriber\",'Enrollment Form'!$C316=\"Enroll\",'Enrollment Form'!$AK316<>\"\"),\"Y\",\"N\")))","v":""},{"$f":"IF($B309=\"N\",\"\",IF(OR('Enrollment Form'!$B316<>\"Subscriber\",'Enrollment Form'!$C316=\"ROC\"),\"-\",IF(AND('Enrollment Form'!$B316=\"Subscriber\",'Enrollment Form'!$C316=\"Enroll\",'Enrollment Form'!$AL316<>\"\"),\"Y\",\"N\")))","v":""},{"$f":"IF($B309=\"N\",\"\",IF(OR('Enrollment Form'!$B316<>\"Subscriber\",'Enrollment Form'!$C316=\"ROC\"),\"-\",IF(AND('Enrollment Form'!$B316=\"Subscriber\",'Enrollment Form'!$C316=\"Enroll\",'Enrollment Form'!$AP316<>\"\"),\"Y\",\"N\")))","v":""},{"$f":"IF($B309=\"N\",\"\",IF(OR('Enrollment Form'!$B316<>\"Subscriber\",'Enrollment Form'!$C316=\"ROC\"),\"-\",IF(AND('Enrollment Form'!$B316=\"Subscriber\",'Enrollment Form'!$C316=\"Enroll\",'Enrollment Form'!$AQ316<>\"\"),\"Y\",\"N\")))","v":""},{"$f":"IF($B309=\"N\",\"\",IF(OR('Enrollment Form'!$B316<>\"Subscriber\",'Enrollment Form'!$C316=\"ROC\"),\"-\",IF(AND('Enrollment Form'!$B316=\"Subscriber\",'Enrollment Form'!$C316=\"Enroll\",'Enrollment Form'!$AS316<>\"\"),\"Y\",\"N\")))","v":""},{"$f":"IF($B309=\"N\",\"\",IF($Q309=\"-\",\"-\",IF(AND($Q309=\"Y\",'Enrollment Form'!$AS316=\"No\"),\"-\",IF(AND($Q309=\"Y\",'Enrollment Form'!$AS316=\"Yes\",'Enrollment Form'!$AT316<>\"\"),\"Y\",\"N\"))))","v":""},{"$f":"IF($B309=\"N\",\"\",IF(OR('Enrollment Form'!$B316<>\"Subscriber\",'Enrollment Form'!$C316=\"ROC\"),\"-\",IF(AND('Enrollment Form'!$B316=\"Subscriber\",'Enrollment Form'!$C316=\"Enroll\",'Enrollment Form'!$CV316<>\"\"),\"Y\",\"N\")))","v":""},{"$f":"IF($B309=\"N\",\"\",IF($S309=\"-\",\"-\",IF(AND($S309=\"Y\",'Enrollment Form'!$CV316=\"No\"),\"-\",IF(AND($S309=\"Y\",'Enrollment Form'!$CV316=\"Yes\",'Enrollment Form'!$CW316<>\"\"),\"Y\",\"N\"))))","v":""},{"$f":"IF(OR('Enrollment Form'!$AY316=\"Yes\",'Enrollment Form'!$AY316=\"\"),\"-\",IF(OR(AND('Enrollment Form'!$AY316=\"No\",ISERROR(FIND(\"HMO\",VLOOKUP('Enrollment Form'!G316,'Enrollment Form'!H$11:J$1000,3,FALSE),1))=FALSE,COUNTA('Enrollment Form'!$AZ316:$BC316)=4),AND('Enrollment Form'!$AY316=\"No\",ISERROR(FIND(\"HMO\",VLOOKUP('Enrollment Form'!G316,'Enrollment Form'!H$11:J$1000,3,FALSE),1))=FALSE,COUNTA('Enrollment Form'!$BT316:$BW316)=4)),\"Y\",\"N\"))","v":"-"},{"$f":"IF($B309=\"N\",\"\",IF('Enrollment Form'!$B316=\"Subscriber\",\"-\",IF(COUNTA('Enrollment Form'!$BL316,'Enrollment Form'!$BN316)=2,\"Y\",\"N\")))","v":""},{"$f":"IF($B309=\"N\",\"\",IF(OR('Enrollment Form'!$AX316=\"\",'Enrollment Form'!$AX316=\"No\"),\"-\",IF(AND('Enrollment Form'!$AX316=\"Yes\",COUNTA('Enrollment Form'!$CR316)=1),\"Y\",\"N\")))","v":""},{"$f":"IF(OR('Enrollment Form'!$CR316=\"\",'Enrollment Form'!$CR316=\"No\"),\"-\",IF(COUNTA('Enrollment Form'!$CT316:$CU316)=2,\"Y\",\"N\"))","v":"-"},{"$f":"IF($B309=\"N\",\"\",IF(COUNTIF('Enrollment Form'!$DG316:$DP316,\"Other\")=COUNTA('Enrollment Form'!$DK316,'Enrollment Form'!$DH316,'Enrollment Form'!$DN316,'Enrollment Form'!$DQ316),\"Y\",\"N\"))","v":""},{"$f":"IF($B309=\"N\",\"\",IF(OR('Enrollment Form'!B316<>\"Subscriber\",'Enrollment Form'!C316=\"ROC\",COUNTIF('Enrollment Form'!AV316:AW316,\"Yes\")>=1),\"-\",IF(AND('Enrollment Form'!C316=\"Enroll\",COUNTIF('Enrollment Form'!AV316:AW316,\"No\")=2,'Enrollment Form'!AX316=\"\"),\"N\",\"Y\")))","v":""},{"$f":"IF(OR(B309=\"N\",'Enrollment Form'!B316<>\"Subscriber\",'Enrollment Form'!C316=\"ROC\",'Enrollment Form'!O316<>\"Multiple of Salary\"),\"-\",IF(COUNTA('Enrollment Form'!T316:U316)<2,\"N\",\"Y\"))","v":"-"},{"$f":"IF(B309=\"N\",\"\",IF(OR('Enrollment Form'!C316=\"ROC\",'Enrollment Form'!B316<>\"Subscriber\",'Enrollment Form'!O316=\"Waive\",'Enrollment Form'!O316=\"\"),\"-\",IF('Enrollment Form'!P316=\"\",\"N\",\"Y\")))","v":""},{"$f":"IF($B309=\"N\",\"\",IF(AND('Enrollment Form'!$C316=\"ROC\",'Enrollment Form'!$DR316<>\"\"),\"Y\",IF(AND('Enrollment Form'!$C316=\"ROC\",'Enrollment Form'!$DR316=\"\"),\"N\",IF(AND('Enrollment Form'!$C316=\"Enroll\",'Enrollment Form'!$B316=\"Subscriber\",'Enrollment Form'!$CX316=\"No\",'Enrollment Form'!$DR316=\"\"),\"N\",IF(AND('Enrollment Form'!$C316=\"Enroll\",'Enrollment Form'!$B316=\"Subscriber\",'Enrollment Form'!$CX316=\"Yes\"),\"-\",\"Y\")))))","v":""},{"$f":"IF($B309=\"N\",\"\",IF(AND('Enrollment Form'!$C316=\"ROC\",'Enrollment Form'!$DS316<>\"\"),\"Y\",IF(AND('Enrollment Form'!$C316=\"ROC\",'Enrollment Form'!$DS316=\"\"),\"N\",IF(AND('Enrollment Form'!$C316=\"Enroll\",'Enrollment Form'!$B316=\"Subscriber\",'Enrollment Form'!$CX316=\"No\",'Enrollment Form'!$DS316=\"\"),\"N\",IF(AND('Enrollment Form'!$C316=\"Enroll\",'Enrollment Form'!$B316=\"Subscriber\",'Enrollment Form'!$CX316=\"Yes\"),\"-\",\"Y\")))))","v":""},{"$f":"IF('Enrollment Form'!AH316=\"\",\"\",IF(ISERROR(SEARCH(\".\",'Enrollment Form'!AH316,SEARCH(\"@\",'Enrollment Form'!AH316))),\"N\",\"Y\"))","v":""},{"$f":"IF(OR($B309=\"N\",'Enrollment Form'!$G316=\"\"),\"\",IF('Enrollment Form'!$B316<>\"Subscriber\",\"-\",IF(COUNTIF('Enrollment Form'!$AV316:$AW316,\"Yes\")=2,\"N\",\"Y\")))","v":""},{"$f":"IF(OR('Enrollment Form'!$CJ316=\"\",'Enrollment Form'!$CJ316=\"No\"),\"-\",IF(AND('Enrollment Form'!$CJ316=\"Yes\",'Enrollment Form'!$CK316=\"\"),\"N\",\"Y\"))","v":"-"},{"$f":"IF(OR('Enrollment Form'!$CL316=\"\",'Enrollment Form'!$CL316=\"No\"),\"-\",IF(AND('Enrollment Form'!$CL316=\"Yes\",'Enrollment Form'!$CM316=\"\"),\"N\",\"Y\"))","v":"-"},{"$f":"IF(OR('Enrollment Form'!$CN316=\"\",'Enrollment Form'!$CN316=\"No\"),\"-\",IF(AND('Enrollment Form'!$CN316=\"Yes\",'Enrollment Form'!$CO316=\"\"),\"N\",\"Y\"))","v":"-"},{"$f":"IF(OR('Enrollment Form'!$CN316=\"\",'Enrollment Form'!$CN316=\"No\"),\"-\",IF(AND('Enrollment Form'!$CN316=\"Yes\",'Enrollment Form'!$CP316=\"\"),\"N\",\"Y\"))","v":"-"},{"$f":"IF('Enrollment Form'!B316<>\"Subscriber\",\"-\",IF(AND('Enrollment Form'!B316=\"Subscriber\",'Enrollment Form'!C316=\"Enroll\",'Enrollment Form'!AA316=\"\"),\"N\",\"Y\"))","v":"-"},{"$f":"IF(OR('Enrollment Form'!B316=\"Subscriber\",'Enrollment Form'!B316=\"\"),\"-\",IF('Enrollment Form'!BP316=\"\",\"N\",\"Y\"))","v":"-"},{"$f":"IF('Enrollment Form'!B316<>\"Subscriber\",\"-\",IF(AND('Enrollment Form'!B316=\"Subscriber\",'Enrollment Form'!G316=\"\"),\"N\",\"Y\"))","v":"-"},{"$f":"IF('Enrollment Form'!A316=\"\",\"\",IF('Enrollment Form'!B316=\"Subscriber\",\"-\",IF(AND('Enrollment Form'!B316<>\"Subscriber\",'Enrollment Form'!G316='Enrollment Form'!H316),\"N\",\"Y\")))","v":""},0]
[317,{"$f":"IF('Enrollment Form'!$A317<>\"\",\"Y\",\"N\")","v":"N"},{"$f":"IF(AND('Enrollment Form'!$B317=\"\",'Enrollment Form'!$C317<>\"\"),\"N\",IF($B310=\"N\",\"\",\"Y\"))","v":""},{"$f":"IF(OR($B310=\"N\",'Enrollment Form'!G317=\"\"),\"\",IF('Enrollment Form'!$B317<>\"Subscriber\",\"\",IF('Enrollment Form'!$G317='Enrollment Form'!$H317,\"Y\",\"N\")))","v":""},{"$f":"IF($B310=\"N\",\"\",IF(AND(COUNTIFS('Enrollment Form'!$H$11:$H$1000,'Enrollment Form'!$H317,'Enrollment Form'!$B$11:$B$1000,'Enrollment Form'!$B317)>1,'Enrollment Form'!$H317<>\"\"),\"N\",\"Y\"))","v":""},{"$f":"IF($B310=\"N\",\"\",IF(LEN('Enrollment Form'!$Y317)=0,\"\",IF(LEN('Enrollment Form'!$Y317)<>5,\"N\",\"Y\")))","v":""},{"$f":"IF($B310=\"N\",\"\",IF(LEN('Enrollment Form'!$AD317=0),\"\",IF(LEN('Enrollment Form'!$AD317)<>5,\"N\",\"Y\")))","v":""},{"$f":"IF($B310=\"N\",\"\",IF(LEN('Enrollment Form'!$BS317=0),\"\",IF(LEN('Enrollment Form'!$BS317)<>5,\"N\",\"Y\")))","v":""},{"$f":"IF($B310=\"N\",\"\",IF(LEN('Enrollment Form'!$AE317)=0,\"\",IF(LEN('Enrollment Form'!$AE317)<>10,\"N\",\"Y\")))","v":""},{"$f":"IF($B310=\"N\",\"\",IF(LEN('Enrollment Form'!$AF317)=0,\"\",IF(LEN('Enrollment Form'!$AF317)<>10,\"N\",\"Y\")))","v":""},{"$f":"IF('Enrollment Form'!$O317<>\"Graded\",\"-\",IF(AND('Enrollment Form'!$O317=\"Graded\",'Enrollment Form'!$AR317<>\"\"),\"Y\",\"N\"))","v":"-"},{"$f":"IF($B310=\"N\",\"\",IF(OR('Enrollment Form'!$B317<>\"Subscriber\",'Enrollment Form'!$C317=\"ROC\"),\"-\",IF(AND('Enrollment Form'!$B317=\"Subscriber\",'Enrollment Form'!$C317=\"Enroll\",'Enrollment Form'!$AJ317<>\"\"),\"Y\",\"N\")))","v":""},{"$f":"IF($B310=\"N\",\"\",IF(OR('Enrollment Form'!$B317<>\"Subscriber\",'Enrollment Form'!$C317=\"ROC\"),\"-\",IF(AND('Enrollment Form'!$B317=\"Subscriber\",'Enrollment Form'!$C317=\"Enroll\",'Enrollment Form'!$AK317<>\"\"),\"Y\",\"N\")))","v":""},{"$f":"IF($B310=\"N\",\"\",IF(OR('Enrollment Form'!$B317<>\"Subscriber\",'Enrollment Form'!$C317=\"ROC\"),\"-\",IF(AND('Enrollment Form'!$B317=\"Subscriber\",'Enrollment Form'!$C317=\"Enroll\",'Enrollment Form'!$AL317<>\"\"),\"Y\",\"N\")))","v":""},{"$f":"IF($B310=\"N\",\"\",IF(OR('Enrollment Form'!$B317<>\"Subscriber\",'Enrollment Form'!$C317=\"ROC\"),\"-\",IF(AND('Enrollment Form'!$B317=\"Subscriber\",'Enrollment Form'!$C317=\"Enroll\",'Enrollment Form'!$AP317<>\"\"),\"Y\",\"N\")))","v":""},{"$f":"IF($B310=\"N\",\"\",IF(OR('Enrollment Form'!$B317<>\"Subscriber\",'Enrollment Form'!$C317=\"ROC\"),\"-\",IF(AND('Enrollment Form'!$B317=\"Subscriber\",'Enrollment Form'!$C317=\"Enroll\",'Enrollment Form'!$AQ317<>\"\"),\"Y\",\"N\")))","v":""},{"$f":"IF($B310=\"N\",\"\",IF(OR('Enrollment Form'!$B317<>\"Subscriber\",'Enrollment Form'!$C317=\"ROC\"),\"-\",IF(AND('Enrollment Form'!$B317=\"Subscriber\",'Enrollment Form'!$C317=\"Enroll\",'Enrollment Form'!$AS317<>\"\"),\"Y\",\"N\")))","v":""},{"$f":"IF($B310=\"N\",\"\",IF($Q310=\"-\",\"-\",IF(AND($Q310=\"Y\",'Enrollment Form'!$AS317=\"No\"),\"-\",IF(AND($Q310=\"Y\",'Enrollment Form'!$AS317=\"Yes\",'Enrollment Form'!$AT317<>\"\"),\"Y\",\"N\"))))","v":""},{"$f":"IF($B310=\"N\",\"\",IF(OR('Enrollment Form'!$B317<>\"Subscriber\",'Enrollment Form'!$C317=\"ROC\"),\"-\",IF(AND('Enrollment Form'!$B317=\"Subscriber\",'Enrollment Form'!$C317=\"Enroll\",'Enrollment Form'!$CV317<>\"\"),\"Y\",\"N\")))","v":""},{"$f":"IF($B310=\"N\",\"\",IF($S310=\"-\",\"-\",IF(AND($S310=\"Y\",'Enrollment Form'!$CV317=\"No\"),\"-\",IF(AND($S310=\"Y\",'Enrollment Form'!$CV317=\"Yes\",'Enrollment Form'!$CW317<>\"\"),\"Y\",\"N\"))))","v":""},{"$f":"IF(OR('Enrollment Form'!$AY317=\"Yes\",'Enrollment Form'!$AY317=\"\"),\"-\",IF(OR(AND('Enrollment Form'!$AY317=\"No\",ISERROR(FIND(\"HMO\",VLOOKUP('Enrollment Form'!G317,'Enrollment Form'!H$11:J$1000,3,FALSE),1))=FALSE,COUNTA('Enrollment Form'!$AZ317:$BC317)=4),AND('Enrollment Form'!$AY317=\"No\",ISERROR(FIND(\"HMO\",VLOOKUP('Enrollment Form'!G317,'Enrollment Form'!H$11:J$1000,3,FALSE),1))=FALSE,COUNTA('Enrollment Form'!$BT317:$BW317)=4)),\"Y\",\"N\"))","v":"-"},{"$f":"IF($B310=\"N\",\"\",IF('Enrollment Form'!$B317=\"Subscriber\",\"-\",IF(COUNTA('Enrollment Form'!$BL317,'Enrollment Form'!$BN317)=2,\"Y\",\"N\")))","v":""},{"$f":"IF($B310=\"N\",\"\",IF(OR('Enrollment Form'!$AX317=\"\",'Enrollment Form'!$AX317=\"No\"),\"-\",IF(AND('Enrollment Form'!$AX317=\"Yes\",COUNTA('Enrollment Form'!$CR317)=1),\"Y\",\"N\")))","v":""},{"$f":"IF(OR('Enrollment Form'!$CR317=\"\",'Enrollment Form'!$CR317=\"No\"),\"-\",IF(COUNTA('Enrollment Form'!$CT317:$CU317)=2,\"Y\",\"N\"))","v":"-"},{"$f":"IF($B310=\"N\",\"\",IF(COUNTIF('Enrollment Form'!$DG317:$DP317,\"Other\")=COUNTA('Enrollment Form'!$DK317,'Enrollment Form'!$DH317,'Enrollment Form'!$DN317,'Enrollment Form'!$DQ317),\"Y\",\"N\"))","v":""},{"$f":"IF($B310=\"N\",\"\",IF(OR('Enrollment Form'!B317<>\"Subscriber\",'Enrollment Form'!C317=\"ROC\",COUNTIF('Enrollment Form'!AV317:AW317,\"Yes\")>=1),\"-\",IF(AND('Enrollment Form'!C317=\"Enroll\",COUNTIF('Enrollment Form'!AV317:AW317,\"No\")=2,'Enrollment Form'!AX317=\"\"),\"N\",\"Y\")))","v":""},{"$f":"IF(OR(B310=\"N\",'Enrollment Form'!B317<>\"Subscriber\",'Enrollment Form'!C317=\"ROC\",'Enrollment Form'!O317<>\"Multiple of Salary\"),\"-\",IF(COUNTA('Enrollment Form'!T317:U317)<2,\"N\",\"Y\"))","v":"-"},{"$f":"IF(B310=\"N\",\"\",IF(OR('Enrollment Form'!C317=\"ROC\",'Enrollment Form'!B317<>\"Subscriber\",'Enrollment Form'!O317=\"Waive\",'Enrollment Form'!O317=\"\"),\"-\",IF('Enrollment Form'!P317=\"\",\"N\",\"Y\")))","v":""},{"$f":"IF($B310=\"N\",\"\",IF(AND('Enrollment Form'!$C317=\"ROC\",'Enrollment Form'!$DR317<>\"\"),\"Y\",IF(AND('Enrollment Form'!$C317=\"ROC\",'Enrollment Form'!$DR317=\"\"),\"N\",IF(AND('Enrollment Form'!$C317=\"Enroll\",'Enrollment Form'!$B317=\"Subscriber\",'Enrollment Form'!$CX317=\"No\",'Enrollment Form'!$DR317=\"\"),\"N\",IF(AND('Enrollment Form'!$C317=\"Enroll\",'Enrollment Form'!$B317=\"Subscriber\",'Enrollment Form'!$CX317=\"Yes\"),\"-\",\"Y\")))))","v":""},{"$f":"IF($B310=\"N\",\"\",IF(AND('Enrollment Form'!$C317=\"ROC\",'Enrollment Form'!$DS317<>\"\"),\"Y\",IF(AND('Enrollment Form'!$C317=\"ROC\",'Enrollment Form'!$DS317=\"\"),\"N\",IF(AND('Enrollment Form'!$C317=\"Enroll\",'Enrollment Form'!$B317=\"Subscriber\",'Enrollment Form'!$CX317=\"No\",'Enrollment Form'!$DS317=\"\"),\"N\",IF(AND('Enrollment Form'!$C317=\"Enroll\",'Enrollment Form'!$B317=\"Subscriber\",'Enrollment Form'!$CX317=\"Yes\"),\"-\",\"Y\")))))","v":""},{"$f":"IF('Enrollment Form'!AH317=\"\",\"\",IF(ISERROR(SEARCH(\".\",'Enrollment Form'!AH317,SEARCH(\"@\",'Enrollment Form'!AH317))),\"N\",\"Y\"))","v":""},{"$f":"IF(OR($B310=\"N\",'Enrollment Form'!$G317=\"\"),\"\",IF('Enrollment Form'!$B317<>\"Subscriber\",\"-\",IF(COUNTIF('Enrollment Form'!$AV317:$AW317,\"Yes\")=2,\"N\",\"Y\")))","v":""},{"$f":"IF(OR('Enrollment Form'!$CJ317=\"\",'Enrollment Form'!$CJ317=\"No\"),\"-\",IF(AND('Enrollment Form'!$CJ317=\"Yes\",'Enrollment Form'!$CK317=\"\"),\"N\",\"Y\"))","v":"-"},{"$f":"IF(OR('Enrollment Form'!$CL317=\"\",'Enrollment Form'!$CL317=\"No\"),\"-\",IF(AND('Enrollment Form'!$CL317=\"Yes\",'Enrollment Form'!$CM317=\"\"),\"N\",\"Y\"))","v":"-"},{"$f":"IF(OR('Enrollment Form'!$CN317=\"\",'Enrollment Form'!$CN317=\"No\"),\"-\",IF(AND('Enrollment Form'!$CN317=\"Yes\",'Enrollment Form'!$CO317=\"\"),\"N\",\"Y\"))","v":"-"},{"$f":"IF(OR('Enrollment Form'!$CN317=\"\",'Enrollment Form'!$CN317=\"No\"),\"-\",IF(AND('Enrollment Form'!$CN317=\"Yes\",'Enrollment Form'!$CP317=\"\"),\"N\",\"Y\"))","v":"-"},{"$f":"IF('Enrollment Form'!B317<>\"Subscriber\",\"-\",IF(AND('Enrollment Form'!B317=\"Subscriber\",'Enrollment Form'!C317=\"Enroll\",'Enrollment Form'!AA317=\"\"),\"N\",\"Y\"))","v":"-"},{"$f":"IF(OR('Enrollment Form'!B317=\"Subscriber\",'Enrollment Form'!B317=\"\"),\"-\",IF('Enrollment Form'!BP317=\"\",\"N\",\"Y\"))","v":"-"},{"$f":"IF('Enrollment Form'!B317<>\"Subscriber\",\"-\",IF(AND('Enrollment Form'!B317=\"Subscriber\",'Enrollment Form'!G317=\"\"),\"N\",\"Y\"))","v":"-"},{"$f":"IF('Enrollment Form'!A317=\"\",\"\",IF('Enrollment Form'!B317=\"Subscriber\",\"-\",IF(AND('Enrollment Form'!B317<>\"Subscriber\",'Enrollment Form'!G317='Enrollment Form'!H317),\"N\",\"Y\")))","v":""},0]
[318,{"$f":"IF('Enrollment Form'!$A318<>\"\",\"Y\",\"N\")","v":"N"},{"$f":"IF(AND('Enrollment Form'!$B318=\"\",'Enrollment Form'!$C318<>\"\"),\"N\",IF($B311=\"N\",\"\",\"Y\"))","v":""},{"$f":"IF(OR($B311=\"N\",'Enrollment Form'!G318=\"\"),\"\",IF('Enrollment Form'!$B318<>\"Subscriber\",\"\",IF('Enrollment Form'!$G318='Enrollment Form'!$H318,\"Y\",\"N\")))","v":""},{"$f":"IF($B311=\"N\",\"\",IF(AND(COUNTIFS('Enrollment Form'!$H$11:$H$1000,'Enrollment Form'!$H318,'Enrollment Form'!$B$11:$B$1000,'Enrollment Form'!$B318)>1,'Enrollment Form'!$H318<>\"\"),\"N\",\"Y\"))","v":""},{"$f":"IF($B311=\"N\",\"\",IF(LEN('Enrollment Form'!$Y318)=0,\"\",IF(LEN('Enrollment Form'!$Y318)<>5,\"N\",\"Y\")))","v":""},{"$f":"IF($B311=\"N\",\"\",IF(LEN('Enrollment Form'!$AD318=0),\"\",IF(LEN('Enrollment Form'!$AD318)<>5,\"N\",\"Y\")))","v":""},{"$f":"IF($B311=\"N\",\"\",IF(LEN('Enrollment Form'!$BS318=0),\"\",IF(LEN('Enrollment Form'!$BS318)<>5,\"N\",\"Y\")))","v":""},{"$f":"IF($B311=\"N\",\"\",IF(LEN('Enrollment Form'!$AE318)=0,\"\",IF(LEN('Enrollment Form'!$AE318)<>10,\"N\",\"Y\")))","v":""},{"$f":"IF($B311=\"N\",\"\",IF(LEN('Enrollment Form'!$AF318)=0,\"\",IF(LEN('Enrollment Form'!$AF318)<>10,\"N\",\"Y\")))","v":""},{"$f":"IF('Enrollment Form'!$O318<>\"Graded\",\"-\",IF(AND('Enrollment Form'!$O318=\"Graded\",'Enrollment Form'!$AR318<>\"\"),\"Y\",\"N\"))","v":"-"},{"$f":"IF($B311=\"N\",\"\",IF(OR('Enrollment Form'!$B318<>\"Subscriber\",'Enrollment Form'!$C318=\"ROC\"),\"-\",IF(AND('Enrollment Form'!$B318=\"Subscriber\",'Enrollment Form'!$C318=\"Enroll\",'Enrollment Form'!$AJ318<>\"\"),\"Y\",\"N\")))","v":""},{"$f":"IF($B311=\"N\",\"\",IF(OR('Enrollment Form'!$B318<>\"Subscriber\",'Enrollment Form'!$C318=\"ROC\"),\"-\",IF(AND('Enrollment Form'!$B318=\"Subscriber\",'Enrollment Form'!$C318=\"Enroll\",'Enrollment Form'!$AK318<>\"\"),\"Y\",\"N\")))","v":""},{"$f":"IF($B311=\"N\",\"\",IF(OR('Enrollment Form'!$B318<>\"Subscriber\",'Enrollment Form'!$C318=\"ROC\"),\"-\",IF(AND('Enrollment Form'!$B318=\"Subscriber\",'Enrollment Form'!$C318=\"Enroll\",'Enrollment Form'!$AL318<>\"\"),\"Y\",\"N\")))","v":""},{"$f":"IF($B311=\"N\",\"\",IF(OR('Enrollment Form'!$B318<>\"Subscriber\",'Enrollment Form'!$C318=\"ROC\"),\"-\",IF(AND('Enrollment Form'!$B318=\"Subscriber\",'Enrollment Form'!$C318=\"Enroll\",'Enrollment Form'!$AP318<>\"\"),\"Y\",\"N\")))","v":""},{"$f":"IF($B311=\"N\",\"\",IF(OR('Enrollment Form'!$B318<>\"Subscriber\",'Enrollment Form'!$C318=\"ROC\"),\"-\",IF(AND('Enrollment Form'!$B318=\"Subscriber\",'Enrollment Form'!$C318=\"Enroll\",'Enrollment Form'!$AQ318<>\"\"),\"Y\",\"N\")))","v":""},{"$f":"IF($B311=\"N\",\"\",IF(OR('Enrollment Form'!$B318<>\"Subscriber\",'Enrollment Form'!$C318=\"ROC\"),\"-\",IF(AND('Enrollment Form'!$B318=\"Subscriber\",'Enrollment Form'!$C318=\"Enroll\",'Enrollment Form'!$AS318<>\"\"),\"Y\",\"N\")))","v":""},{"$f":"IF($B311=\"N\",\"\",IF($Q311=\"-\",\"-\",IF(AND($Q311=\"Y\",'Enrollment Form'!$AS318=\"No\"),\"-\",IF(AND($Q311=\"Y\",'Enrollment Form'!$AS318=\"Yes\",'Enrollment Form'!$AT318<>\"\"),\"Y\",\"N\"))))","v":""},{"$f":"IF($B311=\"N\",\"\",IF(OR('Enrollment Form'!$B318<>\"Subscriber\",'Enrollment Form'!$C318=\"ROC\"),\"-\",IF(AND('Enrollment Form'!$B318=\"Subscriber\",'Enrollment Form'!$C318=\"Enroll\",'Enrollment Form'!$CV318<>\"\"),\"Y\",\"N\")))","v":""},{"$f":"IF($B311=\"N\",\"\",IF($S311=\"-\",\"-\",IF(AND($S311=\"Y\",'Enrollment Form'!$CV318=\"No\"),\"-\",IF(AND($S311=\"Y\",'Enrollment Form'!$CV318=\"Yes\",'Enrollment Form'!$CW318<>\"\"),\"Y\",\"N\"))))","v":""},{"$f":"IF(OR('Enrollment Form'!$AY318=\"Yes\",'Enrollment Form'!$AY318=\"\"),\"-\",IF(OR(AND('Enrollment Form'!$AY318=\"No\",ISERROR(FIND(\"HMO\",VLOOKUP('Enrollment Form'!G318,'Enrollment Form'!H$11:J$1000,3,FALSE),1))=FALSE,COUNTA('Enrollment Form'!$AZ318:$BC318)=4),AND('Enrollment Form'!$AY318=\"No\",ISERROR(FIND(\"HMO\",VLOOKUP('Enrollment Form'!G318,'Enrollment Form'!H$11:J$1000,3,FALSE),1))=FALSE,COUNTA('Enrollment Form'!$BT318:$BW318)=4)),\"Y\",\"N\"))","v":"-"},{"$f":"IF($B311=\"N\",\"\",IF('Enrollment Form'!$B318=\"Subscriber\",\"-\",IF(COUNTA('Enrollment Form'!$BL318,'Enrollment Form'!$BN318)=2,\"Y\",\"N\")))","v":""},{"$f":"IF($B311=\"N\",\"\",IF(OR('Enrollment Form'!$AX318=\"\",'Enrollment Form'!$AX318=\"No\"),\"-\",IF(AND('Enrollment Form'!$AX318=\"Yes\",COUNTA('Enrollment Form'!$CR318)=1),\"Y\",\"N\")))","v":""},{"$f":"IF(OR('Enrollment Form'!$CR318=\"\",'Enrollment Form'!$CR318=\"No\"),\"-\",IF(COUNTA('Enrollment Form'!$CT318:$CU318)=2,\"Y\",\"N\"))","v":"-"},{"$f":"IF($B311=\"N\",\"\",IF(COUNTIF('Enrollment Form'!$DG318:$DP318,\"Other\")=COUNTA('Enrollment Form'!$DK318,'Enrollment Form'!$DH318,'Enrollment Form'!$DN318,'Enrollment Form'!$DQ318),\"Y\",\"N\"))","v":""},{"$f":"IF($B311=\"N\",\"\",IF(OR('Enrollment Form'!B318<>\"Subscriber\",'Enrollment Form'!C318=\"ROC\",COUNTIF('Enrollment Form'!AV318:AW318,\"Yes\")>=1),\"-\",IF(AND('Enrollment Form'!C318=\"Enroll\",COUNTIF('Enrollment Form'!AV318:AW318,\"No\")=2,'Enrollment Form'!AX318=\"\"),\"N\",\"Y\")))","v":""},{"$f":"IF(OR(B311=\"N\",'Enrollment Form'!B318<>\"Subscriber\",'Enrollment Form'!C318=\"ROC\",'Enrollment Form'!O318<>\"Multiple of Salary\"),\"-\",IF(COUNTA('Enrollment Form'!T318:U318)<2,\"N\",\"Y\"))","v":"-"},{"$f":"IF(B311=\"N\",\"\",IF(OR('Enrollment Form'!C318=\"ROC\",'Enrollment Form'!B318<>\"Subscriber\",'Enrollment Form'!O318=\"Waive\",'Enrollment Form'!O318=\"\"),\"-\",IF('Enrollment Form'!P318=\"\",\"N\",\"Y\")))","v":""},{"$f":"IF($B311=\"N\",\"\",IF(AND('Enrollment Form'!$C318=\"ROC\",'Enrollment Form'!$DR318<>\"\"),\"Y\",IF(AND('Enrollment Form'!$C318=\"ROC\",'Enrollment Form'!$DR318=\"\"),\"N\",IF(AND('Enrollment Form'!$C318=\"Enroll\",'Enrollment Form'!$B318=\"Subscriber\",'Enrollment Form'!$CX318=\"No\",'Enrollment Form'!$DR318=\"\"),\"N\",IF(AND('Enrollment Form'!$C318=\"Enroll\",'Enrollment Form'!$B318=\"Subscriber\",'Enrollment Form'!$CX318=\"Yes\"),\"-\",\"Y\")))))","v":""},{"$f":"IF($B311=\"N\",\"\",IF(AND('Enrollment Form'!$C318=\"ROC\",'Enrollment Form'!$DS318<>\"\"),\"Y\",IF(AND('Enrollment Form'!$C318=\"ROC\",'Enrollment Form'!$DS318=\"\"),\"N\",IF(AND('Enrollment Form'!$C318=\"Enroll\",'Enrollment Form'!$B318=\"Subscriber\",'Enrollment Form'!$CX318=\"No\",'Enrollment Form'!$DS318=\"\"),\"N\",IF(AND('Enrollment Form'!$C318=\"Enroll\",'Enrollment Form'!$B318=\"Subscriber\",'Enrollment Form'!$CX318=\"Yes\"),\"-\",\"Y\")))))","v":""},{"$f":"IF('Enrollment Form'!AH318=\"\",\"\",IF(ISERROR(SEARCH(\".\",'Enrollment Form'!AH318,SEARCH(\"@\",'Enrollment Form'!AH318))),\"N\",\"Y\"))","v":""},{"$f":"IF(OR($B311=\"N\",'Enrollment Form'!$G318=\"\"),\"\",IF('Enrollment Form'!$B318<>\"Subscriber\",\"-\",IF(COUNTIF('Enrollment Form'!$AV318:$AW318,\"Yes\")=2,\"N\",\"Y\")))","v":""},{"$f":"IF(OR('Enrollment Form'!$CJ318=\"\",'Enrollment Form'!$CJ318=\"No\"),\"-\",IF(AND('Enrollment Form'!$CJ318=\"Yes\",'Enrollment Form'!$CK318=\"\"),\"N\",\"Y\"))","v":"-"},{"$f":"IF(OR('Enrollment Form'!$CL318=\"\",'Enrollment Form'!$CL318=\"No\"),\"-\",IF(AND('Enrollment Form'!$CL318=\"Yes\",'Enrollment Form'!$CM318=\"\"),\"N\",\"Y\"))","v":"-"},{"$f":"IF(OR('Enrollment Form'!$CN318=\"\",'Enrollment Form'!$CN318=\"No\"),\"-\",IF(AND('Enrollment Form'!$CN318=\"Yes\",'Enrollment Form'!$CO318=\"\"),\"N\",\"Y\"))","v":"-"},{"$f":"IF(OR('Enrollment Form'!$CN318=\"\",'Enrollment Form'!$CN318=\"No\"),\"-\",IF(AND('Enrollment Form'!$CN318=\"Yes\",'Enrollment Form'!$CP318=\"\"),\"N\",\"Y\"))","v":"-"},{"$f":"IF('Enrollment Form'!B318<>\"Subscriber\",\"-\",IF(AND('Enrollment Form'!B318=\"Subscriber\",'Enrollment Form'!C318=\"Enroll\",'Enrollment Form'!AA318=\"\"),\"N\",\"Y\"))","v":"-"},{"$f":"IF(OR('Enrollment Form'!B318=\"Subscriber\",'Enrollment Form'!B318=\"\"),\"-\",IF('Enrollment Form'!BP318=\"\",\"N\",\"Y\"))","v":"-"},{"$f":"IF('Enrollment Form'!B318<>\"Subscriber\",\"-\",IF(AND('Enrollment Form'!B318=\"Subscriber\",'Enrollment Form'!G318=\"\"),\"N\",\"Y\"))","v":"-"},{"$f":"IF('Enrollment Form'!A318=\"\",\"\",IF('Enrollment Form'!B318=\"Subscriber\",\"-\",IF(AND('Enrollment Form'!B318<>\"Subscriber\",'Enrollment Form'!G318='Enrollment Form'!H318),\"N\",\"Y\")))","v":""},0]
[319,{"$f":"IF('Enrollment Form'!$A319<>\"\",\"Y\",\"N\")","v":"N"},{"$f":"IF(AND('Enrollment Form'!$B319=\"\",'Enrollment Form'!$C319<>\"\"),\"N\",IF($B312=\"N\",\"\",\"Y\"))","v":""},{"$f":"IF(OR($B312=\"N\",'Enrollment Form'!G319=\"\"),\"\",IF('Enrollment Form'!$B319<>\"Subscriber\",\"\",IF('Enrollment Form'!$G319='Enrollment Form'!$H319,\"Y\",\"N\")))","v":""},{"$f":"IF($B312=\"N\",\"\",IF(AND(COUNTIFS('Enrollment Form'!$H$11:$H$1000,'Enrollment Form'!$H319,'Enrollment Form'!$B$11:$B$1000,'Enrollment Form'!$B319)>1,'Enrollment Form'!$H319<>\"\"),\"N\",\"Y\"))","v":""},{"$f":"IF($B312=\"N\",\"\",IF(LEN('Enrollment Form'!$Y319)=0,\"\",IF(LEN('Enrollment Form'!$Y319)<>5,\"N\",\"Y\")))","v":""},{"$f":"IF($B312=\"N\",\"\",IF(LEN('Enrollment Form'!$AD319=0),\"\",IF(LEN('Enrollment Form'!$AD319)<>5,\"N\",\"Y\")))","v":""},{"$f":"IF($B312=\"N\",\"\",IF(LEN('Enrollment Form'!$BS319=0),\"\",IF(LEN('Enrollment Form'!$BS319)<>5,\"N\",\"Y\")))","v":""},{"$f":"IF($B312=\"N\",\"\",IF(LEN('Enrollment Form'!$AE319)=0,\"\",IF(LEN('Enrollment Form'!$AE319)<>10,\"N\",\"Y\")))","v":""},{"$f":"IF($B312=\"N\",\"\",IF(LEN('Enrollment Form'!$AF319)=0,\"\",IF(LEN('Enrollment Form'!$AF319)<>10,\"N\",\"Y\")))","v":""},{"$f":"IF('Enrollment Form'!$O319<>\"Graded\",\"-\",IF(AND('Enrollment Form'!$O319=\"Graded\",'Enrollment Form'!$AR319<>\"\"),\"Y\",\"N\"))","v":"-"},{"$f":"IF($B312=\"N\",\"\",IF(OR('Enrollment Form'!$B319<>\"Subscriber\",'Enrollment Form'!$C319=\"ROC\"),\"-\",IF(AND('Enrollment Form'!$B319=\"Subscriber\",'Enrollment Form'!$C319=\"Enroll\",'Enrollment Form'!$AJ319<>\"\"),\"Y\",\"N\")))","v":""},{"$f":"IF($B312=\"N\",\"\",IF(OR('Enrollment Form'!$B319<>\"Subscriber\",'Enrollment Form'!$C319=\"ROC\"),\"-\",IF(AND('Enrollment Form'!$B319=\"Subscriber\",'Enrollment Form'!$C319=\"Enroll\",'Enrollment Form'!$AK319<>\"\"),\"Y\",\"N\")))","v":""},{"$f":"IF($B312=\"N\",\"\",IF(OR('Enrollment Form'!$B319<>\"Subscriber\",'Enrollment Form'!$C319=\"ROC\"),\"-\",IF(AND('Enrollment Form'!$B319=\"Subscriber\",'Enrollment Form'!$C319=\"Enroll\",'Enrollment Form'!$AL319<>\"\"),\"Y\",\"N\")))","v":""},{"$f":"IF($B312=\"N\",\"\",IF(OR('Enrollment Form'!$B319<>\"Subscriber\",'Enrollment Form'!$C319=\"ROC\"),\"-\",IF(AND('Enrollment Form'!$B319=\"Subscriber\",'Enrollment Form'!$C319=\"Enroll\",'Enrollment Form'!$AP319<>\"\"),\"Y\",\"N\")))","v":""},{"$f":"IF($B312=\"N\",\"\",IF(OR('Enrollment Form'!$B319<>\"Subscriber\",'Enrollment Form'!$C319=\"ROC\"),\"-\",IF(AND('Enrollment Form'!$B319=\"Subscriber\",'Enrollment Form'!$C319=\"Enroll\",'Enrollment Form'!$AQ319<>\"\"),\"Y\",\"N\")))","v":""},{"$f":"IF($B312=\"N\",\"\",IF(OR('Enrollment Form'!$B319<>\"Subscriber\",'Enrollment Form'!$C319=\"ROC\"),\"-\",IF(AND('Enrollment Form'!$B319=\"Subscriber\",'Enrollment Form'!$C319=\"Enroll\",'Enrollment Form'!$AS319<>\"\"),\"Y\",\"N\")))","v":""},{"$f":"IF($B312=\"N\",\"\",IF($Q312=\"-\",\"-\",IF(AND($Q312=\"Y\",'Enrollment Form'!$AS319=\"No\"),\"-\",IF(AND($Q312=\"Y\",'Enrollment Form'!$AS319=\"Yes\",'Enrollment Form'!$AT319<>\"\"),\"Y\",\"N\"))))","v":""},{"$f":"IF($B312=\"N\",\"\",IF(OR('Enrollment Form'!$B319<>\"Subscriber\",'Enrollment Form'!$C319=\"ROC\"),\"-\",IF(AND('Enrollment Form'!$B319=\"Subscriber\",'Enrollment Form'!$C319=\"Enroll\",'Enrollment Form'!$CV319<>\"\"),\"Y\",\"N\")))","v":""},{"$f":"IF($B312=\"N\",\"\",IF($S312=\"-\",\"-\",IF(AND($S312=\"Y\",'Enrollment Form'!$CV319=\"No\"),\"-\",IF(AND($S312=\"Y\",'Enrollment Form'!$CV319=\"Yes\",'Enrollment Form'!$CW319<>\"\"),\"Y\",\"N\"))))","v":""},{"$f":"IF(OR('Enrollment Form'!$AY319=\"Yes\",'Enrollment Form'!$AY319=\"\"),\"-\",IF(OR(AND('Enrollment Form'!$AY319=\"No\",ISERROR(FIND(\"HMO\",VLOOKUP('Enrollment Form'!G319,'Enrollment Form'!H$11:J$1000,3,FALSE),1))=FALSE,COUNTA('Enrollment Form'!$AZ319:$BC319)=4),AND('Enrollment Form'!$AY319=\"No\",ISERROR(FIND(\"HMO\",VLOOKUP('Enrollment Form'!G319,'Enrollment Form'!H$11:J$1000,3,FALSE),1))=FALSE,COUNTA('Enrollment Form'!$BT319:$BW319)=4)),\"Y\",\"N\"))","v":"-"},{"$f":"IF($B312=\"N\",\"\",IF('Enrollment Form'!$B319=\"Subscriber\",\"-\",IF(COUNTA('Enrollment Form'!$BL319,'Enrollment Form'!$BN319)=2,\"Y\",\"N\")))","v":""},{"$f":"IF($B312=\"N\",\"\",IF(OR('Enrollment Form'!$AX319=\"\",'Enrollment Form'!$AX319=\"No\"),\"-\",IF(AND('Enrollment Form'!$AX319=\"Yes\",COUNTA('Enrollment Form'!$CR319)=1),\"Y\",\"N\")))","v":""},{"$f":"IF(OR('Enrollment Form'!$CR319=\"\",'Enrollment Form'!$CR319=\"No\"),\"-\",IF(COUNTA('Enrollment Form'!$CT319:$CU319)=2,\"Y\",\"N\"))","v":"-"},{"$f":"IF($B312=\"N\",\"\",IF(COUNTIF('Enrollment Form'!$DG319:$DP319,\"Other\")=COUNTA('Enrollment Form'!$DK319,'Enrollment Form'!$DH319,'Enrollment Form'!$DN319,'Enrollment Form'!$DQ319),\"Y\",\"N\"))","v":""},{"$f":"IF($B312=\"N\",\"\",IF(OR('Enrollment Form'!B319<>\"Subscriber\",'Enrollment Form'!C319=\"ROC\",COUNTIF('Enrollment Form'!AV319:AW319,\"Yes\")>=1),\"-\",IF(AND('Enrollment Form'!C319=\"Enroll\",COUNTIF('Enrollment Form'!AV319:AW319,\"No\")=2,'Enrollment Form'!AX319=\"\"),\"N\",\"Y\")))","v":""},{"$f":"IF(OR(B312=\"N\",'Enrollment Form'!B319<>\"Subscriber\",'Enrollment Form'!C319=\"ROC\",'Enrollment Form'!O319<>\"Multiple of Salary\"),\"-\",IF(COUNTA('Enrollment Form'!T319:U319)<2,\"N\",\"Y\"))","v":"-"},{"$f":"IF(B312=\"N\",\"\",IF(OR('Enrollment Form'!C319=\"ROC\",'Enrollment Form'!B319<>\"Subscriber\",'Enrollment Form'!O319=\"Waive\",'Enrollment Form'!O319=\"\"),\"-\",IF('Enrollment Form'!P319=\"\",\"N\",\"Y\")))","v":""},{"$f":"IF($B312=\"N\",\"\",IF(AND('Enrollment Form'!$C319=\"ROC\",'Enrollment Form'!$DR319<>\"\"),\"Y\",IF(AND('Enrollment Form'!$C319=\"ROC\",'Enrollment Form'!$DR319=\"\"),\"N\",IF(AND('Enrollment Form'!$C319=\"Enroll\",'Enrollment Form'!$B319=\"Subscriber\",'Enrollment Form'!$CX319=\"No\",'Enrollment Form'!$DR319=\"\"),\"N\",IF(AND('Enrollment Form'!$C319=\"Enroll\",'Enrollment Form'!$B319=\"Subscriber\",'Enrollment Form'!$CX319=\"Yes\"),\"-\",\"Y\")))))","v":""},{"$f":"IF($B312=\"N\",\"\",IF(AND('Enrollment Form'!$C319=\"ROC\",'Enrollment Form'!$DS319<>\"\"),\"Y\",IF(AND('Enrollment Form'!$C319=\"ROC\",'Enrollment Form'!$DS319=\"\"),\"N\",IF(AND('Enrollment Form'!$C319=\"Enroll\",'Enrollment Form'!$B319=\"Subscriber\",'Enrollment Form'!$CX319=\"No\",'Enrollment Form'!$DS319=\"\"),\"N\",IF(AND('Enrollment Form'!$C319=\"Enroll\",'Enrollment Form'!$B319=\"Subscriber\",'Enrollment Form'!$CX319=\"Yes\"),\"-\",\"Y\")))))","v":""},{"$f":"IF('Enrollment Form'!AH319=\"\",\"\",IF(ISERROR(SEARCH(\".\",'Enrollment Form'!AH319,SEARCH(\"@\",'Enrollment Form'!AH319))),\"N\",\"Y\"))","v":""},{"$f":"IF(OR($B312=\"N\",'Enrollment Form'!$G319=\"\"),\"\",IF('Enrollment Form'!$B319<>\"Subscriber\",\"-\",IF(COUNTIF('Enrollment Form'!$AV319:$AW319,\"Yes\")=2,\"N\",\"Y\")))","v":""},{"$f":"IF(OR('Enrollment Form'!$CJ319=\"\",'Enrollment Form'!$CJ319=\"No\"),\"-\",IF(AND('Enrollment Form'!$CJ319=\"Yes\",'Enrollment Form'!$CK319=\"\"),\"N\",\"Y\"))","v":"-"},{"$f":"IF(OR('Enrollment Form'!$CL319=\"\",'Enrollment Form'!$CL319=\"No\"),\"-\",IF(AND('Enrollment Form'!$CL319=\"Yes\",'Enrollment Form'!$CM319=\"\"),\"N\",\"Y\"))","v":"-"},{"$f":"IF(OR('Enrollment Form'!$CN319=\"\",'Enrollment Form'!$CN319=\"No\"),\"-\",IF(AND('Enrollment Form'!$CN319=\"Yes\",'Enrollment Form'!$CO319=\"\"),\"N\",\"Y\"))","v":"-"},{"$f":"IF(OR('Enrollment Form'!$CN319=\"\",'Enrollment Form'!$CN319=\"No\"),\"-\",IF(AND('Enrollment Form'!$CN319=\"Yes\",'Enrollment Form'!$CP319=\"\"),\"N\",\"Y\"))","v":"-"},{"$f":"IF('Enrollment Form'!B319<>\"Subscriber\",\"-\",IF(AND('Enrollment Form'!B319=\"Subscriber\",'Enrollment Form'!C319=\"Enroll\",'Enrollment Form'!AA319=\"\"),\"N\",\"Y\"))","v":"-"},{"$f":"IF(OR('Enrollment Form'!B319=\"Subscriber\",'Enrollment Form'!B319=\"\"),\"-\",IF('Enrollment Form'!BP319=\"\",\"N\",\"Y\"))","v":"-"},{"$f":"IF('Enrollment Form'!B319<>\"Subscriber\",\"-\",IF(AND('Enrollment Form'!B319=\"Subscriber\",'Enrollment Form'!G319=\"\"),\"N\",\"Y\"))","v":"-"},{"$f":"IF('Enrollment Form'!A319=\"\",\"\",IF('Enrollment Form'!B319=\"Subscriber\",\"-\",IF(AND('Enrollment Form'!B319<>\"Subscriber\",'Enrollment Form'!G319='Enrollment Form'!H319),\"N\",\"Y\")))","v":""},0]
[320,{"$f":"IF('Enrollment Form'!$A320<>\"\",\"Y\",\"N\")","v":"N"},{"$f":"IF(AND('Enrollment Form'!$B320=\"\",'Enrollment Form'!$C320<>\"\"),\"N\",IF($B313=\"N\",\"\",\"Y\"))","v":""},{"$f":"IF(OR($B313=\"N\",'Enrollment Form'!G320=\"\"),\"\",IF('Enrollment Form'!$B320<>\"Subscriber\",\"\",IF('Enrollment Form'!$G320='Enrollment Form'!$H320,\"Y\",\"N\")))","v":""},{"$f":"IF($B313=\"N\",\"\",IF(AND(COUNTIFS('Enrollment Form'!$H$11:$H$1000,'Enrollment Form'!$H320,'Enrollment Form'!$B$11:$B$1000,'Enrollment Form'!$B320)>1,'Enrollment Form'!$H320<>\"\"),\"N\",\"Y\"))","v":""},{"$f":"IF($B313=\"N\",\"\",IF(LEN('Enrollment Form'!$Y320)=0,\"\",IF(LEN('Enrollment Form'!$Y320)<>5,\"N\",\"Y\")))","v":""},{"$f":"IF($B313=\"N\",\"\",IF(LEN('Enrollment Form'!$AD320=0),\"\",IF(LEN('Enrollment Form'!$AD320)<>5,\"N\",\"Y\")))","v":""},{"$f":"IF($B313=\"N\",\"\",IF(LEN('Enrollment Form'!$BS320=0),\"\",IF(LEN('Enrollment Form'!$BS320)<>5,\"N\",\"Y\")))","v":""},{"$f":"IF($B313=\"N\",\"\",IF(LEN('Enrollment Form'!$AE320)=0,\"\",IF(LEN('Enrollment Form'!$AE320)<>10,\"N\",\"Y\")))","v":""},{"$f":"IF($B313=\"N\",\"\",IF(LEN('Enrollment Form'!$AF320)=0,\"\",IF(LEN('Enrollment Form'!$AF320)<>10,\"N\",\"Y\")))","v":""},{"$f":"IF('Enrollment Form'!$O320<>\"Graded\",\"-\",IF(AND('Enrollment Form'!$O320=\"Graded\",'Enrollment Form'!$AR320<>\"\"),\"Y\",\"N\"))","v":"-"},{"$f":"IF($B313=\"N\",\"\",IF(OR('Enrollment Form'!$B320<>\"Subscriber\",'Enrollment Form'!$C320=\"ROC\"),\"-\",IF(AND('Enrollment Form'!$B320=\"Subscriber\",'Enrollment Form'!$C320=\"Enroll\",'Enrollment Form'!$AJ320<>\"\"),\"Y\",\"N\")))","v":""},{"$f":"IF($B313=\"N\",\"\",IF(OR('Enrollment Form'!$B320<>\"Subscriber\",'Enrollment Form'!$C320=\"ROC\"),\"-\",IF(AND('Enrollment Form'!$B320=\"Subscriber\",'Enrollment Form'!$C320=\"Enroll\",'Enrollment Form'!$AK320<>\"\"),\"Y\",\"N\")))","v":""},{"$f":"IF($B313=\"N\",\"\",IF(OR('Enrollment Form'!$B320<>\"Subscriber\",'Enrollment Form'!$C320=\"ROC\"),\"-\",IF(AND('Enrollment Form'!$B320=\"Subscriber\",'Enrollment Form'!$C320=\"Enroll\",'Enrollment Form'!$AL320<>\"\"),\"Y\",\"N\")))","v":""},{"$f":"IF($B313=\"N\",\"\",IF(OR('Enrollment Form'!$B320<>\"Subscriber\",'Enrollment Form'!$C320=\"ROC\"),\"-\",IF(AND('Enrollment Form'!$B320=\"Subscriber\",'Enrollment Form'!$C320=\"Enroll\",'Enrollment Form'!$AP320<>\"\"),\"Y\",\"N\")))","v":""},{"$f":"IF($B313=\"N\",\"\",IF(OR('Enrollment Form'!$B320<>\"Subscriber\",'Enrollment Form'!$C320=\"ROC\"),\"-\",IF(AND('Enrollment Form'!$B320=\"Subscriber\",'Enrollment Form'!$C320=\"Enroll\",'Enrollment Form'!$AQ320<>\"\"),\"Y\",\"N\")))","v":""},{"$f":"IF($B313=\"N\",\"\",IF(OR('Enrollment Form'!$B320<>\"Subscriber\",'Enrollment Form'!$C320=\"ROC\"),\"-\",IF(AND('Enrollment Form'!$B320=\"Subscriber\",'Enrollment Form'!$C320=\"Enroll\",'Enrollment Form'!$AS320<>\"\"),\"Y\",\"N\")))","v":""},{"$f":"IF($B313=\"N\",\"\",IF($Q313=\"-\",\"-\",IF(AND($Q313=\"Y\",'Enrollment Form'!$AS320=\"No\"),\"-\",IF(AND($Q313=\"Y\",'Enrollment Form'!$AS320=\"Yes\",'Enrollment Form'!$AT320<>\"\"),\"Y\",\"N\"))))","v":""},{"$f":"IF($B313=\"N\",\"\",IF(OR('Enrollment Form'!$B320<>\"Subscriber\",'Enrollment Form'!$C320=\"ROC\"),\"-\",IF(AND('Enrollment Form'!$B320=\"Subscriber\",'Enrollment Form'!$C320=\"Enroll\",'Enrollment Form'!$CV320<>\"\"),\"Y\",\"N\")))","v":""},{"$f":"IF($B313=\"N\",\"\",IF($S313=\"-\",\"-\",IF(AND($S313=\"Y\",'Enrollment Form'!$CV320=\"No\"),\"-\",IF(AND($S313=\"Y\",'Enrollment Form'!$CV320=\"Yes\",'Enrollment Form'!$CW320<>\"\"),\"Y\",\"N\"))))","v":""},{"$f":"IF(OR('Enrollment Form'!$AY320=\"Yes\",'Enrollment Form'!$AY320=\"\"),\"-\",IF(OR(AND('Enrollment Form'!$AY320=\"No\",ISERROR(FIND(\"HMO\",VLOOKUP('Enrollment Form'!G320,'Enrollment Form'!H$11:J$1000,3,FALSE),1))=FALSE,COUNTA('Enrollment Form'!$AZ320:$BC320)=4),AND('Enrollment Form'!$AY320=\"No\",ISERROR(FIND(\"HMO\",VLOOKUP('Enrollment Form'!G320,'Enrollment Form'!H$11:J$1000,3,FALSE),1))=FALSE,COUNTA('Enrollment Form'!$BT320:$BW320)=4)),\"Y\",\"N\"))","v":"-"},{"$f":"IF($B313=\"N\",\"\",IF('Enrollment Form'!$B320=\"Subscriber\",\"-\",IF(COUNTA('Enrollment Form'!$BL320,'Enrollment Form'!$BN320)=2,\"Y\",\"N\")))","v":""},{"$f":"IF($B313=\"N\",\"\",IF(OR('Enrollment Form'!$AX320=\"\",'Enrollment Form'!$AX320=\"No\"),\"-\",IF(AND('Enrollment Form'!$AX320=\"Yes\",COUNTA('Enrollment Form'!$CR320)=1),\"Y\",\"N\")))","v":""},{"$f":"IF(OR('Enrollment Form'!$CR320=\"\",'Enrollment Form'!$CR320=\"No\"),\"-\",IF(COUNTA('Enrollment Form'!$CT320:$CU320)=2,\"Y\",\"N\"))","v":"-"},{"$f":"IF($B313=\"N\",\"\",IF(COUNTIF('Enrollment Form'!$DG320:$DP320,\"Other\")=COUNTA('Enrollment Form'!$DK320,'Enrollment Form'!$DH320,'Enrollment Form'!$DN320,'Enrollment Form'!$DQ320),\"Y\",\"N\"))","v":""},{"$f":"IF($B313=\"N\",\"\",IF(OR('Enrollment Form'!B320<>\"Subscriber\",'Enrollment Form'!C320=\"ROC\",COUNTIF('Enrollment Form'!AV320:AW320,\"Yes\")>=1),\"-\",IF(AND('Enrollment Form'!C320=\"Enroll\",COUNTIF('Enrollment Form'!AV320:AW320,\"No\")=2,'Enrollment Form'!AX320=\"\"),\"N\",\"Y\")))","v":""},{"$f":"IF(OR(B313=\"N\",'Enrollment Form'!B320<>\"Subscriber\",'Enrollment Form'!C320=\"ROC\",'Enrollment Form'!O320<>\"Multiple of Salary\"),\"-\",IF(COUNTA('Enrollment Form'!T320:U320)<2,\"N\",\"Y\"))","v":"-"},{"$f":"IF(B313=\"N\",\"\",IF(OR('Enrollment Form'!C320=\"ROC\",'Enrollment Form'!B320<>\"Subscriber\",'Enrollment Form'!O320=\"Waive\",'Enrollment Form'!O320=\"\"),\"-\",IF('Enrollment Form'!P320=\"\",\"N\",\"Y\")))","v":""},{"$f":"IF($B313=\"N\",\"\",IF(AND('Enrollment Form'!$C320=\"ROC\",'Enrollment Form'!$DR320<>\"\"),\"Y\",IF(AND('Enrollment Form'!$C320=\"ROC\",'Enrollment Form'!$DR320=\"\"),\"N\",IF(AND('Enrollment Form'!$C320=\"Enroll\",'Enrollment Form'!$B320=\"Subscriber\",'Enrollment Form'!$CX320=\"No\",'Enrollment Form'!$DR320=\"\"),\"N\",IF(AND('Enrollment Form'!$C320=\"Enroll\",'Enrollment Form'!$B320=\"Subscriber\",'Enrollment Form'!$CX320=\"Yes\"),\"-\",\"Y\")))))","v":""},{"$f":"IF($B313=\"N\",\"\",IF(AND('Enrollment Form'!$C320=\"ROC\",'Enrollment Form'!$DS320<>\"\"),\"Y\",IF(AND('Enrollment Form'!$C320=\"ROC\",'Enrollment Form'!$DS320=\"\"),\"N\",IF(AND('Enrollment Form'!$C320=\"Enroll\",'Enrollment Form'!$B320=\"Subscriber\",'Enrollment Form'!$CX320=\"No\",'Enrollment Form'!$DS320=\"\"),\"N\",IF(AND('Enrollment Form'!$C320=\"Enroll\",'Enrollment Form'!$B320=\"Subscriber\",'Enrollment Form'!$CX320=\"Yes\"),\"-\",\"Y\")))))","v":""},{"$f":"IF('Enrollment Form'!AH320=\"\",\"\",IF(ISERROR(SEARCH(\".\",'Enrollment Form'!AH320,SEARCH(\"@\",'Enrollment Form'!AH320))),\"N\",\"Y\"))","v":""},{"$f":"IF(OR($B313=\"N\",'Enrollment Form'!$G320=\"\"),\"\",IF('Enrollment Form'!$B320<>\"Subscriber\",\"-\",IF(COUNTIF('Enrollment Form'!$AV320:$AW320,\"Yes\")=2,\"N\",\"Y\")))","v":""},{"$f":"IF(OR('Enrollment Form'!$CJ320=\"\",'Enrollment Form'!$CJ320=\"No\"),\"-\",IF(AND('Enrollment Form'!$CJ320=\"Yes\",'Enrollment Form'!$CK320=\"\"),\"N\",\"Y\"))","v":"-"},{"$f":"IF(OR('Enrollment Form'!$CL320=\"\",'Enrollment Form'!$CL320=\"No\"),\"-\",IF(AND('Enrollment Form'!$CL320=\"Yes\",'Enrollment Form'!$CM320=\"\"),\"N\",\"Y\"))","v":"-"},{"$f":"IF(OR('Enrollment Form'!$CN320=\"\",'Enrollment Form'!$CN320=\"No\"),\"-\",IF(AND('Enrollment Form'!$CN320=\"Yes\",'Enrollment Form'!$CO320=\"\"),\"N\",\"Y\"))","v":"-"},{"$f":"IF(OR('Enrollment Form'!$CN320=\"\",'Enrollment Form'!$CN320=\"No\"),\"-\",IF(AND('Enrollment Form'!$CN320=\"Yes\",'Enrollment Form'!$CP320=\"\"),\"N\",\"Y\"))","v":"-"},{"$f":"IF('Enrollment Form'!B320<>\"Subscriber\",\"-\",IF(AND('Enrollment Form'!B320=\"Subscriber\",'Enrollment Form'!C320=\"Enroll\",'Enrollment Form'!AA320=\"\"),\"N\",\"Y\"))","v":"-"},{"$f":"IF(OR('Enrollment Form'!B320=\"Subscriber\",'Enrollment Form'!B320=\"\"),\"-\",IF('Enrollment Form'!BP320=\"\",\"N\",\"Y\"))","v":"-"},{"$f":"IF('Enrollment Form'!B320<>\"Subscriber\",\"-\",IF(AND('Enrollment Form'!B320=\"Subscriber\",'Enrollment Form'!G320=\"\"),\"N\",\"Y\"))","v":"-"},{"$f":"IF('Enrollment Form'!A320=\"\",\"\",IF('Enrollment Form'!B320=\"Subscriber\",\"-\",IF(AND('Enrollment Form'!B320<>\"Subscriber\",'Enrollment Form'!G320='Enrollment Form'!H320),\"N\",\"Y\")))","v":""},0]
[321,{"$f":"IF('Enrollment Form'!$A321<>\"\",\"Y\",\"N\")","v":"N"},{"$f":"IF(AND('Enrollment Form'!$B321=\"\",'Enrollment Form'!$C321<>\"\"),\"N\",IF($B314=\"N\",\"\",\"Y\"))","v":""},{"$f":"IF(OR($B314=\"N\",'Enrollment Form'!G321=\"\"),\"\",IF('Enrollment Form'!$B321<>\"Subscriber\",\"\",IF('Enrollment Form'!$G321='Enrollment Form'!$H321,\"Y\",\"N\")))","v":""},{"$f":"IF($B314=\"N\",\"\",IF(AND(COUNTIFS('Enrollment Form'!$H$11:$H$1000,'Enrollment Form'!$H321,'Enrollment Form'!$B$11:$B$1000,'Enrollment Form'!$B321)>1,'Enrollment Form'!$H321<>\"\"),\"N\",\"Y\"))","v":""},{"$f":"IF($B314=\"N\",\"\",IF(LEN('Enrollment Form'!$Y321)=0,\"\",IF(LEN('Enrollment Form'!$Y321)<>5,\"N\",\"Y\")))","v":""},{"$f":"IF($B314=\"N\",\"\",IF(LEN('Enrollment Form'!$AD321=0),\"\",IF(LEN('Enrollment Form'!$AD321)<>5,\"N\",\"Y\")))","v":""},{"$f":"IF($B314=\"N\",\"\",IF(LEN('Enrollment Form'!$BS321=0),\"\",IF(LEN('Enrollment Form'!$BS321)<>5,\"N\",\"Y\")))","v":""},{"$f":"IF($B314=\"N\",\"\",IF(LEN('Enrollment Form'!$AE321)=0,\"\",IF(LEN('Enrollment Form'!$AE321)<>10,\"N\",\"Y\")))","v":""},{"$f":"IF($B314=\"N\",\"\",IF(LEN('Enrollment Form'!$AF321)=0,\"\",IF(LEN('Enrollment Form'!$AF321)<>10,\"N\",\"Y\")))","v":""},{"$f":"IF('Enrollment Form'!$O321<>\"Graded\",\"-\",IF(AND('Enrollment Form'!$O321=\"Graded\",'Enrollment Form'!$AR321<>\"\"),\"Y\",\"N\"))","v":"-"},{"$f":"IF($B314=\"N\",\"\",IF(OR('Enrollment Form'!$B321<>\"Subscriber\",'Enrollment Form'!$C321=\"ROC\"),\"-\",IF(AND('Enrollment Form'!$B321=\"Subscriber\",'Enrollment Form'!$C321=\"Enroll\",'Enrollment Form'!$AJ321<>\"\"),\"Y\",\"N\")))","v":""},{"$f":"IF($B314=\"N\",\"\",IF(OR('Enrollment Form'!$B321<>\"Subscriber\",'Enrollment Form'!$C321=\"ROC\"),\"-\",IF(AND('Enrollment Form'!$B321=\"Subscriber\",'Enrollment Form'!$C321=\"Enroll\",'Enrollment Form'!$AK321<>\"\"),\"Y\",\"N\")))","v":""},{"$f":"IF($B314=\"N\",\"\",IF(OR('Enrollment Form'!$B321<>\"Subscriber\",'Enrollment Form'!$C321=\"ROC\"),\"-\",IF(AND('Enrollment Form'!$B321=\"Subscriber\",'Enrollment Form'!$C321=\"Enroll\",'Enrollment Form'!$AL321<>\"\"),\"Y\",\"N\")))","v":""},{"$f":"IF($B314=\"N\",\"\",IF(OR('Enrollment Form'!$B321<>\"Subscriber\",'Enrollment Form'!$C321=\"ROC\"),\"-\",IF(AND('Enrollment Form'!$B321=\"Subscriber\",'Enrollment Form'!$C321=\"Enroll\",'Enrollment Form'!$AP321<>\"\"),\"Y\",\"N\")))","v":""},{"$f":"IF($B314=\"N\",\"\",IF(OR('Enrollment Form'!$B321<>\"Subscriber\",'Enrollment Form'!$C321=\"ROC\"),\"-\",IF(AND('Enrollment Form'!$B321=\"Subscriber\",'Enrollment Form'!$C321=\"Enroll\",'Enrollment Form'!$AQ321<>\"\"),\"Y\",\"N\")))","v":""},{"$f":"IF($B314=\"N\",\"\",IF(OR('Enrollment Form'!$B321<>\"Subscriber\",'Enrollment Form'!$C321=\"ROC\"),\"-\",IF(AND('Enrollment Form'!$B321=\"Subscriber\",'Enrollment Form'!$C321=\"Enroll\",'Enrollment Form'!$AS321<>\"\"),\"Y\",\"N\")))","v":""},{"$f":"IF($B314=\"N\",\"\",IF($Q314=\"-\",\"-\",IF(AND($Q314=\"Y\",'Enrollment Form'!$AS321=\"No\"),\"-\",IF(AND($Q314=\"Y\",'Enrollment Form'!$AS321=\"Yes\",'Enrollment Form'!$AT321<>\"\"),\"Y\",\"N\"))))","v":""},{"$f":"IF($B314=\"N\",\"\",IF(OR('Enrollment Form'!$B321<>\"Subscriber\",'Enrollment Form'!$C321=\"ROC\"),\"-\",IF(AND('Enrollment Form'!$B321=\"Subscriber\",'Enrollment Form'!$C321=\"Enroll\",'Enrollment Form'!$CV321<>\"\"),\"Y\",\"N\")))","v":""},{"$f":"IF($B314=\"N\",\"\",IF($S314=\"-\",\"-\",IF(AND($S314=\"Y\",'Enrollment Form'!$CV321=\"No\"),\"-\",IF(AND($S314=\"Y\",'Enrollment Form'!$CV321=\"Yes\",'Enrollment Form'!$CW321<>\"\"),\"Y\",\"N\"))))","v":""},{"$f":"IF(OR('Enrollment Form'!$AY321=\"Yes\",'Enrollment Form'!$AY321=\"\"),\"-\",IF(OR(AND('Enrollment Form'!$AY321=\"No\",ISERROR(FIND(\"HMO\",VLOOKUP('Enrollment Form'!G321,'Enrollment Form'!H$11:J$1000,3,FALSE),1))=FALSE,COUNTA('Enrollment Form'!$AZ321:$BC321)=4),AND('Enrollment Form'!$AY321=\"No\",ISERROR(FIND(\"HMO\",VLOOKUP('Enrollment Form'!G321,'Enrollment Form'!H$11:J$1000,3,FALSE),1))=FALSE,COUNTA('Enrollment Form'!$BT321:$BW321)=4)),\"Y\",\"N\"))","v":"-"},{"$f":"IF($B314=\"N\",\"\",IF('Enrollment Form'!$B321=\"Subscriber\",\"-\",IF(COUNTA('Enrollment Form'!$BL321,'Enrollment Form'!$BN321)=2,\"Y\",\"N\")))","v":""},{"$f":"IF($B314=\"N\",\"\",IF(OR('Enrollment Form'!$AX321=\"\",'Enrollment Form'!$AX321=\"No\"),\"-\",IF(AND('Enrollment Form'!$AX321=\"Yes\",COUNTA('Enrollment Form'!$CR321)=1),\"Y\",\"N\")))","v":""},{"$f":"IF(OR('Enrollment Form'!$CR321=\"\",'Enrollment Form'!$CR321=\"No\"),\"-\",IF(COUNTA('Enrollment Form'!$CT321:$CU321)=2,\"Y\",\"N\"))","v":"-"},{"$f":"IF($B314=\"N\",\"\",IF(COUNTIF('Enrollment Form'!$DG321:$DP321,\"Other\")=COUNTA('Enrollment Form'!$DK321,'Enrollment Form'!$DH321,'Enrollment Form'!$DN321,'Enrollment Form'!$DQ321),\"Y\",\"N\"))","v":""},{"$f":"IF($B314=\"N\",\"\",IF(OR('Enrollment Form'!B321<>\"Subscriber\",'Enrollment Form'!C321=\"ROC\",COUNTIF('Enrollment Form'!AV321:AW321,\"Yes\")>=1),\"-\",IF(AND('Enrollment Form'!C321=\"Enroll\",COUNTIF('Enrollment Form'!AV321:AW321,\"No\")=2,'Enrollment Form'!AX321=\"\"),\"N\",\"Y\")))","v":""},{"$f":"IF(OR(B314=\"N\",'Enrollment Form'!B321<>\"Subscriber\",'Enrollment Form'!C321=\"ROC\",'Enrollment Form'!O321<>\"Multiple of Salary\"),\"-\",IF(COUNTA('Enrollment Form'!T321:U321)<2,\"N\",\"Y\"))","v":"-"},{"$f":"IF(B314=\"N\",\"\",IF(OR('Enrollment Form'!C321=\"ROC\",'Enrollment Form'!B321<>\"Subscriber\",'Enrollment Form'!O321=\"Waive\",'Enrollment Form'!O321=\"\"),\"-\",IF('Enrollment Form'!P321=\"\",\"N\",\"Y\")))","v":""},{"$f":"IF($B314=\"N\",\"\",IF(AND('Enrollment Form'!$C321=\"ROC\",'Enrollment Form'!$DR321<>\"\"),\"Y\",IF(AND('Enrollment Form'!$C321=\"ROC\",'Enrollment Form'!$DR321=\"\"),\"N\",IF(AND('Enrollment Form'!$C321=\"Enroll\",'Enrollment Form'!$B321=\"Subscriber\",'Enrollment Form'!$CX321=\"No\",'Enrollment Form'!$DR321=\"\"),\"N\",IF(AND('Enrollment Form'!$C321=\"Enroll\",'Enrollment Form'!$B321=\"Subscriber\",'Enrollment Form'!$CX321=\"Yes\"),\"-\",\"Y\")))))","v":""},{"$f":"IF($B314=\"N\",\"\",IF(AND('Enrollment Form'!$C321=\"ROC\",'Enrollment Form'!$DS321<>\"\"),\"Y\",IF(AND('Enrollment Form'!$C321=\"ROC\",'Enrollment Form'!$DS321=\"\"),\"N\",IF(AND('Enrollment Form'!$C321=\"Enroll\",'Enrollment Form'!$B321=\"Subscriber\",'Enrollment Form'!$CX321=\"No\",'Enrollment Form'!$DS321=\"\"),\"N\",IF(AND('Enrollment Form'!$C321=\"Enroll\",'Enrollment Form'!$B321=\"Subscriber\",'Enrollment Form'!$CX321=\"Yes\"),\"-\",\"Y\")))))","v":""},{"$f":"IF('Enrollment Form'!AH321=\"\",\"\",IF(ISERROR(SEARCH(\".\",'Enrollment Form'!AH321,SEARCH(\"@\",'Enrollment Form'!AH321))),\"N\",\"Y\"))","v":""},{"$f":"IF(OR($B314=\"N\",'Enrollment Form'!$G321=\"\"),\"\",IF('Enrollment Form'!$B321<>\"Subscriber\",\"-\",IF(COUNTIF('Enrollment Form'!$AV321:$AW321,\"Yes\")=2,\"N\",\"Y\")))","v":""},{"$f":"IF(OR('Enrollment Form'!$CJ321=\"\",'Enrollment Form'!$CJ321=\"No\"),\"-\",IF(AND('Enrollment Form'!$CJ321=\"Yes\",'Enrollment Form'!$CK321=\"\"),\"N\",\"Y\"))","v":"-"},{"$f":"IF(OR('Enrollment Form'!$CL321=\"\",'Enrollment Form'!$CL321=\"No\"),\"-\",IF(AND('Enrollment Form'!$CL321=\"Yes\",'Enrollment Form'!$CM321=\"\"),\"N\",\"Y\"))","v":"-"},{"$f":"IF(OR('Enrollment Form'!$CN321=\"\",'Enrollment Form'!$CN321=\"No\"),\"-\",IF(AND('Enrollment Form'!$CN321=\"Yes\",'Enrollment Form'!$CO321=\"\"),\"N\",\"Y\"))","v":"-"},{"$f":"IF(OR('Enrollment Form'!$CN321=\"\",'Enrollment Form'!$CN321=\"No\"),\"-\",IF(AND('Enrollment Form'!$CN321=\"Yes\",'Enrollment Form'!$CP321=\"\"),\"N\",\"Y\"))","v":"-"},{"$f":"IF('Enrollment Form'!B321<>\"Subscriber\",\"-\",IF(AND('Enrollment Form'!B321=\"Subscriber\",'Enrollment Form'!C321=\"Enroll\",'Enrollment Form'!AA321=\"\"),\"N\",\"Y\"))","v":"-"},{"$f":"IF(OR('Enrollment Form'!B321=\"Subscriber\",'Enrollment Form'!B321=\"\"),\"-\",IF('Enrollment Form'!BP321=\"\",\"N\",\"Y\"))","v":"-"},{"$f":"IF('Enrollment Form'!B321<>\"Subscriber\",\"-\",IF(AND('Enrollment Form'!B321=\"Subscriber\",'Enrollment Form'!G321=\"\"),\"N\",\"Y\"))","v":"-"},{"$f":"IF('Enrollment Form'!A321=\"\",\"\",IF('Enrollment Form'!B321=\"Subscriber\",\"-\",IF(AND('Enrollment Form'!B321<>\"Subscriber\",'Enrollment Form'!G321='Enrollment Form'!H321),\"N\",\"Y\")))","v":""},0]
[322,{"$f":"IF('Enrollment Form'!$A322<>\"\",\"Y\",\"N\")","v":"N"},{"$f":"IF(AND('Enrollment Form'!$B322=\"\",'Enrollment Form'!$C322<>\"\"),\"N\",IF($B315=\"N\",\"\",\"Y\"))","v":""},{"$f":"IF(OR($B315=\"N\",'Enrollment Form'!G322=\"\"),\"\",IF('Enrollment Form'!$B322<>\"Subscriber\",\"\",IF('Enrollment Form'!$G322='Enrollment Form'!$H322,\"Y\",\"N\")))","v":""},{"$f":"IF($B315=\"N\",\"\",IF(AND(COUNTIFS('Enrollment Form'!$H$11:$H$1000,'Enrollment Form'!$H322,'Enrollment Form'!$B$11:$B$1000,'Enrollment Form'!$B322)>1,'Enrollment Form'!$H322<>\"\"),\"N\",\"Y\"))","v":""},{"$f":"IF($B315=\"N\",\"\",IF(LEN('Enrollment Form'!$Y322)=0,\"\",IF(LEN('Enrollment Form'!$Y322)<>5,\"N\",\"Y\")))","v":""},{"$f":"IF($B315=\"N\",\"\",IF(LEN('Enrollment Form'!$AD322=0),\"\",IF(LEN('Enrollment Form'!$AD322)<>5,\"N\",\"Y\")))","v":""},{"$f":"IF($B315=\"N\",\"\",IF(LEN('Enrollment Form'!$BS322=0),\"\",IF(LEN('Enrollment Form'!$BS322)<>5,\"N\",\"Y\")))","v":""},{"$f":"IF($B315=\"N\",\"\",IF(LEN('Enrollment Form'!$AE322)=0,\"\",IF(LEN('Enrollment Form'!$AE322)<>10,\"N\",\"Y\")))","v":""},{"$f":"IF($B315=\"N\",\"\",IF(LEN('Enrollment Form'!$AF322)=0,\"\",IF(LEN('Enrollment Form'!$AF322)<>10,\"N\",\"Y\")))","v":""},{"$f":"IF('Enrollment Form'!$O322<>\"Graded\",\"-\",IF(AND('Enrollment Form'!$O322=\"Graded\",'Enrollment Form'!$AR322<>\"\"),\"Y\",\"N\"))","v":"-"},{"$f":"IF($B315=\"N\",\"\",IF(OR('Enrollment Form'!$B322<>\"Subscriber\",'Enrollment Form'!$C322=\"ROC\"),\"-\",IF(AND('Enrollment Form'!$B322=\"Subscriber\",'Enrollment Form'!$C322=\"Enroll\",'Enrollment Form'!$AJ322<>\"\"),\"Y\",\"N\")))","v":""},{"$f":"IF($B315=\"N\",\"\",IF(OR('Enrollment Form'!$B322<>\"Subscriber\",'Enrollment Form'!$C322=\"ROC\"),\"-\",IF(AND('Enrollment Form'!$B322=\"Subscriber\",'Enrollment Form'!$C322=\"Enroll\",'Enrollment Form'!$AK322<>\"\"),\"Y\",\"N\")))","v":""},{"$f":"IF($B315=\"N\",\"\",IF(OR('Enrollment Form'!$B322<>\"Subscriber\",'Enrollment Form'!$C322=\"ROC\"),\"-\",IF(AND('Enrollment Form'!$B322=\"Subscriber\",'Enrollment Form'!$C322=\"Enroll\",'Enrollment Form'!$AL322<>\"\"),\"Y\",\"N\")))","v":""},{"$f":"IF($B315=\"N\",\"\",IF(OR('Enrollment Form'!$B322<>\"Subscriber\",'Enrollment Form'!$C322=\"ROC\"),\"-\",IF(AND('Enrollment Form'!$B322=\"Subscriber\",'Enrollment Form'!$C322=\"Enroll\",'Enrollment Form'!$AP322<>\"\"),\"Y\",\"N\")))","v":""},{"$f":"IF($B315=\"N\",\"\",IF(OR('Enrollment Form'!$B322<>\"Subscriber\",'Enrollment Form'!$C322=\"ROC\"),\"-\",IF(AND('Enrollment Form'!$B322=\"Subscriber\",'Enrollment Form'!$C322=\"Enroll\",'Enrollment Form'!$AQ322<>\"\"),\"Y\",\"N\")))","v":""},{"$f":"IF($B315=\"N\",\"\",IF(OR('Enrollment Form'!$B322<>\"Subscriber\",'Enrollment Form'!$C322=\"ROC\"),\"-\",IF(AND('Enrollment Form'!$B322=\"Subscriber\",'Enrollment Form'!$C322=\"Enroll\",'Enrollment Form'!$AS322<>\"\"),\"Y\",\"N\")))","v":""},{"$f":"IF($B315=\"N\",\"\",IF($Q315=\"-\",\"-\",IF(AND($Q315=\"Y\",'Enrollment Form'!$AS322=\"No\"),\"-\",IF(AND($Q315=\"Y\",'Enrollment Form'!$AS322=\"Yes\",'Enrollment Form'!$AT322<>\"\"),\"Y\",\"N\"))))","v":""},{"$f":"IF($B315=\"N\",\"\",IF(OR('Enrollment Form'!$B322<>\"Subscriber\",'Enrollment Form'!$C322=\"ROC\"),\"-\",IF(AND('Enrollment Form'!$B322=\"Subscriber\",'Enrollment Form'!$C322=\"Enroll\",'Enrollment Form'!$CV322<>\"\"),\"Y\",\"N\")))","v":""},{"$f":"IF($B315=\"N\",\"\",IF($S315=\"-\",\"-\",IF(AND($S315=\"Y\",'Enrollment Form'!$CV322=\"No\"),\"-\",IF(AND($S315=\"Y\",'Enrollment Form'!$CV322=\"Yes\",'Enrollment Form'!$CW322<>\"\"),\"Y\",\"N\"))))","v":""},{"$f":"IF(OR('Enrollment Form'!$AY322=\"Yes\",'Enrollment Form'!$AY322=\"\"),\"-\",IF(OR(AND('Enrollment Form'!$AY322=\"No\",ISERROR(FIND(\"HMO\",VLOOKUP('Enrollment Form'!G322,'Enrollment Form'!H$11:J$1000,3,FALSE),1))=FALSE,COUNTA('Enrollment Form'!$AZ322:$BC322)=4),AND('Enrollment Form'!$AY322=\"No\",ISERROR(FIND(\"HMO\",VLOOKUP('Enrollment Form'!G322,'Enrollment Form'!H$11:J$1000,3,FALSE),1))=FALSE,COUNTA('Enrollment Form'!$BT322:$BW322)=4)),\"Y\",\"N\"))","v":"-"},{"$f":"IF($B315=\"N\",\"\",IF('Enrollment Form'!$B322=\"Subscriber\",\"-\",IF(COUNTA('Enrollment Form'!$BL322,'Enrollment Form'!$BN322)=2,\"Y\",\"N\")))","v":""},{"$f":"IF($B315=\"N\",\"\",IF(OR('Enrollment Form'!$AX322=\"\",'Enrollment Form'!$AX322=\"No\"),\"-\",IF(AND('Enrollment Form'!$AX322=\"Yes\",COUNTA('Enrollment Form'!$CR322)=1),\"Y\",\"N\")))","v":""},{"$f":"IF(OR('Enrollment Form'!$CR322=\"\",'Enrollment Form'!$CR322=\"No\"),\"-\",IF(COUNTA('Enrollment Form'!$CT322:$CU322)=2,\"Y\",\"N\"))","v":"-"},{"$f":"IF($B315=\"N\",\"\",IF(COUNTIF('Enrollment Form'!$DG322:$DP322,\"Other\")=COUNTA('Enrollment Form'!$DK322,'Enrollment Form'!$DH322,'Enrollment Form'!$DN322,'Enrollment Form'!$DQ322),\"Y\",\"N\"))","v":""},{"$f":"IF($B315=\"N\",\"\",IF(OR('Enrollment Form'!B322<>\"Subscriber\",'Enrollment Form'!C322=\"ROC\",COUNTIF('Enrollment Form'!AV322:AW322,\"Yes\")>=1),\"-\",IF(AND('Enrollment Form'!C322=\"Enroll\",COUNTIF('Enrollment Form'!AV322:AW322,\"No\")=2,'Enrollment Form'!AX322=\"\"),\"N\",\"Y\")))","v":""},{"$f":"IF(OR(B315=\"N\",'Enrollment Form'!B322<>\"Subscriber\",'Enrollment Form'!C322=\"ROC\",'Enrollment Form'!O322<>\"Multiple of Salary\"),\"-\",IF(COUNTA('Enrollment Form'!T322:U322)<2,\"N\",\"Y\"))","v":"-"},{"$f":"IF(B315=\"N\",\"\",IF(OR('Enrollment Form'!C322=\"ROC\",'Enrollment Form'!B322<>\"Subscriber\",'Enrollment Form'!O322=\"Waive\",'Enrollment Form'!O322=\"\"),\"-\",IF('Enrollment Form'!P322=\"\",\"N\",\"Y\")))","v":""},{"$f":"IF($B315=\"N\",\"\",IF(AND('Enrollment Form'!$C322=\"ROC\",'Enrollment Form'!$DR322<>\"\"),\"Y\",IF(AND('Enrollment Form'!$C322=\"ROC\",'Enrollment Form'!$DR322=\"\"),\"N\",IF(AND('Enrollment Form'!$C322=\"Enroll\",'Enrollment Form'!$B322=\"Subscriber\",'Enrollment Form'!$CX322=\"No\",'Enrollment Form'!$DR322=\"\"),\"N\",IF(AND('Enrollment Form'!$C322=\"Enroll\",'Enrollment Form'!$B322=\"Subscriber\",'Enrollment Form'!$CX322=\"Yes\"),\"-\",\"Y\")))))","v":""},{"$f":"IF($B315=\"N\",\"\",IF(AND('Enrollment Form'!$C322=\"ROC\",'Enrollment Form'!$DS322<>\"\"),\"Y\",IF(AND('Enrollment Form'!$C322=\"ROC\",'Enrollment Form'!$DS322=\"\"),\"N\",IF(AND('Enrollment Form'!$C322=\"Enroll\",'Enrollment Form'!$B322=\"Subscriber\",'Enrollment Form'!$CX322=\"No\",'Enrollment Form'!$DS322=\"\"),\"N\",IF(AND('Enrollment Form'!$C322=\"Enroll\",'Enrollment Form'!$B322=\"Subscriber\",'Enrollment Form'!$CX322=\"Yes\"),\"-\",\"Y\")))))","v":""},{"$f":"IF('Enrollment Form'!AH322=\"\",\"\",IF(ISERROR(SEARCH(\".\",'Enrollment Form'!AH322,SEARCH(\"@\",'Enrollment Form'!AH322))),\"N\",\"Y\"))","v":""},{"$f":"IF(OR($B315=\"N\",'Enrollment Form'!$G322=\"\"),\"\",IF('Enrollment Form'!$B322<>\"Subscriber\",\"-\",IF(COUNTIF('Enrollment Form'!$AV322:$AW322,\"Yes\")=2,\"N\",\"Y\")))","v":""},{"$f":"IF(OR('Enrollment Form'!$CJ322=\"\",'Enrollment Form'!$CJ322=\"No\"),\"-\",IF(AND('Enrollment Form'!$CJ322=\"Yes\",'Enrollment Form'!$CK322=\"\"),\"N\",\"Y\"))","v":"-"},{"$f":"IF(OR('Enrollment Form'!$CL322=\"\",'Enrollment Form'!$CL322=\"No\"),\"-\",IF(AND('Enrollment Form'!$CL322=\"Yes\",'Enrollment Form'!$CM322=\"\"),\"N\",\"Y\"))","v":"-"},{"$f":"IF(OR('Enrollment Form'!$CN322=\"\",'Enrollment Form'!$CN322=\"No\"),\"-\",IF(AND('Enrollment Form'!$CN322=\"Yes\",'Enrollment Form'!$CO322=\"\"),\"N\",\"Y\"))","v":"-"},{"$f":"IF(OR('Enrollment Form'!$CN322=\"\",'Enrollment Form'!$CN322=\"No\"),\"-\",IF(AND('Enrollment Form'!$CN322=\"Yes\",'Enrollment Form'!$CP322=\"\"),\"N\",\"Y\"))","v":"-"},{"$f":"IF('Enrollment Form'!B322<>\"Subscriber\",\"-\",IF(AND('Enrollment Form'!B322=\"Subscriber\",'Enrollment Form'!C322=\"Enroll\",'Enrollment Form'!AA322=\"\"),\"N\",\"Y\"))","v":"-"},{"$f":"IF(OR('Enrollment Form'!B322=\"Subscriber\",'Enrollment Form'!B322=\"\"),\"-\",IF('Enrollment Form'!BP322=\"\",\"N\",\"Y\"))","v":"-"},{"$f":"IF('Enrollment Form'!B322<>\"Subscriber\",\"-\",IF(AND('Enrollment Form'!B322=\"Subscriber\",'Enrollment Form'!G322=\"\"),\"N\",\"Y\"))","v":"-"},{"$f":"IF('Enrollment Form'!A322=\"\",\"\",IF('Enrollment Form'!B322=\"Subscriber\",\"-\",IF(AND('Enrollment Form'!B322<>\"Subscriber\",'Enrollment Form'!G322='Enrollment Form'!H322),\"N\",\"Y\")))","v":""},0]
[323,{"$f":"IF('Enrollment Form'!$A323<>\"\",\"Y\",\"N\")","v":"N"},{"$f":"IF(AND('Enrollment Form'!$B323=\"\",'Enrollment Form'!$C323<>\"\"),\"N\",IF($B316=\"N\",\"\",\"Y\"))","v":""},{"$f":"IF(OR($B316=\"N\",'Enrollment Form'!G323=\"\"),\"\",IF('Enrollment Form'!$B323<>\"Subscriber\",\"\",IF('Enrollment Form'!$G323='Enrollment Form'!$H323,\"Y\",\"N\")))","v":""},{"$f":"IF($B316=\"N\",\"\",IF(AND(COUNTIFS('Enrollment Form'!$H$11:$H$1000,'Enrollment Form'!$H323,'Enrollment Form'!$B$11:$B$1000,'Enrollment Form'!$B323)>1,'Enrollment Form'!$H323<>\"\"),\"N\",\"Y\"))","v":""},{"$f":"IF($B316=\"N\",\"\",IF(LEN('Enrollment Form'!$Y323)=0,\"\",IF(LEN('Enrollment Form'!$Y323)<>5,\"N\",\"Y\")))","v":""},{"$f":"IF($B316=\"N\",\"\",IF(LEN('Enrollment Form'!$AD323=0),\"\",IF(LEN('Enrollment Form'!$AD323)<>5,\"N\",\"Y\")))","v":""},{"$f":"IF($B316=\"N\",\"\",IF(LEN('Enrollment Form'!$BS323=0),\"\",IF(LEN('Enrollment Form'!$BS323)<>5,\"N\",\"Y\")))","v":""},{"$f":"IF($B316=\"N\",\"\",IF(LEN('Enrollment Form'!$AE323)=0,\"\",IF(LEN('Enrollment Form'!$AE323)<>10,\"N\",\"Y\")))","v":""},{"$f":"IF($B316=\"N\",\"\",IF(LEN('Enrollment Form'!$AF323)=0,\"\",IF(LEN('Enrollment Form'!$AF323)<>10,\"N\",\"Y\")))","v":""},{"$f":"IF('Enrollment Form'!$O323<>\"Graded\",\"-\",IF(AND('Enrollment Form'!$O323=\"Graded\",'Enrollment Form'!$AR323<>\"\"),\"Y\",\"N\"))","v":"-"},{"$f":"IF($B316=\"N\",\"\",IF(OR('Enrollment Form'!$B323<>\"Subscriber\",'Enrollment Form'!$C323=\"ROC\"),\"-\",IF(AND('Enrollment Form'!$B323=\"Subscriber\",'Enrollment Form'!$C323=\"Enroll\",'Enrollment Form'!$AJ323<>\"\"),\"Y\",\"N\")))","v":""},{"$f":"IF($B316=\"N\",\"\",IF(OR('Enrollment Form'!$B323<>\"Subscriber\",'Enrollment Form'!$C323=\"ROC\"),\"-\",IF(AND('Enrollment Form'!$B323=\"Subscriber\",'Enrollment Form'!$C323=\"Enroll\",'Enrollment Form'!$AK323<>\"\"),\"Y\",\"N\")))","v":""},{"$f":"IF($B316=\"N\",\"\",IF(OR('Enrollment Form'!$B323<>\"Subscriber\",'Enrollment Form'!$C323=\"ROC\"),\"-\",IF(AND('Enrollment Form'!$B323=\"Subscriber\",'Enrollment Form'!$C323=\"Enroll\",'Enrollment Form'!$AL323<>\"\"),\"Y\",\"N\")))","v":""},{"$f":"IF($B316=\"N\",\"\",IF(OR('Enrollment Form'!$B323<>\"Subscriber\",'Enrollment Form'!$C323=\"ROC\"),\"-\",IF(AND('Enrollment Form'!$B323=\"Subscriber\",'Enrollment Form'!$C323=\"Enroll\",'Enrollment Form'!$AP323<>\"\"),\"Y\",\"N\")))","v":""},{"$f":"IF($B316=\"N\",\"\",IF(OR('Enrollment Form'!$B323<>\"Subscriber\",'Enrollment Form'!$C323=\"ROC\"),\"-\",IF(AND('Enrollment Form'!$B323=\"Subscriber\",'Enrollment Form'!$C323=\"Enroll\",'Enrollment Form'!$AQ323<>\"\"),\"Y\",\"N\")))","v":""},{"$f":"IF($B316=\"N\",\"\",IF(OR('Enrollment Form'!$B323<>\"Subscriber\",'Enrollment Form'!$C323=\"ROC\"),\"-\",IF(AND('Enrollment Form'!$B323=\"Subscriber\",'Enrollment Form'!$C323=\"Enroll\",'Enrollment Form'!$AS323<>\"\"),\"Y\",\"N\")))","v":""},{"$f":"IF($B316=\"N\",\"\",IF($Q316=\"-\",\"-\",IF(AND($Q316=\"Y\",'Enrollment Form'!$AS323=\"No\"),\"-\",IF(AND($Q316=\"Y\",'Enrollment Form'!$AS323=\"Yes\",'Enrollment Form'!$AT323<>\"\"),\"Y\",\"N\"))))","v":""},{"$f":"IF($B316=\"N\",\"\",IF(OR('Enrollment Form'!$B323<>\"Subscriber\",'Enrollment Form'!$C323=\"ROC\"),\"-\",IF(AND('Enrollment Form'!$B323=\"Subscriber\",'Enrollment Form'!$C323=\"Enroll\",'Enrollment Form'!$CV323<>\"\"),\"Y\",\"N\")))","v":""},{"$f":"IF($B316=\"N\",\"\",IF($S316=\"-\",\"-\",IF(AND($S316=\"Y\",'Enrollment Form'!$CV323=\"No\"),\"-\",IF(AND($S316=\"Y\",'Enrollment Form'!$CV323=\"Yes\",'Enrollment Form'!$CW323<>\"\"),\"Y\",\"N\"))))","v":""},{"$f":"IF(OR('Enrollment Form'!$AY323=\"Yes\",'Enrollment Form'!$AY323=\"\"),\"-\",IF(OR(AND('Enrollment Form'!$AY323=\"No\",ISERROR(FIND(\"HMO\",VLOOKUP('Enrollment Form'!G323,'Enrollment Form'!H$11:J$1000,3,FALSE),1))=FALSE,COUNTA('Enrollment Form'!$AZ323:$BC323)=4),AND('Enrollment Form'!$AY323=\"No\",ISERROR(FIND(\"HMO\",VLOOKUP('Enrollment Form'!G323,'Enrollment Form'!H$11:J$1000,3,FALSE),1))=FALSE,COUNTA('Enrollment Form'!$BT323:$BW323)=4)),\"Y\",\"N\"))","v":"-"},{"$f":"IF($B316=\"N\",\"\",IF('Enrollment Form'!$B323=\"Subscriber\",\"-\",IF(COUNTA('Enrollment Form'!$BL323,'Enrollment Form'!$BN323)=2,\"Y\",\"N\")))","v":""},{"$f":"IF($B316=\"N\",\"\",IF(OR('Enrollment Form'!$AX323=\"\",'Enrollment Form'!$AX323=\"No\"),\"-\",IF(AND('Enrollment Form'!$AX323=\"Yes\",COUNTA('Enrollment Form'!$CR323)=1),\"Y\",\"N\")))","v":""},{"$f":"IF(OR('Enrollment Form'!$CR323=\"\",'Enrollment Form'!$CR323=\"No\"),\"-\",IF(COUNTA('Enrollment Form'!$CT323:$CU323)=2,\"Y\",\"N\"))","v":"-"},{"$f":"IF($B316=\"N\",\"\",IF(COUNTIF('Enrollment Form'!$DG323:$DP323,\"Other\")=COUNTA('Enrollment Form'!$DK323,'Enrollment Form'!$DH323,'Enrollment Form'!$DN323,'Enrollment Form'!$DQ323),\"Y\",\"N\"))","v":""},{"$f":"IF($B316=\"N\",\"\",IF(OR('Enrollment Form'!B323<>\"Subscriber\",'Enrollment Form'!C323=\"ROC\",COUNTIF('Enrollment Form'!AV323:AW323,\"Yes\")>=1),\"-\",IF(AND('Enrollment Form'!C323=\"Enroll\",COUNTIF('Enrollment Form'!AV323:AW323,\"No\")=2,'Enrollment Form'!AX323=\"\"),\"N\",\"Y\")))","v":""},{"$f":"IF(OR(B316=\"N\",'Enrollment Form'!B323<>\"Subscriber\",'Enrollment Form'!C323=\"ROC\",'Enrollment Form'!O323<>\"Multiple of Salary\"),\"-\",IF(COUNTA('Enrollment Form'!T323:U323)<2,\"N\",\"Y\"))","v":"-"},{"$f":"IF(B316=\"N\",\"\",IF(OR('Enrollment Form'!C323=\"ROC\",'Enrollment Form'!B323<>\"Subscriber\",'Enrollment Form'!O323=\"Waive\",'Enrollment Form'!O323=\"\"),\"-\",IF('Enrollment Form'!P323=\"\",\"N\",\"Y\")))","v":""},{"$f":"IF($B316=\"N\",\"\",IF(AND('Enrollment Form'!$C323=\"ROC\",'Enrollment Form'!$DR323<>\"\"),\"Y\",IF(AND('Enrollment Form'!$C323=\"ROC\",'Enrollment Form'!$DR323=\"\"),\"N\",IF(AND('Enrollment Form'!$C323=\"Enroll\",'Enrollment Form'!$B323=\"Subscriber\",'Enrollment Form'!$CX323=\"No\",'Enrollment Form'!$DR323=\"\"),\"N\",IF(AND('Enrollment Form'!$C323=\"Enroll\",'Enrollment Form'!$B323=\"Subscriber\",'Enrollment Form'!$CX323=\"Yes\"),\"-\",\"Y\")))))","v":""},{"$f":"IF($B316=\"N\",\"\",IF(AND('Enrollment Form'!$C323=\"ROC\",'Enrollment Form'!$DS323<>\"\"),\"Y\",IF(AND('Enrollment Form'!$C323=\"ROC\",'Enrollment Form'!$DS323=\"\"),\"N\",IF(AND('Enrollment Form'!$C323=\"Enroll\",'Enrollment Form'!$B323=\"Subscriber\",'Enrollment Form'!$CX323=\"No\",'Enrollment Form'!$DS323=\"\"),\"N\",IF(AND('Enrollment Form'!$C323=\"Enroll\",'Enrollment Form'!$B323=\"Subscriber\",'Enrollment Form'!$CX323=\"Yes\"),\"-\",\"Y\")))))","v":""},{"$f":"IF('Enrollment Form'!AH323=\"\",\"\",IF(ISERROR(SEARCH(\".\",'Enrollment Form'!AH323,SEARCH(\"@\",'Enrollment Form'!AH323))),\"N\",\"Y\"))","v":""},{"$f":"IF(OR($B316=\"N\",'Enrollment Form'!$G323=\"\"),\"\",IF('Enrollment Form'!$B323<>\"Subscriber\",\"-\",IF(COUNTIF('Enrollment Form'!$AV323:$AW323,\"Yes\")=2,\"N\",\"Y\")))","v":""},{"$f":"IF(OR('Enrollment Form'!$CJ323=\"\",'Enrollment Form'!$CJ323=\"No\"),\"-\",IF(AND('Enrollment Form'!$CJ323=\"Yes\",'Enrollment Form'!$CK323=\"\"),\"N\",\"Y\"))","v":"-"},{"$f":"IF(OR('Enrollment Form'!$CL323=\"\",'Enrollment Form'!$CL323=\"No\"),\"-\",IF(AND('Enrollment Form'!$CL323=\"Yes\",'Enrollment Form'!$CM323=\"\"),\"N\",\"Y\"))","v":"-"},{"$f":"IF(OR('Enrollment Form'!$CN323=\"\",'Enrollment Form'!$CN323=\"No\"),\"-\",IF(AND('Enrollment Form'!$CN323=\"Yes\",'Enrollment Form'!$CO323=\"\"),\"N\",\"Y\"))","v":"-"},{"$f":"IF(OR('Enrollment Form'!$CN323=\"\",'Enrollment Form'!$CN323=\"No\"),\"-\",IF(AND('Enrollment Form'!$CN323=\"Yes\",'Enrollment Form'!$CP323=\"\"),\"N\",\"Y\"))","v":"-"},{"$f":"IF('Enrollment Form'!B323<>\"Subscriber\",\"-\",IF(AND('Enrollment Form'!B323=\"Subscriber\",'Enrollment Form'!C323=\"Enroll\",'Enrollment Form'!AA323=\"\"),\"N\",\"Y\"))","v":"-"},{"$f":"IF(OR('Enrollment Form'!B323=\"Subscriber\",'Enrollment Form'!B323=\"\"),\"-\",IF('Enrollment Form'!BP323=\"\",\"N\",\"Y\"))","v":"-"},{"$f":"IF('Enrollment Form'!B323<>\"Subscriber\",\"-\",IF(AND('Enrollment Form'!B323=\"Subscriber\",'Enrollment Form'!G323=\"\"),\"N\",\"Y\"))","v":"-"},{"$f":"IF('Enrollment Form'!A323=\"\",\"\",IF('Enrollment Form'!B323=\"Subscriber\",\"-\",IF(AND('Enrollment Form'!B323<>\"Subscriber\",'Enrollment Form'!G323='Enrollment Form'!H323),\"N\",\"Y\")))","v":""},0]
[324,{"$f":"IF('Enrollment Form'!$A324<>\"\",\"Y\",\"N\")","v":"N"},{"$f":"IF(AND('Enrollment Form'!$B324=\"\",'Enrollment Form'!$C324<>\"\"),\"N\",IF($B317=\"N\",\"\",\"Y\"))","v":""},{"$f":"IF(OR($B317=\"N\",'Enrollment Form'!G324=\"\"),\"\",IF('Enrollment Form'!$B324<>\"Subscriber\",\"\",IF('Enrollment Form'!$G324='Enrollment Form'!$H324,\"Y\",\"N\")))","v":""},{"$f":"IF($B317=\"N\",\"\",IF(AND(COUNTIFS('Enrollment Form'!$H$11:$H$1000,'Enrollment Form'!$H324,'Enrollment Form'!$B$11:$B$1000,'Enrollment Form'!$B324)>1,'Enrollment Form'!$H324<>\"\"),\"N\",\"Y\"))","v":""},{"$f":"IF($B317=\"N\",\"\",IF(LEN('Enrollment Form'!$Y324)=0,\"\",IF(LEN('Enrollment Form'!$Y324)<>5,\"N\",\"Y\")))","v":""},{"$f":"IF($B317=\"N\",\"\",IF(LEN('Enrollment Form'!$AD324=0),\"\",IF(LEN('Enrollment Form'!$AD324)<>5,\"N\",\"Y\")))","v":""},{"$f":"IF($B317=\"N\",\"\",IF(LEN('Enrollment Form'!$BS324=0),\"\",IF(LEN('Enrollment Form'!$BS324)<>5,\"N\",\"Y\")))","v":""},{"$f":"IF($B317=\"N\",\"\",IF(LEN('Enrollment Form'!$AE324)=0,\"\",IF(LEN('Enrollment Form'!$AE324)<>10,\"N\",\"Y\")))","v":""},{"$f":"IF($B317=\"N\",\"\",IF(LEN('Enrollment Form'!$AF324)=0,\"\",IF(LEN('Enrollment Form'!$AF324)<>10,\"N\",\"Y\")))","v":""},{"$f":"IF('Enrollment Form'!$O324<>\"Graded\",\"-\",IF(AND('Enrollment Form'!$O324=\"Graded\",'Enrollment Form'!$AR324<>\"\"),\"Y\",\"N\"))","v":"-"},{"$f":"IF($B317=\"N\",\"\",IF(OR('Enrollment Form'!$B324<>\"Subscriber\",'Enrollment Form'!$C324=\"ROC\"),\"-\",IF(AND('Enrollment Form'!$B324=\"Subscriber\",'Enrollment Form'!$C324=\"Enroll\",'Enrollment Form'!$AJ324<>\"\"),\"Y\",\"N\")))","v":""},{"$f":"IF($B317=\"N\",\"\",IF(OR('Enrollment Form'!$B324<>\"Subscriber\",'Enrollment Form'!$C324=\"ROC\"),\"-\",IF(AND('Enrollment Form'!$B324=\"Subscriber\",'Enrollment Form'!$C324=\"Enroll\",'Enrollment Form'!$AK324<>\"\"),\"Y\",\"N\")))","v":""},{"$f":"IF($B317=\"N\",\"\",IF(OR('Enrollment Form'!$B324<>\"Subscriber\",'Enrollment Form'!$C324=\"ROC\"),\"-\",IF(AND('Enrollment Form'!$B324=\"Subscriber\",'Enrollment Form'!$C324=\"Enroll\",'Enrollment Form'!$AL324<>\"\"),\"Y\",\"N\")))","v":""},{"$f":"IF($B317=\"N\",\"\",IF(OR('Enrollment Form'!$B324<>\"Subscriber\",'Enrollment Form'!$C324=\"ROC\"),\"-\",IF(AND('Enrollment Form'!$B324=\"Subscriber\",'Enrollment Form'!$C324=\"Enroll\",'Enrollment Form'!$AP324<>\"\"),\"Y\",\"N\")))","v":""},{"$f":"IF($B317=\"N\",\"\",IF(OR('Enrollment Form'!$B324<>\"Subscriber\",'Enrollment Form'!$C324=\"ROC\"),\"-\",IF(AND('Enrollment Form'!$B324=\"Subscriber\",'Enrollment Form'!$C324=\"Enroll\",'Enrollment Form'!$AQ324<>\"\"),\"Y\",\"N\")))","v":""},{"$f":"IF($B317=\"N\",\"\",IF(OR('Enrollment Form'!$B324<>\"Subscriber\",'Enrollment Form'!$C324=\"ROC\"),\"-\",IF(AND('Enrollment Form'!$B324=\"Subscriber\",'Enrollment Form'!$C324=\"Enroll\",'Enrollment Form'!$AS324<>\"\"),\"Y\",\"N\")))","v":""},{"$f":"IF($B317=\"N\",\"\",IF($Q317=\"-\",\"-\",IF(AND($Q317=\"Y\",'Enrollment Form'!$AS324=\"No\"),\"-\",IF(AND($Q317=\"Y\",'Enrollment Form'!$AS324=\"Yes\",'Enrollment Form'!$AT324<>\"\"),\"Y\",\"N\"))))","v":""},{"$f":"IF($B317=\"N\",\"\",IF(OR('Enrollment Form'!$B324<>\"Subscriber\",'Enrollment Form'!$C324=\"ROC\"),\"-\",IF(AND('Enrollment Form'!$B324=\"Subscriber\",'Enrollment Form'!$C324=\"Enroll\",'Enrollment Form'!$CV324<>\"\"),\"Y\",\"N\")))","v":""},{"$f":"IF($B317=\"N\",\"\",IF($S317=\"-\",\"-\",IF(AND($S317=\"Y\",'Enrollment Form'!$CV324=\"No\"),\"-\",IF(AND($S317=\"Y\",'Enrollment Form'!$CV324=\"Yes\",'Enrollment Form'!$CW324<>\"\"),\"Y\",\"N\"))))","v":""},{"$f":"IF(OR('Enrollment Form'!$AY324=\"Yes\",'Enrollment Form'!$AY324=\"\"),\"-\",IF(OR(AND('Enrollment Form'!$AY324=\"No\",ISERROR(FIND(\"HMO\",VLOOKUP('Enrollment Form'!G324,'Enrollment Form'!H$11:J$1000,3,FALSE),1))=FALSE,COUNTA('Enrollment Form'!$AZ324:$BC324)=4),AND('Enrollment Form'!$AY324=\"No\",ISERROR(FIND(\"HMO\",VLOOKUP('Enrollment Form'!G324,'Enrollment Form'!H$11:J$1000,3,FALSE),1))=FALSE,COUNTA('Enrollment Form'!$BT324:$BW324)=4)),\"Y\",\"N\"))","v":"-"},{"$f":"IF($B317=\"N\",\"\",IF('Enrollment Form'!$B324=\"Subscriber\",\"-\",IF(COUNTA('Enrollment Form'!$BL324,'Enrollment Form'!$BN324)=2,\"Y\",\"N\")))","v":""},{"$f":"IF($B317=\"N\",\"\",IF(OR('Enrollment Form'!$AX324=\"\",'Enrollment Form'!$AX324=\"No\"),\"-\",IF(AND('Enrollment Form'!$AX324=\"Yes\",COUNTA('Enrollment Form'!$CR324)=1),\"Y\",\"N\")))","v":""},{"$f":"IF(OR('Enrollment Form'!$CR324=\"\",'Enrollment Form'!$CR324=\"No\"),\"-\",IF(COUNTA('Enrollment Form'!$CT324:$CU324)=2,\"Y\",\"N\"))","v":"-"},{"$f":"IF($B317=\"N\",\"\",IF(COUNTIF('Enrollment Form'!$DG324:$DP324,\"Other\")=COUNTA('Enrollment Form'!$DK324,'Enrollment Form'!$DH324,'Enrollment Form'!$DN324,'Enrollment Form'!$DQ324),\"Y\",\"N\"))","v":""},{"$f":"IF($B317=\"N\",\"\",IF(OR('Enrollment Form'!B324<>\"Subscriber\",'Enrollment Form'!C324=\"ROC\",COUNTIF('Enrollment Form'!AV324:AW324,\"Yes\")>=1),\"-\",IF(AND('Enrollment Form'!C324=\"Enroll\",COUNTIF('Enrollment Form'!AV324:AW324,\"No\")=2,'Enrollment Form'!AX324=\"\"),\"N\",\"Y\")))","v":""},{"$f":"IF(OR(B317=\"N\",'Enrollment Form'!B324<>\"Subscriber\",'Enrollment Form'!C324=\"ROC\",'Enrollment Form'!O324<>\"Multiple of Salary\"),\"-\",IF(COUNTA('Enrollment Form'!T324:U324)<2,\"N\",\"Y\"))","v":"-"},{"$f":"IF(B317=\"N\",\"\",IF(OR('Enrollment Form'!C324=\"ROC\",'Enrollment Form'!B324<>\"Subscriber\",'Enrollment Form'!O324=\"Waive\",'Enrollment Form'!O324=\"\"),\"-\",IF('Enrollment Form'!P324=\"\",\"N\",\"Y\")))","v":""},{"$f":"IF($B317=\"N\",\"\",IF(AND('Enrollment Form'!$C324=\"ROC\",'Enrollment Form'!$DR324<>\"\"),\"Y\",IF(AND('Enrollment Form'!$C324=\"ROC\",'Enrollment Form'!$DR324=\"\"),\"N\",IF(AND('Enrollment Form'!$C324=\"Enroll\",'Enrollment Form'!$B324=\"Subscriber\",'Enrollment Form'!$CX324=\"No\",'Enrollment Form'!$DR324=\"\"),\"N\",IF(AND('Enrollment Form'!$C324=\"Enroll\",'Enrollment Form'!$B324=\"Subscriber\",'Enrollment Form'!$CX324=\"Yes\"),\"-\",\"Y\")))))","v":""},{"$f":"IF($B317=\"N\",\"\",IF(AND('Enrollment Form'!$C324=\"ROC\",'Enrollment Form'!$DS324<>\"\"),\"Y\",IF(AND('Enrollment Form'!$C324=\"ROC\",'Enrollment Form'!$DS324=\"\"),\"N\",IF(AND('Enrollment Form'!$C324=\"Enroll\",'Enrollment Form'!$B324=\"Subscriber\",'Enrollment Form'!$CX324=\"No\",'Enrollment Form'!$DS324=\"\"),\"N\",IF(AND('Enrollment Form'!$C324=\"Enroll\",'Enrollment Form'!$B324=\"Subscriber\",'Enrollment Form'!$CX324=\"Yes\"),\"-\",\"Y\")))))","v":""},{"$f":"IF('Enrollment Form'!AH324=\"\",\"\",IF(ISERROR(SEARCH(\".\",'Enrollment Form'!AH324,SEARCH(\"@\",'Enrollment Form'!AH324))),\"N\",\"Y\"))","v":""},{"$f":"IF(OR($B317=\"N\",'Enrollment Form'!$G324=\"\"),\"\",IF('Enrollment Form'!$B324<>\"Subscriber\",\"-\",IF(COUNTIF('Enrollment Form'!$AV324:$AW324,\"Yes\")=2,\"N\",\"Y\")))","v":""},{"$f":"IF(OR('Enrollment Form'!$CJ324=\"\",'Enrollment Form'!$CJ324=\"No\"),\"-\",IF(AND('Enrollment Form'!$CJ324=\"Yes\",'Enrollment Form'!$CK324=\"\"),\"N\",\"Y\"))","v":"-"},{"$f":"IF(OR('Enrollment Form'!$CL324=\"\",'Enrollment Form'!$CL324=\"No\"),\"-\",IF(AND('Enrollment Form'!$CL324=\"Yes\",'Enrollment Form'!$CM324=\"\"),\"N\",\"Y\"))","v":"-"},{"$f":"IF(OR('Enrollment Form'!$CN324=\"\",'Enrollment Form'!$CN324=\"No\"),\"-\",IF(AND('Enrollment Form'!$CN324=\"Yes\",'Enrollment Form'!$CO324=\"\"),\"N\",\"Y\"))","v":"-"},{"$f":"IF(OR('Enrollment Form'!$CN324=\"\",'Enrollment Form'!$CN324=\"No\"),\"-\",IF(AND('Enrollment Form'!$CN324=\"Yes\",'Enrollment Form'!$CP324=\"\"),\"N\",\"Y\"))","v":"-"},{"$f":"IF('Enrollment Form'!B324<>\"Subscriber\",\"-\",IF(AND('Enrollment Form'!B324=\"Subscriber\",'Enrollment Form'!C324=\"Enroll\",'Enrollment Form'!AA324=\"\"),\"N\",\"Y\"))","v":"-"},{"$f":"IF(OR('Enrollment Form'!B324=\"Subscriber\",'Enrollment Form'!B324=\"\"),\"-\",IF('Enrollment Form'!BP324=\"\",\"N\",\"Y\"))","v":"-"},{"$f":"IF('Enrollment Form'!B324<>\"Subscriber\",\"-\",IF(AND('Enrollment Form'!B324=\"Subscriber\",'Enrollment Form'!G324=\"\"),\"N\",\"Y\"))","v":"-"},{"$f":"IF('Enrollment Form'!A324=\"\",\"\",IF('Enrollment Form'!B324=\"Subscriber\",\"-\",IF(AND('Enrollment Form'!B324<>\"Subscriber\",'Enrollment Form'!G324='Enrollment Form'!H324),\"N\",\"Y\")))","v":""},0]
[325,{"$f":"IF('Enrollment Form'!$A325<>\"\",\"Y\",\"N\")","v":"N"},{"$f":"IF(AND('Enrollment Form'!$B325=\"\",'Enrollment Form'!$C325<>\"\"),\"N\",IF($B318=\"N\",\"\",\"Y\"))","v":""},{"$f":"IF(OR($B318=\"N\",'Enrollment Form'!G325=\"\"),\"\",IF('Enrollment Form'!$B325<>\"Subscriber\",\"\",IF('Enrollment Form'!$G325='Enrollment Form'!$H325,\"Y\",\"N\")))","v":""},{"$f":"IF($B318=\"N\",\"\",IF(AND(COUNTIFS('Enrollment Form'!$H$11:$H$1000,'Enrollment Form'!$H325,'Enrollment Form'!$B$11:$B$1000,'Enrollment Form'!$B325)>1,'Enrollment Form'!$H325<>\"\"),\"N\",\"Y\"))","v":""},{"$f":"IF($B318=\"N\",\"\",IF(LEN('Enrollment Form'!$Y325)=0,\"\",IF(LEN('Enrollment Form'!$Y325)<>5,\"N\",\"Y\")))","v":""},{"$f":"IF($B318=\"N\",\"\",IF(LEN('Enrollment Form'!$AD325=0),\"\",IF(LEN('Enrollment Form'!$AD325)<>5,\"N\",\"Y\")))","v":""},{"$f":"IF($B318=\"N\",\"\",IF(LEN('Enrollment Form'!$BS325=0),\"\",IF(LEN('Enrollment Form'!$BS325)<>5,\"N\",\"Y\")))","v":""},{"$f":"IF($B318=\"N\",\"\",IF(LEN('Enrollment Form'!$AE325)=0,\"\",IF(LEN('Enrollment Form'!$AE325)<>10,\"N\",\"Y\")))","v":""},{"$f":"IF($B318=\"N\",\"\",IF(LEN('Enrollment Form'!$AF325)=0,\"\",IF(LEN('Enrollment Form'!$AF325)<>10,\"N\",\"Y\")))","v":""},{"$f":"IF('Enrollment Form'!$O325<>\"Graded\",\"-\",IF(AND('Enrollment Form'!$O325=\"Graded\",'Enrollment Form'!$AR325<>\"\"),\"Y\",\"N\"))","v":"-"},{"$f":"IF($B318=\"N\",\"\",IF(OR('Enrollment Form'!$B325<>\"Subscriber\",'Enrollment Form'!$C325=\"ROC\"),\"-\",IF(AND('Enrollment Form'!$B325=\"Subscriber\",'Enrollment Form'!$C325=\"Enroll\",'Enrollment Form'!$AJ325<>\"\"),\"Y\",\"N\")))","v":""},{"$f":"IF($B318=\"N\",\"\",IF(OR('Enrollment Form'!$B325<>\"Subscriber\",'Enrollment Form'!$C325=\"ROC\"),\"-\",IF(AND('Enrollment Form'!$B325=\"Subscriber\",'Enrollment Form'!$C325=\"Enroll\",'Enrollment Form'!$AK325<>\"\"),\"Y\",\"N\")))","v":""},{"$f":"IF($B318=\"N\",\"\",IF(OR('Enrollment Form'!$B325<>\"Subscriber\",'Enrollment Form'!$C325=\"ROC\"),\"-\",IF(AND('Enrollment Form'!$B325=\"Subscriber\",'Enrollment Form'!$C325=\"Enroll\",'Enrollment Form'!$AL325<>\"\"),\"Y\",\"N\")))","v":""},{"$f":"IF($B318=\"N\",\"\",IF(OR('Enrollment Form'!$B325<>\"Subscriber\",'Enrollment Form'!$C325=\"ROC\"),\"-\",IF(AND('Enrollment Form'!$B325=\"Subscriber\",'Enrollment Form'!$C325=\"Enroll\",'Enrollment Form'!$AP325<>\"\"),\"Y\",\"N\")))","v":""},{"$f":"IF($B318=\"N\",\"\",IF(OR('Enrollment Form'!$B325<>\"Subscriber\",'Enrollment Form'!$C325=\"ROC\"),\"-\",IF(AND('Enrollment Form'!$B325=\"Subscriber\",'Enrollment Form'!$C325=\"Enroll\",'Enrollment Form'!$AQ325<>\"\"),\"Y\",\"N\")))","v":""},{"$f":"IF($B318=\"N\",\"\",IF(OR('Enrollment Form'!$B325<>\"Subscriber\",'Enrollment Form'!$C325=\"ROC\"),\"-\",IF(AND('Enrollment Form'!$B325=\"Subscriber\",'Enrollment Form'!$C325=\"Enroll\",'Enrollment Form'!$AS325<>\"\"),\"Y\",\"N\")))","v":""},{"$f":"IF($B318=\"N\",\"\",IF($Q318=\"-\",\"-\",IF(AND($Q318=\"Y\",'Enrollment Form'!$AS325=\"No\"),\"-\",IF(AND($Q318=\"Y\",'Enrollment Form'!$AS325=\"Yes\",'Enrollment Form'!$AT325<>\"\"),\"Y\",\"N\"))))","v":""},{"$f":"IF($B318=\"N\",\"\",IF(OR('Enrollment Form'!$B325<>\"Subscriber\",'Enrollment Form'!$C325=\"ROC\"),\"-\",IF(AND('Enrollment Form'!$B325=\"Subscriber\",'Enrollment Form'!$C325=\"Enroll\",'Enrollment Form'!$CV325<>\"\"),\"Y\",\"N\")))","v":""},{"$f":"IF($B318=\"N\",\"\",IF($S318=\"-\",\"-\",IF(AND($S318=\"Y\",'Enrollment Form'!$CV325=\"No\"),\"-\",IF(AND($S318=\"Y\",'Enrollment Form'!$CV325=\"Yes\",'Enrollment Form'!$CW325<>\"\"),\"Y\",\"N\"))))","v":""},{"$f":"IF(OR('Enrollment Form'!$AY325=\"Yes\",'Enrollment Form'!$AY325=\"\"),\"-\",IF(OR(AND('Enrollment Form'!$AY325=\"No\",ISERROR(FIND(\"HMO\",VLOOKUP('Enrollment Form'!G325,'Enrollment Form'!H$11:J$1000,3,FALSE),1))=FALSE,COUNTA('Enrollment Form'!$AZ325:$BC325)=4),AND('Enrollment Form'!$AY325=\"No\",ISERROR(FIND(\"HMO\",VLOOKUP('Enrollment Form'!G325,'Enrollment Form'!H$11:J$1000,3,FALSE),1))=FALSE,COUNTA('Enrollment Form'!$BT325:$BW325)=4)),\"Y\",\"N\"))","v":"-"},{"$f":"IF($B318=\"N\",\"\",IF('Enrollment Form'!$B325=\"Subscriber\",\"-\",IF(COUNTA('Enrollment Form'!$BL325,'Enrollment Form'!$BN325)=2,\"Y\",\"N\")))","v":""},{"$f":"IF($B318=\"N\",\"\",IF(OR('Enrollment Form'!$AX325=\"\",'Enrollment Form'!$AX325=\"No\"),\"-\",IF(AND('Enrollment Form'!$AX325=\"Yes\",COUNTA('Enrollment Form'!$CR325)=1),\"Y\",\"N\")))","v":""},{"$f":"IF(OR('Enrollment Form'!$CR325=\"\",'Enrollment Form'!$CR325=\"No\"),\"-\",IF(COUNTA('Enrollment Form'!$CT325:$CU325)=2,\"Y\",\"N\"))","v":"-"},{"$f":"IF($B318=\"N\",\"\",IF(COUNTIF('Enrollment Form'!$DG325:$DP325,\"Other\")=COUNTA('Enrollment Form'!$DK325,'Enrollment Form'!$DH325,'Enrollment Form'!$DN325,'Enrollment Form'!$DQ325),\"Y\",\"N\"))","v":""},{"$f":"IF($B318=\"N\",\"\",IF(OR('Enrollment Form'!B325<>\"Subscriber\",'Enrollment Form'!C325=\"ROC\",COUNTIF('Enrollment Form'!AV325:AW325,\"Yes\")>=1),\"-\",IF(AND('Enrollment Form'!C325=\"Enroll\",COUNTIF('Enrollment Form'!AV325:AW325,\"No\")=2,'Enrollment Form'!AX325=\"\"),\"N\",\"Y\")))","v":""},{"$f":"IF(OR(B318=\"N\",'Enrollment Form'!B325<>\"Subscriber\",'Enrollment Form'!C325=\"ROC\",'Enrollment Form'!O325<>\"Multiple of Salary\"),\"-\",IF(COUNTA('Enrollment Form'!T325:U325)<2,\"N\",\"Y\"))","v":"-"},{"$f":"IF(B318=\"N\",\"\",IF(OR('Enrollment Form'!C325=\"ROC\",'Enrollment Form'!B325<>\"Subscriber\",'Enrollment Form'!O325=\"Waive\",'Enrollment Form'!O325=\"\"),\"-\",IF('Enrollment Form'!P325=\"\",\"N\",\"Y\")))","v":""},{"$f":"IF($B318=\"N\",\"\",IF(AND('Enrollment Form'!$C325=\"ROC\",'Enrollment Form'!$DR325<>\"\"),\"Y\",IF(AND('Enrollment Form'!$C325=\"ROC\",'Enrollment Form'!$DR325=\"\"),\"N\",IF(AND('Enrollment Form'!$C325=\"Enroll\",'Enrollment Form'!$B325=\"Subscriber\",'Enrollment Form'!$CX325=\"No\",'Enrollment Form'!$DR325=\"\"),\"N\",IF(AND('Enrollment Form'!$C325=\"Enroll\",'Enrollment Form'!$B325=\"Subscriber\",'Enrollment Form'!$CX325=\"Yes\"),\"-\",\"Y\")))))","v":""},{"$f":"IF($B318=\"N\",\"\",IF(AND('Enrollment Form'!$C325=\"ROC\",'Enrollment Form'!$DS325<>\"\"),\"Y\",IF(AND('Enrollment Form'!$C325=\"ROC\",'Enrollment Form'!$DS325=\"\"),\"N\",IF(AND('Enrollment Form'!$C325=\"Enroll\",'Enrollment Form'!$B325=\"Subscriber\",'Enrollment Form'!$CX325=\"No\",'Enrollment Form'!$DS325=\"\"),\"N\",IF(AND('Enrollment Form'!$C325=\"Enroll\",'Enrollment Form'!$B325=\"Subscriber\",'Enrollment Form'!$CX325=\"Yes\"),\"-\",\"Y\")))))","v":""},{"$f":"IF('Enrollment Form'!AH325=\"\",\"\",IF(ISERROR(SEARCH(\".\",'Enrollment Form'!AH325,SEARCH(\"@\",'Enrollment Form'!AH325))),\"N\",\"Y\"))","v":""},{"$f":"IF(OR($B318=\"N\",'Enrollment Form'!$G325=\"\"),\"\",IF('Enrollment Form'!$B325<>\"Subscriber\",\"-\",IF(COUNTIF('Enrollment Form'!$AV325:$AW325,\"Yes\")=2,\"N\",\"Y\")))","v":""},{"$f":"IF(OR('Enrollment Form'!$CJ325=\"\",'Enrollment Form'!$CJ325=\"No\"),\"-\",IF(AND('Enrollment Form'!$CJ325=\"Yes\",'Enrollment Form'!$CK325=\"\"),\"N\",\"Y\"))","v":"-"},{"$f":"IF(OR('Enrollment Form'!$CL325=\"\",'Enrollment Form'!$CL325=\"No\"),\"-\",IF(AND('Enrollment Form'!$CL325=\"Yes\",'Enrollment Form'!$CM325=\"\"),\"N\",\"Y\"))","v":"-"},{"$f":"IF(OR('Enrollment Form'!$CN325=\"\",'Enrollment Form'!$CN325=\"No\"),\"-\",IF(AND('Enrollment Form'!$CN325=\"Yes\",'Enrollment Form'!$CO325=\"\"),\"N\",\"Y\"))","v":"-"},{"$f":"IF(OR('Enrollment Form'!$CN325=\"\",'Enrollment Form'!$CN325=\"No\"),\"-\",IF(AND('Enrollment Form'!$CN325=\"Yes\",'Enrollment Form'!$CP325=\"\"),\"N\",\"Y\"))","v":"-"},{"$f":"IF('Enrollment Form'!B325<>\"Subscriber\",\"-\",IF(AND('Enrollment Form'!B325=\"Subscriber\",'Enrollment Form'!C325=\"Enroll\",'Enrollment Form'!AA325=\"\"),\"N\",\"Y\"))","v":"-"},{"$f":"IF(OR('Enrollment Form'!B325=\"Subscriber\",'Enrollment Form'!B325=\"\"),\"-\",IF('Enrollment Form'!BP325=\"\",\"N\",\"Y\"))","v":"-"},{"$f":"IF('Enrollment Form'!B325<>\"Subscriber\",\"-\",IF(AND('Enrollment Form'!B325=\"Subscriber\",'Enrollment Form'!G325=\"\"),\"N\",\"Y\"))","v":"-"},{"$f":"IF('Enrollment Form'!A325=\"\",\"\",IF('Enrollment Form'!B325=\"Subscriber\",\"-\",IF(AND('Enrollment Form'!B325<>\"Subscriber\",'Enrollment Form'!G325='Enrollment Form'!H325),\"N\",\"Y\")))","v":""},0]
[326,{"$f":"IF('Enrollment Form'!$A326<>\"\",\"Y\",\"N\")","v":"N"},{"$f":"IF(AND('Enrollment Form'!$B326=\"\",'Enrollment Form'!$C326<>\"\"),\"N\",IF($B319=\"N\",\"\",\"Y\"))","v":""},{"$f":"IF(OR($B319=\"N\",'Enrollment Form'!G326=\"\"),\"\",IF('Enrollment Form'!$B326<>\"Subscriber\",\"\",IF('Enrollment Form'!$G326='Enrollment Form'!$H326,\"Y\",\"N\")))","v":""},{"$f":"IF($B319=\"N\",\"\",IF(AND(COUNTIFS('Enrollment Form'!$H$11:$H$1000,'Enrollment Form'!$H326,'Enrollment Form'!$B$11:$B$1000,'Enrollment Form'!$B326)>1,'Enrollment Form'!$H326<>\"\"),\"N\",\"Y\"))","v":""},{"$f":"IF($B319=\"N\",\"\",IF(LEN('Enrollment Form'!$Y326)=0,\"\",IF(LEN('Enrollment Form'!$Y326)<>5,\"N\",\"Y\")))","v":""},{"$f":"IF($B319=\"N\",\"\",IF(LEN('Enrollment Form'!$AD326=0),\"\",IF(LEN('Enrollment Form'!$AD326)<>5,\"N\",\"Y\")))","v":""},{"$f":"IF($B319=\"N\",\"\",IF(LEN('Enrollment Form'!$BS326=0),\"\",IF(LEN('Enrollment Form'!$BS326)<>5,\"N\",\"Y\")))","v":""},{"$f":"IF($B319=\"N\",\"\",IF(LEN('Enrollment Form'!$AE326)=0,\"\",IF(LEN('Enrollment Form'!$AE326)<>10,\"N\",\"Y\")))","v":""},{"$f":"IF($B319=\"N\",\"\",IF(LEN('Enrollment Form'!$AF326)=0,\"\",IF(LEN('Enrollment Form'!$AF326)<>10,\"N\",\"Y\")))","v":""},{"$f":"IF('Enrollment Form'!$O326<>\"Graded\",\"-\",IF(AND('Enrollment Form'!$O326=\"Graded\",'Enrollment Form'!$AR326<>\"\"),\"Y\",\"N\"))","v":"-"},{"$f":"IF($B319=\"N\",\"\",IF(OR('Enrollment Form'!$B326<>\"Subscriber\",'Enrollment Form'!$C326=\"ROC\"),\"-\",IF(AND('Enrollment Form'!$B326=\"Subscriber\",'Enrollment Form'!$C326=\"Enroll\",'Enrollment Form'!$AJ326<>\"\"),\"Y\",\"N\")))","v":""},{"$f":"IF($B319=\"N\",\"\",IF(OR('Enrollment Form'!$B326<>\"Subscriber\",'Enrollment Form'!$C326=\"ROC\"),\"-\",IF(AND('Enrollment Form'!$B326=\"Subscriber\",'Enrollment Form'!$C326=\"Enroll\",'Enrollment Form'!$AK326<>\"\"),\"Y\",\"N\")))","v":""},{"$f":"IF($B319=\"N\",\"\",IF(OR('Enrollment Form'!$B326<>\"Subscriber\",'Enrollment Form'!$C326=\"ROC\"),\"-\",IF(AND('Enrollment Form'!$B326=\"Subscriber\",'Enrollment Form'!$C326=\"Enroll\",'Enrollment Form'!$AL326<>\"\"),\"Y\",\"N\")))","v":""},{"$f":"IF($B319=\"N\",\"\",IF(OR('Enrollment Form'!$B326<>\"Subscriber\",'Enrollment Form'!$C326=\"ROC\"),\"-\",IF(AND('Enrollment Form'!$B326=\"Subscriber\",'Enrollment Form'!$C326=\"Enroll\",'Enrollment Form'!$AP326<>\"\"),\"Y\",\"N\")))","v":""},{"$f":"IF($B319=\"N\",\"\",IF(OR('Enrollment Form'!$B326<>\"Subscriber\",'Enrollment Form'!$C326=\"ROC\"),\"-\",IF(AND('Enrollment Form'!$B326=\"Subscriber\",'Enrollment Form'!$C326=\"Enroll\",'Enrollment Form'!$AQ326<>\"\"),\"Y\",\"N\")))","v":""},{"$f":"IF($B319=\"N\",\"\",IF(OR('Enrollment Form'!$B326<>\"Subscriber\",'Enrollment Form'!$C326=\"ROC\"),\"-\",IF(AND('Enrollment Form'!$B326=\"Subscriber\",'Enrollment Form'!$C326=\"Enroll\",'Enrollment Form'!$AS326<>\"\"),\"Y\",\"N\")))","v":""},{"$f":"IF($B319=\"N\",\"\",IF($Q319=\"-\",\"-\",IF(AND($Q319=\"Y\",'Enrollment Form'!$AS326=\"No\"),\"-\",IF(AND($Q319=\"Y\",'Enrollment Form'!$AS326=\"Yes\",'Enrollment Form'!$AT326<>\"\"),\"Y\",\"N\"))))","v":""},{"$f":"IF($B319=\"N\",\"\",IF(OR('Enrollment Form'!$B326<>\"Subscriber\",'Enrollment Form'!$C326=\"ROC\"),\"-\",IF(AND('Enrollment Form'!$B326=\"Subscriber\",'Enrollment Form'!$C326=\"Enroll\",'Enrollment Form'!$CV326<>\"\"),\"Y\",\"N\")))","v":""},{"$f":"IF($B319=\"N\",\"\",IF($S319=\"-\",\"-\",IF(AND($S319=\"Y\",'Enrollment Form'!$CV326=\"No\"),\"-\",IF(AND($S319=\"Y\",'Enrollment Form'!$CV326=\"Yes\",'Enrollment Form'!$CW326<>\"\"),\"Y\",\"N\"))))","v":""},{"$f":"IF(OR('Enrollment Form'!$AY326=\"Yes\",'Enrollment Form'!$AY326=\"\"),\"-\",IF(OR(AND('Enrollment Form'!$AY326=\"No\",ISERROR(FIND(\"HMO\",VLOOKUP('Enrollment Form'!G326,'Enrollment Form'!H$11:J$1000,3,FALSE),1))=FALSE,COUNTA('Enrollment Form'!$AZ326:$BC326)=4),AND('Enrollment Form'!$AY326=\"No\",ISERROR(FIND(\"HMO\",VLOOKUP('Enrollment Form'!G326,'Enrollment Form'!H$11:J$1000,3,FALSE),1))=FALSE,COUNTA('Enrollment Form'!$BT326:$BW326)=4)),\"Y\",\"N\"))","v":"-"},{"$f":"IF($B319=\"N\",\"\",IF('Enrollment Form'!$B326=\"Subscriber\",\"-\",IF(COUNTA('Enrollment Form'!$BL326,'Enrollment Form'!$BN326)=2,\"Y\",\"N\")))","v":""},{"$f":"IF($B319=\"N\",\"\",IF(OR('Enrollment Form'!$AX326=\"\",'Enrollment Form'!$AX326=\"No\"),\"-\",IF(AND('Enrollment Form'!$AX326=\"Yes\",COUNTA('Enrollment Form'!$CR326)=1),\"Y\",\"N\")))","v":""},{"$f":"IF(OR('Enrollment Form'!$CR326=\"\",'Enrollment Form'!$CR326=\"No\"),\"-\",IF(COUNTA('Enrollment Form'!$CT326:$CU326)=2,\"Y\",\"N\"))","v":"-"},{"$f":"IF($B319=\"N\",\"\",IF(COUNTIF('Enrollment Form'!$DG326:$DP326,\"Other\")=COUNTA('Enrollment Form'!$DK326,'Enrollment Form'!$DH326,'Enrollment Form'!$DN326,'Enrollment Form'!$DQ326),\"Y\",\"N\"))","v":""},{"$f":"IF($B319=\"N\",\"\",IF(OR('Enrollment Form'!B326<>\"Subscriber\",'Enrollment Form'!C326=\"ROC\",COUNTIF('Enrollment Form'!AV326:AW326,\"Yes\")>=1),\"-\",IF(AND('Enrollment Form'!C326=\"Enroll\",COUNTIF('Enrollment Form'!AV326:AW326,\"No\")=2,'Enrollment Form'!AX326=\"\"),\"N\",\"Y\")))","v":""},{"$f":"IF(OR(B319=\"N\",'Enrollment Form'!B326<>\"Subscriber\",'Enrollment Form'!C326=\"ROC\",'Enrollment Form'!O326<>\"Multiple of Salary\"),\"-\",IF(COUNTA('Enrollment Form'!T326:U326)<2,\"N\",\"Y\"))","v":"-"},{"$f":"IF(B319=\"N\",\"\",IF(OR('Enrollment Form'!C326=\"ROC\",'Enrollment Form'!B326<>\"Subscriber\",'Enrollment Form'!O326=\"Waive\",'Enrollment Form'!O326=\"\"),\"-\",IF('Enrollment Form'!P326=\"\",\"N\",\"Y\")))","v":""},{"$f":"IF($B319=\"N\",\"\",IF(AND('Enrollment Form'!$C326=\"ROC\",'Enrollment Form'!$DR326<>\"\"),\"Y\",IF(AND('Enrollment Form'!$C326=\"ROC\",'Enrollment Form'!$DR326=\"\"),\"N\",IF(AND('Enrollment Form'!$C326=\"Enroll\",'Enrollment Form'!$B326=\"Subscriber\",'Enrollment Form'!$CX326=\"No\",'Enrollment Form'!$DR326=\"\"),\"N\",IF(AND('Enrollment Form'!$C326=\"Enroll\",'Enrollment Form'!$B326=\"Subscriber\",'Enrollment Form'!$CX326=\"Yes\"),\"-\",\"Y\")))))","v":""},{"$f":"IF($B319=\"N\",\"\",IF(AND('Enrollment Form'!$C326=\"ROC\",'Enrollment Form'!$DS326<>\"\"),\"Y\",IF(AND('Enrollment Form'!$C326=\"ROC\",'Enrollment Form'!$DS326=\"\"),\"N\",IF(AND('Enrollment Form'!$C326=\"Enroll\",'Enrollment Form'!$B326=\"Subscriber\",'Enrollment Form'!$CX326=\"No\",'Enrollment Form'!$DS326=\"\"),\"N\",IF(AND('Enrollment Form'!$C326=\"Enroll\",'Enrollment Form'!$B326=\"Subscriber\",'Enrollment Form'!$CX326=\"Yes\"),\"-\",\"Y\")))))","v":""},{"$f":"IF('Enrollment Form'!AH326=\"\",\"\",IF(ISERROR(SEARCH(\".\",'Enrollment Form'!AH326,SEARCH(\"@\",'Enrollment Form'!AH326))),\"N\",\"Y\"))","v":""},{"$f":"IF(OR($B319=\"N\",'Enrollment Form'!$G326=\"\"),\"\",IF('Enrollment Form'!$B326<>\"Subscriber\",\"-\",IF(COUNTIF('Enrollment Form'!$AV326:$AW326,\"Yes\")=2,\"N\",\"Y\")))","v":""},{"$f":"IF(OR('Enrollment Form'!$CJ326=\"\",'Enrollment Form'!$CJ326=\"No\"),\"-\",IF(AND('Enrollment Form'!$CJ326=\"Yes\",'Enrollment Form'!$CK326=\"\"),\"N\",\"Y\"))","v":"-"},{"$f":"IF(OR('Enrollment Form'!$CL326=\"\",'Enrollment Form'!$CL326=\"No\"),\"-\",IF(AND('Enrollment Form'!$CL326=\"Yes\",'Enrollment Form'!$CM326=\"\"),\"N\",\"Y\"))","v":"-"},{"$f":"IF(OR('Enrollment Form'!$CN326=\"\",'Enrollment Form'!$CN326=\"No\"),\"-\",IF(AND('Enrollment Form'!$CN326=\"Yes\",'Enrollment Form'!$CO326=\"\"),\"N\",\"Y\"))","v":"-"},{"$f":"IF(OR('Enrollment Form'!$CN326=\"\",'Enrollment Form'!$CN326=\"No\"),\"-\",IF(AND('Enrollment Form'!$CN326=\"Yes\",'Enrollment Form'!$CP326=\"\"),\"N\",\"Y\"))","v":"-"},{"$f":"IF('Enrollment Form'!B326<>\"Subscriber\",\"-\",IF(AND('Enrollment Form'!B326=\"Subscriber\",'Enrollment Form'!C326=\"Enroll\",'Enrollment Form'!AA326=\"\"),\"N\",\"Y\"))","v":"-"},{"$f":"IF(OR('Enrollment Form'!B326=\"Subscriber\",'Enrollment Form'!B326=\"\"),\"-\",IF('Enrollment Form'!BP326=\"\",\"N\",\"Y\"))","v":"-"},{"$f":"IF('Enrollment Form'!B326<>\"Subscriber\",\"-\",IF(AND('Enrollment Form'!B326=\"Subscriber\",'Enrollment Form'!G326=\"\"),\"N\",\"Y\"))","v":"-"},{"$f":"IF('Enrollment Form'!A326=\"\",\"\",IF('Enrollment Form'!B326=\"Subscriber\",\"-\",IF(AND('Enrollment Form'!B326<>\"Subscriber\",'Enrollment Form'!G326='Enrollment Form'!H326),\"N\",\"Y\")))","v":""},0]
[327,{"$f":"IF('Enrollment Form'!$A327<>\"\",\"Y\",\"N\")","v":"N"},{"$f":"IF(AND('Enrollment Form'!$B327=\"\",'Enrollment Form'!$C327<>\"\"),\"N\",IF($B320=\"N\",\"\",\"Y\"))","v":""},{"$f":"IF(OR($B320=\"N\",'Enrollment Form'!G327=\"\"),\"\",IF('Enrollment Form'!$B327<>\"Subscriber\",\"\",IF('Enrollment Form'!$G327='Enrollment Form'!$H327,\"Y\",\"N\")))","v":""},{"$f":"IF($B320=\"N\",\"\",IF(AND(COUNTIFS('Enrollment Form'!$H$11:$H$1000,'Enrollment Form'!$H327,'Enrollment Form'!$B$11:$B$1000,'Enrollment Form'!$B327)>1,'Enrollment Form'!$H327<>\"\"),\"N\",\"Y\"))","v":""},{"$f":"IF($B320=\"N\",\"\",IF(LEN('Enrollment Form'!$Y327)=0,\"\",IF(LEN('Enrollment Form'!$Y327)<>5,\"N\",\"Y\")))","v":""},{"$f":"IF($B320=\"N\",\"\",IF(LEN('Enrollment Form'!$AD327=0),\"\",IF(LEN('Enrollment Form'!$AD327)<>5,\"N\",\"Y\")))","v":""},{"$f":"IF($B320=\"N\",\"\",IF(LEN('Enrollment Form'!$BS327=0),\"\",IF(LEN('Enrollment Form'!$BS327)<>5,\"N\",\"Y\")))","v":""},{"$f":"IF($B320=\"N\",\"\",IF(LEN('Enrollment Form'!$AE327)=0,\"\",IF(LEN('Enrollment Form'!$AE327)<>10,\"N\",\"Y\")))","v":""},{"$f":"IF($B320=\"N\",\"\",IF(LEN('Enrollment Form'!$AF327)=0,\"\",IF(LEN('Enrollment Form'!$AF327)<>10,\"N\",\"Y\")))","v":""},{"$f":"IF('Enrollment Form'!$O327<>\"Graded\",\"-\",IF(AND('Enrollment Form'!$O327=\"Graded\",'Enrollment Form'!$AR327<>\"\"),\"Y\",\"N\"))","v":"-"},{"$f":"IF($B320=\"N\",\"\",IF(OR('Enrollment Form'!$B327<>\"Subscriber\",'Enrollment Form'!$C327=\"ROC\"),\"-\",IF(AND('Enrollment Form'!$B327=\"Subscriber\",'Enrollment Form'!$C327=\"Enroll\",'Enrollment Form'!$AJ327<>\"\"),\"Y\",\"N\")))","v":""},{"$f":"IF($B320=\"N\",\"\",IF(OR('Enrollment Form'!$B327<>\"Subscriber\",'Enrollment Form'!$C327=\"ROC\"),\"-\",IF(AND('Enrollment Form'!$B327=\"Subscriber\",'Enrollment Form'!$C327=\"Enroll\",'Enrollment Form'!$AK327<>\"\"),\"Y\",\"N\")))","v":""},{"$f":"IF($B320=\"N\",\"\",IF(OR('Enrollment Form'!$B327<>\"Subscriber\",'Enrollment Form'!$C327=\"ROC\"),\"-\",IF(AND('Enrollment Form'!$B327=\"Subscriber\",'Enrollment Form'!$C327=\"Enroll\",'Enrollment Form'!$AL327<>\"\"),\"Y\",\"N\")))","v":""},{"$f":"IF($B320=\"N\",\"\",IF(OR('Enrollment Form'!$B327<>\"Subscriber\",'Enrollment Form'!$C327=\"ROC\"),\"-\",IF(AND('Enrollment Form'!$B327=\"Subscriber\",'Enrollment Form'!$C327=\"Enroll\",'Enrollment Form'!$AP327<>\"\"),\"Y\",\"N\")))","v":""},{"$f":"IF($B320=\"N\",\"\",IF(OR('Enrollment Form'!$B327<>\"Subscriber\",'Enrollment Form'!$C327=\"ROC\"),\"-\",IF(AND('Enrollment Form'!$B327=\"Subscriber\",'Enrollment Form'!$C327=\"Enroll\",'Enrollment Form'!$AQ327<>\"\"),\"Y\",\"N\")))","v":""},{"$f":"IF($B320=\"N\",\"\",IF(OR('Enrollment Form'!$B327<>\"Subscriber\",'Enrollment Form'!$C327=\"ROC\"),\"-\",IF(AND('Enrollment Form'!$B327=\"Subscriber\",'Enrollment Form'!$C327=\"Enroll\",'Enrollment Form'!$AS327<>\"\"),\"Y\",\"N\")))","v":""},{"$f":"IF($B320=\"N\",\"\",IF($Q320=\"-\",\"-\",IF(AND($Q320=\"Y\",'Enrollment Form'!$AS327=\"No\"),\"-\",IF(AND($Q320=\"Y\",'Enrollment Form'!$AS327=\"Yes\",'Enrollment Form'!$AT327<>\"\"),\"Y\",\"N\"))))","v":""},{"$f":"IF($B320=\"N\",\"\",IF(OR('Enrollment Form'!$B327<>\"Subscriber\",'Enrollment Form'!$C327=\"ROC\"),\"-\",IF(AND('Enrollment Form'!$B327=\"Subscriber\",'Enrollment Form'!$C327=\"Enroll\",'Enrollment Form'!$CV327<>\"\"),\"Y\",\"N\")))","v":""},{"$f":"IF($B320=\"N\",\"\",IF($S320=\"-\",\"-\",IF(AND($S320=\"Y\",'Enrollment Form'!$CV327=\"No\"),\"-\",IF(AND($S320=\"Y\",'Enrollment Form'!$CV327=\"Yes\",'Enrollment Form'!$CW327<>\"\"),\"Y\",\"N\"))))","v":""},{"$f":"IF(OR('Enrollment Form'!$AY327=\"Yes\",'Enrollment Form'!$AY327=\"\"),\"-\",IF(OR(AND('Enrollment Form'!$AY327=\"No\",ISERROR(FIND(\"HMO\",VLOOKUP('Enrollment Form'!G327,'Enrollment Form'!H$11:J$1000,3,FALSE),1))=FALSE,COUNTA('Enrollment Form'!$AZ327:$BC327)=4),AND('Enrollment Form'!$AY327=\"No\",ISERROR(FIND(\"HMO\",VLOOKUP('Enrollment Form'!G327,'Enrollment Form'!H$11:J$1000,3,FALSE),1))=FALSE,COUNTA('Enrollment Form'!$BT327:$BW327)=4)),\"Y\",\"N\"))","v":"-"},{"$f":"IF($B320=\"N\",\"\",IF('Enrollment Form'!$B327=\"Subscriber\",\"-\",IF(COUNTA('Enrollment Form'!$BL327,'Enrollment Form'!$BN327)=2,\"Y\",\"N\")))","v":""},{"$f":"IF($B320=\"N\",\"\",IF(OR('Enrollment Form'!$AX327=\"\",'Enrollment Form'!$AX327=\"No\"),\"-\",IF(AND('Enrollment Form'!$AX327=\"Yes\",COUNTA('Enrollment Form'!$CR327)=1),\"Y\",\"N\")))","v":""},{"$f":"IF(OR('Enrollment Form'!$CR327=\"\",'Enrollment Form'!$CR327=\"No\"),\"-\",IF(COUNTA('Enrollment Form'!$CT327:$CU327)=2,\"Y\",\"N\"))","v":"-"},{"$f":"IF($B320=\"N\",\"\",IF(COUNTIF('Enrollment Form'!$DG327:$DP327,\"Other\")=COUNTA('Enrollment Form'!$DK327,'Enrollment Form'!$DH327,'Enrollment Form'!$DN327,'Enrollment Form'!$DQ327),\"Y\",\"N\"))","v":""},{"$f":"IF($B320=\"N\",\"\",IF(OR('Enrollment Form'!B327<>\"Subscriber\",'Enrollment Form'!C327=\"ROC\",COUNTIF('Enrollment Form'!AV327:AW327,\"Yes\")>=1),\"-\",IF(AND('Enrollment Form'!C327=\"Enroll\",COUNTIF('Enrollment Form'!AV327:AW327,\"No\")=2,'Enrollment Form'!AX327=\"\"),\"N\",\"Y\")))","v":""},{"$f":"IF(OR(B320=\"N\",'Enrollment Form'!B327<>\"Subscriber\",'Enrollment Form'!C327=\"ROC\",'Enrollment Form'!O327<>\"Multiple of Salary\"),\"-\",IF(COUNTA('Enrollment Form'!T327:U327)<2,\"N\",\"Y\"))","v":"-"},{"$f":"IF(B320=\"N\",\"\",IF(OR('Enrollment Form'!C327=\"ROC\",'Enrollment Form'!B327<>\"Subscriber\",'Enrollment Form'!O327=\"Waive\",'Enrollment Form'!O327=\"\"),\"-\",IF('Enrollment Form'!P327=\"\",\"N\",\"Y\")))","v":""},{"$f":"IF($B320=\"N\",\"\",IF(AND('Enrollment Form'!$C327=\"ROC\",'Enrollment Form'!$DR327<>\"\"),\"Y\",IF(AND('Enrollment Form'!$C327=\"ROC\",'Enrollment Form'!$DR327=\"\"),\"N\",IF(AND('Enrollment Form'!$C327=\"Enroll\",'Enrollment Form'!$B327=\"Subscriber\",'Enrollment Form'!$CX327=\"No\",'Enrollment Form'!$DR327=\"\"),\"N\",IF(AND('Enrollment Form'!$C327=\"Enroll\",'Enrollment Form'!$B327=\"Subscriber\",'Enrollment Form'!$CX327=\"Yes\"),\"-\",\"Y\")))))","v":""},{"$f":"IF($B320=\"N\",\"\",IF(AND('Enrollment Form'!$C327=\"ROC\",'Enrollment Form'!$DS327<>\"\"),\"Y\",IF(AND('Enrollment Form'!$C327=\"ROC\",'Enrollment Form'!$DS327=\"\"),\"N\",IF(AND('Enrollment Form'!$C327=\"Enroll\",'Enrollment Form'!$B327=\"Subscriber\",'Enrollment Form'!$CX327=\"No\",'Enrollment Form'!$DS327=\"\"),\"N\",IF(AND('Enrollment Form'!$C327=\"Enroll\",'Enrollment Form'!$B327=\"Subscriber\",'Enrollment Form'!$CX327=\"Yes\"),\"-\",\"Y\")))))","v":""},{"$f":"IF('Enrollment Form'!AH327=\"\",\"\",IF(ISERROR(SEARCH(\".\",'Enrollment Form'!AH327,SEARCH(\"@\",'Enrollment Form'!AH327))),\"N\",\"Y\"))","v":""},{"$f":"IF(OR($B320=\"N\",'Enrollment Form'!$G327=\"\"),\"\",IF('Enrollment Form'!$B327<>\"Subscriber\",\"-\",IF(COUNTIF('Enrollment Form'!$AV327:$AW327,\"Yes\")=2,\"N\",\"Y\")))","v":""},{"$f":"IF(OR('Enrollment Form'!$CJ327=\"\",'Enrollment Form'!$CJ327=\"No\"),\"-\",IF(AND('Enrollment Form'!$CJ327=\"Yes\",'Enrollment Form'!$CK327=\"\"),\"N\",\"Y\"))","v":"-"},{"$f":"IF(OR('Enrollment Form'!$CL327=\"\",'Enrollment Form'!$CL327=\"No\"),\"-\",IF(AND('Enrollment Form'!$CL327=\"Yes\",'Enrollment Form'!$CM327=\"\"),\"N\",\"Y\"))","v":"-"},{"$f":"IF(OR('Enrollment Form'!$CN327=\"\",'Enrollment Form'!$CN327=\"No\"),\"-\",IF(AND('Enrollment Form'!$CN327=\"Yes\",'Enrollment Form'!$CO327=\"\"),\"N\",\"Y\"))","v":"-"},{"$f":"IF(OR('Enrollment Form'!$CN327=\"\",'Enrollment Form'!$CN327=\"No\"),\"-\",IF(AND('Enrollment Form'!$CN327=\"Yes\",'Enrollment Form'!$CP327=\"\"),\"N\",\"Y\"))","v":"-"},{"$f":"IF('Enrollment Form'!B327<>\"Subscriber\",\"-\",IF(AND('Enrollment Form'!B327=\"Subscriber\",'Enrollment Form'!C327=\"Enroll\",'Enrollment Form'!AA327=\"\"),\"N\",\"Y\"))","v":"-"},{"$f":"IF(OR('Enrollment Form'!B327=\"Subscriber\",'Enrollment Form'!B327=\"\"),\"-\",IF('Enrollment Form'!BP327=\"\",\"N\",\"Y\"))","v":"-"},{"$f":"IF('Enrollment Form'!B327<>\"Subscriber\",\"-\",IF(AND('Enrollment Form'!B327=\"Subscriber\",'Enrollment Form'!G327=\"\"),\"N\",\"Y\"))","v":"-"},{"$f":"IF('Enrollment Form'!A327=\"\",\"\",IF('Enrollment Form'!B327=\"Subscriber\",\"-\",IF(AND('Enrollment Form'!B327<>\"Subscriber\",'Enrollment Form'!G327='Enrollment Form'!H327),\"N\",\"Y\")))","v":""},0]
[328,{"$f":"IF('Enrollment Form'!$A328<>\"\",\"Y\",\"N\")","v":"N"},{"$f":"IF(AND('Enrollment Form'!$B328=\"\",'Enrollment Form'!$C328<>\"\"),\"N\",IF($B321=\"N\",\"\",\"Y\"))","v":""},{"$f":"IF(OR($B321=\"N\",'Enrollment Form'!G328=\"\"),\"\",IF('Enrollment Form'!$B328<>\"Subscriber\",\"\",IF('Enrollment Form'!$G328='Enrollment Form'!$H328,\"Y\",\"N\")))","v":""},{"$f":"IF($B321=\"N\",\"\",IF(AND(COUNTIFS('Enrollment Form'!$H$11:$H$1000,'Enrollment Form'!$H328,'Enrollment Form'!$B$11:$B$1000,'Enrollment Form'!$B328)>1,'Enrollment Form'!$H328<>\"\"),\"N\",\"Y\"))","v":""},{"$f":"IF($B321=\"N\",\"\",IF(LEN('Enrollment Form'!$Y328)=0,\"\",IF(LEN('Enrollment Form'!$Y328)<>5,\"N\",\"Y\")))","v":""},{"$f":"IF($B321=\"N\",\"\",IF(LEN('Enrollment Form'!$AD328=0),\"\",IF(LEN('Enrollment Form'!$AD328)<>5,\"N\",\"Y\")))","v":""},{"$f":"IF($B321=\"N\",\"\",IF(LEN('Enrollment Form'!$BS328=0),\"\",IF(LEN('Enrollment Form'!$BS328)<>5,\"N\",\"Y\")))","v":""},{"$f":"IF($B321=\"N\",\"\",IF(LEN('Enrollment Form'!$AE328)=0,\"\",IF(LEN('Enrollment Form'!$AE328)<>10,\"N\",\"Y\")))","v":""},{"$f":"IF($B321=\"N\",\"\",IF(LEN('Enrollment Form'!$AF328)=0,\"\",IF(LEN('Enrollment Form'!$AF328)<>10,\"N\",\"Y\")))","v":""},{"$f":"IF('Enrollment Form'!$O328<>\"Graded\",\"-\",IF(AND('Enrollment Form'!$O328=\"Graded\",'Enrollment Form'!$AR328<>\"\"),\"Y\",\"N\"))","v":"-"},{"$f":"IF($B321=\"N\",\"\",IF(OR('Enrollment Form'!$B328<>\"Subscriber\",'Enrollment Form'!$C328=\"ROC\"),\"-\",IF(AND('Enrollment Form'!$B328=\"Subscriber\",'Enrollment Form'!$C328=\"Enroll\",'Enrollment Form'!$AJ328<>\"\"),\"Y\",\"N\")))","v":""},{"$f":"IF($B321=\"N\",\"\",IF(OR('Enrollment Form'!$B328<>\"Subscriber\",'Enrollment Form'!$C328=\"ROC\"),\"-\",IF(AND('Enrollment Form'!$B328=\"Subscriber\",'Enrollment Form'!$C328=\"Enroll\",'Enrollment Form'!$AK328<>\"\"),\"Y\",\"N\")))","v":""},{"$f":"IF($B321=\"N\",\"\",IF(OR('Enrollment Form'!$B328<>\"Subscriber\",'Enrollment Form'!$C328=\"ROC\"),\"-\",IF(AND('Enrollment Form'!$B328=\"Subscriber\",'Enrollment Form'!$C328=\"Enroll\",'Enrollment Form'!$AL328<>\"\"),\"Y\",\"N\")))","v":""},{"$f":"IF($B321=\"N\",\"\",IF(OR('Enrollment Form'!$B328<>\"Subscriber\",'Enrollment Form'!$C328=\"ROC\"),\"-\",IF(AND('Enrollment Form'!$B328=\"Subscriber\",'Enrollment Form'!$C328=\"Enroll\",'Enrollment Form'!$AP328<>\"\"),\"Y\",\"N\")))","v":""},{"$f":"IF($B321=\"N\",\"\",IF(OR('Enrollment Form'!$B328<>\"Subscriber\",'Enrollment Form'!$C328=\"ROC\"),\"-\",IF(AND('Enrollment Form'!$B328=\"Subscriber\",'Enrollment Form'!$C328=\"Enroll\",'Enrollment Form'!$AQ328<>\"\"),\"Y\",\"N\")))","v":""},{"$f":"IF($B321=\"N\",\"\",IF(OR('Enrollment Form'!$B328<>\"Subscriber\",'Enrollment Form'!$C328=\"ROC\"),\"-\",IF(AND('Enrollment Form'!$B328=\"Subscriber\",'Enrollment Form'!$C328=\"Enroll\",'Enrollment Form'!$AS328<>\"\"),\"Y\",\"N\")))","v":""},{"$f":"IF($B321=\"N\",\"\",IF($Q321=\"-\",\"-\",IF(AND($Q321=\"Y\",'Enrollment Form'!$AS328=\"No\"),\"-\",IF(AND($Q321=\"Y\",'Enrollment Form'!$AS328=\"Yes\",'Enrollment Form'!$AT328<>\"\"),\"Y\",\"N\"))))","v":""},{"$f":"IF($B321=\"N\",\"\",IF(OR('Enrollment Form'!$B328<>\"Subscriber\",'Enrollment Form'!$C328=\"ROC\"),\"-\",IF(AND('Enrollment Form'!$B328=\"Subscriber\",'Enrollment Form'!$C328=\"Enroll\",'Enrollment Form'!$CV328<>\"\"),\"Y\",\"N\")))","v":""},{"$f":"IF($B321=\"N\",\"\",IF($S321=\"-\",\"-\",IF(AND($S321=\"Y\",'Enrollment Form'!$CV328=\"No\"),\"-\",IF(AND($S321=\"Y\",'Enrollment Form'!$CV328=\"Yes\",'Enrollment Form'!$CW328<>\"\"),\"Y\",\"N\"))))","v":""},{"$f":"IF(OR('Enrollment Form'!$AY328=\"Yes\",'Enrollment Form'!$AY328=\"\"),\"-\",IF(OR(AND('Enrollment Form'!$AY328=\"No\",ISERROR(FIND(\"HMO\",VLOOKUP('Enrollment Form'!G328,'Enrollment Form'!H$11:J$1000,3,FALSE),1))=FALSE,COUNTA('Enrollment Form'!$AZ328:$BC328)=4),AND('Enrollment Form'!$AY328=\"No\",ISERROR(FIND(\"HMO\",VLOOKUP('Enrollment Form'!G328,'Enrollment Form'!H$11:J$1000,3,FALSE),1))=FALSE,COUNTA('Enrollment Form'!$BT328:$BW328)=4)),\"Y\",\"N\"))","v":"-"},{"$f":"IF($B321=\"N\",\"\",IF('Enrollment Form'!$B328=\"Subscriber\",\"-\",IF(COUNTA('Enrollment Form'!$BL328,'Enrollment Form'!$BN328)=2,\"Y\",\"N\")))","v":""},{"$f":"IF($B321=\"N\",\"\",IF(OR('Enrollment Form'!$AX328=\"\",'Enrollment Form'!$AX328=\"No\"),\"-\",IF(AND('Enrollment Form'!$AX328=\"Yes\",COUNTA('Enrollment Form'!$CR328)=1),\"Y\",\"N\")))","v":""},{"$f":"IF(OR('Enrollment Form'!$CR328=\"\",'Enrollment Form'!$CR328=\"No\"),\"-\",IF(COUNTA('Enrollment Form'!$CT328:$CU328)=2,\"Y\",\"N\"))","v":"-"},{"$f":"IF($B321=\"N\",\"\",IF(COUNTIF('Enrollment Form'!$DG328:$DP328,\"Other\")=COUNTA('Enrollment Form'!$DK328,'Enrollment Form'!$DH328,'Enrollment Form'!$DN328,'Enrollment Form'!$DQ328),\"Y\",\"N\"))","v":""},{"$f":"IF($B321=\"N\",\"\",IF(OR('Enrollment Form'!B328<>\"Subscriber\",'Enrollment Form'!C328=\"ROC\",COUNTIF('Enrollment Form'!AV328:AW328,\"Yes\")>=1),\"-\",IF(AND('Enrollment Form'!C328=\"Enroll\",COUNTIF('Enrollment Form'!AV328:AW328,\"No\")=2,'Enrollment Form'!AX328=\"\"),\"N\",\"Y\")))","v":""},{"$f":"IF(OR(B321=\"N\",'Enrollment Form'!B328<>\"Subscriber\",'Enrollment Form'!C328=\"ROC\",'Enrollment Form'!O328<>\"Multiple of Salary\"),\"-\",IF(COUNTA('Enrollment Form'!T328:U328)<2,\"N\",\"Y\"))","v":"-"},{"$f":"IF(B321=\"N\",\"\",IF(OR('Enrollment Form'!C328=\"ROC\",'Enrollment Form'!B328<>\"Subscriber\",'Enrollment Form'!O328=\"Waive\",'Enrollment Form'!O328=\"\"),\"-\",IF('Enrollment Form'!P328=\"\",\"N\",\"Y\")))","v":""},{"$f":"IF($B321=\"N\",\"\",IF(AND('Enrollment Form'!$C328=\"ROC\",'Enrollment Form'!$DR328<>\"\"),\"Y\",IF(AND('Enrollment Form'!$C328=\"ROC\",'Enrollment Form'!$DR328=\"\"),\"N\",IF(AND('Enrollment Form'!$C328=\"Enroll\",'Enrollment Form'!$B328=\"Subscriber\",'Enrollment Form'!$CX328=\"No\",'Enrollment Form'!$DR328=\"\"),\"N\",IF(AND('Enrollment Form'!$C328=\"Enroll\",'Enrollment Form'!$B328=\"Subscriber\",'Enrollment Form'!$CX328=\"Yes\"),\"-\",\"Y\")))))","v":""},{"$f":"IF($B321=\"N\",\"\",IF(AND('Enrollment Form'!$C328=\"ROC\",'Enrollment Form'!$DS328<>\"\"),\"Y\",IF(AND('Enrollment Form'!$C328=\"ROC\",'Enrollment Form'!$DS328=\"\"),\"N\",IF(AND('Enrollment Form'!$C328=\"Enroll\",'Enrollment Form'!$B328=\"Subscriber\",'Enrollment Form'!$CX328=\"No\",'Enrollment Form'!$DS328=\"\"),\"N\",IF(AND('Enrollment Form'!$C328=\"Enroll\",'Enrollment Form'!$B328=\"Subscriber\",'Enrollment Form'!$CX328=\"Yes\"),\"-\",\"Y\")))))","v":""},{"$f":"IF('Enrollment Form'!AH328=\"\",\"\",IF(ISERROR(SEARCH(\".\",'Enrollment Form'!AH328,SEARCH(\"@\",'Enrollment Form'!AH328))),\"N\",\"Y\"))","v":""},{"$f":"IF(OR($B321=\"N\",'Enrollment Form'!$G328=\"\"),\"\",IF('Enrollment Form'!$B328<>\"Subscriber\",\"-\",IF(COUNTIF('Enrollment Form'!$AV328:$AW328,\"Yes\")=2,\"N\",\"Y\")))","v":""},{"$f":"IF(OR('Enrollment Form'!$CJ328=\"\",'Enrollment Form'!$CJ328=\"No\"),\"-\",IF(AND('Enrollment Form'!$CJ328=\"Yes\",'Enrollment Form'!$CK328=\"\"),\"N\",\"Y\"))","v":"-"},{"$f":"IF(OR('Enrollment Form'!$CL328=\"\",'Enrollment Form'!$CL328=\"No\"),\"-\",IF(AND('Enrollment Form'!$CL328=\"Yes\",'Enrollment Form'!$CM328=\"\"),\"N\",\"Y\"))","v":"-"},{"$f":"IF(OR('Enrollment Form'!$CN328=\"\",'Enrollment Form'!$CN328=\"No\"),\"-\",IF(AND('Enrollment Form'!$CN328=\"Yes\",'Enrollment Form'!$CO328=\"\"),\"N\",\"Y\"))","v":"-"},{"$f":"IF(OR('Enrollment Form'!$CN328=\"\",'Enrollment Form'!$CN328=\"No\"),\"-\",IF(AND('Enrollment Form'!$CN328=\"Yes\",'Enrollment Form'!$CP328=\"\"),\"N\",\"Y\"))","v":"-"},{"$f":"IF('Enrollment Form'!B328<>\"Subscriber\",\"-\",IF(AND('Enrollment Form'!B328=\"Subscriber\",'Enrollment Form'!C328=\"Enroll\",'Enrollment Form'!AA328=\"\"),\"N\",\"Y\"))","v":"-"},{"$f":"IF(OR('Enrollment Form'!B328=\"Subscriber\",'Enrollment Form'!B328=\"\"),\"-\",IF('Enrollment Form'!BP328=\"\",\"N\",\"Y\"))","v":"-"},{"$f":"IF('Enrollment Form'!B328<>\"Subscriber\",\"-\",IF(AND('Enrollment Form'!B328=\"Subscriber\",'Enrollment Form'!G328=\"\"),\"N\",\"Y\"))","v":"-"},{"$f":"IF('Enrollment Form'!A328=\"\",\"\",IF('Enrollment Form'!B328=\"Subscriber\",\"-\",IF(AND('Enrollment Form'!B328<>\"Subscriber\",'Enrollment Form'!G328='Enrollment Form'!H328),\"N\",\"Y\")))","v":""},0]
[329,{"$f":"IF('Enrollment Form'!$A329<>\"\",\"Y\",\"N\")","v":"N"},{"$f":"IF(AND('Enrollment Form'!$B329=\"\",'Enrollment Form'!$C329<>\"\"),\"N\",IF($B322=\"N\",\"\",\"Y\"))","v":""},{"$f":"IF(OR($B322=\"N\",'Enrollment Form'!G329=\"\"),\"\",IF('Enrollment Form'!$B329<>\"Subscriber\",\"\",IF('Enrollment Form'!$G329='Enrollment Form'!$H329,\"Y\",\"N\")))","v":""},{"$f":"IF($B322=\"N\",\"\",IF(AND(COUNTIFS('Enrollment Form'!$H$11:$H$1000,'Enrollment Form'!$H329,'Enrollment Form'!$B$11:$B$1000,'Enrollment Form'!$B329)>1,'Enrollment Form'!$H329<>\"\"),\"N\",\"Y\"))","v":""},{"$f":"IF($B322=\"N\",\"\",IF(LEN('Enrollment Form'!$Y329)=0,\"\",IF(LEN('Enrollment Form'!$Y329)<>5,\"N\",\"Y\")))","v":""},{"$f":"IF($B322=\"N\",\"\",IF(LEN('Enrollment Form'!$AD329=0),\"\",IF(LEN('Enrollment Form'!$AD329)<>5,\"N\",\"Y\")))","v":""},{"$f":"IF($B322=\"N\",\"\",IF(LEN('Enrollment Form'!$BS329=0),\"\",IF(LEN('Enrollment Form'!$BS329)<>5,\"N\",\"Y\")))","v":""},{"$f":"IF($B322=\"N\",\"\",IF(LEN('Enrollment Form'!$AE329)=0,\"\",IF(LEN('Enrollment Form'!$AE329)<>10,\"N\",\"Y\")))","v":""},{"$f":"IF($B322=\"N\",\"\",IF(LEN('Enrollment Form'!$AF329)=0,\"\",IF(LEN('Enrollment Form'!$AF329)<>10,\"N\",\"Y\")))","v":""},{"$f":"IF('Enrollment Form'!$O329<>\"Graded\",\"-\",IF(AND('Enrollment Form'!$O329=\"Graded\",'Enrollment Form'!$AR329<>\"\"),\"Y\",\"N\"))","v":"-"},{"$f":"IF($B322=\"N\",\"\",IF(OR('Enrollment Form'!$B329<>\"Subscriber\",'Enrollment Form'!$C329=\"ROC\"),\"-\",IF(AND('Enrollment Form'!$B329=\"Subscriber\",'Enrollment Form'!$C329=\"Enroll\",'Enrollment Form'!$AJ329<>\"\"),\"Y\",\"N\")))","v":""},{"$f":"IF($B322=\"N\",\"\",IF(OR('Enrollment Form'!$B329<>\"Subscriber\",'Enrollment Form'!$C329=\"ROC\"),\"-\",IF(AND('Enrollment Form'!$B329=\"Subscriber\",'Enrollment Form'!$C329=\"Enroll\",'Enrollment Form'!$AK329<>\"\"),\"Y\",\"N\")))","v":""},{"$f":"IF($B322=\"N\",\"\",IF(OR('Enrollment Form'!$B329<>\"Subscriber\",'Enrollment Form'!$C329=\"ROC\"),\"-\",IF(AND('Enrollment Form'!$B329=\"Subscriber\",'Enrollment Form'!$C329=\"Enroll\",'Enrollment Form'!$AL329<>\"\"),\"Y\",\"N\")))","v":""},{"$f":"IF($B322=\"N\",\"\",IF(OR('Enrollment Form'!$B329<>\"Subscriber\",'Enrollment Form'!$C329=\"ROC\"),\"-\",IF(AND('Enrollment Form'!$B329=\"Subscriber\",'Enrollment Form'!$C329=\"Enroll\",'Enrollment Form'!$AP329<>\"\"),\"Y\",\"N\")))","v":""},{"$f":"IF($B322=\"N\",\"\",IF(OR('Enrollment Form'!$B329<>\"Subscriber\",'Enrollment Form'!$C329=\"ROC\"),\"-\",IF(AND('Enrollment Form'!$B329=\"Subscriber\",'Enrollment Form'!$C329=\"Enroll\",'Enrollment Form'!$AQ329<>\"\"),\"Y\",\"N\")))","v":""},{"$f":"IF($B322=\"N\",\"\",IF(OR('Enrollment Form'!$B329<>\"Subscriber\",'Enrollment Form'!$C329=\"ROC\"),\"-\",IF(AND('Enrollment Form'!$B329=\"Subscriber\",'Enrollment Form'!$C329=\"Enroll\",'Enrollment Form'!$AS329<>\"\"),\"Y\",\"N\")))","v":""},{"$f":"IF($B322=\"N\",\"\",IF($Q322=\"-\",\"-\",IF(AND($Q322=\"Y\",'Enrollment Form'!$AS329=\"No\"),\"-\",IF(AND($Q322=\"Y\",'Enrollment Form'!$AS329=\"Yes\",'Enrollment Form'!$AT329<>\"\"),\"Y\",\"N\"))))","v":""},{"$f":"IF($B322=\"N\",\"\",IF(OR('Enrollment Form'!$B329<>\"Subscriber\",'Enrollment Form'!$C329=\"ROC\"),\"-\",IF(AND('Enrollment Form'!$B329=\"Subscriber\",'Enrollment Form'!$C329=\"Enroll\",'Enrollment Form'!$CV329<>\"\"),\"Y\",\"N\")))","v":""},{"$f":"IF($B322=\"N\",\"\",IF($S322=\"-\",\"-\",IF(AND($S322=\"Y\",'Enrollment Form'!$CV329=\"No\"),\"-\",IF(AND($S322=\"Y\",'Enrollment Form'!$CV329=\"Yes\",'Enrollment Form'!$CW329<>\"\"),\"Y\",\"N\"))))","v":""},{"$f":"IF(OR('Enrollment Form'!$AY329=\"Yes\",'Enrollment Form'!$AY329=\"\"),\"-\",IF(OR(AND('Enrollment Form'!$AY329=\"No\",ISERROR(FIND(\"HMO\",VLOOKUP('Enrollment Form'!G329,'Enrollment Form'!H$11:J$1000,3,FALSE),1))=FALSE,COUNTA('Enrollment Form'!$AZ329:$BC329)=4),AND('Enrollment Form'!$AY329=\"No\",ISERROR(FIND(\"HMO\",VLOOKUP('Enrollment Form'!G329,'Enrollment Form'!H$11:J$1000,3,FALSE),1))=FALSE,COUNTA('Enrollment Form'!$BT329:$BW329)=4)),\"Y\",\"N\"))","v":"-"},{"$f":"IF($B322=\"N\",\"\",IF('Enrollment Form'!$B329=\"Subscriber\",\"-\",IF(COUNTA('Enrollment Form'!$BL329,'Enrollment Form'!$BN329)=2,\"Y\",\"N\")))","v":""},{"$f":"IF($B322=\"N\",\"\",IF(OR('Enrollment Form'!$AX329=\"\",'Enrollment Form'!$AX329=\"No\"),\"-\",IF(AND('Enrollment Form'!$AX329=\"Yes\",COUNTA('Enrollment Form'!$CR329)=1),\"Y\",\"N\")))","v":""},{"$f":"IF(OR('Enrollment Form'!$CR329=\"\",'Enrollment Form'!$CR329=\"No\"),\"-\",IF(COUNTA('Enrollment Form'!$CT329:$CU329)=2,\"Y\",\"N\"))","v":"-"},{"$f":"IF($B322=\"N\",\"\",IF(COUNTIF('Enrollment Form'!$DG329:$DP329,\"Other\")=COUNTA('Enrollment Form'!$DK329,'Enrollment Form'!$DH329,'Enrollment Form'!$DN329,'Enrollment Form'!$DQ329),\"Y\",\"N\"))","v":""},{"$f":"IF($B322=\"N\",\"\",IF(OR('Enrollment Form'!B329<>\"Subscriber\",'Enrollment Form'!C329=\"ROC\",COUNTIF('Enrollment Form'!AV329:AW329,\"Yes\")>=1),\"-\",IF(AND('Enrollment Form'!C329=\"Enroll\",COUNTIF('Enrollment Form'!AV329:AW329,\"No\")=2,'Enrollment Form'!AX329=\"\"),\"N\",\"Y\")))","v":""},{"$f":"IF(OR(B322=\"N\",'Enrollment Form'!B329<>\"Subscriber\",'Enrollment Form'!C329=\"ROC\",'Enrollment Form'!O329<>\"Multiple of Salary\"),\"-\",IF(COUNTA('Enrollment Form'!T329:U329)<2,\"N\",\"Y\"))","v":"-"},{"$f":"IF(B322=\"N\",\"\",IF(OR('Enrollment Form'!C329=\"ROC\",'Enrollment Form'!B329<>\"Subscriber\",'Enrollment Form'!O329=\"Waive\",'Enrollment Form'!O329=\"\"),\"-\",IF('Enrollment Form'!P329=\"\",\"N\",\"Y\")))","v":""},{"$f":"IF($B322=\"N\",\"\",IF(AND('Enrollment Form'!$C329=\"ROC\",'Enrollment Form'!$DR329<>\"\"),\"Y\",IF(AND('Enrollment Form'!$C329=\"ROC\",'Enrollment Form'!$DR329=\"\"),\"N\",IF(AND('Enrollment Form'!$C329=\"Enroll\",'Enrollment Form'!$B329=\"Subscriber\",'Enrollment Form'!$CX329=\"No\",'Enrollment Form'!$DR329=\"\"),\"N\",IF(AND('Enrollment Form'!$C329=\"Enroll\",'Enrollment Form'!$B329=\"Subscriber\",'Enrollment Form'!$CX329=\"Yes\"),\"-\",\"Y\")))))","v":""},{"$f":"IF($B322=\"N\",\"\",IF(AND('Enrollment Form'!$C329=\"ROC\",'Enrollment Form'!$DS329<>\"\"),\"Y\",IF(AND('Enrollment Form'!$C329=\"ROC\",'Enrollment Form'!$DS329=\"\"),\"N\",IF(AND('Enrollment Form'!$C329=\"Enroll\",'Enrollment Form'!$B329=\"Subscriber\",'Enrollment Form'!$CX329=\"No\",'Enrollment Form'!$DS329=\"\"),\"N\",IF(AND('Enrollment Form'!$C329=\"Enroll\",'Enrollment Form'!$B329=\"Subscriber\",'Enrollment Form'!$CX329=\"Yes\"),\"-\",\"Y\")))))","v":""},{"$f":"IF('Enrollment Form'!AH329=\"\",\"\",IF(ISERROR(SEARCH(\".\",'Enrollment Form'!AH329,SEARCH(\"@\",'Enrollment Form'!AH329))),\"N\",\"Y\"))","v":""},{"$f":"IF(OR($B322=\"N\",'Enrollment Form'!$G329=\"\"),\"\",IF('Enrollment Form'!$B329<>\"Subscriber\",\"-\",IF(COUNTIF('Enrollment Form'!$AV329:$AW329,\"Yes\")=2,\"N\",\"Y\")))","v":""},{"$f":"IF(OR('Enrollment Form'!$CJ329=\"\",'Enrollment Form'!$CJ329=\"No\"),\"-\",IF(AND('Enrollment Form'!$CJ329=\"Yes\",'Enrollment Form'!$CK329=\"\"),\"N\",\"Y\"))","v":"-"},{"$f":"IF(OR('Enrollment Form'!$CL329=\"\",'Enrollment Form'!$CL329=\"No\"),\"-\",IF(AND('Enrollment Form'!$CL329=\"Yes\",'Enrollment Form'!$CM329=\"\"),\"N\",\"Y\"))","v":"-"},{"$f":"IF(OR('Enrollment Form'!$CN329=\"\",'Enrollment Form'!$CN329=\"No\"),\"-\",IF(AND('Enrollment Form'!$CN329=\"Yes\",'Enrollment Form'!$CO329=\"\"),\"N\",\"Y\"))","v":"-"},{"$f":"IF(OR('Enrollment Form'!$CN329=\"\",'Enrollment Form'!$CN329=\"No\"),\"-\",IF(AND('Enrollment Form'!$CN329=\"Yes\",'Enrollment Form'!$CP329=\"\"),\"N\",\"Y\"))","v":"-"},{"$f":"IF('Enrollment Form'!B329<>\"Subscriber\",\"-\",IF(AND('Enrollment Form'!B329=\"Subscriber\",'Enrollment Form'!C329=\"Enroll\",'Enrollment Form'!AA329=\"\"),\"N\",\"Y\"))","v":"-"},{"$f":"IF(OR('Enrollment Form'!B329=\"Subscriber\",'Enrollment Form'!B329=\"\"),\"-\",IF('Enrollment Form'!BP329=\"\",\"N\",\"Y\"))","v":"-"},{"$f":"IF('Enrollment Form'!B329<>\"Subscriber\",\"-\",IF(AND('Enrollment Form'!B329=\"Subscriber\",'Enrollment Form'!G329=\"\"),\"N\",\"Y\"))","v":"-"},{"$f":"IF('Enrollment Form'!A329=\"\",\"\",IF('Enrollment Form'!B329=\"Subscriber\",\"-\",IF(AND('Enrollment Form'!B329<>\"Subscriber\",'Enrollment Form'!G329='Enrollment Form'!H329),\"N\",\"Y\")))","v":""},0]
[330,{"$f":"IF('Enrollment Form'!$A330<>\"\",\"Y\",\"N\")","v":"N"},{"$f":"IF(AND('Enrollment Form'!$B330=\"\",'Enrollment Form'!$C330<>\"\"),\"N\",IF($B323=\"N\",\"\",\"Y\"))","v":""},{"$f":"IF(OR($B323=\"N\",'Enrollment Form'!G330=\"\"),\"\",IF('Enrollment Form'!$B330<>\"Subscriber\",\"\",IF('Enrollment Form'!$G330='Enrollment Form'!$H330,\"Y\",\"N\")))","v":""},{"$f":"IF($B323=\"N\",\"\",IF(AND(COUNTIFS('Enrollment Form'!$H$11:$H$1000,'Enrollment Form'!$H330,'Enrollment Form'!$B$11:$B$1000,'Enrollment Form'!$B330)>1,'Enrollment Form'!$H330<>\"\"),\"N\",\"Y\"))","v":""},{"$f":"IF($B323=\"N\",\"\",IF(LEN('Enrollment Form'!$Y330)=0,\"\",IF(LEN('Enrollment Form'!$Y330)<>5,\"N\",\"Y\")))","v":""},{"$f":"IF($B323=\"N\",\"\",IF(LEN('Enrollment Form'!$AD330=0),\"\",IF(LEN('Enrollment Form'!$AD330)<>5,\"N\",\"Y\")))","v":""},{"$f":"IF($B323=\"N\",\"\",IF(LEN('Enrollment Form'!$BS330=0),\"\",IF(LEN('Enrollment Form'!$BS330)<>5,\"N\",\"Y\")))","v":""},{"$f":"IF($B323=\"N\",\"\",IF(LEN('Enrollment Form'!$AE330)=0,\"\",IF(LEN('Enrollment Form'!$AE330)<>10,\"N\",\"Y\")))","v":""},{"$f":"IF($B323=\"N\",\"\",IF(LEN('Enrollment Form'!$AF330)=0,\"\",IF(LEN('Enrollment Form'!$AF330)<>10,\"N\",\"Y\")))","v":""},{"$f":"IF('Enrollment Form'!$O330<>\"Graded\",\"-\",IF(AND('Enrollment Form'!$O330=\"Graded\",'Enrollment Form'!$AR330<>\"\"),\"Y\",\"N\"))","v":"-"},{"$f":"IF($B323=\"N\",\"\",IF(OR('Enrollment Form'!$B330<>\"Subscriber\",'Enrollment Form'!$C330=\"ROC\"),\"-\",IF(AND('Enrollment Form'!$B330=\"Subscriber\",'Enrollment Form'!$C330=\"Enroll\",'Enrollment Form'!$AJ330<>\"\"),\"Y\",\"N\")))","v":""},{"$f":"IF($B323=\"N\",\"\",IF(OR('Enrollment Form'!$B330<>\"Subscriber\",'Enrollment Form'!$C330=\"ROC\"),\"-\",IF(AND('Enrollment Form'!$B330=\"Subscriber\",'Enrollment Form'!$C330=\"Enroll\",'Enrollment Form'!$AK330<>\"\"),\"Y\",\"N\")))","v":""},{"$f":"IF($B323=\"N\",\"\",IF(OR('Enrollment Form'!$B330<>\"Subscriber\",'Enrollment Form'!$C330=\"ROC\"),\"-\",IF(AND('Enrollment Form'!$B330=\"Subscriber\",'Enrollment Form'!$C330=\"Enroll\",'Enrollment Form'!$AL330<>\"\"),\"Y\",\"N\")))","v":""},{"$f":"IF($B323=\"N\",\"\",IF(OR('Enrollment Form'!$B330<>\"Subscriber\",'Enrollment Form'!$C330=\"ROC\"),\"-\",IF(AND('Enrollment Form'!$B330=\"Subscriber\",'Enrollment Form'!$C330=\"Enroll\",'Enrollment Form'!$AP330<>\"\"),\"Y\",\"N\")))","v":""},{"$f":"IF($B323=\"N\",\"\",IF(OR('Enrollment Form'!$B330<>\"Subscriber\",'Enrollment Form'!$C330=\"ROC\"),\"-\",IF(AND('Enrollment Form'!$B330=\"Subscriber\",'Enrollment Form'!$C330=\"Enroll\",'Enrollment Form'!$AQ330<>\"\"),\"Y\",\"N\")))","v":""},{"$f":"IF($B323=\"N\",\"\",IF(OR('Enrollment Form'!$B330<>\"Subscriber\",'Enrollment Form'!$C330=\"ROC\"),\"-\",IF(AND('Enrollment Form'!$B330=\"Subscriber\",'Enrollment Form'!$C330=\"Enroll\",'Enrollment Form'!$AS330<>\"\"),\"Y\",\"N\")))","v":""},{"$f":"IF($B323=\"N\",\"\",IF($Q323=\"-\",\"-\",IF(AND($Q323=\"Y\",'Enrollment Form'!$AS330=\"No\"),\"-\",IF(AND($Q323=\"Y\",'Enrollment Form'!$AS330=\"Yes\",'Enrollment Form'!$AT330<>\"\"),\"Y\",\"N\"))))","v":""},{"$f":"IF($B323=\"N\",\"\",IF(OR('Enrollment Form'!$B330<>\"Subscriber\",'Enrollment Form'!$C330=\"ROC\"),\"-\",IF(AND('Enrollment Form'!$B330=\"Subscriber\",'Enrollment Form'!$C330=\"Enroll\",'Enrollment Form'!$CV330<>\"\"),\"Y\",\"N\")))","v":""},{"$f":"IF($B323=\"N\",\"\",IF($S323=\"-\",\"-\",IF(AND($S323=\"Y\",'Enrollment Form'!$CV330=\"No\"),\"-\",IF(AND($S323=\"Y\",'Enrollment Form'!$CV330=\"Yes\",'Enrollment Form'!$CW330<>\"\"),\"Y\",\"N\"))))","v":""},{"$f":"IF(OR('Enrollment Form'!$AY330=\"Yes\",'Enrollment Form'!$AY330=\"\"),\"-\",IF(OR(AND('Enrollment Form'!$AY330=\"No\",ISERROR(FIND(\"HMO\",VLOOKUP('Enrollment Form'!G330,'Enrollment Form'!H$11:J$1000,3,FALSE),1))=FALSE,COUNTA('Enrollment Form'!$AZ330:$BC330)=4),AND('Enrollment Form'!$AY330=\"No\",ISERROR(FIND(\"HMO\",VLOOKUP('Enrollment Form'!G330,'Enrollment Form'!H$11:J$1000,3,FALSE),1))=FALSE,COUNTA('Enrollment Form'!$BT330:$BW330)=4)),\"Y\",\"N\"))","v":"-"},{"$f":"IF($B323=\"N\",\"\",IF('Enrollment Form'!$B330=\"Subscriber\",\"-\",IF(COUNTA('Enrollment Form'!$BL330,'Enrollment Form'!$BN330)=2,\"Y\",\"N\")))","v":""},{"$f":"IF($B323=\"N\",\"\",IF(OR('Enrollment Form'!$AX330=\"\",'Enrollment Form'!$AX330=\"No\"),\"-\",IF(AND('Enrollment Form'!$AX330=\"Yes\",COUNTA('Enrollment Form'!$CR330)=1),\"Y\",\"N\")))","v":""},{"$f":"IF(OR('Enrollment Form'!$CR330=\"\",'Enrollment Form'!$CR330=\"No\"),\"-\",IF(COUNTA('Enrollment Form'!$CT330:$CU330)=2,\"Y\",\"N\"))","v":"-"},{"$f":"IF($B323=\"N\",\"\",IF(COUNTIF('Enrollment Form'!$DG330:$DP330,\"Other\")=COUNTA('Enrollment Form'!$DK330,'Enrollment Form'!$DH330,'Enrollment Form'!$DN330,'Enrollment Form'!$DQ330),\"Y\",\"N\"))","v":""},{"$f":"IF($B323=\"N\",\"\",IF(OR('Enrollment Form'!B330<>\"Subscriber\",'Enrollment Form'!C330=\"ROC\",COUNTIF('Enrollment Form'!AV330:AW330,\"Yes\")>=1),\"-\",IF(AND('Enrollment Form'!C330=\"Enroll\",COUNTIF('Enrollment Form'!AV330:AW330,\"No\")=2,'Enrollment Form'!AX330=\"\"),\"N\",\"Y\")))","v":""},{"$f":"IF(OR(B323=\"N\",'Enrollment Form'!B330<>\"Subscriber\",'Enrollment Form'!C330=\"ROC\",'Enrollment Form'!O330<>\"Multiple of Salary\"),\"-\",IF(COUNTA('Enrollment Form'!T330:U330)<2,\"N\",\"Y\"))","v":"-"},{"$f":"IF(B323=\"N\",\"\",IF(OR('Enrollment Form'!C330=\"ROC\",'Enrollment Form'!B330<>\"Subscriber\",'Enrollment Form'!O330=\"Waive\",'Enrollment Form'!O330=\"\"),\"-\",IF('Enrollment Form'!P330=\"\",\"N\",\"Y\")))","v":""},{"$f":"IF($B323=\"N\",\"\",IF(AND('Enrollment Form'!$C330=\"ROC\",'Enrollment Form'!$DR330<>\"\"),\"Y\",IF(AND('Enrollment Form'!$C330=\"ROC\",'Enrollment Form'!$DR330=\"\"),\"N\",IF(AND('Enrollment Form'!$C330=\"Enroll\",'Enrollment Form'!$B330=\"Subscriber\",'Enrollment Form'!$CX330=\"No\",'Enrollment Form'!$DR330=\"\"),\"N\",IF(AND('Enrollment Form'!$C330=\"Enroll\",'Enrollment Form'!$B330=\"Subscriber\",'Enrollment Form'!$CX330=\"Yes\"),\"-\",\"Y\")))))","v":""},{"$f":"IF($B323=\"N\",\"\",IF(AND('Enrollment Form'!$C330=\"ROC\",'Enrollment Form'!$DS330<>\"\"),\"Y\",IF(AND('Enrollment Form'!$C330=\"ROC\",'Enrollment Form'!$DS330=\"\"),\"N\",IF(AND('Enrollment Form'!$C330=\"Enroll\",'Enrollment Form'!$B330=\"Subscriber\",'Enrollment Form'!$CX330=\"No\",'Enrollment Form'!$DS330=\"\"),\"N\",IF(AND('Enrollment Form'!$C330=\"Enroll\",'Enrollment Form'!$B330=\"Subscriber\",'Enrollment Form'!$CX330=\"Yes\"),\"-\",\"Y\")))))","v":""},{"$f":"IF('Enrollment Form'!AH330=\"\",\"\",IF(ISERROR(SEARCH(\".\",'Enrollment Form'!AH330,SEARCH(\"@\",'Enrollment Form'!AH330))),\"N\",\"Y\"))","v":""},{"$f":"IF(OR($B323=\"N\",'Enrollment Form'!$G330=\"\"),\"\",IF('Enrollment Form'!$B330<>\"Subscriber\",\"-\",IF(COUNTIF('Enrollment Form'!$AV330:$AW330,\"Yes\")=2,\"N\",\"Y\")))","v":""},{"$f":"IF(OR('Enrollment Form'!$CJ330=\"\",'Enrollment Form'!$CJ330=\"No\"),\"-\",IF(AND('Enrollment Form'!$CJ330=\"Yes\",'Enrollment Form'!$CK330=\"\"),\"N\",\"Y\"))","v":"-"},{"$f":"IF(OR('Enrollment Form'!$CL330=\"\",'Enrollment Form'!$CL330=\"No\"),\"-\",IF(AND('Enrollment Form'!$CL330=\"Yes\",'Enrollment Form'!$CM330=\"\"),\"N\",\"Y\"))","v":"-"},{"$f":"IF(OR('Enrollment Form'!$CN330=\"\",'Enrollment Form'!$CN330=\"No\"),\"-\",IF(AND('Enrollment Form'!$CN330=\"Yes\",'Enrollment Form'!$CO330=\"\"),\"N\",\"Y\"))","v":"-"},{"$f":"IF(OR('Enrollment Form'!$CN330=\"\",'Enrollment Form'!$CN330=\"No\"),\"-\",IF(AND('Enrollment Form'!$CN330=\"Yes\",'Enrollment Form'!$CP330=\"\"),\"N\",\"Y\"))","v":"-"},{"$f":"IF('Enrollment Form'!B330<>\"Subscriber\",\"-\",IF(AND('Enrollment Form'!B330=\"Subscriber\",'Enrollment Form'!C330=\"Enroll\",'Enrollment Form'!AA330=\"\"),\"N\",\"Y\"))","v":"-"},{"$f":"IF(OR('Enrollment Form'!B330=\"Subscriber\",'Enrollment Form'!B330=\"\"),\"-\",IF('Enrollment Form'!BP330=\"\",\"N\",\"Y\"))","v":"-"},{"$f":"IF('Enrollment Form'!B330<>\"Subscriber\",\"-\",IF(AND('Enrollment Form'!B330=\"Subscriber\",'Enrollment Form'!G330=\"\"),\"N\",\"Y\"))","v":"-"},{"$f":"IF('Enrollment Form'!A330=\"\",\"\",IF('Enrollment Form'!B330=\"Subscriber\",\"-\",IF(AND('Enrollment Form'!B330<>\"Subscriber\",'Enrollment Form'!G330='Enrollment Form'!H330),\"N\",\"Y\")))","v":""},0]
[331,{"$f":"IF('Enrollment Form'!$A331<>\"\",\"Y\",\"N\")","v":"N"},{"$f":"IF(AND('Enrollment Form'!$B331=\"\",'Enrollment Form'!$C331<>\"\"),\"N\",IF($B324=\"N\",\"\",\"Y\"))","v":""},{"$f":"IF(OR($B324=\"N\",'Enrollment Form'!G331=\"\"),\"\",IF('Enrollment Form'!$B331<>\"Subscriber\",\"\",IF('Enrollment Form'!$G331='Enrollment Form'!$H331,\"Y\",\"N\")))","v":""},{"$f":"IF($B324=\"N\",\"\",IF(AND(COUNTIFS('Enrollment Form'!$H$11:$H$1000,'Enrollment Form'!$H331,'Enrollment Form'!$B$11:$B$1000,'Enrollment Form'!$B331)>1,'Enrollment Form'!$H331<>\"\"),\"N\",\"Y\"))","v":""},{"$f":"IF($B324=\"N\",\"\",IF(LEN('Enrollment Form'!$Y331)=0,\"\",IF(LEN('Enrollment Form'!$Y331)<>5,\"N\",\"Y\")))","v":""},{"$f":"IF($B324=\"N\",\"\",IF(LEN('Enrollment Form'!$AD331=0),\"\",IF(LEN('Enrollment Form'!$AD331)<>5,\"N\",\"Y\")))","v":""},{"$f":"IF($B324=\"N\",\"\",IF(LEN('Enrollment Form'!$BS331=0),\"\",IF(LEN('Enrollment Form'!$BS331)<>5,\"N\",\"Y\")))","v":""},{"$f":"IF($B324=\"N\",\"\",IF(LEN('Enrollment Form'!$AE331)=0,\"\",IF(LEN('Enrollment Form'!$AE331)<>10,\"N\",\"Y\")))","v":""},{"$f":"IF($B324=\"N\",\"\",IF(LEN('Enrollment Form'!$AF331)=0,\"\",IF(LEN('Enrollment Form'!$AF331)<>10,\"N\",\"Y\")))","v":""},{"$f":"IF('Enrollment Form'!$O331<>\"Graded\",\"-\",IF(AND('Enrollment Form'!$O331=\"Graded\",'Enrollment Form'!$AR331<>\"\"),\"Y\",\"N\"))","v":"-"},{"$f":"IF($B324=\"N\",\"\",IF(OR('Enrollment Form'!$B331<>\"Subscriber\",'Enrollment Form'!$C331=\"ROC\"),\"-\",IF(AND('Enrollment Form'!$B331=\"Subscriber\",'Enrollment Form'!$C331=\"Enroll\",'Enrollment Form'!$AJ331<>\"\"),\"Y\",\"N\")))","v":""},{"$f":"IF($B324=\"N\",\"\",IF(OR('Enrollment Form'!$B331<>\"Subscriber\",'Enrollment Form'!$C331=\"ROC\"),\"-\",IF(AND('Enrollment Form'!$B331=\"Subscriber\",'Enrollment Form'!$C331=\"Enroll\",'Enrollment Form'!$AK331<>\"\"),\"Y\",\"N\")))","v":""},{"$f":"IF($B324=\"N\",\"\",IF(OR('Enrollment Form'!$B331<>\"Subscriber\",'Enrollment Form'!$C331=\"ROC\"),\"-\",IF(AND('Enrollment Form'!$B331=\"Subscriber\",'Enrollment Form'!$C331=\"Enroll\",'Enrollment Form'!$AL331<>\"\"),\"Y\",\"N\")))","v":""},{"$f":"IF($B324=\"N\",\"\",IF(OR('Enrollment Form'!$B331<>\"Subscriber\",'Enrollment Form'!$C331=\"ROC\"),\"-\",IF(AND('Enrollment Form'!$B331=\"Subscriber\",'Enrollment Form'!$C331=\"Enroll\",'Enrollment Form'!$AP331<>\"\"),\"Y\",\"N\")))","v":""},{"$f":"IF($B324=\"N\",\"\",IF(OR('Enrollment Form'!$B331<>\"Subscriber\",'Enrollment Form'!$C331=\"ROC\"),\"-\",IF(AND('Enrollment Form'!$B331=\"Subscriber\",'Enrollment Form'!$C331=\"Enroll\",'Enrollment Form'!$AQ331<>\"\"),\"Y\",\"N\")))","v":""},{"$f":"IF($B324=\"N\",\"\",IF(OR('Enrollment Form'!$B331<>\"Subscriber\",'Enrollment Form'!$C331=\"ROC\"),\"-\",IF(AND('Enrollment Form'!$B331=\"Subscriber\",'Enrollment Form'!$C331=\"Enroll\",'Enrollment Form'!$AS331<>\"\"),\"Y\",\"N\")))","v":""},{"$f":"IF($B324=\"N\",\"\",IF($Q324=\"-\",\"-\",IF(AND($Q324=\"Y\",'Enrollment Form'!$AS331=\"No\"),\"-\",IF(AND($Q324=\"Y\",'Enrollment Form'!$AS331=\"Yes\",'Enrollment Form'!$AT331<>\"\"),\"Y\",\"N\"))))","v":""},{"$f":"IF($B324=\"N\",\"\",IF(OR('Enrollment Form'!$B331<>\"Subscriber\",'Enrollment Form'!$C331=\"ROC\"),\"-\",IF(AND('Enrollment Form'!$B331=\"Subscriber\",'Enrollment Form'!$C331=\"Enroll\",'Enrollment Form'!$CV331<>\"\"),\"Y\",\"N\")))","v":""},{"$f":"IF($B324=\"N\",\"\",IF($S324=\"-\",\"-\",IF(AND($S324=\"Y\",'Enrollment Form'!$CV331=\"No\"),\"-\",IF(AND($S324=\"Y\",'Enrollment Form'!$CV331=\"Yes\",'Enrollment Form'!$CW331<>\"\"),\"Y\",\"N\"))))","v":""},{"$f":"IF(OR('Enrollment Form'!$AY331=\"Yes\",'Enrollment Form'!$AY331=\"\"),\"-\",IF(OR(AND('Enrollment Form'!$AY331=\"No\",ISERROR(FIND(\"HMO\",VLOOKUP('Enrollment Form'!G331,'Enrollment Form'!H$11:J$1000,3,FALSE),1))=FALSE,COUNTA('Enrollment Form'!$AZ331:$BC331)=4),AND('Enrollment Form'!$AY331=\"No\",ISERROR(FIND(\"HMO\",VLOOKUP('Enrollment Form'!G331,'Enrollment Form'!H$11:J$1000,3,FALSE),1))=FALSE,COUNTA('Enrollment Form'!$BT331:$BW331)=4)),\"Y\",\"N\"))","v":"-"},{"$f":"IF($B324=\"N\",\"\",IF('Enrollment Form'!$B331=\"Subscriber\",\"-\",IF(COUNTA('Enrollment Form'!$BL331,'Enrollment Form'!$BN331)=2,\"Y\",\"N\")))","v":""},{"$f":"IF($B324=\"N\",\"\",IF(OR('Enrollment Form'!$AX331=\"\",'Enrollment Form'!$AX331=\"No\"),\"-\",IF(AND('Enrollment Form'!$AX331=\"Yes\",COUNTA('Enrollment Form'!$CR331)=1),\"Y\",\"N\")))","v":""},{"$f":"IF(OR('Enrollment Form'!$CR331=\"\",'Enrollment Form'!$CR331=\"No\"),\"-\",IF(COUNTA('Enrollment Form'!$CT331:$CU331)=2,\"Y\",\"N\"))","v":"-"},{"$f":"IF($B324=\"N\",\"\",IF(COUNTIF('Enrollment Form'!$DG331:$DP331,\"Other\")=COUNTA('Enrollment Form'!$DK331,'Enrollment Form'!$DH331,'Enrollment Form'!$DN331,'Enrollment Form'!$DQ331),\"Y\",\"N\"))","v":""},{"$f":"IF($B324=\"N\",\"\",IF(OR('Enrollment Form'!B331<>\"Subscriber\",'Enrollment Form'!C331=\"ROC\",COUNTIF('Enrollment Form'!AV331:AW331,\"Yes\")>=1),\"-\",IF(AND('Enrollment Form'!C331=\"Enroll\",COUNTIF('Enrollment Form'!AV331:AW331,\"No\")=2,'Enrollment Form'!AX331=\"\"),\"N\",\"Y\")))","v":""},{"$f":"IF(OR(B324=\"N\",'Enrollment Form'!B331<>\"Subscriber\",'Enrollment Form'!C331=\"ROC\",'Enrollment Form'!O331<>\"Multiple of Salary\"),\"-\",IF(COUNTA('Enrollment Form'!T331:U331)<2,\"N\",\"Y\"))","v":"-"},{"$f":"IF(B324=\"N\",\"\",IF(OR('Enrollment Form'!C331=\"ROC\",'Enrollment Form'!B331<>\"Subscriber\",'Enrollment Form'!O331=\"Waive\",'Enrollment Form'!O331=\"\"),\"-\",IF('Enrollment Form'!P331=\"\",\"N\",\"Y\")))","v":""},{"$f":"IF($B324=\"N\",\"\",IF(AND('Enrollment Form'!$C331=\"ROC\",'Enrollment Form'!$DR331<>\"\"),\"Y\",IF(AND('Enrollment Form'!$C331=\"ROC\",'Enrollment Form'!$DR331=\"\"),\"N\",IF(AND('Enrollment Form'!$C331=\"Enroll\",'Enrollment Form'!$B331=\"Subscriber\",'Enrollment Form'!$CX331=\"No\",'Enrollment Form'!$DR331=\"\"),\"N\",IF(AND('Enrollment Form'!$C331=\"Enroll\",'Enrollment Form'!$B331=\"Subscriber\",'Enrollment Form'!$CX331=\"Yes\"),\"-\",\"Y\")))))","v":""},{"$f":"IF($B324=\"N\",\"\",IF(AND('Enrollment Form'!$C331=\"ROC\",'Enrollment Form'!$DS331<>\"\"),\"Y\",IF(AND('Enrollment Form'!$C331=\"ROC\",'Enrollment Form'!$DS331=\"\"),\"N\",IF(AND('Enrollment Form'!$C331=\"Enroll\",'Enrollment Form'!$B331=\"Subscriber\",'Enrollment Form'!$CX331=\"No\",'Enrollment Form'!$DS331=\"\"),\"N\",IF(AND('Enrollment Form'!$C331=\"Enroll\",'Enrollment Form'!$B331=\"Subscriber\",'Enrollment Form'!$CX331=\"Yes\"),\"-\",\"Y\")))))","v":""},{"$f":"IF('Enrollment Form'!AH331=\"\",\"\",IF(ISERROR(SEARCH(\".\",'Enrollment Form'!AH331,SEARCH(\"@\",'Enrollment Form'!AH331))),\"N\",\"Y\"))","v":""},{"$f":"IF(OR($B324=\"N\",'Enrollment Form'!$G331=\"\"),\"\",IF('Enrollment Form'!$B331<>\"Subscriber\",\"-\",IF(COUNTIF('Enrollment Form'!$AV331:$AW331,\"Yes\")=2,\"N\",\"Y\")))","v":""},{"$f":"IF(OR('Enrollment Form'!$CJ331=\"\",'Enrollment Form'!$CJ331=\"No\"),\"-\",IF(AND('Enrollment Form'!$CJ331=\"Yes\",'Enrollment Form'!$CK331=\"\"),\"N\",\"Y\"))","v":"-"},{"$f":"IF(OR('Enrollment Form'!$CL331=\"\",'Enrollment Form'!$CL331=\"No\"),\"-\",IF(AND('Enrollment Form'!$CL331=\"Yes\",'Enrollment Form'!$CM331=\"\"),\"N\",\"Y\"))","v":"-"},{"$f":"IF(OR('Enrollment Form'!$CN331=\"\",'Enrollment Form'!$CN331=\"No\"),\"-\",IF(AND('Enrollment Form'!$CN331=\"Yes\",'Enrollment Form'!$CO331=\"\"),\"N\",\"Y\"))","v":"-"},{"$f":"IF(OR('Enrollment Form'!$CN331=\"\",'Enrollment Form'!$CN331=\"No\"),\"-\",IF(AND('Enrollment Form'!$CN331=\"Yes\",'Enrollment Form'!$CP331=\"\"),\"N\",\"Y\"))","v":"-"},{"$f":"IF('Enrollment Form'!B331<>\"Subscriber\",\"-\",IF(AND('Enrollment Form'!B331=\"Subscriber\",'Enrollment Form'!C331=\"Enroll\",'Enrollment Form'!AA331=\"\"),\"N\",\"Y\"))","v":"-"},{"$f":"IF(OR('Enrollment Form'!B331=\"Subscriber\",'Enrollment Form'!B331=\"\"),\"-\",IF('Enrollment Form'!BP331=\"\",\"N\",\"Y\"))","v":"-"},{"$f":"IF('Enrollment Form'!B331<>\"Subscriber\",\"-\",IF(AND('Enrollment Form'!B331=\"Subscriber\",'Enrollment Form'!G331=\"\"),\"N\",\"Y\"))","v":"-"},{"$f":"IF('Enrollment Form'!A331=\"\",\"\",IF('Enrollment Form'!B331=\"Subscriber\",\"-\",IF(AND('Enrollment Form'!B331<>\"Subscriber\",'Enrollment Form'!G331='Enrollment Form'!H331),\"N\",\"Y\")))","v":""},{"$f":"COUNTIF(C324:AN324,\"N\")","v":0}]
[332,{"$f":"IF('Enrollment Form'!$A332<>\"\",\"Y\",\"N\")","v":"N"},{"$f":"IF(AND('Enrollment Form'!$B332=\"\",'Enrollment Form'!$C332<>\"\"),\"N\",IF($B325=\"N\",\"\",\"Y\"))","v":""},{"$f":"IF(OR($B325=\"N\",'Enrollment Form'!G332=\"\"),\"\",IF('Enrollment Form'!$B332<>\"Subscriber\",\"\",IF('Enrollment Form'!$G332='Enrollment Form'!$H332,\"Y\",\"N\")))","v":""},{"$f":"IF($B325=\"N\",\"\",IF(AND(COUNTIFS('Enrollment Form'!$H$11:$H$1000,'Enrollment Form'!$H332,'Enrollment Form'!$B$11:$B$1000,'Enrollment Form'!$B332)>1,'Enrollment Form'!$H332<>\"\"),\"N\",\"Y\"))","v":""},{"$f":"IF($B325=\"N\",\"\",IF(LEN('Enrollment Form'!$Y332)=0,\"\",IF(LEN('Enrollment Form'!$Y332)<>5,\"N\",\"Y\")))","v":""},{"$f":"IF($B325=\"N\",\"\",IF(LEN('Enrollment Form'!$AD332=0),\"\",IF(LEN('Enrollment Form'!$AD332)<>5,\"N\",\"Y\")))","v":""},{"$f":"IF($B325=\"N\",\"\",IF(LEN('Enrollment Form'!$BS332=0),\"\",IF(LEN('Enrollment Form'!$BS332)<>5,\"N\",\"Y\")))","v":""},{"$f":"IF($B325=\"N\",\"\",IF(LEN('Enrollment Form'!$AE332)=0,\"\",IF(LEN('Enrollment Form'!$AE332)<>10,\"N\",\"Y\")))","v":""},{"$f":"IF($B325=\"N\",\"\",IF(LEN('Enrollment Form'!$AF332)=0,\"\",IF(LEN('Enrollment Form'!$AF332)<>10,\"N\",\"Y\")))","v":""},{"$f":"IF('Enrollment Form'!$O332<>\"Graded\",\"-\",IF(AND('Enrollment Form'!$O332=\"Graded\",'Enrollment Form'!$AR332<>\"\"),\"Y\",\"N\"))","v":"-"},{"$f":"IF($B325=\"N\",\"\",IF(OR('Enrollment Form'!$B332<>\"Subscriber\",'Enrollment Form'!$C332=\"ROC\"),\"-\",IF(AND('Enrollment Form'!$B332=\"Subscriber\",'Enrollment Form'!$C332=\"Enroll\",'Enrollment Form'!$AJ332<>\"\"),\"Y\",\"N\")))","v":""},{"$f":"IF($B325=\"N\",\"\",IF(OR('Enrollment Form'!$B332<>\"Subscriber\",'Enrollment Form'!$C332=\"ROC\"),\"-\",IF(AND('Enrollment Form'!$B332=\"Subscriber\",'Enrollment Form'!$C332=\"Enroll\",'Enrollment Form'!$AK332<>\"\"),\"Y\",\"N\")))","v":""},{"$f":"IF($B325=\"N\",\"\",IF(OR('Enrollment Form'!$B332<>\"Subscriber\",'Enrollment Form'!$C332=\"ROC\"),\"-\",IF(AND('Enrollment Form'!$B332=\"Subscriber\",'Enrollment Form'!$C332=\"Enroll\",'Enrollment Form'!$AL332<>\"\"),\"Y\",\"N\")))","v":""},{"$f":"IF($B325=\"N\",\"\",IF(OR('Enrollment Form'!$B332<>\"Subscriber\",'Enrollment Form'!$C332=\"ROC\"),\"-\",IF(AND('Enrollment Form'!$B332=\"Subscriber\",'Enrollment Form'!$C332=\"Enroll\",'Enrollment Form'!$AP332<>\"\"),\"Y\",\"N\")))","v":""},{"$f":"IF($B325=\"N\",\"\",IF(OR('Enrollment Form'!$B332<>\"Subscriber\",'Enrollment Form'!$C332=\"ROC\"),\"-\",IF(AND('Enrollment Form'!$B332=\"Subscriber\",'Enrollment Form'!$C332=\"Enroll\",'Enrollment Form'!$AQ332<>\"\"),\"Y\",\"N\")))","v":""},{"$f":"IF($B325=\"N\",\"\",IF(OR('Enrollment Form'!$B332<>\"Subscriber\",'Enrollment Form'!$C332=\"ROC\"),\"-\",IF(AND('Enrollment Form'!$B332=\"Subscriber\",'Enrollment Form'!$C332=\"Enroll\",'Enrollment Form'!$AS332<>\"\"),\"Y\",\"N\")))","v":""},{"$f":"IF($B325=\"N\",\"\",IF($Q325=\"-\",\"-\",IF(AND($Q325=\"Y\",'Enrollment Form'!$AS332=\"No\"),\"-\",IF(AND($Q325=\"Y\",'Enrollment Form'!$AS332=\"Yes\",'Enrollment Form'!$AT332<>\"\"),\"Y\",\"N\"))))","v":""},{"$f":"IF($B325=\"N\",\"\",IF(OR('Enrollment Form'!$B332<>\"Subscriber\",'Enrollment Form'!$C332=\"ROC\"),\"-\",IF(AND('Enrollment Form'!$B332=\"Subscriber\",'Enrollment Form'!$C332=\"Enroll\",'Enrollment Form'!$CV332<>\"\"),\"Y\",\"N\")))","v":""},{"$f":"IF($B325=\"N\",\"\",IF($S325=\"-\",\"-\",IF(AND($S325=\"Y\",'Enrollment Form'!$CV332=\"No\"),\"-\",IF(AND($S325=\"Y\",'Enrollment Form'!$CV332=\"Yes\",'Enrollment Form'!$CW332<>\"\"),\"Y\",\"N\"))))","v":""},{"$f":"IF(OR('Enrollment Form'!$AY332=\"Yes\",'Enrollment Form'!$AY332=\"\"),\"-\",IF(OR(AND('Enrollment Form'!$AY332=\"No\",ISERROR(FIND(\"HMO\",VLOOKUP('Enrollment Form'!G332,'Enrollment Form'!H$11:J$1000,3,FALSE),1))=FALSE,COUNTA('Enrollment Form'!$AZ332:$BC332)=4),AND('Enrollment Form'!$AY332=\"No\",ISERROR(FIND(\"HMO\",VLOOKUP('Enrollment Form'!G332,'Enrollment Form'!H$11:J$1000,3,FALSE),1))=FALSE,COUNTA('Enrollment Form'!$BT332:$BW332)=4)),\"Y\",\"N\"))","v":"-"},{"$f":"IF($B325=\"N\",\"\",IF('Enrollment Form'!$B332=\"Subscriber\",\"-\",IF(COUNTA('Enrollment Form'!$BL332,'Enrollment Form'!$BN332)=2,\"Y\",\"N\")))","v":""},{"$f":"IF($B325=\"N\",\"\",IF(OR('Enrollment Form'!$AX332=\"\",'Enrollment Form'!$AX332=\"No\"),\"-\",IF(AND('Enrollment Form'!$AX332=\"Yes\",COUNTA('Enrollment Form'!$CR332)=1),\"Y\",\"N\")))","v":""},{"$f":"IF(OR('Enrollment Form'!$CR332=\"\",'Enrollment Form'!$CR332=\"No\"),\"-\",IF(COUNTA('Enrollment Form'!$CT332:$CU332)=2,\"Y\",\"N\"))","v":"-"},{"$f":"IF($B325=\"N\",\"\",IF(COUNTIF('Enrollment Form'!$DG332:$DP332,\"Other\")=COUNTA('Enrollment Form'!$DK332,'Enrollment Form'!$DH332,'Enrollment Form'!$DN332,'Enrollment Form'!$DQ332),\"Y\",\"N\"))","v":""},{"$f":"IF($B325=\"N\",\"\",IF(OR('Enrollment Form'!B332<>\"Subscriber\",'Enrollment Form'!C332=\"ROC\",COUNTIF('Enrollment Form'!AV332:AW332,\"Yes\")>=1),\"-\",IF(AND('Enrollment Form'!C332=\"Enroll\",COUNTIF('Enrollment Form'!AV332:AW332,\"No\")=2,'Enrollment Form'!AX332=\"\"),\"N\",\"Y\")))","v":""},{"$f":"IF(OR(B325=\"N\",'Enrollment Form'!B332<>\"Subscriber\",'Enrollment Form'!C332=\"ROC\",'Enrollment Form'!O332<>\"Multiple of Salary\"),\"-\",IF(COUNTA('Enrollment Form'!T332:U332)<2,\"N\",\"Y\"))","v":"-"},{"$f":"IF(B325=\"N\",\"\",IF(OR('Enrollment Form'!C332=\"ROC\",'Enrollment Form'!B332<>\"Subscriber\",'Enrollment Form'!O332=\"Waive\",'Enrollment Form'!O332=\"\"),\"-\",IF('Enrollment Form'!P332=\"\",\"N\",\"Y\")))","v":""},{"$f":"IF($B325=\"N\",\"\",IF(AND('Enrollment Form'!$C332=\"ROC\",'Enrollment Form'!$DR332<>\"\"),\"Y\",IF(AND('Enrollment Form'!$C332=\"ROC\",'Enrollment Form'!$DR332=\"\"),\"N\",IF(AND('Enrollment Form'!$C332=\"Enroll\",'Enrollment Form'!$B332=\"Subscriber\",'Enrollment Form'!$CX332=\"No\",'Enrollment Form'!$DR332=\"\"),\"N\",IF(AND('Enrollment Form'!$C332=\"Enroll\",'Enrollment Form'!$B332=\"Subscriber\",'Enrollment Form'!$CX332=\"Yes\"),\"-\",\"Y\")))))","v":""},{"$f":"IF($B325=\"N\",\"\",IF(AND('Enrollment Form'!$C332=\"ROC\",'Enrollment Form'!$DS332<>\"\"),\"Y\",IF(AND('Enrollment Form'!$C332=\"ROC\",'Enrollment Form'!$DS332=\"\"),\"N\",IF(AND('Enrollment Form'!$C332=\"Enroll\",'Enrollment Form'!$B332=\"Subscriber\",'Enrollment Form'!$CX332=\"No\",'Enrollment Form'!$DS332=\"\"),\"N\",IF(AND('Enrollment Form'!$C332=\"Enroll\",'Enrollment Form'!$B332=\"Subscriber\",'Enrollment Form'!$CX332=\"Yes\"),\"-\",\"Y\")))))","v":""},{"$f":"IF('Enrollment Form'!AH332=\"\",\"\",IF(ISERROR(SEARCH(\".\",'Enrollment Form'!AH332,SEARCH(\"@\",'Enrollment Form'!AH332))),\"N\",\"Y\"))","v":""},{"$f":"IF(OR($B325=\"N\",'Enrollment Form'!$G332=\"\"),\"\",IF('Enrollment Form'!$B332<>\"Subscriber\",\"-\",IF(COUNTIF('Enrollment Form'!$AV332:$AW332,\"Yes\")=2,\"N\",\"Y\")))","v":""},{"$f":"IF(OR('Enrollment Form'!$CJ332=\"\",'Enrollment Form'!$CJ332=\"No\"),\"-\",IF(AND('Enrollment Form'!$CJ332=\"Yes\",'Enrollment Form'!$CK332=\"\"),\"N\",\"Y\"))","v":"-"},{"$f":"IF(OR('Enrollment Form'!$CL332=\"\",'Enrollment Form'!$CL332=\"No\"),\"-\",IF(AND('Enrollment Form'!$CL332=\"Yes\",'Enrollment Form'!$CM332=\"\"),\"N\",\"Y\"))","v":"-"},{"$f":"IF(OR('Enrollment Form'!$CN332=\"\",'Enrollment Form'!$CN332=\"No\"),\"-\",IF(AND('Enrollment Form'!$CN332=\"Yes\",'Enrollment Form'!$CO332=\"\"),\"N\",\"Y\"))","v":"-"},{"$f":"IF(OR('Enrollment Form'!$CN332=\"\",'Enrollment Form'!$CN332=\"No\"),\"-\",IF(AND('Enrollment Form'!$CN332=\"Yes\",'Enrollment Form'!$CP332=\"\"),\"N\",\"Y\"))","v":"-"},{"$f":"IF('Enrollment Form'!B332<>\"Subscriber\",\"-\",IF(AND('Enrollment Form'!B332=\"Subscriber\",'Enrollment Form'!C332=\"Enroll\",'Enrollment Form'!AA332=\"\"),\"N\",\"Y\"))","v":"-"},{"$f":"IF(OR('Enrollment Form'!B332=\"Subscriber\",'Enrollment Form'!B332=\"\"),\"-\",IF('Enrollment Form'!BP332=\"\",\"N\",\"Y\"))","v":"-"},{"$f":"IF('Enrollment Form'!B332<>\"Subscriber\",\"-\",IF(AND('Enrollment Form'!B332=\"Subscriber\",'Enrollment Form'!G332=\"\"),\"N\",\"Y\"))","v":"-"},{"$f":"IF('Enrollment Form'!A332=\"\",\"\",IF('Enrollment Form'!B332=\"Subscriber\",\"-\",IF(AND('Enrollment Form'!B332<>\"Subscriber\",'Enrollment Form'!G332='Enrollment Form'!H332),\"N\",\"Y\")))","v":""},0]
[{"$f":"1+A325","v":333},{"$f":"IF('Enrollment Form'!$A333<>\"\",\"Y\",\"N\")","v":"N"},{"$f":"IF(AND('Enrollment Form'!$B333=\"\",'Enrollment Form'!$C333<>\"\"),\"N\",IF($B326=\"N\",\"\",\"Y\"))","v":""},{"$f":"IF(OR($B326=\"N\",'Enrollment Form'!G333=\"\"),\"\",IF('Enrollment Form'!$B333<>\"Subscriber\",\"\",IF('Enrollment Form'!$G333='Enrollment Form'!$H333,\"Y\",\"N\")))","v":""},{"$f":"IF($B326=\"N\",\"\",IF(AND(COUNTIFS('Enrollment Form'!$H$11:$H$1000,'Enrollment Form'!$H333,'Enrollment Form'!$B$11:$B$1000,'Enrollment Form'!$B333)>1,'Enrollment Form'!$H333<>\"\"),\"N\",\"Y\"))","v":""},{"$f":"IF($B326=\"N\",\"\",IF(LEN('Enrollment Form'!$Y333)=0,\"\",IF(LEN('Enrollment Form'!$Y333)<>5,\"N\",\"Y\")))","v":""},{"$f":"IF($B326=\"N\",\"\",IF(LEN('Enrollment Form'!$AD333=0),\"\",IF(LEN('Enrollment Form'!$AD333)<>5,\"N\",\"Y\")))","v":""},{"$f":"IF($B326=\"N\",\"\",IF(LEN('Enrollment Form'!$BS333=0),\"\",IF(LEN('Enrollment Form'!$BS333)<>5,\"N\",\"Y\")))","v":""},{"$f":"IF($B326=\"N\",\"\",IF(LEN('Enrollment Form'!$AE333)=0,\"\",IF(LEN('Enrollment Form'!$AE333)<>10,\"N\",\"Y\")))","v":""},{"$f":"IF($B326=\"N\",\"\",IF(LEN('Enrollment Form'!$AF333)=0,\"\",IF(LEN('Enrollment Form'!$AF333)<>10,\"N\",\"Y\")))","v":""},{"$f":"IF('Enrollment Form'!$O333<>\"Graded\",\"-\",IF(AND('Enrollment Form'!$O333=\"Graded\",'Enrollment Form'!$AR333<>\"\"),\"Y\",\"N\"))","v":"-"},{"$f":"IF($B326=\"N\",\"\",IF(OR('Enrollment Form'!$B333<>\"Subscriber\",'Enrollment Form'!$C333=\"ROC\"),\"-\",IF(AND('Enrollment Form'!$B333=\"Subscriber\",'Enrollment Form'!$C333=\"Enroll\",'Enrollment Form'!$AJ333<>\"\"),\"Y\",\"N\")))","v":""},{"$f":"IF($B326=\"N\",\"\",IF(OR('Enrollment Form'!$B333<>\"Subscriber\",'Enrollment Form'!$C333=\"ROC\"),\"-\",IF(AND('Enrollment Form'!$B333=\"Subscriber\",'Enrollment Form'!$C333=\"Enroll\",'Enrollment Form'!$AK333<>\"\"),\"Y\",\"N\")))","v":""},{"$f":"IF($B326=\"N\",\"\",IF(OR('Enrollment Form'!$B333<>\"Subscriber\",'Enrollment Form'!$C333=\"ROC\"),\"-\",IF(AND('Enrollment Form'!$B333=\"Subscriber\",'Enrollment Form'!$C333=\"Enroll\",'Enrollment Form'!$AL333<>\"\"),\"Y\",\"N\")))","v":""},{"$f":"IF($B326=\"N\",\"\",IF(OR('Enrollment Form'!$B333<>\"Subscriber\",'Enrollment Form'!$C333=\"ROC\"),\"-\",IF(AND('Enrollment Form'!$B333=\"Subscriber\",'Enrollment Form'!$C333=\"Enroll\",'Enrollment Form'!$AP333<>\"\"),\"Y\",\"N\")))","v":""},{"$f":"IF($B326=\"N\",\"\",IF(OR('Enrollment Form'!$B333<>\"Subscriber\",'Enrollment Form'!$C333=\"ROC\"),\"-\",IF(AND('Enrollment Form'!$B333=\"Subscriber\",'Enrollment Form'!$C333=\"Enroll\",'Enrollment Form'!$AQ333<>\"\"),\"Y\",\"N\")))","v":""},{"$f":"IF($B326=\"N\",\"\",IF(OR('Enrollment Form'!$B333<>\"Subscriber\",'Enrollment Form'!$C333=\"ROC\"),\"-\",IF(AND('Enrollment Form'!$B333=\"Subscriber\",'Enrollment Form'!$C333=\"Enroll\",'Enrollment Form'!$AS333<>\"\"),\"Y\",\"N\")))","v":""},{"$f":"IF($B326=\"N\",\"\",IF($Q326=\"-\",\"-\",IF(AND($Q326=\"Y\",'Enrollment Form'!$AS333=\"No\"),\"-\",IF(AND($Q326=\"Y\",'Enrollment Form'!$AS333=\"Yes\",'Enrollment Form'!$AT333<>\"\"),\"Y\",\"N\"))))","v":""},{"$f":"IF($B326=\"N\",\"\",IF(OR('Enrollment Form'!$B333<>\"Subscriber\",'Enrollment Form'!$C333=\"ROC\"),\"-\",IF(AND('Enrollment Form'!$B333=\"Subscriber\",'Enrollment Form'!$C333=\"Enroll\",'Enrollment Form'!$CV333<>\"\"),\"Y\",\"N\")))","v":""},{"$f":"IF($B326=\"N\",\"\",IF($S326=\"-\",\"-\",IF(AND($S326=\"Y\",'Enrollment Form'!$CV333=\"No\"),\"-\",IF(AND($S326=\"Y\",'Enrollment Form'!$CV333=\"Yes\",'Enrollment Form'!$CW333<>\"\"),\"Y\",\"N\"))))","v":""},{"$f":"IF(OR('Enrollment Form'!$AY333=\"Yes\",'Enrollment Form'!$AY333=\"\"),\"-\",IF(OR(AND('Enrollment Form'!$AY333=\"No\",ISERROR(FIND(\"HMO\",VLOOKUP('Enrollment Form'!G333,'Enrollment Form'!H$11:J$1000,3,FALSE),1))=FALSE,COUNTA('Enrollment Form'!$AZ333:$BC333)=4),AND('Enrollment Form'!$AY333=\"No\",ISERROR(FIND(\"HMO\",VLOOKUP('Enrollment Form'!G333,'Enrollment Form'!H$11:J$1000,3,FALSE),1))=FALSE,COUNTA('Enrollment Form'!$BT333:$BW333)=4)),\"Y\",\"N\"))","v":"-"},{"$f":"IF($B326=\"N\",\"\",IF('Enrollment Form'!$B333=\"Subscriber\",\"-\",IF(COUNTA('Enrollment Form'!$BL333,'Enrollment Form'!$BN333)=2,\"Y\",\"N\")))","v":""},{"$f":"IF($B326=\"N\",\"\",IF(OR('Enrollment Form'!$AX333=\"\",'Enrollment Form'!$AX333=\"No\"),\"-\",IF(AND('Enrollment Form'!$AX333=\"Yes\",COUNTA('Enrollment Form'!$CR333)=1),\"Y\",\"N\")))","v":""},{"$f":"IF(OR('Enrollment Form'!$CR333=\"\",'Enrollment Form'!$CR333=\"No\"),\"-\",IF(COUNTA('Enrollment Form'!$CT333:$CU333)=2,\"Y\",\"N\"))","v":"-"},{"$f":"IF($B326=\"N\",\"\",IF(COUNTIF('Enrollment Form'!$DG333:$DP333,\"Other\")=COUNTA('Enrollment Form'!$DK333,'Enrollment Form'!$DH333,'Enrollment Form'!$DN333,'Enrollment Form'!$DQ333),\"Y\",\"N\"))","v":""},{"$f":"IF($B326=\"N\",\"\",IF(OR('Enrollment Form'!B333<>\"Subscriber\",'Enrollment Form'!C333=\"ROC\",COUNTIF('Enrollment Form'!AV333:AW333,\"Yes\")>=1),\"-\",IF(AND('Enrollment Form'!C333=\"Enroll\",COUNTIF('Enrollment Form'!AV333:AW333,\"No\")=2,'Enrollment Form'!AX333=\"\"),\"N\",\"Y\")))","v":""},{"$f":"IF(OR(B326=\"N\",'Enrollment Form'!B333<>\"Subscriber\",'Enrollment Form'!C333=\"ROC\",'Enrollment Form'!O333<>\"Multiple of Salary\"),\"-\",IF(COUNTA('Enrollment Form'!T333:U333)<2,\"N\",\"Y\"))","v":"-"},{"$f":"IF(B326=\"N\",\"\",IF(OR('Enrollment Form'!C333=\"ROC\",'Enrollment Form'!B333<>\"Subscriber\",'Enrollment Form'!O333=\"Waive\",'Enrollment Form'!O333=\"\"),\"-\",IF('Enrollment Form'!P333=\"\",\"N\",\"Y\")))","v":""},{"$f":"IF($B326=\"N\",\"\",IF(AND('Enrollment Form'!$C333=\"ROC\",'Enrollment Form'!$DR333<>\"\"),\"Y\",IF(AND('Enrollment Form'!$C333=\"ROC\",'Enrollment Form'!$DR333=\"\"),\"N\",IF(AND('Enrollment Form'!$C333=\"Enroll\",'Enrollment Form'!$B333=\"Subscriber\",'Enrollment Form'!$CX333=\"No\",'Enrollment Form'!$DR333=\"\"),\"N\",IF(AND('Enrollment Form'!$C333=\"Enroll\",'Enrollment Form'!$B333=\"Subscriber\",'Enrollment Form'!$CX333=\"Yes\"),\"-\",\"Y\")))))","v":""},{"$f":"IF($B326=\"N\",\"\",IF(AND('Enrollment Form'!$C333=\"ROC\",'Enrollment Form'!$DS333<>\"\"),\"Y\",IF(AND('Enrollment Form'!$C333=\"ROC\",'Enrollment Form'!$DS333=\"\"),\"N\",IF(AND('Enrollment Form'!$C333=\"Enroll\",'Enrollment Form'!$B333=\"Subscriber\",'Enrollment Form'!$CX333=\"No\",'Enrollment Form'!$DS333=\"\"),\"N\",IF(AND('Enrollment Form'!$C333=\"Enroll\",'Enrollment Form'!$B333=\"Subscriber\",'Enrollment Form'!$CX333=\"Yes\"),\"-\",\"Y\")))))","v":""},{"$f":"IF('Enrollment Form'!AH333=\"\",\"\",IF(ISERROR(SEARCH(\".\",'Enrollment Form'!AH333,SEARCH(\"@\",'Enrollment Form'!AH333))),\"N\",\"Y\"))","v":""},{"$f":"IF(OR($B326=\"N\",'Enrollment Form'!$G333=\"\"),\"\",IF('Enrollment Form'!$B333<>\"Subscriber\",\"-\",IF(COUNTIF('Enrollment Form'!$AV333:$AW333,\"Yes\")=2,\"N\",\"Y\")))","v":""},{"$f":"IF(OR('Enrollment Form'!$CJ333=\"\",'Enrollment Form'!$CJ333=\"No\"),\"-\",IF(AND('Enrollment Form'!$CJ333=\"Yes\",'Enrollment Form'!$CK333=\"\"),\"N\",\"Y\"))","v":"-"},{"$f":"IF(OR('Enrollment Form'!$CL333=\"\",'Enrollment Form'!$CL333=\"No\"),\"-\",IF(AND('Enrollment Form'!$CL333=\"Yes\",'Enrollment Form'!$CM333=\"\"),\"N\",\"Y\"))","v":"-"},{"$f":"IF(OR('Enrollment Form'!$CN333=\"\",'Enrollment Form'!$CN333=\"No\"),\"-\",IF(AND('Enrollment Form'!$CN333=\"Yes\",'Enrollment Form'!$CO333=\"\"),\"N\",\"Y\"))","v":"-"},{"$f":"IF(OR('Enrollment Form'!$CN333=\"\",'Enrollment Form'!$CN333=\"No\"),\"-\",IF(AND('Enrollment Form'!$CN333=\"Yes\",'Enrollment Form'!$CP333=\"\"),\"N\",\"Y\"))","v":"-"},{"$f":"IF('Enrollment Form'!B333<>\"Subscriber\",\"-\",IF(AND('Enrollment Form'!B333=\"Subscriber\",'Enrollment Form'!C333=\"Enroll\",'Enrollment Form'!AA333=\"\"),\"N\",\"Y\"))","v":"-"},{"$f":"IF(OR('Enrollment Form'!B333=\"Subscriber\",'Enrollment Form'!B333=\"\"),\"-\",IF('Enrollment Form'!BP333=\"\",\"N\",\"Y\"))","v":"-"},{"$f":"IF('Enrollment Form'!B333<>\"Subscriber\",\"-\",IF(AND('Enrollment Form'!B333=\"Subscriber\",'Enrollment Form'!G333=\"\"),\"N\",\"Y\"))","v":"-"},{"$f":"IF('Enrollment Form'!A333=\"\",\"\",IF('Enrollment Form'!B333=\"Subscriber\",\"-\",IF(AND('Enrollment Form'!B333<>\"Subscriber\",'Enrollment Form'!G333='Enrollment Form'!H333),\"N\",\"Y\")))","v":""},0]
[334,{"$f":"IF('Enrollment Form'!$A334<>\"\",\"Y\",\"N\")","v":"N"},{"$f":"IF(AND('Enrollment Form'!$B334=\"\",'Enrollment Form'!$C334<>\"\"),\"N\",IF($B327=\"N\",\"\",\"Y\"))","v":""},{"$f":"IF(OR($B327=\"N\",'Enrollment Form'!G334=\"\"),\"\",IF('Enrollment Form'!$B334<>\"Subscriber\",\"\",IF('Enrollment Form'!$G334='Enrollment Form'!$H334,\"Y\",\"N\")))","v":""},{"$f":"IF($B327=\"N\",\"\",IF(AND(COUNTIFS('Enrollment Form'!$H$11:$H$1000,'Enrollment Form'!$H334,'Enrollment Form'!$B$11:$B$1000,'Enrollment Form'!$B334)>1,'Enrollment Form'!$H334<>\"\"),\"N\",\"Y\"))","v":""},{"$f":"IF($B327=\"N\",\"\",IF(LEN('Enrollment Form'!$Y334)=0,\"\",IF(LEN('Enrollment Form'!$Y334)<>5,\"N\",\"Y\")))","v":""},{"$f":"IF($B327=\"N\",\"\",IF(LEN('Enrollment Form'!$AD334=0),\"\",IF(LEN('Enrollment Form'!$AD334)<>5,\"N\",\"Y\")))","v":""},{"$f":"IF($B327=\"N\",\"\",IF(LEN('Enrollment Form'!$BS334=0),\"\",IF(LEN('Enrollment Form'!$BS334)<>5,\"N\",\"Y\")))","v":""},{"$f":"IF($B327=\"N\",\"\",IF(LEN('Enrollment Form'!$AE334)=0,\"\",IF(LEN('Enrollment Form'!$AE334)<>10,\"N\",\"Y\")))","v":""},{"$f":"IF($B327=\"N\",\"\",IF(LEN('Enrollment Form'!$AF334)=0,\"\",IF(LEN('Enrollment Form'!$AF334)<>10,\"N\",\"Y\")))","v":""},{"$f":"IF('Enrollment Form'!$O334<>\"Graded\",\"-\",IF(AND('Enrollment Form'!$O334=\"Graded\",'Enrollment Form'!$AR334<>\"\"),\"Y\",\"N\"))","v":"-"},{"$f":"IF($B327=\"N\",\"\",IF(OR('Enrollment Form'!$B334<>\"Subscriber\",'Enrollment Form'!$C334=\"ROC\"),\"-\",IF(AND('Enrollment Form'!$B334=\"Subscriber\",'Enrollment Form'!$C334=\"Enroll\",'Enrollment Form'!$AJ334<>\"\"),\"Y\",\"N\")))","v":""},{"$f":"IF($B327=\"N\",\"\",IF(OR('Enrollment Form'!$B334<>\"Subscriber\",'Enrollment Form'!$C334=\"ROC\"),\"-\",IF(AND('Enrollment Form'!$B334=\"Subscriber\",'Enrollment Form'!$C334=\"Enroll\",'Enrollment Form'!$AK334<>\"\"),\"Y\",\"N\")))","v":""},{"$f":"IF($B327=\"N\",\"\",IF(OR('Enrollment Form'!$B334<>\"Subscriber\",'Enrollment Form'!$C334=\"ROC\"),\"-\",IF(AND('Enrollment Form'!$B334=\"Subscriber\",'Enrollment Form'!$C334=\"Enroll\",'Enrollment Form'!$AL334<>\"\"),\"Y\",\"N\")))","v":""},{"$f":"IF($B327=\"N\",\"\",IF(OR('Enrollment Form'!$B334<>\"Subscriber\",'Enrollment Form'!$C334=\"ROC\"),\"-\",IF(AND('Enrollment Form'!$B334=\"Subscriber\",'Enrollment Form'!$C334=\"Enroll\",'Enrollment Form'!$AP334<>\"\"),\"Y\",\"N\")))","v":""},{"$f":"IF($B327=\"N\",\"\",IF(OR('Enrollment Form'!$B334<>\"Subscriber\",'Enrollment Form'!$C334=\"ROC\"),\"-\",IF(AND('Enrollment Form'!$B334=\"Subscriber\",'Enrollment Form'!$C334=\"Enroll\",'Enrollment Form'!$AQ334<>\"\"),\"Y\",\"N\")))","v":""},{"$f":"IF($B327=\"N\",\"\",IF(OR('Enrollment Form'!$B334<>\"Subscriber\",'Enrollment Form'!$C334=\"ROC\"),\"-\",IF(AND('Enrollment Form'!$B334=\"Subscriber\",'Enrollment Form'!$C334=\"Enroll\",'Enrollment Form'!$AS334<>\"\"),\"Y\",\"N\")))","v":""},{"$f":"IF($B327=\"N\",\"\",IF($Q327=\"-\",\"-\",IF(AND($Q327=\"Y\",'Enrollment Form'!$AS334=\"No\"),\"-\",IF(AND($Q327=\"Y\",'Enrollment Form'!$AS334=\"Yes\",'Enrollment Form'!$AT334<>\"\"),\"Y\",\"N\"))))","v":""},{"$f":"IF($B327=\"N\",\"\",IF(OR('Enrollment Form'!$B334<>\"Subscriber\",'Enrollment Form'!$C334=\"ROC\"),\"-\",IF(AND('Enrollment Form'!$B334=\"Subscriber\",'Enrollment Form'!$C334=\"Enroll\",'Enrollment Form'!$CV334<>\"\"),\"Y\",\"N\")))","v":""},{"$f":"IF($B327=\"N\",\"\",IF($S327=\"-\",\"-\",IF(AND($S327=\"Y\",'Enrollment Form'!$CV334=\"No\"),\"-\",IF(AND($S327=\"Y\",'Enrollment Form'!$CV334=\"Yes\",'Enrollment Form'!$CW334<>\"\"),\"Y\",\"N\"))))","v":""},{"$f":"IF(OR('Enrollment Form'!$AY334=\"Yes\",'Enrollment Form'!$AY334=\"\"),\"-\",IF(OR(AND('Enrollment Form'!$AY334=\"No\",ISERROR(FIND(\"HMO\",VLOOKUP('Enrollment Form'!G334,'Enrollment Form'!H$11:J$1000,3,FALSE),1))=FALSE,COUNTA('Enrollment Form'!$AZ334:$BC334)=4),AND('Enrollment Form'!$AY334=\"No\",ISERROR(FIND(\"HMO\",VLOOKUP('Enrollment Form'!G334,'Enrollment Form'!H$11:J$1000,3,FALSE),1))=FALSE,COUNTA('Enrollment Form'!$BT334:$BW334)=4)),\"Y\",\"N\"))","v":"-"},{"$f":"IF($B327=\"N\",\"\",IF('Enrollment Form'!$B334=\"Subscriber\",\"-\",IF(COUNTA('Enrollment Form'!$BL334,'Enrollment Form'!$BN334)=2,\"Y\",\"N\")))","v":""},{"$f":"IF($B327=\"N\",\"\",IF(OR('Enrollment Form'!$AX334=\"\",'Enrollment Form'!$AX334=\"No\"),\"-\",IF(AND('Enrollment Form'!$AX334=\"Yes\",COUNTA('Enrollment Form'!$CR334)=1),\"Y\",\"N\")))","v":""},{"$f":"IF(OR('Enrollment Form'!$CR334=\"\",'Enrollment Form'!$CR334=\"No\"),\"-\",IF(COUNTA('Enrollment Form'!$CT334:$CU334)=2,\"Y\",\"N\"))","v":"-"},{"$f":"IF($B327=\"N\",\"\",IF(COUNTIF('Enrollment Form'!$DG334:$DP334,\"Other\")=COUNTA('Enrollment Form'!$DK334,'Enrollment Form'!$DH334,'Enrollment Form'!$DN334,'Enrollment Form'!$DQ334),\"Y\",\"N\"))","v":""},{"$f":"IF($B327=\"N\",\"\",IF(OR('Enrollment Form'!B334<>\"Subscriber\",'Enrollment Form'!C334=\"ROC\",COUNTIF('Enrollment Form'!AV334:AW334,\"Yes\")>=1),\"-\",IF(AND('Enrollment Form'!C334=\"Enroll\",COUNTIF('Enrollment Form'!AV334:AW334,\"No\")=2,'Enrollment Form'!AX334=\"\"),\"N\",\"Y\")))","v":""},{"$f":"IF(OR(B327=\"N\",'Enrollment Form'!B334<>\"Subscriber\",'Enrollment Form'!C334=\"ROC\",'Enrollment Form'!O334<>\"Multiple of Salary\"),\"-\",IF(COUNTA('Enrollment Form'!T334:U334)<2,\"N\",\"Y\"))","v":"-"},{"$f":"IF(B327=\"N\",\"\",IF(OR('Enrollment Form'!C334=\"ROC\",'Enrollment Form'!B334<>\"Subscriber\",'Enrollment Form'!O334=\"Waive\",'Enrollment Form'!O334=\"\"),\"-\",IF('Enrollment Form'!P334=\"\",\"N\",\"Y\")))","v":""},{"$f":"IF($B327=\"N\",\"\",IF(AND('Enrollment Form'!$C334=\"ROC\",'Enrollment Form'!$DR334<>\"\"),\"Y\",IF(AND('Enrollment Form'!$C334=\"ROC\",'Enrollment Form'!$DR334=\"\"),\"N\",IF(AND('Enrollment Form'!$C334=\"Enroll\",'Enrollment Form'!$B334=\"Subscriber\",'Enrollment Form'!$CX334=\"No\",'Enrollment Form'!$DR334=\"\"),\"N\",IF(AND('Enrollment Form'!$C334=\"Enroll\",'Enrollment Form'!$B334=\"Subscriber\",'Enrollment Form'!$CX334=\"Yes\"),\"-\",\"Y\")))))","v":""},{"$f":"IF($B327=\"N\",\"\",IF(AND('Enrollment Form'!$C334=\"ROC\",'Enrollment Form'!$DS334<>\"\"),\"Y\",IF(AND('Enrollment Form'!$C334=\"ROC\",'Enrollment Form'!$DS334=\"\"),\"N\",IF(AND('Enrollment Form'!$C334=\"Enroll\",'Enrollment Form'!$B334=\"Subscriber\",'Enrollment Form'!$CX334=\"No\",'Enrollment Form'!$DS334=\"\"),\"N\",IF(AND('Enrollment Form'!$C334=\"Enroll\",'Enrollment Form'!$B334=\"Subscriber\",'Enrollment Form'!$CX334=\"Yes\"),\"-\",\"Y\")))))","v":""},{"$f":"IF('Enrollment Form'!AH334=\"\",\"\",IF(ISERROR(SEARCH(\".\",'Enrollment Form'!AH334,SEARCH(\"@\",'Enrollment Form'!AH334))),\"N\",\"Y\"))","v":""},{"$f":"IF(OR($B327=\"N\",'Enrollment Form'!$G334=\"\"),\"\",IF('Enrollment Form'!$B334<>\"Subscriber\",\"-\",IF(COUNTIF('Enrollment Form'!$AV334:$AW334,\"Yes\")=2,\"N\",\"Y\")))","v":""},{"$f":"IF(OR('Enrollment Form'!$CJ334=\"\",'Enrollment Form'!$CJ334=\"No\"),\"-\",IF(AND('Enrollment Form'!$CJ334=\"Yes\",'Enrollment Form'!$CK334=\"\"),\"N\",\"Y\"))","v":"-"},{"$f":"IF(OR('Enrollment Form'!$CL334=\"\",'Enrollment Form'!$CL334=\"No\"),\"-\",IF(AND('Enrollment Form'!$CL334=\"Yes\",'Enrollment Form'!$CM334=\"\"),\"N\",\"Y\"))","v":"-"},{"$f":"IF(OR('Enrollment Form'!$CN334=\"\",'Enrollment Form'!$CN334=\"No\"),\"-\",IF(AND('Enrollment Form'!$CN334=\"Yes\",'Enrollment Form'!$CO334=\"\"),\"N\",\"Y\"))","v":"-"},{"$f":"IF(OR('Enrollment Form'!$CN334=\"\",'Enrollment Form'!$CN334=\"No\"),\"-\",IF(AND('Enrollment Form'!$CN334=\"Yes\",'Enrollment Form'!$CP334=\"\"),\"N\",\"Y\"))","v":"-"},{"$f":"IF('Enrollment Form'!B334<>\"Subscriber\",\"-\",IF(AND('Enrollment Form'!B334=\"Subscriber\",'Enrollment Form'!C334=\"Enroll\",'Enrollment Form'!AA334=\"\"),\"N\",\"Y\"))","v":"-"},{"$f":"IF(OR('Enrollment Form'!B334=\"Subscriber\",'Enrollment Form'!B334=\"\"),\"-\",IF('Enrollment Form'!BP334=\"\",\"N\",\"Y\"))","v":"-"},{"$f":"IF('Enrollment Form'!B334<>\"Subscriber\",\"-\",IF(AND('Enrollment Form'!B334=\"Subscriber\",'Enrollment Form'!G334=\"\"),\"N\",\"Y\"))","v":"-"},{"$f":"IF('Enrollment Form'!A334=\"\",\"\",IF('Enrollment Form'!B334=\"Subscriber\",\"-\",IF(AND('Enrollment Form'!B334<>\"Subscriber\",'Enrollment Form'!G334='Enrollment Form'!H334),\"N\",\"Y\")))","v":""},0]
[335,{"$f":"IF('Enrollment Form'!$A335<>\"\",\"Y\",\"N\")","v":"N"},{"$f":"IF(AND('Enrollment Form'!$B335=\"\",'Enrollment Form'!$C335<>\"\"),\"N\",IF($B328=\"N\",\"\",\"Y\"))","v":""},{"$f":"IF(OR($B328=\"N\",'Enrollment Form'!G335=\"\"),\"\",IF('Enrollment Form'!$B335<>\"Subscriber\",\"\",IF('Enrollment Form'!$G335='Enrollment Form'!$H335,\"Y\",\"N\")))","v":""},{"$f":"IF($B328=\"N\",\"\",IF(AND(COUNTIFS('Enrollment Form'!$H$11:$H$1000,'Enrollment Form'!$H335,'Enrollment Form'!$B$11:$B$1000,'Enrollment Form'!$B335)>1,'Enrollment Form'!$H335<>\"\"),\"N\",\"Y\"))","v":""},{"$f":"IF($B328=\"N\",\"\",IF(LEN('Enrollment Form'!$Y335)=0,\"\",IF(LEN('Enrollment Form'!$Y335)<>5,\"N\",\"Y\")))","v":""},{"$f":"IF($B328=\"N\",\"\",IF(LEN('Enrollment Form'!$AD335=0),\"\",IF(LEN('Enrollment Form'!$AD335)<>5,\"N\",\"Y\")))","v":""},{"$f":"IF($B328=\"N\",\"\",IF(LEN('Enrollment Form'!$BS335=0),\"\",IF(LEN('Enrollment Form'!$BS335)<>5,\"N\",\"Y\")))","v":""},{"$f":"IF($B328=\"N\",\"\",IF(LEN('Enrollment Form'!$AE335)=0,\"\",IF(LEN('Enrollment Form'!$AE335)<>10,\"N\",\"Y\")))","v":""},{"$f":"IF($B328=\"N\",\"\",IF(LEN('Enrollment Form'!$AF335)=0,\"\",IF(LEN('Enrollment Form'!$AF335)<>10,\"N\",\"Y\")))","v":""},{"$f":"IF('Enrollment Form'!$O335<>\"Graded\",\"-\",IF(AND('Enrollment Form'!$O335=\"Graded\",'Enrollment Form'!$AR335<>\"\"),\"Y\",\"N\"))","v":"-"},{"$f":"IF($B328=\"N\",\"\",IF(OR('Enrollment Form'!$B335<>\"Subscriber\",'Enrollment Form'!$C335=\"ROC\"),\"-\",IF(AND('Enrollment Form'!$B335=\"Subscriber\",'Enrollment Form'!$C335=\"Enroll\",'Enrollment Form'!$AJ335<>\"\"),\"Y\",\"N\")))","v":""},{"$f":"IF($B328=\"N\",\"\",IF(OR('Enrollment Form'!$B335<>\"Subscriber\",'Enrollment Form'!$C335=\"ROC\"),\"-\",IF(AND('Enrollment Form'!$B335=\"Subscriber\",'Enrollment Form'!$C335=\"Enroll\",'Enrollment Form'!$AK335<>\"\"),\"Y\",\"N\")))","v":""},{"$f":"IF($B328=\"N\",\"\",IF(OR('Enrollment Form'!$B335<>\"Subscriber\",'Enrollment Form'!$C335=\"ROC\"),\"-\",IF(AND('Enrollment Form'!$B335=\"Subscriber\",'Enrollment Form'!$C335=\"Enroll\",'Enrollment Form'!$AL335<>\"\"),\"Y\",\"N\")))","v":""},{"$f":"IF($B328=\"N\",\"\",IF(OR('Enrollment Form'!$B335<>\"Subscriber\",'Enrollment Form'!$C335=\"ROC\"),\"-\",IF(AND('Enrollment Form'!$B335=\"Subscriber\",'Enrollment Form'!$C335=\"Enroll\",'Enrollment Form'!$AP335<>\"\"),\"Y\",\"N\")))","v":""},{"$f":"IF($B328=\"N\",\"\",IF(OR('Enrollment Form'!$B335<>\"Subscriber\",'Enrollment Form'!$C335=\"ROC\"),\"-\",IF(AND('Enrollment Form'!$B335=\"Subscriber\",'Enrollment Form'!$C335=\"Enroll\",'Enrollment Form'!$AQ335<>\"\"),\"Y\",\"N\")))","v":""},{"$f":"IF($B328=\"N\",\"\",IF(OR('Enrollment Form'!$B335<>\"Subscriber\",'Enrollment Form'!$C335=\"ROC\"),\"-\",IF(AND('Enrollment Form'!$B335=\"Subscriber\",'Enrollment Form'!$C335=\"Enroll\",'Enrollment Form'!$AS335<>\"\"),\"Y\",\"N\")))","v":""},{"$f":"IF($B328=\"N\",\"\",IF($Q328=\"-\",\"-\",IF(AND($Q328=\"Y\",'Enrollment Form'!$AS335=\"No\"),\"-\",IF(AND($Q328=\"Y\",'Enrollment Form'!$AS335=\"Yes\",'Enrollment Form'!$AT335<>\"\"),\"Y\",\"N\"))))","v":""},{"$f":"IF($B328=\"N\",\"\",IF(OR('Enrollment Form'!$B335<>\"Subscriber\",'Enrollment Form'!$C335=\"ROC\"),\"-\",IF(AND('Enrollment Form'!$B335=\"Subscriber\",'Enrollment Form'!$C335=\"Enroll\",'Enrollment Form'!$CV335<>\"\"),\"Y\",\"N\")))","v":""},{"$f":"IF($B328=\"N\",\"\",IF($S328=\"-\",\"-\",IF(AND($S328=\"Y\",'Enrollment Form'!$CV335=\"No\"),\"-\",IF(AND($S328=\"Y\",'Enrollment Form'!$CV335=\"Yes\",'Enrollment Form'!$CW335<>\"\"),\"Y\",\"N\"))))","v":""},{"$f":"IF(OR('Enrollment Form'!$AY335=\"Yes\",'Enrollment Form'!$AY335=\"\"),\"-\",IF(OR(AND('Enrollment Form'!$AY335=\"No\",ISERROR(FIND(\"HMO\",VLOOKUP('Enrollment Form'!G335,'Enrollment Form'!H$11:J$1000,3,FALSE),1))=FALSE,COUNTA('Enrollment Form'!$AZ335:$BC335)=4),AND('Enrollment Form'!$AY335=\"No\",ISERROR(FIND(\"HMO\",VLOOKUP('Enrollment Form'!G335,'Enrollment Form'!H$11:J$1000,3,FALSE),1))=FALSE,COUNTA('Enrollment Form'!$BT335:$BW335)=4)),\"Y\",\"N\"))","v":"-"},{"$f":"IF($B328=\"N\",\"\",IF('Enrollment Form'!$B335=\"Subscriber\",\"-\",IF(COUNTA('Enrollment Form'!$BL335,'Enrollment Form'!$BN335)=2,\"Y\",\"N\")))","v":""},{"$f":"IF($B328=\"N\",\"\",IF(OR('Enrollment Form'!$AX335=\"\",'Enrollment Form'!$AX335=\"No\"),\"-\",IF(AND('Enrollment Form'!$AX335=\"Yes\",COUNTA('Enrollment Form'!$CR335)=1),\"Y\",\"N\")))","v":""},{"$f":"IF(OR('Enrollment Form'!$CR335=\"\",'Enrollment Form'!$CR335=\"No\"),\"-\",IF(COUNTA('Enrollment Form'!$CT335:$CU335)=2,\"Y\",\"N\"))","v":"-"},{"$f":"IF($B328=\"N\",\"\",IF(COUNTIF('Enrollment Form'!$DG335:$DP335,\"Other\")=COUNTA('Enrollment Form'!$DK335,'Enrollment Form'!$DH335,'Enrollment Form'!$DN335,'Enrollment Form'!$DQ335),\"Y\",\"N\"))","v":""},{"$f":"IF($B328=\"N\",\"\",IF(OR('Enrollment Form'!B335<>\"Subscriber\",'Enrollment Form'!C335=\"ROC\",COUNTIF('Enrollment Form'!AV335:AW335,\"Yes\")>=1),\"-\",IF(AND('Enrollment Form'!C335=\"Enroll\",COUNTIF('Enrollment Form'!AV335:AW335,\"No\")=2,'Enrollment Form'!AX335=\"\"),\"N\",\"Y\")))","v":""},{"$f":"IF(OR(B328=\"N\",'Enrollment Form'!B335<>\"Subscriber\",'Enrollment Form'!C335=\"ROC\",'Enrollment Form'!O335<>\"Multiple of Salary\"),\"-\",IF(COUNTA('Enrollment Form'!T335:U335)<2,\"N\",\"Y\"))","v":"-"},{"$f":"IF(B328=\"N\",\"\",IF(OR('Enrollment Form'!C335=\"ROC\",'Enrollment Form'!B335<>\"Subscriber\",'Enrollment Form'!O335=\"Waive\",'Enrollment Form'!O335=\"\"),\"-\",IF('Enrollment Form'!P335=\"\",\"N\",\"Y\")))","v":""},{"$f":"IF($B328=\"N\",\"\",IF(AND('Enrollment Form'!$C335=\"ROC\",'Enrollment Form'!$DR335<>\"\"),\"Y\",IF(AND('Enrollment Form'!$C335=\"ROC\",'Enrollment Form'!$DR335=\"\"),\"N\",IF(AND('Enrollment Form'!$C335=\"Enroll\",'Enrollment Form'!$B335=\"Subscriber\",'Enrollment Form'!$CX335=\"No\",'Enrollment Form'!$DR335=\"\"),\"N\",IF(AND('Enrollment Form'!$C335=\"Enroll\",'Enrollment Form'!$B335=\"Subscriber\",'Enrollment Form'!$CX335=\"Yes\"),\"-\",\"Y\")))))","v":""},{"$f":"IF($B328=\"N\",\"\",IF(AND('Enrollment Form'!$C335=\"ROC\",'Enrollment Form'!$DS335<>\"\"),\"Y\",IF(AND('Enrollment Form'!$C335=\"ROC\",'Enrollment Form'!$DS335=\"\"),\"N\",IF(AND('Enrollment Form'!$C335=\"Enroll\",'Enrollment Form'!$B335=\"Subscriber\",'Enrollment Form'!$CX335=\"No\",'Enrollment Form'!$DS335=\"\"),\"N\",IF(AND('Enrollment Form'!$C335=\"Enroll\",'Enrollment Form'!$B335=\"Subscriber\",'Enrollment Form'!$CX335=\"Yes\"),\"-\",\"Y\")))))","v":""},{"$f":"IF('Enrollment Form'!AH335=\"\",\"\",IF(ISERROR(SEARCH(\".\",'Enrollment Form'!AH335,SEARCH(\"@\",'Enrollment Form'!AH335))),\"N\",\"Y\"))","v":""},{"$f":"IF(OR($B328=\"N\",'Enrollment Form'!$G335=\"\"),\"\",IF('Enrollment Form'!$B335<>\"Subscriber\",\"-\",IF(COUNTIF('Enrollment Form'!$AV335:$AW335,\"Yes\")=2,\"N\",\"Y\")))","v":""},{"$f":"IF(OR('Enrollment Form'!$CJ335=\"\",'Enrollment Form'!$CJ335=\"No\"),\"-\",IF(AND('Enrollment Form'!$CJ335=\"Yes\",'Enrollment Form'!$CK335=\"\"),\"N\",\"Y\"))","v":"-"},{"$f":"IF(OR('Enrollment Form'!$CL335=\"\",'Enrollment Form'!$CL335=\"No\"),\"-\",IF(AND('Enrollment Form'!$CL335=\"Yes\",'Enrollment Form'!$CM335=\"\"),\"N\",\"Y\"))","v":"-"},{"$f":"IF(OR('Enrollment Form'!$CN335=\"\",'Enrollment Form'!$CN335=\"No\"),\"-\",IF(AND('Enrollment Form'!$CN335=\"Yes\",'Enrollment Form'!$CO335=\"\"),\"N\",\"Y\"))","v":"-"},{"$f":"IF(OR('Enrollment Form'!$CN335=\"\",'Enrollment Form'!$CN335=\"No\"),\"-\",IF(AND('Enrollment Form'!$CN335=\"Yes\",'Enrollment Form'!$CP335=\"\"),\"N\",\"Y\"))","v":"-"},{"$f":"IF('Enrollment Form'!B335<>\"Subscriber\",\"-\",IF(AND('Enrollment Form'!B335=\"Subscriber\",'Enrollment Form'!C335=\"Enroll\",'Enrollment Form'!AA335=\"\"),\"N\",\"Y\"))","v":"-"},{"$f":"IF(OR('Enrollment Form'!B335=\"Subscriber\",'Enrollment Form'!B335=\"\"),\"-\",IF('Enrollment Form'!BP335=\"\",\"N\",\"Y\"))","v":"-"},{"$f":"IF('Enrollment Form'!B335<>\"Subscriber\",\"-\",IF(AND('Enrollment Form'!B335=\"Subscriber\",'Enrollment Form'!G335=\"\"),\"N\",\"Y\"))","v":"-"},{"$f":"IF('Enrollment Form'!A335=\"\",\"\",IF('Enrollment Form'!B335=\"Subscriber\",\"-\",IF(AND('Enrollment Form'!B335<>\"Subscriber\",'Enrollment Form'!G335='Enrollment Form'!H335),\"N\",\"Y\")))","v":""},0]
[336,{"$f":"IF('Enrollment Form'!$A336<>\"\",\"Y\",\"N\")","v":"N"},{"$f":"IF(AND('Enrollment Form'!$B336=\"\",'Enrollment Form'!$C336<>\"\"),\"N\",IF($B329=\"N\",\"\",\"Y\"))","v":""},{"$f":"IF(OR($B329=\"N\",'Enrollment Form'!G336=\"\"),\"\",IF('Enrollment Form'!$B336<>\"Subscriber\",\"\",IF('Enrollment Form'!$G336='Enrollment Form'!$H336,\"Y\",\"N\")))","v":""},{"$f":"IF($B329=\"N\",\"\",IF(AND(COUNTIFS('Enrollment Form'!$H$11:$H$1000,'Enrollment Form'!$H336,'Enrollment Form'!$B$11:$B$1000,'Enrollment Form'!$B336)>1,'Enrollment Form'!$H336<>\"\"),\"N\",\"Y\"))","v":""},{"$f":"IF($B329=\"N\",\"\",IF(LEN('Enrollment Form'!$Y336)=0,\"\",IF(LEN('Enrollment Form'!$Y336)<>5,\"N\",\"Y\")))","v":""},{"$f":"IF($B329=\"N\",\"\",IF(LEN('Enrollment Form'!$AD336=0),\"\",IF(LEN('Enrollment Form'!$AD336)<>5,\"N\",\"Y\")))","v":""},{"$f":"IF($B329=\"N\",\"\",IF(LEN('Enrollment Form'!$BS336=0),\"\",IF(LEN('Enrollment Form'!$BS336)<>5,\"N\",\"Y\")))","v":""},{"$f":"IF($B329=\"N\",\"\",IF(LEN('Enrollment Form'!$AE336)=0,\"\",IF(LEN('Enrollment Form'!$AE336)<>10,\"N\",\"Y\")))","v":""},{"$f":"IF($B329=\"N\",\"\",IF(LEN('Enrollment Form'!$AF336)=0,\"\",IF(LEN('Enrollment Form'!$AF336)<>10,\"N\",\"Y\")))","v":""},{"$f":"IF('Enrollment Form'!$O336<>\"Graded\",\"-\",IF(AND('Enrollment Form'!$O336=\"Graded\",'Enrollment Form'!$AR336<>\"\"),\"Y\",\"N\"))","v":"-"},{"$f":"IF($B329=\"N\",\"\",IF(OR('Enrollment Form'!$B336<>\"Subscriber\",'Enrollment Form'!$C336=\"ROC\"),\"-\",IF(AND('Enrollment Form'!$B336=\"Subscriber\",'Enrollment Form'!$C336=\"Enroll\",'Enrollment Form'!$AJ336<>\"\"),\"Y\",\"N\")))","v":""},{"$f":"IF($B329=\"N\",\"\",IF(OR('Enrollment Form'!$B336<>\"Subscriber\",'Enrollment Form'!$C336=\"ROC\"),\"-\",IF(AND('Enrollment Form'!$B336=\"Subscriber\",'Enrollment Form'!$C336=\"Enroll\",'Enrollment Form'!$AK336<>\"\"),\"Y\",\"N\")))","v":""},{"$f":"IF($B329=\"N\",\"\",IF(OR('Enrollment Form'!$B336<>\"Subscriber\",'Enrollment Form'!$C336=\"ROC\"),\"-\",IF(AND('Enrollment Form'!$B336=\"Subscriber\",'Enrollment Form'!$C336=\"Enroll\",'Enrollment Form'!$AL336<>\"\"),\"Y\",\"N\")))","v":""},{"$f":"IF($B329=\"N\",\"\",IF(OR('Enrollment Form'!$B336<>\"Subscriber\",'Enrollment Form'!$C336=\"ROC\"),\"-\",IF(AND('Enrollment Form'!$B336=\"Subscriber\",'Enrollment Form'!$C336=\"Enroll\",'Enrollment Form'!$AP336<>\"\"),\"Y\",\"N\")))","v":""},{"$f":"IF($B329=\"N\",\"\",IF(OR('Enrollment Form'!$B336<>\"Subscriber\",'Enrollment Form'!$C336=\"ROC\"),\"-\",IF(AND('Enrollment Form'!$B336=\"Subscriber\",'Enrollment Form'!$C336=\"Enroll\",'Enrollment Form'!$AQ336<>\"\"),\"Y\",\"N\")))","v":""},{"$f":"IF($B329=\"N\",\"\",IF(OR('Enrollment Form'!$B336<>\"Subscriber\",'Enrollment Form'!$C336=\"ROC\"),\"-\",IF(AND('Enrollment Form'!$B336=\"Subscriber\",'Enrollment Form'!$C336=\"Enroll\",'Enrollment Form'!$AS336<>\"\"),\"Y\",\"N\")))","v":""},{"$f":"IF($B329=\"N\",\"\",IF($Q329=\"-\",\"-\",IF(AND($Q329=\"Y\",'Enrollment Form'!$AS336=\"No\"),\"-\",IF(AND($Q329=\"Y\",'Enrollment Form'!$AS336=\"Yes\",'Enrollment Form'!$AT336<>\"\"),\"Y\",\"N\"))))","v":""},{"$f":"IF($B329=\"N\",\"\",IF(OR('Enrollment Form'!$B336<>\"Subscriber\",'Enrollment Form'!$C336=\"ROC\"),\"-\",IF(AND('Enrollment Form'!$B336=\"Subscriber\",'Enrollment Form'!$C336=\"Enroll\",'Enrollment Form'!$CV336<>\"\"),\"Y\",\"N\")))","v":""},{"$f":"IF($B329=\"N\",\"\",IF($S329=\"-\",\"-\",IF(AND($S329=\"Y\",'Enrollment Form'!$CV336=\"No\"),\"-\",IF(AND($S329=\"Y\",'Enrollment Form'!$CV336=\"Yes\",'Enrollment Form'!$CW336<>\"\"),\"Y\",\"N\"))))","v":""},{"$f":"IF(OR('Enrollment Form'!$AY336=\"Yes\",'Enrollment Form'!$AY336=\"\"),\"-\",IF(OR(AND('Enrollment Form'!$AY336=\"No\",ISERROR(FIND(\"HMO\",VLOOKUP('Enrollment Form'!G336,'Enrollment Form'!H$11:J$1000,3,FALSE),1))=FALSE,COUNTA('Enrollment Form'!$AZ336:$BC336)=4),AND('Enrollment Form'!$AY336=\"No\",ISERROR(FIND(\"HMO\",VLOOKUP('Enrollment Form'!G336,'Enrollment Form'!H$11:J$1000,3,FALSE),1))=FALSE,COUNTA('Enrollment Form'!$BT336:$BW336)=4)),\"Y\",\"N\"))","v":"-"},{"$f":"IF($B329=\"N\",\"\",IF('Enrollment Form'!$B336=\"Subscriber\",\"-\",IF(COUNTA('Enrollment Form'!$BL336,'Enrollment Form'!$BN336)=2,\"Y\",\"N\")))","v":""},{"$f":"IF($B329=\"N\",\"\",IF(OR('Enrollment Form'!$AX336=\"\",'Enrollment Form'!$AX336=\"No\"),\"-\",IF(AND('Enrollment Form'!$AX336=\"Yes\",COUNTA('Enrollment Form'!$CR336)=1),\"Y\",\"N\")))","v":""},{"$f":"IF(OR('Enrollment Form'!$CR336=\"\",'Enrollment Form'!$CR336=\"No\"),\"-\",IF(COUNTA('Enrollment Form'!$CT336:$CU336)=2,\"Y\",\"N\"))","v":"-"},{"$f":"IF($B329=\"N\",\"\",IF(COUNTIF('Enrollment Form'!$DG336:$DP336,\"Other\")=COUNTA('Enrollment Form'!$DK336,'Enrollment Form'!$DH336,'Enrollment Form'!$DN336,'Enrollment Form'!$DQ336),\"Y\",\"N\"))","v":""},{"$f":"IF($B329=\"N\",\"\",IF(OR('Enrollment Form'!B336<>\"Subscriber\",'Enrollment Form'!C336=\"ROC\",COUNTIF('Enrollment Form'!AV336:AW336,\"Yes\")>=1),\"-\",IF(AND('Enrollment Form'!C336=\"Enroll\",COUNTIF('Enrollment Form'!AV336:AW336,\"No\")=2,'Enrollment Form'!AX336=\"\"),\"N\",\"Y\")))","v":""},{"$f":"IF(OR(B329=\"N\",'Enrollment Form'!B336<>\"Subscriber\",'Enrollment Form'!C336=\"ROC\",'Enrollment Form'!O336<>\"Multiple of Salary\"),\"-\",IF(COUNTA('Enrollment Form'!T336:U336)<2,\"N\",\"Y\"))","v":"-"},{"$f":"IF(B329=\"N\",\"\",IF(OR('Enrollment Form'!C336=\"ROC\",'Enrollment Form'!B336<>\"Subscriber\",'Enrollment Form'!O336=\"Waive\",'Enrollment Form'!O336=\"\"),\"-\",IF('Enrollment Form'!P336=\"\",\"N\",\"Y\")))","v":""},{"$f":"IF($B329=\"N\",\"\",IF(AND('Enrollment Form'!$C336=\"ROC\",'Enrollment Form'!$DR336<>\"\"),\"Y\",IF(AND('Enrollment Form'!$C336=\"ROC\",'Enrollment Form'!$DR336=\"\"),\"N\",IF(AND('Enrollment Form'!$C336=\"Enroll\",'Enrollment Form'!$B336=\"Subscriber\",'Enrollment Form'!$CX336=\"No\",'Enrollment Form'!$DR336=\"\"),\"N\",IF(AND('Enrollment Form'!$C336=\"Enroll\",'Enrollment Form'!$B336=\"Subscriber\",'Enrollment Form'!$CX336=\"Yes\"),\"-\",\"Y\")))))","v":""},{"$f":"IF($B329=\"N\",\"\",IF(AND('Enrollment Form'!$C336=\"ROC\",'Enrollment Form'!$DS336<>\"\"),\"Y\",IF(AND('Enrollment Form'!$C336=\"ROC\",'Enrollment Form'!$DS336=\"\"),\"N\",IF(AND('Enrollment Form'!$C336=\"Enroll\",'Enrollment Form'!$B336=\"Subscriber\",'Enrollment Form'!$CX336=\"No\",'Enrollment Form'!$DS336=\"\"),\"N\",IF(AND('Enrollment Form'!$C336=\"Enroll\",'Enrollment Form'!$B336=\"Subscriber\",'Enrollment Form'!$CX336=\"Yes\"),\"-\",\"Y\")))))","v":""},{"$f":"IF('Enrollment Form'!AH336=\"\",\"\",IF(ISERROR(SEARCH(\".\",'Enrollment Form'!AH336,SEARCH(\"@\",'Enrollment Form'!AH336))),\"N\",\"Y\"))","v":""},{"$f":"IF(OR($B329=\"N\",'Enrollment Form'!$G336=\"\"),\"\",IF('Enrollment Form'!$B336<>\"Subscriber\",\"-\",IF(COUNTIF('Enrollment Form'!$AV336:$AW336,\"Yes\")=2,\"N\",\"Y\")))","v":""},{"$f":"IF(OR('Enrollment Form'!$CJ336=\"\",'Enrollment Form'!$CJ336=\"No\"),\"-\",IF(AND('Enrollment Form'!$CJ336=\"Yes\",'Enrollment Form'!$CK336=\"\"),\"N\",\"Y\"))","v":"-"},{"$f":"IF(OR('Enrollment Form'!$CL336=\"\",'Enrollment Form'!$CL336=\"No\"),\"-\",IF(AND('Enrollment Form'!$CL336=\"Yes\",'Enrollment Form'!$CM336=\"\"),\"N\",\"Y\"))","v":"-"},{"$f":"IF(OR('Enrollment Form'!$CN336=\"\",'Enrollment Form'!$CN336=\"No\"),\"-\",IF(AND('Enrollment Form'!$CN336=\"Yes\",'Enrollment Form'!$CO336=\"\"),\"N\",\"Y\"))","v":"-"},{"$f":"IF(OR('Enrollment Form'!$CN336=\"\",'Enrollment Form'!$CN336=\"No\"),\"-\",IF(AND('Enrollment Form'!$CN336=\"Yes\",'Enrollment Form'!$CP336=\"\"),\"N\",\"Y\"))","v":"-"},{"$f":"IF('Enrollment Form'!B336<>\"Subscriber\",\"-\",IF(AND('Enrollment Form'!B336=\"Subscriber\",'Enrollment Form'!C336=\"Enroll\",'Enrollment Form'!AA336=\"\"),\"N\",\"Y\"))","v":"-"},{"$f":"IF(OR('Enrollment Form'!B336=\"Subscriber\",'Enrollment Form'!B336=\"\"),\"-\",IF('Enrollment Form'!BP336=\"\",\"N\",\"Y\"))","v":"-"},{"$f":"IF('Enrollment Form'!B336<>\"Subscriber\",\"-\",IF(AND('Enrollment Form'!B336=\"Subscriber\",'Enrollment Form'!G336=\"\"),\"N\",\"Y\"))","v":"-"},{"$f":"IF('Enrollment Form'!A336=\"\",\"\",IF('Enrollment Form'!B336=\"Subscriber\",\"-\",IF(AND('Enrollment Form'!B336<>\"Subscriber\",'Enrollment Form'!G336='Enrollment Form'!H336),\"N\",\"Y\")))","v":""},0]
[337,{"$f":"IF('Enrollment Form'!$A337<>\"\",\"Y\",\"N\")","v":"N"},{"$f":"IF(AND('Enrollment Form'!$B337=\"\",'Enrollment Form'!$C337<>\"\"),\"N\",IF($B330=\"N\",\"\",\"Y\"))","v":""},{"$f":"IF(OR($B330=\"N\",'Enrollment Form'!G337=\"\"),\"\",IF('Enrollment Form'!$B337<>\"Subscriber\",\"\",IF('Enrollment Form'!$G337='Enrollment Form'!$H337,\"Y\",\"N\")))","v":""},{"$f":"IF($B330=\"N\",\"\",IF(AND(COUNTIFS('Enrollment Form'!$H$11:$H$1000,'Enrollment Form'!$H337,'Enrollment Form'!$B$11:$B$1000,'Enrollment Form'!$B337)>1,'Enrollment Form'!$H337<>\"\"),\"N\",\"Y\"))","v":""},{"$f":"IF($B330=\"N\",\"\",IF(LEN('Enrollment Form'!$Y337)=0,\"\",IF(LEN('Enrollment Form'!$Y337)<>5,\"N\",\"Y\")))","v":""},{"$f":"IF($B330=\"N\",\"\",IF(LEN('Enrollment Form'!$AD337=0),\"\",IF(LEN('Enrollment Form'!$AD337)<>5,\"N\",\"Y\")))","v":""},{"$f":"IF($B330=\"N\",\"\",IF(LEN('Enrollment Form'!$BS337=0),\"\",IF(LEN('Enrollment Form'!$BS337)<>5,\"N\",\"Y\")))","v":""},{"$f":"IF($B330=\"N\",\"\",IF(LEN('Enrollment Form'!$AE337)=0,\"\",IF(LEN('Enrollment Form'!$AE337)<>10,\"N\",\"Y\")))","v":""},{"$f":"IF($B330=\"N\",\"\",IF(LEN('Enrollment Form'!$AF337)=0,\"\",IF(LEN('Enrollment Form'!$AF337)<>10,\"N\",\"Y\")))","v":""},{"$f":"IF('Enrollment Form'!$O337<>\"Graded\",\"-\",IF(AND('Enrollment Form'!$O337=\"Graded\",'Enrollment Form'!$AR337<>\"\"),\"Y\",\"N\"))","v":"-"},{"$f":"IF($B330=\"N\",\"\",IF(OR('Enrollment Form'!$B337<>\"Subscriber\",'Enrollment Form'!$C337=\"ROC\"),\"-\",IF(AND('Enrollment Form'!$B337=\"Subscriber\",'Enrollment Form'!$C337=\"Enroll\",'Enrollment Form'!$AJ337<>\"\"),\"Y\",\"N\")))","v":""},{"$f":"IF($B330=\"N\",\"\",IF(OR('Enrollment Form'!$B337<>\"Subscriber\",'Enrollment Form'!$C337=\"ROC\"),\"-\",IF(AND('Enrollment Form'!$B337=\"Subscriber\",'Enrollment Form'!$C337=\"Enroll\",'Enrollment Form'!$AK337<>\"\"),\"Y\",\"N\")))","v":""},{"$f":"IF($B330=\"N\",\"\",IF(OR('Enrollment Form'!$B337<>\"Subscriber\",'Enrollment Form'!$C337=\"ROC\"),\"-\",IF(AND('Enrollment Form'!$B337=\"Subscriber\",'Enrollment Form'!$C337=\"Enroll\",'Enrollment Form'!$AL337<>\"\"),\"Y\",\"N\")))","v":""},{"$f":"IF($B330=\"N\",\"\",IF(OR('Enrollment Form'!$B337<>\"Subscriber\",'Enrollment Form'!$C337=\"ROC\"),\"-\",IF(AND('Enrollment Form'!$B337=\"Subscriber\",'Enrollment Form'!$C337=\"Enroll\",'Enrollment Form'!$AP337<>\"\"),\"Y\",\"N\")))","v":""},{"$f":"IF($B330=\"N\",\"\",IF(OR('Enrollment Form'!$B337<>\"Subscriber\",'Enrollment Form'!$C337=\"ROC\"),\"-\",IF(AND('Enrollment Form'!$B337=\"Subscriber\",'Enrollment Form'!$C337=\"Enroll\",'Enrollment Form'!$AQ337<>\"\"),\"Y\",\"N\")))","v":""},{"$f":"IF($B330=\"N\",\"\",IF(OR('Enrollment Form'!$B337<>\"Subscriber\",'Enrollment Form'!$C337=\"ROC\"),\"-\",IF(AND('Enrollment Form'!$B337=\"Subscriber\",'Enrollment Form'!$C337=\"Enroll\",'Enrollment Form'!$AS337<>\"\"),\"Y\",\"N\")))","v":""},{"$f":"IF($B330=\"N\",\"\",IF($Q330=\"-\",\"-\",IF(AND($Q330=\"Y\",'Enrollment Form'!$AS337=\"No\"),\"-\",IF(AND($Q330=\"Y\",'Enrollment Form'!$AS337=\"Yes\",'Enrollment Form'!$AT337<>\"\"),\"Y\",\"N\"))))","v":""},{"$f":"IF($B330=\"N\",\"\",IF(OR('Enrollment Form'!$B337<>\"Subscriber\",'Enrollment Form'!$C337=\"ROC\"),\"-\",IF(AND('Enrollment Form'!$B337=\"Subscriber\",'Enrollment Form'!$C337=\"Enroll\",'Enrollment Form'!$CV337<>\"\"),\"Y\",\"N\")))","v":""},{"$f":"IF($B330=\"N\",\"\",IF($S330=\"-\",\"-\",IF(AND($S330=\"Y\",'Enrollment Form'!$CV337=\"No\"),\"-\",IF(AND($S330=\"Y\",'Enrollment Form'!$CV337=\"Yes\",'Enrollment Form'!$CW337<>\"\"),\"Y\",\"N\"))))","v":""},{"$f":"IF(OR('Enrollment Form'!$AY337=\"Yes\",'Enrollment Form'!$AY337=\"\"),\"-\",IF(OR(AND('Enrollment Form'!$AY337=\"No\",ISERROR(FIND(\"HMO\",VLOOKUP('Enrollment Form'!G337,'Enrollment Form'!H$11:J$1000,3,FALSE),1))=FALSE,COUNTA('Enrollment Form'!$AZ337:$BC337)=4),AND('Enrollment Form'!$AY337=\"No\",ISERROR(FIND(\"HMO\",VLOOKUP('Enrollment Form'!G337,'Enrollment Form'!H$11:J$1000,3,FALSE),1))=FALSE,COUNTA('Enrollment Form'!$BT337:$BW337)=4)),\"Y\",\"N\"))","v":"-"},{"$f":"IF($B330=\"N\",\"\",IF('Enrollment Form'!$B337=\"Subscriber\",\"-\",IF(COUNTA('Enrollment Form'!$BL337,'Enrollment Form'!$BN337)=2,\"Y\",\"N\")))","v":""},{"$f":"IF($B330=\"N\",\"\",IF(OR('Enrollment Form'!$AX337=\"\",'Enrollment Form'!$AX337=\"No\"),\"-\",IF(AND('Enrollment Form'!$AX337=\"Yes\",COUNTA('Enrollment Form'!$CR337)=1),\"Y\",\"N\")))","v":""},{"$f":"IF(OR('Enrollment Form'!$CR337=\"\",'Enrollment Form'!$CR337=\"No\"),\"-\",IF(COUNTA('Enrollment Form'!$CT337:$CU337)=2,\"Y\",\"N\"))","v":"-"},{"$f":"IF($B330=\"N\",\"\",IF(COUNTIF('Enrollment Form'!$DG337:$DP337,\"Other\")=COUNTA('Enrollment Form'!$DK337,'Enrollment Form'!$DH337,'Enrollment Form'!$DN337,'Enrollment Form'!$DQ337),\"Y\",\"N\"))","v":""},{"$f":"IF($B330=\"N\",\"\",IF(OR('Enrollment Form'!B337<>\"Subscriber\",'Enrollment Form'!C337=\"ROC\",COUNTIF('Enrollment Form'!AV337:AW337,\"Yes\")>=1),\"-\",IF(AND('Enrollment Form'!C337=\"Enroll\",COUNTIF('Enrollment Form'!AV337:AW337,\"No\")=2,'Enrollment Form'!AX337=\"\"),\"N\",\"Y\")))","v":""},{"$f":"IF(OR(B330=\"N\",'Enrollment Form'!B337<>\"Subscriber\",'Enrollment Form'!C337=\"ROC\",'Enrollment Form'!O337<>\"Multiple of Salary\"),\"-\",IF(COUNTA('Enrollment Form'!T337:U337)<2,\"N\",\"Y\"))","v":"-"},{"$f":"IF(B330=\"N\",\"\",IF(OR('Enrollment Form'!C337=\"ROC\",'Enrollment Form'!B337<>\"Subscriber\",'Enrollment Form'!O337=\"Waive\",'Enrollment Form'!O337=\"\"),\"-\",IF('Enrollment Form'!P337=\"\",\"N\",\"Y\")))","v":""},{"$f":"IF($B330=\"N\",\"\",IF(AND('Enrollment Form'!$C337=\"ROC\",'Enrollment Form'!$DR337<>\"\"),\"Y\",IF(AND('Enrollment Form'!$C337=\"ROC\",'Enrollment Form'!$DR337=\"\"),\"N\",IF(AND('Enrollment Form'!$C337=\"Enroll\",'Enrollment Form'!$B337=\"Subscriber\",'Enrollment Form'!$CX337=\"No\",'Enrollment Form'!$DR337=\"\"),\"N\",IF(AND('Enrollment Form'!$C337=\"Enroll\",'Enrollment Form'!$B337=\"Subscriber\",'Enrollment Form'!$CX337=\"Yes\"),\"-\",\"Y\")))))","v":""},{"$f":"IF($B330=\"N\",\"\",IF(AND('Enrollment Form'!$C337=\"ROC\",'Enrollment Form'!$DS337<>\"\"),\"Y\",IF(AND('Enrollment Form'!$C337=\"ROC\",'Enrollment Form'!$DS337=\"\"),\"N\",IF(AND('Enrollment Form'!$C337=\"Enroll\",'Enrollment Form'!$B337=\"Subscriber\",'Enrollment Form'!$CX337=\"No\",'Enrollment Form'!$DS337=\"\"),\"N\",IF(AND('Enrollment Form'!$C337=\"Enroll\",'Enrollment Form'!$B337=\"Subscriber\",'Enrollment Form'!$CX337=\"Yes\"),\"-\",\"Y\")))))","v":""},{"$f":"IF('Enrollment Form'!AH337=\"\",\"\",IF(ISERROR(SEARCH(\".\",'Enrollment Form'!AH337,SEARCH(\"@\",'Enrollment Form'!AH337))),\"N\",\"Y\"))","v":""},{"$f":"IF(OR($B330=\"N\",'Enrollment Form'!$G337=\"\"),\"\",IF('Enrollment Form'!$B337<>\"Subscriber\",\"-\",IF(COUNTIF('Enrollment Form'!$AV337:$AW337,\"Yes\")=2,\"N\",\"Y\")))","v":""},{"$f":"IF(OR('Enrollment Form'!$CJ337=\"\",'Enrollment Form'!$CJ337=\"No\"),\"-\",IF(AND('Enrollment Form'!$CJ337=\"Yes\",'Enrollment Form'!$CK337=\"\"),\"N\",\"Y\"))","v":"-"},{"$f":"IF(OR('Enrollment Form'!$CL337=\"\",'Enrollment Form'!$CL337=\"No\"),\"-\",IF(AND('Enrollment Form'!$CL337=\"Yes\",'Enrollment Form'!$CM337=\"\"),\"N\",\"Y\"))","v":"-"},{"$f":"IF(OR('Enrollment Form'!$CN337=\"\",'Enrollment Form'!$CN337=\"No\"),\"-\",IF(AND('Enrollment Form'!$CN337=\"Yes\",'Enrollment Form'!$CO337=\"\"),\"N\",\"Y\"))","v":"-"},{"$f":"IF(OR('Enrollment Form'!$CN337=\"\",'Enrollment Form'!$CN337=\"No\"),\"-\",IF(AND('Enrollment Form'!$CN337=\"Yes\",'Enrollment Form'!$CP337=\"\"),\"N\",\"Y\"))","v":"-"},{"$f":"IF('Enrollment Form'!B337<>\"Subscriber\",\"-\",IF(AND('Enrollment Form'!B337=\"Subscriber\",'Enrollment Form'!C337=\"Enroll\",'Enrollment Form'!AA337=\"\"),\"N\",\"Y\"))","v":"-"},{"$f":"IF(OR('Enrollment Form'!B337=\"Subscriber\",'Enrollment Form'!B337=\"\"),\"-\",IF('Enrollment Form'!BP337=\"\",\"N\",\"Y\"))","v":"-"},{"$f":"IF('Enrollment Form'!B337<>\"Subscriber\",\"-\",IF(AND('Enrollment Form'!B337=\"Subscriber\",'Enrollment Form'!G337=\"\"),\"N\",\"Y\"))","v":"-"},{"$f":"IF('Enrollment Form'!A337=\"\",\"\",IF('Enrollment Form'!B337=\"Subscriber\",\"-\",IF(AND('Enrollment Form'!B337<>\"Subscriber\",'Enrollment Form'!G337='Enrollment Form'!H337),\"N\",\"Y\")))","v":""},0]
[338,{"$f":"IF('Enrollment Form'!$A338<>\"\",\"Y\",\"N\")","v":"N"},{"$f":"IF(AND('Enrollment Form'!$B338=\"\",'Enrollment Form'!$C338<>\"\"),\"N\",IF($B331=\"N\",\"\",\"Y\"))","v":""},{"$f":"IF(OR($B331=\"N\",'Enrollment Form'!G338=\"\"),\"\",IF('Enrollment Form'!$B338<>\"Subscriber\",\"\",IF('Enrollment Form'!$G338='Enrollment Form'!$H338,\"Y\",\"N\")))","v":""},{"$f":"IF($B331=\"N\",\"\",IF(AND(COUNTIFS('Enrollment Form'!$H$11:$H$1000,'Enrollment Form'!$H338,'Enrollment Form'!$B$11:$B$1000,'Enrollment Form'!$B338)>1,'Enrollment Form'!$H338<>\"\"),\"N\",\"Y\"))","v":""},{"$f":"IF($B331=\"N\",\"\",IF(LEN('Enrollment Form'!$Y338)=0,\"\",IF(LEN('Enrollment Form'!$Y338)<>5,\"N\",\"Y\")))","v":""},{"$f":"IF($B331=\"N\",\"\",IF(LEN('Enrollment Form'!$AD338=0),\"\",IF(LEN('Enrollment Form'!$AD338)<>5,\"N\",\"Y\")))","v":""},{"$f":"IF($B331=\"N\",\"\",IF(LEN('Enrollment Form'!$BS338=0),\"\",IF(LEN('Enrollment Form'!$BS338)<>5,\"N\",\"Y\")))","v":""},{"$f":"IF($B331=\"N\",\"\",IF(LEN('Enrollment Form'!$AE338)=0,\"\",IF(LEN('Enrollment Form'!$AE338)<>10,\"N\",\"Y\")))","v":""},{"$f":"IF($B331=\"N\",\"\",IF(LEN('Enrollment Form'!$AF338)=0,\"\",IF(LEN('Enrollment Form'!$AF338)<>10,\"N\",\"Y\")))","v":""},{"$f":"IF('Enrollment Form'!$O338<>\"Graded\",\"-\",IF(AND('Enrollment Form'!$O338=\"Graded\",'Enrollment Form'!$AR338<>\"\"),\"Y\",\"N\"))","v":"-"},{"$f":"IF($B331=\"N\",\"\",IF(OR('Enrollment Form'!$B338<>\"Subscriber\",'Enrollment Form'!$C338=\"ROC\"),\"-\",IF(AND('Enrollment Form'!$B338=\"Subscriber\",'Enrollment Form'!$C338=\"Enroll\",'Enrollment Form'!$AJ338<>\"\"),\"Y\",\"N\")))","v":""},{"$f":"IF($B331=\"N\",\"\",IF(OR('Enrollment Form'!$B338<>\"Subscriber\",'Enrollment Form'!$C338=\"ROC\"),\"-\",IF(AND('Enrollment Form'!$B338=\"Subscriber\",'Enrollment Form'!$C338=\"Enroll\",'Enrollment Form'!$AK338<>\"\"),\"Y\",\"N\")))","v":""},{"$f":"IF($B331=\"N\",\"\",IF(OR('Enrollment Form'!$B338<>\"Subscriber\",'Enrollment Form'!$C338=\"ROC\"),\"-\",IF(AND('Enrollment Form'!$B338=\"Subscriber\",'Enrollment Form'!$C338=\"Enroll\",'Enrollment Form'!$AL338<>\"\"),\"Y\",\"N\")))","v":""},{"$f":"IF($B331=\"N\",\"\",IF(OR('Enrollment Form'!$B338<>\"Subscriber\",'Enrollment Form'!$C338=\"ROC\"),\"-\",IF(AND('Enrollment Form'!$B338=\"Subscriber\",'Enrollment Form'!$C338=\"Enroll\",'Enrollment Form'!$AP338<>\"\"),\"Y\",\"N\")))","v":""},{"$f":"IF($B331=\"N\",\"\",IF(OR('Enrollment Form'!$B338<>\"Subscriber\",'Enrollment Form'!$C338=\"ROC\"),\"-\",IF(AND('Enrollment Form'!$B338=\"Subscriber\",'Enrollment Form'!$C338=\"Enroll\",'Enrollment Form'!$AQ338<>\"\"),\"Y\",\"N\")))","v":""},{"$f":"IF($B331=\"N\",\"\",IF(OR('Enrollment Form'!$B338<>\"Subscriber\",'Enrollment Form'!$C338=\"ROC\"),\"-\",IF(AND('Enrollment Form'!$B338=\"Subscriber\",'Enrollment Form'!$C338=\"Enroll\",'Enrollment Form'!$AS338<>\"\"),\"Y\",\"N\")))","v":""},{"$f":"IF($B331=\"N\",\"\",IF($Q331=\"-\",\"-\",IF(AND($Q331=\"Y\",'Enrollment Form'!$AS338=\"No\"),\"-\",IF(AND($Q331=\"Y\",'Enrollment Form'!$AS338=\"Yes\",'Enrollment Form'!$AT338<>\"\"),\"Y\",\"N\"))))","v":""},{"$f":"IF($B331=\"N\",\"\",IF(OR('Enrollment Form'!$B338<>\"Subscriber\",'Enrollment Form'!$C338=\"ROC\"),\"-\",IF(AND('Enrollment Form'!$B338=\"Subscriber\",'Enrollment Form'!$C338=\"Enroll\",'Enrollment Form'!$CV338<>\"\"),\"Y\",\"N\")))","v":""},{"$f":"IF($B331=\"N\",\"\",IF($S331=\"-\",\"-\",IF(AND($S331=\"Y\",'Enrollment Form'!$CV338=\"No\"),\"-\",IF(AND($S331=\"Y\",'Enrollment Form'!$CV338=\"Yes\",'Enrollment Form'!$CW338<>\"\"),\"Y\",\"N\"))))","v":""},{"$f":"IF(OR('Enrollment Form'!$AY338=\"Yes\",'Enrollment Form'!$AY338=\"\"),\"-\",IF(OR(AND('Enrollment Form'!$AY338=\"No\",ISERROR(FIND(\"HMO\",VLOOKUP('Enrollment Form'!G338,'Enrollment Form'!H$11:J$1000,3,FALSE),1))=FALSE,COUNTA('Enrollment Form'!$AZ338:$BC338)=4),AND('Enrollment Form'!$AY338=\"No\",ISERROR(FIND(\"HMO\",VLOOKUP('Enrollment Form'!G338,'Enrollment Form'!H$11:J$1000,3,FALSE),1))=FALSE,COUNTA('Enrollment Form'!$BT338:$BW338)=4)),\"Y\",\"N\"))","v":"-"},{"$f":"IF($B331=\"N\",\"\",IF('Enrollment Form'!$B338=\"Subscriber\",\"-\",IF(COUNTA('Enrollment Form'!$BL338,'Enrollment Form'!$BN338)=2,\"Y\",\"N\")))","v":""},{"$f":"IF($B331=\"N\",\"\",IF(OR('Enrollment Form'!$AX338=\"\",'Enrollment Form'!$AX338=\"No\"),\"-\",IF(AND('Enrollment Form'!$AX338=\"Yes\",COUNTA('Enrollment Form'!$CR338)=1),\"Y\",\"N\")))","v":""},{"$f":"IF(OR('Enrollment Form'!$CR338=\"\",'Enrollment Form'!$CR338=\"No\"),\"-\",IF(COUNTA('Enrollment Form'!$CT338:$CU338)=2,\"Y\",\"N\"))","v":"-"},{"$f":"IF($B331=\"N\",\"\",IF(COUNTIF('Enrollment Form'!$DG338:$DP338,\"Other\")=COUNTA('Enrollment Form'!$DK338,'Enrollment Form'!$DH338,'Enrollment Form'!$DN338,'Enrollment Form'!$DQ338),\"Y\",\"N\"))","v":""},{"$f":"IF($B331=\"N\",\"\",IF(OR('Enrollment Form'!B338<>\"Subscriber\",'Enrollment Form'!C338=\"ROC\",COUNTIF('Enrollment Form'!AV338:AW338,\"Yes\")>=1),\"-\",IF(AND('Enrollment Form'!C338=\"Enroll\",COUNTIF('Enrollment Form'!AV338:AW338,\"No\")=2,'Enrollment Form'!AX338=\"\"),\"N\",\"Y\")))","v":""},{"$f":"IF(OR(B331=\"N\",'Enrollment Form'!B338<>\"Subscriber\",'Enrollment Form'!C338=\"ROC\",'Enrollment Form'!O338<>\"Multiple of Salary\"),\"-\",IF(COUNTA('Enrollment Form'!T338:U338)<2,\"N\",\"Y\"))","v":"-"},{"$f":"IF(B331=\"N\",\"\",IF(OR('Enrollment Form'!C338=\"ROC\",'Enrollment Form'!B338<>\"Subscriber\",'Enrollment Form'!O338=\"Waive\",'Enrollment Form'!O338=\"\"),\"-\",IF('Enrollment Form'!P338=\"\",\"N\",\"Y\")))","v":""},{"$f":"IF($B331=\"N\",\"\",IF(AND('Enrollment Form'!$C338=\"ROC\",'Enrollment Form'!$DR338<>\"\"),\"Y\",IF(AND('Enrollment Form'!$C338=\"ROC\",'Enrollment Form'!$DR338=\"\"),\"N\",IF(AND('Enrollment Form'!$C338=\"Enroll\",'Enrollment Form'!$B338=\"Subscriber\",'Enrollment Form'!$CX338=\"No\",'Enrollment Form'!$DR338=\"\"),\"N\",IF(AND('Enrollment Form'!$C338=\"Enroll\",'Enrollment Form'!$B338=\"Subscriber\",'Enrollment Form'!$CX338=\"Yes\"),\"-\",\"Y\")))))","v":""},{"$f":"IF($B331=\"N\",\"\",IF(AND('Enrollment Form'!$C338=\"ROC\",'Enrollment Form'!$DS338<>\"\"),\"Y\",IF(AND('Enrollment Form'!$C338=\"ROC\",'Enrollment Form'!$DS338=\"\"),\"N\",IF(AND('Enrollment Form'!$C338=\"Enroll\",'Enrollment Form'!$B338=\"Subscriber\",'Enrollment Form'!$CX338=\"No\",'Enrollment Form'!$DS338=\"\"),\"N\",IF(AND('Enrollment Form'!$C338=\"Enroll\",'Enrollment Form'!$B338=\"Subscriber\",'Enrollment Form'!$CX338=\"Yes\"),\"-\",\"Y\")))))","v":""},{"$f":"IF('Enrollment Form'!AH338=\"\",\"\",IF(ISERROR(SEARCH(\".\",'Enrollment Form'!AH338,SEARCH(\"@\",'Enrollment Form'!AH338))),\"N\",\"Y\"))","v":""},{"$f":"IF(OR($B331=\"N\",'Enrollment Form'!$G338=\"\"),\"\",IF('Enrollment Form'!$B338<>\"Subscriber\",\"-\",IF(COUNTIF('Enrollment Form'!$AV338:$AW338,\"Yes\")=2,\"N\",\"Y\")))","v":""},{"$f":"IF(OR('Enrollment Form'!$CJ338=\"\",'Enrollment Form'!$CJ338=\"No\"),\"-\",IF(AND('Enrollment Form'!$CJ338=\"Yes\",'Enrollment Form'!$CK338=\"\"),\"N\",\"Y\"))","v":"-"},{"$f":"IF(OR('Enrollment Form'!$CL338=\"\",'Enrollment Form'!$CL338=\"No\"),\"-\",IF(AND('Enrollment Form'!$CL338=\"Yes\",'Enrollment Form'!$CM338=\"\"),\"N\",\"Y\"))","v":"-"},{"$f":"IF(OR('Enrollment Form'!$CN338=\"\",'Enrollment Form'!$CN338=\"No\"),\"-\",IF(AND('Enrollment Form'!$CN338=\"Yes\",'Enrollment Form'!$CO338=\"\"),\"N\",\"Y\"))","v":"-"},{"$f":"IF(OR('Enrollment Form'!$CN338=\"\",'Enrollment Form'!$CN338=\"No\"),\"-\",IF(AND('Enrollment Form'!$CN338=\"Yes\",'Enrollment Form'!$CP338=\"\"),\"N\",\"Y\"))","v":"-"},{"$f":"IF('Enrollment Form'!B338<>\"Subscriber\",\"-\",IF(AND('Enrollment Form'!B338=\"Subscriber\",'Enrollment Form'!C338=\"Enroll\",'Enrollment Form'!AA338=\"\"),\"N\",\"Y\"))","v":"-"},{"$f":"IF(OR('Enrollment Form'!B338=\"Subscriber\",'Enrollment Form'!B338=\"\"),\"-\",IF('Enrollment Form'!BP338=\"\",\"N\",\"Y\"))","v":"-"},{"$f":"IF('Enrollment Form'!B338<>\"Subscriber\",\"-\",IF(AND('Enrollment Form'!B338=\"Subscriber\",'Enrollment Form'!G338=\"\"),\"N\",\"Y\"))","v":"-"},{"$f":"IF('Enrollment Form'!A338=\"\",\"\",IF('Enrollment Form'!B338=\"Subscriber\",\"-\",IF(AND('Enrollment Form'!B338<>\"Subscriber\",'Enrollment Form'!G338='Enrollment Form'!H338),\"N\",\"Y\")))","v":""},0]
[339,{"$f":"IF('Enrollment Form'!$A339<>\"\",\"Y\",\"N\")","v":"N"},{"$f":"IF(AND('Enrollment Form'!$B339=\"\",'Enrollment Form'!$C339<>\"\"),\"N\",IF($B332=\"N\",\"\",\"Y\"))","v":""},{"$f":"IF(OR($B332=\"N\",'Enrollment Form'!G339=\"\"),\"\",IF('Enrollment Form'!$B339<>\"Subscriber\",\"\",IF('Enrollment Form'!$G339='Enrollment Form'!$H339,\"Y\",\"N\")))","v":""},{"$f":"IF($B332=\"N\",\"\",IF(AND(COUNTIFS('Enrollment Form'!$H$11:$H$1000,'Enrollment Form'!$H339,'Enrollment Form'!$B$11:$B$1000,'Enrollment Form'!$B339)>1,'Enrollment Form'!$H339<>\"\"),\"N\",\"Y\"))","v":""},{"$f":"IF($B332=\"N\",\"\",IF(LEN('Enrollment Form'!$Y339)=0,\"\",IF(LEN('Enrollment Form'!$Y339)<>5,\"N\",\"Y\")))","v":""},{"$f":"IF($B332=\"N\",\"\",IF(LEN('Enrollment Form'!$AD339=0),\"\",IF(LEN('Enrollment Form'!$AD339)<>5,\"N\",\"Y\")))","v":""},{"$f":"IF($B332=\"N\",\"\",IF(LEN('Enrollment Form'!$BS339=0),\"\",IF(LEN('Enrollment Form'!$BS339)<>5,\"N\",\"Y\")))","v":""},{"$f":"IF($B332=\"N\",\"\",IF(LEN('Enrollment Form'!$AE339)=0,\"\",IF(LEN('Enrollment Form'!$AE339)<>10,\"N\",\"Y\")))","v":""},{"$f":"IF($B332=\"N\",\"\",IF(LEN('Enrollment Form'!$AF339)=0,\"\",IF(LEN('Enrollment Form'!$AF339)<>10,\"N\",\"Y\")))","v":""},{"$f":"IF('Enrollment Form'!$O339<>\"Graded\",\"-\",IF(AND('Enrollment Form'!$O339=\"Graded\",'Enrollment Form'!$AR339<>\"\"),\"Y\",\"N\"))","v":"-"},{"$f":"IF($B332=\"N\",\"\",IF(OR('Enrollment Form'!$B339<>\"Subscriber\",'Enrollment Form'!$C339=\"ROC\"),\"-\",IF(AND('Enrollment Form'!$B339=\"Subscriber\",'Enrollment Form'!$C339=\"Enroll\",'Enrollment Form'!$AJ339<>\"\"),\"Y\",\"N\")))","v":""},{"$f":"IF($B332=\"N\",\"\",IF(OR('Enrollment Form'!$B339<>\"Subscriber\",'Enrollment Form'!$C339=\"ROC\"),\"-\",IF(AND('Enrollment Form'!$B339=\"Subscriber\",'Enrollment Form'!$C339=\"Enroll\",'Enrollment Form'!$AK339<>\"\"),\"Y\",\"N\")))","v":""},{"$f":"IF($B332=\"N\",\"\",IF(OR('Enrollment Form'!$B339<>\"Subscriber\",'Enrollment Form'!$C339=\"ROC\"),\"-\",IF(AND('Enrollment Form'!$B339=\"Subscriber\",'Enrollment Form'!$C339=\"Enroll\",'Enrollment Form'!$AL339<>\"\"),\"Y\",\"N\")))","v":""},{"$f":"IF($B332=\"N\",\"\",IF(OR('Enrollment Form'!$B339<>\"Subscriber\",'Enrollment Form'!$C339=\"ROC\"),\"-\",IF(AND('Enrollment Form'!$B339=\"Subscriber\",'Enrollment Form'!$C339=\"Enroll\",'Enrollment Form'!$AP339<>\"\"),\"Y\",\"N\")))","v":""},{"$f":"IF($B332=\"N\",\"\",IF(OR('Enrollment Form'!$B339<>\"Subscriber\",'Enrollment Form'!$C339=\"ROC\"),\"-\",IF(AND('Enrollment Form'!$B339=\"Subscriber\",'Enrollment Form'!$C339=\"Enroll\",'Enrollment Form'!$AQ339<>\"\"),\"Y\",\"N\")))","v":""},{"$f":"IF($B332=\"N\",\"\",IF(OR('Enrollment Form'!$B339<>\"Subscriber\",'Enrollment Form'!$C339=\"ROC\"),\"-\",IF(AND('Enrollment Form'!$B339=\"Subscriber\",'Enrollment Form'!$C339=\"Enroll\",'Enrollment Form'!$AS339<>\"\"),\"Y\",\"N\")))","v":""},{"$f":"IF($B332=\"N\",\"\",IF($Q332=\"-\",\"-\",IF(AND($Q332=\"Y\",'Enrollment Form'!$AS339=\"No\"),\"-\",IF(AND($Q332=\"Y\",'Enrollment Form'!$AS339=\"Yes\",'Enrollment Form'!$AT339<>\"\"),\"Y\",\"N\"))))","v":""},{"$f":"IF($B332=\"N\",\"\",IF(OR('Enrollment Form'!$B339<>\"Subscriber\",'Enrollment Form'!$C339=\"ROC\"),\"-\",IF(AND('Enrollment Form'!$B339=\"Subscriber\",'Enrollment Form'!$C339=\"Enroll\",'Enrollment Form'!$CV339<>\"\"),\"Y\",\"N\")))","v":""},{"$f":"IF($B332=\"N\",\"\",IF($S332=\"-\",\"-\",IF(AND($S332=\"Y\",'Enrollment Form'!$CV339=\"No\"),\"-\",IF(AND($S332=\"Y\",'Enrollment Form'!$CV339=\"Yes\",'Enrollment Form'!$CW339<>\"\"),\"Y\",\"N\"))))","v":""},{"$f":"IF(OR('Enrollment Form'!$AY339=\"Yes\",'Enrollment Form'!$AY339=\"\"),\"-\",IF(OR(AND('Enrollment Form'!$AY339=\"No\",ISERROR(FIND(\"HMO\",VLOOKUP('Enrollment Form'!G339,'Enrollment Form'!H$11:J$1000,3,FALSE),1))=FALSE,COUNTA('Enrollment Form'!$AZ339:$BC339)=4),AND('Enrollment Form'!$AY339=\"No\",ISERROR(FIND(\"HMO\",VLOOKUP('Enrollment Form'!G339,'Enrollment Form'!H$11:J$1000,3,FALSE),1))=FALSE,COUNTA('Enrollment Form'!$BT339:$BW339)=4)),\"Y\",\"N\"))","v":"-"},{"$f":"IF($B332=\"N\",\"\",IF('Enrollment Form'!$B339=\"Subscriber\",\"-\",IF(COUNTA('Enrollment Form'!$BL339,'Enrollment Form'!$BN339)=2,\"Y\",\"N\")))","v":""},{"$f":"IF($B332=\"N\",\"\",IF(OR('Enrollment Form'!$AX339=\"\",'Enrollment Form'!$AX339=\"No\"),\"-\",IF(AND('Enrollment Form'!$AX339=\"Yes\",COUNTA('Enrollment Form'!$CR339)=1),\"Y\",\"N\")))","v":""},{"$f":"IF(OR('Enrollment Form'!$CR339=\"\",'Enrollment Form'!$CR339=\"No\"),\"-\",IF(COUNTA('Enrollment Form'!$CT339:$CU339)=2,\"Y\",\"N\"))","v":"-"},{"$f":"IF($B332=\"N\",\"\",IF(COUNTIF('Enrollment Form'!$DG339:$DP339,\"Other\")=COUNTA('Enrollment Form'!$DK339,'Enrollment Form'!$DH339,'Enrollment Form'!$DN339,'Enrollment Form'!$DQ339),\"Y\",\"N\"))","v":""},{"$f":"IF($B332=\"N\",\"\",IF(OR('Enrollment Form'!B339<>\"Subscriber\",'Enrollment Form'!C339=\"ROC\",COUNTIF('Enrollment Form'!AV339:AW339,\"Yes\")>=1),\"-\",IF(AND('Enrollment Form'!C339=\"Enroll\",COUNTIF('Enrollment Form'!AV339:AW339,\"No\")=2,'Enrollment Form'!AX339=\"\"),\"N\",\"Y\")))","v":""},{"$f":"IF(OR(B332=\"N\",'Enrollment Form'!B339<>\"Subscriber\",'Enrollment Form'!C339=\"ROC\",'Enrollment Form'!O339<>\"Multiple of Salary\"),\"-\",IF(COUNTA('Enrollment Form'!T339:U339)<2,\"N\",\"Y\"))","v":"-"},{"$f":"IF(B332=\"N\",\"\",IF(OR('Enrollment Form'!C339=\"ROC\",'Enrollment Form'!B339<>\"Subscriber\",'Enrollment Form'!O339=\"Waive\",'Enrollment Form'!O339=\"\"),\"-\",IF('Enrollment Form'!P339=\"\",\"N\",\"Y\")))","v":""},{"$f":"IF($B332=\"N\",\"\",IF(AND('Enrollment Form'!$C339=\"ROC\",'Enrollment Form'!$DR339<>\"\"),\"Y\",IF(AND('Enrollment Form'!$C339=\"ROC\",'Enrollment Form'!$DR339=\"\"),\"N\",IF(AND('Enrollment Form'!$C339=\"Enroll\",'Enrollment Form'!$B339=\"Subscriber\",'Enrollment Form'!$CX339=\"No\",'Enrollment Form'!$DR339=\"\"),\"N\",IF(AND('Enrollment Form'!$C339=\"Enroll\",'Enrollment Form'!$B339=\"Subscriber\",'Enrollment Form'!$CX339=\"Yes\"),\"-\",\"Y\")))))","v":""},{"$f":"IF($B332=\"N\",\"\",IF(AND('Enrollment Form'!$C339=\"ROC\",'Enrollment Form'!$DS339<>\"\"),\"Y\",IF(AND('Enrollment Form'!$C339=\"ROC\",'Enrollment Form'!$DS339=\"\"),\"N\",IF(AND('Enrollment Form'!$C339=\"Enroll\",'Enrollment Form'!$B339=\"Subscriber\",'Enrollment Form'!$CX339=\"No\",'Enrollment Form'!$DS339=\"\"),\"N\",IF(AND('Enrollment Form'!$C339=\"Enroll\",'Enrollment Form'!$B339=\"Subscriber\",'Enrollment Form'!$CX339=\"Yes\"),\"-\",\"Y\")))))","v":""},{"$f":"IF('Enrollment Form'!AH339=\"\",\"\",IF(ISERROR(SEARCH(\".\",'Enrollment Form'!AH339,SEARCH(\"@\",'Enrollment Form'!AH339))),\"N\",\"Y\"))","v":""},{"$f":"IF(OR($B332=\"N\",'Enrollment Form'!$G339=\"\"),\"\",IF('Enrollment Form'!$B339<>\"Subscriber\",\"-\",IF(COUNTIF('Enrollment Form'!$AV339:$AW339,\"Yes\")=2,\"N\",\"Y\")))","v":""},{"$f":"IF(OR('Enrollment Form'!$CJ339=\"\",'Enrollment Form'!$CJ339=\"No\"),\"-\",IF(AND('Enrollment Form'!$CJ339=\"Yes\",'Enrollment Form'!$CK339=\"\"),\"N\",\"Y\"))","v":"-"},{"$f":"IF(OR('Enrollment Form'!$CL339=\"\",'Enrollment Form'!$CL339=\"No\"),\"-\",IF(AND('Enrollment Form'!$CL339=\"Yes\",'Enrollment Form'!$CM339=\"\"),\"N\",\"Y\"))","v":"-"},{"$f":"IF(OR('Enrollment Form'!$CN339=\"\",'Enrollment Form'!$CN339=\"No\"),\"-\",IF(AND('Enrollment Form'!$CN339=\"Yes\",'Enrollment Form'!$CO339=\"\"),\"N\",\"Y\"))","v":"-"},{"$f":"IF(OR('Enrollment Form'!$CN339=\"\",'Enrollment Form'!$CN339=\"No\"),\"-\",IF(AND('Enrollment Form'!$CN339=\"Yes\",'Enrollment Form'!$CP339=\"\"),\"N\",\"Y\"))","v":"-"},{"$f":"IF('Enrollment Form'!B339<>\"Subscriber\",\"-\",IF(AND('Enrollment Form'!B339=\"Subscriber\",'Enrollment Form'!C339=\"Enroll\",'Enrollment Form'!AA339=\"\"),\"N\",\"Y\"))","v":"-"},{"$f":"IF(OR('Enrollment Form'!B339=\"Subscriber\",'Enrollment Form'!B339=\"\"),\"-\",IF('Enrollment Form'!BP339=\"\",\"N\",\"Y\"))","v":"-"},{"$f":"IF('Enrollment Form'!B339<>\"Subscriber\",\"-\",IF(AND('Enrollment Form'!B339=\"Subscriber\",'Enrollment Form'!G339=\"\"),\"N\",\"Y\"))","v":"-"},{"$f":"IF('Enrollment Form'!A339=\"\",\"\",IF('Enrollment Form'!B339=\"Subscriber\",\"-\",IF(AND('Enrollment Form'!B339<>\"Subscriber\",'Enrollment Form'!G339='Enrollment Form'!H339),\"N\",\"Y\")))","v":""},0]
[340,{"$f":"IF('Enrollment Form'!$A340<>\"\",\"Y\",\"N\")","v":"N"},{"$f":"IF(AND('Enrollment Form'!$B340=\"\",'Enrollment Form'!$C340<>\"\"),\"N\",IF($B333=\"N\",\"\",\"Y\"))","v":""},{"$f":"IF(OR($B333=\"N\",'Enrollment Form'!G340=\"\"),\"\",IF('Enrollment Form'!$B340<>\"Subscriber\",\"\",IF('Enrollment Form'!$G340='Enrollment Form'!$H340,\"Y\",\"N\")))","v":""},{"$f":"IF($B333=\"N\",\"\",IF(AND(COUNTIFS('Enrollment Form'!$H$11:$H$1000,'Enrollment Form'!$H340,'Enrollment Form'!$B$11:$B$1000,'Enrollment Form'!$B340)>1,'Enrollment Form'!$H340<>\"\"),\"N\",\"Y\"))","v":""},{"$f":"IF($B333=\"N\",\"\",IF(LEN('Enrollment Form'!$Y340)=0,\"\",IF(LEN('Enrollment Form'!$Y340)<>5,\"N\",\"Y\")))","v":""},{"$f":"IF($B333=\"N\",\"\",IF(LEN('Enrollment Form'!$AD340=0),\"\",IF(LEN('Enrollment Form'!$AD340)<>5,\"N\",\"Y\")))","v":""},{"$f":"IF($B333=\"N\",\"\",IF(LEN('Enrollment Form'!$BS340=0),\"\",IF(LEN('Enrollment Form'!$BS340)<>5,\"N\",\"Y\")))","v":""},{"$f":"IF($B333=\"N\",\"\",IF(LEN('Enrollment Form'!$AE340)=0,\"\",IF(LEN('Enrollment Form'!$AE340)<>10,\"N\",\"Y\")))","v":""},{"$f":"IF($B333=\"N\",\"\",IF(LEN('Enrollment Form'!$AF340)=0,\"\",IF(LEN('Enrollment Form'!$AF340)<>10,\"N\",\"Y\")))","v":""},{"$f":"IF('Enrollment Form'!$O340<>\"Graded\",\"-\",IF(AND('Enrollment Form'!$O340=\"Graded\",'Enrollment Form'!$AR340<>\"\"),\"Y\",\"N\"))","v":"-"},{"$f":"IF($B333=\"N\",\"\",IF(OR('Enrollment Form'!$B340<>\"Subscriber\",'Enrollment Form'!$C340=\"ROC\"),\"-\",IF(AND('Enrollment Form'!$B340=\"Subscriber\",'Enrollment Form'!$C340=\"Enroll\",'Enrollment Form'!$AJ340<>\"\"),\"Y\",\"N\")))","v":""},{"$f":"IF($B333=\"N\",\"\",IF(OR('Enrollment Form'!$B340<>\"Subscriber\",'Enrollment Form'!$C340=\"ROC\"),\"-\",IF(AND('Enrollment Form'!$B340=\"Subscriber\",'Enrollment Form'!$C340=\"Enroll\",'Enrollment Form'!$AK340<>\"\"),\"Y\",\"N\")))","v":""},{"$f":"IF($B333=\"N\",\"\",IF(OR('Enrollment Form'!$B340<>\"Subscriber\",'Enrollment Form'!$C340=\"ROC\"),\"-\",IF(AND('Enrollment Form'!$B340=\"Subscriber\",'Enrollment Form'!$C340=\"Enroll\",'Enrollment Form'!$AL340<>\"\"),\"Y\",\"N\")))","v":""},{"$f":"IF($B333=\"N\",\"\",IF(OR('Enrollment Form'!$B340<>\"Subscriber\",'Enrollment Form'!$C340=\"ROC\"),\"-\",IF(AND('Enrollment Form'!$B340=\"Subscriber\",'Enrollment Form'!$C340=\"Enroll\",'Enrollment Form'!$AP340<>\"\"),\"Y\",\"N\")))","v":""},{"$f":"IF($B333=\"N\",\"\",IF(OR('Enrollment Form'!$B340<>\"Subscriber\",'Enrollment Form'!$C340=\"ROC\"),\"-\",IF(AND('Enrollment Form'!$B340=\"Subscriber\",'Enrollment Form'!$C340=\"Enroll\",'Enrollment Form'!$AQ340<>\"\"),\"Y\",\"N\")))","v":""},{"$f":"IF($B333=\"N\",\"\",IF(OR('Enrollment Form'!$B340<>\"Subscriber\",'Enrollment Form'!$C340=\"ROC\"),\"-\",IF(AND('Enrollment Form'!$B340=\"Subscriber\",'Enrollment Form'!$C340=\"Enroll\",'Enrollment Form'!$AS340<>\"\"),\"Y\",\"N\")))","v":""},{"$f":"IF($B333=\"N\",\"\",IF($Q333=\"-\",\"-\",IF(AND($Q333=\"Y\",'Enrollment Form'!$AS340=\"No\"),\"-\",IF(AND($Q333=\"Y\",'Enrollment Form'!$AS340=\"Yes\",'Enrollment Form'!$AT340<>\"\"),\"Y\",\"N\"))))","v":""},{"$f":"IF($B333=\"N\",\"\",IF(OR('Enrollment Form'!$B340<>\"Subscriber\",'Enrollment Form'!$C340=\"ROC\"),\"-\",IF(AND('Enrollment Form'!$B340=\"Subscriber\",'Enrollment Form'!$C340=\"Enroll\",'Enrollment Form'!$CV340<>\"\"),\"Y\",\"N\")))","v":""},{"$f":"IF($B333=\"N\",\"\",IF($S333=\"-\",\"-\",IF(AND($S333=\"Y\",'Enrollment Form'!$CV340=\"No\"),\"-\",IF(AND($S333=\"Y\",'Enrollment Form'!$CV340=\"Yes\",'Enrollment Form'!$CW340<>\"\"),\"Y\",\"N\"))))","v":""},{"$f":"IF(OR('Enrollment Form'!$AY340=\"Yes\",'Enrollment Form'!$AY340=\"\"),\"-\",IF(OR(AND('Enrollment Form'!$AY340=\"No\",ISERROR(FIND(\"HMO\",VLOOKUP('Enrollment Form'!G340,'Enrollment Form'!H$11:J$1000,3,FALSE),1))=FALSE,COUNTA('Enrollment Form'!$AZ340:$BC340)=4),AND('Enrollment Form'!$AY340=\"No\",ISERROR(FIND(\"HMO\",VLOOKUP('Enrollment Form'!G340,'Enrollment Form'!H$11:J$1000,3,FALSE),1))=FALSE,COUNTA('Enrollment Form'!$BT340:$BW340)=4)),\"Y\",\"N\"))","v":"-"},{"$f":"IF($B333=\"N\",\"\",IF('Enrollment Form'!$B340=\"Subscriber\",\"-\",IF(COUNTA('Enrollment Form'!$BL340,'Enrollment Form'!$BN340)=2,\"Y\",\"N\")))","v":""},{"$f":"IF($B333=\"N\",\"\",IF(OR('Enrollment Form'!$AX340=\"\",'Enrollment Form'!$AX340=\"No\"),\"-\",IF(AND('Enrollment Form'!$AX340=\"Yes\",COUNTA('Enrollment Form'!$CR340)=1),\"Y\",\"N\")))","v":""},{"$f":"IF(OR('Enrollment Form'!$CR340=\"\",'Enrollment Form'!$CR340=\"No\"),\"-\",IF(COUNTA('Enrollment Form'!$CT340:$CU340)=2,\"Y\",\"N\"))","v":"-"},{"$f":"IF($B333=\"N\",\"\",IF(COUNTIF('Enrollment Form'!$DG340:$DP340,\"Other\")=COUNTA('Enrollment Form'!$DK340,'Enrollment Form'!$DH340,'Enrollment Form'!$DN340,'Enrollment Form'!$DQ340),\"Y\",\"N\"))","v":""},{"$f":"IF($B333=\"N\",\"\",IF(OR('Enrollment Form'!B340<>\"Subscriber\",'Enrollment Form'!C340=\"ROC\",COUNTIF('Enrollment Form'!AV340:AW340,\"Yes\")>=1),\"-\",IF(AND('Enrollment Form'!C340=\"Enroll\",COUNTIF('Enrollment Form'!AV340:AW340,\"No\")=2,'Enrollment Form'!AX340=\"\"),\"N\",\"Y\")))","v":""},{"$f":"IF(OR(B333=\"N\",'Enrollment Form'!B340<>\"Subscriber\",'Enrollment Form'!C340=\"ROC\",'Enrollment Form'!O340<>\"Multiple of Salary\"),\"-\",IF(COUNTA('Enrollment Form'!T340:U340)<2,\"N\",\"Y\"))","v":"-"},{"$f":"IF(B333=\"N\",\"\",IF(OR('Enrollment Form'!C340=\"ROC\",'Enrollment Form'!B340<>\"Subscriber\",'Enrollment Form'!O340=\"Waive\",'Enrollment Form'!O340=\"\"),\"-\",IF('Enrollment Form'!P340=\"\",\"N\",\"Y\")))","v":""},{"$f":"IF($B333=\"N\",\"\",IF(AND('Enrollment Form'!$C340=\"ROC\",'Enrollment Form'!$DR340<>\"\"),\"Y\",IF(AND('Enrollment Form'!$C340=\"ROC\",'Enrollment Form'!$DR340=\"\"),\"N\",IF(AND('Enrollment Form'!$C340=\"Enroll\",'Enrollment Form'!$B340=\"Subscriber\",'Enrollment Form'!$CX340=\"No\",'Enrollment Form'!$DR340=\"\"),\"N\",IF(AND('Enrollment Form'!$C340=\"Enroll\",'Enrollment Form'!$B340=\"Subscriber\",'Enrollment Form'!$CX340=\"Yes\"),\"-\",\"Y\")))))","v":""},{"$f":"IF($B333=\"N\",\"\",IF(AND('Enrollment Form'!$C340=\"ROC\",'Enrollment Form'!$DS340<>\"\"),\"Y\",IF(AND('Enrollment Form'!$C340=\"ROC\",'Enrollment Form'!$DS340=\"\"),\"N\",IF(AND('Enrollment Form'!$C340=\"Enroll\",'Enrollment Form'!$B340=\"Subscriber\",'Enrollment Form'!$CX340=\"No\",'Enrollment Form'!$DS340=\"\"),\"N\",IF(AND('Enrollment Form'!$C340=\"Enroll\",'Enrollment Form'!$B340=\"Subscriber\",'Enrollment Form'!$CX340=\"Yes\"),\"-\",\"Y\")))))","v":""},{"$f":"IF('Enrollment Form'!AH340=\"\",\"\",IF(ISERROR(SEARCH(\".\",'Enrollment Form'!AH340,SEARCH(\"@\",'Enrollment Form'!AH340))),\"N\",\"Y\"))","v":""},{"$f":"IF(OR($B333=\"N\",'Enrollment Form'!$G340=\"\"),\"\",IF('Enrollment Form'!$B340<>\"Subscriber\",\"-\",IF(COUNTIF('Enrollment Form'!$AV340:$AW340,\"Yes\")=2,\"N\",\"Y\")))","v":""},{"$f":"IF(OR('Enrollment Form'!$CJ340=\"\",'Enrollment Form'!$CJ340=\"No\"),\"-\",IF(AND('Enrollment Form'!$CJ340=\"Yes\",'Enrollment Form'!$CK340=\"\"),\"N\",\"Y\"))","v":"-"},{"$f":"IF(OR('Enrollment Form'!$CL340=\"\",'Enrollment Form'!$CL340=\"No\"),\"-\",IF(AND('Enrollment Form'!$CL340=\"Yes\",'Enrollment Form'!$CM340=\"\"),\"N\",\"Y\"))","v":"-"},{"$f":"IF(OR('Enrollment Form'!$CN340=\"\",'Enrollment Form'!$CN340=\"No\"),\"-\",IF(AND('Enrollment Form'!$CN340=\"Yes\",'Enrollment Form'!$CO340=\"\"),\"N\",\"Y\"))","v":"-"},{"$f":"IF(OR('Enrollment Form'!$CN340=\"\",'Enrollment Form'!$CN340=\"No\"),\"-\",IF(AND('Enrollment Form'!$CN340=\"Yes\",'Enrollment Form'!$CP340=\"\"),\"N\",\"Y\"))","v":"-"},{"$f":"IF('Enrollment Form'!B340<>\"Subscriber\",\"-\",IF(AND('Enrollment Form'!B340=\"Subscriber\",'Enrollment Form'!C340=\"Enroll\",'Enrollment Form'!AA340=\"\"),\"N\",\"Y\"))","v":"-"},{"$f":"IF(OR('Enrollment Form'!B340=\"Subscriber\",'Enrollment Form'!B340=\"\"),\"-\",IF('Enrollment Form'!BP340=\"\",\"N\",\"Y\"))","v":"-"},{"$f":"IF('Enrollment Form'!B340<>\"Subscriber\",\"-\",IF(AND('Enrollment Form'!B340=\"Subscriber\",'Enrollment Form'!G340=\"\"),\"N\",\"Y\"))","v":"-"},{"$f":"IF('Enrollment Form'!A340=\"\",\"\",IF('Enrollment Form'!B340=\"Subscriber\",\"-\",IF(AND('Enrollment Form'!B340<>\"Subscriber\",'Enrollment Form'!G340='Enrollment Form'!H340),\"N\",\"Y\")))","v":""},0]
[341,{"$f":"IF('Enrollment Form'!$A341<>\"\",\"Y\",\"N\")","v":"N"},{"$f":"IF(AND('Enrollment Form'!$B341=\"\",'Enrollment Form'!$C341<>\"\"),\"N\",IF($B334=\"N\",\"\",\"Y\"))","v":""},{"$f":"IF(OR($B334=\"N\",'Enrollment Form'!G341=\"\"),\"\",IF('Enrollment Form'!$B341<>\"Subscriber\",\"\",IF('Enrollment Form'!$G341='Enrollment Form'!$H341,\"Y\",\"N\")))","v":""},{"$f":"IF($B334=\"N\",\"\",IF(AND(COUNTIFS('Enrollment Form'!$H$11:$H$1000,'Enrollment Form'!$H341,'Enrollment Form'!$B$11:$B$1000,'Enrollment Form'!$B341)>1,'Enrollment Form'!$H341<>\"\"),\"N\",\"Y\"))","v":""},{"$f":"IF($B334=\"N\",\"\",IF(LEN('Enrollment Form'!$Y341)=0,\"\",IF(LEN('Enrollment Form'!$Y341)<>5,\"N\",\"Y\")))","v":""},{"$f":"IF($B334=\"N\",\"\",IF(LEN('Enrollment Form'!$AD341=0),\"\",IF(LEN('Enrollment Form'!$AD341)<>5,\"N\",\"Y\")))","v":""},{"$f":"IF($B334=\"N\",\"\",IF(LEN('Enrollment Form'!$BS341=0),\"\",IF(LEN('Enrollment Form'!$BS341)<>5,\"N\",\"Y\")))","v":""},{"$f":"IF($B334=\"N\",\"\",IF(LEN('Enrollment Form'!$AE341)=0,\"\",IF(LEN('Enrollment Form'!$AE341)<>10,\"N\",\"Y\")))","v":""},{"$f":"IF($B334=\"N\",\"\",IF(LEN('Enrollment Form'!$AF341)=0,\"\",IF(LEN('Enrollment Form'!$AF341)<>10,\"N\",\"Y\")))","v":""},{"$f":"IF('Enrollment Form'!$O341<>\"Graded\",\"-\",IF(AND('Enrollment Form'!$O341=\"Graded\",'Enrollment Form'!$AR341<>\"\"),\"Y\",\"N\"))","v":"-"},{"$f":"IF($B334=\"N\",\"\",IF(OR('Enrollment Form'!$B341<>\"Subscriber\",'Enrollment Form'!$C341=\"ROC\"),\"-\",IF(AND('Enrollment Form'!$B341=\"Subscriber\",'Enrollment Form'!$C341=\"Enroll\",'Enrollment Form'!$AJ341<>\"\"),\"Y\",\"N\")))","v":""},{"$f":"IF($B334=\"N\",\"\",IF(OR('Enrollment Form'!$B341<>\"Subscriber\",'Enrollment Form'!$C341=\"ROC\"),\"-\",IF(AND('Enrollment Form'!$B341=\"Subscriber\",'Enrollment Form'!$C341=\"Enroll\",'Enrollment Form'!$AK341<>\"\"),\"Y\",\"N\")))","v":""},{"$f":"IF($B334=\"N\",\"\",IF(OR('Enrollment Form'!$B341<>\"Subscriber\",'Enrollment Form'!$C341=\"ROC\"),\"-\",IF(AND('Enrollment Form'!$B341=\"Subscriber\",'Enrollment Form'!$C341=\"Enroll\",'Enrollment Form'!$AL341<>\"\"),\"Y\",\"N\")))","v":""},{"$f":"IF($B334=\"N\",\"\",IF(OR('Enrollment Form'!$B341<>\"Subscriber\",'Enrollment Form'!$C341=\"ROC\"),\"-\",IF(AND('Enrollment Form'!$B341=\"Subscriber\",'Enrollment Form'!$C341=\"Enroll\",'Enrollment Form'!$AP341<>\"\"),\"Y\",\"N\")))","v":""},{"$f":"IF($B334=\"N\",\"\",IF(OR('Enrollment Form'!$B341<>\"Subscriber\",'Enrollment Form'!$C341=\"ROC\"),\"-\",IF(AND('Enrollment Form'!$B341=\"Subscriber\",'Enrollment Form'!$C341=\"Enroll\",'Enrollment Form'!$AQ341<>\"\"),\"Y\",\"N\")))","v":""},{"$f":"IF($B334=\"N\",\"\",IF(OR('Enrollment Form'!$B341<>\"Subscriber\",'Enrollment Form'!$C341=\"ROC\"),\"-\",IF(AND('Enrollment Form'!$B341=\"Subscriber\",'Enrollment Form'!$C341=\"Enroll\",'Enrollment Form'!$AS341<>\"\"),\"Y\",\"N\")))","v":""},{"$f":"IF($B334=\"N\",\"\",IF($Q334=\"-\",\"-\",IF(AND($Q334=\"Y\",'Enrollment Form'!$AS341=\"No\"),\"-\",IF(AND($Q334=\"Y\",'Enrollment Form'!$AS341=\"Yes\",'Enrollment Form'!$AT341<>\"\"),\"Y\",\"N\"))))","v":""},{"$f":"IF($B334=\"N\",\"\",IF(OR('Enrollment Form'!$B341<>\"Subscriber\",'Enrollment Form'!$C341=\"ROC\"),\"-\",IF(AND('Enrollment Form'!$B341=\"Subscriber\",'Enrollment Form'!$C341=\"Enroll\",'Enrollment Form'!$CV341<>\"\"),\"Y\",\"N\")))","v":""},{"$f":"IF($B334=\"N\",\"\",IF($S334=\"-\",\"-\",IF(AND($S334=\"Y\",'Enrollment Form'!$CV341=\"No\"),\"-\",IF(AND($S334=\"Y\",'Enrollment Form'!$CV341=\"Yes\",'Enrollment Form'!$CW341<>\"\"),\"Y\",\"N\"))))","v":""},{"$f":"IF(OR('Enrollment Form'!$AY341=\"Yes\",'Enrollment Form'!$AY341=\"\"),\"-\",IF(OR(AND('Enrollment Form'!$AY341=\"No\",ISERROR(FIND(\"HMO\",VLOOKUP('Enrollment Form'!G341,'Enrollment Form'!H$11:J$1000,3,FALSE),1))=FALSE,COUNTA('Enrollment Form'!$AZ341:$BC341)=4),AND('Enrollment Form'!$AY341=\"No\",ISERROR(FIND(\"HMO\",VLOOKUP('Enrollment Form'!G341,'Enrollment Form'!H$11:J$1000,3,FALSE),1))=FALSE,COUNTA('Enrollment Form'!$BT341:$BW341)=4)),\"Y\",\"N\"))","v":"-"},{"$f":"IF($B334=\"N\",\"\",IF('Enrollment Form'!$B341=\"Subscriber\",\"-\",IF(COUNTA('Enrollment Form'!$BL341,'Enrollment Form'!$BN341)=2,\"Y\",\"N\")))","v":""},{"$f":"IF($B334=\"N\",\"\",IF(OR('Enrollment Form'!$AX341=\"\",'Enrollment Form'!$AX341=\"No\"),\"-\",IF(AND('Enrollment Form'!$AX341=\"Yes\",COUNTA('Enrollment Form'!$CR341)=1),\"Y\",\"N\")))","v":""},{"$f":"IF(OR('Enrollment Form'!$CR341=\"\",'Enrollment Form'!$CR341=\"No\"),\"-\",IF(COUNTA('Enrollment Form'!$CT341:$CU341)=2,\"Y\",\"N\"))","v":"-"},{"$f":"IF($B334=\"N\",\"\",IF(COUNTIF('Enrollment Form'!$DG341:$DP341,\"Other\")=COUNTA('Enrollment Form'!$DK341,'Enrollment Form'!$DH341,'Enrollment Form'!$DN341,'Enrollment Form'!$DQ341),\"Y\",\"N\"))","v":""},{"$f":"IF($B334=\"N\",\"\",IF(OR('Enrollment Form'!B341<>\"Subscriber\",'Enrollment Form'!C341=\"ROC\",COUNTIF('Enrollment Form'!AV341:AW341,\"Yes\")>=1),\"-\",IF(AND('Enrollment Form'!C341=\"Enroll\",COUNTIF('Enrollment Form'!AV341:AW341,\"No\")=2,'Enrollment Form'!AX341=\"\"),\"N\",\"Y\")))","v":""},{"$f":"IF(OR(B334=\"N\",'Enrollment Form'!B341<>\"Subscriber\",'Enrollment Form'!C341=\"ROC\",'Enrollment Form'!O341<>\"Multiple of Salary\"),\"-\",IF(COUNTA('Enrollment Form'!T341:U341)<2,\"N\",\"Y\"))","v":"-"},{"$f":"IF(B334=\"N\",\"\",IF(OR('Enrollment Form'!C341=\"ROC\",'Enrollment Form'!B341<>\"Subscriber\",'Enrollment Form'!O341=\"Waive\",'Enrollment Form'!O341=\"\"),\"-\",IF('Enrollment Form'!P341=\"\",\"N\",\"Y\")))","v":""},{"$f":"IF($B334=\"N\",\"\",IF(AND('Enrollment Form'!$C341=\"ROC\",'Enrollment Form'!$DR341<>\"\"),\"Y\",IF(AND('Enrollment Form'!$C341=\"ROC\",'Enrollment Form'!$DR341=\"\"),\"N\",IF(AND('Enrollment Form'!$C341=\"Enroll\",'Enrollment Form'!$B341=\"Subscriber\",'Enrollment Form'!$CX341=\"No\",'Enrollment Form'!$DR341=\"\"),\"N\",IF(AND('Enrollment Form'!$C341=\"Enroll\",'Enrollment Form'!$B341=\"Subscriber\",'Enrollment Form'!$CX341=\"Yes\"),\"-\",\"Y\")))))","v":""},{"$f":"IF($B334=\"N\",\"\",IF(AND('Enrollment Form'!$C341=\"ROC\",'Enrollment Form'!$DS341<>\"\"),\"Y\",IF(AND('Enrollment Form'!$C341=\"ROC\",'Enrollment Form'!$DS341=\"\"),\"N\",IF(AND('Enrollment Form'!$C341=\"Enroll\",'Enrollment Form'!$B341=\"Subscriber\",'Enrollment Form'!$CX341=\"No\",'Enrollment Form'!$DS341=\"\"),\"N\",IF(AND('Enrollment Form'!$C341=\"Enroll\",'Enrollment Form'!$B341=\"Subscriber\",'Enrollment Form'!$CX341=\"Yes\"),\"-\",\"Y\")))))","v":""},{"$f":"IF('Enrollment Form'!AH341=\"\",\"\",IF(ISERROR(SEARCH(\".\",'Enrollment Form'!AH341,SEARCH(\"@\",'Enrollment Form'!AH341))),\"N\",\"Y\"))","v":""},{"$f":"IF(OR($B334=\"N\",'Enrollment Form'!$G341=\"\"),\"\",IF('Enrollment Form'!$B341<>\"Subscriber\",\"-\",IF(COUNTIF('Enrollment Form'!$AV341:$AW341,\"Yes\")=2,\"N\",\"Y\")))","v":""},{"$f":"IF(OR('Enrollment Form'!$CJ341=\"\",'Enrollment Form'!$CJ341=\"No\"),\"-\",IF(AND('Enrollment Form'!$CJ341=\"Yes\",'Enrollment Form'!$CK341=\"\"),\"N\",\"Y\"))","v":"-"},{"$f":"IF(OR('Enrollment Form'!$CL341=\"\",'Enrollment Form'!$CL341=\"No\"),\"-\",IF(AND('Enrollment Form'!$CL341=\"Yes\",'Enrollment Form'!$CM341=\"\"),\"N\",\"Y\"))","v":"-"},{"$f":"IF(OR('Enrollment Form'!$CN341=\"\",'Enrollment Form'!$CN341=\"No\"),\"-\",IF(AND('Enrollment Form'!$CN341=\"Yes\",'Enrollment Form'!$CO341=\"\"),\"N\",\"Y\"))","v":"-"},{"$f":"IF(OR('Enrollment Form'!$CN341=\"\",'Enrollment Form'!$CN341=\"No\"),\"-\",IF(AND('Enrollment Form'!$CN341=\"Yes\",'Enrollment Form'!$CP341=\"\"),\"N\",\"Y\"))","v":"-"},{"$f":"IF('Enrollment Form'!B341<>\"Subscriber\",\"-\",IF(AND('Enrollment Form'!B341=\"Subscriber\",'Enrollment Form'!C341=\"Enroll\",'Enrollment Form'!AA341=\"\"),\"N\",\"Y\"))","v":"-"},{"$f":"IF(OR('Enrollment Form'!B341=\"Subscriber\",'Enrollment Form'!B341=\"\"),\"-\",IF('Enrollment Form'!BP341=\"\",\"N\",\"Y\"))","v":"-"},{"$f":"IF('Enrollment Form'!B341<>\"Subscriber\",\"-\",IF(AND('Enrollment Form'!B341=\"Subscriber\",'Enrollment Form'!G341=\"\"),\"N\",\"Y\"))","v":"-"},{"$f":"IF('Enrollment Form'!A341=\"\",\"\",IF('Enrollment Form'!B341=\"Subscriber\",\"-\",IF(AND('Enrollment Form'!B341<>\"Subscriber\",'Enrollment Form'!G341='Enrollment Form'!H341),\"N\",\"Y\")))","v":""},0]
[342,{"$f":"IF('Enrollment Form'!$A342<>\"\",\"Y\",\"N\")","v":"N"},{"$f":"IF(AND('Enrollment Form'!$B342=\"\",'Enrollment Form'!$C342<>\"\"),\"N\",IF($B335=\"N\",\"\",\"Y\"))","v":""},{"$f":"IF(OR($B335=\"N\",'Enrollment Form'!G342=\"\"),\"\",IF('Enrollment Form'!$B342<>\"Subscriber\",\"\",IF('Enrollment Form'!$G342='Enrollment Form'!$H342,\"Y\",\"N\")))","v":""},{"$f":"IF($B335=\"N\",\"\",IF(AND(COUNTIFS('Enrollment Form'!$H$11:$H$1000,'Enrollment Form'!$H342,'Enrollment Form'!$B$11:$B$1000,'Enrollment Form'!$B342)>1,'Enrollment Form'!$H342<>\"\"),\"N\",\"Y\"))","v":""},{"$f":"IF($B335=\"N\",\"\",IF(LEN('Enrollment Form'!$Y342)=0,\"\",IF(LEN('Enrollment Form'!$Y342)<>5,\"N\",\"Y\")))","v":""},{"$f":"IF($B335=\"N\",\"\",IF(LEN('Enrollment Form'!$AD342=0),\"\",IF(LEN('Enrollment Form'!$AD342)<>5,\"N\",\"Y\")))","v":""},{"$f":"IF($B335=\"N\",\"\",IF(LEN('Enrollment Form'!$BS342=0),\"\",IF(LEN('Enrollment Form'!$BS342)<>5,\"N\",\"Y\")))","v":""},{"$f":"IF($B335=\"N\",\"\",IF(LEN('Enrollment Form'!$AE342)=0,\"\",IF(LEN('Enrollment Form'!$AE342)<>10,\"N\",\"Y\")))","v":""},{"$f":"IF($B335=\"N\",\"\",IF(LEN('Enrollment Form'!$AF342)=0,\"\",IF(LEN('Enrollment Form'!$AF342)<>10,\"N\",\"Y\")))","v":""},{"$f":"IF('Enrollment Form'!$O342<>\"Graded\",\"-\",IF(AND('Enrollment Form'!$O342=\"Graded\",'Enrollment Form'!$AR342<>\"\"),\"Y\",\"N\"))","v":"-"},{"$f":"IF($B335=\"N\",\"\",IF(OR('Enrollment Form'!$B342<>\"Subscriber\",'Enrollment Form'!$C342=\"ROC\"),\"-\",IF(AND('Enrollment Form'!$B342=\"Subscriber\",'Enrollment Form'!$C342=\"Enroll\",'Enrollment Form'!$AJ342<>\"\"),\"Y\",\"N\")))","v":""},{"$f":"IF($B335=\"N\",\"\",IF(OR('Enrollment Form'!$B342<>\"Subscriber\",'Enrollment Form'!$C342=\"ROC\"),\"-\",IF(AND('Enrollment Form'!$B342=\"Subscriber\",'Enrollment Form'!$C342=\"Enroll\",'Enrollment Form'!$AK342<>\"\"),\"Y\",\"N\")))","v":""},{"$f":"IF($B335=\"N\",\"\",IF(OR('Enrollment Form'!$B342<>\"Subscriber\",'Enrollment Form'!$C342=\"ROC\"),\"-\",IF(AND('Enrollment Form'!$B342=\"Subscriber\",'Enrollment Form'!$C342=\"Enroll\",'Enrollment Form'!$AL342<>\"\"),\"Y\",\"N\")))","v":""},{"$f":"IF($B335=\"N\",\"\",IF(OR('Enrollment Form'!$B342<>\"Subscriber\",'Enrollment Form'!$C342=\"ROC\"),\"-\",IF(AND('Enrollment Form'!$B342=\"Subscriber\",'Enrollment Form'!$C342=\"Enroll\",'Enrollment Form'!$AP342<>\"\"),\"Y\",\"N\")))","v":""},{"$f":"IF($B335=\"N\",\"\",IF(OR('Enrollment Form'!$B342<>\"Subscriber\",'Enrollment Form'!$C342=\"ROC\"),\"-\",IF(AND('Enrollment Form'!$B342=\"Subscriber\",'Enrollment Form'!$C342=\"Enroll\",'Enrollment Form'!$AQ342<>\"\"),\"Y\",\"N\")))","v":""},{"$f":"IF($B335=\"N\",\"\",IF(OR('Enrollment Form'!$B342<>\"Subscriber\",'Enrollment Form'!$C342=\"ROC\"),\"-\",IF(AND('Enrollment Form'!$B342=\"Subscriber\",'Enrollment Form'!$C342=\"Enroll\",'Enrollment Form'!$AS342<>\"\"),\"Y\",\"N\")))","v":""},{"$f":"IF($B335=\"N\",\"\",IF($Q335=\"-\",\"-\",IF(AND($Q335=\"Y\",'Enrollment Form'!$AS342=\"No\"),\"-\",IF(AND($Q335=\"Y\",'Enrollment Form'!$AS342=\"Yes\",'Enrollment Form'!$AT342<>\"\"),\"Y\",\"N\"))))","v":""},{"$f":"IF($B335=\"N\",\"\",IF(OR('Enrollment Form'!$B342<>\"Subscriber\",'Enrollment Form'!$C342=\"ROC\"),\"-\",IF(AND('Enrollment Form'!$B342=\"Subscriber\",'Enrollment Form'!$C342=\"Enroll\",'Enrollment Form'!$CV342<>\"\"),\"Y\",\"N\")))","v":""},{"$f":"IF($B335=\"N\",\"\",IF($S335=\"-\",\"-\",IF(AND($S335=\"Y\",'Enrollment Form'!$CV342=\"No\"),\"-\",IF(AND($S335=\"Y\",'Enrollment Form'!$CV342=\"Yes\",'Enrollment Form'!$CW342<>\"\"),\"Y\",\"N\"))))","v":""},{"$f":"IF(OR('Enrollment Form'!$AY342=\"Yes\",'Enrollment Form'!$AY342=\"\"),\"-\",IF(OR(AND('Enrollment Form'!$AY342=\"No\",ISERROR(FIND(\"HMO\",VLOOKUP('Enrollment Form'!G342,'Enrollment Form'!H$11:J$1000,3,FALSE),1))=FALSE,COUNTA('Enrollment Form'!$AZ342:$BC342)=4),AND('Enrollment Form'!$AY342=\"No\",ISERROR(FIND(\"HMO\",VLOOKUP('Enrollment Form'!G342,'Enrollment Form'!H$11:J$1000,3,FALSE),1))=FALSE,COUNTA('Enrollment Form'!$BT342:$BW342)=4)),\"Y\",\"N\"))","v":"-"},{"$f":"IF($B335=\"N\",\"\",IF('Enrollment Form'!$B342=\"Subscriber\",\"-\",IF(COUNTA('Enrollment Form'!$BL342,'Enrollment Form'!$BN342)=2,\"Y\",\"N\")))","v":""},{"$f":"IF($B335=\"N\",\"\",IF(OR('Enrollment Form'!$AX342=\"\",'Enrollment Form'!$AX342=\"No\"),\"-\",IF(AND('Enrollment Form'!$AX342=\"Yes\",COUNTA('Enrollment Form'!$CR342)=1),\"Y\",\"N\")))","v":""},{"$f":"IF(OR('Enrollment Form'!$CR342=\"\",'Enrollment Form'!$CR342=\"No\"),\"-\",IF(COUNTA('Enrollment Form'!$CT342:$CU342)=2,\"Y\",\"N\"))","v":"-"},{"$f":"IF($B335=\"N\",\"\",IF(COUNTIF('Enrollment Form'!$DG342:$DP342,\"Other\")=COUNTA('Enrollment Form'!$DK342,'Enrollment Form'!$DH342,'Enrollment Form'!$DN342,'Enrollment Form'!$DQ342),\"Y\",\"N\"))","v":""},{"$f":"IF($B335=\"N\",\"\",IF(OR('Enrollment Form'!B342<>\"Subscriber\",'Enrollment Form'!C342=\"ROC\",COUNTIF('Enrollment Form'!AV342:AW342,\"Yes\")>=1),\"-\",IF(AND('Enrollment Form'!C342=\"Enroll\",COUNTIF('Enrollment Form'!AV342:AW342,\"No\")=2,'Enrollment Form'!AX342=\"\"),\"N\",\"Y\")))","v":""},{"$f":"IF(OR(B335=\"N\",'Enrollment Form'!B342<>\"Subscriber\",'Enrollment Form'!C342=\"ROC\",'Enrollment Form'!O342<>\"Multiple of Salary\"),\"-\",IF(COUNTA('Enrollment Form'!T342:U342)<2,\"N\",\"Y\"))","v":"-"},{"$f":"IF(B335=\"N\",\"\",IF(OR('Enrollment Form'!C342=\"ROC\",'Enrollment Form'!B342<>\"Subscriber\",'Enrollment Form'!O342=\"Waive\",'Enrollment Form'!O342=\"\"),\"-\",IF('Enrollment Form'!P342=\"\",\"N\",\"Y\")))","v":""},{"$f":"IF($B335=\"N\",\"\",IF(AND('Enrollment Form'!$C342=\"ROC\",'Enrollment Form'!$DR342<>\"\"),\"Y\",IF(AND('Enrollment Form'!$C342=\"ROC\",'Enrollment Form'!$DR342=\"\"),\"N\",IF(AND('Enrollment Form'!$C342=\"Enroll\",'Enrollment Form'!$B342=\"Subscriber\",'Enrollment Form'!$CX342=\"No\",'Enrollment Form'!$DR342=\"\"),\"N\",IF(AND('Enrollment Form'!$C342=\"Enroll\",'Enrollment Form'!$B342=\"Subscriber\",'Enrollment Form'!$CX342=\"Yes\"),\"-\",\"Y\")))))","v":""},{"$f":"IF($B335=\"N\",\"\",IF(AND('Enrollment Form'!$C342=\"ROC\",'Enrollment Form'!$DS342<>\"\"),\"Y\",IF(AND('Enrollment Form'!$C342=\"ROC\",'Enrollment Form'!$DS342=\"\"),\"N\",IF(AND('Enrollment Form'!$C342=\"Enroll\",'Enrollment Form'!$B342=\"Subscriber\",'Enrollment Form'!$CX342=\"No\",'Enrollment Form'!$DS342=\"\"),\"N\",IF(AND('Enrollment Form'!$C342=\"Enroll\",'Enrollment Form'!$B342=\"Subscriber\",'Enrollment Form'!$CX342=\"Yes\"),\"-\",\"Y\")))))","v":""},{"$f":"IF('Enrollment Form'!AH342=\"\",\"\",IF(ISERROR(SEARCH(\".\",'Enrollment Form'!AH342,SEARCH(\"@\",'Enrollment Form'!AH342))),\"N\",\"Y\"))","v":""},{"$f":"IF(OR($B335=\"N\",'Enrollment Form'!$G342=\"\"),\"\",IF('Enrollment Form'!$B342<>\"Subscriber\",\"-\",IF(COUNTIF('Enrollment Form'!$AV342:$AW342,\"Yes\")=2,\"N\",\"Y\")))","v":""},{"$f":"IF(OR('Enrollment Form'!$CJ342=\"\",'Enrollment Form'!$CJ342=\"No\"),\"-\",IF(AND('Enrollment Form'!$CJ342=\"Yes\",'Enrollment Form'!$CK342=\"\"),\"N\",\"Y\"))","v":"-"},{"$f":"IF(OR('Enrollment Form'!$CL342=\"\",'Enrollment Form'!$CL342=\"No\"),\"-\",IF(AND('Enrollment Form'!$CL342=\"Yes\",'Enrollment Form'!$CM342=\"\"),\"N\",\"Y\"))","v":"-"},{"$f":"IF(OR('Enrollment Form'!$CN342=\"\",'Enrollment Form'!$CN342=\"No\"),\"-\",IF(AND('Enrollment Form'!$CN342=\"Yes\",'Enrollment Form'!$CO342=\"\"),\"N\",\"Y\"))","v":"-"},{"$f":"IF(OR('Enrollment Form'!$CN342=\"\",'Enrollment Form'!$CN342=\"No\"),\"-\",IF(AND('Enrollment Form'!$CN342=\"Yes\",'Enrollment Form'!$CP342=\"\"),\"N\",\"Y\"))","v":"-"},{"$f":"IF('Enrollment Form'!B342<>\"Subscriber\",\"-\",IF(AND('Enrollment Form'!B342=\"Subscriber\",'Enrollment Form'!C342=\"Enroll\",'Enrollment Form'!AA342=\"\"),\"N\",\"Y\"))","v":"-"},{"$f":"IF(OR('Enrollment Form'!B342=\"Subscriber\",'Enrollment Form'!B342=\"\"),\"-\",IF('Enrollment Form'!BP342=\"\",\"N\",\"Y\"))","v":"-"},{"$f":"IF('Enrollment Form'!B342<>\"Subscriber\",\"-\",IF(AND('Enrollment Form'!B342=\"Subscriber\",'Enrollment Form'!G342=\"\"),\"N\",\"Y\"))","v":"-"},{"$f":"IF('Enrollment Form'!A342=\"\",\"\",IF('Enrollment Form'!B342=\"Subscriber\",\"-\",IF(AND('Enrollment Form'!B342<>\"Subscriber\",'Enrollment Form'!G342='Enrollment Form'!H342),\"N\",\"Y\")))","v":""},0]
[343,{"$f":"IF('Enrollment Form'!$A343<>\"\",\"Y\",\"N\")","v":"N"},{"$f":"IF(AND('Enrollment Form'!$B343=\"\",'Enrollment Form'!$C343<>\"\"),\"N\",IF($B336=\"N\",\"\",\"Y\"))","v":""},{"$f":"IF(OR($B336=\"N\",'Enrollment Form'!G343=\"\"),\"\",IF('Enrollment Form'!$B343<>\"Subscriber\",\"\",IF('Enrollment Form'!$G343='Enrollment Form'!$H343,\"Y\",\"N\")))","v":""},{"$f":"IF($B336=\"N\",\"\",IF(AND(COUNTIFS('Enrollment Form'!$H$11:$H$1000,'Enrollment Form'!$H343,'Enrollment Form'!$B$11:$B$1000,'Enrollment Form'!$B343)>1,'Enrollment Form'!$H343<>\"\"),\"N\",\"Y\"))","v":""},{"$f":"IF($B336=\"N\",\"\",IF(LEN('Enrollment Form'!$Y343)=0,\"\",IF(LEN('Enrollment Form'!$Y343)<>5,\"N\",\"Y\")))","v":""},{"$f":"IF($B336=\"N\",\"\",IF(LEN('Enrollment Form'!$AD343=0),\"\",IF(LEN('Enrollment Form'!$AD343)<>5,\"N\",\"Y\")))","v":""},{"$f":"IF($B336=\"N\",\"\",IF(LEN('Enrollment Form'!$BS343=0),\"\",IF(LEN('Enrollment Form'!$BS343)<>5,\"N\",\"Y\")))","v":""},{"$f":"IF($B336=\"N\",\"\",IF(LEN('Enrollment Form'!$AE343)=0,\"\",IF(LEN('Enrollment Form'!$AE343)<>10,\"N\",\"Y\")))","v":""},{"$f":"IF($B336=\"N\",\"\",IF(LEN('Enrollment Form'!$AF343)=0,\"\",IF(LEN('Enrollment Form'!$AF343)<>10,\"N\",\"Y\")))","v":""},{"$f":"IF('Enrollment Form'!$O343<>\"Graded\",\"-\",IF(AND('Enrollment Form'!$O343=\"Graded\",'Enrollment Form'!$AR343<>\"\"),\"Y\",\"N\"))","v":"-"},{"$f":"IF($B336=\"N\",\"\",IF(OR('Enrollment Form'!$B343<>\"Subscriber\",'Enrollment Form'!$C343=\"ROC\"),\"-\",IF(AND('Enrollment Form'!$B343=\"Subscriber\",'Enrollment Form'!$C343=\"Enroll\",'Enrollment Form'!$AJ343<>\"\"),\"Y\",\"N\")))","v":""},{"$f":"IF($B336=\"N\",\"\",IF(OR('Enrollment Form'!$B343<>\"Subscriber\",'Enrollment Form'!$C343=\"ROC\"),\"-\",IF(AND('Enrollment Form'!$B343=\"Subscriber\",'Enrollment Form'!$C343=\"Enroll\",'Enrollment Form'!$AK343<>\"\"),\"Y\",\"N\")))","v":""},{"$f":"IF($B336=\"N\",\"\",IF(OR('Enrollment Form'!$B343<>\"Subscriber\",'Enrollment Form'!$C343=\"ROC\"),\"-\",IF(AND('Enrollment Form'!$B343=\"Subscriber\",'Enrollment Form'!$C343=\"Enroll\",'Enrollment Form'!$AL343<>\"\"),\"Y\",\"N\")))","v":""},{"$f":"IF($B336=\"N\",\"\",IF(OR('Enrollment Form'!$B343<>\"Subscriber\",'Enrollment Form'!$C343=\"ROC\"),\"-\",IF(AND('Enrollment Form'!$B343=\"Subscriber\",'Enrollment Form'!$C343=\"Enroll\",'Enrollment Form'!$AP343<>\"\"),\"Y\",\"N\")))","v":""},{"$f":"IF($B336=\"N\",\"\",IF(OR('Enrollment Form'!$B343<>\"Subscriber\",'Enrollment Form'!$C343=\"ROC\"),\"-\",IF(AND('Enrollment Form'!$B343=\"Subscriber\",'Enrollment Form'!$C343=\"Enroll\",'Enrollment Form'!$AQ343<>\"\"),\"Y\",\"N\")))","v":""},{"$f":"IF($B336=\"N\",\"\",IF(OR('Enrollment Form'!$B343<>\"Subscriber\",'Enrollment Form'!$C343=\"ROC\"),\"-\",IF(AND('Enrollment Form'!$B343=\"Subscriber\",'Enrollment Form'!$C343=\"Enroll\",'Enrollment Form'!$AS343<>\"\"),\"Y\",\"N\")))","v":""},{"$f":"IF($B336=\"N\",\"\",IF($Q336=\"-\",\"-\",IF(AND($Q336=\"Y\",'Enrollment Form'!$AS343=\"No\"),\"-\",IF(AND($Q336=\"Y\",'Enrollment Form'!$AS343=\"Yes\",'Enrollment Form'!$AT343<>\"\"),\"Y\",\"N\"))))","v":""},{"$f":"IF($B336=\"N\",\"\",IF(OR('Enrollment Form'!$B343<>\"Subscriber\",'Enrollment Form'!$C343=\"ROC\"),\"-\",IF(AND('Enrollment Form'!$B343=\"Subscriber\",'Enrollment Form'!$C343=\"Enroll\",'Enrollment Form'!$CV343<>\"\"),\"Y\",\"N\")))","v":""},{"$f":"IF($B336=\"N\",\"\",IF($S336=\"-\",\"-\",IF(AND($S336=\"Y\",'Enrollment Form'!$CV343=\"No\"),\"-\",IF(AND($S336=\"Y\",'Enrollment Form'!$CV343=\"Yes\",'Enrollment Form'!$CW343<>\"\"),\"Y\",\"N\"))))","v":""},{"$f":"IF(OR('Enrollment Form'!$AY343=\"Yes\",'Enrollment Form'!$AY343=\"\"),\"-\",IF(OR(AND('Enrollment Form'!$AY343=\"No\",ISERROR(FIND(\"HMO\",VLOOKUP('Enrollment Form'!G343,'Enrollment Form'!H$11:J$1000,3,FALSE),1))=FALSE,COUNTA('Enrollment Form'!$AZ343:$BC343)=4),AND('Enrollment Form'!$AY343=\"No\",ISERROR(FIND(\"HMO\",VLOOKUP('Enrollment Form'!G343,'Enrollment Form'!H$11:J$1000,3,FALSE),1))=FALSE,COUNTA('Enrollment Form'!$BT343:$BW343)=4)),\"Y\",\"N\"))","v":"-"},{"$f":"IF($B336=\"N\",\"\",IF('Enrollment Form'!$B343=\"Subscriber\",\"-\",IF(COUNTA('Enrollment Form'!$BL343,'Enrollment Form'!$BN343)=2,\"Y\",\"N\")))","v":""},{"$f":"IF($B336=\"N\",\"\",IF(OR('Enrollment Form'!$AX343=\"\",'Enrollment Form'!$AX343=\"No\"),\"-\",IF(AND('Enrollment Form'!$AX343=\"Yes\",COUNTA('Enrollment Form'!$CR343)=1),\"Y\",\"N\")))","v":""},{"$f":"IF(OR('Enrollment Form'!$CR343=\"\",'Enrollment Form'!$CR343=\"No\"),\"-\",IF(COUNTA('Enrollment Form'!$CT343:$CU343)=2,\"Y\",\"N\"))","v":"-"},{"$f":"IF($B336=\"N\",\"\",IF(COUNTIF('Enrollment Form'!$DG343:$DP343,\"Other\")=COUNTA('Enrollment Form'!$DK343,'Enrollment Form'!$DH343,'Enrollment Form'!$DN343,'Enrollment Form'!$DQ343),\"Y\",\"N\"))","v":""},{"$f":"IF($B336=\"N\",\"\",IF(OR('Enrollment Form'!B343<>\"Subscriber\",'Enrollment Form'!C343=\"ROC\",COUNTIF('Enrollment Form'!AV343:AW343,\"Yes\")>=1),\"-\",IF(AND('Enrollment Form'!C343=\"Enroll\",COUNTIF('Enrollment Form'!AV343:AW343,\"No\")=2,'Enrollment Form'!AX343=\"\"),\"N\",\"Y\")))","v":""},{"$f":"IF(OR(B336=\"N\",'Enrollment Form'!B343<>\"Subscriber\",'Enrollment Form'!C343=\"ROC\",'Enrollment Form'!O343<>\"Multiple of Salary\"),\"-\",IF(COUNTA('Enrollment Form'!T343:U343)<2,\"N\",\"Y\"))","v":"-"},{"$f":"IF(B336=\"N\",\"\",IF(OR('Enrollment Form'!C343=\"ROC\",'Enrollment Form'!B343<>\"Subscriber\",'Enrollment Form'!O343=\"Waive\",'Enrollment Form'!O343=\"\"),\"-\",IF('Enrollment Form'!P343=\"\",\"N\",\"Y\")))","v":""},{"$f":"IF($B336=\"N\",\"\",IF(AND('Enrollment Form'!$C343=\"ROC\",'Enrollment Form'!$DR343<>\"\"),\"Y\",IF(AND('Enrollment Form'!$C343=\"ROC\",'Enrollment Form'!$DR343=\"\"),\"N\",IF(AND('Enrollment Form'!$C343=\"Enroll\",'Enrollment Form'!$B343=\"Subscriber\",'Enrollment Form'!$CX343=\"No\",'Enrollment Form'!$DR343=\"\"),\"N\",IF(AND('Enrollment Form'!$C343=\"Enroll\",'Enrollment Form'!$B343=\"Subscriber\",'Enrollment Form'!$CX343=\"Yes\"),\"-\",\"Y\")))))","v":""},{"$f":"IF($B336=\"N\",\"\",IF(AND('Enrollment Form'!$C343=\"ROC\",'Enrollment Form'!$DS343<>\"\"),\"Y\",IF(AND('Enrollment Form'!$C343=\"ROC\",'Enrollment Form'!$DS343=\"\"),\"N\",IF(AND('Enrollment Form'!$C343=\"Enroll\",'Enrollment Form'!$B343=\"Subscriber\",'Enrollment Form'!$CX343=\"No\",'Enrollment Form'!$DS343=\"\"),\"N\",IF(AND('Enrollment Form'!$C343=\"Enroll\",'Enrollment Form'!$B343=\"Subscriber\",'Enrollment Form'!$CX343=\"Yes\"),\"-\",\"Y\")))))","v":""},{"$f":"IF('Enrollment Form'!AH343=\"\",\"\",IF(ISERROR(SEARCH(\".\",'Enrollment Form'!AH343,SEARCH(\"@\",'Enrollment Form'!AH343))),\"N\",\"Y\"))","v":""},{"$f":"IF(OR($B336=\"N\",'Enrollment Form'!$G343=\"\"),\"\",IF('Enrollment Form'!$B343<>\"Subscriber\",\"-\",IF(COUNTIF('Enrollment Form'!$AV343:$AW343,\"Yes\")=2,\"N\",\"Y\")))","v":""},{"$f":"IF(OR('Enrollment Form'!$CJ343=\"\",'Enrollment Form'!$CJ343=\"No\"),\"-\",IF(AND('Enrollment Form'!$CJ343=\"Yes\",'Enrollment Form'!$CK343=\"\"),\"N\",\"Y\"))","v":"-"},{"$f":"IF(OR('Enrollment Form'!$CL343=\"\",'Enrollment Form'!$CL343=\"No\"),\"-\",IF(AND('Enrollment Form'!$CL343=\"Yes\",'Enrollment Form'!$CM343=\"\"),\"N\",\"Y\"))","v":"-"},{"$f":"IF(OR('Enrollment Form'!$CN343=\"\",'Enrollment Form'!$CN343=\"No\"),\"-\",IF(AND('Enrollment Form'!$CN343=\"Yes\",'Enrollment Form'!$CO343=\"\"),\"N\",\"Y\"))","v":"-"},{"$f":"IF(OR('Enrollment Form'!$CN343=\"\",'Enrollment Form'!$CN343=\"No\"),\"-\",IF(AND('Enrollment Form'!$CN343=\"Yes\",'Enrollment Form'!$CP343=\"\"),\"N\",\"Y\"))","v":"-"},{"$f":"IF('Enrollment Form'!B343<>\"Subscriber\",\"-\",IF(AND('Enrollment Form'!B343=\"Subscriber\",'Enrollment Form'!C343=\"Enroll\",'Enrollment Form'!AA343=\"\"),\"N\",\"Y\"))","v":"-"},{"$f":"IF(OR('Enrollment Form'!B343=\"Subscriber\",'Enrollment Form'!B343=\"\"),\"-\",IF('Enrollment Form'!BP343=\"\",\"N\",\"Y\"))","v":"-"},{"$f":"IF('Enrollment Form'!B343<>\"Subscriber\",\"-\",IF(AND('Enrollment Form'!B343=\"Subscriber\",'Enrollment Form'!G343=\"\"),\"N\",\"Y\"))","v":"-"},{"$f":"IF('Enrollment Form'!A343=\"\",\"\",IF('Enrollment Form'!B343=\"Subscriber\",\"-\",IF(AND('Enrollment Form'!B343<>\"Subscriber\",'Enrollment Form'!G343='Enrollment Form'!H343),\"N\",\"Y\")))","v":""},0]
[344,{"$f":"IF('Enrollment Form'!$A344<>\"\",\"Y\",\"N\")","v":"N"},{"$f":"IF(AND('Enrollment Form'!$B344=\"\",'Enrollment Form'!$C344<>\"\"),\"N\",IF($B337=\"N\",\"\",\"Y\"))","v":""},{"$f":"IF(OR($B337=\"N\",'Enrollment Form'!G344=\"\"),\"\",IF('Enrollment Form'!$B344<>\"Subscriber\",\"\",IF('Enrollment Form'!$G344='Enrollment Form'!$H344,\"Y\",\"N\")))","v":""},{"$f":"IF($B337=\"N\",\"\",IF(AND(COUNTIFS('Enrollment Form'!$H$11:$H$1000,'Enrollment Form'!$H344,'Enrollment Form'!$B$11:$B$1000,'Enrollment Form'!$B344)>1,'Enrollment Form'!$H344<>\"\"),\"N\",\"Y\"))","v":""},{"$f":"IF($B337=\"N\",\"\",IF(LEN('Enrollment Form'!$Y344)=0,\"\",IF(LEN('Enrollment Form'!$Y344)<>5,\"N\",\"Y\")))","v":""},{"$f":"IF($B337=\"N\",\"\",IF(LEN('Enrollment Form'!$AD344=0),\"\",IF(LEN('Enrollment Form'!$AD344)<>5,\"N\",\"Y\")))","v":""},{"$f":"IF($B337=\"N\",\"\",IF(LEN('Enrollment Form'!$BS344=0),\"\",IF(LEN('Enrollment Form'!$BS344)<>5,\"N\",\"Y\")))","v":""},{"$f":"IF($B337=\"N\",\"\",IF(LEN('Enrollment Form'!$AE344)=0,\"\",IF(LEN('Enrollment Form'!$AE344)<>10,\"N\",\"Y\")))","v":""},{"$f":"IF($B337=\"N\",\"\",IF(LEN('Enrollment Form'!$AF344)=0,\"\",IF(LEN('Enrollment Form'!$AF344)<>10,\"N\",\"Y\")))","v":""},{"$f":"IF('Enrollment Form'!$O344<>\"Graded\",\"-\",IF(AND('Enrollment Form'!$O344=\"Graded\",'Enrollment Form'!$AR344<>\"\"),\"Y\",\"N\"))","v":"-"},{"$f":"IF($B337=\"N\",\"\",IF(OR('Enrollment Form'!$B344<>\"Subscriber\",'Enrollment Form'!$C344=\"ROC\"),\"-\",IF(AND('Enrollment Form'!$B344=\"Subscriber\",'Enrollment Form'!$C344=\"Enroll\",'Enrollment Form'!$AJ344<>\"\"),\"Y\",\"N\")))","v":""},{"$f":"IF($B337=\"N\",\"\",IF(OR('Enrollment Form'!$B344<>\"Subscriber\",'Enrollment Form'!$C344=\"ROC\"),\"-\",IF(AND('Enrollment Form'!$B344=\"Subscriber\",'Enrollment Form'!$C344=\"Enroll\",'Enrollment Form'!$AK344<>\"\"),\"Y\",\"N\")))","v":""},{"$f":"IF($B337=\"N\",\"\",IF(OR('Enrollment Form'!$B344<>\"Subscriber\",'Enrollment Form'!$C344=\"ROC\"),\"-\",IF(AND('Enrollment Form'!$B344=\"Subscriber\",'Enrollment Form'!$C344=\"Enroll\",'Enrollment Form'!$AL344<>\"\"),\"Y\",\"N\")))","v":""},{"$f":"IF($B337=\"N\",\"\",IF(OR('Enrollment Form'!$B344<>\"Subscriber\",'Enrollment Form'!$C344=\"ROC\"),\"-\",IF(AND('Enrollment Form'!$B344=\"Subscriber\",'Enrollment Form'!$C344=\"Enroll\",'Enrollment Form'!$AP344<>\"\"),\"Y\",\"N\")))","v":""},{"$f":"IF($B337=\"N\",\"\",IF(OR('Enrollment Form'!$B344<>\"Subscriber\",'Enrollment Form'!$C344=\"ROC\"),\"-\",IF(AND('Enrollment Form'!$B344=\"Subscriber\",'Enrollment Form'!$C344=\"Enroll\",'Enrollment Form'!$AQ344<>\"\"),\"Y\",\"N\")))","v":""},{"$f":"IF($B337=\"N\",\"\",IF(OR('Enrollment Form'!$B344<>\"Subscriber\",'Enrollment Form'!$C344=\"ROC\"),\"-\",IF(AND('Enrollment Form'!$B344=\"Subscriber\",'Enrollment Form'!$C344=\"Enroll\",'Enrollment Form'!$AS344<>\"\"),\"Y\",\"N\")))","v":""},{"$f":"IF($B337=\"N\",\"\",IF($Q337=\"-\",\"-\",IF(AND($Q337=\"Y\",'Enrollment Form'!$AS344=\"No\"),\"-\",IF(AND($Q337=\"Y\",'Enrollment Form'!$AS344=\"Yes\",'Enrollment Form'!$AT344<>\"\"),\"Y\",\"N\"))))","v":""},{"$f":"IF($B337=\"N\",\"\",IF(OR('Enrollment Form'!$B344<>\"Subscriber\",'Enrollment Form'!$C344=\"ROC\"),\"-\",IF(AND('Enrollment Form'!$B344=\"Subscriber\",'Enrollment Form'!$C344=\"Enroll\",'Enrollment Form'!$CV344<>\"\"),\"Y\",\"N\")))","v":""},{"$f":"IF($B337=\"N\",\"\",IF($S337=\"-\",\"-\",IF(AND($S337=\"Y\",'Enrollment Form'!$CV344=\"No\"),\"-\",IF(AND($S337=\"Y\",'Enrollment Form'!$CV344=\"Yes\",'Enrollment Form'!$CW344<>\"\"),\"Y\",\"N\"))))","v":""},{"$f":"IF(OR('Enrollment Form'!$AY344=\"Yes\",'Enrollment Form'!$AY344=\"\"),\"-\",IF(OR(AND('Enrollment Form'!$AY344=\"No\",ISERROR(FIND(\"HMO\",VLOOKUP('Enrollment Form'!G344,'Enrollment Form'!H$11:J$1000,3,FALSE),1))=FALSE,COUNTA('Enrollment Form'!$AZ344:$BC344)=4),AND('Enrollment Form'!$AY344=\"No\",ISERROR(FIND(\"HMO\",VLOOKUP('Enrollment Form'!G344,'Enrollment Form'!H$11:J$1000,3,FALSE),1))=FALSE,COUNTA('Enrollment Form'!$BT344:$BW344)=4)),\"Y\",\"N\"))","v":"-"},{"$f":"IF($B337=\"N\",\"\",IF('Enrollment Form'!$B344=\"Subscriber\",\"-\",IF(COUNTA('Enrollment Form'!$BL344,'Enrollment Form'!$BN344)=2,\"Y\",\"N\")))","v":""},{"$f":"IF($B337=\"N\",\"\",IF(OR('Enrollment Form'!$AX344=\"\",'Enrollment Form'!$AX344=\"No\"),\"-\",IF(AND('Enrollment Form'!$AX344=\"Yes\",COUNTA('Enrollment Form'!$CR344)=1),\"Y\",\"N\")))","v":""},{"$f":"IF(OR('Enrollment Form'!$CR344=\"\",'Enrollment Form'!$CR344=\"No\"),\"-\",IF(COUNTA('Enrollment Form'!$CT344:$CU344)=2,\"Y\",\"N\"))","v":"-"},{"$f":"IF($B337=\"N\",\"\",IF(COUNTIF('Enrollment Form'!$DG344:$DP344,\"Other\")=COUNTA('Enrollment Form'!$DK344,'Enrollment Form'!$DH344,'Enrollment Form'!$DN344,'Enrollment Form'!$DQ344),\"Y\",\"N\"))","v":""},{"$f":"IF($B337=\"N\",\"\",IF(OR('Enrollment Form'!B344<>\"Subscriber\",'Enrollment Form'!C344=\"ROC\",COUNTIF('Enrollment Form'!AV344:AW344,\"Yes\")>=1),\"-\",IF(AND('Enrollment Form'!C344=\"Enroll\",COUNTIF('Enrollment Form'!AV344:AW344,\"No\")=2,'Enrollment Form'!AX344=\"\"),\"N\",\"Y\")))","v":""},{"$f":"IF(OR(B337=\"N\",'Enrollment Form'!B344<>\"Subscriber\",'Enrollment Form'!C344=\"ROC\",'Enrollment Form'!O344<>\"Multiple of Salary\"),\"-\",IF(COUNTA('Enrollment Form'!T344:U344)<2,\"N\",\"Y\"))","v":"-"},{"$f":"IF(B337=\"N\",\"\",IF(OR('Enrollment Form'!C344=\"ROC\",'Enrollment Form'!B344<>\"Subscriber\",'Enrollment Form'!O344=\"Waive\",'Enrollment Form'!O344=\"\"),\"-\",IF('Enrollment Form'!P344=\"\",\"N\",\"Y\")))","v":""},{"$f":"IF($B337=\"N\",\"\",IF(AND('Enrollment Form'!$C344=\"ROC\",'Enrollment Form'!$DR344<>\"\"),\"Y\",IF(AND('Enrollment Form'!$C344=\"ROC\",'Enrollment Form'!$DR344=\"\"),\"N\",IF(AND('Enrollment Form'!$C344=\"Enroll\",'Enrollment Form'!$B344=\"Subscriber\",'Enrollment Form'!$CX344=\"No\",'Enrollment Form'!$DR344=\"\"),\"N\",IF(AND('Enrollment Form'!$C344=\"Enroll\",'Enrollment Form'!$B344=\"Subscriber\",'Enrollment Form'!$CX344=\"Yes\"),\"-\",\"Y\")))))","v":""},{"$f":"IF($B337=\"N\",\"\",IF(AND('Enrollment Form'!$C344=\"ROC\",'Enrollment Form'!$DS344<>\"\"),\"Y\",IF(AND('Enrollment Form'!$C344=\"ROC\",'Enrollment Form'!$DS344=\"\"),\"N\",IF(AND('Enrollment Form'!$C344=\"Enroll\",'Enrollment Form'!$B344=\"Subscriber\",'Enrollment Form'!$CX344=\"No\",'Enrollment Form'!$DS344=\"\"),\"N\",IF(AND('Enrollment Form'!$C344=\"Enroll\",'Enrollment Form'!$B344=\"Subscriber\",'Enrollment Form'!$CX344=\"Yes\"),\"-\",\"Y\")))))","v":""},{"$f":"IF('Enrollment Form'!AH344=\"\",\"\",IF(ISERROR(SEARCH(\".\",'Enrollment Form'!AH344,SEARCH(\"@\",'Enrollment Form'!AH344))),\"N\",\"Y\"))","v":""},{"$f":"IF(OR($B337=\"N\",'Enrollment Form'!$G344=\"\"),\"\",IF('Enrollment Form'!$B344<>\"Subscriber\",\"-\",IF(COUNTIF('Enrollment Form'!$AV344:$AW344,\"Yes\")=2,\"N\",\"Y\")))","v":""},{"$f":"IF(OR('Enrollment Form'!$CJ344=\"\",'Enrollment Form'!$CJ344=\"No\"),\"-\",IF(AND('Enrollment Form'!$CJ344=\"Yes\",'Enrollment Form'!$CK344=\"\"),\"N\",\"Y\"))","v":"-"},{"$f":"IF(OR('Enrollment Form'!$CL344=\"\",'Enrollment Form'!$CL344=\"No\"),\"-\",IF(AND('Enrollment Form'!$CL344=\"Yes\",'Enrollment Form'!$CM344=\"\"),\"N\",\"Y\"))","v":"-"},{"$f":"IF(OR('Enrollment Form'!$CN344=\"\",'Enrollment Form'!$CN344=\"No\"),\"-\",IF(AND('Enrollment Form'!$CN344=\"Yes\",'Enrollment Form'!$CO344=\"\"),\"N\",\"Y\"))","v":"-"},{"$f":"IF(OR('Enrollment Form'!$CN344=\"\",'Enrollment Form'!$CN344=\"No\"),\"-\",IF(AND('Enrollment Form'!$CN344=\"Yes\",'Enrollment Form'!$CP344=\"\"),\"N\",\"Y\"))","v":"-"},{"$f":"IF('Enrollment Form'!B344<>\"Subscriber\",\"-\",IF(AND('Enrollment Form'!B344=\"Subscriber\",'Enrollment Form'!C344=\"Enroll\",'Enrollment Form'!AA344=\"\"),\"N\",\"Y\"))","v":"-"},{"$f":"IF(OR('Enrollment Form'!B344=\"Subscriber\",'Enrollment Form'!B344=\"\"),\"-\",IF('Enrollment Form'!BP344=\"\",\"N\",\"Y\"))","v":"-"},{"$f":"IF('Enrollment Form'!B344<>\"Subscriber\",\"-\",IF(AND('Enrollment Form'!B344=\"Subscriber\",'Enrollment Form'!G344=\"\"),\"N\",\"Y\"))","v":"-"},{"$f":"IF('Enrollment Form'!A344=\"\",\"\",IF('Enrollment Form'!B344=\"Subscriber\",\"-\",IF(AND('Enrollment Form'!B344<>\"Subscriber\",'Enrollment Form'!G344='Enrollment Form'!H344),\"N\",\"Y\")))","v":""},0]
[345,{"$f":"IF('Enrollment Form'!$A345<>\"\",\"Y\",\"N\")","v":"N"},{"$f":"IF(AND('Enrollment Form'!$B345=\"\",'Enrollment Form'!$C345<>\"\"),\"N\",IF($B338=\"N\",\"\",\"Y\"))","v":""},{"$f":"IF(OR($B338=\"N\",'Enrollment Form'!G345=\"\"),\"\",IF('Enrollment Form'!$B345<>\"Subscriber\",\"\",IF('Enrollment Form'!$G345='Enrollment Form'!$H345,\"Y\",\"N\")))","v":""},{"$f":"IF($B338=\"N\",\"\",IF(AND(COUNTIFS('Enrollment Form'!$H$11:$H$1000,'Enrollment Form'!$H345,'Enrollment Form'!$B$11:$B$1000,'Enrollment Form'!$B345)>1,'Enrollment Form'!$H345<>\"\"),\"N\",\"Y\"))","v":""},{"$f":"IF($B338=\"N\",\"\",IF(LEN('Enrollment Form'!$Y345)=0,\"\",IF(LEN('Enrollment Form'!$Y345)<>5,\"N\",\"Y\")))","v":""},{"$f":"IF($B338=\"N\",\"\",IF(LEN('Enrollment Form'!$AD345=0),\"\",IF(LEN('Enrollment Form'!$AD345)<>5,\"N\",\"Y\")))","v":""},{"$f":"IF($B338=\"N\",\"\",IF(LEN('Enrollment Form'!$BS345=0),\"\",IF(LEN('Enrollment Form'!$BS345)<>5,\"N\",\"Y\")))","v":""},{"$f":"IF($B338=\"N\",\"\",IF(LEN('Enrollment Form'!$AE345)=0,\"\",IF(LEN('Enrollment Form'!$AE345)<>10,\"N\",\"Y\")))","v":""},{"$f":"IF($B338=\"N\",\"\",IF(LEN('Enrollment Form'!$AF345)=0,\"\",IF(LEN('Enrollment Form'!$AF345)<>10,\"N\",\"Y\")))","v":""},{"$f":"IF('Enrollment Form'!$O345<>\"Graded\",\"-\",IF(AND('Enrollment Form'!$O345=\"Graded\",'Enrollment Form'!$AR345<>\"\"),\"Y\",\"N\"))","v":"-"},{"$f":"IF($B338=\"N\",\"\",IF(OR('Enrollment Form'!$B345<>\"Subscriber\",'Enrollment Form'!$C345=\"ROC\"),\"-\",IF(AND('Enrollment Form'!$B345=\"Subscriber\",'Enrollment Form'!$C345=\"Enroll\",'Enrollment Form'!$AJ345<>\"\"),\"Y\",\"N\")))","v":""},{"$f":"IF($B338=\"N\",\"\",IF(OR('Enrollment Form'!$B345<>\"Subscriber\",'Enrollment Form'!$C345=\"ROC\"),\"-\",IF(AND('Enrollment Form'!$B345=\"Subscriber\",'Enrollment Form'!$C345=\"Enroll\",'Enrollment Form'!$AK345<>\"\"),\"Y\",\"N\")))","v":""},{"$f":"IF($B338=\"N\",\"\",IF(OR('Enrollment Form'!$B345<>\"Subscriber\",'Enrollment Form'!$C345=\"ROC\"),\"-\",IF(AND('Enrollment Form'!$B345=\"Subscriber\",'Enrollment Form'!$C345=\"Enroll\",'Enrollment Form'!$AL345<>\"\"),\"Y\",\"N\")))","v":""},{"$f":"IF($B338=\"N\",\"\",IF(OR('Enrollment Form'!$B345<>\"Subscriber\",'Enrollment Form'!$C345=\"ROC\"),\"-\",IF(AND('Enrollment Form'!$B345=\"Subscriber\",'Enrollment Form'!$C345=\"Enroll\",'Enrollment Form'!$AP345<>\"\"),\"Y\",\"N\")))","v":""},{"$f":"IF($B338=\"N\",\"\",IF(OR('Enrollment Form'!$B345<>\"Subscriber\",'Enrollment Form'!$C345=\"ROC\"),\"-\",IF(AND('Enrollment Form'!$B345=\"Subscriber\",'Enrollment Form'!$C345=\"Enroll\",'Enrollment Form'!$AQ345<>\"\"),\"Y\",\"N\")))","v":""},{"$f":"IF($B338=\"N\",\"\",IF(OR('Enrollment Form'!$B345<>\"Subscriber\",'Enrollment Form'!$C345=\"ROC\"),\"-\",IF(AND('Enrollment Form'!$B345=\"Subscriber\",'Enrollment Form'!$C345=\"Enroll\",'Enrollment Form'!$AS345<>\"\"),\"Y\",\"N\")))","v":""},{"$f":"IF($B338=\"N\",\"\",IF($Q338=\"-\",\"-\",IF(AND($Q338=\"Y\",'Enrollment Form'!$AS345=\"No\"),\"-\",IF(AND($Q338=\"Y\",'Enrollment Form'!$AS345=\"Yes\",'Enrollment Form'!$AT345<>\"\"),\"Y\",\"N\"))))","v":""},{"$f":"IF($B338=\"N\",\"\",IF(OR('Enrollment Form'!$B345<>\"Subscriber\",'Enrollment Form'!$C345=\"ROC\"),\"-\",IF(AND('Enrollment Form'!$B345=\"Subscriber\",'Enrollment Form'!$C345=\"Enroll\",'Enrollment Form'!$CV345<>\"\"),\"Y\",\"N\")))","v":""},{"$f":"IF($B338=\"N\",\"\",IF($S338=\"-\",\"-\",IF(AND($S338=\"Y\",'Enrollment Form'!$CV345=\"No\"),\"-\",IF(AND($S338=\"Y\",'Enrollment Form'!$CV345=\"Yes\",'Enrollment Form'!$CW345<>\"\"),\"Y\",\"N\"))))","v":""},{"$f":"IF(OR('Enrollment Form'!$AY345=\"Yes\",'Enrollment Form'!$AY345=\"\"),\"-\",IF(OR(AND('Enrollment Form'!$AY345=\"No\",ISERROR(FIND(\"HMO\",VLOOKUP('Enrollment Form'!G345,'Enrollment Form'!H$11:J$1000,3,FALSE),1))=FALSE,COUNTA('Enrollment Form'!$AZ345:$BC345)=4),AND('Enrollment Form'!$AY345=\"No\",ISERROR(FIND(\"HMO\",VLOOKUP('Enrollment Form'!G345,'Enrollment Form'!H$11:J$1000,3,FALSE),1))=FALSE,COUNTA('Enrollment Form'!$BT345:$BW345)=4)),\"Y\",\"N\"))","v":"-"},{"$f":"IF($B338=\"N\",\"\",IF('Enrollment Form'!$B345=\"Subscriber\",\"-\",IF(COUNTA('Enrollment Form'!$BL345,'Enrollment Form'!$BN345)=2,\"Y\",\"N\")))","v":""},{"$f":"IF($B338=\"N\",\"\",IF(OR('Enrollment Form'!$AX345=\"\",'Enrollment Form'!$AX345=\"No\"),\"-\",IF(AND('Enrollment Form'!$AX345=\"Yes\",COUNTA('Enrollment Form'!$CR345)=1),\"Y\",\"N\")))","v":""},{"$f":"IF(OR('Enrollment Form'!$CR345=\"\",'Enrollment Form'!$CR345=\"No\"),\"-\",IF(COUNTA('Enrollment Form'!$CT345:$CU345)=2,\"Y\",\"N\"))","v":"-"},{"$f":"IF($B338=\"N\",\"\",IF(COUNTIF('Enrollment Form'!$DG345:$DP345,\"Other\")=COUNTA('Enrollment Form'!$DK345,'Enrollment Form'!$DH345,'Enrollment Form'!$DN345,'Enrollment Form'!$DQ345),\"Y\",\"N\"))","v":""},{"$f":"IF($B338=\"N\",\"\",IF(OR('Enrollment Form'!B345<>\"Subscriber\",'Enrollment Form'!C345=\"ROC\",COUNTIF('Enrollment Form'!AV345:AW345,\"Yes\")>=1),\"-\",IF(AND('Enrollment Form'!C345=\"Enroll\",COUNTIF('Enrollment Form'!AV345:AW345,\"No\")=2,'Enrollment Form'!AX345=\"\"),\"N\",\"Y\")))","v":""},{"$f":"IF(OR(B338=\"N\",'Enrollment Form'!B345<>\"Subscriber\",'Enrollment Form'!C345=\"ROC\",'Enrollment Form'!O345<>\"Multiple of Salary\"),\"-\",IF(COUNTA('Enrollment Form'!T345:U345)<2,\"N\",\"Y\"))","v":"-"},{"$f":"IF(B338=\"N\",\"\",IF(OR('Enrollment Form'!C345=\"ROC\",'Enrollment Form'!B345<>\"Subscriber\",'Enrollment Form'!O345=\"Waive\",'Enrollment Form'!O345=\"\"),\"-\",IF('Enrollment Form'!P345=\"\",\"N\",\"Y\")))","v":""},{"$f":"IF($B338=\"N\",\"\",IF(AND('Enrollment Form'!$C345=\"ROC\",'Enrollment Form'!$DR345<>\"\"),\"Y\",IF(AND('Enrollment Form'!$C345=\"ROC\",'Enrollment Form'!$DR345=\"\"),\"N\",IF(AND('Enrollment Form'!$C345=\"Enroll\",'Enrollment Form'!$B345=\"Subscriber\",'Enrollment Form'!$CX345=\"No\",'Enrollment Form'!$DR345=\"\"),\"N\",IF(AND('Enrollment Form'!$C345=\"Enroll\",'Enrollment Form'!$B345=\"Subscriber\",'Enrollment Form'!$CX345=\"Yes\"),\"-\",\"Y\")))))","v":""},{"$f":"IF($B338=\"N\",\"\",IF(AND('Enrollment Form'!$C345=\"ROC\",'Enrollment Form'!$DS345<>\"\"),\"Y\",IF(AND('Enrollment Form'!$C345=\"ROC\",'Enrollment Form'!$DS345=\"\"),\"N\",IF(AND('Enrollment Form'!$C345=\"Enroll\",'Enrollment Form'!$B345=\"Subscriber\",'Enrollment Form'!$CX345=\"No\",'Enrollment Form'!$DS345=\"\"),\"N\",IF(AND('Enrollment Form'!$C345=\"Enroll\",'Enrollment Form'!$B345=\"Subscriber\",'Enrollment Form'!$CX345=\"Yes\"),\"-\",\"Y\")))))","v":""},{"$f":"IF('Enrollment Form'!AH345=\"\",\"\",IF(ISERROR(SEARCH(\".\",'Enrollment Form'!AH345,SEARCH(\"@\",'Enrollment Form'!AH345))),\"N\",\"Y\"))","v":""},{"$f":"IF(OR($B338=\"N\",'Enrollment Form'!$G345=\"\"),\"\",IF('Enrollment Form'!$B345<>\"Subscriber\",\"-\",IF(COUNTIF('Enrollment Form'!$AV345:$AW345,\"Yes\")=2,\"N\",\"Y\")))","v":""},{"$f":"IF(OR('Enrollment Form'!$CJ345=\"\",'Enrollment Form'!$CJ345=\"No\"),\"-\",IF(AND('Enrollment Form'!$CJ345=\"Yes\",'Enrollment Form'!$CK345=\"\"),\"N\",\"Y\"))","v":"-"},{"$f":"IF(OR('Enrollment Form'!$CL345=\"\",'Enrollment Form'!$CL345=\"No\"),\"-\",IF(AND('Enrollment Form'!$CL345=\"Yes\",'Enrollment Form'!$CM345=\"\"),\"N\",\"Y\"))","v":"-"},{"$f":"IF(OR('Enrollment Form'!$CN345=\"\",'Enrollment Form'!$CN345=\"No\"),\"-\",IF(AND('Enrollment Form'!$CN345=\"Yes\",'Enrollment Form'!$CO345=\"\"),\"N\",\"Y\"))","v":"-"},{"$f":"IF(OR('Enrollment Form'!$CN345=\"\",'Enrollment Form'!$CN345=\"No\"),\"-\",IF(AND('Enrollment Form'!$CN345=\"Yes\",'Enrollment Form'!$CP345=\"\"),\"N\",\"Y\"))","v":"-"},{"$f":"IF('Enrollment Form'!B345<>\"Subscriber\",\"-\",IF(AND('Enrollment Form'!B345=\"Subscriber\",'Enrollment Form'!C345=\"Enroll\",'Enrollment Form'!AA345=\"\"),\"N\",\"Y\"))","v":"-"},{"$f":"IF(OR('Enrollment Form'!B345=\"Subscriber\",'Enrollment Form'!B345=\"\"),\"-\",IF('Enrollment Form'!BP345=\"\",\"N\",\"Y\"))","v":"-"},{"$f":"IF('Enrollment Form'!B345<>\"Subscriber\",\"-\",IF(AND('Enrollment Form'!B345=\"Subscriber\",'Enrollment Form'!G345=\"\"),\"N\",\"Y\"))","v":"-"},{"$f":"IF('Enrollment Form'!A345=\"\",\"\",IF('Enrollment Form'!B345=\"Subscriber\",\"-\",IF(AND('Enrollment Form'!B345<>\"Subscriber\",'Enrollment Form'!G345='Enrollment Form'!H345),\"N\",\"Y\")))","v":""},0]
[346,{"$f":"IF('Enrollment Form'!$A346<>\"\",\"Y\",\"N\")","v":"N"},{"$f":"IF(AND('Enrollment Form'!$B346=\"\",'Enrollment Form'!$C346<>\"\"),\"N\",IF($B339=\"N\",\"\",\"Y\"))","v":""},{"$f":"IF(OR($B339=\"N\",'Enrollment Form'!G346=\"\"),\"\",IF('Enrollment Form'!$B346<>\"Subscriber\",\"\",IF('Enrollment Form'!$G346='Enrollment Form'!$H346,\"Y\",\"N\")))","v":""},{"$f":"IF($B339=\"N\",\"\",IF(AND(COUNTIFS('Enrollment Form'!$H$11:$H$1000,'Enrollment Form'!$H346,'Enrollment Form'!$B$11:$B$1000,'Enrollment Form'!$B346)>1,'Enrollment Form'!$H346<>\"\"),\"N\",\"Y\"))","v":""},{"$f":"IF($B339=\"N\",\"\",IF(LEN('Enrollment Form'!$Y346)=0,\"\",IF(LEN('Enrollment Form'!$Y346)<>5,\"N\",\"Y\")))","v":""},{"$f":"IF($B339=\"N\",\"\",IF(LEN('Enrollment Form'!$AD346=0),\"\",IF(LEN('Enrollment Form'!$AD346)<>5,\"N\",\"Y\")))","v":""},{"$f":"IF($B339=\"N\",\"\",IF(LEN('Enrollment Form'!$BS346=0),\"\",IF(LEN('Enrollment Form'!$BS346)<>5,\"N\",\"Y\")))","v":""},{"$f":"IF($B339=\"N\",\"\",IF(LEN('Enrollment Form'!$AE346)=0,\"\",IF(LEN('Enrollment Form'!$AE346)<>10,\"N\",\"Y\")))","v":""},{"$f":"IF($B339=\"N\",\"\",IF(LEN('Enrollment Form'!$AF346)=0,\"\",IF(LEN('Enrollment Form'!$AF346)<>10,\"N\",\"Y\")))","v":""},{"$f":"IF('Enrollment Form'!$O346<>\"Graded\",\"-\",IF(AND('Enrollment Form'!$O346=\"Graded\",'Enrollment Form'!$AR346<>\"\"),\"Y\",\"N\"))","v":"-"},{"$f":"IF($B339=\"N\",\"\",IF(OR('Enrollment Form'!$B346<>\"Subscriber\",'Enrollment Form'!$C346=\"ROC\"),\"-\",IF(AND('Enrollment Form'!$B346=\"Subscriber\",'Enrollment Form'!$C346=\"Enroll\",'Enrollment Form'!$AJ346<>\"\"),\"Y\",\"N\")))","v":""},{"$f":"IF($B339=\"N\",\"\",IF(OR('Enrollment Form'!$B346<>\"Subscriber\",'Enrollment Form'!$C346=\"ROC\"),\"-\",IF(AND('Enrollment Form'!$B346=\"Subscriber\",'Enrollment Form'!$C346=\"Enroll\",'Enrollment Form'!$AK346<>\"\"),\"Y\",\"N\")))","v":""},{"$f":"IF($B339=\"N\",\"\",IF(OR('Enrollment Form'!$B346<>\"Subscriber\",'Enrollment Form'!$C346=\"ROC\"),\"-\",IF(AND('Enrollment Form'!$B346=\"Subscriber\",'Enrollment Form'!$C346=\"Enroll\",'Enrollment Form'!$AL346<>\"\"),\"Y\",\"N\")))","v":""},{"$f":"IF($B339=\"N\",\"\",IF(OR('Enrollment Form'!$B346<>\"Subscriber\",'Enrollment Form'!$C346=\"ROC\"),\"-\",IF(AND('Enrollment Form'!$B346=\"Subscriber\",'Enrollment Form'!$C346=\"Enroll\",'Enrollment Form'!$AP346<>\"\"),\"Y\",\"N\")))","v":""},{"$f":"IF($B339=\"N\",\"\",IF(OR('Enrollment Form'!$B346<>\"Subscriber\",'Enrollment Form'!$C346=\"ROC\"),\"-\",IF(AND('Enrollment Form'!$B346=\"Subscriber\",'Enrollment Form'!$C346=\"Enroll\",'Enrollment Form'!$AQ346<>\"\"),\"Y\",\"N\")))","v":""},{"$f":"IF($B339=\"N\",\"\",IF(OR('Enrollment Form'!$B346<>\"Subscriber\",'Enrollment Form'!$C346=\"ROC\"),\"-\",IF(AND('Enrollment Form'!$B346=\"Subscriber\",'Enrollment Form'!$C346=\"Enroll\",'Enrollment Form'!$AS346<>\"\"),\"Y\",\"N\")))","v":""},{"$f":"IF($B339=\"N\",\"\",IF($Q339=\"-\",\"-\",IF(AND($Q339=\"Y\",'Enrollment Form'!$AS346=\"No\"),\"-\",IF(AND($Q339=\"Y\",'Enrollment Form'!$AS346=\"Yes\",'Enrollment Form'!$AT346<>\"\"),\"Y\",\"N\"))))","v":""},{"$f":"IF($B339=\"N\",\"\",IF(OR('Enrollment Form'!$B346<>\"Subscriber\",'Enrollment Form'!$C346=\"ROC\"),\"-\",IF(AND('Enrollment Form'!$B346=\"Subscriber\",'Enrollment Form'!$C346=\"Enroll\",'Enrollment Form'!$CV346<>\"\"),\"Y\",\"N\")))","v":""},{"$f":"IF($B339=\"N\",\"\",IF($S339=\"-\",\"-\",IF(AND($S339=\"Y\",'Enrollment Form'!$CV346=\"No\"),\"-\",IF(AND($S339=\"Y\",'Enrollment Form'!$CV346=\"Yes\",'Enrollment Form'!$CW346<>\"\"),\"Y\",\"N\"))))","v":""},{"$f":"IF(OR('Enrollment Form'!$AY346=\"Yes\",'Enrollment Form'!$AY346=\"\"),\"-\",IF(OR(AND('Enrollment Form'!$AY346=\"No\",ISERROR(FIND(\"HMO\",VLOOKUP('Enrollment Form'!G346,'Enrollment Form'!H$11:J$1000,3,FALSE),1))=FALSE,COUNTA('Enrollment Form'!$AZ346:$BC346)=4),AND('Enrollment Form'!$AY346=\"No\",ISERROR(FIND(\"HMO\",VLOOKUP('Enrollment Form'!G346,'Enrollment Form'!H$11:J$1000,3,FALSE),1))=FALSE,COUNTA('Enrollment Form'!$BT346:$BW346)=4)),\"Y\",\"N\"))","v":"-"},{"$f":"IF($B339=\"N\",\"\",IF('Enrollment Form'!$B346=\"Subscriber\",\"-\",IF(COUNTA('Enrollment Form'!$BL346,'Enrollment Form'!$BN346)=2,\"Y\",\"N\")))","v":""},{"$f":"IF($B339=\"N\",\"\",IF(OR('Enrollment Form'!$AX346=\"\",'Enrollment Form'!$AX346=\"No\"),\"-\",IF(AND('Enrollment Form'!$AX346=\"Yes\",COUNTA('Enrollment Form'!$CR346)=1),\"Y\",\"N\")))","v":""},{"$f":"IF(OR('Enrollment Form'!$CR346=\"\",'Enrollment Form'!$CR346=\"No\"),\"-\",IF(COUNTA('Enrollment Form'!$CT346:$CU346)=2,\"Y\",\"N\"))","v":"-"},{"$f":"IF($B339=\"N\",\"\",IF(COUNTIF('Enrollment Form'!$DG346:$DP346,\"Other\")=COUNTA('Enrollment Form'!$DK346,'Enrollment Form'!$DH346,'Enrollment Form'!$DN346,'Enrollment Form'!$DQ346),\"Y\",\"N\"))","v":""},{"$f":"IF($B339=\"N\",\"\",IF(OR('Enrollment Form'!B346<>\"Subscriber\",'Enrollment Form'!C346=\"ROC\",COUNTIF('Enrollment Form'!AV346:AW346,\"Yes\")>=1),\"-\",IF(AND('Enrollment Form'!C346=\"Enroll\",COUNTIF('Enrollment Form'!AV346:AW346,\"No\")=2,'Enrollment Form'!AX346=\"\"),\"N\",\"Y\")))","v":""},{"$f":"IF(OR(B339=\"N\",'Enrollment Form'!B346<>\"Subscriber\",'Enrollment Form'!C346=\"ROC\",'Enrollment Form'!O346<>\"Multiple of Salary\"),\"-\",IF(COUNTA('Enrollment Form'!T346:U346)<2,\"N\",\"Y\"))","v":"-"},{"$f":"IF(B339=\"N\",\"\",IF(OR('Enrollment Form'!C346=\"ROC\",'Enrollment Form'!B346<>\"Subscriber\",'Enrollment Form'!O346=\"Waive\",'Enrollment Form'!O346=\"\"),\"-\",IF('Enrollment Form'!P346=\"\",\"N\",\"Y\")))","v":""},{"$f":"IF($B339=\"N\",\"\",IF(AND('Enrollment Form'!$C346=\"ROC\",'Enrollment Form'!$DR346<>\"\"),\"Y\",IF(AND('Enrollment Form'!$C346=\"ROC\",'Enrollment Form'!$DR346=\"\"),\"N\",IF(AND('Enrollment Form'!$C346=\"Enroll\",'Enrollment Form'!$B346=\"Subscriber\",'Enrollment Form'!$CX346=\"No\",'Enrollment Form'!$DR346=\"\"),\"N\",IF(AND('Enrollment Form'!$C346=\"Enroll\",'Enrollment Form'!$B346=\"Subscriber\",'Enrollment Form'!$CX346=\"Yes\"),\"-\",\"Y\")))))","v":""},{"$f":"IF($B339=\"N\",\"\",IF(AND('Enrollment Form'!$C346=\"ROC\",'Enrollment Form'!$DS346<>\"\"),\"Y\",IF(AND('Enrollment Form'!$C346=\"ROC\",'Enrollment Form'!$DS346=\"\"),\"N\",IF(AND('Enrollment Form'!$C346=\"Enroll\",'Enrollment Form'!$B346=\"Subscriber\",'Enrollment Form'!$CX346=\"No\",'Enrollment Form'!$DS346=\"\"),\"N\",IF(AND('Enrollment Form'!$C346=\"Enroll\",'Enrollment Form'!$B346=\"Subscriber\",'Enrollment Form'!$CX346=\"Yes\"),\"-\",\"Y\")))))","v":""},{"$f":"IF('Enrollment Form'!AH346=\"\",\"\",IF(ISERROR(SEARCH(\".\",'Enrollment Form'!AH346,SEARCH(\"@\",'Enrollment Form'!AH346))),\"N\",\"Y\"))","v":""},{"$f":"IF(OR($B339=\"N\",'Enrollment Form'!$G346=\"\"),\"\",IF('Enrollment Form'!$B346<>\"Subscriber\",\"-\",IF(COUNTIF('Enrollment Form'!$AV346:$AW346,\"Yes\")=2,\"N\",\"Y\")))","v":""},{"$f":"IF(OR('Enrollment Form'!$CJ346=\"\",'Enrollment Form'!$CJ346=\"No\"),\"-\",IF(AND('Enrollment Form'!$CJ346=\"Yes\",'Enrollment Form'!$CK346=\"\"),\"N\",\"Y\"))","v":"-"},{"$f":"IF(OR('Enrollment Form'!$CL346=\"\",'Enrollment Form'!$CL346=\"No\"),\"-\",IF(AND('Enrollment Form'!$CL346=\"Yes\",'Enrollment Form'!$CM346=\"\"),\"N\",\"Y\"))","v":"-"},{"$f":"IF(OR('Enrollment Form'!$CN346=\"\",'Enrollment Form'!$CN346=\"No\"),\"-\",IF(AND('Enrollment Form'!$CN346=\"Yes\",'Enrollment Form'!$CO346=\"\"),\"N\",\"Y\"))","v":"-"},{"$f":"IF(OR('Enrollment Form'!$CN346=\"\",'Enrollment Form'!$CN346=\"No\"),\"-\",IF(AND('Enrollment Form'!$CN346=\"Yes\",'Enrollment Form'!$CP346=\"\"),\"N\",\"Y\"))","v":"-"},{"$f":"IF('Enrollment Form'!B346<>\"Subscriber\",\"-\",IF(AND('Enrollment Form'!B346=\"Subscriber\",'Enrollment Form'!C346=\"Enroll\",'Enrollment Form'!AA346=\"\"),\"N\",\"Y\"))","v":"-"},{"$f":"IF(OR('Enrollment Form'!B346=\"Subscriber\",'Enrollment Form'!B346=\"\"),\"-\",IF('Enrollment Form'!BP346=\"\",\"N\",\"Y\"))","v":"-"},{"$f":"IF('Enrollment Form'!B346<>\"Subscriber\",\"-\",IF(AND('Enrollment Form'!B346=\"Subscriber\",'Enrollment Form'!G346=\"\"),\"N\",\"Y\"))","v":"-"},{"$f":"IF('Enrollment Form'!A346=\"\",\"\",IF('Enrollment Form'!B346=\"Subscriber\",\"-\",IF(AND('Enrollment Form'!B346<>\"Subscriber\",'Enrollment Form'!G346='Enrollment Form'!H346),\"N\",\"Y\")))","v":""},0]
[347,{"$f":"IF('Enrollment Form'!$A347<>\"\",\"Y\",\"N\")","v":"N"},{"$f":"IF(AND('Enrollment Form'!$B347=\"\",'Enrollment Form'!$C347<>\"\"),\"N\",IF($B340=\"N\",\"\",\"Y\"))","v":""},{"$f":"IF(OR($B340=\"N\",'Enrollment Form'!G347=\"\"),\"\",IF('Enrollment Form'!$B347<>\"Subscriber\",\"\",IF('Enrollment Form'!$G347='Enrollment Form'!$H347,\"Y\",\"N\")))","v":""},{"$f":"IF($B340=\"N\",\"\",IF(AND(COUNTIFS('Enrollment Form'!$H$11:$H$1000,'Enrollment Form'!$H347,'Enrollment Form'!$B$11:$B$1000,'Enrollment Form'!$B347)>1,'Enrollment Form'!$H347<>\"\"),\"N\",\"Y\"))","v":""},{"$f":"IF($B340=\"N\",\"\",IF(LEN('Enrollment Form'!$Y347)=0,\"\",IF(LEN('Enrollment Form'!$Y347)<>5,\"N\",\"Y\")))","v":""},{"$f":"IF($B340=\"N\",\"\",IF(LEN('Enrollment Form'!$AD347=0),\"\",IF(LEN('Enrollment Form'!$AD347)<>5,\"N\",\"Y\")))","v":""},{"$f":"IF($B340=\"N\",\"\",IF(LEN('Enrollment Form'!$BS347=0),\"\",IF(LEN('Enrollment Form'!$BS347)<>5,\"N\",\"Y\")))","v":""},{"$f":"IF($B340=\"N\",\"\",IF(LEN('Enrollment Form'!$AE347)=0,\"\",IF(LEN('Enrollment Form'!$AE347)<>10,\"N\",\"Y\")))","v":""},{"$f":"IF($B340=\"N\",\"\",IF(LEN('Enrollment Form'!$AF347)=0,\"\",IF(LEN('Enrollment Form'!$AF347)<>10,\"N\",\"Y\")))","v":""},{"$f":"IF('Enrollment Form'!$O347<>\"Graded\",\"-\",IF(AND('Enrollment Form'!$O347=\"Graded\",'Enrollment Form'!$AR347<>\"\"),\"Y\",\"N\"))","v":"-"},{"$f":"IF($B340=\"N\",\"\",IF(OR('Enrollment Form'!$B347<>\"Subscriber\",'Enrollment Form'!$C347=\"ROC\"),\"-\",IF(AND('Enrollment Form'!$B347=\"Subscriber\",'Enrollment Form'!$C347=\"Enroll\",'Enrollment Form'!$AJ347<>\"\"),\"Y\",\"N\")))","v":""},{"$f":"IF($B340=\"N\",\"\",IF(OR('Enrollment Form'!$B347<>\"Subscriber\",'Enrollment Form'!$C347=\"ROC\"),\"-\",IF(AND('Enrollment Form'!$B347=\"Subscriber\",'Enrollment Form'!$C347=\"Enroll\",'Enrollment Form'!$AK347<>\"\"),\"Y\",\"N\")))","v":""},{"$f":"IF($B340=\"N\",\"\",IF(OR('Enrollment Form'!$B347<>\"Subscriber\",'Enrollment Form'!$C347=\"ROC\"),\"-\",IF(AND('Enrollment Form'!$B347=\"Subscriber\",'Enrollment Form'!$C347=\"Enroll\",'Enrollment Form'!$AL347<>\"\"),\"Y\",\"N\")))","v":""},{"$f":"IF($B340=\"N\",\"\",IF(OR('Enrollment Form'!$B347<>\"Subscriber\",'Enrollment Form'!$C347=\"ROC\"),\"-\",IF(AND('Enrollment Form'!$B347=\"Subscriber\",'Enrollment Form'!$C347=\"Enroll\",'Enrollment Form'!$AP347<>\"\"),\"Y\",\"N\")))","v":""},{"$f":"IF($B340=\"N\",\"\",IF(OR('Enrollment Form'!$B347<>\"Subscriber\",'Enrollment Form'!$C347=\"ROC\"),\"-\",IF(AND('Enrollment Form'!$B347=\"Subscriber\",'Enrollment Form'!$C347=\"Enroll\",'Enrollment Form'!$AQ347<>\"\"),\"Y\",\"N\")))","v":""},{"$f":"IF($B340=\"N\",\"\",IF(OR('Enrollment Form'!$B347<>\"Subscriber\",'Enrollment Form'!$C347=\"ROC\"),\"-\",IF(AND('Enrollment Form'!$B347=\"Subscriber\",'Enrollment Form'!$C347=\"Enroll\",'Enrollment Form'!$AS347<>\"\"),\"Y\",\"N\")))","v":""},{"$f":"IF($B340=\"N\",\"\",IF($Q340=\"-\",\"-\",IF(AND($Q340=\"Y\",'Enrollment Form'!$AS347=\"No\"),\"-\",IF(AND($Q340=\"Y\",'Enrollment Form'!$AS347=\"Yes\",'Enrollment Form'!$AT347<>\"\"),\"Y\",\"N\"))))","v":""},{"$f":"IF($B340=\"N\",\"\",IF(OR('Enrollment Form'!$B347<>\"Subscriber\",'Enrollment Form'!$C347=\"ROC\"),\"-\",IF(AND('Enrollment Form'!$B347=\"Subscriber\",'Enrollment Form'!$C347=\"Enroll\",'Enrollment Form'!$CV347<>\"\"),\"Y\",\"N\")))","v":""},{"$f":"IF($B340=\"N\",\"\",IF($S340=\"-\",\"-\",IF(AND($S340=\"Y\",'Enrollment Form'!$CV347=\"No\"),\"-\",IF(AND($S340=\"Y\",'Enrollment Form'!$CV347=\"Yes\",'Enrollment Form'!$CW347<>\"\"),\"Y\",\"N\"))))","v":""},{"$f":"IF(OR('Enrollment Form'!$AY347=\"Yes\",'Enrollment Form'!$AY347=\"\"),\"-\",IF(OR(AND('Enrollment Form'!$AY347=\"No\",ISERROR(FIND(\"HMO\",VLOOKUP('Enrollment Form'!G347,'Enrollment Form'!H$11:J$1000,3,FALSE),1))=FALSE,COUNTA('Enrollment Form'!$AZ347:$BC347)=4),AND('Enrollment Form'!$AY347=\"No\",ISERROR(FIND(\"HMO\",VLOOKUP('Enrollment Form'!G347,'Enrollment Form'!H$11:J$1000,3,FALSE),1))=FALSE,COUNTA('Enrollment Form'!$BT347:$BW347)=4)),\"Y\",\"N\"))","v":"-"},{"$f":"IF($B340=\"N\",\"\",IF('Enrollment Form'!$B347=\"Subscriber\",\"-\",IF(COUNTA('Enrollment Form'!$BL347,'Enrollment Form'!$BN347)=2,\"Y\",\"N\")))","v":""},{"$f":"IF($B340=\"N\",\"\",IF(OR('Enrollment Form'!$AX347=\"\",'Enrollment Form'!$AX347=\"No\"),\"-\",IF(AND('Enrollment Form'!$AX347=\"Yes\",COUNTA('Enrollment Form'!$CR347)=1),\"Y\",\"N\")))","v":""},{"$f":"IF(OR('Enrollment Form'!$CR347=\"\",'Enrollment Form'!$CR347=\"No\"),\"-\",IF(COUNTA('Enrollment Form'!$CT347:$CU347)=2,\"Y\",\"N\"))","v":"-"},{"$f":"IF($B340=\"N\",\"\",IF(COUNTIF('Enrollment Form'!$DG347:$DP347,\"Other\")=COUNTA('Enrollment Form'!$DK347,'Enrollment Form'!$DH347,'Enrollment Form'!$DN347,'Enrollment Form'!$DQ347),\"Y\",\"N\"))","v":""},{"$f":"IF($B340=\"N\",\"\",IF(OR('Enrollment Form'!B347<>\"Subscriber\",'Enrollment Form'!C347=\"ROC\",COUNTIF('Enrollment Form'!AV347:AW347,\"Yes\")>=1),\"-\",IF(AND('Enrollment Form'!C347=\"Enroll\",COUNTIF('Enrollment Form'!AV347:AW347,\"No\")=2,'Enrollment Form'!AX347=\"\"),\"N\",\"Y\")))","v":""},{"$f":"IF(OR(B340=\"N\",'Enrollment Form'!B347<>\"Subscriber\",'Enrollment Form'!C347=\"ROC\",'Enrollment Form'!O347<>\"Multiple of Salary\"),\"-\",IF(COUNTA('Enrollment Form'!T347:U347)<2,\"N\",\"Y\"))","v":"-"},{"$f":"IF(B340=\"N\",\"\",IF(OR('Enrollment Form'!C347=\"ROC\",'Enrollment Form'!B347<>\"Subscriber\",'Enrollment Form'!O347=\"Waive\",'Enrollment Form'!O347=\"\"),\"-\",IF('Enrollment Form'!P347=\"\",\"N\",\"Y\")))","v":""},{"$f":"IF($B340=\"N\",\"\",IF(AND('Enrollment Form'!$C347=\"ROC\",'Enrollment Form'!$DR347<>\"\"),\"Y\",IF(AND('Enrollment Form'!$C347=\"ROC\",'Enrollment Form'!$DR347=\"\"),\"N\",IF(AND('Enrollment Form'!$C347=\"Enroll\",'Enrollment Form'!$B347=\"Subscriber\",'Enrollment Form'!$CX347=\"No\",'Enrollment Form'!$DR347=\"\"),\"N\",IF(AND('Enrollment Form'!$C347=\"Enroll\",'Enrollment Form'!$B347=\"Subscriber\",'Enrollment Form'!$CX347=\"Yes\"),\"-\",\"Y\")))))","v":""},{"$f":"IF($B340=\"N\",\"\",IF(AND('Enrollment Form'!$C347=\"ROC\",'Enrollment Form'!$DS347<>\"\"),\"Y\",IF(AND('Enrollment Form'!$C347=\"ROC\",'Enrollment Form'!$DS347=\"\"),\"N\",IF(AND('Enrollment Form'!$C347=\"Enroll\",'Enrollment Form'!$B347=\"Subscriber\",'Enrollment Form'!$CX347=\"No\",'Enrollment Form'!$DS347=\"\"),\"N\",IF(AND('Enrollment Form'!$C347=\"Enroll\",'Enrollment Form'!$B347=\"Subscriber\",'Enrollment Form'!$CX347=\"Yes\"),\"-\",\"Y\")))))","v":""},{"$f":"IF('Enrollment Form'!AH347=\"\",\"\",IF(ISERROR(SEARCH(\".\",'Enrollment Form'!AH347,SEARCH(\"@\",'Enrollment Form'!AH347))),\"N\",\"Y\"))","v":""},{"$f":"IF(OR($B340=\"N\",'Enrollment Form'!$G347=\"\"),\"\",IF('Enrollment Form'!$B347<>\"Subscriber\",\"-\",IF(COUNTIF('Enrollment Form'!$AV347:$AW347,\"Yes\")=2,\"N\",\"Y\")))","v":""},{"$f":"IF(OR('Enrollment Form'!$CJ347=\"\",'Enrollment Form'!$CJ347=\"No\"),\"-\",IF(AND('Enrollment Form'!$CJ347=\"Yes\",'Enrollment Form'!$CK347=\"\"),\"N\",\"Y\"))","v":"-"},{"$f":"IF(OR('Enrollment Form'!$CL347=\"\",'Enrollment Form'!$CL347=\"No\"),\"-\",IF(AND('Enrollment Form'!$CL347=\"Yes\",'Enrollment Form'!$CM347=\"\"),\"N\",\"Y\"))","v":"-"},{"$f":"IF(OR('Enrollment Form'!$CN347=\"\",'Enrollment Form'!$CN347=\"No\"),\"-\",IF(AND('Enrollment Form'!$CN347=\"Yes\",'Enrollment Form'!$CO347=\"\"),\"N\",\"Y\"))","v":"-"},{"$f":"IF(OR('Enrollment Form'!$CN347=\"\",'Enrollment Form'!$CN347=\"No\"),\"-\",IF(AND('Enrollment Form'!$CN347=\"Yes\",'Enrollment Form'!$CP347=\"\"),\"N\",\"Y\"))","v":"-"},{"$f":"IF('Enrollment Form'!B347<>\"Subscriber\",\"-\",IF(AND('Enrollment Form'!B347=\"Subscriber\",'Enrollment Form'!C347=\"Enroll\",'Enrollment Form'!AA347=\"\"),\"N\",\"Y\"))","v":"-"},{"$f":"IF(OR('Enrollment Form'!B347=\"Subscriber\",'Enrollment Form'!B347=\"\"),\"-\",IF('Enrollment Form'!BP347=\"\",\"N\",\"Y\"))","v":"-"},{"$f":"IF('Enrollment Form'!B347<>\"Subscriber\",\"-\",IF(AND('Enrollment Form'!B347=\"Subscriber\",'Enrollment Form'!G347=\"\"),\"N\",\"Y\"))","v":"-"},{"$f":"IF('Enrollment Form'!A347=\"\",\"\",IF('Enrollment Form'!B347=\"Subscriber\",\"-\",IF(AND('Enrollment Form'!B347<>\"Subscriber\",'Enrollment Form'!G347='Enrollment Form'!H347),\"N\",\"Y\")))","v":""},0]
[348,{"$f":"IF('Enrollment Form'!$A348<>\"\",\"Y\",\"N\")","v":"N"},{"$f":"IF(AND('Enrollment Form'!$B348=\"\",'Enrollment Form'!$C348<>\"\"),\"N\",IF($B341=\"N\",\"\",\"Y\"))","v":""},{"$f":"IF(OR($B341=\"N\",'Enrollment Form'!G348=\"\"),\"\",IF('Enrollment Form'!$B348<>\"Subscriber\",\"\",IF('Enrollment Form'!$G348='Enrollment Form'!$H348,\"Y\",\"N\")))","v":""},{"$f":"IF($B341=\"N\",\"\",IF(AND(COUNTIFS('Enrollment Form'!$H$11:$H$1000,'Enrollment Form'!$H348,'Enrollment Form'!$B$11:$B$1000,'Enrollment Form'!$B348)>1,'Enrollment Form'!$H348<>\"\"),\"N\",\"Y\"))","v":""},{"$f":"IF($B341=\"N\",\"\",IF(LEN('Enrollment Form'!$Y348)=0,\"\",IF(LEN('Enrollment Form'!$Y348)<>5,\"N\",\"Y\")))","v":""},{"$f":"IF($B341=\"N\",\"\",IF(LEN('Enrollment Form'!$AD348=0),\"\",IF(LEN('Enrollment Form'!$AD348)<>5,\"N\",\"Y\")))","v":""},{"$f":"IF($B341=\"N\",\"\",IF(LEN('Enrollment Form'!$BS348=0),\"\",IF(LEN('Enrollment Form'!$BS348)<>5,\"N\",\"Y\")))","v":""},{"$f":"IF($B341=\"N\",\"\",IF(LEN('Enrollment Form'!$AE348)=0,\"\",IF(LEN('Enrollment Form'!$AE348)<>10,\"N\",\"Y\")))","v":""},{"$f":"IF($B341=\"N\",\"\",IF(LEN('Enrollment Form'!$AF348)=0,\"\",IF(LEN('Enrollment Form'!$AF348)<>10,\"N\",\"Y\")))","v":""},{"$f":"IF('Enrollment Form'!$O348<>\"Graded\",\"-\",IF(AND('Enrollment Form'!$O348=\"Graded\",'Enrollment Form'!$AR348<>\"\"),\"Y\",\"N\"))","v":"-"},{"$f":"IF($B341=\"N\",\"\",IF(OR('Enrollment Form'!$B348<>\"Subscriber\",'Enrollment Form'!$C348=\"ROC\"),\"-\",IF(AND('Enrollment Form'!$B348=\"Subscriber\",'Enrollment Form'!$C348=\"Enroll\",'Enrollment Form'!$AJ348<>\"\"),\"Y\",\"N\")))","v":""},{"$f":"IF($B341=\"N\",\"\",IF(OR('Enrollment Form'!$B348<>\"Subscriber\",'Enrollment Form'!$C348=\"ROC\"),\"-\",IF(AND('Enrollment Form'!$B348=\"Subscriber\",'Enrollment Form'!$C348=\"Enroll\",'Enrollment Form'!$AK348<>\"\"),\"Y\",\"N\")))","v":""},{"$f":"IF($B341=\"N\",\"\",IF(OR('Enrollment Form'!$B348<>\"Subscriber\",'Enrollment Form'!$C348=\"ROC\"),\"-\",IF(AND('Enrollment Form'!$B348=\"Subscriber\",'Enrollment Form'!$C348=\"Enroll\",'Enrollment Form'!$AL348<>\"\"),\"Y\",\"N\")))","v":""},{"$f":"IF($B341=\"N\",\"\",IF(OR('Enrollment Form'!$B348<>\"Subscriber\",'Enrollment Form'!$C348=\"ROC\"),\"-\",IF(AND('Enrollment Form'!$B348=\"Subscriber\",'Enrollment Form'!$C348=\"Enroll\",'Enrollment Form'!$AP348<>\"\"),\"Y\",\"N\")))","v":""},{"$f":"IF($B341=\"N\",\"\",IF(OR('Enrollment Form'!$B348<>\"Subscriber\",'Enrollment Form'!$C348=\"ROC\"),\"-\",IF(AND('Enrollment Form'!$B348=\"Subscriber\",'Enrollment Form'!$C348=\"Enroll\",'Enrollment Form'!$AQ348<>\"\"),\"Y\",\"N\")))","v":""},{"$f":"IF($B341=\"N\",\"\",IF(OR('Enrollment Form'!$B348<>\"Subscriber\",'Enrollment Form'!$C348=\"ROC\"),\"-\",IF(AND('Enrollment Form'!$B348=\"Subscriber\",'Enrollment Form'!$C348=\"Enroll\",'Enrollment Form'!$AS348<>\"\"),\"Y\",\"N\")))","v":""},{"$f":"IF($B341=\"N\",\"\",IF($Q341=\"-\",\"-\",IF(AND($Q341=\"Y\",'Enrollment Form'!$AS348=\"No\"),\"-\",IF(AND($Q341=\"Y\",'Enrollment Form'!$AS348=\"Yes\",'Enrollment Form'!$AT348<>\"\"),\"Y\",\"N\"))))","v":""},{"$f":"IF($B341=\"N\",\"\",IF(OR('Enrollment Form'!$B348<>\"Subscriber\",'Enrollment Form'!$C348=\"ROC\"),\"-\",IF(AND('Enrollment Form'!$B348=\"Subscriber\",'Enrollment Form'!$C348=\"Enroll\",'Enrollment Form'!$CV348<>\"\"),\"Y\",\"N\")))","v":""},{"$f":"IF($B341=\"N\",\"\",IF($S341=\"-\",\"-\",IF(AND($S341=\"Y\",'Enrollment Form'!$CV348=\"No\"),\"-\",IF(AND($S341=\"Y\",'Enrollment Form'!$CV348=\"Yes\",'Enrollment Form'!$CW348<>\"\"),\"Y\",\"N\"))))","v":""},{"$f":"IF(OR('Enrollment Form'!$AY348=\"Yes\",'Enrollment Form'!$AY348=\"\"),\"-\",IF(OR(AND('Enrollment Form'!$AY348=\"No\",ISERROR(FIND(\"HMO\",VLOOKUP('Enrollment Form'!G348,'Enrollment Form'!H$11:J$1000,3,FALSE),1))=FALSE,COUNTA('Enrollment Form'!$AZ348:$BC348)=4),AND('Enrollment Form'!$AY348=\"No\",ISERROR(FIND(\"HMO\",VLOOKUP('Enrollment Form'!G348,'Enrollment Form'!H$11:J$1000,3,FALSE),1))=FALSE,COUNTA('Enrollment Form'!$BT348:$BW348)=4)),\"Y\",\"N\"))","v":"-"},{"$f":"IF($B341=\"N\",\"\",IF('Enrollment Form'!$B348=\"Subscriber\",\"-\",IF(COUNTA('Enrollment Form'!$BL348,'Enrollment Form'!$BN348)=2,\"Y\",\"N\")))","v":""},{"$f":"IF($B341=\"N\",\"\",IF(OR('Enrollment Form'!$AX348=\"\",'Enrollment Form'!$AX348=\"No\"),\"-\",IF(AND('Enrollment Form'!$AX348=\"Yes\",COUNTA('Enrollment Form'!$CR348)=1),\"Y\",\"N\")))","v":""},{"$f":"IF(OR('Enrollment Form'!$CR348=\"\",'Enrollment Form'!$CR348=\"No\"),\"-\",IF(COUNTA('Enrollment Form'!$CT348:$CU348)=2,\"Y\",\"N\"))","v":"-"},{"$f":"IF($B341=\"N\",\"\",IF(COUNTIF('Enrollment Form'!$DG348:$DP348,\"Other\")=COUNTA('Enrollment Form'!$DK348,'Enrollment Form'!$DH348,'Enrollment Form'!$DN348,'Enrollment Form'!$DQ348),\"Y\",\"N\"))","v":""},{"$f":"IF($B341=\"N\",\"\",IF(OR('Enrollment Form'!B348<>\"Subscriber\",'Enrollment Form'!C348=\"ROC\",COUNTIF('Enrollment Form'!AV348:AW348,\"Yes\")>=1),\"-\",IF(AND('Enrollment Form'!C348=\"Enroll\",COUNTIF('Enrollment Form'!AV348:AW348,\"No\")=2,'Enrollment Form'!AX348=\"\"),\"N\",\"Y\")))","v":""},{"$f":"IF(OR(B341=\"N\",'Enrollment Form'!B348<>\"Subscriber\",'Enrollment Form'!C348=\"ROC\",'Enrollment Form'!O348<>\"Multiple of Salary\"),\"-\",IF(COUNTA('Enrollment Form'!T348:U348)<2,\"N\",\"Y\"))","v":"-"},{"$f":"IF(B341=\"N\",\"\",IF(OR('Enrollment Form'!C348=\"ROC\",'Enrollment Form'!B348<>\"Subscriber\",'Enrollment Form'!O348=\"Waive\",'Enrollment Form'!O348=\"\"),\"-\",IF('Enrollment Form'!P348=\"\",\"N\",\"Y\")))","v":""},{"$f":"IF($B341=\"N\",\"\",IF(AND('Enrollment Form'!$C348=\"ROC\",'Enrollment Form'!$DR348<>\"\"),\"Y\",IF(AND('Enrollment Form'!$C348=\"ROC\",'Enrollment Form'!$DR348=\"\"),\"N\",IF(AND('Enrollment Form'!$C348=\"Enroll\",'Enrollment Form'!$B348=\"Subscriber\",'Enrollment Form'!$CX348=\"No\",'Enrollment Form'!$DR348=\"\"),\"N\",IF(AND('Enrollment Form'!$C348=\"Enroll\",'Enrollment Form'!$B348=\"Subscriber\",'Enrollment Form'!$CX348=\"Yes\"),\"-\",\"Y\")))))","v":""},{"$f":"IF($B341=\"N\",\"\",IF(AND('Enrollment Form'!$C348=\"ROC\",'Enrollment Form'!$DS348<>\"\"),\"Y\",IF(AND('Enrollment Form'!$C348=\"ROC\",'Enrollment Form'!$DS348=\"\"),\"N\",IF(AND('Enrollment Form'!$C348=\"Enroll\",'Enrollment Form'!$B348=\"Subscriber\",'Enrollment Form'!$CX348=\"No\",'Enrollment Form'!$DS348=\"\"),\"N\",IF(AND('Enrollment Form'!$C348=\"Enroll\",'Enrollment Form'!$B348=\"Subscriber\",'Enrollment Form'!$CX348=\"Yes\"),\"-\",\"Y\")))))","v":""},{"$f":"IF('Enrollment Form'!AH348=\"\",\"\",IF(ISERROR(SEARCH(\".\",'Enrollment Form'!AH348,SEARCH(\"@\",'Enrollment Form'!AH348))),\"N\",\"Y\"))","v":""},{"$f":"IF(OR($B341=\"N\",'Enrollment Form'!$G348=\"\"),\"\",IF('Enrollment Form'!$B348<>\"Subscriber\",\"-\",IF(COUNTIF('Enrollment Form'!$AV348:$AW348,\"Yes\")=2,\"N\",\"Y\")))","v":""},{"$f":"IF(OR('Enrollment Form'!$CJ348=\"\",'Enrollment Form'!$CJ348=\"No\"),\"-\",IF(AND('Enrollment Form'!$CJ348=\"Yes\",'Enrollment Form'!$CK348=\"\"),\"N\",\"Y\"))","v":"-"},{"$f":"IF(OR('Enrollment Form'!$CL348=\"\",'Enrollment Form'!$CL348=\"No\"),\"-\",IF(AND('Enrollment Form'!$CL348=\"Yes\",'Enrollment Form'!$CM348=\"\"),\"N\",\"Y\"))","v":"-"},{"$f":"IF(OR('Enrollment Form'!$CN348=\"\",'Enrollment Form'!$CN348=\"No\"),\"-\",IF(AND('Enrollment Form'!$CN348=\"Yes\",'Enrollment Form'!$CO348=\"\"),\"N\",\"Y\"))","v":"-"},{"$f":"IF(OR('Enrollment Form'!$CN348=\"\",'Enrollment Form'!$CN348=\"No\"),\"-\",IF(AND('Enrollment Form'!$CN348=\"Yes\",'Enrollment Form'!$CP348=\"\"),\"N\",\"Y\"))","v":"-"},{"$f":"IF('Enrollment Form'!B348<>\"Subscriber\",\"-\",IF(AND('Enrollment Form'!B348=\"Subscriber\",'Enrollment Form'!C348=\"Enroll\",'Enrollment Form'!AA348=\"\"),\"N\",\"Y\"))","v":"-"},{"$f":"IF(OR('Enrollment Form'!B348=\"Subscriber\",'Enrollment Form'!B348=\"\"),\"-\",IF('Enrollment Form'!BP348=\"\",\"N\",\"Y\"))","v":"-"},{"$f":"IF('Enrollment Form'!B348<>\"Subscriber\",\"-\",IF(AND('Enrollment Form'!B348=\"Subscriber\",'Enrollment Form'!G348=\"\"),\"N\",\"Y\"))","v":"-"},{"$f":"IF('Enrollment Form'!A348=\"\",\"\",IF('Enrollment Form'!B348=\"Subscriber\",\"-\",IF(AND('Enrollment Form'!B348<>\"Subscriber\",'Enrollment Form'!G348='Enrollment Form'!H348),\"N\",\"Y\")))","v":""},0]
[349,{"$f":"IF('Enrollment Form'!$A349<>\"\",\"Y\",\"N\")","v":"N"},{"$f":"IF(AND('Enrollment Form'!$B349=\"\",'Enrollment Form'!$C349<>\"\"),\"N\",IF($B342=\"N\",\"\",\"Y\"))","v":""},{"$f":"IF(OR($B342=\"N\",'Enrollment Form'!G349=\"\"),\"\",IF('Enrollment Form'!$B349<>\"Subscriber\",\"\",IF('Enrollment Form'!$G349='Enrollment Form'!$H349,\"Y\",\"N\")))","v":""},{"$f":"IF($B342=\"N\",\"\",IF(AND(COUNTIFS('Enrollment Form'!$H$11:$H$1000,'Enrollment Form'!$H349,'Enrollment Form'!$B$11:$B$1000,'Enrollment Form'!$B349)>1,'Enrollment Form'!$H349<>\"\"),\"N\",\"Y\"))","v":""},{"$f":"IF($B342=\"N\",\"\",IF(LEN('Enrollment Form'!$Y349)=0,\"\",IF(LEN('Enrollment Form'!$Y349)<>5,\"N\",\"Y\")))","v":""},{"$f":"IF($B342=\"N\",\"\",IF(LEN('Enrollment Form'!$AD349=0),\"\",IF(LEN('Enrollment Form'!$AD349)<>5,\"N\",\"Y\")))","v":""},{"$f":"IF($B342=\"N\",\"\",IF(LEN('Enrollment Form'!$BS349=0),\"\",IF(LEN('Enrollment Form'!$BS349)<>5,\"N\",\"Y\")))","v":""},{"$f":"IF($B342=\"N\",\"\",IF(LEN('Enrollment Form'!$AE349)=0,\"\",IF(LEN('Enrollment Form'!$AE349)<>10,\"N\",\"Y\")))","v":""},{"$f":"IF($B342=\"N\",\"\",IF(LEN('Enrollment Form'!$AF349)=0,\"\",IF(LEN('Enrollment Form'!$AF349)<>10,\"N\",\"Y\")))","v":""},{"$f":"IF('Enrollment Form'!$O349<>\"Graded\",\"-\",IF(AND('Enrollment Form'!$O349=\"Graded\",'Enrollment Form'!$AR349<>\"\"),\"Y\",\"N\"))","v":"-"},{"$f":"IF($B342=\"N\",\"\",IF(OR('Enrollment Form'!$B349<>\"Subscriber\",'Enrollment Form'!$C349=\"ROC\"),\"-\",IF(AND('Enrollment Form'!$B349=\"Subscriber\",'Enrollment Form'!$C349=\"Enroll\",'Enrollment Form'!$AJ349<>\"\"),\"Y\",\"N\")))","v":""},{"$f":"IF($B342=\"N\",\"\",IF(OR('Enrollment Form'!$B349<>\"Subscriber\",'Enrollment Form'!$C349=\"ROC\"),\"-\",IF(AND('Enrollment Form'!$B349=\"Subscriber\",'Enrollment Form'!$C349=\"Enroll\",'Enrollment Form'!$AK349<>\"\"),\"Y\",\"N\")))","v":""},{"$f":"IF($B342=\"N\",\"\",IF(OR('Enrollment Form'!$B349<>\"Subscriber\",'Enrollment Form'!$C349=\"ROC\"),\"-\",IF(AND('Enrollment Form'!$B349=\"Subscriber\",'Enrollment Form'!$C349=\"Enroll\",'Enrollment Form'!$AL349<>\"\"),\"Y\",\"N\")))","v":""},{"$f":"IF($B342=\"N\",\"\",IF(OR('Enrollment Form'!$B349<>\"Subscriber\",'Enrollment Form'!$C349=\"ROC\"),\"-\",IF(AND('Enrollment Form'!$B349=\"Subscriber\",'Enrollment Form'!$C349=\"Enroll\",'Enrollment Form'!$AP349<>\"\"),\"Y\",\"N\")))","v":""},{"$f":"IF($B342=\"N\",\"\",IF(OR('Enrollment Form'!$B349<>\"Subscriber\",'Enrollment Form'!$C349=\"ROC\"),\"-\",IF(AND('Enrollment Form'!$B349=\"Subscriber\",'Enrollment Form'!$C349=\"Enroll\",'Enrollment Form'!$AQ349<>\"\"),\"Y\",\"N\")))","v":""},{"$f":"IF($B342=\"N\",\"\",IF(OR('Enrollment Form'!$B349<>\"Subscriber\",'Enrollment Form'!$C349=\"ROC\"),\"-\",IF(AND('Enrollment Form'!$B349=\"Subscriber\",'Enrollment Form'!$C349=\"Enroll\",'Enrollment Form'!$AS349<>\"\"),\"Y\",\"N\")))","v":""},{"$f":"IF($B342=\"N\",\"\",IF($Q342=\"-\",\"-\",IF(AND($Q342=\"Y\",'Enrollment Form'!$AS349=\"No\"),\"-\",IF(AND($Q342=\"Y\",'Enrollment Form'!$AS349=\"Yes\",'Enrollment Form'!$AT349<>\"\"),\"Y\",\"N\"))))","v":""},{"$f":"IF($B342=\"N\",\"\",IF(OR('Enrollment Form'!$B349<>\"Subscriber\",'Enrollment Form'!$C349=\"ROC\"),\"-\",IF(AND('Enrollment Form'!$B349=\"Subscriber\",'Enrollment Form'!$C349=\"Enroll\",'Enrollment Form'!$CV349<>\"\"),\"Y\",\"N\")))","v":""},{"$f":"IF($B342=\"N\",\"\",IF($S342=\"-\",\"-\",IF(AND($S342=\"Y\",'Enrollment Form'!$CV349=\"No\"),\"-\",IF(AND($S342=\"Y\",'Enrollment Form'!$CV349=\"Yes\",'Enrollment Form'!$CW349<>\"\"),\"Y\",\"N\"))))","v":""},{"$f":"IF(OR('Enrollment Form'!$AY349=\"Yes\",'Enrollment Form'!$AY349=\"\"),\"-\",IF(OR(AND('Enrollment Form'!$AY349=\"No\",ISERROR(FIND(\"HMO\",VLOOKUP('Enrollment Form'!G349,'Enrollment Form'!H$11:J$1000,3,FALSE),1))=FALSE,COUNTA('Enrollment Form'!$AZ349:$BC349)=4),AND('Enrollment Form'!$AY349=\"No\",ISERROR(FIND(\"HMO\",VLOOKUP('Enrollment Form'!G349,'Enrollment Form'!H$11:J$1000,3,FALSE),1))=FALSE,COUNTA('Enrollment Form'!$BT349:$BW349)=4)),\"Y\",\"N\"))","v":"-"},{"$f":"IF($B342=\"N\",\"\",IF('Enrollment Form'!$B349=\"Subscriber\",\"-\",IF(COUNTA('Enrollment Form'!$BL349,'Enrollment Form'!$BN349)=2,\"Y\",\"N\")))","v":""},{"$f":"IF($B342=\"N\",\"\",IF(OR('Enrollment Form'!$AX349=\"\",'Enrollment Form'!$AX349=\"No\"),\"-\",IF(AND('Enrollment Form'!$AX349=\"Yes\",COUNTA('Enrollment Form'!$CR349)=1),\"Y\",\"N\")))","v":""},{"$f":"IF(OR('Enrollment Form'!$CR349=\"\",'Enrollment Form'!$CR349=\"No\"),\"-\",IF(COUNTA('Enrollment Form'!$CT349:$CU349)=2,\"Y\",\"N\"))","v":"-"},{"$f":"IF($B342=\"N\",\"\",IF(COUNTIF('Enrollment Form'!$DG349:$DP349,\"Other\")=COUNTA('Enrollment Form'!$DK349,'Enrollment Form'!$DH349,'Enrollment Form'!$DN349,'Enrollment Form'!$DQ349),\"Y\",\"N\"))","v":""},{"$f":"IF($B342=\"N\",\"\",IF(OR('Enrollment Form'!B349<>\"Subscriber\",'Enrollment Form'!C349=\"ROC\",COUNTIF('Enrollment Form'!AV349:AW349,\"Yes\")>=1),\"-\",IF(AND('Enrollment Form'!C349=\"Enroll\",COUNTIF('Enrollment Form'!AV349:AW349,\"No\")=2,'Enrollment Form'!AX349=\"\"),\"N\",\"Y\")))","v":""},{"$f":"IF(OR(B342=\"N\",'Enrollment Form'!B349<>\"Subscriber\",'Enrollment Form'!C349=\"ROC\",'Enrollment Form'!O349<>\"Multiple of Salary\"),\"-\",IF(COUNTA('Enrollment Form'!T349:U349)<2,\"N\",\"Y\"))","v":"-"},{"$f":"IF(B342=\"N\",\"\",IF(OR('Enrollment Form'!C349=\"ROC\",'Enrollment Form'!B349<>\"Subscriber\",'Enrollment Form'!O349=\"Waive\",'Enrollment Form'!O349=\"\"),\"-\",IF('Enrollment Form'!P349=\"\",\"N\",\"Y\")))","v":""},{"$f":"IF($B342=\"N\",\"\",IF(AND('Enrollment Form'!$C349=\"ROC\",'Enrollment Form'!$DR349<>\"\"),\"Y\",IF(AND('Enrollment Form'!$C349=\"ROC\",'Enrollment Form'!$DR349=\"\"),\"N\",IF(AND('Enrollment Form'!$C349=\"Enroll\",'Enrollment Form'!$B349=\"Subscriber\",'Enrollment Form'!$CX349=\"No\",'Enrollment Form'!$DR349=\"\"),\"N\",IF(AND('Enrollment Form'!$C349=\"Enroll\",'Enrollment Form'!$B349=\"Subscriber\",'Enrollment Form'!$CX349=\"Yes\"),\"-\",\"Y\")))))","v":""},{"$f":"IF($B342=\"N\",\"\",IF(AND('Enrollment Form'!$C349=\"ROC\",'Enrollment Form'!$DS349<>\"\"),\"Y\",IF(AND('Enrollment Form'!$C349=\"ROC\",'Enrollment Form'!$DS349=\"\"),\"N\",IF(AND('Enrollment Form'!$C349=\"Enroll\",'Enrollment Form'!$B349=\"Subscriber\",'Enrollment Form'!$CX349=\"No\",'Enrollment Form'!$DS349=\"\"),\"N\",IF(AND('Enrollment Form'!$C349=\"Enroll\",'Enrollment Form'!$B349=\"Subscriber\",'Enrollment Form'!$CX349=\"Yes\"),\"-\",\"Y\")))))","v":""},{"$f":"IF('Enrollment Form'!AH349=\"\",\"\",IF(ISERROR(SEARCH(\".\",'Enrollment Form'!AH349,SEARCH(\"@\",'Enrollment Form'!AH349))),\"N\",\"Y\"))","v":""},{"$f":"IF(OR($B342=\"N\",'Enrollment Form'!$G349=\"\"),\"\",IF('Enrollment Form'!$B349<>\"Subscriber\",\"-\",IF(COUNTIF('Enrollment Form'!$AV349:$AW349,\"Yes\")=2,\"N\",\"Y\")))","v":""},{"$f":"IF(OR('Enrollment Form'!$CJ349=\"\",'Enrollment Form'!$CJ349=\"No\"),\"-\",IF(AND('Enrollment Form'!$CJ349=\"Yes\",'Enrollment Form'!$CK349=\"\"),\"N\",\"Y\"))","v":"-"},{"$f":"IF(OR('Enrollment Form'!$CL349=\"\",'Enrollment Form'!$CL349=\"No\"),\"-\",IF(AND('Enrollment Form'!$CL349=\"Yes\",'Enrollment Form'!$CM349=\"\"),\"N\",\"Y\"))","v":"-"},{"$f":"IF(OR('Enrollment Form'!$CN349=\"\",'Enrollment Form'!$CN349=\"No\"),\"-\",IF(AND('Enrollment Form'!$CN349=\"Yes\",'Enrollment Form'!$CO349=\"\"),\"N\",\"Y\"))","v":"-"},{"$f":"IF(OR('Enrollment Form'!$CN349=\"\",'Enrollment Form'!$CN349=\"No\"),\"-\",IF(AND('Enrollment Form'!$CN349=\"Yes\",'Enrollment Form'!$CP349=\"\"),\"N\",\"Y\"))","v":"-"},{"$f":"IF('Enrollment Form'!B349<>\"Subscriber\",\"-\",IF(AND('Enrollment Form'!B349=\"Subscriber\",'Enrollment Form'!C349=\"Enroll\",'Enrollment Form'!AA349=\"\"),\"N\",\"Y\"))","v":"-"},{"$f":"IF(OR('Enrollment Form'!B349=\"Subscriber\",'Enrollment Form'!B349=\"\"),\"-\",IF('Enrollment Form'!BP349=\"\",\"N\",\"Y\"))","v":"-"},{"$f":"IF('Enrollment Form'!B349<>\"Subscriber\",\"-\",IF(AND('Enrollment Form'!B349=\"Subscriber\",'Enrollment Form'!G349=\"\"),\"N\",\"Y\"))","v":"-"},{"$f":"IF('Enrollment Form'!A349=\"\",\"\",IF('Enrollment Form'!B349=\"Subscriber\",\"-\",IF(AND('Enrollment Form'!B349<>\"Subscriber\",'Enrollment Form'!G349='Enrollment Form'!H349),\"N\",\"Y\")))","v":""},0]
[350,{"$f":"IF('Enrollment Form'!$A350<>\"\",\"Y\",\"N\")","v":"N"},{"$f":"IF(AND('Enrollment Form'!$B350=\"\",'Enrollment Form'!$C350<>\"\"),\"N\",IF($B343=\"N\",\"\",\"Y\"))","v":""},{"$f":"IF(OR($B343=\"N\",'Enrollment Form'!G350=\"\"),\"\",IF('Enrollment Form'!$B350<>\"Subscriber\",\"\",IF('Enrollment Form'!$G350='Enrollment Form'!$H350,\"Y\",\"N\")))","v":""},{"$f":"IF($B343=\"N\",\"\",IF(AND(COUNTIFS('Enrollment Form'!$H$11:$H$1000,'Enrollment Form'!$H350,'Enrollment Form'!$B$11:$B$1000,'Enrollment Form'!$B350)>1,'Enrollment Form'!$H350<>\"\"),\"N\",\"Y\"))","v":""},{"$f":"IF($B343=\"N\",\"\",IF(LEN('Enrollment Form'!$Y350)=0,\"\",IF(LEN('Enrollment Form'!$Y350)<>5,\"N\",\"Y\")))","v":""},{"$f":"IF($B343=\"N\",\"\",IF(LEN('Enrollment Form'!$AD350=0),\"\",IF(LEN('Enrollment Form'!$AD350)<>5,\"N\",\"Y\")))","v":""},{"$f":"IF($B343=\"N\",\"\",IF(LEN('Enrollment Form'!$BS350=0),\"\",IF(LEN('Enrollment Form'!$BS350)<>5,\"N\",\"Y\")))","v":""},{"$f":"IF($B343=\"N\",\"\",IF(LEN('Enrollment Form'!$AE350)=0,\"\",IF(LEN('Enrollment Form'!$AE350)<>10,\"N\",\"Y\")))","v":""},{"$f":"IF($B343=\"N\",\"\",IF(LEN('Enrollment Form'!$AF350)=0,\"\",IF(LEN('Enrollment Form'!$AF350)<>10,\"N\",\"Y\")))","v":""},{"$f":"IF('Enrollment Form'!$O350<>\"Graded\",\"-\",IF(AND('Enrollment Form'!$O350=\"Graded\",'Enrollment Form'!$AR350<>\"\"),\"Y\",\"N\"))","v":"-"},{"$f":"IF($B343=\"N\",\"\",IF(OR('Enrollment Form'!$B350<>\"Subscriber\",'Enrollment Form'!$C350=\"ROC\"),\"-\",IF(AND('Enrollment Form'!$B350=\"Subscriber\",'Enrollment Form'!$C350=\"Enroll\",'Enrollment Form'!$AJ350<>\"\"),\"Y\",\"N\")))","v":""},{"$f":"IF($B343=\"N\",\"\",IF(OR('Enrollment Form'!$B350<>\"Subscriber\",'Enrollment Form'!$C350=\"ROC\"),\"-\",IF(AND('Enrollment Form'!$B350=\"Subscriber\",'Enrollment Form'!$C350=\"Enroll\",'Enrollment Form'!$AK350<>\"\"),\"Y\",\"N\")))","v":""},{"$f":"IF($B343=\"N\",\"\",IF(OR('Enrollment Form'!$B350<>\"Subscriber\",'Enrollment Form'!$C350=\"ROC\"),\"-\",IF(AND('Enrollment Form'!$B350=\"Subscriber\",'Enrollment Form'!$C350=\"Enroll\",'Enrollment Form'!$AL350<>\"\"),\"Y\",\"N\")))","v":""},{"$f":"IF($B343=\"N\",\"\",IF(OR('Enrollment Form'!$B350<>\"Subscriber\",'Enrollment Form'!$C350=\"ROC\"),\"-\",IF(AND('Enrollment Form'!$B350=\"Subscriber\",'Enrollment Form'!$C350=\"Enroll\",'Enrollment Form'!$AP350<>\"\"),\"Y\",\"N\")))","v":""},{"$f":"IF($B343=\"N\",\"\",IF(OR('Enrollment Form'!$B350<>\"Subscriber\",'Enrollment Form'!$C350=\"ROC\"),\"-\",IF(AND('Enrollment Form'!$B350=\"Subscriber\",'Enrollment Form'!$C350=\"Enroll\",'Enrollment Form'!$AQ350<>\"\"),\"Y\",\"N\")))","v":""},{"$f":"IF($B343=\"N\",\"\",IF(OR('Enrollment Form'!$B350<>\"Subscriber\",'Enrollment Form'!$C350=\"ROC\"),\"-\",IF(AND('Enrollment Form'!$B350=\"Subscriber\",'Enrollment Form'!$C350=\"Enroll\",'Enrollment Form'!$AS350<>\"\"),\"Y\",\"N\")))","v":""},{"$f":"IF($B343=\"N\",\"\",IF($Q343=\"-\",\"-\",IF(AND($Q343=\"Y\",'Enrollment Form'!$AS350=\"No\"),\"-\",IF(AND($Q343=\"Y\",'Enrollment Form'!$AS350=\"Yes\",'Enrollment Form'!$AT350<>\"\"),\"Y\",\"N\"))))","v":""},{"$f":"IF($B343=\"N\",\"\",IF(OR('Enrollment Form'!$B350<>\"Subscriber\",'Enrollment Form'!$C350=\"ROC\"),\"-\",IF(AND('Enrollment Form'!$B350=\"Subscriber\",'Enrollment Form'!$C350=\"Enroll\",'Enrollment Form'!$CV350<>\"\"),\"Y\",\"N\")))","v":""},{"$f":"IF($B343=\"N\",\"\",IF($S343=\"-\",\"-\",IF(AND($S343=\"Y\",'Enrollment Form'!$CV350=\"No\"),\"-\",IF(AND($S343=\"Y\",'Enrollment Form'!$CV350=\"Yes\",'Enrollment Form'!$CW350<>\"\"),\"Y\",\"N\"))))","v":""},{"$f":"IF(OR('Enrollment Form'!$AY350=\"Yes\",'Enrollment Form'!$AY350=\"\"),\"-\",IF(OR(AND('Enrollment Form'!$AY350=\"No\",ISERROR(FIND(\"HMO\",VLOOKUP('Enrollment Form'!G350,'Enrollment Form'!H$11:J$1000,3,FALSE),1))=FALSE,COUNTA('Enrollment Form'!$AZ350:$BC350)=4),AND('Enrollment Form'!$AY350=\"No\",ISERROR(FIND(\"HMO\",VLOOKUP('Enrollment Form'!G350,'Enrollment Form'!H$11:J$1000,3,FALSE),1))=FALSE,COUNTA('Enrollment Form'!$BT350:$BW350)=4)),\"Y\",\"N\"))","v":"-"},{"$f":"IF($B343=\"N\",\"\",IF('Enrollment Form'!$B350=\"Subscriber\",\"-\",IF(COUNTA('Enrollment Form'!$BL350,'Enrollment Form'!$BN350)=2,\"Y\",\"N\")))","v":""},{"$f":"IF($B343=\"N\",\"\",IF(OR('Enrollment Form'!$AX350=\"\",'Enrollment Form'!$AX350=\"No\"),\"-\",IF(AND('Enrollment Form'!$AX350=\"Yes\",COUNTA('Enrollment Form'!$CR350)=1),\"Y\",\"N\")))","v":""},{"$f":"IF(OR('Enrollment Form'!$CR350=\"\",'Enrollment Form'!$CR350=\"No\"),\"-\",IF(COUNTA('Enrollment Form'!$CT350:$CU350)=2,\"Y\",\"N\"))","v":"-"},{"$f":"IF($B343=\"N\",\"\",IF(COUNTIF('Enrollment Form'!$DG350:$DP350,\"Other\")=COUNTA('Enrollment Form'!$DK350,'Enrollment Form'!$DH350,'Enrollment Form'!$DN350,'Enrollment Form'!$DQ350),\"Y\",\"N\"))","v":""},{"$f":"IF($B343=\"N\",\"\",IF(OR('Enrollment Form'!B350<>\"Subscriber\",'Enrollment Form'!C350=\"ROC\",COUNTIF('Enrollment Form'!AV350:AW350,\"Yes\")>=1),\"-\",IF(AND('Enrollment Form'!C350=\"Enroll\",COUNTIF('Enrollment Form'!AV350:AW350,\"No\")=2,'Enrollment Form'!AX350=\"\"),\"N\",\"Y\")))","v":""},{"$f":"IF(OR(B343=\"N\",'Enrollment Form'!B350<>\"Subscriber\",'Enrollment Form'!C350=\"ROC\",'Enrollment Form'!O350<>\"Multiple of Salary\"),\"-\",IF(COUNTA('Enrollment Form'!T350:U350)<2,\"N\",\"Y\"))","v":"-"},{"$f":"IF(B343=\"N\",\"\",IF(OR('Enrollment Form'!C350=\"ROC\",'Enrollment Form'!B350<>\"Subscriber\",'Enrollment Form'!O350=\"Waive\",'Enrollment Form'!O350=\"\"),\"-\",IF('Enrollment Form'!P350=\"\",\"N\",\"Y\")))","v":""},{"$f":"IF($B343=\"N\",\"\",IF(AND('Enrollment Form'!$C350=\"ROC\",'Enrollment Form'!$DR350<>\"\"),\"Y\",IF(AND('Enrollment Form'!$C350=\"ROC\",'Enrollment Form'!$DR350=\"\"),\"N\",IF(AND('Enrollment Form'!$C350=\"Enroll\",'Enrollment Form'!$B350=\"Subscriber\",'Enrollment Form'!$CX350=\"No\",'Enrollment Form'!$DR350=\"\"),\"N\",IF(AND('Enrollment Form'!$C350=\"Enroll\",'Enrollment Form'!$B350=\"Subscriber\",'Enrollment Form'!$CX350=\"Yes\"),\"-\",\"Y\")))))","v":""},{"$f":"IF($B343=\"N\",\"\",IF(AND('Enrollment Form'!$C350=\"ROC\",'Enrollment Form'!$DS350<>\"\"),\"Y\",IF(AND('Enrollment Form'!$C350=\"ROC\",'Enrollment Form'!$DS350=\"\"),\"N\",IF(AND('Enrollment Form'!$C350=\"Enroll\",'Enrollment Form'!$B350=\"Subscriber\",'Enrollment Form'!$CX350=\"No\",'Enrollment Form'!$DS350=\"\"),\"N\",IF(AND('Enrollment Form'!$C350=\"Enroll\",'Enrollment Form'!$B350=\"Subscriber\",'Enrollment Form'!$CX350=\"Yes\"),\"-\",\"Y\")))))","v":""},{"$f":"IF('Enrollment Form'!AH350=\"\",\"\",IF(ISERROR(SEARCH(\".\",'Enrollment Form'!AH350,SEARCH(\"@\",'Enrollment Form'!AH350))),\"N\",\"Y\"))","v":""},{"$f":"IF(OR($B343=\"N\",'Enrollment Form'!$G350=\"\"),\"\",IF('Enrollment Form'!$B350<>\"Subscriber\",\"-\",IF(COUNTIF('Enrollment Form'!$AV350:$AW350,\"Yes\")=2,\"N\",\"Y\")))","v":""},{"$f":"IF(OR('Enrollment Form'!$CJ350=\"\",'Enrollment Form'!$CJ350=\"No\"),\"-\",IF(AND('Enrollment Form'!$CJ350=\"Yes\",'Enrollment Form'!$CK350=\"\"),\"N\",\"Y\"))","v":"-"},{"$f":"IF(OR('Enrollment Form'!$CL350=\"\",'Enrollment Form'!$CL350=\"No\"),\"-\",IF(AND('Enrollment Form'!$CL350=\"Yes\",'Enrollment Form'!$CM350=\"\"),\"N\",\"Y\"))","v":"-"},{"$f":"IF(OR('Enrollment Form'!$CN350=\"\",'Enrollment Form'!$CN350=\"No\"),\"-\",IF(AND('Enrollment Form'!$CN350=\"Yes\",'Enrollment Form'!$CO350=\"\"),\"N\",\"Y\"))","v":"-"},{"$f":"IF(OR('Enrollment Form'!$CN350=\"\",'Enrollment Form'!$CN350=\"No\"),\"-\",IF(AND('Enrollment Form'!$CN350=\"Yes\",'Enrollment Form'!$CP350=\"\"),\"N\",\"Y\"))","v":"-"},{"$f":"IF('Enrollment Form'!B350<>\"Subscriber\",\"-\",IF(AND('Enrollment Form'!B350=\"Subscriber\",'Enrollment Form'!C350=\"Enroll\",'Enrollment Form'!AA350=\"\"),\"N\",\"Y\"))","v":"-"},{"$f":"IF(OR('Enrollment Form'!B350=\"Subscriber\",'Enrollment Form'!B350=\"\"),\"-\",IF('Enrollment Form'!BP350=\"\",\"N\",\"Y\"))","v":"-"},{"$f":"IF('Enrollment Form'!B350<>\"Subscriber\",\"-\",IF(AND('Enrollment Form'!B350=\"Subscriber\",'Enrollment Form'!G350=\"\"),\"N\",\"Y\"))","v":"-"},{"$f":"IF('Enrollment Form'!A350=\"\",\"\",IF('Enrollment Form'!B350=\"Subscriber\",\"-\",IF(AND('Enrollment Form'!B350<>\"Subscriber\",'Enrollment Form'!G350='Enrollment Form'!H350),\"N\",\"Y\")))","v":""},0]
[351,{"$f":"IF('Enrollment Form'!$A351<>\"\",\"Y\",\"N\")","v":"N"},{"$f":"IF(AND('Enrollment Form'!$B351=\"\",'Enrollment Form'!$C351<>\"\"),\"N\",IF($B344=\"N\",\"\",\"Y\"))","v":""},{"$f":"IF(OR($B344=\"N\",'Enrollment Form'!G351=\"\"),\"\",IF('Enrollment Form'!$B351<>\"Subscriber\",\"\",IF('Enrollment Form'!$G351='Enrollment Form'!$H351,\"Y\",\"N\")))","v":""},{"$f":"IF($B344=\"N\",\"\",IF(AND(COUNTIFS('Enrollment Form'!$H$11:$H$1000,'Enrollment Form'!$H351,'Enrollment Form'!$B$11:$B$1000,'Enrollment Form'!$B351)>1,'Enrollment Form'!$H351<>\"\"),\"N\",\"Y\"))","v":""},{"$f":"IF($B344=\"N\",\"\",IF(LEN('Enrollment Form'!$Y351)=0,\"\",IF(LEN('Enrollment Form'!$Y351)<>5,\"N\",\"Y\")))","v":""},{"$f":"IF($B344=\"N\",\"\",IF(LEN('Enrollment Form'!$AD351=0),\"\",IF(LEN('Enrollment Form'!$AD351)<>5,\"N\",\"Y\")))","v":""},{"$f":"IF($B344=\"N\",\"\",IF(LEN('Enrollment Form'!$BS351=0),\"\",IF(LEN('Enrollment Form'!$BS351)<>5,\"N\",\"Y\")))","v":""},{"$f":"IF($B344=\"N\",\"\",IF(LEN('Enrollment Form'!$AE351)=0,\"\",IF(LEN('Enrollment Form'!$AE351)<>10,\"N\",\"Y\")))","v":""},{"$f":"IF($B344=\"N\",\"\",IF(LEN('Enrollment Form'!$AF351)=0,\"\",IF(LEN('Enrollment Form'!$AF351)<>10,\"N\",\"Y\")))","v":""},{"$f":"IF('Enrollment Form'!$O351<>\"Graded\",\"-\",IF(AND('Enrollment Form'!$O351=\"Graded\",'Enrollment Form'!$AR351<>\"\"),\"Y\",\"N\"))","v":"-"},{"$f":"IF($B344=\"N\",\"\",IF(OR('Enrollment Form'!$B351<>\"Subscriber\",'Enrollment Form'!$C351=\"ROC\"),\"-\",IF(AND('Enrollment Form'!$B351=\"Subscriber\",'Enrollment Form'!$C351=\"Enroll\",'Enrollment Form'!$AJ351<>\"\"),\"Y\",\"N\")))","v":""},{"$f":"IF($B344=\"N\",\"\",IF(OR('Enrollment Form'!$B351<>\"Subscriber\",'Enrollment Form'!$C351=\"ROC\"),\"-\",IF(AND('Enrollment Form'!$B351=\"Subscriber\",'Enrollment Form'!$C351=\"Enroll\",'Enrollment Form'!$AK351<>\"\"),\"Y\",\"N\")))","v":""},{"$f":"IF($B344=\"N\",\"\",IF(OR('Enrollment Form'!$B351<>\"Subscriber\",'Enrollment Form'!$C351=\"ROC\"),\"-\",IF(AND('Enrollment Form'!$B351=\"Subscriber\",'Enrollment Form'!$C351=\"Enroll\",'Enrollment Form'!$AL351<>\"\"),\"Y\",\"N\")))","v":""},{"$f":"IF($B344=\"N\",\"\",IF(OR('Enrollment Form'!$B351<>\"Subscriber\",'Enrollment Form'!$C351=\"ROC\"),\"-\",IF(AND('Enrollment Form'!$B351=\"Subscriber\",'Enrollment Form'!$C351=\"Enroll\",'Enrollment Form'!$AP351<>\"\"),\"Y\",\"N\")))","v":""},{"$f":"IF($B344=\"N\",\"\",IF(OR('Enrollment Form'!$B351<>\"Subscriber\",'Enrollment Form'!$C351=\"ROC\"),\"-\",IF(AND('Enrollment Form'!$B351=\"Subscriber\",'Enrollment Form'!$C351=\"Enroll\",'Enrollment Form'!$AQ351<>\"\"),\"Y\",\"N\")))","v":""},{"$f":"IF($B344=\"N\",\"\",IF(OR('Enrollment Form'!$B351<>\"Subscriber\",'Enrollment Form'!$C351=\"ROC\"),\"-\",IF(AND('Enrollment Form'!$B351=\"Subscriber\",'Enrollment Form'!$C351=\"Enroll\",'Enrollment Form'!$AS351<>\"\"),\"Y\",\"N\")))","v":""},{"$f":"IF($B344=\"N\",\"\",IF($Q344=\"-\",\"-\",IF(AND($Q344=\"Y\",'Enrollment Form'!$AS351=\"No\"),\"-\",IF(AND($Q344=\"Y\",'Enrollment Form'!$AS351=\"Yes\",'Enrollment Form'!$AT351<>\"\"),\"Y\",\"N\"))))","v":""},{"$f":"IF($B344=\"N\",\"\",IF(OR('Enrollment Form'!$B351<>\"Subscriber\",'Enrollment Form'!$C351=\"ROC\"),\"-\",IF(AND('Enrollment Form'!$B351=\"Subscriber\",'Enrollment Form'!$C351=\"Enroll\",'Enrollment Form'!$CV351<>\"\"),\"Y\",\"N\")))","v":""},{"$f":"IF($B344=\"N\",\"\",IF($S344=\"-\",\"-\",IF(AND($S344=\"Y\",'Enrollment Form'!$CV351=\"No\"),\"-\",IF(AND($S344=\"Y\",'Enrollment Form'!$CV351=\"Yes\",'Enrollment Form'!$CW351<>\"\"),\"Y\",\"N\"))))","v":""},{"$f":"IF(OR('Enrollment Form'!$AY351=\"Yes\",'Enrollment Form'!$AY351=\"\"),\"-\",IF(OR(AND('Enrollment Form'!$AY351=\"No\",ISERROR(FIND(\"HMO\",VLOOKUP('Enrollment Form'!G351,'Enrollment Form'!H$11:J$1000,3,FALSE),1))=FALSE,COUNTA('Enrollment Form'!$AZ351:$BC351)=4),AND('Enrollment Form'!$AY351=\"No\",ISERROR(FIND(\"HMO\",VLOOKUP('Enrollment Form'!G351,'Enrollment Form'!H$11:J$1000,3,FALSE),1))=FALSE,COUNTA('Enrollment Form'!$BT351:$BW351)=4)),\"Y\",\"N\"))","v":"-"},{"$f":"IF($B344=\"N\",\"\",IF('Enrollment Form'!$B351=\"Subscriber\",\"-\",IF(COUNTA('Enrollment Form'!$BL351,'Enrollment Form'!$BN351)=2,\"Y\",\"N\")))","v":""},{"$f":"IF($B344=\"N\",\"\",IF(OR('Enrollment Form'!$AX351=\"\",'Enrollment Form'!$AX351=\"No\"),\"-\",IF(AND('Enrollment Form'!$AX351=\"Yes\",COUNTA('Enrollment Form'!$CR351)=1),\"Y\",\"N\")))","v":""},{"$f":"IF(OR('Enrollment Form'!$CR351=\"\",'Enrollment Form'!$CR351=\"No\"),\"-\",IF(COUNTA('Enrollment Form'!$CT351:$CU351)=2,\"Y\",\"N\"))","v":"-"},{"$f":"IF($B344=\"N\",\"\",IF(COUNTIF('Enrollment Form'!$DG351:$DP351,\"Other\")=COUNTA('Enrollment Form'!$DK351,'Enrollment Form'!$DH351,'Enrollment Form'!$DN351,'Enrollment Form'!$DQ351),\"Y\",\"N\"))","v":""},{"$f":"IF($B344=\"N\",\"\",IF(OR('Enrollment Form'!B351<>\"Subscriber\",'Enrollment Form'!C351=\"ROC\",COUNTIF('Enrollment Form'!AV351:AW351,\"Yes\")>=1),\"-\",IF(AND('Enrollment Form'!C351=\"Enroll\",COUNTIF('Enrollment Form'!AV351:AW351,\"No\")=2,'Enrollment Form'!AX351=\"\"),\"N\",\"Y\")))","v":""},{"$f":"IF(OR(B344=\"N\",'Enrollment Form'!B351<>\"Subscriber\",'Enrollment Form'!C351=\"ROC\",'Enrollment Form'!O351<>\"Multiple of Salary\"),\"-\",IF(COUNTA('Enrollment Form'!T351:U351)<2,\"N\",\"Y\"))","v":"-"},{"$f":"IF(B344=\"N\",\"\",IF(OR('Enrollment Form'!C351=\"ROC\",'Enrollment Form'!B351<>\"Subscriber\",'Enrollment Form'!O351=\"Waive\",'Enrollment Form'!O351=\"\"),\"-\",IF('Enrollment Form'!P351=\"\",\"N\",\"Y\")))","v":""},{"$f":"IF($B344=\"N\",\"\",IF(AND('Enrollment Form'!$C351=\"ROC\",'Enrollment Form'!$DR351<>\"\"),\"Y\",IF(AND('Enrollment Form'!$C351=\"ROC\",'Enrollment Form'!$DR351=\"\"),\"N\",IF(AND('Enrollment Form'!$C351=\"Enroll\",'Enrollment Form'!$B351=\"Subscriber\",'Enrollment Form'!$CX351=\"No\",'Enrollment Form'!$DR351=\"\"),\"N\",IF(AND('Enrollment Form'!$C351=\"Enroll\",'Enrollment Form'!$B351=\"Subscriber\",'Enrollment Form'!$CX351=\"Yes\"),\"-\",\"Y\")))))","v":""},{"$f":"IF($B344=\"N\",\"\",IF(AND('Enrollment Form'!$C351=\"ROC\",'Enrollment Form'!$DS351<>\"\"),\"Y\",IF(AND('Enrollment Form'!$C351=\"ROC\",'Enrollment Form'!$DS351=\"\"),\"N\",IF(AND('Enrollment Form'!$C351=\"Enroll\",'Enrollment Form'!$B351=\"Subscriber\",'Enrollment Form'!$CX351=\"No\",'Enrollment Form'!$DS351=\"\"),\"N\",IF(AND('Enrollment Form'!$C351=\"Enroll\",'Enrollment Form'!$B351=\"Subscriber\",'Enrollment Form'!$CX351=\"Yes\"),\"-\",\"Y\")))))","v":""},{"$f":"IF('Enrollment Form'!AH351=\"\",\"\",IF(ISERROR(SEARCH(\".\",'Enrollment Form'!AH351,SEARCH(\"@\",'Enrollment Form'!AH351))),\"N\",\"Y\"))","v":""},{"$f":"IF(OR($B344=\"N\",'Enrollment Form'!$G351=\"\"),\"\",IF('Enrollment Form'!$B351<>\"Subscriber\",\"-\",IF(COUNTIF('Enrollment Form'!$AV351:$AW351,\"Yes\")=2,\"N\",\"Y\")))","v":""},{"$f":"IF(OR('Enrollment Form'!$CJ351=\"\",'Enrollment Form'!$CJ351=\"No\"),\"-\",IF(AND('Enrollment Form'!$CJ351=\"Yes\",'Enrollment Form'!$CK351=\"\"),\"N\",\"Y\"))","v":"-"},{"$f":"IF(OR('Enrollment Form'!$CL351=\"\",'Enrollment Form'!$CL351=\"No\"),\"-\",IF(AND('Enrollment Form'!$CL351=\"Yes\",'Enrollment Form'!$CM351=\"\"),\"N\",\"Y\"))","v":"-"},{"$f":"IF(OR('Enrollment Form'!$CN351=\"\",'Enrollment Form'!$CN351=\"No\"),\"-\",IF(AND('Enrollment Form'!$CN351=\"Yes\",'Enrollment Form'!$CO351=\"\"),\"N\",\"Y\"))","v":"-"},{"$f":"IF(OR('Enrollment Form'!$CN351=\"\",'Enrollment Form'!$CN351=\"No\"),\"-\",IF(AND('Enrollment Form'!$CN351=\"Yes\",'Enrollment Form'!$CP351=\"\"),\"N\",\"Y\"))","v":"-"},{"$f":"IF('Enrollment Form'!B351<>\"Subscriber\",\"-\",IF(AND('Enrollment Form'!B351=\"Subscriber\",'Enrollment Form'!C351=\"Enroll\",'Enrollment Form'!AA351=\"\"),\"N\",\"Y\"))","v":"-"},{"$f":"IF(OR('Enrollment Form'!B351=\"Subscriber\",'Enrollment Form'!B351=\"\"),\"-\",IF('Enrollment Form'!BP351=\"\",\"N\",\"Y\"))","v":"-"},{"$f":"IF('Enrollment Form'!B351<>\"Subscriber\",\"-\",IF(AND('Enrollment Form'!B351=\"Subscriber\",'Enrollment Form'!G351=\"\"),\"N\",\"Y\"))","v":"-"},{"$f":"IF('Enrollment Form'!A351=\"\",\"\",IF('Enrollment Form'!B351=\"Subscriber\",\"-\",IF(AND('Enrollment Form'!B351<>\"Subscriber\",'Enrollment Form'!G351='Enrollment Form'!H351),\"N\",\"Y\")))","v":""},0]
[352,{"$f":"IF('Enrollment Form'!$A352<>\"\",\"Y\",\"N\")","v":"N"},{"$f":"IF(AND('Enrollment Form'!$B352=\"\",'Enrollment Form'!$C352<>\"\"),\"N\",IF($B345=\"N\",\"\",\"Y\"))","v":""},{"$f":"IF(OR($B345=\"N\",'Enrollment Form'!G352=\"\"),\"\",IF('Enrollment Form'!$B352<>\"Subscriber\",\"\",IF('Enrollment Form'!$G352='Enrollment Form'!$H352,\"Y\",\"N\")))","v":""},{"$f":"IF($B345=\"N\",\"\",IF(AND(COUNTIFS('Enrollment Form'!$H$11:$H$1000,'Enrollment Form'!$H352,'Enrollment Form'!$B$11:$B$1000,'Enrollment Form'!$B352)>1,'Enrollment Form'!$H352<>\"\"),\"N\",\"Y\"))","v":""},{"$f":"IF($B345=\"N\",\"\",IF(LEN('Enrollment Form'!$Y352)=0,\"\",IF(LEN('Enrollment Form'!$Y352)<>5,\"N\",\"Y\")))","v":""},{"$f":"IF($B345=\"N\",\"\",IF(LEN('Enrollment Form'!$AD352=0),\"\",IF(LEN('Enrollment Form'!$AD352)<>5,\"N\",\"Y\")))","v":""},{"$f":"IF($B345=\"N\",\"\",IF(LEN('Enrollment Form'!$BS352=0),\"\",IF(LEN('Enrollment Form'!$BS352)<>5,\"N\",\"Y\")))","v":""},{"$f":"IF($B345=\"N\",\"\",IF(LEN('Enrollment Form'!$AE352)=0,\"\",IF(LEN('Enrollment Form'!$AE352)<>10,\"N\",\"Y\")))","v":""},{"$f":"IF($B345=\"N\",\"\",IF(LEN('Enrollment Form'!$AF352)=0,\"\",IF(LEN('Enrollment Form'!$AF352)<>10,\"N\",\"Y\")))","v":""},{"$f":"IF('Enrollment Form'!$O352<>\"Graded\",\"-\",IF(AND('Enrollment Form'!$O352=\"Graded\",'Enrollment Form'!$AR352<>\"\"),\"Y\",\"N\"))","v":"-"},{"$f":"IF($B345=\"N\",\"\",IF(OR('Enrollment Form'!$B352<>\"Subscriber\",'Enrollment Form'!$C352=\"ROC\"),\"-\",IF(AND('Enrollment Form'!$B352=\"Subscriber\",'Enrollment Form'!$C352=\"Enroll\",'Enrollment Form'!$AJ352<>\"\"),\"Y\",\"N\")))","v":""},{"$f":"IF($B345=\"N\",\"\",IF(OR('Enrollment Form'!$B352<>\"Subscriber\",'Enrollment Form'!$C352=\"ROC\"),\"-\",IF(AND('Enrollment Form'!$B352=\"Subscriber\",'Enrollment Form'!$C352=\"Enroll\",'Enrollment Form'!$AK352<>\"\"),\"Y\",\"N\")))","v":""},{"$f":"IF($B345=\"N\",\"\",IF(OR('Enrollment Form'!$B352<>\"Subscriber\",'Enrollment Form'!$C352=\"ROC\"),\"-\",IF(AND('Enrollment Form'!$B352=\"Subscriber\",'Enrollment Form'!$C352=\"Enroll\",'Enrollment Form'!$AL352<>\"\"),\"Y\",\"N\")))","v":""},{"$f":"IF($B345=\"N\",\"\",IF(OR('Enrollment Form'!$B352<>\"Subscriber\",'Enrollment Form'!$C352=\"ROC\"),\"-\",IF(AND('Enrollment Form'!$B352=\"Subscriber\",'Enrollment Form'!$C352=\"Enroll\",'Enrollment Form'!$AP352<>\"\"),\"Y\",\"N\")))","v":""},{"$f":"IF($B345=\"N\",\"\",IF(OR('Enrollment Form'!$B352<>\"Subscriber\",'Enrollment Form'!$C352=\"ROC\"),\"-\",IF(AND('Enrollment Form'!$B352=\"Subscriber\",'Enrollment Form'!$C352=\"Enroll\",'Enrollment Form'!$AQ352<>\"\"),\"Y\",\"N\")))","v":""},{"$f":"IF($B345=\"N\",\"\",IF(OR('Enrollment Form'!$B352<>\"Subscriber\",'Enrollment Form'!$C352=\"ROC\"),\"-\",IF(AND('Enrollment Form'!$B352=\"Subscriber\",'Enrollment Form'!$C352=\"Enroll\",'Enrollment Form'!$AS352<>\"\"),\"Y\",\"N\")))","v":""},{"$f":"IF($B345=\"N\",\"\",IF($Q345=\"-\",\"-\",IF(AND($Q345=\"Y\",'Enrollment Form'!$AS352=\"No\"),\"-\",IF(AND($Q345=\"Y\",'Enrollment Form'!$AS352=\"Yes\",'Enrollment Form'!$AT352<>\"\"),\"Y\",\"N\"))))","v":""},{"$f":"IF($B345=\"N\",\"\",IF(OR('Enrollment Form'!$B352<>\"Subscriber\",'Enrollment Form'!$C352=\"ROC\"),\"-\",IF(AND('Enrollment Form'!$B352=\"Subscriber\",'Enrollment Form'!$C352=\"Enroll\",'Enrollment Form'!$CV352<>\"\"),\"Y\",\"N\")))","v":""},{"$f":"IF($B345=\"N\",\"\",IF($S345=\"-\",\"-\",IF(AND($S345=\"Y\",'Enrollment Form'!$CV352=\"No\"),\"-\",IF(AND($S345=\"Y\",'Enrollment Form'!$CV352=\"Yes\",'Enrollment Form'!$CW352<>\"\"),\"Y\",\"N\"))))","v":""},{"$f":"IF(OR('Enrollment Form'!$AY352=\"Yes\",'Enrollment Form'!$AY352=\"\"),\"-\",IF(OR(AND('Enrollment Form'!$AY352=\"No\",ISERROR(FIND(\"HMO\",VLOOKUP('Enrollment Form'!G352,'Enrollment Form'!H$11:J$1000,3,FALSE),1))=FALSE,COUNTA('Enrollment Form'!$AZ352:$BC352)=4),AND('Enrollment Form'!$AY352=\"No\",ISERROR(FIND(\"HMO\",VLOOKUP('Enrollment Form'!G352,'Enrollment Form'!H$11:J$1000,3,FALSE),1))=FALSE,COUNTA('Enrollment Form'!$BT352:$BW352)=4)),\"Y\",\"N\"))","v":"-"},{"$f":"IF($B345=\"N\",\"\",IF('Enrollment Form'!$B352=\"Subscriber\",\"-\",IF(COUNTA('Enrollment Form'!$BL352,'Enrollment Form'!$BN352)=2,\"Y\",\"N\")))","v":""},{"$f":"IF($B345=\"N\",\"\",IF(OR('Enrollment Form'!$AX352=\"\",'Enrollment Form'!$AX352=\"No\"),\"-\",IF(AND('Enrollment Form'!$AX352=\"Yes\",COUNTA('Enrollment Form'!$CR352)=1),\"Y\",\"N\")))","v":""},{"$f":"IF(OR('Enrollment Form'!$CR352=\"\",'Enrollment Form'!$CR352=\"No\"),\"-\",IF(COUNTA('Enrollment Form'!$CT352:$CU352)=2,\"Y\",\"N\"))","v":"-"},{"$f":"IF($B345=\"N\",\"\",IF(COUNTIF('Enrollment Form'!$DG352:$DP352,\"Other\")=COUNTA('Enrollment Form'!$DK352,'Enrollment Form'!$DH352,'Enrollment Form'!$DN352,'Enrollment Form'!$DQ352),\"Y\",\"N\"))","v":""},{"$f":"IF($B345=\"N\",\"\",IF(OR('Enrollment Form'!B352<>\"Subscriber\",'Enrollment Form'!C352=\"ROC\",COUNTIF('Enrollment Form'!AV352:AW352,\"Yes\")>=1),\"-\",IF(AND('Enrollment Form'!C352=\"Enroll\",COUNTIF('Enrollment Form'!AV352:AW352,\"No\")=2,'Enrollment Form'!AX352=\"\"),\"N\",\"Y\")))","v":""},{"$f":"IF(OR(B345=\"N\",'Enrollment Form'!B352<>\"Subscriber\",'Enrollment Form'!C352=\"ROC\",'Enrollment Form'!O352<>\"Multiple of Salary\"),\"-\",IF(COUNTA('Enrollment Form'!T352:U352)<2,\"N\",\"Y\"))","v":"-"},{"$f":"IF(B345=\"N\",\"\",IF(OR('Enrollment Form'!C352=\"ROC\",'Enrollment Form'!B352<>\"Subscriber\",'Enrollment Form'!O352=\"Waive\",'Enrollment Form'!O352=\"\"),\"-\",IF('Enrollment Form'!P352=\"\",\"N\",\"Y\")))","v":""},{"$f":"IF($B345=\"N\",\"\",IF(AND('Enrollment Form'!$C352=\"ROC\",'Enrollment Form'!$DR352<>\"\"),\"Y\",IF(AND('Enrollment Form'!$C352=\"ROC\",'Enrollment Form'!$DR352=\"\"),\"N\",IF(AND('Enrollment Form'!$C352=\"Enroll\",'Enrollment Form'!$B352=\"Subscriber\",'Enrollment Form'!$CX352=\"No\",'Enrollment Form'!$DR352=\"\"),\"N\",IF(AND('Enrollment Form'!$C352=\"Enroll\",'Enrollment Form'!$B352=\"Subscriber\",'Enrollment Form'!$CX352=\"Yes\"),\"-\",\"Y\")))))","v":""},{"$f":"IF($B345=\"N\",\"\",IF(AND('Enrollment Form'!$C352=\"ROC\",'Enrollment Form'!$DS352<>\"\"),\"Y\",IF(AND('Enrollment Form'!$C352=\"ROC\",'Enrollment Form'!$DS352=\"\"),\"N\",IF(AND('Enrollment Form'!$C352=\"Enroll\",'Enrollment Form'!$B352=\"Subscriber\",'Enrollment Form'!$CX352=\"No\",'Enrollment Form'!$DS352=\"\"),\"N\",IF(AND('Enrollment Form'!$C352=\"Enroll\",'Enrollment Form'!$B352=\"Subscriber\",'Enrollment Form'!$CX352=\"Yes\"),\"-\",\"Y\")))))","v":""},{"$f":"IF('Enrollment Form'!AH352=\"\",\"\",IF(ISERROR(SEARCH(\".\",'Enrollment Form'!AH352,SEARCH(\"@\",'Enrollment Form'!AH352))),\"N\",\"Y\"))","v":""},{"$f":"IF(OR($B345=\"N\",'Enrollment Form'!$G352=\"\"),\"\",IF('Enrollment Form'!$B352<>\"Subscriber\",\"-\",IF(COUNTIF('Enrollment Form'!$AV352:$AW352,\"Yes\")=2,\"N\",\"Y\")))","v":""},{"$f":"IF(OR('Enrollment Form'!$CJ352=\"\",'Enrollment Form'!$CJ352=\"No\"),\"-\",IF(AND('Enrollment Form'!$CJ352=\"Yes\",'Enrollment Form'!$CK352=\"\"),\"N\",\"Y\"))","v":"-"},{"$f":"IF(OR('Enrollment Form'!$CL352=\"\",'Enrollment Form'!$CL352=\"No\"),\"-\",IF(AND('Enrollment Form'!$CL352=\"Yes\",'Enrollment Form'!$CM352=\"\"),\"N\",\"Y\"))","v":"-"},{"$f":"IF(OR('Enrollment Form'!$CN352=\"\",'Enrollment Form'!$CN352=\"No\"),\"-\",IF(AND('Enrollment Form'!$CN352=\"Yes\",'Enrollment Form'!$CO352=\"\"),\"N\",\"Y\"))","v":"-"},{"$f":"IF(OR('Enrollment Form'!$CN352=\"\",'Enrollment Form'!$CN352=\"No\"),\"-\",IF(AND('Enrollment Form'!$CN352=\"Yes\",'Enrollment Form'!$CP352=\"\"),\"N\",\"Y\"))","v":"-"},{"$f":"IF('Enrollment Form'!B352<>\"Subscriber\",\"-\",IF(AND('Enrollment Form'!B352=\"Subscriber\",'Enrollment Form'!C352=\"Enroll\",'Enrollment Form'!AA352=\"\"),\"N\",\"Y\"))","v":"-"},{"$f":"IF(OR('Enrollment Form'!B352=\"Subscriber\",'Enrollment Form'!B352=\"\"),\"-\",IF('Enrollment Form'!BP352=\"\",\"N\",\"Y\"))","v":"-"},{"$f":"IF('Enrollment Form'!B352<>\"Subscriber\",\"-\",IF(AND('Enrollment Form'!B352=\"Subscriber\",'Enrollment Form'!G352=\"\"),\"N\",\"Y\"))","v":"-"},{"$f":"IF('Enrollment Form'!A352=\"\",\"\",IF('Enrollment Form'!B352=\"Subscriber\",\"-\",IF(AND('Enrollment Form'!B352<>\"Subscriber\",'Enrollment Form'!G352='Enrollment Form'!H352),\"N\",\"Y\")))","v":""},0]
[353,{"$f":"IF('Enrollment Form'!$A353<>\"\",\"Y\",\"N\")","v":"N"},{"$f":"IF(AND('Enrollment Form'!$B353=\"\",'Enrollment Form'!$C353<>\"\"),\"N\",IF($B346=\"N\",\"\",\"Y\"))","v":""},{"$f":"IF(OR($B346=\"N\",'Enrollment Form'!G353=\"\"),\"\",IF('Enrollment Form'!$B353<>\"Subscriber\",\"\",IF('Enrollment Form'!$G353='Enrollment Form'!$H353,\"Y\",\"N\")))","v":""},{"$f":"IF($B346=\"N\",\"\",IF(AND(COUNTIFS('Enrollment Form'!$H$11:$H$1000,'Enrollment Form'!$H353,'Enrollment Form'!$B$11:$B$1000,'Enrollment Form'!$B353)>1,'Enrollment Form'!$H353<>\"\"),\"N\",\"Y\"))","v":""},{"$f":"IF($B346=\"N\",\"\",IF(LEN('Enrollment Form'!$Y353)=0,\"\",IF(LEN('Enrollment Form'!$Y353)<>5,\"N\",\"Y\")))","v":""},{"$f":"IF($B346=\"N\",\"\",IF(LEN('Enrollment Form'!$AD353=0),\"\",IF(LEN('Enrollment Form'!$AD353)<>5,\"N\",\"Y\")))","v":""},{"$f":"IF($B346=\"N\",\"\",IF(LEN('Enrollment Form'!$BS353=0),\"\",IF(LEN('Enrollment Form'!$BS353)<>5,\"N\",\"Y\")))","v":""},{"$f":"IF($B346=\"N\",\"\",IF(LEN('Enrollment Form'!$AE353)=0,\"\",IF(LEN('Enrollment Form'!$AE353)<>10,\"N\",\"Y\")))","v":""},{"$f":"IF($B346=\"N\",\"\",IF(LEN('Enrollment Form'!$AF353)=0,\"\",IF(LEN('Enrollment Form'!$AF353)<>10,\"N\",\"Y\")))","v":""},{"$f":"IF('Enrollment Form'!$O353<>\"Graded\",\"-\",IF(AND('Enrollment Form'!$O353=\"Graded\",'Enrollment Form'!$AR353<>\"\"),\"Y\",\"N\"))","v":"-"},{"$f":"IF($B346=\"N\",\"\",IF(OR('Enrollment Form'!$B353<>\"Subscriber\",'Enrollment Form'!$C353=\"ROC\"),\"-\",IF(AND('Enrollment Form'!$B353=\"Subscriber\",'Enrollment Form'!$C353=\"Enroll\",'Enrollment Form'!$AJ353<>\"\"),\"Y\",\"N\")))","v":""},{"$f":"IF($B346=\"N\",\"\",IF(OR('Enrollment Form'!$B353<>\"Subscriber\",'Enrollment Form'!$C353=\"ROC\"),\"-\",IF(AND('Enrollment Form'!$B353=\"Subscriber\",'Enrollment Form'!$C353=\"Enroll\",'Enrollment Form'!$AK353<>\"\"),\"Y\",\"N\")))","v":""},{"$f":"IF($B346=\"N\",\"\",IF(OR('Enrollment Form'!$B353<>\"Subscriber\",'Enrollment Form'!$C353=\"ROC\"),\"-\",IF(AND('Enrollment Form'!$B353=\"Subscriber\",'Enrollment Form'!$C353=\"Enroll\",'Enrollment Form'!$AL353<>\"\"),\"Y\",\"N\")))","v":""},{"$f":"IF($B346=\"N\",\"\",IF(OR('Enrollment Form'!$B353<>\"Subscriber\",'Enrollment Form'!$C353=\"ROC\"),\"-\",IF(AND('Enrollment Form'!$B353=\"Subscriber\",'Enrollment Form'!$C353=\"Enroll\",'Enrollment Form'!$AP353<>\"\"),\"Y\",\"N\")))","v":""},{"$f":"IF($B346=\"N\",\"\",IF(OR('Enrollment Form'!$B353<>\"Subscriber\",'Enrollment Form'!$C353=\"ROC\"),\"-\",IF(AND('Enrollment Form'!$B353=\"Subscriber\",'Enrollment Form'!$C353=\"Enroll\",'Enrollment Form'!$AQ353<>\"\"),\"Y\",\"N\")))","v":""},{"$f":"IF($B346=\"N\",\"\",IF(OR('Enrollment Form'!$B353<>\"Subscriber\",'Enrollment Form'!$C353=\"ROC\"),\"-\",IF(AND('Enrollment Form'!$B353=\"Subscriber\",'Enrollment Form'!$C353=\"Enroll\",'Enrollment Form'!$AS353<>\"\"),\"Y\",\"N\")))","v":""},{"$f":"IF($B346=\"N\",\"\",IF($Q346=\"-\",\"-\",IF(AND($Q346=\"Y\",'Enrollment Form'!$AS353=\"No\"),\"-\",IF(AND($Q346=\"Y\",'Enrollment Form'!$AS353=\"Yes\",'Enrollment Form'!$AT353<>\"\"),\"Y\",\"N\"))))","v":""},{"$f":"IF($B346=\"N\",\"\",IF(OR('Enrollment Form'!$B353<>\"Subscriber\",'Enrollment Form'!$C353=\"ROC\"),\"-\",IF(AND('Enrollment Form'!$B353=\"Subscriber\",'Enrollment Form'!$C353=\"Enroll\",'Enrollment Form'!$CV353<>\"\"),\"Y\",\"N\")))","v":""},{"$f":"IF($B346=\"N\",\"\",IF($S346=\"-\",\"-\",IF(AND($S346=\"Y\",'Enrollment Form'!$CV353=\"No\"),\"-\",IF(AND($S346=\"Y\",'Enrollment Form'!$CV353=\"Yes\",'Enrollment Form'!$CW353<>\"\"),\"Y\",\"N\"))))","v":""},{"$f":"IF(OR('Enrollment Form'!$AY353=\"Yes\",'Enrollment Form'!$AY353=\"\"),\"-\",IF(OR(AND('Enrollment Form'!$AY353=\"No\",ISERROR(FIND(\"HMO\",VLOOKUP('Enrollment Form'!G353,'Enrollment Form'!H$11:J$1000,3,FALSE),1))=FALSE,COUNTA('Enrollment Form'!$AZ353:$BC353)=4),AND('Enrollment Form'!$AY353=\"No\",ISERROR(FIND(\"HMO\",VLOOKUP('Enrollment Form'!G353,'Enrollment Form'!H$11:J$1000,3,FALSE),1))=FALSE,COUNTA('Enrollment Form'!$BT353:$BW353)=4)),\"Y\",\"N\"))","v":"-"},{"$f":"IF($B346=\"N\",\"\",IF('Enrollment Form'!$B353=\"Subscriber\",\"-\",IF(COUNTA('Enrollment Form'!$BL353,'Enrollment Form'!$BN353)=2,\"Y\",\"N\")))","v":""},{"$f":"IF($B346=\"N\",\"\",IF(OR('Enrollment Form'!$AX353=\"\",'Enrollment Form'!$AX353=\"No\"),\"-\",IF(AND('Enrollment Form'!$AX353=\"Yes\",COUNTA('Enrollment Form'!$CR353)=1),\"Y\",\"N\")))","v":""},{"$f":"IF(OR('Enrollment Form'!$CR353=\"\",'Enrollment Form'!$CR353=\"No\"),\"-\",IF(COUNTA('Enrollment Form'!$CT353:$CU353)=2,\"Y\",\"N\"))","v":"-"},{"$f":"IF($B346=\"N\",\"\",IF(COUNTIF('Enrollment Form'!$DG353:$DP353,\"Other\")=COUNTA('Enrollment Form'!$DK353,'Enrollment Form'!$DH353,'Enrollment Form'!$DN353,'Enrollment Form'!$DQ353),\"Y\",\"N\"))","v":""},{"$f":"IF($B346=\"N\",\"\",IF(OR('Enrollment Form'!B353<>\"Subscriber\",'Enrollment Form'!C353=\"ROC\",COUNTIF('Enrollment Form'!AV353:AW353,\"Yes\")>=1),\"-\",IF(AND('Enrollment Form'!C353=\"Enroll\",COUNTIF('Enrollment Form'!AV353:AW353,\"No\")=2,'Enrollment Form'!AX353=\"\"),\"N\",\"Y\")))","v":""},{"$f":"IF(OR(B346=\"N\",'Enrollment Form'!B353<>\"Subscriber\",'Enrollment Form'!C353=\"ROC\",'Enrollment Form'!O353<>\"Multiple of Salary\"),\"-\",IF(COUNTA('Enrollment Form'!T353:U353)<2,\"N\",\"Y\"))","v":"-"},{"$f":"IF(B346=\"N\",\"\",IF(OR('Enrollment Form'!C353=\"ROC\",'Enrollment Form'!B353<>\"Subscriber\",'Enrollment Form'!O353=\"Waive\",'Enrollment Form'!O353=\"\"),\"-\",IF('Enrollment Form'!P353=\"\",\"N\",\"Y\")))","v":""},{"$f":"IF($B346=\"N\",\"\",IF(AND('Enrollment Form'!$C353=\"ROC\",'Enrollment Form'!$DR353<>\"\"),\"Y\",IF(AND('Enrollment Form'!$C353=\"ROC\",'Enrollment Form'!$DR353=\"\"),\"N\",IF(AND('Enrollment Form'!$C353=\"Enroll\",'Enrollment Form'!$B353=\"Subscriber\",'Enrollment Form'!$CX353=\"No\",'Enrollment Form'!$DR353=\"\"),\"N\",IF(AND('Enrollment Form'!$C353=\"Enroll\",'Enrollment Form'!$B353=\"Subscriber\",'Enrollment Form'!$CX353=\"Yes\"),\"-\",\"Y\")))))","v":""},{"$f":"IF($B346=\"N\",\"\",IF(AND('Enrollment Form'!$C353=\"ROC\",'Enrollment Form'!$DS353<>\"\"),\"Y\",IF(AND('Enrollment Form'!$C353=\"ROC\",'Enrollment Form'!$DS353=\"\"),\"N\",IF(AND('Enrollment Form'!$C353=\"Enroll\",'Enrollment Form'!$B353=\"Subscriber\",'Enrollment Form'!$CX353=\"No\",'Enrollment Form'!$DS353=\"\"),\"N\",IF(AND('Enrollment Form'!$C353=\"Enroll\",'Enrollment Form'!$B353=\"Subscriber\",'Enrollment Form'!$CX353=\"Yes\"),\"-\",\"Y\")))))","v":""},{"$f":"IF('Enrollment Form'!AH353=\"\",\"\",IF(ISERROR(SEARCH(\".\",'Enrollment Form'!AH353,SEARCH(\"@\",'Enrollment Form'!AH353))),\"N\",\"Y\"))","v":""},{"$f":"IF(OR($B346=\"N\",'Enrollment Form'!$G353=\"\"),\"\",IF('Enrollment Form'!$B353<>\"Subscriber\",\"-\",IF(COUNTIF('Enrollment Form'!$AV353:$AW353,\"Yes\")=2,\"N\",\"Y\")))","v":""},{"$f":"IF(OR('Enrollment Form'!$CJ353=\"\",'Enrollment Form'!$CJ353=\"No\"),\"-\",IF(AND('Enrollment Form'!$CJ353=\"Yes\",'Enrollment Form'!$CK353=\"\"),\"N\",\"Y\"))","v":"-"},{"$f":"IF(OR('Enrollment Form'!$CL353=\"\",'Enrollment Form'!$CL353=\"No\"),\"-\",IF(AND('Enrollment Form'!$CL353=\"Yes\",'Enrollment Form'!$CM353=\"\"),\"N\",\"Y\"))","v":"-"},{"$f":"IF(OR('Enrollment Form'!$CN353=\"\",'Enrollment Form'!$CN353=\"No\"),\"-\",IF(AND('Enrollment Form'!$CN353=\"Yes\",'Enrollment Form'!$CO353=\"\"),\"N\",\"Y\"))","v":"-"},{"$f":"IF(OR('Enrollment Form'!$CN353=\"\",'Enrollment Form'!$CN353=\"No\"),\"-\",IF(AND('Enrollment Form'!$CN353=\"Yes\",'Enrollment Form'!$CP353=\"\"),\"N\",\"Y\"))","v":"-"},{"$f":"IF('Enrollment Form'!B353<>\"Subscriber\",\"-\",IF(AND('Enrollment Form'!B353=\"Subscriber\",'Enrollment Form'!C353=\"Enroll\",'Enrollment Form'!AA353=\"\"),\"N\",\"Y\"))","v":"-"},{"$f":"IF(OR('Enrollment Form'!B353=\"Subscriber\",'Enrollment Form'!B353=\"\"),\"-\",IF('Enrollment Form'!BP353=\"\",\"N\",\"Y\"))","v":"-"},{"$f":"IF('Enrollment Form'!B353<>\"Subscriber\",\"-\",IF(AND('Enrollment Form'!B353=\"Subscriber\",'Enrollment Form'!G353=\"\"),\"N\",\"Y\"))","v":"-"},{"$f":"IF('Enrollment Form'!A353=\"\",\"\",IF('Enrollment Form'!B353=\"Subscriber\",\"-\",IF(AND('Enrollment Form'!B353<>\"Subscriber\",'Enrollment Form'!G353='Enrollment Form'!H353),\"N\",\"Y\")))","v":""},0]
[354,{"$f":"IF('Enrollment Form'!$A354<>\"\",\"Y\",\"N\")","v":"N"},{"$f":"IF(AND('Enrollment Form'!$B354=\"\",'Enrollment Form'!$C354<>\"\"),\"N\",IF($B347=\"N\",\"\",\"Y\"))","v":""},{"$f":"IF(OR($B347=\"N\",'Enrollment Form'!G354=\"\"),\"\",IF('Enrollment Form'!$B354<>\"Subscriber\",\"\",IF('Enrollment Form'!$G354='Enrollment Form'!$H354,\"Y\",\"N\")))","v":""},{"$f":"IF($B347=\"N\",\"\",IF(AND(COUNTIFS('Enrollment Form'!$H$11:$H$1000,'Enrollment Form'!$H354,'Enrollment Form'!$B$11:$B$1000,'Enrollment Form'!$B354)>1,'Enrollment Form'!$H354<>\"\"),\"N\",\"Y\"))","v":""},{"$f":"IF($B347=\"N\",\"\",IF(LEN('Enrollment Form'!$Y354)=0,\"\",IF(LEN('Enrollment Form'!$Y354)<>5,\"N\",\"Y\")))","v":""},{"$f":"IF($B347=\"N\",\"\",IF(LEN('Enrollment Form'!$AD354=0),\"\",IF(LEN('Enrollment Form'!$AD354)<>5,\"N\",\"Y\")))","v":""},{"$f":"IF($B347=\"N\",\"\",IF(LEN('Enrollment Form'!$BS354=0),\"\",IF(LEN('Enrollment Form'!$BS354)<>5,\"N\",\"Y\")))","v":""},{"$f":"IF($B347=\"N\",\"\",IF(LEN('Enrollment Form'!$AE354)=0,\"\",IF(LEN('Enrollment Form'!$AE354)<>10,\"N\",\"Y\")))","v":""},{"$f":"IF($B347=\"N\",\"\",IF(LEN('Enrollment Form'!$AF354)=0,\"\",IF(LEN('Enrollment Form'!$AF354)<>10,\"N\",\"Y\")))","v":""},{"$f":"IF('Enrollment Form'!$O354<>\"Graded\",\"-\",IF(AND('Enrollment Form'!$O354=\"Graded\",'Enrollment Form'!$AR354<>\"\"),\"Y\",\"N\"))","v":"-"},{"$f":"IF($B347=\"N\",\"\",IF(OR('Enrollment Form'!$B354<>\"Subscriber\",'Enrollment Form'!$C354=\"ROC\"),\"-\",IF(AND('Enrollment Form'!$B354=\"Subscriber\",'Enrollment Form'!$C354=\"Enroll\",'Enrollment Form'!$AJ354<>\"\"),\"Y\",\"N\")))","v":""},{"$f":"IF($B347=\"N\",\"\",IF(OR('Enrollment Form'!$B354<>\"Subscriber\",'Enrollment Form'!$C354=\"ROC\"),\"-\",IF(AND('Enrollment Form'!$B354=\"Subscriber\",'Enrollment Form'!$C354=\"Enroll\",'Enrollment Form'!$AK354<>\"\"),\"Y\",\"N\")))","v":""},{"$f":"IF($B347=\"N\",\"\",IF(OR('Enrollment Form'!$B354<>\"Subscriber\",'Enrollment Form'!$C354=\"ROC\"),\"-\",IF(AND('Enrollment Form'!$B354=\"Subscriber\",'Enrollment Form'!$C354=\"Enroll\",'Enrollment Form'!$AL354<>\"\"),\"Y\",\"N\")))","v":""},{"$f":"IF($B347=\"N\",\"\",IF(OR('Enrollment Form'!$B354<>\"Subscriber\",'Enrollment Form'!$C354=\"ROC\"),\"-\",IF(AND('Enrollment Form'!$B354=\"Subscriber\",'Enrollment Form'!$C354=\"Enroll\",'Enrollment Form'!$AP354<>\"\"),\"Y\",\"N\")))","v":""},{"$f":"IF($B347=\"N\",\"\",IF(OR('Enrollment Form'!$B354<>\"Subscriber\",'Enrollment Form'!$C354=\"ROC\"),\"-\",IF(AND('Enrollment Form'!$B354=\"Subscriber\",'Enrollment Form'!$C354=\"Enroll\",'Enrollment Form'!$AQ354<>\"\"),\"Y\",\"N\")))","v":""},{"$f":"IF($B347=\"N\",\"\",IF(OR('Enrollment Form'!$B354<>\"Subscriber\",'Enrollment Form'!$C354=\"ROC\"),\"-\",IF(AND('Enrollment Form'!$B354=\"Subscriber\",'Enrollment Form'!$C354=\"Enroll\",'Enrollment Form'!$AS354<>\"\"),\"Y\",\"N\")))","v":""},{"$f":"IF($B347=\"N\",\"\",IF($Q347=\"-\",\"-\",IF(AND($Q347=\"Y\",'Enrollment Form'!$AS354=\"No\"),\"-\",IF(AND($Q347=\"Y\",'Enrollment Form'!$AS354=\"Yes\",'Enrollment Form'!$AT354<>\"\"),\"Y\",\"N\"))))","v":""},{"$f":"IF($B347=\"N\",\"\",IF(OR('Enrollment Form'!$B354<>\"Subscriber\",'Enrollment Form'!$C354=\"ROC\"),\"-\",IF(AND('Enrollment Form'!$B354=\"Subscriber\",'Enrollment Form'!$C354=\"Enroll\",'Enrollment Form'!$CV354<>\"\"),\"Y\",\"N\")))","v":""},{"$f":"IF($B347=\"N\",\"\",IF($S347=\"-\",\"-\",IF(AND($S347=\"Y\",'Enrollment Form'!$CV354=\"No\"),\"-\",IF(AND($S347=\"Y\",'Enrollment Form'!$CV354=\"Yes\",'Enrollment Form'!$CW354<>\"\"),\"Y\",\"N\"))))","v":""},{"$f":"IF(OR('Enrollment Form'!$AY354=\"Yes\",'Enrollment Form'!$AY354=\"\"),\"-\",IF(OR(AND('Enrollment Form'!$AY354=\"No\",ISERROR(FIND(\"HMO\",VLOOKUP('Enrollment Form'!G354,'Enrollment Form'!H$11:J$1000,3,FALSE),1))=FALSE,COUNTA('Enrollment Form'!$AZ354:$BC354)=4),AND('Enrollment Form'!$AY354=\"No\",ISERROR(FIND(\"HMO\",VLOOKUP('Enrollment Form'!G354,'Enrollment Form'!H$11:J$1000,3,FALSE),1))=FALSE,COUNTA('Enrollment Form'!$BT354:$BW354)=4)),\"Y\",\"N\"))","v":"-"},{"$f":"IF($B347=\"N\",\"\",IF('Enrollment Form'!$B354=\"Subscriber\",\"-\",IF(COUNTA('Enrollment Form'!$BL354,'Enrollment Form'!$BN354)=2,\"Y\",\"N\")))","v":""},{"$f":"IF($B347=\"N\",\"\",IF(OR('Enrollment Form'!$AX354=\"\",'Enrollment Form'!$AX354=\"No\"),\"-\",IF(AND('Enrollment Form'!$AX354=\"Yes\",COUNTA('Enrollment Form'!$CR354)=1),\"Y\",\"N\")))","v":""},{"$f":"IF(OR('Enrollment Form'!$CR354=\"\",'Enrollment Form'!$CR354=\"No\"),\"-\",IF(COUNTA('Enrollment Form'!$CT354:$CU354)=2,\"Y\",\"N\"))","v":"-"},{"$f":"IF($B347=\"N\",\"\",IF(COUNTIF('Enrollment Form'!$DG354:$DP354,\"Other\")=COUNTA('Enrollment Form'!$DK354,'Enrollment Form'!$DH354,'Enrollment Form'!$DN354,'Enrollment Form'!$DQ354),\"Y\",\"N\"))","v":""},{"$f":"IF($B347=\"N\",\"\",IF(OR('Enrollment Form'!B354<>\"Subscriber\",'Enrollment Form'!C354=\"ROC\",COUNTIF('Enrollment Form'!AV354:AW354,\"Yes\")>=1),\"-\",IF(AND('Enrollment Form'!C354=\"Enroll\",COUNTIF('Enrollment Form'!AV354:AW354,\"No\")=2,'Enrollment Form'!AX354=\"\"),\"N\",\"Y\")))","v":""},{"$f":"IF(OR(B347=\"N\",'Enrollment Form'!B354<>\"Subscriber\",'Enrollment Form'!C354=\"ROC\",'Enrollment Form'!O354<>\"Multiple of Salary\"),\"-\",IF(COUNTA('Enrollment Form'!T354:U354)<2,\"N\",\"Y\"))","v":"-"},{"$f":"IF(B347=\"N\",\"\",IF(OR('Enrollment Form'!C354=\"ROC\",'Enrollment Form'!B354<>\"Subscriber\",'Enrollment Form'!O354=\"Waive\",'Enrollment Form'!O354=\"\"),\"-\",IF('Enrollment Form'!P354=\"\",\"N\",\"Y\")))","v":""},{"$f":"IF($B347=\"N\",\"\",IF(AND('Enrollment Form'!$C354=\"ROC\",'Enrollment Form'!$DR354<>\"\"),\"Y\",IF(AND('Enrollment Form'!$C354=\"ROC\",'Enrollment Form'!$DR354=\"\"),\"N\",IF(AND('Enrollment Form'!$C354=\"Enroll\",'Enrollment Form'!$B354=\"Subscriber\",'Enrollment Form'!$CX354=\"No\",'Enrollment Form'!$DR354=\"\"),\"N\",IF(AND('Enrollment Form'!$C354=\"Enroll\",'Enrollment Form'!$B354=\"Subscriber\",'Enrollment Form'!$CX354=\"Yes\"),\"-\",\"Y\")))))","v":""},{"$f":"IF($B347=\"N\",\"\",IF(AND('Enrollment Form'!$C354=\"ROC\",'Enrollment Form'!$DS354<>\"\"),\"Y\",IF(AND('Enrollment Form'!$C354=\"ROC\",'Enrollment Form'!$DS354=\"\"),\"N\",IF(AND('Enrollment Form'!$C354=\"Enroll\",'Enrollment Form'!$B354=\"Subscriber\",'Enrollment Form'!$CX354=\"No\",'Enrollment Form'!$DS354=\"\"),\"N\",IF(AND('Enrollment Form'!$C354=\"Enroll\",'Enrollment Form'!$B354=\"Subscriber\",'Enrollment Form'!$CX354=\"Yes\"),\"-\",\"Y\")))))","v":""},{"$f":"IF('Enrollment Form'!AH354=\"\",\"\",IF(ISERROR(SEARCH(\".\",'Enrollment Form'!AH354,SEARCH(\"@\",'Enrollment Form'!AH354))),\"N\",\"Y\"))","v":""},{"$f":"IF(OR($B347=\"N\",'Enrollment Form'!$G354=\"\"),\"\",IF('Enrollment Form'!$B354<>\"Subscriber\",\"-\",IF(COUNTIF('Enrollment Form'!$AV354:$AW354,\"Yes\")=2,\"N\",\"Y\")))","v":""},{"$f":"IF(OR('Enrollment Form'!$CJ354=\"\",'Enrollment Form'!$CJ354=\"No\"),\"-\",IF(AND('Enrollment Form'!$CJ354=\"Yes\",'Enrollment Form'!$CK354=\"\"),\"N\",\"Y\"))","v":"-"},{"$f":"IF(OR('Enrollment Form'!$CL354=\"\",'Enrollment Form'!$CL354=\"No\"),\"-\",IF(AND('Enrollment Form'!$CL354=\"Yes\",'Enrollment Form'!$CM354=\"\"),\"N\",\"Y\"))","v":"-"},{"$f":"IF(OR('Enrollment Form'!$CN354=\"\",'Enrollment Form'!$CN354=\"No\"),\"-\",IF(AND('Enrollment Form'!$CN354=\"Yes\",'Enrollment Form'!$CO354=\"\"),\"N\",\"Y\"))","v":"-"},{"$f":"IF(OR('Enrollment Form'!$CN354=\"\",'Enrollment Form'!$CN354=\"No\"),\"-\",IF(AND('Enrollment Form'!$CN354=\"Yes\",'Enrollment Form'!$CP354=\"\"),\"N\",\"Y\"))","v":"-"},{"$f":"IF('Enrollment Form'!B354<>\"Subscriber\",\"-\",IF(AND('Enrollment Form'!B354=\"Subscriber\",'Enrollment Form'!C354=\"Enroll\",'Enrollment Form'!AA354=\"\"),\"N\",\"Y\"))","v":"-"},{"$f":"IF(OR('Enrollment Form'!B354=\"Subscriber\",'Enrollment Form'!B354=\"\"),\"-\",IF('Enrollment Form'!BP354=\"\",\"N\",\"Y\"))","v":"-"},{"$f":"IF('Enrollment Form'!B354<>\"Subscriber\",\"-\",IF(AND('Enrollment Form'!B354=\"Subscriber\",'Enrollment Form'!G354=\"\"),\"N\",\"Y\"))","v":"-"},{"$f":"IF('Enrollment Form'!A354=\"\",\"\",IF('Enrollment Form'!B354=\"Subscriber\",\"-\",IF(AND('Enrollment Form'!B354<>\"Subscriber\",'Enrollment Form'!G354='Enrollment Form'!H354),\"N\",\"Y\")))","v":""},0]
[355,{"$f":"IF('Enrollment Form'!$A355<>\"\",\"Y\",\"N\")","v":"N"},{"$f":"IF(AND('Enrollment Form'!$B355=\"\",'Enrollment Form'!$C355<>\"\"),\"N\",IF($B348=\"N\",\"\",\"Y\"))","v":""},{"$f":"IF(OR($B348=\"N\",'Enrollment Form'!G355=\"\"),\"\",IF('Enrollment Form'!$B355<>\"Subscriber\",\"\",IF('Enrollment Form'!$G355='Enrollment Form'!$H355,\"Y\",\"N\")))","v":""},{"$f":"IF($B348=\"N\",\"\",IF(AND(COUNTIFS('Enrollment Form'!$H$11:$H$1000,'Enrollment Form'!$H355,'Enrollment Form'!$B$11:$B$1000,'Enrollment Form'!$B355)>1,'Enrollment Form'!$H355<>\"\"),\"N\",\"Y\"))","v":""},{"$f":"IF($B348=\"N\",\"\",IF(LEN('Enrollment Form'!$Y355)=0,\"\",IF(LEN('Enrollment Form'!$Y355)<>5,\"N\",\"Y\")))","v":""},{"$f":"IF($B348=\"N\",\"\",IF(LEN('Enrollment Form'!$AD355=0),\"\",IF(LEN('Enrollment Form'!$AD355)<>5,\"N\",\"Y\")))","v":""},{"$f":"IF($B348=\"N\",\"\",IF(LEN('Enrollment Form'!$BS355=0),\"\",IF(LEN('Enrollment Form'!$BS355)<>5,\"N\",\"Y\")))","v":""},{"$f":"IF($B348=\"N\",\"\",IF(LEN('Enrollment Form'!$AE355)=0,\"\",IF(LEN('Enrollment Form'!$AE355)<>10,\"N\",\"Y\")))","v":""},{"$f":"IF($B348=\"N\",\"\",IF(LEN('Enrollment Form'!$AF355)=0,\"\",IF(LEN('Enrollment Form'!$AF355)<>10,\"N\",\"Y\")))","v":""},{"$f":"IF('Enrollment Form'!$O355<>\"Graded\",\"-\",IF(AND('Enrollment Form'!$O355=\"Graded\",'Enrollment Form'!$AR355<>\"\"),\"Y\",\"N\"))","v":"-"},{"$f":"IF($B348=\"N\",\"\",IF(OR('Enrollment Form'!$B355<>\"Subscriber\",'Enrollment Form'!$C355=\"ROC\"),\"-\",IF(AND('Enrollment Form'!$B355=\"Subscriber\",'Enrollment Form'!$C355=\"Enroll\",'Enrollment Form'!$AJ355<>\"\"),\"Y\",\"N\")))","v":""},{"$f":"IF($B348=\"N\",\"\",IF(OR('Enrollment Form'!$B355<>\"Subscriber\",'Enrollment Form'!$C355=\"ROC\"),\"-\",IF(AND('Enrollment Form'!$B355=\"Subscriber\",'Enrollment Form'!$C355=\"Enroll\",'Enrollment Form'!$AK355<>\"\"),\"Y\",\"N\")))","v":""},{"$f":"IF($B348=\"N\",\"\",IF(OR('Enrollment Form'!$B355<>\"Subscriber\",'Enrollment Form'!$C355=\"ROC\"),\"-\",IF(AND('Enrollment Form'!$B355=\"Subscriber\",'Enrollment Form'!$C355=\"Enroll\",'Enrollment Form'!$AL355<>\"\"),\"Y\",\"N\")))","v":""},{"$f":"IF($B348=\"N\",\"\",IF(OR('Enrollment Form'!$B355<>\"Subscriber\",'Enrollment Form'!$C355=\"ROC\"),\"-\",IF(AND('Enrollment Form'!$B355=\"Subscriber\",'Enrollment Form'!$C355=\"Enroll\",'Enrollment Form'!$AP355<>\"\"),\"Y\",\"N\")))","v":""},{"$f":"IF($B348=\"N\",\"\",IF(OR('Enrollment Form'!$B355<>\"Subscriber\",'Enrollment Form'!$C355=\"ROC\"),\"-\",IF(AND('Enrollment Form'!$B355=\"Subscriber\",'Enrollment Form'!$C355=\"Enroll\",'Enrollment Form'!$AQ355<>\"\"),\"Y\",\"N\")))","v":""},{"$f":"IF($B348=\"N\",\"\",IF(OR('Enrollment Form'!$B355<>\"Subscriber\",'Enrollment Form'!$C355=\"ROC\"),\"-\",IF(AND('Enrollment Form'!$B355=\"Subscriber\",'Enrollment Form'!$C355=\"Enroll\",'Enrollment Form'!$AS355<>\"\"),\"Y\",\"N\")))","v":""},{"$f":"IF($B348=\"N\",\"\",IF($Q348=\"-\",\"-\",IF(AND($Q348=\"Y\",'Enrollment Form'!$AS355=\"No\"),\"-\",IF(AND($Q348=\"Y\",'Enrollment Form'!$AS355=\"Yes\",'Enrollment Form'!$AT355<>\"\"),\"Y\",\"N\"))))","v":""},{"$f":"IF($B348=\"N\",\"\",IF(OR('Enrollment Form'!$B355<>\"Subscriber\",'Enrollment Form'!$C355=\"ROC\"),\"-\",IF(AND('Enrollment Form'!$B355=\"Subscriber\",'Enrollment Form'!$C355=\"Enroll\",'Enrollment Form'!$CV355<>\"\"),\"Y\",\"N\")))","v":""},{"$f":"IF($B348=\"N\",\"\",IF($S348=\"-\",\"-\",IF(AND($S348=\"Y\",'Enrollment Form'!$CV355=\"No\"),\"-\",IF(AND($S348=\"Y\",'Enrollment Form'!$CV355=\"Yes\",'Enrollment Form'!$CW355<>\"\"),\"Y\",\"N\"))))","v":""},{"$f":"IF(OR('Enrollment Form'!$AY355=\"Yes\",'Enrollment Form'!$AY355=\"\"),\"-\",IF(OR(AND('Enrollment Form'!$AY355=\"No\",ISERROR(FIND(\"HMO\",VLOOKUP('Enrollment Form'!G355,'Enrollment Form'!H$11:J$1000,3,FALSE),1))=FALSE,COUNTA('Enrollment Form'!$AZ355:$BC355)=4),AND('Enrollment Form'!$AY355=\"No\",ISERROR(FIND(\"HMO\",VLOOKUP('Enrollment Form'!G355,'Enrollment Form'!H$11:J$1000,3,FALSE),1))=FALSE,COUNTA('Enrollment Form'!$BT355:$BW355)=4)),\"Y\",\"N\"))","v":"-"},{"$f":"IF($B348=\"N\",\"\",IF('Enrollment Form'!$B355=\"Subscriber\",\"-\",IF(COUNTA('Enrollment Form'!$BL355,'Enrollment Form'!$BN355)=2,\"Y\",\"N\")))","v":""},{"$f":"IF($B348=\"N\",\"\",IF(OR('Enrollment Form'!$AX355=\"\",'Enrollment Form'!$AX355=\"No\"),\"-\",IF(AND('Enrollment Form'!$AX355=\"Yes\",COUNTA('Enrollment Form'!$CR355)=1),\"Y\",\"N\")))","v":""},{"$f":"IF(OR('Enrollment Form'!$CR355=\"\",'Enrollment Form'!$CR355=\"No\"),\"-\",IF(COUNTA('Enrollment Form'!$CT355:$CU355)=2,\"Y\",\"N\"))","v":"-"},{"$f":"IF($B348=\"N\",\"\",IF(COUNTIF('Enrollment Form'!$DG355:$DP355,\"Other\")=COUNTA('Enrollment Form'!$DK355,'Enrollment Form'!$DH355,'Enrollment Form'!$DN355,'Enrollment Form'!$DQ355),\"Y\",\"N\"))","v":""},{"$f":"IF($B348=\"N\",\"\",IF(OR('Enrollment Form'!B355<>\"Subscriber\",'Enrollment Form'!C355=\"ROC\",COUNTIF('Enrollment Form'!AV355:AW355,\"Yes\")>=1),\"-\",IF(AND('Enrollment Form'!C355=\"Enroll\",COUNTIF('Enrollment Form'!AV355:AW355,\"No\")=2,'Enrollment Form'!AX355=\"\"),\"N\",\"Y\")))","v":""},{"$f":"IF(OR(B348=\"N\",'Enrollment Form'!B355<>\"Subscriber\",'Enrollment Form'!C355=\"ROC\",'Enrollment Form'!O355<>\"Multiple of Salary\"),\"-\",IF(COUNTA('Enrollment Form'!T355:U355)<2,\"N\",\"Y\"))","v":"-"},{"$f":"IF(B348=\"N\",\"\",IF(OR('Enrollment Form'!C355=\"ROC\",'Enrollment Form'!B355<>\"Subscriber\",'Enrollment Form'!O355=\"Waive\",'Enrollment Form'!O355=\"\"),\"-\",IF('Enrollment Form'!P355=\"\",\"N\",\"Y\")))","v":""},{"$f":"IF($B348=\"N\",\"\",IF(AND('Enrollment Form'!$C355=\"ROC\",'Enrollment Form'!$DR355<>\"\"),\"Y\",IF(AND('Enrollment Form'!$C355=\"ROC\",'Enrollment Form'!$DR355=\"\"),\"N\",IF(AND('Enrollment Form'!$C355=\"Enroll\",'Enrollment Form'!$B355=\"Subscriber\",'Enrollment Form'!$CX355=\"No\",'Enrollment Form'!$DR355=\"\"),\"N\",IF(AND('Enrollment Form'!$C355=\"Enroll\",'Enrollment Form'!$B355=\"Subscriber\",'Enrollment Form'!$CX355=\"Yes\"),\"-\",\"Y\")))))","v":""},{"$f":"IF($B348=\"N\",\"\",IF(AND('Enrollment Form'!$C355=\"ROC\",'Enrollment Form'!$DS355<>\"\"),\"Y\",IF(AND('Enrollment Form'!$C355=\"ROC\",'Enrollment Form'!$DS355=\"\"),\"N\",IF(AND('Enrollment Form'!$C355=\"Enroll\",'Enrollment Form'!$B355=\"Subscriber\",'Enrollment Form'!$CX355=\"No\",'Enrollment Form'!$DS355=\"\"),\"N\",IF(AND('Enrollment Form'!$C355=\"Enroll\",'Enrollment Form'!$B355=\"Subscriber\",'Enrollment Form'!$CX355=\"Yes\"),\"-\",\"Y\")))))","v":""},{"$f":"IF('Enrollment Form'!AH355=\"\",\"\",IF(ISERROR(SEARCH(\".\",'Enrollment Form'!AH355,SEARCH(\"@\",'Enrollment Form'!AH355))),\"N\",\"Y\"))","v":""},{"$f":"IF(OR($B348=\"N\",'Enrollment Form'!$G355=\"\"),\"\",IF('Enrollment Form'!$B355<>\"Subscriber\",\"-\",IF(COUNTIF('Enrollment Form'!$AV355:$AW355,\"Yes\")=2,\"N\",\"Y\")))","v":""},{"$f":"IF(OR('Enrollment Form'!$CJ355=\"\",'Enrollment Form'!$CJ355=\"No\"),\"-\",IF(AND('Enrollment Form'!$CJ355=\"Yes\",'Enrollment Form'!$CK355=\"\"),\"N\",\"Y\"))","v":"-"},{"$f":"IF(OR('Enrollment Form'!$CL355=\"\",'Enrollment Form'!$CL355=\"No\"),\"-\",IF(AND('Enrollment Form'!$CL355=\"Yes\",'Enrollment Form'!$CM355=\"\"),\"N\",\"Y\"))","v":"-"},{"$f":"IF(OR('Enrollment Form'!$CN355=\"\",'Enrollment Form'!$CN355=\"No\"),\"-\",IF(AND('Enrollment Form'!$CN355=\"Yes\",'Enrollment Form'!$CO355=\"\"),\"N\",\"Y\"))","v":"-"},{"$f":"IF(OR('Enrollment Form'!$CN355=\"\",'Enrollment Form'!$CN355=\"No\"),\"-\",IF(AND('Enrollment Form'!$CN355=\"Yes\",'Enrollment Form'!$CP355=\"\"),\"N\",\"Y\"))","v":"-"},{"$f":"IF('Enrollment Form'!B355<>\"Subscriber\",\"-\",IF(AND('Enrollment Form'!B355=\"Subscriber\",'Enrollment Form'!C355=\"Enroll\",'Enrollment Form'!AA355=\"\"),\"N\",\"Y\"))","v":"-"},{"$f":"IF(OR('Enrollment Form'!B355=\"Subscriber\",'Enrollment Form'!B355=\"\"),\"-\",IF('Enrollment Form'!BP355=\"\",\"N\",\"Y\"))","v":"-"},{"$f":"IF('Enrollment Form'!B355<>\"Subscriber\",\"-\",IF(AND('Enrollment Form'!B355=\"Subscriber\",'Enrollment Form'!G355=\"\"),\"N\",\"Y\"))","v":"-"},{"$f":"IF('Enrollment Form'!A355=\"\",\"\",IF('Enrollment Form'!B355=\"Subscriber\",\"-\",IF(AND('Enrollment Form'!B355<>\"Subscriber\",'Enrollment Form'!G355='Enrollment Form'!H355),\"N\",\"Y\")))","v":""},0]
[356,{"$f":"IF('Enrollment Form'!$A356<>\"\",\"Y\",\"N\")","v":"N"},{"$f":"IF(AND('Enrollment Form'!$B356=\"\",'Enrollment Form'!$C356<>\"\"),\"N\",IF($B349=\"N\",\"\",\"Y\"))","v":""},{"$f":"IF(OR($B349=\"N\",'Enrollment Form'!G356=\"\"),\"\",IF('Enrollment Form'!$B356<>\"Subscriber\",\"\",IF('Enrollment Form'!$G356='Enrollment Form'!$H356,\"Y\",\"N\")))","v":""},{"$f":"IF($B349=\"N\",\"\",IF(AND(COUNTIFS('Enrollment Form'!$H$11:$H$1000,'Enrollment Form'!$H356,'Enrollment Form'!$B$11:$B$1000,'Enrollment Form'!$B356)>1,'Enrollment Form'!$H356<>\"\"),\"N\",\"Y\"))","v":""},{"$f":"IF($B349=\"N\",\"\",IF(LEN('Enrollment Form'!$Y356)=0,\"\",IF(LEN('Enrollment Form'!$Y356)<>5,\"N\",\"Y\")))","v":""},{"$f":"IF($B349=\"N\",\"\",IF(LEN('Enrollment Form'!$AD356=0),\"\",IF(LEN('Enrollment Form'!$AD356)<>5,\"N\",\"Y\")))","v":""},{"$f":"IF($B349=\"N\",\"\",IF(LEN('Enrollment Form'!$BS356=0),\"\",IF(LEN('Enrollment Form'!$BS356)<>5,\"N\",\"Y\")))","v":""},{"$f":"IF($B349=\"N\",\"\",IF(LEN('Enrollment Form'!$AE356)=0,\"\",IF(LEN('Enrollment Form'!$AE356)<>10,\"N\",\"Y\")))","v":""},{"$f":"IF($B349=\"N\",\"\",IF(LEN('Enrollment Form'!$AF356)=0,\"\",IF(LEN('Enrollment Form'!$AF356)<>10,\"N\",\"Y\")))","v":""},{"$f":"IF('Enrollment Form'!$O356<>\"Graded\",\"-\",IF(AND('Enrollment Form'!$O356=\"Graded\",'Enrollment Form'!$AR356<>\"\"),\"Y\",\"N\"))","v":"-"},{"$f":"IF($B349=\"N\",\"\",IF(OR('Enrollment Form'!$B356<>\"Subscriber\",'Enrollment Form'!$C356=\"ROC\"),\"-\",IF(AND('Enrollment Form'!$B356=\"Subscriber\",'Enrollment Form'!$C356=\"Enroll\",'Enrollment Form'!$AJ356<>\"\"),\"Y\",\"N\")))","v":""},{"$f":"IF($B349=\"N\",\"\",IF(OR('Enrollment Form'!$B356<>\"Subscriber\",'Enrollment Form'!$C356=\"ROC\"),\"-\",IF(AND('Enrollment Form'!$B356=\"Subscriber\",'Enrollment Form'!$C356=\"Enroll\",'Enrollment Form'!$AK356<>\"\"),\"Y\",\"N\")))","v":""},{"$f":"IF($B349=\"N\",\"\",IF(OR('Enrollment Form'!$B356<>\"Subscriber\",'Enrollment Form'!$C356=\"ROC\"),\"-\",IF(AND('Enrollment Form'!$B356=\"Subscriber\",'Enrollment Form'!$C356=\"Enroll\",'Enrollment Form'!$AL356<>\"\"),\"Y\",\"N\")))","v":""},{"$f":"IF($B349=\"N\",\"\",IF(OR('Enrollment Form'!$B356<>\"Subscriber\",'Enrollment Form'!$C356=\"ROC\"),\"-\",IF(AND('Enrollment Form'!$B356=\"Subscriber\",'Enrollment Form'!$C356=\"Enroll\",'Enrollment Form'!$AP356<>\"\"),\"Y\",\"N\")))","v":""},{"$f":"IF($B349=\"N\",\"\",IF(OR('Enrollment Form'!$B356<>\"Subscriber\",'Enrollment Form'!$C356=\"ROC\"),\"-\",IF(AND('Enrollment Form'!$B356=\"Subscriber\",'Enrollment Form'!$C356=\"Enroll\",'Enrollment Form'!$AQ356<>\"\"),\"Y\",\"N\")))","v":""},{"$f":"IF($B349=\"N\",\"\",IF(OR('Enrollment Form'!$B356<>\"Subscriber\",'Enrollment Form'!$C356=\"ROC\"),\"-\",IF(AND('Enrollment Form'!$B356=\"Subscriber\",'Enrollment Form'!$C356=\"Enroll\",'Enrollment Form'!$AS356<>\"\"),\"Y\",\"N\")))","v":""},{"$f":"IF($B349=\"N\",\"\",IF($Q349=\"-\",\"-\",IF(AND($Q349=\"Y\",'Enrollment Form'!$AS356=\"No\"),\"-\",IF(AND($Q349=\"Y\",'Enrollment Form'!$AS356=\"Yes\",'Enrollment Form'!$AT356<>\"\"),\"Y\",\"N\"))))","v":""},{"$f":"IF($B349=\"N\",\"\",IF(OR('Enrollment Form'!$B356<>\"Subscriber\",'Enrollment Form'!$C356=\"ROC\"),\"-\",IF(AND('Enrollment Form'!$B356=\"Subscriber\",'Enrollment Form'!$C356=\"Enroll\",'Enrollment Form'!$CV356<>\"\"),\"Y\",\"N\")))","v":""},{"$f":"IF($B349=\"N\",\"\",IF($S349=\"-\",\"-\",IF(AND($S349=\"Y\",'Enrollment Form'!$CV356=\"No\"),\"-\",IF(AND($S349=\"Y\",'Enrollment Form'!$CV356=\"Yes\",'Enrollment Form'!$CW356<>\"\"),\"Y\",\"N\"))))","v":""},{"$f":"IF(OR('Enrollment Form'!$AY356=\"Yes\",'Enrollment Form'!$AY356=\"\"),\"-\",IF(OR(AND('Enrollment Form'!$AY356=\"No\",ISERROR(FIND(\"HMO\",VLOOKUP('Enrollment Form'!G356,'Enrollment Form'!H$11:J$1000,3,FALSE),1))=FALSE,COUNTA('Enrollment Form'!$AZ356:$BC356)=4),AND('Enrollment Form'!$AY356=\"No\",ISERROR(FIND(\"HMO\",VLOOKUP('Enrollment Form'!G356,'Enrollment Form'!H$11:J$1000,3,FALSE),1))=FALSE,COUNTA('Enrollment Form'!$BT356:$BW356)=4)),\"Y\",\"N\"))","v":"-"},{"$f":"IF($B349=\"N\",\"\",IF('Enrollment Form'!$B356=\"Subscriber\",\"-\",IF(COUNTA('Enrollment Form'!$BL356,'Enrollment Form'!$BN356)=2,\"Y\",\"N\")))","v":""},{"$f":"IF($B349=\"N\",\"\",IF(OR('Enrollment Form'!$AX356=\"\",'Enrollment Form'!$AX356=\"No\"),\"-\",IF(AND('Enrollment Form'!$AX356=\"Yes\",COUNTA('Enrollment Form'!$CR356)=1),\"Y\",\"N\")))","v":""},{"$f":"IF(OR('Enrollment Form'!$CR356=\"\",'Enrollment Form'!$CR356=\"No\"),\"-\",IF(COUNTA('Enrollment Form'!$CT356:$CU356)=2,\"Y\",\"N\"))","v":"-"},{"$f":"IF($B349=\"N\",\"\",IF(COUNTIF('Enrollment Form'!$DG356:$DP356,\"Other\")=COUNTA('Enrollment Form'!$DK356,'Enrollment Form'!$DH356,'Enrollment Form'!$DN356,'Enrollment Form'!$DQ356),\"Y\",\"N\"))","v":""},{"$f":"IF($B349=\"N\",\"\",IF(OR('Enrollment Form'!B356<>\"Subscriber\",'Enrollment Form'!C356=\"ROC\",COUNTIF('Enrollment Form'!AV356:AW356,\"Yes\")>=1),\"-\",IF(AND('Enrollment Form'!C356=\"Enroll\",COUNTIF('Enrollment Form'!AV356:AW356,\"No\")=2,'Enrollment Form'!AX356=\"\"),\"N\",\"Y\")))","v":""},{"$f":"IF(OR(B349=\"N\",'Enrollment Form'!B356<>\"Subscriber\",'Enrollment Form'!C356=\"ROC\",'Enrollment Form'!O356<>\"Multiple of Salary\"),\"-\",IF(COUNTA('Enrollment Form'!T356:U356)<2,\"N\",\"Y\"))","v":"-"},{"$f":"IF(B349=\"N\",\"\",IF(OR('Enrollment Form'!C356=\"ROC\",'Enrollment Form'!B356<>\"Subscriber\",'Enrollment Form'!O356=\"Waive\",'Enrollment Form'!O356=\"\"),\"-\",IF('Enrollment Form'!P356=\"\",\"N\",\"Y\")))","v":""},{"$f":"IF($B349=\"N\",\"\",IF(AND('Enrollment Form'!$C356=\"ROC\",'Enrollment Form'!$DR356<>\"\"),\"Y\",IF(AND('Enrollment Form'!$C356=\"ROC\",'Enrollment Form'!$DR356=\"\"),\"N\",IF(AND('Enrollment Form'!$C356=\"Enroll\",'Enrollment Form'!$B356=\"Subscriber\",'Enrollment Form'!$CX356=\"No\",'Enrollment Form'!$DR356=\"\"),\"N\",IF(AND('Enrollment Form'!$C356=\"Enroll\",'Enrollment Form'!$B356=\"Subscriber\",'Enrollment Form'!$CX356=\"Yes\"),\"-\",\"Y\")))))","v":""},{"$f":"IF($B349=\"N\",\"\",IF(AND('Enrollment Form'!$C356=\"ROC\",'Enrollment Form'!$DS356<>\"\"),\"Y\",IF(AND('Enrollment Form'!$C356=\"ROC\",'Enrollment Form'!$DS356=\"\"),\"N\",IF(AND('Enrollment Form'!$C356=\"Enroll\",'Enrollment Form'!$B356=\"Subscriber\",'Enrollment Form'!$CX356=\"No\",'Enrollment Form'!$DS356=\"\"),\"N\",IF(AND('Enrollment Form'!$C356=\"Enroll\",'Enrollment Form'!$B356=\"Subscriber\",'Enrollment Form'!$CX356=\"Yes\"),\"-\",\"Y\")))))","v":""},{"$f":"IF('Enrollment Form'!AH356=\"\",\"\",IF(ISERROR(SEARCH(\".\",'Enrollment Form'!AH356,SEARCH(\"@\",'Enrollment Form'!AH356))),\"N\",\"Y\"))","v":""},{"$f":"IF(OR($B349=\"N\",'Enrollment Form'!$G356=\"\"),\"\",IF('Enrollment Form'!$B356<>\"Subscriber\",\"-\",IF(COUNTIF('Enrollment Form'!$AV356:$AW356,\"Yes\")=2,\"N\",\"Y\")))","v":""},{"$f":"IF(OR('Enrollment Form'!$CJ356=\"\",'Enrollment Form'!$CJ356=\"No\"),\"-\",IF(AND('Enrollment Form'!$CJ356=\"Yes\",'Enrollment Form'!$CK356=\"\"),\"N\",\"Y\"))","v":"-"},{"$f":"IF(OR('Enrollment Form'!$CL356=\"\",'Enrollment Form'!$CL356=\"No\"),\"-\",IF(AND('Enrollment Form'!$CL356=\"Yes\",'Enrollment Form'!$CM356=\"\"),\"N\",\"Y\"))","v":"-"},{"$f":"IF(OR('Enrollment Form'!$CN356=\"\",'Enrollment Form'!$CN356=\"No\"),\"-\",IF(AND('Enrollment Form'!$CN356=\"Yes\",'Enrollment Form'!$CO356=\"\"),\"N\",\"Y\"))","v":"-"},{"$f":"IF(OR('Enrollment Form'!$CN356=\"\",'Enrollment Form'!$CN356=\"No\"),\"-\",IF(AND('Enrollment Form'!$CN356=\"Yes\",'Enrollment Form'!$CP356=\"\"),\"N\",\"Y\"))","v":"-"},{"$f":"IF('Enrollment Form'!B356<>\"Subscriber\",\"-\",IF(AND('Enrollment Form'!B356=\"Subscriber\",'Enrollment Form'!C356=\"Enroll\",'Enrollment Form'!AA356=\"\"),\"N\",\"Y\"))","v":"-"},{"$f":"IF(OR('Enrollment Form'!B356=\"Subscriber\",'Enrollment Form'!B356=\"\"),\"-\",IF('Enrollment Form'!BP356=\"\",\"N\",\"Y\"))","v":"-"},{"$f":"IF('Enrollment Form'!B356<>\"Subscriber\",\"-\",IF(AND('Enrollment Form'!B356=\"Subscriber\",'Enrollment Form'!G356=\"\"),\"N\",\"Y\"))","v":"-"},{"$f":"IF('Enrollment Form'!A356=\"\",\"\",IF('Enrollment Form'!B356=\"Subscriber\",\"-\",IF(AND('Enrollment Form'!B356<>\"Subscriber\",'Enrollment Form'!G356='Enrollment Form'!H356),\"N\",\"Y\")))","v":""},0]
[357,{"$f":"IF('Enrollment Form'!$A357<>\"\",\"Y\",\"N\")","v":"N"},{"$f":"IF(AND('Enrollment Form'!$B357=\"\",'Enrollment Form'!$C357<>\"\"),\"N\",IF($B350=\"N\",\"\",\"Y\"))","v":""},{"$f":"IF(OR($B350=\"N\",'Enrollment Form'!G357=\"\"),\"\",IF('Enrollment Form'!$B357<>\"Subscriber\",\"\",IF('Enrollment Form'!$G357='Enrollment Form'!$H357,\"Y\",\"N\")))","v":""},{"$f":"IF($B350=\"N\",\"\",IF(AND(COUNTIFS('Enrollment Form'!$H$11:$H$1000,'Enrollment Form'!$H357,'Enrollment Form'!$B$11:$B$1000,'Enrollment Form'!$B357)>1,'Enrollment Form'!$H357<>\"\"),\"N\",\"Y\"))","v":""},{"$f":"IF($B350=\"N\",\"\",IF(LEN('Enrollment Form'!$Y357)=0,\"\",IF(LEN('Enrollment Form'!$Y357)<>5,\"N\",\"Y\")))","v":""},{"$f":"IF($B350=\"N\",\"\",IF(LEN('Enrollment Form'!$AD357=0),\"\",IF(LEN('Enrollment Form'!$AD357)<>5,\"N\",\"Y\")))","v":""},{"$f":"IF($B350=\"N\",\"\",IF(LEN('Enrollment Form'!$BS357=0),\"\",IF(LEN('Enrollment Form'!$BS357)<>5,\"N\",\"Y\")))","v":""},{"$f":"IF($B350=\"N\",\"\",IF(LEN('Enrollment Form'!$AE357)=0,\"\",IF(LEN('Enrollment Form'!$AE357)<>10,\"N\",\"Y\")))","v":""},{"$f":"IF($B350=\"N\",\"\",IF(LEN('Enrollment Form'!$AF357)=0,\"\",IF(LEN('Enrollment Form'!$AF357)<>10,\"N\",\"Y\")))","v":""},{"$f":"IF('Enrollment Form'!$O357<>\"Graded\",\"-\",IF(AND('Enrollment Form'!$O357=\"Graded\",'Enrollment Form'!$AR357<>\"\"),\"Y\",\"N\"))","v":"-"},{"$f":"IF($B350=\"N\",\"\",IF(OR('Enrollment Form'!$B357<>\"Subscriber\",'Enrollment Form'!$C357=\"ROC\"),\"-\",IF(AND('Enrollment Form'!$B357=\"Subscriber\",'Enrollment Form'!$C357=\"Enroll\",'Enrollment Form'!$AJ357<>\"\"),\"Y\",\"N\")))","v":""},{"$f":"IF($B350=\"N\",\"\",IF(OR('Enrollment Form'!$B357<>\"Subscriber\",'Enrollment Form'!$C357=\"ROC\"),\"-\",IF(AND('Enrollment Form'!$B357=\"Subscriber\",'Enrollment Form'!$C357=\"Enroll\",'Enrollment Form'!$AK357<>\"\"),\"Y\",\"N\")))","v":""},{"$f":"IF($B350=\"N\",\"\",IF(OR('Enrollment Form'!$B357<>\"Subscriber\",'Enrollment Form'!$C357=\"ROC\"),\"-\",IF(AND('Enrollment Form'!$B357=\"Subscriber\",'Enrollment Form'!$C357=\"Enroll\",'Enrollment Form'!$AL357<>\"\"),\"Y\",\"N\")))","v":""},{"$f":"IF($B350=\"N\",\"\",IF(OR('Enrollment Form'!$B357<>\"Subscriber\",'Enrollment Form'!$C357=\"ROC\"),\"-\",IF(AND('Enrollment Form'!$B357=\"Subscriber\",'Enrollment Form'!$C357=\"Enroll\",'Enrollment Form'!$AP357<>\"\"),\"Y\",\"N\")))","v":""},{"$f":"IF($B350=\"N\",\"\",IF(OR('Enrollment Form'!$B357<>\"Subscriber\",'Enrollment Form'!$C357=\"ROC\"),\"-\",IF(AND('Enrollment Form'!$B357=\"Subscriber\",'Enrollment Form'!$C357=\"Enroll\",'Enrollment Form'!$AQ357<>\"\"),\"Y\",\"N\")))","v":""},{"$f":"IF($B350=\"N\",\"\",IF(OR('Enrollment Form'!$B357<>\"Subscriber\",'Enrollment Form'!$C357=\"ROC\"),\"-\",IF(AND('Enrollment Form'!$B357=\"Subscriber\",'Enrollment Form'!$C357=\"Enroll\",'Enrollment Form'!$AS357<>\"\"),\"Y\",\"N\")))","v":""},{"$f":"IF($B350=\"N\",\"\",IF($Q350=\"-\",\"-\",IF(AND($Q350=\"Y\",'Enrollment Form'!$AS357=\"No\"),\"-\",IF(AND($Q350=\"Y\",'Enrollment Form'!$AS357=\"Yes\",'Enrollment Form'!$AT357<>\"\"),\"Y\",\"N\"))))","v":""},{"$f":"IF($B350=\"N\",\"\",IF(OR('Enrollment Form'!$B357<>\"Subscriber\",'Enrollment Form'!$C357=\"ROC\"),\"-\",IF(AND('Enrollment Form'!$B357=\"Subscriber\",'Enrollment Form'!$C357=\"Enroll\",'Enrollment Form'!$CV357<>\"\"),\"Y\",\"N\")))","v":""},{"$f":"IF($B350=\"N\",\"\",IF($S350=\"-\",\"-\",IF(AND($S350=\"Y\",'Enrollment Form'!$CV357=\"No\"),\"-\",IF(AND($S350=\"Y\",'Enrollment Form'!$CV357=\"Yes\",'Enrollment Form'!$CW357<>\"\"),\"Y\",\"N\"))))","v":""},{"$f":"IF(OR('Enrollment Form'!$AY357=\"Yes\",'Enrollment Form'!$AY357=\"\"),\"-\",IF(OR(AND('Enrollment Form'!$AY357=\"No\",ISERROR(FIND(\"HMO\",VLOOKUP('Enrollment Form'!G357,'Enrollment Form'!H$11:J$1000,3,FALSE),1))=FALSE,COUNTA('Enrollment Form'!$AZ357:$BC357)=4),AND('Enrollment Form'!$AY357=\"No\",ISERROR(FIND(\"HMO\",VLOOKUP('Enrollment Form'!G357,'Enrollment Form'!H$11:J$1000,3,FALSE),1))=FALSE,COUNTA('Enrollment Form'!$BT357:$BW357)=4)),\"Y\",\"N\"))","v":"-"},{"$f":"IF($B350=\"N\",\"\",IF('Enrollment Form'!$B357=\"Subscriber\",\"-\",IF(COUNTA('Enrollment Form'!$BL357,'Enrollment Form'!$BN357)=2,\"Y\",\"N\")))","v":""},{"$f":"IF($B350=\"N\",\"\",IF(OR('Enrollment Form'!$AX357=\"\",'Enrollment Form'!$AX357=\"No\"),\"-\",IF(AND('Enrollment Form'!$AX357=\"Yes\",COUNTA('Enrollment Form'!$CR357)=1),\"Y\",\"N\")))","v":""},{"$f":"IF(OR('Enrollment Form'!$CR357=\"\",'Enrollment Form'!$CR357=\"No\"),\"-\",IF(COUNTA('Enrollment Form'!$CT357:$CU357)=2,\"Y\",\"N\"))","v":"-"},{"$f":"IF($B350=\"N\",\"\",IF(COUNTIF('Enrollment Form'!$DG357:$DP357,\"Other\")=COUNTA('Enrollment Form'!$DK357,'Enrollment Form'!$DH357,'Enrollment Form'!$DN357,'Enrollment Form'!$DQ357),\"Y\",\"N\"))","v":""},{"$f":"IF($B350=\"N\",\"\",IF(OR('Enrollment Form'!B357<>\"Subscriber\",'Enrollment Form'!C357=\"ROC\",COUNTIF('Enrollment Form'!AV357:AW357,\"Yes\")>=1),\"-\",IF(AND('Enrollment Form'!C357=\"Enroll\",COUNTIF('Enrollment Form'!AV357:AW357,\"No\")=2,'Enrollment Form'!AX357=\"\"),\"N\",\"Y\")))","v":""},{"$f":"IF(OR(B350=\"N\",'Enrollment Form'!B357<>\"Subscriber\",'Enrollment Form'!C357=\"ROC\",'Enrollment Form'!O357<>\"Multiple of Salary\"),\"-\",IF(COUNTA('Enrollment Form'!T357:U357)<2,\"N\",\"Y\"))","v":"-"},{"$f":"IF(B350=\"N\",\"\",IF(OR('Enrollment Form'!C357=\"ROC\",'Enrollment Form'!B357<>\"Subscriber\",'Enrollment Form'!O357=\"Waive\",'Enrollment Form'!O357=\"\"),\"-\",IF('Enrollment Form'!P357=\"\",\"N\",\"Y\")))","v":""},{"$f":"IF($B350=\"N\",\"\",IF(AND('Enrollment Form'!$C357=\"ROC\",'Enrollment Form'!$DR357<>\"\"),\"Y\",IF(AND('Enrollment Form'!$C357=\"ROC\",'Enrollment Form'!$DR357=\"\"),\"N\",IF(AND('Enrollment Form'!$C357=\"Enroll\",'Enrollment Form'!$B357=\"Subscriber\",'Enrollment Form'!$CX357=\"No\",'Enrollment Form'!$DR357=\"\"),\"N\",IF(AND('Enrollment Form'!$C357=\"Enroll\",'Enrollment Form'!$B357=\"Subscriber\",'Enrollment Form'!$CX357=\"Yes\"),\"-\",\"Y\")))))","v":""},{"$f":"IF($B350=\"N\",\"\",IF(AND('Enrollment Form'!$C357=\"ROC\",'Enrollment Form'!$DS357<>\"\"),\"Y\",IF(AND('Enrollment Form'!$C357=\"ROC\",'Enrollment Form'!$DS357=\"\"),\"N\",IF(AND('Enrollment Form'!$C357=\"Enroll\",'Enrollment Form'!$B357=\"Subscriber\",'Enrollment Form'!$CX357=\"No\",'Enrollment Form'!$DS357=\"\"),\"N\",IF(AND('Enrollment Form'!$C357=\"Enroll\",'Enrollment Form'!$B357=\"Subscriber\",'Enrollment Form'!$CX357=\"Yes\"),\"-\",\"Y\")))))","v":""},{"$f":"IF('Enrollment Form'!AH357=\"\",\"\",IF(ISERROR(SEARCH(\".\",'Enrollment Form'!AH357,SEARCH(\"@\",'Enrollment Form'!AH357))),\"N\",\"Y\"))","v":""},{"$f":"IF(OR($B350=\"N\",'Enrollment Form'!$G357=\"\"),\"\",IF('Enrollment Form'!$B357<>\"Subscriber\",\"-\",IF(COUNTIF('Enrollment Form'!$AV357:$AW357,\"Yes\")=2,\"N\",\"Y\")))","v":""},{"$f":"IF(OR('Enrollment Form'!$CJ357=\"\",'Enrollment Form'!$CJ357=\"No\"),\"-\",IF(AND('Enrollment Form'!$CJ357=\"Yes\",'Enrollment Form'!$CK357=\"\"),\"N\",\"Y\"))","v":"-"},{"$f":"IF(OR('Enrollment Form'!$CL357=\"\",'Enrollment Form'!$CL357=\"No\"),\"-\",IF(AND('Enrollment Form'!$CL357=\"Yes\",'Enrollment Form'!$CM357=\"\"),\"N\",\"Y\"))","v":"-"},{"$f":"IF(OR('Enrollment Form'!$CN357=\"\",'Enrollment Form'!$CN357=\"No\"),\"-\",IF(AND('Enrollment Form'!$CN357=\"Yes\",'Enrollment Form'!$CO357=\"\"),\"N\",\"Y\"))","v":"-"},{"$f":"IF(OR('Enrollment Form'!$CN357=\"\",'Enrollment Form'!$CN357=\"No\"),\"-\",IF(AND('Enrollment Form'!$CN357=\"Yes\",'Enrollment Form'!$CP357=\"\"),\"N\",\"Y\"))","v":"-"},{"$f":"IF('Enrollment Form'!B357<>\"Subscriber\",\"-\",IF(AND('Enrollment Form'!B357=\"Subscriber\",'Enrollment Form'!C357=\"Enroll\",'Enrollment Form'!AA357=\"\"),\"N\",\"Y\"))","v":"-"},{"$f":"IF(OR('Enrollment Form'!B357=\"Subscriber\",'Enrollment Form'!B357=\"\"),\"-\",IF('Enrollment Form'!BP357=\"\",\"N\",\"Y\"))","v":"-"},{"$f":"IF('Enrollment Form'!B357<>\"Subscriber\",\"-\",IF(AND('Enrollment Form'!B357=\"Subscriber\",'Enrollment Form'!G357=\"\"),\"N\",\"Y\"))","v":"-"},{"$f":"IF('Enrollment Form'!A357=\"\",\"\",IF('Enrollment Form'!B357=\"Subscriber\",\"-\",IF(AND('Enrollment Form'!B357<>\"Subscriber\",'Enrollment Form'!G357='Enrollment Form'!H357),\"N\",\"Y\")))","v":""},0]
[358,{"$f":"IF('Enrollment Form'!$A358<>\"\",\"Y\",\"N\")","v":"N"},{"$f":"IF(AND('Enrollment Form'!$B358=\"\",'Enrollment Form'!$C358<>\"\"),\"N\",IF($B351=\"N\",\"\",\"Y\"))","v":""},{"$f":"IF(OR($B351=\"N\",'Enrollment Form'!G358=\"\"),\"\",IF('Enrollment Form'!$B358<>\"Subscriber\",\"\",IF('Enrollment Form'!$G358='Enrollment Form'!$H358,\"Y\",\"N\")))","v":""},{"$f":"IF($B351=\"N\",\"\",IF(AND(COUNTIFS('Enrollment Form'!$H$11:$H$1000,'Enrollment Form'!$H358,'Enrollment Form'!$B$11:$B$1000,'Enrollment Form'!$B358)>1,'Enrollment Form'!$H358<>\"\"),\"N\",\"Y\"))","v":""},{"$f":"IF($B351=\"N\",\"\",IF(LEN('Enrollment Form'!$Y358)=0,\"\",IF(LEN('Enrollment Form'!$Y358)<>5,\"N\",\"Y\")))","v":""},{"$f":"IF($B351=\"N\",\"\",IF(LEN('Enrollment Form'!$AD358=0),\"\",IF(LEN('Enrollment Form'!$AD358)<>5,\"N\",\"Y\")))","v":""},{"$f":"IF($B351=\"N\",\"\",IF(LEN('Enrollment Form'!$BS358=0),\"\",IF(LEN('Enrollment Form'!$BS358)<>5,\"N\",\"Y\")))","v":""},{"$f":"IF($B351=\"N\",\"\",IF(LEN('Enrollment Form'!$AE358)=0,\"\",IF(LEN('Enrollment Form'!$AE358)<>10,\"N\",\"Y\")))","v":""},{"$f":"IF($B351=\"N\",\"\",IF(LEN('Enrollment Form'!$AF358)=0,\"\",IF(LEN('Enrollment Form'!$AF358)<>10,\"N\",\"Y\")))","v":""},{"$f":"IF('Enrollment Form'!$O358<>\"Graded\",\"-\",IF(AND('Enrollment Form'!$O358=\"Graded\",'Enrollment Form'!$AR358<>\"\"),\"Y\",\"N\"))","v":"-"},{"$f":"IF($B351=\"N\",\"\",IF(OR('Enrollment Form'!$B358<>\"Subscriber\",'Enrollment Form'!$C358=\"ROC\"),\"-\",IF(AND('Enrollment Form'!$B358=\"Subscriber\",'Enrollment Form'!$C358=\"Enroll\",'Enrollment Form'!$AJ358<>\"\"),\"Y\",\"N\")))","v":""},{"$f":"IF($B351=\"N\",\"\",IF(OR('Enrollment Form'!$B358<>\"Subscriber\",'Enrollment Form'!$C358=\"ROC\"),\"-\",IF(AND('Enrollment Form'!$B358=\"Subscriber\",'Enrollment Form'!$C358=\"Enroll\",'Enrollment Form'!$AK358<>\"\"),\"Y\",\"N\")))","v":""},{"$f":"IF($B351=\"N\",\"\",IF(OR('Enrollment Form'!$B358<>\"Subscriber\",'Enrollment Form'!$C358=\"ROC\"),\"-\",IF(AND('Enrollment Form'!$B358=\"Subscriber\",'Enrollment Form'!$C358=\"Enroll\",'Enrollment Form'!$AL358<>\"\"),\"Y\",\"N\")))","v":""},{"$f":"IF($B351=\"N\",\"\",IF(OR('Enrollment Form'!$B358<>\"Subscriber\",'Enrollment Form'!$C358=\"ROC\"),\"-\",IF(AND('Enrollment Form'!$B358=\"Subscriber\",'Enrollment Form'!$C358=\"Enroll\",'Enrollment Form'!$AP358<>\"\"),\"Y\",\"N\")))","v":""},{"$f":"IF($B351=\"N\",\"\",IF(OR('Enrollment Form'!$B358<>\"Subscriber\",'Enrollment Form'!$C358=\"ROC\"),\"-\",IF(AND('Enrollment Form'!$B358=\"Subscriber\",'Enrollment Form'!$C358=\"Enroll\",'Enrollment Form'!$AQ358<>\"\"),\"Y\",\"N\")))","v":""},{"$f":"IF($B351=\"N\",\"\",IF(OR('Enrollment Form'!$B358<>\"Subscriber\",'Enrollment Form'!$C358=\"ROC\"),\"-\",IF(AND('Enrollment Form'!$B358=\"Subscriber\",'Enrollment Form'!$C358=\"Enroll\",'Enrollment Form'!$AS358<>\"\"),\"Y\",\"N\")))","v":""},{"$f":"IF($B351=\"N\",\"\",IF($Q351=\"-\",\"-\",IF(AND($Q351=\"Y\",'Enrollment Form'!$AS358=\"No\"),\"-\",IF(AND($Q351=\"Y\",'Enrollment Form'!$AS358=\"Yes\",'Enrollment Form'!$AT358<>\"\"),\"Y\",\"N\"))))","v":""},{"$f":"IF($B351=\"N\",\"\",IF(OR('Enrollment Form'!$B358<>\"Subscriber\",'Enrollment Form'!$C358=\"ROC\"),\"-\",IF(AND('Enrollment Form'!$B358=\"Subscriber\",'Enrollment Form'!$C358=\"Enroll\",'Enrollment Form'!$CV358<>\"\"),\"Y\",\"N\")))","v":""},{"$f":"IF($B351=\"N\",\"\",IF($S351=\"-\",\"-\",IF(AND($S351=\"Y\",'Enrollment Form'!$CV358=\"No\"),\"-\",IF(AND($S351=\"Y\",'Enrollment Form'!$CV358=\"Yes\",'Enrollment Form'!$CW358<>\"\"),\"Y\",\"N\"))))","v":""},{"$f":"IF(OR('Enrollment Form'!$AY358=\"Yes\",'Enrollment Form'!$AY358=\"\"),\"-\",IF(OR(AND('Enrollment Form'!$AY358=\"No\",ISERROR(FIND(\"HMO\",VLOOKUP('Enrollment Form'!G358,'Enrollment Form'!H$11:J$1000,3,FALSE),1))=FALSE,COUNTA('Enrollment Form'!$AZ358:$BC358)=4),AND('Enrollment Form'!$AY358=\"No\",ISERROR(FIND(\"HMO\",VLOOKUP('Enrollment Form'!G358,'Enrollment Form'!H$11:J$1000,3,FALSE),1))=FALSE,COUNTA('Enrollment Form'!$BT358:$BW358)=4)),\"Y\",\"N\"))","v":"-"},{"$f":"IF($B351=\"N\",\"\",IF('Enrollment Form'!$B358=\"Subscriber\",\"-\",IF(COUNTA('Enrollment Form'!$BL358,'Enrollment Form'!$BN358)=2,\"Y\",\"N\")))","v":""},{"$f":"IF($B351=\"N\",\"\",IF(OR('Enrollment Form'!$AX358=\"\",'Enrollment Form'!$AX358=\"No\"),\"-\",IF(AND('Enrollment Form'!$AX358=\"Yes\",COUNTA('Enrollment Form'!$CR358)=1),\"Y\",\"N\")))","v":""},{"$f":"IF(OR('Enrollment Form'!$CR358=\"\",'Enrollment Form'!$CR358=\"No\"),\"-\",IF(COUNTA('Enrollment Form'!$CT358:$CU358)=2,\"Y\",\"N\"))","v":"-"},{"$f":"IF($B351=\"N\",\"\",IF(COUNTIF('Enrollment Form'!$DG358:$DP358,\"Other\")=COUNTA('Enrollment Form'!$DK358,'Enrollment Form'!$DH358,'Enrollment Form'!$DN358,'Enrollment Form'!$DQ358),\"Y\",\"N\"))","v":""},{"$f":"IF($B351=\"N\",\"\",IF(OR('Enrollment Form'!B358<>\"Subscriber\",'Enrollment Form'!C358=\"ROC\",COUNTIF('Enrollment Form'!AV358:AW358,\"Yes\")>=1),\"-\",IF(AND('Enrollment Form'!C358=\"Enroll\",COUNTIF('Enrollment Form'!AV358:AW358,\"No\")=2,'Enrollment Form'!AX358=\"\"),\"N\",\"Y\")))","v":""},{"$f":"IF(OR(B351=\"N\",'Enrollment Form'!B358<>\"Subscriber\",'Enrollment Form'!C358=\"ROC\",'Enrollment Form'!O358<>\"Multiple of Salary\"),\"-\",IF(COUNTA('Enrollment Form'!T358:U358)<2,\"N\",\"Y\"))","v":"-"},{"$f":"IF(B351=\"N\",\"\",IF(OR('Enrollment Form'!C358=\"ROC\",'Enrollment Form'!B358<>\"Subscriber\",'Enrollment Form'!O358=\"Waive\",'Enrollment Form'!O358=\"\"),\"-\",IF('Enrollment Form'!P358=\"\",\"N\",\"Y\")))","v":""},{"$f":"IF($B351=\"N\",\"\",IF(AND('Enrollment Form'!$C358=\"ROC\",'Enrollment Form'!$DR358<>\"\"),\"Y\",IF(AND('Enrollment Form'!$C358=\"ROC\",'Enrollment Form'!$DR358=\"\"),\"N\",IF(AND('Enrollment Form'!$C358=\"Enroll\",'Enrollment Form'!$B358=\"Subscriber\",'Enrollment Form'!$CX358=\"No\",'Enrollment Form'!$DR358=\"\"),\"N\",IF(AND('Enrollment Form'!$C358=\"Enroll\",'Enrollment Form'!$B358=\"Subscriber\",'Enrollment Form'!$CX358=\"Yes\"),\"-\",\"Y\")))))","v":""},{"$f":"IF($B351=\"N\",\"\",IF(AND('Enrollment Form'!$C358=\"ROC\",'Enrollment Form'!$DS358<>\"\"),\"Y\",IF(AND('Enrollment Form'!$C358=\"ROC\",'Enrollment Form'!$DS358=\"\"),\"N\",IF(AND('Enrollment Form'!$C358=\"Enroll\",'Enrollment Form'!$B358=\"Subscriber\",'Enrollment Form'!$CX358=\"No\",'Enrollment Form'!$DS358=\"\"),\"N\",IF(AND('Enrollment Form'!$C358=\"Enroll\",'Enrollment Form'!$B358=\"Subscriber\",'Enrollment Form'!$CX358=\"Yes\"),\"-\",\"Y\")))))","v":""},{"$f":"IF('Enrollment Form'!AH358=\"\",\"\",IF(ISERROR(SEARCH(\".\",'Enrollment Form'!AH358,SEARCH(\"@\",'Enrollment Form'!AH358))),\"N\",\"Y\"))","v":""},{"$f":"IF(OR($B351=\"N\",'Enrollment Form'!$G358=\"\"),\"\",IF('Enrollment Form'!$B358<>\"Subscriber\",\"-\",IF(COUNTIF('Enrollment Form'!$AV358:$AW358,\"Yes\")=2,\"N\",\"Y\")))","v":""},{"$f":"IF(OR('Enrollment Form'!$CJ358=\"\",'Enrollment Form'!$CJ358=\"No\"),\"-\",IF(AND('Enrollment Form'!$CJ358=\"Yes\",'Enrollment Form'!$CK358=\"\"),\"N\",\"Y\"))","v":"-"},{"$f":"IF(OR('Enrollment Form'!$CL358=\"\",'Enrollment Form'!$CL358=\"No\"),\"-\",IF(AND('Enrollment Form'!$CL358=\"Yes\",'Enrollment Form'!$CM358=\"\"),\"N\",\"Y\"))","v":"-"},{"$f":"IF(OR('Enrollment Form'!$CN358=\"\",'Enrollment Form'!$CN358=\"No\"),\"-\",IF(AND('Enrollment Form'!$CN358=\"Yes\",'Enrollment Form'!$CO358=\"\"),\"N\",\"Y\"))","v":"-"},{"$f":"IF(OR('Enrollment Form'!$CN358=\"\",'Enrollment Form'!$CN358=\"No\"),\"-\",IF(AND('Enrollment Form'!$CN358=\"Yes\",'Enrollment Form'!$CP358=\"\"),\"N\",\"Y\"))","v":"-"},{"$f":"IF('Enrollment Form'!B358<>\"Subscriber\",\"-\",IF(AND('Enrollment Form'!B358=\"Subscriber\",'Enrollment Form'!C358=\"Enroll\",'Enrollment Form'!AA358=\"\"),\"N\",\"Y\"))","v":"-"},{"$f":"IF(OR('Enrollment Form'!B358=\"Subscriber\",'Enrollment Form'!B358=\"\"),\"-\",IF('Enrollment Form'!BP358=\"\",\"N\",\"Y\"))","v":"-"},{"$f":"IF('Enrollment Form'!B358<>\"Subscriber\",\"-\",IF(AND('Enrollment Form'!B358=\"Subscriber\",'Enrollment Form'!G358=\"\"),\"N\",\"Y\"))","v":"-"},{"$f":"IF('Enrollment Form'!A358=\"\",\"\",IF('Enrollment Form'!B358=\"Subscriber\",\"-\",IF(AND('Enrollment Form'!B358<>\"Subscriber\",'Enrollment Form'!G358='Enrollment Form'!H358),\"N\",\"Y\")))","v":""},0]
[359,{"$f":"IF('Enrollment Form'!$A359<>\"\",\"Y\",\"N\")","v":"N"},{"$f":"IF(AND('Enrollment Form'!$B359=\"\",'Enrollment Form'!$C359<>\"\"),\"N\",IF($B352=\"N\",\"\",\"Y\"))","v":""},{"$f":"IF(OR($B352=\"N\",'Enrollment Form'!G359=\"\"),\"\",IF('Enrollment Form'!$B359<>\"Subscriber\",\"\",IF('Enrollment Form'!$G359='Enrollment Form'!$H359,\"Y\",\"N\")))","v":""},{"$f":"IF($B352=\"N\",\"\",IF(AND(COUNTIFS('Enrollment Form'!$H$11:$H$1000,'Enrollment Form'!$H359,'Enrollment Form'!$B$11:$B$1000,'Enrollment Form'!$B359)>1,'Enrollment Form'!$H359<>\"\"),\"N\",\"Y\"))","v":""},{"$f":"IF($B352=\"N\",\"\",IF(LEN('Enrollment Form'!$Y359)=0,\"\",IF(LEN('Enrollment Form'!$Y359)<>5,\"N\",\"Y\")))","v":""},{"$f":"IF($B352=\"N\",\"\",IF(LEN('Enrollment Form'!$AD359=0),\"\",IF(LEN('Enrollment Form'!$AD359)<>5,\"N\",\"Y\")))","v":""},{"$f":"IF($B352=\"N\",\"\",IF(LEN('Enrollment Form'!$BS359=0),\"\",IF(LEN('Enrollment Form'!$BS359)<>5,\"N\",\"Y\")))","v":""},{"$f":"IF($B352=\"N\",\"\",IF(LEN('Enrollment Form'!$AE359)=0,\"\",IF(LEN('Enrollment Form'!$AE359)<>10,\"N\",\"Y\")))","v":""},{"$f":"IF($B352=\"N\",\"\",IF(LEN('Enrollment Form'!$AF359)=0,\"\",IF(LEN('Enrollment Form'!$AF359)<>10,\"N\",\"Y\")))","v":""},{"$f":"IF('Enrollment Form'!$O359<>\"Graded\",\"-\",IF(AND('Enrollment Form'!$O359=\"Graded\",'Enrollment Form'!$AR359<>\"\"),\"Y\",\"N\"))","v":"-"},{"$f":"IF($B352=\"N\",\"\",IF(OR('Enrollment Form'!$B359<>\"Subscriber\",'Enrollment Form'!$C359=\"ROC\"),\"-\",IF(AND('Enrollment Form'!$B359=\"Subscriber\",'Enrollment Form'!$C359=\"Enroll\",'Enrollment Form'!$AJ359<>\"\"),\"Y\",\"N\")))","v":""},{"$f":"IF($B352=\"N\",\"\",IF(OR('Enrollment Form'!$B359<>\"Subscriber\",'Enrollment Form'!$C359=\"ROC\"),\"-\",IF(AND('Enrollment Form'!$B359=\"Subscriber\",'Enrollment Form'!$C359=\"Enroll\",'Enrollment Form'!$AK359<>\"\"),\"Y\",\"N\")))","v":""},{"$f":"IF($B352=\"N\",\"\",IF(OR('Enrollment Form'!$B359<>\"Subscriber\",'Enrollment Form'!$C359=\"ROC\"),\"-\",IF(AND('Enrollment Form'!$B359=\"Subscriber\",'Enrollment Form'!$C359=\"Enroll\",'Enrollment Form'!$AL359<>\"\"),\"Y\",\"N\")))","v":""},{"$f":"IF($B352=\"N\",\"\",IF(OR('Enrollment Form'!$B359<>\"Subscriber\",'Enrollment Form'!$C359=\"ROC\"),\"-\",IF(AND('Enrollment Form'!$B359=\"Subscriber\",'Enrollment Form'!$C359=\"Enroll\",'Enrollment Form'!$AP359<>\"\"),\"Y\",\"N\")))","v":""},{"$f":"IF($B352=\"N\",\"\",IF(OR('Enrollment Form'!$B359<>\"Subscriber\",'Enrollment Form'!$C359=\"ROC\"),\"-\",IF(AND('Enrollment Form'!$B359=\"Subscriber\",'Enrollment Form'!$C359=\"Enroll\",'Enrollment Form'!$AQ359<>\"\"),\"Y\",\"N\")))","v":""},{"$f":"IF($B352=\"N\",\"\",IF(OR('Enrollment Form'!$B359<>\"Subscriber\",'Enrollment Form'!$C359=\"ROC\"),\"-\",IF(AND('Enrollment Form'!$B359=\"Subscriber\",'Enrollment Form'!$C359=\"Enroll\",'Enrollment Form'!$AS359<>\"\"),\"Y\",\"N\")))","v":""},{"$f":"IF($B352=\"N\",\"\",IF($Q352=\"-\",\"-\",IF(AND($Q352=\"Y\",'Enrollment Form'!$AS359=\"No\"),\"-\",IF(AND($Q352=\"Y\",'Enrollment Form'!$AS359=\"Yes\",'Enrollment Form'!$AT359<>\"\"),\"Y\",\"N\"))))","v":""},{"$f":"IF($B352=\"N\",\"\",IF(OR('Enrollment Form'!$B359<>\"Subscriber\",'Enrollment Form'!$C359=\"ROC\"),\"-\",IF(AND('Enrollment Form'!$B359=\"Subscriber\",'Enrollment Form'!$C359=\"Enroll\",'Enrollment Form'!$CV359<>\"\"),\"Y\",\"N\")))","v":""},{"$f":"IF($B352=\"N\",\"\",IF($S352=\"-\",\"-\",IF(AND($S352=\"Y\",'Enrollment Form'!$CV359=\"No\"),\"-\",IF(AND($S352=\"Y\",'Enrollment Form'!$CV359=\"Yes\",'Enrollment Form'!$CW359<>\"\"),\"Y\",\"N\"))))","v":""},{"$f":"IF(OR('Enrollment Form'!$AY359=\"Yes\",'Enrollment Form'!$AY359=\"\"),\"-\",IF(OR(AND('Enrollment Form'!$AY359=\"No\",ISERROR(FIND(\"HMO\",VLOOKUP('Enrollment Form'!G359,'Enrollment Form'!H$11:J$1000,3,FALSE),1))=FALSE,COUNTA('Enrollment Form'!$AZ359:$BC359)=4),AND('Enrollment Form'!$AY359=\"No\",ISERROR(FIND(\"HMO\",VLOOKUP('Enrollment Form'!G359,'Enrollment Form'!H$11:J$1000,3,FALSE),1))=FALSE,COUNTA('Enrollment Form'!$BT359:$BW359)=4)),\"Y\",\"N\"))","v":"-"},{"$f":"IF($B352=\"N\",\"\",IF('Enrollment Form'!$B359=\"Subscriber\",\"-\",IF(COUNTA('Enrollment Form'!$BL359,'Enrollment Form'!$BN359)=2,\"Y\",\"N\")))","v":""},{"$f":"IF($B352=\"N\",\"\",IF(OR('Enrollment Form'!$AX359=\"\",'Enrollment Form'!$AX359=\"No\"),\"-\",IF(AND('Enrollment Form'!$AX359=\"Yes\",COUNTA('Enrollment Form'!$CR359)=1),\"Y\",\"N\")))","v":""},{"$f":"IF(OR('Enrollment Form'!$CR359=\"\",'Enrollment Form'!$CR359=\"No\"),\"-\",IF(COUNTA('Enrollment Form'!$CT359:$CU359)=2,\"Y\",\"N\"))","v":"-"},{"$f":"IF($B352=\"N\",\"\",IF(COUNTIF('Enrollment Form'!$DG359:$DP359,\"Other\")=COUNTA('Enrollment Form'!$DK359,'Enrollment Form'!$DH359,'Enrollment Form'!$DN359,'Enrollment Form'!$DQ359),\"Y\",\"N\"))","v":""},{"$f":"IF($B352=\"N\",\"\",IF(OR('Enrollment Form'!B359<>\"Subscriber\",'Enrollment Form'!C359=\"ROC\",COUNTIF('Enrollment Form'!AV359:AW359,\"Yes\")>=1),\"-\",IF(AND('Enrollment Form'!C359=\"Enroll\",COUNTIF('Enrollment Form'!AV359:AW359,\"No\")=2,'Enrollment Form'!AX359=\"\"),\"N\",\"Y\")))","v":""},{"$f":"IF(OR(B352=\"N\",'Enrollment Form'!B359<>\"Subscriber\",'Enrollment Form'!C359=\"ROC\",'Enrollment Form'!O359<>\"Multiple of Salary\"),\"-\",IF(COUNTA('Enrollment Form'!T359:U359)<2,\"N\",\"Y\"))","v":"-"},{"$f":"IF(B352=\"N\",\"\",IF(OR('Enrollment Form'!C359=\"ROC\",'Enrollment Form'!B359<>\"Subscriber\",'Enrollment Form'!O359=\"Waive\",'Enrollment Form'!O359=\"\"),\"-\",IF('Enrollment Form'!P359=\"\",\"N\",\"Y\")))","v":""},{"$f":"IF($B352=\"N\",\"\",IF(AND('Enrollment Form'!$C359=\"ROC\",'Enrollment Form'!$DR359<>\"\"),\"Y\",IF(AND('Enrollment Form'!$C359=\"ROC\",'Enrollment Form'!$DR359=\"\"),\"N\",IF(AND('Enrollment Form'!$C359=\"Enroll\",'Enrollment Form'!$B359=\"Subscriber\",'Enrollment Form'!$CX359=\"No\",'Enrollment Form'!$DR359=\"\"),\"N\",IF(AND('Enrollment Form'!$C359=\"Enroll\",'Enrollment Form'!$B359=\"Subscriber\",'Enrollment Form'!$CX359=\"Yes\"),\"-\",\"Y\")))))","v":""},{"$f":"IF($B352=\"N\",\"\",IF(AND('Enrollment Form'!$C359=\"ROC\",'Enrollment Form'!$DS359<>\"\"),\"Y\",IF(AND('Enrollment Form'!$C359=\"ROC\",'Enrollment Form'!$DS359=\"\"),\"N\",IF(AND('Enrollment Form'!$C359=\"Enroll\",'Enrollment Form'!$B359=\"Subscriber\",'Enrollment Form'!$CX359=\"No\",'Enrollment Form'!$DS359=\"\"),\"N\",IF(AND('Enrollment Form'!$C359=\"Enroll\",'Enrollment Form'!$B359=\"Subscriber\",'Enrollment Form'!$CX359=\"Yes\"),\"-\",\"Y\")))))","v":""},{"$f":"IF('Enrollment Form'!AH359=\"\",\"\",IF(ISERROR(SEARCH(\".\",'Enrollment Form'!AH359,SEARCH(\"@\",'Enrollment Form'!AH359))),\"N\",\"Y\"))","v":""},{"$f":"IF(OR($B352=\"N\",'Enrollment Form'!$G359=\"\"),\"\",IF('Enrollment Form'!$B359<>\"Subscriber\",\"-\",IF(COUNTIF('Enrollment Form'!$AV359:$AW359,\"Yes\")=2,\"N\",\"Y\")))","v":""},{"$f":"IF(OR('Enrollment Form'!$CJ359=\"\",'Enrollment Form'!$CJ359=\"No\"),\"-\",IF(AND('Enrollment Form'!$CJ359=\"Yes\",'Enrollment Form'!$CK359=\"\"),\"N\",\"Y\"))","v":"-"},{"$f":"IF(OR('Enrollment Form'!$CL359=\"\",'Enrollment Form'!$CL359=\"No\"),\"-\",IF(AND('Enrollment Form'!$CL359=\"Yes\",'Enrollment Form'!$CM359=\"\"),\"N\",\"Y\"))","v":"-"},{"$f":"IF(OR('Enrollment Form'!$CN359=\"\",'Enrollment Form'!$CN359=\"No\"),\"-\",IF(AND('Enrollment Form'!$CN359=\"Yes\",'Enrollment Form'!$CO359=\"\"),\"N\",\"Y\"))","v":"-"},{"$f":"IF(OR('Enrollment Form'!$CN359=\"\",'Enrollment Form'!$CN359=\"No\"),\"-\",IF(AND('Enrollment Form'!$CN359=\"Yes\",'Enrollment Form'!$CP359=\"\"),\"N\",\"Y\"))","v":"-"},{"$f":"IF('Enrollment Form'!B359<>\"Subscriber\",\"-\",IF(AND('Enrollment Form'!B359=\"Subscriber\",'Enrollment Form'!C359=\"Enroll\",'Enrollment Form'!AA359=\"\"),\"N\",\"Y\"))","v":"-"},{"$f":"IF(OR('Enrollment Form'!B359=\"Subscriber\",'Enrollment Form'!B359=\"\"),\"-\",IF('Enrollment Form'!BP359=\"\",\"N\",\"Y\"))","v":"-"},{"$f":"IF('Enrollment Form'!B359<>\"Subscriber\",\"-\",IF(AND('Enrollment Form'!B359=\"Subscriber\",'Enrollment Form'!G359=\"\"),\"N\",\"Y\"))","v":"-"},{"$f":"IF('Enrollment Form'!A359=\"\",\"\",IF('Enrollment Form'!B359=\"Subscriber\",\"-\",IF(AND('Enrollment Form'!B359<>\"Subscriber\",'Enrollment Form'!G359='Enrollment Form'!H359),\"N\",\"Y\")))","v":""},0]
[360,{"$f":"IF('Enrollment Form'!$A360<>\"\",\"Y\",\"N\")","v":"N"},{"$f":"IF(AND('Enrollment Form'!$B360=\"\",'Enrollment Form'!$C360<>\"\"),\"N\",IF($B353=\"N\",\"\",\"Y\"))","v":""},{"$f":"IF(OR($B353=\"N\",'Enrollment Form'!G360=\"\"),\"\",IF('Enrollment Form'!$B360<>\"Subscriber\",\"\",IF('Enrollment Form'!$G360='Enrollment Form'!$H360,\"Y\",\"N\")))","v":""},{"$f":"IF($B353=\"N\",\"\",IF(AND(COUNTIFS('Enrollment Form'!$H$11:$H$1000,'Enrollment Form'!$H360,'Enrollment Form'!$B$11:$B$1000,'Enrollment Form'!$B360)>1,'Enrollment Form'!$H360<>\"\"),\"N\",\"Y\"))","v":""},{"$f":"IF($B353=\"N\",\"\",IF(LEN('Enrollment Form'!$Y360)=0,\"\",IF(LEN('Enrollment Form'!$Y360)<>5,\"N\",\"Y\")))","v":""},{"$f":"IF($B353=\"N\",\"\",IF(LEN('Enrollment Form'!$AD360=0),\"\",IF(LEN('Enrollment Form'!$AD360)<>5,\"N\",\"Y\")))","v":""},{"$f":"IF($B353=\"N\",\"\",IF(LEN('Enrollment Form'!$BS360=0),\"\",IF(LEN('Enrollment Form'!$BS360)<>5,\"N\",\"Y\")))","v":""},{"$f":"IF($B353=\"N\",\"\",IF(LEN('Enrollment Form'!$AE360)=0,\"\",IF(LEN('Enrollment Form'!$AE360)<>10,\"N\",\"Y\")))","v":""},{"$f":"IF($B353=\"N\",\"\",IF(LEN('Enrollment Form'!$AF360)=0,\"\",IF(LEN('Enrollment Form'!$AF360)<>10,\"N\",\"Y\")))","v":""},{"$f":"IF('Enrollment Form'!$O360<>\"Graded\",\"-\",IF(AND('Enrollment Form'!$O360=\"Graded\",'Enrollment Form'!$AR360<>\"\"),\"Y\",\"N\"))","v":"-"},{"$f":"IF($B353=\"N\",\"\",IF(OR('Enrollment Form'!$B360<>\"Subscriber\",'Enrollment Form'!$C360=\"ROC\"),\"-\",IF(AND('Enrollment Form'!$B360=\"Subscriber\",'Enrollment Form'!$C360=\"Enroll\",'Enrollment Form'!$AJ360<>\"\"),\"Y\",\"N\")))","v":""},{"$f":"IF($B353=\"N\",\"\",IF(OR('Enrollment Form'!$B360<>\"Subscriber\",'Enrollment Form'!$C360=\"ROC\"),\"-\",IF(AND('Enrollment Form'!$B360=\"Subscriber\",'Enrollment Form'!$C360=\"Enroll\",'Enrollment Form'!$AK360<>\"\"),\"Y\",\"N\")))","v":""},{"$f":"IF($B353=\"N\",\"\",IF(OR('Enrollment Form'!$B360<>\"Subscriber\",'Enrollment Form'!$C360=\"ROC\"),\"-\",IF(AND('Enrollment Form'!$B360=\"Subscriber\",'Enrollment Form'!$C360=\"Enroll\",'Enrollment Form'!$AL360<>\"\"),\"Y\",\"N\")))","v":""},{"$f":"IF($B353=\"N\",\"\",IF(OR('Enrollment Form'!$B360<>\"Subscriber\",'Enrollment Form'!$C360=\"ROC\"),\"-\",IF(AND('Enrollment Form'!$B360=\"Subscriber\",'Enrollment Form'!$C360=\"Enroll\",'Enrollment Form'!$AP360<>\"\"),\"Y\",\"N\")))","v":""},{"$f":"IF($B353=\"N\",\"\",IF(OR('Enrollment Form'!$B360<>\"Subscriber\",'Enrollment Form'!$C360=\"ROC\"),\"-\",IF(AND('Enrollment Form'!$B360=\"Subscriber\",'Enrollment Form'!$C360=\"Enroll\",'Enrollment Form'!$AQ360<>\"\"),\"Y\",\"N\")))","v":""},{"$f":"IF($B353=\"N\",\"\",IF(OR('Enrollment Form'!$B360<>\"Subscriber\",'Enrollment Form'!$C360=\"ROC\"),\"-\",IF(AND('Enrollment Form'!$B360=\"Subscriber\",'Enrollment Form'!$C360=\"Enroll\",'Enrollment Form'!$AS360<>\"\"),\"Y\",\"N\")))","v":""},{"$f":"IF($B353=\"N\",\"\",IF($Q353=\"-\",\"-\",IF(AND($Q353=\"Y\",'Enrollment Form'!$AS360=\"No\"),\"-\",IF(AND($Q353=\"Y\",'Enrollment Form'!$AS360=\"Yes\",'Enrollment Form'!$AT360<>\"\"),\"Y\",\"N\"))))","v":""},{"$f":"IF($B353=\"N\",\"\",IF(OR('Enrollment Form'!$B360<>\"Subscriber\",'Enrollment Form'!$C360=\"ROC\"),\"-\",IF(AND('Enrollment Form'!$B360=\"Subscriber\",'Enrollment Form'!$C360=\"Enroll\",'Enrollment Form'!$CV360<>\"\"),\"Y\",\"N\")))","v":""},{"$f":"IF($B353=\"N\",\"\",IF($S353=\"-\",\"-\",IF(AND($S353=\"Y\",'Enrollment Form'!$CV360=\"No\"),\"-\",IF(AND($S353=\"Y\",'Enrollment Form'!$CV360=\"Yes\",'Enrollment Form'!$CW360<>\"\"),\"Y\",\"N\"))))","v":""},{"$f":"IF(OR('Enrollment Form'!$AY360=\"Yes\",'Enrollment Form'!$AY360=\"\"),\"-\",IF(OR(AND('Enrollment Form'!$AY360=\"No\",ISERROR(FIND(\"HMO\",VLOOKUP('Enrollment Form'!G360,'Enrollment Form'!H$11:J$1000,3,FALSE),1))=FALSE,COUNTA('Enrollment Form'!$AZ360:$BC360)=4),AND('Enrollment Form'!$AY360=\"No\",ISERROR(FIND(\"HMO\",VLOOKUP('Enrollment Form'!G360,'Enrollment Form'!H$11:J$1000,3,FALSE),1))=FALSE,COUNTA('Enrollment Form'!$BT360:$BW360)=4)),\"Y\",\"N\"))","v":"-"},{"$f":"IF($B353=\"N\",\"\",IF('Enrollment Form'!$B360=\"Subscriber\",\"-\",IF(COUNTA('Enrollment Form'!$BL360,'Enrollment Form'!$BN360)=2,\"Y\",\"N\")))","v":""},{"$f":"IF($B353=\"N\",\"\",IF(OR('Enrollment Form'!$AX360=\"\",'Enrollment Form'!$AX360=\"No\"),\"-\",IF(AND('Enrollment Form'!$AX360=\"Yes\",COUNTA('Enrollment Form'!$CR360)=1),\"Y\",\"N\")))","v":""},{"$f":"IF(OR('Enrollment Form'!$CR360=\"\",'Enrollment Form'!$CR360=\"No\"),\"-\",IF(COUNTA('Enrollment Form'!$CT360:$CU360)=2,\"Y\",\"N\"))","v":"-"},{"$f":"IF($B353=\"N\",\"\",IF(COUNTIF('Enrollment Form'!$DG360:$DP360,\"Other\")=COUNTA('Enrollment Form'!$DK360,'Enrollment Form'!$DH360,'Enrollment Form'!$DN360,'Enrollment Form'!$DQ360),\"Y\",\"N\"))","v":""},{"$f":"IF($B353=\"N\",\"\",IF(OR('Enrollment Form'!B360<>\"Subscriber\",'Enrollment Form'!C360=\"ROC\",COUNTIF('Enrollment Form'!AV360:AW360,\"Yes\")>=1),\"-\",IF(AND('Enrollment Form'!C360=\"Enroll\",COUNTIF('Enrollment Form'!AV360:AW360,\"No\")=2,'Enrollment Form'!AX360=\"\"),\"N\",\"Y\")))","v":""},{"$f":"IF(OR(B353=\"N\",'Enrollment Form'!B360<>\"Subscriber\",'Enrollment Form'!C360=\"ROC\",'Enrollment Form'!O360<>\"Multiple of Salary\"),\"-\",IF(COUNTA('Enrollment Form'!T360:U360)<2,\"N\",\"Y\"))","v":"-"},{"$f":"IF(B353=\"N\",\"\",IF(OR('Enrollment Form'!C360=\"ROC\",'Enrollment Form'!B360<>\"Subscriber\",'Enrollment Form'!O360=\"Waive\",'Enrollment Form'!O360=\"\"),\"-\",IF('Enrollment Form'!P360=\"\",\"N\",\"Y\")))","v":""},{"$f":"IF($B353=\"N\",\"\",IF(AND('Enrollment Form'!$C360=\"ROC\",'Enrollment Form'!$DR360<>\"\"),\"Y\",IF(AND('Enrollment Form'!$C360=\"ROC\",'Enrollment Form'!$DR360=\"\"),\"N\",IF(AND('Enrollment Form'!$C360=\"Enroll\",'Enrollment Form'!$B360=\"Subscriber\",'Enrollment Form'!$CX360=\"No\",'Enrollment Form'!$DR360=\"\"),\"N\",IF(AND('Enrollment Form'!$C360=\"Enroll\",'Enrollment Form'!$B360=\"Subscriber\",'Enrollment Form'!$CX360=\"Yes\"),\"-\",\"Y\")))))","v":""},{"$f":"IF($B353=\"N\",\"\",IF(AND('Enrollment Form'!$C360=\"ROC\",'Enrollment Form'!$DS360<>\"\"),\"Y\",IF(AND('Enrollment Form'!$C360=\"ROC\",'Enrollment Form'!$DS360=\"\"),\"N\",IF(AND('Enrollment Form'!$C360=\"Enroll\",'Enrollment Form'!$B360=\"Subscriber\",'Enrollment Form'!$CX360=\"No\",'Enrollment Form'!$DS360=\"\"),\"N\",IF(AND('Enrollment Form'!$C360=\"Enroll\",'Enrollment Form'!$B360=\"Subscriber\",'Enrollment Form'!$CX360=\"Yes\"),\"-\",\"Y\")))))","v":""},{"$f":"IF('Enrollment Form'!AH360=\"\",\"\",IF(ISERROR(SEARCH(\".\",'Enrollment Form'!AH360,SEARCH(\"@\",'Enrollment Form'!AH360))),\"N\",\"Y\"))","v":""},{"$f":"IF(OR($B353=\"N\",'Enrollment Form'!$G360=\"\"),\"\",IF('Enrollment Form'!$B360<>\"Subscriber\",\"-\",IF(COUNTIF('Enrollment Form'!$AV360:$AW360,\"Yes\")=2,\"N\",\"Y\")))","v":""},{"$f":"IF(OR('Enrollment Form'!$CJ360=\"\",'Enrollment Form'!$CJ360=\"No\"),\"-\",IF(AND('Enrollment Form'!$CJ360=\"Yes\",'Enrollment Form'!$CK360=\"\"),\"N\",\"Y\"))","v":"-"},{"$f":"IF(OR('Enrollment Form'!$CL360=\"\",'Enrollment Form'!$CL360=\"No\"),\"-\",IF(AND('Enrollment Form'!$CL360=\"Yes\",'Enrollment Form'!$CM360=\"\"),\"N\",\"Y\"))","v":"-"},{"$f":"IF(OR('Enrollment Form'!$CN360=\"\",'Enrollment Form'!$CN360=\"No\"),\"-\",IF(AND('Enrollment Form'!$CN360=\"Yes\",'Enrollment Form'!$CO360=\"\"),\"N\",\"Y\"))","v":"-"},{"$f":"IF(OR('Enrollment Form'!$CN360=\"\",'Enrollment Form'!$CN360=\"No\"),\"-\",IF(AND('Enrollment Form'!$CN360=\"Yes\",'Enrollment Form'!$CP360=\"\"),\"N\",\"Y\"))","v":"-"},{"$f":"IF('Enrollment Form'!B360<>\"Subscriber\",\"-\",IF(AND('Enrollment Form'!B360=\"Subscriber\",'Enrollment Form'!C360=\"Enroll\",'Enrollment Form'!AA360=\"\"),\"N\",\"Y\"))","v":"-"},{"$f":"IF(OR('Enrollment Form'!B360=\"Subscriber\",'Enrollment Form'!B360=\"\"),\"-\",IF('Enrollment Form'!BP360=\"\",\"N\",\"Y\"))","v":"-"},{"$f":"IF('Enrollment Form'!B360<>\"Subscriber\",\"-\",IF(AND('Enrollment Form'!B360=\"Subscriber\",'Enrollment Form'!G360=\"\"),\"N\",\"Y\"))","v":"-"},{"$f":"IF('Enrollment Form'!A360=\"\",\"\",IF('Enrollment Form'!B360=\"Subscriber\",\"-\",IF(AND('Enrollment Form'!B360<>\"Subscriber\",'Enrollment Form'!G360='Enrollment Form'!H360),\"N\",\"Y\")))","v":""},0]
[361,{"$f":"IF('Enrollment Form'!$A361<>\"\",\"Y\",\"N\")","v":"N"},{"$f":"IF(AND('Enrollment Form'!$B361=\"\",'Enrollment Form'!$C361<>\"\"),\"N\",IF($B354=\"N\",\"\",\"Y\"))","v":""},{"$f":"IF(OR($B354=\"N\",'Enrollment Form'!G361=\"\"),\"\",IF('Enrollment Form'!$B361<>\"Subscriber\",\"\",IF('Enrollment Form'!$G361='Enrollment Form'!$H361,\"Y\",\"N\")))","v":""},{"$f":"IF($B354=\"N\",\"\",IF(AND(COUNTIFS('Enrollment Form'!$H$11:$H$1000,'Enrollment Form'!$H361,'Enrollment Form'!$B$11:$B$1000,'Enrollment Form'!$B361)>1,'Enrollment Form'!$H361<>\"\"),\"N\",\"Y\"))","v":""},{"$f":"IF($B354=\"N\",\"\",IF(LEN('Enrollment Form'!$Y361)=0,\"\",IF(LEN('Enrollment Form'!$Y361)<>5,\"N\",\"Y\")))","v":""},{"$f":"IF($B354=\"N\",\"\",IF(LEN('Enrollment Form'!$AD361=0),\"\",IF(LEN('Enrollment Form'!$AD361)<>5,\"N\",\"Y\")))","v":""},{"$f":"IF($B354=\"N\",\"\",IF(LEN('Enrollment Form'!$BS361=0),\"\",IF(LEN('Enrollment Form'!$BS361)<>5,\"N\",\"Y\")))","v":""},{"$f":"IF($B354=\"N\",\"\",IF(LEN('Enrollment Form'!$AE361)=0,\"\",IF(LEN('Enrollment Form'!$AE361)<>10,\"N\",\"Y\")))","v":""},{"$f":"IF($B354=\"N\",\"\",IF(LEN('Enrollment Form'!$AF361)=0,\"\",IF(LEN('Enrollment Form'!$AF361)<>10,\"N\",\"Y\")))","v":""},{"$f":"IF('Enrollment Form'!$O361<>\"Graded\",\"-\",IF(AND('Enrollment Form'!$O361=\"Graded\",'Enrollment Form'!$AR361<>\"\"),\"Y\",\"N\"))","v":"-"},{"$f":"IF($B354=\"N\",\"\",IF(OR('Enrollment Form'!$B361<>\"Subscriber\",'Enrollment Form'!$C361=\"ROC\"),\"-\",IF(AND('Enrollment Form'!$B361=\"Subscriber\",'Enrollment Form'!$C361=\"Enroll\",'Enrollment Form'!$AJ361<>\"\"),\"Y\",\"N\")))","v":""},{"$f":"IF($B354=\"N\",\"\",IF(OR('Enrollment Form'!$B361<>\"Subscriber\",'Enrollment Form'!$C361=\"ROC\"),\"-\",IF(AND('Enrollment Form'!$B361=\"Subscriber\",'Enrollment Form'!$C361=\"Enroll\",'Enrollment Form'!$AK361<>\"\"),\"Y\",\"N\")))","v":""},{"$f":"IF($B354=\"N\",\"\",IF(OR('Enrollment Form'!$B361<>\"Subscriber\",'Enrollment Form'!$C361=\"ROC\"),\"-\",IF(AND('Enrollment Form'!$B361=\"Subscriber\",'Enrollment Form'!$C361=\"Enroll\",'Enrollment Form'!$AL361<>\"\"),\"Y\",\"N\")))","v":""},{"$f":"IF($B354=\"N\",\"\",IF(OR('Enrollment Form'!$B361<>\"Subscriber\",'Enrollment Form'!$C361=\"ROC\"),\"-\",IF(AND('Enrollment Form'!$B361=\"Subscriber\",'Enrollment Form'!$C361=\"Enroll\",'Enrollment Form'!$AP361<>\"\"),\"Y\",\"N\")))","v":""},{"$f":"IF($B354=\"N\",\"\",IF(OR('Enrollment Form'!$B361<>\"Subscriber\",'Enrollment Form'!$C361=\"ROC\"),\"-\",IF(AND('Enrollment Form'!$B361=\"Subscriber\",'Enrollment Form'!$C361=\"Enroll\",'Enrollment Form'!$AQ361<>\"\"),\"Y\",\"N\")))","v":""},{"$f":"IF($B354=\"N\",\"\",IF(OR('Enrollment Form'!$B361<>\"Subscriber\",'Enrollment Form'!$C361=\"ROC\"),\"-\",IF(AND('Enrollment Form'!$B361=\"Subscriber\",'Enrollment Form'!$C361=\"Enroll\",'Enrollment Form'!$AS361<>\"\"),\"Y\",\"N\")))","v":""},{"$f":"IF($B354=\"N\",\"\",IF($Q354=\"-\",\"-\",IF(AND($Q354=\"Y\",'Enrollment Form'!$AS361=\"No\"),\"-\",IF(AND($Q354=\"Y\",'Enrollment Form'!$AS361=\"Yes\",'Enrollment Form'!$AT361<>\"\"),\"Y\",\"N\"))))","v":""},{"$f":"IF($B354=\"N\",\"\",IF(OR('Enrollment Form'!$B361<>\"Subscriber\",'Enrollment Form'!$C361=\"ROC\"),\"-\",IF(AND('Enrollment Form'!$B361=\"Subscriber\",'Enrollment Form'!$C361=\"Enroll\",'Enrollment Form'!$CV361<>\"\"),\"Y\",\"N\")))","v":""},{"$f":"IF($B354=\"N\",\"\",IF($S354=\"-\",\"-\",IF(AND($S354=\"Y\",'Enrollment Form'!$CV361=\"No\"),\"-\",IF(AND($S354=\"Y\",'Enrollment Form'!$CV361=\"Yes\",'Enrollment Form'!$CW361<>\"\"),\"Y\",\"N\"))))","v":""},{"$f":"IF(OR('Enrollment Form'!$AY361=\"Yes\",'Enrollment Form'!$AY361=\"\"),\"-\",IF(OR(AND('Enrollment Form'!$AY361=\"No\",ISERROR(FIND(\"HMO\",VLOOKUP('Enrollment Form'!G361,'Enrollment Form'!H$11:J$1000,3,FALSE),1))=FALSE,COUNTA('Enrollment Form'!$AZ361:$BC361)=4),AND('Enrollment Form'!$AY361=\"No\",ISERROR(FIND(\"HMO\",VLOOKUP('Enrollment Form'!G361,'Enrollment Form'!H$11:J$1000,3,FALSE),1))=FALSE,COUNTA('Enrollment Form'!$BT361:$BW361)=4)),\"Y\",\"N\"))","v":"-"},{"$f":"IF($B354=\"N\",\"\",IF('Enrollment Form'!$B361=\"Subscriber\",\"-\",IF(COUNTA('Enrollment Form'!$BL361,'Enrollment Form'!$BN361)=2,\"Y\",\"N\")))","v":""},{"$f":"IF($B354=\"N\",\"\",IF(OR('Enrollment Form'!$AX361=\"\",'Enrollment Form'!$AX361=\"No\"),\"-\",IF(AND('Enrollment Form'!$AX361=\"Yes\",COUNTA('Enrollment Form'!$CR361)=1),\"Y\",\"N\")))","v":""},{"$f":"IF(OR('Enrollment Form'!$CR361=\"\",'Enrollment Form'!$CR361=\"No\"),\"-\",IF(COUNTA('Enrollment Form'!$CT361:$CU361)=2,\"Y\",\"N\"))","v":"-"},{"$f":"IF($B354=\"N\",\"\",IF(COUNTIF('Enrollment Form'!$DG361:$DP361,\"Other\")=COUNTA('Enrollment Form'!$DK361,'Enrollment Form'!$DH361,'Enrollment Form'!$DN361,'Enrollment Form'!$DQ361),\"Y\",\"N\"))","v":""},{"$f":"IF($B354=\"N\",\"\",IF(OR('Enrollment Form'!B361<>\"Subscriber\",'Enrollment Form'!C361=\"ROC\",COUNTIF('Enrollment Form'!AV361:AW361,\"Yes\")>=1),\"-\",IF(AND('Enrollment Form'!C361=\"Enroll\",COUNTIF('Enrollment Form'!AV361:AW361,\"No\")=2,'Enrollment Form'!AX361=\"\"),\"N\",\"Y\")))","v":""},{"$f":"IF(OR(B354=\"N\",'Enrollment Form'!B361<>\"Subscriber\",'Enrollment Form'!C361=\"ROC\",'Enrollment Form'!O361<>\"Multiple of Salary\"),\"-\",IF(COUNTA('Enrollment Form'!T361:U361)<2,\"N\",\"Y\"))","v":"-"},{"$f":"IF(B354=\"N\",\"\",IF(OR('Enrollment Form'!C361=\"ROC\",'Enrollment Form'!B361<>\"Subscriber\",'Enrollment Form'!O361=\"Waive\",'Enrollment Form'!O361=\"\"),\"-\",IF('Enrollment Form'!P361=\"\",\"N\",\"Y\")))","v":""},{"$f":"IF($B354=\"N\",\"\",IF(AND('Enrollment Form'!$C361=\"ROC\",'Enrollment Form'!$DR361<>\"\"),\"Y\",IF(AND('Enrollment Form'!$C361=\"ROC\",'Enrollment Form'!$DR361=\"\"),\"N\",IF(AND('Enrollment Form'!$C361=\"Enroll\",'Enrollment Form'!$B361=\"Subscriber\",'Enrollment Form'!$CX361=\"No\",'Enrollment Form'!$DR361=\"\"),\"N\",IF(AND('Enrollment Form'!$C361=\"Enroll\",'Enrollment Form'!$B361=\"Subscriber\",'Enrollment Form'!$CX361=\"Yes\"),\"-\",\"Y\")))))","v":""},{"$f":"IF($B354=\"N\",\"\",IF(AND('Enrollment Form'!$C361=\"ROC\",'Enrollment Form'!$DS361<>\"\"),\"Y\",IF(AND('Enrollment Form'!$C361=\"ROC\",'Enrollment Form'!$DS361=\"\"),\"N\",IF(AND('Enrollment Form'!$C361=\"Enroll\",'Enrollment Form'!$B361=\"Subscriber\",'Enrollment Form'!$CX361=\"No\",'Enrollment Form'!$DS361=\"\"),\"N\",IF(AND('Enrollment Form'!$C361=\"Enroll\",'Enrollment Form'!$B361=\"Subscriber\",'Enrollment Form'!$CX361=\"Yes\"),\"-\",\"Y\")))))","v":""},{"$f":"IF('Enrollment Form'!AH361=\"\",\"\",IF(ISERROR(SEARCH(\".\",'Enrollment Form'!AH361,SEARCH(\"@\",'Enrollment Form'!AH361))),\"N\",\"Y\"))","v":""},{"$f":"IF(OR($B354=\"N\",'Enrollment Form'!$G361=\"\"),\"\",IF('Enrollment Form'!$B361<>\"Subscriber\",\"-\",IF(COUNTIF('Enrollment Form'!$AV361:$AW361,\"Yes\")=2,\"N\",\"Y\")))","v":""},{"$f":"IF(OR('Enrollment Form'!$CJ361=\"\",'Enrollment Form'!$CJ361=\"No\"),\"-\",IF(AND('Enrollment Form'!$CJ361=\"Yes\",'Enrollment Form'!$CK361=\"\"),\"N\",\"Y\"))","v":"-"},{"$f":"IF(OR('Enrollment Form'!$CL361=\"\",'Enrollment Form'!$CL361=\"No\"),\"-\",IF(AND('Enrollment Form'!$CL361=\"Yes\",'Enrollment Form'!$CM361=\"\"),\"N\",\"Y\"))","v":"-"},{"$f":"IF(OR('Enrollment Form'!$CN361=\"\",'Enrollment Form'!$CN361=\"No\"),\"-\",IF(AND('Enrollment Form'!$CN361=\"Yes\",'Enrollment Form'!$CO361=\"\"),\"N\",\"Y\"))","v":"-"},{"$f":"IF(OR('Enrollment Form'!$CN361=\"\",'Enrollment Form'!$CN361=\"No\"),\"-\",IF(AND('Enrollment Form'!$CN361=\"Yes\",'Enrollment Form'!$CP361=\"\"),\"N\",\"Y\"))","v":"-"},{"$f":"IF('Enrollment Form'!B361<>\"Subscriber\",\"-\",IF(AND('Enrollment Form'!B361=\"Subscriber\",'Enrollment Form'!C361=\"Enroll\",'Enrollment Form'!AA361=\"\"),\"N\",\"Y\"))","v":"-"},{"$f":"IF(OR('Enrollment Form'!B361=\"Subscriber\",'Enrollment Form'!B361=\"\"),\"-\",IF('Enrollment Form'!BP361=\"\",\"N\",\"Y\"))","v":"-"},{"$f":"IF('Enrollment Form'!B361<>\"Subscriber\",\"-\",IF(AND('Enrollment Form'!B361=\"Subscriber\",'Enrollment Form'!G361=\"\"),\"N\",\"Y\"))","v":"-"},{"$f":"IF('Enrollment Form'!A361=\"\",\"\",IF('Enrollment Form'!B361=\"Subscriber\",\"-\",IF(AND('Enrollment Form'!B361<>\"Subscriber\",'Enrollment Form'!G361='Enrollment Form'!H361),\"N\",\"Y\")))","v":""},0]
[362,{"$f":"IF('Enrollment Form'!$A362<>\"\",\"Y\",\"N\")","v":"N"},{"$f":"IF(AND('Enrollment Form'!$B362=\"\",'Enrollment Form'!$C362<>\"\"),\"N\",IF($B355=\"N\",\"\",\"Y\"))","v":""},{"$f":"IF(OR($B355=\"N\",'Enrollment Form'!G362=\"\"),\"\",IF('Enrollment Form'!$B362<>\"Subscriber\",\"\",IF('Enrollment Form'!$G362='Enrollment Form'!$H362,\"Y\",\"N\")))","v":""},{"$f":"IF($B355=\"N\",\"\",IF(AND(COUNTIFS('Enrollment Form'!$H$11:$H$1000,'Enrollment Form'!$H362,'Enrollment Form'!$B$11:$B$1000,'Enrollment Form'!$B362)>1,'Enrollment Form'!$H362<>\"\"),\"N\",\"Y\"))","v":""},{"$f":"IF($B355=\"N\",\"\",IF(LEN('Enrollment Form'!$Y362)=0,\"\",IF(LEN('Enrollment Form'!$Y362)<>5,\"N\",\"Y\")))","v":""},{"$f":"IF($B355=\"N\",\"\",IF(LEN('Enrollment Form'!$AD362=0),\"\",IF(LEN('Enrollment Form'!$AD362)<>5,\"N\",\"Y\")))","v":""},{"$f":"IF($B355=\"N\",\"\",IF(LEN('Enrollment Form'!$BS362=0),\"\",IF(LEN('Enrollment Form'!$BS362)<>5,\"N\",\"Y\")))","v":""},{"$f":"IF($B355=\"N\",\"\",IF(LEN('Enrollment Form'!$AE362)=0,\"\",IF(LEN('Enrollment Form'!$AE362)<>10,\"N\",\"Y\")))","v":""},{"$f":"IF($B355=\"N\",\"\",IF(LEN('Enrollment Form'!$AF362)=0,\"\",IF(LEN('Enrollment Form'!$AF362)<>10,\"N\",\"Y\")))","v":""},{"$f":"IF('Enrollment Form'!$O362<>\"Graded\",\"-\",IF(AND('Enrollment Form'!$O362=\"Graded\",'Enrollment Form'!$AR362<>\"\"),\"Y\",\"N\"))","v":"-"},{"$f":"IF($B355=\"N\",\"\",IF(OR('Enrollment Form'!$B362<>\"Subscriber\",'Enrollment Form'!$C362=\"ROC\"),\"-\",IF(AND('Enrollment Form'!$B362=\"Subscriber\",'Enrollment Form'!$C362=\"Enroll\",'Enrollment Form'!$AJ362<>\"\"),\"Y\",\"N\")))","v":""},{"$f":"IF($B355=\"N\",\"\",IF(OR('Enrollment Form'!$B362<>\"Subscriber\",'Enrollment Form'!$C362=\"ROC\"),\"-\",IF(AND('Enrollment Form'!$B362=\"Subscriber\",'Enrollment Form'!$C362=\"Enroll\",'Enrollment Form'!$AK362<>\"\"),\"Y\",\"N\")))","v":""},{"$f":"IF($B355=\"N\",\"\",IF(OR('Enrollment Form'!$B362<>\"Subscriber\",'Enrollment Form'!$C362=\"ROC\"),\"-\",IF(AND('Enrollment Form'!$B362=\"Subscriber\",'Enrollment Form'!$C362=\"Enroll\",'Enrollment Form'!$AL362<>\"\"),\"Y\",\"N\")))","v":""},{"$f":"IF($B355=\"N\",\"\",IF(OR('Enrollment Form'!$B362<>\"Subscriber\",'Enrollment Form'!$C362=\"ROC\"),\"-\",IF(AND('Enrollment Form'!$B362=\"Subscriber\",'Enrollment Form'!$C362=\"Enroll\",'Enrollment Form'!$AP362<>\"\"),\"Y\",\"N\")))","v":""},{"$f":"IF($B355=\"N\",\"\",IF(OR('Enrollment Form'!$B362<>\"Subscriber\",'Enrollment Form'!$C362=\"ROC\"),\"-\",IF(AND('Enrollment Form'!$B362=\"Subscriber\",'Enrollment Form'!$C362=\"Enroll\",'Enrollment Form'!$AQ362<>\"\"),\"Y\",\"N\")))","v":""},{"$f":"IF($B355=\"N\",\"\",IF(OR('Enrollment Form'!$B362<>\"Subscriber\",'Enrollment Form'!$C362=\"ROC\"),\"-\",IF(AND('Enrollment Form'!$B362=\"Subscriber\",'Enrollment Form'!$C362=\"Enroll\",'Enrollment Form'!$AS362<>\"\"),\"Y\",\"N\")))","v":""},{"$f":"IF($B355=\"N\",\"\",IF($Q355=\"-\",\"-\",IF(AND($Q355=\"Y\",'Enrollment Form'!$AS362=\"No\"),\"-\",IF(AND($Q355=\"Y\",'Enrollment Form'!$AS362=\"Yes\",'Enrollment Form'!$AT362<>\"\"),\"Y\",\"N\"))))","v":""},{"$f":"IF($B355=\"N\",\"\",IF(OR('Enrollment Form'!$B362<>\"Subscriber\",'Enrollment Form'!$C362=\"ROC\"),\"-\",IF(AND('Enrollment Form'!$B362=\"Subscriber\",'Enrollment Form'!$C362=\"Enroll\",'Enrollment Form'!$CV362<>\"\"),\"Y\",\"N\")))","v":""},{"$f":"IF($B355=\"N\",\"\",IF($S355=\"-\",\"-\",IF(AND($S355=\"Y\",'Enrollment Form'!$CV362=\"No\"),\"-\",IF(AND($S355=\"Y\",'Enrollment Form'!$CV362=\"Yes\",'Enrollment Form'!$CW362<>\"\"),\"Y\",\"N\"))))","v":""},{"$f":"IF(OR('Enrollment Form'!$AY362=\"Yes\",'Enrollment Form'!$AY362=\"\"),\"-\",IF(OR(AND('Enrollment Form'!$AY362=\"No\",ISERROR(FIND(\"HMO\",VLOOKUP('Enrollment Form'!G362,'Enrollment Form'!H$11:J$1000,3,FALSE),1))=FALSE,COUNTA('Enrollment Form'!$AZ362:$BC362)=4),AND('Enrollment Form'!$AY362=\"No\",ISERROR(FIND(\"HMO\",VLOOKUP('Enrollment Form'!G362,'Enrollment Form'!H$11:J$1000,3,FALSE),1))=FALSE,COUNTA('Enrollment Form'!$BT362:$BW362)=4)),\"Y\",\"N\"))","v":"-"},{"$f":"IF($B355=\"N\",\"\",IF('Enrollment Form'!$B362=\"Subscriber\",\"-\",IF(COUNTA('Enrollment Form'!$BL362,'Enrollment Form'!$BN362)=2,\"Y\",\"N\")))","v":""},{"$f":"IF($B355=\"N\",\"\",IF(OR('Enrollment Form'!$AX362=\"\",'Enrollment Form'!$AX362=\"No\"),\"-\",IF(AND('Enrollment Form'!$AX362=\"Yes\",COUNTA('Enrollment Form'!$CR362)=1),\"Y\",\"N\")))","v":""},{"$f":"IF(OR('Enrollment Form'!$CR362=\"\",'Enrollment Form'!$CR362=\"No\"),\"-\",IF(COUNTA('Enrollment Form'!$CT362:$CU362)=2,\"Y\",\"N\"))","v":"-"},{"$f":"IF($B355=\"N\",\"\",IF(COUNTIF('Enrollment Form'!$DG362:$DP362,\"Other\")=COUNTA('Enrollment Form'!$DK362,'Enrollment Form'!$DH362,'Enrollment Form'!$DN362,'Enrollment Form'!$DQ362),\"Y\",\"N\"))","v":""},{"$f":"IF($B355=\"N\",\"\",IF(OR('Enrollment Form'!B362<>\"Subscriber\",'Enrollment Form'!C362=\"ROC\",COUNTIF('Enrollment Form'!AV362:AW362,\"Yes\")>=1),\"-\",IF(AND('Enrollment Form'!C362=\"Enroll\",COUNTIF('Enrollment Form'!AV362:AW362,\"No\")=2,'Enrollment Form'!AX362=\"\"),\"N\",\"Y\")))","v":""},{"$f":"IF(OR(B355=\"N\",'Enrollment Form'!B362<>\"Subscriber\",'Enrollment Form'!C362=\"ROC\",'Enrollment Form'!O362<>\"Multiple of Salary\"),\"-\",IF(COUNTA('Enrollment Form'!T362:U362)<2,\"N\",\"Y\"))","v":"-"},{"$f":"IF(B355=\"N\",\"\",IF(OR('Enrollment Form'!C362=\"ROC\",'Enrollment Form'!B362<>\"Subscriber\",'Enrollment Form'!O362=\"Waive\",'Enrollment Form'!O362=\"\"),\"-\",IF('Enrollment Form'!P362=\"\",\"N\",\"Y\")))","v":""},{"$f":"IF($B355=\"N\",\"\",IF(AND('Enrollment Form'!$C362=\"ROC\",'Enrollment Form'!$DR362<>\"\"),\"Y\",IF(AND('Enrollment Form'!$C362=\"ROC\",'Enrollment Form'!$DR362=\"\"),\"N\",IF(AND('Enrollment Form'!$C362=\"Enroll\",'Enrollment Form'!$B362=\"Subscriber\",'Enrollment Form'!$CX362=\"No\",'Enrollment Form'!$DR362=\"\"),\"N\",IF(AND('Enrollment Form'!$C362=\"Enroll\",'Enrollment Form'!$B362=\"Subscriber\",'Enrollment Form'!$CX362=\"Yes\"),\"-\",\"Y\")))))","v":""},{"$f":"IF($B355=\"N\",\"\",IF(AND('Enrollment Form'!$C362=\"ROC\",'Enrollment Form'!$DS362<>\"\"),\"Y\",IF(AND('Enrollment Form'!$C362=\"ROC\",'Enrollment Form'!$DS362=\"\"),\"N\",IF(AND('Enrollment Form'!$C362=\"Enroll\",'Enrollment Form'!$B362=\"Subscriber\",'Enrollment Form'!$CX362=\"No\",'Enrollment Form'!$DS362=\"\"),\"N\",IF(AND('Enrollment Form'!$C362=\"Enroll\",'Enrollment Form'!$B362=\"Subscriber\",'Enrollment Form'!$CX362=\"Yes\"),\"-\",\"Y\")))))","v":""},{"$f":"IF('Enrollment Form'!AH362=\"\",\"\",IF(ISERROR(SEARCH(\".\",'Enrollment Form'!AH362,SEARCH(\"@\",'Enrollment Form'!AH362))),\"N\",\"Y\"))","v":""},{"$f":"IF(OR($B355=\"N\",'Enrollment Form'!$G362=\"\"),\"\",IF('Enrollment Form'!$B362<>\"Subscriber\",\"-\",IF(COUNTIF('Enrollment Form'!$AV362:$AW362,\"Yes\")=2,\"N\",\"Y\")))","v":""},{"$f":"IF(OR('Enrollment Form'!$CJ362=\"\",'Enrollment Form'!$CJ362=\"No\"),\"-\",IF(AND('Enrollment Form'!$CJ362=\"Yes\",'Enrollment Form'!$CK362=\"\"),\"N\",\"Y\"))","v":"-"},{"$f":"IF(OR('Enrollment Form'!$CL362=\"\",'Enrollment Form'!$CL362=\"No\"),\"-\",IF(AND('Enrollment Form'!$CL362=\"Yes\",'Enrollment Form'!$CM362=\"\"),\"N\",\"Y\"))","v":"-"},{"$f":"IF(OR('Enrollment Form'!$CN362=\"\",'Enrollment Form'!$CN362=\"No\"),\"-\",IF(AND('Enrollment Form'!$CN362=\"Yes\",'Enrollment Form'!$CO362=\"\"),\"N\",\"Y\"))","v":"-"},{"$f":"IF(OR('Enrollment Form'!$CN362=\"\",'Enrollment Form'!$CN362=\"No\"),\"-\",IF(AND('Enrollment Form'!$CN362=\"Yes\",'Enrollment Form'!$CP362=\"\"),\"N\",\"Y\"))","v":"-"},{"$f":"IF('Enrollment Form'!B362<>\"Subscriber\",\"-\",IF(AND('Enrollment Form'!B362=\"Subscriber\",'Enrollment Form'!C362=\"Enroll\",'Enrollment Form'!AA362=\"\"),\"N\",\"Y\"))","v":"-"},{"$f":"IF(OR('Enrollment Form'!B362=\"Subscriber\",'Enrollment Form'!B362=\"\"),\"-\",IF('Enrollment Form'!BP362=\"\",\"N\",\"Y\"))","v":"-"},{"$f":"IF('Enrollment Form'!B362<>\"Subscriber\",\"-\",IF(AND('Enrollment Form'!B362=\"Subscriber\",'Enrollment Form'!G362=\"\"),\"N\",\"Y\"))","v":"-"},{"$f":"IF('Enrollment Form'!A362=\"\",\"\",IF('Enrollment Form'!B362=\"Subscriber\",\"-\",IF(AND('Enrollment Form'!B362<>\"Subscriber\",'Enrollment Form'!G362='Enrollment Form'!H362),\"N\",\"Y\")))","v":""},0]
[363,{"$f":"IF('Enrollment Form'!$A363<>\"\",\"Y\",\"N\")","v":"N"},{"$f":"IF(AND('Enrollment Form'!$B363=\"\",'Enrollment Form'!$C363<>\"\"),\"N\",IF($B356=\"N\",\"\",\"Y\"))","v":""},{"$f":"IF(OR($B356=\"N\",'Enrollment Form'!G363=\"\"),\"\",IF('Enrollment Form'!$B363<>\"Subscriber\",\"\",IF('Enrollment Form'!$G363='Enrollment Form'!$H363,\"Y\",\"N\")))","v":""},{"$f":"IF($B356=\"N\",\"\",IF(AND(COUNTIFS('Enrollment Form'!$H$11:$H$1000,'Enrollment Form'!$H363,'Enrollment Form'!$B$11:$B$1000,'Enrollment Form'!$B363)>1,'Enrollment Form'!$H363<>\"\"),\"N\",\"Y\"))","v":""},{"$f":"IF($B356=\"N\",\"\",IF(LEN('Enrollment Form'!$Y363)=0,\"\",IF(LEN('Enrollment Form'!$Y363)<>5,\"N\",\"Y\")))","v":""},{"$f":"IF($B356=\"N\",\"\",IF(LEN('Enrollment Form'!$AD363=0),\"\",IF(LEN('Enrollment Form'!$AD363)<>5,\"N\",\"Y\")))","v":""},{"$f":"IF($B356=\"N\",\"\",IF(LEN('Enrollment Form'!$BS363=0),\"\",IF(LEN('Enrollment Form'!$BS363)<>5,\"N\",\"Y\")))","v":""},{"$f":"IF($B356=\"N\",\"\",IF(LEN('Enrollment Form'!$AE363)=0,\"\",IF(LEN('Enrollment Form'!$AE363)<>10,\"N\",\"Y\")))","v":""},{"$f":"IF($B356=\"N\",\"\",IF(LEN('Enrollment Form'!$AF363)=0,\"\",IF(LEN('Enrollment Form'!$AF363)<>10,\"N\",\"Y\")))","v":""},{"$f":"IF('Enrollment Form'!$O363<>\"Graded\",\"-\",IF(AND('Enrollment Form'!$O363=\"Graded\",'Enrollment Form'!$AR363<>\"\"),\"Y\",\"N\"))","v":"-"},{"$f":"IF($B356=\"N\",\"\",IF(OR('Enrollment Form'!$B363<>\"Subscriber\",'Enrollment Form'!$C363=\"ROC\"),\"-\",IF(AND('Enrollment Form'!$B363=\"Subscriber\",'Enrollment Form'!$C363=\"Enroll\",'Enrollment Form'!$AJ363<>\"\"),\"Y\",\"N\")))","v":""},{"$f":"IF($B356=\"N\",\"\",IF(OR('Enrollment Form'!$B363<>\"Subscriber\",'Enrollment Form'!$C363=\"ROC\"),\"-\",IF(AND('Enrollment Form'!$B363=\"Subscriber\",'Enrollment Form'!$C363=\"Enroll\",'Enrollment Form'!$AK363<>\"\"),\"Y\",\"N\")))","v":""},{"$f":"IF($B356=\"N\",\"\",IF(OR('Enrollment Form'!$B363<>\"Subscriber\",'Enrollment Form'!$C363=\"ROC\"),\"-\",IF(AND('Enrollment Form'!$B363=\"Subscriber\",'Enrollment Form'!$C363=\"Enroll\",'Enrollment Form'!$AL363<>\"\"),\"Y\",\"N\")))","v":""},{"$f":"IF($B356=\"N\",\"\",IF(OR('Enrollment Form'!$B363<>\"Subscriber\",'Enrollment Form'!$C363=\"ROC\"),\"-\",IF(AND('Enrollment Form'!$B363=\"Subscriber\",'Enrollment Form'!$C363=\"Enroll\",'Enrollment Form'!$AP363<>\"\"),\"Y\",\"N\")))","v":""},{"$f":"IF($B356=\"N\",\"\",IF(OR('Enrollment Form'!$B363<>\"Subscriber\",'Enrollment Form'!$C363=\"ROC\"),\"-\",IF(AND('Enrollment Form'!$B363=\"Subscriber\",'Enrollment Form'!$C363=\"Enroll\",'Enrollment Form'!$AQ363<>\"\"),\"Y\",\"N\")))","v":""},{"$f":"IF($B356=\"N\",\"\",IF(OR('Enrollment Form'!$B363<>\"Subscriber\",'Enrollment Form'!$C363=\"ROC\"),\"-\",IF(AND('Enrollment Form'!$B363=\"Subscriber\",'Enrollment Form'!$C363=\"Enroll\",'Enrollment Form'!$AS363<>\"\"),\"Y\",\"N\")))","v":""},{"$f":"IF($B356=\"N\",\"\",IF($Q356=\"-\",\"-\",IF(AND($Q356=\"Y\",'Enrollment Form'!$AS363=\"No\"),\"-\",IF(AND($Q356=\"Y\",'Enrollment Form'!$AS363=\"Yes\",'Enrollment Form'!$AT363<>\"\"),\"Y\",\"N\"))))","v":""},{"$f":"IF($B356=\"N\",\"\",IF(OR('Enrollment Form'!$B363<>\"Subscriber\",'Enrollment Form'!$C363=\"ROC\"),\"-\",IF(AND('Enrollment Form'!$B363=\"Subscriber\",'Enrollment Form'!$C363=\"Enroll\",'Enrollment Form'!$CV363<>\"\"),\"Y\",\"N\")))","v":""},{"$f":"IF($B356=\"N\",\"\",IF($S356=\"-\",\"-\",IF(AND($S356=\"Y\",'Enrollment Form'!$CV363=\"No\"),\"-\",IF(AND($S356=\"Y\",'Enrollment Form'!$CV363=\"Yes\",'Enrollment Form'!$CW363<>\"\"),\"Y\",\"N\"))))","v":""},{"$f":"IF(OR('Enrollment Form'!$AY363=\"Yes\",'Enrollment Form'!$AY363=\"\"),\"-\",IF(OR(AND('Enrollment Form'!$AY363=\"No\",ISERROR(FIND(\"HMO\",VLOOKUP('Enrollment Form'!G363,'Enrollment Form'!H$11:J$1000,3,FALSE),1))=FALSE,COUNTA('Enrollment Form'!$AZ363:$BC363)=4),AND('Enrollment Form'!$AY363=\"No\",ISERROR(FIND(\"HMO\",VLOOKUP('Enrollment Form'!G363,'Enrollment Form'!H$11:J$1000,3,FALSE),1))=FALSE,COUNTA('Enrollment Form'!$BT363:$BW363)=4)),\"Y\",\"N\"))","v":"-"},{"$f":"IF($B356=\"N\",\"\",IF('Enrollment Form'!$B363=\"Subscriber\",\"-\",IF(COUNTA('Enrollment Form'!$BL363,'Enrollment Form'!$BN363)=2,\"Y\",\"N\")))","v":""},{"$f":"IF($B356=\"N\",\"\",IF(OR('Enrollment Form'!$AX363=\"\",'Enrollment Form'!$AX363=\"No\"),\"-\",IF(AND('Enrollment Form'!$AX363=\"Yes\",COUNTA('Enrollment Form'!$CR363)=1),\"Y\",\"N\")))","v":""},{"$f":"IF(OR('Enrollment Form'!$CR363=\"\",'Enrollment Form'!$CR363=\"No\"),\"-\",IF(COUNTA('Enrollment Form'!$CT363:$CU363)=2,\"Y\",\"N\"))","v":"-"},{"$f":"IF($B356=\"N\",\"\",IF(COUNTIF('Enrollment Form'!$DG363:$DP363,\"Other\")=COUNTA('Enrollment Form'!$DK363,'Enrollment Form'!$DH363,'Enrollment Form'!$DN363,'Enrollment Form'!$DQ363),\"Y\",\"N\"))","v":""},{"$f":"IF($B356=\"N\",\"\",IF(OR('Enrollment Form'!B363<>\"Subscriber\",'Enrollment Form'!C363=\"ROC\",COUNTIF('Enrollment Form'!AV363:AW363,\"Yes\")>=1),\"-\",IF(AND('Enrollment Form'!C363=\"Enroll\",COUNTIF('Enrollment Form'!AV363:AW363,\"No\")=2,'Enrollment Form'!AX363=\"\"),\"N\",\"Y\")))","v":""},{"$f":"IF(OR(B356=\"N\",'Enrollment Form'!B363<>\"Subscriber\",'Enrollment Form'!C363=\"ROC\",'Enrollment Form'!O363<>\"Multiple of Salary\"),\"-\",IF(COUNTA('Enrollment Form'!T363:U363)<2,\"N\",\"Y\"))","v":"-"},{"$f":"IF(B356=\"N\",\"\",IF(OR('Enrollment Form'!C363=\"ROC\",'Enrollment Form'!B363<>\"Subscriber\",'Enrollment Form'!O363=\"Waive\",'Enrollment Form'!O363=\"\"),\"-\",IF('Enrollment Form'!P363=\"\",\"N\",\"Y\")))","v":""},{"$f":"IF($B356=\"N\",\"\",IF(AND('Enrollment Form'!$C363=\"ROC\",'Enrollment Form'!$DR363<>\"\"),\"Y\",IF(AND('Enrollment Form'!$C363=\"ROC\",'Enrollment Form'!$DR363=\"\"),\"N\",IF(AND('Enrollment Form'!$C363=\"Enroll\",'Enrollment Form'!$B363=\"Subscriber\",'Enrollment Form'!$CX363=\"No\",'Enrollment Form'!$DR363=\"\"),\"N\",IF(AND('Enrollment Form'!$C363=\"Enroll\",'Enrollment Form'!$B363=\"Subscriber\",'Enrollment Form'!$CX363=\"Yes\"),\"-\",\"Y\")))))","v":""},{"$f":"IF($B356=\"N\",\"\",IF(AND('Enrollment Form'!$C363=\"ROC\",'Enrollment Form'!$DS363<>\"\"),\"Y\",IF(AND('Enrollment Form'!$C363=\"ROC\",'Enrollment Form'!$DS363=\"\"),\"N\",IF(AND('Enrollment Form'!$C363=\"Enroll\",'Enrollment Form'!$B363=\"Subscriber\",'Enrollment Form'!$CX363=\"No\",'Enrollment Form'!$DS363=\"\"),\"N\",IF(AND('Enrollment Form'!$C363=\"Enroll\",'Enrollment Form'!$B363=\"Subscriber\",'Enrollment Form'!$CX363=\"Yes\"),\"-\",\"Y\")))))","v":""},{"$f":"IF('Enrollment Form'!AH363=\"\",\"\",IF(ISERROR(SEARCH(\".\",'Enrollment Form'!AH363,SEARCH(\"@\",'Enrollment Form'!AH363))),\"N\",\"Y\"))","v":""},{"$f":"IF(OR($B356=\"N\",'Enrollment Form'!$G363=\"\"),\"\",IF('Enrollment Form'!$B363<>\"Subscriber\",\"-\",IF(COUNTIF('Enrollment Form'!$AV363:$AW363,\"Yes\")=2,\"N\",\"Y\")))","v":""},{"$f":"IF(OR('Enrollment Form'!$CJ363=\"\",'Enrollment Form'!$CJ363=\"No\"),\"-\",IF(AND('Enrollment Form'!$CJ363=\"Yes\",'Enrollment Form'!$CK363=\"\"),\"N\",\"Y\"))","v":"-"},{"$f":"IF(OR('Enrollment Form'!$CL363=\"\",'Enrollment Form'!$CL363=\"No\"),\"-\",IF(AND('Enrollment Form'!$CL363=\"Yes\",'Enrollment Form'!$CM363=\"\"),\"N\",\"Y\"))","v":"-"},{"$f":"IF(OR('Enrollment Form'!$CN363=\"\",'Enrollment Form'!$CN363=\"No\"),\"-\",IF(AND('Enrollment Form'!$CN363=\"Yes\",'Enrollment Form'!$CO363=\"\"),\"N\",\"Y\"))","v":"-"},{"$f":"IF(OR('Enrollment Form'!$CN363=\"\",'Enrollment Form'!$CN363=\"No\"),\"-\",IF(AND('Enrollment Form'!$CN363=\"Yes\",'Enrollment Form'!$CP363=\"\"),\"N\",\"Y\"))","v":"-"},{"$f":"IF('Enrollment Form'!B363<>\"Subscriber\",\"-\",IF(AND('Enrollment Form'!B363=\"Subscriber\",'Enrollment Form'!C363=\"Enroll\",'Enrollment Form'!AA363=\"\"),\"N\",\"Y\"))","v":"-"},{"$f":"IF(OR('Enrollment Form'!B363=\"Subscriber\",'Enrollment Form'!B363=\"\"),\"-\",IF('Enrollment Form'!BP363=\"\",\"N\",\"Y\"))","v":"-"},{"$f":"IF('Enrollment Form'!B363<>\"Subscriber\",\"-\",IF(AND('Enrollment Form'!B363=\"Subscriber\",'Enrollment Form'!G363=\"\"),\"N\",\"Y\"))","v":"-"},{"$f":"IF('Enrollment Form'!A363=\"\",\"\",IF('Enrollment Form'!B363=\"Subscriber\",\"-\",IF(AND('Enrollment Form'!B363<>\"Subscriber\",'Enrollment Form'!G363='Enrollment Form'!H363),\"N\",\"Y\")))","v":""},0]
[364,{"$f":"IF('Enrollment Form'!$A364<>\"\",\"Y\",\"N\")","v":"N"},{"$f":"IF(AND('Enrollment Form'!$B364=\"\",'Enrollment Form'!$C364<>\"\"),\"N\",IF($B357=\"N\",\"\",\"Y\"))","v":""},{"$f":"IF(OR($B357=\"N\",'Enrollment Form'!G364=\"\"),\"\",IF('Enrollment Form'!$B364<>\"Subscriber\",\"\",IF('Enrollment Form'!$G364='Enrollment Form'!$H364,\"Y\",\"N\")))","v":""},{"$f":"IF($B357=\"N\",\"\",IF(AND(COUNTIFS('Enrollment Form'!$H$11:$H$1000,'Enrollment Form'!$H364,'Enrollment Form'!$B$11:$B$1000,'Enrollment Form'!$B364)>1,'Enrollment Form'!$H364<>\"\"),\"N\",\"Y\"))","v":""},{"$f":"IF($B357=\"N\",\"\",IF(LEN('Enrollment Form'!$Y364)=0,\"\",IF(LEN('Enrollment Form'!$Y364)<>5,\"N\",\"Y\")))","v":""},{"$f":"IF($B357=\"N\",\"\",IF(LEN('Enrollment Form'!$AD364=0),\"\",IF(LEN('Enrollment Form'!$AD364)<>5,\"N\",\"Y\")))","v":""},{"$f":"IF($B357=\"N\",\"\",IF(LEN('Enrollment Form'!$BS364=0),\"\",IF(LEN('Enrollment Form'!$BS364)<>5,\"N\",\"Y\")))","v":""},{"$f":"IF($B357=\"N\",\"\",IF(LEN('Enrollment Form'!$AE364)=0,\"\",IF(LEN('Enrollment Form'!$AE364)<>10,\"N\",\"Y\")))","v":""},{"$f":"IF($B357=\"N\",\"\",IF(LEN('Enrollment Form'!$AF364)=0,\"\",IF(LEN('Enrollment Form'!$AF364)<>10,\"N\",\"Y\")))","v":""},{"$f":"IF('Enrollment Form'!$O364<>\"Graded\",\"-\",IF(AND('Enrollment Form'!$O364=\"Graded\",'Enrollment Form'!$AR364<>\"\"),\"Y\",\"N\"))","v":"-"},{"$f":"IF($B357=\"N\",\"\",IF(OR('Enrollment Form'!$B364<>\"Subscriber\",'Enrollment Form'!$C364=\"ROC\"),\"-\",IF(AND('Enrollment Form'!$B364=\"Subscriber\",'Enrollment Form'!$C364=\"Enroll\",'Enrollment Form'!$AJ364<>\"\"),\"Y\",\"N\")))","v":""},{"$f":"IF($B357=\"N\",\"\",IF(OR('Enrollment Form'!$B364<>\"Subscriber\",'Enrollment Form'!$C364=\"ROC\"),\"-\",IF(AND('Enrollment Form'!$B364=\"Subscriber\",'Enrollment Form'!$C364=\"Enroll\",'Enrollment Form'!$AK364<>\"\"),\"Y\",\"N\")))","v":""},{"$f":"IF($B357=\"N\",\"\",IF(OR('Enrollment Form'!$B364<>\"Subscriber\",'Enrollment Form'!$C364=\"ROC\"),\"-\",IF(AND('Enrollment Form'!$B364=\"Subscriber\",'Enrollment Form'!$C364=\"Enroll\",'Enrollment Form'!$AL364<>\"\"),\"Y\",\"N\")))","v":""},{"$f":"IF($B357=\"N\",\"\",IF(OR('Enrollment Form'!$B364<>\"Subscriber\",'Enrollment Form'!$C364=\"ROC\"),\"-\",IF(AND('Enrollment Form'!$B364=\"Subscriber\",'Enrollment Form'!$C364=\"Enroll\",'Enrollment Form'!$AP364<>\"\"),\"Y\",\"N\")))","v":""},{"$f":"IF($B357=\"N\",\"\",IF(OR('Enrollment Form'!$B364<>\"Subscriber\",'Enrollment Form'!$C364=\"ROC\"),\"-\",IF(AND('Enrollment Form'!$B364=\"Subscriber\",'Enrollment Form'!$C364=\"Enroll\",'Enrollment Form'!$AQ364<>\"\"),\"Y\",\"N\")))","v":""},{"$f":"IF($B357=\"N\",\"\",IF(OR('Enrollment Form'!$B364<>\"Subscriber\",'Enrollment Form'!$C364=\"ROC\"),\"-\",IF(AND('Enrollment Form'!$B364=\"Subscriber\",'Enrollment Form'!$C364=\"Enroll\",'Enrollment Form'!$AS364<>\"\"),\"Y\",\"N\")))","v":""},{"$f":"IF($B357=\"N\",\"\",IF($Q357=\"-\",\"-\",IF(AND($Q357=\"Y\",'Enrollment Form'!$AS364=\"No\"),\"-\",IF(AND($Q357=\"Y\",'Enrollment Form'!$AS364=\"Yes\",'Enrollment Form'!$AT364<>\"\"),\"Y\",\"N\"))))","v":""},{"$f":"IF($B357=\"N\",\"\",IF(OR('Enrollment Form'!$B364<>\"Subscriber\",'Enrollment Form'!$C364=\"ROC\"),\"-\",IF(AND('Enrollment Form'!$B364=\"Subscriber\",'Enrollment Form'!$C364=\"Enroll\",'Enrollment Form'!$CV364<>\"\"),\"Y\",\"N\")))","v":""},{"$f":"IF($B357=\"N\",\"\",IF($S357=\"-\",\"-\",IF(AND($S357=\"Y\",'Enrollment Form'!$CV364=\"No\"),\"-\",IF(AND($S357=\"Y\",'Enrollment Form'!$CV364=\"Yes\",'Enrollment Form'!$CW364<>\"\"),\"Y\",\"N\"))))","v":""},{"$f":"IF(OR('Enrollment Form'!$AY364=\"Yes\",'Enrollment Form'!$AY364=\"\"),\"-\",IF(OR(AND('Enrollment Form'!$AY364=\"No\",ISERROR(FIND(\"HMO\",VLOOKUP('Enrollment Form'!G364,'Enrollment Form'!H$11:J$1000,3,FALSE),1))=FALSE,COUNTA('Enrollment Form'!$AZ364:$BC364)=4),AND('Enrollment Form'!$AY364=\"No\",ISERROR(FIND(\"HMO\",VLOOKUP('Enrollment Form'!G364,'Enrollment Form'!H$11:J$1000,3,FALSE),1))=FALSE,COUNTA('Enrollment Form'!$BT364:$BW364)=4)),\"Y\",\"N\"))","v":"-"},{"$f":"IF($B357=\"N\",\"\",IF('Enrollment Form'!$B364=\"Subscriber\",\"-\",IF(COUNTA('Enrollment Form'!$BL364,'Enrollment Form'!$BN364)=2,\"Y\",\"N\")))","v":""},{"$f":"IF($B357=\"N\",\"\",IF(OR('Enrollment Form'!$AX364=\"\",'Enrollment Form'!$AX364=\"No\"),\"-\",IF(AND('Enrollment Form'!$AX364=\"Yes\",COUNTA('Enrollment Form'!$CR364)=1),\"Y\",\"N\")))","v":""},{"$f":"IF(OR('Enrollment Form'!$CR364=\"\",'Enrollment Form'!$CR364=\"No\"),\"-\",IF(COUNTA('Enrollment Form'!$CT364:$CU364)=2,\"Y\",\"N\"))","v":"-"},{"$f":"IF($B357=\"N\",\"\",IF(COUNTIF('Enrollment Form'!$DG364:$DP364,\"Other\")=COUNTA('Enrollment Form'!$DK364,'Enrollment Form'!$DH364,'Enrollment Form'!$DN364,'Enrollment Form'!$DQ364),\"Y\",\"N\"))","v":""},{"$f":"IF($B357=\"N\",\"\",IF(OR('Enrollment Form'!B364<>\"Subscriber\",'Enrollment Form'!C364=\"ROC\",COUNTIF('Enrollment Form'!AV364:AW364,\"Yes\")>=1),\"-\",IF(AND('Enrollment Form'!C364=\"Enroll\",COUNTIF('Enrollment Form'!AV364:AW364,\"No\")=2,'Enrollment Form'!AX364=\"\"),\"N\",\"Y\")))","v":""},{"$f":"IF(OR(B357=\"N\",'Enrollment Form'!B364<>\"Subscriber\",'Enrollment Form'!C364=\"ROC\",'Enrollment Form'!O364<>\"Multiple of Salary\"),\"-\",IF(COUNTA('Enrollment Form'!T364:U364)<2,\"N\",\"Y\"))","v":"-"},{"$f":"IF(B357=\"N\",\"\",IF(OR('Enrollment Form'!C364=\"ROC\",'Enrollment Form'!B364<>\"Subscriber\",'Enrollment Form'!O364=\"Waive\",'Enrollment Form'!O364=\"\"),\"-\",IF('Enrollment Form'!P364=\"\",\"N\",\"Y\")))","v":""},{"$f":"IF($B357=\"N\",\"\",IF(AND('Enrollment Form'!$C364=\"ROC\",'Enrollment Form'!$DR364<>\"\"),\"Y\",IF(AND('Enrollment Form'!$C364=\"ROC\",'Enrollment Form'!$DR364=\"\"),\"N\",IF(AND('Enrollment Form'!$C364=\"Enroll\",'Enrollment Form'!$B364=\"Subscriber\",'Enrollment Form'!$CX364=\"No\",'Enrollment Form'!$DR364=\"\"),\"N\",IF(AND('Enrollment Form'!$C364=\"Enroll\",'Enrollment Form'!$B364=\"Subscriber\",'Enrollment Form'!$CX364=\"Yes\"),\"-\",\"Y\")))))","v":""},{"$f":"IF($B357=\"N\",\"\",IF(AND('Enrollment Form'!$C364=\"ROC\",'Enrollment Form'!$DS364<>\"\"),\"Y\",IF(AND('Enrollment Form'!$C364=\"ROC\",'Enrollment Form'!$DS364=\"\"),\"N\",IF(AND('Enrollment Form'!$C364=\"Enroll\",'Enrollment Form'!$B364=\"Subscriber\",'Enrollment Form'!$CX364=\"No\",'Enrollment Form'!$DS364=\"\"),\"N\",IF(AND('Enrollment Form'!$C364=\"Enroll\",'Enrollment Form'!$B364=\"Subscriber\",'Enrollment Form'!$CX364=\"Yes\"),\"-\",\"Y\")))))","v":""},{"$f":"IF('Enrollment Form'!AH364=\"\",\"\",IF(ISERROR(SEARCH(\".\",'Enrollment Form'!AH364,SEARCH(\"@\",'Enrollment Form'!AH364))),\"N\",\"Y\"))","v":""},{"$f":"IF(OR($B357=\"N\",'Enrollment Form'!$G364=\"\"),\"\",IF('Enrollment Form'!$B364<>\"Subscriber\",\"-\",IF(COUNTIF('Enrollment Form'!$AV364:$AW364,\"Yes\")=2,\"N\",\"Y\")))","v":""},{"$f":"IF(OR('Enrollment Form'!$CJ364=\"\",'Enrollment Form'!$CJ364=\"No\"),\"-\",IF(AND('Enrollment Form'!$CJ364=\"Yes\",'Enrollment Form'!$CK364=\"\"),\"N\",\"Y\"))","v":"-"},{"$f":"IF(OR('Enrollment Form'!$CL364=\"\",'Enrollment Form'!$CL364=\"No\"),\"-\",IF(AND('Enrollment Form'!$CL364=\"Yes\",'Enrollment Form'!$CM364=\"\"),\"N\",\"Y\"))","v":"-"},{"$f":"IF(OR('Enrollment Form'!$CN364=\"\",'Enrollment Form'!$CN364=\"No\"),\"-\",IF(AND('Enrollment Form'!$CN364=\"Yes\",'Enrollment Form'!$CO364=\"\"),\"N\",\"Y\"))","v":"-"},{"$f":"IF(OR('Enrollment Form'!$CN364=\"\",'Enrollment Form'!$CN364=\"No\"),\"-\",IF(AND('Enrollment Form'!$CN364=\"Yes\",'Enrollment Form'!$CP364=\"\"),\"N\",\"Y\"))","v":"-"},{"$f":"IF('Enrollment Form'!B364<>\"Subscriber\",\"-\",IF(AND('Enrollment Form'!B364=\"Subscriber\",'Enrollment Form'!C364=\"Enroll\",'Enrollment Form'!AA364=\"\"),\"N\",\"Y\"))","v":"-"},{"$f":"IF(OR('Enrollment Form'!B364=\"Subscriber\",'Enrollment Form'!B364=\"\"),\"-\",IF('Enrollment Form'!BP364=\"\",\"N\",\"Y\"))","v":"-"},{"$f":"IF('Enrollment Form'!B364<>\"Subscriber\",\"-\",IF(AND('Enrollment Form'!B364=\"Subscriber\",'Enrollment Form'!G364=\"\"),\"N\",\"Y\"))","v":"-"},{"$f":"IF('Enrollment Form'!A364=\"\",\"\",IF('Enrollment Form'!B364=\"Subscriber\",\"-\",IF(AND('Enrollment Form'!B364<>\"Subscriber\",'Enrollment Form'!G364='Enrollment Form'!H364),\"N\",\"Y\")))","v":""},0]
[365,{"$f":"IF('Enrollment Form'!$A365<>\"\",\"Y\",\"N\")","v":"N"},{"$f":"IF(AND('Enrollment Form'!$B365=\"\",'Enrollment Form'!$C365<>\"\"),\"N\",IF($B358=\"N\",\"\",\"Y\"))","v":""},{"$f":"IF(OR($B358=\"N\",'Enrollment Form'!G365=\"\"),\"\",IF('Enrollment Form'!$B365<>\"Subscriber\",\"\",IF('Enrollment Form'!$G365='Enrollment Form'!$H365,\"Y\",\"N\")))","v":""},{"$f":"IF($B358=\"N\",\"\",IF(AND(COUNTIFS('Enrollment Form'!$H$11:$H$1000,'Enrollment Form'!$H365,'Enrollment Form'!$B$11:$B$1000,'Enrollment Form'!$B365)>1,'Enrollment Form'!$H365<>\"\"),\"N\",\"Y\"))","v":""},{"$f":"IF($B358=\"N\",\"\",IF(LEN('Enrollment Form'!$Y365)=0,\"\",IF(LEN('Enrollment Form'!$Y365)<>5,\"N\",\"Y\")))","v":""},{"$f":"IF($B358=\"N\",\"\",IF(LEN('Enrollment Form'!$AD365=0),\"\",IF(LEN('Enrollment Form'!$AD365)<>5,\"N\",\"Y\")))","v":""},{"$f":"IF($B358=\"N\",\"\",IF(LEN('Enrollment Form'!$BS365=0),\"\",IF(LEN('Enrollment Form'!$BS365)<>5,\"N\",\"Y\")))","v":""},{"$f":"IF($B358=\"N\",\"\",IF(LEN('Enrollment Form'!$AE365)=0,\"\",IF(LEN('Enrollment Form'!$AE365)<>10,\"N\",\"Y\")))","v":""},{"$f":"IF($B358=\"N\",\"\",IF(LEN('Enrollment Form'!$AF365)=0,\"\",IF(LEN('Enrollment Form'!$AF365)<>10,\"N\",\"Y\")))","v":""},{"$f":"IF('Enrollment Form'!$O365<>\"Graded\",\"-\",IF(AND('Enrollment Form'!$O365=\"Graded\",'Enrollment Form'!$AR365<>\"\"),\"Y\",\"N\"))","v":"-"},{"$f":"IF($B358=\"N\",\"\",IF(OR('Enrollment Form'!$B365<>\"Subscriber\",'Enrollment Form'!$C365=\"ROC\"),\"-\",IF(AND('Enrollment Form'!$B365=\"Subscriber\",'Enrollment Form'!$C365=\"Enroll\",'Enrollment Form'!$AJ365<>\"\"),\"Y\",\"N\")))","v":""},{"$f":"IF($B358=\"N\",\"\",IF(OR('Enrollment Form'!$B365<>\"Subscriber\",'Enrollment Form'!$C365=\"ROC\"),\"-\",IF(AND('Enrollment Form'!$B365=\"Subscriber\",'Enrollment Form'!$C365=\"Enroll\",'Enrollment Form'!$AK365<>\"\"),\"Y\",\"N\")))","v":""},{"$f":"IF($B358=\"N\",\"\",IF(OR('Enrollment Form'!$B365<>\"Subscriber\",'Enrollment Form'!$C365=\"ROC\"),\"-\",IF(AND('Enrollment Form'!$B365=\"Subscriber\",'Enrollment Form'!$C365=\"Enroll\",'Enrollment Form'!$AL365<>\"\"),\"Y\",\"N\")))","v":""},{"$f":"IF($B358=\"N\",\"\",IF(OR('Enrollment Form'!$B365<>\"Subscriber\",'Enrollment Form'!$C365=\"ROC\"),\"-\",IF(AND('Enrollment Form'!$B365=\"Subscriber\",'Enrollment Form'!$C365=\"Enroll\",'Enrollment Form'!$AP365<>\"\"),\"Y\",\"N\")))","v":""},{"$f":"IF($B358=\"N\",\"\",IF(OR('Enrollment Form'!$B365<>\"Subscriber\",'Enrollment Form'!$C365=\"ROC\"),\"-\",IF(AND('Enrollment Form'!$B365=\"Subscriber\",'Enrollment Form'!$C365=\"Enroll\",'Enrollment Form'!$AQ365<>\"\"),\"Y\",\"N\")))","v":""},{"$f":"IF($B358=\"N\",\"\",IF(OR('Enrollment Form'!$B365<>\"Subscriber\",'Enrollment Form'!$C365=\"ROC\"),\"-\",IF(AND('Enrollment Form'!$B365=\"Subscriber\",'Enrollment Form'!$C365=\"Enroll\",'Enrollment Form'!$AS365<>\"\"),\"Y\",\"N\")))","v":""},{"$f":"IF($B358=\"N\",\"\",IF($Q358=\"-\",\"-\",IF(AND($Q358=\"Y\",'Enrollment Form'!$AS365=\"No\"),\"-\",IF(AND($Q358=\"Y\",'Enrollment Form'!$AS365=\"Yes\",'Enrollment Form'!$AT365<>\"\"),\"Y\",\"N\"))))","v":""},{"$f":"IF($B358=\"N\",\"\",IF(OR('Enrollment Form'!$B365<>\"Subscriber\",'Enrollment Form'!$C365=\"ROC\"),\"-\",IF(AND('Enrollment Form'!$B365=\"Subscriber\",'Enrollment Form'!$C365=\"Enroll\",'Enrollment Form'!$CV365<>\"\"),\"Y\",\"N\")))","v":""},{"$f":"IF($B358=\"N\",\"\",IF($S358=\"-\",\"-\",IF(AND($S358=\"Y\",'Enrollment Form'!$CV365=\"No\"),\"-\",IF(AND($S358=\"Y\",'Enrollment Form'!$CV365=\"Yes\",'Enrollment Form'!$CW365<>\"\"),\"Y\",\"N\"))))","v":""},{"$f":"IF(OR('Enrollment Form'!$AY365=\"Yes\",'Enrollment Form'!$AY365=\"\"),\"-\",IF(OR(AND('Enrollment Form'!$AY365=\"No\",ISERROR(FIND(\"HMO\",VLOOKUP('Enrollment Form'!G365,'Enrollment Form'!H$11:J$1000,3,FALSE),1))=FALSE,COUNTA('Enrollment Form'!$AZ365:$BC365)=4),AND('Enrollment Form'!$AY365=\"No\",ISERROR(FIND(\"HMO\",VLOOKUP('Enrollment Form'!G365,'Enrollment Form'!H$11:J$1000,3,FALSE),1))=FALSE,COUNTA('Enrollment Form'!$BT365:$BW365)=4)),\"Y\",\"N\"))","v":"-"},{"$f":"IF($B358=\"N\",\"\",IF('Enrollment Form'!$B365=\"Subscriber\",\"-\",IF(COUNTA('Enrollment Form'!$BL365,'Enrollment Form'!$BN365)=2,\"Y\",\"N\")))","v":""},{"$f":"IF($B358=\"N\",\"\",IF(OR('Enrollment Form'!$AX365=\"\",'Enrollment Form'!$AX365=\"No\"),\"-\",IF(AND('Enrollment Form'!$AX365=\"Yes\",COUNTA('Enrollment Form'!$CR365)=1),\"Y\",\"N\")))","v":""},{"$f":"IF(OR('Enrollment Form'!$CR365=\"\",'Enrollment Form'!$CR365=\"No\"),\"-\",IF(COUNTA('Enrollment Form'!$CT365:$CU365)=2,\"Y\",\"N\"))","v":"-"},{"$f":"IF($B358=\"N\",\"\",IF(COUNTIF('Enrollment Form'!$DG365:$DP365,\"Other\")=COUNTA('Enrollment Form'!$DK365,'Enrollment Form'!$DH365,'Enrollment Form'!$DN365,'Enrollment Form'!$DQ365),\"Y\",\"N\"))","v":""},{"$f":"IF($B358=\"N\",\"\",IF(OR('Enrollment Form'!B365<>\"Subscriber\",'Enrollment Form'!C365=\"ROC\",COUNTIF('Enrollment Form'!AV365:AW365,\"Yes\")>=1),\"-\",IF(AND('Enrollment Form'!C365=\"Enroll\",COUNTIF('Enrollment Form'!AV365:AW365,\"No\")=2,'Enrollment Form'!AX365=\"\"),\"N\",\"Y\")))","v":""},{"$f":"IF(OR(B358=\"N\",'Enrollment Form'!B365<>\"Subscriber\",'Enrollment Form'!C365=\"ROC\",'Enrollment Form'!O365<>\"Multiple of Salary\"),\"-\",IF(COUNTA('Enrollment Form'!T365:U365)<2,\"N\",\"Y\"))","v":"-"},{"$f":"IF(B358=\"N\",\"\",IF(OR('Enrollment Form'!C365=\"ROC\",'Enrollment Form'!B365<>\"Subscriber\",'Enrollment Form'!O365=\"Waive\",'Enrollment Form'!O365=\"\"),\"-\",IF('Enrollment Form'!P365=\"\",\"N\",\"Y\")))","v":""},{"$f":"IF($B358=\"N\",\"\",IF(AND('Enrollment Form'!$C365=\"ROC\",'Enrollment Form'!$DR365<>\"\"),\"Y\",IF(AND('Enrollment Form'!$C365=\"ROC\",'Enrollment Form'!$DR365=\"\"),\"N\",IF(AND('Enrollment Form'!$C365=\"Enroll\",'Enrollment Form'!$B365=\"Subscriber\",'Enrollment Form'!$CX365=\"No\",'Enrollment Form'!$DR365=\"\"),\"N\",IF(AND('Enrollment Form'!$C365=\"Enroll\",'Enrollment Form'!$B365=\"Subscriber\",'Enrollment Form'!$CX365=\"Yes\"),\"-\",\"Y\")))))","v":""},{"$f":"IF($B358=\"N\",\"\",IF(AND('Enrollment Form'!$C365=\"ROC\",'Enrollment Form'!$DS365<>\"\"),\"Y\",IF(AND('Enrollment Form'!$C365=\"ROC\",'Enrollment Form'!$DS365=\"\"),\"N\",IF(AND('Enrollment Form'!$C365=\"Enroll\",'Enrollment Form'!$B365=\"Subscriber\",'Enrollment Form'!$CX365=\"No\",'Enrollment Form'!$DS365=\"\"),\"N\",IF(AND('Enrollment Form'!$C365=\"Enroll\",'Enrollment Form'!$B365=\"Subscriber\",'Enrollment Form'!$CX365=\"Yes\"),\"-\",\"Y\")))))","v":""},{"$f":"IF('Enrollment Form'!AH365=\"\",\"\",IF(ISERROR(SEARCH(\".\",'Enrollment Form'!AH365,SEARCH(\"@\",'Enrollment Form'!AH365))),\"N\",\"Y\"))","v":""},{"$f":"IF(OR($B358=\"N\",'Enrollment Form'!$G365=\"\"),\"\",IF('Enrollment Form'!$B365<>\"Subscriber\",\"-\",IF(COUNTIF('Enrollment Form'!$AV365:$AW365,\"Yes\")=2,\"N\",\"Y\")))","v":""},{"$f":"IF(OR('Enrollment Form'!$CJ365=\"\",'Enrollment Form'!$CJ365=\"No\"),\"-\",IF(AND('Enrollment Form'!$CJ365=\"Yes\",'Enrollment Form'!$CK365=\"\"),\"N\",\"Y\"))","v":"-"},{"$f":"IF(OR('Enrollment Form'!$CL365=\"\",'Enrollment Form'!$CL365=\"No\"),\"-\",IF(AND('Enrollment Form'!$CL365=\"Yes\",'Enrollment Form'!$CM365=\"\"),\"N\",\"Y\"))","v":"-"},{"$f":"IF(OR('Enrollment Form'!$CN365=\"\",'Enrollment Form'!$CN365=\"No\"),\"-\",IF(AND('Enrollment Form'!$CN365=\"Yes\",'Enrollment Form'!$CO365=\"\"),\"N\",\"Y\"))","v":"-"},{"$f":"IF(OR('Enrollment Form'!$CN365=\"\",'Enrollment Form'!$CN365=\"No\"),\"-\",IF(AND('Enrollment Form'!$CN365=\"Yes\",'Enrollment Form'!$CP365=\"\"),\"N\",\"Y\"))","v":"-"},{"$f":"IF('Enrollment Form'!B365<>\"Subscriber\",\"-\",IF(AND('Enrollment Form'!B365=\"Subscriber\",'Enrollment Form'!C365=\"Enroll\",'Enrollment Form'!AA365=\"\"),\"N\",\"Y\"))","v":"-"},{"$f":"IF(OR('Enrollment Form'!B365=\"Subscriber\",'Enrollment Form'!B365=\"\"),\"-\",IF('Enrollment Form'!BP365=\"\",\"N\",\"Y\"))","v":"-"},{"$f":"IF('Enrollment Form'!B365<>\"Subscriber\",\"-\",IF(AND('Enrollment Form'!B365=\"Subscriber\",'Enrollment Form'!G365=\"\"),\"N\",\"Y\"))","v":"-"},{"$f":"IF('Enrollment Form'!A365=\"\",\"\",IF('Enrollment Form'!B365=\"Subscriber\",\"-\",IF(AND('Enrollment Form'!B365<>\"Subscriber\",'Enrollment Form'!G365='Enrollment Form'!H365),\"N\",\"Y\")))","v":""},0]
[366,{"$f":"IF('Enrollment Form'!$A366<>\"\",\"Y\",\"N\")","v":"N"},{"$f":"IF(AND('Enrollment Form'!$B366=\"\",'Enrollment Form'!$C366<>\"\"),\"N\",IF($B359=\"N\",\"\",\"Y\"))","v":""},{"$f":"IF(OR($B359=\"N\",'Enrollment Form'!G366=\"\"),\"\",IF('Enrollment Form'!$B366<>\"Subscriber\",\"\",IF('Enrollment Form'!$G366='Enrollment Form'!$H366,\"Y\",\"N\")))","v":""},{"$f":"IF($B359=\"N\",\"\",IF(AND(COUNTIFS('Enrollment Form'!$H$11:$H$1000,'Enrollment Form'!$H366,'Enrollment Form'!$B$11:$B$1000,'Enrollment Form'!$B366)>1,'Enrollment Form'!$H366<>\"\"),\"N\",\"Y\"))","v":""},{"$f":"IF($B359=\"N\",\"\",IF(LEN('Enrollment Form'!$Y366)=0,\"\",IF(LEN('Enrollment Form'!$Y366)<>5,\"N\",\"Y\")))","v":""},{"$f":"IF($B359=\"N\",\"\",IF(LEN('Enrollment Form'!$AD366=0),\"\",IF(LEN('Enrollment Form'!$AD366)<>5,\"N\",\"Y\")))","v":""},{"$f":"IF($B359=\"N\",\"\",IF(LEN('Enrollment Form'!$BS366=0),\"\",IF(LEN('Enrollment Form'!$BS366)<>5,\"N\",\"Y\")))","v":""},{"$f":"IF($B359=\"N\",\"\",IF(LEN('Enrollment Form'!$AE366)=0,\"\",IF(LEN('Enrollment Form'!$AE366)<>10,\"N\",\"Y\")))","v":""},{"$f":"IF($B359=\"N\",\"\",IF(LEN('Enrollment Form'!$AF366)=0,\"\",IF(LEN('Enrollment Form'!$AF366)<>10,\"N\",\"Y\")))","v":""},{"$f":"IF('Enrollment Form'!$O366<>\"Graded\",\"-\",IF(AND('Enrollment Form'!$O366=\"Graded\",'Enrollment Form'!$AR366<>\"\"),\"Y\",\"N\"))","v":"-"},{"$f":"IF($B359=\"N\",\"\",IF(OR('Enrollment Form'!$B366<>\"Subscriber\",'Enrollment Form'!$C366=\"ROC\"),\"-\",IF(AND('Enrollment Form'!$B366=\"Subscriber\",'Enrollment Form'!$C366=\"Enroll\",'Enrollment Form'!$AJ366<>\"\"),\"Y\",\"N\")))","v":""},{"$f":"IF($B359=\"N\",\"\",IF(OR('Enrollment Form'!$B366<>\"Subscriber\",'Enrollment Form'!$C366=\"ROC\"),\"-\",IF(AND('Enrollment Form'!$B366=\"Subscriber\",'Enrollment Form'!$C366=\"Enroll\",'Enrollment Form'!$AK366<>\"\"),\"Y\",\"N\")))","v":""},{"$f":"IF($B359=\"N\",\"\",IF(OR('Enrollment Form'!$B366<>\"Subscriber\",'Enrollment Form'!$C366=\"ROC\"),\"-\",IF(AND('Enrollment Form'!$B366=\"Subscriber\",'Enrollment Form'!$C366=\"Enroll\",'Enrollment Form'!$AL366<>\"\"),\"Y\",\"N\")))","v":""},{"$f":"IF($B359=\"N\",\"\",IF(OR('Enrollment Form'!$B366<>\"Subscriber\",'Enrollment Form'!$C366=\"ROC\"),\"-\",IF(AND('Enrollment Form'!$B366=\"Subscriber\",'Enrollment Form'!$C366=\"Enroll\",'Enrollment Form'!$AP366<>\"\"),\"Y\",\"N\")))","v":""},{"$f":"IF($B359=\"N\",\"\",IF(OR('Enrollment Form'!$B366<>\"Subscriber\",'Enrollment Form'!$C366=\"ROC\"),\"-\",IF(AND('Enrollment Form'!$B366=\"Subscriber\",'Enrollment Form'!$C366=\"Enroll\",'Enrollment Form'!$AQ366<>\"\"),\"Y\",\"N\")))","v":""},{"$f":"IF($B359=\"N\",\"\",IF(OR('Enrollment Form'!$B366<>\"Subscriber\",'Enrollment Form'!$C366=\"ROC\"),\"-\",IF(AND('Enrollment Form'!$B366=\"Subscriber\",'Enrollment Form'!$C366=\"Enroll\",'Enrollment Form'!$AS366<>\"\"),\"Y\",\"N\")))","v":""},{"$f":"IF($B359=\"N\",\"\",IF($Q359=\"-\",\"-\",IF(AND($Q359=\"Y\",'Enrollment Form'!$AS366=\"No\"),\"-\",IF(AND($Q359=\"Y\",'Enrollment Form'!$AS366=\"Yes\",'Enrollment Form'!$AT366<>\"\"),\"Y\",\"N\"))))","v":""},{"$f":"IF($B359=\"N\",\"\",IF(OR('Enrollment Form'!$B366<>\"Subscriber\",'Enrollment Form'!$C366=\"ROC\"),\"-\",IF(AND('Enrollment Form'!$B366=\"Subscriber\",'Enrollment Form'!$C366=\"Enroll\",'Enrollment Form'!$CV366<>\"\"),\"Y\",\"N\")))","v":""},{"$f":"IF($B359=\"N\",\"\",IF($S359=\"-\",\"-\",IF(AND($S359=\"Y\",'Enrollment Form'!$CV366=\"No\"),\"-\",IF(AND($S359=\"Y\",'Enrollment Form'!$CV366=\"Yes\",'Enrollment Form'!$CW366<>\"\"),\"Y\",\"N\"))))","v":""},{"$f":"IF(OR('Enrollment Form'!$AY366=\"Yes\",'Enrollment Form'!$AY366=\"\"),\"-\",IF(OR(AND('Enrollment Form'!$AY366=\"No\",ISERROR(FIND(\"HMO\",VLOOKUP('Enrollment Form'!G366,'Enrollment Form'!H$11:J$1000,3,FALSE),1))=FALSE,COUNTA('Enrollment Form'!$AZ366:$BC366)=4),AND('Enrollment Form'!$AY366=\"No\",ISERROR(FIND(\"HMO\",VLOOKUP('Enrollment Form'!G366,'Enrollment Form'!H$11:J$1000,3,FALSE),1))=FALSE,COUNTA('Enrollment Form'!$BT366:$BW366)=4)),\"Y\",\"N\"))","v":"-"},{"$f":"IF($B359=\"N\",\"\",IF('Enrollment Form'!$B366=\"Subscriber\",\"-\",IF(COUNTA('Enrollment Form'!$BL366,'Enrollment Form'!$BN366)=2,\"Y\",\"N\")))","v":""},{"$f":"IF($B359=\"N\",\"\",IF(OR('Enrollment Form'!$AX366=\"\",'Enrollment Form'!$AX366=\"No\"),\"-\",IF(AND('Enrollment Form'!$AX366=\"Yes\",COUNTA('Enrollment Form'!$CR366)=1),\"Y\",\"N\")))","v":""},{"$f":"IF(OR('Enrollment Form'!$CR366=\"\",'Enrollment Form'!$CR366=\"No\"),\"-\",IF(COUNTA('Enrollment Form'!$CT366:$CU366)=2,\"Y\",\"N\"))","v":"-"},{"$f":"IF($B359=\"N\",\"\",IF(COUNTIF('Enrollment Form'!$DG366:$DP366,\"Other\")=COUNTA('Enrollment Form'!$DK366,'Enrollment Form'!$DH366,'Enrollment Form'!$DN366,'Enrollment Form'!$DQ366),\"Y\",\"N\"))","v":""},{"$f":"IF($B359=\"N\",\"\",IF(OR('Enrollment Form'!B366<>\"Subscriber\",'Enrollment Form'!C366=\"ROC\",COUNTIF('Enrollment Form'!AV366:AW366,\"Yes\")>=1),\"-\",IF(AND('Enrollment Form'!C366=\"Enroll\",COUNTIF('Enrollment Form'!AV366:AW366,\"No\")=2,'Enrollment Form'!AX366=\"\"),\"N\",\"Y\")))","v":""},{"$f":"IF(OR(B359=\"N\",'Enrollment Form'!B366<>\"Subscriber\",'Enrollment Form'!C366=\"ROC\",'Enrollment Form'!O366<>\"Multiple of Salary\"),\"-\",IF(COUNTA('Enrollment Form'!T366:U366)<2,\"N\",\"Y\"))","v":"-"},{"$f":"IF(B359=\"N\",\"\",IF(OR('Enrollment Form'!C366=\"ROC\",'Enrollment Form'!B366<>\"Subscriber\",'Enrollment Form'!O366=\"Waive\",'Enrollment Form'!O366=\"\"),\"-\",IF('Enrollment Form'!P366=\"\",\"N\",\"Y\")))","v":""},{"$f":"IF($B359=\"N\",\"\",IF(AND('Enrollment Form'!$C366=\"ROC\",'Enrollment Form'!$DR366<>\"\"),\"Y\",IF(AND('Enrollment Form'!$C366=\"ROC\",'Enrollment Form'!$DR366=\"\"),\"N\",IF(AND('Enrollment Form'!$C366=\"Enroll\",'Enrollment Form'!$B366=\"Subscriber\",'Enrollment Form'!$CX366=\"No\",'Enrollment Form'!$DR366=\"\"),\"N\",IF(AND('Enrollment Form'!$C366=\"Enroll\",'Enrollment Form'!$B366=\"Subscriber\",'Enrollment Form'!$CX366=\"Yes\"),\"-\",\"Y\")))))","v":""},{"$f":"IF($B359=\"N\",\"\",IF(AND('Enrollment Form'!$C366=\"ROC\",'Enrollment Form'!$DS366<>\"\"),\"Y\",IF(AND('Enrollment Form'!$C366=\"ROC\",'Enrollment Form'!$DS366=\"\"),\"N\",IF(AND('Enrollment Form'!$C366=\"Enroll\",'Enrollment Form'!$B366=\"Subscriber\",'Enrollment Form'!$CX366=\"No\",'Enrollment Form'!$DS366=\"\"),\"N\",IF(AND('Enrollment Form'!$C366=\"Enroll\",'Enrollment Form'!$B366=\"Subscriber\",'Enrollment Form'!$CX366=\"Yes\"),\"-\",\"Y\")))))","v":""},{"$f":"IF('Enrollment Form'!AH366=\"\",\"\",IF(ISERROR(SEARCH(\".\",'Enrollment Form'!AH366,SEARCH(\"@\",'Enrollment Form'!AH366))),\"N\",\"Y\"))","v":""},{"$f":"IF(OR($B359=\"N\",'Enrollment Form'!$G366=\"\"),\"\",IF('Enrollment Form'!$B366<>\"Subscriber\",\"-\",IF(COUNTIF('Enrollment Form'!$AV366:$AW366,\"Yes\")=2,\"N\",\"Y\")))","v":""},{"$f":"IF(OR('Enrollment Form'!$CJ366=\"\",'Enrollment Form'!$CJ366=\"No\"),\"-\",IF(AND('Enrollment Form'!$CJ366=\"Yes\",'Enrollment Form'!$CK366=\"\"),\"N\",\"Y\"))","v":"-"},{"$f":"IF(OR('Enrollment Form'!$CL366=\"\",'Enrollment Form'!$CL366=\"No\"),\"-\",IF(AND('Enrollment Form'!$CL366=\"Yes\",'Enrollment Form'!$CM366=\"\"),\"N\",\"Y\"))","v":"-"},{"$f":"IF(OR('Enrollment Form'!$CN366=\"\",'Enrollment Form'!$CN366=\"No\"),\"-\",IF(AND('Enrollment Form'!$CN366=\"Yes\",'Enrollment Form'!$CO366=\"\"),\"N\",\"Y\"))","v":"-"},{"$f":"IF(OR('Enrollment Form'!$CN366=\"\",'Enrollment Form'!$CN366=\"No\"),\"-\",IF(AND('Enrollment Form'!$CN366=\"Yes\",'Enrollment Form'!$CP366=\"\"),\"N\",\"Y\"))","v":"-"},{"$f":"IF('Enrollment Form'!B366<>\"Subscriber\",\"-\",IF(AND('Enrollment Form'!B366=\"Subscriber\",'Enrollment Form'!C366=\"Enroll\",'Enrollment Form'!AA366=\"\"),\"N\",\"Y\"))","v":"-"},{"$f":"IF(OR('Enrollment Form'!B366=\"Subscriber\",'Enrollment Form'!B366=\"\"),\"-\",IF('Enrollment Form'!BP366=\"\",\"N\",\"Y\"))","v":"-"},{"$f":"IF('Enrollment Form'!B366<>\"Subscriber\",\"-\",IF(AND('Enrollment Form'!B366=\"Subscriber\",'Enrollment Form'!G366=\"\"),\"N\",\"Y\"))","v":"-"},{"$f":"IF('Enrollment Form'!A366=\"\",\"\",IF('Enrollment Form'!B366=\"Subscriber\",\"-\",IF(AND('Enrollment Form'!B366<>\"Subscriber\",'Enrollment Form'!G366='Enrollment Form'!H366),\"N\",\"Y\")))","v":""},0]
[367,{"$f":"IF('Enrollment Form'!$A367<>\"\",\"Y\",\"N\")","v":"N"},{"$f":"IF(AND('Enrollment Form'!$B367=\"\",'Enrollment Form'!$C367<>\"\"),\"N\",IF($B360=\"N\",\"\",\"Y\"))","v":""},{"$f":"IF(OR($B360=\"N\",'Enrollment Form'!G367=\"\"),\"\",IF('Enrollment Form'!$B367<>\"Subscriber\",\"\",IF('Enrollment Form'!$G367='Enrollment Form'!$H367,\"Y\",\"N\")))","v":""},{"$f":"IF($B360=\"N\",\"\",IF(AND(COUNTIFS('Enrollment Form'!$H$11:$H$1000,'Enrollment Form'!$H367,'Enrollment Form'!$B$11:$B$1000,'Enrollment Form'!$B367)>1,'Enrollment Form'!$H367<>\"\"),\"N\",\"Y\"))","v":""},{"$f":"IF($B360=\"N\",\"\",IF(LEN('Enrollment Form'!$Y367)=0,\"\",IF(LEN('Enrollment Form'!$Y367)<>5,\"N\",\"Y\")))","v":""},{"$f":"IF($B360=\"N\",\"\",IF(LEN('Enrollment Form'!$AD367=0),\"\",IF(LEN('Enrollment Form'!$AD367)<>5,\"N\",\"Y\")))","v":""},{"$f":"IF($B360=\"N\",\"\",IF(LEN('Enrollment Form'!$BS367=0),\"\",IF(LEN('Enrollment Form'!$BS367)<>5,\"N\",\"Y\")))","v":""},{"$f":"IF($B360=\"N\",\"\",IF(LEN('Enrollment Form'!$AE367)=0,\"\",IF(LEN('Enrollment Form'!$AE367)<>10,\"N\",\"Y\")))","v":""},{"$f":"IF($B360=\"N\",\"\",IF(LEN('Enrollment Form'!$AF367)=0,\"\",IF(LEN('Enrollment Form'!$AF367)<>10,\"N\",\"Y\")))","v":""},{"$f":"IF('Enrollment Form'!$O367<>\"Graded\",\"-\",IF(AND('Enrollment Form'!$O367=\"Graded\",'Enrollment Form'!$AR367<>\"\"),\"Y\",\"N\"))","v":"-"},{"$f":"IF($B360=\"N\",\"\",IF(OR('Enrollment Form'!$B367<>\"Subscriber\",'Enrollment Form'!$C367=\"ROC\"),\"-\",IF(AND('Enrollment Form'!$B367=\"Subscriber\",'Enrollment Form'!$C367=\"Enroll\",'Enrollment Form'!$AJ367<>\"\"),\"Y\",\"N\")))","v":""},{"$f":"IF($B360=\"N\",\"\",IF(OR('Enrollment Form'!$B367<>\"Subscriber\",'Enrollment Form'!$C367=\"ROC\"),\"-\",IF(AND('Enrollment Form'!$B367=\"Subscriber\",'Enrollment Form'!$C367=\"Enroll\",'Enrollment Form'!$AK367<>\"\"),\"Y\",\"N\")))","v":""},{"$f":"IF($B360=\"N\",\"\",IF(OR('Enrollment Form'!$B367<>\"Subscriber\",'Enrollment Form'!$C367=\"ROC\"),\"-\",IF(AND('Enrollment Form'!$B367=\"Subscriber\",'Enrollment Form'!$C367=\"Enroll\",'Enrollment Form'!$AL367<>\"\"),\"Y\",\"N\")))","v":""},{"$f":"IF($B360=\"N\",\"\",IF(OR('Enrollment Form'!$B367<>\"Subscriber\",'Enrollment Form'!$C367=\"ROC\"),\"-\",IF(AND('Enrollment Form'!$B367=\"Subscriber\",'Enrollment Form'!$C367=\"Enroll\",'Enrollment Form'!$AP367<>\"\"),\"Y\",\"N\")))","v":""},{"$f":"IF($B360=\"N\",\"\",IF(OR('Enrollment Form'!$B367<>\"Subscriber\",'Enrollment Form'!$C367=\"ROC\"),\"-\",IF(AND('Enrollment Form'!$B367=\"Subscriber\",'Enrollment Form'!$C367=\"Enroll\",'Enrollment Form'!$AQ367<>\"\"),\"Y\",\"N\")))","v":""},{"$f":"IF($B360=\"N\",\"\",IF(OR('Enrollment Form'!$B367<>\"Subscriber\",'Enrollment Form'!$C367=\"ROC\"),\"-\",IF(AND('Enrollment Form'!$B367=\"Subscriber\",'Enrollment Form'!$C367=\"Enroll\",'Enrollment Form'!$AS367<>\"\"),\"Y\",\"N\")))","v":""},{"$f":"IF($B360=\"N\",\"\",IF($Q360=\"-\",\"-\",IF(AND($Q360=\"Y\",'Enrollment Form'!$AS367=\"No\"),\"-\",IF(AND($Q360=\"Y\",'Enrollment Form'!$AS367=\"Yes\",'Enrollment Form'!$AT367<>\"\"),\"Y\",\"N\"))))","v":""},{"$f":"IF($B360=\"N\",\"\",IF(OR('Enrollment Form'!$B367<>\"Subscriber\",'Enrollment Form'!$C367=\"ROC\"),\"-\",IF(AND('Enrollment Form'!$B367=\"Subscriber\",'Enrollment Form'!$C367=\"Enroll\",'Enrollment Form'!$CV367<>\"\"),\"Y\",\"N\")))","v":""},{"$f":"IF($B360=\"N\",\"\",IF($S360=\"-\",\"-\",IF(AND($S360=\"Y\",'Enrollment Form'!$CV367=\"No\"),\"-\",IF(AND($S360=\"Y\",'Enrollment Form'!$CV367=\"Yes\",'Enrollment Form'!$CW367<>\"\"),\"Y\",\"N\"))))","v":""},{"$f":"IF(OR('Enrollment Form'!$AY367=\"Yes\",'Enrollment Form'!$AY367=\"\"),\"-\",IF(OR(AND('Enrollment Form'!$AY367=\"No\",ISERROR(FIND(\"HMO\",VLOOKUP('Enrollment Form'!G367,'Enrollment Form'!H$11:J$1000,3,FALSE),1))=FALSE,COUNTA('Enrollment Form'!$AZ367:$BC367)=4),AND('Enrollment Form'!$AY367=\"No\",ISERROR(FIND(\"HMO\",VLOOKUP('Enrollment Form'!G367,'Enrollment Form'!H$11:J$1000,3,FALSE),1))=FALSE,COUNTA('Enrollment Form'!$BT367:$BW367)=4)),\"Y\",\"N\"))","v":"-"},{"$f":"IF($B360=\"N\",\"\",IF('Enrollment Form'!$B367=\"Subscriber\",\"-\",IF(COUNTA('Enrollment Form'!$BL367,'Enrollment Form'!$BN367)=2,\"Y\",\"N\")))","v":""},{"$f":"IF($B360=\"N\",\"\",IF(OR('Enrollment Form'!$AX367=\"\",'Enrollment Form'!$AX367=\"No\"),\"-\",IF(AND('Enrollment Form'!$AX367=\"Yes\",COUNTA('Enrollment Form'!$CR367)=1),\"Y\",\"N\")))","v":""},{"$f":"IF(OR('Enrollment Form'!$CR367=\"\",'Enrollment Form'!$CR367=\"No\"),\"-\",IF(COUNTA('Enrollment Form'!$CT367:$CU367)=2,\"Y\",\"N\"))","v":"-"},{"$f":"IF($B360=\"N\",\"\",IF(COUNTIF('Enrollment Form'!$DG367:$DP367,\"Other\")=COUNTA('Enrollment Form'!$DK367,'Enrollment Form'!$DH367,'Enrollment Form'!$DN367,'Enrollment Form'!$DQ367),\"Y\",\"N\"))","v":""},{"$f":"IF($B360=\"N\",\"\",IF(OR('Enrollment Form'!B367<>\"Subscriber\",'Enrollment Form'!C367=\"ROC\",COUNTIF('Enrollment Form'!AV367:AW367,\"Yes\")>=1),\"-\",IF(AND('Enrollment Form'!C367=\"Enroll\",COUNTIF('Enrollment Form'!AV367:AW367,\"No\")=2,'Enrollment Form'!AX367=\"\"),\"N\",\"Y\")))","v":""},{"$f":"IF(OR(B360=\"N\",'Enrollment Form'!B367<>\"Subscriber\",'Enrollment Form'!C367=\"ROC\",'Enrollment Form'!O367<>\"Multiple of Salary\"),\"-\",IF(COUNTA('Enrollment Form'!T367:U367)<2,\"N\",\"Y\"))","v":"-"},{"$f":"IF(B360=\"N\",\"\",IF(OR('Enrollment Form'!C367=\"ROC\",'Enrollment Form'!B367<>\"Subscriber\",'Enrollment Form'!O367=\"Waive\",'Enrollment Form'!O367=\"\"),\"-\",IF('Enrollment Form'!P367=\"\",\"N\",\"Y\")))","v":""},{"$f":"IF($B360=\"N\",\"\",IF(AND('Enrollment Form'!$C367=\"ROC\",'Enrollment Form'!$DR367<>\"\"),\"Y\",IF(AND('Enrollment Form'!$C367=\"ROC\",'Enrollment Form'!$DR367=\"\"),\"N\",IF(AND('Enrollment Form'!$C367=\"Enroll\",'Enrollment Form'!$B367=\"Subscriber\",'Enrollment Form'!$CX367=\"No\",'Enrollment Form'!$DR367=\"\"),\"N\",IF(AND('Enrollment Form'!$C367=\"Enroll\",'Enrollment Form'!$B367=\"Subscriber\",'Enrollment Form'!$CX367=\"Yes\"),\"-\",\"Y\")))))","v":""},{"$f":"IF($B360=\"N\",\"\",IF(AND('Enrollment Form'!$C367=\"ROC\",'Enrollment Form'!$DS367<>\"\"),\"Y\",IF(AND('Enrollment Form'!$C367=\"ROC\",'Enrollment Form'!$DS367=\"\"),\"N\",IF(AND('Enrollment Form'!$C367=\"Enroll\",'Enrollment Form'!$B367=\"Subscriber\",'Enrollment Form'!$CX367=\"No\",'Enrollment Form'!$DS367=\"\"),\"N\",IF(AND('Enrollment Form'!$C367=\"Enroll\",'Enrollment Form'!$B367=\"Subscriber\",'Enrollment Form'!$CX367=\"Yes\"),\"-\",\"Y\")))))","v":""},{"$f":"IF('Enrollment Form'!AH367=\"\",\"\",IF(ISERROR(SEARCH(\".\",'Enrollment Form'!AH367,SEARCH(\"@\",'Enrollment Form'!AH367))),\"N\",\"Y\"))","v":""},{"$f":"IF(OR($B360=\"N\",'Enrollment Form'!$G367=\"\"),\"\",IF('Enrollment Form'!$B367<>\"Subscriber\",\"-\",IF(COUNTIF('Enrollment Form'!$AV367:$AW367,\"Yes\")=2,\"N\",\"Y\")))","v":""},{"$f":"IF(OR('Enrollment Form'!$CJ367=\"\",'Enrollment Form'!$CJ367=\"No\"),\"-\",IF(AND('Enrollment Form'!$CJ367=\"Yes\",'Enrollment Form'!$CK367=\"\"),\"N\",\"Y\"))","v":"-"},{"$f":"IF(OR('Enrollment Form'!$CL367=\"\",'Enrollment Form'!$CL367=\"No\"),\"-\",IF(AND('Enrollment Form'!$CL367=\"Yes\",'Enrollment Form'!$CM367=\"\"),\"N\",\"Y\"))","v":"-"},{"$f":"IF(OR('Enrollment Form'!$CN367=\"\",'Enrollment Form'!$CN367=\"No\"),\"-\",IF(AND('Enrollment Form'!$CN367=\"Yes\",'Enrollment Form'!$CO367=\"\"),\"N\",\"Y\"))","v":"-"},{"$f":"IF(OR('Enrollment Form'!$CN367=\"\",'Enrollment Form'!$CN367=\"No\"),\"-\",IF(AND('Enrollment Form'!$CN367=\"Yes\",'Enrollment Form'!$CP367=\"\"),\"N\",\"Y\"))","v":"-"},{"$f":"IF('Enrollment Form'!B367<>\"Subscriber\",\"-\",IF(AND('Enrollment Form'!B367=\"Subscriber\",'Enrollment Form'!C367=\"Enroll\",'Enrollment Form'!AA367=\"\"),\"N\",\"Y\"))","v":"-"},{"$f":"IF(OR('Enrollment Form'!B367=\"Subscriber\",'Enrollment Form'!B367=\"\"),\"-\",IF('Enrollment Form'!BP367=\"\",\"N\",\"Y\"))","v":"-"},{"$f":"IF('Enrollment Form'!B367<>\"Subscriber\",\"-\",IF(AND('Enrollment Form'!B367=\"Subscriber\",'Enrollment Form'!G367=\"\"),\"N\",\"Y\"))","v":"-"},{"$f":"IF('Enrollment Form'!A367=\"\",\"\",IF('Enrollment Form'!B367=\"Subscriber\",\"-\",IF(AND('Enrollment Form'!B367<>\"Subscriber\",'Enrollment Form'!G367='Enrollment Form'!H367),\"N\",\"Y\")))","v":""},0]
[368,{"$f":"IF('Enrollment Form'!$A368<>\"\",\"Y\",\"N\")","v":"N"},{"$f":"IF(AND('Enrollment Form'!$B368=\"\",'Enrollment Form'!$C368<>\"\"),\"N\",IF($B361=\"N\",\"\",\"Y\"))","v":""},{"$f":"IF(OR($B361=\"N\",'Enrollment Form'!G368=\"\"),\"\",IF('Enrollment Form'!$B368<>\"Subscriber\",\"\",IF('Enrollment Form'!$G368='Enrollment Form'!$H368,\"Y\",\"N\")))","v":""},{"$f":"IF($B361=\"N\",\"\",IF(AND(COUNTIFS('Enrollment Form'!$H$11:$H$1000,'Enrollment Form'!$H368,'Enrollment Form'!$B$11:$B$1000,'Enrollment Form'!$B368)>1,'Enrollment Form'!$H368<>\"\"),\"N\",\"Y\"))","v":""},{"$f":"IF($B361=\"N\",\"\",IF(LEN('Enrollment Form'!$Y368)=0,\"\",IF(LEN('Enrollment Form'!$Y368)<>5,\"N\",\"Y\")))","v":""},{"$f":"IF($B361=\"N\",\"\",IF(LEN('Enrollment Form'!$AD368=0),\"\",IF(LEN('Enrollment Form'!$AD368)<>5,\"N\",\"Y\")))","v":""},{"$f":"IF($B361=\"N\",\"\",IF(LEN('Enrollment Form'!$BS368=0),\"\",IF(LEN('Enrollment Form'!$BS368)<>5,\"N\",\"Y\")))","v":""},{"$f":"IF($B361=\"N\",\"\",IF(LEN('Enrollment Form'!$AE368)=0,\"\",IF(LEN('Enrollment Form'!$AE368)<>10,\"N\",\"Y\")))","v":""},{"$f":"IF($B361=\"N\",\"\",IF(LEN('Enrollment Form'!$AF368)=0,\"\",IF(LEN('Enrollment Form'!$AF368)<>10,\"N\",\"Y\")))","v":""},{"$f":"IF('Enrollment Form'!$O368<>\"Graded\",\"-\",IF(AND('Enrollment Form'!$O368=\"Graded\",'Enrollment Form'!$AR368<>\"\"),\"Y\",\"N\"))","v":"-"},{"$f":"IF($B361=\"N\",\"\",IF(OR('Enrollment Form'!$B368<>\"Subscriber\",'Enrollment Form'!$C368=\"ROC\"),\"-\",IF(AND('Enrollment Form'!$B368=\"Subscriber\",'Enrollment Form'!$C368=\"Enroll\",'Enrollment Form'!$AJ368<>\"\"),\"Y\",\"N\")))","v":""},{"$f":"IF($B361=\"N\",\"\",IF(OR('Enrollment Form'!$B368<>\"Subscriber\",'Enrollment Form'!$C368=\"ROC\"),\"-\",IF(AND('Enrollment Form'!$B368=\"Subscriber\",'Enrollment Form'!$C368=\"Enroll\",'Enrollment Form'!$AK368<>\"\"),\"Y\",\"N\")))","v":""},{"$f":"IF($B361=\"N\",\"\",IF(OR('Enrollment Form'!$B368<>\"Subscriber\",'Enrollment Form'!$C368=\"ROC\"),\"-\",IF(AND('Enrollment Form'!$B368=\"Subscriber\",'Enrollment Form'!$C368=\"Enroll\",'Enrollment Form'!$AL368<>\"\"),\"Y\",\"N\")))","v":""},{"$f":"IF($B361=\"N\",\"\",IF(OR('Enrollment Form'!$B368<>\"Subscriber\",'Enrollment Form'!$C368=\"ROC\"),\"-\",IF(AND('Enrollment Form'!$B368=\"Subscriber\",'Enrollment Form'!$C368=\"Enroll\",'Enrollment Form'!$AP368<>\"\"),\"Y\",\"N\")))","v":""},{"$f":"IF($B361=\"N\",\"\",IF(OR('Enrollment Form'!$B368<>\"Subscriber\",'Enrollment Form'!$C368=\"ROC\"),\"-\",IF(AND('Enrollment Form'!$B368=\"Subscriber\",'Enrollment Form'!$C368=\"Enroll\",'Enrollment Form'!$AQ368<>\"\"),\"Y\",\"N\")))","v":""},{"$f":"IF($B361=\"N\",\"\",IF(OR('Enrollment Form'!$B368<>\"Subscriber\",'Enrollment Form'!$C368=\"ROC\"),\"-\",IF(AND('Enrollment Form'!$B368=\"Subscriber\",'Enrollment Form'!$C368=\"Enroll\",'Enrollment Form'!$AS368<>\"\"),\"Y\",\"N\")))","v":""},{"$f":"IF($B361=\"N\",\"\",IF($Q361=\"-\",\"-\",IF(AND($Q361=\"Y\",'Enrollment Form'!$AS368=\"No\"),\"-\",IF(AND($Q361=\"Y\",'Enrollment Form'!$AS368=\"Yes\",'Enrollment Form'!$AT368<>\"\"),\"Y\",\"N\"))))","v":""},{"$f":"IF($B361=\"N\",\"\",IF(OR('Enrollment Form'!$B368<>\"Subscriber\",'Enrollment Form'!$C368=\"ROC\"),\"-\",IF(AND('Enrollment Form'!$B368=\"Subscriber\",'Enrollment Form'!$C368=\"Enroll\",'Enrollment Form'!$CV368<>\"\"),\"Y\",\"N\")))","v":""},{"$f":"IF($B361=\"N\",\"\",IF($S361=\"-\",\"-\",IF(AND($S361=\"Y\",'Enrollment Form'!$CV368=\"No\"),\"-\",IF(AND($S361=\"Y\",'Enrollment Form'!$CV368=\"Yes\",'Enrollment Form'!$CW368<>\"\"),\"Y\",\"N\"))))","v":""},{"$f":"IF(OR('Enrollment Form'!$AY368=\"Yes\",'Enrollment Form'!$AY368=\"\"),\"-\",IF(OR(AND('Enrollment Form'!$AY368=\"No\",ISERROR(FIND(\"HMO\",VLOOKUP('Enrollment Form'!G368,'Enrollment Form'!H$11:J$1000,3,FALSE),1))=FALSE,COUNTA('Enrollment Form'!$AZ368:$BC368)=4),AND('Enrollment Form'!$AY368=\"No\",ISERROR(FIND(\"HMO\",VLOOKUP('Enrollment Form'!G368,'Enrollment Form'!H$11:J$1000,3,FALSE),1))=FALSE,COUNTA('Enrollment Form'!$BT368:$BW368)=4)),\"Y\",\"N\"))","v":"-"},{"$f":"IF($B361=\"N\",\"\",IF('Enrollment Form'!$B368=\"Subscriber\",\"-\",IF(COUNTA('Enrollment Form'!$BL368,'Enrollment Form'!$BN368)=2,\"Y\",\"N\")))","v":""},{"$f":"IF($B361=\"N\",\"\",IF(OR('Enrollment Form'!$AX368=\"\",'Enrollment Form'!$AX368=\"No\"),\"-\",IF(AND('Enrollment Form'!$AX368=\"Yes\",COUNTA('Enrollment Form'!$CR368)=1),\"Y\",\"N\")))","v":""},{"$f":"IF(OR('Enrollment Form'!$CR368=\"\",'Enrollment Form'!$CR368=\"No\"),\"-\",IF(COUNTA('Enrollment Form'!$CT368:$CU368)=2,\"Y\",\"N\"))","v":"-"},{"$f":"IF($B361=\"N\",\"\",IF(COUNTIF('Enrollment Form'!$DG368:$DP368,\"Other\")=COUNTA('Enrollment Form'!$DK368,'Enrollment Form'!$DH368,'Enrollment Form'!$DN368,'Enrollment Form'!$DQ368),\"Y\",\"N\"))","v":""},{"$f":"IF($B361=\"N\",\"\",IF(OR('Enrollment Form'!B368<>\"Subscriber\",'Enrollment Form'!C368=\"ROC\",COUNTIF('Enrollment Form'!AV368:AW368,\"Yes\")>=1),\"-\",IF(AND('Enrollment Form'!C368=\"Enroll\",COUNTIF('Enrollment Form'!AV368:AW368,\"No\")=2,'Enrollment Form'!AX368=\"\"),\"N\",\"Y\")))","v":""},{"$f":"IF(OR(B361=\"N\",'Enrollment Form'!B368<>\"Subscriber\",'Enrollment Form'!C368=\"ROC\",'Enrollment Form'!O368<>\"Multiple of Salary\"),\"-\",IF(COUNTA('Enrollment Form'!T368:U368)<2,\"N\",\"Y\"))","v":"-"},{"$f":"IF(B361=\"N\",\"\",IF(OR('Enrollment Form'!C368=\"ROC\",'Enrollment Form'!B368<>\"Subscriber\",'Enrollment Form'!O368=\"Waive\",'Enrollment Form'!O368=\"\"),\"-\",IF('Enrollment Form'!P368=\"\",\"N\",\"Y\")))","v":""},{"$f":"IF($B361=\"N\",\"\",IF(AND('Enrollment Form'!$C368=\"ROC\",'Enrollment Form'!$DR368<>\"\"),\"Y\",IF(AND('Enrollment Form'!$C368=\"ROC\",'Enrollment Form'!$DR368=\"\"),\"N\",IF(AND('Enrollment Form'!$C368=\"Enroll\",'Enrollment Form'!$B368=\"Subscriber\",'Enrollment Form'!$CX368=\"No\",'Enrollment Form'!$DR368=\"\"),\"N\",IF(AND('Enrollment Form'!$C368=\"Enroll\",'Enrollment Form'!$B368=\"Subscriber\",'Enrollment Form'!$CX368=\"Yes\"),\"-\",\"Y\")))))","v":""},{"$f":"IF($B361=\"N\",\"\",IF(AND('Enrollment Form'!$C368=\"ROC\",'Enrollment Form'!$DS368<>\"\"),\"Y\",IF(AND('Enrollment Form'!$C368=\"ROC\",'Enrollment Form'!$DS368=\"\"),\"N\",IF(AND('Enrollment Form'!$C368=\"Enroll\",'Enrollment Form'!$B368=\"Subscriber\",'Enrollment Form'!$CX368=\"No\",'Enrollment Form'!$DS368=\"\"),\"N\",IF(AND('Enrollment Form'!$C368=\"Enroll\",'Enrollment Form'!$B368=\"Subscriber\",'Enrollment Form'!$CX368=\"Yes\"),\"-\",\"Y\")))))","v":""},{"$f":"IF('Enrollment Form'!AH368=\"\",\"\",IF(ISERROR(SEARCH(\".\",'Enrollment Form'!AH368,SEARCH(\"@\",'Enrollment Form'!AH368))),\"N\",\"Y\"))","v":""},{"$f":"IF(OR($B361=\"N\",'Enrollment Form'!$G368=\"\"),\"\",IF('Enrollment Form'!$B368<>\"Subscriber\",\"-\",IF(COUNTIF('Enrollment Form'!$AV368:$AW368,\"Yes\")=2,\"N\",\"Y\")))","v":""},{"$f":"IF(OR('Enrollment Form'!$CJ368=\"\",'Enrollment Form'!$CJ368=\"No\"),\"-\",IF(AND('Enrollment Form'!$CJ368=\"Yes\",'Enrollment Form'!$CK368=\"\"),\"N\",\"Y\"))","v":"-"},{"$f":"IF(OR('Enrollment Form'!$CL368=\"\",'Enrollment Form'!$CL368=\"No\"),\"-\",IF(AND('Enrollment Form'!$CL368=\"Yes\",'Enrollment Form'!$CM368=\"\"),\"N\",\"Y\"))","v":"-"},{"$f":"IF(OR('Enrollment Form'!$CN368=\"\",'Enrollment Form'!$CN368=\"No\"),\"-\",IF(AND('Enrollment Form'!$CN368=\"Yes\",'Enrollment Form'!$CO368=\"\"),\"N\",\"Y\"))","v":"-"},{"$f":"IF(OR('Enrollment Form'!$CN368=\"\",'Enrollment Form'!$CN368=\"No\"),\"-\",IF(AND('Enrollment Form'!$CN368=\"Yes\",'Enrollment Form'!$CP368=\"\"),\"N\",\"Y\"))","v":"-"},{"$f":"IF('Enrollment Form'!B368<>\"Subscriber\",\"-\",IF(AND('Enrollment Form'!B368=\"Subscriber\",'Enrollment Form'!C368=\"Enroll\",'Enrollment Form'!AA368=\"\"),\"N\",\"Y\"))","v":"-"},{"$f":"IF(OR('Enrollment Form'!B368=\"Subscriber\",'Enrollment Form'!B368=\"\"),\"-\",IF('Enrollment Form'!BP368=\"\",\"N\",\"Y\"))","v":"-"},{"$f":"IF('Enrollment Form'!B368<>\"Subscriber\",\"-\",IF(AND('Enrollment Form'!B368=\"Subscriber\",'Enrollment Form'!G368=\"\"),\"N\",\"Y\"))","v":"-"},{"$f":"IF('Enrollment Form'!A368=\"\",\"\",IF('Enrollment Form'!B368=\"Subscriber\",\"-\",IF(AND('Enrollment Form'!B368<>\"Subscriber\",'Enrollment Form'!G368='Enrollment Form'!H368),\"N\",\"Y\")))","v":""},0]
[369,{"$f":"IF('Enrollment Form'!$A369<>\"\",\"Y\",\"N\")","v":"N"},{"$f":"IF(AND('Enrollment Form'!$B369=\"\",'Enrollment Form'!$C369<>\"\"),\"N\",IF($B362=\"N\",\"\",\"Y\"))","v":""},{"$f":"IF(OR($B362=\"N\",'Enrollment Form'!G369=\"\"),\"\",IF('Enrollment Form'!$B369<>\"Subscriber\",\"\",IF('Enrollment Form'!$G369='Enrollment Form'!$H369,\"Y\",\"N\")))","v":""},{"$f":"IF($B362=\"N\",\"\",IF(AND(COUNTIFS('Enrollment Form'!$H$11:$H$1000,'Enrollment Form'!$H369,'Enrollment Form'!$B$11:$B$1000,'Enrollment Form'!$B369)>1,'Enrollment Form'!$H369<>\"\"),\"N\",\"Y\"))","v":""},{"$f":"IF($B362=\"N\",\"\",IF(LEN('Enrollment Form'!$Y369)=0,\"\",IF(LEN('Enrollment Form'!$Y369)<>5,\"N\",\"Y\")))","v":""},{"$f":"IF($B362=\"N\",\"\",IF(LEN('Enrollment Form'!$AD369=0),\"\",IF(LEN('Enrollment Form'!$AD369)<>5,\"N\",\"Y\")))","v":""},{"$f":"IF($B362=\"N\",\"\",IF(LEN('Enrollment Form'!$BS369=0),\"\",IF(LEN('Enrollment Form'!$BS369)<>5,\"N\",\"Y\")))","v":""},{"$f":"IF($B362=\"N\",\"\",IF(LEN('Enrollment Form'!$AE369)=0,\"\",IF(LEN('Enrollment Form'!$AE369)<>10,\"N\",\"Y\")))","v":""},{"$f":"IF($B362=\"N\",\"\",IF(LEN('Enrollment Form'!$AF369)=0,\"\",IF(LEN('Enrollment Form'!$AF369)<>10,\"N\",\"Y\")))","v":""},{"$f":"IF('Enrollment Form'!$O369<>\"Graded\",\"-\",IF(AND('Enrollment Form'!$O369=\"Graded\",'Enrollment Form'!$AR369<>\"\"),\"Y\",\"N\"))","v":"-"},{"$f":"IF($B362=\"N\",\"\",IF(OR('Enrollment Form'!$B369<>\"Subscriber\",'Enrollment Form'!$C369=\"ROC\"),\"-\",IF(AND('Enrollment Form'!$B369=\"Subscriber\",'Enrollment Form'!$C369=\"Enroll\",'Enrollment Form'!$AJ369<>\"\"),\"Y\",\"N\")))","v":""},{"$f":"IF($B362=\"N\",\"\",IF(OR('Enrollment Form'!$B369<>\"Subscriber\",'Enrollment Form'!$C369=\"ROC\"),\"-\",IF(AND('Enrollment Form'!$B369=\"Subscriber\",'Enrollment Form'!$C369=\"Enroll\",'Enrollment Form'!$AK369<>\"\"),\"Y\",\"N\")))","v":""},{"$f":"IF($B362=\"N\",\"\",IF(OR('Enrollment Form'!$B369<>\"Subscriber\",'Enrollment Form'!$C369=\"ROC\"),\"-\",IF(AND('Enrollment Form'!$B369=\"Subscriber\",'Enrollment Form'!$C369=\"Enroll\",'Enrollment Form'!$AL369<>\"\"),\"Y\",\"N\")))","v":""},{"$f":"IF($B362=\"N\",\"\",IF(OR('Enrollment Form'!$B369<>\"Subscriber\",'Enrollment Form'!$C369=\"ROC\"),\"-\",IF(AND('Enrollment Form'!$B369=\"Subscriber\",'Enrollment Form'!$C369=\"Enroll\",'Enrollment Form'!$AP369<>\"\"),\"Y\",\"N\")))","v":""},{"$f":"IF($B362=\"N\",\"\",IF(OR('Enrollment Form'!$B369<>\"Subscriber\",'Enrollment Form'!$C369=\"ROC\"),\"-\",IF(AND('Enrollment Form'!$B369=\"Subscriber\",'Enrollment Form'!$C369=\"Enroll\",'Enrollment Form'!$AQ369<>\"\"),\"Y\",\"N\")))","v":""},{"$f":"IF($B362=\"N\",\"\",IF(OR('Enrollment Form'!$B369<>\"Subscriber\",'Enrollment Form'!$C369=\"ROC\"),\"-\",IF(AND('Enrollment Form'!$B369=\"Subscriber\",'Enrollment Form'!$C369=\"Enroll\",'Enrollment Form'!$AS369<>\"\"),\"Y\",\"N\")))","v":""},{"$f":"IF($B362=\"N\",\"\",IF($Q362=\"-\",\"-\",IF(AND($Q362=\"Y\",'Enrollment Form'!$AS369=\"No\"),\"-\",IF(AND($Q362=\"Y\",'Enrollment Form'!$AS369=\"Yes\",'Enrollment Form'!$AT369<>\"\"),\"Y\",\"N\"))))","v":""},{"$f":"IF($B362=\"N\",\"\",IF(OR('Enrollment Form'!$B369<>\"Subscriber\",'Enrollment Form'!$C369=\"ROC\"),\"-\",IF(AND('Enrollment Form'!$B369=\"Subscriber\",'Enrollment Form'!$C369=\"Enroll\",'Enrollment Form'!$CV369<>\"\"),\"Y\",\"N\")))","v":""},{"$f":"IF($B362=\"N\",\"\",IF($S362=\"-\",\"-\",IF(AND($S362=\"Y\",'Enrollment Form'!$CV369=\"No\"),\"-\",IF(AND($S362=\"Y\",'Enrollment Form'!$CV369=\"Yes\",'Enrollment Form'!$CW369<>\"\"),\"Y\",\"N\"))))","v":""},{"$f":"IF(OR('Enrollment Form'!$AY369=\"Yes\",'Enrollment Form'!$AY369=\"\"),\"-\",IF(OR(AND('Enrollment Form'!$AY369=\"No\",ISERROR(FIND(\"HMO\",VLOOKUP('Enrollment Form'!G369,'Enrollment Form'!H$11:J$1000,3,FALSE),1))=FALSE,COUNTA('Enrollment Form'!$AZ369:$BC369)=4),AND('Enrollment Form'!$AY369=\"No\",ISERROR(FIND(\"HMO\",VLOOKUP('Enrollment Form'!G369,'Enrollment Form'!H$11:J$1000,3,FALSE),1))=FALSE,COUNTA('Enrollment Form'!$BT369:$BW369)=4)),\"Y\",\"N\"))","v":"-"},{"$f":"IF($B362=\"N\",\"\",IF('Enrollment Form'!$B369=\"Subscriber\",\"-\",IF(COUNTA('Enrollment Form'!$BL369,'Enrollment Form'!$BN369)=2,\"Y\",\"N\")))","v":""},{"$f":"IF($B362=\"N\",\"\",IF(OR('Enrollment Form'!$AX369=\"\",'Enrollment Form'!$AX369=\"No\"),\"-\",IF(AND('Enrollment Form'!$AX369=\"Yes\",COUNTA('Enrollment Form'!$CR369)=1),\"Y\",\"N\")))","v":""},{"$f":"IF(OR('Enrollment Form'!$CR369=\"\",'Enrollment Form'!$CR369=\"No\"),\"-\",IF(COUNTA('Enrollment Form'!$CT369:$CU369)=2,\"Y\",\"N\"))","v":"-"},{"$f":"IF($B362=\"N\",\"\",IF(COUNTIF('Enrollment Form'!$DG369:$DP369,\"Other\")=COUNTA('Enrollment Form'!$DK369,'Enrollment Form'!$DH369,'Enrollment Form'!$DN369,'Enrollment Form'!$DQ369),\"Y\",\"N\"))","v":""},{"$f":"IF($B362=\"N\",\"\",IF(OR('Enrollment Form'!B369<>\"Subscriber\",'Enrollment Form'!C369=\"ROC\",COUNTIF('Enrollment Form'!AV369:AW369,\"Yes\")>=1),\"-\",IF(AND('Enrollment Form'!C369=\"Enroll\",COUNTIF('Enrollment Form'!AV369:AW369,\"No\")=2,'Enrollment Form'!AX369=\"\"),\"N\",\"Y\")))","v":""},{"$f":"IF(OR(B362=\"N\",'Enrollment Form'!B369<>\"Subscriber\",'Enrollment Form'!C369=\"ROC\",'Enrollment Form'!O369<>\"Multiple of Salary\"),\"-\",IF(COUNTA('Enrollment Form'!T369:U369)<2,\"N\",\"Y\"))","v":"-"},{"$f":"IF(B362=\"N\",\"\",IF(OR('Enrollment Form'!C369=\"ROC\",'Enrollment Form'!B369<>\"Subscriber\",'Enrollment Form'!O369=\"Waive\",'Enrollment Form'!O369=\"\"),\"-\",IF('Enrollment Form'!P369=\"\",\"N\",\"Y\")))","v":""},{"$f":"IF($B362=\"N\",\"\",IF(AND('Enrollment Form'!$C369=\"ROC\",'Enrollment Form'!$DR369<>\"\"),\"Y\",IF(AND('Enrollment Form'!$C369=\"ROC\",'Enrollment Form'!$DR369=\"\"),\"N\",IF(AND('Enrollment Form'!$C369=\"Enroll\",'Enrollment Form'!$B369=\"Subscriber\",'Enrollment Form'!$CX369=\"No\",'Enrollment Form'!$DR369=\"\"),\"N\",IF(AND('Enrollment Form'!$C369=\"Enroll\",'Enrollment Form'!$B369=\"Subscriber\",'Enrollment Form'!$CX369=\"Yes\"),\"-\",\"Y\")))))","v":""},{"$f":"IF($B362=\"N\",\"\",IF(AND('Enrollment Form'!$C369=\"ROC\",'Enrollment Form'!$DS369<>\"\"),\"Y\",IF(AND('Enrollment Form'!$C369=\"ROC\",'Enrollment Form'!$DS369=\"\"),\"N\",IF(AND('Enrollment Form'!$C369=\"Enroll\",'Enrollment Form'!$B369=\"Subscriber\",'Enrollment Form'!$CX369=\"No\",'Enrollment Form'!$DS369=\"\"),\"N\",IF(AND('Enrollment Form'!$C369=\"Enroll\",'Enrollment Form'!$B369=\"Subscriber\",'Enrollment Form'!$CX369=\"Yes\"),\"-\",\"Y\")))))","v":""},{"$f":"IF('Enrollment Form'!AH369=\"\",\"\",IF(ISERROR(SEARCH(\".\",'Enrollment Form'!AH369,SEARCH(\"@\",'Enrollment Form'!AH369))),\"N\",\"Y\"))","v":""},{"$f":"IF(OR($B362=\"N\",'Enrollment Form'!$G369=\"\"),\"\",IF('Enrollment Form'!$B369<>\"Subscriber\",\"-\",IF(COUNTIF('Enrollment Form'!$AV369:$AW369,\"Yes\")=2,\"N\",\"Y\")))","v":""},{"$f":"IF(OR('Enrollment Form'!$CJ369=\"\",'Enrollment Form'!$CJ369=\"No\"),\"-\",IF(AND('Enrollment Form'!$CJ369=\"Yes\",'Enrollment Form'!$CK369=\"\"),\"N\",\"Y\"))","v":"-"},{"$f":"IF(OR('Enrollment Form'!$CL369=\"\",'Enrollment Form'!$CL369=\"No\"),\"-\",IF(AND('Enrollment Form'!$CL369=\"Yes\",'Enrollment Form'!$CM369=\"\"),\"N\",\"Y\"))","v":"-"},{"$f":"IF(OR('Enrollment Form'!$CN369=\"\",'Enrollment Form'!$CN369=\"No\"),\"-\",IF(AND('Enrollment Form'!$CN369=\"Yes\",'Enrollment Form'!$CO369=\"\"),\"N\",\"Y\"))","v":"-"},{"$f":"IF(OR('Enrollment Form'!$CN369=\"\",'Enrollment Form'!$CN369=\"No\"),\"-\",IF(AND('Enrollment Form'!$CN369=\"Yes\",'Enrollment Form'!$CP369=\"\"),\"N\",\"Y\"))","v":"-"},{"$f":"IF('Enrollment Form'!B369<>\"Subscriber\",\"-\",IF(AND('Enrollment Form'!B369=\"Subscriber\",'Enrollment Form'!C369=\"Enroll\",'Enrollment Form'!AA369=\"\"),\"N\",\"Y\"))","v":"-"},{"$f":"IF(OR('Enrollment Form'!B369=\"Subscriber\",'Enrollment Form'!B369=\"\"),\"-\",IF('Enrollment Form'!BP369=\"\",\"N\",\"Y\"))","v":"-"},{"$f":"IF('Enrollment Form'!B369<>\"Subscriber\",\"-\",IF(AND('Enrollment Form'!B369=\"Subscriber\",'Enrollment Form'!G369=\"\"),\"N\",\"Y\"))","v":"-"},{"$f":"IF('Enrollment Form'!A369=\"\",\"\",IF('Enrollment Form'!B369=\"Subscriber\",\"-\",IF(AND('Enrollment Form'!B369<>\"Subscriber\",'Enrollment Form'!G369='Enrollment Form'!H369),\"N\",\"Y\")))","v":""},0]
[370,{"$f":"IF('Enrollment Form'!$A370<>\"\",\"Y\",\"N\")","v":"N"},{"$f":"IF(AND('Enrollment Form'!$B370=\"\",'Enrollment Form'!$C370<>\"\"),\"N\",IF($B363=\"N\",\"\",\"Y\"))","v":""},{"$f":"IF(OR($B363=\"N\",'Enrollment Form'!G370=\"\"),\"\",IF('Enrollment Form'!$B370<>\"Subscriber\",\"\",IF('Enrollment Form'!$G370='Enrollment Form'!$H370,\"Y\",\"N\")))","v":""},{"$f":"IF($B363=\"N\",\"\",IF(AND(COUNTIFS('Enrollment Form'!$H$11:$H$1000,'Enrollment Form'!$H370,'Enrollment Form'!$B$11:$B$1000,'Enrollment Form'!$B370)>1,'Enrollment Form'!$H370<>\"\"),\"N\",\"Y\"))","v":""},{"$f":"IF($B363=\"N\",\"\",IF(LEN('Enrollment Form'!$Y370)=0,\"\",IF(LEN('Enrollment Form'!$Y370)<>5,\"N\",\"Y\")))","v":""},{"$f":"IF($B363=\"N\",\"\",IF(LEN('Enrollment Form'!$AD370=0),\"\",IF(LEN('Enrollment Form'!$AD370)<>5,\"N\",\"Y\")))","v":""},{"$f":"IF($B363=\"N\",\"\",IF(LEN('Enrollment Form'!$BS370=0),\"\",IF(LEN('Enrollment Form'!$BS370)<>5,\"N\",\"Y\")))","v":""},{"$f":"IF($B363=\"N\",\"\",IF(LEN('Enrollment Form'!$AE370)=0,\"\",IF(LEN('Enrollment Form'!$AE370)<>10,\"N\",\"Y\")))","v":""},{"$f":"IF($B363=\"N\",\"\",IF(LEN('Enrollment Form'!$AF370)=0,\"\",IF(LEN('Enrollment Form'!$AF370)<>10,\"N\",\"Y\")))","v":""},{"$f":"IF('Enrollment Form'!$O370<>\"Graded\",\"-\",IF(AND('Enrollment Form'!$O370=\"Graded\",'Enrollment Form'!$AR370<>\"\"),\"Y\",\"N\"))","v":"-"},{"$f":"IF($B363=\"N\",\"\",IF(OR('Enrollment Form'!$B370<>\"Subscriber\",'Enrollment Form'!$C370=\"ROC\"),\"-\",IF(AND('Enrollment Form'!$B370=\"Subscriber\",'Enrollment Form'!$C370=\"Enroll\",'Enrollment Form'!$AJ370<>\"\"),\"Y\",\"N\")))","v":""},{"$f":"IF($B363=\"N\",\"\",IF(OR('Enrollment Form'!$B370<>\"Subscriber\",'Enrollment Form'!$C370=\"ROC\"),\"-\",IF(AND('Enrollment Form'!$B370=\"Subscriber\",'Enrollment Form'!$C370=\"Enroll\",'Enrollment Form'!$AK370<>\"\"),\"Y\",\"N\")))","v":""},{"$f":"IF($B363=\"N\",\"\",IF(OR('Enrollment Form'!$B370<>\"Subscriber\",'Enrollment Form'!$C370=\"ROC\"),\"-\",IF(AND('Enrollment Form'!$B370=\"Subscriber\",'Enrollment Form'!$C370=\"Enroll\",'Enrollment Form'!$AL370<>\"\"),\"Y\",\"N\")))","v":""},{"$f":"IF($B363=\"N\",\"\",IF(OR('Enrollment Form'!$B370<>\"Subscriber\",'Enrollment Form'!$C370=\"ROC\"),\"-\",IF(AND('Enrollment Form'!$B370=\"Subscriber\",'Enrollment Form'!$C370=\"Enroll\",'Enrollment Form'!$AP370<>\"\"),\"Y\",\"N\")))","v":""},{"$f":"IF($B363=\"N\",\"\",IF(OR('Enrollment Form'!$B370<>\"Subscriber\",'Enrollment Form'!$C370=\"ROC\"),\"-\",IF(AND('Enrollment Form'!$B370=\"Subscriber\",'Enrollment Form'!$C370=\"Enroll\",'Enrollment Form'!$AQ370<>\"\"),\"Y\",\"N\")))","v":""},{"$f":"IF($B363=\"N\",\"\",IF(OR('Enrollment Form'!$B370<>\"Subscriber\",'Enrollment Form'!$C370=\"ROC\"),\"-\",IF(AND('Enrollment Form'!$B370=\"Subscriber\",'Enrollment Form'!$C370=\"Enroll\",'Enrollment Form'!$AS370<>\"\"),\"Y\",\"N\")))","v":""},{"$f":"IF($B363=\"N\",\"\",IF($Q363=\"-\",\"-\",IF(AND($Q363=\"Y\",'Enrollment Form'!$AS370=\"No\"),\"-\",IF(AND($Q363=\"Y\",'Enrollment Form'!$AS370=\"Yes\",'Enrollment Form'!$AT370<>\"\"),\"Y\",\"N\"))))","v":""},{"$f":"IF($B363=\"N\",\"\",IF(OR('Enrollment Form'!$B370<>\"Subscriber\",'Enrollment Form'!$C370=\"ROC\"),\"-\",IF(AND('Enrollment Form'!$B370=\"Subscriber\",'Enrollment Form'!$C370=\"Enroll\",'Enrollment Form'!$CV370<>\"\"),\"Y\",\"N\")))","v":""},{"$f":"IF($B363=\"N\",\"\",IF($S363=\"-\",\"-\",IF(AND($S363=\"Y\",'Enrollment Form'!$CV370=\"No\"),\"-\",IF(AND($S363=\"Y\",'Enrollment Form'!$CV370=\"Yes\",'Enrollment Form'!$CW370<>\"\"),\"Y\",\"N\"))))","v":""},{"$f":"IF(OR('Enrollment Form'!$AY370=\"Yes\",'Enrollment Form'!$AY370=\"\"),\"-\",IF(OR(AND('Enrollment Form'!$AY370=\"No\",ISERROR(FIND(\"HMO\",VLOOKUP('Enrollment Form'!G370,'Enrollment Form'!H$11:J$1000,3,FALSE),1))=FALSE,COUNTA('Enrollment Form'!$AZ370:$BC370)=4),AND('Enrollment Form'!$AY370=\"No\",ISERROR(FIND(\"HMO\",VLOOKUP('Enrollment Form'!G370,'Enrollment Form'!H$11:J$1000,3,FALSE),1))=FALSE,COUNTA('Enrollment Form'!$BT370:$BW370)=4)),\"Y\",\"N\"))","v":"-"},{"$f":"IF($B363=\"N\",\"\",IF('Enrollment Form'!$B370=\"Subscriber\",\"-\",IF(COUNTA('Enrollment Form'!$BL370,'Enrollment Form'!$BN370)=2,\"Y\",\"N\")))","v":""},{"$f":"IF($B363=\"N\",\"\",IF(OR('Enrollment Form'!$AX370=\"\",'Enrollment Form'!$AX370=\"No\"),\"-\",IF(AND('Enrollment Form'!$AX370=\"Yes\",COUNTA('Enrollment Form'!$CR370)=1),\"Y\",\"N\")))","v":""},{"$f":"IF(OR('Enrollment Form'!$CR370=\"\",'Enrollment Form'!$CR370=\"No\"),\"-\",IF(COUNTA('Enrollment Form'!$CT370:$CU370)=2,\"Y\",\"N\"))","v":"-"},{"$f":"IF($B363=\"N\",\"\",IF(COUNTIF('Enrollment Form'!$DG370:$DP370,\"Other\")=COUNTA('Enrollment Form'!$DK370,'Enrollment Form'!$DH370,'Enrollment Form'!$DN370,'Enrollment Form'!$DQ370),\"Y\",\"N\"))","v":""},{"$f":"IF($B363=\"N\",\"\",IF(OR('Enrollment Form'!B370<>\"Subscriber\",'Enrollment Form'!C370=\"ROC\",COUNTIF('Enrollment Form'!AV370:AW370,\"Yes\")>=1),\"-\",IF(AND('Enrollment Form'!C370=\"Enroll\",COUNTIF('Enrollment Form'!AV370:AW370,\"No\")=2,'Enrollment Form'!AX370=\"\"),\"N\",\"Y\")))","v":""},{"$f":"IF(OR(B363=\"N\",'Enrollment Form'!B370<>\"Subscriber\",'Enrollment Form'!C370=\"ROC\",'Enrollment Form'!O370<>\"Multiple of Salary\"),\"-\",IF(COUNTA('Enrollment Form'!T370:U370)<2,\"N\",\"Y\"))","v":"-"},{"$f":"IF(B363=\"N\",\"\",IF(OR('Enrollment Form'!C370=\"ROC\",'Enrollment Form'!B370<>\"Subscriber\",'Enrollment Form'!O370=\"Waive\",'Enrollment Form'!O370=\"\"),\"-\",IF('Enrollment Form'!P370=\"\",\"N\",\"Y\")))","v":""},{"$f":"IF($B363=\"N\",\"\",IF(AND('Enrollment Form'!$C370=\"ROC\",'Enrollment Form'!$DR370<>\"\"),\"Y\",IF(AND('Enrollment Form'!$C370=\"ROC\",'Enrollment Form'!$DR370=\"\"),\"N\",IF(AND('Enrollment Form'!$C370=\"Enroll\",'Enrollment Form'!$B370=\"Subscriber\",'Enrollment Form'!$CX370=\"No\",'Enrollment Form'!$DR370=\"\"),\"N\",IF(AND('Enrollment Form'!$C370=\"Enroll\",'Enrollment Form'!$B370=\"Subscriber\",'Enrollment Form'!$CX370=\"Yes\"),\"-\",\"Y\")))))","v":""},{"$f":"IF($B363=\"N\",\"\",IF(AND('Enrollment Form'!$C370=\"ROC\",'Enrollment Form'!$DS370<>\"\"),\"Y\",IF(AND('Enrollment Form'!$C370=\"ROC\",'Enrollment Form'!$DS370=\"\"),\"N\",IF(AND('Enrollment Form'!$C370=\"Enroll\",'Enrollment Form'!$B370=\"Subscriber\",'Enrollment Form'!$CX370=\"No\",'Enrollment Form'!$DS370=\"\"),\"N\",IF(AND('Enrollment Form'!$C370=\"Enroll\",'Enrollment Form'!$B370=\"Subscriber\",'Enrollment Form'!$CX370=\"Yes\"),\"-\",\"Y\")))))","v":""},{"$f":"IF('Enrollment Form'!AH370=\"\",\"\",IF(ISERROR(SEARCH(\".\",'Enrollment Form'!AH370,SEARCH(\"@\",'Enrollment Form'!AH370))),\"N\",\"Y\"))","v":""},{"$f":"IF(OR($B363=\"N\",'Enrollment Form'!$G370=\"\"),\"\",IF('Enrollment Form'!$B370<>\"Subscriber\",\"-\",IF(COUNTIF('Enrollment Form'!$AV370:$AW370,\"Yes\")=2,\"N\",\"Y\")))","v":""},{"$f":"IF(OR('Enrollment Form'!$CJ370=\"\",'Enrollment Form'!$CJ370=\"No\"),\"-\",IF(AND('Enrollment Form'!$CJ370=\"Yes\",'Enrollment Form'!$CK370=\"\"),\"N\",\"Y\"))","v":"-"},{"$f":"IF(OR('Enrollment Form'!$CL370=\"\",'Enrollment Form'!$CL370=\"No\"),\"-\",IF(AND('Enrollment Form'!$CL370=\"Yes\",'Enrollment Form'!$CM370=\"\"),\"N\",\"Y\"))","v":"-"},{"$f":"IF(OR('Enrollment Form'!$CN370=\"\",'Enrollment Form'!$CN370=\"No\"),\"-\",IF(AND('Enrollment Form'!$CN370=\"Yes\",'Enrollment Form'!$CO370=\"\"),\"N\",\"Y\"))","v":"-"},{"$f":"IF(OR('Enrollment Form'!$CN370=\"\",'Enrollment Form'!$CN370=\"No\"),\"-\",IF(AND('Enrollment Form'!$CN370=\"Yes\",'Enrollment Form'!$CP370=\"\"),\"N\",\"Y\"))","v":"-"},{"$f":"IF('Enrollment Form'!B370<>\"Subscriber\",\"-\",IF(AND('Enrollment Form'!B370=\"Subscriber\",'Enrollment Form'!C370=\"Enroll\",'Enrollment Form'!AA370=\"\"),\"N\",\"Y\"))","v":"-"},{"$f":"IF(OR('Enrollment Form'!B370=\"Subscriber\",'Enrollment Form'!B370=\"\"),\"-\",IF('Enrollment Form'!BP370=\"\",\"N\",\"Y\"))","v":"-"},{"$f":"IF('Enrollment Form'!B370<>\"Subscriber\",\"-\",IF(AND('Enrollment Form'!B370=\"Subscriber\",'Enrollment Form'!G370=\"\"),\"N\",\"Y\"))","v":"-"},{"$f":"IF('Enrollment Form'!A370=\"\",\"\",IF('Enrollment Form'!B370=\"Subscriber\",\"-\",IF(AND('Enrollment Form'!B370<>\"Subscriber\",'Enrollment Form'!G370='Enrollment Form'!H370),\"N\",\"Y\")))","v":""},0]
[371,{"$f":"IF('Enrollment Form'!$A371<>\"\",\"Y\",\"N\")","v":"N"},{"$f":"IF(AND('Enrollment Form'!$B371=\"\",'Enrollment Form'!$C371<>\"\"),\"N\",IF($B364=\"N\",\"\",\"Y\"))","v":""},{"$f":"IF(OR($B364=\"N\",'Enrollment Form'!G371=\"\"),\"\",IF('Enrollment Form'!$B371<>\"Subscriber\",\"\",IF('Enrollment Form'!$G371='Enrollment Form'!$H371,\"Y\",\"N\")))","v":""},{"$f":"IF($B364=\"N\",\"\",IF(AND(COUNTIFS('Enrollment Form'!$H$11:$H$1000,'Enrollment Form'!$H371,'Enrollment Form'!$B$11:$B$1000,'Enrollment Form'!$B371)>1,'Enrollment Form'!$H371<>\"\"),\"N\",\"Y\"))","v":""},{"$f":"IF($B364=\"N\",\"\",IF(LEN('Enrollment Form'!$Y371)=0,\"\",IF(LEN('Enrollment Form'!$Y371)<>5,\"N\",\"Y\")))","v":""},{"$f":"IF($B364=\"N\",\"\",IF(LEN('Enrollment Form'!$AD371=0),\"\",IF(LEN('Enrollment Form'!$AD371)<>5,\"N\",\"Y\")))","v":""},{"$f":"IF($B364=\"N\",\"\",IF(LEN('Enrollment Form'!$BS371=0),\"\",IF(LEN('Enrollment Form'!$BS371)<>5,\"N\",\"Y\")))","v":""},{"$f":"IF($B364=\"N\",\"\",IF(LEN('Enrollment Form'!$AE371)=0,\"\",IF(LEN('Enrollment Form'!$AE371)<>10,\"N\",\"Y\")))","v":""},{"$f":"IF($B364=\"N\",\"\",IF(LEN('Enrollment Form'!$AF371)=0,\"\",IF(LEN('Enrollment Form'!$AF371)<>10,\"N\",\"Y\")))","v":""},{"$f":"IF('Enrollment Form'!$O371<>\"Graded\",\"-\",IF(AND('Enrollment Form'!$O371=\"Graded\",'Enrollment Form'!$AR371<>\"\"),\"Y\",\"N\"))","v":"-"},{"$f":"IF($B364=\"N\",\"\",IF(OR('Enrollment Form'!$B371<>\"Subscriber\",'Enrollment Form'!$C371=\"ROC\"),\"-\",IF(AND('Enrollment Form'!$B371=\"Subscriber\",'Enrollment Form'!$C371=\"Enroll\",'Enrollment Form'!$AJ371<>\"\"),\"Y\",\"N\")))","v":""},{"$f":"IF($B364=\"N\",\"\",IF(OR('Enrollment Form'!$B371<>\"Subscriber\",'Enrollment Form'!$C371=\"ROC\"),\"-\",IF(AND('Enrollment Form'!$B371=\"Subscriber\",'Enrollment Form'!$C371=\"Enroll\",'Enrollment Form'!$AK371<>\"\"),\"Y\",\"N\")))","v":""},{"$f":"IF($B364=\"N\",\"\",IF(OR('Enrollment Form'!$B371<>\"Subscriber\",'Enrollment Form'!$C371=\"ROC\"),\"-\",IF(AND('Enrollment Form'!$B371=\"Subscriber\",'Enrollment Form'!$C371=\"Enroll\",'Enrollment Form'!$AL371<>\"\"),\"Y\",\"N\")))","v":""},{"$f":"IF($B364=\"N\",\"\",IF(OR('Enrollment Form'!$B371<>\"Subscriber\",'Enrollment Form'!$C371=\"ROC\"),\"-\",IF(AND('Enrollment Form'!$B371=\"Subscriber\",'Enrollment Form'!$C371=\"Enroll\",'Enrollment Form'!$AP371<>\"\"),\"Y\",\"N\")))","v":""},{"$f":"IF($B364=\"N\",\"\",IF(OR('Enrollment Form'!$B371<>\"Subscriber\",'Enrollment Form'!$C371=\"ROC\"),\"-\",IF(AND('Enrollment Form'!$B371=\"Subscriber\",'Enrollment Form'!$C371=\"Enroll\",'Enrollment Form'!$AQ371<>\"\"),\"Y\",\"N\")))","v":""},{"$f":"IF($B364=\"N\",\"\",IF(OR('Enrollment Form'!$B371<>\"Subscriber\",'Enrollment Form'!$C371=\"ROC\"),\"-\",IF(AND('Enrollment Form'!$B371=\"Subscriber\",'Enrollment Form'!$C371=\"Enroll\",'Enrollment Form'!$AS371<>\"\"),\"Y\",\"N\")))","v":""},{"$f":"IF($B364=\"N\",\"\",IF($Q364=\"-\",\"-\",IF(AND($Q364=\"Y\",'Enrollment Form'!$AS371=\"No\"),\"-\",IF(AND($Q364=\"Y\",'Enrollment Form'!$AS371=\"Yes\",'Enrollment Form'!$AT371<>\"\"),\"Y\",\"N\"))))","v":""},{"$f":"IF($B364=\"N\",\"\",IF(OR('Enrollment Form'!$B371<>\"Subscriber\",'Enrollment Form'!$C371=\"ROC\"),\"-\",IF(AND('Enrollment Form'!$B371=\"Subscriber\",'Enrollment Form'!$C371=\"Enroll\",'Enrollment Form'!$CV371<>\"\"),\"Y\",\"N\")))","v":""},{"$f":"IF($B364=\"N\",\"\",IF($S364=\"-\",\"-\",IF(AND($S364=\"Y\",'Enrollment Form'!$CV371=\"No\"),\"-\",IF(AND($S364=\"Y\",'Enrollment Form'!$CV371=\"Yes\",'Enrollment Form'!$CW371<>\"\"),\"Y\",\"N\"))))","v":""},{"$f":"IF(OR('Enrollment Form'!$AY371=\"Yes\",'Enrollment Form'!$AY371=\"\"),\"-\",IF(OR(AND('Enrollment Form'!$AY371=\"No\",ISERROR(FIND(\"HMO\",VLOOKUP('Enrollment Form'!G371,'Enrollment Form'!H$11:J$1000,3,FALSE),1))=FALSE,COUNTA('Enrollment Form'!$AZ371:$BC371)=4),AND('Enrollment Form'!$AY371=\"No\",ISERROR(FIND(\"HMO\",VLOOKUP('Enrollment Form'!G371,'Enrollment Form'!H$11:J$1000,3,FALSE),1))=FALSE,COUNTA('Enrollment Form'!$BT371:$BW371)=4)),\"Y\",\"N\"))","v":"-"},{"$f":"IF($B364=\"N\",\"\",IF('Enrollment Form'!$B371=\"Subscriber\",\"-\",IF(COUNTA('Enrollment Form'!$BL371,'Enrollment Form'!$BN371)=2,\"Y\",\"N\")))","v":""},{"$f":"IF($B364=\"N\",\"\",IF(OR('Enrollment Form'!$AX371=\"\",'Enrollment Form'!$AX371=\"No\"),\"-\",IF(AND('Enrollment Form'!$AX371=\"Yes\",COUNTA('Enrollment Form'!$CR371)=1),\"Y\",\"N\")))","v":""},{"$f":"IF(OR('Enrollment Form'!$CR371=\"\",'Enrollment Form'!$CR371=\"No\"),\"-\",IF(COUNTA('Enrollment Form'!$CT371:$CU371)=2,\"Y\",\"N\"))","v":"-"},{"$f":"IF($B364=\"N\",\"\",IF(COUNTIF('Enrollment Form'!$DG371:$DP371,\"Other\")=COUNTA('Enrollment Form'!$DK371,'Enrollment Form'!$DH371,'Enrollment Form'!$DN371,'Enrollment Form'!$DQ371),\"Y\",\"N\"))","v":""},{"$f":"IF($B364=\"N\",\"\",IF(OR('Enrollment Form'!B371<>\"Subscriber\",'Enrollment Form'!C371=\"ROC\",COUNTIF('Enrollment Form'!AV371:AW371,\"Yes\")>=1),\"-\",IF(AND('Enrollment Form'!C371=\"Enroll\",COUNTIF('Enrollment Form'!AV371:AW371,\"No\")=2,'Enrollment Form'!AX371=\"\"),\"N\",\"Y\")))","v":""},{"$f":"IF(OR(B364=\"N\",'Enrollment Form'!B371<>\"Subscriber\",'Enrollment Form'!C371=\"ROC\",'Enrollment Form'!O371<>\"Multiple of Salary\"),\"-\",IF(COUNTA('Enrollment Form'!T371:U371)<2,\"N\",\"Y\"))","v":"-"},{"$f":"IF(B364=\"N\",\"\",IF(OR('Enrollment Form'!C371=\"ROC\",'Enrollment Form'!B371<>\"Subscriber\",'Enrollment Form'!O371=\"Waive\",'Enrollment Form'!O371=\"\"),\"-\",IF('Enrollment Form'!P371=\"\",\"N\",\"Y\")))","v":""},{"$f":"IF($B364=\"N\",\"\",IF(AND('Enrollment Form'!$C371=\"ROC\",'Enrollment Form'!$DR371<>\"\"),\"Y\",IF(AND('Enrollment Form'!$C371=\"ROC\",'Enrollment Form'!$DR371=\"\"),\"N\",IF(AND('Enrollment Form'!$C371=\"Enroll\",'Enrollment Form'!$B371=\"Subscriber\",'Enrollment Form'!$CX371=\"No\",'Enrollment Form'!$DR371=\"\"),\"N\",IF(AND('Enrollment Form'!$C371=\"Enroll\",'Enrollment Form'!$B371=\"Subscriber\",'Enrollment Form'!$CX371=\"Yes\"),\"-\",\"Y\")))))","v":""},{"$f":"IF($B364=\"N\",\"\",IF(AND('Enrollment Form'!$C371=\"ROC\",'Enrollment Form'!$DS371<>\"\"),\"Y\",IF(AND('Enrollment Form'!$C371=\"ROC\",'Enrollment Form'!$DS371=\"\"),\"N\",IF(AND('Enrollment Form'!$C371=\"Enroll\",'Enrollment Form'!$B371=\"Subscriber\",'Enrollment Form'!$CX371=\"No\",'Enrollment Form'!$DS371=\"\"),\"N\",IF(AND('Enrollment Form'!$C371=\"Enroll\",'Enrollment Form'!$B371=\"Subscriber\",'Enrollment Form'!$CX371=\"Yes\"),\"-\",\"Y\")))))","v":""},{"$f":"IF('Enrollment Form'!AH371=\"\",\"\",IF(ISERROR(SEARCH(\".\",'Enrollment Form'!AH371,SEARCH(\"@\",'Enrollment Form'!AH371))),\"N\",\"Y\"))","v":""},{"$f":"IF(OR($B364=\"N\",'Enrollment Form'!$G371=\"\"),\"\",IF('Enrollment Form'!$B371<>\"Subscriber\",\"-\",IF(COUNTIF('Enrollment Form'!$AV371:$AW371,\"Yes\")=2,\"N\",\"Y\")))","v":""},{"$f":"IF(OR('Enrollment Form'!$CJ371=\"\",'Enrollment Form'!$CJ371=\"No\"),\"-\",IF(AND('Enrollment Form'!$CJ371=\"Yes\",'Enrollment Form'!$CK371=\"\"),\"N\",\"Y\"))","v":"-"},{"$f":"IF(OR('Enrollment Form'!$CL371=\"\",'Enrollment Form'!$CL371=\"No\"),\"-\",IF(AND('Enrollment Form'!$CL371=\"Yes\",'Enrollment Form'!$CM371=\"\"),\"N\",\"Y\"))","v":"-"},{"$f":"IF(OR('Enrollment Form'!$CN371=\"\",'Enrollment Form'!$CN371=\"No\"),\"-\",IF(AND('Enrollment Form'!$CN371=\"Yes\",'Enrollment Form'!$CO371=\"\"),\"N\",\"Y\"))","v":"-"},{"$f":"IF(OR('Enrollment Form'!$CN371=\"\",'Enrollment Form'!$CN371=\"No\"),\"-\",IF(AND('Enrollment Form'!$CN371=\"Yes\",'Enrollment Form'!$CP371=\"\"),\"N\",\"Y\"))","v":"-"},{"$f":"IF('Enrollment Form'!B371<>\"Subscriber\",\"-\",IF(AND('Enrollment Form'!B371=\"Subscriber\",'Enrollment Form'!C371=\"Enroll\",'Enrollment Form'!AA371=\"\"),\"N\",\"Y\"))","v":"-"},{"$f":"IF(OR('Enrollment Form'!B371=\"Subscriber\",'Enrollment Form'!B371=\"\"),\"-\",IF('Enrollment Form'!BP371=\"\",\"N\",\"Y\"))","v":"-"},{"$f":"IF('Enrollment Form'!B371<>\"Subscriber\",\"-\",IF(AND('Enrollment Form'!B371=\"Subscriber\",'Enrollment Form'!G371=\"\"),\"N\",\"Y\"))","v":"-"},{"$f":"IF('Enrollment Form'!A371=\"\",\"\",IF('Enrollment Form'!B371=\"Subscriber\",\"-\",IF(AND('Enrollment Form'!B371<>\"Subscriber\",'Enrollment Form'!G371='Enrollment Form'!H371),\"N\",\"Y\")))","v":""},0]
[372,{"$f":"IF('Enrollment Form'!$A372<>\"\",\"Y\",\"N\")","v":"N"},{"$f":"IF(AND('Enrollment Form'!$B372=\"\",'Enrollment Form'!$C372<>\"\"),\"N\",IF($B365=\"N\",\"\",\"Y\"))","v":""},{"$f":"IF(OR($B365=\"N\",'Enrollment Form'!G372=\"\"),\"\",IF('Enrollment Form'!$B372<>\"Subscriber\",\"\",IF('Enrollment Form'!$G372='Enrollment Form'!$H372,\"Y\",\"N\")))","v":""},{"$f":"IF($B365=\"N\",\"\",IF(AND(COUNTIFS('Enrollment Form'!$H$11:$H$1000,'Enrollment Form'!$H372,'Enrollment Form'!$B$11:$B$1000,'Enrollment Form'!$B372)>1,'Enrollment Form'!$H372<>\"\"),\"N\",\"Y\"))","v":""},{"$f":"IF($B365=\"N\",\"\",IF(LEN('Enrollment Form'!$Y372)=0,\"\",IF(LEN('Enrollment Form'!$Y372)<>5,\"N\",\"Y\")))","v":""},{"$f":"IF($B365=\"N\",\"\",IF(LEN('Enrollment Form'!$AD372=0),\"\",IF(LEN('Enrollment Form'!$AD372)<>5,\"N\",\"Y\")))","v":""},{"$f":"IF($B365=\"N\",\"\",IF(LEN('Enrollment Form'!$BS372=0),\"\",IF(LEN('Enrollment Form'!$BS372)<>5,\"N\",\"Y\")))","v":""},{"$f":"IF($B365=\"N\",\"\",IF(LEN('Enrollment Form'!$AE372)=0,\"\",IF(LEN('Enrollment Form'!$AE372)<>10,\"N\",\"Y\")))","v":""},{"$f":"IF($B365=\"N\",\"\",IF(LEN('Enrollment Form'!$AF372)=0,\"\",IF(LEN('Enrollment Form'!$AF372)<>10,\"N\",\"Y\")))","v":""},{"$f":"IF('Enrollment Form'!$O372<>\"Graded\",\"-\",IF(AND('Enrollment Form'!$O372=\"Graded\",'Enrollment Form'!$AR372<>\"\"),\"Y\",\"N\"))","v":"-"},{"$f":"IF($B365=\"N\",\"\",IF(OR('Enrollment Form'!$B372<>\"Subscriber\",'Enrollment Form'!$C372=\"ROC\"),\"-\",IF(AND('Enrollment Form'!$B372=\"Subscriber\",'Enrollment Form'!$C372=\"Enroll\",'Enrollment Form'!$AJ372<>\"\"),\"Y\",\"N\")))","v":""},{"$f":"IF($B365=\"N\",\"\",IF(OR('Enrollment Form'!$B372<>\"Subscriber\",'Enrollment Form'!$C372=\"ROC\"),\"-\",IF(AND('Enrollment Form'!$B372=\"Subscriber\",'Enrollment Form'!$C372=\"Enroll\",'Enrollment Form'!$AK372<>\"\"),\"Y\",\"N\")))","v":""},{"$f":"IF($B365=\"N\",\"\",IF(OR('Enrollment Form'!$B372<>\"Subscriber\",'Enrollment Form'!$C372=\"ROC\"),\"-\",IF(AND('Enrollment Form'!$B372=\"Subscriber\",'Enrollment Form'!$C372=\"Enroll\",'Enrollment Form'!$AL372<>\"\"),\"Y\",\"N\")))","v":""},{"$f":"IF($B365=\"N\",\"\",IF(OR('Enrollment Form'!$B372<>\"Subscriber\",'Enrollment Form'!$C372=\"ROC\"),\"-\",IF(AND('Enrollment Form'!$B372=\"Subscriber\",'Enrollment Form'!$C372=\"Enroll\",'Enrollment Form'!$AP372<>\"\"),\"Y\",\"N\")))","v":""},{"$f":"IF($B365=\"N\",\"\",IF(OR('Enrollment Form'!$B372<>\"Subscriber\",'Enrollment Form'!$C372=\"ROC\"),\"-\",IF(AND('Enrollment Form'!$B372=\"Subscriber\",'Enrollment Form'!$C372=\"Enroll\",'Enrollment Form'!$AQ372<>\"\"),\"Y\",\"N\")))","v":""},{"$f":"IF($B365=\"N\",\"\",IF(OR('Enrollment Form'!$B372<>\"Subscriber\",'Enrollment Form'!$C372=\"ROC\"),\"-\",IF(AND('Enrollment Form'!$B372=\"Subscriber\",'Enrollment Form'!$C372=\"Enroll\",'Enrollment Form'!$AS372<>\"\"),\"Y\",\"N\")))","v":""},{"$f":"IF($B365=\"N\",\"\",IF($Q365=\"-\",\"-\",IF(AND($Q365=\"Y\",'Enrollment Form'!$AS372=\"No\"),\"-\",IF(AND($Q365=\"Y\",'Enrollment Form'!$AS372=\"Yes\",'Enrollment Form'!$AT372<>\"\"),\"Y\",\"N\"))))","v":""},{"$f":"IF($B365=\"N\",\"\",IF(OR('Enrollment Form'!$B372<>\"Subscriber\",'Enrollment Form'!$C372=\"ROC\"),\"-\",IF(AND('Enrollment Form'!$B372=\"Subscriber\",'Enrollment Form'!$C372=\"Enroll\",'Enrollment Form'!$CV372<>\"\"),\"Y\",\"N\")))","v":""},{"$f":"IF($B365=\"N\",\"\",IF($S365=\"-\",\"-\",IF(AND($S365=\"Y\",'Enrollment Form'!$CV372=\"No\"),\"-\",IF(AND($S365=\"Y\",'Enrollment Form'!$CV372=\"Yes\",'Enrollment Form'!$CW372<>\"\"),\"Y\",\"N\"))))","v":""},{"$f":"IF(OR('Enrollment Form'!$AY372=\"Yes\",'Enrollment Form'!$AY372=\"\"),\"-\",IF(OR(AND('Enrollment Form'!$AY372=\"No\",ISERROR(FIND(\"HMO\",VLOOKUP('Enrollment Form'!G372,'Enrollment Form'!H$11:J$1000,3,FALSE),1))=FALSE,COUNTA('Enrollment Form'!$AZ372:$BC372)=4),AND('Enrollment Form'!$AY372=\"No\",ISERROR(FIND(\"HMO\",VLOOKUP('Enrollment Form'!G372,'Enrollment Form'!H$11:J$1000,3,FALSE),1))=FALSE,COUNTA('Enrollment Form'!$BT372:$BW372)=4)),\"Y\",\"N\"))","v":"-"},{"$f":"IF($B365=\"N\",\"\",IF('Enrollment Form'!$B372=\"Subscriber\",\"-\",IF(COUNTA('Enrollment Form'!$BL372,'Enrollment Form'!$BN372)=2,\"Y\",\"N\")))","v":""},{"$f":"IF($B365=\"N\",\"\",IF(OR('Enrollment Form'!$AX372=\"\",'Enrollment Form'!$AX372=\"No\"),\"-\",IF(AND('Enrollment Form'!$AX372=\"Yes\",COUNTA('Enrollment Form'!$CR372)=1),\"Y\",\"N\")))","v":""},{"$f":"IF(OR('Enrollment Form'!$CR372=\"\",'Enrollment Form'!$CR372=\"No\"),\"-\",IF(COUNTA('Enrollment Form'!$CT372:$CU372)=2,\"Y\",\"N\"))","v":"-"},{"$f":"IF($B365=\"N\",\"\",IF(COUNTIF('Enrollment Form'!$DG372:$DP372,\"Other\")=COUNTA('Enrollment Form'!$DK372,'Enrollment Form'!$DH372,'Enrollment Form'!$DN372,'Enrollment Form'!$DQ372),\"Y\",\"N\"))","v":""},{"$f":"IF($B365=\"N\",\"\",IF(OR('Enrollment Form'!B372<>\"Subscriber\",'Enrollment Form'!C372=\"ROC\",COUNTIF('Enrollment Form'!AV372:AW372,\"Yes\")>=1),\"-\",IF(AND('Enrollment Form'!C372=\"Enroll\",COUNTIF('Enrollment Form'!AV372:AW372,\"No\")=2,'Enrollment Form'!AX372=\"\"),\"N\",\"Y\")))","v":""},{"$f":"IF(OR(B365=\"N\",'Enrollment Form'!B372<>\"Subscriber\",'Enrollment Form'!C372=\"ROC\",'Enrollment Form'!O372<>\"Multiple of Salary\"),\"-\",IF(COUNTA('Enrollment Form'!T372:U372)<2,\"N\",\"Y\"))","v":"-"},{"$f":"IF(B365=\"N\",\"\",IF(OR('Enrollment Form'!C372=\"ROC\",'Enrollment Form'!B372<>\"Subscriber\",'Enrollment Form'!O372=\"Waive\",'Enrollment Form'!O372=\"\"),\"-\",IF('Enrollment Form'!P372=\"\",\"N\",\"Y\")))","v":""},{"$f":"IF($B365=\"N\",\"\",IF(AND('Enrollment Form'!$C372=\"ROC\",'Enrollment Form'!$DR372<>\"\"),\"Y\",IF(AND('Enrollment Form'!$C372=\"ROC\",'Enrollment Form'!$DR372=\"\"),\"N\",IF(AND('Enrollment Form'!$C372=\"Enroll\",'Enrollment Form'!$B372=\"Subscriber\",'Enrollment Form'!$CX372=\"No\",'Enrollment Form'!$DR372=\"\"),\"N\",IF(AND('Enrollment Form'!$C372=\"Enroll\",'Enrollment Form'!$B372=\"Subscriber\",'Enrollment Form'!$CX372=\"Yes\"),\"-\",\"Y\")))))","v":""},{"$f":"IF($B365=\"N\",\"\",IF(AND('Enrollment Form'!$C372=\"ROC\",'Enrollment Form'!$DS372<>\"\"),\"Y\",IF(AND('Enrollment Form'!$C372=\"ROC\",'Enrollment Form'!$DS372=\"\"),\"N\",IF(AND('Enrollment Form'!$C372=\"Enroll\",'Enrollment Form'!$B372=\"Subscriber\",'Enrollment Form'!$CX372=\"No\",'Enrollment Form'!$DS372=\"\"),\"N\",IF(AND('Enrollment Form'!$C372=\"Enroll\",'Enrollment Form'!$B372=\"Subscriber\",'Enrollment Form'!$CX372=\"Yes\"),\"-\",\"Y\")))))","v":""},{"$f":"IF('Enrollment Form'!AH372=\"\",\"\",IF(ISERROR(SEARCH(\".\",'Enrollment Form'!AH372,SEARCH(\"@\",'Enrollment Form'!AH372))),\"N\",\"Y\"))","v":""},{"$f":"IF(OR($B365=\"N\",'Enrollment Form'!$G372=\"\"),\"\",IF('Enrollment Form'!$B372<>\"Subscriber\",\"-\",IF(COUNTIF('Enrollment Form'!$AV372:$AW372,\"Yes\")=2,\"N\",\"Y\")))","v":""},{"$f":"IF(OR('Enrollment Form'!$CJ372=\"\",'Enrollment Form'!$CJ372=\"No\"),\"-\",IF(AND('Enrollment Form'!$CJ372=\"Yes\",'Enrollment Form'!$CK372=\"\"),\"N\",\"Y\"))","v":"-"},{"$f":"IF(OR('Enrollment Form'!$CL372=\"\",'Enrollment Form'!$CL372=\"No\"),\"-\",IF(AND('Enrollment Form'!$CL372=\"Yes\",'Enrollment Form'!$CM372=\"\"),\"N\",\"Y\"))","v":"-"},{"$f":"IF(OR('Enrollment Form'!$CN372=\"\",'Enrollment Form'!$CN372=\"No\"),\"-\",IF(AND('Enrollment Form'!$CN372=\"Yes\",'Enrollment Form'!$CO372=\"\"),\"N\",\"Y\"))","v":"-"},{"$f":"IF(OR('Enrollment Form'!$CN372=\"\",'Enrollment Form'!$CN372=\"No\"),\"-\",IF(AND('Enrollment Form'!$CN372=\"Yes\",'Enrollment Form'!$CP372=\"\"),\"N\",\"Y\"))","v":"-"},{"$f":"IF('Enrollment Form'!B372<>\"Subscriber\",\"-\",IF(AND('Enrollment Form'!B372=\"Subscriber\",'Enrollment Form'!C372=\"Enroll\",'Enrollment Form'!AA372=\"\"),\"N\",\"Y\"))","v":"-"},{"$f":"IF(OR('Enrollment Form'!B372=\"Subscriber\",'Enrollment Form'!B372=\"\"),\"-\",IF('Enrollment Form'!BP372=\"\",\"N\",\"Y\"))","v":"-"},{"$f":"IF('Enrollment Form'!B372<>\"Subscriber\",\"-\",IF(AND('Enrollment Form'!B372=\"Subscriber\",'Enrollment Form'!G372=\"\"),\"N\",\"Y\"))","v":"-"},{"$f":"IF('Enrollment Form'!A372=\"\",\"\",IF('Enrollment Form'!B372=\"Subscriber\",\"-\",IF(AND('Enrollment Form'!B372<>\"Subscriber\",'Enrollment Form'!G372='Enrollment Form'!H372),\"N\",\"Y\")))","v":""},0]
[373,{"$f":"IF('Enrollment Form'!$A373<>\"\",\"Y\",\"N\")","v":"N"},{"$f":"IF(AND('Enrollment Form'!$B373=\"\",'Enrollment Form'!$C373<>\"\"),\"N\",IF($B366=\"N\",\"\",\"Y\"))","v":""},{"$f":"IF(OR($B366=\"N\",'Enrollment Form'!G373=\"\"),\"\",IF('Enrollment Form'!$B373<>\"Subscriber\",\"\",IF('Enrollment Form'!$G373='Enrollment Form'!$H373,\"Y\",\"N\")))","v":""},{"$f":"IF($B366=\"N\",\"\",IF(AND(COUNTIFS('Enrollment Form'!$H$11:$H$1000,'Enrollment Form'!$H373,'Enrollment Form'!$B$11:$B$1000,'Enrollment Form'!$B373)>1,'Enrollment Form'!$H373<>\"\"),\"N\",\"Y\"))","v":""},{"$f":"IF($B366=\"N\",\"\",IF(LEN('Enrollment Form'!$Y373)=0,\"\",IF(LEN('Enrollment Form'!$Y373)<>5,\"N\",\"Y\")))","v":""},{"$f":"IF($B366=\"N\",\"\",IF(LEN('Enrollment Form'!$AD373=0),\"\",IF(LEN('Enrollment Form'!$AD373)<>5,\"N\",\"Y\")))","v":""},{"$f":"IF($B366=\"N\",\"\",IF(LEN('Enrollment Form'!$BS373=0),\"\",IF(LEN('Enrollment Form'!$BS373)<>5,\"N\",\"Y\")))","v":""},{"$f":"IF($B366=\"N\",\"\",IF(LEN('Enrollment Form'!$AE373)=0,\"\",IF(LEN('Enrollment Form'!$AE373)<>10,\"N\",\"Y\")))","v":""},{"$f":"IF($B366=\"N\",\"\",IF(LEN('Enrollment Form'!$AF373)=0,\"\",IF(LEN('Enrollment Form'!$AF373)<>10,\"N\",\"Y\")))","v":""},{"$f":"IF('Enrollment Form'!$O373<>\"Graded\",\"-\",IF(AND('Enrollment Form'!$O373=\"Graded\",'Enrollment Form'!$AR373<>\"\"),\"Y\",\"N\"))","v":"-"},{"$f":"IF($B366=\"N\",\"\",IF(OR('Enrollment Form'!$B373<>\"Subscriber\",'Enrollment Form'!$C373=\"ROC\"),\"-\",IF(AND('Enrollment Form'!$B373=\"Subscriber\",'Enrollment Form'!$C373=\"Enroll\",'Enrollment Form'!$AJ373<>\"\"),\"Y\",\"N\")))","v":""},{"$f":"IF($B366=\"N\",\"\",IF(OR('Enrollment Form'!$B373<>\"Subscriber\",'Enrollment Form'!$C373=\"ROC\"),\"-\",IF(AND('Enrollment Form'!$B373=\"Subscriber\",'Enrollment Form'!$C373=\"Enroll\",'Enrollment Form'!$AK373<>\"\"),\"Y\",\"N\")))","v":""},{"$f":"IF($B366=\"N\",\"\",IF(OR('Enrollment Form'!$B373<>\"Subscriber\",'Enrollment Form'!$C373=\"ROC\"),\"-\",IF(AND('Enrollment Form'!$B373=\"Subscriber\",'Enrollment Form'!$C373=\"Enroll\",'Enrollment Form'!$AL373<>\"\"),\"Y\",\"N\")))","v":""},{"$f":"IF($B366=\"N\",\"\",IF(OR('Enrollment Form'!$B373<>\"Subscriber\",'Enrollment Form'!$C373=\"ROC\"),\"-\",IF(AND('Enrollment Form'!$B373=\"Subscriber\",'Enrollment Form'!$C373=\"Enroll\",'Enrollment Form'!$AP373<>\"\"),\"Y\",\"N\")))","v":""},{"$f":"IF($B366=\"N\",\"\",IF(OR('Enrollment Form'!$B373<>\"Subscriber\",'Enrollment Form'!$C373=\"ROC\"),\"-\",IF(AND('Enrollment Form'!$B373=\"Subscriber\",'Enrollment Form'!$C373=\"Enroll\",'Enrollment Form'!$AQ373<>\"\"),\"Y\",\"N\")))","v":""},{"$f":"IF($B366=\"N\",\"\",IF(OR('Enrollment Form'!$B373<>\"Subscriber\",'Enrollment Form'!$C373=\"ROC\"),\"-\",IF(AND('Enrollment Form'!$B373=\"Subscriber\",'Enrollment Form'!$C373=\"Enroll\",'Enrollment Form'!$AS373<>\"\"),\"Y\",\"N\")))","v":""},{"$f":"IF($B366=\"N\",\"\",IF($Q366=\"-\",\"-\",IF(AND($Q366=\"Y\",'Enrollment Form'!$AS373=\"No\"),\"-\",IF(AND($Q366=\"Y\",'Enrollment Form'!$AS373=\"Yes\",'Enrollment Form'!$AT373<>\"\"),\"Y\",\"N\"))))","v":""},{"$f":"IF($B366=\"N\",\"\",IF(OR('Enrollment Form'!$B373<>\"Subscriber\",'Enrollment Form'!$C373=\"ROC\"),\"-\",IF(AND('Enrollment Form'!$B373=\"Subscriber\",'Enrollment Form'!$C373=\"Enroll\",'Enrollment Form'!$CV373<>\"\"),\"Y\",\"N\")))","v":""},{"$f":"IF($B366=\"N\",\"\",IF($S366=\"-\",\"-\",IF(AND($S366=\"Y\",'Enrollment Form'!$CV373=\"No\"),\"-\",IF(AND($S366=\"Y\",'Enrollment Form'!$CV373=\"Yes\",'Enrollment Form'!$CW373<>\"\"),\"Y\",\"N\"))))","v":""},{"$f":"IF(OR('Enrollment Form'!$AY373=\"Yes\",'Enrollment Form'!$AY373=\"\"),\"-\",IF(OR(AND('Enrollment Form'!$AY373=\"No\",ISERROR(FIND(\"HMO\",VLOOKUP('Enrollment Form'!G373,'Enrollment Form'!H$11:J$1000,3,FALSE),1))=FALSE,COUNTA('Enrollment Form'!$AZ373:$BC373)=4),AND('Enrollment Form'!$AY373=\"No\",ISERROR(FIND(\"HMO\",VLOOKUP('Enrollment Form'!G373,'Enrollment Form'!H$11:J$1000,3,FALSE),1))=FALSE,COUNTA('Enrollment Form'!$BT373:$BW373)=4)),\"Y\",\"N\"))","v":"-"},{"$f":"IF($B366=\"N\",\"\",IF('Enrollment Form'!$B373=\"Subscriber\",\"-\",IF(COUNTA('Enrollment Form'!$BL373,'Enrollment Form'!$BN373)=2,\"Y\",\"N\")))","v":""},{"$f":"IF($B366=\"N\",\"\",IF(OR('Enrollment Form'!$AX373=\"\",'Enrollment Form'!$AX373=\"No\"),\"-\",IF(AND('Enrollment Form'!$AX373=\"Yes\",COUNTA('Enrollment Form'!$CR373)=1),\"Y\",\"N\")))","v":""},{"$f":"IF(OR('Enrollment Form'!$CR373=\"\",'Enrollment Form'!$CR373=\"No\"),\"-\",IF(COUNTA('Enrollment Form'!$CT373:$CU373)=2,\"Y\",\"N\"))","v":"-"},{"$f":"IF($B366=\"N\",\"\",IF(COUNTIF('Enrollment Form'!$DG373:$DP373,\"Other\")=COUNTA('Enrollment Form'!$DK373,'Enrollment Form'!$DH373,'Enrollment Form'!$DN373,'Enrollment Form'!$DQ373),\"Y\",\"N\"))","v":""},{"$f":"IF($B366=\"N\",\"\",IF(OR('Enrollment Form'!B373<>\"Subscriber\",'Enrollment Form'!C373=\"ROC\",COUNTIF('Enrollment Form'!AV373:AW373,\"Yes\")>=1),\"-\",IF(AND('Enrollment Form'!C373=\"Enroll\",COUNTIF('Enrollment Form'!AV373:AW373,\"No\")=2,'Enrollment Form'!AX373=\"\"),\"N\",\"Y\")))","v":""},{"$f":"IF(OR(B366=\"N\",'Enrollment Form'!B373<>\"Subscriber\",'Enrollment Form'!C373=\"ROC\",'Enrollment Form'!O373<>\"Multiple of Salary\"),\"-\",IF(COUNTA('Enrollment Form'!T373:U373)<2,\"N\",\"Y\"))","v":"-"},{"$f":"IF(B366=\"N\",\"\",IF(OR('Enrollment Form'!C373=\"ROC\",'Enrollment Form'!B373<>\"Subscriber\",'Enrollment Form'!O373=\"Waive\",'Enrollment Form'!O373=\"\"),\"-\",IF('Enrollment Form'!P373=\"\",\"N\",\"Y\")))","v":""},{"$f":"IF($B366=\"N\",\"\",IF(AND('Enrollment Form'!$C373=\"ROC\",'Enrollment Form'!$DR373<>\"\"),\"Y\",IF(AND('Enrollment Form'!$C373=\"ROC\",'Enrollment Form'!$DR373=\"\"),\"N\",IF(AND('Enrollment Form'!$C373=\"Enroll\",'Enrollment Form'!$B373=\"Subscriber\",'Enrollment Form'!$CX373=\"No\",'Enrollment Form'!$DR373=\"\"),\"N\",IF(AND('Enrollment Form'!$C373=\"Enroll\",'Enrollment Form'!$B373=\"Subscriber\",'Enrollment Form'!$CX373=\"Yes\"),\"-\",\"Y\")))))","v":""},{"$f":"IF($B366=\"N\",\"\",IF(AND('Enrollment Form'!$C373=\"ROC\",'Enrollment Form'!$DS373<>\"\"),\"Y\",IF(AND('Enrollment Form'!$C373=\"ROC\",'Enrollment Form'!$DS373=\"\"),\"N\",IF(AND('Enrollment Form'!$C373=\"Enroll\",'Enrollment Form'!$B373=\"Subscriber\",'Enrollment Form'!$CX373=\"No\",'Enrollment Form'!$DS373=\"\"),\"N\",IF(AND('Enrollment Form'!$C373=\"Enroll\",'Enrollment Form'!$B373=\"Subscriber\",'Enrollment Form'!$CX373=\"Yes\"),\"-\",\"Y\")))))","v":""},{"$f":"IF('Enrollment Form'!AH373=\"\",\"\",IF(ISERROR(SEARCH(\".\",'Enrollment Form'!AH373,SEARCH(\"@\",'Enrollment Form'!AH373))),\"N\",\"Y\"))","v":""},{"$f":"IF(OR($B366=\"N\",'Enrollment Form'!$G373=\"\"),\"\",IF('Enrollment Form'!$B373<>\"Subscriber\",\"-\",IF(COUNTIF('Enrollment Form'!$AV373:$AW373,\"Yes\")=2,\"N\",\"Y\")))","v":""},{"$f":"IF(OR('Enrollment Form'!$CJ373=\"\",'Enrollment Form'!$CJ373=\"No\"),\"-\",IF(AND('Enrollment Form'!$CJ373=\"Yes\",'Enrollment Form'!$CK373=\"\"),\"N\",\"Y\"))","v":"-"},{"$f":"IF(OR('Enrollment Form'!$CL373=\"\",'Enrollment Form'!$CL373=\"No\"),\"-\",IF(AND('Enrollment Form'!$CL373=\"Yes\",'Enrollment Form'!$CM373=\"\"),\"N\",\"Y\"))","v":"-"},{"$f":"IF(OR('Enrollment Form'!$CN373=\"\",'Enrollment Form'!$CN373=\"No\"),\"-\",IF(AND('Enrollment Form'!$CN373=\"Yes\",'Enrollment Form'!$CO373=\"\"),\"N\",\"Y\"))","v":"-"},{"$f":"IF(OR('Enrollment Form'!$CN373=\"\",'Enrollment Form'!$CN373=\"No\"),\"-\",IF(AND('Enrollment Form'!$CN373=\"Yes\",'Enrollment Form'!$CP373=\"\"),\"N\",\"Y\"))","v":"-"},{"$f":"IF('Enrollment Form'!B373<>\"Subscriber\",\"-\",IF(AND('Enrollment Form'!B373=\"Subscriber\",'Enrollment Form'!C373=\"Enroll\",'Enrollment Form'!AA373=\"\"),\"N\",\"Y\"))","v":"-"},{"$f":"IF(OR('Enrollment Form'!B373=\"Subscriber\",'Enrollment Form'!B373=\"\"),\"-\",IF('Enrollment Form'!BP373=\"\",\"N\",\"Y\"))","v":"-"},{"$f":"IF('Enrollment Form'!B373<>\"Subscriber\",\"-\",IF(AND('Enrollment Form'!B373=\"Subscriber\",'Enrollment Form'!G373=\"\"),\"N\",\"Y\"))","v":"-"},{"$f":"IF('Enrollment Form'!A373=\"\",\"\",IF('Enrollment Form'!B373=\"Subscriber\",\"-\",IF(AND('Enrollment Form'!B373<>\"Subscriber\",'Enrollment Form'!G373='Enrollment Form'!H373),\"N\",\"Y\")))","v":""},0]
[374,{"$f":"IF('Enrollment Form'!$A374<>\"\",\"Y\",\"N\")","v":"N"},{"$f":"IF(AND('Enrollment Form'!$B374=\"\",'Enrollment Form'!$C374<>\"\"),\"N\",IF($B367=\"N\",\"\",\"Y\"))","v":""},{"$f":"IF(OR($B367=\"N\",'Enrollment Form'!G374=\"\"),\"\",IF('Enrollment Form'!$B374<>\"Subscriber\",\"\",IF('Enrollment Form'!$G374='Enrollment Form'!$H374,\"Y\",\"N\")))","v":""},{"$f":"IF($B367=\"N\",\"\",IF(AND(COUNTIFS('Enrollment Form'!$H$11:$H$1000,'Enrollment Form'!$H374,'Enrollment Form'!$B$11:$B$1000,'Enrollment Form'!$B374)>1,'Enrollment Form'!$H374<>\"\"),\"N\",\"Y\"))","v":""},{"$f":"IF($B367=\"N\",\"\",IF(LEN('Enrollment Form'!$Y374)=0,\"\",IF(LEN('Enrollment Form'!$Y374)<>5,\"N\",\"Y\")))","v":""},{"$f":"IF($B367=\"N\",\"\",IF(LEN('Enrollment Form'!$AD374=0),\"\",IF(LEN('Enrollment Form'!$AD374)<>5,\"N\",\"Y\")))","v":""},{"$f":"IF($B367=\"N\",\"\",IF(LEN('Enrollment Form'!$BS374=0),\"\",IF(LEN('Enrollment Form'!$BS374)<>5,\"N\",\"Y\")))","v":""},{"$f":"IF($B367=\"N\",\"\",IF(LEN('Enrollment Form'!$AE374)=0,\"\",IF(LEN('Enrollment Form'!$AE374)<>10,\"N\",\"Y\")))","v":""},{"$f":"IF($B367=\"N\",\"\",IF(LEN('Enrollment Form'!$AF374)=0,\"\",IF(LEN('Enrollment Form'!$AF374)<>10,\"N\",\"Y\")))","v":""},{"$f":"IF('Enrollment Form'!$O374<>\"Graded\",\"-\",IF(AND('Enrollment Form'!$O374=\"Graded\",'Enrollment Form'!$AR374<>\"\"),\"Y\",\"N\"))","v":"-"},{"$f":"IF($B367=\"N\",\"\",IF(OR('Enrollment Form'!$B374<>\"Subscriber\",'Enrollment Form'!$C374=\"ROC\"),\"-\",IF(AND('Enrollment Form'!$B374=\"Subscriber\",'Enrollment Form'!$C374=\"Enroll\",'Enrollment Form'!$AJ374<>\"\"),\"Y\",\"N\")))","v":""},{"$f":"IF($B367=\"N\",\"\",IF(OR('Enrollment Form'!$B374<>\"Subscriber\",'Enrollment Form'!$C374=\"ROC\"),\"-\",IF(AND('Enrollment Form'!$B374=\"Subscriber\",'Enrollment Form'!$C374=\"Enroll\",'Enrollment Form'!$AK374<>\"\"),\"Y\",\"N\")))","v":""},{"$f":"IF($B367=\"N\",\"\",IF(OR('Enrollment Form'!$B374<>\"Subscriber\",'Enrollment Form'!$C374=\"ROC\"),\"-\",IF(AND('Enrollment Form'!$B374=\"Subscriber\",'Enrollment Form'!$C374=\"Enroll\",'Enrollment Form'!$AL374<>\"\"),\"Y\",\"N\")))","v":""},{"$f":"IF($B367=\"N\",\"\",IF(OR('Enrollment Form'!$B374<>\"Subscriber\",'Enrollment Form'!$C374=\"ROC\"),\"-\",IF(AND('Enrollment Form'!$B374=\"Subscriber\",'Enrollment Form'!$C374=\"Enroll\",'Enrollment Form'!$AP374<>\"\"),\"Y\",\"N\")))","v":""},{"$f":"IF($B367=\"N\",\"\",IF(OR('Enrollment Form'!$B374<>\"Subscriber\",'Enrollment Form'!$C374=\"ROC\"),\"-\",IF(AND('Enrollment Form'!$B374=\"Subscriber\",'Enrollment Form'!$C374=\"Enroll\",'Enrollment Form'!$AQ374<>\"\"),\"Y\",\"N\")))","v":""},{"$f":"IF($B367=\"N\",\"\",IF(OR('Enrollment Form'!$B374<>\"Subscriber\",'Enrollment Form'!$C374=\"ROC\"),\"-\",IF(AND('Enrollment Form'!$B374=\"Subscriber\",'Enrollment Form'!$C374=\"Enroll\",'Enrollment Form'!$AS374<>\"\"),\"Y\",\"N\")))","v":""},{"$f":"IF($B367=\"N\",\"\",IF($Q367=\"-\",\"-\",IF(AND($Q367=\"Y\",'Enrollment Form'!$AS374=\"No\"),\"-\",IF(AND($Q367=\"Y\",'Enrollment Form'!$AS374=\"Yes\",'Enrollment Form'!$AT374<>\"\"),\"Y\",\"N\"))))","v":""},{"$f":"IF($B367=\"N\",\"\",IF(OR('Enrollment Form'!$B374<>\"Subscriber\",'Enrollment Form'!$C374=\"ROC\"),\"-\",IF(AND('Enrollment Form'!$B374=\"Subscriber\",'Enrollment Form'!$C374=\"Enroll\",'Enrollment Form'!$CV374<>\"\"),\"Y\",\"N\")))","v":""},{"$f":"IF($B367=\"N\",\"\",IF($S367=\"-\",\"-\",IF(AND($S367=\"Y\",'Enrollment Form'!$CV374=\"No\"),\"-\",IF(AND($S367=\"Y\",'Enrollment Form'!$CV374=\"Yes\",'Enrollment Form'!$CW374<>\"\"),\"Y\",\"N\"))))","v":""},{"$f":"IF(OR('Enrollment Form'!$AY374=\"Yes\",'Enrollment Form'!$AY374=\"\"),\"-\",IF(OR(AND('Enrollment Form'!$AY374=\"No\",ISERROR(FIND(\"HMO\",VLOOKUP('Enrollment Form'!G374,'Enrollment Form'!H$11:J$1000,3,FALSE),1))=FALSE,COUNTA('Enrollment Form'!$AZ374:$BC374)=4),AND('Enrollment Form'!$AY374=\"No\",ISERROR(FIND(\"HMO\",VLOOKUP('Enrollment Form'!G374,'Enrollment Form'!H$11:J$1000,3,FALSE),1))=FALSE,COUNTA('Enrollment Form'!$BT374:$BW374)=4)),\"Y\",\"N\"))","v":"-"},{"$f":"IF($B367=\"N\",\"\",IF('Enrollment Form'!$B374=\"Subscriber\",\"-\",IF(COUNTA('Enrollment Form'!$BL374,'Enrollment Form'!$BN374)=2,\"Y\",\"N\")))","v":""},{"$f":"IF($B367=\"N\",\"\",IF(OR('Enrollment Form'!$AX374=\"\",'Enrollment Form'!$AX374=\"No\"),\"-\",IF(AND('Enrollment Form'!$AX374=\"Yes\",COUNTA('Enrollment Form'!$CR374)=1),\"Y\",\"N\")))","v":""},{"$f":"IF(OR('Enrollment Form'!$CR374=\"\",'Enrollment Form'!$CR374=\"No\"),\"-\",IF(COUNTA('Enrollment Form'!$CT374:$CU374)=2,\"Y\",\"N\"))","v":"-"},{"$f":"IF($B367=\"N\",\"\",IF(COUNTIF('Enrollment Form'!$DG374:$DP374,\"Other\")=COUNTA('Enrollment Form'!$DK374,'Enrollment Form'!$DH374,'Enrollment Form'!$DN374,'Enrollment Form'!$DQ374),\"Y\",\"N\"))","v":""},{"$f":"IF($B367=\"N\",\"\",IF(OR('Enrollment Form'!B374<>\"Subscriber\",'Enrollment Form'!C374=\"ROC\",COUNTIF('Enrollment Form'!AV374:AW374,\"Yes\")>=1),\"-\",IF(AND('Enrollment Form'!C374=\"Enroll\",COUNTIF('Enrollment Form'!AV374:AW374,\"No\")=2,'Enrollment Form'!AX374=\"\"),\"N\",\"Y\")))","v":""},{"$f":"IF(OR(B367=\"N\",'Enrollment Form'!B374<>\"Subscriber\",'Enrollment Form'!C374=\"ROC\",'Enrollment Form'!O374<>\"Multiple of Salary\"),\"-\",IF(COUNTA('Enrollment Form'!T374:U374)<2,\"N\",\"Y\"))","v":"-"},{"$f":"IF(B367=\"N\",\"\",IF(OR('Enrollment Form'!C374=\"ROC\",'Enrollment Form'!B374<>\"Subscriber\",'Enrollment Form'!O374=\"Waive\",'Enrollment Form'!O374=\"\"),\"-\",IF('Enrollment Form'!P374=\"\",\"N\",\"Y\")))","v":""},{"$f":"IF($B367=\"N\",\"\",IF(AND('Enrollment Form'!$C374=\"ROC\",'Enrollment Form'!$DR374<>\"\"),\"Y\",IF(AND('Enrollment Form'!$C374=\"ROC\",'Enrollment Form'!$DR374=\"\"),\"N\",IF(AND('Enrollment Form'!$C374=\"Enroll\",'Enrollment Form'!$B374=\"Subscriber\",'Enrollment Form'!$CX374=\"No\",'Enrollment Form'!$DR374=\"\"),\"N\",IF(AND('Enrollment Form'!$C374=\"Enroll\",'Enrollment Form'!$B374=\"Subscriber\",'Enrollment Form'!$CX374=\"Yes\"),\"-\",\"Y\")))))","v":""},{"$f":"IF($B367=\"N\",\"\",IF(AND('Enrollment Form'!$C374=\"ROC\",'Enrollment Form'!$DS374<>\"\"),\"Y\",IF(AND('Enrollment Form'!$C374=\"ROC\",'Enrollment Form'!$DS374=\"\"),\"N\",IF(AND('Enrollment Form'!$C374=\"Enroll\",'Enrollment Form'!$B374=\"Subscriber\",'Enrollment Form'!$CX374=\"No\",'Enrollment Form'!$DS374=\"\"),\"N\",IF(AND('Enrollment Form'!$C374=\"Enroll\",'Enrollment Form'!$B374=\"Subscriber\",'Enrollment Form'!$CX374=\"Yes\"),\"-\",\"Y\")))))","v":""},{"$f":"IF('Enrollment Form'!AH374=\"\",\"\",IF(ISERROR(SEARCH(\".\",'Enrollment Form'!AH374,SEARCH(\"@\",'Enrollment Form'!AH374))),\"N\",\"Y\"))","v":""},{"$f":"IF(OR($B367=\"N\",'Enrollment Form'!$G374=\"\"),\"\",IF('Enrollment Form'!$B374<>\"Subscriber\",\"-\",IF(COUNTIF('Enrollment Form'!$AV374:$AW374,\"Yes\")=2,\"N\",\"Y\")))","v":""},{"$f":"IF(OR('Enrollment Form'!$CJ374=\"\",'Enrollment Form'!$CJ374=\"No\"),\"-\",IF(AND('Enrollment Form'!$CJ374=\"Yes\",'Enrollment Form'!$CK374=\"\"),\"N\",\"Y\"))","v":"-"},{"$f":"IF(OR('Enrollment Form'!$CL374=\"\",'Enrollment Form'!$CL374=\"No\"),\"-\",IF(AND('Enrollment Form'!$CL374=\"Yes\",'Enrollment Form'!$CM374=\"\"),\"N\",\"Y\"))","v":"-"},{"$f":"IF(OR('Enrollment Form'!$CN374=\"\",'Enrollment Form'!$CN374=\"No\"),\"-\",IF(AND('Enrollment Form'!$CN374=\"Yes\",'Enrollment Form'!$CO374=\"\"),\"N\",\"Y\"))","v":"-"},{"$f":"IF(OR('Enrollment Form'!$CN374=\"\",'Enrollment Form'!$CN374=\"No\"),\"-\",IF(AND('Enrollment Form'!$CN374=\"Yes\",'Enrollment Form'!$CP374=\"\"),\"N\",\"Y\"))","v":"-"},{"$f":"IF('Enrollment Form'!B374<>\"Subscriber\",\"-\",IF(AND('Enrollment Form'!B374=\"Subscriber\",'Enrollment Form'!C374=\"Enroll\",'Enrollment Form'!AA374=\"\"),\"N\",\"Y\"))","v":"-"},{"$f":"IF(OR('Enrollment Form'!B374=\"Subscriber\",'Enrollment Form'!B374=\"\"),\"-\",IF('Enrollment Form'!BP374=\"\",\"N\",\"Y\"))","v":"-"},{"$f":"IF('Enrollment Form'!B374<>\"Subscriber\",\"-\",IF(AND('Enrollment Form'!B374=\"Subscriber\",'Enrollment Form'!G374=\"\"),\"N\",\"Y\"))","v":"-"},{"$f":"IF('Enrollment Form'!A374=\"\",\"\",IF('Enrollment Form'!B374=\"Subscriber\",\"-\",IF(AND('Enrollment Form'!B374<>\"Subscriber\",'Enrollment Form'!G374='Enrollment Form'!H374),\"N\",\"Y\")))","v":""},0]
[375,{"$f":"IF('Enrollment Form'!$A375<>\"\",\"Y\",\"N\")","v":"N"},{"$f":"IF(AND('Enrollment Form'!$B375=\"\",'Enrollment Form'!$C375<>\"\"),\"N\",IF($B368=\"N\",\"\",\"Y\"))","v":""},{"$f":"IF(OR($B368=\"N\",'Enrollment Form'!G375=\"\"),\"\",IF('Enrollment Form'!$B375<>\"Subscriber\",\"\",IF('Enrollment Form'!$G375='Enrollment Form'!$H375,\"Y\",\"N\")))","v":""},{"$f":"IF($B368=\"N\",\"\",IF(AND(COUNTIFS('Enrollment Form'!$H$11:$H$1000,'Enrollment Form'!$H375,'Enrollment Form'!$B$11:$B$1000,'Enrollment Form'!$B375)>1,'Enrollment Form'!$H375<>\"\"),\"N\",\"Y\"))","v":""},{"$f":"IF($B368=\"N\",\"\",IF(LEN('Enrollment Form'!$Y375)=0,\"\",IF(LEN('Enrollment Form'!$Y375)<>5,\"N\",\"Y\")))","v":""},{"$f":"IF($B368=\"N\",\"\",IF(LEN('Enrollment Form'!$AD375=0),\"\",IF(LEN('Enrollment Form'!$AD375)<>5,\"N\",\"Y\")))","v":""},{"$f":"IF($B368=\"N\",\"\",IF(LEN('Enrollment Form'!$BS375=0),\"\",IF(LEN('Enrollment Form'!$BS375)<>5,\"N\",\"Y\")))","v":""},{"$f":"IF($B368=\"N\",\"\",IF(LEN('Enrollment Form'!$AE375)=0,\"\",IF(LEN('Enrollment Form'!$AE375)<>10,\"N\",\"Y\")))","v":""},{"$f":"IF($B368=\"N\",\"\",IF(LEN('Enrollment Form'!$AF375)=0,\"\",IF(LEN('Enrollment Form'!$AF375)<>10,\"N\",\"Y\")))","v":""},{"$f":"IF('Enrollment Form'!$O375<>\"Graded\",\"-\",IF(AND('Enrollment Form'!$O375=\"Graded\",'Enrollment Form'!$AR375<>\"\"),\"Y\",\"N\"))","v":"-"},{"$f":"IF($B368=\"N\",\"\",IF(OR('Enrollment Form'!$B375<>\"Subscriber\",'Enrollment Form'!$C375=\"ROC\"),\"-\",IF(AND('Enrollment Form'!$B375=\"Subscriber\",'Enrollment Form'!$C375=\"Enroll\",'Enrollment Form'!$AJ375<>\"\"),\"Y\",\"N\")))","v":""},{"$f":"IF($B368=\"N\",\"\",IF(OR('Enrollment Form'!$B375<>\"Subscriber\",'Enrollment Form'!$C375=\"ROC\"),\"-\",IF(AND('Enrollment Form'!$B375=\"Subscriber\",'Enrollment Form'!$C375=\"Enroll\",'Enrollment Form'!$AK375<>\"\"),\"Y\",\"N\")))","v":""},{"$f":"IF($B368=\"N\",\"\",IF(OR('Enrollment Form'!$B375<>\"Subscriber\",'Enrollment Form'!$C375=\"ROC\"),\"-\",IF(AND('Enrollment Form'!$B375=\"Subscriber\",'Enrollment Form'!$C375=\"Enroll\",'Enrollment Form'!$AL375<>\"\"),\"Y\",\"N\")))","v":""},{"$f":"IF($B368=\"N\",\"\",IF(OR('Enrollment Form'!$B375<>\"Subscriber\",'Enrollment Form'!$C375=\"ROC\"),\"-\",IF(AND('Enrollment Form'!$B375=\"Subscriber\",'Enrollment Form'!$C375=\"Enroll\",'Enrollment Form'!$AP375<>\"\"),\"Y\",\"N\")))","v":""},{"$f":"IF($B368=\"N\",\"\",IF(OR('Enrollment Form'!$B375<>\"Subscriber\",'Enrollment Form'!$C375=\"ROC\"),\"-\",IF(AND('Enrollment Form'!$B375=\"Subscriber\",'Enrollment Form'!$C375=\"Enroll\",'Enrollment Form'!$AQ375<>\"\"),\"Y\",\"N\")))","v":""},{"$f":"IF($B368=\"N\",\"\",IF(OR('Enrollment Form'!$B375<>\"Subscriber\",'Enrollment Form'!$C375=\"ROC\"),\"-\",IF(AND('Enrollment Form'!$B375=\"Subscriber\",'Enrollment Form'!$C375=\"Enroll\",'Enrollment Form'!$AS375<>\"\"),\"Y\",\"N\")))","v":""},{"$f":"IF($B368=\"N\",\"\",IF($Q368=\"-\",\"-\",IF(AND($Q368=\"Y\",'Enrollment Form'!$AS375=\"No\"),\"-\",IF(AND($Q368=\"Y\",'Enrollment Form'!$AS375=\"Yes\",'Enrollment Form'!$AT375<>\"\"),\"Y\",\"N\"))))","v":""},{"$f":"IF($B368=\"N\",\"\",IF(OR('Enrollment Form'!$B375<>\"Subscriber\",'Enrollment Form'!$C375=\"ROC\"),\"-\",IF(AND('Enrollment Form'!$B375=\"Subscriber\",'Enrollment Form'!$C375=\"Enroll\",'Enrollment Form'!$CV375<>\"\"),\"Y\",\"N\")))","v":""},{"$f":"IF($B368=\"N\",\"\",IF($S368=\"-\",\"-\",IF(AND($S368=\"Y\",'Enrollment Form'!$CV375=\"No\"),\"-\",IF(AND($S368=\"Y\",'Enrollment Form'!$CV375=\"Yes\",'Enrollment Form'!$CW375<>\"\"),\"Y\",\"N\"))))","v":""},{"$f":"IF(OR('Enrollment Form'!$AY375=\"Yes\",'Enrollment Form'!$AY375=\"\"),\"-\",IF(OR(AND('Enrollment Form'!$AY375=\"No\",ISERROR(FIND(\"HMO\",VLOOKUP('Enrollment Form'!G375,'Enrollment Form'!H$11:J$1000,3,FALSE),1))=FALSE,COUNTA('Enrollment Form'!$AZ375:$BC375)=4),AND('Enrollment Form'!$AY375=\"No\",ISERROR(FIND(\"HMO\",VLOOKUP('Enrollment Form'!G375,'Enrollment Form'!H$11:J$1000,3,FALSE),1))=FALSE,COUNTA('Enrollment Form'!$BT375:$BW375)=4)),\"Y\",\"N\"))","v":"-"},{"$f":"IF($B368=\"N\",\"\",IF('Enrollment Form'!$B375=\"Subscriber\",\"-\",IF(COUNTA('Enrollment Form'!$BL375,'Enrollment Form'!$BN375)=2,\"Y\",\"N\")))","v":""},{"$f":"IF($B368=\"N\",\"\",IF(OR('Enrollment Form'!$AX375=\"\",'Enrollment Form'!$AX375=\"No\"),\"-\",IF(AND('Enrollment Form'!$AX375=\"Yes\",COUNTA('Enrollment Form'!$CR375)=1),\"Y\",\"N\")))","v":""},{"$f":"IF(OR('Enrollment Form'!$CR375=\"\",'Enrollment Form'!$CR375=\"No\"),\"-\",IF(COUNTA('Enrollment Form'!$CT375:$CU375)=2,\"Y\",\"N\"))","v":"-"},{"$f":"IF($B368=\"N\",\"\",IF(COUNTIF('Enrollment Form'!$DG375:$DP375,\"Other\")=COUNTA('Enrollment Form'!$DK375,'Enrollment Form'!$DH375,'Enrollment Form'!$DN375,'Enrollment Form'!$DQ375),\"Y\",\"N\"))","v":""},{"$f":"IF($B368=\"N\",\"\",IF(OR('Enrollment Form'!B375<>\"Subscriber\",'Enrollment Form'!C375=\"ROC\",COUNTIF('Enrollment Form'!AV375:AW375,\"Yes\")>=1),\"-\",IF(AND('Enrollment Form'!C375=\"Enroll\",COUNTIF('Enrollment Form'!AV375:AW375,\"No\")=2,'Enrollment Form'!AX375=\"\"),\"N\",\"Y\")))","v":""},{"$f":"IF(OR(B368=\"N\",'Enrollment Form'!B375<>\"Subscriber\",'Enrollment Form'!C375=\"ROC\",'Enrollment Form'!O375<>\"Multiple of Salary\"),\"-\",IF(COUNTA('Enrollment Form'!T375:U375)<2,\"N\",\"Y\"))","v":"-"},{"$f":"IF(B368=\"N\",\"\",IF(OR('Enrollment Form'!C375=\"ROC\",'Enrollment Form'!B375<>\"Subscriber\",'Enrollment Form'!O375=\"Waive\",'Enrollment Form'!O375=\"\"),\"-\",IF('Enrollment Form'!P375=\"\",\"N\",\"Y\")))","v":""},{"$f":"IF($B368=\"N\",\"\",IF(AND('Enrollment Form'!$C375=\"ROC\",'Enrollment Form'!$DR375<>\"\"),\"Y\",IF(AND('Enrollment Form'!$C375=\"ROC\",'Enrollment Form'!$DR375=\"\"),\"N\",IF(AND('Enrollment Form'!$C375=\"Enroll\",'Enrollment Form'!$B375=\"Subscriber\",'Enrollment Form'!$CX375=\"No\",'Enrollment Form'!$DR375=\"\"),\"N\",IF(AND('Enrollment Form'!$C375=\"Enroll\",'Enrollment Form'!$B375=\"Subscriber\",'Enrollment Form'!$CX375=\"Yes\"),\"-\",\"Y\")))))","v":""},{"$f":"IF($B368=\"N\",\"\",IF(AND('Enrollment Form'!$C375=\"ROC\",'Enrollment Form'!$DS375<>\"\"),\"Y\",IF(AND('Enrollment Form'!$C375=\"ROC\",'Enrollment Form'!$DS375=\"\"),\"N\",IF(AND('Enrollment Form'!$C375=\"Enroll\",'Enrollment Form'!$B375=\"Subscriber\",'Enrollment Form'!$CX375=\"No\",'Enrollment Form'!$DS375=\"\"),\"N\",IF(AND('Enrollment Form'!$C375=\"Enroll\",'Enrollment Form'!$B375=\"Subscriber\",'Enrollment Form'!$CX375=\"Yes\"),\"-\",\"Y\")))))","v":""},{"$f":"IF('Enrollment Form'!AH375=\"\",\"\",IF(ISERROR(SEARCH(\".\",'Enrollment Form'!AH375,SEARCH(\"@\",'Enrollment Form'!AH375))),\"N\",\"Y\"))","v":""},{"$f":"IF(OR($B368=\"N\",'Enrollment Form'!$G375=\"\"),\"\",IF('Enrollment Form'!$B375<>\"Subscriber\",\"-\",IF(COUNTIF('Enrollment Form'!$AV375:$AW375,\"Yes\")=2,\"N\",\"Y\")))","v":""},{"$f":"IF(OR('Enrollment Form'!$CJ375=\"\",'Enrollment Form'!$CJ375=\"No\"),\"-\",IF(AND('Enrollment Form'!$CJ375=\"Yes\",'Enrollment Form'!$CK375=\"\"),\"N\",\"Y\"))","v":"-"},{"$f":"IF(OR('Enrollment Form'!$CL375=\"\",'Enrollment Form'!$CL375=\"No\"),\"-\",IF(AND('Enrollment Form'!$CL375=\"Yes\",'Enrollment Form'!$CM375=\"\"),\"N\",\"Y\"))","v":"-"},{"$f":"IF(OR('Enrollment Form'!$CN375=\"\",'Enrollment Form'!$CN375=\"No\"),\"-\",IF(AND('Enrollment Form'!$CN375=\"Yes\",'Enrollment Form'!$CO375=\"\"),\"N\",\"Y\"))","v":"-"},{"$f":"IF(OR('Enrollment Form'!$CN375=\"\",'Enrollment Form'!$CN375=\"No\"),\"-\",IF(AND('Enrollment Form'!$CN375=\"Yes\",'Enrollment Form'!$CP375=\"\"),\"N\",\"Y\"))","v":"-"},{"$f":"IF('Enrollment Form'!B375<>\"Subscriber\",\"-\",IF(AND('Enrollment Form'!B375=\"Subscriber\",'Enrollment Form'!C375=\"Enroll\",'Enrollment Form'!AA375=\"\"),\"N\",\"Y\"))","v":"-"},{"$f":"IF(OR('Enrollment Form'!B375=\"Subscriber\",'Enrollment Form'!B375=\"\"),\"-\",IF('Enrollment Form'!BP375=\"\",\"N\",\"Y\"))","v":"-"},{"$f":"IF('Enrollment Form'!B375<>\"Subscriber\",\"-\",IF(AND('Enrollment Form'!B375=\"Subscriber\",'Enrollment Form'!G375=\"\"),\"N\",\"Y\"))","v":"-"},{"$f":"IF('Enrollment Form'!A375=\"\",\"\",IF('Enrollment Form'!B375=\"Subscriber\",\"-\",IF(AND('Enrollment Form'!B375<>\"Subscriber\",'Enrollment Form'!G375='Enrollment Form'!H375),\"N\",\"Y\")))","v":""},0]
[376,{"$f":"IF('Enrollment Form'!$A376<>\"\",\"Y\",\"N\")","v":"N"},{"$f":"IF(AND('Enrollment Form'!$B376=\"\",'Enrollment Form'!$C376<>\"\"),\"N\",IF($B369=\"N\",\"\",\"Y\"))","v":""},{"$f":"IF(OR($B369=\"N\",'Enrollment Form'!G376=\"\"),\"\",IF('Enrollment Form'!$B376<>\"Subscriber\",\"\",IF('Enrollment Form'!$G376='Enrollment Form'!$H376,\"Y\",\"N\")))","v":""},{"$f":"IF($B369=\"N\",\"\",IF(AND(COUNTIFS('Enrollment Form'!$H$11:$H$1000,'Enrollment Form'!$H376,'Enrollment Form'!$B$11:$B$1000,'Enrollment Form'!$B376)>1,'Enrollment Form'!$H376<>\"\"),\"N\",\"Y\"))","v":""},{"$f":"IF($B369=\"N\",\"\",IF(LEN('Enrollment Form'!$Y376)=0,\"\",IF(LEN('Enrollment Form'!$Y376)<>5,\"N\",\"Y\")))","v":""},{"$f":"IF($B369=\"N\",\"\",IF(LEN('Enrollment Form'!$AD376=0),\"\",IF(LEN('Enrollment Form'!$AD376)<>5,\"N\",\"Y\")))","v":""},{"$f":"IF($B369=\"N\",\"\",IF(LEN('Enrollment Form'!$BS376=0),\"\",IF(LEN('Enrollment Form'!$BS376)<>5,\"N\",\"Y\")))","v":""},{"$f":"IF($B369=\"N\",\"\",IF(LEN('Enrollment Form'!$AE376)=0,\"\",IF(LEN('Enrollment Form'!$AE376)<>10,\"N\",\"Y\")))","v":""},{"$f":"IF($B369=\"N\",\"\",IF(LEN('Enrollment Form'!$AF376)=0,\"\",IF(LEN('Enrollment Form'!$AF376)<>10,\"N\",\"Y\")))","v":""},{"$f":"IF('Enrollment Form'!$O376<>\"Graded\",\"-\",IF(AND('Enrollment Form'!$O376=\"Graded\",'Enrollment Form'!$AR376<>\"\"),\"Y\",\"N\"))","v":"-"},{"$f":"IF($B369=\"N\",\"\",IF(OR('Enrollment Form'!$B376<>\"Subscriber\",'Enrollment Form'!$C376=\"ROC\"),\"-\",IF(AND('Enrollment Form'!$B376=\"Subscriber\",'Enrollment Form'!$C376=\"Enroll\",'Enrollment Form'!$AJ376<>\"\"),\"Y\",\"N\")))","v":""},{"$f":"IF($B369=\"N\",\"\",IF(OR('Enrollment Form'!$B376<>\"Subscriber\",'Enrollment Form'!$C376=\"ROC\"),\"-\",IF(AND('Enrollment Form'!$B376=\"Subscriber\",'Enrollment Form'!$C376=\"Enroll\",'Enrollment Form'!$AK376<>\"\"),\"Y\",\"N\")))","v":""},{"$f":"IF($B369=\"N\",\"\",IF(OR('Enrollment Form'!$B376<>\"Subscriber\",'Enrollment Form'!$C376=\"ROC\"),\"-\",IF(AND('Enrollment Form'!$B376=\"Subscriber\",'Enrollment Form'!$C376=\"Enroll\",'Enrollment Form'!$AL376<>\"\"),\"Y\",\"N\")))","v":""},{"$f":"IF($B369=\"N\",\"\",IF(OR('Enrollment Form'!$B376<>\"Subscriber\",'Enrollment Form'!$C376=\"ROC\"),\"-\",IF(AND('Enrollment Form'!$B376=\"Subscriber\",'Enrollment Form'!$C376=\"Enroll\",'Enrollment Form'!$AP376<>\"\"),\"Y\",\"N\")))","v":""},{"$f":"IF($B369=\"N\",\"\",IF(OR('Enrollment Form'!$B376<>\"Subscriber\",'Enrollment Form'!$C376=\"ROC\"),\"-\",IF(AND('Enrollment Form'!$B376=\"Subscriber\",'Enrollment Form'!$C376=\"Enroll\",'Enrollment Form'!$AQ376<>\"\"),\"Y\",\"N\")))","v":""},{"$f":"IF($B369=\"N\",\"\",IF(OR('Enrollment Form'!$B376<>\"Subscriber\",'Enrollment Form'!$C376=\"ROC\"),\"-\",IF(AND('Enrollment Form'!$B376=\"Subscriber\",'Enrollment Form'!$C376=\"Enroll\",'Enrollment Form'!$AS376<>\"\"),\"Y\",\"N\")))","v":""},{"$f":"IF($B369=\"N\",\"\",IF($Q369=\"-\",\"-\",IF(AND($Q369=\"Y\",'Enrollment Form'!$AS376=\"No\"),\"-\",IF(AND($Q369=\"Y\",'Enrollment Form'!$AS376=\"Yes\",'Enrollment Form'!$AT376<>\"\"),\"Y\",\"N\"))))","v":""},{"$f":"IF($B369=\"N\",\"\",IF(OR('Enrollment Form'!$B376<>\"Subscriber\",'Enrollment Form'!$C376=\"ROC\"),\"-\",IF(AND('Enrollment Form'!$B376=\"Subscriber\",'Enrollment Form'!$C376=\"Enroll\",'Enrollment Form'!$CV376<>\"\"),\"Y\",\"N\")))","v":""},{"$f":"IF($B369=\"N\",\"\",IF($S369=\"-\",\"-\",IF(AND($S369=\"Y\",'Enrollment Form'!$CV376=\"No\"),\"-\",IF(AND($S369=\"Y\",'Enrollment Form'!$CV376=\"Yes\",'Enrollment Form'!$CW376<>\"\"),\"Y\",\"N\"))))","v":""},{"$f":"IF(OR('Enrollment Form'!$AY376=\"Yes\",'Enrollment Form'!$AY376=\"\"),\"-\",IF(OR(AND('Enrollment Form'!$AY376=\"No\",ISERROR(FIND(\"HMO\",VLOOKUP('Enrollment Form'!G376,'Enrollment Form'!H$11:J$1000,3,FALSE),1))=FALSE,COUNTA('Enrollment Form'!$AZ376:$BC376)=4),AND('Enrollment Form'!$AY376=\"No\",ISERROR(FIND(\"HMO\",VLOOKUP('Enrollment Form'!G376,'Enrollment Form'!H$11:J$1000,3,FALSE),1))=FALSE,COUNTA('Enrollment Form'!$BT376:$BW376)=4)),\"Y\",\"N\"))","v":"-"},{"$f":"IF($B369=\"N\",\"\",IF('Enrollment Form'!$B376=\"Subscriber\",\"-\",IF(COUNTA('Enrollment Form'!$BL376,'Enrollment Form'!$BN376)=2,\"Y\",\"N\")))","v":""},{"$f":"IF($B369=\"N\",\"\",IF(OR('Enrollment Form'!$AX376=\"\",'Enrollment Form'!$AX376=\"No\"),\"-\",IF(AND('Enrollment Form'!$AX376=\"Yes\",COUNTA('Enrollment Form'!$CR376)=1),\"Y\",\"N\")))","v":""},{"$f":"IF(OR('Enrollment Form'!$CR376=\"\",'Enrollment Form'!$CR376=\"No\"),\"-\",IF(COUNTA('Enrollment Form'!$CT376:$CU376)=2,\"Y\",\"N\"))","v":"-"},{"$f":"IF($B369=\"N\",\"\",IF(COUNTIF('Enrollment Form'!$DG376:$DP376,\"Other\")=COUNTA('Enrollment Form'!$DK376,'Enrollment Form'!$DH376,'Enrollment Form'!$DN376,'Enrollment Form'!$DQ376),\"Y\",\"N\"))","v":""},{"$f":"IF($B369=\"N\",\"\",IF(OR('Enrollment Form'!B376<>\"Subscriber\",'Enrollment Form'!C376=\"ROC\",COUNTIF('Enrollment Form'!AV376:AW376,\"Yes\")>=1),\"-\",IF(AND('Enrollment Form'!C376=\"Enroll\",COUNTIF('Enrollment Form'!AV376:AW376,\"No\")=2,'Enrollment Form'!AX376=\"\"),\"N\",\"Y\")))","v":""},{"$f":"IF(OR(B369=\"N\",'Enrollment Form'!B376<>\"Subscriber\",'Enrollment Form'!C376=\"ROC\",'Enrollment Form'!O376<>\"Multiple of Salary\"),\"-\",IF(COUNTA('Enrollment Form'!T376:U376)<2,\"N\",\"Y\"))","v":"-"},{"$f":"IF(B369=\"N\",\"\",IF(OR('Enrollment Form'!C376=\"ROC\",'Enrollment Form'!B376<>\"Subscriber\",'Enrollment Form'!O376=\"Waive\",'Enrollment Form'!O376=\"\"),\"-\",IF('Enrollment Form'!P376=\"\",\"N\",\"Y\")))","v":""},{"$f":"IF($B369=\"N\",\"\",IF(AND('Enrollment Form'!$C376=\"ROC\",'Enrollment Form'!$DR376<>\"\"),\"Y\",IF(AND('Enrollment Form'!$C376=\"ROC\",'Enrollment Form'!$DR376=\"\"),\"N\",IF(AND('Enrollment Form'!$C376=\"Enroll\",'Enrollment Form'!$B376=\"Subscriber\",'Enrollment Form'!$CX376=\"No\",'Enrollment Form'!$DR376=\"\"),\"N\",IF(AND('Enrollment Form'!$C376=\"Enroll\",'Enrollment Form'!$B376=\"Subscriber\",'Enrollment Form'!$CX376=\"Yes\"),\"-\",\"Y\")))))","v":""},{"$f":"IF($B369=\"N\",\"\",IF(AND('Enrollment Form'!$C376=\"ROC\",'Enrollment Form'!$DS376<>\"\"),\"Y\",IF(AND('Enrollment Form'!$C376=\"ROC\",'Enrollment Form'!$DS376=\"\"),\"N\",IF(AND('Enrollment Form'!$C376=\"Enroll\",'Enrollment Form'!$B376=\"Subscriber\",'Enrollment Form'!$CX376=\"No\",'Enrollment Form'!$DS376=\"\"),\"N\",IF(AND('Enrollment Form'!$C376=\"Enroll\",'Enrollment Form'!$B376=\"Subscriber\",'Enrollment Form'!$CX376=\"Yes\"),\"-\",\"Y\")))))","v":""},{"$f":"IF('Enrollment Form'!AH376=\"\",\"\",IF(ISERROR(SEARCH(\".\",'Enrollment Form'!AH376,SEARCH(\"@\",'Enrollment Form'!AH376))),\"N\",\"Y\"))","v":""},{"$f":"IF(OR($B369=\"N\",'Enrollment Form'!$G376=\"\"),\"\",IF('Enrollment Form'!$B376<>\"Subscriber\",\"-\",IF(COUNTIF('Enrollment Form'!$AV376:$AW376,\"Yes\")=2,\"N\",\"Y\")))","v":""},{"$f":"IF(OR('Enrollment Form'!$CJ376=\"\",'Enrollment Form'!$CJ376=\"No\"),\"-\",IF(AND('Enrollment Form'!$CJ376=\"Yes\",'Enrollment Form'!$CK376=\"\"),\"N\",\"Y\"))","v":"-"},{"$f":"IF(OR('Enrollment Form'!$CL376=\"\",'Enrollment Form'!$CL376=\"No\"),\"-\",IF(AND('Enrollment Form'!$CL376=\"Yes\",'Enrollment Form'!$CM376=\"\"),\"N\",\"Y\"))","v":"-"},{"$f":"IF(OR('Enrollment Form'!$CN376=\"\",'Enrollment Form'!$CN376=\"No\"),\"-\",IF(AND('Enrollment Form'!$CN376=\"Yes\",'Enrollment Form'!$CO376=\"\"),\"N\",\"Y\"))","v":"-"},{"$f":"IF(OR('Enrollment Form'!$CN376=\"\",'Enrollment Form'!$CN376=\"No\"),\"-\",IF(AND('Enrollment Form'!$CN376=\"Yes\",'Enrollment Form'!$CP376=\"\"),\"N\",\"Y\"))","v":"-"},{"$f":"IF('Enrollment Form'!B376<>\"Subscriber\",\"-\",IF(AND('Enrollment Form'!B376=\"Subscriber\",'Enrollment Form'!C376=\"Enroll\",'Enrollment Form'!AA376=\"\"),\"N\",\"Y\"))","v":"-"},{"$f":"IF(OR('Enrollment Form'!B376=\"Subscriber\",'Enrollment Form'!B376=\"\"),\"-\",IF('Enrollment Form'!BP376=\"\",\"N\",\"Y\"))","v":"-"},{"$f":"IF('Enrollment Form'!B376<>\"Subscriber\",\"-\",IF(AND('Enrollment Form'!B376=\"Subscriber\",'Enrollment Form'!G376=\"\"),\"N\",\"Y\"))","v":"-"},{"$f":"IF('Enrollment Form'!A376=\"\",\"\",IF('Enrollment Form'!B376=\"Subscriber\",\"-\",IF(AND('Enrollment Form'!B376<>\"Subscriber\",'Enrollment Form'!G376='Enrollment Form'!H376),\"N\",\"Y\")))","v":""},0]
[377,{"$f":"IF('Enrollment Form'!$A377<>\"\",\"Y\",\"N\")","v":"N"},{"$f":"IF(AND('Enrollment Form'!$B377=\"\",'Enrollment Form'!$C377<>\"\"),\"N\",IF($B370=\"N\",\"\",\"Y\"))","v":""},{"$f":"IF(OR($B370=\"N\",'Enrollment Form'!G377=\"\"),\"\",IF('Enrollment Form'!$B377<>\"Subscriber\",\"\",IF('Enrollment Form'!$G377='Enrollment Form'!$H377,\"Y\",\"N\")))","v":""},{"$f":"IF($B370=\"N\",\"\",IF(AND(COUNTIFS('Enrollment Form'!$H$11:$H$1000,'Enrollment Form'!$H377,'Enrollment Form'!$B$11:$B$1000,'Enrollment Form'!$B377)>1,'Enrollment Form'!$H377<>\"\"),\"N\",\"Y\"))","v":""},{"$f":"IF($B370=\"N\",\"\",IF(LEN('Enrollment Form'!$Y377)=0,\"\",IF(LEN('Enrollment Form'!$Y377)<>5,\"N\",\"Y\")))","v":""},{"$f":"IF($B370=\"N\",\"\",IF(LEN('Enrollment Form'!$AD377=0),\"\",IF(LEN('Enrollment Form'!$AD377)<>5,\"N\",\"Y\")))","v":""},{"$f":"IF($B370=\"N\",\"\",IF(LEN('Enrollment Form'!$BS377=0),\"\",IF(LEN('Enrollment Form'!$BS377)<>5,\"N\",\"Y\")))","v":""},{"$f":"IF($B370=\"N\",\"\",IF(LEN('Enrollment Form'!$AE377)=0,\"\",IF(LEN('Enrollment Form'!$AE377)<>10,\"N\",\"Y\")))","v":""},{"$f":"IF($B370=\"N\",\"\",IF(LEN('Enrollment Form'!$AF377)=0,\"\",IF(LEN('Enrollment Form'!$AF377)<>10,\"N\",\"Y\")))","v":""},{"$f":"IF('Enrollment Form'!$O377<>\"Graded\",\"-\",IF(AND('Enrollment Form'!$O377=\"Graded\",'Enrollment Form'!$AR377<>\"\"),\"Y\",\"N\"))","v":"-"},{"$f":"IF($B370=\"N\",\"\",IF(OR('Enrollment Form'!$B377<>\"Subscriber\",'Enrollment Form'!$C377=\"ROC\"),\"-\",IF(AND('Enrollment Form'!$B377=\"Subscriber\",'Enrollment Form'!$C377=\"Enroll\",'Enrollment Form'!$AJ377<>\"\"),\"Y\",\"N\")))","v":""},{"$f":"IF($B370=\"N\",\"\",IF(OR('Enrollment Form'!$B377<>\"Subscriber\",'Enrollment Form'!$C377=\"ROC\"),\"-\",IF(AND('Enrollment Form'!$B377=\"Subscriber\",'Enrollment Form'!$C377=\"Enroll\",'Enrollment Form'!$AK377<>\"\"),\"Y\",\"N\")))","v":""},{"$f":"IF($B370=\"N\",\"\",IF(OR('Enrollment Form'!$B377<>\"Subscriber\",'Enrollment Form'!$C377=\"ROC\"),\"-\",IF(AND('Enrollment Form'!$B377=\"Subscriber\",'Enrollment Form'!$C377=\"Enroll\",'Enrollment Form'!$AL377<>\"\"),\"Y\",\"N\")))","v":""},{"$f":"IF($B370=\"N\",\"\",IF(OR('Enrollment Form'!$B377<>\"Subscriber\",'Enrollment Form'!$C377=\"ROC\"),\"-\",IF(AND('Enrollment Form'!$B377=\"Subscriber\",'Enrollment Form'!$C377=\"Enroll\",'Enrollment Form'!$AP377<>\"\"),\"Y\",\"N\")))","v":""},{"$f":"IF($B370=\"N\",\"\",IF(OR('Enrollment Form'!$B377<>\"Subscriber\",'Enrollment Form'!$C377=\"ROC\"),\"-\",IF(AND('Enrollment Form'!$B377=\"Subscriber\",'Enrollment Form'!$C377=\"Enroll\",'Enrollment Form'!$AQ377<>\"\"),\"Y\",\"N\")))","v":""},{"$f":"IF($B370=\"N\",\"\",IF(OR('Enrollment Form'!$B377<>\"Subscriber\",'Enrollment Form'!$C377=\"ROC\"),\"-\",IF(AND('Enrollment Form'!$B377=\"Subscriber\",'Enrollment Form'!$C377=\"Enroll\",'Enrollment Form'!$AS377<>\"\"),\"Y\",\"N\")))","v":""},{"$f":"IF($B370=\"N\",\"\",IF($Q370=\"-\",\"-\",IF(AND($Q370=\"Y\",'Enrollment Form'!$AS377=\"No\"),\"-\",IF(AND($Q370=\"Y\",'Enrollment Form'!$AS377=\"Yes\",'Enrollment Form'!$AT377<>\"\"),\"Y\",\"N\"))))","v":""},{"$f":"IF($B370=\"N\",\"\",IF(OR('Enrollment Form'!$B377<>\"Subscriber\",'Enrollment Form'!$C377=\"ROC\"),\"-\",IF(AND('Enrollment Form'!$B377=\"Subscriber\",'Enrollment Form'!$C377=\"Enroll\",'Enrollment Form'!$CV377<>\"\"),\"Y\",\"N\")))","v":""},{"$f":"IF($B370=\"N\",\"\",IF($S370=\"-\",\"-\",IF(AND($S370=\"Y\",'Enrollment Form'!$CV377=\"No\"),\"-\",IF(AND($S370=\"Y\",'Enrollment Form'!$CV377=\"Yes\",'Enrollment Form'!$CW377<>\"\"),\"Y\",\"N\"))))","v":""},{"$f":"IF(OR('Enrollment Form'!$AY377=\"Yes\",'Enrollment Form'!$AY377=\"\"),\"-\",IF(OR(AND('Enrollment Form'!$AY377=\"No\",ISERROR(FIND(\"HMO\",VLOOKUP('Enrollment Form'!G377,'Enrollment Form'!H$11:J$1000,3,FALSE),1))=FALSE,COUNTA('Enrollment Form'!$AZ377:$BC377)=4),AND('Enrollment Form'!$AY377=\"No\",ISERROR(FIND(\"HMO\",VLOOKUP('Enrollment Form'!G377,'Enrollment Form'!H$11:J$1000,3,FALSE),1))=FALSE,COUNTA('Enrollment Form'!$BT377:$BW377)=4)),\"Y\",\"N\"))","v":"-"},{"$f":"IF($B370=\"N\",\"\",IF('Enrollment Form'!$B377=\"Subscriber\",\"-\",IF(COUNTA('Enrollment Form'!$BL377,'Enrollment Form'!$BN377)=2,\"Y\",\"N\")))","v":""},{"$f":"IF($B370=\"N\",\"\",IF(OR('Enrollment Form'!$AX377=\"\",'Enrollment Form'!$AX377=\"No\"),\"-\",IF(AND('Enrollment Form'!$AX377=\"Yes\",COUNTA('Enrollment Form'!$CR377)=1),\"Y\",\"N\")))","v":""},{"$f":"IF(OR('Enrollment Form'!$CR377=\"\",'Enrollment Form'!$CR377=\"No\"),\"-\",IF(COUNTA('Enrollment Form'!$CT377:$CU377)=2,\"Y\",\"N\"))","v":"-"},{"$f":"IF($B370=\"N\",\"\",IF(COUNTIF('Enrollment Form'!$DG377:$DP377,\"Other\")=COUNTA('Enrollment Form'!$DK377,'Enrollment Form'!$DH377,'Enrollment Form'!$DN377,'Enrollment Form'!$DQ377),\"Y\",\"N\"))","v":""},{"$f":"IF($B370=\"N\",\"\",IF(OR('Enrollment Form'!B377<>\"Subscriber\",'Enrollment Form'!C377=\"ROC\",COUNTIF('Enrollment Form'!AV377:AW377,\"Yes\")>=1),\"-\",IF(AND('Enrollment Form'!C377=\"Enroll\",COUNTIF('Enrollment Form'!AV377:AW377,\"No\")=2,'Enrollment Form'!AX377=\"\"),\"N\",\"Y\")))","v":""},{"$f":"IF(OR(B370=\"N\",'Enrollment Form'!B377<>\"Subscriber\",'Enrollment Form'!C377=\"ROC\",'Enrollment Form'!O377<>\"Multiple of Salary\"),\"-\",IF(COUNTA('Enrollment Form'!T377:U377)<2,\"N\",\"Y\"))","v":"-"},{"$f":"IF(B370=\"N\",\"\",IF(OR('Enrollment Form'!C377=\"ROC\",'Enrollment Form'!B377<>\"Subscriber\",'Enrollment Form'!O377=\"Waive\",'Enrollment Form'!O377=\"\"),\"-\",IF('Enrollment Form'!P377=\"\",\"N\",\"Y\")))","v":""},{"$f":"IF($B370=\"N\",\"\",IF(AND('Enrollment Form'!$C377=\"ROC\",'Enrollment Form'!$DR377<>\"\"),\"Y\",IF(AND('Enrollment Form'!$C377=\"ROC\",'Enrollment Form'!$DR377=\"\"),\"N\",IF(AND('Enrollment Form'!$C377=\"Enroll\",'Enrollment Form'!$B377=\"Subscriber\",'Enrollment Form'!$CX377=\"No\",'Enrollment Form'!$DR377=\"\"),\"N\",IF(AND('Enrollment Form'!$C377=\"Enroll\",'Enrollment Form'!$B377=\"Subscriber\",'Enrollment Form'!$CX377=\"Yes\"),\"-\",\"Y\")))))","v":""},{"$f":"IF($B370=\"N\",\"\",IF(AND('Enrollment Form'!$C377=\"ROC\",'Enrollment Form'!$DS377<>\"\"),\"Y\",IF(AND('Enrollment Form'!$C377=\"ROC\",'Enrollment Form'!$DS377=\"\"),\"N\",IF(AND('Enrollment Form'!$C377=\"Enroll\",'Enrollment Form'!$B377=\"Subscriber\",'Enrollment Form'!$CX377=\"No\",'Enrollment Form'!$DS377=\"\"),\"N\",IF(AND('Enrollment Form'!$C377=\"Enroll\",'Enrollment Form'!$B377=\"Subscriber\",'Enrollment Form'!$CX377=\"Yes\"),\"-\",\"Y\")))))","v":""},{"$f":"IF('Enrollment Form'!AH377=\"\",\"\",IF(ISERROR(SEARCH(\".\",'Enrollment Form'!AH377,SEARCH(\"@\",'Enrollment Form'!AH377))),\"N\",\"Y\"))","v":""},{"$f":"IF(OR($B370=\"N\",'Enrollment Form'!$G377=\"\"),\"\",IF('Enrollment Form'!$B377<>\"Subscriber\",\"-\",IF(COUNTIF('Enrollment Form'!$AV377:$AW377,\"Yes\")=2,\"N\",\"Y\")))","v":""},{"$f":"IF(OR('Enrollment Form'!$CJ377=\"\",'Enrollment Form'!$CJ377=\"No\"),\"-\",IF(AND('Enrollment Form'!$CJ377=\"Yes\",'Enrollment Form'!$CK377=\"\"),\"N\",\"Y\"))","v":"-"},{"$f":"IF(OR('Enrollment Form'!$CL377=\"\",'Enrollment Form'!$CL377=\"No\"),\"-\",IF(AND('Enrollment Form'!$CL377=\"Yes\",'Enrollment Form'!$CM377=\"\"),\"N\",\"Y\"))","v":"-"},{"$f":"IF(OR('Enrollment Form'!$CN377=\"\",'Enrollment Form'!$CN377=\"No\"),\"-\",IF(AND('Enrollment Form'!$CN377=\"Yes\",'Enrollment Form'!$CO377=\"\"),\"N\",\"Y\"))","v":"-"},{"$f":"IF(OR('Enrollment Form'!$CN377=\"\",'Enrollment Form'!$CN377=\"No\"),\"-\",IF(AND('Enrollment Form'!$CN377=\"Yes\",'Enrollment Form'!$CP377=\"\"),\"N\",\"Y\"))","v":"-"},{"$f":"IF('Enrollment Form'!B377<>\"Subscriber\",\"-\",IF(AND('Enrollment Form'!B377=\"Subscriber\",'Enrollment Form'!C377=\"Enroll\",'Enrollment Form'!AA377=\"\"),\"N\",\"Y\"))","v":"-"},{"$f":"IF(OR('Enrollment Form'!B377=\"Subscriber\",'Enrollment Form'!B377=\"\"),\"-\",IF('Enrollment Form'!BP377=\"\",\"N\",\"Y\"))","v":"-"},{"$f":"IF('Enrollment Form'!B377<>\"Subscriber\",\"-\",IF(AND('Enrollment Form'!B377=\"Subscriber\",'Enrollment Form'!G377=\"\"),\"N\",\"Y\"))","v":"-"},{"$f":"IF('Enrollment Form'!A377=\"\",\"\",IF('Enrollment Form'!B377=\"Subscriber\",\"-\",IF(AND('Enrollment Form'!B377<>\"Subscriber\",'Enrollment Form'!G377='Enrollment Form'!H377),\"N\",\"Y\")))","v":""},0]
[378,{"$f":"IF('Enrollment Form'!$A378<>\"\",\"Y\",\"N\")","v":"N"},{"$f":"IF(AND('Enrollment Form'!$B378=\"\",'Enrollment Form'!$C378<>\"\"),\"N\",IF($B371=\"N\",\"\",\"Y\"))","v":""},{"$f":"IF(OR($B371=\"N\",'Enrollment Form'!G378=\"\"),\"\",IF('Enrollment Form'!$B378<>\"Subscriber\",\"\",IF('Enrollment Form'!$G378='Enrollment Form'!$H378,\"Y\",\"N\")))","v":""},{"$f":"IF($B371=\"N\",\"\",IF(AND(COUNTIFS('Enrollment Form'!$H$11:$H$1000,'Enrollment Form'!$H378,'Enrollment Form'!$B$11:$B$1000,'Enrollment Form'!$B378)>1,'Enrollment Form'!$H378<>\"\"),\"N\",\"Y\"))","v":""},{"$f":"IF($B371=\"N\",\"\",IF(LEN('Enrollment Form'!$Y378)=0,\"\",IF(LEN('Enrollment Form'!$Y378)<>5,\"N\",\"Y\")))","v":""},{"$f":"IF($B371=\"N\",\"\",IF(LEN('Enrollment Form'!$AD378=0),\"\",IF(LEN('Enrollment Form'!$AD378)<>5,\"N\",\"Y\")))","v":""},{"$f":"IF($B371=\"N\",\"\",IF(LEN('Enrollment Form'!$BS378=0),\"\",IF(LEN('Enrollment Form'!$BS378)<>5,\"N\",\"Y\")))","v":""},{"$f":"IF($B371=\"N\",\"\",IF(LEN('Enrollment Form'!$AE378)=0,\"\",IF(LEN('Enrollment Form'!$AE378)<>10,\"N\",\"Y\")))","v":""},{"$f":"IF($B371=\"N\",\"\",IF(LEN('Enrollment Form'!$AF378)=0,\"\",IF(LEN('Enrollment Form'!$AF378)<>10,\"N\",\"Y\")))","v":""},{"$f":"IF('Enrollment Form'!$O378<>\"Graded\",\"-\",IF(AND('Enrollment Form'!$O378=\"Graded\",'Enrollment Form'!$AR378<>\"\"),\"Y\",\"N\"))","v":"-"},{"$f":"IF($B371=\"N\",\"\",IF(OR('Enrollment Form'!$B378<>\"Subscriber\",'Enrollment Form'!$C378=\"ROC\"),\"-\",IF(AND('Enrollment Form'!$B378=\"Subscriber\",'Enrollment Form'!$C378=\"Enroll\",'Enrollment Form'!$AJ378<>\"\"),\"Y\",\"N\")))","v":""},{"$f":"IF($B371=\"N\",\"\",IF(OR('Enrollment Form'!$B378<>\"Subscriber\",'Enrollment Form'!$C378=\"ROC\"),\"-\",IF(AND('Enrollment Form'!$B378=\"Subscriber\",'Enrollment Form'!$C378=\"Enroll\",'Enrollment Form'!$AK378<>\"\"),\"Y\",\"N\")))","v":""},{"$f":"IF($B371=\"N\",\"\",IF(OR('Enrollment Form'!$B378<>\"Subscriber\",'Enrollment Form'!$C378=\"ROC\"),\"-\",IF(AND('Enrollment Form'!$B378=\"Subscriber\",'Enrollment Form'!$C378=\"Enroll\",'Enrollment Form'!$AL378<>\"\"),\"Y\",\"N\")))","v":""},{"$f":"IF($B371=\"N\",\"\",IF(OR('Enrollment Form'!$B378<>\"Subscriber\",'Enrollment Form'!$C378=\"ROC\"),\"-\",IF(AND('Enrollment Form'!$B378=\"Subscriber\",'Enrollment Form'!$C378=\"Enroll\",'Enrollment Form'!$AP378<>\"\"),\"Y\",\"N\")))","v":""},{"$f":"IF($B371=\"N\",\"\",IF(OR('Enrollment Form'!$B378<>\"Subscriber\",'Enrollment Form'!$C378=\"ROC\"),\"-\",IF(AND('Enrollment Form'!$B378=\"Subscriber\",'Enrollment Form'!$C378=\"Enroll\",'Enrollment Form'!$AQ378<>\"\"),\"Y\",\"N\")))","v":""},{"$f":"IF($B371=\"N\",\"\",IF(OR('Enrollment Form'!$B378<>\"Subscriber\",'Enrollment Form'!$C378=\"ROC\"),\"-\",IF(AND('Enrollment Form'!$B378=\"Subscriber\",'Enrollment Form'!$C378=\"Enroll\",'Enrollment Form'!$AS378<>\"\"),\"Y\",\"N\")))","v":""},{"$f":"IF($B371=\"N\",\"\",IF($Q371=\"-\",\"-\",IF(AND($Q371=\"Y\",'Enrollment Form'!$AS378=\"No\"),\"-\",IF(AND($Q371=\"Y\",'Enrollment Form'!$AS378=\"Yes\",'Enrollment Form'!$AT378<>\"\"),\"Y\",\"N\"))))","v":""},{"$f":"IF($B371=\"N\",\"\",IF(OR('Enrollment Form'!$B378<>\"Subscriber\",'Enrollment Form'!$C378=\"ROC\"),\"-\",IF(AND('Enrollment Form'!$B378=\"Subscriber\",'Enrollment Form'!$C378=\"Enroll\",'Enrollment Form'!$CV378<>\"\"),\"Y\",\"N\")))","v":""},{"$f":"IF($B371=\"N\",\"\",IF($S371=\"-\",\"-\",IF(AND($S371=\"Y\",'Enrollment Form'!$CV378=\"No\"),\"-\",IF(AND($S371=\"Y\",'Enrollment Form'!$CV378=\"Yes\",'Enrollment Form'!$CW378<>\"\"),\"Y\",\"N\"))))","v":""},{"$f":"IF(OR('Enrollment Form'!$AY378=\"Yes\",'Enrollment Form'!$AY378=\"\"),\"-\",IF(OR(AND('Enrollment Form'!$AY378=\"No\",ISERROR(FIND(\"HMO\",VLOOKUP('Enrollment Form'!G378,'Enrollment Form'!H$11:J$1000,3,FALSE),1))=FALSE,COUNTA('Enrollment Form'!$AZ378:$BC378)=4),AND('Enrollment Form'!$AY378=\"No\",ISERROR(FIND(\"HMO\",VLOOKUP('Enrollment Form'!G378,'Enrollment Form'!H$11:J$1000,3,FALSE),1))=FALSE,COUNTA('Enrollment Form'!$BT378:$BW378)=4)),\"Y\",\"N\"))","v":"-"},{"$f":"IF($B371=\"N\",\"\",IF('Enrollment Form'!$B378=\"Subscriber\",\"-\",IF(COUNTA('Enrollment Form'!$BL378,'Enrollment Form'!$BN378)=2,\"Y\",\"N\")))","v":""},{"$f":"IF($B371=\"N\",\"\",IF(OR('Enrollment Form'!$AX378=\"\",'Enrollment Form'!$AX378=\"No\"),\"-\",IF(AND('Enrollment Form'!$AX378=\"Yes\",COUNTA('Enrollment Form'!$CR378)=1),\"Y\",\"N\")))","v":""},{"$f":"IF(OR('Enrollment Form'!$CR378=\"\",'Enrollment Form'!$CR378=\"No\"),\"-\",IF(COUNTA('Enrollment Form'!$CT378:$CU378)=2,\"Y\",\"N\"))","v":"-"},{"$f":"IF($B371=\"N\",\"\",IF(COUNTIF('Enrollment Form'!$DG378:$DP378,\"Other\")=COUNTA('Enrollment Form'!$DK378,'Enrollment Form'!$DH378,'Enrollment Form'!$DN378,'Enrollment Form'!$DQ378),\"Y\",\"N\"))","v":""},{"$f":"IF($B371=\"N\",\"\",IF(OR('Enrollment Form'!B378<>\"Subscriber\",'Enrollment Form'!C378=\"ROC\",COUNTIF('Enrollment Form'!AV378:AW378,\"Yes\")>=1),\"-\",IF(AND('Enrollment Form'!C378=\"Enroll\",COUNTIF('Enrollment Form'!AV378:AW378,\"No\")=2,'Enrollment Form'!AX378=\"\"),\"N\",\"Y\")))","v":""},{"$f":"IF(OR(B371=\"N\",'Enrollment Form'!B378<>\"Subscriber\",'Enrollment Form'!C378=\"ROC\",'Enrollment Form'!O378<>\"Multiple of Salary\"),\"-\",IF(COUNTA('Enrollment Form'!T378:U378)<2,\"N\",\"Y\"))","v":"-"},{"$f":"IF(B371=\"N\",\"\",IF(OR('Enrollment Form'!C378=\"ROC\",'Enrollment Form'!B378<>\"Subscriber\",'Enrollment Form'!O378=\"Waive\",'Enrollment Form'!O378=\"\"),\"-\",IF('Enrollment Form'!P378=\"\",\"N\",\"Y\")))","v":""},{"$f":"IF($B371=\"N\",\"\",IF(AND('Enrollment Form'!$C378=\"ROC\",'Enrollment Form'!$DR378<>\"\"),\"Y\",IF(AND('Enrollment Form'!$C378=\"ROC\",'Enrollment Form'!$DR378=\"\"),\"N\",IF(AND('Enrollment Form'!$C378=\"Enroll\",'Enrollment Form'!$B378=\"Subscriber\",'Enrollment Form'!$CX378=\"No\",'Enrollment Form'!$DR378=\"\"),\"N\",IF(AND('Enrollment Form'!$C378=\"Enroll\",'Enrollment Form'!$B378=\"Subscriber\",'Enrollment Form'!$CX378=\"Yes\"),\"-\",\"Y\")))))","v":""},{"$f":"IF($B371=\"N\",\"\",IF(AND('Enrollment Form'!$C378=\"ROC\",'Enrollment Form'!$DS378<>\"\"),\"Y\",IF(AND('Enrollment Form'!$C378=\"ROC\",'Enrollment Form'!$DS378=\"\"),\"N\",IF(AND('Enrollment Form'!$C378=\"Enroll\",'Enrollment Form'!$B378=\"Subscriber\",'Enrollment Form'!$CX378=\"No\",'Enrollment Form'!$DS378=\"\"),\"N\",IF(AND('Enrollment Form'!$C378=\"Enroll\",'Enrollment Form'!$B378=\"Subscriber\",'Enrollment Form'!$CX378=\"Yes\"),\"-\",\"Y\")))))","v":""},{"$f":"IF('Enrollment Form'!AH378=\"\",\"\",IF(ISERROR(SEARCH(\".\",'Enrollment Form'!AH378,SEARCH(\"@\",'Enrollment Form'!AH378))),\"N\",\"Y\"))","v":""},{"$f":"IF(OR($B371=\"N\",'Enrollment Form'!$G378=\"\"),\"\",IF('Enrollment Form'!$B378<>\"Subscriber\",\"-\",IF(COUNTIF('Enrollment Form'!$AV378:$AW378,\"Yes\")=2,\"N\",\"Y\")))","v":""},{"$f":"IF(OR('Enrollment Form'!$CJ378=\"\",'Enrollment Form'!$CJ378=\"No\"),\"-\",IF(AND('Enrollment Form'!$CJ378=\"Yes\",'Enrollment Form'!$CK378=\"\"),\"N\",\"Y\"))","v":"-"},{"$f":"IF(OR('Enrollment Form'!$CL378=\"\",'Enrollment Form'!$CL378=\"No\"),\"-\",IF(AND('Enrollment Form'!$CL378=\"Yes\",'Enrollment Form'!$CM378=\"\"),\"N\",\"Y\"))","v":"-"},{"$f":"IF(OR('Enrollment Form'!$CN378=\"\",'Enrollment Form'!$CN378=\"No\"),\"-\",IF(AND('Enrollment Form'!$CN378=\"Yes\",'Enrollment Form'!$CO378=\"\"),\"N\",\"Y\"))","v":"-"},{"$f":"IF(OR('Enrollment Form'!$CN378=\"\",'Enrollment Form'!$CN378=\"No\"),\"-\",IF(AND('Enrollment Form'!$CN378=\"Yes\",'Enrollment Form'!$CP378=\"\"),\"N\",\"Y\"))","v":"-"},{"$f":"IF('Enrollment Form'!B378<>\"Subscriber\",\"-\",IF(AND('Enrollment Form'!B378=\"Subscriber\",'Enrollment Form'!C378=\"Enroll\",'Enrollment Form'!AA378=\"\"),\"N\",\"Y\"))","v":"-"},{"$f":"IF(OR('Enrollment Form'!B378=\"Subscriber\",'Enrollment Form'!B378=\"\"),\"-\",IF('Enrollment Form'!BP378=\"\",\"N\",\"Y\"))","v":"-"},{"$f":"IF('Enrollment Form'!B378<>\"Subscriber\",\"-\",IF(AND('Enrollment Form'!B378=\"Subscriber\",'Enrollment Form'!G378=\"\"),\"N\",\"Y\"))","v":"-"},{"$f":"IF('Enrollment Form'!A378=\"\",\"\",IF('Enrollment Form'!B378=\"Subscriber\",\"-\",IF(AND('Enrollment Form'!B378<>\"Subscriber\",'Enrollment Form'!G378='Enrollment Form'!H378),\"N\",\"Y\")))","v":""},0]
[379,{"$f":"IF('Enrollment Form'!$A379<>\"\",\"Y\",\"N\")","v":"N"},{"$f":"IF(AND('Enrollment Form'!$B379=\"\",'Enrollment Form'!$C379<>\"\"),\"N\",IF($B372=\"N\",\"\",\"Y\"))","v":""},{"$f":"IF(OR($B372=\"N\",'Enrollment Form'!G379=\"\"),\"\",IF('Enrollment Form'!$B379<>\"Subscriber\",\"\",IF('Enrollment Form'!$G379='Enrollment Form'!$H379,\"Y\",\"N\")))","v":""},{"$f":"IF($B372=\"N\",\"\",IF(AND(COUNTIFS('Enrollment Form'!$H$11:$H$1000,'Enrollment Form'!$H379,'Enrollment Form'!$B$11:$B$1000,'Enrollment Form'!$B379)>1,'Enrollment Form'!$H379<>\"\"),\"N\",\"Y\"))","v":""},{"$f":"IF($B372=\"N\",\"\",IF(LEN('Enrollment Form'!$Y379)=0,\"\",IF(LEN('Enrollment Form'!$Y379)<>5,\"N\",\"Y\")))","v":""},{"$f":"IF($B372=\"N\",\"\",IF(LEN('Enrollment Form'!$AD379=0),\"\",IF(LEN('Enrollment Form'!$AD379)<>5,\"N\",\"Y\")))","v":""},{"$f":"IF($B372=\"N\",\"\",IF(LEN('Enrollment Form'!$BS379=0),\"\",IF(LEN('Enrollment Form'!$BS379)<>5,\"N\",\"Y\")))","v":""},{"$f":"IF($B372=\"N\",\"\",IF(LEN('Enrollment Form'!$AE379)=0,\"\",IF(LEN('Enrollment Form'!$AE379)<>10,\"N\",\"Y\")))","v":""},{"$f":"IF($B372=\"N\",\"\",IF(LEN('Enrollment Form'!$AF379)=0,\"\",IF(LEN('Enrollment Form'!$AF379)<>10,\"N\",\"Y\")))","v":""},{"$f":"IF('Enrollment Form'!$O379<>\"Graded\",\"-\",IF(AND('Enrollment Form'!$O379=\"Graded\",'Enrollment Form'!$AR379<>\"\"),\"Y\",\"N\"))","v":"-"},{"$f":"IF($B372=\"N\",\"\",IF(OR('Enrollment Form'!$B379<>\"Subscriber\",'Enrollment Form'!$C379=\"ROC\"),\"-\",IF(AND('Enrollment Form'!$B379=\"Subscriber\",'Enrollment Form'!$C379=\"Enroll\",'Enrollment Form'!$AJ379<>\"\"),\"Y\",\"N\")))","v":""},{"$f":"IF($B372=\"N\",\"\",IF(OR('Enrollment Form'!$B379<>\"Subscriber\",'Enrollment Form'!$C379=\"ROC\"),\"-\",IF(AND('Enrollment Form'!$B379=\"Subscriber\",'Enrollment Form'!$C379=\"Enroll\",'Enrollment Form'!$AK379<>\"\"),\"Y\",\"N\")))","v":""},{"$f":"IF($B372=\"N\",\"\",IF(OR('Enrollment Form'!$B379<>\"Subscriber\",'Enrollment Form'!$C379=\"ROC\"),\"-\",IF(AND('Enrollment Form'!$B379=\"Subscriber\",'Enrollment Form'!$C379=\"Enroll\",'Enrollment Form'!$AL379<>\"\"),\"Y\",\"N\")))","v":""},{"$f":"IF($B372=\"N\",\"\",IF(OR('Enrollment Form'!$B379<>\"Subscriber\",'Enrollment Form'!$C379=\"ROC\"),\"-\",IF(AND('Enrollment Form'!$B379=\"Subscriber\",'Enrollment Form'!$C379=\"Enroll\",'Enrollment Form'!$AP379<>\"\"),\"Y\",\"N\")))","v":""},{"$f":"IF($B372=\"N\",\"\",IF(OR('Enrollment Form'!$B379<>\"Subscriber\",'Enrollment Form'!$C379=\"ROC\"),\"-\",IF(AND('Enrollment Form'!$B379=\"Subscriber\",'Enrollment Form'!$C379=\"Enroll\",'Enrollment Form'!$AQ379<>\"\"),\"Y\",\"N\")))","v":""},{"$f":"IF($B372=\"N\",\"\",IF(OR('Enrollment Form'!$B379<>\"Subscriber\",'Enrollment Form'!$C379=\"ROC\"),\"-\",IF(AND('Enrollment Form'!$B379=\"Subscriber\",'Enrollment Form'!$C379=\"Enroll\",'Enrollment Form'!$AS379<>\"\"),\"Y\",\"N\")))","v":""},{"$f":"IF($B372=\"N\",\"\",IF($Q372=\"-\",\"-\",IF(AND($Q372=\"Y\",'Enrollment Form'!$AS379=\"No\"),\"-\",IF(AND($Q372=\"Y\",'Enrollment Form'!$AS379=\"Yes\",'Enrollment Form'!$AT379<>\"\"),\"Y\",\"N\"))))","v":""},{"$f":"IF($B372=\"N\",\"\",IF(OR('Enrollment Form'!$B379<>\"Subscriber\",'Enrollment Form'!$C379=\"ROC\"),\"-\",IF(AND('Enrollment Form'!$B379=\"Subscriber\",'Enrollment Form'!$C379=\"Enroll\",'Enrollment Form'!$CV379<>\"\"),\"Y\",\"N\")))","v":""},{"$f":"IF($B372=\"N\",\"\",IF($S372=\"-\",\"-\",IF(AND($S372=\"Y\",'Enrollment Form'!$CV379=\"No\"),\"-\",IF(AND($S372=\"Y\",'Enrollment Form'!$CV379=\"Yes\",'Enrollment Form'!$CW379<>\"\"),\"Y\",\"N\"))))","v":""},{"$f":"IF(OR('Enrollment Form'!$AY379=\"Yes\",'Enrollment Form'!$AY379=\"\"),\"-\",IF(OR(AND('Enrollment Form'!$AY379=\"No\",ISERROR(FIND(\"HMO\",VLOOKUP('Enrollment Form'!G379,'Enrollment Form'!H$11:J$1000,3,FALSE),1))=FALSE,COUNTA('Enrollment Form'!$AZ379:$BC379)=4),AND('Enrollment Form'!$AY379=\"No\",ISERROR(FIND(\"HMO\",VLOOKUP('Enrollment Form'!G379,'Enrollment Form'!H$11:J$1000,3,FALSE),1))=FALSE,COUNTA('Enrollment Form'!$BT379:$BW379)=4)),\"Y\",\"N\"))","v":"-"},{"$f":"IF($B372=\"N\",\"\",IF('Enrollment Form'!$B379=\"Subscriber\",\"-\",IF(COUNTA('Enrollment Form'!$BL379,'Enrollment Form'!$BN379)=2,\"Y\",\"N\")))","v":""},{"$f":"IF($B372=\"N\",\"\",IF(OR('Enrollment Form'!$AX379=\"\",'Enrollment Form'!$AX379=\"No\"),\"-\",IF(AND('Enrollment Form'!$AX379=\"Yes\",COUNTA('Enrollment Form'!$CR379)=1),\"Y\",\"N\")))","v":""},{"$f":"IF(OR('Enrollment Form'!$CR379=\"\",'Enrollment Form'!$CR379=\"No\"),\"-\",IF(COUNTA('Enrollment Form'!$CT379:$CU379)=2,\"Y\",\"N\"))","v":"-"},{"$f":"IF($B372=\"N\",\"\",IF(COUNTIF('Enrollment Form'!$DG379:$DP379,\"Other\")=COUNTA('Enrollment Form'!$DK379,'Enrollment Form'!$DH379,'Enrollment Form'!$DN379,'Enrollment Form'!$DQ379),\"Y\",\"N\"))","v":""},{"$f":"IF($B372=\"N\",\"\",IF(OR('Enrollment Form'!B379<>\"Subscriber\",'Enrollment Form'!C379=\"ROC\",COUNTIF('Enrollment Form'!AV379:AW379,\"Yes\")>=1),\"-\",IF(AND('Enrollment Form'!C379=\"Enroll\",COUNTIF('Enrollment Form'!AV379:AW379,\"No\")=2,'Enrollment Form'!AX379=\"\"),\"N\",\"Y\")))","v":""},{"$f":"IF(OR(B372=\"N\",'Enrollment Form'!B379<>\"Subscriber\",'Enrollment Form'!C379=\"ROC\",'Enrollment Form'!O379<>\"Multiple of Salary\"),\"-\",IF(COUNTA('Enrollment Form'!T379:U379)<2,\"N\",\"Y\"))","v":"-"},{"$f":"IF(B372=\"N\",\"\",IF(OR('Enrollment Form'!C379=\"ROC\",'Enrollment Form'!B379<>\"Subscriber\",'Enrollment Form'!O379=\"Waive\",'Enrollment Form'!O379=\"\"),\"-\",IF('Enrollment Form'!P379=\"\",\"N\",\"Y\")))","v":""},{"$f":"IF($B372=\"N\",\"\",IF(AND('Enrollment Form'!$C379=\"ROC\",'Enrollment Form'!$DR379<>\"\"),\"Y\",IF(AND('Enrollment Form'!$C379=\"ROC\",'Enrollment Form'!$DR379=\"\"),\"N\",IF(AND('Enrollment Form'!$C379=\"Enroll\",'Enrollment Form'!$B379=\"Subscriber\",'Enrollment Form'!$CX379=\"No\",'Enrollment Form'!$DR379=\"\"),\"N\",IF(AND('Enrollment Form'!$C379=\"Enroll\",'Enrollment Form'!$B379=\"Subscriber\",'Enrollment Form'!$CX379=\"Yes\"),\"-\",\"Y\")))))","v":""},{"$f":"IF($B372=\"N\",\"\",IF(AND('Enrollment Form'!$C379=\"ROC\",'Enrollment Form'!$DS379<>\"\"),\"Y\",IF(AND('Enrollment Form'!$C379=\"ROC\",'Enrollment Form'!$DS379=\"\"),\"N\",IF(AND('Enrollment Form'!$C379=\"Enroll\",'Enrollment Form'!$B379=\"Subscriber\",'Enrollment Form'!$CX379=\"No\",'Enrollment Form'!$DS379=\"\"),\"N\",IF(AND('Enrollment Form'!$C379=\"Enroll\",'Enrollment Form'!$B379=\"Subscriber\",'Enrollment Form'!$CX379=\"Yes\"),\"-\",\"Y\")))))","v":""},{"$f":"IF('Enrollment Form'!AH379=\"\",\"\",IF(ISERROR(SEARCH(\".\",'Enrollment Form'!AH379,SEARCH(\"@\",'Enrollment Form'!AH379))),\"N\",\"Y\"))","v":""},{"$f":"IF(OR($B372=\"N\",'Enrollment Form'!$G379=\"\"),\"\",IF('Enrollment Form'!$B379<>\"Subscriber\",\"-\",IF(COUNTIF('Enrollment Form'!$AV379:$AW379,\"Yes\")=2,\"N\",\"Y\")))","v":""},{"$f":"IF(OR('Enrollment Form'!$CJ379=\"\",'Enrollment Form'!$CJ379=\"No\"),\"-\",IF(AND('Enrollment Form'!$CJ379=\"Yes\",'Enrollment Form'!$CK379=\"\"),\"N\",\"Y\"))","v":"-"},{"$f":"IF(OR('Enrollment Form'!$CL379=\"\",'Enrollment Form'!$CL379=\"No\"),\"-\",IF(AND('Enrollment Form'!$CL379=\"Yes\",'Enrollment Form'!$CM379=\"\"),\"N\",\"Y\"))","v":"-"},{"$f":"IF(OR('Enrollment Form'!$CN379=\"\",'Enrollment Form'!$CN379=\"No\"),\"-\",IF(AND('Enrollment Form'!$CN379=\"Yes\",'Enrollment Form'!$CO379=\"\"),\"N\",\"Y\"))","v":"-"},{"$f":"IF(OR('Enrollment Form'!$CN379=\"\",'Enrollment Form'!$CN379=\"No\"),\"-\",IF(AND('Enrollment Form'!$CN379=\"Yes\",'Enrollment Form'!$CP379=\"\"),\"N\",\"Y\"))","v":"-"},{"$f":"IF('Enrollment Form'!B379<>\"Subscriber\",\"-\",IF(AND('Enrollment Form'!B379=\"Subscriber\",'Enrollment Form'!C379=\"Enroll\",'Enrollment Form'!AA379=\"\"),\"N\",\"Y\"))","v":"-"},{"$f":"IF(OR('Enrollment Form'!B379=\"Subscriber\",'Enrollment Form'!B379=\"\"),\"-\",IF('Enrollment Form'!BP379=\"\",\"N\",\"Y\"))","v":"-"},{"$f":"IF('Enrollment Form'!B379<>\"Subscriber\",\"-\",IF(AND('Enrollment Form'!B379=\"Subscriber\",'Enrollment Form'!G379=\"\"),\"N\",\"Y\"))","v":"-"},{"$f":"IF('Enrollment Form'!A379=\"\",\"\",IF('Enrollment Form'!B379=\"Subscriber\",\"-\",IF(AND('Enrollment Form'!B379<>\"Subscriber\",'Enrollment Form'!G379='Enrollment Form'!H379),\"N\",\"Y\")))","v":""},0]
[380,{"$f":"IF('Enrollment Form'!$A380<>\"\",\"Y\",\"N\")","v":"N"},{"$f":"IF(AND('Enrollment Form'!$B380=\"\",'Enrollment Form'!$C380<>\"\"),\"N\",IF($B373=\"N\",\"\",\"Y\"))","v":""},{"$f":"IF(OR($B373=\"N\",'Enrollment Form'!G380=\"\"),\"\",IF('Enrollment Form'!$B380<>\"Subscriber\",\"\",IF('Enrollment Form'!$G380='Enrollment Form'!$H380,\"Y\",\"N\")))","v":""},{"$f":"IF($B373=\"N\",\"\",IF(AND(COUNTIFS('Enrollment Form'!$H$11:$H$1000,'Enrollment Form'!$H380,'Enrollment Form'!$B$11:$B$1000,'Enrollment Form'!$B380)>1,'Enrollment Form'!$H380<>\"\"),\"N\",\"Y\"))","v":""},{"$f":"IF($B373=\"N\",\"\",IF(LEN('Enrollment Form'!$Y380)=0,\"\",IF(LEN('Enrollment Form'!$Y380)<>5,\"N\",\"Y\")))","v":""},{"$f":"IF($B373=\"N\",\"\",IF(LEN('Enrollment Form'!$AD380=0),\"\",IF(LEN('Enrollment Form'!$AD380)<>5,\"N\",\"Y\")))","v":""},{"$f":"IF($B373=\"N\",\"\",IF(LEN('Enrollment Form'!$BS380=0),\"\",IF(LEN('Enrollment Form'!$BS380)<>5,\"N\",\"Y\")))","v":""},{"$f":"IF($B373=\"N\",\"\",IF(LEN('Enrollment Form'!$AE380)=0,\"\",IF(LEN('Enrollment Form'!$AE380)<>10,\"N\",\"Y\")))","v":""},{"$f":"IF($B373=\"N\",\"\",IF(LEN('Enrollment Form'!$AF380)=0,\"\",IF(LEN('Enrollment Form'!$AF380)<>10,\"N\",\"Y\")))","v":""},{"$f":"IF('Enrollment Form'!$O380<>\"Graded\",\"-\",IF(AND('Enrollment Form'!$O380=\"Graded\",'Enrollment Form'!$AR380<>\"\"),\"Y\",\"N\"))","v":"-"},{"$f":"IF($B373=\"N\",\"\",IF(OR('Enrollment Form'!$B380<>\"Subscriber\",'Enrollment Form'!$C380=\"ROC\"),\"-\",IF(AND('Enrollment Form'!$B380=\"Subscriber\",'Enrollment Form'!$C380=\"Enroll\",'Enrollment Form'!$AJ380<>\"\"),\"Y\",\"N\")))","v":""},{"$f":"IF($B373=\"N\",\"\",IF(OR('Enrollment Form'!$B380<>\"Subscriber\",'Enrollment Form'!$C380=\"ROC\"),\"-\",IF(AND('Enrollment Form'!$B380=\"Subscriber\",'Enrollment Form'!$C380=\"Enroll\",'Enrollment Form'!$AK380<>\"\"),\"Y\",\"N\")))","v":""},{"$f":"IF($B373=\"N\",\"\",IF(OR('Enrollment Form'!$B380<>\"Subscriber\",'Enrollment Form'!$C380=\"ROC\"),\"-\",IF(AND('Enrollment Form'!$B380=\"Subscriber\",'Enrollment Form'!$C380=\"Enroll\",'Enrollment Form'!$AL380<>\"\"),\"Y\",\"N\")))","v":""},{"$f":"IF($B373=\"N\",\"\",IF(OR('Enrollment Form'!$B380<>\"Subscriber\",'Enrollment Form'!$C380=\"ROC\"),\"-\",IF(AND('Enrollment Form'!$B380=\"Subscriber\",'Enrollment Form'!$C380=\"Enroll\",'Enrollment Form'!$AP380<>\"\"),\"Y\",\"N\")))","v":""},{"$f":"IF($B373=\"N\",\"\",IF(OR('Enrollment Form'!$B380<>\"Subscriber\",'Enrollment Form'!$C380=\"ROC\"),\"-\",IF(AND('Enrollment Form'!$B380=\"Subscriber\",'Enrollment Form'!$C380=\"Enroll\",'Enrollment Form'!$AQ380<>\"\"),\"Y\",\"N\")))","v":""},{"$f":"IF($B373=\"N\",\"\",IF(OR('Enrollment Form'!$B380<>\"Subscriber\",'Enrollment Form'!$C380=\"ROC\"),\"-\",IF(AND('Enrollment Form'!$B380=\"Subscriber\",'Enrollment Form'!$C380=\"Enroll\",'Enrollment Form'!$AS380<>\"\"),\"Y\",\"N\")))","v":""},{"$f":"IF($B373=\"N\",\"\",IF($Q373=\"-\",\"-\",IF(AND($Q373=\"Y\",'Enrollment Form'!$AS380=\"No\"),\"-\",IF(AND($Q373=\"Y\",'Enrollment Form'!$AS380=\"Yes\",'Enrollment Form'!$AT380<>\"\"),\"Y\",\"N\"))))","v":""},{"$f":"IF($B373=\"N\",\"\",IF(OR('Enrollment Form'!$B380<>\"Subscriber\",'Enrollment Form'!$C380=\"ROC\"),\"-\",IF(AND('Enrollment Form'!$B380=\"Subscriber\",'Enrollment Form'!$C380=\"Enroll\",'Enrollment Form'!$CV380<>\"\"),\"Y\",\"N\")))","v":""},{"$f":"IF($B373=\"N\",\"\",IF($S373=\"-\",\"-\",IF(AND($S373=\"Y\",'Enrollment Form'!$CV380=\"No\"),\"-\",IF(AND($S373=\"Y\",'Enrollment Form'!$CV380=\"Yes\",'Enrollment Form'!$CW380<>\"\"),\"Y\",\"N\"))))","v":""},{"$f":"IF(OR('Enrollment Form'!$AY380=\"Yes\",'Enrollment Form'!$AY380=\"\"),\"-\",IF(OR(AND('Enrollment Form'!$AY380=\"No\",ISERROR(FIND(\"HMO\",VLOOKUP('Enrollment Form'!G380,'Enrollment Form'!H$11:J$1000,3,FALSE),1))=FALSE,COUNTA('Enrollment Form'!$AZ380:$BC380)=4),AND('Enrollment Form'!$AY380=\"No\",ISERROR(FIND(\"HMO\",VLOOKUP('Enrollment Form'!G380,'Enrollment Form'!H$11:J$1000,3,FALSE),1))=FALSE,COUNTA('Enrollment Form'!$BT380:$BW380)=4)),\"Y\",\"N\"))","v":"-"},{"$f":"IF($B373=\"N\",\"\",IF('Enrollment Form'!$B380=\"Subscriber\",\"-\",IF(COUNTA('Enrollment Form'!$BL380,'Enrollment Form'!$BN380)=2,\"Y\",\"N\")))","v":""},{"$f":"IF($B373=\"N\",\"\",IF(OR('Enrollment Form'!$AX380=\"\",'Enrollment Form'!$AX380=\"No\"),\"-\",IF(AND('Enrollment Form'!$AX380=\"Yes\",COUNTA('Enrollment Form'!$CR380)=1),\"Y\",\"N\")))","v":""},{"$f":"IF(OR('Enrollment Form'!$CR380=\"\",'Enrollment Form'!$CR380=\"No\"),\"-\",IF(COUNTA('Enrollment Form'!$CT380:$CU380)=2,\"Y\",\"N\"))","v":"-"},{"$f":"IF($B373=\"N\",\"\",IF(COUNTIF('Enrollment Form'!$DG380:$DP380,\"Other\")=COUNTA('Enrollment Form'!$DK380,'Enrollment Form'!$DH380,'Enrollment Form'!$DN380,'Enrollment Form'!$DQ380),\"Y\",\"N\"))","v":""},{"$f":"IF($B373=\"N\",\"\",IF(OR('Enrollment Form'!B380<>\"Subscriber\",'Enrollment Form'!C380=\"ROC\",COUNTIF('Enrollment Form'!AV380:AW380,\"Yes\")>=1),\"-\",IF(AND('Enrollment Form'!C380=\"Enroll\",COUNTIF('Enrollment Form'!AV380:AW380,\"No\")=2,'Enrollment Form'!AX380=\"\"),\"N\",\"Y\")))","v":""},{"$f":"IF(OR(B373=\"N\",'Enrollment Form'!B380<>\"Subscriber\",'Enrollment Form'!C380=\"ROC\",'Enrollment Form'!O380<>\"Multiple of Salary\"),\"-\",IF(COUNTA('Enrollment Form'!T380:U380)<2,\"N\",\"Y\"))","v":"-"},{"$f":"IF(B373=\"N\",\"\",IF(OR('Enrollment Form'!C380=\"ROC\",'Enrollment Form'!B380<>\"Subscriber\",'Enrollment Form'!O380=\"Waive\",'Enrollment Form'!O380=\"\"),\"-\",IF('Enrollment Form'!P380=\"\",\"N\",\"Y\")))","v":""},{"$f":"IF($B373=\"N\",\"\",IF(AND('Enrollment Form'!$C380=\"ROC\",'Enrollment Form'!$DR380<>\"\"),\"Y\",IF(AND('Enrollment Form'!$C380=\"ROC\",'Enrollment Form'!$DR380=\"\"),\"N\",IF(AND('Enrollment Form'!$C380=\"Enroll\",'Enrollment Form'!$B380=\"Subscriber\",'Enrollment Form'!$CX380=\"No\",'Enrollment Form'!$DR380=\"\"),\"N\",IF(AND('Enrollment Form'!$C380=\"Enroll\",'Enrollment Form'!$B380=\"Subscriber\",'Enrollment Form'!$CX380=\"Yes\"),\"-\",\"Y\")))))","v":""},{"$f":"IF($B373=\"N\",\"\",IF(AND('Enrollment Form'!$C380=\"ROC\",'Enrollment Form'!$DS380<>\"\"),\"Y\",IF(AND('Enrollment Form'!$C380=\"ROC\",'Enrollment Form'!$DS380=\"\"),\"N\",IF(AND('Enrollment Form'!$C380=\"Enroll\",'Enrollment Form'!$B380=\"Subscriber\",'Enrollment Form'!$CX380=\"No\",'Enrollment Form'!$DS380=\"\"),\"N\",IF(AND('Enrollment Form'!$C380=\"Enroll\",'Enrollment Form'!$B380=\"Subscriber\",'Enrollment Form'!$CX380=\"Yes\"),\"-\",\"Y\")))))","v":""},{"$f":"IF('Enrollment Form'!AH380=\"\",\"\",IF(ISERROR(SEARCH(\".\",'Enrollment Form'!AH380,SEARCH(\"@\",'Enrollment Form'!AH380))),\"N\",\"Y\"))","v":""},{"$f":"IF(OR($B373=\"N\",'Enrollment Form'!$G380=\"\"),\"\",IF('Enrollment Form'!$B380<>\"Subscriber\",\"-\",IF(COUNTIF('Enrollment Form'!$AV380:$AW380,\"Yes\")=2,\"N\",\"Y\")))","v":""},{"$f":"IF(OR('Enrollment Form'!$CJ380=\"\",'Enrollment Form'!$CJ380=\"No\"),\"-\",IF(AND('Enrollment Form'!$CJ380=\"Yes\",'Enrollment Form'!$CK380=\"\"),\"N\",\"Y\"))","v":"-"},{"$f":"IF(OR('Enrollment Form'!$CL380=\"\",'Enrollment Form'!$CL380=\"No\"),\"-\",IF(AND('Enrollment Form'!$CL380=\"Yes\",'Enrollment Form'!$CM380=\"\"),\"N\",\"Y\"))","v":"-"},{"$f":"IF(OR('Enrollment Form'!$CN380=\"\",'Enrollment Form'!$CN380=\"No\"),\"-\",IF(AND('Enrollment Form'!$CN380=\"Yes\",'Enrollment Form'!$CO380=\"\"),\"N\",\"Y\"))","v":"-"},{"$f":"IF(OR('Enrollment Form'!$CN380=\"\",'Enrollment Form'!$CN380=\"No\"),\"-\",IF(AND('Enrollment Form'!$CN380=\"Yes\",'Enrollment Form'!$CP380=\"\"),\"N\",\"Y\"))","v":"-"},{"$f":"IF('Enrollment Form'!B380<>\"Subscriber\",\"-\",IF(AND('Enrollment Form'!B380=\"Subscriber\",'Enrollment Form'!C380=\"Enroll\",'Enrollment Form'!AA380=\"\"),\"N\",\"Y\"))","v":"-"},{"$f":"IF(OR('Enrollment Form'!B380=\"Subscriber\",'Enrollment Form'!B380=\"\"),\"-\",IF('Enrollment Form'!BP380=\"\",\"N\",\"Y\"))","v":"-"},{"$f":"IF('Enrollment Form'!B380<>\"Subscriber\",\"-\",IF(AND('Enrollment Form'!B380=\"Subscriber\",'Enrollment Form'!G380=\"\"),\"N\",\"Y\"))","v":"-"},{"$f":"IF('Enrollment Form'!A380=\"\",\"\",IF('Enrollment Form'!B380=\"Subscriber\",\"-\",IF(AND('Enrollment Form'!B380<>\"Subscriber\",'Enrollment Form'!G380='Enrollment Form'!H380),\"N\",\"Y\")))","v":""},0]
[381,{"$f":"IF('Enrollment Form'!$A381<>\"\",\"Y\",\"N\")","v":"N"},{"$f":"IF(AND('Enrollment Form'!$B381=\"\",'Enrollment Form'!$C381<>\"\"),\"N\",IF($B374=\"N\",\"\",\"Y\"))","v":""},{"$f":"IF(OR($B374=\"N\",'Enrollment Form'!G381=\"\"),\"\",IF('Enrollment Form'!$B381<>\"Subscriber\",\"\",IF('Enrollment Form'!$G381='Enrollment Form'!$H381,\"Y\",\"N\")))","v":""},{"$f":"IF($B374=\"N\",\"\",IF(AND(COUNTIFS('Enrollment Form'!$H$11:$H$1000,'Enrollment Form'!$H381,'Enrollment Form'!$B$11:$B$1000,'Enrollment Form'!$B381)>1,'Enrollment Form'!$H381<>\"\"),\"N\",\"Y\"))","v":""},{"$f":"IF($B374=\"N\",\"\",IF(LEN('Enrollment Form'!$Y381)=0,\"\",IF(LEN('Enrollment Form'!$Y381)<>5,\"N\",\"Y\")))","v":""},{"$f":"IF($B374=\"N\",\"\",IF(LEN('Enrollment Form'!$AD381=0),\"\",IF(LEN('Enrollment Form'!$AD381)<>5,\"N\",\"Y\")))","v":""},{"$f":"IF($B374=\"N\",\"\",IF(LEN('Enrollment Form'!$BS381=0),\"\",IF(LEN('Enrollment Form'!$BS381)<>5,\"N\",\"Y\")))","v":""},{"$f":"IF($B374=\"N\",\"\",IF(LEN('Enrollment Form'!$AE381)=0,\"\",IF(LEN('Enrollment Form'!$AE381)<>10,\"N\",\"Y\")))","v":""},{"$f":"IF($B374=\"N\",\"\",IF(LEN('Enrollment Form'!$AF381)=0,\"\",IF(LEN('Enrollment Form'!$AF381)<>10,\"N\",\"Y\")))","v":""},{"$f":"IF('Enrollment Form'!$O381<>\"Graded\",\"-\",IF(AND('Enrollment Form'!$O381=\"Graded\",'Enrollment Form'!$AR381<>\"\"),\"Y\",\"N\"))","v":"-"},{"$f":"IF($B374=\"N\",\"\",IF(OR('Enrollment Form'!$B381<>\"Subscriber\",'Enrollment Form'!$C381=\"ROC\"),\"-\",IF(AND('Enrollment Form'!$B381=\"Subscriber\",'Enrollment Form'!$C381=\"Enroll\",'Enrollment Form'!$AJ381<>\"\"),\"Y\",\"N\")))","v":""},{"$f":"IF($B374=\"N\",\"\",IF(OR('Enrollment Form'!$B381<>\"Subscriber\",'Enrollment Form'!$C381=\"ROC\"),\"-\",IF(AND('Enrollment Form'!$B381=\"Subscriber\",'Enrollment Form'!$C381=\"Enroll\",'Enrollment Form'!$AK381<>\"\"),\"Y\",\"N\")))","v":""},{"$f":"IF($B374=\"N\",\"\",IF(OR('Enrollment Form'!$B381<>\"Subscriber\",'Enrollment Form'!$C381=\"ROC\"),\"-\",IF(AND('Enrollment Form'!$B381=\"Subscriber\",'Enrollment Form'!$C381=\"Enroll\",'Enrollment Form'!$AL381<>\"\"),\"Y\",\"N\")))","v":""},{"$f":"IF($B374=\"N\",\"\",IF(OR('Enrollment Form'!$B381<>\"Subscriber\",'Enrollment Form'!$C381=\"ROC\"),\"-\",IF(AND('Enrollment Form'!$B381=\"Subscriber\",'Enrollment Form'!$C381=\"Enroll\",'Enrollment Form'!$AP381<>\"\"),\"Y\",\"N\")))","v":""},{"$f":"IF($B374=\"N\",\"\",IF(OR('Enrollment Form'!$B381<>\"Subscriber\",'Enrollment Form'!$C381=\"ROC\"),\"-\",IF(AND('Enrollment Form'!$B381=\"Subscriber\",'Enrollment Form'!$C381=\"Enroll\",'Enrollment Form'!$AQ381<>\"\"),\"Y\",\"N\")))","v":""},{"$f":"IF($B374=\"N\",\"\",IF(OR('Enrollment Form'!$B381<>\"Subscriber\",'Enrollment Form'!$C381=\"ROC\"),\"-\",IF(AND('Enrollment Form'!$B381=\"Subscriber\",'Enrollment Form'!$C381=\"Enroll\",'Enrollment Form'!$AS381<>\"\"),\"Y\",\"N\")))","v":""},{"$f":"IF($B374=\"N\",\"\",IF($Q374=\"-\",\"-\",IF(AND($Q374=\"Y\",'Enrollment Form'!$AS381=\"No\"),\"-\",IF(AND($Q374=\"Y\",'Enrollment Form'!$AS381=\"Yes\",'Enrollment Form'!$AT381<>\"\"),\"Y\",\"N\"))))","v":""},{"$f":"IF($B374=\"N\",\"\",IF(OR('Enrollment Form'!$B381<>\"Subscriber\",'Enrollment Form'!$C381=\"ROC\"),\"-\",IF(AND('Enrollment Form'!$B381=\"Subscriber\",'Enrollment Form'!$C381=\"Enroll\",'Enrollment Form'!$CV381<>\"\"),\"Y\",\"N\")))","v":""},{"$f":"IF($B374=\"N\",\"\",IF($S374=\"-\",\"-\",IF(AND($S374=\"Y\",'Enrollment Form'!$CV381=\"No\"),\"-\",IF(AND($S374=\"Y\",'Enrollment Form'!$CV381=\"Yes\",'Enrollment Form'!$CW381<>\"\"),\"Y\",\"N\"))))","v":""},{"$f":"IF(OR('Enrollment Form'!$AY381=\"Yes\",'Enrollment Form'!$AY381=\"\"),\"-\",IF(OR(AND('Enrollment Form'!$AY381=\"No\",ISERROR(FIND(\"HMO\",VLOOKUP('Enrollment Form'!G381,'Enrollment Form'!H$11:J$1000,3,FALSE),1))=FALSE,COUNTA('Enrollment Form'!$AZ381:$BC381)=4),AND('Enrollment Form'!$AY381=\"No\",ISERROR(FIND(\"HMO\",VLOOKUP('Enrollment Form'!G381,'Enrollment Form'!H$11:J$1000,3,FALSE),1))=FALSE,COUNTA('Enrollment Form'!$BT381:$BW381)=4)),\"Y\",\"N\"))","v":"-"},{"$f":"IF($B374=\"N\",\"\",IF('Enrollment Form'!$B381=\"Subscriber\",\"-\",IF(COUNTA('Enrollment Form'!$BL381,'Enrollment Form'!$BN381)=2,\"Y\",\"N\")))","v":""},{"$f":"IF($B374=\"N\",\"\",IF(OR('Enrollment Form'!$AX381=\"\",'Enrollment Form'!$AX381=\"No\"),\"-\",IF(AND('Enrollment Form'!$AX381=\"Yes\",COUNTA('Enrollment Form'!$CR381)=1),\"Y\",\"N\")))","v":""},{"$f":"IF(OR('Enrollment Form'!$CR381=\"\",'Enrollment Form'!$CR381=\"No\"),\"-\",IF(COUNTA('Enrollment Form'!$CT381:$CU381)=2,\"Y\",\"N\"))","v":"-"},{"$f":"IF($B374=\"N\",\"\",IF(COUNTIF('Enrollment Form'!$DG381:$DP381,\"Other\")=COUNTA('Enrollment Form'!$DK381,'Enrollment Form'!$DH381,'Enrollment Form'!$DN381,'Enrollment Form'!$DQ381),\"Y\",\"N\"))","v":""},{"$f":"IF($B374=\"N\",\"\",IF(OR('Enrollment Form'!B381<>\"Subscriber\",'Enrollment Form'!C381=\"ROC\",COUNTIF('Enrollment Form'!AV381:AW381,\"Yes\")>=1),\"-\",IF(AND('Enrollment Form'!C381=\"Enroll\",COUNTIF('Enrollment Form'!AV381:AW381,\"No\")=2,'Enrollment Form'!AX381=\"\"),\"N\",\"Y\")))","v":""},{"$f":"IF(OR(B374=\"N\",'Enrollment Form'!B381<>\"Subscriber\",'Enrollment Form'!C381=\"ROC\",'Enrollment Form'!O381<>\"Multiple of Salary\"),\"-\",IF(COUNTA('Enrollment Form'!T381:U381)<2,\"N\",\"Y\"))","v":"-"},{"$f":"IF(B374=\"N\",\"\",IF(OR('Enrollment Form'!C381=\"ROC\",'Enrollment Form'!B381<>\"Subscriber\",'Enrollment Form'!O381=\"Waive\",'Enrollment Form'!O381=\"\"),\"-\",IF('Enrollment Form'!P381=\"\",\"N\",\"Y\")))","v":""},{"$f":"IF($B374=\"N\",\"\",IF(AND('Enrollment Form'!$C381=\"ROC\",'Enrollment Form'!$DR381<>\"\"),\"Y\",IF(AND('Enrollment Form'!$C381=\"ROC\",'Enrollment Form'!$DR381=\"\"),\"N\",IF(AND('Enrollment Form'!$C381=\"Enroll\",'Enrollment Form'!$B381=\"Subscriber\",'Enrollment Form'!$CX381=\"No\",'Enrollment Form'!$DR381=\"\"),\"N\",IF(AND('Enrollment Form'!$C381=\"Enroll\",'Enrollment Form'!$B381=\"Subscriber\",'Enrollment Form'!$CX381=\"Yes\"),\"-\",\"Y\")))))","v":""},{"$f":"IF($B374=\"N\",\"\",IF(AND('Enrollment Form'!$C381=\"ROC\",'Enrollment Form'!$DS381<>\"\"),\"Y\",IF(AND('Enrollment Form'!$C381=\"ROC\",'Enrollment Form'!$DS381=\"\"),\"N\",IF(AND('Enrollment Form'!$C381=\"Enroll\",'Enrollment Form'!$B381=\"Subscriber\",'Enrollment Form'!$CX381=\"No\",'Enrollment Form'!$DS381=\"\"),\"N\",IF(AND('Enrollment Form'!$C381=\"Enroll\",'Enrollment Form'!$B381=\"Subscriber\",'Enrollment Form'!$CX381=\"Yes\"),\"-\",\"Y\")))))","v":""},{"$f":"IF('Enrollment Form'!AH381=\"\",\"\",IF(ISERROR(SEARCH(\".\",'Enrollment Form'!AH381,SEARCH(\"@\",'Enrollment Form'!AH381))),\"N\",\"Y\"))","v":""},{"$f":"IF(OR($B374=\"N\",'Enrollment Form'!$G381=\"\"),\"\",IF('Enrollment Form'!$B381<>\"Subscriber\",\"-\",IF(COUNTIF('Enrollment Form'!$AV381:$AW381,\"Yes\")=2,\"N\",\"Y\")))","v":""},{"$f":"IF(OR('Enrollment Form'!$CJ381=\"\",'Enrollment Form'!$CJ381=\"No\"),\"-\",IF(AND('Enrollment Form'!$CJ381=\"Yes\",'Enrollment Form'!$CK381=\"\"),\"N\",\"Y\"))","v":"-"},{"$f":"IF(OR('Enrollment Form'!$CL381=\"\",'Enrollment Form'!$CL381=\"No\"),\"-\",IF(AND('Enrollment Form'!$CL381=\"Yes\",'Enrollment Form'!$CM381=\"\"),\"N\",\"Y\"))","v":"-"},{"$f":"IF(OR('Enrollment Form'!$CN381=\"\",'Enrollment Form'!$CN381=\"No\"),\"-\",IF(AND('Enrollment Form'!$CN381=\"Yes\",'Enrollment Form'!$CO381=\"\"),\"N\",\"Y\"))","v":"-"},{"$f":"IF(OR('Enrollment Form'!$CN381=\"\",'Enrollment Form'!$CN381=\"No\"),\"-\",IF(AND('Enrollment Form'!$CN381=\"Yes\",'Enrollment Form'!$CP381=\"\"),\"N\",\"Y\"))","v":"-"},{"$f":"IF('Enrollment Form'!B381<>\"Subscriber\",\"-\",IF(AND('Enrollment Form'!B381=\"Subscriber\",'Enrollment Form'!C381=\"Enroll\",'Enrollment Form'!AA381=\"\"),\"N\",\"Y\"))","v":"-"},{"$f":"IF(OR('Enrollment Form'!B381=\"Subscriber\",'Enrollment Form'!B381=\"\"),\"-\",IF('Enrollment Form'!BP381=\"\",\"N\",\"Y\"))","v":"-"},{"$f":"IF('Enrollment Form'!B381<>\"Subscriber\",\"-\",IF(AND('Enrollment Form'!B381=\"Subscriber\",'Enrollment Form'!G381=\"\"),\"N\",\"Y\"))","v":"-"},{"$f":"IF('Enrollment Form'!A381=\"\",\"\",IF('Enrollment Form'!B381=\"Subscriber\",\"-\",IF(AND('Enrollment Form'!B381<>\"Subscriber\",'Enrollment Form'!G381='Enrollment Form'!H381),\"N\",\"Y\")))","v":""},0]
[382,{"$f":"IF('Enrollment Form'!$A382<>\"\",\"Y\",\"N\")","v":"N"},{"$f":"IF(AND('Enrollment Form'!$B382=\"\",'Enrollment Form'!$C382<>\"\"),\"N\",IF($B375=\"N\",\"\",\"Y\"))","v":""},{"$f":"IF(OR($B375=\"N\",'Enrollment Form'!G382=\"\"),\"\",IF('Enrollment Form'!$B382<>\"Subscriber\",\"\",IF('Enrollment Form'!$G382='Enrollment Form'!$H382,\"Y\",\"N\")))","v":""},{"$f":"IF($B375=\"N\",\"\",IF(AND(COUNTIFS('Enrollment Form'!$H$11:$H$1000,'Enrollment Form'!$H382,'Enrollment Form'!$B$11:$B$1000,'Enrollment Form'!$B382)>1,'Enrollment Form'!$H382<>\"\"),\"N\",\"Y\"))","v":""},{"$f":"IF($B375=\"N\",\"\",IF(LEN('Enrollment Form'!$Y382)=0,\"\",IF(LEN('Enrollment Form'!$Y382)<>5,\"N\",\"Y\")))","v":""},{"$f":"IF($B375=\"N\",\"\",IF(LEN('Enrollment Form'!$AD382=0),\"\",IF(LEN('Enrollment Form'!$AD382)<>5,\"N\",\"Y\")))","v":""},{"$f":"IF($B375=\"N\",\"\",IF(LEN('Enrollment Form'!$BS382=0),\"\",IF(LEN('Enrollment Form'!$BS382)<>5,\"N\",\"Y\")))","v":""},{"$f":"IF($B375=\"N\",\"\",IF(LEN('Enrollment Form'!$AE382)=0,\"\",IF(LEN('Enrollment Form'!$AE382)<>10,\"N\",\"Y\")))","v":""},{"$f":"IF($B375=\"N\",\"\",IF(LEN('Enrollment Form'!$AF382)=0,\"\",IF(LEN('Enrollment Form'!$AF382)<>10,\"N\",\"Y\")))","v":""},{"$f":"IF('Enrollment Form'!$O382<>\"Graded\",\"-\",IF(AND('Enrollment Form'!$O382=\"Graded\",'Enrollment Form'!$AR382<>\"\"),\"Y\",\"N\"))","v":"-"},{"$f":"IF($B375=\"N\",\"\",IF(OR('Enrollment Form'!$B382<>\"Subscriber\",'Enrollment Form'!$C382=\"ROC\"),\"-\",IF(AND('Enrollment Form'!$B382=\"Subscriber\",'Enrollment Form'!$C382=\"Enroll\",'Enrollment Form'!$AJ382<>\"\"),\"Y\",\"N\")))","v":""},{"$f":"IF($B375=\"N\",\"\",IF(OR('Enrollment Form'!$B382<>\"Subscriber\",'Enrollment Form'!$C382=\"ROC\"),\"-\",IF(AND('Enrollment Form'!$B382=\"Subscriber\",'Enrollment Form'!$C382=\"Enroll\",'Enrollment Form'!$AK382<>\"\"),\"Y\",\"N\")))","v":""},{"$f":"IF($B375=\"N\",\"\",IF(OR('Enrollment Form'!$B382<>\"Subscriber\",'Enrollment Form'!$C382=\"ROC\"),\"-\",IF(AND('Enrollment Form'!$B382=\"Subscriber\",'Enrollment Form'!$C382=\"Enroll\",'Enrollment Form'!$AL382<>\"\"),\"Y\",\"N\")))","v":""},{"$f":"IF($B375=\"N\",\"\",IF(OR('Enrollment Form'!$B382<>\"Subscriber\",'Enrollment Form'!$C382=\"ROC\"),\"-\",IF(AND('Enrollment Form'!$B382=\"Subscriber\",'Enrollment Form'!$C382=\"Enroll\",'Enrollment Form'!$AP382<>\"\"),\"Y\",\"N\")))","v":""},{"$f":"IF($B375=\"N\",\"\",IF(OR('Enrollment Form'!$B382<>\"Subscriber\",'Enrollment Form'!$C382=\"ROC\"),\"-\",IF(AND('Enrollment Form'!$B382=\"Subscriber\",'Enrollment Form'!$C382=\"Enroll\",'Enrollment Form'!$AQ382<>\"\"),\"Y\",\"N\")))","v":""},{"$f":"IF($B375=\"N\",\"\",IF(OR('Enrollment Form'!$B382<>\"Subscriber\",'Enrollment Form'!$C382=\"ROC\"),\"-\",IF(AND('Enrollment Form'!$B382=\"Subscriber\",'Enrollment Form'!$C382=\"Enroll\",'Enrollment Form'!$AS382<>\"\"),\"Y\",\"N\")))","v":""},{"$f":"IF($B375=\"N\",\"\",IF($Q375=\"-\",\"-\",IF(AND($Q375=\"Y\",'Enrollment Form'!$AS382=\"No\"),\"-\",IF(AND($Q375=\"Y\",'Enrollment Form'!$AS382=\"Yes\",'Enrollment Form'!$AT382<>\"\"),\"Y\",\"N\"))))","v":""},{"$f":"IF($B375=\"N\",\"\",IF(OR('Enrollment Form'!$B382<>\"Subscriber\",'Enrollment Form'!$C382=\"ROC\"),\"-\",IF(AND('Enrollment Form'!$B382=\"Subscriber\",'Enrollment Form'!$C382=\"Enroll\",'Enrollment Form'!$CV382<>\"\"),\"Y\",\"N\")))","v":""},{"$f":"IF($B375=\"N\",\"\",IF($S375=\"-\",\"-\",IF(AND($S375=\"Y\",'Enrollment Form'!$CV382=\"No\"),\"-\",IF(AND($S375=\"Y\",'Enrollment Form'!$CV382=\"Yes\",'Enrollment Form'!$CW382<>\"\"),\"Y\",\"N\"))))","v":""},{"$f":"IF(OR('Enrollment Form'!$AY382=\"Yes\",'Enrollment Form'!$AY382=\"\"),\"-\",IF(OR(AND('Enrollment Form'!$AY382=\"No\",ISERROR(FIND(\"HMO\",VLOOKUP('Enrollment Form'!G382,'Enrollment Form'!H$11:J$1000,3,FALSE),1))=FALSE,COUNTA('Enrollment Form'!$AZ382:$BC382)=4),AND('Enrollment Form'!$AY382=\"No\",ISERROR(FIND(\"HMO\",VLOOKUP('Enrollment Form'!G382,'Enrollment Form'!H$11:J$1000,3,FALSE),1))=FALSE,COUNTA('Enrollment Form'!$BT382:$BW382)=4)),\"Y\",\"N\"))","v":"-"},{"$f":"IF($B375=\"N\",\"\",IF('Enrollment Form'!$B382=\"Subscriber\",\"-\",IF(COUNTA('Enrollment Form'!$BL382,'Enrollment Form'!$BN382)=2,\"Y\",\"N\")))","v":""},{"$f":"IF($B375=\"N\",\"\",IF(OR('Enrollment Form'!$AX382=\"\",'Enrollment Form'!$AX382=\"No\"),\"-\",IF(AND('Enrollment Form'!$AX382=\"Yes\",COUNTA('Enrollment Form'!$CR382)=1),\"Y\",\"N\")))","v":""},{"$f":"IF(OR('Enrollment Form'!$CR382=\"\",'Enrollment Form'!$CR382=\"No\"),\"-\",IF(COUNTA('Enrollment Form'!$CT382:$CU382)=2,\"Y\",\"N\"))","v":"-"},{"$f":"IF($B375=\"N\",\"\",IF(COUNTIF('Enrollment Form'!$DG382:$DP382,\"Other\")=COUNTA('Enrollment Form'!$DK382,'Enrollment Form'!$DH382,'Enrollment Form'!$DN382,'Enrollment Form'!$DQ382),\"Y\",\"N\"))","v":""},{"$f":"IF($B375=\"N\",\"\",IF(OR('Enrollment Form'!B382<>\"Subscriber\",'Enrollment Form'!C382=\"ROC\",COUNTIF('Enrollment Form'!AV382:AW382,\"Yes\")>=1),\"-\",IF(AND('Enrollment Form'!C382=\"Enroll\",COUNTIF('Enrollment Form'!AV382:AW382,\"No\")=2,'Enrollment Form'!AX382=\"\"),\"N\",\"Y\")))","v":""},{"$f":"IF(OR(B375=\"N\",'Enrollment Form'!B382<>\"Subscriber\",'Enrollment Form'!C382=\"ROC\",'Enrollment Form'!O382<>\"Multiple of Salary\"),\"-\",IF(COUNTA('Enrollment Form'!T382:U382)<2,\"N\",\"Y\"))","v":"-"},{"$f":"IF(B375=\"N\",\"\",IF(OR('Enrollment Form'!C382=\"ROC\",'Enrollment Form'!B382<>\"Subscriber\",'Enrollment Form'!O382=\"Waive\",'Enrollment Form'!O382=\"\"),\"-\",IF('Enrollment Form'!P382=\"\",\"N\",\"Y\")))","v":""},{"$f":"IF($B375=\"N\",\"\",IF(AND('Enrollment Form'!$C382=\"ROC\",'Enrollment Form'!$DR382<>\"\"),\"Y\",IF(AND('Enrollment Form'!$C382=\"ROC\",'Enrollment Form'!$DR382=\"\"),\"N\",IF(AND('Enrollment Form'!$C382=\"Enroll\",'Enrollment Form'!$B382=\"Subscriber\",'Enrollment Form'!$CX382=\"No\",'Enrollment Form'!$DR382=\"\"),\"N\",IF(AND('Enrollment Form'!$C382=\"Enroll\",'Enrollment Form'!$B382=\"Subscriber\",'Enrollment Form'!$CX382=\"Yes\"),\"-\",\"Y\")))))","v":""},{"$f":"IF($B375=\"N\",\"\",IF(AND('Enrollment Form'!$C382=\"ROC\",'Enrollment Form'!$DS382<>\"\"),\"Y\",IF(AND('Enrollment Form'!$C382=\"ROC\",'Enrollment Form'!$DS382=\"\"),\"N\",IF(AND('Enrollment Form'!$C382=\"Enroll\",'Enrollment Form'!$B382=\"Subscriber\",'Enrollment Form'!$CX382=\"No\",'Enrollment Form'!$DS382=\"\"),\"N\",IF(AND('Enrollment Form'!$C382=\"Enroll\",'Enrollment Form'!$B382=\"Subscriber\",'Enrollment Form'!$CX382=\"Yes\"),\"-\",\"Y\")))))","v":""},{"$f":"IF('Enrollment Form'!AH382=\"\",\"\",IF(ISERROR(SEARCH(\".\",'Enrollment Form'!AH382,SEARCH(\"@\",'Enrollment Form'!AH382))),\"N\",\"Y\"))","v":""},{"$f":"IF(OR($B375=\"N\",'Enrollment Form'!$G382=\"\"),\"\",IF('Enrollment Form'!$B382<>\"Subscriber\",\"-\",IF(COUNTIF('Enrollment Form'!$AV382:$AW382,\"Yes\")=2,\"N\",\"Y\")))","v":""},{"$f":"IF(OR('Enrollment Form'!$CJ382=\"\",'Enrollment Form'!$CJ382=\"No\"),\"-\",IF(AND('Enrollment Form'!$CJ382=\"Yes\",'Enrollment Form'!$CK382=\"\"),\"N\",\"Y\"))","v":"-"},{"$f":"IF(OR('Enrollment Form'!$CL382=\"\",'Enrollment Form'!$CL382=\"No\"),\"-\",IF(AND('Enrollment Form'!$CL382=\"Yes\",'Enrollment Form'!$CM382=\"\"),\"N\",\"Y\"))","v":"-"},{"$f":"IF(OR('Enrollment Form'!$CN382=\"\",'Enrollment Form'!$CN382=\"No\"),\"-\",IF(AND('Enrollment Form'!$CN382=\"Yes\",'Enrollment Form'!$CO382=\"\"),\"N\",\"Y\"))","v":"-"},{"$f":"IF(OR('Enrollment Form'!$CN382=\"\",'Enrollment Form'!$CN382=\"No\"),\"-\",IF(AND('Enrollment Form'!$CN382=\"Yes\",'Enrollment Form'!$CP382=\"\"),\"N\",\"Y\"))","v":"-"},{"$f":"IF('Enrollment Form'!B382<>\"Subscriber\",\"-\",IF(AND('Enrollment Form'!B382=\"Subscriber\",'Enrollment Form'!C382=\"Enroll\",'Enrollment Form'!AA382=\"\"),\"N\",\"Y\"))","v":"-"},{"$f":"IF(OR('Enrollment Form'!B382=\"Subscriber\",'Enrollment Form'!B382=\"\"),\"-\",IF('Enrollment Form'!BP382=\"\",\"N\",\"Y\"))","v":"-"},{"$f":"IF('Enrollment Form'!B382<>\"Subscriber\",\"-\",IF(AND('Enrollment Form'!B382=\"Subscriber\",'Enrollment Form'!G382=\"\"),\"N\",\"Y\"))","v":"-"},{"$f":"IF('Enrollment Form'!A382=\"\",\"\",IF('Enrollment Form'!B382=\"Subscriber\",\"-\",IF(AND('Enrollment Form'!B382<>\"Subscriber\",'Enrollment Form'!G382='Enrollment Form'!H382),\"N\",\"Y\")))","v":""},0]
[383,{"$f":"IF('Enrollment Form'!$A383<>\"\",\"Y\",\"N\")","v":"N"},{"$f":"IF(AND('Enrollment Form'!$B383=\"\",'Enrollment Form'!$C383<>\"\"),\"N\",IF($B376=\"N\",\"\",\"Y\"))","v":""},{"$f":"IF(OR($B376=\"N\",'Enrollment Form'!G383=\"\"),\"\",IF('Enrollment Form'!$B383<>\"Subscriber\",\"\",IF('Enrollment Form'!$G383='Enrollment Form'!$H383,\"Y\",\"N\")))","v":""},{"$f":"IF($B376=\"N\",\"\",IF(AND(COUNTIFS('Enrollment Form'!$H$11:$H$1000,'Enrollment Form'!$H383,'Enrollment Form'!$B$11:$B$1000,'Enrollment Form'!$B383)>1,'Enrollment Form'!$H383<>\"\"),\"N\",\"Y\"))","v":""},{"$f":"IF($B376=\"N\",\"\",IF(LEN('Enrollment Form'!$Y383)=0,\"\",IF(LEN('Enrollment Form'!$Y383)<>5,\"N\",\"Y\")))","v":""},{"$f":"IF($B376=\"N\",\"\",IF(LEN('Enrollment Form'!$AD383=0),\"\",IF(LEN('Enrollment Form'!$AD383)<>5,\"N\",\"Y\")))","v":""},{"$f":"IF($B376=\"N\",\"\",IF(LEN('Enrollment Form'!$BS383=0),\"\",IF(LEN('Enrollment Form'!$BS383)<>5,\"N\",\"Y\")))","v":""},{"$f":"IF($B376=\"N\",\"\",IF(LEN('Enrollment Form'!$AE383)=0,\"\",IF(LEN('Enrollment Form'!$AE383)<>10,\"N\",\"Y\")))","v":""},{"$f":"IF($B376=\"N\",\"\",IF(LEN('Enrollment Form'!$AF383)=0,\"\",IF(LEN('Enrollment Form'!$AF383)<>10,\"N\",\"Y\")))","v":""},{"$f":"IF('Enrollment Form'!$O383<>\"Graded\",\"-\",IF(AND('Enrollment Form'!$O383=\"Graded\",'Enrollment Form'!$AR383<>\"\"),\"Y\",\"N\"))","v":"-"},{"$f":"IF($B376=\"N\",\"\",IF(OR('Enrollment Form'!$B383<>\"Subscriber\",'Enrollment Form'!$C383=\"ROC\"),\"-\",IF(AND('Enrollment Form'!$B383=\"Subscriber\",'Enrollment Form'!$C383=\"Enroll\",'Enrollment Form'!$AJ383<>\"\"),\"Y\",\"N\")))","v":""},{"$f":"IF($B376=\"N\",\"\",IF(OR('Enrollment Form'!$B383<>\"Subscriber\",'Enrollment Form'!$C383=\"ROC\"),\"-\",IF(AND('Enrollment Form'!$B383=\"Subscriber\",'Enrollment Form'!$C383=\"Enroll\",'Enrollment Form'!$AK383<>\"\"),\"Y\",\"N\")))","v":""},{"$f":"IF($B376=\"N\",\"\",IF(OR('Enrollment Form'!$B383<>\"Subscriber\",'Enrollment Form'!$C383=\"ROC\"),\"-\",IF(AND('Enrollment Form'!$B383=\"Subscriber\",'Enrollment Form'!$C383=\"Enroll\",'Enrollment Form'!$AL383<>\"\"),\"Y\",\"N\")))","v":""},{"$f":"IF($B376=\"N\",\"\",IF(OR('Enrollment Form'!$B383<>\"Subscriber\",'Enrollment Form'!$C383=\"ROC\"),\"-\",IF(AND('Enrollment Form'!$B383=\"Subscriber\",'Enrollment Form'!$C383=\"Enroll\",'Enrollment Form'!$AP383<>\"\"),\"Y\",\"N\")))","v":""},{"$f":"IF($B376=\"N\",\"\",IF(OR('Enrollment Form'!$B383<>\"Subscriber\",'Enrollment Form'!$C383=\"ROC\"),\"-\",IF(AND('Enrollment Form'!$B383=\"Subscriber\",'Enrollment Form'!$C383=\"Enroll\",'Enrollment Form'!$AQ383<>\"\"),\"Y\",\"N\")))","v":""},{"$f":"IF($B376=\"N\",\"\",IF(OR('Enrollment Form'!$B383<>\"Subscriber\",'Enrollment Form'!$C383=\"ROC\"),\"-\",IF(AND('Enrollment Form'!$B383=\"Subscriber\",'Enrollment Form'!$C383=\"Enroll\",'Enrollment Form'!$AS383<>\"\"),\"Y\",\"N\")))","v":""},{"$f":"IF($B376=\"N\",\"\",IF($Q376=\"-\",\"-\",IF(AND($Q376=\"Y\",'Enrollment Form'!$AS383=\"No\"),\"-\",IF(AND($Q376=\"Y\",'Enrollment Form'!$AS383=\"Yes\",'Enrollment Form'!$AT383<>\"\"),\"Y\",\"N\"))))","v":""},{"$f":"IF($B376=\"N\",\"\",IF(OR('Enrollment Form'!$B383<>\"Subscriber\",'Enrollment Form'!$C383=\"ROC\"),\"-\",IF(AND('Enrollment Form'!$B383=\"Subscriber\",'Enrollment Form'!$C383=\"Enroll\",'Enrollment Form'!$CV383<>\"\"),\"Y\",\"N\")))","v":""},{"$f":"IF($B376=\"N\",\"\",IF($S376=\"-\",\"-\",IF(AND($S376=\"Y\",'Enrollment Form'!$CV383=\"No\"),\"-\",IF(AND($S376=\"Y\",'Enrollment Form'!$CV383=\"Yes\",'Enrollment Form'!$CW383<>\"\"),\"Y\",\"N\"))))","v":""},{"$f":"IF(OR('Enrollment Form'!$AY383=\"Yes\",'Enrollment Form'!$AY383=\"\"),\"-\",IF(OR(AND('Enrollment Form'!$AY383=\"No\",ISERROR(FIND(\"HMO\",VLOOKUP('Enrollment Form'!G383,'Enrollment Form'!H$11:J$1000,3,FALSE),1))=FALSE,COUNTA('Enrollment Form'!$AZ383:$BC383)=4),AND('Enrollment Form'!$AY383=\"No\",ISERROR(FIND(\"HMO\",VLOOKUP('Enrollment Form'!G383,'Enrollment Form'!H$11:J$1000,3,FALSE),1))=FALSE,COUNTA('Enrollment Form'!$BT383:$BW383)=4)),\"Y\",\"N\"))","v":"-"},{"$f":"IF($B376=\"N\",\"\",IF('Enrollment Form'!$B383=\"Subscriber\",\"-\",IF(COUNTA('Enrollment Form'!$BL383,'Enrollment Form'!$BN383)=2,\"Y\",\"N\")))","v":""},{"$f":"IF($B376=\"N\",\"\",IF(OR('Enrollment Form'!$AX383=\"\",'Enrollment Form'!$AX383=\"No\"),\"-\",IF(AND('Enrollment Form'!$AX383=\"Yes\",COUNTA('Enrollment Form'!$CR383)=1),\"Y\",\"N\")))","v":""},{"$f":"IF(OR('Enrollment Form'!$CR383=\"\",'Enrollment Form'!$CR383=\"No\"),\"-\",IF(COUNTA('Enrollment Form'!$CT383:$CU383)=2,\"Y\",\"N\"))","v":"-"},{"$f":"IF($B376=\"N\",\"\",IF(COUNTIF('Enrollment Form'!$DG383:$DP383,\"Other\")=COUNTA('Enrollment Form'!$DK383,'Enrollment Form'!$DH383,'Enrollment Form'!$DN383,'Enrollment Form'!$DQ383),\"Y\",\"N\"))","v":""},{"$f":"IF($B376=\"N\",\"\",IF(OR('Enrollment Form'!B383<>\"Subscriber\",'Enrollment Form'!C383=\"ROC\",COUNTIF('Enrollment Form'!AV383:AW383,\"Yes\")>=1),\"-\",IF(AND('Enrollment Form'!C383=\"Enroll\",COUNTIF('Enrollment Form'!AV383:AW383,\"No\")=2,'Enrollment Form'!AX383=\"\"),\"N\",\"Y\")))","v":""},{"$f":"IF(OR(B376=\"N\",'Enrollment Form'!B383<>\"Subscriber\",'Enrollment Form'!C383=\"ROC\",'Enrollment Form'!O383<>\"Multiple of Salary\"),\"-\",IF(COUNTA('Enrollment Form'!T383:U383)<2,\"N\",\"Y\"))","v":"-"},{"$f":"IF(B376=\"N\",\"\",IF(OR('Enrollment Form'!C383=\"ROC\",'Enrollment Form'!B383<>\"Subscriber\",'Enrollment Form'!O383=\"Waive\",'Enrollment Form'!O383=\"\"),\"-\",IF('Enrollment Form'!P383=\"\",\"N\",\"Y\")))","v":""},{"$f":"IF($B376=\"N\",\"\",IF(AND('Enrollment Form'!$C383=\"ROC\",'Enrollment Form'!$DR383<>\"\"),\"Y\",IF(AND('Enrollment Form'!$C383=\"ROC\",'Enrollment Form'!$DR383=\"\"),\"N\",IF(AND('Enrollment Form'!$C383=\"Enroll\",'Enrollment Form'!$B383=\"Subscriber\",'Enrollment Form'!$CX383=\"No\",'Enrollment Form'!$DR383=\"\"),\"N\",IF(AND('Enrollment Form'!$C383=\"Enroll\",'Enrollment Form'!$B383=\"Subscriber\",'Enrollment Form'!$CX383=\"Yes\"),\"-\",\"Y\")))))","v":""},{"$f":"IF($B376=\"N\",\"\",IF(AND('Enrollment Form'!$C383=\"ROC\",'Enrollment Form'!$DS383<>\"\"),\"Y\",IF(AND('Enrollment Form'!$C383=\"ROC\",'Enrollment Form'!$DS383=\"\"),\"N\",IF(AND('Enrollment Form'!$C383=\"Enroll\",'Enrollment Form'!$B383=\"Subscriber\",'Enrollment Form'!$CX383=\"No\",'Enrollment Form'!$DS383=\"\"),\"N\",IF(AND('Enrollment Form'!$C383=\"Enroll\",'Enrollment Form'!$B383=\"Subscriber\",'Enrollment Form'!$CX383=\"Yes\"),\"-\",\"Y\")))))","v":""},{"$f":"IF('Enrollment Form'!AH383=\"\",\"\",IF(ISERROR(SEARCH(\".\",'Enrollment Form'!AH383,SEARCH(\"@\",'Enrollment Form'!AH383))),\"N\",\"Y\"))","v":""},{"$f":"IF(OR($B376=\"N\",'Enrollment Form'!$G383=\"\"),\"\",IF('Enrollment Form'!$B383<>\"Subscriber\",\"-\",IF(COUNTIF('Enrollment Form'!$AV383:$AW383,\"Yes\")=2,\"N\",\"Y\")))","v":""},{"$f":"IF(OR('Enrollment Form'!$CJ383=\"\",'Enrollment Form'!$CJ383=\"No\"),\"-\",IF(AND('Enrollment Form'!$CJ383=\"Yes\",'Enrollment Form'!$CK383=\"\"),\"N\",\"Y\"))","v":"-"},{"$f":"IF(OR('Enrollment Form'!$CL383=\"\",'Enrollment Form'!$CL383=\"No\"),\"-\",IF(AND('Enrollment Form'!$CL383=\"Yes\",'Enrollment Form'!$CM383=\"\"),\"N\",\"Y\"))","v":"-"},{"$f":"IF(OR('Enrollment Form'!$CN383=\"\",'Enrollment Form'!$CN383=\"No\"),\"-\",IF(AND('Enrollment Form'!$CN383=\"Yes\",'Enrollment Form'!$CO383=\"\"),\"N\",\"Y\"))","v":"-"},{"$f":"IF(OR('Enrollment Form'!$CN383=\"\",'Enrollment Form'!$CN383=\"No\"),\"-\",IF(AND('Enrollment Form'!$CN383=\"Yes\",'Enrollment Form'!$CP383=\"\"),\"N\",\"Y\"))","v":"-"},{"$f":"IF('Enrollment Form'!B383<>\"Subscriber\",\"-\",IF(AND('Enrollment Form'!B383=\"Subscriber\",'Enrollment Form'!C383=\"Enroll\",'Enrollment Form'!AA383=\"\"),\"N\",\"Y\"))","v":"-"},{"$f":"IF(OR('Enrollment Form'!B383=\"Subscriber\",'Enrollment Form'!B383=\"\"),\"-\",IF('Enrollment Form'!BP383=\"\",\"N\",\"Y\"))","v":"-"},{"$f":"IF('Enrollment Form'!B383<>\"Subscriber\",\"-\",IF(AND('Enrollment Form'!B383=\"Subscriber\",'Enrollment Form'!G383=\"\"),\"N\",\"Y\"))","v":"-"},{"$f":"IF('Enrollment Form'!A383=\"\",\"\",IF('Enrollment Form'!B383=\"Subscriber\",\"-\",IF(AND('Enrollment Form'!B383<>\"Subscriber\",'Enrollment Form'!G383='Enrollment Form'!H383),\"N\",\"Y\")))","v":""},0]
[384,{"$f":"IF('Enrollment Form'!$A384<>\"\",\"Y\",\"N\")","v":"N"},{"$f":"IF(AND('Enrollment Form'!$B384=\"\",'Enrollment Form'!$C384<>\"\"),\"N\",IF($B377=\"N\",\"\",\"Y\"))","v":""},{"$f":"IF(OR($B377=\"N\",'Enrollment Form'!G384=\"\"),\"\",IF('Enrollment Form'!$B384<>\"Subscriber\",\"\",IF('Enrollment Form'!$G384='Enrollment Form'!$H384,\"Y\",\"N\")))","v":""},{"$f":"IF($B377=\"N\",\"\",IF(AND(COUNTIFS('Enrollment Form'!$H$11:$H$1000,'Enrollment Form'!$H384,'Enrollment Form'!$B$11:$B$1000,'Enrollment Form'!$B384)>1,'Enrollment Form'!$H384<>\"\"),\"N\",\"Y\"))","v":""},{"$f":"IF($B377=\"N\",\"\",IF(LEN('Enrollment Form'!$Y384)=0,\"\",IF(LEN('Enrollment Form'!$Y384)<>5,\"N\",\"Y\")))","v":""},{"$f":"IF($B377=\"N\",\"\",IF(LEN('Enrollment Form'!$AD384=0),\"\",IF(LEN('Enrollment Form'!$AD384)<>5,\"N\",\"Y\")))","v":""},{"$f":"IF($B377=\"N\",\"\",IF(LEN('Enrollment Form'!$BS384=0),\"\",IF(LEN('Enrollment Form'!$BS384)<>5,\"N\",\"Y\")))","v":""},{"$f":"IF($B377=\"N\",\"\",IF(LEN('Enrollment Form'!$AE384)=0,\"\",IF(LEN('Enrollment Form'!$AE384)<>10,\"N\",\"Y\")))","v":""},{"$f":"IF($B377=\"N\",\"\",IF(LEN('Enrollment Form'!$AF384)=0,\"\",IF(LEN('Enrollment Form'!$AF384)<>10,\"N\",\"Y\")))","v":""},{"$f":"IF('Enrollment Form'!$O384<>\"Graded\",\"-\",IF(AND('Enrollment Form'!$O384=\"Graded\",'Enrollment Form'!$AR384<>\"\"),\"Y\",\"N\"))","v":"-"},{"$f":"IF($B377=\"N\",\"\",IF(OR('Enrollment Form'!$B384<>\"Subscriber\",'Enrollment Form'!$C384=\"ROC\"),\"-\",IF(AND('Enrollment Form'!$B384=\"Subscriber\",'Enrollment Form'!$C384=\"Enroll\",'Enrollment Form'!$AJ384<>\"\"),\"Y\",\"N\")))","v":""},{"$f":"IF($B377=\"N\",\"\",IF(OR('Enrollment Form'!$B384<>\"Subscriber\",'Enrollment Form'!$C384=\"ROC\"),\"-\",IF(AND('Enrollment Form'!$B384=\"Subscriber\",'Enrollment Form'!$C384=\"Enroll\",'Enrollment Form'!$AK384<>\"\"),\"Y\",\"N\")))","v":""},{"$f":"IF($B377=\"N\",\"\",IF(OR('Enrollment Form'!$B384<>\"Subscriber\",'Enrollment Form'!$C384=\"ROC\"),\"-\",IF(AND('Enrollment Form'!$B384=\"Subscriber\",'Enrollment Form'!$C384=\"Enroll\",'Enrollment Form'!$AL384<>\"\"),\"Y\",\"N\")))","v":""},{"$f":"IF($B377=\"N\",\"\",IF(OR('Enrollment Form'!$B384<>\"Subscriber\",'Enrollment Form'!$C384=\"ROC\"),\"-\",IF(AND('Enrollment Form'!$B384=\"Subscriber\",'Enrollment Form'!$C384=\"Enroll\",'Enrollment Form'!$AP384<>\"\"),\"Y\",\"N\")))","v":""},{"$f":"IF($B377=\"N\",\"\",IF(OR('Enrollment Form'!$B384<>\"Subscriber\",'Enrollment Form'!$C384=\"ROC\"),\"-\",IF(AND('Enrollment Form'!$B384=\"Subscriber\",'Enrollment Form'!$C384=\"Enroll\",'Enrollment Form'!$AQ384<>\"\"),\"Y\",\"N\")))","v":""},{"$f":"IF($B377=\"N\",\"\",IF(OR('Enrollment Form'!$B384<>\"Subscriber\",'Enrollment Form'!$C384=\"ROC\"),\"-\",IF(AND('Enrollment Form'!$B384=\"Subscriber\",'Enrollment Form'!$C384=\"Enroll\",'Enrollment Form'!$AS384<>\"\"),\"Y\",\"N\")))","v":""},{"$f":"IF($B377=\"N\",\"\",IF($Q377=\"-\",\"-\",IF(AND($Q377=\"Y\",'Enrollment Form'!$AS384=\"No\"),\"-\",IF(AND($Q377=\"Y\",'Enrollment Form'!$AS384=\"Yes\",'Enrollment Form'!$AT384<>\"\"),\"Y\",\"N\"))))","v":""},{"$f":"IF($B377=\"N\",\"\",IF(OR('Enrollment Form'!$B384<>\"Subscriber\",'Enrollment Form'!$C384=\"ROC\"),\"-\",IF(AND('Enrollment Form'!$B384=\"Subscriber\",'Enrollment Form'!$C384=\"Enroll\",'Enrollment Form'!$CV384<>\"\"),\"Y\",\"N\")))","v":""},{"$f":"IF($B377=\"N\",\"\",IF($S377=\"-\",\"-\",IF(AND($S377=\"Y\",'Enrollment Form'!$CV384=\"No\"),\"-\",IF(AND($S377=\"Y\",'Enrollment Form'!$CV384=\"Yes\",'Enrollment Form'!$CW384<>\"\"),\"Y\",\"N\"))))","v":""},{"$f":"IF(OR('Enrollment Form'!$AY384=\"Yes\",'Enrollment Form'!$AY384=\"\"),\"-\",IF(OR(AND('Enrollment Form'!$AY384=\"No\",ISERROR(FIND(\"HMO\",VLOOKUP('Enrollment Form'!G384,'Enrollment Form'!H$11:J$1000,3,FALSE),1))=FALSE,COUNTA('Enrollment Form'!$AZ384:$BC384)=4),AND('Enrollment Form'!$AY384=\"No\",ISERROR(FIND(\"HMO\",VLOOKUP('Enrollment Form'!G384,'Enrollment Form'!H$11:J$1000,3,FALSE),1))=FALSE,COUNTA('Enrollment Form'!$BT384:$BW384)=4)),\"Y\",\"N\"))","v":"-"},{"$f":"IF($B377=\"N\",\"\",IF('Enrollment Form'!$B384=\"Subscriber\",\"-\",IF(COUNTA('Enrollment Form'!$BL384,'Enrollment Form'!$BN384)=2,\"Y\",\"N\")))","v":""},{"$f":"IF($B377=\"N\",\"\",IF(OR('Enrollment Form'!$AX384=\"\",'Enrollment Form'!$AX384=\"No\"),\"-\",IF(AND('Enrollment Form'!$AX384=\"Yes\",COUNTA('Enrollment Form'!$CR384)=1),\"Y\",\"N\")))","v":""},{"$f":"IF(OR('Enrollment Form'!$CR384=\"\",'Enrollment Form'!$CR384=\"No\"),\"-\",IF(COUNTA('Enrollment Form'!$CT384:$CU384)=2,\"Y\",\"N\"))","v":"-"},{"$f":"IF($B377=\"N\",\"\",IF(COUNTIF('Enrollment Form'!$DG384:$DP384,\"Other\")=COUNTA('Enrollment Form'!$DK384,'Enrollment Form'!$DH384,'Enrollment Form'!$DN384,'Enrollment Form'!$DQ384),\"Y\",\"N\"))","v":""},{"$f":"IF($B377=\"N\",\"\",IF(OR('Enrollment Form'!B384<>\"Subscriber\",'Enrollment Form'!C384=\"ROC\",COUNTIF('Enrollment Form'!AV384:AW384,\"Yes\")>=1),\"-\",IF(AND('Enrollment Form'!C384=\"Enroll\",COUNTIF('Enrollment Form'!AV384:AW384,\"No\")=2,'Enrollment Form'!AX384=\"\"),\"N\",\"Y\")))","v":""},{"$f":"IF(OR(B377=\"N\",'Enrollment Form'!B384<>\"Subscriber\",'Enrollment Form'!C384=\"ROC\",'Enrollment Form'!O384<>\"Multiple of Salary\"),\"-\",IF(COUNTA('Enrollment Form'!T384:U384)<2,\"N\",\"Y\"))","v":"-"},{"$f":"IF(B377=\"N\",\"\",IF(OR('Enrollment Form'!C384=\"ROC\",'Enrollment Form'!B384<>\"Subscriber\",'Enrollment Form'!O384=\"Waive\",'Enrollment Form'!O384=\"\"),\"-\",IF('Enrollment Form'!P384=\"\",\"N\",\"Y\")))","v":""},{"$f":"IF($B377=\"N\",\"\",IF(AND('Enrollment Form'!$C384=\"ROC\",'Enrollment Form'!$DR384<>\"\"),\"Y\",IF(AND('Enrollment Form'!$C384=\"ROC\",'Enrollment Form'!$DR384=\"\"),\"N\",IF(AND('Enrollment Form'!$C384=\"Enroll\",'Enrollment Form'!$B384=\"Subscriber\",'Enrollment Form'!$CX384=\"No\",'Enrollment Form'!$DR384=\"\"),\"N\",IF(AND('Enrollment Form'!$C384=\"Enroll\",'Enrollment Form'!$B384=\"Subscriber\",'Enrollment Form'!$CX384=\"Yes\"),\"-\",\"Y\")))))","v":""},{"$f":"IF($B377=\"N\",\"\",IF(AND('Enrollment Form'!$C384=\"ROC\",'Enrollment Form'!$DS384<>\"\"),\"Y\",IF(AND('Enrollment Form'!$C384=\"ROC\",'Enrollment Form'!$DS384=\"\"),\"N\",IF(AND('Enrollment Form'!$C384=\"Enroll\",'Enrollment Form'!$B384=\"Subscriber\",'Enrollment Form'!$CX384=\"No\",'Enrollment Form'!$DS384=\"\"),\"N\",IF(AND('Enrollment Form'!$C384=\"Enroll\",'Enrollment Form'!$B384=\"Subscriber\",'Enrollment Form'!$CX384=\"Yes\"),\"-\",\"Y\")))))","v":""},{"$f":"IF('Enrollment Form'!AH384=\"\",\"\",IF(ISERROR(SEARCH(\".\",'Enrollment Form'!AH384,SEARCH(\"@\",'Enrollment Form'!AH384))),\"N\",\"Y\"))","v":""},{"$f":"IF(OR($B377=\"N\",'Enrollment Form'!$G384=\"\"),\"\",IF('Enrollment Form'!$B384<>\"Subscriber\",\"-\",IF(COUNTIF('Enrollment Form'!$AV384:$AW384,\"Yes\")=2,\"N\",\"Y\")))","v":""},{"$f":"IF(OR('Enrollment Form'!$CJ384=\"\",'Enrollment Form'!$CJ384=\"No\"),\"-\",IF(AND('Enrollment Form'!$CJ384=\"Yes\",'Enrollment Form'!$CK384=\"\"),\"N\",\"Y\"))","v":"-"},{"$f":"IF(OR('Enrollment Form'!$CL384=\"\",'Enrollment Form'!$CL384=\"No\"),\"-\",IF(AND('Enrollment Form'!$CL384=\"Yes\",'Enrollment Form'!$CM384=\"\"),\"N\",\"Y\"))","v":"-"},{"$f":"IF(OR('Enrollment Form'!$CN384=\"\",'Enrollment Form'!$CN384=\"No\"),\"-\",IF(AND('Enrollment Form'!$CN384=\"Yes\",'Enrollment Form'!$CO384=\"\"),\"N\",\"Y\"))","v":"-"},{"$f":"IF(OR('Enrollment Form'!$CN384=\"\",'Enrollment Form'!$CN384=\"No\"),\"-\",IF(AND('Enrollment Form'!$CN384=\"Yes\",'Enrollment Form'!$CP384=\"\"),\"N\",\"Y\"))","v":"-"},{"$f":"IF('Enrollment Form'!B384<>\"Subscriber\",\"-\",IF(AND('Enrollment Form'!B384=\"Subscriber\",'Enrollment Form'!C384=\"Enroll\",'Enrollment Form'!AA384=\"\"),\"N\",\"Y\"))","v":"-"},{"$f":"IF(OR('Enrollment Form'!B384=\"Subscriber\",'Enrollment Form'!B384=\"\"),\"-\",IF('Enrollment Form'!BP384=\"\",\"N\",\"Y\"))","v":"-"},{"$f":"IF('Enrollment Form'!B384<>\"Subscriber\",\"-\",IF(AND('Enrollment Form'!B384=\"Subscriber\",'Enrollment Form'!G384=\"\"),\"N\",\"Y\"))","v":"-"},{"$f":"IF('Enrollment Form'!A384=\"\",\"\",IF('Enrollment Form'!B384=\"Subscriber\",\"-\",IF(AND('Enrollment Form'!B384<>\"Subscriber\",'Enrollment Form'!G384='Enrollment Form'!H384),\"N\",\"Y\")))","v":""},0]
[385,{"$f":"IF('Enrollment Form'!$A385<>\"\",\"Y\",\"N\")","v":"N"},{"$f":"IF(AND('Enrollment Form'!$B385=\"\",'Enrollment Form'!$C385<>\"\"),\"N\",IF($B378=\"N\",\"\",\"Y\"))","v":""},{"$f":"IF(OR($B378=\"N\",'Enrollment Form'!G385=\"\"),\"\",IF('Enrollment Form'!$B385<>\"Subscriber\",\"\",IF('Enrollment Form'!$G385='Enrollment Form'!$H385,\"Y\",\"N\")))","v":""},{"$f":"IF($B378=\"N\",\"\",IF(AND(COUNTIFS('Enrollment Form'!$H$11:$H$1000,'Enrollment Form'!$H385,'Enrollment Form'!$B$11:$B$1000,'Enrollment Form'!$B385)>1,'Enrollment Form'!$H385<>\"\"),\"N\",\"Y\"))","v":""},{"$f":"IF($B378=\"N\",\"\",IF(LEN('Enrollment Form'!$Y385)=0,\"\",IF(LEN('Enrollment Form'!$Y385)<>5,\"N\",\"Y\")))","v":""},{"$f":"IF($B378=\"N\",\"\",IF(LEN('Enrollment Form'!$AD385=0),\"\",IF(LEN('Enrollment Form'!$AD385)<>5,\"N\",\"Y\")))","v":""},{"$f":"IF($B378=\"N\",\"\",IF(LEN('Enrollment Form'!$BS385=0),\"\",IF(LEN('Enrollment Form'!$BS385)<>5,\"N\",\"Y\")))","v":""},{"$f":"IF($B378=\"N\",\"\",IF(LEN('Enrollment Form'!$AE385)=0,\"\",IF(LEN('Enrollment Form'!$AE385)<>10,\"N\",\"Y\")))","v":""},{"$f":"IF($B378=\"N\",\"\",IF(LEN('Enrollment Form'!$AF385)=0,\"\",IF(LEN('Enrollment Form'!$AF385)<>10,\"N\",\"Y\")))","v":""},{"$f":"IF('Enrollment Form'!$O385<>\"Graded\",\"-\",IF(AND('Enrollment Form'!$O385=\"Graded\",'Enrollment Form'!$AR385<>\"\"),\"Y\",\"N\"))","v":"-"},{"$f":"IF($B378=\"N\",\"\",IF(OR('Enrollment Form'!$B385<>\"Subscriber\",'Enrollment Form'!$C385=\"ROC\"),\"-\",IF(AND('Enrollment Form'!$B385=\"Subscriber\",'Enrollment Form'!$C385=\"Enroll\",'Enrollment Form'!$AJ385<>\"\"),\"Y\",\"N\")))","v":""},{"$f":"IF($B378=\"N\",\"\",IF(OR('Enrollment Form'!$B385<>\"Subscriber\",'Enrollment Form'!$C385=\"ROC\"),\"-\",IF(AND('Enrollment Form'!$B385=\"Subscriber\",'Enrollment Form'!$C385=\"Enroll\",'Enrollment Form'!$AK385<>\"\"),\"Y\",\"N\")))","v":""},{"$f":"IF($B378=\"N\",\"\",IF(OR('Enrollment Form'!$B385<>\"Subscriber\",'Enrollment Form'!$C385=\"ROC\"),\"-\",IF(AND('Enrollment Form'!$B385=\"Subscriber\",'Enrollment Form'!$C385=\"Enroll\",'Enrollment Form'!$AL385<>\"\"),\"Y\",\"N\")))","v":""},{"$f":"IF($B378=\"N\",\"\",IF(OR('Enrollment Form'!$B385<>\"Subscriber\",'Enrollment Form'!$C385=\"ROC\"),\"-\",IF(AND('Enrollment Form'!$B385=\"Subscriber\",'Enrollment Form'!$C385=\"Enroll\",'Enrollment Form'!$AP385<>\"\"),\"Y\",\"N\")))","v":""},{"$f":"IF($B378=\"N\",\"\",IF(OR('Enrollment Form'!$B385<>\"Subscriber\",'Enrollment Form'!$C385=\"ROC\"),\"-\",IF(AND('Enrollment Form'!$B385=\"Subscriber\",'Enrollment Form'!$C385=\"Enroll\",'Enrollment Form'!$AQ385<>\"\"),\"Y\",\"N\")))","v":""},{"$f":"IF($B378=\"N\",\"\",IF(OR('Enrollment Form'!$B385<>\"Subscriber\",'Enrollment Form'!$C385=\"ROC\"),\"-\",IF(AND('Enrollment Form'!$B385=\"Subscriber\",'Enrollment Form'!$C385=\"Enroll\",'Enrollment Form'!$AS385<>\"\"),\"Y\",\"N\")))","v":""},{"$f":"IF($B378=\"N\",\"\",IF($Q378=\"-\",\"-\",IF(AND($Q378=\"Y\",'Enrollment Form'!$AS385=\"No\"),\"-\",IF(AND($Q378=\"Y\",'Enrollment Form'!$AS385=\"Yes\",'Enrollment Form'!$AT385<>\"\"),\"Y\",\"N\"))))","v":""},{"$f":"IF($B378=\"N\",\"\",IF(OR('Enrollment Form'!$B385<>\"Subscriber\",'Enrollment Form'!$C385=\"ROC\"),\"-\",IF(AND('Enrollment Form'!$B385=\"Subscriber\",'Enrollment Form'!$C385=\"Enroll\",'Enrollment Form'!$CV385<>\"\"),\"Y\",\"N\")))","v":""},{"$f":"IF($B378=\"N\",\"\",IF($S378=\"-\",\"-\",IF(AND($S378=\"Y\",'Enrollment Form'!$CV385=\"No\"),\"-\",IF(AND($S378=\"Y\",'Enrollment Form'!$CV385=\"Yes\",'Enrollment Form'!$CW385<>\"\"),\"Y\",\"N\"))))","v":""},{"$f":"IF(OR('Enrollment Form'!$AY385=\"Yes\",'Enrollment Form'!$AY385=\"\"),\"-\",IF(OR(AND('Enrollment Form'!$AY385=\"No\",ISERROR(FIND(\"HMO\",VLOOKUP('Enrollment Form'!G385,'Enrollment Form'!H$11:J$1000,3,FALSE),1))=FALSE,COUNTA('Enrollment Form'!$AZ385:$BC385)=4),AND('Enrollment Form'!$AY385=\"No\",ISERROR(FIND(\"HMO\",VLOOKUP('Enrollment Form'!G385,'Enrollment Form'!H$11:J$1000,3,FALSE),1))=FALSE,COUNTA('Enrollment Form'!$BT385:$BW385)=4)),\"Y\",\"N\"))","v":"-"},{"$f":"IF($B378=\"N\",\"\",IF('Enrollment Form'!$B385=\"Subscriber\",\"-\",IF(COUNTA('Enrollment Form'!$BL385,'Enrollment Form'!$BN385)=2,\"Y\",\"N\")))","v":""},{"$f":"IF($B378=\"N\",\"\",IF(OR('Enrollment Form'!$AX385=\"\",'Enrollment Form'!$AX385=\"No\"),\"-\",IF(AND('Enrollment Form'!$AX385=\"Yes\",COUNTA('Enrollment Form'!$CR385)=1),\"Y\",\"N\")))","v":""},{"$f":"IF(OR('Enrollment Form'!$CR385=\"\",'Enrollment Form'!$CR385=\"No\"),\"-\",IF(COUNTA('Enrollment Form'!$CT385:$CU385)=2,\"Y\",\"N\"))","v":"-"},{"$f":"IF($B378=\"N\",\"\",IF(COUNTIF('Enrollment Form'!$DG385:$DP385,\"Other\")=COUNTA('Enrollment Form'!$DK385,'Enrollment Form'!$DH385,'Enrollment Form'!$DN385,'Enrollment Form'!$DQ385),\"Y\",\"N\"))","v":""},{"$f":"IF($B378=\"N\",\"\",IF(OR('Enrollment Form'!B385<>\"Subscriber\",'Enrollment Form'!C385=\"ROC\",COUNTIF('Enrollment Form'!AV385:AW385,\"Yes\")>=1),\"-\",IF(AND('Enrollment Form'!C385=\"Enroll\",COUNTIF('Enrollment Form'!AV385:AW385,\"No\")=2,'Enrollment Form'!AX385=\"\"),\"N\",\"Y\")))","v":""},{"$f":"IF(OR(B378=\"N\",'Enrollment Form'!B385<>\"Subscriber\",'Enrollment Form'!C385=\"ROC\",'Enrollment Form'!O385<>\"Multiple of Salary\"),\"-\",IF(COUNTA('Enrollment Form'!T385:U385)<2,\"N\",\"Y\"))","v":"-"},{"$f":"IF(B378=\"N\",\"\",IF(OR('Enrollment Form'!C385=\"ROC\",'Enrollment Form'!B385<>\"Subscriber\",'Enrollment Form'!O385=\"Waive\",'Enrollment Form'!O385=\"\"),\"-\",IF('Enrollment Form'!P385=\"\",\"N\",\"Y\")))","v":""},{"$f":"IF($B378=\"N\",\"\",IF(AND('Enrollment Form'!$C385=\"ROC\",'Enrollment Form'!$DR385<>\"\"),\"Y\",IF(AND('Enrollment Form'!$C385=\"ROC\",'Enrollment Form'!$DR385=\"\"),\"N\",IF(AND('Enrollment Form'!$C385=\"Enroll\",'Enrollment Form'!$B385=\"Subscriber\",'Enrollment Form'!$CX385=\"No\",'Enrollment Form'!$DR385=\"\"),\"N\",IF(AND('Enrollment Form'!$C385=\"Enroll\",'Enrollment Form'!$B385=\"Subscriber\",'Enrollment Form'!$CX385=\"Yes\"),\"-\",\"Y\")))))","v":""},{"$f":"IF($B378=\"N\",\"\",IF(AND('Enrollment Form'!$C385=\"ROC\",'Enrollment Form'!$DS385<>\"\"),\"Y\",IF(AND('Enrollment Form'!$C385=\"ROC\",'Enrollment Form'!$DS385=\"\"),\"N\",IF(AND('Enrollment Form'!$C385=\"Enroll\",'Enrollment Form'!$B385=\"Subscriber\",'Enrollment Form'!$CX385=\"No\",'Enrollment Form'!$DS385=\"\"),\"N\",IF(AND('Enrollment Form'!$C385=\"Enroll\",'Enrollment Form'!$B385=\"Subscriber\",'Enrollment Form'!$CX385=\"Yes\"),\"-\",\"Y\")))))","v":""},{"$f":"IF('Enrollment Form'!AH385=\"\",\"\",IF(ISERROR(SEARCH(\".\",'Enrollment Form'!AH385,SEARCH(\"@\",'Enrollment Form'!AH385))),\"N\",\"Y\"))","v":""},{"$f":"IF(OR($B378=\"N\",'Enrollment Form'!$G385=\"\"),\"\",IF('Enrollment Form'!$B385<>\"Subscriber\",\"-\",IF(COUNTIF('Enrollment Form'!$AV385:$AW385,\"Yes\")=2,\"N\",\"Y\")))","v":""},{"$f":"IF(OR('Enrollment Form'!$CJ385=\"\",'Enrollment Form'!$CJ385=\"No\"),\"-\",IF(AND('Enrollment Form'!$CJ385=\"Yes\",'Enrollment Form'!$CK385=\"\"),\"N\",\"Y\"))","v":"-"},{"$f":"IF(OR('Enrollment Form'!$CL385=\"\",'Enrollment Form'!$CL385=\"No\"),\"-\",IF(AND('Enrollment Form'!$CL385=\"Yes\",'Enrollment Form'!$CM385=\"\"),\"N\",\"Y\"))","v":"-"},{"$f":"IF(OR('Enrollment Form'!$CN385=\"\",'Enrollment Form'!$CN385=\"No\"),\"-\",IF(AND('Enrollment Form'!$CN385=\"Yes\",'Enrollment Form'!$CO385=\"\"),\"N\",\"Y\"))","v":"-"},{"$f":"IF(OR('Enrollment Form'!$CN385=\"\",'Enrollment Form'!$CN385=\"No\"),\"-\",IF(AND('Enrollment Form'!$CN385=\"Yes\",'Enrollment Form'!$CP385=\"\"),\"N\",\"Y\"))","v":"-"},{"$f":"IF('Enrollment Form'!B385<>\"Subscriber\",\"-\",IF(AND('Enrollment Form'!B385=\"Subscriber\",'Enrollment Form'!C385=\"Enroll\",'Enrollment Form'!AA385=\"\"),\"N\",\"Y\"))","v":"-"},{"$f":"IF(OR('Enrollment Form'!B385=\"Subscriber\",'Enrollment Form'!B385=\"\"),\"-\",IF('Enrollment Form'!BP385=\"\",\"N\",\"Y\"))","v":"-"},{"$f":"IF('Enrollment Form'!B385<>\"Subscriber\",\"-\",IF(AND('Enrollment Form'!B385=\"Subscriber\",'Enrollment Form'!G385=\"\"),\"N\",\"Y\"))","v":"-"},{"$f":"IF('Enrollment Form'!A385=\"\",\"\",IF('Enrollment Form'!B385=\"Subscriber\",\"-\",IF(AND('Enrollment Form'!B385<>\"Subscriber\",'Enrollment Form'!G385='Enrollment Form'!H385),\"N\",\"Y\")))","v":""},0]
[386,{"$f":"IF('Enrollment Form'!$A386<>\"\",\"Y\",\"N\")","v":"N"},{"$f":"IF(AND('Enrollment Form'!$B386=\"\",'Enrollment Form'!$C386<>\"\"),\"N\",IF($B379=\"N\",\"\",\"Y\"))","v":""},{"$f":"IF(OR($B379=\"N\",'Enrollment Form'!G386=\"\"),\"\",IF('Enrollment Form'!$B386<>\"Subscriber\",\"\",IF('Enrollment Form'!$G386='Enrollment Form'!$H386,\"Y\",\"N\")))","v":""},{"$f":"IF($B379=\"N\",\"\",IF(AND(COUNTIFS('Enrollment Form'!$H$11:$H$1000,'Enrollment Form'!$H386,'Enrollment Form'!$B$11:$B$1000,'Enrollment Form'!$B386)>1,'Enrollment Form'!$H386<>\"\"),\"N\",\"Y\"))","v":""},{"$f":"IF($B379=\"N\",\"\",IF(LEN('Enrollment Form'!$Y386)=0,\"\",IF(LEN('Enrollment Form'!$Y386)<>5,\"N\",\"Y\")))","v":""},{"$f":"IF($B379=\"N\",\"\",IF(LEN('Enrollment Form'!$AD386=0),\"\",IF(LEN('Enrollment Form'!$AD386)<>5,\"N\",\"Y\")))","v":""},{"$f":"IF($B379=\"N\",\"\",IF(LEN('Enrollment Form'!$BS386=0),\"\",IF(LEN('Enrollment Form'!$BS386)<>5,\"N\",\"Y\")))","v":""},{"$f":"IF($B379=\"N\",\"\",IF(LEN('Enrollment Form'!$AE386)=0,\"\",IF(LEN('Enrollment Form'!$AE386)<>10,\"N\",\"Y\")))","v":""},{"$f":"IF($B379=\"N\",\"\",IF(LEN('Enrollment Form'!$AF386)=0,\"\",IF(LEN('Enrollment Form'!$AF386)<>10,\"N\",\"Y\")))","v":""},{"$f":"IF('Enrollment Form'!$O386<>\"Graded\",\"-\",IF(AND('Enrollment Form'!$O386=\"Graded\",'Enrollment Form'!$AR386<>\"\"),\"Y\",\"N\"))","v":"-"},{"$f":"IF($B379=\"N\",\"\",IF(OR('Enrollment Form'!$B386<>\"Subscriber\",'Enrollment Form'!$C386=\"ROC\"),\"-\",IF(AND('Enrollment Form'!$B386=\"Subscriber\",'Enrollment Form'!$C386=\"Enroll\",'Enrollment Form'!$AJ386<>\"\"),\"Y\",\"N\")))","v":""},{"$f":"IF($B379=\"N\",\"\",IF(OR('Enrollment Form'!$B386<>\"Subscriber\",'Enrollment Form'!$C386=\"ROC\"),\"-\",IF(AND('Enrollment Form'!$B386=\"Subscriber\",'Enrollment Form'!$C386=\"Enroll\",'Enrollment Form'!$AK386<>\"\"),\"Y\",\"N\")))","v":""},{"$f":"IF($B379=\"N\",\"\",IF(OR('Enrollment Form'!$B386<>\"Subscriber\",'Enrollment Form'!$C386=\"ROC\"),\"-\",IF(AND('Enrollment Form'!$B386=\"Subscriber\",'Enrollment Form'!$C386=\"Enroll\",'Enrollment Form'!$AL386<>\"\"),\"Y\",\"N\")))","v":""},{"$f":"IF($B379=\"N\",\"\",IF(OR('Enrollment Form'!$B386<>\"Subscriber\",'Enrollment Form'!$C386=\"ROC\"),\"-\",IF(AND('Enrollment Form'!$B386=\"Subscriber\",'Enrollment Form'!$C386=\"Enroll\",'Enrollment Form'!$AP386<>\"\"),\"Y\",\"N\")))","v":""},{"$f":"IF($B379=\"N\",\"\",IF(OR('Enrollment Form'!$B386<>\"Subscriber\",'Enrollment Form'!$C386=\"ROC\"),\"-\",IF(AND('Enrollment Form'!$B386=\"Subscriber\",'Enrollment Form'!$C386=\"Enroll\",'Enrollment Form'!$AQ386<>\"\"),\"Y\",\"N\")))","v":""},{"$f":"IF($B379=\"N\",\"\",IF(OR('Enrollment Form'!$B386<>\"Subscriber\",'Enrollment Form'!$C386=\"ROC\"),\"-\",IF(AND('Enrollment Form'!$B386=\"Subscriber\",'Enrollment Form'!$C386=\"Enroll\",'Enrollment Form'!$AS386<>\"\"),\"Y\",\"N\")))","v":""},{"$f":"IF($B379=\"N\",\"\",IF($Q379=\"-\",\"-\",IF(AND($Q379=\"Y\",'Enrollment Form'!$AS386=\"No\"),\"-\",IF(AND($Q379=\"Y\",'Enrollment Form'!$AS386=\"Yes\",'Enrollment Form'!$AT386<>\"\"),\"Y\",\"N\"))))","v":""},{"$f":"IF($B379=\"N\",\"\",IF(OR('Enrollment Form'!$B386<>\"Subscriber\",'Enrollment Form'!$C386=\"ROC\"),\"-\",IF(AND('Enrollment Form'!$B386=\"Subscriber\",'Enrollment Form'!$C386=\"Enroll\",'Enrollment Form'!$CV386<>\"\"),\"Y\",\"N\")))","v":""},{"$f":"IF($B379=\"N\",\"\",IF($S379=\"-\",\"-\",IF(AND($S379=\"Y\",'Enrollment Form'!$CV386=\"No\"),\"-\",IF(AND($S379=\"Y\",'Enrollment Form'!$CV386=\"Yes\",'Enrollment Form'!$CW386<>\"\"),\"Y\",\"N\"))))","v":""},{"$f":"IF(OR('Enrollment Form'!$AY386=\"Yes\",'Enrollment Form'!$AY386=\"\"),\"-\",IF(OR(AND('Enrollment Form'!$AY386=\"No\",ISERROR(FIND(\"HMO\",VLOOKUP('Enrollment Form'!G386,'Enrollment Form'!H$11:J$1000,3,FALSE),1))=FALSE,COUNTA('Enrollment Form'!$AZ386:$BC386)=4),AND('Enrollment Form'!$AY386=\"No\",ISERROR(FIND(\"HMO\",VLOOKUP('Enrollment Form'!G386,'Enrollment Form'!H$11:J$1000,3,FALSE),1))=FALSE,COUNTA('Enrollment Form'!$BT386:$BW386)=4)),\"Y\",\"N\"))","v":"-"},{"$f":"IF($B379=\"N\",\"\",IF('Enrollment Form'!$B386=\"Subscriber\",\"-\",IF(COUNTA('Enrollment Form'!$BL386,'Enrollment Form'!$BN386)=2,\"Y\",\"N\")))","v":""},{"$f":"IF($B379=\"N\",\"\",IF(OR('Enrollment Form'!$AX386=\"\",'Enrollment Form'!$AX386=\"No\"),\"-\",IF(AND('Enrollment Form'!$AX386=\"Yes\",COUNTA('Enrollment Form'!$CR386)=1),\"Y\",\"N\")))","v":""},{"$f":"IF(OR('Enrollment Form'!$CR386=\"\",'Enrollment Form'!$CR386=\"No\"),\"-\",IF(COUNTA('Enrollment Form'!$CT386:$CU386)=2,\"Y\",\"N\"))","v":"-"},{"$f":"IF($B379=\"N\",\"\",IF(COUNTIF('Enrollment Form'!$DG386:$DP386,\"Other\")=COUNTA('Enrollment Form'!$DK386,'Enrollment Form'!$DH386,'Enrollment Form'!$DN386,'Enrollment Form'!$DQ386),\"Y\",\"N\"))","v":""},{"$f":"IF($B379=\"N\",\"\",IF(OR('Enrollment Form'!B386<>\"Subscriber\",'Enrollment Form'!C386=\"ROC\",COUNTIF('Enrollment Form'!AV386:AW386,\"Yes\")>=1),\"-\",IF(AND('Enrollment Form'!C386=\"Enroll\",COUNTIF('Enrollment Form'!AV386:AW386,\"No\")=2,'Enrollment Form'!AX386=\"\"),\"N\",\"Y\")))","v":""},{"$f":"IF(OR(B379=\"N\",'Enrollment Form'!B386<>\"Subscriber\",'Enrollment Form'!C386=\"ROC\",'Enrollment Form'!O386<>\"Multiple of Salary\"),\"-\",IF(COUNTA('Enrollment Form'!T386:U386)<2,\"N\",\"Y\"))","v":"-"},{"$f":"IF(B379=\"N\",\"\",IF(OR('Enrollment Form'!C386=\"ROC\",'Enrollment Form'!B386<>\"Subscriber\",'Enrollment Form'!O386=\"Waive\",'Enrollment Form'!O386=\"\"),\"-\",IF('Enrollment Form'!P386=\"\",\"N\",\"Y\")))","v":""},{"$f":"IF($B379=\"N\",\"\",IF(AND('Enrollment Form'!$C386=\"ROC\",'Enrollment Form'!$DR386<>\"\"),\"Y\",IF(AND('Enrollment Form'!$C386=\"ROC\",'Enrollment Form'!$DR386=\"\"),\"N\",IF(AND('Enrollment Form'!$C386=\"Enroll\",'Enrollment Form'!$B386=\"Subscriber\",'Enrollment Form'!$CX386=\"No\",'Enrollment Form'!$DR386=\"\"),\"N\",IF(AND('Enrollment Form'!$C386=\"Enroll\",'Enrollment Form'!$B386=\"Subscriber\",'Enrollment Form'!$CX386=\"Yes\"),\"-\",\"Y\")))))","v":""},{"$f":"IF($B379=\"N\",\"\",IF(AND('Enrollment Form'!$C386=\"ROC\",'Enrollment Form'!$DS386<>\"\"),\"Y\",IF(AND('Enrollment Form'!$C386=\"ROC\",'Enrollment Form'!$DS386=\"\"),\"N\",IF(AND('Enrollment Form'!$C386=\"Enroll\",'Enrollment Form'!$B386=\"Subscriber\",'Enrollment Form'!$CX386=\"No\",'Enrollment Form'!$DS386=\"\"),\"N\",IF(AND('Enrollment Form'!$C386=\"Enroll\",'Enrollment Form'!$B386=\"Subscriber\",'Enrollment Form'!$CX386=\"Yes\"),\"-\",\"Y\")))))","v":""},{"$f":"IF('Enrollment Form'!AH386=\"\",\"\",IF(ISERROR(SEARCH(\".\",'Enrollment Form'!AH386,SEARCH(\"@\",'Enrollment Form'!AH386))),\"N\",\"Y\"))","v":""},{"$f":"IF(OR($B379=\"N\",'Enrollment Form'!$G386=\"\"),\"\",IF('Enrollment Form'!$B386<>\"Subscriber\",\"-\",IF(COUNTIF('Enrollment Form'!$AV386:$AW386,\"Yes\")=2,\"N\",\"Y\")))","v":""},{"$f":"IF(OR('Enrollment Form'!$CJ386=\"\",'Enrollment Form'!$CJ386=\"No\"),\"-\",IF(AND('Enrollment Form'!$CJ386=\"Yes\",'Enrollment Form'!$CK386=\"\"),\"N\",\"Y\"))","v":"-"},{"$f":"IF(OR('Enrollment Form'!$CL386=\"\",'Enrollment Form'!$CL386=\"No\"),\"-\",IF(AND('Enrollment Form'!$CL386=\"Yes\",'Enrollment Form'!$CM386=\"\"),\"N\",\"Y\"))","v":"-"},{"$f":"IF(OR('Enrollment Form'!$CN386=\"\",'Enrollment Form'!$CN386=\"No\"),\"-\",IF(AND('Enrollment Form'!$CN386=\"Yes\",'Enrollment Form'!$CO386=\"\"),\"N\",\"Y\"))","v":"-"},{"$f":"IF(OR('Enrollment Form'!$CN386=\"\",'Enrollment Form'!$CN386=\"No\"),\"-\",IF(AND('Enrollment Form'!$CN386=\"Yes\",'Enrollment Form'!$CP386=\"\"),\"N\",\"Y\"))","v":"-"},{"$f":"IF('Enrollment Form'!B386<>\"Subscriber\",\"-\",IF(AND('Enrollment Form'!B386=\"Subscriber\",'Enrollment Form'!C386=\"Enroll\",'Enrollment Form'!AA386=\"\"),\"N\",\"Y\"))","v":"-"},{"$f":"IF(OR('Enrollment Form'!B386=\"Subscriber\",'Enrollment Form'!B386=\"\"),\"-\",IF('Enrollment Form'!BP386=\"\",\"N\",\"Y\"))","v":"-"},{"$f":"IF('Enrollment Form'!B386<>\"Subscriber\",\"-\",IF(AND('Enrollment Form'!B386=\"Subscriber\",'Enrollment Form'!G386=\"\"),\"N\",\"Y\"))","v":"-"},{"$f":"IF('Enrollment Form'!A386=\"\",\"\",IF('Enrollment Form'!B386=\"Subscriber\",\"-\",IF(AND('Enrollment Form'!B386<>\"Subscriber\",'Enrollment Form'!G386='Enrollment Form'!H386),\"N\",\"Y\")))","v":""},0]
[387,{"$f":"IF('Enrollment Form'!$A387<>\"\",\"Y\",\"N\")","v":"N"},{"$f":"IF(AND('Enrollment Form'!$B387=\"\",'Enrollment Form'!$C387<>\"\"),\"N\",IF($B380=\"N\",\"\",\"Y\"))","v":""},{"$f":"IF(OR($B380=\"N\",'Enrollment Form'!G387=\"\"),\"\",IF('Enrollment Form'!$B387<>\"Subscriber\",\"\",IF('Enrollment Form'!$G387='Enrollment Form'!$H387,\"Y\",\"N\")))","v":""},{"$f":"IF($B380=\"N\",\"\",IF(AND(COUNTIFS('Enrollment Form'!$H$11:$H$1000,'Enrollment Form'!$H387,'Enrollment Form'!$B$11:$B$1000,'Enrollment Form'!$B387)>1,'Enrollment Form'!$H387<>\"\"),\"N\",\"Y\"))","v":""},{"$f":"IF($B380=\"N\",\"\",IF(LEN('Enrollment Form'!$Y387)=0,\"\",IF(LEN('Enrollment Form'!$Y387)<>5,\"N\",\"Y\")))","v":""},{"$f":"IF($B380=\"N\",\"\",IF(LEN('Enrollment Form'!$AD387=0),\"\",IF(LEN('Enrollment Form'!$AD387)<>5,\"N\",\"Y\")))","v":""},{"$f":"IF($B380=\"N\",\"\",IF(LEN('Enrollment Form'!$BS387=0),\"\",IF(LEN('Enrollment Form'!$BS387)<>5,\"N\",\"Y\")))","v":""},{"$f":"IF($B380=\"N\",\"\",IF(LEN('Enrollment Form'!$AE387)=0,\"\",IF(LEN('Enrollment Form'!$AE387)<>10,\"N\",\"Y\")))","v":""},{"$f":"IF($B380=\"N\",\"\",IF(LEN('Enrollment Form'!$AF387)=0,\"\",IF(LEN('Enrollment Form'!$AF387)<>10,\"N\",\"Y\")))","v":""},{"$f":"IF('Enrollment Form'!$O387<>\"Graded\",\"-\",IF(AND('Enrollment Form'!$O387=\"Graded\",'Enrollment Form'!$AR387<>\"\"),\"Y\",\"N\"))","v":"-"},{"$f":"IF($B380=\"N\",\"\",IF(OR('Enrollment Form'!$B387<>\"Subscriber\",'Enrollment Form'!$C387=\"ROC\"),\"-\",IF(AND('Enrollment Form'!$B387=\"Subscriber\",'Enrollment Form'!$C387=\"Enroll\",'Enrollment Form'!$AJ387<>\"\"),\"Y\",\"N\")))","v":""},{"$f":"IF($B380=\"N\",\"\",IF(OR('Enrollment Form'!$B387<>\"Subscriber\",'Enrollment Form'!$C387=\"ROC\"),\"-\",IF(AND('Enrollment Form'!$B387=\"Subscriber\",'Enrollment Form'!$C387=\"Enroll\",'Enrollment Form'!$AK387<>\"\"),\"Y\",\"N\")))","v":""},{"$f":"IF($B380=\"N\",\"\",IF(OR('Enrollment Form'!$B387<>\"Subscriber\",'Enrollment Form'!$C387=\"ROC\"),\"-\",IF(AND('Enrollment Form'!$B387=\"Subscriber\",'Enrollment Form'!$C387=\"Enroll\",'Enrollment Form'!$AL387<>\"\"),\"Y\",\"N\")))","v":""},{"$f":"IF($B380=\"N\",\"\",IF(OR('Enrollment Form'!$B387<>\"Subscriber\",'Enrollment Form'!$C387=\"ROC\"),\"-\",IF(AND('Enrollment Form'!$B387=\"Subscriber\",'Enrollment Form'!$C387=\"Enroll\",'Enrollment Form'!$AP387<>\"\"),\"Y\",\"N\")))","v":""},{"$f":"IF($B380=\"N\",\"\",IF(OR('Enrollment Form'!$B387<>\"Subscriber\",'Enrollment Form'!$C387=\"ROC\"),\"-\",IF(AND('Enrollment Form'!$B387=\"Subscriber\",'Enrollment Form'!$C387=\"Enroll\",'Enrollment Form'!$AQ387<>\"\"),\"Y\",\"N\")))","v":""},{"$f":"IF($B380=\"N\",\"\",IF(OR('Enrollment Form'!$B387<>\"Subscriber\",'Enrollment Form'!$C387=\"ROC\"),\"-\",IF(AND('Enrollment Form'!$B387=\"Subscriber\",'Enrollment Form'!$C387=\"Enroll\",'Enrollment Form'!$AS387<>\"\"),\"Y\",\"N\")))","v":""},{"$f":"IF($B380=\"N\",\"\",IF($Q380=\"-\",\"-\",IF(AND($Q380=\"Y\",'Enrollment Form'!$AS387=\"No\"),\"-\",IF(AND($Q380=\"Y\",'Enrollment Form'!$AS387=\"Yes\",'Enrollment Form'!$AT387<>\"\"),\"Y\",\"N\"))))","v":""},{"$f":"IF($B380=\"N\",\"\",IF(OR('Enrollment Form'!$B387<>\"Subscriber\",'Enrollment Form'!$C387=\"ROC\"),\"-\",IF(AND('Enrollment Form'!$B387=\"Subscriber\",'Enrollment Form'!$C387=\"Enroll\",'Enrollment Form'!$CV387<>\"\"),\"Y\",\"N\")))","v":""},{"$f":"IF($B380=\"N\",\"\",IF($S380=\"-\",\"-\",IF(AND($S380=\"Y\",'Enrollment Form'!$CV387=\"No\"),\"-\",IF(AND($S380=\"Y\",'Enrollment Form'!$CV387=\"Yes\",'Enrollment Form'!$CW387<>\"\"),\"Y\",\"N\"))))","v":""},{"$f":"IF(OR('Enrollment Form'!$AY387=\"Yes\",'Enrollment Form'!$AY387=\"\"),\"-\",IF(OR(AND('Enrollment Form'!$AY387=\"No\",ISERROR(FIND(\"HMO\",VLOOKUP('Enrollment Form'!G387,'Enrollment Form'!H$11:J$1000,3,FALSE),1))=FALSE,COUNTA('Enrollment Form'!$AZ387:$BC387)=4),AND('Enrollment Form'!$AY387=\"No\",ISERROR(FIND(\"HMO\",VLOOKUP('Enrollment Form'!G387,'Enrollment Form'!H$11:J$1000,3,FALSE),1))=FALSE,COUNTA('Enrollment Form'!$BT387:$BW387)=4)),\"Y\",\"N\"))","v":"-"},{"$f":"IF($B380=\"N\",\"\",IF('Enrollment Form'!$B387=\"Subscriber\",\"-\",IF(COUNTA('Enrollment Form'!$BL387,'Enrollment Form'!$BN387)=2,\"Y\",\"N\")))","v":""},{"$f":"IF($B380=\"N\",\"\",IF(OR('Enrollment Form'!$AX387=\"\",'Enrollment Form'!$AX387=\"No\"),\"-\",IF(AND('Enrollment Form'!$AX387=\"Yes\",COUNTA('Enrollment Form'!$CR387)=1),\"Y\",\"N\")))","v":""},{"$f":"IF(OR('Enrollment Form'!$CR387=\"\",'Enrollment Form'!$CR387=\"No\"),\"-\",IF(COUNTA('Enrollment Form'!$CT387:$CU387)=2,\"Y\",\"N\"))","v":"-"},{"$f":"IF($B380=\"N\",\"\",IF(COUNTIF('Enrollment Form'!$DG387:$DP387,\"Other\")=COUNTA('Enrollment Form'!$DK387,'Enrollment Form'!$DH387,'Enrollment Form'!$DN387,'Enrollment Form'!$DQ387),\"Y\",\"N\"))","v":""},{"$f":"IF($B380=\"N\",\"\",IF(OR('Enrollment Form'!B387<>\"Subscriber\",'Enrollment Form'!C387=\"ROC\",COUNTIF('Enrollment Form'!AV387:AW387,\"Yes\")>=1),\"-\",IF(AND('Enrollment Form'!C387=\"Enroll\",COUNTIF('Enrollment Form'!AV387:AW387,\"No\")=2,'Enrollment Form'!AX387=\"\"),\"N\",\"Y\")))","v":""},{"$f":"IF(OR(B380=\"N\",'Enrollment Form'!B387<>\"Subscriber\",'Enrollment Form'!C387=\"ROC\",'Enrollment Form'!O387<>\"Multiple of Salary\"),\"-\",IF(COUNTA('Enrollment Form'!T387:U387)<2,\"N\",\"Y\"))","v":"-"},{"$f":"IF(B380=\"N\",\"\",IF(OR('Enrollment Form'!C387=\"ROC\",'Enrollment Form'!B387<>\"Subscriber\",'Enrollment Form'!O387=\"Waive\",'Enrollment Form'!O387=\"\"),\"-\",IF('Enrollment Form'!P387=\"\",\"N\",\"Y\")))","v":""},{"$f":"IF($B380=\"N\",\"\",IF(AND('Enrollment Form'!$C387=\"ROC\",'Enrollment Form'!$DR387<>\"\"),\"Y\",IF(AND('Enrollment Form'!$C387=\"ROC\",'Enrollment Form'!$DR387=\"\"),\"N\",IF(AND('Enrollment Form'!$C387=\"Enroll\",'Enrollment Form'!$B387=\"Subscriber\",'Enrollment Form'!$CX387=\"No\",'Enrollment Form'!$DR387=\"\"),\"N\",IF(AND('Enrollment Form'!$C387=\"Enroll\",'Enrollment Form'!$B387=\"Subscriber\",'Enrollment Form'!$CX387=\"Yes\"),\"-\",\"Y\")))))","v":""},{"$f":"IF($B380=\"N\",\"\",IF(AND('Enrollment Form'!$C387=\"ROC\",'Enrollment Form'!$DS387<>\"\"),\"Y\",IF(AND('Enrollment Form'!$C387=\"ROC\",'Enrollment Form'!$DS387=\"\"),\"N\",IF(AND('Enrollment Form'!$C387=\"Enroll\",'Enrollment Form'!$B387=\"Subscriber\",'Enrollment Form'!$CX387=\"No\",'Enrollment Form'!$DS387=\"\"),\"N\",IF(AND('Enrollment Form'!$C387=\"Enroll\",'Enrollment Form'!$B387=\"Subscriber\",'Enrollment Form'!$CX387=\"Yes\"),\"-\",\"Y\")))))","v":""},{"$f":"IF('Enrollment Form'!AH387=\"\",\"\",IF(ISERROR(SEARCH(\".\",'Enrollment Form'!AH387,SEARCH(\"@\",'Enrollment Form'!AH387))),\"N\",\"Y\"))","v":""},{"$f":"IF(OR($B380=\"N\",'Enrollment Form'!$G387=\"\"),\"\",IF('Enrollment Form'!$B387<>\"Subscriber\",\"-\",IF(COUNTIF('Enrollment Form'!$AV387:$AW387,\"Yes\")=2,\"N\",\"Y\")))","v":""},{"$f":"IF(OR('Enrollment Form'!$CJ387=\"\",'Enrollment Form'!$CJ387=\"No\"),\"-\",IF(AND('Enrollment Form'!$CJ387=\"Yes\",'Enrollment Form'!$CK387=\"\"),\"N\",\"Y\"))","v":"-"},{"$f":"IF(OR('Enrollment Form'!$CL387=\"\",'Enrollment Form'!$CL387=\"No\"),\"-\",IF(AND('Enrollment Form'!$CL387=\"Yes\",'Enrollment Form'!$CM387=\"\"),\"N\",\"Y\"))","v":"-"},{"$f":"IF(OR('Enrollment Form'!$CN387=\"\",'Enrollment Form'!$CN387=\"No\"),\"-\",IF(AND('Enrollment Form'!$CN387=\"Yes\",'Enrollment Form'!$CO387=\"\"),\"N\",\"Y\"))","v":"-"},{"$f":"IF(OR('Enrollment Form'!$CN387=\"\",'Enrollment Form'!$CN387=\"No\"),\"-\",IF(AND('Enrollment Form'!$CN387=\"Yes\",'Enrollment Form'!$CP387=\"\"),\"N\",\"Y\"))","v":"-"},{"$f":"IF('Enrollment Form'!B387<>\"Subscriber\",\"-\",IF(AND('Enrollment Form'!B387=\"Subscriber\",'Enrollment Form'!C387=\"Enroll\",'Enrollment Form'!AA387=\"\"),\"N\",\"Y\"))","v":"-"},{"$f":"IF(OR('Enrollment Form'!B387=\"Subscriber\",'Enrollment Form'!B387=\"\"),\"-\",IF('Enrollment Form'!BP387=\"\",\"N\",\"Y\"))","v":"-"},{"$f":"IF('Enrollment Form'!B387<>\"Subscriber\",\"-\",IF(AND('Enrollment Form'!B387=\"Subscriber\",'Enrollment Form'!G387=\"\"),\"N\",\"Y\"))","v":"-"},{"$f":"IF('Enrollment Form'!A387=\"\",\"\",IF('Enrollment Form'!B387=\"Subscriber\",\"-\",IF(AND('Enrollment Form'!B387<>\"Subscriber\",'Enrollment Form'!G387='Enrollment Form'!H387),\"N\",\"Y\")))","v":""},0]
[388,{"$f":"IF('Enrollment Form'!$A388<>\"\",\"Y\",\"N\")","v":"N"},{"$f":"IF(AND('Enrollment Form'!$B388=\"\",'Enrollment Form'!$C388<>\"\"),\"N\",IF($B381=\"N\",\"\",\"Y\"))","v":""},{"$f":"IF(OR($B381=\"N\",'Enrollment Form'!G388=\"\"),\"\",IF('Enrollment Form'!$B388<>\"Subscriber\",\"\",IF('Enrollment Form'!$G388='Enrollment Form'!$H388,\"Y\",\"N\")))","v":""},{"$f":"IF($B381=\"N\",\"\",IF(AND(COUNTIFS('Enrollment Form'!$H$11:$H$1000,'Enrollment Form'!$H388,'Enrollment Form'!$B$11:$B$1000,'Enrollment Form'!$B388)>1,'Enrollment Form'!$H388<>\"\"),\"N\",\"Y\"))","v":""},{"$f":"IF($B381=\"N\",\"\",IF(LEN('Enrollment Form'!$Y388)=0,\"\",IF(LEN('Enrollment Form'!$Y388)<>5,\"N\",\"Y\")))","v":""},{"$f":"IF($B381=\"N\",\"\",IF(LEN('Enrollment Form'!$AD388=0),\"\",IF(LEN('Enrollment Form'!$AD388)<>5,\"N\",\"Y\")))","v":""},{"$f":"IF($B381=\"N\",\"\",IF(LEN('Enrollment Form'!$BS388=0),\"\",IF(LEN('Enrollment Form'!$BS388)<>5,\"N\",\"Y\")))","v":""},{"$f":"IF($B381=\"N\",\"\",IF(LEN('Enrollment Form'!$AE388)=0,\"\",IF(LEN('Enrollment Form'!$AE388)<>10,\"N\",\"Y\")))","v":""},{"$f":"IF($B381=\"N\",\"\",IF(LEN('Enrollment Form'!$AF388)=0,\"\",IF(LEN('Enrollment Form'!$AF388)<>10,\"N\",\"Y\")))","v":""},{"$f":"IF('Enrollment Form'!$O388<>\"Graded\",\"-\",IF(AND('Enrollment Form'!$O388=\"Graded\",'Enrollment Form'!$AR388<>\"\"),\"Y\",\"N\"))","v":"-"},{"$f":"IF($B381=\"N\",\"\",IF(OR('Enrollment Form'!$B388<>\"Subscriber\",'Enrollment Form'!$C388=\"ROC\"),\"-\",IF(AND('Enrollment Form'!$B388=\"Subscriber\",'Enrollment Form'!$C388=\"Enroll\",'Enrollment Form'!$AJ388<>\"\"),\"Y\",\"N\")))","v":""},{"$f":"IF($B381=\"N\",\"\",IF(OR('Enrollment Form'!$B388<>\"Subscriber\",'Enrollment Form'!$C388=\"ROC\"),\"-\",IF(AND('Enrollment Form'!$B388=\"Subscriber\",'Enrollment Form'!$C388=\"Enroll\",'Enrollment Form'!$AK388<>\"\"),\"Y\",\"N\")))","v":""},{"$f":"IF($B381=\"N\",\"\",IF(OR('Enrollment Form'!$B388<>\"Subscriber\",'Enrollment Form'!$C388=\"ROC\"),\"-\",IF(AND('Enrollment Form'!$B388=\"Subscriber\",'Enrollment Form'!$C388=\"Enroll\",'Enrollment Form'!$AL388<>\"\"),\"Y\",\"N\")))","v":""},{"$f":"IF($B381=\"N\",\"\",IF(OR('Enrollment Form'!$B388<>\"Subscriber\",'Enrollment Form'!$C388=\"ROC\"),\"-\",IF(AND('Enrollment Form'!$B388=\"Subscriber\",'Enrollment Form'!$C388=\"Enroll\",'Enrollment Form'!$AP388<>\"\"),\"Y\",\"N\")))","v":""},{"$f":"IF($B381=\"N\",\"\",IF(OR('Enrollment Form'!$B388<>\"Subscriber\",'Enrollment Form'!$C388=\"ROC\"),\"-\",IF(AND('Enrollment Form'!$B388=\"Subscriber\",'Enrollment Form'!$C388=\"Enroll\",'Enrollment Form'!$AQ388<>\"\"),\"Y\",\"N\")))","v":""},{"$f":"IF($B381=\"N\",\"\",IF(OR('Enrollment Form'!$B388<>\"Subscriber\",'Enrollment Form'!$C388=\"ROC\"),\"-\",IF(AND('Enrollment Form'!$B388=\"Subscriber\",'Enrollment Form'!$C388=\"Enroll\",'Enrollment Form'!$AS388<>\"\"),\"Y\",\"N\")))","v":""},{"$f":"IF($B381=\"N\",\"\",IF($Q381=\"-\",\"-\",IF(AND($Q381=\"Y\",'Enrollment Form'!$AS388=\"No\"),\"-\",IF(AND($Q381=\"Y\",'Enrollment Form'!$AS388=\"Yes\",'Enrollment Form'!$AT388<>\"\"),\"Y\",\"N\"))))","v":""},{"$f":"IF($B381=\"N\",\"\",IF(OR('Enrollment Form'!$B388<>\"Subscriber\",'Enrollment Form'!$C388=\"ROC\"),\"-\",IF(AND('Enrollment Form'!$B388=\"Subscriber\",'Enrollment Form'!$C388=\"Enroll\",'Enrollment Form'!$CV388<>\"\"),\"Y\",\"N\")))","v":""},{"$f":"IF($B381=\"N\",\"\",IF($S381=\"-\",\"-\",IF(AND($S381=\"Y\",'Enrollment Form'!$CV388=\"No\"),\"-\",IF(AND($S381=\"Y\",'Enrollment Form'!$CV388=\"Yes\",'Enrollment Form'!$CW388<>\"\"),\"Y\",\"N\"))))","v":""},{"$f":"IF(OR('Enrollment Form'!$AY388=\"Yes\",'Enrollment Form'!$AY388=\"\"),\"-\",IF(OR(AND('Enrollment Form'!$AY388=\"No\",ISERROR(FIND(\"HMO\",VLOOKUP('Enrollment Form'!G388,'Enrollment Form'!H$11:J$1000,3,FALSE),1))=FALSE,COUNTA('Enrollment Form'!$AZ388:$BC388)=4),AND('Enrollment Form'!$AY388=\"No\",ISERROR(FIND(\"HMO\",VLOOKUP('Enrollment Form'!G388,'Enrollment Form'!H$11:J$1000,3,FALSE),1))=FALSE,COUNTA('Enrollment Form'!$BT388:$BW388)=4)),\"Y\",\"N\"))","v":"-"},{"$f":"IF($B381=\"N\",\"\",IF('Enrollment Form'!$B388=\"Subscriber\",\"-\",IF(COUNTA('Enrollment Form'!$BL388,'Enrollment Form'!$BN388)=2,\"Y\",\"N\")))","v":""},{"$f":"IF($B381=\"N\",\"\",IF(OR('Enrollment Form'!$AX388=\"\",'Enrollment Form'!$AX388=\"No\"),\"-\",IF(AND('Enrollment Form'!$AX388=\"Yes\",COUNTA('Enrollment Form'!$CR388)=1),\"Y\",\"N\")))","v":""},{"$f":"IF(OR('Enrollment Form'!$CR388=\"\",'Enrollment Form'!$CR388=\"No\"),\"-\",IF(COUNTA('Enrollment Form'!$CT388:$CU388)=2,\"Y\",\"N\"))","v":"-"},{"$f":"IF($B381=\"N\",\"\",IF(COUNTIF('Enrollment Form'!$DG388:$DP388,\"Other\")=COUNTA('Enrollment Form'!$DK388,'Enrollment Form'!$DH388,'Enrollment Form'!$DN388,'Enrollment Form'!$DQ388),\"Y\",\"N\"))","v":""},{"$f":"IF($B381=\"N\",\"\",IF(OR('Enrollment Form'!B388<>\"Subscriber\",'Enrollment Form'!C388=\"ROC\",COUNTIF('Enrollment Form'!AV388:AW388,\"Yes\")>=1),\"-\",IF(AND('Enrollment Form'!C388=\"Enroll\",COUNTIF('Enrollment Form'!AV388:AW388,\"No\")=2,'Enrollment Form'!AX388=\"\"),\"N\",\"Y\")))","v":""},{"$f":"IF(OR(B381=\"N\",'Enrollment Form'!B388<>\"Subscriber\",'Enrollment Form'!C388=\"ROC\",'Enrollment Form'!O388<>\"Multiple of Salary\"),\"-\",IF(COUNTA('Enrollment Form'!T388:U388)<2,\"N\",\"Y\"))","v":"-"},{"$f":"IF(B381=\"N\",\"\",IF(OR('Enrollment Form'!C388=\"ROC\",'Enrollment Form'!B388<>\"Subscriber\",'Enrollment Form'!O388=\"Waive\",'Enrollment Form'!O388=\"\"),\"-\",IF('Enrollment Form'!P388=\"\",\"N\",\"Y\")))","v":""},{"$f":"IF($B381=\"N\",\"\",IF(AND('Enrollment Form'!$C388=\"ROC\",'Enrollment Form'!$DR388<>\"\"),\"Y\",IF(AND('Enrollment Form'!$C388=\"ROC\",'Enrollment Form'!$DR388=\"\"),\"N\",IF(AND('Enrollment Form'!$C388=\"Enroll\",'Enrollment Form'!$B388=\"Subscriber\",'Enrollment Form'!$CX388=\"No\",'Enrollment Form'!$DR388=\"\"),\"N\",IF(AND('Enrollment Form'!$C388=\"Enroll\",'Enrollment Form'!$B388=\"Subscriber\",'Enrollment Form'!$CX388=\"Yes\"),\"-\",\"Y\")))))","v":""},{"$f":"IF($B381=\"N\",\"\",IF(AND('Enrollment Form'!$C388=\"ROC\",'Enrollment Form'!$DS388<>\"\"),\"Y\",IF(AND('Enrollment Form'!$C388=\"ROC\",'Enrollment Form'!$DS388=\"\"),\"N\",IF(AND('Enrollment Form'!$C388=\"Enroll\",'Enrollment Form'!$B388=\"Subscriber\",'Enrollment Form'!$CX388=\"No\",'Enrollment Form'!$DS388=\"\"),\"N\",IF(AND('Enrollment Form'!$C388=\"Enroll\",'Enrollment Form'!$B388=\"Subscriber\",'Enrollment Form'!$CX388=\"Yes\"),\"-\",\"Y\")))))","v":""},{"$f":"IF('Enrollment Form'!AH388=\"\",\"\",IF(ISERROR(SEARCH(\".\",'Enrollment Form'!AH388,SEARCH(\"@\",'Enrollment Form'!AH388))),\"N\",\"Y\"))","v":""},{"$f":"IF(OR($B381=\"N\",'Enrollment Form'!$G388=\"\"),\"\",IF('Enrollment Form'!$B388<>\"Subscriber\",\"-\",IF(COUNTIF('Enrollment Form'!$AV388:$AW388,\"Yes\")=2,\"N\",\"Y\")))","v":""},{"$f":"IF(OR('Enrollment Form'!$CJ388=\"\",'Enrollment Form'!$CJ388=\"No\"),\"-\",IF(AND('Enrollment Form'!$CJ388=\"Yes\",'Enrollment Form'!$CK388=\"\"),\"N\",\"Y\"))","v":"-"},{"$f":"IF(OR('Enrollment Form'!$CL388=\"\",'Enrollment Form'!$CL388=\"No\"),\"-\",IF(AND('Enrollment Form'!$CL388=\"Yes\",'Enrollment Form'!$CM388=\"\"),\"N\",\"Y\"))","v":"-"},{"$f":"IF(OR('Enrollment Form'!$CN388=\"\",'Enrollment Form'!$CN388=\"No\"),\"-\",IF(AND('Enrollment Form'!$CN388=\"Yes\",'Enrollment Form'!$CO388=\"\"),\"N\",\"Y\"))","v":"-"},{"$f":"IF(OR('Enrollment Form'!$CN388=\"\",'Enrollment Form'!$CN388=\"No\"),\"-\",IF(AND('Enrollment Form'!$CN388=\"Yes\",'Enrollment Form'!$CP388=\"\"),\"N\",\"Y\"))","v":"-"},{"$f":"IF('Enrollment Form'!B388<>\"Subscriber\",\"-\",IF(AND('Enrollment Form'!B388=\"Subscriber\",'Enrollment Form'!C388=\"Enroll\",'Enrollment Form'!AA388=\"\"),\"N\",\"Y\"))","v":"-"},{"$f":"IF(OR('Enrollment Form'!B388=\"Subscriber\",'Enrollment Form'!B388=\"\"),\"-\",IF('Enrollment Form'!BP388=\"\",\"N\",\"Y\"))","v":"-"},{"$f":"IF('Enrollment Form'!B388<>\"Subscriber\",\"-\",IF(AND('Enrollment Form'!B388=\"Subscriber\",'Enrollment Form'!G388=\"\"),\"N\",\"Y\"))","v":"-"},{"$f":"IF('Enrollment Form'!A388=\"\",\"\",IF('Enrollment Form'!B388=\"Subscriber\",\"-\",IF(AND('Enrollment Form'!B388<>\"Subscriber\",'Enrollment Form'!G388='Enrollment Form'!H388),\"N\",\"Y\")))","v":""},0]
[389,{"$f":"IF('Enrollment Form'!$A389<>\"\",\"Y\",\"N\")","v":"N"},{"$f":"IF(AND('Enrollment Form'!$B389=\"\",'Enrollment Form'!$C389<>\"\"),\"N\",IF($B382=\"N\",\"\",\"Y\"))","v":""},{"$f":"IF(OR($B382=\"N\",'Enrollment Form'!G389=\"\"),\"\",IF('Enrollment Form'!$B389<>\"Subscriber\",\"\",IF('Enrollment Form'!$G389='Enrollment Form'!$H389,\"Y\",\"N\")))","v":""},{"$f":"IF($B382=\"N\",\"\",IF(AND(COUNTIFS('Enrollment Form'!$H$11:$H$1000,'Enrollment Form'!$H389,'Enrollment Form'!$B$11:$B$1000,'Enrollment Form'!$B389)>1,'Enrollment Form'!$H389<>\"\"),\"N\",\"Y\"))","v":""},{"$f":"IF($B382=\"N\",\"\",IF(LEN('Enrollment Form'!$Y389)=0,\"\",IF(LEN('Enrollment Form'!$Y389)<>5,\"N\",\"Y\")))","v":""},{"$f":"IF($B382=\"N\",\"\",IF(LEN('Enrollment Form'!$AD389=0),\"\",IF(LEN('Enrollment Form'!$AD389)<>5,\"N\",\"Y\")))","v":""},{"$f":"IF($B382=\"N\",\"\",IF(LEN('Enrollment Form'!$BS389=0),\"\",IF(LEN('Enrollment Form'!$BS389)<>5,\"N\",\"Y\")))","v":""},{"$f":"IF($B382=\"N\",\"\",IF(LEN('Enrollment Form'!$AE389)=0,\"\",IF(LEN('Enrollment Form'!$AE389)<>10,\"N\",\"Y\")))","v":""},{"$f":"IF($B382=\"N\",\"\",IF(LEN('Enrollment Form'!$AF389)=0,\"\",IF(LEN('Enrollment Form'!$AF389)<>10,\"N\",\"Y\")))","v":""},{"$f":"IF('Enrollment Form'!$O389<>\"Graded\",\"-\",IF(AND('Enrollment Form'!$O389=\"Graded\",'Enrollment Form'!$AR389<>\"\"),\"Y\",\"N\"))","v":"-"},{"$f":"IF($B382=\"N\",\"\",IF(OR('Enrollment Form'!$B389<>\"Subscriber\",'Enrollment Form'!$C389=\"ROC\"),\"-\",IF(AND('Enrollment Form'!$B389=\"Subscriber\",'Enrollment Form'!$C389=\"Enroll\",'Enrollment Form'!$AJ389<>\"\"),\"Y\",\"N\")))","v":""},{"$f":"IF($B382=\"N\",\"\",IF(OR('Enrollment Form'!$B389<>\"Subscriber\",'Enrollment Form'!$C389=\"ROC\"),\"-\",IF(AND('Enrollment Form'!$B389=\"Subscriber\",'Enrollment Form'!$C389=\"Enroll\",'Enrollment Form'!$AK389<>\"\"),\"Y\",\"N\")))","v":""},{"$f":"IF($B382=\"N\",\"\",IF(OR('Enrollment Form'!$B389<>\"Subscriber\",'Enrollment Form'!$C389=\"ROC\"),\"-\",IF(AND('Enrollment Form'!$B389=\"Subscriber\",'Enrollment Form'!$C389=\"Enroll\",'Enrollment Form'!$AL389<>\"\"),\"Y\",\"N\")))","v":""},{"$f":"IF($B382=\"N\",\"\",IF(OR('Enrollment Form'!$B389<>\"Subscriber\",'Enrollment Form'!$C389=\"ROC\"),\"-\",IF(AND('Enrollment Form'!$B389=\"Subscriber\",'Enrollment Form'!$C389=\"Enroll\",'Enrollment Form'!$AP389<>\"\"),\"Y\",\"N\")))","v":""},{"$f":"IF($B382=\"N\",\"\",IF(OR('Enrollment Form'!$B389<>\"Subscriber\",'Enrollment Form'!$C389=\"ROC\"),\"-\",IF(AND('Enrollment Form'!$B389=\"Subscriber\",'Enrollment Form'!$C389=\"Enroll\",'Enrollment Form'!$AQ389<>\"\"),\"Y\",\"N\")))","v":""},{"$f":"IF($B382=\"N\",\"\",IF(OR('Enrollment Form'!$B389<>\"Subscriber\",'Enrollment Form'!$C389=\"ROC\"),\"-\",IF(AND('Enrollment Form'!$B389=\"Subscriber\",'Enrollment Form'!$C389=\"Enroll\",'Enrollment Form'!$AS389<>\"\"),\"Y\",\"N\")))","v":""},{"$f":"IF($B382=\"N\",\"\",IF($Q382=\"-\",\"-\",IF(AND($Q382=\"Y\",'Enrollment Form'!$AS389=\"No\"),\"-\",IF(AND($Q382=\"Y\",'Enrollment Form'!$AS389=\"Yes\",'Enrollment Form'!$AT389<>\"\"),\"Y\",\"N\"))))","v":""},{"$f":"IF($B382=\"N\",\"\",IF(OR('Enrollment Form'!$B389<>\"Subscriber\",'Enrollment Form'!$C389=\"ROC\"),\"-\",IF(AND('Enrollment Form'!$B389=\"Subscriber\",'Enrollment Form'!$C389=\"Enroll\",'Enrollment Form'!$CV389<>\"\"),\"Y\",\"N\")))","v":""},{"$f":"IF($B382=\"N\",\"\",IF($S382=\"-\",\"-\",IF(AND($S382=\"Y\",'Enrollment Form'!$CV389=\"No\"),\"-\",IF(AND($S382=\"Y\",'Enrollment Form'!$CV389=\"Yes\",'Enrollment Form'!$CW389<>\"\"),\"Y\",\"N\"))))","v":""},{"$f":"IF(OR('Enrollment Form'!$AY389=\"Yes\",'Enrollment Form'!$AY389=\"\"),\"-\",IF(OR(AND('Enrollment Form'!$AY389=\"No\",ISERROR(FIND(\"HMO\",VLOOKUP('Enrollment Form'!G389,'Enrollment Form'!H$11:J$1000,3,FALSE),1))=FALSE,COUNTA('Enrollment Form'!$AZ389:$BC389)=4),AND('Enrollment Form'!$AY389=\"No\",ISERROR(FIND(\"HMO\",VLOOKUP('Enrollment Form'!G389,'Enrollment Form'!H$11:J$1000,3,FALSE),1))=FALSE,COUNTA('Enrollment Form'!$BT389:$BW389)=4)),\"Y\",\"N\"))","v":"-"},{"$f":"IF($B382=\"N\",\"\",IF('Enrollment Form'!$B389=\"Subscriber\",\"-\",IF(COUNTA('Enrollment Form'!$BL389,'Enrollment Form'!$BN389)=2,\"Y\",\"N\")))","v":""},{"$f":"IF($B382=\"N\",\"\",IF(OR('Enrollment Form'!$AX389=\"\",'Enrollment Form'!$AX389=\"No\"),\"-\",IF(AND('Enrollment Form'!$AX389=\"Yes\",COUNTA('Enrollment Form'!$CR389)=1),\"Y\",\"N\")))","v":""},{"$f":"IF(OR('Enrollment Form'!$CR389=\"\",'Enrollment Form'!$CR389=\"No\"),\"-\",IF(COUNTA('Enrollment Form'!$CT389:$CU389)=2,\"Y\",\"N\"))","v":"-"},{"$f":"IF($B382=\"N\",\"\",IF(COUNTIF('Enrollment Form'!$DG389:$DP389,\"Other\")=COUNTA('Enrollment Form'!$DK389,'Enrollment Form'!$DH389,'Enrollment Form'!$DN389,'Enrollment Form'!$DQ389),\"Y\",\"N\"))","v":""},{"$f":"IF($B382=\"N\",\"\",IF(OR('Enrollment Form'!B389<>\"Subscriber\",'Enrollment Form'!C389=\"ROC\",COUNTIF('Enrollment Form'!AV389:AW389,\"Yes\")>=1),\"-\",IF(AND('Enrollment Form'!C389=\"Enroll\",COUNTIF('Enrollment Form'!AV389:AW389,\"No\")=2,'Enrollment Form'!AX389=\"\"),\"N\",\"Y\")))","v":""},{"$f":"IF(OR(B382=\"N\",'Enrollment Form'!B389<>\"Subscriber\",'Enrollment Form'!C389=\"ROC\",'Enrollment Form'!O389<>\"Multiple of Salary\"),\"-\",IF(COUNTA('Enrollment Form'!T389:U389)<2,\"N\",\"Y\"))","v":"-"},{"$f":"IF(B382=\"N\",\"\",IF(OR('Enrollment Form'!C389=\"ROC\",'Enrollment Form'!B389<>\"Subscriber\",'Enrollment Form'!O389=\"Waive\",'Enrollment Form'!O389=\"\"),\"-\",IF('Enrollment Form'!P389=\"\",\"N\",\"Y\")))","v":""},{"$f":"IF($B382=\"N\",\"\",IF(AND('Enrollment Form'!$C389=\"ROC\",'Enrollment Form'!$DR389<>\"\"),\"Y\",IF(AND('Enrollment Form'!$C389=\"ROC\",'Enrollment Form'!$DR389=\"\"),\"N\",IF(AND('Enrollment Form'!$C389=\"Enroll\",'Enrollment Form'!$B389=\"Subscriber\",'Enrollment Form'!$CX389=\"No\",'Enrollment Form'!$DR389=\"\"),\"N\",IF(AND('Enrollment Form'!$C389=\"Enroll\",'Enrollment Form'!$B389=\"Subscriber\",'Enrollment Form'!$CX389=\"Yes\"),\"-\",\"Y\")))))","v":""},{"$f":"IF($B382=\"N\",\"\",IF(AND('Enrollment Form'!$C389=\"ROC\",'Enrollment Form'!$DS389<>\"\"),\"Y\",IF(AND('Enrollment Form'!$C389=\"ROC\",'Enrollment Form'!$DS389=\"\"),\"N\",IF(AND('Enrollment Form'!$C389=\"Enroll\",'Enrollment Form'!$B389=\"Subscriber\",'Enrollment Form'!$CX389=\"No\",'Enrollment Form'!$DS389=\"\"),\"N\",IF(AND('Enrollment Form'!$C389=\"Enroll\",'Enrollment Form'!$B389=\"Subscriber\",'Enrollment Form'!$CX389=\"Yes\"),\"-\",\"Y\")))))","v":""},{"$f":"IF('Enrollment Form'!AH389=\"\",\"\",IF(ISERROR(SEARCH(\".\",'Enrollment Form'!AH389,SEARCH(\"@\",'Enrollment Form'!AH389))),\"N\",\"Y\"))","v":""},{"$f":"IF(OR($B382=\"N\",'Enrollment Form'!$G389=\"\"),\"\",IF('Enrollment Form'!$B389<>\"Subscriber\",\"-\",IF(COUNTIF('Enrollment Form'!$AV389:$AW389,\"Yes\")=2,\"N\",\"Y\")))","v":""},{"$f":"IF(OR('Enrollment Form'!$CJ389=\"\",'Enrollment Form'!$CJ389=\"No\"),\"-\",IF(AND('Enrollment Form'!$CJ389=\"Yes\",'Enrollment Form'!$CK389=\"\"),\"N\",\"Y\"))","v":"-"},{"$f":"IF(OR('Enrollment Form'!$CL389=\"\",'Enrollment Form'!$CL389=\"No\"),\"-\",IF(AND('Enrollment Form'!$CL389=\"Yes\",'Enrollment Form'!$CM389=\"\"),\"N\",\"Y\"))","v":"-"},{"$f":"IF(OR('Enrollment Form'!$CN389=\"\",'Enrollment Form'!$CN389=\"No\"),\"-\",IF(AND('Enrollment Form'!$CN389=\"Yes\",'Enrollment Form'!$CO389=\"\"),\"N\",\"Y\"))","v":"-"},{"$f":"IF(OR('Enrollment Form'!$CN389=\"\",'Enrollment Form'!$CN389=\"No\"),\"-\",IF(AND('Enrollment Form'!$CN389=\"Yes\",'Enrollment Form'!$CP389=\"\"),\"N\",\"Y\"))","v":"-"},{"$f":"IF('Enrollment Form'!B389<>\"Subscriber\",\"-\",IF(AND('Enrollment Form'!B389=\"Subscriber\",'Enrollment Form'!C389=\"Enroll\",'Enrollment Form'!AA389=\"\"),\"N\",\"Y\"))","v":"-"},{"$f":"IF(OR('Enrollment Form'!B389=\"Subscriber\",'Enrollment Form'!B389=\"\"),\"-\",IF('Enrollment Form'!BP389=\"\",\"N\",\"Y\"))","v":"-"},{"$f":"IF('Enrollment Form'!B389<>\"Subscriber\",\"-\",IF(AND('Enrollment Form'!B389=\"Subscriber\",'Enrollment Form'!G389=\"\"),\"N\",\"Y\"))","v":"-"},{"$f":"IF('Enrollment Form'!A389=\"\",\"\",IF('Enrollment Form'!B389=\"Subscriber\",\"-\",IF(AND('Enrollment Form'!B389<>\"Subscriber\",'Enrollment Form'!G389='Enrollment Form'!H389),\"N\",\"Y\")))","v":""},0]
[390,{"$f":"IF('Enrollment Form'!$A390<>\"\",\"Y\",\"N\")","v":"N"},{"$f":"IF(AND('Enrollment Form'!$B390=\"\",'Enrollment Form'!$C390<>\"\"),\"N\",IF($B383=\"N\",\"\",\"Y\"))","v":""},{"$f":"IF(OR($B383=\"N\",'Enrollment Form'!G390=\"\"),\"\",IF('Enrollment Form'!$B390<>\"Subscriber\",\"\",IF('Enrollment Form'!$G390='Enrollment Form'!$H390,\"Y\",\"N\")))","v":""},{"$f":"IF($B383=\"N\",\"\",IF(AND(COUNTIFS('Enrollment Form'!$H$11:$H$1000,'Enrollment Form'!$H390,'Enrollment Form'!$B$11:$B$1000,'Enrollment Form'!$B390)>1,'Enrollment Form'!$H390<>\"\"),\"N\",\"Y\"))","v":""},{"$f":"IF($B383=\"N\",\"\",IF(LEN('Enrollment Form'!$Y390)=0,\"\",IF(LEN('Enrollment Form'!$Y390)<>5,\"N\",\"Y\")))","v":""},{"$f":"IF($B383=\"N\",\"\",IF(LEN('Enrollment Form'!$AD390=0),\"\",IF(LEN('Enrollment Form'!$AD390)<>5,\"N\",\"Y\")))","v":""},{"$f":"IF($B383=\"N\",\"\",IF(LEN('Enrollment Form'!$BS390=0),\"\",IF(LEN('Enrollment Form'!$BS390)<>5,\"N\",\"Y\")))","v":""},{"$f":"IF($B383=\"N\",\"\",IF(LEN('Enrollment Form'!$AE390)=0,\"\",IF(LEN('Enrollment Form'!$AE390)<>10,\"N\",\"Y\")))","v":""},{"$f":"IF($B383=\"N\",\"\",IF(LEN('Enrollment Form'!$AF390)=0,\"\",IF(LEN('Enrollment Form'!$AF390)<>10,\"N\",\"Y\")))","v":""},{"$f":"IF('Enrollment Form'!$O390<>\"Graded\",\"-\",IF(AND('Enrollment Form'!$O390=\"Graded\",'Enrollment Form'!$AR390<>\"\"),\"Y\",\"N\"))","v":"-"},{"$f":"IF($B383=\"N\",\"\",IF(OR('Enrollment Form'!$B390<>\"Subscriber\",'Enrollment Form'!$C390=\"ROC\"),\"-\",IF(AND('Enrollment Form'!$B390=\"Subscriber\",'Enrollment Form'!$C390=\"Enroll\",'Enrollment Form'!$AJ390<>\"\"),\"Y\",\"N\")))","v":""},{"$f":"IF($B383=\"N\",\"\",IF(OR('Enrollment Form'!$B390<>\"Subscriber\",'Enrollment Form'!$C390=\"ROC\"),\"-\",IF(AND('Enrollment Form'!$B390=\"Subscriber\",'Enrollment Form'!$C390=\"Enroll\",'Enrollment Form'!$AK390<>\"\"),\"Y\",\"N\")))","v":""},{"$f":"IF($B383=\"N\",\"\",IF(OR('Enrollment Form'!$B390<>\"Subscriber\",'Enrollment Form'!$C390=\"ROC\"),\"-\",IF(AND('Enrollment Form'!$B390=\"Subscriber\",'Enrollment Form'!$C390=\"Enroll\",'Enrollment Form'!$AL390<>\"\"),\"Y\",\"N\")))","v":""},{"$f":"IF($B383=\"N\",\"\",IF(OR('Enrollment Form'!$B390<>\"Subscriber\",'Enrollment Form'!$C390=\"ROC\"),\"-\",IF(AND('Enrollment Form'!$B390=\"Subscriber\",'Enrollment Form'!$C390=\"Enroll\",'Enrollment Form'!$AP390<>\"\"),\"Y\",\"N\")))","v":""},{"$f":"IF($B383=\"N\",\"\",IF(OR('Enrollment Form'!$B390<>\"Subscriber\",'Enrollment Form'!$C390=\"ROC\"),\"-\",IF(AND('Enrollment Form'!$B390=\"Subscriber\",'Enrollment Form'!$C390=\"Enroll\",'Enrollment Form'!$AQ390<>\"\"),\"Y\",\"N\")))","v":""},{"$f":"IF($B383=\"N\",\"\",IF(OR('Enrollment Form'!$B390<>\"Subscriber\",'Enrollment Form'!$C390=\"ROC\"),\"-\",IF(AND('Enrollment Form'!$B390=\"Subscriber\",'Enrollment Form'!$C390=\"Enroll\",'Enrollment Form'!$AS390<>\"\"),\"Y\",\"N\")))","v":""},{"$f":"IF($B383=\"N\",\"\",IF($Q383=\"-\",\"-\",IF(AND($Q383=\"Y\",'Enrollment Form'!$AS390=\"No\"),\"-\",IF(AND($Q383=\"Y\",'Enrollment Form'!$AS390=\"Yes\",'Enrollment Form'!$AT390<>\"\"),\"Y\",\"N\"))))","v":""},{"$f":"IF($B383=\"N\",\"\",IF(OR('Enrollment Form'!$B390<>\"Subscriber\",'Enrollment Form'!$C390=\"ROC\"),\"-\",IF(AND('Enrollment Form'!$B390=\"Subscriber\",'Enrollment Form'!$C390=\"Enroll\",'Enrollment Form'!$CV390<>\"\"),\"Y\",\"N\")))","v":""},{"$f":"IF($B383=\"N\",\"\",IF($S383=\"-\",\"-\",IF(AND($S383=\"Y\",'Enrollment Form'!$CV390=\"No\"),\"-\",IF(AND($S383=\"Y\",'Enrollment Form'!$CV390=\"Yes\",'Enrollment Form'!$CW390<>\"\"),\"Y\",\"N\"))))","v":""},{"$f":"IF(OR('Enrollment Form'!$AY390=\"Yes\",'Enrollment Form'!$AY390=\"\"),\"-\",IF(OR(AND('Enrollment Form'!$AY390=\"No\",ISERROR(FIND(\"HMO\",VLOOKUP('Enrollment Form'!G390,'Enrollment Form'!H$11:J$1000,3,FALSE),1))=FALSE,COUNTA('Enrollment Form'!$AZ390:$BC390)=4),AND('Enrollment Form'!$AY390=\"No\",ISERROR(FIND(\"HMO\",VLOOKUP('Enrollment Form'!G390,'Enrollment Form'!H$11:J$1000,3,FALSE),1))=FALSE,COUNTA('Enrollment Form'!$BT390:$BW390)=4)),\"Y\",\"N\"))","v":"-"},{"$f":"IF($B383=\"N\",\"\",IF('Enrollment Form'!$B390=\"Subscriber\",\"-\",IF(COUNTA('Enrollment Form'!$BL390,'Enrollment Form'!$BN390)=2,\"Y\",\"N\")))","v":""},{"$f":"IF($B383=\"N\",\"\",IF(OR('Enrollment Form'!$AX390=\"\",'Enrollment Form'!$AX390=\"No\"),\"-\",IF(AND('Enrollment Form'!$AX390=\"Yes\",COUNTA('Enrollment Form'!$CR390)=1),\"Y\",\"N\")))","v":""},{"$f":"IF(OR('Enrollment Form'!$CR390=\"\",'Enrollment Form'!$CR390=\"No\"),\"-\",IF(COUNTA('Enrollment Form'!$CT390:$CU390)=2,\"Y\",\"N\"))","v":"-"},{"$f":"IF($B383=\"N\",\"\",IF(COUNTIF('Enrollment Form'!$DG390:$DP390,\"Other\")=COUNTA('Enrollment Form'!$DK390,'Enrollment Form'!$DH390,'Enrollment Form'!$DN390,'Enrollment Form'!$DQ390),\"Y\",\"N\"))","v":""},{"$f":"IF($B383=\"N\",\"\",IF(OR('Enrollment Form'!B390<>\"Subscriber\",'Enrollment Form'!C390=\"ROC\",COUNTIF('Enrollment Form'!AV390:AW390,\"Yes\")>=1),\"-\",IF(AND('Enrollment Form'!C390=\"Enroll\",COUNTIF('Enrollment Form'!AV390:AW390,\"No\")=2,'Enrollment Form'!AX390=\"\"),\"N\",\"Y\")))","v":""},{"$f":"IF(OR(B383=\"N\",'Enrollment Form'!B390<>\"Subscriber\",'Enrollment Form'!C390=\"ROC\",'Enrollment Form'!O390<>\"Multiple of Salary\"),\"-\",IF(COUNTA('Enrollment Form'!T390:U390)<2,\"N\",\"Y\"))","v":"-"},{"$f":"IF(B383=\"N\",\"\",IF(OR('Enrollment Form'!C390=\"ROC\",'Enrollment Form'!B390<>\"Subscriber\",'Enrollment Form'!O390=\"Waive\",'Enrollment Form'!O390=\"\"),\"-\",IF('Enrollment Form'!P390=\"\",\"N\",\"Y\")))","v":""},{"$f":"IF($B383=\"N\",\"\",IF(AND('Enrollment Form'!$C390=\"ROC\",'Enrollment Form'!$DR390<>\"\"),\"Y\",IF(AND('Enrollment Form'!$C390=\"ROC\",'Enrollment Form'!$DR390=\"\"),\"N\",IF(AND('Enrollment Form'!$C390=\"Enroll\",'Enrollment Form'!$B390=\"Subscriber\",'Enrollment Form'!$CX390=\"No\",'Enrollment Form'!$DR390=\"\"),\"N\",IF(AND('Enrollment Form'!$C390=\"Enroll\",'Enrollment Form'!$B390=\"Subscriber\",'Enrollment Form'!$CX390=\"Yes\"),\"-\",\"Y\")))))","v":""},{"$f":"IF($B383=\"N\",\"\",IF(AND('Enrollment Form'!$C390=\"ROC\",'Enrollment Form'!$DS390<>\"\"),\"Y\",IF(AND('Enrollment Form'!$C390=\"ROC\",'Enrollment Form'!$DS390=\"\"),\"N\",IF(AND('Enrollment Form'!$C390=\"Enroll\",'Enrollment Form'!$B390=\"Subscriber\",'Enrollment Form'!$CX390=\"No\",'Enrollment Form'!$DS390=\"\"),\"N\",IF(AND('Enrollment Form'!$C390=\"Enroll\",'Enrollment Form'!$B390=\"Subscriber\",'Enrollment Form'!$CX390=\"Yes\"),\"-\",\"Y\")))))","v":""},{"$f":"IF('Enrollment Form'!AH390=\"\",\"\",IF(ISERROR(SEARCH(\".\",'Enrollment Form'!AH390,SEARCH(\"@\",'Enrollment Form'!AH390))),\"N\",\"Y\"))","v":""},{"$f":"IF(OR($B383=\"N\",'Enrollment Form'!$G390=\"\"),\"\",IF('Enrollment Form'!$B390<>\"Subscriber\",\"-\",IF(COUNTIF('Enrollment Form'!$AV390:$AW390,\"Yes\")=2,\"N\",\"Y\")))","v":""},{"$f":"IF(OR('Enrollment Form'!$CJ390=\"\",'Enrollment Form'!$CJ390=\"No\"),\"-\",IF(AND('Enrollment Form'!$CJ390=\"Yes\",'Enrollment Form'!$CK390=\"\"),\"N\",\"Y\"))","v":"-"},{"$f":"IF(OR('Enrollment Form'!$CL390=\"\",'Enrollment Form'!$CL390=\"No\"),\"-\",IF(AND('Enrollment Form'!$CL390=\"Yes\",'Enrollment Form'!$CM390=\"\"),\"N\",\"Y\"))","v":"-"},{"$f":"IF(OR('Enrollment Form'!$CN390=\"\",'Enrollment Form'!$CN390=\"No\"),\"-\",IF(AND('Enrollment Form'!$CN390=\"Yes\",'Enrollment Form'!$CO390=\"\"),\"N\",\"Y\"))","v":"-"},{"$f":"IF(OR('Enrollment Form'!$CN390=\"\",'Enrollment Form'!$CN390=\"No\"),\"-\",IF(AND('Enrollment Form'!$CN390=\"Yes\",'Enrollment Form'!$CP390=\"\"),\"N\",\"Y\"))","v":"-"},{"$f":"IF('Enrollment Form'!B390<>\"Subscriber\",\"-\",IF(AND('Enrollment Form'!B390=\"Subscriber\",'Enrollment Form'!C390=\"Enroll\",'Enrollment Form'!AA390=\"\"),\"N\",\"Y\"))","v":"-"},{"$f":"IF(OR('Enrollment Form'!B390=\"Subscriber\",'Enrollment Form'!B390=\"\"),\"-\",IF('Enrollment Form'!BP390=\"\",\"N\",\"Y\"))","v":"-"},{"$f":"IF('Enrollment Form'!B390<>\"Subscriber\",\"-\",IF(AND('Enrollment Form'!B390=\"Subscriber\",'Enrollment Form'!G390=\"\"),\"N\",\"Y\"))","v":"-"},{"$f":"IF('Enrollment Form'!A390=\"\",\"\",IF('Enrollment Form'!B390=\"Subscriber\",\"-\",IF(AND('Enrollment Form'!B390<>\"Subscriber\",'Enrollment Form'!G390='Enrollment Form'!H390),\"N\",\"Y\")))","v":""},0]
[391,{"$f":"IF('Enrollment Form'!$A391<>\"\",\"Y\",\"N\")","v":"N"},{"$f":"IF(AND('Enrollment Form'!$B391=\"\",'Enrollment Form'!$C391<>\"\"),\"N\",IF($B384=\"N\",\"\",\"Y\"))","v":""},{"$f":"IF(OR($B384=\"N\",'Enrollment Form'!G391=\"\"),\"\",IF('Enrollment Form'!$B391<>\"Subscriber\",\"\",IF('Enrollment Form'!$G391='Enrollment Form'!$H391,\"Y\",\"N\")))","v":""},{"$f":"IF($B384=\"N\",\"\",IF(AND(COUNTIFS('Enrollment Form'!$H$11:$H$1000,'Enrollment Form'!$H391,'Enrollment Form'!$B$11:$B$1000,'Enrollment Form'!$B391)>1,'Enrollment Form'!$H391<>\"\"),\"N\",\"Y\"))","v":""},{"$f":"IF($B384=\"N\",\"\",IF(LEN('Enrollment Form'!$Y391)=0,\"\",IF(LEN('Enrollment Form'!$Y391)<>5,\"N\",\"Y\")))","v":""},{"$f":"IF($B384=\"N\",\"\",IF(LEN('Enrollment Form'!$AD391=0),\"\",IF(LEN('Enrollment Form'!$AD391)<>5,\"N\",\"Y\")))","v":""},{"$f":"IF($B384=\"N\",\"\",IF(LEN('Enrollment Form'!$BS391=0),\"\",IF(LEN('Enrollment Form'!$BS391)<>5,\"N\",\"Y\")))","v":""},{"$f":"IF($B384=\"N\",\"\",IF(LEN('Enrollment Form'!$AE391)=0,\"\",IF(LEN('Enrollment Form'!$AE391)<>10,\"N\",\"Y\")))","v":""},{"$f":"IF($B384=\"N\",\"\",IF(LEN('Enrollment Form'!$AF391)=0,\"\",IF(LEN('Enrollment Form'!$AF391)<>10,\"N\",\"Y\")))","v":""},{"$f":"IF('Enrollment Form'!$O391<>\"Graded\",\"-\",IF(AND('Enrollment Form'!$O391=\"Graded\",'Enrollment Form'!$AR391<>\"\"),\"Y\",\"N\"))","v":"-"},{"$f":"IF($B384=\"N\",\"\",IF(OR('Enrollment Form'!$B391<>\"Subscriber\",'Enrollment Form'!$C391=\"ROC\"),\"-\",IF(AND('Enrollment Form'!$B391=\"Subscriber\",'Enrollment Form'!$C391=\"Enroll\",'Enrollment Form'!$AJ391<>\"\"),\"Y\",\"N\")))","v":""},{"$f":"IF($B384=\"N\",\"\",IF(OR('Enrollment Form'!$B391<>\"Subscriber\",'Enrollment Form'!$C391=\"ROC\"),\"-\",IF(AND('Enrollment Form'!$B391=\"Subscriber\",'Enrollment Form'!$C391=\"Enroll\",'Enrollment Form'!$AK391<>\"\"),\"Y\",\"N\")))","v":""},{"$f":"IF($B384=\"N\",\"\",IF(OR('Enrollment Form'!$B391<>\"Subscriber\",'Enrollment Form'!$C391=\"ROC\"),\"-\",IF(AND('Enrollment Form'!$B391=\"Subscriber\",'Enrollment Form'!$C391=\"Enroll\",'Enrollment Form'!$AL391<>\"\"),\"Y\",\"N\")))","v":""},{"$f":"IF($B384=\"N\",\"\",IF(OR('Enrollment Form'!$B391<>\"Subscriber\",'Enrollment Form'!$C391=\"ROC\"),\"-\",IF(AND('Enrollment Form'!$B391=\"Subscriber\",'Enrollment Form'!$C391=\"Enroll\",'Enrollment Form'!$AP391<>\"\"),\"Y\",\"N\")))","v":""},{"$f":"IF($B384=\"N\",\"\",IF(OR('Enrollment Form'!$B391<>\"Subscriber\",'Enrollment Form'!$C391=\"ROC\"),\"-\",IF(AND('Enrollment Form'!$B391=\"Subscriber\",'Enrollment Form'!$C391=\"Enroll\",'Enrollment Form'!$AQ391<>\"\"),\"Y\",\"N\")))","v":""},{"$f":"IF($B384=\"N\",\"\",IF(OR('Enrollment Form'!$B391<>\"Subscriber\",'Enrollment Form'!$C391=\"ROC\"),\"-\",IF(AND('Enrollment Form'!$B391=\"Subscriber\",'Enrollment Form'!$C391=\"Enroll\",'Enrollment Form'!$AS391<>\"\"),\"Y\",\"N\")))","v":""},{"$f":"IF($B384=\"N\",\"\",IF($Q384=\"-\",\"-\",IF(AND($Q384=\"Y\",'Enrollment Form'!$AS391=\"No\"),\"-\",IF(AND($Q384=\"Y\",'Enrollment Form'!$AS391=\"Yes\",'Enrollment Form'!$AT391<>\"\"),\"Y\",\"N\"))))","v":""},{"$f":"IF($B384=\"N\",\"\",IF(OR('Enrollment Form'!$B391<>\"Subscriber\",'Enrollment Form'!$C391=\"ROC\"),\"-\",IF(AND('Enrollment Form'!$B391=\"Subscriber\",'Enrollment Form'!$C391=\"Enroll\",'Enrollment Form'!$CV391<>\"\"),\"Y\",\"N\")))","v":""},{"$f":"IF($B384=\"N\",\"\",IF($S384=\"-\",\"-\",IF(AND($S384=\"Y\",'Enrollment Form'!$CV391=\"No\"),\"-\",IF(AND($S384=\"Y\",'Enrollment Form'!$CV391=\"Yes\",'Enrollment Form'!$CW391<>\"\"),\"Y\",\"N\"))))","v":""},{"$f":"IF(OR('Enrollment Form'!$AY391=\"Yes\",'Enrollment Form'!$AY391=\"\"),\"-\",IF(OR(AND('Enrollment Form'!$AY391=\"No\",ISERROR(FIND(\"HMO\",VLOOKUP('Enrollment Form'!G391,'Enrollment Form'!H$11:J$1000,3,FALSE),1))=FALSE,COUNTA('Enrollment Form'!$AZ391:$BC391)=4),AND('Enrollment Form'!$AY391=\"No\",ISERROR(FIND(\"HMO\",VLOOKUP('Enrollment Form'!G391,'Enrollment Form'!H$11:J$1000,3,FALSE),1))=FALSE,COUNTA('Enrollment Form'!$BT391:$BW391)=4)),\"Y\",\"N\"))","v":"-"},{"$f":"IF($B384=\"N\",\"\",IF('Enrollment Form'!$B391=\"Subscriber\",\"-\",IF(COUNTA('Enrollment Form'!$BL391,'Enrollment Form'!$BN391)=2,\"Y\",\"N\")))","v":""},{"$f":"IF($B384=\"N\",\"\",IF(OR('Enrollment Form'!$AX391=\"\",'Enrollment Form'!$AX391=\"No\"),\"-\",IF(AND('Enrollment Form'!$AX391=\"Yes\",COUNTA('Enrollment Form'!$CR391)=1),\"Y\",\"N\")))","v":""},{"$f":"IF(OR('Enrollment Form'!$CR391=\"\",'Enrollment Form'!$CR391=\"No\"),\"-\",IF(COUNTA('Enrollment Form'!$CT391:$CU391)=2,\"Y\",\"N\"))","v":"-"},{"$f":"IF($B384=\"N\",\"\",IF(COUNTIF('Enrollment Form'!$DG391:$DP391,\"Other\")=COUNTA('Enrollment Form'!$DK391,'Enrollment Form'!$DH391,'Enrollment Form'!$DN391,'Enrollment Form'!$DQ391),\"Y\",\"N\"))","v":""},{"$f":"IF($B384=\"N\",\"\",IF(OR('Enrollment Form'!B391<>\"Subscriber\",'Enrollment Form'!C391=\"ROC\",COUNTIF('Enrollment Form'!AV391:AW391,\"Yes\")>=1),\"-\",IF(AND('Enrollment Form'!C391=\"Enroll\",COUNTIF('Enrollment Form'!AV391:AW391,\"No\")=2,'Enrollment Form'!AX391=\"\"),\"N\",\"Y\")))","v":""},{"$f":"IF(OR(B384=\"N\",'Enrollment Form'!B391<>\"Subscriber\",'Enrollment Form'!C391=\"ROC\",'Enrollment Form'!O391<>\"Multiple of Salary\"),\"-\",IF(COUNTA('Enrollment Form'!T391:U391)<2,\"N\",\"Y\"))","v":"-"},{"$f":"IF(B384=\"N\",\"\",IF(OR('Enrollment Form'!C391=\"ROC\",'Enrollment Form'!B391<>\"Subscriber\",'Enrollment Form'!O391=\"Waive\",'Enrollment Form'!O391=\"\"),\"-\",IF('Enrollment Form'!P391=\"\",\"N\",\"Y\")))","v":""},{"$f":"IF($B384=\"N\",\"\",IF(AND('Enrollment Form'!$C391=\"ROC\",'Enrollment Form'!$DR391<>\"\"),\"Y\",IF(AND('Enrollment Form'!$C391=\"ROC\",'Enrollment Form'!$DR391=\"\"),\"N\",IF(AND('Enrollment Form'!$C391=\"Enroll\",'Enrollment Form'!$B391=\"Subscriber\",'Enrollment Form'!$CX391=\"No\",'Enrollment Form'!$DR391=\"\"),\"N\",IF(AND('Enrollment Form'!$C391=\"Enroll\",'Enrollment Form'!$B391=\"Subscriber\",'Enrollment Form'!$CX391=\"Yes\"),\"-\",\"Y\")))))","v":""},{"$f":"IF($B384=\"N\",\"\",IF(AND('Enrollment Form'!$C391=\"ROC\",'Enrollment Form'!$DS391<>\"\"),\"Y\",IF(AND('Enrollment Form'!$C391=\"ROC\",'Enrollment Form'!$DS391=\"\"),\"N\",IF(AND('Enrollment Form'!$C391=\"Enroll\",'Enrollment Form'!$B391=\"Subscriber\",'Enrollment Form'!$CX391=\"No\",'Enrollment Form'!$DS391=\"\"),\"N\",IF(AND('Enrollment Form'!$C391=\"Enroll\",'Enrollment Form'!$B391=\"Subscriber\",'Enrollment Form'!$CX391=\"Yes\"),\"-\",\"Y\")))))","v":""},{"$f":"IF('Enrollment Form'!AH391=\"\",\"\",IF(ISERROR(SEARCH(\".\",'Enrollment Form'!AH391,SEARCH(\"@\",'Enrollment Form'!AH391))),\"N\",\"Y\"))","v":""},{"$f":"IF(OR($B384=\"N\",'Enrollment Form'!$G391=\"\"),\"\",IF('Enrollment Form'!$B391<>\"Subscriber\",\"-\",IF(COUNTIF('Enrollment Form'!$AV391:$AW391,\"Yes\")=2,\"N\",\"Y\")))","v":""},{"$f":"IF(OR('Enrollment Form'!$CJ391=\"\",'Enrollment Form'!$CJ391=\"No\"),\"-\",IF(AND('Enrollment Form'!$CJ391=\"Yes\",'Enrollment Form'!$CK391=\"\"),\"N\",\"Y\"))","v":"-"},{"$f":"IF(OR('Enrollment Form'!$CL391=\"\",'Enrollment Form'!$CL391=\"No\"),\"-\",IF(AND('Enrollment Form'!$CL391=\"Yes\",'Enrollment Form'!$CM391=\"\"),\"N\",\"Y\"))","v":"-"},{"$f":"IF(OR('Enrollment Form'!$CN391=\"\",'Enrollment Form'!$CN391=\"No\"),\"-\",IF(AND('Enrollment Form'!$CN391=\"Yes\",'Enrollment Form'!$CO391=\"\"),\"N\",\"Y\"))","v":"-"},{"$f":"IF(OR('Enrollment Form'!$CN391=\"\",'Enrollment Form'!$CN391=\"No\"),\"-\",IF(AND('Enrollment Form'!$CN391=\"Yes\",'Enrollment Form'!$CP391=\"\"),\"N\",\"Y\"))","v":"-"},{"$f":"IF('Enrollment Form'!B391<>\"Subscriber\",\"-\",IF(AND('Enrollment Form'!B391=\"Subscriber\",'Enrollment Form'!C391=\"Enroll\",'Enrollment Form'!AA391=\"\"),\"N\",\"Y\"))","v":"-"},{"$f":"IF(OR('Enrollment Form'!B391=\"Subscriber\",'Enrollment Form'!B391=\"\"),\"-\",IF('Enrollment Form'!BP391=\"\",\"N\",\"Y\"))","v":"-"},{"$f":"IF('Enrollment Form'!B391<>\"Subscriber\",\"-\",IF(AND('Enrollment Form'!B391=\"Subscriber\",'Enrollment Form'!G391=\"\"),\"N\",\"Y\"))","v":"-"},{"$f":"IF('Enrollment Form'!A391=\"\",\"\",IF('Enrollment Form'!B391=\"Subscriber\",\"-\",IF(AND('Enrollment Form'!B391<>\"Subscriber\",'Enrollment Form'!G391='Enrollment Form'!H391),\"N\",\"Y\")))","v":""},0]
[392,{"$f":"IF('Enrollment Form'!$A392<>\"\",\"Y\",\"N\")","v":"N"},{"$f":"IF(AND('Enrollment Form'!$B392=\"\",'Enrollment Form'!$C392<>\"\"),\"N\",IF($B385=\"N\",\"\",\"Y\"))","v":""},{"$f":"IF(OR($B385=\"N\",'Enrollment Form'!G392=\"\"),\"\",IF('Enrollment Form'!$B392<>\"Subscriber\",\"\",IF('Enrollment Form'!$G392='Enrollment Form'!$H392,\"Y\",\"N\")))","v":""},{"$f":"IF($B385=\"N\",\"\",IF(AND(COUNTIFS('Enrollment Form'!$H$11:$H$1000,'Enrollment Form'!$H392,'Enrollment Form'!$B$11:$B$1000,'Enrollment Form'!$B392)>1,'Enrollment Form'!$H392<>\"\"),\"N\",\"Y\"))","v":""},{"$f":"IF($B385=\"N\",\"\",IF(LEN('Enrollment Form'!$Y392)=0,\"\",IF(LEN('Enrollment Form'!$Y392)<>5,\"N\",\"Y\")))","v":""},{"$f":"IF($B385=\"N\",\"\",IF(LEN('Enrollment Form'!$AD392=0),\"\",IF(LEN('Enrollment Form'!$AD392)<>5,\"N\",\"Y\")))","v":""},{"$f":"IF($B385=\"N\",\"\",IF(LEN('Enrollment Form'!$BS392=0),\"\",IF(LEN('Enrollment Form'!$BS392)<>5,\"N\",\"Y\")))","v":""},{"$f":"IF($B385=\"N\",\"\",IF(LEN('Enrollment Form'!$AE392)=0,\"\",IF(LEN('Enrollment Form'!$AE392)<>10,\"N\",\"Y\")))","v":""},{"$f":"IF($B385=\"N\",\"\",IF(LEN('Enrollment Form'!$AF392)=0,\"\",IF(LEN('Enrollment Form'!$AF392)<>10,\"N\",\"Y\")))","v":""},{"$f":"IF('Enrollment Form'!$O392<>\"Graded\",\"-\",IF(AND('Enrollment Form'!$O392=\"Graded\",'Enrollment Form'!$AR392<>\"\"),\"Y\",\"N\"))","v":"-"},{"$f":"IF($B385=\"N\",\"\",IF(OR('Enrollment Form'!$B392<>\"Subscriber\",'Enrollment Form'!$C392=\"ROC\"),\"-\",IF(AND('Enrollment Form'!$B392=\"Subscriber\",'Enrollment Form'!$C392=\"Enroll\",'Enrollment Form'!$AJ392<>\"\"),\"Y\",\"N\")))","v":""},{"$f":"IF($B385=\"N\",\"\",IF(OR('Enrollment Form'!$B392<>\"Subscriber\",'Enrollment Form'!$C392=\"ROC\"),\"-\",IF(AND('Enrollment Form'!$B392=\"Subscriber\",'Enrollment Form'!$C392=\"Enroll\",'Enrollment Form'!$AK392<>\"\"),\"Y\",\"N\")))","v":""},{"$f":"IF($B385=\"N\",\"\",IF(OR('Enrollment Form'!$B392<>\"Subscriber\",'Enrollment Form'!$C392=\"ROC\"),\"-\",IF(AND('Enrollment Form'!$B392=\"Subscriber\",'Enrollment Form'!$C392=\"Enroll\",'Enrollment Form'!$AL392<>\"\"),\"Y\",\"N\")))","v":""},{"$f":"IF($B385=\"N\",\"\",IF(OR('Enrollment Form'!$B392<>\"Subscriber\",'Enrollment Form'!$C392=\"ROC\"),\"-\",IF(AND('Enrollment Form'!$B392=\"Subscriber\",'Enrollment Form'!$C392=\"Enroll\",'Enrollment Form'!$AP392<>\"\"),\"Y\",\"N\")))","v":""},{"$f":"IF($B385=\"N\",\"\",IF(OR('Enrollment Form'!$B392<>\"Subscriber\",'Enrollment Form'!$C392=\"ROC\"),\"-\",IF(AND('Enrollment Form'!$B392=\"Subscriber\",'Enrollment Form'!$C392=\"Enroll\",'Enrollment Form'!$AQ392<>\"\"),\"Y\",\"N\")))","v":""},{"$f":"IF($B385=\"N\",\"\",IF(OR('Enrollment Form'!$B392<>\"Subscriber\",'Enrollment Form'!$C392=\"ROC\"),\"-\",IF(AND('Enrollment Form'!$B392=\"Subscriber\",'Enrollment Form'!$C392=\"Enroll\",'Enrollment Form'!$AS392<>\"\"),\"Y\",\"N\")))","v":""},{"$f":"IF($B385=\"N\",\"\",IF($Q385=\"-\",\"-\",IF(AND($Q385=\"Y\",'Enrollment Form'!$AS392=\"No\"),\"-\",IF(AND($Q385=\"Y\",'Enrollment Form'!$AS392=\"Yes\",'Enrollment Form'!$AT392<>\"\"),\"Y\",\"N\"))))","v":""},{"$f":"IF($B385=\"N\",\"\",IF(OR('Enrollment Form'!$B392<>\"Subscriber\",'Enrollment Form'!$C392=\"ROC\"),\"-\",IF(AND('Enrollment Form'!$B392=\"Subscriber\",'Enrollment Form'!$C392=\"Enroll\",'Enrollment Form'!$CV392<>\"\"),\"Y\",\"N\")))","v":""},{"$f":"IF($B385=\"N\",\"\",IF($S385=\"-\",\"-\",IF(AND($S385=\"Y\",'Enrollment Form'!$CV392=\"No\"),\"-\",IF(AND($S385=\"Y\",'Enrollment Form'!$CV392=\"Yes\",'Enrollment Form'!$CW392<>\"\"),\"Y\",\"N\"))))","v":""},{"$f":"IF(OR('Enrollment Form'!$AY392=\"Yes\",'Enrollment Form'!$AY392=\"\"),\"-\",IF(OR(AND('Enrollment Form'!$AY392=\"No\",ISERROR(FIND(\"HMO\",VLOOKUP('Enrollment Form'!G392,'Enrollment Form'!H$11:J$1000,3,FALSE),1))=FALSE,COUNTA('Enrollment Form'!$AZ392:$BC392)=4),AND('Enrollment Form'!$AY392=\"No\",ISERROR(FIND(\"HMO\",VLOOKUP('Enrollment Form'!G392,'Enrollment Form'!H$11:J$1000,3,FALSE),1))=FALSE,COUNTA('Enrollment Form'!$BT392:$BW392)=4)),\"Y\",\"N\"))","v":"-"},{"$f":"IF($B385=\"N\",\"\",IF('Enrollment Form'!$B392=\"Subscriber\",\"-\",IF(COUNTA('Enrollment Form'!$BL392,'Enrollment Form'!$BN392)=2,\"Y\",\"N\")))","v":""},{"$f":"IF($B385=\"N\",\"\",IF(OR('Enrollment Form'!$AX392=\"\",'Enrollment Form'!$AX392=\"No\"),\"-\",IF(AND('Enrollment Form'!$AX392=\"Yes\",COUNTA('Enrollment Form'!$CR392)=1),\"Y\",\"N\")))","v":""},{"$f":"IF(OR('Enrollment Form'!$CR392=\"\",'Enrollment Form'!$CR392=\"No\"),\"-\",IF(COUNTA('Enrollment Form'!$CT392:$CU392)=2,\"Y\",\"N\"))","v":"-"},{"$f":"IF($B385=\"N\",\"\",IF(COUNTIF('Enrollment Form'!$DG392:$DP392,\"Other\")=COUNTA('Enrollment Form'!$DK392,'Enrollment Form'!$DH392,'Enrollment Form'!$DN392,'Enrollment Form'!$DQ392),\"Y\",\"N\"))","v":""},{"$f":"IF($B385=\"N\",\"\",IF(OR('Enrollment Form'!B392<>\"Subscriber\",'Enrollment Form'!C392=\"ROC\",COUNTIF('Enrollment Form'!AV392:AW392,\"Yes\")>=1),\"-\",IF(AND('Enrollment Form'!C392=\"Enroll\",COUNTIF('Enrollment Form'!AV392:AW392,\"No\")=2,'Enrollment Form'!AX392=\"\"),\"N\",\"Y\")))","v":""},{"$f":"IF(OR(B385=\"N\",'Enrollment Form'!B392<>\"Subscriber\",'Enrollment Form'!C392=\"ROC\",'Enrollment Form'!O392<>\"Multiple of Salary\"),\"-\",IF(COUNTA('Enrollment Form'!T392:U392)<2,\"N\",\"Y\"))","v":"-"},{"$f":"IF(B385=\"N\",\"\",IF(OR('Enrollment Form'!C392=\"ROC\",'Enrollment Form'!B392<>\"Subscriber\",'Enrollment Form'!O392=\"Waive\",'Enrollment Form'!O392=\"\"),\"-\",IF('Enrollment Form'!P392=\"\",\"N\",\"Y\")))","v":""},{"$f":"IF($B385=\"N\",\"\",IF(AND('Enrollment Form'!$C392=\"ROC\",'Enrollment Form'!$DR392<>\"\"),\"Y\",IF(AND('Enrollment Form'!$C392=\"ROC\",'Enrollment Form'!$DR392=\"\"),\"N\",IF(AND('Enrollment Form'!$C392=\"Enroll\",'Enrollment Form'!$B392=\"Subscriber\",'Enrollment Form'!$CX392=\"No\",'Enrollment Form'!$DR392=\"\"),\"N\",IF(AND('Enrollment Form'!$C392=\"Enroll\",'Enrollment Form'!$B392=\"Subscriber\",'Enrollment Form'!$CX392=\"Yes\"),\"-\",\"Y\")))))","v":""},{"$f":"IF($B385=\"N\",\"\",IF(AND('Enrollment Form'!$C392=\"ROC\",'Enrollment Form'!$DS392<>\"\"),\"Y\",IF(AND('Enrollment Form'!$C392=\"ROC\",'Enrollment Form'!$DS392=\"\"),\"N\",IF(AND('Enrollment Form'!$C392=\"Enroll\",'Enrollment Form'!$B392=\"Subscriber\",'Enrollment Form'!$CX392=\"No\",'Enrollment Form'!$DS392=\"\"),\"N\",IF(AND('Enrollment Form'!$C392=\"Enroll\",'Enrollment Form'!$B392=\"Subscriber\",'Enrollment Form'!$CX392=\"Yes\"),\"-\",\"Y\")))))","v":""},{"$f":"IF('Enrollment Form'!AH392=\"\",\"\",IF(ISERROR(SEARCH(\".\",'Enrollment Form'!AH392,SEARCH(\"@\",'Enrollment Form'!AH392))),\"N\",\"Y\"))","v":""},{"$f":"IF(OR($B385=\"N\",'Enrollment Form'!$G392=\"\"),\"\",IF('Enrollment Form'!$B392<>\"Subscriber\",\"-\",IF(COUNTIF('Enrollment Form'!$AV392:$AW392,\"Yes\")=2,\"N\",\"Y\")))","v":""},{"$f":"IF(OR('Enrollment Form'!$CJ392=\"\",'Enrollment Form'!$CJ392=\"No\"),\"-\",IF(AND('Enrollment Form'!$CJ392=\"Yes\",'Enrollment Form'!$CK392=\"\"),\"N\",\"Y\"))","v":"-"},{"$f":"IF(OR('Enrollment Form'!$CL392=\"\",'Enrollment Form'!$CL392=\"No\"),\"-\",IF(AND('Enrollment Form'!$CL392=\"Yes\",'Enrollment Form'!$CM392=\"\"),\"N\",\"Y\"))","v":"-"},{"$f":"IF(OR('Enrollment Form'!$CN392=\"\",'Enrollment Form'!$CN392=\"No\"),\"-\",IF(AND('Enrollment Form'!$CN392=\"Yes\",'Enrollment Form'!$CO392=\"\"),\"N\",\"Y\"))","v":"-"},{"$f":"IF(OR('Enrollment Form'!$CN392=\"\",'Enrollment Form'!$CN392=\"No\"),\"-\",IF(AND('Enrollment Form'!$CN392=\"Yes\",'Enrollment Form'!$CP392=\"\"),\"N\",\"Y\"))","v":"-"},{"$f":"IF('Enrollment Form'!B392<>\"Subscriber\",\"-\",IF(AND('Enrollment Form'!B392=\"Subscriber\",'Enrollment Form'!C392=\"Enroll\",'Enrollment Form'!AA392=\"\"),\"N\",\"Y\"))","v":"-"},{"$f":"IF(OR('Enrollment Form'!B392=\"Subscriber\",'Enrollment Form'!B392=\"\"),\"-\",IF('Enrollment Form'!BP392=\"\",\"N\",\"Y\"))","v":"-"},{"$f":"IF('Enrollment Form'!B392<>\"Subscriber\",\"-\",IF(AND('Enrollment Form'!B392=\"Subscriber\",'Enrollment Form'!G392=\"\"),\"N\",\"Y\"))","v":"-"},{"$f":"IF('Enrollment Form'!A392=\"\",\"\",IF('Enrollment Form'!B392=\"Subscriber\",\"-\",IF(AND('Enrollment Form'!B392<>\"Subscriber\",'Enrollment Form'!G392='Enrollment Form'!H392),\"N\",\"Y\")))","v":""},0]
[393,{"$f":"IF('Enrollment Form'!$A393<>\"\",\"Y\",\"N\")","v":"N"},{"$f":"IF(AND('Enrollment Form'!$B393=\"\",'Enrollment Form'!$C393<>\"\"),\"N\",IF($B386=\"N\",\"\",\"Y\"))","v":""},{"$f":"IF(OR($B386=\"N\",'Enrollment Form'!G393=\"\"),\"\",IF('Enrollment Form'!$B393<>\"Subscriber\",\"\",IF('Enrollment Form'!$G393='Enrollment Form'!$H393,\"Y\",\"N\")))","v":""},{"$f":"IF($B386=\"N\",\"\",IF(AND(COUNTIFS('Enrollment Form'!$H$11:$H$1000,'Enrollment Form'!$H393,'Enrollment Form'!$B$11:$B$1000,'Enrollment Form'!$B393)>1,'Enrollment Form'!$H393<>\"\"),\"N\",\"Y\"))","v":""},{"$f":"IF($B386=\"N\",\"\",IF(LEN('Enrollment Form'!$Y393)=0,\"\",IF(LEN('Enrollment Form'!$Y393)<>5,\"N\",\"Y\")))","v":""},{"$f":"IF($B386=\"N\",\"\",IF(LEN('Enrollment Form'!$AD393=0),\"\",IF(LEN('Enrollment Form'!$AD393)<>5,\"N\",\"Y\")))","v":""},{"$f":"IF($B386=\"N\",\"\",IF(LEN('Enrollment Form'!$BS393=0),\"\",IF(LEN('Enrollment Form'!$BS393)<>5,\"N\",\"Y\")))","v":""},{"$f":"IF($B386=\"N\",\"\",IF(LEN('Enrollment Form'!$AE393)=0,\"\",IF(LEN('Enrollment Form'!$AE393)<>10,\"N\",\"Y\")))","v":""},{"$f":"IF($B386=\"N\",\"\",IF(LEN('Enrollment Form'!$AF393)=0,\"\",IF(LEN('Enrollment Form'!$AF393)<>10,\"N\",\"Y\")))","v":""},{"$f":"IF('Enrollment Form'!$O393<>\"Graded\",\"-\",IF(AND('Enrollment Form'!$O393=\"Graded\",'Enrollment Form'!$AR393<>\"\"),\"Y\",\"N\"))","v":"-"},{"$f":"IF($B386=\"N\",\"\",IF(OR('Enrollment Form'!$B393<>\"Subscriber\",'Enrollment Form'!$C393=\"ROC\"),\"-\",IF(AND('Enrollment Form'!$B393=\"Subscriber\",'Enrollment Form'!$C393=\"Enroll\",'Enrollment Form'!$AJ393<>\"\"),\"Y\",\"N\")))","v":""},{"$f":"IF($B386=\"N\",\"\",IF(OR('Enrollment Form'!$B393<>\"Subscriber\",'Enrollment Form'!$C393=\"ROC\"),\"-\",IF(AND('Enrollment Form'!$B393=\"Subscriber\",'Enrollment Form'!$C393=\"Enroll\",'Enrollment Form'!$AK393<>\"\"),\"Y\",\"N\")))","v":""},{"$f":"IF($B386=\"N\",\"\",IF(OR('Enrollment Form'!$B393<>\"Subscriber\",'Enrollment Form'!$C393=\"ROC\"),\"-\",IF(AND('Enrollment Form'!$B393=\"Subscriber\",'Enrollment Form'!$C393=\"Enroll\",'Enrollment Form'!$AL393<>\"\"),\"Y\",\"N\")))","v":""},{"$f":"IF($B386=\"N\",\"\",IF(OR('Enrollment Form'!$B393<>\"Subscriber\",'Enrollment Form'!$C393=\"ROC\"),\"-\",IF(AND('Enrollment Form'!$B393=\"Subscriber\",'Enrollment Form'!$C393=\"Enroll\",'Enrollment Form'!$AP393<>\"\"),\"Y\",\"N\")))","v":""},{"$f":"IF($B386=\"N\",\"\",IF(OR('Enrollment Form'!$B393<>\"Subscriber\",'Enrollment Form'!$C393=\"ROC\"),\"-\",IF(AND('Enrollment Form'!$B393=\"Subscriber\",'Enrollment Form'!$C393=\"Enroll\",'Enrollment Form'!$AQ393<>\"\"),\"Y\",\"N\")))","v":""},{"$f":"IF($B386=\"N\",\"\",IF(OR('Enrollment Form'!$B393<>\"Subscriber\",'Enrollment Form'!$C393=\"ROC\"),\"-\",IF(AND('Enrollment Form'!$B393=\"Subscriber\",'Enrollment Form'!$C393=\"Enroll\",'Enrollment Form'!$AS393<>\"\"),\"Y\",\"N\")))","v":""},{"$f":"IF($B386=\"N\",\"\",IF($Q386=\"-\",\"-\",IF(AND($Q386=\"Y\",'Enrollment Form'!$AS393=\"No\"),\"-\",IF(AND($Q386=\"Y\",'Enrollment Form'!$AS393=\"Yes\",'Enrollment Form'!$AT393<>\"\"),\"Y\",\"N\"))))","v":""},{"$f":"IF($B386=\"N\",\"\",IF(OR('Enrollment Form'!$B393<>\"Subscriber\",'Enrollment Form'!$C393=\"ROC\"),\"-\",IF(AND('Enrollment Form'!$B393=\"Subscriber\",'Enrollment Form'!$C393=\"Enroll\",'Enrollment Form'!$CV393<>\"\"),\"Y\",\"N\")))","v":""},{"$f":"IF($B386=\"N\",\"\",IF($S386=\"-\",\"-\",IF(AND($S386=\"Y\",'Enrollment Form'!$CV393=\"No\"),\"-\",IF(AND($S386=\"Y\",'Enrollment Form'!$CV393=\"Yes\",'Enrollment Form'!$CW393<>\"\"),\"Y\",\"N\"))))","v":""},{"$f":"IF(OR('Enrollment Form'!$AY393=\"Yes\",'Enrollment Form'!$AY393=\"\"),\"-\",IF(OR(AND('Enrollment Form'!$AY393=\"No\",ISERROR(FIND(\"HMO\",VLOOKUP('Enrollment Form'!G393,'Enrollment Form'!H$11:J$1000,3,FALSE),1))=FALSE,COUNTA('Enrollment Form'!$AZ393:$BC393)=4),AND('Enrollment Form'!$AY393=\"No\",ISERROR(FIND(\"HMO\",VLOOKUP('Enrollment Form'!G393,'Enrollment Form'!H$11:J$1000,3,FALSE),1))=FALSE,COUNTA('Enrollment Form'!$BT393:$BW393)=4)),\"Y\",\"N\"))","v":"-"},{"$f":"IF($B386=\"N\",\"\",IF('Enrollment Form'!$B393=\"Subscriber\",\"-\",IF(COUNTA('Enrollment Form'!$BL393,'Enrollment Form'!$BN393)=2,\"Y\",\"N\")))","v":""},{"$f":"IF($B386=\"N\",\"\",IF(OR('Enrollment Form'!$AX393=\"\",'Enrollment Form'!$AX393=\"No\"),\"-\",IF(AND('Enrollment Form'!$AX393=\"Yes\",COUNTA('Enrollment Form'!$CR393)=1),\"Y\",\"N\")))","v":""},{"$f":"IF(OR('Enrollment Form'!$CR393=\"\",'Enrollment Form'!$CR393=\"No\"),\"-\",IF(COUNTA('Enrollment Form'!$CT393:$CU393)=2,\"Y\",\"N\"))","v":"-"},{"$f":"IF($B386=\"N\",\"\",IF(COUNTIF('Enrollment Form'!$DG393:$DP393,\"Other\")=COUNTA('Enrollment Form'!$DK393,'Enrollment Form'!$DH393,'Enrollment Form'!$DN393,'Enrollment Form'!$DQ393),\"Y\",\"N\"))","v":""},{"$f":"IF($B386=\"N\",\"\",IF(OR('Enrollment Form'!B393<>\"Subscriber\",'Enrollment Form'!C393=\"ROC\",COUNTIF('Enrollment Form'!AV393:AW393,\"Yes\")>=1),\"-\",IF(AND('Enrollment Form'!C393=\"Enroll\",COUNTIF('Enrollment Form'!AV393:AW393,\"No\")=2,'Enrollment Form'!AX393=\"\"),\"N\",\"Y\")))","v":""},{"$f":"IF(OR(B386=\"N\",'Enrollment Form'!B393<>\"Subscriber\",'Enrollment Form'!C393=\"ROC\",'Enrollment Form'!O393<>\"Multiple of Salary\"),\"-\",IF(COUNTA('Enrollment Form'!T393:U393)<2,\"N\",\"Y\"))","v":"-"},{"$f":"IF(B386=\"N\",\"\",IF(OR('Enrollment Form'!C393=\"ROC\",'Enrollment Form'!B393<>\"Subscriber\",'Enrollment Form'!O393=\"Waive\",'Enrollment Form'!O393=\"\"),\"-\",IF('Enrollment Form'!P393=\"\",\"N\",\"Y\")))","v":""},{"$f":"IF($B386=\"N\",\"\",IF(AND('Enrollment Form'!$C393=\"ROC\",'Enrollment Form'!$DR393<>\"\"),\"Y\",IF(AND('Enrollment Form'!$C393=\"ROC\",'Enrollment Form'!$DR393=\"\"),\"N\",IF(AND('Enrollment Form'!$C393=\"Enroll\",'Enrollment Form'!$B393=\"Subscriber\",'Enrollment Form'!$CX393=\"No\",'Enrollment Form'!$DR393=\"\"),\"N\",IF(AND('Enrollment Form'!$C393=\"Enroll\",'Enrollment Form'!$B393=\"Subscriber\",'Enrollment Form'!$CX393=\"Yes\"),\"-\",\"Y\")))))","v":""},{"$f":"IF($B386=\"N\",\"\",IF(AND('Enrollment Form'!$C393=\"ROC\",'Enrollment Form'!$DS393<>\"\"),\"Y\",IF(AND('Enrollment Form'!$C393=\"ROC\",'Enrollment Form'!$DS393=\"\"),\"N\",IF(AND('Enrollment Form'!$C393=\"Enroll\",'Enrollment Form'!$B393=\"Subscriber\",'Enrollment Form'!$CX393=\"No\",'Enrollment Form'!$DS393=\"\"),\"N\",IF(AND('Enrollment Form'!$C393=\"Enroll\",'Enrollment Form'!$B393=\"Subscriber\",'Enrollment Form'!$CX393=\"Yes\"),\"-\",\"Y\")))))","v":""},{"$f":"IF('Enrollment Form'!AH393=\"\",\"\",IF(ISERROR(SEARCH(\".\",'Enrollment Form'!AH393,SEARCH(\"@\",'Enrollment Form'!AH393))),\"N\",\"Y\"))","v":""},{"$f":"IF(OR($B386=\"N\",'Enrollment Form'!$G393=\"\"),\"\",IF('Enrollment Form'!$B393<>\"Subscriber\",\"-\",IF(COUNTIF('Enrollment Form'!$AV393:$AW393,\"Yes\")=2,\"N\",\"Y\")))","v":""},{"$f":"IF(OR('Enrollment Form'!$CJ393=\"\",'Enrollment Form'!$CJ393=\"No\"),\"-\",IF(AND('Enrollment Form'!$CJ393=\"Yes\",'Enrollment Form'!$CK393=\"\"),\"N\",\"Y\"))","v":"-"},{"$f":"IF(OR('Enrollment Form'!$CL393=\"\",'Enrollment Form'!$CL393=\"No\"),\"-\",IF(AND('Enrollment Form'!$CL393=\"Yes\",'Enrollment Form'!$CM393=\"\"),\"N\",\"Y\"))","v":"-"},{"$f":"IF(OR('Enrollment Form'!$CN393=\"\",'Enrollment Form'!$CN393=\"No\"),\"-\",IF(AND('Enrollment Form'!$CN393=\"Yes\",'Enrollment Form'!$CO393=\"\"),\"N\",\"Y\"))","v":"-"},{"$f":"IF(OR('Enrollment Form'!$CN393=\"\",'Enrollment Form'!$CN393=\"No\"),\"-\",IF(AND('Enrollment Form'!$CN393=\"Yes\",'Enrollment Form'!$CP393=\"\"),\"N\",\"Y\"))","v":"-"},{"$f":"IF('Enrollment Form'!B393<>\"Subscriber\",\"-\",IF(AND('Enrollment Form'!B393=\"Subscriber\",'Enrollment Form'!C393=\"Enroll\",'Enrollment Form'!AA393=\"\"),\"N\",\"Y\"))","v":"-"},{"$f":"IF(OR('Enrollment Form'!B393=\"Subscriber\",'Enrollment Form'!B393=\"\"),\"-\",IF('Enrollment Form'!BP393=\"\",\"N\",\"Y\"))","v":"-"},{"$f":"IF('Enrollment Form'!B393<>\"Subscriber\",\"-\",IF(AND('Enrollment Form'!B393=\"Subscriber\",'Enrollment Form'!G393=\"\"),\"N\",\"Y\"))","v":"-"},{"$f":"IF('Enrollment Form'!A393=\"\",\"\",IF('Enrollment Form'!B393=\"Subscriber\",\"-\",IF(AND('Enrollment Form'!B393<>\"Subscriber\",'Enrollment Form'!G393='Enrollment Form'!H393),\"N\",\"Y\")))","v":""},0]
[394,{"$f":"IF('Enrollment Form'!$A394<>\"\",\"Y\",\"N\")","v":"N"},{"$f":"IF(AND('Enrollment Form'!$B394=\"\",'Enrollment Form'!$C394<>\"\"),\"N\",IF($B387=\"N\",\"\",\"Y\"))","v":""},{"$f":"IF(OR($B387=\"N\",'Enrollment Form'!G394=\"\"),\"\",IF('Enrollment Form'!$B394<>\"Subscriber\",\"\",IF('Enrollment Form'!$G394='Enrollment Form'!$H394,\"Y\",\"N\")))","v":""},{"$f":"IF($B387=\"N\",\"\",IF(AND(COUNTIFS('Enrollment Form'!$H$11:$H$1000,'Enrollment Form'!$H394,'Enrollment Form'!$B$11:$B$1000,'Enrollment Form'!$B394)>1,'Enrollment Form'!$H394<>\"\"),\"N\",\"Y\"))","v":""},{"$f":"IF($B387=\"N\",\"\",IF(LEN('Enrollment Form'!$Y394)=0,\"\",IF(LEN('Enrollment Form'!$Y394)<>5,\"N\",\"Y\")))","v":""},{"$f":"IF($B387=\"N\",\"\",IF(LEN('Enrollment Form'!$AD394=0),\"\",IF(LEN('Enrollment Form'!$AD394)<>5,\"N\",\"Y\")))","v":""},{"$f":"IF($B387=\"N\",\"\",IF(LEN('Enrollment Form'!$BS394=0),\"\",IF(LEN('Enrollment Form'!$BS394)<>5,\"N\",\"Y\")))","v":""},{"$f":"IF($B387=\"N\",\"\",IF(LEN('Enrollment Form'!$AE394)=0,\"\",IF(LEN('Enrollment Form'!$AE394)<>10,\"N\",\"Y\")))","v":""},{"$f":"IF($B387=\"N\",\"\",IF(LEN('Enrollment Form'!$AF394)=0,\"\",IF(LEN('Enrollment Form'!$AF394)<>10,\"N\",\"Y\")))","v":""},{"$f":"IF('Enrollment Form'!$O394<>\"Graded\",\"-\",IF(AND('Enrollment Form'!$O394=\"Graded\",'Enrollment Form'!$AR394<>\"\"),\"Y\",\"N\"))","v":"-"},{"$f":"IF($B387=\"N\",\"\",IF(OR('Enrollment Form'!$B394<>\"Subscriber\",'Enrollment Form'!$C394=\"ROC\"),\"-\",IF(AND('Enrollment Form'!$B394=\"Subscriber\",'Enrollment Form'!$C394=\"Enroll\",'Enrollment Form'!$AJ394<>\"\"),\"Y\",\"N\")))","v":""},{"$f":"IF($B387=\"N\",\"\",IF(OR('Enrollment Form'!$B394<>\"Subscriber\",'Enrollment Form'!$C394=\"ROC\"),\"-\",IF(AND('Enrollment Form'!$B394=\"Subscriber\",'Enrollment Form'!$C394=\"Enroll\",'Enrollment Form'!$AK394<>\"\"),\"Y\",\"N\")))","v":""},{"$f":"IF($B387=\"N\",\"\",IF(OR('Enrollment Form'!$B394<>\"Subscriber\",'Enrollment Form'!$C394=\"ROC\"),\"-\",IF(AND('Enrollment Form'!$B394=\"Subscriber\",'Enrollment Form'!$C394=\"Enroll\",'Enrollment Form'!$AL394<>\"\"),\"Y\",\"N\")))","v":""},{"$f":"IF($B387=\"N\",\"\",IF(OR('Enrollment Form'!$B394<>\"Subscriber\",'Enrollment Form'!$C394=\"ROC\"),\"-\",IF(AND('Enrollment Form'!$B394=\"Subscriber\",'Enrollment Form'!$C394=\"Enroll\",'Enrollment Form'!$AP394<>\"\"),\"Y\",\"N\")))","v":""},{"$f":"IF($B387=\"N\",\"\",IF(OR('Enrollment Form'!$B394<>\"Subscriber\",'Enrollment Form'!$C394=\"ROC\"),\"-\",IF(AND('Enrollment Form'!$B394=\"Subscriber\",'Enrollment Form'!$C394=\"Enroll\",'Enrollment Form'!$AQ394<>\"\"),\"Y\",\"N\")))","v":""},{"$f":"IF($B387=\"N\",\"\",IF(OR('Enrollment Form'!$B394<>\"Subscriber\",'Enrollment Form'!$C394=\"ROC\"),\"-\",IF(AND('Enrollment Form'!$B394=\"Subscriber\",'Enrollment Form'!$C394=\"Enroll\",'Enrollment Form'!$AS394<>\"\"),\"Y\",\"N\")))","v":""},{"$f":"IF($B387=\"N\",\"\",IF($Q387=\"-\",\"-\",IF(AND($Q387=\"Y\",'Enrollment Form'!$AS394=\"No\"),\"-\",IF(AND($Q387=\"Y\",'Enrollment Form'!$AS394=\"Yes\",'Enrollment Form'!$AT394<>\"\"),\"Y\",\"N\"))))","v":""},{"$f":"IF($B387=\"N\",\"\",IF(OR('Enrollment Form'!$B394<>\"Subscriber\",'Enrollment Form'!$C394=\"ROC\"),\"-\",IF(AND('Enrollment Form'!$B394=\"Subscriber\",'Enrollment Form'!$C394=\"Enroll\",'Enrollment Form'!$CV394<>\"\"),\"Y\",\"N\")))","v":""},{"$f":"IF($B387=\"N\",\"\",IF($S387=\"-\",\"-\",IF(AND($S387=\"Y\",'Enrollment Form'!$CV394=\"No\"),\"-\",IF(AND($S387=\"Y\",'Enrollment Form'!$CV394=\"Yes\",'Enrollment Form'!$CW394<>\"\"),\"Y\",\"N\"))))","v":""},{"$f":"IF(OR('Enrollment Form'!$AY394=\"Yes\",'Enrollment Form'!$AY394=\"\"),\"-\",IF(OR(AND('Enrollment Form'!$AY394=\"No\",ISERROR(FIND(\"HMO\",VLOOKUP('Enrollment Form'!G394,'Enrollment Form'!H$11:J$1000,3,FALSE),1))=FALSE,COUNTA('Enrollment Form'!$AZ394:$BC394)=4),AND('Enrollment Form'!$AY394=\"No\",ISERROR(FIND(\"HMO\",VLOOKUP('Enrollment Form'!G394,'Enrollment Form'!H$11:J$1000,3,FALSE),1))=FALSE,COUNTA('Enrollment Form'!$BT394:$BW394)=4)),\"Y\",\"N\"))","v":"-"},{"$f":"IF($B387=\"N\",\"\",IF('Enrollment Form'!$B394=\"Subscriber\",\"-\",IF(COUNTA('Enrollment Form'!$BL394,'Enrollment Form'!$BN394)=2,\"Y\",\"N\")))","v":""},{"$f":"IF($B387=\"N\",\"\",IF(OR('Enrollment Form'!$AX394=\"\",'Enrollment Form'!$AX394=\"No\"),\"-\",IF(AND('Enrollment Form'!$AX394=\"Yes\",COUNTA('Enrollment Form'!$CR394)=1),\"Y\",\"N\")))","v":""},{"$f":"IF(OR('Enrollment Form'!$CR394=\"\",'Enrollment Form'!$CR394=\"No\"),\"-\",IF(COUNTA('Enrollment Form'!$CT394:$CU394)=2,\"Y\",\"N\"))","v":"-"},{"$f":"IF($B387=\"N\",\"\",IF(COUNTIF('Enrollment Form'!$DG394:$DP394,\"Other\")=COUNTA('Enrollment Form'!$DK394,'Enrollment Form'!$DH394,'Enrollment Form'!$DN394,'Enrollment Form'!$DQ394),\"Y\",\"N\"))","v":""},{"$f":"IF($B387=\"N\",\"\",IF(OR('Enrollment Form'!B394<>\"Subscriber\",'Enrollment Form'!C394=\"ROC\",COUNTIF('Enrollment Form'!AV394:AW394,\"Yes\")>=1),\"-\",IF(AND('Enrollment Form'!C394=\"Enroll\",COUNTIF('Enrollment Form'!AV394:AW394,\"No\")=2,'Enrollment Form'!AX394=\"\"),\"N\",\"Y\")))","v":""},{"$f":"IF(OR(B387=\"N\",'Enrollment Form'!B394<>\"Subscriber\",'Enrollment Form'!C394=\"ROC\",'Enrollment Form'!O394<>\"Multiple of Salary\"),\"-\",IF(COUNTA('Enrollment Form'!T394:U394)<2,\"N\",\"Y\"))","v":"-"},{"$f":"IF(B387=\"N\",\"\",IF(OR('Enrollment Form'!C394=\"ROC\",'Enrollment Form'!B394<>\"Subscriber\",'Enrollment Form'!O394=\"Waive\",'Enrollment Form'!O394=\"\"),\"-\",IF('Enrollment Form'!P394=\"\",\"N\",\"Y\")))","v":""},{"$f":"IF($B387=\"N\",\"\",IF(AND('Enrollment Form'!$C394=\"ROC\",'Enrollment Form'!$DR394<>\"\"),\"Y\",IF(AND('Enrollment Form'!$C394=\"ROC\",'Enrollment Form'!$DR394=\"\"),\"N\",IF(AND('Enrollment Form'!$C394=\"Enroll\",'Enrollment Form'!$B394=\"Subscriber\",'Enrollment Form'!$CX394=\"No\",'Enrollment Form'!$DR394=\"\"),\"N\",IF(AND('Enrollment Form'!$C394=\"Enroll\",'Enrollment Form'!$B394=\"Subscriber\",'Enrollment Form'!$CX394=\"Yes\"),\"-\",\"Y\")))))","v":""},{"$f":"IF($B387=\"N\",\"\",IF(AND('Enrollment Form'!$C394=\"ROC\",'Enrollment Form'!$DS394<>\"\"),\"Y\",IF(AND('Enrollment Form'!$C394=\"ROC\",'Enrollment Form'!$DS394=\"\"),\"N\",IF(AND('Enrollment Form'!$C394=\"Enroll\",'Enrollment Form'!$B394=\"Subscriber\",'Enrollment Form'!$CX394=\"No\",'Enrollment Form'!$DS394=\"\"),\"N\",IF(AND('Enrollment Form'!$C394=\"Enroll\",'Enrollment Form'!$B394=\"Subscriber\",'Enrollment Form'!$CX394=\"Yes\"),\"-\",\"Y\")))))","v":""},{"$f":"IF('Enrollment Form'!AH394=\"\",\"\",IF(ISERROR(SEARCH(\".\",'Enrollment Form'!AH394,SEARCH(\"@\",'Enrollment Form'!AH394))),\"N\",\"Y\"))","v":""},{"$f":"IF(OR($B387=\"N\",'Enrollment Form'!$G394=\"\"),\"\",IF('Enrollment Form'!$B394<>\"Subscriber\",\"-\",IF(COUNTIF('Enrollment Form'!$AV394:$AW394,\"Yes\")=2,\"N\",\"Y\")))","v":""},{"$f":"IF(OR('Enrollment Form'!$CJ394=\"\",'Enrollment Form'!$CJ394=\"No\"),\"-\",IF(AND('Enrollment Form'!$CJ394=\"Yes\",'Enrollment Form'!$CK394=\"\"),\"N\",\"Y\"))","v":"-"},{"$f":"IF(OR('Enrollment Form'!$CL394=\"\",'Enrollment Form'!$CL394=\"No\"),\"-\",IF(AND('Enrollment Form'!$CL394=\"Yes\",'Enrollment Form'!$CM394=\"\"),\"N\",\"Y\"))","v":"-"},{"$f":"IF(OR('Enrollment Form'!$CN394=\"\",'Enrollment Form'!$CN394=\"No\"),\"-\",IF(AND('Enrollment Form'!$CN394=\"Yes\",'Enrollment Form'!$CO394=\"\"),\"N\",\"Y\"))","v":"-"},{"$f":"IF(OR('Enrollment Form'!$CN394=\"\",'Enrollment Form'!$CN394=\"No\"),\"-\",IF(AND('Enrollment Form'!$CN394=\"Yes\",'Enrollment Form'!$CP394=\"\"),\"N\",\"Y\"))","v":"-"},{"$f":"IF('Enrollment Form'!B394<>\"Subscriber\",\"-\",IF(AND('Enrollment Form'!B394=\"Subscriber\",'Enrollment Form'!C394=\"Enroll\",'Enrollment Form'!AA394=\"\"),\"N\",\"Y\"))","v":"-"},{"$f":"IF(OR('Enrollment Form'!B394=\"Subscriber\",'Enrollment Form'!B394=\"\"),\"-\",IF('Enrollment Form'!BP394=\"\",\"N\",\"Y\"))","v":"-"},{"$f":"IF('Enrollment Form'!B394<>\"Subscriber\",\"-\",IF(AND('Enrollment Form'!B394=\"Subscriber\",'Enrollment Form'!G394=\"\"),\"N\",\"Y\"))","v":"-"},{"$f":"IF('Enrollment Form'!A394=\"\",\"\",IF('Enrollment Form'!B394=\"Subscriber\",\"-\",IF(AND('Enrollment Form'!B394<>\"Subscriber\",'Enrollment Form'!G394='Enrollment Form'!H394),\"N\",\"Y\")))","v":""},0]
[395,{"$f":"IF('Enrollment Form'!$A395<>\"\",\"Y\",\"N\")","v":"N"},{"$f":"IF(AND('Enrollment Form'!$B395=\"\",'Enrollment Form'!$C395<>\"\"),\"N\",IF($B388=\"N\",\"\",\"Y\"))","v":""},{"$f":"IF(OR($B388=\"N\",'Enrollment Form'!G395=\"\"),\"\",IF('Enrollment Form'!$B395<>\"Subscriber\",\"\",IF('Enrollment Form'!$G395='Enrollment Form'!$H395,\"Y\",\"N\")))","v":""},{"$f":"IF($B388=\"N\",\"\",IF(AND(COUNTIFS('Enrollment Form'!$H$11:$H$1000,'Enrollment Form'!$H395,'Enrollment Form'!$B$11:$B$1000,'Enrollment Form'!$B395)>1,'Enrollment Form'!$H395<>\"\"),\"N\",\"Y\"))","v":""},{"$f":"IF($B388=\"N\",\"\",IF(LEN('Enrollment Form'!$Y395)=0,\"\",IF(LEN('Enrollment Form'!$Y395)<>5,\"N\",\"Y\")))","v":""},{"$f":"IF($B388=\"N\",\"\",IF(LEN('Enrollment Form'!$AD395=0),\"\",IF(LEN('Enrollment Form'!$AD395)<>5,\"N\",\"Y\")))","v":""},{"$f":"IF($B388=\"N\",\"\",IF(LEN('Enrollment Form'!$BS395=0),\"\",IF(LEN('Enrollment Form'!$BS395)<>5,\"N\",\"Y\")))","v":""},{"$f":"IF($B388=\"N\",\"\",IF(LEN('Enrollment Form'!$AE395)=0,\"\",IF(LEN('Enrollment Form'!$AE395)<>10,\"N\",\"Y\")))","v":""},{"$f":"IF($B388=\"N\",\"\",IF(LEN('Enrollment Form'!$AF395)=0,\"\",IF(LEN('Enrollment Form'!$AF395)<>10,\"N\",\"Y\")))","v":""},{"$f":"IF('Enrollment Form'!$O395<>\"Graded\",\"-\",IF(AND('Enrollment Form'!$O395=\"Graded\",'Enrollment Form'!$AR395<>\"\"),\"Y\",\"N\"))","v":"-"},{"$f":"IF($B388=\"N\",\"\",IF(OR('Enrollment Form'!$B395<>\"Subscriber\",'Enrollment Form'!$C395=\"ROC\"),\"-\",IF(AND('Enrollment Form'!$B395=\"Subscriber\",'Enrollment Form'!$C395=\"Enroll\",'Enrollment Form'!$AJ395<>\"\"),\"Y\",\"N\")))","v":""},{"$f":"IF($B388=\"N\",\"\",IF(OR('Enrollment Form'!$B395<>\"Subscriber\",'Enrollment Form'!$C395=\"ROC\"),\"-\",IF(AND('Enrollment Form'!$B395=\"Subscriber\",'Enrollment Form'!$C395=\"Enroll\",'Enrollment Form'!$AK395<>\"\"),\"Y\",\"N\")))","v":""},{"$f":"IF($B388=\"N\",\"\",IF(OR('Enrollment Form'!$B395<>\"Subscriber\",'Enrollment Form'!$C395=\"ROC\"),\"-\",IF(AND('Enrollment Form'!$B395=\"Subscriber\",'Enrollment Form'!$C395=\"Enroll\",'Enrollment Form'!$AL395<>\"\"),\"Y\",\"N\")))","v":""},{"$f":"IF($B388=\"N\",\"\",IF(OR('Enrollment Form'!$B395<>\"Subscriber\",'Enrollment Form'!$C395=\"ROC\"),\"-\",IF(AND('Enrollment Form'!$B395=\"Subscriber\",'Enrollment Form'!$C395=\"Enroll\",'Enrollment Form'!$AP395<>\"\"),\"Y\",\"N\")))","v":""},{"$f":"IF($B388=\"N\",\"\",IF(OR('Enrollment Form'!$B395<>\"Subscriber\",'Enrollment Form'!$C395=\"ROC\"),\"-\",IF(AND('Enrollment Form'!$B395=\"Subscriber\",'Enrollment Form'!$C395=\"Enroll\",'Enrollment Form'!$AQ395<>\"\"),\"Y\",\"N\")))","v":""},{"$f":"IF($B388=\"N\",\"\",IF(OR('Enrollment Form'!$B395<>\"Subscriber\",'Enrollment Form'!$C395=\"ROC\"),\"-\",IF(AND('Enrollment Form'!$B395=\"Subscriber\",'Enrollment Form'!$C395=\"Enroll\",'Enrollment Form'!$AS395<>\"\"),\"Y\",\"N\")))","v":""},{"$f":"IF($B388=\"N\",\"\",IF($Q388=\"-\",\"-\",IF(AND($Q388=\"Y\",'Enrollment Form'!$AS395=\"No\"),\"-\",IF(AND($Q388=\"Y\",'Enrollment Form'!$AS395=\"Yes\",'Enrollment Form'!$AT395<>\"\"),\"Y\",\"N\"))))","v":""},{"$f":"IF($B388=\"N\",\"\",IF(OR('Enrollment Form'!$B395<>\"Subscriber\",'Enrollment Form'!$C395=\"ROC\"),\"-\",IF(AND('Enrollment Form'!$B395=\"Subscriber\",'Enrollment Form'!$C395=\"Enroll\",'Enrollment Form'!$CV395<>\"\"),\"Y\",\"N\")))","v":""},{"$f":"IF($B388=\"N\",\"\",IF($S388=\"-\",\"-\",IF(AND($S388=\"Y\",'Enrollment Form'!$CV395=\"No\"),\"-\",IF(AND($S388=\"Y\",'Enrollment Form'!$CV395=\"Yes\",'Enrollment Form'!$CW395<>\"\"),\"Y\",\"N\"))))","v":""},{"$f":"IF(OR('Enrollment Form'!$AY395=\"Yes\",'Enrollment Form'!$AY395=\"\"),\"-\",IF(OR(AND('Enrollment Form'!$AY395=\"No\",ISERROR(FIND(\"HMO\",VLOOKUP('Enrollment Form'!G395,'Enrollment Form'!H$11:J$1000,3,FALSE),1))=FALSE,COUNTA('Enrollment Form'!$AZ395:$BC395)=4),AND('Enrollment Form'!$AY395=\"No\",ISERROR(FIND(\"HMO\",VLOOKUP('Enrollment Form'!G395,'Enrollment Form'!H$11:J$1000,3,FALSE),1))=FALSE,COUNTA('Enrollment Form'!$BT395:$BW395)=4)),\"Y\",\"N\"))","v":"-"},{"$f":"IF($B388=\"N\",\"\",IF('Enrollment Form'!$B395=\"Subscriber\",\"-\",IF(COUNTA('Enrollment Form'!$BL395,'Enrollment Form'!$BN395)=2,\"Y\",\"N\")))","v":""},{"$f":"IF($B388=\"N\",\"\",IF(OR('Enrollment Form'!$AX395=\"\",'Enrollment Form'!$AX395=\"No\"),\"-\",IF(AND('Enrollment Form'!$AX395=\"Yes\",COUNTA('Enrollment Form'!$CR395)=1),\"Y\",\"N\")))","v":""},{"$f":"IF(OR('Enrollment Form'!$CR395=\"\",'Enrollment Form'!$CR395=\"No\"),\"-\",IF(COUNTA('Enrollment Form'!$CT395:$CU395)=2,\"Y\",\"N\"))","v":"-"},{"$f":"IF($B388=\"N\",\"\",IF(COUNTIF('Enrollment Form'!$DG395:$DP395,\"Other\")=COUNTA('Enrollment Form'!$DK395,'Enrollment Form'!$DH395,'Enrollment Form'!$DN395,'Enrollment Form'!$DQ395),\"Y\",\"N\"))","v":""},{"$f":"IF($B388=\"N\",\"\",IF(OR('Enrollment Form'!B395<>\"Subscriber\",'Enrollment Form'!C395=\"ROC\",COUNTIF('Enrollment Form'!AV395:AW395,\"Yes\")>=1),\"-\",IF(AND('Enrollment Form'!C395=\"Enroll\",COUNTIF('Enrollment Form'!AV395:AW395,\"No\")=2,'Enrollment Form'!AX395=\"\"),\"N\",\"Y\")))","v":""},{"$f":"IF(OR(B388=\"N\",'Enrollment Form'!B395<>\"Subscriber\",'Enrollment Form'!C395=\"ROC\",'Enrollment Form'!O395<>\"Multiple of Salary\"),\"-\",IF(COUNTA('Enrollment Form'!T395:U395)<2,\"N\",\"Y\"))","v":"-"},{"$f":"IF(B388=\"N\",\"\",IF(OR('Enrollment Form'!C395=\"ROC\",'Enrollment Form'!B395<>\"Subscriber\",'Enrollment Form'!O395=\"Waive\",'Enrollment Form'!O395=\"\"),\"-\",IF('Enrollment Form'!P395=\"\",\"N\",\"Y\")))","v":""},{"$f":"IF($B388=\"N\",\"\",IF(AND('Enrollment Form'!$C395=\"ROC\",'Enrollment Form'!$DR395<>\"\"),\"Y\",IF(AND('Enrollment Form'!$C395=\"ROC\",'Enrollment Form'!$DR395=\"\"),\"N\",IF(AND('Enrollment Form'!$C395=\"Enroll\",'Enrollment Form'!$B395=\"Subscriber\",'Enrollment Form'!$CX395=\"No\",'Enrollment Form'!$DR395=\"\"),\"N\",IF(AND('Enrollment Form'!$C395=\"Enroll\",'Enrollment Form'!$B395=\"Subscriber\",'Enrollment Form'!$CX395=\"Yes\"),\"-\",\"Y\")))))","v":""},{"$f":"IF($B388=\"N\",\"\",IF(AND('Enrollment Form'!$C395=\"ROC\",'Enrollment Form'!$DS395<>\"\"),\"Y\",IF(AND('Enrollment Form'!$C395=\"ROC\",'Enrollment Form'!$DS395=\"\"),\"N\",IF(AND('Enrollment Form'!$C395=\"Enroll\",'Enrollment Form'!$B395=\"Subscriber\",'Enrollment Form'!$CX395=\"No\",'Enrollment Form'!$DS395=\"\"),\"N\",IF(AND('Enrollment Form'!$C395=\"Enroll\",'Enrollment Form'!$B395=\"Subscriber\",'Enrollment Form'!$CX395=\"Yes\"),\"-\",\"Y\")))))","v":""},{"$f":"IF('Enrollment Form'!AH395=\"\",\"\",IF(ISERROR(SEARCH(\".\",'Enrollment Form'!AH395,SEARCH(\"@\",'Enrollment Form'!AH395))),\"N\",\"Y\"))","v":""},{"$f":"IF(OR($B388=\"N\",'Enrollment Form'!$G395=\"\"),\"\",IF('Enrollment Form'!$B395<>\"Subscriber\",\"-\",IF(COUNTIF('Enrollment Form'!$AV395:$AW395,\"Yes\")=2,\"N\",\"Y\")))","v":""},{"$f":"IF(OR('Enrollment Form'!$CJ395=\"\",'Enrollment Form'!$CJ395=\"No\"),\"-\",IF(AND('Enrollment Form'!$CJ395=\"Yes\",'Enrollment Form'!$CK395=\"\"),\"N\",\"Y\"))","v":"-"},{"$f":"IF(OR('Enrollment Form'!$CL395=\"\",'Enrollment Form'!$CL395=\"No\"),\"-\",IF(AND('Enrollment Form'!$CL395=\"Yes\",'Enrollment Form'!$CM395=\"\"),\"N\",\"Y\"))","v":"-"},{"$f":"IF(OR('Enrollment Form'!$CN395=\"\",'Enrollment Form'!$CN395=\"No\"),\"-\",IF(AND('Enrollment Form'!$CN395=\"Yes\",'Enrollment Form'!$CO395=\"\"),\"N\",\"Y\"))","v":"-"},{"$f":"IF(OR('Enrollment Form'!$CN395=\"\",'Enrollment Form'!$CN395=\"No\"),\"-\",IF(AND('Enrollment Form'!$CN395=\"Yes\",'Enrollment Form'!$CP395=\"\"),\"N\",\"Y\"))","v":"-"},{"$f":"IF('Enrollment Form'!B395<>\"Subscriber\",\"-\",IF(AND('Enrollment Form'!B395=\"Subscriber\",'Enrollment Form'!C395=\"Enroll\",'Enrollment Form'!AA395=\"\"),\"N\",\"Y\"))","v":"-"},{"$f":"IF(OR('Enrollment Form'!B395=\"Subscriber\",'Enrollment Form'!B395=\"\"),\"-\",IF('Enrollment Form'!BP395=\"\",\"N\",\"Y\"))","v":"-"},{"$f":"IF('Enrollment Form'!B395<>\"Subscriber\",\"-\",IF(AND('Enrollment Form'!B395=\"Subscriber\",'Enrollment Form'!G395=\"\"),\"N\",\"Y\"))","v":"-"},{"$f":"IF('Enrollment Form'!A395=\"\",\"\",IF('Enrollment Form'!B395=\"Subscriber\",\"-\",IF(AND('Enrollment Form'!B395<>\"Subscriber\",'Enrollment Form'!G395='Enrollment Form'!H395),\"N\",\"Y\")))","v":""},{"$f":"COUNTIF(C388:AN388,\"N\")","v":0}]
[396,{"$f":"IF('Enrollment Form'!$A396<>\"\",\"Y\",\"N\")","v":"N"},{"$f":"IF(AND('Enrollment Form'!$B396=\"\",'Enrollment Form'!$C396<>\"\"),\"N\",IF($B389=\"N\",\"\",\"Y\"))","v":""},{"$f":"IF(OR($B389=\"N\",'Enrollment Form'!G396=\"\"),\"\",IF('Enrollment Form'!$B396<>\"Subscriber\",\"\",IF('Enrollment Form'!$G396='Enrollment Form'!$H396,\"Y\",\"N\")))","v":""},{"$f":"IF($B389=\"N\",\"\",IF(AND(COUNTIFS('Enrollment Form'!$H$11:$H$1000,'Enrollment Form'!$H396,'Enrollment Form'!$B$11:$B$1000,'Enrollment Form'!$B396)>1,'Enrollment Form'!$H396<>\"\"),\"N\",\"Y\"))","v":""},{"$f":"IF($B389=\"N\",\"\",IF(LEN('Enrollment Form'!$Y396)=0,\"\",IF(LEN('Enrollment Form'!$Y396)<>5,\"N\",\"Y\")))","v":""},{"$f":"IF($B389=\"N\",\"\",IF(LEN('Enrollment Form'!$AD396=0),\"\",IF(LEN('Enrollment Form'!$AD396)<>5,\"N\",\"Y\")))","v":""},{"$f":"IF($B389=\"N\",\"\",IF(LEN('Enrollment Form'!$BS396=0),\"\",IF(LEN('Enrollment Form'!$BS396)<>5,\"N\",\"Y\")))","v":""},{"$f":"IF($B389=\"N\",\"\",IF(LEN('Enrollment Form'!$AE396)=0,\"\",IF(LEN('Enrollment Form'!$AE396)<>10,\"N\",\"Y\")))","v":""},{"$f":"IF($B389=\"N\",\"\",IF(LEN('Enrollment Form'!$AF396)=0,\"\",IF(LEN('Enrollment Form'!$AF396)<>10,\"N\",\"Y\")))","v":""},{"$f":"IF('Enrollment Form'!$O396<>\"Graded\",\"-\",IF(AND('Enrollment Form'!$O396=\"Graded\",'Enrollment Form'!$AR396<>\"\"),\"Y\",\"N\"))","v":"-"},{"$f":"IF($B389=\"N\",\"\",IF(OR('Enrollment Form'!$B396<>\"Subscriber\",'Enrollment Form'!$C396=\"ROC\"),\"-\",IF(AND('Enrollment Form'!$B396=\"Subscriber\",'Enrollment Form'!$C396=\"Enroll\",'Enrollment Form'!$AJ396<>\"\"),\"Y\",\"N\")))","v":""},{"$f":"IF($B389=\"N\",\"\",IF(OR('Enrollment Form'!$B396<>\"Subscriber\",'Enrollment Form'!$C396=\"ROC\"),\"-\",IF(AND('Enrollment Form'!$B396=\"Subscriber\",'Enrollment Form'!$C396=\"Enroll\",'Enrollment Form'!$AK396<>\"\"),\"Y\",\"N\")))","v":""},{"$f":"IF($B389=\"N\",\"\",IF(OR('Enrollment Form'!$B396<>\"Subscriber\",'Enrollment Form'!$C396=\"ROC\"),\"-\",IF(AND('Enrollment Form'!$B396=\"Subscriber\",'Enrollment Form'!$C396=\"Enroll\",'Enrollment Form'!$AL396<>\"\"),\"Y\",\"N\")))","v":""},{"$f":"IF($B389=\"N\",\"\",IF(OR('Enrollment Form'!$B396<>\"Subscriber\",'Enrollment Form'!$C396=\"ROC\"),\"-\",IF(AND('Enrollment Form'!$B396=\"Subscriber\",'Enrollment Form'!$C396=\"Enroll\",'Enrollment Form'!$AP396<>\"\"),\"Y\",\"N\")))","v":""},{"$f":"IF($B389=\"N\",\"\",IF(OR('Enrollment Form'!$B396<>\"Subscriber\",'Enrollment Form'!$C396=\"ROC\"),\"-\",IF(AND('Enrollment Form'!$B396=\"Subscriber\",'Enrollment Form'!$C396=\"Enroll\",'Enrollment Form'!$AQ396<>\"\"),\"Y\",\"N\")))","v":""},{"$f":"IF($B389=\"N\",\"\",IF(OR('Enrollment Form'!$B396<>\"Subscriber\",'Enrollment Form'!$C396=\"ROC\"),\"-\",IF(AND('Enrollment Form'!$B396=\"Subscriber\",'Enrollment Form'!$C396=\"Enroll\",'Enrollment Form'!$AS396<>\"\"),\"Y\",\"N\")))","v":""},{"$f":"IF($B389=\"N\",\"\",IF($Q389=\"-\",\"-\",IF(AND($Q389=\"Y\",'Enrollment Form'!$AS396=\"No\"),\"-\",IF(AND($Q389=\"Y\",'Enrollment Form'!$AS396=\"Yes\",'Enrollment Form'!$AT396<>\"\"),\"Y\",\"N\"))))","v":""},{"$f":"IF($B389=\"N\",\"\",IF(OR('Enrollment Form'!$B396<>\"Subscriber\",'Enrollment Form'!$C396=\"ROC\"),\"-\",IF(AND('Enrollment Form'!$B396=\"Subscriber\",'Enrollment Form'!$C396=\"Enroll\",'Enrollment Form'!$CV396<>\"\"),\"Y\",\"N\")))","v":""},{"$f":"IF($B389=\"N\",\"\",IF($S389=\"-\",\"-\",IF(AND($S389=\"Y\",'Enrollment Form'!$CV396=\"No\"),\"-\",IF(AND($S389=\"Y\",'Enrollment Form'!$CV396=\"Yes\",'Enrollment Form'!$CW396<>\"\"),\"Y\",\"N\"))))","v":""},{"$f":"IF(OR('Enrollment Form'!$AY396=\"Yes\",'Enrollment Form'!$AY396=\"\"),\"-\",IF(OR(AND('Enrollment Form'!$AY396=\"No\",ISERROR(FIND(\"HMO\",VLOOKUP('Enrollment Form'!G396,'Enrollment Form'!H$11:J$1000,3,FALSE),1))=FALSE,COUNTA('Enrollment Form'!$AZ396:$BC396)=4),AND('Enrollment Form'!$AY396=\"No\",ISERROR(FIND(\"HMO\",VLOOKUP('Enrollment Form'!G396,'Enrollment Form'!H$11:J$1000,3,FALSE),1))=FALSE,COUNTA('Enrollment Form'!$BT396:$BW396)=4)),\"Y\",\"N\"))","v":"-"},{"$f":"IF($B389=\"N\",\"\",IF('Enrollment Form'!$B396=\"Subscriber\",\"-\",IF(COUNTA('Enrollment Form'!$BL396,'Enrollment Form'!$BN396)=2,\"Y\",\"N\")))","v":""},{"$f":"IF($B389=\"N\",\"\",IF(OR('Enrollment Form'!$AX396=\"\",'Enrollment Form'!$AX396=\"No\"),\"-\",IF(AND('Enrollment Form'!$AX396=\"Yes\",COUNTA('Enrollment Form'!$CR396)=1),\"Y\",\"N\")))","v":""},{"$f":"IF(OR('Enrollment Form'!$CR396=\"\",'Enrollment Form'!$CR396=\"No\"),\"-\",IF(COUNTA('Enrollment Form'!$CT396:$CU396)=2,\"Y\",\"N\"))","v":"-"},{"$f":"IF($B389=\"N\",\"\",IF(COUNTIF('Enrollment Form'!$DG396:$DP396,\"Other\")=COUNTA('Enrollment Form'!$DK396,'Enrollment Form'!$DH396,'Enrollment Form'!$DN396,'Enrollment Form'!$DQ396),\"Y\",\"N\"))","v":""},{"$f":"IF($B389=\"N\",\"\",IF(OR('Enrollment Form'!B396<>\"Subscriber\",'Enrollment Form'!C396=\"ROC\",COUNTIF('Enrollment Form'!AV396:AW396,\"Yes\")>=1),\"-\",IF(AND('Enrollment Form'!C396=\"Enroll\",COUNTIF('Enrollment Form'!AV396:AW396,\"No\")=2,'Enrollment Form'!AX396=\"\"),\"N\",\"Y\")))","v":""},{"$f":"IF(OR(B389=\"N\",'Enrollment Form'!B396<>\"Subscriber\",'Enrollment Form'!C396=\"ROC\",'Enrollment Form'!O396<>\"Multiple of Salary\"),\"-\",IF(COUNTA('Enrollment Form'!T396:U396)<2,\"N\",\"Y\"))","v":"-"},{"$f":"IF(B389=\"N\",\"\",IF(OR('Enrollment Form'!C396=\"ROC\",'Enrollment Form'!B396<>\"Subscriber\",'Enrollment Form'!O396=\"Waive\",'Enrollment Form'!O396=\"\"),\"-\",IF('Enrollment Form'!P396=\"\",\"N\",\"Y\")))","v":""},{"$f":"IF($B389=\"N\",\"\",IF(AND('Enrollment Form'!$C396=\"ROC\",'Enrollment Form'!$DR396<>\"\"),\"Y\",IF(AND('Enrollment Form'!$C396=\"ROC\",'Enrollment Form'!$DR396=\"\"),\"N\",IF(AND('Enrollment Form'!$C396=\"Enroll\",'Enrollment Form'!$B396=\"Subscriber\",'Enrollment Form'!$CX396=\"No\",'Enrollment Form'!$DR396=\"\"),\"N\",IF(AND('Enrollment Form'!$C396=\"Enroll\",'Enrollment Form'!$B396=\"Subscriber\",'Enrollment Form'!$CX396=\"Yes\"),\"-\",\"Y\")))))","v":""},{"$f":"IF($B389=\"N\",\"\",IF(AND('Enrollment Form'!$C396=\"ROC\",'Enrollment Form'!$DS396<>\"\"),\"Y\",IF(AND('Enrollment Form'!$C396=\"ROC\",'Enrollment Form'!$DS396=\"\"),\"N\",IF(AND('Enrollment Form'!$C396=\"Enroll\",'Enrollment Form'!$B396=\"Subscriber\",'Enrollment Form'!$CX396=\"No\",'Enrollment Form'!$DS396=\"\"),\"N\",IF(AND('Enrollment Form'!$C396=\"Enroll\",'Enrollment Form'!$B396=\"Subscriber\",'Enrollment Form'!$CX396=\"Yes\"),\"-\",\"Y\")))))","v":""},{"$f":"IF('Enrollment Form'!AH396=\"\",\"\",IF(ISERROR(SEARCH(\".\",'Enrollment Form'!AH396,SEARCH(\"@\",'Enrollment Form'!AH396))),\"N\",\"Y\"))","v":""},{"$f":"IF(OR($B389=\"N\",'Enrollment Form'!$G396=\"\"),\"\",IF('Enrollment Form'!$B396<>\"Subscriber\",\"-\",IF(COUNTIF('Enrollment Form'!$AV396:$AW396,\"Yes\")=2,\"N\",\"Y\")))","v":""},{"$f":"IF(OR('Enrollment Form'!$CJ396=\"\",'Enrollment Form'!$CJ396=\"No\"),\"-\",IF(AND('Enrollment Form'!$CJ396=\"Yes\",'Enrollment Form'!$CK396=\"\"),\"N\",\"Y\"))","v":"-"},{"$f":"IF(OR('Enrollment Form'!$CL396=\"\",'Enrollment Form'!$CL396=\"No\"),\"-\",IF(AND('Enrollment Form'!$CL396=\"Yes\",'Enrollment Form'!$CM396=\"\"),\"N\",\"Y\"))","v":"-"},{"$f":"IF(OR('Enrollment Form'!$CN396=\"\",'Enrollment Form'!$CN396=\"No\"),\"-\",IF(AND('Enrollment Form'!$CN396=\"Yes\",'Enrollment Form'!$CO396=\"\"),\"N\",\"Y\"))","v":"-"},{"$f":"IF(OR('Enrollment Form'!$CN396=\"\",'Enrollment Form'!$CN396=\"No\"),\"-\",IF(AND('Enrollment Form'!$CN396=\"Yes\",'Enrollment Form'!$CP396=\"\"),\"N\",\"Y\"))","v":"-"},{"$f":"IF('Enrollment Form'!B396<>\"Subscriber\",\"-\",IF(AND('Enrollment Form'!B396=\"Subscriber\",'Enrollment Form'!C396=\"Enroll\",'Enrollment Form'!AA396=\"\"),\"N\",\"Y\"))","v":"-"},{"$f":"IF(OR('Enrollment Form'!B396=\"Subscriber\",'Enrollment Form'!B396=\"\"),\"-\",IF('Enrollment Form'!BP396=\"\",\"N\",\"Y\"))","v":"-"},{"$f":"IF('Enrollment Form'!B396<>\"Subscriber\",\"-\",IF(AND('Enrollment Form'!B396=\"Subscriber\",'Enrollment Form'!G396=\"\"),\"N\",\"Y\"))","v":"-"},{"$f":"IF('Enrollment Form'!A396=\"\",\"\",IF('Enrollment Form'!B396=\"Subscriber\",\"-\",IF(AND('Enrollment Form'!B396<>\"Subscriber\",'Enrollment Form'!G396='Enrollment Form'!H396),\"N\",\"Y\")))","v":""},0]
[{"$f":"1+A389","v":397},{"$f":"IF('Enrollment Form'!$A397<>\"\",\"Y\",\"N\")","v":"N"},{"$f":"IF(AND('Enrollment Form'!$B397=\"\",'Enrollment Form'!$C397<>\"\"),\"N\",IF($B390=\"N\",\"\",\"Y\"))","v":""},{"$f":"IF(OR($B390=\"N\",'Enrollment Form'!G397=\"\"),\"\",IF('Enrollment Form'!$B397<>\"Subscriber\",\"\",IF('Enrollment Form'!$G397='Enrollment Form'!$H397,\"Y\",\"N\")))","v":""},{"$f":"IF($B390=\"N\",\"\",IF(AND(COUNTIFS('Enrollment Form'!$H$11:$H$1000,'Enrollment Form'!$H397,'Enrollment Form'!$B$11:$B$1000,'Enrollment Form'!$B397)>1,'Enrollment Form'!$H397<>\"\"),\"N\",\"Y\"))","v":""},{"$f":"IF($B390=\"N\",\"\",IF(LEN('Enrollment Form'!$Y397)=0,\"\",IF(LEN('Enrollment Form'!$Y397)<>5,\"N\",\"Y\")))","v":""},{"$f":"IF($B390=\"N\",\"\",IF(LEN('Enrollment Form'!$AD397=0),\"\",IF(LEN('Enrollment Form'!$AD397)<>5,\"N\",\"Y\")))","v":""},{"$f":"IF($B390=\"N\",\"\",IF(LEN('Enrollment Form'!$BS397=0),\"\",IF(LEN('Enrollment Form'!$BS397)<>5,\"N\",\"Y\")))","v":""},{"$f":"IF($B390=\"N\",\"\",IF(LEN('Enrollment Form'!$AE397)=0,\"\",IF(LEN('Enrollment Form'!$AE397)<>10,\"N\",\"Y\")))","v":""},{"$f":"IF($B390=\"N\",\"\",IF(LEN('Enrollment Form'!$AF397)=0,\"\",IF(LEN('Enrollment Form'!$AF397)<>10,\"N\",\"Y\")))","v":""},{"$f":"IF('Enrollment Form'!$O397<>\"Graded\",\"-\",IF(AND('Enrollment Form'!$O397=\"Graded\",'Enrollment Form'!$AR397<>\"\"),\"Y\",\"N\"))","v":"-"},{"$f":"IF($B390=\"N\",\"\",IF(OR('Enrollment Form'!$B397<>\"Subscriber\",'Enrollment Form'!$C397=\"ROC\"),\"-\",IF(AND('Enrollment Form'!$B397=\"Subscriber\",'Enrollment Form'!$C397=\"Enroll\",'Enrollment Form'!$AJ397<>\"\"),\"Y\",\"N\")))","v":""},{"$f":"IF($B390=\"N\",\"\",IF(OR('Enrollment Form'!$B397<>\"Subscriber\",'Enrollment Form'!$C397=\"ROC\"),\"-\",IF(AND('Enrollment Form'!$B397=\"Subscriber\",'Enrollment Form'!$C397=\"Enroll\",'Enrollment Form'!$AK397<>\"\"),\"Y\",\"N\")))","v":""},{"$f":"IF($B390=\"N\",\"\",IF(OR('Enrollment Form'!$B397<>\"Subscriber\",'Enrollment Form'!$C397=\"ROC\"),\"-\",IF(AND('Enrollment Form'!$B397=\"Subscriber\",'Enrollment Form'!$C397=\"Enroll\",'Enrollment Form'!$AL397<>\"\"),\"Y\",\"N\")))","v":""},{"$f":"IF($B390=\"N\",\"\",IF(OR('Enrollment Form'!$B397<>\"Subscriber\",'Enrollment Form'!$C397=\"ROC\"),\"-\",IF(AND('Enrollment Form'!$B397=\"Subscriber\",'Enrollment Form'!$C397=\"Enroll\",'Enrollment Form'!$AP397<>\"\"),\"Y\",\"N\")))","v":""},{"$f":"IF($B390=\"N\",\"\",IF(OR('Enrollment Form'!$B397<>\"Subscriber\",'Enrollment Form'!$C397=\"ROC\"),\"-\",IF(AND('Enrollment Form'!$B397=\"Subscriber\",'Enrollment Form'!$C397=\"Enroll\",'Enrollment Form'!$AQ397<>\"\"),\"Y\",\"N\")))","v":""},{"$f":"IF($B390=\"N\",\"\",IF(OR('Enrollment Form'!$B397<>\"Subscriber\",'Enrollment Form'!$C397=\"ROC\"),\"-\",IF(AND('Enrollment Form'!$B397=\"Subscriber\",'Enrollment Form'!$C397=\"Enroll\",'Enrollment Form'!$AS397<>\"\"),\"Y\",\"N\")))","v":""},{"$f":"IF($B390=\"N\",\"\",IF($Q390=\"-\",\"-\",IF(AND($Q390=\"Y\",'Enrollment Form'!$AS397=\"No\"),\"-\",IF(AND($Q390=\"Y\",'Enrollment Form'!$AS397=\"Yes\",'Enrollment Form'!$AT397<>\"\"),\"Y\",\"N\"))))","v":""},{"$f":"IF($B390=\"N\",\"\",IF(OR('Enrollment Form'!$B397<>\"Subscriber\",'Enrollment Form'!$C397=\"ROC\"),\"-\",IF(AND('Enrollment Form'!$B397=\"Subscriber\",'Enrollment Form'!$C397=\"Enroll\",'Enrollment Form'!$CV397<>\"\"),\"Y\",\"N\")))","v":""},{"$f":"IF($B390=\"N\",\"\",IF($S390=\"-\",\"-\",IF(AND($S390=\"Y\",'Enrollment Form'!$CV397=\"No\"),\"-\",IF(AND($S390=\"Y\",'Enrollment Form'!$CV397=\"Yes\",'Enrollment Form'!$CW397<>\"\"),\"Y\",\"N\"))))","v":""},{"$f":"IF(OR('Enrollment Form'!$AY397=\"Yes\",'Enrollment Form'!$AY397=\"\"),\"-\",IF(OR(AND('Enrollment Form'!$AY397=\"No\",ISERROR(FIND(\"HMO\",VLOOKUP('Enrollment Form'!G397,'Enrollment Form'!H$11:J$1000,3,FALSE),1))=FALSE,COUNTA('Enrollment Form'!$AZ397:$BC397)=4),AND('Enrollment Form'!$AY397=\"No\",ISERROR(FIND(\"HMO\",VLOOKUP('Enrollment Form'!G397,'Enrollment Form'!H$11:J$1000,3,FALSE),1))=FALSE,COUNTA('Enrollment Form'!$BT397:$BW397)=4)),\"Y\",\"N\"))","v":"-"},{"$f":"IF($B390=\"N\",\"\",IF('Enrollment Form'!$B397=\"Subscriber\",\"-\",IF(COUNTA('Enrollment Form'!$BL397,'Enrollment Form'!$BN397)=2,\"Y\",\"N\")))","v":""},{"$f":"IF($B390=\"N\",\"\",IF(OR('Enrollment Form'!$AX397=\"\",'Enrollment Form'!$AX397=\"No\"),\"-\",IF(AND('Enrollment Form'!$AX397=\"Yes\",COUNTA('Enrollment Form'!$CR397)=1),\"Y\",\"N\")))","v":""},{"$f":"IF(OR('Enrollment Form'!$CR397=\"\",'Enrollment Form'!$CR397=\"No\"),\"-\",IF(COUNTA('Enrollment Form'!$CT397:$CU397)=2,\"Y\",\"N\"))","v":"-"},{"$f":"IF($B390=\"N\",\"\",IF(COUNTIF('Enrollment Form'!$DG397:$DP397,\"Other\")=COUNTA('Enrollment Form'!$DK397,'Enrollment Form'!$DH397,'Enrollment Form'!$DN397,'Enrollment Form'!$DQ397),\"Y\",\"N\"))","v":""},{"$f":"IF($B390=\"N\",\"\",IF(OR('Enrollment Form'!B397<>\"Subscriber\",'Enrollment Form'!C397=\"ROC\",COUNTIF('Enrollment Form'!AV397:AW397,\"Yes\")>=1),\"-\",IF(AND('Enrollment Form'!C397=\"Enroll\",COUNTIF('Enrollment Form'!AV397:AW397,\"No\")=2,'Enrollment Form'!AX397=\"\"),\"N\",\"Y\")))","v":""},{"$f":"IF(OR(B390=\"N\",'Enrollment Form'!B397<>\"Subscriber\",'Enrollment Form'!C397=\"ROC\",'Enrollment Form'!O397<>\"Multiple of Salary\"),\"-\",IF(COUNTA('Enrollment Form'!T397:U397)<2,\"N\",\"Y\"))","v":"-"},{"$f":"IF(B390=\"N\",\"\",IF(OR('Enrollment Form'!C397=\"ROC\",'Enrollment Form'!B397<>\"Subscriber\",'Enrollment Form'!O397=\"Waive\",'Enrollment Form'!O397=\"\"),\"-\",IF('Enrollment Form'!P397=\"\",\"N\",\"Y\")))","v":""},{"$f":"IF($B390=\"N\",\"\",IF(AND('Enrollment Form'!$C397=\"ROC\",'Enrollment Form'!$DR397<>\"\"),\"Y\",IF(AND('Enrollment Form'!$C397=\"ROC\",'Enrollment Form'!$DR397=\"\"),\"N\",IF(AND('Enrollment Form'!$C397=\"Enroll\",'Enrollment Form'!$B397=\"Subscriber\",'Enrollment Form'!$CX397=\"No\",'Enrollment Form'!$DR397=\"\"),\"N\",IF(AND('Enrollment Form'!$C397=\"Enroll\",'Enrollment Form'!$B397=\"Subscriber\",'Enrollment Form'!$CX397=\"Yes\"),\"-\",\"Y\")))))","v":""},{"$f":"IF($B390=\"N\",\"\",IF(AND('Enrollment Form'!$C397=\"ROC\",'Enrollment Form'!$DS397<>\"\"),\"Y\",IF(AND('Enrollment Form'!$C397=\"ROC\",'Enrollment Form'!$DS397=\"\"),\"N\",IF(AND('Enrollment Form'!$C397=\"Enroll\",'Enrollment Form'!$B397=\"Subscriber\",'Enrollment Form'!$CX397=\"No\",'Enrollment Form'!$DS397=\"\"),\"N\",IF(AND('Enrollment Form'!$C397=\"Enroll\",'Enrollment Form'!$B397=\"Subscriber\",'Enrollment Form'!$CX397=\"Yes\"),\"-\",\"Y\")))))","v":""},{"$f":"IF('Enrollment Form'!AH397=\"\",\"\",IF(ISERROR(SEARCH(\".\",'Enrollment Form'!AH397,SEARCH(\"@\",'Enrollment Form'!AH397))),\"N\",\"Y\"))","v":""},{"$f":"IF(OR($B390=\"N\",'Enrollment Form'!$G397=\"\"),\"\",IF('Enrollment Form'!$B397<>\"Subscriber\",\"-\",IF(COUNTIF('Enrollment Form'!$AV397:$AW397,\"Yes\")=2,\"N\",\"Y\")))","v":""},{"$f":"IF(OR('Enrollment Form'!$CJ397=\"\",'Enrollment Form'!$CJ397=\"No\"),\"-\",IF(AND('Enrollment Form'!$CJ397=\"Yes\",'Enrollment Form'!$CK397=\"\"),\"N\",\"Y\"))","v":"-"},{"$f":"IF(OR('Enrollment Form'!$CL397=\"\",'Enrollment Form'!$CL397=\"No\"),\"-\",IF(AND('Enrollment Form'!$CL397=\"Yes\",'Enrollment Form'!$CM397=\"\"),\"N\",\"Y\"))","v":"-"},{"$f":"IF(OR('Enrollment Form'!$CN397=\"\",'Enrollment Form'!$CN397=\"No\"),\"-\",IF(AND('Enrollment Form'!$CN397=\"Yes\",'Enrollment Form'!$CO397=\"\"),\"N\",\"Y\"))","v":"-"},{"$f":"IF(OR('Enrollment Form'!$CN397=\"\",'Enrollment Form'!$CN397=\"No\"),\"-\",IF(AND('Enrollment Form'!$CN397=\"Yes\",'Enrollment Form'!$CP397=\"\"),\"N\",\"Y\"))","v":"-"},{"$f":"IF('Enrollment Form'!B397<>\"Subscriber\",\"-\",IF(AND('Enrollment Form'!B397=\"Subscriber\",'Enrollment Form'!C397=\"Enroll\",'Enrollment Form'!AA397=\"\"),\"N\",\"Y\"))","v":"-"},{"$f":"IF(OR('Enrollment Form'!B397=\"Subscriber\",'Enrollment Form'!B397=\"\"),\"-\",IF('Enrollment Form'!BP397=\"\",\"N\",\"Y\"))","v":"-"},{"$f":"IF('Enrollment Form'!B397<>\"Subscriber\",\"-\",IF(AND('Enrollment Form'!B397=\"Subscriber\",'Enrollment Form'!G397=\"\"),\"N\",\"Y\"))","v":"-"},{"$f":"IF('Enrollment Form'!A397=\"\",\"\",IF('Enrollment Form'!B397=\"Subscriber\",\"-\",IF(AND('Enrollment Form'!B397<>\"Subscriber\",'Enrollment Form'!G397='Enrollment Form'!H397),\"N\",\"Y\")))","v":""},0]
[398,{"$f":"IF('Enrollment Form'!$A398<>\"\",\"Y\",\"N\")","v":"N"},{"$f":"IF(AND('Enrollment Form'!$B398=\"\",'Enrollment Form'!$C398<>\"\"),\"N\",IF($B391=\"N\",\"\",\"Y\"))","v":""},{"$f":"IF(OR($B391=\"N\",'Enrollment Form'!G398=\"\"),\"\",IF('Enrollment Form'!$B398<>\"Subscriber\",\"\",IF('Enrollment Form'!$G398='Enrollment Form'!$H398,\"Y\",\"N\")))","v":""},{"$f":"IF($B391=\"N\",\"\",IF(AND(COUNTIFS('Enrollment Form'!$H$11:$H$1000,'Enrollment Form'!$H398,'Enrollment Form'!$B$11:$B$1000,'Enrollment Form'!$B398)>1,'Enrollment Form'!$H398<>\"\"),\"N\",\"Y\"))","v":""},{"$f":"IF($B391=\"N\",\"\",IF(LEN('Enrollment Form'!$Y398)=0,\"\",IF(LEN('Enrollment Form'!$Y398)<>5,\"N\",\"Y\")))","v":""},{"$f":"IF($B391=\"N\",\"\",IF(LEN('Enrollment Form'!$AD398=0),\"\",IF(LEN('Enrollment Form'!$AD398)<>5,\"N\",\"Y\")))","v":""},{"$f":"IF($B391=\"N\",\"\",IF(LEN('Enrollment Form'!$BS398=0),\"\",IF(LEN('Enrollment Form'!$BS398)<>5,\"N\",\"Y\")))","v":""},{"$f":"IF($B391=\"N\",\"\",IF(LEN('Enrollment Form'!$AE398)=0,\"\",IF(LEN('Enrollment Form'!$AE398)<>10,\"N\",\"Y\")))","v":""},{"$f":"IF($B391=\"N\",\"\",IF(LEN('Enrollment Form'!$AF398)=0,\"\",IF(LEN('Enrollment Form'!$AF398)<>10,\"N\",\"Y\")))","v":""},{"$f":"IF('Enrollment Form'!$O398<>\"Graded\",\"-\",IF(AND('Enrollment Form'!$O398=\"Graded\",'Enrollment Form'!$AR398<>\"\"),\"Y\",\"N\"))","v":"-"},{"$f":"IF($B391=\"N\",\"\",IF(OR('Enrollment Form'!$B398<>\"Subscriber\",'Enrollment Form'!$C398=\"ROC\"),\"-\",IF(AND('Enrollment Form'!$B398=\"Subscriber\",'Enrollment Form'!$C398=\"Enroll\",'Enrollment Form'!$AJ398<>\"\"),\"Y\",\"N\")))","v":""},{"$f":"IF($B391=\"N\",\"\",IF(OR('Enrollment Form'!$B398<>\"Subscriber\",'Enrollment Form'!$C398=\"ROC\"),\"-\",IF(AND('Enrollment Form'!$B398=\"Subscriber\",'Enrollment Form'!$C398=\"Enroll\",'Enrollment Form'!$AK398<>\"\"),\"Y\",\"N\")))","v":""},{"$f":"IF($B391=\"N\",\"\",IF(OR('Enrollment Form'!$B398<>\"Subscriber\",'Enrollment Form'!$C398=\"ROC\"),\"-\",IF(AND('Enrollment Form'!$B398=\"Subscriber\",'Enrollment Form'!$C398=\"Enroll\",'Enrollment Form'!$AL398<>\"\"),\"Y\",\"N\")))","v":""},{"$f":"IF($B391=\"N\",\"\",IF(OR('Enrollment Form'!$B398<>\"Subscriber\",'Enrollment Form'!$C398=\"ROC\"),\"-\",IF(AND('Enrollment Form'!$B398=\"Subscriber\",'Enrollment Form'!$C398=\"Enroll\",'Enrollment Form'!$AP398<>\"\"),\"Y\",\"N\")))","v":""},{"$f":"IF($B391=\"N\",\"\",IF(OR('Enrollment Form'!$B398<>\"Subscriber\",'Enrollment Form'!$C398=\"ROC\"),\"-\",IF(AND('Enrollment Form'!$B398=\"Subscriber\",'Enrollment Form'!$C398=\"Enroll\",'Enrollment Form'!$AQ398<>\"\"),\"Y\",\"N\")))","v":""},{"$f":"IF($B391=\"N\",\"\",IF(OR('Enrollment Form'!$B398<>\"Subscriber\",'Enrollment Form'!$C398=\"ROC\"),\"-\",IF(AND('Enrollment Form'!$B398=\"Subscriber\",'Enrollment Form'!$C398=\"Enroll\",'Enrollment Form'!$AS398<>\"\"),\"Y\",\"N\")))","v":""},{"$f":"IF($B391=\"N\",\"\",IF($Q391=\"-\",\"-\",IF(AND($Q391=\"Y\",'Enrollment Form'!$AS398=\"No\"),\"-\",IF(AND($Q391=\"Y\",'Enrollment Form'!$AS398=\"Yes\",'Enrollment Form'!$AT398<>\"\"),\"Y\",\"N\"))))","v":""},{"$f":"IF($B391=\"N\",\"\",IF(OR('Enrollment Form'!$B398<>\"Subscriber\",'Enrollment Form'!$C398=\"ROC\"),\"-\",IF(AND('Enrollment Form'!$B398=\"Subscriber\",'Enrollment Form'!$C398=\"Enroll\",'Enrollment Form'!$CV398<>\"\"),\"Y\",\"N\")))","v":""},{"$f":"IF($B391=\"N\",\"\",IF($S391=\"-\",\"-\",IF(AND($S391=\"Y\",'Enrollment Form'!$CV398=\"No\"),\"-\",IF(AND($S391=\"Y\",'Enrollment Form'!$CV398=\"Yes\",'Enrollment Form'!$CW398<>\"\"),\"Y\",\"N\"))))","v":""},{"$f":"IF(OR('Enrollment Form'!$AY398=\"Yes\",'Enrollment Form'!$AY398=\"\"),\"-\",IF(OR(AND('Enrollment Form'!$AY398=\"No\",ISERROR(FIND(\"HMO\",VLOOKUP('Enrollment Form'!G398,'Enrollment Form'!H$11:J$1000,3,FALSE),1))=FALSE,COUNTA('Enrollment Form'!$AZ398:$BC398)=4),AND('Enrollment Form'!$AY398=\"No\",ISERROR(FIND(\"HMO\",VLOOKUP('Enrollment Form'!G398,'Enrollment Form'!H$11:J$1000,3,FALSE),1))=FALSE,COUNTA('Enrollment Form'!$BT398:$BW398)=4)),\"Y\",\"N\"))","v":"-"},{"$f":"IF($B391=\"N\",\"\",IF('Enrollment Form'!$B398=\"Subscriber\",\"-\",IF(COUNTA('Enrollment Form'!$BL398,'Enrollment Form'!$BN398)=2,\"Y\",\"N\")))","v":""},{"$f":"IF($B391=\"N\",\"\",IF(OR('Enrollment Form'!$AX398=\"\",'Enrollment Form'!$AX398=\"No\"),\"-\",IF(AND('Enrollment Form'!$AX398=\"Yes\",COUNTA('Enrollment Form'!$CR398)=1),\"Y\",\"N\")))","v":""},{"$f":"IF(OR('Enrollment Form'!$CR398=\"\",'Enrollment Form'!$CR398=\"No\"),\"-\",IF(COUNTA('Enrollment Form'!$CT398:$CU398)=2,\"Y\",\"N\"))","v":"-"},{"$f":"IF($B391=\"N\",\"\",IF(COUNTIF('Enrollment Form'!$DG398:$DP398,\"Other\")=COUNTA('Enrollment Form'!$DK398,'Enrollment Form'!$DH398,'Enrollment Form'!$DN398,'Enrollment Form'!$DQ398),\"Y\",\"N\"))","v":""},{"$f":"IF($B391=\"N\",\"\",IF(OR('Enrollment Form'!B398<>\"Subscriber\",'Enrollment Form'!C398=\"ROC\",COUNTIF('Enrollment Form'!AV398:AW398,\"Yes\")>=1),\"-\",IF(AND('Enrollment Form'!C398=\"Enroll\",COUNTIF('Enrollment Form'!AV398:AW398,\"No\")=2,'Enrollment Form'!AX398=\"\"),\"N\",\"Y\")))","v":""},{"$f":"IF(OR(B391=\"N\",'Enrollment Form'!B398<>\"Subscriber\",'Enrollment Form'!C398=\"ROC\",'Enrollment Form'!O398<>\"Multiple of Salary\"),\"-\",IF(COUNTA('Enrollment Form'!T398:U398)<2,\"N\",\"Y\"))","v":"-"},{"$f":"IF(B391=\"N\",\"\",IF(OR('Enrollment Form'!C398=\"ROC\",'Enrollment Form'!B398<>\"Subscriber\",'Enrollment Form'!O398=\"Waive\",'Enrollment Form'!O398=\"\"),\"-\",IF('Enrollment Form'!P398=\"\",\"N\",\"Y\")))","v":""},{"$f":"IF($B391=\"N\",\"\",IF(AND('Enrollment Form'!$C398=\"ROC\",'Enrollment Form'!$DR398<>\"\"),\"Y\",IF(AND('Enrollment Form'!$C398=\"ROC\",'Enrollment Form'!$DR398=\"\"),\"N\",IF(AND('Enrollment Form'!$C398=\"Enroll\",'Enrollment Form'!$B398=\"Subscriber\",'Enrollment Form'!$CX398=\"No\",'Enrollment Form'!$DR398=\"\"),\"N\",IF(AND('Enrollment Form'!$C398=\"Enroll\",'Enrollment Form'!$B398=\"Subscriber\",'Enrollment Form'!$CX398=\"Yes\"),\"-\",\"Y\")))))","v":""},{"$f":"IF($B391=\"N\",\"\",IF(AND('Enrollment Form'!$C398=\"ROC\",'Enrollment Form'!$DS398<>\"\"),\"Y\",IF(AND('Enrollment Form'!$C398=\"ROC\",'Enrollment Form'!$DS398=\"\"),\"N\",IF(AND('Enrollment Form'!$C398=\"Enroll\",'Enrollment Form'!$B398=\"Subscriber\",'Enrollment Form'!$CX398=\"No\",'Enrollment Form'!$DS398=\"\"),\"N\",IF(AND('Enrollment Form'!$C398=\"Enroll\",'Enrollment Form'!$B398=\"Subscriber\",'Enrollment Form'!$CX398=\"Yes\"),\"-\",\"Y\")))))","v":""},{"$f":"IF('Enrollment Form'!AH398=\"\",\"\",IF(ISERROR(SEARCH(\".\",'Enrollment Form'!AH398,SEARCH(\"@\",'Enrollment Form'!AH398))),\"N\",\"Y\"))","v":""},{"$f":"IF(OR($B391=\"N\",'Enrollment Form'!$G398=\"\"),\"\",IF('Enrollment Form'!$B398<>\"Subscriber\",\"-\",IF(COUNTIF('Enrollment Form'!$AV398:$AW398,\"Yes\")=2,\"N\",\"Y\")))","v":""},{"$f":"IF(OR('Enrollment Form'!$CJ398=\"\",'Enrollment Form'!$CJ398=\"No\"),\"-\",IF(AND('Enrollment Form'!$CJ398=\"Yes\",'Enrollment Form'!$CK398=\"\"),\"N\",\"Y\"))","v":"-"},{"$f":"IF(OR('Enrollment Form'!$CL398=\"\",'Enrollment Form'!$CL398=\"No\"),\"-\",IF(AND('Enrollment Form'!$CL398=\"Yes\",'Enrollment Form'!$CM398=\"\"),\"N\",\"Y\"))","v":"-"},{"$f":"IF(OR('Enrollment Form'!$CN398=\"\",'Enrollment Form'!$CN398=\"No\"),\"-\",IF(AND('Enrollment Form'!$CN398=\"Yes\",'Enrollment Form'!$CO398=\"\"),\"N\",\"Y\"))","v":"-"},{"$f":"IF(OR('Enrollment Form'!$CN398=\"\",'Enrollment Form'!$CN398=\"No\"),\"-\",IF(AND('Enrollment Form'!$CN398=\"Yes\",'Enrollment Form'!$CP398=\"\"),\"N\",\"Y\"))","v":"-"},{"$f":"IF('Enrollment Form'!B398<>\"Subscriber\",\"-\",IF(AND('Enrollment Form'!B398=\"Subscriber\",'Enrollment Form'!C398=\"Enroll\",'Enrollment Form'!AA398=\"\"),\"N\",\"Y\"))","v":"-"},{"$f":"IF(OR('Enrollment Form'!B398=\"Subscriber\",'Enrollment Form'!B398=\"\"),\"-\",IF('Enrollment Form'!BP398=\"\",\"N\",\"Y\"))","v":"-"},{"$f":"IF('Enrollment Form'!B398<>\"Subscriber\",\"-\",IF(AND('Enrollment Form'!B398=\"Subscriber\",'Enrollment Form'!G398=\"\"),\"N\",\"Y\"))","v":"-"},{"$f":"IF('Enrollment Form'!A398=\"\",\"\",IF('Enrollment Form'!B398=\"Subscriber\",\"-\",IF(AND('Enrollment Form'!B398<>\"Subscriber\",'Enrollment Form'!G398='Enrollment Form'!H398),\"N\",\"Y\")))","v":""},0]
[399,{"$f":"IF('Enrollment Form'!$A399<>\"\",\"Y\",\"N\")","v":"N"},{"$f":"IF(AND('Enrollment Form'!$B399=\"\",'Enrollment Form'!$C399<>\"\"),\"N\",IF($B392=\"N\",\"\",\"Y\"))","v":""},{"$f":"IF(OR($B392=\"N\",'Enrollment Form'!G399=\"\"),\"\",IF('Enrollment Form'!$B399<>\"Subscriber\",\"\",IF('Enrollment Form'!$G399='Enrollment Form'!$H399,\"Y\",\"N\")))","v":""},{"$f":"IF($B392=\"N\",\"\",IF(AND(COUNTIFS('Enrollment Form'!$H$11:$H$1000,'Enrollment Form'!$H399,'Enrollment Form'!$B$11:$B$1000,'Enrollment Form'!$B399)>1,'Enrollment Form'!$H399<>\"\"),\"N\",\"Y\"))","v":""},{"$f":"IF($B392=\"N\",\"\",IF(LEN('Enrollment Form'!$Y399)=0,\"\",IF(LEN('Enrollment Form'!$Y399)<>5,\"N\",\"Y\")))","v":""},{"$f":"IF($B392=\"N\",\"\",IF(LEN('Enrollment Form'!$AD399=0),\"\",IF(LEN('Enrollment Form'!$AD399)<>5,\"N\",\"Y\")))","v":""},{"$f":"IF($B392=\"N\",\"\",IF(LEN('Enrollment Form'!$BS399=0),\"\",IF(LEN('Enrollment Form'!$BS399)<>5,\"N\",\"Y\")))","v":""},{"$f":"IF($B392=\"N\",\"\",IF(LEN('Enrollment Form'!$AE399)=0,\"\",IF(LEN('Enrollment Form'!$AE399)<>10,\"N\",\"Y\")))","v":""},{"$f":"IF($B392=\"N\",\"\",IF(LEN('Enrollment Form'!$AF399)=0,\"\",IF(LEN('Enrollment Form'!$AF399)<>10,\"N\",\"Y\")))","v":""},{"$f":"IF('Enrollment Form'!$O399<>\"Graded\",\"-\",IF(AND('Enrollment Form'!$O399=\"Graded\",'Enrollment Form'!$AR399<>\"\"),\"Y\",\"N\"))","v":"-"},{"$f":"IF($B392=\"N\",\"\",IF(OR('Enrollment Form'!$B399<>\"Subscriber\",'Enrollment Form'!$C399=\"ROC\"),\"-\",IF(AND('Enrollment Form'!$B399=\"Subscriber\",'Enrollment Form'!$C399=\"Enroll\",'Enrollment Form'!$AJ399<>\"\"),\"Y\",\"N\")))","v":""},{"$f":"IF($B392=\"N\",\"\",IF(OR('Enrollment Form'!$B399<>\"Subscriber\",'Enrollment Form'!$C399=\"ROC\"),\"-\",IF(AND('Enrollment Form'!$B399=\"Subscriber\",'Enrollment Form'!$C399=\"Enroll\",'Enrollment Form'!$AK399<>\"\"),\"Y\",\"N\")))","v":""},{"$f":"IF($B392=\"N\",\"\",IF(OR('Enrollment Form'!$B399<>\"Subscriber\",'Enrollment Form'!$C399=\"ROC\"),\"-\",IF(AND('Enrollment Form'!$B399=\"Subscriber\",'Enrollment Form'!$C399=\"Enroll\",'Enrollment Form'!$AL399<>\"\"),\"Y\",\"N\")))","v":""},{"$f":"IF($B392=\"N\",\"\",IF(OR('Enrollment Form'!$B399<>\"Subscriber\",'Enrollment Form'!$C399=\"ROC\"),\"-\",IF(AND('Enrollment Form'!$B399=\"Subscriber\",'Enrollment Form'!$C399=\"Enroll\",'Enrollment Form'!$AP399<>\"\"),\"Y\",\"N\")))","v":""},{"$f":"IF($B392=\"N\",\"\",IF(OR('Enrollment Form'!$B399<>\"Subscriber\",'Enrollment Form'!$C399=\"ROC\"),\"-\",IF(AND('Enrollment Form'!$B399=\"Subscriber\",'Enrollment Form'!$C399=\"Enroll\",'Enrollment Form'!$AQ399<>\"\"),\"Y\",\"N\")))","v":""},{"$f":"IF($B392=\"N\",\"\",IF(OR('Enrollment Form'!$B399<>\"Subscriber\",'Enrollment Form'!$C399=\"ROC\"),\"-\",IF(AND('Enrollment Form'!$B399=\"Subscriber\",'Enrollment Form'!$C399=\"Enroll\",'Enrollment Form'!$AS399<>\"\"),\"Y\",\"N\")))","v":""},{"$f":"IF($B392=\"N\",\"\",IF($Q392=\"-\",\"-\",IF(AND($Q392=\"Y\",'Enrollment Form'!$AS399=\"No\"),\"-\",IF(AND($Q392=\"Y\",'Enrollment Form'!$AS399=\"Yes\",'Enrollment Form'!$AT399<>\"\"),\"Y\",\"N\"))))","v":""},{"$f":"IF($B392=\"N\",\"\",IF(OR('Enrollment Form'!$B399<>\"Subscriber\",'Enrollment Form'!$C399=\"ROC\"),\"-\",IF(AND('Enrollment Form'!$B399=\"Subscriber\",'Enrollment Form'!$C399=\"Enroll\",'Enrollment Form'!$CV399<>\"\"),\"Y\",\"N\")))","v":""},{"$f":"IF($B392=\"N\",\"\",IF($S392=\"-\",\"-\",IF(AND($S392=\"Y\",'Enrollment Form'!$CV399=\"No\"),\"-\",IF(AND($S392=\"Y\",'Enrollment Form'!$CV399=\"Yes\",'Enrollment Form'!$CW399<>\"\"),\"Y\",\"N\"))))","v":""},{"$f":"IF(OR('Enrollment Form'!$AY399=\"Yes\",'Enrollment Form'!$AY399=\"\"),\"-\",IF(OR(AND('Enrollment Form'!$AY399=\"No\",ISERROR(FIND(\"HMO\",VLOOKUP('Enrollment Form'!G399,'Enrollment Form'!H$11:J$1000,3,FALSE),1))=FALSE,COUNTA('Enrollment Form'!$AZ399:$BC399)=4),AND('Enrollment Form'!$AY399=\"No\",ISERROR(FIND(\"HMO\",VLOOKUP('Enrollment Form'!G399,'Enrollment Form'!H$11:J$1000,3,FALSE),1))=FALSE,COUNTA('Enrollment Form'!$BT399:$BW399)=4)),\"Y\",\"N\"))","v":"-"},{"$f":"IF($B392=\"N\",\"\",IF('Enrollment Form'!$B399=\"Subscriber\",\"-\",IF(COUNTA('Enrollment Form'!$BL399,'Enrollment Form'!$BN399)=2,\"Y\",\"N\")))","v":""},{"$f":"IF($B392=\"N\",\"\",IF(OR('Enrollment Form'!$AX399=\"\",'Enrollment Form'!$AX399=\"No\"),\"-\",IF(AND('Enrollment Form'!$AX399=\"Yes\",COUNTA('Enrollment Form'!$CR399)=1),\"Y\",\"N\")))","v":""},{"$f":"IF(OR('Enrollment Form'!$CR399=\"\",'Enrollment Form'!$CR399=\"No\"),\"-\",IF(COUNTA('Enrollment Form'!$CT399:$CU399)=2,\"Y\",\"N\"))","v":"-"},{"$f":"IF($B392=\"N\",\"\",IF(COUNTIF('Enrollment Form'!$DG399:$DP399,\"Other\")=COUNTA('Enrollment Form'!$DK399,'Enrollment Form'!$DH399,'Enrollment Form'!$DN399,'Enrollment Form'!$DQ399),\"Y\",\"N\"))","v":""},{"$f":"IF($B392=\"N\",\"\",IF(OR('Enrollment Form'!B399<>\"Subscriber\",'Enrollment Form'!C399=\"ROC\",COUNTIF('Enrollment Form'!AV399:AW399,\"Yes\")>=1),\"-\",IF(AND('Enrollment Form'!C399=\"Enroll\",COUNTIF('Enrollment Form'!AV399:AW399,\"No\")=2,'Enrollment Form'!AX399=\"\"),\"N\",\"Y\")))","v":""},{"$f":"IF(OR(B392=\"N\",'Enrollment Form'!B399<>\"Subscriber\",'Enrollment Form'!C399=\"ROC\",'Enrollment Form'!O399<>\"Multiple of Salary\"),\"-\",IF(COUNTA('Enrollment Form'!T399:U399)<2,\"N\",\"Y\"))","v":"-"},{"$f":"IF(B392=\"N\",\"\",IF(OR('Enrollment Form'!C399=\"ROC\",'Enrollment Form'!B399<>\"Subscriber\",'Enrollment Form'!O399=\"Waive\",'Enrollment Form'!O399=\"\"),\"-\",IF('Enrollment Form'!P399=\"\",\"N\",\"Y\")))","v":""},{"$f":"IF($B392=\"N\",\"\",IF(AND('Enrollment Form'!$C399=\"ROC\",'Enrollment Form'!$DR399<>\"\"),\"Y\",IF(AND('Enrollment Form'!$C399=\"ROC\",'Enrollment Form'!$DR399=\"\"),\"N\",IF(AND('Enrollment Form'!$C399=\"Enroll\",'Enrollment Form'!$B399=\"Subscriber\",'Enrollment Form'!$CX399=\"No\",'Enrollment Form'!$DR399=\"\"),\"N\",IF(AND('Enrollment Form'!$C399=\"Enroll\",'Enrollment Form'!$B399=\"Subscriber\",'Enrollment Form'!$CX399=\"Yes\"),\"-\",\"Y\")))))","v":""},{"$f":"IF($B392=\"N\",\"\",IF(AND('Enrollment Form'!$C399=\"ROC\",'Enrollment Form'!$DS399<>\"\"),\"Y\",IF(AND('Enrollment Form'!$C399=\"ROC\",'Enrollment Form'!$DS399=\"\"),\"N\",IF(AND('Enrollment Form'!$C399=\"Enroll\",'Enrollment Form'!$B399=\"Subscriber\",'Enrollment Form'!$CX399=\"No\",'Enrollment Form'!$DS399=\"\"),\"N\",IF(AND('Enrollment Form'!$C399=\"Enroll\",'Enrollment Form'!$B399=\"Subscriber\",'Enrollment Form'!$CX399=\"Yes\"),\"-\",\"Y\")))))","v":""},{"$f":"IF('Enrollment Form'!AH399=\"\",\"\",IF(ISERROR(SEARCH(\".\",'Enrollment Form'!AH399,SEARCH(\"@\",'Enrollment Form'!AH399))),\"N\",\"Y\"))","v":""},{"$f":"IF(OR($B392=\"N\",'Enrollment Form'!$G399=\"\"),\"\",IF('Enrollment Form'!$B399<>\"Subscriber\",\"-\",IF(COUNTIF('Enrollment Form'!$AV399:$AW399,\"Yes\")=2,\"N\",\"Y\")))","v":""},{"$f":"IF(OR('Enrollment Form'!$CJ399=\"\",'Enrollment Form'!$CJ399=\"No\"),\"-\",IF(AND('Enrollment Form'!$CJ399=\"Yes\",'Enrollment Form'!$CK399=\"\"),\"N\",\"Y\"))","v":"-"},{"$f":"IF(OR('Enrollment Form'!$CL399=\"\",'Enrollment Form'!$CL399=\"No\"),\"-\",IF(AND('Enrollment Form'!$CL399=\"Yes\",'Enrollment Form'!$CM399=\"\"),\"N\",\"Y\"))","v":"-"},{"$f":"IF(OR('Enrollment Form'!$CN399=\"\",'Enrollment Form'!$CN399=\"No\"),\"-\",IF(AND('Enrollment Form'!$CN399=\"Yes\",'Enrollment Form'!$CO399=\"\"),\"N\",\"Y\"))","v":"-"},{"$f":"IF(OR('Enrollment Form'!$CN399=\"\",'Enrollment Form'!$CN399=\"No\"),\"-\",IF(AND('Enrollment Form'!$CN399=\"Yes\",'Enrollment Form'!$CP399=\"\"),\"N\",\"Y\"))","v":"-"},{"$f":"IF('Enrollment Form'!B399<>\"Subscriber\",\"-\",IF(AND('Enrollment Form'!B399=\"Subscriber\",'Enrollment Form'!C399=\"Enroll\",'Enrollment Form'!AA399=\"\"),\"N\",\"Y\"))","v":"-"},{"$f":"IF(OR('Enrollment Form'!B399=\"Subscriber\",'Enrollment Form'!B399=\"\"),\"-\",IF('Enrollment Form'!BP399=\"\",\"N\",\"Y\"))","v":"-"},{"$f":"IF('Enrollment Form'!B399<>\"Subscriber\",\"-\",IF(AND('Enrollment Form'!B399=\"Subscriber\",'Enrollment Form'!G399=\"\"),\"N\",\"Y\"))","v":"-"},{"$f":"IF('Enrollment Form'!A399=\"\",\"\",IF('Enrollment Form'!B399=\"Subscriber\",\"-\",IF(AND('Enrollment Form'!B399<>\"Subscriber\",'Enrollment Form'!G399='Enrollment Form'!H399),\"N\",\"Y\")))","v":""},0]
[400,{"$f":"IF('Enrollment Form'!$A400<>\"\",\"Y\",\"N\")","v":"N"},{"$f":"IF(AND('Enrollment Form'!$B400=\"\",'Enrollment Form'!$C400<>\"\"),\"N\",IF($B393=\"N\",\"\",\"Y\"))","v":""},{"$f":"IF(OR($B393=\"N\",'Enrollment Form'!G400=\"\"),\"\",IF('Enrollment Form'!$B400<>\"Subscriber\",\"\",IF('Enrollment Form'!$G400='Enrollment Form'!$H400,\"Y\",\"N\")))","v":""},{"$f":"IF($B393=\"N\",\"\",IF(AND(COUNTIFS('Enrollment Form'!$H$11:$H$1000,'Enrollment Form'!$H400,'Enrollment Form'!$B$11:$B$1000,'Enrollment Form'!$B400)>1,'Enrollment Form'!$H400<>\"\"),\"N\",\"Y\"))","v":""},{"$f":"IF($B393=\"N\",\"\",IF(LEN('Enrollment Form'!$Y400)=0,\"\",IF(LEN('Enrollment Form'!$Y400)<>5,\"N\",\"Y\")))","v":""},{"$f":"IF($B393=\"N\",\"\",IF(LEN('Enrollment Form'!$AD400=0),\"\",IF(LEN('Enrollment Form'!$AD400)<>5,\"N\",\"Y\")))","v":""},{"$f":"IF($B393=\"N\",\"\",IF(LEN('Enrollment Form'!$BS400=0),\"\",IF(LEN('Enrollment Form'!$BS400)<>5,\"N\",\"Y\")))","v":""},{"$f":"IF($B393=\"N\",\"\",IF(LEN('Enrollment Form'!$AE400)=0,\"\",IF(LEN('Enrollment Form'!$AE400)<>10,\"N\",\"Y\")))","v":""},{"$f":"IF($B393=\"N\",\"\",IF(LEN('Enrollment Form'!$AF400)=0,\"\",IF(LEN('Enrollment Form'!$AF400)<>10,\"N\",\"Y\")))","v":""},{"$f":"IF('Enrollment Form'!$O400<>\"Graded\",\"-\",IF(AND('Enrollment Form'!$O400=\"Graded\",'Enrollment Form'!$AR400<>\"\"),\"Y\",\"N\"))","v":"-"},{"$f":"IF($B393=\"N\",\"\",IF(OR('Enrollment Form'!$B400<>\"Subscriber\",'Enrollment Form'!$C400=\"ROC\"),\"-\",IF(AND('Enrollment Form'!$B400=\"Subscriber\",'Enrollment Form'!$C400=\"Enroll\",'Enrollment Form'!$AJ400<>\"\"),\"Y\",\"N\")))","v":""},{"$f":"IF($B393=\"N\",\"\",IF(OR('Enrollment Form'!$B400<>\"Subscriber\",'Enrollment Form'!$C400=\"ROC\"),\"-\",IF(AND('Enrollment Form'!$B400=\"Subscriber\",'Enrollment Form'!$C400=\"Enroll\",'Enrollment Form'!$AK400<>\"\"),\"Y\",\"N\")))","v":""},{"$f":"IF($B393=\"N\",\"\",IF(OR('Enrollment Form'!$B400<>\"Subscriber\",'Enrollment Form'!$C400=\"ROC\"),\"-\",IF(AND('Enrollment Form'!$B400=\"Subscriber\",'Enrollment Form'!$C400=\"Enroll\",'Enrollment Form'!$AL400<>\"\"),\"Y\",\"N\")))","v":""},{"$f":"IF($B393=\"N\",\"\",IF(OR('Enrollment Form'!$B400<>\"Subscriber\",'Enrollment Form'!$C400=\"ROC\"),\"-\",IF(AND('Enrollment Form'!$B400=\"Subscriber\",'Enrollment Form'!$C400=\"Enroll\",'Enrollment Form'!$AP400<>\"\"),\"Y\",\"N\")))","v":""},{"$f":"IF($B393=\"N\",\"\",IF(OR('Enrollment Form'!$B400<>\"Subscriber\",'Enrollment Form'!$C400=\"ROC\"),\"-\",IF(AND('Enrollment Form'!$B400=\"Subscriber\",'Enrollment Form'!$C400=\"Enroll\",'Enrollment Form'!$AQ400<>\"\"),\"Y\",\"N\")))","v":""},{"$f":"IF($B393=\"N\",\"\",IF(OR('Enrollment Form'!$B400<>\"Subscriber\",'Enrollment Form'!$C400=\"ROC\"),\"-\",IF(AND('Enrollment Form'!$B400=\"Subscriber\",'Enrollment Form'!$C400=\"Enroll\",'Enrollment Form'!$AS400<>\"\"),\"Y\",\"N\")))","v":""},{"$f":"IF($B393=\"N\",\"\",IF($Q393=\"-\",\"-\",IF(AND($Q393=\"Y\",'Enrollment Form'!$AS400=\"No\"),\"-\",IF(AND($Q393=\"Y\",'Enrollment Form'!$AS400=\"Yes\",'Enrollment Form'!$AT400<>\"\"),\"Y\",\"N\"))))","v":""},{"$f":"IF($B393=\"N\",\"\",IF(OR('Enrollment Form'!$B400<>\"Subscriber\",'Enrollment Form'!$C400=\"ROC\"),\"-\",IF(AND('Enrollment Form'!$B400=\"Subscriber\",'Enrollment Form'!$C400=\"Enroll\",'Enrollment Form'!$CV400<>\"\"),\"Y\",\"N\")))","v":""},{"$f":"IF($B393=\"N\",\"\",IF($S393=\"-\",\"-\",IF(AND($S393=\"Y\",'Enrollment Form'!$CV400=\"No\"),\"-\",IF(AND($S393=\"Y\",'Enrollment Form'!$CV400=\"Yes\",'Enrollment Form'!$CW400<>\"\"),\"Y\",\"N\"))))","v":""},{"$f":"IF(OR('Enrollment Form'!$AY400=\"Yes\",'Enrollment Form'!$AY400=\"\"),\"-\",IF(OR(AND('Enrollment Form'!$AY400=\"No\",ISERROR(FIND(\"HMO\",VLOOKUP('Enrollment Form'!G400,'Enrollment Form'!H$11:J$1000,3,FALSE),1))=FALSE,COUNTA('Enrollment Form'!$AZ400:$BC400)=4),AND('Enrollment Form'!$AY400=\"No\",ISERROR(FIND(\"HMO\",VLOOKUP('Enrollment Form'!G400,'Enrollment Form'!H$11:J$1000,3,FALSE),1))=FALSE,COUNTA('Enrollment Form'!$BT400:$BW400)=4)),\"Y\",\"N\"))","v":"-"},{"$f":"IF($B393=\"N\",\"\",IF('Enrollment Form'!$B400=\"Subscriber\",\"-\",IF(COUNTA('Enrollment Form'!$BL400,'Enrollment Form'!$BN400)=2,\"Y\",\"N\")))","v":""},{"$f":"IF($B393=\"N\",\"\",IF(OR('Enrollment Form'!$AX400=\"\",'Enrollment Form'!$AX400=\"No\"),\"-\",IF(AND('Enrollment Form'!$AX400=\"Yes\",COUNTA('Enrollment Form'!$CR400)=1),\"Y\",\"N\")))","v":""},{"$f":"IF(OR('Enrollment Form'!$CR400=\"\",'Enrollment Form'!$CR400=\"No\"),\"-\",IF(COUNTA('Enrollment Form'!$CT400:$CU400)=2,\"Y\",\"N\"))","v":"-"},{"$f":"IF($B393=\"N\",\"\",IF(COUNTIF('Enrollment Form'!$DG400:$DP400,\"Other\")=COUNTA('Enrollment Form'!$DK400,'Enrollment Form'!$DH400,'Enrollment Form'!$DN400,'Enrollment Form'!$DQ400),\"Y\",\"N\"))","v":""},{"$f":"IF($B393=\"N\",\"\",IF(OR('Enrollment Form'!B400<>\"Subscriber\",'Enrollment Form'!C400=\"ROC\",COUNTIF('Enrollment Form'!AV400:AW400,\"Yes\")>=1),\"-\",IF(AND('Enrollment Form'!C400=\"Enroll\",COUNTIF('Enrollment Form'!AV400:AW400,\"No\")=2,'Enrollment Form'!AX400=\"\"),\"N\",\"Y\")))","v":""},{"$f":"IF(OR(B393=\"N\",'Enrollment Form'!B400<>\"Subscriber\",'Enrollment Form'!C400=\"ROC\",'Enrollment Form'!O400<>\"Multiple of Salary\"),\"-\",IF(COUNTA('Enrollment Form'!T400:U400)<2,\"N\",\"Y\"))","v":"-"},{"$f":"IF(B393=\"N\",\"\",IF(OR('Enrollment Form'!C400=\"ROC\",'Enrollment Form'!B400<>\"Subscriber\",'Enrollment Form'!O400=\"Waive\",'Enrollment Form'!O400=\"\"),\"-\",IF('Enrollment Form'!P400=\"\",\"N\",\"Y\")))","v":""},{"$f":"IF($B393=\"N\",\"\",IF(AND('Enrollment Form'!$C400=\"ROC\",'Enrollment Form'!$DR400<>\"\"),\"Y\",IF(AND('Enrollment Form'!$C400=\"ROC\",'Enrollment Form'!$DR400=\"\"),\"N\",IF(AND('Enrollment Form'!$C400=\"Enroll\",'Enrollment Form'!$B400=\"Subscriber\",'Enrollment Form'!$CX400=\"No\",'Enrollment Form'!$DR400=\"\"),\"N\",IF(AND('Enrollment Form'!$C400=\"Enroll\",'Enrollment Form'!$B400=\"Subscriber\",'Enrollment Form'!$CX400=\"Yes\"),\"-\",\"Y\")))))","v":""},{"$f":"IF($B393=\"N\",\"\",IF(AND('Enrollment Form'!$C400=\"ROC\",'Enrollment Form'!$DS400<>\"\"),\"Y\",IF(AND('Enrollment Form'!$C400=\"ROC\",'Enrollment Form'!$DS400=\"\"),\"N\",IF(AND('Enrollment Form'!$C400=\"Enroll\",'Enrollment Form'!$B400=\"Subscriber\",'Enrollment Form'!$CX400=\"No\",'Enrollment Form'!$DS400=\"\"),\"N\",IF(AND('Enrollment Form'!$C400=\"Enroll\",'Enrollment Form'!$B400=\"Subscriber\",'Enrollment Form'!$CX400=\"Yes\"),\"-\",\"Y\")))))","v":""},{"$f":"IF('Enrollment Form'!AH400=\"\",\"\",IF(ISERROR(SEARCH(\".\",'Enrollment Form'!AH400,SEARCH(\"@\",'Enrollment Form'!AH400))),\"N\",\"Y\"))","v":""},{"$f":"IF(OR($B393=\"N\",'Enrollment Form'!$G400=\"\"),\"\",IF('Enrollment Form'!$B400<>\"Subscriber\",\"-\",IF(COUNTIF('Enrollment Form'!$AV400:$AW400,\"Yes\")=2,\"N\",\"Y\")))","v":""},{"$f":"IF(OR('Enrollment Form'!$CJ400=\"\",'Enrollment Form'!$CJ400=\"No\"),\"-\",IF(AND('Enrollment Form'!$CJ400=\"Yes\",'Enrollment Form'!$CK400=\"\"),\"N\",\"Y\"))","v":"-"},{"$f":"IF(OR('Enrollment Form'!$CL400=\"\",'Enrollment Form'!$CL400=\"No\"),\"-\",IF(AND('Enrollment Form'!$CL400=\"Yes\",'Enrollment Form'!$CM400=\"\"),\"N\",\"Y\"))","v":"-"},{"$f":"IF(OR('Enrollment Form'!$CN400=\"\",'Enrollment Form'!$CN400=\"No\"),\"-\",IF(AND('Enrollment Form'!$CN400=\"Yes\",'Enrollment Form'!$CO400=\"\"),\"N\",\"Y\"))","v":"-"},{"$f":"IF(OR('Enrollment Form'!$CN400=\"\",'Enrollment Form'!$CN400=\"No\"),\"-\",IF(AND('Enrollment Form'!$CN400=\"Yes\",'Enrollment Form'!$CP400=\"\"),\"N\",\"Y\"))","v":"-"},{"$f":"IF('Enrollment Form'!B400<>\"Subscriber\",\"-\",IF(AND('Enrollment Form'!B400=\"Subscriber\",'Enrollment Form'!C400=\"Enroll\",'Enrollment Form'!AA400=\"\"),\"N\",\"Y\"))","v":"-"},{"$f":"IF(OR('Enrollment Form'!B400=\"Subscriber\",'Enrollment Form'!B400=\"\"),\"-\",IF('Enrollment Form'!BP400=\"\",\"N\",\"Y\"))","v":"-"},{"$f":"IF('Enrollment Form'!B400<>\"Subscriber\",\"-\",IF(AND('Enrollment Form'!B400=\"Subscriber\",'Enrollment Form'!G400=\"\"),\"N\",\"Y\"))","v":"-"},{"$f":"IF('Enrollment Form'!A400=\"\",\"\",IF('Enrollment Form'!B400=\"Subscriber\",\"-\",IF(AND('Enrollment Form'!B400<>\"Subscriber\",'Enrollment Form'!G400='Enrollment Form'!H400),\"N\",\"Y\")))","v":""},0]
[401,{"$f":"IF('Enrollment Form'!$A401<>\"\",\"Y\",\"N\")","v":"N"},{"$f":"IF(AND('Enrollment Form'!$B401=\"\",'Enrollment Form'!$C401<>\"\"),\"N\",IF($B394=\"N\",\"\",\"Y\"))","v":""},{"$f":"IF(OR($B394=\"N\",'Enrollment Form'!G401=\"\"),\"\",IF('Enrollment Form'!$B401<>\"Subscriber\",\"\",IF('Enrollment Form'!$G401='Enrollment Form'!$H401,\"Y\",\"N\")))","v":""},{"$f":"IF($B394=\"N\",\"\",IF(AND(COUNTIFS('Enrollment Form'!$H$11:$H$1000,'Enrollment Form'!$H401,'Enrollment Form'!$B$11:$B$1000,'Enrollment Form'!$B401)>1,'Enrollment Form'!$H401<>\"\"),\"N\",\"Y\"))","v":""},{"$f":"IF($B394=\"N\",\"\",IF(LEN('Enrollment Form'!$Y401)=0,\"\",IF(LEN('Enrollment Form'!$Y401)<>5,\"N\",\"Y\")))","v":""},{"$f":"IF($B394=\"N\",\"\",IF(LEN('Enrollment Form'!$AD401=0),\"\",IF(LEN('Enrollment Form'!$AD401)<>5,\"N\",\"Y\")))","v":""},{"$f":"IF($B394=\"N\",\"\",IF(LEN('Enrollment Form'!$BS401=0),\"\",IF(LEN('Enrollment Form'!$BS401)<>5,\"N\",\"Y\")))","v":""},{"$f":"IF($B394=\"N\",\"\",IF(LEN('Enrollment Form'!$AE401)=0,\"\",IF(LEN('Enrollment Form'!$AE401)<>10,\"N\",\"Y\")))","v":""},{"$f":"IF($B394=\"N\",\"\",IF(LEN('Enrollment Form'!$AF401)=0,\"\",IF(LEN('Enrollment Form'!$AF401)<>10,\"N\",\"Y\")))","v":""},{"$f":"IF('Enrollment Form'!$O401<>\"Graded\",\"-\",IF(AND('Enrollment Form'!$O401=\"Graded\",'Enrollment Form'!$AR401<>\"\"),\"Y\",\"N\"))","v":"-"},{"$f":"IF($B394=\"N\",\"\",IF(OR('Enrollment Form'!$B401<>\"Subscriber\",'Enrollment Form'!$C401=\"ROC\"),\"-\",IF(AND('Enrollment Form'!$B401=\"Subscriber\",'Enrollment Form'!$C401=\"Enroll\",'Enrollment Form'!$AJ401<>\"\"),\"Y\",\"N\")))","v":""},{"$f":"IF($B394=\"N\",\"\",IF(OR('Enrollment Form'!$B401<>\"Subscriber\",'Enrollment Form'!$C401=\"ROC\"),\"-\",IF(AND('Enrollment Form'!$B401=\"Subscriber\",'Enrollment Form'!$C401=\"Enroll\",'Enrollment Form'!$AK401<>\"\"),\"Y\",\"N\")))","v":""},{"$f":"IF($B394=\"N\",\"\",IF(OR('Enrollment Form'!$B401<>\"Subscriber\",'Enrollment Form'!$C401=\"ROC\"),\"-\",IF(AND('Enrollment Form'!$B401=\"Subscriber\",'Enrollment Form'!$C401=\"Enroll\",'Enrollment Form'!$AL401<>\"\"),\"Y\",\"N\")))","v":""},{"$f":"IF($B394=\"N\",\"\",IF(OR('Enrollment Form'!$B401<>\"Subscriber\",'Enrollment Form'!$C401=\"ROC\"),\"-\",IF(AND('Enrollment Form'!$B401=\"Subscriber\",'Enrollment Form'!$C401=\"Enroll\",'Enrollment Form'!$AP401<>\"\"),\"Y\",\"N\")))","v":""},{"$f":"IF($B394=\"N\",\"\",IF(OR('Enrollment Form'!$B401<>\"Subscriber\",'Enrollment Form'!$C401=\"ROC\"),\"-\",IF(AND('Enrollment Form'!$B401=\"Subscriber\",'Enrollment Form'!$C401=\"Enroll\",'Enrollment Form'!$AQ401<>\"\"),\"Y\",\"N\")))","v":""},{"$f":"IF($B394=\"N\",\"\",IF(OR('Enrollment Form'!$B401<>\"Subscriber\",'Enrollment Form'!$C401=\"ROC\"),\"-\",IF(AND('Enrollment Form'!$B401=\"Subscriber\",'Enrollment Form'!$C401=\"Enroll\",'Enrollment Form'!$AS401<>\"\"),\"Y\",\"N\")))","v":""},{"$f":"IF($B394=\"N\",\"\",IF($Q394=\"-\",\"-\",IF(AND($Q394=\"Y\",'Enrollment Form'!$AS401=\"No\"),\"-\",IF(AND($Q394=\"Y\",'Enrollment Form'!$AS401=\"Yes\",'Enrollment Form'!$AT401<>\"\"),\"Y\",\"N\"))))","v":""},{"$f":"IF($B394=\"N\",\"\",IF(OR('Enrollment Form'!$B401<>\"Subscriber\",'Enrollment Form'!$C401=\"ROC\"),\"-\",IF(AND('Enrollment Form'!$B401=\"Subscriber\",'Enrollment Form'!$C401=\"Enroll\",'Enrollment Form'!$CV401<>\"\"),\"Y\",\"N\")))","v":""},{"$f":"IF($B394=\"N\",\"\",IF($S394=\"-\",\"-\",IF(AND($S394=\"Y\",'Enrollment Form'!$CV401=\"No\"),\"-\",IF(AND($S394=\"Y\",'Enrollment Form'!$CV401=\"Yes\",'Enrollment Form'!$CW401<>\"\"),\"Y\",\"N\"))))","v":""},{"$f":"IF(OR('Enrollment Form'!$AY401=\"Yes\",'Enrollment Form'!$AY401=\"\"),\"-\",IF(OR(AND('Enrollment Form'!$AY401=\"No\",ISERROR(FIND(\"HMO\",VLOOKUP('Enrollment Form'!G401,'Enrollment Form'!H$11:J$1000,3,FALSE),1))=FALSE,COUNTA('Enrollment Form'!$AZ401:$BC401)=4),AND('Enrollment Form'!$AY401=\"No\",ISERROR(FIND(\"HMO\",VLOOKUP('Enrollment Form'!G401,'Enrollment Form'!H$11:J$1000,3,FALSE),1))=FALSE,COUNTA('Enrollment Form'!$BT401:$BW401)=4)),\"Y\",\"N\"))","v":"-"},{"$f":"IF($B394=\"N\",\"\",IF('Enrollment Form'!$B401=\"Subscriber\",\"-\",IF(COUNTA('Enrollment Form'!$BL401,'Enrollment Form'!$BN401)=2,\"Y\",\"N\")))","v":""},{"$f":"IF($B394=\"N\",\"\",IF(OR('Enrollment Form'!$AX401=\"\",'Enrollment Form'!$AX401=\"No\"),\"-\",IF(AND('Enrollment Form'!$AX401=\"Yes\",COUNTA('Enrollment Form'!$CR401)=1),\"Y\",\"N\")))","v":""},{"$f":"IF(OR('Enrollment Form'!$CR401=\"\",'Enrollment Form'!$CR401=\"No\"),\"-\",IF(COUNTA('Enrollment Form'!$CT401:$CU401)=2,\"Y\",\"N\"))","v":"-"},{"$f":"IF($B394=\"N\",\"\",IF(COUNTIF('Enrollment Form'!$DG401:$DP401,\"Other\")=COUNTA('Enrollment Form'!$DK401,'Enrollment Form'!$DH401,'Enrollment Form'!$DN401,'Enrollment Form'!$DQ401),\"Y\",\"N\"))","v":""},{"$f":"IF($B394=\"N\",\"\",IF(OR('Enrollment Form'!B401<>\"Subscriber\",'Enrollment Form'!C401=\"ROC\",COUNTIF('Enrollment Form'!AV401:AW401,\"Yes\")>=1),\"-\",IF(AND('Enrollment Form'!C401=\"Enroll\",COUNTIF('Enrollment Form'!AV401:AW401,\"No\")=2,'Enrollment Form'!AX401=\"\"),\"N\",\"Y\")))","v":""},{"$f":"IF(OR(B394=\"N\",'Enrollment Form'!B401<>\"Subscriber\",'Enrollment Form'!C401=\"ROC\",'Enrollment Form'!O401<>\"Multiple of Salary\"),\"-\",IF(COUNTA('Enrollment Form'!T401:U401)<2,\"N\",\"Y\"))","v":"-"},{"$f":"IF(B394=\"N\",\"\",IF(OR('Enrollment Form'!C401=\"ROC\",'Enrollment Form'!B401<>\"Subscriber\",'Enrollment Form'!O401=\"Waive\",'Enrollment Form'!O401=\"\"),\"-\",IF('Enrollment Form'!P401=\"\",\"N\",\"Y\")))","v":""},{"$f":"IF($B394=\"N\",\"\",IF(AND('Enrollment Form'!$C401=\"ROC\",'Enrollment Form'!$DR401<>\"\"),\"Y\",IF(AND('Enrollment Form'!$C401=\"ROC\",'Enrollment Form'!$DR401=\"\"),\"N\",IF(AND('Enrollment Form'!$C401=\"Enroll\",'Enrollment Form'!$B401=\"Subscriber\",'Enrollment Form'!$CX401=\"No\",'Enrollment Form'!$DR401=\"\"),\"N\",IF(AND('Enrollment Form'!$C401=\"Enroll\",'Enrollment Form'!$B401=\"Subscriber\",'Enrollment Form'!$CX401=\"Yes\"),\"-\",\"Y\")))))","v":""},{"$f":"IF($B394=\"N\",\"\",IF(AND('Enrollment Form'!$C401=\"ROC\",'Enrollment Form'!$DS401<>\"\"),\"Y\",IF(AND('Enrollment Form'!$C401=\"ROC\",'Enrollment Form'!$DS401=\"\"),\"N\",IF(AND('Enrollment Form'!$C401=\"Enroll\",'Enrollment Form'!$B401=\"Subscriber\",'Enrollment Form'!$CX401=\"No\",'Enrollment Form'!$DS401=\"\"),\"N\",IF(AND('Enrollment Form'!$C401=\"Enroll\",'Enrollment Form'!$B401=\"Subscriber\",'Enrollment Form'!$CX401=\"Yes\"),\"-\",\"Y\")))))","v":""},{"$f":"IF('Enrollment Form'!AH401=\"\",\"\",IF(ISERROR(SEARCH(\".\",'Enrollment Form'!AH401,SEARCH(\"@\",'Enrollment Form'!AH401))),\"N\",\"Y\"))","v":""},{"$f":"IF(OR($B394=\"N\",'Enrollment Form'!$G401=\"\"),\"\",IF('Enrollment Form'!$B401<>\"Subscriber\",\"-\",IF(COUNTIF('Enrollment Form'!$AV401:$AW401,\"Yes\")=2,\"N\",\"Y\")))","v":""},{"$f":"IF(OR('Enrollment Form'!$CJ401=\"\",'Enrollment Form'!$CJ401=\"No\"),\"-\",IF(AND('Enrollment Form'!$CJ401=\"Yes\",'Enrollment Form'!$CK401=\"\"),\"N\",\"Y\"))","v":"-"},{"$f":"IF(OR('Enrollment Form'!$CL401=\"\",'Enrollment Form'!$CL401=\"No\"),\"-\",IF(AND('Enrollment Form'!$CL401=\"Yes\",'Enrollment Form'!$CM401=\"\"),\"N\",\"Y\"))","v":"-"},{"$f":"IF(OR('Enrollment Form'!$CN401=\"\",'Enrollment Form'!$CN401=\"No\"),\"-\",IF(AND('Enrollment Form'!$CN401=\"Yes\",'Enrollment Form'!$CO401=\"\"),\"N\",\"Y\"))","v":"-"},{"$f":"IF(OR('Enrollment Form'!$CN401=\"\",'Enrollment Form'!$CN401=\"No\"),\"-\",IF(AND('Enrollment Form'!$CN401=\"Yes\",'Enrollment Form'!$CP401=\"\"),\"N\",\"Y\"))","v":"-"},{"$f":"IF('Enrollment Form'!B401<>\"Subscriber\",\"-\",IF(AND('Enrollment Form'!B401=\"Subscriber\",'Enrollment Form'!C401=\"Enroll\",'Enrollment Form'!AA401=\"\"),\"N\",\"Y\"))","v":"-"},{"$f":"IF(OR('Enrollment Form'!B401=\"Subscriber\",'Enrollment Form'!B401=\"\"),\"-\",IF('Enrollment Form'!BP401=\"\",\"N\",\"Y\"))","v":"-"},{"$f":"IF('Enrollment Form'!B401<>\"Subscriber\",\"-\",IF(AND('Enrollment Form'!B401=\"Subscriber\",'Enrollment Form'!G401=\"\"),\"N\",\"Y\"))","v":"-"},{"$f":"IF('Enrollment Form'!A401=\"\",\"\",IF('Enrollment Form'!B401=\"Subscriber\",\"-\",IF(AND('Enrollment Form'!B401<>\"Subscriber\",'Enrollment Form'!G401='Enrollment Form'!H401),\"N\",\"Y\")))","v":""},0]
[402,{"$f":"IF('Enrollment Form'!$A402<>\"\",\"Y\",\"N\")","v":"N"},{"$f":"IF(AND('Enrollment Form'!$B402=\"\",'Enrollment Form'!$C402<>\"\"),\"N\",IF($B395=\"N\",\"\",\"Y\"))","v":""},{"$f":"IF(OR($B395=\"N\",'Enrollment Form'!G402=\"\"),\"\",IF('Enrollment Form'!$B402<>\"Subscriber\",\"\",IF('Enrollment Form'!$G402='Enrollment Form'!$H402,\"Y\",\"N\")))","v":""},{"$f":"IF($B395=\"N\",\"\",IF(AND(COUNTIFS('Enrollment Form'!$H$11:$H$1000,'Enrollment Form'!$H402,'Enrollment Form'!$B$11:$B$1000,'Enrollment Form'!$B402)>1,'Enrollment Form'!$H402<>\"\"),\"N\",\"Y\"))","v":""},{"$f":"IF($B395=\"N\",\"\",IF(LEN('Enrollment Form'!$Y402)=0,\"\",IF(LEN('Enrollment Form'!$Y402)<>5,\"N\",\"Y\")))","v":""},{"$f":"IF($B395=\"N\",\"\",IF(LEN('Enrollment Form'!$AD402=0),\"\",IF(LEN('Enrollment Form'!$AD402)<>5,\"N\",\"Y\")))","v":""},{"$f":"IF($B395=\"N\",\"\",IF(LEN('Enrollment Form'!$BS402=0),\"\",IF(LEN('Enrollment Form'!$BS402)<>5,\"N\",\"Y\")))","v":""},{"$f":"IF($B395=\"N\",\"\",IF(LEN('Enrollment Form'!$AE402)=0,\"\",IF(LEN('Enrollment Form'!$AE402)<>10,\"N\",\"Y\")))","v":""},{"$f":"IF($B395=\"N\",\"\",IF(LEN('Enrollment Form'!$AF402)=0,\"\",IF(LEN('Enrollment Form'!$AF402)<>10,\"N\",\"Y\")))","v":""},{"$f":"IF('Enrollment Form'!$O402<>\"Graded\",\"-\",IF(AND('Enrollment Form'!$O402=\"Graded\",'Enrollment Form'!$AR402<>\"\"),\"Y\",\"N\"))","v":"-"},{"$f":"IF($B395=\"N\",\"\",IF(OR('Enrollment Form'!$B402<>\"Subscriber\",'Enrollment Form'!$C402=\"ROC\"),\"-\",IF(AND('Enrollment Form'!$B402=\"Subscriber\",'Enrollment Form'!$C402=\"Enroll\",'Enrollment Form'!$AJ402<>\"\"),\"Y\",\"N\")))","v":""},{"$f":"IF($B395=\"N\",\"\",IF(OR('Enrollment Form'!$B402<>\"Subscriber\",'Enrollment Form'!$C402=\"ROC\"),\"-\",IF(AND('Enrollment Form'!$B402=\"Subscriber\",'Enrollment Form'!$C402=\"Enroll\",'Enrollment Form'!$AK402<>\"\"),\"Y\",\"N\")))","v":""},{"$f":"IF($B395=\"N\",\"\",IF(OR('Enrollment Form'!$B402<>\"Subscriber\",'Enrollment Form'!$C402=\"ROC\"),\"-\",IF(AND('Enrollment Form'!$B402=\"Subscriber\",'Enrollment Form'!$C402=\"Enroll\",'Enrollment Form'!$AL402<>\"\"),\"Y\",\"N\")))","v":""},{"$f":"IF($B395=\"N\",\"\",IF(OR('Enrollment Form'!$B402<>\"Subscriber\",'Enrollment Form'!$C402=\"ROC\"),\"-\",IF(AND('Enrollment Form'!$B402=\"Subscriber\",'Enrollment Form'!$C402=\"Enroll\",'Enrollment Form'!$AP402<>\"\"),\"Y\",\"N\")))","v":""},{"$f":"IF($B395=\"N\",\"\",IF(OR('Enrollment Form'!$B402<>\"Subscriber\",'Enrollment Form'!$C402=\"ROC\"),\"-\",IF(AND('Enrollment Form'!$B402=\"Subscriber\",'Enrollment Form'!$C402=\"Enroll\",'Enrollment Form'!$AQ402<>\"\"),\"Y\",\"N\")))","v":""},{"$f":"IF($B395=\"N\",\"\",IF(OR('Enrollment Form'!$B402<>\"Subscriber\",'Enrollment Form'!$C402=\"ROC\"),\"-\",IF(AND('Enrollment Form'!$B402=\"Subscriber\",'Enrollment Form'!$C402=\"Enroll\",'Enrollment Form'!$AS402<>\"\"),\"Y\",\"N\")))","v":""},{"$f":"IF($B395=\"N\",\"\",IF($Q395=\"-\",\"-\",IF(AND($Q395=\"Y\",'Enrollment Form'!$AS402=\"No\"),\"-\",IF(AND($Q395=\"Y\",'Enrollment Form'!$AS402=\"Yes\",'Enrollment Form'!$AT402<>\"\"),\"Y\",\"N\"))))","v":""},{"$f":"IF($B395=\"N\",\"\",IF(OR('Enrollment Form'!$B402<>\"Subscriber\",'Enrollment Form'!$C402=\"ROC\"),\"-\",IF(AND('Enrollment Form'!$B402=\"Subscriber\",'Enrollment Form'!$C402=\"Enroll\",'Enrollment Form'!$CV402<>\"\"),\"Y\",\"N\")))","v":""},{"$f":"IF($B395=\"N\",\"\",IF($S395=\"-\",\"-\",IF(AND($S395=\"Y\",'Enrollment Form'!$CV402=\"No\"),\"-\",IF(AND($S395=\"Y\",'Enrollment Form'!$CV402=\"Yes\",'Enrollment Form'!$CW402<>\"\"),\"Y\",\"N\"))))","v":""},{"$f":"IF(OR('Enrollment Form'!$AY402=\"Yes\",'Enrollment Form'!$AY402=\"\"),\"-\",IF(OR(AND('Enrollment Form'!$AY402=\"No\",ISERROR(FIND(\"HMO\",VLOOKUP('Enrollment Form'!G402,'Enrollment Form'!H$11:J$1000,3,FALSE),1))=FALSE,COUNTA('Enrollment Form'!$AZ402:$BC402)=4),AND('Enrollment Form'!$AY402=\"No\",ISERROR(FIND(\"HMO\",VLOOKUP('Enrollment Form'!G402,'Enrollment Form'!H$11:J$1000,3,FALSE),1))=FALSE,COUNTA('Enrollment Form'!$BT402:$BW402)=4)),\"Y\",\"N\"))","v":"-"},{"$f":"IF($B395=\"N\",\"\",IF('Enrollment Form'!$B402=\"Subscriber\",\"-\",IF(COUNTA('Enrollment Form'!$BL402,'Enrollment Form'!$BN402)=2,\"Y\",\"N\")))","v":""},{"$f":"IF($B395=\"N\",\"\",IF(OR('Enrollment Form'!$AX402=\"\",'Enrollment Form'!$AX402=\"No\"),\"-\",IF(AND('Enrollment Form'!$AX402=\"Yes\",COUNTA('Enrollment Form'!$CR402)=1),\"Y\",\"N\")))","v":""},{"$f":"IF(OR('Enrollment Form'!$CR402=\"\",'Enrollment Form'!$CR402=\"No\"),\"-\",IF(COUNTA('Enrollment Form'!$CT402:$CU402)=2,\"Y\",\"N\"))","v":"-"},{"$f":"IF($B395=\"N\",\"\",IF(COUNTIF('Enrollment Form'!$DG402:$DP402,\"Other\")=COUNTA('Enrollment Form'!$DK402,'Enrollment Form'!$DH402,'Enrollment Form'!$DN402,'Enrollment Form'!$DQ402),\"Y\",\"N\"))","v":""},{"$f":"IF($B395=\"N\",\"\",IF(OR('Enrollment Form'!B402<>\"Subscriber\",'Enrollment Form'!C402=\"ROC\",COUNTIF('Enrollment Form'!AV402:AW402,\"Yes\")>=1),\"-\",IF(AND('Enrollment Form'!C402=\"Enroll\",COUNTIF('Enrollment Form'!AV402:AW402,\"No\")=2,'Enrollment Form'!AX402=\"\"),\"N\",\"Y\")))","v":""},{"$f":"IF(OR(B395=\"N\",'Enrollment Form'!B402<>\"Subscriber\",'Enrollment Form'!C402=\"ROC\",'Enrollment Form'!O402<>\"Multiple of Salary\"),\"-\",IF(COUNTA('Enrollment Form'!T402:U402)<2,\"N\",\"Y\"))","v":"-"},{"$f":"IF(B395=\"N\",\"\",IF(OR('Enrollment Form'!C402=\"ROC\",'Enrollment Form'!B402<>\"Subscriber\",'Enrollment Form'!O402=\"Waive\",'Enrollment Form'!O402=\"\"),\"-\",IF('Enrollment Form'!P402=\"\",\"N\",\"Y\")))","v":""},{"$f":"IF($B395=\"N\",\"\",IF(AND('Enrollment Form'!$C402=\"ROC\",'Enrollment Form'!$DR402<>\"\"),\"Y\",IF(AND('Enrollment Form'!$C402=\"ROC\",'Enrollment Form'!$DR402=\"\"),\"N\",IF(AND('Enrollment Form'!$C402=\"Enroll\",'Enrollment Form'!$B402=\"Subscriber\",'Enrollment Form'!$CX402=\"No\",'Enrollment Form'!$DR402=\"\"),\"N\",IF(AND('Enrollment Form'!$C402=\"Enroll\",'Enrollment Form'!$B402=\"Subscriber\",'Enrollment Form'!$CX402=\"Yes\"),\"-\",\"Y\")))))","v":""},{"$f":"IF($B395=\"N\",\"\",IF(AND('Enrollment Form'!$C402=\"ROC\",'Enrollment Form'!$DS402<>\"\"),\"Y\",IF(AND('Enrollment Form'!$C402=\"ROC\",'Enrollment Form'!$DS402=\"\"),\"N\",IF(AND('Enrollment Form'!$C402=\"Enroll\",'Enrollment Form'!$B402=\"Subscriber\",'Enrollment Form'!$CX402=\"No\",'Enrollment Form'!$DS402=\"\"),\"N\",IF(AND('Enrollment Form'!$C402=\"Enroll\",'Enrollment Form'!$B402=\"Subscriber\",'Enrollment Form'!$CX402=\"Yes\"),\"-\",\"Y\")))))","v":""},{"$f":"IF('Enrollment Form'!AH402=\"\",\"\",IF(ISERROR(SEARCH(\".\",'Enrollment Form'!AH402,SEARCH(\"@\",'Enrollment Form'!AH402))),\"N\",\"Y\"))","v":""},{"$f":"IF(OR($B395=\"N\",'Enrollment Form'!$G402=\"\"),\"\",IF('Enrollment Form'!$B402<>\"Subscriber\",\"-\",IF(COUNTIF('Enrollment Form'!$AV402:$AW402,\"Yes\")=2,\"N\",\"Y\")))","v":""},{"$f":"IF(OR('Enrollment Form'!$CJ402=\"\",'Enrollment Form'!$CJ402=\"No\"),\"-\",IF(AND('Enrollment Form'!$CJ402=\"Yes\",'Enrollment Form'!$CK402=\"\"),\"N\",\"Y\"))","v":"-"},{"$f":"IF(OR('Enrollment Form'!$CL402=\"\",'Enrollment Form'!$CL402=\"No\"),\"-\",IF(AND('Enrollment Form'!$CL402=\"Yes\",'Enrollment Form'!$CM402=\"\"),\"N\",\"Y\"))","v":"-"},{"$f":"IF(OR('Enrollment Form'!$CN402=\"\",'Enrollment Form'!$CN402=\"No\"),\"-\",IF(AND('Enrollment Form'!$CN402=\"Yes\",'Enrollment Form'!$CO402=\"\"),\"N\",\"Y\"))","v":"-"},{"$f":"IF(OR('Enrollment Form'!$CN402=\"\",'Enrollment Form'!$CN402=\"No\"),\"-\",IF(AND('Enrollment Form'!$CN402=\"Yes\",'Enrollment Form'!$CP402=\"\"),\"N\",\"Y\"))","v":"-"},{"$f":"IF('Enrollment Form'!B402<>\"Subscriber\",\"-\",IF(AND('Enrollment Form'!B402=\"Subscriber\",'Enrollment Form'!C402=\"Enroll\",'Enrollment Form'!AA402=\"\"),\"N\",\"Y\"))","v":"-"},{"$f":"IF(OR('Enrollment Form'!B402=\"Subscriber\",'Enrollment Form'!B402=\"\"),\"-\",IF('Enrollment Form'!BP402=\"\",\"N\",\"Y\"))","v":"-"},{"$f":"IF('Enrollment Form'!B402<>\"Subscriber\",\"-\",IF(AND('Enrollment Form'!B402=\"Subscriber\",'Enrollment Form'!G402=\"\"),\"N\",\"Y\"))","v":"-"},{"$f":"IF('Enrollment Form'!A402=\"\",\"\",IF('Enrollment Form'!B402=\"Subscriber\",\"-\",IF(AND('Enrollment Form'!B402<>\"Subscriber\",'Enrollment Form'!G402='Enrollment Form'!H402),\"N\",\"Y\")))","v":""},0]
[403,{"$f":"IF('Enrollment Form'!$A403<>\"\",\"Y\",\"N\")","v":"N"},{"$f":"IF(AND('Enrollment Form'!$B403=\"\",'Enrollment Form'!$C403<>\"\"),\"N\",IF($B396=\"N\",\"\",\"Y\"))","v":""},{"$f":"IF(OR($B396=\"N\",'Enrollment Form'!G403=\"\"),\"\",IF('Enrollment Form'!$B403<>\"Subscriber\",\"\",IF('Enrollment Form'!$G403='Enrollment Form'!$H403,\"Y\",\"N\")))","v":""},{"$f":"IF($B396=\"N\",\"\",IF(AND(COUNTIFS('Enrollment Form'!$H$11:$H$1000,'Enrollment Form'!$H403,'Enrollment Form'!$B$11:$B$1000,'Enrollment Form'!$B403)>1,'Enrollment Form'!$H403<>\"\"),\"N\",\"Y\"))","v":""},{"$f":"IF($B396=\"N\",\"\",IF(LEN('Enrollment Form'!$Y403)=0,\"\",IF(LEN('Enrollment Form'!$Y403)<>5,\"N\",\"Y\")))","v":""},{"$f":"IF($B396=\"N\",\"\",IF(LEN('Enrollment Form'!$AD403=0),\"\",IF(LEN('Enrollment Form'!$AD403)<>5,\"N\",\"Y\")))","v":""},{"$f":"IF($B396=\"N\",\"\",IF(LEN('Enrollment Form'!$BS403=0),\"\",IF(LEN('Enrollment Form'!$BS403)<>5,\"N\",\"Y\")))","v":""},{"$f":"IF($B396=\"N\",\"\",IF(LEN('Enrollment Form'!$AE403)=0,\"\",IF(LEN('Enrollment Form'!$AE403)<>10,\"N\",\"Y\")))","v":""},{"$f":"IF($B396=\"N\",\"\",IF(LEN('Enrollment Form'!$AF403)=0,\"\",IF(LEN('Enrollment Form'!$AF403)<>10,\"N\",\"Y\")))","v":""},{"$f":"IF('Enrollment Form'!$O403<>\"Graded\",\"-\",IF(AND('Enrollment Form'!$O403=\"Graded\",'Enrollment Form'!$AR403<>\"\"),\"Y\",\"N\"))","v":"-"},{"$f":"IF($B396=\"N\",\"\",IF(OR('Enrollment Form'!$B403<>\"Subscriber\",'Enrollment Form'!$C403=\"ROC\"),\"-\",IF(AND('Enrollment Form'!$B403=\"Subscriber\",'Enrollment Form'!$C403=\"Enroll\",'Enrollment Form'!$AJ403<>\"\"),\"Y\",\"N\")))","v":""},{"$f":"IF($B396=\"N\",\"\",IF(OR('Enrollment Form'!$B403<>\"Subscriber\",'Enrollment Form'!$C403=\"ROC\"),\"-\",IF(AND('Enrollment Form'!$B403=\"Subscriber\",'Enrollment Form'!$C403=\"Enroll\",'Enrollment Form'!$AK403<>\"\"),\"Y\",\"N\")))","v":""},{"$f":"IF($B396=\"N\",\"\",IF(OR('Enrollment Form'!$B403<>\"Subscriber\",'Enrollment Form'!$C403=\"ROC\"),\"-\",IF(AND('Enrollment Form'!$B403=\"Subscriber\",'Enrollment Form'!$C403=\"Enroll\",'Enrollment Form'!$AL403<>\"\"),\"Y\",\"N\")))","v":""},{"$f":"IF($B396=\"N\",\"\",IF(OR('Enrollment Form'!$B403<>\"Subscriber\",'Enrollment Form'!$C403=\"ROC\"),\"-\",IF(AND('Enrollment Form'!$B403=\"Subscriber\",'Enrollment Form'!$C403=\"Enroll\",'Enrollment Form'!$AP403<>\"\"),\"Y\",\"N\")))","v":""},{"$f":"IF($B396=\"N\",\"\",IF(OR('Enrollment Form'!$B403<>\"Subscriber\",'Enrollment Form'!$C403=\"ROC\"),\"-\",IF(AND('Enrollment Form'!$B403=\"Subscriber\",'Enrollment Form'!$C403=\"Enroll\",'Enrollment Form'!$AQ403<>\"\"),\"Y\",\"N\")))","v":""},{"$f":"IF($B396=\"N\",\"\",IF(OR('Enrollment Form'!$B403<>\"Subscriber\",'Enrollment Form'!$C403=\"ROC\"),\"-\",IF(AND('Enrollment Form'!$B403=\"Subscriber\",'Enrollment Form'!$C403=\"Enroll\",'Enrollment Form'!$AS403<>\"\"),\"Y\",\"N\")))","v":""},{"$f":"IF($B396=\"N\",\"\",IF($Q396=\"-\",\"-\",IF(AND($Q396=\"Y\",'Enrollment Form'!$AS403=\"No\"),\"-\",IF(AND($Q396=\"Y\",'Enrollment Form'!$AS403=\"Yes\",'Enrollment Form'!$AT403<>\"\"),\"Y\",\"N\"))))","v":""},{"$f":"IF($B396=\"N\",\"\",IF(OR('Enrollment Form'!$B403<>\"Subscriber\",'Enrollment Form'!$C403=\"ROC\"),\"-\",IF(AND('Enrollment Form'!$B403=\"Subscriber\",'Enrollment Form'!$C403=\"Enroll\",'Enrollment Form'!$CV403<>\"\"),\"Y\",\"N\")))","v":""},{"$f":"IF($B396=\"N\",\"\",IF($S396=\"-\",\"-\",IF(AND($S396=\"Y\",'Enrollment Form'!$CV403=\"No\"),\"-\",IF(AND($S396=\"Y\",'Enrollment Form'!$CV403=\"Yes\",'Enrollment Form'!$CW403<>\"\"),\"Y\",\"N\"))))","v":""},{"$f":"IF(OR('Enrollment Form'!$AY403=\"Yes\",'Enrollment Form'!$AY403=\"\"),\"-\",IF(OR(AND('Enrollment Form'!$AY403=\"No\",ISERROR(FIND(\"HMO\",VLOOKUP('Enrollment Form'!G403,'Enrollment Form'!H$11:J$1000,3,FALSE),1))=FALSE,COUNTA('Enrollment Form'!$AZ403:$BC403)=4),AND('Enrollment Form'!$AY403=\"No\",ISERROR(FIND(\"HMO\",VLOOKUP('Enrollment Form'!G403,'Enrollment Form'!H$11:J$1000,3,FALSE),1))=FALSE,COUNTA('Enrollment Form'!$BT403:$BW403)=4)),\"Y\",\"N\"))","v":"-"},{"$f":"IF($B396=\"N\",\"\",IF('Enrollment Form'!$B403=\"Subscriber\",\"-\",IF(COUNTA('Enrollment Form'!$BL403,'Enrollment Form'!$BN403)=2,\"Y\",\"N\")))","v":""},{"$f":"IF($B396=\"N\",\"\",IF(OR('Enrollment Form'!$AX403=\"\",'Enrollment Form'!$AX403=\"No\"),\"-\",IF(AND('Enrollment Form'!$AX403=\"Yes\",COUNTA('Enrollment Form'!$CR403)=1),\"Y\",\"N\")))","v":""},{"$f":"IF(OR('Enrollment Form'!$CR403=\"\",'Enrollment Form'!$CR403=\"No\"),\"-\",IF(COUNTA('Enrollment Form'!$CT403:$CU403)=2,\"Y\",\"N\"))","v":"-"},{"$f":"IF($B396=\"N\",\"\",IF(COUNTIF('Enrollment Form'!$DG403:$DP403,\"Other\")=COUNTA('Enrollment Form'!$DK403,'Enrollment Form'!$DH403,'Enrollment Form'!$DN403,'Enrollment Form'!$DQ403),\"Y\",\"N\"))","v":""},{"$f":"IF($B396=\"N\",\"\",IF(OR('Enrollment Form'!B403<>\"Subscriber\",'Enrollment Form'!C403=\"ROC\",COUNTIF('Enrollment Form'!AV403:AW403,\"Yes\")>=1),\"-\",IF(AND('Enrollment Form'!C403=\"Enroll\",COUNTIF('Enrollment Form'!AV403:AW403,\"No\")=2,'Enrollment Form'!AX403=\"\"),\"N\",\"Y\")))","v":""},{"$f":"IF(OR(B396=\"N\",'Enrollment Form'!B403<>\"Subscriber\",'Enrollment Form'!C403=\"ROC\",'Enrollment Form'!O403<>\"Multiple of Salary\"),\"-\",IF(COUNTA('Enrollment Form'!T403:U403)<2,\"N\",\"Y\"))","v":"-"},{"$f":"IF(B396=\"N\",\"\",IF(OR('Enrollment Form'!C403=\"ROC\",'Enrollment Form'!B403<>\"Subscriber\",'Enrollment Form'!O403=\"Waive\",'Enrollment Form'!O403=\"\"),\"-\",IF('Enrollment Form'!P403=\"\",\"N\",\"Y\")))","v":""},{"$f":"IF($B396=\"N\",\"\",IF(AND('Enrollment Form'!$C403=\"ROC\",'Enrollment Form'!$DR403<>\"\"),\"Y\",IF(AND('Enrollment Form'!$C403=\"ROC\",'Enrollment Form'!$DR403=\"\"),\"N\",IF(AND('Enrollment Form'!$C403=\"Enroll\",'Enrollment Form'!$B403=\"Subscriber\",'Enrollment Form'!$CX403=\"No\",'Enrollment Form'!$DR403=\"\"),\"N\",IF(AND('Enrollment Form'!$C403=\"Enroll\",'Enrollment Form'!$B403=\"Subscriber\",'Enrollment Form'!$CX403=\"Yes\"),\"-\",\"Y\")))))","v":""},{"$f":"IF($B396=\"N\",\"\",IF(AND('Enrollment Form'!$C403=\"ROC\",'Enrollment Form'!$DS403<>\"\"),\"Y\",IF(AND('Enrollment Form'!$C403=\"ROC\",'Enrollment Form'!$DS403=\"\"),\"N\",IF(AND('Enrollment Form'!$C403=\"Enroll\",'Enrollment Form'!$B403=\"Subscriber\",'Enrollment Form'!$CX403=\"No\",'Enrollment Form'!$DS403=\"\"),\"N\",IF(AND('Enrollment Form'!$C403=\"Enroll\",'Enrollment Form'!$B403=\"Subscriber\",'Enrollment Form'!$CX403=\"Yes\"),\"-\",\"Y\")))))","v":""},{"$f":"IF('Enrollment Form'!AH403=\"\",\"\",IF(ISERROR(SEARCH(\".\",'Enrollment Form'!AH403,SEARCH(\"@\",'Enrollment Form'!AH403))),\"N\",\"Y\"))","v":""},{"$f":"IF(OR($B396=\"N\",'Enrollment Form'!$G403=\"\"),\"\",IF('Enrollment Form'!$B403<>\"Subscriber\",\"-\",IF(COUNTIF('Enrollment Form'!$AV403:$AW403,\"Yes\")=2,\"N\",\"Y\")))","v":""},{"$f":"IF(OR('Enrollment Form'!$CJ403=\"\",'Enrollment Form'!$CJ403=\"No\"),\"-\",IF(AND('Enrollment Form'!$CJ403=\"Yes\",'Enrollment Form'!$CK403=\"\"),\"N\",\"Y\"))","v":"-"},{"$f":"IF(OR('Enrollment Form'!$CL403=\"\",'Enrollment Form'!$CL403=\"No\"),\"-\",IF(AND('Enrollment Form'!$CL403=\"Yes\",'Enrollment Form'!$CM403=\"\"),\"N\",\"Y\"))","v":"-"},{"$f":"IF(OR('Enrollment Form'!$CN403=\"\",'Enrollment Form'!$CN403=\"No\"),\"-\",IF(AND('Enrollment Form'!$CN403=\"Yes\",'Enrollment Form'!$CO403=\"\"),\"N\",\"Y\"))","v":"-"},{"$f":"IF(OR('Enrollment Form'!$CN403=\"\",'Enrollment Form'!$CN403=\"No\"),\"-\",IF(AND('Enrollment Form'!$CN403=\"Yes\",'Enrollment Form'!$CP403=\"\"),\"N\",\"Y\"))","v":"-"},{"$f":"IF('Enrollment Form'!B403<>\"Subscriber\",\"-\",IF(AND('Enrollment Form'!B403=\"Subscriber\",'Enrollment Form'!C403=\"Enroll\",'Enrollment Form'!AA403=\"\"),\"N\",\"Y\"))","v":"-"},{"$f":"IF(OR('Enrollment Form'!B403=\"Subscriber\",'Enrollment Form'!B403=\"\"),\"-\",IF('Enrollment Form'!BP403=\"\",\"N\",\"Y\"))","v":"-"},{"$f":"IF('Enrollment Form'!B403<>\"Subscriber\",\"-\",IF(AND('Enrollment Form'!B403=\"Subscriber\",'Enrollment Form'!G403=\"\"),\"N\",\"Y\"))","v":"-"},{"$f":"IF('Enrollment Form'!A403=\"\",\"\",IF('Enrollment Form'!B403=\"Subscriber\",\"-\",IF(AND('Enrollment Form'!B403<>\"Subscriber\",'Enrollment Form'!G403='Enrollment Form'!H403),\"N\",\"Y\")))","v":""},0]
[404,{"$f":"IF('Enrollment Form'!$A404<>\"\",\"Y\",\"N\")","v":"N"},{"$f":"IF(AND('Enrollment Form'!$B404=\"\",'Enrollment Form'!$C404<>\"\"),\"N\",IF($B397=\"N\",\"\",\"Y\"))","v":""},{"$f":"IF(OR($B397=\"N\",'Enrollment Form'!G404=\"\"),\"\",IF('Enrollment Form'!$B404<>\"Subscriber\",\"\",IF('Enrollment Form'!$G404='Enrollment Form'!$H404,\"Y\",\"N\")))","v":""},{"$f":"IF($B397=\"N\",\"\",IF(AND(COUNTIFS('Enrollment Form'!$H$11:$H$1000,'Enrollment Form'!$H404,'Enrollment Form'!$B$11:$B$1000,'Enrollment Form'!$B404)>1,'Enrollment Form'!$H404<>\"\"),\"N\",\"Y\"))","v":""},{"$f":"IF($B397=\"N\",\"\",IF(LEN('Enrollment Form'!$Y404)=0,\"\",IF(LEN('Enrollment Form'!$Y404)<>5,\"N\",\"Y\")))","v":""},{"$f":"IF($B397=\"N\",\"\",IF(LEN('Enrollment Form'!$AD404=0),\"\",IF(LEN('Enrollment Form'!$AD404)<>5,\"N\",\"Y\")))","v":""},{"$f":"IF($B397=\"N\",\"\",IF(LEN('Enrollment Form'!$BS404=0),\"\",IF(LEN('Enrollment Form'!$BS404)<>5,\"N\",\"Y\")))","v":""},{"$f":"IF($B397=\"N\",\"\",IF(LEN('Enrollment Form'!$AE404)=0,\"\",IF(LEN('Enrollment Form'!$AE404)<>10,\"N\",\"Y\")))","v":""},{"$f":"IF($B397=\"N\",\"\",IF(LEN('Enrollment Form'!$AF404)=0,\"\",IF(LEN('Enrollment Form'!$AF404)<>10,\"N\",\"Y\")))","v":""},{"$f":"IF('Enrollment Form'!$O404<>\"Graded\",\"-\",IF(AND('Enrollment Form'!$O404=\"Graded\",'Enrollment Form'!$AR404<>\"\"),\"Y\",\"N\"))","v":"-"},{"$f":"IF($B397=\"N\",\"\",IF(OR('Enrollment Form'!$B404<>\"Subscriber\",'Enrollment Form'!$C404=\"ROC\"),\"-\",IF(AND('Enrollment Form'!$B404=\"Subscriber\",'Enrollment Form'!$C404=\"Enroll\",'Enrollment Form'!$AJ404<>\"\"),\"Y\",\"N\")))","v":""},{"$f":"IF($B397=\"N\",\"\",IF(OR('Enrollment Form'!$B404<>\"Subscriber\",'Enrollment Form'!$C404=\"ROC\"),\"-\",IF(AND('Enrollment Form'!$B404=\"Subscriber\",'Enrollment Form'!$C404=\"Enroll\",'Enrollment Form'!$AK404<>\"\"),\"Y\",\"N\")))","v":""},{"$f":"IF($B397=\"N\",\"\",IF(OR('Enrollment Form'!$B404<>\"Subscriber\",'Enrollment Form'!$C404=\"ROC\"),\"-\",IF(AND('Enrollment Form'!$B404=\"Subscriber\",'Enrollment Form'!$C404=\"Enroll\",'Enrollment Form'!$AL404<>\"\"),\"Y\",\"N\")))","v":""},{"$f":"IF($B397=\"N\",\"\",IF(OR('Enrollment Form'!$B404<>\"Subscriber\",'Enrollment Form'!$C404=\"ROC\"),\"-\",IF(AND('Enrollment Form'!$B404=\"Subscriber\",'Enrollment Form'!$C404=\"Enroll\",'Enrollment Form'!$AP404<>\"\"),\"Y\",\"N\")))","v":""},{"$f":"IF($B397=\"N\",\"\",IF(OR('Enrollment Form'!$B404<>\"Subscriber\",'Enrollment Form'!$C404=\"ROC\"),\"-\",IF(AND('Enrollment Form'!$B404=\"Subscriber\",'Enrollment Form'!$C404=\"Enroll\",'Enrollment Form'!$AQ404<>\"\"),\"Y\",\"N\")))","v":""},{"$f":"IF($B397=\"N\",\"\",IF(OR('Enrollment Form'!$B404<>\"Subscriber\",'Enrollment Form'!$C404=\"ROC\"),\"-\",IF(AND('Enrollment Form'!$B404=\"Subscriber\",'Enrollment Form'!$C404=\"Enroll\",'Enrollment Form'!$AS404<>\"\"),\"Y\",\"N\")))","v":""},{"$f":"IF($B397=\"N\",\"\",IF($Q397=\"-\",\"-\",IF(AND($Q397=\"Y\",'Enrollment Form'!$AS404=\"No\"),\"-\",IF(AND($Q397=\"Y\",'Enrollment Form'!$AS404=\"Yes\",'Enrollment Form'!$AT404<>\"\"),\"Y\",\"N\"))))","v":""},{"$f":"IF($B397=\"N\",\"\",IF(OR('Enrollment Form'!$B404<>\"Subscriber\",'Enrollment Form'!$C404=\"ROC\"),\"-\",IF(AND('Enrollment Form'!$B404=\"Subscriber\",'Enrollment Form'!$C404=\"Enroll\",'Enrollment Form'!$CV404<>\"\"),\"Y\",\"N\")))","v":""},{"$f":"IF($B397=\"N\",\"\",IF($S397=\"-\",\"-\",IF(AND($S397=\"Y\",'Enrollment Form'!$CV404=\"No\"),\"-\",IF(AND($S397=\"Y\",'Enrollment Form'!$CV404=\"Yes\",'Enrollment Form'!$CW404<>\"\"),\"Y\",\"N\"))))","v":""},{"$f":"IF(OR('Enrollment Form'!$AY404=\"Yes\",'Enrollment Form'!$AY404=\"\"),\"-\",IF(OR(AND('Enrollment Form'!$AY404=\"No\",ISERROR(FIND(\"HMO\",VLOOKUP('Enrollment Form'!G404,'Enrollment Form'!H$11:J$1000,3,FALSE),1))=FALSE,COUNTA('Enrollment Form'!$AZ404:$BC404)=4),AND('Enrollment Form'!$AY404=\"No\",ISERROR(FIND(\"HMO\",VLOOKUP('Enrollment Form'!G404,'Enrollment Form'!H$11:J$1000,3,FALSE),1))=FALSE,COUNTA('Enrollment Form'!$BT404:$BW404)=4)),\"Y\",\"N\"))","v":"-"},{"$f":"IF($B397=\"N\",\"\",IF('Enrollment Form'!$B404=\"Subscriber\",\"-\",IF(COUNTA('Enrollment Form'!$BL404,'Enrollment Form'!$BN404)=2,\"Y\",\"N\")))","v":""},{"$f":"IF($B397=\"N\",\"\",IF(OR('Enrollment Form'!$AX404=\"\",'Enrollment Form'!$AX404=\"No\"),\"-\",IF(AND('Enrollment Form'!$AX404=\"Yes\",COUNTA('Enrollment Form'!$CR404)=1),\"Y\",\"N\")))","v":""},{"$f":"IF(OR('Enrollment Form'!$CR404=\"\",'Enrollment Form'!$CR404=\"No\"),\"-\",IF(COUNTA('Enrollment Form'!$CT404:$CU404)=2,\"Y\",\"N\"))","v":"-"},{"$f":"IF($B397=\"N\",\"\",IF(COUNTIF('Enrollment Form'!$DG404:$DP404,\"Other\")=COUNTA('Enrollment Form'!$DK404,'Enrollment Form'!$DH404,'Enrollment Form'!$DN404,'Enrollment Form'!$DQ404),\"Y\",\"N\"))","v":""},{"$f":"IF($B397=\"N\",\"\",IF(OR('Enrollment Form'!B404<>\"Subscriber\",'Enrollment Form'!C404=\"ROC\",COUNTIF('Enrollment Form'!AV404:AW404,\"Yes\")>=1),\"-\",IF(AND('Enrollment Form'!C404=\"Enroll\",COUNTIF('Enrollment Form'!AV404:AW404,\"No\")=2,'Enrollment Form'!AX404=\"\"),\"N\",\"Y\")))","v":""},{"$f":"IF(OR(B397=\"N\",'Enrollment Form'!B404<>\"Subscriber\",'Enrollment Form'!C404=\"ROC\",'Enrollment Form'!O404<>\"Multiple of Salary\"),\"-\",IF(COUNTA('Enrollment Form'!T404:U404)<2,\"N\",\"Y\"))","v":"-"},{"$f":"IF(B397=\"N\",\"\",IF(OR('Enrollment Form'!C404=\"ROC\",'Enrollment Form'!B404<>\"Subscriber\",'Enrollment Form'!O404=\"Waive\",'Enrollment Form'!O404=\"\"),\"-\",IF('Enrollment Form'!P404=\"\",\"N\",\"Y\")))","v":""},{"$f":"IF($B397=\"N\",\"\",IF(AND('Enrollment Form'!$C404=\"ROC\",'Enrollment Form'!$DR404<>\"\"),\"Y\",IF(AND('Enrollment Form'!$C404=\"ROC\",'Enrollment Form'!$DR404=\"\"),\"N\",IF(AND('Enrollment Form'!$C404=\"Enroll\",'Enrollment Form'!$B404=\"Subscriber\",'Enrollment Form'!$CX404=\"No\",'Enrollment Form'!$DR404=\"\"),\"N\",IF(AND('Enrollment Form'!$C404=\"Enroll\",'Enrollment Form'!$B404=\"Subscriber\",'Enrollment Form'!$CX404=\"Yes\"),\"-\",\"Y\")))))","v":""},{"$f":"IF($B397=\"N\",\"\",IF(AND('Enrollment Form'!$C404=\"ROC\",'Enrollment Form'!$DS404<>\"\"),\"Y\",IF(AND('Enrollment Form'!$C404=\"ROC\",'Enrollment Form'!$DS404=\"\"),\"N\",IF(AND('Enrollment Form'!$C404=\"Enroll\",'Enrollment Form'!$B404=\"Subscriber\",'Enrollment Form'!$CX404=\"No\",'Enrollment Form'!$DS404=\"\"),\"N\",IF(AND('Enrollment Form'!$C404=\"Enroll\",'Enrollment Form'!$B404=\"Subscriber\",'Enrollment Form'!$CX404=\"Yes\"),\"-\",\"Y\")))))","v":""},{"$f":"IF('Enrollment Form'!AH404=\"\",\"\",IF(ISERROR(SEARCH(\".\",'Enrollment Form'!AH404,SEARCH(\"@\",'Enrollment Form'!AH404))),\"N\",\"Y\"))","v":""},{"$f":"IF(OR($B397=\"N\",'Enrollment Form'!$G404=\"\"),\"\",IF('Enrollment Form'!$B404<>\"Subscriber\",\"-\",IF(COUNTIF('Enrollment Form'!$AV404:$AW404,\"Yes\")=2,\"N\",\"Y\")))","v":""},{"$f":"IF(OR('Enrollment Form'!$CJ404=\"\",'Enrollment Form'!$CJ404=\"No\"),\"-\",IF(AND('Enrollment Form'!$CJ404=\"Yes\",'Enrollment Form'!$CK404=\"\"),\"N\",\"Y\"))","v":"-"},{"$f":"IF(OR('Enrollment Form'!$CL404=\"\",'Enrollment Form'!$CL404=\"No\"),\"-\",IF(AND('Enrollment Form'!$CL404=\"Yes\",'Enrollment Form'!$CM404=\"\"),\"N\",\"Y\"))","v":"-"},{"$f":"IF(OR('Enrollment Form'!$CN404=\"\",'Enrollment Form'!$CN404=\"No\"),\"-\",IF(AND('Enrollment Form'!$CN404=\"Yes\",'Enrollment Form'!$CO404=\"\"),\"N\",\"Y\"))","v":"-"},{"$f":"IF(OR('Enrollment Form'!$CN404=\"\",'Enrollment Form'!$CN404=\"No\"),\"-\",IF(AND('Enrollment Form'!$CN404=\"Yes\",'Enrollment Form'!$CP404=\"\"),\"N\",\"Y\"))","v":"-"},{"$f":"IF('Enrollment Form'!B404<>\"Subscriber\",\"-\",IF(AND('Enrollment Form'!B404=\"Subscriber\",'Enrollment Form'!C404=\"Enroll\",'Enrollment Form'!AA404=\"\"),\"N\",\"Y\"))","v":"-"},{"$f":"IF(OR('Enrollment Form'!B404=\"Subscriber\",'Enrollment Form'!B404=\"\"),\"-\",IF('Enrollment Form'!BP404=\"\",\"N\",\"Y\"))","v":"-"},{"$f":"IF('Enrollment Form'!B404<>\"Subscriber\",\"-\",IF(AND('Enrollment Form'!B404=\"Subscriber\",'Enrollment Form'!G404=\"\"),\"N\",\"Y\"))","v":"-"},{"$f":"IF('Enrollment Form'!A404=\"\",\"\",IF('Enrollment Form'!B404=\"Subscriber\",\"-\",IF(AND('Enrollment Form'!B404<>\"Subscriber\",'Enrollment Form'!G404='Enrollment Form'!H404),\"N\",\"Y\")))","v":""},0]
[405,{"$f":"IF('Enrollment Form'!$A405<>\"\",\"Y\",\"N\")","v":"N"},{"$f":"IF(AND('Enrollment Form'!$B405=\"\",'Enrollment Form'!$C405<>\"\"),\"N\",IF($B398=\"N\",\"\",\"Y\"))","v":""},{"$f":"IF(OR($B398=\"N\",'Enrollment Form'!G405=\"\"),\"\",IF('Enrollment Form'!$B405<>\"Subscriber\",\"\",IF('Enrollment Form'!$G405='Enrollment Form'!$H405,\"Y\",\"N\")))","v":""},{"$f":"IF($B398=\"N\",\"\",IF(AND(COUNTIFS('Enrollment Form'!$H$11:$H$1000,'Enrollment Form'!$H405,'Enrollment Form'!$B$11:$B$1000,'Enrollment Form'!$B405)>1,'Enrollment Form'!$H405<>\"\"),\"N\",\"Y\"))","v":""},{"$f":"IF($B398=\"N\",\"\",IF(LEN('Enrollment Form'!$Y405)=0,\"\",IF(LEN('Enrollment Form'!$Y405)<>5,\"N\",\"Y\")))","v":""},{"$f":"IF($B398=\"N\",\"\",IF(LEN('Enrollment Form'!$AD405=0),\"\",IF(LEN('Enrollment Form'!$AD405)<>5,\"N\",\"Y\")))","v":""},{"$f":"IF($B398=\"N\",\"\",IF(LEN('Enrollment Form'!$BS405=0),\"\",IF(LEN('Enrollment Form'!$BS405)<>5,\"N\",\"Y\")))","v":""},{"$f":"IF($B398=\"N\",\"\",IF(LEN('Enrollment Form'!$AE405)=0,\"\",IF(LEN('Enrollment Form'!$AE405)<>10,\"N\",\"Y\")))","v":""},{"$f":"IF($B398=\"N\",\"\",IF(LEN('Enrollment Form'!$AF405)=0,\"\",IF(LEN('Enrollment Form'!$AF405)<>10,\"N\",\"Y\")))","v":""},{"$f":"IF('Enrollment Form'!$O405<>\"Graded\",\"-\",IF(AND('Enrollment Form'!$O405=\"Graded\",'Enrollment Form'!$AR405<>\"\"),\"Y\",\"N\"))","v":"-"},{"$f":"IF($B398=\"N\",\"\",IF(OR('Enrollment Form'!$B405<>\"Subscriber\",'Enrollment Form'!$C405=\"ROC\"),\"-\",IF(AND('Enrollment Form'!$B405=\"Subscriber\",'Enrollment Form'!$C405=\"Enroll\",'Enrollment Form'!$AJ405<>\"\"),\"Y\",\"N\")))","v":""},{"$f":"IF($B398=\"N\",\"\",IF(OR('Enrollment Form'!$B405<>\"Subscriber\",'Enrollment Form'!$C405=\"ROC\"),\"-\",IF(AND('Enrollment Form'!$B405=\"Subscriber\",'Enrollment Form'!$C405=\"Enroll\",'Enrollment Form'!$AK405<>\"\"),\"Y\",\"N\")))","v":""},{"$f":"IF($B398=\"N\",\"\",IF(OR('Enrollment Form'!$B405<>\"Subscriber\",'Enrollment Form'!$C405=\"ROC\"),\"-\",IF(AND('Enrollment Form'!$B405=\"Subscriber\",'Enrollment Form'!$C405=\"Enroll\",'Enrollment Form'!$AL405<>\"\"),\"Y\",\"N\")))","v":""},{"$f":"IF($B398=\"N\",\"\",IF(OR('Enrollment Form'!$B405<>\"Subscriber\",'Enrollment Form'!$C405=\"ROC\"),\"-\",IF(AND('Enrollment Form'!$B405=\"Subscriber\",'Enrollment Form'!$C405=\"Enroll\",'Enrollment Form'!$AP405<>\"\"),\"Y\",\"N\")))","v":""},{"$f":"IF($B398=\"N\",\"\",IF(OR('Enrollment Form'!$B405<>\"Subscriber\",'Enrollment Form'!$C405=\"ROC\"),\"-\",IF(AND('Enrollment Form'!$B405=\"Subscriber\",'Enrollment Form'!$C405=\"Enroll\",'Enrollment Form'!$AQ405<>\"\"),\"Y\",\"N\")))","v":""},{"$f":"IF($B398=\"N\",\"\",IF(OR('Enrollment Form'!$B405<>\"Subscriber\",'Enrollment Form'!$C405=\"ROC\"),\"-\",IF(AND('Enrollment Form'!$B405=\"Subscriber\",'Enrollment Form'!$C405=\"Enroll\",'Enrollment Form'!$AS405<>\"\"),\"Y\",\"N\")))","v":""},{"$f":"IF($B398=\"N\",\"\",IF($Q398=\"-\",\"-\",IF(AND($Q398=\"Y\",'Enrollment Form'!$AS405=\"No\"),\"-\",IF(AND($Q398=\"Y\",'Enrollment Form'!$AS405=\"Yes\",'Enrollment Form'!$AT405<>\"\"),\"Y\",\"N\"))))","v":""},{"$f":"IF($B398=\"N\",\"\",IF(OR('Enrollment Form'!$B405<>\"Subscriber\",'Enrollment Form'!$C405=\"ROC\"),\"-\",IF(AND('Enrollment Form'!$B405=\"Subscriber\",'Enrollment Form'!$C405=\"Enroll\",'Enrollment Form'!$CV405<>\"\"),\"Y\",\"N\")))","v":""},{"$f":"IF($B398=\"N\",\"\",IF($S398=\"-\",\"-\",IF(AND($S398=\"Y\",'Enrollment Form'!$CV405=\"No\"),\"-\",IF(AND($S398=\"Y\",'Enrollment Form'!$CV405=\"Yes\",'Enrollment Form'!$CW405<>\"\"),\"Y\",\"N\"))))","v":""},{"$f":"IF(OR('Enrollment Form'!$AY405=\"Yes\",'Enrollment Form'!$AY405=\"\"),\"-\",IF(OR(AND('Enrollment Form'!$AY405=\"No\",ISERROR(FIND(\"HMO\",VLOOKUP('Enrollment Form'!G405,'Enrollment Form'!H$11:J$1000,3,FALSE),1))=FALSE,COUNTA('Enrollment Form'!$AZ405:$BC405)=4),AND('Enrollment Form'!$AY405=\"No\",ISERROR(FIND(\"HMO\",VLOOKUP('Enrollment Form'!G405,'Enrollment Form'!H$11:J$1000,3,FALSE),1))=FALSE,COUNTA('Enrollment Form'!$BT405:$BW405)=4)),\"Y\",\"N\"))","v":"-"},{"$f":"IF($B398=\"N\",\"\",IF('Enrollment Form'!$B405=\"Subscriber\",\"-\",IF(COUNTA('Enrollment Form'!$BL405,'Enrollment Form'!$BN405)=2,\"Y\",\"N\")))","v":""},{"$f":"IF($B398=\"N\",\"\",IF(OR('Enrollment Form'!$AX405=\"\",'Enrollment Form'!$AX405=\"No\"),\"-\",IF(AND('Enrollment Form'!$AX405=\"Yes\",COUNTA('Enrollment Form'!$CR405)=1),\"Y\",\"N\")))","v":""},{"$f":"IF(OR('Enrollment Form'!$CR405=\"\",'Enrollment Form'!$CR405=\"No\"),\"-\",IF(COUNTA('Enrollment Form'!$CT405:$CU405)=2,\"Y\",\"N\"))","v":"-"},{"$f":"IF($B398=\"N\",\"\",IF(COUNTIF('Enrollment Form'!$DG405:$DP405,\"Other\")=COUNTA('Enrollment Form'!$DK405,'Enrollment Form'!$DH405,'Enrollment Form'!$DN405,'Enrollment Form'!$DQ405),\"Y\",\"N\"))","v":""},{"$f":"IF($B398=\"N\",\"\",IF(OR('Enrollment Form'!B405<>\"Subscriber\",'Enrollment Form'!C405=\"ROC\",COUNTIF('Enrollment Form'!AV405:AW405,\"Yes\")>=1),\"-\",IF(AND('Enrollment Form'!C405=\"Enroll\",COUNTIF('Enrollment Form'!AV405:AW405,\"No\")=2,'Enrollment Form'!AX405=\"\"),\"N\",\"Y\")))","v":""},{"$f":"IF(OR(B398=\"N\",'Enrollment Form'!B405<>\"Subscriber\",'Enrollment Form'!C405=\"ROC\",'Enrollment Form'!O405<>\"Multiple of Salary\"),\"-\",IF(COUNTA('Enrollment Form'!T405:U405)<2,\"N\",\"Y\"))","v":"-"},{"$f":"IF(B398=\"N\",\"\",IF(OR('Enrollment Form'!C405=\"ROC\",'Enrollment Form'!B405<>\"Subscriber\",'Enrollment Form'!O405=\"Waive\",'Enrollment Form'!O405=\"\"),\"-\",IF('Enrollment Form'!P405=\"\",\"N\",\"Y\")))","v":""},{"$f":"IF($B398=\"N\",\"\",IF(AND('Enrollment Form'!$C405=\"ROC\",'Enrollment Form'!$DR405<>\"\"),\"Y\",IF(AND('Enrollment Form'!$C405=\"ROC\",'Enrollment Form'!$DR405=\"\"),\"N\",IF(AND('Enrollment Form'!$C405=\"Enroll\",'Enrollment Form'!$B405=\"Subscriber\",'Enrollment Form'!$CX405=\"No\",'Enrollment Form'!$DR405=\"\"),\"N\",IF(AND('Enrollment Form'!$C405=\"Enroll\",'Enrollment Form'!$B405=\"Subscriber\",'Enrollment Form'!$CX405=\"Yes\"),\"-\",\"Y\")))))","v":""},{"$f":"IF($B398=\"N\",\"\",IF(AND('Enrollment Form'!$C405=\"ROC\",'Enrollment Form'!$DS405<>\"\"),\"Y\",IF(AND('Enrollment Form'!$C405=\"ROC\",'Enrollment Form'!$DS405=\"\"),\"N\",IF(AND('Enrollment Form'!$C405=\"Enroll\",'Enrollment Form'!$B405=\"Subscriber\",'Enrollment Form'!$CX405=\"No\",'Enrollment Form'!$DS405=\"\"),\"N\",IF(AND('Enrollment Form'!$C405=\"Enroll\",'Enrollment Form'!$B405=\"Subscriber\",'Enrollment Form'!$CX405=\"Yes\"),\"-\",\"Y\")))))","v":""},{"$f":"IF('Enrollment Form'!AH405=\"\",\"\",IF(ISERROR(SEARCH(\".\",'Enrollment Form'!AH405,SEARCH(\"@\",'Enrollment Form'!AH405))),\"N\",\"Y\"))","v":""},{"$f":"IF(OR($B398=\"N\",'Enrollment Form'!$G405=\"\"),\"\",IF('Enrollment Form'!$B405<>\"Subscriber\",\"-\",IF(COUNTIF('Enrollment Form'!$AV405:$AW405,\"Yes\")=2,\"N\",\"Y\")))","v":""},{"$f":"IF(OR('Enrollment Form'!$CJ405=\"\",'Enrollment Form'!$CJ405=\"No\"),\"-\",IF(AND('Enrollment Form'!$CJ405=\"Yes\",'Enrollment Form'!$CK405=\"\"),\"N\",\"Y\"))","v":"-"},{"$f":"IF(OR('Enrollment Form'!$CL405=\"\",'Enrollment Form'!$CL405=\"No\"),\"-\",IF(AND('Enrollment Form'!$CL405=\"Yes\",'Enrollment Form'!$CM405=\"\"),\"N\",\"Y\"))","v":"-"},{"$f":"IF(OR('Enrollment Form'!$CN405=\"\",'Enrollment Form'!$CN405=\"No\"),\"-\",IF(AND('Enrollment Form'!$CN405=\"Yes\",'Enrollment Form'!$CO405=\"\"),\"N\",\"Y\"))","v":"-"},{"$f":"IF(OR('Enrollment Form'!$CN405=\"\",'Enrollment Form'!$CN405=\"No\"),\"-\",IF(AND('Enrollment Form'!$CN405=\"Yes\",'Enrollment Form'!$CP405=\"\"),\"N\",\"Y\"))","v":"-"},{"$f":"IF('Enrollment Form'!B405<>\"Subscriber\",\"-\",IF(AND('Enrollment Form'!B405=\"Subscriber\",'Enrollment Form'!C405=\"Enroll\",'Enrollment Form'!AA405=\"\"),\"N\",\"Y\"))","v":"-"},{"$f":"IF(OR('Enrollment Form'!B405=\"Subscriber\",'Enrollment Form'!B405=\"\"),\"-\",IF('Enrollment Form'!BP405=\"\",\"N\",\"Y\"))","v":"-"},{"$f":"IF('Enrollment Form'!B405<>\"Subscriber\",\"-\",IF(AND('Enrollment Form'!B405=\"Subscriber\",'Enrollment Form'!G405=\"\"),\"N\",\"Y\"))","v":"-"},{"$f":"IF('Enrollment Form'!A405=\"\",\"\",IF('Enrollment Form'!B405=\"Subscriber\",\"-\",IF(AND('Enrollment Form'!B405<>\"Subscriber\",'Enrollment Form'!G405='Enrollment Form'!H405),\"N\",\"Y\")))","v":""},0]
[406,{"$f":"IF('Enrollment Form'!$A406<>\"\",\"Y\",\"N\")","v":"N"},{"$f":"IF(AND('Enrollment Form'!$B406=\"\",'Enrollment Form'!$C406<>\"\"),\"N\",IF($B399=\"N\",\"\",\"Y\"))","v":""},{"$f":"IF(OR($B399=\"N\",'Enrollment Form'!G406=\"\"),\"\",IF('Enrollment Form'!$B406<>\"Subscriber\",\"\",IF('Enrollment Form'!$G406='Enrollment Form'!$H406,\"Y\",\"N\")))","v":""},{"$f":"IF($B399=\"N\",\"\",IF(AND(COUNTIFS('Enrollment Form'!$H$11:$H$1000,'Enrollment Form'!$H406,'Enrollment Form'!$B$11:$B$1000,'Enrollment Form'!$B406)>1,'Enrollment Form'!$H406<>\"\"),\"N\",\"Y\"))","v":""},{"$f":"IF($B399=\"N\",\"\",IF(LEN('Enrollment Form'!$Y406)=0,\"\",IF(LEN('Enrollment Form'!$Y406)<>5,\"N\",\"Y\")))","v":""},{"$f":"IF($B399=\"N\",\"\",IF(LEN('Enrollment Form'!$AD406=0),\"\",IF(LEN('Enrollment Form'!$AD406)<>5,\"N\",\"Y\")))","v":""},{"$f":"IF($B399=\"N\",\"\",IF(LEN('Enrollment Form'!$BS406=0),\"\",IF(LEN('Enrollment Form'!$BS406)<>5,\"N\",\"Y\")))","v":""},{"$f":"IF($B399=\"N\",\"\",IF(LEN('Enrollment Form'!$AE406)=0,\"\",IF(LEN('Enrollment Form'!$AE406)<>10,\"N\",\"Y\")))","v":""},{"$f":"IF($B399=\"N\",\"\",IF(LEN('Enrollment Form'!$AF406)=0,\"\",IF(LEN('Enrollment Form'!$AF406)<>10,\"N\",\"Y\")))","v":""},{"$f":"IF('Enrollment Form'!$O406<>\"Graded\",\"-\",IF(AND('Enrollment Form'!$O406=\"Graded\",'Enrollment Form'!$AR406<>\"\"),\"Y\",\"N\"))","v":"-"},{"$f":"IF($B399=\"N\",\"\",IF(OR('Enrollment Form'!$B406<>\"Subscriber\",'Enrollment Form'!$C406=\"ROC\"),\"-\",IF(AND('Enrollment Form'!$B406=\"Subscriber\",'Enrollment Form'!$C406=\"Enroll\",'Enrollment Form'!$AJ406<>\"\"),\"Y\",\"N\")))","v":""},{"$f":"IF($B399=\"N\",\"\",IF(OR('Enrollment Form'!$B406<>\"Subscriber\",'Enrollment Form'!$C406=\"ROC\"),\"-\",IF(AND('Enrollment Form'!$B406=\"Subscriber\",'Enrollment Form'!$C406=\"Enroll\",'Enrollment Form'!$AK406<>\"\"),\"Y\",\"N\")))","v":""},{"$f":"IF($B399=\"N\",\"\",IF(OR('Enrollment Form'!$B406<>\"Subscriber\",'Enrollment Form'!$C406=\"ROC\"),\"-\",IF(AND('Enrollment Form'!$B406=\"Subscriber\",'Enrollment Form'!$C406=\"Enroll\",'Enrollment Form'!$AL406<>\"\"),\"Y\",\"N\")))","v":""},{"$f":"IF($B399=\"N\",\"\",IF(OR('Enrollment Form'!$B406<>\"Subscriber\",'Enrollment Form'!$C406=\"ROC\"),\"-\",IF(AND('Enrollment Form'!$B406=\"Subscriber\",'Enrollment Form'!$C406=\"Enroll\",'Enrollment Form'!$AP406<>\"\"),\"Y\",\"N\")))","v":""},{"$f":"IF($B399=\"N\",\"\",IF(OR('Enrollment Form'!$B406<>\"Subscriber\",'Enrollment Form'!$C406=\"ROC\"),\"-\",IF(AND('Enrollment Form'!$B406=\"Subscriber\",'Enrollment Form'!$C406=\"Enroll\",'Enrollment Form'!$AQ406<>\"\"),\"Y\",\"N\")))","v":""},{"$f":"IF($B399=\"N\",\"\",IF(OR('Enrollment Form'!$B406<>\"Subscriber\",'Enrollment Form'!$C406=\"ROC\"),\"-\",IF(AND('Enrollment Form'!$B406=\"Subscriber\",'Enrollment Form'!$C406=\"Enroll\",'Enrollment Form'!$AS406<>\"\"),\"Y\",\"N\")))","v":""},{"$f":"IF($B399=\"N\",\"\",IF($Q399=\"-\",\"-\",IF(AND($Q399=\"Y\",'Enrollment Form'!$AS406=\"No\"),\"-\",IF(AND($Q399=\"Y\",'Enrollment Form'!$AS406=\"Yes\",'Enrollment Form'!$AT406<>\"\"),\"Y\",\"N\"))))","v":""},{"$f":"IF($B399=\"N\",\"\",IF(OR('Enrollment Form'!$B406<>\"Subscriber\",'Enrollment Form'!$C406=\"ROC\"),\"-\",IF(AND('Enrollment Form'!$B406=\"Subscriber\",'Enrollment Form'!$C406=\"Enroll\",'Enrollment Form'!$CV406<>\"\"),\"Y\",\"N\")))","v":""},{"$f":"IF($B399=\"N\",\"\",IF($S399=\"-\",\"-\",IF(AND($S399=\"Y\",'Enrollment Form'!$CV406=\"No\"),\"-\",IF(AND($S399=\"Y\",'Enrollment Form'!$CV406=\"Yes\",'Enrollment Form'!$CW406<>\"\"),\"Y\",\"N\"))))","v":""},{"$f":"IF(OR('Enrollment Form'!$AY406=\"Yes\",'Enrollment Form'!$AY406=\"\"),\"-\",IF(OR(AND('Enrollment Form'!$AY406=\"No\",ISERROR(FIND(\"HMO\",VLOOKUP('Enrollment Form'!G406,'Enrollment Form'!H$11:J$1000,3,FALSE),1))=FALSE,COUNTA('Enrollment Form'!$AZ406:$BC406)=4),AND('Enrollment Form'!$AY406=\"No\",ISERROR(FIND(\"HMO\",VLOOKUP('Enrollment Form'!G406,'Enrollment Form'!H$11:J$1000,3,FALSE),1))=FALSE,COUNTA('Enrollment Form'!$BT406:$BW406)=4)),\"Y\",\"N\"))","v":"-"},{"$f":"IF($B399=\"N\",\"\",IF('Enrollment Form'!$B406=\"Subscriber\",\"-\",IF(COUNTA('Enrollment Form'!$BL406,'Enrollment Form'!$BN406)=2,\"Y\",\"N\")))","v":""},{"$f":"IF($B399=\"N\",\"\",IF(OR('Enrollment Form'!$AX406=\"\",'Enrollment Form'!$AX406=\"No\"),\"-\",IF(AND('Enrollment Form'!$AX406=\"Yes\",COUNTA('Enrollment Form'!$CR406)=1),\"Y\",\"N\")))","v":""},{"$f":"IF(OR('Enrollment Form'!$CR406=\"\",'Enrollment Form'!$CR406=\"No\"),\"-\",IF(COUNTA('Enrollment Form'!$CT406:$CU406)=2,\"Y\",\"N\"))","v":"-"},{"$f":"IF($B399=\"N\",\"\",IF(COUNTIF('Enrollment Form'!$DG406:$DP406,\"Other\")=COUNTA('Enrollment Form'!$DK406,'Enrollment Form'!$DH406,'Enrollment Form'!$DN406,'Enrollment Form'!$DQ406),\"Y\",\"N\"))","v":""},{"$f":"IF($B399=\"N\",\"\",IF(OR('Enrollment Form'!B406<>\"Subscriber\",'Enrollment Form'!C406=\"ROC\",COUNTIF('Enrollment Form'!AV406:AW406,\"Yes\")>=1),\"-\",IF(AND('Enrollment Form'!C406=\"Enroll\",COUNTIF('Enrollment Form'!AV406:AW406,\"No\")=2,'Enrollment Form'!AX406=\"\"),\"N\",\"Y\")))","v":""},{"$f":"IF(OR(B399=\"N\",'Enrollment Form'!B406<>\"Subscriber\",'Enrollment Form'!C406=\"ROC\",'Enrollment Form'!O406<>\"Multiple of Salary\"),\"-\",IF(COUNTA('Enrollment Form'!T406:U406)<2,\"N\",\"Y\"))","v":"-"},{"$f":"IF(B399=\"N\",\"\",IF(OR('Enrollment Form'!C406=\"ROC\",'Enrollment Form'!B406<>\"Subscriber\",'Enrollment Form'!O406=\"Waive\",'Enrollment Form'!O406=\"\"),\"-\",IF('Enrollment Form'!P406=\"\",\"N\",\"Y\")))","v":""},{"$f":"IF($B399=\"N\",\"\",IF(AND('Enrollment Form'!$C406=\"ROC\",'Enrollment Form'!$DR406<>\"\"),\"Y\",IF(AND('Enrollment Form'!$C406=\"ROC\",'Enrollment Form'!$DR406=\"\"),\"N\",IF(AND('Enrollment Form'!$C406=\"Enroll\",'Enrollment Form'!$B406=\"Subscriber\",'Enrollment Form'!$CX406=\"No\",'Enrollment Form'!$DR406=\"\"),\"N\",IF(AND('Enrollment Form'!$C406=\"Enroll\",'Enrollment Form'!$B406=\"Subscriber\",'Enrollment Form'!$CX406=\"Yes\"),\"-\",\"Y\")))))","v":""},{"$f":"IF($B399=\"N\",\"\",IF(AND('Enrollment Form'!$C406=\"ROC\",'Enrollment Form'!$DS406<>\"\"),\"Y\",IF(AND('Enrollment Form'!$C406=\"ROC\",'Enrollment Form'!$DS406=\"\"),\"N\",IF(AND('Enrollment Form'!$C406=\"Enroll\",'Enrollment Form'!$B406=\"Subscriber\",'Enrollment Form'!$CX406=\"No\",'Enrollment Form'!$DS406=\"\"),\"N\",IF(AND('Enrollment Form'!$C406=\"Enroll\",'Enrollment Form'!$B406=\"Subscriber\",'Enrollment Form'!$CX406=\"Yes\"),\"-\",\"Y\")))))","v":""},{"$f":"IF('Enrollment Form'!AH406=\"\",\"\",IF(ISERROR(SEARCH(\".\",'Enrollment Form'!AH406,SEARCH(\"@\",'Enrollment Form'!AH406))),\"N\",\"Y\"))","v":""},{"$f":"IF(OR($B399=\"N\",'Enrollment Form'!$G406=\"\"),\"\",IF('Enrollment Form'!$B406<>\"Subscriber\",\"-\",IF(COUNTIF('Enrollment Form'!$AV406:$AW406,\"Yes\")=2,\"N\",\"Y\")))","v":""},{"$f":"IF(OR('Enrollment Form'!$CJ406=\"\",'Enrollment Form'!$CJ406=\"No\"),\"-\",IF(AND('Enrollment Form'!$CJ406=\"Yes\",'Enrollment Form'!$CK406=\"\"),\"N\",\"Y\"))","v":"-"},{"$f":"IF(OR('Enrollment Form'!$CL406=\"\",'Enrollment Form'!$CL406=\"No\"),\"-\",IF(AND('Enrollment Form'!$CL406=\"Yes\",'Enrollment Form'!$CM406=\"\"),\"N\",\"Y\"))","v":"-"},{"$f":"IF(OR('Enrollment Form'!$CN406=\"\",'Enrollment Form'!$CN406=\"No\"),\"-\",IF(AND('Enrollment Form'!$CN406=\"Yes\",'Enrollment Form'!$CO406=\"\"),\"N\",\"Y\"))","v":"-"},{"$f":"IF(OR('Enrollment Form'!$CN406=\"\",'Enrollment Form'!$CN406=\"No\"),\"-\",IF(AND('Enrollment Form'!$CN406=\"Yes\",'Enrollment Form'!$CP406=\"\"),\"N\",\"Y\"))","v":"-"},{"$f":"IF('Enrollment Form'!B406<>\"Subscriber\",\"-\",IF(AND('Enrollment Form'!B406=\"Subscriber\",'Enrollment Form'!C406=\"Enroll\",'Enrollment Form'!AA406=\"\"),\"N\",\"Y\"))","v":"-"},{"$f":"IF(OR('Enrollment Form'!B406=\"Subscriber\",'Enrollment Form'!B406=\"\"),\"-\",IF('Enrollment Form'!BP406=\"\",\"N\",\"Y\"))","v":"-"},{"$f":"IF('Enrollment Form'!B406<>\"Subscriber\",\"-\",IF(AND('Enrollment Form'!B406=\"Subscriber\",'Enrollment Form'!G406=\"\"),\"N\",\"Y\"))","v":"-"},{"$f":"IF('Enrollment Form'!A406=\"\",\"\",IF('Enrollment Form'!B406=\"Subscriber\",\"-\",IF(AND('Enrollment Form'!B406<>\"Subscriber\",'Enrollment Form'!G406='Enrollment Form'!H406),\"N\",\"Y\")))","v":""},0]
[407,{"$f":"IF('Enrollment Form'!$A407<>\"\",\"Y\",\"N\")","v":"N"},{"$f":"IF(AND('Enrollment Form'!$B407=\"\",'Enrollment Form'!$C407<>\"\"),\"N\",IF($B400=\"N\",\"\",\"Y\"))","v":""},{"$f":"IF(OR($B400=\"N\",'Enrollment Form'!G407=\"\"),\"\",IF('Enrollment Form'!$B407<>\"Subscriber\",\"\",IF('Enrollment Form'!$G407='Enrollment Form'!$H407,\"Y\",\"N\")))","v":""},{"$f":"IF($B400=\"N\",\"\",IF(AND(COUNTIFS('Enrollment Form'!$H$11:$H$1000,'Enrollment Form'!$H407,'Enrollment Form'!$B$11:$B$1000,'Enrollment Form'!$B407)>1,'Enrollment Form'!$H407<>\"\"),\"N\",\"Y\"))","v":""},{"$f":"IF($B400=\"N\",\"\",IF(LEN('Enrollment Form'!$Y407)=0,\"\",IF(LEN('Enrollment Form'!$Y407)<>5,\"N\",\"Y\")))","v":""},{"$f":"IF($B400=\"N\",\"\",IF(LEN('Enrollment Form'!$AD407=0),\"\",IF(LEN('Enrollment Form'!$AD407)<>5,\"N\",\"Y\")))","v":""},{"$f":"IF($B400=\"N\",\"\",IF(LEN('Enrollment Form'!$BS407=0),\"\",IF(LEN('Enrollment Form'!$BS407)<>5,\"N\",\"Y\")))","v":""},{"$f":"IF($B400=\"N\",\"\",IF(LEN('Enrollment Form'!$AE407)=0,\"\",IF(LEN('Enrollment Form'!$AE407)<>10,\"N\",\"Y\")))","v":""},{"$f":"IF($B400=\"N\",\"\",IF(LEN('Enrollment Form'!$AF407)=0,\"\",IF(LEN('Enrollment Form'!$AF407)<>10,\"N\",\"Y\")))","v":""},{"$f":"IF('Enrollment Form'!$O407<>\"Graded\",\"-\",IF(AND('Enrollment Form'!$O407=\"Graded\",'Enrollment Form'!$AR407<>\"\"),\"Y\",\"N\"))","v":"-"},{"$f":"IF($B400=\"N\",\"\",IF(OR('Enrollment Form'!$B407<>\"Subscriber\",'Enrollment Form'!$C407=\"ROC\"),\"-\",IF(AND('Enrollment Form'!$B407=\"Subscriber\",'Enrollment Form'!$C407=\"Enroll\",'Enrollment Form'!$AJ407<>\"\"),\"Y\",\"N\")))","v":""},{"$f":"IF($B400=\"N\",\"\",IF(OR('Enrollment Form'!$B407<>\"Subscriber\",'Enrollment Form'!$C407=\"ROC\"),\"-\",IF(AND('Enrollment Form'!$B407=\"Subscriber\",'Enrollment Form'!$C407=\"Enroll\",'Enrollment Form'!$AK407<>\"\"),\"Y\",\"N\")))","v":""},{"$f":"IF($B400=\"N\",\"\",IF(OR('Enrollment Form'!$B407<>\"Subscriber\",'Enrollment Form'!$C407=\"ROC\"),\"-\",IF(AND('Enrollment Form'!$B407=\"Subscriber\",'Enrollment Form'!$C407=\"Enroll\",'Enrollment Form'!$AL407<>\"\"),\"Y\",\"N\")))","v":""},{"$f":"IF($B400=\"N\",\"\",IF(OR('Enrollment Form'!$B407<>\"Subscriber\",'Enrollment Form'!$C407=\"ROC\"),\"-\",IF(AND('Enrollment Form'!$B407=\"Subscriber\",'Enrollment Form'!$C407=\"Enroll\",'Enrollment Form'!$AP407<>\"\"),\"Y\",\"N\")))","v":""},{"$f":"IF($B400=\"N\",\"\",IF(OR('Enrollment Form'!$B407<>\"Subscriber\",'Enrollment Form'!$C407=\"ROC\"),\"-\",IF(AND('Enrollment Form'!$B407=\"Subscriber\",'Enrollment Form'!$C407=\"Enroll\",'Enrollment Form'!$AQ407<>\"\"),\"Y\",\"N\")))","v":""},{"$f":"IF($B400=\"N\",\"\",IF(OR('Enrollment Form'!$B407<>\"Subscriber\",'Enrollment Form'!$C407=\"ROC\"),\"-\",IF(AND('Enrollment Form'!$B407=\"Subscriber\",'Enrollment Form'!$C407=\"Enroll\",'Enrollment Form'!$AS407<>\"\"),\"Y\",\"N\")))","v":""},{"$f":"IF($B400=\"N\",\"\",IF($Q400=\"-\",\"-\",IF(AND($Q400=\"Y\",'Enrollment Form'!$AS407=\"No\"),\"-\",IF(AND($Q400=\"Y\",'Enrollment Form'!$AS407=\"Yes\",'Enrollment Form'!$AT407<>\"\"),\"Y\",\"N\"))))","v":""},{"$f":"IF($B400=\"N\",\"\",IF(OR('Enrollment Form'!$B407<>\"Subscriber\",'Enrollment Form'!$C407=\"ROC\"),\"-\",IF(AND('Enrollment Form'!$B407=\"Subscriber\",'Enrollment Form'!$C407=\"Enroll\",'Enrollment Form'!$CV407<>\"\"),\"Y\",\"N\")))","v":""},{"$f":"IF($B400=\"N\",\"\",IF($S400=\"-\",\"-\",IF(AND($S400=\"Y\",'Enrollment Form'!$CV407=\"No\"),\"-\",IF(AND($S400=\"Y\",'Enrollment Form'!$CV407=\"Yes\",'Enrollment Form'!$CW407<>\"\"),\"Y\",\"N\"))))","v":""},{"$f":"IF(OR('Enrollment Form'!$AY407=\"Yes\",'Enrollment Form'!$AY407=\"\"),\"-\",IF(OR(AND('Enrollment Form'!$AY407=\"No\",ISERROR(FIND(\"HMO\",VLOOKUP('Enrollment Form'!G407,'Enrollment Form'!H$11:J$1000,3,FALSE),1))=FALSE,COUNTA('Enrollment Form'!$AZ407:$BC407)=4),AND('Enrollment Form'!$AY407=\"No\",ISERROR(FIND(\"HMO\",VLOOKUP('Enrollment Form'!G407,'Enrollment Form'!H$11:J$1000,3,FALSE),1))=FALSE,COUNTA('Enrollment Form'!$BT407:$BW407)=4)),\"Y\",\"N\"))","v":"-"},{"$f":"IF($B400=\"N\",\"\",IF('Enrollment Form'!$B407=\"Subscriber\",\"-\",IF(COUNTA('Enrollment Form'!$BL407,'Enrollment Form'!$BN407)=2,\"Y\",\"N\")))","v":""},{"$f":"IF($B400=\"N\",\"\",IF(OR('Enrollment Form'!$AX407=\"\",'Enrollment Form'!$AX407=\"No\"),\"-\",IF(AND('Enrollment Form'!$AX407=\"Yes\",COUNTA('Enrollment Form'!$CR407)=1),\"Y\",\"N\")))","v":""},{"$f":"IF(OR('Enrollment Form'!$CR407=\"\",'Enrollment Form'!$CR407=\"No\"),\"-\",IF(COUNTA('Enrollment Form'!$CT407:$CU407)=2,\"Y\",\"N\"))","v":"-"},{"$f":"IF($B400=\"N\",\"\",IF(COUNTIF('Enrollment Form'!$DG407:$DP407,\"Other\")=COUNTA('Enrollment Form'!$DK407,'Enrollment Form'!$DH407,'Enrollment Form'!$DN407,'Enrollment Form'!$DQ407),\"Y\",\"N\"))","v":""},{"$f":"IF($B400=\"N\",\"\",IF(OR('Enrollment Form'!B407<>\"Subscriber\",'Enrollment Form'!C407=\"ROC\",COUNTIF('Enrollment Form'!AV407:AW407,\"Yes\")>=1),\"-\",IF(AND('Enrollment Form'!C407=\"Enroll\",COUNTIF('Enrollment Form'!AV407:AW407,\"No\")=2,'Enrollment Form'!AX407=\"\"),\"N\",\"Y\")))","v":""},{"$f":"IF(OR(B400=\"N\",'Enrollment Form'!B407<>\"Subscriber\",'Enrollment Form'!C407=\"ROC\",'Enrollment Form'!O407<>\"Multiple of Salary\"),\"-\",IF(COUNTA('Enrollment Form'!T407:U407)<2,\"N\",\"Y\"))","v":"-"},{"$f":"IF(B400=\"N\",\"\",IF(OR('Enrollment Form'!C407=\"ROC\",'Enrollment Form'!B407<>\"Subscriber\",'Enrollment Form'!O407=\"Waive\",'Enrollment Form'!O407=\"\"),\"-\",IF('Enrollment Form'!P407=\"\",\"N\",\"Y\")))","v":""},{"$f":"IF($B400=\"N\",\"\",IF(AND('Enrollment Form'!$C407=\"ROC\",'Enrollment Form'!$DR407<>\"\"),\"Y\",IF(AND('Enrollment Form'!$C407=\"ROC\",'Enrollment Form'!$DR407=\"\"),\"N\",IF(AND('Enrollment Form'!$C407=\"Enroll\",'Enrollment Form'!$B407=\"Subscriber\",'Enrollment Form'!$CX407=\"No\",'Enrollment Form'!$DR407=\"\"),\"N\",IF(AND('Enrollment Form'!$C407=\"Enroll\",'Enrollment Form'!$B407=\"Subscriber\",'Enrollment Form'!$CX407=\"Yes\"),\"-\",\"Y\")))))","v":""},{"$f":"IF($B400=\"N\",\"\",IF(AND('Enrollment Form'!$C407=\"ROC\",'Enrollment Form'!$DS407<>\"\"),\"Y\",IF(AND('Enrollment Form'!$C407=\"ROC\",'Enrollment Form'!$DS407=\"\"),\"N\",IF(AND('Enrollment Form'!$C407=\"Enroll\",'Enrollment Form'!$B407=\"Subscriber\",'Enrollment Form'!$CX407=\"No\",'Enrollment Form'!$DS407=\"\"),\"N\",IF(AND('Enrollment Form'!$C407=\"Enroll\",'Enrollment Form'!$B407=\"Subscriber\",'Enrollment Form'!$CX407=\"Yes\"),\"-\",\"Y\")))))","v":""},{"$f":"IF('Enrollment Form'!AH407=\"\",\"\",IF(ISERROR(SEARCH(\".\",'Enrollment Form'!AH407,SEARCH(\"@\",'Enrollment Form'!AH407))),\"N\",\"Y\"))","v":""},{"$f":"IF(OR($B400=\"N\",'Enrollment Form'!$G407=\"\"),\"\",IF('Enrollment Form'!$B407<>\"Subscriber\",\"-\",IF(COUNTIF('Enrollment Form'!$AV407:$AW407,\"Yes\")=2,\"N\",\"Y\")))","v":""},{"$f":"IF(OR('Enrollment Form'!$CJ407=\"\",'Enrollment Form'!$CJ407=\"No\"),\"-\",IF(AND('Enrollment Form'!$CJ407=\"Yes\",'Enrollment Form'!$CK407=\"\"),\"N\",\"Y\"))","v":"-"},{"$f":"IF(OR('Enrollment Form'!$CL407=\"\",'Enrollment Form'!$CL407=\"No\"),\"-\",IF(AND('Enrollment Form'!$CL407=\"Yes\",'Enrollment Form'!$CM407=\"\"),\"N\",\"Y\"))","v":"-"},{"$f":"IF(OR('Enrollment Form'!$CN407=\"\",'Enrollment Form'!$CN407=\"No\"),\"-\",IF(AND('Enrollment Form'!$CN407=\"Yes\",'Enrollment Form'!$CO407=\"\"),\"N\",\"Y\"))","v":"-"},{"$f":"IF(OR('Enrollment Form'!$CN407=\"\",'Enrollment Form'!$CN407=\"No\"),\"-\",IF(AND('Enrollment Form'!$CN407=\"Yes\",'Enrollment Form'!$CP407=\"\"),\"N\",\"Y\"))","v":"-"},{"$f":"IF('Enrollment Form'!B407<>\"Subscriber\",\"-\",IF(AND('Enrollment Form'!B407=\"Subscriber\",'Enrollment Form'!C407=\"Enroll\",'Enrollment Form'!AA407=\"\"),\"N\",\"Y\"))","v":"-"},{"$f":"IF(OR('Enrollment Form'!B407=\"Subscriber\",'Enrollment Form'!B407=\"\"),\"-\",IF('Enrollment Form'!BP407=\"\",\"N\",\"Y\"))","v":"-"},{"$f":"IF('Enrollment Form'!B407<>\"Subscriber\",\"-\",IF(AND('Enrollment Form'!B407=\"Subscriber\",'Enrollment Form'!G407=\"\"),\"N\",\"Y\"))","v":"-"},{"$f":"IF('Enrollment Form'!A407=\"\",\"\",IF('Enrollment Form'!B407=\"Subscriber\",\"-\",IF(AND('Enrollment Form'!B407<>\"Subscriber\",'Enrollment Form'!G407='Enrollment Form'!H407),\"N\",\"Y\")))","v":""},0]
[408,{"$f":"IF('Enrollment Form'!$A408<>\"\",\"Y\",\"N\")","v":"N"},{"$f":"IF(AND('Enrollment Form'!$B408=\"\",'Enrollment Form'!$C408<>\"\"),\"N\",IF($B401=\"N\",\"\",\"Y\"))","v":""},{"$f":"IF(OR($B401=\"N\",'Enrollment Form'!G408=\"\"),\"\",IF('Enrollment Form'!$B408<>\"Subscriber\",\"\",IF('Enrollment Form'!$G408='Enrollment Form'!$H408,\"Y\",\"N\")))","v":""},{"$f":"IF($B401=\"N\",\"\",IF(AND(COUNTIFS('Enrollment Form'!$H$11:$H$1000,'Enrollment Form'!$H408,'Enrollment Form'!$B$11:$B$1000,'Enrollment Form'!$B408)>1,'Enrollment Form'!$H408<>\"\"),\"N\",\"Y\"))","v":""},{"$f":"IF($B401=\"N\",\"\",IF(LEN('Enrollment Form'!$Y408)=0,\"\",IF(LEN('Enrollment Form'!$Y408)<>5,\"N\",\"Y\")))","v":""},{"$f":"IF($B401=\"N\",\"\",IF(LEN('Enrollment Form'!$AD408=0),\"\",IF(LEN('Enrollment Form'!$AD408)<>5,\"N\",\"Y\")))","v":""},{"$f":"IF($B401=\"N\",\"\",IF(LEN('Enrollment Form'!$BS408=0),\"\",IF(LEN('Enrollment Form'!$BS408)<>5,\"N\",\"Y\")))","v":""},{"$f":"IF($B401=\"N\",\"\",IF(LEN('Enrollment Form'!$AE408)=0,\"\",IF(LEN('Enrollment Form'!$AE408)<>10,\"N\",\"Y\")))","v":""},{"$f":"IF($B401=\"N\",\"\",IF(LEN('Enrollment Form'!$AF408)=0,\"\",IF(LEN('Enrollment Form'!$AF408)<>10,\"N\",\"Y\")))","v":""},{"$f":"IF('Enrollment Form'!$O408<>\"Graded\",\"-\",IF(AND('Enrollment Form'!$O408=\"Graded\",'Enrollment Form'!$AR408<>\"\"),\"Y\",\"N\"))","v":"-"},{"$f":"IF($B401=\"N\",\"\",IF(OR('Enrollment Form'!$B408<>\"Subscriber\",'Enrollment Form'!$C408=\"ROC\"),\"-\",IF(AND('Enrollment Form'!$B408=\"Subscriber\",'Enrollment Form'!$C408=\"Enroll\",'Enrollment Form'!$AJ408<>\"\"),\"Y\",\"N\")))","v":""},{"$f":"IF($B401=\"N\",\"\",IF(OR('Enrollment Form'!$B408<>\"Subscriber\",'Enrollment Form'!$C408=\"ROC\"),\"-\",IF(AND('Enrollment Form'!$B408=\"Subscriber\",'Enrollment Form'!$C408=\"Enroll\",'Enrollment Form'!$AK408<>\"\"),\"Y\",\"N\")))","v":""},{"$f":"IF($B401=\"N\",\"\",IF(OR('Enrollment Form'!$B408<>\"Subscriber\",'Enrollment Form'!$C408=\"ROC\"),\"-\",IF(AND('Enrollment Form'!$B408=\"Subscriber\",'Enrollment Form'!$C408=\"Enroll\",'Enrollment Form'!$AL408<>\"\"),\"Y\",\"N\")))","v":""},{"$f":"IF($B401=\"N\",\"\",IF(OR('Enrollment Form'!$B408<>\"Subscriber\",'Enrollment Form'!$C408=\"ROC\"),\"-\",IF(AND('Enrollment Form'!$B408=\"Subscriber\",'Enrollment Form'!$C408=\"Enroll\",'Enrollment Form'!$AP408<>\"\"),\"Y\",\"N\")))","v":""},{"$f":"IF($B401=\"N\",\"\",IF(OR('Enrollment Form'!$B408<>\"Subscriber\",'Enrollment Form'!$C408=\"ROC\"),\"-\",IF(AND('Enrollment Form'!$B408=\"Subscriber\",'Enrollment Form'!$C408=\"Enroll\",'Enrollment Form'!$AQ408<>\"\"),\"Y\",\"N\")))","v":""},{"$f":"IF($B401=\"N\",\"\",IF(OR('Enrollment Form'!$B408<>\"Subscriber\",'Enrollment Form'!$C408=\"ROC\"),\"-\",IF(AND('Enrollment Form'!$B408=\"Subscriber\",'Enrollment Form'!$C408=\"Enroll\",'Enrollment Form'!$AS408<>\"\"),\"Y\",\"N\")))","v":""},{"$f":"IF($B401=\"N\",\"\",IF($Q401=\"-\",\"-\",IF(AND($Q401=\"Y\",'Enrollment Form'!$AS408=\"No\"),\"-\",IF(AND($Q401=\"Y\",'Enrollment Form'!$AS408=\"Yes\",'Enrollment Form'!$AT408<>\"\"),\"Y\",\"N\"))))","v":""},{"$f":"IF($B401=\"N\",\"\",IF(OR('Enrollment Form'!$B408<>\"Subscriber\",'Enrollment Form'!$C408=\"ROC\"),\"-\",IF(AND('Enrollment Form'!$B408=\"Subscriber\",'Enrollment Form'!$C408=\"Enroll\",'Enrollment Form'!$CV408<>\"\"),\"Y\",\"N\")))","v":""},{"$f":"IF($B401=\"N\",\"\",IF($S401=\"-\",\"-\",IF(AND($S401=\"Y\",'Enrollment Form'!$CV408=\"No\"),\"-\",IF(AND($S401=\"Y\",'Enrollment Form'!$CV408=\"Yes\",'Enrollment Form'!$CW408<>\"\"),\"Y\",\"N\"))))","v":""},{"$f":"IF(OR('Enrollment Form'!$AY408=\"Yes\",'Enrollment Form'!$AY408=\"\"),\"-\",IF(OR(AND('Enrollment Form'!$AY408=\"No\",ISERROR(FIND(\"HMO\",VLOOKUP('Enrollment Form'!G408,'Enrollment Form'!H$11:J$1000,3,FALSE),1))=FALSE,COUNTA('Enrollment Form'!$AZ408:$BC408)=4),AND('Enrollment Form'!$AY408=\"No\",ISERROR(FIND(\"HMO\",VLOOKUP('Enrollment Form'!G408,'Enrollment Form'!H$11:J$1000,3,FALSE),1))=FALSE,COUNTA('Enrollment Form'!$BT408:$BW408)=4)),\"Y\",\"N\"))","v":"-"},{"$f":"IF($B401=\"N\",\"\",IF('Enrollment Form'!$B408=\"Subscriber\",\"-\",IF(COUNTA('Enrollment Form'!$BL408,'Enrollment Form'!$BN408)=2,\"Y\",\"N\")))","v":""},{"$f":"IF($B401=\"N\",\"\",IF(OR('Enrollment Form'!$AX408=\"\",'Enrollment Form'!$AX408=\"No\"),\"-\",IF(AND('Enrollment Form'!$AX408=\"Yes\",COUNTA('Enrollment Form'!$CR408)=1),\"Y\",\"N\")))","v":""},{"$f":"IF(OR('Enrollment Form'!$CR408=\"\",'Enrollment Form'!$CR408=\"No\"),\"-\",IF(COUNTA('Enrollment Form'!$CT408:$CU408)=2,\"Y\",\"N\"))","v":"-"},{"$f":"IF($B401=\"N\",\"\",IF(COUNTIF('Enrollment Form'!$DG408:$DP408,\"Other\")=COUNTA('Enrollment Form'!$DK408,'Enrollment Form'!$DH408,'Enrollment Form'!$DN408,'Enrollment Form'!$DQ408),\"Y\",\"N\"))","v":""},{"$f":"IF($B401=\"N\",\"\",IF(OR('Enrollment Form'!B408<>\"Subscriber\",'Enrollment Form'!C408=\"ROC\",COUNTIF('Enrollment Form'!AV408:AW408,\"Yes\")>=1),\"-\",IF(AND('Enrollment Form'!C408=\"Enroll\",COUNTIF('Enrollment Form'!AV408:AW408,\"No\")=2,'Enrollment Form'!AX408=\"\"),\"N\",\"Y\")))","v":""},{"$f":"IF(OR(B401=\"N\",'Enrollment Form'!B408<>\"Subscriber\",'Enrollment Form'!C408=\"ROC\",'Enrollment Form'!O408<>\"Multiple of Salary\"),\"-\",IF(COUNTA('Enrollment Form'!T408:U408)<2,\"N\",\"Y\"))","v":"-"},{"$f":"IF(B401=\"N\",\"\",IF(OR('Enrollment Form'!C408=\"ROC\",'Enrollment Form'!B408<>\"Subscriber\",'Enrollment Form'!O408=\"Waive\",'Enrollment Form'!O408=\"\"),\"-\",IF('Enrollment Form'!P408=\"\",\"N\",\"Y\")))","v":""},{"$f":"IF($B401=\"N\",\"\",IF(AND('Enrollment Form'!$C408=\"ROC\",'Enrollment Form'!$DR408<>\"\"),\"Y\",IF(AND('Enrollment Form'!$C408=\"ROC\",'Enrollment Form'!$DR408=\"\"),\"N\",IF(AND('Enrollment Form'!$C408=\"Enroll\",'Enrollment Form'!$B408=\"Subscriber\",'Enrollment Form'!$CX408=\"No\",'Enrollment Form'!$DR408=\"\"),\"N\",IF(AND('Enrollment Form'!$C408=\"Enroll\",'Enrollment Form'!$B408=\"Subscriber\",'Enrollment Form'!$CX408=\"Yes\"),\"-\",\"Y\")))))","v":""},{"$f":"IF($B401=\"N\",\"\",IF(AND('Enrollment Form'!$C408=\"ROC\",'Enrollment Form'!$DS408<>\"\"),\"Y\",IF(AND('Enrollment Form'!$C408=\"ROC\",'Enrollment Form'!$DS408=\"\"),\"N\",IF(AND('Enrollment Form'!$C408=\"Enroll\",'Enrollment Form'!$B408=\"Subscriber\",'Enrollment Form'!$CX408=\"No\",'Enrollment Form'!$DS408=\"\"),\"N\",IF(AND('Enrollment Form'!$C408=\"Enroll\",'Enrollment Form'!$B408=\"Subscriber\",'Enrollment Form'!$CX408=\"Yes\"),\"-\",\"Y\")))))","v":""},{"$f":"IF('Enrollment Form'!AH408=\"\",\"\",IF(ISERROR(SEARCH(\".\",'Enrollment Form'!AH408,SEARCH(\"@\",'Enrollment Form'!AH408))),\"N\",\"Y\"))","v":""},{"$f":"IF(OR($B401=\"N\",'Enrollment Form'!$G408=\"\"),\"\",IF('Enrollment Form'!$B408<>\"Subscriber\",\"-\",IF(COUNTIF('Enrollment Form'!$AV408:$AW408,\"Yes\")=2,\"N\",\"Y\")))","v":""},{"$f":"IF(OR('Enrollment Form'!$CJ408=\"\",'Enrollment Form'!$CJ408=\"No\"),\"-\",IF(AND('Enrollment Form'!$CJ408=\"Yes\",'Enrollment Form'!$CK408=\"\"),\"N\",\"Y\"))","v":"-"},{"$f":"IF(OR('Enrollment Form'!$CL408=\"\",'Enrollment Form'!$CL408=\"No\"),\"-\",IF(AND('Enrollment Form'!$CL408=\"Yes\",'Enrollment Form'!$CM408=\"\"),\"N\",\"Y\"))","v":"-"},{"$f":"IF(OR('Enrollment Form'!$CN408=\"\",'Enrollment Form'!$CN408=\"No\"),\"-\",IF(AND('Enrollment Form'!$CN408=\"Yes\",'Enrollment Form'!$CO408=\"\"),\"N\",\"Y\"))","v":"-"},{"$f":"IF(OR('Enrollment Form'!$CN408=\"\",'Enrollment Form'!$CN408=\"No\"),\"-\",IF(AND('Enrollment Form'!$CN408=\"Yes\",'Enrollment Form'!$CP408=\"\"),\"N\",\"Y\"))","v":"-"},{"$f":"IF('Enrollment Form'!B408<>\"Subscriber\",\"-\",IF(AND('Enrollment Form'!B408=\"Subscriber\",'Enrollment Form'!C408=\"Enroll\",'Enrollment Form'!AA408=\"\"),\"N\",\"Y\"))","v":"-"},{"$f":"IF(OR('Enrollment Form'!B408=\"Subscriber\",'Enrollment Form'!B408=\"\"),\"-\",IF('Enrollment Form'!BP408=\"\",\"N\",\"Y\"))","v":"-"},{"$f":"IF('Enrollment Form'!B408<>\"Subscriber\",\"-\",IF(AND('Enrollment Form'!B408=\"Subscriber\",'Enrollment Form'!G408=\"\"),\"N\",\"Y\"))","v":"-"},{"$f":"IF('Enrollment Form'!A408=\"\",\"\",IF('Enrollment Form'!B408=\"Subscriber\",\"-\",IF(AND('Enrollment Form'!B408<>\"Subscriber\",'Enrollment Form'!G408='Enrollment Form'!H408),\"N\",\"Y\")))","v":""},0]
[409,{"$f":"IF('Enrollment Form'!$A409<>\"\",\"Y\",\"N\")","v":"N"},{"$f":"IF(AND('Enrollment Form'!$B409=\"\",'Enrollment Form'!$C409<>\"\"),\"N\",IF($B402=\"N\",\"\",\"Y\"))","v":""},{"$f":"IF(OR($B402=\"N\",'Enrollment Form'!G409=\"\"),\"\",IF('Enrollment Form'!$B409<>\"Subscriber\",\"\",IF('Enrollment Form'!$G409='Enrollment Form'!$H409,\"Y\",\"N\")))","v":""},{"$f":"IF($B402=\"N\",\"\",IF(AND(COUNTIFS('Enrollment Form'!$H$11:$H$1000,'Enrollment Form'!$H409,'Enrollment Form'!$B$11:$B$1000,'Enrollment Form'!$B409)>1,'Enrollment Form'!$H409<>\"\"),\"N\",\"Y\"))","v":""},{"$f":"IF($B402=\"N\",\"\",IF(LEN('Enrollment Form'!$Y409)=0,\"\",IF(LEN('Enrollment Form'!$Y409)<>5,\"N\",\"Y\")))","v":""},{"$f":"IF($B402=\"N\",\"\",IF(LEN('Enrollment Form'!$AD409=0),\"\",IF(LEN('Enrollment Form'!$AD409)<>5,\"N\",\"Y\")))","v":""},{"$f":"IF($B402=\"N\",\"\",IF(LEN('Enrollment Form'!$BS409=0),\"\",IF(LEN('Enrollment Form'!$BS409)<>5,\"N\",\"Y\")))","v":""},{"$f":"IF($B402=\"N\",\"\",IF(LEN('Enrollment Form'!$AE409)=0,\"\",IF(LEN('Enrollment Form'!$AE409)<>10,\"N\",\"Y\")))","v":""},{"$f":"IF($B402=\"N\",\"\",IF(LEN('Enrollment Form'!$AF409)=0,\"\",IF(LEN('Enrollment Form'!$AF409)<>10,\"N\",\"Y\")))","v":""},{"$f":"IF('Enrollment Form'!$O409<>\"Graded\",\"-\",IF(AND('Enrollment Form'!$O409=\"Graded\",'Enrollment Form'!$AR409<>\"\"),\"Y\",\"N\"))","v":"-"},{"$f":"IF($B402=\"N\",\"\",IF(OR('Enrollment Form'!$B409<>\"Subscriber\",'Enrollment Form'!$C409=\"ROC\"),\"-\",IF(AND('Enrollment Form'!$B409=\"Subscriber\",'Enrollment Form'!$C409=\"Enroll\",'Enrollment Form'!$AJ409<>\"\"),\"Y\",\"N\")))","v":""},{"$f":"IF($B402=\"N\",\"\",IF(OR('Enrollment Form'!$B409<>\"Subscriber\",'Enrollment Form'!$C409=\"ROC\"),\"-\",IF(AND('Enrollment Form'!$B409=\"Subscriber\",'Enrollment Form'!$C409=\"Enroll\",'Enrollment Form'!$AK409<>\"\"),\"Y\",\"N\")))","v":""},{"$f":"IF($B402=\"N\",\"\",IF(OR('Enrollment Form'!$B409<>\"Subscriber\",'Enrollment Form'!$C409=\"ROC\"),\"-\",IF(AND('Enrollment Form'!$B409=\"Subscriber\",'Enrollment Form'!$C409=\"Enroll\",'Enrollment Form'!$AL409<>\"\"),\"Y\",\"N\")))","v":""},{"$f":"IF($B402=\"N\",\"\",IF(OR('Enrollment Form'!$B409<>\"Subscriber\",'Enrollment Form'!$C409=\"ROC\"),\"-\",IF(AND('Enrollment Form'!$B409=\"Subscriber\",'Enrollment Form'!$C409=\"Enroll\",'Enrollment Form'!$AP409<>\"\"),\"Y\",\"N\")))","v":""},{"$f":"IF($B402=\"N\",\"\",IF(OR('Enrollment Form'!$B409<>\"Subscriber\",'Enrollment Form'!$C409=\"ROC\"),\"-\",IF(AND('Enrollment Form'!$B409=\"Subscriber\",'Enrollment Form'!$C409=\"Enroll\",'Enrollment Form'!$AQ409<>\"\"),\"Y\",\"N\")))","v":""},{"$f":"IF($B402=\"N\",\"\",IF(OR('Enrollment Form'!$B409<>\"Subscriber\",'Enrollment Form'!$C409=\"ROC\"),\"-\",IF(AND('Enrollment Form'!$B409=\"Subscriber\",'Enrollment Form'!$C409=\"Enroll\",'Enrollment Form'!$AS409<>\"\"),\"Y\",\"N\")))","v":""},{"$f":"IF($B402=\"N\",\"\",IF($Q402=\"-\",\"-\",IF(AND($Q402=\"Y\",'Enrollment Form'!$AS409=\"No\"),\"-\",IF(AND($Q402=\"Y\",'Enrollment Form'!$AS409=\"Yes\",'Enrollment Form'!$AT409<>\"\"),\"Y\",\"N\"))))","v":""},{"$f":"IF($B402=\"N\",\"\",IF(OR('Enrollment Form'!$B409<>\"Subscriber\",'Enrollment Form'!$C409=\"ROC\"),\"-\",IF(AND('Enrollment Form'!$B409=\"Subscriber\",'Enrollment Form'!$C409=\"Enroll\",'Enrollment Form'!$CV409<>\"\"),\"Y\",\"N\")))","v":""},{"$f":"IF($B402=\"N\",\"\",IF($S402=\"-\",\"-\",IF(AND($S402=\"Y\",'Enrollment Form'!$CV409=\"No\"),\"-\",IF(AND($S402=\"Y\",'Enrollment Form'!$CV409=\"Yes\",'Enrollment Form'!$CW409<>\"\"),\"Y\",\"N\"))))","v":""},{"$f":"IF(OR('Enrollment Form'!$AY409=\"Yes\",'Enrollment Form'!$AY409=\"\"),\"-\",IF(OR(AND('Enrollment Form'!$AY409=\"No\",ISERROR(FIND(\"HMO\",VLOOKUP('Enrollment Form'!G409,'Enrollment Form'!H$11:J$1000,3,FALSE),1))=FALSE,COUNTA('Enrollment Form'!$AZ409:$BC409)=4),AND('Enrollment Form'!$AY409=\"No\",ISERROR(FIND(\"HMO\",VLOOKUP('Enrollment Form'!G409,'Enrollment Form'!H$11:J$1000,3,FALSE),1))=FALSE,COUNTA('Enrollment Form'!$BT409:$BW409)=4)),\"Y\",\"N\"))","v":"-"},{"$f":"IF($B402=\"N\",\"\",IF('Enrollment Form'!$B409=\"Subscriber\",\"-\",IF(COUNTA('Enrollment Form'!$BL409,'Enrollment Form'!$BN409)=2,\"Y\",\"N\")))","v":""},{"$f":"IF($B402=\"N\",\"\",IF(OR('Enrollment Form'!$AX409=\"\",'Enrollment Form'!$AX409=\"No\"),\"-\",IF(AND('Enrollment Form'!$AX409=\"Yes\",COUNTA('Enrollment Form'!$CR409)=1),\"Y\",\"N\")))","v":""},{"$f":"IF(OR('Enrollment Form'!$CR409=\"\",'Enrollment Form'!$CR409=\"No\"),\"-\",IF(COUNTA('Enrollment Form'!$CT409:$CU409)=2,\"Y\",\"N\"))","v":"-"},{"$f":"IF($B402=\"N\",\"\",IF(COUNTIF('Enrollment Form'!$DG409:$DP409,\"Other\")=COUNTA('Enrollment Form'!$DK409,'Enrollment Form'!$DH409,'Enrollment Form'!$DN409,'Enrollment Form'!$DQ409),\"Y\",\"N\"))","v":""},{"$f":"IF($B402=\"N\",\"\",IF(OR('Enrollment Form'!B409<>\"Subscriber\",'Enrollment Form'!C409=\"ROC\",COUNTIF('Enrollment Form'!AV409:AW409,\"Yes\")>=1),\"-\",IF(AND('Enrollment Form'!C409=\"Enroll\",COUNTIF('Enrollment Form'!AV409:AW409,\"No\")=2,'Enrollment Form'!AX409=\"\"),\"N\",\"Y\")))","v":""},{"$f":"IF(OR(B402=\"N\",'Enrollment Form'!B409<>\"Subscriber\",'Enrollment Form'!C409=\"ROC\",'Enrollment Form'!O409<>\"Multiple of Salary\"),\"-\",IF(COUNTA('Enrollment Form'!T409:U409)<2,\"N\",\"Y\"))","v":"-"},{"$f":"IF(B402=\"N\",\"\",IF(OR('Enrollment Form'!C409=\"ROC\",'Enrollment Form'!B409<>\"Subscriber\",'Enrollment Form'!O409=\"Waive\",'Enrollment Form'!O409=\"\"),\"-\",IF('Enrollment Form'!P409=\"\",\"N\",\"Y\")))","v":""},{"$f":"IF($B402=\"N\",\"\",IF(AND('Enrollment Form'!$C409=\"ROC\",'Enrollment Form'!$DR409<>\"\"),\"Y\",IF(AND('Enrollment Form'!$C409=\"ROC\",'Enrollment Form'!$DR409=\"\"),\"N\",IF(AND('Enrollment Form'!$C409=\"Enroll\",'Enrollment Form'!$B409=\"Subscriber\",'Enrollment Form'!$CX409=\"No\",'Enrollment Form'!$DR409=\"\"),\"N\",IF(AND('Enrollment Form'!$C409=\"Enroll\",'Enrollment Form'!$B409=\"Subscriber\",'Enrollment Form'!$CX409=\"Yes\"),\"-\",\"Y\")))))","v":""},{"$f":"IF($B402=\"N\",\"\",IF(AND('Enrollment Form'!$C409=\"ROC\",'Enrollment Form'!$DS409<>\"\"),\"Y\",IF(AND('Enrollment Form'!$C409=\"ROC\",'Enrollment Form'!$DS409=\"\"),\"N\",IF(AND('Enrollment Form'!$C409=\"Enroll\",'Enrollment Form'!$B409=\"Subscriber\",'Enrollment Form'!$CX409=\"No\",'Enrollment Form'!$DS409=\"\"),\"N\",IF(AND('Enrollment Form'!$C409=\"Enroll\",'Enrollment Form'!$B409=\"Subscriber\",'Enrollment Form'!$CX409=\"Yes\"),\"-\",\"Y\")))))","v":""},{"$f":"IF('Enrollment Form'!AH409=\"\",\"\",IF(ISERROR(SEARCH(\".\",'Enrollment Form'!AH409,SEARCH(\"@\",'Enrollment Form'!AH409))),\"N\",\"Y\"))","v":""},{"$f":"IF(OR($B402=\"N\",'Enrollment Form'!$G409=\"\"),\"\",IF('Enrollment Form'!$B409<>\"Subscriber\",\"-\",IF(COUNTIF('Enrollment Form'!$AV409:$AW409,\"Yes\")=2,\"N\",\"Y\")))","v":""},{"$f":"IF(OR('Enrollment Form'!$CJ409=\"\",'Enrollment Form'!$CJ409=\"No\"),\"-\",IF(AND('Enrollment Form'!$CJ409=\"Yes\",'Enrollment Form'!$CK409=\"\"),\"N\",\"Y\"))","v":"-"},{"$f":"IF(OR('Enrollment Form'!$CL409=\"\",'Enrollment Form'!$CL409=\"No\"),\"-\",IF(AND('Enrollment Form'!$CL409=\"Yes\",'Enrollment Form'!$CM409=\"\"),\"N\",\"Y\"))","v":"-"},{"$f":"IF(OR('Enrollment Form'!$CN409=\"\",'Enrollment Form'!$CN409=\"No\"),\"-\",IF(AND('Enrollment Form'!$CN409=\"Yes\",'Enrollment Form'!$CO409=\"\"),\"N\",\"Y\"))","v":"-"},{"$f":"IF(OR('Enrollment Form'!$CN409=\"\",'Enrollment Form'!$CN409=\"No\"),\"-\",IF(AND('Enrollment Form'!$CN409=\"Yes\",'Enrollment Form'!$CP409=\"\"),\"N\",\"Y\"))","v":"-"},{"$f":"IF('Enrollment Form'!B409<>\"Subscriber\",\"-\",IF(AND('Enrollment Form'!B409=\"Subscriber\",'Enrollment Form'!C409=\"Enroll\",'Enrollment Form'!AA409=\"\"),\"N\",\"Y\"))","v":"-"},{"$f":"IF(OR('Enrollment Form'!B409=\"Subscriber\",'Enrollment Form'!B409=\"\"),\"-\",IF('Enrollment Form'!BP409=\"\",\"N\",\"Y\"))","v":"-"},{"$f":"IF('Enrollment Form'!B409<>\"Subscriber\",\"-\",IF(AND('Enrollment Form'!B409=\"Subscriber\",'Enrollment Form'!G409=\"\"),\"N\",\"Y\"))","v":"-"},{"$f":"IF('Enrollment Form'!A409=\"\",\"\",IF('Enrollment Form'!B409=\"Subscriber\",\"-\",IF(AND('Enrollment Form'!B409<>\"Subscriber\",'Enrollment Form'!G409='Enrollment Form'!H409),\"N\",\"Y\")))","v":""},0]
[410,{"$f":"IF('Enrollment Form'!$A410<>\"\",\"Y\",\"N\")","v":"N"},{"$f":"IF(AND('Enrollment Form'!$B410=\"\",'Enrollment Form'!$C410<>\"\"),\"N\",IF($B403=\"N\",\"\",\"Y\"))","v":""},{"$f":"IF(OR($B403=\"N\",'Enrollment Form'!G410=\"\"),\"\",IF('Enrollment Form'!$B410<>\"Subscriber\",\"\",IF('Enrollment Form'!$G410='Enrollment Form'!$H410,\"Y\",\"N\")))","v":""},{"$f":"IF($B403=\"N\",\"\",IF(AND(COUNTIFS('Enrollment Form'!$H$11:$H$1000,'Enrollment Form'!$H410,'Enrollment Form'!$B$11:$B$1000,'Enrollment Form'!$B410)>1,'Enrollment Form'!$H410<>\"\"),\"N\",\"Y\"))","v":""},{"$f":"IF($B403=\"N\",\"\",IF(LEN('Enrollment Form'!$Y410)=0,\"\",IF(LEN('Enrollment Form'!$Y410)<>5,\"N\",\"Y\")))","v":""},{"$f":"IF($B403=\"N\",\"\",IF(LEN('Enrollment Form'!$AD410=0),\"\",IF(LEN('Enrollment Form'!$AD410)<>5,\"N\",\"Y\")))","v":""},{"$f":"IF($B403=\"N\",\"\",IF(LEN('Enrollment Form'!$BS410=0),\"\",IF(LEN('Enrollment Form'!$BS410)<>5,\"N\",\"Y\")))","v":""},{"$f":"IF($B403=\"N\",\"\",IF(LEN('Enrollment Form'!$AE410)=0,\"\",IF(LEN('Enrollment Form'!$AE410)<>10,\"N\",\"Y\")))","v":""},{"$f":"IF($B403=\"N\",\"\",IF(LEN('Enrollment Form'!$AF410)=0,\"\",IF(LEN('Enrollment Form'!$AF410)<>10,\"N\",\"Y\")))","v":""},{"$f":"IF('Enrollment Form'!$O410<>\"Graded\",\"-\",IF(AND('Enrollment Form'!$O410=\"Graded\",'Enrollment Form'!$AR410<>\"\"),\"Y\",\"N\"))","v":"-"},{"$f":"IF($B403=\"N\",\"\",IF(OR('Enrollment Form'!$B410<>\"Subscriber\",'Enrollment Form'!$C410=\"ROC\"),\"-\",IF(AND('Enrollment Form'!$B410=\"Subscriber\",'Enrollment Form'!$C410=\"Enroll\",'Enrollment Form'!$AJ410<>\"\"),\"Y\",\"N\")))","v":""},{"$f":"IF($B403=\"N\",\"\",IF(OR('Enrollment Form'!$B410<>\"Subscriber\",'Enrollment Form'!$C410=\"ROC\"),\"-\",IF(AND('Enrollment Form'!$B410=\"Subscriber\",'Enrollment Form'!$C410=\"Enroll\",'Enrollment Form'!$AK410<>\"\"),\"Y\",\"N\")))","v":""},{"$f":"IF($B403=\"N\",\"\",IF(OR('Enrollment Form'!$B410<>\"Subscriber\",'Enrollment Form'!$C410=\"ROC\"),\"-\",IF(AND('Enrollment Form'!$B410=\"Subscriber\",'Enrollment Form'!$C410=\"Enroll\",'Enrollment Form'!$AL410<>\"\"),\"Y\",\"N\")))","v":""},{"$f":"IF($B403=\"N\",\"\",IF(OR('Enrollment Form'!$B410<>\"Subscriber\",'Enrollment Form'!$C410=\"ROC\"),\"-\",IF(AND('Enrollment Form'!$B410=\"Subscriber\",'Enrollment Form'!$C410=\"Enroll\",'Enrollment Form'!$AP410<>\"\"),\"Y\",\"N\")))","v":""},{"$f":"IF($B403=\"N\",\"\",IF(OR('Enrollment Form'!$B410<>\"Subscriber\",'Enrollment Form'!$C410=\"ROC\"),\"-\",IF(AND('Enrollment Form'!$B410=\"Subscriber\",'Enrollment Form'!$C410=\"Enroll\",'Enrollment Form'!$AQ410<>\"\"),\"Y\",\"N\")))","v":""},{"$f":"IF($B403=\"N\",\"\",IF(OR('Enrollment Form'!$B410<>\"Subscriber\",'Enrollment Form'!$C410=\"ROC\"),\"-\",IF(AND('Enrollment Form'!$B410=\"Subscriber\",'Enrollment Form'!$C410=\"Enroll\",'Enrollment Form'!$AS410<>\"\"),\"Y\",\"N\")))","v":""},{"$f":"IF($B403=\"N\",\"\",IF($Q403=\"-\",\"-\",IF(AND($Q403=\"Y\",'Enrollment Form'!$AS410=\"No\"),\"-\",IF(AND($Q403=\"Y\",'Enrollment Form'!$AS410=\"Yes\",'Enrollment Form'!$AT410<>\"\"),\"Y\",\"N\"))))","v":""},{"$f":"IF($B403=\"N\",\"\",IF(OR('Enrollment Form'!$B410<>\"Subscriber\",'Enrollment Form'!$C410=\"ROC\"),\"-\",IF(AND('Enrollment Form'!$B410=\"Subscriber\",'Enrollment Form'!$C410=\"Enroll\",'Enrollment Form'!$CV410<>\"\"),\"Y\",\"N\")))","v":""},{"$f":"IF($B403=\"N\",\"\",IF($S403=\"-\",\"-\",IF(AND($S403=\"Y\",'Enrollment Form'!$CV410=\"No\"),\"-\",IF(AND($S403=\"Y\",'Enrollment Form'!$CV410=\"Yes\",'Enrollment Form'!$CW410<>\"\"),\"Y\",\"N\"))))","v":""},{"$f":"IF(OR('Enrollment Form'!$AY410=\"Yes\",'Enrollment Form'!$AY410=\"\"),\"-\",IF(OR(AND('Enrollment Form'!$AY410=\"No\",ISERROR(FIND(\"HMO\",VLOOKUP('Enrollment Form'!G410,'Enrollment Form'!H$11:J$1000,3,FALSE),1))=FALSE,COUNTA('Enrollment Form'!$AZ410:$BC410)=4),AND('Enrollment Form'!$AY410=\"No\",ISERROR(FIND(\"HMO\",VLOOKUP('Enrollment Form'!G410,'Enrollment Form'!H$11:J$1000,3,FALSE),1))=FALSE,COUNTA('Enrollment Form'!$BT410:$BW410)=4)),\"Y\",\"N\"))","v":"-"},{"$f":"IF($B403=\"N\",\"\",IF('Enrollment Form'!$B410=\"Subscriber\",\"-\",IF(COUNTA('Enrollment Form'!$BL410,'Enrollment Form'!$BN410)=2,\"Y\",\"N\")))","v":""},{"$f":"IF($B403=\"N\",\"\",IF(OR('Enrollment Form'!$AX410=\"\",'Enrollment Form'!$AX410=\"No\"),\"-\",IF(AND('Enrollment Form'!$AX410=\"Yes\",COUNTA('Enrollment Form'!$CR410)=1),\"Y\",\"N\")))","v":""},{"$f":"IF(OR('Enrollment Form'!$CR410=\"\",'Enrollment Form'!$CR410=\"No\"),\"-\",IF(COUNTA('Enrollment Form'!$CT410:$CU410)=2,\"Y\",\"N\"))","v":"-"},{"$f":"IF($B403=\"N\",\"\",IF(COUNTIF('Enrollment Form'!$DG410:$DP410,\"Other\")=COUNTA('Enrollment Form'!$DK410,'Enrollment Form'!$DH410,'Enrollment Form'!$DN410,'Enrollment Form'!$DQ410),\"Y\",\"N\"))","v":""},{"$f":"IF($B403=\"N\",\"\",IF(OR('Enrollment Form'!B410<>\"Subscriber\",'Enrollment Form'!C410=\"ROC\",COUNTIF('Enrollment Form'!AV410:AW410,\"Yes\")>=1),\"-\",IF(AND('Enrollment Form'!C410=\"Enroll\",COUNTIF('Enrollment Form'!AV410:AW410,\"No\")=2,'Enrollment Form'!AX410=\"\"),\"N\",\"Y\")))","v":""},{"$f":"IF(OR(B403=\"N\",'Enrollment Form'!B410<>\"Subscriber\",'Enrollment Form'!C410=\"ROC\",'Enrollment Form'!O410<>\"Multiple of Salary\"),\"-\",IF(COUNTA('Enrollment Form'!T410:U410)<2,\"N\",\"Y\"))","v":"-"},{"$f":"IF(B403=\"N\",\"\",IF(OR('Enrollment Form'!C410=\"ROC\",'Enrollment Form'!B410<>\"Subscriber\",'Enrollment Form'!O410=\"Waive\",'Enrollment Form'!O410=\"\"),\"-\",IF('Enrollment Form'!P410=\"\",\"N\",\"Y\")))","v":""},{"$f":"IF($B403=\"N\",\"\",IF(AND('Enrollment Form'!$C410=\"ROC\",'Enrollment Form'!$DR410<>\"\"),\"Y\",IF(AND('Enrollment Form'!$C410=\"ROC\",'Enrollment Form'!$DR410=\"\"),\"N\",IF(AND('Enrollment Form'!$C410=\"Enroll\",'Enrollment Form'!$B410=\"Subscriber\",'Enrollment Form'!$CX410=\"No\",'Enrollment Form'!$DR410=\"\"),\"N\",IF(AND('Enrollment Form'!$C410=\"Enroll\",'Enrollment Form'!$B410=\"Subscriber\",'Enrollment Form'!$CX410=\"Yes\"),\"-\",\"Y\")))))","v":""},{"$f":"IF($B403=\"N\",\"\",IF(AND('Enrollment Form'!$C410=\"ROC\",'Enrollment Form'!$DS410<>\"\"),\"Y\",IF(AND('Enrollment Form'!$C410=\"ROC\",'Enrollment Form'!$DS410=\"\"),\"N\",IF(AND('Enrollment Form'!$C410=\"Enroll\",'Enrollment Form'!$B410=\"Subscriber\",'Enrollment Form'!$CX410=\"No\",'Enrollment Form'!$DS410=\"\"),\"N\",IF(AND('Enrollment Form'!$C410=\"Enroll\",'Enrollment Form'!$B410=\"Subscriber\",'Enrollment Form'!$CX410=\"Yes\"),\"-\",\"Y\")))))","v":""},{"$f":"IF('Enrollment Form'!AH410=\"\",\"\",IF(ISERROR(SEARCH(\".\",'Enrollment Form'!AH410,SEARCH(\"@\",'Enrollment Form'!AH410))),\"N\",\"Y\"))","v":""},{"$f":"IF(OR($B403=\"N\",'Enrollment Form'!$G410=\"\"),\"\",IF('Enrollment Form'!$B410<>\"Subscriber\",\"-\",IF(COUNTIF('Enrollment Form'!$AV410:$AW410,\"Yes\")=2,\"N\",\"Y\")))","v":""},{"$f":"IF(OR('Enrollment Form'!$CJ410=\"\",'Enrollment Form'!$CJ410=\"No\"),\"-\",IF(AND('Enrollment Form'!$CJ410=\"Yes\",'Enrollment Form'!$CK410=\"\"),\"N\",\"Y\"))","v":"-"},{"$f":"IF(OR('Enrollment Form'!$CL410=\"\",'Enrollment Form'!$CL410=\"No\"),\"-\",IF(AND('Enrollment Form'!$CL410=\"Yes\",'Enrollment Form'!$CM410=\"\"),\"N\",\"Y\"))","v":"-"},{"$f":"IF(OR('Enrollment Form'!$CN410=\"\",'Enrollment Form'!$CN410=\"No\"),\"-\",IF(AND('Enrollment Form'!$CN410=\"Yes\",'Enrollment Form'!$CO410=\"\"),\"N\",\"Y\"))","v":"-"},{"$f":"IF(OR('Enrollment Form'!$CN410=\"\",'Enrollment Form'!$CN410=\"No\"),\"-\",IF(AND('Enrollment Form'!$CN410=\"Yes\",'Enrollment Form'!$CP410=\"\"),\"N\",\"Y\"))","v":"-"},{"$f":"IF('Enrollment Form'!B410<>\"Subscriber\",\"-\",IF(AND('Enrollment Form'!B410=\"Subscriber\",'Enrollment Form'!C410=\"Enroll\",'Enrollment Form'!AA410=\"\"),\"N\",\"Y\"))","v":"-"},{"$f":"IF(OR('Enrollment Form'!B410=\"Subscriber\",'Enrollment Form'!B410=\"\"),\"-\",IF('Enrollment Form'!BP410=\"\",\"N\",\"Y\"))","v":"-"},{"$f":"IF('Enrollment Form'!B410<>\"Subscriber\",\"-\",IF(AND('Enrollment Form'!B410=\"Subscriber\",'Enrollment Form'!G410=\"\"),\"N\",\"Y\"))","v":"-"},{"$f":"IF('Enrollment Form'!A410=\"\",\"\",IF('Enrollment Form'!B410=\"Subscriber\",\"-\",IF(AND('Enrollment Form'!B410<>\"Subscriber\",'Enrollment Form'!G410='Enrollment Form'!H410),\"N\",\"Y\")))","v":""},0]
[411,{"$f":"IF('Enrollment Form'!$A411<>\"\",\"Y\",\"N\")","v":"N"},{"$f":"IF(AND('Enrollment Form'!$B411=\"\",'Enrollment Form'!$C411<>\"\"),\"N\",IF($B404=\"N\",\"\",\"Y\"))","v":""},{"$f":"IF(OR($B404=\"N\",'Enrollment Form'!G411=\"\"),\"\",IF('Enrollment Form'!$B411<>\"Subscriber\",\"\",IF('Enrollment Form'!$G411='Enrollment Form'!$H411,\"Y\",\"N\")))","v":""},{"$f":"IF($B404=\"N\",\"\",IF(AND(COUNTIFS('Enrollment Form'!$H$11:$H$1000,'Enrollment Form'!$H411,'Enrollment Form'!$B$11:$B$1000,'Enrollment Form'!$B411)>1,'Enrollment Form'!$H411<>\"\"),\"N\",\"Y\"))","v":""},{"$f":"IF($B404=\"N\",\"\",IF(LEN('Enrollment Form'!$Y411)=0,\"\",IF(LEN('Enrollment Form'!$Y411)<>5,\"N\",\"Y\")))","v":""},{"$f":"IF($B404=\"N\",\"\",IF(LEN('Enrollment Form'!$AD411=0),\"\",IF(LEN('Enrollment Form'!$AD411)<>5,\"N\",\"Y\")))","v":""},{"$f":"IF($B404=\"N\",\"\",IF(LEN('Enrollment Form'!$BS411=0),\"\",IF(LEN('Enrollment Form'!$BS411)<>5,\"N\",\"Y\")))","v":""},{"$f":"IF($B404=\"N\",\"\",IF(LEN('Enrollment Form'!$AE411)=0,\"\",IF(LEN('Enrollment Form'!$AE411)<>10,\"N\",\"Y\")))","v":""},{"$f":"IF($B404=\"N\",\"\",IF(LEN('Enrollment Form'!$AF411)=0,\"\",IF(LEN('Enrollment Form'!$AF411)<>10,\"N\",\"Y\")))","v":""},{"$f":"IF('Enrollment Form'!$O411<>\"Graded\",\"-\",IF(AND('Enrollment Form'!$O411=\"Graded\",'Enrollment Form'!$AR411<>\"\"),\"Y\",\"N\"))","v":"-"},{"$f":"IF($B404=\"N\",\"\",IF(OR('Enrollment Form'!$B411<>\"Subscriber\",'Enrollment Form'!$C411=\"ROC\"),\"-\",IF(AND('Enrollment Form'!$B411=\"Subscriber\",'Enrollment Form'!$C411=\"Enroll\",'Enrollment Form'!$AJ411<>\"\"),\"Y\",\"N\")))","v":""},{"$f":"IF($B404=\"N\",\"\",IF(OR('Enrollment Form'!$B411<>\"Subscriber\",'Enrollment Form'!$C411=\"ROC\"),\"-\",IF(AND('Enrollment Form'!$B411=\"Subscriber\",'Enrollment Form'!$C411=\"Enroll\",'Enrollment Form'!$AK411<>\"\"),\"Y\",\"N\")))","v":""},{"$f":"IF($B404=\"N\",\"\",IF(OR('Enrollment Form'!$B411<>\"Subscriber\",'Enrollment Form'!$C411=\"ROC\"),\"-\",IF(AND('Enrollment Form'!$B411=\"Subscriber\",'Enrollment Form'!$C411=\"Enroll\",'Enrollment Form'!$AL411<>\"\"),\"Y\",\"N\")))","v":""},{"$f":"IF($B404=\"N\",\"\",IF(OR('Enrollment Form'!$B411<>\"Subscriber\",'Enrollment Form'!$C411=\"ROC\"),\"-\",IF(AND('Enrollment Form'!$B411=\"Subscriber\",'Enrollment Form'!$C411=\"Enroll\",'Enrollment Form'!$AP411<>\"\"),\"Y\",\"N\")))","v":""},{"$f":"IF($B404=\"N\",\"\",IF(OR('Enrollment Form'!$B411<>\"Subscriber\",'Enrollment Form'!$C411=\"ROC\"),\"-\",IF(AND('Enrollment Form'!$B411=\"Subscriber\",'Enrollment Form'!$C411=\"Enroll\",'Enrollment Form'!$AQ411<>\"\"),\"Y\",\"N\")))","v":""},{"$f":"IF($B404=\"N\",\"\",IF(OR('Enrollment Form'!$B411<>\"Subscriber\",'Enrollment Form'!$C411=\"ROC\"),\"-\",IF(AND('Enrollment Form'!$B411=\"Subscriber\",'Enrollment Form'!$C411=\"Enroll\",'Enrollment Form'!$AS411<>\"\"),\"Y\",\"N\")))","v":""},{"$f":"IF($B404=\"N\",\"\",IF($Q404=\"-\",\"-\",IF(AND($Q404=\"Y\",'Enrollment Form'!$AS411=\"No\"),\"-\",IF(AND($Q404=\"Y\",'Enrollment Form'!$AS411=\"Yes\",'Enrollment Form'!$AT411<>\"\"),\"Y\",\"N\"))))","v":""},{"$f":"IF($B404=\"N\",\"\",IF(OR('Enrollment Form'!$B411<>\"Subscriber\",'Enrollment Form'!$C411=\"ROC\"),\"-\",IF(AND('Enrollment Form'!$B411=\"Subscriber\",'Enrollment Form'!$C411=\"Enroll\",'Enrollment Form'!$CV411<>\"\"),\"Y\",\"N\")))","v":""},{"$f":"IF($B404=\"N\",\"\",IF($S404=\"-\",\"-\",IF(AND($S404=\"Y\",'Enrollment Form'!$CV411=\"No\"),\"-\",IF(AND($S404=\"Y\",'Enrollment Form'!$CV411=\"Yes\",'Enrollment Form'!$CW411<>\"\"),\"Y\",\"N\"))))","v":""},{"$f":"IF(OR('Enrollment Form'!$AY411=\"Yes\",'Enrollment Form'!$AY411=\"\"),\"-\",IF(OR(AND('Enrollment Form'!$AY411=\"No\",ISERROR(FIND(\"HMO\",VLOOKUP('Enrollment Form'!G411,'Enrollment Form'!H$11:J$1000,3,FALSE),1))=FALSE,COUNTA('Enrollment Form'!$AZ411:$BC411)=4),AND('Enrollment Form'!$AY411=\"No\",ISERROR(FIND(\"HMO\",VLOOKUP('Enrollment Form'!G411,'Enrollment Form'!H$11:J$1000,3,FALSE),1))=FALSE,COUNTA('Enrollment Form'!$BT411:$BW411)=4)),\"Y\",\"N\"))","v":"-"},{"$f":"IF($B404=\"N\",\"\",IF('Enrollment Form'!$B411=\"Subscriber\",\"-\",IF(COUNTA('Enrollment Form'!$BL411,'Enrollment Form'!$BN411)=2,\"Y\",\"N\")))","v":""},{"$f":"IF($B404=\"N\",\"\",IF(OR('Enrollment Form'!$AX411=\"\",'Enrollment Form'!$AX411=\"No\"),\"-\",IF(AND('Enrollment Form'!$AX411=\"Yes\",COUNTA('Enrollment Form'!$CR411)=1),\"Y\",\"N\")))","v":""},{"$f":"IF(OR('Enrollment Form'!$CR411=\"\",'Enrollment Form'!$CR411=\"No\"),\"-\",IF(COUNTA('Enrollment Form'!$CT411:$CU411)=2,\"Y\",\"N\"))","v":"-"},{"$f":"IF($B404=\"N\",\"\",IF(COUNTIF('Enrollment Form'!$DG411:$DP411,\"Other\")=COUNTA('Enrollment Form'!$DK411,'Enrollment Form'!$DH411,'Enrollment Form'!$DN411,'Enrollment Form'!$DQ411),\"Y\",\"N\"))","v":""},{"$f":"IF($B404=\"N\",\"\",IF(OR('Enrollment Form'!B411<>\"Subscriber\",'Enrollment Form'!C411=\"ROC\",COUNTIF('Enrollment Form'!AV411:AW411,\"Yes\")>=1),\"-\",IF(AND('Enrollment Form'!C411=\"Enroll\",COUNTIF('Enrollment Form'!AV411:AW411,\"No\")=2,'Enrollment Form'!AX411=\"\"),\"N\",\"Y\")))","v":""},{"$f":"IF(OR(B404=\"N\",'Enrollment Form'!B411<>\"Subscriber\",'Enrollment Form'!C411=\"ROC\",'Enrollment Form'!O411<>\"Multiple of Salary\"),\"-\",IF(COUNTA('Enrollment Form'!T411:U411)<2,\"N\",\"Y\"))","v":"-"},{"$f":"IF(B404=\"N\",\"\",IF(OR('Enrollment Form'!C411=\"ROC\",'Enrollment Form'!B411<>\"Subscriber\",'Enrollment Form'!O411=\"Waive\",'Enrollment Form'!O411=\"\"),\"-\",IF('Enrollment Form'!P411=\"\",\"N\",\"Y\")))","v":""},{"$f":"IF($B404=\"N\",\"\",IF(AND('Enrollment Form'!$C411=\"ROC\",'Enrollment Form'!$DR411<>\"\"),\"Y\",IF(AND('Enrollment Form'!$C411=\"ROC\",'Enrollment Form'!$DR411=\"\"),\"N\",IF(AND('Enrollment Form'!$C411=\"Enroll\",'Enrollment Form'!$B411=\"Subscriber\",'Enrollment Form'!$CX411=\"No\",'Enrollment Form'!$DR411=\"\"),\"N\",IF(AND('Enrollment Form'!$C411=\"Enroll\",'Enrollment Form'!$B411=\"Subscriber\",'Enrollment Form'!$CX411=\"Yes\"),\"-\",\"Y\")))))","v":""},{"$f":"IF($B404=\"N\",\"\",IF(AND('Enrollment Form'!$C411=\"ROC\",'Enrollment Form'!$DS411<>\"\"),\"Y\",IF(AND('Enrollment Form'!$C411=\"ROC\",'Enrollment Form'!$DS411=\"\"),\"N\",IF(AND('Enrollment Form'!$C411=\"Enroll\",'Enrollment Form'!$B411=\"Subscriber\",'Enrollment Form'!$CX411=\"No\",'Enrollment Form'!$DS411=\"\"),\"N\",IF(AND('Enrollment Form'!$C411=\"Enroll\",'Enrollment Form'!$B411=\"Subscriber\",'Enrollment Form'!$CX411=\"Yes\"),\"-\",\"Y\")))))","v":""},{"$f":"IF('Enrollment Form'!AH411=\"\",\"\",IF(ISERROR(SEARCH(\".\",'Enrollment Form'!AH411,SEARCH(\"@\",'Enrollment Form'!AH411))),\"N\",\"Y\"))","v":""},{"$f":"IF(OR($B404=\"N\",'Enrollment Form'!$G411=\"\"),\"\",IF('Enrollment Form'!$B411<>\"Subscriber\",\"-\",IF(COUNTIF('Enrollment Form'!$AV411:$AW411,\"Yes\")=2,\"N\",\"Y\")))","v":""},{"$f":"IF(OR('Enrollment Form'!$CJ411=\"\",'Enrollment Form'!$CJ411=\"No\"),\"-\",IF(AND('Enrollment Form'!$CJ411=\"Yes\",'Enrollment Form'!$CK411=\"\"),\"N\",\"Y\"))","v":"-"},{"$f":"IF(OR('Enrollment Form'!$CL411=\"\",'Enrollment Form'!$CL411=\"No\"),\"-\",IF(AND('Enrollment Form'!$CL411=\"Yes\",'Enrollment Form'!$CM411=\"\"),\"N\",\"Y\"))","v":"-"},{"$f":"IF(OR('Enrollment Form'!$CN411=\"\",'Enrollment Form'!$CN411=\"No\"),\"-\",IF(AND('Enrollment Form'!$CN411=\"Yes\",'Enrollment Form'!$CO411=\"\"),\"N\",\"Y\"))","v":"-"},{"$f":"IF(OR('Enrollment Form'!$CN411=\"\",'Enrollment Form'!$CN411=\"No\"),\"-\",IF(AND('Enrollment Form'!$CN411=\"Yes\",'Enrollment Form'!$CP411=\"\"),\"N\",\"Y\"))","v":"-"},{"$f":"IF('Enrollment Form'!B411<>\"Subscriber\",\"-\",IF(AND('Enrollment Form'!B411=\"Subscriber\",'Enrollment Form'!C411=\"Enroll\",'Enrollment Form'!AA411=\"\"),\"N\",\"Y\"))","v":"-"},{"$f":"IF(OR('Enrollment Form'!B411=\"Subscriber\",'Enrollment Form'!B411=\"\"),\"-\",IF('Enrollment Form'!BP411=\"\",\"N\",\"Y\"))","v":"-"},{"$f":"IF('Enrollment Form'!B411<>\"Subscriber\",\"-\",IF(AND('Enrollment Form'!B411=\"Subscriber\",'Enrollment Form'!G411=\"\"),\"N\",\"Y\"))","v":"-"},{"$f":"IF('Enrollment Form'!A411=\"\",\"\",IF('Enrollment Form'!B411=\"Subscriber\",\"-\",IF(AND('Enrollment Form'!B411<>\"Subscriber\",'Enrollment Form'!G411='Enrollment Form'!H411),\"N\",\"Y\")))","v":""},0]
[412,{"$f":"IF('Enrollment Form'!$A412<>\"\",\"Y\",\"N\")","v":"N"},{"$f":"IF(AND('Enrollment Form'!$B412=\"\",'Enrollment Form'!$C412<>\"\"),\"N\",IF($B405=\"N\",\"\",\"Y\"))","v":""},{"$f":"IF(OR($B405=\"N\",'Enrollment Form'!G412=\"\"),\"\",IF('Enrollment Form'!$B412<>\"Subscriber\",\"\",IF('Enrollment Form'!$G412='Enrollment Form'!$H412,\"Y\",\"N\")))","v":""},{"$f":"IF($B405=\"N\",\"\",IF(AND(COUNTIFS('Enrollment Form'!$H$11:$H$1000,'Enrollment Form'!$H412,'Enrollment Form'!$B$11:$B$1000,'Enrollment Form'!$B412)>1,'Enrollment Form'!$H412<>\"\"),\"N\",\"Y\"))","v":""},{"$f":"IF($B405=\"N\",\"\",IF(LEN('Enrollment Form'!$Y412)=0,\"\",IF(LEN('Enrollment Form'!$Y412)<>5,\"N\",\"Y\")))","v":""},{"$f":"IF($B405=\"N\",\"\",IF(LEN('Enrollment Form'!$AD412=0),\"\",IF(LEN('Enrollment Form'!$AD412)<>5,\"N\",\"Y\")))","v":""},{"$f":"IF($B405=\"N\",\"\",IF(LEN('Enrollment Form'!$BS412=0),\"\",IF(LEN('Enrollment Form'!$BS412)<>5,\"N\",\"Y\")))","v":""},{"$f":"IF($B405=\"N\",\"\",IF(LEN('Enrollment Form'!$AE412)=0,\"\",IF(LEN('Enrollment Form'!$AE412)<>10,\"N\",\"Y\")))","v":""},{"$f":"IF($B405=\"N\",\"\",IF(LEN('Enrollment Form'!$AF412)=0,\"\",IF(LEN('Enrollment Form'!$AF412)<>10,\"N\",\"Y\")))","v":""},{"$f":"IF('Enrollment Form'!$O412<>\"Graded\",\"-\",IF(AND('Enrollment Form'!$O412=\"Graded\",'Enrollment Form'!$AR412<>\"\"),\"Y\",\"N\"))","v":"-"},{"$f":"IF($B405=\"N\",\"\",IF(OR('Enrollment Form'!$B412<>\"Subscriber\",'Enrollment Form'!$C412=\"ROC\"),\"-\",IF(AND('Enrollment Form'!$B412=\"Subscriber\",'Enrollment Form'!$C412=\"Enroll\",'Enrollment Form'!$AJ412<>\"\"),\"Y\",\"N\")))","v":""},{"$f":"IF($B405=\"N\",\"\",IF(OR('Enrollment Form'!$B412<>\"Subscriber\",'Enrollment Form'!$C412=\"ROC\"),\"-\",IF(AND('Enrollment Form'!$B412=\"Subscriber\",'Enrollment Form'!$C412=\"Enroll\",'Enrollment Form'!$AK412<>\"\"),\"Y\",\"N\")))","v":""},{"$f":"IF($B405=\"N\",\"\",IF(OR('Enrollment Form'!$B412<>\"Subscriber\",'Enrollment Form'!$C412=\"ROC\"),\"-\",IF(AND('Enrollment Form'!$B412=\"Subscriber\",'Enrollment Form'!$C412=\"Enroll\",'Enrollment Form'!$AL412<>\"\"),\"Y\",\"N\")))","v":""},{"$f":"IF($B405=\"N\",\"\",IF(OR('Enrollment Form'!$B412<>\"Subscriber\",'Enrollment Form'!$C412=\"ROC\"),\"-\",IF(AND('Enrollment Form'!$B412=\"Subscriber\",'Enrollment Form'!$C412=\"Enroll\",'Enrollment Form'!$AP412<>\"\"),\"Y\",\"N\")))","v":""},{"$f":"IF($B405=\"N\",\"\",IF(OR('Enrollment Form'!$B412<>\"Subscriber\",'Enrollment Form'!$C412=\"ROC\"),\"-\",IF(AND('Enrollment Form'!$B412=\"Subscriber\",'Enrollment Form'!$C412=\"Enroll\",'Enrollment Form'!$AQ412<>\"\"),\"Y\",\"N\")))","v":""},{"$f":"IF($B405=\"N\",\"\",IF(OR('Enrollment Form'!$B412<>\"Subscriber\",'Enrollment Form'!$C412=\"ROC\"),\"-\",IF(AND('Enrollment Form'!$B412=\"Subscriber\",'Enrollment Form'!$C412=\"Enroll\",'Enrollment Form'!$AS412<>\"\"),\"Y\",\"N\")))","v":""},{"$f":"IF($B405=\"N\",\"\",IF($Q405=\"-\",\"-\",IF(AND($Q405=\"Y\",'Enrollment Form'!$AS412=\"No\"),\"-\",IF(AND($Q405=\"Y\",'Enrollment Form'!$AS412=\"Yes\",'Enrollment Form'!$AT412<>\"\"),\"Y\",\"N\"))))","v":""},{"$f":"IF($B405=\"N\",\"\",IF(OR('Enrollment Form'!$B412<>\"Subscriber\",'Enrollment Form'!$C412=\"ROC\"),\"-\",IF(AND('Enrollment Form'!$B412=\"Subscriber\",'Enrollment Form'!$C412=\"Enroll\",'Enrollment Form'!$CV412<>\"\"),\"Y\",\"N\")))","v":""},{"$f":"IF($B405=\"N\",\"\",IF($S405=\"-\",\"-\",IF(AND($S405=\"Y\",'Enrollment Form'!$CV412=\"No\"),\"-\",IF(AND($S405=\"Y\",'Enrollment Form'!$CV412=\"Yes\",'Enrollment Form'!$CW412<>\"\"),\"Y\",\"N\"))))","v":""},{"$f":"IF(OR('Enrollment Form'!$AY412=\"Yes\",'Enrollment Form'!$AY412=\"\"),\"-\",IF(OR(AND('Enrollment Form'!$AY412=\"No\",ISERROR(FIND(\"HMO\",VLOOKUP('Enrollment Form'!G412,'Enrollment Form'!H$11:J$1000,3,FALSE),1))=FALSE,COUNTA('Enrollment Form'!$AZ412:$BC412)=4),AND('Enrollment Form'!$AY412=\"No\",ISERROR(FIND(\"HMO\",VLOOKUP('Enrollment Form'!G412,'Enrollment Form'!H$11:J$1000,3,FALSE),1))=FALSE,COUNTA('Enrollment Form'!$BT412:$BW412)=4)),\"Y\",\"N\"))","v":"-"},{"$f":"IF($B405=\"N\",\"\",IF('Enrollment Form'!$B412=\"Subscriber\",\"-\",IF(COUNTA('Enrollment Form'!$BL412,'Enrollment Form'!$BN412)=2,\"Y\",\"N\")))","v":""},{"$f":"IF($B405=\"N\",\"\",IF(OR('Enrollment Form'!$AX412=\"\",'Enrollment Form'!$AX412=\"No\"),\"-\",IF(AND('Enrollment Form'!$AX412=\"Yes\",COUNTA('Enrollment Form'!$CR412)=1),\"Y\",\"N\")))","v":""},{"$f":"IF(OR('Enrollment Form'!$CR412=\"\",'Enrollment Form'!$CR412=\"No\"),\"-\",IF(COUNTA('Enrollment Form'!$CT412:$CU412)=2,\"Y\",\"N\"))","v":"-"},{"$f":"IF($B405=\"N\",\"\",IF(COUNTIF('Enrollment Form'!$DG412:$DP412,\"Other\")=COUNTA('Enrollment Form'!$DK412,'Enrollment Form'!$DH412,'Enrollment Form'!$DN412,'Enrollment Form'!$DQ412),\"Y\",\"N\"))","v":""},{"$f":"IF($B405=\"N\",\"\",IF(OR('Enrollment Form'!B412<>\"Subscriber\",'Enrollment Form'!C412=\"ROC\",COUNTIF('Enrollment Form'!AV412:AW412,\"Yes\")>=1),\"-\",IF(AND('Enrollment Form'!C412=\"Enroll\",COUNTIF('Enrollment Form'!AV412:AW412,\"No\")=2,'Enrollment Form'!AX412=\"\"),\"N\",\"Y\")))","v":""},{"$f":"IF(OR(B405=\"N\",'Enrollment Form'!B412<>\"Subscriber\",'Enrollment Form'!C412=\"ROC\",'Enrollment Form'!O412<>\"Multiple of Salary\"),\"-\",IF(COUNTA('Enrollment Form'!T412:U412)<2,\"N\",\"Y\"))","v":"-"},{"$f":"IF(B405=\"N\",\"\",IF(OR('Enrollment Form'!C412=\"ROC\",'Enrollment Form'!B412<>\"Subscriber\",'Enrollment Form'!O412=\"Waive\",'Enrollment Form'!O412=\"\"),\"-\",IF('Enrollment Form'!P412=\"\",\"N\",\"Y\")))","v":""},{"$f":"IF($B405=\"N\",\"\",IF(AND('Enrollment Form'!$C412=\"ROC\",'Enrollment Form'!$DR412<>\"\"),\"Y\",IF(AND('Enrollment Form'!$C412=\"ROC\",'Enrollment Form'!$DR412=\"\"),\"N\",IF(AND('Enrollment Form'!$C412=\"Enroll\",'Enrollment Form'!$B412=\"Subscriber\",'Enrollment Form'!$CX412=\"No\",'Enrollment Form'!$DR412=\"\"),\"N\",IF(AND('Enrollment Form'!$C412=\"Enroll\",'Enrollment Form'!$B412=\"Subscriber\",'Enrollment Form'!$CX412=\"Yes\"),\"-\",\"Y\")))))","v":""},{"$f":"IF($B405=\"N\",\"\",IF(AND('Enrollment Form'!$C412=\"ROC\",'Enrollment Form'!$DS412<>\"\"),\"Y\",IF(AND('Enrollment Form'!$C412=\"ROC\",'Enrollment Form'!$DS412=\"\"),\"N\",IF(AND('Enrollment Form'!$C412=\"Enroll\",'Enrollment Form'!$B412=\"Subscriber\",'Enrollment Form'!$CX412=\"No\",'Enrollment Form'!$DS412=\"\"),\"N\",IF(AND('Enrollment Form'!$C412=\"Enroll\",'Enrollment Form'!$B412=\"Subscriber\",'Enrollment Form'!$CX412=\"Yes\"),\"-\",\"Y\")))))","v":""},{"$f":"IF('Enrollment Form'!AH412=\"\",\"\",IF(ISERROR(SEARCH(\".\",'Enrollment Form'!AH412,SEARCH(\"@\",'Enrollment Form'!AH412))),\"N\",\"Y\"))","v":""},{"$f":"IF(OR($B405=\"N\",'Enrollment Form'!$G412=\"\"),\"\",IF('Enrollment Form'!$B412<>\"Subscriber\",\"-\",IF(COUNTIF('Enrollment Form'!$AV412:$AW412,\"Yes\")=2,\"N\",\"Y\")))","v":""},{"$f":"IF(OR('Enrollment Form'!$CJ412=\"\",'Enrollment Form'!$CJ412=\"No\"),\"-\",IF(AND('Enrollment Form'!$CJ412=\"Yes\",'Enrollment Form'!$CK412=\"\"),\"N\",\"Y\"))","v":"-"},{"$f":"IF(OR('Enrollment Form'!$CL412=\"\",'Enrollment Form'!$CL412=\"No\"),\"-\",IF(AND('Enrollment Form'!$CL412=\"Yes\",'Enrollment Form'!$CM412=\"\"),\"N\",\"Y\"))","v":"-"},{"$f":"IF(OR('Enrollment Form'!$CN412=\"\",'Enrollment Form'!$CN412=\"No\"),\"-\",IF(AND('Enrollment Form'!$CN412=\"Yes\",'Enrollment Form'!$CO412=\"\"),\"N\",\"Y\"))","v":"-"},{"$f":"IF(OR('Enrollment Form'!$CN412=\"\",'Enrollment Form'!$CN412=\"No\"),\"-\",IF(AND('Enrollment Form'!$CN412=\"Yes\",'Enrollment Form'!$CP412=\"\"),\"N\",\"Y\"))","v":"-"},{"$f":"IF('Enrollment Form'!B412<>\"Subscriber\",\"-\",IF(AND('Enrollment Form'!B412=\"Subscriber\",'Enrollment Form'!C412=\"Enroll\",'Enrollment Form'!AA412=\"\"),\"N\",\"Y\"))","v":"-"},{"$f":"IF(OR('Enrollment Form'!B412=\"Subscriber\",'Enrollment Form'!B412=\"\"),\"-\",IF('Enrollment Form'!BP412=\"\",\"N\",\"Y\"))","v":"-"},{"$f":"IF('Enrollment Form'!B412<>\"Subscriber\",\"-\",IF(AND('Enrollment Form'!B412=\"Subscriber\",'Enrollment Form'!G412=\"\"),\"N\",\"Y\"))","v":"-"},{"$f":"IF('Enrollment Form'!A412=\"\",\"\",IF('Enrollment Form'!B412=\"Subscriber\",\"-\",IF(AND('Enrollment Form'!B412<>\"Subscriber\",'Enrollment Form'!G412='Enrollment Form'!H412),\"N\",\"Y\")))","v":""},0]
[413,{"$f":"IF('Enrollment Form'!$A413<>\"\",\"Y\",\"N\")","v":"N"},{"$f":"IF(AND('Enrollment Form'!$B413=\"\",'Enrollment Form'!$C413<>\"\"),\"N\",IF($B406=\"N\",\"\",\"Y\"))","v":""},{"$f":"IF(OR($B406=\"N\",'Enrollment Form'!G413=\"\"),\"\",IF('Enrollment Form'!$B413<>\"Subscriber\",\"\",IF('Enrollment Form'!$G413='Enrollment Form'!$H413,\"Y\",\"N\")))","v":""},{"$f":"IF($B406=\"N\",\"\",IF(AND(COUNTIFS('Enrollment Form'!$H$11:$H$1000,'Enrollment Form'!$H413,'Enrollment Form'!$B$11:$B$1000,'Enrollment Form'!$B413)>1,'Enrollment Form'!$H413<>\"\"),\"N\",\"Y\"))","v":""},{"$f":"IF($B406=\"N\",\"\",IF(LEN('Enrollment Form'!$Y413)=0,\"\",IF(LEN('Enrollment Form'!$Y413)<>5,\"N\",\"Y\")))","v":""},{"$f":"IF($B406=\"N\",\"\",IF(LEN('Enrollment Form'!$AD413=0),\"\",IF(LEN('Enrollment Form'!$AD413)<>5,\"N\",\"Y\")))","v":""},{"$f":"IF($B406=\"N\",\"\",IF(LEN('Enrollment Form'!$BS413=0),\"\",IF(LEN('Enrollment Form'!$BS413)<>5,\"N\",\"Y\")))","v":""},{"$f":"IF($B406=\"N\",\"\",IF(LEN('Enrollment Form'!$AE413)=0,\"\",IF(LEN('Enrollment Form'!$AE413)<>10,\"N\",\"Y\")))","v":""},{"$f":"IF($B406=\"N\",\"\",IF(LEN('Enrollment Form'!$AF413)=0,\"\",IF(LEN('Enrollment Form'!$AF413)<>10,\"N\",\"Y\")))","v":""},{"$f":"IF('Enrollment Form'!$O413<>\"Graded\",\"-\",IF(AND('Enrollment Form'!$O413=\"Graded\",'Enrollment Form'!$AR413<>\"\"),\"Y\",\"N\"))","v":"-"},{"$f":"IF($B406=\"N\",\"\",IF(OR('Enrollment Form'!$B413<>\"Subscriber\",'Enrollment Form'!$C413=\"ROC\"),\"-\",IF(AND('Enrollment Form'!$B413=\"Subscriber\",'Enrollment Form'!$C413=\"Enroll\",'Enrollment Form'!$AJ413<>\"\"),\"Y\",\"N\")))","v":""},{"$f":"IF($B406=\"N\",\"\",IF(OR('Enrollment Form'!$B413<>\"Subscriber\",'Enrollment Form'!$C413=\"ROC\"),\"-\",IF(AND('Enrollment Form'!$B413=\"Subscriber\",'Enrollment Form'!$C413=\"Enroll\",'Enrollment Form'!$AK413<>\"\"),\"Y\",\"N\")))","v":""},{"$f":"IF($B406=\"N\",\"\",IF(OR('Enrollment Form'!$B413<>\"Subscriber\",'Enrollment Form'!$C413=\"ROC\"),\"-\",IF(AND('Enrollment Form'!$B413=\"Subscriber\",'Enrollment Form'!$C413=\"Enroll\",'Enrollment Form'!$AL413<>\"\"),\"Y\",\"N\")))","v":""},{"$f":"IF($B406=\"N\",\"\",IF(OR('Enrollment Form'!$B413<>\"Subscriber\",'Enrollment Form'!$C413=\"ROC\"),\"-\",IF(AND('Enrollment Form'!$B413=\"Subscriber\",'Enrollment Form'!$C413=\"Enroll\",'Enrollment Form'!$AP413<>\"\"),\"Y\",\"N\")))","v":""},{"$f":"IF($B406=\"N\",\"\",IF(OR('Enrollment Form'!$B413<>\"Subscriber\",'Enrollment Form'!$C413=\"ROC\"),\"-\",IF(AND('Enrollment Form'!$B413=\"Subscriber\",'Enrollment Form'!$C413=\"Enroll\",'Enrollment Form'!$AQ413<>\"\"),\"Y\",\"N\")))","v":""},{"$f":"IF($B406=\"N\",\"\",IF(OR('Enrollment Form'!$B413<>\"Subscriber\",'Enrollment Form'!$C413=\"ROC\"),\"-\",IF(AND('Enrollment Form'!$B413=\"Subscriber\",'Enrollment Form'!$C413=\"Enroll\",'Enrollment Form'!$AS413<>\"\"),\"Y\",\"N\")))","v":""},{"$f":"IF($B406=\"N\",\"\",IF($Q406=\"-\",\"-\",IF(AND($Q406=\"Y\",'Enrollment Form'!$AS413=\"No\"),\"-\",IF(AND($Q406=\"Y\",'Enrollment Form'!$AS413=\"Yes\",'Enrollment Form'!$AT413<>\"\"),\"Y\",\"N\"))))","v":""},{"$f":"IF($B406=\"N\",\"\",IF(OR('Enrollment Form'!$B413<>\"Subscriber\",'Enrollment Form'!$C413=\"ROC\"),\"-\",IF(AND('Enrollment Form'!$B413=\"Subscriber\",'Enrollment Form'!$C413=\"Enroll\",'Enrollment Form'!$CV413<>\"\"),\"Y\",\"N\")))","v":""},{"$f":"IF($B406=\"N\",\"\",IF($S406=\"-\",\"-\",IF(AND($S406=\"Y\",'Enrollment Form'!$CV413=\"No\"),\"-\",IF(AND($S406=\"Y\",'Enrollment Form'!$CV413=\"Yes\",'Enrollment Form'!$CW413<>\"\"),\"Y\",\"N\"))))","v":""},{"$f":"IF(OR('Enrollment Form'!$AY413=\"Yes\",'Enrollment Form'!$AY413=\"\"),\"-\",IF(OR(AND('Enrollment Form'!$AY413=\"No\",ISERROR(FIND(\"HMO\",VLOOKUP('Enrollment Form'!G413,'Enrollment Form'!H$11:J$1000,3,FALSE),1))=FALSE,COUNTA('Enrollment Form'!$AZ413:$BC413)=4),AND('Enrollment Form'!$AY413=\"No\",ISERROR(FIND(\"HMO\",VLOOKUP('Enrollment Form'!G413,'Enrollment Form'!H$11:J$1000,3,FALSE),1))=FALSE,COUNTA('Enrollment Form'!$BT413:$BW413)=4)),\"Y\",\"N\"))","v":"-"},{"$f":"IF($B406=\"N\",\"\",IF('Enrollment Form'!$B413=\"Subscriber\",\"-\",IF(COUNTA('Enrollment Form'!$BL413,'Enrollment Form'!$BN413)=2,\"Y\",\"N\")))","v":""},{"$f":"IF($B406=\"N\",\"\",IF(OR('Enrollment Form'!$AX413=\"\",'Enrollment Form'!$AX413=\"No\"),\"-\",IF(AND('Enrollment Form'!$AX413=\"Yes\",COUNTA('Enrollment Form'!$CR413)=1),\"Y\",\"N\")))","v":""},{"$f":"IF(OR('Enrollment Form'!$CR413=\"\",'Enrollment Form'!$CR413=\"No\"),\"-\",IF(COUNTA('Enrollment Form'!$CT413:$CU413)=2,\"Y\",\"N\"))","v":"-"},{"$f":"IF($B406=\"N\",\"\",IF(COUNTIF('Enrollment Form'!$DG413:$DP413,\"Other\")=COUNTA('Enrollment Form'!$DK413,'Enrollment Form'!$DH413,'Enrollment Form'!$DN413,'Enrollment Form'!$DQ413),\"Y\",\"N\"))","v":""},{"$f":"IF($B406=\"N\",\"\",IF(OR('Enrollment Form'!B413<>\"Subscriber\",'Enrollment Form'!C413=\"ROC\",COUNTIF('Enrollment Form'!AV413:AW413,\"Yes\")>=1),\"-\",IF(AND('Enrollment Form'!C413=\"Enroll\",COUNTIF('Enrollment Form'!AV413:AW413,\"No\")=2,'Enrollment Form'!AX413=\"\"),\"N\",\"Y\")))","v":""},{"$f":"IF(OR(B406=\"N\",'Enrollment Form'!B413<>\"Subscriber\",'Enrollment Form'!C413=\"ROC\",'Enrollment Form'!O413<>\"Multiple of Salary\"),\"-\",IF(COUNTA('Enrollment Form'!T413:U413)<2,\"N\",\"Y\"))","v":"-"},{"$f":"IF(B406=\"N\",\"\",IF(OR('Enrollment Form'!C413=\"ROC\",'Enrollment Form'!B413<>\"Subscriber\",'Enrollment Form'!O413=\"Waive\",'Enrollment Form'!O413=\"\"),\"-\",IF('Enrollment Form'!P413=\"\",\"N\",\"Y\")))","v":""},{"$f":"IF($B406=\"N\",\"\",IF(AND('Enrollment Form'!$C413=\"ROC\",'Enrollment Form'!$DR413<>\"\"),\"Y\",IF(AND('Enrollment Form'!$C413=\"ROC\",'Enrollment Form'!$DR413=\"\"),\"N\",IF(AND('Enrollment Form'!$C413=\"Enroll\",'Enrollment Form'!$B413=\"Subscriber\",'Enrollment Form'!$CX413=\"No\",'Enrollment Form'!$DR413=\"\"),\"N\",IF(AND('Enrollment Form'!$C413=\"Enroll\",'Enrollment Form'!$B413=\"Subscriber\",'Enrollment Form'!$CX413=\"Yes\"),\"-\",\"Y\")))))","v":""},{"$f":"IF($B406=\"N\",\"\",IF(AND('Enrollment Form'!$C413=\"ROC\",'Enrollment Form'!$DS413<>\"\"),\"Y\",IF(AND('Enrollment Form'!$C413=\"ROC\",'Enrollment Form'!$DS413=\"\"),\"N\",IF(AND('Enrollment Form'!$C413=\"Enroll\",'Enrollment Form'!$B413=\"Subscriber\",'Enrollment Form'!$CX413=\"No\",'Enrollment Form'!$DS413=\"\"),\"N\",IF(AND('Enrollment Form'!$C413=\"Enroll\",'Enrollment Form'!$B413=\"Subscriber\",'Enrollment Form'!$CX413=\"Yes\"),\"-\",\"Y\")))))","v":""},{"$f":"IF('Enrollment Form'!AH413=\"\",\"\",IF(ISERROR(SEARCH(\".\",'Enrollment Form'!AH413,SEARCH(\"@\",'Enrollment Form'!AH413))),\"N\",\"Y\"))","v":""},{"$f":"IF(OR($B406=\"N\",'Enrollment Form'!$G413=\"\"),\"\",IF('Enrollment Form'!$B413<>\"Subscriber\",\"-\",IF(COUNTIF('Enrollment Form'!$AV413:$AW413,\"Yes\")=2,\"N\",\"Y\")))","v":""},{"$f":"IF(OR('Enrollment Form'!$CJ413=\"\",'Enrollment Form'!$CJ413=\"No\"),\"-\",IF(AND('Enrollment Form'!$CJ413=\"Yes\",'Enrollment Form'!$CK413=\"\"),\"N\",\"Y\"))","v":"-"},{"$f":"IF(OR('Enrollment Form'!$CL413=\"\",'Enrollment Form'!$CL413=\"No\"),\"-\",IF(AND('Enrollment Form'!$CL413=\"Yes\",'Enrollment Form'!$CM413=\"\"),\"N\",\"Y\"))","v":"-"},{"$f":"IF(OR('Enrollment Form'!$CN413=\"\",'Enrollment Form'!$CN413=\"No\"),\"-\",IF(AND('Enrollment Form'!$CN413=\"Yes\",'Enrollment Form'!$CO413=\"\"),\"N\",\"Y\"))","v":"-"},{"$f":"IF(OR('Enrollment Form'!$CN413=\"\",'Enrollment Form'!$CN413=\"No\"),\"-\",IF(AND('Enrollment Form'!$CN413=\"Yes\",'Enrollment Form'!$CP413=\"\"),\"N\",\"Y\"))","v":"-"},{"$f":"IF('Enrollment Form'!B413<>\"Subscriber\",\"-\",IF(AND('Enrollment Form'!B413=\"Subscriber\",'Enrollment Form'!C413=\"Enroll\",'Enrollment Form'!AA413=\"\"),\"N\",\"Y\"))","v":"-"},{"$f":"IF(OR('Enrollment Form'!B413=\"Subscriber\",'Enrollment Form'!B413=\"\"),\"-\",IF('Enrollment Form'!BP413=\"\",\"N\",\"Y\"))","v":"-"},{"$f":"IF('Enrollment Form'!B413<>\"Subscriber\",\"-\",IF(AND('Enrollment Form'!B413=\"Subscriber\",'Enrollment Form'!G413=\"\"),\"N\",\"Y\"))","v":"-"},{"$f":"IF('Enrollment Form'!A413=\"\",\"\",IF('Enrollment Form'!B413=\"Subscriber\",\"-\",IF(AND('Enrollment Form'!B413<>\"Subscriber\",'Enrollment Form'!G413='Enrollment Form'!H413),\"N\",\"Y\")))","v":""},0]
[414,{"$f":"IF('Enrollment Form'!$A414<>\"\",\"Y\",\"N\")","v":"N"},{"$f":"IF(AND('Enrollment Form'!$B414=\"\",'Enrollment Form'!$C414<>\"\"),\"N\",IF($B407=\"N\",\"\",\"Y\"))","v":""},{"$f":"IF(OR($B407=\"N\",'Enrollment Form'!G414=\"\"),\"\",IF('Enrollment Form'!$B414<>\"Subscriber\",\"\",IF('Enrollment Form'!$G414='Enrollment Form'!$H414,\"Y\",\"N\")))","v":""},{"$f":"IF($B407=\"N\",\"\",IF(AND(COUNTIFS('Enrollment Form'!$H$11:$H$1000,'Enrollment Form'!$H414,'Enrollment Form'!$B$11:$B$1000,'Enrollment Form'!$B414)>1,'Enrollment Form'!$H414<>\"\"),\"N\",\"Y\"))","v":""},{"$f":"IF($B407=\"N\",\"\",IF(LEN('Enrollment Form'!$Y414)=0,\"\",IF(LEN('Enrollment Form'!$Y414)<>5,\"N\",\"Y\")))","v":""},{"$f":"IF($B407=\"N\",\"\",IF(LEN('Enrollment Form'!$AD414=0),\"\",IF(LEN('Enrollment Form'!$AD414)<>5,\"N\",\"Y\")))","v":""},{"$f":"IF($B407=\"N\",\"\",IF(LEN('Enrollment Form'!$BS414=0),\"\",IF(LEN('Enrollment Form'!$BS414)<>5,\"N\",\"Y\")))","v":""},{"$f":"IF($B407=\"N\",\"\",IF(LEN('Enrollment Form'!$AE414)=0,\"\",IF(LEN('Enrollment Form'!$AE414)<>10,\"N\",\"Y\")))","v":""},{"$f":"IF($B407=\"N\",\"\",IF(LEN('Enrollment Form'!$AF414)=0,\"\",IF(LEN('Enrollment Form'!$AF414)<>10,\"N\",\"Y\")))","v":""},{"$f":"IF('Enrollment Form'!$O414<>\"Graded\",\"-\",IF(AND('Enrollment Form'!$O414=\"Graded\",'Enrollment Form'!$AR414<>\"\"),\"Y\",\"N\"))","v":"-"},{"$f":"IF($B407=\"N\",\"\",IF(OR('Enrollment Form'!$B414<>\"Subscriber\",'Enrollment Form'!$C414=\"ROC\"),\"-\",IF(AND('Enrollment Form'!$B414=\"Subscriber\",'Enrollment Form'!$C414=\"Enroll\",'Enrollment Form'!$AJ414<>\"\"),\"Y\",\"N\")))","v":""},{"$f":"IF($B407=\"N\",\"\",IF(OR('Enrollment Form'!$B414<>\"Subscriber\",'Enrollment Form'!$C414=\"ROC\"),\"-\",IF(AND('Enrollment Form'!$B414=\"Subscriber\",'Enrollment Form'!$C414=\"Enroll\",'Enrollment Form'!$AK414<>\"\"),\"Y\",\"N\")))","v":""},{"$f":"IF($B407=\"N\",\"\",IF(OR('Enrollment Form'!$B414<>\"Subscriber\",'Enrollment Form'!$C414=\"ROC\"),\"-\",IF(AND('Enrollment Form'!$B414=\"Subscriber\",'Enrollment Form'!$C414=\"Enroll\",'Enrollment Form'!$AL414<>\"\"),\"Y\",\"N\")))","v":""},{"$f":"IF($B407=\"N\",\"\",IF(OR('Enrollment Form'!$B414<>\"Subscriber\",'Enrollment Form'!$C414=\"ROC\"),\"-\",IF(AND('Enrollment Form'!$B414=\"Subscriber\",'Enrollment Form'!$C414=\"Enroll\",'Enrollment Form'!$AP414<>\"\"),\"Y\",\"N\")))","v":""},{"$f":"IF($B407=\"N\",\"\",IF(OR('Enrollment Form'!$B414<>\"Subscriber\",'Enrollment Form'!$C414=\"ROC\"),\"-\",IF(AND('Enrollment Form'!$B414=\"Subscriber\",'Enrollment Form'!$C414=\"Enroll\",'Enrollment Form'!$AQ414<>\"\"),\"Y\",\"N\")))","v":""},{"$f":"IF($B407=\"N\",\"\",IF(OR('Enrollment Form'!$B414<>\"Subscriber\",'Enrollment Form'!$C414=\"ROC\"),\"-\",IF(AND('Enrollment Form'!$B414=\"Subscriber\",'Enrollment Form'!$C414=\"Enroll\",'Enrollment Form'!$AS414<>\"\"),\"Y\",\"N\")))","v":""},{"$f":"IF($B407=\"N\",\"\",IF($Q407=\"-\",\"-\",IF(AND($Q407=\"Y\",'Enrollment Form'!$AS414=\"No\"),\"-\",IF(AND($Q407=\"Y\",'Enrollment Form'!$AS414=\"Yes\",'Enrollment Form'!$AT414<>\"\"),\"Y\",\"N\"))))","v":""},{"$f":"IF($B407=\"N\",\"\",IF(OR('Enrollment Form'!$B414<>\"Subscriber\",'Enrollment Form'!$C414=\"ROC\"),\"-\",IF(AND('Enrollment Form'!$B414=\"Subscriber\",'Enrollment Form'!$C414=\"Enroll\",'Enrollment Form'!$CV414<>\"\"),\"Y\",\"N\")))","v":""},{"$f":"IF($B407=\"N\",\"\",IF($S407=\"-\",\"-\",IF(AND($S407=\"Y\",'Enrollment Form'!$CV414=\"No\"),\"-\",IF(AND($S407=\"Y\",'Enrollment Form'!$CV414=\"Yes\",'Enrollment Form'!$CW414<>\"\"),\"Y\",\"N\"))))","v":""},{"$f":"IF(OR('Enrollment Form'!$AY414=\"Yes\",'Enrollment Form'!$AY414=\"\"),\"-\",IF(OR(AND('Enrollment Form'!$AY414=\"No\",ISERROR(FIND(\"HMO\",VLOOKUP('Enrollment Form'!G414,'Enrollment Form'!H$11:J$1000,3,FALSE),1))=FALSE,COUNTA('Enrollment Form'!$AZ414:$BC414)=4),AND('Enrollment Form'!$AY414=\"No\",ISERROR(FIND(\"HMO\",VLOOKUP('Enrollment Form'!G414,'Enrollment Form'!H$11:J$1000,3,FALSE),1))=FALSE,COUNTA('Enrollment Form'!$BT414:$BW414)=4)),\"Y\",\"N\"))","v":"-"},{"$f":"IF($B407=\"N\",\"\",IF('Enrollment Form'!$B414=\"Subscriber\",\"-\",IF(COUNTA('Enrollment Form'!$BL414,'Enrollment Form'!$BN414)=2,\"Y\",\"N\")))","v":""},{"$f":"IF($B407=\"N\",\"\",IF(OR('Enrollment Form'!$AX414=\"\",'Enrollment Form'!$AX414=\"No\"),\"-\",IF(AND('Enrollment Form'!$AX414=\"Yes\",COUNTA('Enrollment Form'!$CR414)=1),\"Y\",\"N\")))","v":""},{"$f":"IF(OR('Enrollment Form'!$CR414=\"\",'Enrollment Form'!$CR414=\"No\"),\"-\",IF(COUNTA('Enrollment Form'!$CT414:$CU414)=2,\"Y\",\"N\"))","v":"-"},{"$f":"IF($B407=\"N\",\"\",IF(COUNTIF('Enrollment Form'!$DG414:$DP414,\"Other\")=COUNTA('Enrollment Form'!$DK414,'Enrollment Form'!$DH414,'Enrollment Form'!$DN414,'Enrollment Form'!$DQ414),\"Y\",\"N\"))","v":""},{"$f":"IF($B407=\"N\",\"\",IF(OR('Enrollment Form'!B414<>\"Subscriber\",'Enrollment Form'!C414=\"ROC\",COUNTIF('Enrollment Form'!AV414:AW414,\"Yes\")>=1),\"-\",IF(AND('Enrollment Form'!C414=\"Enroll\",COUNTIF('Enrollment Form'!AV414:AW414,\"No\")=2,'Enrollment Form'!AX414=\"\"),\"N\",\"Y\")))","v":""},{"$f":"IF(OR(B407=\"N\",'Enrollment Form'!B414<>\"Subscriber\",'Enrollment Form'!C414=\"ROC\",'Enrollment Form'!O414<>\"Multiple of Salary\"),\"-\",IF(COUNTA('Enrollment Form'!T414:U414)<2,\"N\",\"Y\"))","v":"-"},{"$f":"IF(B407=\"N\",\"\",IF(OR('Enrollment Form'!C414=\"ROC\",'Enrollment Form'!B414<>\"Subscriber\",'Enrollment Form'!O414=\"Waive\",'Enrollment Form'!O414=\"\"),\"-\",IF('Enrollment Form'!P414=\"\",\"N\",\"Y\")))","v":""},{"$f":"IF($B407=\"N\",\"\",IF(AND('Enrollment Form'!$C414=\"ROC\",'Enrollment Form'!$DR414<>\"\"),\"Y\",IF(AND('Enrollment Form'!$C414=\"ROC\",'Enrollment Form'!$DR414=\"\"),\"N\",IF(AND('Enrollment Form'!$C414=\"Enroll\",'Enrollment Form'!$B414=\"Subscriber\",'Enrollment Form'!$CX414=\"No\",'Enrollment Form'!$DR414=\"\"),\"N\",IF(AND('Enrollment Form'!$C414=\"Enroll\",'Enrollment Form'!$B414=\"Subscriber\",'Enrollment Form'!$CX414=\"Yes\"),\"-\",\"Y\")))))","v":""},{"$f":"IF($B407=\"N\",\"\",IF(AND('Enrollment Form'!$C414=\"ROC\",'Enrollment Form'!$DS414<>\"\"),\"Y\",IF(AND('Enrollment Form'!$C414=\"ROC\",'Enrollment Form'!$DS414=\"\"),\"N\",IF(AND('Enrollment Form'!$C414=\"Enroll\",'Enrollment Form'!$B414=\"Subscriber\",'Enrollment Form'!$CX414=\"No\",'Enrollment Form'!$DS414=\"\"),\"N\",IF(AND('Enrollment Form'!$C414=\"Enroll\",'Enrollment Form'!$B414=\"Subscriber\",'Enrollment Form'!$CX414=\"Yes\"),\"-\",\"Y\")))))","v":""},{"$f":"IF('Enrollment Form'!AH414=\"\",\"\",IF(ISERROR(SEARCH(\".\",'Enrollment Form'!AH414,SEARCH(\"@\",'Enrollment Form'!AH414))),\"N\",\"Y\"))","v":""},{"$f":"IF(OR($B407=\"N\",'Enrollment Form'!$G414=\"\"),\"\",IF('Enrollment Form'!$B414<>\"Subscriber\",\"-\",IF(COUNTIF('Enrollment Form'!$AV414:$AW414,\"Yes\")=2,\"N\",\"Y\")))","v":""},{"$f":"IF(OR('Enrollment Form'!$CJ414=\"\",'Enrollment Form'!$CJ414=\"No\"),\"-\",IF(AND('Enrollment Form'!$CJ414=\"Yes\",'Enrollment Form'!$CK414=\"\"),\"N\",\"Y\"))","v":"-"},{"$f":"IF(OR('Enrollment Form'!$CL414=\"\",'Enrollment Form'!$CL414=\"No\"),\"-\",IF(AND('Enrollment Form'!$CL414=\"Yes\",'Enrollment Form'!$CM414=\"\"),\"N\",\"Y\"))","v":"-"},{"$f":"IF(OR('Enrollment Form'!$CN414=\"\",'Enrollment Form'!$CN414=\"No\"),\"-\",IF(AND('Enrollment Form'!$CN414=\"Yes\",'Enrollment Form'!$CO414=\"\"),\"N\",\"Y\"))","v":"-"},{"$f":"IF(OR('Enrollment Form'!$CN414=\"\",'Enrollment Form'!$CN414=\"No\"),\"-\",IF(AND('Enrollment Form'!$CN414=\"Yes\",'Enrollment Form'!$CP414=\"\"),\"N\",\"Y\"))","v":"-"},{"$f":"IF('Enrollment Form'!B414<>\"Subscriber\",\"-\",IF(AND('Enrollment Form'!B414=\"Subscriber\",'Enrollment Form'!C414=\"Enroll\",'Enrollment Form'!AA414=\"\"),\"N\",\"Y\"))","v":"-"},{"$f":"IF(OR('Enrollment Form'!B414=\"Subscriber\",'Enrollment Form'!B414=\"\"),\"-\",IF('Enrollment Form'!BP414=\"\",\"N\",\"Y\"))","v":"-"},{"$f":"IF('Enrollment Form'!B414<>\"Subscriber\",\"-\",IF(AND('Enrollment Form'!B414=\"Subscriber\",'Enrollment Form'!G414=\"\"),\"N\",\"Y\"))","v":"-"},{"$f":"IF('Enrollment Form'!A414=\"\",\"\",IF('Enrollment Form'!B414=\"Subscriber\",\"-\",IF(AND('Enrollment Form'!B414<>\"Subscriber\",'Enrollment Form'!G414='Enrollment Form'!H414),\"N\",\"Y\")))","v":""},0]
[415,{"$f":"IF('Enrollment Form'!$A415<>\"\",\"Y\",\"N\")","v":"N"},{"$f":"IF(AND('Enrollment Form'!$B415=\"\",'Enrollment Form'!$C415<>\"\"),\"N\",IF($B408=\"N\",\"\",\"Y\"))","v":""},{"$f":"IF(OR($B408=\"N\",'Enrollment Form'!G415=\"\"),\"\",IF('Enrollment Form'!$B415<>\"Subscriber\",\"\",IF('Enrollment Form'!$G415='Enrollment Form'!$H415,\"Y\",\"N\")))","v":""},{"$f":"IF($B408=\"N\",\"\",IF(AND(COUNTIFS('Enrollment Form'!$H$11:$H$1000,'Enrollment Form'!$H415,'Enrollment Form'!$B$11:$B$1000,'Enrollment Form'!$B415)>1,'Enrollment Form'!$H415<>\"\"),\"N\",\"Y\"))","v":""},{"$f":"IF($B408=\"N\",\"\",IF(LEN('Enrollment Form'!$Y415)=0,\"\",IF(LEN('Enrollment Form'!$Y415)<>5,\"N\",\"Y\")))","v":""},{"$f":"IF($B408=\"N\",\"\",IF(LEN('Enrollment Form'!$AD415=0),\"\",IF(LEN('Enrollment Form'!$AD415)<>5,\"N\",\"Y\")))","v":""},{"$f":"IF($B408=\"N\",\"\",IF(LEN('Enrollment Form'!$BS415=0),\"\",IF(LEN('Enrollment Form'!$BS415)<>5,\"N\",\"Y\")))","v":""},{"$f":"IF($B408=\"N\",\"\",IF(LEN('Enrollment Form'!$AE415)=0,\"\",IF(LEN('Enrollment Form'!$AE415)<>10,\"N\",\"Y\")))","v":""},{"$f":"IF($B408=\"N\",\"\",IF(LEN('Enrollment Form'!$AF415)=0,\"\",IF(LEN('Enrollment Form'!$AF415)<>10,\"N\",\"Y\")))","v":""},{"$f":"IF('Enrollment Form'!$O415<>\"Graded\",\"-\",IF(AND('Enrollment Form'!$O415=\"Graded\",'Enrollment Form'!$AR415<>\"\"),\"Y\",\"N\"))","v":"-"},{"$f":"IF($B408=\"N\",\"\",IF(OR('Enrollment Form'!$B415<>\"Subscriber\",'Enrollment Form'!$C415=\"ROC\"),\"-\",IF(AND('Enrollment Form'!$B415=\"Subscriber\",'Enrollment Form'!$C415=\"Enroll\",'Enrollment Form'!$AJ415<>\"\"),\"Y\",\"N\")))","v":""},{"$f":"IF($B408=\"N\",\"\",IF(OR('Enrollment Form'!$B415<>\"Subscriber\",'Enrollment Form'!$C415=\"ROC\"),\"-\",IF(AND('Enrollment Form'!$B415=\"Subscriber\",'Enrollment Form'!$C415=\"Enroll\",'Enrollment Form'!$AK415<>\"\"),\"Y\",\"N\")))","v":""},{"$f":"IF($B408=\"N\",\"\",IF(OR('Enrollment Form'!$B415<>\"Subscriber\",'Enrollment Form'!$C415=\"ROC\"),\"-\",IF(AND('Enrollment Form'!$B415=\"Subscriber\",'Enrollment Form'!$C415=\"Enroll\",'Enrollment Form'!$AL415<>\"\"),\"Y\",\"N\")))","v":""},{"$f":"IF($B408=\"N\",\"\",IF(OR('Enrollment Form'!$B415<>\"Subscriber\",'Enrollment Form'!$C415=\"ROC\"),\"-\",IF(AND('Enrollment Form'!$B415=\"Subscriber\",'Enrollment Form'!$C415=\"Enroll\",'Enrollment Form'!$AP415<>\"\"),\"Y\",\"N\")))","v":""},{"$f":"IF($B408=\"N\",\"\",IF(OR('Enrollment Form'!$B415<>\"Subscriber\",'Enrollment Form'!$C415=\"ROC\"),\"-\",IF(AND('Enrollment Form'!$B415=\"Subscriber\",'Enrollment Form'!$C415=\"Enroll\",'Enrollment Form'!$AQ415<>\"\"),\"Y\",\"N\")))","v":""},{"$f":"IF($B408=\"N\",\"\",IF(OR('Enrollment Form'!$B415<>\"Subscriber\",'Enrollment Form'!$C415=\"ROC\"),\"-\",IF(AND('Enrollment Form'!$B415=\"Subscriber\",'Enrollment Form'!$C415=\"Enroll\",'Enrollment Form'!$AS415<>\"\"),\"Y\",\"N\")))","v":""},{"$f":"IF($B408=\"N\",\"\",IF($Q408=\"-\",\"-\",IF(AND($Q408=\"Y\",'Enrollment Form'!$AS415=\"No\"),\"-\",IF(AND($Q408=\"Y\",'Enrollment Form'!$AS415=\"Yes\",'Enrollment Form'!$AT415<>\"\"),\"Y\",\"N\"))))","v":""},{"$f":"IF($B408=\"N\",\"\",IF(OR('Enrollment Form'!$B415<>\"Subscriber\",'Enrollment Form'!$C415=\"ROC\"),\"-\",IF(AND('Enrollment Form'!$B415=\"Subscriber\",'Enrollment Form'!$C415=\"Enroll\",'Enrollment Form'!$CV415<>\"\"),\"Y\",\"N\")))","v":""},{"$f":"IF($B408=\"N\",\"\",IF($S408=\"-\",\"-\",IF(AND($S408=\"Y\",'Enrollment Form'!$CV415=\"No\"),\"-\",IF(AND($S408=\"Y\",'Enrollment Form'!$CV415=\"Yes\",'Enrollment Form'!$CW415<>\"\"),\"Y\",\"N\"))))","v":""},{"$f":"IF(OR('Enrollment Form'!$AY415=\"Yes\",'Enrollment Form'!$AY415=\"\"),\"-\",IF(OR(AND('Enrollment Form'!$AY415=\"No\",ISERROR(FIND(\"HMO\",VLOOKUP('Enrollment Form'!G415,'Enrollment Form'!H$11:J$1000,3,FALSE),1))=FALSE,COUNTA('Enrollment Form'!$AZ415:$BC415)=4),AND('Enrollment Form'!$AY415=\"No\",ISERROR(FIND(\"HMO\",VLOOKUP('Enrollment Form'!G415,'Enrollment Form'!H$11:J$1000,3,FALSE),1))=FALSE,COUNTA('Enrollment Form'!$BT415:$BW415)=4)),\"Y\",\"N\"))","v":"-"},{"$f":"IF($B408=\"N\",\"\",IF('Enrollment Form'!$B415=\"Subscriber\",\"-\",IF(COUNTA('Enrollment Form'!$BL415,'Enrollment Form'!$BN415)=2,\"Y\",\"N\")))","v":""},{"$f":"IF($B408=\"N\",\"\",IF(OR('Enrollment Form'!$AX415=\"\",'Enrollment Form'!$AX415=\"No\"),\"-\",IF(AND('Enrollment Form'!$AX415=\"Yes\",COUNTA('Enrollment Form'!$CR415)=1),\"Y\",\"N\")))","v":""},{"$f":"IF(OR('Enrollment Form'!$CR415=\"\",'Enrollment Form'!$CR415=\"No\"),\"-\",IF(COUNTA('Enrollment Form'!$CT415:$CU415)=2,\"Y\",\"N\"))","v":"-"},{"$f":"IF($B408=\"N\",\"\",IF(COUNTIF('Enrollment Form'!$DG415:$DP415,\"Other\")=COUNTA('Enrollment Form'!$DK415,'Enrollment Form'!$DH415,'Enrollment Form'!$DN415,'Enrollment Form'!$DQ415),\"Y\",\"N\"))","v":""},{"$f":"IF($B408=\"N\",\"\",IF(OR('Enrollment Form'!B415<>\"Subscriber\",'Enrollment Form'!C415=\"ROC\",COUNTIF('Enrollment Form'!AV415:AW415,\"Yes\")>=1),\"-\",IF(AND('Enrollment Form'!C415=\"Enroll\",COUNTIF('Enrollment Form'!AV415:AW415,\"No\")=2,'Enrollment Form'!AX415=\"\"),\"N\",\"Y\")))","v":""},{"$f":"IF(OR(B408=\"N\",'Enrollment Form'!B415<>\"Subscriber\",'Enrollment Form'!C415=\"ROC\",'Enrollment Form'!O415<>\"Multiple of Salary\"),\"-\",IF(COUNTA('Enrollment Form'!T415:U415)<2,\"N\",\"Y\"))","v":"-"},{"$f":"IF(B408=\"N\",\"\",IF(OR('Enrollment Form'!C415=\"ROC\",'Enrollment Form'!B415<>\"Subscriber\",'Enrollment Form'!O415=\"Waive\",'Enrollment Form'!O415=\"\"),\"-\",IF('Enrollment Form'!P415=\"\",\"N\",\"Y\")))","v":""},{"$f":"IF($B408=\"N\",\"\",IF(AND('Enrollment Form'!$C415=\"ROC\",'Enrollment Form'!$DR415<>\"\"),\"Y\",IF(AND('Enrollment Form'!$C415=\"ROC\",'Enrollment Form'!$DR415=\"\"),\"N\",IF(AND('Enrollment Form'!$C415=\"Enroll\",'Enrollment Form'!$B415=\"Subscriber\",'Enrollment Form'!$CX415=\"No\",'Enrollment Form'!$DR415=\"\"),\"N\",IF(AND('Enrollment Form'!$C415=\"Enroll\",'Enrollment Form'!$B415=\"Subscriber\",'Enrollment Form'!$CX415=\"Yes\"),\"-\",\"Y\")))))","v":""},{"$f":"IF($B408=\"N\",\"\",IF(AND('Enrollment Form'!$C415=\"ROC\",'Enrollment Form'!$DS415<>\"\"),\"Y\",IF(AND('Enrollment Form'!$C415=\"ROC\",'Enrollment Form'!$DS415=\"\"),\"N\",IF(AND('Enrollment Form'!$C415=\"Enroll\",'Enrollment Form'!$B415=\"Subscriber\",'Enrollment Form'!$CX415=\"No\",'Enrollment Form'!$DS415=\"\"),\"N\",IF(AND('Enrollment Form'!$C415=\"Enroll\",'Enrollment Form'!$B415=\"Subscriber\",'Enrollment Form'!$CX415=\"Yes\"),\"-\",\"Y\")))))","v":""},{"$f":"IF('Enrollment Form'!AH415=\"\",\"\",IF(ISERROR(SEARCH(\".\",'Enrollment Form'!AH415,SEARCH(\"@\",'Enrollment Form'!AH415))),\"N\",\"Y\"))","v":""},{"$f":"IF(OR($B408=\"N\",'Enrollment Form'!$G415=\"\"),\"\",IF('Enrollment Form'!$B415<>\"Subscriber\",\"-\",IF(COUNTIF('Enrollment Form'!$AV415:$AW415,\"Yes\")=2,\"N\",\"Y\")))","v":""},{"$f":"IF(OR('Enrollment Form'!$CJ415=\"\",'Enrollment Form'!$CJ415=\"No\"),\"-\",IF(AND('Enrollment Form'!$CJ415=\"Yes\",'Enrollment Form'!$CK415=\"\"),\"N\",\"Y\"))","v":"-"},{"$f":"IF(OR('Enrollment Form'!$CL415=\"\",'Enrollment Form'!$CL415=\"No\"),\"-\",IF(AND('Enrollment Form'!$CL415=\"Yes\",'Enrollment Form'!$CM415=\"\"),\"N\",\"Y\"))","v":"-"},{"$f":"IF(OR('Enrollment Form'!$CN415=\"\",'Enrollment Form'!$CN415=\"No\"),\"-\",IF(AND('Enrollment Form'!$CN415=\"Yes\",'Enrollment Form'!$CO415=\"\"),\"N\",\"Y\"))","v":"-"},{"$f":"IF(OR('Enrollment Form'!$CN415=\"\",'Enrollment Form'!$CN415=\"No\"),\"-\",IF(AND('Enrollment Form'!$CN415=\"Yes\",'Enrollment Form'!$CP415=\"\"),\"N\",\"Y\"))","v":"-"},{"$f":"IF('Enrollment Form'!B415<>\"Subscriber\",\"-\",IF(AND('Enrollment Form'!B415=\"Subscriber\",'Enrollment Form'!C415=\"Enroll\",'Enrollment Form'!AA415=\"\"),\"N\",\"Y\"))","v":"-"},{"$f":"IF(OR('Enrollment Form'!B415=\"Subscriber\",'Enrollment Form'!B415=\"\"),\"-\",IF('Enrollment Form'!BP415=\"\",\"N\",\"Y\"))","v":"-"},{"$f":"IF('Enrollment Form'!B415<>\"Subscriber\",\"-\",IF(AND('Enrollment Form'!B415=\"Subscriber\",'Enrollment Form'!G415=\"\"),\"N\",\"Y\"))","v":"-"},{"$f":"IF('Enrollment Form'!A415=\"\",\"\",IF('Enrollment Form'!B415=\"Subscriber\",\"-\",IF(AND('Enrollment Form'!B415<>\"Subscriber\",'Enrollment Form'!G415='Enrollment Form'!H415),\"N\",\"Y\")))","v":""},0]
[416,{"$f":"IF('Enrollment Form'!$A416<>\"\",\"Y\",\"N\")","v":"N"},{"$f":"IF(AND('Enrollment Form'!$B416=\"\",'Enrollment Form'!$C416<>\"\"),\"N\",IF($B409=\"N\",\"\",\"Y\"))","v":""},{"$f":"IF(OR($B409=\"N\",'Enrollment Form'!G416=\"\"),\"\",IF('Enrollment Form'!$B416<>\"Subscriber\",\"\",IF('Enrollment Form'!$G416='Enrollment Form'!$H416,\"Y\",\"N\")))","v":""},{"$f":"IF($B409=\"N\",\"\",IF(AND(COUNTIFS('Enrollment Form'!$H$11:$H$1000,'Enrollment Form'!$H416,'Enrollment Form'!$B$11:$B$1000,'Enrollment Form'!$B416)>1,'Enrollment Form'!$H416<>\"\"),\"N\",\"Y\"))","v":""},{"$f":"IF($B409=\"N\",\"\",IF(LEN('Enrollment Form'!$Y416)=0,\"\",IF(LEN('Enrollment Form'!$Y416)<>5,\"N\",\"Y\")))","v":""},{"$f":"IF($B409=\"N\",\"\",IF(LEN('Enrollment Form'!$AD416=0),\"\",IF(LEN('Enrollment Form'!$AD416)<>5,\"N\",\"Y\")))","v":""},{"$f":"IF($B409=\"N\",\"\",IF(LEN('Enrollment Form'!$BS416=0),\"\",IF(LEN('Enrollment Form'!$BS416)<>5,\"N\",\"Y\")))","v":""},{"$f":"IF($B409=\"N\",\"\",IF(LEN('Enrollment Form'!$AE416)=0,\"\",IF(LEN('Enrollment Form'!$AE416)<>10,\"N\",\"Y\")))","v":""},{"$f":"IF($B409=\"N\",\"\",IF(LEN('Enrollment Form'!$AF416)=0,\"\",IF(LEN('Enrollment Form'!$AF416)<>10,\"N\",\"Y\")))","v":""},{"$f":"IF('Enrollment Form'!$O416<>\"Graded\",\"-\",IF(AND('Enrollment Form'!$O416=\"Graded\",'Enrollment Form'!$AR416<>\"\"),\"Y\",\"N\"))","v":"-"},{"$f":"IF($B409=\"N\",\"\",IF(OR('Enrollment Form'!$B416<>\"Subscriber\",'Enrollment Form'!$C416=\"ROC\"),\"-\",IF(AND('Enrollment Form'!$B416=\"Subscriber\",'Enrollment Form'!$C416=\"Enroll\",'Enrollment Form'!$AJ416<>\"\"),\"Y\",\"N\")))","v":""},{"$f":"IF($B409=\"N\",\"\",IF(OR('Enrollment Form'!$B416<>\"Subscriber\",'Enrollment Form'!$C416=\"ROC\"),\"-\",IF(AND('Enrollment Form'!$B416=\"Subscriber\",'Enrollment Form'!$C416=\"Enroll\",'Enrollment Form'!$AK416<>\"\"),\"Y\",\"N\")))","v":""},{"$f":"IF($B409=\"N\",\"\",IF(OR('Enrollment Form'!$B416<>\"Subscriber\",'Enrollment Form'!$C416=\"ROC\"),\"-\",IF(AND('Enrollment Form'!$B416=\"Subscriber\",'Enrollment Form'!$C416=\"Enroll\",'Enrollment Form'!$AL416<>\"\"),\"Y\",\"N\")))","v":""},{"$f":"IF($B409=\"N\",\"\",IF(OR('Enrollment Form'!$B416<>\"Subscriber\",'Enrollment Form'!$C416=\"ROC\"),\"-\",IF(AND('Enrollment Form'!$B416=\"Subscriber\",'Enrollment Form'!$C416=\"Enroll\",'Enrollment Form'!$AP416<>\"\"),\"Y\",\"N\")))","v":""},{"$f":"IF($B409=\"N\",\"\",IF(OR('Enrollment Form'!$B416<>\"Subscriber\",'Enrollment Form'!$C416=\"ROC\"),\"-\",IF(AND('Enrollment Form'!$B416=\"Subscriber\",'Enrollment Form'!$C416=\"Enroll\",'Enrollment Form'!$AQ416<>\"\"),\"Y\",\"N\")))","v":""},{"$f":"IF($B409=\"N\",\"\",IF(OR('Enrollment Form'!$B416<>\"Subscriber\",'Enrollment Form'!$C416=\"ROC\"),\"-\",IF(AND('Enrollment Form'!$B416=\"Subscriber\",'Enrollment Form'!$C416=\"Enroll\",'Enrollment Form'!$AS416<>\"\"),\"Y\",\"N\")))","v":""},{"$f":"IF($B409=\"N\",\"\",IF($Q409=\"-\",\"-\",IF(AND($Q409=\"Y\",'Enrollment Form'!$AS416=\"No\"),\"-\",IF(AND($Q409=\"Y\",'Enrollment Form'!$AS416=\"Yes\",'Enrollment Form'!$AT416<>\"\"),\"Y\",\"N\"))))","v":""},{"$f":"IF($B409=\"N\",\"\",IF(OR('Enrollment Form'!$B416<>\"Subscriber\",'Enrollment Form'!$C416=\"ROC\"),\"-\",IF(AND('Enrollment Form'!$B416=\"Subscriber\",'Enrollment Form'!$C416=\"Enroll\",'Enrollment Form'!$CV416<>\"\"),\"Y\",\"N\")))","v":""},{"$f":"IF($B409=\"N\",\"\",IF($S409=\"-\",\"-\",IF(AND($S409=\"Y\",'Enrollment Form'!$CV416=\"No\"),\"-\",IF(AND($S409=\"Y\",'Enrollment Form'!$CV416=\"Yes\",'Enrollment Form'!$CW416<>\"\"),\"Y\",\"N\"))))","v":""},{"$f":"IF(OR('Enrollment Form'!$AY416=\"Yes\",'Enrollment Form'!$AY416=\"\"),\"-\",IF(OR(AND('Enrollment Form'!$AY416=\"No\",ISERROR(FIND(\"HMO\",VLOOKUP('Enrollment Form'!G416,'Enrollment Form'!H$11:J$1000,3,FALSE),1))=FALSE,COUNTA('Enrollment Form'!$AZ416:$BC416)=4),AND('Enrollment Form'!$AY416=\"No\",ISERROR(FIND(\"HMO\",VLOOKUP('Enrollment Form'!G416,'Enrollment Form'!H$11:J$1000,3,FALSE),1))=FALSE,COUNTA('Enrollment Form'!$BT416:$BW416)=4)),\"Y\",\"N\"))","v":"-"},{"$f":"IF($B409=\"N\",\"\",IF('Enrollment Form'!$B416=\"Subscriber\",\"-\",IF(COUNTA('Enrollment Form'!$BL416,'Enrollment Form'!$BN416)=2,\"Y\",\"N\")))","v":""},{"$f":"IF($B409=\"N\",\"\",IF(OR('Enrollment Form'!$AX416=\"\",'Enrollment Form'!$AX416=\"No\"),\"-\",IF(AND('Enrollment Form'!$AX416=\"Yes\",COUNTA('Enrollment Form'!$CR416)=1),\"Y\",\"N\")))","v":""},{"$f":"IF(OR('Enrollment Form'!$CR416=\"\",'Enrollment Form'!$CR416=\"No\"),\"-\",IF(COUNTA('Enrollment Form'!$CT416:$CU416)=2,\"Y\",\"N\"))","v":"-"},{"$f":"IF($B409=\"N\",\"\",IF(COUNTIF('Enrollment Form'!$DG416:$DP416,\"Other\")=COUNTA('Enrollment Form'!$DK416,'Enrollment Form'!$DH416,'Enrollment Form'!$DN416,'Enrollment Form'!$DQ416),\"Y\",\"N\"))","v":""},{"$f":"IF($B409=\"N\",\"\",IF(OR('Enrollment Form'!B416<>\"Subscriber\",'Enrollment Form'!C416=\"ROC\",COUNTIF('Enrollment Form'!AV416:AW416,\"Yes\")>=1),\"-\",IF(AND('Enrollment Form'!C416=\"Enroll\",COUNTIF('Enrollment Form'!AV416:AW416,\"No\")=2,'Enrollment Form'!AX416=\"\"),\"N\",\"Y\")))","v":""},{"$f":"IF(OR(B409=\"N\",'Enrollment Form'!B416<>\"Subscriber\",'Enrollment Form'!C416=\"ROC\",'Enrollment Form'!O416<>\"Multiple of Salary\"),\"-\",IF(COUNTA('Enrollment Form'!T416:U416)<2,\"N\",\"Y\"))","v":"-"},{"$f":"IF(B409=\"N\",\"\",IF(OR('Enrollment Form'!C416=\"ROC\",'Enrollment Form'!B416<>\"Subscriber\",'Enrollment Form'!O416=\"Waive\",'Enrollment Form'!O416=\"\"),\"-\",IF('Enrollment Form'!P416=\"\",\"N\",\"Y\")))","v":""},{"$f":"IF($B409=\"N\",\"\",IF(AND('Enrollment Form'!$C416=\"ROC\",'Enrollment Form'!$DR416<>\"\"),\"Y\",IF(AND('Enrollment Form'!$C416=\"ROC\",'Enrollment Form'!$DR416=\"\"),\"N\",IF(AND('Enrollment Form'!$C416=\"Enroll\",'Enrollment Form'!$B416=\"Subscriber\",'Enrollment Form'!$CX416=\"No\",'Enrollment Form'!$DR416=\"\"),\"N\",IF(AND('Enrollment Form'!$C416=\"Enroll\",'Enrollment Form'!$B416=\"Subscriber\",'Enrollment Form'!$CX416=\"Yes\"),\"-\",\"Y\")))))","v":""},{"$f":"IF($B409=\"N\",\"\",IF(AND('Enrollment Form'!$C416=\"ROC\",'Enrollment Form'!$DS416<>\"\"),\"Y\",IF(AND('Enrollment Form'!$C416=\"ROC\",'Enrollment Form'!$DS416=\"\"),\"N\",IF(AND('Enrollment Form'!$C416=\"Enroll\",'Enrollment Form'!$B416=\"Subscriber\",'Enrollment Form'!$CX416=\"No\",'Enrollment Form'!$DS416=\"\"),\"N\",IF(AND('Enrollment Form'!$C416=\"Enroll\",'Enrollment Form'!$B416=\"Subscriber\",'Enrollment Form'!$CX416=\"Yes\"),\"-\",\"Y\")))))","v":""},{"$f":"IF('Enrollment Form'!AH416=\"\",\"\",IF(ISERROR(SEARCH(\".\",'Enrollment Form'!AH416,SEARCH(\"@\",'Enrollment Form'!AH416))),\"N\",\"Y\"))","v":""},{"$f":"IF(OR($B409=\"N\",'Enrollment Form'!$G416=\"\"),\"\",IF('Enrollment Form'!$B416<>\"Subscriber\",\"-\",IF(COUNTIF('Enrollment Form'!$AV416:$AW416,\"Yes\")=2,\"N\",\"Y\")))","v":""},{"$f":"IF(OR('Enrollment Form'!$CJ416=\"\",'Enrollment Form'!$CJ416=\"No\"),\"-\",IF(AND('Enrollment Form'!$CJ416=\"Yes\",'Enrollment Form'!$CK416=\"\"),\"N\",\"Y\"))","v":"-"},{"$f":"IF(OR('Enrollment Form'!$CL416=\"\",'Enrollment Form'!$CL416=\"No\"),\"-\",IF(AND('Enrollment Form'!$CL416=\"Yes\",'Enrollment Form'!$CM416=\"\"),\"N\",\"Y\"))","v":"-"},{"$f":"IF(OR('Enrollment Form'!$CN416=\"\",'Enrollment Form'!$CN416=\"No\"),\"-\",IF(AND('Enrollment Form'!$CN416=\"Yes\",'Enrollment Form'!$CO416=\"\"),\"N\",\"Y\"))","v":"-"},{"$f":"IF(OR('Enrollment Form'!$CN416=\"\",'Enrollment Form'!$CN416=\"No\"),\"-\",IF(AND('Enrollment Form'!$CN416=\"Yes\",'Enrollment Form'!$CP416=\"\"),\"N\",\"Y\"))","v":"-"},{"$f":"IF('Enrollment Form'!B416<>\"Subscriber\",\"-\",IF(AND('Enrollment Form'!B416=\"Subscriber\",'Enrollment Form'!C416=\"Enroll\",'Enrollment Form'!AA416=\"\"),\"N\",\"Y\"))","v":"-"},{"$f":"IF(OR('Enrollment Form'!B416=\"Subscriber\",'Enrollment Form'!B416=\"\"),\"-\",IF('Enrollment Form'!BP416=\"\",\"N\",\"Y\"))","v":"-"},{"$f":"IF('Enrollment Form'!B416<>\"Subscriber\",\"-\",IF(AND('Enrollment Form'!B416=\"Subscriber\",'Enrollment Form'!G416=\"\"),\"N\",\"Y\"))","v":"-"},{"$f":"IF('Enrollment Form'!A416=\"\",\"\",IF('Enrollment Form'!B416=\"Subscriber\",\"-\",IF(AND('Enrollment Form'!B416<>\"Subscriber\",'Enrollment Form'!G416='Enrollment Form'!H416),\"N\",\"Y\")))","v":""},0]
[417,{"$f":"IF('Enrollment Form'!$A417<>\"\",\"Y\",\"N\")","v":"N"},{"$f":"IF(AND('Enrollment Form'!$B417=\"\",'Enrollment Form'!$C417<>\"\"),\"N\",IF($B410=\"N\",\"\",\"Y\"))","v":""},{"$f":"IF(OR($B410=\"N\",'Enrollment Form'!G417=\"\"),\"\",IF('Enrollment Form'!$B417<>\"Subscriber\",\"\",IF('Enrollment Form'!$G417='Enrollment Form'!$H417,\"Y\",\"N\")))","v":""},{"$f":"IF($B410=\"N\",\"\",IF(AND(COUNTIFS('Enrollment Form'!$H$11:$H$1000,'Enrollment Form'!$H417,'Enrollment Form'!$B$11:$B$1000,'Enrollment Form'!$B417)>1,'Enrollment Form'!$H417<>\"\"),\"N\",\"Y\"))","v":""},{"$f":"IF($B410=\"N\",\"\",IF(LEN('Enrollment Form'!$Y417)=0,\"\",IF(LEN('Enrollment Form'!$Y417)<>5,\"N\",\"Y\")))","v":""},{"$f":"IF($B410=\"N\",\"\",IF(LEN('Enrollment Form'!$AD417=0),\"\",IF(LEN('Enrollment Form'!$AD417)<>5,\"N\",\"Y\")))","v":""},{"$f":"IF($B410=\"N\",\"\",IF(LEN('Enrollment Form'!$BS417=0),\"\",IF(LEN('Enrollment Form'!$BS417)<>5,\"N\",\"Y\")))","v":""},{"$f":"IF($B410=\"N\",\"\",IF(LEN('Enrollment Form'!$AE417)=0,\"\",IF(LEN('Enrollment Form'!$AE417)<>10,\"N\",\"Y\")))","v":""},{"$f":"IF($B410=\"N\",\"\",IF(LEN('Enrollment Form'!$AF417)=0,\"\",IF(LEN('Enrollment Form'!$AF417)<>10,\"N\",\"Y\")))","v":""},{"$f":"IF('Enrollment Form'!$O417<>\"Graded\",\"-\",IF(AND('Enrollment Form'!$O417=\"Graded\",'Enrollment Form'!$AR417<>\"\"),\"Y\",\"N\"))","v":"-"},{"$f":"IF($B410=\"N\",\"\",IF(OR('Enrollment Form'!$B417<>\"Subscriber\",'Enrollment Form'!$C417=\"ROC\"),\"-\",IF(AND('Enrollment Form'!$B417=\"Subscriber\",'Enrollment Form'!$C417=\"Enroll\",'Enrollment Form'!$AJ417<>\"\"),\"Y\",\"N\")))","v":""},{"$f":"IF($B410=\"N\",\"\",IF(OR('Enrollment Form'!$B417<>\"Subscriber\",'Enrollment Form'!$C417=\"ROC\"),\"-\",IF(AND('Enrollment Form'!$B417=\"Subscriber\",'Enrollment Form'!$C417=\"Enroll\",'Enrollment Form'!$AK417<>\"\"),\"Y\",\"N\")))","v":""},{"$f":"IF($B410=\"N\",\"\",IF(OR('Enrollment Form'!$B417<>\"Subscriber\",'Enrollment Form'!$C417=\"ROC\"),\"-\",IF(AND('Enrollment Form'!$B417=\"Subscriber\",'Enrollment Form'!$C417=\"Enroll\",'Enrollment Form'!$AL417<>\"\"),\"Y\",\"N\")))","v":""},{"$f":"IF($B410=\"N\",\"\",IF(OR('Enrollment Form'!$B417<>\"Subscriber\",'Enrollment Form'!$C417=\"ROC\"),\"-\",IF(AND('Enrollment Form'!$B417=\"Subscriber\",'Enrollment Form'!$C417=\"Enroll\",'Enrollment Form'!$AP417<>\"\"),\"Y\",\"N\")))","v":""},{"$f":"IF($B410=\"N\",\"\",IF(OR('Enrollment Form'!$B417<>\"Subscriber\",'Enrollment Form'!$C417=\"ROC\"),\"-\",IF(AND('Enrollment Form'!$B417=\"Subscriber\",'Enrollment Form'!$C417=\"Enroll\",'Enrollment Form'!$AQ417<>\"\"),\"Y\",\"N\")))","v":""},{"$f":"IF($B410=\"N\",\"\",IF(OR('Enrollment Form'!$B417<>\"Subscriber\",'Enrollment Form'!$C417=\"ROC\"),\"-\",IF(AND('Enrollment Form'!$B417=\"Subscriber\",'Enrollment Form'!$C417=\"Enroll\",'Enrollment Form'!$AS417<>\"\"),\"Y\",\"N\")))","v":""},{"$f":"IF($B410=\"N\",\"\",IF($Q410=\"-\",\"-\",IF(AND($Q410=\"Y\",'Enrollment Form'!$AS417=\"No\"),\"-\",IF(AND($Q410=\"Y\",'Enrollment Form'!$AS417=\"Yes\",'Enrollment Form'!$AT417<>\"\"),\"Y\",\"N\"))))","v":""},{"$f":"IF($B410=\"N\",\"\",IF(OR('Enrollment Form'!$B417<>\"Subscriber\",'Enrollment Form'!$C417=\"ROC\"),\"-\",IF(AND('Enrollment Form'!$B417=\"Subscriber\",'Enrollment Form'!$C417=\"Enroll\",'Enrollment Form'!$CV417<>\"\"),\"Y\",\"N\")))","v":""},{"$f":"IF($B410=\"N\",\"\",IF($S410=\"-\",\"-\",IF(AND($S410=\"Y\",'Enrollment Form'!$CV417=\"No\"),\"-\",IF(AND($S410=\"Y\",'Enrollment Form'!$CV417=\"Yes\",'Enrollment Form'!$CW417<>\"\"),\"Y\",\"N\"))))","v":""},{"$f":"IF(OR('Enrollment Form'!$AY417=\"Yes\",'Enrollment Form'!$AY417=\"\"),\"-\",IF(OR(AND('Enrollment Form'!$AY417=\"No\",ISERROR(FIND(\"HMO\",VLOOKUP('Enrollment Form'!G417,'Enrollment Form'!H$11:J$1000,3,FALSE),1))=FALSE,COUNTA('Enrollment Form'!$AZ417:$BC417)=4),AND('Enrollment Form'!$AY417=\"No\",ISERROR(FIND(\"HMO\",VLOOKUP('Enrollment Form'!G417,'Enrollment Form'!H$11:J$1000,3,FALSE),1))=FALSE,COUNTA('Enrollment Form'!$BT417:$BW417)=4)),\"Y\",\"N\"))","v":"-"},{"$f":"IF($B410=\"N\",\"\",IF('Enrollment Form'!$B417=\"Subscriber\",\"-\",IF(COUNTA('Enrollment Form'!$BL417,'Enrollment Form'!$BN417)=2,\"Y\",\"N\")))","v":""},{"$f":"IF($B410=\"N\",\"\",IF(OR('Enrollment Form'!$AX417=\"\",'Enrollment Form'!$AX417=\"No\"),\"-\",IF(AND('Enrollment Form'!$AX417=\"Yes\",COUNTA('Enrollment Form'!$CR417)=1),\"Y\",\"N\")))","v":""},{"$f":"IF(OR('Enrollment Form'!$CR417=\"\",'Enrollment Form'!$CR417=\"No\"),\"-\",IF(COUNTA('Enrollment Form'!$CT417:$CU417)=2,\"Y\",\"N\"))","v":"-"},{"$f":"IF($B410=\"N\",\"\",IF(COUNTIF('Enrollment Form'!$DG417:$DP417,\"Other\")=COUNTA('Enrollment Form'!$DK417,'Enrollment Form'!$DH417,'Enrollment Form'!$DN417,'Enrollment Form'!$DQ417),\"Y\",\"N\"))","v":""},{"$f":"IF($B410=\"N\",\"\",IF(OR('Enrollment Form'!B417<>\"Subscriber\",'Enrollment Form'!C417=\"ROC\",COUNTIF('Enrollment Form'!AV417:AW417,\"Yes\")>=1),\"-\",IF(AND('Enrollment Form'!C417=\"Enroll\",COUNTIF('Enrollment Form'!AV417:AW417,\"No\")=2,'Enrollment Form'!AX417=\"\"),\"N\",\"Y\")))","v":""},{"$f":"IF(OR(B410=\"N\",'Enrollment Form'!B417<>\"Subscriber\",'Enrollment Form'!C417=\"ROC\",'Enrollment Form'!O417<>\"Multiple of Salary\"),\"-\",IF(COUNTA('Enrollment Form'!T417:U417)<2,\"N\",\"Y\"))","v":"-"},{"$f":"IF(B410=\"N\",\"\",IF(OR('Enrollment Form'!C417=\"ROC\",'Enrollment Form'!B417<>\"Subscriber\",'Enrollment Form'!O417=\"Waive\",'Enrollment Form'!O417=\"\"),\"-\",IF('Enrollment Form'!P417=\"\",\"N\",\"Y\")))","v":""},{"$f":"IF($B410=\"N\",\"\",IF(AND('Enrollment Form'!$C417=\"ROC\",'Enrollment Form'!$DR417<>\"\"),\"Y\",IF(AND('Enrollment Form'!$C417=\"ROC\",'Enrollment Form'!$DR417=\"\"),\"N\",IF(AND('Enrollment Form'!$C417=\"Enroll\",'Enrollment Form'!$B417=\"Subscriber\",'Enrollment Form'!$CX417=\"No\",'Enrollment Form'!$DR417=\"\"),\"N\",IF(AND('Enrollment Form'!$C417=\"Enroll\",'Enrollment Form'!$B417=\"Subscriber\",'Enrollment Form'!$CX417=\"Yes\"),\"-\",\"Y\")))))","v":""},{"$f":"IF($B410=\"N\",\"\",IF(AND('Enrollment Form'!$C417=\"ROC\",'Enrollment Form'!$DS417<>\"\"),\"Y\",IF(AND('Enrollment Form'!$C417=\"ROC\",'Enrollment Form'!$DS417=\"\"),\"N\",IF(AND('Enrollment Form'!$C417=\"Enroll\",'Enrollment Form'!$B417=\"Subscriber\",'Enrollment Form'!$CX417=\"No\",'Enrollment Form'!$DS417=\"\"),\"N\",IF(AND('Enrollment Form'!$C417=\"Enroll\",'Enrollment Form'!$B417=\"Subscriber\",'Enrollment Form'!$CX417=\"Yes\"),\"-\",\"Y\")))))","v":""},{"$f":"IF('Enrollment Form'!AH417=\"\",\"\",IF(ISERROR(SEARCH(\".\",'Enrollment Form'!AH417,SEARCH(\"@\",'Enrollment Form'!AH417))),\"N\",\"Y\"))","v":""},{"$f":"IF(OR($B410=\"N\",'Enrollment Form'!$G417=\"\"),\"\",IF('Enrollment Form'!$B417<>\"Subscriber\",\"-\",IF(COUNTIF('Enrollment Form'!$AV417:$AW417,\"Yes\")=2,\"N\",\"Y\")))","v":""},{"$f":"IF(OR('Enrollment Form'!$CJ417=\"\",'Enrollment Form'!$CJ417=\"No\"),\"-\",IF(AND('Enrollment Form'!$CJ417=\"Yes\",'Enrollment Form'!$CK417=\"\"),\"N\",\"Y\"))","v":"-"},{"$f":"IF(OR('Enrollment Form'!$CL417=\"\",'Enrollment Form'!$CL417=\"No\"),\"-\",IF(AND('Enrollment Form'!$CL417=\"Yes\",'Enrollment Form'!$CM417=\"\"),\"N\",\"Y\"))","v":"-"},{"$f":"IF(OR('Enrollment Form'!$CN417=\"\",'Enrollment Form'!$CN417=\"No\"),\"-\",IF(AND('Enrollment Form'!$CN417=\"Yes\",'Enrollment Form'!$CO417=\"\"),\"N\",\"Y\"))","v":"-"},{"$f":"IF(OR('Enrollment Form'!$CN417=\"\",'Enrollment Form'!$CN417=\"No\"),\"-\",IF(AND('Enrollment Form'!$CN417=\"Yes\",'Enrollment Form'!$CP417=\"\"),\"N\",\"Y\"))","v":"-"},{"$f":"IF('Enrollment Form'!B417<>\"Subscriber\",\"-\",IF(AND('Enrollment Form'!B417=\"Subscriber\",'Enrollment Form'!C417=\"Enroll\",'Enrollment Form'!AA417=\"\"),\"N\",\"Y\"))","v":"-"},{"$f":"IF(OR('Enrollment Form'!B417=\"Subscriber\",'Enrollment Form'!B417=\"\"),\"-\",IF('Enrollment Form'!BP417=\"\",\"N\",\"Y\"))","v":"-"},{"$f":"IF('Enrollment Form'!B417<>\"Subscriber\",\"-\",IF(AND('Enrollment Form'!B417=\"Subscriber\",'Enrollment Form'!G417=\"\"),\"N\",\"Y\"))","v":"-"},{"$f":"IF('Enrollment Form'!A417=\"\",\"\",IF('Enrollment Form'!B417=\"Subscriber\",\"-\",IF(AND('Enrollment Form'!B417<>\"Subscriber\",'Enrollment Form'!G417='Enrollment Form'!H417),\"N\",\"Y\")))","v":""},0]
[418,{"$f":"IF('Enrollment Form'!$A418<>\"\",\"Y\",\"N\")","v":"N"},{"$f":"IF(AND('Enrollment Form'!$B418=\"\",'Enrollment Form'!$C418<>\"\"),\"N\",IF($B411=\"N\",\"\",\"Y\"))","v":""},{"$f":"IF(OR($B411=\"N\",'Enrollment Form'!G418=\"\"),\"\",IF('Enrollment Form'!$B418<>\"Subscriber\",\"\",IF('Enrollment Form'!$G418='Enrollment Form'!$H418,\"Y\",\"N\")))","v":""},{"$f":"IF($B411=\"N\",\"\",IF(AND(COUNTIFS('Enrollment Form'!$H$11:$H$1000,'Enrollment Form'!$H418,'Enrollment Form'!$B$11:$B$1000,'Enrollment Form'!$B418)>1,'Enrollment Form'!$H418<>\"\"),\"N\",\"Y\"))","v":""},{"$f":"IF($B411=\"N\",\"\",IF(LEN('Enrollment Form'!$Y418)=0,\"\",IF(LEN('Enrollment Form'!$Y418)<>5,\"N\",\"Y\")))","v":""},{"$f":"IF($B411=\"N\",\"\",IF(LEN('Enrollment Form'!$AD418=0),\"\",IF(LEN('Enrollment Form'!$AD418)<>5,\"N\",\"Y\")))","v":""},{"$f":"IF($B411=\"N\",\"\",IF(LEN('Enrollment Form'!$BS418=0),\"\",IF(LEN('Enrollment Form'!$BS418)<>5,\"N\",\"Y\")))","v":""},{"$f":"IF($B411=\"N\",\"\",IF(LEN('Enrollment Form'!$AE418)=0,\"\",IF(LEN('Enrollment Form'!$AE418)<>10,\"N\",\"Y\")))","v":""},{"$f":"IF($B411=\"N\",\"\",IF(LEN('Enrollment Form'!$AF418)=0,\"\",IF(LEN('Enrollment Form'!$AF418)<>10,\"N\",\"Y\")))","v":""},{"$f":"IF('Enrollment Form'!$O418<>\"Graded\",\"-\",IF(AND('Enrollment Form'!$O418=\"Graded\",'Enrollment Form'!$AR418<>\"\"),\"Y\",\"N\"))","v":"-"},{"$f":"IF($B411=\"N\",\"\",IF(OR('Enrollment Form'!$B418<>\"Subscriber\",'Enrollment Form'!$C418=\"ROC\"),\"-\",IF(AND('Enrollment Form'!$B418=\"Subscriber\",'Enrollment Form'!$C418=\"Enroll\",'Enrollment Form'!$AJ418<>\"\"),\"Y\",\"N\")))","v":""},{"$f":"IF($B411=\"N\",\"\",IF(OR('Enrollment Form'!$B418<>\"Subscriber\",'Enrollment Form'!$C418=\"ROC\"),\"-\",IF(AND('Enrollment Form'!$B418=\"Subscriber\",'Enrollment Form'!$C418=\"Enroll\",'Enrollment Form'!$AK418<>\"\"),\"Y\",\"N\")))","v":""},{"$f":"IF($B411=\"N\",\"\",IF(OR('Enrollment Form'!$B418<>\"Subscriber\",'Enrollment Form'!$C418=\"ROC\"),\"-\",IF(AND('Enrollment Form'!$B418=\"Subscriber\",'Enrollment Form'!$C418=\"Enroll\",'Enrollment Form'!$AL418<>\"\"),\"Y\",\"N\")))","v":""},{"$f":"IF($B411=\"N\",\"\",IF(OR('Enrollment Form'!$B418<>\"Subscriber\",'Enrollment Form'!$C418=\"ROC\"),\"-\",IF(AND('Enrollment Form'!$B418=\"Subscriber\",'Enrollment Form'!$C418=\"Enroll\",'Enrollment Form'!$AP418<>\"\"),\"Y\",\"N\")))","v":""},{"$f":"IF($B411=\"N\",\"\",IF(OR('Enrollment Form'!$B418<>\"Subscriber\",'Enrollment Form'!$C418=\"ROC\"),\"-\",IF(AND('Enrollment Form'!$B418=\"Subscriber\",'Enrollment Form'!$C418=\"Enroll\",'Enrollment Form'!$AQ418<>\"\"),\"Y\",\"N\")))","v":""},{"$f":"IF($B411=\"N\",\"\",IF(OR('Enrollment Form'!$B418<>\"Subscriber\",'Enrollment Form'!$C418=\"ROC\"),\"-\",IF(AND('Enrollment Form'!$B418=\"Subscriber\",'Enrollment Form'!$C418=\"Enroll\",'Enrollment Form'!$AS418<>\"\"),\"Y\",\"N\")))","v":""},{"$f":"IF($B411=\"N\",\"\",IF($Q411=\"-\",\"-\",IF(AND($Q411=\"Y\",'Enrollment Form'!$AS418=\"No\"),\"-\",IF(AND($Q411=\"Y\",'Enrollment Form'!$AS418=\"Yes\",'Enrollment Form'!$AT418<>\"\"),\"Y\",\"N\"))))","v":""},{"$f":"IF($B411=\"N\",\"\",IF(OR('Enrollment Form'!$B418<>\"Subscriber\",'Enrollment Form'!$C418=\"ROC\"),\"-\",IF(AND('Enrollment Form'!$B418=\"Subscriber\",'Enrollment Form'!$C418=\"Enroll\",'Enrollment Form'!$CV418<>\"\"),\"Y\",\"N\")))","v":""},{"$f":"IF($B411=\"N\",\"\",IF($S411=\"-\",\"-\",IF(AND($S411=\"Y\",'Enrollment Form'!$CV418=\"No\"),\"-\",IF(AND($S411=\"Y\",'Enrollment Form'!$CV418=\"Yes\",'Enrollment Form'!$CW418<>\"\"),\"Y\",\"N\"))))","v":""},{"$f":"IF(OR('Enrollment Form'!$AY418=\"Yes\",'Enrollment Form'!$AY418=\"\"),\"-\",IF(OR(AND('Enrollment Form'!$AY418=\"No\",ISERROR(FIND(\"HMO\",VLOOKUP('Enrollment Form'!G418,'Enrollment Form'!H$11:J$1000,3,FALSE),1))=FALSE,COUNTA('Enrollment Form'!$AZ418:$BC418)=4),AND('Enrollment Form'!$AY418=\"No\",ISERROR(FIND(\"HMO\",VLOOKUP('Enrollment Form'!G418,'Enrollment Form'!H$11:J$1000,3,FALSE),1))=FALSE,COUNTA('Enrollment Form'!$BT418:$BW418)=4)),\"Y\",\"N\"))","v":"-"},{"$f":"IF($B411=\"N\",\"\",IF('Enrollment Form'!$B418=\"Subscriber\",\"-\",IF(COUNTA('Enrollment Form'!$BL418,'Enrollment Form'!$BN418)=2,\"Y\",\"N\")))","v":""},{"$f":"IF($B411=\"N\",\"\",IF(OR('Enrollment Form'!$AX418=\"\",'Enrollment Form'!$AX418=\"No\"),\"-\",IF(AND('Enrollment Form'!$AX418=\"Yes\",COUNTA('Enrollment Form'!$CR418)=1),\"Y\",\"N\")))","v":""},{"$f":"IF(OR('Enrollment Form'!$CR418=\"\",'Enrollment Form'!$CR418=\"No\"),\"-\",IF(COUNTA('Enrollment Form'!$CT418:$CU418)=2,\"Y\",\"N\"))","v":"-"},{"$f":"IF($B411=\"N\",\"\",IF(COUNTIF('Enrollment Form'!$DG418:$DP418,\"Other\")=COUNTA('Enrollment Form'!$DK418,'Enrollment Form'!$DH418,'Enrollment Form'!$DN418,'Enrollment Form'!$DQ418),\"Y\",\"N\"))","v":""},{"$f":"IF($B411=\"N\",\"\",IF(OR('Enrollment Form'!B418<>\"Subscriber\",'Enrollment Form'!C418=\"ROC\",COUNTIF('Enrollment Form'!AV418:AW418,\"Yes\")>=1),\"-\",IF(AND('Enrollment Form'!C418=\"Enroll\",COUNTIF('Enrollment Form'!AV418:AW418,\"No\")=2,'Enrollment Form'!AX418=\"\"),\"N\",\"Y\")))","v":""},{"$f":"IF(OR(B411=\"N\",'Enrollment Form'!B418<>\"Subscriber\",'Enrollment Form'!C418=\"ROC\",'Enrollment Form'!O418<>\"Multiple of Salary\"),\"-\",IF(COUNTA('Enrollment Form'!T418:U418)<2,\"N\",\"Y\"))","v":"-"},{"$f":"IF(B411=\"N\",\"\",IF(OR('Enrollment Form'!C418=\"ROC\",'Enrollment Form'!B418<>\"Subscriber\",'Enrollment Form'!O418=\"Waive\",'Enrollment Form'!O418=\"\"),\"-\",IF('Enrollment Form'!P418=\"\",\"N\",\"Y\")))","v":""},{"$f":"IF($B411=\"N\",\"\",IF(AND('Enrollment Form'!$C418=\"ROC\",'Enrollment Form'!$DR418<>\"\"),\"Y\",IF(AND('Enrollment Form'!$C418=\"ROC\",'Enrollment Form'!$DR418=\"\"),\"N\",IF(AND('Enrollment Form'!$C418=\"Enroll\",'Enrollment Form'!$B418=\"Subscriber\",'Enrollment Form'!$CX418=\"No\",'Enrollment Form'!$DR418=\"\"),\"N\",IF(AND('Enrollment Form'!$C418=\"Enroll\",'Enrollment Form'!$B418=\"Subscriber\",'Enrollment Form'!$CX418=\"Yes\"),\"-\",\"Y\")))))","v":""},{"$f":"IF($B411=\"N\",\"\",IF(AND('Enrollment Form'!$C418=\"ROC\",'Enrollment Form'!$DS418<>\"\"),\"Y\",IF(AND('Enrollment Form'!$C418=\"ROC\",'Enrollment Form'!$DS418=\"\"),\"N\",IF(AND('Enrollment Form'!$C418=\"Enroll\",'Enrollment Form'!$B418=\"Subscriber\",'Enrollment Form'!$CX418=\"No\",'Enrollment Form'!$DS418=\"\"),\"N\",IF(AND('Enrollment Form'!$C418=\"Enroll\",'Enrollment Form'!$B418=\"Subscriber\",'Enrollment Form'!$CX418=\"Yes\"),\"-\",\"Y\")))))","v":""},{"$f":"IF('Enrollment Form'!AH418=\"\",\"\",IF(ISERROR(SEARCH(\".\",'Enrollment Form'!AH418,SEARCH(\"@\",'Enrollment Form'!AH418))),\"N\",\"Y\"))","v":""},{"$f":"IF(OR($B411=\"N\",'Enrollment Form'!$G418=\"\"),\"\",IF('Enrollment Form'!$B418<>\"Subscriber\",\"-\",IF(COUNTIF('Enrollment Form'!$AV418:$AW418,\"Yes\")=2,\"N\",\"Y\")))","v":""},{"$f":"IF(OR('Enrollment Form'!$CJ418=\"\",'Enrollment Form'!$CJ418=\"No\"),\"-\",IF(AND('Enrollment Form'!$CJ418=\"Yes\",'Enrollment Form'!$CK418=\"\"),\"N\",\"Y\"))","v":"-"},{"$f":"IF(OR('Enrollment Form'!$CL418=\"\",'Enrollment Form'!$CL418=\"No\"),\"-\",IF(AND('Enrollment Form'!$CL418=\"Yes\",'Enrollment Form'!$CM418=\"\"),\"N\",\"Y\"))","v":"-"},{"$f":"IF(OR('Enrollment Form'!$CN418=\"\",'Enrollment Form'!$CN418=\"No\"),\"-\",IF(AND('Enrollment Form'!$CN418=\"Yes\",'Enrollment Form'!$CO418=\"\"),\"N\",\"Y\"))","v":"-"},{"$f":"IF(OR('Enrollment Form'!$CN418=\"\",'Enrollment Form'!$CN418=\"No\"),\"-\",IF(AND('Enrollment Form'!$CN418=\"Yes\",'Enrollment Form'!$CP418=\"\"),\"N\",\"Y\"))","v":"-"},{"$f":"IF('Enrollment Form'!B418<>\"Subscriber\",\"-\",IF(AND('Enrollment Form'!B418=\"Subscriber\",'Enrollment Form'!C418=\"Enroll\",'Enrollment Form'!AA418=\"\"),\"N\",\"Y\"))","v":"-"},{"$f":"IF(OR('Enrollment Form'!B418=\"Subscriber\",'Enrollment Form'!B418=\"\"),\"-\",IF('Enrollment Form'!BP418=\"\",\"N\",\"Y\"))","v":"-"},{"$f":"IF('Enrollment Form'!B418<>\"Subscriber\",\"-\",IF(AND('Enrollment Form'!B418=\"Subscriber\",'Enrollment Form'!G418=\"\"),\"N\",\"Y\"))","v":"-"},{"$f":"IF('Enrollment Form'!A418=\"\",\"\",IF('Enrollment Form'!B418=\"Subscriber\",\"-\",IF(AND('Enrollment Form'!B418<>\"Subscriber\",'Enrollment Form'!G418='Enrollment Form'!H418),\"N\",\"Y\")))","v":""},0]
[419,{"$f":"IF('Enrollment Form'!$A419<>\"\",\"Y\",\"N\")","v":"N"},{"$f":"IF(AND('Enrollment Form'!$B419=\"\",'Enrollment Form'!$C419<>\"\"),\"N\",IF($B412=\"N\",\"\",\"Y\"))","v":""},{"$f":"IF(OR($B412=\"N\",'Enrollment Form'!G419=\"\"),\"\",IF('Enrollment Form'!$B419<>\"Subscriber\",\"\",IF('Enrollment Form'!$G419='Enrollment Form'!$H419,\"Y\",\"N\")))","v":""},{"$f":"IF($B412=\"N\",\"\",IF(AND(COUNTIFS('Enrollment Form'!$H$11:$H$1000,'Enrollment Form'!$H419,'Enrollment Form'!$B$11:$B$1000,'Enrollment Form'!$B419)>1,'Enrollment Form'!$H419<>\"\"),\"N\",\"Y\"))","v":""},{"$f":"IF($B412=\"N\",\"\",IF(LEN('Enrollment Form'!$Y419)=0,\"\",IF(LEN('Enrollment Form'!$Y419)<>5,\"N\",\"Y\")))","v":""},{"$f":"IF($B412=\"N\",\"\",IF(LEN('Enrollment Form'!$AD419=0),\"\",IF(LEN('Enrollment Form'!$AD419)<>5,\"N\",\"Y\")))","v":""},{"$f":"IF($B412=\"N\",\"\",IF(LEN('Enrollment Form'!$BS419=0),\"\",IF(LEN('Enrollment Form'!$BS419)<>5,\"N\",\"Y\")))","v":""},{"$f":"IF($B412=\"N\",\"\",IF(LEN('Enrollment Form'!$AE419)=0,\"\",IF(LEN('Enrollment Form'!$AE419)<>10,\"N\",\"Y\")))","v":""},{"$f":"IF($B412=\"N\",\"\",IF(LEN('Enrollment Form'!$AF419)=0,\"\",IF(LEN('Enrollment Form'!$AF419)<>10,\"N\",\"Y\")))","v":""},{"$f":"IF('Enrollment Form'!$O419<>\"Graded\",\"-\",IF(AND('Enrollment Form'!$O419=\"Graded\",'Enrollment Form'!$AR419<>\"\"),\"Y\",\"N\"))","v":"-"},{"$f":"IF($B412=\"N\",\"\",IF(OR('Enrollment Form'!$B419<>\"Subscriber\",'Enrollment Form'!$C419=\"ROC\"),\"-\",IF(AND('Enrollment Form'!$B419=\"Subscriber\",'Enrollment Form'!$C419=\"Enroll\",'Enrollment Form'!$AJ419<>\"\"),\"Y\",\"N\")))","v":""},{"$f":"IF($B412=\"N\",\"\",IF(OR('Enrollment Form'!$B419<>\"Subscriber\",'Enrollment Form'!$C419=\"ROC\"),\"-\",IF(AND('Enrollment Form'!$B419=\"Subscriber\",'Enrollment Form'!$C419=\"Enroll\",'Enrollment Form'!$AK419<>\"\"),\"Y\",\"N\")))","v":""},{"$f":"IF($B412=\"N\",\"\",IF(OR('Enrollment Form'!$B419<>\"Subscriber\",'Enrollment Form'!$C419=\"ROC\"),\"-\",IF(AND('Enrollment Form'!$B419=\"Subscriber\",'Enrollment Form'!$C419=\"Enroll\",'Enrollment Form'!$AL419<>\"\"),\"Y\",\"N\")))","v":""},{"$f":"IF($B412=\"N\",\"\",IF(OR('Enrollment Form'!$B419<>\"Subscriber\",'Enrollment Form'!$C419=\"ROC\"),\"-\",IF(AND('Enrollment Form'!$B419=\"Subscriber\",'Enrollment Form'!$C419=\"Enroll\",'Enrollment Form'!$AP419<>\"\"),\"Y\",\"N\")))","v":""},{"$f":"IF($B412=\"N\",\"\",IF(OR('Enrollment Form'!$B419<>\"Subscriber\",'Enrollment Form'!$C419=\"ROC\"),\"-\",IF(AND('Enrollment Form'!$B419=\"Subscriber\",'Enrollment Form'!$C419=\"Enroll\",'Enrollment Form'!$AQ419<>\"\"),\"Y\",\"N\")))","v":""},{"$f":"IF($B412=\"N\",\"\",IF(OR('Enrollment Form'!$B419<>\"Subscriber\",'Enrollment Form'!$C419=\"ROC\"),\"-\",IF(AND('Enrollment Form'!$B419=\"Subscriber\",'Enrollment Form'!$C419=\"Enroll\",'Enrollment Form'!$AS419<>\"\"),\"Y\",\"N\")))","v":""},{"$f":"IF($B412=\"N\",\"\",IF($Q412=\"-\",\"-\",IF(AND($Q412=\"Y\",'Enrollment Form'!$AS419=\"No\"),\"-\",IF(AND($Q412=\"Y\",'Enrollment Form'!$AS419=\"Yes\",'Enrollment Form'!$AT419<>\"\"),\"Y\",\"N\"))))","v":""},{"$f":"IF($B412=\"N\",\"\",IF(OR('Enrollment Form'!$B419<>\"Subscriber\",'Enrollment Form'!$C419=\"ROC\"),\"-\",IF(AND('Enrollment Form'!$B419=\"Subscriber\",'Enrollment Form'!$C419=\"Enroll\",'Enrollment Form'!$CV419<>\"\"),\"Y\",\"N\")))","v":""},{"$f":"IF($B412=\"N\",\"\",IF($S412=\"-\",\"-\",IF(AND($S412=\"Y\",'Enrollment Form'!$CV419=\"No\"),\"-\",IF(AND($S412=\"Y\",'Enrollment Form'!$CV419=\"Yes\",'Enrollment Form'!$CW419<>\"\"),\"Y\",\"N\"))))","v":""},{"$f":"IF(OR('Enrollment Form'!$AY419=\"Yes\",'Enrollment Form'!$AY419=\"\"),\"-\",IF(OR(AND('Enrollment Form'!$AY419=\"No\",ISERROR(FIND(\"HMO\",VLOOKUP('Enrollment Form'!G419,'Enrollment Form'!H$11:J$1000,3,FALSE),1))=FALSE,COUNTA('Enrollment Form'!$AZ419:$BC419)=4),AND('Enrollment Form'!$AY419=\"No\",ISERROR(FIND(\"HMO\",VLOOKUP('Enrollment Form'!G419,'Enrollment Form'!H$11:J$1000,3,FALSE),1))=FALSE,COUNTA('Enrollment Form'!$BT419:$BW419)=4)),\"Y\",\"N\"))","v":"-"},{"$f":"IF($B412=\"N\",\"\",IF('Enrollment Form'!$B419=\"Subscriber\",\"-\",IF(COUNTA('Enrollment Form'!$BL419,'Enrollment Form'!$BN419)=2,\"Y\",\"N\")))","v":""},{"$f":"IF($B412=\"N\",\"\",IF(OR('Enrollment Form'!$AX419=\"\",'Enrollment Form'!$AX419=\"No\"),\"-\",IF(AND('Enrollment Form'!$AX419=\"Yes\",COUNTA('Enrollment Form'!$CR419)=1),\"Y\",\"N\")))","v":""},{"$f":"IF(OR('Enrollment Form'!$CR419=\"\",'Enrollment Form'!$CR419=\"No\"),\"-\",IF(COUNTA('Enrollment Form'!$CT419:$CU419)=2,\"Y\",\"N\"))","v":"-"},{"$f":"IF($B412=\"N\",\"\",IF(COUNTIF('Enrollment Form'!$DG419:$DP419,\"Other\")=COUNTA('Enrollment Form'!$DK419,'Enrollment Form'!$DH419,'Enrollment Form'!$DN419,'Enrollment Form'!$DQ419),\"Y\",\"N\"))","v":""},{"$f":"IF($B412=\"N\",\"\",IF(OR('Enrollment Form'!B419<>\"Subscriber\",'Enrollment Form'!C419=\"ROC\",COUNTIF('Enrollment Form'!AV419:AW419,\"Yes\")>=1),\"-\",IF(AND('Enrollment Form'!C419=\"Enroll\",COUNTIF('Enrollment Form'!AV419:AW419,\"No\")=2,'Enrollment Form'!AX419=\"\"),\"N\",\"Y\")))","v":""},{"$f":"IF(OR(B412=\"N\",'Enrollment Form'!B419<>\"Subscriber\",'Enrollment Form'!C419=\"ROC\",'Enrollment Form'!O419<>\"Multiple of Salary\"),\"-\",IF(COUNTA('Enrollment Form'!T419:U419)<2,\"N\",\"Y\"))","v":"-"},{"$f":"IF(B412=\"N\",\"\",IF(OR('Enrollment Form'!C419=\"ROC\",'Enrollment Form'!B419<>\"Subscriber\",'Enrollment Form'!O419=\"Waive\",'Enrollment Form'!O419=\"\"),\"-\",IF('Enrollment Form'!P419=\"\",\"N\",\"Y\")))","v":""},{"$f":"IF($B412=\"N\",\"\",IF(AND('Enrollment Form'!$C419=\"ROC\",'Enrollment Form'!$DR419<>\"\"),\"Y\",IF(AND('Enrollment Form'!$C419=\"ROC\",'Enrollment Form'!$DR419=\"\"),\"N\",IF(AND('Enrollment Form'!$C419=\"Enroll\",'Enrollment Form'!$B419=\"Subscriber\",'Enrollment Form'!$CX419=\"No\",'Enrollment Form'!$DR419=\"\"),\"N\",IF(AND('Enrollment Form'!$C419=\"Enroll\",'Enrollment Form'!$B419=\"Subscriber\",'Enrollment Form'!$CX419=\"Yes\"),\"-\",\"Y\")))))","v":""},{"$f":"IF($B412=\"N\",\"\",IF(AND('Enrollment Form'!$C419=\"ROC\",'Enrollment Form'!$DS419<>\"\"),\"Y\",IF(AND('Enrollment Form'!$C419=\"ROC\",'Enrollment Form'!$DS419=\"\"),\"N\",IF(AND('Enrollment Form'!$C419=\"Enroll\",'Enrollment Form'!$B419=\"Subscriber\",'Enrollment Form'!$CX419=\"No\",'Enrollment Form'!$DS419=\"\"),\"N\",IF(AND('Enrollment Form'!$C419=\"Enroll\",'Enrollment Form'!$B419=\"Subscriber\",'Enrollment Form'!$CX419=\"Yes\"),\"-\",\"Y\")))))","v":""},{"$f":"IF('Enrollment Form'!AH419=\"\",\"\",IF(ISERROR(SEARCH(\".\",'Enrollment Form'!AH419,SEARCH(\"@\",'Enrollment Form'!AH419))),\"N\",\"Y\"))","v":""},{"$f":"IF(OR($B412=\"N\",'Enrollment Form'!$G419=\"\"),\"\",IF('Enrollment Form'!$B419<>\"Subscriber\",\"-\",IF(COUNTIF('Enrollment Form'!$AV419:$AW419,\"Yes\")=2,\"N\",\"Y\")))","v":""},{"$f":"IF(OR('Enrollment Form'!$CJ419=\"\",'Enrollment Form'!$CJ419=\"No\"),\"-\",IF(AND('Enrollment Form'!$CJ419=\"Yes\",'Enrollment Form'!$CK419=\"\"),\"N\",\"Y\"))","v":"-"},{"$f":"IF(OR('Enrollment Form'!$CL419=\"\",'Enrollment Form'!$CL419=\"No\"),\"-\",IF(AND('Enrollment Form'!$CL419=\"Yes\",'Enrollment Form'!$CM419=\"\"),\"N\",\"Y\"))","v":"-"},{"$f":"IF(OR('Enrollment Form'!$CN419=\"\",'Enrollment Form'!$CN419=\"No\"),\"-\",IF(AND('Enrollment Form'!$CN419=\"Yes\",'Enrollment Form'!$CO419=\"\"),\"N\",\"Y\"))","v":"-"},{"$f":"IF(OR('Enrollment Form'!$CN419=\"\",'Enrollment Form'!$CN419=\"No\"),\"-\",IF(AND('Enrollment Form'!$CN419=\"Yes\",'Enrollment Form'!$CP419=\"\"),\"N\",\"Y\"))","v":"-"},{"$f":"IF('Enrollment Form'!B419<>\"Subscriber\",\"-\",IF(AND('Enrollment Form'!B419=\"Subscriber\",'Enrollment Form'!C419=\"Enroll\",'Enrollment Form'!AA419=\"\"),\"N\",\"Y\"))","v":"-"},{"$f":"IF(OR('Enrollment Form'!B419=\"Subscriber\",'Enrollment Form'!B419=\"\"),\"-\",IF('Enrollment Form'!BP419=\"\",\"N\",\"Y\"))","v":"-"},{"$f":"IF('Enrollment Form'!B419<>\"Subscriber\",\"-\",IF(AND('Enrollment Form'!B419=\"Subscriber\",'Enrollment Form'!G419=\"\"),\"N\",\"Y\"))","v":"-"},{"$f":"IF('Enrollment Form'!A419=\"\",\"\",IF('Enrollment Form'!B419=\"Subscriber\",\"-\",IF(AND('Enrollment Form'!B419<>\"Subscriber\",'Enrollment Form'!G419='Enrollment Form'!H419),\"N\",\"Y\")))","v":""},0]
[420,{"$f":"IF('Enrollment Form'!$A420<>\"\",\"Y\",\"N\")","v":"N"},{"$f":"IF(AND('Enrollment Form'!$B420=\"\",'Enrollment Form'!$C420<>\"\"),\"N\",IF($B413=\"N\",\"\",\"Y\"))","v":""},{"$f":"IF(OR($B413=\"N\",'Enrollment Form'!G420=\"\"),\"\",IF('Enrollment Form'!$B420<>\"Subscriber\",\"\",IF('Enrollment Form'!$G420='Enrollment Form'!$H420,\"Y\",\"N\")))","v":""},{"$f":"IF($B413=\"N\",\"\",IF(AND(COUNTIFS('Enrollment Form'!$H$11:$H$1000,'Enrollment Form'!$H420,'Enrollment Form'!$B$11:$B$1000,'Enrollment Form'!$B420)>1,'Enrollment Form'!$H420<>\"\"),\"N\",\"Y\"))","v":""},{"$f":"IF($B413=\"N\",\"\",IF(LEN('Enrollment Form'!$Y420)=0,\"\",IF(LEN('Enrollment Form'!$Y420)<>5,\"N\",\"Y\")))","v":""},{"$f":"IF($B413=\"N\",\"\",IF(LEN('Enrollment Form'!$AD420=0),\"\",IF(LEN('Enrollment Form'!$AD420)<>5,\"N\",\"Y\")))","v":""},{"$f":"IF($B413=\"N\",\"\",IF(LEN('Enrollment Form'!$BS420=0),\"\",IF(LEN('Enrollment Form'!$BS420)<>5,\"N\",\"Y\")))","v":""},{"$f":"IF($B413=\"N\",\"\",IF(LEN('Enrollment Form'!$AE420)=0,\"\",IF(LEN('Enrollment Form'!$AE420)<>10,\"N\",\"Y\")))","v":""},{"$f":"IF($B413=\"N\",\"\",IF(LEN('Enrollment Form'!$AF420)=0,\"\",IF(LEN('Enrollment Form'!$AF420)<>10,\"N\",\"Y\")))","v":""},{"$f":"IF('Enrollment Form'!$O420<>\"Graded\",\"-\",IF(AND('Enrollment Form'!$O420=\"Graded\",'Enrollment Form'!$AR420<>\"\"),\"Y\",\"N\"))","v":"-"},{"$f":"IF($B413=\"N\",\"\",IF(OR('Enrollment Form'!$B420<>\"Subscriber\",'Enrollment Form'!$C420=\"ROC\"),\"-\",IF(AND('Enrollment Form'!$B420=\"Subscriber\",'Enrollment Form'!$C420=\"Enroll\",'Enrollment Form'!$AJ420<>\"\"),\"Y\",\"N\")))","v":""},{"$f":"IF($B413=\"N\",\"\",IF(OR('Enrollment Form'!$B420<>\"Subscriber\",'Enrollment Form'!$C420=\"ROC\"),\"-\",IF(AND('Enrollment Form'!$B420=\"Subscriber\",'Enrollment Form'!$C420=\"Enroll\",'Enrollment Form'!$AK420<>\"\"),\"Y\",\"N\")))","v":""},{"$f":"IF($B413=\"N\",\"\",IF(OR('Enrollment Form'!$B420<>\"Subscriber\",'Enrollment Form'!$C420=\"ROC\"),\"-\",IF(AND('Enrollment Form'!$B420=\"Subscriber\",'Enrollment Form'!$C420=\"Enroll\",'Enrollment Form'!$AL420<>\"\"),\"Y\",\"N\")))","v":""},{"$f":"IF($B413=\"N\",\"\",IF(OR('Enrollment Form'!$B420<>\"Subscriber\",'Enrollment Form'!$C420=\"ROC\"),\"-\",IF(AND('Enrollment Form'!$B420=\"Subscriber\",'Enrollment Form'!$C420=\"Enroll\",'Enrollment Form'!$AP420<>\"\"),\"Y\",\"N\")))","v":""},{"$f":"IF($B413=\"N\",\"\",IF(OR('Enrollment Form'!$B420<>\"Subscriber\",'Enrollment Form'!$C420=\"ROC\"),\"-\",IF(AND('Enrollment Form'!$B420=\"Subscriber\",'Enrollment Form'!$C420=\"Enroll\",'Enrollment Form'!$AQ420<>\"\"),\"Y\",\"N\")))","v":""},{"$f":"IF($B413=\"N\",\"\",IF(OR('Enrollment Form'!$B420<>\"Subscriber\",'Enrollment Form'!$C420=\"ROC\"),\"-\",IF(AND('Enrollment Form'!$B420=\"Subscriber\",'Enrollment Form'!$C420=\"Enroll\",'Enrollment Form'!$AS420<>\"\"),\"Y\",\"N\")))","v":""},{"$f":"IF($B413=\"N\",\"\",IF($Q413=\"-\",\"-\",IF(AND($Q413=\"Y\",'Enrollment Form'!$AS420=\"No\"),\"-\",IF(AND($Q413=\"Y\",'Enrollment Form'!$AS420=\"Yes\",'Enrollment Form'!$AT420<>\"\"),\"Y\",\"N\"))))","v":""},{"$f":"IF($B413=\"N\",\"\",IF(OR('Enrollment Form'!$B420<>\"Subscriber\",'Enrollment Form'!$C420=\"ROC\"),\"-\",IF(AND('Enrollment Form'!$B420=\"Subscriber\",'Enrollment Form'!$C420=\"Enroll\",'Enrollment Form'!$CV420<>\"\"),\"Y\",\"N\")))","v":""},{"$f":"IF($B413=\"N\",\"\",IF($S413=\"-\",\"-\",IF(AND($S413=\"Y\",'Enrollment Form'!$CV420=\"No\"),\"-\",IF(AND($S413=\"Y\",'Enrollment Form'!$CV420=\"Yes\",'Enrollment Form'!$CW420<>\"\"),\"Y\",\"N\"))))","v":""},{"$f":"IF(OR('Enrollment Form'!$AY420=\"Yes\",'Enrollment Form'!$AY420=\"\"),\"-\",IF(OR(AND('Enrollment Form'!$AY420=\"No\",ISERROR(FIND(\"HMO\",VLOOKUP('Enrollment Form'!G420,'Enrollment Form'!H$11:J$1000,3,FALSE),1))=FALSE,COUNTA('Enrollment Form'!$AZ420:$BC420)=4),AND('Enrollment Form'!$AY420=\"No\",ISERROR(FIND(\"HMO\",VLOOKUP('Enrollment Form'!G420,'Enrollment Form'!H$11:J$1000,3,FALSE),1))=FALSE,COUNTA('Enrollment Form'!$BT420:$BW420)=4)),\"Y\",\"N\"))","v":"-"},{"$f":"IF($B413=\"N\",\"\",IF('Enrollment Form'!$B420=\"Subscriber\",\"-\",IF(COUNTA('Enrollment Form'!$BL420,'Enrollment Form'!$BN420)=2,\"Y\",\"N\")))","v":""},{"$f":"IF($B413=\"N\",\"\",IF(OR('Enrollment Form'!$AX420=\"\",'Enrollment Form'!$AX420=\"No\"),\"-\",IF(AND('Enrollment Form'!$AX420=\"Yes\",COUNTA('Enrollment Form'!$CR420)=1),\"Y\",\"N\")))","v":""},{"$f":"IF(OR('Enrollment Form'!$CR420=\"\",'Enrollment Form'!$CR420=\"No\"),\"-\",IF(COUNTA('Enrollment Form'!$CT420:$CU420)=2,\"Y\",\"N\"))","v":"-"},{"$f":"IF($B413=\"N\",\"\",IF(COUNTIF('Enrollment Form'!$DG420:$DP420,\"Other\")=COUNTA('Enrollment Form'!$DK420,'Enrollment Form'!$DH420,'Enrollment Form'!$DN420,'Enrollment Form'!$DQ420),\"Y\",\"N\"))","v":""},{"$f":"IF($B413=\"N\",\"\",IF(OR('Enrollment Form'!B420<>\"Subscriber\",'Enrollment Form'!C420=\"ROC\",COUNTIF('Enrollment Form'!AV420:AW420,\"Yes\")>=1),\"-\",IF(AND('Enrollment Form'!C420=\"Enroll\",COUNTIF('Enrollment Form'!AV420:AW420,\"No\")=2,'Enrollment Form'!AX420=\"\"),\"N\",\"Y\")))","v":""},{"$f":"IF(OR(B413=\"N\",'Enrollment Form'!B420<>\"Subscriber\",'Enrollment Form'!C420=\"ROC\",'Enrollment Form'!O420<>\"Multiple of Salary\"),\"-\",IF(COUNTA('Enrollment Form'!T420:U420)<2,\"N\",\"Y\"))","v":"-"},{"$f":"IF(B413=\"N\",\"\",IF(OR('Enrollment Form'!C420=\"ROC\",'Enrollment Form'!B420<>\"Subscriber\",'Enrollment Form'!O420=\"Waive\",'Enrollment Form'!O420=\"\"),\"-\",IF('Enrollment Form'!P420=\"\",\"N\",\"Y\")))","v":""},{"$f":"IF($B413=\"N\",\"\",IF(AND('Enrollment Form'!$C420=\"ROC\",'Enrollment Form'!$DR420<>\"\"),\"Y\",IF(AND('Enrollment Form'!$C420=\"ROC\",'Enrollment Form'!$DR420=\"\"),\"N\",IF(AND('Enrollment Form'!$C420=\"Enroll\",'Enrollment Form'!$B420=\"Subscriber\",'Enrollment Form'!$CX420=\"No\",'Enrollment Form'!$DR420=\"\"),\"N\",IF(AND('Enrollment Form'!$C420=\"Enroll\",'Enrollment Form'!$B420=\"Subscriber\",'Enrollment Form'!$CX420=\"Yes\"),\"-\",\"Y\")))))","v":""},{"$f":"IF($B413=\"N\",\"\",IF(AND('Enrollment Form'!$C420=\"ROC\",'Enrollment Form'!$DS420<>\"\"),\"Y\",IF(AND('Enrollment Form'!$C420=\"ROC\",'Enrollment Form'!$DS420=\"\"),\"N\",IF(AND('Enrollment Form'!$C420=\"Enroll\",'Enrollment Form'!$B420=\"Subscriber\",'Enrollment Form'!$CX420=\"No\",'Enrollment Form'!$DS420=\"\"),\"N\",IF(AND('Enrollment Form'!$C420=\"Enroll\",'Enrollment Form'!$B420=\"Subscriber\",'Enrollment Form'!$CX420=\"Yes\"),\"-\",\"Y\")))))","v":""},{"$f":"IF('Enrollment Form'!AH420=\"\",\"\",IF(ISERROR(SEARCH(\".\",'Enrollment Form'!AH420,SEARCH(\"@\",'Enrollment Form'!AH420))),\"N\",\"Y\"))","v":""},{"$f":"IF(OR($B413=\"N\",'Enrollment Form'!$G420=\"\"),\"\",IF('Enrollment Form'!$B420<>\"Subscriber\",\"-\",IF(COUNTIF('Enrollment Form'!$AV420:$AW420,\"Yes\")=2,\"N\",\"Y\")))","v":""},{"$f":"IF(OR('Enrollment Form'!$CJ420=\"\",'Enrollment Form'!$CJ420=\"No\"),\"-\",IF(AND('Enrollment Form'!$CJ420=\"Yes\",'Enrollment Form'!$CK420=\"\"),\"N\",\"Y\"))","v":"-"},{"$f":"IF(OR('Enrollment Form'!$CL420=\"\",'Enrollment Form'!$CL420=\"No\"),\"-\",IF(AND('Enrollment Form'!$CL420=\"Yes\",'Enrollment Form'!$CM420=\"\"),\"N\",\"Y\"))","v":"-"},{"$f":"IF(OR('Enrollment Form'!$CN420=\"\",'Enrollment Form'!$CN420=\"No\"),\"-\",IF(AND('Enrollment Form'!$CN420=\"Yes\",'Enrollment Form'!$CO420=\"\"),\"N\",\"Y\"))","v":"-"},{"$f":"IF(OR('Enrollment Form'!$CN420=\"\",'Enrollment Form'!$CN420=\"No\"),\"-\",IF(AND('Enrollment Form'!$CN420=\"Yes\",'Enrollment Form'!$CP420=\"\"),\"N\",\"Y\"))","v":"-"},{"$f":"IF('Enrollment Form'!B420<>\"Subscriber\",\"-\",IF(AND('Enrollment Form'!B420=\"Subscriber\",'Enrollment Form'!C420=\"Enroll\",'Enrollment Form'!AA420=\"\"),\"N\",\"Y\"))","v":"-"},{"$f":"IF(OR('Enrollment Form'!B420=\"Subscriber\",'Enrollment Form'!B420=\"\"),\"-\",IF('Enrollment Form'!BP420=\"\",\"N\",\"Y\"))","v":"-"},{"$f":"IF('Enrollment Form'!B420<>\"Subscriber\",\"-\",IF(AND('Enrollment Form'!B420=\"Subscriber\",'Enrollment Form'!G420=\"\"),\"N\",\"Y\"))","v":"-"},{"$f":"IF('Enrollment Form'!A420=\"\",\"\",IF('Enrollment Form'!B420=\"Subscriber\",\"-\",IF(AND('Enrollment Form'!B420<>\"Subscriber\",'Enrollment Form'!G420='Enrollment Form'!H420),\"N\",\"Y\")))","v":""},0]
[421,{"$f":"IF('Enrollment Form'!$A421<>\"\",\"Y\",\"N\")","v":"N"},{"$f":"IF(AND('Enrollment Form'!$B421=\"\",'Enrollment Form'!$C421<>\"\"),\"N\",IF($B414=\"N\",\"\",\"Y\"))","v":""},{"$f":"IF(OR($B414=\"N\",'Enrollment Form'!G421=\"\"),\"\",IF('Enrollment Form'!$B421<>\"Subscriber\",\"\",IF('Enrollment Form'!$G421='Enrollment Form'!$H421,\"Y\",\"N\")))","v":""},{"$f":"IF($B414=\"N\",\"\",IF(AND(COUNTIFS('Enrollment Form'!$H$11:$H$1000,'Enrollment Form'!$H421,'Enrollment Form'!$B$11:$B$1000,'Enrollment Form'!$B421)>1,'Enrollment Form'!$H421<>\"\"),\"N\",\"Y\"))","v":""},{"$f":"IF($B414=\"N\",\"\",IF(LEN('Enrollment Form'!$Y421)=0,\"\",IF(LEN('Enrollment Form'!$Y421)<>5,\"N\",\"Y\")))","v":""},{"$f":"IF($B414=\"N\",\"\",IF(LEN('Enrollment Form'!$AD421=0),\"\",IF(LEN('Enrollment Form'!$AD421)<>5,\"N\",\"Y\")))","v":""},{"$f":"IF($B414=\"N\",\"\",IF(LEN('Enrollment Form'!$BS421=0),\"\",IF(LEN('Enrollment Form'!$BS421)<>5,\"N\",\"Y\")))","v":""},{"$f":"IF($B414=\"N\",\"\",IF(LEN('Enrollment Form'!$AE421)=0,\"\",IF(LEN('Enrollment Form'!$AE421)<>10,\"N\",\"Y\")))","v":""},{"$f":"IF($B414=\"N\",\"\",IF(LEN('Enrollment Form'!$AF421)=0,\"\",IF(LEN('Enrollment Form'!$AF421)<>10,\"N\",\"Y\")))","v":""},{"$f":"IF('Enrollment Form'!$O421<>\"Graded\",\"-\",IF(AND('Enrollment Form'!$O421=\"Graded\",'Enrollment Form'!$AR421<>\"\"),\"Y\",\"N\"))","v":"-"},{"$f":"IF($B414=\"N\",\"\",IF(OR('Enrollment Form'!$B421<>\"Subscriber\",'Enrollment Form'!$C421=\"ROC\"),\"-\",IF(AND('Enrollment Form'!$B421=\"Subscriber\",'Enrollment Form'!$C421=\"Enroll\",'Enrollment Form'!$AJ421<>\"\"),\"Y\",\"N\")))","v":""},{"$f":"IF($B414=\"N\",\"\",IF(OR('Enrollment Form'!$B421<>\"Subscriber\",'Enrollment Form'!$C421=\"ROC\"),\"-\",IF(AND('Enrollment Form'!$B421=\"Subscriber\",'Enrollment Form'!$C421=\"Enroll\",'Enrollment Form'!$AK421<>\"\"),\"Y\",\"N\")))","v":""},{"$f":"IF($B414=\"N\",\"\",IF(OR('Enrollment Form'!$B421<>\"Subscriber\",'Enrollment Form'!$C421=\"ROC\"),\"-\",IF(AND('Enrollment Form'!$B421=\"Subscriber\",'Enrollment Form'!$C421=\"Enroll\",'Enrollment Form'!$AL421<>\"\"),\"Y\",\"N\")))","v":""},{"$f":"IF($B414=\"N\",\"\",IF(OR('Enrollment Form'!$B421<>\"Subscriber\",'Enrollment Form'!$C421=\"ROC\"),\"-\",IF(AND('Enrollment Form'!$B421=\"Subscriber\",'Enrollment Form'!$C421=\"Enroll\",'Enrollment Form'!$AP421<>\"\"),\"Y\",\"N\")))","v":""},{"$f":"IF($B414=\"N\",\"\",IF(OR('Enrollment Form'!$B421<>\"Subscriber\",'Enrollment Form'!$C421=\"ROC\"),\"-\",IF(AND('Enrollment Form'!$B421=\"Subscriber\",'Enrollment Form'!$C421=\"Enroll\",'Enrollment Form'!$AQ421<>\"\"),\"Y\",\"N\")))","v":""},{"$f":"IF($B414=\"N\",\"\",IF(OR('Enrollment Form'!$B421<>\"Subscriber\",'Enrollment Form'!$C421=\"ROC\"),\"-\",IF(AND('Enrollment Form'!$B421=\"Subscriber\",'Enrollment Form'!$C421=\"Enroll\",'Enrollment Form'!$AS421<>\"\"),\"Y\",\"N\")))","v":""},{"$f":"IF($B414=\"N\",\"\",IF($Q414=\"-\",\"-\",IF(AND($Q414=\"Y\",'Enrollment Form'!$AS421=\"No\"),\"-\",IF(AND($Q414=\"Y\",'Enrollment Form'!$AS421=\"Yes\",'Enrollment Form'!$AT421<>\"\"),\"Y\",\"N\"))))","v":""},{"$f":"IF($B414=\"N\",\"\",IF(OR('Enrollment Form'!$B421<>\"Subscriber\",'Enrollment Form'!$C421=\"ROC\"),\"-\",IF(AND('Enrollment Form'!$B421=\"Subscriber\",'Enrollment Form'!$C421=\"Enroll\",'Enrollment Form'!$CV421<>\"\"),\"Y\",\"N\")))","v":""},{"$f":"IF($B414=\"N\",\"\",IF($S414=\"-\",\"-\",IF(AND($S414=\"Y\",'Enrollment Form'!$CV421=\"No\"),\"-\",IF(AND($S414=\"Y\",'Enrollment Form'!$CV421=\"Yes\",'Enrollment Form'!$CW421<>\"\"),\"Y\",\"N\"))))","v":""},{"$f":"IF(OR('Enrollment Form'!$AY421=\"Yes\",'Enrollment Form'!$AY421=\"\"),\"-\",IF(OR(AND('Enrollment Form'!$AY421=\"No\",ISERROR(FIND(\"HMO\",VLOOKUP('Enrollment Form'!G421,'Enrollment Form'!H$11:J$1000,3,FALSE),1))=FALSE,COUNTA('Enrollment Form'!$AZ421:$BC421)=4),AND('Enrollment Form'!$AY421=\"No\",ISERROR(FIND(\"HMO\",VLOOKUP('Enrollment Form'!G421,'Enrollment Form'!H$11:J$1000,3,FALSE),1))=FALSE,COUNTA('Enrollment Form'!$BT421:$BW421)=4)),\"Y\",\"N\"))","v":"-"},{"$f":"IF($B414=\"N\",\"\",IF('Enrollment Form'!$B421=\"Subscriber\",\"-\",IF(COUNTA('Enrollment Form'!$BL421,'Enrollment Form'!$BN421)=2,\"Y\",\"N\")))","v":""},{"$f":"IF($B414=\"N\",\"\",IF(OR('Enrollment Form'!$AX421=\"\",'Enrollment Form'!$AX421=\"No\"),\"-\",IF(AND('Enrollment Form'!$AX421=\"Yes\",COUNTA('Enrollment Form'!$CR421)=1),\"Y\",\"N\")))","v":""},{"$f":"IF(OR('Enrollment Form'!$CR421=\"\",'Enrollment Form'!$CR421=\"No\"),\"-\",IF(COUNTA('Enrollment Form'!$CT421:$CU421)=2,\"Y\",\"N\"))","v":"-"},{"$f":"IF($B414=\"N\",\"\",IF(COUNTIF('Enrollment Form'!$DG421:$DP421,\"Other\")=COUNTA('Enrollment Form'!$DK421,'Enrollment Form'!$DH421,'Enrollment Form'!$DN421,'Enrollment Form'!$DQ421),\"Y\",\"N\"))","v":""},{"$f":"IF($B414=\"N\",\"\",IF(OR('Enrollment Form'!B421<>\"Subscriber\",'Enrollment Form'!C421=\"ROC\",COUNTIF('Enrollment Form'!AV421:AW421,\"Yes\")>=1),\"-\",IF(AND('Enrollment Form'!C421=\"Enroll\",COUNTIF('Enrollment Form'!AV421:AW421,\"No\")=2,'Enrollment Form'!AX421=\"\"),\"N\",\"Y\")))","v":""},{"$f":"IF(OR(B414=\"N\",'Enrollment Form'!B421<>\"Subscriber\",'Enrollment Form'!C421=\"ROC\",'Enrollment Form'!O421<>\"Multiple of Salary\"),\"-\",IF(COUNTA('Enrollment Form'!T421:U421)<2,\"N\",\"Y\"))","v":"-"},{"$f":"IF(B414=\"N\",\"\",IF(OR('Enrollment Form'!C421=\"ROC\",'Enrollment Form'!B421<>\"Subscriber\",'Enrollment Form'!O421=\"Waive\",'Enrollment Form'!O421=\"\"),\"-\",IF('Enrollment Form'!P421=\"\",\"N\",\"Y\")))","v":""},{"$f":"IF($B414=\"N\",\"\",IF(AND('Enrollment Form'!$C421=\"ROC\",'Enrollment Form'!$DR421<>\"\"),\"Y\",IF(AND('Enrollment Form'!$C421=\"ROC\",'Enrollment Form'!$DR421=\"\"),\"N\",IF(AND('Enrollment Form'!$C421=\"Enroll\",'Enrollment Form'!$B421=\"Subscriber\",'Enrollment Form'!$CX421=\"No\",'Enrollment Form'!$DR421=\"\"),\"N\",IF(AND('Enrollment Form'!$C421=\"Enroll\",'Enrollment Form'!$B421=\"Subscriber\",'Enrollment Form'!$CX421=\"Yes\"),\"-\",\"Y\")))))","v":""},{"$f":"IF($B414=\"N\",\"\",IF(AND('Enrollment Form'!$C421=\"ROC\",'Enrollment Form'!$DS421<>\"\"),\"Y\",IF(AND('Enrollment Form'!$C421=\"ROC\",'Enrollment Form'!$DS421=\"\"),\"N\",IF(AND('Enrollment Form'!$C421=\"Enroll\",'Enrollment Form'!$B421=\"Subscriber\",'Enrollment Form'!$CX421=\"No\",'Enrollment Form'!$DS421=\"\"),\"N\",IF(AND('Enrollment Form'!$C421=\"Enroll\",'Enrollment Form'!$B421=\"Subscriber\",'Enrollment Form'!$CX421=\"Yes\"),\"-\",\"Y\")))))","v":""},{"$f":"IF('Enrollment Form'!AH421=\"\",\"\",IF(ISERROR(SEARCH(\".\",'Enrollment Form'!AH421,SEARCH(\"@\",'Enrollment Form'!AH421))),\"N\",\"Y\"))","v":""},{"$f":"IF(OR($B414=\"N\",'Enrollment Form'!$G421=\"\"),\"\",IF('Enrollment Form'!$B421<>\"Subscriber\",\"-\",IF(COUNTIF('Enrollment Form'!$AV421:$AW421,\"Yes\")=2,\"N\",\"Y\")))","v":""},{"$f":"IF(OR('Enrollment Form'!$CJ421=\"\",'Enrollment Form'!$CJ421=\"No\"),\"-\",IF(AND('Enrollment Form'!$CJ421=\"Yes\",'Enrollment Form'!$CK421=\"\"),\"N\",\"Y\"))","v":"-"},{"$f":"IF(OR('Enrollment Form'!$CL421=\"\",'Enrollment Form'!$CL421=\"No\"),\"-\",IF(AND('Enrollment Form'!$CL421=\"Yes\",'Enrollment Form'!$CM421=\"\"),\"N\",\"Y\"))","v":"-"},{"$f":"IF(OR('Enrollment Form'!$CN421=\"\",'Enrollment Form'!$CN421=\"No\"),\"-\",IF(AND('Enrollment Form'!$CN421=\"Yes\",'Enrollment Form'!$CO421=\"\"),\"N\",\"Y\"))","v":"-"},{"$f":"IF(OR('Enrollment Form'!$CN421=\"\",'Enrollment Form'!$CN421=\"No\"),\"-\",IF(AND('Enrollment Form'!$CN421=\"Yes\",'Enrollment Form'!$CP421=\"\"),\"N\",\"Y\"))","v":"-"},{"$f":"IF('Enrollment Form'!B421<>\"Subscriber\",\"-\",IF(AND('Enrollment Form'!B421=\"Subscriber\",'Enrollment Form'!C421=\"Enroll\",'Enrollment Form'!AA421=\"\"),\"N\",\"Y\"))","v":"-"},{"$f":"IF(OR('Enrollment Form'!B421=\"Subscriber\",'Enrollment Form'!B421=\"\"),\"-\",IF('Enrollment Form'!BP421=\"\",\"N\",\"Y\"))","v":"-"},{"$f":"IF('Enrollment Form'!B421<>\"Subscriber\",\"-\",IF(AND('Enrollment Form'!B421=\"Subscriber\",'Enrollment Form'!G421=\"\"),\"N\",\"Y\"))","v":"-"},{"$f":"IF('Enrollment Form'!A421=\"\",\"\",IF('Enrollment Form'!B421=\"Subscriber\",\"-\",IF(AND('Enrollment Form'!B421<>\"Subscriber\",'Enrollment Form'!G421='Enrollment Form'!H421),\"N\",\"Y\")))","v":""},0]
[422,{"$f":"IF('Enrollment Form'!$A422<>\"\",\"Y\",\"N\")","v":"N"},{"$f":"IF(AND('Enrollment Form'!$B422=\"\",'Enrollment Form'!$C422<>\"\"),\"N\",IF($B415=\"N\",\"\",\"Y\"))","v":""},{"$f":"IF(OR($B415=\"N\",'Enrollment Form'!G422=\"\"),\"\",IF('Enrollment Form'!$B422<>\"Subscriber\",\"\",IF('Enrollment Form'!$G422='Enrollment Form'!$H422,\"Y\",\"N\")))","v":""},{"$f":"IF($B415=\"N\",\"\",IF(AND(COUNTIFS('Enrollment Form'!$H$11:$H$1000,'Enrollment Form'!$H422,'Enrollment Form'!$B$11:$B$1000,'Enrollment Form'!$B422)>1,'Enrollment Form'!$H422<>\"\"),\"N\",\"Y\"))","v":""},{"$f":"IF($B415=\"N\",\"\",IF(LEN('Enrollment Form'!$Y422)=0,\"\",IF(LEN('Enrollment Form'!$Y422)<>5,\"N\",\"Y\")))","v":""},{"$f":"IF($B415=\"N\",\"\",IF(LEN('Enrollment Form'!$AD422=0),\"\",IF(LEN('Enrollment Form'!$AD422)<>5,\"N\",\"Y\")))","v":""},{"$f":"IF($B415=\"N\",\"\",IF(LEN('Enrollment Form'!$BS422=0),\"\",IF(LEN('Enrollment Form'!$BS422)<>5,\"N\",\"Y\")))","v":""},{"$f":"IF($B415=\"N\",\"\",IF(LEN('Enrollment Form'!$AE422)=0,\"\",IF(LEN('Enrollment Form'!$AE422)<>10,\"N\",\"Y\")))","v":""},{"$f":"IF($B415=\"N\",\"\",IF(LEN('Enrollment Form'!$AF422)=0,\"\",IF(LEN('Enrollment Form'!$AF422)<>10,\"N\",\"Y\")))","v":""},{"$f":"IF('Enrollment Form'!$O422<>\"Graded\",\"-\",IF(AND('Enrollment Form'!$O422=\"Graded\",'Enrollment Form'!$AR422<>\"\"),\"Y\",\"N\"))","v":"-"},{"$f":"IF($B415=\"N\",\"\",IF(OR('Enrollment Form'!$B422<>\"Subscriber\",'Enrollment Form'!$C422=\"ROC\"),\"-\",IF(AND('Enrollment Form'!$B422=\"Subscriber\",'Enrollment Form'!$C422=\"Enroll\",'Enrollment Form'!$AJ422<>\"\"),\"Y\",\"N\")))","v":""},{"$f":"IF($B415=\"N\",\"\",IF(OR('Enrollment Form'!$B422<>\"Subscriber\",'Enrollment Form'!$C422=\"ROC\"),\"-\",IF(AND('Enrollment Form'!$B422=\"Subscriber\",'Enrollment Form'!$C422=\"Enroll\",'Enrollment Form'!$AK422<>\"\"),\"Y\",\"N\")))","v":""},{"$f":"IF($B415=\"N\",\"\",IF(OR('Enrollment Form'!$B422<>\"Subscriber\",'Enrollment Form'!$C422=\"ROC\"),\"-\",IF(AND('Enrollment Form'!$B422=\"Subscriber\",'Enrollment Form'!$C422=\"Enroll\",'Enrollment Form'!$AL422<>\"\"),\"Y\",\"N\")))","v":""},{"$f":"IF($B415=\"N\",\"\",IF(OR('Enrollment Form'!$B422<>\"Subscriber\",'Enrollment Form'!$C422=\"ROC\"),\"-\",IF(AND('Enrollment Form'!$B422=\"Subscriber\",'Enrollment Form'!$C422=\"Enroll\",'Enrollment Form'!$AP422<>\"\"),\"Y\",\"N\")))","v":""},{"$f":"IF($B415=\"N\",\"\",IF(OR('Enrollment Form'!$B422<>\"Subscriber\",'Enrollment Form'!$C422=\"ROC\"),\"-\",IF(AND('Enrollment Form'!$B422=\"Subscriber\",'Enrollment Form'!$C422=\"Enroll\",'Enrollment Form'!$AQ422<>\"\"),\"Y\",\"N\")))","v":""},{"$f":"IF($B415=\"N\",\"\",IF(OR('Enrollment Form'!$B422<>\"Subscriber\",'Enrollment Form'!$C422=\"ROC\"),\"-\",IF(AND('Enrollment Form'!$B422=\"Subscriber\",'Enrollment Form'!$C422=\"Enroll\",'Enrollment Form'!$AS422<>\"\"),\"Y\",\"N\")))","v":""},{"$f":"IF($B415=\"N\",\"\",IF($Q415=\"-\",\"-\",IF(AND($Q415=\"Y\",'Enrollment Form'!$AS422=\"No\"),\"-\",IF(AND($Q415=\"Y\",'Enrollment Form'!$AS422=\"Yes\",'Enrollment Form'!$AT422<>\"\"),\"Y\",\"N\"))))","v":""},{"$f":"IF($B415=\"N\",\"\",IF(OR('Enrollment Form'!$B422<>\"Subscriber\",'Enrollment Form'!$C422=\"ROC\"),\"-\",IF(AND('Enrollment Form'!$B422=\"Subscriber\",'Enrollment Form'!$C422=\"Enroll\",'Enrollment Form'!$CV422<>\"\"),\"Y\",\"N\")))","v":""},{"$f":"IF($B415=\"N\",\"\",IF($S415=\"-\",\"-\",IF(AND($S415=\"Y\",'Enrollment Form'!$CV422=\"No\"),\"-\",IF(AND($S415=\"Y\",'Enrollment Form'!$CV422=\"Yes\",'Enrollment Form'!$CW422<>\"\"),\"Y\",\"N\"))))","v":""},{"$f":"IF(OR('Enrollment Form'!$AY422=\"Yes\",'Enrollment Form'!$AY422=\"\"),\"-\",IF(OR(AND('Enrollment Form'!$AY422=\"No\",ISERROR(FIND(\"HMO\",VLOOKUP('Enrollment Form'!G422,'Enrollment Form'!H$11:J$1000,3,FALSE),1))=FALSE,COUNTA('Enrollment Form'!$AZ422:$BC422)=4),AND('Enrollment Form'!$AY422=\"No\",ISERROR(FIND(\"HMO\",VLOOKUP('Enrollment Form'!G422,'Enrollment Form'!H$11:J$1000,3,FALSE),1))=FALSE,COUNTA('Enrollment Form'!$BT422:$BW422)=4)),\"Y\",\"N\"))","v":"-"},{"$f":"IF($B415=\"N\",\"\",IF('Enrollment Form'!$B422=\"Subscriber\",\"-\",IF(COUNTA('Enrollment Form'!$BL422,'Enrollment Form'!$BN422)=2,\"Y\",\"N\")))","v":""},{"$f":"IF($B415=\"N\",\"\",IF(OR('Enrollment Form'!$AX422=\"\",'Enrollment Form'!$AX422=\"No\"),\"-\",IF(AND('Enrollment Form'!$AX422=\"Yes\",COUNTA('Enrollment Form'!$CR422)=1),\"Y\",\"N\")))","v":""},{"$f":"IF(OR('Enrollment Form'!$CR422=\"\",'Enrollment Form'!$CR422=\"No\"),\"-\",IF(COUNTA('Enrollment Form'!$CT422:$CU422)=2,\"Y\",\"N\"))","v":"-"},{"$f":"IF($B415=\"N\",\"\",IF(COUNTIF('Enrollment Form'!$DG422:$DP422,\"Other\")=COUNTA('Enrollment Form'!$DK422,'Enrollment Form'!$DH422,'Enrollment Form'!$DN422,'Enrollment Form'!$DQ422),\"Y\",\"N\"))","v":""},{"$f":"IF($B415=\"N\",\"\",IF(OR('Enrollment Form'!B422<>\"Subscriber\",'Enrollment Form'!C422=\"ROC\",COUNTIF('Enrollment Form'!AV422:AW422,\"Yes\")>=1),\"-\",IF(AND('Enrollment Form'!C422=\"Enroll\",COUNTIF('Enrollment Form'!AV422:AW422,\"No\")=2,'Enrollment Form'!AX422=\"\"),\"N\",\"Y\")))","v":""},{"$f":"IF(OR(B415=\"N\",'Enrollment Form'!B422<>\"Subscriber\",'Enrollment Form'!C422=\"ROC\",'Enrollment Form'!O422<>\"Multiple of Salary\"),\"-\",IF(COUNTA('Enrollment Form'!T422:U422)<2,\"N\",\"Y\"))","v":"-"},{"$f":"IF(B415=\"N\",\"\",IF(OR('Enrollment Form'!C422=\"ROC\",'Enrollment Form'!B422<>\"Subscriber\",'Enrollment Form'!O422=\"Waive\",'Enrollment Form'!O422=\"\"),\"-\",IF('Enrollment Form'!P422=\"\",\"N\",\"Y\")))","v":""},{"$f":"IF($B415=\"N\",\"\",IF(AND('Enrollment Form'!$C422=\"ROC\",'Enrollment Form'!$DR422<>\"\"),\"Y\",IF(AND('Enrollment Form'!$C422=\"ROC\",'Enrollment Form'!$DR422=\"\"),\"N\",IF(AND('Enrollment Form'!$C422=\"Enroll\",'Enrollment Form'!$B422=\"Subscriber\",'Enrollment Form'!$CX422=\"No\",'Enrollment Form'!$DR422=\"\"),\"N\",IF(AND('Enrollment Form'!$C422=\"Enroll\",'Enrollment Form'!$B422=\"Subscriber\",'Enrollment Form'!$CX422=\"Yes\"),\"-\",\"Y\")))))","v":""},{"$f":"IF($B415=\"N\",\"\",IF(AND('Enrollment Form'!$C422=\"ROC\",'Enrollment Form'!$DS422<>\"\"),\"Y\",IF(AND('Enrollment Form'!$C422=\"ROC\",'Enrollment Form'!$DS422=\"\"),\"N\",IF(AND('Enrollment Form'!$C422=\"Enroll\",'Enrollment Form'!$B422=\"Subscriber\",'Enrollment Form'!$CX422=\"No\",'Enrollment Form'!$DS422=\"\"),\"N\",IF(AND('Enrollment Form'!$C422=\"Enroll\",'Enrollment Form'!$B422=\"Subscriber\",'Enrollment Form'!$CX422=\"Yes\"),\"-\",\"Y\")))))","v":""},{"$f":"IF('Enrollment Form'!AH422=\"\",\"\",IF(ISERROR(SEARCH(\".\",'Enrollment Form'!AH422,SEARCH(\"@\",'Enrollment Form'!AH422))),\"N\",\"Y\"))","v":""},{"$f":"IF(OR($B415=\"N\",'Enrollment Form'!$G422=\"\"),\"\",IF('Enrollment Form'!$B422<>\"Subscriber\",\"-\",IF(COUNTIF('Enrollment Form'!$AV422:$AW422,\"Yes\")=2,\"N\",\"Y\")))","v":""},{"$f":"IF(OR('Enrollment Form'!$CJ422=\"\",'Enrollment Form'!$CJ422=\"No\"),\"-\",IF(AND('Enrollment Form'!$CJ422=\"Yes\",'Enrollment Form'!$CK422=\"\"),\"N\",\"Y\"))","v":"-"},{"$f":"IF(OR('Enrollment Form'!$CL422=\"\",'Enrollment Form'!$CL422=\"No\"),\"-\",IF(AND('Enrollment Form'!$CL422=\"Yes\",'Enrollment Form'!$CM422=\"\"),\"N\",\"Y\"))","v":"-"},{"$f":"IF(OR('Enrollment Form'!$CN422=\"\",'Enrollment Form'!$CN422=\"No\"),\"-\",IF(AND('Enrollment Form'!$CN422=\"Yes\",'Enrollment Form'!$CO422=\"\"),\"N\",\"Y\"))","v":"-"},{"$f":"IF(OR('Enrollment Form'!$CN422=\"\",'Enrollment Form'!$CN422=\"No\"),\"-\",IF(AND('Enrollment Form'!$CN422=\"Yes\",'Enrollment Form'!$CP422=\"\"),\"N\",\"Y\"))","v":"-"},{"$f":"IF('Enrollment Form'!B422<>\"Subscriber\",\"-\",IF(AND('Enrollment Form'!B422=\"Subscriber\",'Enrollment Form'!C422=\"Enroll\",'Enrollment Form'!AA422=\"\"),\"N\",\"Y\"))","v":"-"},{"$f":"IF(OR('Enrollment Form'!B422=\"Subscriber\",'Enrollment Form'!B422=\"\"),\"-\",IF('Enrollment Form'!BP422=\"\",\"N\",\"Y\"))","v":"-"},{"$f":"IF('Enrollment Form'!B422<>\"Subscriber\",\"-\",IF(AND('Enrollment Form'!B422=\"Subscriber\",'Enrollment Form'!G422=\"\"),\"N\",\"Y\"))","v":"-"},{"$f":"IF('Enrollment Form'!A422=\"\",\"\",IF('Enrollment Form'!B422=\"Subscriber\",\"-\",IF(AND('Enrollment Form'!B422<>\"Subscriber\",'Enrollment Form'!G422='Enrollment Form'!H422),\"N\",\"Y\")))","v":""},0]
[423,{"$f":"IF('Enrollment Form'!$A423<>\"\",\"Y\",\"N\")","v":"N"},{"$f":"IF(AND('Enrollment Form'!$B423=\"\",'Enrollment Form'!$C423<>\"\"),\"N\",IF($B416=\"N\",\"\",\"Y\"))","v":""},{"$f":"IF(OR($B416=\"N\",'Enrollment Form'!G423=\"\"),\"\",IF('Enrollment Form'!$B423<>\"Subscriber\",\"\",IF('Enrollment Form'!$G423='Enrollment Form'!$H423,\"Y\",\"N\")))","v":""},{"$f":"IF($B416=\"N\",\"\",IF(AND(COUNTIFS('Enrollment Form'!$H$11:$H$1000,'Enrollment Form'!$H423,'Enrollment Form'!$B$11:$B$1000,'Enrollment Form'!$B423)>1,'Enrollment Form'!$H423<>\"\"),\"N\",\"Y\"))","v":""},{"$f":"IF($B416=\"N\",\"\",IF(LEN('Enrollment Form'!$Y423)=0,\"\",IF(LEN('Enrollment Form'!$Y423)<>5,\"N\",\"Y\")))","v":""},{"$f":"IF($B416=\"N\",\"\",IF(LEN('Enrollment Form'!$AD423=0),\"\",IF(LEN('Enrollment Form'!$AD423)<>5,\"N\",\"Y\")))","v":""},{"$f":"IF($B416=\"N\",\"\",IF(LEN('Enrollment Form'!$BS423=0),\"\",IF(LEN('Enrollment Form'!$BS423)<>5,\"N\",\"Y\")))","v":""},{"$f":"IF($B416=\"N\",\"\",IF(LEN('Enrollment Form'!$AE423)=0,\"\",IF(LEN('Enrollment Form'!$AE423)<>10,\"N\",\"Y\")))","v":""},{"$f":"IF($B416=\"N\",\"\",IF(LEN('Enrollment Form'!$AF423)=0,\"\",IF(LEN('Enrollment Form'!$AF423)<>10,\"N\",\"Y\")))","v":""},{"$f":"IF('Enrollment Form'!$O423<>\"Graded\",\"-\",IF(AND('Enrollment Form'!$O423=\"Graded\",'Enrollment Form'!$AR423<>\"\"),\"Y\",\"N\"))","v":"-"},{"$f":"IF($B416=\"N\",\"\",IF(OR('Enrollment Form'!$B423<>\"Subscriber\",'Enrollment Form'!$C423=\"ROC\"),\"-\",IF(AND('Enrollment Form'!$B423=\"Subscriber\",'Enrollment Form'!$C423=\"Enroll\",'Enrollment Form'!$AJ423<>\"\"),\"Y\",\"N\")))","v":""},{"$f":"IF($B416=\"N\",\"\",IF(OR('Enrollment Form'!$B423<>\"Subscriber\",'Enrollment Form'!$C423=\"ROC\"),\"-\",IF(AND('Enrollment Form'!$B423=\"Subscriber\",'Enrollment Form'!$C423=\"Enroll\",'Enrollment Form'!$AK423<>\"\"),\"Y\",\"N\")))","v":""},{"$f":"IF($B416=\"N\",\"\",IF(OR('Enrollment Form'!$B423<>\"Subscriber\",'Enrollment Form'!$C423=\"ROC\"),\"-\",IF(AND('Enrollment Form'!$B423=\"Subscriber\",'Enrollment Form'!$C423=\"Enroll\",'Enrollment Form'!$AL423<>\"\"),\"Y\",\"N\")))","v":""},{"$f":"IF($B416=\"N\",\"\",IF(OR('Enrollment Form'!$B423<>\"Subscriber\",'Enrollment Form'!$C423=\"ROC\"),\"-\",IF(AND('Enrollment Form'!$B423=\"Subscriber\",'Enrollment Form'!$C423=\"Enroll\",'Enrollment Form'!$AP423<>\"\"),\"Y\",\"N\")))","v":""},{"$f":"IF($B416=\"N\",\"\",IF(OR('Enrollment Form'!$B423<>\"Subscriber\",'Enrollment Form'!$C423=\"ROC\"),\"-\",IF(AND('Enrollment Form'!$B423=\"Subscriber\",'Enrollment Form'!$C423=\"Enroll\",'Enrollment Form'!$AQ423<>\"\"),\"Y\",\"N\")))","v":""},{"$f":"IF($B416=\"N\",\"\",IF(OR('Enrollment Form'!$B423<>\"Subscriber\",'Enrollment Form'!$C423=\"ROC\"),\"-\",IF(AND('Enrollment Form'!$B423=\"Subscriber\",'Enrollment Form'!$C423=\"Enroll\",'Enrollment Form'!$AS423<>\"\"),\"Y\",\"N\")))","v":""},{"$f":"IF($B416=\"N\",\"\",IF($Q416=\"-\",\"-\",IF(AND($Q416=\"Y\",'Enrollment Form'!$AS423=\"No\"),\"-\",IF(AND($Q416=\"Y\",'Enrollment Form'!$AS423=\"Yes\",'Enrollment Form'!$AT423<>\"\"),\"Y\",\"N\"))))","v":""},{"$f":"IF($B416=\"N\",\"\",IF(OR('Enrollment Form'!$B423<>\"Subscriber\",'Enrollment Form'!$C423=\"ROC\"),\"-\",IF(AND('Enrollment Form'!$B423=\"Subscriber\",'Enrollment Form'!$C423=\"Enroll\",'Enrollment Form'!$CV423<>\"\"),\"Y\",\"N\")))","v":""},{"$f":"IF($B416=\"N\",\"\",IF($S416=\"-\",\"-\",IF(AND($S416=\"Y\",'Enrollment Form'!$CV423=\"No\"),\"-\",IF(AND($S416=\"Y\",'Enrollment Form'!$CV423=\"Yes\",'Enrollment Form'!$CW423<>\"\"),\"Y\",\"N\"))))","v":""},{"$f":"IF(OR('Enrollment Form'!$AY423=\"Yes\",'Enrollment Form'!$AY423=\"\"),\"-\",IF(OR(AND('Enrollment Form'!$AY423=\"No\",ISERROR(FIND(\"HMO\",VLOOKUP('Enrollment Form'!G423,'Enrollment Form'!H$11:J$1000,3,FALSE),1))=FALSE,COUNTA('Enrollment Form'!$AZ423:$BC423)=4),AND('Enrollment Form'!$AY423=\"No\",ISERROR(FIND(\"HMO\",VLOOKUP('Enrollment Form'!G423,'Enrollment Form'!H$11:J$1000,3,FALSE),1))=FALSE,COUNTA('Enrollment Form'!$BT423:$BW423)=4)),\"Y\",\"N\"))","v":"-"},{"$f":"IF($B416=\"N\",\"\",IF('Enrollment Form'!$B423=\"Subscriber\",\"-\",IF(COUNTA('Enrollment Form'!$BL423,'Enrollment Form'!$BN423)=2,\"Y\",\"N\")))","v":""},{"$f":"IF($B416=\"N\",\"\",IF(OR('Enrollment Form'!$AX423=\"\",'Enrollment Form'!$AX423=\"No\"),\"-\",IF(AND('Enrollment Form'!$AX423=\"Yes\",COUNTA('Enrollment Form'!$CR423)=1),\"Y\",\"N\")))","v":""},{"$f":"IF(OR('Enrollment Form'!$CR423=\"\",'Enrollment Form'!$CR423=\"No\"),\"-\",IF(COUNTA('Enrollment Form'!$CT423:$CU423)=2,\"Y\",\"N\"))","v":"-"},{"$f":"IF($B416=\"N\",\"\",IF(COUNTIF('Enrollment Form'!$DG423:$DP423,\"Other\")=COUNTA('Enrollment Form'!$DK423,'Enrollment Form'!$DH423,'Enrollment Form'!$DN423,'Enrollment Form'!$DQ423),\"Y\",\"N\"))","v":""},{"$f":"IF($B416=\"N\",\"\",IF(OR('Enrollment Form'!B423<>\"Subscriber\",'Enrollment Form'!C423=\"ROC\",COUNTIF('Enrollment Form'!AV423:AW423,\"Yes\")>=1),\"-\",IF(AND('Enrollment Form'!C423=\"Enroll\",COUNTIF('Enrollment Form'!AV423:AW423,\"No\")=2,'Enrollment Form'!AX423=\"\"),\"N\",\"Y\")))","v":""},{"$f":"IF(OR(B416=\"N\",'Enrollment Form'!B423<>\"Subscriber\",'Enrollment Form'!C423=\"ROC\",'Enrollment Form'!O423<>\"Multiple of Salary\"),\"-\",IF(COUNTA('Enrollment Form'!T423:U423)<2,\"N\",\"Y\"))","v":"-"},{"$f":"IF(B416=\"N\",\"\",IF(OR('Enrollment Form'!C423=\"ROC\",'Enrollment Form'!B423<>\"Subscriber\",'Enrollment Form'!O423=\"Waive\",'Enrollment Form'!O423=\"\"),\"-\",IF('Enrollment Form'!P423=\"\",\"N\",\"Y\")))","v":""},{"$f":"IF($B416=\"N\",\"\",IF(AND('Enrollment Form'!$C423=\"ROC\",'Enrollment Form'!$DR423<>\"\"),\"Y\",IF(AND('Enrollment Form'!$C423=\"ROC\",'Enrollment Form'!$DR423=\"\"),\"N\",IF(AND('Enrollment Form'!$C423=\"Enroll\",'Enrollment Form'!$B423=\"Subscriber\",'Enrollment Form'!$CX423=\"No\",'Enrollment Form'!$DR423=\"\"),\"N\",IF(AND('Enrollment Form'!$C423=\"Enroll\",'Enrollment Form'!$B423=\"Subscriber\",'Enrollment Form'!$CX423=\"Yes\"),\"-\",\"Y\")))))","v":""},{"$f":"IF($B416=\"N\",\"\",IF(AND('Enrollment Form'!$C423=\"ROC\",'Enrollment Form'!$DS423<>\"\"),\"Y\",IF(AND('Enrollment Form'!$C423=\"ROC\",'Enrollment Form'!$DS423=\"\"),\"N\",IF(AND('Enrollment Form'!$C423=\"Enroll\",'Enrollment Form'!$B423=\"Subscriber\",'Enrollment Form'!$CX423=\"No\",'Enrollment Form'!$DS423=\"\"),\"N\",IF(AND('Enrollment Form'!$C423=\"Enroll\",'Enrollment Form'!$B423=\"Subscriber\",'Enrollment Form'!$CX423=\"Yes\"),\"-\",\"Y\")))))","v":""},{"$f":"IF('Enrollment Form'!AH423=\"\",\"\",IF(ISERROR(SEARCH(\".\",'Enrollment Form'!AH423,SEARCH(\"@\",'Enrollment Form'!AH423))),\"N\",\"Y\"))","v":""},{"$f":"IF(OR($B416=\"N\",'Enrollment Form'!$G423=\"\"),\"\",IF('Enrollment Form'!$B423<>\"Subscriber\",\"-\",IF(COUNTIF('Enrollment Form'!$AV423:$AW423,\"Yes\")=2,\"N\",\"Y\")))","v":""},{"$f":"IF(OR('Enrollment Form'!$CJ423=\"\",'Enrollment Form'!$CJ423=\"No\"),\"-\",IF(AND('Enrollment Form'!$CJ423=\"Yes\",'Enrollment Form'!$CK423=\"\"),\"N\",\"Y\"))","v":"-"},{"$f":"IF(OR('Enrollment Form'!$CL423=\"\",'Enrollment Form'!$CL423=\"No\"),\"-\",IF(AND('Enrollment Form'!$CL423=\"Yes\",'Enrollment Form'!$CM423=\"\"),\"N\",\"Y\"))","v":"-"},{"$f":"IF(OR('Enrollment Form'!$CN423=\"\",'Enrollment Form'!$CN423=\"No\"),\"-\",IF(AND('Enrollment Form'!$CN423=\"Yes\",'Enrollment Form'!$CO423=\"\"),\"N\",\"Y\"))","v":"-"},{"$f":"IF(OR('Enrollment Form'!$CN423=\"\",'Enrollment Form'!$CN423=\"No\"),\"-\",IF(AND('Enrollment Form'!$CN423=\"Yes\",'Enrollment Form'!$CP423=\"\"),\"N\",\"Y\"))","v":"-"},{"$f":"IF('Enrollment Form'!B423<>\"Subscriber\",\"-\",IF(AND('Enrollment Form'!B423=\"Subscriber\",'Enrollment Form'!C423=\"Enroll\",'Enrollment Form'!AA423=\"\"),\"N\",\"Y\"))","v":"-"},{"$f":"IF(OR('Enrollment Form'!B423=\"Subscriber\",'Enrollment Form'!B423=\"\"),\"-\",IF('Enrollment Form'!BP423=\"\",\"N\",\"Y\"))","v":"-"},{"$f":"IF('Enrollment Form'!B423<>\"Subscriber\",\"-\",IF(AND('Enrollment Form'!B423=\"Subscriber\",'Enrollment Form'!G423=\"\"),\"N\",\"Y\"))","v":"-"},{"$f":"IF('Enrollment Form'!A423=\"\",\"\",IF('Enrollment Form'!B423=\"Subscriber\",\"-\",IF(AND('Enrollment Form'!B423<>\"Subscriber\",'Enrollment Form'!G423='Enrollment Form'!H423),\"N\",\"Y\")))","v":""},0]
[424,{"$f":"IF('Enrollment Form'!$A424<>\"\",\"Y\",\"N\")","v":"N"},{"$f":"IF(AND('Enrollment Form'!$B424=\"\",'Enrollment Form'!$C424<>\"\"),\"N\",IF($B417=\"N\",\"\",\"Y\"))","v":""},{"$f":"IF(OR($B417=\"N\",'Enrollment Form'!G424=\"\"),\"\",IF('Enrollment Form'!$B424<>\"Subscriber\",\"\",IF('Enrollment Form'!$G424='Enrollment Form'!$H424,\"Y\",\"N\")))","v":""},{"$f":"IF($B417=\"N\",\"\",IF(AND(COUNTIFS('Enrollment Form'!$H$11:$H$1000,'Enrollment Form'!$H424,'Enrollment Form'!$B$11:$B$1000,'Enrollment Form'!$B424)>1,'Enrollment Form'!$H424<>\"\"),\"N\",\"Y\"))","v":""},{"$f":"IF($B417=\"N\",\"\",IF(LEN('Enrollment Form'!$Y424)=0,\"\",IF(LEN('Enrollment Form'!$Y424)<>5,\"N\",\"Y\")))","v":""},{"$f":"IF($B417=\"N\",\"\",IF(LEN('Enrollment Form'!$AD424=0),\"\",IF(LEN('Enrollment Form'!$AD424)<>5,\"N\",\"Y\")))","v":""},{"$f":"IF($B417=\"N\",\"\",IF(LEN('Enrollment Form'!$BS424=0),\"\",IF(LEN('Enrollment Form'!$BS424)<>5,\"N\",\"Y\")))","v":""},{"$f":"IF($B417=\"N\",\"\",IF(LEN('Enrollment Form'!$AE424)=0,\"\",IF(LEN('Enrollment Form'!$AE424)<>10,\"N\",\"Y\")))","v":""},{"$f":"IF($B417=\"N\",\"\",IF(LEN('Enrollment Form'!$AF424)=0,\"\",IF(LEN('Enrollment Form'!$AF424)<>10,\"N\",\"Y\")))","v":""},{"$f":"IF('Enrollment Form'!$O424<>\"Graded\",\"-\",IF(AND('Enrollment Form'!$O424=\"Graded\",'Enrollment Form'!$AR424<>\"\"),\"Y\",\"N\"))","v":"-"},{"$f":"IF($B417=\"N\",\"\",IF(OR('Enrollment Form'!$B424<>\"Subscriber\",'Enrollment Form'!$C424=\"ROC\"),\"-\",IF(AND('Enrollment Form'!$B424=\"Subscriber\",'Enrollment Form'!$C424=\"Enroll\",'Enrollment Form'!$AJ424<>\"\"),\"Y\",\"N\")))","v":""},{"$f":"IF($B417=\"N\",\"\",IF(OR('Enrollment Form'!$B424<>\"Subscriber\",'Enrollment Form'!$C424=\"ROC\"),\"-\",IF(AND('Enrollment Form'!$B424=\"Subscriber\",'Enrollment Form'!$C424=\"Enroll\",'Enrollment Form'!$AK424<>\"\"),\"Y\",\"N\")))","v":""},{"$f":"IF($B417=\"N\",\"\",IF(OR('Enrollment Form'!$B424<>\"Subscriber\",'Enrollment Form'!$C424=\"ROC\"),\"-\",IF(AND('Enrollment Form'!$B424=\"Subscriber\",'Enrollment Form'!$C424=\"Enroll\",'Enrollment Form'!$AL424<>\"\"),\"Y\",\"N\")))","v":""},{"$f":"IF($B417=\"N\",\"\",IF(OR('Enrollment Form'!$B424<>\"Subscriber\",'Enrollment Form'!$C424=\"ROC\"),\"-\",IF(AND('Enrollment Form'!$B424=\"Subscriber\",'Enrollment Form'!$C424=\"Enroll\",'Enrollment Form'!$AP424<>\"\"),\"Y\",\"N\")))","v":""},{"$f":"IF($B417=\"N\",\"\",IF(OR('Enrollment Form'!$B424<>\"Subscriber\",'Enrollment Form'!$C424=\"ROC\"),\"-\",IF(AND('Enrollment Form'!$B424=\"Subscriber\",'Enrollment Form'!$C424=\"Enroll\",'Enrollment Form'!$AQ424<>\"\"),\"Y\",\"N\")))","v":""},{"$f":"IF($B417=\"N\",\"\",IF(OR('Enrollment Form'!$B424<>\"Subscriber\",'Enrollment Form'!$C424=\"ROC\"),\"-\",IF(AND('Enrollment Form'!$B424=\"Subscriber\",'Enrollment Form'!$C424=\"Enroll\",'Enrollment Form'!$AS424<>\"\"),\"Y\",\"N\")))","v":""},{"$f":"IF($B417=\"N\",\"\",IF($Q417=\"-\",\"-\",IF(AND($Q417=\"Y\",'Enrollment Form'!$AS424=\"No\"),\"-\",IF(AND($Q417=\"Y\",'Enrollment Form'!$AS424=\"Yes\",'Enrollment Form'!$AT424<>\"\"),\"Y\",\"N\"))))","v":""},{"$f":"IF($B417=\"N\",\"\",IF(OR('Enrollment Form'!$B424<>\"Subscriber\",'Enrollment Form'!$C424=\"ROC\"),\"-\",IF(AND('Enrollment Form'!$B424=\"Subscriber\",'Enrollment Form'!$C424=\"Enroll\",'Enrollment Form'!$CV424<>\"\"),\"Y\",\"N\")))","v":""},{"$f":"IF($B417=\"N\",\"\",IF($S417=\"-\",\"-\",IF(AND($S417=\"Y\",'Enrollment Form'!$CV424=\"No\"),\"-\",IF(AND($S417=\"Y\",'Enrollment Form'!$CV424=\"Yes\",'Enrollment Form'!$CW424<>\"\"),\"Y\",\"N\"))))","v":""},{"$f":"IF(OR('Enrollment Form'!$AY424=\"Yes\",'Enrollment Form'!$AY424=\"\"),\"-\",IF(OR(AND('Enrollment Form'!$AY424=\"No\",ISERROR(FIND(\"HMO\",VLOOKUP('Enrollment Form'!G424,'Enrollment Form'!H$11:J$1000,3,FALSE),1))=FALSE,COUNTA('Enrollment Form'!$AZ424:$BC424)=4),AND('Enrollment Form'!$AY424=\"No\",ISERROR(FIND(\"HMO\",VLOOKUP('Enrollment Form'!G424,'Enrollment Form'!H$11:J$1000,3,FALSE),1))=FALSE,COUNTA('Enrollment Form'!$BT424:$BW424)=4)),\"Y\",\"N\"))","v":"-"},{"$f":"IF($B417=\"N\",\"\",IF('Enrollment Form'!$B424=\"Subscriber\",\"-\",IF(COUNTA('Enrollment Form'!$BL424,'Enrollment Form'!$BN424)=2,\"Y\",\"N\")))","v":""},{"$f":"IF($B417=\"N\",\"\",IF(OR('Enrollment Form'!$AX424=\"\",'Enrollment Form'!$AX424=\"No\"),\"-\",IF(AND('Enrollment Form'!$AX424=\"Yes\",COUNTA('Enrollment Form'!$CR424)=1),\"Y\",\"N\")))","v":""},{"$f":"IF(OR('Enrollment Form'!$CR424=\"\",'Enrollment Form'!$CR424=\"No\"),\"-\",IF(COUNTA('Enrollment Form'!$CT424:$CU424)=2,\"Y\",\"N\"))","v":"-"},{"$f":"IF($B417=\"N\",\"\",IF(COUNTIF('Enrollment Form'!$DG424:$DP424,\"Other\")=COUNTA('Enrollment Form'!$DK424,'Enrollment Form'!$DH424,'Enrollment Form'!$DN424,'Enrollment Form'!$DQ424),\"Y\",\"N\"))","v":""},{"$f":"IF($B417=\"N\",\"\",IF(OR('Enrollment Form'!B424<>\"Subscriber\",'Enrollment Form'!C424=\"ROC\",COUNTIF('Enrollment Form'!AV424:AW424,\"Yes\")>=1),\"-\",IF(AND('Enrollment Form'!C424=\"Enroll\",COUNTIF('Enrollment Form'!AV424:AW424,\"No\")=2,'Enrollment Form'!AX424=\"\"),\"N\",\"Y\")))","v":""},{"$f":"IF(OR(B417=\"N\",'Enrollment Form'!B424<>\"Subscriber\",'Enrollment Form'!C424=\"ROC\",'Enrollment Form'!O424<>\"Multiple of Salary\"),\"-\",IF(COUNTA('Enrollment Form'!T424:U424)<2,\"N\",\"Y\"))","v":"-"},{"$f":"IF(B417=\"N\",\"\",IF(OR('Enrollment Form'!C424=\"ROC\",'Enrollment Form'!B424<>\"Subscriber\",'Enrollment Form'!O424=\"Waive\",'Enrollment Form'!O424=\"\"),\"-\",IF('Enrollment Form'!P424=\"\",\"N\",\"Y\")))","v":""},{"$f":"IF($B417=\"N\",\"\",IF(AND('Enrollment Form'!$C424=\"ROC\",'Enrollment Form'!$DR424<>\"\"),\"Y\",IF(AND('Enrollment Form'!$C424=\"ROC\",'Enrollment Form'!$DR424=\"\"),\"N\",IF(AND('Enrollment Form'!$C424=\"Enroll\",'Enrollment Form'!$B424=\"Subscriber\",'Enrollment Form'!$CX424=\"No\",'Enrollment Form'!$DR424=\"\"),\"N\",IF(AND('Enrollment Form'!$C424=\"Enroll\",'Enrollment Form'!$B424=\"Subscriber\",'Enrollment Form'!$CX424=\"Yes\"),\"-\",\"Y\")))))","v":""},{"$f":"IF($B417=\"N\",\"\",IF(AND('Enrollment Form'!$C424=\"ROC\",'Enrollment Form'!$DS424<>\"\"),\"Y\",IF(AND('Enrollment Form'!$C424=\"ROC\",'Enrollment Form'!$DS424=\"\"),\"N\",IF(AND('Enrollment Form'!$C424=\"Enroll\",'Enrollment Form'!$B424=\"Subscriber\",'Enrollment Form'!$CX424=\"No\",'Enrollment Form'!$DS424=\"\"),\"N\",IF(AND('Enrollment Form'!$C424=\"Enroll\",'Enrollment Form'!$B424=\"Subscriber\",'Enrollment Form'!$CX424=\"Yes\"),\"-\",\"Y\")))))","v":""},{"$f":"IF('Enrollment Form'!AH424=\"\",\"\",IF(ISERROR(SEARCH(\".\",'Enrollment Form'!AH424,SEARCH(\"@\",'Enrollment Form'!AH424))),\"N\",\"Y\"))","v":""},{"$f":"IF(OR($B417=\"N\",'Enrollment Form'!$G424=\"\"),\"\",IF('Enrollment Form'!$B424<>\"Subscriber\",\"-\",IF(COUNTIF('Enrollment Form'!$AV424:$AW424,\"Yes\")=2,\"N\",\"Y\")))","v":""},{"$f":"IF(OR('Enrollment Form'!$CJ424=\"\",'Enrollment Form'!$CJ424=\"No\"),\"-\",IF(AND('Enrollment Form'!$CJ424=\"Yes\",'Enrollment Form'!$CK424=\"\"),\"N\",\"Y\"))","v":"-"},{"$f":"IF(OR('Enrollment Form'!$CL424=\"\",'Enrollment Form'!$CL424=\"No\"),\"-\",IF(AND('Enrollment Form'!$CL424=\"Yes\",'Enrollment Form'!$CM424=\"\"),\"N\",\"Y\"))","v":"-"},{"$f":"IF(OR('Enrollment Form'!$CN424=\"\",'Enrollment Form'!$CN424=\"No\"),\"-\",IF(AND('Enrollment Form'!$CN424=\"Yes\",'Enrollment Form'!$CO424=\"\"),\"N\",\"Y\"))","v":"-"},{"$f":"IF(OR('Enrollment Form'!$CN424=\"\",'Enrollment Form'!$CN424=\"No\"),\"-\",IF(AND('Enrollment Form'!$CN424=\"Yes\",'Enrollment Form'!$CP424=\"\"),\"N\",\"Y\"))","v":"-"},{"$f":"IF('Enrollment Form'!B424<>\"Subscriber\",\"-\",IF(AND('Enrollment Form'!B424=\"Subscriber\",'Enrollment Form'!C424=\"Enroll\",'Enrollment Form'!AA424=\"\"),\"N\",\"Y\"))","v":"-"},{"$f":"IF(OR('Enrollment Form'!B424=\"Subscriber\",'Enrollment Form'!B424=\"\"),\"-\",IF('Enrollment Form'!BP424=\"\",\"N\",\"Y\"))","v":"-"},{"$f":"IF('Enrollment Form'!B424<>\"Subscriber\",\"-\",IF(AND('Enrollment Form'!B424=\"Subscriber\",'Enrollment Form'!G424=\"\"),\"N\",\"Y\"))","v":"-"},{"$f":"IF('Enrollment Form'!A424=\"\",\"\",IF('Enrollment Form'!B424=\"Subscriber\",\"-\",IF(AND('Enrollment Form'!B424<>\"Subscriber\",'Enrollment Form'!G424='Enrollment Form'!H424),\"N\",\"Y\")))","v":""},0]
[425,{"$f":"IF('Enrollment Form'!$A425<>\"\",\"Y\",\"N\")","v":"N"},{"$f":"IF(AND('Enrollment Form'!$B425=\"\",'Enrollment Form'!$C425<>\"\"),\"N\",IF($B418=\"N\",\"\",\"Y\"))","v":""},{"$f":"IF(OR($B418=\"N\",'Enrollment Form'!G425=\"\"),\"\",IF('Enrollment Form'!$B425<>\"Subscriber\",\"\",IF('Enrollment Form'!$G425='Enrollment Form'!$H425,\"Y\",\"N\")))","v":""},{"$f":"IF($B418=\"N\",\"\",IF(AND(COUNTIFS('Enrollment Form'!$H$11:$H$1000,'Enrollment Form'!$H425,'Enrollment Form'!$B$11:$B$1000,'Enrollment Form'!$B425)>1,'Enrollment Form'!$H425<>\"\"),\"N\",\"Y\"))","v":""},{"$f":"IF($B418=\"N\",\"\",IF(LEN('Enrollment Form'!$Y425)=0,\"\",IF(LEN('Enrollment Form'!$Y425)<>5,\"N\",\"Y\")))","v":""},{"$f":"IF($B418=\"N\",\"\",IF(LEN('Enrollment Form'!$AD425=0),\"\",IF(LEN('Enrollment Form'!$AD425)<>5,\"N\",\"Y\")))","v":""},{"$f":"IF($B418=\"N\",\"\",IF(LEN('Enrollment Form'!$BS425=0),\"\",IF(LEN('Enrollment Form'!$BS425)<>5,\"N\",\"Y\")))","v":""},{"$f":"IF($B418=\"N\",\"\",IF(LEN('Enrollment Form'!$AE425)=0,\"\",IF(LEN('Enrollment Form'!$AE425)<>10,\"N\",\"Y\")))","v":""},{"$f":"IF($B418=\"N\",\"\",IF(LEN('Enrollment Form'!$AF425)=0,\"\",IF(LEN('Enrollment Form'!$AF425)<>10,\"N\",\"Y\")))","v":""},{"$f":"IF('Enrollment Form'!$O425<>\"Graded\",\"-\",IF(AND('Enrollment Form'!$O425=\"Graded\",'Enrollment Form'!$AR425<>\"\"),\"Y\",\"N\"))","v":"-"},{"$f":"IF($B418=\"N\",\"\",IF(OR('Enrollment Form'!$B425<>\"Subscriber\",'Enrollment Form'!$C425=\"ROC\"),\"-\",IF(AND('Enrollment Form'!$B425=\"Subscriber\",'Enrollment Form'!$C425=\"Enroll\",'Enrollment Form'!$AJ425<>\"\"),\"Y\",\"N\")))","v":""},{"$f":"IF($B418=\"N\",\"\",IF(OR('Enrollment Form'!$B425<>\"Subscriber\",'Enrollment Form'!$C425=\"ROC\"),\"-\",IF(AND('Enrollment Form'!$B425=\"Subscriber\",'Enrollment Form'!$C425=\"Enroll\",'Enrollment Form'!$AK425<>\"\"),\"Y\",\"N\")))","v":""},{"$f":"IF($B418=\"N\",\"\",IF(OR('Enrollment Form'!$B425<>\"Subscriber\",'Enrollment Form'!$C425=\"ROC\"),\"-\",IF(AND('Enrollment Form'!$B425=\"Subscriber\",'Enrollment Form'!$C425=\"Enroll\",'Enrollment Form'!$AL425<>\"\"),\"Y\",\"N\")))","v":""},{"$f":"IF($B418=\"N\",\"\",IF(OR('Enrollment Form'!$B425<>\"Subscriber\",'Enrollment Form'!$C425=\"ROC\"),\"-\",IF(AND('Enrollment Form'!$B425=\"Subscriber\",'Enrollment Form'!$C425=\"Enroll\",'Enrollment Form'!$AP425<>\"\"),\"Y\",\"N\")))","v":""},{"$f":"IF($B418=\"N\",\"\",IF(OR('Enrollment Form'!$B425<>\"Subscriber\",'Enrollment Form'!$C425=\"ROC\"),\"-\",IF(AND('Enrollment Form'!$B425=\"Subscriber\",'Enrollment Form'!$C425=\"Enroll\",'Enrollment Form'!$AQ425<>\"\"),\"Y\",\"N\")))","v":""},{"$f":"IF($B418=\"N\",\"\",IF(OR('Enrollment Form'!$B425<>\"Subscriber\",'Enrollment Form'!$C425=\"ROC\"),\"-\",IF(AND('Enrollment Form'!$B425=\"Subscriber\",'Enrollment Form'!$C425=\"Enroll\",'Enrollment Form'!$AS425<>\"\"),\"Y\",\"N\")))","v":""},{"$f":"IF($B418=\"N\",\"\",IF($Q418=\"-\",\"-\",IF(AND($Q418=\"Y\",'Enrollment Form'!$AS425=\"No\"),\"-\",IF(AND($Q418=\"Y\",'Enrollment Form'!$AS425=\"Yes\",'Enrollment Form'!$AT425<>\"\"),\"Y\",\"N\"))))","v":""},{"$f":"IF($B418=\"N\",\"\",IF(OR('Enrollment Form'!$B425<>\"Subscriber\",'Enrollment Form'!$C425=\"ROC\"),\"-\",IF(AND('Enrollment Form'!$B425=\"Subscriber\",'Enrollment Form'!$C425=\"Enroll\",'Enrollment Form'!$CV425<>\"\"),\"Y\",\"N\")))","v":""},{"$f":"IF($B418=\"N\",\"\",IF($S418=\"-\",\"-\",IF(AND($S418=\"Y\",'Enrollment Form'!$CV425=\"No\"),\"-\",IF(AND($S418=\"Y\",'Enrollment Form'!$CV425=\"Yes\",'Enrollment Form'!$CW425<>\"\"),\"Y\",\"N\"))))","v":""},{"$f":"IF(OR('Enrollment Form'!$AY425=\"Yes\",'Enrollment Form'!$AY425=\"\"),\"-\",IF(OR(AND('Enrollment Form'!$AY425=\"No\",ISERROR(FIND(\"HMO\",VLOOKUP('Enrollment Form'!G425,'Enrollment Form'!H$11:J$1000,3,FALSE),1))=FALSE,COUNTA('Enrollment Form'!$AZ425:$BC425)=4),AND('Enrollment Form'!$AY425=\"No\",ISERROR(FIND(\"HMO\",VLOOKUP('Enrollment Form'!G425,'Enrollment Form'!H$11:J$1000,3,FALSE),1))=FALSE,COUNTA('Enrollment Form'!$BT425:$BW425)=4)),\"Y\",\"N\"))","v":"-"},{"$f":"IF($B418=\"N\",\"\",IF('Enrollment Form'!$B425=\"Subscriber\",\"-\",IF(COUNTA('Enrollment Form'!$BL425,'Enrollment Form'!$BN425)=2,\"Y\",\"N\")))","v":""},{"$f":"IF($B418=\"N\",\"\",IF(OR('Enrollment Form'!$AX425=\"\",'Enrollment Form'!$AX425=\"No\"),\"-\",IF(AND('Enrollment Form'!$AX425=\"Yes\",COUNTA('Enrollment Form'!$CR425)=1),\"Y\",\"N\")))","v":""},{"$f":"IF(OR('Enrollment Form'!$CR425=\"\",'Enrollment Form'!$CR425=\"No\"),\"-\",IF(COUNTA('Enrollment Form'!$CT425:$CU425)=2,\"Y\",\"N\"))","v":"-"},{"$f":"IF($B418=\"N\",\"\",IF(COUNTIF('Enrollment Form'!$DG425:$DP425,\"Other\")=COUNTA('Enrollment Form'!$DK425,'Enrollment Form'!$DH425,'Enrollment Form'!$DN425,'Enrollment Form'!$DQ425),\"Y\",\"N\"))","v":""},{"$f":"IF($B418=\"N\",\"\",IF(OR('Enrollment Form'!B425<>\"Subscriber\",'Enrollment Form'!C425=\"ROC\",COUNTIF('Enrollment Form'!AV425:AW425,\"Yes\")>=1),\"-\",IF(AND('Enrollment Form'!C425=\"Enroll\",COUNTIF('Enrollment Form'!AV425:AW425,\"No\")=2,'Enrollment Form'!AX425=\"\"),\"N\",\"Y\")))","v":""},{"$f":"IF(OR(B418=\"N\",'Enrollment Form'!B425<>\"Subscriber\",'Enrollment Form'!C425=\"ROC\",'Enrollment Form'!O425<>\"Multiple of Salary\"),\"-\",IF(COUNTA('Enrollment Form'!T425:U425)<2,\"N\",\"Y\"))","v":"-"},{"$f":"IF(B418=\"N\",\"\",IF(OR('Enrollment Form'!C425=\"ROC\",'Enrollment Form'!B425<>\"Subscriber\",'Enrollment Form'!O425=\"Waive\",'Enrollment Form'!O425=\"\"),\"-\",IF('Enrollment Form'!P425=\"\",\"N\",\"Y\")))","v":""},{"$f":"IF($B418=\"N\",\"\",IF(AND('Enrollment Form'!$C425=\"ROC\",'Enrollment Form'!$DR425<>\"\"),\"Y\",IF(AND('Enrollment Form'!$C425=\"ROC\",'Enrollment Form'!$DR425=\"\"),\"N\",IF(AND('Enrollment Form'!$C425=\"Enroll\",'Enrollment Form'!$B425=\"Subscriber\",'Enrollment Form'!$CX425=\"No\",'Enrollment Form'!$DR425=\"\"),\"N\",IF(AND('Enrollment Form'!$C425=\"Enroll\",'Enrollment Form'!$B425=\"Subscriber\",'Enrollment Form'!$CX425=\"Yes\"),\"-\",\"Y\")))))","v":""},{"$f":"IF($B418=\"N\",\"\",IF(AND('Enrollment Form'!$C425=\"ROC\",'Enrollment Form'!$DS425<>\"\"),\"Y\",IF(AND('Enrollment Form'!$C425=\"ROC\",'Enrollment Form'!$DS425=\"\"),\"N\",IF(AND('Enrollment Form'!$C425=\"Enroll\",'Enrollment Form'!$B425=\"Subscriber\",'Enrollment Form'!$CX425=\"No\",'Enrollment Form'!$DS425=\"\"),\"N\",IF(AND('Enrollment Form'!$C425=\"Enroll\",'Enrollment Form'!$B425=\"Subscriber\",'Enrollment Form'!$CX425=\"Yes\"),\"-\",\"Y\")))))","v":""},{"$f":"IF('Enrollment Form'!AH425=\"\",\"\",IF(ISERROR(SEARCH(\".\",'Enrollment Form'!AH425,SEARCH(\"@\",'Enrollment Form'!AH425))),\"N\",\"Y\"))","v":""},{"$f":"IF(OR($B418=\"N\",'Enrollment Form'!$G425=\"\"),\"\",IF('Enrollment Form'!$B425<>\"Subscriber\",\"-\",IF(COUNTIF('Enrollment Form'!$AV425:$AW425,\"Yes\")=2,\"N\",\"Y\")))","v":""},{"$f":"IF(OR('Enrollment Form'!$CJ425=\"\",'Enrollment Form'!$CJ425=\"No\"),\"-\",IF(AND('Enrollment Form'!$CJ425=\"Yes\",'Enrollment Form'!$CK425=\"\"),\"N\",\"Y\"))","v":"-"},{"$f":"IF(OR('Enrollment Form'!$CL425=\"\",'Enrollment Form'!$CL425=\"No\"),\"-\",IF(AND('Enrollment Form'!$CL425=\"Yes\",'Enrollment Form'!$CM425=\"\"),\"N\",\"Y\"))","v":"-"},{"$f":"IF(OR('Enrollment Form'!$CN425=\"\",'Enrollment Form'!$CN425=\"No\"),\"-\",IF(AND('Enrollment Form'!$CN425=\"Yes\",'Enrollment Form'!$CO425=\"\"),\"N\",\"Y\"))","v":"-"},{"$f":"IF(OR('Enrollment Form'!$CN425=\"\",'Enrollment Form'!$CN425=\"No\"),\"-\",IF(AND('Enrollment Form'!$CN425=\"Yes\",'Enrollment Form'!$CP425=\"\"),\"N\",\"Y\"))","v":"-"},{"$f":"IF('Enrollment Form'!B425<>\"Subscriber\",\"-\",IF(AND('Enrollment Form'!B425=\"Subscriber\",'Enrollment Form'!C425=\"Enroll\",'Enrollment Form'!AA425=\"\"),\"N\",\"Y\"))","v":"-"},{"$f":"IF(OR('Enrollment Form'!B425=\"Subscriber\",'Enrollment Form'!B425=\"\"),\"-\",IF('Enrollment Form'!BP425=\"\",\"N\",\"Y\"))","v":"-"},{"$f":"IF('Enrollment Form'!B425<>\"Subscriber\",\"-\",IF(AND('Enrollment Form'!B425=\"Subscriber\",'Enrollment Form'!G425=\"\"),\"N\",\"Y\"))","v":"-"},{"$f":"IF('Enrollment Form'!A425=\"\",\"\",IF('Enrollment Form'!B425=\"Subscriber\",\"-\",IF(AND('Enrollment Form'!B425<>\"Subscriber\",'Enrollment Form'!G425='Enrollment Form'!H425),\"N\",\"Y\")))","v":""},0]
[426,{"$f":"IF('Enrollment Form'!$A426<>\"\",\"Y\",\"N\")","v":"N"},{"$f":"IF(AND('Enrollment Form'!$B426=\"\",'Enrollment Form'!$C426<>\"\"),\"N\",IF($B419=\"N\",\"\",\"Y\"))","v":""},{"$f":"IF(OR($B419=\"N\",'Enrollment Form'!G426=\"\"),\"\",IF('Enrollment Form'!$B426<>\"Subscriber\",\"\",IF('Enrollment Form'!$G426='Enrollment Form'!$H426,\"Y\",\"N\")))","v":""},{"$f":"IF($B419=\"N\",\"\",IF(AND(COUNTIFS('Enrollment Form'!$H$11:$H$1000,'Enrollment Form'!$H426,'Enrollment Form'!$B$11:$B$1000,'Enrollment Form'!$B426)>1,'Enrollment Form'!$H426<>\"\"),\"N\",\"Y\"))","v":""},{"$f":"IF($B419=\"N\",\"\",IF(LEN('Enrollment Form'!$Y426)=0,\"\",IF(LEN('Enrollment Form'!$Y426)<>5,\"N\",\"Y\")))","v":""},{"$f":"IF($B419=\"N\",\"\",IF(LEN('Enrollment Form'!$AD426=0),\"\",IF(LEN('Enrollment Form'!$AD426)<>5,\"N\",\"Y\")))","v":""},{"$f":"IF($B419=\"N\",\"\",IF(LEN('Enrollment Form'!$BS426=0),\"\",IF(LEN('Enrollment Form'!$BS426)<>5,\"N\",\"Y\")))","v":""},{"$f":"IF($B419=\"N\",\"\",IF(LEN('Enrollment Form'!$AE426)=0,\"\",IF(LEN('Enrollment Form'!$AE426)<>10,\"N\",\"Y\")))","v":""},{"$f":"IF($B419=\"N\",\"\",IF(LEN('Enrollment Form'!$AF426)=0,\"\",IF(LEN('Enrollment Form'!$AF426)<>10,\"N\",\"Y\")))","v":""},{"$f":"IF('Enrollment Form'!$O426<>\"Graded\",\"-\",IF(AND('Enrollment Form'!$O426=\"Graded\",'Enrollment Form'!$AR426<>\"\"),\"Y\",\"N\"))","v":"-"},{"$f":"IF($B419=\"N\",\"\",IF(OR('Enrollment Form'!$B426<>\"Subscriber\",'Enrollment Form'!$C426=\"ROC\"),\"-\",IF(AND('Enrollment Form'!$B426=\"Subscriber\",'Enrollment Form'!$C426=\"Enroll\",'Enrollment Form'!$AJ426<>\"\"),\"Y\",\"N\")))","v":""},{"$f":"IF($B419=\"N\",\"\",IF(OR('Enrollment Form'!$B426<>\"Subscriber\",'Enrollment Form'!$C426=\"ROC\"),\"-\",IF(AND('Enrollment Form'!$B426=\"Subscriber\",'Enrollment Form'!$C426=\"Enroll\",'Enrollment Form'!$AK426<>\"\"),\"Y\",\"N\")))","v":""},{"$f":"IF($B419=\"N\",\"\",IF(OR('Enrollment Form'!$B426<>\"Subscriber\",'Enrollment Form'!$C426=\"ROC\"),\"-\",IF(AND('Enrollment Form'!$B426=\"Subscriber\",'Enrollment Form'!$C426=\"Enroll\",'Enrollment Form'!$AL426<>\"\"),\"Y\",\"N\")))","v":""},{"$f":"IF($B419=\"N\",\"\",IF(OR('Enrollment Form'!$B426<>\"Subscriber\",'Enrollment Form'!$C426=\"ROC\"),\"-\",IF(AND('Enrollment Form'!$B426=\"Subscriber\",'Enrollment Form'!$C426=\"Enroll\",'Enrollment Form'!$AP426<>\"\"),\"Y\",\"N\")))","v":""},{"$f":"IF($B419=\"N\",\"\",IF(OR('Enrollment Form'!$B426<>\"Subscriber\",'Enrollment Form'!$C426=\"ROC\"),\"-\",IF(AND('Enrollment Form'!$B426=\"Subscriber\",'Enrollment Form'!$C426=\"Enroll\",'Enrollment Form'!$AQ426<>\"\"),\"Y\",\"N\")))","v":""},{"$f":"IF($B419=\"N\",\"\",IF(OR('Enrollment Form'!$B426<>\"Subscriber\",'Enrollment Form'!$C426=\"ROC\"),\"-\",IF(AND('Enrollment Form'!$B426=\"Subscriber\",'Enrollment Form'!$C426=\"Enroll\",'Enrollment Form'!$AS426<>\"\"),\"Y\",\"N\")))","v":""},{"$f":"IF($B419=\"N\",\"\",IF($Q419=\"-\",\"-\",IF(AND($Q419=\"Y\",'Enrollment Form'!$AS426=\"No\"),\"-\",IF(AND($Q419=\"Y\",'Enrollment Form'!$AS426=\"Yes\",'Enrollment Form'!$AT426<>\"\"),\"Y\",\"N\"))))","v":""},{"$f":"IF($B419=\"N\",\"\",IF(OR('Enrollment Form'!$B426<>\"Subscriber\",'Enrollment Form'!$C426=\"ROC\"),\"-\",IF(AND('Enrollment Form'!$B426=\"Subscriber\",'Enrollment Form'!$C426=\"Enroll\",'Enrollment Form'!$CV426<>\"\"),\"Y\",\"N\")))","v":""},{"$f":"IF($B419=\"N\",\"\",IF($S419=\"-\",\"-\",IF(AND($S419=\"Y\",'Enrollment Form'!$CV426=\"No\"),\"-\",IF(AND($S419=\"Y\",'Enrollment Form'!$CV426=\"Yes\",'Enrollment Form'!$CW426<>\"\"),\"Y\",\"N\"))))","v":""},{"$f":"IF(OR('Enrollment Form'!$AY426=\"Yes\",'Enrollment Form'!$AY426=\"\"),\"-\",IF(OR(AND('Enrollment Form'!$AY426=\"No\",ISERROR(FIND(\"HMO\",VLOOKUP('Enrollment Form'!G426,'Enrollment Form'!H$11:J$1000,3,FALSE),1))=FALSE,COUNTA('Enrollment Form'!$AZ426:$BC426)=4),AND('Enrollment Form'!$AY426=\"No\",ISERROR(FIND(\"HMO\",VLOOKUP('Enrollment Form'!G426,'Enrollment Form'!H$11:J$1000,3,FALSE),1))=FALSE,COUNTA('Enrollment Form'!$BT426:$BW426)=4)),\"Y\",\"N\"))","v":"-"},{"$f":"IF($B419=\"N\",\"\",IF('Enrollment Form'!$B426=\"Subscriber\",\"-\",IF(COUNTA('Enrollment Form'!$BL426,'Enrollment Form'!$BN426)=2,\"Y\",\"N\")))","v":""},{"$f":"IF($B419=\"N\",\"\",IF(OR('Enrollment Form'!$AX426=\"\",'Enrollment Form'!$AX426=\"No\"),\"-\",IF(AND('Enrollment Form'!$AX426=\"Yes\",COUNTA('Enrollment Form'!$CR426)=1),\"Y\",\"N\")))","v":""},{"$f":"IF(OR('Enrollment Form'!$CR426=\"\",'Enrollment Form'!$CR426=\"No\"),\"-\",IF(COUNTA('Enrollment Form'!$CT426:$CU426)=2,\"Y\",\"N\"))","v":"-"},{"$f":"IF($B419=\"N\",\"\",IF(COUNTIF('Enrollment Form'!$DG426:$DP426,\"Other\")=COUNTA('Enrollment Form'!$DK426,'Enrollment Form'!$DH426,'Enrollment Form'!$DN426,'Enrollment Form'!$DQ426),\"Y\",\"N\"))","v":""},{"$f":"IF($B419=\"N\",\"\",IF(OR('Enrollment Form'!B426<>\"Subscriber\",'Enrollment Form'!C426=\"ROC\",COUNTIF('Enrollment Form'!AV426:AW426,\"Yes\")>=1),\"-\",IF(AND('Enrollment Form'!C426=\"Enroll\",COUNTIF('Enrollment Form'!AV426:AW426,\"No\")=2,'Enrollment Form'!AX426=\"\"),\"N\",\"Y\")))","v":""},{"$f":"IF(OR(B419=\"N\",'Enrollment Form'!B426<>\"Subscriber\",'Enrollment Form'!C426=\"ROC\",'Enrollment Form'!O426<>\"Multiple of Salary\"),\"-\",IF(COUNTA('Enrollment Form'!T426:U426)<2,\"N\",\"Y\"))","v":"-"},{"$f":"IF(B419=\"N\",\"\",IF(OR('Enrollment Form'!C426=\"ROC\",'Enrollment Form'!B426<>\"Subscriber\",'Enrollment Form'!O426=\"Waive\",'Enrollment Form'!O426=\"\"),\"-\",IF('Enrollment Form'!P426=\"\",\"N\",\"Y\")))","v":""},{"$f":"IF($B419=\"N\",\"\",IF(AND('Enrollment Form'!$C426=\"ROC\",'Enrollment Form'!$DR426<>\"\"),\"Y\",IF(AND('Enrollment Form'!$C426=\"ROC\",'Enrollment Form'!$DR426=\"\"),\"N\",IF(AND('Enrollment Form'!$C426=\"Enroll\",'Enrollment Form'!$B426=\"Subscriber\",'Enrollment Form'!$CX426=\"No\",'Enrollment Form'!$DR426=\"\"),\"N\",IF(AND('Enrollment Form'!$C426=\"Enroll\",'Enrollment Form'!$B426=\"Subscriber\",'Enrollment Form'!$CX426=\"Yes\"),\"-\",\"Y\")))))","v":""},{"$f":"IF($B419=\"N\",\"\",IF(AND('Enrollment Form'!$C426=\"ROC\",'Enrollment Form'!$DS426<>\"\"),\"Y\",IF(AND('Enrollment Form'!$C426=\"ROC\",'Enrollment Form'!$DS426=\"\"),\"N\",IF(AND('Enrollment Form'!$C426=\"Enroll\",'Enrollment Form'!$B426=\"Subscriber\",'Enrollment Form'!$CX426=\"No\",'Enrollment Form'!$DS426=\"\"),\"N\",IF(AND('Enrollment Form'!$C426=\"Enroll\",'Enrollment Form'!$B426=\"Subscriber\",'Enrollment Form'!$CX426=\"Yes\"),\"-\",\"Y\")))))","v":""},{"$f":"IF('Enrollment Form'!AH426=\"\",\"\",IF(ISERROR(SEARCH(\".\",'Enrollment Form'!AH426,SEARCH(\"@\",'Enrollment Form'!AH426))),\"N\",\"Y\"))","v":""},{"$f":"IF(OR($B419=\"N\",'Enrollment Form'!$G426=\"\"),\"\",IF('Enrollment Form'!$B426<>\"Subscriber\",\"-\",IF(COUNTIF('Enrollment Form'!$AV426:$AW426,\"Yes\")=2,\"N\",\"Y\")))","v":""},{"$f":"IF(OR('Enrollment Form'!$CJ426=\"\",'Enrollment Form'!$CJ426=\"No\"),\"-\",IF(AND('Enrollment Form'!$CJ426=\"Yes\",'Enrollment Form'!$CK426=\"\"),\"N\",\"Y\"))","v":"-"},{"$f":"IF(OR('Enrollment Form'!$CL426=\"\",'Enrollment Form'!$CL426=\"No\"),\"-\",IF(AND('Enrollment Form'!$CL426=\"Yes\",'Enrollment Form'!$CM426=\"\"),\"N\",\"Y\"))","v":"-"},{"$f":"IF(OR('Enrollment Form'!$CN426=\"\",'Enrollment Form'!$CN426=\"No\"),\"-\",IF(AND('Enrollment Form'!$CN426=\"Yes\",'Enrollment Form'!$CO426=\"\"),\"N\",\"Y\"))","v":"-"},{"$f":"IF(OR('Enrollment Form'!$CN426=\"\",'Enrollment Form'!$CN426=\"No\"),\"-\",IF(AND('Enrollment Form'!$CN426=\"Yes\",'Enrollment Form'!$CP426=\"\"),\"N\",\"Y\"))","v":"-"},{"$f":"IF('Enrollment Form'!B426<>\"Subscriber\",\"-\",IF(AND('Enrollment Form'!B426=\"Subscriber\",'Enrollment Form'!C426=\"Enroll\",'Enrollment Form'!AA426=\"\"),\"N\",\"Y\"))","v":"-"},{"$f":"IF(OR('Enrollment Form'!B426=\"Subscriber\",'Enrollment Form'!B426=\"\"),\"-\",IF('Enrollment Form'!BP426=\"\",\"N\",\"Y\"))","v":"-"},{"$f":"IF('Enrollment Form'!B426<>\"Subscriber\",\"-\",IF(AND('Enrollment Form'!B426=\"Subscriber\",'Enrollment Form'!G426=\"\"),\"N\",\"Y\"))","v":"-"},{"$f":"IF('Enrollment Form'!A426=\"\",\"\",IF('Enrollment Form'!B426=\"Subscriber\",\"-\",IF(AND('Enrollment Form'!B426<>\"Subscriber\",'Enrollment Form'!G426='Enrollment Form'!H426),\"N\",\"Y\")))","v":""},0]
[427,{"$f":"IF('Enrollment Form'!$A427<>\"\",\"Y\",\"N\")","v":"N"},{"$f":"IF(AND('Enrollment Form'!$B427=\"\",'Enrollment Form'!$C427<>\"\"),\"N\",IF($B420=\"N\",\"\",\"Y\"))","v":""},{"$f":"IF(OR($B420=\"N\",'Enrollment Form'!G427=\"\"),\"\",IF('Enrollment Form'!$B427<>\"Subscriber\",\"\",IF('Enrollment Form'!$G427='Enrollment Form'!$H427,\"Y\",\"N\")))","v":""},{"$f":"IF($B420=\"N\",\"\",IF(AND(COUNTIFS('Enrollment Form'!$H$11:$H$1000,'Enrollment Form'!$H427,'Enrollment Form'!$B$11:$B$1000,'Enrollment Form'!$B427)>1,'Enrollment Form'!$H427<>\"\"),\"N\",\"Y\"))","v":""},{"$f":"IF($B420=\"N\",\"\",IF(LEN('Enrollment Form'!$Y427)=0,\"\",IF(LEN('Enrollment Form'!$Y427)<>5,\"N\",\"Y\")))","v":""},{"$f":"IF($B420=\"N\",\"\",IF(LEN('Enrollment Form'!$AD427=0),\"\",IF(LEN('Enrollment Form'!$AD427)<>5,\"N\",\"Y\")))","v":""},{"$f":"IF($B420=\"N\",\"\",IF(LEN('Enrollment Form'!$BS427=0),\"\",IF(LEN('Enrollment Form'!$BS427)<>5,\"N\",\"Y\")))","v":""},{"$f":"IF($B420=\"N\",\"\",IF(LEN('Enrollment Form'!$AE427)=0,\"\",IF(LEN('Enrollment Form'!$AE427)<>10,\"N\",\"Y\")))","v":""},{"$f":"IF($B420=\"N\",\"\",IF(LEN('Enrollment Form'!$AF427)=0,\"\",IF(LEN('Enrollment Form'!$AF427)<>10,\"N\",\"Y\")))","v":""},{"$f":"IF('Enrollment Form'!$O427<>\"Graded\",\"-\",IF(AND('Enrollment Form'!$O427=\"Graded\",'Enrollment Form'!$AR427<>\"\"),\"Y\",\"N\"))","v":"-"},{"$f":"IF($B420=\"N\",\"\",IF(OR('Enrollment Form'!$B427<>\"Subscriber\",'Enrollment Form'!$C427=\"ROC\"),\"-\",IF(AND('Enrollment Form'!$B427=\"Subscriber\",'Enrollment Form'!$C427=\"Enroll\",'Enrollment Form'!$AJ427<>\"\"),\"Y\",\"N\")))","v":""},{"$f":"IF($B420=\"N\",\"\",IF(OR('Enrollment Form'!$B427<>\"Subscriber\",'Enrollment Form'!$C427=\"ROC\"),\"-\",IF(AND('Enrollment Form'!$B427=\"Subscriber\",'Enrollment Form'!$C427=\"Enroll\",'Enrollment Form'!$AK427<>\"\"),\"Y\",\"N\")))","v":""},{"$f":"IF($B420=\"N\",\"\",IF(OR('Enrollment Form'!$B427<>\"Subscriber\",'Enrollment Form'!$C427=\"ROC\"),\"-\",IF(AND('Enrollment Form'!$B427=\"Subscriber\",'Enrollment Form'!$C427=\"Enroll\",'Enrollment Form'!$AL427<>\"\"),\"Y\",\"N\")))","v":""},{"$f":"IF($B420=\"N\",\"\",IF(OR('Enrollment Form'!$B427<>\"Subscriber\",'Enrollment Form'!$C427=\"ROC\"),\"-\",IF(AND('Enrollment Form'!$B427=\"Subscriber\",'Enrollment Form'!$C427=\"Enroll\",'Enrollment Form'!$AP427<>\"\"),\"Y\",\"N\")))","v":""},{"$f":"IF($B420=\"N\",\"\",IF(OR('Enrollment Form'!$B427<>\"Subscriber\",'Enrollment Form'!$C427=\"ROC\"),\"-\",IF(AND('Enrollment Form'!$B427=\"Subscriber\",'Enrollment Form'!$C427=\"Enroll\",'Enrollment Form'!$AQ427<>\"\"),\"Y\",\"N\")))","v":""},{"$f":"IF($B420=\"N\",\"\",IF(OR('Enrollment Form'!$B427<>\"Subscriber\",'Enrollment Form'!$C427=\"ROC\"),\"-\",IF(AND('Enrollment Form'!$B427=\"Subscriber\",'Enrollment Form'!$C427=\"Enroll\",'Enrollment Form'!$AS427<>\"\"),\"Y\",\"N\")))","v":""},{"$f":"IF($B420=\"N\",\"\",IF($Q420=\"-\",\"-\",IF(AND($Q420=\"Y\",'Enrollment Form'!$AS427=\"No\"),\"-\",IF(AND($Q420=\"Y\",'Enrollment Form'!$AS427=\"Yes\",'Enrollment Form'!$AT427<>\"\"),\"Y\",\"N\"))))","v":""},{"$f":"IF($B420=\"N\",\"\",IF(OR('Enrollment Form'!$B427<>\"Subscriber\",'Enrollment Form'!$C427=\"ROC\"),\"-\",IF(AND('Enrollment Form'!$B427=\"Subscriber\",'Enrollment Form'!$C427=\"Enroll\",'Enrollment Form'!$CV427<>\"\"),\"Y\",\"N\")))","v":""},{"$f":"IF($B420=\"N\",\"\",IF($S420=\"-\",\"-\",IF(AND($S420=\"Y\",'Enrollment Form'!$CV427=\"No\"),\"-\",IF(AND($S420=\"Y\",'Enrollment Form'!$CV427=\"Yes\",'Enrollment Form'!$CW427<>\"\"),\"Y\",\"N\"))))","v":""},{"$f":"IF(OR('Enrollment Form'!$AY427=\"Yes\",'Enrollment Form'!$AY427=\"\"),\"-\",IF(OR(AND('Enrollment Form'!$AY427=\"No\",ISERROR(FIND(\"HMO\",VLOOKUP('Enrollment Form'!G427,'Enrollment Form'!H$11:J$1000,3,FALSE),1))=FALSE,COUNTA('Enrollment Form'!$AZ427:$BC427)=4),AND('Enrollment Form'!$AY427=\"No\",ISERROR(FIND(\"HMO\",VLOOKUP('Enrollment Form'!G427,'Enrollment Form'!H$11:J$1000,3,FALSE),1))=FALSE,COUNTA('Enrollment Form'!$BT427:$BW427)=4)),\"Y\",\"N\"))","v":"-"},{"$f":"IF($B420=\"N\",\"\",IF('Enrollment Form'!$B427=\"Subscriber\",\"-\",IF(COUNTA('Enrollment Form'!$BL427,'Enrollment Form'!$BN427)=2,\"Y\",\"N\")))","v":""},{"$f":"IF($B420=\"N\",\"\",IF(OR('Enrollment Form'!$AX427=\"\",'Enrollment Form'!$AX427=\"No\"),\"-\",IF(AND('Enrollment Form'!$AX427=\"Yes\",COUNTA('Enrollment Form'!$CR427)=1),\"Y\",\"N\")))","v":""},{"$f":"IF(OR('Enrollment Form'!$CR427=\"\",'Enrollment Form'!$CR427=\"No\"),\"-\",IF(COUNTA('Enrollment Form'!$CT427:$CU427)=2,\"Y\",\"N\"))","v":"-"},{"$f":"IF($B420=\"N\",\"\",IF(COUNTIF('Enrollment Form'!$DG427:$DP427,\"Other\")=COUNTA('Enrollment Form'!$DK427,'Enrollment Form'!$DH427,'Enrollment Form'!$DN427,'Enrollment Form'!$DQ427),\"Y\",\"N\"))","v":""},{"$f":"IF($B420=\"N\",\"\",IF(OR('Enrollment Form'!B427<>\"Subscriber\",'Enrollment Form'!C427=\"ROC\",COUNTIF('Enrollment Form'!AV427:AW427,\"Yes\")>=1),\"-\",IF(AND('Enrollment Form'!C427=\"Enroll\",COUNTIF('Enrollment Form'!AV427:AW427,\"No\")=2,'Enrollment Form'!AX427=\"\"),\"N\",\"Y\")))","v":""},{"$f":"IF(OR(B420=\"N\",'Enrollment Form'!B427<>\"Subscriber\",'Enrollment Form'!C427=\"ROC\",'Enrollment Form'!O427<>\"Multiple of Salary\"),\"-\",IF(COUNTA('Enrollment Form'!T427:U427)<2,\"N\",\"Y\"))","v":"-"},{"$f":"IF(B420=\"N\",\"\",IF(OR('Enrollment Form'!C427=\"ROC\",'Enrollment Form'!B427<>\"Subscriber\",'Enrollment Form'!O427=\"Waive\",'Enrollment Form'!O427=\"\"),\"-\",IF('Enrollment Form'!P427=\"\",\"N\",\"Y\")))","v":""},{"$f":"IF($B420=\"N\",\"\",IF(AND('Enrollment Form'!$C427=\"ROC\",'Enrollment Form'!$DR427<>\"\"),\"Y\",IF(AND('Enrollment Form'!$C427=\"ROC\",'Enrollment Form'!$DR427=\"\"),\"N\",IF(AND('Enrollment Form'!$C427=\"Enroll\",'Enrollment Form'!$B427=\"Subscriber\",'Enrollment Form'!$CX427=\"No\",'Enrollment Form'!$DR427=\"\"),\"N\",IF(AND('Enrollment Form'!$C427=\"Enroll\",'Enrollment Form'!$B427=\"Subscriber\",'Enrollment Form'!$CX427=\"Yes\"),\"-\",\"Y\")))))","v":""},{"$f":"IF($B420=\"N\",\"\",IF(AND('Enrollment Form'!$C427=\"ROC\",'Enrollment Form'!$DS427<>\"\"),\"Y\",IF(AND('Enrollment Form'!$C427=\"ROC\",'Enrollment Form'!$DS427=\"\"),\"N\",IF(AND('Enrollment Form'!$C427=\"Enroll\",'Enrollment Form'!$B427=\"Subscriber\",'Enrollment Form'!$CX427=\"No\",'Enrollment Form'!$DS427=\"\"),\"N\",IF(AND('Enrollment Form'!$C427=\"Enroll\",'Enrollment Form'!$B427=\"Subscriber\",'Enrollment Form'!$CX427=\"Yes\"),\"-\",\"Y\")))))","v":""},{"$f":"IF('Enrollment Form'!AH427=\"\",\"\",IF(ISERROR(SEARCH(\".\",'Enrollment Form'!AH427,SEARCH(\"@\",'Enrollment Form'!AH427))),\"N\",\"Y\"))","v":""},{"$f":"IF(OR($B420=\"N\",'Enrollment Form'!$G427=\"\"),\"\",IF('Enrollment Form'!$B427<>\"Subscriber\",\"-\",IF(COUNTIF('Enrollment Form'!$AV427:$AW427,\"Yes\")=2,\"N\",\"Y\")))","v":""},{"$f":"IF(OR('Enrollment Form'!$CJ427=\"\",'Enrollment Form'!$CJ427=\"No\"),\"-\",IF(AND('Enrollment Form'!$CJ427=\"Yes\",'Enrollment Form'!$CK427=\"\"),\"N\",\"Y\"))","v":"-"},{"$f":"IF(OR('Enrollment Form'!$CL427=\"\",'Enrollment Form'!$CL427=\"No\"),\"-\",IF(AND('Enrollment Form'!$CL427=\"Yes\",'Enrollment Form'!$CM427=\"\"),\"N\",\"Y\"))","v":"-"},{"$f":"IF(OR('Enrollment Form'!$CN427=\"\",'Enrollment Form'!$CN427=\"No\"),\"-\",IF(AND('Enrollment Form'!$CN427=\"Yes\",'Enrollment Form'!$CO427=\"\"),\"N\",\"Y\"))","v":"-"},{"$f":"IF(OR('Enrollment Form'!$CN427=\"\",'Enrollment Form'!$CN427=\"No\"),\"-\",IF(AND('Enrollment Form'!$CN427=\"Yes\",'Enrollment Form'!$CP427=\"\"),\"N\",\"Y\"))","v":"-"},{"$f":"IF('Enrollment Form'!B427<>\"Subscriber\",\"-\",IF(AND('Enrollment Form'!B427=\"Subscriber\",'Enrollment Form'!C427=\"Enroll\",'Enrollment Form'!AA427=\"\"),\"N\",\"Y\"))","v":"-"},{"$f":"IF(OR('Enrollment Form'!B427=\"Subscriber\",'Enrollment Form'!B427=\"\"),\"-\",IF('Enrollment Form'!BP427=\"\",\"N\",\"Y\"))","v":"-"},{"$f":"IF('Enrollment Form'!B427<>\"Subscriber\",\"-\",IF(AND('Enrollment Form'!B427=\"Subscriber\",'Enrollment Form'!G427=\"\"),\"N\",\"Y\"))","v":"-"},{"$f":"IF('Enrollment Form'!A427=\"\",\"\",IF('Enrollment Form'!B427=\"Subscriber\",\"-\",IF(AND('Enrollment Form'!B427<>\"Subscriber\",'Enrollment Form'!G427='Enrollment Form'!H427),\"N\",\"Y\")))","v":""},0]
[428,{"$f":"IF('Enrollment Form'!$A428<>\"\",\"Y\",\"N\")","v":"N"},{"$f":"IF(AND('Enrollment Form'!$B428=\"\",'Enrollment Form'!$C428<>\"\"),\"N\",IF($B421=\"N\",\"\",\"Y\"))","v":""},{"$f":"IF(OR($B421=\"N\",'Enrollment Form'!G428=\"\"),\"\",IF('Enrollment Form'!$B428<>\"Subscriber\",\"\",IF('Enrollment Form'!$G428='Enrollment Form'!$H428,\"Y\",\"N\")))","v":""},{"$f":"IF($B421=\"N\",\"\",IF(AND(COUNTIFS('Enrollment Form'!$H$11:$H$1000,'Enrollment Form'!$H428,'Enrollment Form'!$B$11:$B$1000,'Enrollment Form'!$B428)>1,'Enrollment Form'!$H428<>\"\"),\"N\",\"Y\"))","v":""},{"$f":"IF($B421=\"N\",\"\",IF(LEN('Enrollment Form'!$Y428)=0,\"\",IF(LEN('Enrollment Form'!$Y428)<>5,\"N\",\"Y\")))","v":""},{"$f":"IF($B421=\"N\",\"\",IF(LEN('Enrollment Form'!$AD428=0),\"\",IF(LEN('Enrollment Form'!$AD428)<>5,\"N\",\"Y\")))","v":""},{"$f":"IF($B421=\"N\",\"\",IF(LEN('Enrollment Form'!$BS428=0),\"\",IF(LEN('Enrollment Form'!$BS428)<>5,\"N\",\"Y\")))","v":""},{"$f":"IF($B421=\"N\",\"\",IF(LEN('Enrollment Form'!$AE428)=0,\"\",IF(LEN('Enrollment Form'!$AE428)<>10,\"N\",\"Y\")))","v":""},{"$f":"IF($B421=\"N\",\"\",IF(LEN('Enrollment Form'!$AF428)=0,\"\",IF(LEN('Enrollment Form'!$AF428)<>10,\"N\",\"Y\")))","v":""},{"$f":"IF('Enrollment Form'!$O428<>\"Graded\",\"-\",IF(AND('Enrollment Form'!$O428=\"Graded\",'Enrollment Form'!$AR428<>\"\"),\"Y\",\"N\"))","v":"-"},{"$f":"IF($B421=\"N\",\"\",IF(OR('Enrollment Form'!$B428<>\"Subscriber\",'Enrollment Form'!$C428=\"ROC\"),\"-\",IF(AND('Enrollment Form'!$B428=\"Subscriber\",'Enrollment Form'!$C428=\"Enroll\",'Enrollment Form'!$AJ428<>\"\"),\"Y\",\"N\")))","v":""},{"$f":"IF($B421=\"N\",\"\",IF(OR('Enrollment Form'!$B428<>\"Subscriber\",'Enrollment Form'!$C428=\"ROC\"),\"-\",IF(AND('Enrollment Form'!$B428=\"Subscriber\",'Enrollment Form'!$C428=\"Enroll\",'Enrollment Form'!$AK428<>\"\"),\"Y\",\"N\")))","v":""},{"$f":"IF($B421=\"N\",\"\",IF(OR('Enrollment Form'!$B428<>\"Subscriber\",'Enrollment Form'!$C428=\"ROC\"),\"-\",IF(AND('Enrollment Form'!$B428=\"Subscriber\",'Enrollment Form'!$C428=\"Enroll\",'Enrollment Form'!$AL428<>\"\"),\"Y\",\"N\")))","v":""},{"$f":"IF($B421=\"N\",\"\",IF(OR('Enrollment Form'!$B428<>\"Subscriber\",'Enrollment Form'!$C428=\"ROC\"),\"-\",IF(AND('Enrollment Form'!$B428=\"Subscriber\",'Enrollment Form'!$C428=\"Enroll\",'Enrollment Form'!$AP428<>\"\"),\"Y\",\"N\")))","v":""},{"$f":"IF($B421=\"N\",\"\",IF(OR('Enrollment Form'!$B428<>\"Subscriber\",'Enrollment Form'!$C428=\"ROC\"),\"-\",IF(AND('Enrollment Form'!$B428=\"Subscriber\",'Enrollment Form'!$C428=\"Enroll\",'Enrollment Form'!$AQ428<>\"\"),\"Y\",\"N\")))","v":""},{"$f":"IF($B421=\"N\",\"\",IF(OR('Enrollment Form'!$B428<>\"Subscriber\",'Enrollment Form'!$C428=\"ROC\"),\"-\",IF(AND('Enrollment Form'!$B428=\"Subscriber\",'Enrollment Form'!$C428=\"Enroll\",'Enrollment Form'!$AS428<>\"\"),\"Y\",\"N\")))","v":""},{"$f":"IF($B421=\"N\",\"\",IF($Q421=\"-\",\"-\",IF(AND($Q421=\"Y\",'Enrollment Form'!$AS428=\"No\"),\"-\",IF(AND($Q421=\"Y\",'Enrollment Form'!$AS428=\"Yes\",'Enrollment Form'!$AT428<>\"\"),\"Y\",\"N\"))))","v":""},{"$f":"IF($B421=\"N\",\"\",IF(OR('Enrollment Form'!$B428<>\"Subscriber\",'Enrollment Form'!$C428=\"ROC\"),\"-\",IF(AND('Enrollment Form'!$B428=\"Subscriber\",'Enrollment Form'!$C428=\"Enroll\",'Enrollment Form'!$CV428<>\"\"),\"Y\",\"N\")))","v":""},{"$f":"IF($B421=\"N\",\"\",IF($S421=\"-\",\"-\",IF(AND($S421=\"Y\",'Enrollment Form'!$CV428=\"No\"),\"-\",IF(AND($S421=\"Y\",'Enrollment Form'!$CV428=\"Yes\",'Enrollment Form'!$CW428<>\"\"),\"Y\",\"N\"))))","v":""},{"$f":"IF(OR('Enrollment Form'!$AY428=\"Yes\",'Enrollment Form'!$AY428=\"\"),\"-\",IF(OR(AND('Enrollment Form'!$AY428=\"No\",ISERROR(FIND(\"HMO\",VLOOKUP('Enrollment Form'!G428,'Enrollment Form'!H$11:J$1000,3,FALSE),1))=FALSE,COUNTA('Enrollment Form'!$AZ428:$BC428)=4),AND('Enrollment Form'!$AY428=\"No\",ISERROR(FIND(\"HMO\",VLOOKUP('Enrollment Form'!G428,'Enrollment Form'!H$11:J$1000,3,FALSE),1))=FALSE,COUNTA('Enrollment Form'!$BT428:$BW428)=4)),\"Y\",\"N\"))","v":"-"},{"$f":"IF($B421=\"N\",\"\",IF('Enrollment Form'!$B428=\"Subscriber\",\"-\",IF(COUNTA('Enrollment Form'!$BL428,'Enrollment Form'!$BN428)=2,\"Y\",\"N\")))","v":""},{"$f":"IF($B421=\"N\",\"\",IF(OR('Enrollment Form'!$AX428=\"\",'Enrollment Form'!$AX428=\"No\"),\"-\",IF(AND('Enrollment Form'!$AX428=\"Yes\",COUNTA('Enrollment Form'!$CR428)=1),\"Y\",\"N\")))","v":""},{"$f":"IF(OR('Enrollment Form'!$CR428=\"\",'Enrollment Form'!$CR428=\"No\"),\"-\",IF(COUNTA('Enrollment Form'!$CT428:$CU428)=2,\"Y\",\"N\"))","v":"-"},{"$f":"IF($B421=\"N\",\"\",IF(COUNTIF('Enrollment Form'!$DG428:$DP428,\"Other\")=COUNTA('Enrollment Form'!$DK428,'Enrollment Form'!$DH428,'Enrollment Form'!$DN428,'Enrollment Form'!$DQ428),\"Y\",\"N\"))","v":""},{"$f":"IF($B421=\"N\",\"\",IF(OR('Enrollment Form'!B428<>\"Subscriber\",'Enrollment Form'!C428=\"ROC\",COUNTIF('Enrollment Form'!AV428:AW428,\"Yes\")>=1),\"-\",IF(AND('Enrollment Form'!C428=\"Enroll\",COUNTIF('Enrollment Form'!AV428:AW428,\"No\")=2,'Enrollment Form'!AX428=\"\"),\"N\",\"Y\")))","v":""},{"$f":"IF(OR(B421=\"N\",'Enrollment Form'!B428<>\"Subscriber\",'Enrollment Form'!C428=\"ROC\",'Enrollment Form'!O428<>\"Multiple of Salary\"),\"-\",IF(COUNTA('Enrollment Form'!T428:U428)<2,\"N\",\"Y\"))","v":"-"},{"$f":"IF(B421=\"N\",\"\",IF(OR('Enrollment Form'!C428=\"ROC\",'Enrollment Form'!B428<>\"Subscriber\",'Enrollment Form'!O428=\"Waive\",'Enrollment Form'!O428=\"\"),\"-\",IF('Enrollment Form'!P428=\"\",\"N\",\"Y\")))","v":""},{"$f":"IF($B421=\"N\",\"\",IF(AND('Enrollment Form'!$C428=\"ROC\",'Enrollment Form'!$DR428<>\"\"),\"Y\",IF(AND('Enrollment Form'!$C428=\"ROC\",'Enrollment Form'!$DR428=\"\"),\"N\",IF(AND('Enrollment Form'!$C428=\"Enroll\",'Enrollment Form'!$B428=\"Subscriber\",'Enrollment Form'!$CX428=\"No\",'Enrollment Form'!$DR428=\"\"),\"N\",IF(AND('Enrollment Form'!$C428=\"Enroll\",'Enrollment Form'!$B428=\"Subscriber\",'Enrollment Form'!$CX428=\"Yes\"),\"-\",\"Y\")))))","v":""},{"$f":"IF($B421=\"N\",\"\",IF(AND('Enrollment Form'!$C428=\"ROC\",'Enrollment Form'!$DS428<>\"\"),\"Y\",IF(AND('Enrollment Form'!$C428=\"ROC\",'Enrollment Form'!$DS428=\"\"),\"N\",IF(AND('Enrollment Form'!$C428=\"Enroll\",'Enrollment Form'!$B428=\"Subscriber\",'Enrollment Form'!$CX428=\"No\",'Enrollment Form'!$DS428=\"\"),\"N\",IF(AND('Enrollment Form'!$C428=\"Enroll\",'Enrollment Form'!$B428=\"Subscriber\",'Enrollment Form'!$CX428=\"Yes\"),\"-\",\"Y\")))))","v":""},{"$f":"IF('Enrollment Form'!AH428=\"\",\"\",IF(ISERROR(SEARCH(\".\",'Enrollment Form'!AH428,SEARCH(\"@\",'Enrollment Form'!AH428))),\"N\",\"Y\"))","v":""},{"$f":"IF(OR($B421=\"N\",'Enrollment Form'!$G428=\"\"),\"\",IF('Enrollment Form'!$B428<>\"Subscriber\",\"-\",IF(COUNTIF('Enrollment Form'!$AV428:$AW428,\"Yes\")=2,\"N\",\"Y\")))","v":""},{"$f":"IF(OR('Enrollment Form'!$CJ428=\"\",'Enrollment Form'!$CJ428=\"No\"),\"-\",IF(AND('Enrollment Form'!$CJ428=\"Yes\",'Enrollment Form'!$CK428=\"\"),\"N\",\"Y\"))","v":"-"},{"$f":"IF(OR('Enrollment Form'!$CL428=\"\",'Enrollment Form'!$CL428=\"No\"),\"-\",IF(AND('Enrollment Form'!$CL428=\"Yes\",'Enrollment Form'!$CM428=\"\"),\"N\",\"Y\"))","v":"-"},{"$f":"IF(OR('Enrollment Form'!$CN428=\"\",'Enrollment Form'!$CN428=\"No\"),\"-\",IF(AND('Enrollment Form'!$CN428=\"Yes\",'Enrollment Form'!$CO428=\"\"),\"N\",\"Y\"))","v":"-"},{"$f":"IF(OR('Enrollment Form'!$CN428=\"\",'Enrollment Form'!$CN428=\"No\"),\"-\",IF(AND('Enrollment Form'!$CN428=\"Yes\",'Enrollment Form'!$CP428=\"\"),\"N\",\"Y\"))","v":"-"},{"$f":"IF('Enrollment Form'!B428<>\"Subscriber\",\"-\",IF(AND('Enrollment Form'!B428=\"Subscriber\",'Enrollment Form'!C428=\"Enroll\",'Enrollment Form'!AA428=\"\"),\"N\",\"Y\"))","v":"-"},{"$f":"IF(OR('Enrollment Form'!B428=\"Subscriber\",'Enrollment Form'!B428=\"\"),\"-\",IF('Enrollment Form'!BP428=\"\",\"N\",\"Y\"))","v":"-"},{"$f":"IF('Enrollment Form'!B428<>\"Subscriber\",\"-\",IF(AND('Enrollment Form'!B428=\"Subscriber\",'Enrollment Form'!G428=\"\"),\"N\",\"Y\"))","v":"-"},{"$f":"IF('Enrollment Form'!A428=\"\",\"\",IF('Enrollment Form'!B428=\"Subscriber\",\"-\",IF(AND('Enrollment Form'!B428<>\"Subscriber\",'Enrollment Form'!G428='Enrollment Form'!H428),\"N\",\"Y\")))","v":""},0]
[429,{"$f":"IF('Enrollment Form'!$A429<>\"\",\"Y\",\"N\")","v":"N"},{"$f":"IF(AND('Enrollment Form'!$B429=\"\",'Enrollment Form'!$C429<>\"\"),\"N\",IF($B422=\"N\",\"\",\"Y\"))","v":""},{"$f":"IF(OR($B422=\"N\",'Enrollment Form'!G429=\"\"),\"\",IF('Enrollment Form'!$B429<>\"Subscriber\",\"\",IF('Enrollment Form'!$G429='Enrollment Form'!$H429,\"Y\",\"N\")))","v":""},{"$f":"IF($B422=\"N\",\"\",IF(AND(COUNTIFS('Enrollment Form'!$H$11:$H$1000,'Enrollment Form'!$H429,'Enrollment Form'!$B$11:$B$1000,'Enrollment Form'!$B429)>1,'Enrollment Form'!$H429<>\"\"),\"N\",\"Y\"))","v":""},{"$f":"IF($B422=\"N\",\"\",IF(LEN('Enrollment Form'!$Y429)=0,\"\",IF(LEN('Enrollment Form'!$Y429)<>5,\"N\",\"Y\")))","v":""},{"$f":"IF($B422=\"N\",\"\",IF(LEN('Enrollment Form'!$AD429=0),\"\",IF(LEN('Enrollment Form'!$AD429)<>5,\"N\",\"Y\")))","v":""},{"$f":"IF($B422=\"N\",\"\",IF(LEN('Enrollment Form'!$BS429=0),\"\",IF(LEN('Enrollment Form'!$BS429)<>5,\"N\",\"Y\")))","v":""},{"$f":"IF($B422=\"N\",\"\",IF(LEN('Enrollment Form'!$AE429)=0,\"\",IF(LEN('Enrollment Form'!$AE429)<>10,\"N\",\"Y\")))","v":""},{"$f":"IF($B422=\"N\",\"\",IF(LEN('Enrollment Form'!$AF429)=0,\"\",IF(LEN('Enrollment Form'!$AF429)<>10,\"N\",\"Y\")))","v":""},{"$f":"IF('Enrollment Form'!$O429<>\"Graded\",\"-\",IF(AND('Enrollment Form'!$O429=\"Graded\",'Enrollment Form'!$AR429<>\"\"),\"Y\",\"N\"))","v":"-"},{"$f":"IF($B422=\"N\",\"\",IF(OR('Enrollment Form'!$B429<>\"Subscriber\",'Enrollment Form'!$C429=\"ROC\"),\"-\",IF(AND('Enrollment Form'!$B429=\"Subscriber\",'Enrollment Form'!$C429=\"Enroll\",'Enrollment Form'!$AJ429<>\"\"),\"Y\",\"N\")))","v":""},{"$f":"IF($B422=\"N\",\"\",IF(OR('Enrollment Form'!$B429<>\"Subscriber\",'Enrollment Form'!$C429=\"ROC\"),\"-\",IF(AND('Enrollment Form'!$B429=\"Subscriber\",'Enrollment Form'!$C429=\"Enroll\",'Enrollment Form'!$AK429<>\"\"),\"Y\",\"N\")))","v":""},{"$f":"IF($B422=\"N\",\"\",IF(OR('Enrollment Form'!$B429<>\"Subscriber\",'Enrollment Form'!$C429=\"ROC\"),\"-\",IF(AND('Enrollment Form'!$B429=\"Subscriber\",'Enrollment Form'!$C429=\"Enroll\",'Enrollment Form'!$AL429<>\"\"),\"Y\",\"N\")))","v":""},{"$f":"IF($B422=\"N\",\"\",IF(OR('Enrollment Form'!$B429<>\"Subscriber\",'Enrollment Form'!$C429=\"ROC\"),\"-\",IF(AND('Enrollment Form'!$B429=\"Subscriber\",'Enrollment Form'!$C429=\"Enroll\",'Enrollment Form'!$AP429<>\"\"),\"Y\",\"N\")))","v":""},{"$f":"IF($B422=\"N\",\"\",IF(OR('Enrollment Form'!$B429<>\"Subscriber\",'Enrollment Form'!$C429=\"ROC\"),\"-\",IF(AND('Enrollment Form'!$B429=\"Subscriber\",'Enrollment Form'!$C429=\"Enroll\",'Enrollment Form'!$AQ429<>\"\"),\"Y\",\"N\")))","v":""},{"$f":"IF($B422=\"N\",\"\",IF(OR('Enrollment Form'!$B429<>\"Subscriber\",'Enrollment Form'!$C429=\"ROC\"),\"-\",IF(AND('Enrollment Form'!$B429=\"Subscriber\",'Enrollment Form'!$C429=\"Enroll\",'Enrollment Form'!$AS429<>\"\"),\"Y\",\"N\")))","v":""},{"$f":"IF($B422=\"N\",\"\",IF($Q422=\"-\",\"-\",IF(AND($Q422=\"Y\",'Enrollment Form'!$AS429=\"No\"),\"-\",IF(AND($Q422=\"Y\",'Enrollment Form'!$AS429=\"Yes\",'Enrollment Form'!$AT429<>\"\"),\"Y\",\"N\"))))","v":""},{"$f":"IF($B422=\"N\",\"\",IF(OR('Enrollment Form'!$B429<>\"Subscriber\",'Enrollment Form'!$C429=\"ROC\"),\"-\",IF(AND('Enrollment Form'!$B429=\"Subscriber\",'Enrollment Form'!$C429=\"Enroll\",'Enrollment Form'!$CV429<>\"\"),\"Y\",\"N\")))","v":""},{"$f":"IF($B422=\"N\",\"\",IF($S422=\"-\",\"-\",IF(AND($S422=\"Y\",'Enrollment Form'!$CV429=\"No\"),\"-\",IF(AND($S422=\"Y\",'Enrollment Form'!$CV429=\"Yes\",'Enrollment Form'!$CW429<>\"\"),\"Y\",\"N\"))))","v":""},{"$f":"IF(OR('Enrollment Form'!$AY429=\"Yes\",'Enrollment Form'!$AY429=\"\"),\"-\",IF(OR(AND('Enrollment Form'!$AY429=\"No\",ISERROR(FIND(\"HMO\",VLOOKUP('Enrollment Form'!G429,'Enrollment Form'!H$11:J$1000,3,FALSE),1))=FALSE,COUNTA('Enrollment Form'!$AZ429:$BC429)=4),AND('Enrollment Form'!$AY429=\"No\",ISERROR(FIND(\"HMO\",VLOOKUP('Enrollment Form'!G429,'Enrollment Form'!H$11:J$1000,3,FALSE),1))=FALSE,COUNTA('Enrollment Form'!$BT429:$BW429)=4)),\"Y\",\"N\"))","v":"-"},{"$f":"IF($B422=\"N\",\"\",IF('Enrollment Form'!$B429=\"Subscriber\",\"-\",IF(COUNTA('Enrollment Form'!$BL429,'Enrollment Form'!$BN429)=2,\"Y\",\"N\")))","v":""},{"$f":"IF($B422=\"N\",\"\",IF(OR('Enrollment Form'!$AX429=\"\",'Enrollment Form'!$AX429=\"No\"),\"-\",IF(AND('Enrollment Form'!$AX429=\"Yes\",COUNTA('Enrollment Form'!$CR429)=1),\"Y\",\"N\")))","v":""},{"$f":"IF(OR('Enrollment Form'!$CR429=\"\",'Enrollment Form'!$CR429=\"No\"),\"-\",IF(COUNTA('Enrollment Form'!$CT429:$CU429)=2,\"Y\",\"N\"))","v":"-"},{"$f":"IF($B422=\"N\",\"\",IF(COUNTIF('Enrollment Form'!$DG429:$DP429,\"Other\")=COUNTA('Enrollment Form'!$DK429,'Enrollment Form'!$DH429,'Enrollment Form'!$DN429,'Enrollment Form'!$DQ429),\"Y\",\"N\"))","v":""},{"$f":"IF($B422=\"N\",\"\",IF(OR('Enrollment Form'!B429<>\"Subscriber\",'Enrollment Form'!C429=\"ROC\",COUNTIF('Enrollment Form'!AV429:AW429,\"Yes\")>=1),\"-\",IF(AND('Enrollment Form'!C429=\"Enroll\",COUNTIF('Enrollment Form'!AV429:AW429,\"No\")=2,'Enrollment Form'!AX429=\"\"),\"N\",\"Y\")))","v":""},{"$f":"IF(OR(B422=\"N\",'Enrollment Form'!B429<>\"Subscriber\",'Enrollment Form'!C429=\"ROC\",'Enrollment Form'!O429<>\"Multiple of Salary\"),\"-\",IF(COUNTA('Enrollment Form'!T429:U429)<2,\"N\",\"Y\"))","v":"-"},{"$f":"IF(B422=\"N\",\"\",IF(OR('Enrollment Form'!C429=\"ROC\",'Enrollment Form'!B429<>\"Subscriber\",'Enrollment Form'!O429=\"Waive\",'Enrollment Form'!O429=\"\"),\"-\",IF('Enrollment Form'!P429=\"\",\"N\",\"Y\")))","v":""},{"$f":"IF($B422=\"N\",\"\",IF(AND('Enrollment Form'!$C429=\"ROC\",'Enrollment Form'!$DR429<>\"\"),\"Y\",IF(AND('Enrollment Form'!$C429=\"ROC\",'Enrollment Form'!$DR429=\"\"),\"N\",IF(AND('Enrollment Form'!$C429=\"Enroll\",'Enrollment Form'!$B429=\"Subscriber\",'Enrollment Form'!$CX429=\"No\",'Enrollment Form'!$DR429=\"\"),\"N\",IF(AND('Enrollment Form'!$C429=\"Enroll\",'Enrollment Form'!$B429=\"Subscriber\",'Enrollment Form'!$CX429=\"Yes\"),\"-\",\"Y\")))))","v":""},{"$f":"IF($B422=\"N\",\"\",IF(AND('Enrollment Form'!$C429=\"ROC\",'Enrollment Form'!$DS429<>\"\"),\"Y\",IF(AND('Enrollment Form'!$C429=\"ROC\",'Enrollment Form'!$DS429=\"\"),\"N\",IF(AND('Enrollment Form'!$C429=\"Enroll\",'Enrollment Form'!$B429=\"Subscriber\",'Enrollment Form'!$CX429=\"No\",'Enrollment Form'!$DS429=\"\"),\"N\",IF(AND('Enrollment Form'!$C429=\"Enroll\",'Enrollment Form'!$B429=\"Subscriber\",'Enrollment Form'!$CX429=\"Yes\"),\"-\",\"Y\")))))","v":""},{"$f":"IF('Enrollment Form'!AH429=\"\",\"\",IF(ISERROR(SEARCH(\".\",'Enrollment Form'!AH429,SEARCH(\"@\",'Enrollment Form'!AH429))),\"N\",\"Y\"))","v":""},{"$f":"IF(OR($B422=\"N\",'Enrollment Form'!$G429=\"\"),\"\",IF('Enrollment Form'!$B429<>\"Subscriber\",\"-\",IF(COUNTIF('Enrollment Form'!$AV429:$AW429,\"Yes\")=2,\"N\",\"Y\")))","v":""},{"$f":"IF(OR('Enrollment Form'!$CJ429=\"\",'Enrollment Form'!$CJ429=\"No\"),\"-\",IF(AND('Enrollment Form'!$CJ429=\"Yes\",'Enrollment Form'!$CK429=\"\"),\"N\",\"Y\"))","v":"-"},{"$f":"IF(OR('Enrollment Form'!$CL429=\"\",'Enrollment Form'!$CL429=\"No\"),\"-\",IF(AND('Enrollment Form'!$CL429=\"Yes\",'Enrollment Form'!$CM429=\"\"),\"N\",\"Y\"))","v":"-"},{"$f":"IF(OR('Enrollment Form'!$CN429=\"\",'Enrollment Form'!$CN429=\"No\"),\"-\",IF(AND('Enrollment Form'!$CN429=\"Yes\",'Enrollment Form'!$CO429=\"\"),\"N\",\"Y\"))","v":"-"},{"$f":"IF(OR('Enrollment Form'!$CN429=\"\",'Enrollment Form'!$CN429=\"No\"),\"-\",IF(AND('Enrollment Form'!$CN429=\"Yes\",'Enrollment Form'!$CP429=\"\"),\"N\",\"Y\"))","v":"-"},{"$f":"IF('Enrollment Form'!B429<>\"Subscriber\",\"-\",IF(AND('Enrollment Form'!B429=\"Subscriber\",'Enrollment Form'!C429=\"Enroll\",'Enrollment Form'!AA429=\"\"),\"N\",\"Y\"))","v":"-"},{"$f":"IF(OR('Enrollment Form'!B429=\"Subscriber\",'Enrollment Form'!B429=\"\"),\"-\",IF('Enrollment Form'!BP429=\"\",\"N\",\"Y\"))","v":"-"},{"$f":"IF('Enrollment Form'!B429<>\"Subscriber\",\"-\",IF(AND('Enrollment Form'!B429=\"Subscriber\",'Enrollment Form'!G429=\"\"),\"N\",\"Y\"))","v":"-"},{"$f":"IF('Enrollment Form'!A429=\"\",\"\",IF('Enrollment Form'!B429=\"Subscriber\",\"-\",IF(AND('Enrollment Form'!B429<>\"Subscriber\",'Enrollment Form'!G429='Enrollment Form'!H429),\"N\",\"Y\")))","v":""},0]
[430,{"$f":"IF('Enrollment Form'!$A430<>\"\",\"Y\",\"N\")","v":"N"},{"$f":"IF(AND('Enrollment Form'!$B430=\"\",'Enrollment Form'!$C430<>\"\"),\"N\",IF($B423=\"N\",\"\",\"Y\"))","v":""},{"$f":"IF(OR($B423=\"N\",'Enrollment Form'!G430=\"\"),\"\",IF('Enrollment Form'!$B430<>\"Subscriber\",\"\",IF('Enrollment Form'!$G430='Enrollment Form'!$H430,\"Y\",\"N\")))","v":""},{"$f":"IF($B423=\"N\",\"\",IF(AND(COUNTIFS('Enrollment Form'!$H$11:$H$1000,'Enrollment Form'!$H430,'Enrollment Form'!$B$11:$B$1000,'Enrollment Form'!$B430)>1,'Enrollment Form'!$H430<>\"\"),\"N\",\"Y\"))","v":""},{"$f":"IF($B423=\"N\",\"\",IF(LEN('Enrollment Form'!$Y430)=0,\"\",IF(LEN('Enrollment Form'!$Y430)<>5,\"N\",\"Y\")))","v":""},{"$f":"IF($B423=\"N\",\"\",IF(LEN('Enrollment Form'!$AD430=0),\"\",IF(LEN('Enrollment Form'!$AD430)<>5,\"N\",\"Y\")))","v":""},{"$f":"IF($B423=\"N\",\"\",IF(LEN('Enrollment Form'!$BS430=0),\"\",IF(LEN('Enrollment Form'!$BS430)<>5,\"N\",\"Y\")))","v":""},{"$f":"IF($B423=\"N\",\"\",IF(LEN('Enrollment Form'!$AE430)=0,\"\",IF(LEN('Enrollment Form'!$AE430)<>10,\"N\",\"Y\")))","v":""},{"$f":"IF($B423=\"N\",\"\",IF(LEN('Enrollment Form'!$AF430)=0,\"\",IF(LEN('Enrollment Form'!$AF430)<>10,\"N\",\"Y\")))","v":""},{"$f":"IF('Enrollment Form'!$O430<>\"Graded\",\"-\",IF(AND('Enrollment Form'!$O430=\"Graded\",'Enrollment Form'!$AR430<>\"\"),\"Y\",\"N\"))","v":"-"},{"$f":"IF($B423=\"N\",\"\",IF(OR('Enrollment Form'!$B430<>\"Subscriber\",'Enrollment Form'!$C430=\"ROC\"),\"-\",IF(AND('Enrollment Form'!$B430=\"Subscriber\",'Enrollment Form'!$C430=\"Enroll\",'Enrollment Form'!$AJ430<>\"\"),\"Y\",\"N\")))","v":""},{"$f":"IF($B423=\"N\",\"\",IF(OR('Enrollment Form'!$B430<>\"Subscriber\",'Enrollment Form'!$C430=\"ROC\"),\"-\",IF(AND('Enrollment Form'!$B430=\"Subscriber\",'Enrollment Form'!$C430=\"Enroll\",'Enrollment Form'!$AK430<>\"\"),\"Y\",\"N\")))","v":""},{"$f":"IF($B423=\"N\",\"\",IF(OR('Enrollment Form'!$B430<>\"Subscriber\",'Enrollment Form'!$C430=\"ROC\"),\"-\",IF(AND('Enrollment Form'!$B430=\"Subscriber\",'Enrollment Form'!$C430=\"Enroll\",'Enrollment Form'!$AL430<>\"\"),\"Y\",\"N\")))","v":""},{"$f":"IF($B423=\"N\",\"\",IF(OR('Enrollment Form'!$B430<>\"Subscriber\",'Enrollment Form'!$C430=\"ROC\"),\"-\",IF(AND('Enrollment Form'!$B430=\"Subscriber\",'Enrollment Form'!$C430=\"Enroll\",'Enrollment Form'!$AP430<>\"\"),\"Y\",\"N\")))","v":""},{"$f":"IF($B423=\"N\",\"\",IF(OR('Enrollment Form'!$B430<>\"Subscriber\",'Enrollment Form'!$C430=\"ROC\"),\"-\",IF(AND('Enrollment Form'!$B430=\"Subscriber\",'Enrollment Form'!$C430=\"Enroll\",'Enrollment Form'!$AQ430<>\"\"),\"Y\",\"N\")))","v":""},{"$f":"IF($B423=\"N\",\"\",IF(OR('Enrollment Form'!$B430<>\"Subscriber\",'Enrollment Form'!$C430=\"ROC\"),\"-\",IF(AND('Enrollment Form'!$B430=\"Subscriber\",'Enrollment Form'!$C430=\"Enroll\",'Enrollment Form'!$AS430<>\"\"),\"Y\",\"N\")))","v":""},{"$f":"IF($B423=\"N\",\"\",IF($Q423=\"-\",\"-\",IF(AND($Q423=\"Y\",'Enrollment Form'!$AS430=\"No\"),\"-\",IF(AND($Q423=\"Y\",'Enrollment Form'!$AS430=\"Yes\",'Enrollment Form'!$AT430<>\"\"),\"Y\",\"N\"))))","v":""},{"$f":"IF($B423=\"N\",\"\",IF(OR('Enrollment Form'!$B430<>\"Subscriber\",'Enrollment Form'!$C430=\"ROC\"),\"-\",IF(AND('Enrollment Form'!$B430=\"Subscriber\",'Enrollment Form'!$C430=\"Enroll\",'Enrollment Form'!$CV430<>\"\"),\"Y\",\"N\")))","v":""},{"$f":"IF($B423=\"N\",\"\",IF($S423=\"-\",\"-\",IF(AND($S423=\"Y\",'Enrollment Form'!$CV430=\"No\"),\"-\",IF(AND($S423=\"Y\",'Enrollment Form'!$CV430=\"Yes\",'Enrollment Form'!$CW430<>\"\"),\"Y\",\"N\"))))","v":""},{"$f":"IF(OR('Enrollment Form'!$AY430=\"Yes\",'Enrollment Form'!$AY430=\"\"),\"-\",IF(OR(AND('Enrollment Form'!$AY430=\"No\",ISERROR(FIND(\"HMO\",VLOOKUP('Enrollment Form'!G430,'Enrollment Form'!H$11:J$1000,3,FALSE),1))=FALSE,COUNTA('Enrollment Form'!$AZ430:$BC430)=4),AND('Enrollment Form'!$AY430=\"No\",ISERROR(FIND(\"HMO\",VLOOKUP('Enrollment Form'!G430,'Enrollment Form'!H$11:J$1000,3,FALSE),1))=FALSE,COUNTA('Enrollment Form'!$BT430:$BW430)=4)),\"Y\",\"N\"))","v":"-"},{"$f":"IF($B423=\"N\",\"\",IF('Enrollment Form'!$B430=\"Subscriber\",\"-\",IF(COUNTA('Enrollment Form'!$BL430,'Enrollment Form'!$BN430)=2,\"Y\",\"N\")))","v":""},{"$f":"IF($B423=\"N\",\"\",IF(OR('Enrollment Form'!$AX430=\"\",'Enrollment Form'!$AX430=\"No\"),\"-\",IF(AND('Enrollment Form'!$AX430=\"Yes\",COUNTA('Enrollment Form'!$CR430)=1),\"Y\",\"N\")))","v":""},{"$f":"IF(OR('Enrollment Form'!$CR430=\"\",'Enrollment Form'!$CR430=\"No\"),\"-\",IF(COUNTA('Enrollment Form'!$CT430:$CU430)=2,\"Y\",\"N\"))","v":"-"},{"$f":"IF($B423=\"N\",\"\",IF(COUNTIF('Enrollment Form'!$DG430:$DP430,\"Other\")=COUNTA('Enrollment Form'!$DK430,'Enrollment Form'!$DH430,'Enrollment Form'!$DN430,'Enrollment Form'!$DQ430),\"Y\",\"N\"))","v":""},{"$f":"IF($B423=\"N\",\"\",IF(OR('Enrollment Form'!B430<>\"Subscriber\",'Enrollment Form'!C430=\"ROC\",COUNTIF('Enrollment Form'!AV430:AW430,\"Yes\")>=1),\"-\",IF(AND('Enrollment Form'!C430=\"Enroll\",COUNTIF('Enrollment Form'!AV430:AW430,\"No\")=2,'Enrollment Form'!AX430=\"\"),\"N\",\"Y\")))","v":""},{"$f":"IF(OR(B423=\"N\",'Enrollment Form'!B430<>\"Subscriber\",'Enrollment Form'!C430=\"ROC\",'Enrollment Form'!O430<>\"Multiple of Salary\"),\"-\",IF(COUNTA('Enrollment Form'!T430:U430)<2,\"N\",\"Y\"))","v":"-"},{"$f":"IF(B423=\"N\",\"\",IF(OR('Enrollment Form'!C430=\"ROC\",'Enrollment Form'!B430<>\"Subscriber\",'Enrollment Form'!O430=\"Waive\",'Enrollment Form'!O430=\"\"),\"-\",IF('Enrollment Form'!P430=\"\",\"N\",\"Y\")))","v":""},{"$f":"IF($B423=\"N\",\"\",IF(AND('Enrollment Form'!$C430=\"ROC\",'Enrollment Form'!$DR430<>\"\"),\"Y\",IF(AND('Enrollment Form'!$C430=\"ROC\",'Enrollment Form'!$DR430=\"\"),\"N\",IF(AND('Enrollment Form'!$C430=\"Enroll\",'Enrollment Form'!$B430=\"Subscriber\",'Enrollment Form'!$CX430=\"No\",'Enrollment Form'!$DR430=\"\"),\"N\",IF(AND('Enrollment Form'!$C430=\"Enroll\",'Enrollment Form'!$B430=\"Subscriber\",'Enrollment Form'!$CX430=\"Yes\"),\"-\",\"Y\")))))","v":""},{"$f":"IF($B423=\"N\",\"\",IF(AND('Enrollment Form'!$C430=\"ROC\",'Enrollment Form'!$DS430<>\"\"),\"Y\",IF(AND('Enrollment Form'!$C430=\"ROC\",'Enrollment Form'!$DS430=\"\"),\"N\",IF(AND('Enrollment Form'!$C430=\"Enroll\",'Enrollment Form'!$B430=\"Subscriber\",'Enrollment Form'!$CX430=\"No\",'Enrollment Form'!$DS430=\"\"),\"N\",IF(AND('Enrollment Form'!$C430=\"Enroll\",'Enrollment Form'!$B430=\"Subscriber\",'Enrollment Form'!$CX430=\"Yes\"),\"-\",\"Y\")))))","v":""},{"$f":"IF('Enrollment Form'!AH430=\"\",\"\",IF(ISERROR(SEARCH(\".\",'Enrollment Form'!AH430,SEARCH(\"@\",'Enrollment Form'!AH430))),\"N\",\"Y\"))","v":""},{"$f":"IF(OR($B423=\"N\",'Enrollment Form'!$G430=\"\"),\"\",IF('Enrollment Form'!$B430<>\"Subscriber\",\"-\",IF(COUNTIF('Enrollment Form'!$AV430:$AW430,\"Yes\")=2,\"N\",\"Y\")))","v":""},{"$f":"IF(OR('Enrollment Form'!$CJ430=\"\",'Enrollment Form'!$CJ430=\"No\"),\"-\",IF(AND('Enrollment Form'!$CJ430=\"Yes\",'Enrollment Form'!$CK430=\"\"),\"N\",\"Y\"))","v":"-"},{"$f":"IF(OR('Enrollment Form'!$CL430=\"\",'Enrollment Form'!$CL430=\"No\"),\"-\",IF(AND('Enrollment Form'!$CL430=\"Yes\",'Enrollment Form'!$CM430=\"\"),\"N\",\"Y\"))","v":"-"},{"$f":"IF(OR('Enrollment Form'!$CN430=\"\",'Enrollment Form'!$CN430=\"No\"),\"-\",IF(AND('Enrollment Form'!$CN430=\"Yes\",'Enrollment Form'!$CO430=\"\"),\"N\",\"Y\"))","v":"-"},{"$f":"IF(OR('Enrollment Form'!$CN430=\"\",'Enrollment Form'!$CN430=\"No\"),\"-\",IF(AND('Enrollment Form'!$CN430=\"Yes\",'Enrollment Form'!$CP430=\"\"),\"N\",\"Y\"))","v":"-"},{"$f":"IF('Enrollment Form'!B430<>\"Subscriber\",\"-\",IF(AND('Enrollment Form'!B430=\"Subscriber\",'Enrollment Form'!C430=\"Enroll\",'Enrollment Form'!AA430=\"\"),\"N\",\"Y\"))","v":"-"},{"$f":"IF(OR('Enrollment Form'!B430=\"Subscriber\",'Enrollment Form'!B430=\"\"),\"-\",IF('Enrollment Form'!BP430=\"\",\"N\",\"Y\"))","v":"-"},{"$f":"IF('Enrollment Form'!B430<>\"Subscriber\",\"-\",IF(AND('Enrollment Form'!B430=\"Subscriber\",'Enrollment Form'!G430=\"\"),\"N\",\"Y\"))","v":"-"},{"$f":"IF('Enrollment Form'!A430=\"\",\"\",IF('Enrollment Form'!B430=\"Subscriber\",\"-\",IF(AND('Enrollment Form'!B430<>\"Subscriber\",'Enrollment Form'!G430='Enrollment Form'!H430),\"N\",\"Y\")))","v":""},0]
[431,{"$f":"IF('Enrollment Form'!$A431<>\"\",\"Y\",\"N\")","v":"N"},{"$f":"IF(AND('Enrollment Form'!$B431=\"\",'Enrollment Form'!$C431<>\"\"),\"N\",IF($B424=\"N\",\"\",\"Y\"))","v":""},{"$f":"IF(OR($B424=\"N\",'Enrollment Form'!G431=\"\"),\"\",IF('Enrollment Form'!$B431<>\"Subscriber\",\"\",IF('Enrollment Form'!$G431='Enrollment Form'!$H431,\"Y\",\"N\")))","v":""},{"$f":"IF($B424=\"N\",\"\",IF(AND(COUNTIFS('Enrollment Form'!$H$11:$H$1000,'Enrollment Form'!$H431,'Enrollment Form'!$B$11:$B$1000,'Enrollment Form'!$B431)>1,'Enrollment Form'!$H431<>\"\"),\"N\",\"Y\"))","v":""},{"$f":"IF($B424=\"N\",\"\",IF(LEN('Enrollment Form'!$Y431)=0,\"\",IF(LEN('Enrollment Form'!$Y431)<>5,\"N\",\"Y\")))","v":""},{"$f":"IF($B424=\"N\",\"\",IF(LEN('Enrollment Form'!$AD431=0),\"\",IF(LEN('Enrollment Form'!$AD431)<>5,\"N\",\"Y\")))","v":""},{"$f":"IF($B424=\"N\",\"\",IF(LEN('Enrollment Form'!$BS431=0),\"\",IF(LEN('Enrollment Form'!$BS431)<>5,\"N\",\"Y\")))","v":""},{"$f":"IF($B424=\"N\",\"\",IF(LEN('Enrollment Form'!$AE431)=0,\"\",IF(LEN('Enrollment Form'!$AE431)<>10,\"N\",\"Y\")))","v":""},{"$f":"IF($B424=\"N\",\"\",IF(LEN('Enrollment Form'!$AF431)=0,\"\",IF(LEN('Enrollment Form'!$AF431)<>10,\"N\",\"Y\")))","v":""},{"$f":"IF('Enrollment Form'!$O431<>\"Graded\",\"-\",IF(AND('Enrollment Form'!$O431=\"Graded\",'Enrollment Form'!$AR431<>\"\"),\"Y\",\"N\"))","v":"-"},{"$f":"IF($B424=\"N\",\"\",IF(OR('Enrollment Form'!$B431<>\"Subscriber\",'Enrollment Form'!$C431=\"ROC\"),\"-\",IF(AND('Enrollment Form'!$B431=\"Subscriber\",'Enrollment Form'!$C431=\"Enroll\",'Enrollment Form'!$AJ431<>\"\"),\"Y\",\"N\")))","v":""},{"$f":"IF($B424=\"N\",\"\",IF(OR('Enrollment Form'!$B431<>\"Subscriber\",'Enrollment Form'!$C431=\"ROC\"),\"-\",IF(AND('Enrollment Form'!$B431=\"Subscriber\",'Enrollment Form'!$C431=\"Enroll\",'Enrollment Form'!$AK431<>\"\"),\"Y\",\"N\")))","v":""},{"$f":"IF($B424=\"N\",\"\",IF(OR('Enrollment Form'!$B431<>\"Subscriber\",'Enrollment Form'!$C431=\"ROC\"),\"-\",IF(AND('Enrollment Form'!$B431=\"Subscriber\",'Enrollment Form'!$C431=\"Enroll\",'Enrollment Form'!$AL431<>\"\"),\"Y\",\"N\")))","v":""},{"$f":"IF($B424=\"N\",\"\",IF(OR('Enrollment Form'!$B431<>\"Subscriber\",'Enrollment Form'!$C431=\"ROC\"),\"-\",IF(AND('Enrollment Form'!$B431=\"Subscriber\",'Enrollment Form'!$C431=\"Enroll\",'Enrollment Form'!$AP431<>\"\"),\"Y\",\"N\")))","v":""},{"$f":"IF($B424=\"N\",\"\",IF(OR('Enrollment Form'!$B431<>\"Subscriber\",'Enrollment Form'!$C431=\"ROC\"),\"-\",IF(AND('Enrollment Form'!$B431=\"Subscriber\",'Enrollment Form'!$C431=\"Enroll\",'Enrollment Form'!$AQ431<>\"\"),\"Y\",\"N\")))","v":""},{"$f":"IF($B424=\"N\",\"\",IF(OR('Enrollment Form'!$B431<>\"Subscriber\",'Enrollment Form'!$C431=\"ROC\"),\"-\",IF(AND('Enrollment Form'!$B431=\"Subscriber\",'Enrollment Form'!$C431=\"Enroll\",'Enrollment Form'!$AS431<>\"\"),\"Y\",\"N\")))","v":""},{"$f":"IF($B424=\"N\",\"\",IF($Q424=\"-\",\"-\",IF(AND($Q424=\"Y\",'Enrollment Form'!$AS431=\"No\"),\"-\",IF(AND($Q424=\"Y\",'Enrollment Form'!$AS431=\"Yes\",'Enrollment Form'!$AT431<>\"\"),\"Y\",\"N\"))))","v":""},{"$f":"IF($B424=\"N\",\"\",IF(OR('Enrollment Form'!$B431<>\"Subscriber\",'Enrollment Form'!$C431=\"ROC\"),\"-\",IF(AND('Enrollment Form'!$B431=\"Subscriber\",'Enrollment Form'!$C431=\"Enroll\",'Enrollment Form'!$CV431<>\"\"),\"Y\",\"N\")))","v":""},{"$f":"IF($B424=\"N\",\"\",IF($S424=\"-\",\"-\",IF(AND($S424=\"Y\",'Enrollment Form'!$CV431=\"No\"),\"-\",IF(AND($S424=\"Y\",'Enrollment Form'!$CV431=\"Yes\",'Enrollment Form'!$CW431<>\"\"),\"Y\",\"N\"))))","v":""},{"$f":"IF(OR('Enrollment Form'!$AY431=\"Yes\",'Enrollment Form'!$AY431=\"\"),\"-\",IF(OR(AND('Enrollment Form'!$AY431=\"No\",ISERROR(FIND(\"HMO\",VLOOKUP('Enrollment Form'!G431,'Enrollment Form'!H$11:J$1000,3,FALSE),1))=FALSE,COUNTA('Enrollment Form'!$AZ431:$BC431)=4),AND('Enrollment Form'!$AY431=\"No\",ISERROR(FIND(\"HMO\",VLOOKUP('Enrollment Form'!G431,'Enrollment Form'!H$11:J$1000,3,FALSE),1))=FALSE,COUNTA('Enrollment Form'!$BT431:$BW431)=4)),\"Y\",\"N\"))","v":"-"},{"$f":"IF($B424=\"N\",\"\",IF('Enrollment Form'!$B431=\"Subscriber\",\"-\",IF(COUNTA('Enrollment Form'!$BL431,'Enrollment Form'!$BN431)=2,\"Y\",\"N\")))","v":""},{"$f":"IF($B424=\"N\",\"\",IF(OR('Enrollment Form'!$AX431=\"\",'Enrollment Form'!$AX431=\"No\"),\"-\",IF(AND('Enrollment Form'!$AX431=\"Yes\",COUNTA('Enrollment Form'!$CR431)=1),\"Y\",\"N\")))","v":""},{"$f":"IF(OR('Enrollment Form'!$CR431=\"\",'Enrollment Form'!$CR431=\"No\"),\"-\",IF(COUNTA('Enrollment Form'!$CT431:$CU431)=2,\"Y\",\"N\"))","v":"-"},{"$f":"IF($B424=\"N\",\"\",IF(COUNTIF('Enrollment Form'!$DG431:$DP431,\"Other\")=COUNTA('Enrollment Form'!$DK431,'Enrollment Form'!$DH431,'Enrollment Form'!$DN431,'Enrollment Form'!$DQ431),\"Y\",\"N\"))","v":""},{"$f":"IF($B424=\"N\",\"\",IF(OR('Enrollment Form'!B431<>\"Subscriber\",'Enrollment Form'!C431=\"ROC\",COUNTIF('Enrollment Form'!AV431:AW431,\"Yes\")>=1),\"-\",IF(AND('Enrollment Form'!C431=\"Enroll\",COUNTIF('Enrollment Form'!AV431:AW431,\"No\")=2,'Enrollment Form'!AX431=\"\"),\"N\",\"Y\")))","v":""},{"$f":"IF(OR(B424=\"N\",'Enrollment Form'!B431<>\"Subscriber\",'Enrollment Form'!C431=\"ROC\",'Enrollment Form'!O431<>\"Multiple of Salary\"),\"-\",IF(COUNTA('Enrollment Form'!T431:U431)<2,\"N\",\"Y\"))","v":"-"},{"$f":"IF(B424=\"N\",\"\",IF(OR('Enrollment Form'!C431=\"ROC\",'Enrollment Form'!B431<>\"Subscriber\",'Enrollment Form'!O431=\"Waive\",'Enrollment Form'!O431=\"\"),\"-\",IF('Enrollment Form'!P431=\"\",\"N\",\"Y\")))","v":""},{"$f":"IF($B424=\"N\",\"\",IF(AND('Enrollment Form'!$C431=\"ROC\",'Enrollment Form'!$DR431<>\"\"),\"Y\",IF(AND('Enrollment Form'!$C431=\"ROC\",'Enrollment Form'!$DR431=\"\"),\"N\",IF(AND('Enrollment Form'!$C431=\"Enroll\",'Enrollment Form'!$B431=\"Subscriber\",'Enrollment Form'!$CX431=\"No\",'Enrollment Form'!$DR431=\"\"),\"N\",IF(AND('Enrollment Form'!$C431=\"Enroll\",'Enrollment Form'!$B431=\"Subscriber\",'Enrollment Form'!$CX431=\"Yes\"),\"-\",\"Y\")))))","v":""},{"$f":"IF($B424=\"N\",\"\",IF(AND('Enrollment Form'!$C431=\"ROC\",'Enrollment Form'!$DS431<>\"\"),\"Y\",IF(AND('Enrollment Form'!$C431=\"ROC\",'Enrollment Form'!$DS431=\"\"),\"N\",IF(AND('Enrollment Form'!$C431=\"Enroll\",'Enrollment Form'!$B431=\"Subscriber\",'Enrollment Form'!$CX431=\"No\",'Enrollment Form'!$DS431=\"\"),\"N\",IF(AND('Enrollment Form'!$C431=\"Enroll\",'Enrollment Form'!$B431=\"Subscriber\",'Enrollment Form'!$CX431=\"Yes\"),\"-\",\"Y\")))))","v":""},{"$f":"IF('Enrollment Form'!AH431=\"\",\"\",IF(ISERROR(SEARCH(\".\",'Enrollment Form'!AH431,SEARCH(\"@\",'Enrollment Form'!AH431))),\"N\",\"Y\"))","v":""},{"$f":"IF(OR($B424=\"N\",'Enrollment Form'!$G431=\"\"),\"\",IF('Enrollment Form'!$B431<>\"Subscriber\",\"-\",IF(COUNTIF('Enrollment Form'!$AV431:$AW431,\"Yes\")=2,\"N\",\"Y\")))","v":""},{"$f":"IF(OR('Enrollment Form'!$CJ431=\"\",'Enrollment Form'!$CJ431=\"No\"),\"-\",IF(AND('Enrollment Form'!$CJ431=\"Yes\",'Enrollment Form'!$CK431=\"\"),\"N\",\"Y\"))","v":"-"},{"$f":"IF(OR('Enrollment Form'!$CL431=\"\",'Enrollment Form'!$CL431=\"No\"),\"-\",IF(AND('Enrollment Form'!$CL431=\"Yes\",'Enrollment Form'!$CM431=\"\"),\"N\",\"Y\"))","v":"-"},{"$f":"IF(OR('Enrollment Form'!$CN431=\"\",'Enrollment Form'!$CN431=\"No\"),\"-\",IF(AND('Enrollment Form'!$CN431=\"Yes\",'Enrollment Form'!$CO431=\"\"),\"N\",\"Y\"))","v":"-"},{"$f":"IF(OR('Enrollment Form'!$CN431=\"\",'Enrollment Form'!$CN431=\"No\"),\"-\",IF(AND('Enrollment Form'!$CN431=\"Yes\",'Enrollment Form'!$CP431=\"\"),\"N\",\"Y\"))","v":"-"},{"$f":"IF('Enrollment Form'!B431<>\"Subscriber\",\"-\",IF(AND('Enrollment Form'!B431=\"Subscriber\",'Enrollment Form'!C431=\"Enroll\",'Enrollment Form'!AA431=\"\"),\"N\",\"Y\"))","v":"-"},{"$f":"IF(OR('Enrollment Form'!B431=\"Subscriber\",'Enrollment Form'!B431=\"\"),\"-\",IF('Enrollment Form'!BP431=\"\",\"N\",\"Y\"))","v":"-"},{"$f":"IF('Enrollment Form'!B431<>\"Subscriber\",\"-\",IF(AND('Enrollment Form'!B431=\"Subscriber\",'Enrollment Form'!G431=\"\"),\"N\",\"Y\"))","v":"-"},{"$f":"IF('Enrollment Form'!A431=\"\",\"\",IF('Enrollment Form'!B431=\"Subscriber\",\"-\",IF(AND('Enrollment Form'!B431<>\"Subscriber\",'Enrollment Form'!G431='Enrollment Form'!H431),\"N\",\"Y\")))","v":""},0]
[432,{"$f":"IF('Enrollment Form'!$A432<>\"\",\"Y\",\"N\")","v":"N"},{"$f":"IF(AND('Enrollment Form'!$B432=\"\",'Enrollment Form'!$C432<>\"\"),\"N\",IF($B425=\"N\",\"\",\"Y\"))","v":""},{"$f":"IF(OR($B425=\"N\",'Enrollment Form'!G432=\"\"),\"\",IF('Enrollment Form'!$B432<>\"Subscriber\",\"\",IF('Enrollment Form'!$G432='Enrollment Form'!$H432,\"Y\",\"N\")))","v":""},{"$f":"IF($B425=\"N\",\"\",IF(AND(COUNTIFS('Enrollment Form'!$H$11:$H$1000,'Enrollment Form'!$H432,'Enrollment Form'!$B$11:$B$1000,'Enrollment Form'!$B432)>1,'Enrollment Form'!$H432<>\"\"),\"N\",\"Y\"))","v":""},{"$f":"IF($B425=\"N\",\"\",IF(LEN('Enrollment Form'!$Y432)=0,\"\",IF(LEN('Enrollment Form'!$Y432)<>5,\"N\",\"Y\")))","v":""},{"$f":"IF($B425=\"N\",\"\",IF(LEN('Enrollment Form'!$AD432=0),\"\",IF(LEN('Enrollment Form'!$AD432)<>5,\"N\",\"Y\")))","v":""},{"$f":"IF($B425=\"N\",\"\",IF(LEN('Enrollment Form'!$BS432=0),\"\",IF(LEN('Enrollment Form'!$BS432)<>5,\"N\",\"Y\")))","v":""},{"$f":"IF($B425=\"N\",\"\",IF(LEN('Enrollment Form'!$AE432)=0,\"\",IF(LEN('Enrollment Form'!$AE432)<>10,\"N\",\"Y\")))","v":""},{"$f":"IF($B425=\"N\",\"\",IF(LEN('Enrollment Form'!$AF432)=0,\"\",IF(LEN('Enrollment Form'!$AF432)<>10,\"N\",\"Y\")))","v":""},{"$f":"IF('Enrollment Form'!$O432<>\"Graded\",\"-\",IF(AND('Enrollment Form'!$O432=\"Graded\",'Enrollment Form'!$AR432<>\"\"),\"Y\",\"N\"))","v":"-"},{"$f":"IF($B425=\"N\",\"\",IF(OR('Enrollment Form'!$B432<>\"Subscriber\",'Enrollment Form'!$C432=\"ROC\"),\"-\",IF(AND('Enrollment Form'!$B432=\"Subscriber\",'Enrollment Form'!$C432=\"Enroll\",'Enrollment Form'!$AJ432<>\"\"),\"Y\",\"N\")))","v":""},{"$f":"IF($B425=\"N\",\"\",IF(OR('Enrollment Form'!$B432<>\"Subscriber\",'Enrollment Form'!$C432=\"ROC\"),\"-\",IF(AND('Enrollment Form'!$B432=\"Subscriber\",'Enrollment Form'!$C432=\"Enroll\",'Enrollment Form'!$AK432<>\"\"),\"Y\",\"N\")))","v":""},{"$f":"IF($B425=\"N\",\"\",IF(OR('Enrollment Form'!$B432<>\"Subscriber\",'Enrollment Form'!$C432=\"ROC\"),\"-\",IF(AND('Enrollment Form'!$B432=\"Subscriber\",'Enrollment Form'!$C432=\"Enroll\",'Enrollment Form'!$AL432<>\"\"),\"Y\",\"N\")))","v":""},{"$f":"IF($B425=\"N\",\"\",IF(OR('Enrollment Form'!$B432<>\"Subscriber\",'Enrollment Form'!$C432=\"ROC\"),\"-\",IF(AND('Enrollment Form'!$B432=\"Subscriber\",'Enrollment Form'!$C432=\"Enroll\",'Enrollment Form'!$AP432<>\"\"),\"Y\",\"N\")))","v":""},{"$f":"IF($B425=\"N\",\"\",IF(OR('Enrollment Form'!$B432<>\"Subscriber\",'Enrollment Form'!$C432=\"ROC\"),\"-\",IF(AND('Enrollment Form'!$B432=\"Subscriber\",'Enrollment Form'!$C432=\"Enroll\",'Enrollment Form'!$AQ432<>\"\"),\"Y\",\"N\")))","v":""},{"$f":"IF($B425=\"N\",\"\",IF(OR('Enrollment Form'!$B432<>\"Subscriber\",'Enrollment Form'!$C432=\"ROC\"),\"-\",IF(AND('Enrollment Form'!$B432=\"Subscriber\",'Enrollment Form'!$C432=\"Enroll\",'Enrollment Form'!$AS432<>\"\"),\"Y\",\"N\")))","v":""},{"$f":"IF($B425=\"N\",\"\",IF($Q425=\"-\",\"-\",IF(AND($Q425=\"Y\",'Enrollment Form'!$AS432=\"No\"),\"-\",IF(AND($Q425=\"Y\",'Enrollment Form'!$AS432=\"Yes\",'Enrollment Form'!$AT432<>\"\"),\"Y\",\"N\"))))","v":""},{"$f":"IF($B425=\"N\",\"\",IF(OR('Enrollment Form'!$B432<>\"Subscriber\",'Enrollment Form'!$C432=\"ROC\"),\"-\",IF(AND('Enrollment Form'!$B432=\"Subscriber\",'Enrollment Form'!$C432=\"Enroll\",'Enrollment Form'!$CV432<>\"\"),\"Y\",\"N\")))","v":""},{"$f":"IF($B425=\"N\",\"\",IF($S425=\"-\",\"-\",IF(AND($S425=\"Y\",'Enrollment Form'!$CV432=\"No\"),\"-\",IF(AND($S425=\"Y\",'Enrollment Form'!$CV432=\"Yes\",'Enrollment Form'!$CW432<>\"\"),\"Y\",\"N\"))))","v":""},{"$f":"IF(OR('Enrollment Form'!$AY432=\"Yes\",'Enrollment Form'!$AY432=\"\"),\"-\",IF(OR(AND('Enrollment Form'!$AY432=\"No\",ISERROR(FIND(\"HMO\",VLOOKUP('Enrollment Form'!G432,'Enrollment Form'!H$11:J$1000,3,FALSE),1))=FALSE,COUNTA('Enrollment Form'!$AZ432:$BC432)=4),AND('Enrollment Form'!$AY432=\"No\",ISERROR(FIND(\"HMO\",VLOOKUP('Enrollment Form'!G432,'Enrollment Form'!H$11:J$1000,3,FALSE),1))=FALSE,COUNTA('Enrollment Form'!$BT432:$BW432)=4)),\"Y\",\"N\"))","v":"-"},{"$f":"IF($B425=\"N\",\"\",IF('Enrollment Form'!$B432=\"Subscriber\",\"-\",IF(COUNTA('Enrollment Form'!$BL432,'Enrollment Form'!$BN432)=2,\"Y\",\"N\")))","v":""},{"$f":"IF($B425=\"N\",\"\",IF(OR('Enrollment Form'!$AX432=\"\",'Enrollment Form'!$AX432=\"No\"),\"-\",IF(AND('Enrollment Form'!$AX432=\"Yes\",COUNTA('Enrollment Form'!$CR432)=1),\"Y\",\"N\")))","v":""},{"$f":"IF(OR('Enrollment Form'!$CR432=\"\",'Enrollment Form'!$CR432=\"No\"),\"-\",IF(COUNTA('Enrollment Form'!$CT432:$CU432)=2,\"Y\",\"N\"))","v":"-"},{"$f":"IF($B425=\"N\",\"\",IF(COUNTIF('Enrollment Form'!$DG432:$DP432,\"Other\")=COUNTA('Enrollment Form'!$DK432,'Enrollment Form'!$DH432,'Enrollment Form'!$DN432,'Enrollment Form'!$DQ432),\"Y\",\"N\"))","v":""},{"$f":"IF($B425=\"N\",\"\",IF(OR('Enrollment Form'!B432<>\"Subscriber\",'Enrollment Form'!C432=\"ROC\",COUNTIF('Enrollment Form'!AV432:AW432,\"Yes\")>=1),\"-\",IF(AND('Enrollment Form'!C432=\"Enroll\",COUNTIF('Enrollment Form'!AV432:AW432,\"No\")=2,'Enrollment Form'!AX432=\"\"),\"N\",\"Y\")))","v":""},{"$f":"IF(OR(B425=\"N\",'Enrollment Form'!B432<>\"Subscriber\",'Enrollment Form'!C432=\"ROC\",'Enrollment Form'!O432<>\"Multiple of Salary\"),\"-\",IF(COUNTA('Enrollment Form'!T432:U432)<2,\"N\",\"Y\"))","v":"-"},{"$f":"IF(B425=\"N\",\"\",IF(OR('Enrollment Form'!C432=\"ROC\",'Enrollment Form'!B432<>\"Subscriber\",'Enrollment Form'!O432=\"Waive\",'Enrollment Form'!O432=\"\"),\"-\",IF('Enrollment Form'!P432=\"\",\"N\",\"Y\")))","v":""},{"$f":"IF($B425=\"N\",\"\",IF(AND('Enrollment Form'!$C432=\"ROC\",'Enrollment Form'!$DR432<>\"\"),\"Y\",IF(AND('Enrollment Form'!$C432=\"ROC\",'Enrollment Form'!$DR432=\"\"),\"N\",IF(AND('Enrollment Form'!$C432=\"Enroll\",'Enrollment Form'!$B432=\"Subscriber\",'Enrollment Form'!$CX432=\"No\",'Enrollment Form'!$DR432=\"\"),\"N\",IF(AND('Enrollment Form'!$C432=\"Enroll\",'Enrollment Form'!$B432=\"Subscriber\",'Enrollment Form'!$CX432=\"Yes\"),\"-\",\"Y\")))))","v":""},{"$f":"IF($B425=\"N\",\"\",IF(AND('Enrollment Form'!$C432=\"ROC\",'Enrollment Form'!$DS432<>\"\"),\"Y\",IF(AND('Enrollment Form'!$C432=\"ROC\",'Enrollment Form'!$DS432=\"\"),\"N\",IF(AND('Enrollment Form'!$C432=\"Enroll\",'Enrollment Form'!$B432=\"Subscriber\",'Enrollment Form'!$CX432=\"No\",'Enrollment Form'!$DS432=\"\"),\"N\",IF(AND('Enrollment Form'!$C432=\"Enroll\",'Enrollment Form'!$B432=\"Subscriber\",'Enrollment Form'!$CX432=\"Yes\"),\"-\",\"Y\")))))","v":""},{"$f":"IF('Enrollment Form'!AH432=\"\",\"\",IF(ISERROR(SEARCH(\".\",'Enrollment Form'!AH432,SEARCH(\"@\",'Enrollment Form'!AH432))),\"N\",\"Y\"))","v":""},{"$f":"IF(OR($B425=\"N\",'Enrollment Form'!$G432=\"\"),\"\",IF('Enrollment Form'!$B432<>\"Subscriber\",\"-\",IF(COUNTIF('Enrollment Form'!$AV432:$AW432,\"Yes\")=2,\"N\",\"Y\")))","v":""},{"$f":"IF(OR('Enrollment Form'!$CJ432=\"\",'Enrollment Form'!$CJ432=\"No\"),\"-\",IF(AND('Enrollment Form'!$CJ432=\"Yes\",'Enrollment Form'!$CK432=\"\"),\"N\",\"Y\"))","v":"-"},{"$f":"IF(OR('Enrollment Form'!$CL432=\"\",'Enrollment Form'!$CL432=\"No\"),\"-\",IF(AND('Enrollment Form'!$CL432=\"Yes\",'Enrollment Form'!$CM432=\"\"),\"N\",\"Y\"))","v":"-"},{"$f":"IF(OR('Enrollment Form'!$CN432=\"\",'Enrollment Form'!$CN432=\"No\"),\"-\",IF(AND('Enrollment Form'!$CN432=\"Yes\",'Enrollment Form'!$CO432=\"\"),\"N\",\"Y\"))","v":"-"},{"$f":"IF(OR('Enrollment Form'!$CN432=\"\",'Enrollment Form'!$CN432=\"No\"),\"-\",IF(AND('Enrollment Form'!$CN432=\"Yes\",'Enrollment Form'!$CP432=\"\"),\"N\",\"Y\"))","v":"-"},{"$f":"IF('Enrollment Form'!B432<>\"Subscriber\",\"-\",IF(AND('Enrollment Form'!B432=\"Subscriber\",'Enrollment Form'!C432=\"Enroll\",'Enrollment Form'!AA432=\"\"),\"N\",\"Y\"))","v":"-"},{"$f":"IF(OR('Enrollment Form'!B432=\"Subscriber\",'Enrollment Form'!B432=\"\"),\"-\",IF('Enrollment Form'!BP432=\"\",\"N\",\"Y\"))","v":"-"},{"$f":"IF('Enrollment Form'!B432<>\"Subscriber\",\"-\",IF(AND('Enrollment Form'!B432=\"Subscriber\",'Enrollment Form'!G432=\"\"),\"N\",\"Y\"))","v":"-"},{"$f":"IF('Enrollment Form'!A432=\"\",\"\",IF('Enrollment Form'!B432=\"Subscriber\",\"-\",IF(AND('Enrollment Form'!B432<>\"Subscriber\",'Enrollment Form'!G432='Enrollment Form'!H432),\"N\",\"Y\")))","v":""},0]
[433,{"$f":"IF('Enrollment Form'!$A433<>\"\",\"Y\",\"N\")","v":"N"},{"$f":"IF(AND('Enrollment Form'!$B433=\"\",'Enrollment Form'!$C433<>\"\"),\"N\",IF($B426=\"N\",\"\",\"Y\"))","v":""},{"$f":"IF(OR($B426=\"N\",'Enrollment Form'!G433=\"\"),\"\",IF('Enrollment Form'!$B433<>\"Subscriber\",\"\",IF('Enrollment Form'!$G433='Enrollment Form'!$H433,\"Y\",\"N\")))","v":""},{"$f":"IF($B426=\"N\",\"\",IF(AND(COUNTIFS('Enrollment Form'!$H$11:$H$1000,'Enrollment Form'!$H433,'Enrollment Form'!$B$11:$B$1000,'Enrollment Form'!$B433)>1,'Enrollment Form'!$H433<>\"\"),\"N\",\"Y\"))","v":""},{"$f":"IF($B426=\"N\",\"\",IF(LEN('Enrollment Form'!$Y433)=0,\"\",IF(LEN('Enrollment Form'!$Y433)<>5,\"N\",\"Y\")))","v":""},{"$f":"IF($B426=\"N\",\"\",IF(LEN('Enrollment Form'!$AD433=0),\"\",IF(LEN('Enrollment Form'!$AD433)<>5,\"N\",\"Y\")))","v":""},{"$f":"IF($B426=\"N\",\"\",IF(LEN('Enrollment Form'!$BS433=0),\"\",IF(LEN('Enrollment Form'!$BS433)<>5,\"N\",\"Y\")))","v":""},{"$f":"IF($B426=\"N\",\"\",IF(LEN('Enrollment Form'!$AE433)=0,\"\",IF(LEN('Enrollment Form'!$AE433)<>10,\"N\",\"Y\")))","v":""},{"$f":"IF($B426=\"N\",\"\",IF(LEN('Enrollment Form'!$AF433)=0,\"\",IF(LEN('Enrollment Form'!$AF433)<>10,\"N\",\"Y\")))","v":""},{"$f":"IF('Enrollment Form'!$O433<>\"Graded\",\"-\",IF(AND('Enrollment Form'!$O433=\"Graded\",'Enrollment Form'!$AR433<>\"\"),\"Y\",\"N\"))","v":"-"},{"$f":"IF($B426=\"N\",\"\",IF(OR('Enrollment Form'!$B433<>\"Subscriber\",'Enrollment Form'!$C433=\"ROC\"),\"-\",IF(AND('Enrollment Form'!$B433=\"Subscriber\",'Enrollment Form'!$C433=\"Enroll\",'Enrollment Form'!$AJ433<>\"\"),\"Y\",\"N\")))","v":""},{"$f":"IF($B426=\"N\",\"\",IF(OR('Enrollment Form'!$B433<>\"Subscriber\",'Enrollment Form'!$C433=\"ROC\"),\"-\",IF(AND('Enrollment Form'!$B433=\"Subscriber\",'Enrollment Form'!$C433=\"Enroll\",'Enrollment Form'!$AK433<>\"\"),\"Y\",\"N\")))","v":""},{"$f":"IF($B426=\"N\",\"\",IF(OR('Enrollment Form'!$B433<>\"Subscriber\",'Enrollment Form'!$C433=\"ROC\"),\"-\",IF(AND('Enrollment Form'!$B433=\"Subscriber\",'Enrollment Form'!$C433=\"Enroll\",'Enrollment Form'!$AL433<>\"\"),\"Y\",\"N\")))","v":""},{"$f":"IF($B426=\"N\",\"\",IF(OR('Enrollment Form'!$B433<>\"Subscriber\",'Enrollment Form'!$C433=\"ROC\"),\"-\",IF(AND('Enrollment Form'!$B433=\"Subscriber\",'Enrollment Form'!$C433=\"Enroll\",'Enrollment Form'!$AP433<>\"\"),\"Y\",\"N\")))","v":""},{"$f":"IF($B426=\"N\",\"\",IF(OR('Enrollment Form'!$B433<>\"Subscriber\",'Enrollment Form'!$C433=\"ROC\"),\"-\",IF(AND('Enrollment Form'!$B433=\"Subscriber\",'Enrollment Form'!$C433=\"Enroll\",'Enrollment Form'!$AQ433<>\"\"),\"Y\",\"N\")))","v":""},{"$f":"IF($B426=\"N\",\"\",IF(OR('Enrollment Form'!$B433<>\"Subscriber\",'Enrollment Form'!$C433=\"ROC\"),\"-\",IF(AND('Enrollment Form'!$B433=\"Subscriber\",'Enrollment Form'!$C433=\"Enroll\",'Enrollment Form'!$AS433<>\"\"),\"Y\",\"N\")))","v":""},{"$f":"IF($B426=\"N\",\"\",IF($Q426=\"-\",\"-\",IF(AND($Q426=\"Y\",'Enrollment Form'!$AS433=\"No\"),\"-\",IF(AND($Q426=\"Y\",'Enrollment Form'!$AS433=\"Yes\",'Enrollment Form'!$AT433<>\"\"),\"Y\",\"N\"))))","v":""},{"$f":"IF($B426=\"N\",\"\",IF(OR('Enrollment Form'!$B433<>\"Subscriber\",'Enrollment Form'!$C433=\"ROC\"),\"-\",IF(AND('Enrollment Form'!$B433=\"Subscriber\",'Enrollment Form'!$C433=\"Enroll\",'Enrollment Form'!$CV433<>\"\"),\"Y\",\"N\")))","v":""},{"$f":"IF($B426=\"N\",\"\",IF($S426=\"-\",\"-\",IF(AND($S426=\"Y\",'Enrollment Form'!$CV433=\"No\"),\"-\",IF(AND($S426=\"Y\",'Enrollment Form'!$CV433=\"Yes\",'Enrollment Form'!$CW433<>\"\"),\"Y\",\"N\"))))","v":""},{"$f":"IF(OR('Enrollment Form'!$AY433=\"Yes\",'Enrollment Form'!$AY433=\"\"),\"-\",IF(OR(AND('Enrollment Form'!$AY433=\"No\",ISERROR(FIND(\"HMO\",VLOOKUP('Enrollment Form'!G433,'Enrollment Form'!H$11:J$1000,3,FALSE),1))=FALSE,COUNTA('Enrollment Form'!$AZ433:$BC433)=4),AND('Enrollment Form'!$AY433=\"No\",ISERROR(FIND(\"HMO\",VLOOKUP('Enrollment Form'!G433,'Enrollment Form'!H$11:J$1000,3,FALSE),1))=FALSE,COUNTA('Enrollment Form'!$BT433:$BW433)=4)),\"Y\",\"N\"))","v":"-"},{"$f":"IF($B426=\"N\",\"\",IF('Enrollment Form'!$B433=\"Subscriber\",\"-\",IF(COUNTA('Enrollment Form'!$BL433,'Enrollment Form'!$BN433)=2,\"Y\",\"N\")))","v":""},{"$f":"IF($B426=\"N\",\"\",IF(OR('Enrollment Form'!$AX433=\"\",'Enrollment Form'!$AX433=\"No\"),\"-\",IF(AND('Enrollment Form'!$AX433=\"Yes\",COUNTA('Enrollment Form'!$CR433)=1),\"Y\",\"N\")))","v":""},{"$f":"IF(OR('Enrollment Form'!$CR433=\"\",'Enrollment Form'!$CR433=\"No\"),\"-\",IF(COUNTA('Enrollment Form'!$CT433:$CU433)=2,\"Y\",\"N\"))","v":"-"},{"$f":"IF($B426=\"N\",\"\",IF(COUNTIF('Enrollment Form'!$DG433:$DP433,\"Other\")=COUNTA('Enrollment Form'!$DK433,'Enrollment Form'!$DH433,'Enrollment Form'!$DN433,'Enrollment Form'!$DQ433),\"Y\",\"N\"))","v":""},{"$f":"IF($B426=\"N\",\"\",IF(OR('Enrollment Form'!B433<>\"Subscriber\",'Enrollment Form'!C433=\"ROC\",COUNTIF('Enrollment Form'!AV433:AW433,\"Yes\")>=1),\"-\",IF(AND('Enrollment Form'!C433=\"Enroll\",COUNTIF('Enrollment Form'!AV433:AW433,\"No\")=2,'Enrollment Form'!AX433=\"\"),\"N\",\"Y\")))","v":""},{"$f":"IF(OR(B426=\"N\",'Enrollment Form'!B433<>\"Subscriber\",'Enrollment Form'!C433=\"ROC\",'Enrollment Form'!O433<>\"Multiple of Salary\"),\"-\",IF(COUNTA('Enrollment Form'!T433:U433)<2,\"N\",\"Y\"))","v":"-"},{"$f":"IF(B426=\"N\",\"\",IF(OR('Enrollment Form'!C433=\"ROC\",'Enrollment Form'!B433<>\"Subscriber\",'Enrollment Form'!O433=\"Waive\",'Enrollment Form'!O433=\"\"),\"-\",IF('Enrollment Form'!P433=\"\",\"N\",\"Y\")))","v":""},{"$f":"IF($B426=\"N\",\"\",IF(AND('Enrollment Form'!$C433=\"ROC\",'Enrollment Form'!$DR433<>\"\"),\"Y\",IF(AND('Enrollment Form'!$C433=\"ROC\",'Enrollment Form'!$DR433=\"\"),\"N\",IF(AND('Enrollment Form'!$C433=\"Enroll\",'Enrollment Form'!$B433=\"Subscriber\",'Enrollment Form'!$CX433=\"No\",'Enrollment Form'!$DR433=\"\"),\"N\",IF(AND('Enrollment Form'!$C433=\"Enroll\",'Enrollment Form'!$B433=\"Subscriber\",'Enrollment Form'!$CX433=\"Yes\"),\"-\",\"Y\")))))","v":""},{"$f":"IF($B426=\"N\",\"\",IF(AND('Enrollment Form'!$C433=\"ROC\",'Enrollment Form'!$DS433<>\"\"),\"Y\",IF(AND('Enrollment Form'!$C433=\"ROC\",'Enrollment Form'!$DS433=\"\"),\"N\",IF(AND('Enrollment Form'!$C433=\"Enroll\",'Enrollment Form'!$B433=\"Subscriber\",'Enrollment Form'!$CX433=\"No\",'Enrollment Form'!$DS433=\"\"),\"N\",IF(AND('Enrollment Form'!$C433=\"Enroll\",'Enrollment Form'!$B433=\"Subscriber\",'Enrollment Form'!$CX433=\"Yes\"),\"-\",\"Y\")))))","v":""},{"$f":"IF('Enrollment Form'!AH433=\"\",\"\",IF(ISERROR(SEARCH(\".\",'Enrollment Form'!AH433,SEARCH(\"@\",'Enrollment Form'!AH433))),\"N\",\"Y\"))","v":""},{"$f":"IF(OR($B426=\"N\",'Enrollment Form'!$G433=\"\"),\"\",IF('Enrollment Form'!$B433<>\"Subscriber\",\"-\",IF(COUNTIF('Enrollment Form'!$AV433:$AW433,\"Yes\")=2,\"N\",\"Y\")))","v":""},{"$f":"IF(OR('Enrollment Form'!$CJ433=\"\",'Enrollment Form'!$CJ433=\"No\"),\"-\",IF(AND('Enrollment Form'!$CJ433=\"Yes\",'Enrollment Form'!$CK433=\"\"),\"N\",\"Y\"))","v":"-"},{"$f":"IF(OR('Enrollment Form'!$CL433=\"\",'Enrollment Form'!$CL433=\"No\"),\"-\",IF(AND('Enrollment Form'!$CL433=\"Yes\",'Enrollment Form'!$CM433=\"\"),\"N\",\"Y\"))","v":"-"},{"$f":"IF(OR('Enrollment Form'!$CN433=\"\",'Enrollment Form'!$CN433=\"No\"),\"-\",IF(AND('Enrollment Form'!$CN433=\"Yes\",'Enrollment Form'!$CO433=\"\"),\"N\",\"Y\"))","v":"-"},{"$f":"IF(OR('Enrollment Form'!$CN433=\"\",'Enrollment Form'!$CN433=\"No\"),\"-\",IF(AND('Enrollment Form'!$CN433=\"Yes\",'Enrollment Form'!$CP433=\"\"),\"N\",\"Y\"))","v":"-"},{"$f":"IF('Enrollment Form'!B433<>\"Subscriber\",\"-\",IF(AND('Enrollment Form'!B433=\"Subscriber\",'Enrollment Form'!C433=\"Enroll\",'Enrollment Form'!AA433=\"\"),\"N\",\"Y\"))","v":"-"},{"$f":"IF(OR('Enrollment Form'!B433=\"Subscriber\",'Enrollment Form'!B433=\"\"),\"-\",IF('Enrollment Form'!BP433=\"\",\"N\",\"Y\"))","v":"-"},{"$f":"IF('Enrollment Form'!B433<>\"Subscriber\",\"-\",IF(AND('Enrollment Form'!B433=\"Subscriber\",'Enrollment Form'!G433=\"\"),\"N\",\"Y\"))","v":"-"},{"$f":"IF('Enrollment Form'!A433=\"\",\"\",IF('Enrollment Form'!B433=\"Subscriber\",\"-\",IF(AND('Enrollment Form'!B433<>\"Subscriber\",'Enrollment Form'!G433='Enrollment Form'!H433),\"N\",\"Y\")))","v":""},0]
[434,{"$f":"IF('Enrollment Form'!$A434<>\"\",\"Y\",\"N\")","v":"N"},{"$f":"IF(AND('Enrollment Form'!$B434=\"\",'Enrollment Form'!$C434<>\"\"),\"N\",IF($B427=\"N\",\"\",\"Y\"))","v":""},{"$f":"IF(OR($B427=\"N\",'Enrollment Form'!G434=\"\"),\"\",IF('Enrollment Form'!$B434<>\"Subscriber\",\"\",IF('Enrollment Form'!$G434='Enrollment Form'!$H434,\"Y\",\"N\")))","v":""},{"$f":"IF($B427=\"N\",\"\",IF(AND(COUNTIFS('Enrollment Form'!$H$11:$H$1000,'Enrollment Form'!$H434,'Enrollment Form'!$B$11:$B$1000,'Enrollment Form'!$B434)>1,'Enrollment Form'!$H434<>\"\"),\"N\",\"Y\"))","v":""},{"$f":"IF($B427=\"N\",\"\",IF(LEN('Enrollment Form'!$Y434)=0,\"\",IF(LEN('Enrollment Form'!$Y434)<>5,\"N\",\"Y\")))","v":""},{"$f":"IF($B427=\"N\",\"\",IF(LEN('Enrollment Form'!$AD434=0),\"\",IF(LEN('Enrollment Form'!$AD434)<>5,\"N\",\"Y\")))","v":""},{"$f":"IF($B427=\"N\",\"\",IF(LEN('Enrollment Form'!$BS434=0),\"\",IF(LEN('Enrollment Form'!$BS434)<>5,\"N\",\"Y\")))","v":""},{"$f":"IF($B427=\"N\",\"\",IF(LEN('Enrollment Form'!$AE434)=0,\"\",IF(LEN('Enrollment Form'!$AE434)<>10,\"N\",\"Y\")))","v":""},{"$f":"IF($B427=\"N\",\"\",IF(LEN('Enrollment Form'!$AF434)=0,\"\",IF(LEN('Enrollment Form'!$AF434)<>10,\"N\",\"Y\")))","v":""},{"$f":"IF('Enrollment Form'!$O434<>\"Graded\",\"-\",IF(AND('Enrollment Form'!$O434=\"Graded\",'Enrollment Form'!$AR434<>\"\"),\"Y\",\"N\"))","v":"-"},{"$f":"IF($B427=\"N\",\"\",IF(OR('Enrollment Form'!$B434<>\"Subscriber\",'Enrollment Form'!$C434=\"ROC\"),\"-\",IF(AND('Enrollment Form'!$B434=\"Subscriber\",'Enrollment Form'!$C434=\"Enroll\",'Enrollment Form'!$AJ434<>\"\"),\"Y\",\"N\")))","v":""},{"$f":"IF($B427=\"N\",\"\",IF(OR('Enrollment Form'!$B434<>\"Subscriber\",'Enrollment Form'!$C434=\"ROC\"),\"-\",IF(AND('Enrollment Form'!$B434=\"Subscriber\",'Enrollment Form'!$C434=\"Enroll\",'Enrollment Form'!$AK434<>\"\"),\"Y\",\"N\")))","v":""},{"$f":"IF($B427=\"N\",\"\",IF(OR('Enrollment Form'!$B434<>\"Subscriber\",'Enrollment Form'!$C434=\"ROC\"),\"-\",IF(AND('Enrollment Form'!$B434=\"Subscriber\",'Enrollment Form'!$C434=\"Enroll\",'Enrollment Form'!$AL434<>\"\"),\"Y\",\"N\")))","v":""},{"$f":"IF($B427=\"N\",\"\",IF(OR('Enrollment Form'!$B434<>\"Subscriber\",'Enrollment Form'!$C434=\"ROC\"),\"-\",IF(AND('Enrollment Form'!$B434=\"Subscriber\",'Enrollment Form'!$C434=\"Enroll\",'Enrollment Form'!$AP434<>\"\"),\"Y\",\"N\")))","v":""},{"$f":"IF($B427=\"N\",\"\",IF(OR('Enrollment Form'!$B434<>\"Subscriber\",'Enrollment Form'!$C434=\"ROC\"),\"-\",IF(AND('Enrollment Form'!$B434=\"Subscriber\",'Enrollment Form'!$C434=\"Enroll\",'Enrollment Form'!$AQ434<>\"\"),\"Y\",\"N\")))","v":""},{"$f":"IF($B427=\"N\",\"\",IF(OR('Enrollment Form'!$B434<>\"Subscriber\",'Enrollment Form'!$C434=\"ROC\"),\"-\",IF(AND('Enrollment Form'!$B434=\"Subscriber\",'Enrollment Form'!$C434=\"Enroll\",'Enrollment Form'!$AS434<>\"\"),\"Y\",\"N\")))","v":""},{"$f":"IF($B427=\"N\",\"\",IF($Q427=\"-\",\"-\",IF(AND($Q427=\"Y\",'Enrollment Form'!$AS434=\"No\"),\"-\",IF(AND($Q427=\"Y\",'Enrollment Form'!$AS434=\"Yes\",'Enrollment Form'!$AT434<>\"\"),\"Y\",\"N\"))))","v":""},{"$f":"IF($B427=\"N\",\"\",IF(OR('Enrollment Form'!$B434<>\"Subscriber\",'Enrollment Form'!$C434=\"ROC\"),\"-\",IF(AND('Enrollment Form'!$B434=\"Subscriber\",'Enrollment Form'!$C434=\"Enroll\",'Enrollment Form'!$CV434<>\"\"),\"Y\",\"N\")))","v":""},{"$f":"IF($B427=\"N\",\"\",IF($S427=\"-\",\"-\",IF(AND($S427=\"Y\",'Enrollment Form'!$CV434=\"No\"),\"-\",IF(AND($S427=\"Y\",'Enrollment Form'!$CV434=\"Yes\",'Enrollment Form'!$CW434<>\"\"),\"Y\",\"N\"))))","v":""},{"$f":"IF(OR('Enrollment Form'!$AY434=\"Yes\",'Enrollment Form'!$AY434=\"\"),\"-\",IF(OR(AND('Enrollment Form'!$AY434=\"No\",ISERROR(FIND(\"HMO\",VLOOKUP('Enrollment Form'!G434,'Enrollment Form'!H$11:J$1000,3,FALSE),1))=FALSE,COUNTA('Enrollment Form'!$AZ434:$BC434)=4),AND('Enrollment Form'!$AY434=\"No\",ISERROR(FIND(\"HMO\",VLOOKUP('Enrollment Form'!G434,'Enrollment Form'!H$11:J$1000,3,FALSE),1))=FALSE,COUNTA('Enrollment Form'!$BT434:$BW434)=4)),\"Y\",\"N\"))","v":"-"},{"$f":"IF($B427=\"N\",\"\",IF('Enrollment Form'!$B434=\"Subscriber\",\"-\",IF(COUNTA('Enrollment Form'!$BL434,'Enrollment Form'!$BN434)=2,\"Y\",\"N\")))","v":""},{"$f":"IF($B427=\"N\",\"\",IF(OR('Enrollment Form'!$AX434=\"\",'Enrollment Form'!$AX434=\"No\"),\"-\",IF(AND('Enrollment Form'!$AX434=\"Yes\",COUNTA('Enrollment Form'!$CR434)=1),\"Y\",\"N\")))","v":""},{"$f":"IF(OR('Enrollment Form'!$CR434=\"\",'Enrollment Form'!$CR434=\"No\"),\"-\",IF(COUNTA('Enrollment Form'!$CT434:$CU434)=2,\"Y\",\"N\"))","v":"-"},{"$f":"IF($B427=\"N\",\"\",IF(COUNTIF('Enrollment Form'!$DG434:$DP434,\"Other\")=COUNTA('Enrollment Form'!$DK434,'Enrollment Form'!$DH434,'Enrollment Form'!$DN434,'Enrollment Form'!$DQ434),\"Y\",\"N\"))","v":""},{"$f":"IF($B427=\"N\",\"\",IF(OR('Enrollment Form'!B434<>\"Subscriber\",'Enrollment Form'!C434=\"ROC\",COUNTIF('Enrollment Form'!AV434:AW434,\"Yes\")>=1),\"-\",IF(AND('Enrollment Form'!C434=\"Enroll\",COUNTIF('Enrollment Form'!AV434:AW434,\"No\")=2,'Enrollment Form'!AX434=\"\"),\"N\",\"Y\")))","v":""},{"$f":"IF(OR(B427=\"N\",'Enrollment Form'!B434<>\"Subscriber\",'Enrollment Form'!C434=\"ROC\",'Enrollment Form'!O434<>\"Multiple of Salary\"),\"-\",IF(COUNTA('Enrollment Form'!T434:U434)<2,\"N\",\"Y\"))","v":"-"},{"$f":"IF(B427=\"N\",\"\",IF(OR('Enrollment Form'!C434=\"ROC\",'Enrollment Form'!B434<>\"Subscriber\",'Enrollment Form'!O434=\"Waive\",'Enrollment Form'!O434=\"\"),\"-\",IF('Enrollment Form'!P434=\"\",\"N\",\"Y\")))","v":""},{"$f":"IF($B427=\"N\",\"\",IF(AND('Enrollment Form'!$C434=\"ROC\",'Enrollment Form'!$DR434<>\"\"),\"Y\",IF(AND('Enrollment Form'!$C434=\"ROC\",'Enrollment Form'!$DR434=\"\"),\"N\",IF(AND('Enrollment Form'!$C434=\"Enroll\",'Enrollment Form'!$B434=\"Subscriber\",'Enrollment Form'!$CX434=\"No\",'Enrollment Form'!$DR434=\"\"),\"N\",IF(AND('Enrollment Form'!$C434=\"Enroll\",'Enrollment Form'!$B434=\"Subscriber\",'Enrollment Form'!$CX434=\"Yes\"),\"-\",\"Y\")))))","v":""},{"$f":"IF($B427=\"N\",\"\",IF(AND('Enrollment Form'!$C434=\"ROC\",'Enrollment Form'!$DS434<>\"\"),\"Y\",IF(AND('Enrollment Form'!$C434=\"ROC\",'Enrollment Form'!$DS434=\"\"),\"N\",IF(AND('Enrollment Form'!$C434=\"Enroll\",'Enrollment Form'!$B434=\"Subscriber\",'Enrollment Form'!$CX434=\"No\",'Enrollment Form'!$DS434=\"\"),\"N\",IF(AND('Enrollment Form'!$C434=\"Enroll\",'Enrollment Form'!$B434=\"Subscriber\",'Enrollment Form'!$CX434=\"Yes\"),\"-\",\"Y\")))))","v":""},{"$f":"IF('Enrollment Form'!AH434=\"\",\"\",IF(ISERROR(SEARCH(\".\",'Enrollment Form'!AH434,SEARCH(\"@\",'Enrollment Form'!AH434))),\"N\",\"Y\"))","v":""},{"$f":"IF(OR($B427=\"N\",'Enrollment Form'!$G434=\"\"),\"\",IF('Enrollment Form'!$B434<>\"Subscriber\",\"-\",IF(COUNTIF('Enrollment Form'!$AV434:$AW434,\"Yes\")=2,\"N\",\"Y\")))","v":""},{"$f":"IF(OR('Enrollment Form'!$CJ434=\"\",'Enrollment Form'!$CJ434=\"No\"),\"-\",IF(AND('Enrollment Form'!$CJ434=\"Yes\",'Enrollment Form'!$CK434=\"\"),\"N\",\"Y\"))","v":"-"},{"$f":"IF(OR('Enrollment Form'!$CL434=\"\",'Enrollment Form'!$CL434=\"No\"),\"-\",IF(AND('Enrollment Form'!$CL434=\"Yes\",'Enrollment Form'!$CM434=\"\"),\"N\",\"Y\"))","v":"-"},{"$f":"IF(OR('Enrollment Form'!$CN434=\"\",'Enrollment Form'!$CN434=\"No\"),\"-\",IF(AND('Enrollment Form'!$CN434=\"Yes\",'Enrollment Form'!$CO434=\"\"),\"N\",\"Y\"))","v":"-"},{"$f":"IF(OR('Enrollment Form'!$CN434=\"\",'Enrollment Form'!$CN434=\"No\"),\"-\",IF(AND('Enrollment Form'!$CN434=\"Yes\",'Enrollment Form'!$CP434=\"\"),\"N\",\"Y\"))","v":"-"},{"$f":"IF('Enrollment Form'!B434<>\"Subscriber\",\"-\",IF(AND('Enrollment Form'!B434=\"Subscriber\",'Enrollment Form'!C434=\"Enroll\",'Enrollment Form'!AA434=\"\"),\"N\",\"Y\"))","v":"-"},{"$f":"IF(OR('Enrollment Form'!B434=\"Subscriber\",'Enrollment Form'!B434=\"\"),\"-\",IF('Enrollment Form'!BP434=\"\",\"N\",\"Y\"))","v":"-"},{"$f":"IF('Enrollment Form'!B434<>\"Subscriber\",\"-\",IF(AND('Enrollment Form'!B434=\"Subscriber\",'Enrollment Form'!G434=\"\"),\"N\",\"Y\"))","v":"-"},{"$f":"IF('Enrollment Form'!A434=\"\",\"\",IF('Enrollment Form'!B434=\"Subscriber\",\"-\",IF(AND('Enrollment Form'!B434<>\"Subscriber\",'Enrollment Form'!G434='Enrollment Form'!H434),\"N\",\"Y\")))","v":""},0]
[435,{"$f":"IF('Enrollment Form'!$A435<>\"\",\"Y\",\"N\")","v":"N"},{"$f":"IF(AND('Enrollment Form'!$B435=\"\",'Enrollment Form'!$C435<>\"\"),\"N\",IF($B428=\"N\",\"\",\"Y\"))","v":""},{"$f":"IF(OR($B428=\"N\",'Enrollment Form'!G435=\"\"),\"\",IF('Enrollment Form'!$B435<>\"Subscriber\",\"\",IF('Enrollment Form'!$G435='Enrollment Form'!$H435,\"Y\",\"N\")))","v":""},{"$f":"IF($B428=\"N\",\"\",IF(AND(COUNTIFS('Enrollment Form'!$H$11:$H$1000,'Enrollment Form'!$H435,'Enrollment Form'!$B$11:$B$1000,'Enrollment Form'!$B435)>1,'Enrollment Form'!$H435<>\"\"),\"N\",\"Y\"))","v":""},{"$f":"IF($B428=\"N\",\"\",IF(LEN('Enrollment Form'!$Y435)=0,\"\",IF(LEN('Enrollment Form'!$Y435)<>5,\"N\",\"Y\")))","v":""},{"$f":"IF($B428=\"N\",\"\",IF(LEN('Enrollment Form'!$AD435=0),\"\",IF(LEN('Enrollment Form'!$AD435)<>5,\"N\",\"Y\")))","v":""},{"$f":"IF($B428=\"N\",\"\",IF(LEN('Enrollment Form'!$BS435=0),\"\",IF(LEN('Enrollment Form'!$BS435)<>5,\"N\",\"Y\")))","v":""},{"$f":"IF($B428=\"N\",\"\",IF(LEN('Enrollment Form'!$AE435)=0,\"\",IF(LEN('Enrollment Form'!$AE435)<>10,\"N\",\"Y\")))","v":""},{"$f":"IF($B428=\"N\",\"\",IF(LEN('Enrollment Form'!$AF435)=0,\"\",IF(LEN('Enrollment Form'!$AF435)<>10,\"N\",\"Y\")))","v":""},{"$f":"IF('Enrollment Form'!$O435<>\"Graded\",\"-\",IF(AND('Enrollment Form'!$O435=\"Graded\",'Enrollment Form'!$AR435<>\"\"),\"Y\",\"N\"))","v":"-"},{"$f":"IF($B428=\"N\",\"\",IF(OR('Enrollment Form'!$B435<>\"Subscriber\",'Enrollment Form'!$C435=\"ROC\"),\"-\",IF(AND('Enrollment Form'!$B435=\"Subscriber\",'Enrollment Form'!$C435=\"Enroll\",'Enrollment Form'!$AJ435<>\"\"),\"Y\",\"N\")))","v":""},{"$f":"IF($B428=\"N\",\"\",IF(OR('Enrollment Form'!$B435<>\"Subscriber\",'Enrollment Form'!$C435=\"ROC\"),\"-\",IF(AND('Enrollment Form'!$B435=\"Subscriber\",'Enrollment Form'!$C435=\"Enroll\",'Enrollment Form'!$AK435<>\"\"),\"Y\",\"N\")))","v":""},{"$f":"IF($B428=\"N\",\"\",IF(OR('Enrollment Form'!$B435<>\"Subscriber\",'Enrollment Form'!$C435=\"ROC\"),\"-\",IF(AND('Enrollment Form'!$B435=\"Subscriber\",'Enrollment Form'!$C435=\"Enroll\",'Enrollment Form'!$AL435<>\"\"),\"Y\",\"N\")))","v":""},{"$f":"IF($B428=\"N\",\"\",IF(OR('Enrollment Form'!$B435<>\"Subscriber\",'Enrollment Form'!$C435=\"ROC\"),\"-\",IF(AND('Enrollment Form'!$B435=\"Subscriber\",'Enrollment Form'!$C435=\"Enroll\",'Enrollment Form'!$AP435<>\"\"),\"Y\",\"N\")))","v":""},{"$f":"IF($B428=\"N\",\"\",IF(OR('Enrollment Form'!$B435<>\"Subscriber\",'Enrollment Form'!$C435=\"ROC\"),\"-\",IF(AND('Enrollment Form'!$B435=\"Subscriber\",'Enrollment Form'!$C435=\"Enroll\",'Enrollment Form'!$AQ435<>\"\"),\"Y\",\"N\")))","v":""},{"$f":"IF($B428=\"N\",\"\",IF(OR('Enrollment Form'!$B435<>\"Subscriber\",'Enrollment Form'!$C435=\"ROC\"),\"-\",IF(AND('Enrollment Form'!$B435=\"Subscriber\",'Enrollment Form'!$C435=\"Enroll\",'Enrollment Form'!$AS435<>\"\"),\"Y\",\"N\")))","v":""},{"$f":"IF($B428=\"N\",\"\",IF($Q428=\"-\",\"-\",IF(AND($Q428=\"Y\",'Enrollment Form'!$AS435=\"No\"),\"-\",IF(AND($Q428=\"Y\",'Enrollment Form'!$AS435=\"Yes\",'Enrollment Form'!$AT435<>\"\"),\"Y\",\"N\"))))","v":""},{"$f":"IF($B428=\"N\",\"\",IF(OR('Enrollment Form'!$B435<>\"Subscriber\",'Enrollment Form'!$C435=\"ROC\"),\"-\",IF(AND('Enrollment Form'!$B435=\"Subscriber\",'Enrollment Form'!$C435=\"Enroll\",'Enrollment Form'!$CV435<>\"\"),\"Y\",\"N\")))","v":""},{"$f":"IF($B428=\"N\",\"\",IF($S428=\"-\",\"-\",IF(AND($S428=\"Y\",'Enrollment Form'!$CV435=\"No\"),\"-\",IF(AND($S428=\"Y\",'Enrollment Form'!$CV435=\"Yes\",'Enrollment Form'!$CW435<>\"\"),\"Y\",\"N\"))))","v":""},{"$f":"IF(OR('Enrollment Form'!$AY435=\"Yes\",'Enrollment Form'!$AY435=\"\"),\"-\",IF(OR(AND('Enrollment Form'!$AY435=\"No\",ISERROR(FIND(\"HMO\",VLOOKUP('Enrollment Form'!G435,'Enrollment Form'!H$11:J$1000,3,FALSE),1))=FALSE,COUNTA('Enrollment Form'!$AZ435:$BC435)=4),AND('Enrollment Form'!$AY435=\"No\",ISERROR(FIND(\"HMO\",VLOOKUP('Enrollment Form'!G435,'Enrollment Form'!H$11:J$1000,3,FALSE),1))=FALSE,COUNTA('Enrollment Form'!$BT435:$BW435)=4)),\"Y\",\"N\"))","v":"-"},{"$f":"IF($B428=\"N\",\"\",IF('Enrollment Form'!$B435=\"Subscriber\",\"-\",IF(COUNTA('Enrollment Form'!$BL435,'Enrollment Form'!$BN435)=2,\"Y\",\"N\")))","v":""},{"$f":"IF($B428=\"N\",\"\",IF(OR('Enrollment Form'!$AX435=\"\",'Enrollment Form'!$AX435=\"No\"),\"-\",IF(AND('Enrollment Form'!$AX435=\"Yes\",COUNTA('Enrollment Form'!$CR435)=1),\"Y\",\"N\")))","v":""},{"$f":"IF(OR('Enrollment Form'!$CR435=\"\",'Enrollment Form'!$CR435=\"No\"),\"-\",IF(COUNTA('Enrollment Form'!$CT435:$CU435)=2,\"Y\",\"N\"))","v":"-"},{"$f":"IF($B428=\"N\",\"\",IF(COUNTIF('Enrollment Form'!$DG435:$DP435,\"Other\")=COUNTA('Enrollment Form'!$DK435,'Enrollment Form'!$DH435,'Enrollment Form'!$DN435,'Enrollment Form'!$DQ435),\"Y\",\"N\"))","v":""},{"$f":"IF($B428=\"N\",\"\",IF(OR('Enrollment Form'!B435<>\"Subscriber\",'Enrollment Form'!C435=\"ROC\",COUNTIF('Enrollment Form'!AV435:AW435,\"Yes\")>=1),\"-\",IF(AND('Enrollment Form'!C435=\"Enroll\",COUNTIF('Enrollment Form'!AV435:AW435,\"No\")=2,'Enrollment Form'!AX435=\"\"),\"N\",\"Y\")))","v":""},{"$f":"IF(OR(B428=\"N\",'Enrollment Form'!B435<>\"Subscriber\",'Enrollment Form'!C435=\"ROC\",'Enrollment Form'!O435<>\"Multiple of Salary\"),\"-\",IF(COUNTA('Enrollment Form'!T435:U435)<2,\"N\",\"Y\"))","v":"-"},{"$f":"IF(B428=\"N\",\"\",IF(OR('Enrollment Form'!C435=\"ROC\",'Enrollment Form'!B435<>\"Subscriber\",'Enrollment Form'!O435=\"Waive\",'Enrollment Form'!O435=\"\"),\"-\",IF('Enrollment Form'!P435=\"\",\"N\",\"Y\")))","v":""},{"$f":"IF($B428=\"N\",\"\",IF(AND('Enrollment Form'!$C435=\"ROC\",'Enrollment Form'!$DR435<>\"\"),\"Y\",IF(AND('Enrollment Form'!$C435=\"ROC\",'Enrollment Form'!$DR435=\"\"),\"N\",IF(AND('Enrollment Form'!$C435=\"Enroll\",'Enrollment Form'!$B435=\"Subscriber\",'Enrollment Form'!$CX435=\"No\",'Enrollment Form'!$DR435=\"\"),\"N\",IF(AND('Enrollment Form'!$C435=\"Enroll\",'Enrollment Form'!$B435=\"Subscriber\",'Enrollment Form'!$CX435=\"Yes\"),\"-\",\"Y\")))))","v":""},{"$f":"IF($B428=\"N\",\"\",IF(AND('Enrollment Form'!$C435=\"ROC\",'Enrollment Form'!$DS435<>\"\"),\"Y\",IF(AND('Enrollment Form'!$C435=\"ROC\",'Enrollment Form'!$DS435=\"\"),\"N\",IF(AND('Enrollment Form'!$C435=\"Enroll\",'Enrollment Form'!$B435=\"Subscriber\",'Enrollment Form'!$CX435=\"No\",'Enrollment Form'!$DS435=\"\"),\"N\",IF(AND('Enrollment Form'!$C435=\"Enroll\",'Enrollment Form'!$B435=\"Subscriber\",'Enrollment Form'!$CX435=\"Yes\"),\"-\",\"Y\")))))","v":""},{"$f":"IF('Enrollment Form'!AH435=\"\",\"\",IF(ISERROR(SEARCH(\".\",'Enrollment Form'!AH435,SEARCH(\"@\",'Enrollment Form'!AH435))),\"N\",\"Y\"))","v":""},{"$f":"IF(OR($B428=\"N\",'Enrollment Form'!$G435=\"\"),\"\",IF('Enrollment Form'!$B435<>\"Subscriber\",\"-\",IF(COUNTIF('Enrollment Form'!$AV435:$AW435,\"Yes\")=2,\"N\",\"Y\")))","v":""},{"$f":"IF(OR('Enrollment Form'!$CJ435=\"\",'Enrollment Form'!$CJ435=\"No\"),\"-\",IF(AND('Enrollment Form'!$CJ435=\"Yes\",'Enrollment Form'!$CK435=\"\"),\"N\",\"Y\"))","v":"-"},{"$f":"IF(OR('Enrollment Form'!$CL435=\"\",'Enrollment Form'!$CL435=\"No\"),\"-\",IF(AND('Enrollment Form'!$CL435=\"Yes\",'Enrollment Form'!$CM435=\"\"),\"N\",\"Y\"))","v":"-"},{"$f":"IF(OR('Enrollment Form'!$CN435=\"\",'Enrollment Form'!$CN435=\"No\"),\"-\",IF(AND('Enrollment Form'!$CN435=\"Yes\",'Enrollment Form'!$CO435=\"\"),\"N\",\"Y\"))","v":"-"},{"$f":"IF(OR('Enrollment Form'!$CN435=\"\",'Enrollment Form'!$CN435=\"No\"),\"-\",IF(AND('Enrollment Form'!$CN435=\"Yes\",'Enrollment Form'!$CP435=\"\"),\"N\",\"Y\"))","v":"-"},{"$f":"IF('Enrollment Form'!B435<>\"Subscriber\",\"-\",IF(AND('Enrollment Form'!B435=\"Subscriber\",'Enrollment Form'!C435=\"Enroll\",'Enrollment Form'!AA435=\"\"),\"N\",\"Y\"))","v":"-"},{"$f":"IF(OR('Enrollment Form'!B435=\"Subscriber\",'Enrollment Form'!B435=\"\"),\"-\",IF('Enrollment Form'!BP435=\"\",\"N\",\"Y\"))","v":"-"},{"$f":"IF('Enrollment Form'!B435<>\"Subscriber\",\"-\",IF(AND('Enrollment Form'!B435=\"Subscriber\",'Enrollment Form'!G435=\"\"),\"N\",\"Y\"))","v":"-"},{"$f":"IF('Enrollment Form'!A435=\"\",\"\",IF('Enrollment Form'!B435=\"Subscriber\",\"-\",IF(AND('Enrollment Form'!B435<>\"Subscriber\",'Enrollment Form'!G435='Enrollment Form'!H435),\"N\",\"Y\")))","v":""},0]
[436,{"$f":"IF('Enrollment Form'!$A436<>\"\",\"Y\",\"N\")","v":"N"},{"$f":"IF(AND('Enrollment Form'!$B436=\"\",'Enrollment Form'!$C436<>\"\"),\"N\",IF($B429=\"N\",\"\",\"Y\"))","v":""},{"$f":"IF(OR($B429=\"N\",'Enrollment Form'!G436=\"\"),\"\",IF('Enrollment Form'!$B436<>\"Subscriber\",\"\",IF('Enrollment Form'!$G436='Enrollment Form'!$H436,\"Y\",\"N\")))","v":""},{"$f":"IF($B429=\"N\",\"\",IF(AND(COUNTIFS('Enrollment Form'!$H$11:$H$1000,'Enrollment Form'!$H436,'Enrollment Form'!$B$11:$B$1000,'Enrollment Form'!$B436)>1,'Enrollment Form'!$H436<>\"\"),\"N\",\"Y\"))","v":""},{"$f":"IF($B429=\"N\",\"\",IF(LEN('Enrollment Form'!$Y436)=0,\"\",IF(LEN('Enrollment Form'!$Y436)<>5,\"N\",\"Y\")))","v":""},{"$f":"IF($B429=\"N\",\"\",IF(LEN('Enrollment Form'!$AD436=0),\"\",IF(LEN('Enrollment Form'!$AD436)<>5,\"N\",\"Y\")))","v":""},{"$f":"IF($B429=\"N\",\"\",IF(LEN('Enrollment Form'!$BS436=0),\"\",IF(LEN('Enrollment Form'!$BS436)<>5,\"N\",\"Y\")))","v":""},{"$f":"IF($B429=\"N\",\"\",IF(LEN('Enrollment Form'!$AE436)=0,\"\",IF(LEN('Enrollment Form'!$AE436)<>10,\"N\",\"Y\")))","v":""},{"$f":"IF($B429=\"N\",\"\",IF(LEN('Enrollment Form'!$AF436)=0,\"\",IF(LEN('Enrollment Form'!$AF436)<>10,\"N\",\"Y\")))","v":""},{"$f":"IF('Enrollment Form'!$O436<>\"Graded\",\"-\",IF(AND('Enrollment Form'!$O436=\"Graded\",'Enrollment Form'!$AR436<>\"\"),\"Y\",\"N\"))","v":"-"},{"$f":"IF($B429=\"N\",\"\",IF(OR('Enrollment Form'!$B436<>\"Subscriber\",'Enrollment Form'!$C436=\"ROC\"),\"-\",IF(AND('Enrollment Form'!$B436=\"Subscriber\",'Enrollment Form'!$C436=\"Enroll\",'Enrollment Form'!$AJ436<>\"\"),\"Y\",\"N\")))","v":""},{"$f":"IF($B429=\"N\",\"\",IF(OR('Enrollment Form'!$B436<>\"Subscriber\",'Enrollment Form'!$C436=\"ROC\"),\"-\",IF(AND('Enrollment Form'!$B436=\"Subscriber\",'Enrollment Form'!$C436=\"Enroll\",'Enrollment Form'!$AK436<>\"\"),\"Y\",\"N\")))","v":""},{"$f":"IF($B429=\"N\",\"\",IF(OR('Enrollment Form'!$B436<>\"Subscriber\",'Enrollment Form'!$C436=\"ROC\"),\"-\",IF(AND('Enrollment Form'!$B436=\"Subscriber\",'Enrollment Form'!$C436=\"Enroll\",'Enrollment Form'!$AL436<>\"\"),\"Y\",\"N\")))","v":""},{"$f":"IF($B429=\"N\",\"\",IF(OR('Enrollment Form'!$B436<>\"Subscriber\",'Enrollment Form'!$C436=\"ROC\"),\"-\",IF(AND('Enrollment Form'!$B436=\"Subscriber\",'Enrollment Form'!$C436=\"Enroll\",'Enrollment Form'!$AP436<>\"\"),\"Y\",\"N\")))","v":""},{"$f":"IF($B429=\"N\",\"\",IF(OR('Enrollment Form'!$B436<>\"Subscriber\",'Enrollment Form'!$C436=\"ROC\"),\"-\",IF(AND('Enrollment Form'!$B436=\"Subscriber\",'Enrollment Form'!$C436=\"Enroll\",'Enrollment Form'!$AQ436<>\"\"),\"Y\",\"N\")))","v":""},{"$f":"IF($B429=\"N\",\"\",IF(OR('Enrollment Form'!$B436<>\"Subscriber\",'Enrollment Form'!$C436=\"ROC\"),\"-\",IF(AND('Enrollment Form'!$B436=\"Subscriber\",'Enrollment Form'!$C436=\"Enroll\",'Enrollment Form'!$AS436<>\"\"),\"Y\",\"N\")))","v":""},{"$f":"IF($B429=\"N\",\"\",IF($Q429=\"-\",\"-\",IF(AND($Q429=\"Y\",'Enrollment Form'!$AS436=\"No\"),\"-\",IF(AND($Q429=\"Y\",'Enrollment Form'!$AS436=\"Yes\",'Enrollment Form'!$AT436<>\"\"),\"Y\",\"N\"))))","v":""},{"$f":"IF($B429=\"N\",\"\",IF(OR('Enrollment Form'!$B436<>\"Subscriber\",'Enrollment Form'!$C436=\"ROC\"),\"-\",IF(AND('Enrollment Form'!$B436=\"Subscriber\",'Enrollment Form'!$C436=\"Enroll\",'Enrollment Form'!$CV436<>\"\"),\"Y\",\"N\")))","v":""},{"$f":"IF($B429=\"N\",\"\",IF($S429=\"-\",\"-\",IF(AND($S429=\"Y\",'Enrollment Form'!$CV436=\"No\"),\"-\",IF(AND($S429=\"Y\",'Enrollment Form'!$CV436=\"Yes\",'Enrollment Form'!$CW436<>\"\"),\"Y\",\"N\"))))","v":""},{"$f":"IF(OR('Enrollment Form'!$AY436=\"Yes\",'Enrollment Form'!$AY436=\"\"),\"-\",IF(OR(AND('Enrollment Form'!$AY436=\"No\",ISERROR(FIND(\"HMO\",VLOOKUP('Enrollment Form'!G436,'Enrollment Form'!H$11:J$1000,3,FALSE),1))=FALSE,COUNTA('Enrollment Form'!$AZ436:$BC436)=4),AND('Enrollment Form'!$AY436=\"No\",ISERROR(FIND(\"HMO\",VLOOKUP('Enrollment Form'!G436,'Enrollment Form'!H$11:J$1000,3,FALSE),1))=FALSE,COUNTA('Enrollment Form'!$BT436:$BW436)=4)),\"Y\",\"N\"))","v":"-"},{"$f":"IF($B429=\"N\",\"\",IF('Enrollment Form'!$B436=\"Subscriber\",\"-\",IF(COUNTA('Enrollment Form'!$BL436,'Enrollment Form'!$BN436)=2,\"Y\",\"N\")))","v":""},{"$f":"IF($B429=\"N\",\"\",IF(OR('Enrollment Form'!$AX436=\"\",'Enrollment Form'!$AX436=\"No\"),\"-\",IF(AND('Enrollment Form'!$AX436=\"Yes\",COUNTA('Enrollment Form'!$CR436)=1),\"Y\",\"N\")))","v":""},{"$f":"IF(OR('Enrollment Form'!$CR436=\"\",'Enrollment Form'!$CR436=\"No\"),\"-\",IF(COUNTA('Enrollment Form'!$CT436:$CU436)=2,\"Y\",\"N\"))","v":"-"},{"$f":"IF($B429=\"N\",\"\",IF(COUNTIF('Enrollment Form'!$DG436:$DP436,\"Other\")=COUNTA('Enrollment Form'!$DK436,'Enrollment Form'!$DH436,'Enrollment Form'!$DN436,'Enrollment Form'!$DQ436),\"Y\",\"N\"))","v":""},{"$f":"IF($B429=\"N\",\"\",IF(OR('Enrollment Form'!B436<>\"Subscriber\",'Enrollment Form'!C436=\"ROC\",COUNTIF('Enrollment Form'!AV436:AW436,\"Yes\")>=1),\"-\",IF(AND('Enrollment Form'!C436=\"Enroll\",COUNTIF('Enrollment Form'!AV436:AW436,\"No\")=2,'Enrollment Form'!AX436=\"\"),\"N\",\"Y\")))","v":""},{"$f":"IF(OR(B429=\"N\",'Enrollment Form'!B436<>\"Subscriber\",'Enrollment Form'!C436=\"ROC\",'Enrollment Form'!O436<>\"Multiple of Salary\"),\"-\",IF(COUNTA('Enrollment Form'!T436:U436)<2,\"N\",\"Y\"))","v":"-"},{"$f":"IF(B429=\"N\",\"\",IF(OR('Enrollment Form'!C436=\"ROC\",'Enrollment Form'!B436<>\"Subscriber\",'Enrollment Form'!O436=\"Waive\",'Enrollment Form'!O436=\"\"),\"-\",IF('Enrollment Form'!P436=\"\",\"N\",\"Y\")))","v":""},{"$f":"IF($B429=\"N\",\"\",IF(AND('Enrollment Form'!$C436=\"ROC\",'Enrollment Form'!$DR436<>\"\"),\"Y\",IF(AND('Enrollment Form'!$C436=\"ROC\",'Enrollment Form'!$DR436=\"\"),\"N\",IF(AND('Enrollment Form'!$C436=\"Enroll\",'Enrollment Form'!$B436=\"Subscriber\",'Enrollment Form'!$CX436=\"No\",'Enrollment Form'!$DR436=\"\"),\"N\",IF(AND('Enrollment Form'!$C436=\"Enroll\",'Enrollment Form'!$B436=\"Subscriber\",'Enrollment Form'!$CX436=\"Yes\"),\"-\",\"Y\")))))","v":""},{"$f":"IF($B429=\"N\",\"\",IF(AND('Enrollment Form'!$C436=\"ROC\",'Enrollment Form'!$DS436<>\"\"),\"Y\",IF(AND('Enrollment Form'!$C436=\"ROC\",'Enrollment Form'!$DS436=\"\"),\"N\",IF(AND('Enrollment Form'!$C436=\"Enroll\",'Enrollment Form'!$B436=\"Subscriber\",'Enrollment Form'!$CX436=\"No\",'Enrollment Form'!$DS436=\"\"),\"N\",IF(AND('Enrollment Form'!$C436=\"Enroll\",'Enrollment Form'!$B436=\"Subscriber\",'Enrollment Form'!$CX436=\"Yes\"),\"-\",\"Y\")))))","v":""},{"$f":"IF('Enrollment Form'!AH436=\"\",\"\",IF(ISERROR(SEARCH(\".\",'Enrollment Form'!AH436,SEARCH(\"@\",'Enrollment Form'!AH436))),\"N\",\"Y\"))","v":""},{"$f":"IF(OR($B429=\"N\",'Enrollment Form'!$G436=\"\"),\"\",IF('Enrollment Form'!$B436<>\"Subscriber\",\"-\",IF(COUNTIF('Enrollment Form'!$AV436:$AW436,\"Yes\")=2,\"N\",\"Y\")))","v":""},{"$f":"IF(OR('Enrollment Form'!$CJ436=\"\",'Enrollment Form'!$CJ436=\"No\"),\"-\",IF(AND('Enrollment Form'!$CJ436=\"Yes\",'Enrollment Form'!$CK436=\"\"),\"N\",\"Y\"))","v":"-"},{"$f":"IF(OR('Enrollment Form'!$CL436=\"\",'Enrollment Form'!$CL436=\"No\"),\"-\",IF(AND('Enrollment Form'!$CL436=\"Yes\",'Enrollment Form'!$CM436=\"\"),\"N\",\"Y\"))","v":"-"},{"$f":"IF(OR('Enrollment Form'!$CN436=\"\",'Enrollment Form'!$CN436=\"No\"),\"-\",IF(AND('Enrollment Form'!$CN436=\"Yes\",'Enrollment Form'!$CO436=\"\"),\"N\",\"Y\"))","v":"-"},{"$f":"IF(OR('Enrollment Form'!$CN436=\"\",'Enrollment Form'!$CN436=\"No\"),\"-\",IF(AND('Enrollment Form'!$CN436=\"Yes\",'Enrollment Form'!$CP436=\"\"),\"N\",\"Y\"))","v":"-"},{"$f":"IF('Enrollment Form'!B436<>\"Subscriber\",\"-\",IF(AND('Enrollment Form'!B436=\"Subscriber\",'Enrollment Form'!C436=\"Enroll\",'Enrollment Form'!AA436=\"\"),\"N\",\"Y\"))","v":"-"},{"$f":"IF(OR('Enrollment Form'!B436=\"Subscriber\",'Enrollment Form'!B436=\"\"),\"-\",IF('Enrollment Form'!BP436=\"\",\"N\",\"Y\"))","v":"-"},{"$f":"IF('Enrollment Form'!B436<>\"Subscriber\",\"-\",IF(AND('Enrollment Form'!B436=\"Subscriber\",'Enrollment Form'!G436=\"\"),\"N\",\"Y\"))","v":"-"},{"$f":"IF('Enrollment Form'!A436=\"\",\"\",IF('Enrollment Form'!B436=\"Subscriber\",\"-\",IF(AND('Enrollment Form'!B436<>\"Subscriber\",'Enrollment Form'!G436='Enrollment Form'!H436),\"N\",\"Y\")))","v":""},0]
[437,{"$f":"IF('Enrollment Form'!$A437<>\"\",\"Y\",\"N\")","v":"N"},{"$f":"IF(AND('Enrollment Form'!$B437=\"\",'Enrollment Form'!$C437<>\"\"),\"N\",IF($B430=\"N\",\"\",\"Y\"))","v":""},{"$f":"IF(OR($B430=\"N\",'Enrollment Form'!G437=\"\"),\"\",IF('Enrollment Form'!$B437<>\"Subscriber\",\"\",IF('Enrollment Form'!$G437='Enrollment Form'!$H437,\"Y\",\"N\")))","v":""},{"$f":"IF($B430=\"N\",\"\",IF(AND(COUNTIFS('Enrollment Form'!$H$11:$H$1000,'Enrollment Form'!$H437,'Enrollment Form'!$B$11:$B$1000,'Enrollment Form'!$B437)>1,'Enrollment Form'!$H437<>\"\"),\"N\",\"Y\"))","v":""},{"$f":"IF($B430=\"N\",\"\",IF(LEN('Enrollment Form'!$Y437)=0,\"\",IF(LEN('Enrollment Form'!$Y437)<>5,\"N\",\"Y\")))","v":""},{"$f":"IF($B430=\"N\",\"\",IF(LEN('Enrollment Form'!$AD437=0),\"\",IF(LEN('Enrollment Form'!$AD437)<>5,\"N\",\"Y\")))","v":""},{"$f":"IF($B430=\"N\",\"\",IF(LEN('Enrollment Form'!$BS437=0),\"\",IF(LEN('Enrollment Form'!$BS437)<>5,\"N\",\"Y\")))","v":""},{"$f":"IF($B430=\"N\",\"\",IF(LEN('Enrollment Form'!$AE437)=0,\"\",IF(LEN('Enrollment Form'!$AE437)<>10,\"N\",\"Y\")))","v":""},{"$f":"IF($B430=\"N\",\"\",IF(LEN('Enrollment Form'!$AF437)=0,\"\",IF(LEN('Enrollment Form'!$AF437)<>10,\"N\",\"Y\")))","v":""},{"$f":"IF('Enrollment Form'!$O437<>\"Graded\",\"-\",IF(AND('Enrollment Form'!$O437=\"Graded\",'Enrollment Form'!$AR437<>\"\"),\"Y\",\"N\"))","v":"-"},{"$f":"IF($B430=\"N\",\"\",IF(OR('Enrollment Form'!$B437<>\"Subscriber\",'Enrollment Form'!$C437=\"ROC\"),\"-\",IF(AND('Enrollment Form'!$B437=\"Subscriber\",'Enrollment Form'!$C437=\"Enroll\",'Enrollment Form'!$AJ437<>\"\"),\"Y\",\"N\")))","v":""},{"$f":"IF($B430=\"N\",\"\",IF(OR('Enrollment Form'!$B437<>\"Subscriber\",'Enrollment Form'!$C437=\"ROC\"),\"-\",IF(AND('Enrollment Form'!$B437=\"Subscriber\",'Enrollment Form'!$C437=\"Enroll\",'Enrollment Form'!$AK437<>\"\"),\"Y\",\"N\")))","v":""},{"$f":"IF($B430=\"N\",\"\",IF(OR('Enrollment Form'!$B437<>\"Subscriber\",'Enrollment Form'!$C437=\"ROC\"),\"-\",IF(AND('Enrollment Form'!$B437=\"Subscriber\",'Enrollment Form'!$C437=\"Enroll\",'Enrollment Form'!$AL437<>\"\"),\"Y\",\"N\")))","v":""},{"$f":"IF($B430=\"N\",\"\",IF(OR('Enrollment Form'!$B437<>\"Subscriber\",'Enrollment Form'!$C437=\"ROC\"),\"-\",IF(AND('Enrollment Form'!$B437=\"Subscriber\",'Enrollment Form'!$C437=\"Enroll\",'Enrollment Form'!$AP437<>\"\"),\"Y\",\"N\")))","v":""},{"$f":"IF($B430=\"N\",\"\",IF(OR('Enrollment Form'!$B437<>\"Subscriber\",'Enrollment Form'!$C437=\"ROC\"),\"-\",IF(AND('Enrollment Form'!$B437=\"Subscriber\",'Enrollment Form'!$C437=\"Enroll\",'Enrollment Form'!$AQ437<>\"\"),\"Y\",\"N\")))","v":""},{"$f":"IF($B430=\"N\",\"\",IF(OR('Enrollment Form'!$B437<>\"Subscriber\",'Enrollment Form'!$C437=\"ROC\"),\"-\",IF(AND('Enrollment Form'!$B437=\"Subscriber\",'Enrollment Form'!$C437=\"Enroll\",'Enrollment Form'!$AS437<>\"\"),\"Y\",\"N\")))","v":""},{"$f":"IF($B430=\"N\",\"\",IF($Q430=\"-\",\"-\",IF(AND($Q430=\"Y\",'Enrollment Form'!$AS437=\"No\"),\"-\",IF(AND($Q430=\"Y\",'Enrollment Form'!$AS437=\"Yes\",'Enrollment Form'!$AT437<>\"\"),\"Y\",\"N\"))))","v":""},{"$f":"IF($B430=\"N\",\"\",IF(OR('Enrollment Form'!$B437<>\"Subscriber\",'Enrollment Form'!$C437=\"ROC\"),\"-\",IF(AND('Enrollment Form'!$B437=\"Subscriber\",'Enrollment Form'!$C437=\"Enroll\",'Enrollment Form'!$CV437<>\"\"),\"Y\",\"N\")))","v":""},{"$f":"IF($B430=\"N\",\"\",IF($S430=\"-\",\"-\",IF(AND($S430=\"Y\",'Enrollment Form'!$CV437=\"No\"),\"-\",IF(AND($S430=\"Y\",'Enrollment Form'!$CV437=\"Yes\",'Enrollment Form'!$CW437<>\"\"),\"Y\",\"N\"))))","v":""},{"$f":"IF(OR('Enrollment Form'!$AY437=\"Yes\",'Enrollment Form'!$AY437=\"\"),\"-\",IF(OR(AND('Enrollment Form'!$AY437=\"No\",ISERROR(FIND(\"HMO\",VLOOKUP('Enrollment Form'!G437,'Enrollment Form'!H$11:J$1000,3,FALSE),1))=FALSE,COUNTA('Enrollment Form'!$AZ437:$BC437)=4),AND('Enrollment Form'!$AY437=\"No\",ISERROR(FIND(\"HMO\",VLOOKUP('Enrollment Form'!G437,'Enrollment Form'!H$11:J$1000,3,FALSE),1))=FALSE,COUNTA('Enrollment Form'!$BT437:$BW437)=4)),\"Y\",\"N\"))","v":"-"},{"$f":"IF($B430=\"N\",\"\",IF('Enrollment Form'!$B437=\"Subscriber\",\"-\",IF(COUNTA('Enrollment Form'!$BL437,'Enrollment Form'!$BN437)=2,\"Y\",\"N\")))","v":""},{"$f":"IF($B430=\"N\",\"\",IF(OR('Enrollment Form'!$AX437=\"\",'Enrollment Form'!$AX437=\"No\"),\"-\",IF(AND('Enrollment Form'!$AX437=\"Yes\",COUNTA('Enrollment Form'!$CR437)=1),\"Y\",\"N\")))","v":""},{"$f":"IF(OR('Enrollment Form'!$CR437=\"\",'Enrollment Form'!$CR437=\"No\"),\"-\",IF(COUNTA('Enrollment Form'!$CT437:$CU437)=2,\"Y\",\"N\"))","v":"-"},{"$f":"IF($B430=\"N\",\"\",IF(COUNTIF('Enrollment Form'!$DG437:$DP437,\"Other\")=COUNTA('Enrollment Form'!$DK437,'Enrollment Form'!$DH437,'Enrollment Form'!$DN437,'Enrollment Form'!$DQ437),\"Y\",\"N\"))","v":""},{"$f":"IF($B430=\"N\",\"\",IF(OR('Enrollment Form'!B437<>\"Subscriber\",'Enrollment Form'!C437=\"ROC\",COUNTIF('Enrollment Form'!AV437:AW437,\"Yes\")>=1),\"-\",IF(AND('Enrollment Form'!C437=\"Enroll\",COUNTIF('Enrollment Form'!AV437:AW437,\"No\")=2,'Enrollment Form'!AX437=\"\"),\"N\",\"Y\")))","v":""},{"$f":"IF(OR(B430=\"N\",'Enrollment Form'!B437<>\"Subscriber\",'Enrollment Form'!C437=\"ROC\",'Enrollment Form'!O437<>\"Multiple of Salary\"),\"-\",IF(COUNTA('Enrollment Form'!T437:U437)<2,\"N\",\"Y\"))","v":"-"},{"$f":"IF(B430=\"N\",\"\",IF(OR('Enrollment Form'!C437=\"ROC\",'Enrollment Form'!B437<>\"Subscriber\",'Enrollment Form'!O437=\"Waive\",'Enrollment Form'!O437=\"\"),\"-\",IF('Enrollment Form'!P437=\"\",\"N\",\"Y\")))","v":""},{"$f":"IF($B430=\"N\",\"\",IF(AND('Enrollment Form'!$C437=\"ROC\",'Enrollment Form'!$DR437<>\"\"),\"Y\",IF(AND('Enrollment Form'!$C437=\"ROC\",'Enrollment Form'!$DR437=\"\"),\"N\",IF(AND('Enrollment Form'!$C437=\"Enroll\",'Enrollment Form'!$B437=\"Subscriber\",'Enrollment Form'!$CX437=\"No\",'Enrollment Form'!$DR437=\"\"),\"N\",IF(AND('Enrollment Form'!$C437=\"Enroll\",'Enrollment Form'!$B437=\"Subscriber\",'Enrollment Form'!$CX437=\"Yes\"),\"-\",\"Y\")))))","v":""},{"$f":"IF($B430=\"N\",\"\",IF(AND('Enrollment Form'!$C437=\"ROC\",'Enrollment Form'!$DS437<>\"\"),\"Y\",IF(AND('Enrollment Form'!$C437=\"ROC\",'Enrollment Form'!$DS437=\"\"),\"N\",IF(AND('Enrollment Form'!$C437=\"Enroll\",'Enrollment Form'!$B437=\"Subscriber\",'Enrollment Form'!$CX437=\"No\",'Enrollment Form'!$DS437=\"\"),\"N\",IF(AND('Enrollment Form'!$C437=\"Enroll\",'Enrollment Form'!$B437=\"Subscriber\",'Enrollment Form'!$CX437=\"Yes\"),\"-\",\"Y\")))))","v":""},{"$f":"IF('Enrollment Form'!AH437=\"\",\"\",IF(ISERROR(SEARCH(\".\",'Enrollment Form'!AH437,SEARCH(\"@\",'Enrollment Form'!AH437))),\"N\",\"Y\"))","v":""},{"$f":"IF(OR($B430=\"N\",'Enrollment Form'!$G437=\"\"),\"\",IF('Enrollment Form'!$B437<>\"Subscriber\",\"-\",IF(COUNTIF('Enrollment Form'!$AV437:$AW437,\"Yes\")=2,\"N\",\"Y\")))","v":""},{"$f":"IF(OR('Enrollment Form'!$CJ437=\"\",'Enrollment Form'!$CJ437=\"No\"),\"-\",IF(AND('Enrollment Form'!$CJ437=\"Yes\",'Enrollment Form'!$CK437=\"\"),\"N\",\"Y\"))","v":"-"},{"$f":"IF(OR('Enrollment Form'!$CL437=\"\",'Enrollment Form'!$CL437=\"No\"),\"-\",IF(AND('Enrollment Form'!$CL437=\"Yes\",'Enrollment Form'!$CM437=\"\"),\"N\",\"Y\"))","v":"-"},{"$f":"IF(OR('Enrollment Form'!$CN437=\"\",'Enrollment Form'!$CN437=\"No\"),\"-\",IF(AND('Enrollment Form'!$CN437=\"Yes\",'Enrollment Form'!$CO437=\"\"),\"N\",\"Y\"))","v":"-"},{"$f":"IF(OR('Enrollment Form'!$CN437=\"\",'Enrollment Form'!$CN437=\"No\"),\"-\",IF(AND('Enrollment Form'!$CN437=\"Yes\",'Enrollment Form'!$CP437=\"\"),\"N\",\"Y\"))","v":"-"},{"$f":"IF('Enrollment Form'!B437<>\"Subscriber\",\"-\",IF(AND('Enrollment Form'!B437=\"Subscriber\",'Enrollment Form'!C437=\"Enroll\",'Enrollment Form'!AA437=\"\"),\"N\",\"Y\"))","v":"-"},{"$f":"IF(OR('Enrollment Form'!B437=\"Subscriber\",'Enrollment Form'!B437=\"\"),\"-\",IF('Enrollment Form'!BP437=\"\",\"N\",\"Y\"))","v":"-"},{"$f":"IF('Enrollment Form'!B437<>\"Subscriber\",\"-\",IF(AND('Enrollment Form'!B437=\"Subscriber\",'Enrollment Form'!G437=\"\"),\"N\",\"Y\"))","v":"-"},{"$f":"IF('Enrollment Form'!A437=\"\",\"\",IF('Enrollment Form'!B437=\"Subscriber\",\"-\",IF(AND('Enrollment Form'!B437<>\"Subscriber\",'Enrollment Form'!G437='Enrollment Form'!H437),\"N\",\"Y\")))","v":""},0]
[438,{"$f":"IF('Enrollment Form'!$A438<>\"\",\"Y\",\"N\")","v":"N"},{"$f":"IF(AND('Enrollment Form'!$B438=\"\",'Enrollment Form'!$C438<>\"\"),\"N\",IF($B431=\"N\",\"\",\"Y\"))","v":""},{"$f":"IF(OR($B431=\"N\",'Enrollment Form'!G438=\"\"),\"\",IF('Enrollment Form'!$B438<>\"Subscriber\",\"\",IF('Enrollment Form'!$G438='Enrollment Form'!$H438,\"Y\",\"N\")))","v":""},{"$f":"IF($B431=\"N\",\"\",IF(AND(COUNTIFS('Enrollment Form'!$H$11:$H$1000,'Enrollment Form'!$H438,'Enrollment Form'!$B$11:$B$1000,'Enrollment Form'!$B438)>1,'Enrollment Form'!$H438<>\"\"),\"N\",\"Y\"))","v":""},{"$f":"IF($B431=\"N\",\"\",IF(LEN('Enrollment Form'!$Y438)=0,\"\",IF(LEN('Enrollment Form'!$Y438)<>5,\"N\",\"Y\")))","v":""},{"$f":"IF($B431=\"N\",\"\",IF(LEN('Enrollment Form'!$AD438=0),\"\",IF(LEN('Enrollment Form'!$AD438)<>5,\"N\",\"Y\")))","v":""},{"$f":"IF($B431=\"N\",\"\",IF(LEN('Enrollment Form'!$BS438=0),\"\",IF(LEN('Enrollment Form'!$BS438)<>5,\"N\",\"Y\")))","v":""},{"$f":"IF($B431=\"N\",\"\",IF(LEN('Enrollment Form'!$AE438)=0,\"\",IF(LEN('Enrollment Form'!$AE438)<>10,\"N\",\"Y\")))","v":""},{"$f":"IF($B431=\"N\",\"\",IF(LEN('Enrollment Form'!$AF438)=0,\"\",IF(LEN('Enrollment Form'!$AF438)<>10,\"N\",\"Y\")))","v":""},{"$f":"IF('Enrollment Form'!$O438<>\"Graded\",\"-\",IF(AND('Enrollment Form'!$O438=\"Graded\",'Enrollment Form'!$AR438<>\"\"),\"Y\",\"N\"))","v":"-"},{"$f":"IF($B431=\"N\",\"\",IF(OR('Enrollment Form'!$B438<>\"Subscriber\",'Enrollment Form'!$C438=\"ROC\"),\"-\",IF(AND('Enrollment Form'!$B438=\"Subscriber\",'Enrollment Form'!$C438=\"Enroll\",'Enrollment Form'!$AJ438<>\"\"),\"Y\",\"N\")))","v":""},{"$f":"IF($B431=\"N\",\"\",IF(OR('Enrollment Form'!$B438<>\"Subscriber\",'Enrollment Form'!$C438=\"ROC\"),\"-\",IF(AND('Enrollment Form'!$B438=\"Subscriber\",'Enrollment Form'!$C438=\"Enroll\",'Enrollment Form'!$AK438<>\"\"),\"Y\",\"N\")))","v":""},{"$f":"IF($B431=\"N\",\"\",IF(OR('Enrollment Form'!$B438<>\"Subscriber\",'Enrollment Form'!$C438=\"ROC\"),\"-\",IF(AND('Enrollment Form'!$B438=\"Subscriber\",'Enrollment Form'!$C438=\"Enroll\",'Enrollment Form'!$AL438<>\"\"),\"Y\",\"N\")))","v":""},{"$f":"IF($B431=\"N\",\"\",IF(OR('Enrollment Form'!$B438<>\"Subscriber\",'Enrollment Form'!$C438=\"ROC\"),\"-\",IF(AND('Enrollment Form'!$B438=\"Subscriber\",'Enrollment Form'!$C438=\"Enroll\",'Enrollment Form'!$AP438<>\"\"),\"Y\",\"N\")))","v":""},{"$f":"IF($B431=\"N\",\"\",IF(OR('Enrollment Form'!$B438<>\"Subscriber\",'Enrollment Form'!$C438=\"ROC\"),\"-\",IF(AND('Enrollment Form'!$B438=\"Subscriber\",'Enrollment Form'!$C438=\"Enroll\",'Enrollment Form'!$AQ438<>\"\"),\"Y\",\"N\")))","v":""},{"$f":"IF($B431=\"N\",\"\",IF(OR('Enrollment Form'!$B438<>\"Subscriber\",'Enrollment Form'!$C438=\"ROC\"),\"-\",IF(AND('Enrollment Form'!$B438=\"Subscriber\",'Enrollment Form'!$C438=\"Enroll\",'Enrollment Form'!$AS438<>\"\"),\"Y\",\"N\")))","v":""},{"$f":"IF($B431=\"N\",\"\",IF($Q431=\"-\",\"-\",IF(AND($Q431=\"Y\",'Enrollment Form'!$AS438=\"No\"),\"-\",IF(AND($Q431=\"Y\",'Enrollment Form'!$AS438=\"Yes\",'Enrollment Form'!$AT438<>\"\"),\"Y\",\"N\"))))","v":""},{"$f":"IF($B431=\"N\",\"\",IF(OR('Enrollment Form'!$B438<>\"Subscriber\",'Enrollment Form'!$C438=\"ROC\"),\"-\",IF(AND('Enrollment Form'!$B438=\"Subscriber\",'Enrollment Form'!$C438=\"Enroll\",'Enrollment Form'!$CV438<>\"\"),\"Y\",\"N\")))","v":""},{"$f":"IF($B431=\"N\",\"\",IF($S431=\"-\",\"-\",IF(AND($S431=\"Y\",'Enrollment Form'!$CV438=\"No\"),\"-\",IF(AND($S431=\"Y\",'Enrollment Form'!$CV438=\"Yes\",'Enrollment Form'!$CW438<>\"\"),\"Y\",\"N\"))))","v":""},{"$f":"IF(OR('Enrollment Form'!$AY438=\"Yes\",'Enrollment Form'!$AY438=\"\"),\"-\",IF(OR(AND('Enrollment Form'!$AY438=\"No\",ISERROR(FIND(\"HMO\",VLOOKUP('Enrollment Form'!G438,'Enrollment Form'!H$11:J$1000,3,FALSE),1))=FALSE,COUNTA('Enrollment Form'!$AZ438:$BC438)=4),AND('Enrollment Form'!$AY438=\"No\",ISERROR(FIND(\"HMO\",VLOOKUP('Enrollment Form'!G438,'Enrollment Form'!H$11:J$1000,3,FALSE),1))=FALSE,COUNTA('Enrollment Form'!$BT438:$BW438)=4)),\"Y\",\"N\"))","v":"-"},{"$f":"IF($B431=\"N\",\"\",IF('Enrollment Form'!$B438=\"Subscriber\",\"-\",IF(COUNTA('Enrollment Form'!$BL438,'Enrollment Form'!$BN438)=2,\"Y\",\"N\")))","v":""},{"$f":"IF($B431=\"N\",\"\",IF(OR('Enrollment Form'!$AX438=\"\",'Enrollment Form'!$AX438=\"No\"),\"-\",IF(AND('Enrollment Form'!$AX438=\"Yes\",COUNTA('Enrollment Form'!$CR438)=1),\"Y\",\"N\")))","v":""},{"$f":"IF(OR('Enrollment Form'!$CR438=\"\",'Enrollment Form'!$CR438=\"No\"),\"-\",IF(COUNTA('Enrollment Form'!$CT438:$CU438)=2,\"Y\",\"N\"))","v":"-"},{"$f":"IF($B431=\"N\",\"\",IF(COUNTIF('Enrollment Form'!$DG438:$DP438,\"Other\")=COUNTA('Enrollment Form'!$DK438,'Enrollment Form'!$DH438,'Enrollment Form'!$DN438,'Enrollment Form'!$DQ438),\"Y\",\"N\"))","v":""},{"$f":"IF($B431=\"N\",\"\",IF(OR('Enrollment Form'!B438<>\"Subscriber\",'Enrollment Form'!C438=\"ROC\",COUNTIF('Enrollment Form'!AV438:AW438,\"Yes\")>=1),\"-\",IF(AND('Enrollment Form'!C438=\"Enroll\",COUNTIF('Enrollment Form'!AV438:AW438,\"No\")=2,'Enrollment Form'!AX438=\"\"),\"N\",\"Y\")))","v":""},{"$f":"IF(OR(B431=\"N\",'Enrollment Form'!B438<>\"Subscriber\",'Enrollment Form'!C438=\"ROC\",'Enrollment Form'!O438<>\"Multiple of Salary\"),\"-\",IF(COUNTA('Enrollment Form'!T438:U438)<2,\"N\",\"Y\"))","v":"-"},{"$f":"IF(B431=\"N\",\"\",IF(OR('Enrollment Form'!C438=\"ROC\",'Enrollment Form'!B438<>\"Subscriber\",'Enrollment Form'!O438=\"Waive\",'Enrollment Form'!O438=\"\"),\"-\",IF('Enrollment Form'!P438=\"\",\"N\",\"Y\")))","v":""},{"$f":"IF($B431=\"N\",\"\",IF(AND('Enrollment Form'!$C438=\"ROC\",'Enrollment Form'!$DR438<>\"\"),\"Y\",IF(AND('Enrollment Form'!$C438=\"ROC\",'Enrollment Form'!$DR438=\"\"),\"N\",IF(AND('Enrollment Form'!$C438=\"Enroll\",'Enrollment Form'!$B438=\"Subscriber\",'Enrollment Form'!$CX438=\"No\",'Enrollment Form'!$DR438=\"\"),\"N\",IF(AND('Enrollment Form'!$C438=\"Enroll\",'Enrollment Form'!$B438=\"Subscriber\",'Enrollment Form'!$CX438=\"Yes\"),\"-\",\"Y\")))))","v":""},{"$f":"IF($B431=\"N\",\"\",IF(AND('Enrollment Form'!$C438=\"ROC\",'Enrollment Form'!$DS438<>\"\"),\"Y\",IF(AND('Enrollment Form'!$C438=\"ROC\",'Enrollment Form'!$DS438=\"\"),\"N\",IF(AND('Enrollment Form'!$C438=\"Enroll\",'Enrollment Form'!$B438=\"Subscriber\",'Enrollment Form'!$CX438=\"No\",'Enrollment Form'!$DS438=\"\"),\"N\",IF(AND('Enrollment Form'!$C438=\"Enroll\",'Enrollment Form'!$B438=\"Subscriber\",'Enrollment Form'!$CX438=\"Yes\"),\"-\",\"Y\")))))","v":""},{"$f":"IF('Enrollment Form'!AH438=\"\",\"\",IF(ISERROR(SEARCH(\".\",'Enrollment Form'!AH438,SEARCH(\"@\",'Enrollment Form'!AH438))),\"N\",\"Y\"))","v":""},{"$f":"IF(OR($B431=\"N\",'Enrollment Form'!$G438=\"\"),\"\",IF('Enrollment Form'!$B438<>\"Subscriber\",\"-\",IF(COUNTIF('Enrollment Form'!$AV438:$AW438,\"Yes\")=2,\"N\",\"Y\")))","v":""},{"$f":"IF(OR('Enrollment Form'!$CJ438=\"\",'Enrollment Form'!$CJ438=\"No\"),\"-\",IF(AND('Enrollment Form'!$CJ438=\"Yes\",'Enrollment Form'!$CK438=\"\"),\"N\",\"Y\"))","v":"-"},{"$f":"IF(OR('Enrollment Form'!$CL438=\"\",'Enrollment Form'!$CL438=\"No\"),\"-\",IF(AND('Enrollment Form'!$CL438=\"Yes\",'Enrollment Form'!$CM438=\"\"),\"N\",\"Y\"))","v":"-"},{"$f":"IF(OR('Enrollment Form'!$CN438=\"\",'Enrollment Form'!$CN438=\"No\"),\"-\",IF(AND('Enrollment Form'!$CN438=\"Yes\",'Enrollment Form'!$CO438=\"\"),\"N\",\"Y\"))","v":"-"},{"$f":"IF(OR('Enrollment Form'!$CN438=\"\",'Enrollment Form'!$CN438=\"No\"),\"-\",IF(AND('Enrollment Form'!$CN438=\"Yes\",'Enrollment Form'!$CP438=\"\"),\"N\",\"Y\"))","v":"-"},{"$f":"IF('Enrollment Form'!B438<>\"Subscriber\",\"-\",IF(AND('Enrollment Form'!B438=\"Subscriber\",'Enrollment Form'!C438=\"Enroll\",'Enrollment Form'!AA438=\"\"),\"N\",\"Y\"))","v":"-"},{"$f":"IF(OR('Enrollment Form'!B438=\"Subscriber\",'Enrollment Form'!B438=\"\"),\"-\",IF('Enrollment Form'!BP438=\"\",\"N\",\"Y\"))","v":"-"},{"$f":"IF('Enrollment Form'!B438<>\"Subscriber\",\"-\",IF(AND('Enrollment Form'!B438=\"Subscriber\",'Enrollment Form'!G438=\"\"),\"N\",\"Y\"))","v":"-"},{"$f":"IF('Enrollment Form'!A438=\"\",\"\",IF('Enrollment Form'!B438=\"Subscriber\",\"-\",IF(AND('Enrollment Form'!B438<>\"Subscriber\",'Enrollment Form'!G438='Enrollment Form'!H438),\"N\",\"Y\")))","v":""},0]
[439,{"$f":"IF('Enrollment Form'!$A439<>\"\",\"Y\",\"N\")","v":"N"},{"$f":"IF(AND('Enrollment Form'!$B439=\"\",'Enrollment Form'!$C439<>\"\"),\"N\",IF($B432=\"N\",\"\",\"Y\"))","v":""},{"$f":"IF(OR($B432=\"N\",'Enrollment Form'!G439=\"\"),\"\",IF('Enrollment Form'!$B439<>\"Subscriber\",\"\",IF('Enrollment Form'!$G439='Enrollment Form'!$H439,\"Y\",\"N\")))","v":""},{"$f":"IF($B432=\"N\",\"\",IF(AND(COUNTIFS('Enrollment Form'!$H$11:$H$1000,'Enrollment Form'!$H439,'Enrollment Form'!$B$11:$B$1000,'Enrollment Form'!$B439)>1,'Enrollment Form'!$H439<>\"\"),\"N\",\"Y\"))","v":""},{"$f":"IF($B432=\"N\",\"\",IF(LEN('Enrollment Form'!$Y439)=0,\"\",IF(LEN('Enrollment Form'!$Y439)<>5,\"N\",\"Y\")))","v":""},{"$f":"IF($B432=\"N\",\"\",IF(LEN('Enrollment Form'!$AD439=0),\"\",IF(LEN('Enrollment Form'!$AD439)<>5,\"N\",\"Y\")))","v":""},{"$f":"IF($B432=\"N\",\"\",IF(LEN('Enrollment Form'!$BS439=0),\"\",IF(LEN('Enrollment Form'!$BS439)<>5,\"N\",\"Y\")))","v":""},{"$f":"IF($B432=\"N\",\"\",IF(LEN('Enrollment Form'!$AE439)=0,\"\",IF(LEN('Enrollment Form'!$AE439)<>10,\"N\",\"Y\")))","v":""},{"$f":"IF($B432=\"N\",\"\",IF(LEN('Enrollment Form'!$AF439)=0,\"\",IF(LEN('Enrollment Form'!$AF439)<>10,\"N\",\"Y\")))","v":""},{"$f":"IF('Enrollment Form'!$O439<>\"Graded\",\"-\",IF(AND('Enrollment Form'!$O439=\"Graded\",'Enrollment Form'!$AR439<>\"\"),\"Y\",\"N\"))","v":"-"},{"$f":"IF($B432=\"N\",\"\",IF(OR('Enrollment Form'!$B439<>\"Subscriber\",'Enrollment Form'!$C439=\"ROC\"),\"-\",IF(AND('Enrollment Form'!$B439=\"Subscriber\",'Enrollment Form'!$C439=\"Enroll\",'Enrollment Form'!$AJ439<>\"\"),\"Y\",\"N\")))","v":""},{"$f":"IF($B432=\"N\",\"\",IF(OR('Enrollment Form'!$B439<>\"Subscriber\",'Enrollment Form'!$C439=\"ROC\"),\"-\",IF(AND('Enrollment Form'!$B439=\"Subscriber\",'Enrollment Form'!$C439=\"Enroll\",'Enrollment Form'!$AK439<>\"\"),\"Y\",\"N\")))","v":""},{"$f":"IF($B432=\"N\",\"\",IF(OR('Enrollment Form'!$B439<>\"Subscriber\",'Enrollment Form'!$C439=\"ROC\"),\"-\",IF(AND('Enrollment Form'!$B439=\"Subscriber\",'Enrollment Form'!$C439=\"Enroll\",'Enrollment Form'!$AL439<>\"\"),\"Y\",\"N\")))","v":""},{"$f":"IF($B432=\"N\",\"\",IF(OR('Enrollment Form'!$B439<>\"Subscriber\",'Enrollment Form'!$C439=\"ROC\"),\"-\",IF(AND('Enrollment Form'!$B439=\"Subscriber\",'Enrollment Form'!$C439=\"Enroll\",'Enrollment Form'!$AP439<>\"\"),\"Y\",\"N\")))","v":""},{"$f":"IF($B432=\"N\",\"\",IF(OR('Enrollment Form'!$B439<>\"Subscriber\",'Enrollment Form'!$C439=\"ROC\"),\"-\",IF(AND('Enrollment Form'!$B439=\"Subscriber\",'Enrollment Form'!$C439=\"Enroll\",'Enrollment Form'!$AQ439<>\"\"),\"Y\",\"N\")))","v":""},{"$f":"IF($B432=\"N\",\"\",IF(OR('Enrollment Form'!$B439<>\"Subscriber\",'Enrollment Form'!$C439=\"ROC\"),\"-\",IF(AND('Enrollment Form'!$B439=\"Subscriber\",'Enrollment Form'!$C439=\"Enroll\",'Enrollment Form'!$AS439<>\"\"),\"Y\",\"N\")))","v":""},{"$f":"IF($B432=\"N\",\"\",IF($Q432=\"-\",\"-\",IF(AND($Q432=\"Y\",'Enrollment Form'!$AS439=\"No\"),\"-\",IF(AND($Q432=\"Y\",'Enrollment Form'!$AS439=\"Yes\",'Enrollment Form'!$AT439<>\"\"),\"Y\",\"N\"))))","v":""},{"$f":"IF($B432=\"N\",\"\",IF(OR('Enrollment Form'!$B439<>\"Subscriber\",'Enrollment Form'!$C439=\"ROC\"),\"-\",IF(AND('Enrollment Form'!$B439=\"Subscriber\",'Enrollment Form'!$C439=\"Enroll\",'Enrollment Form'!$CV439<>\"\"),\"Y\",\"N\")))","v":""},{"$f":"IF($B432=\"N\",\"\",IF($S432=\"-\",\"-\",IF(AND($S432=\"Y\",'Enrollment Form'!$CV439=\"No\"),\"-\",IF(AND($S432=\"Y\",'Enrollment Form'!$CV439=\"Yes\",'Enrollment Form'!$CW439<>\"\"),\"Y\",\"N\"))))","v":""},{"$f":"IF(OR('Enrollment Form'!$AY439=\"Yes\",'Enrollment Form'!$AY439=\"\"),\"-\",IF(OR(AND('Enrollment Form'!$AY439=\"No\",ISERROR(FIND(\"HMO\",VLOOKUP('Enrollment Form'!G439,'Enrollment Form'!H$11:J$1000,3,FALSE),1))=FALSE,COUNTA('Enrollment Form'!$AZ439:$BC439)=4),AND('Enrollment Form'!$AY439=\"No\",ISERROR(FIND(\"HMO\",VLOOKUP('Enrollment Form'!G439,'Enrollment Form'!H$11:J$1000,3,FALSE),1))=FALSE,COUNTA('Enrollment Form'!$BT439:$BW439)=4)),\"Y\",\"N\"))","v":"-"},{"$f":"IF($B432=\"N\",\"\",IF('Enrollment Form'!$B439=\"Subscriber\",\"-\",IF(COUNTA('Enrollment Form'!$BL439,'Enrollment Form'!$BN439)=2,\"Y\",\"N\")))","v":""},{"$f":"IF($B432=\"N\",\"\",IF(OR('Enrollment Form'!$AX439=\"\",'Enrollment Form'!$AX439=\"No\"),\"-\",IF(AND('Enrollment Form'!$AX439=\"Yes\",COUNTA('Enrollment Form'!$CR439)=1),\"Y\",\"N\")))","v":""},{"$f":"IF(OR('Enrollment Form'!$CR439=\"\",'Enrollment Form'!$CR439=\"No\"),\"-\",IF(COUNTA('Enrollment Form'!$CT439:$CU439)=2,\"Y\",\"N\"))","v":"-"},{"$f":"IF($B432=\"N\",\"\",IF(COUNTIF('Enrollment Form'!$DG439:$DP439,\"Other\")=COUNTA('Enrollment Form'!$DK439,'Enrollment Form'!$DH439,'Enrollment Form'!$DN439,'Enrollment Form'!$DQ439),\"Y\",\"N\"))","v":""},{"$f":"IF($B432=\"N\",\"\",IF(OR('Enrollment Form'!B439<>\"Subscriber\",'Enrollment Form'!C439=\"ROC\",COUNTIF('Enrollment Form'!AV439:AW439,\"Yes\")>=1),\"-\",IF(AND('Enrollment Form'!C439=\"Enroll\",COUNTIF('Enrollment Form'!AV439:AW439,\"No\")=2,'Enrollment Form'!AX439=\"\"),\"N\",\"Y\")))","v":""},{"$f":"IF(OR(B432=\"N\",'Enrollment Form'!B439<>\"Subscriber\",'Enrollment Form'!C439=\"ROC\",'Enrollment Form'!O439<>\"Multiple of Salary\"),\"-\",IF(COUNTA('Enrollment Form'!T439:U439)<2,\"N\",\"Y\"))","v":"-"},{"$f":"IF(B432=\"N\",\"\",IF(OR('Enrollment Form'!C439=\"ROC\",'Enrollment Form'!B439<>\"Subscriber\",'Enrollment Form'!O439=\"Waive\",'Enrollment Form'!O439=\"\"),\"-\",IF('Enrollment Form'!P439=\"\",\"N\",\"Y\")))","v":""},{"$f":"IF($B432=\"N\",\"\",IF(AND('Enrollment Form'!$C439=\"ROC\",'Enrollment Form'!$DR439<>\"\"),\"Y\",IF(AND('Enrollment Form'!$C439=\"ROC\",'Enrollment Form'!$DR439=\"\"),\"N\",IF(AND('Enrollment Form'!$C439=\"Enroll\",'Enrollment Form'!$B439=\"Subscriber\",'Enrollment Form'!$CX439=\"No\",'Enrollment Form'!$DR439=\"\"),\"N\",IF(AND('Enrollment Form'!$C439=\"Enroll\",'Enrollment Form'!$B439=\"Subscriber\",'Enrollment Form'!$CX439=\"Yes\"),\"-\",\"Y\")))))","v":""},{"$f":"IF($B432=\"N\",\"\",IF(AND('Enrollment Form'!$C439=\"ROC\",'Enrollment Form'!$DS439<>\"\"),\"Y\",IF(AND('Enrollment Form'!$C439=\"ROC\",'Enrollment Form'!$DS439=\"\"),\"N\",IF(AND('Enrollment Form'!$C439=\"Enroll\",'Enrollment Form'!$B439=\"Subscriber\",'Enrollment Form'!$CX439=\"No\",'Enrollment Form'!$DS439=\"\"),\"N\",IF(AND('Enrollment Form'!$C439=\"Enroll\",'Enrollment Form'!$B439=\"Subscriber\",'Enrollment Form'!$CX439=\"Yes\"),\"-\",\"Y\")))))","v":""},{"$f":"IF('Enrollment Form'!AH439=\"\",\"\",IF(ISERROR(SEARCH(\".\",'Enrollment Form'!AH439,SEARCH(\"@\",'Enrollment Form'!AH439))),\"N\",\"Y\"))","v":""},{"$f":"IF(OR($B432=\"N\",'Enrollment Form'!$G439=\"\"),\"\",IF('Enrollment Form'!$B439<>\"Subscriber\",\"-\",IF(COUNTIF('Enrollment Form'!$AV439:$AW439,\"Yes\")=2,\"N\",\"Y\")))","v":""},{"$f":"IF(OR('Enrollment Form'!$CJ439=\"\",'Enrollment Form'!$CJ439=\"No\"),\"-\",IF(AND('Enrollment Form'!$CJ439=\"Yes\",'Enrollment Form'!$CK439=\"\"),\"N\",\"Y\"))","v":"-"},{"$f":"IF(OR('Enrollment Form'!$CL439=\"\",'Enrollment Form'!$CL439=\"No\"),\"-\",IF(AND('Enrollment Form'!$CL439=\"Yes\",'Enrollment Form'!$CM439=\"\"),\"N\",\"Y\"))","v":"-"},{"$f":"IF(OR('Enrollment Form'!$CN439=\"\",'Enrollment Form'!$CN439=\"No\"),\"-\",IF(AND('Enrollment Form'!$CN439=\"Yes\",'Enrollment Form'!$CO439=\"\"),\"N\",\"Y\"))","v":"-"},{"$f":"IF(OR('Enrollment Form'!$CN439=\"\",'Enrollment Form'!$CN439=\"No\"),\"-\",IF(AND('Enrollment Form'!$CN439=\"Yes\",'Enrollment Form'!$CP439=\"\"),\"N\",\"Y\"))","v":"-"},{"$f":"IF('Enrollment Form'!B439<>\"Subscriber\",\"-\",IF(AND('Enrollment Form'!B439=\"Subscriber\",'Enrollment Form'!C439=\"Enroll\",'Enrollment Form'!AA439=\"\"),\"N\",\"Y\"))","v":"-"},{"$f":"IF(OR('Enrollment Form'!B439=\"Subscriber\",'Enrollment Form'!B439=\"\"),\"-\",IF('Enrollment Form'!BP439=\"\",\"N\",\"Y\"))","v":"-"},{"$f":"IF('Enrollment Form'!B439<>\"Subscriber\",\"-\",IF(AND('Enrollment Form'!B439=\"Subscriber\",'Enrollment Form'!G439=\"\"),\"N\",\"Y\"))","v":"-"},{"$f":"IF('Enrollment Form'!A439=\"\",\"\",IF('Enrollment Form'!B439=\"Subscriber\",\"-\",IF(AND('Enrollment Form'!B439<>\"Subscriber\",'Enrollment Form'!G439='Enrollment Form'!H439),\"N\",\"Y\")))","v":""},0]
[440,{"$f":"IF('Enrollment Form'!$A440<>\"\",\"Y\",\"N\")","v":"N"},{"$f":"IF(AND('Enrollment Form'!$B440=\"\",'Enrollment Form'!$C440<>\"\"),\"N\",IF($B433=\"N\",\"\",\"Y\"))","v":""},{"$f":"IF(OR($B433=\"N\",'Enrollment Form'!G440=\"\"),\"\",IF('Enrollment Form'!$B440<>\"Subscriber\",\"\",IF('Enrollment Form'!$G440='Enrollment Form'!$H440,\"Y\",\"N\")))","v":""},{"$f":"IF($B433=\"N\",\"\",IF(AND(COUNTIFS('Enrollment Form'!$H$11:$H$1000,'Enrollment Form'!$H440,'Enrollment Form'!$B$11:$B$1000,'Enrollment Form'!$B440)>1,'Enrollment Form'!$H440<>\"\"),\"N\",\"Y\"))","v":""},{"$f":"IF($B433=\"N\",\"\",IF(LEN('Enrollment Form'!$Y440)=0,\"\",IF(LEN('Enrollment Form'!$Y440)<>5,\"N\",\"Y\")))","v":""},{"$f":"IF($B433=\"N\",\"\",IF(LEN('Enrollment Form'!$AD440=0),\"\",IF(LEN('Enrollment Form'!$AD440)<>5,\"N\",\"Y\")))","v":""},{"$f":"IF($B433=\"N\",\"\",IF(LEN('Enrollment Form'!$BS440=0),\"\",IF(LEN('Enrollment Form'!$BS440)<>5,\"N\",\"Y\")))","v":""},{"$f":"IF($B433=\"N\",\"\",IF(LEN('Enrollment Form'!$AE440)=0,\"\",IF(LEN('Enrollment Form'!$AE440)<>10,\"N\",\"Y\")))","v":""},{"$f":"IF($B433=\"N\",\"\",IF(LEN('Enrollment Form'!$AF440)=0,\"\",IF(LEN('Enrollment Form'!$AF440)<>10,\"N\",\"Y\")))","v":""},{"$f":"IF('Enrollment Form'!$O440<>\"Graded\",\"-\",IF(AND('Enrollment Form'!$O440=\"Graded\",'Enrollment Form'!$AR440<>\"\"),\"Y\",\"N\"))","v":"-"},{"$f":"IF($B433=\"N\",\"\",IF(OR('Enrollment Form'!$B440<>\"Subscriber\",'Enrollment Form'!$C440=\"ROC\"),\"-\",IF(AND('Enrollment Form'!$B440=\"Subscriber\",'Enrollment Form'!$C440=\"Enroll\",'Enrollment Form'!$AJ440<>\"\"),\"Y\",\"N\")))","v":""},{"$f":"IF($B433=\"N\",\"\",IF(OR('Enrollment Form'!$B440<>\"Subscriber\",'Enrollment Form'!$C440=\"ROC\"),\"-\",IF(AND('Enrollment Form'!$B440=\"Subscriber\",'Enrollment Form'!$C440=\"Enroll\",'Enrollment Form'!$AK440<>\"\"),\"Y\",\"N\")))","v":""},{"$f":"IF($B433=\"N\",\"\",IF(OR('Enrollment Form'!$B440<>\"Subscriber\",'Enrollment Form'!$C440=\"ROC\"),\"-\",IF(AND('Enrollment Form'!$B440=\"Subscriber\",'Enrollment Form'!$C440=\"Enroll\",'Enrollment Form'!$AL440<>\"\"),\"Y\",\"N\")))","v":""},{"$f":"IF($B433=\"N\",\"\",IF(OR('Enrollment Form'!$B440<>\"Subscriber\",'Enrollment Form'!$C440=\"ROC\"),\"-\",IF(AND('Enrollment Form'!$B440=\"Subscriber\",'Enrollment Form'!$C440=\"Enroll\",'Enrollment Form'!$AP440<>\"\"),\"Y\",\"N\")))","v":""},{"$f":"IF($B433=\"N\",\"\",IF(OR('Enrollment Form'!$B440<>\"Subscriber\",'Enrollment Form'!$C440=\"ROC\"),\"-\",IF(AND('Enrollment Form'!$B440=\"Subscriber\",'Enrollment Form'!$C440=\"Enroll\",'Enrollment Form'!$AQ440<>\"\"),\"Y\",\"N\")))","v":""},{"$f":"IF($B433=\"N\",\"\",IF(OR('Enrollment Form'!$B440<>\"Subscriber\",'Enrollment Form'!$C440=\"ROC\"),\"-\",IF(AND('Enrollment Form'!$B440=\"Subscriber\",'Enrollment Form'!$C440=\"Enroll\",'Enrollment Form'!$AS440<>\"\"),\"Y\",\"N\")))","v":""},{"$f":"IF($B433=\"N\",\"\",IF($Q433=\"-\",\"-\",IF(AND($Q433=\"Y\",'Enrollment Form'!$AS440=\"No\"),\"-\",IF(AND($Q433=\"Y\",'Enrollment Form'!$AS440=\"Yes\",'Enrollment Form'!$AT440<>\"\"),\"Y\",\"N\"))))","v":""},{"$f":"IF($B433=\"N\",\"\",IF(OR('Enrollment Form'!$B440<>\"Subscriber\",'Enrollment Form'!$C440=\"ROC\"),\"-\",IF(AND('Enrollment Form'!$B440=\"Subscriber\",'Enrollment Form'!$C440=\"Enroll\",'Enrollment Form'!$CV440<>\"\"),\"Y\",\"N\")))","v":""},{"$f":"IF($B433=\"N\",\"\",IF($S433=\"-\",\"-\",IF(AND($S433=\"Y\",'Enrollment Form'!$CV440=\"No\"),\"-\",IF(AND($S433=\"Y\",'Enrollment Form'!$CV440=\"Yes\",'Enrollment Form'!$CW440<>\"\"),\"Y\",\"N\"))))","v":""},{"$f":"IF(OR('Enrollment Form'!$AY440=\"Yes\",'Enrollment Form'!$AY440=\"\"),\"-\",IF(OR(AND('Enrollment Form'!$AY440=\"No\",ISERROR(FIND(\"HMO\",VLOOKUP('Enrollment Form'!G440,'Enrollment Form'!H$11:J$1000,3,FALSE),1))=FALSE,COUNTA('Enrollment Form'!$AZ440:$BC440)=4),AND('Enrollment Form'!$AY440=\"No\",ISERROR(FIND(\"HMO\",VLOOKUP('Enrollment Form'!G440,'Enrollment Form'!H$11:J$1000,3,FALSE),1))=FALSE,COUNTA('Enrollment Form'!$BT440:$BW440)=4)),\"Y\",\"N\"))","v":"-"},{"$f":"IF($B433=\"N\",\"\",IF('Enrollment Form'!$B440=\"Subscriber\",\"-\",IF(COUNTA('Enrollment Form'!$BL440,'Enrollment Form'!$BN440)=2,\"Y\",\"N\")))","v":""},{"$f":"IF($B433=\"N\",\"\",IF(OR('Enrollment Form'!$AX440=\"\",'Enrollment Form'!$AX440=\"No\"),\"-\",IF(AND('Enrollment Form'!$AX440=\"Yes\",COUNTA('Enrollment Form'!$CR440)=1),\"Y\",\"N\")))","v":""},{"$f":"IF(OR('Enrollment Form'!$CR440=\"\",'Enrollment Form'!$CR440=\"No\"),\"-\",IF(COUNTA('Enrollment Form'!$CT440:$CU440)=2,\"Y\",\"N\"))","v":"-"},{"$f":"IF($B433=\"N\",\"\",IF(COUNTIF('Enrollment Form'!$DG440:$DP440,\"Other\")=COUNTA('Enrollment Form'!$DK440,'Enrollment Form'!$DH440,'Enrollment Form'!$DN440,'Enrollment Form'!$DQ440),\"Y\",\"N\"))","v":""},{"$f":"IF($B433=\"N\",\"\",IF(OR('Enrollment Form'!B440<>\"Subscriber\",'Enrollment Form'!C440=\"ROC\",COUNTIF('Enrollment Form'!AV440:AW440,\"Yes\")>=1),\"-\",IF(AND('Enrollment Form'!C440=\"Enroll\",COUNTIF('Enrollment Form'!AV440:AW440,\"No\")=2,'Enrollment Form'!AX440=\"\"),\"N\",\"Y\")))","v":""},{"$f":"IF(OR(B433=\"N\",'Enrollment Form'!B440<>\"Subscriber\",'Enrollment Form'!C440=\"ROC\",'Enrollment Form'!O440<>\"Multiple of Salary\"),\"-\",IF(COUNTA('Enrollment Form'!T440:U440)<2,\"N\",\"Y\"))","v":"-"},{"$f":"IF(B433=\"N\",\"\",IF(OR('Enrollment Form'!C440=\"ROC\",'Enrollment Form'!B440<>\"Subscriber\",'Enrollment Form'!O440=\"Waive\",'Enrollment Form'!O440=\"\"),\"-\",IF('Enrollment Form'!P440=\"\",\"N\",\"Y\")))","v":""},{"$f":"IF($B433=\"N\",\"\",IF(AND('Enrollment Form'!$C440=\"ROC\",'Enrollment Form'!$DR440<>\"\"),\"Y\",IF(AND('Enrollment Form'!$C440=\"ROC\",'Enrollment Form'!$DR440=\"\"),\"N\",IF(AND('Enrollment Form'!$C440=\"Enroll\",'Enrollment Form'!$B440=\"Subscriber\",'Enrollment Form'!$CX440=\"No\",'Enrollment Form'!$DR440=\"\"),\"N\",IF(AND('Enrollment Form'!$C440=\"Enroll\",'Enrollment Form'!$B440=\"Subscriber\",'Enrollment Form'!$CX440=\"Yes\"),\"-\",\"Y\")))))","v":""},{"$f":"IF($B433=\"N\",\"\",IF(AND('Enrollment Form'!$C440=\"ROC\",'Enrollment Form'!$DS440<>\"\"),\"Y\",IF(AND('Enrollment Form'!$C440=\"ROC\",'Enrollment Form'!$DS440=\"\"),\"N\",IF(AND('Enrollment Form'!$C440=\"Enroll\",'Enrollment Form'!$B440=\"Subscriber\",'Enrollment Form'!$CX440=\"No\",'Enrollment Form'!$DS440=\"\"),\"N\",IF(AND('Enrollment Form'!$C440=\"Enroll\",'Enrollment Form'!$B440=\"Subscriber\",'Enrollment Form'!$CX440=\"Yes\"),\"-\",\"Y\")))))","v":""},{"$f":"IF('Enrollment Form'!AH440=\"\",\"\",IF(ISERROR(SEARCH(\".\",'Enrollment Form'!AH440,SEARCH(\"@\",'Enrollment Form'!AH440))),\"N\",\"Y\"))","v":""},{"$f":"IF(OR($B433=\"N\",'Enrollment Form'!$G440=\"\"),\"\",IF('Enrollment Form'!$B440<>\"Subscriber\",\"-\",IF(COUNTIF('Enrollment Form'!$AV440:$AW440,\"Yes\")=2,\"N\",\"Y\")))","v":""},{"$f":"IF(OR('Enrollment Form'!$CJ440=\"\",'Enrollment Form'!$CJ440=\"No\"),\"-\",IF(AND('Enrollment Form'!$CJ440=\"Yes\",'Enrollment Form'!$CK440=\"\"),\"N\",\"Y\"))","v":"-"},{"$f":"IF(OR('Enrollment Form'!$CL440=\"\",'Enrollment Form'!$CL440=\"No\"),\"-\",IF(AND('Enrollment Form'!$CL440=\"Yes\",'Enrollment Form'!$CM440=\"\"),\"N\",\"Y\"))","v":"-"},{"$f":"IF(OR('Enrollment Form'!$CN440=\"\",'Enrollment Form'!$CN440=\"No\"),\"-\",IF(AND('Enrollment Form'!$CN440=\"Yes\",'Enrollment Form'!$CO440=\"\"),\"N\",\"Y\"))","v":"-"},{"$f":"IF(OR('Enrollment Form'!$CN440=\"\",'Enrollment Form'!$CN440=\"No\"),\"-\",IF(AND('Enrollment Form'!$CN440=\"Yes\",'Enrollment Form'!$CP440=\"\"),\"N\",\"Y\"))","v":"-"},{"$f":"IF('Enrollment Form'!B440<>\"Subscriber\",\"-\",IF(AND('Enrollment Form'!B440=\"Subscriber\",'Enrollment Form'!C440=\"Enroll\",'Enrollment Form'!AA440=\"\"),\"N\",\"Y\"))","v":"-"},{"$f":"IF(OR('Enrollment Form'!B440=\"Subscriber\",'Enrollment Form'!B440=\"\"),\"-\",IF('Enrollment Form'!BP440=\"\",\"N\",\"Y\"))","v":"-"},{"$f":"IF('Enrollment Form'!B440<>\"Subscriber\",\"-\",IF(AND('Enrollment Form'!B440=\"Subscriber\",'Enrollment Form'!G440=\"\"),\"N\",\"Y\"))","v":"-"},{"$f":"IF('Enrollment Form'!A440=\"\",\"\",IF('Enrollment Form'!B440=\"Subscriber\",\"-\",IF(AND('Enrollment Form'!B440<>\"Subscriber\",'Enrollment Form'!G440='Enrollment Form'!H440),\"N\",\"Y\")))","v":""},0]
[441,{"$f":"IF('Enrollment Form'!$A441<>\"\",\"Y\",\"N\")","v":"N"},{"$f":"IF(AND('Enrollment Form'!$B441=\"\",'Enrollment Form'!$C441<>\"\"),\"N\",IF($B434=\"N\",\"\",\"Y\"))","v":""},{"$f":"IF(OR($B434=\"N\",'Enrollment Form'!G441=\"\"),\"\",IF('Enrollment Form'!$B441<>\"Subscriber\",\"\",IF('Enrollment Form'!$G441='Enrollment Form'!$H441,\"Y\",\"N\")))","v":""},{"$f":"IF($B434=\"N\",\"\",IF(AND(COUNTIFS('Enrollment Form'!$H$11:$H$1000,'Enrollment Form'!$H441,'Enrollment Form'!$B$11:$B$1000,'Enrollment Form'!$B441)>1,'Enrollment Form'!$H441<>\"\"),\"N\",\"Y\"))","v":""},{"$f":"IF($B434=\"N\",\"\",IF(LEN('Enrollment Form'!$Y441)=0,\"\",IF(LEN('Enrollment Form'!$Y441)<>5,\"N\",\"Y\")))","v":""},{"$f":"IF($B434=\"N\",\"\",IF(LEN('Enrollment Form'!$AD441=0),\"\",IF(LEN('Enrollment Form'!$AD441)<>5,\"N\",\"Y\")))","v":""},{"$f":"IF($B434=\"N\",\"\",IF(LEN('Enrollment Form'!$BS441=0),\"\",IF(LEN('Enrollment Form'!$BS441)<>5,\"N\",\"Y\")))","v":""},{"$f":"IF($B434=\"N\",\"\",IF(LEN('Enrollment Form'!$AE441)=0,\"\",IF(LEN('Enrollment Form'!$AE441)<>10,\"N\",\"Y\")))","v":""},{"$f":"IF($B434=\"N\",\"\",IF(LEN('Enrollment Form'!$AF441)=0,\"\",IF(LEN('Enrollment Form'!$AF441)<>10,\"N\",\"Y\")))","v":""},{"$f":"IF('Enrollment Form'!$O441<>\"Graded\",\"-\",IF(AND('Enrollment Form'!$O441=\"Graded\",'Enrollment Form'!$AR441<>\"\"),\"Y\",\"N\"))","v":"-"},{"$f":"IF($B434=\"N\",\"\",IF(OR('Enrollment Form'!$B441<>\"Subscriber\",'Enrollment Form'!$C441=\"ROC\"),\"-\",IF(AND('Enrollment Form'!$B441=\"Subscriber\",'Enrollment Form'!$C441=\"Enroll\",'Enrollment Form'!$AJ441<>\"\"),\"Y\",\"N\")))","v":""},{"$f":"IF($B434=\"N\",\"\",IF(OR('Enrollment Form'!$B441<>\"Subscriber\",'Enrollment Form'!$C441=\"ROC\"),\"-\",IF(AND('Enrollment Form'!$B441=\"Subscriber\",'Enrollment Form'!$C441=\"Enroll\",'Enrollment Form'!$AK441<>\"\"),\"Y\",\"N\")))","v":""},{"$f":"IF($B434=\"N\",\"\",IF(OR('Enrollment Form'!$B441<>\"Subscriber\",'Enrollment Form'!$C441=\"ROC\"),\"-\",IF(AND('Enrollment Form'!$B441=\"Subscriber\",'Enrollment Form'!$C441=\"Enroll\",'Enrollment Form'!$AL441<>\"\"),\"Y\",\"N\")))","v":""},{"$f":"IF($B434=\"N\",\"\",IF(OR('Enrollment Form'!$B441<>\"Subscriber\",'Enrollment Form'!$C441=\"ROC\"),\"-\",IF(AND('Enrollment Form'!$B441=\"Subscriber\",'Enrollment Form'!$C441=\"Enroll\",'Enrollment Form'!$AP441<>\"\"),\"Y\",\"N\")))","v":""},{"$f":"IF($B434=\"N\",\"\",IF(OR('Enrollment Form'!$B441<>\"Subscriber\",'Enrollment Form'!$C441=\"ROC\"),\"-\",IF(AND('Enrollment Form'!$B441=\"Subscriber\",'Enrollment Form'!$C441=\"Enroll\",'Enrollment Form'!$AQ441<>\"\"),\"Y\",\"N\")))","v":""},{"$f":"IF($B434=\"N\",\"\",IF(OR('Enrollment Form'!$B441<>\"Subscriber\",'Enrollment Form'!$C441=\"ROC\"),\"-\",IF(AND('Enrollment Form'!$B441=\"Subscriber\",'Enrollment Form'!$C441=\"Enroll\",'Enrollment Form'!$AS441<>\"\"),\"Y\",\"N\")))","v":""},{"$f":"IF($B434=\"N\",\"\",IF($Q434=\"-\",\"-\",IF(AND($Q434=\"Y\",'Enrollment Form'!$AS441=\"No\"),\"-\",IF(AND($Q434=\"Y\",'Enrollment Form'!$AS441=\"Yes\",'Enrollment Form'!$AT441<>\"\"),\"Y\",\"N\"))))","v":""},{"$f":"IF($B434=\"N\",\"\",IF(OR('Enrollment Form'!$B441<>\"Subscriber\",'Enrollment Form'!$C441=\"ROC\"),\"-\",IF(AND('Enrollment Form'!$B441=\"Subscriber\",'Enrollment Form'!$C441=\"Enroll\",'Enrollment Form'!$CV441<>\"\"),\"Y\",\"N\")))","v":""},{"$f":"IF($B434=\"N\",\"\",IF($S434=\"-\",\"-\",IF(AND($S434=\"Y\",'Enrollment Form'!$CV441=\"No\"),\"-\",IF(AND($S434=\"Y\",'Enrollment Form'!$CV441=\"Yes\",'Enrollment Form'!$CW441<>\"\"),\"Y\",\"N\"))))","v":""},{"$f":"IF(OR('Enrollment Form'!$AY441=\"Yes\",'Enrollment Form'!$AY441=\"\"),\"-\",IF(OR(AND('Enrollment Form'!$AY441=\"No\",ISERROR(FIND(\"HMO\",VLOOKUP('Enrollment Form'!G441,'Enrollment Form'!H$11:J$1000,3,FALSE),1))=FALSE,COUNTA('Enrollment Form'!$AZ441:$BC441)=4),AND('Enrollment Form'!$AY441=\"No\",ISERROR(FIND(\"HMO\",VLOOKUP('Enrollment Form'!G441,'Enrollment Form'!H$11:J$1000,3,FALSE),1))=FALSE,COUNTA('Enrollment Form'!$BT441:$BW441)=4)),\"Y\",\"N\"))","v":"-"},{"$f":"IF($B434=\"N\",\"\",IF('Enrollment Form'!$B441=\"Subscriber\",\"-\",IF(COUNTA('Enrollment Form'!$BL441,'Enrollment Form'!$BN441)=2,\"Y\",\"N\")))","v":""},{"$f":"IF($B434=\"N\",\"\",IF(OR('Enrollment Form'!$AX441=\"\",'Enrollment Form'!$AX441=\"No\"),\"-\",IF(AND('Enrollment Form'!$AX441=\"Yes\",COUNTA('Enrollment Form'!$CR441)=1),\"Y\",\"N\")))","v":""},{"$f":"IF(OR('Enrollment Form'!$CR441=\"\",'Enrollment Form'!$CR441=\"No\"),\"-\",IF(COUNTA('Enrollment Form'!$CT441:$CU441)=2,\"Y\",\"N\"))","v":"-"},{"$f":"IF($B434=\"N\",\"\",IF(COUNTIF('Enrollment Form'!$DG441:$DP441,\"Other\")=COUNTA('Enrollment Form'!$DK441,'Enrollment Form'!$DH441,'Enrollment Form'!$DN441,'Enrollment Form'!$DQ441),\"Y\",\"N\"))","v":""},{"$f":"IF($B434=\"N\",\"\",IF(OR('Enrollment Form'!B441<>\"Subscriber\",'Enrollment Form'!C441=\"ROC\",COUNTIF('Enrollment Form'!AV441:AW441,\"Yes\")>=1),\"-\",IF(AND('Enrollment Form'!C441=\"Enroll\",COUNTIF('Enrollment Form'!AV441:AW441,\"No\")=2,'Enrollment Form'!AX441=\"\"),\"N\",\"Y\")))","v":""},{"$f":"IF(OR(B434=\"N\",'Enrollment Form'!B441<>\"Subscriber\",'Enrollment Form'!C441=\"ROC\",'Enrollment Form'!O441<>\"Multiple of Salary\"),\"-\",IF(COUNTA('Enrollment Form'!T441:U441)<2,\"N\",\"Y\"))","v":"-"},{"$f":"IF(B434=\"N\",\"\",IF(OR('Enrollment Form'!C441=\"ROC\",'Enrollment Form'!B441<>\"Subscriber\",'Enrollment Form'!O441=\"Waive\",'Enrollment Form'!O441=\"\"),\"-\",IF('Enrollment Form'!P441=\"\",\"N\",\"Y\")))","v":""},{"$f":"IF($B434=\"N\",\"\",IF(AND('Enrollment Form'!$C441=\"ROC\",'Enrollment Form'!$DR441<>\"\"),\"Y\",IF(AND('Enrollment Form'!$C441=\"ROC\",'Enrollment Form'!$DR441=\"\"),\"N\",IF(AND('Enrollment Form'!$C441=\"Enroll\",'Enrollment Form'!$B441=\"Subscriber\",'Enrollment Form'!$CX441=\"No\",'Enrollment Form'!$DR441=\"\"),\"N\",IF(AND('Enrollment Form'!$C441=\"Enroll\",'Enrollment Form'!$B441=\"Subscriber\",'Enrollment Form'!$CX441=\"Yes\"),\"-\",\"Y\")))))","v":""},{"$f":"IF($B434=\"N\",\"\",IF(AND('Enrollment Form'!$C441=\"ROC\",'Enrollment Form'!$DS441<>\"\"),\"Y\",IF(AND('Enrollment Form'!$C441=\"ROC\",'Enrollment Form'!$DS441=\"\"),\"N\",IF(AND('Enrollment Form'!$C441=\"Enroll\",'Enrollment Form'!$B441=\"Subscriber\",'Enrollment Form'!$CX441=\"No\",'Enrollment Form'!$DS441=\"\"),\"N\",IF(AND('Enrollment Form'!$C441=\"Enroll\",'Enrollment Form'!$B441=\"Subscriber\",'Enrollment Form'!$CX441=\"Yes\"),\"-\",\"Y\")))))","v":""},{"$f":"IF('Enrollment Form'!AH441=\"\",\"\",IF(ISERROR(SEARCH(\".\",'Enrollment Form'!AH441,SEARCH(\"@\",'Enrollment Form'!AH441))),\"N\",\"Y\"))","v":""},{"$f":"IF(OR($B434=\"N\",'Enrollment Form'!$G441=\"\"),\"\",IF('Enrollment Form'!$B441<>\"Subscriber\",\"-\",IF(COUNTIF('Enrollment Form'!$AV441:$AW441,\"Yes\")=2,\"N\",\"Y\")))","v":""},{"$f":"IF(OR('Enrollment Form'!$CJ441=\"\",'Enrollment Form'!$CJ441=\"No\"),\"-\",IF(AND('Enrollment Form'!$CJ441=\"Yes\",'Enrollment Form'!$CK441=\"\"),\"N\",\"Y\"))","v":"-"},{"$f":"IF(OR('Enrollment Form'!$CL441=\"\",'Enrollment Form'!$CL441=\"No\"),\"-\",IF(AND('Enrollment Form'!$CL441=\"Yes\",'Enrollment Form'!$CM441=\"\"),\"N\",\"Y\"))","v":"-"},{"$f":"IF(OR('Enrollment Form'!$CN441=\"\",'Enrollment Form'!$CN441=\"No\"),\"-\",IF(AND('Enrollment Form'!$CN441=\"Yes\",'Enrollment Form'!$CO441=\"\"),\"N\",\"Y\"))","v":"-"},{"$f":"IF(OR('Enrollment Form'!$CN441=\"\",'Enrollment Form'!$CN441=\"No\"),\"-\",IF(AND('Enrollment Form'!$CN441=\"Yes\",'Enrollment Form'!$CP441=\"\"),\"N\",\"Y\"))","v":"-"},{"$f":"IF('Enrollment Form'!B441<>\"Subscriber\",\"-\",IF(AND('Enrollment Form'!B441=\"Subscriber\",'Enrollment Form'!C441=\"Enroll\",'Enrollment Form'!AA441=\"\"),\"N\",\"Y\"))","v":"-"},{"$f":"IF(OR('Enrollment Form'!B441=\"Subscriber\",'Enrollment Form'!B441=\"\"),\"-\",IF('Enrollment Form'!BP441=\"\",\"N\",\"Y\"))","v":"-"},{"$f":"IF('Enrollment Form'!B441<>\"Subscriber\",\"-\",IF(AND('Enrollment Form'!B441=\"Subscriber\",'Enrollment Form'!G441=\"\"),\"N\",\"Y\"))","v":"-"},{"$f":"IF('Enrollment Form'!A441=\"\",\"\",IF('Enrollment Form'!B441=\"Subscriber\",\"-\",IF(AND('Enrollment Form'!B441<>\"Subscriber\",'Enrollment Form'!G441='Enrollment Form'!H441),\"N\",\"Y\")))","v":""},0]
[442,{"$f":"IF('Enrollment Form'!$A442<>\"\",\"Y\",\"N\")","v":"N"},{"$f":"IF(AND('Enrollment Form'!$B442=\"\",'Enrollment Form'!$C442<>\"\"),\"N\",IF($B435=\"N\",\"\",\"Y\"))","v":""},{"$f":"IF(OR($B435=\"N\",'Enrollment Form'!G442=\"\"),\"\",IF('Enrollment Form'!$B442<>\"Subscriber\",\"\",IF('Enrollment Form'!$G442='Enrollment Form'!$H442,\"Y\",\"N\")))","v":""},{"$f":"IF($B435=\"N\",\"\",IF(AND(COUNTIFS('Enrollment Form'!$H$11:$H$1000,'Enrollment Form'!$H442,'Enrollment Form'!$B$11:$B$1000,'Enrollment Form'!$B442)>1,'Enrollment Form'!$H442<>\"\"),\"N\",\"Y\"))","v":""},{"$f":"IF($B435=\"N\",\"\",IF(LEN('Enrollment Form'!$Y442)=0,\"\",IF(LEN('Enrollment Form'!$Y442)<>5,\"N\",\"Y\")))","v":""},{"$f":"IF($B435=\"N\",\"\",IF(LEN('Enrollment Form'!$AD442=0),\"\",IF(LEN('Enrollment Form'!$AD442)<>5,\"N\",\"Y\")))","v":""},{"$f":"IF($B435=\"N\",\"\",IF(LEN('Enrollment Form'!$BS442=0),\"\",IF(LEN('Enrollment Form'!$BS442)<>5,\"N\",\"Y\")))","v":""},{"$f":"IF($B435=\"N\",\"\",IF(LEN('Enrollment Form'!$AE442)=0,\"\",IF(LEN('Enrollment Form'!$AE442)<>10,\"N\",\"Y\")))","v":""},{"$f":"IF($B435=\"N\",\"\",IF(LEN('Enrollment Form'!$AF442)=0,\"\",IF(LEN('Enrollment Form'!$AF442)<>10,\"N\",\"Y\")))","v":""},{"$f":"IF('Enrollment Form'!$O442<>\"Graded\",\"-\",IF(AND('Enrollment Form'!$O442=\"Graded\",'Enrollment Form'!$AR442<>\"\"),\"Y\",\"N\"))","v":"-"},{"$f":"IF($B435=\"N\",\"\",IF(OR('Enrollment Form'!$B442<>\"Subscriber\",'Enrollment Form'!$C442=\"ROC\"),\"-\",IF(AND('Enrollment Form'!$B442=\"Subscriber\",'Enrollment Form'!$C442=\"Enroll\",'Enrollment Form'!$AJ442<>\"\"),\"Y\",\"N\")))","v":""},{"$f":"IF($B435=\"N\",\"\",IF(OR('Enrollment Form'!$B442<>\"Subscriber\",'Enrollment Form'!$C442=\"ROC\"),\"-\",IF(AND('Enrollment Form'!$B442=\"Subscriber\",'Enrollment Form'!$C442=\"Enroll\",'Enrollment Form'!$AK442<>\"\"),\"Y\",\"N\")))","v":""},{"$f":"IF($B435=\"N\",\"\",IF(OR('Enrollment Form'!$B442<>\"Subscriber\",'Enrollment Form'!$C442=\"ROC\"),\"-\",IF(AND('Enrollment Form'!$B442=\"Subscriber\",'Enrollment Form'!$C442=\"Enroll\",'Enrollment Form'!$AL442<>\"\"),\"Y\",\"N\")))","v":""},{"$f":"IF($B435=\"N\",\"\",IF(OR('Enrollment Form'!$B442<>\"Subscriber\",'Enrollment Form'!$C442=\"ROC\"),\"-\",IF(AND('Enrollment Form'!$B442=\"Subscriber\",'Enrollment Form'!$C442=\"Enroll\",'Enrollment Form'!$AP442<>\"\"),\"Y\",\"N\")))","v":""},{"$f":"IF($B435=\"N\",\"\",IF(OR('Enrollment Form'!$B442<>\"Subscriber\",'Enrollment Form'!$C442=\"ROC\"),\"-\",IF(AND('Enrollment Form'!$B442=\"Subscriber\",'Enrollment Form'!$C442=\"Enroll\",'Enrollment Form'!$AQ442<>\"\"),\"Y\",\"N\")))","v":""},{"$f":"IF($B435=\"N\",\"\",IF(OR('Enrollment Form'!$B442<>\"Subscriber\",'Enrollment Form'!$C442=\"ROC\"),\"-\",IF(AND('Enrollment Form'!$B442=\"Subscriber\",'Enrollment Form'!$C442=\"Enroll\",'Enrollment Form'!$AS442<>\"\"),\"Y\",\"N\")))","v":""},{"$f":"IF($B435=\"N\",\"\",IF($Q435=\"-\",\"-\",IF(AND($Q435=\"Y\",'Enrollment Form'!$AS442=\"No\"),\"-\",IF(AND($Q435=\"Y\",'Enrollment Form'!$AS442=\"Yes\",'Enrollment Form'!$AT442<>\"\"),\"Y\",\"N\"))))","v":""},{"$f":"IF($B435=\"N\",\"\",IF(OR('Enrollment Form'!$B442<>\"Subscriber\",'Enrollment Form'!$C442=\"ROC\"),\"-\",IF(AND('Enrollment Form'!$B442=\"Subscriber\",'Enrollment Form'!$C442=\"Enroll\",'Enrollment Form'!$CV442<>\"\"),\"Y\",\"N\")))","v":""},{"$f":"IF($B435=\"N\",\"\",IF($S435=\"-\",\"-\",IF(AND($S435=\"Y\",'Enrollment Form'!$CV442=\"No\"),\"-\",IF(AND($S435=\"Y\",'Enrollment Form'!$CV442=\"Yes\",'Enrollment Form'!$CW442<>\"\"),\"Y\",\"N\"))))","v":""},{"$f":"IF(OR('Enrollment Form'!$AY442=\"Yes\",'Enrollment Form'!$AY442=\"\"),\"-\",IF(OR(AND('Enrollment Form'!$AY442=\"No\",ISERROR(FIND(\"HMO\",VLOOKUP('Enrollment Form'!G442,'Enrollment Form'!H$11:J$1000,3,FALSE),1))=FALSE,COUNTA('Enrollment Form'!$AZ442:$BC442)=4),AND('Enrollment Form'!$AY442=\"No\",ISERROR(FIND(\"HMO\",VLOOKUP('Enrollment Form'!G442,'Enrollment Form'!H$11:J$1000,3,FALSE),1))=FALSE,COUNTA('Enrollment Form'!$BT442:$BW442)=4)),\"Y\",\"N\"))","v":"-"},{"$f":"IF($B435=\"N\",\"\",IF('Enrollment Form'!$B442=\"Subscriber\",\"-\",IF(COUNTA('Enrollment Form'!$BL442,'Enrollment Form'!$BN442)=2,\"Y\",\"N\")))","v":""},{"$f":"IF($B435=\"N\",\"\",IF(OR('Enrollment Form'!$AX442=\"\",'Enrollment Form'!$AX442=\"No\"),\"-\",IF(AND('Enrollment Form'!$AX442=\"Yes\",COUNTA('Enrollment Form'!$CR442)=1),\"Y\",\"N\")))","v":""},{"$f":"IF(OR('Enrollment Form'!$CR442=\"\",'Enrollment Form'!$CR442=\"No\"),\"-\",IF(COUNTA('Enrollment Form'!$CT442:$CU442)=2,\"Y\",\"N\"))","v":"-"},{"$f":"IF($B435=\"N\",\"\",IF(COUNTIF('Enrollment Form'!$DG442:$DP442,\"Other\")=COUNTA('Enrollment Form'!$DK442,'Enrollment Form'!$DH442,'Enrollment Form'!$DN442,'Enrollment Form'!$DQ442),\"Y\",\"N\"))","v":""},{"$f":"IF($B435=\"N\",\"\",IF(OR('Enrollment Form'!B442<>\"Subscriber\",'Enrollment Form'!C442=\"ROC\",COUNTIF('Enrollment Form'!AV442:AW442,\"Yes\")>=1),\"-\",IF(AND('Enrollment Form'!C442=\"Enroll\",COUNTIF('Enrollment Form'!AV442:AW442,\"No\")=2,'Enrollment Form'!AX442=\"\"),\"N\",\"Y\")))","v":""},{"$f":"IF(OR(B435=\"N\",'Enrollment Form'!B442<>\"Subscriber\",'Enrollment Form'!C442=\"ROC\",'Enrollment Form'!O442<>\"Multiple of Salary\"),\"-\",IF(COUNTA('Enrollment Form'!T442:U442)<2,\"N\",\"Y\"))","v":"-"},{"$f":"IF(B435=\"N\",\"\",IF(OR('Enrollment Form'!C442=\"ROC\",'Enrollment Form'!B442<>\"Subscriber\",'Enrollment Form'!O442=\"Waive\",'Enrollment Form'!O442=\"\"),\"-\",IF('Enrollment Form'!P442=\"\",\"N\",\"Y\")))","v":""},{"$f":"IF($B435=\"N\",\"\",IF(AND('Enrollment Form'!$C442=\"ROC\",'Enrollment Form'!$DR442<>\"\"),\"Y\",IF(AND('Enrollment Form'!$C442=\"ROC\",'Enrollment Form'!$DR442=\"\"),\"N\",IF(AND('Enrollment Form'!$C442=\"Enroll\",'Enrollment Form'!$B442=\"Subscriber\",'Enrollment Form'!$CX442=\"No\",'Enrollment Form'!$DR442=\"\"),\"N\",IF(AND('Enrollment Form'!$C442=\"Enroll\",'Enrollment Form'!$B442=\"Subscriber\",'Enrollment Form'!$CX442=\"Yes\"),\"-\",\"Y\")))))","v":""},{"$f":"IF($B435=\"N\",\"\",IF(AND('Enrollment Form'!$C442=\"ROC\",'Enrollment Form'!$DS442<>\"\"),\"Y\",IF(AND('Enrollment Form'!$C442=\"ROC\",'Enrollment Form'!$DS442=\"\"),\"N\",IF(AND('Enrollment Form'!$C442=\"Enroll\",'Enrollment Form'!$B442=\"Subscriber\",'Enrollment Form'!$CX442=\"No\",'Enrollment Form'!$DS442=\"\"),\"N\",IF(AND('Enrollment Form'!$C442=\"Enroll\",'Enrollment Form'!$B442=\"Subscriber\",'Enrollment Form'!$CX442=\"Yes\"),\"-\",\"Y\")))))","v":""},{"$f":"IF('Enrollment Form'!AH442=\"\",\"\",IF(ISERROR(SEARCH(\".\",'Enrollment Form'!AH442,SEARCH(\"@\",'Enrollment Form'!AH442))),\"N\",\"Y\"))","v":""},{"$f":"IF(OR($B435=\"N\",'Enrollment Form'!$G442=\"\"),\"\",IF('Enrollment Form'!$B442<>\"Subscriber\",\"-\",IF(COUNTIF('Enrollment Form'!$AV442:$AW442,\"Yes\")=2,\"N\",\"Y\")))","v":""},{"$f":"IF(OR('Enrollment Form'!$CJ442=\"\",'Enrollment Form'!$CJ442=\"No\"),\"-\",IF(AND('Enrollment Form'!$CJ442=\"Yes\",'Enrollment Form'!$CK442=\"\"),\"N\",\"Y\"))","v":"-"},{"$f":"IF(OR('Enrollment Form'!$CL442=\"\",'Enrollment Form'!$CL442=\"No\"),\"-\",IF(AND('Enrollment Form'!$CL442=\"Yes\",'Enrollment Form'!$CM442=\"\"),\"N\",\"Y\"))","v":"-"},{"$f":"IF(OR('Enrollment Form'!$CN442=\"\",'Enrollment Form'!$CN442=\"No\"),\"-\",IF(AND('Enrollment Form'!$CN442=\"Yes\",'Enrollment Form'!$CO442=\"\"),\"N\",\"Y\"))","v":"-"},{"$f":"IF(OR('Enrollment Form'!$CN442=\"\",'Enrollment Form'!$CN442=\"No\"),\"-\",IF(AND('Enrollment Form'!$CN442=\"Yes\",'Enrollment Form'!$CP442=\"\"),\"N\",\"Y\"))","v":"-"},{"$f":"IF('Enrollment Form'!B442<>\"Subscriber\",\"-\",IF(AND('Enrollment Form'!B442=\"Subscriber\",'Enrollment Form'!C442=\"Enroll\",'Enrollment Form'!AA442=\"\"),\"N\",\"Y\"))","v":"-"},{"$f":"IF(OR('Enrollment Form'!B442=\"Subscriber\",'Enrollment Form'!B442=\"\"),\"-\",IF('Enrollment Form'!BP442=\"\",\"N\",\"Y\"))","v":"-"},{"$f":"IF('Enrollment Form'!B442<>\"Subscriber\",\"-\",IF(AND('Enrollment Form'!B442=\"Subscriber\",'Enrollment Form'!G442=\"\"),\"N\",\"Y\"))","v":"-"},{"$f":"IF('Enrollment Form'!A442=\"\",\"\",IF('Enrollment Form'!B442=\"Subscriber\",\"-\",IF(AND('Enrollment Form'!B442<>\"Subscriber\",'Enrollment Form'!G442='Enrollment Form'!H442),\"N\",\"Y\")))","v":""},0]
[443,{"$f":"IF('Enrollment Form'!$A443<>\"\",\"Y\",\"N\")","v":"N"},{"$f":"IF(AND('Enrollment Form'!$B443=\"\",'Enrollment Form'!$C443<>\"\"),\"N\",IF($B436=\"N\",\"\",\"Y\"))","v":""},{"$f":"IF(OR($B436=\"N\",'Enrollment Form'!G443=\"\"),\"\",IF('Enrollment Form'!$B443<>\"Subscriber\",\"\",IF('Enrollment Form'!$G443='Enrollment Form'!$H443,\"Y\",\"N\")))","v":""},{"$f":"IF($B436=\"N\",\"\",IF(AND(COUNTIFS('Enrollment Form'!$H$11:$H$1000,'Enrollment Form'!$H443,'Enrollment Form'!$B$11:$B$1000,'Enrollment Form'!$B443)>1,'Enrollment Form'!$H443<>\"\"),\"N\",\"Y\"))","v":""},{"$f":"IF($B436=\"N\",\"\",IF(LEN('Enrollment Form'!$Y443)=0,\"\",IF(LEN('Enrollment Form'!$Y443)<>5,\"N\",\"Y\")))","v":""},{"$f":"IF($B436=\"N\",\"\",IF(LEN('Enrollment Form'!$AD443=0),\"\",IF(LEN('Enrollment Form'!$AD443)<>5,\"N\",\"Y\")))","v":""},{"$f":"IF($B436=\"N\",\"\",IF(LEN('Enrollment Form'!$BS443=0),\"\",IF(LEN('Enrollment Form'!$BS443)<>5,\"N\",\"Y\")))","v":""},{"$f":"IF($B436=\"N\",\"\",IF(LEN('Enrollment Form'!$AE443)=0,\"\",IF(LEN('Enrollment Form'!$AE443)<>10,\"N\",\"Y\")))","v":""},{"$f":"IF($B436=\"N\",\"\",IF(LEN('Enrollment Form'!$AF443)=0,\"\",IF(LEN('Enrollment Form'!$AF443)<>10,\"N\",\"Y\")))","v":""},{"$f":"IF('Enrollment Form'!$O443<>\"Graded\",\"-\",IF(AND('Enrollment Form'!$O443=\"Graded\",'Enrollment Form'!$AR443<>\"\"),\"Y\",\"N\"))","v":"-"},{"$f":"IF($B436=\"N\",\"\",IF(OR('Enrollment Form'!$B443<>\"Subscriber\",'Enrollment Form'!$C443=\"ROC\"),\"-\",IF(AND('Enrollment Form'!$B443=\"Subscriber\",'Enrollment Form'!$C443=\"Enroll\",'Enrollment Form'!$AJ443<>\"\"),\"Y\",\"N\")))","v":""},{"$f":"IF($B436=\"N\",\"\",IF(OR('Enrollment Form'!$B443<>\"Subscriber\",'Enrollment Form'!$C443=\"ROC\"),\"-\",IF(AND('Enrollment Form'!$B443=\"Subscriber\",'Enrollment Form'!$C443=\"Enroll\",'Enrollment Form'!$AK443<>\"\"),\"Y\",\"N\")))","v":""},{"$f":"IF($B436=\"N\",\"\",IF(OR('Enrollment Form'!$B443<>\"Subscriber\",'Enrollment Form'!$C443=\"ROC\"),\"-\",IF(AND('Enrollment Form'!$B443=\"Subscriber\",'Enrollment Form'!$C443=\"Enroll\",'Enrollment Form'!$AL443<>\"\"),\"Y\",\"N\")))","v":""},{"$f":"IF($B436=\"N\",\"\",IF(OR('Enrollment Form'!$B443<>\"Subscriber\",'Enrollment Form'!$C443=\"ROC\"),\"-\",IF(AND('Enrollment Form'!$B443=\"Subscriber\",'Enrollment Form'!$C443=\"Enroll\",'Enrollment Form'!$AP443<>\"\"),\"Y\",\"N\")))","v":""},{"$f":"IF($B436=\"N\",\"\",IF(OR('Enrollment Form'!$B443<>\"Subscriber\",'Enrollment Form'!$C443=\"ROC\"),\"-\",IF(AND('Enrollment Form'!$B443=\"Subscriber\",'Enrollment Form'!$C443=\"Enroll\",'Enrollment Form'!$AQ443<>\"\"),\"Y\",\"N\")))","v":""},{"$f":"IF($B436=\"N\",\"\",IF(OR('Enrollment Form'!$B443<>\"Subscriber\",'Enrollment Form'!$C443=\"ROC\"),\"-\",IF(AND('Enrollment Form'!$B443=\"Subscriber\",'Enrollment Form'!$C443=\"Enroll\",'Enrollment Form'!$AS443<>\"\"),\"Y\",\"N\")))","v":""},{"$f":"IF($B436=\"N\",\"\",IF($Q436=\"-\",\"-\",IF(AND($Q436=\"Y\",'Enrollment Form'!$AS443=\"No\"),\"-\",IF(AND($Q436=\"Y\",'Enrollment Form'!$AS443=\"Yes\",'Enrollment Form'!$AT443<>\"\"),\"Y\",\"N\"))))","v":""},{"$f":"IF($B436=\"N\",\"\",IF(OR('Enrollment Form'!$B443<>\"Subscriber\",'Enrollment Form'!$C443=\"ROC\"),\"-\",IF(AND('Enrollment Form'!$B443=\"Subscriber\",'Enrollment Form'!$C443=\"Enroll\",'Enrollment Form'!$CV443<>\"\"),\"Y\",\"N\")))","v":""},{"$f":"IF($B436=\"N\",\"\",IF($S436=\"-\",\"-\",IF(AND($S436=\"Y\",'Enrollment Form'!$CV443=\"No\"),\"-\",IF(AND($S436=\"Y\",'Enrollment Form'!$CV443=\"Yes\",'Enrollment Form'!$CW443<>\"\"),\"Y\",\"N\"))))","v":""},{"$f":"IF(OR('Enrollment Form'!$AY443=\"Yes\",'Enrollment Form'!$AY443=\"\"),\"-\",IF(OR(AND('Enrollment Form'!$AY443=\"No\",ISERROR(FIND(\"HMO\",VLOOKUP('Enrollment Form'!G443,'Enrollment Form'!H$11:J$1000,3,FALSE),1))=FALSE,COUNTA('Enrollment Form'!$AZ443:$BC443)=4),AND('Enrollment Form'!$AY443=\"No\",ISERROR(FIND(\"HMO\",VLOOKUP('Enrollment Form'!G443,'Enrollment Form'!H$11:J$1000,3,FALSE),1))=FALSE,COUNTA('Enrollment Form'!$BT443:$BW443)=4)),\"Y\",\"N\"))","v":"-"},{"$f":"IF($B436=\"N\",\"\",IF('Enrollment Form'!$B443=\"Subscriber\",\"-\",IF(COUNTA('Enrollment Form'!$BL443,'Enrollment Form'!$BN443)=2,\"Y\",\"N\")))","v":""},{"$f":"IF($B436=\"N\",\"\",IF(OR('Enrollment Form'!$AX443=\"\",'Enrollment Form'!$AX443=\"No\"),\"-\",IF(AND('Enrollment Form'!$AX443=\"Yes\",COUNTA('Enrollment Form'!$CR443)=1),\"Y\",\"N\")))","v":""},{"$f":"IF(OR('Enrollment Form'!$CR443=\"\",'Enrollment Form'!$CR443=\"No\"),\"-\",IF(COUNTA('Enrollment Form'!$CT443:$CU443)=2,\"Y\",\"N\"))","v":"-"},{"$f":"IF($B436=\"N\",\"\",IF(COUNTIF('Enrollment Form'!$DG443:$DP443,\"Other\")=COUNTA('Enrollment Form'!$DK443,'Enrollment Form'!$DH443,'Enrollment Form'!$DN443,'Enrollment Form'!$DQ443),\"Y\",\"N\"))","v":""},{"$f":"IF($B436=\"N\",\"\",IF(OR('Enrollment Form'!B443<>\"Subscriber\",'Enrollment Form'!C443=\"ROC\",COUNTIF('Enrollment Form'!AV443:AW443,\"Yes\")>=1),\"-\",IF(AND('Enrollment Form'!C443=\"Enroll\",COUNTIF('Enrollment Form'!AV443:AW443,\"No\")=2,'Enrollment Form'!AX443=\"\"),\"N\",\"Y\")))","v":""},{"$f":"IF(OR(B436=\"N\",'Enrollment Form'!B443<>\"Subscriber\",'Enrollment Form'!C443=\"ROC\",'Enrollment Form'!O443<>\"Multiple of Salary\"),\"-\",IF(COUNTA('Enrollment Form'!T443:U443)<2,\"N\",\"Y\"))","v":"-"},{"$f":"IF(B436=\"N\",\"\",IF(OR('Enrollment Form'!C443=\"ROC\",'Enrollment Form'!B443<>\"Subscriber\",'Enrollment Form'!O443=\"Waive\",'Enrollment Form'!O443=\"\"),\"-\",IF('Enrollment Form'!P443=\"\",\"N\",\"Y\")))","v":""},{"$f":"IF($B436=\"N\",\"\",IF(AND('Enrollment Form'!$C443=\"ROC\",'Enrollment Form'!$DR443<>\"\"),\"Y\",IF(AND('Enrollment Form'!$C443=\"ROC\",'Enrollment Form'!$DR443=\"\"),\"N\",IF(AND('Enrollment Form'!$C443=\"Enroll\",'Enrollment Form'!$B443=\"Subscriber\",'Enrollment Form'!$CX443=\"No\",'Enrollment Form'!$DR443=\"\"),\"N\",IF(AND('Enrollment Form'!$C443=\"Enroll\",'Enrollment Form'!$B443=\"Subscriber\",'Enrollment Form'!$CX443=\"Yes\"),\"-\",\"Y\")))))","v":""},{"$f":"IF($B436=\"N\",\"\",IF(AND('Enrollment Form'!$C443=\"ROC\",'Enrollment Form'!$DS443<>\"\"),\"Y\",IF(AND('Enrollment Form'!$C443=\"ROC\",'Enrollment Form'!$DS443=\"\"),\"N\",IF(AND('Enrollment Form'!$C443=\"Enroll\",'Enrollment Form'!$B443=\"Subscriber\",'Enrollment Form'!$CX443=\"No\",'Enrollment Form'!$DS443=\"\"),\"N\",IF(AND('Enrollment Form'!$C443=\"Enroll\",'Enrollment Form'!$B443=\"Subscriber\",'Enrollment Form'!$CX443=\"Yes\"),\"-\",\"Y\")))))","v":""},{"$f":"IF('Enrollment Form'!AH443=\"\",\"\",IF(ISERROR(SEARCH(\".\",'Enrollment Form'!AH443,SEARCH(\"@\",'Enrollment Form'!AH443))),\"N\",\"Y\"))","v":""},{"$f":"IF(OR($B436=\"N\",'Enrollment Form'!$G443=\"\"),\"\",IF('Enrollment Form'!$B443<>\"Subscriber\",\"-\",IF(COUNTIF('Enrollment Form'!$AV443:$AW443,\"Yes\")=2,\"N\",\"Y\")))","v":""},{"$f":"IF(OR('Enrollment Form'!$CJ443=\"\",'Enrollment Form'!$CJ443=\"No\"),\"-\",IF(AND('Enrollment Form'!$CJ443=\"Yes\",'Enrollment Form'!$CK443=\"\"),\"N\",\"Y\"))","v":"-"},{"$f":"IF(OR('Enrollment Form'!$CL443=\"\",'Enrollment Form'!$CL443=\"No\"),\"-\",IF(AND('Enrollment Form'!$CL443=\"Yes\",'Enrollment Form'!$CM443=\"\"),\"N\",\"Y\"))","v":"-"},{"$f":"IF(OR('Enrollment Form'!$CN443=\"\",'Enrollment Form'!$CN443=\"No\"),\"-\",IF(AND('Enrollment Form'!$CN443=\"Yes\",'Enrollment Form'!$CO443=\"\"),\"N\",\"Y\"))","v":"-"},{"$f":"IF(OR('Enrollment Form'!$CN443=\"\",'Enrollment Form'!$CN443=\"No\"),\"-\",IF(AND('Enrollment Form'!$CN443=\"Yes\",'Enrollment Form'!$CP443=\"\"),\"N\",\"Y\"))","v":"-"},{"$f":"IF('Enrollment Form'!B443<>\"Subscriber\",\"-\",IF(AND('Enrollment Form'!B443=\"Subscriber\",'Enrollment Form'!C443=\"Enroll\",'Enrollment Form'!AA443=\"\"),\"N\",\"Y\"))","v":"-"},{"$f":"IF(OR('Enrollment Form'!B443=\"Subscriber\",'Enrollment Form'!B443=\"\"),\"-\",IF('Enrollment Form'!BP443=\"\",\"N\",\"Y\"))","v":"-"},{"$f":"IF('Enrollment Form'!B443<>\"Subscriber\",\"-\",IF(AND('Enrollment Form'!B443=\"Subscriber\",'Enrollment Form'!G443=\"\"),\"N\",\"Y\"))","v":"-"},{"$f":"IF('Enrollment Form'!A443=\"\",\"\",IF('Enrollment Form'!B443=\"Subscriber\",\"-\",IF(AND('Enrollment Form'!B443<>\"Subscriber\",'Enrollment Form'!G443='Enrollment Form'!H443),\"N\",\"Y\")))","v":""},0]
[444,{"$f":"IF('Enrollment Form'!$A444<>\"\",\"Y\",\"N\")","v":"N"},{"$f":"IF(AND('Enrollment Form'!$B444=\"\",'Enrollment Form'!$C444<>\"\"),\"N\",IF($B437=\"N\",\"\",\"Y\"))","v":""},{"$f":"IF(OR($B437=\"N\",'Enrollment Form'!G444=\"\"),\"\",IF('Enrollment Form'!$B444<>\"Subscriber\",\"\",IF('Enrollment Form'!$G444='Enrollment Form'!$H444,\"Y\",\"N\")))","v":""},{"$f":"IF($B437=\"N\",\"\",IF(AND(COUNTIFS('Enrollment Form'!$H$11:$H$1000,'Enrollment Form'!$H444,'Enrollment Form'!$B$11:$B$1000,'Enrollment Form'!$B444)>1,'Enrollment Form'!$H444<>\"\"),\"N\",\"Y\"))","v":""},{"$f":"IF($B437=\"N\",\"\",IF(LEN('Enrollment Form'!$Y444)=0,\"\",IF(LEN('Enrollment Form'!$Y444)<>5,\"N\",\"Y\")))","v":""},{"$f":"IF($B437=\"N\",\"\",IF(LEN('Enrollment Form'!$AD444=0),\"\",IF(LEN('Enrollment Form'!$AD444)<>5,\"N\",\"Y\")))","v":""},{"$f":"IF($B437=\"N\",\"\",IF(LEN('Enrollment Form'!$BS444=0),\"\",IF(LEN('Enrollment Form'!$BS444)<>5,\"N\",\"Y\")))","v":""},{"$f":"IF($B437=\"N\",\"\",IF(LEN('Enrollment Form'!$AE444)=0,\"\",IF(LEN('Enrollment Form'!$AE444)<>10,\"N\",\"Y\")))","v":""},{"$f":"IF($B437=\"N\",\"\",IF(LEN('Enrollment Form'!$AF444)=0,\"\",IF(LEN('Enrollment Form'!$AF444)<>10,\"N\",\"Y\")))","v":""},{"$f":"IF('Enrollment Form'!$O444<>\"Graded\",\"-\",IF(AND('Enrollment Form'!$O444=\"Graded\",'Enrollment Form'!$AR444<>\"\"),\"Y\",\"N\"))","v":"-"},{"$f":"IF($B437=\"N\",\"\",IF(OR('Enrollment Form'!$B444<>\"Subscriber\",'Enrollment Form'!$C444=\"ROC\"),\"-\",IF(AND('Enrollment Form'!$B444=\"Subscriber\",'Enrollment Form'!$C444=\"Enroll\",'Enrollment Form'!$AJ444<>\"\"),\"Y\",\"N\")))","v":""},{"$f":"IF($B437=\"N\",\"\",IF(OR('Enrollment Form'!$B444<>\"Subscriber\",'Enrollment Form'!$C444=\"ROC\"),\"-\",IF(AND('Enrollment Form'!$B444=\"Subscriber\",'Enrollment Form'!$C444=\"Enroll\",'Enrollment Form'!$AK444<>\"\"),\"Y\",\"N\")))","v":""},{"$f":"IF($B437=\"N\",\"\",IF(OR('Enrollment Form'!$B444<>\"Subscriber\",'Enrollment Form'!$C444=\"ROC\"),\"-\",IF(AND('Enrollment Form'!$B444=\"Subscriber\",'Enrollment Form'!$C444=\"Enroll\",'Enrollment Form'!$AL444<>\"\"),\"Y\",\"N\")))","v":""},{"$f":"IF($B437=\"N\",\"\",IF(OR('Enrollment Form'!$B444<>\"Subscriber\",'Enrollment Form'!$C444=\"ROC\"),\"-\",IF(AND('Enrollment Form'!$B444=\"Subscriber\",'Enrollment Form'!$C444=\"Enroll\",'Enrollment Form'!$AP444<>\"\"),\"Y\",\"N\")))","v":""},{"$f":"IF($B437=\"N\",\"\",IF(OR('Enrollment Form'!$B444<>\"Subscriber\",'Enrollment Form'!$C444=\"ROC\"),\"-\",IF(AND('Enrollment Form'!$B444=\"Subscriber\",'Enrollment Form'!$C444=\"Enroll\",'Enrollment Form'!$AQ444<>\"\"),\"Y\",\"N\")))","v":""},{"$f":"IF($B437=\"N\",\"\",IF(OR('Enrollment Form'!$B444<>\"Subscriber\",'Enrollment Form'!$C444=\"ROC\"),\"-\",IF(AND('Enrollment Form'!$B444=\"Subscriber\",'Enrollment Form'!$C444=\"Enroll\",'Enrollment Form'!$AS444<>\"\"),\"Y\",\"N\")))","v":""},{"$f":"IF($B437=\"N\",\"\",IF($Q437=\"-\",\"-\",IF(AND($Q437=\"Y\",'Enrollment Form'!$AS444=\"No\"),\"-\",IF(AND($Q437=\"Y\",'Enrollment Form'!$AS444=\"Yes\",'Enrollment Form'!$AT444<>\"\"),\"Y\",\"N\"))))","v":""},{"$f":"IF($B437=\"N\",\"\",IF(OR('Enrollment Form'!$B444<>\"Subscriber\",'Enrollment Form'!$C444=\"ROC\"),\"-\",IF(AND('Enrollment Form'!$B444=\"Subscriber\",'Enrollment Form'!$C444=\"Enroll\",'Enrollment Form'!$CV444<>\"\"),\"Y\",\"N\")))","v":""},{"$f":"IF($B437=\"N\",\"\",IF($S437=\"-\",\"-\",IF(AND($S437=\"Y\",'Enrollment Form'!$CV444=\"No\"),\"-\",IF(AND($S437=\"Y\",'Enrollment Form'!$CV444=\"Yes\",'Enrollment Form'!$CW444<>\"\"),\"Y\",\"N\"))))","v":""},{"$f":"IF(OR('Enrollment Form'!$AY444=\"Yes\",'Enrollment Form'!$AY444=\"\"),\"-\",IF(OR(AND('Enrollment Form'!$AY444=\"No\",ISERROR(FIND(\"HMO\",VLOOKUP('Enrollment Form'!G444,'Enrollment Form'!H$11:J$1000,3,FALSE),1))=FALSE,COUNTA('Enrollment Form'!$AZ444:$BC444)=4),AND('Enrollment Form'!$AY444=\"No\",ISERROR(FIND(\"HMO\",VLOOKUP('Enrollment Form'!G444,'Enrollment Form'!H$11:J$1000,3,FALSE),1))=FALSE,COUNTA('Enrollment Form'!$BT444:$BW444)=4)),\"Y\",\"N\"))","v":"-"},{"$f":"IF($B437=\"N\",\"\",IF('Enrollment Form'!$B444=\"Subscriber\",\"-\",IF(COUNTA('Enrollment Form'!$BL444,'Enrollment Form'!$BN444)=2,\"Y\",\"N\")))","v":""},{"$f":"IF($B437=\"N\",\"\",IF(OR('Enrollment Form'!$AX444=\"\",'Enrollment Form'!$AX444=\"No\"),\"-\",IF(AND('Enrollment Form'!$AX444=\"Yes\",COUNTA('Enrollment Form'!$CR444)=1),\"Y\",\"N\")))","v":""},{"$f":"IF(OR('Enrollment Form'!$CR444=\"\",'Enrollment Form'!$CR444=\"No\"),\"-\",IF(COUNTA('Enrollment Form'!$CT444:$CU444)=2,\"Y\",\"N\"))","v":"-"},{"$f":"IF($B437=\"N\",\"\",IF(COUNTIF('Enrollment Form'!$DG444:$DP444,\"Other\")=COUNTA('Enrollment Form'!$DK444,'Enrollment Form'!$DH444,'Enrollment Form'!$DN444,'Enrollment Form'!$DQ444),\"Y\",\"N\"))","v":""},{"$f":"IF($B437=\"N\",\"\",IF(OR('Enrollment Form'!B444<>\"Subscriber\",'Enrollment Form'!C444=\"ROC\",COUNTIF('Enrollment Form'!AV444:AW444,\"Yes\")>=1),\"-\",IF(AND('Enrollment Form'!C444=\"Enroll\",COUNTIF('Enrollment Form'!AV444:AW444,\"No\")=2,'Enrollment Form'!AX444=\"\"),\"N\",\"Y\")))","v":""},{"$f":"IF(OR(B437=\"N\",'Enrollment Form'!B444<>\"Subscriber\",'Enrollment Form'!C444=\"ROC\",'Enrollment Form'!O444<>\"Multiple of Salary\"),\"-\",IF(COUNTA('Enrollment Form'!T444:U444)<2,\"N\",\"Y\"))","v":"-"},{"$f":"IF(B437=\"N\",\"\",IF(OR('Enrollment Form'!C444=\"ROC\",'Enrollment Form'!B444<>\"Subscriber\",'Enrollment Form'!O444=\"Waive\",'Enrollment Form'!O444=\"\"),\"-\",IF('Enrollment Form'!P444=\"\",\"N\",\"Y\")))","v":""},{"$f":"IF($B437=\"N\",\"\",IF(AND('Enrollment Form'!$C444=\"ROC\",'Enrollment Form'!$DR444<>\"\"),\"Y\",IF(AND('Enrollment Form'!$C444=\"ROC\",'Enrollment Form'!$DR444=\"\"),\"N\",IF(AND('Enrollment Form'!$C444=\"Enroll\",'Enrollment Form'!$B444=\"Subscriber\",'Enrollment Form'!$CX444=\"No\",'Enrollment Form'!$DR444=\"\"),\"N\",IF(AND('Enrollment Form'!$C444=\"Enroll\",'Enrollment Form'!$B444=\"Subscriber\",'Enrollment Form'!$CX444=\"Yes\"),\"-\",\"Y\")))))","v":""},{"$f":"IF($B437=\"N\",\"\",IF(AND('Enrollment Form'!$C444=\"ROC\",'Enrollment Form'!$DS444<>\"\"),\"Y\",IF(AND('Enrollment Form'!$C444=\"ROC\",'Enrollment Form'!$DS444=\"\"),\"N\",IF(AND('Enrollment Form'!$C444=\"Enroll\",'Enrollment Form'!$B444=\"Subscriber\",'Enrollment Form'!$CX444=\"No\",'Enrollment Form'!$DS444=\"\"),\"N\",IF(AND('Enrollment Form'!$C444=\"Enroll\",'Enrollment Form'!$B444=\"Subscriber\",'Enrollment Form'!$CX444=\"Yes\"),\"-\",\"Y\")))))","v":""},{"$f":"IF('Enrollment Form'!AH444=\"\",\"\",IF(ISERROR(SEARCH(\".\",'Enrollment Form'!AH444,SEARCH(\"@\",'Enrollment Form'!AH444))),\"N\",\"Y\"))","v":""},{"$f":"IF(OR($B437=\"N\",'Enrollment Form'!$G444=\"\"),\"\",IF('Enrollment Form'!$B444<>\"Subscriber\",\"-\",IF(COUNTIF('Enrollment Form'!$AV444:$AW444,\"Yes\")=2,\"N\",\"Y\")))","v":""},{"$f":"IF(OR('Enrollment Form'!$CJ444=\"\",'Enrollment Form'!$CJ444=\"No\"),\"-\",IF(AND('Enrollment Form'!$CJ444=\"Yes\",'Enrollment Form'!$CK444=\"\"),\"N\",\"Y\"))","v":"-"},{"$f":"IF(OR('Enrollment Form'!$CL444=\"\",'Enrollment Form'!$CL444=\"No\"),\"-\",IF(AND('Enrollment Form'!$CL444=\"Yes\",'Enrollment Form'!$CM444=\"\"),\"N\",\"Y\"))","v":"-"},{"$f":"IF(OR('Enrollment Form'!$CN444=\"\",'Enrollment Form'!$CN444=\"No\"),\"-\",IF(AND('Enrollment Form'!$CN444=\"Yes\",'Enrollment Form'!$CO444=\"\"),\"N\",\"Y\"))","v":"-"},{"$f":"IF(OR('Enrollment Form'!$CN444=\"\",'Enrollment Form'!$CN444=\"No\"),\"-\",IF(AND('Enrollment Form'!$CN444=\"Yes\",'Enrollment Form'!$CP444=\"\"),\"N\",\"Y\"))","v":"-"},{"$f":"IF('Enrollment Form'!B444<>\"Subscriber\",\"-\",IF(AND('Enrollment Form'!B444=\"Subscriber\",'Enrollment Form'!C444=\"Enroll\",'Enrollment Form'!AA444=\"\"),\"N\",\"Y\"))","v":"-"},{"$f":"IF(OR('Enrollment Form'!B444=\"Subscriber\",'Enrollment Form'!B444=\"\"),\"-\",IF('Enrollment Form'!BP444=\"\",\"N\",\"Y\"))","v":"-"},{"$f":"IF('Enrollment Form'!B444<>\"Subscriber\",\"-\",IF(AND('Enrollment Form'!B444=\"Subscriber\",'Enrollment Form'!G444=\"\"),\"N\",\"Y\"))","v":"-"},{"$f":"IF('Enrollment Form'!A444=\"\",\"\",IF('Enrollment Form'!B444=\"Subscriber\",\"-\",IF(AND('Enrollment Form'!B444<>\"Subscriber\",'Enrollment Form'!G444='Enrollment Form'!H444),\"N\",\"Y\")))","v":""},0]
[445,{"$f":"IF('Enrollment Form'!$A445<>\"\",\"Y\",\"N\")","v":"N"},{"$f":"IF(AND('Enrollment Form'!$B445=\"\",'Enrollment Form'!$C445<>\"\"),\"N\",IF($B438=\"N\",\"\",\"Y\"))","v":""},{"$f":"IF(OR($B438=\"N\",'Enrollment Form'!G445=\"\"),\"\",IF('Enrollment Form'!$B445<>\"Subscriber\",\"\",IF('Enrollment Form'!$G445='Enrollment Form'!$H445,\"Y\",\"N\")))","v":""},{"$f":"IF($B438=\"N\",\"\",IF(AND(COUNTIFS('Enrollment Form'!$H$11:$H$1000,'Enrollment Form'!$H445,'Enrollment Form'!$B$11:$B$1000,'Enrollment Form'!$B445)>1,'Enrollment Form'!$H445<>\"\"),\"N\",\"Y\"))","v":""},{"$f":"IF($B438=\"N\",\"\",IF(LEN('Enrollment Form'!$Y445)=0,\"\",IF(LEN('Enrollment Form'!$Y445)<>5,\"N\",\"Y\")))","v":""},{"$f":"IF($B438=\"N\",\"\",IF(LEN('Enrollment Form'!$AD445=0),\"\",IF(LEN('Enrollment Form'!$AD445)<>5,\"N\",\"Y\")))","v":""},{"$f":"IF($B438=\"N\",\"\",IF(LEN('Enrollment Form'!$BS445=0),\"\",IF(LEN('Enrollment Form'!$BS445)<>5,\"N\",\"Y\")))","v":""},{"$f":"IF($B438=\"N\",\"\",IF(LEN('Enrollment Form'!$AE445)=0,\"\",IF(LEN('Enrollment Form'!$AE445)<>10,\"N\",\"Y\")))","v":""},{"$f":"IF($B438=\"N\",\"\",IF(LEN('Enrollment Form'!$AF445)=0,\"\",IF(LEN('Enrollment Form'!$AF445)<>10,\"N\",\"Y\")))","v":""},{"$f":"IF('Enrollment Form'!$O445<>\"Graded\",\"-\",IF(AND('Enrollment Form'!$O445=\"Graded\",'Enrollment Form'!$AR445<>\"\"),\"Y\",\"N\"))","v":"-"},{"$f":"IF($B438=\"N\",\"\",IF(OR('Enrollment Form'!$B445<>\"Subscriber\",'Enrollment Form'!$C445=\"ROC\"),\"-\",IF(AND('Enrollment Form'!$B445=\"Subscriber\",'Enrollment Form'!$C445=\"Enroll\",'Enrollment Form'!$AJ445<>\"\"),\"Y\",\"N\")))","v":""},{"$f":"IF($B438=\"N\",\"\",IF(OR('Enrollment Form'!$B445<>\"Subscriber\",'Enrollment Form'!$C445=\"ROC\"),\"-\",IF(AND('Enrollment Form'!$B445=\"Subscriber\",'Enrollment Form'!$C445=\"Enroll\",'Enrollment Form'!$AK445<>\"\"),\"Y\",\"N\")))","v":""},{"$f":"IF($B438=\"N\",\"\",IF(OR('Enrollment Form'!$B445<>\"Subscriber\",'Enrollment Form'!$C445=\"ROC\"),\"-\",IF(AND('Enrollment Form'!$B445=\"Subscriber\",'Enrollment Form'!$C445=\"Enroll\",'Enrollment Form'!$AL445<>\"\"),\"Y\",\"N\")))","v":""},{"$f":"IF($B438=\"N\",\"\",IF(OR('Enrollment Form'!$B445<>\"Subscriber\",'Enrollment Form'!$C445=\"ROC\"),\"-\",IF(AND('Enrollment Form'!$B445=\"Subscriber\",'Enrollment Form'!$C445=\"Enroll\",'Enrollment Form'!$AP445<>\"\"),\"Y\",\"N\")))","v":""},{"$f":"IF($B438=\"N\",\"\",IF(OR('Enrollment Form'!$B445<>\"Subscriber\",'Enrollment Form'!$C445=\"ROC\"),\"-\",IF(AND('Enrollment Form'!$B445=\"Subscriber\",'Enrollment Form'!$C445=\"Enroll\",'Enrollment Form'!$AQ445<>\"\"),\"Y\",\"N\")))","v":""},{"$f":"IF($B438=\"N\",\"\",IF(OR('Enrollment Form'!$B445<>\"Subscriber\",'Enrollment Form'!$C445=\"ROC\"),\"-\",IF(AND('Enrollment Form'!$B445=\"Subscriber\",'Enrollment Form'!$C445=\"Enroll\",'Enrollment Form'!$AS445<>\"\"),\"Y\",\"N\")))","v":""},{"$f":"IF($B438=\"N\",\"\",IF($Q438=\"-\",\"-\",IF(AND($Q438=\"Y\",'Enrollment Form'!$AS445=\"No\"),\"-\",IF(AND($Q438=\"Y\",'Enrollment Form'!$AS445=\"Yes\",'Enrollment Form'!$AT445<>\"\"),\"Y\",\"N\"))))","v":""},{"$f":"IF($B438=\"N\",\"\",IF(OR('Enrollment Form'!$B445<>\"Subscriber\",'Enrollment Form'!$C445=\"ROC\"),\"-\",IF(AND('Enrollment Form'!$B445=\"Subscriber\",'Enrollment Form'!$C445=\"Enroll\",'Enrollment Form'!$CV445<>\"\"),\"Y\",\"N\")))","v":""},{"$f":"IF($B438=\"N\",\"\",IF($S438=\"-\",\"-\",IF(AND($S438=\"Y\",'Enrollment Form'!$CV445=\"No\"),\"-\",IF(AND($S438=\"Y\",'Enrollment Form'!$CV445=\"Yes\",'Enrollment Form'!$CW445<>\"\"),\"Y\",\"N\"))))","v":""},{"$f":"IF(OR('Enrollment Form'!$AY445=\"Yes\",'Enrollment Form'!$AY445=\"\"),\"-\",IF(OR(AND('Enrollment Form'!$AY445=\"No\",ISERROR(FIND(\"HMO\",VLOOKUP('Enrollment Form'!G445,'Enrollment Form'!H$11:J$1000,3,FALSE),1))=FALSE,COUNTA('Enrollment Form'!$AZ445:$BC445)=4),AND('Enrollment Form'!$AY445=\"No\",ISERROR(FIND(\"HMO\",VLOOKUP('Enrollment Form'!G445,'Enrollment Form'!H$11:J$1000,3,FALSE),1))=FALSE,COUNTA('Enrollment Form'!$BT445:$BW445)=4)),\"Y\",\"N\"))","v":"-"},{"$f":"IF($B438=\"N\",\"\",IF('Enrollment Form'!$B445=\"Subscriber\",\"-\",IF(COUNTA('Enrollment Form'!$BL445,'Enrollment Form'!$BN445)=2,\"Y\",\"N\")))","v":""},{"$f":"IF($B438=\"N\",\"\",IF(OR('Enrollment Form'!$AX445=\"\",'Enrollment Form'!$AX445=\"No\"),\"-\",IF(AND('Enrollment Form'!$AX445=\"Yes\",COUNTA('Enrollment Form'!$CR445)=1),\"Y\",\"N\")))","v":""},{"$f":"IF(OR('Enrollment Form'!$CR445=\"\",'Enrollment Form'!$CR445=\"No\"),\"-\",IF(COUNTA('Enrollment Form'!$CT445:$CU445)=2,\"Y\",\"N\"))","v":"-"},{"$f":"IF($B438=\"N\",\"\",IF(COUNTIF('Enrollment Form'!$DG445:$DP445,\"Other\")=COUNTA('Enrollment Form'!$DK445,'Enrollment Form'!$DH445,'Enrollment Form'!$DN445,'Enrollment Form'!$DQ445),\"Y\",\"N\"))","v":""},{"$f":"IF($B438=\"N\",\"\",IF(OR('Enrollment Form'!B445<>\"Subscriber\",'Enrollment Form'!C445=\"ROC\",COUNTIF('Enrollment Form'!AV445:AW445,\"Yes\")>=1),\"-\",IF(AND('Enrollment Form'!C445=\"Enroll\",COUNTIF('Enrollment Form'!AV445:AW445,\"No\")=2,'Enrollment Form'!AX445=\"\"),\"N\",\"Y\")))","v":""},{"$f":"IF(OR(B438=\"N\",'Enrollment Form'!B445<>\"Subscriber\",'Enrollment Form'!C445=\"ROC\",'Enrollment Form'!O445<>\"Multiple of Salary\"),\"-\",IF(COUNTA('Enrollment Form'!T445:U445)<2,\"N\",\"Y\"))","v":"-"},{"$f":"IF(B438=\"N\",\"\",IF(OR('Enrollment Form'!C445=\"ROC\",'Enrollment Form'!B445<>\"Subscriber\",'Enrollment Form'!O445=\"Waive\",'Enrollment Form'!O445=\"\"),\"-\",IF('Enrollment Form'!P445=\"\",\"N\",\"Y\")))","v":""},{"$f":"IF($B438=\"N\",\"\",IF(AND('Enrollment Form'!$C445=\"ROC\",'Enrollment Form'!$DR445<>\"\"),\"Y\",IF(AND('Enrollment Form'!$C445=\"ROC\",'Enrollment Form'!$DR445=\"\"),\"N\",IF(AND('Enrollment Form'!$C445=\"Enroll\",'Enrollment Form'!$B445=\"Subscriber\",'Enrollment Form'!$CX445=\"No\",'Enrollment Form'!$DR445=\"\"),\"N\",IF(AND('Enrollment Form'!$C445=\"Enroll\",'Enrollment Form'!$B445=\"Subscriber\",'Enrollment Form'!$CX445=\"Yes\"),\"-\",\"Y\")))))","v":""},{"$f":"IF($B438=\"N\",\"\",IF(AND('Enrollment Form'!$C445=\"ROC\",'Enrollment Form'!$DS445<>\"\"),\"Y\",IF(AND('Enrollment Form'!$C445=\"ROC\",'Enrollment Form'!$DS445=\"\"),\"N\",IF(AND('Enrollment Form'!$C445=\"Enroll\",'Enrollment Form'!$B445=\"Subscriber\",'Enrollment Form'!$CX445=\"No\",'Enrollment Form'!$DS445=\"\"),\"N\",IF(AND('Enrollment Form'!$C445=\"Enroll\",'Enrollment Form'!$B445=\"Subscriber\",'Enrollment Form'!$CX445=\"Yes\"),\"-\",\"Y\")))))","v":""},{"$f":"IF('Enrollment Form'!AH445=\"\",\"\",IF(ISERROR(SEARCH(\".\",'Enrollment Form'!AH445,SEARCH(\"@\",'Enrollment Form'!AH445))),\"N\",\"Y\"))","v":""},{"$f":"IF(OR($B438=\"N\",'Enrollment Form'!$G445=\"\"),\"\",IF('Enrollment Form'!$B445<>\"Subscriber\",\"-\",IF(COUNTIF('Enrollment Form'!$AV445:$AW445,\"Yes\")=2,\"N\",\"Y\")))","v":""},{"$f":"IF(OR('Enrollment Form'!$CJ445=\"\",'Enrollment Form'!$CJ445=\"No\"),\"-\",IF(AND('Enrollment Form'!$CJ445=\"Yes\",'Enrollment Form'!$CK445=\"\"),\"N\",\"Y\"))","v":"-"},{"$f":"IF(OR('Enrollment Form'!$CL445=\"\",'Enrollment Form'!$CL445=\"No\"),\"-\",IF(AND('Enrollment Form'!$CL445=\"Yes\",'Enrollment Form'!$CM445=\"\"),\"N\",\"Y\"))","v":"-"},{"$f":"IF(OR('Enrollment Form'!$CN445=\"\",'Enrollment Form'!$CN445=\"No\"),\"-\",IF(AND('Enrollment Form'!$CN445=\"Yes\",'Enrollment Form'!$CO445=\"\"),\"N\",\"Y\"))","v":"-"},{"$f":"IF(OR('Enrollment Form'!$CN445=\"\",'Enrollment Form'!$CN445=\"No\"),\"-\",IF(AND('Enrollment Form'!$CN445=\"Yes\",'Enrollment Form'!$CP445=\"\"),\"N\",\"Y\"))","v":"-"},{"$f":"IF('Enrollment Form'!B445<>\"Subscriber\",\"-\",IF(AND('Enrollment Form'!B445=\"Subscriber\",'Enrollment Form'!C445=\"Enroll\",'Enrollment Form'!AA445=\"\"),\"N\",\"Y\"))","v":"-"},{"$f":"IF(OR('Enrollment Form'!B445=\"Subscriber\",'Enrollment Form'!B445=\"\"),\"-\",IF('Enrollment Form'!BP445=\"\",\"N\",\"Y\"))","v":"-"},{"$f":"IF('Enrollment Form'!B445<>\"Subscriber\",\"-\",IF(AND('Enrollment Form'!B445=\"Subscriber\",'Enrollment Form'!G445=\"\"),\"N\",\"Y\"))","v":"-"},{"$f":"IF('Enrollment Form'!A445=\"\",\"\",IF('Enrollment Form'!B445=\"Subscriber\",\"-\",IF(AND('Enrollment Form'!B445<>\"Subscriber\",'Enrollment Form'!G445='Enrollment Form'!H445),\"N\",\"Y\")))","v":""},0]
[446,{"$f":"IF('Enrollment Form'!$A446<>\"\",\"Y\",\"N\")","v":"N"},{"$f":"IF(AND('Enrollment Form'!$B446=\"\",'Enrollment Form'!$C446<>\"\"),\"N\",IF($B439=\"N\",\"\",\"Y\"))","v":""},{"$f":"IF(OR($B439=\"N\",'Enrollment Form'!G446=\"\"),\"\",IF('Enrollment Form'!$B446<>\"Subscriber\",\"\",IF('Enrollment Form'!$G446='Enrollment Form'!$H446,\"Y\",\"N\")))","v":""},{"$f":"IF($B439=\"N\",\"\",IF(AND(COUNTIFS('Enrollment Form'!$H$11:$H$1000,'Enrollment Form'!$H446,'Enrollment Form'!$B$11:$B$1000,'Enrollment Form'!$B446)>1,'Enrollment Form'!$H446<>\"\"),\"N\",\"Y\"))","v":""},{"$f":"IF($B439=\"N\",\"\",IF(LEN('Enrollment Form'!$Y446)=0,\"\",IF(LEN('Enrollment Form'!$Y446)<>5,\"N\",\"Y\")))","v":""},{"$f":"IF($B439=\"N\",\"\",IF(LEN('Enrollment Form'!$AD446=0),\"\",IF(LEN('Enrollment Form'!$AD446)<>5,\"N\",\"Y\")))","v":""},{"$f":"IF($B439=\"N\",\"\",IF(LEN('Enrollment Form'!$BS446=0),\"\",IF(LEN('Enrollment Form'!$BS446)<>5,\"N\",\"Y\")))","v":""},{"$f":"IF($B439=\"N\",\"\",IF(LEN('Enrollment Form'!$AE446)=0,\"\",IF(LEN('Enrollment Form'!$AE446)<>10,\"N\",\"Y\")))","v":""},{"$f":"IF($B439=\"N\",\"\",IF(LEN('Enrollment Form'!$AF446)=0,\"\",IF(LEN('Enrollment Form'!$AF446)<>10,\"N\",\"Y\")))","v":""},{"$f":"IF('Enrollment Form'!$O446<>\"Graded\",\"-\",IF(AND('Enrollment Form'!$O446=\"Graded\",'Enrollment Form'!$AR446<>\"\"),\"Y\",\"N\"))","v":"-"},{"$f":"IF($B439=\"N\",\"\",IF(OR('Enrollment Form'!$B446<>\"Subscriber\",'Enrollment Form'!$C446=\"ROC\"),\"-\",IF(AND('Enrollment Form'!$B446=\"Subscriber\",'Enrollment Form'!$C446=\"Enroll\",'Enrollment Form'!$AJ446<>\"\"),\"Y\",\"N\")))","v":""},{"$f":"IF($B439=\"N\",\"\",IF(OR('Enrollment Form'!$B446<>\"Subscriber\",'Enrollment Form'!$C446=\"ROC\"),\"-\",IF(AND('Enrollment Form'!$B446=\"Subscriber\",'Enrollment Form'!$C446=\"Enroll\",'Enrollment Form'!$AK446<>\"\"),\"Y\",\"N\")))","v":""},{"$f":"IF($B439=\"N\",\"\",IF(OR('Enrollment Form'!$B446<>\"Subscriber\",'Enrollment Form'!$C446=\"ROC\"),\"-\",IF(AND('Enrollment Form'!$B446=\"Subscriber\",'Enrollment Form'!$C446=\"Enroll\",'Enrollment Form'!$AL446<>\"\"),\"Y\",\"N\")))","v":""},{"$f":"IF($B439=\"N\",\"\",IF(OR('Enrollment Form'!$B446<>\"Subscriber\",'Enrollment Form'!$C446=\"ROC\"),\"-\",IF(AND('Enrollment Form'!$B446=\"Subscriber\",'Enrollment Form'!$C446=\"Enroll\",'Enrollment Form'!$AP446<>\"\"),\"Y\",\"N\")))","v":""},{"$f":"IF($B439=\"N\",\"\",IF(OR('Enrollment Form'!$B446<>\"Subscriber\",'Enrollment Form'!$C446=\"ROC\"),\"-\",IF(AND('Enrollment Form'!$B446=\"Subscriber\",'Enrollment Form'!$C446=\"Enroll\",'Enrollment Form'!$AQ446<>\"\"),\"Y\",\"N\")))","v":""},{"$f":"IF($B439=\"N\",\"\",IF(OR('Enrollment Form'!$B446<>\"Subscriber\",'Enrollment Form'!$C446=\"ROC\"),\"-\",IF(AND('Enrollment Form'!$B446=\"Subscriber\",'Enrollment Form'!$C446=\"Enroll\",'Enrollment Form'!$AS446<>\"\"),\"Y\",\"N\")))","v":""},{"$f":"IF($B439=\"N\",\"\",IF($Q439=\"-\",\"-\",IF(AND($Q439=\"Y\",'Enrollment Form'!$AS446=\"No\"),\"-\",IF(AND($Q439=\"Y\",'Enrollment Form'!$AS446=\"Yes\",'Enrollment Form'!$AT446<>\"\"),\"Y\",\"N\"))))","v":""},{"$f":"IF($B439=\"N\",\"\",IF(OR('Enrollment Form'!$B446<>\"Subscriber\",'Enrollment Form'!$C446=\"ROC\"),\"-\",IF(AND('Enrollment Form'!$B446=\"Subscriber\",'Enrollment Form'!$C446=\"Enroll\",'Enrollment Form'!$CV446<>\"\"),\"Y\",\"N\")))","v":""},{"$f":"IF($B439=\"N\",\"\",IF($S439=\"-\",\"-\",IF(AND($S439=\"Y\",'Enrollment Form'!$CV446=\"No\"),\"-\",IF(AND($S439=\"Y\",'Enrollment Form'!$CV446=\"Yes\",'Enrollment Form'!$CW446<>\"\"),\"Y\",\"N\"))))","v":""},{"$f":"IF(OR('Enrollment Form'!$AY446=\"Yes\",'Enrollment Form'!$AY446=\"\"),\"-\",IF(OR(AND('Enrollment Form'!$AY446=\"No\",ISERROR(FIND(\"HMO\",VLOOKUP('Enrollment Form'!G446,'Enrollment Form'!H$11:J$1000,3,FALSE),1))=FALSE,COUNTA('Enrollment Form'!$AZ446:$BC446)=4),AND('Enrollment Form'!$AY446=\"No\",ISERROR(FIND(\"HMO\",VLOOKUP('Enrollment Form'!G446,'Enrollment Form'!H$11:J$1000,3,FALSE),1))=FALSE,COUNTA('Enrollment Form'!$BT446:$BW446)=4)),\"Y\",\"N\"))","v":"-"},{"$f":"IF($B439=\"N\",\"\",IF('Enrollment Form'!$B446=\"Subscriber\",\"-\",IF(COUNTA('Enrollment Form'!$BL446,'Enrollment Form'!$BN446)=2,\"Y\",\"N\")))","v":""},{"$f":"IF($B439=\"N\",\"\",IF(OR('Enrollment Form'!$AX446=\"\",'Enrollment Form'!$AX446=\"No\"),\"-\",IF(AND('Enrollment Form'!$AX446=\"Yes\",COUNTA('Enrollment Form'!$CR446)=1),\"Y\",\"N\")))","v":""},{"$f":"IF(OR('Enrollment Form'!$CR446=\"\",'Enrollment Form'!$CR446=\"No\"),\"-\",IF(COUNTA('Enrollment Form'!$CT446:$CU446)=2,\"Y\",\"N\"))","v":"-"},{"$f":"IF($B439=\"N\",\"\",IF(COUNTIF('Enrollment Form'!$DG446:$DP446,\"Other\")=COUNTA('Enrollment Form'!$DK446,'Enrollment Form'!$DH446,'Enrollment Form'!$DN446,'Enrollment Form'!$DQ446),\"Y\",\"N\"))","v":""},{"$f":"IF($B439=\"N\",\"\",IF(OR('Enrollment Form'!B446<>\"Subscriber\",'Enrollment Form'!C446=\"ROC\",COUNTIF('Enrollment Form'!AV446:AW446,\"Yes\")>=1),\"-\",IF(AND('Enrollment Form'!C446=\"Enroll\",COUNTIF('Enrollment Form'!AV446:AW446,\"No\")=2,'Enrollment Form'!AX446=\"\"),\"N\",\"Y\")))","v":""},{"$f":"IF(OR(B439=\"N\",'Enrollment Form'!B446<>\"Subscriber\",'Enrollment Form'!C446=\"ROC\",'Enrollment Form'!O446<>\"Multiple of Salary\"),\"-\",IF(COUNTA('Enrollment Form'!T446:U446)<2,\"N\",\"Y\"))","v":"-"},{"$f":"IF(B439=\"N\",\"\",IF(OR('Enrollment Form'!C446=\"ROC\",'Enrollment Form'!B446<>\"Subscriber\",'Enrollment Form'!O446=\"Waive\",'Enrollment Form'!O446=\"\"),\"-\",IF('Enrollment Form'!P446=\"\",\"N\",\"Y\")))","v":""},{"$f":"IF($B439=\"N\",\"\",IF(AND('Enrollment Form'!$C446=\"ROC\",'Enrollment Form'!$DR446<>\"\"),\"Y\",IF(AND('Enrollment Form'!$C446=\"ROC\",'Enrollment Form'!$DR446=\"\"),\"N\",IF(AND('Enrollment Form'!$C446=\"Enroll\",'Enrollment Form'!$B446=\"Subscriber\",'Enrollment Form'!$CX446=\"No\",'Enrollment Form'!$DR446=\"\"),\"N\",IF(AND('Enrollment Form'!$C446=\"Enroll\",'Enrollment Form'!$B446=\"Subscriber\",'Enrollment Form'!$CX446=\"Yes\"),\"-\",\"Y\")))))","v":""},{"$f":"IF($B439=\"N\",\"\",IF(AND('Enrollment Form'!$C446=\"ROC\",'Enrollment Form'!$DS446<>\"\"),\"Y\",IF(AND('Enrollment Form'!$C446=\"ROC\",'Enrollment Form'!$DS446=\"\"),\"N\",IF(AND('Enrollment Form'!$C446=\"Enroll\",'Enrollment Form'!$B446=\"Subscriber\",'Enrollment Form'!$CX446=\"No\",'Enrollment Form'!$DS446=\"\"),\"N\",IF(AND('Enrollment Form'!$C446=\"Enroll\",'Enrollment Form'!$B446=\"Subscriber\",'Enrollment Form'!$CX446=\"Yes\"),\"-\",\"Y\")))))","v":""},{"$f":"IF('Enrollment Form'!AH446=\"\",\"\",IF(ISERROR(SEARCH(\".\",'Enrollment Form'!AH446,SEARCH(\"@\",'Enrollment Form'!AH446))),\"N\",\"Y\"))","v":""},{"$f":"IF(OR($B439=\"N\",'Enrollment Form'!$G446=\"\"),\"\",IF('Enrollment Form'!$B446<>\"Subscriber\",\"-\",IF(COUNTIF('Enrollment Form'!$AV446:$AW446,\"Yes\")=2,\"N\",\"Y\")))","v":""},{"$f":"IF(OR('Enrollment Form'!$CJ446=\"\",'Enrollment Form'!$CJ446=\"No\"),\"-\",IF(AND('Enrollment Form'!$CJ446=\"Yes\",'Enrollment Form'!$CK446=\"\"),\"N\",\"Y\"))","v":"-"},{"$f":"IF(OR('Enrollment Form'!$CL446=\"\",'Enrollment Form'!$CL446=\"No\"),\"-\",IF(AND('Enrollment Form'!$CL446=\"Yes\",'Enrollment Form'!$CM446=\"\"),\"N\",\"Y\"))","v":"-"},{"$f":"IF(OR('Enrollment Form'!$CN446=\"\",'Enrollment Form'!$CN446=\"No\"),\"-\",IF(AND('Enrollment Form'!$CN446=\"Yes\",'Enrollment Form'!$CO446=\"\"),\"N\",\"Y\"))","v":"-"},{"$f":"IF(OR('Enrollment Form'!$CN446=\"\",'Enrollment Form'!$CN446=\"No\"),\"-\",IF(AND('Enrollment Form'!$CN446=\"Yes\",'Enrollment Form'!$CP446=\"\"),\"N\",\"Y\"))","v":"-"},{"$f":"IF('Enrollment Form'!B446<>\"Subscriber\",\"-\",IF(AND('Enrollment Form'!B446=\"Subscriber\",'Enrollment Form'!C446=\"Enroll\",'Enrollment Form'!AA446=\"\"),\"N\",\"Y\"))","v":"-"},{"$f":"IF(OR('Enrollment Form'!B446=\"Subscriber\",'Enrollment Form'!B446=\"\"),\"-\",IF('Enrollment Form'!BP446=\"\",\"N\",\"Y\"))","v":"-"},{"$f":"IF('Enrollment Form'!B446<>\"Subscriber\",\"-\",IF(AND('Enrollment Form'!B446=\"Subscriber\",'Enrollment Form'!G446=\"\"),\"N\",\"Y\"))","v":"-"},{"$f":"IF('Enrollment Form'!A446=\"\",\"\",IF('Enrollment Form'!B446=\"Subscriber\",\"-\",IF(AND('Enrollment Form'!B446<>\"Subscriber\",'Enrollment Form'!G446='Enrollment Form'!H446),\"N\",\"Y\")))","v":""},0]
[447,{"$f":"IF('Enrollment Form'!$A447<>\"\",\"Y\",\"N\")","v":"N"},{"$f":"IF(AND('Enrollment Form'!$B447=\"\",'Enrollment Form'!$C447<>\"\"),\"N\",IF($B440=\"N\",\"\",\"Y\"))","v":""},{"$f":"IF(OR($B440=\"N\",'Enrollment Form'!G447=\"\"),\"\",IF('Enrollment Form'!$B447<>\"Subscriber\",\"\",IF('Enrollment Form'!$G447='Enrollment Form'!$H447,\"Y\",\"N\")))","v":""},{"$f":"IF($B440=\"N\",\"\",IF(AND(COUNTIFS('Enrollment Form'!$H$11:$H$1000,'Enrollment Form'!$H447,'Enrollment Form'!$B$11:$B$1000,'Enrollment Form'!$B447)>1,'Enrollment Form'!$H447<>\"\"),\"N\",\"Y\"))","v":""},{"$f":"IF($B440=\"N\",\"\",IF(LEN('Enrollment Form'!$Y447)=0,\"\",IF(LEN('Enrollment Form'!$Y447)<>5,\"N\",\"Y\")))","v":""},{"$f":"IF($B440=\"N\",\"\",IF(LEN('Enrollment Form'!$AD447=0),\"\",IF(LEN('Enrollment Form'!$AD447)<>5,\"N\",\"Y\")))","v":""},{"$f":"IF($B440=\"N\",\"\",IF(LEN('Enrollment Form'!$BS447=0),\"\",IF(LEN('Enrollment Form'!$BS447)<>5,\"N\",\"Y\")))","v":""},{"$f":"IF($B440=\"N\",\"\",IF(LEN('Enrollment Form'!$AE447)=0,\"\",IF(LEN('Enrollment Form'!$AE447)<>10,\"N\",\"Y\")))","v":""},{"$f":"IF($B440=\"N\",\"\",IF(LEN('Enrollment Form'!$AF447)=0,\"\",IF(LEN('Enrollment Form'!$AF447)<>10,\"N\",\"Y\")))","v":""},{"$f":"IF('Enrollment Form'!$O447<>\"Graded\",\"-\",IF(AND('Enrollment Form'!$O447=\"Graded\",'Enrollment Form'!$AR447<>\"\"),\"Y\",\"N\"))","v":"-"},{"$f":"IF($B440=\"N\",\"\",IF(OR('Enrollment Form'!$B447<>\"Subscriber\",'Enrollment Form'!$C447=\"ROC\"),\"-\",IF(AND('Enrollment Form'!$B447=\"Subscriber\",'Enrollment Form'!$C447=\"Enroll\",'Enrollment Form'!$AJ447<>\"\"),\"Y\",\"N\")))","v":""},{"$f":"IF($B440=\"N\",\"\",IF(OR('Enrollment Form'!$B447<>\"Subscriber\",'Enrollment Form'!$C447=\"ROC\"),\"-\",IF(AND('Enrollment Form'!$B447=\"Subscriber\",'Enrollment Form'!$C447=\"Enroll\",'Enrollment Form'!$AK447<>\"\"),\"Y\",\"N\")))","v":""},{"$f":"IF($B440=\"N\",\"\",IF(OR('Enrollment Form'!$B447<>\"Subscriber\",'Enrollment Form'!$C447=\"ROC\"),\"-\",IF(AND('Enrollment Form'!$B447=\"Subscriber\",'Enrollment Form'!$C447=\"Enroll\",'Enrollment Form'!$AL447<>\"\"),\"Y\",\"N\")))","v":""},{"$f":"IF($B440=\"N\",\"\",IF(OR('Enrollment Form'!$B447<>\"Subscriber\",'Enrollment Form'!$C447=\"ROC\"),\"-\",IF(AND('Enrollment Form'!$B447=\"Subscriber\",'Enrollment Form'!$C447=\"Enroll\",'Enrollment Form'!$AP447<>\"\"),\"Y\",\"N\")))","v":""},{"$f":"IF($B440=\"N\",\"\",IF(OR('Enrollment Form'!$B447<>\"Subscriber\",'Enrollment Form'!$C447=\"ROC\"),\"-\",IF(AND('Enrollment Form'!$B447=\"Subscriber\",'Enrollment Form'!$C447=\"Enroll\",'Enrollment Form'!$AQ447<>\"\"),\"Y\",\"N\")))","v":""},{"$f":"IF($B440=\"N\",\"\",IF(OR('Enrollment Form'!$B447<>\"Subscriber\",'Enrollment Form'!$C447=\"ROC\"),\"-\",IF(AND('Enrollment Form'!$B447=\"Subscriber\",'Enrollment Form'!$C447=\"Enroll\",'Enrollment Form'!$AS447<>\"\"),\"Y\",\"N\")))","v":""},{"$f":"IF($B440=\"N\",\"\",IF($Q440=\"-\",\"-\",IF(AND($Q440=\"Y\",'Enrollment Form'!$AS447=\"No\"),\"-\",IF(AND($Q440=\"Y\",'Enrollment Form'!$AS447=\"Yes\",'Enrollment Form'!$AT447<>\"\"),\"Y\",\"N\"))))","v":""},{"$f":"IF($B440=\"N\",\"\",IF(OR('Enrollment Form'!$B447<>\"Subscriber\",'Enrollment Form'!$C447=\"ROC\"),\"-\",IF(AND('Enrollment Form'!$B447=\"Subscriber\",'Enrollment Form'!$C447=\"Enroll\",'Enrollment Form'!$CV447<>\"\"),\"Y\",\"N\")))","v":""},{"$f":"IF($B440=\"N\",\"\",IF($S440=\"-\",\"-\",IF(AND($S440=\"Y\",'Enrollment Form'!$CV447=\"No\"),\"-\",IF(AND($S440=\"Y\",'Enrollment Form'!$CV447=\"Yes\",'Enrollment Form'!$CW447<>\"\"),\"Y\",\"N\"))))","v":""},{"$f":"IF(OR('Enrollment Form'!$AY447=\"Yes\",'Enrollment Form'!$AY447=\"\"),\"-\",IF(OR(AND('Enrollment Form'!$AY447=\"No\",ISERROR(FIND(\"HMO\",VLOOKUP('Enrollment Form'!G447,'Enrollment Form'!H$11:J$1000,3,FALSE),1))=FALSE,COUNTA('Enrollment Form'!$AZ447:$BC447)=4),AND('Enrollment Form'!$AY447=\"No\",ISERROR(FIND(\"HMO\",VLOOKUP('Enrollment Form'!G447,'Enrollment Form'!H$11:J$1000,3,FALSE),1))=FALSE,COUNTA('Enrollment Form'!$BT447:$BW447)=4)),\"Y\",\"N\"))","v":"-"},{"$f":"IF($B440=\"N\",\"\",IF('Enrollment Form'!$B447=\"Subscriber\",\"-\",IF(COUNTA('Enrollment Form'!$BL447,'Enrollment Form'!$BN447)=2,\"Y\",\"N\")))","v":""},{"$f":"IF($B440=\"N\",\"\",IF(OR('Enrollment Form'!$AX447=\"\",'Enrollment Form'!$AX447=\"No\"),\"-\",IF(AND('Enrollment Form'!$AX447=\"Yes\",COUNTA('Enrollment Form'!$CR447)=1),\"Y\",\"N\")))","v":""},{"$f":"IF(OR('Enrollment Form'!$CR447=\"\",'Enrollment Form'!$CR447=\"No\"),\"-\",IF(COUNTA('Enrollment Form'!$CT447:$CU447)=2,\"Y\",\"N\"))","v":"-"},{"$f":"IF($B440=\"N\",\"\",IF(COUNTIF('Enrollment Form'!$DG447:$DP447,\"Other\")=COUNTA('Enrollment Form'!$DK447,'Enrollment Form'!$DH447,'Enrollment Form'!$DN447,'Enrollment Form'!$DQ447),\"Y\",\"N\"))","v":""},{"$f":"IF($B440=\"N\",\"\",IF(OR('Enrollment Form'!B447<>\"Subscriber\",'Enrollment Form'!C447=\"ROC\",COUNTIF('Enrollment Form'!AV447:AW447,\"Yes\")>=1),\"-\",IF(AND('Enrollment Form'!C447=\"Enroll\",COUNTIF('Enrollment Form'!AV447:AW447,\"No\")=2,'Enrollment Form'!AX447=\"\"),\"N\",\"Y\")))","v":""},{"$f":"IF(OR(B440=\"N\",'Enrollment Form'!B447<>\"Subscriber\",'Enrollment Form'!C447=\"ROC\",'Enrollment Form'!O447<>\"Multiple of Salary\"),\"-\",IF(COUNTA('Enrollment Form'!T447:U447)<2,\"N\",\"Y\"))","v":"-"},{"$f":"IF(B440=\"N\",\"\",IF(OR('Enrollment Form'!C447=\"ROC\",'Enrollment Form'!B447<>\"Subscriber\",'Enrollment Form'!O447=\"Waive\",'Enrollment Form'!O447=\"\"),\"-\",IF('Enrollment Form'!P447=\"\",\"N\",\"Y\")))","v":""},{"$f":"IF($B440=\"N\",\"\",IF(AND('Enrollment Form'!$C447=\"ROC\",'Enrollment Form'!$DR447<>\"\"),\"Y\",IF(AND('Enrollment Form'!$C447=\"ROC\",'Enrollment Form'!$DR447=\"\"),\"N\",IF(AND('Enrollment Form'!$C447=\"Enroll\",'Enrollment Form'!$B447=\"Subscriber\",'Enrollment Form'!$CX447=\"No\",'Enrollment Form'!$DR447=\"\"),\"N\",IF(AND('Enrollment Form'!$C447=\"Enroll\",'Enrollment Form'!$B447=\"Subscriber\",'Enrollment Form'!$CX447=\"Yes\"),\"-\",\"Y\")))))","v":""},{"$f":"IF($B440=\"N\",\"\",IF(AND('Enrollment Form'!$C447=\"ROC\",'Enrollment Form'!$DS447<>\"\"),\"Y\",IF(AND('Enrollment Form'!$C447=\"ROC\",'Enrollment Form'!$DS447=\"\"),\"N\",IF(AND('Enrollment Form'!$C447=\"Enroll\",'Enrollment Form'!$B447=\"Subscriber\",'Enrollment Form'!$CX447=\"No\",'Enrollment Form'!$DS447=\"\"),\"N\",IF(AND('Enrollment Form'!$C447=\"Enroll\",'Enrollment Form'!$B447=\"Subscriber\",'Enrollment Form'!$CX447=\"Yes\"),\"-\",\"Y\")))))","v":""},{"$f":"IF('Enrollment Form'!AH447=\"\",\"\",IF(ISERROR(SEARCH(\".\",'Enrollment Form'!AH447,SEARCH(\"@\",'Enrollment Form'!AH447))),\"N\",\"Y\"))","v":""},{"$f":"IF(OR($B440=\"N\",'Enrollment Form'!$G447=\"\"),\"\",IF('Enrollment Form'!$B447<>\"Subscriber\",\"-\",IF(COUNTIF('Enrollment Form'!$AV447:$AW447,\"Yes\")=2,\"N\",\"Y\")))","v":""},{"$f":"IF(OR('Enrollment Form'!$CJ447=\"\",'Enrollment Form'!$CJ447=\"No\"),\"-\",IF(AND('Enrollment Form'!$CJ447=\"Yes\",'Enrollment Form'!$CK447=\"\"),\"N\",\"Y\"))","v":"-"},{"$f":"IF(OR('Enrollment Form'!$CL447=\"\",'Enrollment Form'!$CL447=\"No\"),\"-\",IF(AND('Enrollment Form'!$CL447=\"Yes\",'Enrollment Form'!$CM447=\"\"),\"N\",\"Y\"))","v":"-"},{"$f":"IF(OR('Enrollment Form'!$CN447=\"\",'Enrollment Form'!$CN447=\"No\"),\"-\",IF(AND('Enrollment Form'!$CN447=\"Yes\",'Enrollment Form'!$CO447=\"\"),\"N\",\"Y\"))","v":"-"},{"$f":"IF(OR('Enrollment Form'!$CN447=\"\",'Enrollment Form'!$CN447=\"No\"),\"-\",IF(AND('Enrollment Form'!$CN447=\"Yes\",'Enrollment Form'!$CP447=\"\"),\"N\",\"Y\"))","v":"-"},{"$f":"IF('Enrollment Form'!B447<>\"Subscriber\",\"-\",IF(AND('Enrollment Form'!B447=\"Subscriber\",'Enrollment Form'!C447=\"Enroll\",'Enrollment Form'!AA447=\"\"),\"N\",\"Y\"))","v":"-"},{"$f":"IF(OR('Enrollment Form'!B447=\"Subscriber\",'Enrollment Form'!B447=\"\"),\"-\",IF('Enrollment Form'!BP447=\"\",\"N\",\"Y\"))","v":"-"},{"$f":"IF('Enrollment Form'!B447<>\"Subscriber\",\"-\",IF(AND('Enrollment Form'!B447=\"Subscriber\",'Enrollment Form'!G447=\"\"),\"N\",\"Y\"))","v":"-"},{"$f":"IF('Enrollment Form'!A447=\"\",\"\",IF('Enrollment Form'!B447=\"Subscriber\",\"-\",IF(AND('Enrollment Form'!B447<>\"Subscriber\",'Enrollment Form'!G447='Enrollment Form'!H447),\"N\",\"Y\")))","v":""},0]
[448,{"$f":"IF('Enrollment Form'!$A448<>\"\",\"Y\",\"N\")","v":"N"},{"$f":"IF(AND('Enrollment Form'!$B448=\"\",'Enrollment Form'!$C448<>\"\"),\"N\",IF($B441=\"N\",\"\",\"Y\"))","v":""},{"$f":"IF(OR($B441=\"N\",'Enrollment Form'!G448=\"\"),\"\",IF('Enrollment Form'!$B448<>\"Subscriber\",\"\",IF('Enrollment Form'!$G448='Enrollment Form'!$H448,\"Y\",\"N\")))","v":""},{"$f":"IF($B441=\"N\",\"\",IF(AND(COUNTIFS('Enrollment Form'!$H$11:$H$1000,'Enrollment Form'!$H448,'Enrollment Form'!$B$11:$B$1000,'Enrollment Form'!$B448)>1,'Enrollment Form'!$H448<>\"\"),\"N\",\"Y\"))","v":""},{"$f":"IF($B441=\"N\",\"\",IF(LEN('Enrollment Form'!$Y448)=0,\"\",IF(LEN('Enrollment Form'!$Y448)<>5,\"N\",\"Y\")))","v":""},{"$f":"IF($B441=\"N\",\"\",IF(LEN('Enrollment Form'!$AD448=0),\"\",IF(LEN('Enrollment Form'!$AD448)<>5,\"N\",\"Y\")))","v":""},{"$f":"IF($B441=\"N\",\"\",IF(LEN('Enrollment Form'!$BS448=0),\"\",IF(LEN('Enrollment Form'!$BS448)<>5,\"N\",\"Y\")))","v":""},{"$f":"IF($B441=\"N\",\"\",IF(LEN('Enrollment Form'!$AE448)=0,\"\",IF(LEN('Enrollment Form'!$AE448)<>10,\"N\",\"Y\")))","v":""},{"$f":"IF($B441=\"N\",\"\",IF(LEN('Enrollment Form'!$AF448)=0,\"\",IF(LEN('Enrollment Form'!$AF448)<>10,\"N\",\"Y\")))","v":""},{"$f":"IF('Enrollment Form'!$O448<>\"Graded\",\"-\",IF(AND('Enrollment Form'!$O448=\"Graded\",'Enrollment Form'!$AR448<>\"\"),\"Y\",\"N\"))","v":"-"},{"$f":"IF($B441=\"N\",\"\",IF(OR('Enrollment Form'!$B448<>\"Subscriber\",'Enrollment Form'!$C448=\"ROC\"),\"-\",IF(AND('Enrollment Form'!$B448=\"Subscriber\",'Enrollment Form'!$C448=\"Enroll\",'Enrollment Form'!$AJ448<>\"\"),\"Y\",\"N\")))","v":""},{"$f":"IF($B441=\"N\",\"\",IF(OR('Enrollment Form'!$B448<>\"Subscriber\",'Enrollment Form'!$C448=\"ROC\"),\"-\",IF(AND('Enrollment Form'!$B448=\"Subscriber\",'Enrollment Form'!$C448=\"Enroll\",'Enrollment Form'!$AK448<>\"\"),\"Y\",\"N\")))","v":""},{"$f":"IF($B441=\"N\",\"\",IF(OR('Enrollment Form'!$B448<>\"Subscriber\",'Enrollment Form'!$C448=\"ROC\"),\"-\",IF(AND('Enrollment Form'!$B448=\"Subscriber\",'Enrollment Form'!$C448=\"Enroll\",'Enrollment Form'!$AL448<>\"\"),\"Y\",\"N\")))","v":""},{"$f":"IF($B441=\"N\",\"\",IF(OR('Enrollment Form'!$B448<>\"Subscriber\",'Enrollment Form'!$C448=\"ROC\"),\"-\",IF(AND('Enrollment Form'!$B448=\"Subscriber\",'Enrollment Form'!$C448=\"Enroll\",'Enrollment Form'!$AP448<>\"\"),\"Y\",\"N\")))","v":""},{"$f":"IF($B441=\"N\",\"\",IF(OR('Enrollment Form'!$B448<>\"Subscriber\",'Enrollment Form'!$C448=\"ROC\"),\"-\",IF(AND('Enrollment Form'!$B448=\"Subscriber\",'Enrollment Form'!$C448=\"Enroll\",'Enrollment Form'!$AQ448<>\"\"),\"Y\",\"N\")))","v":""},{"$f":"IF($B441=\"N\",\"\",IF(OR('Enrollment Form'!$B448<>\"Subscriber\",'Enrollment Form'!$C448=\"ROC\"),\"-\",IF(AND('Enrollment Form'!$B448=\"Subscriber\",'Enrollment Form'!$C448=\"Enroll\",'Enrollment Form'!$AS448<>\"\"),\"Y\",\"N\")))","v":""},{"$f":"IF($B441=\"N\",\"\",IF($Q441=\"-\",\"-\",IF(AND($Q441=\"Y\",'Enrollment Form'!$AS448=\"No\"),\"-\",IF(AND($Q441=\"Y\",'Enrollment Form'!$AS448=\"Yes\",'Enrollment Form'!$AT448<>\"\"),\"Y\",\"N\"))))","v":""},{"$f":"IF($B441=\"N\",\"\",IF(OR('Enrollment Form'!$B448<>\"Subscriber\",'Enrollment Form'!$C448=\"ROC\"),\"-\",IF(AND('Enrollment Form'!$B448=\"Subscriber\",'Enrollment Form'!$C448=\"Enroll\",'Enrollment Form'!$CV448<>\"\"),\"Y\",\"N\")))","v":""},{"$f":"IF($B441=\"N\",\"\",IF($S441=\"-\",\"-\",IF(AND($S441=\"Y\",'Enrollment Form'!$CV448=\"No\"),\"-\",IF(AND($S441=\"Y\",'Enrollment Form'!$CV448=\"Yes\",'Enrollment Form'!$CW448<>\"\"),\"Y\",\"N\"))))","v":""},{"$f":"IF(OR('Enrollment Form'!$AY448=\"Yes\",'Enrollment Form'!$AY448=\"\"),\"-\",IF(OR(AND('Enrollment Form'!$AY448=\"No\",ISERROR(FIND(\"HMO\",VLOOKUP('Enrollment Form'!G448,'Enrollment Form'!H$11:J$1000,3,FALSE),1))=FALSE,COUNTA('Enrollment Form'!$AZ448:$BC448)=4),AND('Enrollment Form'!$AY448=\"No\",ISERROR(FIND(\"HMO\",VLOOKUP('Enrollment Form'!G448,'Enrollment Form'!H$11:J$1000,3,FALSE),1))=FALSE,COUNTA('Enrollment Form'!$BT448:$BW448)=4)),\"Y\",\"N\"))","v":"-"},{"$f":"IF($B441=\"N\",\"\",IF('Enrollment Form'!$B448=\"Subscriber\",\"-\",IF(COUNTA('Enrollment Form'!$BL448,'Enrollment Form'!$BN448)=2,\"Y\",\"N\")))","v":""},{"$f":"IF($B441=\"N\",\"\",IF(OR('Enrollment Form'!$AX448=\"\",'Enrollment Form'!$AX448=\"No\"),\"-\",IF(AND('Enrollment Form'!$AX448=\"Yes\",COUNTA('Enrollment Form'!$CR448)=1),\"Y\",\"N\")))","v":""},{"$f":"IF(OR('Enrollment Form'!$CR448=\"\",'Enrollment Form'!$CR448=\"No\"),\"-\",IF(COUNTA('Enrollment Form'!$CT448:$CU448)=2,\"Y\",\"N\"))","v":"-"},{"$f":"IF($B441=\"N\",\"\",IF(COUNTIF('Enrollment Form'!$DG448:$DP448,\"Other\")=COUNTA('Enrollment Form'!$DK448,'Enrollment Form'!$DH448,'Enrollment Form'!$DN448,'Enrollment Form'!$DQ448),\"Y\",\"N\"))","v":""},{"$f":"IF($B441=\"N\",\"\",IF(OR('Enrollment Form'!B448<>\"Subscriber\",'Enrollment Form'!C448=\"ROC\",COUNTIF('Enrollment Form'!AV448:AW448,\"Yes\")>=1),\"-\",IF(AND('Enrollment Form'!C448=\"Enroll\",COUNTIF('Enrollment Form'!AV448:AW448,\"No\")=2,'Enrollment Form'!AX448=\"\"),\"N\",\"Y\")))","v":""},{"$f":"IF(OR(B441=\"N\",'Enrollment Form'!B448<>\"Subscriber\",'Enrollment Form'!C448=\"ROC\",'Enrollment Form'!O448<>\"Multiple of Salary\"),\"-\",IF(COUNTA('Enrollment Form'!T448:U448)<2,\"N\",\"Y\"))","v":"-"},{"$f":"IF(B441=\"N\",\"\",IF(OR('Enrollment Form'!C448=\"ROC\",'Enrollment Form'!B448<>\"Subscriber\",'Enrollment Form'!O448=\"Waive\",'Enrollment Form'!O448=\"\"),\"-\",IF('Enrollment Form'!P448=\"\",\"N\",\"Y\")))","v":""},{"$f":"IF($B441=\"N\",\"\",IF(AND('Enrollment Form'!$C448=\"ROC\",'Enrollment Form'!$DR448<>\"\"),\"Y\",IF(AND('Enrollment Form'!$C448=\"ROC\",'Enrollment Form'!$DR448=\"\"),\"N\",IF(AND('Enrollment Form'!$C448=\"Enroll\",'Enrollment Form'!$B448=\"Subscriber\",'Enrollment Form'!$CX448=\"No\",'Enrollment Form'!$DR448=\"\"),\"N\",IF(AND('Enrollment Form'!$C448=\"Enroll\",'Enrollment Form'!$B448=\"Subscriber\",'Enrollment Form'!$CX448=\"Yes\"),\"-\",\"Y\")))))","v":""},{"$f":"IF($B441=\"N\",\"\",IF(AND('Enrollment Form'!$C448=\"ROC\",'Enrollment Form'!$DS448<>\"\"),\"Y\",IF(AND('Enrollment Form'!$C448=\"ROC\",'Enrollment Form'!$DS448=\"\"),\"N\",IF(AND('Enrollment Form'!$C448=\"Enroll\",'Enrollment Form'!$B448=\"Subscriber\",'Enrollment Form'!$CX448=\"No\",'Enrollment Form'!$DS448=\"\"),\"N\",IF(AND('Enrollment Form'!$C448=\"Enroll\",'Enrollment Form'!$B448=\"Subscriber\",'Enrollment Form'!$CX448=\"Yes\"),\"-\",\"Y\")))))","v":""},{"$f":"IF('Enrollment Form'!AH448=\"\",\"\",IF(ISERROR(SEARCH(\".\",'Enrollment Form'!AH448,SEARCH(\"@\",'Enrollment Form'!AH448))),\"N\",\"Y\"))","v":""},{"$f":"IF(OR($B441=\"N\",'Enrollment Form'!$G448=\"\"),\"\",IF('Enrollment Form'!$B448<>\"Subscriber\",\"-\",IF(COUNTIF('Enrollment Form'!$AV448:$AW448,\"Yes\")=2,\"N\",\"Y\")))","v":""},{"$f":"IF(OR('Enrollment Form'!$CJ448=\"\",'Enrollment Form'!$CJ448=\"No\"),\"-\",IF(AND('Enrollment Form'!$CJ448=\"Yes\",'Enrollment Form'!$CK448=\"\"),\"N\",\"Y\"))","v":"-"},{"$f":"IF(OR('Enrollment Form'!$CL448=\"\",'Enrollment Form'!$CL448=\"No\"),\"-\",IF(AND('Enrollment Form'!$CL448=\"Yes\",'Enrollment Form'!$CM448=\"\"),\"N\",\"Y\"))","v":"-"},{"$f":"IF(OR('Enrollment Form'!$CN448=\"\",'Enrollment Form'!$CN448=\"No\"),\"-\",IF(AND('Enrollment Form'!$CN448=\"Yes\",'Enrollment Form'!$CO448=\"\"),\"N\",\"Y\"))","v":"-"},{"$f":"IF(OR('Enrollment Form'!$CN448=\"\",'Enrollment Form'!$CN448=\"No\"),\"-\",IF(AND('Enrollment Form'!$CN448=\"Yes\",'Enrollment Form'!$CP448=\"\"),\"N\",\"Y\"))","v":"-"},{"$f":"IF('Enrollment Form'!B448<>\"Subscriber\",\"-\",IF(AND('Enrollment Form'!B448=\"Subscriber\",'Enrollment Form'!C448=\"Enroll\",'Enrollment Form'!AA448=\"\"),\"N\",\"Y\"))","v":"-"},{"$f":"IF(OR('Enrollment Form'!B448=\"Subscriber\",'Enrollment Form'!B448=\"\"),\"-\",IF('Enrollment Form'!BP448=\"\",\"N\",\"Y\"))","v":"-"},{"$f":"IF('Enrollment Form'!B448<>\"Subscriber\",\"-\",IF(AND('Enrollment Form'!B448=\"Subscriber\",'Enrollment Form'!G448=\"\"),\"N\",\"Y\"))","v":"-"},{"$f":"IF('Enrollment Form'!A448=\"\",\"\",IF('Enrollment Form'!B448=\"Subscriber\",\"-\",IF(AND('Enrollment Form'!B448<>\"Subscriber\",'Enrollment Form'!G448='Enrollment Form'!H448),\"N\",\"Y\")))","v":""},0]
[449,{"$f":"IF('Enrollment Form'!$A449<>\"\",\"Y\",\"N\")","v":"N"},{"$f":"IF(AND('Enrollment Form'!$B449=\"\",'Enrollment Form'!$C449<>\"\"),\"N\",IF($B442=\"N\",\"\",\"Y\"))","v":""},{"$f":"IF(OR($B442=\"N\",'Enrollment Form'!G449=\"\"),\"\",IF('Enrollment Form'!$B449<>\"Subscriber\",\"\",IF('Enrollment Form'!$G449='Enrollment Form'!$H449,\"Y\",\"N\")))","v":""},{"$f":"IF($B442=\"N\",\"\",IF(AND(COUNTIFS('Enrollment Form'!$H$11:$H$1000,'Enrollment Form'!$H449,'Enrollment Form'!$B$11:$B$1000,'Enrollment Form'!$B449)>1,'Enrollment Form'!$H449<>\"\"),\"N\",\"Y\"))","v":""},{"$f":"IF($B442=\"N\",\"\",IF(LEN('Enrollment Form'!$Y449)=0,\"\",IF(LEN('Enrollment Form'!$Y449)<>5,\"N\",\"Y\")))","v":""},{"$f":"IF($B442=\"N\",\"\",IF(LEN('Enrollment Form'!$AD449=0),\"\",IF(LEN('Enrollment Form'!$AD449)<>5,\"N\",\"Y\")))","v":""},{"$f":"IF($B442=\"N\",\"\",IF(LEN('Enrollment Form'!$BS449=0),\"\",IF(LEN('Enrollment Form'!$BS449)<>5,\"N\",\"Y\")))","v":""},{"$f":"IF($B442=\"N\",\"\",IF(LEN('Enrollment Form'!$AE449)=0,\"\",IF(LEN('Enrollment Form'!$AE449)<>10,\"N\",\"Y\")))","v":""},{"$f":"IF($B442=\"N\",\"\",IF(LEN('Enrollment Form'!$AF449)=0,\"\",IF(LEN('Enrollment Form'!$AF449)<>10,\"N\",\"Y\")))","v":""},{"$f":"IF('Enrollment Form'!$O449<>\"Graded\",\"-\",IF(AND('Enrollment Form'!$O449=\"Graded\",'Enrollment Form'!$AR449<>\"\"),\"Y\",\"N\"))","v":"-"},{"$f":"IF($B442=\"N\",\"\",IF(OR('Enrollment Form'!$B449<>\"Subscriber\",'Enrollment Form'!$C449=\"ROC\"),\"-\",IF(AND('Enrollment Form'!$B449=\"Subscriber\",'Enrollment Form'!$C449=\"Enroll\",'Enrollment Form'!$AJ449<>\"\"),\"Y\",\"N\")))","v":""},{"$f":"IF($B442=\"N\",\"\",IF(OR('Enrollment Form'!$B449<>\"Subscriber\",'Enrollment Form'!$C449=\"ROC\"),\"-\",IF(AND('Enrollment Form'!$B449=\"Subscriber\",'Enrollment Form'!$C449=\"Enroll\",'Enrollment Form'!$AK449<>\"\"),\"Y\",\"N\")))","v":""},{"$f":"IF($B442=\"N\",\"\",IF(OR('Enrollment Form'!$B449<>\"Subscriber\",'Enrollment Form'!$C449=\"ROC\"),\"-\",IF(AND('Enrollment Form'!$B449=\"Subscriber\",'Enrollment Form'!$C449=\"Enroll\",'Enrollment Form'!$AL449<>\"\"),\"Y\",\"N\")))","v":""},{"$f":"IF($B442=\"N\",\"\",IF(OR('Enrollment Form'!$B449<>\"Subscriber\",'Enrollment Form'!$C449=\"ROC\"),\"-\",IF(AND('Enrollment Form'!$B449=\"Subscriber\",'Enrollment Form'!$C449=\"Enroll\",'Enrollment Form'!$AP449<>\"\"),\"Y\",\"N\")))","v":""},{"$f":"IF($B442=\"N\",\"\",IF(OR('Enrollment Form'!$B449<>\"Subscriber\",'Enrollment Form'!$C449=\"ROC\"),\"-\",IF(AND('Enrollment Form'!$B449=\"Subscriber\",'Enrollment Form'!$C449=\"Enroll\",'Enrollment Form'!$AQ449<>\"\"),\"Y\",\"N\")))","v":""},{"$f":"IF($B442=\"N\",\"\",IF(OR('Enrollment Form'!$B449<>\"Subscriber\",'Enrollment Form'!$C449=\"ROC\"),\"-\",IF(AND('Enrollment Form'!$B449=\"Subscriber\",'Enrollment Form'!$C449=\"Enroll\",'Enrollment Form'!$AS449<>\"\"),\"Y\",\"N\")))","v":""},{"$f":"IF($B442=\"N\",\"\",IF($Q442=\"-\",\"-\",IF(AND($Q442=\"Y\",'Enrollment Form'!$AS449=\"No\"),\"-\",IF(AND($Q442=\"Y\",'Enrollment Form'!$AS449=\"Yes\",'Enrollment Form'!$AT449<>\"\"),\"Y\",\"N\"))))","v":""},{"$f":"IF($B442=\"N\",\"\",IF(OR('Enrollment Form'!$B449<>\"Subscriber\",'Enrollment Form'!$C449=\"ROC\"),\"-\",IF(AND('Enrollment Form'!$B449=\"Subscriber\",'Enrollment Form'!$C449=\"Enroll\",'Enrollment Form'!$CV449<>\"\"),\"Y\",\"N\")))","v":""},{"$f":"IF($B442=\"N\",\"\",IF($S442=\"-\",\"-\",IF(AND($S442=\"Y\",'Enrollment Form'!$CV449=\"No\"),\"-\",IF(AND($S442=\"Y\",'Enrollment Form'!$CV449=\"Yes\",'Enrollment Form'!$CW449<>\"\"),\"Y\",\"N\"))))","v":""},{"$f":"IF(OR('Enrollment Form'!$AY449=\"Yes\",'Enrollment Form'!$AY449=\"\"),\"-\",IF(OR(AND('Enrollment Form'!$AY449=\"No\",ISERROR(FIND(\"HMO\",VLOOKUP('Enrollment Form'!G449,'Enrollment Form'!H$11:J$1000,3,FALSE),1))=FALSE,COUNTA('Enrollment Form'!$AZ449:$BC449)=4),AND('Enrollment Form'!$AY449=\"No\",ISERROR(FIND(\"HMO\",VLOOKUP('Enrollment Form'!G449,'Enrollment Form'!H$11:J$1000,3,FALSE),1))=FALSE,COUNTA('Enrollment Form'!$BT449:$BW449)=4)),\"Y\",\"N\"))","v":"-"},{"$f":"IF($B442=\"N\",\"\",IF('Enrollment Form'!$B449=\"Subscriber\",\"-\",IF(COUNTA('Enrollment Form'!$BL449,'Enrollment Form'!$BN449)=2,\"Y\",\"N\")))","v":""},{"$f":"IF($B442=\"N\",\"\",IF(OR('Enrollment Form'!$AX449=\"\",'Enrollment Form'!$AX449=\"No\"),\"-\",IF(AND('Enrollment Form'!$AX449=\"Yes\",COUNTA('Enrollment Form'!$CR449)=1),\"Y\",\"N\")))","v":""},{"$f":"IF(OR('Enrollment Form'!$CR449=\"\",'Enrollment Form'!$CR449=\"No\"),\"-\",IF(COUNTA('Enrollment Form'!$CT449:$CU449)=2,\"Y\",\"N\"))","v":"-"},{"$f":"IF($B442=\"N\",\"\",IF(COUNTIF('Enrollment Form'!$DG449:$DP449,\"Other\")=COUNTA('Enrollment Form'!$DK449,'Enrollment Form'!$DH449,'Enrollment Form'!$DN449,'Enrollment Form'!$DQ449),\"Y\",\"N\"))","v":""},{"$f":"IF($B442=\"N\",\"\",IF(OR('Enrollment Form'!B449<>\"Subscriber\",'Enrollment Form'!C449=\"ROC\",COUNTIF('Enrollment Form'!AV449:AW449,\"Yes\")>=1),\"-\",IF(AND('Enrollment Form'!C449=\"Enroll\",COUNTIF('Enrollment Form'!AV449:AW449,\"No\")=2,'Enrollment Form'!AX449=\"\"),\"N\",\"Y\")))","v":""},{"$f":"IF(OR(B442=\"N\",'Enrollment Form'!B449<>\"Subscriber\",'Enrollment Form'!C449=\"ROC\",'Enrollment Form'!O449<>\"Multiple of Salary\"),\"-\",IF(COUNTA('Enrollment Form'!T449:U449)<2,\"N\",\"Y\"))","v":"-"},{"$f":"IF(B442=\"N\",\"\",IF(OR('Enrollment Form'!C449=\"ROC\",'Enrollment Form'!B449<>\"Subscriber\",'Enrollment Form'!O449=\"Waive\",'Enrollment Form'!O449=\"\"),\"-\",IF('Enrollment Form'!P449=\"\",\"N\",\"Y\")))","v":""},{"$f":"IF($B442=\"N\",\"\",IF(AND('Enrollment Form'!$C449=\"ROC\",'Enrollment Form'!$DR449<>\"\"),\"Y\",IF(AND('Enrollment Form'!$C449=\"ROC\",'Enrollment Form'!$DR449=\"\"),\"N\",IF(AND('Enrollment Form'!$C449=\"Enroll\",'Enrollment Form'!$B449=\"Subscriber\",'Enrollment Form'!$CX449=\"No\",'Enrollment Form'!$DR449=\"\"),\"N\",IF(AND('Enrollment Form'!$C449=\"Enroll\",'Enrollment Form'!$B449=\"Subscriber\",'Enrollment Form'!$CX449=\"Yes\"),\"-\",\"Y\")))))","v":""},{"$f":"IF($B442=\"N\",\"\",IF(AND('Enrollment Form'!$C449=\"ROC\",'Enrollment Form'!$DS449<>\"\"),\"Y\",IF(AND('Enrollment Form'!$C449=\"ROC\",'Enrollment Form'!$DS449=\"\"),\"N\",IF(AND('Enrollment Form'!$C449=\"Enroll\",'Enrollment Form'!$B449=\"Subscriber\",'Enrollment Form'!$CX449=\"No\",'Enrollment Form'!$DS449=\"\"),\"N\",IF(AND('Enrollment Form'!$C449=\"Enroll\",'Enrollment Form'!$B449=\"Subscriber\",'Enrollment Form'!$CX449=\"Yes\"),\"-\",\"Y\")))))","v":""},{"$f":"IF('Enrollment Form'!AH449=\"\",\"\",IF(ISERROR(SEARCH(\".\",'Enrollment Form'!AH449,SEARCH(\"@\",'Enrollment Form'!AH449))),\"N\",\"Y\"))","v":""},{"$f":"IF(OR($B442=\"N\",'Enrollment Form'!$G449=\"\"),\"\",IF('Enrollment Form'!$B449<>\"Subscriber\",\"-\",IF(COUNTIF('Enrollment Form'!$AV449:$AW449,\"Yes\")=2,\"N\",\"Y\")))","v":""},{"$f":"IF(OR('Enrollment Form'!$CJ449=\"\",'Enrollment Form'!$CJ449=\"No\"),\"-\",IF(AND('Enrollment Form'!$CJ449=\"Yes\",'Enrollment Form'!$CK449=\"\"),\"N\",\"Y\"))","v":"-"},{"$f":"IF(OR('Enrollment Form'!$CL449=\"\",'Enrollment Form'!$CL449=\"No\"),\"-\",IF(AND('Enrollment Form'!$CL449=\"Yes\",'Enrollment Form'!$CM449=\"\"),\"N\",\"Y\"))","v":"-"},{"$f":"IF(OR('Enrollment Form'!$CN449=\"\",'Enrollment Form'!$CN449=\"No\"),\"-\",IF(AND('Enrollment Form'!$CN449=\"Yes\",'Enrollment Form'!$CO449=\"\"),\"N\",\"Y\"))","v":"-"},{"$f":"IF(OR('Enrollment Form'!$CN449=\"\",'Enrollment Form'!$CN449=\"No\"),\"-\",IF(AND('Enrollment Form'!$CN449=\"Yes\",'Enrollment Form'!$CP449=\"\"),\"N\",\"Y\"))","v":"-"},{"$f":"IF('Enrollment Form'!B449<>\"Subscriber\",\"-\",IF(AND('Enrollment Form'!B449=\"Subscriber\",'Enrollment Form'!C449=\"Enroll\",'Enrollment Form'!AA449=\"\"),\"N\",\"Y\"))","v":"-"},{"$f":"IF(OR('Enrollment Form'!B449=\"Subscriber\",'Enrollment Form'!B449=\"\"),\"-\",IF('Enrollment Form'!BP449=\"\",\"N\",\"Y\"))","v":"-"},{"$f":"IF('Enrollment Form'!B449<>\"Subscriber\",\"-\",IF(AND('Enrollment Form'!B449=\"Subscriber\",'Enrollment Form'!G449=\"\"),\"N\",\"Y\"))","v":"-"},{"$f":"IF('Enrollment Form'!A449=\"\",\"\",IF('Enrollment Form'!B449=\"Subscriber\",\"-\",IF(AND('Enrollment Form'!B449<>\"Subscriber\",'Enrollment Form'!G449='Enrollment Form'!H449),\"N\",\"Y\")))","v":""},0]
[450,{"$f":"IF('Enrollment Form'!$A450<>\"\",\"Y\",\"N\")","v":"N"},{"$f":"IF(AND('Enrollment Form'!$B450=\"\",'Enrollment Form'!$C450<>\"\"),\"N\",IF($B443=\"N\",\"\",\"Y\"))","v":""},{"$f":"IF(OR($B443=\"N\",'Enrollment Form'!G450=\"\"),\"\",IF('Enrollment Form'!$B450<>\"Subscriber\",\"\",IF('Enrollment Form'!$G450='Enrollment Form'!$H450,\"Y\",\"N\")))","v":""},{"$f":"IF($B443=\"N\",\"\",IF(AND(COUNTIFS('Enrollment Form'!$H$11:$H$1000,'Enrollment Form'!$H450,'Enrollment Form'!$B$11:$B$1000,'Enrollment Form'!$B450)>1,'Enrollment Form'!$H450<>\"\"),\"N\",\"Y\"))","v":""},{"$f":"IF($B443=\"N\",\"\",IF(LEN('Enrollment Form'!$Y450)=0,\"\",IF(LEN('Enrollment Form'!$Y450)<>5,\"N\",\"Y\")))","v":""},{"$f":"IF($B443=\"N\",\"\",IF(LEN('Enrollment Form'!$AD450=0),\"\",IF(LEN('Enrollment Form'!$AD450)<>5,\"N\",\"Y\")))","v":""},{"$f":"IF($B443=\"N\",\"\",IF(LEN('Enrollment Form'!$BS450=0),\"\",IF(LEN('Enrollment Form'!$BS450)<>5,\"N\",\"Y\")))","v":""},{"$f":"IF($B443=\"N\",\"\",IF(LEN('Enrollment Form'!$AE450)=0,\"\",IF(LEN('Enrollment Form'!$AE450)<>10,\"N\",\"Y\")))","v":""},{"$f":"IF($B443=\"N\",\"\",IF(LEN('Enrollment Form'!$AF450)=0,\"\",IF(LEN('Enrollment Form'!$AF450)<>10,\"N\",\"Y\")))","v":""},{"$f":"IF('Enrollment Form'!$O450<>\"Graded\",\"-\",IF(AND('Enrollment Form'!$O450=\"Graded\",'Enrollment Form'!$AR450<>\"\"),\"Y\",\"N\"))","v":"-"},{"$f":"IF($B443=\"N\",\"\",IF(OR('Enrollment Form'!$B450<>\"Subscriber\",'Enrollment Form'!$C450=\"ROC\"),\"-\",IF(AND('Enrollment Form'!$B450=\"Subscriber\",'Enrollment Form'!$C450=\"Enroll\",'Enrollment Form'!$AJ450<>\"\"),\"Y\",\"N\")))","v":""},{"$f":"IF($B443=\"N\",\"\",IF(OR('Enrollment Form'!$B450<>\"Subscriber\",'Enrollment Form'!$C450=\"ROC\"),\"-\",IF(AND('Enrollment Form'!$B450=\"Subscriber\",'Enrollment Form'!$C450=\"Enroll\",'Enrollment Form'!$AK450<>\"\"),\"Y\",\"N\")))","v":""},{"$f":"IF($B443=\"N\",\"\",IF(OR('Enrollment Form'!$B450<>\"Subscriber\",'Enrollment Form'!$C450=\"ROC\"),\"-\",IF(AND('Enrollment Form'!$B450=\"Subscriber\",'Enrollment Form'!$C450=\"Enroll\",'Enrollment Form'!$AL450<>\"\"),\"Y\",\"N\")))","v":""},{"$f":"IF($B443=\"N\",\"\",IF(OR('Enrollment Form'!$B450<>\"Subscriber\",'Enrollment Form'!$C450=\"ROC\"),\"-\",IF(AND('Enrollment Form'!$B450=\"Subscriber\",'Enrollment Form'!$C450=\"Enroll\",'Enrollment Form'!$AP450<>\"\"),\"Y\",\"N\")))","v":""},{"$f":"IF($B443=\"N\",\"\",IF(OR('Enrollment Form'!$B450<>\"Subscriber\",'Enrollment Form'!$C450=\"ROC\"),\"-\",IF(AND('Enrollment Form'!$B450=\"Subscriber\",'Enrollment Form'!$C450=\"Enroll\",'Enrollment Form'!$AQ450<>\"\"),\"Y\",\"N\")))","v":""},{"$f":"IF($B443=\"N\",\"\",IF(OR('Enrollment Form'!$B450<>\"Subscriber\",'Enrollment Form'!$C450=\"ROC\"),\"-\",IF(AND('Enrollment Form'!$B450=\"Subscriber\",'Enrollment Form'!$C450=\"Enroll\",'Enrollment Form'!$AS450<>\"\"),\"Y\",\"N\")))","v":""},{"$f":"IF($B443=\"N\",\"\",IF($Q443=\"-\",\"-\",IF(AND($Q443=\"Y\",'Enrollment Form'!$AS450=\"No\"),\"-\",IF(AND($Q443=\"Y\",'Enrollment Form'!$AS450=\"Yes\",'Enrollment Form'!$AT450<>\"\"),\"Y\",\"N\"))))","v":""},{"$f":"IF($B443=\"N\",\"\",IF(OR('Enrollment Form'!$B450<>\"Subscriber\",'Enrollment Form'!$C450=\"ROC\"),\"-\",IF(AND('Enrollment Form'!$B450=\"Subscriber\",'Enrollment Form'!$C450=\"Enroll\",'Enrollment Form'!$CV450<>\"\"),\"Y\",\"N\")))","v":""},{"$f":"IF($B443=\"N\",\"\",IF($S443=\"-\",\"-\",IF(AND($S443=\"Y\",'Enrollment Form'!$CV450=\"No\"),\"-\",IF(AND($S443=\"Y\",'Enrollment Form'!$CV450=\"Yes\",'Enrollment Form'!$CW450<>\"\"),\"Y\",\"N\"))))","v":""},{"$f":"IF(OR('Enrollment Form'!$AY450=\"Yes\",'Enrollment Form'!$AY450=\"\"),\"-\",IF(OR(AND('Enrollment Form'!$AY450=\"No\",ISERROR(FIND(\"HMO\",VLOOKUP('Enrollment Form'!G450,'Enrollment Form'!H$11:J$1000,3,FALSE),1))=FALSE,COUNTA('Enrollment Form'!$AZ450:$BC450)=4),AND('Enrollment Form'!$AY450=\"No\",ISERROR(FIND(\"HMO\",VLOOKUP('Enrollment Form'!G450,'Enrollment Form'!H$11:J$1000,3,FALSE),1))=FALSE,COUNTA('Enrollment Form'!$BT450:$BW450)=4)),\"Y\",\"N\"))","v":"-"},{"$f":"IF($B443=\"N\",\"\",IF('Enrollment Form'!$B450=\"Subscriber\",\"-\",IF(COUNTA('Enrollment Form'!$BL450,'Enrollment Form'!$BN450)=2,\"Y\",\"N\")))","v":""},{"$f":"IF($B443=\"N\",\"\",IF(OR('Enrollment Form'!$AX450=\"\",'Enrollment Form'!$AX450=\"No\"),\"-\",IF(AND('Enrollment Form'!$AX450=\"Yes\",COUNTA('Enrollment Form'!$CR450)=1),\"Y\",\"N\")))","v":""},{"$f":"IF(OR('Enrollment Form'!$CR450=\"\",'Enrollment Form'!$CR450=\"No\"),\"-\",IF(COUNTA('Enrollment Form'!$CT450:$CU450)=2,\"Y\",\"N\"))","v":"-"},{"$f":"IF($B443=\"N\",\"\",IF(COUNTIF('Enrollment Form'!$DG450:$DP450,\"Other\")=COUNTA('Enrollment Form'!$DK450,'Enrollment Form'!$DH450,'Enrollment Form'!$DN450,'Enrollment Form'!$DQ450),\"Y\",\"N\"))","v":""},{"$f":"IF($B443=\"N\",\"\",IF(OR('Enrollment Form'!B450<>\"Subscriber\",'Enrollment Form'!C450=\"ROC\",COUNTIF('Enrollment Form'!AV450:AW450,\"Yes\")>=1),\"-\",IF(AND('Enrollment Form'!C450=\"Enroll\",COUNTIF('Enrollment Form'!AV450:AW450,\"No\")=2,'Enrollment Form'!AX450=\"\"),\"N\",\"Y\")))","v":""},{"$f":"IF(OR(B443=\"N\",'Enrollment Form'!B450<>\"Subscriber\",'Enrollment Form'!C450=\"ROC\",'Enrollment Form'!O450<>\"Multiple of Salary\"),\"-\",IF(COUNTA('Enrollment Form'!T450:U450)<2,\"N\",\"Y\"))","v":"-"},{"$f":"IF(B443=\"N\",\"\",IF(OR('Enrollment Form'!C450=\"ROC\",'Enrollment Form'!B450<>\"Subscriber\",'Enrollment Form'!O450=\"Waive\",'Enrollment Form'!O450=\"\"),\"-\",IF('Enrollment Form'!P450=\"\",\"N\",\"Y\")))","v":""},{"$f":"IF($B443=\"N\",\"\",IF(AND('Enrollment Form'!$C450=\"ROC\",'Enrollment Form'!$DR450<>\"\"),\"Y\",IF(AND('Enrollment Form'!$C450=\"ROC\",'Enrollment Form'!$DR450=\"\"),\"N\",IF(AND('Enrollment Form'!$C450=\"Enroll\",'Enrollment Form'!$B450=\"Subscriber\",'Enrollment Form'!$CX450=\"No\",'Enrollment Form'!$DR450=\"\"),\"N\",IF(AND('Enrollment Form'!$C450=\"Enroll\",'Enrollment Form'!$B450=\"Subscriber\",'Enrollment Form'!$CX450=\"Yes\"),\"-\",\"Y\")))))","v":""},{"$f":"IF($B443=\"N\",\"\",IF(AND('Enrollment Form'!$C450=\"ROC\",'Enrollment Form'!$DS450<>\"\"),\"Y\",IF(AND('Enrollment Form'!$C450=\"ROC\",'Enrollment Form'!$DS450=\"\"),\"N\",IF(AND('Enrollment Form'!$C450=\"Enroll\",'Enrollment Form'!$B450=\"Subscriber\",'Enrollment Form'!$CX450=\"No\",'Enrollment Form'!$DS450=\"\"),\"N\",IF(AND('Enrollment Form'!$C450=\"Enroll\",'Enrollment Form'!$B450=\"Subscriber\",'Enrollment Form'!$CX450=\"Yes\"),\"-\",\"Y\")))))","v":""},{"$f":"IF('Enrollment Form'!AH450=\"\",\"\",IF(ISERROR(SEARCH(\".\",'Enrollment Form'!AH450,SEARCH(\"@\",'Enrollment Form'!AH450))),\"N\",\"Y\"))","v":""},{"$f":"IF(OR($B443=\"N\",'Enrollment Form'!$G450=\"\"),\"\",IF('Enrollment Form'!$B450<>\"Subscriber\",\"-\",IF(COUNTIF('Enrollment Form'!$AV450:$AW450,\"Yes\")=2,\"N\",\"Y\")))","v":""},{"$f":"IF(OR('Enrollment Form'!$CJ450=\"\",'Enrollment Form'!$CJ450=\"No\"),\"-\",IF(AND('Enrollment Form'!$CJ450=\"Yes\",'Enrollment Form'!$CK450=\"\"),\"N\",\"Y\"))","v":"-"},{"$f":"IF(OR('Enrollment Form'!$CL450=\"\",'Enrollment Form'!$CL450=\"No\"),\"-\",IF(AND('Enrollment Form'!$CL450=\"Yes\",'Enrollment Form'!$CM450=\"\"),\"N\",\"Y\"))","v":"-"},{"$f":"IF(OR('Enrollment Form'!$CN450=\"\",'Enrollment Form'!$CN450=\"No\"),\"-\",IF(AND('Enrollment Form'!$CN450=\"Yes\",'Enrollment Form'!$CO450=\"\"),\"N\",\"Y\"))","v":"-"},{"$f":"IF(OR('Enrollment Form'!$CN450=\"\",'Enrollment Form'!$CN450=\"No\"),\"-\",IF(AND('Enrollment Form'!$CN450=\"Yes\",'Enrollment Form'!$CP450=\"\"),\"N\",\"Y\"))","v":"-"},{"$f":"IF('Enrollment Form'!B450<>\"Subscriber\",\"-\",IF(AND('Enrollment Form'!B450=\"Subscriber\",'Enrollment Form'!C450=\"Enroll\",'Enrollment Form'!AA450=\"\"),\"N\",\"Y\"))","v":"-"},{"$f":"IF(OR('Enrollment Form'!B450=\"Subscriber\",'Enrollment Form'!B450=\"\"),\"-\",IF('Enrollment Form'!BP450=\"\",\"N\",\"Y\"))","v":"-"},{"$f":"IF('Enrollment Form'!B450<>\"Subscriber\",\"-\",IF(AND('Enrollment Form'!B450=\"Subscriber\",'Enrollment Form'!G450=\"\"),\"N\",\"Y\"))","v":"-"},{"$f":"IF('Enrollment Form'!A450=\"\",\"\",IF('Enrollment Form'!B450=\"Subscriber\",\"-\",IF(AND('Enrollment Form'!B450<>\"Subscriber\",'Enrollment Form'!G450='Enrollment Form'!H450),\"N\",\"Y\")))","v":""},0]
[451,{"$f":"IF('Enrollment Form'!$A451<>\"\",\"Y\",\"N\")","v":"N"},{"$f":"IF(AND('Enrollment Form'!$B451=\"\",'Enrollment Form'!$C451<>\"\"),\"N\",IF($B444=\"N\",\"\",\"Y\"))","v":""},{"$f":"IF(OR($B444=\"N\",'Enrollment Form'!G451=\"\"),\"\",IF('Enrollment Form'!$B451<>\"Subscriber\",\"\",IF('Enrollment Form'!$G451='Enrollment Form'!$H451,\"Y\",\"N\")))","v":""},{"$f":"IF($B444=\"N\",\"\",IF(AND(COUNTIFS('Enrollment Form'!$H$11:$H$1000,'Enrollment Form'!$H451,'Enrollment Form'!$B$11:$B$1000,'Enrollment Form'!$B451)>1,'Enrollment Form'!$H451<>\"\"),\"N\",\"Y\"))","v":""},{"$f":"IF($B444=\"N\",\"\",IF(LEN('Enrollment Form'!$Y451)=0,\"\",IF(LEN('Enrollment Form'!$Y451)<>5,\"N\",\"Y\")))","v":""},{"$f":"IF($B444=\"N\",\"\",IF(LEN('Enrollment Form'!$AD451=0),\"\",IF(LEN('Enrollment Form'!$AD451)<>5,\"N\",\"Y\")))","v":""},{"$f":"IF($B444=\"N\",\"\",IF(LEN('Enrollment Form'!$BS451=0),\"\",IF(LEN('Enrollment Form'!$BS451)<>5,\"N\",\"Y\")))","v":""},{"$f":"IF($B444=\"N\",\"\",IF(LEN('Enrollment Form'!$AE451)=0,\"\",IF(LEN('Enrollment Form'!$AE451)<>10,\"N\",\"Y\")))","v":""},{"$f":"IF($B444=\"N\",\"\",IF(LEN('Enrollment Form'!$AF451)=0,\"\",IF(LEN('Enrollment Form'!$AF451)<>10,\"N\",\"Y\")))","v":""},{"$f":"IF('Enrollment Form'!$O451<>\"Graded\",\"-\",IF(AND('Enrollment Form'!$O451=\"Graded\",'Enrollment Form'!$AR451<>\"\"),\"Y\",\"N\"))","v":"-"},{"$f":"IF($B444=\"N\",\"\",IF(OR('Enrollment Form'!$B451<>\"Subscriber\",'Enrollment Form'!$C451=\"ROC\"),\"-\",IF(AND('Enrollment Form'!$B451=\"Subscriber\",'Enrollment Form'!$C451=\"Enroll\",'Enrollment Form'!$AJ451<>\"\"),\"Y\",\"N\")))","v":""},{"$f":"IF($B444=\"N\",\"\",IF(OR('Enrollment Form'!$B451<>\"Subscriber\",'Enrollment Form'!$C451=\"ROC\"),\"-\",IF(AND('Enrollment Form'!$B451=\"Subscriber\",'Enrollment Form'!$C451=\"Enroll\",'Enrollment Form'!$AK451<>\"\"),\"Y\",\"N\")))","v":""},{"$f":"IF($B444=\"N\",\"\",IF(OR('Enrollment Form'!$B451<>\"Subscriber\",'Enrollment Form'!$C451=\"ROC\"),\"-\",IF(AND('Enrollment Form'!$B451=\"Subscriber\",'Enrollment Form'!$C451=\"Enroll\",'Enrollment Form'!$AL451<>\"\"),\"Y\",\"N\")))","v":""},{"$f":"IF($B444=\"N\",\"\",IF(OR('Enrollment Form'!$B451<>\"Subscriber\",'Enrollment Form'!$C451=\"ROC\"),\"-\",IF(AND('Enrollment Form'!$B451=\"Subscriber\",'Enrollment Form'!$C451=\"Enroll\",'Enrollment Form'!$AP451<>\"\"),\"Y\",\"N\")))","v":""},{"$f":"IF($B444=\"N\",\"\",IF(OR('Enrollment Form'!$B451<>\"Subscriber\",'Enrollment Form'!$C451=\"ROC\"),\"-\",IF(AND('Enrollment Form'!$B451=\"Subscriber\",'Enrollment Form'!$C451=\"Enroll\",'Enrollment Form'!$AQ451<>\"\"),\"Y\",\"N\")))","v":""},{"$f":"IF($B444=\"N\",\"\",IF(OR('Enrollment Form'!$B451<>\"Subscriber\",'Enrollment Form'!$C451=\"ROC\"),\"-\",IF(AND('Enrollment Form'!$B451=\"Subscriber\",'Enrollment Form'!$C451=\"Enroll\",'Enrollment Form'!$AS451<>\"\"),\"Y\",\"N\")))","v":""},{"$f":"IF($B444=\"N\",\"\",IF($Q444=\"-\",\"-\",IF(AND($Q444=\"Y\",'Enrollment Form'!$AS451=\"No\"),\"-\",IF(AND($Q444=\"Y\",'Enrollment Form'!$AS451=\"Yes\",'Enrollment Form'!$AT451<>\"\"),\"Y\",\"N\"))))","v":""},{"$f":"IF($B444=\"N\",\"\",IF(OR('Enrollment Form'!$B451<>\"Subscriber\",'Enrollment Form'!$C451=\"ROC\"),\"-\",IF(AND('Enrollment Form'!$B451=\"Subscriber\",'Enrollment Form'!$C451=\"Enroll\",'Enrollment Form'!$CV451<>\"\"),\"Y\",\"N\")))","v":""},{"$f":"IF($B444=\"N\",\"\",IF($S444=\"-\",\"-\",IF(AND($S444=\"Y\",'Enrollment Form'!$CV451=\"No\"),\"-\",IF(AND($S444=\"Y\",'Enrollment Form'!$CV451=\"Yes\",'Enrollment Form'!$CW451<>\"\"),\"Y\",\"N\"))))","v":""},{"$f":"IF(OR('Enrollment Form'!$AY451=\"Yes\",'Enrollment Form'!$AY451=\"\"),\"-\",IF(OR(AND('Enrollment Form'!$AY451=\"No\",ISERROR(FIND(\"HMO\",VLOOKUP('Enrollment Form'!G451,'Enrollment Form'!H$11:J$1000,3,FALSE),1))=FALSE,COUNTA('Enrollment Form'!$AZ451:$BC451)=4),AND('Enrollment Form'!$AY451=\"No\",ISERROR(FIND(\"HMO\",VLOOKUP('Enrollment Form'!G451,'Enrollment Form'!H$11:J$1000,3,FALSE),1))=FALSE,COUNTA('Enrollment Form'!$BT451:$BW451)=4)),\"Y\",\"N\"))","v":"-"},{"$f":"IF($B444=\"N\",\"\",IF('Enrollment Form'!$B451=\"Subscriber\",\"-\",IF(COUNTA('Enrollment Form'!$BL451,'Enrollment Form'!$BN451)=2,\"Y\",\"N\")))","v":""},{"$f":"IF($B444=\"N\",\"\",IF(OR('Enrollment Form'!$AX451=\"\",'Enrollment Form'!$AX451=\"No\"),\"-\",IF(AND('Enrollment Form'!$AX451=\"Yes\",COUNTA('Enrollment Form'!$CR451)=1),\"Y\",\"N\")))","v":""},{"$f":"IF(OR('Enrollment Form'!$CR451=\"\",'Enrollment Form'!$CR451=\"No\"),\"-\",IF(COUNTA('Enrollment Form'!$CT451:$CU451)=2,\"Y\",\"N\"))","v":"-"},{"$f":"IF($B444=\"N\",\"\",IF(COUNTIF('Enrollment Form'!$DG451:$DP451,\"Other\")=COUNTA('Enrollment Form'!$DK451,'Enrollment Form'!$DH451,'Enrollment Form'!$DN451,'Enrollment Form'!$DQ451),\"Y\",\"N\"))","v":""},{"$f":"IF($B444=\"N\",\"\",IF(OR('Enrollment Form'!B451<>\"Subscriber\",'Enrollment Form'!C451=\"ROC\",COUNTIF('Enrollment Form'!AV451:AW451,\"Yes\")>=1),\"-\",IF(AND('Enrollment Form'!C451=\"Enroll\",COUNTIF('Enrollment Form'!AV451:AW451,\"No\")=2,'Enrollment Form'!AX451=\"\"),\"N\",\"Y\")))","v":""},{"$f":"IF(OR(B444=\"N\",'Enrollment Form'!B451<>\"Subscriber\",'Enrollment Form'!C451=\"ROC\",'Enrollment Form'!O451<>\"Multiple of Salary\"),\"-\",IF(COUNTA('Enrollment Form'!T451:U451)<2,\"N\",\"Y\"))","v":"-"},{"$f":"IF(B444=\"N\",\"\",IF(OR('Enrollment Form'!C451=\"ROC\",'Enrollment Form'!B451<>\"Subscriber\",'Enrollment Form'!O451=\"Waive\",'Enrollment Form'!O451=\"\"),\"-\",IF('Enrollment Form'!P451=\"\",\"N\",\"Y\")))","v":""},{"$f":"IF($B444=\"N\",\"\",IF(AND('Enrollment Form'!$C451=\"ROC\",'Enrollment Form'!$DR451<>\"\"),\"Y\",IF(AND('Enrollment Form'!$C451=\"ROC\",'Enrollment Form'!$DR451=\"\"),\"N\",IF(AND('Enrollment Form'!$C451=\"Enroll\",'Enrollment Form'!$B451=\"Subscriber\",'Enrollment Form'!$CX451=\"No\",'Enrollment Form'!$DR451=\"\"),\"N\",IF(AND('Enrollment Form'!$C451=\"Enroll\",'Enrollment Form'!$B451=\"Subscriber\",'Enrollment Form'!$CX451=\"Yes\"),\"-\",\"Y\")))))","v":""},{"$f":"IF($B444=\"N\",\"\",IF(AND('Enrollment Form'!$C451=\"ROC\",'Enrollment Form'!$DS451<>\"\"),\"Y\",IF(AND('Enrollment Form'!$C451=\"ROC\",'Enrollment Form'!$DS451=\"\"),\"N\",IF(AND('Enrollment Form'!$C451=\"Enroll\",'Enrollment Form'!$B451=\"Subscriber\",'Enrollment Form'!$CX451=\"No\",'Enrollment Form'!$DS451=\"\"),\"N\",IF(AND('Enrollment Form'!$C451=\"Enroll\",'Enrollment Form'!$B451=\"Subscriber\",'Enrollment Form'!$CX451=\"Yes\"),\"-\",\"Y\")))))","v":""},{"$f":"IF('Enrollment Form'!AH451=\"\",\"\",IF(ISERROR(SEARCH(\".\",'Enrollment Form'!AH451,SEARCH(\"@\",'Enrollment Form'!AH451))),\"N\",\"Y\"))","v":""},{"$f":"IF(OR($B444=\"N\",'Enrollment Form'!$G451=\"\"),\"\",IF('Enrollment Form'!$B451<>\"Subscriber\",\"-\",IF(COUNTIF('Enrollment Form'!$AV451:$AW451,\"Yes\")=2,\"N\",\"Y\")))","v":""},{"$f":"IF(OR('Enrollment Form'!$CJ451=\"\",'Enrollment Form'!$CJ451=\"No\"),\"-\",IF(AND('Enrollment Form'!$CJ451=\"Yes\",'Enrollment Form'!$CK451=\"\"),\"N\",\"Y\"))","v":"-"},{"$f":"IF(OR('Enrollment Form'!$CL451=\"\",'Enrollment Form'!$CL451=\"No\"),\"-\",IF(AND('Enrollment Form'!$CL451=\"Yes\",'Enrollment Form'!$CM451=\"\"),\"N\",\"Y\"))","v":"-"},{"$f":"IF(OR('Enrollment Form'!$CN451=\"\",'Enrollment Form'!$CN451=\"No\"),\"-\",IF(AND('Enrollment Form'!$CN451=\"Yes\",'Enrollment Form'!$CO451=\"\"),\"N\",\"Y\"))","v":"-"},{"$f":"IF(OR('Enrollment Form'!$CN451=\"\",'Enrollment Form'!$CN451=\"No\"),\"-\",IF(AND('Enrollment Form'!$CN451=\"Yes\",'Enrollment Form'!$CP451=\"\"),\"N\",\"Y\"))","v":"-"},{"$f":"IF('Enrollment Form'!B451<>\"Subscriber\",\"-\",IF(AND('Enrollment Form'!B451=\"Subscriber\",'Enrollment Form'!C451=\"Enroll\",'Enrollment Form'!AA451=\"\"),\"N\",\"Y\"))","v":"-"},{"$f":"IF(OR('Enrollment Form'!B451=\"Subscriber\",'Enrollment Form'!B451=\"\"),\"-\",IF('Enrollment Form'!BP451=\"\",\"N\",\"Y\"))","v":"-"},{"$f":"IF('Enrollment Form'!B451<>\"Subscriber\",\"-\",IF(AND('Enrollment Form'!B451=\"Subscriber\",'Enrollment Form'!G451=\"\"),\"N\",\"Y\"))","v":"-"},{"$f":"IF('Enrollment Form'!A451=\"\",\"\",IF('Enrollment Form'!B451=\"Subscriber\",\"-\",IF(AND('Enrollment Form'!B451<>\"Subscriber\",'Enrollment Form'!G451='Enrollment Form'!H451),\"N\",\"Y\")))","v":""},0]
[452,{"$f":"IF('Enrollment Form'!$A452<>\"\",\"Y\",\"N\")","v":"N"},{"$f":"IF(AND('Enrollment Form'!$B452=\"\",'Enrollment Form'!$C452<>\"\"),\"N\",IF($B445=\"N\",\"\",\"Y\"))","v":""},{"$f":"IF(OR($B445=\"N\",'Enrollment Form'!G452=\"\"),\"\",IF('Enrollment Form'!$B452<>\"Subscriber\",\"\",IF('Enrollment Form'!$G452='Enrollment Form'!$H452,\"Y\",\"N\")))","v":""},{"$f":"IF($B445=\"N\",\"\",IF(AND(COUNTIFS('Enrollment Form'!$H$11:$H$1000,'Enrollment Form'!$H452,'Enrollment Form'!$B$11:$B$1000,'Enrollment Form'!$B452)>1,'Enrollment Form'!$H452<>\"\"),\"N\",\"Y\"))","v":""},{"$f":"IF($B445=\"N\",\"\",IF(LEN('Enrollment Form'!$Y452)=0,\"\",IF(LEN('Enrollment Form'!$Y452)<>5,\"N\",\"Y\")))","v":""},{"$f":"IF($B445=\"N\",\"\",IF(LEN('Enrollment Form'!$AD452=0),\"\",IF(LEN('Enrollment Form'!$AD452)<>5,\"N\",\"Y\")))","v":""},{"$f":"IF($B445=\"N\",\"\",IF(LEN('Enrollment Form'!$BS452=0),\"\",IF(LEN('Enrollment Form'!$BS452)<>5,\"N\",\"Y\")))","v":""},{"$f":"IF($B445=\"N\",\"\",IF(LEN('Enrollment Form'!$AE452)=0,\"\",IF(LEN('Enrollment Form'!$AE452)<>10,\"N\",\"Y\")))","v":""},{"$f":"IF($B445=\"N\",\"\",IF(LEN('Enrollment Form'!$AF452)=0,\"\",IF(LEN('Enrollment Form'!$AF452)<>10,\"N\",\"Y\")))","v":""},{"$f":"IF('Enrollment Form'!$O452<>\"Graded\",\"-\",IF(AND('Enrollment Form'!$O452=\"Graded\",'Enrollment Form'!$AR452<>\"\"),\"Y\",\"N\"))","v":"-"},{"$f":"IF($B445=\"N\",\"\",IF(OR('Enrollment Form'!$B452<>\"Subscriber\",'Enrollment Form'!$C452=\"ROC\"),\"-\",IF(AND('Enrollment Form'!$B452=\"Subscriber\",'Enrollment Form'!$C452=\"Enroll\",'Enrollment Form'!$AJ452<>\"\"),\"Y\",\"N\")))","v":""},{"$f":"IF($B445=\"N\",\"\",IF(OR('Enrollment Form'!$B452<>\"Subscriber\",'Enrollment Form'!$C452=\"ROC\"),\"-\",IF(AND('Enrollment Form'!$B452=\"Subscriber\",'Enrollment Form'!$C452=\"Enroll\",'Enrollment Form'!$AK452<>\"\"),\"Y\",\"N\")))","v":""},{"$f":"IF($B445=\"N\",\"\",IF(OR('Enrollment Form'!$B452<>\"Subscriber\",'Enrollment Form'!$C452=\"ROC\"),\"-\",IF(AND('Enrollment Form'!$B452=\"Subscriber\",'Enrollment Form'!$C452=\"Enroll\",'Enrollment Form'!$AL452<>\"\"),\"Y\",\"N\")))","v":""},{"$f":"IF($B445=\"N\",\"\",IF(OR('Enrollment Form'!$B452<>\"Subscriber\",'Enrollment Form'!$C452=\"ROC\"),\"-\",IF(AND('Enrollment Form'!$B452=\"Subscriber\",'Enrollment Form'!$C452=\"Enroll\",'Enrollment Form'!$AP452<>\"\"),\"Y\",\"N\")))","v":""},{"$f":"IF($B445=\"N\",\"\",IF(OR('Enrollment Form'!$B452<>\"Subscriber\",'Enrollment Form'!$C452=\"ROC\"),\"-\",IF(AND('Enrollment Form'!$B452=\"Subscriber\",'Enrollment Form'!$C452=\"Enroll\",'Enrollment Form'!$AQ452<>\"\"),\"Y\",\"N\")))","v":""},{"$f":"IF($B445=\"N\",\"\",IF(OR('Enrollment Form'!$B452<>\"Subscriber\",'Enrollment Form'!$C452=\"ROC\"),\"-\",IF(AND('Enrollment Form'!$B452=\"Subscriber\",'Enrollment Form'!$C452=\"Enroll\",'Enrollment Form'!$AS452<>\"\"),\"Y\",\"N\")))","v":""},{"$f":"IF($B445=\"N\",\"\",IF($Q445=\"-\",\"-\",IF(AND($Q445=\"Y\",'Enrollment Form'!$AS452=\"No\"),\"-\",IF(AND($Q445=\"Y\",'Enrollment Form'!$AS452=\"Yes\",'Enrollment Form'!$AT452<>\"\"),\"Y\",\"N\"))))","v":""},{"$f":"IF($B445=\"N\",\"\",IF(OR('Enrollment Form'!$B452<>\"Subscriber\",'Enrollment Form'!$C452=\"ROC\"),\"-\",IF(AND('Enrollment Form'!$B452=\"Subscriber\",'Enrollment Form'!$C452=\"Enroll\",'Enrollment Form'!$CV452<>\"\"),\"Y\",\"N\")))","v":""},{"$f":"IF($B445=\"N\",\"\",IF($S445=\"-\",\"-\",IF(AND($S445=\"Y\",'Enrollment Form'!$CV452=\"No\"),\"-\",IF(AND($S445=\"Y\",'Enrollment Form'!$CV452=\"Yes\",'Enrollment Form'!$CW452<>\"\"),\"Y\",\"N\"))))","v":""},{"$f":"IF(OR('Enrollment Form'!$AY452=\"Yes\",'Enrollment Form'!$AY452=\"\"),\"-\",IF(OR(AND('Enrollment Form'!$AY452=\"No\",ISERROR(FIND(\"HMO\",VLOOKUP('Enrollment Form'!G452,'Enrollment Form'!H$11:J$1000,3,FALSE),1))=FALSE,COUNTA('Enrollment Form'!$AZ452:$BC452)=4),AND('Enrollment Form'!$AY452=\"No\",ISERROR(FIND(\"HMO\",VLOOKUP('Enrollment Form'!G452,'Enrollment Form'!H$11:J$1000,3,FALSE),1))=FALSE,COUNTA('Enrollment Form'!$BT452:$BW452)=4)),\"Y\",\"N\"))","v":"-"},{"$f":"IF($B445=\"N\",\"\",IF('Enrollment Form'!$B452=\"Subscriber\",\"-\",IF(COUNTA('Enrollment Form'!$BL452,'Enrollment Form'!$BN452)=2,\"Y\",\"N\")))","v":""},{"$f":"IF($B445=\"N\",\"\",IF(OR('Enrollment Form'!$AX452=\"\",'Enrollment Form'!$AX452=\"No\"),\"-\",IF(AND('Enrollment Form'!$AX452=\"Yes\",COUNTA('Enrollment Form'!$CR452)=1),\"Y\",\"N\")))","v":""},{"$f":"IF(OR('Enrollment Form'!$CR452=\"\",'Enrollment Form'!$CR452=\"No\"),\"-\",IF(COUNTA('Enrollment Form'!$CT452:$CU452)=2,\"Y\",\"N\"))","v":"-"},{"$f":"IF($B445=\"N\",\"\",IF(COUNTIF('Enrollment Form'!$DG452:$DP452,\"Other\")=COUNTA('Enrollment Form'!$DK452,'Enrollment Form'!$DH452,'Enrollment Form'!$DN452,'Enrollment Form'!$DQ452),\"Y\",\"N\"))","v":""},{"$f":"IF($B445=\"N\",\"\",IF(OR('Enrollment Form'!B452<>\"Subscriber\",'Enrollment Form'!C452=\"ROC\",COUNTIF('Enrollment Form'!AV452:AW452,\"Yes\")>=1),\"-\",IF(AND('Enrollment Form'!C452=\"Enroll\",COUNTIF('Enrollment Form'!AV452:AW452,\"No\")=2,'Enrollment Form'!AX452=\"\"),\"N\",\"Y\")))","v":""},{"$f":"IF(OR(B445=\"N\",'Enrollment Form'!B452<>\"Subscriber\",'Enrollment Form'!C452=\"ROC\",'Enrollment Form'!O452<>\"Multiple of Salary\"),\"-\",IF(COUNTA('Enrollment Form'!T452:U452)<2,\"N\",\"Y\"))","v":"-"},{"$f":"IF(B445=\"N\",\"\",IF(OR('Enrollment Form'!C452=\"ROC\",'Enrollment Form'!B452<>\"Subscriber\",'Enrollment Form'!O452=\"Waive\",'Enrollment Form'!O452=\"\"),\"-\",IF('Enrollment Form'!P452=\"\",\"N\",\"Y\")))","v":""},{"$f":"IF($B445=\"N\",\"\",IF(AND('Enrollment Form'!$C452=\"ROC\",'Enrollment Form'!$DR452<>\"\"),\"Y\",IF(AND('Enrollment Form'!$C452=\"ROC\",'Enrollment Form'!$DR452=\"\"),\"N\",IF(AND('Enrollment Form'!$C452=\"Enroll\",'Enrollment Form'!$B452=\"Subscriber\",'Enrollment Form'!$CX452=\"No\",'Enrollment Form'!$DR452=\"\"),\"N\",IF(AND('Enrollment Form'!$C452=\"Enroll\",'Enrollment Form'!$B452=\"Subscriber\",'Enrollment Form'!$CX452=\"Yes\"),\"-\",\"Y\")))))","v":""},{"$f":"IF($B445=\"N\",\"\",IF(AND('Enrollment Form'!$C452=\"ROC\",'Enrollment Form'!$DS452<>\"\"),\"Y\",IF(AND('Enrollment Form'!$C452=\"ROC\",'Enrollment Form'!$DS452=\"\"),\"N\",IF(AND('Enrollment Form'!$C452=\"Enroll\",'Enrollment Form'!$B452=\"Subscriber\",'Enrollment Form'!$CX452=\"No\",'Enrollment Form'!$DS452=\"\"),\"N\",IF(AND('Enrollment Form'!$C452=\"Enroll\",'Enrollment Form'!$B452=\"Subscriber\",'Enrollment Form'!$CX452=\"Yes\"),\"-\",\"Y\")))))","v":""},{"$f":"IF('Enrollment Form'!AH452=\"\",\"\",IF(ISERROR(SEARCH(\".\",'Enrollment Form'!AH452,SEARCH(\"@\",'Enrollment Form'!AH452))),\"N\",\"Y\"))","v":""},{"$f":"IF(OR($B445=\"N\",'Enrollment Form'!$G452=\"\"),\"\",IF('Enrollment Form'!$B452<>\"Subscriber\",\"-\",IF(COUNTIF('Enrollment Form'!$AV452:$AW452,\"Yes\")=2,\"N\",\"Y\")))","v":""},{"$f":"IF(OR('Enrollment Form'!$CJ452=\"\",'Enrollment Form'!$CJ452=\"No\"),\"-\",IF(AND('Enrollment Form'!$CJ452=\"Yes\",'Enrollment Form'!$CK452=\"\"),\"N\",\"Y\"))","v":"-"},{"$f":"IF(OR('Enrollment Form'!$CL452=\"\",'Enrollment Form'!$CL452=\"No\"),\"-\",IF(AND('Enrollment Form'!$CL452=\"Yes\",'Enrollment Form'!$CM452=\"\"),\"N\",\"Y\"))","v":"-"},{"$f":"IF(OR('Enrollment Form'!$CN452=\"\",'Enrollment Form'!$CN452=\"No\"),\"-\",IF(AND('Enrollment Form'!$CN452=\"Yes\",'Enrollment Form'!$CO452=\"\"),\"N\",\"Y\"))","v":"-"},{"$f":"IF(OR('Enrollment Form'!$CN452=\"\",'Enrollment Form'!$CN452=\"No\"),\"-\",IF(AND('Enrollment Form'!$CN452=\"Yes\",'Enrollment Form'!$CP452=\"\"),\"N\",\"Y\"))","v":"-"},{"$f":"IF('Enrollment Form'!B452<>\"Subscriber\",\"-\",IF(AND('Enrollment Form'!B452=\"Subscriber\",'Enrollment Form'!C452=\"Enroll\",'Enrollment Form'!AA452=\"\"),\"N\",\"Y\"))","v":"-"},{"$f":"IF(OR('Enrollment Form'!B452=\"Subscriber\",'Enrollment Form'!B452=\"\"),\"-\",IF('Enrollment Form'!BP452=\"\",\"N\",\"Y\"))","v":"-"},{"$f":"IF('Enrollment Form'!B452<>\"Subscriber\",\"-\",IF(AND('Enrollment Form'!B452=\"Subscriber\",'Enrollment Form'!G452=\"\"),\"N\",\"Y\"))","v":"-"},{"$f":"IF('Enrollment Form'!A452=\"\",\"\",IF('Enrollment Form'!B452=\"Subscriber\",\"-\",IF(AND('Enrollment Form'!B452<>\"Subscriber\",'Enrollment Form'!G452='Enrollment Form'!H452),\"N\",\"Y\")))","v":""},0]
[453,{"$f":"IF('Enrollment Form'!$A453<>\"\",\"Y\",\"N\")","v":"N"},{"$f":"IF(AND('Enrollment Form'!$B453=\"\",'Enrollment Form'!$C453<>\"\"),\"N\",IF($B446=\"N\",\"\",\"Y\"))","v":""},{"$f":"IF(OR($B446=\"N\",'Enrollment Form'!G453=\"\"),\"\",IF('Enrollment Form'!$B453<>\"Subscriber\",\"\",IF('Enrollment Form'!$G453='Enrollment Form'!$H453,\"Y\",\"N\")))","v":""},{"$f":"IF($B446=\"N\",\"\",IF(AND(COUNTIFS('Enrollment Form'!$H$11:$H$1000,'Enrollment Form'!$H453,'Enrollment Form'!$B$11:$B$1000,'Enrollment Form'!$B453)>1,'Enrollment Form'!$H453<>\"\"),\"N\",\"Y\"))","v":""},{"$f":"IF($B446=\"N\",\"\",IF(LEN('Enrollment Form'!$Y453)=0,\"\",IF(LEN('Enrollment Form'!$Y453)<>5,\"N\",\"Y\")))","v":""},{"$f":"IF($B446=\"N\",\"\",IF(LEN('Enrollment Form'!$AD453=0),\"\",IF(LEN('Enrollment Form'!$AD453)<>5,\"N\",\"Y\")))","v":""},{"$f":"IF($B446=\"N\",\"\",IF(LEN('Enrollment Form'!$BS453=0),\"\",IF(LEN('Enrollment Form'!$BS453)<>5,\"N\",\"Y\")))","v":""},{"$f":"IF($B446=\"N\",\"\",IF(LEN('Enrollment Form'!$AE453)=0,\"\",IF(LEN('Enrollment Form'!$AE453)<>10,\"N\",\"Y\")))","v":""},{"$f":"IF($B446=\"N\",\"\",IF(LEN('Enrollment Form'!$AF453)=0,\"\",IF(LEN('Enrollment Form'!$AF453)<>10,\"N\",\"Y\")))","v":""},{"$f":"IF('Enrollment Form'!$O453<>\"Graded\",\"-\",IF(AND('Enrollment Form'!$O453=\"Graded\",'Enrollment Form'!$AR453<>\"\"),\"Y\",\"N\"))","v":"-"},{"$f":"IF($B446=\"N\",\"\",IF(OR('Enrollment Form'!$B453<>\"Subscriber\",'Enrollment Form'!$C453=\"ROC\"),\"-\",IF(AND('Enrollment Form'!$B453=\"Subscriber\",'Enrollment Form'!$C453=\"Enroll\",'Enrollment Form'!$AJ453<>\"\"),\"Y\",\"N\")))","v":""},{"$f":"IF($B446=\"N\",\"\",IF(OR('Enrollment Form'!$B453<>\"Subscriber\",'Enrollment Form'!$C453=\"ROC\"),\"-\",IF(AND('Enrollment Form'!$B453=\"Subscriber\",'Enrollment Form'!$C453=\"Enroll\",'Enrollment Form'!$AK453<>\"\"),\"Y\",\"N\")))","v":""},{"$f":"IF($B446=\"N\",\"\",IF(OR('Enrollment Form'!$B453<>\"Subscriber\",'Enrollment Form'!$C453=\"ROC\"),\"-\",IF(AND('Enrollment Form'!$B453=\"Subscriber\",'Enrollment Form'!$C453=\"Enroll\",'Enrollment Form'!$AL453<>\"\"),\"Y\",\"N\")))","v":""},{"$f":"IF($B446=\"N\",\"\",IF(OR('Enrollment Form'!$B453<>\"Subscriber\",'Enrollment Form'!$C453=\"ROC\"),\"-\",IF(AND('Enrollment Form'!$B453=\"Subscriber\",'Enrollment Form'!$C453=\"Enroll\",'Enrollment Form'!$AP453<>\"\"),\"Y\",\"N\")))","v":""},{"$f":"IF($B446=\"N\",\"\",IF(OR('Enrollment Form'!$B453<>\"Subscriber\",'Enrollment Form'!$C453=\"ROC\"),\"-\",IF(AND('Enrollment Form'!$B453=\"Subscriber\",'Enrollment Form'!$C453=\"Enroll\",'Enrollment Form'!$AQ453<>\"\"),\"Y\",\"N\")))","v":""},{"$f":"IF($B446=\"N\",\"\",IF(OR('Enrollment Form'!$B453<>\"Subscriber\",'Enrollment Form'!$C453=\"ROC\"),\"-\",IF(AND('Enrollment Form'!$B453=\"Subscriber\",'Enrollment Form'!$C453=\"Enroll\",'Enrollment Form'!$AS453<>\"\"),\"Y\",\"N\")))","v":""},{"$f":"IF($B446=\"N\",\"\",IF($Q446=\"-\",\"-\",IF(AND($Q446=\"Y\",'Enrollment Form'!$AS453=\"No\"),\"-\",IF(AND($Q446=\"Y\",'Enrollment Form'!$AS453=\"Yes\",'Enrollment Form'!$AT453<>\"\"),\"Y\",\"N\"))))","v":""},{"$f":"IF($B446=\"N\",\"\",IF(OR('Enrollment Form'!$B453<>\"Subscriber\",'Enrollment Form'!$C453=\"ROC\"),\"-\",IF(AND('Enrollment Form'!$B453=\"Subscriber\",'Enrollment Form'!$C453=\"Enroll\",'Enrollment Form'!$CV453<>\"\"),\"Y\",\"N\")))","v":""},{"$f":"IF($B446=\"N\",\"\",IF($S446=\"-\",\"-\",IF(AND($S446=\"Y\",'Enrollment Form'!$CV453=\"No\"),\"-\",IF(AND($S446=\"Y\",'Enrollment Form'!$CV453=\"Yes\",'Enrollment Form'!$CW453<>\"\"),\"Y\",\"N\"))))","v":""},{"$f":"IF(OR('Enrollment Form'!$AY453=\"Yes\",'Enrollment Form'!$AY453=\"\"),\"-\",IF(OR(AND('Enrollment Form'!$AY453=\"No\",ISERROR(FIND(\"HMO\",VLOOKUP('Enrollment Form'!G453,'Enrollment Form'!H$11:J$1000,3,FALSE),1))=FALSE,COUNTA('Enrollment Form'!$AZ453:$BC453)=4),AND('Enrollment Form'!$AY453=\"No\",ISERROR(FIND(\"HMO\",VLOOKUP('Enrollment Form'!G453,'Enrollment Form'!H$11:J$1000,3,FALSE),1))=FALSE,COUNTA('Enrollment Form'!$BT453:$BW453)=4)),\"Y\",\"N\"))","v":"-"},{"$f":"IF($B446=\"N\",\"\",IF('Enrollment Form'!$B453=\"Subscriber\",\"-\",IF(COUNTA('Enrollment Form'!$BL453,'Enrollment Form'!$BN453)=2,\"Y\",\"N\")))","v":""},{"$f":"IF($B446=\"N\",\"\",IF(OR('Enrollment Form'!$AX453=\"\",'Enrollment Form'!$AX453=\"No\"),\"-\",IF(AND('Enrollment Form'!$AX453=\"Yes\",COUNTA('Enrollment Form'!$CR453)=1),\"Y\",\"N\")))","v":""},{"$f":"IF(OR('Enrollment Form'!$CR453=\"\",'Enrollment Form'!$CR453=\"No\"),\"-\",IF(COUNTA('Enrollment Form'!$CT453:$CU453)=2,\"Y\",\"N\"))","v":"-"},{"$f":"IF($B446=\"N\",\"\",IF(COUNTIF('Enrollment Form'!$DG453:$DP453,\"Other\")=COUNTA('Enrollment Form'!$DK453,'Enrollment Form'!$DH453,'Enrollment Form'!$DN453,'Enrollment Form'!$DQ453),\"Y\",\"N\"))","v":""},{"$f":"IF($B446=\"N\",\"\",IF(OR('Enrollment Form'!B453<>\"Subscriber\",'Enrollment Form'!C453=\"ROC\",COUNTIF('Enrollment Form'!AV453:AW453,\"Yes\")>=1),\"-\",IF(AND('Enrollment Form'!C453=\"Enroll\",COUNTIF('Enrollment Form'!AV453:AW453,\"No\")=2,'Enrollment Form'!AX453=\"\"),\"N\",\"Y\")))","v":""},{"$f":"IF(OR(B446=\"N\",'Enrollment Form'!B453<>\"Subscriber\",'Enrollment Form'!C453=\"ROC\",'Enrollment Form'!O453<>\"Multiple of Salary\"),\"-\",IF(COUNTA('Enrollment Form'!T453:U453)<2,\"N\",\"Y\"))","v":"-"},{"$f":"IF(B446=\"N\",\"\",IF(OR('Enrollment Form'!C453=\"ROC\",'Enrollment Form'!B453<>\"Subscriber\",'Enrollment Form'!O453=\"Waive\",'Enrollment Form'!O453=\"\"),\"-\",IF('Enrollment Form'!P453=\"\",\"N\",\"Y\")))","v":""},{"$f":"IF($B446=\"N\",\"\",IF(AND('Enrollment Form'!$C453=\"ROC\",'Enrollment Form'!$DR453<>\"\"),\"Y\",IF(AND('Enrollment Form'!$C453=\"ROC\",'Enrollment Form'!$DR453=\"\"),\"N\",IF(AND('Enrollment Form'!$C453=\"Enroll\",'Enrollment Form'!$B453=\"Subscriber\",'Enrollment Form'!$CX453=\"No\",'Enrollment Form'!$DR453=\"\"),\"N\",IF(AND('Enrollment Form'!$C453=\"Enroll\",'Enrollment Form'!$B453=\"Subscriber\",'Enrollment Form'!$CX453=\"Yes\"),\"-\",\"Y\")))))","v":""},{"$f":"IF($B446=\"N\",\"\",IF(AND('Enrollment Form'!$C453=\"ROC\",'Enrollment Form'!$DS453<>\"\"),\"Y\",IF(AND('Enrollment Form'!$C453=\"ROC\",'Enrollment Form'!$DS453=\"\"),\"N\",IF(AND('Enrollment Form'!$C453=\"Enroll\",'Enrollment Form'!$B453=\"Subscriber\",'Enrollment Form'!$CX453=\"No\",'Enrollment Form'!$DS453=\"\"),\"N\",IF(AND('Enrollment Form'!$C453=\"Enroll\",'Enrollment Form'!$B453=\"Subscriber\",'Enrollment Form'!$CX453=\"Yes\"),\"-\",\"Y\")))))","v":""},{"$f":"IF('Enrollment Form'!AH453=\"\",\"\",IF(ISERROR(SEARCH(\".\",'Enrollment Form'!AH453,SEARCH(\"@\",'Enrollment Form'!AH453))),\"N\",\"Y\"))","v":""},{"$f":"IF(OR($B446=\"N\",'Enrollment Form'!$G453=\"\"),\"\",IF('Enrollment Form'!$B453<>\"Subscriber\",\"-\",IF(COUNTIF('Enrollment Form'!$AV453:$AW453,\"Yes\")=2,\"N\",\"Y\")))","v":""},{"$f":"IF(OR('Enrollment Form'!$CJ453=\"\",'Enrollment Form'!$CJ453=\"No\"),\"-\",IF(AND('Enrollment Form'!$CJ453=\"Yes\",'Enrollment Form'!$CK453=\"\"),\"N\",\"Y\"))","v":"-"},{"$f":"IF(OR('Enrollment Form'!$CL453=\"\",'Enrollment Form'!$CL453=\"No\"),\"-\",IF(AND('Enrollment Form'!$CL453=\"Yes\",'Enrollment Form'!$CM453=\"\"),\"N\",\"Y\"))","v":"-"},{"$f":"IF(OR('Enrollment Form'!$CN453=\"\",'Enrollment Form'!$CN453=\"No\"),\"-\",IF(AND('Enrollment Form'!$CN453=\"Yes\",'Enrollment Form'!$CO453=\"\"),\"N\",\"Y\"))","v":"-"},{"$f":"IF(OR('Enrollment Form'!$CN453=\"\",'Enrollment Form'!$CN453=\"No\"),\"-\",IF(AND('Enrollment Form'!$CN453=\"Yes\",'Enrollment Form'!$CP453=\"\"),\"N\",\"Y\"))","v":"-"},{"$f":"IF('Enrollment Form'!B453<>\"Subscriber\",\"-\",IF(AND('Enrollment Form'!B453=\"Subscriber\",'Enrollment Form'!C453=\"Enroll\",'Enrollment Form'!AA453=\"\"),\"N\",\"Y\"))","v":"-"},{"$f":"IF(OR('Enrollment Form'!B453=\"Subscriber\",'Enrollment Form'!B453=\"\"),\"-\",IF('Enrollment Form'!BP453=\"\",\"N\",\"Y\"))","v":"-"},{"$f":"IF('Enrollment Form'!B453<>\"Subscriber\",\"-\",IF(AND('Enrollment Form'!B453=\"Subscriber\",'Enrollment Form'!G453=\"\"),\"N\",\"Y\"))","v":"-"},{"$f":"IF('Enrollment Form'!A453=\"\",\"\",IF('Enrollment Form'!B453=\"Subscriber\",\"-\",IF(AND('Enrollment Form'!B453<>\"Subscriber\",'Enrollment Form'!G453='Enrollment Form'!H453),\"N\",\"Y\")))","v":""},0]
[454,{"$f":"IF('Enrollment Form'!$A454<>\"\",\"Y\",\"N\")","v":"N"},{"$f":"IF(AND('Enrollment Form'!$B454=\"\",'Enrollment Form'!$C454<>\"\"),\"N\",IF($B447=\"N\",\"\",\"Y\"))","v":""},{"$f":"IF(OR($B447=\"N\",'Enrollment Form'!G454=\"\"),\"\",IF('Enrollment Form'!$B454<>\"Subscriber\",\"\",IF('Enrollment Form'!$G454='Enrollment Form'!$H454,\"Y\",\"N\")))","v":""},{"$f":"IF($B447=\"N\",\"\",IF(AND(COUNTIFS('Enrollment Form'!$H$11:$H$1000,'Enrollment Form'!$H454,'Enrollment Form'!$B$11:$B$1000,'Enrollment Form'!$B454)>1,'Enrollment Form'!$H454<>\"\"),\"N\",\"Y\"))","v":""},{"$f":"IF($B447=\"N\",\"\",IF(LEN('Enrollment Form'!$Y454)=0,\"\",IF(LEN('Enrollment Form'!$Y454)<>5,\"N\",\"Y\")))","v":""},{"$f":"IF($B447=\"N\",\"\",IF(LEN('Enrollment Form'!$AD454=0),\"\",IF(LEN('Enrollment Form'!$AD454)<>5,\"N\",\"Y\")))","v":""},{"$f":"IF($B447=\"N\",\"\",IF(LEN('Enrollment Form'!$BS454=0),\"\",IF(LEN('Enrollment Form'!$BS454)<>5,\"N\",\"Y\")))","v":""},{"$f":"IF($B447=\"N\",\"\",IF(LEN('Enrollment Form'!$AE454)=0,\"\",IF(LEN('Enrollment Form'!$AE454)<>10,\"N\",\"Y\")))","v":""},{"$f":"IF($B447=\"N\",\"\",IF(LEN('Enrollment Form'!$AF454)=0,\"\",IF(LEN('Enrollment Form'!$AF454)<>10,\"N\",\"Y\")))","v":""},{"$f":"IF('Enrollment Form'!$O454<>\"Graded\",\"-\",IF(AND('Enrollment Form'!$O454=\"Graded\",'Enrollment Form'!$AR454<>\"\"),\"Y\",\"N\"))","v":"-"},{"$f":"IF($B447=\"N\",\"\",IF(OR('Enrollment Form'!$B454<>\"Subscriber\",'Enrollment Form'!$C454=\"ROC\"),\"-\",IF(AND('Enrollment Form'!$B454=\"Subscriber\",'Enrollment Form'!$C454=\"Enroll\",'Enrollment Form'!$AJ454<>\"\"),\"Y\",\"N\")))","v":""},{"$f":"IF($B447=\"N\",\"\",IF(OR('Enrollment Form'!$B454<>\"Subscriber\",'Enrollment Form'!$C454=\"ROC\"),\"-\",IF(AND('Enrollment Form'!$B454=\"Subscriber\",'Enrollment Form'!$C454=\"Enroll\",'Enrollment Form'!$AK454<>\"\"),\"Y\",\"N\")))","v":""},{"$f":"IF($B447=\"N\",\"\",IF(OR('Enrollment Form'!$B454<>\"Subscriber\",'Enrollment Form'!$C454=\"ROC\"),\"-\",IF(AND('Enrollment Form'!$B454=\"Subscriber\",'Enrollment Form'!$C454=\"Enroll\",'Enrollment Form'!$AL454<>\"\"),\"Y\",\"N\")))","v":""},{"$f":"IF($B447=\"N\",\"\",IF(OR('Enrollment Form'!$B454<>\"Subscriber\",'Enrollment Form'!$C454=\"ROC\"),\"-\",IF(AND('Enrollment Form'!$B454=\"Subscriber\",'Enrollment Form'!$C454=\"Enroll\",'Enrollment Form'!$AP454<>\"\"),\"Y\",\"N\")))","v":""},{"$f":"IF($B447=\"N\",\"\",IF(OR('Enrollment Form'!$B454<>\"Subscriber\",'Enrollment Form'!$C454=\"ROC\"),\"-\",IF(AND('Enrollment Form'!$B454=\"Subscriber\",'Enrollment Form'!$C454=\"Enroll\",'Enrollment Form'!$AQ454<>\"\"),\"Y\",\"N\")))","v":""},{"$f":"IF($B447=\"N\",\"\",IF(OR('Enrollment Form'!$B454<>\"Subscriber\",'Enrollment Form'!$C454=\"ROC\"),\"-\",IF(AND('Enrollment Form'!$B454=\"Subscriber\",'Enrollment Form'!$C454=\"Enroll\",'Enrollment Form'!$AS454<>\"\"),\"Y\",\"N\")))","v":""},{"$f":"IF($B447=\"N\",\"\",IF($Q447=\"-\",\"-\",IF(AND($Q447=\"Y\",'Enrollment Form'!$AS454=\"No\"),\"-\",IF(AND($Q447=\"Y\",'Enrollment Form'!$AS454=\"Yes\",'Enrollment Form'!$AT454<>\"\"),\"Y\",\"N\"))))","v":""},{"$f":"IF($B447=\"N\",\"\",IF(OR('Enrollment Form'!$B454<>\"Subscriber\",'Enrollment Form'!$C454=\"ROC\"),\"-\",IF(AND('Enrollment Form'!$B454=\"Subscriber\",'Enrollment Form'!$C454=\"Enroll\",'Enrollment Form'!$CV454<>\"\"),\"Y\",\"N\")))","v":""},{"$f":"IF($B447=\"N\",\"\",IF($S447=\"-\",\"-\",IF(AND($S447=\"Y\",'Enrollment Form'!$CV454=\"No\"),\"-\",IF(AND($S447=\"Y\",'Enrollment Form'!$CV454=\"Yes\",'Enrollment Form'!$CW454<>\"\"),\"Y\",\"N\"))))","v":""},{"$f":"IF(OR('Enrollment Form'!$AY454=\"Yes\",'Enrollment Form'!$AY454=\"\"),\"-\",IF(OR(AND('Enrollment Form'!$AY454=\"No\",ISERROR(FIND(\"HMO\",VLOOKUP('Enrollment Form'!G454,'Enrollment Form'!H$11:J$1000,3,FALSE),1))=FALSE,COUNTA('Enrollment Form'!$AZ454:$BC454)=4),AND('Enrollment Form'!$AY454=\"No\",ISERROR(FIND(\"HMO\",VLOOKUP('Enrollment Form'!G454,'Enrollment Form'!H$11:J$1000,3,FALSE),1))=FALSE,COUNTA('Enrollment Form'!$BT454:$BW454)=4)),\"Y\",\"N\"))","v":"-"},{"$f":"IF($B447=\"N\",\"\",IF('Enrollment Form'!$B454=\"Subscriber\",\"-\",IF(COUNTA('Enrollment Form'!$BL454,'Enrollment Form'!$BN454)=2,\"Y\",\"N\")))","v":""},{"$f":"IF($B447=\"N\",\"\",IF(OR('Enrollment Form'!$AX454=\"\",'Enrollment Form'!$AX454=\"No\"),\"-\",IF(AND('Enrollment Form'!$AX454=\"Yes\",COUNTA('Enrollment Form'!$CR454)=1),\"Y\",\"N\")))","v":""},{"$f":"IF(OR('Enrollment Form'!$CR454=\"\",'Enrollment Form'!$CR454=\"No\"),\"-\",IF(COUNTA('Enrollment Form'!$CT454:$CU454)=2,\"Y\",\"N\"))","v":"-"},{"$f":"IF($B447=\"N\",\"\",IF(COUNTIF('Enrollment Form'!$DG454:$DP454,\"Other\")=COUNTA('Enrollment Form'!$DK454,'Enrollment Form'!$DH454,'Enrollment Form'!$DN454,'Enrollment Form'!$DQ454),\"Y\",\"N\"))","v":""},{"$f":"IF($B447=\"N\",\"\",IF(OR('Enrollment Form'!B454<>\"Subscriber\",'Enrollment Form'!C454=\"ROC\",COUNTIF('Enrollment Form'!AV454:AW454,\"Yes\")>=1),\"-\",IF(AND('Enrollment Form'!C454=\"Enroll\",COUNTIF('Enrollment Form'!AV454:AW454,\"No\")=2,'Enrollment Form'!AX454=\"\"),\"N\",\"Y\")))","v":""},{"$f":"IF(OR(B447=\"N\",'Enrollment Form'!B454<>\"Subscriber\",'Enrollment Form'!C454=\"ROC\",'Enrollment Form'!O454<>\"Multiple of Salary\"),\"-\",IF(COUNTA('Enrollment Form'!T454:U454)<2,\"N\",\"Y\"))","v":"-"},{"$f":"IF(B447=\"N\",\"\",IF(OR('Enrollment Form'!C454=\"ROC\",'Enrollment Form'!B454<>\"Subscriber\",'Enrollment Form'!O454=\"Waive\",'Enrollment Form'!O454=\"\"),\"-\",IF('Enrollment Form'!P454=\"\",\"N\",\"Y\")))","v":""},{"$f":"IF($B447=\"N\",\"\",IF(AND('Enrollment Form'!$C454=\"ROC\",'Enrollment Form'!$DR454<>\"\"),\"Y\",IF(AND('Enrollment Form'!$C454=\"ROC\",'Enrollment Form'!$DR454=\"\"),\"N\",IF(AND('Enrollment Form'!$C454=\"Enroll\",'Enrollment Form'!$B454=\"Subscriber\",'Enrollment Form'!$CX454=\"No\",'Enrollment Form'!$DR454=\"\"),\"N\",IF(AND('Enrollment Form'!$C454=\"Enroll\",'Enrollment Form'!$B454=\"Subscriber\",'Enrollment Form'!$CX454=\"Yes\"),\"-\",\"Y\")))))","v":""},{"$f":"IF($B447=\"N\",\"\",IF(AND('Enrollment Form'!$C454=\"ROC\",'Enrollment Form'!$DS454<>\"\"),\"Y\",IF(AND('Enrollment Form'!$C454=\"ROC\",'Enrollment Form'!$DS454=\"\"),\"N\",IF(AND('Enrollment Form'!$C454=\"Enroll\",'Enrollment Form'!$B454=\"Subscriber\",'Enrollment Form'!$CX454=\"No\",'Enrollment Form'!$DS454=\"\"),\"N\",IF(AND('Enrollment Form'!$C454=\"Enroll\",'Enrollment Form'!$B454=\"Subscriber\",'Enrollment Form'!$CX454=\"Yes\"),\"-\",\"Y\")))))","v":""},{"$f":"IF('Enrollment Form'!AH454=\"\",\"\",IF(ISERROR(SEARCH(\".\",'Enrollment Form'!AH454,SEARCH(\"@\",'Enrollment Form'!AH454))),\"N\",\"Y\"))","v":""},{"$f":"IF(OR($B447=\"N\",'Enrollment Form'!$G454=\"\"),\"\",IF('Enrollment Form'!$B454<>\"Subscriber\",\"-\",IF(COUNTIF('Enrollment Form'!$AV454:$AW454,\"Yes\")=2,\"N\",\"Y\")))","v":""},{"$f":"IF(OR('Enrollment Form'!$CJ454=\"\",'Enrollment Form'!$CJ454=\"No\"),\"-\",IF(AND('Enrollment Form'!$CJ454=\"Yes\",'Enrollment Form'!$CK454=\"\"),\"N\",\"Y\"))","v":"-"},{"$f":"IF(OR('Enrollment Form'!$CL454=\"\",'Enrollment Form'!$CL454=\"No\"),\"-\",IF(AND('Enrollment Form'!$CL454=\"Yes\",'Enrollment Form'!$CM454=\"\"),\"N\",\"Y\"))","v":"-"},{"$f":"IF(OR('Enrollment Form'!$CN454=\"\",'Enrollment Form'!$CN454=\"No\"),\"-\",IF(AND('Enrollment Form'!$CN454=\"Yes\",'Enrollment Form'!$CO454=\"\"),\"N\",\"Y\"))","v":"-"},{"$f":"IF(OR('Enrollment Form'!$CN454=\"\",'Enrollment Form'!$CN454=\"No\"),\"-\",IF(AND('Enrollment Form'!$CN454=\"Yes\",'Enrollment Form'!$CP454=\"\"),\"N\",\"Y\"))","v":"-"},{"$f":"IF('Enrollment Form'!B454<>\"Subscriber\",\"-\",IF(AND('Enrollment Form'!B454=\"Subscriber\",'Enrollment Form'!C454=\"Enroll\",'Enrollment Form'!AA454=\"\"),\"N\",\"Y\"))","v":"-"},{"$f":"IF(OR('Enrollment Form'!B454=\"Subscriber\",'Enrollment Form'!B454=\"\"),\"-\",IF('Enrollment Form'!BP454=\"\",\"N\",\"Y\"))","v":"-"},{"$f":"IF('Enrollment Form'!B454<>\"Subscriber\",\"-\",IF(AND('Enrollment Form'!B454=\"Subscriber\",'Enrollment Form'!G454=\"\"),\"N\",\"Y\"))","v":"-"},{"$f":"IF('Enrollment Form'!A454=\"\",\"\",IF('Enrollment Form'!B454=\"Subscriber\",\"-\",IF(AND('Enrollment Form'!B454<>\"Subscriber\",'Enrollment Form'!G454='Enrollment Form'!H454),\"N\",\"Y\")))","v":""},0]
[455,{"$f":"IF('Enrollment Form'!$A455<>\"\",\"Y\",\"N\")","v":"N"},{"$f":"IF(AND('Enrollment Form'!$B455=\"\",'Enrollment Form'!$C455<>\"\"),\"N\",IF($B448=\"N\",\"\",\"Y\"))","v":""},{"$f":"IF(OR($B448=\"N\",'Enrollment Form'!G455=\"\"),\"\",IF('Enrollment Form'!$B455<>\"Subscriber\",\"\",IF('Enrollment Form'!$G455='Enrollment Form'!$H455,\"Y\",\"N\")))","v":""},{"$f":"IF($B448=\"N\",\"\",IF(AND(COUNTIFS('Enrollment Form'!$H$11:$H$1000,'Enrollment Form'!$H455,'Enrollment Form'!$B$11:$B$1000,'Enrollment Form'!$B455)>1,'Enrollment Form'!$H455<>\"\"),\"N\",\"Y\"))","v":""},{"$f":"IF($B448=\"N\",\"\",IF(LEN('Enrollment Form'!$Y455)=0,\"\",IF(LEN('Enrollment Form'!$Y455)<>5,\"N\",\"Y\")))","v":""},{"$f":"IF($B448=\"N\",\"\",IF(LEN('Enrollment Form'!$AD455=0),\"\",IF(LEN('Enrollment Form'!$AD455)<>5,\"N\",\"Y\")))","v":""},{"$f":"IF($B448=\"N\",\"\",IF(LEN('Enrollment Form'!$BS455=0),\"\",IF(LEN('Enrollment Form'!$BS455)<>5,\"N\",\"Y\")))","v":""},{"$f":"IF($B448=\"N\",\"\",IF(LEN('Enrollment Form'!$AE455)=0,\"\",IF(LEN('Enrollment Form'!$AE455)<>10,\"N\",\"Y\")))","v":""},{"$f":"IF($B448=\"N\",\"\",IF(LEN('Enrollment Form'!$AF455)=0,\"\",IF(LEN('Enrollment Form'!$AF455)<>10,\"N\",\"Y\")))","v":""},{"$f":"IF('Enrollment Form'!$O455<>\"Graded\",\"-\",IF(AND('Enrollment Form'!$O455=\"Graded\",'Enrollment Form'!$AR455<>\"\"),\"Y\",\"N\"))","v":"-"},{"$f":"IF($B448=\"N\",\"\",IF(OR('Enrollment Form'!$B455<>\"Subscriber\",'Enrollment Form'!$C455=\"ROC\"),\"-\",IF(AND('Enrollment Form'!$B455=\"Subscriber\",'Enrollment Form'!$C455=\"Enroll\",'Enrollment Form'!$AJ455<>\"\"),\"Y\",\"N\")))","v":""},{"$f":"IF($B448=\"N\",\"\",IF(OR('Enrollment Form'!$B455<>\"Subscriber\",'Enrollment Form'!$C455=\"ROC\"),\"-\",IF(AND('Enrollment Form'!$B455=\"Subscriber\",'Enrollment Form'!$C455=\"Enroll\",'Enrollment Form'!$AK455<>\"\"),\"Y\",\"N\")))","v":""},{"$f":"IF($B448=\"N\",\"\",IF(OR('Enrollment Form'!$B455<>\"Subscriber\",'Enrollment Form'!$C455=\"ROC\"),\"-\",IF(AND('Enrollment Form'!$B455=\"Subscriber\",'Enrollment Form'!$C455=\"Enroll\",'Enrollment Form'!$AL455<>\"\"),\"Y\",\"N\")))","v":""},{"$f":"IF($B448=\"N\",\"\",IF(OR('Enrollment Form'!$B455<>\"Subscriber\",'Enrollment Form'!$C455=\"ROC\"),\"-\",IF(AND('Enrollment Form'!$B455=\"Subscriber\",'Enrollment Form'!$C455=\"Enroll\",'Enrollment Form'!$AP455<>\"\"),\"Y\",\"N\")))","v":""},{"$f":"IF($B448=\"N\",\"\",IF(OR('Enrollment Form'!$B455<>\"Subscriber\",'Enrollment Form'!$C455=\"ROC\"),\"-\",IF(AND('Enrollment Form'!$B455=\"Subscriber\",'Enrollment Form'!$C455=\"Enroll\",'Enrollment Form'!$AQ455<>\"\"),\"Y\",\"N\")))","v":""},{"$f":"IF($B448=\"N\",\"\",IF(OR('Enrollment Form'!$B455<>\"Subscriber\",'Enrollment Form'!$C455=\"ROC\"),\"-\",IF(AND('Enrollment Form'!$B455=\"Subscriber\",'Enrollment Form'!$C455=\"Enroll\",'Enrollment Form'!$AS455<>\"\"),\"Y\",\"N\")))","v":""},{"$f":"IF($B448=\"N\",\"\",IF($Q448=\"-\",\"-\",IF(AND($Q448=\"Y\",'Enrollment Form'!$AS455=\"No\"),\"-\",IF(AND($Q448=\"Y\",'Enrollment Form'!$AS455=\"Yes\",'Enrollment Form'!$AT455<>\"\"),\"Y\",\"N\"))))","v":""},{"$f":"IF($B448=\"N\",\"\",IF(OR('Enrollment Form'!$B455<>\"Subscriber\",'Enrollment Form'!$C455=\"ROC\"),\"-\",IF(AND('Enrollment Form'!$B455=\"Subscriber\",'Enrollment Form'!$C455=\"Enroll\",'Enrollment Form'!$CV455<>\"\"),\"Y\",\"N\")))","v":""},{"$f":"IF($B448=\"N\",\"\",IF($S448=\"-\",\"-\",IF(AND($S448=\"Y\",'Enrollment Form'!$CV455=\"No\"),\"-\",IF(AND($S448=\"Y\",'Enrollment Form'!$CV455=\"Yes\",'Enrollment Form'!$CW455<>\"\"),\"Y\",\"N\"))))","v":""},{"$f":"IF(OR('Enrollment Form'!$AY455=\"Yes\",'Enrollment Form'!$AY455=\"\"),\"-\",IF(OR(AND('Enrollment Form'!$AY455=\"No\",ISERROR(FIND(\"HMO\",VLOOKUP('Enrollment Form'!G455,'Enrollment Form'!H$11:J$1000,3,FALSE),1))=FALSE,COUNTA('Enrollment Form'!$AZ455:$BC455)=4),AND('Enrollment Form'!$AY455=\"No\",ISERROR(FIND(\"HMO\",VLOOKUP('Enrollment Form'!G455,'Enrollment Form'!H$11:J$1000,3,FALSE),1))=FALSE,COUNTA('Enrollment Form'!$BT455:$BW455)=4)),\"Y\",\"N\"))","v":"-"},{"$f":"IF($B448=\"N\",\"\",IF('Enrollment Form'!$B455=\"Subscriber\",\"-\",IF(COUNTA('Enrollment Form'!$BL455,'Enrollment Form'!$BN455)=2,\"Y\",\"N\")))","v":""},{"$f":"IF($B448=\"N\",\"\",IF(OR('Enrollment Form'!$AX455=\"\",'Enrollment Form'!$AX455=\"No\"),\"-\",IF(AND('Enrollment Form'!$AX455=\"Yes\",COUNTA('Enrollment Form'!$CR455)=1),\"Y\",\"N\")))","v":""},{"$f":"IF(OR('Enrollment Form'!$CR455=\"\",'Enrollment Form'!$CR455=\"No\"),\"-\",IF(COUNTA('Enrollment Form'!$CT455:$CU455)=2,\"Y\",\"N\"))","v":"-"},{"$f":"IF($B448=\"N\",\"\",IF(COUNTIF('Enrollment Form'!$DG455:$DP455,\"Other\")=COUNTA('Enrollment Form'!$DK455,'Enrollment Form'!$DH455,'Enrollment Form'!$DN455,'Enrollment Form'!$DQ455),\"Y\",\"N\"))","v":""},{"$f":"IF($B448=\"N\",\"\",IF(OR('Enrollment Form'!B455<>\"Subscriber\",'Enrollment Form'!C455=\"ROC\",COUNTIF('Enrollment Form'!AV455:AW455,\"Yes\")>=1),\"-\",IF(AND('Enrollment Form'!C455=\"Enroll\",COUNTIF('Enrollment Form'!AV455:AW455,\"No\")=2,'Enrollment Form'!AX455=\"\"),\"N\",\"Y\")))","v":""},{"$f":"IF(OR(B448=\"N\",'Enrollment Form'!B455<>\"Subscriber\",'Enrollment Form'!C455=\"ROC\",'Enrollment Form'!O455<>\"Multiple of Salary\"),\"-\",IF(COUNTA('Enrollment Form'!T455:U455)<2,\"N\",\"Y\"))","v":"-"},{"$f":"IF(B448=\"N\",\"\",IF(OR('Enrollment Form'!C455=\"ROC\",'Enrollment Form'!B455<>\"Subscriber\",'Enrollment Form'!O455=\"Waive\",'Enrollment Form'!O455=\"\"),\"-\",IF('Enrollment Form'!P455=\"\",\"N\",\"Y\")))","v":""},{"$f":"IF($B448=\"N\",\"\",IF(AND('Enrollment Form'!$C455=\"ROC\",'Enrollment Form'!$DR455<>\"\"),\"Y\",IF(AND('Enrollment Form'!$C455=\"ROC\",'Enrollment Form'!$DR455=\"\"),\"N\",IF(AND('Enrollment Form'!$C455=\"Enroll\",'Enrollment Form'!$B455=\"Subscriber\",'Enrollment Form'!$CX455=\"No\",'Enrollment Form'!$DR455=\"\"),\"N\",IF(AND('Enrollment Form'!$C455=\"Enroll\",'Enrollment Form'!$B455=\"Subscriber\",'Enrollment Form'!$CX455=\"Yes\"),\"-\",\"Y\")))))","v":""},{"$f":"IF($B448=\"N\",\"\",IF(AND('Enrollment Form'!$C455=\"ROC\",'Enrollment Form'!$DS455<>\"\"),\"Y\",IF(AND('Enrollment Form'!$C455=\"ROC\",'Enrollment Form'!$DS455=\"\"),\"N\",IF(AND('Enrollment Form'!$C455=\"Enroll\",'Enrollment Form'!$B455=\"Subscriber\",'Enrollment Form'!$CX455=\"No\",'Enrollment Form'!$DS455=\"\"),\"N\",IF(AND('Enrollment Form'!$C455=\"Enroll\",'Enrollment Form'!$B455=\"Subscriber\",'Enrollment Form'!$CX455=\"Yes\"),\"-\",\"Y\")))))","v":""},{"$f":"IF('Enrollment Form'!AH455=\"\",\"\",IF(ISERROR(SEARCH(\".\",'Enrollment Form'!AH455,SEARCH(\"@\",'Enrollment Form'!AH455))),\"N\",\"Y\"))","v":""},{"$f":"IF(OR($B448=\"N\",'Enrollment Form'!$G455=\"\"),\"\",IF('Enrollment Form'!$B455<>\"Subscriber\",\"-\",IF(COUNTIF('Enrollment Form'!$AV455:$AW455,\"Yes\")=2,\"N\",\"Y\")))","v":""},{"$f":"IF(OR('Enrollment Form'!$CJ455=\"\",'Enrollment Form'!$CJ455=\"No\"),\"-\",IF(AND('Enrollment Form'!$CJ455=\"Yes\",'Enrollment Form'!$CK455=\"\"),\"N\",\"Y\"))","v":"-"},{"$f":"IF(OR('Enrollment Form'!$CL455=\"\",'Enrollment Form'!$CL455=\"No\"),\"-\",IF(AND('Enrollment Form'!$CL455=\"Yes\",'Enrollment Form'!$CM455=\"\"),\"N\",\"Y\"))","v":"-"},{"$f":"IF(OR('Enrollment Form'!$CN455=\"\",'Enrollment Form'!$CN455=\"No\"),\"-\",IF(AND('Enrollment Form'!$CN455=\"Yes\",'Enrollment Form'!$CO455=\"\"),\"N\",\"Y\"))","v":"-"},{"$f":"IF(OR('Enrollment Form'!$CN455=\"\",'Enrollment Form'!$CN455=\"No\"),\"-\",IF(AND('Enrollment Form'!$CN455=\"Yes\",'Enrollment Form'!$CP455=\"\"),\"N\",\"Y\"))","v":"-"},{"$f":"IF('Enrollment Form'!B455<>\"Subscriber\",\"-\",IF(AND('Enrollment Form'!B455=\"Subscriber\",'Enrollment Form'!C455=\"Enroll\",'Enrollment Form'!AA455=\"\"),\"N\",\"Y\"))","v":"-"},{"$f":"IF(OR('Enrollment Form'!B455=\"Subscriber\",'Enrollment Form'!B455=\"\"),\"-\",IF('Enrollment Form'!BP455=\"\",\"N\",\"Y\"))","v":"-"},{"$f":"IF('Enrollment Form'!B455<>\"Subscriber\",\"-\",IF(AND('Enrollment Form'!B455=\"Subscriber\",'Enrollment Form'!G455=\"\"),\"N\",\"Y\"))","v":"-"},{"$f":"IF('Enrollment Form'!A455=\"\",\"\",IF('Enrollment Form'!B455=\"Subscriber\",\"-\",IF(AND('Enrollment Form'!B455<>\"Subscriber\",'Enrollment Form'!G455='Enrollment Form'!H455),\"N\",\"Y\")))","v":""},0]
[456,{"$f":"IF('Enrollment Form'!$A456<>\"\",\"Y\",\"N\")","v":"N"},{"$f":"IF(AND('Enrollment Form'!$B456=\"\",'Enrollment Form'!$C456<>\"\"),\"N\",IF($B449=\"N\",\"\",\"Y\"))","v":""},{"$f":"IF(OR($B449=\"N\",'Enrollment Form'!G456=\"\"),\"\",IF('Enrollment Form'!$B456<>\"Subscriber\",\"\",IF('Enrollment Form'!$G456='Enrollment Form'!$H456,\"Y\",\"N\")))","v":""},{"$f":"IF($B449=\"N\",\"\",IF(AND(COUNTIFS('Enrollment Form'!$H$11:$H$1000,'Enrollment Form'!$H456,'Enrollment Form'!$B$11:$B$1000,'Enrollment Form'!$B456)>1,'Enrollment Form'!$H456<>\"\"),\"N\",\"Y\"))","v":""},{"$f":"IF($B449=\"N\",\"\",IF(LEN('Enrollment Form'!$Y456)=0,\"\",IF(LEN('Enrollment Form'!$Y456)<>5,\"N\",\"Y\")))","v":""},{"$f":"IF($B449=\"N\",\"\",IF(LEN('Enrollment Form'!$AD456=0),\"\",IF(LEN('Enrollment Form'!$AD456)<>5,\"N\",\"Y\")))","v":""},{"$f":"IF($B449=\"N\",\"\",IF(LEN('Enrollment Form'!$BS456=0),\"\",IF(LEN('Enrollment Form'!$BS456)<>5,\"N\",\"Y\")))","v":""},{"$f":"IF($B449=\"N\",\"\",IF(LEN('Enrollment Form'!$AE456)=0,\"\",IF(LEN('Enrollment Form'!$AE456)<>10,\"N\",\"Y\")))","v":""},{"$f":"IF($B449=\"N\",\"\",IF(LEN('Enrollment Form'!$AF456)=0,\"\",IF(LEN('Enrollment Form'!$AF456)<>10,\"N\",\"Y\")))","v":""},{"$f":"IF('Enrollment Form'!$O456<>\"Graded\",\"-\",IF(AND('Enrollment Form'!$O456=\"Graded\",'Enrollment Form'!$AR456<>\"\"),\"Y\",\"N\"))","v":"-"},{"$f":"IF($B449=\"N\",\"\",IF(OR('Enrollment Form'!$B456<>\"Subscriber\",'Enrollment Form'!$C456=\"ROC\"),\"-\",IF(AND('Enrollment Form'!$B456=\"Subscriber\",'Enrollment Form'!$C456=\"Enroll\",'Enrollment Form'!$AJ456<>\"\"),\"Y\",\"N\")))","v":""},{"$f":"IF($B449=\"N\",\"\",IF(OR('Enrollment Form'!$B456<>\"Subscriber\",'Enrollment Form'!$C456=\"ROC\"),\"-\",IF(AND('Enrollment Form'!$B456=\"Subscriber\",'Enrollment Form'!$C456=\"Enroll\",'Enrollment Form'!$AK456<>\"\"),\"Y\",\"N\")))","v":""},{"$f":"IF($B449=\"N\",\"\",IF(OR('Enrollment Form'!$B456<>\"Subscriber\",'Enrollment Form'!$C456=\"ROC\"),\"-\",IF(AND('Enrollment Form'!$B456=\"Subscriber\",'Enrollment Form'!$C456=\"Enroll\",'Enrollment Form'!$AL456<>\"\"),\"Y\",\"N\")))","v":""},{"$f":"IF($B449=\"N\",\"\",IF(OR('Enrollment Form'!$B456<>\"Subscriber\",'Enrollment Form'!$C456=\"ROC\"),\"-\",IF(AND('Enrollment Form'!$B456=\"Subscriber\",'Enrollment Form'!$C456=\"Enroll\",'Enrollment Form'!$AP456<>\"\"),\"Y\",\"N\")))","v":""},{"$f":"IF($B449=\"N\",\"\",IF(OR('Enrollment Form'!$B456<>\"Subscriber\",'Enrollment Form'!$C456=\"ROC\"),\"-\",IF(AND('Enrollment Form'!$B456=\"Subscriber\",'Enrollment Form'!$C456=\"Enroll\",'Enrollment Form'!$AQ456<>\"\"),\"Y\",\"N\")))","v":""},{"$f":"IF($B449=\"N\",\"\",IF(OR('Enrollment Form'!$B456<>\"Subscriber\",'Enrollment Form'!$C456=\"ROC\"),\"-\",IF(AND('Enrollment Form'!$B456=\"Subscriber\",'Enrollment Form'!$C456=\"Enroll\",'Enrollment Form'!$AS456<>\"\"),\"Y\",\"N\")))","v":""},{"$f":"IF($B449=\"N\",\"\",IF($Q449=\"-\",\"-\",IF(AND($Q449=\"Y\",'Enrollment Form'!$AS456=\"No\"),\"-\",IF(AND($Q449=\"Y\",'Enrollment Form'!$AS456=\"Yes\",'Enrollment Form'!$AT456<>\"\"),\"Y\",\"N\"))))","v":""},{"$f":"IF($B449=\"N\",\"\",IF(OR('Enrollment Form'!$B456<>\"Subscriber\",'Enrollment Form'!$C456=\"ROC\"),\"-\",IF(AND('Enrollment Form'!$B456=\"Subscriber\",'Enrollment Form'!$C456=\"Enroll\",'Enrollment Form'!$CV456<>\"\"),\"Y\",\"N\")))","v":""},{"$f":"IF($B449=\"N\",\"\",IF($S449=\"-\",\"-\",IF(AND($S449=\"Y\",'Enrollment Form'!$CV456=\"No\"),\"-\",IF(AND($S449=\"Y\",'Enrollment Form'!$CV456=\"Yes\",'Enrollment Form'!$CW456<>\"\"),\"Y\",\"N\"))))","v":""},{"$f":"IF(OR('Enrollment Form'!$AY456=\"Yes\",'Enrollment Form'!$AY456=\"\"),\"-\",IF(OR(AND('Enrollment Form'!$AY456=\"No\",ISERROR(FIND(\"HMO\",VLOOKUP('Enrollment Form'!G456,'Enrollment Form'!H$11:J$1000,3,FALSE),1))=FALSE,COUNTA('Enrollment Form'!$AZ456:$BC456)=4),AND('Enrollment Form'!$AY456=\"No\",ISERROR(FIND(\"HMO\",VLOOKUP('Enrollment Form'!G456,'Enrollment Form'!H$11:J$1000,3,FALSE),1))=FALSE,COUNTA('Enrollment Form'!$BT456:$BW456)=4)),\"Y\",\"N\"))","v":"-"},{"$f":"IF($B449=\"N\",\"\",IF('Enrollment Form'!$B456=\"Subscriber\",\"-\",IF(COUNTA('Enrollment Form'!$BL456,'Enrollment Form'!$BN456)=2,\"Y\",\"N\")))","v":""},{"$f":"IF($B449=\"N\",\"\",IF(OR('Enrollment Form'!$AX456=\"\",'Enrollment Form'!$AX456=\"No\"),\"-\",IF(AND('Enrollment Form'!$AX456=\"Yes\",COUNTA('Enrollment Form'!$CR456)=1),\"Y\",\"N\")))","v":""},{"$f":"IF(OR('Enrollment Form'!$CR456=\"\",'Enrollment Form'!$CR456=\"No\"),\"-\",IF(COUNTA('Enrollment Form'!$CT456:$CU456)=2,\"Y\",\"N\"))","v":"-"},{"$f":"IF($B449=\"N\",\"\",IF(COUNTIF('Enrollment Form'!$DG456:$DP456,\"Other\")=COUNTA('Enrollment Form'!$DK456,'Enrollment Form'!$DH456,'Enrollment Form'!$DN456,'Enrollment Form'!$DQ456),\"Y\",\"N\"))","v":""},{"$f":"IF($B449=\"N\",\"\",IF(OR('Enrollment Form'!B456<>\"Subscriber\",'Enrollment Form'!C456=\"ROC\",COUNTIF('Enrollment Form'!AV456:AW456,\"Yes\")>=1),\"-\",IF(AND('Enrollment Form'!C456=\"Enroll\",COUNTIF('Enrollment Form'!AV456:AW456,\"No\")=2,'Enrollment Form'!AX456=\"\"),\"N\",\"Y\")))","v":""},{"$f":"IF(OR(B449=\"N\",'Enrollment Form'!B456<>\"Subscriber\",'Enrollment Form'!C456=\"ROC\",'Enrollment Form'!O456<>\"Multiple of Salary\"),\"-\",IF(COUNTA('Enrollment Form'!T456:U456)<2,\"N\",\"Y\"))","v":"-"},{"$f":"IF(B449=\"N\",\"\",IF(OR('Enrollment Form'!C456=\"ROC\",'Enrollment Form'!B456<>\"Subscriber\",'Enrollment Form'!O456=\"Waive\",'Enrollment Form'!O456=\"\"),\"-\",IF('Enrollment Form'!P456=\"\",\"N\",\"Y\")))","v":""},{"$f":"IF($B449=\"N\",\"\",IF(AND('Enrollment Form'!$C456=\"ROC\",'Enrollment Form'!$DR456<>\"\"),\"Y\",IF(AND('Enrollment Form'!$C456=\"ROC\",'Enrollment Form'!$DR456=\"\"),\"N\",IF(AND('Enrollment Form'!$C456=\"Enroll\",'Enrollment Form'!$B456=\"Subscriber\",'Enrollment Form'!$CX456=\"No\",'Enrollment Form'!$DR456=\"\"),\"N\",IF(AND('Enrollment Form'!$C456=\"Enroll\",'Enrollment Form'!$B456=\"Subscriber\",'Enrollment Form'!$CX456=\"Yes\"),\"-\",\"Y\")))))","v":""},{"$f":"IF($B449=\"N\",\"\",IF(AND('Enrollment Form'!$C456=\"ROC\",'Enrollment Form'!$DS456<>\"\"),\"Y\",IF(AND('Enrollment Form'!$C456=\"ROC\",'Enrollment Form'!$DS456=\"\"),\"N\",IF(AND('Enrollment Form'!$C456=\"Enroll\",'Enrollment Form'!$B456=\"Subscriber\",'Enrollment Form'!$CX456=\"No\",'Enrollment Form'!$DS456=\"\"),\"N\",IF(AND('Enrollment Form'!$C456=\"Enroll\",'Enrollment Form'!$B456=\"Subscriber\",'Enrollment Form'!$CX456=\"Yes\"),\"-\",\"Y\")))))","v":""},{"$f":"IF('Enrollment Form'!AH456=\"\",\"\",IF(ISERROR(SEARCH(\".\",'Enrollment Form'!AH456,SEARCH(\"@\",'Enrollment Form'!AH456))),\"N\",\"Y\"))","v":""},{"$f":"IF(OR($B449=\"N\",'Enrollment Form'!$G456=\"\"),\"\",IF('Enrollment Form'!$B456<>\"Subscriber\",\"-\",IF(COUNTIF('Enrollment Form'!$AV456:$AW456,\"Yes\")=2,\"N\",\"Y\")))","v":""},{"$f":"IF(OR('Enrollment Form'!$CJ456=\"\",'Enrollment Form'!$CJ456=\"No\"),\"-\",IF(AND('Enrollment Form'!$CJ456=\"Yes\",'Enrollment Form'!$CK456=\"\"),\"N\",\"Y\"))","v":"-"},{"$f":"IF(OR('Enrollment Form'!$CL456=\"\",'Enrollment Form'!$CL456=\"No\"),\"-\",IF(AND('Enrollment Form'!$CL456=\"Yes\",'Enrollment Form'!$CM456=\"\"),\"N\",\"Y\"))","v":"-"},{"$f":"IF(OR('Enrollment Form'!$CN456=\"\",'Enrollment Form'!$CN456=\"No\"),\"-\",IF(AND('Enrollment Form'!$CN456=\"Yes\",'Enrollment Form'!$CO456=\"\"),\"N\",\"Y\"))","v":"-"},{"$f":"IF(OR('Enrollment Form'!$CN456=\"\",'Enrollment Form'!$CN456=\"No\"),\"-\",IF(AND('Enrollment Form'!$CN456=\"Yes\",'Enrollment Form'!$CP456=\"\"),\"N\",\"Y\"))","v":"-"},{"$f":"IF('Enrollment Form'!B456<>\"Subscriber\",\"-\",IF(AND('Enrollment Form'!B456=\"Subscriber\",'Enrollment Form'!C456=\"Enroll\",'Enrollment Form'!AA456=\"\"),\"N\",\"Y\"))","v":"-"},{"$f":"IF(OR('Enrollment Form'!B456=\"Subscriber\",'Enrollment Form'!B456=\"\"),\"-\",IF('Enrollment Form'!BP456=\"\",\"N\",\"Y\"))","v":"-"},{"$f":"IF('Enrollment Form'!B456<>\"Subscriber\",\"-\",IF(AND('Enrollment Form'!B456=\"Subscriber\",'Enrollment Form'!G456=\"\"),\"N\",\"Y\"))","v":"-"},{"$f":"IF('Enrollment Form'!A456=\"\",\"\",IF('Enrollment Form'!B456=\"Subscriber\",\"-\",IF(AND('Enrollment Form'!B456<>\"Subscriber\",'Enrollment Form'!G456='Enrollment Form'!H456),\"N\",\"Y\")))","v":""},0]
[457,{"$f":"IF('Enrollment Form'!$A457<>\"\",\"Y\",\"N\")","v":"N"},{"$f":"IF(AND('Enrollment Form'!$B457=\"\",'Enrollment Form'!$C457<>\"\"),\"N\",IF($B450=\"N\",\"\",\"Y\"))","v":""},{"$f":"IF(OR($B450=\"N\",'Enrollment Form'!G457=\"\"),\"\",IF('Enrollment Form'!$B457<>\"Subscriber\",\"\",IF('Enrollment Form'!$G457='Enrollment Form'!$H457,\"Y\",\"N\")))","v":""},{"$f":"IF($B450=\"N\",\"\",IF(AND(COUNTIFS('Enrollment Form'!$H$11:$H$1000,'Enrollment Form'!$H457,'Enrollment Form'!$B$11:$B$1000,'Enrollment Form'!$B457)>1,'Enrollment Form'!$H457<>\"\"),\"N\",\"Y\"))","v":""},{"$f":"IF($B450=\"N\",\"\",IF(LEN('Enrollment Form'!$Y457)=0,\"\",IF(LEN('Enrollment Form'!$Y457)<>5,\"N\",\"Y\")))","v":""},{"$f":"IF($B450=\"N\",\"\",IF(LEN('Enrollment Form'!$AD457=0),\"\",IF(LEN('Enrollment Form'!$AD457)<>5,\"N\",\"Y\")))","v":""},{"$f":"IF($B450=\"N\",\"\",IF(LEN('Enrollment Form'!$BS457=0),\"\",IF(LEN('Enrollment Form'!$BS457)<>5,\"N\",\"Y\")))","v":""},{"$f":"IF($B450=\"N\",\"\",IF(LEN('Enrollment Form'!$AE457)=0,\"\",IF(LEN('Enrollment Form'!$AE457)<>10,\"N\",\"Y\")))","v":""},{"$f":"IF($B450=\"N\",\"\",IF(LEN('Enrollment Form'!$AF457)=0,\"\",IF(LEN('Enrollment Form'!$AF457)<>10,\"N\",\"Y\")))","v":""},{"$f":"IF('Enrollment Form'!$O457<>\"Graded\",\"-\",IF(AND('Enrollment Form'!$O457=\"Graded\",'Enrollment Form'!$AR457<>\"\"),\"Y\",\"N\"))","v":"-"},{"$f":"IF($B450=\"N\",\"\",IF(OR('Enrollment Form'!$B457<>\"Subscriber\",'Enrollment Form'!$C457=\"ROC\"),\"-\",IF(AND('Enrollment Form'!$B457=\"Subscriber\",'Enrollment Form'!$C457=\"Enroll\",'Enrollment Form'!$AJ457<>\"\"),\"Y\",\"N\")))","v":""},{"$f":"IF($B450=\"N\",\"\",IF(OR('Enrollment Form'!$B457<>\"Subscriber\",'Enrollment Form'!$C457=\"ROC\"),\"-\",IF(AND('Enrollment Form'!$B457=\"Subscriber\",'Enrollment Form'!$C457=\"Enroll\",'Enrollment Form'!$AK457<>\"\"),\"Y\",\"N\")))","v":""},{"$f":"IF($B450=\"N\",\"\",IF(OR('Enrollment Form'!$B457<>\"Subscriber\",'Enrollment Form'!$C457=\"ROC\"),\"-\",IF(AND('Enrollment Form'!$B457=\"Subscriber\",'Enrollment Form'!$C457=\"Enroll\",'Enrollment Form'!$AL457<>\"\"),\"Y\",\"N\")))","v":""},{"$f":"IF($B450=\"N\",\"\",IF(OR('Enrollment Form'!$B457<>\"Subscriber\",'Enrollment Form'!$C457=\"ROC\"),\"-\",IF(AND('Enrollment Form'!$B457=\"Subscriber\",'Enrollment Form'!$C457=\"Enroll\",'Enrollment Form'!$AP457<>\"\"),\"Y\",\"N\")))","v":""},{"$f":"IF($B450=\"N\",\"\",IF(OR('Enrollment Form'!$B457<>\"Subscriber\",'Enrollment Form'!$C457=\"ROC\"),\"-\",IF(AND('Enrollment Form'!$B457=\"Subscriber\",'Enrollment Form'!$C457=\"Enroll\",'Enrollment Form'!$AQ457<>\"\"),\"Y\",\"N\")))","v":""},{"$f":"IF($B450=\"N\",\"\",IF(OR('Enrollment Form'!$B457<>\"Subscriber\",'Enrollment Form'!$C457=\"ROC\"),\"-\",IF(AND('Enrollment Form'!$B457=\"Subscriber\",'Enrollment Form'!$C457=\"Enroll\",'Enrollment Form'!$AS457<>\"\"),\"Y\",\"N\")))","v":""},{"$f":"IF($B450=\"N\",\"\",IF($Q450=\"-\",\"-\",IF(AND($Q450=\"Y\",'Enrollment Form'!$AS457=\"No\"),\"-\",IF(AND($Q450=\"Y\",'Enrollment Form'!$AS457=\"Yes\",'Enrollment Form'!$AT457<>\"\"),\"Y\",\"N\"))))","v":""},{"$f":"IF($B450=\"N\",\"\",IF(OR('Enrollment Form'!$B457<>\"Subscriber\",'Enrollment Form'!$C457=\"ROC\"),\"-\",IF(AND('Enrollment Form'!$B457=\"Subscriber\",'Enrollment Form'!$C457=\"Enroll\",'Enrollment Form'!$CV457<>\"\"),\"Y\",\"N\")))","v":""},{"$f":"IF($B450=\"N\",\"\",IF($S450=\"-\",\"-\",IF(AND($S450=\"Y\",'Enrollment Form'!$CV457=\"No\"),\"-\",IF(AND($S450=\"Y\",'Enrollment Form'!$CV457=\"Yes\",'Enrollment Form'!$CW457<>\"\"),\"Y\",\"N\"))))","v":""},{"$f":"IF(OR('Enrollment Form'!$AY457=\"Yes\",'Enrollment Form'!$AY457=\"\"),\"-\",IF(OR(AND('Enrollment Form'!$AY457=\"No\",ISERROR(FIND(\"HMO\",VLOOKUP('Enrollment Form'!G457,'Enrollment Form'!H$11:J$1000,3,FALSE),1))=FALSE,COUNTA('Enrollment Form'!$AZ457:$BC457)=4),AND('Enrollment Form'!$AY457=\"No\",ISERROR(FIND(\"HMO\",VLOOKUP('Enrollment Form'!G457,'Enrollment Form'!H$11:J$1000,3,FALSE),1))=FALSE,COUNTA('Enrollment Form'!$BT457:$BW457)=4)),\"Y\",\"N\"))","v":"-"},{"$f":"IF($B450=\"N\",\"\",IF('Enrollment Form'!$B457=\"Subscriber\",\"-\",IF(COUNTA('Enrollment Form'!$BL457,'Enrollment Form'!$BN457)=2,\"Y\",\"N\")))","v":""},{"$f":"IF($B450=\"N\",\"\",IF(OR('Enrollment Form'!$AX457=\"\",'Enrollment Form'!$AX457=\"No\"),\"-\",IF(AND('Enrollment Form'!$AX457=\"Yes\",COUNTA('Enrollment Form'!$CR457)=1),\"Y\",\"N\")))","v":""},{"$f":"IF(OR('Enrollment Form'!$CR457=\"\",'Enrollment Form'!$CR457=\"No\"),\"-\",IF(COUNTA('Enrollment Form'!$CT457:$CU457)=2,\"Y\",\"N\"))","v":"-"},{"$f":"IF($B450=\"N\",\"\",IF(COUNTIF('Enrollment Form'!$DG457:$DP457,\"Other\")=COUNTA('Enrollment Form'!$DK457,'Enrollment Form'!$DH457,'Enrollment Form'!$DN457,'Enrollment Form'!$DQ457),\"Y\",\"N\"))","v":""},{"$f":"IF($B450=\"N\",\"\",IF(OR('Enrollment Form'!B457<>\"Subscriber\",'Enrollment Form'!C457=\"ROC\",COUNTIF('Enrollment Form'!AV457:AW457,\"Yes\")>=1),\"-\",IF(AND('Enrollment Form'!C457=\"Enroll\",COUNTIF('Enrollment Form'!AV457:AW457,\"No\")=2,'Enrollment Form'!AX457=\"\"),\"N\",\"Y\")))","v":""},{"$f":"IF(OR(B450=\"N\",'Enrollment Form'!B457<>\"Subscriber\",'Enrollment Form'!C457=\"ROC\",'Enrollment Form'!O457<>\"Multiple of Salary\"),\"-\",IF(COUNTA('Enrollment Form'!T457:U457)<2,\"N\",\"Y\"))","v":"-"},{"$f":"IF(B450=\"N\",\"\",IF(OR('Enrollment Form'!C457=\"ROC\",'Enrollment Form'!B457<>\"Subscriber\",'Enrollment Form'!O457=\"Waive\",'Enrollment Form'!O457=\"\"),\"-\",IF('Enrollment Form'!P457=\"\",\"N\",\"Y\")))","v":""},{"$f":"IF($B450=\"N\",\"\",IF(AND('Enrollment Form'!$C457=\"ROC\",'Enrollment Form'!$DR457<>\"\"),\"Y\",IF(AND('Enrollment Form'!$C457=\"ROC\",'Enrollment Form'!$DR457=\"\"),\"N\",IF(AND('Enrollment Form'!$C457=\"Enroll\",'Enrollment Form'!$B457=\"Subscriber\",'Enrollment Form'!$CX457=\"No\",'Enrollment Form'!$DR457=\"\"),\"N\",IF(AND('Enrollment Form'!$C457=\"Enroll\",'Enrollment Form'!$B457=\"Subscriber\",'Enrollment Form'!$CX457=\"Yes\"),\"-\",\"Y\")))))","v":""},{"$f":"IF($B450=\"N\",\"\",IF(AND('Enrollment Form'!$C457=\"ROC\",'Enrollment Form'!$DS457<>\"\"),\"Y\",IF(AND('Enrollment Form'!$C457=\"ROC\",'Enrollment Form'!$DS457=\"\"),\"N\",IF(AND('Enrollment Form'!$C457=\"Enroll\",'Enrollment Form'!$B457=\"Subscriber\",'Enrollment Form'!$CX457=\"No\",'Enrollment Form'!$DS457=\"\"),\"N\",IF(AND('Enrollment Form'!$C457=\"Enroll\",'Enrollment Form'!$B457=\"Subscriber\",'Enrollment Form'!$CX457=\"Yes\"),\"-\",\"Y\")))))","v":""},{"$f":"IF('Enrollment Form'!AH457=\"\",\"\",IF(ISERROR(SEARCH(\".\",'Enrollment Form'!AH457,SEARCH(\"@\",'Enrollment Form'!AH457))),\"N\",\"Y\"))","v":""},{"$f":"IF(OR($B450=\"N\",'Enrollment Form'!$G457=\"\"),\"\",IF('Enrollment Form'!$B457<>\"Subscriber\",\"-\",IF(COUNTIF('Enrollment Form'!$AV457:$AW457,\"Yes\")=2,\"N\",\"Y\")))","v":""},{"$f":"IF(OR('Enrollment Form'!$CJ457=\"\",'Enrollment Form'!$CJ457=\"No\"),\"-\",IF(AND('Enrollment Form'!$CJ457=\"Yes\",'Enrollment Form'!$CK457=\"\"),\"N\",\"Y\"))","v":"-"},{"$f":"IF(OR('Enrollment Form'!$CL457=\"\",'Enrollment Form'!$CL457=\"No\"),\"-\",IF(AND('Enrollment Form'!$CL457=\"Yes\",'Enrollment Form'!$CM457=\"\"),\"N\",\"Y\"))","v":"-"},{"$f":"IF(OR('Enrollment Form'!$CN457=\"\",'Enrollment Form'!$CN457=\"No\"),\"-\",IF(AND('Enrollment Form'!$CN457=\"Yes\",'Enrollment Form'!$CO457=\"\"),\"N\",\"Y\"))","v":"-"},{"$f":"IF(OR('Enrollment Form'!$CN457=\"\",'Enrollment Form'!$CN457=\"No\"),\"-\",IF(AND('Enrollment Form'!$CN457=\"Yes\",'Enrollment Form'!$CP457=\"\"),\"N\",\"Y\"))","v":"-"},{"$f":"IF('Enrollment Form'!B457<>\"Subscriber\",\"-\",IF(AND('Enrollment Form'!B457=\"Subscriber\",'Enrollment Form'!C457=\"Enroll\",'Enrollment Form'!AA457=\"\"),\"N\",\"Y\"))","v":"-"},{"$f":"IF(OR('Enrollment Form'!B457=\"Subscriber\",'Enrollment Form'!B457=\"\"),\"-\",IF('Enrollment Form'!BP457=\"\",\"N\",\"Y\"))","v":"-"},{"$f":"IF('Enrollment Form'!B457<>\"Subscriber\",\"-\",IF(AND('Enrollment Form'!B457=\"Subscriber\",'Enrollment Form'!G457=\"\"),\"N\",\"Y\"))","v":"-"},{"$f":"IF('Enrollment Form'!A457=\"\",\"\",IF('Enrollment Form'!B457=\"Subscriber\",\"-\",IF(AND('Enrollment Form'!B457<>\"Subscriber\",'Enrollment Form'!G457='Enrollment Form'!H457),\"N\",\"Y\")))","v":""},0]
[458,{"$f":"IF('Enrollment Form'!$A458<>\"\",\"Y\",\"N\")","v":"N"},{"$f":"IF(AND('Enrollment Form'!$B458=\"\",'Enrollment Form'!$C458<>\"\"),\"N\",IF($B451=\"N\",\"\",\"Y\"))","v":""},{"$f":"IF(OR($B451=\"N\",'Enrollment Form'!G458=\"\"),\"\",IF('Enrollment Form'!$B458<>\"Subscriber\",\"\",IF('Enrollment Form'!$G458='Enrollment Form'!$H458,\"Y\",\"N\")))","v":""},{"$f":"IF($B451=\"N\",\"\",IF(AND(COUNTIFS('Enrollment Form'!$H$11:$H$1000,'Enrollment Form'!$H458,'Enrollment Form'!$B$11:$B$1000,'Enrollment Form'!$B458)>1,'Enrollment Form'!$H458<>\"\"),\"N\",\"Y\"))","v":""},{"$f":"IF($B451=\"N\",\"\",IF(LEN('Enrollment Form'!$Y458)=0,\"\",IF(LEN('Enrollment Form'!$Y458)<>5,\"N\",\"Y\")))","v":""},{"$f":"IF($B451=\"N\",\"\",IF(LEN('Enrollment Form'!$AD458=0),\"\",IF(LEN('Enrollment Form'!$AD458)<>5,\"N\",\"Y\")))","v":""},{"$f":"IF($B451=\"N\",\"\",IF(LEN('Enrollment Form'!$BS458=0),\"\",IF(LEN('Enrollment Form'!$BS458)<>5,\"N\",\"Y\")))","v":""},{"$f":"IF($B451=\"N\",\"\",IF(LEN('Enrollment Form'!$AE458)=0,\"\",IF(LEN('Enrollment Form'!$AE458)<>10,\"N\",\"Y\")))","v":""},{"$f":"IF($B451=\"N\",\"\",IF(LEN('Enrollment Form'!$AF458)=0,\"\",IF(LEN('Enrollment Form'!$AF458)<>10,\"N\",\"Y\")))","v":""},{"$f":"IF('Enrollment Form'!$O458<>\"Graded\",\"-\",IF(AND('Enrollment Form'!$O458=\"Graded\",'Enrollment Form'!$AR458<>\"\"),\"Y\",\"N\"))","v":"-"},{"$f":"IF($B451=\"N\",\"\",IF(OR('Enrollment Form'!$B458<>\"Subscriber\",'Enrollment Form'!$C458=\"ROC\"),\"-\",IF(AND('Enrollment Form'!$B458=\"Subscriber\",'Enrollment Form'!$C458=\"Enroll\",'Enrollment Form'!$AJ458<>\"\"),\"Y\",\"N\")))","v":""},{"$f":"IF($B451=\"N\",\"\",IF(OR('Enrollment Form'!$B458<>\"Subscriber\",'Enrollment Form'!$C458=\"ROC\"),\"-\",IF(AND('Enrollment Form'!$B458=\"Subscriber\",'Enrollment Form'!$C458=\"Enroll\",'Enrollment Form'!$AK458<>\"\"),\"Y\",\"N\")))","v":""},{"$f":"IF($B451=\"N\",\"\",IF(OR('Enrollment Form'!$B458<>\"Subscriber\",'Enrollment Form'!$C458=\"ROC\"),\"-\",IF(AND('Enrollment Form'!$B458=\"Subscriber\",'Enrollment Form'!$C458=\"Enroll\",'Enrollment Form'!$AL458<>\"\"),\"Y\",\"N\")))","v":""},{"$f":"IF($B451=\"N\",\"\",IF(OR('Enrollment Form'!$B458<>\"Subscriber\",'Enrollment Form'!$C458=\"ROC\"),\"-\",IF(AND('Enrollment Form'!$B458=\"Subscriber\",'Enrollment Form'!$C458=\"Enroll\",'Enrollment Form'!$AP458<>\"\"),\"Y\",\"N\")))","v":""},{"$f":"IF($B451=\"N\",\"\",IF(OR('Enrollment Form'!$B458<>\"Subscriber\",'Enrollment Form'!$C458=\"ROC\"),\"-\",IF(AND('Enrollment Form'!$B458=\"Subscriber\",'Enrollment Form'!$C458=\"Enroll\",'Enrollment Form'!$AQ458<>\"\"),\"Y\",\"N\")))","v":""},{"$f":"IF($B451=\"N\",\"\",IF(OR('Enrollment Form'!$B458<>\"Subscriber\",'Enrollment Form'!$C458=\"ROC\"),\"-\",IF(AND('Enrollment Form'!$B458=\"Subscriber\",'Enrollment Form'!$C458=\"Enroll\",'Enrollment Form'!$AS458<>\"\"),\"Y\",\"N\")))","v":""},{"$f":"IF($B451=\"N\",\"\",IF($Q451=\"-\",\"-\",IF(AND($Q451=\"Y\",'Enrollment Form'!$AS458=\"No\"),\"-\",IF(AND($Q451=\"Y\",'Enrollment Form'!$AS458=\"Yes\",'Enrollment Form'!$AT458<>\"\"),\"Y\",\"N\"))))","v":""},{"$f":"IF($B451=\"N\",\"\",IF(OR('Enrollment Form'!$B458<>\"Subscriber\",'Enrollment Form'!$C458=\"ROC\"),\"-\",IF(AND('Enrollment Form'!$B458=\"Subscriber\",'Enrollment Form'!$C458=\"Enroll\",'Enrollment Form'!$CV458<>\"\"),\"Y\",\"N\")))","v":""},{"$f":"IF($B451=\"N\",\"\",IF($S451=\"-\",\"-\",IF(AND($S451=\"Y\",'Enrollment Form'!$CV458=\"No\"),\"-\",IF(AND($S451=\"Y\",'Enrollment Form'!$CV458=\"Yes\",'Enrollment Form'!$CW458<>\"\"),\"Y\",\"N\"))))","v":""},{"$f":"IF(OR('Enrollment Form'!$AY458=\"Yes\",'Enrollment Form'!$AY458=\"\"),\"-\",IF(OR(AND('Enrollment Form'!$AY458=\"No\",ISERROR(FIND(\"HMO\",VLOOKUP('Enrollment Form'!G458,'Enrollment Form'!H$11:J$1000,3,FALSE),1))=FALSE,COUNTA('Enrollment Form'!$AZ458:$BC458)=4),AND('Enrollment Form'!$AY458=\"No\",ISERROR(FIND(\"HMO\",VLOOKUP('Enrollment Form'!G458,'Enrollment Form'!H$11:J$1000,3,FALSE),1))=FALSE,COUNTA('Enrollment Form'!$BT458:$BW458)=4)),\"Y\",\"N\"))","v":"-"},{"$f":"IF($B451=\"N\",\"\",IF('Enrollment Form'!$B458=\"Subscriber\",\"-\",IF(COUNTA('Enrollment Form'!$BL458,'Enrollment Form'!$BN458)=2,\"Y\",\"N\")))","v":""},{"$f":"IF($B451=\"N\",\"\",IF(OR('Enrollment Form'!$AX458=\"\",'Enrollment Form'!$AX458=\"No\"),\"-\",IF(AND('Enrollment Form'!$AX458=\"Yes\",COUNTA('Enrollment Form'!$CR458)=1),\"Y\",\"N\")))","v":""},{"$f":"IF(OR('Enrollment Form'!$CR458=\"\",'Enrollment Form'!$CR458=\"No\"),\"-\",IF(COUNTA('Enrollment Form'!$CT458:$CU458)=2,\"Y\",\"N\"))","v":"-"},{"$f":"IF($B451=\"N\",\"\",IF(COUNTIF('Enrollment Form'!$DG458:$DP458,\"Other\")=COUNTA('Enrollment Form'!$DK458,'Enrollment Form'!$DH458,'Enrollment Form'!$DN458,'Enrollment Form'!$DQ458),\"Y\",\"N\"))","v":""},{"$f":"IF($B451=\"N\",\"\",IF(OR('Enrollment Form'!B458<>\"Subscriber\",'Enrollment Form'!C458=\"ROC\",COUNTIF('Enrollment Form'!AV458:AW458,\"Yes\")>=1),\"-\",IF(AND('Enrollment Form'!C458=\"Enroll\",COUNTIF('Enrollment Form'!AV458:AW458,\"No\")=2,'Enrollment Form'!AX458=\"\"),\"N\",\"Y\")))","v":""},{"$f":"IF(OR(B451=\"N\",'Enrollment Form'!B458<>\"Subscriber\",'Enrollment Form'!C458=\"ROC\",'Enrollment Form'!O458<>\"Multiple of Salary\"),\"-\",IF(COUNTA('Enrollment Form'!T458:U458)<2,\"N\",\"Y\"))","v":"-"},{"$f":"IF(B451=\"N\",\"\",IF(OR('Enrollment Form'!C458=\"ROC\",'Enrollment Form'!B458<>\"Subscriber\",'Enrollment Form'!O458=\"Waive\",'Enrollment Form'!O458=\"\"),\"-\",IF('Enrollment Form'!P458=\"\",\"N\",\"Y\")))","v":""},{"$f":"IF($B451=\"N\",\"\",IF(AND('Enrollment Form'!$C458=\"ROC\",'Enrollment Form'!$DR458<>\"\"),\"Y\",IF(AND('Enrollment Form'!$C458=\"ROC\",'Enrollment Form'!$DR458=\"\"),\"N\",IF(AND('Enrollment Form'!$C458=\"Enroll\",'Enrollment Form'!$B458=\"Subscriber\",'Enrollment Form'!$CX458=\"No\",'Enrollment Form'!$DR458=\"\"),\"N\",IF(AND('Enrollment Form'!$C458=\"Enroll\",'Enrollment Form'!$B458=\"Subscriber\",'Enrollment Form'!$CX458=\"Yes\"),\"-\",\"Y\")))))","v":""},{"$f":"IF($B451=\"N\",\"\",IF(AND('Enrollment Form'!$C458=\"ROC\",'Enrollment Form'!$DS458<>\"\"),\"Y\",IF(AND('Enrollment Form'!$C458=\"ROC\",'Enrollment Form'!$DS458=\"\"),\"N\",IF(AND('Enrollment Form'!$C458=\"Enroll\",'Enrollment Form'!$B458=\"Subscriber\",'Enrollment Form'!$CX458=\"No\",'Enrollment Form'!$DS458=\"\"),\"N\",IF(AND('Enrollment Form'!$C458=\"Enroll\",'Enrollment Form'!$B458=\"Subscriber\",'Enrollment Form'!$CX458=\"Yes\"),\"-\",\"Y\")))))","v":""},{"$f":"IF('Enrollment Form'!AH458=\"\",\"\",IF(ISERROR(SEARCH(\".\",'Enrollment Form'!AH458,SEARCH(\"@\",'Enrollment Form'!AH458))),\"N\",\"Y\"))","v":""},{"$f":"IF(OR($B451=\"N\",'Enrollment Form'!$G458=\"\"),\"\",IF('Enrollment Form'!$B458<>\"Subscriber\",\"-\",IF(COUNTIF('Enrollment Form'!$AV458:$AW458,\"Yes\")=2,\"N\",\"Y\")))","v":""},{"$f":"IF(OR('Enrollment Form'!$CJ458=\"\",'Enrollment Form'!$CJ458=\"No\"),\"-\",IF(AND('Enrollment Form'!$CJ458=\"Yes\",'Enrollment Form'!$CK458=\"\"),\"N\",\"Y\"))","v":"-"},{"$f":"IF(OR('Enrollment Form'!$CL458=\"\",'Enrollment Form'!$CL458=\"No\"),\"-\",IF(AND('Enrollment Form'!$CL458=\"Yes\",'Enrollment Form'!$CM458=\"\"),\"N\",\"Y\"))","v":"-"},{"$f":"IF(OR('Enrollment Form'!$CN458=\"\",'Enrollment Form'!$CN458=\"No\"),\"-\",IF(AND('Enrollment Form'!$CN458=\"Yes\",'Enrollment Form'!$CO458=\"\"),\"N\",\"Y\"))","v":"-"},{"$f":"IF(OR('Enrollment Form'!$CN458=\"\",'Enrollment Form'!$CN458=\"No\"),\"-\",IF(AND('Enrollment Form'!$CN458=\"Yes\",'Enrollment Form'!$CP458=\"\"),\"N\",\"Y\"))","v":"-"},{"$f":"IF('Enrollment Form'!B458<>\"Subscriber\",\"-\",IF(AND('Enrollment Form'!B458=\"Subscriber\",'Enrollment Form'!C458=\"Enroll\",'Enrollment Form'!AA458=\"\"),\"N\",\"Y\"))","v":"-"},{"$f":"IF(OR('Enrollment Form'!B458=\"Subscriber\",'Enrollment Form'!B458=\"\"),\"-\",IF('Enrollment Form'!BP458=\"\",\"N\",\"Y\"))","v":"-"},{"$f":"IF('Enrollment Form'!B458<>\"Subscriber\",\"-\",IF(AND('Enrollment Form'!B458=\"Subscriber\",'Enrollment Form'!G458=\"\"),\"N\",\"Y\"))","v":"-"},{"$f":"IF('Enrollment Form'!A458=\"\",\"\",IF('Enrollment Form'!B458=\"Subscriber\",\"-\",IF(AND('Enrollment Form'!B458<>\"Subscriber\",'Enrollment Form'!G458='Enrollment Form'!H458),\"N\",\"Y\")))","v":""},0]
[459,{"$f":"IF('Enrollment Form'!$A459<>\"\",\"Y\",\"N\")","v":"N"},{"$f":"IF(AND('Enrollment Form'!$B459=\"\",'Enrollment Form'!$C459<>\"\"),\"N\",IF($B452=\"N\",\"\",\"Y\"))","v":""},{"$f":"IF(OR($B452=\"N\",'Enrollment Form'!G459=\"\"),\"\",IF('Enrollment Form'!$B459<>\"Subscriber\",\"\",IF('Enrollment Form'!$G459='Enrollment Form'!$H459,\"Y\",\"N\")))","v":""},{"$f":"IF($B452=\"N\",\"\",IF(AND(COUNTIFS('Enrollment Form'!$H$11:$H$1000,'Enrollment Form'!$H459,'Enrollment Form'!$B$11:$B$1000,'Enrollment Form'!$B459)>1,'Enrollment Form'!$H459<>\"\"),\"N\",\"Y\"))","v":""},{"$f":"IF($B452=\"N\",\"\",IF(LEN('Enrollment Form'!$Y459)=0,\"\",IF(LEN('Enrollment Form'!$Y459)<>5,\"N\",\"Y\")))","v":""},{"$f":"IF($B452=\"N\",\"\",IF(LEN('Enrollment Form'!$AD459=0),\"\",IF(LEN('Enrollment Form'!$AD459)<>5,\"N\",\"Y\")))","v":""},{"$f":"IF($B452=\"N\",\"\",IF(LEN('Enrollment Form'!$BS459=0),\"\",IF(LEN('Enrollment Form'!$BS459)<>5,\"N\",\"Y\")))","v":""},{"$f":"IF($B452=\"N\",\"\",IF(LEN('Enrollment Form'!$AE459)=0,\"\",IF(LEN('Enrollment Form'!$AE459)<>10,\"N\",\"Y\")))","v":""},{"$f":"IF($B452=\"N\",\"\",IF(LEN('Enrollment Form'!$AF459)=0,\"\",IF(LEN('Enrollment Form'!$AF459)<>10,\"N\",\"Y\")))","v":""},{"$f":"IF('Enrollment Form'!$O459<>\"Graded\",\"-\",IF(AND('Enrollment Form'!$O459=\"Graded\",'Enrollment Form'!$AR459<>\"\"),\"Y\",\"N\"))","v":"-"},{"$f":"IF($B452=\"N\",\"\",IF(OR('Enrollment Form'!$B459<>\"Subscriber\",'Enrollment Form'!$C459=\"ROC\"),\"-\",IF(AND('Enrollment Form'!$B459=\"Subscriber\",'Enrollment Form'!$C459=\"Enroll\",'Enrollment Form'!$AJ459<>\"\"),\"Y\",\"N\")))","v":""},{"$f":"IF($B452=\"N\",\"\",IF(OR('Enrollment Form'!$B459<>\"Subscriber\",'Enrollment Form'!$C459=\"ROC\"),\"-\",IF(AND('Enrollment Form'!$B459=\"Subscriber\",'Enrollment Form'!$C459=\"Enroll\",'Enrollment Form'!$AK459<>\"\"),\"Y\",\"N\")))","v":""},{"$f":"IF($B452=\"N\",\"\",IF(OR('Enrollment Form'!$B459<>\"Subscriber\",'Enrollment Form'!$C459=\"ROC\"),\"-\",IF(AND('Enrollment Form'!$B459=\"Subscriber\",'Enrollment Form'!$C459=\"Enroll\",'Enrollment Form'!$AL459<>\"\"),\"Y\",\"N\")))","v":""},{"$f":"IF($B452=\"N\",\"\",IF(OR('Enrollment Form'!$B459<>\"Subscriber\",'Enrollment Form'!$C459=\"ROC\"),\"-\",IF(AND('Enrollment Form'!$B459=\"Subscriber\",'Enrollment Form'!$C459=\"Enroll\",'Enrollment Form'!$AP459<>\"\"),\"Y\",\"N\")))","v":""},{"$f":"IF($B452=\"N\",\"\",IF(OR('Enrollment Form'!$B459<>\"Subscriber\",'Enrollment Form'!$C459=\"ROC\"),\"-\",IF(AND('Enrollment Form'!$B459=\"Subscriber\",'Enrollment Form'!$C459=\"Enroll\",'Enrollment Form'!$AQ459<>\"\"),\"Y\",\"N\")))","v":""},{"$f":"IF($B452=\"N\",\"\",IF(OR('Enrollment Form'!$B459<>\"Subscriber\",'Enrollment Form'!$C459=\"ROC\"),\"-\",IF(AND('Enrollment Form'!$B459=\"Subscriber\",'Enrollment Form'!$C459=\"Enroll\",'Enrollment Form'!$AS459<>\"\"),\"Y\",\"N\")))","v":""},{"$f":"IF($B452=\"N\",\"\",IF($Q452=\"-\",\"-\",IF(AND($Q452=\"Y\",'Enrollment Form'!$AS459=\"No\"),\"-\",IF(AND($Q452=\"Y\",'Enrollment Form'!$AS459=\"Yes\",'Enrollment Form'!$AT459<>\"\"),\"Y\",\"N\"))))","v":""},{"$f":"IF($B452=\"N\",\"\",IF(OR('Enrollment Form'!$B459<>\"Subscriber\",'Enrollment Form'!$C459=\"ROC\"),\"-\",IF(AND('Enrollment Form'!$B459=\"Subscriber\",'Enrollment Form'!$C459=\"Enroll\",'Enrollment Form'!$CV459<>\"\"),\"Y\",\"N\")))","v":""},{"$f":"IF($B452=\"N\",\"\",IF($S452=\"-\",\"-\",IF(AND($S452=\"Y\",'Enrollment Form'!$CV459=\"No\"),\"-\",IF(AND($S452=\"Y\",'Enrollment Form'!$CV459=\"Yes\",'Enrollment Form'!$CW459<>\"\"),\"Y\",\"N\"))))","v":""},{"$f":"IF(OR('Enrollment Form'!$AY459=\"Yes\",'Enrollment Form'!$AY459=\"\"),\"-\",IF(OR(AND('Enrollment Form'!$AY459=\"No\",ISERROR(FIND(\"HMO\",VLOOKUP('Enrollment Form'!G459,'Enrollment Form'!H$11:J$1000,3,FALSE),1))=FALSE,COUNTA('Enrollment Form'!$AZ459:$BC459)=4),AND('Enrollment Form'!$AY459=\"No\",ISERROR(FIND(\"HMO\",VLOOKUP('Enrollment Form'!G459,'Enrollment Form'!H$11:J$1000,3,FALSE),1))=FALSE,COUNTA('Enrollment Form'!$BT459:$BW459)=4)),\"Y\",\"N\"))","v":"-"},{"$f":"IF($B452=\"N\",\"\",IF('Enrollment Form'!$B459=\"Subscriber\",\"-\",IF(COUNTA('Enrollment Form'!$BL459,'Enrollment Form'!$BN459)=2,\"Y\",\"N\")))","v":""},{"$f":"IF($B452=\"N\",\"\",IF(OR('Enrollment Form'!$AX459=\"\",'Enrollment Form'!$AX459=\"No\"),\"-\",IF(AND('Enrollment Form'!$AX459=\"Yes\",COUNTA('Enrollment Form'!$CR459)=1),\"Y\",\"N\")))","v":""},{"$f":"IF(OR('Enrollment Form'!$CR459=\"\",'Enrollment Form'!$CR459=\"No\"),\"-\",IF(COUNTA('Enrollment Form'!$CT459:$CU459)=2,\"Y\",\"N\"))","v":"-"},{"$f":"IF($B452=\"N\",\"\",IF(COUNTIF('Enrollment Form'!$DG459:$DP459,\"Other\")=COUNTA('Enrollment Form'!$DK459,'Enrollment Form'!$DH459,'Enrollment Form'!$DN459,'Enrollment Form'!$DQ459),\"Y\",\"N\"))","v":""},{"$f":"IF($B452=\"N\",\"\",IF(OR('Enrollment Form'!B459<>\"Subscriber\",'Enrollment Form'!C459=\"ROC\",COUNTIF('Enrollment Form'!AV459:AW459,\"Yes\")>=1),\"-\",IF(AND('Enrollment Form'!C459=\"Enroll\",COUNTIF('Enrollment Form'!AV459:AW459,\"No\")=2,'Enrollment Form'!AX459=\"\"),\"N\",\"Y\")))","v":""},{"$f":"IF(OR(B452=\"N\",'Enrollment Form'!B459<>\"Subscriber\",'Enrollment Form'!C459=\"ROC\",'Enrollment Form'!O459<>\"Multiple of Salary\"),\"-\",IF(COUNTA('Enrollment Form'!T459:U459)<2,\"N\",\"Y\"))","v":"-"},{"$f":"IF(B452=\"N\",\"\",IF(OR('Enrollment Form'!C459=\"ROC\",'Enrollment Form'!B459<>\"Subscriber\",'Enrollment Form'!O459=\"Waive\",'Enrollment Form'!O459=\"\"),\"-\",IF('Enrollment Form'!P459=\"\",\"N\",\"Y\")))","v":""},{"$f":"IF($B452=\"N\",\"\",IF(AND('Enrollment Form'!$C459=\"ROC\",'Enrollment Form'!$DR459<>\"\"),\"Y\",IF(AND('Enrollment Form'!$C459=\"ROC\",'Enrollment Form'!$DR459=\"\"),\"N\",IF(AND('Enrollment Form'!$C459=\"Enroll\",'Enrollment Form'!$B459=\"Subscriber\",'Enrollment Form'!$CX459=\"No\",'Enrollment Form'!$DR459=\"\"),\"N\",IF(AND('Enrollment Form'!$C459=\"Enroll\",'Enrollment Form'!$B459=\"Subscriber\",'Enrollment Form'!$CX459=\"Yes\"),\"-\",\"Y\")))))","v":""},{"$f":"IF($B452=\"N\",\"\",IF(AND('Enrollment Form'!$C459=\"ROC\",'Enrollment Form'!$DS459<>\"\"),\"Y\",IF(AND('Enrollment Form'!$C459=\"ROC\",'Enrollment Form'!$DS459=\"\"),\"N\",IF(AND('Enrollment Form'!$C459=\"Enroll\",'Enrollment Form'!$B459=\"Subscriber\",'Enrollment Form'!$CX459=\"No\",'Enrollment Form'!$DS459=\"\"),\"N\",IF(AND('Enrollment Form'!$C459=\"Enroll\",'Enrollment Form'!$B459=\"Subscriber\",'Enrollment Form'!$CX459=\"Yes\"),\"-\",\"Y\")))))","v":""},{"$f":"IF('Enrollment Form'!AH459=\"\",\"\",IF(ISERROR(SEARCH(\".\",'Enrollment Form'!AH459,SEARCH(\"@\",'Enrollment Form'!AH459))),\"N\",\"Y\"))","v":""},{"$f":"IF(OR($B452=\"N\",'Enrollment Form'!$G459=\"\"),\"\",IF('Enrollment Form'!$B459<>\"Subscriber\",\"-\",IF(COUNTIF('Enrollment Form'!$AV459:$AW459,\"Yes\")=2,\"N\",\"Y\")))","v":""},{"$f":"IF(OR('Enrollment Form'!$CJ459=\"\",'Enrollment Form'!$CJ459=\"No\"),\"-\",IF(AND('Enrollment Form'!$CJ459=\"Yes\",'Enrollment Form'!$CK459=\"\"),\"N\",\"Y\"))","v":"-"},{"$f":"IF(OR('Enrollment Form'!$CL459=\"\",'Enrollment Form'!$CL459=\"No\"),\"-\",IF(AND('Enrollment Form'!$CL459=\"Yes\",'Enrollment Form'!$CM459=\"\"),\"N\",\"Y\"))","v":"-"},{"$f":"IF(OR('Enrollment Form'!$CN459=\"\",'Enrollment Form'!$CN459=\"No\"),\"-\",IF(AND('Enrollment Form'!$CN459=\"Yes\",'Enrollment Form'!$CO459=\"\"),\"N\",\"Y\"))","v":"-"},{"$f":"IF(OR('Enrollment Form'!$CN459=\"\",'Enrollment Form'!$CN459=\"No\"),\"-\",IF(AND('Enrollment Form'!$CN459=\"Yes\",'Enrollment Form'!$CP459=\"\"),\"N\",\"Y\"))","v":"-"},{"$f":"IF('Enrollment Form'!B459<>\"Subscriber\",\"-\",IF(AND('Enrollment Form'!B459=\"Subscriber\",'Enrollment Form'!C459=\"Enroll\",'Enrollment Form'!AA459=\"\"),\"N\",\"Y\"))","v":"-"},{"$f":"IF(OR('Enrollment Form'!B459=\"Subscriber\",'Enrollment Form'!B459=\"\"),\"-\",IF('Enrollment Form'!BP459=\"\",\"N\",\"Y\"))","v":"-"},{"$f":"IF('Enrollment Form'!B459<>\"Subscriber\",\"-\",IF(AND('Enrollment Form'!B459=\"Subscriber\",'Enrollment Form'!G459=\"\"),\"N\",\"Y\"))","v":"-"},{"$f":"IF('Enrollment Form'!A459=\"\",\"\",IF('Enrollment Form'!B459=\"Subscriber\",\"-\",IF(AND('Enrollment Form'!B459<>\"Subscriber\",'Enrollment Form'!G459='Enrollment Form'!H459),\"N\",\"Y\")))","v":""},{"$f":"COUNTIF(C452:AN452,\"N\")","v":0}]
[460,{"$f":"IF('Enrollment Form'!$A460<>\"\",\"Y\",\"N\")","v":"N"},{"$f":"IF(AND('Enrollment Form'!$B460=\"\",'Enrollment Form'!$C460<>\"\"),\"N\",IF($B453=\"N\",\"\",\"Y\"))","v":""},{"$f":"IF(OR($B453=\"N\",'Enrollment Form'!G460=\"\"),\"\",IF('Enrollment Form'!$B460<>\"Subscriber\",\"\",IF('Enrollment Form'!$G460='Enrollment Form'!$H460,\"Y\",\"N\")))","v":""},{"$f":"IF($B453=\"N\",\"\",IF(AND(COUNTIFS('Enrollment Form'!$H$11:$H$1000,'Enrollment Form'!$H460,'Enrollment Form'!$B$11:$B$1000,'Enrollment Form'!$B460)>1,'Enrollment Form'!$H460<>\"\"),\"N\",\"Y\"))","v":""},{"$f":"IF($B453=\"N\",\"\",IF(LEN('Enrollment Form'!$Y460)=0,\"\",IF(LEN('Enrollment Form'!$Y460)<>5,\"N\",\"Y\")))","v":""},{"$f":"IF($B453=\"N\",\"\",IF(LEN('Enrollment Form'!$AD460=0),\"\",IF(LEN('Enrollment Form'!$AD460)<>5,\"N\",\"Y\")))","v":""},{"$f":"IF($B453=\"N\",\"\",IF(LEN('Enrollment Form'!$BS460=0),\"\",IF(LEN('Enrollment Form'!$BS460)<>5,\"N\",\"Y\")))","v":""},{"$f":"IF($B453=\"N\",\"\",IF(LEN('Enrollment Form'!$AE460)=0,\"\",IF(LEN('Enrollment Form'!$AE460)<>10,\"N\",\"Y\")))","v":""},{"$f":"IF($B453=\"N\",\"\",IF(LEN('Enrollment Form'!$AF460)=0,\"\",IF(LEN('Enrollment Form'!$AF460)<>10,\"N\",\"Y\")))","v":""},{"$f":"IF('Enrollment Form'!$O460<>\"Graded\",\"-\",IF(AND('Enrollment Form'!$O460=\"Graded\",'Enrollment Form'!$AR460<>\"\"),\"Y\",\"N\"))","v":"-"},{"$f":"IF($B453=\"N\",\"\",IF(OR('Enrollment Form'!$B460<>\"Subscriber\",'Enrollment Form'!$C460=\"ROC\"),\"-\",IF(AND('Enrollment Form'!$B460=\"Subscriber\",'Enrollment Form'!$C460=\"Enroll\",'Enrollment Form'!$AJ460<>\"\"),\"Y\",\"N\")))","v":""},{"$f":"IF($B453=\"N\",\"\",IF(OR('Enrollment Form'!$B460<>\"Subscriber\",'Enrollment Form'!$C460=\"ROC\"),\"-\",IF(AND('Enrollment Form'!$B460=\"Subscriber\",'Enrollment Form'!$C460=\"Enroll\",'Enrollment Form'!$AK460<>\"\"),\"Y\",\"N\")))","v":""},{"$f":"IF($B453=\"N\",\"\",IF(OR('Enrollment Form'!$B460<>\"Subscriber\",'Enrollment Form'!$C460=\"ROC\"),\"-\",IF(AND('Enrollment Form'!$B460=\"Subscriber\",'Enrollment Form'!$C460=\"Enroll\",'Enrollment Form'!$AL460<>\"\"),\"Y\",\"N\")))","v":""},{"$f":"IF($B453=\"N\",\"\",IF(OR('Enrollment Form'!$B460<>\"Subscriber\",'Enrollment Form'!$C460=\"ROC\"),\"-\",IF(AND('Enrollment Form'!$B460=\"Subscriber\",'Enrollment Form'!$C460=\"Enroll\",'Enrollment Form'!$AP460<>\"\"),\"Y\",\"N\")))","v":""},{"$f":"IF($B453=\"N\",\"\",IF(OR('Enrollment Form'!$B460<>\"Subscriber\",'Enrollment Form'!$C460=\"ROC\"),\"-\",IF(AND('Enrollment Form'!$B460=\"Subscriber\",'Enrollment Form'!$C460=\"Enroll\",'Enrollment Form'!$AQ460<>\"\"),\"Y\",\"N\")))","v":""},{"$f":"IF($B453=\"N\",\"\",IF(OR('Enrollment Form'!$B460<>\"Subscriber\",'Enrollment Form'!$C460=\"ROC\"),\"-\",IF(AND('Enrollment Form'!$B460=\"Subscriber\",'Enrollment Form'!$C460=\"Enroll\",'Enrollment Form'!$AS460<>\"\"),\"Y\",\"N\")))","v":""},{"$f":"IF($B453=\"N\",\"\",IF($Q453=\"-\",\"-\",IF(AND($Q453=\"Y\",'Enrollment Form'!$AS460=\"No\"),\"-\",IF(AND($Q453=\"Y\",'Enrollment Form'!$AS460=\"Yes\",'Enrollment Form'!$AT460<>\"\"),\"Y\",\"N\"))))","v":""},{"$f":"IF($B453=\"N\",\"\",IF(OR('Enrollment Form'!$B460<>\"Subscriber\",'Enrollment Form'!$C460=\"ROC\"),\"-\",IF(AND('Enrollment Form'!$B460=\"Subscriber\",'Enrollment Form'!$C460=\"Enroll\",'Enrollment Form'!$CV460<>\"\"),\"Y\",\"N\")))","v":""},{"$f":"IF($B453=\"N\",\"\",IF($S453=\"-\",\"-\",IF(AND($S453=\"Y\",'Enrollment Form'!$CV460=\"No\"),\"-\",IF(AND($S453=\"Y\",'Enrollment Form'!$CV460=\"Yes\",'Enrollment Form'!$CW460<>\"\"),\"Y\",\"N\"))))","v":""},{"$f":"IF(OR('Enrollment Form'!$AY460=\"Yes\",'Enrollment Form'!$AY460=\"\"),\"-\",IF(OR(AND('Enrollment Form'!$AY460=\"No\",ISERROR(FIND(\"HMO\",VLOOKUP('Enrollment Form'!G460,'Enrollment Form'!H$11:J$1000,3,FALSE),1))=FALSE,COUNTA('Enrollment Form'!$AZ460:$BC460)=4),AND('Enrollment Form'!$AY460=\"No\",ISERROR(FIND(\"HMO\",VLOOKUP('Enrollment Form'!G460,'Enrollment Form'!H$11:J$1000,3,FALSE),1))=FALSE,COUNTA('Enrollment Form'!$BT460:$BW460)=4)),\"Y\",\"N\"))","v":"-"},{"$f":"IF($B453=\"N\",\"\",IF('Enrollment Form'!$B460=\"Subscriber\",\"-\",IF(COUNTA('Enrollment Form'!$BL460,'Enrollment Form'!$BN460)=2,\"Y\",\"N\")))","v":""},{"$f":"IF($B453=\"N\",\"\",IF(OR('Enrollment Form'!$AX460=\"\",'Enrollment Form'!$AX460=\"No\"),\"-\",IF(AND('Enrollment Form'!$AX460=\"Yes\",COUNTA('Enrollment Form'!$CR460)=1),\"Y\",\"N\")))","v":""},{"$f":"IF(OR('Enrollment Form'!$CR460=\"\",'Enrollment Form'!$CR460=\"No\"),\"-\",IF(COUNTA('Enrollment Form'!$CT460:$CU460)=2,\"Y\",\"N\"))","v":"-"},{"$f":"IF($B453=\"N\",\"\",IF(COUNTIF('Enrollment Form'!$DG460:$DP460,\"Other\")=COUNTA('Enrollment Form'!$DK460,'Enrollment Form'!$DH460,'Enrollment Form'!$DN460,'Enrollment Form'!$DQ460),\"Y\",\"N\"))","v":""},{"$f":"IF($B453=\"N\",\"\",IF(OR('Enrollment Form'!B460<>\"Subscriber\",'Enrollment Form'!C460=\"ROC\",COUNTIF('Enrollment Form'!AV460:AW460,\"Yes\")>=1),\"-\",IF(AND('Enrollment Form'!C460=\"Enroll\",COUNTIF('Enrollment Form'!AV460:AW460,\"No\")=2,'Enrollment Form'!AX460=\"\"),\"N\",\"Y\")))","v":""},{"$f":"IF(OR(B453=\"N\",'Enrollment Form'!B460<>\"Subscriber\",'Enrollment Form'!C460=\"ROC\",'Enrollment Form'!O460<>\"Multiple of Salary\"),\"-\",IF(COUNTA('Enrollment Form'!T460:U460)<2,\"N\",\"Y\"))","v":"-"},{"$f":"IF(B453=\"N\",\"\",IF(OR('Enrollment Form'!C460=\"ROC\",'Enrollment Form'!B460<>\"Subscriber\",'Enrollment Form'!O460=\"Waive\",'Enrollment Form'!O460=\"\"),\"-\",IF('Enrollment Form'!P460=\"\",\"N\",\"Y\")))","v":""},{"$f":"IF($B453=\"N\",\"\",IF(AND('Enrollment Form'!$C460=\"ROC\",'Enrollment Form'!$DR460<>\"\"),\"Y\",IF(AND('Enrollment Form'!$C460=\"ROC\",'Enrollment Form'!$DR460=\"\"),\"N\",IF(AND('Enrollment Form'!$C460=\"Enroll\",'Enrollment Form'!$B460=\"Subscriber\",'Enrollment Form'!$CX460=\"No\",'Enrollment Form'!$DR460=\"\"),\"N\",IF(AND('Enrollment Form'!$C460=\"Enroll\",'Enrollment Form'!$B460=\"Subscriber\",'Enrollment Form'!$CX460=\"Yes\"),\"-\",\"Y\")))))","v":""},{"$f":"IF($B453=\"N\",\"\",IF(AND('Enrollment Form'!$C460=\"ROC\",'Enrollment Form'!$DS460<>\"\"),\"Y\",IF(AND('Enrollment Form'!$C460=\"ROC\",'Enrollment Form'!$DS460=\"\"),\"N\",IF(AND('Enrollment Form'!$C460=\"Enroll\",'Enrollment Form'!$B460=\"Subscriber\",'Enrollment Form'!$CX460=\"No\",'Enrollment Form'!$DS460=\"\"),\"N\",IF(AND('Enrollment Form'!$C460=\"Enroll\",'Enrollment Form'!$B460=\"Subscriber\",'Enrollment Form'!$CX460=\"Yes\"),\"-\",\"Y\")))))","v":""},{"$f":"IF('Enrollment Form'!AH460=\"\",\"\",IF(ISERROR(SEARCH(\".\",'Enrollment Form'!AH460,SEARCH(\"@\",'Enrollment Form'!AH460))),\"N\",\"Y\"))","v":""},{"$f":"IF(OR($B453=\"N\",'Enrollment Form'!$G460=\"\"),\"\",IF('Enrollment Form'!$B460<>\"Subscriber\",\"-\",IF(COUNTIF('Enrollment Form'!$AV460:$AW460,\"Yes\")=2,\"N\",\"Y\")))","v":""},{"$f":"IF(OR('Enrollment Form'!$CJ460=\"\",'Enrollment Form'!$CJ460=\"No\"),\"-\",IF(AND('Enrollment Form'!$CJ460=\"Yes\",'Enrollment Form'!$CK460=\"\"),\"N\",\"Y\"))","v":"-"},{"$f":"IF(OR('Enrollment Form'!$CL460=\"\",'Enrollment Form'!$CL460=\"No\"),\"-\",IF(AND('Enrollment Form'!$CL460=\"Yes\",'Enrollment Form'!$CM460=\"\"),\"N\",\"Y\"))","v":"-"},{"$f":"IF(OR('Enrollment Form'!$CN460=\"\",'Enrollment Form'!$CN460=\"No\"),\"-\",IF(AND('Enrollment Form'!$CN460=\"Yes\",'Enrollment Form'!$CO460=\"\"),\"N\",\"Y\"))","v":"-"},{"$f":"IF(OR('Enrollment Form'!$CN460=\"\",'Enrollment Form'!$CN460=\"No\"),\"-\",IF(AND('Enrollment Form'!$CN460=\"Yes\",'Enrollment Form'!$CP460=\"\"),\"N\",\"Y\"))","v":"-"},{"$f":"IF('Enrollment Form'!B460<>\"Subscriber\",\"-\",IF(AND('Enrollment Form'!B460=\"Subscriber\",'Enrollment Form'!C460=\"Enroll\",'Enrollment Form'!AA460=\"\"),\"N\",\"Y\"))","v":"-"},{"$f":"IF(OR('Enrollment Form'!B460=\"Subscriber\",'Enrollment Form'!B460=\"\"),\"-\",IF('Enrollment Form'!BP460=\"\",\"N\",\"Y\"))","v":"-"},{"$f":"IF('Enrollment Form'!B460<>\"Subscriber\",\"-\",IF(AND('Enrollment Form'!B460=\"Subscriber\",'Enrollment Form'!G460=\"\"),\"N\",\"Y\"))","v":"-"},{"$f":"IF('Enrollment Form'!A460=\"\",\"\",IF('Enrollment Form'!B460=\"Subscriber\",\"-\",IF(AND('Enrollment Form'!B460<>\"Subscriber\",'Enrollment Form'!G460='Enrollment Form'!H460),\"N\",\"Y\")))","v":""},0]
[{"$f":"1+A453","v":461},{"$f":"IF('Enrollment Form'!$A461<>\"\",\"Y\",\"N\")","v":"N"},{"$f":"IF(AND('Enrollment Form'!$B461=\"\",'Enrollment Form'!$C461<>\"\"),\"N\",IF($B454=\"N\",\"\",\"Y\"))","v":""},{"$f":"IF(OR($B454=\"N\",'Enrollment Form'!G461=\"\"),\"\",IF('Enrollment Form'!$B461<>\"Subscriber\",\"\",IF('Enrollment Form'!$G461='Enrollment Form'!$H461,\"Y\",\"N\")))","v":""},{"$f":"IF($B454=\"N\",\"\",IF(AND(COUNTIFS('Enrollment Form'!$H$11:$H$1000,'Enrollment Form'!$H461,'Enrollment Form'!$B$11:$B$1000,'Enrollment Form'!$B461)>1,'Enrollment Form'!$H461<>\"\"),\"N\",\"Y\"))","v":""},{"$f":"IF($B454=\"N\",\"\",IF(LEN('Enrollment Form'!$Y461)=0,\"\",IF(LEN('Enrollment Form'!$Y461)<>5,\"N\",\"Y\")))","v":""},{"$f":"IF($B454=\"N\",\"\",IF(LEN('Enrollment Form'!$AD461=0),\"\",IF(LEN('Enrollment Form'!$AD461)<>5,\"N\",\"Y\")))","v":""},{"$f":"IF($B454=\"N\",\"\",IF(LEN('Enrollment Form'!$BS461=0),\"\",IF(LEN('Enrollment Form'!$BS461)<>5,\"N\",\"Y\")))","v":""},{"$f":"IF($B454=\"N\",\"\",IF(LEN('Enrollment Form'!$AE461)=0,\"\",IF(LEN('Enrollment Form'!$AE461)<>10,\"N\",\"Y\")))","v":""},{"$f":"IF($B454=\"N\",\"\",IF(LEN('Enrollment Form'!$AF461)=0,\"\",IF(LEN('Enrollment Form'!$AF461)<>10,\"N\",\"Y\")))","v":""},{"$f":"IF('Enrollment Form'!$O461<>\"Graded\",\"-\",IF(AND('Enrollment Form'!$O461=\"Graded\",'Enrollment Form'!$AR461<>\"\"),\"Y\",\"N\"))","v":"-"},{"$f":"IF($B454=\"N\",\"\",IF(OR('Enrollment Form'!$B461<>\"Subscriber\",'Enrollment Form'!$C461=\"ROC\"),\"-\",IF(AND('Enrollment Form'!$B461=\"Subscriber\",'Enrollment Form'!$C461=\"Enroll\",'Enrollment Form'!$AJ461<>\"\"),\"Y\",\"N\")))","v":""},{"$f":"IF($B454=\"N\",\"\",IF(OR('Enrollment Form'!$B461<>\"Subscriber\",'Enrollment Form'!$C461=\"ROC\"),\"-\",IF(AND('Enrollment Form'!$B461=\"Subscriber\",'Enrollment Form'!$C461=\"Enroll\",'Enrollment Form'!$AK461<>\"\"),\"Y\",\"N\")))","v":""},{"$f":"IF($B454=\"N\",\"\",IF(OR('Enrollment Form'!$B461<>\"Subscriber\",'Enrollment Form'!$C461=\"ROC\"),\"-\",IF(AND('Enrollment Form'!$B461=\"Subscriber\",'Enrollment Form'!$C461=\"Enroll\",'Enrollment Form'!$AL461<>\"\"),\"Y\",\"N\")))","v":""},{"$f":"IF($B454=\"N\",\"\",IF(OR('Enrollment Form'!$B461<>\"Subscriber\",'Enrollment Form'!$C461=\"ROC\"),\"-\",IF(AND('Enrollment Form'!$B461=\"Subscriber\",'Enrollment Form'!$C461=\"Enroll\",'Enrollment Form'!$AP461<>\"\"),\"Y\",\"N\")))","v":""},{"$f":"IF($B454=\"N\",\"\",IF(OR('Enrollment Form'!$B461<>\"Subscriber\",'Enrollment Form'!$C461=\"ROC\"),\"-\",IF(AND('Enrollment Form'!$B461=\"Subscriber\",'Enrollment Form'!$C461=\"Enroll\",'Enrollment Form'!$AQ461<>\"\"),\"Y\",\"N\")))","v":""},{"$f":"IF($B454=\"N\",\"\",IF(OR('Enrollment Form'!$B461<>\"Subscriber\",'Enrollment Form'!$C461=\"ROC\"),\"-\",IF(AND('Enrollment Form'!$B461=\"Subscriber\",'Enrollment Form'!$C461=\"Enroll\",'Enrollment Form'!$AS461<>\"\"),\"Y\",\"N\")))","v":""},{"$f":"IF($B454=\"N\",\"\",IF($Q454=\"-\",\"-\",IF(AND($Q454=\"Y\",'Enrollment Form'!$AS461=\"No\"),\"-\",IF(AND($Q454=\"Y\",'Enrollment Form'!$AS461=\"Yes\",'Enrollment Form'!$AT461<>\"\"),\"Y\",\"N\"))))","v":""},{"$f":"IF($B454=\"N\",\"\",IF(OR('Enrollment Form'!$B461<>\"Subscriber\",'Enrollment Form'!$C461=\"ROC\"),\"-\",IF(AND('Enrollment Form'!$B461=\"Subscriber\",'Enrollment Form'!$C461=\"Enroll\",'Enrollment Form'!$CV461<>\"\"),\"Y\",\"N\")))","v":""},{"$f":"IF($B454=\"N\",\"\",IF($S454=\"-\",\"-\",IF(AND($S454=\"Y\",'Enrollment Form'!$CV461=\"No\"),\"-\",IF(AND($S454=\"Y\",'Enrollment Form'!$CV461=\"Yes\",'Enrollment Form'!$CW461<>\"\"),\"Y\",\"N\"))))","v":""},{"$f":"IF(OR('Enrollment Form'!$AY461=\"Yes\",'Enrollment Form'!$AY461=\"\"),\"-\",IF(OR(AND('Enrollment Form'!$AY461=\"No\",ISERROR(FIND(\"HMO\",VLOOKUP('Enrollment Form'!G461,'Enrollment Form'!H$11:J$1000,3,FALSE),1))=FALSE,COUNTA('Enrollment Form'!$AZ461:$BC461)=4),AND('Enrollment Form'!$AY461=\"No\",ISERROR(FIND(\"HMO\",VLOOKUP('Enrollment Form'!G461,'Enrollment Form'!H$11:J$1000,3,FALSE),1))=FALSE,COUNTA('Enrollment Form'!$BT461:$BW461)=4)),\"Y\",\"N\"))","v":"-"},{"$f":"IF($B454=\"N\",\"\",IF('Enrollment Form'!$B461=\"Subscriber\",\"-\",IF(COUNTA('Enrollment Form'!$BL461,'Enrollment Form'!$BN461)=2,\"Y\",\"N\")))","v":""},{"$f":"IF($B454=\"N\",\"\",IF(OR('Enrollment Form'!$AX461=\"\",'Enrollment Form'!$AX461=\"No\"),\"-\",IF(AND('Enrollment Form'!$AX461=\"Yes\",COUNTA('Enrollment Form'!$CR461)=1),\"Y\",\"N\")))","v":""},{"$f":"IF(OR('Enrollment Form'!$CR461=\"\",'Enrollment Form'!$CR461=\"No\"),\"-\",IF(COUNTA('Enrollment Form'!$CT461:$CU461)=2,\"Y\",\"N\"))","v":"-"},{"$f":"IF($B454=\"N\",\"\",IF(COUNTIF('Enrollment Form'!$DG461:$DP461,\"Other\")=COUNTA('Enrollment Form'!$DK461,'Enrollment Form'!$DH461,'Enrollment Form'!$DN461,'Enrollment Form'!$DQ461),\"Y\",\"N\"))","v":""},{"$f":"IF($B454=\"N\",\"\",IF(OR('Enrollment Form'!B461<>\"Subscriber\",'Enrollment Form'!C461=\"ROC\",COUNTIF('Enrollment Form'!AV461:AW461,\"Yes\")>=1),\"-\",IF(AND('Enrollment Form'!C461=\"Enroll\",COUNTIF('Enrollment Form'!AV461:AW461,\"No\")=2,'Enrollment Form'!AX461=\"\"),\"N\",\"Y\")))","v":""},{"$f":"IF(OR(B454=\"N\",'Enrollment Form'!B461<>\"Subscriber\",'Enrollment Form'!C461=\"ROC\",'Enrollment Form'!O461<>\"Multiple of Salary\"),\"-\",IF(COUNTA('Enrollment Form'!T461:U461)<2,\"N\",\"Y\"))","v":"-"},{"$f":"IF(B454=\"N\",\"\",IF(OR('Enrollment Form'!C461=\"ROC\",'Enrollment Form'!B461<>\"Subscriber\",'Enrollment Form'!O461=\"Waive\",'Enrollment Form'!O461=\"\"),\"-\",IF('Enrollment Form'!P461=\"\",\"N\",\"Y\")))","v":""},{"$f":"IF($B454=\"N\",\"\",IF(AND('Enrollment Form'!$C461=\"ROC\",'Enrollment Form'!$DR461<>\"\"),\"Y\",IF(AND('Enrollment Form'!$C461=\"ROC\",'Enrollment Form'!$DR461=\"\"),\"N\",IF(AND('Enrollment Form'!$C461=\"Enroll\",'Enrollment Form'!$B461=\"Subscriber\",'Enrollment Form'!$CX461=\"No\",'Enrollment Form'!$DR461=\"\"),\"N\",IF(AND('Enrollment Form'!$C461=\"Enroll\",'Enrollment Form'!$B461=\"Subscriber\",'Enrollment Form'!$CX461=\"Yes\"),\"-\",\"Y\")))))","v":""},{"$f":"IF($B454=\"N\",\"\",IF(AND('Enrollment Form'!$C461=\"ROC\",'Enrollment Form'!$DS461<>\"\"),\"Y\",IF(AND('Enrollment Form'!$C461=\"ROC\",'Enrollment Form'!$DS461=\"\"),\"N\",IF(AND('Enrollment Form'!$C461=\"Enroll\",'Enrollment Form'!$B461=\"Subscriber\",'Enrollment Form'!$CX461=\"No\",'Enrollment Form'!$DS461=\"\"),\"N\",IF(AND('Enrollment Form'!$C461=\"Enroll\",'Enrollment Form'!$B461=\"Subscriber\",'Enrollment Form'!$CX461=\"Yes\"),\"-\",\"Y\")))))","v":""},{"$f":"IF('Enrollment Form'!AH461=\"\",\"\",IF(ISERROR(SEARCH(\".\",'Enrollment Form'!AH461,SEARCH(\"@\",'Enrollment Form'!AH461))),\"N\",\"Y\"))","v":""},{"$f":"IF(OR($B454=\"N\",'Enrollment Form'!$G461=\"\"),\"\",IF('Enrollment Form'!$B461<>\"Subscriber\",\"-\",IF(COUNTIF('Enrollment Form'!$AV461:$AW461,\"Yes\")=2,\"N\",\"Y\")))","v":""},{"$f":"IF(OR('Enrollment Form'!$CJ461=\"\",'Enrollment Form'!$CJ461=\"No\"),\"-\",IF(AND('Enrollment Form'!$CJ461=\"Yes\",'Enrollment Form'!$CK461=\"\"),\"N\",\"Y\"))","v":"-"},{"$f":"IF(OR('Enrollment Form'!$CL461=\"\",'Enrollment Form'!$CL461=\"No\"),\"-\",IF(AND('Enrollment Form'!$CL461=\"Yes\",'Enrollment Form'!$CM461=\"\"),\"N\",\"Y\"))","v":"-"},{"$f":"IF(OR('Enrollment Form'!$CN461=\"\",'Enrollment Form'!$CN461=\"No\"),\"-\",IF(AND('Enrollment Form'!$CN461=\"Yes\",'Enrollment Form'!$CO461=\"\"),\"N\",\"Y\"))","v":"-"},{"$f":"IF(OR('Enrollment Form'!$CN461=\"\",'Enrollment Form'!$CN461=\"No\"),\"-\",IF(AND('Enrollment Form'!$CN461=\"Yes\",'Enrollment Form'!$CP461=\"\"),\"N\",\"Y\"))","v":"-"},{"$f":"IF('Enrollment Form'!B461<>\"Subscriber\",\"-\",IF(AND('Enrollment Form'!B461=\"Subscriber\",'Enrollment Form'!C461=\"Enroll\",'Enrollment Form'!AA461=\"\"),\"N\",\"Y\"))","v":"-"},{"$f":"IF(OR('Enrollment Form'!B461=\"Subscriber\",'Enrollment Form'!B461=\"\"),\"-\",IF('Enrollment Form'!BP461=\"\",\"N\",\"Y\"))","v":"-"},{"$f":"IF('Enrollment Form'!B461<>\"Subscriber\",\"-\",IF(AND('Enrollment Form'!B461=\"Subscriber\",'Enrollment Form'!G461=\"\"),\"N\",\"Y\"))","v":"-"},{"$f":"IF('Enrollment Form'!A461=\"\",\"\",IF('Enrollment Form'!B461=\"Subscriber\",\"-\",IF(AND('Enrollment Form'!B461<>\"Subscriber\",'Enrollment Form'!G461='Enrollment Form'!H461),\"N\",\"Y\")))","v":""},0]
[462,{"$f":"IF('Enrollment Form'!$A462<>\"\",\"Y\",\"N\")","v":"N"},{"$f":"IF(AND('Enrollment Form'!$B462=\"\",'Enrollment Form'!$C462<>\"\"),\"N\",IF($B455=\"N\",\"\",\"Y\"))","v":""},{"$f":"IF(OR($B455=\"N\",'Enrollment Form'!G462=\"\"),\"\",IF('Enrollment Form'!$B462<>\"Subscriber\",\"\",IF('Enrollment Form'!$G462='Enrollment Form'!$H462,\"Y\",\"N\")))","v":""},{"$f":"IF($B455=\"N\",\"\",IF(AND(COUNTIFS('Enrollment Form'!$H$11:$H$1000,'Enrollment Form'!$H462,'Enrollment Form'!$B$11:$B$1000,'Enrollment Form'!$B462)>1,'Enrollment Form'!$H462<>\"\"),\"N\",\"Y\"))","v":""},{"$f":"IF($B455=\"N\",\"\",IF(LEN('Enrollment Form'!$Y462)=0,\"\",IF(LEN('Enrollment Form'!$Y462)<>5,\"N\",\"Y\")))","v":""},{"$f":"IF($B455=\"N\",\"\",IF(LEN('Enrollment Form'!$AD462=0),\"\",IF(LEN('Enrollment Form'!$AD462)<>5,\"N\",\"Y\")))","v":""},{"$f":"IF($B455=\"N\",\"\",IF(LEN('Enrollment Form'!$BS462=0),\"\",IF(LEN('Enrollment Form'!$BS462)<>5,\"N\",\"Y\")))","v":""},{"$f":"IF($B455=\"N\",\"\",IF(LEN('Enrollment Form'!$AE462)=0,\"\",IF(LEN('Enrollment Form'!$AE462)<>10,\"N\",\"Y\")))","v":""},{"$f":"IF($B455=\"N\",\"\",IF(LEN('Enrollment Form'!$AF462)=0,\"\",IF(LEN('Enrollment Form'!$AF462)<>10,\"N\",\"Y\")))","v":""},{"$f":"IF('Enrollment Form'!$O462<>\"Graded\",\"-\",IF(AND('Enrollment Form'!$O462=\"Graded\",'Enrollment Form'!$AR462<>\"\"),\"Y\",\"N\"))","v":"-"},{"$f":"IF($B455=\"N\",\"\",IF(OR('Enrollment Form'!$B462<>\"Subscriber\",'Enrollment Form'!$C462=\"ROC\"),\"-\",IF(AND('Enrollment Form'!$B462=\"Subscriber\",'Enrollment Form'!$C462=\"Enroll\",'Enrollment Form'!$AJ462<>\"\"),\"Y\",\"N\")))","v":""},{"$f":"IF($B455=\"N\",\"\",IF(OR('Enrollment Form'!$B462<>\"Subscriber\",'Enrollment Form'!$C462=\"ROC\"),\"-\",IF(AND('Enrollment Form'!$B462=\"Subscriber\",'Enrollment Form'!$C462=\"Enroll\",'Enrollment Form'!$AK462<>\"\"),\"Y\",\"N\")))","v":""},{"$f":"IF($B455=\"N\",\"\",IF(OR('Enrollment Form'!$B462<>\"Subscriber\",'Enrollment Form'!$C462=\"ROC\"),\"-\",IF(AND('Enrollment Form'!$B462=\"Subscriber\",'Enrollment Form'!$C462=\"Enroll\",'Enrollment Form'!$AL462<>\"\"),\"Y\",\"N\")))","v":""},{"$f":"IF($B455=\"N\",\"\",IF(OR('Enrollment Form'!$B462<>\"Subscriber\",'Enrollment Form'!$C462=\"ROC\"),\"-\",IF(AND('Enrollment Form'!$B462=\"Subscriber\",'Enrollment Form'!$C462=\"Enroll\",'Enrollment Form'!$AP462<>\"\"),\"Y\",\"N\")))","v":""},{"$f":"IF($B455=\"N\",\"\",IF(OR('Enrollment Form'!$B462<>\"Subscriber\",'Enrollment Form'!$C462=\"ROC\"),\"-\",IF(AND('Enrollment Form'!$B462=\"Subscriber\",'Enrollment Form'!$C462=\"Enroll\",'Enrollment Form'!$AQ462<>\"\"),\"Y\",\"N\")))","v":""},{"$f":"IF($B455=\"N\",\"\",IF(OR('Enrollment Form'!$B462<>\"Subscriber\",'Enrollment Form'!$C462=\"ROC\"),\"-\",IF(AND('Enrollment Form'!$B462=\"Subscriber\",'Enrollment Form'!$C462=\"Enroll\",'Enrollment Form'!$AS462<>\"\"),\"Y\",\"N\")))","v":""},{"$f":"IF($B455=\"N\",\"\",IF($Q455=\"-\",\"-\",IF(AND($Q455=\"Y\",'Enrollment Form'!$AS462=\"No\"),\"-\",IF(AND($Q455=\"Y\",'Enrollment Form'!$AS462=\"Yes\",'Enrollment Form'!$AT462<>\"\"),\"Y\",\"N\"))))","v":""},{"$f":"IF($B455=\"N\",\"\",IF(OR('Enrollment Form'!$B462<>\"Subscriber\",'Enrollment Form'!$C462=\"ROC\"),\"-\",IF(AND('Enrollment Form'!$B462=\"Subscriber\",'Enrollment Form'!$C462=\"Enroll\",'Enrollment Form'!$CV462<>\"\"),\"Y\",\"N\")))","v":""},{"$f":"IF($B455=\"N\",\"\",IF($S455=\"-\",\"-\",IF(AND($S455=\"Y\",'Enrollment Form'!$CV462=\"No\"),\"-\",IF(AND($S455=\"Y\",'Enrollment Form'!$CV462=\"Yes\",'Enrollment Form'!$CW462<>\"\"),\"Y\",\"N\"))))","v":""},{"$f":"IF(OR('Enrollment Form'!$AY462=\"Yes\",'Enrollment Form'!$AY462=\"\"),\"-\",IF(OR(AND('Enrollment Form'!$AY462=\"No\",ISERROR(FIND(\"HMO\",VLOOKUP('Enrollment Form'!G462,'Enrollment Form'!H$11:J$1000,3,FALSE),1))=FALSE,COUNTA('Enrollment Form'!$AZ462:$BC462)=4),AND('Enrollment Form'!$AY462=\"No\",ISERROR(FIND(\"HMO\",VLOOKUP('Enrollment Form'!G462,'Enrollment Form'!H$11:J$1000,3,FALSE),1))=FALSE,COUNTA('Enrollment Form'!$BT462:$BW462)=4)),\"Y\",\"N\"))","v":"-"},{"$f":"IF($B455=\"N\",\"\",IF('Enrollment Form'!$B462=\"Subscriber\",\"-\",IF(COUNTA('Enrollment Form'!$BL462,'Enrollment Form'!$BN462)=2,\"Y\",\"N\")))","v":""},{"$f":"IF($B455=\"N\",\"\",IF(OR('Enrollment Form'!$AX462=\"\",'Enrollment Form'!$AX462=\"No\"),\"-\",IF(AND('Enrollment Form'!$AX462=\"Yes\",COUNTA('Enrollment Form'!$CR462)=1),\"Y\",\"N\")))","v":""},{"$f":"IF(OR('Enrollment Form'!$CR462=\"\",'Enrollment Form'!$CR462=\"No\"),\"-\",IF(COUNTA('Enrollment Form'!$CT462:$CU462)=2,\"Y\",\"N\"))","v":"-"},{"$f":"IF($B455=\"N\",\"\",IF(COUNTIF('Enrollment Form'!$DG462:$DP462,\"Other\")=COUNTA('Enrollment Form'!$DK462,'Enrollment Form'!$DH462,'Enrollment Form'!$DN462,'Enrollment Form'!$DQ462),\"Y\",\"N\"))","v":""},{"$f":"IF($B455=\"N\",\"\",IF(OR('Enrollment Form'!B462<>\"Subscriber\",'Enrollment Form'!C462=\"ROC\",COUNTIF('Enrollment Form'!AV462:AW462,\"Yes\")>=1),\"-\",IF(AND('Enrollment Form'!C462=\"Enroll\",COUNTIF('Enrollment Form'!AV462:AW462,\"No\")=2,'Enrollment Form'!AX462=\"\"),\"N\",\"Y\")))","v":""},{"$f":"IF(OR(B455=\"N\",'Enrollment Form'!B462<>\"Subscriber\",'Enrollment Form'!C462=\"ROC\",'Enrollment Form'!O462<>\"Multiple of Salary\"),\"-\",IF(COUNTA('Enrollment Form'!T462:U462)<2,\"N\",\"Y\"))","v":"-"},{"$f":"IF(B455=\"N\",\"\",IF(OR('Enrollment Form'!C462=\"ROC\",'Enrollment Form'!B462<>\"Subscriber\",'Enrollment Form'!O462=\"Waive\",'Enrollment Form'!O462=\"\"),\"-\",IF('Enrollment Form'!P462=\"\",\"N\",\"Y\")))","v":""},{"$f":"IF($B455=\"N\",\"\",IF(AND('Enrollment Form'!$C462=\"ROC\",'Enrollment Form'!$DR462<>\"\"),\"Y\",IF(AND('Enrollment Form'!$C462=\"ROC\",'Enrollment Form'!$DR462=\"\"),\"N\",IF(AND('Enrollment Form'!$C462=\"Enroll\",'Enrollment Form'!$B462=\"Subscriber\",'Enrollment Form'!$CX462=\"No\",'Enrollment Form'!$DR462=\"\"),\"N\",IF(AND('Enrollment Form'!$C462=\"Enroll\",'Enrollment Form'!$B462=\"Subscriber\",'Enrollment Form'!$CX462=\"Yes\"),\"-\",\"Y\")))))","v":""},{"$f":"IF($B455=\"N\",\"\",IF(AND('Enrollment Form'!$C462=\"ROC\",'Enrollment Form'!$DS462<>\"\"),\"Y\",IF(AND('Enrollment Form'!$C462=\"ROC\",'Enrollment Form'!$DS462=\"\"),\"N\",IF(AND('Enrollment Form'!$C462=\"Enroll\",'Enrollment Form'!$B462=\"Subscriber\",'Enrollment Form'!$CX462=\"No\",'Enrollment Form'!$DS462=\"\"),\"N\",IF(AND('Enrollment Form'!$C462=\"Enroll\",'Enrollment Form'!$B462=\"Subscriber\",'Enrollment Form'!$CX462=\"Yes\"),\"-\",\"Y\")))))","v":""},{"$f":"IF('Enrollment Form'!AH462=\"\",\"\",IF(ISERROR(SEARCH(\".\",'Enrollment Form'!AH462,SEARCH(\"@\",'Enrollment Form'!AH462))),\"N\",\"Y\"))","v":""},{"$f":"IF(OR($B455=\"N\",'Enrollment Form'!$G462=\"\"),\"\",IF('Enrollment Form'!$B462<>\"Subscriber\",\"-\",IF(COUNTIF('Enrollment Form'!$AV462:$AW462,\"Yes\")=2,\"N\",\"Y\")))","v":""},{"$f":"IF(OR('Enrollment Form'!$CJ462=\"\",'Enrollment Form'!$CJ462=\"No\"),\"-\",IF(AND('Enrollment Form'!$CJ462=\"Yes\",'Enrollment Form'!$CK462=\"\"),\"N\",\"Y\"))","v":"-"},{"$f":"IF(OR('Enrollment Form'!$CL462=\"\",'Enrollment Form'!$CL462=\"No\"),\"-\",IF(AND('Enrollment Form'!$CL462=\"Yes\",'Enrollment Form'!$CM462=\"\"),\"N\",\"Y\"))","v":"-"},{"$f":"IF(OR('Enrollment Form'!$CN462=\"\",'Enrollment Form'!$CN462=\"No\"),\"-\",IF(AND('Enrollment Form'!$CN462=\"Yes\",'Enrollment Form'!$CO462=\"\"),\"N\",\"Y\"))","v":"-"},{"$f":"IF(OR('Enrollment Form'!$CN462=\"\",'Enrollment Form'!$CN462=\"No\"),\"-\",IF(AND('Enrollment Form'!$CN462=\"Yes\",'Enrollment Form'!$CP462=\"\"),\"N\",\"Y\"))","v":"-"},{"$f":"IF('Enrollment Form'!B462<>\"Subscriber\",\"-\",IF(AND('Enrollment Form'!B462=\"Subscriber\",'Enrollment Form'!C462=\"Enroll\",'Enrollment Form'!AA462=\"\"),\"N\",\"Y\"))","v":"-"},{"$f":"IF(OR('Enrollment Form'!B462=\"Subscriber\",'Enrollment Form'!B462=\"\"),\"-\",IF('Enrollment Form'!BP462=\"\",\"N\",\"Y\"))","v":"-"},{"$f":"IF('Enrollment Form'!B462<>\"Subscriber\",\"-\",IF(AND('Enrollment Form'!B462=\"Subscriber\",'Enrollment Form'!G462=\"\"),\"N\",\"Y\"))","v":"-"},{"$f":"IF('Enrollment Form'!A462=\"\",\"\",IF('Enrollment Form'!B462=\"Subscriber\",\"-\",IF(AND('Enrollment Form'!B462<>\"Subscriber\",'Enrollment Form'!G462='Enrollment Form'!H462),\"N\",\"Y\")))","v":""},0]
[463,{"$f":"IF('Enrollment Form'!$A463<>\"\",\"Y\",\"N\")","v":"N"},{"$f":"IF(AND('Enrollment Form'!$B463=\"\",'Enrollment Form'!$C463<>\"\"),\"N\",IF($B456=\"N\",\"\",\"Y\"))","v":""},{"$f":"IF(OR($B456=\"N\",'Enrollment Form'!G463=\"\"),\"\",IF('Enrollment Form'!$B463<>\"Subscriber\",\"\",IF('Enrollment Form'!$G463='Enrollment Form'!$H463,\"Y\",\"N\")))","v":""},{"$f":"IF($B456=\"N\",\"\",IF(AND(COUNTIFS('Enrollment Form'!$H$11:$H$1000,'Enrollment Form'!$H463,'Enrollment Form'!$B$11:$B$1000,'Enrollment Form'!$B463)>1,'Enrollment Form'!$H463<>\"\"),\"N\",\"Y\"))","v":""},{"$f":"IF($B456=\"N\",\"\",IF(LEN('Enrollment Form'!$Y463)=0,\"\",IF(LEN('Enrollment Form'!$Y463)<>5,\"N\",\"Y\")))","v":""},{"$f":"IF($B456=\"N\",\"\",IF(LEN('Enrollment Form'!$AD463=0),\"\",IF(LEN('Enrollment Form'!$AD463)<>5,\"N\",\"Y\")))","v":""},{"$f":"IF($B456=\"N\",\"\",IF(LEN('Enrollment Form'!$BS463=0),\"\",IF(LEN('Enrollment Form'!$BS463)<>5,\"N\",\"Y\")))","v":""},{"$f":"IF($B456=\"N\",\"\",IF(LEN('Enrollment Form'!$AE463)=0,\"\",IF(LEN('Enrollment Form'!$AE463)<>10,\"N\",\"Y\")))","v":""},{"$f":"IF($B456=\"N\",\"\",IF(LEN('Enrollment Form'!$AF463)=0,\"\",IF(LEN('Enrollment Form'!$AF463)<>10,\"N\",\"Y\")))","v":""},{"$f":"IF('Enrollment Form'!$O463<>\"Graded\",\"-\",IF(AND('Enrollment Form'!$O463=\"Graded\",'Enrollment Form'!$AR463<>\"\"),\"Y\",\"N\"))","v":"-"},{"$f":"IF($B456=\"N\",\"\",IF(OR('Enrollment Form'!$B463<>\"Subscriber\",'Enrollment Form'!$C463=\"ROC\"),\"-\",IF(AND('Enrollment Form'!$B463=\"Subscriber\",'Enrollment Form'!$C463=\"Enroll\",'Enrollment Form'!$AJ463<>\"\"),\"Y\",\"N\")))","v":""},{"$f":"IF($B456=\"N\",\"\",IF(OR('Enrollment Form'!$B463<>\"Subscriber\",'Enrollment Form'!$C463=\"ROC\"),\"-\",IF(AND('Enrollment Form'!$B463=\"Subscriber\",'Enrollment Form'!$C463=\"Enroll\",'Enrollment Form'!$AK463<>\"\"),\"Y\",\"N\")))","v":""},{"$f":"IF($B456=\"N\",\"\",IF(OR('Enrollment Form'!$B463<>\"Subscriber\",'Enrollment Form'!$C463=\"ROC\"),\"-\",IF(AND('Enrollment Form'!$B463=\"Subscriber\",'Enrollment Form'!$C463=\"Enroll\",'Enrollment Form'!$AL463<>\"\"),\"Y\",\"N\")))","v":""},{"$f":"IF($B456=\"N\",\"\",IF(OR('Enrollment Form'!$B463<>\"Subscriber\",'Enrollment Form'!$C463=\"ROC\"),\"-\",IF(AND('Enrollment Form'!$B463=\"Subscriber\",'Enrollment Form'!$C463=\"Enroll\",'Enrollment Form'!$AP463<>\"\"),\"Y\",\"N\")))","v":""},{"$f":"IF($B456=\"N\",\"\",IF(OR('Enrollment Form'!$B463<>\"Subscriber\",'Enrollment Form'!$C463=\"ROC\"),\"-\",IF(AND('Enrollment Form'!$B463=\"Subscriber\",'Enrollment Form'!$C463=\"Enroll\",'Enrollment Form'!$AQ463<>\"\"),\"Y\",\"N\")))","v":""},{"$f":"IF($B456=\"N\",\"\",IF(OR('Enrollment Form'!$B463<>\"Subscriber\",'Enrollment Form'!$C463=\"ROC\"),\"-\",IF(AND('Enrollment Form'!$B463=\"Subscriber\",'Enrollment Form'!$C463=\"Enroll\",'Enrollment Form'!$AS463<>\"\"),\"Y\",\"N\")))","v":""},{"$f":"IF($B456=\"N\",\"\",IF($Q456=\"-\",\"-\",IF(AND($Q456=\"Y\",'Enrollment Form'!$AS463=\"No\"),\"-\",IF(AND($Q456=\"Y\",'Enrollment Form'!$AS463=\"Yes\",'Enrollment Form'!$AT463<>\"\"),\"Y\",\"N\"))))","v":""},{"$f":"IF($B456=\"N\",\"\",IF(OR('Enrollment Form'!$B463<>\"Subscriber\",'Enrollment Form'!$C463=\"ROC\"),\"-\",IF(AND('Enrollment Form'!$B463=\"Subscriber\",'Enrollment Form'!$C463=\"Enroll\",'Enrollment Form'!$CV463<>\"\"),\"Y\",\"N\")))","v":""},{"$f":"IF($B456=\"N\",\"\",IF($S456=\"-\",\"-\",IF(AND($S456=\"Y\",'Enrollment Form'!$CV463=\"No\"),\"-\",IF(AND($S456=\"Y\",'Enrollment Form'!$CV463=\"Yes\",'Enrollment Form'!$CW463<>\"\"),\"Y\",\"N\"))))","v":""},{"$f":"IF(OR('Enrollment Form'!$AY463=\"Yes\",'Enrollment Form'!$AY463=\"\"),\"-\",IF(OR(AND('Enrollment Form'!$AY463=\"No\",ISERROR(FIND(\"HMO\",VLOOKUP('Enrollment Form'!G463,'Enrollment Form'!H$11:J$1000,3,FALSE),1))=FALSE,COUNTA('Enrollment Form'!$AZ463:$BC463)=4),AND('Enrollment Form'!$AY463=\"No\",ISERROR(FIND(\"HMO\",VLOOKUP('Enrollment Form'!G463,'Enrollment Form'!H$11:J$1000,3,FALSE),1))=FALSE,COUNTA('Enrollment Form'!$BT463:$BW463)=4)),\"Y\",\"N\"))","v":"-"},{"$f":"IF($B456=\"N\",\"\",IF('Enrollment Form'!$B463=\"Subscriber\",\"-\",IF(COUNTA('Enrollment Form'!$BL463,'Enrollment Form'!$BN463)=2,\"Y\",\"N\")))","v":""},{"$f":"IF($B456=\"N\",\"\",IF(OR('Enrollment Form'!$AX463=\"\",'Enrollment Form'!$AX463=\"No\"),\"-\",IF(AND('Enrollment Form'!$AX463=\"Yes\",COUNTA('Enrollment Form'!$CR463)=1),\"Y\",\"N\")))","v":""},{"$f":"IF(OR('Enrollment Form'!$CR463=\"\",'Enrollment Form'!$CR463=\"No\"),\"-\",IF(COUNTA('Enrollment Form'!$CT463:$CU463)=2,\"Y\",\"N\"))","v":"-"},{"$f":"IF($B456=\"N\",\"\",IF(COUNTIF('Enrollment Form'!$DG463:$DP463,\"Other\")=COUNTA('Enrollment Form'!$DK463,'Enrollment Form'!$DH463,'Enrollment Form'!$DN463,'Enrollment Form'!$DQ463),\"Y\",\"N\"))","v":""},{"$f":"IF($B456=\"N\",\"\",IF(OR('Enrollment Form'!B463<>\"Subscriber\",'Enrollment Form'!C463=\"ROC\",COUNTIF('Enrollment Form'!AV463:AW463,\"Yes\")>=1),\"-\",IF(AND('Enrollment Form'!C463=\"Enroll\",COUNTIF('Enrollment Form'!AV463:AW463,\"No\")=2,'Enrollment Form'!AX463=\"\"),\"N\",\"Y\")))","v":""},{"$f":"IF(OR(B456=\"N\",'Enrollment Form'!B463<>\"Subscriber\",'Enrollment Form'!C463=\"ROC\",'Enrollment Form'!O463<>\"Multiple of Salary\"),\"-\",IF(COUNTA('Enrollment Form'!T463:U463)<2,\"N\",\"Y\"))","v":"-"},{"$f":"IF(B456=\"N\",\"\",IF(OR('Enrollment Form'!C463=\"ROC\",'Enrollment Form'!B463<>\"Subscriber\",'Enrollment Form'!O463=\"Waive\",'Enrollment Form'!O463=\"\"),\"-\",IF('Enrollment Form'!P463=\"\",\"N\",\"Y\")))","v":""},{"$f":"IF($B456=\"N\",\"\",IF(AND('Enrollment Form'!$C463=\"ROC\",'Enrollment Form'!$DR463<>\"\"),\"Y\",IF(AND('Enrollment Form'!$C463=\"ROC\",'Enrollment Form'!$DR463=\"\"),\"N\",IF(AND('Enrollment Form'!$C463=\"Enroll\",'Enrollment Form'!$B463=\"Subscriber\",'Enrollment Form'!$CX463=\"No\",'Enrollment Form'!$DR463=\"\"),\"N\",IF(AND('Enrollment Form'!$C463=\"Enroll\",'Enrollment Form'!$B463=\"Subscriber\",'Enrollment Form'!$CX463=\"Yes\"),\"-\",\"Y\")))))","v":""},{"$f":"IF($B456=\"N\",\"\",IF(AND('Enrollment Form'!$C463=\"ROC\",'Enrollment Form'!$DS463<>\"\"),\"Y\",IF(AND('Enrollment Form'!$C463=\"ROC\",'Enrollment Form'!$DS463=\"\"),\"N\",IF(AND('Enrollment Form'!$C463=\"Enroll\",'Enrollment Form'!$B463=\"Subscriber\",'Enrollment Form'!$CX463=\"No\",'Enrollment Form'!$DS463=\"\"),\"N\",IF(AND('Enrollment Form'!$C463=\"Enroll\",'Enrollment Form'!$B463=\"Subscriber\",'Enrollment Form'!$CX463=\"Yes\"),\"-\",\"Y\")))))","v":""},{"$f":"IF('Enrollment Form'!AH463=\"\",\"\",IF(ISERROR(SEARCH(\".\",'Enrollment Form'!AH463,SEARCH(\"@\",'Enrollment Form'!AH463))),\"N\",\"Y\"))","v":""},{"$f":"IF(OR($B456=\"N\",'Enrollment Form'!$G463=\"\"),\"\",IF('Enrollment Form'!$B463<>\"Subscriber\",\"-\",IF(COUNTIF('Enrollment Form'!$AV463:$AW463,\"Yes\")=2,\"N\",\"Y\")))","v":""},{"$f":"IF(OR('Enrollment Form'!$CJ463=\"\",'Enrollment Form'!$CJ463=\"No\"),\"-\",IF(AND('Enrollment Form'!$CJ463=\"Yes\",'Enrollment Form'!$CK463=\"\"),\"N\",\"Y\"))","v":"-"},{"$f":"IF(OR('Enrollment Form'!$CL463=\"\",'Enrollment Form'!$CL463=\"No\"),\"-\",IF(AND('Enrollment Form'!$CL463=\"Yes\",'Enrollment Form'!$CM463=\"\"),\"N\",\"Y\"))","v":"-"},{"$f":"IF(OR('Enrollment Form'!$CN463=\"\",'Enrollment Form'!$CN463=\"No\"),\"-\",IF(AND('Enrollment Form'!$CN463=\"Yes\",'Enrollment Form'!$CO463=\"\"),\"N\",\"Y\"))","v":"-"},{"$f":"IF(OR('Enrollment Form'!$CN463=\"\",'Enrollment Form'!$CN463=\"No\"),\"-\",IF(AND('Enrollment Form'!$CN463=\"Yes\",'Enrollment Form'!$CP463=\"\"),\"N\",\"Y\"))","v":"-"},{"$f":"IF('Enrollment Form'!B463<>\"Subscriber\",\"-\",IF(AND('Enrollment Form'!B463=\"Subscriber\",'Enrollment Form'!C463=\"Enroll\",'Enrollment Form'!AA463=\"\"),\"N\",\"Y\"))","v":"-"},{"$f":"IF(OR('Enrollment Form'!B463=\"Subscriber\",'Enrollment Form'!B463=\"\"),\"-\",IF('Enrollment Form'!BP463=\"\",\"N\",\"Y\"))","v":"-"},{"$f":"IF('Enrollment Form'!B463<>\"Subscriber\",\"-\",IF(AND('Enrollment Form'!B463=\"Subscriber\",'Enrollment Form'!G463=\"\"),\"N\",\"Y\"))","v":"-"},{"$f":"IF('Enrollment Form'!A463=\"\",\"\",IF('Enrollment Form'!B463=\"Subscriber\",\"-\",IF(AND('Enrollment Form'!B463<>\"Subscriber\",'Enrollment Form'!G463='Enrollment Form'!H463),\"N\",\"Y\")))","v":""},0]
[464,{"$f":"IF('Enrollment Form'!$A464<>\"\",\"Y\",\"N\")","v":"N"},{"$f":"IF(AND('Enrollment Form'!$B464=\"\",'Enrollment Form'!$C464<>\"\"),\"N\",IF($B457=\"N\",\"\",\"Y\"))","v":""},{"$f":"IF(OR($B457=\"N\",'Enrollment Form'!G464=\"\"),\"\",IF('Enrollment Form'!$B464<>\"Subscriber\",\"\",IF('Enrollment Form'!$G464='Enrollment Form'!$H464,\"Y\",\"N\")))","v":""},{"$f":"IF($B457=\"N\",\"\",IF(AND(COUNTIFS('Enrollment Form'!$H$11:$H$1000,'Enrollment Form'!$H464,'Enrollment Form'!$B$11:$B$1000,'Enrollment Form'!$B464)>1,'Enrollment Form'!$H464<>\"\"),\"N\",\"Y\"))","v":""},{"$f":"IF($B457=\"N\",\"\",IF(LEN('Enrollment Form'!$Y464)=0,\"\",IF(LEN('Enrollment Form'!$Y464)<>5,\"N\",\"Y\")))","v":""},{"$f":"IF($B457=\"N\",\"\",IF(LEN('Enrollment Form'!$AD464=0),\"\",IF(LEN('Enrollment Form'!$AD464)<>5,\"N\",\"Y\")))","v":""},{"$f":"IF($B457=\"N\",\"\",IF(LEN('Enrollment Form'!$BS464=0),\"\",IF(LEN('Enrollment Form'!$BS464)<>5,\"N\",\"Y\")))","v":""},{"$f":"IF($B457=\"N\",\"\",IF(LEN('Enrollment Form'!$AE464)=0,\"\",IF(LEN('Enrollment Form'!$AE464)<>10,\"N\",\"Y\")))","v":""},{"$f":"IF($B457=\"N\",\"\",IF(LEN('Enrollment Form'!$AF464)=0,\"\",IF(LEN('Enrollment Form'!$AF464)<>10,\"N\",\"Y\")))","v":""},{"$f":"IF('Enrollment Form'!$O464<>\"Graded\",\"-\",IF(AND('Enrollment Form'!$O464=\"Graded\",'Enrollment Form'!$AR464<>\"\"),\"Y\",\"N\"))","v":"-"},{"$f":"IF($B457=\"N\",\"\",IF(OR('Enrollment Form'!$B464<>\"Subscriber\",'Enrollment Form'!$C464=\"ROC\"),\"-\",IF(AND('Enrollment Form'!$B464=\"Subscriber\",'Enrollment Form'!$C464=\"Enroll\",'Enrollment Form'!$AJ464<>\"\"),\"Y\",\"N\")))","v":""},{"$f":"IF($B457=\"N\",\"\",IF(OR('Enrollment Form'!$B464<>\"Subscriber\",'Enrollment Form'!$C464=\"ROC\"),\"-\",IF(AND('Enrollment Form'!$B464=\"Subscriber\",'Enrollment Form'!$C464=\"Enroll\",'Enrollment Form'!$AK464<>\"\"),\"Y\",\"N\")))","v":""},{"$f":"IF($B457=\"N\",\"\",IF(OR('Enrollment Form'!$B464<>\"Subscriber\",'Enrollment Form'!$C464=\"ROC\"),\"-\",IF(AND('Enrollment Form'!$B464=\"Subscriber\",'Enrollment Form'!$C464=\"Enroll\",'Enrollment Form'!$AL464<>\"\"),\"Y\",\"N\")))","v":""},{"$f":"IF($B457=\"N\",\"\",IF(OR('Enrollment Form'!$B464<>\"Subscriber\",'Enrollment Form'!$C464=\"ROC\"),\"-\",IF(AND('Enrollment Form'!$B464=\"Subscriber\",'Enrollment Form'!$C464=\"Enroll\",'Enrollment Form'!$AP464<>\"\"),\"Y\",\"N\")))","v":""},{"$f":"IF($B457=\"N\",\"\",IF(OR('Enrollment Form'!$B464<>\"Subscriber\",'Enrollment Form'!$C464=\"ROC\"),\"-\",IF(AND('Enrollment Form'!$B464=\"Subscriber\",'Enrollment Form'!$C464=\"Enroll\",'Enrollment Form'!$AQ464<>\"\"),\"Y\",\"N\")))","v":""},{"$f":"IF($B457=\"N\",\"\",IF(OR('Enrollment Form'!$B464<>\"Subscriber\",'Enrollment Form'!$C464=\"ROC\"),\"-\",IF(AND('Enrollment Form'!$B464=\"Subscriber\",'Enrollment Form'!$C464=\"Enroll\",'Enrollment Form'!$AS464<>\"\"),\"Y\",\"N\")))","v":""},{"$f":"IF($B457=\"N\",\"\",IF($Q457=\"-\",\"-\",IF(AND($Q457=\"Y\",'Enrollment Form'!$AS464=\"No\"),\"-\",IF(AND($Q457=\"Y\",'Enrollment Form'!$AS464=\"Yes\",'Enrollment Form'!$AT464<>\"\"),\"Y\",\"N\"))))","v":""},{"$f":"IF($B457=\"N\",\"\",IF(OR('Enrollment Form'!$B464<>\"Subscriber\",'Enrollment Form'!$C464=\"ROC\"),\"-\",IF(AND('Enrollment Form'!$B464=\"Subscriber\",'Enrollment Form'!$C464=\"Enroll\",'Enrollment Form'!$CV464<>\"\"),\"Y\",\"N\")))","v":""},{"$f":"IF($B457=\"N\",\"\",IF($S457=\"-\",\"-\",IF(AND($S457=\"Y\",'Enrollment Form'!$CV464=\"No\"),\"-\",IF(AND($S457=\"Y\",'Enrollment Form'!$CV464=\"Yes\",'Enrollment Form'!$CW464<>\"\"),\"Y\",\"N\"))))","v":""},{"$f":"IF(OR('Enrollment Form'!$AY464=\"Yes\",'Enrollment Form'!$AY464=\"\"),\"-\",IF(OR(AND('Enrollment Form'!$AY464=\"No\",ISERROR(FIND(\"HMO\",VLOOKUP('Enrollment Form'!G464,'Enrollment Form'!H$11:J$1000,3,FALSE),1))=FALSE,COUNTA('Enrollment Form'!$AZ464:$BC464)=4),AND('Enrollment Form'!$AY464=\"No\",ISERROR(FIND(\"HMO\",VLOOKUP('Enrollment Form'!G464,'Enrollment Form'!H$11:J$1000,3,FALSE),1))=FALSE,COUNTA('Enrollment Form'!$BT464:$BW464)=4)),\"Y\",\"N\"))","v":"-"},{"$f":"IF($B457=\"N\",\"\",IF('Enrollment Form'!$B464=\"Subscriber\",\"-\",IF(COUNTA('Enrollment Form'!$BL464,'Enrollment Form'!$BN464)=2,\"Y\",\"N\")))","v":""},{"$f":"IF($B457=\"N\",\"\",IF(OR('Enrollment Form'!$AX464=\"\",'Enrollment Form'!$AX464=\"No\"),\"-\",IF(AND('Enrollment Form'!$AX464=\"Yes\",COUNTA('Enrollment Form'!$CR464)=1),\"Y\",\"N\")))","v":""},{"$f":"IF(OR('Enrollment Form'!$CR464=\"\",'Enrollment Form'!$CR464=\"No\"),\"-\",IF(COUNTA('Enrollment Form'!$CT464:$CU464)=2,\"Y\",\"N\"))","v":"-"},{"$f":"IF($B457=\"N\",\"\",IF(COUNTIF('Enrollment Form'!$DG464:$DP464,\"Other\")=COUNTA('Enrollment Form'!$DK464,'Enrollment Form'!$DH464,'Enrollment Form'!$DN464,'Enrollment Form'!$DQ464),\"Y\",\"N\"))","v":""},{"$f":"IF($B457=\"N\",\"\",IF(OR('Enrollment Form'!B464<>\"Subscriber\",'Enrollment Form'!C464=\"ROC\",COUNTIF('Enrollment Form'!AV464:AW464,\"Yes\")>=1),\"-\",IF(AND('Enrollment Form'!C464=\"Enroll\",COUNTIF('Enrollment Form'!AV464:AW464,\"No\")=2,'Enrollment Form'!AX464=\"\"),\"N\",\"Y\")))","v":""},{"$f":"IF(OR(B457=\"N\",'Enrollment Form'!B464<>\"Subscriber\",'Enrollment Form'!C464=\"ROC\",'Enrollment Form'!O464<>\"Multiple of Salary\"),\"-\",IF(COUNTA('Enrollment Form'!T464:U464)<2,\"N\",\"Y\"))","v":"-"},{"$f":"IF(B457=\"N\",\"\",IF(OR('Enrollment Form'!C464=\"ROC\",'Enrollment Form'!B464<>\"Subscriber\",'Enrollment Form'!O464=\"Waive\",'Enrollment Form'!O464=\"\"),\"-\",IF('Enrollment Form'!P464=\"\",\"N\",\"Y\")))","v":""},{"$f":"IF($B457=\"N\",\"\",IF(AND('Enrollment Form'!$C464=\"ROC\",'Enrollment Form'!$DR464<>\"\"),\"Y\",IF(AND('Enrollment Form'!$C464=\"ROC\",'Enrollment Form'!$DR464=\"\"),\"N\",IF(AND('Enrollment Form'!$C464=\"Enroll\",'Enrollment Form'!$B464=\"Subscriber\",'Enrollment Form'!$CX464=\"No\",'Enrollment Form'!$DR464=\"\"),\"N\",IF(AND('Enrollment Form'!$C464=\"Enroll\",'Enrollment Form'!$B464=\"Subscriber\",'Enrollment Form'!$CX464=\"Yes\"),\"-\",\"Y\")))))","v":""},{"$f":"IF($B457=\"N\",\"\",IF(AND('Enrollment Form'!$C464=\"ROC\",'Enrollment Form'!$DS464<>\"\"),\"Y\",IF(AND('Enrollment Form'!$C464=\"ROC\",'Enrollment Form'!$DS464=\"\"),\"N\",IF(AND('Enrollment Form'!$C464=\"Enroll\",'Enrollment Form'!$B464=\"Subscriber\",'Enrollment Form'!$CX464=\"No\",'Enrollment Form'!$DS464=\"\"),\"N\",IF(AND('Enrollment Form'!$C464=\"Enroll\",'Enrollment Form'!$B464=\"Subscriber\",'Enrollment Form'!$CX464=\"Yes\"),\"-\",\"Y\")))))","v":""},{"$f":"IF('Enrollment Form'!AH464=\"\",\"\",IF(ISERROR(SEARCH(\".\",'Enrollment Form'!AH464,SEARCH(\"@\",'Enrollment Form'!AH464))),\"N\",\"Y\"))","v":""},{"$f":"IF(OR($B457=\"N\",'Enrollment Form'!$G464=\"\"),\"\",IF('Enrollment Form'!$B464<>\"Subscriber\",\"-\",IF(COUNTIF('Enrollment Form'!$AV464:$AW464,\"Yes\")=2,\"N\",\"Y\")))","v":""},{"$f":"IF(OR('Enrollment Form'!$CJ464=\"\",'Enrollment Form'!$CJ464=\"No\"),\"-\",IF(AND('Enrollment Form'!$CJ464=\"Yes\",'Enrollment Form'!$CK464=\"\"),\"N\",\"Y\"))","v":"-"},{"$f":"IF(OR('Enrollment Form'!$CL464=\"\",'Enrollment Form'!$CL464=\"No\"),\"-\",IF(AND('Enrollment Form'!$CL464=\"Yes\",'Enrollment Form'!$CM464=\"\"),\"N\",\"Y\"))","v":"-"},{"$f":"IF(OR('Enrollment Form'!$CN464=\"\",'Enrollment Form'!$CN464=\"No\"),\"-\",IF(AND('Enrollment Form'!$CN464=\"Yes\",'Enrollment Form'!$CO464=\"\"),\"N\",\"Y\"))","v":"-"},{"$f":"IF(OR('Enrollment Form'!$CN464=\"\",'Enrollment Form'!$CN464=\"No\"),\"-\",IF(AND('Enrollment Form'!$CN464=\"Yes\",'Enrollment Form'!$CP464=\"\"),\"N\",\"Y\"))","v":"-"},{"$f":"IF('Enrollment Form'!B464<>\"Subscriber\",\"-\",IF(AND('Enrollment Form'!B464=\"Subscriber\",'Enrollment Form'!C464=\"Enroll\",'Enrollment Form'!AA464=\"\"),\"N\",\"Y\"))","v":"-"},{"$f":"IF(OR('Enrollment Form'!B464=\"Subscriber\",'Enrollment Form'!B464=\"\"),\"-\",IF('Enrollment Form'!BP464=\"\",\"N\",\"Y\"))","v":"-"},{"$f":"IF('Enrollment Form'!B464<>\"Subscriber\",\"-\",IF(AND('Enrollment Form'!B464=\"Subscriber\",'Enrollment Form'!G464=\"\"),\"N\",\"Y\"))","v":"-"},{"$f":"IF('Enrollment Form'!A464=\"\",\"\",IF('Enrollment Form'!B464=\"Subscriber\",\"-\",IF(AND('Enrollment Form'!B464<>\"Subscriber\",'Enrollment Form'!G464='Enrollment Form'!H464),\"N\",\"Y\")))","v":""},0]
[465,{"$f":"IF('Enrollment Form'!$A465<>\"\",\"Y\",\"N\")","v":"N"},{"$f":"IF(AND('Enrollment Form'!$B465=\"\",'Enrollment Form'!$C465<>\"\"),\"N\",IF($B458=\"N\",\"\",\"Y\"))","v":""},{"$f":"IF(OR($B458=\"N\",'Enrollment Form'!G465=\"\"),\"\",IF('Enrollment Form'!$B465<>\"Subscriber\",\"\",IF('Enrollment Form'!$G465='Enrollment Form'!$H465,\"Y\",\"N\")))","v":""},{"$f":"IF($B458=\"N\",\"\",IF(AND(COUNTIFS('Enrollment Form'!$H$11:$H$1000,'Enrollment Form'!$H465,'Enrollment Form'!$B$11:$B$1000,'Enrollment Form'!$B465)>1,'Enrollment Form'!$H465<>\"\"),\"N\",\"Y\"))","v":""},{"$f":"IF($B458=\"N\",\"\",IF(LEN('Enrollment Form'!$Y465)=0,\"\",IF(LEN('Enrollment Form'!$Y465)<>5,\"N\",\"Y\")))","v":""},{"$f":"IF($B458=\"N\",\"\",IF(LEN('Enrollment Form'!$AD465=0),\"\",IF(LEN('Enrollment Form'!$AD465)<>5,\"N\",\"Y\")))","v":""},{"$f":"IF($B458=\"N\",\"\",IF(LEN('Enrollment Form'!$BS465=0),\"\",IF(LEN('Enrollment Form'!$BS465)<>5,\"N\",\"Y\")))","v":""},{"$f":"IF($B458=\"N\",\"\",IF(LEN('Enrollment Form'!$AE465)=0,\"\",IF(LEN('Enrollment Form'!$AE465)<>10,\"N\",\"Y\")))","v":""},{"$f":"IF($B458=\"N\",\"\",IF(LEN('Enrollment Form'!$AF465)=0,\"\",IF(LEN('Enrollment Form'!$AF465)<>10,\"N\",\"Y\")))","v":""},{"$f":"IF('Enrollment Form'!$O465<>\"Graded\",\"-\",IF(AND('Enrollment Form'!$O465=\"Graded\",'Enrollment Form'!$AR465<>\"\"),\"Y\",\"N\"))","v":"-"},{"$f":"IF($B458=\"N\",\"\",IF(OR('Enrollment Form'!$B465<>\"Subscriber\",'Enrollment Form'!$C465=\"ROC\"),\"-\",IF(AND('Enrollment Form'!$B465=\"Subscriber\",'Enrollment Form'!$C465=\"Enroll\",'Enrollment Form'!$AJ465<>\"\"),\"Y\",\"N\")))","v":""},{"$f":"IF($B458=\"N\",\"\",IF(OR('Enrollment Form'!$B465<>\"Subscriber\",'Enrollment Form'!$C465=\"ROC\"),\"-\",IF(AND('Enrollment Form'!$B465=\"Subscriber\",'Enrollment Form'!$C465=\"Enroll\",'Enrollment Form'!$AK465<>\"\"),\"Y\",\"N\")))","v":""},{"$f":"IF($B458=\"N\",\"\",IF(OR('Enrollment Form'!$B465<>\"Subscriber\",'Enrollment Form'!$C465=\"ROC\"),\"-\",IF(AND('Enrollment Form'!$B465=\"Subscriber\",'Enrollment Form'!$C465=\"Enroll\",'Enrollment Form'!$AL465<>\"\"),\"Y\",\"N\")))","v":""},{"$f":"IF($B458=\"N\",\"\",IF(OR('Enrollment Form'!$B465<>\"Subscriber\",'Enrollment Form'!$C465=\"ROC\"),\"-\",IF(AND('Enrollment Form'!$B465=\"Subscriber\",'Enrollment Form'!$C465=\"Enroll\",'Enrollment Form'!$AP465<>\"\"),\"Y\",\"N\")))","v":""},{"$f":"IF($B458=\"N\",\"\",IF(OR('Enrollment Form'!$B465<>\"Subscriber\",'Enrollment Form'!$C465=\"ROC\"),\"-\",IF(AND('Enrollment Form'!$B465=\"Subscriber\",'Enrollment Form'!$C465=\"Enroll\",'Enrollment Form'!$AQ465<>\"\"),\"Y\",\"N\")))","v":""},{"$f":"IF($B458=\"N\",\"\",IF(OR('Enrollment Form'!$B465<>\"Subscriber\",'Enrollment Form'!$C465=\"ROC\"),\"-\",IF(AND('Enrollment Form'!$B465=\"Subscriber\",'Enrollment Form'!$C465=\"Enroll\",'Enrollment Form'!$AS465<>\"\"),\"Y\",\"N\")))","v":""},{"$f":"IF($B458=\"N\",\"\",IF($Q458=\"-\",\"-\",IF(AND($Q458=\"Y\",'Enrollment Form'!$AS465=\"No\"),\"-\",IF(AND($Q458=\"Y\",'Enrollment Form'!$AS465=\"Yes\",'Enrollment Form'!$AT465<>\"\"),\"Y\",\"N\"))))","v":""},{"$f":"IF($B458=\"N\",\"\",IF(OR('Enrollment Form'!$B465<>\"Subscriber\",'Enrollment Form'!$C465=\"ROC\"),\"-\",IF(AND('Enrollment Form'!$B465=\"Subscriber\",'Enrollment Form'!$C465=\"Enroll\",'Enrollment Form'!$CV465<>\"\"),\"Y\",\"N\")))","v":""},{"$f":"IF($B458=\"N\",\"\",IF($S458=\"-\",\"-\",IF(AND($S458=\"Y\",'Enrollment Form'!$CV465=\"No\"),\"-\",IF(AND($S458=\"Y\",'Enrollment Form'!$CV465=\"Yes\",'Enrollment Form'!$CW465<>\"\"),\"Y\",\"N\"))))","v":""},{"$f":"IF(OR('Enrollment Form'!$AY465=\"Yes\",'Enrollment Form'!$AY465=\"\"),\"-\",IF(OR(AND('Enrollment Form'!$AY465=\"No\",ISERROR(FIND(\"HMO\",VLOOKUP('Enrollment Form'!G465,'Enrollment Form'!H$11:J$1000,3,FALSE),1))=FALSE,COUNTA('Enrollment Form'!$AZ465:$BC465)=4),AND('Enrollment Form'!$AY465=\"No\",ISERROR(FIND(\"HMO\",VLOOKUP('Enrollment Form'!G465,'Enrollment Form'!H$11:J$1000,3,FALSE),1))=FALSE,COUNTA('Enrollment Form'!$BT465:$BW465)=4)),\"Y\",\"N\"))","v":"-"},{"$f":"IF($B458=\"N\",\"\",IF('Enrollment Form'!$B465=\"Subscriber\",\"-\",IF(COUNTA('Enrollment Form'!$BL465,'Enrollment Form'!$BN465)=2,\"Y\",\"N\")))","v":""},{"$f":"IF($B458=\"N\",\"\",IF(OR('Enrollment Form'!$AX465=\"\",'Enrollment Form'!$AX465=\"No\"),\"-\",IF(AND('Enrollment Form'!$AX465=\"Yes\",COUNTA('Enrollment Form'!$CR465)=1),\"Y\",\"N\")))","v":""},{"$f":"IF(OR('Enrollment Form'!$CR465=\"\",'Enrollment Form'!$CR465=\"No\"),\"-\",IF(COUNTA('Enrollment Form'!$CT465:$CU465)=2,\"Y\",\"N\"))","v":"-"},{"$f":"IF($B458=\"N\",\"\",IF(COUNTIF('Enrollment Form'!$DG465:$DP465,\"Other\")=COUNTA('Enrollment Form'!$DK465,'Enrollment Form'!$DH465,'Enrollment Form'!$DN465,'Enrollment Form'!$DQ465),\"Y\",\"N\"))","v":""},{"$f":"IF($B458=\"N\",\"\",IF(OR('Enrollment Form'!B465<>\"Subscriber\",'Enrollment Form'!C465=\"ROC\",COUNTIF('Enrollment Form'!AV465:AW465,\"Yes\")>=1),\"-\",IF(AND('Enrollment Form'!C465=\"Enroll\",COUNTIF('Enrollment Form'!AV465:AW465,\"No\")=2,'Enrollment Form'!AX465=\"\"),\"N\",\"Y\")))","v":""},{"$f":"IF(OR(B458=\"N\",'Enrollment Form'!B465<>\"Subscriber\",'Enrollment Form'!C465=\"ROC\",'Enrollment Form'!O465<>\"Multiple of Salary\"),\"-\",IF(COUNTA('Enrollment Form'!T465:U465)<2,\"N\",\"Y\"))","v":"-"},{"$f":"IF(B458=\"N\",\"\",IF(OR('Enrollment Form'!C465=\"ROC\",'Enrollment Form'!B465<>\"Subscriber\",'Enrollment Form'!O465=\"Waive\",'Enrollment Form'!O465=\"\"),\"-\",IF('Enrollment Form'!P465=\"\",\"N\",\"Y\")))","v":""},{"$f":"IF($B458=\"N\",\"\",IF(AND('Enrollment Form'!$C465=\"ROC\",'Enrollment Form'!$DR465<>\"\"),\"Y\",IF(AND('Enrollment Form'!$C465=\"ROC\",'Enrollment Form'!$DR465=\"\"),\"N\",IF(AND('Enrollment Form'!$C465=\"Enroll\",'Enrollment Form'!$B465=\"Subscriber\",'Enrollment Form'!$CX465=\"No\",'Enrollment Form'!$DR465=\"\"),\"N\",IF(AND('Enrollment Form'!$C465=\"Enroll\",'Enrollment Form'!$B465=\"Subscriber\",'Enrollment Form'!$CX465=\"Yes\"),\"-\",\"Y\")))))","v":""},{"$f":"IF($B458=\"N\",\"\",IF(AND('Enrollment Form'!$C465=\"ROC\",'Enrollment Form'!$DS465<>\"\"),\"Y\",IF(AND('Enrollment Form'!$C465=\"ROC\",'Enrollment Form'!$DS465=\"\"),\"N\",IF(AND('Enrollment Form'!$C465=\"Enroll\",'Enrollment Form'!$B465=\"Subscriber\",'Enrollment Form'!$CX465=\"No\",'Enrollment Form'!$DS465=\"\"),\"N\",IF(AND('Enrollment Form'!$C465=\"Enroll\",'Enrollment Form'!$B465=\"Subscriber\",'Enrollment Form'!$CX465=\"Yes\"),\"-\",\"Y\")))))","v":""},{"$f":"IF('Enrollment Form'!AH465=\"\",\"\",IF(ISERROR(SEARCH(\".\",'Enrollment Form'!AH465,SEARCH(\"@\",'Enrollment Form'!AH465))),\"N\",\"Y\"))","v":""},{"$f":"IF(OR($B458=\"N\",'Enrollment Form'!$G465=\"\"),\"\",IF('Enrollment Form'!$B465<>\"Subscriber\",\"-\",IF(COUNTIF('Enrollment Form'!$AV465:$AW465,\"Yes\")=2,\"N\",\"Y\")))","v":""},{"$f":"IF(OR('Enrollment Form'!$CJ465=\"\",'Enrollment Form'!$CJ465=\"No\"),\"-\",IF(AND('Enrollment Form'!$CJ465=\"Yes\",'Enrollment Form'!$CK465=\"\"),\"N\",\"Y\"))","v":"-"},{"$f":"IF(OR('Enrollment Form'!$CL465=\"\",'Enrollment Form'!$CL465=\"No\"),\"-\",IF(AND('Enrollment Form'!$CL465=\"Yes\",'Enrollment Form'!$CM465=\"\"),\"N\",\"Y\"))","v":"-"},{"$f":"IF(OR('Enrollment Form'!$CN465=\"\",'Enrollment Form'!$CN465=\"No\"),\"-\",IF(AND('Enrollment Form'!$CN465=\"Yes\",'Enrollment Form'!$CO465=\"\"),\"N\",\"Y\"))","v":"-"},{"$f":"IF(OR('Enrollment Form'!$CN465=\"\",'Enrollment Form'!$CN465=\"No\"),\"-\",IF(AND('Enrollment Form'!$CN465=\"Yes\",'Enrollment Form'!$CP465=\"\"),\"N\",\"Y\"))","v":"-"},{"$f":"IF('Enrollment Form'!B465<>\"Subscriber\",\"-\",IF(AND('Enrollment Form'!B465=\"Subscriber\",'Enrollment Form'!C465=\"Enroll\",'Enrollment Form'!AA465=\"\"),\"N\",\"Y\"))","v":"-"},{"$f":"IF(OR('Enrollment Form'!B465=\"Subscriber\",'Enrollment Form'!B465=\"\"),\"-\",IF('Enrollment Form'!BP465=\"\",\"N\",\"Y\"))","v":"-"},{"$f":"IF('Enrollment Form'!B465<>\"Subscriber\",\"-\",IF(AND('Enrollment Form'!B465=\"Subscriber\",'Enrollment Form'!G465=\"\"),\"N\",\"Y\"))","v":"-"},{"$f":"IF('Enrollment Form'!A465=\"\",\"\",IF('Enrollment Form'!B465=\"Subscriber\",\"-\",IF(AND('Enrollment Form'!B465<>\"Subscriber\",'Enrollment Form'!G465='Enrollment Form'!H465),\"N\",\"Y\")))","v":""},0]
[466,{"$f":"IF('Enrollment Form'!$A466<>\"\",\"Y\",\"N\")","v":"N"},{"$f":"IF(AND('Enrollment Form'!$B466=\"\",'Enrollment Form'!$C466<>\"\"),\"N\",IF($B459=\"N\",\"\",\"Y\"))","v":""},{"$f":"IF(OR($B459=\"N\",'Enrollment Form'!G466=\"\"),\"\",IF('Enrollment Form'!$B466<>\"Subscriber\",\"\",IF('Enrollment Form'!$G466='Enrollment Form'!$H466,\"Y\",\"N\")))","v":""},{"$f":"IF($B459=\"N\",\"\",IF(AND(COUNTIFS('Enrollment Form'!$H$11:$H$1000,'Enrollment Form'!$H466,'Enrollment Form'!$B$11:$B$1000,'Enrollment Form'!$B466)>1,'Enrollment Form'!$H466<>\"\"),\"N\",\"Y\"))","v":""},{"$f":"IF($B459=\"N\",\"\",IF(LEN('Enrollment Form'!$Y466)=0,\"\",IF(LEN('Enrollment Form'!$Y466)<>5,\"N\",\"Y\")))","v":""},{"$f":"IF($B459=\"N\",\"\",IF(LEN('Enrollment Form'!$AD466=0),\"\",IF(LEN('Enrollment Form'!$AD466)<>5,\"N\",\"Y\")))","v":""},{"$f":"IF($B459=\"N\",\"\",IF(LEN('Enrollment Form'!$BS466=0),\"\",IF(LEN('Enrollment Form'!$BS466)<>5,\"N\",\"Y\")))","v":""},{"$f":"IF($B459=\"N\",\"\",IF(LEN('Enrollment Form'!$AE466)=0,\"\",IF(LEN('Enrollment Form'!$AE466)<>10,\"N\",\"Y\")))","v":""},{"$f":"IF($B459=\"N\",\"\",IF(LEN('Enrollment Form'!$AF466)=0,\"\",IF(LEN('Enrollment Form'!$AF466)<>10,\"N\",\"Y\")))","v":""},{"$f":"IF('Enrollment Form'!$O466<>\"Graded\",\"-\",IF(AND('Enrollment Form'!$O466=\"Graded\",'Enrollment Form'!$AR466<>\"\"),\"Y\",\"N\"))","v":"-"},{"$f":"IF($B459=\"N\",\"\",IF(OR('Enrollment Form'!$B466<>\"Subscriber\",'Enrollment Form'!$C466=\"ROC\"),\"-\",IF(AND('Enrollment Form'!$B466=\"Subscriber\",'Enrollment Form'!$C466=\"Enroll\",'Enrollment Form'!$AJ466<>\"\"),\"Y\",\"N\")))","v":""},{"$f":"IF($B459=\"N\",\"\",IF(OR('Enrollment Form'!$B466<>\"Subscriber\",'Enrollment Form'!$C466=\"ROC\"),\"-\",IF(AND('Enrollment Form'!$B466=\"Subscriber\",'Enrollment Form'!$C466=\"Enroll\",'Enrollment Form'!$AK466<>\"\"),\"Y\",\"N\")))","v":""},{"$f":"IF($B459=\"N\",\"\",IF(OR('Enrollment Form'!$B466<>\"Subscriber\",'Enrollment Form'!$C466=\"ROC\"),\"-\",IF(AND('Enrollment Form'!$B466=\"Subscriber\",'Enrollment Form'!$C466=\"Enroll\",'Enrollment Form'!$AL466<>\"\"),\"Y\",\"N\")))","v":""},{"$f":"IF($B459=\"N\",\"\",IF(OR('Enrollment Form'!$B466<>\"Subscriber\",'Enrollment Form'!$C466=\"ROC\"),\"-\",IF(AND('Enrollment Form'!$B466=\"Subscriber\",'Enrollment Form'!$C466=\"Enroll\",'Enrollment Form'!$AP466<>\"\"),\"Y\",\"N\")))","v":""},{"$f":"IF($B459=\"N\",\"\",IF(OR('Enrollment Form'!$B466<>\"Subscriber\",'Enrollment Form'!$C466=\"ROC\"),\"-\",IF(AND('Enrollment Form'!$B466=\"Subscriber\",'Enrollment Form'!$C466=\"Enroll\",'Enrollment Form'!$AQ466<>\"\"),\"Y\",\"N\")))","v":""},{"$f":"IF($B459=\"N\",\"\",IF(OR('Enrollment Form'!$B466<>\"Subscriber\",'Enrollment Form'!$C466=\"ROC\"),\"-\",IF(AND('Enrollment Form'!$B466=\"Subscriber\",'Enrollment Form'!$C466=\"Enroll\",'Enrollment Form'!$AS466<>\"\"),\"Y\",\"N\")))","v":""},{"$f":"IF($B459=\"N\",\"\",IF($Q459=\"-\",\"-\",IF(AND($Q459=\"Y\",'Enrollment Form'!$AS466=\"No\"),\"-\",IF(AND($Q459=\"Y\",'Enrollment Form'!$AS466=\"Yes\",'Enrollment Form'!$AT466<>\"\"),\"Y\",\"N\"))))","v":""},{"$f":"IF($B459=\"N\",\"\",IF(OR('Enrollment Form'!$B466<>\"Subscriber\",'Enrollment Form'!$C466=\"ROC\"),\"-\",IF(AND('Enrollment Form'!$B466=\"Subscriber\",'Enrollment Form'!$C466=\"Enroll\",'Enrollment Form'!$CV466<>\"\"),\"Y\",\"N\")))","v":""},{"$f":"IF($B459=\"N\",\"\",IF($S459=\"-\",\"-\",IF(AND($S459=\"Y\",'Enrollment Form'!$CV466=\"No\"),\"-\",IF(AND($S459=\"Y\",'Enrollment Form'!$CV466=\"Yes\",'Enrollment Form'!$CW466<>\"\"),\"Y\",\"N\"))))","v":""},{"$f":"IF(OR('Enrollment Form'!$AY466=\"Yes\",'Enrollment Form'!$AY466=\"\"),\"-\",IF(OR(AND('Enrollment Form'!$AY466=\"No\",ISERROR(FIND(\"HMO\",VLOOKUP('Enrollment Form'!G466,'Enrollment Form'!H$11:J$1000,3,FALSE),1))=FALSE,COUNTA('Enrollment Form'!$AZ466:$BC466)=4),AND('Enrollment Form'!$AY466=\"No\",ISERROR(FIND(\"HMO\",VLOOKUP('Enrollment Form'!G466,'Enrollment Form'!H$11:J$1000,3,FALSE),1))=FALSE,COUNTA('Enrollment Form'!$BT466:$BW466)=4)),\"Y\",\"N\"))","v":"-"},{"$f":"IF($B459=\"N\",\"\",IF('Enrollment Form'!$B466=\"Subscriber\",\"-\",IF(COUNTA('Enrollment Form'!$BL466,'Enrollment Form'!$BN466)=2,\"Y\",\"N\")))","v":""},{"$f":"IF($B459=\"N\",\"\",IF(OR('Enrollment Form'!$AX466=\"\",'Enrollment Form'!$AX466=\"No\"),\"-\",IF(AND('Enrollment Form'!$AX466=\"Yes\",COUNTA('Enrollment Form'!$CR466)=1),\"Y\",\"N\")))","v":""},{"$f":"IF(OR('Enrollment Form'!$CR466=\"\",'Enrollment Form'!$CR466=\"No\"),\"-\",IF(COUNTA('Enrollment Form'!$CT466:$CU466)=2,\"Y\",\"N\"))","v":"-"},{"$f":"IF($B459=\"N\",\"\",IF(COUNTIF('Enrollment Form'!$DG466:$DP466,\"Other\")=COUNTA('Enrollment Form'!$DK466,'Enrollment Form'!$DH466,'Enrollment Form'!$DN466,'Enrollment Form'!$DQ466),\"Y\",\"N\"))","v":""},{"$f":"IF($B459=\"N\",\"\",IF(OR('Enrollment Form'!B466<>\"Subscriber\",'Enrollment Form'!C466=\"ROC\",COUNTIF('Enrollment Form'!AV466:AW466,\"Yes\")>=1),\"-\",IF(AND('Enrollment Form'!C466=\"Enroll\",COUNTIF('Enrollment Form'!AV466:AW466,\"No\")=2,'Enrollment Form'!AX466=\"\"),\"N\",\"Y\")))","v":""},{"$f":"IF(OR(B459=\"N\",'Enrollment Form'!B466<>\"Subscriber\",'Enrollment Form'!C466=\"ROC\",'Enrollment Form'!O466<>\"Multiple of Salary\"),\"-\",IF(COUNTA('Enrollment Form'!T466:U466)<2,\"N\",\"Y\"))","v":"-"},{"$f":"IF(B459=\"N\",\"\",IF(OR('Enrollment Form'!C466=\"ROC\",'Enrollment Form'!B466<>\"Subscriber\",'Enrollment Form'!O466=\"Waive\",'Enrollment Form'!O466=\"\"),\"-\",IF('Enrollment Form'!P466=\"\",\"N\",\"Y\")))","v":""},{"$f":"IF($B459=\"N\",\"\",IF(AND('Enrollment Form'!$C466=\"ROC\",'Enrollment Form'!$DR466<>\"\"),\"Y\",IF(AND('Enrollment Form'!$C466=\"ROC\",'Enrollment Form'!$DR466=\"\"),\"N\",IF(AND('Enrollment Form'!$C466=\"Enroll\",'Enrollment Form'!$B466=\"Subscriber\",'Enrollment Form'!$CX466=\"No\",'Enrollment Form'!$DR466=\"\"),\"N\",IF(AND('Enrollment Form'!$C466=\"Enroll\",'Enrollment Form'!$B466=\"Subscriber\",'Enrollment Form'!$CX466=\"Yes\"),\"-\",\"Y\")))))","v":""},{"$f":"IF($B459=\"N\",\"\",IF(AND('Enrollment Form'!$C466=\"ROC\",'Enrollment Form'!$DS466<>\"\"),\"Y\",IF(AND('Enrollment Form'!$C466=\"ROC\",'Enrollment Form'!$DS466=\"\"),\"N\",IF(AND('Enrollment Form'!$C466=\"Enroll\",'Enrollment Form'!$B466=\"Subscriber\",'Enrollment Form'!$CX466=\"No\",'Enrollment Form'!$DS466=\"\"),\"N\",IF(AND('Enrollment Form'!$C466=\"Enroll\",'Enrollment Form'!$B466=\"Subscriber\",'Enrollment Form'!$CX466=\"Yes\"),\"-\",\"Y\")))))","v":""},{"$f":"IF('Enrollment Form'!AH466=\"\",\"\",IF(ISERROR(SEARCH(\".\",'Enrollment Form'!AH466,SEARCH(\"@\",'Enrollment Form'!AH466))),\"N\",\"Y\"))","v":""},{"$f":"IF(OR($B459=\"N\",'Enrollment Form'!$G466=\"\"),\"\",IF('Enrollment Form'!$B466<>\"Subscriber\",\"-\",IF(COUNTIF('Enrollment Form'!$AV466:$AW466,\"Yes\")=2,\"N\",\"Y\")))","v":""},{"$f":"IF(OR('Enrollment Form'!$CJ466=\"\",'Enrollment Form'!$CJ466=\"No\"),\"-\",IF(AND('Enrollment Form'!$CJ466=\"Yes\",'Enrollment Form'!$CK466=\"\"),\"N\",\"Y\"))","v":"-"},{"$f":"IF(OR('Enrollment Form'!$CL466=\"\",'Enrollment Form'!$CL466=\"No\"),\"-\",IF(AND('Enrollment Form'!$CL466=\"Yes\",'Enrollment Form'!$CM466=\"\"),\"N\",\"Y\"))","v":"-"},{"$f":"IF(OR('Enrollment Form'!$CN466=\"\",'Enrollment Form'!$CN466=\"No\"),\"-\",IF(AND('Enrollment Form'!$CN466=\"Yes\",'Enrollment Form'!$CO466=\"\"),\"N\",\"Y\"))","v":"-"},{"$f":"IF(OR('Enrollment Form'!$CN466=\"\",'Enrollment Form'!$CN466=\"No\"),\"-\",IF(AND('Enrollment Form'!$CN466=\"Yes\",'Enrollment Form'!$CP466=\"\"),\"N\",\"Y\"))","v":"-"},{"$f":"IF('Enrollment Form'!B466<>\"Subscriber\",\"-\",IF(AND('Enrollment Form'!B466=\"Subscriber\",'Enrollment Form'!C466=\"Enroll\",'Enrollment Form'!AA466=\"\"),\"N\",\"Y\"))","v":"-"},{"$f":"IF(OR('Enrollment Form'!B466=\"Subscriber\",'Enrollment Form'!B466=\"\"),\"-\",IF('Enrollment Form'!BP466=\"\",\"N\",\"Y\"))","v":"-"},{"$f":"IF('Enrollment Form'!B466<>\"Subscriber\",\"-\",IF(AND('Enrollment Form'!B466=\"Subscriber\",'Enrollment Form'!G466=\"\"),\"N\",\"Y\"))","v":"-"},{"$f":"IF('Enrollment Form'!A466=\"\",\"\",IF('Enrollment Form'!B466=\"Subscriber\",\"-\",IF(AND('Enrollment Form'!B466<>\"Subscriber\",'Enrollment Form'!G466='Enrollment Form'!H466),\"N\",\"Y\")))","v":""},0]
[467,{"$f":"IF('Enrollment Form'!$A467<>\"\",\"Y\",\"N\")","v":"N"},{"$f":"IF(AND('Enrollment Form'!$B467=\"\",'Enrollment Form'!$C467<>\"\"),\"N\",IF($B460=\"N\",\"\",\"Y\"))","v":""},{"$f":"IF(OR($B460=\"N\",'Enrollment Form'!G467=\"\"),\"\",IF('Enrollment Form'!$B467<>\"Subscriber\",\"\",IF('Enrollment Form'!$G467='Enrollment Form'!$H467,\"Y\",\"N\")))","v":""},{"$f":"IF($B460=\"N\",\"\",IF(AND(COUNTIFS('Enrollment Form'!$H$11:$H$1000,'Enrollment Form'!$H467,'Enrollment Form'!$B$11:$B$1000,'Enrollment Form'!$B467)>1,'Enrollment Form'!$H467<>\"\"),\"N\",\"Y\"))","v":""},{"$f":"IF($B460=\"N\",\"\",IF(LEN('Enrollment Form'!$Y467)=0,\"\",IF(LEN('Enrollment Form'!$Y467)<>5,\"N\",\"Y\")))","v":""},{"$f":"IF($B460=\"N\",\"\",IF(LEN('Enrollment Form'!$AD467=0),\"\",IF(LEN('Enrollment Form'!$AD467)<>5,\"N\",\"Y\")))","v":""},{"$f":"IF($B460=\"N\",\"\",IF(LEN('Enrollment Form'!$BS467=0),\"\",IF(LEN('Enrollment Form'!$BS467)<>5,\"N\",\"Y\")))","v":""},{"$f":"IF($B460=\"N\",\"\",IF(LEN('Enrollment Form'!$AE467)=0,\"\",IF(LEN('Enrollment Form'!$AE467)<>10,\"N\",\"Y\")))","v":""},{"$f":"IF($B460=\"N\",\"\",IF(LEN('Enrollment Form'!$AF467)=0,\"\",IF(LEN('Enrollment Form'!$AF467)<>10,\"N\",\"Y\")))","v":""},{"$f":"IF('Enrollment Form'!$O467<>\"Graded\",\"-\",IF(AND('Enrollment Form'!$O467=\"Graded\",'Enrollment Form'!$AR467<>\"\"),\"Y\",\"N\"))","v":"-"},{"$f":"IF($B460=\"N\",\"\",IF(OR('Enrollment Form'!$B467<>\"Subscriber\",'Enrollment Form'!$C467=\"ROC\"),\"-\",IF(AND('Enrollment Form'!$B467=\"Subscriber\",'Enrollment Form'!$C467=\"Enroll\",'Enrollment Form'!$AJ467<>\"\"),\"Y\",\"N\")))","v":""},{"$f":"IF($B460=\"N\",\"\",IF(OR('Enrollment Form'!$B467<>\"Subscriber\",'Enrollment Form'!$C467=\"ROC\"),\"-\",IF(AND('Enrollment Form'!$B467=\"Subscriber\",'Enrollment Form'!$C467=\"Enroll\",'Enrollment Form'!$AK467<>\"\"),\"Y\",\"N\")))","v":""},{"$f":"IF($B460=\"N\",\"\",IF(OR('Enrollment Form'!$B467<>\"Subscriber\",'Enrollment Form'!$C467=\"ROC\"),\"-\",IF(AND('Enrollment Form'!$B467=\"Subscriber\",'Enrollment Form'!$C467=\"Enroll\",'Enrollment Form'!$AL467<>\"\"),\"Y\",\"N\")))","v":""},{"$f":"IF($B460=\"N\",\"\",IF(OR('Enrollment Form'!$B467<>\"Subscriber\",'Enrollment Form'!$C467=\"ROC\"),\"-\",IF(AND('Enrollment Form'!$B467=\"Subscriber\",'Enrollment Form'!$C467=\"Enroll\",'Enrollment Form'!$AP467<>\"\"),\"Y\",\"N\")))","v":""},{"$f":"IF($B460=\"N\",\"\",IF(OR('Enrollment Form'!$B467<>\"Subscriber\",'Enrollment Form'!$C467=\"ROC\"),\"-\",IF(AND('Enrollment Form'!$B467=\"Subscriber\",'Enrollment Form'!$C467=\"Enroll\",'Enrollment Form'!$AQ467<>\"\"),\"Y\",\"N\")))","v":""},{"$f":"IF($B460=\"N\",\"\",IF(OR('Enrollment Form'!$B467<>\"Subscriber\",'Enrollment Form'!$C467=\"ROC\"),\"-\",IF(AND('Enrollment Form'!$B467=\"Subscriber\",'Enrollment Form'!$C467=\"Enroll\",'Enrollment Form'!$AS467<>\"\"),\"Y\",\"N\")))","v":""},{"$f":"IF($B460=\"N\",\"\",IF($Q460=\"-\",\"-\",IF(AND($Q460=\"Y\",'Enrollment Form'!$AS467=\"No\"),\"-\",IF(AND($Q460=\"Y\",'Enrollment Form'!$AS467=\"Yes\",'Enrollment Form'!$AT467<>\"\"),\"Y\",\"N\"))))","v":""},{"$f":"IF($B460=\"N\",\"\",IF(OR('Enrollment Form'!$B467<>\"Subscriber\",'Enrollment Form'!$C467=\"ROC\"),\"-\",IF(AND('Enrollment Form'!$B467=\"Subscriber\",'Enrollment Form'!$C467=\"Enroll\",'Enrollment Form'!$CV467<>\"\"),\"Y\",\"N\")))","v":""},{"$f":"IF($B460=\"N\",\"\",IF($S460=\"-\",\"-\",IF(AND($S460=\"Y\",'Enrollment Form'!$CV467=\"No\"),\"-\",IF(AND($S460=\"Y\",'Enrollment Form'!$CV467=\"Yes\",'Enrollment Form'!$CW467<>\"\"),\"Y\",\"N\"))))","v":""},{"$f":"IF(OR('Enrollment Form'!$AY467=\"Yes\",'Enrollment Form'!$AY467=\"\"),\"-\",IF(OR(AND('Enrollment Form'!$AY467=\"No\",ISERROR(FIND(\"HMO\",VLOOKUP('Enrollment Form'!G467,'Enrollment Form'!H$11:J$1000,3,FALSE),1))=FALSE,COUNTA('Enrollment Form'!$AZ467:$BC467)=4),AND('Enrollment Form'!$AY467=\"No\",ISERROR(FIND(\"HMO\",VLOOKUP('Enrollment Form'!G467,'Enrollment Form'!H$11:J$1000,3,FALSE),1))=FALSE,COUNTA('Enrollment Form'!$BT467:$BW467)=4)),\"Y\",\"N\"))","v":"-"},{"$f":"IF($B460=\"N\",\"\",IF('Enrollment Form'!$B467=\"Subscriber\",\"-\",IF(COUNTA('Enrollment Form'!$BL467,'Enrollment Form'!$BN467)=2,\"Y\",\"N\")))","v":""},{"$f":"IF($B460=\"N\",\"\",IF(OR('Enrollment Form'!$AX467=\"\",'Enrollment Form'!$AX467=\"No\"),\"-\",IF(AND('Enrollment Form'!$AX467=\"Yes\",COUNTA('Enrollment Form'!$CR467)=1),\"Y\",\"N\")))","v":""},{"$f":"IF(OR('Enrollment Form'!$CR467=\"\",'Enrollment Form'!$CR467=\"No\"),\"-\",IF(COUNTA('Enrollment Form'!$CT467:$CU467)=2,\"Y\",\"N\"))","v":"-"},{"$f":"IF($B460=\"N\",\"\",IF(COUNTIF('Enrollment Form'!$DG467:$DP467,\"Other\")=COUNTA('Enrollment Form'!$DK467,'Enrollment Form'!$DH467,'Enrollment Form'!$DN467,'Enrollment Form'!$DQ467),\"Y\",\"N\"))","v":""},{"$f":"IF($B460=\"N\",\"\",IF(OR('Enrollment Form'!B467<>\"Subscriber\",'Enrollment Form'!C467=\"ROC\",COUNTIF('Enrollment Form'!AV467:AW467,\"Yes\")>=1),\"-\",IF(AND('Enrollment Form'!C467=\"Enroll\",COUNTIF('Enrollment Form'!AV467:AW467,\"No\")=2,'Enrollment Form'!AX467=\"\"),\"N\",\"Y\")))","v":""},{"$f":"IF(OR(B460=\"N\",'Enrollment Form'!B467<>\"Subscriber\",'Enrollment Form'!C467=\"ROC\",'Enrollment Form'!O467<>\"Multiple of Salary\"),\"-\",IF(COUNTA('Enrollment Form'!T467:U467)<2,\"N\",\"Y\"))","v":"-"},{"$f":"IF(B460=\"N\",\"\",IF(OR('Enrollment Form'!C467=\"ROC\",'Enrollment Form'!B467<>\"Subscriber\",'Enrollment Form'!O467=\"Waive\",'Enrollment Form'!O467=\"\"),\"-\",IF('Enrollment Form'!P467=\"\",\"N\",\"Y\")))","v":""},{"$f":"IF($B460=\"N\",\"\",IF(AND('Enrollment Form'!$C467=\"ROC\",'Enrollment Form'!$DR467<>\"\"),\"Y\",IF(AND('Enrollment Form'!$C467=\"ROC\",'Enrollment Form'!$DR467=\"\"),\"N\",IF(AND('Enrollment Form'!$C467=\"Enroll\",'Enrollment Form'!$B467=\"Subscriber\",'Enrollment Form'!$CX467=\"No\",'Enrollment Form'!$DR467=\"\"),\"N\",IF(AND('Enrollment Form'!$C467=\"Enroll\",'Enrollment Form'!$B467=\"Subscriber\",'Enrollment Form'!$CX467=\"Yes\"),\"-\",\"Y\")))))","v":""},{"$f":"IF($B460=\"N\",\"\",IF(AND('Enrollment Form'!$C467=\"ROC\",'Enrollment Form'!$DS467<>\"\"),\"Y\",IF(AND('Enrollment Form'!$C467=\"ROC\",'Enrollment Form'!$DS467=\"\"),\"N\",IF(AND('Enrollment Form'!$C467=\"Enroll\",'Enrollment Form'!$B467=\"Subscriber\",'Enrollment Form'!$CX467=\"No\",'Enrollment Form'!$DS467=\"\"),\"N\",IF(AND('Enrollment Form'!$C467=\"Enroll\",'Enrollment Form'!$B467=\"Subscriber\",'Enrollment Form'!$CX467=\"Yes\"),\"-\",\"Y\")))))","v":""},{"$f":"IF('Enrollment Form'!AH467=\"\",\"\",IF(ISERROR(SEARCH(\".\",'Enrollment Form'!AH467,SEARCH(\"@\",'Enrollment Form'!AH467))),\"N\",\"Y\"))","v":""},{"$f":"IF(OR($B460=\"N\",'Enrollment Form'!$G467=\"\"),\"\",IF('Enrollment Form'!$B467<>\"Subscriber\",\"-\",IF(COUNTIF('Enrollment Form'!$AV467:$AW467,\"Yes\")=2,\"N\",\"Y\")))","v":""},{"$f":"IF(OR('Enrollment Form'!$CJ467=\"\",'Enrollment Form'!$CJ467=\"No\"),\"-\",IF(AND('Enrollment Form'!$CJ467=\"Yes\",'Enrollment Form'!$CK467=\"\"),\"N\",\"Y\"))","v":"-"},{"$f":"IF(OR('Enrollment Form'!$CL467=\"\",'Enrollment Form'!$CL467=\"No\"),\"-\",IF(AND('Enrollment Form'!$CL467=\"Yes\",'Enrollment Form'!$CM467=\"\"),\"N\",\"Y\"))","v":"-"},{"$f":"IF(OR('Enrollment Form'!$CN467=\"\",'Enrollment Form'!$CN467=\"No\"),\"-\",IF(AND('Enrollment Form'!$CN467=\"Yes\",'Enrollment Form'!$CO467=\"\"),\"N\",\"Y\"))","v":"-"},{"$f":"IF(OR('Enrollment Form'!$CN467=\"\",'Enrollment Form'!$CN467=\"No\"),\"-\",IF(AND('Enrollment Form'!$CN467=\"Yes\",'Enrollment Form'!$CP467=\"\"),\"N\",\"Y\"))","v":"-"},{"$f":"IF('Enrollment Form'!B467<>\"Subscriber\",\"-\",IF(AND('Enrollment Form'!B467=\"Subscriber\",'Enrollment Form'!C467=\"Enroll\",'Enrollment Form'!AA467=\"\"),\"N\",\"Y\"))","v":"-"},{"$f":"IF(OR('Enrollment Form'!B467=\"Subscriber\",'Enrollment Form'!B467=\"\"),\"-\",IF('Enrollment Form'!BP467=\"\",\"N\",\"Y\"))","v":"-"},{"$f":"IF('Enrollment Form'!B467<>\"Subscriber\",\"-\",IF(AND('Enrollment Form'!B467=\"Subscriber\",'Enrollment Form'!G467=\"\"),\"N\",\"Y\"))","v":"-"},{"$f":"IF('Enrollment Form'!A467=\"\",\"\",IF('Enrollment Form'!B467=\"Subscriber\",\"-\",IF(AND('Enrollment Form'!B467<>\"Subscriber\",'Enrollment Form'!G467='Enrollment Form'!H467),\"N\",\"Y\")))","v":""},0]
[468,{"$f":"IF('Enrollment Form'!$A468<>\"\",\"Y\",\"N\")","v":"N"},{"$f":"IF(AND('Enrollment Form'!$B468=\"\",'Enrollment Form'!$C468<>\"\"),\"N\",IF($B461=\"N\",\"\",\"Y\"))","v":""},{"$f":"IF(OR($B461=\"N\",'Enrollment Form'!G468=\"\"),\"\",IF('Enrollment Form'!$B468<>\"Subscriber\",\"\",IF('Enrollment Form'!$G468='Enrollment Form'!$H468,\"Y\",\"N\")))","v":""},{"$f":"IF($B461=\"N\",\"\",IF(AND(COUNTIFS('Enrollment Form'!$H$11:$H$1000,'Enrollment Form'!$H468,'Enrollment Form'!$B$11:$B$1000,'Enrollment Form'!$B468)>1,'Enrollment Form'!$H468<>\"\"),\"N\",\"Y\"))","v":""},{"$f":"IF($B461=\"N\",\"\",IF(LEN('Enrollment Form'!$Y468)=0,\"\",IF(LEN('Enrollment Form'!$Y468)<>5,\"N\",\"Y\")))","v":""},{"$f":"IF($B461=\"N\",\"\",IF(LEN('Enrollment Form'!$AD468=0),\"\",IF(LEN('Enrollment Form'!$AD468)<>5,\"N\",\"Y\")))","v":""},{"$f":"IF($B461=\"N\",\"\",IF(LEN('Enrollment Form'!$BS468=0),\"\",IF(LEN('Enrollment Form'!$BS468)<>5,\"N\",\"Y\")))","v":""},{"$f":"IF($B461=\"N\",\"\",IF(LEN('Enrollment Form'!$AE468)=0,\"\",IF(LEN('Enrollment Form'!$AE468)<>10,\"N\",\"Y\")))","v":""},{"$f":"IF($B461=\"N\",\"\",IF(LEN('Enrollment Form'!$AF468)=0,\"\",IF(LEN('Enrollment Form'!$AF468)<>10,\"N\",\"Y\")))","v":""},{"$f":"IF('Enrollment Form'!$O468<>\"Graded\",\"-\",IF(AND('Enrollment Form'!$O468=\"Graded\",'Enrollment Form'!$AR468<>\"\"),\"Y\",\"N\"))","v":"-"},{"$f":"IF($B461=\"N\",\"\",IF(OR('Enrollment Form'!$B468<>\"Subscriber\",'Enrollment Form'!$C468=\"ROC\"),\"-\",IF(AND('Enrollment Form'!$B468=\"Subscriber\",'Enrollment Form'!$C468=\"Enroll\",'Enrollment Form'!$AJ468<>\"\"),\"Y\",\"N\")))","v":""},{"$f":"IF($B461=\"N\",\"\",IF(OR('Enrollment Form'!$B468<>\"Subscriber\",'Enrollment Form'!$C468=\"ROC\"),\"-\",IF(AND('Enrollment Form'!$B468=\"Subscriber\",'Enrollment Form'!$C468=\"Enroll\",'Enrollment Form'!$AK468<>\"\"),\"Y\",\"N\")))","v":""},{"$f":"IF($B461=\"N\",\"\",IF(OR('Enrollment Form'!$B468<>\"Subscriber\",'Enrollment Form'!$C468=\"ROC\"),\"-\",IF(AND('Enrollment Form'!$B468=\"Subscriber\",'Enrollment Form'!$C468=\"Enroll\",'Enrollment Form'!$AL468<>\"\"),\"Y\",\"N\")))","v":""},{"$f":"IF($B461=\"N\",\"\",IF(OR('Enrollment Form'!$B468<>\"Subscriber\",'Enrollment Form'!$C468=\"ROC\"),\"-\",IF(AND('Enrollment Form'!$B468=\"Subscriber\",'Enrollment Form'!$C468=\"Enroll\",'Enrollment Form'!$AP468<>\"\"),\"Y\",\"N\")))","v":""},{"$f":"IF($B461=\"N\",\"\",IF(OR('Enrollment Form'!$B468<>\"Subscriber\",'Enrollment Form'!$C468=\"ROC\"),\"-\",IF(AND('Enrollment Form'!$B468=\"Subscriber\",'Enrollment Form'!$C468=\"Enroll\",'Enrollment Form'!$AQ468<>\"\"),\"Y\",\"N\")))","v":""},{"$f":"IF($B461=\"N\",\"\",IF(OR('Enrollment Form'!$B468<>\"Subscriber\",'Enrollment Form'!$C468=\"ROC\"),\"-\",IF(AND('Enrollment Form'!$B468=\"Subscriber\",'Enrollment Form'!$C468=\"Enroll\",'Enrollment Form'!$AS468<>\"\"),\"Y\",\"N\")))","v":""},{"$f":"IF($B461=\"N\",\"\",IF($Q461=\"-\",\"-\",IF(AND($Q461=\"Y\",'Enrollment Form'!$AS468=\"No\"),\"-\",IF(AND($Q461=\"Y\",'Enrollment Form'!$AS468=\"Yes\",'Enrollment Form'!$AT468<>\"\"),\"Y\",\"N\"))))","v":""},{"$f":"IF($B461=\"N\",\"\",IF(OR('Enrollment Form'!$B468<>\"Subscriber\",'Enrollment Form'!$C468=\"ROC\"),\"-\",IF(AND('Enrollment Form'!$B468=\"Subscriber\",'Enrollment Form'!$C468=\"Enroll\",'Enrollment Form'!$CV468<>\"\"),\"Y\",\"N\")))","v":""},{"$f":"IF($B461=\"N\",\"\",IF($S461=\"-\",\"-\",IF(AND($S461=\"Y\",'Enrollment Form'!$CV468=\"No\"),\"-\",IF(AND($S461=\"Y\",'Enrollment Form'!$CV468=\"Yes\",'Enrollment Form'!$CW468<>\"\"),\"Y\",\"N\"))))","v":""},{"$f":"IF(OR('Enrollment Form'!$AY468=\"Yes\",'Enrollment Form'!$AY468=\"\"),\"-\",IF(OR(AND('Enrollment Form'!$AY468=\"No\",ISERROR(FIND(\"HMO\",VLOOKUP('Enrollment Form'!G468,'Enrollment Form'!H$11:J$1000,3,FALSE),1))=FALSE,COUNTA('Enrollment Form'!$AZ468:$BC468)=4),AND('Enrollment Form'!$AY468=\"No\",ISERROR(FIND(\"HMO\",VLOOKUP('Enrollment Form'!G468,'Enrollment Form'!H$11:J$1000,3,FALSE),1))=FALSE,COUNTA('Enrollment Form'!$BT468:$BW468)=4)),\"Y\",\"N\"))","v":"-"},{"$f":"IF($B461=\"N\",\"\",IF('Enrollment Form'!$B468=\"Subscriber\",\"-\",IF(COUNTA('Enrollment Form'!$BL468,'Enrollment Form'!$BN468)=2,\"Y\",\"N\")))","v":""},{"$f":"IF($B461=\"N\",\"\",IF(OR('Enrollment Form'!$AX468=\"\",'Enrollment Form'!$AX468=\"No\"),\"-\",IF(AND('Enrollment Form'!$AX468=\"Yes\",COUNTA('Enrollment Form'!$CR468)=1),\"Y\",\"N\")))","v":""},{"$f":"IF(OR('Enrollment Form'!$CR468=\"\",'Enrollment Form'!$CR468=\"No\"),\"-\",IF(COUNTA('Enrollment Form'!$CT468:$CU468)=2,\"Y\",\"N\"))","v":"-"},{"$f":"IF($B461=\"N\",\"\",IF(COUNTIF('Enrollment Form'!$DG468:$DP468,\"Other\")=COUNTA('Enrollment Form'!$DK468,'Enrollment Form'!$DH468,'Enrollment Form'!$DN468,'Enrollment Form'!$DQ468),\"Y\",\"N\"))","v":""},{"$f":"IF($B461=\"N\",\"\",IF(OR('Enrollment Form'!B468<>\"Subscriber\",'Enrollment Form'!C468=\"ROC\",COUNTIF('Enrollment Form'!AV468:AW468,\"Yes\")>=1),\"-\",IF(AND('Enrollment Form'!C468=\"Enroll\",COUNTIF('Enrollment Form'!AV468:AW468,\"No\")=2,'Enrollment Form'!AX468=\"\"),\"N\",\"Y\")))","v":""},{"$f":"IF(OR(B461=\"N\",'Enrollment Form'!B468<>\"Subscriber\",'Enrollment Form'!C468=\"ROC\",'Enrollment Form'!O468<>\"Multiple of Salary\"),\"-\",IF(COUNTA('Enrollment Form'!T468:U468)<2,\"N\",\"Y\"))","v":"-"},{"$f":"IF(B461=\"N\",\"\",IF(OR('Enrollment Form'!C468=\"ROC\",'Enrollment Form'!B468<>\"Subscriber\",'Enrollment Form'!O468=\"Waive\",'Enrollment Form'!O468=\"\"),\"-\",IF('Enrollment Form'!P468=\"\",\"N\",\"Y\")))","v":""},{"$f":"IF($B461=\"N\",\"\",IF(AND('Enrollment Form'!$C468=\"ROC\",'Enrollment Form'!$DR468<>\"\"),\"Y\",IF(AND('Enrollment Form'!$C468=\"ROC\",'Enrollment Form'!$DR468=\"\"),\"N\",IF(AND('Enrollment Form'!$C468=\"Enroll\",'Enrollment Form'!$B468=\"Subscriber\",'Enrollment Form'!$CX468=\"No\",'Enrollment Form'!$DR468=\"\"),\"N\",IF(AND('Enrollment Form'!$C468=\"Enroll\",'Enrollment Form'!$B468=\"Subscriber\",'Enrollment Form'!$CX468=\"Yes\"),\"-\",\"Y\")))))","v":""},{"$f":"IF($B461=\"N\",\"\",IF(AND('Enrollment Form'!$C468=\"ROC\",'Enrollment Form'!$DS468<>\"\"),\"Y\",IF(AND('Enrollment Form'!$C468=\"ROC\",'Enrollment Form'!$DS468=\"\"),\"N\",IF(AND('Enrollment Form'!$C468=\"Enroll\",'Enrollment Form'!$B468=\"Subscriber\",'Enrollment Form'!$CX468=\"No\",'Enrollment Form'!$DS468=\"\"),\"N\",IF(AND('Enrollment Form'!$C468=\"Enroll\",'Enrollment Form'!$B468=\"Subscriber\",'Enrollment Form'!$CX468=\"Yes\"),\"-\",\"Y\")))))","v":""},{"$f":"IF('Enrollment Form'!AH468=\"\",\"\",IF(ISERROR(SEARCH(\".\",'Enrollment Form'!AH468,SEARCH(\"@\",'Enrollment Form'!AH468))),\"N\",\"Y\"))","v":""},{"$f":"IF(OR($B461=\"N\",'Enrollment Form'!$G468=\"\"),\"\",IF('Enrollment Form'!$B468<>\"Subscriber\",\"-\",IF(COUNTIF('Enrollment Form'!$AV468:$AW468,\"Yes\")=2,\"N\",\"Y\")))","v":""},{"$f":"IF(OR('Enrollment Form'!$CJ468=\"\",'Enrollment Form'!$CJ468=\"No\"),\"-\",IF(AND('Enrollment Form'!$CJ468=\"Yes\",'Enrollment Form'!$CK468=\"\"),\"N\",\"Y\"))","v":"-"},{"$f":"IF(OR('Enrollment Form'!$CL468=\"\",'Enrollment Form'!$CL468=\"No\"),\"-\",IF(AND('Enrollment Form'!$CL468=\"Yes\",'Enrollment Form'!$CM468=\"\"),\"N\",\"Y\"))","v":"-"},{"$f":"IF(OR('Enrollment Form'!$CN468=\"\",'Enrollment Form'!$CN468=\"No\"),\"-\",IF(AND('Enrollment Form'!$CN468=\"Yes\",'Enrollment Form'!$CO468=\"\"),\"N\",\"Y\"))","v":"-"},{"$f":"IF(OR('Enrollment Form'!$CN468=\"\",'Enrollment Form'!$CN468=\"No\"),\"-\",IF(AND('Enrollment Form'!$CN468=\"Yes\",'Enrollment Form'!$CP468=\"\"),\"N\",\"Y\"))","v":"-"},{"$f":"IF('Enrollment Form'!B468<>\"Subscriber\",\"-\",IF(AND('Enrollment Form'!B468=\"Subscriber\",'Enrollment Form'!C468=\"Enroll\",'Enrollment Form'!AA468=\"\"),\"N\",\"Y\"))","v":"-"},{"$f":"IF(OR('Enrollment Form'!B468=\"Subscriber\",'Enrollment Form'!B468=\"\"),\"-\",IF('Enrollment Form'!BP468=\"\",\"N\",\"Y\"))","v":"-"},{"$f":"IF('Enrollment Form'!B468<>\"Subscriber\",\"-\",IF(AND('Enrollment Form'!B468=\"Subscriber\",'Enrollment Form'!G468=\"\"),\"N\",\"Y\"))","v":"-"},{"$f":"IF('Enrollment Form'!A468=\"\",\"\",IF('Enrollment Form'!B468=\"Subscriber\",\"-\",IF(AND('Enrollment Form'!B468<>\"Subscriber\",'Enrollment Form'!G468='Enrollment Form'!H468),\"N\",\"Y\")))","v":""},0]
[469,{"$f":"IF('Enrollment Form'!$A469<>\"\",\"Y\",\"N\")","v":"N"},{"$f":"IF(AND('Enrollment Form'!$B469=\"\",'Enrollment Form'!$C469<>\"\"),\"N\",IF($B462=\"N\",\"\",\"Y\"))","v":""},{"$f":"IF(OR($B462=\"N\",'Enrollment Form'!G469=\"\"),\"\",IF('Enrollment Form'!$B469<>\"Subscriber\",\"\",IF('Enrollment Form'!$G469='Enrollment Form'!$H469,\"Y\",\"N\")))","v":""},{"$f":"IF($B462=\"N\",\"\",IF(AND(COUNTIFS('Enrollment Form'!$H$11:$H$1000,'Enrollment Form'!$H469,'Enrollment Form'!$B$11:$B$1000,'Enrollment Form'!$B469)>1,'Enrollment Form'!$H469<>\"\"),\"N\",\"Y\"))","v":""},{"$f":"IF($B462=\"N\",\"\",IF(LEN('Enrollment Form'!$Y469)=0,\"\",IF(LEN('Enrollment Form'!$Y469)<>5,\"N\",\"Y\")))","v":""},{"$f":"IF($B462=\"N\",\"\",IF(LEN('Enrollment Form'!$AD469=0),\"\",IF(LEN('Enrollment Form'!$AD469)<>5,\"N\",\"Y\")))","v":""},{"$f":"IF($B462=\"N\",\"\",IF(LEN('Enrollment Form'!$BS469=0),\"\",IF(LEN('Enrollment Form'!$BS469)<>5,\"N\",\"Y\")))","v":""},{"$f":"IF($B462=\"N\",\"\",IF(LEN('Enrollment Form'!$AE469)=0,\"\",IF(LEN('Enrollment Form'!$AE469)<>10,\"N\",\"Y\")))","v":""},{"$f":"IF($B462=\"N\",\"\",IF(LEN('Enrollment Form'!$AF469)=0,\"\",IF(LEN('Enrollment Form'!$AF469)<>10,\"N\",\"Y\")))","v":""},{"$f":"IF('Enrollment Form'!$O469<>\"Graded\",\"-\",IF(AND('Enrollment Form'!$O469=\"Graded\",'Enrollment Form'!$AR469<>\"\"),\"Y\",\"N\"))","v":"-"},{"$f":"IF($B462=\"N\",\"\",IF(OR('Enrollment Form'!$B469<>\"Subscriber\",'Enrollment Form'!$C469=\"ROC\"),\"-\",IF(AND('Enrollment Form'!$B469=\"Subscriber\",'Enrollment Form'!$C469=\"Enroll\",'Enrollment Form'!$AJ469<>\"\"),\"Y\",\"N\")))","v":""},{"$f":"IF($B462=\"N\",\"\",IF(OR('Enrollment Form'!$B469<>\"Subscriber\",'Enrollment Form'!$C469=\"ROC\"),\"-\",IF(AND('Enrollment Form'!$B469=\"Subscriber\",'Enrollment Form'!$C469=\"Enroll\",'Enrollment Form'!$AK469<>\"\"),\"Y\",\"N\")))","v":""},{"$f":"IF($B462=\"N\",\"\",IF(OR('Enrollment Form'!$B469<>\"Subscriber\",'Enrollment Form'!$C469=\"ROC\"),\"-\",IF(AND('Enrollment Form'!$B469=\"Subscriber\",'Enrollment Form'!$C469=\"Enroll\",'Enrollment Form'!$AL469<>\"\"),\"Y\",\"N\")))","v":""},{"$f":"IF($B462=\"N\",\"\",IF(OR('Enrollment Form'!$B469<>\"Subscriber\",'Enrollment Form'!$C469=\"ROC\"),\"-\",IF(AND('Enrollment Form'!$B469=\"Subscriber\",'Enrollment Form'!$C469=\"Enroll\",'Enrollment Form'!$AP469<>\"\"),\"Y\",\"N\")))","v":""},{"$f":"IF($B462=\"N\",\"\",IF(OR('Enrollment Form'!$B469<>\"Subscriber\",'Enrollment Form'!$C469=\"ROC\"),\"-\",IF(AND('Enrollment Form'!$B469=\"Subscriber\",'Enrollment Form'!$C469=\"Enroll\",'Enrollment Form'!$AQ469<>\"\"),\"Y\",\"N\")))","v":""},{"$f":"IF($B462=\"N\",\"\",IF(OR('Enrollment Form'!$B469<>\"Subscriber\",'Enrollment Form'!$C469=\"ROC\"),\"-\",IF(AND('Enrollment Form'!$B469=\"Subscriber\",'Enrollment Form'!$C469=\"Enroll\",'Enrollment Form'!$AS469<>\"\"),\"Y\",\"N\")))","v":""},{"$f":"IF($B462=\"N\",\"\",IF($Q462=\"-\",\"-\",IF(AND($Q462=\"Y\",'Enrollment Form'!$AS469=\"No\"),\"-\",IF(AND($Q462=\"Y\",'Enrollment Form'!$AS469=\"Yes\",'Enrollment Form'!$AT469<>\"\"),\"Y\",\"N\"))))","v":""},{"$f":"IF($B462=\"N\",\"\",IF(OR('Enrollment Form'!$B469<>\"Subscriber\",'Enrollment Form'!$C469=\"ROC\"),\"-\",IF(AND('Enrollment Form'!$B469=\"Subscriber\",'Enrollment Form'!$C469=\"Enroll\",'Enrollment Form'!$CV469<>\"\"),\"Y\",\"N\")))","v":""},{"$f":"IF($B462=\"N\",\"\",IF($S462=\"-\",\"-\",IF(AND($S462=\"Y\",'Enrollment Form'!$CV469=\"No\"),\"-\",IF(AND($S462=\"Y\",'Enrollment Form'!$CV469=\"Yes\",'Enrollment Form'!$CW469<>\"\"),\"Y\",\"N\"))))","v":""},{"$f":"IF(OR('Enrollment Form'!$AY469=\"Yes\",'Enrollment Form'!$AY469=\"\"),\"-\",IF(OR(AND('Enrollment Form'!$AY469=\"No\",ISERROR(FIND(\"HMO\",VLOOKUP('Enrollment Form'!G469,'Enrollment Form'!H$11:J$1000,3,FALSE),1))=FALSE,COUNTA('Enrollment Form'!$AZ469:$BC469)=4),AND('Enrollment Form'!$AY469=\"No\",ISERROR(FIND(\"HMO\",VLOOKUP('Enrollment Form'!G469,'Enrollment Form'!H$11:J$1000,3,FALSE),1))=FALSE,COUNTA('Enrollment Form'!$BT469:$BW469)=4)),\"Y\",\"N\"))","v":"-"},{"$f":"IF($B462=\"N\",\"\",IF('Enrollment Form'!$B469=\"Subscriber\",\"-\",IF(COUNTA('Enrollment Form'!$BL469,'Enrollment Form'!$BN469)=2,\"Y\",\"N\")))","v":""},{"$f":"IF($B462=\"N\",\"\",IF(OR('Enrollment Form'!$AX469=\"\",'Enrollment Form'!$AX469=\"No\"),\"-\",IF(AND('Enrollment Form'!$AX469=\"Yes\",COUNTA('Enrollment Form'!$CR469)=1),\"Y\",\"N\")))","v":""},{"$f":"IF(OR('Enrollment Form'!$CR469=\"\",'Enrollment Form'!$CR469=\"No\"),\"-\",IF(COUNTA('Enrollment Form'!$CT469:$CU469)=2,\"Y\",\"N\"))","v":"-"},{"$f":"IF($B462=\"N\",\"\",IF(COUNTIF('Enrollment Form'!$DG469:$DP469,\"Other\")=COUNTA('Enrollment Form'!$DK469,'Enrollment Form'!$DH469,'Enrollment Form'!$DN469,'Enrollment Form'!$DQ469),\"Y\",\"N\"))","v":""},{"$f":"IF($B462=\"N\",\"\",IF(OR('Enrollment Form'!B469<>\"Subscriber\",'Enrollment Form'!C469=\"ROC\",COUNTIF('Enrollment Form'!AV469:AW469,\"Yes\")>=1),\"-\",IF(AND('Enrollment Form'!C469=\"Enroll\",COUNTIF('Enrollment Form'!AV469:AW469,\"No\")=2,'Enrollment Form'!AX469=\"\"),\"N\",\"Y\")))","v":""},{"$f":"IF(OR(B462=\"N\",'Enrollment Form'!B469<>\"Subscriber\",'Enrollment Form'!C469=\"ROC\",'Enrollment Form'!O469<>\"Multiple of Salary\"),\"-\",IF(COUNTA('Enrollment Form'!T469:U469)<2,\"N\",\"Y\"))","v":"-"},{"$f":"IF(B462=\"N\",\"\",IF(OR('Enrollment Form'!C469=\"ROC\",'Enrollment Form'!B469<>\"Subscriber\",'Enrollment Form'!O469=\"Waive\",'Enrollment Form'!O469=\"\"),\"-\",IF('Enrollment Form'!P469=\"\",\"N\",\"Y\")))","v":""},{"$f":"IF($B462=\"N\",\"\",IF(AND('Enrollment Form'!$C469=\"ROC\",'Enrollment Form'!$DR469<>\"\"),\"Y\",IF(AND('Enrollment Form'!$C469=\"ROC\",'Enrollment Form'!$DR469=\"\"),\"N\",IF(AND('Enrollment Form'!$C469=\"Enroll\",'Enrollment Form'!$B469=\"Subscriber\",'Enrollment Form'!$CX469=\"No\",'Enrollment Form'!$DR469=\"\"),\"N\",IF(AND('Enrollment Form'!$C469=\"Enroll\",'Enrollment Form'!$B469=\"Subscriber\",'Enrollment Form'!$CX469=\"Yes\"),\"-\",\"Y\")))))","v":""},{"$f":"IF($B462=\"N\",\"\",IF(AND('Enrollment Form'!$C469=\"ROC\",'Enrollment Form'!$DS469<>\"\"),\"Y\",IF(AND('Enrollment Form'!$C469=\"ROC\",'Enrollment Form'!$DS469=\"\"),\"N\",IF(AND('Enrollment Form'!$C469=\"Enroll\",'Enrollment Form'!$B469=\"Subscriber\",'Enrollment Form'!$CX469=\"No\",'Enrollment Form'!$DS469=\"\"),\"N\",IF(AND('Enrollment Form'!$C469=\"Enroll\",'Enrollment Form'!$B469=\"Subscriber\",'Enrollment Form'!$CX469=\"Yes\"),\"-\",\"Y\")))))","v":""},{"$f":"IF('Enrollment Form'!AH469=\"\",\"\",IF(ISERROR(SEARCH(\".\",'Enrollment Form'!AH469,SEARCH(\"@\",'Enrollment Form'!AH469))),\"N\",\"Y\"))","v":""},{"$f":"IF(OR($B462=\"N\",'Enrollment Form'!$G469=\"\"),\"\",IF('Enrollment Form'!$B469<>\"Subscriber\",\"-\",IF(COUNTIF('Enrollment Form'!$AV469:$AW469,\"Yes\")=2,\"N\",\"Y\")))","v":""},{"$f":"IF(OR('Enrollment Form'!$CJ469=\"\",'Enrollment Form'!$CJ469=\"No\"),\"-\",IF(AND('Enrollment Form'!$CJ469=\"Yes\",'Enrollment Form'!$CK469=\"\"),\"N\",\"Y\"))","v":"-"},{"$f":"IF(OR('Enrollment Form'!$CL469=\"\",'Enrollment Form'!$CL469=\"No\"),\"-\",IF(AND('Enrollment Form'!$CL469=\"Yes\",'Enrollment Form'!$CM469=\"\"),\"N\",\"Y\"))","v":"-"},{"$f":"IF(OR('Enrollment Form'!$CN469=\"\",'Enrollment Form'!$CN469=\"No\"),\"-\",IF(AND('Enrollment Form'!$CN469=\"Yes\",'Enrollment Form'!$CO469=\"\"),\"N\",\"Y\"))","v":"-"},{"$f":"IF(OR('Enrollment Form'!$CN469=\"\",'Enrollment Form'!$CN469=\"No\"),\"-\",IF(AND('Enrollment Form'!$CN469=\"Yes\",'Enrollment Form'!$CP469=\"\"),\"N\",\"Y\"))","v":"-"},{"$f":"IF('Enrollment Form'!B469<>\"Subscriber\",\"-\",IF(AND('Enrollment Form'!B469=\"Subscriber\",'Enrollment Form'!C469=\"Enroll\",'Enrollment Form'!AA469=\"\"),\"N\",\"Y\"))","v":"-"},{"$f":"IF(OR('Enrollment Form'!B469=\"Subscriber\",'Enrollment Form'!B469=\"\"),\"-\",IF('Enrollment Form'!BP469=\"\",\"N\",\"Y\"))","v":"-"},{"$f":"IF('Enrollment Form'!B469<>\"Subscriber\",\"-\",IF(AND('Enrollment Form'!B469=\"Subscriber\",'Enrollment Form'!G469=\"\"),\"N\",\"Y\"))","v":"-"},{"$f":"IF('Enrollment Form'!A469=\"\",\"\",IF('Enrollment Form'!B469=\"Subscriber\",\"-\",IF(AND('Enrollment Form'!B469<>\"Subscriber\",'Enrollment Form'!G469='Enrollment Form'!H469),\"N\",\"Y\")))","v":""},0]
[470,{"$f":"IF('Enrollment Form'!$A470<>\"\",\"Y\",\"N\")","v":"N"},{"$f":"IF(AND('Enrollment Form'!$B470=\"\",'Enrollment Form'!$C470<>\"\"),\"N\",IF($B463=\"N\",\"\",\"Y\"))","v":""},{"$f":"IF(OR($B463=\"N\",'Enrollment Form'!G470=\"\"),\"\",IF('Enrollment Form'!$B470<>\"Subscriber\",\"\",IF('Enrollment Form'!$G470='Enrollment Form'!$H470,\"Y\",\"N\")))","v":""},{"$f":"IF($B463=\"N\",\"\",IF(AND(COUNTIFS('Enrollment Form'!$H$11:$H$1000,'Enrollment Form'!$H470,'Enrollment Form'!$B$11:$B$1000,'Enrollment Form'!$B470)>1,'Enrollment Form'!$H470<>\"\"),\"N\",\"Y\"))","v":""},{"$f":"IF($B463=\"N\",\"\",IF(LEN('Enrollment Form'!$Y470)=0,\"\",IF(LEN('Enrollment Form'!$Y470)<>5,\"N\",\"Y\")))","v":""},{"$f":"IF($B463=\"N\",\"\",IF(LEN('Enrollment Form'!$AD470=0),\"\",IF(LEN('Enrollment Form'!$AD470)<>5,\"N\",\"Y\")))","v":""},{"$f":"IF($B463=\"N\",\"\",IF(LEN('Enrollment Form'!$BS470=0),\"\",IF(LEN('Enrollment Form'!$BS470)<>5,\"N\",\"Y\")))","v":""},{"$f":"IF($B463=\"N\",\"\",IF(LEN('Enrollment Form'!$AE470)=0,\"\",IF(LEN('Enrollment Form'!$AE470)<>10,\"N\",\"Y\")))","v":""},{"$f":"IF($B463=\"N\",\"\",IF(LEN('Enrollment Form'!$AF470)=0,\"\",IF(LEN('Enrollment Form'!$AF470)<>10,\"N\",\"Y\")))","v":""},{"$f":"IF('Enrollment Form'!$O470<>\"Graded\",\"-\",IF(AND('Enrollment Form'!$O470=\"Graded\",'Enrollment Form'!$AR470<>\"\"),\"Y\",\"N\"))","v":"-"},{"$f":"IF($B463=\"N\",\"\",IF(OR('Enrollment Form'!$B470<>\"Subscriber\",'Enrollment Form'!$C470=\"ROC\"),\"-\",IF(AND('Enrollment Form'!$B470=\"Subscriber\",'Enrollment Form'!$C470=\"Enroll\",'Enrollment Form'!$AJ470<>\"\"),\"Y\",\"N\")))","v":""},{"$f":"IF($B463=\"N\",\"\",IF(OR('Enrollment Form'!$B470<>\"Subscriber\",'Enrollment Form'!$C470=\"ROC\"),\"-\",IF(AND('Enrollment Form'!$B470=\"Subscriber\",'Enrollment Form'!$C470=\"Enroll\",'Enrollment Form'!$AK470<>\"\"),\"Y\",\"N\")))","v":""},{"$f":"IF($B463=\"N\",\"\",IF(OR('Enrollment Form'!$B470<>\"Subscriber\",'Enrollment Form'!$C470=\"ROC\"),\"-\",IF(AND('Enrollment Form'!$B470=\"Subscriber\",'Enrollment Form'!$C470=\"Enroll\",'Enrollment Form'!$AL470<>\"\"),\"Y\",\"N\")))","v":""},{"$f":"IF($B463=\"N\",\"\",IF(OR('Enrollment Form'!$B470<>\"Subscriber\",'Enrollment Form'!$C470=\"ROC\"),\"-\",IF(AND('Enrollment Form'!$B470=\"Subscriber\",'Enrollment Form'!$C470=\"Enroll\",'Enrollment Form'!$AP470<>\"\"),\"Y\",\"N\")))","v":""},{"$f":"IF($B463=\"N\",\"\",IF(OR('Enrollment Form'!$B470<>\"Subscriber\",'Enrollment Form'!$C470=\"ROC\"),\"-\",IF(AND('Enrollment Form'!$B470=\"Subscriber\",'Enrollment Form'!$C470=\"Enroll\",'Enrollment Form'!$AQ470<>\"\"),\"Y\",\"N\")))","v":""},{"$f":"IF($B463=\"N\",\"\",IF(OR('Enrollment Form'!$B470<>\"Subscriber\",'Enrollment Form'!$C470=\"ROC\"),\"-\",IF(AND('Enrollment Form'!$B470=\"Subscriber\",'Enrollment Form'!$C470=\"Enroll\",'Enrollment Form'!$AS470<>\"\"),\"Y\",\"N\")))","v":""},{"$f":"IF($B463=\"N\",\"\",IF($Q463=\"-\",\"-\",IF(AND($Q463=\"Y\",'Enrollment Form'!$AS470=\"No\"),\"-\",IF(AND($Q463=\"Y\",'Enrollment Form'!$AS470=\"Yes\",'Enrollment Form'!$AT470<>\"\"),\"Y\",\"N\"))))","v":""},{"$f":"IF($B463=\"N\",\"\",IF(OR('Enrollment Form'!$B470<>\"Subscriber\",'Enrollment Form'!$C470=\"ROC\"),\"-\",IF(AND('Enrollment Form'!$B470=\"Subscriber\",'Enrollment Form'!$C470=\"Enroll\",'Enrollment Form'!$CV470<>\"\"),\"Y\",\"N\")))","v":""},{"$f":"IF($B463=\"N\",\"\",IF($S463=\"-\",\"-\",IF(AND($S463=\"Y\",'Enrollment Form'!$CV470=\"No\"),\"-\",IF(AND($S463=\"Y\",'Enrollment Form'!$CV470=\"Yes\",'Enrollment Form'!$CW470<>\"\"),\"Y\",\"N\"))))","v":""},{"$f":"IF(OR('Enrollment Form'!$AY470=\"Yes\",'Enrollment Form'!$AY470=\"\"),\"-\",IF(OR(AND('Enrollment Form'!$AY470=\"No\",ISERROR(FIND(\"HMO\",VLOOKUP('Enrollment Form'!G470,'Enrollment Form'!H$11:J$1000,3,FALSE),1))=FALSE,COUNTA('Enrollment Form'!$AZ470:$BC470)=4),AND('Enrollment Form'!$AY470=\"No\",ISERROR(FIND(\"HMO\",VLOOKUP('Enrollment Form'!G470,'Enrollment Form'!H$11:J$1000,3,FALSE),1))=FALSE,COUNTA('Enrollment Form'!$BT470:$BW470)=4)),\"Y\",\"N\"))","v":"-"},{"$f":"IF($B463=\"N\",\"\",IF('Enrollment Form'!$B470=\"Subscriber\",\"-\",IF(COUNTA('Enrollment Form'!$BL470,'Enrollment Form'!$BN470)=2,\"Y\",\"N\")))","v":""},{"$f":"IF($B463=\"N\",\"\",IF(OR('Enrollment Form'!$AX470=\"\",'Enrollment Form'!$AX470=\"No\"),\"-\",IF(AND('Enrollment Form'!$AX470=\"Yes\",COUNTA('Enrollment Form'!$CR470)=1),\"Y\",\"N\")))","v":""},{"$f":"IF(OR('Enrollment Form'!$CR470=\"\",'Enrollment Form'!$CR470=\"No\"),\"-\",IF(COUNTA('Enrollment Form'!$CT470:$CU470)=2,\"Y\",\"N\"))","v":"-"},{"$f":"IF($B463=\"N\",\"\",IF(COUNTIF('Enrollment Form'!$DG470:$DP470,\"Other\")=COUNTA('Enrollment Form'!$DK470,'Enrollment Form'!$DH470,'Enrollment Form'!$DN470,'Enrollment Form'!$DQ470),\"Y\",\"N\"))","v":""},{"$f":"IF($B463=\"N\",\"\",IF(OR('Enrollment Form'!B470<>\"Subscriber\",'Enrollment Form'!C470=\"ROC\",COUNTIF('Enrollment Form'!AV470:AW470,\"Yes\")>=1),\"-\",IF(AND('Enrollment Form'!C470=\"Enroll\",COUNTIF('Enrollment Form'!AV470:AW470,\"No\")=2,'Enrollment Form'!AX470=\"\"),\"N\",\"Y\")))","v":""},{"$f":"IF(OR(B463=\"N\",'Enrollment Form'!B470<>\"Subscriber\",'Enrollment Form'!C470=\"ROC\",'Enrollment Form'!O470<>\"Multiple of Salary\"),\"-\",IF(COUNTA('Enrollment Form'!T470:U470)<2,\"N\",\"Y\"))","v":"-"},{"$f":"IF(B463=\"N\",\"\",IF(OR('Enrollment Form'!C470=\"ROC\",'Enrollment Form'!B470<>\"Subscriber\",'Enrollment Form'!O470=\"Waive\",'Enrollment Form'!O470=\"\"),\"-\",IF('Enrollment Form'!P470=\"\",\"N\",\"Y\")))","v":""},{"$f":"IF($B463=\"N\",\"\",IF(AND('Enrollment Form'!$C470=\"ROC\",'Enrollment Form'!$DR470<>\"\"),\"Y\",IF(AND('Enrollment Form'!$C470=\"ROC\",'Enrollment Form'!$DR470=\"\"),\"N\",IF(AND('Enrollment Form'!$C470=\"Enroll\",'Enrollment Form'!$B470=\"Subscriber\",'Enrollment Form'!$CX470=\"No\",'Enrollment Form'!$DR470=\"\"),\"N\",IF(AND('Enrollment Form'!$C470=\"Enroll\",'Enrollment Form'!$B470=\"Subscriber\",'Enrollment Form'!$CX470=\"Yes\"),\"-\",\"Y\")))))","v":""},{"$f":"IF($B463=\"N\",\"\",IF(AND('Enrollment Form'!$C470=\"ROC\",'Enrollment Form'!$DS470<>\"\"),\"Y\",IF(AND('Enrollment Form'!$C470=\"ROC\",'Enrollment Form'!$DS470=\"\"),\"N\",IF(AND('Enrollment Form'!$C470=\"Enroll\",'Enrollment Form'!$B470=\"Subscriber\",'Enrollment Form'!$CX470=\"No\",'Enrollment Form'!$DS470=\"\"),\"N\",IF(AND('Enrollment Form'!$C470=\"Enroll\",'Enrollment Form'!$B470=\"Subscriber\",'Enrollment Form'!$CX470=\"Yes\"),\"-\",\"Y\")))))","v":""},{"$f":"IF('Enrollment Form'!AH470=\"\",\"\",IF(ISERROR(SEARCH(\".\",'Enrollment Form'!AH470,SEARCH(\"@\",'Enrollment Form'!AH470))),\"N\",\"Y\"))","v":""},{"$f":"IF(OR($B463=\"N\",'Enrollment Form'!$G470=\"\"),\"\",IF('Enrollment Form'!$B470<>\"Subscriber\",\"-\",IF(COUNTIF('Enrollment Form'!$AV470:$AW470,\"Yes\")=2,\"N\",\"Y\")))","v":""},{"$f":"IF(OR('Enrollment Form'!$CJ470=\"\",'Enrollment Form'!$CJ470=\"No\"),\"-\",IF(AND('Enrollment Form'!$CJ470=\"Yes\",'Enrollment Form'!$CK470=\"\"),\"N\",\"Y\"))","v":"-"},{"$f":"IF(OR('Enrollment Form'!$CL470=\"\",'Enrollment Form'!$CL470=\"No\"),\"-\",IF(AND('Enrollment Form'!$CL470=\"Yes\",'Enrollment Form'!$CM470=\"\"),\"N\",\"Y\"))","v":"-"},{"$f":"IF(OR('Enrollment Form'!$CN470=\"\",'Enrollment Form'!$CN470=\"No\"),\"-\",IF(AND('Enrollment Form'!$CN470=\"Yes\",'Enrollment Form'!$CO470=\"\"),\"N\",\"Y\"))","v":"-"},{"$f":"IF(OR('Enrollment Form'!$CN470=\"\",'Enrollment Form'!$CN470=\"No\"),\"-\",IF(AND('Enrollment Form'!$CN470=\"Yes\",'Enrollment Form'!$CP470=\"\"),\"N\",\"Y\"))","v":"-"},{"$f":"IF('Enrollment Form'!B470<>\"Subscriber\",\"-\",IF(AND('Enrollment Form'!B470=\"Subscriber\",'Enrollment Form'!C470=\"Enroll\",'Enrollment Form'!AA470=\"\"),\"N\",\"Y\"))","v":"-"},{"$f":"IF(OR('Enrollment Form'!B470=\"Subscriber\",'Enrollment Form'!B470=\"\"),\"-\",IF('Enrollment Form'!BP470=\"\",\"N\",\"Y\"))","v":"-"},{"$f":"IF('Enrollment Form'!B470<>\"Subscriber\",\"-\",IF(AND('Enrollment Form'!B470=\"Subscriber\",'Enrollment Form'!G470=\"\"),\"N\",\"Y\"))","v":"-"},{"$f":"IF('Enrollment Form'!A470=\"\",\"\",IF('Enrollment Form'!B470=\"Subscriber\",\"-\",IF(AND('Enrollment Form'!B470<>\"Subscriber\",'Enrollment Form'!G470='Enrollment Form'!H470),\"N\",\"Y\")))","v":""},0]
[471,{"$f":"IF('Enrollment Form'!$A471<>\"\",\"Y\",\"N\")","v":"N"},{"$f":"IF(AND('Enrollment Form'!$B471=\"\",'Enrollment Form'!$C471<>\"\"),\"N\",IF($B464=\"N\",\"\",\"Y\"))","v":""},{"$f":"IF(OR($B464=\"N\",'Enrollment Form'!G471=\"\"),\"\",IF('Enrollment Form'!$B471<>\"Subscriber\",\"\",IF('Enrollment Form'!$G471='Enrollment Form'!$H471,\"Y\",\"N\")))","v":""},{"$f":"IF($B464=\"N\",\"\",IF(AND(COUNTIFS('Enrollment Form'!$H$11:$H$1000,'Enrollment Form'!$H471,'Enrollment Form'!$B$11:$B$1000,'Enrollment Form'!$B471)>1,'Enrollment Form'!$H471<>\"\"),\"N\",\"Y\"))","v":""},{"$f":"IF($B464=\"N\",\"\",IF(LEN('Enrollment Form'!$Y471)=0,\"\",IF(LEN('Enrollment Form'!$Y471)<>5,\"N\",\"Y\")))","v":""},{"$f":"IF($B464=\"N\",\"\",IF(LEN('Enrollment Form'!$AD471=0),\"\",IF(LEN('Enrollment Form'!$AD471)<>5,\"N\",\"Y\")))","v":""},{"$f":"IF($B464=\"N\",\"\",IF(LEN('Enrollment Form'!$BS471=0),\"\",IF(LEN('Enrollment Form'!$BS471)<>5,\"N\",\"Y\")))","v":""},{"$f":"IF($B464=\"N\",\"\",IF(LEN('Enrollment Form'!$AE471)=0,\"\",IF(LEN('Enrollment Form'!$AE471)<>10,\"N\",\"Y\")))","v":""},{"$f":"IF($B464=\"N\",\"\",IF(LEN('Enrollment Form'!$AF471)=0,\"\",IF(LEN('Enrollment Form'!$AF471)<>10,\"N\",\"Y\")))","v":""},{"$f":"IF('Enrollment Form'!$O471<>\"Graded\",\"-\",IF(AND('Enrollment Form'!$O471=\"Graded\",'Enrollment Form'!$AR471<>\"\"),\"Y\",\"N\"))","v":"-"},{"$f":"IF($B464=\"N\",\"\",IF(OR('Enrollment Form'!$B471<>\"Subscriber\",'Enrollment Form'!$C471=\"ROC\"),\"-\",IF(AND('Enrollment Form'!$B471=\"Subscriber\",'Enrollment Form'!$C471=\"Enroll\",'Enrollment Form'!$AJ471<>\"\"),\"Y\",\"N\")))","v":""},{"$f":"IF($B464=\"N\",\"\",IF(OR('Enrollment Form'!$B471<>\"Subscriber\",'Enrollment Form'!$C471=\"ROC\"),\"-\",IF(AND('Enrollment Form'!$B471=\"Subscriber\",'Enrollment Form'!$C471=\"Enroll\",'Enrollment Form'!$AK471<>\"\"),\"Y\",\"N\")))","v":""},{"$f":"IF($B464=\"N\",\"\",IF(OR('Enrollment Form'!$B471<>\"Subscriber\",'Enrollment Form'!$C471=\"ROC\"),\"-\",IF(AND('Enrollment Form'!$B471=\"Subscriber\",'Enrollment Form'!$C471=\"Enroll\",'Enrollment Form'!$AL471<>\"\"),\"Y\",\"N\")))","v":""},{"$f":"IF($B464=\"N\",\"\",IF(OR('Enrollment Form'!$B471<>\"Subscriber\",'Enrollment Form'!$C471=\"ROC\"),\"-\",IF(AND('Enrollment Form'!$B471=\"Subscriber\",'Enrollment Form'!$C471=\"Enroll\",'Enrollment Form'!$AP471<>\"\"),\"Y\",\"N\")))","v":""},{"$f":"IF($B464=\"N\",\"\",IF(OR('Enrollment Form'!$B471<>\"Subscriber\",'Enrollment Form'!$C471=\"ROC\"),\"-\",IF(AND('Enrollment Form'!$B471=\"Subscriber\",'Enrollment Form'!$C471=\"Enroll\",'Enrollment Form'!$AQ471<>\"\"),\"Y\",\"N\")))","v":""},{"$f":"IF($B464=\"N\",\"\",IF(OR('Enrollment Form'!$B471<>\"Subscriber\",'Enrollment Form'!$C471=\"ROC\"),\"-\",IF(AND('Enrollment Form'!$B471=\"Subscriber\",'Enrollment Form'!$C471=\"Enroll\",'Enrollment Form'!$AS471<>\"\"),\"Y\",\"N\")))","v":""},{"$f":"IF($B464=\"N\",\"\",IF($Q464=\"-\",\"-\",IF(AND($Q464=\"Y\",'Enrollment Form'!$AS471=\"No\"),\"-\",IF(AND($Q464=\"Y\",'Enrollment Form'!$AS471=\"Yes\",'Enrollment Form'!$AT471<>\"\"),\"Y\",\"N\"))))","v":""},{"$f":"IF($B464=\"N\",\"\",IF(OR('Enrollment Form'!$B471<>\"Subscriber\",'Enrollment Form'!$C471=\"ROC\"),\"-\",IF(AND('Enrollment Form'!$B471=\"Subscriber\",'Enrollment Form'!$C471=\"Enroll\",'Enrollment Form'!$CV471<>\"\"),\"Y\",\"N\")))","v":""},{"$f":"IF($B464=\"N\",\"\",IF($S464=\"-\",\"-\",IF(AND($S464=\"Y\",'Enrollment Form'!$CV471=\"No\"),\"-\",IF(AND($S464=\"Y\",'Enrollment Form'!$CV471=\"Yes\",'Enrollment Form'!$CW471<>\"\"),\"Y\",\"N\"))))","v":""},{"$f":"IF(OR('Enrollment Form'!$AY471=\"Yes\",'Enrollment Form'!$AY471=\"\"),\"-\",IF(OR(AND('Enrollment Form'!$AY471=\"No\",ISERROR(FIND(\"HMO\",VLOOKUP('Enrollment Form'!G471,'Enrollment Form'!H$11:J$1000,3,FALSE),1))=FALSE,COUNTA('Enrollment Form'!$AZ471:$BC471)=4),AND('Enrollment Form'!$AY471=\"No\",ISERROR(FIND(\"HMO\",VLOOKUP('Enrollment Form'!G471,'Enrollment Form'!H$11:J$1000,3,FALSE),1))=FALSE,COUNTA('Enrollment Form'!$BT471:$BW471)=4)),\"Y\",\"N\"))","v":"-"},{"$f":"IF($B464=\"N\",\"\",IF('Enrollment Form'!$B471=\"Subscriber\",\"-\",IF(COUNTA('Enrollment Form'!$BL471,'Enrollment Form'!$BN471)=2,\"Y\",\"N\")))","v":""},{"$f":"IF($B464=\"N\",\"\",IF(OR('Enrollment Form'!$AX471=\"\",'Enrollment Form'!$AX471=\"No\"),\"-\",IF(AND('Enrollment Form'!$AX471=\"Yes\",COUNTA('Enrollment Form'!$CR471)=1),\"Y\",\"N\")))","v":""},{"$f":"IF(OR('Enrollment Form'!$CR471=\"\",'Enrollment Form'!$CR471=\"No\"),\"-\",IF(COUNTA('Enrollment Form'!$CT471:$CU471)=2,\"Y\",\"N\"))","v":"-"},{"$f":"IF($B464=\"N\",\"\",IF(COUNTIF('Enrollment Form'!$DG471:$DP471,\"Other\")=COUNTA('Enrollment Form'!$DK471,'Enrollment Form'!$DH471,'Enrollment Form'!$DN471,'Enrollment Form'!$DQ471),\"Y\",\"N\"))","v":""},{"$f":"IF($B464=\"N\",\"\",IF(OR('Enrollment Form'!B471<>\"Subscriber\",'Enrollment Form'!C471=\"ROC\",COUNTIF('Enrollment Form'!AV471:AW471,\"Yes\")>=1),\"-\",IF(AND('Enrollment Form'!C471=\"Enroll\",COUNTIF('Enrollment Form'!AV471:AW471,\"No\")=2,'Enrollment Form'!AX471=\"\"),\"N\",\"Y\")))","v":""},{"$f":"IF(OR(B464=\"N\",'Enrollment Form'!B471<>\"Subscriber\",'Enrollment Form'!C471=\"ROC\",'Enrollment Form'!O471<>\"Multiple of Salary\"),\"-\",IF(COUNTA('Enrollment Form'!T471:U471)<2,\"N\",\"Y\"))","v":"-"},{"$f":"IF(B464=\"N\",\"\",IF(OR('Enrollment Form'!C471=\"ROC\",'Enrollment Form'!B471<>\"Subscriber\",'Enrollment Form'!O471=\"Waive\",'Enrollment Form'!O471=\"\"),\"-\",IF('Enrollment Form'!P471=\"\",\"N\",\"Y\")))","v":""},{"$f":"IF($B464=\"N\",\"\",IF(AND('Enrollment Form'!$C471=\"ROC\",'Enrollment Form'!$DR471<>\"\"),\"Y\",IF(AND('Enrollment Form'!$C471=\"ROC\",'Enrollment Form'!$DR471=\"\"),\"N\",IF(AND('Enrollment Form'!$C471=\"Enroll\",'Enrollment Form'!$B471=\"Subscriber\",'Enrollment Form'!$CX471=\"No\",'Enrollment Form'!$DR471=\"\"),\"N\",IF(AND('Enrollment Form'!$C471=\"Enroll\",'Enrollment Form'!$B471=\"Subscriber\",'Enrollment Form'!$CX471=\"Yes\"),\"-\",\"Y\")))))","v":""},{"$f":"IF($B464=\"N\",\"\",IF(AND('Enrollment Form'!$C471=\"ROC\",'Enrollment Form'!$DS471<>\"\"),\"Y\",IF(AND('Enrollment Form'!$C471=\"ROC\",'Enrollment Form'!$DS471=\"\"),\"N\",IF(AND('Enrollment Form'!$C471=\"Enroll\",'Enrollment Form'!$B471=\"Subscriber\",'Enrollment Form'!$CX471=\"No\",'Enrollment Form'!$DS471=\"\"),\"N\",IF(AND('Enrollment Form'!$C471=\"Enroll\",'Enrollment Form'!$B471=\"Subscriber\",'Enrollment Form'!$CX471=\"Yes\"),\"-\",\"Y\")))))","v":""},{"$f":"IF('Enrollment Form'!AH471=\"\",\"\",IF(ISERROR(SEARCH(\".\",'Enrollment Form'!AH471,SEARCH(\"@\",'Enrollment Form'!AH471))),\"N\",\"Y\"))","v":""},{"$f":"IF(OR($B464=\"N\",'Enrollment Form'!$G471=\"\"),\"\",IF('Enrollment Form'!$B471<>\"Subscriber\",\"-\",IF(COUNTIF('Enrollment Form'!$AV471:$AW471,\"Yes\")=2,\"N\",\"Y\")))","v":""},{"$f":"IF(OR('Enrollment Form'!$CJ471=\"\",'Enrollment Form'!$CJ471=\"No\"),\"-\",IF(AND('Enrollment Form'!$CJ471=\"Yes\",'Enrollment Form'!$CK471=\"\"),\"N\",\"Y\"))","v":"-"},{"$f":"IF(OR('Enrollment Form'!$CL471=\"\",'Enrollment Form'!$CL471=\"No\"),\"-\",IF(AND('Enrollment Form'!$CL471=\"Yes\",'Enrollment Form'!$CM471=\"\"),\"N\",\"Y\"))","v":"-"},{"$f":"IF(OR('Enrollment Form'!$CN471=\"\",'Enrollment Form'!$CN471=\"No\"),\"-\",IF(AND('Enrollment Form'!$CN471=\"Yes\",'Enrollment Form'!$CO471=\"\"),\"N\",\"Y\"))","v":"-"},{"$f":"IF(OR('Enrollment Form'!$CN471=\"\",'Enrollment Form'!$CN471=\"No\"),\"-\",IF(AND('Enrollment Form'!$CN471=\"Yes\",'Enrollment Form'!$CP471=\"\"),\"N\",\"Y\"))","v":"-"},{"$f":"IF('Enrollment Form'!B471<>\"Subscriber\",\"-\",IF(AND('Enrollment Form'!B471=\"Subscriber\",'Enrollment Form'!C471=\"Enroll\",'Enrollment Form'!AA471=\"\"),\"N\",\"Y\"))","v":"-"},{"$f":"IF(OR('Enrollment Form'!B471=\"Subscriber\",'Enrollment Form'!B471=\"\"),\"-\",IF('Enrollment Form'!BP471=\"\",\"N\",\"Y\"))","v":"-"},{"$f":"IF('Enrollment Form'!B471<>\"Subscriber\",\"-\",IF(AND('Enrollment Form'!B471=\"Subscriber\",'Enrollment Form'!G471=\"\"),\"N\",\"Y\"))","v":"-"},{"$f":"IF('Enrollment Form'!A471=\"\",\"\",IF('Enrollment Form'!B471=\"Subscriber\",\"-\",IF(AND('Enrollment Form'!B471<>\"Subscriber\",'Enrollment Form'!G471='Enrollment Form'!H471),\"N\",\"Y\")))","v":""},0]
[472,{"$f":"IF('Enrollment Form'!$A472<>\"\",\"Y\",\"N\")","v":"N"},{"$f":"IF(AND('Enrollment Form'!$B472=\"\",'Enrollment Form'!$C472<>\"\"),\"N\",IF($B465=\"N\",\"\",\"Y\"))","v":""},{"$f":"IF(OR($B465=\"N\",'Enrollment Form'!G472=\"\"),\"\",IF('Enrollment Form'!$B472<>\"Subscriber\",\"\",IF('Enrollment Form'!$G472='Enrollment Form'!$H472,\"Y\",\"N\")))","v":""},{"$f":"IF($B465=\"N\",\"\",IF(AND(COUNTIFS('Enrollment Form'!$H$11:$H$1000,'Enrollment Form'!$H472,'Enrollment Form'!$B$11:$B$1000,'Enrollment Form'!$B472)>1,'Enrollment Form'!$H472<>\"\"),\"N\",\"Y\"))","v":""},{"$f":"IF($B465=\"N\",\"\",IF(LEN('Enrollment Form'!$Y472)=0,\"\",IF(LEN('Enrollment Form'!$Y472)<>5,\"N\",\"Y\")))","v":""},{"$f":"IF($B465=\"N\",\"\",IF(LEN('Enrollment Form'!$AD472=0),\"\",IF(LEN('Enrollment Form'!$AD472)<>5,\"N\",\"Y\")))","v":""},{"$f":"IF($B465=\"N\",\"\",IF(LEN('Enrollment Form'!$BS472=0),\"\",IF(LEN('Enrollment Form'!$BS472)<>5,\"N\",\"Y\")))","v":""},{"$f":"IF($B465=\"N\",\"\",IF(LEN('Enrollment Form'!$AE472)=0,\"\",IF(LEN('Enrollment Form'!$AE472)<>10,\"N\",\"Y\")))","v":""},{"$f":"IF($B465=\"N\",\"\",IF(LEN('Enrollment Form'!$AF472)=0,\"\",IF(LEN('Enrollment Form'!$AF472)<>10,\"N\",\"Y\")))","v":""},{"$f":"IF('Enrollment Form'!$O472<>\"Graded\",\"-\",IF(AND('Enrollment Form'!$O472=\"Graded\",'Enrollment Form'!$AR472<>\"\"),\"Y\",\"N\"))","v":"-"},{"$f":"IF($B465=\"N\",\"\",IF(OR('Enrollment Form'!$B472<>\"Subscriber\",'Enrollment Form'!$C472=\"ROC\"),\"-\",IF(AND('Enrollment Form'!$B472=\"Subscriber\",'Enrollment Form'!$C472=\"Enroll\",'Enrollment Form'!$AJ472<>\"\"),\"Y\",\"N\")))","v":""},{"$f":"IF($B465=\"N\",\"\",IF(OR('Enrollment Form'!$B472<>\"Subscriber\",'Enrollment Form'!$C472=\"ROC\"),\"-\",IF(AND('Enrollment Form'!$B472=\"Subscriber\",'Enrollment Form'!$C472=\"Enroll\",'Enrollment Form'!$AK472<>\"\"),\"Y\",\"N\")))","v":""},{"$f":"IF($B465=\"N\",\"\",IF(OR('Enrollment Form'!$B472<>\"Subscriber\",'Enrollment Form'!$C472=\"ROC\"),\"-\",IF(AND('Enrollment Form'!$B472=\"Subscriber\",'Enrollment Form'!$C472=\"Enroll\",'Enrollment Form'!$AL472<>\"\"),\"Y\",\"N\")))","v":""},{"$f":"IF($B465=\"N\",\"\",IF(OR('Enrollment Form'!$B472<>\"Subscriber\",'Enrollment Form'!$C472=\"ROC\"),\"-\",IF(AND('Enrollment Form'!$B472=\"Subscriber\",'Enrollment Form'!$C472=\"Enroll\",'Enrollment Form'!$AP472<>\"\"),\"Y\",\"N\")))","v":""},{"$f":"IF($B465=\"N\",\"\",IF(OR('Enrollment Form'!$B472<>\"Subscriber\",'Enrollment Form'!$C472=\"ROC\"),\"-\",IF(AND('Enrollment Form'!$B472=\"Subscriber\",'Enrollment Form'!$C472=\"Enroll\",'Enrollment Form'!$AQ472<>\"\"),\"Y\",\"N\")))","v":""},{"$f":"IF($B465=\"N\",\"\",IF(OR('Enrollment Form'!$B472<>\"Subscriber\",'Enrollment Form'!$C472=\"ROC\"),\"-\",IF(AND('Enrollment Form'!$B472=\"Subscriber\",'Enrollment Form'!$C472=\"Enroll\",'Enrollment Form'!$AS472<>\"\"),\"Y\",\"N\")))","v":""},{"$f":"IF($B465=\"N\",\"\",IF($Q465=\"-\",\"-\",IF(AND($Q465=\"Y\",'Enrollment Form'!$AS472=\"No\"),\"-\",IF(AND($Q465=\"Y\",'Enrollment Form'!$AS472=\"Yes\",'Enrollment Form'!$AT472<>\"\"),\"Y\",\"N\"))))","v":""},{"$f":"IF($B465=\"N\",\"\",IF(OR('Enrollment Form'!$B472<>\"Subscriber\",'Enrollment Form'!$C472=\"ROC\"),\"-\",IF(AND('Enrollment Form'!$B472=\"Subscriber\",'Enrollment Form'!$C472=\"Enroll\",'Enrollment Form'!$CV472<>\"\"),\"Y\",\"N\")))","v":""},{"$f":"IF($B465=\"N\",\"\",IF($S465=\"-\",\"-\",IF(AND($S465=\"Y\",'Enrollment Form'!$CV472=\"No\"),\"-\",IF(AND($S465=\"Y\",'Enrollment Form'!$CV472=\"Yes\",'Enrollment Form'!$CW472<>\"\"),\"Y\",\"N\"))))","v":""},{"$f":"IF(OR('Enrollment Form'!$AY472=\"Yes\",'Enrollment Form'!$AY472=\"\"),\"-\",IF(OR(AND('Enrollment Form'!$AY472=\"No\",ISERROR(FIND(\"HMO\",VLOOKUP('Enrollment Form'!G472,'Enrollment Form'!H$11:J$1000,3,FALSE),1))=FALSE,COUNTA('Enrollment Form'!$AZ472:$BC472)=4),AND('Enrollment Form'!$AY472=\"No\",ISERROR(FIND(\"HMO\",VLOOKUP('Enrollment Form'!G472,'Enrollment Form'!H$11:J$1000,3,FALSE),1))=FALSE,COUNTA('Enrollment Form'!$BT472:$BW472)=4)),\"Y\",\"N\"))","v":"-"},{"$f":"IF($B465=\"N\",\"\",IF('Enrollment Form'!$B472=\"Subscriber\",\"-\",IF(COUNTA('Enrollment Form'!$BL472,'Enrollment Form'!$BN472)=2,\"Y\",\"N\")))","v":""},{"$f":"IF($B465=\"N\",\"\",IF(OR('Enrollment Form'!$AX472=\"\",'Enrollment Form'!$AX472=\"No\"),\"-\",IF(AND('Enrollment Form'!$AX472=\"Yes\",COUNTA('Enrollment Form'!$CR472)=1),\"Y\",\"N\")))","v":""},{"$f":"IF(OR('Enrollment Form'!$CR472=\"\",'Enrollment Form'!$CR472=\"No\"),\"-\",IF(COUNTA('Enrollment Form'!$CT472:$CU472)=2,\"Y\",\"N\"))","v":"-"},{"$f":"IF($B465=\"N\",\"\",IF(COUNTIF('Enrollment Form'!$DG472:$DP472,\"Other\")=COUNTA('Enrollment Form'!$DK472,'Enrollment Form'!$DH472,'Enrollment Form'!$DN472,'Enrollment Form'!$DQ472),\"Y\",\"N\"))","v":""},{"$f":"IF($B465=\"N\",\"\",IF(OR('Enrollment Form'!B472<>\"Subscriber\",'Enrollment Form'!C472=\"ROC\",COUNTIF('Enrollment Form'!AV472:AW472,\"Yes\")>=1),\"-\",IF(AND('Enrollment Form'!C472=\"Enroll\",COUNTIF('Enrollment Form'!AV472:AW472,\"No\")=2,'Enrollment Form'!AX472=\"\"),\"N\",\"Y\")))","v":""},{"$f":"IF(OR(B465=\"N\",'Enrollment Form'!B472<>\"Subscriber\",'Enrollment Form'!C472=\"ROC\",'Enrollment Form'!O472<>\"Multiple of Salary\"),\"-\",IF(COUNTA('Enrollment Form'!T472:U472)<2,\"N\",\"Y\"))","v":"-"},{"$f":"IF(B465=\"N\",\"\",IF(OR('Enrollment Form'!C472=\"ROC\",'Enrollment Form'!B472<>\"Subscriber\",'Enrollment Form'!O472=\"Waive\",'Enrollment Form'!O472=\"\"),\"-\",IF('Enrollment Form'!P472=\"\",\"N\",\"Y\")))","v":""},{"$f":"IF($B465=\"N\",\"\",IF(AND('Enrollment Form'!$C472=\"ROC\",'Enrollment Form'!$DR472<>\"\"),\"Y\",IF(AND('Enrollment Form'!$C472=\"ROC\",'Enrollment Form'!$DR472=\"\"),\"N\",IF(AND('Enrollment Form'!$C472=\"Enroll\",'Enrollment Form'!$B472=\"Subscriber\",'Enrollment Form'!$CX472=\"No\",'Enrollment Form'!$DR472=\"\"),\"N\",IF(AND('Enrollment Form'!$C472=\"Enroll\",'Enrollment Form'!$B472=\"Subscriber\",'Enrollment Form'!$CX472=\"Yes\"),\"-\",\"Y\")))))","v":""},{"$f":"IF($B465=\"N\",\"\",IF(AND('Enrollment Form'!$C472=\"ROC\",'Enrollment Form'!$DS472<>\"\"),\"Y\",IF(AND('Enrollment Form'!$C472=\"ROC\",'Enrollment Form'!$DS472=\"\"),\"N\",IF(AND('Enrollment Form'!$C472=\"Enroll\",'Enrollment Form'!$B472=\"Subscriber\",'Enrollment Form'!$CX472=\"No\",'Enrollment Form'!$DS472=\"\"),\"N\",IF(AND('Enrollment Form'!$C472=\"Enroll\",'Enrollment Form'!$B472=\"Subscriber\",'Enrollment Form'!$CX472=\"Yes\"),\"-\",\"Y\")))))","v":""},{"$f":"IF('Enrollment Form'!AH472=\"\",\"\",IF(ISERROR(SEARCH(\".\",'Enrollment Form'!AH472,SEARCH(\"@\",'Enrollment Form'!AH472))),\"N\",\"Y\"))","v":""},{"$f":"IF(OR($B465=\"N\",'Enrollment Form'!$G472=\"\"),\"\",IF('Enrollment Form'!$B472<>\"Subscriber\",\"-\",IF(COUNTIF('Enrollment Form'!$AV472:$AW472,\"Yes\")=2,\"N\",\"Y\")))","v":""},{"$f":"IF(OR('Enrollment Form'!$CJ472=\"\",'Enrollment Form'!$CJ472=\"No\"),\"-\",IF(AND('Enrollment Form'!$CJ472=\"Yes\",'Enrollment Form'!$CK472=\"\"),\"N\",\"Y\"))","v":"-"},{"$f":"IF(OR('Enrollment Form'!$CL472=\"\",'Enrollment Form'!$CL472=\"No\"),\"-\",IF(AND('Enrollment Form'!$CL472=\"Yes\",'Enrollment Form'!$CM472=\"\"),\"N\",\"Y\"))","v":"-"},{"$f":"IF(OR('Enrollment Form'!$CN472=\"\",'Enrollment Form'!$CN472=\"No\"),\"-\",IF(AND('Enrollment Form'!$CN472=\"Yes\",'Enrollment Form'!$CO472=\"\"),\"N\",\"Y\"))","v":"-"},{"$f":"IF(OR('Enrollment Form'!$CN472=\"\",'Enrollment Form'!$CN472=\"No\"),\"-\",IF(AND('Enrollment Form'!$CN472=\"Yes\",'Enrollment Form'!$CP472=\"\"),\"N\",\"Y\"))","v":"-"},{"$f":"IF('Enrollment Form'!B472<>\"Subscriber\",\"-\",IF(AND('Enrollment Form'!B472=\"Subscriber\",'Enrollment Form'!C472=\"Enroll\",'Enrollment Form'!AA472=\"\"),\"N\",\"Y\"))","v":"-"},{"$f":"IF(OR('Enrollment Form'!B472=\"Subscriber\",'Enrollment Form'!B472=\"\"),\"-\",IF('Enrollment Form'!BP472=\"\",\"N\",\"Y\"))","v":"-"},{"$f":"IF('Enrollment Form'!B472<>\"Subscriber\",\"-\",IF(AND('Enrollment Form'!B472=\"Subscriber\",'Enrollment Form'!G472=\"\"),\"N\",\"Y\"))","v":"-"},{"$f":"IF('Enrollment Form'!A472=\"\",\"\",IF('Enrollment Form'!B472=\"Subscriber\",\"-\",IF(AND('Enrollment Form'!B472<>\"Subscriber\",'Enrollment Form'!G472='Enrollment Form'!H472),\"N\",\"Y\")))","v":""},0]
[473,{"$f":"IF('Enrollment Form'!$A473<>\"\",\"Y\",\"N\")","v":"N"},{"$f":"IF(AND('Enrollment Form'!$B473=\"\",'Enrollment Form'!$C473<>\"\"),\"N\",IF($B466=\"N\",\"\",\"Y\"))","v":""},{"$f":"IF(OR($B466=\"N\",'Enrollment Form'!G473=\"\"),\"\",IF('Enrollment Form'!$B473<>\"Subscriber\",\"\",IF('Enrollment Form'!$G473='Enrollment Form'!$H473,\"Y\",\"N\")))","v":""},{"$f":"IF($B466=\"N\",\"\",IF(AND(COUNTIFS('Enrollment Form'!$H$11:$H$1000,'Enrollment Form'!$H473,'Enrollment Form'!$B$11:$B$1000,'Enrollment Form'!$B473)>1,'Enrollment Form'!$H473<>\"\"),\"N\",\"Y\"))","v":""},{"$f":"IF($B466=\"N\",\"\",IF(LEN('Enrollment Form'!$Y473)=0,\"\",IF(LEN('Enrollment Form'!$Y473)<>5,\"N\",\"Y\")))","v":""},{"$f":"IF($B466=\"N\",\"\",IF(LEN('Enrollment Form'!$AD473=0),\"\",IF(LEN('Enrollment Form'!$AD473)<>5,\"N\",\"Y\")))","v":""},{"$f":"IF($B466=\"N\",\"\",IF(LEN('Enrollment Form'!$BS473=0),\"\",IF(LEN('Enrollment Form'!$BS473)<>5,\"N\",\"Y\")))","v":""},{"$f":"IF($B466=\"N\",\"\",IF(LEN('Enrollment Form'!$AE473)=0,\"\",IF(LEN('Enrollment Form'!$AE473)<>10,\"N\",\"Y\")))","v":""},{"$f":"IF($B466=\"N\",\"\",IF(LEN('Enrollment Form'!$AF473)=0,\"\",IF(LEN('Enrollment Form'!$AF473)<>10,\"N\",\"Y\")))","v":""},{"$f":"IF('Enrollment Form'!$O473<>\"Graded\",\"-\",IF(AND('Enrollment Form'!$O473=\"Graded\",'Enrollment Form'!$AR473<>\"\"),\"Y\",\"N\"))","v":"-"},{"$f":"IF($B466=\"N\",\"\",IF(OR('Enrollment Form'!$B473<>\"Subscriber\",'Enrollment Form'!$C473=\"ROC\"),\"-\",IF(AND('Enrollment Form'!$B473=\"Subscriber\",'Enrollment Form'!$C473=\"Enroll\",'Enrollment Form'!$AJ473<>\"\"),\"Y\",\"N\")))","v":""},{"$f":"IF($B466=\"N\",\"\",IF(OR('Enrollment Form'!$B473<>\"Subscriber\",'Enrollment Form'!$C473=\"ROC\"),\"-\",IF(AND('Enrollment Form'!$B473=\"Subscriber\",'Enrollment Form'!$C473=\"Enroll\",'Enrollment Form'!$AK473<>\"\"),\"Y\",\"N\")))","v":""},{"$f":"IF($B466=\"N\",\"\",IF(OR('Enrollment Form'!$B473<>\"Subscriber\",'Enrollment Form'!$C473=\"ROC\"),\"-\",IF(AND('Enrollment Form'!$B473=\"Subscriber\",'Enrollment Form'!$C473=\"Enroll\",'Enrollment Form'!$AL473<>\"\"),\"Y\",\"N\")))","v":""},{"$f":"IF($B466=\"N\",\"\",IF(OR('Enrollment Form'!$B473<>\"Subscriber\",'Enrollment Form'!$C473=\"ROC\"),\"-\",IF(AND('Enrollment Form'!$B473=\"Subscriber\",'Enrollment Form'!$C473=\"Enroll\",'Enrollment Form'!$AP473<>\"\"),\"Y\",\"N\")))","v":""},{"$f":"IF($B466=\"N\",\"\",IF(OR('Enrollment Form'!$B473<>\"Subscriber\",'Enrollment Form'!$C473=\"ROC\"),\"-\",IF(AND('Enrollment Form'!$B473=\"Subscriber\",'Enrollment Form'!$C473=\"Enroll\",'Enrollment Form'!$AQ473<>\"\"),\"Y\",\"N\")))","v":""},{"$f":"IF($B466=\"N\",\"\",IF(OR('Enrollment Form'!$B473<>\"Subscriber\",'Enrollment Form'!$C473=\"ROC\"),\"-\",IF(AND('Enrollment Form'!$B473=\"Subscriber\",'Enrollment Form'!$C473=\"Enroll\",'Enrollment Form'!$AS473<>\"\"),\"Y\",\"N\")))","v":""},{"$f":"IF($B466=\"N\",\"\",IF($Q466=\"-\",\"-\",IF(AND($Q466=\"Y\",'Enrollment Form'!$AS473=\"No\"),\"-\",IF(AND($Q466=\"Y\",'Enrollment Form'!$AS473=\"Yes\",'Enrollment Form'!$AT473<>\"\"),\"Y\",\"N\"))))","v":""},{"$f":"IF($B466=\"N\",\"\",IF(OR('Enrollment Form'!$B473<>\"Subscriber\",'Enrollment Form'!$C473=\"ROC\"),\"-\",IF(AND('Enrollment Form'!$B473=\"Subscriber\",'Enrollment Form'!$C473=\"Enroll\",'Enrollment Form'!$CV473<>\"\"),\"Y\",\"N\")))","v":""},{"$f":"IF($B466=\"N\",\"\",IF($S466=\"-\",\"-\",IF(AND($S466=\"Y\",'Enrollment Form'!$CV473=\"No\"),\"-\",IF(AND($S466=\"Y\",'Enrollment Form'!$CV473=\"Yes\",'Enrollment Form'!$CW473<>\"\"),\"Y\",\"N\"))))","v":""},{"$f":"IF(OR('Enrollment Form'!$AY473=\"Yes\",'Enrollment Form'!$AY473=\"\"),\"-\",IF(OR(AND('Enrollment Form'!$AY473=\"No\",ISERROR(FIND(\"HMO\",VLOOKUP('Enrollment Form'!G473,'Enrollment Form'!H$11:J$1000,3,FALSE),1))=FALSE,COUNTA('Enrollment Form'!$AZ473:$BC473)=4),AND('Enrollment Form'!$AY473=\"No\",ISERROR(FIND(\"HMO\",VLOOKUP('Enrollment Form'!G473,'Enrollment Form'!H$11:J$1000,3,FALSE),1))=FALSE,COUNTA('Enrollment Form'!$BT473:$BW473)=4)),\"Y\",\"N\"))","v":"-"},{"$f":"IF($B466=\"N\",\"\",IF('Enrollment Form'!$B473=\"Subscriber\",\"-\",IF(COUNTA('Enrollment Form'!$BL473,'Enrollment Form'!$BN473)=2,\"Y\",\"N\")))","v":""},{"$f":"IF($B466=\"N\",\"\",IF(OR('Enrollment Form'!$AX473=\"\",'Enrollment Form'!$AX473=\"No\"),\"-\",IF(AND('Enrollment Form'!$AX473=\"Yes\",COUNTA('Enrollment Form'!$CR473)=1),\"Y\",\"N\")))","v":""},{"$f":"IF(OR('Enrollment Form'!$CR473=\"\",'Enrollment Form'!$CR473=\"No\"),\"-\",IF(COUNTA('Enrollment Form'!$CT473:$CU473)=2,\"Y\",\"N\"))","v":"-"},{"$f":"IF($B466=\"N\",\"\",IF(COUNTIF('Enrollment Form'!$DG473:$DP473,\"Other\")=COUNTA('Enrollment Form'!$DK473,'Enrollment Form'!$DH473,'Enrollment Form'!$DN473,'Enrollment Form'!$DQ473),\"Y\",\"N\"))","v":""},{"$f":"IF($B466=\"N\",\"\",IF(OR('Enrollment Form'!B473<>\"Subscriber\",'Enrollment Form'!C473=\"ROC\",COUNTIF('Enrollment Form'!AV473:AW473,\"Yes\")>=1),\"-\",IF(AND('Enrollment Form'!C473=\"Enroll\",COUNTIF('Enrollment Form'!AV473:AW473,\"No\")=2,'Enrollment Form'!AX473=\"\"),\"N\",\"Y\")))","v":""},{"$f":"IF(OR(B466=\"N\",'Enrollment Form'!B473<>\"Subscriber\",'Enrollment Form'!C473=\"ROC\",'Enrollment Form'!O473<>\"Multiple of Salary\"),\"-\",IF(COUNTA('Enrollment Form'!T473:U473)<2,\"N\",\"Y\"))","v":"-"},{"$f":"IF(B466=\"N\",\"\",IF(OR('Enrollment Form'!C473=\"ROC\",'Enrollment Form'!B473<>\"Subscriber\",'Enrollment Form'!O473=\"Waive\",'Enrollment Form'!O473=\"\"),\"-\",IF('Enrollment Form'!P473=\"\",\"N\",\"Y\")))","v":""},{"$f":"IF($B466=\"N\",\"\",IF(AND('Enrollment Form'!$C473=\"ROC\",'Enrollment Form'!$DR473<>\"\"),\"Y\",IF(AND('Enrollment Form'!$C473=\"ROC\",'Enrollment Form'!$DR473=\"\"),\"N\",IF(AND('Enrollment Form'!$C473=\"Enroll\",'Enrollment Form'!$B473=\"Subscriber\",'Enrollment Form'!$CX473=\"No\",'Enrollment Form'!$DR473=\"\"),\"N\",IF(AND('Enrollment Form'!$C473=\"Enroll\",'Enrollment Form'!$B473=\"Subscriber\",'Enrollment Form'!$CX473=\"Yes\"),\"-\",\"Y\")))))","v":""},{"$f":"IF($B466=\"N\",\"\",IF(AND('Enrollment Form'!$C473=\"ROC\",'Enrollment Form'!$DS473<>\"\"),\"Y\",IF(AND('Enrollment Form'!$C473=\"ROC\",'Enrollment Form'!$DS473=\"\"),\"N\",IF(AND('Enrollment Form'!$C473=\"Enroll\",'Enrollment Form'!$B473=\"Subscriber\",'Enrollment Form'!$CX473=\"No\",'Enrollment Form'!$DS473=\"\"),\"N\",IF(AND('Enrollment Form'!$C473=\"Enroll\",'Enrollment Form'!$B473=\"Subscriber\",'Enrollment Form'!$CX473=\"Yes\"),\"-\",\"Y\")))))","v":""},{"$f":"IF('Enrollment Form'!AH473=\"\",\"\",IF(ISERROR(SEARCH(\".\",'Enrollment Form'!AH473,SEARCH(\"@\",'Enrollment Form'!AH473))),\"N\",\"Y\"))","v":""},{"$f":"IF(OR($B466=\"N\",'Enrollment Form'!$G473=\"\"),\"\",IF('Enrollment Form'!$B473<>\"Subscriber\",\"-\",IF(COUNTIF('Enrollment Form'!$AV473:$AW473,\"Yes\")=2,\"N\",\"Y\")))","v":""},{"$f":"IF(OR('Enrollment Form'!$CJ473=\"\",'Enrollment Form'!$CJ473=\"No\"),\"-\",IF(AND('Enrollment Form'!$CJ473=\"Yes\",'Enrollment Form'!$CK473=\"\"),\"N\",\"Y\"))","v":"-"},{"$f":"IF(OR('Enrollment Form'!$CL473=\"\",'Enrollment Form'!$CL473=\"No\"),\"-\",IF(AND('Enrollment Form'!$CL473=\"Yes\",'Enrollment Form'!$CM473=\"\"),\"N\",\"Y\"))","v":"-"},{"$f":"IF(OR('Enrollment Form'!$CN473=\"\",'Enrollment Form'!$CN473=\"No\"),\"-\",IF(AND('Enrollment Form'!$CN473=\"Yes\",'Enrollment Form'!$CO473=\"\"),\"N\",\"Y\"))","v":"-"},{"$f":"IF(OR('Enrollment Form'!$CN473=\"\",'Enrollment Form'!$CN473=\"No\"),\"-\",IF(AND('Enrollment Form'!$CN473=\"Yes\",'Enrollment Form'!$CP473=\"\"),\"N\",\"Y\"))","v":"-"},{"$f":"IF('Enrollment Form'!B473<>\"Subscriber\",\"-\",IF(AND('Enrollment Form'!B473=\"Subscriber\",'Enrollment Form'!C473=\"Enroll\",'Enrollment Form'!AA473=\"\"),\"N\",\"Y\"))","v":"-"},{"$f":"IF(OR('Enrollment Form'!B473=\"Subscriber\",'Enrollment Form'!B473=\"\"),\"-\",IF('Enrollment Form'!BP473=\"\",\"N\",\"Y\"))","v":"-"},{"$f":"IF('Enrollment Form'!B473<>\"Subscriber\",\"-\",IF(AND('Enrollment Form'!B473=\"Subscriber\",'Enrollment Form'!G473=\"\"),\"N\",\"Y\"))","v":"-"},{"$f":"IF('Enrollment Form'!A473=\"\",\"\",IF('Enrollment Form'!B473=\"Subscriber\",\"-\",IF(AND('Enrollment Form'!B473<>\"Subscriber\",'Enrollment Form'!G473='Enrollment Form'!H473),\"N\",\"Y\")))","v":""},0]
[474,{"$f":"IF('Enrollment Form'!$A474<>\"\",\"Y\",\"N\")","v":"N"},{"$f":"IF(AND('Enrollment Form'!$B474=\"\",'Enrollment Form'!$C474<>\"\"),\"N\",IF($B467=\"N\",\"\",\"Y\"))","v":""},{"$f":"IF(OR($B467=\"N\",'Enrollment Form'!G474=\"\"),\"\",IF('Enrollment Form'!$B474<>\"Subscriber\",\"\",IF('Enrollment Form'!$G474='Enrollment Form'!$H474,\"Y\",\"N\")))","v":""},{"$f":"IF($B467=\"N\",\"\",IF(AND(COUNTIFS('Enrollment Form'!$H$11:$H$1000,'Enrollment Form'!$H474,'Enrollment Form'!$B$11:$B$1000,'Enrollment Form'!$B474)>1,'Enrollment Form'!$H474<>\"\"),\"N\",\"Y\"))","v":""},{"$f":"IF($B467=\"N\",\"\",IF(LEN('Enrollment Form'!$Y474)=0,\"\",IF(LEN('Enrollment Form'!$Y474)<>5,\"N\",\"Y\")))","v":""},{"$f":"IF($B467=\"N\",\"\",IF(LEN('Enrollment Form'!$AD474=0),\"\",IF(LEN('Enrollment Form'!$AD474)<>5,\"N\",\"Y\")))","v":""},{"$f":"IF($B467=\"N\",\"\",IF(LEN('Enrollment Form'!$BS474=0),\"\",IF(LEN('Enrollment Form'!$BS474)<>5,\"N\",\"Y\")))","v":""},{"$f":"IF($B467=\"N\",\"\",IF(LEN('Enrollment Form'!$AE474)=0,\"\",IF(LEN('Enrollment Form'!$AE474)<>10,\"N\",\"Y\")))","v":""},{"$f":"IF($B467=\"N\",\"\",IF(LEN('Enrollment Form'!$AF474)=0,\"\",IF(LEN('Enrollment Form'!$AF474)<>10,\"N\",\"Y\")))","v":""},{"$f":"IF('Enrollment Form'!$O474<>\"Graded\",\"-\",IF(AND('Enrollment Form'!$O474=\"Graded\",'Enrollment Form'!$AR474<>\"\"),\"Y\",\"N\"))","v":"-"},{"$f":"IF($B467=\"N\",\"\",IF(OR('Enrollment Form'!$B474<>\"Subscriber\",'Enrollment Form'!$C474=\"ROC\"),\"-\",IF(AND('Enrollment Form'!$B474=\"Subscriber\",'Enrollment Form'!$C474=\"Enroll\",'Enrollment Form'!$AJ474<>\"\"),\"Y\",\"N\")))","v":""},{"$f":"IF($B467=\"N\",\"\",IF(OR('Enrollment Form'!$B474<>\"Subscriber\",'Enrollment Form'!$C474=\"ROC\"),\"-\",IF(AND('Enrollment Form'!$B474=\"Subscriber\",'Enrollment Form'!$C474=\"Enroll\",'Enrollment Form'!$AK474<>\"\"),\"Y\",\"N\")))","v":""},{"$f":"IF($B467=\"N\",\"\",IF(OR('Enrollment Form'!$B474<>\"Subscriber\",'Enrollment Form'!$C474=\"ROC\"),\"-\",IF(AND('Enrollment Form'!$B474=\"Subscriber\",'Enrollment Form'!$C474=\"Enroll\",'Enrollment Form'!$AL474<>\"\"),\"Y\",\"N\")))","v":""},{"$f":"IF($B467=\"N\",\"\",IF(OR('Enrollment Form'!$B474<>\"Subscriber\",'Enrollment Form'!$C474=\"ROC\"),\"-\",IF(AND('Enrollment Form'!$B474=\"Subscriber\",'Enrollment Form'!$C474=\"Enroll\",'Enrollment Form'!$AP474<>\"\"),\"Y\",\"N\")))","v":""},{"$f":"IF($B467=\"N\",\"\",IF(OR('Enrollment Form'!$B474<>\"Subscriber\",'Enrollment Form'!$C474=\"ROC\"),\"-\",IF(AND('Enrollment Form'!$B474=\"Subscriber\",'Enrollment Form'!$C474=\"Enroll\",'Enrollment Form'!$AQ474<>\"\"),\"Y\",\"N\")))","v":""},{"$f":"IF($B467=\"N\",\"\",IF(OR('Enrollment Form'!$B474<>\"Subscriber\",'Enrollment Form'!$C474=\"ROC\"),\"-\",IF(AND('Enrollment Form'!$B474=\"Subscriber\",'Enrollment Form'!$C474=\"Enroll\",'Enrollment Form'!$AS474<>\"\"),\"Y\",\"N\")))","v":""},{"$f":"IF($B467=\"N\",\"\",IF($Q467=\"-\",\"-\",IF(AND($Q467=\"Y\",'Enrollment Form'!$AS474=\"No\"),\"-\",IF(AND($Q467=\"Y\",'Enrollment Form'!$AS474=\"Yes\",'Enrollment Form'!$AT474<>\"\"),\"Y\",\"N\"))))","v":""},{"$f":"IF($B467=\"N\",\"\",IF(OR('Enrollment Form'!$B474<>\"Subscriber\",'Enrollment Form'!$C474=\"ROC\"),\"-\",IF(AND('Enrollment Form'!$B474=\"Subscriber\",'Enrollment Form'!$C474=\"Enroll\",'Enrollment Form'!$CV474<>\"\"),\"Y\",\"N\")))","v":""},{"$f":"IF($B467=\"N\",\"\",IF($S467=\"-\",\"-\",IF(AND($S467=\"Y\",'Enrollment Form'!$CV474=\"No\"),\"-\",IF(AND($S467=\"Y\",'Enrollment Form'!$CV474=\"Yes\",'Enrollment Form'!$CW474<>\"\"),\"Y\",\"N\"))))","v":""},{"$f":"IF(OR('Enrollment Form'!$AY474=\"Yes\",'Enrollment Form'!$AY474=\"\"),\"-\",IF(OR(AND('Enrollment Form'!$AY474=\"No\",ISERROR(FIND(\"HMO\",VLOOKUP('Enrollment Form'!G474,'Enrollment Form'!H$11:J$1000,3,FALSE),1))=FALSE,COUNTA('Enrollment Form'!$AZ474:$BC474)=4),AND('Enrollment Form'!$AY474=\"No\",ISERROR(FIND(\"HMO\",VLOOKUP('Enrollment Form'!G474,'Enrollment Form'!H$11:J$1000,3,FALSE),1))=FALSE,COUNTA('Enrollment Form'!$BT474:$BW474)=4)),\"Y\",\"N\"))","v":"-"},{"$f":"IF($B467=\"N\",\"\",IF('Enrollment Form'!$B474=\"Subscriber\",\"-\",IF(COUNTA('Enrollment Form'!$BL474,'Enrollment Form'!$BN474)=2,\"Y\",\"N\")))","v":""},{"$f":"IF($B467=\"N\",\"\",IF(OR('Enrollment Form'!$AX474=\"\",'Enrollment Form'!$AX474=\"No\"),\"-\",IF(AND('Enrollment Form'!$AX474=\"Yes\",COUNTA('Enrollment Form'!$CR474)=1),\"Y\",\"N\")))","v":""},{"$f":"IF(OR('Enrollment Form'!$CR474=\"\",'Enrollment Form'!$CR474=\"No\"),\"-\",IF(COUNTA('Enrollment Form'!$CT474:$CU474)=2,\"Y\",\"N\"))","v":"-"},{"$f":"IF($B467=\"N\",\"\",IF(COUNTIF('Enrollment Form'!$DG474:$DP474,\"Other\")=COUNTA('Enrollment Form'!$DK474,'Enrollment Form'!$DH474,'Enrollment Form'!$DN474,'Enrollment Form'!$DQ474),\"Y\",\"N\"))","v":""},{"$f":"IF($B467=\"N\",\"\",IF(OR('Enrollment Form'!B474<>\"Subscriber\",'Enrollment Form'!C474=\"ROC\",COUNTIF('Enrollment Form'!AV474:AW474,\"Yes\")>=1),\"-\",IF(AND('Enrollment Form'!C474=\"Enroll\",COUNTIF('Enrollment Form'!AV474:AW474,\"No\")=2,'Enrollment Form'!AX474=\"\"),\"N\",\"Y\")))","v":""},{"$f":"IF(OR(B467=\"N\",'Enrollment Form'!B474<>\"Subscriber\",'Enrollment Form'!C474=\"ROC\",'Enrollment Form'!O474<>\"Multiple of Salary\"),\"-\",IF(COUNTA('Enrollment Form'!T474:U474)<2,\"N\",\"Y\"))","v":"-"},{"$f":"IF(B467=\"N\",\"\",IF(OR('Enrollment Form'!C474=\"ROC\",'Enrollment Form'!B474<>\"Subscriber\",'Enrollment Form'!O474=\"Waive\",'Enrollment Form'!O474=\"\"),\"-\",IF('Enrollment Form'!P474=\"\",\"N\",\"Y\")))","v":""},{"$f":"IF($B467=\"N\",\"\",IF(AND('Enrollment Form'!$C474=\"ROC\",'Enrollment Form'!$DR474<>\"\"),\"Y\",IF(AND('Enrollment Form'!$C474=\"ROC\",'Enrollment Form'!$DR474=\"\"),\"N\",IF(AND('Enrollment Form'!$C474=\"Enroll\",'Enrollment Form'!$B474=\"Subscriber\",'Enrollment Form'!$CX474=\"No\",'Enrollment Form'!$DR474=\"\"),\"N\",IF(AND('Enrollment Form'!$C474=\"Enroll\",'Enrollment Form'!$B474=\"Subscriber\",'Enrollment Form'!$CX474=\"Yes\"),\"-\",\"Y\")))))","v":""},{"$f":"IF($B467=\"N\",\"\",IF(AND('Enrollment Form'!$C474=\"ROC\",'Enrollment Form'!$DS474<>\"\"),\"Y\",IF(AND('Enrollment Form'!$C474=\"ROC\",'Enrollment Form'!$DS474=\"\"),\"N\",IF(AND('Enrollment Form'!$C474=\"Enroll\",'Enrollment Form'!$B474=\"Subscriber\",'Enrollment Form'!$CX474=\"No\",'Enrollment Form'!$DS474=\"\"),\"N\",IF(AND('Enrollment Form'!$C474=\"Enroll\",'Enrollment Form'!$B474=\"Subscriber\",'Enrollment Form'!$CX474=\"Yes\"),\"-\",\"Y\")))))","v":""},{"$f":"IF('Enrollment Form'!AH474=\"\",\"\",IF(ISERROR(SEARCH(\".\",'Enrollment Form'!AH474,SEARCH(\"@\",'Enrollment Form'!AH474))),\"N\",\"Y\"))","v":""},{"$f":"IF(OR($B467=\"N\",'Enrollment Form'!$G474=\"\"),\"\",IF('Enrollment Form'!$B474<>\"Subscriber\",\"-\",IF(COUNTIF('Enrollment Form'!$AV474:$AW474,\"Yes\")=2,\"N\",\"Y\")))","v":""},{"$f":"IF(OR('Enrollment Form'!$CJ474=\"\",'Enrollment Form'!$CJ474=\"No\"),\"-\",IF(AND('Enrollment Form'!$CJ474=\"Yes\",'Enrollment Form'!$CK474=\"\"),\"N\",\"Y\"))","v":"-"},{"$f":"IF(OR('Enrollment Form'!$CL474=\"\",'Enrollment Form'!$CL474=\"No\"),\"-\",IF(AND('Enrollment Form'!$CL474=\"Yes\",'Enrollment Form'!$CM474=\"\"),\"N\",\"Y\"))","v":"-"},{"$f":"IF(OR('Enrollment Form'!$CN474=\"\",'Enrollment Form'!$CN474=\"No\"),\"-\",IF(AND('Enrollment Form'!$CN474=\"Yes\",'Enrollment Form'!$CO474=\"\"),\"N\",\"Y\"))","v":"-"},{"$f":"IF(OR('Enrollment Form'!$CN474=\"\",'Enrollment Form'!$CN474=\"No\"),\"-\",IF(AND('Enrollment Form'!$CN474=\"Yes\",'Enrollment Form'!$CP474=\"\"),\"N\",\"Y\"))","v":"-"},{"$f":"IF('Enrollment Form'!B474<>\"Subscriber\",\"-\",IF(AND('Enrollment Form'!B474=\"Subscriber\",'Enrollment Form'!C474=\"Enroll\",'Enrollment Form'!AA474=\"\"),\"N\",\"Y\"))","v":"-"},{"$f":"IF(OR('Enrollment Form'!B474=\"Subscriber\",'Enrollment Form'!B474=\"\"),\"-\",IF('Enrollment Form'!BP474=\"\",\"N\",\"Y\"))","v":"-"},{"$f":"IF('Enrollment Form'!B474<>\"Subscriber\",\"-\",IF(AND('Enrollment Form'!B474=\"Subscriber\",'Enrollment Form'!G474=\"\"),\"N\",\"Y\"))","v":"-"},{"$f":"IF('Enrollment Form'!A474=\"\",\"\",IF('Enrollment Form'!B474=\"Subscriber\",\"-\",IF(AND('Enrollment Form'!B474<>\"Subscriber\",'Enrollment Form'!G474='Enrollment Form'!H474),\"N\",\"Y\")))","v":""},0]
[475,{"$f":"IF('Enrollment Form'!$A475<>\"\",\"Y\",\"N\")","v":"N"},{"$f":"IF(AND('Enrollment Form'!$B475=\"\",'Enrollment Form'!$C475<>\"\"),\"N\",IF($B468=\"N\",\"\",\"Y\"))","v":""},{"$f":"IF(OR($B468=\"N\",'Enrollment Form'!G475=\"\"),\"\",IF('Enrollment Form'!$B475<>\"Subscriber\",\"\",IF('Enrollment Form'!$G475='Enrollment Form'!$H475,\"Y\",\"N\")))","v":""},{"$f":"IF($B468=\"N\",\"\",IF(AND(COUNTIFS('Enrollment Form'!$H$11:$H$1000,'Enrollment Form'!$H475,'Enrollment Form'!$B$11:$B$1000,'Enrollment Form'!$B475)>1,'Enrollment Form'!$H475<>\"\"),\"N\",\"Y\"))","v":""},{"$f":"IF($B468=\"N\",\"\",IF(LEN('Enrollment Form'!$Y475)=0,\"\",IF(LEN('Enrollment Form'!$Y475)<>5,\"N\",\"Y\")))","v":""},{"$f":"IF($B468=\"N\",\"\",IF(LEN('Enrollment Form'!$AD475=0),\"\",IF(LEN('Enrollment Form'!$AD475)<>5,\"N\",\"Y\")))","v":""},{"$f":"IF($B468=\"N\",\"\",IF(LEN('Enrollment Form'!$BS475=0),\"\",IF(LEN('Enrollment Form'!$BS475)<>5,\"N\",\"Y\")))","v":""},{"$f":"IF($B468=\"N\",\"\",IF(LEN('Enrollment Form'!$AE475)=0,\"\",IF(LEN('Enrollment Form'!$AE475)<>10,\"N\",\"Y\")))","v":""},{"$f":"IF($B468=\"N\",\"\",IF(LEN('Enrollment Form'!$AF475)=0,\"\",IF(LEN('Enrollment Form'!$AF475)<>10,\"N\",\"Y\")))","v":""},{"$f":"IF('Enrollment Form'!$O475<>\"Graded\",\"-\",IF(AND('Enrollment Form'!$O475=\"Graded\",'Enrollment Form'!$AR475<>\"\"),\"Y\",\"N\"))","v":"-"},{"$f":"IF($B468=\"N\",\"\",IF(OR('Enrollment Form'!$B475<>\"Subscriber\",'Enrollment Form'!$C475=\"ROC\"),\"-\",IF(AND('Enrollment Form'!$B475=\"Subscriber\",'Enrollment Form'!$C475=\"Enroll\",'Enrollment Form'!$AJ475<>\"\"),\"Y\",\"N\")))","v":""},{"$f":"IF($B468=\"N\",\"\",IF(OR('Enrollment Form'!$B475<>\"Subscriber\",'Enrollment Form'!$C475=\"ROC\"),\"-\",IF(AND('Enrollment Form'!$B475=\"Subscriber\",'Enrollment Form'!$C475=\"Enroll\",'Enrollment Form'!$AK475<>\"\"),\"Y\",\"N\")))","v":""},{"$f":"IF($B468=\"N\",\"\",IF(OR('Enrollment Form'!$B475<>\"Subscriber\",'Enrollment Form'!$C475=\"ROC\"),\"-\",IF(AND('Enrollment Form'!$B475=\"Subscriber\",'Enrollment Form'!$C475=\"Enroll\",'Enrollment Form'!$AL475<>\"\"),\"Y\",\"N\")))","v":""},{"$f":"IF($B468=\"N\",\"\",IF(OR('Enrollment Form'!$B475<>\"Subscriber\",'Enrollment Form'!$C475=\"ROC\"),\"-\",IF(AND('Enrollment Form'!$B475=\"Subscriber\",'Enrollment Form'!$C475=\"Enroll\",'Enrollment Form'!$AP475<>\"\"),\"Y\",\"N\")))","v":""},{"$f":"IF($B468=\"N\",\"\",IF(OR('Enrollment Form'!$B475<>\"Subscriber\",'Enrollment Form'!$C475=\"ROC\"),\"-\",IF(AND('Enrollment Form'!$B475=\"Subscriber\",'Enrollment Form'!$C475=\"Enroll\",'Enrollment Form'!$AQ475<>\"\"),\"Y\",\"N\")))","v":""},{"$f":"IF($B468=\"N\",\"\",IF(OR('Enrollment Form'!$B475<>\"Subscriber\",'Enrollment Form'!$C475=\"ROC\"),\"-\",IF(AND('Enrollment Form'!$B475=\"Subscriber\",'Enrollment Form'!$C475=\"Enroll\",'Enrollment Form'!$AS475<>\"\"),\"Y\",\"N\")))","v":""},{"$f":"IF($B468=\"N\",\"\",IF($Q468=\"-\",\"-\",IF(AND($Q468=\"Y\",'Enrollment Form'!$AS475=\"No\"),\"-\",IF(AND($Q468=\"Y\",'Enrollment Form'!$AS475=\"Yes\",'Enrollment Form'!$AT475<>\"\"),\"Y\",\"N\"))))","v":""},{"$f":"IF($B468=\"N\",\"\",IF(OR('Enrollment Form'!$B475<>\"Subscriber\",'Enrollment Form'!$C475=\"ROC\"),\"-\",IF(AND('Enrollment Form'!$B475=\"Subscriber\",'Enrollment Form'!$C475=\"Enroll\",'Enrollment Form'!$CV475<>\"\"),\"Y\",\"N\")))","v":""},{"$f":"IF($B468=\"N\",\"\",IF($S468=\"-\",\"-\",IF(AND($S468=\"Y\",'Enrollment Form'!$CV475=\"No\"),\"-\",IF(AND($S468=\"Y\",'Enrollment Form'!$CV475=\"Yes\",'Enrollment Form'!$CW475<>\"\"),\"Y\",\"N\"))))","v":""},{"$f":"IF(OR('Enrollment Form'!$AY475=\"Yes\",'Enrollment Form'!$AY475=\"\"),\"-\",IF(OR(AND('Enrollment Form'!$AY475=\"No\",ISERROR(FIND(\"HMO\",VLOOKUP('Enrollment Form'!G475,'Enrollment Form'!H$11:J$1000,3,FALSE),1))=FALSE,COUNTA('Enrollment Form'!$AZ475:$BC475)=4),AND('Enrollment Form'!$AY475=\"No\",ISERROR(FIND(\"HMO\",VLOOKUP('Enrollment Form'!G475,'Enrollment Form'!H$11:J$1000,3,FALSE),1))=FALSE,COUNTA('Enrollment Form'!$BT475:$BW475)=4)),\"Y\",\"N\"))","v":"-"},{"$f":"IF($B468=\"N\",\"\",IF('Enrollment Form'!$B475=\"Subscriber\",\"-\",IF(COUNTA('Enrollment Form'!$BL475,'Enrollment Form'!$BN475)=2,\"Y\",\"N\")))","v":""},{"$f":"IF($B468=\"N\",\"\",IF(OR('Enrollment Form'!$AX475=\"\",'Enrollment Form'!$AX475=\"No\"),\"-\",IF(AND('Enrollment Form'!$AX475=\"Yes\",COUNTA('Enrollment Form'!$CR475)=1),\"Y\",\"N\")))","v":""},{"$f":"IF(OR('Enrollment Form'!$CR475=\"\",'Enrollment Form'!$CR475=\"No\"),\"-\",IF(COUNTA('Enrollment Form'!$CT475:$CU475)=2,\"Y\",\"N\"))","v":"-"},{"$f":"IF($B468=\"N\",\"\",IF(COUNTIF('Enrollment Form'!$DG475:$DP475,\"Other\")=COUNTA('Enrollment Form'!$DK475,'Enrollment Form'!$DH475,'Enrollment Form'!$DN475,'Enrollment Form'!$DQ475),\"Y\",\"N\"))","v":""},{"$f":"IF($B468=\"N\",\"\",IF(OR('Enrollment Form'!B475<>\"Subscriber\",'Enrollment Form'!C475=\"ROC\",COUNTIF('Enrollment Form'!AV475:AW475,\"Yes\")>=1),\"-\",IF(AND('Enrollment Form'!C475=\"Enroll\",COUNTIF('Enrollment Form'!AV475:AW475,\"No\")=2,'Enrollment Form'!AX475=\"\"),\"N\",\"Y\")))","v":""},{"$f":"IF(OR(B468=\"N\",'Enrollment Form'!B475<>\"Subscriber\",'Enrollment Form'!C475=\"ROC\",'Enrollment Form'!O475<>\"Multiple of Salary\"),\"-\",IF(COUNTA('Enrollment Form'!T475:U475)<2,\"N\",\"Y\"))","v":"-"},{"$f":"IF(B468=\"N\",\"\",IF(OR('Enrollment Form'!C475=\"ROC\",'Enrollment Form'!B475<>\"Subscriber\",'Enrollment Form'!O475=\"Waive\",'Enrollment Form'!O475=\"\"),\"-\",IF('Enrollment Form'!P475=\"\",\"N\",\"Y\")))","v":""},{"$f":"IF($B468=\"N\",\"\",IF(AND('Enrollment Form'!$C475=\"ROC\",'Enrollment Form'!$DR475<>\"\"),\"Y\",IF(AND('Enrollment Form'!$C475=\"ROC\",'Enrollment Form'!$DR475=\"\"),\"N\",IF(AND('Enrollment Form'!$C475=\"Enroll\",'Enrollment Form'!$B475=\"Subscriber\",'Enrollment Form'!$CX475=\"No\",'Enrollment Form'!$DR475=\"\"),\"N\",IF(AND('Enrollment Form'!$C475=\"Enroll\",'Enrollment Form'!$B475=\"Subscriber\",'Enrollment Form'!$CX475=\"Yes\"),\"-\",\"Y\")))))","v":""},{"$f":"IF($B468=\"N\",\"\",IF(AND('Enrollment Form'!$C475=\"ROC\",'Enrollment Form'!$DS475<>\"\"),\"Y\",IF(AND('Enrollment Form'!$C475=\"ROC\",'Enrollment Form'!$DS475=\"\"),\"N\",IF(AND('Enrollment Form'!$C475=\"Enroll\",'Enrollment Form'!$B475=\"Subscriber\",'Enrollment Form'!$CX475=\"No\",'Enrollment Form'!$DS475=\"\"),\"N\",IF(AND('Enrollment Form'!$C475=\"Enroll\",'Enrollment Form'!$B475=\"Subscriber\",'Enrollment Form'!$CX475=\"Yes\"),\"-\",\"Y\")))))","v":""},{"$f":"IF('Enrollment Form'!AH475=\"\",\"\",IF(ISERROR(SEARCH(\".\",'Enrollment Form'!AH475,SEARCH(\"@\",'Enrollment Form'!AH475))),\"N\",\"Y\"))","v":""},{"$f":"IF(OR($B468=\"N\",'Enrollment Form'!$G475=\"\"),\"\",IF('Enrollment Form'!$B475<>\"Subscriber\",\"-\",IF(COUNTIF('Enrollment Form'!$AV475:$AW475,\"Yes\")=2,\"N\",\"Y\")))","v":""},{"$f":"IF(OR('Enrollment Form'!$CJ475=\"\",'Enrollment Form'!$CJ475=\"No\"),\"-\",IF(AND('Enrollment Form'!$CJ475=\"Yes\",'Enrollment Form'!$CK475=\"\"),\"N\",\"Y\"))","v":"-"},{"$f":"IF(OR('Enrollment Form'!$CL475=\"\",'Enrollment Form'!$CL475=\"No\"),\"-\",IF(AND('Enrollment Form'!$CL475=\"Yes\",'Enrollment Form'!$CM475=\"\"),\"N\",\"Y\"))","v":"-"},{"$f":"IF(OR('Enrollment Form'!$CN475=\"\",'Enrollment Form'!$CN475=\"No\"),\"-\",IF(AND('Enrollment Form'!$CN475=\"Yes\",'Enrollment Form'!$CO475=\"\"),\"N\",\"Y\"))","v":"-"},{"$f":"IF(OR('Enrollment Form'!$CN475=\"\",'Enrollment Form'!$CN475=\"No\"),\"-\",IF(AND('Enrollment Form'!$CN475=\"Yes\",'Enrollment Form'!$CP475=\"\"),\"N\",\"Y\"))","v":"-"},{"$f":"IF('Enrollment Form'!B475<>\"Subscriber\",\"-\",IF(AND('Enrollment Form'!B475=\"Subscriber\",'Enrollment Form'!C475=\"Enroll\",'Enrollment Form'!AA475=\"\"),\"N\",\"Y\"))","v":"-"},{"$f":"IF(OR('Enrollment Form'!B475=\"Subscriber\",'Enrollment Form'!B475=\"\"),\"-\",IF('Enrollment Form'!BP475=\"\",\"N\",\"Y\"))","v":"-"},{"$f":"IF('Enrollment Form'!B475<>\"Subscriber\",\"-\",IF(AND('Enrollment Form'!B475=\"Subscriber\",'Enrollment Form'!G475=\"\"),\"N\",\"Y\"))","v":"-"},{"$f":"IF('Enrollment Form'!A475=\"\",\"\",IF('Enrollment Form'!B475=\"Subscriber\",\"-\",IF(AND('Enrollment Form'!B475<>\"Subscriber\",'Enrollment Form'!G475='Enrollment Form'!H475),\"N\",\"Y\")))","v":""},0]
[476,{"$f":"IF('Enrollment Form'!$A476<>\"\",\"Y\",\"N\")","v":"N"},{"$f":"IF(AND('Enrollment Form'!$B476=\"\",'Enrollment Form'!$C476<>\"\"),\"N\",IF($B469=\"N\",\"\",\"Y\"))","v":""},{"$f":"IF(OR($B469=\"N\",'Enrollment Form'!G476=\"\"),\"\",IF('Enrollment Form'!$B476<>\"Subscriber\",\"\",IF('Enrollment Form'!$G476='Enrollment Form'!$H476,\"Y\",\"N\")))","v":""},{"$f":"IF($B469=\"N\",\"\",IF(AND(COUNTIFS('Enrollment Form'!$H$11:$H$1000,'Enrollment Form'!$H476,'Enrollment Form'!$B$11:$B$1000,'Enrollment Form'!$B476)>1,'Enrollment Form'!$H476<>\"\"),\"N\",\"Y\"))","v":""},{"$f":"IF($B469=\"N\",\"\",IF(LEN('Enrollment Form'!$Y476)=0,\"\",IF(LEN('Enrollment Form'!$Y476)<>5,\"N\",\"Y\")))","v":""},{"$f":"IF($B469=\"N\",\"\",IF(LEN('Enrollment Form'!$AD476=0),\"\",IF(LEN('Enrollment Form'!$AD476)<>5,\"N\",\"Y\")))","v":""},{"$f":"IF($B469=\"N\",\"\",IF(LEN('Enrollment Form'!$BS476=0),\"\",IF(LEN('Enrollment Form'!$BS476)<>5,\"N\",\"Y\")))","v":""},{"$f":"IF($B469=\"N\",\"\",IF(LEN('Enrollment Form'!$AE476)=0,\"\",IF(LEN('Enrollment Form'!$AE476)<>10,\"N\",\"Y\")))","v":""},{"$f":"IF($B469=\"N\",\"\",IF(LEN('Enrollment Form'!$AF476)=0,\"\",IF(LEN('Enrollment Form'!$AF476)<>10,\"N\",\"Y\")))","v":""},{"$f":"IF('Enrollment Form'!$O476<>\"Graded\",\"-\",IF(AND('Enrollment Form'!$O476=\"Graded\",'Enrollment Form'!$AR476<>\"\"),\"Y\",\"N\"))","v":"-"},{"$f":"IF($B469=\"N\",\"\",IF(OR('Enrollment Form'!$B476<>\"Subscriber\",'Enrollment Form'!$C476=\"ROC\"),\"-\",IF(AND('Enrollment Form'!$B476=\"Subscriber\",'Enrollment Form'!$C476=\"Enroll\",'Enrollment Form'!$AJ476<>\"\"),\"Y\",\"N\")))","v":""},{"$f":"IF($B469=\"N\",\"\",IF(OR('Enrollment Form'!$B476<>\"Subscriber\",'Enrollment Form'!$C476=\"ROC\"),\"-\",IF(AND('Enrollment Form'!$B476=\"Subscriber\",'Enrollment Form'!$C476=\"Enroll\",'Enrollment Form'!$AK476<>\"\"),\"Y\",\"N\")))","v":""},{"$f":"IF($B469=\"N\",\"\",IF(OR('Enrollment Form'!$B476<>\"Subscriber\",'Enrollment Form'!$C476=\"ROC\"),\"-\",IF(AND('Enrollment Form'!$B476=\"Subscriber\",'Enrollment Form'!$C476=\"Enroll\",'Enrollment Form'!$AL476<>\"\"),\"Y\",\"N\")))","v":""},{"$f":"IF($B469=\"N\",\"\",IF(OR('Enrollment Form'!$B476<>\"Subscriber\",'Enrollment Form'!$C476=\"ROC\"),\"-\",IF(AND('Enrollment Form'!$B476=\"Subscriber\",'Enrollment Form'!$C476=\"Enroll\",'Enrollment Form'!$AP476<>\"\"),\"Y\",\"N\")))","v":""},{"$f":"IF($B469=\"N\",\"\",IF(OR('Enrollment Form'!$B476<>\"Subscriber\",'Enrollment Form'!$C476=\"ROC\"),\"-\",IF(AND('Enrollment Form'!$B476=\"Subscriber\",'Enrollment Form'!$C476=\"Enroll\",'Enrollment Form'!$AQ476<>\"\"),\"Y\",\"N\")))","v":""},{"$f":"IF($B469=\"N\",\"\",IF(OR('Enrollment Form'!$B476<>\"Subscriber\",'Enrollment Form'!$C476=\"ROC\"),\"-\",IF(AND('Enrollment Form'!$B476=\"Subscriber\",'Enrollment Form'!$C476=\"Enroll\",'Enrollment Form'!$AS476<>\"\"),\"Y\",\"N\")))","v":""},{"$f":"IF($B469=\"N\",\"\",IF($Q469=\"-\",\"-\",IF(AND($Q469=\"Y\",'Enrollment Form'!$AS476=\"No\"),\"-\",IF(AND($Q469=\"Y\",'Enrollment Form'!$AS476=\"Yes\",'Enrollment Form'!$AT476<>\"\"),\"Y\",\"N\"))))","v":""},{"$f":"IF($B469=\"N\",\"\",IF(OR('Enrollment Form'!$B476<>\"Subscriber\",'Enrollment Form'!$C476=\"ROC\"),\"-\",IF(AND('Enrollment Form'!$B476=\"Subscriber\",'Enrollment Form'!$C476=\"Enroll\",'Enrollment Form'!$CV476<>\"\"),\"Y\",\"N\")))","v":""},{"$f":"IF($B469=\"N\",\"\",IF($S469=\"-\",\"-\",IF(AND($S469=\"Y\",'Enrollment Form'!$CV476=\"No\"),\"-\",IF(AND($S469=\"Y\",'Enrollment Form'!$CV476=\"Yes\",'Enrollment Form'!$CW476<>\"\"),\"Y\",\"N\"))))","v":""},{"$f":"IF(OR('Enrollment Form'!$AY476=\"Yes\",'Enrollment Form'!$AY476=\"\"),\"-\",IF(OR(AND('Enrollment Form'!$AY476=\"No\",ISERROR(FIND(\"HMO\",VLOOKUP('Enrollment Form'!G476,'Enrollment Form'!H$11:J$1000,3,FALSE),1))=FALSE,COUNTA('Enrollment Form'!$AZ476:$BC476)=4),AND('Enrollment Form'!$AY476=\"No\",ISERROR(FIND(\"HMO\",VLOOKUP('Enrollment Form'!G476,'Enrollment Form'!H$11:J$1000,3,FALSE),1))=FALSE,COUNTA('Enrollment Form'!$BT476:$BW476)=4)),\"Y\",\"N\"))","v":"-"},{"$f":"IF($B469=\"N\",\"\",IF('Enrollment Form'!$B476=\"Subscriber\",\"-\",IF(COUNTA('Enrollment Form'!$BL476,'Enrollment Form'!$BN476)=2,\"Y\",\"N\")))","v":""},{"$f":"IF($B469=\"N\",\"\",IF(OR('Enrollment Form'!$AX476=\"\",'Enrollment Form'!$AX476=\"No\"),\"-\",IF(AND('Enrollment Form'!$AX476=\"Yes\",COUNTA('Enrollment Form'!$CR476)=1),\"Y\",\"N\")))","v":""},{"$f":"IF(OR('Enrollment Form'!$CR476=\"\",'Enrollment Form'!$CR476=\"No\"),\"-\",IF(COUNTA('Enrollment Form'!$CT476:$CU476)=2,\"Y\",\"N\"))","v":"-"},{"$f":"IF($B469=\"N\",\"\",IF(COUNTIF('Enrollment Form'!$DG476:$DP476,\"Other\")=COUNTA('Enrollment Form'!$DK476,'Enrollment Form'!$DH476,'Enrollment Form'!$DN476,'Enrollment Form'!$DQ476),\"Y\",\"N\"))","v":""},{"$f":"IF($B469=\"N\",\"\",IF(OR('Enrollment Form'!B476<>\"Subscriber\",'Enrollment Form'!C476=\"ROC\",COUNTIF('Enrollment Form'!AV476:AW476,\"Yes\")>=1),\"-\",IF(AND('Enrollment Form'!C476=\"Enroll\",COUNTIF('Enrollment Form'!AV476:AW476,\"No\")=2,'Enrollment Form'!AX476=\"\"),\"N\",\"Y\")))","v":""},{"$f":"IF(OR(B469=\"N\",'Enrollment Form'!B476<>\"Subscriber\",'Enrollment Form'!C476=\"ROC\",'Enrollment Form'!O476<>\"Multiple of Salary\"),\"-\",IF(COUNTA('Enrollment Form'!T476:U476)<2,\"N\",\"Y\"))","v":"-"},{"$f":"IF(B469=\"N\",\"\",IF(OR('Enrollment Form'!C476=\"ROC\",'Enrollment Form'!B476<>\"Subscriber\",'Enrollment Form'!O476=\"Waive\",'Enrollment Form'!O476=\"\"),\"-\",IF('Enrollment Form'!P476=\"\",\"N\",\"Y\")))","v":""},{"$f":"IF($B469=\"N\",\"\",IF(AND('Enrollment Form'!$C476=\"ROC\",'Enrollment Form'!$DR476<>\"\"),\"Y\",IF(AND('Enrollment Form'!$C476=\"ROC\",'Enrollment Form'!$DR476=\"\"),\"N\",IF(AND('Enrollment Form'!$C476=\"Enroll\",'Enrollment Form'!$B476=\"Subscriber\",'Enrollment Form'!$CX476=\"No\",'Enrollment Form'!$DR476=\"\"),\"N\",IF(AND('Enrollment Form'!$C476=\"Enroll\",'Enrollment Form'!$B476=\"Subscriber\",'Enrollment Form'!$CX476=\"Yes\"),\"-\",\"Y\")))))","v":""},{"$f":"IF($B469=\"N\",\"\",IF(AND('Enrollment Form'!$C476=\"ROC\",'Enrollment Form'!$DS476<>\"\"),\"Y\",IF(AND('Enrollment Form'!$C476=\"ROC\",'Enrollment Form'!$DS476=\"\"),\"N\",IF(AND('Enrollment Form'!$C476=\"Enroll\",'Enrollment Form'!$B476=\"Subscriber\",'Enrollment Form'!$CX476=\"No\",'Enrollment Form'!$DS476=\"\"),\"N\",IF(AND('Enrollment Form'!$C476=\"Enroll\",'Enrollment Form'!$B476=\"Subscriber\",'Enrollment Form'!$CX476=\"Yes\"),\"-\",\"Y\")))))","v":""},{"$f":"IF('Enrollment Form'!AH476=\"\",\"\",IF(ISERROR(SEARCH(\".\",'Enrollment Form'!AH476,SEARCH(\"@\",'Enrollment Form'!AH476))),\"N\",\"Y\"))","v":""},{"$f":"IF(OR($B469=\"N\",'Enrollment Form'!$G476=\"\"),\"\",IF('Enrollment Form'!$B476<>\"Subscriber\",\"-\",IF(COUNTIF('Enrollment Form'!$AV476:$AW476,\"Yes\")=2,\"N\",\"Y\")))","v":""},{"$f":"IF(OR('Enrollment Form'!$CJ476=\"\",'Enrollment Form'!$CJ476=\"No\"),\"-\",IF(AND('Enrollment Form'!$CJ476=\"Yes\",'Enrollment Form'!$CK476=\"\"),\"N\",\"Y\"))","v":"-"},{"$f":"IF(OR('Enrollment Form'!$CL476=\"\",'Enrollment Form'!$CL476=\"No\"),\"-\",IF(AND('Enrollment Form'!$CL476=\"Yes\",'Enrollment Form'!$CM476=\"\"),\"N\",\"Y\"))","v":"-"},{"$f":"IF(OR('Enrollment Form'!$CN476=\"\",'Enrollment Form'!$CN476=\"No\"),\"-\",IF(AND('Enrollment Form'!$CN476=\"Yes\",'Enrollment Form'!$CO476=\"\"),\"N\",\"Y\"))","v":"-"},{"$f":"IF(OR('Enrollment Form'!$CN476=\"\",'Enrollment Form'!$CN476=\"No\"),\"-\",IF(AND('Enrollment Form'!$CN476=\"Yes\",'Enrollment Form'!$CP476=\"\"),\"N\",\"Y\"))","v":"-"},{"$f":"IF('Enrollment Form'!B476<>\"Subscriber\",\"-\",IF(AND('Enrollment Form'!B476=\"Subscriber\",'Enrollment Form'!C476=\"Enroll\",'Enrollment Form'!AA476=\"\"),\"N\",\"Y\"))","v":"-"},{"$f":"IF(OR('Enrollment Form'!B476=\"Subscriber\",'Enrollment Form'!B476=\"\"),\"-\",IF('Enrollment Form'!BP476=\"\",\"N\",\"Y\"))","v":"-"},{"$f":"IF('Enrollment Form'!B476<>\"Subscriber\",\"-\",IF(AND('Enrollment Form'!B476=\"Subscriber\",'Enrollment Form'!G476=\"\"),\"N\",\"Y\"))","v":"-"},{"$f":"IF('Enrollment Form'!A476=\"\",\"\",IF('Enrollment Form'!B476=\"Subscriber\",\"-\",IF(AND('Enrollment Form'!B476<>\"Subscriber\",'Enrollment Form'!G476='Enrollment Form'!H476),\"N\",\"Y\")))","v":""},0]
[477,{"$f":"IF('Enrollment Form'!$A477<>\"\",\"Y\",\"N\")","v":"N"},{"$f":"IF(AND('Enrollment Form'!$B477=\"\",'Enrollment Form'!$C477<>\"\"),\"N\",IF($B470=\"N\",\"\",\"Y\"))","v":""},{"$f":"IF(OR($B470=\"N\",'Enrollment Form'!G477=\"\"),\"\",IF('Enrollment Form'!$B477<>\"Subscriber\",\"\",IF('Enrollment Form'!$G477='Enrollment Form'!$H477,\"Y\",\"N\")))","v":""},{"$f":"IF($B470=\"N\",\"\",IF(AND(COUNTIFS('Enrollment Form'!$H$11:$H$1000,'Enrollment Form'!$H477,'Enrollment Form'!$B$11:$B$1000,'Enrollment Form'!$B477)>1,'Enrollment Form'!$H477<>\"\"),\"N\",\"Y\"))","v":""},{"$f":"IF($B470=\"N\",\"\",IF(LEN('Enrollment Form'!$Y477)=0,\"\",IF(LEN('Enrollment Form'!$Y477)<>5,\"N\",\"Y\")))","v":""},{"$f":"IF($B470=\"N\",\"\",IF(LEN('Enrollment Form'!$AD477=0),\"\",IF(LEN('Enrollment Form'!$AD477)<>5,\"N\",\"Y\")))","v":""},{"$f":"IF($B470=\"N\",\"\",IF(LEN('Enrollment Form'!$BS477=0),\"\",IF(LEN('Enrollment Form'!$BS477)<>5,\"N\",\"Y\")))","v":""},{"$f":"IF($B470=\"N\",\"\",IF(LEN('Enrollment Form'!$AE477)=0,\"\",IF(LEN('Enrollment Form'!$AE477)<>10,\"N\",\"Y\")))","v":""},{"$f":"IF($B470=\"N\",\"\",IF(LEN('Enrollment Form'!$AF477)=0,\"\",IF(LEN('Enrollment Form'!$AF477)<>10,\"N\",\"Y\")))","v":""},{"$f":"IF('Enrollment Form'!$O477<>\"Graded\",\"-\",IF(AND('Enrollment Form'!$O477=\"Graded\",'Enrollment Form'!$AR477<>\"\"),\"Y\",\"N\"))","v":"-"},{"$f":"IF($B470=\"N\",\"\",IF(OR('Enrollment Form'!$B477<>\"Subscriber\",'Enrollment Form'!$C477=\"ROC\"),\"-\",IF(AND('Enrollment Form'!$B477=\"Subscriber\",'Enrollment Form'!$C477=\"Enroll\",'Enrollment Form'!$AJ477<>\"\"),\"Y\",\"N\")))","v":""},{"$f":"IF($B470=\"N\",\"\",IF(OR('Enrollment Form'!$B477<>\"Subscriber\",'Enrollment Form'!$C477=\"ROC\"),\"-\",IF(AND('Enrollment Form'!$B477=\"Subscriber\",'Enrollment Form'!$C477=\"Enroll\",'Enrollment Form'!$AK477<>\"\"),\"Y\",\"N\")))","v":""},{"$f":"IF($B470=\"N\",\"\",IF(OR('Enrollment Form'!$B477<>\"Subscriber\",'Enrollment Form'!$C477=\"ROC\"),\"-\",IF(AND('Enrollment Form'!$B477=\"Subscriber\",'Enrollment Form'!$C477=\"Enroll\",'Enrollment Form'!$AL477<>\"\"),\"Y\",\"N\")))","v":""},{"$f":"IF($B470=\"N\",\"\",IF(OR('Enrollment Form'!$B477<>\"Subscriber\",'Enrollment Form'!$C477=\"ROC\"),\"-\",IF(AND('Enrollment Form'!$B477=\"Subscriber\",'Enrollment Form'!$C477=\"Enroll\",'Enrollment Form'!$AP477<>\"\"),\"Y\",\"N\")))","v":""},{"$f":"IF($B470=\"N\",\"\",IF(OR('Enrollment Form'!$B477<>\"Subscriber\",'Enrollment Form'!$C477=\"ROC\"),\"-\",IF(AND('Enrollment Form'!$B477=\"Subscriber\",'Enrollment Form'!$C477=\"Enroll\",'Enrollment Form'!$AQ477<>\"\"),\"Y\",\"N\")))","v":""},{"$f":"IF($B470=\"N\",\"\",IF(OR('Enrollment Form'!$B477<>\"Subscriber\",'Enrollment Form'!$C477=\"ROC\"),\"-\",IF(AND('Enrollment Form'!$B477=\"Subscriber\",'Enrollment Form'!$C477=\"Enroll\",'Enrollment Form'!$AS477<>\"\"),\"Y\",\"N\")))","v":""},{"$f":"IF($B470=\"N\",\"\",IF($Q470=\"-\",\"-\",IF(AND($Q470=\"Y\",'Enrollment Form'!$AS477=\"No\"),\"-\",IF(AND($Q470=\"Y\",'Enrollment Form'!$AS477=\"Yes\",'Enrollment Form'!$AT477<>\"\"),\"Y\",\"N\"))))","v":""},{"$f":"IF($B470=\"N\",\"\",IF(OR('Enrollment Form'!$B477<>\"Subscriber\",'Enrollment Form'!$C477=\"ROC\"),\"-\",IF(AND('Enrollment Form'!$B477=\"Subscriber\",'Enrollment Form'!$C477=\"Enroll\",'Enrollment Form'!$CV477<>\"\"),\"Y\",\"N\")))","v":""},{"$f":"IF($B470=\"N\",\"\",IF($S470=\"-\",\"-\",IF(AND($S470=\"Y\",'Enrollment Form'!$CV477=\"No\"),\"-\",IF(AND($S470=\"Y\",'Enrollment Form'!$CV477=\"Yes\",'Enrollment Form'!$CW477<>\"\"),\"Y\",\"N\"))))","v":""},{"$f":"IF(OR('Enrollment Form'!$AY477=\"Yes\",'Enrollment Form'!$AY477=\"\"),\"-\",IF(OR(AND('Enrollment Form'!$AY477=\"No\",ISERROR(FIND(\"HMO\",VLOOKUP('Enrollment Form'!G477,'Enrollment Form'!H$11:J$1000,3,FALSE),1))=FALSE,COUNTA('Enrollment Form'!$AZ477:$BC477)=4),AND('Enrollment Form'!$AY477=\"No\",ISERROR(FIND(\"HMO\",VLOOKUP('Enrollment Form'!G477,'Enrollment Form'!H$11:J$1000,3,FALSE),1))=FALSE,COUNTA('Enrollment Form'!$BT477:$BW477)=4)),\"Y\",\"N\"))","v":"-"},{"$f":"IF($B470=\"N\",\"\",IF('Enrollment Form'!$B477=\"Subscriber\",\"-\",IF(COUNTA('Enrollment Form'!$BL477,'Enrollment Form'!$BN477)=2,\"Y\",\"N\")))","v":""},{"$f":"IF($B470=\"N\",\"\",IF(OR('Enrollment Form'!$AX477=\"\",'Enrollment Form'!$AX477=\"No\"),\"-\",IF(AND('Enrollment Form'!$AX477=\"Yes\",COUNTA('Enrollment Form'!$CR477)=1),\"Y\",\"N\")))","v":""},{"$f":"IF(OR('Enrollment Form'!$CR477=\"\",'Enrollment Form'!$CR477=\"No\"),\"-\",IF(COUNTA('Enrollment Form'!$CT477:$CU477)=2,\"Y\",\"N\"))","v":"-"},{"$f":"IF($B470=\"N\",\"\",IF(COUNTIF('Enrollment Form'!$DG477:$DP477,\"Other\")=COUNTA('Enrollment Form'!$DK477,'Enrollment Form'!$DH477,'Enrollment Form'!$DN477,'Enrollment Form'!$DQ477),\"Y\",\"N\"))","v":""},{"$f":"IF($B470=\"N\",\"\",IF(OR('Enrollment Form'!B477<>\"Subscriber\",'Enrollment Form'!C477=\"ROC\",COUNTIF('Enrollment Form'!AV477:AW477,\"Yes\")>=1),\"-\",IF(AND('Enrollment Form'!C477=\"Enroll\",COUNTIF('Enrollment Form'!AV477:AW477,\"No\")=2,'Enrollment Form'!AX477=\"\"),\"N\",\"Y\")))","v":""},{"$f":"IF(OR(B470=\"N\",'Enrollment Form'!B477<>\"Subscriber\",'Enrollment Form'!C477=\"ROC\",'Enrollment Form'!O477<>\"Multiple of Salary\"),\"-\",IF(COUNTA('Enrollment Form'!T477:U477)<2,\"N\",\"Y\"))","v":"-"},{"$f":"IF(B470=\"N\",\"\",IF(OR('Enrollment Form'!C477=\"ROC\",'Enrollment Form'!B477<>\"Subscriber\",'Enrollment Form'!O477=\"Waive\",'Enrollment Form'!O477=\"\"),\"-\",IF('Enrollment Form'!P477=\"\",\"N\",\"Y\")))","v":""},{"$f":"IF($B470=\"N\",\"\",IF(AND('Enrollment Form'!$C477=\"ROC\",'Enrollment Form'!$DR477<>\"\"),\"Y\",IF(AND('Enrollment Form'!$C477=\"ROC\",'Enrollment Form'!$DR477=\"\"),\"N\",IF(AND('Enrollment Form'!$C477=\"Enroll\",'Enrollment Form'!$B477=\"Subscriber\",'Enrollment Form'!$CX477=\"No\",'Enrollment Form'!$DR477=\"\"),\"N\",IF(AND('Enrollment Form'!$C477=\"Enroll\",'Enrollment Form'!$B477=\"Subscriber\",'Enrollment Form'!$CX477=\"Yes\"),\"-\",\"Y\")))))","v":""},{"$f":"IF($B470=\"N\",\"\",IF(AND('Enrollment Form'!$C477=\"ROC\",'Enrollment Form'!$DS477<>\"\"),\"Y\",IF(AND('Enrollment Form'!$C477=\"ROC\",'Enrollment Form'!$DS477=\"\"),\"N\",IF(AND('Enrollment Form'!$C477=\"Enroll\",'Enrollment Form'!$B477=\"Subscriber\",'Enrollment Form'!$CX477=\"No\",'Enrollment Form'!$DS477=\"\"),\"N\",IF(AND('Enrollment Form'!$C477=\"Enroll\",'Enrollment Form'!$B477=\"Subscriber\",'Enrollment Form'!$CX477=\"Yes\"),\"-\",\"Y\")))))","v":""},{"$f":"IF('Enrollment Form'!AH477=\"\",\"\",IF(ISERROR(SEARCH(\".\",'Enrollment Form'!AH477,SEARCH(\"@\",'Enrollment Form'!AH477))),\"N\",\"Y\"))","v":""},{"$f":"IF(OR($B470=\"N\",'Enrollment Form'!$G477=\"\"),\"\",IF('Enrollment Form'!$B477<>\"Subscriber\",\"-\",IF(COUNTIF('Enrollment Form'!$AV477:$AW477,\"Yes\")=2,\"N\",\"Y\")))","v":""},{"$f":"IF(OR('Enrollment Form'!$CJ477=\"\",'Enrollment Form'!$CJ477=\"No\"),\"-\",IF(AND('Enrollment Form'!$CJ477=\"Yes\",'Enrollment Form'!$CK477=\"\"),\"N\",\"Y\"))","v":"-"},{"$f":"IF(OR('Enrollment Form'!$CL477=\"\",'Enrollment Form'!$CL477=\"No\"),\"-\",IF(AND('Enrollment Form'!$CL477=\"Yes\",'Enrollment Form'!$CM477=\"\"),\"N\",\"Y\"))","v":"-"},{"$f":"IF(OR('Enrollment Form'!$CN477=\"\",'Enrollment Form'!$CN477=\"No\"),\"-\",IF(AND('Enrollment Form'!$CN477=\"Yes\",'Enrollment Form'!$CO477=\"\"),\"N\",\"Y\"))","v":"-"},{"$f":"IF(OR('Enrollment Form'!$CN477=\"\",'Enrollment Form'!$CN477=\"No\"),\"-\",IF(AND('Enrollment Form'!$CN477=\"Yes\",'Enrollment Form'!$CP477=\"\"),\"N\",\"Y\"))","v":"-"},{"$f":"IF('Enrollment Form'!B477<>\"Subscriber\",\"-\",IF(AND('Enrollment Form'!B477=\"Subscriber\",'Enrollment Form'!C477=\"Enroll\",'Enrollment Form'!AA477=\"\"),\"N\",\"Y\"))","v":"-"},{"$f":"IF(OR('Enrollment Form'!B477=\"Subscriber\",'Enrollment Form'!B477=\"\"),\"-\",IF('Enrollment Form'!BP477=\"\",\"N\",\"Y\"))","v":"-"},{"$f":"IF('Enrollment Form'!B477<>\"Subscriber\",\"-\",IF(AND('Enrollment Form'!B477=\"Subscriber\",'Enrollment Form'!G477=\"\"),\"N\",\"Y\"))","v":"-"},{"$f":"IF('Enrollment Form'!A477=\"\",\"\",IF('Enrollment Form'!B477=\"Subscriber\",\"-\",IF(AND('Enrollment Form'!B477<>\"Subscriber\",'Enrollment Form'!G477='Enrollment Form'!H477),\"N\",\"Y\")))","v":""},0]
[478,{"$f":"IF('Enrollment Form'!$A478<>\"\",\"Y\",\"N\")","v":"N"},{"$f":"IF(AND('Enrollment Form'!$B478=\"\",'Enrollment Form'!$C478<>\"\"),\"N\",IF($B471=\"N\",\"\",\"Y\"))","v":""},{"$f":"IF(OR($B471=\"N\",'Enrollment Form'!G478=\"\"),\"\",IF('Enrollment Form'!$B478<>\"Subscriber\",\"\",IF('Enrollment Form'!$G478='Enrollment Form'!$H478,\"Y\",\"N\")))","v":""},{"$f":"IF($B471=\"N\",\"\",IF(AND(COUNTIFS('Enrollment Form'!$H$11:$H$1000,'Enrollment Form'!$H478,'Enrollment Form'!$B$11:$B$1000,'Enrollment Form'!$B478)>1,'Enrollment Form'!$H478<>\"\"),\"N\",\"Y\"))","v":""},{"$f":"IF($B471=\"N\",\"\",IF(LEN('Enrollment Form'!$Y478)=0,\"\",IF(LEN('Enrollment Form'!$Y478)<>5,\"N\",\"Y\")))","v":""},{"$f":"IF($B471=\"N\",\"\",IF(LEN('Enrollment Form'!$AD478=0),\"\",IF(LEN('Enrollment Form'!$AD478)<>5,\"N\",\"Y\")))","v":""},{"$f":"IF($B471=\"N\",\"\",IF(LEN('Enrollment Form'!$BS478=0),\"\",IF(LEN('Enrollment Form'!$BS478)<>5,\"N\",\"Y\")))","v":""},{"$f":"IF($B471=\"N\",\"\",IF(LEN('Enrollment Form'!$AE478)=0,\"\",IF(LEN('Enrollment Form'!$AE478)<>10,\"N\",\"Y\")))","v":""},{"$f":"IF($B471=\"N\",\"\",IF(LEN('Enrollment Form'!$AF478)=0,\"\",IF(LEN('Enrollment Form'!$AF478)<>10,\"N\",\"Y\")))","v":""},{"$f":"IF('Enrollment Form'!$O478<>\"Graded\",\"-\",IF(AND('Enrollment Form'!$O478=\"Graded\",'Enrollment Form'!$AR478<>\"\"),\"Y\",\"N\"))","v":"-"},{"$f":"IF($B471=\"N\",\"\",IF(OR('Enrollment Form'!$B478<>\"Subscriber\",'Enrollment Form'!$C478=\"ROC\"),\"-\",IF(AND('Enrollment Form'!$B478=\"Subscriber\",'Enrollment Form'!$C478=\"Enroll\",'Enrollment Form'!$AJ478<>\"\"),\"Y\",\"N\")))","v":""},{"$f":"IF($B471=\"N\",\"\",IF(OR('Enrollment Form'!$B478<>\"Subscriber\",'Enrollment Form'!$C478=\"ROC\"),\"-\",IF(AND('Enrollment Form'!$B478=\"Subscriber\",'Enrollment Form'!$C478=\"Enroll\",'Enrollment Form'!$AK478<>\"\"),\"Y\",\"N\")))","v":""},{"$f":"IF($B471=\"N\",\"\",IF(OR('Enrollment Form'!$B478<>\"Subscriber\",'Enrollment Form'!$C478=\"ROC\"),\"-\",IF(AND('Enrollment Form'!$B478=\"Subscriber\",'Enrollment Form'!$C478=\"Enroll\",'Enrollment Form'!$AL478<>\"\"),\"Y\",\"N\")))","v":""},{"$f":"IF($B471=\"N\",\"\",IF(OR('Enrollment Form'!$B478<>\"Subscriber\",'Enrollment Form'!$C478=\"ROC\"),\"-\",IF(AND('Enrollment Form'!$B478=\"Subscriber\",'Enrollment Form'!$C478=\"Enroll\",'Enrollment Form'!$AP478<>\"\"),\"Y\",\"N\")))","v":""},{"$f":"IF($B471=\"N\",\"\",IF(OR('Enrollment Form'!$B478<>\"Subscriber\",'Enrollment Form'!$C478=\"ROC\"),\"-\",IF(AND('Enrollment Form'!$B478=\"Subscriber\",'Enrollment Form'!$C478=\"Enroll\",'Enrollment Form'!$AQ478<>\"\"),\"Y\",\"N\")))","v":""},{"$f":"IF($B471=\"N\",\"\",IF(OR('Enrollment Form'!$B478<>\"Subscriber\",'Enrollment Form'!$C478=\"ROC\"),\"-\",IF(AND('Enrollment Form'!$B478=\"Subscriber\",'Enrollment Form'!$C478=\"Enroll\",'Enrollment Form'!$AS478<>\"\"),\"Y\",\"N\")))","v":""},{"$f":"IF($B471=\"N\",\"\",IF($Q471=\"-\",\"-\",IF(AND($Q471=\"Y\",'Enrollment Form'!$AS478=\"No\"),\"-\",IF(AND($Q471=\"Y\",'Enrollment Form'!$AS478=\"Yes\",'Enrollment Form'!$AT478<>\"\"),\"Y\",\"N\"))))","v":""},{"$f":"IF($B471=\"N\",\"\",IF(OR('Enrollment Form'!$B478<>\"Subscriber\",'Enrollment Form'!$C478=\"ROC\"),\"-\",IF(AND('Enrollment Form'!$B478=\"Subscriber\",'Enrollment Form'!$C478=\"Enroll\",'Enrollment Form'!$CV478<>\"\"),\"Y\",\"N\")))","v":""},{"$f":"IF($B471=\"N\",\"\",IF($S471=\"-\",\"-\",IF(AND($S471=\"Y\",'Enrollment Form'!$CV478=\"No\"),\"-\",IF(AND($S471=\"Y\",'Enrollment Form'!$CV478=\"Yes\",'Enrollment Form'!$CW478<>\"\"),\"Y\",\"N\"))))","v":""},{"$f":"IF(OR('Enrollment Form'!$AY478=\"Yes\",'Enrollment Form'!$AY478=\"\"),\"-\",IF(OR(AND('Enrollment Form'!$AY478=\"No\",ISERROR(FIND(\"HMO\",VLOOKUP('Enrollment Form'!G478,'Enrollment Form'!H$11:J$1000,3,FALSE),1))=FALSE,COUNTA('Enrollment Form'!$AZ478:$BC478)=4),AND('Enrollment Form'!$AY478=\"No\",ISERROR(FIND(\"HMO\",VLOOKUP('Enrollment Form'!G478,'Enrollment Form'!H$11:J$1000,3,FALSE),1))=FALSE,COUNTA('Enrollment Form'!$BT478:$BW478)=4)),\"Y\",\"N\"))","v":"-"},{"$f":"IF($B471=\"N\",\"\",IF('Enrollment Form'!$B478=\"Subscriber\",\"-\",IF(COUNTA('Enrollment Form'!$BL478,'Enrollment Form'!$BN478)=2,\"Y\",\"N\")))","v":""},{"$f":"IF($B471=\"N\",\"\",IF(OR('Enrollment Form'!$AX478=\"\",'Enrollment Form'!$AX478=\"No\"),\"-\",IF(AND('Enrollment Form'!$AX478=\"Yes\",COUNTA('Enrollment Form'!$CR478)=1),\"Y\",\"N\")))","v":""},{"$f":"IF(OR('Enrollment Form'!$CR478=\"\",'Enrollment Form'!$CR478=\"No\"),\"-\",IF(COUNTA('Enrollment Form'!$CT478:$CU478)=2,\"Y\",\"N\"))","v":"-"},{"$f":"IF($B471=\"N\",\"\",IF(COUNTIF('Enrollment Form'!$DG478:$DP478,\"Other\")=COUNTA('Enrollment Form'!$DK478,'Enrollment Form'!$DH478,'Enrollment Form'!$DN478,'Enrollment Form'!$DQ478),\"Y\",\"N\"))","v":""},{"$f":"IF($B471=\"N\",\"\",IF(OR('Enrollment Form'!B478<>\"Subscriber\",'Enrollment Form'!C478=\"ROC\",COUNTIF('Enrollment Form'!AV478:AW478,\"Yes\")>=1),\"-\",IF(AND('Enrollment Form'!C478=\"Enroll\",COUNTIF('Enrollment Form'!AV478:AW478,\"No\")=2,'Enrollment Form'!AX478=\"\"),\"N\",\"Y\")))","v":""},{"$f":"IF(OR(B471=\"N\",'Enrollment Form'!B478<>\"Subscriber\",'Enrollment Form'!C478=\"ROC\",'Enrollment Form'!O478<>\"Multiple of Salary\"),\"-\",IF(COUNTA('Enrollment Form'!T478:U478)<2,\"N\",\"Y\"))","v":"-"},{"$f":"IF(B471=\"N\",\"\",IF(OR('Enrollment Form'!C478=\"ROC\",'Enrollment Form'!B478<>\"Subscriber\",'Enrollment Form'!O478=\"Waive\",'Enrollment Form'!O478=\"\"),\"-\",IF('Enrollment Form'!P478=\"\",\"N\",\"Y\")))","v":""},{"$f":"IF($B471=\"N\",\"\",IF(AND('Enrollment Form'!$C478=\"ROC\",'Enrollment Form'!$DR478<>\"\"),\"Y\",IF(AND('Enrollment Form'!$C478=\"ROC\",'Enrollment Form'!$DR478=\"\"),\"N\",IF(AND('Enrollment Form'!$C478=\"Enroll\",'Enrollment Form'!$B478=\"Subscriber\",'Enrollment Form'!$CX478=\"No\",'Enrollment Form'!$DR478=\"\"),\"N\",IF(AND('Enrollment Form'!$C478=\"Enroll\",'Enrollment Form'!$B478=\"Subscriber\",'Enrollment Form'!$CX478=\"Yes\"),\"-\",\"Y\")))))","v":""},{"$f":"IF($B471=\"N\",\"\",IF(AND('Enrollment Form'!$C478=\"ROC\",'Enrollment Form'!$DS478<>\"\"),\"Y\",IF(AND('Enrollment Form'!$C478=\"ROC\",'Enrollment Form'!$DS478=\"\"),\"N\",IF(AND('Enrollment Form'!$C478=\"Enroll\",'Enrollment Form'!$B478=\"Subscriber\",'Enrollment Form'!$CX478=\"No\",'Enrollment Form'!$DS478=\"\"),\"N\",IF(AND('Enrollment Form'!$C478=\"Enroll\",'Enrollment Form'!$B478=\"Subscriber\",'Enrollment Form'!$CX478=\"Yes\"),\"-\",\"Y\")))))","v":""},{"$f":"IF('Enrollment Form'!AH478=\"\",\"\",IF(ISERROR(SEARCH(\".\",'Enrollment Form'!AH478,SEARCH(\"@\",'Enrollment Form'!AH478))),\"N\",\"Y\"))","v":""},{"$f":"IF(OR($B471=\"N\",'Enrollment Form'!$G478=\"\"),\"\",IF('Enrollment Form'!$B478<>\"Subscriber\",\"-\",IF(COUNTIF('Enrollment Form'!$AV478:$AW478,\"Yes\")=2,\"N\",\"Y\")))","v":""},{"$f":"IF(OR('Enrollment Form'!$CJ478=\"\",'Enrollment Form'!$CJ478=\"No\"),\"-\",IF(AND('Enrollment Form'!$CJ478=\"Yes\",'Enrollment Form'!$CK478=\"\"),\"N\",\"Y\"))","v":"-"},{"$f":"IF(OR('Enrollment Form'!$CL478=\"\",'Enrollment Form'!$CL478=\"No\"),\"-\",IF(AND('Enrollment Form'!$CL478=\"Yes\",'Enrollment Form'!$CM478=\"\"),\"N\",\"Y\"))","v":"-"},{"$f":"IF(OR('Enrollment Form'!$CN478=\"\",'Enrollment Form'!$CN478=\"No\"),\"-\",IF(AND('Enrollment Form'!$CN478=\"Yes\",'Enrollment Form'!$CO478=\"\"),\"N\",\"Y\"))","v":"-"},{"$f":"IF(OR('Enrollment Form'!$CN478=\"\",'Enrollment Form'!$CN478=\"No\"),\"-\",IF(AND('Enrollment Form'!$CN478=\"Yes\",'Enrollment Form'!$CP478=\"\"),\"N\",\"Y\"))","v":"-"},{"$f":"IF('Enrollment Form'!B478<>\"Subscriber\",\"-\",IF(AND('Enrollment Form'!B478=\"Subscriber\",'Enrollment Form'!C478=\"Enroll\",'Enrollment Form'!AA478=\"\"),\"N\",\"Y\"))","v":"-"},{"$f":"IF(OR('Enrollment Form'!B478=\"Subscriber\",'Enrollment Form'!B478=\"\"),\"-\",IF('Enrollment Form'!BP478=\"\",\"N\",\"Y\"))","v":"-"},{"$f":"IF('Enrollment Form'!B478<>\"Subscriber\",\"-\",IF(AND('Enrollment Form'!B478=\"Subscriber\",'Enrollment Form'!G478=\"\"),\"N\",\"Y\"))","v":"-"},{"$f":"IF('Enrollment Form'!A478=\"\",\"\",IF('Enrollment Form'!B478=\"Subscriber\",\"-\",IF(AND('Enrollment Form'!B478<>\"Subscriber\",'Enrollment Form'!G478='Enrollment Form'!H478),\"N\",\"Y\")))","v":""},0]
[479,{"$f":"IF('Enrollment Form'!$A479<>\"\",\"Y\",\"N\")","v":"N"},{"$f":"IF(AND('Enrollment Form'!$B479=\"\",'Enrollment Form'!$C479<>\"\"),\"N\",IF($B472=\"N\",\"\",\"Y\"))","v":""},{"$f":"IF(OR($B472=\"N\",'Enrollment Form'!G479=\"\"),\"\",IF('Enrollment Form'!$B479<>\"Subscriber\",\"\",IF('Enrollment Form'!$G479='Enrollment Form'!$H479,\"Y\",\"N\")))","v":""},{"$f":"IF($B472=\"N\",\"\",IF(AND(COUNTIFS('Enrollment Form'!$H$11:$H$1000,'Enrollment Form'!$H479,'Enrollment Form'!$B$11:$B$1000,'Enrollment Form'!$B479)>1,'Enrollment Form'!$H479<>\"\"),\"N\",\"Y\"))","v":""},{"$f":"IF($B472=\"N\",\"\",IF(LEN('Enrollment Form'!$Y479)=0,\"\",IF(LEN('Enrollment Form'!$Y479)<>5,\"N\",\"Y\")))","v":""},{"$f":"IF($B472=\"N\",\"\",IF(LEN('Enrollment Form'!$AD479=0),\"\",IF(LEN('Enrollment Form'!$AD479)<>5,\"N\",\"Y\")))","v":""},{"$f":"IF($B472=\"N\",\"\",IF(LEN('Enrollment Form'!$BS479=0),\"\",IF(LEN('Enrollment Form'!$BS479)<>5,\"N\",\"Y\")))","v":""},{"$f":"IF($B472=\"N\",\"\",IF(LEN('Enrollment Form'!$AE479)=0,\"\",IF(LEN('Enrollment Form'!$AE479)<>10,\"N\",\"Y\")))","v":""},{"$f":"IF($B472=\"N\",\"\",IF(LEN('Enrollment Form'!$AF479)=0,\"\",IF(LEN('Enrollment Form'!$AF479)<>10,\"N\",\"Y\")))","v":""},{"$f":"IF('Enrollment Form'!$O479<>\"Graded\",\"-\",IF(AND('Enrollment Form'!$O479=\"Graded\",'Enrollment Form'!$AR479<>\"\"),\"Y\",\"N\"))","v":"-"},{"$f":"IF($B472=\"N\",\"\",IF(OR('Enrollment Form'!$B479<>\"Subscriber\",'Enrollment Form'!$C479=\"ROC\"),\"-\",IF(AND('Enrollment Form'!$B479=\"Subscriber\",'Enrollment Form'!$C479=\"Enroll\",'Enrollment Form'!$AJ479<>\"\"),\"Y\",\"N\")))","v":""},{"$f":"IF($B472=\"N\",\"\",IF(OR('Enrollment Form'!$B479<>\"Subscriber\",'Enrollment Form'!$C479=\"ROC\"),\"-\",IF(AND('Enrollment Form'!$B479=\"Subscriber\",'Enrollment Form'!$C479=\"Enroll\",'Enrollment Form'!$AK479<>\"\"),\"Y\",\"N\")))","v":""},{"$f":"IF($B472=\"N\",\"\",IF(OR('Enrollment Form'!$B479<>\"Subscriber\",'Enrollment Form'!$C479=\"ROC\"),\"-\",IF(AND('Enrollment Form'!$B479=\"Subscriber\",'Enrollment Form'!$C479=\"Enroll\",'Enrollment Form'!$AL479<>\"\"),\"Y\",\"N\")))","v":""},{"$f":"IF($B472=\"N\",\"\",IF(OR('Enrollment Form'!$B479<>\"Subscriber\",'Enrollment Form'!$C479=\"ROC\"),\"-\",IF(AND('Enrollment Form'!$B479=\"Subscriber\",'Enrollment Form'!$C479=\"Enroll\",'Enrollment Form'!$AP479<>\"\"),\"Y\",\"N\")))","v":""},{"$f":"IF($B472=\"N\",\"\",IF(OR('Enrollment Form'!$B479<>\"Subscriber\",'Enrollment Form'!$C479=\"ROC\"),\"-\",IF(AND('Enrollment Form'!$B479=\"Subscriber\",'Enrollment Form'!$C479=\"Enroll\",'Enrollment Form'!$AQ479<>\"\"),\"Y\",\"N\")))","v":""},{"$f":"IF($B472=\"N\",\"\",IF(OR('Enrollment Form'!$B479<>\"Subscriber\",'Enrollment Form'!$C479=\"ROC\"),\"-\",IF(AND('Enrollment Form'!$B479=\"Subscriber\",'Enrollment Form'!$C479=\"Enroll\",'Enrollment Form'!$AS479<>\"\"),\"Y\",\"N\")))","v":""},{"$f":"IF($B472=\"N\",\"\",IF($Q472=\"-\",\"-\",IF(AND($Q472=\"Y\",'Enrollment Form'!$AS479=\"No\"),\"-\",IF(AND($Q472=\"Y\",'Enrollment Form'!$AS479=\"Yes\",'Enrollment Form'!$AT479<>\"\"),\"Y\",\"N\"))))","v":""},{"$f":"IF($B472=\"N\",\"\",IF(OR('Enrollment Form'!$B479<>\"Subscriber\",'Enrollment Form'!$C479=\"ROC\"),\"-\",IF(AND('Enrollment Form'!$B479=\"Subscriber\",'Enrollment Form'!$C479=\"Enroll\",'Enrollment Form'!$CV479<>\"\"),\"Y\",\"N\")))","v":""},{"$f":"IF($B472=\"N\",\"\",IF($S472=\"-\",\"-\",IF(AND($S472=\"Y\",'Enrollment Form'!$CV479=\"No\"),\"-\",IF(AND($S472=\"Y\",'Enrollment Form'!$CV479=\"Yes\",'Enrollment Form'!$CW479<>\"\"),\"Y\",\"N\"))))","v":""},{"$f":"IF(OR('Enrollment Form'!$AY479=\"Yes\",'Enrollment Form'!$AY479=\"\"),\"-\",IF(OR(AND('Enrollment Form'!$AY479=\"No\",ISERROR(FIND(\"HMO\",VLOOKUP('Enrollment Form'!G479,'Enrollment Form'!H$11:J$1000,3,FALSE),1))=FALSE,COUNTA('Enrollment Form'!$AZ479:$BC479)=4),AND('Enrollment Form'!$AY479=\"No\",ISERROR(FIND(\"HMO\",VLOOKUP('Enrollment Form'!G479,'Enrollment Form'!H$11:J$1000,3,FALSE),1))=FALSE,COUNTA('Enrollment Form'!$BT479:$BW479)=4)),\"Y\",\"N\"))","v":"-"},{"$f":"IF($B472=\"N\",\"\",IF('Enrollment Form'!$B479=\"Subscriber\",\"-\",IF(COUNTA('Enrollment Form'!$BL479,'Enrollment Form'!$BN479)=2,\"Y\",\"N\")))","v":""},{"$f":"IF($B472=\"N\",\"\",IF(OR('Enrollment Form'!$AX479=\"\",'Enrollment Form'!$AX479=\"No\"),\"-\",IF(AND('Enrollment Form'!$AX479=\"Yes\",COUNTA('Enrollment Form'!$CR479)=1),\"Y\",\"N\")))","v":""},{"$f":"IF(OR('Enrollment Form'!$CR479=\"\",'Enrollment Form'!$CR479=\"No\"),\"-\",IF(COUNTA('Enrollment Form'!$CT479:$CU479)=2,\"Y\",\"N\"))","v":"-"},{"$f":"IF($B472=\"N\",\"\",IF(COUNTIF('Enrollment Form'!$DG479:$DP479,\"Other\")=COUNTA('Enrollment Form'!$DK479,'Enrollment Form'!$DH479,'Enrollment Form'!$DN479,'Enrollment Form'!$DQ479),\"Y\",\"N\"))","v":""},{"$f":"IF($B472=\"N\",\"\",IF(OR('Enrollment Form'!B479<>\"Subscriber\",'Enrollment Form'!C479=\"ROC\",COUNTIF('Enrollment Form'!AV479:AW479,\"Yes\")>=1),\"-\",IF(AND('Enrollment Form'!C479=\"Enroll\",COUNTIF('Enrollment Form'!AV479:AW479,\"No\")=2,'Enrollment Form'!AX479=\"\"),\"N\",\"Y\")))","v":""},{"$f":"IF(OR(B472=\"N\",'Enrollment Form'!B479<>\"Subscriber\",'Enrollment Form'!C479=\"ROC\",'Enrollment Form'!O479<>\"Multiple of Salary\"),\"-\",IF(COUNTA('Enrollment Form'!T479:U479)<2,\"N\",\"Y\"))","v":"-"},{"$f":"IF(B472=\"N\",\"\",IF(OR('Enrollment Form'!C479=\"ROC\",'Enrollment Form'!B479<>\"Subscriber\",'Enrollment Form'!O479=\"Waive\",'Enrollment Form'!O479=\"\"),\"-\",IF('Enrollment Form'!P479=\"\",\"N\",\"Y\")))","v":""},{"$f":"IF($B472=\"N\",\"\",IF(AND('Enrollment Form'!$C479=\"ROC\",'Enrollment Form'!$DR479<>\"\"),\"Y\",IF(AND('Enrollment Form'!$C479=\"ROC\",'Enrollment Form'!$DR479=\"\"),\"N\",IF(AND('Enrollment Form'!$C479=\"Enroll\",'Enrollment Form'!$B479=\"Subscriber\",'Enrollment Form'!$CX479=\"No\",'Enrollment Form'!$DR479=\"\"),\"N\",IF(AND('Enrollment Form'!$C479=\"Enroll\",'Enrollment Form'!$B479=\"Subscriber\",'Enrollment Form'!$CX479=\"Yes\"),\"-\",\"Y\")))))","v":""},{"$f":"IF($B472=\"N\",\"\",IF(AND('Enrollment Form'!$C479=\"ROC\",'Enrollment Form'!$DS479<>\"\"),\"Y\",IF(AND('Enrollment Form'!$C479=\"ROC\",'Enrollment Form'!$DS479=\"\"),\"N\",IF(AND('Enrollment Form'!$C479=\"Enroll\",'Enrollment Form'!$B479=\"Subscriber\",'Enrollment Form'!$CX479=\"No\",'Enrollment Form'!$DS479=\"\"),\"N\",IF(AND('Enrollment Form'!$C479=\"Enroll\",'Enrollment Form'!$B479=\"Subscriber\",'Enrollment Form'!$CX479=\"Yes\"),\"-\",\"Y\")))))","v":""},{"$f":"IF('Enrollment Form'!AH479=\"\",\"\",IF(ISERROR(SEARCH(\".\",'Enrollment Form'!AH479,SEARCH(\"@\",'Enrollment Form'!AH479))),\"N\",\"Y\"))","v":""},{"$f":"IF(OR($B472=\"N\",'Enrollment Form'!$G479=\"\"),\"\",IF('Enrollment Form'!$B479<>\"Subscriber\",\"-\",IF(COUNTIF('Enrollment Form'!$AV479:$AW479,\"Yes\")=2,\"N\",\"Y\")))","v":""},{"$f":"IF(OR('Enrollment Form'!$CJ479=\"\",'Enrollment Form'!$CJ479=\"No\"),\"-\",IF(AND('Enrollment Form'!$CJ479=\"Yes\",'Enrollment Form'!$CK479=\"\"),\"N\",\"Y\"))","v":"-"},{"$f":"IF(OR('Enrollment Form'!$CL479=\"\",'Enrollment Form'!$CL479=\"No\"),\"-\",IF(AND('Enrollment Form'!$CL479=\"Yes\",'Enrollment Form'!$CM479=\"\"),\"N\",\"Y\"))","v":"-"},{"$f":"IF(OR('Enrollment Form'!$CN479=\"\",'Enrollment Form'!$CN479=\"No\"),\"-\",IF(AND('Enrollment Form'!$CN479=\"Yes\",'Enrollment Form'!$CO479=\"\"),\"N\",\"Y\"))","v":"-"},{"$f":"IF(OR('Enrollment Form'!$CN479=\"\",'Enrollment Form'!$CN479=\"No\"),\"-\",IF(AND('Enrollment Form'!$CN479=\"Yes\",'Enrollment Form'!$CP479=\"\"),\"N\",\"Y\"))","v":"-"},{"$f":"IF('Enrollment Form'!B479<>\"Subscriber\",\"-\",IF(AND('Enrollment Form'!B479=\"Subscriber\",'Enrollment Form'!C479=\"Enroll\",'Enrollment Form'!AA479=\"\"),\"N\",\"Y\"))","v":"-"},{"$f":"IF(OR('Enrollment Form'!B479=\"Subscriber\",'Enrollment Form'!B479=\"\"),\"-\",IF('Enrollment Form'!BP479=\"\",\"N\",\"Y\"))","v":"-"},{"$f":"IF('Enrollment Form'!B479<>\"Subscriber\",\"-\",IF(AND('Enrollment Form'!B479=\"Subscriber\",'Enrollment Form'!G479=\"\"),\"N\",\"Y\"))","v":"-"},{"$f":"IF('Enrollment Form'!A479=\"\",\"\",IF('Enrollment Form'!B479=\"Subscriber\",\"-\",IF(AND('Enrollment Form'!B479<>\"Subscriber\",'Enrollment Form'!G479='Enrollment Form'!H479),\"N\",\"Y\")))","v":""},0]
[480,{"$f":"IF('Enrollment Form'!$A480<>\"\",\"Y\",\"N\")","v":"N"},{"$f":"IF(AND('Enrollment Form'!$B480=\"\",'Enrollment Form'!$C480<>\"\"),\"N\",IF($B473=\"N\",\"\",\"Y\"))","v":""},{"$f":"IF(OR($B473=\"N\",'Enrollment Form'!G480=\"\"),\"\",IF('Enrollment Form'!$B480<>\"Subscriber\",\"\",IF('Enrollment Form'!$G480='Enrollment Form'!$H480,\"Y\",\"N\")))","v":""},{"$f":"IF($B473=\"N\",\"\",IF(AND(COUNTIFS('Enrollment Form'!$H$11:$H$1000,'Enrollment Form'!$H480,'Enrollment Form'!$B$11:$B$1000,'Enrollment Form'!$B480)>1,'Enrollment Form'!$H480<>\"\"),\"N\",\"Y\"))","v":""},{"$f":"IF($B473=\"N\",\"\",IF(LEN('Enrollment Form'!$Y480)=0,\"\",IF(LEN('Enrollment Form'!$Y480)<>5,\"N\",\"Y\")))","v":""},{"$f":"IF($B473=\"N\",\"\",IF(LEN('Enrollment Form'!$AD480=0),\"\",IF(LEN('Enrollment Form'!$AD480)<>5,\"N\",\"Y\")))","v":""},{"$f":"IF($B473=\"N\",\"\",IF(LEN('Enrollment Form'!$BS480=0),\"\",IF(LEN('Enrollment Form'!$BS480)<>5,\"N\",\"Y\")))","v":""},{"$f":"IF($B473=\"N\",\"\",IF(LEN('Enrollment Form'!$AE480)=0,\"\",IF(LEN('Enrollment Form'!$AE480)<>10,\"N\",\"Y\")))","v":""},{"$f":"IF($B473=\"N\",\"\",IF(LEN('Enrollment Form'!$AF480)=0,\"\",IF(LEN('Enrollment Form'!$AF480)<>10,\"N\",\"Y\")))","v":""},{"$f":"IF('Enrollment Form'!$O480<>\"Graded\",\"-\",IF(AND('Enrollment Form'!$O480=\"Graded\",'Enrollment Form'!$AR480<>\"\"),\"Y\",\"N\"))","v":"-"},{"$f":"IF($B473=\"N\",\"\",IF(OR('Enrollment Form'!$B480<>\"Subscriber\",'Enrollment Form'!$C480=\"ROC\"),\"-\",IF(AND('Enrollment Form'!$B480=\"Subscriber\",'Enrollment Form'!$C480=\"Enroll\",'Enrollment Form'!$AJ480<>\"\"),\"Y\",\"N\")))","v":""},{"$f":"IF($B473=\"N\",\"\",IF(OR('Enrollment Form'!$B480<>\"Subscriber\",'Enrollment Form'!$C480=\"ROC\"),\"-\",IF(AND('Enrollment Form'!$B480=\"Subscriber\",'Enrollment Form'!$C480=\"Enroll\",'Enrollment Form'!$AK480<>\"\"),\"Y\",\"N\")))","v":""},{"$f":"IF($B473=\"N\",\"\",IF(OR('Enrollment Form'!$B480<>\"Subscriber\",'Enrollment Form'!$C480=\"ROC\"),\"-\",IF(AND('Enrollment Form'!$B480=\"Subscriber\",'Enrollment Form'!$C480=\"Enroll\",'Enrollment Form'!$AL480<>\"\"),\"Y\",\"N\")))","v":""},{"$f":"IF($B473=\"N\",\"\",IF(OR('Enrollment Form'!$B480<>\"Subscriber\",'Enrollment Form'!$C480=\"ROC\"),\"-\",IF(AND('Enrollment Form'!$B480=\"Subscriber\",'Enrollment Form'!$C480=\"Enroll\",'Enrollment Form'!$AP480<>\"\"),\"Y\",\"N\")))","v":""},{"$f":"IF($B473=\"N\",\"\",IF(OR('Enrollment Form'!$B480<>\"Subscriber\",'Enrollment Form'!$C480=\"ROC\"),\"-\",IF(AND('Enrollment Form'!$B480=\"Subscriber\",'Enrollment Form'!$C480=\"Enroll\",'Enrollment Form'!$AQ480<>\"\"),\"Y\",\"N\")))","v":""},{"$f":"IF($B473=\"N\",\"\",IF(OR('Enrollment Form'!$B480<>\"Subscriber\",'Enrollment Form'!$C480=\"ROC\"),\"-\",IF(AND('Enrollment Form'!$B480=\"Subscriber\",'Enrollment Form'!$C480=\"Enroll\",'Enrollment Form'!$AS480<>\"\"),\"Y\",\"N\")))","v":""},{"$f":"IF($B473=\"N\",\"\",IF($Q473=\"-\",\"-\",IF(AND($Q473=\"Y\",'Enrollment Form'!$AS480=\"No\"),\"-\",IF(AND($Q473=\"Y\",'Enrollment Form'!$AS480=\"Yes\",'Enrollment Form'!$AT480<>\"\"),\"Y\",\"N\"))))","v":""},{"$f":"IF($B473=\"N\",\"\",IF(OR('Enrollment Form'!$B480<>\"Subscriber\",'Enrollment Form'!$C480=\"ROC\"),\"-\",IF(AND('Enrollment Form'!$B480=\"Subscriber\",'Enrollment Form'!$C480=\"Enroll\",'Enrollment Form'!$CV480<>\"\"),\"Y\",\"N\")))","v":""},{"$f":"IF($B473=\"N\",\"\",IF($S473=\"-\",\"-\",IF(AND($S473=\"Y\",'Enrollment Form'!$CV480=\"No\"),\"-\",IF(AND($S473=\"Y\",'Enrollment Form'!$CV480=\"Yes\",'Enrollment Form'!$CW480<>\"\"),\"Y\",\"N\"))))","v":""},{"$f":"IF(OR('Enrollment Form'!$AY480=\"Yes\",'Enrollment Form'!$AY480=\"\"),\"-\",IF(OR(AND('Enrollment Form'!$AY480=\"No\",ISERROR(FIND(\"HMO\",VLOOKUP('Enrollment Form'!G480,'Enrollment Form'!H$11:J$1000,3,FALSE),1))=FALSE,COUNTA('Enrollment Form'!$AZ480:$BC480)=4),AND('Enrollment Form'!$AY480=\"No\",ISERROR(FIND(\"HMO\",VLOOKUP('Enrollment Form'!G480,'Enrollment Form'!H$11:J$1000,3,FALSE),1))=FALSE,COUNTA('Enrollment Form'!$BT480:$BW480)=4)),\"Y\",\"N\"))","v":"-"},{"$f":"IF($B473=\"N\",\"\",IF('Enrollment Form'!$B480=\"Subscriber\",\"-\",IF(COUNTA('Enrollment Form'!$BL480,'Enrollment Form'!$BN480)=2,\"Y\",\"N\")))","v":""},{"$f":"IF($B473=\"N\",\"\",IF(OR('Enrollment Form'!$AX480=\"\",'Enrollment Form'!$AX480=\"No\"),\"-\",IF(AND('Enrollment Form'!$AX480=\"Yes\",COUNTA('Enrollment Form'!$CR480)=1),\"Y\",\"N\")))","v":""},{"$f":"IF(OR('Enrollment Form'!$CR480=\"\",'Enrollment Form'!$CR480=\"No\"),\"-\",IF(COUNTA('Enrollment Form'!$CT480:$CU480)=2,\"Y\",\"N\"))","v":"-"},{"$f":"IF($B473=\"N\",\"\",IF(COUNTIF('Enrollment Form'!$DG480:$DP480,\"Other\")=COUNTA('Enrollment Form'!$DK480,'Enrollment Form'!$DH480,'Enrollment Form'!$DN480,'Enrollment Form'!$DQ480),\"Y\",\"N\"))","v":""},{"$f":"IF($B473=\"N\",\"\",IF(OR('Enrollment Form'!B480<>\"Subscriber\",'Enrollment Form'!C480=\"ROC\",COUNTIF('Enrollment Form'!AV480:AW480,\"Yes\")>=1),\"-\",IF(AND('Enrollment Form'!C480=\"Enroll\",COUNTIF('Enrollment Form'!AV480:AW480,\"No\")=2,'Enrollment Form'!AX480=\"\"),\"N\",\"Y\")))","v":""},{"$f":"IF(OR(B473=\"N\",'Enrollment Form'!B480<>\"Subscriber\",'Enrollment Form'!C480=\"ROC\",'Enrollment Form'!O480<>\"Multiple of Salary\"),\"-\",IF(COUNTA('Enrollment Form'!T480:U480)<2,\"N\",\"Y\"))","v":"-"},{"$f":"IF(B473=\"N\",\"\",IF(OR('Enrollment Form'!C480=\"ROC\",'Enrollment Form'!B480<>\"Subscriber\",'Enrollment Form'!O480=\"Waive\",'Enrollment Form'!O480=\"\"),\"-\",IF('Enrollment Form'!P480=\"\",\"N\",\"Y\")))","v":""},{"$f":"IF($B473=\"N\",\"\",IF(AND('Enrollment Form'!$C480=\"ROC\",'Enrollment Form'!$DR480<>\"\"),\"Y\",IF(AND('Enrollment Form'!$C480=\"ROC\",'Enrollment Form'!$DR480=\"\"),\"N\",IF(AND('Enrollment Form'!$C480=\"Enroll\",'Enrollment Form'!$B480=\"Subscriber\",'Enrollment Form'!$CX480=\"No\",'Enrollment Form'!$DR480=\"\"),\"N\",IF(AND('Enrollment Form'!$C480=\"Enroll\",'Enrollment Form'!$B480=\"Subscriber\",'Enrollment Form'!$CX480=\"Yes\"),\"-\",\"Y\")))))","v":""},{"$f":"IF($B473=\"N\",\"\",IF(AND('Enrollment Form'!$C480=\"ROC\",'Enrollment Form'!$DS480<>\"\"),\"Y\",IF(AND('Enrollment Form'!$C480=\"ROC\",'Enrollment Form'!$DS480=\"\"),\"N\",IF(AND('Enrollment Form'!$C480=\"Enroll\",'Enrollment Form'!$B480=\"Subscriber\",'Enrollment Form'!$CX480=\"No\",'Enrollment Form'!$DS480=\"\"),\"N\",IF(AND('Enrollment Form'!$C480=\"Enroll\",'Enrollment Form'!$B480=\"Subscriber\",'Enrollment Form'!$CX480=\"Yes\"),\"-\",\"Y\")))))","v":""},{"$f":"IF('Enrollment Form'!AH480=\"\",\"\",IF(ISERROR(SEARCH(\".\",'Enrollment Form'!AH480,SEARCH(\"@\",'Enrollment Form'!AH480))),\"N\",\"Y\"))","v":""},{"$f":"IF(OR($B473=\"N\",'Enrollment Form'!$G480=\"\"),\"\",IF('Enrollment Form'!$B480<>\"Subscriber\",\"-\",IF(COUNTIF('Enrollment Form'!$AV480:$AW480,\"Yes\")=2,\"N\",\"Y\")))","v":""},{"$f":"IF(OR('Enrollment Form'!$CJ480=\"\",'Enrollment Form'!$CJ480=\"No\"),\"-\",IF(AND('Enrollment Form'!$CJ480=\"Yes\",'Enrollment Form'!$CK480=\"\"),\"N\",\"Y\"))","v":"-"},{"$f":"IF(OR('Enrollment Form'!$CL480=\"\",'Enrollment Form'!$CL480=\"No\"),\"-\",IF(AND('Enrollment Form'!$CL480=\"Yes\",'Enrollment Form'!$CM480=\"\"),\"N\",\"Y\"))","v":"-"},{"$f":"IF(OR('Enrollment Form'!$CN480=\"\",'Enrollment Form'!$CN480=\"No\"),\"-\",IF(AND('Enrollment Form'!$CN480=\"Yes\",'Enrollment Form'!$CO480=\"\"),\"N\",\"Y\"))","v":"-"},{"$f":"IF(OR('Enrollment Form'!$CN480=\"\",'Enrollment Form'!$CN480=\"No\"),\"-\",IF(AND('Enrollment Form'!$CN480=\"Yes\",'Enrollment Form'!$CP480=\"\"),\"N\",\"Y\"))","v":"-"},{"$f":"IF('Enrollment Form'!B480<>\"Subscriber\",\"-\",IF(AND('Enrollment Form'!B480=\"Subscriber\",'Enrollment Form'!C480=\"Enroll\",'Enrollment Form'!AA480=\"\"),\"N\",\"Y\"))","v":"-"},{"$f":"IF(OR('Enrollment Form'!B480=\"Subscriber\",'Enrollment Form'!B480=\"\"),\"-\",IF('Enrollment Form'!BP480=\"\",\"N\",\"Y\"))","v":"-"},{"$f":"IF('Enrollment Form'!B480<>\"Subscriber\",\"-\",IF(AND('Enrollment Form'!B480=\"Subscriber\",'Enrollment Form'!G480=\"\"),\"N\",\"Y\"))","v":"-"},{"$f":"IF('Enrollment Form'!A480=\"\",\"\",IF('Enrollment Form'!B480=\"Subscriber\",\"-\",IF(AND('Enrollment Form'!B480<>\"Subscriber\",'Enrollment Form'!G480='Enrollment Form'!H480),\"N\",\"Y\")))","v":""},0]
[481,{"$f":"IF('Enrollment Form'!$A481<>\"\",\"Y\",\"N\")","v":"N"},{"$f":"IF(AND('Enrollment Form'!$B481=\"\",'Enrollment Form'!$C481<>\"\"),\"N\",IF($B474=\"N\",\"\",\"Y\"))","v":""},{"$f":"IF(OR($B474=\"N\",'Enrollment Form'!G481=\"\"),\"\",IF('Enrollment Form'!$B481<>\"Subscriber\",\"\",IF('Enrollment Form'!$G481='Enrollment Form'!$H481,\"Y\",\"N\")))","v":""},{"$f":"IF($B474=\"N\",\"\",IF(AND(COUNTIFS('Enrollment Form'!$H$11:$H$1000,'Enrollment Form'!$H481,'Enrollment Form'!$B$11:$B$1000,'Enrollment Form'!$B481)>1,'Enrollment Form'!$H481<>\"\"),\"N\",\"Y\"))","v":""},{"$f":"IF($B474=\"N\",\"\",IF(LEN('Enrollment Form'!$Y481)=0,\"\",IF(LEN('Enrollment Form'!$Y481)<>5,\"N\",\"Y\")))","v":""},{"$f":"IF($B474=\"N\",\"\",IF(LEN('Enrollment Form'!$AD481=0),\"\",IF(LEN('Enrollment Form'!$AD481)<>5,\"N\",\"Y\")))","v":""},{"$f":"IF($B474=\"N\",\"\",IF(LEN('Enrollment Form'!$BS481=0),\"\",IF(LEN('Enrollment Form'!$BS481)<>5,\"N\",\"Y\")))","v":""},{"$f":"IF($B474=\"N\",\"\",IF(LEN('Enrollment Form'!$AE481)=0,\"\",IF(LEN('Enrollment Form'!$AE481)<>10,\"N\",\"Y\")))","v":""},{"$f":"IF($B474=\"N\",\"\",IF(LEN('Enrollment Form'!$AF481)=0,\"\",IF(LEN('Enrollment Form'!$AF481)<>10,\"N\",\"Y\")))","v":""},{"$f":"IF('Enrollment Form'!$O481<>\"Graded\",\"-\",IF(AND('Enrollment Form'!$O481=\"Graded\",'Enrollment Form'!$AR481<>\"\"),\"Y\",\"N\"))","v":"-"},{"$f":"IF($B474=\"N\",\"\",IF(OR('Enrollment Form'!$B481<>\"Subscriber\",'Enrollment Form'!$C481=\"ROC\"),\"-\",IF(AND('Enrollment Form'!$B481=\"Subscriber\",'Enrollment Form'!$C481=\"Enroll\",'Enrollment Form'!$AJ481<>\"\"),\"Y\",\"N\")))","v":""},{"$f":"IF($B474=\"N\",\"\",IF(OR('Enrollment Form'!$B481<>\"Subscriber\",'Enrollment Form'!$C481=\"ROC\"),\"-\",IF(AND('Enrollment Form'!$B481=\"Subscriber\",'Enrollment Form'!$C481=\"Enroll\",'Enrollment Form'!$AK481<>\"\"),\"Y\",\"N\")))","v":""},{"$f":"IF($B474=\"N\",\"\",IF(OR('Enrollment Form'!$B481<>\"Subscriber\",'Enrollment Form'!$C481=\"ROC\"),\"-\",IF(AND('Enrollment Form'!$B481=\"Subscriber\",'Enrollment Form'!$C481=\"Enroll\",'Enrollment Form'!$AL481<>\"\"),\"Y\",\"N\")))","v":""},{"$f":"IF($B474=\"N\",\"\",IF(OR('Enrollment Form'!$B481<>\"Subscriber\",'Enrollment Form'!$C481=\"ROC\"),\"-\",IF(AND('Enrollment Form'!$B481=\"Subscriber\",'Enrollment Form'!$C481=\"Enroll\",'Enrollment Form'!$AP481<>\"\"),\"Y\",\"N\")))","v":""},{"$f":"IF($B474=\"N\",\"\",IF(OR('Enrollment Form'!$B481<>\"Subscriber\",'Enrollment Form'!$C481=\"ROC\"),\"-\",IF(AND('Enrollment Form'!$B481=\"Subscriber\",'Enrollment Form'!$C481=\"Enroll\",'Enrollment Form'!$AQ481<>\"\"),\"Y\",\"N\")))","v":""},{"$f":"IF($B474=\"N\",\"\",IF(OR('Enrollment Form'!$B481<>\"Subscriber\",'Enrollment Form'!$C481=\"ROC\"),\"-\",IF(AND('Enrollment Form'!$B481=\"Subscriber\",'Enrollment Form'!$C481=\"Enroll\",'Enrollment Form'!$AS481<>\"\"),\"Y\",\"N\")))","v":""},{"$f":"IF($B474=\"N\",\"\",IF($Q474=\"-\",\"-\",IF(AND($Q474=\"Y\",'Enrollment Form'!$AS481=\"No\"),\"-\",IF(AND($Q474=\"Y\",'Enrollment Form'!$AS481=\"Yes\",'Enrollment Form'!$AT481<>\"\"),\"Y\",\"N\"))))","v":""},{"$f":"IF($B474=\"N\",\"\",IF(OR('Enrollment Form'!$B481<>\"Subscriber\",'Enrollment Form'!$C481=\"ROC\"),\"-\",IF(AND('Enrollment Form'!$B481=\"Subscriber\",'Enrollment Form'!$C481=\"Enroll\",'Enrollment Form'!$CV481<>\"\"),\"Y\",\"N\")))","v":""},{"$f":"IF($B474=\"N\",\"\",IF($S474=\"-\",\"-\",IF(AND($S474=\"Y\",'Enrollment Form'!$CV481=\"No\"),\"-\",IF(AND($S474=\"Y\",'Enrollment Form'!$CV481=\"Yes\",'Enrollment Form'!$CW481<>\"\"),\"Y\",\"N\"))))","v":""},{"$f":"IF(OR('Enrollment Form'!$AY481=\"Yes\",'Enrollment Form'!$AY481=\"\"),\"-\",IF(OR(AND('Enrollment Form'!$AY481=\"No\",ISERROR(FIND(\"HMO\",VLOOKUP('Enrollment Form'!G481,'Enrollment Form'!H$11:J$1000,3,FALSE),1))=FALSE,COUNTA('Enrollment Form'!$AZ481:$BC481)=4),AND('Enrollment Form'!$AY481=\"No\",ISERROR(FIND(\"HMO\",VLOOKUP('Enrollment Form'!G481,'Enrollment Form'!H$11:J$1000,3,FALSE),1))=FALSE,COUNTA('Enrollment Form'!$BT481:$BW481)=4)),\"Y\",\"N\"))","v":"-"},{"$f":"IF($B474=\"N\",\"\",IF('Enrollment Form'!$B481=\"Subscriber\",\"-\",IF(COUNTA('Enrollment Form'!$BL481,'Enrollment Form'!$BN481)=2,\"Y\",\"N\")))","v":""},{"$f":"IF($B474=\"N\",\"\",IF(OR('Enrollment Form'!$AX481=\"\",'Enrollment Form'!$AX481=\"No\"),\"-\",IF(AND('Enrollment Form'!$AX481=\"Yes\",COUNTA('Enrollment Form'!$CR481)=1),\"Y\",\"N\")))","v":""},{"$f":"IF(OR('Enrollment Form'!$CR481=\"\",'Enrollment Form'!$CR481=\"No\"),\"-\",IF(COUNTA('Enrollment Form'!$CT481:$CU481)=2,\"Y\",\"N\"))","v":"-"},{"$f":"IF($B474=\"N\",\"\",IF(COUNTIF('Enrollment Form'!$DG481:$DP481,\"Other\")=COUNTA('Enrollment Form'!$DK481,'Enrollment Form'!$DH481,'Enrollment Form'!$DN481,'Enrollment Form'!$DQ481),\"Y\",\"N\"))","v":""},{"$f":"IF($B474=\"N\",\"\",IF(OR('Enrollment Form'!B481<>\"Subscriber\",'Enrollment Form'!C481=\"ROC\",COUNTIF('Enrollment Form'!AV481:AW481,\"Yes\")>=1),\"-\",IF(AND('Enrollment Form'!C481=\"Enroll\",COUNTIF('Enrollment Form'!AV481:AW481,\"No\")=2,'Enrollment Form'!AX481=\"\"),\"N\",\"Y\")))","v":""},{"$f":"IF(OR(B474=\"N\",'Enrollment Form'!B481<>\"Subscriber\",'Enrollment Form'!C481=\"ROC\",'Enrollment Form'!O481<>\"Multiple of Salary\"),\"-\",IF(COUNTA('Enrollment Form'!T481:U481)<2,\"N\",\"Y\"))","v":"-"},{"$f":"IF(B474=\"N\",\"\",IF(OR('Enrollment Form'!C481=\"ROC\",'Enrollment Form'!B481<>\"Subscriber\",'Enrollment Form'!O481=\"Waive\",'Enrollment Form'!O481=\"\"),\"-\",IF('Enrollment Form'!P481=\"\",\"N\",\"Y\")))","v":""},{"$f":"IF($B474=\"N\",\"\",IF(AND('Enrollment Form'!$C481=\"ROC\",'Enrollment Form'!$DR481<>\"\"),\"Y\",IF(AND('Enrollment Form'!$C481=\"ROC\",'Enrollment Form'!$DR481=\"\"),\"N\",IF(AND('Enrollment Form'!$C481=\"Enroll\",'Enrollment Form'!$B481=\"Subscriber\",'Enrollment Form'!$CX481=\"No\",'Enrollment Form'!$DR481=\"\"),\"N\",IF(AND('Enrollment Form'!$C481=\"Enroll\",'Enrollment Form'!$B481=\"Subscriber\",'Enrollment Form'!$CX481=\"Yes\"),\"-\",\"Y\")))))","v":""},{"$f":"IF($B474=\"N\",\"\",IF(AND('Enrollment Form'!$C481=\"ROC\",'Enrollment Form'!$DS481<>\"\"),\"Y\",IF(AND('Enrollment Form'!$C481=\"ROC\",'Enrollment Form'!$DS481=\"\"),\"N\",IF(AND('Enrollment Form'!$C481=\"Enroll\",'Enrollment Form'!$B481=\"Subscriber\",'Enrollment Form'!$CX481=\"No\",'Enrollment Form'!$DS481=\"\"),\"N\",IF(AND('Enrollment Form'!$C481=\"Enroll\",'Enrollment Form'!$B481=\"Subscriber\",'Enrollment Form'!$CX481=\"Yes\"),\"-\",\"Y\")))))","v":""},{"$f":"IF('Enrollment Form'!AH481=\"\",\"\",IF(ISERROR(SEARCH(\".\",'Enrollment Form'!AH481,SEARCH(\"@\",'Enrollment Form'!AH481))),\"N\",\"Y\"))","v":""},{"$f":"IF(OR($B474=\"N\",'Enrollment Form'!$G481=\"\"),\"\",IF('Enrollment Form'!$B481<>\"Subscriber\",\"-\",IF(COUNTIF('Enrollment Form'!$AV481:$AW481,\"Yes\")=2,\"N\",\"Y\")))","v":""},{"$f":"IF(OR('Enrollment Form'!$CJ481=\"\",'Enrollment Form'!$CJ481=\"No\"),\"-\",IF(AND('Enrollment Form'!$CJ481=\"Yes\",'Enrollment Form'!$CK481=\"\"),\"N\",\"Y\"))","v":"-"},{"$f":"IF(OR('Enrollment Form'!$CL481=\"\",'Enrollment Form'!$CL481=\"No\"),\"-\",IF(AND('Enrollment Form'!$CL481=\"Yes\",'Enrollment Form'!$CM481=\"\"),\"N\",\"Y\"))","v":"-"},{"$f":"IF(OR('Enrollment Form'!$CN481=\"\",'Enrollment Form'!$CN481=\"No\"),\"-\",IF(AND('Enrollment Form'!$CN481=\"Yes\",'Enrollment Form'!$CO481=\"\"),\"N\",\"Y\"))","v":"-"},{"$f":"IF(OR('Enrollment Form'!$CN481=\"\",'Enrollment Form'!$CN481=\"No\"),\"-\",IF(AND('Enrollment Form'!$CN481=\"Yes\",'Enrollment Form'!$CP481=\"\"),\"N\",\"Y\"))","v":"-"},{"$f":"IF('Enrollment Form'!B481<>\"Subscriber\",\"-\",IF(AND('Enrollment Form'!B481=\"Subscriber\",'Enrollment Form'!C481=\"Enroll\",'Enrollment Form'!AA481=\"\"),\"N\",\"Y\"))","v":"-"},{"$f":"IF(OR('Enrollment Form'!B481=\"Subscriber\",'Enrollment Form'!B481=\"\"),\"-\",IF('Enrollment Form'!BP481=\"\",\"N\",\"Y\"))","v":"-"},{"$f":"IF('Enrollment Form'!B481<>\"Subscriber\",\"-\",IF(AND('Enrollment Form'!B481=\"Subscriber\",'Enrollment Form'!G481=\"\"),\"N\",\"Y\"))","v":"-"},{"$f":"IF('Enrollment Form'!A481=\"\",\"\",IF('Enrollment Form'!B481=\"Subscriber\",\"-\",IF(AND('Enrollment Form'!B481<>\"Subscriber\",'Enrollment Form'!G481='Enrollment Form'!H481),\"N\",\"Y\")))","v":""},0]
[482,{"$f":"IF('Enrollment Form'!$A482<>\"\",\"Y\",\"N\")","v":"N"},{"$f":"IF(AND('Enrollment Form'!$B482=\"\",'Enrollment Form'!$C482<>\"\"),\"N\",IF($B475=\"N\",\"\",\"Y\"))","v":""},{"$f":"IF(OR($B475=\"N\",'Enrollment Form'!G482=\"\"),\"\",IF('Enrollment Form'!$B482<>\"Subscriber\",\"\",IF('Enrollment Form'!$G482='Enrollment Form'!$H482,\"Y\",\"N\")))","v":""},{"$f":"IF($B475=\"N\",\"\",IF(AND(COUNTIFS('Enrollment Form'!$H$11:$H$1000,'Enrollment Form'!$H482,'Enrollment Form'!$B$11:$B$1000,'Enrollment Form'!$B482)>1,'Enrollment Form'!$H482<>\"\"),\"N\",\"Y\"))","v":""},{"$f":"IF($B475=\"N\",\"\",IF(LEN('Enrollment Form'!$Y482)=0,\"\",IF(LEN('Enrollment Form'!$Y482)<>5,\"N\",\"Y\")))","v":""},{"$f":"IF($B475=\"N\",\"\",IF(LEN('Enrollment Form'!$AD482=0),\"\",IF(LEN('Enrollment Form'!$AD482)<>5,\"N\",\"Y\")))","v":""},{"$f":"IF($B475=\"N\",\"\",IF(LEN('Enrollment Form'!$BS482=0),\"\",IF(LEN('Enrollment Form'!$BS482)<>5,\"N\",\"Y\")))","v":""},{"$f":"IF($B475=\"N\",\"\",IF(LEN('Enrollment Form'!$AE482)=0,\"\",IF(LEN('Enrollment Form'!$AE482)<>10,\"N\",\"Y\")))","v":""},{"$f":"IF($B475=\"N\",\"\",IF(LEN('Enrollment Form'!$AF482)=0,\"\",IF(LEN('Enrollment Form'!$AF482)<>10,\"N\",\"Y\")))","v":""},{"$f":"IF('Enrollment Form'!$O482<>\"Graded\",\"-\",IF(AND('Enrollment Form'!$O482=\"Graded\",'Enrollment Form'!$AR482<>\"\"),\"Y\",\"N\"))","v":"-"},{"$f":"IF($B475=\"N\",\"\",IF(OR('Enrollment Form'!$B482<>\"Subscriber\",'Enrollment Form'!$C482=\"ROC\"),\"-\",IF(AND('Enrollment Form'!$B482=\"Subscriber\",'Enrollment Form'!$C482=\"Enroll\",'Enrollment Form'!$AJ482<>\"\"),\"Y\",\"N\")))","v":""},{"$f":"IF($B475=\"N\",\"\",IF(OR('Enrollment Form'!$B482<>\"Subscriber\",'Enrollment Form'!$C482=\"ROC\"),\"-\",IF(AND('Enrollment Form'!$B482=\"Subscriber\",'Enrollment Form'!$C482=\"Enroll\",'Enrollment Form'!$AK482<>\"\"),\"Y\",\"N\")))","v":""},{"$f":"IF($B475=\"N\",\"\",IF(OR('Enrollment Form'!$B482<>\"Subscriber\",'Enrollment Form'!$C482=\"ROC\"),\"-\",IF(AND('Enrollment Form'!$B482=\"Subscriber\",'Enrollment Form'!$C482=\"Enroll\",'Enrollment Form'!$AL482<>\"\"),\"Y\",\"N\")))","v":""},{"$f":"IF($B475=\"N\",\"\",IF(OR('Enrollment Form'!$B482<>\"Subscriber\",'Enrollment Form'!$C482=\"ROC\"),\"-\",IF(AND('Enrollment Form'!$B482=\"Subscriber\",'Enrollment Form'!$C482=\"Enroll\",'Enrollment Form'!$AP482<>\"\"),\"Y\",\"N\")))","v":""},{"$f":"IF($B475=\"N\",\"\",IF(OR('Enrollment Form'!$B482<>\"Subscriber\",'Enrollment Form'!$C482=\"ROC\"),\"-\",IF(AND('Enrollment Form'!$B482=\"Subscriber\",'Enrollment Form'!$C482=\"Enroll\",'Enrollment Form'!$AQ482<>\"\"),\"Y\",\"N\")))","v":""},{"$f":"IF($B475=\"N\",\"\",IF(OR('Enrollment Form'!$B482<>\"Subscriber\",'Enrollment Form'!$C482=\"ROC\"),\"-\",IF(AND('Enrollment Form'!$B482=\"Subscriber\",'Enrollment Form'!$C482=\"Enroll\",'Enrollment Form'!$AS482<>\"\"),\"Y\",\"N\")))","v":""},{"$f":"IF($B475=\"N\",\"\",IF($Q475=\"-\",\"-\",IF(AND($Q475=\"Y\",'Enrollment Form'!$AS482=\"No\"),\"-\",IF(AND($Q475=\"Y\",'Enrollment Form'!$AS482=\"Yes\",'Enrollment Form'!$AT482<>\"\"),\"Y\",\"N\"))))","v":""},{"$f":"IF($B475=\"N\",\"\",IF(OR('Enrollment Form'!$B482<>\"Subscriber\",'Enrollment Form'!$C482=\"ROC\"),\"-\",IF(AND('Enrollment Form'!$B482=\"Subscriber\",'Enrollment Form'!$C482=\"Enroll\",'Enrollment Form'!$CV482<>\"\"),\"Y\",\"N\")))","v":""},{"$f":"IF($B475=\"N\",\"\",IF($S475=\"-\",\"-\",IF(AND($S475=\"Y\",'Enrollment Form'!$CV482=\"No\"),\"-\",IF(AND($S475=\"Y\",'Enrollment Form'!$CV482=\"Yes\",'Enrollment Form'!$CW482<>\"\"),\"Y\",\"N\"))))","v":""},{"$f":"IF(OR('Enrollment Form'!$AY482=\"Yes\",'Enrollment Form'!$AY482=\"\"),\"-\",IF(OR(AND('Enrollment Form'!$AY482=\"No\",ISERROR(FIND(\"HMO\",VLOOKUP('Enrollment Form'!G482,'Enrollment Form'!H$11:J$1000,3,FALSE),1))=FALSE,COUNTA('Enrollment Form'!$AZ482:$BC482)=4),AND('Enrollment Form'!$AY482=\"No\",ISERROR(FIND(\"HMO\",VLOOKUP('Enrollment Form'!G482,'Enrollment Form'!H$11:J$1000,3,FALSE),1))=FALSE,COUNTA('Enrollment Form'!$BT482:$BW482)=4)),\"Y\",\"N\"))","v":"-"},{"$f":"IF($B475=\"N\",\"\",IF('Enrollment Form'!$B482=\"Subscriber\",\"-\",IF(COUNTA('Enrollment Form'!$BL482,'Enrollment Form'!$BN482)=2,\"Y\",\"N\")))","v":""},{"$f":"IF($B475=\"N\",\"\",IF(OR('Enrollment Form'!$AX482=\"\",'Enrollment Form'!$AX482=\"No\"),\"-\",IF(AND('Enrollment Form'!$AX482=\"Yes\",COUNTA('Enrollment Form'!$CR482)=1),\"Y\",\"N\")))","v":""},{"$f":"IF(OR('Enrollment Form'!$CR482=\"\",'Enrollment Form'!$CR482=\"No\"),\"-\",IF(COUNTA('Enrollment Form'!$CT482:$CU482)=2,\"Y\",\"N\"))","v":"-"},{"$f":"IF($B475=\"N\",\"\",IF(COUNTIF('Enrollment Form'!$DG482:$DP482,\"Other\")=COUNTA('Enrollment Form'!$DK482,'Enrollment Form'!$DH482,'Enrollment Form'!$DN482,'Enrollment Form'!$DQ482),\"Y\",\"N\"))","v":""},{"$f":"IF($B475=\"N\",\"\",IF(OR('Enrollment Form'!B482<>\"Subscriber\",'Enrollment Form'!C482=\"ROC\",COUNTIF('Enrollment Form'!AV482:AW482,\"Yes\")>=1),\"-\",IF(AND('Enrollment Form'!C482=\"Enroll\",COUNTIF('Enrollment Form'!AV482:AW482,\"No\")=2,'Enrollment Form'!AX482=\"\"),\"N\",\"Y\")))","v":""},{"$f":"IF(OR(B475=\"N\",'Enrollment Form'!B482<>\"Subscriber\",'Enrollment Form'!C482=\"ROC\",'Enrollment Form'!O482<>\"Multiple of Salary\"),\"-\",IF(COUNTA('Enrollment Form'!T482:U482)<2,\"N\",\"Y\"))","v":"-"},{"$f":"IF(B475=\"N\",\"\",IF(OR('Enrollment Form'!C482=\"ROC\",'Enrollment Form'!B482<>\"Subscriber\",'Enrollment Form'!O482=\"Waive\",'Enrollment Form'!O482=\"\"),\"-\",IF('Enrollment Form'!P482=\"\",\"N\",\"Y\")))","v":""},{"$f":"IF($B475=\"N\",\"\",IF(AND('Enrollment Form'!$C482=\"ROC\",'Enrollment Form'!$DR482<>\"\"),\"Y\",IF(AND('Enrollment Form'!$C482=\"ROC\",'Enrollment Form'!$DR482=\"\"),\"N\",IF(AND('Enrollment Form'!$C482=\"Enroll\",'Enrollment Form'!$B482=\"Subscriber\",'Enrollment Form'!$CX482=\"No\",'Enrollment Form'!$DR482=\"\"),\"N\",IF(AND('Enrollment Form'!$C482=\"Enroll\",'Enrollment Form'!$B482=\"Subscriber\",'Enrollment Form'!$CX482=\"Yes\"),\"-\",\"Y\")))))","v":""},{"$f":"IF($B475=\"N\",\"\",IF(AND('Enrollment Form'!$C482=\"ROC\",'Enrollment Form'!$DS482<>\"\"),\"Y\",IF(AND('Enrollment Form'!$C482=\"ROC\",'Enrollment Form'!$DS482=\"\"),\"N\",IF(AND('Enrollment Form'!$C482=\"Enroll\",'Enrollment Form'!$B482=\"Subscriber\",'Enrollment Form'!$CX482=\"No\",'Enrollment Form'!$DS482=\"\"),\"N\",IF(AND('Enrollment Form'!$C482=\"Enroll\",'Enrollment Form'!$B482=\"Subscriber\",'Enrollment Form'!$CX482=\"Yes\"),\"-\",\"Y\")))))","v":""},{"$f":"IF('Enrollment Form'!AH482=\"\",\"\",IF(ISERROR(SEARCH(\".\",'Enrollment Form'!AH482,SEARCH(\"@\",'Enrollment Form'!AH482))),\"N\",\"Y\"))","v":""},{"$f":"IF(OR($B475=\"N\",'Enrollment Form'!$G482=\"\"),\"\",IF('Enrollment Form'!$B482<>\"Subscriber\",\"-\",IF(COUNTIF('Enrollment Form'!$AV482:$AW482,\"Yes\")=2,\"N\",\"Y\")))","v":""},{"$f":"IF(OR('Enrollment Form'!$CJ482=\"\",'Enrollment Form'!$CJ482=\"No\"),\"-\",IF(AND('Enrollment Form'!$CJ482=\"Yes\",'Enrollment Form'!$CK482=\"\"),\"N\",\"Y\"))","v":"-"},{"$f":"IF(OR('Enrollment Form'!$CL482=\"\",'Enrollment Form'!$CL482=\"No\"),\"-\",IF(AND('Enrollment Form'!$CL482=\"Yes\",'Enrollment Form'!$CM482=\"\"),\"N\",\"Y\"))","v":"-"},{"$f":"IF(OR('Enrollment Form'!$CN482=\"\",'Enrollment Form'!$CN482=\"No\"),\"-\",IF(AND('Enrollment Form'!$CN482=\"Yes\",'Enrollment Form'!$CO482=\"\"),\"N\",\"Y\"))","v":"-"},{"$f":"IF(OR('Enrollment Form'!$CN482=\"\",'Enrollment Form'!$CN482=\"No\"),\"-\",IF(AND('Enrollment Form'!$CN482=\"Yes\",'Enrollment Form'!$CP482=\"\"),\"N\",\"Y\"))","v":"-"},{"$f":"IF('Enrollment Form'!B482<>\"Subscriber\",\"-\",IF(AND('Enrollment Form'!B482=\"Subscriber\",'Enrollment Form'!C482=\"Enroll\",'Enrollment Form'!AA482=\"\"),\"N\",\"Y\"))","v":"-"},{"$f":"IF(OR('Enrollment Form'!B482=\"Subscriber\",'Enrollment Form'!B482=\"\"),\"-\",IF('Enrollment Form'!BP482=\"\",\"N\",\"Y\"))","v":"-"},{"$f":"IF('Enrollment Form'!B482<>\"Subscriber\",\"-\",IF(AND('Enrollment Form'!B482=\"Subscriber\",'Enrollment Form'!G482=\"\"),\"N\",\"Y\"))","v":"-"},{"$f":"IF('Enrollment Form'!A482=\"\",\"\",IF('Enrollment Form'!B482=\"Subscriber\",\"-\",IF(AND('Enrollment Form'!B482<>\"Subscriber\",'Enrollment Form'!G482='Enrollment Form'!H482),\"N\",\"Y\")))","v":""},0]
[483,{"$f":"IF('Enrollment Form'!$A483<>\"\",\"Y\",\"N\")","v":"N"},{"$f":"IF(AND('Enrollment Form'!$B483=\"\",'Enrollment Form'!$C483<>\"\"),\"N\",IF($B476=\"N\",\"\",\"Y\"))","v":""},{"$f":"IF(OR($B476=\"N\",'Enrollment Form'!G483=\"\"),\"\",IF('Enrollment Form'!$B483<>\"Subscriber\",\"\",IF('Enrollment Form'!$G483='Enrollment Form'!$H483,\"Y\",\"N\")))","v":""},{"$f":"IF($B476=\"N\",\"\",IF(AND(COUNTIFS('Enrollment Form'!$H$11:$H$1000,'Enrollment Form'!$H483,'Enrollment Form'!$B$11:$B$1000,'Enrollment Form'!$B483)>1,'Enrollment Form'!$H483<>\"\"),\"N\",\"Y\"))","v":""},{"$f":"IF($B476=\"N\",\"\",IF(LEN('Enrollment Form'!$Y483)=0,\"\",IF(LEN('Enrollment Form'!$Y483)<>5,\"N\",\"Y\")))","v":""},{"$f":"IF($B476=\"N\",\"\",IF(LEN('Enrollment Form'!$AD483=0),\"\",IF(LEN('Enrollment Form'!$AD483)<>5,\"N\",\"Y\")))","v":""},{"$f":"IF($B476=\"N\",\"\",IF(LEN('Enrollment Form'!$BS483=0),\"\",IF(LEN('Enrollment Form'!$BS483)<>5,\"N\",\"Y\")))","v":""},{"$f":"IF($B476=\"N\",\"\",IF(LEN('Enrollment Form'!$AE483)=0,\"\",IF(LEN('Enrollment Form'!$AE483)<>10,\"N\",\"Y\")))","v":""},{"$f":"IF($B476=\"N\",\"\",IF(LEN('Enrollment Form'!$AF483)=0,\"\",IF(LEN('Enrollment Form'!$AF483)<>10,\"N\",\"Y\")))","v":""},{"$f":"IF('Enrollment Form'!$O483<>\"Graded\",\"-\",IF(AND('Enrollment Form'!$O483=\"Graded\",'Enrollment Form'!$AR483<>\"\"),\"Y\",\"N\"))","v":"-"},{"$f":"IF($B476=\"N\",\"\",IF(OR('Enrollment Form'!$B483<>\"Subscriber\",'Enrollment Form'!$C483=\"ROC\"),\"-\",IF(AND('Enrollment Form'!$B483=\"Subscriber\",'Enrollment Form'!$C483=\"Enroll\",'Enrollment Form'!$AJ483<>\"\"),\"Y\",\"N\")))","v":""},{"$f":"IF($B476=\"N\",\"\",IF(OR('Enrollment Form'!$B483<>\"Subscriber\",'Enrollment Form'!$C483=\"ROC\"),\"-\",IF(AND('Enrollment Form'!$B483=\"Subscriber\",'Enrollment Form'!$C483=\"Enroll\",'Enrollment Form'!$AK483<>\"\"),\"Y\",\"N\")))","v":""},{"$f":"IF($B476=\"N\",\"\",IF(OR('Enrollment Form'!$B483<>\"Subscriber\",'Enrollment Form'!$C483=\"ROC\"),\"-\",IF(AND('Enrollment Form'!$B483=\"Subscriber\",'Enrollment Form'!$C483=\"Enroll\",'Enrollment Form'!$AL483<>\"\"),\"Y\",\"N\")))","v":""},{"$f":"IF($B476=\"N\",\"\",IF(OR('Enrollment Form'!$B483<>\"Subscriber\",'Enrollment Form'!$C483=\"ROC\"),\"-\",IF(AND('Enrollment Form'!$B483=\"Subscriber\",'Enrollment Form'!$C483=\"Enroll\",'Enrollment Form'!$AP483<>\"\"),\"Y\",\"N\")))","v":""},{"$f":"IF($B476=\"N\",\"\",IF(OR('Enrollment Form'!$B483<>\"Subscriber\",'Enrollment Form'!$C483=\"ROC\"),\"-\",IF(AND('Enrollment Form'!$B483=\"Subscriber\",'Enrollment Form'!$C483=\"Enroll\",'Enrollment Form'!$AQ483<>\"\"),\"Y\",\"N\")))","v":""},{"$f":"IF($B476=\"N\",\"\",IF(OR('Enrollment Form'!$B483<>\"Subscriber\",'Enrollment Form'!$C483=\"ROC\"),\"-\",IF(AND('Enrollment Form'!$B483=\"Subscriber\",'Enrollment Form'!$C483=\"Enroll\",'Enrollment Form'!$AS483<>\"\"),\"Y\",\"N\")))","v":""},{"$f":"IF($B476=\"N\",\"\",IF($Q476=\"-\",\"-\",IF(AND($Q476=\"Y\",'Enrollment Form'!$AS483=\"No\"),\"-\",IF(AND($Q476=\"Y\",'Enrollment Form'!$AS483=\"Yes\",'Enrollment Form'!$AT483<>\"\"),\"Y\",\"N\"))))","v":""},{"$f":"IF($B476=\"N\",\"\",IF(OR('Enrollment Form'!$B483<>\"Subscriber\",'Enrollment Form'!$C483=\"ROC\"),\"-\",IF(AND('Enrollment Form'!$B483=\"Subscriber\",'Enrollment Form'!$C483=\"Enroll\",'Enrollment Form'!$CV483<>\"\"),\"Y\",\"N\")))","v":""},{"$f":"IF($B476=\"N\",\"\",IF($S476=\"-\",\"-\",IF(AND($S476=\"Y\",'Enrollment Form'!$CV483=\"No\"),\"-\",IF(AND($S476=\"Y\",'Enrollment Form'!$CV483=\"Yes\",'Enrollment Form'!$CW483<>\"\"),\"Y\",\"N\"))))","v":""},{"$f":"IF(OR('Enrollment Form'!$AY483=\"Yes\",'Enrollment Form'!$AY483=\"\"),\"-\",IF(OR(AND('Enrollment Form'!$AY483=\"No\",ISERROR(FIND(\"HMO\",VLOOKUP('Enrollment Form'!G483,'Enrollment Form'!H$11:J$1000,3,FALSE),1))=FALSE,COUNTA('Enrollment Form'!$AZ483:$BC483)=4),AND('Enrollment Form'!$AY483=\"No\",ISERROR(FIND(\"HMO\",VLOOKUP('Enrollment Form'!G483,'Enrollment Form'!H$11:J$1000,3,FALSE),1))=FALSE,COUNTA('Enrollment Form'!$BT483:$BW483)=4)),\"Y\",\"N\"))","v":"-"},{"$f":"IF($B476=\"N\",\"\",IF('Enrollment Form'!$B483=\"Subscriber\",\"-\",IF(COUNTA('Enrollment Form'!$BL483,'Enrollment Form'!$BN483)=2,\"Y\",\"N\")))","v":""},{"$f":"IF($B476=\"N\",\"\",IF(OR('Enrollment Form'!$AX483=\"\",'Enrollment Form'!$AX483=\"No\"),\"-\",IF(AND('Enrollment Form'!$AX483=\"Yes\",COUNTA('Enrollment Form'!$CR483)=1),\"Y\",\"N\")))","v":""},{"$f":"IF(OR('Enrollment Form'!$CR483=\"\",'Enrollment Form'!$CR483=\"No\"),\"-\",IF(COUNTA('Enrollment Form'!$CT483:$CU483)=2,\"Y\",\"N\"))","v":"-"},{"$f":"IF($B476=\"N\",\"\",IF(COUNTIF('Enrollment Form'!$DG483:$DP483,\"Other\")=COUNTA('Enrollment Form'!$DK483,'Enrollment Form'!$DH483,'Enrollment Form'!$DN483,'Enrollment Form'!$DQ483),\"Y\",\"N\"))","v":""},{"$f":"IF($B476=\"N\",\"\",IF(OR('Enrollment Form'!B483<>\"Subscriber\",'Enrollment Form'!C483=\"ROC\",COUNTIF('Enrollment Form'!AV483:AW483,\"Yes\")>=1),\"-\",IF(AND('Enrollment Form'!C483=\"Enroll\",COUNTIF('Enrollment Form'!AV483:AW483,\"No\")=2,'Enrollment Form'!AX483=\"\"),\"N\",\"Y\")))","v":""},{"$f":"IF(OR(B476=\"N\",'Enrollment Form'!B483<>\"Subscriber\",'Enrollment Form'!C483=\"ROC\",'Enrollment Form'!O483<>\"Multiple of Salary\"),\"-\",IF(COUNTA('Enrollment Form'!T483:U483)<2,\"N\",\"Y\"))","v":"-"},{"$f":"IF(B476=\"N\",\"\",IF(OR('Enrollment Form'!C483=\"ROC\",'Enrollment Form'!B483<>\"Subscriber\",'Enrollment Form'!O483=\"Waive\",'Enrollment Form'!O483=\"\"),\"-\",IF('Enrollment Form'!P483=\"\",\"N\",\"Y\")))","v":""},{"$f":"IF($B476=\"N\",\"\",IF(AND('Enrollment Form'!$C483=\"ROC\",'Enrollment Form'!$DR483<>\"\"),\"Y\",IF(AND('Enrollment Form'!$C483=\"ROC\",'Enrollment Form'!$DR483=\"\"),\"N\",IF(AND('Enrollment Form'!$C483=\"Enroll\",'Enrollment Form'!$B483=\"Subscriber\",'Enrollment Form'!$CX483=\"No\",'Enrollment Form'!$DR483=\"\"),\"N\",IF(AND('Enrollment Form'!$C483=\"Enroll\",'Enrollment Form'!$B483=\"Subscriber\",'Enrollment Form'!$CX483=\"Yes\"),\"-\",\"Y\")))))","v":""},{"$f":"IF($B476=\"N\",\"\",IF(AND('Enrollment Form'!$C483=\"ROC\",'Enrollment Form'!$DS483<>\"\"),\"Y\",IF(AND('Enrollment Form'!$C483=\"ROC\",'Enrollment Form'!$DS483=\"\"),\"N\",IF(AND('Enrollment Form'!$C483=\"Enroll\",'Enrollment Form'!$B483=\"Subscriber\",'Enrollment Form'!$CX483=\"No\",'Enrollment Form'!$DS483=\"\"),\"N\",IF(AND('Enrollment Form'!$C483=\"Enroll\",'Enrollment Form'!$B483=\"Subscriber\",'Enrollment Form'!$CX483=\"Yes\"),\"-\",\"Y\")))))","v":""},{"$f":"IF('Enrollment Form'!AH483=\"\",\"\",IF(ISERROR(SEARCH(\".\",'Enrollment Form'!AH483,SEARCH(\"@\",'Enrollment Form'!AH483))),\"N\",\"Y\"))","v":""},{"$f":"IF(OR($B476=\"N\",'Enrollment Form'!$G483=\"\"),\"\",IF('Enrollment Form'!$B483<>\"Subscriber\",\"-\",IF(COUNTIF('Enrollment Form'!$AV483:$AW483,\"Yes\")=2,\"N\",\"Y\")))","v":""},{"$f":"IF(OR('Enrollment Form'!$CJ483=\"\",'Enrollment Form'!$CJ483=\"No\"),\"-\",IF(AND('Enrollment Form'!$CJ483=\"Yes\",'Enrollment Form'!$CK483=\"\"),\"N\",\"Y\"))","v":"-"},{"$f":"IF(OR('Enrollment Form'!$CL483=\"\",'Enrollment Form'!$CL483=\"No\"),\"-\",IF(AND('Enrollment Form'!$CL483=\"Yes\",'Enrollment Form'!$CM483=\"\"),\"N\",\"Y\"))","v":"-"},{"$f":"IF(OR('Enrollment Form'!$CN483=\"\",'Enrollment Form'!$CN483=\"No\"),\"-\",IF(AND('Enrollment Form'!$CN483=\"Yes\",'Enrollment Form'!$CO483=\"\"),\"N\",\"Y\"))","v":"-"},{"$f":"IF(OR('Enrollment Form'!$CN483=\"\",'Enrollment Form'!$CN483=\"No\"),\"-\",IF(AND('Enrollment Form'!$CN483=\"Yes\",'Enrollment Form'!$CP483=\"\"),\"N\",\"Y\"))","v":"-"},{"$f":"IF('Enrollment Form'!B483<>\"Subscriber\",\"-\",IF(AND('Enrollment Form'!B483=\"Subscriber\",'Enrollment Form'!C483=\"Enroll\",'Enrollment Form'!AA483=\"\"),\"N\",\"Y\"))","v":"-"},{"$f":"IF(OR('Enrollment Form'!B483=\"Subscriber\",'Enrollment Form'!B483=\"\"),\"-\",IF('Enrollment Form'!BP483=\"\",\"N\",\"Y\"))","v":"-"},{"$f":"IF('Enrollment Form'!B483<>\"Subscriber\",\"-\",IF(AND('Enrollment Form'!B483=\"Subscriber\",'Enrollment Form'!G483=\"\"),\"N\",\"Y\"))","v":"-"},{"$f":"IF('Enrollment Form'!A483=\"\",\"\",IF('Enrollment Form'!B483=\"Subscriber\",\"-\",IF(AND('Enrollment Form'!B483<>\"Subscriber\",'Enrollment Form'!G483='Enrollment Form'!H483),\"N\",\"Y\")))","v":""},0]
[484,{"$f":"IF('Enrollment Form'!$A484<>\"\",\"Y\",\"N\")","v":"N"},{"$f":"IF(AND('Enrollment Form'!$B484=\"\",'Enrollment Form'!$C484<>\"\"),\"N\",IF($B477=\"N\",\"\",\"Y\"))","v":""},{"$f":"IF(OR($B477=\"N\",'Enrollment Form'!G484=\"\"),\"\",IF('Enrollment Form'!$B484<>\"Subscriber\",\"\",IF('Enrollment Form'!$G484='Enrollment Form'!$H484,\"Y\",\"N\")))","v":""},{"$f":"IF($B477=\"N\",\"\",IF(AND(COUNTIFS('Enrollment Form'!$H$11:$H$1000,'Enrollment Form'!$H484,'Enrollment Form'!$B$11:$B$1000,'Enrollment Form'!$B484)>1,'Enrollment Form'!$H484<>\"\"),\"N\",\"Y\"))","v":""},{"$f":"IF($B477=\"N\",\"\",IF(LEN('Enrollment Form'!$Y484)=0,\"\",IF(LEN('Enrollment Form'!$Y484)<>5,\"N\",\"Y\")))","v":""},{"$f":"IF($B477=\"N\",\"\",IF(LEN('Enrollment Form'!$AD484=0),\"\",IF(LEN('Enrollment Form'!$AD484)<>5,\"N\",\"Y\")))","v":""},{"$f":"IF($B477=\"N\",\"\",IF(LEN('Enrollment Form'!$BS484=0),\"\",IF(LEN('Enrollment Form'!$BS484)<>5,\"N\",\"Y\")))","v":""},{"$f":"IF($B477=\"N\",\"\",IF(LEN('Enrollment Form'!$AE484)=0,\"\",IF(LEN('Enrollment Form'!$AE484)<>10,\"N\",\"Y\")))","v":""},{"$f":"IF($B477=\"N\",\"\",IF(LEN('Enrollment Form'!$AF484)=0,\"\",IF(LEN('Enrollment Form'!$AF484)<>10,\"N\",\"Y\")))","v":""},{"$f":"IF('Enrollment Form'!$O484<>\"Graded\",\"-\",IF(AND('Enrollment Form'!$O484=\"Graded\",'Enrollment Form'!$AR484<>\"\"),\"Y\",\"N\"))","v":"-"},{"$f":"IF($B477=\"N\",\"\",IF(OR('Enrollment Form'!$B484<>\"Subscriber\",'Enrollment Form'!$C484=\"ROC\"),\"-\",IF(AND('Enrollment Form'!$B484=\"Subscriber\",'Enrollment Form'!$C484=\"Enroll\",'Enrollment Form'!$AJ484<>\"\"),\"Y\",\"N\")))","v":""},{"$f":"IF($B477=\"N\",\"\",IF(OR('Enrollment Form'!$B484<>\"Subscriber\",'Enrollment Form'!$C484=\"ROC\"),\"-\",IF(AND('Enrollment Form'!$B484=\"Subscriber\",'Enrollment Form'!$C484=\"Enroll\",'Enrollment Form'!$AK484<>\"\"),\"Y\",\"N\")))","v":""},{"$f":"IF($B477=\"N\",\"\",IF(OR('Enrollment Form'!$B484<>\"Subscriber\",'Enrollment Form'!$C484=\"ROC\"),\"-\",IF(AND('Enrollment Form'!$B484=\"Subscriber\",'Enrollment Form'!$C484=\"Enroll\",'Enrollment Form'!$AL484<>\"\"),\"Y\",\"N\")))","v":""},{"$f":"IF($B477=\"N\",\"\",IF(OR('Enrollment Form'!$B484<>\"Subscriber\",'Enrollment Form'!$C484=\"ROC\"),\"-\",IF(AND('Enrollment Form'!$B484=\"Subscriber\",'Enrollment Form'!$C484=\"Enroll\",'Enrollment Form'!$AP484<>\"\"),\"Y\",\"N\")))","v":""},{"$f":"IF($B477=\"N\",\"\",IF(OR('Enrollment Form'!$B484<>\"Subscriber\",'Enrollment Form'!$C484=\"ROC\"),\"-\",IF(AND('Enrollment Form'!$B484=\"Subscriber\",'Enrollment Form'!$C484=\"Enroll\",'Enrollment Form'!$AQ484<>\"\"),\"Y\",\"N\")))","v":""},{"$f":"IF($B477=\"N\",\"\",IF(OR('Enrollment Form'!$B484<>\"Subscriber\",'Enrollment Form'!$C484=\"ROC\"),\"-\",IF(AND('Enrollment Form'!$B484=\"Subscriber\",'Enrollment Form'!$C484=\"Enroll\",'Enrollment Form'!$AS484<>\"\"),\"Y\",\"N\")))","v":""},{"$f":"IF($B477=\"N\",\"\",IF($Q477=\"-\",\"-\",IF(AND($Q477=\"Y\",'Enrollment Form'!$AS484=\"No\"),\"-\",IF(AND($Q477=\"Y\",'Enrollment Form'!$AS484=\"Yes\",'Enrollment Form'!$AT484<>\"\"),\"Y\",\"N\"))))","v":""},{"$f":"IF($B477=\"N\",\"\",IF(OR('Enrollment Form'!$B484<>\"Subscriber\",'Enrollment Form'!$C484=\"ROC\"),\"-\",IF(AND('Enrollment Form'!$B484=\"Subscriber\",'Enrollment Form'!$C484=\"Enroll\",'Enrollment Form'!$CV484<>\"\"),\"Y\",\"N\")))","v":""},{"$f":"IF($B477=\"N\",\"\",IF($S477=\"-\",\"-\",IF(AND($S477=\"Y\",'Enrollment Form'!$CV484=\"No\"),\"-\",IF(AND($S477=\"Y\",'Enrollment Form'!$CV484=\"Yes\",'Enrollment Form'!$CW484<>\"\"),\"Y\",\"N\"))))","v":""},{"$f":"IF(OR('Enrollment Form'!$AY484=\"Yes\",'Enrollment Form'!$AY484=\"\"),\"-\",IF(OR(AND('Enrollment Form'!$AY484=\"No\",ISERROR(FIND(\"HMO\",VLOOKUP('Enrollment Form'!G484,'Enrollment Form'!H$11:J$1000,3,FALSE),1))=FALSE,COUNTA('Enrollment Form'!$AZ484:$BC484)=4),AND('Enrollment Form'!$AY484=\"No\",ISERROR(FIND(\"HMO\",VLOOKUP('Enrollment Form'!G484,'Enrollment Form'!H$11:J$1000,3,FALSE),1))=FALSE,COUNTA('Enrollment Form'!$BT484:$BW484)=4)),\"Y\",\"N\"))","v":"-"},{"$f":"IF($B477=\"N\",\"\",IF('Enrollment Form'!$B484=\"Subscriber\",\"-\",IF(COUNTA('Enrollment Form'!$BL484,'Enrollment Form'!$BN484)=2,\"Y\",\"N\")))","v":""},{"$f":"IF($B477=\"N\",\"\",IF(OR('Enrollment Form'!$AX484=\"\",'Enrollment Form'!$AX484=\"No\"),\"-\",IF(AND('Enrollment Form'!$AX484=\"Yes\",COUNTA('Enrollment Form'!$CR484)=1),\"Y\",\"N\")))","v":""},{"$f":"IF(OR('Enrollment Form'!$CR484=\"\",'Enrollment Form'!$CR484=\"No\"),\"-\",IF(COUNTA('Enrollment Form'!$CT484:$CU484)=2,\"Y\",\"N\"))","v":"-"},{"$f":"IF($B477=\"N\",\"\",IF(COUNTIF('Enrollment Form'!$DG484:$DP484,\"Other\")=COUNTA('Enrollment Form'!$DK484,'Enrollment Form'!$DH484,'Enrollment Form'!$DN484,'Enrollment Form'!$DQ484),\"Y\",\"N\"))","v":""},{"$f":"IF($B477=\"N\",\"\",IF(OR('Enrollment Form'!B484<>\"Subscriber\",'Enrollment Form'!C484=\"ROC\",COUNTIF('Enrollment Form'!AV484:AW484,\"Yes\")>=1),\"-\",IF(AND('Enrollment Form'!C484=\"Enroll\",COUNTIF('Enrollment Form'!AV484:AW484,\"No\")=2,'Enrollment Form'!AX484=\"\"),\"N\",\"Y\")))","v":""},{"$f":"IF(OR(B477=\"N\",'Enrollment Form'!B484<>\"Subscriber\",'Enrollment Form'!C484=\"ROC\",'Enrollment Form'!O484<>\"Multiple of Salary\"),\"-\",IF(COUNTA('Enrollment Form'!T484:U484)<2,\"N\",\"Y\"))","v":"-"},{"$f":"IF(B477=\"N\",\"\",IF(OR('Enrollment Form'!C484=\"ROC\",'Enrollment Form'!B484<>\"Subscriber\",'Enrollment Form'!O484=\"Waive\",'Enrollment Form'!O484=\"\"),\"-\",IF('Enrollment Form'!P484=\"\",\"N\",\"Y\")))","v":""},{"$f":"IF($B477=\"N\",\"\",IF(AND('Enrollment Form'!$C484=\"ROC\",'Enrollment Form'!$DR484<>\"\"),\"Y\",IF(AND('Enrollment Form'!$C484=\"ROC\",'Enrollment Form'!$DR484=\"\"),\"N\",IF(AND('Enrollment Form'!$C484=\"Enroll\",'Enrollment Form'!$B484=\"Subscriber\",'Enrollment Form'!$CX484=\"No\",'Enrollment Form'!$DR484=\"\"),\"N\",IF(AND('Enrollment Form'!$C484=\"Enroll\",'Enrollment Form'!$B484=\"Subscriber\",'Enrollment Form'!$CX484=\"Yes\"),\"-\",\"Y\")))))","v":""},{"$f":"IF($B477=\"N\",\"\",IF(AND('Enrollment Form'!$C484=\"ROC\",'Enrollment Form'!$DS484<>\"\"),\"Y\",IF(AND('Enrollment Form'!$C484=\"ROC\",'Enrollment Form'!$DS484=\"\"),\"N\",IF(AND('Enrollment Form'!$C484=\"Enroll\",'Enrollment Form'!$B484=\"Subscriber\",'Enrollment Form'!$CX484=\"No\",'Enrollment Form'!$DS484=\"\"),\"N\",IF(AND('Enrollment Form'!$C484=\"Enroll\",'Enrollment Form'!$B484=\"Subscriber\",'Enrollment Form'!$CX484=\"Yes\"),\"-\",\"Y\")))))","v":""},{"$f":"IF('Enrollment Form'!AH484=\"\",\"\",IF(ISERROR(SEARCH(\".\",'Enrollment Form'!AH484,SEARCH(\"@\",'Enrollment Form'!AH484))),\"N\",\"Y\"))","v":""},{"$f":"IF(OR($B477=\"N\",'Enrollment Form'!$G484=\"\"),\"\",IF('Enrollment Form'!$B484<>\"Subscriber\",\"-\",IF(COUNTIF('Enrollment Form'!$AV484:$AW484,\"Yes\")=2,\"N\",\"Y\")))","v":""},{"$f":"IF(OR('Enrollment Form'!$CJ484=\"\",'Enrollment Form'!$CJ484=\"No\"),\"-\",IF(AND('Enrollment Form'!$CJ484=\"Yes\",'Enrollment Form'!$CK484=\"\"),\"N\",\"Y\"))","v":"-"},{"$f":"IF(OR('Enrollment Form'!$CL484=\"\",'Enrollment Form'!$CL484=\"No\"),\"-\",IF(AND('Enrollment Form'!$CL484=\"Yes\",'Enrollment Form'!$CM484=\"\"),\"N\",\"Y\"))","v":"-"},{"$f":"IF(OR('Enrollment Form'!$CN484=\"\",'Enrollment Form'!$CN484=\"No\"),\"-\",IF(AND('Enrollment Form'!$CN484=\"Yes\",'Enrollment Form'!$CO484=\"\"),\"N\",\"Y\"))","v":"-"},{"$f":"IF(OR('Enrollment Form'!$CN484=\"\",'Enrollment Form'!$CN484=\"No\"),\"-\",IF(AND('Enrollment Form'!$CN484=\"Yes\",'Enrollment Form'!$CP484=\"\"),\"N\",\"Y\"))","v":"-"},{"$f":"IF('Enrollment Form'!B484<>\"Subscriber\",\"-\",IF(AND('Enrollment Form'!B484=\"Subscriber\",'Enrollment Form'!C484=\"Enroll\",'Enrollment Form'!AA484=\"\"),\"N\",\"Y\"))","v":"-"},{"$f":"IF(OR('Enrollment Form'!B484=\"Subscriber\",'Enrollment Form'!B484=\"\"),\"-\",IF('Enrollment Form'!BP484=\"\",\"N\",\"Y\"))","v":"-"},{"$f":"IF('Enrollment Form'!B484<>\"Subscriber\",\"-\",IF(AND('Enrollment Form'!B484=\"Subscriber\",'Enrollment Form'!G484=\"\"),\"N\",\"Y\"))","v":"-"},{"$f":"IF('Enrollment Form'!A484=\"\",\"\",IF('Enrollment Form'!B484=\"Subscriber\",\"-\",IF(AND('Enrollment Form'!B484<>\"Subscriber\",'Enrollment Form'!G484='Enrollment Form'!H484),\"N\",\"Y\")))","v":""},0]
[485,{"$f":"IF('Enrollment Form'!$A485<>\"\",\"Y\",\"N\")","v":"N"},{"$f":"IF(AND('Enrollment Form'!$B485=\"\",'Enrollment Form'!$C485<>\"\"),\"N\",IF($B478=\"N\",\"\",\"Y\"))","v":""},{"$f":"IF(OR($B478=\"N\",'Enrollment Form'!G485=\"\"),\"\",IF('Enrollment Form'!$B485<>\"Subscriber\",\"\",IF('Enrollment Form'!$G485='Enrollment Form'!$H485,\"Y\",\"N\")))","v":""},{"$f":"IF($B478=\"N\",\"\",IF(AND(COUNTIFS('Enrollment Form'!$H$11:$H$1000,'Enrollment Form'!$H485,'Enrollment Form'!$B$11:$B$1000,'Enrollment Form'!$B485)>1,'Enrollment Form'!$H485<>\"\"),\"N\",\"Y\"))","v":""},{"$f":"IF($B478=\"N\",\"\",IF(LEN('Enrollment Form'!$Y485)=0,\"\",IF(LEN('Enrollment Form'!$Y485)<>5,\"N\",\"Y\")))","v":""},{"$f":"IF($B478=\"N\",\"\",IF(LEN('Enrollment Form'!$AD485=0),\"\",IF(LEN('Enrollment Form'!$AD485)<>5,\"N\",\"Y\")))","v":""},{"$f":"IF($B478=\"N\",\"\",IF(LEN('Enrollment Form'!$BS485=0),\"\",IF(LEN('Enrollment Form'!$BS485)<>5,\"N\",\"Y\")))","v":""},{"$f":"IF($B478=\"N\",\"\",IF(LEN('Enrollment Form'!$AE485)=0,\"\",IF(LEN('Enrollment Form'!$AE485)<>10,\"N\",\"Y\")))","v":""},{"$f":"IF($B478=\"N\",\"\",IF(LEN('Enrollment Form'!$AF485)=0,\"\",IF(LEN('Enrollment Form'!$AF485)<>10,\"N\",\"Y\")))","v":""},{"$f":"IF('Enrollment Form'!$O485<>\"Graded\",\"-\",IF(AND('Enrollment Form'!$O485=\"Graded\",'Enrollment Form'!$AR485<>\"\"),\"Y\",\"N\"))","v":"-"},{"$f":"IF($B478=\"N\",\"\",IF(OR('Enrollment Form'!$B485<>\"Subscriber\",'Enrollment Form'!$C485=\"ROC\"),\"-\",IF(AND('Enrollment Form'!$B485=\"Subscriber\",'Enrollment Form'!$C485=\"Enroll\",'Enrollment Form'!$AJ485<>\"\"),\"Y\",\"N\")))","v":""},{"$f":"IF($B478=\"N\",\"\",IF(OR('Enrollment Form'!$B485<>\"Subscriber\",'Enrollment Form'!$C485=\"ROC\"),\"-\",IF(AND('Enrollment Form'!$B485=\"Subscriber\",'Enrollment Form'!$C485=\"Enroll\",'Enrollment Form'!$AK485<>\"\"),\"Y\",\"N\")))","v":""},{"$f":"IF($B478=\"N\",\"\",IF(OR('Enrollment Form'!$B485<>\"Subscriber\",'Enrollment Form'!$C485=\"ROC\"),\"-\",IF(AND('Enrollment Form'!$B485=\"Subscriber\",'Enrollment Form'!$C485=\"Enroll\",'Enrollment Form'!$AL485<>\"\"),\"Y\",\"N\")))","v":""},{"$f":"IF($B478=\"N\",\"\",IF(OR('Enrollment Form'!$B485<>\"Subscriber\",'Enrollment Form'!$C485=\"ROC\"),\"-\",IF(AND('Enrollment Form'!$B485=\"Subscriber\",'Enrollment Form'!$C485=\"Enroll\",'Enrollment Form'!$AP485<>\"\"),\"Y\",\"N\")))","v":""},{"$f":"IF($B478=\"N\",\"\",IF(OR('Enrollment Form'!$B485<>\"Subscriber\",'Enrollment Form'!$C485=\"ROC\"),\"-\",IF(AND('Enrollment Form'!$B485=\"Subscriber\",'Enrollment Form'!$C485=\"Enroll\",'Enrollment Form'!$AQ485<>\"\"),\"Y\",\"N\")))","v":""},{"$f":"IF($B478=\"N\",\"\",IF(OR('Enrollment Form'!$B485<>\"Subscriber\",'Enrollment Form'!$C485=\"ROC\"),\"-\",IF(AND('Enrollment Form'!$B485=\"Subscriber\",'Enrollment Form'!$C485=\"Enroll\",'Enrollment Form'!$AS485<>\"\"),\"Y\",\"N\")))","v":""},{"$f":"IF($B478=\"N\",\"\",IF($Q478=\"-\",\"-\",IF(AND($Q478=\"Y\",'Enrollment Form'!$AS485=\"No\"),\"-\",IF(AND($Q478=\"Y\",'Enrollment Form'!$AS485=\"Yes\",'Enrollment Form'!$AT485<>\"\"),\"Y\",\"N\"))))","v":""},{"$f":"IF($B478=\"N\",\"\",IF(OR('Enrollment Form'!$B485<>\"Subscriber\",'Enrollment Form'!$C485=\"ROC\"),\"-\",IF(AND('Enrollment Form'!$B485=\"Subscriber\",'Enrollment Form'!$C485=\"Enroll\",'Enrollment Form'!$CV485<>\"\"),\"Y\",\"N\")))","v":""},{"$f":"IF($B478=\"N\",\"\",IF($S478=\"-\",\"-\",IF(AND($S478=\"Y\",'Enrollment Form'!$CV485=\"No\"),\"-\",IF(AND($S478=\"Y\",'Enrollment Form'!$CV485=\"Yes\",'Enrollment Form'!$CW485<>\"\"),\"Y\",\"N\"))))","v":""},{"$f":"IF(OR('Enrollment Form'!$AY485=\"Yes\",'Enrollment Form'!$AY485=\"\"),\"-\",IF(OR(AND('Enrollment Form'!$AY485=\"No\",ISERROR(FIND(\"HMO\",VLOOKUP('Enrollment Form'!G485,'Enrollment Form'!H$11:J$1000,3,FALSE),1))=FALSE,COUNTA('Enrollment Form'!$AZ485:$BC485)=4),AND('Enrollment Form'!$AY485=\"No\",ISERROR(FIND(\"HMO\",VLOOKUP('Enrollment Form'!G485,'Enrollment Form'!H$11:J$1000,3,FALSE),1))=FALSE,COUNTA('Enrollment Form'!$BT485:$BW485)=4)),\"Y\",\"N\"))","v":"-"},{"$f":"IF($B478=\"N\",\"\",IF('Enrollment Form'!$B485=\"Subscriber\",\"-\",IF(COUNTA('Enrollment Form'!$BL485,'Enrollment Form'!$BN485)=2,\"Y\",\"N\")))","v":""},{"$f":"IF($B478=\"N\",\"\",IF(OR('Enrollment Form'!$AX485=\"\",'Enrollment Form'!$AX485=\"No\"),\"-\",IF(AND('Enrollment Form'!$AX485=\"Yes\",COUNTA('Enrollment Form'!$CR485)=1),\"Y\",\"N\")))","v":""},{"$f":"IF(OR('Enrollment Form'!$CR485=\"\",'Enrollment Form'!$CR485=\"No\"),\"-\",IF(COUNTA('Enrollment Form'!$CT485:$CU485)=2,\"Y\",\"N\"))","v":"-"},{"$f":"IF($B478=\"N\",\"\",IF(COUNTIF('Enrollment Form'!$DG485:$DP485,\"Other\")=COUNTA('Enrollment Form'!$DK485,'Enrollment Form'!$DH485,'Enrollment Form'!$DN485,'Enrollment Form'!$DQ485),\"Y\",\"N\"))","v":""},{"$f":"IF($B478=\"N\",\"\",IF(OR('Enrollment Form'!B485<>\"Subscriber\",'Enrollment Form'!C485=\"ROC\",COUNTIF('Enrollment Form'!AV485:AW485,\"Yes\")>=1),\"-\",IF(AND('Enrollment Form'!C485=\"Enroll\",COUNTIF('Enrollment Form'!AV485:AW485,\"No\")=2,'Enrollment Form'!AX485=\"\"),\"N\",\"Y\")))","v":""},{"$f":"IF(OR(B478=\"N\",'Enrollment Form'!B485<>\"Subscriber\",'Enrollment Form'!C485=\"ROC\",'Enrollment Form'!O485<>\"Multiple of Salary\"),\"-\",IF(COUNTA('Enrollment Form'!T485:U485)<2,\"N\",\"Y\"))","v":"-"},{"$f":"IF(B478=\"N\",\"\",IF(OR('Enrollment Form'!C485=\"ROC\",'Enrollment Form'!B485<>\"Subscriber\",'Enrollment Form'!O485=\"Waive\",'Enrollment Form'!O485=\"\"),\"-\",IF('Enrollment Form'!P485=\"\",\"N\",\"Y\")))","v":""},{"$f":"IF($B478=\"N\",\"\",IF(AND('Enrollment Form'!$C485=\"ROC\",'Enrollment Form'!$DR485<>\"\"),\"Y\",IF(AND('Enrollment Form'!$C485=\"ROC\",'Enrollment Form'!$DR485=\"\"),\"N\",IF(AND('Enrollment Form'!$C485=\"Enroll\",'Enrollment Form'!$B485=\"Subscriber\",'Enrollment Form'!$CX485=\"No\",'Enrollment Form'!$DR485=\"\"),\"N\",IF(AND('Enrollment Form'!$C485=\"Enroll\",'Enrollment Form'!$B485=\"Subscriber\",'Enrollment Form'!$CX485=\"Yes\"),\"-\",\"Y\")))))","v":""},{"$f":"IF($B478=\"N\",\"\",IF(AND('Enrollment Form'!$C485=\"ROC\",'Enrollment Form'!$DS485<>\"\"),\"Y\",IF(AND('Enrollment Form'!$C485=\"ROC\",'Enrollment Form'!$DS485=\"\"),\"N\",IF(AND('Enrollment Form'!$C485=\"Enroll\",'Enrollment Form'!$B485=\"Subscriber\",'Enrollment Form'!$CX485=\"No\",'Enrollment Form'!$DS485=\"\"),\"N\",IF(AND('Enrollment Form'!$C485=\"Enroll\",'Enrollment Form'!$B485=\"Subscriber\",'Enrollment Form'!$CX485=\"Yes\"),\"-\",\"Y\")))))","v":""},{"$f":"IF('Enrollment Form'!AH485=\"\",\"\",IF(ISERROR(SEARCH(\".\",'Enrollment Form'!AH485,SEARCH(\"@\",'Enrollment Form'!AH485))),\"N\",\"Y\"))","v":""},{"$f":"IF(OR($B478=\"N\",'Enrollment Form'!$G485=\"\"),\"\",IF('Enrollment Form'!$B485<>\"Subscriber\",\"-\",IF(COUNTIF('Enrollment Form'!$AV485:$AW485,\"Yes\")=2,\"N\",\"Y\")))","v":""},{"$f":"IF(OR('Enrollment Form'!$CJ485=\"\",'Enrollment Form'!$CJ485=\"No\"),\"-\",IF(AND('Enrollment Form'!$CJ485=\"Yes\",'Enrollment Form'!$CK485=\"\"),\"N\",\"Y\"))","v":"-"},{"$f":"IF(OR('Enrollment Form'!$CL485=\"\",'Enrollment Form'!$CL485=\"No\"),\"-\",IF(AND('Enrollment Form'!$CL485=\"Yes\",'Enrollment Form'!$CM485=\"\"),\"N\",\"Y\"))","v":"-"},{"$f":"IF(OR('Enrollment Form'!$CN485=\"\",'Enrollment Form'!$CN485=\"No\"),\"-\",IF(AND('Enrollment Form'!$CN485=\"Yes\",'Enrollment Form'!$CO485=\"\"),\"N\",\"Y\"))","v":"-"},{"$f":"IF(OR('Enrollment Form'!$CN485=\"\",'Enrollment Form'!$CN485=\"No\"),\"-\",IF(AND('Enrollment Form'!$CN485=\"Yes\",'Enrollment Form'!$CP485=\"\"),\"N\",\"Y\"))","v":"-"},{"$f":"IF('Enrollment Form'!B485<>\"Subscriber\",\"-\",IF(AND('Enrollment Form'!B485=\"Subscriber\",'Enrollment Form'!C485=\"Enroll\",'Enrollment Form'!AA485=\"\"),\"N\",\"Y\"))","v":"-"},{"$f":"IF(OR('Enrollment Form'!B485=\"Subscriber\",'Enrollment Form'!B485=\"\"),\"-\",IF('Enrollment Form'!BP485=\"\",\"N\",\"Y\"))","v":"-"},{"$f":"IF('Enrollment Form'!B485<>\"Subscriber\",\"-\",IF(AND('Enrollment Form'!B485=\"Subscriber\",'Enrollment Form'!G485=\"\"),\"N\",\"Y\"))","v":"-"},{"$f":"IF('Enrollment Form'!A485=\"\",\"\",IF('Enrollment Form'!B485=\"Subscriber\",\"-\",IF(AND('Enrollment Form'!B485<>\"Subscriber\",'Enrollment Form'!G485='Enrollment Form'!H485),\"N\",\"Y\")))","v":""},0]
[486,{"$f":"IF('Enrollment Form'!$A486<>\"\",\"Y\",\"N\")","v":"N"},{"$f":"IF(AND('Enrollment Form'!$B486=\"\",'Enrollment Form'!$C486<>\"\"),\"N\",IF($B479=\"N\",\"\",\"Y\"))","v":""},{"$f":"IF(OR($B479=\"N\",'Enrollment Form'!G486=\"\"),\"\",IF('Enrollment Form'!$B486<>\"Subscriber\",\"\",IF('Enrollment Form'!$G486='Enrollment Form'!$H486,\"Y\",\"N\")))","v":""},{"$f":"IF($B479=\"N\",\"\",IF(AND(COUNTIFS('Enrollment Form'!$H$11:$H$1000,'Enrollment Form'!$H486,'Enrollment Form'!$B$11:$B$1000,'Enrollment Form'!$B486)>1,'Enrollment Form'!$H486<>\"\"),\"N\",\"Y\"))","v":""},{"$f":"IF($B479=\"N\",\"\",IF(LEN('Enrollment Form'!$Y486)=0,\"\",IF(LEN('Enrollment Form'!$Y486)<>5,\"N\",\"Y\")))","v":""},{"$f":"IF($B479=\"N\",\"\",IF(LEN('Enrollment Form'!$AD486=0),\"\",IF(LEN('Enrollment Form'!$AD486)<>5,\"N\",\"Y\")))","v":""},{"$f":"IF($B479=\"N\",\"\",IF(LEN('Enrollment Form'!$BS486=0),\"\",IF(LEN('Enrollment Form'!$BS486)<>5,\"N\",\"Y\")))","v":""},{"$f":"IF($B479=\"N\",\"\",IF(LEN('Enrollment Form'!$AE486)=0,\"\",IF(LEN('Enrollment Form'!$AE486)<>10,\"N\",\"Y\")))","v":""},{"$f":"IF($B479=\"N\",\"\",IF(LEN('Enrollment Form'!$AF486)=0,\"\",IF(LEN('Enrollment Form'!$AF486)<>10,\"N\",\"Y\")))","v":""},{"$f":"IF('Enrollment Form'!$O486<>\"Graded\",\"-\",IF(AND('Enrollment Form'!$O486=\"Graded\",'Enrollment Form'!$AR486<>\"\"),\"Y\",\"N\"))","v":"-"},{"$f":"IF($B479=\"N\",\"\",IF(OR('Enrollment Form'!$B486<>\"Subscriber\",'Enrollment Form'!$C486=\"ROC\"),\"-\",IF(AND('Enrollment Form'!$B486=\"Subscriber\",'Enrollment Form'!$C486=\"Enroll\",'Enrollment Form'!$AJ486<>\"\"),\"Y\",\"N\")))","v":""},{"$f":"IF($B479=\"N\",\"\",IF(OR('Enrollment Form'!$B486<>\"Subscriber\",'Enrollment Form'!$C486=\"ROC\"),\"-\",IF(AND('Enrollment Form'!$B486=\"Subscriber\",'Enrollment Form'!$C486=\"Enroll\",'Enrollment Form'!$AK486<>\"\"),\"Y\",\"N\")))","v":""},{"$f":"IF($B479=\"N\",\"\",IF(OR('Enrollment Form'!$B486<>\"Subscriber\",'Enrollment Form'!$C486=\"ROC\"),\"-\",IF(AND('Enrollment Form'!$B486=\"Subscriber\",'Enrollment Form'!$C486=\"Enroll\",'Enrollment Form'!$AL486<>\"\"),\"Y\",\"N\")))","v":""},{"$f":"IF($B479=\"N\",\"\",IF(OR('Enrollment Form'!$B486<>\"Subscriber\",'Enrollment Form'!$C486=\"ROC\"),\"-\",IF(AND('Enrollment Form'!$B486=\"Subscriber\",'Enrollment Form'!$C486=\"Enroll\",'Enrollment Form'!$AP486<>\"\"),\"Y\",\"N\")))","v":""},{"$f":"IF($B479=\"N\",\"\",IF(OR('Enrollment Form'!$B486<>\"Subscriber\",'Enrollment Form'!$C486=\"ROC\"),\"-\",IF(AND('Enrollment Form'!$B486=\"Subscriber\",'Enrollment Form'!$C486=\"Enroll\",'Enrollment Form'!$AQ486<>\"\"),\"Y\",\"N\")))","v":""},{"$f":"IF($B479=\"N\",\"\",IF(OR('Enrollment Form'!$B486<>\"Subscriber\",'Enrollment Form'!$C486=\"ROC\"),\"-\",IF(AND('Enrollment Form'!$B486=\"Subscriber\",'Enrollment Form'!$C486=\"Enroll\",'Enrollment Form'!$AS486<>\"\"),\"Y\",\"N\")))","v":""},{"$f":"IF($B479=\"N\",\"\",IF($Q479=\"-\",\"-\",IF(AND($Q479=\"Y\",'Enrollment Form'!$AS486=\"No\"),\"-\",IF(AND($Q479=\"Y\",'Enrollment Form'!$AS486=\"Yes\",'Enrollment Form'!$AT486<>\"\"),\"Y\",\"N\"))))","v":""},{"$f":"IF($B479=\"N\",\"\",IF(OR('Enrollment Form'!$B486<>\"Subscriber\",'Enrollment Form'!$C486=\"ROC\"),\"-\",IF(AND('Enrollment Form'!$B486=\"Subscriber\",'Enrollment Form'!$C486=\"Enroll\",'Enrollment Form'!$CV486<>\"\"),\"Y\",\"N\")))","v":""},{"$f":"IF($B479=\"N\",\"\",IF($S479=\"-\",\"-\",IF(AND($S479=\"Y\",'Enrollment Form'!$CV486=\"No\"),\"-\",IF(AND($S479=\"Y\",'Enrollment Form'!$CV486=\"Yes\",'Enrollment Form'!$CW486<>\"\"),\"Y\",\"N\"))))","v":""},{"$f":"IF(OR('Enrollment Form'!$AY486=\"Yes\",'Enrollment Form'!$AY486=\"\"),\"-\",IF(OR(AND('Enrollment Form'!$AY486=\"No\",ISERROR(FIND(\"HMO\",VLOOKUP('Enrollment Form'!G486,'Enrollment Form'!H$11:J$1000,3,FALSE),1))=FALSE,COUNTA('Enrollment Form'!$AZ486:$BC486)=4),AND('Enrollment Form'!$AY486=\"No\",ISERROR(FIND(\"HMO\",VLOOKUP('Enrollment Form'!G486,'Enrollment Form'!H$11:J$1000,3,FALSE),1))=FALSE,COUNTA('Enrollment Form'!$BT486:$BW486)=4)),\"Y\",\"N\"))","v":"-"},{"$f":"IF($B479=\"N\",\"\",IF('Enrollment Form'!$B486=\"Subscriber\",\"-\",IF(COUNTA('Enrollment Form'!$BL486,'Enrollment Form'!$BN486)=2,\"Y\",\"N\")))","v":""},{"$f":"IF($B479=\"N\",\"\",IF(OR('Enrollment Form'!$AX486=\"\",'Enrollment Form'!$AX486=\"No\"),\"-\",IF(AND('Enrollment Form'!$AX486=\"Yes\",COUNTA('Enrollment Form'!$CR486)=1),\"Y\",\"N\")))","v":""},{"$f":"IF(OR('Enrollment Form'!$CR486=\"\",'Enrollment Form'!$CR486=\"No\"),\"-\",IF(COUNTA('Enrollment Form'!$CT486:$CU486)=2,\"Y\",\"N\"))","v":"-"},{"$f":"IF($B479=\"N\",\"\",IF(COUNTIF('Enrollment Form'!$DG486:$DP486,\"Other\")=COUNTA('Enrollment Form'!$DK486,'Enrollment Form'!$DH486,'Enrollment Form'!$DN486,'Enrollment Form'!$DQ486),\"Y\",\"N\"))","v":""},{"$f":"IF($B479=\"N\",\"\",IF(OR('Enrollment Form'!B486<>\"Subscriber\",'Enrollment Form'!C486=\"ROC\",COUNTIF('Enrollment Form'!AV486:AW486,\"Yes\")>=1),\"-\",IF(AND('Enrollment Form'!C486=\"Enroll\",COUNTIF('Enrollment Form'!AV486:AW486,\"No\")=2,'Enrollment Form'!AX486=\"\"),\"N\",\"Y\")))","v":""},{"$f":"IF(OR(B479=\"N\",'Enrollment Form'!B486<>\"Subscriber\",'Enrollment Form'!C486=\"ROC\",'Enrollment Form'!O486<>\"Multiple of Salary\"),\"-\",IF(COUNTA('Enrollment Form'!T486:U486)<2,\"N\",\"Y\"))","v":"-"},{"$f":"IF(B479=\"N\",\"\",IF(OR('Enrollment Form'!C486=\"ROC\",'Enrollment Form'!B486<>\"Subscriber\",'Enrollment Form'!O486=\"Waive\",'Enrollment Form'!O486=\"\"),\"-\",IF('Enrollment Form'!P486=\"\",\"N\",\"Y\")))","v":""},{"$f":"IF($B479=\"N\",\"\",IF(AND('Enrollment Form'!$C486=\"ROC\",'Enrollment Form'!$DR486<>\"\"),\"Y\",IF(AND('Enrollment Form'!$C486=\"ROC\",'Enrollment Form'!$DR486=\"\"),\"N\",IF(AND('Enrollment Form'!$C486=\"Enroll\",'Enrollment Form'!$B486=\"Subscriber\",'Enrollment Form'!$CX486=\"No\",'Enrollment Form'!$DR486=\"\"),\"N\",IF(AND('Enrollment Form'!$C486=\"Enroll\",'Enrollment Form'!$B486=\"Subscriber\",'Enrollment Form'!$CX486=\"Yes\"),\"-\",\"Y\")))))","v":""},{"$f":"IF($B479=\"N\",\"\",IF(AND('Enrollment Form'!$C486=\"ROC\",'Enrollment Form'!$DS486<>\"\"),\"Y\",IF(AND('Enrollment Form'!$C486=\"ROC\",'Enrollment Form'!$DS486=\"\"),\"N\",IF(AND('Enrollment Form'!$C486=\"Enroll\",'Enrollment Form'!$B486=\"Subscriber\",'Enrollment Form'!$CX486=\"No\",'Enrollment Form'!$DS486=\"\"),\"N\",IF(AND('Enrollment Form'!$C486=\"Enroll\",'Enrollment Form'!$B486=\"Subscriber\",'Enrollment Form'!$CX486=\"Yes\"),\"-\",\"Y\")))))","v":""},{"$f":"IF('Enrollment Form'!AH486=\"\",\"\",IF(ISERROR(SEARCH(\".\",'Enrollment Form'!AH486,SEARCH(\"@\",'Enrollment Form'!AH486))),\"N\",\"Y\"))","v":""},{"$f":"IF(OR($B479=\"N\",'Enrollment Form'!$G486=\"\"),\"\",IF('Enrollment Form'!$B486<>\"Subscriber\",\"-\",IF(COUNTIF('Enrollment Form'!$AV486:$AW486,\"Yes\")=2,\"N\",\"Y\")))","v":""},{"$f":"IF(OR('Enrollment Form'!$CJ486=\"\",'Enrollment Form'!$CJ486=\"No\"),\"-\",IF(AND('Enrollment Form'!$CJ486=\"Yes\",'Enrollment Form'!$CK486=\"\"),\"N\",\"Y\"))","v":"-"},{"$f":"IF(OR('Enrollment Form'!$CL486=\"\",'Enrollment Form'!$CL486=\"No\"),\"-\",IF(AND('Enrollment Form'!$CL486=\"Yes\",'Enrollment Form'!$CM486=\"\"),\"N\",\"Y\"))","v":"-"},{"$f":"IF(OR('Enrollment Form'!$CN486=\"\",'Enrollment Form'!$CN486=\"No\"),\"-\",IF(AND('Enrollment Form'!$CN486=\"Yes\",'Enrollment Form'!$CO486=\"\"),\"N\",\"Y\"))","v":"-"},{"$f":"IF(OR('Enrollment Form'!$CN486=\"\",'Enrollment Form'!$CN486=\"No\"),\"-\",IF(AND('Enrollment Form'!$CN486=\"Yes\",'Enrollment Form'!$CP486=\"\"),\"N\",\"Y\"))","v":"-"},{"$f":"IF('Enrollment Form'!B486<>\"Subscriber\",\"-\",IF(AND('Enrollment Form'!B486=\"Subscriber\",'Enrollment Form'!C486=\"Enroll\",'Enrollment Form'!AA486=\"\"),\"N\",\"Y\"))","v":"-"},{"$f":"IF(OR('Enrollment Form'!B486=\"Subscriber\",'Enrollment Form'!B486=\"\"),\"-\",IF('Enrollment Form'!BP486=\"\",\"N\",\"Y\"))","v":"-"},{"$f":"IF('Enrollment Form'!B486<>\"Subscriber\",\"-\",IF(AND('Enrollment Form'!B486=\"Subscriber\",'Enrollment Form'!G486=\"\"),\"N\",\"Y\"))","v":"-"},{"$f":"IF('Enrollment Form'!A486=\"\",\"\",IF('Enrollment Form'!B486=\"Subscriber\",\"-\",IF(AND('Enrollment Form'!B486<>\"Subscriber\",'Enrollment Form'!G486='Enrollment Form'!H486),\"N\",\"Y\")))","v":""},0]
[487,{"$f":"IF('Enrollment Form'!$A487<>\"\",\"Y\",\"N\")","v":"N"},{"$f":"IF(AND('Enrollment Form'!$B487=\"\",'Enrollment Form'!$C487<>\"\"),\"N\",IF($B480=\"N\",\"\",\"Y\"))","v":""},{"$f":"IF(OR($B480=\"N\",'Enrollment Form'!G487=\"\"),\"\",IF('Enrollment Form'!$B487<>\"Subscriber\",\"\",IF('Enrollment Form'!$G487='Enrollment Form'!$H487,\"Y\",\"N\")))","v":""},{"$f":"IF($B480=\"N\",\"\",IF(AND(COUNTIFS('Enrollment Form'!$H$11:$H$1000,'Enrollment Form'!$H487,'Enrollment Form'!$B$11:$B$1000,'Enrollment Form'!$B487)>1,'Enrollment Form'!$H487<>\"\"),\"N\",\"Y\"))","v":""},{"$f":"IF($B480=\"N\",\"\",IF(LEN('Enrollment Form'!$Y487)=0,\"\",IF(LEN('Enrollment Form'!$Y487)<>5,\"N\",\"Y\")))","v":""},{"$f":"IF($B480=\"N\",\"\",IF(LEN('Enrollment Form'!$AD487=0),\"\",IF(LEN('Enrollment Form'!$AD487)<>5,\"N\",\"Y\")))","v":""},{"$f":"IF($B480=\"N\",\"\",IF(LEN('Enrollment Form'!$BS487=0),\"\",IF(LEN('Enrollment Form'!$BS487)<>5,\"N\",\"Y\")))","v":""},{"$f":"IF($B480=\"N\",\"\",IF(LEN('Enrollment Form'!$AE487)=0,\"\",IF(LEN('Enrollment Form'!$AE487)<>10,\"N\",\"Y\")))","v":""},{"$f":"IF($B480=\"N\",\"\",IF(LEN('Enrollment Form'!$AF487)=0,\"\",IF(LEN('Enrollment Form'!$AF487)<>10,\"N\",\"Y\")))","v":""},{"$f":"IF('Enrollment Form'!$O487<>\"Graded\",\"-\",IF(AND('Enrollment Form'!$O487=\"Graded\",'Enrollment Form'!$AR487<>\"\"),\"Y\",\"N\"))","v":"-"},{"$f":"IF($B480=\"N\",\"\",IF(OR('Enrollment Form'!$B487<>\"Subscriber\",'Enrollment Form'!$C487=\"ROC\"),\"-\",IF(AND('Enrollment Form'!$B487=\"Subscriber\",'Enrollment Form'!$C487=\"Enroll\",'Enrollment Form'!$AJ487<>\"\"),\"Y\",\"N\")))","v":""},{"$f":"IF($B480=\"N\",\"\",IF(OR('Enrollment Form'!$B487<>\"Subscriber\",'Enrollment Form'!$C487=\"ROC\"),\"-\",IF(AND('Enrollment Form'!$B487=\"Subscriber\",'Enrollment Form'!$C487=\"Enroll\",'Enrollment Form'!$AK487<>\"\"),\"Y\",\"N\")))","v":""},{"$f":"IF($B480=\"N\",\"\",IF(OR('Enrollment Form'!$B487<>\"Subscriber\",'Enrollment Form'!$C487=\"ROC\"),\"-\",IF(AND('Enrollment Form'!$B487=\"Subscriber\",'Enrollment Form'!$C487=\"Enroll\",'Enrollment Form'!$AL487<>\"\"),\"Y\",\"N\")))","v":""},{"$f":"IF($B480=\"N\",\"\",IF(OR('Enrollment Form'!$B487<>\"Subscriber\",'Enrollment Form'!$C487=\"ROC\"),\"-\",IF(AND('Enrollment Form'!$B487=\"Subscriber\",'Enrollment Form'!$C487=\"Enroll\",'Enrollment Form'!$AP487<>\"\"),\"Y\",\"N\")))","v":""},{"$f":"IF($B480=\"N\",\"\",IF(OR('Enrollment Form'!$B487<>\"Subscriber\",'Enrollment Form'!$C487=\"ROC\"),\"-\",IF(AND('Enrollment Form'!$B487=\"Subscriber\",'Enrollment Form'!$C487=\"Enroll\",'Enrollment Form'!$AQ487<>\"\"),\"Y\",\"N\")))","v":""},{"$f":"IF($B480=\"N\",\"\",IF(OR('Enrollment Form'!$B487<>\"Subscriber\",'Enrollment Form'!$C487=\"ROC\"),\"-\",IF(AND('Enrollment Form'!$B487=\"Subscriber\",'Enrollment Form'!$C487=\"Enroll\",'Enrollment Form'!$AS487<>\"\"),\"Y\",\"N\")))","v":""},{"$f":"IF($B480=\"N\",\"\",IF($Q480=\"-\",\"-\",IF(AND($Q480=\"Y\",'Enrollment Form'!$AS487=\"No\"),\"-\",IF(AND($Q480=\"Y\",'Enrollment Form'!$AS487=\"Yes\",'Enrollment Form'!$AT487<>\"\"),\"Y\",\"N\"))))","v":""},{"$f":"IF($B480=\"N\",\"\",IF(OR('Enrollment Form'!$B487<>\"Subscriber\",'Enrollment Form'!$C487=\"ROC\"),\"-\",IF(AND('Enrollment Form'!$B487=\"Subscriber\",'Enrollment Form'!$C487=\"Enroll\",'Enrollment Form'!$CV487<>\"\"),\"Y\",\"N\")))","v":""},{"$f":"IF($B480=\"N\",\"\",IF($S480=\"-\",\"-\",IF(AND($S480=\"Y\",'Enrollment Form'!$CV487=\"No\"),\"-\",IF(AND($S480=\"Y\",'Enrollment Form'!$CV487=\"Yes\",'Enrollment Form'!$CW487<>\"\"),\"Y\",\"N\"))))","v":""},{"$f":"IF(OR('Enrollment Form'!$AY487=\"Yes\",'Enrollment Form'!$AY487=\"\"),\"-\",IF(OR(AND('Enrollment Form'!$AY487=\"No\",ISERROR(FIND(\"HMO\",VLOOKUP('Enrollment Form'!G487,'Enrollment Form'!H$11:J$1000,3,FALSE),1))=FALSE,COUNTA('Enrollment Form'!$AZ487:$BC487)=4),AND('Enrollment Form'!$AY487=\"No\",ISERROR(FIND(\"HMO\",VLOOKUP('Enrollment Form'!G487,'Enrollment Form'!H$11:J$1000,3,FALSE),1))=FALSE,COUNTA('Enrollment Form'!$BT487:$BW487)=4)),\"Y\",\"N\"))","v":"-"},{"$f":"IF($B480=\"N\",\"\",IF('Enrollment Form'!$B487=\"Subscriber\",\"-\",IF(COUNTA('Enrollment Form'!$BL487,'Enrollment Form'!$BN487)=2,\"Y\",\"N\")))","v":""},{"$f":"IF($B480=\"N\",\"\",IF(OR('Enrollment Form'!$AX487=\"\",'Enrollment Form'!$AX487=\"No\"),\"-\",IF(AND('Enrollment Form'!$AX487=\"Yes\",COUNTA('Enrollment Form'!$CR487)=1),\"Y\",\"N\")))","v":""},{"$f":"IF(OR('Enrollment Form'!$CR487=\"\",'Enrollment Form'!$CR487=\"No\"),\"-\",IF(COUNTA('Enrollment Form'!$CT487:$CU487)=2,\"Y\",\"N\"))","v":"-"},{"$f":"IF($B480=\"N\",\"\",IF(COUNTIF('Enrollment Form'!$DG487:$DP487,\"Other\")=COUNTA('Enrollment Form'!$DK487,'Enrollment Form'!$DH487,'Enrollment Form'!$DN487,'Enrollment Form'!$DQ487),\"Y\",\"N\"))","v":""},{"$f":"IF($B480=\"N\",\"\",IF(OR('Enrollment Form'!B487<>\"Subscriber\",'Enrollment Form'!C487=\"ROC\",COUNTIF('Enrollment Form'!AV487:AW487,\"Yes\")>=1),\"-\",IF(AND('Enrollment Form'!C487=\"Enroll\",COUNTIF('Enrollment Form'!AV487:AW487,\"No\")=2,'Enrollment Form'!AX487=\"\"),\"N\",\"Y\")))","v":""},{"$f":"IF(OR(B480=\"N\",'Enrollment Form'!B487<>\"Subscriber\",'Enrollment Form'!C487=\"ROC\",'Enrollment Form'!O487<>\"Multiple of Salary\"),\"-\",IF(COUNTA('Enrollment Form'!T487:U487)<2,\"N\",\"Y\"))","v":"-"},{"$f":"IF(B480=\"N\",\"\",IF(OR('Enrollment Form'!C487=\"ROC\",'Enrollment Form'!B487<>\"Subscriber\",'Enrollment Form'!O487=\"Waive\",'Enrollment Form'!O487=\"\"),\"-\",IF('Enrollment Form'!P487=\"\",\"N\",\"Y\")))","v":""},{"$f":"IF($B480=\"N\",\"\",IF(AND('Enrollment Form'!$C487=\"ROC\",'Enrollment Form'!$DR487<>\"\"),\"Y\",IF(AND('Enrollment Form'!$C487=\"ROC\",'Enrollment Form'!$DR487=\"\"),\"N\",IF(AND('Enrollment Form'!$C487=\"Enroll\",'Enrollment Form'!$B487=\"Subscriber\",'Enrollment Form'!$CX487=\"No\",'Enrollment Form'!$DR487=\"\"),\"N\",IF(AND('Enrollment Form'!$C487=\"Enroll\",'Enrollment Form'!$B487=\"Subscriber\",'Enrollment Form'!$CX487=\"Yes\"),\"-\",\"Y\")))))","v":""},{"$f":"IF($B480=\"N\",\"\",IF(AND('Enrollment Form'!$C487=\"ROC\",'Enrollment Form'!$DS487<>\"\"),\"Y\",IF(AND('Enrollment Form'!$C487=\"ROC\",'Enrollment Form'!$DS487=\"\"),\"N\",IF(AND('Enrollment Form'!$C487=\"Enroll\",'Enrollment Form'!$B487=\"Subscriber\",'Enrollment Form'!$CX487=\"No\",'Enrollment Form'!$DS487=\"\"),\"N\",IF(AND('Enrollment Form'!$C487=\"Enroll\",'Enrollment Form'!$B487=\"Subscriber\",'Enrollment Form'!$CX487=\"Yes\"),\"-\",\"Y\")))))","v":""},{"$f":"IF('Enrollment Form'!AH487=\"\",\"\",IF(ISERROR(SEARCH(\".\",'Enrollment Form'!AH487,SEARCH(\"@\",'Enrollment Form'!AH487))),\"N\",\"Y\"))","v":""},{"$f":"IF(OR($B480=\"N\",'Enrollment Form'!$G487=\"\"),\"\",IF('Enrollment Form'!$B487<>\"Subscriber\",\"-\",IF(COUNTIF('Enrollment Form'!$AV487:$AW487,\"Yes\")=2,\"N\",\"Y\")))","v":""},{"$f":"IF(OR('Enrollment Form'!$CJ487=\"\",'Enrollment Form'!$CJ487=\"No\"),\"-\",IF(AND('Enrollment Form'!$CJ487=\"Yes\",'Enrollment Form'!$CK487=\"\"),\"N\",\"Y\"))","v":"-"},{"$f":"IF(OR('Enrollment Form'!$CL487=\"\",'Enrollment Form'!$CL487=\"No\"),\"-\",IF(AND('Enrollment Form'!$CL487=\"Yes\",'Enrollment Form'!$CM487=\"\"),\"N\",\"Y\"))","v":"-"},{"$f":"IF(OR('Enrollment Form'!$CN487=\"\",'Enrollment Form'!$CN487=\"No\"),\"-\",IF(AND('Enrollment Form'!$CN487=\"Yes\",'Enrollment Form'!$CO487=\"\"),\"N\",\"Y\"))","v":"-"},{"$f":"IF(OR('Enrollment Form'!$CN487=\"\",'Enrollment Form'!$CN487=\"No\"),\"-\",IF(AND('Enrollment Form'!$CN487=\"Yes\",'Enrollment Form'!$CP487=\"\"),\"N\",\"Y\"))","v":"-"},{"$f":"IF('Enrollment Form'!B487<>\"Subscriber\",\"-\",IF(AND('Enrollment Form'!B487=\"Subscriber\",'Enrollment Form'!C487=\"Enroll\",'Enrollment Form'!AA487=\"\"),\"N\",\"Y\"))","v":"-"},{"$f":"IF(OR('Enrollment Form'!B487=\"Subscriber\",'Enrollment Form'!B487=\"\"),\"-\",IF('Enrollment Form'!BP487=\"\",\"N\",\"Y\"))","v":"-"},{"$f":"IF('Enrollment Form'!B487<>\"Subscriber\",\"-\",IF(AND('Enrollment Form'!B487=\"Subscriber\",'Enrollment Form'!G487=\"\"),\"N\",\"Y\"))","v":"-"},{"$f":"IF('Enrollment Form'!A487=\"\",\"\",IF('Enrollment Form'!B487=\"Subscriber\",\"-\",IF(AND('Enrollment Form'!B487<>\"Subscriber\",'Enrollment Form'!G487='Enrollment Form'!H487),\"N\",\"Y\")))","v":""},0]
[488,{"$f":"IF('Enrollment Form'!$A488<>\"\",\"Y\",\"N\")","v":"N"},{"$f":"IF(AND('Enrollment Form'!$B488=\"\",'Enrollment Form'!$C488<>\"\"),\"N\",IF($B481=\"N\",\"\",\"Y\"))","v":""},{"$f":"IF(OR($B481=\"N\",'Enrollment Form'!G488=\"\"),\"\",IF('Enrollment Form'!$B488<>\"Subscriber\",\"\",IF('Enrollment Form'!$G488='Enrollment Form'!$H488,\"Y\",\"N\")))","v":""},{"$f":"IF($B481=\"N\",\"\",IF(AND(COUNTIFS('Enrollment Form'!$H$11:$H$1000,'Enrollment Form'!$H488,'Enrollment Form'!$B$11:$B$1000,'Enrollment Form'!$B488)>1,'Enrollment Form'!$H488<>\"\"),\"N\",\"Y\"))","v":""},{"$f":"IF($B481=\"N\",\"\",IF(LEN('Enrollment Form'!$Y488)=0,\"\",IF(LEN('Enrollment Form'!$Y488)<>5,\"N\",\"Y\")))","v":""},{"$f":"IF($B481=\"N\",\"\",IF(LEN('Enrollment Form'!$AD488=0),\"\",IF(LEN('Enrollment Form'!$AD488)<>5,\"N\",\"Y\")))","v":""},{"$f":"IF($B481=\"N\",\"\",IF(LEN('Enrollment Form'!$BS488=0),\"\",IF(LEN('Enrollment Form'!$BS488)<>5,\"N\",\"Y\")))","v":""},{"$f":"IF($B481=\"N\",\"\",IF(LEN('Enrollment Form'!$AE488)=0,\"\",IF(LEN('Enrollment Form'!$AE488)<>10,\"N\",\"Y\")))","v":""},{"$f":"IF($B481=\"N\",\"\",IF(LEN('Enrollment Form'!$AF488)=0,\"\",IF(LEN('Enrollment Form'!$AF488)<>10,\"N\",\"Y\")))","v":""},{"$f":"IF('Enrollment Form'!$O488<>\"Graded\",\"-\",IF(AND('Enrollment Form'!$O488=\"Graded\",'Enrollment Form'!$AR488<>\"\"),\"Y\",\"N\"))","v":"-"},{"$f":"IF($B481=\"N\",\"\",IF(OR('Enrollment Form'!$B488<>\"Subscriber\",'Enrollment Form'!$C488=\"ROC\"),\"-\",IF(AND('Enrollment Form'!$B488=\"Subscriber\",'Enrollment Form'!$C488=\"Enroll\",'Enrollment Form'!$AJ488<>\"\"),\"Y\",\"N\")))","v":""},{"$f":"IF($B481=\"N\",\"\",IF(OR('Enrollment Form'!$B488<>\"Subscriber\",'Enrollment Form'!$C488=\"ROC\"),\"-\",IF(AND('Enrollment Form'!$B488=\"Subscriber\",'Enrollment Form'!$C488=\"Enroll\",'Enrollment Form'!$AK488<>\"\"),\"Y\",\"N\")))","v":""},{"$f":"IF($B481=\"N\",\"\",IF(OR('Enrollment Form'!$B488<>\"Subscriber\",'Enrollment Form'!$C488=\"ROC\"),\"-\",IF(AND('Enrollment Form'!$B488=\"Subscriber\",'Enrollment Form'!$C488=\"Enroll\",'Enrollment Form'!$AL488<>\"\"),\"Y\",\"N\")))","v":""},{"$f":"IF($B481=\"N\",\"\",IF(OR('Enrollment Form'!$B488<>\"Subscriber\",'Enrollment Form'!$C488=\"ROC\"),\"-\",IF(AND('Enrollment Form'!$B488=\"Subscriber\",'Enrollment Form'!$C488=\"Enroll\",'Enrollment Form'!$AP488<>\"\"),\"Y\",\"N\")))","v":""},{"$f":"IF($B481=\"N\",\"\",IF(OR('Enrollment Form'!$B488<>\"Subscriber\",'Enrollment Form'!$C488=\"ROC\"),\"-\",IF(AND('Enrollment Form'!$B488=\"Subscriber\",'Enrollment Form'!$C488=\"Enroll\",'Enrollment Form'!$AQ488<>\"\"),\"Y\",\"N\")))","v":""},{"$f":"IF($B481=\"N\",\"\",IF(OR('Enrollment Form'!$B488<>\"Subscriber\",'Enrollment Form'!$C488=\"ROC\"),\"-\",IF(AND('Enrollment Form'!$B488=\"Subscriber\",'Enrollment Form'!$C488=\"Enroll\",'Enrollment Form'!$AS488<>\"\"),\"Y\",\"N\")))","v":""},{"$f":"IF($B481=\"N\",\"\",IF($Q481=\"-\",\"-\",IF(AND($Q481=\"Y\",'Enrollment Form'!$AS488=\"No\"),\"-\",IF(AND($Q481=\"Y\",'Enrollment Form'!$AS488=\"Yes\",'Enrollment Form'!$AT488<>\"\"),\"Y\",\"N\"))))","v":""},{"$f":"IF($B481=\"N\",\"\",IF(OR('Enrollment Form'!$B488<>\"Subscriber\",'Enrollment Form'!$C488=\"ROC\"),\"-\",IF(AND('Enrollment Form'!$B488=\"Subscriber\",'Enrollment Form'!$C488=\"Enroll\",'Enrollment Form'!$CV488<>\"\"),\"Y\",\"N\")))","v":""},{"$f":"IF($B481=\"N\",\"\",IF($S481=\"-\",\"-\",IF(AND($S481=\"Y\",'Enrollment Form'!$CV488=\"No\"),\"-\",IF(AND($S481=\"Y\",'Enrollment Form'!$CV488=\"Yes\",'Enrollment Form'!$CW488<>\"\"),\"Y\",\"N\"))))","v":""},{"$f":"IF(OR('Enrollment Form'!$AY488=\"Yes\",'Enrollment Form'!$AY488=\"\"),\"-\",IF(OR(AND('Enrollment Form'!$AY488=\"No\",ISERROR(FIND(\"HMO\",VLOOKUP('Enrollment Form'!G488,'Enrollment Form'!H$11:J$1000,3,FALSE),1))=FALSE,COUNTA('Enrollment Form'!$AZ488:$BC488)=4),AND('Enrollment Form'!$AY488=\"No\",ISERROR(FIND(\"HMO\",VLOOKUP('Enrollment Form'!G488,'Enrollment Form'!H$11:J$1000,3,FALSE),1))=FALSE,COUNTA('Enrollment Form'!$BT488:$BW488)=4)),\"Y\",\"N\"))","v":"-"},{"$f":"IF($B481=\"N\",\"\",IF('Enrollment Form'!$B488=\"Subscriber\",\"-\",IF(COUNTA('Enrollment Form'!$BL488,'Enrollment Form'!$BN488)=2,\"Y\",\"N\")))","v":""},{"$f":"IF($B481=\"N\",\"\",IF(OR('Enrollment Form'!$AX488=\"\",'Enrollment Form'!$AX488=\"No\"),\"-\",IF(AND('Enrollment Form'!$AX488=\"Yes\",COUNTA('Enrollment Form'!$CR488)=1),\"Y\",\"N\")))","v":""},{"$f":"IF(OR('Enrollment Form'!$CR488=\"\",'Enrollment Form'!$CR488=\"No\"),\"-\",IF(COUNTA('Enrollment Form'!$CT488:$CU488)=2,\"Y\",\"N\"))","v":"-"},{"$f":"IF($B481=\"N\",\"\",IF(COUNTIF('Enrollment Form'!$DG488:$DP488,\"Other\")=COUNTA('Enrollment Form'!$DK488,'Enrollment Form'!$DH488,'Enrollment Form'!$DN488,'Enrollment Form'!$DQ488),\"Y\",\"N\"))","v":""},{"$f":"IF($B481=\"N\",\"\",IF(OR('Enrollment Form'!B488<>\"Subscriber\",'Enrollment Form'!C488=\"ROC\",COUNTIF('Enrollment Form'!AV488:AW488,\"Yes\")>=1),\"-\",IF(AND('Enrollment Form'!C488=\"Enroll\",COUNTIF('Enrollment Form'!AV488:AW488,\"No\")=2,'Enrollment Form'!AX488=\"\"),\"N\",\"Y\")))","v":""},{"$f":"IF(OR(B481=\"N\",'Enrollment Form'!B488<>\"Subscriber\",'Enrollment Form'!C488=\"ROC\",'Enrollment Form'!O488<>\"Multiple of Salary\"),\"-\",IF(COUNTA('Enrollment Form'!T488:U488)<2,\"N\",\"Y\"))","v":"-"},{"$f":"IF(B481=\"N\",\"\",IF(OR('Enrollment Form'!C488=\"ROC\",'Enrollment Form'!B488<>\"Subscriber\",'Enrollment Form'!O488=\"Waive\",'Enrollment Form'!O488=\"\"),\"-\",IF('Enrollment Form'!P488=\"\",\"N\",\"Y\")))","v":""},{"$f":"IF($B481=\"N\",\"\",IF(AND('Enrollment Form'!$C488=\"ROC\",'Enrollment Form'!$DR488<>\"\"),\"Y\",IF(AND('Enrollment Form'!$C488=\"ROC\",'Enrollment Form'!$DR488=\"\"),\"N\",IF(AND('Enrollment Form'!$C488=\"Enroll\",'Enrollment Form'!$B488=\"Subscriber\",'Enrollment Form'!$CX488=\"No\",'Enrollment Form'!$DR488=\"\"),\"N\",IF(AND('Enrollment Form'!$C488=\"Enroll\",'Enrollment Form'!$B488=\"Subscriber\",'Enrollment Form'!$CX488=\"Yes\"),\"-\",\"Y\")))))","v":""},{"$f":"IF($B481=\"N\",\"\",IF(AND('Enrollment Form'!$C488=\"ROC\",'Enrollment Form'!$DS488<>\"\"),\"Y\",IF(AND('Enrollment Form'!$C488=\"ROC\",'Enrollment Form'!$DS488=\"\"),\"N\",IF(AND('Enrollment Form'!$C488=\"Enroll\",'Enrollment Form'!$B488=\"Subscriber\",'Enrollment Form'!$CX488=\"No\",'Enrollment Form'!$DS488=\"\"),\"N\",IF(AND('Enrollment Form'!$C488=\"Enroll\",'Enrollment Form'!$B488=\"Subscriber\",'Enrollment Form'!$CX488=\"Yes\"),\"-\",\"Y\")))))","v":""},{"$f":"IF('Enrollment Form'!AH488=\"\",\"\",IF(ISERROR(SEARCH(\".\",'Enrollment Form'!AH488,SEARCH(\"@\",'Enrollment Form'!AH488))),\"N\",\"Y\"))","v":""},{"$f":"IF(OR($B481=\"N\",'Enrollment Form'!$G488=\"\"),\"\",IF('Enrollment Form'!$B488<>\"Subscriber\",\"-\",IF(COUNTIF('Enrollment Form'!$AV488:$AW488,\"Yes\")=2,\"N\",\"Y\")))","v":""},{"$f":"IF(OR('Enrollment Form'!$CJ488=\"\",'Enrollment Form'!$CJ488=\"No\"),\"-\",IF(AND('Enrollment Form'!$CJ488=\"Yes\",'Enrollment Form'!$CK488=\"\"),\"N\",\"Y\"))","v":"-"},{"$f":"IF(OR('Enrollment Form'!$CL488=\"\",'Enrollment Form'!$CL488=\"No\"),\"-\",IF(AND('Enrollment Form'!$CL488=\"Yes\",'Enrollment Form'!$CM488=\"\"),\"N\",\"Y\"))","v":"-"},{"$f":"IF(OR('Enrollment Form'!$CN488=\"\",'Enrollment Form'!$CN488=\"No\"),\"-\",IF(AND('Enrollment Form'!$CN488=\"Yes\",'Enrollment Form'!$CO488=\"\"),\"N\",\"Y\"))","v":"-"},{"$f":"IF(OR('Enrollment Form'!$CN488=\"\",'Enrollment Form'!$CN488=\"No\"),\"-\",IF(AND('Enrollment Form'!$CN488=\"Yes\",'Enrollment Form'!$CP488=\"\"),\"N\",\"Y\"))","v":"-"},{"$f":"IF('Enrollment Form'!B488<>\"Subscriber\",\"-\",IF(AND('Enrollment Form'!B488=\"Subscriber\",'Enrollment Form'!C488=\"Enroll\",'Enrollment Form'!AA488=\"\"),\"N\",\"Y\"))","v":"-"},{"$f":"IF(OR('Enrollment Form'!B488=\"Subscriber\",'Enrollment Form'!B488=\"\"),\"-\",IF('Enrollment Form'!BP488=\"\",\"N\",\"Y\"))","v":"-"},{"$f":"IF('Enrollment Form'!B488<>\"Subscriber\",\"-\",IF(AND('Enrollment Form'!B488=\"Subscriber\",'Enrollment Form'!G488=\"\"),\"N\",\"Y\"))","v":"-"},{"$f":"IF('Enrollment Form'!A488=\"\",\"\",IF('Enrollment Form'!B488=\"Subscriber\",\"-\",IF(AND('Enrollment Form'!B488<>\"Subscriber\",'Enrollment Form'!G488='Enrollment Form'!H488),\"N\",\"Y\")))","v":""},0]
[489,{"$f":"IF('Enrollment Form'!$A489<>\"\",\"Y\",\"N\")","v":"N"},{"$f":"IF(AND('Enrollment Form'!$B489=\"\",'Enrollment Form'!$C489<>\"\"),\"N\",IF($B482=\"N\",\"\",\"Y\"))","v":""},{"$f":"IF(OR($B482=\"N\",'Enrollment Form'!G489=\"\"),\"\",IF('Enrollment Form'!$B489<>\"Subscriber\",\"\",IF('Enrollment Form'!$G489='Enrollment Form'!$H489,\"Y\",\"N\")))","v":""},{"$f":"IF($B482=\"N\",\"\",IF(AND(COUNTIFS('Enrollment Form'!$H$11:$H$1000,'Enrollment Form'!$H489,'Enrollment Form'!$B$11:$B$1000,'Enrollment Form'!$B489)>1,'Enrollment Form'!$H489<>\"\"),\"N\",\"Y\"))","v":""},{"$f":"IF($B482=\"N\",\"\",IF(LEN('Enrollment Form'!$Y489)=0,\"\",IF(LEN('Enrollment Form'!$Y489)<>5,\"N\",\"Y\")))","v":""},{"$f":"IF($B482=\"N\",\"\",IF(LEN('Enrollment Form'!$AD489=0),\"\",IF(LEN('Enrollment Form'!$AD489)<>5,\"N\",\"Y\")))","v":""},{"$f":"IF($B482=\"N\",\"\",IF(LEN('Enrollment Form'!$BS489=0),\"\",IF(LEN('Enrollment Form'!$BS489)<>5,\"N\",\"Y\")))","v":""},{"$f":"IF($B482=\"N\",\"\",IF(LEN('Enrollment Form'!$AE489)=0,\"\",IF(LEN('Enrollment Form'!$AE489)<>10,\"N\",\"Y\")))","v":""},{"$f":"IF($B482=\"N\",\"\",IF(LEN('Enrollment Form'!$AF489)=0,\"\",IF(LEN('Enrollment Form'!$AF489)<>10,\"N\",\"Y\")))","v":""},{"$f":"IF('Enrollment Form'!$O489<>\"Graded\",\"-\",IF(AND('Enrollment Form'!$O489=\"Graded\",'Enrollment Form'!$AR489<>\"\"),\"Y\",\"N\"))","v":"-"},{"$f":"IF($B482=\"N\",\"\",IF(OR('Enrollment Form'!$B489<>\"Subscriber\",'Enrollment Form'!$C489=\"ROC\"),\"-\",IF(AND('Enrollment Form'!$B489=\"Subscriber\",'Enrollment Form'!$C489=\"Enroll\",'Enrollment Form'!$AJ489<>\"\"),\"Y\",\"N\")))","v":""},{"$f":"IF($B482=\"N\",\"\",IF(OR('Enrollment Form'!$B489<>\"Subscriber\",'Enrollment Form'!$C489=\"ROC\"),\"-\",IF(AND('Enrollment Form'!$B489=\"Subscriber\",'Enrollment Form'!$C489=\"Enroll\",'Enrollment Form'!$AK489<>\"\"),\"Y\",\"N\")))","v":""},{"$f":"IF($B482=\"N\",\"\",IF(OR('Enrollment Form'!$B489<>\"Subscriber\",'Enrollment Form'!$C489=\"ROC\"),\"-\",IF(AND('Enrollment Form'!$B489=\"Subscriber\",'Enrollment Form'!$C489=\"Enroll\",'Enrollment Form'!$AL489<>\"\"),\"Y\",\"N\")))","v":""},{"$f":"IF($B482=\"N\",\"\",IF(OR('Enrollment Form'!$B489<>\"Subscriber\",'Enrollment Form'!$C489=\"ROC\"),\"-\",IF(AND('Enrollment Form'!$B489=\"Subscriber\",'Enrollment Form'!$C489=\"Enroll\",'Enrollment Form'!$AP489<>\"\"),\"Y\",\"N\")))","v":""},{"$f":"IF($B482=\"N\",\"\",IF(OR('Enrollment Form'!$B489<>\"Subscriber\",'Enrollment Form'!$C489=\"ROC\"),\"-\",IF(AND('Enrollment Form'!$B489=\"Subscriber\",'Enrollment Form'!$C489=\"Enroll\",'Enrollment Form'!$AQ489<>\"\"),\"Y\",\"N\")))","v":""},{"$f":"IF($B482=\"N\",\"\",IF(OR('Enrollment Form'!$B489<>\"Subscriber\",'Enrollment Form'!$C489=\"ROC\"),\"-\",IF(AND('Enrollment Form'!$B489=\"Subscriber\",'Enrollment Form'!$C489=\"Enroll\",'Enrollment Form'!$AS489<>\"\"),\"Y\",\"N\")))","v":""},{"$f":"IF($B482=\"N\",\"\",IF($Q482=\"-\",\"-\",IF(AND($Q482=\"Y\",'Enrollment Form'!$AS489=\"No\"),\"-\",IF(AND($Q482=\"Y\",'Enrollment Form'!$AS489=\"Yes\",'Enrollment Form'!$AT489<>\"\"),\"Y\",\"N\"))))","v":""},{"$f":"IF($B482=\"N\",\"\",IF(OR('Enrollment Form'!$B489<>\"Subscriber\",'Enrollment Form'!$C489=\"ROC\"),\"-\",IF(AND('Enrollment Form'!$B489=\"Subscriber\",'Enrollment Form'!$C489=\"Enroll\",'Enrollment Form'!$CV489<>\"\"),\"Y\",\"N\")))","v":""},{"$f":"IF($B482=\"N\",\"\",IF($S482=\"-\",\"-\",IF(AND($S482=\"Y\",'Enrollment Form'!$CV489=\"No\"),\"-\",IF(AND($S482=\"Y\",'Enrollment Form'!$CV489=\"Yes\",'Enrollment Form'!$CW489<>\"\"),\"Y\",\"N\"))))","v":""},{"$f":"IF(OR('Enrollment Form'!$AY489=\"Yes\",'Enrollment Form'!$AY489=\"\"),\"-\",IF(OR(AND('Enrollment Form'!$AY489=\"No\",ISERROR(FIND(\"HMO\",VLOOKUP('Enrollment Form'!G489,'Enrollment Form'!H$11:J$1000,3,FALSE),1))=FALSE,COUNTA('Enrollment Form'!$AZ489:$BC489)=4),AND('Enrollment Form'!$AY489=\"No\",ISERROR(FIND(\"HMO\",VLOOKUP('Enrollment Form'!G489,'Enrollment Form'!H$11:J$1000,3,FALSE),1))=FALSE,COUNTA('Enrollment Form'!$BT489:$BW489)=4)),\"Y\",\"N\"))","v":"-"},{"$f":"IF($B482=\"N\",\"\",IF('Enrollment Form'!$B489=\"Subscriber\",\"-\",IF(COUNTA('Enrollment Form'!$BL489,'Enrollment Form'!$BN489)=2,\"Y\",\"N\")))","v":""},{"$f":"IF($B482=\"N\",\"\",IF(OR('Enrollment Form'!$AX489=\"\",'Enrollment Form'!$AX489=\"No\"),\"-\",IF(AND('Enrollment Form'!$AX489=\"Yes\",COUNTA('Enrollment Form'!$CR489)=1),\"Y\",\"N\")))","v":""},{"$f":"IF(OR('Enrollment Form'!$CR489=\"\",'Enrollment Form'!$CR489=\"No\"),\"-\",IF(COUNTA('Enrollment Form'!$CT489:$CU489)=2,\"Y\",\"N\"))","v":"-"},{"$f":"IF($B482=\"N\",\"\",IF(COUNTIF('Enrollment Form'!$DG489:$DP489,\"Other\")=COUNTA('Enrollment Form'!$DK489,'Enrollment Form'!$DH489,'Enrollment Form'!$DN489,'Enrollment Form'!$DQ489),\"Y\",\"N\"))","v":""},{"$f":"IF($B482=\"N\",\"\",IF(OR('Enrollment Form'!B489<>\"Subscriber\",'Enrollment Form'!C489=\"ROC\",COUNTIF('Enrollment Form'!AV489:AW489,\"Yes\")>=1),\"-\",IF(AND('Enrollment Form'!C489=\"Enroll\",COUNTIF('Enrollment Form'!AV489:AW489,\"No\")=2,'Enrollment Form'!AX489=\"\"),\"N\",\"Y\")))","v":""},{"$f":"IF(OR(B482=\"N\",'Enrollment Form'!B489<>\"Subscriber\",'Enrollment Form'!C489=\"ROC\",'Enrollment Form'!O489<>\"Multiple of Salary\"),\"-\",IF(COUNTA('Enrollment Form'!T489:U489)<2,\"N\",\"Y\"))","v":"-"},{"$f":"IF(B482=\"N\",\"\",IF(OR('Enrollment Form'!C489=\"ROC\",'Enrollment Form'!B489<>\"Subscriber\",'Enrollment Form'!O489=\"Waive\",'Enrollment Form'!O489=\"\"),\"-\",IF('Enrollment Form'!P489=\"\",\"N\",\"Y\")))","v":""},{"$f":"IF($B482=\"N\",\"\",IF(AND('Enrollment Form'!$C489=\"ROC\",'Enrollment Form'!$DR489<>\"\"),\"Y\",IF(AND('Enrollment Form'!$C489=\"ROC\",'Enrollment Form'!$DR489=\"\"),\"N\",IF(AND('Enrollment Form'!$C489=\"Enroll\",'Enrollment Form'!$B489=\"Subscriber\",'Enrollment Form'!$CX489=\"No\",'Enrollment Form'!$DR489=\"\"),\"N\",IF(AND('Enrollment Form'!$C489=\"Enroll\",'Enrollment Form'!$B489=\"Subscriber\",'Enrollment Form'!$CX489=\"Yes\"),\"-\",\"Y\")))))","v":""},{"$f":"IF($B482=\"N\",\"\",IF(AND('Enrollment Form'!$C489=\"ROC\",'Enrollment Form'!$DS489<>\"\"),\"Y\",IF(AND('Enrollment Form'!$C489=\"ROC\",'Enrollment Form'!$DS489=\"\"),\"N\",IF(AND('Enrollment Form'!$C489=\"Enroll\",'Enrollment Form'!$B489=\"Subscriber\",'Enrollment Form'!$CX489=\"No\",'Enrollment Form'!$DS489=\"\"),\"N\",IF(AND('Enrollment Form'!$C489=\"Enroll\",'Enrollment Form'!$B489=\"Subscriber\",'Enrollment Form'!$CX489=\"Yes\"),\"-\",\"Y\")))))","v":""},{"$f":"IF('Enrollment Form'!AH489=\"\",\"\",IF(ISERROR(SEARCH(\".\",'Enrollment Form'!AH489,SEARCH(\"@\",'Enrollment Form'!AH489))),\"N\",\"Y\"))","v":""},{"$f":"IF(OR($B482=\"N\",'Enrollment Form'!$G489=\"\"),\"\",IF('Enrollment Form'!$B489<>\"Subscriber\",\"-\",IF(COUNTIF('Enrollment Form'!$AV489:$AW489,\"Yes\")=2,\"N\",\"Y\")))","v":""},{"$f":"IF(OR('Enrollment Form'!$CJ489=\"\",'Enrollment Form'!$CJ489=\"No\"),\"-\",IF(AND('Enrollment Form'!$CJ489=\"Yes\",'Enrollment Form'!$CK489=\"\"),\"N\",\"Y\"))","v":"-"},{"$f":"IF(OR('Enrollment Form'!$CL489=\"\",'Enrollment Form'!$CL489=\"No\"),\"-\",IF(AND('Enrollment Form'!$CL489=\"Yes\",'Enrollment Form'!$CM489=\"\"),\"N\",\"Y\"))","v":"-"},{"$f":"IF(OR('Enrollment Form'!$CN489=\"\",'Enrollment Form'!$CN489=\"No\"),\"-\",IF(AND('Enrollment Form'!$CN489=\"Yes\",'Enrollment Form'!$CO489=\"\"),\"N\",\"Y\"))","v":"-"},{"$f":"IF(OR('Enrollment Form'!$CN489=\"\",'Enrollment Form'!$CN489=\"No\"),\"-\",IF(AND('Enrollment Form'!$CN489=\"Yes\",'Enrollment Form'!$CP489=\"\"),\"N\",\"Y\"))","v":"-"},{"$f":"IF('Enrollment Form'!B489<>\"Subscriber\",\"-\",IF(AND('Enrollment Form'!B489=\"Subscriber\",'Enrollment Form'!C489=\"Enroll\",'Enrollment Form'!AA489=\"\"),\"N\",\"Y\"))","v":"-"},{"$f":"IF(OR('Enrollment Form'!B489=\"Subscriber\",'Enrollment Form'!B489=\"\"),\"-\",IF('Enrollment Form'!BP489=\"\",\"N\",\"Y\"))","v":"-"},{"$f":"IF('Enrollment Form'!B489<>\"Subscriber\",\"-\",IF(AND('Enrollment Form'!B489=\"Subscriber\",'Enrollment Form'!G489=\"\"),\"N\",\"Y\"))","v":"-"},{"$f":"IF('Enrollment Form'!A489=\"\",\"\",IF('Enrollment Form'!B489=\"Subscriber\",\"-\",IF(AND('Enrollment Form'!B489<>\"Subscriber\",'Enrollment Form'!G489='Enrollment Form'!H489),\"N\",\"Y\")))","v":""},0]
[490,{"$f":"IF('Enrollment Form'!$A490<>\"\",\"Y\",\"N\")","v":"N"},{"$f":"IF(AND('Enrollment Form'!$B490=\"\",'Enrollment Form'!$C490<>\"\"),\"N\",IF($B483=\"N\",\"\",\"Y\"))","v":""},{"$f":"IF(OR($B483=\"N\",'Enrollment Form'!G490=\"\"),\"\",IF('Enrollment Form'!$B490<>\"Subscriber\",\"\",IF('Enrollment Form'!$G490='Enrollment Form'!$H490,\"Y\",\"N\")))","v":""},{"$f":"IF($B483=\"N\",\"\",IF(AND(COUNTIFS('Enrollment Form'!$H$11:$H$1000,'Enrollment Form'!$H490,'Enrollment Form'!$B$11:$B$1000,'Enrollment Form'!$B490)>1,'Enrollment Form'!$H490<>\"\"),\"N\",\"Y\"))","v":""},{"$f":"IF($B483=\"N\",\"\",IF(LEN('Enrollment Form'!$Y490)=0,\"\",IF(LEN('Enrollment Form'!$Y490)<>5,\"N\",\"Y\")))","v":""},{"$f":"IF($B483=\"N\",\"\",IF(LEN('Enrollment Form'!$AD490=0),\"\",IF(LEN('Enrollment Form'!$AD490)<>5,\"N\",\"Y\")))","v":""},{"$f":"IF($B483=\"N\",\"\",IF(LEN('Enrollment Form'!$BS490=0),\"\",IF(LEN('Enrollment Form'!$BS490)<>5,\"N\",\"Y\")))","v":""},{"$f":"IF($B483=\"N\",\"\",IF(LEN('Enrollment Form'!$AE490)=0,\"\",IF(LEN('Enrollment Form'!$AE490)<>10,\"N\",\"Y\")))","v":""},{"$f":"IF($B483=\"N\",\"\",IF(LEN('Enrollment Form'!$AF490)=0,\"\",IF(LEN('Enrollment Form'!$AF490)<>10,\"N\",\"Y\")))","v":""},{"$f":"IF('Enrollment Form'!$O490<>\"Graded\",\"-\",IF(AND('Enrollment Form'!$O490=\"Graded\",'Enrollment Form'!$AR490<>\"\"),\"Y\",\"N\"))","v":"-"},{"$f":"IF($B483=\"N\",\"\",IF(OR('Enrollment Form'!$B490<>\"Subscriber\",'Enrollment Form'!$C490=\"ROC\"),\"-\",IF(AND('Enrollment Form'!$B490=\"Subscriber\",'Enrollment Form'!$C490=\"Enroll\",'Enrollment Form'!$AJ490<>\"\"),\"Y\",\"N\")))","v":""},{"$f":"IF($B483=\"N\",\"\",IF(OR('Enrollment Form'!$B490<>\"Subscriber\",'Enrollment Form'!$C490=\"ROC\"),\"-\",IF(AND('Enrollment Form'!$B490=\"Subscriber\",'Enrollment Form'!$C490=\"Enroll\",'Enrollment Form'!$AK490<>\"\"),\"Y\",\"N\")))","v":""},{"$f":"IF($B483=\"N\",\"\",IF(OR('Enrollment Form'!$B490<>\"Subscriber\",'Enrollment Form'!$C490=\"ROC\"),\"-\",IF(AND('Enrollment Form'!$B490=\"Subscriber\",'Enrollment Form'!$C490=\"Enroll\",'Enrollment Form'!$AL490<>\"\"),\"Y\",\"N\")))","v":""},{"$f":"IF($B483=\"N\",\"\",IF(OR('Enrollment Form'!$B490<>\"Subscriber\",'Enrollment Form'!$C490=\"ROC\"),\"-\",IF(AND('Enrollment Form'!$B490=\"Subscriber\",'Enrollment Form'!$C490=\"Enroll\",'Enrollment Form'!$AP490<>\"\"),\"Y\",\"N\")))","v":""},{"$f":"IF($B483=\"N\",\"\",IF(OR('Enrollment Form'!$B490<>\"Subscriber\",'Enrollment Form'!$C490=\"ROC\"),\"-\",IF(AND('Enrollment Form'!$B490=\"Subscriber\",'Enrollment Form'!$C490=\"Enroll\",'Enrollment Form'!$AQ490<>\"\"),\"Y\",\"N\")))","v":""},{"$f":"IF($B483=\"N\",\"\",IF(OR('Enrollment Form'!$B490<>\"Subscriber\",'Enrollment Form'!$C490=\"ROC\"),\"-\",IF(AND('Enrollment Form'!$B490=\"Subscriber\",'Enrollment Form'!$C490=\"Enroll\",'Enrollment Form'!$AS490<>\"\"),\"Y\",\"N\")))","v":""},{"$f":"IF($B483=\"N\",\"\",IF($Q483=\"-\",\"-\",IF(AND($Q483=\"Y\",'Enrollment Form'!$AS490=\"No\"),\"-\",IF(AND($Q483=\"Y\",'Enrollment Form'!$AS490=\"Yes\",'Enrollment Form'!$AT490<>\"\"),\"Y\",\"N\"))))","v":""},{"$f":"IF($B483=\"N\",\"\",IF(OR('Enrollment Form'!$B490<>\"Subscriber\",'Enrollment Form'!$C490=\"ROC\"),\"-\",IF(AND('Enrollment Form'!$B490=\"Subscriber\",'Enrollment Form'!$C490=\"Enroll\",'Enrollment Form'!$CV490<>\"\"),\"Y\",\"N\")))","v":""},{"$f":"IF($B483=\"N\",\"\",IF($S483=\"-\",\"-\",IF(AND($S483=\"Y\",'Enrollment Form'!$CV490=\"No\"),\"-\",IF(AND($S483=\"Y\",'Enrollment Form'!$CV490=\"Yes\",'Enrollment Form'!$CW490<>\"\"),\"Y\",\"N\"))))","v":""},{"$f":"IF(OR('Enrollment Form'!$AY490=\"Yes\",'Enrollment Form'!$AY490=\"\"),\"-\",IF(OR(AND('Enrollment Form'!$AY490=\"No\",ISERROR(FIND(\"HMO\",VLOOKUP('Enrollment Form'!G490,'Enrollment Form'!H$11:J$1000,3,FALSE),1))=FALSE,COUNTA('Enrollment Form'!$AZ490:$BC490)=4),AND('Enrollment Form'!$AY490=\"No\",ISERROR(FIND(\"HMO\",VLOOKUP('Enrollment Form'!G490,'Enrollment Form'!H$11:J$1000,3,FALSE),1))=FALSE,COUNTA('Enrollment Form'!$BT490:$BW490)=4)),\"Y\",\"N\"))","v":"-"},{"$f":"IF($B483=\"N\",\"\",IF('Enrollment Form'!$B490=\"Subscriber\",\"-\",IF(COUNTA('Enrollment Form'!$BL490,'Enrollment Form'!$BN490)=2,\"Y\",\"N\")))","v":""},{"$f":"IF($B483=\"N\",\"\",IF(OR('Enrollment Form'!$AX490=\"\",'Enrollment Form'!$AX490=\"No\"),\"-\",IF(AND('Enrollment Form'!$AX490=\"Yes\",COUNTA('Enrollment Form'!$CR490)=1),\"Y\",\"N\")))","v":""},{"$f":"IF(OR('Enrollment Form'!$CR490=\"\",'Enrollment Form'!$CR490=\"No\"),\"-\",IF(COUNTA('Enrollment Form'!$CT490:$CU490)=2,\"Y\",\"N\"))","v":"-"},{"$f":"IF($B483=\"N\",\"\",IF(COUNTIF('Enrollment Form'!$DG490:$DP490,\"Other\")=COUNTA('Enrollment Form'!$DK490,'Enrollment Form'!$DH490,'Enrollment Form'!$DN490,'Enrollment Form'!$DQ490),\"Y\",\"N\"))","v":""},{"$f":"IF($B483=\"N\",\"\",IF(OR('Enrollment Form'!B490<>\"Subscriber\",'Enrollment Form'!C490=\"ROC\",COUNTIF('Enrollment Form'!AV490:AW490,\"Yes\")>=1),\"-\",IF(AND('Enrollment Form'!C490=\"Enroll\",COUNTIF('Enrollment Form'!AV490:AW490,\"No\")=2,'Enrollment Form'!AX490=\"\"),\"N\",\"Y\")))","v":""},{"$f":"IF(OR(B483=\"N\",'Enrollment Form'!B490<>\"Subscriber\",'Enrollment Form'!C490=\"ROC\",'Enrollment Form'!O490<>\"Multiple of Salary\"),\"-\",IF(COUNTA('Enrollment Form'!T490:U490)<2,\"N\",\"Y\"))","v":"-"},{"$f":"IF(B483=\"N\",\"\",IF(OR('Enrollment Form'!C490=\"ROC\",'Enrollment Form'!B490<>\"Subscriber\",'Enrollment Form'!O490=\"Waive\",'Enrollment Form'!O490=\"\"),\"-\",IF('Enrollment Form'!P490=\"\",\"N\",\"Y\")))","v":""},{"$f":"IF($B483=\"N\",\"\",IF(AND('Enrollment Form'!$C490=\"ROC\",'Enrollment Form'!$DR490<>\"\"),\"Y\",IF(AND('Enrollment Form'!$C490=\"ROC\",'Enrollment Form'!$DR490=\"\"),\"N\",IF(AND('Enrollment Form'!$C490=\"Enroll\",'Enrollment Form'!$B490=\"Subscriber\",'Enrollment Form'!$CX490=\"No\",'Enrollment Form'!$DR490=\"\"),\"N\",IF(AND('Enrollment Form'!$C490=\"Enroll\",'Enrollment Form'!$B490=\"Subscriber\",'Enrollment Form'!$CX490=\"Yes\"),\"-\",\"Y\")))))","v":""},{"$f":"IF($B483=\"N\",\"\",IF(AND('Enrollment Form'!$C490=\"ROC\",'Enrollment Form'!$DS490<>\"\"),\"Y\",IF(AND('Enrollment Form'!$C490=\"ROC\",'Enrollment Form'!$DS490=\"\"),\"N\",IF(AND('Enrollment Form'!$C490=\"Enroll\",'Enrollment Form'!$B490=\"Subscriber\",'Enrollment Form'!$CX490=\"No\",'Enrollment Form'!$DS490=\"\"),\"N\",IF(AND('Enrollment Form'!$C490=\"Enroll\",'Enrollment Form'!$B490=\"Subscriber\",'Enrollment Form'!$CX490=\"Yes\"),\"-\",\"Y\")))))","v":""},{"$f":"IF('Enrollment Form'!AH490=\"\",\"\",IF(ISERROR(SEARCH(\".\",'Enrollment Form'!AH490,SEARCH(\"@\",'Enrollment Form'!AH490))),\"N\",\"Y\"))","v":""},{"$f":"IF(OR($B483=\"N\",'Enrollment Form'!$G490=\"\"),\"\",IF('Enrollment Form'!$B490<>\"Subscriber\",\"-\",IF(COUNTIF('Enrollment Form'!$AV490:$AW490,\"Yes\")=2,\"N\",\"Y\")))","v":""},{"$f":"IF(OR('Enrollment Form'!$CJ490=\"\",'Enrollment Form'!$CJ490=\"No\"),\"-\",IF(AND('Enrollment Form'!$CJ490=\"Yes\",'Enrollment Form'!$CK490=\"\"),\"N\",\"Y\"))","v":"-"},{"$f":"IF(OR('Enrollment Form'!$CL490=\"\",'Enrollment Form'!$CL490=\"No\"),\"-\",IF(AND('Enrollment Form'!$CL490=\"Yes\",'Enrollment Form'!$CM490=\"\"),\"N\",\"Y\"))","v":"-"},{"$f":"IF(OR('Enrollment Form'!$CN490=\"\",'Enrollment Form'!$CN490=\"No\"),\"-\",IF(AND('Enrollment Form'!$CN490=\"Yes\",'Enrollment Form'!$CO490=\"\"),\"N\",\"Y\"))","v":"-"},{"$f":"IF(OR('Enrollment Form'!$CN490=\"\",'Enrollment Form'!$CN490=\"No\"),\"-\",IF(AND('Enrollment Form'!$CN490=\"Yes\",'Enrollment Form'!$CP490=\"\"),\"N\",\"Y\"))","v":"-"},{"$f":"IF('Enrollment Form'!B490<>\"Subscriber\",\"-\",IF(AND('Enrollment Form'!B490=\"Subscriber\",'Enrollment Form'!C490=\"Enroll\",'Enrollment Form'!AA490=\"\"),\"N\",\"Y\"))","v":"-"},{"$f":"IF(OR('Enrollment Form'!B490=\"Subscriber\",'Enrollment Form'!B490=\"\"),\"-\",IF('Enrollment Form'!BP490=\"\",\"N\",\"Y\"))","v":"-"},{"$f":"IF('Enrollment Form'!B490<>\"Subscriber\",\"-\",IF(AND('Enrollment Form'!B490=\"Subscriber\",'Enrollment Form'!G490=\"\"),\"N\",\"Y\"))","v":"-"},{"$f":"IF('Enrollment Form'!A490=\"\",\"\",IF('Enrollment Form'!B490=\"Subscriber\",\"-\",IF(AND('Enrollment Form'!B490<>\"Subscriber\",'Enrollment Form'!G490='Enrollment Form'!H490),\"N\",\"Y\")))","v":""},0]
[491,{"$f":"IF('Enrollment Form'!$A491<>\"\",\"Y\",\"N\")","v":"N"},{"$f":"IF(AND('Enrollment Form'!$B491=\"\",'Enrollment Form'!$C491<>\"\"),\"N\",IF($B484=\"N\",\"\",\"Y\"))","v":""},{"$f":"IF(OR($B484=\"N\",'Enrollment Form'!G491=\"\"),\"\",IF('Enrollment Form'!$B491<>\"Subscriber\",\"\",IF('Enrollment Form'!$G491='Enrollment Form'!$H491,\"Y\",\"N\")))","v":""},{"$f":"IF($B484=\"N\",\"\",IF(AND(COUNTIFS('Enrollment Form'!$H$11:$H$1000,'Enrollment Form'!$H491,'Enrollment Form'!$B$11:$B$1000,'Enrollment Form'!$B491)>1,'Enrollment Form'!$H491<>\"\"),\"N\",\"Y\"))","v":""},{"$f":"IF($B484=\"N\",\"\",IF(LEN('Enrollment Form'!$Y491)=0,\"\",IF(LEN('Enrollment Form'!$Y491)<>5,\"N\",\"Y\")))","v":""},{"$f":"IF($B484=\"N\",\"\",IF(LEN('Enrollment Form'!$AD491=0),\"\",IF(LEN('Enrollment Form'!$AD491)<>5,\"N\",\"Y\")))","v":""},{"$f":"IF($B484=\"N\",\"\",IF(LEN('Enrollment Form'!$BS491=0),\"\",IF(LEN('Enrollment Form'!$BS491)<>5,\"N\",\"Y\")))","v":""},{"$f":"IF($B484=\"N\",\"\",IF(LEN('Enrollment Form'!$AE491)=0,\"\",IF(LEN('Enrollment Form'!$AE491)<>10,\"N\",\"Y\")))","v":""},{"$f":"IF($B484=\"N\",\"\",IF(LEN('Enrollment Form'!$AF491)=0,\"\",IF(LEN('Enrollment Form'!$AF491)<>10,\"N\",\"Y\")))","v":""},{"$f":"IF('Enrollment Form'!$O491<>\"Graded\",\"-\",IF(AND('Enrollment Form'!$O491=\"Graded\",'Enrollment Form'!$AR491<>\"\"),\"Y\",\"N\"))","v":"-"},{"$f":"IF($B484=\"N\",\"\",IF(OR('Enrollment Form'!$B491<>\"Subscriber\",'Enrollment Form'!$C491=\"ROC\"),\"-\",IF(AND('Enrollment Form'!$B491=\"Subscriber\",'Enrollment Form'!$C491=\"Enroll\",'Enrollment Form'!$AJ491<>\"\"),\"Y\",\"N\")))","v":""},{"$f":"IF($B484=\"N\",\"\",IF(OR('Enrollment Form'!$B491<>\"Subscriber\",'Enrollment Form'!$C491=\"ROC\"),\"-\",IF(AND('Enrollment Form'!$B491=\"Subscriber\",'Enrollment Form'!$C491=\"Enroll\",'Enrollment Form'!$AK491<>\"\"),\"Y\",\"N\")))","v":""},{"$f":"IF($B484=\"N\",\"\",IF(OR('Enrollment Form'!$B491<>\"Subscriber\",'Enrollment Form'!$C491=\"ROC\"),\"-\",IF(AND('Enrollment Form'!$B491=\"Subscriber\",'Enrollment Form'!$C491=\"Enroll\",'Enrollment Form'!$AL491<>\"\"),\"Y\",\"N\")))","v":""},{"$f":"IF($B484=\"N\",\"\",IF(OR('Enrollment Form'!$B491<>\"Subscriber\",'Enrollment Form'!$C491=\"ROC\"),\"-\",IF(AND('Enrollment Form'!$B491=\"Subscriber\",'Enrollment Form'!$C491=\"Enroll\",'Enrollment Form'!$AP491<>\"\"),\"Y\",\"N\")))","v":""},{"$f":"IF($B484=\"N\",\"\",IF(OR('Enrollment Form'!$B491<>\"Subscriber\",'Enrollment Form'!$C491=\"ROC\"),\"-\",IF(AND('Enrollment Form'!$B491=\"Subscriber\",'Enrollment Form'!$C491=\"Enroll\",'Enrollment Form'!$AQ491<>\"\"),\"Y\",\"N\")))","v":""},{"$f":"IF($B484=\"N\",\"\",IF(OR('Enrollment Form'!$B491<>\"Subscriber\",'Enrollment Form'!$C491=\"ROC\"),\"-\",IF(AND('Enrollment Form'!$B491=\"Subscriber\",'Enrollment Form'!$C491=\"Enroll\",'Enrollment Form'!$AS491<>\"\"),\"Y\",\"N\")))","v":""},{"$f":"IF($B484=\"N\",\"\",IF($Q484=\"-\",\"-\",IF(AND($Q484=\"Y\",'Enrollment Form'!$AS491=\"No\"),\"-\",IF(AND($Q484=\"Y\",'Enrollment Form'!$AS491=\"Yes\",'Enrollment Form'!$AT491<>\"\"),\"Y\",\"N\"))))","v":""},{"$f":"IF($B484=\"N\",\"\",IF(OR('Enrollment Form'!$B491<>\"Subscriber\",'Enrollment Form'!$C491=\"ROC\"),\"-\",IF(AND('Enrollment Form'!$B491=\"Subscriber\",'Enrollment Form'!$C491=\"Enroll\",'Enrollment Form'!$CV491<>\"\"),\"Y\",\"N\")))","v":""},{"$f":"IF($B484=\"N\",\"\",IF($S484=\"-\",\"-\",IF(AND($S484=\"Y\",'Enrollment Form'!$CV491=\"No\"),\"-\",IF(AND($S484=\"Y\",'Enrollment Form'!$CV491=\"Yes\",'Enrollment Form'!$CW491<>\"\"),\"Y\",\"N\"))))","v":""},{"$f":"IF(OR('Enrollment Form'!$AY491=\"Yes\",'Enrollment Form'!$AY491=\"\"),\"-\",IF(OR(AND('Enrollment Form'!$AY491=\"No\",ISERROR(FIND(\"HMO\",VLOOKUP('Enrollment Form'!G491,'Enrollment Form'!H$11:J$1000,3,FALSE),1))=FALSE,COUNTA('Enrollment Form'!$AZ491:$BC491)=4),AND('Enrollment Form'!$AY491=\"No\",ISERROR(FIND(\"HMO\",VLOOKUP('Enrollment Form'!G491,'Enrollment Form'!H$11:J$1000,3,FALSE),1))=FALSE,COUNTA('Enrollment Form'!$BT491:$BW491)=4)),\"Y\",\"N\"))","v":"-"},{"$f":"IF($B484=\"N\",\"\",IF('Enrollment Form'!$B491=\"Subscriber\",\"-\",IF(COUNTA('Enrollment Form'!$BL491,'Enrollment Form'!$BN491)=2,\"Y\",\"N\")))","v":""},{"$f":"IF($B484=\"N\",\"\",IF(OR('Enrollment Form'!$AX491=\"\",'Enrollment Form'!$AX491=\"No\"),\"-\",IF(AND('Enrollment Form'!$AX491=\"Yes\",COUNTA('Enrollment Form'!$CR491)=1),\"Y\",\"N\")))","v":""},{"$f":"IF(OR('Enrollment Form'!$CR491=\"\",'Enrollment Form'!$CR491=\"No\"),\"-\",IF(COUNTA('Enrollment Form'!$CT491:$CU491)=2,\"Y\",\"N\"))","v":"-"},{"$f":"IF($B484=\"N\",\"\",IF(COUNTIF('Enrollment Form'!$DG491:$DP491,\"Other\")=COUNTA('Enrollment Form'!$DK491,'Enrollment Form'!$DH491,'Enrollment Form'!$DN491,'Enrollment Form'!$DQ491),\"Y\",\"N\"))","v":""},{"$f":"IF($B484=\"N\",\"\",IF(OR('Enrollment Form'!B491<>\"Subscriber\",'Enrollment Form'!C491=\"ROC\",COUNTIF('Enrollment Form'!AV491:AW491,\"Yes\")>=1),\"-\",IF(AND('Enrollment Form'!C491=\"Enroll\",COUNTIF('Enrollment Form'!AV491:AW491,\"No\")=2,'Enrollment Form'!AX491=\"\"),\"N\",\"Y\")))","v":""},{"$f":"IF(OR(B484=\"N\",'Enrollment Form'!B491<>\"Subscriber\",'Enrollment Form'!C491=\"ROC\",'Enrollment Form'!O491<>\"Multiple of Salary\"),\"-\",IF(COUNTA('Enrollment Form'!T491:U491)<2,\"N\",\"Y\"))","v":"-"},{"$f":"IF(B484=\"N\",\"\",IF(OR('Enrollment Form'!C491=\"ROC\",'Enrollment Form'!B491<>\"Subscriber\",'Enrollment Form'!O491=\"Waive\",'Enrollment Form'!O491=\"\"),\"-\",IF('Enrollment Form'!P491=\"\",\"N\",\"Y\")))","v":""},{"$f":"IF($B484=\"N\",\"\",IF(AND('Enrollment Form'!$C491=\"ROC\",'Enrollment Form'!$DR491<>\"\"),\"Y\",IF(AND('Enrollment Form'!$C491=\"ROC\",'Enrollment Form'!$DR491=\"\"),\"N\",IF(AND('Enrollment Form'!$C491=\"Enroll\",'Enrollment Form'!$B491=\"Subscriber\",'Enrollment Form'!$CX491=\"No\",'Enrollment Form'!$DR491=\"\"),\"N\",IF(AND('Enrollment Form'!$C491=\"Enroll\",'Enrollment Form'!$B491=\"Subscriber\",'Enrollment Form'!$CX491=\"Yes\"),\"-\",\"Y\")))))","v":""},{"$f":"IF($B484=\"N\",\"\",IF(AND('Enrollment Form'!$C491=\"ROC\",'Enrollment Form'!$DS491<>\"\"),\"Y\",IF(AND('Enrollment Form'!$C491=\"ROC\",'Enrollment Form'!$DS491=\"\"),\"N\",IF(AND('Enrollment Form'!$C491=\"Enroll\",'Enrollment Form'!$B491=\"Subscriber\",'Enrollment Form'!$CX491=\"No\",'Enrollment Form'!$DS491=\"\"),\"N\",IF(AND('Enrollment Form'!$C491=\"Enroll\",'Enrollment Form'!$B491=\"Subscriber\",'Enrollment Form'!$CX491=\"Yes\"),\"-\",\"Y\")))))","v":""},{"$f":"IF('Enrollment Form'!AH491=\"\",\"\",IF(ISERROR(SEARCH(\".\",'Enrollment Form'!AH491,SEARCH(\"@\",'Enrollment Form'!AH491))),\"N\",\"Y\"))","v":""},{"$f":"IF(OR($B484=\"N\",'Enrollment Form'!$G491=\"\"),\"\",IF('Enrollment Form'!$B491<>\"Subscriber\",\"-\",IF(COUNTIF('Enrollment Form'!$AV491:$AW491,\"Yes\")=2,\"N\",\"Y\")))","v":""},{"$f":"IF(OR('Enrollment Form'!$CJ491=\"\",'Enrollment Form'!$CJ491=\"No\"),\"-\",IF(AND('Enrollment Form'!$CJ491=\"Yes\",'Enrollment Form'!$CK491=\"\"),\"N\",\"Y\"))","v":"-"},{"$f":"IF(OR('Enrollment Form'!$CL491=\"\",'Enrollment Form'!$CL491=\"No\"),\"-\",IF(AND('Enrollment Form'!$CL491=\"Yes\",'Enrollment Form'!$CM491=\"\"),\"N\",\"Y\"))","v":"-"},{"$f":"IF(OR('Enrollment Form'!$CN491=\"\",'Enrollment Form'!$CN491=\"No\"),\"-\",IF(AND('Enrollment Form'!$CN491=\"Yes\",'Enrollment Form'!$CO491=\"\"),\"N\",\"Y\"))","v":"-"},{"$f":"IF(OR('Enrollment Form'!$CN491=\"\",'Enrollment Form'!$CN491=\"No\"),\"-\",IF(AND('Enrollment Form'!$CN491=\"Yes\",'Enrollment Form'!$CP491=\"\"),\"N\",\"Y\"))","v":"-"},{"$f":"IF('Enrollment Form'!B491<>\"Subscriber\",\"-\",IF(AND('Enrollment Form'!B491=\"Subscriber\",'Enrollment Form'!C491=\"Enroll\",'Enrollment Form'!AA491=\"\"),\"N\",\"Y\"))","v":"-"},{"$f":"IF(OR('Enrollment Form'!B491=\"Subscriber\",'Enrollment Form'!B491=\"\"),\"-\",IF('Enrollment Form'!BP491=\"\",\"N\",\"Y\"))","v":"-"},{"$f":"IF('Enrollment Form'!B491<>\"Subscriber\",\"-\",IF(AND('Enrollment Form'!B491=\"Subscriber\",'Enrollment Form'!G491=\"\"),\"N\",\"Y\"))","v":"-"},{"$f":"IF('Enrollment Form'!A491=\"\",\"\",IF('Enrollment Form'!B491=\"Subscriber\",\"-\",IF(AND('Enrollment Form'!B491<>\"Subscriber\",'Enrollment Form'!G491='Enrollment Form'!H491),\"N\",\"Y\")))","v":""},0]
[492,{"$f":"IF('Enrollment Form'!$A492<>\"\",\"Y\",\"N\")","v":"N"},{"$f":"IF(AND('Enrollment Form'!$B492=\"\",'Enrollment Form'!$C492<>\"\"),\"N\",IF($B485=\"N\",\"\",\"Y\"))","v":""},{"$f":"IF(OR($B485=\"N\",'Enrollment Form'!G492=\"\"),\"\",IF('Enrollment Form'!$B492<>\"Subscriber\",\"\",IF('Enrollment Form'!$G492='Enrollment Form'!$H492,\"Y\",\"N\")))","v":""},{"$f":"IF($B485=\"N\",\"\",IF(AND(COUNTIFS('Enrollment Form'!$H$11:$H$1000,'Enrollment Form'!$H492,'Enrollment Form'!$B$11:$B$1000,'Enrollment Form'!$B492)>1,'Enrollment Form'!$H492<>\"\"),\"N\",\"Y\"))","v":""},{"$f":"IF($B485=\"N\",\"\",IF(LEN('Enrollment Form'!$Y492)=0,\"\",IF(LEN('Enrollment Form'!$Y492)<>5,\"N\",\"Y\")))","v":""},{"$f":"IF($B485=\"N\",\"\",IF(LEN('Enrollment Form'!$AD492=0),\"\",IF(LEN('Enrollment Form'!$AD492)<>5,\"N\",\"Y\")))","v":""},{"$f":"IF($B485=\"N\",\"\",IF(LEN('Enrollment Form'!$BS492=0),\"\",IF(LEN('Enrollment Form'!$BS492)<>5,\"N\",\"Y\")))","v":""},{"$f":"IF($B485=\"N\",\"\",IF(LEN('Enrollment Form'!$AE492)=0,\"\",IF(LEN('Enrollment Form'!$AE492)<>10,\"N\",\"Y\")))","v":""},{"$f":"IF($B485=\"N\",\"\",IF(LEN('Enrollment Form'!$AF492)=0,\"\",IF(LEN('Enrollment Form'!$AF492)<>10,\"N\",\"Y\")))","v":""},{"$f":"IF('Enrollment Form'!$O492<>\"Graded\",\"-\",IF(AND('Enrollment Form'!$O492=\"Graded\",'Enrollment Form'!$AR492<>\"\"),\"Y\",\"N\"))","v":"-"},{"$f":"IF($B485=\"N\",\"\",IF(OR('Enrollment Form'!$B492<>\"Subscriber\",'Enrollment Form'!$C492=\"ROC\"),\"-\",IF(AND('Enrollment Form'!$B492=\"Subscriber\",'Enrollment Form'!$C492=\"Enroll\",'Enrollment Form'!$AJ492<>\"\"),\"Y\",\"N\")))","v":""},{"$f":"IF($B485=\"N\",\"\",IF(OR('Enrollment Form'!$B492<>\"Subscriber\",'Enrollment Form'!$C492=\"ROC\"),\"-\",IF(AND('Enrollment Form'!$B492=\"Subscriber\",'Enrollment Form'!$C492=\"Enroll\",'Enrollment Form'!$AK492<>\"\"),\"Y\",\"N\")))","v":""},{"$f":"IF($B485=\"N\",\"\",IF(OR('Enrollment Form'!$B492<>\"Subscriber\",'Enrollment Form'!$C492=\"ROC\"),\"-\",IF(AND('Enrollment Form'!$B492=\"Subscriber\",'Enrollment Form'!$C492=\"Enroll\",'Enrollment Form'!$AL492<>\"\"),\"Y\",\"N\")))","v":""},{"$f":"IF($B485=\"N\",\"\",IF(OR('Enrollment Form'!$B492<>\"Subscriber\",'Enrollment Form'!$C492=\"ROC\"),\"-\",IF(AND('Enrollment Form'!$B492=\"Subscriber\",'Enrollment Form'!$C492=\"Enroll\",'Enrollment Form'!$AP492<>\"\"),\"Y\",\"N\")))","v":""},{"$f":"IF($B485=\"N\",\"\",IF(OR('Enrollment Form'!$B492<>\"Subscriber\",'Enrollment Form'!$C492=\"ROC\"),\"-\",IF(AND('Enrollment Form'!$B492=\"Subscriber\",'Enrollment Form'!$C492=\"Enroll\",'Enrollment Form'!$AQ492<>\"\"),\"Y\",\"N\")))","v":""},{"$f":"IF($B485=\"N\",\"\",IF(OR('Enrollment Form'!$B492<>\"Subscriber\",'Enrollment Form'!$C492=\"ROC\"),\"-\",IF(AND('Enrollment Form'!$B492=\"Subscriber\",'Enrollment Form'!$C492=\"Enroll\",'Enrollment Form'!$AS492<>\"\"),\"Y\",\"N\")))","v":""},{"$f":"IF($B485=\"N\",\"\",IF($Q485=\"-\",\"-\",IF(AND($Q485=\"Y\",'Enrollment Form'!$AS492=\"No\"),\"-\",IF(AND($Q485=\"Y\",'Enrollment Form'!$AS492=\"Yes\",'Enrollment Form'!$AT492<>\"\"),\"Y\",\"N\"))))","v":""},{"$f":"IF($B485=\"N\",\"\",IF(OR('Enrollment Form'!$B492<>\"Subscriber\",'Enrollment Form'!$C492=\"ROC\"),\"-\",IF(AND('Enrollment Form'!$B492=\"Subscriber\",'Enrollment Form'!$C492=\"Enroll\",'Enrollment Form'!$CV492<>\"\"),\"Y\",\"N\")))","v":""},{"$f":"IF($B485=\"N\",\"\",IF($S485=\"-\",\"-\",IF(AND($S485=\"Y\",'Enrollment Form'!$CV492=\"No\"),\"-\",IF(AND($S485=\"Y\",'Enrollment Form'!$CV492=\"Yes\",'Enrollment Form'!$CW492<>\"\"),\"Y\",\"N\"))))","v":""},{"$f":"IF(OR('Enrollment Form'!$AY492=\"Yes\",'Enrollment Form'!$AY492=\"\"),\"-\",IF(OR(AND('Enrollment Form'!$AY492=\"No\",ISERROR(FIND(\"HMO\",VLOOKUP('Enrollment Form'!G492,'Enrollment Form'!H$11:J$1000,3,FALSE),1))=FALSE,COUNTA('Enrollment Form'!$AZ492:$BC492)=4),AND('Enrollment Form'!$AY492=\"No\",ISERROR(FIND(\"HMO\",VLOOKUP('Enrollment Form'!G492,'Enrollment Form'!H$11:J$1000,3,FALSE),1))=FALSE,COUNTA('Enrollment Form'!$BT492:$BW492)=4)),\"Y\",\"N\"))","v":"-"},{"$f":"IF($B485=\"N\",\"\",IF('Enrollment Form'!$B492=\"Subscriber\",\"-\",IF(COUNTA('Enrollment Form'!$BL492,'Enrollment Form'!$BN492)=2,\"Y\",\"N\")))","v":""},{"$f":"IF($B485=\"N\",\"\",IF(OR('Enrollment Form'!$AX492=\"\",'Enrollment Form'!$AX492=\"No\"),\"-\",IF(AND('Enrollment Form'!$AX492=\"Yes\",COUNTA('Enrollment Form'!$CR492)=1),\"Y\",\"N\")))","v":""},{"$f":"IF(OR('Enrollment Form'!$CR492=\"\",'Enrollment Form'!$CR492=\"No\"),\"-\",IF(COUNTA('Enrollment Form'!$CT492:$CU492)=2,\"Y\",\"N\"))","v":"-"},{"$f":"IF($B485=\"N\",\"\",IF(COUNTIF('Enrollment Form'!$DG492:$DP492,\"Other\")=COUNTA('Enrollment Form'!$DK492,'Enrollment Form'!$DH492,'Enrollment Form'!$DN492,'Enrollment Form'!$DQ492),\"Y\",\"N\"))","v":""},{"$f":"IF($B485=\"N\",\"\",IF(OR('Enrollment Form'!B492<>\"Subscriber\",'Enrollment Form'!C492=\"ROC\",COUNTIF('Enrollment Form'!AV492:AW492,\"Yes\")>=1),\"-\",IF(AND('Enrollment Form'!C492=\"Enroll\",COUNTIF('Enrollment Form'!AV492:AW492,\"No\")=2,'Enrollment Form'!AX492=\"\"),\"N\",\"Y\")))","v":""},{"$f":"IF(OR(B485=\"N\",'Enrollment Form'!B492<>\"Subscriber\",'Enrollment Form'!C492=\"ROC\",'Enrollment Form'!O492<>\"Multiple of Salary\"),\"-\",IF(COUNTA('Enrollment Form'!T492:U492)<2,\"N\",\"Y\"))","v":"-"},{"$f":"IF(B485=\"N\",\"\",IF(OR('Enrollment Form'!C492=\"ROC\",'Enrollment Form'!B492<>\"Subscriber\",'Enrollment Form'!O492=\"Waive\",'Enrollment Form'!O492=\"\"),\"-\",IF('Enrollment Form'!P492=\"\",\"N\",\"Y\")))","v":""},{"$f":"IF($B485=\"N\",\"\",IF(AND('Enrollment Form'!$C492=\"ROC\",'Enrollment Form'!$DR492<>\"\"),\"Y\",IF(AND('Enrollment Form'!$C492=\"ROC\",'Enrollment Form'!$DR492=\"\"),\"N\",IF(AND('Enrollment Form'!$C492=\"Enroll\",'Enrollment Form'!$B492=\"Subscriber\",'Enrollment Form'!$CX492=\"No\",'Enrollment Form'!$DR492=\"\"),\"N\",IF(AND('Enrollment Form'!$C492=\"Enroll\",'Enrollment Form'!$B492=\"Subscriber\",'Enrollment Form'!$CX492=\"Yes\"),\"-\",\"Y\")))))","v":""},{"$f":"IF($B485=\"N\",\"\",IF(AND('Enrollment Form'!$C492=\"ROC\",'Enrollment Form'!$DS492<>\"\"),\"Y\",IF(AND('Enrollment Form'!$C492=\"ROC\",'Enrollment Form'!$DS492=\"\"),\"N\",IF(AND('Enrollment Form'!$C492=\"Enroll\",'Enrollment Form'!$B492=\"Subscriber\",'Enrollment Form'!$CX492=\"No\",'Enrollment Form'!$DS492=\"\"),\"N\",IF(AND('Enrollment Form'!$C492=\"Enroll\",'Enrollment Form'!$B492=\"Subscriber\",'Enrollment Form'!$CX492=\"Yes\"),\"-\",\"Y\")))))","v":""},{"$f":"IF('Enrollment Form'!AH492=\"\",\"\",IF(ISERROR(SEARCH(\".\",'Enrollment Form'!AH492,SEARCH(\"@\",'Enrollment Form'!AH492))),\"N\",\"Y\"))","v":""},{"$f":"IF(OR($B485=\"N\",'Enrollment Form'!$G492=\"\"),\"\",IF('Enrollment Form'!$B492<>\"Subscriber\",\"-\",IF(COUNTIF('Enrollment Form'!$AV492:$AW492,\"Yes\")=2,\"N\",\"Y\")))","v":""},{"$f":"IF(OR('Enrollment Form'!$CJ492=\"\",'Enrollment Form'!$CJ492=\"No\"),\"-\",IF(AND('Enrollment Form'!$CJ492=\"Yes\",'Enrollment Form'!$CK492=\"\"),\"N\",\"Y\"))","v":"-"},{"$f":"IF(OR('Enrollment Form'!$CL492=\"\",'Enrollment Form'!$CL492=\"No\"),\"-\",IF(AND('Enrollment Form'!$CL492=\"Yes\",'Enrollment Form'!$CM492=\"\"),\"N\",\"Y\"))","v":"-"},{"$f":"IF(OR('Enrollment Form'!$CN492=\"\",'Enrollment Form'!$CN492=\"No\"),\"-\",IF(AND('Enrollment Form'!$CN492=\"Yes\",'Enrollment Form'!$CO492=\"\"),\"N\",\"Y\"))","v":"-"},{"$f":"IF(OR('Enrollment Form'!$CN492=\"\",'Enrollment Form'!$CN492=\"No\"),\"-\",IF(AND('Enrollment Form'!$CN492=\"Yes\",'Enrollment Form'!$CP492=\"\"),\"N\",\"Y\"))","v":"-"},{"$f":"IF('Enrollment Form'!B492<>\"Subscriber\",\"-\",IF(AND('Enrollment Form'!B492=\"Subscriber\",'Enrollment Form'!C492=\"Enroll\",'Enrollment Form'!AA492=\"\"),\"N\",\"Y\"))","v":"-"},{"$f":"IF(OR('Enrollment Form'!B492=\"Subscriber\",'Enrollment Form'!B492=\"\"),\"-\",IF('Enrollment Form'!BP492=\"\",\"N\",\"Y\"))","v":"-"},{"$f":"IF('Enrollment Form'!B492<>\"Subscriber\",\"-\",IF(AND('Enrollment Form'!B492=\"Subscriber\",'Enrollment Form'!G492=\"\"),\"N\",\"Y\"))","v":"-"},{"$f":"IF('Enrollment Form'!A492=\"\",\"\",IF('Enrollment Form'!B492=\"Subscriber\",\"-\",IF(AND('Enrollment Form'!B492<>\"Subscriber\",'Enrollment Form'!G492='Enrollment Form'!H492),\"N\",\"Y\")))","v":""},0]
[493,{"$f":"IF('Enrollment Form'!$A493<>\"\",\"Y\",\"N\")","v":"N"},{"$f":"IF(AND('Enrollment Form'!$B493=\"\",'Enrollment Form'!$C493<>\"\"),\"N\",IF($B486=\"N\",\"\",\"Y\"))","v":""},{"$f":"IF(OR($B486=\"N\",'Enrollment Form'!G493=\"\"),\"\",IF('Enrollment Form'!$B493<>\"Subscriber\",\"\",IF('Enrollment Form'!$G493='Enrollment Form'!$H493,\"Y\",\"N\")))","v":""},{"$f":"IF($B486=\"N\",\"\",IF(AND(COUNTIFS('Enrollment Form'!$H$11:$H$1000,'Enrollment Form'!$H493,'Enrollment Form'!$B$11:$B$1000,'Enrollment Form'!$B493)>1,'Enrollment Form'!$H493<>\"\"),\"N\",\"Y\"))","v":""},{"$f":"IF($B486=\"N\",\"\",IF(LEN('Enrollment Form'!$Y493)=0,\"\",IF(LEN('Enrollment Form'!$Y493)<>5,\"N\",\"Y\")))","v":""},{"$f":"IF($B486=\"N\",\"\",IF(LEN('Enrollment Form'!$AD493=0),\"\",IF(LEN('Enrollment Form'!$AD493)<>5,\"N\",\"Y\")))","v":""},{"$f":"IF($B486=\"N\",\"\",IF(LEN('Enrollment Form'!$BS493=0),\"\",IF(LEN('Enrollment Form'!$BS493)<>5,\"N\",\"Y\")))","v":""},{"$f":"IF($B486=\"N\",\"\",IF(LEN('Enrollment Form'!$AE493)=0,\"\",IF(LEN('Enrollment Form'!$AE493)<>10,\"N\",\"Y\")))","v":""},{"$f":"IF($B486=\"N\",\"\",IF(LEN('Enrollment Form'!$AF493)=0,\"\",IF(LEN('Enrollment Form'!$AF493)<>10,\"N\",\"Y\")))","v":""},{"$f":"IF('Enrollment Form'!$O493<>\"Graded\",\"-\",IF(AND('Enrollment Form'!$O493=\"Graded\",'Enrollment Form'!$AR493<>\"\"),\"Y\",\"N\"))","v":"-"},{"$f":"IF($B486=\"N\",\"\",IF(OR('Enrollment Form'!$B493<>\"Subscriber\",'Enrollment Form'!$C493=\"ROC\"),\"-\",IF(AND('Enrollment Form'!$B493=\"Subscriber\",'Enrollment Form'!$C493=\"Enroll\",'Enrollment Form'!$AJ493<>\"\"),\"Y\",\"N\")))","v":""},{"$f":"IF($B486=\"N\",\"\",IF(OR('Enrollment Form'!$B493<>\"Subscriber\",'Enrollment Form'!$C493=\"ROC\"),\"-\",IF(AND('Enrollment Form'!$B493=\"Subscriber\",'Enrollment Form'!$C493=\"Enroll\",'Enrollment Form'!$AK493<>\"\"),\"Y\",\"N\")))","v":""},{"$f":"IF($B486=\"N\",\"\",IF(OR('Enrollment Form'!$B493<>\"Subscriber\",'Enrollment Form'!$C493=\"ROC\"),\"-\",IF(AND('Enrollment Form'!$B493=\"Subscriber\",'Enrollment Form'!$C493=\"Enroll\",'Enrollment Form'!$AL493<>\"\"),\"Y\",\"N\")))","v":""},{"$f":"IF($B486=\"N\",\"\",IF(OR('Enrollment Form'!$B493<>\"Subscriber\",'Enrollment Form'!$C493=\"ROC\"),\"-\",IF(AND('Enrollment Form'!$B493=\"Subscriber\",'Enrollment Form'!$C493=\"Enroll\",'Enrollment Form'!$AP493<>\"\"),\"Y\",\"N\")))","v":""},{"$f":"IF($B486=\"N\",\"\",IF(OR('Enrollment Form'!$B493<>\"Subscriber\",'Enrollment Form'!$C493=\"ROC\"),\"-\",IF(AND('Enrollment Form'!$B493=\"Subscriber\",'Enrollment Form'!$C493=\"Enroll\",'Enrollment Form'!$AQ493<>\"\"),\"Y\",\"N\")))","v":""},{"$f":"IF($B486=\"N\",\"\",IF(OR('Enrollment Form'!$B493<>\"Subscriber\",'Enrollment Form'!$C493=\"ROC\"),\"-\",IF(AND('Enrollment Form'!$B493=\"Subscriber\",'Enrollment Form'!$C493=\"Enroll\",'Enrollment Form'!$AS493<>\"\"),\"Y\",\"N\")))","v":""},{"$f":"IF($B486=\"N\",\"\",IF($Q486=\"-\",\"-\",IF(AND($Q486=\"Y\",'Enrollment Form'!$AS493=\"No\"),\"-\",IF(AND($Q486=\"Y\",'Enrollment Form'!$AS493=\"Yes\",'Enrollment Form'!$AT493<>\"\"),\"Y\",\"N\"))))","v":""},{"$f":"IF($B486=\"N\",\"\",IF(OR('Enrollment Form'!$B493<>\"Subscriber\",'Enrollment Form'!$C493=\"ROC\"),\"-\",IF(AND('Enrollment Form'!$B493=\"Subscriber\",'Enrollment Form'!$C493=\"Enroll\",'Enrollment Form'!$CV493<>\"\"),\"Y\",\"N\")))","v":""},{"$f":"IF($B486=\"N\",\"\",IF($S486=\"-\",\"-\",IF(AND($S486=\"Y\",'Enrollment Form'!$CV493=\"No\"),\"-\",IF(AND($S486=\"Y\",'Enrollment Form'!$CV493=\"Yes\",'Enrollment Form'!$CW493<>\"\"),\"Y\",\"N\"))))","v":""},{"$f":"IF(OR('Enrollment Form'!$AY493=\"Yes\",'Enrollment Form'!$AY493=\"\"),\"-\",IF(OR(AND('Enrollment Form'!$AY493=\"No\",ISERROR(FIND(\"HMO\",VLOOKUP('Enrollment Form'!G493,'Enrollment Form'!H$11:J$1000,3,FALSE),1))=FALSE,COUNTA('Enrollment Form'!$AZ493:$BC493)=4),AND('Enrollment Form'!$AY493=\"No\",ISERROR(FIND(\"HMO\",VLOOKUP('Enrollment Form'!G493,'Enrollment Form'!H$11:J$1000,3,FALSE),1))=FALSE,COUNTA('Enrollment Form'!$BT493:$BW493)=4)),\"Y\",\"N\"))","v":"-"},{"$f":"IF($B486=\"N\",\"\",IF('Enrollment Form'!$B493=\"Subscriber\",\"-\",IF(COUNTA('Enrollment Form'!$BL493,'Enrollment Form'!$BN493)=2,\"Y\",\"N\")))","v":""},{"$f":"IF($B486=\"N\",\"\",IF(OR('Enrollment Form'!$AX493=\"\",'Enrollment Form'!$AX493=\"No\"),\"-\",IF(AND('Enrollment Form'!$AX493=\"Yes\",COUNTA('Enrollment Form'!$CR493)=1),\"Y\",\"N\")))","v":""},{"$f":"IF(OR('Enrollment Form'!$CR493=\"\",'Enrollment Form'!$CR493=\"No\"),\"-\",IF(COUNTA('Enrollment Form'!$CT493:$CU493)=2,\"Y\",\"N\"))","v":"-"},{"$f":"IF($B486=\"N\",\"\",IF(COUNTIF('Enrollment Form'!$DG493:$DP493,\"Other\")=COUNTA('Enrollment Form'!$DK493,'Enrollment Form'!$DH493,'Enrollment Form'!$DN493,'Enrollment Form'!$DQ493),\"Y\",\"N\"))","v":""},{"$f":"IF($B486=\"N\",\"\",IF(OR('Enrollment Form'!B493<>\"Subscriber\",'Enrollment Form'!C493=\"ROC\",COUNTIF('Enrollment Form'!AV493:AW493,\"Yes\")>=1),\"-\",IF(AND('Enrollment Form'!C493=\"Enroll\",COUNTIF('Enrollment Form'!AV493:AW493,\"No\")=2,'Enrollment Form'!AX493=\"\"),\"N\",\"Y\")))","v":""},{"$f":"IF(OR(B486=\"N\",'Enrollment Form'!B493<>\"Subscriber\",'Enrollment Form'!C493=\"ROC\",'Enrollment Form'!O493<>\"Multiple of Salary\"),\"-\",IF(COUNTA('Enrollment Form'!T493:U493)<2,\"N\",\"Y\"))","v":"-"},{"$f":"IF(B486=\"N\",\"\",IF(OR('Enrollment Form'!C493=\"ROC\",'Enrollment Form'!B493<>\"Subscriber\",'Enrollment Form'!O493=\"Waive\",'Enrollment Form'!O493=\"\"),\"-\",IF('Enrollment Form'!P493=\"\",\"N\",\"Y\")))","v":""},{"$f":"IF($B486=\"N\",\"\",IF(AND('Enrollment Form'!$C493=\"ROC\",'Enrollment Form'!$DR493<>\"\"),\"Y\",IF(AND('Enrollment Form'!$C493=\"ROC\",'Enrollment Form'!$DR493=\"\"),\"N\",IF(AND('Enrollment Form'!$C493=\"Enroll\",'Enrollment Form'!$B493=\"Subscriber\",'Enrollment Form'!$CX493=\"No\",'Enrollment Form'!$DR493=\"\"),\"N\",IF(AND('Enrollment Form'!$C493=\"Enroll\",'Enrollment Form'!$B493=\"Subscriber\",'Enrollment Form'!$CX493=\"Yes\"),\"-\",\"Y\")))))","v":""},{"$f":"IF($B486=\"N\",\"\",IF(AND('Enrollment Form'!$C493=\"ROC\",'Enrollment Form'!$DS493<>\"\"),\"Y\",IF(AND('Enrollment Form'!$C493=\"ROC\",'Enrollment Form'!$DS493=\"\"),\"N\",IF(AND('Enrollment Form'!$C493=\"Enroll\",'Enrollment Form'!$B493=\"Subscriber\",'Enrollment Form'!$CX493=\"No\",'Enrollment Form'!$DS493=\"\"),\"N\",IF(AND('Enrollment Form'!$C493=\"Enroll\",'Enrollment Form'!$B493=\"Subscriber\",'Enrollment Form'!$CX493=\"Yes\"),\"-\",\"Y\")))))","v":""},{"$f":"IF('Enrollment Form'!AH493=\"\",\"\",IF(ISERROR(SEARCH(\".\",'Enrollment Form'!AH493,SEARCH(\"@\",'Enrollment Form'!AH493))),\"N\",\"Y\"))","v":""},{"$f":"IF(OR($B486=\"N\",'Enrollment Form'!$G493=\"\"),\"\",IF('Enrollment Form'!$B493<>\"Subscriber\",\"-\",IF(COUNTIF('Enrollment Form'!$AV493:$AW493,\"Yes\")=2,\"N\",\"Y\")))","v":""},{"$f":"IF(OR('Enrollment Form'!$CJ493=\"\",'Enrollment Form'!$CJ493=\"No\"),\"-\",IF(AND('Enrollment Form'!$CJ493=\"Yes\",'Enrollment Form'!$CK493=\"\"),\"N\",\"Y\"))","v":"-"},{"$f":"IF(OR('Enrollment Form'!$CL493=\"\",'Enrollment Form'!$CL493=\"No\"),\"-\",IF(AND('Enrollment Form'!$CL493=\"Yes\",'Enrollment Form'!$CM493=\"\"),\"N\",\"Y\"))","v":"-"},{"$f":"IF(OR('Enrollment Form'!$CN493=\"\",'Enrollment Form'!$CN493=\"No\"),\"-\",IF(AND('Enrollment Form'!$CN493=\"Yes\",'Enrollment Form'!$CO493=\"\"),\"N\",\"Y\"))","v":"-"},{"$f":"IF(OR('Enrollment Form'!$CN493=\"\",'Enrollment Form'!$CN493=\"No\"),\"-\",IF(AND('Enrollment Form'!$CN493=\"Yes\",'Enrollment Form'!$CP493=\"\"),\"N\",\"Y\"))","v":"-"},{"$f":"IF('Enrollment Form'!B493<>\"Subscriber\",\"-\",IF(AND('Enrollment Form'!B493=\"Subscriber\",'Enrollment Form'!C493=\"Enroll\",'Enrollment Form'!AA493=\"\"),\"N\",\"Y\"))","v":"-"},{"$f":"IF(OR('Enrollment Form'!B493=\"Subscriber\",'Enrollment Form'!B493=\"\"),\"-\",IF('Enrollment Form'!BP493=\"\",\"N\",\"Y\"))","v":"-"},{"$f":"IF('Enrollment Form'!B493<>\"Subscriber\",\"-\",IF(AND('Enrollment Form'!B493=\"Subscriber\",'Enrollment Form'!G493=\"\"),\"N\",\"Y\"))","v":"-"},{"$f":"IF('Enrollment Form'!A493=\"\",\"\",IF('Enrollment Form'!B493=\"Subscriber\",\"-\",IF(AND('Enrollment Form'!B493<>\"Subscriber\",'Enrollment Form'!G493='Enrollment Form'!H493),\"N\",\"Y\")))","v":""},0]
[494,{"$f":"IF('Enrollment Form'!$A494<>\"\",\"Y\",\"N\")","v":"N"},{"$f":"IF(AND('Enrollment Form'!$B494=\"\",'Enrollment Form'!$C494<>\"\"),\"N\",IF($B487=\"N\",\"\",\"Y\"))","v":""},{"$f":"IF(OR($B487=\"N\",'Enrollment Form'!G494=\"\"),\"\",IF('Enrollment Form'!$B494<>\"Subscriber\",\"\",IF('Enrollment Form'!$G494='Enrollment Form'!$H494,\"Y\",\"N\")))","v":""},{"$f":"IF($B487=\"N\",\"\",IF(AND(COUNTIFS('Enrollment Form'!$H$11:$H$1000,'Enrollment Form'!$H494,'Enrollment Form'!$B$11:$B$1000,'Enrollment Form'!$B494)>1,'Enrollment Form'!$H494<>\"\"),\"N\",\"Y\"))","v":""},{"$f":"IF($B487=\"N\",\"\",IF(LEN('Enrollment Form'!$Y494)=0,\"\",IF(LEN('Enrollment Form'!$Y494)<>5,\"N\",\"Y\")))","v":""},{"$f":"IF($B487=\"N\",\"\",IF(LEN('Enrollment Form'!$AD494=0),\"\",IF(LEN('Enrollment Form'!$AD494)<>5,\"N\",\"Y\")))","v":""},{"$f":"IF($B487=\"N\",\"\",IF(LEN('Enrollment Form'!$BS494=0),\"\",IF(LEN('Enrollment Form'!$BS494)<>5,\"N\",\"Y\")))","v":""},{"$f":"IF($B487=\"N\",\"\",IF(LEN('Enrollment Form'!$AE494)=0,\"\",IF(LEN('Enrollment Form'!$AE494)<>10,\"N\",\"Y\")))","v":""},{"$f":"IF($B487=\"N\",\"\",IF(LEN('Enrollment Form'!$AF494)=0,\"\",IF(LEN('Enrollment Form'!$AF494)<>10,\"N\",\"Y\")))","v":""},{"$f":"IF('Enrollment Form'!$O494<>\"Graded\",\"-\",IF(AND('Enrollment Form'!$O494=\"Graded\",'Enrollment Form'!$AR494<>\"\"),\"Y\",\"N\"))","v":"-"},{"$f":"IF($B487=\"N\",\"\",IF(OR('Enrollment Form'!$B494<>\"Subscriber\",'Enrollment Form'!$C494=\"ROC\"),\"-\",IF(AND('Enrollment Form'!$B494=\"Subscriber\",'Enrollment Form'!$C494=\"Enroll\",'Enrollment Form'!$AJ494<>\"\"),\"Y\",\"N\")))","v":""},{"$f":"IF($B487=\"N\",\"\",IF(OR('Enrollment Form'!$B494<>\"Subscriber\",'Enrollment Form'!$C494=\"ROC\"),\"-\",IF(AND('Enrollment Form'!$B494=\"Subscriber\",'Enrollment Form'!$C494=\"Enroll\",'Enrollment Form'!$AK494<>\"\"),\"Y\",\"N\")))","v":""},{"$f":"IF($B487=\"N\",\"\",IF(OR('Enrollment Form'!$B494<>\"Subscriber\",'Enrollment Form'!$C494=\"ROC\"),\"-\",IF(AND('Enrollment Form'!$B494=\"Subscriber\",'Enrollment Form'!$C494=\"Enroll\",'Enrollment Form'!$AL494<>\"\"),\"Y\",\"N\")))","v":""},{"$f":"IF($B487=\"N\",\"\",IF(OR('Enrollment Form'!$B494<>\"Subscriber\",'Enrollment Form'!$C494=\"ROC\"),\"-\",IF(AND('Enrollment Form'!$B494=\"Subscriber\",'Enrollment Form'!$C494=\"Enroll\",'Enrollment Form'!$AP494<>\"\"),\"Y\",\"N\")))","v":""},{"$f":"IF($B487=\"N\",\"\",IF(OR('Enrollment Form'!$B494<>\"Subscriber\",'Enrollment Form'!$C494=\"ROC\"),\"-\",IF(AND('Enrollment Form'!$B494=\"Subscriber\",'Enrollment Form'!$C494=\"Enroll\",'Enrollment Form'!$AQ494<>\"\"),\"Y\",\"N\")))","v":""},{"$f":"IF($B487=\"N\",\"\",IF(OR('Enrollment Form'!$B494<>\"Subscriber\",'Enrollment Form'!$C494=\"ROC\"),\"-\",IF(AND('Enrollment Form'!$B494=\"Subscriber\",'Enrollment Form'!$C494=\"Enroll\",'Enrollment Form'!$AS494<>\"\"),\"Y\",\"N\")))","v":""},{"$f":"IF($B487=\"N\",\"\",IF($Q487=\"-\",\"-\",IF(AND($Q487=\"Y\",'Enrollment Form'!$AS494=\"No\"),\"-\",IF(AND($Q487=\"Y\",'Enrollment Form'!$AS494=\"Yes\",'Enrollment Form'!$AT494<>\"\"),\"Y\",\"N\"))))","v":""},{"$f":"IF($B487=\"N\",\"\",IF(OR('Enrollment Form'!$B494<>\"Subscriber\",'Enrollment Form'!$C494=\"ROC\"),\"-\",IF(AND('Enrollment Form'!$B494=\"Subscriber\",'Enrollment Form'!$C494=\"Enroll\",'Enrollment Form'!$CV494<>\"\"),\"Y\",\"N\")))","v":""},{"$f":"IF($B487=\"N\",\"\",IF($S487=\"-\",\"-\",IF(AND($S487=\"Y\",'Enrollment Form'!$CV494=\"No\"),\"-\",IF(AND($S487=\"Y\",'Enrollment Form'!$CV494=\"Yes\",'Enrollment Form'!$CW494<>\"\"),\"Y\",\"N\"))))","v":""},{"$f":"IF(OR('Enrollment Form'!$AY494=\"Yes\",'Enrollment Form'!$AY494=\"\"),\"-\",IF(OR(AND('Enrollment Form'!$AY494=\"No\",ISERROR(FIND(\"HMO\",VLOOKUP('Enrollment Form'!G494,'Enrollment Form'!H$11:J$1000,3,FALSE),1))=FALSE,COUNTA('Enrollment Form'!$AZ494:$BC494)=4),AND('Enrollment Form'!$AY494=\"No\",ISERROR(FIND(\"HMO\",VLOOKUP('Enrollment Form'!G494,'Enrollment Form'!H$11:J$1000,3,FALSE),1))=FALSE,COUNTA('Enrollment Form'!$BT494:$BW494)=4)),\"Y\",\"N\"))","v":"-"},{"$f":"IF($B487=\"N\",\"\",IF('Enrollment Form'!$B494=\"Subscriber\",\"-\",IF(COUNTA('Enrollment Form'!$BL494,'Enrollment Form'!$BN494)=2,\"Y\",\"N\")))","v":""},{"$f":"IF($B487=\"N\",\"\",IF(OR('Enrollment Form'!$AX494=\"\",'Enrollment Form'!$AX494=\"No\"),\"-\",IF(AND('Enrollment Form'!$AX494=\"Yes\",COUNTA('Enrollment Form'!$CR494)=1),\"Y\",\"N\")))","v":""},{"$f":"IF(OR('Enrollment Form'!$CR494=\"\",'Enrollment Form'!$CR494=\"No\"),\"-\",IF(COUNTA('Enrollment Form'!$CT494:$CU494)=2,\"Y\",\"N\"))","v":"-"},{"$f":"IF($B487=\"N\",\"\",IF(COUNTIF('Enrollment Form'!$DG494:$DP494,\"Other\")=COUNTA('Enrollment Form'!$DK494,'Enrollment Form'!$DH494,'Enrollment Form'!$DN494,'Enrollment Form'!$DQ494),\"Y\",\"N\"))","v":""},{"$f":"IF($B487=\"N\",\"\",IF(OR('Enrollment Form'!B494<>\"Subscriber\",'Enrollment Form'!C494=\"ROC\",COUNTIF('Enrollment Form'!AV494:AW494,\"Yes\")>=1),\"-\",IF(AND('Enrollment Form'!C494=\"Enroll\",COUNTIF('Enrollment Form'!AV494:AW494,\"No\")=2,'Enrollment Form'!AX494=\"\"),\"N\",\"Y\")))","v":""},{"$f":"IF(OR(B487=\"N\",'Enrollment Form'!B494<>\"Subscriber\",'Enrollment Form'!C494=\"ROC\",'Enrollment Form'!O494<>\"Multiple of Salary\"),\"-\",IF(COUNTA('Enrollment Form'!T494:U494)<2,\"N\",\"Y\"))","v":"-"},{"$f":"IF(B487=\"N\",\"\",IF(OR('Enrollment Form'!C494=\"ROC\",'Enrollment Form'!B494<>\"Subscriber\",'Enrollment Form'!O494=\"Waive\",'Enrollment Form'!O494=\"\"),\"-\",IF('Enrollment Form'!P494=\"\",\"N\",\"Y\")))","v":""},{"$f":"IF($B487=\"N\",\"\",IF(AND('Enrollment Form'!$C494=\"ROC\",'Enrollment Form'!$DR494<>\"\"),\"Y\",IF(AND('Enrollment Form'!$C494=\"ROC\",'Enrollment Form'!$DR494=\"\"),\"N\",IF(AND('Enrollment Form'!$C494=\"Enroll\",'Enrollment Form'!$B494=\"Subscriber\",'Enrollment Form'!$CX494=\"No\",'Enrollment Form'!$DR494=\"\"),\"N\",IF(AND('Enrollment Form'!$C494=\"Enroll\",'Enrollment Form'!$B494=\"Subscriber\",'Enrollment Form'!$CX494=\"Yes\"),\"-\",\"Y\")))))","v":""},{"$f":"IF($B487=\"N\",\"\",IF(AND('Enrollment Form'!$C494=\"ROC\",'Enrollment Form'!$DS494<>\"\"),\"Y\",IF(AND('Enrollment Form'!$C494=\"ROC\",'Enrollment Form'!$DS494=\"\"),\"N\",IF(AND('Enrollment Form'!$C494=\"Enroll\",'Enrollment Form'!$B494=\"Subscriber\",'Enrollment Form'!$CX494=\"No\",'Enrollment Form'!$DS494=\"\"),\"N\",IF(AND('Enrollment Form'!$C494=\"Enroll\",'Enrollment Form'!$B494=\"Subscriber\",'Enrollment Form'!$CX494=\"Yes\"),\"-\",\"Y\")))))","v":""},{"$f":"IF('Enrollment Form'!AH494=\"\",\"\",IF(ISERROR(SEARCH(\".\",'Enrollment Form'!AH494,SEARCH(\"@\",'Enrollment Form'!AH494))),\"N\",\"Y\"))","v":""},{"$f":"IF(OR($B487=\"N\",'Enrollment Form'!$G494=\"\"),\"\",IF('Enrollment Form'!$B494<>\"Subscriber\",\"-\",IF(COUNTIF('Enrollment Form'!$AV494:$AW494,\"Yes\")=2,\"N\",\"Y\")))","v":""},{"$f":"IF(OR('Enrollment Form'!$CJ494=\"\",'Enrollment Form'!$CJ494=\"No\"),\"-\",IF(AND('Enrollment Form'!$CJ494=\"Yes\",'Enrollment Form'!$CK494=\"\"),\"N\",\"Y\"))","v":"-"},{"$f":"IF(OR('Enrollment Form'!$CL494=\"\",'Enrollment Form'!$CL494=\"No\"),\"-\",IF(AND('Enrollment Form'!$CL494=\"Yes\",'Enrollment Form'!$CM494=\"\"),\"N\",\"Y\"))","v":"-"},{"$f":"IF(OR('Enrollment Form'!$CN494=\"\",'Enrollment Form'!$CN494=\"No\"),\"-\",IF(AND('Enrollment Form'!$CN494=\"Yes\",'Enrollment Form'!$CO494=\"\"),\"N\",\"Y\"))","v":"-"},{"$f":"IF(OR('Enrollment Form'!$CN494=\"\",'Enrollment Form'!$CN494=\"No\"),\"-\",IF(AND('Enrollment Form'!$CN494=\"Yes\",'Enrollment Form'!$CP494=\"\"),\"N\",\"Y\"))","v":"-"},{"$f":"IF('Enrollment Form'!B494<>\"Subscriber\",\"-\",IF(AND('Enrollment Form'!B494=\"Subscriber\",'Enrollment Form'!C494=\"Enroll\",'Enrollment Form'!AA494=\"\"),\"N\",\"Y\"))","v":"-"},{"$f":"IF(OR('Enrollment Form'!B494=\"Subscriber\",'Enrollment Form'!B494=\"\"),\"-\",IF('Enrollment Form'!BP494=\"\",\"N\",\"Y\"))","v":"-"},{"$f":"IF('Enrollment Form'!B494<>\"Subscriber\",\"-\",IF(AND('Enrollment Form'!B494=\"Subscriber\",'Enrollment Form'!G494=\"\"),\"N\",\"Y\"))","v":"-"},{"$f":"IF('Enrollment Form'!A494=\"\",\"\",IF('Enrollment Form'!B494=\"Subscriber\",\"-\",IF(AND('Enrollment Form'!B494<>\"Subscriber\",'Enrollment Form'!G494='Enrollment Form'!H494),\"N\",\"Y\")))","v":""},0]
[495,{"$f":"IF('Enrollment Form'!$A495<>\"\",\"Y\",\"N\")","v":"N"},{"$f":"IF(AND('Enrollment Form'!$B495=\"\",'Enrollment Form'!$C495<>\"\"),\"N\",IF($B488=\"N\",\"\",\"Y\"))","v":""},{"$f":"IF(OR($B488=\"N\",'Enrollment Form'!G495=\"\"),\"\",IF('Enrollment Form'!$B495<>\"Subscriber\",\"\",IF('Enrollment Form'!$G495='Enrollment Form'!$H495,\"Y\",\"N\")))","v":""},{"$f":"IF($B488=\"N\",\"\",IF(AND(COUNTIFS('Enrollment Form'!$H$11:$H$1000,'Enrollment Form'!$H495,'Enrollment Form'!$B$11:$B$1000,'Enrollment Form'!$B495)>1,'Enrollment Form'!$H495<>\"\"),\"N\",\"Y\"))","v":""},{"$f":"IF($B488=\"N\",\"\",IF(LEN('Enrollment Form'!$Y495)=0,\"\",IF(LEN('Enrollment Form'!$Y495)<>5,\"N\",\"Y\")))","v":""},{"$f":"IF($B488=\"N\",\"\",IF(LEN('Enrollment Form'!$AD495=0),\"\",IF(LEN('Enrollment Form'!$AD495)<>5,\"N\",\"Y\")))","v":""},{"$f":"IF($B488=\"N\",\"\",IF(LEN('Enrollment Form'!$BS495=0),\"\",IF(LEN('Enrollment Form'!$BS495)<>5,\"N\",\"Y\")))","v":""},{"$f":"IF($B488=\"N\",\"\",IF(LEN('Enrollment Form'!$AE495)=0,\"\",IF(LEN('Enrollment Form'!$AE495)<>10,\"N\",\"Y\")))","v":""},{"$f":"IF($B488=\"N\",\"\",IF(LEN('Enrollment Form'!$AF495)=0,\"\",IF(LEN('Enrollment Form'!$AF495)<>10,\"N\",\"Y\")))","v":""},{"$f":"IF('Enrollment Form'!$O495<>\"Graded\",\"-\",IF(AND('Enrollment Form'!$O495=\"Graded\",'Enrollment Form'!$AR495<>\"\"),\"Y\",\"N\"))","v":"-"},{"$f":"IF($B488=\"N\",\"\",IF(OR('Enrollment Form'!$B495<>\"Subscriber\",'Enrollment Form'!$C495=\"ROC\"),\"-\",IF(AND('Enrollment Form'!$B495=\"Subscriber\",'Enrollment Form'!$C495=\"Enroll\",'Enrollment Form'!$AJ495<>\"\"),\"Y\",\"N\")))","v":""},{"$f":"IF($B488=\"N\",\"\",IF(OR('Enrollment Form'!$B495<>\"Subscriber\",'Enrollment Form'!$C495=\"ROC\"),\"-\",IF(AND('Enrollment Form'!$B495=\"Subscriber\",'Enrollment Form'!$C495=\"Enroll\",'Enrollment Form'!$AK495<>\"\"),\"Y\",\"N\")))","v":""},{"$f":"IF($B488=\"N\",\"\",IF(OR('Enrollment Form'!$B495<>\"Subscriber\",'Enrollment Form'!$C495=\"ROC\"),\"-\",IF(AND('Enrollment Form'!$B495=\"Subscriber\",'Enrollment Form'!$C495=\"Enroll\",'Enrollment Form'!$AL495<>\"\"),\"Y\",\"N\")))","v":""},{"$f":"IF($B488=\"N\",\"\",IF(OR('Enrollment Form'!$B495<>\"Subscriber\",'Enrollment Form'!$C495=\"ROC\"),\"-\",IF(AND('Enrollment Form'!$B495=\"Subscriber\",'Enrollment Form'!$C495=\"Enroll\",'Enrollment Form'!$AP495<>\"\"),\"Y\",\"N\")))","v":""},{"$f":"IF($B488=\"N\",\"\",IF(OR('Enrollment Form'!$B495<>\"Subscriber\",'Enrollment Form'!$C495=\"ROC\"),\"-\",IF(AND('Enrollment Form'!$B495=\"Subscriber\",'Enrollment Form'!$C495=\"Enroll\",'Enrollment Form'!$AQ495<>\"\"),\"Y\",\"N\")))","v":""},{"$f":"IF($B488=\"N\",\"\",IF(OR('Enrollment Form'!$B495<>\"Subscriber\",'Enrollment Form'!$C495=\"ROC\"),\"-\",IF(AND('Enrollment Form'!$B495=\"Subscriber\",'Enrollment Form'!$C495=\"Enroll\",'Enrollment Form'!$AS495<>\"\"),\"Y\",\"N\")))","v":""},{"$f":"IF($B488=\"N\",\"\",IF($Q488=\"-\",\"-\",IF(AND($Q488=\"Y\",'Enrollment Form'!$AS495=\"No\"),\"-\",IF(AND($Q488=\"Y\",'Enrollment Form'!$AS495=\"Yes\",'Enrollment Form'!$AT495<>\"\"),\"Y\",\"N\"))))","v":""},{"$f":"IF($B488=\"N\",\"\",IF(OR('Enrollment Form'!$B495<>\"Subscriber\",'Enrollment Form'!$C495=\"ROC\"),\"-\",IF(AND('Enrollment Form'!$B495=\"Subscriber\",'Enrollment Form'!$C495=\"Enroll\",'Enrollment Form'!$CV495<>\"\"),\"Y\",\"N\")))","v":""},{"$f":"IF($B488=\"N\",\"\",IF($S488=\"-\",\"-\",IF(AND($S488=\"Y\",'Enrollment Form'!$CV495=\"No\"),\"-\",IF(AND($S488=\"Y\",'Enrollment Form'!$CV495=\"Yes\",'Enrollment Form'!$CW495<>\"\"),\"Y\",\"N\"))))","v":""},{"$f":"IF(OR('Enrollment Form'!$AY495=\"Yes\",'Enrollment Form'!$AY495=\"\"),\"-\",IF(OR(AND('Enrollment Form'!$AY495=\"No\",ISERROR(FIND(\"HMO\",VLOOKUP('Enrollment Form'!G495,'Enrollment Form'!H$11:J$1000,3,FALSE),1))=FALSE,COUNTA('Enrollment Form'!$AZ495:$BC495)=4),AND('Enrollment Form'!$AY495=\"No\",ISERROR(FIND(\"HMO\",VLOOKUP('Enrollment Form'!G495,'Enrollment Form'!H$11:J$1000,3,FALSE),1))=FALSE,COUNTA('Enrollment Form'!$BT495:$BW495)=4)),\"Y\",\"N\"))","v":"-"},{"$f":"IF($B488=\"N\",\"\",IF('Enrollment Form'!$B495=\"Subscriber\",\"-\",IF(COUNTA('Enrollment Form'!$BL495,'Enrollment Form'!$BN495)=2,\"Y\",\"N\")))","v":""},{"$f":"IF($B488=\"N\",\"\",IF(OR('Enrollment Form'!$AX495=\"\",'Enrollment Form'!$AX495=\"No\"),\"-\",IF(AND('Enrollment Form'!$AX495=\"Yes\",COUNTA('Enrollment Form'!$CR495)=1),\"Y\",\"N\")))","v":""},{"$f":"IF(OR('Enrollment Form'!$CR495=\"\",'Enrollment Form'!$CR495=\"No\"),\"-\",IF(COUNTA('Enrollment Form'!$CT495:$CU495)=2,\"Y\",\"N\"))","v":"-"},{"$f":"IF($B488=\"N\",\"\",IF(COUNTIF('Enrollment Form'!$DG495:$DP495,\"Other\")=COUNTA('Enrollment Form'!$DK495,'Enrollment Form'!$DH495,'Enrollment Form'!$DN495,'Enrollment Form'!$DQ495),\"Y\",\"N\"))","v":""},{"$f":"IF($B488=\"N\",\"\",IF(OR('Enrollment Form'!B495<>\"Subscriber\",'Enrollment Form'!C495=\"ROC\",COUNTIF('Enrollment Form'!AV495:AW495,\"Yes\")>=1),\"-\",IF(AND('Enrollment Form'!C495=\"Enroll\",COUNTIF('Enrollment Form'!AV495:AW495,\"No\")=2,'Enrollment Form'!AX495=\"\"),\"N\",\"Y\")))","v":""},{"$f":"IF(OR(B488=\"N\",'Enrollment Form'!B495<>\"Subscriber\",'Enrollment Form'!C495=\"ROC\",'Enrollment Form'!O495<>\"Multiple of Salary\"),\"-\",IF(COUNTA('Enrollment Form'!T495:U495)<2,\"N\",\"Y\"))","v":"-"},{"$f":"IF(B488=\"N\",\"\",IF(OR('Enrollment Form'!C495=\"ROC\",'Enrollment Form'!B495<>\"Subscriber\",'Enrollment Form'!O495=\"Waive\",'Enrollment Form'!O495=\"\"),\"-\",IF('Enrollment Form'!P495=\"\",\"N\",\"Y\")))","v":""},{"$f":"IF($B488=\"N\",\"\",IF(AND('Enrollment Form'!$C495=\"ROC\",'Enrollment Form'!$DR495<>\"\"),\"Y\",IF(AND('Enrollment Form'!$C495=\"ROC\",'Enrollment Form'!$DR495=\"\"),\"N\",IF(AND('Enrollment Form'!$C495=\"Enroll\",'Enrollment Form'!$B495=\"Subscriber\",'Enrollment Form'!$CX495=\"No\",'Enrollment Form'!$DR495=\"\"),\"N\",IF(AND('Enrollment Form'!$C495=\"Enroll\",'Enrollment Form'!$B495=\"Subscriber\",'Enrollment Form'!$CX495=\"Yes\"),\"-\",\"Y\")))))","v":""},{"$f":"IF($B488=\"N\",\"\",IF(AND('Enrollment Form'!$C495=\"ROC\",'Enrollment Form'!$DS495<>\"\"),\"Y\",IF(AND('Enrollment Form'!$C495=\"ROC\",'Enrollment Form'!$DS495=\"\"),\"N\",IF(AND('Enrollment Form'!$C495=\"Enroll\",'Enrollment Form'!$B495=\"Subscriber\",'Enrollment Form'!$CX495=\"No\",'Enrollment Form'!$DS495=\"\"),\"N\",IF(AND('Enrollment Form'!$C495=\"Enroll\",'Enrollment Form'!$B495=\"Subscriber\",'Enrollment Form'!$CX495=\"Yes\"),\"-\",\"Y\")))))","v":""},{"$f":"IF('Enrollment Form'!AH495=\"\",\"\",IF(ISERROR(SEARCH(\".\",'Enrollment Form'!AH495,SEARCH(\"@\",'Enrollment Form'!AH495))),\"N\",\"Y\"))","v":""},{"$f":"IF(OR($B488=\"N\",'Enrollment Form'!$G495=\"\"),\"\",IF('Enrollment Form'!$B495<>\"Subscriber\",\"-\",IF(COUNTIF('Enrollment Form'!$AV495:$AW495,\"Yes\")=2,\"N\",\"Y\")))","v":""},{"$f":"IF(OR('Enrollment Form'!$CJ495=\"\",'Enrollment Form'!$CJ495=\"No\"),\"-\",IF(AND('Enrollment Form'!$CJ495=\"Yes\",'Enrollment Form'!$CK495=\"\"),\"N\",\"Y\"))","v":"-"},{"$f":"IF(OR('Enrollment Form'!$CL495=\"\",'Enrollment Form'!$CL495=\"No\"),\"-\",IF(AND('Enrollment Form'!$CL495=\"Yes\",'Enrollment Form'!$CM495=\"\"),\"N\",\"Y\"))","v":"-"},{"$f":"IF(OR('Enrollment Form'!$CN495=\"\",'Enrollment Form'!$CN495=\"No\"),\"-\",IF(AND('Enrollment Form'!$CN495=\"Yes\",'Enrollment Form'!$CO495=\"\"),\"N\",\"Y\"))","v":"-"},{"$f":"IF(OR('Enrollment Form'!$CN495=\"\",'Enrollment Form'!$CN495=\"No\"),\"-\",IF(AND('Enrollment Form'!$CN495=\"Yes\",'Enrollment Form'!$CP495=\"\"),\"N\",\"Y\"))","v":"-"},{"$f":"IF('Enrollment Form'!B495<>\"Subscriber\",\"-\",IF(AND('Enrollment Form'!B495=\"Subscriber\",'Enrollment Form'!C495=\"Enroll\",'Enrollment Form'!AA495=\"\"),\"N\",\"Y\"))","v":"-"},{"$f":"IF(OR('Enrollment Form'!B495=\"Subscriber\",'Enrollment Form'!B495=\"\"),\"-\",IF('Enrollment Form'!BP495=\"\",\"N\",\"Y\"))","v":"-"},{"$f":"IF('Enrollment Form'!B495<>\"Subscriber\",\"-\",IF(AND('Enrollment Form'!B495=\"Subscriber\",'Enrollment Form'!G495=\"\"),\"N\",\"Y\"))","v":"-"},{"$f":"IF('Enrollment Form'!A495=\"\",\"\",IF('Enrollment Form'!B495=\"Subscriber\",\"-\",IF(AND('Enrollment Form'!B495<>\"Subscriber\",'Enrollment Form'!G495='Enrollment Form'!H495),\"N\",\"Y\")))","v":""},0]
[496,{"$f":"IF('Enrollment Form'!$A496<>\"\",\"Y\",\"N\")","v":"N"},{"$f":"IF(AND('Enrollment Form'!$B496=\"\",'Enrollment Form'!$C496<>\"\"),\"N\",IF($B489=\"N\",\"\",\"Y\"))","v":""},{"$f":"IF(OR($B489=\"N\",'Enrollment Form'!G496=\"\"),\"\",IF('Enrollment Form'!$B496<>\"Subscriber\",\"\",IF('Enrollment Form'!$G496='Enrollment Form'!$H496,\"Y\",\"N\")))","v":""},{"$f":"IF($B489=\"N\",\"\",IF(AND(COUNTIFS('Enrollment Form'!$H$11:$H$1000,'Enrollment Form'!$H496,'Enrollment Form'!$B$11:$B$1000,'Enrollment Form'!$B496)>1,'Enrollment Form'!$H496<>\"\"),\"N\",\"Y\"))","v":""},{"$f":"IF($B489=\"N\",\"\",IF(LEN('Enrollment Form'!$Y496)=0,\"\",IF(LEN('Enrollment Form'!$Y496)<>5,\"N\",\"Y\")))","v":""},{"$f":"IF($B489=\"N\",\"\",IF(LEN('Enrollment Form'!$AD496=0),\"\",IF(LEN('Enrollment Form'!$AD496)<>5,\"N\",\"Y\")))","v":""},{"$f":"IF($B489=\"N\",\"\",IF(LEN('Enrollment Form'!$BS496=0),\"\",IF(LEN('Enrollment Form'!$BS496)<>5,\"N\",\"Y\")))","v":""},{"$f":"IF($B489=\"N\",\"\",IF(LEN('Enrollment Form'!$AE496)=0,\"\",IF(LEN('Enrollment Form'!$AE496)<>10,\"N\",\"Y\")))","v":""},{"$f":"IF($B489=\"N\",\"\",IF(LEN('Enrollment Form'!$AF496)=0,\"\",IF(LEN('Enrollment Form'!$AF496)<>10,\"N\",\"Y\")))","v":""},{"$f":"IF('Enrollment Form'!$O496<>\"Graded\",\"-\",IF(AND('Enrollment Form'!$O496=\"Graded\",'Enrollment Form'!$AR496<>\"\"),\"Y\",\"N\"))","v":"-"},{"$f":"IF($B489=\"N\",\"\",IF(OR('Enrollment Form'!$B496<>\"Subscriber\",'Enrollment Form'!$C496=\"ROC\"),\"-\",IF(AND('Enrollment Form'!$B496=\"Subscriber\",'Enrollment Form'!$C496=\"Enroll\",'Enrollment Form'!$AJ496<>\"\"),\"Y\",\"N\")))","v":""},{"$f":"IF($B489=\"N\",\"\",IF(OR('Enrollment Form'!$B496<>\"Subscriber\",'Enrollment Form'!$C496=\"ROC\"),\"-\",IF(AND('Enrollment Form'!$B496=\"Subscriber\",'Enrollment Form'!$C496=\"Enroll\",'Enrollment Form'!$AK496<>\"\"),\"Y\",\"N\")))","v":""},{"$f":"IF($B489=\"N\",\"\",IF(OR('Enrollment Form'!$B496<>\"Subscriber\",'Enrollment Form'!$C496=\"ROC\"),\"-\",IF(AND('Enrollment Form'!$B496=\"Subscriber\",'Enrollment Form'!$C496=\"Enroll\",'Enrollment Form'!$AL496<>\"\"),\"Y\",\"N\")))","v":""},{"$f":"IF($B489=\"N\",\"\",IF(OR('Enrollment Form'!$B496<>\"Subscriber\",'Enrollment Form'!$C496=\"ROC\"),\"-\",IF(AND('Enrollment Form'!$B496=\"Subscriber\",'Enrollment Form'!$C496=\"Enroll\",'Enrollment Form'!$AP496<>\"\"),\"Y\",\"N\")))","v":""},{"$f":"IF($B489=\"N\",\"\",IF(OR('Enrollment Form'!$B496<>\"Subscriber\",'Enrollment Form'!$C496=\"ROC\"),\"-\",IF(AND('Enrollment Form'!$B496=\"Subscriber\",'Enrollment Form'!$C496=\"Enroll\",'Enrollment Form'!$AQ496<>\"\"),\"Y\",\"N\")))","v":""},{"$f":"IF($B489=\"N\",\"\",IF(OR('Enrollment Form'!$B496<>\"Subscriber\",'Enrollment Form'!$C496=\"ROC\"),\"-\",IF(AND('Enrollment Form'!$B496=\"Subscriber\",'Enrollment Form'!$C496=\"Enroll\",'Enrollment Form'!$AS496<>\"\"),\"Y\",\"N\")))","v":""},{"$f":"IF($B489=\"N\",\"\",IF($Q489=\"-\",\"-\",IF(AND($Q489=\"Y\",'Enrollment Form'!$AS496=\"No\"),\"-\",IF(AND($Q489=\"Y\",'Enrollment Form'!$AS496=\"Yes\",'Enrollment Form'!$AT496<>\"\"),\"Y\",\"N\"))))","v":""},{"$f":"IF($B489=\"N\",\"\",IF(OR('Enrollment Form'!$B496<>\"Subscriber\",'Enrollment Form'!$C496=\"ROC\"),\"-\",IF(AND('Enrollment Form'!$B496=\"Subscriber\",'Enrollment Form'!$C496=\"Enroll\",'Enrollment Form'!$CV496<>\"\"),\"Y\",\"N\")))","v":""},{"$f":"IF($B489=\"N\",\"\",IF($S489=\"-\",\"-\",IF(AND($S489=\"Y\",'Enrollment Form'!$CV496=\"No\"),\"-\",IF(AND($S489=\"Y\",'Enrollment Form'!$CV496=\"Yes\",'Enrollment Form'!$CW496<>\"\"),\"Y\",\"N\"))))","v":""},{"$f":"IF(OR('Enrollment Form'!$AY496=\"Yes\",'Enrollment Form'!$AY496=\"\"),\"-\",IF(OR(AND('Enrollment Form'!$AY496=\"No\",ISERROR(FIND(\"HMO\",VLOOKUP('Enrollment Form'!G496,'Enrollment Form'!H$11:J$1000,3,FALSE),1))=FALSE,COUNTA('Enrollment Form'!$AZ496:$BC496)=4),AND('Enrollment Form'!$AY496=\"No\",ISERROR(FIND(\"HMO\",VLOOKUP('Enrollment Form'!G496,'Enrollment Form'!H$11:J$1000,3,FALSE),1))=FALSE,COUNTA('Enrollment Form'!$BT496:$BW496)=4)),\"Y\",\"N\"))","v":"-"},{"$f":"IF($B489=\"N\",\"\",IF('Enrollment Form'!$B496=\"Subscriber\",\"-\",IF(COUNTA('Enrollment Form'!$BL496,'Enrollment Form'!$BN496)=2,\"Y\",\"N\")))","v":""},{"$f":"IF($B489=\"N\",\"\",IF(OR('Enrollment Form'!$AX496=\"\",'Enrollment Form'!$AX496=\"No\"),\"-\",IF(AND('Enrollment Form'!$AX496=\"Yes\",COUNTA('Enrollment Form'!$CR496)=1),\"Y\",\"N\")))","v":""},{"$f":"IF(OR('Enrollment Form'!$CR496=\"\",'Enrollment Form'!$CR496=\"No\"),\"-\",IF(COUNTA('Enrollment Form'!$CT496:$CU496)=2,\"Y\",\"N\"))","v":"-"},{"$f":"IF($B489=\"N\",\"\",IF(COUNTIF('Enrollment Form'!$DG496:$DP496,\"Other\")=COUNTA('Enrollment Form'!$DK496,'Enrollment Form'!$DH496,'Enrollment Form'!$DN496,'Enrollment Form'!$DQ496),\"Y\",\"N\"))","v":""},{"$f":"IF($B489=\"N\",\"\",IF(OR('Enrollment Form'!B496<>\"Subscriber\",'Enrollment Form'!C496=\"ROC\",COUNTIF('Enrollment Form'!AV496:AW496,\"Yes\")>=1),\"-\",IF(AND('Enrollment Form'!C496=\"Enroll\",COUNTIF('Enrollment Form'!AV496:AW496,\"No\")=2,'Enrollment Form'!AX496=\"\"),\"N\",\"Y\")))","v":""},{"$f":"IF(OR(B489=\"N\",'Enrollment Form'!B496<>\"Subscriber\",'Enrollment Form'!C496=\"ROC\",'Enrollment Form'!O496<>\"Multiple of Salary\"),\"-\",IF(COUNTA('Enrollment Form'!T496:U496)<2,\"N\",\"Y\"))","v":"-"},{"$f":"IF(B489=\"N\",\"\",IF(OR('Enrollment Form'!C496=\"ROC\",'Enrollment Form'!B496<>\"Subscriber\",'Enrollment Form'!O496=\"Waive\",'Enrollment Form'!O496=\"\"),\"-\",IF('Enrollment Form'!P496=\"\",\"N\",\"Y\")))","v":""},{"$f":"IF($B489=\"N\",\"\",IF(AND('Enrollment Form'!$C496=\"ROC\",'Enrollment Form'!$DR496<>\"\"),\"Y\",IF(AND('Enrollment Form'!$C496=\"ROC\",'Enrollment Form'!$DR496=\"\"),\"N\",IF(AND('Enrollment Form'!$C496=\"Enroll\",'Enrollment Form'!$B496=\"Subscriber\",'Enrollment Form'!$CX496=\"No\",'Enrollment Form'!$DR496=\"\"),\"N\",IF(AND('Enrollment Form'!$C496=\"Enroll\",'Enrollment Form'!$B496=\"Subscriber\",'Enrollment Form'!$CX496=\"Yes\"),\"-\",\"Y\")))))","v":""},{"$f":"IF($B489=\"N\",\"\",IF(AND('Enrollment Form'!$C496=\"ROC\",'Enrollment Form'!$DS496<>\"\"),\"Y\",IF(AND('Enrollment Form'!$C496=\"ROC\",'Enrollment Form'!$DS496=\"\"),\"N\",IF(AND('Enrollment Form'!$C496=\"Enroll\",'Enrollment Form'!$B496=\"Subscriber\",'Enrollment Form'!$CX496=\"No\",'Enrollment Form'!$DS496=\"\"),\"N\",IF(AND('Enrollment Form'!$C496=\"Enroll\",'Enrollment Form'!$B496=\"Subscriber\",'Enrollment Form'!$CX496=\"Yes\"),\"-\",\"Y\")))))","v":""},{"$f":"IF('Enrollment Form'!AH496=\"\",\"\",IF(ISERROR(SEARCH(\".\",'Enrollment Form'!AH496,SEARCH(\"@\",'Enrollment Form'!AH496))),\"N\",\"Y\"))","v":""},{"$f":"IF(OR($B489=\"N\",'Enrollment Form'!$G496=\"\"),\"\",IF('Enrollment Form'!$B496<>\"Subscriber\",\"-\",IF(COUNTIF('Enrollment Form'!$AV496:$AW496,\"Yes\")=2,\"N\",\"Y\")))","v":""},{"$f":"IF(OR('Enrollment Form'!$CJ496=\"\",'Enrollment Form'!$CJ496=\"No\"),\"-\",IF(AND('Enrollment Form'!$CJ496=\"Yes\",'Enrollment Form'!$CK496=\"\"),\"N\",\"Y\"))","v":"-"},{"$f":"IF(OR('Enrollment Form'!$CL496=\"\",'Enrollment Form'!$CL496=\"No\"),\"-\",IF(AND('Enrollment Form'!$CL496=\"Yes\",'Enrollment Form'!$CM496=\"\"),\"N\",\"Y\"))","v":"-"},{"$f":"IF(OR('Enrollment Form'!$CN496=\"\",'Enrollment Form'!$CN496=\"No\"),\"-\",IF(AND('Enrollment Form'!$CN496=\"Yes\",'Enrollment Form'!$CO496=\"\"),\"N\",\"Y\"))","v":"-"},{"$f":"IF(OR('Enrollment Form'!$CN496=\"\",'Enrollment Form'!$CN496=\"No\"),\"-\",IF(AND('Enrollment Form'!$CN496=\"Yes\",'Enrollment Form'!$CP496=\"\"),\"N\",\"Y\"))","v":"-"},{"$f":"IF('Enrollment Form'!B496<>\"Subscriber\",\"-\",IF(AND('Enrollment Form'!B496=\"Subscriber\",'Enrollment Form'!C496=\"Enroll\",'Enrollment Form'!AA496=\"\"),\"N\",\"Y\"))","v":"-"},{"$f":"IF(OR('Enrollment Form'!B496=\"Subscriber\",'Enrollment Form'!B496=\"\"),\"-\",IF('Enrollment Form'!BP496=\"\",\"N\",\"Y\"))","v":"-"},{"$f":"IF('Enrollment Form'!B496<>\"Subscriber\",\"-\",IF(AND('Enrollment Form'!B496=\"Subscriber\",'Enrollment Form'!G496=\"\"),\"N\",\"Y\"))","v":"-"},{"$f":"IF('Enrollment Form'!A496=\"\",\"\",IF('Enrollment Form'!B496=\"Subscriber\",\"-\",IF(AND('Enrollment Form'!B496<>\"Subscriber\",'Enrollment Form'!G496='Enrollment Form'!H496),\"N\",\"Y\")))","v":""},0]
[497,{"$f":"IF('Enrollment Form'!$A497<>\"\",\"Y\",\"N\")","v":"N"},{"$f":"IF(AND('Enrollment Form'!$B497=\"\",'Enrollment Form'!$C497<>\"\"),\"N\",IF($B490=\"N\",\"\",\"Y\"))","v":""},{"$f":"IF(OR($B490=\"N\",'Enrollment Form'!G497=\"\"),\"\",IF('Enrollment Form'!$B497<>\"Subscriber\",\"\",IF('Enrollment Form'!$G497='Enrollment Form'!$H497,\"Y\",\"N\")))","v":""},{"$f":"IF($B490=\"N\",\"\",IF(AND(COUNTIFS('Enrollment Form'!$H$11:$H$1000,'Enrollment Form'!$H497,'Enrollment Form'!$B$11:$B$1000,'Enrollment Form'!$B497)>1,'Enrollment Form'!$H497<>\"\"),\"N\",\"Y\"))","v":""},{"$f":"IF($B490=\"N\",\"\",IF(LEN('Enrollment Form'!$Y497)=0,\"\",IF(LEN('Enrollment Form'!$Y497)<>5,\"N\",\"Y\")))","v":""},{"$f":"IF($B490=\"N\",\"\",IF(LEN('Enrollment Form'!$AD497=0),\"\",IF(LEN('Enrollment Form'!$AD497)<>5,\"N\",\"Y\")))","v":""},{"$f":"IF($B490=\"N\",\"\",IF(LEN('Enrollment Form'!$BS497=0),\"\",IF(LEN('Enrollment Form'!$BS497)<>5,\"N\",\"Y\")))","v":""},{"$f":"IF($B490=\"N\",\"\",IF(LEN('Enrollment Form'!$AE497)=0,\"\",IF(LEN('Enrollment Form'!$AE497)<>10,\"N\",\"Y\")))","v":""},{"$f":"IF($B490=\"N\",\"\",IF(LEN('Enrollment Form'!$AF497)=0,\"\",IF(LEN('Enrollment Form'!$AF497)<>10,\"N\",\"Y\")))","v":""},{"$f":"IF('Enrollment Form'!$O497<>\"Graded\",\"-\",IF(AND('Enrollment Form'!$O497=\"Graded\",'Enrollment Form'!$AR497<>\"\"),\"Y\",\"N\"))","v":"-"},{"$f":"IF($B490=\"N\",\"\",IF(OR('Enrollment Form'!$B497<>\"Subscriber\",'Enrollment Form'!$C497=\"ROC\"),\"-\",IF(AND('Enrollment Form'!$B497=\"Subscriber\",'Enrollment Form'!$C497=\"Enroll\",'Enrollment Form'!$AJ497<>\"\"),\"Y\",\"N\")))","v":""},{"$f":"IF($B490=\"N\",\"\",IF(OR('Enrollment Form'!$B497<>\"Subscriber\",'Enrollment Form'!$C497=\"ROC\"),\"-\",IF(AND('Enrollment Form'!$B497=\"Subscriber\",'Enrollment Form'!$C497=\"Enroll\",'Enrollment Form'!$AK497<>\"\"),\"Y\",\"N\")))","v":""},{"$f":"IF($B490=\"N\",\"\",IF(OR('Enrollment Form'!$B497<>\"Subscriber\",'Enrollment Form'!$C497=\"ROC\"),\"-\",IF(AND('Enrollment Form'!$B497=\"Subscriber\",'Enrollment Form'!$C497=\"Enroll\",'Enrollment Form'!$AL497<>\"\"),\"Y\",\"N\")))","v":""},{"$f":"IF($B490=\"N\",\"\",IF(OR('Enrollment Form'!$B497<>\"Subscriber\",'Enrollment Form'!$C497=\"ROC\"),\"-\",IF(AND('Enrollment Form'!$B497=\"Subscriber\",'Enrollment Form'!$C497=\"Enroll\",'Enrollment Form'!$AP497<>\"\"),\"Y\",\"N\")))","v":""},{"$f":"IF($B490=\"N\",\"\",IF(OR('Enrollment Form'!$B497<>\"Subscriber\",'Enrollment Form'!$C497=\"ROC\"),\"-\",IF(AND('Enrollment Form'!$B497=\"Subscriber\",'Enrollment Form'!$C497=\"Enroll\",'Enrollment Form'!$AQ497<>\"\"),\"Y\",\"N\")))","v":""},{"$f":"IF($B490=\"N\",\"\",IF(OR('Enrollment Form'!$B497<>\"Subscriber\",'Enrollment Form'!$C497=\"ROC\"),\"-\",IF(AND('Enrollment Form'!$B497=\"Subscriber\",'Enrollment Form'!$C497=\"Enroll\",'Enrollment Form'!$AS497<>\"\"),\"Y\",\"N\")))","v":""},{"$f":"IF($B490=\"N\",\"\",IF($Q490=\"-\",\"-\",IF(AND($Q490=\"Y\",'Enrollment Form'!$AS497=\"No\"),\"-\",IF(AND($Q490=\"Y\",'Enrollment Form'!$AS497=\"Yes\",'Enrollment Form'!$AT497<>\"\"),\"Y\",\"N\"))))","v":""},{"$f":"IF($B490=\"N\",\"\",IF(OR('Enrollment Form'!$B497<>\"Subscriber\",'Enrollment Form'!$C497=\"ROC\"),\"-\",IF(AND('Enrollment Form'!$B497=\"Subscriber\",'Enrollment Form'!$C497=\"Enroll\",'Enrollment Form'!$CV497<>\"\"),\"Y\",\"N\")))","v":""},{"$f":"IF($B490=\"N\",\"\",IF($S490=\"-\",\"-\",IF(AND($S490=\"Y\",'Enrollment Form'!$CV497=\"No\"),\"-\",IF(AND($S490=\"Y\",'Enrollment Form'!$CV497=\"Yes\",'Enrollment Form'!$CW497<>\"\"),\"Y\",\"N\"))))","v":""},{"$f":"IF(OR('Enrollment Form'!$AY497=\"Yes\",'Enrollment Form'!$AY497=\"\"),\"-\",IF(OR(AND('Enrollment Form'!$AY497=\"No\",ISERROR(FIND(\"HMO\",VLOOKUP('Enrollment Form'!G497,'Enrollment Form'!H$11:J$1000,3,FALSE),1))=FALSE,COUNTA('Enrollment Form'!$AZ497:$BC497)=4),AND('Enrollment Form'!$AY497=\"No\",ISERROR(FIND(\"HMO\",VLOOKUP('Enrollment Form'!G497,'Enrollment Form'!H$11:J$1000,3,FALSE),1))=FALSE,COUNTA('Enrollment Form'!$BT497:$BW497)=4)),\"Y\",\"N\"))","v":"-"},{"$f":"IF($B490=\"N\",\"\",IF('Enrollment Form'!$B497=\"Subscriber\",\"-\",IF(COUNTA('Enrollment Form'!$BL497,'Enrollment Form'!$BN497)=2,\"Y\",\"N\")))","v":""},{"$f":"IF($B490=\"N\",\"\",IF(OR('Enrollment Form'!$AX497=\"\",'Enrollment Form'!$AX497=\"No\"),\"-\",IF(AND('Enrollment Form'!$AX497=\"Yes\",COUNTA('Enrollment Form'!$CR497)=1),\"Y\",\"N\")))","v":""},{"$f":"IF(OR('Enrollment Form'!$CR497=\"\",'Enrollment Form'!$CR497=\"No\"),\"-\",IF(COUNTA('Enrollment Form'!$CT497:$CU497)=2,\"Y\",\"N\"))","v":"-"},{"$f":"IF($B490=\"N\",\"\",IF(COUNTIF('Enrollment Form'!$DG497:$DP497,\"Other\")=COUNTA('Enrollment Form'!$DK497,'Enrollment Form'!$DH497,'Enrollment Form'!$DN497,'Enrollment Form'!$DQ497),\"Y\",\"N\"))","v":""},{"$f":"IF($B490=\"N\",\"\",IF(OR('Enrollment Form'!B497<>\"Subscriber\",'Enrollment Form'!C497=\"ROC\",COUNTIF('Enrollment Form'!AV497:AW497,\"Yes\")>=1),\"-\",IF(AND('Enrollment Form'!C497=\"Enroll\",COUNTIF('Enrollment Form'!AV497:AW497,\"No\")=2,'Enrollment Form'!AX497=\"\"),\"N\",\"Y\")))","v":""},{"$f":"IF(OR(B490=\"N\",'Enrollment Form'!B497<>\"Subscriber\",'Enrollment Form'!C497=\"ROC\",'Enrollment Form'!O497<>\"Multiple of Salary\"),\"-\",IF(COUNTA('Enrollment Form'!T497:U497)<2,\"N\",\"Y\"))","v":"-"},{"$f":"IF(B490=\"N\",\"\",IF(OR('Enrollment Form'!C497=\"ROC\",'Enrollment Form'!B497<>\"Subscriber\",'Enrollment Form'!O497=\"Waive\",'Enrollment Form'!O497=\"\"),\"-\",IF('Enrollment Form'!P497=\"\",\"N\",\"Y\")))","v":""},{"$f":"IF($B490=\"N\",\"\",IF(AND('Enrollment Form'!$C497=\"ROC\",'Enrollment Form'!$DR497<>\"\"),\"Y\",IF(AND('Enrollment Form'!$C497=\"ROC\",'Enrollment Form'!$DR497=\"\"),\"N\",IF(AND('Enrollment Form'!$C497=\"Enroll\",'Enrollment Form'!$B497=\"Subscriber\",'Enrollment Form'!$CX497=\"No\",'Enrollment Form'!$DR497=\"\"),\"N\",IF(AND('Enrollment Form'!$C497=\"Enroll\",'Enrollment Form'!$B497=\"Subscriber\",'Enrollment Form'!$CX497=\"Yes\"),\"-\",\"Y\")))))","v":""},{"$f":"IF($B490=\"N\",\"\",IF(AND('Enrollment Form'!$C497=\"ROC\",'Enrollment Form'!$DS497<>\"\"),\"Y\",IF(AND('Enrollment Form'!$C497=\"ROC\",'Enrollment Form'!$DS497=\"\"),\"N\",IF(AND('Enrollment Form'!$C497=\"Enroll\",'Enrollment Form'!$B497=\"Subscriber\",'Enrollment Form'!$CX497=\"No\",'Enrollment Form'!$DS497=\"\"),\"N\",IF(AND('Enrollment Form'!$C497=\"Enroll\",'Enrollment Form'!$B497=\"Subscriber\",'Enrollment Form'!$CX497=\"Yes\"),\"-\",\"Y\")))))","v":""},{"$f":"IF('Enrollment Form'!AH497=\"\",\"\",IF(ISERROR(SEARCH(\".\",'Enrollment Form'!AH497,SEARCH(\"@\",'Enrollment Form'!AH497))),\"N\",\"Y\"))","v":""},{"$f":"IF(OR($B490=\"N\",'Enrollment Form'!$G497=\"\"),\"\",IF('Enrollment Form'!$B497<>\"Subscriber\",\"-\",IF(COUNTIF('Enrollment Form'!$AV497:$AW497,\"Yes\")=2,\"N\",\"Y\")))","v":""},{"$f":"IF(OR('Enrollment Form'!$CJ497=\"\",'Enrollment Form'!$CJ497=\"No\"),\"-\",IF(AND('Enrollment Form'!$CJ497=\"Yes\",'Enrollment Form'!$CK497=\"\"),\"N\",\"Y\"))","v":"-"},{"$f":"IF(OR('Enrollment Form'!$CL497=\"\",'Enrollment Form'!$CL497=\"No\"),\"-\",IF(AND('Enrollment Form'!$CL497=\"Yes\",'Enrollment Form'!$CM497=\"\"),\"N\",\"Y\"))","v":"-"},{"$f":"IF(OR('Enrollment Form'!$CN497=\"\",'Enrollment Form'!$CN497=\"No\"),\"-\",IF(AND('Enrollment Form'!$CN497=\"Yes\",'Enrollment Form'!$CO497=\"\"),\"N\",\"Y\"))","v":"-"},{"$f":"IF(OR('Enrollment Form'!$CN497=\"\",'Enrollment Form'!$CN497=\"No\"),\"-\",IF(AND('Enrollment Form'!$CN497=\"Yes\",'Enrollment Form'!$CP497=\"\"),\"N\",\"Y\"))","v":"-"},{"$f":"IF('Enrollment Form'!B497<>\"Subscriber\",\"-\",IF(AND('Enrollment Form'!B497=\"Subscriber\",'Enrollment Form'!C497=\"Enroll\",'Enrollment Form'!AA497=\"\"),\"N\",\"Y\"))","v":"-"},{"$f":"IF(OR('Enrollment Form'!B497=\"Subscriber\",'Enrollment Form'!B497=\"\"),\"-\",IF('Enrollment Form'!BP497=\"\",\"N\",\"Y\"))","v":"-"},{"$f":"IF('Enrollment Form'!B497<>\"Subscriber\",\"-\",IF(AND('Enrollment Form'!B497=\"Subscriber\",'Enrollment Form'!G497=\"\"),\"N\",\"Y\"))","v":"-"},{"$f":"IF('Enrollment Form'!A497=\"\",\"\",IF('Enrollment Form'!B497=\"Subscriber\",\"-\",IF(AND('Enrollment Form'!B497<>\"Subscriber\",'Enrollment Form'!G497='Enrollment Form'!H497),\"N\",\"Y\")))","v":""},0]
[498,{"$f":"IF('Enrollment Form'!$A498<>\"\",\"Y\",\"N\")","v":"N"},{"$f":"IF(AND('Enrollment Form'!$B498=\"\",'Enrollment Form'!$C498<>\"\"),\"N\",IF($B491=\"N\",\"\",\"Y\"))","v":""},{"$f":"IF(OR($B491=\"N\",'Enrollment Form'!G498=\"\"),\"\",IF('Enrollment Form'!$B498<>\"Subscriber\",\"\",IF('Enrollment Form'!$G498='Enrollment Form'!$H498,\"Y\",\"N\")))","v":""},{"$f":"IF($B491=\"N\",\"\",IF(AND(COUNTIFS('Enrollment Form'!$H$11:$H$1000,'Enrollment Form'!$H498,'Enrollment Form'!$B$11:$B$1000,'Enrollment Form'!$B498)>1,'Enrollment Form'!$H498<>\"\"),\"N\",\"Y\"))","v":""},{"$f":"IF($B491=\"N\",\"\",IF(LEN('Enrollment Form'!$Y498)=0,\"\",IF(LEN('Enrollment Form'!$Y498)<>5,\"N\",\"Y\")))","v":""},{"$f":"IF($B491=\"N\",\"\",IF(LEN('Enrollment Form'!$AD498=0),\"\",IF(LEN('Enrollment Form'!$AD498)<>5,\"N\",\"Y\")))","v":""},{"$f":"IF($B491=\"N\",\"\",IF(LEN('Enrollment Form'!$BS498=0),\"\",IF(LEN('Enrollment Form'!$BS498)<>5,\"N\",\"Y\")))","v":""},{"$f":"IF($B491=\"N\",\"\",IF(LEN('Enrollment Form'!$AE498)=0,\"\",IF(LEN('Enrollment Form'!$AE498)<>10,\"N\",\"Y\")))","v":""},{"$f":"IF($B491=\"N\",\"\",IF(LEN('Enrollment Form'!$AF498)=0,\"\",IF(LEN('Enrollment Form'!$AF498)<>10,\"N\",\"Y\")))","v":""},{"$f":"IF('Enrollment Form'!$O498<>\"Graded\",\"-\",IF(AND('Enrollment Form'!$O498=\"Graded\",'Enrollment Form'!$AR498<>\"\"),\"Y\",\"N\"))","v":"-"},{"$f":"IF($B491=\"N\",\"\",IF(OR('Enrollment Form'!$B498<>\"Subscriber\",'Enrollment Form'!$C498=\"ROC\"),\"-\",IF(AND('Enrollment Form'!$B498=\"Subscriber\",'Enrollment Form'!$C498=\"Enroll\",'Enrollment Form'!$AJ498<>\"\"),\"Y\",\"N\")))","v":""},{"$f":"IF($B491=\"N\",\"\",IF(OR('Enrollment Form'!$B498<>\"Subscriber\",'Enrollment Form'!$C498=\"ROC\"),\"-\",IF(AND('Enrollment Form'!$B498=\"Subscriber\",'Enrollment Form'!$C498=\"Enroll\",'Enrollment Form'!$AK498<>\"\"),\"Y\",\"N\")))","v":""},{"$f":"IF($B491=\"N\",\"\",IF(OR('Enrollment Form'!$B498<>\"Subscriber\",'Enrollment Form'!$C498=\"ROC\"),\"-\",IF(AND('Enrollment Form'!$B498=\"Subscriber\",'Enrollment Form'!$C498=\"Enroll\",'Enrollment Form'!$AL498<>\"\"),\"Y\",\"N\")))","v":""},{"$f":"IF($B491=\"N\",\"\",IF(OR('Enrollment Form'!$B498<>\"Subscriber\",'Enrollment Form'!$C498=\"ROC\"),\"-\",IF(AND('Enrollment Form'!$B498=\"Subscriber\",'Enrollment Form'!$C498=\"Enroll\",'Enrollment Form'!$AP498<>\"\"),\"Y\",\"N\")))","v":""},{"$f":"IF($B491=\"N\",\"\",IF(OR('Enrollment Form'!$B498<>\"Subscriber\",'Enrollment Form'!$C498=\"ROC\"),\"-\",IF(AND('Enrollment Form'!$B498=\"Subscriber\",'Enrollment Form'!$C498=\"Enroll\",'Enrollment Form'!$AQ498<>\"\"),\"Y\",\"N\")))","v":""},{"$f":"IF($B491=\"N\",\"\",IF(OR('Enrollment Form'!$B498<>\"Subscriber\",'Enrollment Form'!$C498=\"ROC\"),\"-\",IF(AND('Enrollment Form'!$B498=\"Subscriber\",'Enrollment Form'!$C498=\"Enroll\",'Enrollment Form'!$AS498<>\"\"),\"Y\",\"N\")))","v":""},{"$f":"IF($B491=\"N\",\"\",IF($Q491=\"-\",\"-\",IF(AND($Q491=\"Y\",'Enrollment Form'!$AS498=\"No\"),\"-\",IF(AND($Q491=\"Y\",'Enrollment Form'!$AS498=\"Yes\",'Enrollment Form'!$AT498<>\"\"),\"Y\",\"N\"))))","v":""},{"$f":"IF($B491=\"N\",\"\",IF(OR('Enrollment Form'!$B498<>\"Subscriber\",'Enrollment Form'!$C498=\"ROC\"),\"-\",IF(AND('Enrollment Form'!$B498=\"Subscriber\",'Enrollment Form'!$C498=\"Enroll\",'Enrollment Form'!$CV498<>\"\"),\"Y\",\"N\")))","v":""},{"$f":"IF($B491=\"N\",\"\",IF($S491=\"-\",\"-\",IF(AND($S491=\"Y\",'Enrollment Form'!$CV498=\"No\"),\"-\",IF(AND($S491=\"Y\",'Enrollment Form'!$CV498=\"Yes\",'Enrollment Form'!$CW498<>\"\"),\"Y\",\"N\"))))","v":""},{"$f":"IF(OR('Enrollment Form'!$AY498=\"Yes\",'Enrollment Form'!$AY498=\"\"),\"-\",IF(OR(AND('Enrollment Form'!$AY498=\"No\",ISERROR(FIND(\"HMO\",VLOOKUP('Enrollment Form'!G498,'Enrollment Form'!H$11:J$1000,3,FALSE),1))=FALSE,COUNTA('Enrollment Form'!$AZ498:$BC498)=4),AND('Enrollment Form'!$AY498=\"No\",ISERROR(FIND(\"HMO\",VLOOKUP('Enrollment Form'!G498,'Enrollment Form'!H$11:J$1000,3,FALSE),1))=FALSE,COUNTA('Enrollment Form'!$BT498:$BW498)=4)),\"Y\",\"N\"))","v":"-"},{"$f":"IF($B491=\"N\",\"\",IF('Enrollment Form'!$B498=\"Subscriber\",\"-\",IF(COUNTA('Enrollment Form'!$BL498,'Enrollment Form'!$BN498)=2,\"Y\",\"N\")))","v":""},{"$f":"IF($B491=\"N\",\"\",IF(OR('Enrollment Form'!$AX498=\"\",'Enrollment Form'!$AX498=\"No\"),\"-\",IF(AND('Enrollment Form'!$AX498=\"Yes\",COUNTA('Enrollment Form'!$CR498)=1),\"Y\",\"N\")))","v":""},{"$f":"IF(OR('Enrollment Form'!$CR498=\"\",'Enrollment Form'!$CR498=\"No\"),\"-\",IF(COUNTA('Enrollment Form'!$CT498:$CU498)=2,\"Y\",\"N\"))","v":"-"},{"$f":"IF($B491=\"N\",\"\",IF(COUNTIF('Enrollment Form'!$DG498:$DP498,\"Other\")=COUNTA('Enrollment Form'!$DK498,'Enrollment Form'!$DH498,'Enrollment Form'!$DN498,'Enrollment Form'!$DQ498),\"Y\",\"N\"))","v":""},{"$f":"IF($B491=\"N\",\"\",IF(OR('Enrollment Form'!B498<>\"Subscriber\",'Enrollment Form'!C498=\"ROC\",COUNTIF('Enrollment Form'!AV498:AW498,\"Yes\")>=1),\"-\",IF(AND('Enrollment Form'!C498=\"Enroll\",COUNTIF('Enrollment Form'!AV498:AW498,\"No\")=2,'Enrollment Form'!AX498=\"\"),\"N\",\"Y\")))","v":""},{"$f":"IF(OR(B491=\"N\",'Enrollment Form'!B498<>\"Subscriber\",'Enrollment Form'!C498=\"ROC\",'Enrollment Form'!O498<>\"Multiple of Salary\"),\"-\",IF(COUNTA('Enrollment Form'!T498:U498)<2,\"N\",\"Y\"))","v":"-"},{"$f":"IF(B491=\"N\",\"\",IF(OR('Enrollment Form'!C498=\"ROC\",'Enrollment Form'!B498<>\"Subscriber\",'Enrollment Form'!O498=\"Waive\",'Enrollment Form'!O498=\"\"),\"-\",IF('Enrollment Form'!P498=\"\",\"N\",\"Y\")))","v":""},{"$f":"IF($B491=\"N\",\"\",IF(AND('Enrollment Form'!$C498=\"ROC\",'Enrollment Form'!$DR498<>\"\"),\"Y\",IF(AND('Enrollment Form'!$C498=\"ROC\",'Enrollment Form'!$DR498=\"\"),\"N\",IF(AND('Enrollment Form'!$C498=\"Enroll\",'Enrollment Form'!$B498=\"Subscriber\",'Enrollment Form'!$CX498=\"No\",'Enrollment Form'!$DR498=\"\"),\"N\",IF(AND('Enrollment Form'!$C498=\"Enroll\",'Enrollment Form'!$B498=\"Subscriber\",'Enrollment Form'!$CX498=\"Yes\"),\"-\",\"Y\")))))","v":""},{"$f":"IF($B491=\"N\",\"\",IF(AND('Enrollment Form'!$C498=\"ROC\",'Enrollment Form'!$DS498<>\"\"),\"Y\",IF(AND('Enrollment Form'!$C498=\"ROC\",'Enrollment Form'!$DS498=\"\"),\"N\",IF(AND('Enrollment Form'!$C498=\"Enroll\",'Enrollment Form'!$B498=\"Subscriber\",'Enrollment Form'!$CX498=\"No\",'Enrollment Form'!$DS498=\"\"),\"N\",IF(AND('Enrollment Form'!$C498=\"Enroll\",'Enrollment Form'!$B498=\"Subscriber\",'Enrollment Form'!$CX498=\"Yes\"),\"-\",\"Y\")))))","v":""},{"$f":"IF('Enrollment Form'!AH498=\"\",\"\",IF(ISERROR(SEARCH(\".\",'Enrollment Form'!AH498,SEARCH(\"@\",'Enrollment Form'!AH498))),\"N\",\"Y\"))","v":""},{"$f":"IF(OR($B491=\"N\",'Enrollment Form'!$G498=\"\"),\"\",IF('Enrollment Form'!$B498<>\"Subscriber\",\"-\",IF(COUNTIF('Enrollment Form'!$AV498:$AW498,\"Yes\")=2,\"N\",\"Y\")))","v":""},{"$f":"IF(OR('Enrollment Form'!$CJ498=\"\",'Enrollment Form'!$CJ498=\"No\"),\"-\",IF(AND('Enrollment Form'!$CJ498=\"Yes\",'Enrollment Form'!$CK498=\"\"),\"N\",\"Y\"))","v":"-"},{"$f":"IF(OR('Enrollment Form'!$CL498=\"\",'Enrollment Form'!$CL498=\"No\"),\"-\",IF(AND('Enrollment Form'!$CL498=\"Yes\",'Enrollment Form'!$CM498=\"\"),\"N\",\"Y\"))","v":"-"},{"$f":"IF(OR('Enrollment Form'!$CN498=\"\",'Enrollment Form'!$CN498=\"No\"),\"-\",IF(AND('Enrollment Form'!$CN498=\"Yes\",'Enrollment Form'!$CO498=\"\"),\"N\",\"Y\"))","v":"-"},{"$f":"IF(OR('Enrollment Form'!$CN498=\"\",'Enrollment Form'!$CN498=\"No\"),\"-\",IF(AND('Enrollment Form'!$CN498=\"Yes\",'Enrollment Form'!$CP498=\"\"),\"N\",\"Y\"))","v":"-"},{"$f":"IF('Enrollment Form'!B498<>\"Subscriber\",\"-\",IF(AND('Enrollment Form'!B498=\"Subscriber\",'Enrollment Form'!C498=\"Enroll\",'Enrollment Form'!AA498=\"\"),\"N\",\"Y\"))","v":"-"},{"$f":"IF(OR('Enrollment Form'!B498=\"Subscriber\",'Enrollment Form'!B498=\"\"),\"-\",IF('Enrollment Form'!BP498=\"\",\"N\",\"Y\"))","v":"-"},{"$f":"IF('Enrollment Form'!B498<>\"Subscriber\",\"-\",IF(AND('Enrollment Form'!B498=\"Subscriber\",'Enrollment Form'!G498=\"\"),\"N\",\"Y\"))","v":"-"},{"$f":"IF('Enrollment Form'!A498=\"\",\"\",IF('Enrollment Form'!B498=\"Subscriber\",\"-\",IF(AND('Enrollment Form'!B498<>\"Subscriber\",'Enrollment Form'!G498='Enrollment Form'!H498),\"N\",\"Y\")))","v":""},0]
[499,{"$f":"IF('Enrollment Form'!$A499<>\"\",\"Y\",\"N\")","v":"N"},{"$f":"IF(AND('Enrollment Form'!$B499=\"\",'Enrollment Form'!$C499<>\"\"),\"N\",IF($B492=\"N\",\"\",\"Y\"))","v":""},{"$f":"IF(OR($B492=\"N\",'Enrollment Form'!G499=\"\"),\"\",IF('Enrollment Form'!$B499<>\"Subscriber\",\"\",IF('Enrollment Form'!$G499='Enrollment Form'!$H499,\"Y\",\"N\")))","v":""},{"$f":"IF($B492=\"N\",\"\",IF(AND(COUNTIFS('Enrollment Form'!$H$11:$H$1000,'Enrollment Form'!$H499,'Enrollment Form'!$B$11:$B$1000,'Enrollment Form'!$B499)>1,'Enrollment Form'!$H499<>\"\"),\"N\",\"Y\"))","v":""},{"$f":"IF($B492=\"N\",\"\",IF(LEN('Enrollment Form'!$Y499)=0,\"\",IF(LEN('Enrollment Form'!$Y499)<>5,\"N\",\"Y\")))","v":""},{"$f":"IF($B492=\"N\",\"\",IF(LEN('Enrollment Form'!$AD499=0),\"\",IF(LEN('Enrollment Form'!$AD499)<>5,\"N\",\"Y\")))","v":""},{"$f":"IF($B492=\"N\",\"\",IF(LEN('Enrollment Form'!$BS499=0),\"\",IF(LEN('Enrollment Form'!$BS499)<>5,\"N\",\"Y\")))","v":""},{"$f":"IF($B492=\"N\",\"\",IF(LEN('Enrollment Form'!$AE499)=0,\"\",IF(LEN('Enrollment Form'!$AE499)<>10,\"N\",\"Y\")))","v":""},{"$f":"IF($B492=\"N\",\"\",IF(LEN('Enrollment Form'!$AF499)=0,\"\",IF(LEN('Enrollment Form'!$AF499)<>10,\"N\",\"Y\")))","v":""},{"$f":"IF('Enrollment Form'!$O499<>\"Graded\",\"-\",IF(AND('Enrollment Form'!$O499=\"Graded\",'Enrollment Form'!$AR499<>\"\"),\"Y\",\"N\"))","v":"-"},{"$f":"IF($B492=\"N\",\"\",IF(OR('Enrollment Form'!$B499<>\"Subscriber\",'Enrollment Form'!$C499=\"ROC\"),\"-\",IF(AND('Enrollment Form'!$B499=\"Subscriber\",'Enrollment Form'!$C499=\"Enroll\",'Enrollment Form'!$AJ499<>\"\"),\"Y\",\"N\")))","v":""},{"$f":"IF($B492=\"N\",\"\",IF(OR('Enrollment Form'!$B499<>\"Subscriber\",'Enrollment Form'!$C499=\"ROC\"),\"-\",IF(AND('Enrollment Form'!$B499=\"Subscriber\",'Enrollment Form'!$C499=\"Enroll\",'Enrollment Form'!$AK499<>\"\"),\"Y\",\"N\")))","v":""},{"$f":"IF($B492=\"N\",\"\",IF(OR('Enrollment Form'!$B499<>\"Subscriber\",'Enrollment Form'!$C499=\"ROC\"),\"-\",IF(AND('Enrollment Form'!$B499=\"Subscriber\",'Enrollment Form'!$C499=\"Enroll\",'Enrollment Form'!$AL499<>\"\"),\"Y\",\"N\")))","v":""},{"$f":"IF($B492=\"N\",\"\",IF(OR('Enrollment Form'!$B499<>\"Subscriber\",'Enrollment Form'!$C499=\"ROC\"),\"-\",IF(AND('Enrollment Form'!$B499=\"Subscriber\",'Enrollment Form'!$C499=\"Enroll\",'Enrollment Form'!$AP499<>\"\"),\"Y\",\"N\")))","v":""},{"$f":"IF($B492=\"N\",\"\",IF(OR('Enrollment Form'!$B499<>\"Subscriber\",'Enrollment Form'!$C499=\"ROC\"),\"-\",IF(AND('Enrollment Form'!$B499=\"Subscriber\",'Enrollment Form'!$C499=\"Enroll\",'Enrollment Form'!$AQ499<>\"\"),\"Y\",\"N\")))","v":""},{"$f":"IF($B492=\"N\",\"\",IF(OR('Enrollment Form'!$B499<>\"Subscriber\",'Enrollment Form'!$C499=\"ROC\"),\"-\",IF(AND('Enrollment Form'!$B499=\"Subscriber\",'Enrollment Form'!$C499=\"Enroll\",'Enrollment Form'!$AS499<>\"\"),\"Y\",\"N\")))","v":""},{"$f":"IF($B492=\"N\",\"\",IF($Q492=\"-\",\"-\",IF(AND($Q492=\"Y\",'Enrollment Form'!$AS499=\"No\"),\"-\",IF(AND($Q492=\"Y\",'Enrollment Form'!$AS499=\"Yes\",'Enrollment Form'!$AT499<>\"\"),\"Y\",\"N\"))))","v":""},{"$f":"IF($B492=\"N\",\"\",IF(OR('Enrollment Form'!$B499<>\"Subscriber\",'Enrollment Form'!$C499=\"ROC\"),\"-\",IF(AND('Enrollment Form'!$B499=\"Subscriber\",'Enrollment Form'!$C499=\"Enroll\",'Enrollment Form'!$CV499<>\"\"),\"Y\",\"N\")))","v":""},{"$f":"IF($B492=\"N\",\"\",IF($S492=\"-\",\"-\",IF(AND($S492=\"Y\",'Enrollment Form'!$CV499=\"No\"),\"-\",IF(AND($S492=\"Y\",'Enrollment Form'!$CV499=\"Yes\",'Enrollment Form'!$CW499<>\"\"),\"Y\",\"N\"))))","v":""},{"$f":"IF(OR('Enrollment Form'!$AY499=\"Yes\",'Enrollment Form'!$AY499=\"\"),\"-\",IF(OR(AND('Enrollment Form'!$AY499=\"No\",ISERROR(FIND(\"HMO\",VLOOKUP('Enrollment Form'!G499,'Enrollment Form'!H$11:J$1000,3,FALSE),1))=FALSE,COUNTA('Enrollment Form'!$AZ499:$BC499)=4),AND('Enrollment Form'!$AY499=\"No\",ISERROR(FIND(\"HMO\",VLOOKUP('Enrollment Form'!G499,'Enrollment Form'!H$11:J$1000,3,FALSE),1))=FALSE,COUNTA('Enrollment Form'!$BT499:$BW499)=4)),\"Y\",\"N\"))","v":"-"},{"$f":"IF($B492=\"N\",\"\",IF('Enrollment Form'!$B499=\"Subscriber\",\"-\",IF(COUNTA('Enrollment Form'!$BL499,'Enrollment Form'!$BN499)=2,\"Y\",\"N\")))","v":""},{"$f":"IF($B492=\"N\",\"\",IF(OR('Enrollment Form'!$AX499=\"\",'Enrollment Form'!$AX499=\"No\"),\"-\",IF(AND('Enrollment Form'!$AX499=\"Yes\",COUNTA('Enrollment Form'!$CR499)=1),\"Y\",\"N\")))","v":""},{"$f":"IF(OR('Enrollment Form'!$CR499=\"\",'Enrollment Form'!$CR499=\"No\"),\"-\",IF(COUNTA('Enrollment Form'!$CT499:$CU499)=2,\"Y\",\"N\"))","v":"-"},{"$f":"IF($B492=\"N\",\"\",IF(COUNTIF('Enrollment Form'!$DG499:$DP499,\"Other\")=COUNTA('Enrollment Form'!$DK499,'Enrollment Form'!$DH499,'Enrollment Form'!$DN499,'Enrollment Form'!$DQ499),\"Y\",\"N\"))","v":""},{"$f":"IF($B492=\"N\",\"\",IF(OR('Enrollment Form'!B499<>\"Subscriber\",'Enrollment Form'!C499=\"ROC\",COUNTIF('Enrollment Form'!AV499:AW499,\"Yes\")>=1),\"-\",IF(AND('Enrollment Form'!C499=\"Enroll\",COUNTIF('Enrollment Form'!AV499:AW499,\"No\")=2,'Enrollment Form'!AX499=\"\"),\"N\",\"Y\")))","v":""},{"$f":"IF(OR(B492=\"N\",'Enrollment Form'!B499<>\"Subscriber\",'Enrollment Form'!C499=\"ROC\",'Enrollment Form'!O499<>\"Multiple of Salary\"),\"-\",IF(COUNTA('Enrollment Form'!T499:U499)<2,\"N\",\"Y\"))","v":"-"},{"$f":"IF(B492=\"N\",\"\",IF(OR('Enrollment Form'!C499=\"ROC\",'Enrollment Form'!B499<>\"Subscriber\",'Enrollment Form'!O499=\"Waive\",'Enrollment Form'!O499=\"\"),\"-\",IF('Enrollment Form'!P499=\"\",\"N\",\"Y\")))","v":""},{"$f":"IF($B492=\"N\",\"\",IF(AND('Enrollment Form'!$C499=\"ROC\",'Enrollment Form'!$DR499<>\"\"),\"Y\",IF(AND('Enrollment Form'!$C499=\"ROC\",'Enrollment Form'!$DR499=\"\"),\"N\",IF(AND('Enrollment Form'!$C499=\"Enroll\",'Enrollment Form'!$B499=\"Subscriber\",'Enrollment Form'!$CX499=\"No\",'Enrollment Form'!$DR499=\"\"),\"N\",IF(AND('Enrollment Form'!$C499=\"Enroll\",'Enrollment Form'!$B499=\"Subscriber\",'Enrollment Form'!$CX499=\"Yes\"),\"-\",\"Y\")))))","v":""},{"$f":"IF($B492=\"N\",\"\",IF(AND('Enrollment Form'!$C499=\"ROC\",'Enrollment Form'!$DS499<>\"\"),\"Y\",IF(AND('Enrollment Form'!$C499=\"ROC\",'Enrollment Form'!$DS499=\"\"),\"N\",IF(AND('Enrollment Form'!$C499=\"Enroll\",'Enrollment Form'!$B499=\"Subscriber\",'Enrollment Form'!$CX499=\"No\",'Enrollment Form'!$DS499=\"\"),\"N\",IF(AND('Enrollment Form'!$C499=\"Enroll\",'Enrollment Form'!$B499=\"Subscriber\",'Enrollment Form'!$CX499=\"Yes\"),\"-\",\"Y\")))))","v":""},{"$f":"IF('Enrollment Form'!AH499=\"\",\"\",IF(ISERROR(SEARCH(\".\",'Enrollment Form'!AH499,SEARCH(\"@\",'Enrollment Form'!AH499))),\"N\",\"Y\"))","v":""},{"$f":"IF(OR($B492=\"N\",'Enrollment Form'!$G499=\"\"),\"\",IF('Enrollment Form'!$B499<>\"Subscriber\",\"-\",IF(COUNTIF('Enrollment Form'!$AV499:$AW499,\"Yes\")=2,\"N\",\"Y\")))","v":""},{"$f":"IF(OR('Enrollment Form'!$CJ499=\"\",'Enrollment Form'!$CJ499=\"No\"),\"-\",IF(AND('Enrollment Form'!$CJ499=\"Yes\",'Enrollment Form'!$CK499=\"\"),\"N\",\"Y\"))","v":"-"},{"$f":"IF(OR('Enrollment Form'!$CL499=\"\",'Enrollment Form'!$CL499=\"No\"),\"-\",IF(AND('Enrollment Form'!$CL499=\"Yes\",'Enrollment Form'!$CM499=\"\"),\"N\",\"Y\"))","v":"-"},{"$f":"IF(OR('Enrollment Form'!$CN499=\"\",'Enrollment Form'!$CN499=\"No\"),\"-\",IF(AND('Enrollment Form'!$CN499=\"Yes\",'Enrollment Form'!$CO499=\"\"),\"N\",\"Y\"))","v":"-"},{"$f":"IF(OR('Enrollment Form'!$CN499=\"\",'Enrollment Form'!$CN499=\"No\"),\"-\",IF(AND('Enrollment Form'!$CN499=\"Yes\",'Enrollment Form'!$CP499=\"\"),\"N\",\"Y\"))","v":"-"},{"$f":"IF('Enrollment Form'!B499<>\"Subscriber\",\"-\",IF(AND('Enrollment Form'!B499=\"Subscriber\",'Enrollment Form'!C499=\"Enroll\",'Enrollment Form'!AA499=\"\"),\"N\",\"Y\"))","v":"-"},{"$f":"IF(OR('Enrollment Form'!B499=\"Subscriber\",'Enrollment Form'!B499=\"\"),\"-\",IF('Enrollment Form'!BP499=\"\",\"N\",\"Y\"))","v":"-"},{"$f":"IF('Enrollment Form'!B499<>\"Subscriber\",\"-\",IF(AND('Enrollment Form'!B499=\"Subscriber\",'Enrollment Form'!G499=\"\"),\"N\",\"Y\"))","v":"-"},{"$f":"IF('Enrollment Form'!A499=\"\",\"\",IF('Enrollment Form'!B499=\"Subscriber\",\"-\",IF(AND('Enrollment Form'!B499<>\"Subscriber\",'Enrollment Form'!G499='Enrollment Form'!H499),\"N\",\"Y\")))","v":""},0]
[500,{"$f":"IF('Enrollment Form'!$A500<>\"\",\"Y\",\"N\")","v":"N"},{"$f":"IF(AND('Enrollment Form'!$B500=\"\",'Enrollment Form'!$C500<>\"\"),\"N\",IF($B493=\"N\",\"\",\"Y\"))","v":""},{"$f":"IF(OR($B493=\"N\",'Enrollment Form'!G500=\"\"),\"\",IF('Enrollment Form'!$B500<>\"Subscriber\",\"\",IF('Enrollment Form'!$G500='Enrollment Form'!$H500,\"Y\",\"N\")))","v":""},{"$f":"IF($B493=\"N\",\"\",IF(AND(COUNTIFS('Enrollment Form'!$H$11:$H$1000,'Enrollment Form'!$H500,'Enrollment Form'!$B$11:$B$1000,'Enrollment Form'!$B500)>1,'Enrollment Form'!$H500<>\"\"),\"N\",\"Y\"))","v":""},{"$f":"IF($B493=\"N\",\"\",IF(LEN('Enrollment Form'!$Y500)=0,\"\",IF(LEN('Enrollment Form'!$Y500)<>5,\"N\",\"Y\")))","v":""},{"$f":"IF($B493=\"N\",\"\",IF(LEN('Enrollment Form'!$AD500=0),\"\",IF(LEN('Enrollment Form'!$AD500)<>5,\"N\",\"Y\")))","v":""},{"$f":"IF($B493=\"N\",\"\",IF(LEN('Enrollment Form'!$BS500=0),\"\",IF(LEN('Enrollment Form'!$BS500)<>5,\"N\",\"Y\")))","v":""},{"$f":"IF($B493=\"N\",\"\",IF(LEN('Enrollment Form'!$AE500)=0,\"\",IF(LEN('Enrollment Form'!$AE500)<>10,\"N\",\"Y\")))","v":""},{"$f":"IF($B493=\"N\",\"\",IF(LEN('Enrollment Form'!$AF500)=0,\"\",IF(LEN('Enrollment Form'!$AF500)<>10,\"N\",\"Y\")))","v":""},{"$f":"IF('Enrollment Form'!$O500<>\"Graded\",\"-\",IF(AND('Enrollment Form'!$O500=\"Graded\",'Enrollment Form'!$AR500<>\"\"),\"Y\",\"N\"))","v":"-"},{"$f":"IF($B493=\"N\",\"\",IF(OR('Enrollment Form'!$B500<>\"Subscriber\",'Enrollment Form'!$C500=\"ROC\"),\"-\",IF(AND('Enrollment Form'!$B500=\"Subscriber\",'Enrollment Form'!$C500=\"Enroll\",'Enrollment Form'!$AJ500<>\"\"),\"Y\",\"N\")))","v":""},{"$f":"IF($B493=\"N\",\"\",IF(OR('Enrollment Form'!$B500<>\"Subscriber\",'Enrollment Form'!$C500=\"ROC\"),\"-\",IF(AND('Enrollment Form'!$B500=\"Subscriber\",'Enrollment Form'!$C500=\"Enroll\",'Enrollment Form'!$AK500<>\"\"),\"Y\",\"N\")))","v":""},{"$f":"IF($B493=\"N\",\"\",IF(OR('Enrollment Form'!$B500<>\"Subscriber\",'Enrollment Form'!$C500=\"ROC\"),\"-\",IF(AND('Enrollment Form'!$B500=\"Subscriber\",'Enrollment Form'!$C500=\"Enroll\",'Enrollment Form'!$AL500<>\"\"),\"Y\",\"N\")))","v":""},{"$f":"IF($B493=\"N\",\"\",IF(OR('Enrollment Form'!$B500<>\"Subscriber\",'Enrollment Form'!$C500=\"ROC\"),\"-\",IF(AND('Enrollment Form'!$B500=\"Subscriber\",'Enrollment Form'!$C500=\"Enroll\",'Enrollment Form'!$AP500<>\"\"),\"Y\",\"N\")))","v":""},{"$f":"IF($B493=\"N\",\"\",IF(OR('Enrollment Form'!$B500<>\"Subscriber\",'Enrollment Form'!$C500=\"ROC\"),\"-\",IF(AND('Enrollment Form'!$B500=\"Subscriber\",'Enrollment Form'!$C500=\"Enroll\",'Enrollment Form'!$AQ500<>\"\"),\"Y\",\"N\")))","v":""},{"$f":"IF($B493=\"N\",\"\",IF(OR('Enrollment Form'!$B500<>\"Subscriber\",'Enrollment Form'!$C500=\"ROC\"),\"-\",IF(AND('Enrollment Form'!$B500=\"Subscriber\",'Enrollment Form'!$C500=\"Enroll\",'Enrollment Form'!$AS500<>\"\"),\"Y\",\"N\")))","v":""},{"$f":"IF($B493=\"N\",\"\",IF($Q493=\"-\",\"-\",IF(AND($Q493=\"Y\",'Enrollment Form'!$AS500=\"No\"),\"-\",IF(AND($Q493=\"Y\",'Enrollment Form'!$AS500=\"Yes\",'Enrollment Form'!$AT500<>\"\"),\"Y\",\"N\"))))","v":""},{"$f":"IF($B493=\"N\",\"\",IF(OR('Enrollment Form'!$B500<>\"Subscriber\",'Enrollment Form'!$C500=\"ROC\"),\"-\",IF(AND('Enrollment Form'!$B500=\"Subscriber\",'Enrollment Form'!$C500=\"Enroll\",'Enrollment Form'!$CV500<>\"\"),\"Y\",\"N\")))","v":""},{"$f":"IF($B493=\"N\",\"\",IF($S493=\"-\",\"-\",IF(AND($S493=\"Y\",'Enrollment Form'!$CV500=\"No\"),\"-\",IF(AND($S493=\"Y\",'Enrollment Form'!$CV500=\"Yes\",'Enrollment Form'!$CW500<>\"\"),\"Y\",\"N\"))))","v":""},{"$f":"IF(OR('Enrollment Form'!$AY500=\"Yes\",'Enrollment Form'!$AY500=\"\"),\"-\",IF(OR(AND('Enrollment Form'!$AY500=\"No\",ISERROR(FIND(\"HMO\",VLOOKUP('Enrollment Form'!G500,'Enrollment Form'!H$11:J$1000,3,FALSE),1))=FALSE,COUNTA('Enrollment Form'!$AZ500:$BC500)=4),AND('Enrollment Form'!$AY500=\"No\",ISERROR(FIND(\"HMO\",VLOOKUP('Enrollment Form'!G500,'Enrollment Form'!H$11:J$1000,3,FALSE),1))=FALSE,COUNTA('Enrollment Form'!$BT500:$BW500)=4)),\"Y\",\"N\"))","v":"-"},{"$f":"IF($B493=\"N\",\"\",IF('Enrollment Form'!$B500=\"Subscriber\",\"-\",IF(COUNTA('Enrollment Form'!$BL500,'Enrollment Form'!$BN500)=2,\"Y\",\"N\")))","v":""},{"$f":"IF($B493=\"N\",\"\",IF(OR('Enrollment Form'!$AX500=\"\",'Enrollment Form'!$AX500=\"No\"),\"-\",IF(AND('Enrollment Form'!$AX500=\"Yes\",COUNTA('Enrollment Form'!$CR500)=1),\"Y\",\"N\")))","v":""},{"$f":"IF(OR('Enrollment Form'!$CR500=\"\",'Enrollment Form'!$CR500=\"No\"),\"-\",IF(COUNTA('Enrollment Form'!$CT500:$CU500)=2,\"Y\",\"N\"))","v":"-"},{"$f":"IF($B493=\"N\",\"\",IF(COUNTIF('Enrollment Form'!$DG500:$DP500,\"Other\")=COUNTA('Enrollment Form'!$DK500,'Enrollment Form'!$DH500,'Enrollment Form'!$DN500,'Enrollment Form'!$DQ500),\"Y\",\"N\"))","v":""},{"$f":"IF($B493=\"N\",\"\",IF(OR('Enrollment Form'!B500<>\"Subscriber\",'Enrollment Form'!C500=\"ROC\",COUNTIF('Enrollment Form'!AV500:AW500,\"Yes\")>=1),\"-\",IF(AND('Enrollment Form'!C500=\"Enroll\",COUNTIF('Enrollment Form'!AV500:AW500,\"No\")=2,'Enrollment Form'!AX500=\"\"),\"N\",\"Y\")))","v":""},{"$f":"IF(OR(B493=\"N\",'Enrollment Form'!B500<>\"Subscriber\",'Enrollment Form'!C500=\"ROC\",'Enrollment Form'!O500<>\"Multiple of Salary\"),\"-\",IF(COUNTA('Enrollment Form'!T500:U500)<2,\"N\",\"Y\"))","v":"-"},{"$f":"IF(B493=\"N\",\"\",IF(OR('Enrollment Form'!C500=\"ROC\",'Enrollment Form'!B500<>\"Subscriber\",'Enrollment Form'!O500=\"Waive\",'Enrollment Form'!O500=\"\"),\"-\",IF('Enrollment Form'!P500=\"\",\"N\",\"Y\")))","v":""},{"$f":"IF($B493=\"N\",\"\",IF(AND('Enrollment Form'!$C500=\"ROC\",'Enrollment Form'!$DR500<>\"\"),\"Y\",IF(AND('Enrollment Form'!$C500=\"ROC\",'Enrollment Form'!$DR500=\"\"),\"N\",IF(AND('Enrollment Form'!$C500=\"Enroll\",'Enrollment Form'!$B500=\"Subscriber\",'Enrollment Form'!$CX500=\"No\",'Enrollment Form'!$DR500=\"\"),\"N\",IF(AND('Enrollment Form'!$C500=\"Enroll\",'Enrollment Form'!$B500=\"Subscriber\",'Enrollment Form'!$CX500=\"Yes\"),\"-\",\"Y\")))))","v":""},{"$f":"IF($B493=\"N\",\"\",IF(AND('Enrollment Form'!$C500=\"ROC\",'Enrollment Form'!$DS500<>\"\"),\"Y\",IF(AND('Enrollment Form'!$C500=\"ROC\",'Enrollment Form'!$DS500=\"\"),\"N\",IF(AND('Enrollment Form'!$C500=\"Enroll\",'Enrollment Form'!$B500=\"Subscriber\",'Enrollment Form'!$CX500=\"No\",'Enrollment Form'!$DS500=\"\"),\"N\",IF(AND('Enrollment Form'!$C500=\"Enroll\",'Enrollment Form'!$B500=\"Subscriber\",'Enrollment Form'!$CX500=\"Yes\"),\"-\",\"Y\")))))","v":""},{"$f":"IF('Enrollment Form'!AH500=\"\",\"\",IF(ISERROR(SEARCH(\".\",'Enrollment Form'!AH500,SEARCH(\"@\",'Enrollment Form'!AH500))),\"N\",\"Y\"))","v":""},{"$f":"IF(OR($B493=\"N\",'Enrollment Form'!$G500=\"\"),\"\",IF('Enrollment Form'!$B500<>\"Subscriber\",\"-\",IF(COUNTIF('Enrollment Form'!$AV500:$AW500,\"Yes\")=2,\"N\",\"Y\")))","v":""},{"$f":"IF(OR('Enrollment Form'!$CJ500=\"\",'Enrollment Form'!$CJ500=\"No\"),\"-\",IF(AND('Enrollment Form'!$CJ500=\"Yes\",'Enrollment Form'!$CK500=\"\"),\"N\",\"Y\"))","v":"-"},{"$f":"IF(OR('Enrollment Form'!$CL500=\"\",'Enrollment Form'!$CL500=\"No\"),\"-\",IF(AND('Enrollment Form'!$CL500=\"Yes\",'Enrollment Form'!$CM500=\"\"),\"N\",\"Y\"))","v":"-"},{"$f":"IF(OR('Enrollment Form'!$CN500=\"\",'Enrollment Form'!$CN500=\"No\"),\"-\",IF(AND('Enrollment Form'!$CN500=\"Yes\",'Enrollment Form'!$CO500=\"\"),\"N\",\"Y\"))","v":"-"},{"$f":"IF(OR('Enrollment Form'!$CN500=\"\",'Enrollment Form'!$CN500=\"No\"),\"-\",IF(AND('Enrollment Form'!$CN500=\"Yes\",'Enrollment Form'!$CP500=\"\"),\"N\",\"Y\"))","v":"-"},{"$f":"IF('Enrollment Form'!B500<>\"Subscriber\",\"-\",IF(AND('Enrollment Form'!B500=\"Subscriber\",'Enrollment Form'!C500=\"Enroll\",'Enrollment Form'!AA500=\"\"),\"N\",\"Y\"))","v":"-"},{"$f":"IF(OR('Enrollment Form'!B500=\"Subscriber\",'Enrollment Form'!B500=\"\"),\"-\",IF('Enrollment Form'!BP500=\"\",\"N\",\"Y\"))","v":"-"},{"$f":"IF('Enrollment Form'!B500<>\"Subscriber\",\"-\",IF(AND('Enrollment Form'!B500=\"Subscriber\",'Enrollment Form'!G500=\"\"),\"N\",\"Y\"))","v":"-"},{"$f":"IF('Enrollment Form'!A500=\"\",\"\",IF('Enrollment Form'!B500=\"Subscriber\",\"-\",IF(AND('Enrollment Form'!B500<>\"Subscriber\",'Enrollment Form'!G500='Enrollment Form'!H500),\"N\",\"Y\")))","v":""},0]
[501,{"$f":"IF('Enrollment Form'!$A501<>\"\",\"Y\",\"N\")","v":"N"},{"$f":"IF(AND('Enrollment Form'!$B501=\"\",'Enrollment Form'!$C501<>\"\"),\"N\",IF($B494=\"N\",\"\",\"Y\"))","v":""},{"$f":"IF(OR($B494=\"N\",'Enrollment Form'!G501=\"\"),\"\",IF('Enrollment Form'!$B501<>\"Subscriber\",\"\",IF('Enrollment Form'!$G501='Enrollment Form'!$H501,\"Y\",\"N\")))","v":""},{"$f":"IF($B494=\"N\",\"\",IF(AND(COUNTIFS('Enrollment Form'!$H$11:$H$1000,'Enrollment Form'!$H501,'Enrollment Form'!$B$11:$B$1000,'Enrollment Form'!$B501)>1,'Enrollment Form'!$H501<>\"\"),\"N\",\"Y\"))","v":""},{"$f":"IF($B494=\"N\",\"\",IF(LEN('Enrollment Form'!$Y501)=0,\"\",IF(LEN('Enrollment Form'!$Y501)<>5,\"N\",\"Y\")))","v":""},{"$f":"IF($B494=\"N\",\"\",IF(LEN('Enrollment Form'!$AD501=0),\"\",IF(LEN('Enrollment Form'!$AD501)<>5,\"N\",\"Y\")))","v":""},{"$f":"IF($B494=\"N\",\"\",IF(LEN('Enrollment Form'!$BS501=0),\"\",IF(LEN('Enrollment Form'!$BS501)<>5,\"N\",\"Y\")))","v":""},{"$f":"IF($B494=\"N\",\"\",IF(LEN('Enrollment Form'!$AE501)=0,\"\",IF(LEN('Enrollment Form'!$AE501)<>10,\"N\",\"Y\")))","v":""},{"$f":"IF($B494=\"N\",\"\",IF(LEN('Enrollment Form'!$AF501)=0,\"\",IF(LEN('Enrollment Form'!$AF501)<>10,\"N\",\"Y\")))","v":""},{"$f":"IF('Enrollment Form'!$O501<>\"Graded\",\"-\",IF(AND('Enrollment Form'!$O501=\"Graded\",'Enrollment Form'!$AR501<>\"\"),\"Y\",\"N\"))","v":"-"},{"$f":"IF($B494=\"N\",\"\",IF(OR('Enrollment Form'!$B501<>\"Subscriber\",'Enrollment Form'!$C501=\"ROC\"),\"-\",IF(AND('Enrollment Form'!$B501=\"Subscriber\",'Enrollment Form'!$C501=\"Enroll\",'Enrollment Form'!$AJ501<>\"\"),\"Y\",\"N\")))","v":""},{"$f":"IF($B494=\"N\",\"\",IF(OR('Enrollment Form'!$B501<>\"Subscriber\",'Enrollment Form'!$C501=\"ROC\"),\"-\",IF(AND('Enrollment Form'!$B501=\"Subscriber\",'Enrollment Form'!$C501=\"Enroll\",'Enrollment Form'!$AK501<>\"\"),\"Y\",\"N\")))","v":""},{"$f":"IF($B494=\"N\",\"\",IF(OR('Enrollment Form'!$B501<>\"Subscriber\",'Enrollment Form'!$C501=\"ROC\"),\"-\",IF(AND('Enrollment Form'!$B501=\"Subscriber\",'Enrollment Form'!$C501=\"Enroll\",'Enrollment Form'!$AL501<>\"\"),\"Y\",\"N\")))","v":""},{"$f":"IF($B494=\"N\",\"\",IF(OR('Enrollment Form'!$B501<>\"Subscriber\",'Enrollment Form'!$C501=\"ROC\"),\"-\",IF(AND('Enrollment Form'!$B501=\"Subscriber\",'Enrollment Form'!$C501=\"Enroll\",'Enrollment Form'!$AP501<>\"\"),\"Y\",\"N\")))","v":""},{"$f":"IF($B494=\"N\",\"\",IF(OR('Enrollment Form'!$B501<>\"Subscriber\",'Enrollment Form'!$C501=\"ROC\"),\"-\",IF(AND('Enrollment Form'!$B501=\"Subscriber\",'Enrollment Form'!$C501=\"Enroll\",'Enrollment Form'!$AQ501<>\"\"),\"Y\",\"N\")))","v":""},{"$f":"IF($B494=\"N\",\"\",IF(OR('Enrollment Form'!$B501<>\"Subscriber\",'Enrollment Form'!$C501=\"ROC\"),\"-\",IF(AND('Enrollment Form'!$B501=\"Subscriber\",'Enrollment Form'!$C501=\"Enroll\",'Enrollment Form'!$AS501<>\"\"),\"Y\",\"N\")))","v":""},{"$f":"IF($B494=\"N\",\"\",IF($Q494=\"-\",\"-\",IF(AND($Q494=\"Y\",'Enrollment Form'!$AS501=\"No\"),\"-\",IF(AND($Q494=\"Y\",'Enrollment Form'!$AS501=\"Yes\",'Enrollment Form'!$AT501<>\"\"),\"Y\",\"N\"))))","v":""},{"$f":"IF($B494=\"N\",\"\",IF(OR('Enrollment Form'!$B501<>\"Subscriber\",'Enrollment Form'!$C501=\"ROC\"),\"-\",IF(AND('Enrollment Form'!$B501=\"Subscriber\",'Enrollment Form'!$C501=\"Enroll\",'Enrollment Form'!$CV501<>\"\"),\"Y\",\"N\")))","v":""},{"$f":"IF($B494=\"N\",\"\",IF($S494=\"-\",\"-\",IF(AND($S494=\"Y\",'Enrollment Form'!$CV501=\"No\"),\"-\",IF(AND($S494=\"Y\",'Enrollment Form'!$CV501=\"Yes\",'Enrollment Form'!$CW501<>\"\"),\"Y\",\"N\"))))","v":""},{"$f":"IF(OR('Enrollment Form'!$AY501=\"Yes\",'Enrollment Form'!$AY501=\"\"),\"-\",IF(OR(AND('Enrollment Form'!$AY501=\"No\",ISERROR(FIND(\"HMO\",VLOOKUP('Enrollment Form'!G501,'Enrollment Form'!H$11:J$1000,3,FALSE),1))=FALSE,COUNTA('Enrollment Form'!$AZ501:$BC501)=4),AND('Enrollment Form'!$AY501=\"No\",ISERROR(FIND(\"HMO\",VLOOKUP('Enrollment Form'!G501,'Enrollment Form'!H$11:J$1000,3,FALSE),1))=FALSE,COUNTA('Enrollment Form'!$BT501:$BW501)=4)),\"Y\",\"N\"))","v":"-"},{"$f":"IF($B494=\"N\",\"\",IF('Enrollment Form'!$B501=\"Subscriber\",\"-\",IF(COUNTA('Enrollment Form'!$BL501,'Enrollment Form'!$BN501)=2,\"Y\",\"N\")))","v":""},{"$f":"IF($B494=\"N\",\"\",IF(OR('Enrollment Form'!$AX501=\"\",'Enrollment Form'!$AX501=\"No\"),\"-\",IF(AND('Enrollment Form'!$AX501=\"Yes\",COUNTA('Enrollment Form'!$CR501)=1),\"Y\",\"N\")))","v":""},{"$f":"IF(OR('Enrollment Form'!$CR501=\"\",'Enrollment Form'!$CR501=\"No\"),\"-\",IF(COUNTA('Enrollment Form'!$CT501:$CU501)=2,\"Y\",\"N\"))","v":"-"},{"$f":"IF($B494=\"N\",\"\",IF(COUNTIF('Enrollment Form'!$DG501:$DP501,\"Other\")=COUNTA('Enrollment Form'!$DK501,'Enrollment Form'!$DH501,'Enrollment Form'!$DN501,'Enrollment Form'!$DQ501),\"Y\",\"N\"))","v":""},{"$f":"IF($B494=\"N\",\"\",IF(OR('Enrollment Form'!B501<>\"Subscriber\",'Enrollment Form'!C501=\"ROC\",COUNTIF('Enrollment Form'!AV501:AW501,\"Yes\")>=1),\"-\",IF(AND('Enrollment Form'!C501=\"Enroll\",COUNTIF('Enrollment Form'!AV501:AW501,\"No\")=2,'Enrollment Form'!AX501=\"\"),\"N\",\"Y\")))","v":""},{"$f":"IF(OR(B494=\"N\",'Enrollment Form'!B501<>\"Subscriber\",'Enrollment Form'!C501=\"ROC\",'Enrollment Form'!O501<>\"Multiple of Salary\"),\"-\",IF(COUNTA('Enrollment Form'!T501:U501)<2,\"N\",\"Y\"))","v":"-"},{"$f":"IF(B494=\"N\",\"\",IF(OR('Enrollment Form'!C501=\"ROC\",'Enrollment Form'!B501<>\"Subscriber\",'Enrollment Form'!O501=\"Waive\",'Enrollment Form'!O501=\"\"),\"-\",IF('Enrollment Form'!P501=\"\",\"N\",\"Y\")))","v":""},{"$f":"IF($B494=\"N\",\"\",IF(AND('Enrollment Form'!$C501=\"ROC\",'Enrollment Form'!$DR501<>\"\"),\"Y\",IF(AND('Enrollment Form'!$C501=\"ROC\",'Enrollment Form'!$DR501=\"\"),\"N\",IF(AND('Enrollment Form'!$C501=\"Enroll\",'Enrollment Form'!$B501=\"Subscriber\",'Enrollment Form'!$CX501=\"No\",'Enrollment Form'!$DR501=\"\"),\"N\",IF(AND('Enrollment Form'!$C501=\"Enroll\",'Enrollment Form'!$B501=\"Subscriber\",'Enrollment Form'!$CX501=\"Yes\"),\"-\",\"Y\")))))","v":""},{"$f":"IF($B494=\"N\",\"\",IF(AND('Enrollment Form'!$C501=\"ROC\",'Enrollment Form'!$DS501<>\"\"),\"Y\",IF(AND('Enrollment Form'!$C501=\"ROC\",'Enrollment Form'!$DS501=\"\"),\"N\",IF(AND('Enrollment Form'!$C501=\"Enroll\",'Enrollment Form'!$B501=\"Subscriber\",'Enrollment Form'!$CX501=\"No\",'Enrollment Form'!$DS501=\"\"),\"N\",IF(AND('Enrollment Form'!$C501=\"Enroll\",'Enrollment Form'!$B501=\"Subscriber\",'Enrollment Form'!$CX501=\"Yes\"),\"-\",\"Y\")))))","v":""},{"$f":"IF('Enrollment Form'!AH501=\"\",\"\",IF(ISERROR(SEARCH(\".\",'Enrollment Form'!AH501,SEARCH(\"@\",'Enrollment Form'!AH501))),\"N\",\"Y\"))","v":""},{"$f":"IF(OR($B494=\"N\",'Enrollment Form'!$G501=\"\"),\"\",IF('Enrollment Form'!$B501<>\"Subscriber\",\"-\",IF(COUNTIF('Enrollment Form'!$AV501:$AW501,\"Yes\")=2,\"N\",\"Y\")))","v":""},{"$f":"IF(OR('Enrollment Form'!$CJ501=\"\",'Enrollment Form'!$CJ501=\"No\"),\"-\",IF(AND('Enrollment Form'!$CJ501=\"Yes\",'Enrollment Form'!$CK501=\"\"),\"N\",\"Y\"))","v":"-"},{"$f":"IF(OR('Enrollment Form'!$CL501=\"\",'Enrollment Form'!$CL501=\"No\"),\"-\",IF(AND('Enrollment Form'!$CL501=\"Yes\",'Enrollment Form'!$CM501=\"\"),\"N\",\"Y\"))","v":"-"},{"$f":"IF(OR('Enrollment Form'!$CN501=\"\",'Enrollment Form'!$CN501=\"No\"),\"-\",IF(AND('Enrollment Form'!$CN501=\"Yes\",'Enrollment Form'!$CO501=\"\"),\"N\",\"Y\"))","v":"-"},{"$f":"IF(OR('Enrollment Form'!$CN501=\"\",'Enrollment Form'!$CN501=\"No\"),\"-\",IF(AND('Enrollment Form'!$CN501=\"Yes\",'Enrollment Form'!$CP501=\"\"),\"N\",\"Y\"))","v":"-"},{"$f":"IF('Enrollment Form'!B501<>\"Subscriber\",\"-\",IF(AND('Enrollment Form'!B501=\"Subscriber\",'Enrollment Form'!C501=\"Enroll\",'Enrollment Form'!AA501=\"\"),\"N\",\"Y\"))","v":"-"},{"$f":"IF(OR('Enrollment Form'!B501=\"Subscriber\",'Enrollment Form'!B501=\"\"),\"-\",IF('Enrollment Form'!BP501=\"\",\"N\",\"Y\"))","v":"-"},{"$f":"IF('Enrollment Form'!B501<>\"Subscriber\",\"-\",IF(AND('Enrollment Form'!B501=\"Subscriber\",'Enrollment Form'!G501=\"\"),\"N\",\"Y\"))","v":"-"},{"$f":"IF('Enrollment Form'!A501=\"\",\"\",IF('Enrollment Form'!B501=\"Subscriber\",\"-\",IF(AND('Enrollment Form'!B501<>\"Subscriber\",'Enrollment Form'!G501='Enrollment Form'!H501),\"N\",\"Y\")))","v":""},0]
[502,{"$f":"IF('Enrollment Form'!$A502<>\"\",\"Y\",\"N\")","v":"N"},{"$f":"IF(AND('Enrollment Form'!$B502=\"\",'Enrollment Form'!$C502<>\"\"),\"N\",IF($B495=\"N\",\"\",\"Y\"))","v":""},{"$f":"IF(OR($B495=\"N\",'Enrollment Form'!G502=\"\"),\"\",IF('Enrollment Form'!$B502<>\"Subscriber\",\"\",IF('Enrollment Form'!$G502='Enrollment Form'!$H502,\"Y\",\"N\")))","v":""},{"$f":"IF($B495=\"N\",\"\",IF(AND(COUNTIFS('Enrollment Form'!$H$11:$H$1000,'Enrollment Form'!$H502,'Enrollment Form'!$B$11:$B$1000,'Enrollment Form'!$B502)>1,'Enrollment Form'!$H502<>\"\"),\"N\",\"Y\"))","v":""},{"$f":"IF($B495=\"N\",\"\",IF(LEN('Enrollment Form'!$Y502)=0,\"\",IF(LEN('Enrollment Form'!$Y502)<>5,\"N\",\"Y\")))","v":""},{"$f":"IF($B495=\"N\",\"\",IF(LEN('Enrollment Form'!$AD502=0),\"\",IF(LEN('Enrollment Form'!$AD502)<>5,\"N\",\"Y\")))","v":""},{"$f":"IF($B495=\"N\",\"\",IF(LEN('Enrollment Form'!$BS502=0),\"\",IF(LEN('Enrollment Form'!$BS502)<>5,\"N\",\"Y\")))","v":""},{"$f":"IF($B495=\"N\",\"\",IF(LEN('Enrollment Form'!$AE502)=0,\"\",IF(LEN('Enrollment Form'!$AE502)<>10,\"N\",\"Y\")))","v":""},{"$f":"IF($B495=\"N\",\"\",IF(LEN('Enrollment Form'!$AF502)=0,\"\",IF(LEN('Enrollment Form'!$AF502)<>10,\"N\",\"Y\")))","v":""},{"$f":"IF('Enrollment Form'!$O502<>\"Graded\",\"-\",IF(AND('Enrollment Form'!$O502=\"Graded\",'Enrollment Form'!$AR502<>\"\"),\"Y\",\"N\"))","v":"-"},{"$f":"IF($B495=\"N\",\"\",IF(OR('Enrollment Form'!$B502<>\"Subscriber\",'Enrollment Form'!$C502=\"ROC\"),\"-\",IF(AND('Enrollment Form'!$B502=\"Subscriber\",'Enrollment Form'!$C502=\"Enroll\",'Enrollment Form'!$AJ502<>\"\"),\"Y\",\"N\")))","v":""},{"$f":"IF($B495=\"N\",\"\",IF(OR('Enrollment Form'!$B502<>\"Subscriber\",'Enrollment Form'!$C502=\"ROC\"),\"-\",IF(AND('Enrollment Form'!$B502=\"Subscriber\",'Enrollment Form'!$C502=\"Enroll\",'Enrollment Form'!$AK502<>\"\"),\"Y\",\"N\")))","v":""},{"$f":"IF($B495=\"N\",\"\",IF(OR('Enrollment Form'!$B502<>\"Subscriber\",'Enrollment Form'!$C502=\"ROC\"),\"-\",IF(AND('Enrollment Form'!$B502=\"Subscriber\",'Enrollment Form'!$C502=\"Enroll\",'Enrollment Form'!$AL502<>\"\"),\"Y\",\"N\")))","v":""},{"$f":"IF($B495=\"N\",\"\",IF(OR('Enrollment Form'!$B502<>\"Subscriber\",'Enrollment Form'!$C502=\"ROC\"),\"-\",IF(AND('Enrollment Form'!$B502=\"Subscriber\",'Enrollment Form'!$C502=\"Enroll\",'Enrollment Form'!$AP502<>\"\"),\"Y\",\"N\")))","v":""},{"$f":"IF($B495=\"N\",\"\",IF(OR('Enrollment Form'!$B502<>\"Subscriber\",'Enrollment Form'!$C502=\"ROC\"),\"-\",IF(AND('Enrollment Form'!$B502=\"Subscriber\",'Enrollment Form'!$C502=\"Enroll\",'Enrollment Form'!$AQ502<>\"\"),\"Y\",\"N\")))","v":""},{"$f":"IF($B495=\"N\",\"\",IF(OR('Enrollment Form'!$B502<>\"Subscriber\",'Enrollment Form'!$C502=\"ROC\"),\"-\",IF(AND('Enrollment Form'!$B502=\"Subscriber\",'Enrollment Form'!$C502=\"Enroll\",'Enrollment Form'!$AS502<>\"\"),\"Y\",\"N\")))","v":""},{"$f":"IF($B495=\"N\",\"\",IF($Q495=\"-\",\"-\",IF(AND($Q495=\"Y\",'Enrollment Form'!$AS502=\"No\"),\"-\",IF(AND($Q495=\"Y\",'Enrollment Form'!$AS502=\"Yes\",'Enrollment Form'!$AT502<>\"\"),\"Y\",\"N\"))))","v":""},{"$f":"IF($B495=\"N\",\"\",IF(OR('Enrollment Form'!$B502<>\"Subscriber\",'Enrollment Form'!$C502=\"ROC\"),\"-\",IF(AND('Enrollment Form'!$B502=\"Subscriber\",'Enrollment Form'!$C502=\"Enroll\",'Enrollment Form'!$CV502<>\"\"),\"Y\",\"N\")))","v":""},{"$f":"IF($B495=\"N\",\"\",IF($S495=\"-\",\"-\",IF(AND($S495=\"Y\",'Enrollment Form'!$CV502=\"No\"),\"-\",IF(AND($S495=\"Y\",'Enrollment Form'!$CV502=\"Yes\",'Enrollment Form'!$CW502<>\"\"),\"Y\",\"N\"))))","v":""},{"$f":"IF(OR('Enrollment Form'!$AY502=\"Yes\",'Enrollment Form'!$AY502=\"\"),\"-\",IF(OR(AND('Enrollment Form'!$AY502=\"No\",ISERROR(FIND(\"HMO\",VLOOKUP('Enrollment Form'!G502,'Enrollment Form'!H$11:J$1000,3,FALSE),1))=FALSE,COUNTA('Enrollment Form'!$AZ502:$BC502)=4),AND('Enrollment Form'!$AY502=\"No\",ISERROR(FIND(\"HMO\",VLOOKUP('Enrollment Form'!G502,'Enrollment Form'!H$11:J$1000,3,FALSE),1))=FALSE,COUNTA('Enrollment Form'!$BT502:$BW502)=4)),\"Y\",\"N\"))","v":"-"},{"$f":"IF($B495=\"N\",\"\",IF('Enrollment Form'!$B502=\"Subscriber\",\"-\",IF(COUNTA('Enrollment Form'!$BL502,'Enrollment Form'!$BN502)=2,\"Y\",\"N\")))","v":""},{"$f":"IF($B495=\"N\",\"\",IF(OR('Enrollment Form'!$AX502=\"\",'Enrollment Form'!$AX502=\"No\"),\"-\",IF(AND('Enrollment Form'!$AX502=\"Yes\",COUNTA('Enrollment Form'!$CR502)=1),\"Y\",\"N\")))","v":""},{"$f":"IF(OR('Enrollment Form'!$CR502=\"\",'Enrollment Form'!$CR502=\"No\"),\"-\",IF(COUNTA('Enrollment Form'!$CT502:$CU502)=2,\"Y\",\"N\"))","v":"-"},{"$f":"IF($B495=\"N\",\"\",IF(COUNTIF('Enrollment Form'!$DG502:$DP502,\"Other\")=COUNTA('Enrollment Form'!$DK502,'Enrollment Form'!$DH502,'Enrollment Form'!$DN502,'Enrollment Form'!$DQ502),\"Y\",\"N\"))","v":""},{"$f":"IF($B495=\"N\",\"\",IF(OR('Enrollment Form'!B502<>\"Subscriber\",'Enrollment Form'!C502=\"ROC\",COUNTIF('Enrollment Form'!AV502:AW502,\"Yes\")>=1),\"-\",IF(AND('Enrollment Form'!C502=\"Enroll\",COUNTIF('Enrollment Form'!AV502:AW502,\"No\")=2,'Enrollment Form'!AX502=\"\"),\"N\",\"Y\")))","v":""},{"$f":"IF(OR(B495=\"N\",'Enrollment Form'!B502<>\"Subscriber\",'Enrollment Form'!C502=\"ROC\",'Enrollment Form'!O502<>\"Multiple of Salary\"),\"-\",IF(COUNTA('Enrollment Form'!T502:U502)<2,\"N\",\"Y\"))","v":"-"},{"$f":"IF(B495=\"N\",\"\",IF(OR('Enrollment Form'!C502=\"ROC\",'Enrollment Form'!B502<>\"Subscriber\",'Enrollment Form'!O502=\"Waive\",'Enrollment Form'!O502=\"\"),\"-\",IF('Enrollment Form'!P502=\"\",\"N\",\"Y\")))","v":""},{"$f":"IF($B495=\"N\",\"\",IF(AND('Enrollment Form'!$C502=\"ROC\",'Enrollment Form'!$DR502<>\"\"),\"Y\",IF(AND('Enrollment Form'!$C502=\"ROC\",'Enrollment Form'!$DR502=\"\"),\"N\",IF(AND('Enrollment Form'!$C502=\"Enroll\",'Enrollment Form'!$B502=\"Subscriber\",'Enrollment Form'!$CX502=\"No\",'Enrollment Form'!$DR502=\"\"),\"N\",IF(AND('Enrollment Form'!$C502=\"Enroll\",'Enrollment Form'!$B502=\"Subscriber\",'Enrollment Form'!$CX502=\"Yes\"),\"-\",\"Y\")))))","v":""},{"$f":"IF($B495=\"N\",\"\",IF(AND('Enrollment Form'!$C502=\"ROC\",'Enrollment Form'!$DS502<>\"\"),\"Y\",IF(AND('Enrollment Form'!$C502=\"ROC\",'Enrollment Form'!$DS502=\"\"),\"N\",IF(AND('Enrollment Form'!$C502=\"Enroll\",'Enrollment Form'!$B502=\"Subscriber\",'Enrollment Form'!$CX502=\"No\",'Enrollment Form'!$DS502=\"\"),\"N\",IF(AND('Enrollment Form'!$C502=\"Enroll\",'Enrollment Form'!$B502=\"Subscriber\",'Enrollment Form'!$CX502=\"Yes\"),\"-\",\"Y\")))))","v":""},{"$f":"IF('Enrollment Form'!AH502=\"\",\"\",IF(ISERROR(SEARCH(\".\",'Enrollment Form'!AH502,SEARCH(\"@\",'Enrollment Form'!AH502))),\"N\",\"Y\"))","v":""},{"$f":"IF(OR($B495=\"N\",'Enrollment Form'!$G502=\"\"),\"\",IF('Enrollment Form'!$B502<>\"Subscriber\",\"-\",IF(COUNTIF('Enrollment Form'!$AV502:$AW502,\"Yes\")=2,\"N\",\"Y\")))","v":""},{"$f":"IF(OR('Enrollment Form'!$CJ502=\"\",'Enrollment Form'!$CJ502=\"No\"),\"-\",IF(AND('Enrollment Form'!$CJ502=\"Yes\",'Enrollment Form'!$CK502=\"\"),\"N\",\"Y\"))","v":"-"},{"$f":"IF(OR('Enrollment Form'!$CL502=\"\",'Enrollment Form'!$CL502=\"No\"),\"-\",IF(AND('Enrollment Form'!$CL502=\"Yes\",'Enrollment Form'!$CM502=\"\"),\"N\",\"Y\"))","v":"-"},{"$f":"IF(OR('Enrollment Form'!$CN502=\"\",'Enrollment Form'!$CN502=\"No\"),\"-\",IF(AND('Enrollment Form'!$CN502=\"Yes\",'Enrollment Form'!$CO502=\"\"),\"N\",\"Y\"))","v":"-"},{"$f":"IF(OR('Enrollment Form'!$CN502=\"\",'Enrollment Form'!$CN502=\"No\"),\"-\",IF(AND('Enrollment Form'!$CN502=\"Yes\",'Enrollment Form'!$CP502=\"\"),\"N\",\"Y\"))","v":"-"},{"$f":"IF('Enrollment Form'!B502<>\"Subscriber\",\"-\",IF(AND('Enrollment Form'!B502=\"Subscriber\",'Enrollment Form'!C502=\"Enroll\",'Enrollment Form'!AA502=\"\"),\"N\",\"Y\"))","v":"-"},{"$f":"IF(OR('Enrollment Form'!B502=\"Subscriber\",'Enrollment Form'!B502=\"\"),\"-\",IF('Enrollment Form'!BP502=\"\",\"N\",\"Y\"))","v":"-"},{"$f":"IF('Enrollment Form'!B502<>\"Subscriber\",\"-\",IF(AND('Enrollment Form'!B502=\"Subscriber\",'Enrollment Form'!G502=\"\"),\"N\",\"Y\"))","v":"-"},{"$f":"IF('Enrollment Form'!A502=\"\",\"\",IF('Enrollment Form'!B502=\"Subscriber\",\"-\",IF(AND('Enrollment Form'!B502<>\"Subscriber\",'Enrollment Form'!G502='Enrollment Form'!H502),\"N\",\"Y\")))","v":""},0]
[503,{"$f":"IF('Enrollment Form'!$A503<>\"\",\"Y\",\"N\")","v":"N"},{"$f":"IF(AND('Enrollment Form'!$B503=\"\",'Enrollment Form'!$C503<>\"\"),\"N\",IF($B496=\"N\",\"\",\"Y\"))","v":""},{"$f":"IF(OR($B496=\"N\",'Enrollment Form'!G503=\"\"),\"\",IF('Enrollment Form'!$B503<>\"Subscriber\",\"\",IF('Enrollment Form'!$G503='Enrollment Form'!$H503,\"Y\",\"N\")))","v":""},{"$f":"IF($B496=\"N\",\"\",IF(AND(COUNTIFS('Enrollment Form'!$H$11:$H$1000,'Enrollment Form'!$H503,'Enrollment Form'!$B$11:$B$1000,'Enrollment Form'!$B503)>1,'Enrollment Form'!$H503<>\"\"),\"N\",\"Y\"))","v":""},{"$f":"IF($B496=\"N\",\"\",IF(LEN('Enrollment Form'!$Y503)=0,\"\",IF(LEN('Enrollment Form'!$Y503)<>5,\"N\",\"Y\")))","v":""},{"$f":"IF($B496=\"N\",\"\",IF(LEN('Enrollment Form'!$AD503=0),\"\",IF(LEN('Enrollment Form'!$AD503)<>5,\"N\",\"Y\")))","v":""},{"$f":"IF($B496=\"N\",\"\",IF(LEN('Enrollment Form'!$BS503=0),\"\",IF(LEN('Enrollment Form'!$BS503)<>5,\"N\",\"Y\")))","v":""},{"$f":"IF($B496=\"N\",\"\",IF(LEN('Enrollment Form'!$AE503)=0,\"\",IF(LEN('Enrollment Form'!$AE503)<>10,\"N\",\"Y\")))","v":""},{"$f":"IF($B496=\"N\",\"\",IF(LEN('Enrollment Form'!$AF503)=0,\"\",IF(LEN('Enrollment Form'!$AF503)<>10,\"N\",\"Y\")))","v":""},{"$f":"IF('Enrollment Form'!$O503<>\"Graded\",\"-\",IF(AND('Enrollment Form'!$O503=\"Graded\",'Enrollment Form'!$AR503<>\"\"),\"Y\",\"N\"))","v":"-"},{"$f":"IF($B496=\"N\",\"\",IF(OR('Enrollment Form'!$B503<>\"Subscriber\",'Enrollment Form'!$C503=\"ROC\"),\"-\",IF(AND('Enrollment Form'!$B503=\"Subscriber\",'Enrollment Form'!$C503=\"Enroll\",'Enrollment Form'!$AJ503<>\"\"),\"Y\",\"N\")))","v":""},{"$f":"IF($B496=\"N\",\"\",IF(OR('Enrollment Form'!$B503<>\"Subscriber\",'Enrollment Form'!$C503=\"ROC\"),\"-\",IF(AND('Enrollment Form'!$B503=\"Subscriber\",'Enrollment Form'!$C503=\"Enroll\",'Enrollment Form'!$AK503<>\"\"),\"Y\",\"N\")))","v":""},{"$f":"IF($B496=\"N\",\"\",IF(OR('Enrollment Form'!$B503<>\"Subscriber\",'Enrollment Form'!$C503=\"ROC\"),\"-\",IF(AND('Enrollment Form'!$B503=\"Subscriber\",'Enrollment Form'!$C503=\"Enroll\",'Enrollment Form'!$AL503<>\"\"),\"Y\",\"N\")))","v":""},{"$f":"IF($B496=\"N\",\"\",IF(OR('Enrollment Form'!$B503<>\"Subscriber\",'Enrollment Form'!$C503=\"ROC\"),\"-\",IF(AND('Enrollment Form'!$B503=\"Subscriber\",'Enrollment Form'!$C503=\"Enroll\",'Enrollment Form'!$AP503<>\"\"),\"Y\",\"N\")))","v":""},{"$f":"IF($B496=\"N\",\"\",IF(OR('Enrollment Form'!$B503<>\"Subscriber\",'Enrollment Form'!$C503=\"ROC\"),\"-\",IF(AND('Enrollment Form'!$B503=\"Subscriber\",'Enrollment Form'!$C503=\"Enroll\",'Enrollment Form'!$AQ503<>\"\"),\"Y\",\"N\")))","v":""},{"$f":"IF($B496=\"N\",\"\",IF(OR('Enrollment Form'!$B503<>\"Subscriber\",'Enrollment Form'!$C503=\"ROC\"),\"-\",IF(AND('Enrollment Form'!$B503=\"Subscriber\",'Enrollment Form'!$C503=\"Enroll\",'Enrollment Form'!$AS503<>\"\"),\"Y\",\"N\")))","v":""},{"$f":"IF($B496=\"N\",\"\",IF($Q496=\"-\",\"-\",IF(AND($Q496=\"Y\",'Enrollment Form'!$AS503=\"No\"),\"-\",IF(AND($Q496=\"Y\",'Enrollment Form'!$AS503=\"Yes\",'Enrollment Form'!$AT503<>\"\"),\"Y\",\"N\"))))","v":""},{"$f":"IF($B496=\"N\",\"\",IF(OR('Enrollment Form'!$B503<>\"Subscriber\",'Enrollment Form'!$C503=\"ROC\"),\"-\",IF(AND('Enrollment Form'!$B503=\"Subscriber\",'Enrollment Form'!$C503=\"Enroll\",'Enrollment Form'!$CV503<>\"\"),\"Y\",\"N\")))","v":""},{"$f":"IF($B496=\"N\",\"\",IF($S496=\"-\",\"-\",IF(AND($S496=\"Y\",'Enrollment Form'!$CV503=\"No\"),\"-\",IF(AND($S496=\"Y\",'Enrollment Form'!$CV503=\"Yes\",'Enrollment Form'!$CW503<>\"\"),\"Y\",\"N\"))))","v":""},{"$f":"IF(OR('Enrollment Form'!$AY503=\"Yes\",'Enrollment Form'!$AY503=\"\"),\"-\",IF(OR(AND('Enrollment Form'!$AY503=\"No\",ISERROR(FIND(\"HMO\",VLOOKUP('Enrollment Form'!G503,'Enrollment Form'!H$11:J$1000,3,FALSE),1))=FALSE,COUNTA('Enrollment Form'!$AZ503:$BC503)=4),AND('Enrollment Form'!$AY503=\"No\",ISERROR(FIND(\"HMO\",VLOOKUP('Enrollment Form'!G503,'Enrollment Form'!H$11:J$1000,3,FALSE),1))=FALSE,COUNTA('Enrollment Form'!$BT503:$BW503)=4)),\"Y\",\"N\"))","v":"-"},{"$f":"IF($B496=\"N\",\"\",IF('Enrollment Form'!$B503=\"Subscriber\",\"-\",IF(COUNTA('Enrollment Form'!$BL503,'Enrollment Form'!$BN503)=2,\"Y\",\"N\")))","v":""},{"$f":"IF($B496=\"N\",\"\",IF(OR('Enrollment Form'!$AX503=\"\",'Enrollment Form'!$AX503=\"No\"),\"-\",IF(AND('Enrollment Form'!$AX503=\"Yes\",COUNTA('Enrollment Form'!$CR503)=1),\"Y\",\"N\")))","v":""},{"$f":"IF(OR('Enrollment Form'!$CR503=\"\",'Enrollment Form'!$CR503=\"No\"),\"-\",IF(COUNTA('Enrollment Form'!$CT503:$CU503)=2,\"Y\",\"N\"))","v":"-"},{"$f":"IF($B496=\"N\",\"\",IF(COUNTIF('Enrollment Form'!$DG503:$DP503,\"Other\")=COUNTA('Enrollment Form'!$DK503,'Enrollment Form'!$DH503,'Enrollment Form'!$DN503,'Enrollment Form'!$DQ503),\"Y\",\"N\"))","v":""},{"$f":"IF($B496=\"N\",\"\",IF(OR('Enrollment Form'!B503<>\"Subscriber\",'Enrollment Form'!C503=\"ROC\",COUNTIF('Enrollment Form'!AV503:AW503,\"Yes\")>=1),\"-\",IF(AND('Enrollment Form'!C503=\"Enroll\",COUNTIF('Enrollment Form'!AV503:AW503,\"No\")=2,'Enrollment Form'!AX503=\"\"),\"N\",\"Y\")))","v":""},{"$f":"IF(OR(B496=\"N\",'Enrollment Form'!B503<>\"Subscriber\",'Enrollment Form'!C503=\"ROC\",'Enrollment Form'!O503<>\"Multiple of Salary\"),\"-\",IF(COUNTA('Enrollment Form'!T503:U503)<2,\"N\",\"Y\"))","v":"-"},{"$f":"IF(B496=\"N\",\"\",IF(OR('Enrollment Form'!C503=\"ROC\",'Enrollment Form'!B503<>\"Subscriber\",'Enrollment Form'!O503=\"Waive\",'Enrollment Form'!O503=\"\"),\"-\",IF('Enrollment Form'!P503=\"\",\"N\",\"Y\")))","v":""},{"$f":"IF($B496=\"N\",\"\",IF(AND('Enrollment Form'!$C503=\"ROC\",'Enrollment Form'!$DR503<>\"\"),\"Y\",IF(AND('Enrollment Form'!$C503=\"ROC\",'Enrollment Form'!$DR503=\"\"),\"N\",IF(AND('Enrollment Form'!$C503=\"Enroll\",'Enrollment Form'!$B503=\"Subscriber\",'Enrollment Form'!$CX503=\"No\",'Enrollment Form'!$DR503=\"\"),\"N\",IF(AND('Enrollment Form'!$C503=\"Enroll\",'Enrollment Form'!$B503=\"Subscriber\",'Enrollment Form'!$CX503=\"Yes\"),\"-\",\"Y\")))))","v":""},{"$f":"IF($B496=\"N\",\"\",IF(AND('Enrollment Form'!$C503=\"ROC\",'Enrollment Form'!$DS503<>\"\"),\"Y\",IF(AND('Enrollment Form'!$C503=\"ROC\",'Enrollment Form'!$DS503=\"\"),\"N\",IF(AND('Enrollment Form'!$C503=\"Enroll\",'Enrollment Form'!$B503=\"Subscriber\",'Enrollment Form'!$CX503=\"No\",'Enrollment Form'!$DS503=\"\"),\"N\",IF(AND('Enrollment Form'!$C503=\"Enroll\",'Enrollment Form'!$B503=\"Subscriber\",'Enrollment Form'!$CX503=\"Yes\"),\"-\",\"Y\")))))","v":""},{"$f":"IF('Enrollment Form'!AH503=\"\",\"\",IF(ISERROR(SEARCH(\".\",'Enrollment Form'!AH503,SEARCH(\"@\",'Enrollment Form'!AH503))),\"N\",\"Y\"))","v":""},{"$f":"IF(OR($B496=\"N\",'Enrollment Form'!$G503=\"\"),\"\",IF('Enrollment Form'!$B503<>\"Subscriber\",\"-\",IF(COUNTIF('Enrollment Form'!$AV503:$AW503,\"Yes\")=2,\"N\",\"Y\")))","v":""},{"$f":"IF(OR('Enrollment Form'!$CJ503=\"\",'Enrollment Form'!$CJ503=\"No\"),\"-\",IF(AND('Enrollment Form'!$CJ503=\"Yes\",'Enrollment Form'!$CK503=\"\"),\"N\",\"Y\"))","v":"-"},{"$f":"IF(OR('Enrollment Form'!$CL503=\"\",'Enrollment Form'!$CL503=\"No\"),\"-\",IF(AND('Enrollment Form'!$CL503=\"Yes\",'Enrollment Form'!$CM503=\"\"),\"N\",\"Y\"))","v":"-"},{"$f":"IF(OR('Enrollment Form'!$CN503=\"\",'Enrollment Form'!$CN503=\"No\"),\"-\",IF(AND('Enrollment Form'!$CN503=\"Yes\",'Enrollment Form'!$CO503=\"\"),\"N\",\"Y\"))","v":"-"},{"$f":"IF(OR('Enrollment Form'!$CN503=\"\",'Enrollment Form'!$CN503=\"No\"),\"-\",IF(AND('Enrollment Form'!$CN503=\"Yes\",'Enrollment Form'!$CP503=\"\"),\"N\",\"Y\"))","v":"-"},{"$f":"IF('Enrollment Form'!B503<>\"Subscriber\",\"-\",IF(AND('Enrollment Form'!B503=\"Subscriber\",'Enrollment Form'!C503=\"Enroll\",'Enrollment Form'!AA503=\"\"),\"N\",\"Y\"))","v":"-"},{"$f":"IF(OR('Enrollment Form'!B503=\"Subscriber\",'Enrollment Form'!B503=\"\"),\"-\",IF('Enrollment Form'!BP503=\"\",\"N\",\"Y\"))","v":"-"},{"$f":"IF('Enrollment Form'!B503<>\"Subscriber\",\"-\",IF(AND('Enrollment Form'!B503=\"Subscriber\",'Enrollment Form'!G503=\"\"),\"N\",\"Y\"))","v":"-"},{"$f":"IF('Enrollment Form'!A503=\"\",\"\",IF('Enrollment Form'!B503=\"Subscriber\",\"-\",IF(AND('Enrollment Form'!B503<>\"Subscriber\",'Enrollment Form'!G503='Enrollment Form'!H503),\"N\",\"Y\")))","v":""},0]
[504,{"$f":"IF('Enrollment Form'!$A504<>\"\",\"Y\",\"N\")","v":"N"},{"$f":"IF(AND('Enrollment Form'!$B504=\"\",'Enrollment Form'!$C504<>\"\"),\"N\",IF($B497=\"N\",\"\",\"Y\"))","v":""},{"$f":"IF(OR($B497=\"N\",'Enrollment Form'!G504=\"\"),\"\",IF('Enrollment Form'!$B504<>\"Subscriber\",\"\",IF('Enrollment Form'!$G504='Enrollment Form'!$H504,\"Y\",\"N\")))","v":""},{"$f":"IF($B497=\"N\",\"\",IF(AND(COUNTIFS('Enrollment Form'!$H$11:$H$1000,'Enrollment Form'!$H504,'Enrollment Form'!$B$11:$B$1000,'Enrollment Form'!$B504)>1,'Enrollment Form'!$H504<>\"\"),\"N\",\"Y\"))","v":""},{"$f":"IF($B497=\"N\",\"\",IF(LEN('Enrollment Form'!$Y504)=0,\"\",IF(LEN('Enrollment Form'!$Y504)<>5,\"N\",\"Y\")))","v":""},{"$f":"IF($B497=\"N\",\"\",IF(LEN('Enrollment Form'!$AD504=0),\"\",IF(LEN('Enrollment Form'!$AD504)<>5,\"N\",\"Y\")))","v":""},{"$f":"IF($B497=\"N\",\"\",IF(LEN('Enrollment Form'!$BS504=0),\"\",IF(LEN('Enrollment Form'!$BS504)<>5,\"N\",\"Y\")))","v":""},{"$f":"IF($B497=\"N\",\"\",IF(LEN('Enrollment Form'!$AE504)=0,\"\",IF(LEN('Enrollment Form'!$AE504)<>10,\"N\",\"Y\")))","v":""},{"$f":"IF($B497=\"N\",\"\",IF(LEN('Enrollment Form'!$AF504)=0,\"\",IF(LEN('Enrollment Form'!$AF504)<>10,\"N\",\"Y\")))","v":""},{"$f":"IF('Enrollment Form'!$O504<>\"Graded\",\"-\",IF(AND('Enrollment Form'!$O504=\"Graded\",'Enrollment Form'!$AR504<>\"\"),\"Y\",\"N\"))","v":"-"},{"$f":"IF($B497=\"N\",\"\",IF(OR('Enrollment Form'!$B504<>\"Subscriber\",'Enrollment Form'!$C504=\"ROC\"),\"-\",IF(AND('Enrollment Form'!$B504=\"Subscriber\",'Enrollment Form'!$C504=\"Enroll\",'Enrollment Form'!$AJ504<>\"\"),\"Y\",\"N\")))","v":""},{"$f":"IF($B497=\"N\",\"\",IF(OR('Enrollment Form'!$B504<>\"Subscriber\",'Enrollment Form'!$C504=\"ROC\"),\"-\",IF(AND('Enrollment Form'!$B504=\"Subscriber\",'Enrollment Form'!$C504=\"Enroll\",'Enrollment Form'!$AK504<>\"\"),\"Y\",\"N\")))","v":""},{"$f":"IF($B497=\"N\",\"\",IF(OR('Enrollment Form'!$B504<>\"Subscriber\",'Enrollment Form'!$C504=\"ROC\"),\"-\",IF(AND('Enrollment Form'!$B504=\"Subscriber\",'Enrollment Form'!$C504=\"Enroll\",'Enrollment Form'!$AL504<>\"\"),\"Y\",\"N\")))","v":""},{"$f":"IF($B497=\"N\",\"\",IF(OR('Enrollment Form'!$B504<>\"Subscriber\",'Enrollment Form'!$C504=\"ROC\"),\"-\",IF(AND('Enrollment Form'!$B504=\"Subscriber\",'Enrollment Form'!$C504=\"Enroll\",'Enrollment Form'!$AP504<>\"\"),\"Y\",\"N\")))","v":""},{"$f":"IF($B497=\"N\",\"\",IF(OR('Enrollment Form'!$B504<>\"Subscriber\",'Enrollment Form'!$C504=\"ROC\"),\"-\",IF(AND('Enrollment Form'!$B504=\"Subscriber\",'Enrollment Form'!$C504=\"Enroll\",'Enrollment Form'!$AQ504<>\"\"),\"Y\",\"N\")))","v":""},{"$f":"IF($B497=\"N\",\"\",IF(OR('Enrollment Form'!$B504<>\"Subscriber\",'Enrollment Form'!$C504=\"ROC\"),\"-\",IF(AND('Enrollment Form'!$B504=\"Subscriber\",'Enrollment Form'!$C504=\"Enroll\",'Enrollment Form'!$AS504<>\"\"),\"Y\",\"N\")))","v":""},{"$f":"IF($B497=\"N\",\"\",IF($Q497=\"-\",\"-\",IF(AND($Q497=\"Y\",'Enrollment Form'!$AS504=\"No\"),\"-\",IF(AND($Q497=\"Y\",'Enrollment Form'!$AS504=\"Yes\",'Enrollment Form'!$AT504<>\"\"),\"Y\",\"N\"))))","v":""},{"$f":"IF($B497=\"N\",\"\",IF(OR('Enrollment Form'!$B504<>\"Subscriber\",'Enrollment Form'!$C504=\"ROC\"),\"-\",IF(AND('Enrollment Form'!$B504=\"Subscriber\",'Enrollment Form'!$C504=\"Enroll\",'Enrollment Form'!$CV504<>\"\"),\"Y\",\"N\")))","v":""},{"$f":"IF($B497=\"N\",\"\",IF($S497=\"-\",\"-\",IF(AND($S497=\"Y\",'Enrollment Form'!$CV504=\"No\"),\"-\",IF(AND($S497=\"Y\",'Enrollment Form'!$CV504=\"Yes\",'Enrollment Form'!$CW504<>\"\"),\"Y\",\"N\"))))","v":""},{"$f":"IF(OR('Enrollment Form'!$AY504=\"Yes\",'Enrollment Form'!$AY504=\"\"),\"-\",IF(OR(AND('Enrollment Form'!$AY504=\"No\",ISERROR(FIND(\"HMO\",VLOOKUP('Enrollment Form'!G504,'Enrollment Form'!H$11:J$1000,3,FALSE),1))=FALSE,COUNTA('Enrollment Form'!$AZ504:$BC504)=4),AND('Enrollment Form'!$AY504=\"No\",ISERROR(FIND(\"HMO\",VLOOKUP('Enrollment Form'!G504,'Enrollment Form'!H$11:J$1000,3,FALSE),1))=FALSE,COUNTA('Enrollment Form'!$BT504:$BW504)=4)),\"Y\",\"N\"))","v":"-"},{"$f":"IF($B497=\"N\",\"\",IF('Enrollment Form'!$B504=\"Subscriber\",\"-\",IF(COUNTA('Enrollment Form'!$BL504,'Enrollment Form'!$BN504)=2,\"Y\",\"N\")))","v":""},{"$f":"IF($B497=\"N\",\"\",IF(OR('Enrollment Form'!$AX504=\"\",'Enrollment Form'!$AX504=\"No\"),\"-\",IF(AND('Enrollment Form'!$AX504=\"Yes\",COUNTA('Enrollment Form'!$CR504)=1),\"Y\",\"N\")))","v":""},{"$f":"IF(OR('Enrollment Form'!$CR504=\"\",'Enrollment Form'!$CR504=\"No\"),\"-\",IF(COUNTA('Enrollment Form'!$CT504:$CU504)=2,\"Y\",\"N\"))","v":"-"},{"$f":"IF($B497=\"N\",\"\",IF(COUNTIF('Enrollment Form'!$DG504:$DP504,\"Other\")=COUNTA('Enrollment Form'!$DK504,'Enrollment Form'!$DH504,'Enrollment Form'!$DN504,'Enrollment Form'!$DQ504),\"Y\",\"N\"))","v":""},{"$f":"IF($B497=\"N\",\"\",IF(OR('Enrollment Form'!B504<>\"Subscriber\",'Enrollment Form'!C504=\"ROC\",COUNTIF('Enrollment Form'!AV504:AW504,\"Yes\")>=1),\"-\",IF(AND('Enrollment Form'!C504=\"Enroll\",COUNTIF('Enrollment Form'!AV504:AW504,\"No\")=2,'Enrollment Form'!AX504=\"\"),\"N\",\"Y\")))","v":""},{"$f":"IF(OR(B497=\"N\",'Enrollment Form'!B504<>\"Subscriber\",'Enrollment Form'!C504=\"ROC\",'Enrollment Form'!O504<>\"Multiple of Salary\"),\"-\",IF(COUNTA('Enrollment Form'!T504:U504)<2,\"N\",\"Y\"))","v":"-"},{"$f":"IF(B497=\"N\",\"\",IF(OR('Enrollment Form'!C504=\"ROC\",'Enrollment Form'!B504<>\"Subscriber\",'Enrollment Form'!O504=\"Waive\",'Enrollment Form'!O504=\"\"),\"-\",IF('Enrollment Form'!P504=\"\",\"N\",\"Y\")))","v":""},{"$f":"IF($B497=\"N\",\"\",IF(AND('Enrollment Form'!$C504=\"ROC\",'Enrollment Form'!$DR504<>\"\"),\"Y\",IF(AND('Enrollment Form'!$C504=\"ROC\",'Enrollment Form'!$DR504=\"\"),\"N\",IF(AND('Enrollment Form'!$C504=\"Enroll\",'Enrollment Form'!$B504=\"Subscriber\",'Enrollment Form'!$CX504=\"No\",'Enrollment Form'!$DR504=\"\"),\"N\",IF(AND('Enrollment Form'!$C504=\"Enroll\",'Enrollment Form'!$B504=\"Subscriber\",'Enrollment Form'!$CX504=\"Yes\"),\"-\",\"Y\")))))","v":""},{"$f":"IF($B497=\"N\",\"\",IF(AND('Enrollment Form'!$C504=\"ROC\",'Enrollment Form'!$DS504<>\"\"),\"Y\",IF(AND('Enrollment Form'!$C504=\"ROC\",'Enrollment Form'!$DS504=\"\"),\"N\",IF(AND('Enrollment Form'!$C504=\"Enroll\",'Enrollment Form'!$B504=\"Subscriber\",'Enrollment Form'!$CX504=\"No\",'Enrollment Form'!$DS504=\"\"),\"N\",IF(AND('Enrollment Form'!$C504=\"Enroll\",'Enrollment Form'!$B504=\"Subscriber\",'Enrollment Form'!$CX504=\"Yes\"),\"-\",\"Y\")))))","v":""},{"$f":"IF('Enrollment Form'!AH504=\"\",\"\",IF(ISERROR(SEARCH(\".\",'Enrollment Form'!AH504,SEARCH(\"@\",'Enrollment Form'!AH504))),\"N\",\"Y\"))","v":""},{"$f":"IF(OR($B497=\"N\",'Enrollment Form'!$G504=\"\"),\"\",IF('Enrollment Form'!$B504<>\"Subscriber\",\"-\",IF(COUNTIF('Enrollment Form'!$AV504:$AW504,\"Yes\")=2,\"N\",\"Y\")))","v":""},{"$f":"IF(OR('Enrollment Form'!$CJ504=\"\",'Enrollment Form'!$CJ504=\"No\"),\"-\",IF(AND('Enrollment Form'!$CJ504=\"Yes\",'Enrollment Form'!$CK504=\"\"),\"N\",\"Y\"))","v":"-"},{"$f":"IF(OR('Enrollment Form'!$CL504=\"\",'Enrollment Form'!$CL504=\"No\"),\"-\",IF(AND('Enrollment Form'!$CL504=\"Yes\",'Enrollment Form'!$CM504=\"\"),\"N\",\"Y\"))","v":"-"},{"$f":"IF(OR('Enrollment Form'!$CN504=\"\",'Enrollment Form'!$CN504=\"No\"),\"-\",IF(AND('Enrollment Form'!$CN504=\"Yes\",'Enrollment Form'!$CO504=\"\"),\"N\",\"Y\"))","v":"-"},{"$f":"IF(OR('Enrollment Form'!$CN504=\"\",'Enrollment Form'!$CN504=\"No\"),\"-\",IF(AND('Enrollment Form'!$CN504=\"Yes\",'Enrollment Form'!$CP504=\"\"),\"N\",\"Y\"))","v":"-"},{"$f":"IF('Enrollment Form'!B504<>\"Subscriber\",\"-\",IF(AND('Enrollment Form'!B504=\"Subscriber\",'Enrollment Form'!C504=\"Enroll\",'Enrollment Form'!AA504=\"\"),\"N\",\"Y\"))","v":"-"},{"$f":"IF(OR('Enrollment Form'!B504=\"Subscriber\",'Enrollment Form'!B504=\"\"),\"-\",IF('Enrollment Form'!BP504=\"\",\"N\",\"Y\"))","v":"-"},{"$f":"IF('Enrollment Form'!B504<>\"Subscriber\",\"-\",IF(AND('Enrollment Form'!B504=\"Subscriber\",'Enrollment Form'!G504=\"\"),\"N\",\"Y\"))","v":"-"},{"$f":"IF('Enrollment Form'!A504=\"\",\"\",IF('Enrollment Form'!B504=\"Subscriber\",\"-\",IF(AND('Enrollment Form'!B504<>\"Subscriber\",'Enrollment Form'!G504='Enrollment Form'!H504),\"N\",\"Y\")))","v":""},0]
[505,{"$f":"IF('Enrollment Form'!$A505<>\"\",\"Y\",\"N\")","v":"N"},{"$f":"IF(AND('Enrollment Form'!$B505=\"\",'Enrollment Form'!$C505<>\"\"),\"N\",IF($B498=\"N\",\"\",\"Y\"))","v":""},{"$f":"IF(OR($B498=\"N\",'Enrollment Form'!G505=\"\"),\"\",IF('Enrollment Form'!$B505<>\"Subscriber\",\"\",IF('Enrollment Form'!$G505='Enrollment Form'!$H505,\"Y\",\"N\")))","v":""},{"$f":"IF($B498=\"N\",\"\",IF(AND(COUNTIFS('Enrollment Form'!$H$11:$H$1000,'Enrollment Form'!$H505,'Enrollment Form'!$B$11:$B$1000,'Enrollment Form'!$B505)>1,'Enrollment Form'!$H505<>\"\"),\"N\",\"Y\"))","v":""},{"$f":"IF($B498=\"N\",\"\",IF(LEN('Enrollment Form'!$Y505)=0,\"\",IF(LEN('Enrollment Form'!$Y505)<>5,\"N\",\"Y\")))","v":""},{"$f":"IF($B498=\"N\",\"\",IF(LEN('Enrollment Form'!$AD505=0),\"\",IF(LEN('Enrollment Form'!$AD505)<>5,\"N\",\"Y\")))","v":""},{"$f":"IF($B498=\"N\",\"\",IF(LEN('Enrollment Form'!$BS505=0),\"\",IF(LEN('Enrollment Form'!$BS505)<>5,\"N\",\"Y\")))","v":""},{"$f":"IF($B498=\"N\",\"\",IF(LEN('Enrollment Form'!$AE505)=0,\"\",IF(LEN('Enrollment Form'!$AE505)<>10,\"N\",\"Y\")))","v":""},{"$f":"IF($B498=\"N\",\"\",IF(LEN('Enrollment Form'!$AF505)=0,\"\",IF(LEN('Enrollment Form'!$AF505)<>10,\"N\",\"Y\")))","v":""},{"$f":"IF('Enrollment Form'!$O505<>\"Graded\",\"-\",IF(AND('Enrollment Form'!$O505=\"Graded\",'Enrollment Form'!$AR505<>\"\"),\"Y\",\"N\"))","v":"-"},{"$f":"IF($B498=\"N\",\"\",IF(OR('Enrollment Form'!$B505<>\"Subscriber\",'Enrollment Form'!$C505=\"ROC\"),\"-\",IF(AND('Enrollment Form'!$B505=\"Subscriber\",'Enrollment Form'!$C505=\"Enroll\",'Enrollment Form'!$AJ505<>\"\"),\"Y\",\"N\")))","v":""},{"$f":"IF($B498=\"N\",\"\",IF(OR('Enrollment Form'!$B505<>\"Subscriber\",'Enrollment Form'!$C505=\"ROC\"),\"-\",IF(AND('Enrollment Form'!$B505=\"Subscriber\",'Enrollment Form'!$C505=\"Enroll\",'Enrollment Form'!$AK505<>\"\"),\"Y\",\"N\")))","v":""},{"$f":"IF($B498=\"N\",\"\",IF(OR('Enrollment Form'!$B505<>\"Subscriber\",'Enrollment Form'!$C505=\"ROC\"),\"-\",IF(AND('Enrollment Form'!$B505=\"Subscriber\",'Enrollment Form'!$C505=\"Enroll\",'Enrollment Form'!$AL505<>\"\"),\"Y\",\"N\")))","v":""},{"$f":"IF($B498=\"N\",\"\",IF(OR('Enrollment Form'!$B505<>\"Subscriber\",'Enrollment Form'!$C505=\"ROC\"),\"-\",IF(AND('Enrollment Form'!$B505=\"Subscriber\",'Enrollment Form'!$C505=\"Enroll\",'Enrollment Form'!$AP505<>\"\"),\"Y\",\"N\")))","v":""},{"$f":"IF($B498=\"N\",\"\",IF(OR('Enrollment Form'!$B505<>\"Subscriber\",'Enrollment Form'!$C505=\"ROC\"),\"-\",IF(AND('Enrollment Form'!$B505=\"Subscriber\",'Enrollment Form'!$C505=\"Enroll\",'Enrollment Form'!$AQ505<>\"\"),\"Y\",\"N\")))","v":""},{"$f":"IF($B498=\"N\",\"\",IF(OR('Enrollment Form'!$B505<>\"Subscriber\",'Enrollment Form'!$C505=\"ROC\"),\"-\",IF(AND('Enrollment Form'!$B505=\"Subscriber\",'Enrollment Form'!$C505=\"Enroll\",'Enrollment Form'!$AS505<>\"\"),\"Y\",\"N\")))","v":""},{"$f":"IF($B498=\"N\",\"\",IF($Q498=\"-\",\"-\",IF(AND($Q498=\"Y\",'Enrollment Form'!$AS505=\"No\"),\"-\",IF(AND($Q498=\"Y\",'Enrollment Form'!$AS505=\"Yes\",'Enrollment Form'!$AT505<>\"\"),\"Y\",\"N\"))))","v":""},{"$f":"IF($B498=\"N\",\"\",IF(OR('Enrollment Form'!$B505<>\"Subscriber\",'Enrollment Form'!$C505=\"ROC\"),\"-\",IF(AND('Enrollment Form'!$B505=\"Subscriber\",'Enrollment Form'!$C505=\"Enroll\",'Enrollment Form'!$CV505<>\"\"),\"Y\",\"N\")))","v":""},{"$f":"IF($B498=\"N\",\"\",IF($S498=\"-\",\"-\",IF(AND($S498=\"Y\",'Enrollment Form'!$CV505=\"No\"),\"-\",IF(AND($S498=\"Y\",'Enrollment Form'!$CV505=\"Yes\",'Enrollment Form'!$CW505<>\"\"),\"Y\",\"N\"))))","v":""},{"$f":"IF(OR('Enrollment Form'!$AY505=\"Yes\",'Enrollment Form'!$AY505=\"\"),\"-\",IF(OR(AND('Enrollment Form'!$AY505=\"No\",ISERROR(FIND(\"HMO\",VLOOKUP('Enrollment Form'!G505,'Enrollment Form'!H$11:J$1000,3,FALSE),1))=FALSE,COUNTA('Enrollment Form'!$AZ505:$BC505)=4),AND('Enrollment Form'!$AY505=\"No\",ISERROR(FIND(\"HMO\",VLOOKUP('Enrollment Form'!G505,'Enrollment Form'!H$11:J$1000,3,FALSE),1))=FALSE,COUNTA('Enrollment Form'!$BT505:$BW505)=4)),\"Y\",\"N\"))","v":"-"},{"$f":"IF($B498=\"N\",\"\",IF('Enrollment Form'!$B505=\"Subscriber\",\"-\",IF(COUNTA('Enrollment Form'!$BL505,'Enrollment Form'!$BN505)=2,\"Y\",\"N\")))","v":""},{"$f":"IF($B498=\"N\",\"\",IF(OR('Enrollment Form'!$AX505=\"\",'Enrollment Form'!$AX505=\"No\"),\"-\",IF(AND('Enrollment Form'!$AX505=\"Yes\",COUNTA('Enrollment Form'!$CR505)=1),\"Y\",\"N\")))","v":""},{"$f":"IF(OR('Enrollment Form'!$CR505=\"\",'Enrollment Form'!$CR505=\"No\"),\"-\",IF(COUNTA('Enrollment Form'!$CT505:$CU505)=2,\"Y\",\"N\"))","v":"-"},{"$f":"IF($B498=\"N\",\"\",IF(COUNTIF('Enrollment Form'!$DG505:$DP505,\"Other\")=COUNTA('Enrollment Form'!$DK505,'Enrollment Form'!$DH505,'Enrollment Form'!$DN505,'Enrollment Form'!$DQ505),\"Y\",\"N\"))","v":""},{"$f":"IF($B498=\"N\",\"\",IF(OR('Enrollment Form'!B505<>\"Subscriber\",'Enrollment Form'!C505=\"ROC\",COUNTIF('Enrollment Form'!AV505:AW505,\"Yes\")>=1),\"-\",IF(AND('Enrollment Form'!C505=\"Enroll\",COUNTIF('Enrollment Form'!AV505:AW505,\"No\")=2,'Enrollment Form'!AX505=\"\"),\"N\",\"Y\")))","v":""},{"$f":"IF(OR(B498=\"N\",'Enrollment Form'!B505<>\"Subscriber\",'Enrollment Form'!C505=\"ROC\",'Enrollment Form'!O505<>\"Multiple of Salary\"),\"-\",IF(COUNTA('Enrollment Form'!T505:U505)<2,\"N\",\"Y\"))","v":"-"},{"$f":"IF(B498=\"N\",\"\",IF(OR('Enrollment Form'!C505=\"ROC\",'Enrollment Form'!B505<>\"Subscriber\",'Enrollment Form'!O505=\"Waive\",'Enrollment Form'!O505=\"\"),\"-\",IF('Enrollment Form'!P505=\"\",\"N\",\"Y\")))","v":""},{"$f":"IF($B498=\"N\",\"\",IF(AND('Enrollment Form'!$C505=\"ROC\",'Enrollment Form'!$DR505<>\"\"),\"Y\",IF(AND('Enrollment Form'!$C505=\"ROC\",'Enrollment Form'!$DR505=\"\"),\"N\",IF(AND('Enrollment Form'!$C505=\"Enroll\",'Enrollment Form'!$B505=\"Subscriber\",'Enrollment Form'!$CX505=\"No\",'Enrollment Form'!$DR505=\"\"),\"N\",IF(AND('Enrollment Form'!$C505=\"Enroll\",'Enrollment Form'!$B505=\"Subscriber\",'Enrollment Form'!$CX505=\"Yes\"),\"-\",\"Y\")))))","v":""},{"$f":"IF($B498=\"N\",\"\",IF(AND('Enrollment Form'!$C505=\"ROC\",'Enrollment Form'!$DS505<>\"\"),\"Y\",IF(AND('Enrollment Form'!$C505=\"ROC\",'Enrollment Form'!$DS505=\"\"),\"N\",IF(AND('Enrollment Form'!$C505=\"Enroll\",'Enrollment Form'!$B505=\"Subscriber\",'Enrollment Form'!$CX505=\"No\",'Enrollment Form'!$DS505=\"\"),\"N\",IF(AND('Enrollment Form'!$C505=\"Enroll\",'Enrollment Form'!$B505=\"Subscriber\",'Enrollment Form'!$CX505=\"Yes\"),\"-\",\"Y\")))))","v":""},{"$f":"IF('Enrollment Form'!AH505=\"\",\"\",IF(ISERROR(SEARCH(\".\",'Enrollment Form'!AH505,SEARCH(\"@\",'Enrollment Form'!AH505))),\"N\",\"Y\"))","v":""},{"$f":"IF(OR($B498=\"N\",'Enrollment Form'!$G505=\"\"),\"\",IF('Enrollment Form'!$B505<>\"Subscriber\",\"-\",IF(COUNTIF('Enrollment Form'!$AV505:$AW505,\"Yes\")=2,\"N\",\"Y\")))","v":""},{"$f":"IF(OR('Enrollment Form'!$CJ505=\"\",'Enrollment Form'!$CJ505=\"No\"),\"-\",IF(AND('Enrollment Form'!$CJ505=\"Yes\",'Enrollment Form'!$CK505=\"\"),\"N\",\"Y\"))","v":"-"},{"$f":"IF(OR('Enrollment Form'!$CL505=\"\",'Enrollment Form'!$CL505=\"No\"),\"-\",IF(AND('Enrollment Form'!$CL505=\"Yes\",'Enrollment Form'!$CM505=\"\"),\"N\",\"Y\"))","v":"-"},{"$f":"IF(OR('Enrollment Form'!$CN505=\"\",'Enrollment Form'!$CN505=\"No\"),\"-\",IF(AND('Enrollment Form'!$CN505=\"Yes\",'Enrollment Form'!$CO505=\"\"),\"N\",\"Y\"))","v":"-"},{"$f":"IF(OR('Enrollment Form'!$CN505=\"\",'Enrollment Form'!$CN505=\"No\"),\"-\",IF(AND('Enrollment Form'!$CN505=\"Yes\",'Enrollment Form'!$CP505=\"\"),\"N\",\"Y\"))","v":"-"},{"$f":"IF('Enrollment Form'!B505<>\"Subscriber\",\"-\",IF(AND('Enrollment Form'!B505=\"Subscriber\",'Enrollment Form'!C505=\"Enroll\",'Enrollment Form'!AA505=\"\"),\"N\",\"Y\"))","v":"-"},{"$f":"IF(OR('Enrollment Form'!B505=\"Subscriber\",'Enrollment Form'!B505=\"\"),\"-\",IF('Enrollment Form'!BP505=\"\",\"N\",\"Y\"))","v":"-"},{"$f":"IF('Enrollment Form'!B505<>\"Subscriber\",\"-\",IF(AND('Enrollment Form'!B505=\"Subscriber\",'Enrollment Form'!G505=\"\"),\"N\",\"Y\"))","v":"-"},{"$f":"IF('Enrollment Form'!A505=\"\",\"\",IF('Enrollment Form'!B505=\"Subscriber\",\"-\",IF(AND('Enrollment Form'!B505<>\"Subscriber\",'Enrollment Form'!G505='Enrollment Form'!H505),\"N\",\"Y\")))","v":""},0]
[506,{"$f":"IF('Enrollment Form'!$A506<>\"\",\"Y\",\"N\")","v":"N"},{"$f":"IF(AND('Enrollment Form'!$B506=\"\",'Enrollment Form'!$C506<>\"\"),\"N\",IF($B499=\"N\",\"\",\"Y\"))","v":""},{"$f":"IF(OR($B499=\"N\",'Enrollment Form'!G506=\"\"),\"\",IF('Enrollment Form'!$B506<>\"Subscriber\",\"\",IF('Enrollment Form'!$G506='Enrollment Form'!$H506,\"Y\",\"N\")))","v":""},{"$f":"IF($B499=\"N\",\"\",IF(AND(COUNTIFS('Enrollment Form'!$H$11:$H$1000,'Enrollment Form'!$H506,'Enrollment Form'!$B$11:$B$1000,'Enrollment Form'!$B506)>1,'Enrollment Form'!$H506<>\"\"),\"N\",\"Y\"))","v":""},{"$f":"IF($B499=\"N\",\"\",IF(LEN('Enrollment Form'!$Y506)=0,\"\",IF(LEN('Enrollment Form'!$Y506)<>5,\"N\",\"Y\")))","v":""},{"$f":"IF($B499=\"N\",\"\",IF(LEN('Enrollment Form'!$AD506=0),\"\",IF(LEN('Enrollment Form'!$AD506)<>5,\"N\",\"Y\")))","v":""},{"$f":"IF($B499=\"N\",\"\",IF(LEN('Enrollment Form'!$BS506=0),\"\",IF(LEN('Enrollment Form'!$BS506)<>5,\"N\",\"Y\")))","v":""},{"$f":"IF($B499=\"N\",\"\",IF(LEN('Enrollment Form'!$AE506)=0,\"\",IF(LEN('Enrollment Form'!$AE506)<>10,\"N\",\"Y\")))","v":""},{"$f":"IF($B499=\"N\",\"\",IF(LEN('Enrollment Form'!$AF506)=0,\"\",IF(LEN('Enrollment Form'!$AF506)<>10,\"N\",\"Y\")))","v":""},{"$f":"IF('Enrollment Form'!$O506<>\"Graded\",\"-\",IF(AND('Enrollment Form'!$O506=\"Graded\",'Enrollment Form'!$AR506<>\"\"),\"Y\",\"N\"))","v":"-"},{"$f":"IF($B499=\"N\",\"\",IF(OR('Enrollment Form'!$B506<>\"Subscriber\",'Enrollment Form'!$C506=\"ROC\"),\"-\",IF(AND('Enrollment Form'!$B506=\"Subscriber\",'Enrollment Form'!$C506=\"Enroll\",'Enrollment Form'!$AJ506<>\"\"),\"Y\",\"N\")))","v":""},{"$f":"IF($B499=\"N\",\"\",IF(OR('Enrollment Form'!$B506<>\"Subscriber\",'Enrollment Form'!$C506=\"ROC\"),\"-\",IF(AND('Enrollment Form'!$B506=\"Subscriber\",'Enrollment Form'!$C506=\"Enroll\",'Enrollment Form'!$AK506<>\"\"),\"Y\",\"N\")))","v":""},{"$f":"IF($B499=\"N\",\"\",IF(OR('Enrollment Form'!$B506<>\"Subscriber\",'Enrollment Form'!$C506=\"ROC\"),\"-\",IF(AND('Enrollment Form'!$B506=\"Subscriber\",'Enrollment Form'!$C506=\"Enroll\",'Enrollment Form'!$AL506<>\"\"),\"Y\",\"N\")))","v":""},{"$f":"IF($B499=\"N\",\"\",IF(OR('Enrollment Form'!$B506<>\"Subscriber\",'Enrollment Form'!$C506=\"ROC\"),\"-\",IF(AND('Enrollment Form'!$B506=\"Subscriber\",'Enrollment Form'!$C506=\"Enroll\",'Enrollment Form'!$AP506<>\"\"),\"Y\",\"N\")))","v":""},{"$f":"IF($B499=\"N\",\"\",IF(OR('Enrollment Form'!$B506<>\"Subscriber\",'Enrollment Form'!$C506=\"ROC\"),\"-\",IF(AND('Enrollment Form'!$B506=\"Subscriber\",'Enrollment Form'!$C506=\"Enroll\",'Enrollment Form'!$AQ506<>\"\"),\"Y\",\"N\")))","v":""},{"$f":"IF($B499=\"N\",\"\",IF(OR('Enrollment Form'!$B506<>\"Subscriber\",'Enrollment Form'!$C506=\"ROC\"),\"-\",IF(AND('Enrollment Form'!$B506=\"Subscriber\",'Enrollment Form'!$C506=\"Enroll\",'Enrollment Form'!$AS506<>\"\"),\"Y\",\"N\")))","v":""},{"$f":"IF($B499=\"N\",\"\",IF($Q499=\"-\",\"-\",IF(AND($Q499=\"Y\",'Enrollment Form'!$AS506=\"No\"),\"-\",IF(AND($Q499=\"Y\",'Enrollment Form'!$AS506=\"Yes\",'Enrollment Form'!$AT506<>\"\"),\"Y\",\"N\"))))","v":""},{"$f":"IF($B499=\"N\",\"\",IF(OR('Enrollment Form'!$B506<>\"Subscriber\",'Enrollment Form'!$C506=\"ROC\"),\"-\",IF(AND('Enrollment Form'!$B506=\"Subscriber\",'Enrollment Form'!$C506=\"Enroll\",'Enrollment Form'!$CV506<>\"\"),\"Y\",\"N\")))","v":""},{"$f":"IF($B499=\"N\",\"\",IF($S499=\"-\",\"-\",IF(AND($S499=\"Y\",'Enrollment Form'!$CV506=\"No\"),\"-\",IF(AND($S499=\"Y\",'Enrollment Form'!$CV506=\"Yes\",'Enrollment Form'!$CW506<>\"\"),\"Y\",\"N\"))))","v":""},{"$f":"IF(OR('Enrollment Form'!$AY506=\"Yes\",'Enrollment Form'!$AY506=\"\"),\"-\",IF(OR(AND('Enrollment Form'!$AY506=\"No\",ISERROR(FIND(\"HMO\",VLOOKUP('Enrollment Form'!G506,'Enrollment Form'!H$11:J$1000,3,FALSE),1))=FALSE,COUNTA('Enrollment Form'!$AZ506:$BC506)=4),AND('Enrollment Form'!$AY506=\"No\",ISERROR(FIND(\"HMO\",VLOOKUP('Enrollment Form'!G506,'Enrollment Form'!H$11:J$1000,3,FALSE),1))=FALSE,COUNTA('Enrollment Form'!$BT506:$BW506)=4)),\"Y\",\"N\"))","v":"-"},{"$f":"IF($B499=\"N\",\"\",IF('Enrollment Form'!$B506=\"Subscriber\",\"-\",IF(COUNTA('Enrollment Form'!$BL506,'Enrollment Form'!$BN506)=2,\"Y\",\"N\")))","v":""},{"$f":"IF($B499=\"N\",\"\",IF(OR('Enrollment Form'!$AX506=\"\",'Enrollment Form'!$AX506=\"No\"),\"-\",IF(AND('Enrollment Form'!$AX506=\"Yes\",COUNTA('Enrollment Form'!$CR506)=1),\"Y\",\"N\")))","v":""},{"$f":"IF(OR('Enrollment Form'!$CR506=\"\",'Enrollment Form'!$CR506=\"No\"),\"-\",IF(COUNTA('Enrollment Form'!$CT506:$CU506)=2,\"Y\",\"N\"))","v":"-"},{"$f":"IF($B499=\"N\",\"\",IF(COUNTIF('Enrollment Form'!$DG506:$DP506,\"Other\")=COUNTA('Enrollment Form'!$DK506,'Enrollment Form'!$DH506,'Enrollment Form'!$DN506,'Enrollment Form'!$DQ506),\"Y\",\"N\"))","v":""},{"$f":"IF($B499=\"N\",\"\",IF(OR('Enrollment Form'!B506<>\"Subscriber\",'Enrollment Form'!C506=\"ROC\",COUNTIF('Enrollment Form'!AV506:AW506,\"Yes\")>=1),\"-\",IF(AND('Enrollment Form'!C506=\"Enroll\",COUNTIF('Enrollment Form'!AV506:AW506,\"No\")=2,'Enrollment Form'!AX506=\"\"),\"N\",\"Y\")))","v":""},{"$f":"IF(OR(B499=\"N\",'Enrollment Form'!B506<>\"Subscriber\",'Enrollment Form'!C506=\"ROC\",'Enrollment Form'!O506<>\"Multiple of Salary\"),\"-\",IF(COUNTA('Enrollment Form'!T506:U506)<2,\"N\",\"Y\"))","v":"-"},{"$f":"IF(B499=\"N\",\"\",IF(OR('Enrollment Form'!C506=\"ROC\",'Enrollment Form'!B506<>\"Subscriber\",'Enrollment Form'!O506=\"Waive\",'Enrollment Form'!O506=\"\"),\"-\",IF('Enrollment Form'!P506=\"\",\"N\",\"Y\")))","v":""},{"$f":"IF($B499=\"N\",\"\",IF(AND('Enrollment Form'!$C506=\"ROC\",'Enrollment Form'!$DR506<>\"\"),\"Y\",IF(AND('Enrollment Form'!$C506=\"ROC\",'Enrollment Form'!$DR506=\"\"),\"N\",IF(AND('Enrollment Form'!$C506=\"Enroll\",'Enrollment Form'!$B506=\"Subscriber\",'Enrollment Form'!$CX506=\"No\",'Enrollment Form'!$DR506=\"\"),\"N\",IF(AND('Enrollment Form'!$C506=\"Enroll\",'Enrollment Form'!$B506=\"Subscriber\",'Enrollment Form'!$CX506=\"Yes\"),\"-\",\"Y\")))))","v":""},{"$f":"IF($B499=\"N\",\"\",IF(AND('Enrollment Form'!$C506=\"ROC\",'Enrollment Form'!$DS506<>\"\"),\"Y\",IF(AND('Enrollment Form'!$C506=\"ROC\",'Enrollment Form'!$DS506=\"\"),\"N\",IF(AND('Enrollment Form'!$C506=\"Enroll\",'Enrollment Form'!$B506=\"Subscriber\",'Enrollment Form'!$CX506=\"No\",'Enrollment Form'!$DS506=\"\"),\"N\",IF(AND('Enrollment Form'!$C506=\"Enroll\",'Enrollment Form'!$B506=\"Subscriber\",'Enrollment Form'!$CX506=\"Yes\"),\"-\",\"Y\")))))","v":""},{"$f":"IF('Enrollment Form'!AH506=\"\",\"\",IF(ISERROR(SEARCH(\".\",'Enrollment Form'!AH506,SEARCH(\"@\",'Enrollment Form'!AH506))),\"N\",\"Y\"))","v":""},{"$f":"IF(OR($B499=\"N\",'Enrollment Form'!$G506=\"\"),\"\",IF('Enrollment Form'!$B506<>\"Subscriber\",\"-\",IF(COUNTIF('Enrollment Form'!$AV506:$AW506,\"Yes\")=2,\"N\",\"Y\")))","v":""},{"$f":"IF(OR('Enrollment Form'!$CJ506=\"\",'Enrollment Form'!$CJ506=\"No\"),\"-\",IF(AND('Enrollment Form'!$CJ506=\"Yes\",'Enrollment Form'!$CK506=\"\"),\"N\",\"Y\"))","v":"-"},{"$f":"IF(OR('Enrollment Form'!$CL506=\"\",'Enrollment Form'!$CL506=\"No\"),\"-\",IF(AND('Enrollment Form'!$CL506=\"Yes\",'Enrollment Form'!$CM506=\"\"),\"N\",\"Y\"))","v":"-"},{"$f":"IF(OR('Enrollment Form'!$CN506=\"\",'Enrollment Form'!$CN506=\"No\"),\"-\",IF(AND('Enrollment Form'!$CN506=\"Yes\",'Enrollment Form'!$CO506=\"\"),\"N\",\"Y\"))","v":"-"},{"$f":"IF(OR('Enrollment Form'!$CN506=\"\",'Enrollment Form'!$CN506=\"No\"),\"-\",IF(AND('Enrollment Form'!$CN506=\"Yes\",'Enrollment Form'!$CP506=\"\"),\"N\",\"Y\"))","v":"-"},{"$f":"IF('Enrollment Form'!B506<>\"Subscriber\",\"-\",IF(AND('Enrollment Form'!B506=\"Subscriber\",'Enrollment Form'!C506=\"Enroll\",'Enrollment Form'!AA506=\"\"),\"N\",\"Y\"))","v":"-"},{"$f":"IF(OR('Enrollment Form'!B506=\"Subscriber\",'Enrollment Form'!B506=\"\"),\"-\",IF('Enrollment Form'!BP506=\"\",\"N\",\"Y\"))","v":"-"},{"$f":"IF('Enrollment Form'!B506<>\"Subscriber\",\"-\",IF(AND('Enrollment Form'!B506=\"Subscriber\",'Enrollment Form'!G506=\"\"),\"N\",\"Y\"))","v":"-"},{"$f":"IF('Enrollment Form'!A506=\"\",\"\",IF('Enrollment Form'!B506=\"Subscriber\",\"-\",IF(AND('Enrollment Form'!B506<>\"Subscriber\",'Enrollment Form'!G506='Enrollment Form'!H506),\"N\",\"Y\")))","v":""},0]
[507,{"$f":"IF('Enrollment Form'!$A507<>\"\",\"Y\",\"N\")","v":"N"},{"$f":"IF(AND('Enrollment Form'!$B507=\"\",'Enrollment Form'!$C507<>\"\"),\"N\",IF($B500=\"N\",\"\",\"Y\"))","v":""},{"$f":"IF(OR($B500=\"N\",'Enrollment Form'!G507=\"\"),\"\",IF('Enrollment Form'!$B507<>\"Subscriber\",\"\",IF('Enrollment Form'!$G507='Enrollment Form'!$H507,\"Y\",\"N\")))","v":""},{"$f":"IF($B500=\"N\",\"\",IF(AND(COUNTIFS('Enrollment Form'!$H$11:$H$1000,'Enrollment Form'!$H507,'Enrollment Form'!$B$11:$B$1000,'Enrollment Form'!$B507)>1,'Enrollment Form'!$H507<>\"\"),\"N\",\"Y\"))","v":""},{"$f":"IF($B500=\"N\",\"\",IF(LEN('Enrollment Form'!$Y507)=0,\"\",IF(LEN('Enrollment Form'!$Y507)<>5,\"N\",\"Y\")))","v":""},{"$f":"IF($B500=\"N\",\"\",IF(LEN('Enrollment Form'!$AD507=0),\"\",IF(LEN('Enrollment Form'!$AD507)<>5,\"N\",\"Y\")))","v":""},{"$f":"IF($B500=\"N\",\"\",IF(LEN('Enrollment Form'!$BS507=0),\"\",IF(LEN('Enrollment Form'!$BS507)<>5,\"N\",\"Y\")))","v":""},{"$f":"IF($B500=\"N\",\"\",IF(LEN('Enrollment Form'!$AE507)=0,\"\",IF(LEN('Enrollment Form'!$AE507)<>10,\"N\",\"Y\")))","v":""},{"$f":"IF($B500=\"N\",\"\",IF(LEN('Enrollment Form'!$AF507)=0,\"\",IF(LEN('Enrollment Form'!$AF507)<>10,\"N\",\"Y\")))","v":""},{"$f":"IF('Enrollment Form'!$O507<>\"Graded\",\"-\",IF(AND('Enrollment Form'!$O507=\"Graded\",'Enrollment Form'!$AR507<>\"\"),\"Y\",\"N\"))","v":"-"},{"$f":"IF($B500=\"N\",\"\",IF(OR('Enrollment Form'!$B507<>\"Subscriber\",'Enrollment Form'!$C507=\"ROC\"),\"-\",IF(AND('Enrollment Form'!$B507=\"Subscriber\",'Enrollment Form'!$C507=\"Enroll\",'Enrollment Form'!$AJ507<>\"\"),\"Y\",\"N\")))","v":""},{"$f":"IF($B500=\"N\",\"\",IF(OR('Enrollment Form'!$B507<>\"Subscriber\",'Enrollment Form'!$C507=\"ROC\"),\"-\",IF(AND('Enrollment Form'!$B507=\"Subscriber\",'Enrollment Form'!$C507=\"Enroll\",'Enrollment Form'!$AK507<>\"\"),\"Y\",\"N\")))","v":""},{"$f":"IF($B500=\"N\",\"\",IF(OR('Enrollment Form'!$B507<>\"Subscriber\",'Enrollment Form'!$C507=\"ROC\"),\"-\",IF(AND('Enrollment Form'!$B507=\"Subscriber\",'Enrollment Form'!$C507=\"Enroll\",'Enrollment Form'!$AL507<>\"\"),\"Y\",\"N\")))","v":""},{"$f":"IF($B500=\"N\",\"\",IF(OR('Enrollment Form'!$B507<>\"Subscriber\",'Enrollment Form'!$C507=\"ROC\"),\"-\",IF(AND('Enrollment Form'!$B507=\"Subscriber\",'Enrollment Form'!$C507=\"Enroll\",'Enrollment Form'!$AP507<>\"\"),\"Y\",\"N\")))","v":""},{"$f":"IF($B500=\"N\",\"\",IF(OR('Enrollment Form'!$B507<>\"Subscriber\",'Enrollment Form'!$C507=\"ROC\"),\"-\",IF(AND('Enrollment Form'!$B507=\"Subscriber\",'Enrollment Form'!$C507=\"Enroll\",'Enrollment Form'!$AQ507<>\"\"),\"Y\",\"N\")))","v":""},{"$f":"IF($B500=\"N\",\"\",IF(OR('Enrollment Form'!$B507<>\"Subscriber\",'Enrollment Form'!$C507=\"ROC\"),\"-\",IF(AND('Enrollment Form'!$B507=\"Subscriber\",'Enrollment Form'!$C507=\"Enroll\",'Enrollment Form'!$AS507<>\"\"),\"Y\",\"N\")))","v":""},{"$f":"IF($B500=\"N\",\"\",IF($Q500=\"-\",\"-\",IF(AND($Q500=\"Y\",'Enrollment Form'!$AS507=\"No\"),\"-\",IF(AND($Q500=\"Y\",'Enrollment Form'!$AS507=\"Yes\",'Enrollment Form'!$AT507<>\"\"),\"Y\",\"N\"))))","v":""},{"$f":"IF($B500=\"N\",\"\",IF(OR('Enrollment Form'!$B507<>\"Subscriber\",'Enrollment Form'!$C507=\"ROC\"),\"-\",IF(AND('Enrollment Form'!$B507=\"Subscriber\",'Enrollment Form'!$C507=\"Enroll\",'Enrollment Form'!$CV507<>\"\"),\"Y\",\"N\")))","v":""},{"$f":"IF($B500=\"N\",\"\",IF($S500=\"-\",\"-\",IF(AND($S500=\"Y\",'Enrollment Form'!$CV507=\"No\"),\"-\",IF(AND($S500=\"Y\",'Enrollment Form'!$CV507=\"Yes\",'Enrollment Form'!$CW507<>\"\"),\"Y\",\"N\"))))","v":""},{"$f":"IF(OR('Enrollment Form'!$AY507=\"Yes\",'Enrollment Form'!$AY507=\"\"),\"-\",IF(OR(AND('Enrollment Form'!$AY507=\"No\",ISERROR(FIND(\"HMO\",VLOOKUP('Enrollment Form'!G507,'Enrollment Form'!H$11:J$1000,3,FALSE),1))=FALSE,COUNTA('Enrollment Form'!$AZ507:$BC507)=4),AND('Enrollment Form'!$AY507=\"No\",ISERROR(FIND(\"HMO\",VLOOKUP('Enrollment Form'!G507,'Enrollment Form'!H$11:J$1000,3,FALSE),1))=FALSE,COUNTA('Enrollment Form'!$BT507:$BW507)=4)),\"Y\",\"N\"))","v":"-"},{"$f":"IF($B500=\"N\",\"\",IF('Enrollment Form'!$B507=\"Subscriber\",\"-\",IF(COUNTA('Enrollment Form'!$BL507,'Enrollment Form'!$BN507)=2,\"Y\",\"N\")))","v":""},{"$f":"IF($B500=\"N\",\"\",IF(OR('Enrollment Form'!$AX507=\"\",'Enrollment Form'!$AX507=\"No\"),\"-\",IF(AND('Enrollment Form'!$AX507=\"Yes\",COUNTA('Enrollment Form'!$CR507)=1),\"Y\",\"N\")))","v":""},{"$f":"IF(OR('Enrollment Form'!$CR507=\"\",'Enrollment Form'!$CR507=\"No\"),\"-\",IF(COUNTA('Enrollment Form'!$CT507:$CU507)=2,\"Y\",\"N\"))","v":"-"},{"$f":"IF($B500=\"N\",\"\",IF(COUNTIF('Enrollment Form'!$DG507:$DP507,\"Other\")=COUNTA('Enrollment Form'!$DK507,'Enrollment Form'!$DH507,'Enrollment Form'!$DN507,'Enrollment Form'!$DQ507),\"Y\",\"N\"))","v":""},{"$f":"IF($B500=\"N\",\"\",IF(OR('Enrollment Form'!B507<>\"Subscriber\",'Enrollment Form'!C507=\"ROC\",COUNTIF('Enrollment Form'!AV507:AW507,\"Yes\")>=1),\"-\",IF(AND('Enrollment Form'!C507=\"Enroll\",COUNTIF('Enrollment Form'!AV507:AW507,\"No\")=2,'Enrollment Form'!AX507=\"\"),\"N\",\"Y\")))","v":""},{"$f":"IF(OR(B500=\"N\",'Enrollment Form'!B507<>\"Subscriber\",'Enrollment Form'!C507=\"ROC\",'Enrollment Form'!O507<>\"Multiple of Salary\"),\"-\",IF(COUNTA('Enrollment Form'!T507:U507)<2,\"N\",\"Y\"))","v":"-"},{"$f":"IF(B500=\"N\",\"\",IF(OR('Enrollment Form'!C507=\"ROC\",'Enrollment Form'!B507<>\"Subscriber\",'Enrollment Form'!O507=\"Waive\",'Enrollment Form'!O507=\"\"),\"-\",IF('Enrollment Form'!P507=\"\",\"N\",\"Y\")))","v":""},{"$f":"IF($B500=\"N\",\"\",IF(AND('Enrollment Form'!$C507=\"ROC\",'Enrollment Form'!$DR507<>\"\"),\"Y\",IF(AND('Enrollment Form'!$C507=\"ROC\",'Enrollment Form'!$DR507=\"\"),\"N\",IF(AND('Enrollment Form'!$C507=\"Enroll\",'Enrollment Form'!$B507=\"Subscriber\",'Enrollment Form'!$CX507=\"No\",'Enrollment Form'!$DR507=\"\"),\"N\",IF(AND('Enrollment Form'!$C507=\"Enroll\",'Enrollment Form'!$B507=\"Subscriber\",'Enrollment Form'!$CX507=\"Yes\"),\"-\",\"Y\")))))","v":""},{"$f":"IF($B500=\"N\",\"\",IF(AND('Enrollment Form'!$C507=\"ROC\",'Enrollment Form'!$DS507<>\"\"),\"Y\",IF(AND('Enrollment Form'!$C507=\"ROC\",'Enrollment Form'!$DS507=\"\"),\"N\",IF(AND('Enrollment Form'!$C507=\"Enroll\",'Enrollment Form'!$B507=\"Subscriber\",'Enrollment Form'!$CX507=\"No\",'Enrollment Form'!$DS507=\"\"),\"N\",IF(AND('Enrollment Form'!$C507=\"Enroll\",'Enrollment Form'!$B507=\"Subscriber\",'Enrollment Form'!$CX507=\"Yes\"),\"-\",\"Y\")))))","v":""},{"$f":"IF('Enrollment Form'!AH507=\"\",\"\",IF(ISERROR(SEARCH(\".\",'Enrollment Form'!AH507,SEARCH(\"@\",'Enrollment Form'!AH507))),\"N\",\"Y\"))","v":""},{"$f":"IF(OR($B500=\"N\",'Enrollment Form'!$G507=\"\"),\"\",IF('Enrollment Form'!$B507<>\"Subscriber\",\"-\",IF(COUNTIF('Enrollment Form'!$AV507:$AW507,\"Yes\")=2,\"N\",\"Y\")))","v":""},{"$f":"IF(OR('Enrollment Form'!$CJ507=\"\",'Enrollment Form'!$CJ507=\"No\"),\"-\",IF(AND('Enrollment Form'!$CJ507=\"Yes\",'Enrollment Form'!$CK507=\"\"),\"N\",\"Y\"))","v":"-"},{"$f":"IF(OR('Enrollment Form'!$CL507=\"\",'Enrollment Form'!$CL507=\"No\"),\"-\",IF(AND('Enrollment Form'!$CL507=\"Yes\",'Enrollment Form'!$CM507=\"\"),\"N\",\"Y\"))","v":"-"},{"$f":"IF(OR('Enrollment Form'!$CN507=\"\",'Enrollment Form'!$CN507=\"No\"),\"-\",IF(AND('Enrollment Form'!$CN507=\"Yes\",'Enrollment Form'!$CO507=\"\"),\"N\",\"Y\"))","v":"-"},{"$f":"IF(OR('Enrollment Form'!$CN507=\"\",'Enrollment Form'!$CN507=\"No\"),\"-\",IF(AND('Enrollment Form'!$CN507=\"Yes\",'Enrollment Form'!$CP507=\"\"),\"N\",\"Y\"))","v":"-"},{"$f":"IF('Enrollment Form'!B507<>\"Subscriber\",\"-\",IF(AND('Enrollment Form'!B507=\"Subscriber\",'Enrollment Form'!C507=\"Enroll\",'Enrollment Form'!AA507=\"\"),\"N\",\"Y\"))","v":"-"},{"$f":"IF(OR('Enrollment Form'!B507=\"Subscriber\",'Enrollment Form'!B507=\"\"),\"-\",IF('Enrollment Form'!BP507=\"\",\"N\",\"Y\"))","v":"-"},{"$f":"IF('Enrollment Form'!B507<>\"Subscriber\",\"-\",IF(AND('Enrollment Form'!B507=\"Subscriber\",'Enrollment Form'!G507=\"\"),\"N\",\"Y\"))","v":"-"},{"$f":"IF('Enrollment Form'!A507=\"\",\"\",IF('Enrollment Form'!B507=\"Subscriber\",\"-\",IF(AND('Enrollment Form'!B507<>\"Subscriber\",'Enrollment Form'!G507='Enrollment Form'!H507),\"N\",\"Y\")))","v":""},0]
[508,{"$f":"IF('Enrollment Form'!$A508<>\"\",\"Y\",\"N\")","v":"N"},{"$f":"IF(AND('Enrollment Form'!$B508=\"\",'Enrollment Form'!$C508<>\"\"),\"N\",IF($B501=\"N\",\"\",\"Y\"))","v":""},{"$f":"IF(OR($B501=\"N\",'Enrollment Form'!G508=\"\"),\"\",IF('Enrollment Form'!$B508<>\"Subscriber\",\"\",IF('Enrollment Form'!$G508='Enrollment Form'!$H508,\"Y\",\"N\")))","v":""},{"$f":"IF($B501=\"N\",\"\",IF(AND(COUNTIFS('Enrollment Form'!$H$11:$H$1000,'Enrollment Form'!$H508,'Enrollment Form'!$B$11:$B$1000,'Enrollment Form'!$B508)>1,'Enrollment Form'!$H508<>\"\"),\"N\",\"Y\"))","v":""},{"$f":"IF($B501=\"N\",\"\",IF(LEN('Enrollment Form'!$Y508)=0,\"\",IF(LEN('Enrollment Form'!$Y508)<>5,\"N\",\"Y\")))","v":""},{"$f":"IF($B501=\"N\",\"\",IF(LEN('Enrollment Form'!$AD508=0),\"\",IF(LEN('Enrollment Form'!$AD508)<>5,\"N\",\"Y\")))","v":""},{"$f":"IF($B501=\"N\",\"\",IF(LEN('Enrollment Form'!$BS508=0),\"\",IF(LEN('Enrollment Form'!$BS508)<>5,\"N\",\"Y\")))","v":""},{"$f":"IF($B501=\"N\",\"\",IF(LEN('Enrollment Form'!$AE508)=0,\"\",IF(LEN('Enrollment Form'!$AE508)<>10,\"N\",\"Y\")))","v":""},{"$f":"IF($B501=\"N\",\"\",IF(LEN('Enrollment Form'!$AF508)=0,\"\",IF(LEN('Enrollment Form'!$AF508)<>10,\"N\",\"Y\")))","v":""},{"$f":"IF('Enrollment Form'!$O508<>\"Graded\",\"-\",IF(AND('Enrollment Form'!$O508=\"Graded\",'Enrollment Form'!$AR508<>\"\"),\"Y\",\"N\"))","v":"-"},{"$f":"IF($B501=\"N\",\"\",IF(OR('Enrollment Form'!$B508<>\"Subscriber\",'Enrollment Form'!$C508=\"ROC\"),\"-\",IF(AND('Enrollment Form'!$B508=\"Subscriber\",'Enrollment Form'!$C508=\"Enroll\",'Enrollment Form'!$AJ508<>\"\"),\"Y\",\"N\")))","v":""},{"$f":"IF($B501=\"N\",\"\",IF(OR('Enrollment Form'!$B508<>\"Subscriber\",'Enrollment Form'!$C508=\"ROC\"),\"-\",IF(AND('Enrollment Form'!$B508=\"Subscriber\",'Enrollment Form'!$C508=\"Enroll\",'Enrollment Form'!$AK508<>\"\"),\"Y\",\"N\")))","v":""},{"$f":"IF($B501=\"N\",\"\",IF(OR('Enrollment Form'!$B508<>\"Subscriber\",'Enrollment Form'!$C508=\"ROC\"),\"-\",IF(AND('Enrollment Form'!$B508=\"Subscriber\",'Enrollment Form'!$C508=\"Enroll\",'Enrollment Form'!$AL508<>\"\"),\"Y\",\"N\")))","v":""},{"$f":"IF($B501=\"N\",\"\",IF(OR('Enrollment Form'!$B508<>\"Subscriber\",'Enrollment Form'!$C508=\"ROC\"),\"-\",IF(AND('Enrollment Form'!$B508=\"Subscriber\",'Enrollment Form'!$C508=\"Enroll\",'Enrollment Form'!$AP508<>\"\"),\"Y\",\"N\")))","v":""},{"$f":"IF($B501=\"N\",\"\",IF(OR('Enrollment Form'!$B508<>\"Subscriber\",'Enrollment Form'!$C508=\"ROC\"),\"-\",IF(AND('Enrollment Form'!$B508=\"Subscriber\",'Enrollment Form'!$C508=\"Enroll\",'Enrollment Form'!$AQ508<>\"\"),\"Y\",\"N\")))","v":""},{"$f":"IF($B501=\"N\",\"\",IF(OR('Enrollment Form'!$B508<>\"Subscriber\",'Enrollment Form'!$C508=\"ROC\"),\"-\",IF(AND('Enrollment Form'!$B508=\"Subscriber\",'Enrollment Form'!$C508=\"Enroll\",'Enrollment Form'!$AS508<>\"\"),\"Y\",\"N\")))","v":""},{"$f":"IF($B501=\"N\",\"\",IF($Q501=\"-\",\"-\",IF(AND($Q501=\"Y\",'Enrollment Form'!$AS508=\"No\"),\"-\",IF(AND($Q501=\"Y\",'Enrollment Form'!$AS508=\"Yes\",'Enrollment Form'!$AT508<>\"\"),\"Y\",\"N\"))))","v":""},{"$f":"IF($B501=\"N\",\"\",IF(OR('Enrollment Form'!$B508<>\"Subscriber\",'Enrollment Form'!$C508=\"ROC\"),\"-\",IF(AND('Enrollment Form'!$B508=\"Subscriber\",'Enrollment Form'!$C508=\"Enroll\",'Enrollment Form'!$CV508<>\"\"),\"Y\",\"N\")))","v":""},{"$f":"IF($B501=\"N\",\"\",IF($S501=\"-\",\"-\",IF(AND($S501=\"Y\",'Enrollment Form'!$CV508=\"No\"),\"-\",IF(AND($S501=\"Y\",'Enrollment Form'!$CV508=\"Yes\",'Enrollment Form'!$CW508<>\"\"),\"Y\",\"N\"))))","v":""},{"$f":"IF(OR('Enrollment Form'!$AY508=\"Yes\",'Enrollment Form'!$AY508=\"\"),\"-\",IF(OR(AND('Enrollment Form'!$AY508=\"No\",ISERROR(FIND(\"HMO\",VLOOKUP('Enrollment Form'!G508,'Enrollment Form'!H$11:J$1000,3,FALSE),1))=FALSE,COUNTA('Enrollment Form'!$AZ508:$BC508)=4),AND('Enrollment Form'!$AY508=\"No\",ISERROR(FIND(\"HMO\",VLOOKUP('Enrollment Form'!G508,'Enrollment Form'!H$11:J$1000,3,FALSE),1))=FALSE,COUNTA('Enrollment Form'!$BT508:$BW508)=4)),\"Y\",\"N\"))","v":"-"},{"$f":"IF($B501=\"N\",\"\",IF('Enrollment Form'!$B508=\"Subscriber\",\"-\",IF(COUNTA('Enrollment Form'!$BL508,'Enrollment Form'!$BN508)=2,\"Y\",\"N\")))","v":""},{"$f":"IF($B501=\"N\",\"\",IF(OR('Enrollment Form'!$AX508=\"\",'Enrollment Form'!$AX508=\"No\"),\"-\",IF(AND('Enrollment Form'!$AX508=\"Yes\",COUNTA('Enrollment Form'!$CR508)=1),\"Y\",\"N\")))","v":""},{"$f":"IF(OR('Enrollment Form'!$CR508=\"\",'Enrollment Form'!$CR508=\"No\"),\"-\",IF(COUNTA('Enrollment Form'!$CT508:$CU508)=2,\"Y\",\"N\"))","v":"-"},{"$f":"IF($B501=\"N\",\"\",IF(COUNTIF('Enrollment Form'!$DG508:$DP508,\"Other\")=COUNTA('Enrollment Form'!$DK508,'Enrollment Form'!$DH508,'Enrollment Form'!$DN508,'Enrollment Form'!$DQ508),\"Y\",\"N\"))","v":""},{"$f":"IF($B501=\"N\",\"\",IF(OR('Enrollment Form'!B508<>\"Subscriber\",'Enrollment Form'!C508=\"ROC\",COUNTIF('Enrollment Form'!AV508:AW508,\"Yes\")>=1),\"-\",IF(AND('Enrollment Form'!C508=\"Enroll\",COUNTIF('Enrollment Form'!AV508:AW508,\"No\")=2,'Enrollment Form'!AX508=\"\"),\"N\",\"Y\")))","v":""},{"$f":"IF(OR(B501=\"N\",'Enrollment Form'!B508<>\"Subscriber\",'Enrollment Form'!C508=\"ROC\",'Enrollment Form'!O508<>\"Multiple of Salary\"),\"-\",IF(COUNTA('Enrollment Form'!T508:U508)<2,\"N\",\"Y\"))","v":"-"},{"$f":"IF(B501=\"N\",\"\",IF(OR('Enrollment Form'!C508=\"ROC\",'Enrollment Form'!B508<>\"Subscriber\",'Enrollment Form'!O508=\"Waive\",'Enrollment Form'!O508=\"\"),\"-\",IF('Enrollment Form'!P508=\"\",\"N\",\"Y\")))","v":""},{"$f":"IF($B501=\"N\",\"\",IF(AND('Enrollment Form'!$C508=\"ROC\",'Enrollment Form'!$DR508<>\"\"),\"Y\",IF(AND('Enrollment Form'!$C508=\"ROC\",'Enrollment Form'!$DR508=\"\"),\"N\",IF(AND('Enrollment Form'!$C508=\"Enroll\",'Enrollment Form'!$B508=\"Subscriber\",'Enrollment Form'!$CX508=\"No\",'Enrollment Form'!$DR508=\"\"),\"N\",IF(AND('Enrollment Form'!$C508=\"Enroll\",'Enrollment Form'!$B508=\"Subscriber\",'Enrollment Form'!$CX508=\"Yes\"),\"-\",\"Y\")))))","v":""},{"$f":"IF($B501=\"N\",\"\",IF(AND('Enrollment Form'!$C508=\"ROC\",'Enrollment Form'!$DS508<>\"\"),\"Y\",IF(AND('Enrollment Form'!$C508=\"ROC\",'Enrollment Form'!$DS508=\"\"),\"N\",IF(AND('Enrollment Form'!$C508=\"Enroll\",'Enrollment Form'!$B508=\"Subscriber\",'Enrollment Form'!$CX508=\"No\",'Enrollment Form'!$DS508=\"\"),\"N\",IF(AND('Enrollment Form'!$C508=\"Enroll\",'Enrollment Form'!$B508=\"Subscriber\",'Enrollment Form'!$CX508=\"Yes\"),\"-\",\"Y\")))))","v":""},{"$f":"IF('Enrollment Form'!AH508=\"\",\"\",IF(ISERROR(SEARCH(\".\",'Enrollment Form'!AH508,SEARCH(\"@\",'Enrollment Form'!AH508))),\"N\",\"Y\"))","v":""},{"$f":"IF(OR($B501=\"N\",'Enrollment Form'!$G508=\"\"),\"\",IF('Enrollment Form'!$B508<>\"Subscriber\",\"-\",IF(COUNTIF('Enrollment Form'!$AV508:$AW508,\"Yes\")=2,\"N\",\"Y\")))","v":""},{"$f":"IF(OR('Enrollment Form'!$CJ508=\"\",'Enrollment Form'!$CJ508=\"No\"),\"-\",IF(AND('Enrollment Form'!$CJ508=\"Yes\",'Enrollment Form'!$CK508=\"\"),\"N\",\"Y\"))","v":"-"},{"$f":"IF(OR('Enrollment Form'!$CL508=\"\",'Enrollment Form'!$CL508=\"No\"),\"-\",IF(AND('Enrollment Form'!$CL508=\"Yes\",'Enrollment Form'!$CM508=\"\"),\"N\",\"Y\"))","v":"-"},{"$f":"IF(OR('Enrollment Form'!$CN508=\"\",'Enrollment Form'!$CN508=\"No\"),\"-\",IF(AND('Enrollment Form'!$CN508=\"Yes\",'Enrollment Form'!$CO508=\"\"),\"N\",\"Y\"))","v":"-"},{"$f":"IF(OR('Enrollment Form'!$CN508=\"\",'Enrollment Form'!$CN508=\"No\"),\"-\",IF(AND('Enrollment Form'!$CN508=\"Yes\",'Enrollment Form'!$CP508=\"\"),\"N\",\"Y\"))","v":"-"},{"$f":"IF('Enrollment Form'!B508<>\"Subscriber\",\"-\",IF(AND('Enrollment Form'!B508=\"Subscriber\",'Enrollment Form'!C508=\"Enroll\",'Enrollment Form'!AA508=\"\"),\"N\",\"Y\"))","v":"-"},{"$f":"IF(OR('Enrollment Form'!B508=\"Subscriber\",'Enrollment Form'!B508=\"\"),\"-\",IF('Enrollment Form'!BP508=\"\",\"N\",\"Y\"))","v":"-"},{"$f":"IF('Enrollment Form'!B508<>\"Subscriber\",\"-\",IF(AND('Enrollment Form'!B508=\"Subscriber\",'Enrollment Form'!G508=\"\"),\"N\",\"Y\"))","v":"-"},{"$f":"IF('Enrollment Form'!A508=\"\",\"\",IF('Enrollment Form'!B508=\"Subscriber\",\"-\",IF(AND('Enrollment Form'!B508<>\"Subscriber\",'Enrollment Form'!G508='Enrollment Form'!H508),\"N\",\"Y\")))","v":""},0]
[509,{"$f":"IF('Enrollment Form'!$A509<>\"\",\"Y\",\"N\")","v":"N"},{"$f":"IF(AND('Enrollment Form'!$B509=\"\",'Enrollment Form'!$C509<>\"\"),\"N\",IF($B502=\"N\",\"\",\"Y\"))","v":""},{"$f":"IF(OR($B502=\"N\",'Enrollment Form'!G509=\"\"),\"\",IF('Enrollment Form'!$B509<>\"Subscriber\",\"\",IF('Enrollment Form'!$G509='Enrollment Form'!$H509,\"Y\",\"N\")))","v":""},{"$f":"IF($B502=\"N\",\"\",IF(AND(COUNTIFS('Enrollment Form'!$H$11:$H$1000,'Enrollment Form'!$H509,'Enrollment Form'!$B$11:$B$1000,'Enrollment Form'!$B509)>1,'Enrollment Form'!$H509<>\"\"),\"N\",\"Y\"))","v":""},{"$f":"IF($B502=\"N\",\"\",IF(LEN('Enrollment Form'!$Y509)=0,\"\",IF(LEN('Enrollment Form'!$Y509)<>5,\"N\",\"Y\")))","v":""},{"$f":"IF($B502=\"N\",\"\",IF(LEN('Enrollment Form'!$AD509=0),\"\",IF(LEN('Enrollment Form'!$AD509)<>5,\"N\",\"Y\")))","v":""},{"$f":"IF($B502=\"N\",\"\",IF(LEN('Enrollment Form'!$BS509=0),\"\",IF(LEN('Enrollment Form'!$BS509)<>5,\"N\",\"Y\")))","v":""},{"$f":"IF($B502=\"N\",\"\",IF(LEN('Enrollment Form'!$AE509)=0,\"\",IF(LEN('Enrollment Form'!$AE509)<>10,\"N\",\"Y\")))","v":""},{"$f":"IF($B502=\"N\",\"\",IF(LEN('Enrollment Form'!$AF509)=0,\"\",IF(LEN('Enrollment Form'!$AF509)<>10,\"N\",\"Y\")))","v":""},{"$f":"IF('Enrollment Form'!$O509<>\"Graded\",\"-\",IF(AND('Enrollment Form'!$O509=\"Graded\",'Enrollment Form'!$AR509<>\"\"),\"Y\",\"N\"))","v":"-"},{"$f":"IF($B502=\"N\",\"\",IF(OR('Enrollment Form'!$B509<>\"Subscriber\",'Enrollment Form'!$C509=\"ROC\"),\"-\",IF(AND('Enrollment Form'!$B509=\"Subscriber\",'Enrollment Form'!$C509=\"Enroll\",'Enrollment Form'!$AJ509<>\"\"),\"Y\",\"N\")))","v":""},{"$f":"IF($B502=\"N\",\"\",IF(OR('Enrollment Form'!$B509<>\"Subscriber\",'Enrollment Form'!$C509=\"ROC\"),\"-\",IF(AND('Enrollment Form'!$B509=\"Subscriber\",'Enrollment Form'!$C509=\"Enroll\",'Enrollment Form'!$AK509<>\"\"),\"Y\",\"N\")))","v":""},{"$f":"IF($B502=\"N\",\"\",IF(OR('Enrollment Form'!$B509<>\"Subscriber\",'Enrollment Form'!$C509=\"ROC\"),\"-\",IF(AND('Enrollment Form'!$B509=\"Subscriber\",'Enrollment Form'!$C509=\"Enroll\",'Enrollment Form'!$AL509<>\"\"),\"Y\",\"N\")))","v":""},{"$f":"IF($B502=\"N\",\"\",IF(OR('Enrollment Form'!$B509<>\"Subscriber\",'Enrollment Form'!$C509=\"ROC\"),\"-\",IF(AND('Enrollment Form'!$B509=\"Subscriber\",'Enrollment Form'!$C509=\"Enroll\",'Enrollment Form'!$AP509<>\"\"),\"Y\",\"N\")))","v":""},{"$f":"IF($B502=\"N\",\"\",IF(OR('Enrollment Form'!$B509<>\"Subscriber\",'Enrollment Form'!$C509=\"ROC\"),\"-\",IF(AND('Enrollment Form'!$B509=\"Subscriber\",'Enrollment Form'!$C509=\"Enroll\",'Enrollment Form'!$AQ509<>\"\"),\"Y\",\"N\")))","v":""},{"$f":"IF($B502=\"N\",\"\",IF(OR('Enrollment Form'!$B509<>\"Subscriber\",'Enrollment Form'!$C509=\"ROC\"),\"-\",IF(AND('Enrollment Form'!$B509=\"Subscriber\",'Enrollment Form'!$C509=\"Enroll\",'Enrollment Form'!$AS509<>\"\"),\"Y\",\"N\")))","v":""},{"$f":"IF($B502=\"N\",\"\",IF($Q502=\"-\",\"-\",IF(AND($Q502=\"Y\",'Enrollment Form'!$AS509=\"No\"),\"-\",IF(AND($Q502=\"Y\",'Enrollment Form'!$AS509=\"Yes\",'Enrollment Form'!$AT509<>\"\"),\"Y\",\"N\"))))","v":""},{"$f":"IF($B502=\"N\",\"\",IF(OR('Enrollment Form'!$B509<>\"Subscriber\",'Enrollment Form'!$C509=\"ROC\"),\"-\",IF(AND('Enrollment Form'!$B509=\"Subscriber\",'Enrollment Form'!$C509=\"Enroll\",'Enrollment Form'!$CV509<>\"\"),\"Y\",\"N\")))","v":""},{"$f":"IF($B502=\"N\",\"\",IF($S502=\"-\",\"-\",IF(AND($S502=\"Y\",'Enrollment Form'!$CV509=\"No\"),\"-\",IF(AND($S502=\"Y\",'Enrollment Form'!$CV509=\"Yes\",'Enrollment Form'!$CW509<>\"\"),\"Y\",\"N\"))))","v":""},{"$f":"IF(OR('Enrollment Form'!$AY509=\"Yes\",'Enrollment Form'!$AY509=\"\"),\"-\",IF(OR(AND('Enrollment Form'!$AY509=\"No\",ISERROR(FIND(\"HMO\",VLOOKUP('Enrollment Form'!G509,'Enrollment Form'!H$11:J$1000,3,FALSE),1))=FALSE,COUNTA('Enrollment Form'!$AZ509:$BC509)=4),AND('Enrollment Form'!$AY509=\"No\",ISERROR(FIND(\"HMO\",VLOOKUP('Enrollment Form'!G509,'Enrollment Form'!H$11:J$1000,3,FALSE),1))=FALSE,COUNTA('Enrollment Form'!$BT509:$BW509)=4)),\"Y\",\"N\"))","v":"-"},{"$f":"IF($B502=\"N\",\"\",IF('Enrollment Form'!$B509=\"Subscriber\",\"-\",IF(COUNTA('Enrollment Form'!$BL509,'Enrollment Form'!$BN509)=2,\"Y\",\"N\")))","v":""},{"$f":"IF($B502=\"N\",\"\",IF(OR('Enrollment Form'!$AX509=\"\",'Enrollment Form'!$AX509=\"No\"),\"-\",IF(AND('Enrollment Form'!$AX509=\"Yes\",COUNTA('Enrollment Form'!$CR509)=1),\"Y\",\"N\")))","v":""},{"$f":"IF(OR('Enrollment Form'!$CR509=\"\",'Enrollment Form'!$CR509=\"No\"),\"-\",IF(COUNTA('Enrollment Form'!$CT509:$CU509)=2,\"Y\",\"N\"))","v":"-"},{"$f":"IF($B502=\"N\",\"\",IF(COUNTIF('Enrollment Form'!$DG509:$DP509,\"Other\")=COUNTA('Enrollment Form'!$DK509,'Enrollment Form'!$DH509,'Enrollment Form'!$DN509,'Enrollment Form'!$DQ509),\"Y\",\"N\"))","v":""},{"$f":"IF($B502=\"N\",\"\",IF(OR('Enrollment Form'!B509<>\"Subscriber\",'Enrollment Form'!C509=\"ROC\",COUNTIF('Enrollment Form'!AV509:AW509,\"Yes\")>=1),\"-\",IF(AND('Enrollment Form'!C509=\"Enroll\",COUNTIF('Enrollment Form'!AV509:AW509,\"No\")=2,'Enrollment Form'!AX509=\"\"),\"N\",\"Y\")))","v":""},{"$f":"IF(OR(B502=\"N\",'Enrollment Form'!B509<>\"Subscriber\",'Enrollment Form'!C509=\"ROC\",'Enrollment Form'!O509<>\"Multiple of Salary\"),\"-\",IF(COUNTA('Enrollment Form'!T509:U509)<2,\"N\",\"Y\"))","v":"-"},{"$f":"IF(B502=\"N\",\"\",IF(OR('Enrollment Form'!C509=\"ROC\",'Enrollment Form'!B509<>\"Subscriber\",'Enrollment Form'!O509=\"Waive\",'Enrollment Form'!O509=\"\"),\"-\",IF('Enrollment Form'!P509=\"\",\"N\",\"Y\")))","v":""},{"$f":"IF($B502=\"N\",\"\",IF(AND('Enrollment Form'!$C509=\"ROC\",'Enrollment Form'!$DR509<>\"\"),\"Y\",IF(AND('Enrollment Form'!$C509=\"ROC\",'Enrollment Form'!$DR509=\"\"),\"N\",IF(AND('Enrollment Form'!$C509=\"Enroll\",'Enrollment Form'!$B509=\"Subscriber\",'Enrollment Form'!$CX509=\"No\",'Enrollment Form'!$DR509=\"\"),\"N\",IF(AND('Enrollment Form'!$C509=\"Enroll\",'Enrollment Form'!$B509=\"Subscriber\",'Enrollment Form'!$CX509=\"Yes\"),\"-\",\"Y\")))))","v":""},{"$f":"IF($B502=\"N\",\"\",IF(AND('Enrollment Form'!$C509=\"ROC\",'Enrollment Form'!$DS509<>\"\"),\"Y\",IF(AND('Enrollment Form'!$C509=\"ROC\",'Enrollment Form'!$DS509=\"\"),\"N\",IF(AND('Enrollment Form'!$C509=\"Enroll\",'Enrollment Form'!$B509=\"Subscriber\",'Enrollment Form'!$CX509=\"No\",'Enrollment Form'!$DS509=\"\"),\"N\",IF(AND('Enrollment Form'!$C509=\"Enroll\",'Enrollment Form'!$B509=\"Subscriber\",'Enrollment Form'!$CX509=\"Yes\"),\"-\",\"Y\")))))","v":""},{"$f":"IF('Enrollment Form'!AH509=\"\",\"\",IF(ISERROR(SEARCH(\".\",'Enrollment Form'!AH509,SEARCH(\"@\",'Enrollment Form'!AH509))),\"N\",\"Y\"))","v":""},{"$f":"IF(OR($B502=\"N\",'Enrollment Form'!$G509=\"\"),\"\",IF('Enrollment Form'!$B509<>\"Subscriber\",\"-\",IF(COUNTIF('Enrollment Form'!$AV509:$AW509,\"Yes\")=2,\"N\",\"Y\")))","v":""},{"$f":"IF(OR('Enrollment Form'!$CJ509=\"\",'Enrollment Form'!$CJ509=\"No\"),\"-\",IF(AND('Enrollment Form'!$CJ509=\"Yes\",'Enrollment Form'!$CK509=\"\"),\"N\",\"Y\"))","v":"-"},{"$f":"IF(OR('Enrollment Form'!$CL509=\"\",'Enrollment Form'!$CL509=\"No\"),\"-\",IF(AND('Enrollment Form'!$CL509=\"Yes\",'Enrollment Form'!$CM509=\"\"),\"N\",\"Y\"))","v":"-"},{"$f":"IF(OR('Enrollment Form'!$CN509=\"\",'Enrollment Form'!$CN509=\"No\"),\"-\",IF(AND('Enrollment Form'!$CN509=\"Yes\",'Enrollment Form'!$CO509=\"\"),\"N\",\"Y\"))","v":"-"},{"$f":"IF(OR('Enrollment Form'!$CN509=\"\",'Enrollment Form'!$CN509=\"No\"),\"-\",IF(AND('Enrollment Form'!$CN509=\"Yes\",'Enrollment Form'!$CP509=\"\"),\"N\",\"Y\"))","v":"-"},{"$f":"IF('Enrollment Form'!B509<>\"Subscriber\",\"-\",IF(AND('Enrollment Form'!B509=\"Subscriber\",'Enrollment Form'!C509=\"Enroll\",'Enrollment Form'!AA509=\"\"),\"N\",\"Y\"))","v":"-"},{"$f":"IF(OR('Enrollment Form'!B509=\"Subscriber\",'Enrollment Form'!B509=\"\"),\"-\",IF('Enrollment Form'!BP509=\"\",\"N\",\"Y\"))","v":"-"},{"$f":"IF('Enrollment Form'!B509<>\"Subscriber\",\"-\",IF(AND('Enrollment Form'!B509=\"Subscriber\",'Enrollment Form'!G509=\"\"),\"N\",\"Y\"))","v":"-"},{"$f":"IF('Enrollment Form'!A509=\"\",\"\",IF('Enrollment Form'!B509=\"Subscriber\",\"-\",IF(AND('Enrollment Form'!B509<>\"Subscriber\",'Enrollment Form'!G509='Enrollment Form'!H509),\"N\",\"Y\")))","v":""},0]
[510,{"$f":"IF('Enrollment Form'!$A510<>\"\",\"Y\",\"N\")","v":"N"},{"$f":"IF(AND('Enrollment Form'!$B510=\"\",'Enrollment Form'!$C510<>\"\"),\"N\",IF($B503=\"N\",\"\",\"Y\"))","v":""},{"$f":"IF(OR($B503=\"N\",'Enrollment Form'!G510=\"\"),\"\",IF('Enrollment Form'!$B510<>\"Subscriber\",\"\",IF('Enrollment Form'!$G510='Enrollment Form'!$H510,\"Y\",\"N\")))","v":""},{"$f":"IF($B503=\"N\",\"\",IF(AND(COUNTIFS('Enrollment Form'!$H$11:$H$1000,'Enrollment Form'!$H510,'Enrollment Form'!$B$11:$B$1000,'Enrollment Form'!$B510)>1,'Enrollment Form'!$H510<>\"\"),\"N\",\"Y\"))","v":""},{"$f":"IF($B503=\"N\",\"\",IF(LEN('Enrollment Form'!$Y510)=0,\"\",IF(LEN('Enrollment Form'!$Y510)<>5,\"N\",\"Y\")))","v":""},{"$f":"IF($B503=\"N\",\"\",IF(LEN('Enrollment Form'!$AD510=0),\"\",IF(LEN('Enrollment Form'!$AD510)<>5,\"N\",\"Y\")))","v":""},{"$f":"IF($B503=\"N\",\"\",IF(LEN('Enrollment Form'!$BS510=0),\"\",IF(LEN('Enrollment Form'!$BS510)<>5,\"N\",\"Y\")))","v":""},{"$f":"IF($B503=\"N\",\"\",IF(LEN('Enrollment Form'!$AE510)=0,\"\",IF(LEN('Enrollment Form'!$AE510)<>10,\"N\",\"Y\")))","v":""},{"$f":"IF($B503=\"N\",\"\",IF(LEN('Enrollment Form'!$AF510)=0,\"\",IF(LEN('Enrollment Form'!$AF510)<>10,\"N\",\"Y\")))","v":""},{"$f":"IF('Enrollment Form'!$O510<>\"Graded\",\"-\",IF(AND('Enrollment Form'!$O510=\"Graded\",'Enrollment Form'!$AR510<>\"\"),\"Y\",\"N\"))","v":"-"},{"$f":"IF($B503=\"N\",\"\",IF(OR('Enrollment Form'!$B510<>\"Subscriber\",'Enrollment Form'!$C510=\"ROC\"),\"-\",IF(AND('Enrollment Form'!$B510=\"Subscriber\",'Enrollment Form'!$C510=\"Enroll\",'Enrollment Form'!$AJ510<>\"\"),\"Y\",\"N\")))","v":""},{"$f":"IF($B503=\"N\",\"\",IF(OR('Enrollment Form'!$B510<>\"Subscriber\",'Enrollment Form'!$C510=\"ROC\"),\"-\",IF(AND('Enrollment Form'!$B510=\"Subscriber\",'Enrollment Form'!$C510=\"Enroll\",'Enrollment Form'!$AK510<>\"\"),\"Y\",\"N\")))","v":""},{"$f":"IF($B503=\"N\",\"\",IF(OR('Enrollment Form'!$B510<>\"Subscriber\",'Enrollment Form'!$C510=\"ROC\"),\"-\",IF(AND('Enrollment Form'!$B510=\"Subscriber\",'Enrollment Form'!$C510=\"Enroll\",'Enrollment Form'!$AL510<>\"\"),\"Y\",\"N\")))","v":""},{"$f":"IF($B503=\"N\",\"\",IF(OR('Enrollment Form'!$B510<>\"Subscriber\",'Enrollment Form'!$C510=\"ROC\"),\"-\",IF(AND('Enrollment Form'!$B510=\"Subscriber\",'Enrollment Form'!$C510=\"Enroll\",'Enrollment Form'!$AP510<>\"\"),\"Y\",\"N\")))","v":""},{"$f":"IF($B503=\"N\",\"\",IF(OR('Enrollment Form'!$B510<>\"Subscriber\",'Enrollment Form'!$C510=\"ROC\"),\"-\",IF(AND('Enrollment Form'!$B510=\"Subscriber\",'Enrollment Form'!$C510=\"Enroll\",'Enrollment Form'!$AQ510<>\"\"),\"Y\",\"N\")))","v":""},{"$f":"IF($B503=\"N\",\"\",IF(OR('Enrollment Form'!$B510<>\"Subscriber\",'Enrollment Form'!$C510=\"ROC\"),\"-\",IF(AND('Enrollment Form'!$B510=\"Subscriber\",'Enrollment Form'!$C510=\"Enroll\",'Enrollment Form'!$AS510<>\"\"),\"Y\",\"N\")))","v":""},{"$f":"IF($B503=\"N\",\"\",IF($Q503=\"-\",\"-\",IF(AND($Q503=\"Y\",'Enrollment Form'!$AS510=\"No\"),\"-\",IF(AND($Q503=\"Y\",'Enrollment Form'!$AS510=\"Yes\",'Enrollment Form'!$AT510<>\"\"),\"Y\",\"N\"))))","v":""},{"$f":"IF($B503=\"N\",\"\",IF(OR('Enrollment Form'!$B510<>\"Subscriber\",'Enrollment Form'!$C510=\"ROC\"),\"-\",IF(AND('Enrollment Form'!$B510=\"Subscriber\",'Enrollment Form'!$C510=\"Enroll\",'Enrollment Form'!$CV510<>\"\"),\"Y\",\"N\")))","v":""},{"$f":"IF($B503=\"N\",\"\",IF($S503=\"-\",\"-\",IF(AND($S503=\"Y\",'Enrollment Form'!$CV510=\"No\"),\"-\",IF(AND($S503=\"Y\",'Enrollment Form'!$CV510=\"Yes\",'Enrollment Form'!$CW510<>\"\"),\"Y\",\"N\"))))","v":""},{"$f":"IF(OR('Enrollment Form'!$AY510=\"Yes\",'Enrollment Form'!$AY510=\"\"),\"-\",IF(OR(AND('Enrollment Form'!$AY510=\"No\",ISERROR(FIND(\"HMO\",VLOOKUP('Enrollment Form'!G510,'Enrollment Form'!H$11:J$1000,3,FALSE),1))=FALSE,COUNTA('Enrollment Form'!$AZ510:$BC510)=4),AND('Enrollment Form'!$AY510=\"No\",ISERROR(FIND(\"HMO\",VLOOKUP('Enrollment Form'!G510,'Enrollment Form'!H$11:J$1000,3,FALSE),1))=FALSE,COUNTA('Enrollment Form'!$BT510:$BW510)=4)),\"Y\",\"N\"))","v":"-"},{"$f":"IF($B503=\"N\",\"\",IF('Enrollment Form'!$B510=\"Subscriber\",\"-\",IF(COUNTA('Enrollment Form'!$BL510,'Enrollment Form'!$BN510)=2,\"Y\",\"N\")))","v":""},{"$f":"IF($B503=\"N\",\"\",IF(OR('Enrollment Form'!$AX510=\"\",'Enrollment Form'!$AX510=\"No\"),\"-\",IF(AND('Enrollment Form'!$AX510=\"Yes\",COUNTA('Enrollment Form'!$CR510)=1),\"Y\",\"N\")))","v":""},{"$f":"IF(OR('Enrollment Form'!$CR510=\"\",'Enrollment Form'!$CR510=\"No\"),\"-\",IF(COUNTA('Enrollment Form'!$CT510:$CU510)=2,\"Y\",\"N\"))","v":"-"},{"$f":"IF($B503=\"N\",\"\",IF(COUNTIF('Enrollment Form'!$DG510:$DP510,\"Other\")=COUNTA('Enrollment Form'!$DK510,'Enrollment Form'!$DH510,'Enrollment Form'!$DN510,'Enrollment Form'!$DQ510),\"Y\",\"N\"))","v":""},{"$f":"IF($B503=\"N\",\"\",IF(OR('Enrollment Form'!B510<>\"Subscriber\",'Enrollment Form'!C510=\"ROC\",COUNTIF('Enrollment Form'!AV510:AW510,\"Yes\")>=1),\"-\",IF(AND('Enrollment Form'!C510=\"Enroll\",COUNTIF('Enrollment Form'!AV510:AW510,\"No\")=2,'Enrollment Form'!AX510=\"\"),\"N\",\"Y\")))","v":""},{"$f":"IF(OR(B503=\"N\",'Enrollment Form'!B510<>\"Subscriber\",'Enrollment Form'!C510=\"ROC\",'Enrollment Form'!O510<>\"Multiple of Salary\"),\"-\",IF(COUNTA('Enrollment Form'!T510:U510)<2,\"N\",\"Y\"))","v":"-"},{"$f":"IF(B503=\"N\",\"\",IF(OR('Enrollment Form'!C510=\"ROC\",'Enrollment Form'!B510<>\"Subscriber\",'Enrollment Form'!O510=\"Waive\",'Enrollment Form'!O510=\"\"),\"-\",IF('Enrollment Form'!P510=\"\",\"N\",\"Y\")))","v":""},{"$f":"IF($B503=\"N\",\"\",IF(AND('Enrollment Form'!$C510=\"ROC\",'Enrollment Form'!$DR510<>\"\"),\"Y\",IF(AND('Enrollment Form'!$C510=\"ROC\",'Enrollment Form'!$DR510=\"\"),\"N\",IF(AND('Enrollment Form'!$C510=\"Enroll\",'Enrollment Form'!$B510=\"Subscriber\",'Enrollment Form'!$CX510=\"No\",'Enrollment Form'!$DR510=\"\"),\"N\",IF(AND('Enrollment Form'!$C510=\"Enroll\",'Enrollment Form'!$B510=\"Subscriber\",'Enrollment Form'!$CX510=\"Yes\"),\"-\",\"Y\")))))","v":""},{"$f":"IF($B503=\"N\",\"\",IF(AND('Enrollment Form'!$C510=\"ROC\",'Enrollment Form'!$DS510<>\"\"),\"Y\",IF(AND('Enrollment Form'!$C510=\"ROC\",'Enrollment Form'!$DS510=\"\"),\"N\",IF(AND('Enrollment Form'!$C510=\"Enroll\",'Enrollment Form'!$B510=\"Subscriber\",'Enrollment Form'!$CX510=\"No\",'Enrollment Form'!$DS510=\"\"),\"N\",IF(AND('Enrollment Form'!$C510=\"Enroll\",'Enrollment Form'!$B510=\"Subscriber\",'Enrollment Form'!$CX510=\"Yes\"),\"-\",\"Y\")))))","v":""},{"$f":"IF('Enrollment Form'!AH510=\"\",\"\",IF(ISERROR(SEARCH(\".\",'Enrollment Form'!AH510,SEARCH(\"@\",'Enrollment Form'!AH510))),\"N\",\"Y\"))","v":""},{"$f":"IF(OR($B503=\"N\",'Enrollment Form'!$G510=\"\"),\"\",IF('Enrollment Form'!$B510<>\"Subscriber\",\"-\",IF(COUNTIF('Enrollment Form'!$AV510:$AW510,\"Yes\")=2,\"N\",\"Y\")))","v":""},{"$f":"IF(OR('Enrollment Form'!$CJ510=\"\",'Enrollment Form'!$CJ510=\"No\"),\"-\",IF(AND('Enrollment Form'!$CJ510=\"Yes\",'Enrollment Form'!$CK510=\"\"),\"N\",\"Y\"))","v":"-"},{"$f":"IF(OR('Enrollment Form'!$CL510=\"\",'Enrollment Form'!$CL510=\"No\"),\"-\",IF(AND('Enrollment Form'!$CL510=\"Yes\",'Enrollment Form'!$CM510=\"\"),\"N\",\"Y\"))","v":"-"},{"$f":"IF(OR('Enrollment Form'!$CN510=\"\",'Enrollment Form'!$CN510=\"No\"),\"-\",IF(AND('Enrollment Form'!$CN510=\"Yes\",'Enrollment Form'!$CO510=\"\"),\"N\",\"Y\"))","v":"-"},{"$f":"IF(OR('Enrollment Form'!$CN510=\"\",'Enrollment Form'!$CN510=\"No\"),\"-\",IF(AND('Enrollment Form'!$CN510=\"Yes\",'Enrollment Form'!$CP510=\"\"),\"N\",\"Y\"))","v":"-"},{"$f":"IF('Enrollment Form'!B510<>\"Subscriber\",\"-\",IF(AND('Enrollment Form'!B510=\"Subscriber\",'Enrollment Form'!C510=\"Enroll\",'Enrollment Form'!AA510=\"\"),\"N\",\"Y\"))","v":"-"},{"$f":"IF(OR('Enrollment Form'!B510=\"Subscriber\",'Enrollment Form'!B510=\"\"),\"-\",IF('Enrollment Form'!BP510=\"\",\"N\",\"Y\"))","v":"-"},{"$f":"IF('Enrollment Form'!B510<>\"Subscriber\",\"-\",IF(AND('Enrollment Form'!B510=\"Subscriber\",'Enrollment Form'!G510=\"\"),\"N\",\"Y\"))","v":"-"},{"$f":"IF('Enrollment Form'!A510=\"\",\"\",IF('Enrollment Form'!B510=\"Subscriber\",\"-\",IF(AND('Enrollment Form'!B510<>\"Subscriber\",'Enrollment Form'!G510='Enrollment Form'!H510),\"N\",\"Y\")))","v":""},0]
[511,{"$f":"IF('Enrollment Form'!$A511<>\"\",\"Y\",\"N\")","v":"N"},{"$f":"IF(AND('Enrollment Form'!$B511=\"\",'Enrollment Form'!$C511<>\"\"),\"N\",IF($B504=\"N\",\"\",\"Y\"))","v":""},{"$f":"IF(OR($B504=\"N\",'Enrollment Form'!G511=\"\"),\"\",IF('Enrollment Form'!$B511<>\"Subscriber\",\"\",IF('Enrollment Form'!$G511='Enrollment Form'!$H511,\"Y\",\"N\")))","v":""},{"$f":"IF($B504=\"N\",\"\",IF(AND(COUNTIFS('Enrollment Form'!$H$11:$H$1000,'Enrollment Form'!$H511,'Enrollment Form'!$B$11:$B$1000,'Enrollment Form'!$B511)>1,'Enrollment Form'!$H511<>\"\"),\"N\",\"Y\"))","v":""},{"$f":"IF($B504=\"N\",\"\",IF(LEN('Enrollment Form'!$Y511)=0,\"\",IF(LEN('Enrollment Form'!$Y511)<>5,\"N\",\"Y\")))","v":""},{"$f":"IF($B504=\"N\",\"\",IF(LEN('Enrollment Form'!$AD511=0),\"\",IF(LEN('Enrollment Form'!$AD511)<>5,\"N\",\"Y\")))","v":""},{"$f":"IF($B504=\"N\",\"\",IF(LEN('Enrollment Form'!$BS511=0),\"\",IF(LEN('Enrollment Form'!$BS511)<>5,\"N\",\"Y\")))","v":""},{"$f":"IF($B504=\"N\",\"\",IF(LEN('Enrollment Form'!$AE511)=0,\"\",IF(LEN('Enrollment Form'!$AE511)<>10,\"N\",\"Y\")))","v":""},{"$f":"IF($B504=\"N\",\"\",IF(LEN('Enrollment Form'!$AF511)=0,\"\",IF(LEN('Enrollment Form'!$AF511)<>10,\"N\",\"Y\")))","v":""},{"$f":"IF('Enrollment Form'!$O511<>\"Graded\",\"-\",IF(AND('Enrollment Form'!$O511=\"Graded\",'Enrollment Form'!$AR511<>\"\"),\"Y\",\"N\"))","v":"-"},{"$f":"IF($B504=\"N\",\"\",IF(OR('Enrollment Form'!$B511<>\"Subscriber\",'Enrollment Form'!$C511=\"ROC\"),\"-\",IF(AND('Enrollment Form'!$B511=\"Subscriber\",'Enrollment Form'!$C511=\"Enroll\",'Enrollment Form'!$AJ511<>\"\"),\"Y\",\"N\")))","v":""},{"$f":"IF($B504=\"N\",\"\",IF(OR('Enrollment Form'!$B511<>\"Subscriber\",'Enrollment Form'!$C511=\"ROC\"),\"-\",IF(AND('Enrollment Form'!$B511=\"Subscriber\",'Enrollment Form'!$C511=\"Enroll\",'Enrollment Form'!$AK511<>\"\"),\"Y\",\"N\")))","v":""},{"$f":"IF($B504=\"N\",\"\",IF(OR('Enrollment Form'!$B511<>\"Subscriber\",'Enrollment Form'!$C511=\"ROC\"),\"-\",IF(AND('Enrollment Form'!$B511=\"Subscriber\",'Enrollment Form'!$C511=\"Enroll\",'Enrollment Form'!$AL511<>\"\"),\"Y\",\"N\")))","v":""},{"$f":"IF($B504=\"N\",\"\",IF(OR('Enrollment Form'!$B511<>\"Subscriber\",'Enrollment Form'!$C511=\"ROC\"),\"-\",IF(AND('Enrollment Form'!$B511=\"Subscriber\",'Enrollment Form'!$C511=\"Enroll\",'Enrollment Form'!$AP511<>\"\"),\"Y\",\"N\")))","v":""},{"$f":"IF($B504=\"N\",\"\",IF(OR('Enrollment Form'!$B511<>\"Subscriber\",'Enrollment Form'!$C511=\"ROC\"),\"-\",IF(AND('Enrollment Form'!$B511=\"Subscriber\",'Enrollment Form'!$C511=\"Enroll\",'Enrollment Form'!$AQ511<>\"\"),\"Y\",\"N\")))","v":""},{"$f":"IF($B504=\"N\",\"\",IF(OR('Enrollment Form'!$B511<>\"Subscriber\",'Enrollment Form'!$C511=\"ROC\"),\"-\",IF(AND('Enrollment Form'!$B511=\"Subscriber\",'Enrollment Form'!$C511=\"Enroll\",'Enrollment Form'!$AS511<>\"\"),\"Y\",\"N\")))","v":""},{"$f":"IF($B504=\"N\",\"\",IF($Q504=\"-\",\"-\",IF(AND($Q504=\"Y\",'Enrollment Form'!$AS511=\"No\"),\"-\",IF(AND($Q504=\"Y\",'Enrollment Form'!$AS511=\"Yes\",'Enrollment Form'!$AT511<>\"\"),\"Y\",\"N\"))))","v":""},{"$f":"IF($B504=\"N\",\"\",IF(OR('Enrollment Form'!$B511<>\"Subscriber\",'Enrollment Form'!$C511=\"ROC\"),\"-\",IF(AND('Enrollment Form'!$B511=\"Subscriber\",'Enrollment Form'!$C511=\"Enroll\",'Enrollment Form'!$CV511<>\"\"),\"Y\",\"N\")))","v":""},{"$f":"IF($B504=\"N\",\"\",IF($S504=\"-\",\"-\",IF(AND($S504=\"Y\",'Enrollment Form'!$CV511=\"No\"),\"-\",IF(AND($S504=\"Y\",'Enrollment Form'!$CV511=\"Yes\",'Enrollment Form'!$CW511<>\"\"),\"Y\",\"N\"))))","v":""},{"$f":"IF(OR('Enrollment Form'!$AY511=\"Yes\",'Enrollment Form'!$AY511=\"\"),\"-\",IF(OR(AND('Enrollment Form'!$AY511=\"No\",ISERROR(FIND(\"HMO\",VLOOKUP('Enrollment Form'!G511,'Enrollment Form'!H$11:J$1000,3,FALSE),1))=FALSE,COUNTA('Enrollment Form'!$AZ511:$BC511)=4),AND('Enrollment Form'!$AY511=\"No\",ISERROR(FIND(\"HMO\",VLOOKUP('Enrollment Form'!G511,'Enrollment Form'!H$11:J$1000,3,FALSE),1))=FALSE,COUNTA('Enrollment Form'!$BT511:$BW511)=4)),\"Y\",\"N\"))","v":"-"},{"$f":"IF($B504=\"N\",\"\",IF('Enrollment Form'!$B511=\"Subscriber\",\"-\",IF(COUNTA('Enrollment Form'!$BL511,'Enrollment Form'!$BN511)=2,\"Y\",\"N\")))","v":""},{"$f":"IF($B504=\"N\",\"\",IF(OR('Enrollment Form'!$AX511=\"\",'Enrollment Form'!$AX511=\"No\"),\"-\",IF(AND('Enrollment Form'!$AX511=\"Yes\",COUNTA('Enrollment Form'!$CR511)=1),\"Y\",\"N\")))","v":""},{"$f":"IF(OR('Enrollment Form'!$CR511=\"\",'Enrollment Form'!$CR511=\"No\"),\"-\",IF(COUNTA('Enrollment Form'!$CT511:$CU511)=2,\"Y\",\"N\"))","v":"-"},{"$f":"IF($B504=\"N\",\"\",IF(COUNTIF('Enrollment Form'!$DG511:$DP511,\"Other\")=COUNTA('Enrollment Form'!$DK511,'Enrollment Form'!$DH511,'Enrollment Form'!$DN511,'Enrollment Form'!$DQ511),\"Y\",\"N\"))","v":""},{"$f":"IF($B504=\"N\",\"\",IF(OR('Enrollment Form'!B511<>\"Subscriber\",'Enrollment Form'!C511=\"ROC\",COUNTIF('Enrollment Form'!AV511:AW511,\"Yes\")>=1),\"-\",IF(AND('Enrollment Form'!C511=\"Enroll\",COUNTIF('Enrollment Form'!AV511:AW511,\"No\")=2,'Enrollment Form'!AX511=\"\"),\"N\",\"Y\")))","v":""},{"$f":"IF(OR(B504=\"N\",'Enrollment Form'!B511<>\"Subscriber\",'Enrollment Form'!C511=\"ROC\",'Enrollment Form'!O511<>\"Multiple of Salary\"),\"-\",IF(COUNTA('Enrollment Form'!T511:U511)<2,\"N\",\"Y\"))","v":"-"},{"$f":"IF(B504=\"N\",\"\",IF(OR('Enrollment Form'!C511=\"ROC\",'Enrollment Form'!B511<>\"Subscriber\",'Enrollment Form'!O511=\"Waive\",'Enrollment Form'!O511=\"\"),\"-\",IF('Enrollment Form'!P511=\"\",\"N\",\"Y\")))","v":""},{"$f":"IF($B504=\"N\",\"\",IF(AND('Enrollment Form'!$C511=\"ROC\",'Enrollment Form'!$DR511<>\"\"),\"Y\",IF(AND('Enrollment Form'!$C511=\"ROC\",'Enrollment Form'!$DR511=\"\"),\"N\",IF(AND('Enrollment Form'!$C511=\"Enroll\",'Enrollment Form'!$B511=\"Subscriber\",'Enrollment Form'!$CX511=\"No\",'Enrollment Form'!$DR511=\"\"),\"N\",IF(AND('Enrollment Form'!$C511=\"Enroll\",'Enrollment Form'!$B511=\"Subscriber\",'Enrollment Form'!$CX511=\"Yes\"),\"-\",\"Y\")))))","v":""},{"$f":"IF($B504=\"N\",\"\",IF(AND('Enrollment Form'!$C511=\"ROC\",'Enrollment Form'!$DS511<>\"\"),\"Y\",IF(AND('Enrollment Form'!$C511=\"ROC\",'Enrollment Form'!$DS511=\"\"),\"N\",IF(AND('Enrollment Form'!$C511=\"Enroll\",'Enrollment Form'!$B511=\"Subscriber\",'Enrollment Form'!$CX511=\"No\",'Enrollment Form'!$DS511=\"\"),\"N\",IF(AND('Enrollment Form'!$C511=\"Enroll\",'Enrollment Form'!$B511=\"Subscriber\",'Enrollment Form'!$CX511=\"Yes\"),\"-\",\"Y\")))))","v":""},{"$f":"IF('Enrollment Form'!AH511=\"\",\"\",IF(ISERROR(SEARCH(\".\",'Enrollment Form'!AH511,SEARCH(\"@\",'Enrollment Form'!AH511))),\"N\",\"Y\"))","v":""},{"$f":"IF(OR($B504=\"N\",'Enrollment Form'!$G511=\"\"),\"\",IF('Enrollment Form'!$B511<>\"Subscriber\",\"-\",IF(COUNTIF('Enrollment Form'!$AV511:$AW511,\"Yes\")=2,\"N\",\"Y\")))","v":""},{"$f":"IF(OR('Enrollment Form'!$CJ511=\"\",'Enrollment Form'!$CJ511=\"No\"),\"-\",IF(AND('Enrollment Form'!$CJ511=\"Yes\",'Enrollment Form'!$CK511=\"\"),\"N\",\"Y\"))","v":"-"},{"$f":"IF(OR('Enrollment Form'!$CL511=\"\",'Enrollment Form'!$CL511=\"No\"),\"-\",IF(AND('Enrollment Form'!$CL511=\"Yes\",'Enrollment Form'!$CM511=\"\"),\"N\",\"Y\"))","v":"-"},{"$f":"IF(OR('Enrollment Form'!$CN511=\"\",'Enrollment Form'!$CN511=\"No\"),\"-\",IF(AND('Enrollment Form'!$CN511=\"Yes\",'Enrollment Form'!$CO511=\"\"),\"N\",\"Y\"))","v":"-"},{"$f":"IF(OR('Enrollment Form'!$CN511=\"\",'Enrollment Form'!$CN511=\"No\"),\"-\",IF(AND('Enrollment Form'!$CN511=\"Yes\",'Enrollment Form'!$CP511=\"\"),\"N\",\"Y\"))","v":"-"},{"$f":"IF('Enrollment Form'!B511<>\"Subscriber\",\"-\",IF(AND('Enrollment Form'!B511=\"Subscriber\",'Enrollment Form'!C511=\"Enroll\",'Enrollment Form'!AA511=\"\"),\"N\",\"Y\"))","v":"-"},{"$f":"IF(OR('Enrollment Form'!B511=\"Subscriber\",'Enrollment Form'!B511=\"\"),\"-\",IF('Enrollment Form'!BP511=\"\",\"N\",\"Y\"))","v":"-"},{"$f":"IF('Enrollment Form'!B511<>\"Subscriber\",\"-\",IF(AND('Enrollment Form'!B511=\"Subscriber\",'Enrollment Form'!G511=\"\"),\"N\",\"Y\"))","v":"-"},{"$f":"IF('Enrollment Form'!A511=\"\",\"\",IF('Enrollment Form'!B511=\"Subscriber\",\"-\",IF(AND('Enrollment Form'!B511<>\"Subscriber\",'Enrollment Form'!G511='Enrollment Form'!H511),\"N\",\"Y\")))","v":""},0]
[512,{"$f":"IF('Enrollment Form'!$A512<>\"\",\"Y\",\"N\")","v":"N"},{"$f":"IF(AND('Enrollment Form'!$B512=\"\",'Enrollment Form'!$C512<>\"\"),\"N\",IF($B505=\"N\",\"\",\"Y\"))","v":""},{"$f":"IF(OR($B505=\"N\",'Enrollment Form'!G512=\"\"),\"\",IF('Enrollment Form'!$B512<>\"Subscriber\",\"\",IF('Enrollment Form'!$G512='Enrollment Form'!$H512,\"Y\",\"N\")))","v":""},{"$f":"IF($B505=\"N\",\"\",IF(AND(COUNTIFS('Enrollment Form'!$H$11:$H$1000,'Enrollment Form'!$H512,'Enrollment Form'!$B$11:$B$1000,'Enrollment Form'!$B512)>1,'Enrollment Form'!$H512<>\"\"),\"N\",\"Y\"))","v":""},{"$f":"IF($B505=\"N\",\"\",IF(LEN('Enrollment Form'!$Y512)=0,\"\",IF(LEN('Enrollment Form'!$Y512)<>5,\"N\",\"Y\")))","v":""},{"$f":"IF($B505=\"N\",\"\",IF(LEN('Enrollment Form'!$AD512=0),\"\",IF(LEN('Enrollment Form'!$AD512)<>5,\"N\",\"Y\")))","v":""},{"$f":"IF($B505=\"N\",\"\",IF(LEN('Enrollment Form'!$BS512=0),\"\",IF(LEN('Enrollment Form'!$BS512)<>5,\"N\",\"Y\")))","v":""},{"$f":"IF($B505=\"N\",\"\",IF(LEN('Enrollment Form'!$AE512)=0,\"\",IF(LEN('Enrollment Form'!$AE512)<>10,\"N\",\"Y\")))","v":""},{"$f":"IF($B505=\"N\",\"\",IF(LEN('Enrollment Form'!$AF512)=0,\"\",IF(LEN('Enrollment Form'!$AF512)<>10,\"N\",\"Y\")))","v":""},{"$f":"IF('Enrollment Form'!$O512<>\"Graded\",\"-\",IF(AND('Enrollment Form'!$O512=\"Graded\",'Enrollment Form'!$AR512<>\"\"),\"Y\",\"N\"))","v":"-"},{"$f":"IF($B505=\"N\",\"\",IF(OR('Enrollment Form'!$B512<>\"Subscriber\",'Enrollment Form'!$C512=\"ROC\"),\"-\",IF(AND('Enrollment Form'!$B512=\"Subscriber\",'Enrollment Form'!$C512=\"Enroll\",'Enrollment Form'!$AJ512<>\"\"),\"Y\",\"N\")))","v":""},{"$f":"IF($B505=\"N\",\"\",IF(OR('Enrollment Form'!$B512<>\"Subscriber\",'Enrollment Form'!$C512=\"ROC\"),\"-\",IF(AND('Enrollment Form'!$B512=\"Subscriber\",'Enrollment Form'!$C512=\"Enroll\",'Enrollment Form'!$AK512<>\"\"),\"Y\",\"N\")))","v":""},{"$f":"IF($B505=\"N\",\"\",IF(OR('Enrollment Form'!$B512<>\"Subscriber\",'Enrollment Form'!$C512=\"ROC\"),\"-\",IF(AND('Enrollment Form'!$B512=\"Subscriber\",'Enrollment Form'!$C512=\"Enroll\",'Enrollment Form'!$AL512<>\"\"),\"Y\",\"N\")))","v":""},{"$f":"IF($B505=\"N\",\"\",IF(OR('Enrollment Form'!$B512<>\"Subscriber\",'Enrollment Form'!$C512=\"ROC\"),\"-\",IF(AND('Enrollment Form'!$B512=\"Subscriber\",'Enrollment Form'!$C512=\"Enroll\",'Enrollment Form'!$AP512<>\"\"),\"Y\",\"N\")))","v":""},{"$f":"IF($B505=\"N\",\"\",IF(OR('Enrollment Form'!$B512<>\"Subscriber\",'Enrollment Form'!$C512=\"ROC\"),\"-\",IF(AND('Enrollment Form'!$B512=\"Subscriber\",'Enrollment Form'!$C512=\"Enroll\",'Enrollment Form'!$AQ512<>\"\"),\"Y\",\"N\")))","v":""},{"$f":"IF($B505=\"N\",\"\",IF(OR('Enrollment Form'!$B512<>\"Subscriber\",'Enrollment Form'!$C512=\"ROC\"),\"-\",IF(AND('Enrollment Form'!$B512=\"Subscriber\",'Enrollment Form'!$C512=\"Enroll\",'Enrollment Form'!$AS512<>\"\"),\"Y\",\"N\")))","v":""},{"$f":"IF($B505=\"N\",\"\",IF($Q505=\"-\",\"-\",IF(AND($Q505=\"Y\",'Enrollment Form'!$AS512=\"No\"),\"-\",IF(AND($Q505=\"Y\",'Enrollment Form'!$AS512=\"Yes\",'Enrollment Form'!$AT512<>\"\"),\"Y\",\"N\"))))","v":""},{"$f":"IF($B505=\"N\",\"\",IF(OR('Enrollment Form'!$B512<>\"Subscriber\",'Enrollment Form'!$C512=\"ROC\"),\"-\",IF(AND('Enrollment Form'!$B512=\"Subscriber\",'Enrollment Form'!$C512=\"Enroll\",'Enrollment Form'!$CV512<>\"\"),\"Y\",\"N\")))","v":""},{"$f":"IF($B505=\"N\",\"\",IF($S505=\"-\",\"-\",IF(AND($S505=\"Y\",'Enrollment Form'!$CV512=\"No\"),\"-\",IF(AND($S505=\"Y\",'Enrollment Form'!$CV512=\"Yes\",'Enrollment Form'!$CW512<>\"\"),\"Y\",\"N\"))))","v":""},{"$f":"IF(OR('Enrollment Form'!$AY512=\"Yes\",'Enrollment Form'!$AY512=\"\"),\"-\",IF(OR(AND('Enrollment Form'!$AY512=\"No\",ISERROR(FIND(\"HMO\",VLOOKUP('Enrollment Form'!G512,'Enrollment Form'!H$11:J$1000,3,FALSE),1))=FALSE,COUNTA('Enrollment Form'!$AZ512:$BC512)=4),AND('Enrollment Form'!$AY512=\"No\",ISERROR(FIND(\"HMO\",VLOOKUP('Enrollment Form'!G512,'Enrollment Form'!H$11:J$1000,3,FALSE),1))=FALSE,COUNTA('Enrollment Form'!$BT512:$BW512)=4)),\"Y\",\"N\"))","v":"-"},{"$f":"IF($B505=\"N\",\"\",IF('Enrollment Form'!$B512=\"Subscriber\",\"-\",IF(COUNTA('Enrollment Form'!$BL512,'Enrollment Form'!$BN512)=2,\"Y\",\"N\")))","v":""},{"$f":"IF($B505=\"N\",\"\",IF(OR('Enrollment Form'!$AX512=\"\",'Enrollment Form'!$AX512=\"No\"),\"-\",IF(AND('Enrollment Form'!$AX512=\"Yes\",COUNTA('Enrollment Form'!$CR512)=1),\"Y\",\"N\")))","v":""},{"$f":"IF(OR('Enrollment Form'!$CR512=\"\",'Enrollment Form'!$CR512=\"No\"),\"-\",IF(COUNTA('Enrollment Form'!$CT512:$CU512)=2,\"Y\",\"N\"))","v":"-"},{"$f":"IF($B505=\"N\",\"\",IF(COUNTIF('Enrollment Form'!$DG512:$DP512,\"Other\")=COUNTA('Enrollment Form'!$DK512,'Enrollment Form'!$DH512,'Enrollment Form'!$DN512,'Enrollment Form'!$DQ512),\"Y\",\"N\"))","v":""},{"$f":"IF($B505=\"N\",\"\",IF(OR('Enrollment Form'!B512<>\"Subscriber\",'Enrollment Form'!C512=\"ROC\",COUNTIF('Enrollment Form'!AV512:AW512,\"Yes\")>=1),\"-\",IF(AND('Enrollment Form'!C512=\"Enroll\",COUNTIF('Enrollment Form'!AV512:AW512,\"No\")=2,'Enrollment Form'!AX512=\"\"),\"N\",\"Y\")))","v":""},{"$f":"IF(OR(B505=\"N\",'Enrollment Form'!B512<>\"Subscriber\",'Enrollment Form'!C512=\"ROC\",'Enrollment Form'!O512<>\"Multiple of Salary\"),\"-\",IF(COUNTA('Enrollment Form'!T512:U512)<2,\"N\",\"Y\"))","v":"-"},{"$f":"IF(B505=\"N\",\"\",IF(OR('Enrollment Form'!C512=\"ROC\",'Enrollment Form'!B512<>\"Subscriber\",'Enrollment Form'!O512=\"Waive\",'Enrollment Form'!O512=\"\"),\"-\",IF('Enrollment Form'!P512=\"\",\"N\",\"Y\")))","v":""},{"$f":"IF($B505=\"N\",\"\",IF(AND('Enrollment Form'!$C512=\"ROC\",'Enrollment Form'!$DR512<>\"\"),\"Y\",IF(AND('Enrollment Form'!$C512=\"ROC\",'Enrollment Form'!$DR512=\"\"),\"N\",IF(AND('Enrollment Form'!$C512=\"Enroll\",'Enrollment Form'!$B512=\"Subscriber\",'Enrollment Form'!$CX512=\"No\",'Enrollment Form'!$DR512=\"\"),\"N\",IF(AND('Enrollment Form'!$C512=\"Enroll\",'Enrollment Form'!$B512=\"Subscriber\",'Enrollment Form'!$CX512=\"Yes\"),\"-\",\"Y\")))))","v":""},{"$f":"IF($B505=\"N\",\"\",IF(AND('Enrollment Form'!$C512=\"ROC\",'Enrollment Form'!$DS512<>\"\"),\"Y\",IF(AND('Enrollment Form'!$C512=\"ROC\",'Enrollment Form'!$DS512=\"\"),\"N\",IF(AND('Enrollment Form'!$C512=\"Enroll\",'Enrollment Form'!$B512=\"Subscriber\",'Enrollment Form'!$CX512=\"No\",'Enrollment Form'!$DS512=\"\"),\"N\",IF(AND('Enrollment Form'!$C512=\"Enroll\",'Enrollment Form'!$B512=\"Subscriber\",'Enrollment Form'!$CX512=\"Yes\"),\"-\",\"Y\")))))","v":""},{"$f":"IF('Enrollment Form'!AH512=\"\",\"\",IF(ISERROR(SEARCH(\".\",'Enrollment Form'!AH512,SEARCH(\"@\",'Enrollment Form'!AH512))),\"N\",\"Y\"))","v":""},{"$f":"IF(OR($B505=\"N\",'Enrollment Form'!$G512=\"\"),\"\",IF('Enrollment Form'!$B512<>\"Subscriber\",\"-\",IF(COUNTIF('Enrollment Form'!$AV512:$AW512,\"Yes\")=2,\"N\",\"Y\")))","v":""},{"$f":"IF(OR('Enrollment Form'!$CJ512=\"\",'Enrollment Form'!$CJ512=\"No\"),\"-\",IF(AND('Enrollment Form'!$CJ512=\"Yes\",'Enrollment Form'!$CK512=\"\"),\"N\",\"Y\"))","v":"-"},{"$f":"IF(OR('Enrollment Form'!$CL512=\"\",'Enrollment Form'!$CL512=\"No\"),\"-\",IF(AND('Enrollment Form'!$CL512=\"Yes\",'Enrollment Form'!$CM512=\"\"),\"N\",\"Y\"))","v":"-"},{"$f":"IF(OR('Enrollment Form'!$CN512=\"\",'Enrollment Form'!$CN512=\"No\"),\"-\",IF(AND('Enrollment Form'!$CN512=\"Yes\",'Enrollment Form'!$CO512=\"\"),\"N\",\"Y\"))","v":"-"},{"$f":"IF(OR('Enrollment Form'!$CN512=\"\",'Enrollment Form'!$CN512=\"No\"),\"-\",IF(AND('Enrollment Form'!$CN512=\"Yes\",'Enrollment Form'!$CP512=\"\"),\"N\",\"Y\"))","v":"-"},{"$f":"IF('Enrollment Form'!B512<>\"Subscriber\",\"-\",IF(AND('Enrollment Form'!B512=\"Subscriber\",'Enrollment Form'!C512=\"Enroll\",'Enrollment Form'!AA512=\"\"),\"N\",\"Y\"))","v":"-"},{"$f":"IF(OR('Enrollment Form'!B512=\"Subscriber\",'Enrollment Form'!B512=\"\"),\"-\",IF('Enrollment Form'!BP512=\"\",\"N\",\"Y\"))","v":"-"},{"$f":"IF('Enrollment Form'!B512<>\"Subscriber\",\"-\",IF(AND('Enrollment Form'!B512=\"Subscriber\",'Enrollment Form'!G512=\"\"),\"N\",\"Y\"))","v":"-"},{"$f":"IF('Enrollment Form'!A512=\"\",\"\",IF('Enrollment Form'!B512=\"Subscriber\",\"-\",IF(AND('Enrollment Form'!B512<>\"Subscriber\",'Enrollment Form'!G512='Enrollment Form'!H512),\"N\",\"Y\")))","v":""},0]
[513,{"$f":"IF('Enrollment Form'!$A513<>\"\",\"Y\",\"N\")","v":"N"},{"$f":"IF(AND('Enrollment Form'!$B513=\"\",'Enrollment Form'!$C513<>\"\"),\"N\",IF($B506=\"N\",\"\",\"Y\"))","v":""},{"$f":"IF(OR($B506=\"N\",'Enrollment Form'!G513=\"\"),\"\",IF('Enrollment Form'!$B513<>\"Subscriber\",\"\",IF('Enrollment Form'!$G513='Enrollment Form'!$H513,\"Y\",\"N\")))","v":""},{"$f":"IF($B506=\"N\",\"\",IF(AND(COUNTIFS('Enrollment Form'!$H$11:$H$1000,'Enrollment Form'!$H513,'Enrollment Form'!$B$11:$B$1000,'Enrollment Form'!$B513)>1,'Enrollment Form'!$H513<>\"\"),\"N\",\"Y\"))","v":""},{"$f":"IF($B506=\"N\",\"\",IF(LEN('Enrollment Form'!$Y513)=0,\"\",IF(LEN('Enrollment Form'!$Y513)<>5,\"N\",\"Y\")))","v":""},{"$f":"IF($B506=\"N\",\"\",IF(LEN('Enrollment Form'!$AD513=0),\"\",IF(LEN('Enrollment Form'!$AD513)<>5,\"N\",\"Y\")))","v":""},{"$f":"IF($B506=\"N\",\"\",IF(LEN('Enrollment Form'!$BS513=0),\"\",IF(LEN('Enrollment Form'!$BS513)<>5,\"N\",\"Y\")))","v":""},{"$f":"IF($B506=\"N\",\"\",IF(LEN('Enrollment Form'!$AE513)=0,\"\",IF(LEN('Enrollment Form'!$AE513)<>10,\"N\",\"Y\")))","v":""},{"$f":"IF($B506=\"N\",\"\",IF(LEN('Enrollment Form'!$AF513)=0,\"\",IF(LEN('Enrollment Form'!$AF513)<>10,\"N\",\"Y\")))","v":""},{"$f":"IF('Enrollment Form'!$O513<>\"Graded\",\"-\",IF(AND('Enrollment Form'!$O513=\"Graded\",'Enrollment Form'!$AR513<>\"\"),\"Y\",\"N\"))","v":"-"},{"$f":"IF($B506=\"N\",\"\",IF(OR('Enrollment Form'!$B513<>\"Subscriber\",'Enrollment Form'!$C513=\"ROC\"),\"-\",IF(AND('Enrollment Form'!$B513=\"Subscriber\",'Enrollment Form'!$C513=\"Enroll\",'Enrollment Form'!$AJ513<>\"\"),\"Y\",\"N\")))","v":""},{"$f":"IF($B506=\"N\",\"\",IF(OR('Enrollment Form'!$B513<>\"Subscriber\",'Enrollment Form'!$C513=\"ROC\"),\"-\",IF(AND('Enrollment Form'!$B513=\"Subscriber\",'Enrollment Form'!$C513=\"Enroll\",'Enrollment Form'!$AK513<>\"\"),\"Y\",\"N\")))","v":""},{"$f":"IF($B506=\"N\",\"\",IF(OR('Enrollment Form'!$B513<>\"Subscriber\",'Enrollment Form'!$C513=\"ROC\"),\"-\",IF(AND('Enrollment Form'!$B513=\"Subscriber\",'Enrollment Form'!$C513=\"Enroll\",'Enrollment Form'!$AL513<>\"\"),\"Y\",\"N\")))","v":""},{"$f":"IF($B506=\"N\",\"\",IF(OR('Enrollment Form'!$B513<>\"Subscriber\",'Enrollment Form'!$C513=\"ROC\"),\"-\",IF(AND('Enrollment Form'!$B513=\"Subscriber\",'Enrollment Form'!$C513=\"Enroll\",'Enrollment Form'!$AP513<>\"\"),\"Y\",\"N\")))","v":""},{"$f":"IF($B506=\"N\",\"\",IF(OR('Enrollment Form'!$B513<>\"Subscriber\",'Enrollment Form'!$C513=\"ROC\"),\"-\",IF(AND('Enrollment Form'!$B513=\"Subscriber\",'Enrollment Form'!$C513=\"Enroll\",'Enrollment Form'!$AQ513<>\"\"),\"Y\",\"N\")))","v":""},{"$f":"IF($B506=\"N\",\"\",IF(OR('Enrollment Form'!$B513<>\"Subscriber\",'Enrollment Form'!$C513=\"ROC\"),\"-\",IF(AND('Enrollment Form'!$B513=\"Subscriber\",'Enrollment Form'!$C513=\"Enroll\",'Enrollment Form'!$AS513<>\"\"),\"Y\",\"N\")))","v":""},{"$f":"IF($B506=\"N\",\"\",IF($Q506=\"-\",\"-\",IF(AND($Q506=\"Y\",'Enrollment Form'!$AS513=\"No\"),\"-\",IF(AND($Q506=\"Y\",'Enrollment Form'!$AS513=\"Yes\",'Enrollment Form'!$AT513<>\"\"),\"Y\",\"N\"))))","v":""},{"$f":"IF($B506=\"N\",\"\",IF(OR('Enrollment Form'!$B513<>\"Subscriber\",'Enrollment Form'!$C513=\"ROC\"),\"-\",IF(AND('Enrollment Form'!$B513=\"Subscriber\",'Enrollment Form'!$C513=\"Enroll\",'Enrollment Form'!$CV513<>\"\"),\"Y\",\"N\")))","v":""},{"$f":"IF($B506=\"N\",\"\",IF($S506=\"-\",\"-\",IF(AND($S506=\"Y\",'Enrollment Form'!$CV513=\"No\"),\"-\",IF(AND($S506=\"Y\",'Enrollment Form'!$CV513=\"Yes\",'Enrollment Form'!$CW513<>\"\"),\"Y\",\"N\"))))","v":""},{"$f":"IF(OR('Enrollment Form'!$AY513=\"Yes\",'Enrollment Form'!$AY513=\"\"),\"-\",IF(OR(AND('Enrollment Form'!$AY513=\"No\",ISERROR(FIND(\"HMO\",VLOOKUP('Enrollment Form'!G513,'Enrollment Form'!H$11:J$1000,3,FALSE),1))=FALSE,COUNTA('Enrollment Form'!$AZ513:$BC513)=4),AND('Enrollment Form'!$AY513=\"No\",ISERROR(FIND(\"HMO\",VLOOKUP('Enrollment Form'!G513,'Enrollment Form'!H$11:J$1000,3,FALSE),1))=FALSE,COUNTA('Enrollment Form'!$BT513:$BW513)=4)),\"Y\",\"N\"))","v":"-"},{"$f":"IF($B506=\"N\",\"\",IF('Enrollment Form'!$B513=\"Subscriber\",\"-\",IF(COUNTA('Enrollment Form'!$BL513,'Enrollment Form'!$BN513)=2,\"Y\",\"N\")))","v":""},{"$f":"IF($B506=\"N\",\"\",IF(OR('Enrollment Form'!$AX513=\"\",'Enrollment Form'!$AX513=\"No\"),\"-\",IF(AND('Enrollment Form'!$AX513=\"Yes\",COUNTA('Enrollment Form'!$CR513)=1),\"Y\",\"N\")))","v":""},{"$f":"IF(OR('Enrollment Form'!$CR513=\"\",'Enrollment Form'!$CR513=\"No\"),\"-\",IF(COUNTA('Enrollment Form'!$CT513:$CU513)=2,\"Y\",\"N\"))","v":"-"},{"$f":"IF($B506=\"N\",\"\",IF(COUNTIF('Enrollment Form'!$DG513:$DP513,\"Other\")=COUNTA('Enrollment Form'!$DK513,'Enrollment Form'!$DH513,'Enrollment Form'!$DN513,'Enrollment Form'!$DQ513),\"Y\",\"N\"))","v":""},{"$f":"IF($B506=\"N\",\"\",IF(OR('Enrollment Form'!B513<>\"Subscriber\",'Enrollment Form'!C513=\"ROC\",COUNTIF('Enrollment Form'!AV513:AW513,\"Yes\")>=1),\"-\",IF(AND('Enrollment Form'!C513=\"Enroll\",COUNTIF('Enrollment Form'!AV513:AW513,\"No\")=2,'Enrollment Form'!AX513=\"\"),\"N\",\"Y\")))","v":""},{"$f":"IF(OR(B506=\"N\",'Enrollment Form'!B513<>\"Subscriber\",'Enrollment Form'!C513=\"ROC\",'Enrollment Form'!O513<>\"Multiple of Salary\"),\"-\",IF(COUNTA('Enrollment Form'!T513:U513)<2,\"N\",\"Y\"))","v":"-"},{"$f":"IF(B506=\"N\",\"\",IF(OR('Enrollment Form'!C513=\"ROC\",'Enrollment Form'!B513<>\"Subscriber\",'Enrollment Form'!O513=\"Waive\",'Enrollment Form'!O513=\"\"),\"-\",IF('Enrollment Form'!P513=\"\",\"N\",\"Y\")))","v":""},{"$f":"IF($B506=\"N\",\"\",IF(AND('Enrollment Form'!$C513=\"ROC\",'Enrollment Form'!$DR513<>\"\"),\"Y\",IF(AND('Enrollment Form'!$C513=\"ROC\",'Enrollment Form'!$DR513=\"\"),\"N\",IF(AND('Enrollment Form'!$C513=\"Enroll\",'Enrollment Form'!$B513=\"Subscriber\",'Enrollment Form'!$CX513=\"No\",'Enrollment Form'!$DR513=\"\"),\"N\",IF(AND('Enrollment Form'!$C513=\"Enroll\",'Enrollment Form'!$B513=\"Subscriber\",'Enrollment Form'!$CX513=\"Yes\"),\"-\",\"Y\")))))","v":""},{"$f":"IF($B506=\"N\",\"\",IF(AND('Enrollment Form'!$C513=\"ROC\",'Enrollment Form'!$DS513<>\"\"),\"Y\",IF(AND('Enrollment Form'!$C513=\"ROC\",'Enrollment Form'!$DS513=\"\"),\"N\",IF(AND('Enrollment Form'!$C513=\"Enroll\",'Enrollment Form'!$B513=\"Subscriber\",'Enrollment Form'!$CX513=\"No\",'Enrollment Form'!$DS513=\"\"),\"N\",IF(AND('Enrollment Form'!$C513=\"Enroll\",'Enrollment Form'!$B513=\"Subscriber\",'Enrollment Form'!$CX513=\"Yes\"),\"-\",\"Y\")))))","v":""},{"$f":"IF('Enrollment Form'!AH513=\"\",\"\",IF(ISERROR(SEARCH(\".\",'Enrollment Form'!AH513,SEARCH(\"@\",'Enrollment Form'!AH513))),\"N\",\"Y\"))","v":""},{"$f":"IF(OR($B506=\"N\",'Enrollment Form'!$G513=\"\"),\"\",IF('Enrollment Form'!$B513<>\"Subscriber\",\"-\",IF(COUNTIF('Enrollment Form'!$AV513:$AW513,\"Yes\")=2,\"N\",\"Y\")))","v":""},{"$f":"IF(OR('Enrollment Form'!$CJ513=\"\",'Enrollment Form'!$CJ513=\"No\"),\"-\",IF(AND('Enrollment Form'!$CJ513=\"Yes\",'Enrollment Form'!$CK513=\"\"),\"N\",\"Y\"))","v":"-"},{"$f":"IF(OR('Enrollment Form'!$CL513=\"\",'Enrollment Form'!$CL513=\"No\"),\"-\",IF(AND('Enrollment Form'!$CL513=\"Yes\",'Enrollment Form'!$CM513=\"\"),\"N\",\"Y\"))","v":"-"},{"$f":"IF(OR('Enrollment Form'!$CN513=\"\",'Enrollment Form'!$CN513=\"No\"),\"-\",IF(AND('Enrollment Form'!$CN513=\"Yes\",'Enrollment Form'!$CO513=\"\"),\"N\",\"Y\"))","v":"-"},{"$f":"IF(OR('Enrollment Form'!$CN513=\"\",'Enrollment Form'!$CN513=\"No\"),\"-\",IF(AND('Enrollment Form'!$CN513=\"Yes\",'Enrollment Form'!$CP513=\"\"),\"N\",\"Y\"))","v":"-"},{"$f":"IF('Enrollment Form'!B513<>\"Subscriber\",\"-\",IF(AND('Enrollment Form'!B513=\"Subscriber\",'Enrollment Form'!C513=\"Enroll\",'Enrollment Form'!AA513=\"\"),\"N\",\"Y\"))","v":"-"},{"$f":"IF(OR('Enrollment Form'!B513=\"Subscriber\",'Enrollment Form'!B513=\"\"),\"-\",IF('Enrollment Form'!BP513=\"\",\"N\",\"Y\"))","v":"-"},{"$f":"IF('Enrollment Form'!B513<>\"Subscriber\",\"-\",IF(AND('Enrollment Form'!B513=\"Subscriber\",'Enrollment Form'!G513=\"\"),\"N\",\"Y\"))","v":"-"},{"$f":"IF('Enrollment Form'!A513=\"\",\"\",IF('Enrollment Form'!B513=\"Subscriber\",\"-\",IF(AND('Enrollment Form'!B513<>\"Subscriber\",'Enrollment Form'!G513='Enrollment Form'!H513),\"N\",\"Y\")))","v":""},0]
[514,{"$f":"IF('Enrollment Form'!$A514<>\"\",\"Y\",\"N\")","v":"N"},{"$f":"IF(AND('Enrollment Form'!$B514=\"\",'Enrollment Form'!$C514<>\"\"),\"N\",IF($B507=\"N\",\"\",\"Y\"))","v":""},{"$f":"IF(OR($B507=\"N\",'Enrollment Form'!G514=\"\"),\"\",IF('Enrollment Form'!$B514<>\"Subscriber\",\"\",IF('Enrollment Form'!$G514='Enrollment Form'!$H514,\"Y\",\"N\")))","v":""},{"$f":"IF($B507=\"N\",\"\",IF(AND(COUNTIFS('Enrollment Form'!$H$11:$H$1000,'Enrollment Form'!$H514,'Enrollment Form'!$B$11:$B$1000,'Enrollment Form'!$B514)>1,'Enrollment Form'!$H514<>\"\"),\"N\",\"Y\"))","v":""},{"$f":"IF($B507=\"N\",\"\",IF(LEN('Enrollment Form'!$Y514)=0,\"\",IF(LEN('Enrollment Form'!$Y514)<>5,\"N\",\"Y\")))","v":""},{"$f":"IF($B507=\"N\",\"\",IF(LEN('Enrollment Form'!$AD514=0),\"\",IF(LEN('Enrollment Form'!$AD514)<>5,\"N\",\"Y\")))","v":""},{"$f":"IF($B507=\"N\",\"\",IF(LEN('Enrollment Form'!$BS514=0),\"\",IF(LEN('Enrollment Form'!$BS514)<>5,\"N\",\"Y\")))","v":""},{"$f":"IF($B507=\"N\",\"\",IF(LEN('Enrollment Form'!$AE514)=0,\"\",IF(LEN('Enrollment Form'!$AE514)<>10,\"N\",\"Y\")))","v":""},{"$f":"IF($B507=\"N\",\"\",IF(LEN('Enrollment Form'!$AF514)=0,\"\",IF(LEN('Enrollment Form'!$AF514)<>10,\"N\",\"Y\")))","v":""},{"$f":"IF('Enrollment Form'!$O514<>\"Graded\",\"-\",IF(AND('Enrollment Form'!$O514=\"Graded\",'Enrollment Form'!$AR514<>\"\"),\"Y\",\"N\"))","v":"-"},{"$f":"IF($B507=\"N\",\"\",IF(OR('Enrollment Form'!$B514<>\"Subscriber\",'Enrollment Form'!$C514=\"ROC\"),\"-\",IF(AND('Enrollment Form'!$B514=\"Subscriber\",'Enrollment Form'!$C514=\"Enroll\",'Enrollment Form'!$AJ514<>\"\"),\"Y\",\"N\")))","v":""},{"$f":"IF($B507=\"N\",\"\",IF(OR('Enrollment Form'!$B514<>\"Subscriber\",'Enrollment Form'!$C514=\"ROC\"),\"-\",IF(AND('Enrollment Form'!$B514=\"Subscriber\",'Enrollment Form'!$C514=\"Enroll\",'Enrollment Form'!$AK514<>\"\"),\"Y\",\"N\")))","v":""},{"$f":"IF($B507=\"N\",\"\",IF(OR('Enrollment Form'!$B514<>\"Subscriber\",'Enrollment Form'!$C514=\"ROC\"),\"-\",IF(AND('Enrollment Form'!$B514=\"Subscriber\",'Enrollment Form'!$C514=\"Enroll\",'Enrollment Form'!$AL514<>\"\"),\"Y\",\"N\")))","v":""},{"$f":"IF($B507=\"N\",\"\",IF(OR('Enrollment Form'!$B514<>\"Subscriber\",'Enrollment Form'!$C514=\"ROC\"),\"-\",IF(AND('Enrollment Form'!$B514=\"Subscriber\",'Enrollment Form'!$C514=\"Enroll\",'Enrollment Form'!$AP514<>\"\"),\"Y\",\"N\")))","v":""},{"$f":"IF($B507=\"N\",\"\",IF(OR('Enrollment Form'!$B514<>\"Subscriber\",'Enrollment Form'!$C514=\"ROC\"),\"-\",IF(AND('Enrollment Form'!$B514=\"Subscriber\",'Enrollment Form'!$C514=\"Enroll\",'Enrollment Form'!$AQ514<>\"\"),\"Y\",\"N\")))","v":""},{"$f":"IF($B507=\"N\",\"\",IF(OR('Enrollment Form'!$B514<>\"Subscriber\",'Enrollment Form'!$C514=\"ROC\"),\"-\",IF(AND('Enrollment Form'!$B514=\"Subscriber\",'Enrollment Form'!$C514=\"Enroll\",'Enrollment Form'!$AS514<>\"\"),\"Y\",\"N\")))","v":""},{"$f":"IF($B507=\"N\",\"\",IF($Q507=\"-\",\"-\",IF(AND($Q507=\"Y\",'Enrollment Form'!$AS514=\"No\"),\"-\",IF(AND($Q507=\"Y\",'Enrollment Form'!$AS514=\"Yes\",'Enrollment Form'!$AT514<>\"\"),\"Y\",\"N\"))))","v":""},{"$f":"IF($B507=\"N\",\"\",IF(OR('Enrollment Form'!$B514<>\"Subscriber\",'Enrollment Form'!$C514=\"ROC\"),\"-\",IF(AND('Enrollment Form'!$B514=\"Subscriber\",'Enrollment Form'!$C514=\"Enroll\",'Enrollment Form'!$CV514<>\"\"),\"Y\",\"N\")))","v":""},{"$f":"IF($B507=\"N\",\"\",IF($S507=\"-\",\"-\",IF(AND($S507=\"Y\",'Enrollment Form'!$CV514=\"No\"),\"-\",IF(AND($S507=\"Y\",'Enrollment Form'!$CV514=\"Yes\",'Enrollment Form'!$CW514<>\"\"),\"Y\",\"N\"))))","v":""},{"$f":"IF(OR('Enrollment Form'!$AY514=\"Yes\",'Enrollment Form'!$AY514=\"\"),\"-\",IF(OR(AND('Enrollment Form'!$AY514=\"No\",ISERROR(FIND(\"HMO\",VLOOKUP('Enrollment Form'!G514,'Enrollment Form'!H$11:J$1000,3,FALSE),1))=FALSE,COUNTA('Enrollment Form'!$AZ514:$BC514)=4),AND('Enrollment Form'!$AY514=\"No\",ISERROR(FIND(\"HMO\",VLOOKUP('Enrollment Form'!G514,'Enrollment Form'!H$11:J$1000,3,FALSE),1))=FALSE,COUNTA('Enrollment Form'!$BT514:$BW514)=4)),\"Y\",\"N\"))","v":"-"},{"$f":"IF($B507=\"N\",\"\",IF('Enrollment Form'!$B514=\"Subscriber\",\"-\",IF(COUNTA('Enrollment Form'!$BL514,'Enrollment Form'!$BN514)=2,\"Y\",\"N\")))","v":""},{"$f":"IF($B507=\"N\",\"\",IF(OR('Enrollment Form'!$AX514=\"\",'Enrollment Form'!$AX514=\"No\"),\"-\",IF(AND('Enrollment Form'!$AX514=\"Yes\",COUNTA('Enrollment Form'!$CR514)=1),\"Y\",\"N\")))","v":""},{"$f":"IF(OR('Enrollment Form'!$CR514=\"\",'Enrollment Form'!$CR514=\"No\"),\"-\",IF(COUNTA('Enrollment Form'!$CT514:$CU514)=2,\"Y\",\"N\"))","v":"-"},{"$f":"IF($B507=\"N\",\"\",IF(COUNTIF('Enrollment Form'!$DG514:$DP514,\"Other\")=COUNTA('Enrollment Form'!$DK514,'Enrollment Form'!$DH514,'Enrollment Form'!$DN514,'Enrollment Form'!$DQ514),\"Y\",\"N\"))","v":""},{"$f":"IF($B507=\"N\",\"\",IF(OR('Enrollment Form'!B514<>\"Subscriber\",'Enrollment Form'!C514=\"ROC\",COUNTIF('Enrollment Form'!AV514:AW514,\"Yes\")>=1),\"-\",IF(AND('Enrollment Form'!C514=\"Enroll\",COUNTIF('Enrollment Form'!AV514:AW514,\"No\")=2,'Enrollment Form'!AX514=\"\"),\"N\",\"Y\")))","v":""},{"$f":"IF(OR(B507=\"N\",'Enrollment Form'!B514<>\"Subscriber\",'Enrollment Form'!C514=\"ROC\",'Enrollment Form'!O514<>\"Multiple of Salary\"),\"-\",IF(COUNTA('Enrollment Form'!T514:U514)<2,\"N\",\"Y\"))","v":"-"},{"$f":"IF(B507=\"N\",\"\",IF(OR('Enrollment Form'!C514=\"ROC\",'Enrollment Form'!B514<>\"Subscriber\",'Enrollment Form'!O514=\"Waive\",'Enrollment Form'!O514=\"\"),\"-\",IF('Enrollment Form'!P514=\"\",\"N\",\"Y\")))","v":""},{"$f":"IF($B507=\"N\",\"\",IF(AND('Enrollment Form'!$C514=\"ROC\",'Enrollment Form'!$DR514<>\"\"),\"Y\",IF(AND('Enrollment Form'!$C514=\"ROC\",'Enrollment Form'!$DR514=\"\"),\"N\",IF(AND('Enrollment Form'!$C514=\"Enroll\",'Enrollment Form'!$B514=\"Subscriber\",'Enrollment Form'!$CX514=\"No\",'Enrollment Form'!$DR514=\"\"),\"N\",IF(AND('Enrollment Form'!$C514=\"Enroll\",'Enrollment Form'!$B514=\"Subscriber\",'Enrollment Form'!$CX514=\"Yes\"),\"-\",\"Y\")))))","v":""},{"$f":"IF($B507=\"N\",\"\",IF(AND('Enrollment Form'!$C514=\"ROC\",'Enrollment Form'!$DS514<>\"\"),\"Y\",IF(AND('Enrollment Form'!$C514=\"ROC\",'Enrollment Form'!$DS514=\"\"),\"N\",IF(AND('Enrollment Form'!$C514=\"Enroll\",'Enrollment Form'!$B514=\"Subscriber\",'Enrollment Form'!$CX514=\"No\",'Enrollment Form'!$DS514=\"\"),\"N\",IF(AND('Enrollment Form'!$C514=\"Enroll\",'Enrollment Form'!$B514=\"Subscriber\",'Enrollment Form'!$CX514=\"Yes\"),\"-\",\"Y\")))))","v":""},{"$f":"IF('Enrollment Form'!AH514=\"\",\"\",IF(ISERROR(SEARCH(\".\",'Enrollment Form'!AH514,SEARCH(\"@\",'Enrollment Form'!AH514))),\"N\",\"Y\"))","v":""},{"$f":"IF(OR($B507=\"N\",'Enrollment Form'!$G514=\"\"),\"\",IF('Enrollment Form'!$B514<>\"Subscriber\",\"-\",IF(COUNTIF('Enrollment Form'!$AV514:$AW514,\"Yes\")=2,\"N\",\"Y\")))","v":""},{"$f":"IF(OR('Enrollment Form'!$CJ514=\"\",'Enrollment Form'!$CJ514=\"No\"),\"-\",IF(AND('Enrollment Form'!$CJ514=\"Yes\",'Enrollment Form'!$CK514=\"\"),\"N\",\"Y\"))","v":"-"},{"$f":"IF(OR('Enrollment Form'!$CL514=\"\",'Enrollment Form'!$CL514=\"No\"),\"-\",IF(AND('Enrollment Form'!$CL514=\"Yes\",'Enrollment Form'!$CM514=\"\"),\"N\",\"Y\"))","v":"-"},{"$f":"IF(OR('Enrollment Form'!$CN514=\"\",'Enrollment Form'!$CN514=\"No\"),\"-\",IF(AND('Enrollment Form'!$CN514=\"Yes\",'Enrollment Form'!$CO514=\"\"),\"N\",\"Y\"))","v":"-"},{"$f":"IF(OR('Enrollment Form'!$CN514=\"\",'Enrollment Form'!$CN514=\"No\"),\"-\",IF(AND('Enrollment Form'!$CN514=\"Yes\",'Enrollment Form'!$CP514=\"\"),\"N\",\"Y\"))","v":"-"},{"$f":"IF('Enrollment Form'!B514<>\"Subscriber\",\"-\",IF(AND('Enrollment Form'!B514=\"Subscriber\",'Enrollment Form'!C514=\"Enroll\",'Enrollment Form'!AA514=\"\"),\"N\",\"Y\"))","v":"-"},{"$f":"IF(OR('Enrollment Form'!B514=\"Subscriber\",'Enrollment Form'!B514=\"\"),\"-\",IF('Enrollment Form'!BP514=\"\",\"N\",\"Y\"))","v":"-"},{"$f":"IF('Enrollment Form'!B514<>\"Subscriber\",\"-\",IF(AND('Enrollment Form'!B514=\"Subscriber\",'Enrollment Form'!G514=\"\"),\"N\",\"Y\"))","v":"-"},{"$f":"IF('Enrollment Form'!A514=\"\",\"\",IF('Enrollment Form'!B514=\"Subscriber\",\"-\",IF(AND('Enrollment Form'!B514<>\"Subscriber\",'Enrollment Form'!G514='Enrollment Form'!H514),\"N\",\"Y\")))","v":""},0]
[515,{"$f":"IF('Enrollment Form'!$A515<>\"\",\"Y\",\"N\")","v":"N"},{"$f":"IF(AND('Enrollment Form'!$B515=\"\",'Enrollment Form'!$C515<>\"\"),\"N\",IF($B508=\"N\",\"\",\"Y\"))","v":""},{"$f":"IF(OR($B508=\"N\",'Enrollment Form'!G515=\"\"),\"\",IF('Enrollment Form'!$B515<>\"Subscriber\",\"\",IF('Enrollment Form'!$G515='Enrollment Form'!$H515,\"Y\",\"N\")))","v":""},{"$f":"IF($B508=\"N\",\"\",IF(AND(COUNTIFS('Enrollment Form'!$H$11:$H$1000,'Enrollment Form'!$H515,'Enrollment Form'!$B$11:$B$1000,'Enrollment Form'!$B515)>1,'Enrollment Form'!$H515<>\"\"),\"N\",\"Y\"))","v":""},{"$f":"IF($B508=\"N\",\"\",IF(LEN('Enrollment Form'!$Y515)=0,\"\",IF(LEN('Enrollment Form'!$Y515)<>5,\"N\",\"Y\")))","v":""},{"$f":"IF($B508=\"N\",\"\",IF(LEN('Enrollment Form'!$AD515=0),\"\",IF(LEN('Enrollment Form'!$AD515)<>5,\"N\",\"Y\")))","v":""},{"$f":"IF($B508=\"N\",\"\",IF(LEN('Enrollment Form'!$BS515=0),\"\",IF(LEN('Enrollment Form'!$BS515)<>5,\"N\",\"Y\")))","v":""},{"$f":"IF($B508=\"N\",\"\",IF(LEN('Enrollment Form'!$AE515)=0,\"\",IF(LEN('Enrollment Form'!$AE515)<>10,\"N\",\"Y\")))","v":""},{"$f":"IF($B508=\"N\",\"\",IF(LEN('Enrollment Form'!$AF515)=0,\"\",IF(LEN('Enrollment Form'!$AF515)<>10,\"N\",\"Y\")))","v":""},{"$f":"IF('Enrollment Form'!$O515<>\"Graded\",\"-\",IF(AND('Enrollment Form'!$O515=\"Graded\",'Enrollment Form'!$AR515<>\"\"),\"Y\",\"N\"))","v":"-"},{"$f":"IF($B508=\"N\",\"\",IF(OR('Enrollment Form'!$B515<>\"Subscriber\",'Enrollment Form'!$C515=\"ROC\"),\"-\",IF(AND('Enrollment Form'!$B515=\"Subscriber\",'Enrollment Form'!$C515=\"Enroll\",'Enrollment Form'!$AJ515<>\"\"),\"Y\",\"N\")))","v":""},{"$f":"IF($B508=\"N\",\"\",IF(OR('Enrollment Form'!$B515<>\"Subscriber\",'Enrollment Form'!$C515=\"ROC\"),\"-\",IF(AND('Enrollment Form'!$B515=\"Subscriber\",'Enrollment Form'!$C515=\"Enroll\",'Enrollment Form'!$AK515<>\"\"),\"Y\",\"N\")))","v":""},{"$f":"IF($B508=\"N\",\"\",IF(OR('Enrollment Form'!$B515<>\"Subscriber\",'Enrollment Form'!$C515=\"ROC\"),\"-\",IF(AND('Enrollment Form'!$B515=\"Subscriber\",'Enrollment Form'!$C515=\"Enroll\",'Enrollment Form'!$AL515<>\"\"),\"Y\",\"N\")))","v":""},{"$f":"IF($B508=\"N\",\"\",IF(OR('Enrollment Form'!$B515<>\"Subscriber\",'Enrollment Form'!$C515=\"ROC\"),\"-\",IF(AND('Enrollment Form'!$B515=\"Subscriber\",'Enrollment Form'!$C515=\"Enroll\",'Enrollment Form'!$AP515<>\"\"),\"Y\",\"N\")))","v":""},{"$f":"IF($B508=\"N\",\"\",IF(OR('Enrollment Form'!$B515<>\"Subscriber\",'Enrollment Form'!$C515=\"ROC\"),\"-\",IF(AND('Enrollment Form'!$B515=\"Subscriber\",'Enrollment Form'!$C515=\"Enroll\",'Enrollment Form'!$AQ515<>\"\"),\"Y\",\"N\")))","v":""},{"$f":"IF($B508=\"N\",\"\",IF(OR('Enrollment Form'!$B515<>\"Subscriber\",'Enrollment Form'!$C515=\"ROC\"),\"-\",IF(AND('Enrollment Form'!$B515=\"Subscriber\",'Enrollment Form'!$C515=\"Enroll\",'Enrollment Form'!$AS515<>\"\"),\"Y\",\"N\")))","v":""},{"$f":"IF($B508=\"N\",\"\",IF($Q508=\"-\",\"-\",IF(AND($Q508=\"Y\",'Enrollment Form'!$AS515=\"No\"),\"-\",IF(AND($Q508=\"Y\",'Enrollment Form'!$AS515=\"Yes\",'Enrollment Form'!$AT515<>\"\"),\"Y\",\"N\"))))","v":""},{"$f":"IF($B508=\"N\",\"\",IF(OR('Enrollment Form'!$B515<>\"Subscriber\",'Enrollment Form'!$C515=\"ROC\"),\"-\",IF(AND('Enrollment Form'!$B515=\"Subscriber\",'Enrollment Form'!$C515=\"Enroll\",'Enrollment Form'!$CV515<>\"\"),\"Y\",\"N\")))","v":""},{"$f":"IF($B508=\"N\",\"\",IF($S508=\"-\",\"-\",IF(AND($S508=\"Y\",'Enrollment Form'!$CV515=\"No\"),\"-\",IF(AND($S508=\"Y\",'Enrollment Form'!$CV515=\"Yes\",'Enrollment Form'!$CW515<>\"\"),\"Y\",\"N\"))))","v":""},{"$f":"IF(OR('Enrollment Form'!$AY515=\"Yes\",'Enrollment Form'!$AY515=\"\"),\"-\",IF(OR(AND('Enrollment Form'!$AY515=\"No\",ISERROR(FIND(\"HMO\",VLOOKUP('Enrollment Form'!G515,'Enrollment Form'!H$11:J$1000,3,FALSE),1))=FALSE,COUNTA('Enrollment Form'!$AZ515:$BC515)=4),AND('Enrollment Form'!$AY515=\"No\",ISERROR(FIND(\"HMO\",VLOOKUP('Enrollment Form'!G515,'Enrollment Form'!H$11:J$1000,3,FALSE),1))=FALSE,COUNTA('Enrollment Form'!$BT515:$BW515)=4)),\"Y\",\"N\"))","v":"-"},{"$f":"IF($B508=\"N\",\"\",IF('Enrollment Form'!$B515=\"Subscriber\",\"-\",IF(COUNTA('Enrollment Form'!$BL515,'Enrollment Form'!$BN515)=2,\"Y\",\"N\")))","v":""},{"$f":"IF($B508=\"N\",\"\",IF(OR('Enrollment Form'!$AX515=\"\",'Enrollment Form'!$AX515=\"No\"),\"-\",IF(AND('Enrollment Form'!$AX515=\"Yes\",COUNTA('Enrollment Form'!$CR515)=1),\"Y\",\"N\")))","v":""},{"$f":"IF(OR('Enrollment Form'!$CR515=\"\",'Enrollment Form'!$CR515=\"No\"),\"-\",IF(COUNTA('Enrollment Form'!$CT515:$CU515)=2,\"Y\",\"N\"))","v":"-"},{"$f":"IF($B508=\"N\",\"\",IF(COUNTIF('Enrollment Form'!$DG515:$DP515,\"Other\")=COUNTA('Enrollment Form'!$DK515,'Enrollment Form'!$DH515,'Enrollment Form'!$DN515,'Enrollment Form'!$DQ515),\"Y\",\"N\"))","v":""},{"$f":"IF($B508=\"N\",\"\",IF(OR('Enrollment Form'!B515<>\"Subscriber\",'Enrollment Form'!C515=\"ROC\",COUNTIF('Enrollment Form'!AV515:AW515,\"Yes\")>=1),\"-\",IF(AND('Enrollment Form'!C515=\"Enroll\",COUNTIF('Enrollment Form'!AV515:AW515,\"No\")=2,'Enrollment Form'!AX515=\"\"),\"N\",\"Y\")))","v":""},{"$f":"IF(OR(B508=\"N\",'Enrollment Form'!B515<>\"Subscriber\",'Enrollment Form'!C515=\"ROC\",'Enrollment Form'!O515<>\"Multiple of Salary\"),\"-\",IF(COUNTA('Enrollment Form'!T515:U515)<2,\"N\",\"Y\"))","v":"-"},{"$f":"IF(B508=\"N\",\"\",IF(OR('Enrollment Form'!C515=\"ROC\",'Enrollment Form'!B515<>\"Subscriber\",'Enrollment Form'!O515=\"Waive\",'Enrollment Form'!O515=\"\"),\"-\",IF('Enrollment Form'!P515=\"\",\"N\",\"Y\")))","v":""},{"$f":"IF($B508=\"N\",\"\",IF(AND('Enrollment Form'!$C515=\"ROC\",'Enrollment Form'!$DR515<>\"\"),\"Y\",IF(AND('Enrollment Form'!$C515=\"ROC\",'Enrollment Form'!$DR515=\"\"),\"N\",IF(AND('Enrollment Form'!$C515=\"Enroll\",'Enrollment Form'!$B515=\"Subscriber\",'Enrollment Form'!$CX515=\"No\",'Enrollment Form'!$DR515=\"\"),\"N\",IF(AND('Enrollment Form'!$C515=\"Enroll\",'Enrollment Form'!$B515=\"Subscriber\",'Enrollment Form'!$CX515=\"Yes\"),\"-\",\"Y\")))))","v":""},{"$f":"IF($B508=\"N\",\"\",IF(AND('Enrollment Form'!$C515=\"ROC\",'Enrollment Form'!$DS515<>\"\"),\"Y\",IF(AND('Enrollment Form'!$C515=\"ROC\",'Enrollment Form'!$DS515=\"\"),\"N\",IF(AND('Enrollment Form'!$C515=\"Enroll\",'Enrollment Form'!$B515=\"Subscriber\",'Enrollment Form'!$CX515=\"No\",'Enrollment Form'!$DS515=\"\"),\"N\",IF(AND('Enrollment Form'!$C515=\"Enroll\",'Enrollment Form'!$B515=\"Subscriber\",'Enrollment Form'!$CX515=\"Yes\"),\"-\",\"Y\")))))","v":""},{"$f":"IF('Enrollment Form'!AH515=\"\",\"\",IF(ISERROR(SEARCH(\".\",'Enrollment Form'!AH515,SEARCH(\"@\",'Enrollment Form'!AH515))),\"N\",\"Y\"))","v":""},{"$f":"IF(OR($B508=\"N\",'Enrollment Form'!$G515=\"\"),\"\",IF('Enrollment Form'!$B515<>\"Subscriber\",\"-\",IF(COUNTIF('Enrollment Form'!$AV515:$AW515,\"Yes\")=2,\"N\",\"Y\")))","v":""},{"$f":"IF(OR('Enrollment Form'!$CJ515=\"\",'Enrollment Form'!$CJ515=\"No\"),\"-\",IF(AND('Enrollment Form'!$CJ515=\"Yes\",'Enrollment Form'!$CK515=\"\"),\"N\",\"Y\"))","v":"-"},{"$f":"IF(OR('Enrollment Form'!$CL515=\"\",'Enrollment Form'!$CL515=\"No\"),\"-\",IF(AND('Enrollment Form'!$CL515=\"Yes\",'Enrollment Form'!$CM515=\"\"),\"N\",\"Y\"))","v":"-"},{"$f":"IF(OR('Enrollment Form'!$CN515=\"\",'Enrollment Form'!$CN515=\"No\"),\"-\",IF(AND('Enrollment Form'!$CN515=\"Yes\",'Enrollment Form'!$CO515=\"\"),\"N\",\"Y\"))","v":"-"},{"$f":"IF(OR('Enrollment Form'!$CN515=\"\",'Enrollment Form'!$CN515=\"No\"),\"-\",IF(AND('Enrollment Form'!$CN515=\"Yes\",'Enrollment Form'!$CP515=\"\"),\"N\",\"Y\"))","v":"-"},{"$f":"IF('Enrollment Form'!B515<>\"Subscriber\",\"-\",IF(AND('Enrollment Form'!B515=\"Subscriber\",'Enrollment Form'!C515=\"Enroll\",'Enrollment Form'!AA515=\"\"),\"N\",\"Y\"))","v":"-"},{"$f":"IF(OR('Enrollment Form'!B515=\"Subscriber\",'Enrollment Form'!B515=\"\"),\"-\",IF('Enrollment Form'!BP515=\"\",\"N\",\"Y\"))","v":"-"},{"$f":"IF('Enrollment Form'!B515<>\"Subscriber\",\"-\",IF(AND('Enrollment Form'!B515=\"Subscriber\",'Enrollment Form'!G515=\"\"),\"N\",\"Y\"))","v":"-"},{"$f":"IF('Enrollment Form'!A515=\"\",\"\",IF('Enrollment Form'!B515=\"Subscriber\",\"-\",IF(AND('Enrollment Form'!B515<>\"Subscriber\",'Enrollment Form'!G515='Enrollment Form'!H515),\"N\",\"Y\")))","v":""},0]
[516,{"$f":"IF('Enrollment Form'!$A516<>\"\",\"Y\",\"N\")","v":"N"},{"$f":"IF(AND('Enrollment Form'!$B516=\"\",'Enrollment Form'!$C516<>\"\"),\"N\",IF($B509=\"N\",\"\",\"Y\"))","v":""},{"$f":"IF(OR($B509=\"N\",'Enrollment Form'!G516=\"\"),\"\",IF('Enrollment Form'!$B516<>\"Subscriber\",\"\",IF('Enrollment Form'!$G516='Enrollment Form'!$H516,\"Y\",\"N\")))","v":""},{"$f":"IF($B509=\"N\",\"\",IF(AND(COUNTIFS('Enrollment Form'!$H$11:$H$1000,'Enrollment Form'!$H516,'Enrollment Form'!$B$11:$B$1000,'Enrollment Form'!$B516)>1,'Enrollment Form'!$H516<>\"\"),\"N\",\"Y\"))","v":""},{"$f":"IF($B509=\"N\",\"\",IF(LEN('Enrollment Form'!$Y516)=0,\"\",IF(LEN('Enrollment Form'!$Y516)<>5,\"N\",\"Y\")))","v":""},{"$f":"IF($B509=\"N\",\"\",IF(LEN('Enrollment Form'!$AD516=0),\"\",IF(LEN('Enrollment Form'!$AD516)<>5,\"N\",\"Y\")))","v":""},{"$f":"IF($B509=\"N\",\"\",IF(LEN('Enrollment Form'!$BS516=0),\"\",IF(LEN('Enrollment Form'!$BS516)<>5,\"N\",\"Y\")))","v":""},{"$f":"IF($B509=\"N\",\"\",IF(LEN('Enrollment Form'!$AE516)=0,\"\",IF(LEN('Enrollment Form'!$AE516)<>10,\"N\",\"Y\")))","v":""},{"$f":"IF($B509=\"N\",\"\",IF(LEN('Enrollment Form'!$AF516)=0,\"\",IF(LEN('Enrollment Form'!$AF516)<>10,\"N\",\"Y\")))","v":""},{"$f":"IF('Enrollment Form'!$O516<>\"Graded\",\"-\",IF(AND('Enrollment Form'!$O516=\"Graded\",'Enrollment Form'!$AR516<>\"\"),\"Y\",\"N\"))","v":"-"},{"$f":"IF($B509=\"N\",\"\",IF(OR('Enrollment Form'!$B516<>\"Subscriber\",'Enrollment Form'!$C516=\"ROC\"),\"-\",IF(AND('Enrollment Form'!$B516=\"Subscriber\",'Enrollment Form'!$C516=\"Enroll\",'Enrollment Form'!$AJ516<>\"\"),\"Y\",\"N\")))","v":""},{"$f":"IF($B509=\"N\",\"\",IF(OR('Enrollment Form'!$B516<>\"Subscriber\",'Enrollment Form'!$C516=\"ROC\"),\"-\",IF(AND('Enrollment Form'!$B516=\"Subscriber\",'Enrollment Form'!$C516=\"Enroll\",'Enrollment Form'!$AK516<>\"\"),\"Y\",\"N\")))","v":""},{"$f":"IF($B509=\"N\",\"\",IF(OR('Enrollment Form'!$B516<>\"Subscriber\",'Enrollment Form'!$C516=\"ROC\"),\"-\",IF(AND('Enrollment Form'!$B516=\"Subscriber\",'Enrollment Form'!$C516=\"Enroll\",'Enrollment Form'!$AL516<>\"\"),\"Y\",\"N\")))","v":""},{"$f":"IF($B509=\"N\",\"\",IF(OR('Enrollment Form'!$B516<>\"Subscriber\",'Enrollment Form'!$C516=\"ROC\"),\"-\",IF(AND('Enrollment Form'!$B516=\"Subscriber\",'Enrollment Form'!$C516=\"Enroll\",'Enrollment Form'!$AP516<>\"\"),\"Y\",\"N\")))","v":""},{"$f":"IF($B509=\"N\",\"\",IF(OR('Enrollment Form'!$B516<>\"Subscriber\",'Enrollment Form'!$C516=\"ROC\"),\"-\",IF(AND('Enrollment Form'!$B516=\"Subscriber\",'Enrollment Form'!$C516=\"Enroll\",'Enrollment Form'!$AQ516<>\"\"),\"Y\",\"N\")))","v":""},{"$f":"IF($B509=\"N\",\"\",IF(OR('Enrollment Form'!$B516<>\"Subscriber\",'Enrollment Form'!$C516=\"ROC\"),\"-\",IF(AND('Enrollment Form'!$B516=\"Subscriber\",'Enrollment Form'!$C516=\"Enroll\",'Enrollment Form'!$AS516<>\"\"),\"Y\",\"N\")))","v":""},{"$f":"IF($B509=\"N\",\"\",IF($Q509=\"-\",\"-\",IF(AND($Q509=\"Y\",'Enrollment Form'!$AS516=\"No\"),\"-\",IF(AND($Q509=\"Y\",'Enrollment Form'!$AS516=\"Yes\",'Enrollment Form'!$AT516<>\"\"),\"Y\",\"N\"))))","v":""},{"$f":"IF($B509=\"N\",\"\",IF(OR('Enrollment Form'!$B516<>\"Subscriber\",'Enrollment Form'!$C516=\"ROC\"),\"-\",IF(AND('Enrollment Form'!$B516=\"Subscriber\",'Enrollment Form'!$C516=\"Enroll\",'Enrollment Form'!$CV516<>\"\"),\"Y\",\"N\")))","v":""},{"$f":"IF($B509=\"N\",\"\",IF($S509=\"-\",\"-\",IF(AND($S509=\"Y\",'Enrollment Form'!$CV516=\"No\"),\"-\",IF(AND($S509=\"Y\",'Enrollment Form'!$CV516=\"Yes\",'Enrollment Form'!$CW516<>\"\"),\"Y\",\"N\"))))","v":""},{"$f":"IF(OR('Enrollment Form'!$AY516=\"Yes\",'Enrollment Form'!$AY516=\"\"),\"-\",IF(OR(AND('Enrollment Form'!$AY516=\"No\",ISERROR(FIND(\"HMO\",VLOOKUP('Enrollment Form'!G516,'Enrollment Form'!H$11:J$1000,3,FALSE),1))=FALSE,COUNTA('Enrollment Form'!$AZ516:$BC516)=4),AND('Enrollment Form'!$AY516=\"No\",ISERROR(FIND(\"HMO\",VLOOKUP('Enrollment Form'!G516,'Enrollment Form'!H$11:J$1000,3,FALSE),1))=FALSE,COUNTA('Enrollment Form'!$BT516:$BW516)=4)),\"Y\",\"N\"))","v":"-"},{"$f":"IF($B509=\"N\",\"\",IF('Enrollment Form'!$B516=\"Subscriber\",\"-\",IF(COUNTA('Enrollment Form'!$BL516,'Enrollment Form'!$BN516)=2,\"Y\",\"N\")))","v":""},{"$f":"IF($B509=\"N\",\"\",IF(OR('Enrollment Form'!$AX516=\"\",'Enrollment Form'!$AX516=\"No\"),\"-\",IF(AND('Enrollment Form'!$AX516=\"Yes\",COUNTA('Enrollment Form'!$CR516)=1),\"Y\",\"N\")))","v":""},{"$f":"IF(OR('Enrollment Form'!$CR516=\"\",'Enrollment Form'!$CR516=\"No\"),\"-\",IF(COUNTA('Enrollment Form'!$CT516:$CU516)=2,\"Y\",\"N\"))","v":"-"},{"$f":"IF($B509=\"N\",\"\",IF(COUNTIF('Enrollment Form'!$DG516:$DP516,\"Other\")=COUNTA('Enrollment Form'!$DK516,'Enrollment Form'!$DH516,'Enrollment Form'!$DN516,'Enrollment Form'!$DQ516),\"Y\",\"N\"))","v":""},{"$f":"IF($B509=\"N\",\"\",IF(OR('Enrollment Form'!B516<>\"Subscriber\",'Enrollment Form'!C516=\"ROC\",COUNTIF('Enrollment Form'!AV516:AW516,\"Yes\")>=1),\"-\",IF(AND('Enrollment Form'!C516=\"Enroll\",COUNTIF('Enrollment Form'!AV516:AW516,\"No\")=2,'Enrollment Form'!AX516=\"\"),\"N\",\"Y\")))","v":""},{"$f":"IF(OR(B509=\"N\",'Enrollment Form'!B516<>\"Subscriber\",'Enrollment Form'!C516=\"ROC\",'Enrollment Form'!O516<>\"Multiple of Salary\"),\"-\",IF(COUNTA('Enrollment Form'!T516:U516)<2,\"N\",\"Y\"))","v":"-"},{"$f":"IF(B509=\"N\",\"\",IF(OR('Enrollment Form'!C516=\"ROC\",'Enrollment Form'!B516<>\"Subscriber\",'Enrollment Form'!O516=\"Waive\",'Enrollment Form'!O516=\"\"),\"-\",IF('Enrollment Form'!P516=\"\",\"N\",\"Y\")))","v":""},{"$f":"IF($B509=\"N\",\"\",IF(AND('Enrollment Form'!$C516=\"ROC\",'Enrollment Form'!$DR516<>\"\"),\"Y\",IF(AND('Enrollment Form'!$C516=\"ROC\",'Enrollment Form'!$DR516=\"\"),\"N\",IF(AND('Enrollment Form'!$C516=\"Enroll\",'Enrollment Form'!$B516=\"Subscriber\",'Enrollment Form'!$CX516=\"No\",'Enrollment Form'!$DR516=\"\"),\"N\",IF(AND('Enrollment Form'!$C516=\"Enroll\",'Enrollment Form'!$B516=\"Subscriber\",'Enrollment Form'!$CX516=\"Yes\"),\"-\",\"Y\")))))","v":""},{"$f":"IF($B509=\"N\",\"\",IF(AND('Enrollment Form'!$C516=\"ROC\",'Enrollment Form'!$DS516<>\"\"),\"Y\",IF(AND('Enrollment Form'!$C516=\"ROC\",'Enrollment Form'!$DS516=\"\"),\"N\",IF(AND('Enrollment Form'!$C516=\"Enroll\",'Enrollment Form'!$B516=\"Subscriber\",'Enrollment Form'!$CX516=\"No\",'Enrollment Form'!$DS516=\"\"),\"N\",IF(AND('Enrollment Form'!$C516=\"Enroll\",'Enrollment Form'!$B516=\"Subscriber\",'Enrollment Form'!$CX516=\"Yes\"),\"-\",\"Y\")))))","v":""},{"$f":"IF('Enrollment Form'!AH516=\"\",\"\",IF(ISERROR(SEARCH(\".\",'Enrollment Form'!AH516,SEARCH(\"@\",'Enrollment Form'!AH516))),\"N\",\"Y\"))","v":""},{"$f":"IF(OR($B509=\"N\",'Enrollment Form'!$G516=\"\"),\"\",IF('Enrollment Form'!$B516<>\"Subscriber\",\"-\",IF(COUNTIF('Enrollment Form'!$AV516:$AW516,\"Yes\")=2,\"N\",\"Y\")))","v":""},{"$f":"IF(OR('Enrollment Form'!$CJ516=\"\",'Enrollment Form'!$CJ516=\"No\"),\"-\",IF(AND('Enrollment Form'!$CJ516=\"Yes\",'Enrollment Form'!$CK516=\"\"),\"N\",\"Y\"))","v":"-"},{"$f":"IF(OR('Enrollment Form'!$CL516=\"\",'Enrollment Form'!$CL516=\"No\"),\"-\",IF(AND('Enrollment Form'!$CL516=\"Yes\",'Enrollment Form'!$CM516=\"\"),\"N\",\"Y\"))","v":"-"},{"$f":"IF(OR('Enrollment Form'!$CN516=\"\",'Enrollment Form'!$CN516=\"No\"),\"-\",IF(AND('Enrollment Form'!$CN516=\"Yes\",'Enrollment Form'!$CO516=\"\"),\"N\",\"Y\"))","v":"-"},{"$f":"IF(OR('Enrollment Form'!$CN516=\"\",'Enrollment Form'!$CN516=\"No\"),\"-\",IF(AND('Enrollment Form'!$CN516=\"Yes\",'Enrollment Form'!$CP516=\"\"),\"N\",\"Y\"))","v":"-"},{"$f":"IF('Enrollment Form'!B516<>\"Subscriber\",\"-\",IF(AND('Enrollment Form'!B516=\"Subscriber\",'Enrollment Form'!C516=\"Enroll\",'Enrollment Form'!AA516=\"\"),\"N\",\"Y\"))","v":"-"},{"$f":"IF(OR('Enrollment Form'!B516=\"Subscriber\",'Enrollment Form'!B516=\"\"),\"-\",IF('Enrollment Form'!BP516=\"\",\"N\",\"Y\"))","v":"-"},{"$f":"IF('Enrollment Form'!B516<>\"Subscriber\",\"-\",IF(AND('Enrollment Form'!B516=\"Subscriber\",'Enrollment Form'!G516=\"\"),\"N\",\"Y\"))","v":"-"},{"$f":"IF('Enrollment Form'!A516=\"\",\"\",IF('Enrollment Form'!B516=\"Subscriber\",\"-\",IF(AND('Enrollment Form'!B516<>\"Subscriber\",'Enrollment Form'!G516='Enrollment Form'!H516),\"N\",\"Y\")))","v":""},0]
[517,{"$f":"IF('Enrollment Form'!$A517<>\"\",\"Y\",\"N\")","v":"N"},{"$f":"IF(AND('Enrollment Form'!$B517=\"\",'Enrollment Form'!$C517<>\"\"),\"N\",IF($B510=\"N\",\"\",\"Y\"))","v":""},{"$f":"IF(OR($B510=\"N\",'Enrollment Form'!G517=\"\"),\"\",IF('Enrollment Form'!$B517<>\"Subscriber\",\"\",IF('Enrollment Form'!$G517='Enrollment Form'!$H517,\"Y\",\"N\")))","v":""},{"$f":"IF($B510=\"N\",\"\",IF(AND(COUNTIFS('Enrollment Form'!$H$11:$H$1000,'Enrollment Form'!$H517,'Enrollment Form'!$B$11:$B$1000,'Enrollment Form'!$B517)>1,'Enrollment Form'!$H517<>\"\"),\"N\",\"Y\"))","v":""},{"$f":"IF($B510=\"N\",\"\",IF(LEN('Enrollment Form'!$Y517)=0,\"\",IF(LEN('Enrollment Form'!$Y517)<>5,\"N\",\"Y\")))","v":""},{"$f":"IF($B510=\"N\",\"\",IF(LEN('Enrollment Form'!$AD517=0),\"\",IF(LEN('Enrollment Form'!$AD517)<>5,\"N\",\"Y\")))","v":""},{"$f":"IF($B510=\"N\",\"\",IF(LEN('Enrollment Form'!$BS517=0),\"\",IF(LEN('Enrollment Form'!$BS517)<>5,\"N\",\"Y\")))","v":""},{"$f":"IF($B510=\"N\",\"\",IF(LEN('Enrollment Form'!$AE517)=0,\"\",IF(LEN('Enrollment Form'!$AE517)<>10,\"N\",\"Y\")))","v":""},{"$f":"IF($B510=\"N\",\"\",IF(LEN('Enrollment Form'!$AF517)=0,\"\",IF(LEN('Enrollment Form'!$AF517)<>10,\"N\",\"Y\")))","v":""},{"$f":"IF('Enrollment Form'!$O517<>\"Graded\",\"-\",IF(AND('Enrollment Form'!$O517=\"Graded\",'Enrollment Form'!$AR517<>\"\"),\"Y\",\"N\"))","v":"-"},{"$f":"IF($B510=\"N\",\"\",IF(OR('Enrollment Form'!$B517<>\"Subscriber\",'Enrollment Form'!$C517=\"ROC\"),\"-\",IF(AND('Enrollment Form'!$B517=\"Subscriber\",'Enrollment Form'!$C517=\"Enroll\",'Enrollment Form'!$AJ517<>\"\"),\"Y\",\"N\")))","v":""},{"$f":"IF($B510=\"N\",\"\",IF(OR('Enrollment Form'!$B517<>\"Subscriber\",'Enrollment Form'!$C517=\"ROC\"),\"-\",IF(AND('Enrollment Form'!$B517=\"Subscriber\",'Enrollment Form'!$C517=\"Enroll\",'Enrollment Form'!$AK517<>\"\"),\"Y\",\"N\")))","v":""},{"$f":"IF($B510=\"N\",\"\",IF(OR('Enrollment Form'!$B517<>\"Subscriber\",'Enrollment Form'!$C517=\"ROC\"),\"-\",IF(AND('Enrollment Form'!$B517=\"Subscriber\",'Enrollment Form'!$C517=\"Enroll\",'Enrollment Form'!$AL517<>\"\"),\"Y\",\"N\")))","v":""},{"$f":"IF($B510=\"N\",\"\",IF(OR('Enrollment Form'!$B517<>\"Subscriber\",'Enrollment Form'!$C517=\"ROC\"),\"-\",IF(AND('Enrollment Form'!$B517=\"Subscriber\",'Enrollment Form'!$C517=\"Enroll\",'Enrollment Form'!$AP517<>\"\"),\"Y\",\"N\")))","v":""},{"$f":"IF($B510=\"N\",\"\",IF(OR('Enrollment Form'!$B517<>\"Subscriber\",'Enrollment Form'!$C517=\"ROC\"),\"-\",IF(AND('Enrollment Form'!$B517=\"Subscriber\",'Enrollment Form'!$C517=\"Enroll\",'Enrollment Form'!$AQ517<>\"\"),\"Y\",\"N\")))","v":""},{"$f":"IF($B510=\"N\",\"\",IF(OR('Enrollment Form'!$B517<>\"Subscriber\",'Enrollment Form'!$C517=\"ROC\"),\"-\",IF(AND('Enrollment Form'!$B517=\"Subscriber\",'Enrollment Form'!$C517=\"Enroll\",'Enrollment Form'!$AS517<>\"\"),\"Y\",\"N\")))","v":""},{"$f":"IF($B510=\"N\",\"\",IF($Q510=\"-\",\"-\",IF(AND($Q510=\"Y\",'Enrollment Form'!$AS517=\"No\"),\"-\",IF(AND($Q510=\"Y\",'Enrollment Form'!$AS517=\"Yes\",'Enrollment Form'!$AT517<>\"\"),\"Y\",\"N\"))))","v":""},{"$f":"IF($B510=\"N\",\"\",IF(OR('Enrollment Form'!$B517<>\"Subscriber\",'Enrollment Form'!$C517=\"ROC\"),\"-\",IF(AND('Enrollment Form'!$B517=\"Subscriber\",'Enrollment Form'!$C517=\"Enroll\",'Enrollment Form'!$CV517<>\"\"),\"Y\",\"N\")))","v":""},{"$f":"IF($B510=\"N\",\"\",IF($S510=\"-\",\"-\",IF(AND($S510=\"Y\",'Enrollment Form'!$CV517=\"No\"),\"-\",IF(AND($S510=\"Y\",'Enrollment Form'!$CV517=\"Yes\",'Enrollment Form'!$CW517<>\"\"),\"Y\",\"N\"))))","v":""},{"$f":"IF(OR('Enrollment Form'!$AY517=\"Yes\",'Enrollment Form'!$AY517=\"\"),\"-\",IF(OR(AND('Enrollment Form'!$AY517=\"No\",ISERROR(FIND(\"HMO\",VLOOKUP('Enrollment Form'!G517,'Enrollment Form'!H$11:J$1000,3,FALSE),1))=FALSE,COUNTA('Enrollment Form'!$AZ517:$BC517)=4),AND('Enrollment Form'!$AY517=\"No\",ISERROR(FIND(\"HMO\",VLOOKUP('Enrollment Form'!G517,'Enrollment Form'!H$11:J$1000,3,FALSE),1))=FALSE,COUNTA('Enrollment Form'!$BT517:$BW517)=4)),\"Y\",\"N\"))","v":"-"},{"$f":"IF($B510=\"N\",\"\",IF('Enrollment Form'!$B517=\"Subscriber\",\"-\",IF(COUNTA('Enrollment Form'!$BL517,'Enrollment Form'!$BN517)=2,\"Y\",\"N\")))","v":""},{"$f":"IF($B510=\"N\",\"\",IF(OR('Enrollment Form'!$AX517=\"\",'Enrollment Form'!$AX517=\"No\"),\"-\",IF(AND('Enrollment Form'!$AX517=\"Yes\",COUNTA('Enrollment Form'!$CR517)=1),\"Y\",\"N\")))","v":""},{"$f":"IF(OR('Enrollment Form'!$CR517=\"\",'Enrollment Form'!$CR517=\"No\"),\"-\",IF(COUNTA('Enrollment Form'!$CT517:$CU517)=2,\"Y\",\"N\"))","v":"-"},{"$f":"IF($B510=\"N\",\"\",IF(COUNTIF('Enrollment Form'!$DG517:$DP517,\"Other\")=COUNTA('Enrollment Form'!$DK517,'Enrollment Form'!$DH517,'Enrollment Form'!$DN517,'Enrollment Form'!$DQ517),\"Y\",\"N\"))","v":""},{"$f":"IF($B510=\"N\",\"\",IF(OR('Enrollment Form'!B517<>\"Subscriber\",'Enrollment Form'!C517=\"ROC\",COUNTIF('Enrollment Form'!AV517:AW517,\"Yes\")>=1),\"-\",IF(AND('Enrollment Form'!C517=\"Enroll\",COUNTIF('Enrollment Form'!AV517:AW517,\"No\")=2,'Enrollment Form'!AX517=\"\"),\"N\",\"Y\")))","v":""},{"$f":"IF(OR(B510=\"N\",'Enrollment Form'!B517<>\"Subscriber\",'Enrollment Form'!C517=\"ROC\",'Enrollment Form'!O517<>\"Multiple of Salary\"),\"-\",IF(COUNTA('Enrollment Form'!T517:U517)<2,\"N\",\"Y\"))","v":"-"},{"$f":"IF(B510=\"N\",\"\",IF(OR('Enrollment Form'!C517=\"ROC\",'Enrollment Form'!B517<>\"Subscriber\",'Enrollment Form'!O517=\"Waive\",'Enrollment Form'!O517=\"\"),\"-\",IF('Enrollment Form'!P517=\"\",\"N\",\"Y\")))","v":""},{"$f":"IF($B510=\"N\",\"\",IF(AND('Enrollment Form'!$C517=\"ROC\",'Enrollment Form'!$DR517<>\"\"),\"Y\",IF(AND('Enrollment Form'!$C517=\"ROC\",'Enrollment Form'!$DR517=\"\"),\"N\",IF(AND('Enrollment Form'!$C517=\"Enroll\",'Enrollment Form'!$B517=\"Subscriber\",'Enrollment Form'!$CX517=\"No\",'Enrollment Form'!$DR517=\"\"),\"N\",IF(AND('Enrollment Form'!$C517=\"Enroll\",'Enrollment Form'!$B517=\"Subscriber\",'Enrollment Form'!$CX517=\"Yes\"),\"-\",\"Y\")))))","v":""},{"$f":"IF($B510=\"N\",\"\",IF(AND('Enrollment Form'!$C517=\"ROC\",'Enrollment Form'!$DS517<>\"\"),\"Y\",IF(AND('Enrollment Form'!$C517=\"ROC\",'Enrollment Form'!$DS517=\"\"),\"N\",IF(AND('Enrollment Form'!$C517=\"Enroll\",'Enrollment Form'!$B517=\"Subscriber\",'Enrollment Form'!$CX517=\"No\",'Enrollment Form'!$DS517=\"\"),\"N\",IF(AND('Enrollment Form'!$C517=\"Enroll\",'Enrollment Form'!$B517=\"Subscriber\",'Enrollment Form'!$CX517=\"Yes\"),\"-\",\"Y\")))))","v":""},{"$f":"IF('Enrollment Form'!AH517=\"\",\"\",IF(ISERROR(SEARCH(\".\",'Enrollment Form'!AH517,SEARCH(\"@\",'Enrollment Form'!AH517))),\"N\",\"Y\"))","v":""},{"$f":"IF(OR($B510=\"N\",'Enrollment Form'!$G517=\"\"),\"\",IF('Enrollment Form'!$B517<>\"Subscriber\",\"-\",IF(COUNTIF('Enrollment Form'!$AV517:$AW517,\"Yes\")=2,\"N\",\"Y\")))","v":""},{"$f":"IF(OR('Enrollment Form'!$CJ517=\"\",'Enrollment Form'!$CJ517=\"No\"),\"-\",IF(AND('Enrollment Form'!$CJ517=\"Yes\",'Enrollment Form'!$CK517=\"\"),\"N\",\"Y\"))","v":"-"},{"$f":"IF(OR('Enrollment Form'!$CL517=\"\",'Enrollment Form'!$CL517=\"No\"),\"-\",IF(AND('Enrollment Form'!$CL517=\"Yes\",'Enrollment Form'!$CM517=\"\"),\"N\",\"Y\"))","v":"-"},{"$f":"IF(OR('Enrollment Form'!$CN517=\"\",'Enrollment Form'!$CN517=\"No\"),\"-\",IF(AND('Enrollment Form'!$CN517=\"Yes\",'Enrollment Form'!$CO517=\"\"),\"N\",\"Y\"))","v":"-"},{"$f":"IF(OR('Enrollment Form'!$CN517=\"\",'Enrollment Form'!$CN517=\"No\"),\"-\",IF(AND('Enrollment Form'!$CN517=\"Yes\",'Enrollment Form'!$CP517=\"\"),\"N\",\"Y\"))","v":"-"},{"$f":"IF('Enrollment Form'!B517<>\"Subscriber\",\"-\",IF(AND('Enrollment Form'!B517=\"Subscriber\",'Enrollment Form'!C517=\"Enroll\",'Enrollment Form'!AA517=\"\"),\"N\",\"Y\"))","v":"-"},{"$f":"IF(OR('Enrollment Form'!B517=\"Subscriber\",'Enrollment Form'!B517=\"\"),\"-\",IF('Enrollment Form'!BP517=\"\",\"N\",\"Y\"))","v":"-"},{"$f":"IF('Enrollment Form'!B517<>\"Subscriber\",\"-\",IF(AND('Enrollment Form'!B517=\"Subscriber\",'Enrollment Form'!G517=\"\"),\"N\",\"Y\"))","v":"-"},{"$f":"IF('Enrollment Form'!A517=\"\",\"\",IF('Enrollment Form'!B517=\"Subscriber\",\"-\",IF(AND('Enrollment Form'!B517<>\"Subscriber\",'Enrollment Form'!G517='Enrollment Form'!H517),\"N\",\"Y\")))","v":""},0]
[518,{"$f":"IF('Enrollment Form'!$A518<>\"\",\"Y\",\"N\")","v":"N"},{"$f":"IF(AND('Enrollment Form'!$B518=\"\",'Enrollment Form'!$C518<>\"\"),\"N\",IF($B511=\"N\",\"\",\"Y\"))","v":""},{"$f":"IF(OR($B511=\"N\",'Enrollment Form'!G518=\"\"),\"\",IF('Enrollment Form'!$B518<>\"Subscriber\",\"\",IF('Enrollment Form'!$G518='Enrollment Form'!$H518,\"Y\",\"N\")))","v":""},{"$f":"IF($B511=\"N\",\"\",IF(AND(COUNTIFS('Enrollment Form'!$H$11:$H$1000,'Enrollment Form'!$H518,'Enrollment Form'!$B$11:$B$1000,'Enrollment Form'!$B518)>1,'Enrollment Form'!$H518<>\"\"),\"N\",\"Y\"))","v":""},{"$f":"IF($B511=\"N\",\"\",IF(LEN('Enrollment Form'!$Y518)=0,\"\",IF(LEN('Enrollment Form'!$Y518)<>5,\"N\",\"Y\")))","v":""},{"$f":"IF($B511=\"N\",\"\",IF(LEN('Enrollment Form'!$AD518=0),\"\",IF(LEN('Enrollment Form'!$AD518)<>5,\"N\",\"Y\")))","v":""},{"$f":"IF($B511=\"N\",\"\",IF(LEN('Enrollment Form'!$BS518=0),\"\",IF(LEN('Enrollment Form'!$BS518)<>5,\"N\",\"Y\")))","v":""},{"$f":"IF($B511=\"N\",\"\",IF(LEN('Enrollment Form'!$AE518)=0,\"\",IF(LEN('Enrollment Form'!$AE518)<>10,\"N\",\"Y\")))","v":""},{"$f":"IF($B511=\"N\",\"\",IF(LEN('Enrollment Form'!$AF518)=0,\"\",IF(LEN('Enrollment Form'!$AF518)<>10,\"N\",\"Y\")))","v":""},{"$f":"IF('Enrollment Form'!$O518<>\"Graded\",\"-\",IF(AND('Enrollment Form'!$O518=\"Graded\",'Enrollment Form'!$AR518<>\"\"),\"Y\",\"N\"))","v":"-"},{"$f":"IF($B511=\"N\",\"\",IF(OR('Enrollment Form'!$B518<>\"Subscriber\",'Enrollment Form'!$C518=\"ROC\"),\"-\",IF(AND('Enrollment Form'!$B518=\"Subscriber\",'Enrollment Form'!$C518=\"Enroll\",'Enrollment Form'!$AJ518<>\"\"),\"Y\",\"N\")))","v":""},{"$f":"IF($B511=\"N\",\"\",IF(OR('Enrollment Form'!$B518<>\"Subscriber\",'Enrollment Form'!$C518=\"ROC\"),\"-\",IF(AND('Enrollment Form'!$B518=\"Subscriber\",'Enrollment Form'!$C518=\"Enroll\",'Enrollment Form'!$AK518<>\"\"),\"Y\",\"N\")))","v":""},{"$f":"IF($B511=\"N\",\"\",IF(OR('Enrollment Form'!$B518<>\"Subscriber\",'Enrollment Form'!$C518=\"ROC\"),\"-\",IF(AND('Enrollment Form'!$B518=\"Subscriber\",'Enrollment Form'!$C518=\"Enroll\",'Enrollment Form'!$AL518<>\"\"),\"Y\",\"N\")))","v":""},{"$f":"IF($B511=\"N\",\"\",IF(OR('Enrollment Form'!$B518<>\"Subscriber\",'Enrollment Form'!$C518=\"ROC\"),\"-\",IF(AND('Enrollment Form'!$B518=\"Subscriber\",'Enrollment Form'!$C518=\"Enroll\",'Enrollment Form'!$AP518<>\"\"),\"Y\",\"N\")))","v":""},{"$f":"IF($B511=\"N\",\"\",IF(OR('Enrollment Form'!$B518<>\"Subscriber\",'Enrollment Form'!$C518=\"ROC\"),\"-\",IF(AND('Enrollment Form'!$B518=\"Subscriber\",'Enrollment Form'!$C518=\"Enroll\",'Enrollment Form'!$AQ518<>\"\"),\"Y\",\"N\")))","v":""},{"$f":"IF($B511=\"N\",\"\",IF(OR('Enrollment Form'!$B518<>\"Subscriber\",'Enrollment Form'!$C518=\"ROC\"),\"-\",IF(AND('Enrollment Form'!$B518=\"Subscriber\",'Enrollment Form'!$C518=\"Enroll\",'Enrollment Form'!$AS518<>\"\"),\"Y\",\"N\")))","v":""},{"$f":"IF($B511=\"N\",\"\",IF($Q511=\"-\",\"-\",IF(AND($Q511=\"Y\",'Enrollment Form'!$AS518=\"No\"),\"-\",IF(AND($Q511=\"Y\",'Enrollment Form'!$AS518=\"Yes\",'Enrollment Form'!$AT518<>\"\"),\"Y\",\"N\"))))","v":""},{"$f":"IF($B511=\"N\",\"\",IF(OR('Enrollment Form'!$B518<>\"Subscriber\",'Enrollment Form'!$C518=\"ROC\"),\"-\",IF(AND('Enrollment Form'!$B518=\"Subscriber\",'Enrollment Form'!$C518=\"Enroll\",'Enrollment Form'!$CV518<>\"\"),\"Y\",\"N\")))","v":""},{"$f":"IF($B511=\"N\",\"\",IF($S511=\"-\",\"-\",IF(AND($S511=\"Y\",'Enrollment Form'!$CV518=\"No\"),\"-\",IF(AND($S511=\"Y\",'Enrollment Form'!$CV518=\"Yes\",'Enrollment Form'!$CW518<>\"\"),\"Y\",\"N\"))))","v":""},{"$f":"IF(OR('Enrollment Form'!$AY518=\"Yes\",'Enrollment Form'!$AY518=\"\"),\"-\",IF(OR(AND('Enrollment Form'!$AY518=\"No\",ISERROR(FIND(\"HMO\",VLOOKUP('Enrollment Form'!G518,'Enrollment Form'!H$11:J$1000,3,FALSE),1))=FALSE,COUNTA('Enrollment Form'!$AZ518:$BC518)=4),AND('Enrollment Form'!$AY518=\"No\",ISERROR(FIND(\"HMO\",VLOOKUP('Enrollment Form'!G518,'Enrollment Form'!H$11:J$1000,3,FALSE),1))=FALSE,COUNTA('Enrollment Form'!$BT518:$BW518)=4)),\"Y\",\"N\"))","v":"-"},{"$f":"IF($B511=\"N\",\"\",IF('Enrollment Form'!$B518=\"Subscriber\",\"-\",IF(COUNTA('Enrollment Form'!$BL518,'Enrollment Form'!$BN518)=2,\"Y\",\"N\")))","v":""},{"$f":"IF($B511=\"N\",\"\",IF(OR('Enrollment Form'!$AX518=\"\",'Enrollment Form'!$AX518=\"No\"),\"-\",IF(AND('Enrollment Form'!$AX518=\"Yes\",COUNTA('Enrollment Form'!$CR518)=1),\"Y\",\"N\")))","v":""},{"$f":"IF(OR('Enrollment Form'!$CR518=\"\",'Enrollment Form'!$CR518=\"No\"),\"-\",IF(COUNTA('Enrollment Form'!$CT518:$CU518)=2,\"Y\",\"N\"))","v":"-"},{"$f":"IF($B511=\"N\",\"\",IF(COUNTIF('Enrollment Form'!$DG518:$DP518,\"Other\")=COUNTA('Enrollment Form'!$DK518,'Enrollment Form'!$DH518,'Enrollment Form'!$DN518,'Enrollment Form'!$DQ518),\"Y\",\"N\"))","v":""},{"$f":"IF($B511=\"N\",\"\",IF(OR('Enrollment Form'!B518<>\"Subscriber\",'Enrollment Form'!C518=\"ROC\",COUNTIF('Enrollment Form'!AV518:AW518,\"Yes\")>=1),\"-\",IF(AND('Enrollment Form'!C518=\"Enroll\",COUNTIF('Enrollment Form'!AV518:AW518,\"No\")=2,'Enrollment Form'!AX518=\"\"),\"N\",\"Y\")))","v":""},{"$f":"IF(OR(B511=\"N\",'Enrollment Form'!B518<>\"Subscriber\",'Enrollment Form'!C518=\"ROC\",'Enrollment Form'!O518<>\"Multiple of Salary\"),\"-\",IF(COUNTA('Enrollment Form'!T518:U518)<2,\"N\",\"Y\"))","v":"-"},{"$f":"IF(B511=\"N\",\"\",IF(OR('Enrollment Form'!C518=\"ROC\",'Enrollment Form'!B518<>\"Subscriber\",'Enrollment Form'!O518=\"Waive\",'Enrollment Form'!O518=\"\"),\"-\",IF('Enrollment Form'!P518=\"\",\"N\",\"Y\")))","v":""},{"$f":"IF($B511=\"N\",\"\",IF(AND('Enrollment Form'!$C518=\"ROC\",'Enrollment Form'!$DR518<>\"\"),\"Y\",IF(AND('Enrollment Form'!$C518=\"ROC\",'Enrollment Form'!$DR518=\"\"),\"N\",IF(AND('Enrollment Form'!$C518=\"Enroll\",'Enrollment Form'!$B518=\"Subscriber\",'Enrollment Form'!$CX518=\"No\",'Enrollment Form'!$DR518=\"\"),\"N\",IF(AND('Enrollment Form'!$C518=\"Enroll\",'Enrollment Form'!$B518=\"Subscriber\",'Enrollment Form'!$CX518=\"Yes\"),\"-\",\"Y\")))))","v":""},{"$f":"IF($B511=\"N\",\"\",IF(AND('Enrollment Form'!$C518=\"ROC\",'Enrollment Form'!$DS518<>\"\"),\"Y\",IF(AND('Enrollment Form'!$C518=\"ROC\",'Enrollment Form'!$DS518=\"\"),\"N\",IF(AND('Enrollment Form'!$C518=\"Enroll\",'Enrollment Form'!$B518=\"Subscriber\",'Enrollment Form'!$CX518=\"No\",'Enrollment Form'!$DS518=\"\"),\"N\",IF(AND('Enrollment Form'!$C518=\"Enroll\",'Enrollment Form'!$B518=\"Subscriber\",'Enrollment Form'!$CX518=\"Yes\"),\"-\",\"Y\")))))","v":""},{"$f":"IF('Enrollment Form'!AH518=\"\",\"\",IF(ISERROR(SEARCH(\".\",'Enrollment Form'!AH518,SEARCH(\"@\",'Enrollment Form'!AH518))),\"N\",\"Y\"))","v":""},{"$f":"IF(OR($B511=\"N\",'Enrollment Form'!$G518=\"\"),\"\",IF('Enrollment Form'!$B518<>\"Subscriber\",\"-\",IF(COUNTIF('Enrollment Form'!$AV518:$AW518,\"Yes\")=2,\"N\",\"Y\")))","v":""},{"$f":"IF(OR('Enrollment Form'!$CJ518=\"\",'Enrollment Form'!$CJ518=\"No\"),\"-\",IF(AND('Enrollment Form'!$CJ518=\"Yes\",'Enrollment Form'!$CK518=\"\"),\"N\",\"Y\"))","v":"-"},{"$f":"IF(OR('Enrollment Form'!$CL518=\"\",'Enrollment Form'!$CL518=\"No\"),\"-\",IF(AND('Enrollment Form'!$CL518=\"Yes\",'Enrollment Form'!$CM518=\"\"),\"N\",\"Y\"))","v":"-"},{"$f":"IF(OR('Enrollment Form'!$CN518=\"\",'Enrollment Form'!$CN518=\"No\"),\"-\",IF(AND('Enrollment Form'!$CN518=\"Yes\",'Enrollment Form'!$CO518=\"\"),\"N\",\"Y\"))","v":"-"},{"$f":"IF(OR('Enrollment Form'!$CN518=\"\",'Enrollment Form'!$CN518=\"No\"),\"-\",IF(AND('Enrollment Form'!$CN518=\"Yes\",'Enrollment Form'!$CP518=\"\"),\"N\",\"Y\"))","v":"-"},{"$f":"IF('Enrollment Form'!B518<>\"Subscriber\",\"-\",IF(AND('Enrollment Form'!B518=\"Subscriber\",'Enrollment Form'!C518=\"Enroll\",'Enrollment Form'!AA518=\"\"),\"N\",\"Y\"))","v":"-"},{"$f":"IF(OR('Enrollment Form'!B518=\"Subscriber\",'Enrollment Form'!B518=\"\"),\"-\",IF('Enrollment Form'!BP518=\"\",\"N\",\"Y\"))","v":"-"},{"$f":"IF('Enrollment Form'!B518<>\"Subscriber\",\"-\",IF(AND('Enrollment Form'!B518=\"Subscriber\",'Enrollment Form'!G518=\"\"),\"N\",\"Y\"))","v":"-"},{"$f":"IF('Enrollment Form'!A518=\"\",\"\",IF('Enrollment Form'!B518=\"Subscriber\",\"-\",IF(AND('Enrollment Form'!B518<>\"Subscriber\",'Enrollment Form'!G518='Enrollment Form'!H518),\"N\",\"Y\")))","v":""},0]
[519,{"$f":"IF('Enrollment Form'!$A519<>\"\",\"Y\",\"N\")","v":"N"},{"$f":"IF(AND('Enrollment Form'!$B519=\"\",'Enrollment Form'!$C519<>\"\"),\"N\",IF($B512=\"N\",\"\",\"Y\"))","v":""},{"$f":"IF(OR($B512=\"N\",'Enrollment Form'!G519=\"\"),\"\",IF('Enrollment Form'!$B519<>\"Subscriber\",\"\",IF('Enrollment Form'!$G519='Enrollment Form'!$H519,\"Y\",\"N\")))","v":""},{"$f":"IF($B512=\"N\",\"\",IF(AND(COUNTIFS('Enrollment Form'!$H$11:$H$1000,'Enrollment Form'!$H519,'Enrollment Form'!$B$11:$B$1000,'Enrollment Form'!$B519)>1,'Enrollment Form'!$H519<>\"\"),\"N\",\"Y\"))","v":""},{"$f":"IF($B512=\"N\",\"\",IF(LEN('Enrollment Form'!$Y519)=0,\"\",IF(LEN('Enrollment Form'!$Y519)<>5,\"N\",\"Y\")))","v":""},{"$f":"IF($B512=\"N\",\"\",IF(LEN('Enrollment Form'!$AD519=0),\"\",IF(LEN('Enrollment Form'!$AD519)<>5,\"N\",\"Y\")))","v":""},{"$f":"IF($B512=\"N\",\"\",IF(LEN('Enrollment Form'!$BS519=0),\"\",IF(LEN('Enrollment Form'!$BS519)<>5,\"N\",\"Y\")))","v":""},{"$f":"IF($B512=\"N\",\"\",IF(LEN('Enrollment Form'!$AE519)=0,\"\",IF(LEN('Enrollment Form'!$AE519)<>10,\"N\",\"Y\")))","v":""},{"$f":"IF($B512=\"N\",\"\",IF(LEN('Enrollment Form'!$AF519)=0,\"\",IF(LEN('Enrollment Form'!$AF519)<>10,\"N\",\"Y\")))","v":""},{"$f":"IF('Enrollment Form'!$O519<>\"Graded\",\"-\",IF(AND('Enrollment Form'!$O519=\"Graded\",'Enrollment Form'!$AR519<>\"\"),\"Y\",\"N\"))","v":"-"},{"$f":"IF($B512=\"N\",\"\",IF(OR('Enrollment Form'!$B519<>\"Subscriber\",'Enrollment Form'!$C519=\"ROC\"),\"-\",IF(AND('Enrollment Form'!$B519=\"Subscriber\",'Enrollment Form'!$C519=\"Enroll\",'Enrollment Form'!$AJ519<>\"\"),\"Y\",\"N\")))","v":""},{"$f":"IF($B512=\"N\",\"\",IF(OR('Enrollment Form'!$B519<>\"Subscriber\",'Enrollment Form'!$C519=\"ROC\"),\"-\",IF(AND('Enrollment Form'!$B519=\"Subscriber\",'Enrollment Form'!$C519=\"Enroll\",'Enrollment Form'!$AK519<>\"\"),\"Y\",\"N\")))","v":""},{"$f":"IF($B512=\"N\",\"\",IF(OR('Enrollment Form'!$B519<>\"Subscriber\",'Enrollment Form'!$C519=\"ROC\"),\"-\",IF(AND('Enrollment Form'!$B519=\"Subscriber\",'Enrollment Form'!$C519=\"Enroll\",'Enrollment Form'!$AL519<>\"\"),\"Y\",\"N\")))","v":""},{"$f":"IF($B512=\"N\",\"\",IF(OR('Enrollment Form'!$B519<>\"Subscriber\",'Enrollment Form'!$C519=\"ROC\"),\"-\",IF(AND('Enrollment Form'!$B519=\"Subscriber\",'Enrollment Form'!$C519=\"Enroll\",'Enrollment Form'!$AP519<>\"\"),\"Y\",\"N\")))","v":""},{"$f":"IF($B512=\"N\",\"\",IF(OR('Enrollment Form'!$B519<>\"Subscriber\",'Enrollment Form'!$C519=\"ROC\"),\"-\",IF(AND('Enrollment Form'!$B519=\"Subscriber\",'Enrollment Form'!$C519=\"Enroll\",'Enrollment Form'!$AQ519<>\"\"),\"Y\",\"N\")))","v":""},{"$f":"IF($B512=\"N\",\"\",IF(OR('Enrollment Form'!$B519<>\"Subscriber\",'Enrollment Form'!$C519=\"ROC\"),\"-\",IF(AND('Enrollment Form'!$B519=\"Subscriber\",'Enrollment Form'!$C519=\"Enroll\",'Enrollment Form'!$AS519<>\"\"),\"Y\",\"N\")))","v":""},{"$f":"IF($B512=\"N\",\"\",IF($Q512=\"-\",\"-\",IF(AND($Q512=\"Y\",'Enrollment Form'!$AS519=\"No\"),\"-\",IF(AND($Q512=\"Y\",'Enrollment Form'!$AS519=\"Yes\",'Enrollment Form'!$AT519<>\"\"),\"Y\",\"N\"))))","v":""},{"$f":"IF($B512=\"N\",\"\",IF(OR('Enrollment Form'!$B519<>\"Subscriber\",'Enrollment Form'!$C519=\"ROC\"),\"-\",IF(AND('Enrollment Form'!$B519=\"Subscriber\",'Enrollment Form'!$C519=\"Enroll\",'Enrollment Form'!$CV519<>\"\"),\"Y\",\"N\")))","v":""},{"$f":"IF($B512=\"N\",\"\",IF($S512=\"-\",\"-\",IF(AND($S512=\"Y\",'Enrollment Form'!$CV519=\"No\"),\"-\",IF(AND($S512=\"Y\",'Enrollment Form'!$CV519=\"Yes\",'Enrollment Form'!$CW519<>\"\"),\"Y\",\"N\"))))","v":""},{"$f":"IF(OR('Enrollment Form'!$AY519=\"Yes\",'Enrollment Form'!$AY519=\"\"),\"-\",IF(OR(AND('Enrollment Form'!$AY519=\"No\",ISERROR(FIND(\"HMO\",VLOOKUP('Enrollment Form'!G519,'Enrollment Form'!H$11:J$1000,3,FALSE),1))=FALSE,COUNTA('Enrollment Form'!$AZ519:$BC519)=4),AND('Enrollment Form'!$AY519=\"No\",ISERROR(FIND(\"HMO\",VLOOKUP('Enrollment Form'!G519,'Enrollment Form'!H$11:J$1000,3,FALSE),1))=FALSE,COUNTA('Enrollment Form'!$BT519:$BW519)=4)),\"Y\",\"N\"))","v":"-"},{"$f":"IF($B512=\"N\",\"\",IF('Enrollment Form'!$B519=\"Subscriber\",\"-\",IF(COUNTA('Enrollment Form'!$BL519,'Enrollment Form'!$BN519)=2,\"Y\",\"N\")))","v":""},{"$f":"IF($B512=\"N\",\"\",IF(OR('Enrollment Form'!$AX519=\"\",'Enrollment Form'!$AX519=\"No\"),\"-\",IF(AND('Enrollment Form'!$AX519=\"Yes\",COUNTA('Enrollment Form'!$CR519)=1),\"Y\",\"N\")))","v":""},{"$f":"IF(OR('Enrollment Form'!$CR519=\"\",'Enrollment Form'!$CR519=\"No\"),\"-\",IF(COUNTA('Enrollment Form'!$CT519:$CU519)=2,\"Y\",\"N\"))","v":"-"},{"$f":"IF($B512=\"N\",\"\",IF(COUNTIF('Enrollment Form'!$DG519:$DP519,\"Other\")=COUNTA('Enrollment Form'!$DK519,'Enrollment Form'!$DH519,'Enrollment Form'!$DN519,'Enrollment Form'!$DQ519),\"Y\",\"N\"))","v":""},{"$f":"IF($B512=\"N\",\"\",IF(OR('Enrollment Form'!B519<>\"Subscriber\",'Enrollment Form'!C519=\"ROC\",COUNTIF('Enrollment Form'!AV519:AW519,\"Yes\")>=1),\"-\",IF(AND('Enrollment Form'!C519=\"Enroll\",COUNTIF('Enrollment Form'!AV519:AW519,\"No\")=2,'Enrollment Form'!AX519=\"\"),\"N\",\"Y\")))","v":""},{"$f":"IF(OR(B512=\"N\",'Enrollment Form'!B519<>\"Subscriber\",'Enrollment Form'!C519=\"ROC\",'Enrollment Form'!O519<>\"Multiple of Salary\"),\"-\",IF(COUNTA('Enrollment Form'!T519:U519)<2,\"N\",\"Y\"))","v":"-"},{"$f":"IF(B512=\"N\",\"\",IF(OR('Enrollment Form'!C519=\"ROC\",'Enrollment Form'!B519<>\"Subscriber\",'Enrollment Form'!O519=\"Waive\",'Enrollment Form'!O519=\"\"),\"-\",IF('Enrollment Form'!P519=\"\",\"N\",\"Y\")))","v":""},{"$f":"IF($B512=\"N\",\"\",IF(AND('Enrollment Form'!$C519=\"ROC\",'Enrollment Form'!$DR519<>\"\"),\"Y\",IF(AND('Enrollment Form'!$C519=\"ROC\",'Enrollment Form'!$DR519=\"\"),\"N\",IF(AND('Enrollment Form'!$C519=\"Enroll\",'Enrollment Form'!$B519=\"Subscriber\",'Enrollment Form'!$CX519=\"No\",'Enrollment Form'!$DR519=\"\"),\"N\",IF(AND('Enrollment Form'!$C519=\"Enroll\",'Enrollment Form'!$B519=\"Subscriber\",'Enrollment Form'!$CX519=\"Yes\"),\"-\",\"Y\")))))","v":""},{"$f":"IF($B512=\"N\",\"\",IF(AND('Enrollment Form'!$C519=\"ROC\",'Enrollment Form'!$DS519<>\"\"),\"Y\",IF(AND('Enrollment Form'!$C519=\"ROC\",'Enrollment Form'!$DS519=\"\"),\"N\",IF(AND('Enrollment Form'!$C519=\"Enroll\",'Enrollment Form'!$B519=\"Subscriber\",'Enrollment Form'!$CX519=\"No\",'Enrollment Form'!$DS519=\"\"),\"N\",IF(AND('Enrollment Form'!$C519=\"Enroll\",'Enrollment Form'!$B519=\"Subscriber\",'Enrollment Form'!$CX519=\"Yes\"),\"-\",\"Y\")))))","v":""},{"$f":"IF('Enrollment Form'!AH519=\"\",\"\",IF(ISERROR(SEARCH(\".\",'Enrollment Form'!AH519,SEARCH(\"@\",'Enrollment Form'!AH519))),\"N\",\"Y\"))","v":""},{"$f":"IF(OR($B512=\"N\",'Enrollment Form'!$G519=\"\"),\"\",IF('Enrollment Form'!$B519<>\"Subscriber\",\"-\",IF(COUNTIF('Enrollment Form'!$AV519:$AW519,\"Yes\")=2,\"N\",\"Y\")))","v":""},{"$f":"IF(OR('Enrollment Form'!$CJ519=\"\",'Enrollment Form'!$CJ519=\"No\"),\"-\",IF(AND('Enrollment Form'!$CJ519=\"Yes\",'Enrollment Form'!$CK519=\"\"),\"N\",\"Y\"))","v":"-"},{"$f":"IF(OR('Enrollment Form'!$CL519=\"\",'Enrollment Form'!$CL519=\"No\"),\"-\",IF(AND('Enrollment Form'!$CL519=\"Yes\",'Enrollment Form'!$CM519=\"\"),\"N\",\"Y\"))","v":"-"},{"$f":"IF(OR('Enrollment Form'!$CN519=\"\",'Enrollment Form'!$CN519=\"No\"),\"-\",IF(AND('Enrollment Form'!$CN519=\"Yes\",'Enrollment Form'!$CO519=\"\"),\"N\",\"Y\"))","v":"-"},{"$f":"IF(OR('Enrollment Form'!$CN519=\"\",'Enrollment Form'!$CN519=\"No\"),\"-\",IF(AND('Enrollment Form'!$CN519=\"Yes\",'Enrollment Form'!$CP519=\"\"),\"N\",\"Y\"))","v":"-"},{"$f":"IF('Enrollment Form'!B519<>\"Subscriber\",\"-\",IF(AND('Enrollment Form'!B519=\"Subscriber\",'Enrollment Form'!C519=\"Enroll\",'Enrollment Form'!AA519=\"\"),\"N\",\"Y\"))","v":"-"},{"$f":"IF(OR('Enrollment Form'!B519=\"Subscriber\",'Enrollment Form'!B519=\"\"),\"-\",IF('Enrollment Form'!BP519=\"\",\"N\",\"Y\"))","v":"-"},{"$f":"IF('Enrollment Form'!B519<>\"Subscriber\",\"-\",IF(AND('Enrollment Form'!B519=\"Subscriber\",'Enrollment Form'!G519=\"\"),\"N\",\"Y\"))","v":"-"},{"$f":"IF('Enrollment Form'!A519=\"\",\"\",IF('Enrollment Form'!B519=\"Subscriber\",\"-\",IF(AND('Enrollment Form'!B519<>\"Subscriber\",'Enrollment Form'!G519='Enrollment Form'!H519),\"N\",\"Y\")))","v":""},0]
[520,{"$f":"IF('Enrollment Form'!$A520<>\"\",\"Y\",\"N\")","v":"N"},{"$f":"IF(AND('Enrollment Form'!$B520=\"\",'Enrollment Form'!$C520<>\"\"),\"N\",IF($B513=\"N\",\"\",\"Y\"))","v":""},{"$f":"IF(OR($B513=\"N\",'Enrollment Form'!G520=\"\"),\"\",IF('Enrollment Form'!$B520<>\"Subscriber\",\"\",IF('Enrollment Form'!$G520='Enrollment Form'!$H520,\"Y\",\"N\")))","v":""},{"$f":"IF($B513=\"N\",\"\",IF(AND(COUNTIFS('Enrollment Form'!$H$11:$H$1000,'Enrollment Form'!$H520,'Enrollment Form'!$B$11:$B$1000,'Enrollment Form'!$B520)>1,'Enrollment Form'!$H520<>\"\"),\"N\",\"Y\"))","v":""},{"$f":"IF($B513=\"N\",\"\",IF(LEN('Enrollment Form'!$Y520)=0,\"\",IF(LEN('Enrollment Form'!$Y520)<>5,\"N\",\"Y\")))","v":""},{"$f":"IF($B513=\"N\",\"\",IF(LEN('Enrollment Form'!$AD520=0),\"\",IF(LEN('Enrollment Form'!$AD520)<>5,\"N\",\"Y\")))","v":""},{"$f":"IF($B513=\"N\",\"\",IF(LEN('Enrollment Form'!$BS520=0),\"\",IF(LEN('Enrollment Form'!$BS520)<>5,\"N\",\"Y\")))","v":""},{"$f":"IF($B513=\"N\",\"\",IF(LEN('Enrollment Form'!$AE520)=0,\"\",IF(LEN('Enrollment Form'!$AE520)<>10,\"N\",\"Y\")))","v":""},{"$f":"IF($B513=\"N\",\"\",IF(LEN('Enrollment Form'!$AF520)=0,\"\",IF(LEN('Enrollment Form'!$AF520)<>10,\"N\",\"Y\")))","v":""},{"$f":"IF('Enrollment Form'!$O520<>\"Graded\",\"-\",IF(AND('Enrollment Form'!$O520=\"Graded\",'Enrollment Form'!$AR520<>\"\"),\"Y\",\"N\"))","v":"-"},{"$f":"IF($B513=\"N\",\"\",IF(OR('Enrollment Form'!$B520<>\"Subscriber\",'Enrollment Form'!$C520=\"ROC\"),\"-\",IF(AND('Enrollment Form'!$B520=\"Subscriber\",'Enrollment Form'!$C520=\"Enroll\",'Enrollment Form'!$AJ520<>\"\"),\"Y\",\"N\")))","v":""},{"$f":"IF($B513=\"N\",\"\",IF(OR('Enrollment Form'!$B520<>\"Subscriber\",'Enrollment Form'!$C520=\"ROC\"),\"-\",IF(AND('Enrollment Form'!$B520=\"Subscriber\",'Enrollment Form'!$C520=\"Enroll\",'Enrollment Form'!$AK520<>\"\"),\"Y\",\"N\")))","v":""},{"$f":"IF($B513=\"N\",\"\",IF(OR('Enrollment Form'!$B520<>\"Subscriber\",'Enrollment Form'!$C520=\"ROC\"),\"-\",IF(AND('Enrollment Form'!$B520=\"Subscriber\",'Enrollment Form'!$C520=\"Enroll\",'Enrollment Form'!$AL520<>\"\"),\"Y\",\"N\")))","v":""},{"$f":"IF($B513=\"N\",\"\",IF(OR('Enrollment Form'!$B520<>\"Subscriber\",'Enrollment Form'!$C520=\"ROC\"),\"-\",IF(AND('Enrollment Form'!$B520=\"Subscriber\",'Enrollment Form'!$C520=\"Enroll\",'Enrollment Form'!$AP520<>\"\"),\"Y\",\"N\")))","v":""},{"$f":"IF($B513=\"N\",\"\",IF(OR('Enrollment Form'!$B520<>\"Subscriber\",'Enrollment Form'!$C520=\"ROC\"),\"-\",IF(AND('Enrollment Form'!$B520=\"Subscriber\",'Enrollment Form'!$C520=\"Enroll\",'Enrollment Form'!$AQ520<>\"\"),\"Y\",\"N\")))","v":""},{"$f":"IF($B513=\"N\",\"\",IF(OR('Enrollment Form'!$B520<>\"Subscriber\",'Enrollment Form'!$C520=\"ROC\"),\"-\",IF(AND('Enrollment Form'!$B520=\"Subscriber\",'Enrollment Form'!$C520=\"Enroll\",'Enrollment Form'!$AS520<>\"\"),\"Y\",\"N\")))","v":""},{"$f":"IF($B513=\"N\",\"\",IF($Q513=\"-\",\"-\",IF(AND($Q513=\"Y\",'Enrollment Form'!$AS520=\"No\"),\"-\",IF(AND($Q513=\"Y\",'Enrollment Form'!$AS520=\"Yes\",'Enrollment Form'!$AT520<>\"\"),\"Y\",\"N\"))))","v":""},{"$f":"IF($B513=\"N\",\"\",IF(OR('Enrollment Form'!$B520<>\"Subscriber\",'Enrollment Form'!$C520=\"ROC\"),\"-\",IF(AND('Enrollment Form'!$B520=\"Subscriber\",'Enrollment Form'!$C520=\"Enroll\",'Enrollment Form'!$CV520<>\"\"),\"Y\",\"N\")))","v":""},{"$f":"IF($B513=\"N\",\"\",IF($S513=\"-\",\"-\",IF(AND($S513=\"Y\",'Enrollment Form'!$CV520=\"No\"),\"-\",IF(AND($S513=\"Y\",'Enrollment Form'!$CV520=\"Yes\",'Enrollment Form'!$CW520<>\"\"),\"Y\",\"N\"))))","v":""},{"$f":"IF(OR('Enrollment Form'!$AY520=\"Yes\",'Enrollment Form'!$AY520=\"\"),\"-\",IF(OR(AND('Enrollment Form'!$AY520=\"No\",ISERROR(FIND(\"HMO\",VLOOKUP('Enrollment Form'!G520,'Enrollment Form'!H$11:J$1000,3,FALSE),1))=FALSE,COUNTA('Enrollment Form'!$AZ520:$BC520)=4),AND('Enrollment Form'!$AY520=\"No\",ISERROR(FIND(\"HMO\",VLOOKUP('Enrollment Form'!G520,'Enrollment Form'!H$11:J$1000,3,FALSE),1))=FALSE,COUNTA('Enrollment Form'!$BT520:$BW520)=4)),\"Y\",\"N\"))","v":"-"},{"$f":"IF($B513=\"N\",\"\",IF('Enrollment Form'!$B520=\"Subscriber\",\"-\",IF(COUNTA('Enrollment Form'!$BL520,'Enrollment Form'!$BN520)=2,\"Y\",\"N\")))","v":""},{"$f":"IF($B513=\"N\",\"\",IF(OR('Enrollment Form'!$AX520=\"\",'Enrollment Form'!$AX520=\"No\"),\"-\",IF(AND('Enrollment Form'!$AX520=\"Yes\",COUNTA('Enrollment Form'!$CR520)=1),\"Y\",\"N\")))","v":""},{"$f":"IF(OR('Enrollment Form'!$CR520=\"\",'Enrollment Form'!$CR520=\"No\"),\"-\",IF(COUNTA('Enrollment Form'!$CT520:$CU520)=2,\"Y\",\"N\"))","v":"-"},{"$f":"IF($B513=\"N\",\"\",IF(COUNTIF('Enrollment Form'!$DG520:$DP520,\"Other\")=COUNTA('Enrollment Form'!$DK520,'Enrollment Form'!$DH520,'Enrollment Form'!$DN520,'Enrollment Form'!$DQ520),\"Y\",\"N\"))","v":""},{"$f":"IF($B513=\"N\",\"\",IF(OR('Enrollment Form'!B520<>\"Subscriber\",'Enrollment Form'!C520=\"ROC\",COUNTIF('Enrollment Form'!AV520:AW520,\"Yes\")>=1),\"-\",IF(AND('Enrollment Form'!C520=\"Enroll\",COUNTIF('Enrollment Form'!AV520:AW520,\"No\")=2,'Enrollment Form'!AX520=\"\"),\"N\",\"Y\")))","v":""},{"$f":"IF(OR(B513=\"N\",'Enrollment Form'!B520<>\"Subscriber\",'Enrollment Form'!C520=\"ROC\",'Enrollment Form'!O520<>\"Multiple of Salary\"),\"-\",IF(COUNTA('Enrollment Form'!T520:U520)<2,\"N\",\"Y\"))","v":"-"},{"$f":"IF(B513=\"N\",\"\",IF(OR('Enrollment Form'!C520=\"ROC\",'Enrollment Form'!B520<>\"Subscriber\",'Enrollment Form'!O520=\"Waive\",'Enrollment Form'!O520=\"\"),\"-\",IF('Enrollment Form'!P520=\"\",\"N\",\"Y\")))","v":""},{"$f":"IF($B513=\"N\",\"\",IF(AND('Enrollment Form'!$C520=\"ROC\",'Enrollment Form'!$DR520<>\"\"),\"Y\",IF(AND('Enrollment Form'!$C520=\"ROC\",'Enrollment Form'!$DR520=\"\"),\"N\",IF(AND('Enrollment Form'!$C520=\"Enroll\",'Enrollment Form'!$B520=\"Subscriber\",'Enrollment Form'!$CX520=\"No\",'Enrollment Form'!$DR520=\"\"),\"N\",IF(AND('Enrollment Form'!$C520=\"Enroll\",'Enrollment Form'!$B520=\"Subscriber\",'Enrollment Form'!$CX520=\"Yes\"),\"-\",\"Y\")))))","v":""},{"$f":"IF($B513=\"N\",\"\",IF(AND('Enrollment Form'!$C520=\"ROC\",'Enrollment Form'!$DS520<>\"\"),\"Y\",IF(AND('Enrollment Form'!$C520=\"ROC\",'Enrollment Form'!$DS520=\"\"),\"N\",IF(AND('Enrollment Form'!$C520=\"Enroll\",'Enrollment Form'!$B520=\"Subscriber\",'Enrollment Form'!$CX520=\"No\",'Enrollment Form'!$DS520=\"\"),\"N\",IF(AND('Enrollment Form'!$C520=\"Enroll\",'Enrollment Form'!$B520=\"Subscriber\",'Enrollment Form'!$CX520=\"Yes\"),\"-\",\"Y\")))))","v":""},{"$f":"IF('Enrollment Form'!AH520=\"\",\"\",IF(ISERROR(SEARCH(\".\",'Enrollment Form'!AH520,SEARCH(\"@\",'Enrollment Form'!AH520))),\"N\",\"Y\"))","v":""},{"$f":"IF(OR($B513=\"N\",'Enrollment Form'!$G520=\"\"),\"\",IF('Enrollment Form'!$B520<>\"Subscriber\",\"-\",IF(COUNTIF('Enrollment Form'!$AV520:$AW520,\"Yes\")=2,\"N\",\"Y\")))","v":""},{"$f":"IF(OR('Enrollment Form'!$CJ520=\"\",'Enrollment Form'!$CJ520=\"No\"),\"-\",IF(AND('Enrollment Form'!$CJ520=\"Yes\",'Enrollment Form'!$CK520=\"\"),\"N\",\"Y\"))","v":"-"},{"$f":"IF(OR('Enrollment Form'!$CL520=\"\",'Enrollment Form'!$CL520=\"No\"),\"-\",IF(AND('Enrollment Form'!$CL520=\"Yes\",'Enrollment Form'!$CM520=\"\"),\"N\",\"Y\"))","v":"-"},{"$f":"IF(OR('Enrollment Form'!$CN520=\"\",'Enrollment Form'!$CN520=\"No\"),\"-\",IF(AND('Enrollment Form'!$CN520=\"Yes\",'Enrollment Form'!$CO520=\"\"),\"N\",\"Y\"))","v":"-"},{"$f":"IF(OR('Enrollment Form'!$CN520=\"\",'Enrollment Form'!$CN520=\"No\"),\"-\",IF(AND('Enrollment Form'!$CN520=\"Yes\",'Enrollment Form'!$CP520=\"\"),\"N\",\"Y\"))","v":"-"},{"$f":"IF('Enrollment Form'!B520<>\"Subscriber\",\"-\",IF(AND('Enrollment Form'!B520=\"Subscriber\",'Enrollment Form'!C520=\"Enroll\",'Enrollment Form'!AA520=\"\"),\"N\",\"Y\"))","v":"-"},{"$f":"IF(OR('Enrollment Form'!B520=\"Subscriber\",'Enrollment Form'!B520=\"\"),\"-\",IF('Enrollment Form'!BP520=\"\",\"N\",\"Y\"))","v":"-"},{"$f":"IF('Enrollment Form'!B520<>\"Subscriber\",\"-\",IF(AND('Enrollment Form'!B520=\"Subscriber\",'Enrollment Form'!G520=\"\"),\"N\",\"Y\"))","v":"-"},{"$f":"IF('Enrollment Form'!A520=\"\",\"\",IF('Enrollment Form'!B520=\"Subscriber\",\"-\",IF(AND('Enrollment Form'!B520<>\"Subscriber\",'Enrollment Form'!G520='Enrollment Form'!H520),\"N\",\"Y\")))","v":""},0]
[521,{"$f":"IF('Enrollment Form'!$A521<>\"\",\"Y\",\"N\")","v":"N"},{"$f":"IF(AND('Enrollment Form'!$B521=\"\",'Enrollment Form'!$C521<>\"\"),\"N\",IF($B514=\"N\",\"\",\"Y\"))","v":""},{"$f":"IF(OR($B514=\"N\",'Enrollment Form'!G521=\"\"),\"\",IF('Enrollment Form'!$B521<>\"Subscriber\",\"\",IF('Enrollment Form'!$G521='Enrollment Form'!$H521,\"Y\",\"N\")))","v":""},{"$f":"IF($B514=\"N\",\"\",IF(AND(COUNTIFS('Enrollment Form'!$H$11:$H$1000,'Enrollment Form'!$H521,'Enrollment Form'!$B$11:$B$1000,'Enrollment Form'!$B521)>1,'Enrollment Form'!$H521<>\"\"),\"N\",\"Y\"))","v":""},{"$f":"IF($B514=\"N\",\"\",IF(LEN('Enrollment Form'!$Y521)=0,\"\",IF(LEN('Enrollment Form'!$Y521)<>5,\"N\",\"Y\")))","v":""},{"$f":"IF($B514=\"N\",\"\",IF(LEN('Enrollment Form'!$AD521=0),\"\",IF(LEN('Enrollment Form'!$AD521)<>5,\"N\",\"Y\")))","v":""},{"$f":"IF($B514=\"N\",\"\",IF(LEN('Enrollment Form'!$BS521=0),\"\",IF(LEN('Enrollment Form'!$BS521)<>5,\"N\",\"Y\")))","v":""},{"$f":"IF($B514=\"N\",\"\",IF(LEN('Enrollment Form'!$AE521)=0,\"\",IF(LEN('Enrollment Form'!$AE521)<>10,\"N\",\"Y\")))","v":""},{"$f":"IF($B514=\"N\",\"\",IF(LEN('Enrollment Form'!$AF521)=0,\"\",IF(LEN('Enrollment Form'!$AF521)<>10,\"N\",\"Y\")))","v":""},{"$f":"IF('Enrollment Form'!$O521<>\"Graded\",\"-\",IF(AND('Enrollment Form'!$O521=\"Graded\",'Enrollment Form'!$AR521<>\"\"),\"Y\",\"N\"))","v":"-"},{"$f":"IF($B514=\"N\",\"\",IF(OR('Enrollment Form'!$B521<>\"Subscriber\",'Enrollment Form'!$C521=\"ROC\"),\"-\",IF(AND('Enrollment Form'!$B521=\"Subscriber\",'Enrollment Form'!$C521=\"Enroll\",'Enrollment Form'!$AJ521<>\"\"),\"Y\",\"N\")))","v":""},{"$f":"IF($B514=\"N\",\"\",IF(OR('Enrollment Form'!$B521<>\"Subscriber\",'Enrollment Form'!$C521=\"ROC\"),\"-\",IF(AND('Enrollment Form'!$B521=\"Subscriber\",'Enrollment Form'!$C521=\"Enroll\",'Enrollment Form'!$AK521<>\"\"),\"Y\",\"N\")))","v":""},{"$f":"IF($B514=\"N\",\"\",IF(OR('Enrollment Form'!$B521<>\"Subscriber\",'Enrollment Form'!$C521=\"ROC\"),\"-\",IF(AND('Enrollment Form'!$B521=\"Subscriber\",'Enrollment Form'!$C521=\"Enroll\",'Enrollment Form'!$AL521<>\"\"),\"Y\",\"N\")))","v":""},{"$f":"IF($B514=\"N\",\"\",IF(OR('Enrollment Form'!$B521<>\"Subscriber\",'Enrollment Form'!$C521=\"ROC\"),\"-\",IF(AND('Enrollment Form'!$B521=\"Subscriber\",'Enrollment Form'!$C521=\"Enroll\",'Enrollment Form'!$AP521<>\"\"),\"Y\",\"N\")))","v":""},{"$f":"IF($B514=\"N\",\"\",IF(OR('Enrollment Form'!$B521<>\"Subscriber\",'Enrollment Form'!$C521=\"ROC\"),\"-\",IF(AND('Enrollment Form'!$B521=\"Subscriber\",'Enrollment Form'!$C521=\"Enroll\",'Enrollment Form'!$AQ521<>\"\"),\"Y\",\"N\")))","v":""},{"$f":"IF($B514=\"N\",\"\",IF(OR('Enrollment Form'!$B521<>\"Subscriber\",'Enrollment Form'!$C521=\"ROC\"),\"-\",IF(AND('Enrollment Form'!$B521=\"Subscriber\",'Enrollment Form'!$C521=\"Enroll\",'Enrollment Form'!$AS521<>\"\"),\"Y\",\"N\")))","v":""},{"$f":"IF($B514=\"N\",\"\",IF($Q514=\"-\",\"-\",IF(AND($Q514=\"Y\",'Enrollment Form'!$AS521=\"No\"),\"-\",IF(AND($Q514=\"Y\",'Enrollment Form'!$AS521=\"Yes\",'Enrollment Form'!$AT521<>\"\"),\"Y\",\"N\"))))","v":""},{"$f":"IF($B514=\"N\",\"\",IF(OR('Enrollment Form'!$B521<>\"Subscriber\",'Enrollment Form'!$C521=\"ROC\"),\"-\",IF(AND('Enrollment Form'!$B521=\"Subscriber\",'Enrollment Form'!$C521=\"Enroll\",'Enrollment Form'!$CV521<>\"\"),\"Y\",\"N\")))","v":""},{"$f":"IF($B514=\"N\",\"\",IF($S514=\"-\",\"-\",IF(AND($S514=\"Y\",'Enrollment Form'!$CV521=\"No\"),\"-\",IF(AND($S514=\"Y\",'Enrollment Form'!$CV521=\"Yes\",'Enrollment Form'!$CW521<>\"\"),\"Y\",\"N\"))))","v":""},{"$f":"IF(OR('Enrollment Form'!$AY521=\"Yes\",'Enrollment Form'!$AY521=\"\"),\"-\",IF(OR(AND('Enrollment Form'!$AY521=\"No\",ISERROR(FIND(\"HMO\",VLOOKUP('Enrollment Form'!G521,'Enrollment Form'!H$11:J$1000,3,FALSE),1))=FALSE,COUNTA('Enrollment Form'!$AZ521:$BC521)=4),AND('Enrollment Form'!$AY521=\"No\",ISERROR(FIND(\"HMO\",VLOOKUP('Enrollment Form'!G521,'Enrollment Form'!H$11:J$1000,3,FALSE),1))=FALSE,COUNTA('Enrollment Form'!$BT521:$BW521)=4)),\"Y\",\"N\"))","v":"-"},{"$f":"IF($B514=\"N\",\"\",IF('Enrollment Form'!$B521=\"Subscriber\",\"-\",IF(COUNTA('Enrollment Form'!$BL521,'Enrollment Form'!$BN521)=2,\"Y\",\"N\")))","v":""},{"$f":"IF($B514=\"N\",\"\",IF(OR('Enrollment Form'!$AX521=\"\",'Enrollment Form'!$AX521=\"No\"),\"-\",IF(AND('Enrollment Form'!$AX521=\"Yes\",COUNTA('Enrollment Form'!$CR521)=1),\"Y\",\"N\")))","v":""},{"$f":"IF(OR('Enrollment Form'!$CR521=\"\",'Enrollment Form'!$CR521=\"No\"),\"-\",IF(COUNTA('Enrollment Form'!$CT521:$CU521)=2,\"Y\",\"N\"))","v":"-"},{"$f":"IF($B514=\"N\",\"\",IF(COUNTIF('Enrollment Form'!$DG521:$DP521,\"Other\")=COUNTA('Enrollment Form'!$DK521,'Enrollment Form'!$DH521,'Enrollment Form'!$DN521,'Enrollment Form'!$DQ521),\"Y\",\"N\"))","v":""},{"$f":"IF($B514=\"N\",\"\",IF(OR('Enrollment Form'!B521<>\"Subscriber\",'Enrollment Form'!C521=\"ROC\",COUNTIF('Enrollment Form'!AV521:AW521,\"Yes\")>=1),\"-\",IF(AND('Enrollment Form'!C521=\"Enroll\",COUNTIF('Enrollment Form'!AV521:AW521,\"No\")=2,'Enrollment Form'!AX521=\"\"),\"N\",\"Y\")))","v":""},{"$f":"IF(OR(B514=\"N\",'Enrollment Form'!B521<>\"Subscriber\",'Enrollment Form'!C521=\"ROC\",'Enrollment Form'!O521<>\"Multiple of Salary\"),\"-\",IF(COUNTA('Enrollment Form'!T521:U521)<2,\"N\",\"Y\"))","v":"-"},{"$f":"IF(B514=\"N\",\"\",IF(OR('Enrollment Form'!C521=\"ROC\",'Enrollment Form'!B521<>\"Subscriber\",'Enrollment Form'!O521=\"Waive\",'Enrollment Form'!O521=\"\"),\"-\",IF('Enrollment Form'!P521=\"\",\"N\",\"Y\")))","v":""},{"$f":"IF($B514=\"N\",\"\",IF(AND('Enrollment Form'!$C521=\"ROC\",'Enrollment Form'!$DR521<>\"\"),\"Y\",IF(AND('Enrollment Form'!$C521=\"ROC\",'Enrollment Form'!$DR521=\"\"),\"N\",IF(AND('Enrollment Form'!$C521=\"Enroll\",'Enrollment Form'!$B521=\"Subscriber\",'Enrollment Form'!$CX521=\"No\",'Enrollment Form'!$DR521=\"\"),\"N\",IF(AND('Enrollment Form'!$C521=\"Enroll\",'Enrollment Form'!$B521=\"Subscriber\",'Enrollment Form'!$CX521=\"Yes\"),\"-\",\"Y\")))))","v":""},{"$f":"IF($B514=\"N\",\"\",IF(AND('Enrollment Form'!$C521=\"ROC\",'Enrollment Form'!$DS521<>\"\"),\"Y\",IF(AND('Enrollment Form'!$C521=\"ROC\",'Enrollment Form'!$DS521=\"\"),\"N\",IF(AND('Enrollment Form'!$C521=\"Enroll\",'Enrollment Form'!$B521=\"Subscriber\",'Enrollment Form'!$CX521=\"No\",'Enrollment Form'!$DS521=\"\"),\"N\",IF(AND('Enrollment Form'!$C521=\"Enroll\",'Enrollment Form'!$B521=\"Subscriber\",'Enrollment Form'!$CX521=\"Yes\"),\"-\",\"Y\")))))","v":""},{"$f":"IF('Enrollment Form'!AH521=\"\",\"\",IF(ISERROR(SEARCH(\".\",'Enrollment Form'!AH521,SEARCH(\"@\",'Enrollment Form'!AH521))),\"N\",\"Y\"))","v":""},{"$f":"IF(OR($B514=\"N\",'Enrollment Form'!$G521=\"\"),\"\",IF('Enrollment Form'!$B521<>\"Subscriber\",\"-\",IF(COUNTIF('Enrollment Form'!$AV521:$AW521,\"Yes\")=2,\"N\",\"Y\")))","v":""},{"$f":"IF(OR('Enrollment Form'!$CJ521=\"\",'Enrollment Form'!$CJ521=\"No\"),\"-\",IF(AND('Enrollment Form'!$CJ521=\"Yes\",'Enrollment Form'!$CK521=\"\"),\"N\",\"Y\"))","v":"-"},{"$f":"IF(OR('Enrollment Form'!$CL521=\"\",'Enrollment Form'!$CL521=\"No\"),\"-\",IF(AND('Enrollment Form'!$CL521=\"Yes\",'Enrollment Form'!$CM521=\"\"),\"N\",\"Y\"))","v":"-"},{"$f":"IF(OR('Enrollment Form'!$CN521=\"\",'Enrollment Form'!$CN521=\"No\"),\"-\",IF(AND('Enrollment Form'!$CN521=\"Yes\",'Enrollment Form'!$CO521=\"\"),\"N\",\"Y\"))","v":"-"},{"$f":"IF(OR('Enrollment Form'!$CN521=\"\",'Enrollment Form'!$CN521=\"No\"),\"-\",IF(AND('Enrollment Form'!$CN521=\"Yes\",'Enrollment Form'!$CP521=\"\"),\"N\",\"Y\"))","v":"-"},{"$f":"IF('Enrollment Form'!B521<>\"Subscriber\",\"-\",IF(AND('Enrollment Form'!B521=\"Subscriber\",'Enrollment Form'!C521=\"Enroll\",'Enrollment Form'!AA521=\"\"),\"N\",\"Y\"))","v":"-"},{"$f":"IF(OR('Enrollment Form'!B521=\"Subscriber\",'Enrollment Form'!B521=\"\"),\"-\",IF('Enrollment Form'!BP521=\"\",\"N\",\"Y\"))","v":"-"},{"$f":"IF('Enrollment Form'!B521<>\"Subscriber\",\"-\",IF(AND('Enrollment Form'!B521=\"Subscriber\",'Enrollment Form'!G521=\"\"),\"N\",\"Y\"))","v":"-"},{"$f":"IF('Enrollment Form'!A521=\"\",\"\",IF('Enrollment Form'!B521=\"Subscriber\",\"-\",IF(AND('Enrollment Form'!B521<>\"Subscriber\",'Enrollment Form'!G521='Enrollment Form'!H521),\"N\",\"Y\")))","v":""},0]
[522,{"$f":"IF('Enrollment Form'!$A522<>\"\",\"Y\",\"N\")","v":"N"},{"$f":"IF(AND('Enrollment Form'!$B522=\"\",'Enrollment Form'!$C522<>\"\"),\"N\",IF($B515=\"N\",\"\",\"Y\"))","v":""},{"$f":"IF(OR($B515=\"N\",'Enrollment Form'!G522=\"\"),\"\",IF('Enrollment Form'!$B522<>\"Subscriber\",\"\",IF('Enrollment Form'!$G522='Enrollment Form'!$H522,\"Y\",\"N\")))","v":""},{"$f":"IF($B515=\"N\",\"\",IF(AND(COUNTIFS('Enrollment Form'!$H$11:$H$1000,'Enrollment Form'!$H522,'Enrollment Form'!$B$11:$B$1000,'Enrollment Form'!$B522)>1,'Enrollment Form'!$H522<>\"\"),\"N\",\"Y\"))","v":""},{"$f":"IF($B515=\"N\",\"\",IF(LEN('Enrollment Form'!$Y522)=0,\"\",IF(LEN('Enrollment Form'!$Y522)<>5,\"N\",\"Y\")))","v":""},{"$f":"IF($B515=\"N\",\"\",IF(LEN('Enrollment Form'!$AD522=0),\"\",IF(LEN('Enrollment Form'!$AD522)<>5,\"N\",\"Y\")))","v":""},{"$f":"IF($B515=\"N\",\"\",IF(LEN('Enrollment Form'!$BS522=0),\"\",IF(LEN('Enrollment Form'!$BS522)<>5,\"N\",\"Y\")))","v":""},{"$f":"IF($B515=\"N\",\"\",IF(LEN('Enrollment Form'!$AE522)=0,\"\",IF(LEN('Enrollment Form'!$AE522)<>10,\"N\",\"Y\")))","v":""},{"$f":"IF($B515=\"N\",\"\",IF(LEN('Enrollment Form'!$AF522)=0,\"\",IF(LEN('Enrollment Form'!$AF522)<>10,\"N\",\"Y\")))","v":""},{"$f":"IF('Enrollment Form'!$O522<>\"Graded\",\"-\",IF(AND('Enrollment Form'!$O522=\"Graded\",'Enrollment Form'!$AR522<>\"\"),\"Y\",\"N\"))","v":"-"},{"$f":"IF($B515=\"N\",\"\",IF(OR('Enrollment Form'!$B522<>\"Subscriber\",'Enrollment Form'!$C522=\"ROC\"),\"-\",IF(AND('Enrollment Form'!$B522=\"Subscriber\",'Enrollment Form'!$C522=\"Enroll\",'Enrollment Form'!$AJ522<>\"\"),\"Y\",\"N\")))","v":""},{"$f":"IF($B515=\"N\",\"\",IF(OR('Enrollment Form'!$B522<>\"Subscriber\",'Enrollment Form'!$C522=\"ROC\"),\"-\",IF(AND('Enrollment Form'!$B522=\"Subscriber\",'Enrollment Form'!$C522=\"Enroll\",'Enrollment Form'!$AK522<>\"\"),\"Y\",\"N\")))","v":""},{"$f":"IF($B515=\"N\",\"\",IF(OR('Enrollment Form'!$B522<>\"Subscriber\",'Enrollment Form'!$C522=\"ROC\"),\"-\",IF(AND('Enrollment Form'!$B522=\"Subscriber\",'Enrollment Form'!$C522=\"Enroll\",'Enrollment Form'!$AL522<>\"\"),\"Y\",\"N\")))","v":""},{"$f":"IF($B515=\"N\",\"\",IF(OR('Enrollment Form'!$B522<>\"Subscriber\",'Enrollment Form'!$C522=\"ROC\"),\"-\",IF(AND('Enrollment Form'!$B522=\"Subscriber\",'Enrollment Form'!$C522=\"Enroll\",'Enrollment Form'!$AP522<>\"\"),\"Y\",\"N\")))","v":""},{"$f":"IF($B515=\"N\",\"\",IF(OR('Enrollment Form'!$B522<>\"Subscriber\",'Enrollment Form'!$C522=\"ROC\"),\"-\",IF(AND('Enrollment Form'!$B522=\"Subscriber\",'Enrollment Form'!$C522=\"Enroll\",'Enrollment Form'!$AQ522<>\"\"),\"Y\",\"N\")))","v":""},{"$f":"IF($B515=\"N\",\"\",IF(OR('Enrollment Form'!$B522<>\"Subscriber\",'Enrollment Form'!$C522=\"ROC\"),\"-\",IF(AND('Enrollment Form'!$B522=\"Subscriber\",'Enrollment Form'!$C522=\"Enroll\",'Enrollment Form'!$AS522<>\"\"),\"Y\",\"N\")))","v":""},{"$f":"IF($B515=\"N\",\"\",IF($Q515=\"-\",\"-\",IF(AND($Q515=\"Y\",'Enrollment Form'!$AS522=\"No\"),\"-\",IF(AND($Q515=\"Y\",'Enrollment Form'!$AS522=\"Yes\",'Enrollment Form'!$AT522<>\"\"),\"Y\",\"N\"))))","v":""},{"$f":"IF($B515=\"N\",\"\",IF(OR('Enrollment Form'!$B522<>\"Subscriber\",'Enrollment Form'!$C522=\"ROC\"),\"-\",IF(AND('Enrollment Form'!$B522=\"Subscriber\",'Enrollment Form'!$C522=\"Enroll\",'Enrollment Form'!$CV522<>\"\"),\"Y\",\"N\")))","v":""},{"$f":"IF($B515=\"N\",\"\",IF($S515=\"-\",\"-\",IF(AND($S515=\"Y\",'Enrollment Form'!$CV522=\"No\"),\"-\",IF(AND($S515=\"Y\",'Enrollment Form'!$CV522=\"Yes\",'Enrollment Form'!$CW522<>\"\"),\"Y\",\"N\"))))","v":""},{"$f":"IF(OR('Enrollment Form'!$AY522=\"Yes\",'Enrollment Form'!$AY522=\"\"),\"-\",IF(OR(AND('Enrollment Form'!$AY522=\"No\",ISERROR(FIND(\"HMO\",VLOOKUP('Enrollment Form'!G522,'Enrollment Form'!H$11:J$1000,3,FALSE),1))=FALSE,COUNTA('Enrollment Form'!$AZ522:$BC522)=4),AND('Enrollment Form'!$AY522=\"No\",ISERROR(FIND(\"HMO\",VLOOKUP('Enrollment Form'!G522,'Enrollment Form'!H$11:J$1000,3,FALSE),1))=FALSE,COUNTA('Enrollment Form'!$BT522:$BW522)=4)),\"Y\",\"N\"))","v":"-"},{"$f":"IF($B515=\"N\",\"\",IF('Enrollment Form'!$B522=\"Subscriber\",\"-\",IF(COUNTA('Enrollment Form'!$BL522,'Enrollment Form'!$BN522)=2,\"Y\",\"N\")))","v":""},{"$f":"IF($B515=\"N\",\"\",IF(OR('Enrollment Form'!$AX522=\"\",'Enrollment Form'!$AX522=\"No\"),\"-\",IF(AND('Enrollment Form'!$AX522=\"Yes\",COUNTA('Enrollment Form'!$CR522)=1),\"Y\",\"N\")))","v":""},{"$f":"IF(OR('Enrollment Form'!$CR522=\"\",'Enrollment Form'!$CR522=\"No\"),\"-\",IF(COUNTA('Enrollment Form'!$CT522:$CU522)=2,\"Y\",\"N\"))","v":"-"},{"$f":"IF($B515=\"N\",\"\",IF(COUNTIF('Enrollment Form'!$DG522:$DP522,\"Other\")=COUNTA('Enrollment Form'!$DK522,'Enrollment Form'!$DH522,'Enrollment Form'!$DN522,'Enrollment Form'!$DQ522),\"Y\",\"N\"))","v":""},{"$f":"IF($B515=\"N\",\"\",IF(OR('Enrollment Form'!B522<>\"Subscriber\",'Enrollment Form'!C522=\"ROC\",COUNTIF('Enrollment Form'!AV522:AW522,\"Yes\")>=1),\"-\",IF(AND('Enrollment Form'!C522=\"Enroll\",COUNTIF('Enrollment Form'!AV522:AW522,\"No\")=2,'Enrollment Form'!AX522=\"\"),\"N\",\"Y\")))","v":""},{"$f":"IF(OR(B515=\"N\",'Enrollment Form'!B522<>\"Subscriber\",'Enrollment Form'!C522=\"ROC\",'Enrollment Form'!O522<>\"Multiple of Salary\"),\"-\",IF(COUNTA('Enrollment Form'!T522:U522)<2,\"N\",\"Y\"))","v":"-"},{"$f":"IF(B515=\"N\",\"\",IF(OR('Enrollment Form'!C522=\"ROC\",'Enrollment Form'!B522<>\"Subscriber\",'Enrollment Form'!O522=\"Waive\",'Enrollment Form'!O522=\"\"),\"-\",IF('Enrollment Form'!P522=\"\",\"N\",\"Y\")))","v":""},{"$f":"IF($B515=\"N\",\"\",IF(AND('Enrollment Form'!$C522=\"ROC\",'Enrollment Form'!$DR522<>\"\"),\"Y\",IF(AND('Enrollment Form'!$C522=\"ROC\",'Enrollment Form'!$DR522=\"\"),\"N\",IF(AND('Enrollment Form'!$C522=\"Enroll\",'Enrollment Form'!$B522=\"Subscriber\",'Enrollment Form'!$CX522=\"No\",'Enrollment Form'!$DR522=\"\"),\"N\",IF(AND('Enrollment Form'!$C522=\"Enroll\",'Enrollment Form'!$B522=\"Subscriber\",'Enrollment Form'!$CX522=\"Yes\"),\"-\",\"Y\")))))","v":""},{"$f":"IF($B515=\"N\",\"\",IF(AND('Enrollment Form'!$C522=\"ROC\",'Enrollment Form'!$DS522<>\"\"),\"Y\",IF(AND('Enrollment Form'!$C522=\"ROC\",'Enrollment Form'!$DS522=\"\"),\"N\",IF(AND('Enrollment Form'!$C522=\"Enroll\",'Enrollment Form'!$B522=\"Subscriber\",'Enrollment Form'!$CX522=\"No\",'Enrollment Form'!$DS522=\"\"),\"N\",IF(AND('Enrollment Form'!$C522=\"Enroll\",'Enrollment Form'!$B522=\"Subscriber\",'Enrollment Form'!$CX522=\"Yes\"),\"-\",\"Y\")))))","v":""},{"$f":"IF('Enrollment Form'!AH522=\"\",\"\",IF(ISERROR(SEARCH(\".\",'Enrollment Form'!AH522,SEARCH(\"@\",'Enrollment Form'!AH522))),\"N\",\"Y\"))","v":""},{"$f":"IF(OR($B515=\"N\",'Enrollment Form'!$G522=\"\"),\"\",IF('Enrollment Form'!$B522<>\"Subscriber\",\"-\",IF(COUNTIF('Enrollment Form'!$AV522:$AW522,\"Yes\")=2,\"N\",\"Y\")))","v":""},{"$f":"IF(OR('Enrollment Form'!$CJ522=\"\",'Enrollment Form'!$CJ522=\"No\"),\"-\",IF(AND('Enrollment Form'!$CJ522=\"Yes\",'Enrollment Form'!$CK522=\"\"),\"N\",\"Y\"))","v":"-"},{"$f":"IF(OR('Enrollment Form'!$CL522=\"\",'Enrollment Form'!$CL522=\"No\"),\"-\",IF(AND('Enrollment Form'!$CL522=\"Yes\",'Enrollment Form'!$CM522=\"\"),\"N\",\"Y\"))","v":"-"},{"$f":"IF(OR('Enrollment Form'!$CN522=\"\",'Enrollment Form'!$CN522=\"No\"),\"-\",IF(AND('Enrollment Form'!$CN522=\"Yes\",'Enrollment Form'!$CO522=\"\"),\"N\",\"Y\"))","v":"-"},{"$f":"IF(OR('Enrollment Form'!$CN522=\"\",'Enrollment Form'!$CN522=\"No\"),\"-\",IF(AND('Enrollment Form'!$CN522=\"Yes\",'Enrollment Form'!$CP522=\"\"),\"N\",\"Y\"))","v":"-"},{"$f":"IF('Enrollment Form'!B522<>\"Subscriber\",\"-\",IF(AND('Enrollment Form'!B522=\"Subscriber\",'Enrollment Form'!C522=\"Enroll\",'Enrollment Form'!AA522=\"\"),\"N\",\"Y\"))","v":"-"},{"$f":"IF(OR('Enrollment Form'!B522=\"Subscriber\",'Enrollment Form'!B522=\"\"),\"-\",IF('Enrollment Form'!BP522=\"\",\"N\",\"Y\"))","v":"-"},{"$f":"IF('Enrollment Form'!B522<>\"Subscriber\",\"-\",IF(AND('Enrollment Form'!B522=\"Subscriber\",'Enrollment Form'!G522=\"\"),\"N\",\"Y\"))","v":"-"},{"$f":"IF('Enrollment Form'!A522=\"\",\"\",IF('Enrollment Form'!B522=\"Subscriber\",\"-\",IF(AND('Enrollment Form'!B522<>\"Subscriber\",'Enrollment Form'!G522='Enrollment Form'!H522),\"N\",\"Y\")))","v":""},0]
[523,{"$f":"IF('Enrollment Form'!$A523<>\"\",\"Y\",\"N\")","v":"N"},{"$f":"IF(AND('Enrollment Form'!$B523=\"\",'Enrollment Form'!$C523<>\"\"),\"N\",IF($B516=\"N\",\"\",\"Y\"))","v":""},{"$f":"IF(OR($B516=\"N\",'Enrollment Form'!G523=\"\"),\"\",IF('Enrollment Form'!$B523<>\"Subscriber\",\"\",IF('Enrollment Form'!$G523='Enrollment Form'!$H523,\"Y\",\"N\")))","v":""},{"$f":"IF($B516=\"N\",\"\",IF(AND(COUNTIFS('Enrollment Form'!$H$11:$H$1000,'Enrollment Form'!$H523,'Enrollment Form'!$B$11:$B$1000,'Enrollment Form'!$B523)>1,'Enrollment Form'!$H523<>\"\"),\"N\",\"Y\"))","v":""},{"$f":"IF($B516=\"N\",\"\",IF(LEN('Enrollment Form'!$Y523)=0,\"\",IF(LEN('Enrollment Form'!$Y523)<>5,\"N\",\"Y\")))","v":""},{"$f":"IF($B516=\"N\",\"\",IF(LEN('Enrollment Form'!$AD523=0),\"\",IF(LEN('Enrollment Form'!$AD523)<>5,\"N\",\"Y\")))","v":""},{"$f":"IF($B516=\"N\",\"\",IF(LEN('Enrollment Form'!$BS523=0),\"\",IF(LEN('Enrollment Form'!$BS523)<>5,\"N\",\"Y\")))","v":""},{"$f":"IF($B516=\"N\",\"\",IF(LEN('Enrollment Form'!$AE523)=0,\"\",IF(LEN('Enrollment Form'!$AE523)<>10,\"N\",\"Y\")))","v":""},{"$f":"IF($B516=\"N\",\"\",IF(LEN('Enrollment Form'!$AF523)=0,\"\",IF(LEN('Enrollment Form'!$AF523)<>10,\"N\",\"Y\")))","v":""},{"$f":"IF('Enrollment Form'!$O523<>\"Graded\",\"-\",IF(AND('Enrollment Form'!$O523=\"Graded\",'Enrollment Form'!$AR523<>\"\"),\"Y\",\"N\"))","v":"-"},{"$f":"IF($B516=\"N\",\"\",IF(OR('Enrollment Form'!$B523<>\"Subscriber\",'Enrollment Form'!$C523=\"ROC\"),\"-\",IF(AND('Enrollment Form'!$B523=\"Subscriber\",'Enrollment Form'!$C523=\"Enroll\",'Enrollment Form'!$AJ523<>\"\"),\"Y\",\"N\")))","v":""},{"$f":"IF($B516=\"N\",\"\",IF(OR('Enrollment Form'!$B523<>\"Subscriber\",'Enrollment Form'!$C523=\"ROC\"),\"-\",IF(AND('Enrollment Form'!$B523=\"Subscriber\",'Enrollment Form'!$C523=\"Enroll\",'Enrollment Form'!$AK523<>\"\"),\"Y\",\"N\")))","v":""},{"$f":"IF($B516=\"N\",\"\",IF(OR('Enrollment Form'!$B523<>\"Subscriber\",'Enrollment Form'!$C523=\"ROC\"),\"-\",IF(AND('Enrollment Form'!$B523=\"Subscriber\",'Enrollment Form'!$C523=\"Enroll\",'Enrollment Form'!$AL523<>\"\"),\"Y\",\"N\")))","v":""},{"$f":"IF($B516=\"N\",\"\",IF(OR('Enrollment Form'!$B523<>\"Subscriber\",'Enrollment Form'!$C523=\"ROC\"),\"-\",IF(AND('Enrollment Form'!$B523=\"Subscriber\",'Enrollment Form'!$C523=\"Enroll\",'Enrollment Form'!$AP523<>\"\"),\"Y\",\"N\")))","v":""},{"$f":"IF($B516=\"N\",\"\",IF(OR('Enrollment Form'!$B523<>\"Subscriber\",'Enrollment Form'!$C523=\"ROC\"),\"-\",IF(AND('Enrollment Form'!$B523=\"Subscriber\",'Enrollment Form'!$C523=\"Enroll\",'Enrollment Form'!$AQ523<>\"\"),\"Y\",\"N\")))","v":""},{"$f":"IF($B516=\"N\",\"\",IF(OR('Enrollment Form'!$B523<>\"Subscriber\",'Enrollment Form'!$C523=\"ROC\"),\"-\",IF(AND('Enrollment Form'!$B523=\"Subscriber\",'Enrollment Form'!$C523=\"Enroll\",'Enrollment Form'!$AS523<>\"\"),\"Y\",\"N\")))","v":""},{"$f":"IF($B516=\"N\",\"\",IF($Q516=\"-\",\"-\",IF(AND($Q516=\"Y\",'Enrollment Form'!$AS523=\"No\"),\"-\",IF(AND($Q516=\"Y\",'Enrollment Form'!$AS523=\"Yes\",'Enrollment Form'!$AT523<>\"\"),\"Y\",\"N\"))))","v":""},{"$f":"IF($B516=\"N\",\"\",IF(OR('Enrollment Form'!$B523<>\"Subscriber\",'Enrollment Form'!$C523=\"ROC\"),\"-\",IF(AND('Enrollment Form'!$B523=\"Subscriber\",'Enrollment Form'!$C523=\"Enroll\",'Enrollment Form'!$CV523<>\"\"),\"Y\",\"N\")))","v":""},{"$f":"IF($B516=\"N\",\"\",IF($S516=\"-\",\"-\",IF(AND($S516=\"Y\",'Enrollment Form'!$CV523=\"No\"),\"-\",IF(AND($S516=\"Y\",'Enrollment Form'!$CV523=\"Yes\",'Enrollment Form'!$CW523<>\"\"),\"Y\",\"N\"))))","v":""},{"$f":"IF(OR('Enrollment Form'!$AY523=\"Yes\",'Enrollment Form'!$AY523=\"\"),\"-\",IF(OR(AND('Enrollment Form'!$AY523=\"No\",ISERROR(FIND(\"HMO\",VLOOKUP('Enrollment Form'!G523,'Enrollment Form'!H$11:J$1000,3,FALSE),1))=FALSE,COUNTA('Enrollment Form'!$AZ523:$BC523)=4),AND('Enrollment Form'!$AY523=\"No\",ISERROR(FIND(\"HMO\",VLOOKUP('Enrollment Form'!G523,'Enrollment Form'!H$11:J$1000,3,FALSE),1))=FALSE,COUNTA('Enrollment Form'!$BT523:$BW523)=4)),\"Y\",\"N\"))","v":"-"},{"$f":"IF($B516=\"N\",\"\",IF('Enrollment Form'!$B523=\"Subscriber\",\"-\",IF(COUNTA('Enrollment Form'!$BL523,'Enrollment Form'!$BN523)=2,\"Y\",\"N\")))","v":""},{"$f":"IF($B516=\"N\",\"\",IF(OR('Enrollment Form'!$AX523=\"\",'Enrollment Form'!$AX523=\"No\"),\"-\",IF(AND('Enrollment Form'!$AX523=\"Yes\",COUNTA('Enrollment Form'!$CR523)=1),\"Y\",\"N\")))","v":""},{"$f":"IF(OR('Enrollment Form'!$CR523=\"\",'Enrollment Form'!$CR523=\"No\"),\"-\",IF(COUNTA('Enrollment Form'!$CT523:$CU523)=2,\"Y\",\"N\"))","v":"-"},{"$f":"IF($B516=\"N\",\"\",IF(COUNTIF('Enrollment Form'!$DG523:$DP523,\"Other\")=COUNTA('Enrollment Form'!$DK523,'Enrollment Form'!$DH523,'Enrollment Form'!$DN523,'Enrollment Form'!$DQ523),\"Y\",\"N\"))","v":""},{"$f":"IF($B516=\"N\",\"\",IF(OR('Enrollment Form'!B523<>\"Subscriber\",'Enrollment Form'!C523=\"ROC\",COUNTIF('Enrollment Form'!AV523:AW523,\"Yes\")>=1),\"-\",IF(AND('Enrollment Form'!C523=\"Enroll\",COUNTIF('Enrollment Form'!AV523:AW523,\"No\")=2,'Enrollment Form'!AX523=\"\"),\"N\",\"Y\")))","v":""},{"$f":"IF(OR(B516=\"N\",'Enrollment Form'!B523<>\"Subscriber\",'Enrollment Form'!C523=\"ROC\",'Enrollment Form'!O523<>\"Multiple of Salary\"),\"-\",IF(COUNTA('Enrollment Form'!T523:U523)<2,\"N\",\"Y\"))","v":"-"},{"$f":"IF(B516=\"N\",\"\",IF(OR('Enrollment Form'!C523=\"ROC\",'Enrollment Form'!B523<>\"Subscriber\",'Enrollment Form'!O523=\"Waive\",'Enrollment Form'!O523=\"\"),\"-\",IF('Enrollment Form'!P523=\"\",\"N\",\"Y\")))","v":""},{"$f":"IF($B516=\"N\",\"\",IF(AND('Enrollment Form'!$C523=\"ROC\",'Enrollment Form'!$DR523<>\"\"),\"Y\",IF(AND('Enrollment Form'!$C523=\"ROC\",'Enrollment Form'!$DR523=\"\"),\"N\",IF(AND('Enrollment Form'!$C523=\"Enroll\",'Enrollment Form'!$B523=\"Subscriber\",'Enrollment Form'!$CX523=\"No\",'Enrollment Form'!$DR523=\"\"),\"N\",IF(AND('Enrollment Form'!$C523=\"Enroll\",'Enrollment Form'!$B523=\"Subscriber\",'Enrollment Form'!$CX523=\"Yes\"),\"-\",\"Y\")))))","v":""},{"$f":"IF($B516=\"N\",\"\",IF(AND('Enrollment Form'!$C523=\"ROC\",'Enrollment Form'!$DS523<>\"\"),\"Y\",IF(AND('Enrollment Form'!$C523=\"ROC\",'Enrollment Form'!$DS523=\"\"),\"N\",IF(AND('Enrollment Form'!$C523=\"Enroll\",'Enrollment Form'!$B523=\"Subscriber\",'Enrollment Form'!$CX523=\"No\",'Enrollment Form'!$DS523=\"\"),\"N\",IF(AND('Enrollment Form'!$C523=\"Enroll\",'Enrollment Form'!$B523=\"Subscriber\",'Enrollment Form'!$CX523=\"Yes\"),\"-\",\"Y\")))))","v":""},{"$f":"IF('Enrollment Form'!AH523=\"\",\"\",IF(ISERROR(SEARCH(\".\",'Enrollment Form'!AH523,SEARCH(\"@\",'Enrollment Form'!AH523))),\"N\",\"Y\"))","v":""},{"$f":"IF(OR($B516=\"N\",'Enrollment Form'!$G523=\"\"),\"\",IF('Enrollment Form'!$B523<>\"Subscriber\",\"-\",IF(COUNTIF('Enrollment Form'!$AV523:$AW523,\"Yes\")=2,\"N\",\"Y\")))","v":""},{"$f":"IF(OR('Enrollment Form'!$CJ523=\"\",'Enrollment Form'!$CJ523=\"No\"),\"-\",IF(AND('Enrollment Form'!$CJ523=\"Yes\",'Enrollment Form'!$CK523=\"\"),\"N\",\"Y\"))","v":"-"},{"$f":"IF(OR('Enrollment Form'!$CL523=\"\",'Enrollment Form'!$CL523=\"No\"),\"-\",IF(AND('Enrollment Form'!$CL523=\"Yes\",'Enrollment Form'!$CM523=\"\"),\"N\",\"Y\"))","v":"-"},{"$f":"IF(OR('Enrollment Form'!$CN523=\"\",'Enrollment Form'!$CN523=\"No\"),\"-\",IF(AND('Enrollment Form'!$CN523=\"Yes\",'Enrollment Form'!$CO523=\"\"),\"N\",\"Y\"))","v":"-"},{"$f":"IF(OR('Enrollment Form'!$CN523=\"\",'Enrollment Form'!$CN523=\"No\"),\"-\",IF(AND('Enrollment Form'!$CN523=\"Yes\",'Enrollment Form'!$CP523=\"\"),\"N\",\"Y\"))","v":"-"},{"$f":"IF('Enrollment Form'!B523<>\"Subscriber\",\"-\",IF(AND('Enrollment Form'!B523=\"Subscriber\",'Enrollment Form'!C523=\"Enroll\",'Enrollment Form'!AA523=\"\"),\"N\",\"Y\"))","v":"-"},{"$f":"IF(OR('Enrollment Form'!B523=\"Subscriber\",'Enrollment Form'!B523=\"\"),\"-\",IF('Enrollment Form'!BP523=\"\",\"N\",\"Y\"))","v":"-"},{"$f":"IF('Enrollment Form'!B523<>\"Subscriber\",\"-\",IF(AND('Enrollment Form'!B523=\"Subscriber\",'Enrollment Form'!G523=\"\"),\"N\",\"Y\"))","v":"-"},{"$f":"IF('Enrollment Form'!A523=\"\",\"\",IF('Enrollment Form'!B523=\"Subscriber\",\"-\",IF(AND('Enrollment Form'!B523<>\"Subscriber\",'Enrollment Form'!G523='Enrollment Form'!H523),\"N\",\"Y\")))","v":""},{"$f":"COUNTIF(C516:AN516,\"N\")","v":0}]
[524,{"$f":"IF('Enrollment Form'!$A524<>\"\",\"Y\",\"N\")","v":"N"},{"$f":"IF(AND('Enrollment Form'!$B524=\"\",'Enrollment Form'!$C524<>\"\"),\"N\",IF($B517=\"N\",\"\",\"Y\"))","v":""},{"$f":"IF(OR($B517=\"N\",'Enrollment Form'!G524=\"\"),\"\",IF('Enrollment Form'!$B524<>\"Subscriber\",\"\",IF('Enrollment Form'!$G524='Enrollment Form'!$H524,\"Y\",\"N\")))","v":""},{"$f":"IF($B517=\"N\",\"\",IF(AND(COUNTIFS('Enrollment Form'!$H$11:$H$1000,'Enrollment Form'!$H524,'Enrollment Form'!$B$11:$B$1000,'Enrollment Form'!$B524)>1,'Enrollment Form'!$H524<>\"\"),\"N\",\"Y\"))","v":""},{"$f":"IF($B517=\"N\",\"\",IF(LEN('Enrollment Form'!$Y524)=0,\"\",IF(LEN('Enrollment Form'!$Y524)<>5,\"N\",\"Y\")))","v":""},{"$f":"IF($B517=\"N\",\"\",IF(LEN('Enrollment Form'!$AD524=0),\"\",IF(LEN('Enrollment Form'!$AD524)<>5,\"N\",\"Y\")))","v":""},{"$f":"IF($B517=\"N\",\"\",IF(LEN('Enrollment Form'!$BS524=0),\"\",IF(LEN('Enrollment Form'!$BS524)<>5,\"N\",\"Y\")))","v":""},{"$f":"IF($B517=\"N\",\"\",IF(LEN('Enrollment Form'!$AE524)=0,\"\",IF(LEN('Enrollment Form'!$AE524)<>10,\"N\",\"Y\")))","v":""},{"$f":"IF($B517=\"N\",\"\",IF(LEN('Enrollment Form'!$AF524)=0,\"\",IF(LEN('Enrollment Form'!$AF524)<>10,\"N\",\"Y\")))","v":""},{"$f":"IF('Enrollment Form'!$O524<>\"Graded\",\"-\",IF(AND('Enrollment Form'!$O524=\"Graded\",'Enrollment Form'!$AR524<>\"\"),\"Y\",\"N\"))","v":"-"},{"$f":"IF($B517=\"N\",\"\",IF(OR('Enrollment Form'!$B524<>\"Subscriber\",'Enrollment Form'!$C524=\"ROC\"),\"-\",IF(AND('Enrollment Form'!$B524=\"Subscriber\",'Enrollment Form'!$C524=\"Enroll\",'Enrollment Form'!$AJ524<>\"\"),\"Y\",\"N\")))","v":""},{"$f":"IF($B517=\"N\",\"\",IF(OR('Enrollment Form'!$B524<>\"Subscriber\",'Enrollment Form'!$C524=\"ROC\"),\"-\",IF(AND('Enrollment Form'!$B524=\"Subscriber\",'Enrollment Form'!$C524=\"Enroll\",'Enrollment Form'!$AK524<>\"\"),\"Y\",\"N\")))","v":""},{"$f":"IF($B517=\"N\",\"\",IF(OR('Enrollment Form'!$B524<>\"Subscriber\",'Enrollment Form'!$C524=\"ROC\"),\"-\",IF(AND('Enrollment Form'!$B524=\"Subscriber\",'Enrollment Form'!$C524=\"Enroll\",'Enrollment Form'!$AL524<>\"\"),\"Y\",\"N\")))","v":""},{"$f":"IF($B517=\"N\",\"\",IF(OR('Enrollment Form'!$B524<>\"Subscriber\",'Enrollment Form'!$C524=\"ROC\"),\"-\",IF(AND('Enrollment Form'!$B524=\"Subscriber\",'Enrollment Form'!$C524=\"Enroll\",'Enrollment Form'!$AP524<>\"\"),\"Y\",\"N\")))","v":""},{"$f":"IF($B517=\"N\",\"\",IF(OR('Enrollment Form'!$B524<>\"Subscriber\",'Enrollment Form'!$C524=\"ROC\"),\"-\",IF(AND('Enrollment Form'!$B524=\"Subscriber\",'Enrollment Form'!$C524=\"Enroll\",'Enrollment Form'!$AQ524<>\"\"),\"Y\",\"N\")))","v":""},{"$f":"IF($B517=\"N\",\"\",IF(OR('Enrollment Form'!$B524<>\"Subscriber\",'Enrollment Form'!$C524=\"ROC\"),\"-\",IF(AND('Enrollment Form'!$B524=\"Subscriber\",'Enrollment Form'!$C524=\"Enroll\",'Enrollment Form'!$AS524<>\"\"),\"Y\",\"N\")))","v":""},{"$f":"IF($B517=\"N\",\"\",IF($Q517=\"-\",\"-\",IF(AND($Q517=\"Y\",'Enrollment Form'!$AS524=\"No\"),\"-\",IF(AND($Q517=\"Y\",'Enrollment Form'!$AS524=\"Yes\",'Enrollment Form'!$AT524<>\"\"),\"Y\",\"N\"))))","v":""},{"$f":"IF($B517=\"N\",\"\",IF(OR('Enrollment Form'!$B524<>\"Subscriber\",'Enrollment Form'!$C524=\"ROC\"),\"-\",IF(AND('Enrollment Form'!$B524=\"Subscriber\",'Enrollment Form'!$C524=\"Enroll\",'Enrollment Form'!$CV524<>\"\"),\"Y\",\"N\")))","v":""},{"$f":"IF($B517=\"N\",\"\",IF($S517=\"-\",\"-\",IF(AND($S517=\"Y\",'Enrollment Form'!$CV524=\"No\"),\"-\",IF(AND($S517=\"Y\",'Enrollment Form'!$CV524=\"Yes\",'Enrollment Form'!$CW524<>\"\"),\"Y\",\"N\"))))","v":""},{"$f":"IF(OR('Enrollment Form'!$AY524=\"Yes\",'Enrollment Form'!$AY524=\"\"),\"-\",IF(OR(AND('Enrollment Form'!$AY524=\"No\",ISERROR(FIND(\"HMO\",VLOOKUP('Enrollment Form'!G524,'Enrollment Form'!H$11:J$1000,3,FALSE),1))=FALSE,COUNTA('Enrollment Form'!$AZ524:$BC524)=4),AND('Enrollment Form'!$AY524=\"No\",ISERROR(FIND(\"HMO\",VLOOKUP('Enrollment Form'!G524,'Enrollment Form'!H$11:J$1000,3,FALSE),1))=FALSE,COUNTA('Enrollment Form'!$BT524:$BW524)=4)),\"Y\",\"N\"))","v":"-"},{"$f":"IF($B517=\"N\",\"\",IF('Enrollment Form'!$B524=\"Subscriber\",\"-\",IF(COUNTA('Enrollment Form'!$BL524,'Enrollment Form'!$BN524)=2,\"Y\",\"N\")))","v":""},{"$f":"IF($B517=\"N\",\"\",IF(OR('Enrollment Form'!$AX524=\"\",'Enrollment Form'!$AX524=\"No\"),\"-\",IF(AND('Enrollment Form'!$AX524=\"Yes\",COUNTA('Enrollment Form'!$CR524)=1),\"Y\",\"N\")))","v":""},{"$f":"IF(OR('Enrollment Form'!$CR524=\"\",'Enrollment Form'!$CR524=\"No\"),\"-\",IF(COUNTA('Enrollment Form'!$CT524:$CU524)=2,\"Y\",\"N\"))","v":"-"},{"$f":"IF($B517=\"N\",\"\",IF(COUNTIF('Enrollment Form'!$DG524:$DP524,\"Other\")=COUNTA('Enrollment Form'!$DK524,'Enrollment Form'!$DH524,'Enrollment Form'!$DN524,'Enrollment Form'!$DQ524),\"Y\",\"N\"))","v":""},{"$f":"IF($B517=\"N\",\"\",IF(OR('Enrollment Form'!B524<>\"Subscriber\",'Enrollment Form'!C524=\"ROC\",COUNTIF('Enrollment Form'!AV524:AW524,\"Yes\")>=1),\"-\",IF(AND('Enrollment Form'!C524=\"Enroll\",COUNTIF('Enrollment Form'!AV524:AW524,\"No\")=2,'Enrollment Form'!AX524=\"\"),\"N\",\"Y\")))","v":""},{"$f":"IF(OR(B517=\"N\",'Enrollment Form'!B524<>\"Subscriber\",'Enrollment Form'!C524=\"ROC\",'Enrollment Form'!O524<>\"Multiple of Salary\"),\"-\",IF(COUNTA('Enrollment Form'!T524:U524)<2,\"N\",\"Y\"))","v":"-"},{"$f":"IF(B517=\"N\",\"\",IF(OR('Enrollment Form'!C524=\"ROC\",'Enrollment Form'!B524<>\"Subscriber\",'Enrollment Form'!O524=\"Waive\",'Enrollment Form'!O524=\"\"),\"-\",IF('Enrollment Form'!P524=\"\",\"N\",\"Y\")))","v":""},{"$f":"IF($B517=\"N\",\"\",IF(AND('Enrollment Form'!$C524=\"ROC\",'Enrollment Form'!$DR524<>\"\"),\"Y\",IF(AND('Enrollment Form'!$C524=\"ROC\",'Enrollment Form'!$DR524=\"\"),\"N\",IF(AND('Enrollment Form'!$C524=\"Enroll\",'Enrollment Form'!$B524=\"Subscriber\",'Enrollment Form'!$CX524=\"No\",'Enrollment Form'!$DR524=\"\"),\"N\",IF(AND('Enrollment Form'!$C524=\"Enroll\",'Enrollment Form'!$B524=\"Subscriber\",'Enrollment Form'!$CX524=\"Yes\"),\"-\",\"Y\")))))","v":""},{"$f":"IF($B517=\"N\",\"\",IF(AND('Enrollment Form'!$C524=\"ROC\",'Enrollment Form'!$DS524<>\"\"),\"Y\",IF(AND('Enrollment Form'!$C524=\"ROC\",'Enrollment Form'!$DS524=\"\"),\"N\",IF(AND('Enrollment Form'!$C524=\"Enroll\",'Enrollment Form'!$B524=\"Subscriber\",'Enrollment Form'!$CX524=\"No\",'Enrollment Form'!$DS524=\"\"),\"N\",IF(AND('Enrollment Form'!$C524=\"Enroll\",'Enrollment Form'!$B524=\"Subscriber\",'Enrollment Form'!$CX524=\"Yes\"),\"-\",\"Y\")))))","v":""},{"$f":"IF('Enrollment Form'!AH524=\"\",\"\",IF(ISERROR(SEARCH(\".\",'Enrollment Form'!AH524,SEARCH(\"@\",'Enrollment Form'!AH524))),\"N\",\"Y\"))","v":""},{"$f":"IF(OR($B517=\"N\",'Enrollment Form'!$G524=\"\"),\"\",IF('Enrollment Form'!$B524<>\"Subscriber\",\"-\",IF(COUNTIF('Enrollment Form'!$AV524:$AW524,\"Yes\")=2,\"N\",\"Y\")))","v":""},{"$f":"IF(OR('Enrollment Form'!$CJ524=\"\",'Enrollment Form'!$CJ524=\"No\"),\"-\",IF(AND('Enrollment Form'!$CJ524=\"Yes\",'Enrollment Form'!$CK524=\"\"),\"N\",\"Y\"))","v":"-"},{"$f":"IF(OR('Enrollment Form'!$CL524=\"\",'Enrollment Form'!$CL524=\"No\"),\"-\",IF(AND('Enrollment Form'!$CL524=\"Yes\",'Enrollment Form'!$CM524=\"\"),\"N\",\"Y\"))","v":"-"},{"$f":"IF(OR('Enrollment Form'!$CN524=\"\",'Enrollment Form'!$CN524=\"No\"),\"-\",IF(AND('Enrollment Form'!$CN524=\"Yes\",'Enrollment Form'!$CO524=\"\"),\"N\",\"Y\"))","v":"-"},{"$f":"IF(OR('Enrollment Form'!$CN524=\"\",'Enrollment Form'!$CN524=\"No\"),\"-\",IF(AND('Enrollment Form'!$CN524=\"Yes\",'Enrollment Form'!$CP524=\"\"),\"N\",\"Y\"))","v":"-"},{"$f":"IF('Enrollment Form'!B524<>\"Subscriber\",\"-\",IF(AND('Enrollment Form'!B524=\"Subscriber\",'Enrollment Form'!C524=\"Enroll\",'Enrollment Form'!AA524=\"\"),\"N\",\"Y\"))","v":"-"},{"$f":"IF(OR('Enrollment Form'!B524=\"Subscriber\",'Enrollment Form'!B524=\"\"),\"-\",IF('Enrollment Form'!BP524=\"\",\"N\",\"Y\"))","v":"-"},{"$f":"IF('Enrollment Form'!B524<>\"Subscriber\",\"-\",IF(AND('Enrollment Form'!B524=\"Subscriber\",'Enrollment Form'!G524=\"\"),\"N\",\"Y\"))","v":"-"},{"$f":"IF('Enrollment Form'!A524=\"\",\"\",IF('Enrollment Form'!B524=\"Subscriber\",\"-\",IF(AND('Enrollment Form'!B524<>\"Subscriber\",'Enrollment Form'!G524='Enrollment Form'!H524),\"N\",\"Y\")))","v":""},0]
[{"$f":"1+A517","v":525},{"$f":"IF('Enrollment Form'!$A525<>\"\",\"Y\",\"N\")","v":"N"},{"$f":"IF(AND('Enrollment Form'!$B525=\"\",'Enrollment Form'!$C525<>\"\"),\"N\",IF($B518=\"N\",\"\",\"Y\"))","v":""},{"$f":"IF(OR($B518=\"N\",'Enrollment Form'!G525=\"\"),\"\",IF('Enrollment Form'!$B525<>\"Subscriber\",\"\",IF('Enrollment Form'!$G525='Enrollment Form'!$H525,\"Y\",\"N\")))","v":""},{"$f":"IF($B518=\"N\",\"\",IF(AND(COUNTIFS('Enrollment Form'!$H$11:$H$1000,'Enrollment Form'!$H525,'Enrollment Form'!$B$11:$B$1000,'Enrollment Form'!$B525)>1,'Enrollment Form'!$H525<>\"\"),\"N\",\"Y\"))","v":""},{"$f":"IF($B518=\"N\",\"\",IF(LEN('Enrollment Form'!$Y525)=0,\"\",IF(LEN('Enrollment Form'!$Y525)<>5,\"N\",\"Y\")))","v":""},{"$f":"IF($B518=\"N\",\"\",IF(LEN('Enrollment Form'!$AD525=0),\"\",IF(LEN('Enrollment Form'!$AD525)<>5,\"N\",\"Y\")))","v":""},{"$f":"IF($B518=\"N\",\"\",IF(LEN('Enrollment Form'!$BS525=0),\"\",IF(LEN('Enrollment Form'!$BS525)<>5,\"N\",\"Y\")))","v":""},{"$f":"IF($B518=\"N\",\"\",IF(LEN('Enrollment Form'!$AE525)=0,\"\",IF(LEN('Enrollment Form'!$AE525)<>10,\"N\",\"Y\")))","v":""},{"$f":"IF($B518=\"N\",\"\",IF(LEN('Enrollment Form'!$AF525)=0,\"\",IF(LEN('Enrollment Form'!$AF525)<>10,\"N\",\"Y\")))","v":""},{"$f":"IF('Enrollment Form'!$O525<>\"Graded\",\"-\",IF(AND('Enrollment Form'!$O525=\"Graded\",'Enrollment Form'!$AR525<>\"\"),\"Y\",\"N\"))","v":"-"},{"$f":"IF($B518=\"N\",\"\",IF(OR('Enrollment Form'!$B525<>\"Subscriber\",'Enrollment Form'!$C525=\"ROC\"),\"-\",IF(AND('Enrollment Form'!$B525=\"Subscriber\",'Enrollment Form'!$C525=\"Enroll\",'Enrollment Form'!$AJ525<>\"\"),\"Y\",\"N\")))","v":""},{"$f":"IF($B518=\"N\",\"\",IF(OR('Enrollment Form'!$B525<>\"Subscriber\",'Enrollment Form'!$C525=\"ROC\"),\"-\",IF(AND('Enrollment Form'!$B525=\"Subscriber\",'Enrollment Form'!$C525=\"Enroll\",'Enrollment Form'!$AK525<>\"\"),\"Y\",\"N\")))","v":""},{"$f":"IF($B518=\"N\",\"\",IF(OR('Enrollment Form'!$B525<>\"Subscriber\",'Enrollment Form'!$C525=\"ROC\"),\"-\",IF(AND('Enrollment Form'!$B525=\"Subscriber\",'Enrollment Form'!$C525=\"Enroll\",'Enrollment Form'!$AL525<>\"\"),\"Y\",\"N\")))","v":""},{"$f":"IF($B518=\"N\",\"\",IF(OR('Enrollment Form'!$B525<>\"Subscriber\",'Enrollment Form'!$C525=\"ROC\"),\"-\",IF(AND('Enrollment Form'!$B525=\"Subscriber\",'Enrollment Form'!$C525=\"Enroll\",'Enrollment Form'!$AP525<>\"\"),\"Y\",\"N\")))","v":""},{"$f":"IF($B518=\"N\",\"\",IF(OR('Enrollment Form'!$B525<>\"Subscriber\",'Enrollment Form'!$C525=\"ROC\"),\"-\",IF(AND('Enrollment Form'!$B525=\"Subscriber\",'Enrollment Form'!$C525=\"Enroll\",'Enrollment Form'!$AQ525<>\"\"),\"Y\",\"N\")))","v":""},{"$f":"IF($B518=\"N\",\"\",IF(OR('Enrollment Form'!$B525<>\"Subscriber\",'Enrollment Form'!$C525=\"ROC\"),\"-\",IF(AND('Enrollment Form'!$B525=\"Subscriber\",'Enrollment Form'!$C525=\"Enroll\",'Enrollment Form'!$AS525<>\"\"),\"Y\",\"N\")))","v":""},{"$f":"IF($B518=\"N\",\"\",IF($Q518=\"-\",\"-\",IF(AND($Q518=\"Y\",'Enrollment Form'!$AS525=\"No\"),\"-\",IF(AND($Q518=\"Y\",'Enrollment Form'!$AS525=\"Yes\",'Enrollment Form'!$AT525<>\"\"),\"Y\",\"N\"))))","v":""},{"$f":"IF($B518=\"N\",\"\",IF(OR('Enrollment Form'!$B525<>\"Subscriber\",'Enrollment Form'!$C525=\"ROC\"),\"-\",IF(AND('Enrollment Form'!$B525=\"Subscriber\",'Enrollment Form'!$C525=\"Enroll\",'Enrollment Form'!$CV525<>\"\"),\"Y\",\"N\")))","v":""},{"$f":"IF($B518=\"N\",\"\",IF($S518=\"-\",\"-\",IF(AND($S518=\"Y\",'Enrollment Form'!$CV525=\"No\"),\"-\",IF(AND($S518=\"Y\",'Enrollment Form'!$CV525=\"Yes\",'Enrollment Form'!$CW525<>\"\"),\"Y\",\"N\"))))","v":""},{"$f":"IF(OR('Enrollment Form'!$AY525=\"Yes\",'Enrollment Form'!$AY525=\"\"),\"-\",IF(OR(AND('Enrollment Form'!$AY525=\"No\",ISERROR(FIND(\"HMO\",VLOOKUP('Enrollment Form'!G525,'Enrollment Form'!H$11:J$1000,3,FALSE),1))=FALSE,COUNTA('Enrollment Form'!$AZ525:$BC525)=4),AND('Enrollment Form'!$AY525=\"No\",ISERROR(FIND(\"HMO\",VLOOKUP('Enrollment Form'!G525,'Enrollment Form'!H$11:J$1000,3,FALSE),1))=FALSE,COUNTA('Enrollment Form'!$BT525:$BW525)=4)),\"Y\",\"N\"))","v":"-"},{"$f":"IF($B518=\"N\",\"\",IF('Enrollment Form'!$B525=\"Subscriber\",\"-\",IF(COUNTA('Enrollment Form'!$BL525,'Enrollment Form'!$BN525)=2,\"Y\",\"N\")))","v":""},{"$f":"IF($B518=\"N\",\"\",IF(OR('Enrollment Form'!$AX525=\"\",'Enrollment Form'!$AX525=\"No\"),\"-\",IF(AND('Enrollment Form'!$AX525=\"Yes\",COUNTA('Enrollment Form'!$CR525)=1),\"Y\",\"N\")))","v":""},{"$f":"IF(OR('Enrollment Form'!$CR525=\"\",'Enrollment Form'!$CR525=\"No\"),\"-\",IF(COUNTA('Enrollment Form'!$CT525:$CU525)=2,\"Y\",\"N\"))","v":"-"},{"$f":"IF($B518=\"N\",\"\",IF(COUNTIF('Enrollment Form'!$DG525:$DP525,\"Other\")=COUNTA('Enrollment Form'!$DK525,'Enrollment Form'!$DH525,'Enrollment Form'!$DN525,'Enrollment Form'!$DQ525),\"Y\",\"N\"))","v":""},{"$f":"IF($B518=\"N\",\"\",IF(OR('Enrollment Form'!B525<>\"Subscriber\",'Enrollment Form'!C525=\"ROC\",COUNTIF('Enrollment Form'!AV525:AW525,\"Yes\")>=1),\"-\",IF(AND('Enrollment Form'!C525=\"Enroll\",COUNTIF('Enrollment Form'!AV525:AW525,\"No\")=2,'Enrollment Form'!AX525=\"\"),\"N\",\"Y\")))","v":""},{"$f":"IF(OR(B518=\"N\",'Enrollment Form'!B525<>\"Subscriber\",'Enrollment Form'!C525=\"ROC\",'Enrollment Form'!O525<>\"Multiple of Salary\"),\"-\",IF(COUNTA('Enrollment Form'!T525:U525)<2,\"N\",\"Y\"))","v":"-"},{"$f":"IF(B518=\"N\",\"\",IF(OR('Enrollment Form'!C525=\"ROC\",'Enrollment Form'!B525<>\"Subscriber\",'Enrollment Form'!O525=\"Waive\",'Enrollment Form'!O525=\"\"),\"-\",IF('Enrollment Form'!P525=\"\",\"N\",\"Y\")))","v":""},{"$f":"IF($B518=\"N\",\"\",IF(AND('Enrollment Form'!$C525=\"ROC\",'Enrollment Form'!$DR525<>\"\"),\"Y\",IF(AND('Enrollment Form'!$C525=\"ROC\",'Enrollment Form'!$DR525=\"\"),\"N\",IF(AND('Enrollment Form'!$C525=\"Enroll\",'Enrollment Form'!$B525=\"Subscriber\",'Enrollment Form'!$CX525=\"No\",'Enrollment Form'!$DR525=\"\"),\"N\",IF(AND('Enrollment Form'!$C525=\"Enroll\",'Enrollment Form'!$B525=\"Subscriber\",'Enrollment Form'!$CX525=\"Yes\"),\"-\",\"Y\")))))","v":""},{"$f":"IF($B518=\"N\",\"\",IF(AND('Enrollment Form'!$C525=\"ROC\",'Enrollment Form'!$DS525<>\"\"),\"Y\",IF(AND('Enrollment Form'!$C525=\"ROC\",'Enrollment Form'!$DS525=\"\"),\"N\",IF(AND('Enrollment Form'!$C525=\"Enroll\",'Enrollment Form'!$B525=\"Subscriber\",'Enrollment Form'!$CX525=\"No\",'Enrollment Form'!$DS525=\"\"),\"N\",IF(AND('Enrollment Form'!$C525=\"Enroll\",'Enrollment Form'!$B525=\"Subscriber\",'Enrollment Form'!$CX525=\"Yes\"),\"-\",\"Y\")))))","v":""},{"$f":"IF('Enrollment Form'!AH525=\"\",\"\",IF(ISERROR(SEARCH(\".\",'Enrollment Form'!AH525,SEARCH(\"@\",'Enrollment Form'!AH525))),\"N\",\"Y\"))","v":""},{"$f":"IF(OR($B518=\"N\",'Enrollment Form'!$G525=\"\"),\"\",IF('Enrollment Form'!$B525<>\"Subscriber\",\"-\",IF(COUNTIF('Enrollment Form'!$AV525:$AW525,\"Yes\")=2,\"N\",\"Y\")))","v":""},{"$f":"IF(OR('Enrollment Form'!$CJ525=\"\",'Enrollment Form'!$CJ525=\"No\"),\"-\",IF(AND('Enrollment Form'!$CJ525=\"Yes\",'Enrollment Form'!$CK525=\"\"),\"N\",\"Y\"))","v":"-"},{"$f":"IF(OR('Enrollment Form'!$CL525=\"\",'Enrollment Form'!$CL525=\"No\"),\"-\",IF(AND('Enrollment Form'!$CL525=\"Yes\",'Enrollment Form'!$CM525=\"\"),\"N\",\"Y\"))","v":"-"},{"$f":"IF(OR('Enrollment Form'!$CN525=\"\",'Enrollment Form'!$CN525=\"No\"),\"-\",IF(AND('Enrollment Form'!$CN525=\"Yes\",'Enrollment Form'!$CO525=\"\"),\"N\",\"Y\"))","v":"-"},{"$f":"IF(OR('Enrollment Form'!$CN525=\"\",'Enrollment Form'!$CN525=\"No\"),\"-\",IF(AND('Enrollment Form'!$CN525=\"Yes\",'Enrollment Form'!$CP525=\"\"),\"N\",\"Y\"))","v":"-"},{"$f":"IF('Enrollment Form'!B525<>\"Subscriber\",\"-\",IF(AND('Enrollment Form'!B525=\"Subscriber\",'Enrollment Form'!C525=\"Enroll\",'Enrollment Form'!AA525=\"\"),\"N\",\"Y\"))","v":"-"},{"$f":"IF(OR('Enrollment Form'!B525=\"Subscriber\",'Enrollment Form'!B525=\"\"),\"-\",IF('Enrollment Form'!BP525=\"\",\"N\",\"Y\"))","v":"-"},{"$f":"IF('Enrollment Form'!B525<>\"Subscriber\",\"-\",IF(AND('Enrollment Form'!B525=\"Subscriber\",'Enrollment Form'!G525=\"\"),\"N\",\"Y\"))","v":"-"},{"$f":"IF('Enrollment Form'!A525=\"\",\"\",IF('Enrollment Form'!B525=\"Subscriber\",\"-\",IF(AND('Enrollment Form'!B525<>\"Subscriber\",'Enrollment Form'!G525='Enrollment Form'!H525),\"N\",\"Y\")))","v":""},0]
[526,{"$f":"IF('Enrollment Form'!$A526<>\"\",\"Y\",\"N\")","v":"N"},{"$f":"IF(AND('Enrollment Form'!$B526=\"\",'Enrollment Form'!$C526<>\"\"),\"N\",IF($B519=\"N\",\"\",\"Y\"))","v":""},{"$f":"IF(OR($B519=\"N\",'Enrollment Form'!G526=\"\"),\"\",IF('Enrollment Form'!$B526<>\"Subscriber\",\"\",IF('Enrollment Form'!$G526='Enrollment Form'!$H526,\"Y\",\"N\")))","v":""},{"$f":"IF($B519=\"N\",\"\",IF(AND(COUNTIFS('Enrollment Form'!$H$11:$H$1000,'Enrollment Form'!$H526,'Enrollment Form'!$B$11:$B$1000,'Enrollment Form'!$B526)>1,'Enrollment Form'!$H526<>\"\"),\"N\",\"Y\"))","v":""},{"$f":"IF($B519=\"N\",\"\",IF(LEN('Enrollment Form'!$Y526)=0,\"\",IF(LEN('Enrollment Form'!$Y526)<>5,\"N\",\"Y\")))","v":""},{"$f":"IF($B519=\"N\",\"\",IF(LEN('Enrollment Form'!$AD526=0),\"\",IF(LEN('Enrollment Form'!$AD526)<>5,\"N\",\"Y\")))","v":""},{"$f":"IF($B519=\"N\",\"\",IF(LEN('Enrollment Form'!$BS526=0),\"\",IF(LEN('Enrollment Form'!$BS526)<>5,\"N\",\"Y\")))","v":""},{"$f":"IF($B519=\"N\",\"\",IF(LEN('Enrollment Form'!$AE526)=0,\"\",IF(LEN('Enrollment Form'!$AE526)<>10,\"N\",\"Y\")))","v":""},{"$f":"IF($B519=\"N\",\"\",IF(LEN('Enrollment Form'!$AF526)=0,\"\",IF(LEN('Enrollment Form'!$AF526)<>10,\"N\",\"Y\")))","v":""},{"$f":"IF('Enrollment Form'!$O526<>\"Graded\",\"-\",IF(AND('Enrollment Form'!$O526=\"Graded\",'Enrollment Form'!$AR526<>\"\"),\"Y\",\"N\"))","v":"-"},{"$f":"IF($B519=\"N\",\"\",IF(OR('Enrollment Form'!$B526<>\"Subscriber\",'Enrollment Form'!$C526=\"ROC\"),\"-\",IF(AND('Enrollment Form'!$B526=\"Subscriber\",'Enrollment Form'!$C526=\"Enroll\",'Enrollment Form'!$AJ526<>\"\"),\"Y\",\"N\")))","v":""},{"$f":"IF($B519=\"N\",\"\",IF(OR('Enrollment Form'!$B526<>\"Subscriber\",'Enrollment Form'!$C526=\"ROC\"),\"-\",IF(AND('Enrollment Form'!$B526=\"Subscriber\",'Enrollment Form'!$C526=\"Enroll\",'Enrollment Form'!$AK526<>\"\"),\"Y\",\"N\")))","v":""},{"$f":"IF($B519=\"N\",\"\",IF(OR('Enrollment Form'!$B526<>\"Subscriber\",'Enrollment Form'!$C526=\"ROC\"),\"-\",IF(AND('Enrollment Form'!$B526=\"Subscriber\",'Enrollment Form'!$C526=\"Enroll\",'Enrollment Form'!$AL526<>\"\"),\"Y\",\"N\")))","v":""},{"$f":"IF($B519=\"N\",\"\",IF(OR('Enrollment Form'!$B526<>\"Subscriber\",'Enrollment Form'!$C526=\"ROC\"),\"-\",IF(AND('Enrollment Form'!$B526=\"Subscriber\",'Enrollment Form'!$C526=\"Enroll\",'Enrollment Form'!$AP526<>\"\"),\"Y\",\"N\")))","v":""},{"$f":"IF($B519=\"N\",\"\",IF(OR('Enrollment Form'!$B526<>\"Subscriber\",'Enrollment Form'!$C526=\"ROC\"),\"-\",IF(AND('Enrollment Form'!$B526=\"Subscriber\",'Enrollment Form'!$C526=\"Enroll\",'Enrollment Form'!$AQ526<>\"\"),\"Y\",\"N\")))","v":""},{"$f":"IF($B519=\"N\",\"\",IF(OR('Enrollment Form'!$B526<>\"Subscriber\",'Enrollment Form'!$C526=\"ROC\"),\"-\",IF(AND('Enrollment Form'!$B526=\"Subscriber\",'Enrollment Form'!$C526=\"Enroll\",'Enrollment Form'!$AS526<>\"\"),\"Y\",\"N\")))","v":""},{"$f":"IF($B519=\"N\",\"\",IF($Q519=\"-\",\"-\",IF(AND($Q519=\"Y\",'Enrollment Form'!$AS526=\"No\"),\"-\",IF(AND($Q519=\"Y\",'Enrollment Form'!$AS526=\"Yes\",'Enrollment Form'!$AT526<>\"\"),\"Y\",\"N\"))))","v":""},{"$f":"IF($B519=\"N\",\"\",IF(OR('Enrollment Form'!$B526<>\"Subscriber\",'Enrollment Form'!$C526=\"ROC\"),\"-\",IF(AND('Enrollment Form'!$B526=\"Subscriber\",'Enrollment Form'!$C526=\"Enroll\",'Enrollment Form'!$CV526<>\"\"),\"Y\",\"N\")))","v":""},{"$f":"IF($B519=\"N\",\"\",IF($S519=\"-\",\"-\",IF(AND($S519=\"Y\",'Enrollment Form'!$CV526=\"No\"),\"-\",IF(AND($S519=\"Y\",'Enrollment Form'!$CV526=\"Yes\",'Enrollment Form'!$CW526<>\"\"),\"Y\",\"N\"))))","v":""},{"$f":"IF(OR('Enrollment Form'!$AY526=\"Yes\",'Enrollment Form'!$AY526=\"\"),\"-\",IF(OR(AND('Enrollment Form'!$AY526=\"No\",ISERROR(FIND(\"HMO\",VLOOKUP('Enrollment Form'!G526,'Enrollment Form'!H$11:J$1000,3,FALSE),1))=FALSE,COUNTA('Enrollment Form'!$AZ526:$BC526)=4),AND('Enrollment Form'!$AY526=\"No\",ISERROR(FIND(\"HMO\",VLOOKUP('Enrollment Form'!G526,'Enrollment Form'!H$11:J$1000,3,FALSE),1))=FALSE,COUNTA('Enrollment Form'!$BT526:$BW526)=4)),\"Y\",\"N\"))","v":"-"},{"$f":"IF($B519=\"N\",\"\",IF('Enrollment Form'!$B526=\"Subscriber\",\"-\",IF(COUNTA('Enrollment Form'!$BL526,'Enrollment Form'!$BN526)=2,\"Y\",\"N\")))","v":""},{"$f":"IF($B519=\"N\",\"\",IF(OR('Enrollment Form'!$AX526=\"\",'Enrollment Form'!$AX526=\"No\"),\"-\",IF(AND('Enrollment Form'!$AX526=\"Yes\",COUNTA('Enrollment Form'!$CR526)=1),\"Y\",\"N\")))","v":""},{"$f":"IF(OR('Enrollment Form'!$CR526=\"\",'Enrollment Form'!$CR526=\"No\"),\"-\",IF(COUNTA('Enrollment Form'!$CT526:$CU526)=2,\"Y\",\"N\"))","v":"-"},{"$f":"IF($B519=\"N\",\"\",IF(COUNTIF('Enrollment Form'!$DG526:$DP526,\"Other\")=COUNTA('Enrollment Form'!$DK526,'Enrollment Form'!$DH526,'Enrollment Form'!$DN526,'Enrollment Form'!$DQ526),\"Y\",\"N\"))","v":""},{"$f":"IF($B519=\"N\",\"\",IF(OR('Enrollment Form'!B526<>\"Subscriber\",'Enrollment Form'!C526=\"ROC\",COUNTIF('Enrollment Form'!AV526:AW526,\"Yes\")>=1),\"-\",IF(AND('Enrollment Form'!C526=\"Enroll\",COUNTIF('Enrollment Form'!AV526:AW526,\"No\")=2,'Enrollment Form'!AX526=\"\"),\"N\",\"Y\")))","v":""},{"$f":"IF(OR(B519=\"N\",'Enrollment Form'!B526<>\"Subscriber\",'Enrollment Form'!C526=\"ROC\",'Enrollment Form'!O526<>\"Multiple of Salary\"),\"-\",IF(COUNTA('Enrollment Form'!T526:U526)<2,\"N\",\"Y\"))","v":"-"},{"$f":"IF(B519=\"N\",\"\",IF(OR('Enrollment Form'!C526=\"ROC\",'Enrollment Form'!B526<>\"Subscriber\",'Enrollment Form'!O526=\"Waive\",'Enrollment Form'!O526=\"\"),\"-\",IF('Enrollment Form'!P526=\"\",\"N\",\"Y\")))","v":""},{"$f":"IF($B519=\"N\",\"\",IF(AND('Enrollment Form'!$C526=\"ROC\",'Enrollment Form'!$DR526<>\"\"),\"Y\",IF(AND('Enrollment Form'!$C526=\"ROC\",'Enrollment Form'!$DR526=\"\"),\"N\",IF(AND('Enrollment Form'!$C526=\"Enroll\",'Enrollment Form'!$B526=\"Subscriber\",'Enrollment Form'!$CX526=\"No\",'Enrollment Form'!$DR526=\"\"),\"N\",IF(AND('Enrollment Form'!$C526=\"Enroll\",'Enrollment Form'!$B526=\"Subscriber\",'Enrollment Form'!$CX526=\"Yes\"),\"-\",\"Y\")))))","v":""},{"$f":"IF($B519=\"N\",\"\",IF(AND('Enrollment Form'!$C526=\"ROC\",'Enrollment Form'!$DS526<>\"\"),\"Y\",IF(AND('Enrollment Form'!$C526=\"ROC\",'Enrollment Form'!$DS526=\"\"),\"N\",IF(AND('Enrollment Form'!$C526=\"Enroll\",'Enrollment Form'!$B526=\"Subscriber\",'Enrollment Form'!$CX526=\"No\",'Enrollment Form'!$DS526=\"\"),\"N\",IF(AND('Enrollment Form'!$C526=\"Enroll\",'Enrollment Form'!$B526=\"Subscriber\",'Enrollment Form'!$CX526=\"Yes\"),\"-\",\"Y\")))))","v":""},{"$f":"IF('Enrollment Form'!AH526=\"\",\"\",IF(ISERROR(SEARCH(\".\",'Enrollment Form'!AH526,SEARCH(\"@\",'Enrollment Form'!AH526))),\"N\",\"Y\"))","v":""},{"$f":"IF(OR($B519=\"N\",'Enrollment Form'!$G526=\"\"),\"\",IF('Enrollment Form'!$B526<>\"Subscriber\",\"-\",IF(COUNTIF('Enrollment Form'!$AV526:$AW526,\"Yes\")=2,\"N\",\"Y\")))","v":""},{"$f":"IF(OR('Enrollment Form'!$CJ526=\"\",'Enrollment Form'!$CJ526=\"No\"),\"-\",IF(AND('Enrollment Form'!$CJ526=\"Yes\",'Enrollment Form'!$CK526=\"\"),\"N\",\"Y\"))","v":"-"},{"$f":"IF(OR('Enrollment Form'!$CL526=\"\",'Enrollment Form'!$CL526=\"No\"),\"-\",IF(AND('Enrollment Form'!$CL526=\"Yes\",'Enrollment Form'!$CM526=\"\"),\"N\",\"Y\"))","v":"-"},{"$f":"IF(OR('Enrollment Form'!$CN526=\"\",'Enrollment Form'!$CN526=\"No\"),\"-\",IF(AND('Enrollment Form'!$CN526=\"Yes\",'Enrollment Form'!$CO526=\"\"),\"N\",\"Y\"))","v":"-"},{"$f":"IF(OR('Enrollment Form'!$CN526=\"\",'Enrollment Form'!$CN526=\"No\"),\"-\",IF(AND('Enrollment Form'!$CN526=\"Yes\",'Enrollment Form'!$CP526=\"\"),\"N\",\"Y\"))","v":"-"},{"$f":"IF('Enrollment Form'!B526<>\"Subscriber\",\"-\",IF(AND('Enrollment Form'!B526=\"Subscriber\",'Enrollment Form'!C526=\"Enroll\",'Enrollment Form'!AA526=\"\"),\"N\",\"Y\"))","v":"-"},{"$f":"IF(OR('Enrollment Form'!B526=\"Subscriber\",'Enrollment Form'!B526=\"\"),\"-\",IF('Enrollment Form'!BP526=\"\",\"N\",\"Y\"))","v":"-"},{"$f":"IF('Enrollment Form'!B526<>\"Subscriber\",\"-\",IF(AND('Enrollment Form'!B526=\"Subscriber\",'Enrollment Form'!G526=\"\"),\"N\",\"Y\"))","v":"-"},{"$f":"IF('Enrollment Form'!A526=\"\",\"\",IF('Enrollment Form'!B526=\"Subscriber\",\"-\",IF(AND('Enrollment Form'!B526<>\"Subscriber\",'Enrollment Form'!G526='Enrollment Form'!H526),\"N\",\"Y\")))","v":""},0]
[527,{"$f":"IF('Enrollment Form'!$A527<>\"\",\"Y\",\"N\")","v":"N"},{"$f":"IF(AND('Enrollment Form'!$B527=\"\",'Enrollment Form'!$C527<>\"\"),\"N\",IF($B520=\"N\",\"\",\"Y\"))","v":""},{"$f":"IF(OR($B520=\"N\",'Enrollment Form'!G527=\"\"),\"\",IF('Enrollment Form'!$B527<>\"Subscriber\",\"\",IF('Enrollment Form'!$G527='Enrollment Form'!$H527,\"Y\",\"N\")))","v":""},{"$f":"IF($B520=\"N\",\"\",IF(AND(COUNTIFS('Enrollment Form'!$H$11:$H$1000,'Enrollment Form'!$H527,'Enrollment Form'!$B$11:$B$1000,'Enrollment Form'!$B527)>1,'Enrollment Form'!$H527<>\"\"),\"N\",\"Y\"))","v":""},{"$f":"IF($B520=\"N\",\"\",IF(LEN('Enrollment Form'!$Y527)=0,\"\",IF(LEN('Enrollment Form'!$Y527)<>5,\"N\",\"Y\")))","v":""},{"$f":"IF($B520=\"N\",\"\",IF(LEN('Enrollment Form'!$AD527=0),\"\",IF(LEN('Enrollment Form'!$AD527)<>5,\"N\",\"Y\")))","v":""},{"$f":"IF($B520=\"N\",\"\",IF(LEN('Enrollment Form'!$BS527=0),\"\",IF(LEN('Enrollment Form'!$BS527)<>5,\"N\",\"Y\")))","v":""},{"$f":"IF($B520=\"N\",\"\",IF(LEN('Enrollment Form'!$AE527)=0,\"\",IF(LEN('Enrollment Form'!$AE527)<>10,\"N\",\"Y\")))","v":""},{"$f":"IF($B520=\"N\",\"\",IF(LEN('Enrollment Form'!$AF527)=0,\"\",IF(LEN('Enrollment Form'!$AF527)<>10,\"N\",\"Y\")))","v":""},{"$f":"IF('Enrollment Form'!$O527<>\"Graded\",\"-\",IF(AND('Enrollment Form'!$O527=\"Graded\",'Enrollment Form'!$AR527<>\"\"),\"Y\",\"N\"))","v":"-"},{"$f":"IF($B520=\"N\",\"\",IF(OR('Enrollment Form'!$B527<>\"Subscriber\",'Enrollment Form'!$C527=\"ROC\"),\"-\",IF(AND('Enrollment Form'!$B527=\"Subscriber\",'Enrollment Form'!$C527=\"Enroll\",'Enrollment Form'!$AJ527<>\"\"),\"Y\",\"N\")))","v":""},{"$f":"IF($B520=\"N\",\"\",IF(OR('Enrollment Form'!$B527<>\"Subscriber\",'Enrollment Form'!$C527=\"ROC\"),\"-\",IF(AND('Enrollment Form'!$B527=\"Subscriber\",'Enrollment Form'!$C527=\"Enroll\",'Enrollment Form'!$AK527<>\"\"),\"Y\",\"N\")))","v":""},{"$f":"IF($B520=\"N\",\"\",IF(OR('Enrollment Form'!$B527<>\"Subscriber\",'Enrollment Form'!$C527=\"ROC\"),\"-\",IF(AND('Enrollment Form'!$B527=\"Subscriber\",'Enrollment Form'!$C527=\"Enroll\",'Enrollment Form'!$AL527<>\"\"),\"Y\",\"N\")))","v":""},{"$f":"IF($B520=\"N\",\"\",IF(OR('Enrollment Form'!$B527<>\"Subscriber\",'Enrollment Form'!$C527=\"ROC\"),\"-\",IF(AND('Enrollment Form'!$B527=\"Subscriber\",'Enrollment Form'!$C527=\"Enroll\",'Enrollment Form'!$AP527<>\"\"),\"Y\",\"N\")))","v":""},{"$f":"IF($B520=\"N\",\"\",IF(OR('Enrollment Form'!$B527<>\"Subscriber\",'Enrollment Form'!$C527=\"ROC\"),\"-\",IF(AND('Enrollment Form'!$B527=\"Subscriber\",'Enrollment Form'!$C527=\"Enroll\",'Enrollment Form'!$AQ527<>\"\"),\"Y\",\"N\")))","v":""},{"$f":"IF($B520=\"N\",\"\",IF(OR('Enrollment Form'!$B527<>\"Subscriber\",'Enrollment Form'!$C527=\"ROC\"),\"-\",IF(AND('Enrollment Form'!$B527=\"Subscriber\",'Enrollment Form'!$C527=\"Enroll\",'Enrollment Form'!$AS527<>\"\"),\"Y\",\"N\")))","v":""},{"$f":"IF($B520=\"N\",\"\",IF($Q520=\"-\",\"-\",IF(AND($Q520=\"Y\",'Enrollment Form'!$AS527=\"No\"),\"-\",IF(AND($Q520=\"Y\",'Enrollment Form'!$AS527=\"Yes\",'Enrollment Form'!$AT527<>\"\"),\"Y\",\"N\"))))","v":""},{"$f":"IF($B520=\"N\",\"\",IF(OR('Enrollment Form'!$B527<>\"Subscriber\",'Enrollment Form'!$C527=\"ROC\"),\"-\",IF(AND('Enrollment Form'!$B527=\"Subscriber\",'Enrollment Form'!$C527=\"Enroll\",'Enrollment Form'!$CV527<>\"\"),\"Y\",\"N\")))","v":""},{"$f":"IF($B520=\"N\",\"\",IF($S520=\"-\",\"-\",IF(AND($S520=\"Y\",'Enrollment Form'!$CV527=\"No\"),\"-\",IF(AND($S520=\"Y\",'Enrollment Form'!$CV527=\"Yes\",'Enrollment Form'!$CW527<>\"\"),\"Y\",\"N\"))))","v":""},{"$f":"IF(OR('Enrollment Form'!$AY527=\"Yes\",'Enrollment Form'!$AY527=\"\"),\"-\",IF(OR(AND('Enrollment Form'!$AY527=\"No\",ISERROR(FIND(\"HMO\",VLOOKUP('Enrollment Form'!G527,'Enrollment Form'!H$11:J$1000,3,FALSE),1))=FALSE,COUNTA('Enrollment Form'!$AZ527:$BC527)=4),AND('Enrollment Form'!$AY527=\"No\",ISERROR(FIND(\"HMO\",VLOOKUP('Enrollment Form'!G527,'Enrollment Form'!H$11:J$1000,3,FALSE),1))=FALSE,COUNTA('Enrollment Form'!$BT527:$BW527)=4)),\"Y\",\"N\"))","v":"-"},{"$f":"IF($B520=\"N\",\"\",IF('Enrollment Form'!$B527=\"Subscriber\",\"-\",IF(COUNTA('Enrollment Form'!$BL527,'Enrollment Form'!$BN527)=2,\"Y\",\"N\")))","v":""},{"$f":"IF($B520=\"N\",\"\",IF(OR('Enrollment Form'!$AX527=\"\",'Enrollment Form'!$AX527=\"No\"),\"-\",IF(AND('Enrollment Form'!$AX527=\"Yes\",COUNTA('Enrollment Form'!$CR527)=1),\"Y\",\"N\")))","v":""},{"$f":"IF(OR('Enrollment Form'!$CR527=\"\",'Enrollment Form'!$CR527=\"No\"),\"-\",IF(COUNTA('Enrollment Form'!$CT527:$CU527)=2,\"Y\",\"N\"))","v":"-"},{"$f":"IF($B520=\"N\",\"\",IF(COUNTIF('Enrollment Form'!$DG527:$DP527,\"Other\")=COUNTA('Enrollment Form'!$DK527,'Enrollment Form'!$DH527,'Enrollment Form'!$DN527,'Enrollment Form'!$DQ527),\"Y\",\"N\"))","v":""},{"$f":"IF($B520=\"N\",\"\",IF(OR('Enrollment Form'!B527<>\"Subscriber\",'Enrollment Form'!C527=\"ROC\",COUNTIF('Enrollment Form'!AV527:AW527,\"Yes\")>=1),\"-\",IF(AND('Enrollment Form'!C527=\"Enroll\",COUNTIF('Enrollment Form'!AV527:AW527,\"No\")=2,'Enrollment Form'!AX527=\"\"),\"N\",\"Y\")))","v":""},{"$f":"IF(OR(B520=\"N\",'Enrollment Form'!B527<>\"Subscriber\",'Enrollment Form'!C527=\"ROC\",'Enrollment Form'!O527<>\"Multiple of Salary\"),\"-\",IF(COUNTA('Enrollment Form'!T527:U527)<2,\"N\",\"Y\"))","v":"-"},{"$f":"IF(B520=\"N\",\"\",IF(OR('Enrollment Form'!C527=\"ROC\",'Enrollment Form'!B527<>\"Subscriber\",'Enrollment Form'!O527=\"Waive\",'Enrollment Form'!O527=\"\"),\"-\",IF('Enrollment Form'!P527=\"\",\"N\",\"Y\")))","v":""},{"$f":"IF($B520=\"N\",\"\",IF(AND('Enrollment Form'!$C527=\"ROC\",'Enrollment Form'!$DR527<>\"\"),\"Y\",IF(AND('Enrollment Form'!$C527=\"ROC\",'Enrollment Form'!$DR527=\"\"),\"N\",IF(AND('Enrollment Form'!$C527=\"Enroll\",'Enrollment Form'!$B527=\"Subscriber\",'Enrollment Form'!$CX527=\"No\",'Enrollment Form'!$DR527=\"\"),\"N\",IF(AND('Enrollment Form'!$C527=\"Enroll\",'Enrollment Form'!$B527=\"Subscriber\",'Enrollment Form'!$CX527=\"Yes\"),\"-\",\"Y\")))))","v":""},{"$f":"IF($B520=\"N\",\"\",IF(AND('Enrollment Form'!$C527=\"ROC\",'Enrollment Form'!$DS527<>\"\"),\"Y\",IF(AND('Enrollment Form'!$C527=\"ROC\",'Enrollment Form'!$DS527=\"\"),\"N\",IF(AND('Enrollment Form'!$C527=\"Enroll\",'Enrollment Form'!$B527=\"Subscriber\",'Enrollment Form'!$CX527=\"No\",'Enrollment Form'!$DS527=\"\"),\"N\",IF(AND('Enrollment Form'!$C527=\"Enroll\",'Enrollment Form'!$B527=\"Subscriber\",'Enrollment Form'!$CX527=\"Yes\"),\"-\",\"Y\")))))","v":""},{"$f":"IF('Enrollment Form'!AH527=\"\",\"\",IF(ISERROR(SEARCH(\".\",'Enrollment Form'!AH527,SEARCH(\"@\",'Enrollment Form'!AH527))),\"N\",\"Y\"))","v":""},{"$f":"IF(OR($B520=\"N\",'Enrollment Form'!$G527=\"\"),\"\",IF('Enrollment Form'!$B527<>\"Subscriber\",\"-\",IF(COUNTIF('Enrollment Form'!$AV527:$AW527,\"Yes\")=2,\"N\",\"Y\")))","v":""},{"$f":"IF(OR('Enrollment Form'!$CJ527=\"\",'Enrollment Form'!$CJ527=\"No\"),\"-\",IF(AND('Enrollment Form'!$CJ527=\"Yes\",'Enrollment Form'!$CK527=\"\"),\"N\",\"Y\"))","v":"-"},{"$f":"IF(OR('Enrollment Form'!$CL527=\"\",'Enrollment Form'!$CL527=\"No\"),\"-\",IF(AND('Enrollment Form'!$CL527=\"Yes\",'Enrollment Form'!$CM527=\"\"),\"N\",\"Y\"))","v":"-"},{"$f":"IF(OR('Enrollment Form'!$CN527=\"\",'Enrollment Form'!$CN527=\"No\"),\"-\",IF(AND('Enrollment Form'!$CN527=\"Yes\",'Enrollment Form'!$CO527=\"\"),\"N\",\"Y\"))","v":"-"},{"$f":"IF(OR('Enrollment Form'!$CN527=\"\",'Enrollment Form'!$CN527=\"No\"),\"-\",IF(AND('Enrollment Form'!$CN527=\"Yes\",'Enrollment Form'!$CP527=\"\"),\"N\",\"Y\"))","v":"-"},{"$f":"IF('Enrollment Form'!B527<>\"Subscriber\",\"-\",IF(AND('Enrollment Form'!B527=\"Subscriber\",'Enrollment Form'!C527=\"Enroll\",'Enrollment Form'!AA527=\"\"),\"N\",\"Y\"))","v":"-"},{"$f":"IF(OR('Enrollment Form'!B527=\"Subscriber\",'Enrollment Form'!B527=\"\"),\"-\",IF('Enrollment Form'!BP527=\"\",\"N\",\"Y\"))","v":"-"},{"$f":"IF('Enrollment Form'!B527<>\"Subscriber\",\"-\",IF(AND('Enrollment Form'!B527=\"Subscriber\",'Enrollment Form'!G527=\"\"),\"N\",\"Y\"))","v":"-"},{"$f":"IF('Enrollment Form'!A527=\"\",\"\",IF('Enrollment Form'!B527=\"Subscriber\",\"-\",IF(AND('Enrollment Form'!B527<>\"Subscriber\",'Enrollment Form'!G527='Enrollment Form'!H527),\"N\",\"Y\")))","v":""},0]
[528,{"$f":"IF('Enrollment Form'!$A528<>\"\",\"Y\",\"N\")","v":"N"},{"$f":"IF(AND('Enrollment Form'!$B528=\"\",'Enrollment Form'!$C528<>\"\"),\"N\",IF($B521=\"N\",\"\",\"Y\"))","v":""},{"$f":"IF(OR($B521=\"N\",'Enrollment Form'!G528=\"\"),\"\",IF('Enrollment Form'!$B528<>\"Subscriber\",\"\",IF('Enrollment Form'!$G528='Enrollment Form'!$H528,\"Y\",\"N\")))","v":""},{"$f":"IF($B521=\"N\",\"\",IF(AND(COUNTIFS('Enrollment Form'!$H$11:$H$1000,'Enrollment Form'!$H528,'Enrollment Form'!$B$11:$B$1000,'Enrollment Form'!$B528)>1,'Enrollment Form'!$H528<>\"\"),\"N\",\"Y\"))","v":""},{"$f":"IF($B521=\"N\",\"\",IF(LEN('Enrollment Form'!$Y528)=0,\"\",IF(LEN('Enrollment Form'!$Y528)<>5,\"N\",\"Y\")))","v":""},{"$f":"IF($B521=\"N\",\"\",IF(LEN('Enrollment Form'!$AD528=0),\"\",IF(LEN('Enrollment Form'!$AD528)<>5,\"N\",\"Y\")))","v":""},{"$f":"IF($B521=\"N\",\"\",IF(LEN('Enrollment Form'!$BS528=0),\"\",IF(LEN('Enrollment Form'!$BS528)<>5,\"N\",\"Y\")))","v":""},{"$f":"IF($B521=\"N\",\"\",IF(LEN('Enrollment Form'!$AE528)=0,\"\",IF(LEN('Enrollment Form'!$AE528)<>10,\"N\",\"Y\")))","v":""},{"$f":"IF($B521=\"N\",\"\",IF(LEN('Enrollment Form'!$AF528)=0,\"\",IF(LEN('Enrollment Form'!$AF528)<>10,\"N\",\"Y\")))","v":""},{"$f":"IF('Enrollment Form'!$O528<>\"Graded\",\"-\",IF(AND('Enrollment Form'!$O528=\"Graded\",'Enrollment Form'!$AR528<>\"\"),\"Y\",\"N\"))","v":"-"},{"$f":"IF($B521=\"N\",\"\",IF(OR('Enrollment Form'!$B528<>\"Subscriber\",'Enrollment Form'!$C528=\"ROC\"),\"-\",IF(AND('Enrollment Form'!$B528=\"Subscriber\",'Enrollment Form'!$C528=\"Enroll\",'Enrollment Form'!$AJ528<>\"\"),\"Y\",\"N\")))","v":""},{"$f":"IF($B521=\"N\",\"\",IF(OR('Enrollment Form'!$B528<>\"Subscriber\",'Enrollment Form'!$C528=\"ROC\"),\"-\",IF(AND('Enrollment Form'!$B528=\"Subscriber\",'Enrollment Form'!$C528=\"Enroll\",'Enrollment Form'!$AK528<>\"\"),\"Y\",\"N\")))","v":""},{"$f":"IF($B521=\"N\",\"\",IF(OR('Enrollment Form'!$B528<>\"Subscriber\",'Enrollment Form'!$C528=\"ROC\"),\"-\",IF(AND('Enrollment Form'!$B528=\"Subscriber\",'Enrollment Form'!$C528=\"Enroll\",'Enrollment Form'!$AL528<>\"\"),\"Y\",\"N\")))","v":""},{"$f":"IF($B521=\"N\",\"\",IF(OR('Enrollment Form'!$B528<>\"Subscriber\",'Enrollment Form'!$C528=\"ROC\"),\"-\",IF(AND('Enrollment Form'!$B528=\"Subscriber\",'Enrollment Form'!$C528=\"Enroll\",'Enrollment Form'!$AP528<>\"\"),\"Y\",\"N\")))","v":""},{"$f":"IF($B521=\"N\",\"\",IF(OR('Enrollment Form'!$B528<>\"Subscriber\",'Enrollment Form'!$C528=\"ROC\"),\"-\",IF(AND('Enrollment Form'!$B528=\"Subscriber\",'Enrollment Form'!$C528=\"Enroll\",'Enrollment Form'!$AQ528<>\"\"),\"Y\",\"N\")))","v":""},{"$f":"IF($B521=\"N\",\"\",IF(OR('Enrollment Form'!$B528<>\"Subscriber\",'Enrollment Form'!$C528=\"ROC\"),\"-\",IF(AND('Enrollment Form'!$B528=\"Subscriber\",'Enrollment Form'!$C528=\"Enroll\",'Enrollment Form'!$AS528<>\"\"),\"Y\",\"N\")))","v":""},{"$f":"IF($B521=\"N\",\"\",IF($Q521=\"-\",\"-\",IF(AND($Q521=\"Y\",'Enrollment Form'!$AS528=\"No\"),\"-\",IF(AND($Q521=\"Y\",'Enrollment Form'!$AS528=\"Yes\",'Enrollment Form'!$AT528<>\"\"),\"Y\",\"N\"))))","v":""},{"$f":"IF($B521=\"N\",\"\",IF(OR('Enrollment Form'!$B528<>\"Subscriber\",'Enrollment Form'!$C528=\"ROC\"),\"-\",IF(AND('Enrollment Form'!$B528=\"Subscriber\",'Enrollment Form'!$C528=\"Enroll\",'Enrollment Form'!$CV528<>\"\"),\"Y\",\"N\")))","v":""},{"$f":"IF($B521=\"N\",\"\",IF($S521=\"-\",\"-\",IF(AND($S521=\"Y\",'Enrollment Form'!$CV528=\"No\"),\"-\",IF(AND($S521=\"Y\",'Enrollment Form'!$CV528=\"Yes\",'Enrollment Form'!$CW528<>\"\"),\"Y\",\"N\"))))","v":""},{"$f":"IF(OR('Enrollment Form'!$AY528=\"Yes\",'Enrollment Form'!$AY528=\"\"),\"-\",IF(OR(AND('Enrollment Form'!$AY528=\"No\",ISERROR(FIND(\"HMO\",VLOOKUP('Enrollment Form'!G528,'Enrollment Form'!H$11:J$1000,3,FALSE),1))=FALSE,COUNTA('Enrollment Form'!$AZ528:$BC528)=4),AND('Enrollment Form'!$AY528=\"No\",ISERROR(FIND(\"HMO\",VLOOKUP('Enrollment Form'!G528,'Enrollment Form'!H$11:J$1000,3,FALSE),1))=FALSE,COUNTA('Enrollment Form'!$BT528:$BW528)=4)),\"Y\",\"N\"))","v":"-"},{"$f":"IF($B521=\"N\",\"\",IF('Enrollment Form'!$B528=\"Subscriber\",\"-\",IF(COUNTA('Enrollment Form'!$BL528,'Enrollment Form'!$BN528)=2,\"Y\",\"N\")))","v":""},{"$f":"IF($B521=\"N\",\"\",IF(OR('Enrollment Form'!$AX528=\"\",'Enrollment Form'!$AX528=\"No\"),\"-\",IF(AND('Enrollment Form'!$AX528=\"Yes\",COUNTA('Enrollment Form'!$CR528)=1),\"Y\",\"N\")))","v":""},{"$f":"IF(OR('Enrollment Form'!$CR528=\"\",'Enrollment Form'!$CR528=\"No\"),\"-\",IF(COUNTA('Enrollment Form'!$CT528:$CU528)=2,\"Y\",\"N\"))","v":"-"},{"$f":"IF($B521=\"N\",\"\",IF(COUNTIF('Enrollment Form'!$DG528:$DP528,\"Other\")=COUNTA('Enrollment Form'!$DK528,'Enrollment Form'!$DH528,'Enrollment Form'!$DN528,'Enrollment Form'!$DQ528),\"Y\",\"N\"))","v":""},{"$f":"IF($B521=\"N\",\"\",IF(OR('Enrollment Form'!B528<>\"Subscriber\",'Enrollment Form'!C528=\"ROC\",COUNTIF('Enrollment Form'!AV528:AW528,\"Yes\")>=1),\"-\",IF(AND('Enrollment Form'!C528=\"Enroll\",COUNTIF('Enrollment Form'!AV528:AW528,\"No\")=2,'Enrollment Form'!AX528=\"\"),\"N\",\"Y\")))","v":""},{"$f":"IF(OR(B521=\"N\",'Enrollment Form'!B528<>\"Subscriber\",'Enrollment Form'!C528=\"ROC\",'Enrollment Form'!O528<>\"Multiple of Salary\"),\"-\",IF(COUNTA('Enrollment Form'!T528:U528)<2,\"N\",\"Y\"))","v":"-"},{"$f":"IF(B521=\"N\",\"\",IF(OR('Enrollment Form'!C528=\"ROC\",'Enrollment Form'!B528<>\"Subscriber\",'Enrollment Form'!O528=\"Waive\",'Enrollment Form'!O528=\"\"),\"-\",IF('Enrollment Form'!P528=\"\",\"N\",\"Y\")))","v":""},{"$f":"IF($B521=\"N\",\"\",IF(AND('Enrollment Form'!$C528=\"ROC\",'Enrollment Form'!$DR528<>\"\"),\"Y\",IF(AND('Enrollment Form'!$C528=\"ROC\",'Enrollment Form'!$DR528=\"\"),\"N\",IF(AND('Enrollment Form'!$C528=\"Enroll\",'Enrollment Form'!$B528=\"Subscriber\",'Enrollment Form'!$CX528=\"No\",'Enrollment Form'!$DR528=\"\"),\"N\",IF(AND('Enrollment Form'!$C528=\"Enroll\",'Enrollment Form'!$B528=\"Subscriber\",'Enrollment Form'!$CX528=\"Yes\"),\"-\",\"Y\")))))","v":""},{"$f":"IF($B521=\"N\",\"\",IF(AND('Enrollment Form'!$C528=\"ROC\",'Enrollment Form'!$DS528<>\"\"),\"Y\",IF(AND('Enrollment Form'!$C528=\"ROC\",'Enrollment Form'!$DS528=\"\"),\"N\",IF(AND('Enrollment Form'!$C528=\"Enroll\",'Enrollment Form'!$B528=\"Subscriber\",'Enrollment Form'!$CX528=\"No\",'Enrollment Form'!$DS528=\"\"),\"N\",IF(AND('Enrollment Form'!$C528=\"Enroll\",'Enrollment Form'!$B528=\"Subscriber\",'Enrollment Form'!$CX528=\"Yes\"),\"-\",\"Y\")))))","v":""},{"$f":"IF('Enrollment Form'!AH528=\"\",\"\",IF(ISERROR(SEARCH(\".\",'Enrollment Form'!AH528,SEARCH(\"@\",'Enrollment Form'!AH528))),\"N\",\"Y\"))","v":""},{"$f":"IF(OR($B521=\"N\",'Enrollment Form'!$G528=\"\"),\"\",IF('Enrollment Form'!$B528<>\"Subscriber\",\"-\",IF(COUNTIF('Enrollment Form'!$AV528:$AW528,\"Yes\")=2,\"N\",\"Y\")))","v":""},{"$f":"IF(OR('Enrollment Form'!$CJ528=\"\",'Enrollment Form'!$CJ528=\"No\"),\"-\",IF(AND('Enrollment Form'!$CJ528=\"Yes\",'Enrollment Form'!$CK528=\"\"),\"N\",\"Y\"))","v":"-"},{"$f":"IF(OR('Enrollment Form'!$CL528=\"\",'Enrollment Form'!$CL528=\"No\"),\"-\",IF(AND('Enrollment Form'!$CL528=\"Yes\",'Enrollment Form'!$CM528=\"\"),\"N\",\"Y\"))","v":"-"},{"$f":"IF(OR('Enrollment Form'!$CN528=\"\",'Enrollment Form'!$CN528=\"No\"),\"-\",IF(AND('Enrollment Form'!$CN528=\"Yes\",'Enrollment Form'!$CO528=\"\"),\"N\",\"Y\"))","v":"-"},{"$f":"IF(OR('Enrollment Form'!$CN528=\"\",'Enrollment Form'!$CN528=\"No\"),\"-\",IF(AND('Enrollment Form'!$CN528=\"Yes\",'Enrollment Form'!$CP528=\"\"),\"N\",\"Y\"))","v":"-"},{"$f":"IF('Enrollment Form'!B528<>\"Subscriber\",\"-\",IF(AND('Enrollment Form'!B528=\"Subscriber\",'Enrollment Form'!C528=\"Enroll\",'Enrollment Form'!AA528=\"\"),\"N\",\"Y\"))","v":"-"},{"$f":"IF(OR('Enrollment Form'!B528=\"Subscriber\",'Enrollment Form'!B528=\"\"),\"-\",IF('Enrollment Form'!BP528=\"\",\"N\",\"Y\"))","v":"-"},{"$f":"IF('Enrollment Form'!B528<>\"Subscriber\",\"-\",IF(AND('Enrollment Form'!B528=\"Subscriber\",'Enrollment Form'!G528=\"\"),\"N\",\"Y\"))","v":"-"},{"$f":"IF('Enrollment Form'!A528=\"\",\"\",IF('Enrollment Form'!B528=\"Subscriber\",\"-\",IF(AND('Enrollment Form'!B528<>\"Subscriber\",'Enrollment Form'!G528='Enrollment Form'!H528),\"N\",\"Y\")))","v":""},0]
[529,{"$f":"IF('Enrollment Form'!$A529<>\"\",\"Y\",\"N\")","v":"N"},{"$f":"IF(AND('Enrollment Form'!$B529=\"\",'Enrollment Form'!$C529<>\"\"),\"N\",IF($B522=\"N\",\"\",\"Y\"))","v":""},{"$f":"IF(OR($B522=\"N\",'Enrollment Form'!G529=\"\"),\"\",IF('Enrollment Form'!$B529<>\"Subscriber\",\"\",IF('Enrollment Form'!$G529='Enrollment Form'!$H529,\"Y\",\"N\")))","v":""},{"$f":"IF($B522=\"N\",\"\",IF(AND(COUNTIFS('Enrollment Form'!$H$11:$H$1000,'Enrollment Form'!$H529,'Enrollment Form'!$B$11:$B$1000,'Enrollment Form'!$B529)>1,'Enrollment Form'!$H529<>\"\"),\"N\",\"Y\"))","v":""},{"$f":"IF($B522=\"N\",\"\",IF(LEN('Enrollment Form'!$Y529)=0,\"\",IF(LEN('Enrollment Form'!$Y529)<>5,\"N\",\"Y\")))","v":""},{"$f":"IF($B522=\"N\",\"\",IF(LEN('Enrollment Form'!$AD529=0),\"\",IF(LEN('Enrollment Form'!$AD529)<>5,\"N\",\"Y\")))","v":""},{"$f":"IF($B522=\"N\",\"\",IF(LEN('Enrollment Form'!$BS529=0),\"\",IF(LEN('Enrollment Form'!$BS529)<>5,\"N\",\"Y\")))","v":""},{"$f":"IF($B522=\"N\",\"\",IF(LEN('Enrollment Form'!$AE529)=0,\"\",IF(LEN('Enrollment Form'!$AE529)<>10,\"N\",\"Y\")))","v":""},{"$f":"IF($B522=\"N\",\"\",IF(LEN('Enrollment Form'!$AF529)=0,\"\",IF(LEN('Enrollment Form'!$AF529)<>10,\"N\",\"Y\")))","v":""},{"$f":"IF('Enrollment Form'!$O529<>\"Graded\",\"-\",IF(AND('Enrollment Form'!$O529=\"Graded\",'Enrollment Form'!$AR529<>\"\"),\"Y\",\"N\"))","v":"-"},{"$f":"IF($B522=\"N\",\"\",IF(OR('Enrollment Form'!$B529<>\"Subscriber\",'Enrollment Form'!$C529=\"ROC\"),\"-\",IF(AND('Enrollment Form'!$B529=\"Subscriber\",'Enrollment Form'!$C529=\"Enroll\",'Enrollment Form'!$AJ529<>\"\"),\"Y\",\"N\")))","v":""},{"$f":"IF($B522=\"N\",\"\",IF(OR('Enrollment Form'!$B529<>\"Subscriber\",'Enrollment Form'!$C529=\"ROC\"),\"-\",IF(AND('Enrollment Form'!$B529=\"Subscriber\",'Enrollment Form'!$C529=\"Enroll\",'Enrollment Form'!$AK529<>\"\"),\"Y\",\"N\")))","v":""},{"$f":"IF($B522=\"N\",\"\",IF(OR('Enrollment Form'!$B529<>\"Subscriber\",'Enrollment Form'!$C529=\"ROC\"),\"-\",IF(AND('Enrollment Form'!$B529=\"Subscriber\",'Enrollment Form'!$C529=\"Enroll\",'Enrollment Form'!$AL529<>\"\"),\"Y\",\"N\")))","v":""},{"$f":"IF($B522=\"N\",\"\",IF(OR('Enrollment Form'!$B529<>\"Subscriber\",'Enrollment Form'!$C529=\"ROC\"),\"-\",IF(AND('Enrollment Form'!$B529=\"Subscriber\",'Enrollment Form'!$C529=\"Enroll\",'Enrollment Form'!$AP529<>\"\"),\"Y\",\"N\")))","v":""},{"$f":"IF($B522=\"N\",\"\",IF(OR('Enrollment Form'!$B529<>\"Subscriber\",'Enrollment Form'!$C529=\"ROC\"),\"-\",IF(AND('Enrollment Form'!$B529=\"Subscriber\",'Enrollment Form'!$C529=\"Enroll\",'Enrollment Form'!$AQ529<>\"\"),\"Y\",\"N\")))","v":""},{"$f":"IF($B522=\"N\",\"\",IF(OR('Enrollment Form'!$B529<>\"Subscriber\",'Enrollment Form'!$C529=\"ROC\"),\"-\",IF(AND('Enrollment Form'!$B529=\"Subscriber\",'Enrollment Form'!$C529=\"Enroll\",'Enrollment Form'!$AS529<>\"\"),\"Y\",\"N\")))","v":""},{"$f":"IF($B522=\"N\",\"\",IF($Q522=\"-\",\"-\",IF(AND($Q522=\"Y\",'Enrollment Form'!$AS529=\"No\"),\"-\",IF(AND($Q522=\"Y\",'Enrollment Form'!$AS529=\"Yes\",'Enrollment Form'!$AT529<>\"\"),\"Y\",\"N\"))))","v":""},{"$f":"IF($B522=\"N\",\"\",IF(OR('Enrollment Form'!$B529<>\"Subscriber\",'Enrollment Form'!$C529=\"ROC\"),\"-\",IF(AND('Enrollment Form'!$B529=\"Subscriber\",'Enrollment Form'!$C529=\"Enroll\",'Enrollment Form'!$CV529<>\"\"),\"Y\",\"N\")))","v":""},{"$f":"IF($B522=\"N\",\"\",IF($S522=\"-\",\"-\",IF(AND($S522=\"Y\",'Enrollment Form'!$CV529=\"No\"),\"-\",IF(AND($S522=\"Y\",'Enrollment Form'!$CV529=\"Yes\",'Enrollment Form'!$CW529<>\"\"),\"Y\",\"N\"))))","v":""},{"$f":"IF(OR('Enrollment Form'!$AY529=\"Yes\",'Enrollment Form'!$AY529=\"\"),\"-\",IF(OR(AND('Enrollment Form'!$AY529=\"No\",ISERROR(FIND(\"HMO\",VLOOKUP('Enrollment Form'!G529,'Enrollment Form'!H$11:J$1000,3,FALSE),1))=FALSE,COUNTA('Enrollment Form'!$AZ529:$BC529)=4),AND('Enrollment Form'!$AY529=\"No\",ISERROR(FIND(\"HMO\",VLOOKUP('Enrollment Form'!G529,'Enrollment Form'!H$11:J$1000,3,FALSE),1))=FALSE,COUNTA('Enrollment Form'!$BT529:$BW529)=4)),\"Y\",\"N\"))","v":"-"},{"$f":"IF($B522=\"N\",\"\",IF('Enrollment Form'!$B529=\"Subscriber\",\"-\",IF(COUNTA('Enrollment Form'!$BL529,'Enrollment Form'!$BN529)=2,\"Y\",\"N\")))","v":""},{"$f":"IF($B522=\"N\",\"\",IF(OR('Enrollment Form'!$AX529=\"\",'Enrollment Form'!$AX529=\"No\"),\"-\",IF(AND('Enrollment Form'!$AX529=\"Yes\",COUNTA('Enrollment Form'!$CR529)=1),\"Y\",\"N\")))","v":""},{"$f":"IF(OR('Enrollment Form'!$CR529=\"\",'Enrollment Form'!$CR529=\"No\"),\"-\",IF(COUNTA('Enrollment Form'!$CT529:$CU529)=2,\"Y\",\"N\"))","v":"-"},{"$f":"IF($B522=\"N\",\"\",IF(COUNTIF('Enrollment Form'!$DG529:$DP529,\"Other\")=COUNTA('Enrollment Form'!$DK529,'Enrollment Form'!$DH529,'Enrollment Form'!$DN529,'Enrollment Form'!$DQ529),\"Y\",\"N\"))","v":""},{"$f":"IF($B522=\"N\",\"\",IF(OR('Enrollment Form'!B529<>\"Subscriber\",'Enrollment Form'!C529=\"ROC\",COUNTIF('Enrollment Form'!AV529:AW529,\"Yes\")>=1),\"-\",IF(AND('Enrollment Form'!C529=\"Enroll\",COUNTIF('Enrollment Form'!AV529:AW529,\"No\")=2,'Enrollment Form'!AX529=\"\"),\"N\",\"Y\")))","v":""},{"$f":"IF(OR(B522=\"N\",'Enrollment Form'!B529<>\"Subscriber\",'Enrollment Form'!C529=\"ROC\",'Enrollment Form'!O529<>\"Multiple of Salary\"),\"-\",IF(COUNTA('Enrollment Form'!T529:U529)<2,\"N\",\"Y\"))","v":"-"},{"$f":"IF(B522=\"N\",\"\",IF(OR('Enrollment Form'!C529=\"ROC\",'Enrollment Form'!B529<>\"Subscriber\",'Enrollment Form'!O529=\"Waive\",'Enrollment Form'!O529=\"\"),\"-\",IF('Enrollment Form'!P529=\"\",\"N\",\"Y\")))","v":""},{"$f":"IF($B522=\"N\",\"\",IF(AND('Enrollment Form'!$C529=\"ROC\",'Enrollment Form'!$DR529<>\"\"),\"Y\",IF(AND('Enrollment Form'!$C529=\"ROC\",'Enrollment Form'!$DR529=\"\"),\"N\",IF(AND('Enrollment Form'!$C529=\"Enroll\",'Enrollment Form'!$B529=\"Subscriber\",'Enrollment Form'!$CX529=\"No\",'Enrollment Form'!$DR529=\"\"),\"N\",IF(AND('Enrollment Form'!$C529=\"Enroll\",'Enrollment Form'!$B529=\"Subscriber\",'Enrollment Form'!$CX529=\"Yes\"),\"-\",\"Y\")))))","v":""},{"$f":"IF($B522=\"N\",\"\",IF(AND('Enrollment Form'!$C529=\"ROC\",'Enrollment Form'!$DS529<>\"\"),\"Y\",IF(AND('Enrollment Form'!$C529=\"ROC\",'Enrollment Form'!$DS529=\"\"),\"N\",IF(AND('Enrollment Form'!$C529=\"Enroll\",'Enrollment Form'!$B529=\"Subscriber\",'Enrollment Form'!$CX529=\"No\",'Enrollment Form'!$DS529=\"\"),\"N\",IF(AND('Enrollment Form'!$C529=\"Enroll\",'Enrollment Form'!$B529=\"Subscriber\",'Enrollment Form'!$CX529=\"Yes\"),\"-\",\"Y\")))))","v":""},{"$f":"IF('Enrollment Form'!AH529=\"\",\"\",IF(ISERROR(SEARCH(\".\",'Enrollment Form'!AH529,SEARCH(\"@\",'Enrollment Form'!AH529))),\"N\",\"Y\"))","v":""},{"$f":"IF(OR($B522=\"N\",'Enrollment Form'!$G529=\"\"),\"\",IF('Enrollment Form'!$B529<>\"Subscriber\",\"-\",IF(COUNTIF('Enrollment Form'!$AV529:$AW529,\"Yes\")=2,\"N\",\"Y\")))","v":""},{"$f":"IF(OR('Enrollment Form'!$CJ529=\"\",'Enrollment Form'!$CJ529=\"No\"),\"-\",IF(AND('Enrollment Form'!$CJ529=\"Yes\",'Enrollment Form'!$CK529=\"\"),\"N\",\"Y\"))","v":"-"},{"$f":"IF(OR('Enrollment Form'!$CL529=\"\",'Enrollment Form'!$CL529=\"No\"),\"-\",IF(AND('Enrollment Form'!$CL529=\"Yes\",'Enrollment Form'!$CM529=\"\"),\"N\",\"Y\"))","v":"-"},{"$f":"IF(OR('Enrollment Form'!$CN529=\"\",'Enrollment Form'!$CN529=\"No\"),\"-\",IF(AND('Enrollment Form'!$CN529=\"Yes\",'Enrollment Form'!$CO529=\"\"),\"N\",\"Y\"))","v":"-"},{"$f":"IF(OR('Enrollment Form'!$CN529=\"\",'Enrollment Form'!$CN529=\"No\"),\"-\",IF(AND('Enrollment Form'!$CN529=\"Yes\",'Enrollment Form'!$CP529=\"\"),\"N\",\"Y\"))","v":"-"},{"$f":"IF('Enrollment Form'!B529<>\"Subscriber\",\"-\",IF(AND('Enrollment Form'!B529=\"Subscriber\",'Enrollment Form'!C529=\"Enroll\",'Enrollment Form'!AA529=\"\"),\"N\",\"Y\"))","v":"-"},{"$f":"IF(OR('Enrollment Form'!B529=\"Subscriber\",'Enrollment Form'!B529=\"\"),\"-\",IF('Enrollment Form'!BP529=\"\",\"N\",\"Y\"))","v":"-"},{"$f":"IF('Enrollment Form'!B529<>\"Subscriber\",\"-\",IF(AND('Enrollment Form'!B529=\"Subscriber\",'Enrollment Form'!G529=\"\"),\"N\",\"Y\"))","v":"-"},{"$f":"IF('Enrollment Form'!A529=\"\",\"\",IF('Enrollment Form'!B529=\"Subscriber\",\"-\",IF(AND('Enrollment Form'!B529<>\"Subscriber\",'Enrollment Form'!G529='Enrollment Form'!H529),\"N\",\"Y\")))","v":""},0]
[530,{"$f":"IF('Enrollment Form'!$A530<>\"\",\"Y\",\"N\")","v":"N"},{"$f":"IF(AND('Enrollment Form'!$B530=\"\",'Enrollment Form'!$C530<>\"\"),\"N\",IF($B523=\"N\",\"\",\"Y\"))","v":""},{"$f":"IF(OR($B523=\"N\",'Enrollment Form'!G530=\"\"),\"\",IF('Enrollment Form'!$B530<>\"Subscriber\",\"\",IF('Enrollment Form'!$G530='Enrollment Form'!$H530,\"Y\",\"N\")))","v":""},{"$f":"IF($B523=\"N\",\"\",IF(AND(COUNTIFS('Enrollment Form'!$H$11:$H$1000,'Enrollment Form'!$H530,'Enrollment Form'!$B$11:$B$1000,'Enrollment Form'!$B530)>1,'Enrollment Form'!$H530<>\"\"),\"N\",\"Y\"))","v":""},{"$f":"IF($B523=\"N\",\"\",IF(LEN('Enrollment Form'!$Y530)=0,\"\",IF(LEN('Enrollment Form'!$Y530)<>5,\"N\",\"Y\")))","v":""},{"$f":"IF($B523=\"N\",\"\",IF(LEN('Enrollment Form'!$AD530=0),\"\",IF(LEN('Enrollment Form'!$AD530)<>5,\"N\",\"Y\")))","v":""},{"$f":"IF($B523=\"N\",\"\",IF(LEN('Enrollment Form'!$BS530=0),\"\",IF(LEN('Enrollment Form'!$BS530)<>5,\"N\",\"Y\")))","v":""},{"$f":"IF($B523=\"N\",\"\",IF(LEN('Enrollment Form'!$AE530)=0,\"\",IF(LEN('Enrollment Form'!$AE530)<>10,\"N\",\"Y\")))","v":""},{"$f":"IF($B523=\"N\",\"\",IF(LEN('Enrollment Form'!$AF530)=0,\"\",IF(LEN('Enrollment Form'!$AF530)<>10,\"N\",\"Y\")))","v":""},{"$f":"IF('Enrollment Form'!$O530<>\"Graded\",\"-\",IF(AND('Enrollment Form'!$O530=\"Graded\",'Enrollment Form'!$AR530<>\"\"),\"Y\",\"N\"))","v":"-"},{"$f":"IF($B523=\"N\",\"\",IF(OR('Enrollment Form'!$B530<>\"Subscriber\",'Enrollment Form'!$C530=\"ROC\"),\"-\",IF(AND('Enrollment Form'!$B530=\"Subscriber\",'Enrollment Form'!$C530=\"Enroll\",'Enrollment Form'!$AJ530<>\"\"),\"Y\",\"N\")))","v":""},{"$f":"IF($B523=\"N\",\"\",IF(OR('Enrollment Form'!$B530<>\"Subscriber\",'Enrollment Form'!$C530=\"ROC\"),\"-\",IF(AND('Enrollment Form'!$B530=\"Subscriber\",'Enrollment Form'!$C530=\"Enroll\",'Enrollment Form'!$AK530<>\"\"),\"Y\",\"N\")))","v":""},{"$f":"IF($B523=\"N\",\"\",IF(OR('Enrollment Form'!$B530<>\"Subscriber\",'Enrollment Form'!$C530=\"ROC\"),\"-\",IF(AND('Enrollment Form'!$B530=\"Subscriber\",'Enrollment Form'!$C530=\"Enroll\",'Enrollment Form'!$AL530<>\"\"),\"Y\",\"N\")))","v":""},{"$f":"IF($B523=\"N\",\"\",IF(OR('Enrollment Form'!$B530<>\"Subscriber\",'Enrollment Form'!$C530=\"ROC\"),\"-\",IF(AND('Enrollment Form'!$B530=\"Subscriber\",'Enrollment Form'!$C530=\"Enroll\",'Enrollment Form'!$AP530<>\"\"),\"Y\",\"N\")))","v":""},{"$f":"IF($B523=\"N\",\"\",IF(OR('Enrollment Form'!$B530<>\"Subscriber\",'Enrollment Form'!$C530=\"ROC\"),\"-\",IF(AND('Enrollment Form'!$B530=\"Subscriber\",'Enrollment Form'!$C530=\"Enroll\",'Enrollment Form'!$AQ530<>\"\"),\"Y\",\"N\")))","v":""},{"$f":"IF($B523=\"N\",\"\",IF(OR('Enrollment Form'!$B530<>\"Subscriber\",'Enrollment Form'!$C530=\"ROC\"),\"-\",IF(AND('Enrollment Form'!$B530=\"Subscriber\",'Enrollment Form'!$C530=\"Enroll\",'Enrollment Form'!$AS530<>\"\"),\"Y\",\"N\")))","v":""},{"$f":"IF($B523=\"N\",\"\",IF($Q523=\"-\",\"-\",IF(AND($Q523=\"Y\",'Enrollment Form'!$AS530=\"No\"),\"-\",IF(AND($Q523=\"Y\",'Enrollment Form'!$AS530=\"Yes\",'Enrollment Form'!$AT530<>\"\"),\"Y\",\"N\"))))","v":""},{"$f":"IF($B523=\"N\",\"\",IF(OR('Enrollment Form'!$B530<>\"Subscriber\",'Enrollment Form'!$C530=\"ROC\"),\"-\",IF(AND('Enrollment Form'!$B530=\"Subscriber\",'Enrollment Form'!$C530=\"Enroll\",'Enrollment Form'!$CV530<>\"\"),\"Y\",\"N\")))","v":""},{"$f":"IF($B523=\"N\",\"\",IF($S523=\"-\",\"-\",IF(AND($S523=\"Y\",'Enrollment Form'!$CV530=\"No\"),\"-\",IF(AND($S523=\"Y\",'Enrollment Form'!$CV530=\"Yes\",'Enrollment Form'!$CW530<>\"\"),\"Y\",\"N\"))))","v":""},{"$f":"IF(OR('Enrollment Form'!$AY530=\"Yes\",'Enrollment Form'!$AY530=\"\"),\"-\",IF(OR(AND('Enrollment Form'!$AY530=\"No\",ISERROR(FIND(\"HMO\",VLOOKUP('Enrollment Form'!G530,'Enrollment Form'!H$11:J$1000,3,FALSE),1))=FALSE,COUNTA('Enrollment Form'!$AZ530:$BC530)=4),AND('Enrollment Form'!$AY530=\"No\",ISERROR(FIND(\"HMO\",VLOOKUP('Enrollment Form'!G530,'Enrollment Form'!H$11:J$1000,3,FALSE),1))=FALSE,COUNTA('Enrollment Form'!$BT530:$BW530)=4)),\"Y\",\"N\"))","v":"-"},{"$f":"IF($B523=\"N\",\"\",IF('Enrollment Form'!$B530=\"Subscriber\",\"-\",IF(COUNTA('Enrollment Form'!$BL530,'Enrollment Form'!$BN530)=2,\"Y\",\"N\")))","v":""},{"$f":"IF($B523=\"N\",\"\",IF(OR('Enrollment Form'!$AX530=\"\",'Enrollment Form'!$AX530=\"No\"),\"-\",IF(AND('Enrollment Form'!$AX530=\"Yes\",COUNTA('Enrollment Form'!$CR530)=1),\"Y\",\"N\")))","v":""},{"$f":"IF(OR('Enrollment Form'!$CR530=\"\",'Enrollment Form'!$CR530=\"No\"),\"-\",IF(COUNTA('Enrollment Form'!$CT530:$CU530)=2,\"Y\",\"N\"))","v":"-"},{"$f":"IF($B523=\"N\",\"\",IF(COUNTIF('Enrollment Form'!$DG530:$DP530,\"Other\")=COUNTA('Enrollment Form'!$DK530,'Enrollment Form'!$DH530,'Enrollment Form'!$DN530,'Enrollment Form'!$DQ530),\"Y\",\"N\"))","v":""},{"$f":"IF($B523=\"N\",\"\",IF(OR('Enrollment Form'!B530<>\"Subscriber\",'Enrollment Form'!C530=\"ROC\",COUNTIF('Enrollment Form'!AV530:AW530,\"Yes\")>=1),\"-\",IF(AND('Enrollment Form'!C530=\"Enroll\",COUNTIF('Enrollment Form'!AV530:AW530,\"No\")=2,'Enrollment Form'!AX530=\"\"),\"N\",\"Y\")))","v":""},{"$f":"IF(OR(B523=\"N\",'Enrollment Form'!B530<>\"Subscriber\",'Enrollment Form'!C530=\"ROC\",'Enrollment Form'!O530<>\"Multiple of Salary\"),\"-\",IF(COUNTA('Enrollment Form'!T530:U530)<2,\"N\",\"Y\"))","v":"-"},{"$f":"IF(B523=\"N\",\"\",IF(OR('Enrollment Form'!C530=\"ROC\",'Enrollment Form'!B530<>\"Subscriber\",'Enrollment Form'!O530=\"Waive\",'Enrollment Form'!O530=\"\"),\"-\",IF('Enrollment Form'!P530=\"\",\"N\",\"Y\")))","v":""},{"$f":"IF($B523=\"N\",\"\",IF(AND('Enrollment Form'!$C530=\"ROC\",'Enrollment Form'!$DR530<>\"\"),\"Y\",IF(AND('Enrollment Form'!$C530=\"ROC\",'Enrollment Form'!$DR530=\"\"),\"N\",IF(AND('Enrollment Form'!$C530=\"Enroll\",'Enrollment Form'!$B530=\"Subscriber\",'Enrollment Form'!$CX530=\"No\",'Enrollment Form'!$DR530=\"\"),\"N\",IF(AND('Enrollment Form'!$C530=\"Enroll\",'Enrollment Form'!$B530=\"Subscriber\",'Enrollment Form'!$CX530=\"Yes\"),\"-\",\"Y\")))))","v":""},{"$f":"IF($B523=\"N\",\"\",IF(AND('Enrollment Form'!$C530=\"ROC\",'Enrollment Form'!$DS530<>\"\"),\"Y\",IF(AND('Enrollment Form'!$C530=\"ROC\",'Enrollment Form'!$DS530=\"\"),\"N\",IF(AND('Enrollment Form'!$C530=\"Enroll\",'Enrollment Form'!$B530=\"Subscriber\",'Enrollment Form'!$CX530=\"No\",'Enrollment Form'!$DS530=\"\"),\"N\",IF(AND('Enrollment Form'!$C530=\"Enroll\",'Enrollment Form'!$B530=\"Subscriber\",'Enrollment Form'!$CX530=\"Yes\"),\"-\",\"Y\")))))","v":""},{"$f":"IF('Enrollment Form'!AH530=\"\",\"\",IF(ISERROR(SEARCH(\".\",'Enrollment Form'!AH530,SEARCH(\"@\",'Enrollment Form'!AH530))),\"N\",\"Y\"))","v":""},{"$f":"IF(OR($B523=\"N\",'Enrollment Form'!$G530=\"\"),\"\",IF('Enrollment Form'!$B530<>\"Subscriber\",\"-\",IF(COUNTIF('Enrollment Form'!$AV530:$AW530,\"Yes\")=2,\"N\",\"Y\")))","v":""},{"$f":"IF(OR('Enrollment Form'!$CJ530=\"\",'Enrollment Form'!$CJ530=\"No\"),\"-\",IF(AND('Enrollment Form'!$CJ530=\"Yes\",'Enrollment Form'!$CK530=\"\"),\"N\",\"Y\"))","v":"-"},{"$f":"IF(OR('Enrollment Form'!$CL530=\"\",'Enrollment Form'!$CL530=\"No\"),\"-\",IF(AND('Enrollment Form'!$CL530=\"Yes\",'Enrollment Form'!$CM530=\"\"),\"N\",\"Y\"))","v":"-"},{"$f":"IF(OR('Enrollment Form'!$CN530=\"\",'Enrollment Form'!$CN530=\"No\"),\"-\",IF(AND('Enrollment Form'!$CN530=\"Yes\",'Enrollment Form'!$CO530=\"\"),\"N\",\"Y\"))","v":"-"},{"$f":"IF(OR('Enrollment Form'!$CN530=\"\",'Enrollment Form'!$CN530=\"No\"),\"-\",IF(AND('Enrollment Form'!$CN530=\"Yes\",'Enrollment Form'!$CP530=\"\"),\"N\",\"Y\"))","v":"-"},{"$f":"IF('Enrollment Form'!B530<>\"Subscriber\",\"-\",IF(AND('Enrollment Form'!B530=\"Subscriber\",'Enrollment Form'!C530=\"Enroll\",'Enrollment Form'!AA530=\"\"),\"N\",\"Y\"))","v":"-"},{"$f":"IF(OR('Enrollment Form'!B530=\"Subscriber\",'Enrollment Form'!B530=\"\"),\"-\",IF('Enrollment Form'!BP530=\"\",\"N\",\"Y\"))","v":"-"},{"$f":"IF('Enrollment Form'!B530<>\"Subscriber\",\"-\",IF(AND('Enrollment Form'!B530=\"Subscriber\",'Enrollment Form'!G530=\"\"),\"N\",\"Y\"))","v":"-"},{"$f":"IF('Enrollment Form'!A530=\"\",\"\",IF('Enrollment Form'!B530=\"Subscriber\",\"-\",IF(AND('Enrollment Form'!B530<>\"Subscriber\",'Enrollment Form'!G530='Enrollment Form'!H530),\"N\",\"Y\")))","v":""},0]
[531,{"$f":"IF('Enrollment Form'!$A531<>\"\",\"Y\",\"N\")","v":"N"},{"$f":"IF(AND('Enrollment Form'!$B531=\"\",'Enrollment Form'!$C531<>\"\"),\"N\",IF($B524=\"N\",\"\",\"Y\"))","v":""},{"$f":"IF(OR($B524=\"N\",'Enrollment Form'!G531=\"\"),\"\",IF('Enrollment Form'!$B531<>\"Subscriber\",\"\",IF('Enrollment Form'!$G531='Enrollment Form'!$H531,\"Y\",\"N\")))","v":""},{"$f":"IF($B524=\"N\",\"\",IF(AND(COUNTIFS('Enrollment Form'!$H$11:$H$1000,'Enrollment Form'!$H531,'Enrollment Form'!$B$11:$B$1000,'Enrollment Form'!$B531)>1,'Enrollment Form'!$H531<>\"\"),\"N\",\"Y\"))","v":""},{"$f":"IF($B524=\"N\",\"\",IF(LEN('Enrollment Form'!$Y531)=0,\"\",IF(LEN('Enrollment Form'!$Y531)<>5,\"N\",\"Y\")))","v":""},{"$f":"IF($B524=\"N\",\"\",IF(LEN('Enrollment Form'!$AD531=0),\"\",IF(LEN('Enrollment Form'!$AD531)<>5,\"N\",\"Y\")))","v":""},{"$f":"IF($B524=\"N\",\"\",IF(LEN('Enrollment Form'!$BS531=0),\"\",IF(LEN('Enrollment Form'!$BS531)<>5,\"N\",\"Y\")))","v":""},{"$f":"IF($B524=\"N\",\"\",IF(LEN('Enrollment Form'!$AE531)=0,\"\",IF(LEN('Enrollment Form'!$AE531)<>10,\"N\",\"Y\")))","v":""},{"$f":"IF($B524=\"N\",\"\",IF(LEN('Enrollment Form'!$AF531)=0,\"\",IF(LEN('Enrollment Form'!$AF531)<>10,\"N\",\"Y\")))","v":""},{"$f":"IF('Enrollment Form'!$O531<>\"Graded\",\"-\",IF(AND('Enrollment Form'!$O531=\"Graded\",'Enrollment Form'!$AR531<>\"\"),\"Y\",\"N\"))","v":"-"},{"$f":"IF($B524=\"N\",\"\",IF(OR('Enrollment Form'!$B531<>\"Subscriber\",'Enrollment Form'!$C531=\"ROC\"),\"-\",IF(AND('Enrollment Form'!$B531=\"Subscriber\",'Enrollment Form'!$C531=\"Enroll\",'Enrollment Form'!$AJ531<>\"\"),\"Y\",\"N\")))","v":""},{"$f":"IF($B524=\"N\",\"\",IF(OR('Enrollment Form'!$B531<>\"Subscriber\",'Enrollment Form'!$C531=\"ROC\"),\"-\",IF(AND('Enrollment Form'!$B531=\"Subscriber\",'Enrollment Form'!$C531=\"Enroll\",'Enrollment Form'!$AK531<>\"\"),\"Y\",\"N\")))","v":""},{"$f":"IF($B524=\"N\",\"\",IF(OR('Enrollment Form'!$B531<>\"Subscriber\",'Enrollment Form'!$C531=\"ROC\"),\"-\",IF(AND('Enrollment Form'!$B531=\"Subscriber\",'Enrollment Form'!$C531=\"Enroll\",'Enrollment Form'!$AL531<>\"\"),\"Y\",\"N\")))","v":""},{"$f":"IF($B524=\"N\",\"\",IF(OR('Enrollment Form'!$B531<>\"Subscriber\",'Enrollment Form'!$C531=\"ROC\"),\"-\",IF(AND('Enrollment Form'!$B531=\"Subscriber\",'Enrollment Form'!$C531=\"Enroll\",'Enrollment Form'!$AP531<>\"\"),\"Y\",\"N\")))","v":""},{"$f":"IF($B524=\"N\",\"\",IF(OR('Enrollment Form'!$B531<>\"Subscriber\",'Enrollment Form'!$C531=\"ROC\"),\"-\",IF(AND('Enrollment Form'!$B531=\"Subscriber\",'Enrollment Form'!$C531=\"Enroll\",'Enrollment Form'!$AQ531<>\"\"),\"Y\",\"N\")))","v":""},{"$f":"IF($B524=\"N\",\"\",IF(OR('Enrollment Form'!$B531<>\"Subscriber\",'Enrollment Form'!$C531=\"ROC\"),\"-\",IF(AND('Enrollment Form'!$B531=\"Subscriber\",'Enrollment Form'!$C531=\"Enroll\",'Enrollment Form'!$AS531<>\"\"),\"Y\",\"N\")))","v":""},{"$f":"IF($B524=\"N\",\"\",IF($Q524=\"-\",\"-\",IF(AND($Q524=\"Y\",'Enrollment Form'!$AS531=\"No\"),\"-\",IF(AND($Q524=\"Y\",'Enrollment Form'!$AS531=\"Yes\",'Enrollment Form'!$AT531<>\"\"),\"Y\",\"N\"))))","v":""},{"$f":"IF($B524=\"N\",\"\",IF(OR('Enrollment Form'!$B531<>\"Subscriber\",'Enrollment Form'!$C531=\"ROC\"),\"-\",IF(AND('Enrollment Form'!$B531=\"Subscriber\",'Enrollment Form'!$C531=\"Enroll\",'Enrollment Form'!$CV531<>\"\"),\"Y\",\"N\")))","v":""},{"$f":"IF($B524=\"N\",\"\",IF($S524=\"-\",\"-\",IF(AND($S524=\"Y\",'Enrollment Form'!$CV531=\"No\"),\"-\",IF(AND($S524=\"Y\",'Enrollment Form'!$CV531=\"Yes\",'Enrollment Form'!$CW531<>\"\"),\"Y\",\"N\"))))","v":""},{"$f":"IF(OR('Enrollment Form'!$AY531=\"Yes\",'Enrollment Form'!$AY531=\"\"),\"-\",IF(OR(AND('Enrollment Form'!$AY531=\"No\",ISERROR(FIND(\"HMO\",VLOOKUP('Enrollment Form'!G531,'Enrollment Form'!H$11:J$1000,3,FALSE),1))=FALSE,COUNTA('Enrollment Form'!$AZ531:$BC531)=4),AND('Enrollment Form'!$AY531=\"No\",ISERROR(FIND(\"HMO\",VLOOKUP('Enrollment Form'!G531,'Enrollment Form'!H$11:J$1000,3,FALSE),1))=FALSE,COUNTA('Enrollment Form'!$BT531:$BW531)=4)),\"Y\",\"N\"))","v":"-"},{"$f":"IF($B524=\"N\",\"\",IF('Enrollment Form'!$B531=\"Subscriber\",\"-\",IF(COUNTA('Enrollment Form'!$BL531,'Enrollment Form'!$BN531)=2,\"Y\",\"N\")))","v":""},{"$f":"IF($B524=\"N\",\"\",IF(OR('Enrollment Form'!$AX531=\"\",'Enrollment Form'!$AX531=\"No\"),\"-\",IF(AND('Enrollment Form'!$AX531=\"Yes\",COUNTA('Enrollment Form'!$CR531)=1),\"Y\",\"N\")))","v":""},{"$f":"IF(OR('Enrollment Form'!$CR531=\"\",'Enrollment Form'!$CR531=\"No\"),\"-\",IF(COUNTA('Enrollment Form'!$CT531:$CU531)=2,\"Y\",\"N\"))","v":"-"},{"$f":"IF($B524=\"N\",\"\",IF(COUNTIF('Enrollment Form'!$DG531:$DP531,\"Other\")=COUNTA('Enrollment Form'!$DK531,'Enrollment Form'!$DH531,'Enrollment Form'!$DN531,'Enrollment Form'!$DQ531),\"Y\",\"N\"))","v":""},{"$f":"IF($B524=\"N\",\"\",IF(OR('Enrollment Form'!B531<>\"Subscriber\",'Enrollment Form'!C531=\"ROC\",COUNTIF('Enrollment Form'!AV531:AW531,\"Yes\")>=1),\"-\",IF(AND('Enrollment Form'!C531=\"Enroll\",COUNTIF('Enrollment Form'!AV531:AW531,\"No\")=2,'Enrollment Form'!AX531=\"\"),\"N\",\"Y\")))","v":""},{"$f":"IF(OR(B524=\"N\",'Enrollment Form'!B531<>\"Subscriber\",'Enrollment Form'!C531=\"ROC\",'Enrollment Form'!O531<>\"Multiple of Salary\"),\"-\",IF(COUNTA('Enrollment Form'!T531:U531)<2,\"N\",\"Y\"))","v":"-"},{"$f":"IF(B524=\"N\",\"\",IF(OR('Enrollment Form'!C531=\"ROC\",'Enrollment Form'!B531<>\"Subscriber\",'Enrollment Form'!O531=\"Waive\",'Enrollment Form'!O531=\"\"),\"-\",IF('Enrollment Form'!P531=\"\",\"N\",\"Y\")))","v":""},{"$f":"IF($B524=\"N\",\"\",IF(AND('Enrollment Form'!$C531=\"ROC\",'Enrollment Form'!$DR531<>\"\"),\"Y\",IF(AND('Enrollment Form'!$C531=\"ROC\",'Enrollment Form'!$DR531=\"\"),\"N\",IF(AND('Enrollment Form'!$C531=\"Enroll\",'Enrollment Form'!$B531=\"Subscriber\",'Enrollment Form'!$CX531=\"No\",'Enrollment Form'!$DR531=\"\"),\"N\",IF(AND('Enrollment Form'!$C531=\"Enroll\",'Enrollment Form'!$B531=\"Subscriber\",'Enrollment Form'!$CX531=\"Yes\"),\"-\",\"Y\")))))","v":""},{"$f":"IF($B524=\"N\",\"\",IF(AND('Enrollment Form'!$C531=\"ROC\",'Enrollment Form'!$DS531<>\"\"),\"Y\",IF(AND('Enrollment Form'!$C531=\"ROC\",'Enrollment Form'!$DS531=\"\"),\"N\",IF(AND('Enrollment Form'!$C531=\"Enroll\",'Enrollment Form'!$B531=\"Subscriber\",'Enrollment Form'!$CX531=\"No\",'Enrollment Form'!$DS531=\"\"),\"N\",IF(AND('Enrollment Form'!$C531=\"Enroll\",'Enrollment Form'!$B531=\"Subscriber\",'Enrollment Form'!$CX531=\"Yes\"),\"-\",\"Y\")))))","v":""},{"$f":"IF('Enrollment Form'!AH531=\"\",\"\",IF(ISERROR(SEARCH(\".\",'Enrollment Form'!AH531,SEARCH(\"@\",'Enrollment Form'!AH531))),\"N\",\"Y\"))","v":""},{"$f":"IF(OR($B524=\"N\",'Enrollment Form'!$G531=\"\"),\"\",IF('Enrollment Form'!$B531<>\"Subscriber\",\"-\",IF(COUNTIF('Enrollment Form'!$AV531:$AW531,\"Yes\")=2,\"N\",\"Y\")))","v":""},{"$f":"IF(OR('Enrollment Form'!$CJ531=\"\",'Enrollment Form'!$CJ531=\"No\"),\"-\",IF(AND('Enrollment Form'!$CJ531=\"Yes\",'Enrollment Form'!$CK531=\"\"),\"N\",\"Y\"))","v":"-"},{"$f":"IF(OR('Enrollment Form'!$CL531=\"\",'Enrollment Form'!$CL531=\"No\"),\"-\",IF(AND('Enrollment Form'!$CL531=\"Yes\",'Enrollment Form'!$CM531=\"\"),\"N\",\"Y\"))","v":"-"},{"$f":"IF(OR('Enrollment Form'!$CN531=\"\",'Enrollment Form'!$CN531=\"No\"),\"-\",IF(AND('Enrollment Form'!$CN531=\"Yes\",'Enrollment Form'!$CO531=\"\"),\"N\",\"Y\"))","v":"-"},{"$f":"IF(OR('Enrollment Form'!$CN531=\"\",'Enrollment Form'!$CN531=\"No\"),\"-\",IF(AND('Enrollment Form'!$CN531=\"Yes\",'Enrollment Form'!$CP531=\"\"),\"N\",\"Y\"))","v":"-"},{"$f":"IF('Enrollment Form'!B531<>\"Subscriber\",\"-\",IF(AND('Enrollment Form'!B531=\"Subscriber\",'Enrollment Form'!C531=\"Enroll\",'Enrollment Form'!AA531=\"\"),\"N\",\"Y\"))","v":"-"},{"$f":"IF(OR('Enrollment Form'!B531=\"Subscriber\",'Enrollment Form'!B531=\"\"),\"-\",IF('Enrollment Form'!BP531=\"\",\"N\",\"Y\"))","v":"-"},{"$f":"IF('Enrollment Form'!B531<>\"Subscriber\",\"-\",IF(AND('Enrollment Form'!B531=\"Subscriber\",'Enrollment Form'!G531=\"\"),\"N\",\"Y\"))","v":"-"},{"$f":"IF('Enrollment Form'!A531=\"\",\"\",IF('Enrollment Form'!B531=\"Subscriber\",\"-\",IF(AND('Enrollment Form'!B531<>\"Subscriber\",'Enrollment Form'!G531='Enrollment Form'!H531),\"N\",\"Y\")))","v":""},0]
[532,{"$f":"IF('Enrollment Form'!$A532<>\"\",\"Y\",\"N\")","v":"N"},{"$f":"IF(AND('Enrollment Form'!$B532=\"\",'Enrollment Form'!$C532<>\"\"),\"N\",IF($B525=\"N\",\"\",\"Y\"))","v":""},{"$f":"IF(OR($B525=\"N\",'Enrollment Form'!G532=\"\"),\"\",IF('Enrollment Form'!$B532<>\"Subscriber\",\"\",IF('Enrollment Form'!$G532='Enrollment Form'!$H532,\"Y\",\"N\")))","v":""},{"$f":"IF($B525=\"N\",\"\",IF(AND(COUNTIFS('Enrollment Form'!$H$11:$H$1000,'Enrollment Form'!$H532,'Enrollment Form'!$B$11:$B$1000,'Enrollment Form'!$B532)>1,'Enrollment Form'!$H532<>\"\"),\"N\",\"Y\"))","v":""},{"$f":"IF($B525=\"N\",\"\",IF(LEN('Enrollment Form'!$Y532)=0,\"\",IF(LEN('Enrollment Form'!$Y532)<>5,\"N\",\"Y\")))","v":""},{"$f":"IF($B525=\"N\",\"\",IF(LEN('Enrollment Form'!$AD532=0),\"\",IF(LEN('Enrollment Form'!$AD532)<>5,\"N\",\"Y\")))","v":""},{"$f":"IF($B525=\"N\",\"\",IF(LEN('Enrollment Form'!$BS532=0),\"\",IF(LEN('Enrollment Form'!$BS532)<>5,\"N\",\"Y\")))","v":""},{"$f":"IF($B525=\"N\",\"\",IF(LEN('Enrollment Form'!$AE532)=0,\"\",IF(LEN('Enrollment Form'!$AE532)<>10,\"N\",\"Y\")))","v":""},{"$f":"IF($B525=\"N\",\"\",IF(LEN('Enrollment Form'!$AF532)=0,\"\",IF(LEN('Enrollment Form'!$AF532)<>10,\"N\",\"Y\")))","v":""},{"$f":"IF('Enrollment Form'!$O532<>\"Graded\",\"-\",IF(AND('Enrollment Form'!$O532=\"Graded\",'Enrollment Form'!$AR532<>\"\"),\"Y\",\"N\"))","v":"-"},{"$f":"IF($B525=\"N\",\"\",IF(OR('Enrollment Form'!$B532<>\"Subscriber\",'Enrollment Form'!$C532=\"ROC\"),\"-\",IF(AND('Enrollment Form'!$B532=\"Subscriber\",'Enrollment Form'!$C532=\"Enroll\",'Enrollment Form'!$AJ532<>\"\"),\"Y\",\"N\")))","v":""},{"$f":"IF($B525=\"N\",\"\",IF(OR('Enrollment Form'!$B532<>\"Subscriber\",'Enrollment Form'!$C532=\"ROC\"),\"-\",IF(AND('Enrollment Form'!$B532=\"Subscriber\",'Enrollment Form'!$C532=\"Enroll\",'Enrollment Form'!$AK532<>\"\"),\"Y\",\"N\")))","v":""},{"$f":"IF($B525=\"N\",\"\",IF(OR('Enrollment Form'!$B532<>\"Subscriber\",'Enrollment Form'!$C532=\"ROC\"),\"-\",IF(AND('Enrollment Form'!$B532=\"Subscriber\",'Enrollment Form'!$C532=\"Enroll\",'Enrollment Form'!$AL532<>\"\"),\"Y\",\"N\")))","v":""},{"$f":"IF($B525=\"N\",\"\",IF(OR('Enrollment Form'!$B532<>\"Subscriber\",'Enrollment Form'!$C532=\"ROC\"),\"-\",IF(AND('Enrollment Form'!$B532=\"Subscriber\",'Enrollment Form'!$C532=\"Enroll\",'Enrollment Form'!$AP532<>\"\"),\"Y\",\"N\")))","v":""},{"$f":"IF($B525=\"N\",\"\",IF(OR('Enrollment Form'!$B532<>\"Subscriber\",'Enrollment Form'!$C532=\"ROC\"),\"-\",IF(AND('Enrollment Form'!$B532=\"Subscriber\",'Enrollment Form'!$C532=\"Enroll\",'Enrollment Form'!$AQ532<>\"\"),\"Y\",\"N\")))","v":""},{"$f":"IF($B525=\"N\",\"\",IF(OR('Enrollment Form'!$B532<>\"Subscriber\",'Enrollment Form'!$C532=\"ROC\"),\"-\",IF(AND('Enrollment Form'!$B532=\"Subscriber\",'Enrollment Form'!$C532=\"Enroll\",'Enrollment Form'!$AS532<>\"\"),\"Y\",\"N\")))","v":""},{"$f":"IF($B525=\"N\",\"\",IF($Q525=\"-\",\"-\",IF(AND($Q525=\"Y\",'Enrollment Form'!$AS532=\"No\"),\"-\",IF(AND($Q525=\"Y\",'Enrollment Form'!$AS532=\"Yes\",'Enrollment Form'!$AT532<>\"\"),\"Y\",\"N\"))))","v":""},{"$f":"IF($B525=\"N\",\"\",IF(OR('Enrollment Form'!$B532<>\"Subscriber\",'Enrollment Form'!$C532=\"ROC\"),\"-\",IF(AND('Enrollment Form'!$B532=\"Subscriber\",'Enrollment Form'!$C532=\"Enroll\",'Enrollment Form'!$CV532<>\"\"),\"Y\",\"N\")))","v":""},{"$f":"IF($B525=\"N\",\"\",IF($S525=\"-\",\"-\",IF(AND($S525=\"Y\",'Enrollment Form'!$CV532=\"No\"),\"-\",IF(AND($S525=\"Y\",'Enrollment Form'!$CV532=\"Yes\",'Enrollment Form'!$CW532<>\"\"),\"Y\",\"N\"))))","v":""},{"$f":"IF(OR('Enrollment Form'!$AY532=\"Yes\",'Enrollment Form'!$AY532=\"\"),\"-\",IF(OR(AND('Enrollment Form'!$AY532=\"No\",ISERROR(FIND(\"HMO\",VLOOKUP('Enrollment Form'!G532,'Enrollment Form'!H$11:J$1000,3,FALSE),1))=FALSE,COUNTA('Enrollment Form'!$AZ532:$BC532)=4),AND('Enrollment Form'!$AY532=\"No\",ISERROR(FIND(\"HMO\",VLOOKUP('Enrollment Form'!G532,'Enrollment Form'!H$11:J$1000,3,FALSE),1))=FALSE,COUNTA('Enrollment Form'!$BT532:$BW532)=4)),\"Y\",\"N\"))","v":"-"},{"$f":"IF($B525=\"N\",\"\",IF('Enrollment Form'!$B532=\"Subscriber\",\"-\",IF(COUNTA('Enrollment Form'!$BL532,'Enrollment Form'!$BN532)=2,\"Y\",\"N\")))","v":""},{"$f":"IF($B525=\"N\",\"\",IF(OR('Enrollment Form'!$AX532=\"\",'Enrollment Form'!$AX532=\"No\"),\"-\",IF(AND('Enrollment Form'!$AX532=\"Yes\",COUNTA('Enrollment Form'!$CR532)=1),\"Y\",\"N\")))","v":""},{"$f":"IF(OR('Enrollment Form'!$CR532=\"\",'Enrollment Form'!$CR532=\"No\"),\"-\",IF(COUNTA('Enrollment Form'!$CT532:$CU532)=2,\"Y\",\"N\"))","v":"-"},{"$f":"IF($B525=\"N\",\"\",IF(COUNTIF('Enrollment Form'!$DG532:$DP532,\"Other\")=COUNTA('Enrollment Form'!$DK532,'Enrollment Form'!$DH532,'Enrollment Form'!$DN532,'Enrollment Form'!$DQ532),\"Y\",\"N\"))","v":""},{"$f":"IF($B525=\"N\",\"\",IF(OR('Enrollment Form'!B532<>\"Subscriber\",'Enrollment Form'!C532=\"ROC\",COUNTIF('Enrollment Form'!AV532:AW532,\"Yes\")>=1),\"-\",IF(AND('Enrollment Form'!C532=\"Enroll\",COUNTIF('Enrollment Form'!AV532:AW532,\"No\")=2,'Enrollment Form'!AX532=\"\"),\"N\",\"Y\")))","v":""},{"$f":"IF(OR(B525=\"N\",'Enrollment Form'!B532<>\"Subscriber\",'Enrollment Form'!C532=\"ROC\",'Enrollment Form'!O532<>\"Multiple of Salary\"),\"-\",IF(COUNTA('Enrollment Form'!T532:U532)<2,\"N\",\"Y\"))","v":"-"},{"$f":"IF(B525=\"N\",\"\",IF(OR('Enrollment Form'!C532=\"ROC\",'Enrollment Form'!B532<>\"Subscriber\",'Enrollment Form'!O532=\"Waive\",'Enrollment Form'!O532=\"\"),\"-\",IF('Enrollment Form'!P532=\"\",\"N\",\"Y\")))","v":""},{"$f":"IF($B525=\"N\",\"\",IF(AND('Enrollment Form'!$C532=\"ROC\",'Enrollment Form'!$DR532<>\"\"),\"Y\",IF(AND('Enrollment Form'!$C532=\"ROC\",'Enrollment Form'!$DR532=\"\"),\"N\",IF(AND('Enrollment Form'!$C532=\"Enroll\",'Enrollment Form'!$B532=\"Subscriber\",'Enrollment Form'!$CX532=\"No\",'Enrollment Form'!$DR532=\"\"),\"N\",IF(AND('Enrollment Form'!$C532=\"Enroll\",'Enrollment Form'!$B532=\"Subscriber\",'Enrollment Form'!$CX532=\"Yes\"),\"-\",\"Y\")))))","v":""},{"$f":"IF($B525=\"N\",\"\",IF(AND('Enrollment Form'!$C532=\"ROC\",'Enrollment Form'!$DS532<>\"\"),\"Y\",IF(AND('Enrollment Form'!$C532=\"ROC\",'Enrollment Form'!$DS532=\"\"),\"N\",IF(AND('Enrollment Form'!$C532=\"Enroll\",'Enrollment Form'!$B532=\"Subscriber\",'Enrollment Form'!$CX532=\"No\",'Enrollment Form'!$DS532=\"\"),\"N\",IF(AND('Enrollment Form'!$C532=\"Enroll\",'Enrollment Form'!$B532=\"Subscriber\",'Enrollment Form'!$CX532=\"Yes\"),\"-\",\"Y\")))))","v":""},{"$f":"IF('Enrollment Form'!AH532=\"\",\"\",IF(ISERROR(SEARCH(\".\",'Enrollment Form'!AH532,SEARCH(\"@\",'Enrollment Form'!AH532))),\"N\",\"Y\"))","v":""},{"$f":"IF(OR($B525=\"N\",'Enrollment Form'!$G532=\"\"),\"\",IF('Enrollment Form'!$B532<>\"Subscriber\",\"-\",IF(COUNTIF('Enrollment Form'!$AV532:$AW532,\"Yes\")=2,\"N\",\"Y\")))","v":""},{"$f":"IF(OR('Enrollment Form'!$CJ532=\"\",'Enrollment Form'!$CJ532=\"No\"),\"-\",IF(AND('Enrollment Form'!$CJ532=\"Yes\",'Enrollment Form'!$CK532=\"\"),\"N\",\"Y\"))","v":"-"},{"$f":"IF(OR('Enrollment Form'!$CL532=\"\",'Enrollment Form'!$CL532=\"No\"),\"-\",IF(AND('Enrollment Form'!$CL532=\"Yes\",'Enrollment Form'!$CM532=\"\"),\"N\",\"Y\"))","v":"-"},{"$f":"IF(OR('Enrollment Form'!$CN532=\"\",'Enrollment Form'!$CN532=\"No\"),\"-\",IF(AND('Enrollment Form'!$CN532=\"Yes\",'Enrollment Form'!$CO532=\"\"),\"N\",\"Y\"))","v":"-"},{"$f":"IF(OR('Enrollment Form'!$CN532=\"\",'Enrollment Form'!$CN532=\"No\"),\"-\",IF(AND('Enrollment Form'!$CN532=\"Yes\",'Enrollment Form'!$CP532=\"\"),\"N\",\"Y\"))","v":"-"},{"$f":"IF('Enrollment Form'!B532<>\"Subscriber\",\"-\",IF(AND('Enrollment Form'!B532=\"Subscriber\",'Enrollment Form'!C532=\"Enroll\",'Enrollment Form'!AA532=\"\"),\"N\",\"Y\"))","v":"-"},{"$f":"IF(OR('Enrollment Form'!B532=\"Subscriber\",'Enrollment Form'!B532=\"\"),\"-\",IF('Enrollment Form'!BP532=\"\",\"N\",\"Y\"))","v":"-"},{"$f":"IF('Enrollment Form'!B532<>\"Subscriber\",\"-\",IF(AND('Enrollment Form'!B532=\"Subscriber\",'Enrollment Form'!G532=\"\"),\"N\",\"Y\"))","v":"-"},{"$f":"IF('Enrollment Form'!A532=\"\",\"\",IF('Enrollment Form'!B532=\"Subscriber\",\"-\",IF(AND('Enrollment Form'!B532<>\"Subscriber\",'Enrollment Form'!G532='Enrollment Form'!H532),\"N\",\"Y\")))","v":""},0]
[533,{"$f":"IF('Enrollment Form'!$A533<>\"\",\"Y\",\"N\")","v":"N"},{"$f":"IF(AND('Enrollment Form'!$B533=\"\",'Enrollment Form'!$C533<>\"\"),\"N\",IF($B526=\"N\",\"\",\"Y\"))","v":""},{"$f":"IF(OR($B526=\"N\",'Enrollment Form'!G533=\"\"),\"\",IF('Enrollment Form'!$B533<>\"Subscriber\",\"\",IF('Enrollment Form'!$G533='Enrollment Form'!$H533,\"Y\",\"N\")))","v":""},{"$f":"IF($B526=\"N\",\"\",IF(AND(COUNTIFS('Enrollment Form'!$H$11:$H$1000,'Enrollment Form'!$H533,'Enrollment Form'!$B$11:$B$1000,'Enrollment Form'!$B533)>1,'Enrollment Form'!$H533<>\"\"),\"N\",\"Y\"))","v":""},{"$f":"IF($B526=\"N\",\"\",IF(LEN('Enrollment Form'!$Y533)=0,\"\",IF(LEN('Enrollment Form'!$Y533)<>5,\"N\",\"Y\")))","v":""},{"$f":"IF($B526=\"N\",\"\",IF(LEN('Enrollment Form'!$AD533=0),\"\",IF(LEN('Enrollment Form'!$AD533)<>5,\"N\",\"Y\")))","v":""},{"$f":"IF($B526=\"N\",\"\",IF(LEN('Enrollment Form'!$BS533=0),\"\",IF(LEN('Enrollment Form'!$BS533)<>5,\"N\",\"Y\")))","v":""},{"$f":"IF($B526=\"N\",\"\",IF(LEN('Enrollment Form'!$AE533)=0,\"\",IF(LEN('Enrollment Form'!$AE533)<>10,\"N\",\"Y\")))","v":""},{"$f":"IF($B526=\"N\",\"\",IF(LEN('Enrollment Form'!$AF533)=0,\"\",IF(LEN('Enrollment Form'!$AF533)<>10,\"N\",\"Y\")))","v":""},{"$f":"IF('Enrollment Form'!$O533<>\"Graded\",\"-\",IF(AND('Enrollment Form'!$O533=\"Graded\",'Enrollment Form'!$AR533<>\"\"),\"Y\",\"N\"))","v":"-"},{"$f":"IF($B526=\"N\",\"\",IF(OR('Enrollment Form'!$B533<>\"Subscriber\",'Enrollment Form'!$C533=\"ROC\"),\"-\",IF(AND('Enrollment Form'!$B533=\"Subscriber\",'Enrollment Form'!$C533=\"Enroll\",'Enrollment Form'!$AJ533<>\"\"),\"Y\",\"N\")))","v":""},{"$f":"IF($B526=\"N\",\"\",IF(OR('Enrollment Form'!$B533<>\"Subscriber\",'Enrollment Form'!$C533=\"ROC\"),\"-\",IF(AND('Enrollment Form'!$B533=\"Subscriber\",'Enrollment Form'!$C533=\"Enroll\",'Enrollment Form'!$AK533<>\"\"),\"Y\",\"N\")))","v":""},{"$f":"IF($B526=\"N\",\"\",IF(OR('Enrollment Form'!$B533<>\"Subscriber\",'Enrollment Form'!$C533=\"ROC\"),\"-\",IF(AND('Enrollment Form'!$B533=\"Subscriber\",'Enrollment Form'!$C533=\"Enroll\",'Enrollment Form'!$AL533<>\"\"),\"Y\",\"N\")))","v":""},{"$f":"IF($B526=\"N\",\"\",IF(OR('Enrollment Form'!$B533<>\"Subscriber\",'Enrollment Form'!$C533=\"ROC\"),\"-\",IF(AND('Enrollment Form'!$B533=\"Subscriber\",'Enrollment Form'!$C533=\"Enroll\",'Enrollment Form'!$AP533<>\"\"),\"Y\",\"N\")))","v":""},{"$f":"IF($B526=\"N\",\"\",IF(OR('Enrollment Form'!$B533<>\"Subscriber\",'Enrollment Form'!$C533=\"ROC\"),\"-\",IF(AND('Enrollment Form'!$B533=\"Subscriber\",'Enrollment Form'!$C533=\"Enroll\",'Enrollment Form'!$AQ533<>\"\"),\"Y\",\"N\")))","v":""},{"$f":"IF($B526=\"N\",\"\",IF(OR('Enrollment Form'!$B533<>\"Subscriber\",'Enrollment Form'!$C533=\"ROC\"),\"-\",IF(AND('Enrollment Form'!$B533=\"Subscriber\",'Enrollment Form'!$C533=\"Enroll\",'Enrollment Form'!$AS533<>\"\"),\"Y\",\"N\")))","v":""},{"$f":"IF($B526=\"N\",\"\",IF($Q526=\"-\",\"-\",IF(AND($Q526=\"Y\",'Enrollment Form'!$AS533=\"No\"),\"-\",IF(AND($Q526=\"Y\",'Enrollment Form'!$AS533=\"Yes\",'Enrollment Form'!$AT533<>\"\"),\"Y\",\"N\"))))","v":""},{"$f":"IF($B526=\"N\",\"\",IF(OR('Enrollment Form'!$B533<>\"Subscriber\",'Enrollment Form'!$C533=\"ROC\"),\"-\",IF(AND('Enrollment Form'!$B533=\"Subscriber\",'Enrollment Form'!$C533=\"Enroll\",'Enrollment Form'!$CV533<>\"\"),\"Y\",\"N\")))","v":""},{"$f":"IF($B526=\"N\",\"\",IF($S526=\"-\",\"-\",IF(AND($S526=\"Y\",'Enrollment Form'!$CV533=\"No\"),\"-\",IF(AND($S526=\"Y\",'Enrollment Form'!$CV533=\"Yes\",'Enrollment Form'!$CW533<>\"\"),\"Y\",\"N\"))))","v":""},{"$f":"IF(OR('Enrollment Form'!$AY533=\"Yes\",'Enrollment Form'!$AY533=\"\"),\"-\",IF(OR(AND('Enrollment Form'!$AY533=\"No\",ISERROR(FIND(\"HMO\",VLOOKUP('Enrollment Form'!G533,'Enrollment Form'!H$11:J$1000,3,FALSE),1))=FALSE,COUNTA('Enrollment Form'!$AZ533:$BC533)=4),AND('Enrollment Form'!$AY533=\"No\",ISERROR(FIND(\"HMO\",VLOOKUP('Enrollment Form'!G533,'Enrollment Form'!H$11:J$1000,3,FALSE),1))=FALSE,COUNTA('Enrollment Form'!$BT533:$BW533)=4)),\"Y\",\"N\"))","v":"-"},{"$f":"IF($B526=\"N\",\"\",IF('Enrollment Form'!$B533=\"Subscriber\",\"-\",IF(COUNTA('Enrollment Form'!$BL533,'Enrollment Form'!$BN533)=2,\"Y\",\"N\")))","v":""},{"$f":"IF($B526=\"N\",\"\",IF(OR('Enrollment Form'!$AX533=\"\",'Enrollment Form'!$AX533=\"No\"),\"-\",IF(AND('Enrollment Form'!$AX533=\"Yes\",COUNTA('Enrollment Form'!$CR533)=1),\"Y\",\"N\")))","v":""},{"$f":"IF(OR('Enrollment Form'!$CR533=\"\",'Enrollment Form'!$CR533=\"No\"),\"-\",IF(COUNTA('Enrollment Form'!$CT533:$CU533)=2,\"Y\",\"N\"))","v":"-"},{"$f":"IF($B526=\"N\",\"\",IF(COUNTIF('Enrollment Form'!$DG533:$DP533,\"Other\")=COUNTA('Enrollment Form'!$DK533,'Enrollment Form'!$DH533,'Enrollment Form'!$DN533,'Enrollment Form'!$DQ533),\"Y\",\"N\"))","v":""},{"$f":"IF($B526=\"N\",\"\",IF(OR('Enrollment Form'!B533<>\"Subscriber\",'Enrollment Form'!C533=\"ROC\",COUNTIF('Enrollment Form'!AV533:AW533,\"Yes\")>=1),\"-\",IF(AND('Enrollment Form'!C533=\"Enroll\",COUNTIF('Enrollment Form'!AV533:AW533,\"No\")=2,'Enrollment Form'!AX533=\"\"),\"N\",\"Y\")))","v":""},{"$f":"IF(OR(B526=\"N\",'Enrollment Form'!B533<>\"Subscriber\",'Enrollment Form'!C533=\"ROC\",'Enrollment Form'!O533<>\"Multiple of Salary\"),\"-\",IF(COUNTA('Enrollment Form'!T533:U533)<2,\"N\",\"Y\"))","v":"-"},{"$f":"IF(B526=\"N\",\"\",IF(OR('Enrollment Form'!C533=\"ROC\",'Enrollment Form'!B533<>\"Subscriber\",'Enrollment Form'!O533=\"Waive\",'Enrollment Form'!O533=\"\"),\"-\",IF('Enrollment Form'!P533=\"\",\"N\",\"Y\")))","v":""},{"$f":"IF($B526=\"N\",\"\",IF(AND('Enrollment Form'!$C533=\"ROC\",'Enrollment Form'!$DR533<>\"\"),\"Y\",IF(AND('Enrollment Form'!$C533=\"ROC\",'Enrollment Form'!$DR533=\"\"),\"N\",IF(AND('Enrollment Form'!$C533=\"Enroll\",'Enrollment Form'!$B533=\"Subscriber\",'Enrollment Form'!$CX533=\"No\",'Enrollment Form'!$DR533=\"\"),\"N\",IF(AND('Enrollment Form'!$C533=\"Enroll\",'Enrollment Form'!$B533=\"Subscriber\",'Enrollment Form'!$CX533=\"Yes\"),\"-\",\"Y\")))))","v":""},{"$f":"IF($B526=\"N\",\"\",IF(AND('Enrollment Form'!$C533=\"ROC\",'Enrollment Form'!$DS533<>\"\"),\"Y\",IF(AND('Enrollment Form'!$C533=\"ROC\",'Enrollment Form'!$DS533=\"\"),\"N\",IF(AND('Enrollment Form'!$C533=\"Enroll\",'Enrollment Form'!$B533=\"Subscriber\",'Enrollment Form'!$CX533=\"No\",'Enrollment Form'!$DS533=\"\"),\"N\",IF(AND('Enrollment Form'!$C533=\"Enroll\",'Enrollment Form'!$B533=\"Subscriber\",'Enrollment Form'!$CX533=\"Yes\"),\"-\",\"Y\")))))","v":""},{"$f":"IF('Enrollment Form'!AH533=\"\",\"\",IF(ISERROR(SEARCH(\".\",'Enrollment Form'!AH533,SEARCH(\"@\",'Enrollment Form'!AH533))),\"N\",\"Y\"))","v":""},{"$f":"IF(OR($B526=\"N\",'Enrollment Form'!$G533=\"\"),\"\",IF('Enrollment Form'!$B533<>\"Subscriber\",\"-\",IF(COUNTIF('Enrollment Form'!$AV533:$AW533,\"Yes\")=2,\"N\",\"Y\")))","v":""},{"$f":"IF(OR('Enrollment Form'!$CJ533=\"\",'Enrollment Form'!$CJ533=\"No\"),\"-\",IF(AND('Enrollment Form'!$CJ533=\"Yes\",'Enrollment Form'!$CK533=\"\"),\"N\",\"Y\"))","v":"-"},{"$f":"IF(OR('Enrollment Form'!$CL533=\"\",'Enrollment Form'!$CL533=\"No\"),\"-\",IF(AND('Enrollment Form'!$CL533=\"Yes\",'Enrollment Form'!$CM533=\"\"),\"N\",\"Y\"))","v":"-"},{"$f":"IF(OR('Enrollment Form'!$CN533=\"\",'Enrollment Form'!$CN533=\"No\"),\"-\",IF(AND('Enrollment Form'!$CN533=\"Yes\",'Enrollment Form'!$CO533=\"\"),\"N\",\"Y\"))","v":"-"},{"$f":"IF(OR('Enrollment Form'!$CN533=\"\",'Enrollment Form'!$CN533=\"No\"),\"-\",IF(AND('Enrollment Form'!$CN533=\"Yes\",'Enrollment Form'!$CP533=\"\"),\"N\",\"Y\"))","v":"-"},{"$f":"IF('Enrollment Form'!B533<>\"Subscriber\",\"-\",IF(AND('Enrollment Form'!B533=\"Subscriber\",'Enrollment Form'!C533=\"Enroll\",'Enrollment Form'!AA533=\"\"),\"N\",\"Y\"))","v":"-"},{"$f":"IF(OR('Enrollment Form'!B533=\"Subscriber\",'Enrollment Form'!B533=\"\"),\"-\",IF('Enrollment Form'!BP533=\"\",\"N\",\"Y\"))","v":"-"},{"$f":"IF('Enrollment Form'!B533<>\"Subscriber\",\"-\",IF(AND('Enrollment Form'!B533=\"Subscriber\",'Enrollment Form'!G533=\"\"),\"N\",\"Y\"))","v":"-"},{"$f":"IF('Enrollment Form'!A533=\"\",\"\",IF('Enrollment Form'!B533=\"Subscriber\",\"-\",IF(AND('Enrollment Form'!B533<>\"Subscriber\",'Enrollment Form'!G533='Enrollment Form'!H533),\"N\",\"Y\")))","v":""},0]
[534,{"$f":"IF('Enrollment Form'!$A534<>\"\",\"Y\",\"N\")","v":"N"},{"$f":"IF(AND('Enrollment Form'!$B534=\"\",'Enrollment Form'!$C534<>\"\"),\"N\",IF($B527=\"N\",\"\",\"Y\"))","v":""},{"$f":"IF(OR($B527=\"N\",'Enrollment Form'!G534=\"\"),\"\",IF('Enrollment Form'!$B534<>\"Subscriber\",\"\",IF('Enrollment Form'!$G534='Enrollment Form'!$H534,\"Y\",\"N\")))","v":""},{"$f":"IF($B527=\"N\",\"\",IF(AND(COUNTIFS('Enrollment Form'!$H$11:$H$1000,'Enrollment Form'!$H534,'Enrollment Form'!$B$11:$B$1000,'Enrollment Form'!$B534)>1,'Enrollment Form'!$H534<>\"\"),\"N\",\"Y\"))","v":""},{"$f":"IF($B527=\"N\",\"\",IF(LEN('Enrollment Form'!$Y534)=0,\"\",IF(LEN('Enrollment Form'!$Y534)<>5,\"N\",\"Y\")))","v":""},{"$f":"IF($B527=\"N\",\"\",IF(LEN('Enrollment Form'!$AD534=0),\"\",IF(LEN('Enrollment Form'!$AD534)<>5,\"N\",\"Y\")))","v":""},{"$f":"IF($B527=\"N\",\"\",IF(LEN('Enrollment Form'!$BS534=0),\"\",IF(LEN('Enrollment Form'!$BS534)<>5,\"N\",\"Y\")))","v":""},{"$f":"IF($B527=\"N\",\"\",IF(LEN('Enrollment Form'!$AE534)=0,\"\",IF(LEN('Enrollment Form'!$AE534)<>10,\"N\",\"Y\")))","v":""},{"$f":"IF($B527=\"N\",\"\",IF(LEN('Enrollment Form'!$AF534)=0,\"\",IF(LEN('Enrollment Form'!$AF534)<>10,\"N\",\"Y\")))","v":""},{"$f":"IF('Enrollment Form'!$O534<>\"Graded\",\"-\",IF(AND('Enrollment Form'!$O534=\"Graded\",'Enrollment Form'!$AR534<>\"\"),\"Y\",\"N\"))","v":"-"},{"$f":"IF($B527=\"N\",\"\",IF(OR('Enrollment Form'!$B534<>\"Subscriber\",'Enrollment Form'!$C534=\"ROC\"),\"-\",IF(AND('Enrollment Form'!$B534=\"Subscriber\",'Enrollment Form'!$C534=\"Enroll\",'Enrollment Form'!$AJ534<>\"\"),\"Y\",\"N\")))","v":""},{"$f":"IF($B527=\"N\",\"\",IF(OR('Enrollment Form'!$B534<>\"Subscriber\",'Enrollment Form'!$C534=\"ROC\"),\"-\",IF(AND('Enrollment Form'!$B534=\"Subscriber\",'Enrollment Form'!$C534=\"Enroll\",'Enrollment Form'!$AK534<>\"\"),\"Y\",\"N\")))","v":""},{"$f":"IF($B527=\"N\",\"\",IF(OR('Enrollment Form'!$B534<>\"Subscriber\",'Enrollment Form'!$C534=\"ROC\"),\"-\",IF(AND('Enrollment Form'!$B534=\"Subscriber\",'Enrollment Form'!$C534=\"Enroll\",'Enrollment Form'!$AL534<>\"\"),\"Y\",\"N\")))","v":""},{"$f":"IF($B527=\"N\",\"\",IF(OR('Enrollment Form'!$B534<>\"Subscriber\",'Enrollment Form'!$C534=\"ROC\"),\"-\",IF(AND('Enrollment Form'!$B534=\"Subscriber\",'Enrollment Form'!$C534=\"Enroll\",'Enrollment Form'!$AP534<>\"\"),\"Y\",\"N\")))","v":""},{"$f":"IF($B527=\"N\",\"\",IF(OR('Enrollment Form'!$B534<>\"Subscriber\",'Enrollment Form'!$C534=\"ROC\"),\"-\",IF(AND('Enrollment Form'!$B534=\"Subscriber\",'Enrollment Form'!$C534=\"Enroll\",'Enrollment Form'!$AQ534<>\"\"),\"Y\",\"N\")))","v":""},{"$f":"IF($B527=\"N\",\"\",IF(OR('Enrollment Form'!$B534<>\"Subscriber\",'Enrollment Form'!$C534=\"ROC\"),\"-\",IF(AND('Enrollment Form'!$B534=\"Subscriber\",'Enrollment Form'!$C534=\"Enroll\",'Enrollment Form'!$AS534<>\"\"),\"Y\",\"N\")))","v":""},{"$f":"IF($B527=\"N\",\"\",IF($Q527=\"-\",\"-\",IF(AND($Q527=\"Y\",'Enrollment Form'!$AS534=\"No\"),\"-\",IF(AND($Q527=\"Y\",'Enrollment Form'!$AS534=\"Yes\",'Enrollment Form'!$AT534<>\"\"),\"Y\",\"N\"))))","v":""},{"$f":"IF($B527=\"N\",\"\",IF(OR('Enrollment Form'!$B534<>\"Subscriber\",'Enrollment Form'!$C534=\"ROC\"),\"-\",IF(AND('Enrollment Form'!$B534=\"Subscriber\",'Enrollment Form'!$C534=\"Enroll\",'Enrollment Form'!$CV534<>\"\"),\"Y\",\"N\")))","v":""},{"$f":"IF($B527=\"N\",\"\",IF($S527=\"-\",\"-\",IF(AND($S527=\"Y\",'Enrollment Form'!$CV534=\"No\"),\"-\",IF(AND($S527=\"Y\",'Enrollment Form'!$CV534=\"Yes\",'Enrollment Form'!$CW534<>\"\"),\"Y\",\"N\"))))","v":""},{"$f":"IF(OR('Enrollment Form'!$AY534=\"Yes\",'Enrollment Form'!$AY534=\"\"),\"-\",IF(OR(AND('Enrollment Form'!$AY534=\"No\",ISERROR(FIND(\"HMO\",VLOOKUP('Enrollment Form'!G534,'Enrollment Form'!H$11:J$1000,3,FALSE),1))=FALSE,COUNTA('Enrollment Form'!$AZ534:$BC534)=4),AND('Enrollment Form'!$AY534=\"No\",ISERROR(FIND(\"HMO\",VLOOKUP('Enrollment Form'!G534,'Enrollment Form'!H$11:J$1000,3,FALSE),1))=FALSE,COUNTA('Enrollment Form'!$BT534:$BW534)=4)),\"Y\",\"N\"))","v":"-"},{"$f":"IF($B527=\"N\",\"\",IF('Enrollment Form'!$B534=\"Subscriber\",\"-\",IF(COUNTA('Enrollment Form'!$BL534,'Enrollment Form'!$BN534)=2,\"Y\",\"N\")))","v":""},{"$f":"IF($B527=\"N\",\"\",IF(OR('Enrollment Form'!$AX534=\"\",'Enrollment Form'!$AX534=\"No\"),\"-\",IF(AND('Enrollment Form'!$AX534=\"Yes\",COUNTA('Enrollment Form'!$CR534)=1),\"Y\",\"N\")))","v":""},{"$f":"IF(OR('Enrollment Form'!$CR534=\"\",'Enrollment Form'!$CR534=\"No\"),\"-\",IF(COUNTA('Enrollment Form'!$CT534:$CU534)=2,\"Y\",\"N\"))","v":"-"},{"$f":"IF($B527=\"N\",\"\",IF(COUNTIF('Enrollment Form'!$DG534:$DP534,\"Other\")=COUNTA('Enrollment Form'!$DK534,'Enrollment Form'!$DH534,'Enrollment Form'!$DN534,'Enrollment Form'!$DQ534),\"Y\",\"N\"))","v":""},{"$f":"IF($B527=\"N\",\"\",IF(OR('Enrollment Form'!B534<>\"Subscriber\",'Enrollment Form'!C534=\"ROC\",COUNTIF('Enrollment Form'!AV534:AW534,\"Yes\")>=1),\"-\",IF(AND('Enrollment Form'!C534=\"Enroll\",COUNTIF('Enrollment Form'!AV534:AW534,\"No\")=2,'Enrollment Form'!AX534=\"\"),\"N\",\"Y\")))","v":""},{"$f":"IF(OR(B527=\"N\",'Enrollment Form'!B534<>\"Subscriber\",'Enrollment Form'!C534=\"ROC\",'Enrollment Form'!O534<>\"Multiple of Salary\"),\"-\",IF(COUNTA('Enrollment Form'!T534:U534)<2,\"N\",\"Y\"))","v":"-"},{"$f":"IF(B527=\"N\",\"\",IF(OR('Enrollment Form'!C534=\"ROC\",'Enrollment Form'!B534<>\"Subscriber\",'Enrollment Form'!O534=\"Waive\",'Enrollment Form'!O534=\"\"),\"-\",IF('Enrollment Form'!P534=\"\",\"N\",\"Y\")))","v":""},{"$f":"IF($B527=\"N\",\"\",IF(AND('Enrollment Form'!$C534=\"ROC\",'Enrollment Form'!$DR534<>\"\"),\"Y\",IF(AND('Enrollment Form'!$C534=\"ROC\",'Enrollment Form'!$DR534=\"\"),\"N\",IF(AND('Enrollment Form'!$C534=\"Enroll\",'Enrollment Form'!$B534=\"Subscriber\",'Enrollment Form'!$CX534=\"No\",'Enrollment Form'!$DR534=\"\"),\"N\",IF(AND('Enrollment Form'!$C534=\"Enroll\",'Enrollment Form'!$B534=\"Subscriber\",'Enrollment Form'!$CX534=\"Yes\"),\"-\",\"Y\")))))","v":""},{"$f":"IF($B527=\"N\",\"\",IF(AND('Enrollment Form'!$C534=\"ROC\",'Enrollment Form'!$DS534<>\"\"),\"Y\",IF(AND('Enrollment Form'!$C534=\"ROC\",'Enrollment Form'!$DS534=\"\"),\"N\",IF(AND('Enrollment Form'!$C534=\"Enroll\",'Enrollment Form'!$B534=\"Subscriber\",'Enrollment Form'!$CX534=\"No\",'Enrollment Form'!$DS534=\"\"),\"N\",IF(AND('Enrollment Form'!$C534=\"Enroll\",'Enrollment Form'!$B534=\"Subscriber\",'Enrollment Form'!$CX534=\"Yes\"),\"-\",\"Y\")))))","v":""},{"$f":"IF('Enrollment Form'!AH534=\"\",\"\",IF(ISERROR(SEARCH(\".\",'Enrollment Form'!AH534,SEARCH(\"@\",'Enrollment Form'!AH534))),\"N\",\"Y\"))","v":""},{"$f":"IF(OR($B527=\"N\",'Enrollment Form'!$G534=\"\"),\"\",IF('Enrollment Form'!$B534<>\"Subscriber\",\"-\",IF(COUNTIF('Enrollment Form'!$AV534:$AW534,\"Yes\")=2,\"N\",\"Y\")))","v":""},{"$f":"IF(OR('Enrollment Form'!$CJ534=\"\",'Enrollment Form'!$CJ534=\"No\"),\"-\",IF(AND('Enrollment Form'!$CJ534=\"Yes\",'Enrollment Form'!$CK534=\"\"),\"N\",\"Y\"))","v":"-"},{"$f":"IF(OR('Enrollment Form'!$CL534=\"\",'Enrollment Form'!$CL534=\"No\"),\"-\",IF(AND('Enrollment Form'!$CL534=\"Yes\",'Enrollment Form'!$CM534=\"\"),\"N\",\"Y\"))","v":"-"},{"$f":"IF(OR('Enrollment Form'!$CN534=\"\",'Enrollment Form'!$CN534=\"No\"),\"-\",IF(AND('Enrollment Form'!$CN534=\"Yes\",'Enrollment Form'!$CO534=\"\"),\"N\",\"Y\"))","v":"-"},{"$f":"IF(OR('Enrollment Form'!$CN534=\"\",'Enrollment Form'!$CN534=\"No\"),\"-\",IF(AND('Enrollment Form'!$CN534=\"Yes\",'Enrollment Form'!$CP534=\"\"),\"N\",\"Y\"))","v":"-"},{"$f":"IF('Enrollment Form'!B534<>\"Subscriber\",\"-\",IF(AND('Enrollment Form'!B534=\"Subscriber\",'Enrollment Form'!C534=\"Enroll\",'Enrollment Form'!AA534=\"\"),\"N\",\"Y\"))","v":"-"},{"$f":"IF(OR('Enrollment Form'!B534=\"Subscriber\",'Enrollment Form'!B534=\"\"),\"-\",IF('Enrollment Form'!BP534=\"\",\"N\",\"Y\"))","v":"-"},{"$f":"IF('Enrollment Form'!B534<>\"Subscriber\",\"-\",IF(AND('Enrollment Form'!B534=\"Subscriber\",'Enrollment Form'!G534=\"\"),\"N\",\"Y\"))","v":"-"},{"$f":"IF('Enrollment Form'!A534=\"\",\"\",IF('Enrollment Form'!B534=\"Subscriber\",\"-\",IF(AND('Enrollment Form'!B534<>\"Subscriber\",'Enrollment Form'!G534='Enrollment Form'!H534),\"N\",\"Y\")))","v":""},0]
[535,{"$f":"IF('Enrollment Form'!$A535<>\"\",\"Y\",\"N\")","v":"N"},{"$f":"IF(AND('Enrollment Form'!$B535=\"\",'Enrollment Form'!$C535<>\"\"),\"N\",IF($B528=\"N\",\"\",\"Y\"))","v":""},{"$f":"IF(OR($B528=\"N\",'Enrollment Form'!G535=\"\"),\"\",IF('Enrollment Form'!$B535<>\"Subscriber\",\"\",IF('Enrollment Form'!$G535='Enrollment Form'!$H535,\"Y\",\"N\")))","v":""},{"$f":"IF($B528=\"N\",\"\",IF(AND(COUNTIFS('Enrollment Form'!$H$11:$H$1000,'Enrollment Form'!$H535,'Enrollment Form'!$B$11:$B$1000,'Enrollment Form'!$B535)>1,'Enrollment Form'!$H535<>\"\"),\"N\",\"Y\"))","v":""},{"$f":"IF($B528=\"N\",\"\",IF(LEN('Enrollment Form'!$Y535)=0,\"\",IF(LEN('Enrollment Form'!$Y535)<>5,\"N\",\"Y\")))","v":""},{"$f":"IF($B528=\"N\",\"\",IF(LEN('Enrollment Form'!$AD535=0),\"\",IF(LEN('Enrollment Form'!$AD535)<>5,\"N\",\"Y\")))","v":""},{"$f":"IF($B528=\"N\",\"\",IF(LEN('Enrollment Form'!$BS535=0),\"\",IF(LEN('Enrollment Form'!$BS535)<>5,\"N\",\"Y\")))","v":""},{"$f":"IF($B528=\"N\",\"\",IF(LEN('Enrollment Form'!$AE535)=0,\"\",IF(LEN('Enrollment Form'!$AE535)<>10,\"N\",\"Y\")))","v":""},{"$f":"IF($B528=\"N\",\"\",IF(LEN('Enrollment Form'!$AF535)=0,\"\",IF(LEN('Enrollment Form'!$AF535)<>10,\"N\",\"Y\")))","v":""},{"$f":"IF('Enrollment Form'!$O535<>\"Graded\",\"-\",IF(AND('Enrollment Form'!$O535=\"Graded\",'Enrollment Form'!$AR535<>\"\"),\"Y\",\"N\"))","v":"-"},{"$f":"IF($B528=\"N\",\"\",IF(OR('Enrollment Form'!$B535<>\"Subscriber\",'Enrollment Form'!$C535=\"ROC\"),\"-\",IF(AND('Enrollment Form'!$B535=\"Subscriber\",'Enrollment Form'!$C535=\"Enroll\",'Enrollment Form'!$AJ535<>\"\"),\"Y\",\"N\")))","v":""},{"$f":"IF($B528=\"N\",\"\",IF(OR('Enrollment Form'!$B535<>\"Subscriber\",'Enrollment Form'!$C535=\"ROC\"),\"-\",IF(AND('Enrollment Form'!$B535=\"Subscriber\",'Enrollment Form'!$C535=\"Enroll\",'Enrollment Form'!$AK535<>\"\"),\"Y\",\"N\")))","v":""},{"$f":"IF($B528=\"N\",\"\",IF(OR('Enrollment Form'!$B535<>\"Subscriber\",'Enrollment Form'!$C535=\"ROC\"),\"-\",IF(AND('Enrollment Form'!$B535=\"Subscriber\",'Enrollment Form'!$C535=\"Enroll\",'Enrollment Form'!$AL535<>\"\"),\"Y\",\"N\")))","v":""},{"$f":"IF($B528=\"N\",\"\",IF(OR('Enrollment Form'!$B535<>\"Subscriber\",'Enrollment Form'!$C535=\"ROC\"),\"-\",IF(AND('Enrollment Form'!$B535=\"Subscriber\",'Enrollment Form'!$C535=\"Enroll\",'Enrollment Form'!$AP535<>\"\"),\"Y\",\"N\")))","v":""},{"$f":"IF($B528=\"N\",\"\",IF(OR('Enrollment Form'!$B535<>\"Subscriber\",'Enrollment Form'!$C535=\"ROC\"),\"-\",IF(AND('Enrollment Form'!$B535=\"Subscriber\",'Enrollment Form'!$C535=\"Enroll\",'Enrollment Form'!$AQ535<>\"\"),\"Y\",\"N\")))","v":""},{"$f":"IF($B528=\"N\",\"\",IF(OR('Enrollment Form'!$B535<>\"Subscriber\",'Enrollment Form'!$C535=\"ROC\"),\"-\",IF(AND('Enrollment Form'!$B535=\"Subscriber\",'Enrollment Form'!$C535=\"Enroll\",'Enrollment Form'!$AS535<>\"\"),\"Y\",\"N\")))","v":""},{"$f":"IF($B528=\"N\",\"\",IF($Q528=\"-\",\"-\",IF(AND($Q528=\"Y\",'Enrollment Form'!$AS535=\"No\"),\"-\",IF(AND($Q528=\"Y\",'Enrollment Form'!$AS535=\"Yes\",'Enrollment Form'!$AT535<>\"\"),\"Y\",\"N\"))))","v":""},{"$f":"IF($B528=\"N\",\"\",IF(OR('Enrollment Form'!$B535<>\"Subscriber\",'Enrollment Form'!$C535=\"ROC\"),\"-\",IF(AND('Enrollment Form'!$B535=\"Subscriber\",'Enrollment Form'!$C535=\"Enroll\",'Enrollment Form'!$CV535<>\"\"),\"Y\",\"N\")))","v":""},{"$f":"IF($B528=\"N\",\"\",IF($S528=\"-\",\"-\",IF(AND($S528=\"Y\",'Enrollment Form'!$CV535=\"No\"),\"-\",IF(AND($S528=\"Y\",'Enrollment Form'!$CV535=\"Yes\",'Enrollment Form'!$CW535<>\"\"),\"Y\",\"N\"))))","v":""},{"$f":"IF(OR('Enrollment Form'!$AY535=\"Yes\",'Enrollment Form'!$AY535=\"\"),\"-\",IF(OR(AND('Enrollment Form'!$AY535=\"No\",ISERROR(FIND(\"HMO\",VLOOKUP('Enrollment Form'!G535,'Enrollment Form'!H$11:J$1000,3,FALSE),1))=FALSE,COUNTA('Enrollment Form'!$AZ535:$BC535)=4),AND('Enrollment Form'!$AY535=\"No\",ISERROR(FIND(\"HMO\",VLOOKUP('Enrollment Form'!G535,'Enrollment Form'!H$11:J$1000,3,FALSE),1))=FALSE,COUNTA('Enrollment Form'!$BT535:$BW535)=4)),\"Y\",\"N\"))","v":"-"},{"$f":"IF($B528=\"N\",\"\",IF('Enrollment Form'!$B535=\"Subscriber\",\"-\",IF(COUNTA('Enrollment Form'!$BL535,'Enrollment Form'!$BN535)=2,\"Y\",\"N\")))","v":""},{"$f":"IF($B528=\"N\",\"\",IF(OR('Enrollment Form'!$AX535=\"\",'Enrollment Form'!$AX535=\"No\"),\"-\",IF(AND('Enrollment Form'!$AX535=\"Yes\",COUNTA('Enrollment Form'!$CR535)=1),\"Y\",\"N\")))","v":""},{"$f":"IF(OR('Enrollment Form'!$CR535=\"\",'Enrollment Form'!$CR535=\"No\"),\"-\",IF(COUNTA('Enrollment Form'!$CT535:$CU535)=2,\"Y\",\"N\"))","v":"-"},{"$f":"IF($B528=\"N\",\"\",IF(COUNTIF('Enrollment Form'!$DG535:$DP535,\"Other\")=COUNTA('Enrollment Form'!$DK535,'Enrollment Form'!$DH535,'Enrollment Form'!$DN535,'Enrollment Form'!$DQ535),\"Y\",\"N\"))","v":""},{"$f":"IF($B528=\"N\",\"\",IF(OR('Enrollment Form'!B535<>\"Subscriber\",'Enrollment Form'!C535=\"ROC\",COUNTIF('Enrollment Form'!AV535:AW535,\"Yes\")>=1),\"-\",IF(AND('Enrollment Form'!C535=\"Enroll\",COUNTIF('Enrollment Form'!AV535:AW535,\"No\")=2,'Enrollment Form'!AX535=\"\"),\"N\",\"Y\")))","v":""},{"$f":"IF(OR(B528=\"N\",'Enrollment Form'!B535<>\"Subscriber\",'Enrollment Form'!C535=\"ROC\",'Enrollment Form'!O535<>\"Multiple of Salary\"),\"-\",IF(COUNTA('Enrollment Form'!T535:U535)<2,\"N\",\"Y\"))","v":"-"},{"$f":"IF(B528=\"N\",\"\",IF(OR('Enrollment Form'!C535=\"ROC\",'Enrollment Form'!B535<>\"Subscriber\",'Enrollment Form'!O535=\"Waive\",'Enrollment Form'!O535=\"\"),\"-\",IF('Enrollment Form'!P535=\"\",\"N\",\"Y\")))","v":""},{"$f":"IF($B528=\"N\",\"\",IF(AND('Enrollment Form'!$C535=\"ROC\",'Enrollment Form'!$DR535<>\"\"),\"Y\",IF(AND('Enrollment Form'!$C535=\"ROC\",'Enrollment Form'!$DR535=\"\"),\"N\",IF(AND('Enrollment Form'!$C535=\"Enroll\",'Enrollment Form'!$B535=\"Subscriber\",'Enrollment Form'!$CX535=\"No\",'Enrollment Form'!$DR535=\"\"),\"N\",IF(AND('Enrollment Form'!$C535=\"Enroll\",'Enrollment Form'!$B535=\"Subscriber\",'Enrollment Form'!$CX535=\"Yes\"),\"-\",\"Y\")))))","v":""},{"$f":"IF($B528=\"N\",\"\",IF(AND('Enrollment Form'!$C535=\"ROC\",'Enrollment Form'!$DS535<>\"\"),\"Y\",IF(AND('Enrollment Form'!$C535=\"ROC\",'Enrollment Form'!$DS535=\"\"),\"N\",IF(AND('Enrollment Form'!$C535=\"Enroll\",'Enrollment Form'!$B535=\"Subscriber\",'Enrollment Form'!$CX535=\"No\",'Enrollment Form'!$DS535=\"\"),\"N\",IF(AND('Enrollment Form'!$C535=\"Enroll\",'Enrollment Form'!$B535=\"Subscriber\",'Enrollment Form'!$CX535=\"Yes\"),\"-\",\"Y\")))))","v":""},{"$f":"IF('Enrollment Form'!AH535=\"\",\"\",IF(ISERROR(SEARCH(\".\",'Enrollment Form'!AH535,SEARCH(\"@\",'Enrollment Form'!AH535))),\"N\",\"Y\"))","v":""},{"$f":"IF(OR($B528=\"N\",'Enrollment Form'!$G535=\"\"),\"\",IF('Enrollment Form'!$B535<>\"Subscriber\",\"-\",IF(COUNTIF('Enrollment Form'!$AV535:$AW535,\"Yes\")=2,\"N\",\"Y\")))","v":""},{"$f":"IF(OR('Enrollment Form'!$CJ535=\"\",'Enrollment Form'!$CJ535=\"No\"),\"-\",IF(AND('Enrollment Form'!$CJ535=\"Yes\",'Enrollment Form'!$CK535=\"\"),\"N\",\"Y\"))","v":"-"},{"$f":"IF(OR('Enrollment Form'!$CL535=\"\",'Enrollment Form'!$CL535=\"No\"),\"-\",IF(AND('Enrollment Form'!$CL535=\"Yes\",'Enrollment Form'!$CM535=\"\"),\"N\",\"Y\"))","v":"-"},{"$f":"IF(OR('Enrollment Form'!$CN535=\"\",'Enrollment Form'!$CN535=\"No\"),\"-\",IF(AND('Enrollment Form'!$CN535=\"Yes\",'Enrollment Form'!$CO535=\"\"),\"N\",\"Y\"))","v":"-"},{"$f":"IF(OR('Enrollment Form'!$CN535=\"\",'Enrollment Form'!$CN535=\"No\"),\"-\",IF(AND('Enrollment Form'!$CN535=\"Yes\",'Enrollment Form'!$CP535=\"\"),\"N\",\"Y\"))","v":"-"},{"$f":"IF('Enrollment Form'!B535<>\"Subscriber\",\"-\",IF(AND('Enrollment Form'!B535=\"Subscriber\",'Enrollment Form'!C535=\"Enroll\",'Enrollment Form'!AA535=\"\"),\"N\",\"Y\"))","v":"-"},{"$f":"IF(OR('Enrollment Form'!B535=\"Subscriber\",'Enrollment Form'!B535=\"\"),\"-\",IF('Enrollment Form'!BP535=\"\",\"N\",\"Y\"))","v":"-"},{"$f":"IF('Enrollment Form'!B535<>\"Subscriber\",\"-\",IF(AND('Enrollment Form'!B535=\"Subscriber\",'Enrollment Form'!G535=\"\"),\"N\",\"Y\"))","v":"-"},{"$f":"IF('Enrollment Form'!A535=\"\",\"\",IF('Enrollment Form'!B535=\"Subscriber\",\"-\",IF(AND('Enrollment Form'!B535<>\"Subscriber\",'Enrollment Form'!G535='Enrollment Form'!H535),\"N\",\"Y\")))","v":""},0]
[536,{"$f":"IF('Enrollment Form'!$A536<>\"\",\"Y\",\"N\")","v":"N"},{"$f":"IF(AND('Enrollment Form'!$B536=\"\",'Enrollment Form'!$C536<>\"\"),\"N\",IF($B529=\"N\",\"\",\"Y\"))","v":""},{"$f":"IF(OR($B529=\"N\",'Enrollment Form'!G536=\"\"),\"\",IF('Enrollment Form'!$B536<>\"Subscriber\",\"\",IF('Enrollment Form'!$G536='Enrollment Form'!$H536,\"Y\",\"N\")))","v":""},{"$f":"IF($B529=\"N\",\"\",IF(AND(COUNTIFS('Enrollment Form'!$H$11:$H$1000,'Enrollment Form'!$H536,'Enrollment Form'!$B$11:$B$1000,'Enrollment Form'!$B536)>1,'Enrollment Form'!$H536<>\"\"),\"N\",\"Y\"))","v":""},{"$f":"IF($B529=\"N\",\"\",IF(LEN('Enrollment Form'!$Y536)=0,\"\",IF(LEN('Enrollment Form'!$Y536)<>5,\"N\",\"Y\")))","v":""},{"$f":"IF($B529=\"N\",\"\",IF(LEN('Enrollment Form'!$AD536=0),\"\",IF(LEN('Enrollment Form'!$AD536)<>5,\"N\",\"Y\")))","v":""},{"$f":"IF($B529=\"N\",\"\",IF(LEN('Enrollment Form'!$BS536=0),\"\",IF(LEN('Enrollment Form'!$BS536)<>5,\"N\",\"Y\")))","v":""},{"$f":"IF($B529=\"N\",\"\",IF(LEN('Enrollment Form'!$AE536)=0,\"\",IF(LEN('Enrollment Form'!$AE536)<>10,\"N\",\"Y\")))","v":""},{"$f":"IF($B529=\"N\",\"\",IF(LEN('Enrollment Form'!$AF536)=0,\"\",IF(LEN('Enrollment Form'!$AF536)<>10,\"N\",\"Y\")))","v":""},{"$f":"IF('Enrollment Form'!$O536<>\"Graded\",\"-\",IF(AND('Enrollment Form'!$O536=\"Graded\",'Enrollment Form'!$AR536<>\"\"),\"Y\",\"N\"))","v":"-"},{"$f":"IF($B529=\"N\",\"\",IF(OR('Enrollment Form'!$B536<>\"Subscriber\",'Enrollment Form'!$C536=\"ROC\"),\"-\",IF(AND('Enrollment Form'!$B536=\"Subscriber\",'Enrollment Form'!$C536=\"Enroll\",'Enrollment Form'!$AJ536<>\"\"),\"Y\",\"N\")))","v":""},{"$f":"IF($B529=\"N\",\"\",IF(OR('Enrollment Form'!$B536<>\"Subscriber\",'Enrollment Form'!$C536=\"ROC\"),\"-\",IF(AND('Enrollment Form'!$B536=\"Subscriber\",'Enrollment Form'!$C536=\"Enroll\",'Enrollment Form'!$AK536<>\"\"),\"Y\",\"N\")))","v":""},{"$f":"IF($B529=\"N\",\"\",IF(OR('Enrollment Form'!$B536<>\"Subscriber\",'Enrollment Form'!$C536=\"ROC\"),\"-\",IF(AND('Enrollment Form'!$B536=\"Subscriber\",'Enrollment Form'!$C536=\"Enroll\",'Enrollment Form'!$AL536<>\"\"),\"Y\",\"N\")))","v":""},{"$f":"IF($B529=\"N\",\"\",IF(OR('Enrollment Form'!$B536<>\"Subscriber\",'Enrollment Form'!$C536=\"ROC\"),\"-\",IF(AND('Enrollment Form'!$B536=\"Subscriber\",'Enrollment Form'!$C536=\"Enroll\",'Enrollment Form'!$AP536<>\"\"),\"Y\",\"N\")))","v":""},{"$f":"IF($B529=\"N\",\"\",IF(OR('Enrollment Form'!$B536<>\"Subscriber\",'Enrollment Form'!$C536=\"ROC\"),\"-\",IF(AND('Enrollment Form'!$B536=\"Subscriber\",'Enrollment Form'!$C536=\"Enroll\",'Enrollment Form'!$AQ536<>\"\"),\"Y\",\"N\")))","v":""},{"$f":"IF($B529=\"N\",\"\",IF(OR('Enrollment Form'!$B536<>\"Subscriber\",'Enrollment Form'!$C536=\"ROC\"),\"-\",IF(AND('Enrollment Form'!$B536=\"Subscriber\",'Enrollment Form'!$C536=\"Enroll\",'Enrollment Form'!$AS536<>\"\"),\"Y\",\"N\")))","v":""},{"$f":"IF($B529=\"N\",\"\",IF($Q529=\"-\",\"-\",IF(AND($Q529=\"Y\",'Enrollment Form'!$AS536=\"No\"),\"-\",IF(AND($Q529=\"Y\",'Enrollment Form'!$AS536=\"Yes\",'Enrollment Form'!$AT536<>\"\"),\"Y\",\"N\"))))","v":""},{"$f":"IF($B529=\"N\",\"\",IF(OR('Enrollment Form'!$B536<>\"Subscriber\",'Enrollment Form'!$C536=\"ROC\"),\"-\",IF(AND('Enrollment Form'!$B536=\"Subscriber\",'Enrollment Form'!$C536=\"Enroll\",'Enrollment Form'!$CV536<>\"\"),\"Y\",\"N\")))","v":""},{"$f":"IF($B529=\"N\",\"\",IF($S529=\"-\",\"-\",IF(AND($S529=\"Y\",'Enrollment Form'!$CV536=\"No\"),\"-\",IF(AND($S529=\"Y\",'Enrollment Form'!$CV536=\"Yes\",'Enrollment Form'!$CW536<>\"\"),\"Y\",\"N\"))))","v":""},{"$f":"IF(OR('Enrollment Form'!$AY536=\"Yes\",'Enrollment Form'!$AY536=\"\"),\"-\",IF(OR(AND('Enrollment Form'!$AY536=\"No\",ISERROR(FIND(\"HMO\",VLOOKUP('Enrollment Form'!G536,'Enrollment Form'!H$11:J$1000,3,FALSE),1))=FALSE,COUNTA('Enrollment Form'!$AZ536:$BC536)=4),AND('Enrollment Form'!$AY536=\"No\",ISERROR(FIND(\"HMO\",VLOOKUP('Enrollment Form'!G536,'Enrollment Form'!H$11:J$1000,3,FALSE),1))=FALSE,COUNTA('Enrollment Form'!$BT536:$BW536)=4)),\"Y\",\"N\"))","v":"-"},{"$f":"IF($B529=\"N\",\"\",IF('Enrollment Form'!$B536=\"Subscriber\",\"-\",IF(COUNTA('Enrollment Form'!$BL536,'Enrollment Form'!$BN536)=2,\"Y\",\"N\")))","v":""},{"$f":"IF($B529=\"N\",\"\",IF(OR('Enrollment Form'!$AX536=\"\",'Enrollment Form'!$AX536=\"No\"),\"-\",IF(AND('Enrollment Form'!$AX536=\"Yes\",COUNTA('Enrollment Form'!$CR536)=1),\"Y\",\"N\")))","v":""},{"$f":"IF(OR('Enrollment Form'!$CR536=\"\",'Enrollment Form'!$CR536=\"No\"),\"-\",IF(COUNTA('Enrollment Form'!$CT536:$CU536)=2,\"Y\",\"N\"))","v":"-"},{"$f":"IF($B529=\"N\",\"\",IF(COUNTIF('Enrollment Form'!$DG536:$DP536,\"Other\")=COUNTA('Enrollment Form'!$DK536,'Enrollment Form'!$DH536,'Enrollment Form'!$DN536,'Enrollment Form'!$DQ536),\"Y\",\"N\"))","v":""},{"$f":"IF($B529=\"N\",\"\",IF(OR('Enrollment Form'!B536<>\"Subscriber\",'Enrollment Form'!C536=\"ROC\",COUNTIF('Enrollment Form'!AV536:AW536,\"Yes\")>=1),\"-\",IF(AND('Enrollment Form'!C536=\"Enroll\",COUNTIF('Enrollment Form'!AV536:AW536,\"No\")=2,'Enrollment Form'!AX536=\"\"),\"N\",\"Y\")))","v":""},{"$f":"IF(OR(B529=\"N\",'Enrollment Form'!B536<>\"Subscriber\",'Enrollment Form'!C536=\"ROC\",'Enrollment Form'!O536<>\"Multiple of Salary\"),\"-\",IF(COUNTA('Enrollment Form'!T536:U536)<2,\"N\",\"Y\"))","v":"-"},{"$f":"IF(B529=\"N\",\"\",IF(OR('Enrollment Form'!C536=\"ROC\",'Enrollment Form'!B536<>\"Subscriber\",'Enrollment Form'!O536=\"Waive\",'Enrollment Form'!O536=\"\"),\"-\",IF('Enrollment Form'!P536=\"\",\"N\",\"Y\")))","v":""},{"$f":"IF($B529=\"N\",\"\",IF(AND('Enrollment Form'!$C536=\"ROC\",'Enrollment Form'!$DR536<>\"\"),\"Y\",IF(AND('Enrollment Form'!$C536=\"ROC\",'Enrollment Form'!$DR536=\"\"),\"N\",IF(AND('Enrollment Form'!$C536=\"Enroll\",'Enrollment Form'!$B536=\"Subscriber\",'Enrollment Form'!$CX536=\"No\",'Enrollment Form'!$DR536=\"\"),\"N\",IF(AND('Enrollment Form'!$C536=\"Enroll\",'Enrollment Form'!$B536=\"Subscriber\",'Enrollment Form'!$CX536=\"Yes\"),\"-\",\"Y\")))))","v":""},{"$f":"IF($B529=\"N\",\"\",IF(AND('Enrollment Form'!$C536=\"ROC\",'Enrollment Form'!$DS536<>\"\"),\"Y\",IF(AND('Enrollment Form'!$C536=\"ROC\",'Enrollment Form'!$DS536=\"\"),\"N\",IF(AND('Enrollment Form'!$C536=\"Enroll\",'Enrollment Form'!$B536=\"Subscriber\",'Enrollment Form'!$CX536=\"No\",'Enrollment Form'!$DS536=\"\"),\"N\",IF(AND('Enrollment Form'!$C536=\"Enroll\",'Enrollment Form'!$B536=\"Subscriber\",'Enrollment Form'!$CX536=\"Yes\"),\"-\",\"Y\")))))","v":""},{"$f":"IF('Enrollment Form'!AH536=\"\",\"\",IF(ISERROR(SEARCH(\".\",'Enrollment Form'!AH536,SEARCH(\"@\",'Enrollment Form'!AH536))),\"N\",\"Y\"))","v":""},{"$f":"IF(OR($B529=\"N\",'Enrollment Form'!$G536=\"\"),\"\",IF('Enrollment Form'!$B536<>\"Subscriber\",\"-\",IF(COUNTIF('Enrollment Form'!$AV536:$AW536,\"Yes\")=2,\"N\",\"Y\")))","v":""},{"$f":"IF(OR('Enrollment Form'!$CJ536=\"\",'Enrollment Form'!$CJ536=\"No\"),\"-\",IF(AND('Enrollment Form'!$CJ536=\"Yes\",'Enrollment Form'!$CK536=\"\"),\"N\",\"Y\"))","v":"-"},{"$f":"IF(OR('Enrollment Form'!$CL536=\"\",'Enrollment Form'!$CL536=\"No\"),\"-\",IF(AND('Enrollment Form'!$CL536=\"Yes\",'Enrollment Form'!$CM536=\"\"),\"N\",\"Y\"))","v":"-"},{"$f":"IF(OR('Enrollment Form'!$CN536=\"\",'Enrollment Form'!$CN536=\"No\"),\"-\",IF(AND('Enrollment Form'!$CN536=\"Yes\",'Enrollment Form'!$CO536=\"\"),\"N\",\"Y\"))","v":"-"},{"$f":"IF(OR('Enrollment Form'!$CN536=\"\",'Enrollment Form'!$CN536=\"No\"),\"-\",IF(AND('Enrollment Form'!$CN536=\"Yes\",'Enrollment Form'!$CP536=\"\"),\"N\",\"Y\"))","v":"-"},{"$f":"IF('Enrollment Form'!B536<>\"Subscriber\",\"-\",IF(AND('Enrollment Form'!B536=\"Subscriber\",'Enrollment Form'!C536=\"Enroll\",'Enrollment Form'!AA536=\"\"),\"N\",\"Y\"))","v":"-"},{"$f":"IF(OR('Enrollment Form'!B536=\"Subscriber\",'Enrollment Form'!B536=\"\"),\"-\",IF('Enrollment Form'!BP536=\"\",\"N\",\"Y\"))","v":"-"},{"$f":"IF('Enrollment Form'!B536<>\"Subscriber\",\"-\",IF(AND('Enrollment Form'!B536=\"Subscriber\",'Enrollment Form'!G536=\"\"),\"N\",\"Y\"))","v":"-"},{"$f":"IF('Enrollment Form'!A536=\"\",\"\",IF('Enrollment Form'!B536=\"Subscriber\",\"-\",IF(AND('Enrollment Form'!B536<>\"Subscriber\",'Enrollment Form'!G536='Enrollment Form'!H536),\"N\",\"Y\")))","v":""},0]
[537,{"$f":"IF('Enrollment Form'!$A537<>\"\",\"Y\",\"N\")","v":"N"},{"$f":"IF(AND('Enrollment Form'!$B537=\"\",'Enrollment Form'!$C537<>\"\"),\"N\",IF($B530=\"N\",\"\",\"Y\"))","v":""},{"$f":"IF(OR($B530=\"N\",'Enrollment Form'!G537=\"\"),\"\",IF('Enrollment Form'!$B537<>\"Subscriber\",\"\",IF('Enrollment Form'!$G537='Enrollment Form'!$H537,\"Y\",\"N\")))","v":""},{"$f":"IF($B530=\"N\",\"\",IF(AND(COUNTIFS('Enrollment Form'!$H$11:$H$1000,'Enrollment Form'!$H537,'Enrollment Form'!$B$11:$B$1000,'Enrollment Form'!$B537)>1,'Enrollment Form'!$H537<>\"\"),\"N\",\"Y\"))","v":""},{"$f":"IF($B530=\"N\",\"\",IF(LEN('Enrollment Form'!$Y537)=0,\"\",IF(LEN('Enrollment Form'!$Y537)<>5,\"N\",\"Y\")))","v":""},{"$f":"IF($B530=\"N\",\"\",IF(LEN('Enrollment Form'!$AD537=0),\"\",IF(LEN('Enrollment Form'!$AD537)<>5,\"N\",\"Y\")))","v":""},{"$f":"IF($B530=\"N\",\"\",IF(LEN('Enrollment Form'!$BS537=0),\"\",IF(LEN('Enrollment Form'!$BS537)<>5,\"N\",\"Y\")))","v":""},{"$f":"IF($B530=\"N\",\"\",IF(LEN('Enrollment Form'!$AE537)=0,\"\",IF(LEN('Enrollment Form'!$AE537)<>10,\"N\",\"Y\")))","v":""},{"$f":"IF($B530=\"N\",\"\",IF(LEN('Enrollment Form'!$AF537)=0,\"\",IF(LEN('Enrollment Form'!$AF537)<>10,\"N\",\"Y\")))","v":""},{"$f":"IF('Enrollment Form'!$O537<>\"Graded\",\"-\",IF(AND('Enrollment Form'!$O537=\"Graded\",'Enrollment Form'!$AR537<>\"\"),\"Y\",\"N\"))","v":"-"},{"$f":"IF($B530=\"N\",\"\",IF(OR('Enrollment Form'!$B537<>\"Subscriber\",'Enrollment Form'!$C537=\"ROC\"),\"-\",IF(AND('Enrollment Form'!$B537=\"Subscriber\",'Enrollment Form'!$C537=\"Enroll\",'Enrollment Form'!$AJ537<>\"\"),\"Y\",\"N\")))","v":""},{"$f":"IF($B530=\"N\",\"\",IF(OR('Enrollment Form'!$B537<>\"Subscriber\",'Enrollment Form'!$C537=\"ROC\"),\"-\",IF(AND('Enrollment Form'!$B537=\"Subscriber\",'Enrollment Form'!$C537=\"Enroll\",'Enrollment Form'!$AK537<>\"\"),\"Y\",\"N\")))","v":""},{"$f":"IF($B530=\"N\",\"\",IF(OR('Enrollment Form'!$B537<>\"Subscriber\",'Enrollment Form'!$C537=\"ROC\"),\"-\",IF(AND('Enrollment Form'!$B537=\"Subscriber\",'Enrollment Form'!$C537=\"Enroll\",'Enrollment Form'!$AL537<>\"\"),\"Y\",\"N\")))","v":""},{"$f":"IF($B530=\"N\",\"\",IF(OR('Enrollment Form'!$B537<>\"Subscriber\",'Enrollment Form'!$C537=\"ROC\"),\"-\",IF(AND('Enrollment Form'!$B537=\"Subscriber\",'Enrollment Form'!$C537=\"Enroll\",'Enrollment Form'!$AP537<>\"\"),\"Y\",\"N\")))","v":""},{"$f":"IF($B530=\"N\",\"\",IF(OR('Enrollment Form'!$B537<>\"Subscriber\",'Enrollment Form'!$C537=\"ROC\"),\"-\",IF(AND('Enrollment Form'!$B537=\"Subscriber\",'Enrollment Form'!$C537=\"Enroll\",'Enrollment Form'!$AQ537<>\"\"),\"Y\",\"N\")))","v":""},{"$f":"IF($B530=\"N\",\"\",IF(OR('Enrollment Form'!$B537<>\"Subscriber\",'Enrollment Form'!$C537=\"ROC\"),\"-\",IF(AND('Enrollment Form'!$B537=\"Subscriber\",'Enrollment Form'!$C537=\"Enroll\",'Enrollment Form'!$AS537<>\"\"),\"Y\",\"N\")))","v":""},{"$f":"IF($B530=\"N\",\"\",IF($Q530=\"-\",\"-\",IF(AND($Q530=\"Y\",'Enrollment Form'!$AS537=\"No\"),\"-\",IF(AND($Q530=\"Y\",'Enrollment Form'!$AS537=\"Yes\",'Enrollment Form'!$AT537<>\"\"),\"Y\",\"N\"))))","v":""},{"$f":"IF($B530=\"N\",\"\",IF(OR('Enrollment Form'!$B537<>\"Subscriber\",'Enrollment Form'!$C537=\"ROC\"),\"-\",IF(AND('Enrollment Form'!$B537=\"Subscriber\",'Enrollment Form'!$C537=\"Enroll\",'Enrollment Form'!$CV537<>\"\"),\"Y\",\"N\")))","v":""},{"$f":"IF($B530=\"N\",\"\",IF($S530=\"-\",\"-\",IF(AND($S530=\"Y\",'Enrollment Form'!$CV537=\"No\"),\"-\",IF(AND($S530=\"Y\",'Enrollment Form'!$CV537=\"Yes\",'Enrollment Form'!$CW537<>\"\"),\"Y\",\"N\"))))","v":""},{"$f":"IF(OR('Enrollment Form'!$AY537=\"Yes\",'Enrollment Form'!$AY537=\"\"),\"-\",IF(OR(AND('Enrollment Form'!$AY537=\"No\",ISERROR(FIND(\"HMO\",VLOOKUP('Enrollment Form'!G537,'Enrollment Form'!H$11:J$1000,3,FALSE),1))=FALSE,COUNTA('Enrollment Form'!$AZ537:$BC537)=4),AND('Enrollment Form'!$AY537=\"No\",ISERROR(FIND(\"HMO\",VLOOKUP('Enrollment Form'!G537,'Enrollment Form'!H$11:J$1000,3,FALSE),1))=FALSE,COUNTA('Enrollment Form'!$BT537:$BW537)=4)),\"Y\",\"N\"))","v":"-"},{"$f":"IF($B530=\"N\",\"\",IF('Enrollment Form'!$B537=\"Subscriber\",\"-\",IF(COUNTA('Enrollment Form'!$BL537,'Enrollment Form'!$BN537)=2,\"Y\",\"N\")))","v":""},{"$f":"IF($B530=\"N\",\"\",IF(OR('Enrollment Form'!$AX537=\"\",'Enrollment Form'!$AX537=\"No\"),\"-\",IF(AND('Enrollment Form'!$AX537=\"Yes\",COUNTA('Enrollment Form'!$CR537)=1),\"Y\",\"N\")))","v":""},{"$f":"IF(OR('Enrollment Form'!$CR537=\"\",'Enrollment Form'!$CR537=\"No\"),\"-\",IF(COUNTA('Enrollment Form'!$CT537:$CU537)=2,\"Y\",\"N\"))","v":"-"},{"$f":"IF($B530=\"N\",\"\",IF(COUNTIF('Enrollment Form'!$DG537:$DP537,\"Other\")=COUNTA('Enrollment Form'!$DK537,'Enrollment Form'!$DH537,'Enrollment Form'!$DN537,'Enrollment Form'!$DQ537),\"Y\",\"N\"))","v":""},{"$f":"IF($B530=\"N\",\"\",IF(OR('Enrollment Form'!B537<>\"Subscriber\",'Enrollment Form'!C537=\"ROC\",COUNTIF('Enrollment Form'!AV537:AW537,\"Yes\")>=1),\"-\",IF(AND('Enrollment Form'!C537=\"Enroll\",COUNTIF('Enrollment Form'!AV537:AW537,\"No\")=2,'Enrollment Form'!AX537=\"\"),\"N\",\"Y\")))","v":""},{"$f":"IF(OR(B530=\"N\",'Enrollment Form'!B537<>\"Subscriber\",'Enrollment Form'!C537=\"ROC\",'Enrollment Form'!O537<>\"Multiple of Salary\"),\"-\",IF(COUNTA('Enrollment Form'!T537:U537)<2,\"N\",\"Y\"))","v":"-"},{"$f":"IF(B530=\"N\",\"\",IF(OR('Enrollment Form'!C537=\"ROC\",'Enrollment Form'!B537<>\"Subscriber\",'Enrollment Form'!O537=\"Waive\",'Enrollment Form'!O537=\"\"),\"-\",IF('Enrollment Form'!P537=\"\",\"N\",\"Y\")))","v":""},{"$f":"IF($B530=\"N\",\"\",IF(AND('Enrollment Form'!$C537=\"ROC\",'Enrollment Form'!$DR537<>\"\"),\"Y\",IF(AND('Enrollment Form'!$C537=\"ROC\",'Enrollment Form'!$DR537=\"\"),\"N\",IF(AND('Enrollment Form'!$C537=\"Enroll\",'Enrollment Form'!$B537=\"Subscriber\",'Enrollment Form'!$CX537=\"No\",'Enrollment Form'!$DR537=\"\"),\"N\",IF(AND('Enrollment Form'!$C537=\"Enroll\",'Enrollment Form'!$B537=\"Subscriber\",'Enrollment Form'!$CX537=\"Yes\"),\"-\",\"Y\")))))","v":""},{"$f":"IF($B530=\"N\",\"\",IF(AND('Enrollment Form'!$C537=\"ROC\",'Enrollment Form'!$DS537<>\"\"),\"Y\",IF(AND('Enrollment Form'!$C537=\"ROC\",'Enrollment Form'!$DS537=\"\"),\"N\",IF(AND('Enrollment Form'!$C537=\"Enroll\",'Enrollment Form'!$B537=\"Subscriber\",'Enrollment Form'!$CX537=\"No\",'Enrollment Form'!$DS537=\"\"),\"N\",IF(AND('Enrollment Form'!$C537=\"Enroll\",'Enrollment Form'!$B537=\"Subscriber\",'Enrollment Form'!$CX537=\"Yes\"),\"-\",\"Y\")))))","v":""},{"$f":"IF('Enrollment Form'!AH537=\"\",\"\",IF(ISERROR(SEARCH(\".\",'Enrollment Form'!AH537,SEARCH(\"@\",'Enrollment Form'!AH537))),\"N\",\"Y\"))","v":""},{"$f":"IF(OR($B530=\"N\",'Enrollment Form'!$G537=\"\"),\"\",IF('Enrollment Form'!$B537<>\"Subscriber\",\"-\",IF(COUNTIF('Enrollment Form'!$AV537:$AW537,\"Yes\")=2,\"N\",\"Y\")))","v":""},{"$f":"IF(OR('Enrollment Form'!$CJ537=\"\",'Enrollment Form'!$CJ537=\"No\"),\"-\",IF(AND('Enrollment Form'!$CJ537=\"Yes\",'Enrollment Form'!$CK537=\"\"),\"N\",\"Y\"))","v":"-"},{"$f":"IF(OR('Enrollment Form'!$CL537=\"\",'Enrollment Form'!$CL537=\"No\"),\"-\",IF(AND('Enrollment Form'!$CL537=\"Yes\",'Enrollment Form'!$CM537=\"\"),\"N\",\"Y\"))","v":"-"},{"$f":"IF(OR('Enrollment Form'!$CN537=\"\",'Enrollment Form'!$CN537=\"No\"),\"-\",IF(AND('Enrollment Form'!$CN537=\"Yes\",'Enrollment Form'!$CO537=\"\"),\"N\",\"Y\"))","v":"-"},{"$f":"IF(OR('Enrollment Form'!$CN537=\"\",'Enrollment Form'!$CN537=\"No\"),\"-\",IF(AND('Enrollment Form'!$CN537=\"Yes\",'Enrollment Form'!$CP537=\"\"),\"N\",\"Y\"))","v":"-"},{"$f":"IF('Enrollment Form'!B537<>\"Subscriber\",\"-\",IF(AND('Enrollment Form'!B537=\"Subscriber\",'Enrollment Form'!C537=\"Enroll\",'Enrollment Form'!AA537=\"\"),\"N\",\"Y\"))","v":"-"},{"$f":"IF(OR('Enrollment Form'!B537=\"Subscriber\",'Enrollment Form'!B537=\"\"),\"-\",IF('Enrollment Form'!BP537=\"\",\"N\",\"Y\"))","v":"-"},{"$f":"IF('Enrollment Form'!B537<>\"Subscriber\",\"-\",IF(AND('Enrollment Form'!B537=\"Subscriber\",'Enrollment Form'!G537=\"\"),\"N\",\"Y\"))","v":"-"},{"$f":"IF('Enrollment Form'!A537=\"\",\"\",IF('Enrollment Form'!B537=\"Subscriber\",\"-\",IF(AND('Enrollment Form'!B537<>\"Subscriber\",'Enrollment Form'!G537='Enrollment Form'!H537),\"N\",\"Y\")))","v":""},0]
[538,{"$f":"IF('Enrollment Form'!$A538<>\"\",\"Y\",\"N\")","v":"N"},{"$f":"IF(AND('Enrollment Form'!$B538=\"\",'Enrollment Form'!$C538<>\"\"),\"N\",IF($B531=\"N\",\"\",\"Y\"))","v":""},{"$f":"IF(OR($B531=\"N\",'Enrollment Form'!G538=\"\"),\"\",IF('Enrollment Form'!$B538<>\"Subscriber\",\"\",IF('Enrollment Form'!$G538='Enrollment Form'!$H538,\"Y\",\"N\")))","v":""},{"$f":"IF($B531=\"N\",\"\",IF(AND(COUNTIFS('Enrollment Form'!$H$11:$H$1000,'Enrollment Form'!$H538,'Enrollment Form'!$B$11:$B$1000,'Enrollment Form'!$B538)>1,'Enrollment Form'!$H538<>\"\"),\"N\",\"Y\"))","v":""},{"$f":"IF($B531=\"N\",\"\",IF(LEN('Enrollment Form'!$Y538)=0,\"\",IF(LEN('Enrollment Form'!$Y538)<>5,\"N\",\"Y\")))","v":""},{"$f":"IF($B531=\"N\",\"\",IF(LEN('Enrollment Form'!$AD538=0),\"\",IF(LEN('Enrollment Form'!$AD538)<>5,\"N\",\"Y\")))","v":""},{"$f":"IF($B531=\"N\",\"\",IF(LEN('Enrollment Form'!$BS538=0),\"\",IF(LEN('Enrollment Form'!$BS538)<>5,\"N\",\"Y\")))","v":""},{"$f":"IF($B531=\"N\",\"\",IF(LEN('Enrollment Form'!$AE538)=0,\"\",IF(LEN('Enrollment Form'!$AE538)<>10,\"N\",\"Y\")))","v":""},{"$f":"IF($B531=\"N\",\"\",IF(LEN('Enrollment Form'!$AF538)=0,\"\",IF(LEN('Enrollment Form'!$AF538)<>10,\"N\",\"Y\")))","v":""},{"$f":"IF('Enrollment Form'!$O538<>\"Graded\",\"-\",IF(AND('Enrollment Form'!$O538=\"Graded\",'Enrollment Form'!$AR538<>\"\"),\"Y\",\"N\"))","v":"-"},{"$f":"IF($B531=\"N\",\"\",IF(OR('Enrollment Form'!$B538<>\"Subscriber\",'Enrollment Form'!$C538=\"ROC\"),\"-\",IF(AND('Enrollment Form'!$B538=\"Subscriber\",'Enrollment Form'!$C538=\"Enroll\",'Enrollment Form'!$AJ538<>\"\"),\"Y\",\"N\")))","v":""},{"$f":"IF($B531=\"N\",\"\",IF(OR('Enrollment Form'!$B538<>\"Subscriber\",'Enrollment Form'!$C538=\"ROC\"),\"-\",IF(AND('Enrollment Form'!$B538=\"Subscriber\",'Enrollment Form'!$C538=\"Enroll\",'Enrollment Form'!$AK538<>\"\"),\"Y\",\"N\")))","v":""},{"$f":"IF($B531=\"N\",\"\",IF(OR('Enrollment Form'!$B538<>\"Subscriber\",'Enrollment Form'!$C538=\"ROC\"),\"-\",IF(AND('Enrollment Form'!$B538=\"Subscriber\",'Enrollment Form'!$C538=\"Enroll\",'Enrollment Form'!$AL538<>\"\"),\"Y\",\"N\")))","v":""},{"$f":"IF($B531=\"N\",\"\",IF(OR('Enrollment Form'!$B538<>\"Subscriber\",'Enrollment Form'!$C538=\"ROC\"),\"-\",IF(AND('Enrollment Form'!$B538=\"Subscriber\",'Enrollment Form'!$C538=\"Enroll\",'Enrollment Form'!$AP538<>\"\"),\"Y\",\"N\")))","v":""},{"$f":"IF($B531=\"N\",\"\",IF(OR('Enrollment Form'!$B538<>\"Subscriber\",'Enrollment Form'!$C538=\"ROC\"),\"-\",IF(AND('Enrollment Form'!$B538=\"Subscriber\",'Enrollment Form'!$C538=\"Enroll\",'Enrollment Form'!$AQ538<>\"\"),\"Y\",\"N\")))","v":""},{"$f":"IF($B531=\"N\",\"\",IF(OR('Enrollment Form'!$B538<>\"Subscriber\",'Enrollment Form'!$C538=\"ROC\"),\"-\",IF(AND('Enrollment Form'!$B538=\"Subscriber\",'Enrollment Form'!$C538=\"Enroll\",'Enrollment Form'!$AS538<>\"\"),\"Y\",\"N\")))","v":""},{"$f":"IF($B531=\"N\",\"\",IF($Q531=\"-\",\"-\",IF(AND($Q531=\"Y\",'Enrollment Form'!$AS538=\"No\"),\"-\",IF(AND($Q531=\"Y\",'Enrollment Form'!$AS538=\"Yes\",'Enrollment Form'!$AT538<>\"\"),\"Y\",\"N\"))))","v":""},{"$f":"IF($B531=\"N\",\"\",IF(OR('Enrollment Form'!$B538<>\"Subscriber\",'Enrollment Form'!$C538=\"ROC\"),\"-\",IF(AND('Enrollment Form'!$B538=\"Subscriber\",'Enrollment Form'!$C538=\"Enroll\",'Enrollment Form'!$CV538<>\"\"),\"Y\",\"N\")))","v":""},{"$f":"IF($B531=\"N\",\"\",IF($S531=\"-\",\"-\",IF(AND($S531=\"Y\",'Enrollment Form'!$CV538=\"No\"),\"-\",IF(AND($S531=\"Y\",'Enrollment Form'!$CV538=\"Yes\",'Enrollment Form'!$CW538<>\"\"),\"Y\",\"N\"))))","v":""},{"$f":"IF(OR('Enrollment Form'!$AY538=\"Yes\",'Enrollment Form'!$AY538=\"\"),\"-\",IF(OR(AND('Enrollment Form'!$AY538=\"No\",ISERROR(FIND(\"HMO\",VLOOKUP('Enrollment Form'!G538,'Enrollment Form'!H$11:J$1000,3,FALSE),1))=FALSE,COUNTA('Enrollment Form'!$AZ538:$BC538)=4),AND('Enrollment Form'!$AY538=\"No\",ISERROR(FIND(\"HMO\",VLOOKUP('Enrollment Form'!G538,'Enrollment Form'!H$11:J$1000,3,FALSE),1))=FALSE,COUNTA('Enrollment Form'!$BT538:$BW538)=4)),\"Y\",\"N\"))","v":"-"},{"$f":"IF($B531=\"N\",\"\",IF('Enrollment Form'!$B538=\"Subscriber\",\"-\",IF(COUNTA('Enrollment Form'!$BL538,'Enrollment Form'!$BN538)=2,\"Y\",\"N\")))","v":""},{"$f":"IF($B531=\"N\",\"\",IF(OR('Enrollment Form'!$AX538=\"\",'Enrollment Form'!$AX538=\"No\"),\"-\",IF(AND('Enrollment Form'!$AX538=\"Yes\",COUNTA('Enrollment Form'!$CR538)=1),\"Y\",\"N\")))","v":""},{"$f":"IF(OR('Enrollment Form'!$CR538=\"\",'Enrollment Form'!$CR538=\"No\"),\"-\",IF(COUNTA('Enrollment Form'!$CT538:$CU538)=2,\"Y\",\"N\"))","v":"-"},{"$f":"IF($B531=\"N\",\"\",IF(COUNTIF('Enrollment Form'!$DG538:$DP538,\"Other\")=COUNTA('Enrollment Form'!$DK538,'Enrollment Form'!$DH538,'Enrollment Form'!$DN538,'Enrollment Form'!$DQ538),\"Y\",\"N\"))","v":""},{"$f":"IF($B531=\"N\",\"\",IF(OR('Enrollment Form'!B538<>\"Subscriber\",'Enrollment Form'!C538=\"ROC\",COUNTIF('Enrollment Form'!AV538:AW538,\"Yes\")>=1),\"-\",IF(AND('Enrollment Form'!C538=\"Enroll\",COUNTIF('Enrollment Form'!AV538:AW538,\"No\")=2,'Enrollment Form'!AX538=\"\"),\"N\",\"Y\")))","v":""},{"$f":"IF(OR(B531=\"N\",'Enrollment Form'!B538<>\"Subscriber\",'Enrollment Form'!C538=\"ROC\",'Enrollment Form'!O538<>\"Multiple of Salary\"),\"-\",IF(COUNTA('Enrollment Form'!T538:U538)<2,\"N\",\"Y\"))","v":"-"},{"$f":"IF(B531=\"N\",\"\",IF(OR('Enrollment Form'!C538=\"ROC\",'Enrollment Form'!B538<>\"Subscriber\",'Enrollment Form'!O538=\"Waive\",'Enrollment Form'!O538=\"\"),\"-\",IF('Enrollment Form'!P538=\"\",\"N\",\"Y\")))","v":""},{"$f":"IF($B531=\"N\",\"\",IF(AND('Enrollment Form'!$C538=\"ROC\",'Enrollment Form'!$DR538<>\"\"),\"Y\",IF(AND('Enrollment Form'!$C538=\"ROC\",'Enrollment Form'!$DR538=\"\"),\"N\",IF(AND('Enrollment Form'!$C538=\"Enroll\",'Enrollment Form'!$B538=\"Subscriber\",'Enrollment Form'!$CX538=\"No\",'Enrollment Form'!$DR538=\"\"),\"N\",IF(AND('Enrollment Form'!$C538=\"Enroll\",'Enrollment Form'!$B538=\"Subscriber\",'Enrollment Form'!$CX538=\"Yes\"),\"-\",\"Y\")))))","v":""},{"$f":"IF($B531=\"N\",\"\",IF(AND('Enrollment Form'!$C538=\"ROC\",'Enrollment Form'!$DS538<>\"\"),\"Y\",IF(AND('Enrollment Form'!$C538=\"ROC\",'Enrollment Form'!$DS538=\"\"),\"N\",IF(AND('Enrollment Form'!$C538=\"Enroll\",'Enrollment Form'!$B538=\"Subscriber\",'Enrollment Form'!$CX538=\"No\",'Enrollment Form'!$DS538=\"\"),\"N\",IF(AND('Enrollment Form'!$C538=\"Enroll\",'Enrollment Form'!$B538=\"Subscriber\",'Enrollment Form'!$CX538=\"Yes\"),\"-\",\"Y\")))))","v":""},{"$f":"IF('Enrollment Form'!AH538=\"\",\"\",IF(ISERROR(SEARCH(\".\",'Enrollment Form'!AH538,SEARCH(\"@\",'Enrollment Form'!AH538))),\"N\",\"Y\"))","v":""},{"$f":"IF(OR($B531=\"N\",'Enrollment Form'!$G538=\"\"),\"\",IF('Enrollment Form'!$B538<>\"Subscriber\",\"-\",IF(COUNTIF('Enrollment Form'!$AV538:$AW538,\"Yes\")=2,\"N\",\"Y\")))","v":""},{"$f":"IF(OR('Enrollment Form'!$CJ538=\"\",'Enrollment Form'!$CJ538=\"No\"),\"-\",IF(AND('Enrollment Form'!$CJ538=\"Yes\",'Enrollment Form'!$CK538=\"\"),\"N\",\"Y\"))","v":"-"},{"$f":"IF(OR('Enrollment Form'!$CL538=\"\",'Enrollment Form'!$CL538=\"No\"),\"-\",IF(AND('Enrollment Form'!$CL538=\"Yes\",'Enrollment Form'!$CM538=\"\"),\"N\",\"Y\"))","v":"-"},{"$f":"IF(OR('Enrollment Form'!$CN538=\"\",'Enrollment Form'!$CN538=\"No\"),\"-\",IF(AND('Enrollment Form'!$CN538=\"Yes\",'Enrollment Form'!$CO538=\"\"),\"N\",\"Y\"))","v":"-"},{"$f":"IF(OR('Enrollment Form'!$CN538=\"\",'Enrollment Form'!$CN538=\"No\"),\"-\",IF(AND('Enrollment Form'!$CN538=\"Yes\",'Enrollment Form'!$CP538=\"\"),\"N\",\"Y\"))","v":"-"},{"$f":"IF('Enrollment Form'!B538<>\"Subscriber\",\"-\",IF(AND('Enrollment Form'!B538=\"Subscriber\",'Enrollment Form'!C538=\"Enroll\",'Enrollment Form'!AA538=\"\"),\"N\",\"Y\"))","v":"-"},{"$f":"IF(OR('Enrollment Form'!B538=\"Subscriber\",'Enrollment Form'!B538=\"\"),\"-\",IF('Enrollment Form'!BP538=\"\",\"N\",\"Y\"))","v":"-"},{"$f":"IF('Enrollment Form'!B538<>\"Subscriber\",\"-\",IF(AND('Enrollment Form'!B538=\"Subscriber\",'Enrollment Form'!G538=\"\"),\"N\",\"Y\"))","v":"-"},{"$f":"IF('Enrollment Form'!A538=\"\",\"\",IF('Enrollment Form'!B538=\"Subscriber\",\"-\",IF(AND('Enrollment Form'!B538<>\"Subscriber\",'Enrollment Form'!G538='Enrollment Form'!H538),\"N\",\"Y\")))","v":""},0]
[539,{"$f":"IF('Enrollment Form'!$A539<>\"\",\"Y\",\"N\")","v":"N"},{"$f":"IF(AND('Enrollment Form'!$B539=\"\",'Enrollment Form'!$C539<>\"\"),\"N\",IF($B532=\"N\",\"\",\"Y\"))","v":""},{"$f":"IF(OR($B532=\"N\",'Enrollment Form'!G539=\"\"),\"\",IF('Enrollment Form'!$B539<>\"Subscriber\",\"\",IF('Enrollment Form'!$G539='Enrollment Form'!$H539,\"Y\",\"N\")))","v":""},{"$f":"IF($B532=\"N\",\"\",IF(AND(COUNTIFS('Enrollment Form'!$H$11:$H$1000,'Enrollment Form'!$H539,'Enrollment Form'!$B$11:$B$1000,'Enrollment Form'!$B539)>1,'Enrollment Form'!$H539<>\"\"),\"N\",\"Y\"))","v":""},{"$f":"IF($B532=\"N\",\"\",IF(LEN('Enrollment Form'!$Y539)=0,\"\",IF(LEN('Enrollment Form'!$Y539)<>5,\"N\",\"Y\")))","v":""},{"$f":"IF($B532=\"N\",\"\",IF(LEN('Enrollment Form'!$AD539=0),\"\",IF(LEN('Enrollment Form'!$AD539)<>5,\"N\",\"Y\")))","v":""},{"$f":"IF($B532=\"N\",\"\",IF(LEN('Enrollment Form'!$BS539=0),\"\",IF(LEN('Enrollment Form'!$BS539)<>5,\"N\",\"Y\")))","v":""},{"$f":"IF($B532=\"N\",\"\",IF(LEN('Enrollment Form'!$AE539)=0,\"\",IF(LEN('Enrollment Form'!$AE539)<>10,\"N\",\"Y\")))","v":""},{"$f":"IF($B532=\"N\",\"\",IF(LEN('Enrollment Form'!$AF539)=0,\"\",IF(LEN('Enrollment Form'!$AF539)<>10,\"N\",\"Y\")))","v":""},{"$f":"IF('Enrollment Form'!$O539<>\"Graded\",\"-\",IF(AND('Enrollment Form'!$O539=\"Graded\",'Enrollment Form'!$AR539<>\"\"),\"Y\",\"N\"))","v":"-"},{"$f":"IF($B532=\"N\",\"\",IF(OR('Enrollment Form'!$B539<>\"Subscriber\",'Enrollment Form'!$C539=\"ROC\"),\"-\",IF(AND('Enrollment Form'!$B539=\"Subscriber\",'Enrollment Form'!$C539=\"Enroll\",'Enrollment Form'!$AJ539<>\"\"),\"Y\",\"N\")))","v":""},{"$f":"IF($B532=\"N\",\"\",IF(OR('Enrollment Form'!$B539<>\"Subscriber\",'Enrollment Form'!$C539=\"ROC\"),\"-\",IF(AND('Enrollment Form'!$B539=\"Subscriber\",'Enrollment Form'!$C539=\"Enroll\",'Enrollment Form'!$AK539<>\"\"),\"Y\",\"N\")))","v":""},{"$f":"IF($B532=\"N\",\"\",IF(OR('Enrollment Form'!$B539<>\"Subscriber\",'Enrollment Form'!$C539=\"ROC\"),\"-\",IF(AND('Enrollment Form'!$B539=\"Subscriber\",'Enrollment Form'!$C539=\"Enroll\",'Enrollment Form'!$AL539<>\"\"),\"Y\",\"N\")))","v":""},{"$f":"IF($B532=\"N\",\"\",IF(OR('Enrollment Form'!$B539<>\"Subscriber\",'Enrollment Form'!$C539=\"ROC\"),\"-\",IF(AND('Enrollment Form'!$B539=\"Subscriber\",'Enrollment Form'!$C539=\"Enroll\",'Enrollment Form'!$AP539<>\"\"),\"Y\",\"N\")))","v":""},{"$f":"IF($B532=\"N\",\"\",IF(OR('Enrollment Form'!$B539<>\"Subscriber\",'Enrollment Form'!$C539=\"ROC\"),\"-\",IF(AND('Enrollment Form'!$B539=\"Subscriber\",'Enrollment Form'!$C539=\"Enroll\",'Enrollment Form'!$AQ539<>\"\"),\"Y\",\"N\")))","v":""},{"$f":"IF($B532=\"N\",\"\",IF(OR('Enrollment Form'!$B539<>\"Subscriber\",'Enrollment Form'!$C539=\"ROC\"),\"-\",IF(AND('Enrollment Form'!$B539=\"Subscriber\",'Enrollment Form'!$C539=\"Enroll\",'Enrollment Form'!$AS539<>\"\"),\"Y\",\"N\")))","v":""},{"$f":"IF($B532=\"N\",\"\",IF($Q532=\"-\",\"-\",IF(AND($Q532=\"Y\",'Enrollment Form'!$AS539=\"No\"),\"-\",IF(AND($Q532=\"Y\",'Enrollment Form'!$AS539=\"Yes\",'Enrollment Form'!$AT539<>\"\"),\"Y\",\"N\"))))","v":""},{"$f":"IF($B532=\"N\",\"\",IF(OR('Enrollment Form'!$B539<>\"Subscriber\",'Enrollment Form'!$C539=\"ROC\"),\"-\",IF(AND('Enrollment Form'!$B539=\"Subscriber\",'Enrollment Form'!$C539=\"Enroll\",'Enrollment Form'!$CV539<>\"\"),\"Y\",\"N\")))","v":""},{"$f":"IF($B532=\"N\",\"\",IF($S532=\"-\",\"-\",IF(AND($S532=\"Y\",'Enrollment Form'!$CV539=\"No\"),\"-\",IF(AND($S532=\"Y\",'Enrollment Form'!$CV539=\"Yes\",'Enrollment Form'!$CW539<>\"\"),\"Y\",\"N\"))))","v":""},{"$f":"IF(OR('Enrollment Form'!$AY539=\"Yes\",'Enrollment Form'!$AY539=\"\"),\"-\",IF(OR(AND('Enrollment Form'!$AY539=\"No\",ISERROR(FIND(\"HMO\",VLOOKUP('Enrollment Form'!G539,'Enrollment Form'!H$11:J$1000,3,FALSE),1))=FALSE,COUNTA('Enrollment Form'!$AZ539:$BC539)=4),AND('Enrollment Form'!$AY539=\"No\",ISERROR(FIND(\"HMO\",VLOOKUP('Enrollment Form'!G539,'Enrollment Form'!H$11:J$1000,3,FALSE),1))=FALSE,COUNTA('Enrollment Form'!$BT539:$BW539)=4)),\"Y\",\"N\"))","v":"-"},{"$f":"IF($B532=\"N\",\"\",IF('Enrollment Form'!$B539=\"Subscriber\",\"-\",IF(COUNTA('Enrollment Form'!$BL539,'Enrollment Form'!$BN539)=2,\"Y\",\"N\")))","v":""},{"$f":"IF($B532=\"N\",\"\",IF(OR('Enrollment Form'!$AX539=\"\",'Enrollment Form'!$AX539=\"No\"),\"-\",IF(AND('Enrollment Form'!$AX539=\"Yes\",COUNTA('Enrollment Form'!$CR539)=1),\"Y\",\"N\")))","v":""},{"$f":"IF(OR('Enrollment Form'!$CR539=\"\",'Enrollment Form'!$CR539=\"No\"),\"-\",IF(COUNTA('Enrollment Form'!$CT539:$CU539)=2,\"Y\",\"N\"))","v":"-"},{"$f":"IF($B532=\"N\",\"\",IF(COUNTIF('Enrollment Form'!$DG539:$DP539,\"Other\")=COUNTA('Enrollment Form'!$DK539,'Enrollment Form'!$DH539,'Enrollment Form'!$DN539,'Enrollment Form'!$DQ539),\"Y\",\"N\"))","v":""},{"$f":"IF($B532=\"N\",\"\",IF(OR('Enrollment Form'!B539<>\"Subscriber\",'Enrollment Form'!C539=\"ROC\",COUNTIF('Enrollment Form'!AV539:AW539,\"Yes\")>=1),\"-\",IF(AND('Enrollment Form'!C539=\"Enroll\",COUNTIF('Enrollment Form'!AV539:AW539,\"No\")=2,'Enrollment Form'!AX539=\"\"),\"N\",\"Y\")))","v":""},{"$f":"IF(OR(B532=\"N\",'Enrollment Form'!B539<>\"Subscriber\",'Enrollment Form'!C539=\"ROC\",'Enrollment Form'!O539<>\"Multiple of Salary\"),\"-\",IF(COUNTA('Enrollment Form'!T539:U539)<2,\"N\",\"Y\"))","v":"-"},{"$f":"IF(B532=\"N\",\"\",IF(OR('Enrollment Form'!C539=\"ROC\",'Enrollment Form'!B539<>\"Subscriber\",'Enrollment Form'!O539=\"Waive\",'Enrollment Form'!O539=\"\"),\"-\",IF('Enrollment Form'!P539=\"\",\"N\",\"Y\")))","v":""},{"$f":"IF($B532=\"N\",\"\",IF(AND('Enrollment Form'!$C539=\"ROC\",'Enrollment Form'!$DR539<>\"\"),\"Y\",IF(AND('Enrollment Form'!$C539=\"ROC\",'Enrollment Form'!$DR539=\"\"),\"N\",IF(AND('Enrollment Form'!$C539=\"Enroll\",'Enrollment Form'!$B539=\"Subscriber\",'Enrollment Form'!$CX539=\"No\",'Enrollment Form'!$DR539=\"\"),\"N\",IF(AND('Enrollment Form'!$C539=\"Enroll\",'Enrollment Form'!$B539=\"Subscriber\",'Enrollment Form'!$CX539=\"Yes\"),\"-\",\"Y\")))))","v":""},{"$f":"IF($B532=\"N\",\"\",IF(AND('Enrollment Form'!$C539=\"ROC\",'Enrollment Form'!$DS539<>\"\"),\"Y\",IF(AND('Enrollment Form'!$C539=\"ROC\",'Enrollment Form'!$DS539=\"\"),\"N\",IF(AND('Enrollment Form'!$C539=\"Enroll\",'Enrollment Form'!$B539=\"Subscriber\",'Enrollment Form'!$CX539=\"No\",'Enrollment Form'!$DS539=\"\"),\"N\",IF(AND('Enrollment Form'!$C539=\"Enroll\",'Enrollment Form'!$B539=\"Subscriber\",'Enrollment Form'!$CX539=\"Yes\"),\"-\",\"Y\")))))","v":""},{"$f":"IF('Enrollment Form'!AH539=\"\",\"\",IF(ISERROR(SEARCH(\".\",'Enrollment Form'!AH539,SEARCH(\"@\",'Enrollment Form'!AH539))),\"N\",\"Y\"))","v":""},{"$f":"IF(OR($B532=\"N\",'Enrollment Form'!$G539=\"\"),\"\",IF('Enrollment Form'!$B539<>\"Subscriber\",\"-\",IF(COUNTIF('Enrollment Form'!$AV539:$AW539,\"Yes\")=2,\"N\",\"Y\")))","v":""},{"$f":"IF(OR('Enrollment Form'!$CJ539=\"\",'Enrollment Form'!$CJ539=\"No\"),\"-\",IF(AND('Enrollment Form'!$CJ539=\"Yes\",'Enrollment Form'!$CK539=\"\"),\"N\",\"Y\"))","v":"-"},{"$f":"IF(OR('Enrollment Form'!$CL539=\"\",'Enrollment Form'!$CL539=\"No\"),\"-\",IF(AND('Enrollment Form'!$CL539=\"Yes\",'Enrollment Form'!$CM539=\"\"),\"N\",\"Y\"))","v":"-"},{"$f":"IF(OR('Enrollment Form'!$CN539=\"\",'Enrollment Form'!$CN539=\"No\"),\"-\",IF(AND('Enrollment Form'!$CN539=\"Yes\",'Enrollment Form'!$CO539=\"\"),\"N\",\"Y\"))","v":"-"},{"$f":"IF(OR('Enrollment Form'!$CN539=\"\",'Enrollment Form'!$CN539=\"No\"),\"-\",IF(AND('Enrollment Form'!$CN539=\"Yes\",'Enrollment Form'!$CP539=\"\"),\"N\",\"Y\"))","v":"-"},{"$f":"IF('Enrollment Form'!B539<>\"Subscriber\",\"-\",IF(AND('Enrollment Form'!B539=\"Subscriber\",'Enrollment Form'!C539=\"Enroll\",'Enrollment Form'!AA539=\"\"),\"N\",\"Y\"))","v":"-"},{"$f":"IF(OR('Enrollment Form'!B539=\"Subscriber\",'Enrollment Form'!B539=\"\"),\"-\",IF('Enrollment Form'!BP539=\"\",\"N\",\"Y\"))","v":"-"},{"$f":"IF('Enrollment Form'!B539<>\"Subscriber\",\"-\",IF(AND('Enrollment Form'!B539=\"Subscriber\",'Enrollment Form'!G539=\"\"),\"N\",\"Y\"))","v":"-"},{"$f":"IF('Enrollment Form'!A539=\"\",\"\",IF('Enrollment Form'!B539=\"Subscriber\",\"-\",IF(AND('Enrollment Form'!B539<>\"Subscriber\",'Enrollment Form'!G539='Enrollment Form'!H539),\"N\",\"Y\")))","v":""},0]
[540,{"$f":"IF('Enrollment Form'!$A540<>\"\",\"Y\",\"N\")","v":"N"},{"$f":"IF(AND('Enrollment Form'!$B540=\"\",'Enrollment Form'!$C540<>\"\"),\"N\",IF($B533=\"N\",\"\",\"Y\"))","v":""},{"$f":"IF(OR($B533=\"N\",'Enrollment Form'!G540=\"\"),\"\",IF('Enrollment Form'!$B540<>\"Subscriber\",\"\",IF('Enrollment Form'!$G540='Enrollment Form'!$H540,\"Y\",\"N\")))","v":""},{"$f":"IF($B533=\"N\",\"\",IF(AND(COUNTIFS('Enrollment Form'!$H$11:$H$1000,'Enrollment Form'!$H540,'Enrollment Form'!$B$11:$B$1000,'Enrollment Form'!$B540)>1,'Enrollment Form'!$H540<>\"\"),\"N\",\"Y\"))","v":""},{"$f":"IF($B533=\"N\",\"\",IF(LEN('Enrollment Form'!$Y540)=0,\"\",IF(LEN('Enrollment Form'!$Y540)<>5,\"N\",\"Y\")))","v":""},{"$f":"IF($B533=\"N\",\"\",IF(LEN('Enrollment Form'!$AD540=0),\"\",IF(LEN('Enrollment Form'!$AD540)<>5,\"N\",\"Y\")))","v":""},{"$f":"IF($B533=\"N\",\"\",IF(LEN('Enrollment Form'!$BS540=0),\"\",IF(LEN('Enrollment Form'!$BS540)<>5,\"N\",\"Y\")))","v":""},{"$f":"IF($B533=\"N\",\"\",IF(LEN('Enrollment Form'!$AE540)=0,\"\",IF(LEN('Enrollment Form'!$AE540)<>10,\"N\",\"Y\")))","v":""},{"$f":"IF($B533=\"N\",\"\",IF(LEN('Enrollment Form'!$AF540)=0,\"\",IF(LEN('Enrollment Form'!$AF540)<>10,\"N\",\"Y\")))","v":""},{"$f":"IF('Enrollment Form'!$O540<>\"Graded\",\"-\",IF(AND('Enrollment Form'!$O540=\"Graded\",'Enrollment Form'!$AR540<>\"\"),\"Y\",\"N\"))","v":"-"},{"$f":"IF($B533=\"N\",\"\",IF(OR('Enrollment Form'!$B540<>\"Subscriber\",'Enrollment Form'!$C540=\"ROC\"),\"-\",IF(AND('Enrollment Form'!$B540=\"Subscriber\",'Enrollment Form'!$C540=\"Enroll\",'Enrollment Form'!$AJ540<>\"\"),\"Y\",\"N\")))","v":""},{"$f":"IF($B533=\"N\",\"\",IF(OR('Enrollment Form'!$B540<>\"Subscriber\",'Enrollment Form'!$C540=\"ROC\"),\"-\",IF(AND('Enrollment Form'!$B540=\"Subscriber\",'Enrollment Form'!$C540=\"Enroll\",'Enrollment Form'!$AK540<>\"\"),\"Y\",\"N\")))","v":""},{"$f":"IF($B533=\"N\",\"\",IF(OR('Enrollment Form'!$B540<>\"Subscriber\",'Enrollment Form'!$C540=\"ROC\"),\"-\",IF(AND('Enrollment Form'!$B540=\"Subscriber\",'Enrollment Form'!$C540=\"Enroll\",'Enrollment Form'!$AL540<>\"\"),\"Y\",\"N\")))","v":""},{"$f":"IF($B533=\"N\",\"\",IF(OR('Enrollment Form'!$B540<>\"Subscriber\",'Enrollment Form'!$C540=\"ROC\"),\"-\",IF(AND('Enrollment Form'!$B540=\"Subscriber\",'Enrollment Form'!$C540=\"Enroll\",'Enrollment Form'!$AP540<>\"\"),\"Y\",\"N\")))","v":""},{"$f":"IF($B533=\"N\",\"\",IF(OR('Enrollment Form'!$B540<>\"Subscriber\",'Enrollment Form'!$C540=\"ROC\"),\"-\",IF(AND('Enrollment Form'!$B540=\"Subscriber\",'Enrollment Form'!$C540=\"Enroll\",'Enrollment Form'!$AQ540<>\"\"),\"Y\",\"N\")))","v":""},{"$f":"IF($B533=\"N\",\"\",IF(OR('Enrollment Form'!$B540<>\"Subscriber\",'Enrollment Form'!$C540=\"ROC\"),\"-\",IF(AND('Enrollment Form'!$B540=\"Subscriber\",'Enrollment Form'!$C540=\"Enroll\",'Enrollment Form'!$AS540<>\"\"),\"Y\",\"N\")))","v":""},{"$f":"IF($B533=\"N\",\"\",IF($Q533=\"-\",\"-\",IF(AND($Q533=\"Y\",'Enrollment Form'!$AS540=\"No\"),\"-\",IF(AND($Q533=\"Y\",'Enrollment Form'!$AS540=\"Yes\",'Enrollment Form'!$AT540<>\"\"),\"Y\",\"N\"))))","v":""},{"$f":"IF($B533=\"N\",\"\",IF(OR('Enrollment Form'!$B540<>\"Subscriber\",'Enrollment Form'!$C540=\"ROC\"),\"-\",IF(AND('Enrollment Form'!$B540=\"Subscriber\",'Enrollment Form'!$C540=\"Enroll\",'Enrollment Form'!$CV540<>\"\"),\"Y\",\"N\")))","v":""},{"$f":"IF($B533=\"N\",\"\",IF($S533=\"-\",\"-\",IF(AND($S533=\"Y\",'Enrollment Form'!$CV540=\"No\"),\"-\",IF(AND($S533=\"Y\",'Enrollment Form'!$CV540=\"Yes\",'Enrollment Form'!$CW540<>\"\"),\"Y\",\"N\"))))","v":""},{"$f":"IF(OR('Enrollment Form'!$AY540=\"Yes\",'Enrollment Form'!$AY540=\"\"),\"-\",IF(OR(AND('Enrollment Form'!$AY540=\"No\",ISERROR(FIND(\"HMO\",VLOOKUP('Enrollment Form'!G540,'Enrollment Form'!H$11:J$1000,3,FALSE),1))=FALSE,COUNTA('Enrollment Form'!$AZ540:$BC540)=4),AND('Enrollment Form'!$AY540=\"No\",ISERROR(FIND(\"HMO\",VLOOKUP('Enrollment Form'!G540,'Enrollment Form'!H$11:J$1000,3,FALSE),1))=FALSE,COUNTA('Enrollment Form'!$BT540:$BW540)=4)),\"Y\",\"N\"))","v":"-"},{"$f":"IF($B533=\"N\",\"\",IF('Enrollment Form'!$B540=\"Subscriber\",\"-\",IF(COUNTA('Enrollment Form'!$BL540,'Enrollment Form'!$BN540)=2,\"Y\",\"N\")))","v":""},{"$f":"IF($B533=\"N\",\"\",IF(OR('Enrollment Form'!$AX540=\"\",'Enrollment Form'!$AX540=\"No\"),\"-\",IF(AND('Enrollment Form'!$AX540=\"Yes\",COUNTA('Enrollment Form'!$CR540)=1),\"Y\",\"N\")))","v":""},{"$f":"IF(OR('Enrollment Form'!$CR540=\"\",'Enrollment Form'!$CR540=\"No\"),\"-\",IF(COUNTA('Enrollment Form'!$CT540:$CU540)=2,\"Y\",\"N\"))","v":"-"},{"$f":"IF($B533=\"N\",\"\",IF(COUNTIF('Enrollment Form'!$DG540:$DP540,\"Other\")=COUNTA('Enrollment Form'!$DK540,'Enrollment Form'!$DH540,'Enrollment Form'!$DN540,'Enrollment Form'!$DQ540),\"Y\",\"N\"))","v":""},{"$f":"IF($B533=\"N\",\"\",IF(OR('Enrollment Form'!B540<>\"Subscriber\",'Enrollment Form'!C540=\"ROC\",COUNTIF('Enrollment Form'!AV540:AW540,\"Yes\")>=1),\"-\",IF(AND('Enrollment Form'!C540=\"Enroll\",COUNTIF('Enrollment Form'!AV540:AW540,\"No\")=2,'Enrollment Form'!AX540=\"\"),\"N\",\"Y\")))","v":""},{"$f":"IF(OR(B533=\"N\",'Enrollment Form'!B540<>\"Subscriber\",'Enrollment Form'!C540=\"ROC\",'Enrollment Form'!O540<>\"Multiple of Salary\"),\"-\",IF(COUNTA('Enrollment Form'!T540:U540)<2,\"N\",\"Y\"))","v":"-"},{"$f":"IF(B533=\"N\",\"\",IF(OR('Enrollment Form'!C540=\"ROC\",'Enrollment Form'!B540<>\"Subscriber\",'Enrollment Form'!O540=\"Waive\",'Enrollment Form'!O540=\"\"),\"-\",IF('Enrollment Form'!P540=\"\",\"N\",\"Y\")))","v":""},{"$f":"IF($B533=\"N\",\"\",IF(AND('Enrollment Form'!$C540=\"ROC\",'Enrollment Form'!$DR540<>\"\"),\"Y\",IF(AND('Enrollment Form'!$C540=\"ROC\",'Enrollment Form'!$DR540=\"\"),\"N\",IF(AND('Enrollment Form'!$C540=\"Enroll\",'Enrollment Form'!$B540=\"Subscriber\",'Enrollment Form'!$CX540=\"No\",'Enrollment Form'!$DR540=\"\"),\"N\",IF(AND('Enrollment Form'!$C540=\"Enroll\",'Enrollment Form'!$B540=\"Subscriber\",'Enrollment Form'!$CX540=\"Yes\"),\"-\",\"Y\")))))","v":""},{"$f":"IF($B533=\"N\",\"\",IF(AND('Enrollment Form'!$C540=\"ROC\",'Enrollment Form'!$DS540<>\"\"),\"Y\",IF(AND('Enrollment Form'!$C540=\"ROC\",'Enrollment Form'!$DS540=\"\"),\"N\",IF(AND('Enrollment Form'!$C540=\"Enroll\",'Enrollment Form'!$B540=\"Subscriber\",'Enrollment Form'!$CX540=\"No\",'Enrollment Form'!$DS540=\"\"),\"N\",IF(AND('Enrollment Form'!$C540=\"Enroll\",'Enrollment Form'!$B540=\"Subscriber\",'Enrollment Form'!$CX540=\"Yes\"),\"-\",\"Y\")))))","v":""},{"$f":"IF('Enrollment Form'!AH540=\"\",\"\",IF(ISERROR(SEARCH(\".\",'Enrollment Form'!AH540,SEARCH(\"@\",'Enrollment Form'!AH540))),\"N\",\"Y\"))","v":""},{"$f":"IF(OR($B533=\"N\",'Enrollment Form'!$G540=\"\"),\"\",IF('Enrollment Form'!$B540<>\"Subscriber\",\"-\",IF(COUNTIF('Enrollment Form'!$AV540:$AW540,\"Yes\")=2,\"N\",\"Y\")))","v":""},{"$f":"IF(OR('Enrollment Form'!$CJ540=\"\",'Enrollment Form'!$CJ540=\"No\"),\"-\",IF(AND('Enrollment Form'!$CJ540=\"Yes\",'Enrollment Form'!$CK540=\"\"),\"N\",\"Y\"))","v":"-"},{"$f":"IF(OR('Enrollment Form'!$CL540=\"\",'Enrollment Form'!$CL540=\"No\"),\"-\",IF(AND('Enrollment Form'!$CL540=\"Yes\",'Enrollment Form'!$CM540=\"\"),\"N\",\"Y\"))","v":"-"},{"$f":"IF(OR('Enrollment Form'!$CN540=\"\",'Enrollment Form'!$CN540=\"No\"),\"-\",IF(AND('Enrollment Form'!$CN540=\"Yes\",'Enrollment Form'!$CO540=\"\"),\"N\",\"Y\"))","v":"-"},{"$f":"IF(OR('Enrollment Form'!$CN540=\"\",'Enrollment Form'!$CN540=\"No\"),\"-\",IF(AND('Enrollment Form'!$CN540=\"Yes\",'Enrollment Form'!$CP540=\"\"),\"N\",\"Y\"))","v":"-"},{"$f":"IF('Enrollment Form'!B540<>\"Subscriber\",\"-\",IF(AND('Enrollment Form'!B540=\"Subscriber\",'Enrollment Form'!C540=\"Enroll\",'Enrollment Form'!AA540=\"\"),\"N\",\"Y\"))","v":"-"},{"$f":"IF(OR('Enrollment Form'!B540=\"Subscriber\",'Enrollment Form'!B540=\"\"),\"-\",IF('Enrollment Form'!BP540=\"\",\"N\",\"Y\"))","v":"-"},{"$f":"IF('Enrollment Form'!B540<>\"Subscriber\",\"-\",IF(AND('Enrollment Form'!B540=\"Subscriber\",'Enrollment Form'!G540=\"\"),\"N\",\"Y\"))","v":"-"},{"$f":"IF('Enrollment Form'!A540=\"\",\"\",IF('Enrollment Form'!B540=\"Subscriber\",\"-\",IF(AND('Enrollment Form'!B540<>\"Subscriber\",'Enrollment Form'!G540='Enrollment Form'!H540),\"N\",\"Y\")))","v":""},0]
[541,{"$f":"IF('Enrollment Form'!$A541<>\"\",\"Y\",\"N\")","v":"N"},{"$f":"IF(AND('Enrollment Form'!$B541=\"\",'Enrollment Form'!$C541<>\"\"),\"N\",IF($B534=\"N\",\"\",\"Y\"))","v":""},{"$f":"IF(OR($B534=\"N\",'Enrollment Form'!G541=\"\"),\"\",IF('Enrollment Form'!$B541<>\"Subscriber\",\"\",IF('Enrollment Form'!$G541='Enrollment Form'!$H541,\"Y\",\"N\")))","v":""},{"$f":"IF($B534=\"N\",\"\",IF(AND(COUNTIFS('Enrollment Form'!$H$11:$H$1000,'Enrollment Form'!$H541,'Enrollment Form'!$B$11:$B$1000,'Enrollment Form'!$B541)>1,'Enrollment Form'!$H541<>\"\"),\"N\",\"Y\"))","v":""},{"$f":"IF($B534=\"N\",\"\",IF(LEN('Enrollment Form'!$Y541)=0,\"\",IF(LEN('Enrollment Form'!$Y541)<>5,\"N\",\"Y\")))","v":""},{"$f":"IF($B534=\"N\",\"\",IF(LEN('Enrollment Form'!$AD541=0),\"\",IF(LEN('Enrollment Form'!$AD541)<>5,\"N\",\"Y\")))","v":""},{"$f":"IF($B534=\"N\",\"\",IF(LEN('Enrollment Form'!$BS541=0),\"\",IF(LEN('Enrollment Form'!$BS541)<>5,\"N\",\"Y\")))","v":""},{"$f":"IF($B534=\"N\",\"\",IF(LEN('Enrollment Form'!$AE541)=0,\"\",IF(LEN('Enrollment Form'!$AE541)<>10,\"N\",\"Y\")))","v":""},{"$f":"IF($B534=\"N\",\"\",IF(LEN('Enrollment Form'!$AF541)=0,\"\",IF(LEN('Enrollment Form'!$AF541)<>10,\"N\",\"Y\")))","v":""},{"$f":"IF('Enrollment Form'!$O541<>\"Graded\",\"-\",IF(AND('Enrollment Form'!$O541=\"Graded\",'Enrollment Form'!$AR541<>\"\"),\"Y\",\"N\"))","v":"-"},{"$f":"IF($B534=\"N\",\"\",IF(OR('Enrollment Form'!$B541<>\"Subscriber\",'Enrollment Form'!$C541=\"ROC\"),\"-\",IF(AND('Enrollment Form'!$B541=\"Subscriber\",'Enrollment Form'!$C541=\"Enroll\",'Enrollment Form'!$AJ541<>\"\"),\"Y\",\"N\")))","v":""},{"$f":"IF($B534=\"N\",\"\",IF(OR('Enrollment Form'!$B541<>\"Subscriber\",'Enrollment Form'!$C541=\"ROC\"),\"-\",IF(AND('Enrollment Form'!$B541=\"Subscriber\",'Enrollment Form'!$C541=\"Enroll\",'Enrollment Form'!$AK541<>\"\"),\"Y\",\"N\")))","v":""},{"$f":"IF($B534=\"N\",\"\",IF(OR('Enrollment Form'!$B541<>\"Subscriber\",'Enrollment Form'!$C541=\"ROC\"),\"-\",IF(AND('Enrollment Form'!$B541=\"Subscriber\",'Enrollment Form'!$C541=\"Enroll\",'Enrollment Form'!$AL541<>\"\"),\"Y\",\"N\")))","v":""},{"$f":"IF($B534=\"N\",\"\",IF(OR('Enrollment Form'!$B541<>\"Subscriber\",'Enrollment Form'!$C541=\"ROC\"),\"-\",IF(AND('Enrollment Form'!$B541=\"Subscriber\",'Enrollment Form'!$C541=\"Enroll\",'Enrollment Form'!$AP541<>\"\"),\"Y\",\"N\")))","v":""},{"$f":"IF($B534=\"N\",\"\",IF(OR('Enrollment Form'!$B541<>\"Subscriber\",'Enrollment Form'!$C541=\"ROC\"),\"-\",IF(AND('Enrollment Form'!$B541=\"Subscriber\",'Enrollment Form'!$C541=\"Enroll\",'Enrollment Form'!$AQ541<>\"\"),\"Y\",\"N\")))","v":""},{"$f":"IF($B534=\"N\",\"\",IF(OR('Enrollment Form'!$B541<>\"Subscriber\",'Enrollment Form'!$C541=\"ROC\"),\"-\",IF(AND('Enrollment Form'!$B541=\"Subscriber\",'Enrollment Form'!$C541=\"Enroll\",'Enrollment Form'!$AS541<>\"\"),\"Y\",\"N\")))","v":""},{"$f":"IF($B534=\"N\",\"\",IF($Q534=\"-\",\"-\",IF(AND($Q534=\"Y\",'Enrollment Form'!$AS541=\"No\"),\"-\",IF(AND($Q534=\"Y\",'Enrollment Form'!$AS541=\"Yes\",'Enrollment Form'!$AT541<>\"\"),\"Y\",\"N\"))))","v":""},{"$f":"IF($B534=\"N\",\"\",IF(OR('Enrollment Form'!$B541<>\"Subscriber\",'Enrollment Form'!$C541=\"ROC\"),\"-\",IF(AND('Enrollment Form'!$B541=\"Subscriber\",'Enrollment Form'!$C541=\"Enroll\",'Enrollment Form'!$CV541<>\"\"),\"Y\",\"N\")))","v":""},{"$f":"IF($B534=\"N\",\"\",IF($S534=\"-\",\"-\",IF(AND($S534=\"Y\",'Enrollment Form'!$CV541=\"No\"),\"-\",IF(AND($S534=\"Y\",'Enrollment Form'!$CV541=\"Yes\",'Enrollment Form'!$CW541<>\"\"),\"Y\",\"N\"))))","v":""},{"$f":"IF(OR('Enrollment Form'!$AY541=\"Yes\",'Enrollment Form'!$AY541=\"\"),\"-\",IF(OR(AND('Enrollment Form'!$AY541=\"No\",ISERROR(FIND(\"HMO\",VLOOKUP('Enrollment Form'!G541,'Enrollment Form'!H$11:J$1000,3,FALSE),1))=FALSE,COUNTA('Enrollment Form'!$AZ541:$BC541)=4),AND('Enrollment Form'!$AY541=\"No\",ISERROR(FIND(\"HMO\",VLOOKUP('Enrollment Form'!G541,'Enrollment Form'!H$11:J$1000,3,FALSE),1))=FALSE,COUNTA('Enrollment Form'!$BT541:$BW541)=4)),\"Y\",\"N\"))","v":"-"},{"$f":"IF($B534=\"N\",\"\",IF('Enrollment Form'!$B541=\"Subscriber\",\"-\",IF(COUNTA('Enrollment Form'!$BL541,'Enrollment Form'!$BN541)=2,\"Y\",\"N\")))","v":""},{"$f":"IF($B534=\"N\",\"\",IF(OR('Enrollment Form'!$AX541=\"\",'Enrollment Form'!$AX541=\"No\"),\"-\",IF(AND('Enrollment Form'!$AX541=\"Yes\",COUNTA('Enrollment Form'!$CR541)=1),\"Y\",\"N\")))","v":""},{"$f":"IF(OR('Enrollment Form'!$CR541=\"\",'Enrollment Form'!$CR541=\"No\"),\"-\",IF(COUNTA('Enrollment Form'!$CT541:$CU541)=2,\"Y\",\"N\"))","v":"-"},{"$f":"IF($B534=\"N\",\"\",IF(COUNTIF('Enrollment Form'!$DG541:$DP541,\"Other\")=COUNTA('Enrollment Form'!$DK541,'Enrollment Form'!$DH541,'Enrollment Form'!$DN541,'Enrollment Form'!$DQ541),\"Y\",\"N\"))","v":""},{"$f":"IF($B534=\"N\",\"\",IF(OR('Enrollment Form'!B541<>\"Subscriber\",'Enrollment Form'!C541=\"ROC\",COUNTIF('Enrollment Form'!AV541:AW541,\"Yes\")>=1),\"-\",IF(AND('Enrollment Form'!C541=\"Enroll\",COUNTIF('Enrollment Form'!AV541:AW541,\"No\")=2,'Enrollment Form'!AX541=\"\"),\"N\",\"Y\")))","v":""},{"$f":"IF(OR(B534=\"N\",'Enrollment Form'!B541<>\"Subscriber\",'Enrollment Form'!C541=\"ROC\",'Enrollment Form'!O541<>\"Multiple of Salary\"),\"-\",IF(COUNTA('Enrollment Form'!T541:U541)<2,\"N\",\"Y\"))","v":"-"},{"$f":"IF(B534=\"N\",\"\",IF(OR('Enrollment Form'!C541=\"ROC\",'Enrollment Form'!B541<>\"Subscriber\",'Enrollment Form'!O541=\"Waive\",'Enrollment Form'!O541=\"\"),\"-\",IF('Enrollment Form'!P541=\"\",\"N\",\"Y\")))","v":""},{"$f":"IF($B534=\"N\",\"\",IF(AND('Enrollment Form'!$C541=\"ROC\",'Enrollment Form'!$DR541<>\"\"),\"Y\",IF(AND('Enrollment Form'!$C541=\"ROC\",'Enrollment Form'!$DR541=\"\"),\"N\",IF(AND('Enrollment Form'!$C541=\"Enroll\",'Enrollment Form'!$B541=\"Subscriber\",'Enrollment Form'!$CX541=\"No\",'Enrollment Form'!$DR541=\"\"),\"N\",IF(AND('Enrollment Form'!$C541=\"Enroll\",'Enrollment Form'!$B541=\"Subscriber\",'Enrollment Form'!$CX541=\"Yes\"),\"-\",\"Y\")))))","v":""},{"$f":"IF($B534=\"N\",\"\",IF(AND('Enrollment Form'!$C541=\"ROC\",'Enrollment Form'!$DS541<>\"\"),\"Y\",IF(AND('Enrollment Form'!$C541=\"ROC\",'Enrollment Form'!$DS541=\"\"),\"N\",IF(AND('Enrollment Form'!$C541=\"Enroll\",'Enrollment Form'!$B541=\"Subscriber\",'Enrollment Form'!$CX541=\"No\",'Enrollment Form'!$DS541=\"\"),\"N\",IF(AND('Enrollment Form'!$C541=\"Enroll\",'Enrollment Form'!$B541=\"Subscriber\",'Enrollment Form'!$CX541=\"Yes\"),\"-\",\"Y\")))))","v":""},{"$f":"IF('Enrollment Form'!AH541=\"\",\"\",IF(ISERROR(SEARCH(\".\",'Enrollment Form'!AH541,SEARCH(\"@\",'Enrollment Form'!AH541))),\"N\",\"Y\"))","v":""},{"$f":"IF(OR($B534=\"N\",'Enrollment Form'!$G541=\"\"),\"\",IF('Enrollment Form'!$B541<>\"Subscriber\",\"-\",IF(COUNTIF('Enrollment Form'!$AV541:$AW541,\"Yes\")=2,\"N\",\"Y\")))","v":""},{"$f":"IF(OR('Enrollment Form'!$CJ541=\"\",'Enrollment Form'!$CJ541=\"No\"),\"-\",IF(AND('Enrollment Form'!$CJ541=\"Yes\",'Enrollment Form'!$CK541=\"\"),\"N\",\"Y\"))","v":"-"},{"$f":"IF(OR('Enrollment Form'!$CL541=\"\",'Enrollment Form'!$CL541=\"No\"),\"-\",IF(AND('Enrollment Form'!$CL541=\"Yes\",'Enrollment Form'!$CM541=\"\"),\"N\",\"Y\"))","v":"-"},{"$f":"IF(OR('Enrollment Form'!$CN541=\"\",'Enrollment Form'!$CN541=\"No\"),\"-\",IF(AND('Enrollment Form'!$CN541=\"Yes\",'Enrollment Form'!$CO541=\"\"),\"N\",\"Y\"))","v":"-"},{"$f":"IF(OR('Enrollment Form'!$CN541=\"\",'Enrollment Form'!$CN541=\"No\"),\"-\",IF(AND('Enrollment Form'!$CN541=\"Yes\",'Enrollment Form'!$CP541=\"\"),\"N\",\"Y\"))","v":"-"},{"$f":"IF('Enrollment Form'!B541<>\"Subscriber\",\"-\",IF(AND('Enrollment Form'!B541=\"Subscriber\",'Enrollment Form'!C541=\"Enroll\",'Enrollment Form'!AA541=\"\"),\"N\",\"Y\"))","v":"-"},{"$f":"IF(OR('Enrollment Form'!B541=\"Subscriber\",'Enrollment Form'!B541=\"\"),\"-\",IF('Enrollment Form'!BP541=\"\",\"N\",\"Y\"))","v":"-"},{"$f":"IF('Enrollment Form'!B541<>\"Subscriber\",\"-\",IF(AND('Enrollment Form'!B541=\"Subscriber\",'Enrollment Form'!G541=\"\"),\"N\",\"Y\"))","v":"-"},{"$f":"IF('Enrollment Form'!A541=\"\",\"\",IF('Enrollment Form'!B541=\"Subscriber\",\"-\",IF(AND('Enrollment Form'!B541<>\"Subscriber\",'Enrollment Form'!G541='Enrollment Form'!H541),\"N\",\"Y\")))","v":""},0]
[542,{"$f":"IF('Enrollment Form'!$A542<>\"\",\"Y\",\"N\")","v":"N"},{"$f":"IF(AND('Enrollment Form'!$B542=\"\",'Enrollment Form'!$C542<>\"\"),\"N\",IF($B535=\"N\",\"\",\"Y\"))","v":""},{"$f":"IF(OR($B535=\"N\",'Enrollment Form'!G542=\"\"),\"\",IF('Enrollment Form'!$B542<>\"Subscriber\",\"\",IF('Enrollment Form'!$G542='Enrollment Form'!$H542,\"Y\",\"N\")))","v":""},{"$f":"IF($B535=\"N\",\"\",IF(AND(COUNTIFS('Enrollment Form'!$H$11:$H$1000,'Enrollment Form'!$H542,'Enrollment Form'!$B$11:$B$1000,'Enrollment Form'!$B542)>1,'Enrollment Form'!$H542<>\"\"),\"N\",\"Y\"))","v":""},{"$f":"IF($B535=\"N\",\"\",IF(LEN('Enrollment Form'!$Y542)=0,\"\",IF(LEN('Enrollment Form'!$Y542)<>5,\"N\",\"Y\")))","v":""},{"$f":"IF($B535=\"N\",\"\",IF(LEN('Enrollment Form'!$AD542=0),\"\",IF(LEN('Enrollment Form'!$AD542)<>5,\"N\",\"Y\")))","v":""},{"$f":"IF($B535=\"N\",\"\",IF(LEN('Enrollment Form'!$BS542=0),\"\",IF(LEN('Enrollment Form'!$BS542)<>5,\"N\",\"Y\")))","v":""},{"$f":"IF($B535=\"N\",\"\",IF(LEN('Enrollment Form'!$AE542)=0,\"\",IF(LEN('Enrollment Form'!$AE542)<>10,\"N\",\"Y\")))","v":""},{"$f":"IF($B535=\"N\",\"\",IF(LEN('Enrollment Form'!$AF542)=0,\"\",IF(LEN('Enrollment Form'!$AF542)<>10,\"N\",\"Y\")))","v":""},{"$f":"IF('Enrollment Form'!$O542<>\"Graded\",\"-\",IF(AND('Enrollment Form'!$O542=\"Graded\",'Enrollment Form'!$AR542<>\"\"),\"Y\",\"N\"))","v":"-"},{"$f":"IF($B535=\"N\",\"\",IF(OR('Enrollment Form'!$B542<>\"Subscriber\",'Enrollment Form'!$C542=\"ROC\"),\"-\",IF(AND('Enrollment Form'!$B542=\"Subscriber\",'Enrollment Form'!$C542=\"Enroll\",'Enrollment Form'!$AJ542<>\"\"),\"Y\",\"N\")))","v":""},{"$f":"IF($B535=\"N\",\"\",IF(OR('Enrollment Form'!$B542<>\"Subscriber\",'Enrollment Form'!$C542=\"ROC\"),\"-\",IF(AND('Enrollment Form'!$B542=\"Subscriber\",'Enrollment Form'!$C542=\"Enroll\",'Enrollment Form'!$AK542<>\"\"),\"Y\",\"N\")))","v":""},{"$f":"IF($B535=\"N\",\"\",IF(OR('Enrollment Form'!$B542<>\"Subscriber\",'Enrollment Form'!$C542=\"ROC\"),\"-\",IF(AND('Enrollment Form'!$B542=\"Subscriber\",'Enrollment Form'!$C542=\"Enroll\",'Enrollment Form'!$AL542<>\"\"),\"Y\",\"N\")))","v":""},{"$f":"IF($B535=\"N\",\"\",IF(OR('Enrollment Form'!$B542<>\"Subscriber\",'Enrollment Form'!$C542=\"ROC\"),\"-\",IF(AND('Enrollment Form'!$B542=\"Subscriber\",'Enrollment Form'!$C542=\"Enroll\",'Enrollment Form'!$AP542<>\"\"),\"Y\",\"N\")))","v":""},{"$f":"IF($B535=\"N\",\"\",IF(OR('Enrollment Form'!$B542<>\"Subscriber\",'Enrollment Form'!$C542=\"ROC\"),\"-\",IF(AND('Enrollment Form'!$B542=\"Subscriber\",'Enrollment Form'!$C542=\"Enroll\",'Enrollment Form'!$AQ542<>\"\"),\"Y\",\"N\")))","v":""},{"$f":"IF($B535=\"N\",\"\",IF(OR('Enrollment Form'!$B542<>\"Subscriber\",'Enrollment Form'!$C542=\"ROC\"),\"-\",IF(AND('Enrollment Form'!$B542=\"Subscriber\",'Enrollment Form'!$C542=\"Enroll\",'Enrollment Form'!$AS542<>\"\"),\"Y\",\"N\")))","v":""},{"$f":"IF($B535=\"N\",\"\",IF($Q535=\"-\",\"-\",IF(AND($Q535=\"Y\",'Enrollment Form'!$AS542=\"No\"),\"-\",IF(AND($Q535=\"Y\",'Enrollment Form'!$AS542=\"Yes\",'Enrollment Form'!$AT542<>\"\"),\"Y\",\"N\"))))","v":""},{"$f":"IF($B535=\"N\",\"\",IF(OR('Enrollment Form'!$B542<>\"Subscriber\",'Enrollment Form'!$C542=\"ROC\"),\"-\",IF(AND('Enrollment Form'!$B542=\"Subscriber\",'Enrollment Form'!$C542=\"Enroll\",'Enrollment Form'!$CV542<>\"\"),\"Y\",\"N\")))","v":""},{"$f":"IF($B535=\"N\",\"\",IF($S535=\"-\",\"-\",IF(AND($S535=\"Y\",'Enrollment Form'!$CV542=\"No\"),\"-\",IF(AND($S535=\"Y\",'Enrollment Form'!$CV542=\"Yes\",'Enrollment Form'!$CW542<>\"\"),\"Y\",\"N\"))))","v":""},{"$f":"IF(OR('Enrollment Form'!$AY542=\"Yes\",'Enrollment Form'!$AY542=\"\"),\"-\",IF(OR(AND('Enrollment Form'!$AY542=\"No\",ISERROR(FIND(\"HMO\",VLOOKUP('Enrollment Form'!G542,'Enrollment Form'!H$11:J$1000,3,FALSE),1))=FALSE,COUNTA('Enrollment Form'!$AZ542:$BC542)=4),AND('Enrollment Form'!$AY542=\"No\",ISERROR(FIND(\"HMO\",VLOOKUP('Enrollment Form'!G542,'Enrollment Form'!H$11:J$1000,3,FALSE),1))=FALSE,COUNTA('Enrollment Form'!$BT542:$BW542)=4)),\"Y\",\"N\"))","v":"-"},{"$f":"IF($B535=\"N\",\"\",IF('Enrollment Form'!$B542=\"Subscriber\",\"-\",IF(COUNTA('Enrollment Form'!$BL542,'Enrollment Form'!$BN542)=2,\"Y\",\"N\")))","v":""},{"$f":"IF($B535=\"N\",\"\",IF(OR('Enrollment Form'!$AX542=\"\",'Enrollment Form'!$AX542=\"No\"),\"-\",IF(AND('Enrollment Form'!$AX542=\"Yes\",COUNTA('Enrollment Form'!$CR542)=1),\"Y\",\"N\")))","v":""},{"$f":"IF(OR('Enrollment Form'!$CR542=\"\",'Enrollment Form'!$CR542=\"No\"),\"-\",IF(COUNTA('Enrollment Form'!$CT542:$CU542)=2,\"Y\",\"N\"))","v":"-"},{"$f":"IF($B535=\"N\",\"\",IF(COUNTIF('Enrollment Form'!$DG542:$DP542,\"Other\")=COUNTA('Enrollment Form'!$DK542,'Enrollment Form'!$DH542,'Enrollment Form'!$DN542,'Enrollment Form'!$DQ542),\"Y\",\"N\"))","v":""},{"$f":"IF($B535=\"N\",\"\",IF(OR('Enrollment Form'!B542<>\"Subscriber\",'Enrollment Form'!C542=\"ROC\",COUNTIF('Enrollment Form'!AV542:AW542,\"Yes\")>=1),\"-\",IF(AND('Enrollment Form'!C542=\"Enroll\",COUNTIF('Enrollment Form'!AV542:AW542,\"No\")=2,'Enrollment Form'!AX542=\"\"),\"N\",\"Y\")))","v":""},{"$f":"IF(OR(B535=\"N\",'Enrollment Form'!B542<>\"Subscriber\",'Enrollment Form'!C542=\"ROC\",'Enrollment Form'!O542<>\"Multiple of Salary\"),\"-\",IF(COUNTA('Enrollment Form'!T542:U542)<2,\"N\",\"Y\"))","v":"-"},{"$f":"IF(B535=\"N\",\"\",IF(OR('Enrollment Form'!C542=\"ROC\",'Enrollment Form'!B542<>\"Subscriber\",'Enrollment Form'!O542=\"Waive\",'Enrollment Form'!O542=\"\"),\"-\",IF('Enrollment Form'!P542=\"\",\"N\",\"Y\")))","v":""},{"$f":"IF($B535=\"N\",\"\",IF(AND('Enrollment Form'!$C542=\"ROC\",'Enrollment Form'!$DR542<>\"\"),\"Y\",IF(AND('Enrollment Form'!$C542=\"ROC\",'Enrollment Form'!$DR542=\"\"),\"N\",IF(AND('Enrollment Form'!$C542=\"Enroll\",'Enrollment Form'!$B542=\"Subscriber\",'Enrollment Form'!$CX542=\"No\",'Enrollment Form'!$DR542=\"\"),\"N\",IF(AND('Enrollment Form'!$C542=\"Enroll\",'Enrollment Form'!$B542=\"Subscriber\",'Enrollment Form'!$CX542=\"Yes\"),\"-\",\"Y\")))))","v":""},{"$f":"IF($B535=\"N\",\"\",IF(AND('Enrollment Form'!$C542=\"ROC\",'Enrollment Form'!$DS542<>\"\"),\"Y\",IF(AND('Enrollment Form'!$C542=\"ROC\",'Enrollment Form'!$DS542=\"\"),\"N\",IF(AND('Enrollment Form'!$C542=\"Enroll\",'Enrollment Form'!$B542=\"Subscriber\",'Enrollment Form'!$CX542=\"No\",'Enrollment Form'!$DS542=\"\"),\"N\",IF(AND('Enrollment Form'!$C542=\"Enroll\",'Enrollment Form'!$B542=\"Subscriber\",'Enrollment Form'!$CX542=\"Yes\"),\"-\",\"Y\")))))","v":""},{"$f":"IF('Enrollment Form'!AH542=\"\",\"\",IF(ISERROR(SEARCH(\".\",'Enrollment Form'!AH542,SEARCH(\"@\",'Enrollment Form'!AH542))),\"N\",\"Y\"))","v":""},{"$f":"IF(OR($B535=\"N\",'Enrollment Form'!$G542=\"\"),\"\",IF('Enrollment Form'!$B542<>\"Subscriber\",\"-\",IF(COUNTIF('Enrollment Form'!$AV542:$AW542,\"Yes\")=2,\"N\",\"Y\")))","v":""},{"$f":"IF(OR('Enrollment Form'!$CJ542=\"\",'Enrollment Form'!$CJ542=\"No\"),\"-\",IF(AND('Enrollment Form'!$CJ542=\"Yes\",'Enrollment Form'!$CK542=\"\"),\"N\",\"Y\"))","v":"-"},{"$f":"IF(OR('Enrollment Form'!$CL542=\"\",'Enrollment Form'!$CL542=\"No\"),\"-\",IF(AND('Enrollment Form'!$CL542=\"Yes\",'Enrollment Form'!$CM542=\"\"),\"N\",\"Y\"))","v":"-"},{"$f":"IF(OR('Enrollment Form'!$CN542=\"\",'Enrollment Form'!$CN542=\"No\"),\"-\",IF(AND('Enrollment Form'!$CN542=\"Yes\",'Enrollment Form'!$CO542=\"\"),\"N\",\"Y\"))","v":"-"},{"$f":"IF(OR('Enrollment Form'!$CN542=\"\",'Enrollment Form'!$CN542=\"No\"),\"-\",IF(AND('Enrollment Form'!$CN542=\"Yes\",'Enrollment Form'!$CP542=\"\"),\"N\",\"Y\"))","v":"-"},{"$f":"IF('Enrollment Form'!B542<>\"Subscriber\",\"-\",IF(AND('Enrollment Form'!B542=\"Subscriber\",'Enrollment Form'!C542=\"Enroll\",'Enrollment Form'!AA542=\"\"),\"N\",\"Y\"))","v":"-"},{"$f":"IF(OR('Enrollment Form'!B542=\"Subscriber\",'Enrollment Form'!B542=\"\"),\"-\",IF('Enrollment Form'!BP542=\"\",\"N\",\"Y\"))","v":"-"},{"$f":"IF('Enrollment Form'!B542<>\"Subscriber\",\"-\",IF(AND('Enrollment Form'!B542=\"Subscriber\",'Enrollment Form'!G542=\"\"),\"N\",\"Y\"))","v":"-"},{"$f":"IF('Enrollment Form'!A542=\"\",\"\",IF('Enrollment Form'!B542=\"Subscriber\",\"-\",IF(AND('Enrollment Form'!B542<>\"Subscriber\",'Enrollment Form'!G542='Enrollment Form'!H542),\"N\",\"Y\")))","v":""},0]
[543,{"$f":"IF('Enrollment Form'!$A543<>\"\",\"Y\",\"N\")","v":"N"},{"$f":"IF(AND('Enrollment Form'!$B543=\"\",'Enrollment Form'!$C543<>\"\"),\"N\",IF($B536=\"N\",\"\",\"Y\"))","v":""},{"$f":"IF(OR($B536=\"N\",'Enrollment Form'!G543=\"\"),\"\",IF('Enrollment Form'!$B543<>\"Subscriber\",\"\",IF('Enrollment Form'!$G543='Enrollment Form'!$H543,\"Y\",\"N\")))","v":""},{"$f":"IF($B536=\"N\",\"\",IF(AND(COUNTIFS('Enrollment Form'!$H$11:$H$1000,'Enrollment Form'!$H543,'Enrollment Form'!$B$11:$B$1000,'Enrollment Form'!$B543)>1,'Enrollment Form'!$H543<>\"\"),\"N\",\"Y\"))","v":""},{"$f":"IF($B536=\"N\",\"\",IF(LEN('Enrollment Form'!$Y543)=0,\"\",IF(LEN('Enrollment Form'!$Y543)<>5,\"N\",\"Y\")))","v":""},{"$f":"IF($B536=\"N\",\"\",IF(LEN('Enrollment Form'!$AD543=0),\"\",IF(LEN('Enrollment Form'!$AD543)<>5,\"N\",\"Y\")))","v":""},{"$f":"IF($B536=\"N\",\"\",IF(LEN('Enrollment Form'!$BS543=0),\"\",IF(LEN('Enrollment Form'!$BS543)<>5,\"N\",\"Y\")))","v":""},{"$f":"IF($B536=\"N\",\"\",IF(LEN('Enrollment Form'!$AE543)=0,\"\",IF(LEN('Enrollment Form'!$AE543)<>10,\"N\",\"Y\")))","v":""},{"$f":"IF($B536=\"N\",\"\",IF(LEN('Enrollment Form'!$AF543)=0,\"\",IF(LEN('Enrollment Form'!$AF543)<>10,\"N\",\"Y\")))","v":""},{"$f":"IF('Enrollment Form'!$O543<>\"Graded\",\"-\",IF(AND('Enrollment Form'!$O543=\"Graded\",'Enrollment Form'!$AR543<>\"\"),\"Y\",\"N\"))","v":"-"},{"$f":"IF($B536=\"N\",\"\",IF(OR('Enrollment Form'!$B543<>\"Subscriber\",'Enrollment Form'!$C543=\"ROC\"),\"-\",IF(AND('Enrollment Form'!$B543=\"Subscriber\",'Enrollment Form'!$C543=\"Enroll\",'Enrollment Form'!$AJ543<>\"\"),\"Y\",\"N\")))","v":""},{"$f":"IF($B536=\"N\",\"\",IF(OR('Enrollment Form'!$B543<>\"Subscriber\",'Enrollment Form'!$C543=\"ROC\"),\"-\",IF(AND('Enrollment Form'!$B543=\"Subscriber\",'Enrollment Form'!$C543=\"Enroll\",'Enrollment Form'!$AK543<>\"\"),\"Y\",\"N\")))","v":""},{"$f":"IF($B536=\"N\",\"\",IF(OR('Enrollment Form'!$B543<>\"Subscriber\",'Enrollment Form'!$C543=\"ROC\"),\"-\",IF(AND('Enrollment Form'!$B543=\"Subscriber\",'Enrollment Form'!$C543=\"Enroll\",'Enrollment Form'!$AL543<>\"\"),\"Y\",\"N\")))","v":""},{"$f":"IF($B536=\"N\",\"\",IF(OR('Enrollment Form'!$B543<>\"Subscriber\",'Enrollment Form'!$C543=\"ROC\"),\"-\",IF(AND('Enrollment Form'!$B543=\"Subscriber\",'Enrollment Form'!$C543=\"Enroll\",'Enrollment Form'!$AP543<>\"\"),\"Y\",\"N\")))","v":""},{"$f":"IF($B536=\"N\",\"\",IF(OR('Enrollment Form'!$B543<>\"Subscriber\",'Enrollment Form'!$C543=\"ROC\"),\"-\",IF(AND('Enrollment Form'!$B543=\"Subscriber\",'Enrollment Form'!$C543=\"Enroll\",'Enrollment Form'!$AQ543<>\"\"),\"Y\",\"N\")))","v":""},{"$f":"IF($B536=\"N\",\"\",IF(OR('Enrollment Form'!$B543<>\"Subscriber\",'Enrollment Form'!$C543=\"ROC\"),\"-\",IF(AND('Enrollment Form'!$B543=\"Subscriber\",'Enrollment Form'!$C543=\"Enroll\",'Enrollment Form'!$AS543<>\"\"),\"Y\",\"N\")))","v":""},{"$f":"IF($B536=\"N\",\"\",IF($Q536=\"-\",\"-\",IF(AND($Q536=\"Y\",'Enrollment Form'!$AS543=\"No\"),\"-\",IF(AND($Q536=\"Y\",'Enrollment Form'!$AS543=\"Yes\",'Enrollment Form'!$AT543<>\"\"),\"Y\",\"N\"))))","v":""},{"$f":"IF($B536=\"N\",\"\",IF(OR('Enrollment Form'!$B543<>\"Subscriber\",'Enrollment Form'!$C543=\"ROC\"),\"-\",IF(AND('Enrollment Form'!$B543=\"Subscriber\",'Enrollment Form'!$C543=\"Enroll\",'Enrollment Form'!$CV543<>\"\"),\"Y\",\"N\")))","v":""},{"$f":"IF($B536=\"N\",\"\",IF($S536=\"-\",\"-\",IF(AND($S536=\"Y\",'Enrollment Form'!$CV543=\"No\"),\"-\",IF(AND($S536=\"Y\",'Enrollment Form'!$CV543=\"Yes\",'Enrollment Form'!$CW543<>\"\"),\"Y\",\"N\"))))","v":""},{"$f":"IF(OR('Enrollment Form'!$AY543=\"Yes\",'Enrollment Form'!$AY543=\"\"),\"-\",IF(OR(AND('Enrollment Form'!$AY543=\"No\",ISERROR(FIND(\"HMO\",VLOOKUP('Enrollment Form'!G543,'Enrollment Form'!H$11:J$1000,3,FALSE),1))=FALSE,COUNTA('Enrollment Form'!$AZ543:$BC543)=4),AND('Enrollment Form'!$AY543=\"No\",ISERROR(FIND(\"HMO\",VLOOKUP('Enrollment Form'!G543,'Enrollment Form'!H$11:J$1000,3,FALSE),1))=FALSE,COUNTA('Enrollment Form'!$BT543:$BW543)=4)),\"Y\",\"N\"))","v":"-"},{"$f":"IF($B536=\"N\",\"\",IF('Enrollment Form'!$B543=\"Subscriber\",\"-\",IF(COUNTA('Enrollment Form'!$BL543,'Enrollment Form'!$BN543)=2,\"Y\",\"N\")))","v":""},{"$f":"IF($B536=\"N\",\"\",IF(OR('Enrollment Form'!$AX543=\"\",'Enrollment Form'!$AX543=\"No\"),\"-\",IF(AND('Enrollment Form'!$AX543=\"Yes\",COUNTA('Enrollment Form'!$CR543)=1),\"Y\",\"N\")))","v":""},{"$f":"IF(OR('Enrollment Form'!$CR543=\"\",'Enrollment Form'!$CR543=\"No\"),\"-\",IF(COUNTA('Enrollment Form'!$CT543:$CU543)=2,\"Y\",\"N\"))","v":"-"},{"$f":"IF($B536=\"N\",\"\",IF(COUNTIF('Enrollment Form'!$DG543:$DP543,\"Other\")=COUNTA('Enrollment Form'!$DK543,'Enrollment Form'!$DH543,'Enrollment Form'!$DN543,'Enrollment Form'!$DQ543),\"Y\",\"N\"))","v":""},{"$f":"IF($B536=\"N\",\"\",IF(OR('Enrollment Form'!B543<>\"Subscriber\",'Enrollment Form'!C543=\"ROC\",COUNTIF('Enrollment Form'!AV543:AW543,\"Yes\")>=1),\"-\",IF(AND('Enrollment Form'!C543=\"Enroll\",COUNTIF('Enrollment Form'!AV543:AW543,\"No\")=2,'Enrollment Form'!AX543=\"\"),\"N\",\"Y\")))","v":""},{"$f":"IF(OR(B536=\"N\",'Enrollment Form'!B543<>\"Subscriber\",'Enrollment Form'!C543=\"ROC\",'Enrollment Form'!O543<>\"Multiple of Salary\"),\"-\",IF(COUNTA('Enrollment Form'!T543:U543)<2,\"N\",\"Y\"))","v":"-"},{"$f":"IF(B536=\"N\",\"\",IF(OR('Enrollment Form'!C543=\"ROC\",'Enrollment Form'!B543<>\"Subscriber\",'Enrollment Form'!O543=\"Waive\",'Enrollment Form'!O543=\"\"),\"-\",IF('Enrollment Form'!P543=\"\",\"N\",\"Y\")))","v":""},{"$f":"IF($B536=\"N\",\"\",IF(AND('Enrollment Form'!$C543=\"ROC\",'Enrollment Form'!$DR543<>\"\"),\"Y\",IF(AND('Enrollment Form'!$C543=\"ROC\",'Enrollment Form'!$DR543=\"\"),\"N\",IF(AND('Enrollment Form'!$C543=\"Enroll\",'Enrollment Form'!$B543=\"Subscriber\",'Enrollment Form'!$CX543=\"No\",'Enrollment Form'!$DR543=\"\"),\"N\",IF(AND('Enrollment Form'!$C543=\"Enroll\",'Enrollment Form'!$B543=\"Subscriber\",'Enrollment Form'!$CX543=\"Yes\"),\"-\",\"Y\")))))","v":""},{"$f":"IF($B536=\"N\",\"\",IF(AND('Enrollment Form'!$C543=\"ROC\",'Enrollment Form'!$DS543<>\"\"),\"Y\",IF(AND('Enrollment Form'!$C543=\"ROC\",'Enrollment Form'!$DS543=\"\"),\"N\",IF(AND('Enrollment Form'!$C543=\"Enroll\",'Enrollment Form'!$B543=\"Subscriber\",'Enrollment Form'!$CX543=\"No\",'Enrollment Form'!$DS543=\"\"),\"N\",IF(AND('Enrollment Form'!$C543=\"Enroll\",'Enrollment Form'!$B543=\"Subscriber\",'Enrollment Form'!$CX543=\"Yes\"),\"-\",\"Y\")))))","v":""},{"$f":"IF('Enrollment Form'!AH543=\"\",\"\",IF(ISERROR(SEARCH(\".\",'Enrollment Form'!AH543,SEARCH(\"@\",'Enrollment Form'!AH543))),\"N\",\"Y\"))","v":""},{"$f":"IF(OR($B536=\"N\",'Enrollment Form'!$G543=\"\"),\"\",IF('Enrollment Form'!$B543<>\"Subscriber\",\"-\",IF(COUNTIF('Enrollment Form'!$AV543:$AW543,\"Yes\")=2,\"N\",\"Y\")))","v":""},{"$f":"IF(OR('Enrollment Form'!$CJ543=\"\",'Enrollment Form'!$CJ543=\"No\"),\"-\",IF(AND('Enrollment Form'!$CJ543=\"Yes\",'Enrollment Form'!$CK543=\"\"),\"N\",\"Y\"))","v":"-"},{"$f":"IF(OR('Enrollment Form'!$CL543=\"\",'Enrollment Form'!$CL543=\"No\"),\"-\",IF(AND('Enrollment Form'!$CL543=\"Yes\",'Enrollment Form'!$CM543=\"\"),\"N\",\"Y\"))","v":"-"},{"$f":"IF(OR('Enrollment Form'!$CN543=\"\",'Enrollment Form'!$CN543=\"No\"),\"-\",IF(AND('Enrollment Form'!$CN543=\"Yes\",'Enrollment Form'!$CO543=\"\"),\"N\",\"Y\"))","v":"-"},{"$f":"IF(OR('Enrollment Form'!$CN543=\"\",'Enrollment Form'!$CN543=\"No\"),\"-\",IF(AND('Enrollment Form'!$CN543=\"Yes\",'Enrollment Form'!$CP543=\"\"),\"N\",\"Y\"))","v":"-"},{"$f":"IF('Enrollment Form'!B543<>\"Subscriber\",\"-\",IF(AND('Enrollment Form'!B543=\"Subscriber\",'Enrollment Form'!C543=\"Enroll\",'Enrollment Form'!AA543=\"\"),\"N\",\"Y\"))","v":"-"},{"$f":"IF(OR('Enrollment Form'!B543=\"Subscriber\",'Enrollment Form'!B543=\"\"),\"-\",IF('Enrollment Form'!BP543=\"\",\"N\",\"Y\"))","v":"-"},{"$f":"IF('Enrollment Form'!B543<>\"Subscriber\",\"-\",IF(AND('Enrollment Form'!B543=\"Subscriber\",'Enrollment Form'!G543=\"\"),\"N\",\"Y\"))","v":"-"},{"$f":"IF('Enrollment Form'!A543=\"\",\"\",IF('Enrollment Form'!B543=\"Subscriber\",\"-\",IF(AND('Enrollment Form'!B543<>\"Subscriber\",'Enrollment Form'!G543='Enrollment Form'!H543),\"N\",\"Y\")))","v":""},0]
[544,{"$f":"IF('Enrollment Form'!$A544<>\"\",\"Y\",\"N\")","v":"N"},{"$f":"IF(AND('Enrollment Form'!$B544=\"\",'Enrollment Form'!$C544<>\"\"),\"N\",IF($B537=\"N\",\"\",\"Y\"))","v":""},{"$f":"IF(OR($B537=\"N\",'Enrollment Form'!G544=\"\"),\"\",IF('Enrollment Form'!$B544<>\"Subscriber\",\"\",IF('Enrollment Form'!$G544='Enrollment Form'!$H544,\"Y\",\"N\")))","v":""},{"$f":"IF($B537=\"N\",\"\",IF(AND(COUNTIFS('Enrollment Form'!$H$11:$H$1000,'Enrollment Form'!$H544,'Enrollment Form'!$B$11:$B$1000,'Enrollment Form'!$B544)>1,'Enrollment Form'!$H544<>\"\"),\"N\",\"Y\"))","v":""},{"$f":"IF($B537=\"N\",\"\",IF(LEN('Enrollment Form'!$Y544)=0,\"\",IF(LEN('Enrollment Form'!$Y544)<>5,\"N\",\"Y\")))","v":""},{"$f":"IF($B537=\"N\",\"\",IF(LEN('Enrollment Form'!$AD544=0),\"\",IF(LEN('Enrollment Form'!$AD544)<>5,\"N\",\"Y\")))","v":""},{"$f":"IF($B537=\"N\",\"\",IF(LEN('Enrollment Form'!$BS544=0),\"\",IF(LEN('Enrollment Form'!$BS544)<>5,\"N\",\"Y\")))","v":""},{"$f":"IF($B537=\"N\",\"\",IF(LEN('Enrollment Form'!$AE544)=0,\"\",IF(LEN('Enrollment Form'!$AE544)<>10,\"N\",\"Y\")))","v":""},{"$f":"IF($B537=\"N\",\"\",IF(LEN('Enrollment Form'!$AF544)=0,\"\",IF(LEN('Enrollment Form'!$AF544)<>10,\"N\",\"Y\")))","v":""},{"$f":"IF('Enrollment Form'!$O544<>\"Graded\",\"-\",IF(AND('Enrollment Form'!$O544=\"Graded\",'Enrollment Form'!$AR544<>\"\"),\"Y\",\"N\"))","v":"-"},{"$f":"IF($B537=\"N\",\"\",IF(OR('Enrollment Form'!$B544<>\"Subscriber\",'Enrollment Form'!$C544=\"ROC\"),\"-\",IF(AND('Enrollment Form'!$B544=\"Subscriber\",'Enrollment Form'!$C544=\"Enroll\",'Enrollment Form'!$AJ544<>\"\"),\"Y\",\"N\")))","v":""},{"$f":"IF($B537=\"N\",\"\",IF(OR('Enrollment Form'!$B544<>\"Subscriber\",'Enrollment Form'!$C544=\"ROC\"),\"-\",IF(AND('Enrollment Form'!$B544=\"Subscriber\",'Enrollment Form'!$C544=\"Enroll\",'Enrollment Form'!$AK544<>\"\"),\"Y\",\"N\")))","v":""},{"$f":"IF($B537=\"N\",\"\",IF(OR('Enrollment Form'!$B544<>\"Subscriber\",'Enrollment Form'!$C544=\"ROC\"),\"-\",IF(AND('Enrollment Form'!$B544=\"Subscriber\",'Enrollment Form'!$C544=\"Enroll\",'Enrollment Form'!$AL544<>\"\"),\"Y\",\"N\")))","v":""},{"$f":"IF($B537=\"N\",\"\",IF(OR('Enrollment Form'!$B544<>\"Subscriber\",'Enrollment Form'!$C544=\"ROC\"),\"-\",IF(AND('Enrollment Form'!$B544=\"Subscriber\",'Enrollment Form'!$C544=\"Enroll\",'Enrollment Form'!$AP544<>\"\"),\"Y\",\"N\")))","v":""},{"$f":"IF($B537=\"N\",\"\",IF(OR('Enrollment Form'!$B544<>\"Subscriber\",'Enrollment Form'!$C544=\"ROC\"),\"-\",IF(AND('Enrollment Form'!$B544=\"Subscriber\",'Enrollment Form'!$C544=\"Enroll\",'Enrollment Form'!$AQ544<>\"\"),\"Y\",\"N\")))","v":""},{"$f":"IF($B537=\"N\",\"\",IF(OR('Enrollment Form'!$B544<>\"Subscriber\",'Enrollment Form'!$C544=\"ROC\"),\"-\",IF(AND('Enrollment Form'!$B544=\"Subscriber\",'Enrollment Form'!$C544=\"Enroll\",'Enrollment Form'!$AS544<>\"\"),\"Y\",\"N\")))","v":""},{"$f":"IF($B537=\"N\",\"\",IF($Q537=\"-\",\"-\",IF(AND($Q537=\"Y\",'Enrollment Form'!$AS544=\"No\"),\"-\",IF(AND($Q537=\"Y\",'Enrollment Form'!$AS544=\"Yes\",'Enrollment Form'!$AT544<>\"\"),\"Y\",\"N\"))))","v":""},{"$f":"IF($B537=\"N\",\"\",IF(OR('Enrollment Form'!$B544<>\"Subscriber\",'Enrollment Form'!$C544=\"ROC\"),\"-\",IF(AND('Enrollment Form'!$B544=\"Subscriber\",'Enrollment Form'!$C544=\"Enroll\",'Enrollment Form'!$CV544<>\"\"),\"Y\",\"N\")))","v":""},{"$f":"IF($B537=\"N\",\"\",IF($S537=\"-\",\"-\",IF(AND($S537=\"Y\",'Enrollment Form'!$CV544=\"No\"),\"-\",IF(AND($S537=\"Y\",'Enrollment Form'!$CV544=\"Yes\",'Enrollment Form'!$CW544<>\"\"),\"Y\",\"N\"))))","v":""},{"$f":"IF(OR('Enrollment Form'!$AY544=\"Yes\",'Enrollment Form'!$AY544=\"\"),\"-\",IF(OR(AND('Enrollment Form'!$AY544=\"No\",ISERROR(FIND(\"HMO\",VLOOKUP('Enrollment Form'!G544,'Enrollment Form'!H$11:J$1000,3,FALSE),1))=FALSE,COUNTA('Enrollment Form'!$AZ544:$BC544)=4),AND('Enrollment Form'!$AY544=\"No\",ISERROR(FIND(\"HMO\",VLOOKUP('Enrollment Form'!G544,'Enrollment Form'!H$11:J$1000,3,FALSE),1))=FALSE,COUNTA('Enrollment Form'!$BT544:$BW544)=4)),\"Y\",\"N\"))","v":"-"},{"$f":"IF($B537=\"N\",\"\",IF('Enrollment Form'!$B544=\"Subscriber\",\"-\",IF(COUNTA('Enrollment Form'!$BL544,'Enrollment Form'!$BN544)=2,\"Y\",\"N\")))","v":""},{"$f":"IF($B537=\"N\",\"\",IF(OR('Enrollment Form'!$AX544=\"\",'Enrollment Form'!$AX544=\"No\"),\"-\",IF(AND('Enrollment Form'!$AX544=\"Yes\",COUNTA('Enrollment Form'!$CR544)=1),\"Y\",\"N\")))","v":""},{"$f":"IF(OR('Enrollment Form'!$CR544=\"\",'Enrollment Form'!$CR544=\"No\"),\"-\",IF(COUNTA('Enrollment Form'!$CT544:$CU544)=2,\"Y\",\"N\"))","v":"-"},{"$f":"IF($B537=\"N\",\"\",IF(COUNTIF('Enrollment Form'!$DG544:$DP544,\"Other\")=COUNTA('Enrollment Form'!$DK544,'Enrollment Form'!$DH544,'Enrollment Form'!$DN544,'Enrollment Form'!$DQ544),\"Y\",\"N\"))","v":""},{"$f":"IF($B537=\"N\",\"\",IF(OR('Enrollment Form'!B544<>\"Subscriber\",'Enrollment Form'!C544=\"ROC\",COUNTIF('Enrollment Form'!AV544:AW544,\"Yes\")>=1),\"-\",IF(AND('Enrollment Form'!C544=\"Enroll\",COUNTIF('Enrollment Form'!AV544:AW544,\"No\")=2,'Enrollment Form'!AX544=\"\"),\"N\",\"Y\")))","v":""},{"$f":"IF(OR(B537=\"N\",'Enrollment Form'!B544<>\"Subscriber\",'Enrollment Form'!C544=\"ROC\",'Enrollment Form'!O544<>\"Multiple of Salary\"),\"-\",IF(COUNTA('Enrollment Form'!T544:U544)<2,\"N\",\"Y\"))","v":"-"},{"$f":"IF(B537=\"N\",\"\",IF(OR('Enrollment Form'!C544=\"ROC\",'Enrollment Form'!B544<>\"Subscriber\",'Enrollment Form'!O544=\"Waive\",'Enrollment Form'!O544=\"\"),\"-\",IF('Enrollment Form'!P544=\"\",\"N\",\"Y\")))","v":""},{"$f":"IF($B537=\"N\",\"\",IF(AND('Enrollment Form'!$C544=\"ROC\",'Enrollment Form'!$DR544<>\"\"),\"Y\",IF(AND('Enrollment Form'!$C544=\"ROC\",'Enrollment Form'!$DR544=\"\"),\"N\",IF(AND('Enrollment Form'!$C544=\"Enroll\",'Enrollment Form'!$B544=\"Subscriber\",'Enrollment Form'!$CX544=\"No\",'Enrollment Form'!$DR544=\"\"),\"N\",IF(AND('Enrollment Form'!$C544=\"Enroll\",'Enrollment Form'!$B544=\"Subscriber\",'Enrollment Form'!$CX544=\"Yes\"),\"-\",\"Y\")))))","v":""},{"$f":"IF($B537=\"N\",\"\",IF(AND('Enrollment Form'!$C544=\"ROC\",'Enrollment Form'!$DS544<>\"\"),\"Y\",IF(AND('Enrollment Form'!$C544=\"ROC\",'Enrollment Form'!$DS544=\"\"),\"N\",IF(AND('Enrollment Form'!$C544=\"Enroll\",'Enrollment Form'!$B544=\"Subscriber\",'Enrollment Form'!$CX544=\"No\",'Enrollment Form'!$DS544=\"\"),\"N\",IF(AND('Enrollment Form'!$C544=\"Enroll\",'Enrollment Form'!$B544=\"Subscriber\",'Enrollment Form'!$CX544=\"Yes\"),\"-\",\"Y\")))))","v":""},{"$f":"IF('Enrollment Form'!AH544=\"\",\"\",IF(ISERROR(SEARCH(\".\",'Enrollment Form'!AH544,SEARCH(\"@\",'Enrollment Form'!AH544))),\"N\",\"Y\"))","v":""},{"$f":"IF(OR($B537=\"N\",'Enrollment Form'!$G544=\"\"),\"\",IF('Enrollment Form'!$B544<>\"Subscriber\",\"-\",IF(COUNTIF('Enrollment Form'!$AV544:$AW544,\"Yes\")=2,\"N\",\"Y\")))","v":""},{"$f":"IF(OR('Enrollment Form'!$CJ544=\"\",'Enrollment Form'!$CJ544=\"No\"),\"-\",IF(AND('Enrollment Form'!$CJ544=\"Yes\",'Enrollment Form'!$CK544=\"\"),\"N\",\"Y\"))","v":"-"},{"$f":"IF(OR('Enrollment Form'!$CL544=\"\",'Enrollment Form'!$CL544=\"No\"),\"-\",IF(AND('Enrollment Form'!$CL544=\"Yes\",'Enrollment Form'!$CM544=\"\"),\"N\",\"Y\"))","v":"-"},{"$f":"IF(OR('Enrollment Form'!$CN544=\"\",'Enrollment Form'!$CN544=\"No\"),\"-\",IF(AND('Enrollment Form'!$CN544=\"Yes\",'Enrollment Form'!$CO544=\"\"),\"N\",\"Y\"))","v":"-"},{"$f":"IF(OR('Enrollment Form'!$CN544=\"\",'Enrollment Form'!$CN544=\"No\"),\"-\",IF(AND('Enrollment Form'!$CN544=\"Yes\",'Enrollment Form'!$CP544=\"\"),\"N\",\"Y\"))","v":"-"},{"$f":"IF('Enrollment Form'!B544<>\"Subscriber\",\"-\",IF(AND('Enrollment Form'!B544=\"Subscriber\",'Enrollment Form'!C544=\"Enroll\",'Enrollment Form'!AA544=\"\"),\"N\",\"Y\"))","v":"-"},{"$f":"IF(OR('Enrollment Form'!B544=\"Subscriber\",'Enrollment Form'!B544=\"\"),\"-\",IF('Enrollment Form'!BP544=\"\",\"N\",\"Y\"))","v":"-"},{"$f":"IF('Enrollment Form'!B544<>\"Subscriber\",\"-\",IF(AND('Enrollment Form'!B544=\"Subscriber\",'Enrollment Form'!G544=\"\"),\"N\",\"Y\"))","v":"-"},{"$f":"IF('Enrollment Form'!A544=\"\",\"\",IF('Enrollment Form'!B544=\"Subscriber\",\"-\",IF(AND('Enrollment Form'!B544<>\"Subscriber\",'Enrollment Form'!G544='Enrollment Form'!H544),\"N\",\"Y\")))","v":""},0]
[545,{"$f":"IF('Enrollment Form'!$A545<>\"\",\"Y\",\"N\")","v":"N"},{"$f":"IF(AND('Enrollment Form'!$B545=\"\",'Enrollment Form'!$C545<>\"\"),\"N\",IF($B538=\"N\",\"\",\"Y\"))","v":""},{"$f":"IF(OR($B538=\"N\",'Enrollment Form'!G545=\"\"),\"\",IF('Enrollment Form'!$B545<>\"Subscriber\",\"\",IF('Enrollment Form'!$G545='Enrollment Form'!$H545,\"Y\",\"N\")))","v":""},{"$f":"IF($B538=\"N\",\"\",IF(AND(COUNTIFS('Enrollment Form'!$H$11:$H$1000,'Enrollment Form'!$H545,'Enrollment Form'!$B$11:$B$1000,'Enrollment Form'!$B545)>1,'Enrollment Form'!$H545<>\"\"),\"N\",\"Y\"))","v":""},{"$f":"IF($B538=\"N\",\"\",IF(LEN('Enrollment Form'!$Y545)=0,\"\",IF(LEN('Enrollment Form'!$Y545)<>5,\"N\",\"Y\")))","v":""},{"$f":"IF($B538=\"N\",\"\",IF(LEN('Enrollment Form'!$AD545=0),\"\",IF(LEN('Enrollment Form'!$AD545)<>5,\"N\",\"Y\")))","v":""},{"$f":"IF($B538=\"N\",\"\",IF(LEN('Enrollment Form'!$BS545=0),\"\",IF(LEN('Enrollment Form'!$BS545)<>5,\"N\",\"Y\")))","v":""},{"$f":"IF($B538=\"N\",\"\",IF(LEN('Enrollment Form'!$AE545)=0,\"\",IF(LEN('Enrollment Form'!$AE545)<>10,\"N\",\"Y\")))","v":""},{"$f":"IF($B538=\"N\",\"\",IF(LEN('Enrollment Form'!$AF545)=0,\"\",IF(LEN('Enrollment Form'!$AF545)<>10,\"N\",\"Y\")))","v":""},{"$f":"IF('Enrollment Form'!$O545<>\"Graded\",\"-\",IF(AND('Enrollment Form'!$O545=\"Graded\",'Enrollment Form'!$AR545<>\"\"),\"Y\",\"N\"))","v":"-"},{"$f":"IF($B538=\"N\",\"\",IF(OR('Enrollment Form'!$B545<>\"Subscriber\",'Enrollment Form'!$C545=\"ROC\"),\"-\",IF(AND('Enrollment Form'!$B545=\"Subscriber\",'Enrollment Form'!$C545=\"Enroll\",'Enrollment Form'!$AJ545<>\"\"),\"Y\",\"N\")))","v":""},{"$f":"IF($B538=\"N\",\"\",IF(OR('Enrollment Form'!$B545<>\"Subscriber\",'Enrollment Form'!$C545=\"ROC\"),\"-\",IF(AND('Enrollment Form'!$B545=\"Subscriber\",'Enrollment Form'!$C545=\"Enroll\",'Enrollment Form'!$AK545<>\"\"),\"Y\",\"N\")))","v":""},{"$f":"IF($B538=\"N\",\"\",IF(OR('Enrollment Form'!$B545<>\"Subscriber\",'Enrollment Form'!$C545=\"ROC\"),\"-\",IF(AND('Enrollment Form'!$B545=\"Subscriber\",'Enrollment Form'!$C545=\"Enroll\",'Enrollment Form'!$AL545<>\"\"),\"Y\",\"N\")))","v":""},{"$f":"IF($B538=\"N\",\"\",IF(OR('Enrollment Form'!$B545<>\"Subscriber\",'Enrollment Form'!$C545=\"ROC\"),\"-\",IF(AND('Enrollment Form'!$B545=\"Subscriber\",'Enrollment Form'!$C545=\"Enroll\",'Enrollment Form'!$AP545<>\"\"),\"Y\",\"N\")))","v":""},{"$f":"IF($B538=\"N\",\"\",IF(OR('Enrollment Form'!$B545<>\"Subscriber\",'Enrollment Form'!$C545=\"ROC\"),\"-\",IF(AND('Enrollment Form'!$B545=\"Subscriber\",'Enrollment Form'!$C545=\"Enroll\",'Enrollment Form'!$AQ545<>\"\"),\"Y\",\"N\")))","v":""},{"$f":"IF($B538=\"N\",\"\",IF(OR('Enrollment Form'!$B545<>\"Subscriber\",'Enrollment Form'!$C545=\"ROC\"),\"-\",IF(AND('Enrollment Form'!$B545=\"Subscriber\",'Enrollment Form'!$C545=\"Enroll\",'Enrollment Form'!$AS545<>\"\"),\"Y\",\"N\")))","v":""},{"$f":"IF($B538=\"N\",\"\",IF($Q538=\"-\",\"-\",IF(AND($Q538=\"Y\",'Enrollment Form'!$AS545=\"No\"),\"-\",IF(AND($Q538=\"Y\",'Enrollment Form'!$AS545=\"Yes\",'Enrollment Form'!$AT545<>\"\"),\"Y\",\"N\"))))","v":""},{"$f":"IF($B538=\"N\",\"\",IF(OR('Enrollment Form'!$B545<>\"Subscriber\",'Enrollment Form'!$C545=\"ROC\"),\"-\",IF(AND('Enrollment Form'!$B545=\"Subscriber\",'Enrollment Form'!$C545=\"Enroll\",'Enrollment Form'!$CV545<>\"\"),\"Y\",\"N\")))","v":""},{"$f":"IF($B538=\"N\",\"\",IF($S538=\"-\",\"-\",IF(AND($S538=\"Y\",'Enrollment Form'!$CV545=\"No\"),\"-\",IF(AND($S538=\"Y\",'Enrollment Form'!$CV545=\"Yes\",'Enrollment Form'!$CW545<>\"\"),\"Y\",\"N\"))))","v":""},{"$f":"IF(OR('Enrollment Form'!$AY545=\"Yes\",'Enrollment Form'!$AY545=\"\"),\"-\",IF(OR(AND('Enrollment Form'!$AY545=\"No\",ISERROR(FIND(\"HMO\",VLOOKUP('Enrollment Form'!G545,'Enrollment Form'!H$11:J$1000,3,FALSE),1))=FALSE,COUNTA('Enrollment Form'!$AZ545:$BC545)=4),AND('Enrollment Form'!$AY545=\"No\",ISERROR(FIND(\"HMO\",VLOOKUP('Enrollment Form'!G545,'Enrollment Form'!H$11:J$1000,3,FALSE),1))=FALSE,COUNTA('Enrollment Form'!$BT545:$BW545)=4)),\"Y\",\"N\"))","v":"-"},{"$f":"IF($B538=\"N\",\"\",IF('Enrollment Form'!$B545=\"Subscriber\",\"-\",IF(COUNTA('Enrollment Form'!$BL545,'Enrollment Form'!$BN545)=2,\"Y\",\"N\")))","v":""},{"$f":"IF($B538=\"N\",\"\",IF(OR('Enrollment Form'!$AX545=\"\",'Enrollment Form'!$AX545=\"No\"),\"-\",IF(AND('Enrollment Form'!$AX545=\"Yes\",COUNTA('Enrollment Form'!$CR545)=1),\"Y\",\"N\")))","v":""},{"$f":"IF(OR('Enrollment Form'!$CR545=\"\",'Enrollment Form'!$CR545=\"No\"),\"-\",IF(COUNTA('Enrollment Form'!$CT545:$CU545)=2,\"Y\",\"N\"))","v":"-"},{"$f":"IF($B538=\"N\",\"\",IF(COUNTIF('Enrollment Form'!$DG545:$DP545,\"Other\")=COUNTA('Enrollment Form'!$DK545,'Enrollment Form'!$DH545,'Enrollment Form'!$DN545,'Enrollment Form'!$DQ545),\"Y\",\"N\"))","v":""},{"$f":"IF($B538=\"N\",\"\",IF(OR('Enrollment Form'!B545<>\"Subscriber\",'Enrollment Form'!C545=\"ROC\",COUNTIF('Enrollment Form'!AV545:AW545,\"Yes\")>=1),\"-\",IF(AND('Enrollment Form'!C545=\"Enroll\",COUNTIF('Enrollment Form'!AV545:AW545,\"No\")=2,'Enrollment Form'!AX545=\"\"),\"N\",\"Y\")))","v":""},{"$f":"IF(OR(B538=\"N\",'Enrollment Form'!B545<>\"Subscriber\",'Enrollment Form'!C545=\"ROC\",'Enrollment Form'!O545<>\"Multiple of Salary\"),\"-\",IF(COUNTA('Enrollment Form'!T545:U545)<2,\"N\",\"Y\"))","v":"-"},{"$f":"IF(B538=\"N\",\"\",IF(OR('Enrollment Form'!C545=\"ROC\",'Enrollment Form'!B545<>\"Subscriber\",'Enrollment Form'!O545=\"Waive\",'Enrollment Form'!O545=\"\"),\"-\",IF('Enrollment Form'!P545=\"\",\"N\",\"Y\")))","v":""},{"$f":"IF($B538=\"N\",\"\",IF(AND('Enrollment Form'!$C545=\"ROC\",'Enrollment Form'!$DR545<>\"\"),\"Y\",IF(AND('Enrollment Form'!$C545=\"ROC\",'Enrollment Form'!$DR545=\"\"),\"N\",IF(AND('Enrollment Form'!$C545=\"Enroll\",'Enrollment Form'!$B545=\"Subscriber\",'Enrollment Form'!$CX545=\"No\",'Enrollment Form'!$DR545=\"\"),\"N\",IF(AND('Enrollment Form'!$C545=\"Enroll\",'Enrollment Form'!$B545=\"Subscriber\",'Enrollment Form'!$CX545=\"Yes\"),\"-\",\"Y\")))))","v":""},{"$f":"IF($B538=\"N\",\"\",IF(AND('Enrollment Form'!$C545=\"ROC\",'Enrollment Form'!$DS545<>\"\"),\"Y\",IF(AND('Enrollment Form'!$C545=\"ROC\",'Enrollment Form'!$DS545=\"\"),\"N\",IF(AND('Enrollment Form'!$C545=\"Enroll\",'Enrollment Form'!$B545=\"Subscriber\",'Enrollment Form'!$CX545=\"No\",'Enrollment Form'!$DS545=\"\"),\"N\",IF(AND('Enrollment Form'!$C545=\"Enroll\",'Enrollment Form'!$B545=\"Subscriber\",'Enrollment Form'!$CX545=\"Yes\"),\"-\",\"Y\")))))","v":""},{"$f":"IF('Enrollment Form'!AH545=\"\",\"\",IF(ISERROR(SEARCH(\".\",'Enrollment Form'!AH545,SEARCH(\"@\",'Enrollment Form'!AH545))),\"N\",\"Y\"))","v":""},{"$f":"IF(OR($B538=\"N\",'Enrollment Form'!$G545=\"\"),\"\",IF('Enrollment Form'!$B545<>\"Subscriber\",\"-\",IF(COUNTIF('Enrollment Form'!$AV545:$AW545,\"Yes\")=2,\"N\",\"Y\")))","v":""},{"$f":"IF(OR('Enrollment Form'!$CJ545=\"\",'Enrollment Form'!$CJ545=\"No\"),\"-\",IF(AND('Enrollment Form'!$CJ545=\"Yes\",'Enrollment Form'!$CK545=\"\"),\"N\",\"Y\"))","v":"-"},{"$f":"IF(OR('Enrollment Form'!$CL545=\"\",'Enrollment Form'!$CL545=\"No\"),\"-\",IF(AND('Enrollment Form'!$CL545=\"Yes\",'Enrollment Form'!$CM545=\"\"),\"N\",\"Y\"))","v":"-"},{"$f":"IF(OR('Enrollment Form'!$CN545=\"\",'Enrollment Form'!$CN545=\"No\"),\"-\",IF(AND('Enrollment Form'!$CN545=\"Yes\",'Enrollment Form'!$CO545=\"\"),\"N\",\"Y\"))","v":"-"},{"$f":"IF(OR('Enrollment Form'!$CN545=\"\",'Enrollment Form'!$CN545=\"No\"),\"-\",IF(AND('Enrollment Form'!$CN545=\"Yes\",'Enrollment Form'!$CP545=\"\"),\"N\",\"Y\"))","v":"-"},{"$f":"IF('Enrollment Form'!B545<>\"Subscriber\",\"-\",IF(AND('Enrollment Form'!B545=\"Subscriber\",'Enrollment Form'!C545=\"Enroll\",'Enrollment Form'!AA545=\"\"),\"N\",\"Y\"))","v":"-"},{"$f":"IF(OR('Enrollment Form'!B545=\"Subscriber\",'Enrollment Form'!B545=\"\"),\"-\",IF('Enrollment Form'!BP545=\"\",\"N\",\"Y\"))","v":"-"},{"$f":"IF('Enrollment Form'!B545<>\"Subscriber\",\"-\",IF(AND('Enrollment Form'!B545=\"Subscriber\",'Enrollment Form'!G545=\"\"),\"N\",\"Y\"))","v":"-"},{"$f":"IF('Enrollment Form'!A545=\"\",\"\",IF('Enrollment Form'!B545=\"Subscriber\",\"-\",IF(AND('Enrollment Form'!B545<>\"Subscriber\",'Enrollment Form'!G545='Enrollment Form'!H545),\"N\",\"Y\")))","v":""},0]
[546,{"$f":"IF('Enrollment Form'!$A546<>\"\",\"Y\",\"N\")","v":"N"},{"$f":"IF(AND('Enrollment Form'!$B546=\"\",'Enrollment Form'!$C546<>\"\"),\"N\",IF($B539=\"N\",\"\",\"Y\"))","v":""},{"$f":"IF(OR($B539=\"N\",'Enrollment Form'!G546=\"\"),\"\",IF('Enrollment Form'!$B546<>\"Subscriber\",\"\",IF('Enrollment Form'!$G546='Enrollment Form'!$H546,\"Y\",\"N\")))","v":""},{"$f":"IF($B539=\"N\",\"\",IF(AND(COUNTIFS('Enrollment Form'!$H$11:$H$1000,'Enrollment Form'!$H546,'Enrollment Form'!$B$11:$B$1000,'Enrollment Form'!$B546)>1,'Enrollment Form'!$H546<>\"\"),\"N\",\"Y\"))","v":""},{"$f":"IF($B539=\"N\",\"\",IF(LEN('Enrollment Form'!$Y546)=0,\"\",IF(LEN('Enrollment Form'!$Y546)<>5,\"N\",\"Y\")))","v":""},{"$f":"IF($B539=\"N\",\"\",IF(LEN('Enrollment Form'!$AD546=0),\"\",IF(LEN('Enrollment Form'!$AD546)<>5,\"N\",\"Y\")))","v":""},{"$f":"IF($B539=\"N\",\"\",IF(LEN('Enrollment Form'!$BS546=0),\"\",IF(LEN('Enrollment Form'!$BS546)<>5,\"N\",\"Y\")))","v":""},{"$f":"IF($B539=\"N\",\"\",IF(LEN('Enrollment Form'!$AE546)=0,\"\",IF(LEN('Enrollment Form'!$AE546)<>10,\"N\",\"Y\")))","v":""},{"$f":"IF($B539=\"N\",\"\",IF(LEN('Enrollment Form'!$AF546)=0,\"\",IF(LEN('Enrollment Form'!$AF546)<>10,\"N\",\"Y\")))","v":""},{"$f":"IF('Enrollment Form'!$O546<>\"Graded\",\"-\",IF(AND('Enrollment Form'!$O546=\"Graded\",'Enrollment Form'!$AR546<>\"\"),\"Y\",\"N\"))","v":"-"},{"$f":"IF($B539=\"N\",\"\",IF(OR('Enrollment Form'!$B546<>\"Subscriber\",'Enrollment Form'!$C546=\"ROC\"),\"-\",IF(AND('Enrollment Form'!$B546=\"Subscriber\",'Enrollment Form'!$C546=\"Enroll\",'Enrollment Form'!$AJ546<>\"\"),\"Y\",\"N\")))","v":""},{"$f":"IF($B539=\"N\",\"\",IF(OR('Enrollment Form'!$B546<>\"Subscriber\",'Enrollment Form'!$C546=\"ROC\"),\"-\",IF(AND('Enrollment Form'!$B546=\"Subscriber\",'Enrollment Form'!$C546=\"Enroll\",'Enrollment Form'!$AK546<>\"\"),\"Y\",\"N\")))","v":""},{"$f":"IF($B539=\"N\",\"\",IF(OR('Enrollment Form'!$B546<>\"Subscriber\",'Enrollment Form'!$C546=\"ROC\"),\"-\",IF(AND('Enrollment Form'!$B546=\"Subscriber\",'Enrollment Form'!$C546=\"Enroll\",'Enrollment Form'!$AL546<>\"\"),\"Y\",\"N\")))","v":""},{"$f":"IF($B539=\"N\",\"\",IF(OR('Enrollment Form'!$B546<>\"Subscriber\",'Enrollment Form'!$C546=\"ROC\"),\"-\",IF(AND('Enrollment Form'!$B546=\"Subscriber\",'Enrollment Form'!$C546=\"Enroll\",'Enrollment Form'!$AP546<>\"\"),\"Y\",\"N\")))","v":""},{"$f":"IF($B539=\"N\",\"\",IF(OR('Enrollment Form'!$B546<>\"Subscriber\",'Enrollment Form'!$C546=\"ROC\"),\"-\",IF(AND('Enrollment Form'!$B546=\"Subscriber\",'Enrollment Form'!$C546=\"Enroll\",'Enrollment Form'!$AQ546<>\"\"),\"Y\",\"N\")))","v":""},{"$f":"IF($B539=\"N\",\"\",IF(OR('Enrollment Form'!$B546<>\"Subscriber\",'Enrollment Form'!$C546=\"ROC\"),\"-\",IF(AND('Enrollment Form'!$B546=\"Subscriber\",'Enrollment Form'!$C546=\"Enroll\",'Enrollment Form'!$AS546<>\"\"),\"Y\",\"N\")))","v":""},{"$f":"IF($B539=\"N\",\"\",IF($Q539=\"-\",\"-\",IF(AND($Q539=\"Y\",'Enrollment Form'!$AS546=\"No\"),\"-\",IF(AND($Q539=\"Y\",'Enrollment Form'!$AS546=\"Yes\",'Enrollment Form'!$AT546<>\"\"),\"Y\",\"N\"))))","v":""},{"$f":"IF($B539=\"N\",\"\",IF(OR('Enrollment Form'!$B546<>\"Subscriber\",'Enrollment Form'!$C546=\"ROC\"),\"-\",IF(AND('Enrollment Form'!$B546=\"Subscriber\",'Enrollment Form'!$C546=\"Enroll\",'Enrollment Form'!$CV546<>\"\"),\"Y\",\"N\")))","v":""},{"$f":"IF($B539=\"N\",\"\",IF($S539=\"-\",\"-\",IF(AND($S539=\"Y\",'Enrollment Form'!$CV546=\"No\"),\"-\",IF(AND($S539=\"Y\",'Enrollment Form'!$CV546=\"Yes\",'Enrollment Form'!$CW546<>\"\"),\"Y\",\"N\"))))","v":""},{"$f":"IF(OR('Enrollment Form'!$AY546=\"Yes\",'Enrollment Form'!$AY546=\"\"),\"-\",IF(OR(AND('Enrollment Form'!$AY546=\"No\",ISERROR(FIND(\"HMO\",VLOOKUP('Enrollment Form'!G546,'Enrollment Form'!H$11:J$1000,3,FALSE),1))=FALSE,COUNTA('Enrollment Form'!$AZ546:$BC546)=4),AND('Enrollment Form'!$AY546=\"No\",ISERROR(FIND(\"HMO\",VLOOKUP('Enrollment Form'!G546,'Enrollment Form'!H$11:J$1000,3,FALSE),1))=FALSE,COUNTA('Enrollment Form'!$BT546:$BW546)=4)),\"Y\",\"N\"))","v":"-"},{"$f":"IF($B539=\"N\",\"\",IF('Enrollment Form'!$B546=\"Subscriber\",\"-\",IF(COUNTA('Enrollment Form'!$BL546,'Enrollment Form'!$BN546)=2,\"Y\",\"N\")))","v":""},{"$f":"IF($B539=\"N\",\"\",IF(OR('Enrollment Form'!$AX546=\"\",'Enrollment Form'!$AX546=\"No\"),\"-\",IF(AND('Enrollment Form'!$AX546=\"Yes\",COUNTA('Enrollment Form'!$CR546)=1),\"Y\",\"N\")))","v":""},{"$f":"IF(OR('Enrollment Form'!$CR546=\"\",'Enrollment Form'!$CR546=\"No\"),\"-\",IF(COUNTA('Enrollment Form'!$CT546:$CU546)=2,\"Y\",\"N\"))","v":"-"},{"$f":"IF($B539=\"N\",\"\",IF(COUNTIF('Enrollment Form'!$DG546:$DP546,\"Other\")=COUNTA('Enrollment Form'!$DK546,'Enrollment Form'!$DH546,'Enrollment Form'!$DN546,'Enrollment Form'!$DQ546),\"Y\",\"N\"))","v":""},{"$f":"IF($B539=\"N\",\"\",IF(OR('Enrollment Form'!B546<>\"Subscriber\",'Enrollment Form'!C546=\"ROC\",COUNTIF('Enrollment Form'!AV546:AW546,\"Yes\")>=1),\"-\",IF(AND('Enrollment Form'!C546=\"Enroll\",COUNTIF('Enrollment Form'!AV546:AW546,\"No\")=2,'Enrollment Form'!AX546=\"\"),\"N\",\"Y\")))","v":""},{"$f":"IF(OR(B539=\"N\",'Enrollment Form'!B546<>\"Subscriber\",'Enrollment Form'!C546=\"ROC\",'Enrollment Form'!O546<>\"Multiple of Salary\"),\"-\",IF(COUNTA('Enrollment Form'!T546:U546)<2,\"N\",\"Y\"))","v":"-"},{"$f":"IF(B539=\"N\",\"\",IF(OR('Enrollment Form'!C546=\"ROC\",'Enrollment Form'!B546<>\"Subscriber\",'Enrollment Form'!O546=\"Waive\",'Enrollment Form'!O546=\"\"),\"-\",IF('Enrollment Form'!P546=\"\",\"N\",\"Y\")))","v":""},{"$f":"IF($B539=\"N\",\"\",IF(AND('Enrollment Form'!$C546=\"ROC\",'Enrollment Form'!$DR546<>\"\"),\"Y\",IF(AND('Enrollment Form'!$C546=\"ROC\",'Enrollment Form'!$DR546=\"\"),\"N\",IF(AND('Enrollment Form'!$C546=\"Enroll\",'Enrollment Form'!$B546=\"Subscriber\",'Enrollment Form'!$CX546=\"No\",'Enrollment Form'!$DR546=\"\"),\"N\",IF(AND('Enrollment Form'!$C546=\"Enroll\",'Enrollment Form'!$B546=\"Subscriber\",'Enrollment Form'!$CX546=\"Yes\"),\"-\",\"Y\")))))","v":""},{"$f":"IF($B539=\"N\",\"\",IF(AND('Enrollment Form'!$C546=\"ROC\",'Enrollment Form'!$DS546<>\"\"),\"Y\",IF(AND('Enrollment Form'!$C546=\"ROC\",'Enrollment Form'!$DS546=\"\"),\"N\",IF(AND('Enrollment Form'!$C546=\"Enroll\",'Enrollment Form'!$B546=\"Subscriber\",'Enrollment Form'!$CX546=\"No\",'Enrollment Form'!$DS546=\"\"),\"N\",IF(AND('Enrollment Form'!$C546=\"Enroll\",'Enrollment Form'!$B546=\"Subscriber\",'Enrollment Form'!$CX546=\"Yes\"),\"-\",\"Y\")))))","v":""},{"$f":"IF('Enrollment Form'!AH546=\"\",\"\",IF(ISERROR(SEARCH(\".\",'Enrollment Form'!AH546,SEARCH(\"@\",'Enrollment Form'!AH546))),\"N\",\"Y\"))","v":""},{"$f":"IF(OR($B539=\"N\",'Enrollment Form'!$G546=\"\"),\"\",IF('Enrollment Form'!$B546<>\"Subscriber\",\"-\",IF(COUNTIF('Enrollment Form'!$AV546:$AW546,\"Yes\")=2,\"N\",\"Y\")))","v":""},{"$f":"IF(OR('Enrollment Form'!$CJ546=\"\",'Enrollment Form'!$CJ546=\"No\"),\"-\",IF(AND('Enrollment Form'!$CJ546=\"Yes\",'Enrollment Form'!$CK546=\"\"),\"N\",\"Y\"))","v":"-"},{"$f":"IF(OR('Enrollment Form'!$CL546=\"\",'Enrollment Form'!$CL546=\"No\"),\"-\",IF(AND('Enrollment Form'!$CL546=\"Yes\",'Enrollment Form'!$CM546=\"\"),\"N\",\"Y\"))","v":"-"},{"$f":"IF(OR('Enrollment Form'!$CN546=\"\",'Enrollment Form'!$CN546=\"No\"),\"-\",IF(AND('Enrollment Form'!$CN546=\"Yes\",'Enrollment Form'!$CO546=\"\"),\"N\",\"Y\"))","v":"-"},{"$f":"IF(OR('Enrollment Form'!$CN546=\"\",'Enrollment Form'!$CN546=\"No\"),\"-\",IF(AND('Enrollment Form'!$CN546=\"Yes\",'Enrollment Form'!$CP546=\"\"),\"N\",\"Y\"))","v":"-"},{"$f":"IF('Enrollment Form'!B546<>\"Subscriber\",\"-\",IF(AND('Enrollment Form'!B546=\"Subscriber\",'Enrollment Form'!C546=\"Enroll\",'Enrollment Form'!AA546=\"\"),\"N\",\"Y\"))","v":"-"},{"$f":"IF(OR('Enrollment Form'!B546=\"Subscriber\",'Enrollment Form'!B546=\"\"),\"-\",IF('Enrollment Form'!BP546=\"\",\"N\",\"Y\"))","v":"-"},{"$f":"IF('Enrollment Form'!B546<>\"Subscriber\",\"-\",IF(AND('Enrollment Form'!B546=\"Subscriber\",'Enrollment Form'!G546=\"\"),\"N\",\"Y\"))","v":"-"},{"$f":"IF('Enrollment Form'!A546=\"\",\"\",IF('Enrollment Form'!B546=\"Subscriber\",\"-\",IF(AND('Enrollment Form'!B546<>\"Subscriber\",'Enrollment Form'!G546='Enrollment Form'!H546),\"N\",\"Y\")))","v":""},0]
[547,{"$f":"IF('Enrollment Form'!$A547<>\"\",\"Y\",\"N\")","v":"N"},{"$f":"IF(AND('Enrollment Form'!$B547=\"\",'Enrollment Form'!$C547<>\"\"),\"N\",IF($B540=\"N\",\"\",\"Y\"))","v":""},{"$f":"IF(OR($B540=\"N\",'Enrollment Form'!G547=\"\"),\"\",IF('Enrollment Form'!$B547<>\"Subscriber\",\"\",IF('Enrollment Form'!$G547='Enrollment Form'!$H547,\"Y\",\"N\")))","v":""},{"$f":"IF($B540=\"N\",\"\",IF(AND(COUNTIFS('Enrollment Form'!$H$11:$H$1000,'Enrollment Form'!$H547,'Enrollment Form'!$B$11:$B$1000,'Enrollment Form'!$B547)>1,'Enrollment Form'!$H547<>\"\"),\"N\",\"Y\"))","v":""},{"$f":"IF($B540=\"N\",\"\",IF(LEN('Enrollment Form'!$Y547)=0,\"\",IF(LEN('Enrollment Form'!$Y547)<>5,\"N\",\"Y\")))","v":""},{"$f":"IF($B540=\"N\",\"\",IF(LEN('Enrollment Form'!$AD547=0),\"\",IF(LEN('Enrollment Form'!$AD547)<>5,\"N\",\"Y\")))","v":""},{"$f":"IF($B540=\"N\",\"\",IF(LEN('Enrollment Form'!$BS547=0),\"\",IF(LEN('Enrollment Form'!$BS547)<>5,\"N\",\"Y\")))","v":""},{"$f":"IF($B540=\"N\",\"\",IF(LEN('Enrollment Form'!$AE547)=0,\"\",IF(LEN('Enrollment Form'!$AE547)<>10,\"N\",\"Y\")))","v":""},{"$f":"IF($B540=\"N\",\"\",IF(LEN('Enrollment Form'!$AF547)=0,\"\",IF(LEN('Enrollment Form'!$AF547)<>10,\"N\",\"Y\")))","v":""},{"$f":"IF('Enrollment Form'!$O547<>\"Graded\",\"-\",IF(AND('Enrollment Form'!$O547=\"Graded\",'Enrollment Form'!$AR547<>\"\"),\"Y\",\"N\"))","v":"-"},{"$f":"IF($B540=\"N\",\"\",IF(OR('Enrollment Form'!$B547<>\"Subscriber\",'Enrollment Form'!$C547=\"ROC\"),\"-\",IF(AND('Enrollment Form'!$B547=\"Subscriber\",'Enrollment Form'!$C547=\"Enroll\",'Enrollment Form'!$AJ547<>\"\"),\"Y\",\"N\")))","v":""},{"$f":"IF($B540=\"N\",\"\",IF(OR('Enrollment Form'!$B547<>\"Subscriber\",'Enrollment Form'!$C547=\"ROC\"),\"-\",IF(AND('Enrollment Form'!$B547=\"Subscriber\",'Enrollment Form'!$C547=\"Enroll\",'Enrollment Form'!$AK547<>\"\"),\"Y\",\"N\")))","v":""},{"$f":"IF($B540=\"N\",\"\",IF(OR('Enrollment Form'!$B547<>\"Subscriber\",'Enrollment Form'!$C547=\"ROC\"),\"-\",IF(AND('Enrollment Form'!$B547=\"Subscriber\",'Enrollment Form'!$C547=\"Enroll\",'Enrollment Form'!$AL547<>\"\"),\"Y\",\"N\")))","v":""},{"$f":"IF($B540=\"N\",\"\",IF(OR('Enrollment Form'!$B547<>\"Subscriber\",'Enrollment Form'!$C547=\"ROC\"),\"-\",IF(AND('Enrollment Form'!$B547=\"Subscriber\",'Enrollment Form'!$C547=\"Enroll\",'Enrollment Form'!$AP547<>\"\"),\"Y\",\"N\")))","v":""},{"$f":"IF($B540=\"N\",\"\",IF(OR('Enrollment Form'!$B547<>\"Subscriber\",'Enrollment Form'!$C547=\"ROC\"),\"-\",IF(AND('Enrollment Form'!$B547=\"Subscriber\",'Enrollment Form'!$C547=\"Enroll\",'Enrollment Form'!$AQ547<>\"\"),\"Y\",\"N\")))","v":""},{"$f":"IF($B540=\"N\",\"\",IF(OR('Enrollment Form'!$B547<>\"Subscriber\",'Enrollment Form'!$C547=\"ROC\"),\"-\",IF(AND('Enrollment Form'!$B547=\"Subscriber\",'Enrollment Form'!$C547=\"Enroll\",'Enrollment Form'!$AS547<>\"\"),\"Y\",\"N\")))","v":""},{"$f":"IF($B540=\"N\",\"\",IF($Q540=\"-\",\"-\",IF(AND($Q540=\"Y\",'Enrollment Form'!$AS547=\"No\"),\"-\",IF(AND($Q540=\"Y\",'Enrollment Form'!$AS547=\"Yes\",'Enrollment Form'!$AT547<>\"\"),\"Y\",\"N\"))))","v":""},{"$f":"IF($B540=\"N\",\"\",IF(OR('Enrollment Form'!$B547<>\"Subscriber\",'Enrollment Form'!$C547=\"ROC\"),\"-\",IF(AND('Enrollment Form'!$B547=\"Subscriber\",'Enrollment Form'!$C547=\"Enroll\",'Enrollment Form'!$CV547<>\"\"),\"Y\",\"N\")))","v":""},{"$f":"IF($B540=\"N\",\"\",IF($S540=\"-\",\"-\",IF(AND($S540=\"Y\",'Enrollment Form'!$CV547=\"No\"),\"-\",IF(AND($S540=\"Y\",'Enrollment Form'!$CV547=\"Yes\",'Enrollment Form'!$CW547<>\"\"),\"Y\",\"N\"))))","v":""},{"$f":"IF(OR('Enrollment Form'!$AY547=\"Yes\",'Enrollment Form'!$AY547=\"\"),\"-\",IF(OR(AND('Enrollment Form'!$AY547=\"No\",ISERROR(FIND(\"HMO\",VLOOKUP('Enrollment Form'!G547,'Enrollment Form'!H$11:J$1000,3,FALSE),1))=FALSE,COUNTA('Enrollment Form'!$AZ547:$BC547)=4),AND('Enrollment Form'!$AY547=\"No\",ISERROR(FIND(\"HMO\",VLOOKUP('Enrollment Form'!G547,'Enrollment Form'!H$11:J$1000,3,FALSE),1))=FALSE,COUNTA('Enrollment Form'!$BT547:$BW547)=4)),\"Y\",\"N\"))","v":"-"},{"$f":"IF($B540=\"N\",\"\",IF('Enrollment Form'!$B547=\"Subscriber\",\"-\",IF(COUNTA('Enrollment Form'!$BL547,'Enrollment Form'!$BN547)=2,\"Y\",\"N\")))","v":""},{"$f":"IF($B540=\"N\",\"\",IF(OR('Enrollment Form'!$AX547=\"\",'Enrollment Form'!$AX547=\"No\"),\"-\",IF(AND('Enrollment Form'!$AX547=\"Yes\",COUNTA('Enrollment Form'!$CR547)=1),\"Y\",\"N\")))","v":""},{"$f":"IF(OR('Enrollment Form'!$CR547=\"\",'Enrollment Form'!$CR547=\"No\"),\"-\",IF(COUNTA('Enrollment Form'!$CT547:$CU547)=2,\"Y\",\"N\"))","v":"-"},{"$f":"IF($B540=\"N\",\"\",IF(COUNTIF('Enrollment Form'!$DG547:$DP547,\"Other\")=COUNTA('Enrollment Form'!$DK547,'Enrollment Form'!$DH547,'Enrollment Form'!$DN547,'Enrollment Form'!$DQ547),\"Y\",\"N\"))","v":""},{"$f":"IF($B540=\"N\",\"\",IF(OR('Enrollment Form'!B547<>\"Subscriber\",'Enrollment Form'!C547=\"ROC\",COUNTIF('Enrollment Form'!AV547:AW547,\"Yes\")>=1),\"-\",IF(AND('Enrollment Form'!C547=\"Enroll\",COUNTIF('Enrollment Form'!AV547:AW547,\"No\")=2,'Enrollment Form'!AX547=\"\"),\"N\",\"Y\")))","v":""},{"$f":"IF(OR(B540=\"N\",'Enrollment Form'!B547<>\"Subscriber\",'Enrollment Form'!C547=\"ROC\",'Enrollment Form'!O547<>\"Multiple of Salary\"),\"-\",IF(COUNTA('Enrollment Form'!T547:U547)<2,\"N\",\"Y\"))","v":"-"},{"$f":"IF(B540=\"N\",\"\",IF(OR('Enrollment Form'!C547=\"ROC\",'Enrollment Form'!B547<>\"Subscriber\",'Enrollment Form'!O547=\"Waive\",'Enrollment Form'!O547=\"\"),\"-\",IF('Enrollment Form'!P547=\"\",\"N\",\"Y\")))","v":""},{"$f":"IF($B540=\"N\",\"\",IF(AND('Enrollment Form'!$C547=\"ROC\",'Enrollment Form'!$DR547<>\"\"),\"Y\",IF(AND('Enrollment Form'!$C547=\"ROC\",'Enrollment Form'!$DR547=\"\"),\"N\",IF(AND('Enrollment Form'!$C547=\"Enroll\",'Enrollment Form'!$B547=\"Subscriber\",'Enrollment Form'!$CX547=\"No\",'Enrollment Form'!$DR547=\"\"),\"N\",IF(AND('Enrollment Form'!$C547=\"Enroll\",'Enrollment Form'!$B547=\"Subscriber\",'Enrollment Form'!$CX547=\"Yes\"),\"-\",\"Y\")))))","v":""},{"$f":"IF($B540=\"N\",\"\",IF(AND('Enrollment Form'!$C547=\"ROC\",'Enrollment Form'!$DS547<>\"\"),\"Y\",IF(AND('Enrollment Form'!$C547=\"ROC\",'Enrollment Form'!$DS547=\"\"),\"N\",IF(AND('Enrollment Form'!$C547=\"Enroll\",'Enrollment Form'!$B547=\"Subscriber\",'Enrollment Form'!$CX547=\"No\",'Enrollment Form'!$DS547=\"\"),\"N\",IF(AND('Enrollment Form'!$C547=\"Enroll\",'Enrollment Form'!$B547=\"Subscriber\",'Enrollment Form'!$CX547=\"Yes\"),\"-\",\"Y\")))))","v":""},{"$f":"IF('Enrollment Form'!AH547=\"\",\"\",IF(ISERROR(SEARCH(\".\",'Enrollment Form'!AH547,SEARCH(\"@\",'Enrollment Form'!AH547))),\"N\",\"Y\"))","v":""},{"$f":"IF(OR($B540=\"N\",'Enrollment Form'!$G547=\"\"),\"\",IF('Enrollment Form'!$B547<>\"Subscriber\",\"-\",IF(COUNTIF('Enrollment Form'!$AV547:$AW547,\"Yes\")=2,\"N\",\"Y\")))","v":""},{"$f":"IF(OR('Enrollment Form'!$CJ547=\"\",'Enrollment Form'!$CJ547=\"No\"),\"-\",IF(AND('Enrollment Form'!$CJ547=\"Yes\",'Enrollment Form'!$CK547=\"\"),\"N\",\"Y\"))","v":"-"},{"$f":"IF(OR('Enrollment Form'!$CL547=\"\",'Enrollment Form'!$CL547=\"No\"),\"-\",IF(AND('Enrollment Form'!$CL547=\"Yes\",'Enrollment Form'!$CM547=\"\"),\"N\",\"Y\"))","v":"-"},{"$f":"IF(OR('Enrollment Form'!$CN547=\"\",'Enrollment Form'!$CN547=\"No\"),\"-\",IF(AND('Enrollment Form'!$CN547=\"Yes\",'Enrollment Form'!$CO547=\"\"),\"N\",\"Y\"))","v":"-"},{"$f":"IF(OR('Enrollment Form'!$CN547=\"\",'Enrollment Form'!$CN547=\"No\"),\"-\",IF(AND('Enrollment Form'!$CN547=\"Yes\",'Enrollment Form'!$CP547=\"\"),\"N\",\"Y\"))","v":"-"},{"$f":"IF('Enrollment Form'!B547<>\"Subscriber\",\"-\",IF(AND('Enrollment Form'!B547=\"Subscriber\",'Enrollment Form'!C547=\"Enroll\",'Enrollment Form'!AA547=\"\"),\"N\",\"Y\"))","v":"-"},{"$f":"IF(OR('Enrollment Form'!B547=\"Subscriber\",'Enrollment Form'!B547=\"\"),\"-\",IF('Enrollment Form'!BP547=\"\",\"N\",\"Y\"))","v":"-"},{"$f":"IF('Enrollment Form'!B547<>\"Subscriber\",\"-\",IF(AND('Enrollment Form'!B547=\"Subscriber\",'Enrollment Form'!G547=\"\"),\"N\",\"Y\"))","v":"-"},{"$f":"IF('Enrollment Form'!A547=\"\",\"\",IF('Enrollment Form'!B547=\"Subscriber\",\"-\",IF(AND('Enrollment Form'!B547<>\"Subscriber\",'Enrollment Form'!G547='Enrollment Form'!H547),\"N\",\"Y\")))","v":""},0]
[548,{"$f":"IF('Enrollment Form'!$A548<>\"\",\"Y\",\"N\")","v":"N"},{"$f":"IF(AND('Enrollment Form'!$B548=\"\",'Enrollment Form'!$C548<>\"\"),\"N\",IF($B541=\"N\",\"\",\"Y\"))","v":""},{"$f":"IF(OR($B541=\"N\",'Enrollment Form'!G548=\"\"),\"\",IF('Enrollment Form'!$B548<>\"Subscriber\",\"\",IF('Enrollment Form'!$G548='Enrollment Form'!$H548,\"Y\",\"N\")))","v":""},{"$f":"IF($B541=\"N\",\"\",IF(AND(COUNTIFS('Enrollment Form'!$H$11:$H$1000,'Enrollment Form'!$H548,'Enrollment Form'!$B$11:$B$1000,'Enrollment Form'!$B548)>1,'Enrollment Form'!$H548<>\"\"),\"N\",\"Y\"))","v":""},{"$f":"IF($B541=\"N\",\"\",IF(LEN('Enrollment Form'!$Y548)=0,\"\",IF(LEN('Enrollment Form'!$Y548)<>5,\"N\",\"Y\")))","v":""},{"$f":"IF($B541=\"N\",\"\",IF(LEN('Enrollment Form'!$AD548=0),\"\",IF(LEN('Enrollment Form'!$AD548)<>5,\"N\",\"Y\")))","v":""},{"$f":"IF($B541=\"N\",\"\",IF(LEN('Enrollment Form'!$BS548=0),\"\",IF(LEN('Enrollment Form'!$BS548)<>5,\"N\",\"Y\")))","v":""},{"$f":"IF($B541=\"N\",\"\",IF(LEN('Enrollment Form'!$AE548)=0,\"\",IF(LEN('Enrollment Form'!$AE548)<>10,\"N\",\"Y\")))","v":""},{"$f":"IF($B541=\"N\",\"\",IF(LEN('Enrollment Form'!$AF548)=0,\"\",IF(LEN('Enrollment Form'!$AF548)<>10,\"N\",\"Y\")))","v":""},{"$f":"IF('Enrollment Form'!$O548<>\"Graded\",\"-\",IF(AND('Enrollment Form'!$O548=\"Graded\",'Enrollment Form'!$AR548<>\"\"),\"Y\",\"N\"))","v":"-"},{"$f":"IF($B541=\"N\",\"\",IF(OR('Enrollment Form'!$B548<>\"Subscriber\",'Enrollment Form'!$C548=\"ROC\"),\"-\",IF(AND('Enrollment Form'!$B548=\"Subscriber\",'Enrollment Form'!$C548=\"Enroll\",'Enrollment Form'!$AJ548<>\"\"),\"Y\",\"N\")))","v":""},{"$f":"IF($B541=\"N\",\"\",IF(OR('Enrollment Form'!$B548<>\"Subscriber\",'Enrollment Form'!$C548=\"ROC\"),\"-\",IF(AND('Enrollment Form'!$B548=\"Subscriber\",'Enrollment Form'!$C548=\"Enroll\",'Enrollment Form'!$AK548<>\"\"),\"Y\",\"N\")))","v":""},{"$f":"IF($B541=\"N\",\"\",IF(OR('Enrollment Form'!$B548<>\"Subscriber\",'Enrollment Form'!$C548=\"ROC\"),\"-\",IF(AND('Enrollment Form'!$B548=\"Subscriber\",'Enrollment Form'!$C548=\"Enroll\",'Enrollment Form'!$AL548<>\"\"),\"Y\",\"N\")))","v":""},{"$f":"IF($B541=\"N\",\"\",IF(OR('Enrollment Form'!$B548<>\"Subscriber\",'Enrollment Form'!$C548=\"ROC\"),\"-\",IF(AND('Enrollment Form'!$B548=\"Subscriber\",'Enrollment Form'!$C548=\"Enroll\",'Enrollment Form'!$AP548<>\"\"),\"Y\",\"N\")))","v":""},{"$f":"IF($B541=\"N\",\"\",IF(OR('Enrollment Form'!$B548<>\"Subscriber\",'Enrollment Form'!$C548=\"ROC\"),\"-\",IF(AND('Enrollment Form'!$B548=\"Subscriber\",'Enrollment Form'!$C548=\"Enroll\",'Enrollment Form'!$AQ548<>\"\"),\"Y\",\"N\")))","v":""},{"$f":"IF($B541=\"N\",\"\",IF(OR('Enrollment Form'!$B548<>\"Subscriber\",'Enrollment Form'!$C548=\"ROC\"),\"-\",IF(AND('Enrollment Form'!$B548=\"Subscriber\",'Enrollment Form'!$C548=\"Enroll\",'Enrollment Form'!$AS548<>\"\"),\"Y\",\"N\")))","v":""},{"$f":"IF($B541=\"N\",\"\",IF($Q541=\"-\",\"-\",IF(AND($Q541=\"Y\",'Enrollment Form'!$AS548=\"No\"),\"-\",IF(AND($Q541=\"Y\",'Enrollment Form'!$AS548=\"Yes\",'Enrollment Form'!$AT548<>\"\"),\"Y\",\"N\"))))","v":""},{"$f":"IF($B541=\"N\",\"\",IF(OR('Enrollment Form'!$B548<>\"Subscriber\",'Enrollment Form'!$C548=\"ROC\"),\"-\",IF(AND('Enrollment Form'!$B548=\"Subscriber\",'Enrollment Form'!$C548=\"Enroll\",'Enrollment Form'!$CV548<>\"\"),\"Y\",\"N\")))","v":""},{"$f":"IF($B541=\"N\",\"\",IF($S541=\"-\",\"-\",IF(AND($S541=\"Y\",'Enrollment Form'!$CV548=\"No\"),\"-\",IF(AND($S541=\"Y\",'Enrollment Form'!$CV548=\"Yes\",'Enrollment Form'!$CW548<>\"\"),\"Y\",\"N\"))))","v":""},{"$f":"IF(OR('Enrollment Form'!$AY548=\"Yes\",'Enrollment Form'!$AY548=\"\"),\"-\",IF(OR(AND('Enrollment Form'!$AY548=\"No\",ISERROR(FIND(\"HMO\",VLOOKUP('Enrollment Form'!G548,'Enrollment Form'!H$11:J$1000,3,FALSE),1))=FALSE,COUNTA('Enrollment Form'!$AZ548:$BC548)=4),AND('Enrollment Form'!$AY548=\"No\",ISERROR(FIND(\"HMO\",VLOOKUP('Enrollment Form'!G548,'Enrollment Form'!H$11:J$1000,3,FALSE),1))=FALSE,COUNTA('Enrollment Form'!$BT548:$BW548)=4)),\"Y\",\"N\"))","v":"-"},{"$f":"IF($B541=\"N\",\"\",IF('Enrollment Form'!$B548=\"Subscriber\",\"-\",IF(COUNTA('Enrollment Form'!$BL548,'Enrollment Form'!$BN548)=2,\"Y\",\"N\")))","v":""},{"$f":"IF($B541=\"N\",\"\",IF(OR('Enrollment Form'!$AX548=\"\",'Enrollment Form'!$AX548=\"No\"),\"-\",IF(AND('Enrollment Form'!$AX548=\"Yes\",COUNTA('Enrollment Form'!$CR548)=1),\"Y\",\"N\")))","v":""},{"$f":"IF(OR('Enrollment Form'!$CR548=\"\",'Enrollment Form'!$CR548=\"No\"),\"-\",IF(COUNTA('Enrollment Form'!$CT548:$CU548)=2,\"Y\",\"N\"))","v":"-"},{"$f":"IF($B541=\"N\",\"\",IF(COUNTIF('Enrollment Form'!$DG548:$DP548,\"Other\")=COUNTA('Enrollment Form'!$DK548,'Enrollment Form'!$DH548,'Enrollment Form'!$DN548,'Enrollment Form'!$DQ548),\"Y\",\"N\"))","v":""},{"$f":"IF($B541=\"N\",\"\",IF(OR('Enrollment Form'!B548<>\"Subscriber\",'Enrollment Form'!C548=\"ROC\",COUNTIF('Enrollment Form'!AV548:AW548,\"Yes\")>=1),\"-\",IF(AND('Enrollment Form'!C548=\"Enroll\",COUNTIF('Enrollment Form'!AV548:AW548,\"No\")=2,'Enrollment Form'!AX548=\"\"),\"N\",\"Y\")))","v":""},{"$f":"IF(OR(B541=\"N\",'Enrollment Form'!B548<>\"Subscriber\",'Enrollment Form'!C548=\"ROC\",'Enrollment Form'!O548<>\"Multiple of Salary\"),\"-\",IF(COUNTA('Enrollment Form'!T548:U548)<2,\"N\",\"Y\"))","v":"-"},{"$f":"IF(B541=\"N\",\"\",IF(OR('Enrollment Form'!C548=\"ROC\",'Enrollment Form'!B548<>\"Subscriber\",'Enrollment Form'!O548=\"Waive\",'Enrollment Form'!O548=\"\"),\"-\",IF('Enrollment Form'!P548=\"\",\"N\",\"Y\")))","v":""},{"$f":"IF($B541=\"N\",\"\",IF(AND('Enrollment Form'!$C548=\"ROC\",'Enrollment Form'!$DR548<>\"\"),\"Y\",IF(AND('Enrollment Form'!$C548=\"ROC\",'Enrollment Form'!$DR548=\"\"),\"N\",IF(AND('Enrollment Form'!$C548=\"Enroll\",'Enrollment Form'!$B548=\"Subscriber\",'Enrollment Form'!$CX548=\"No\",'Enrollment Form'!$DR548=\"\"),\"N\",IF(AND('Enrollment Form'!$C548=\"Enroll\",'Enrollment Form'!$B548=\"Subscriber\",'Enrollment Form'!$CX548=\"Yes\"),\"-\",\"Y\")))))","v":""},{"$f":"IF($B541=\"N\",\"\",IF(AND('Enrollment Form'!$C548=\"ROC\",'Enrollment Form'!$DS548<>\"\"),\"Y\",IF(AND('Enrollment Form'!$C548=\"ROC\",'Enrollment Form'!$DS548=\"\"),\"N\",IF(AND('Enrollment Form'!$C548=\"Enroll\",'Enrollment Form'!$B548=\"Subscriber\",'Enrollment Form'!$CX548=\"No\",'Enrollment Form'!$DS548=\"\"),\"N\",IF(AND('Enrollment Form'!$C548=\"Enroll\",'Enrollment Form'!$B548=\"Subscriber\",'Enrollment Form'!$CX548=\"Yes\"),\"-\",\"Y\")))))","v":""},{"$f":"IF('Enrollment Form'!AH548=\"\",\"\",IF(ISERROR(SEARCH(\".\",'Enrollment Form'!AH548,SEARCH(\"@\",'Enrollment Form'!AH548))),\"N\",\"Y\"))","v":""},{"$f":"IF(OR($B541=\"N\",'Enrollment Form'!$G548=\"\"),\"\",IF('Enrollment Form'!$B548<>\"Subscriber\",\"-\",IF(COUNTIF('Enrollment Form'!$AV548:$AW548,\"Yes\")=2,\"N\",\"Y\")))","v":""},{"$f":"IF(OR('Enrollment Form'!$CJ548=\"\",'Enrollment Form'!$CJ548=\"No\"),\"-\",IF(AND('Enrollment Form'!$CJ548=\"Yes\",'Enrollment Form'!$CK548=\"\"),\"N\",\"Y\"))","v":"-"},{"$f":"IF(OR('Enrollment Form'!$CL548=\"\",'Enrollment Form'!$CL548=\"No\"),\"-\",IF(AND('Enrollment Form'!$CL548=\"Yes\",'Enrollment Form'!$CM548=\"\"),\"N\",\"Y\"))","v":"-"},{"$f":"IF(OR('Enrollment Form'!$CN548=\"\",'Enrollment Form'!$CN548=\"No\"),\"-\",IF(AND('Enrollment Form'!$CN548=\"Yes\",'Enrollment Form'!$CO548=\"\"),\"N\",\"Y\"))","v":"-"},{"$f":"IF(OR('Enrollment Form'!$CN548=\"\",'Enrollment Form'!$CN548=\"No\"),\"-\",IF(AND('Enrollment Form'!$CN548=\"Yes\",'Enrollment Form'!$CP548=\"\"),\"N\",\"Y\"))","v":"-"},{"$f":"IF('Enrollment Form'!B548<>\"Subscriber\",\"-\",IF(AND('Enrollment Form'!B548=\"Subscriber\",'Enrollment Form'!C548=\"Enroll\",'Enrollment Form'!AA548=\"\"),\"N\",\"Y\"))","v":"-"},{"$f":"IF(OR('Enrollment Form'!B548=\"Subscriber\",'Enrollment Form'!B548=\"\"),\"-\",IF('Enrollment Form'!BP548=\"\",\"N\",\"Y\"))","v":"-"},{"$f":"IF('Enrollment Form'!B548<>\"Subscriber\",\"-\",IF(AND('Enrollment Form'!B548=\"Subscriber\",'Enrollment Form'!G548=\"\"),\"N\",\"Y\"))","v":"-"},{"$f":"IF('Enrollment Form'!A548=\"\",\"\",IF('Enrollment Form'!B548=\"Subscriber\",\"-\",IF(AND('Enrollment Form'!B548<>\"Subscriber\",'Enrollment Form'!G548='Enrollment Form'!H548),\"N\",\"Y\")))","v":""},0]
[549,{"$f":"IF('Enrollment Form'!$A549<>\"\",\"Y\",\"N\")","v":"N"},{"$f":"IF(AND('Enrollment Form'!$B549=\"\",'Enrollment Form'!$C549<>\"\"),\"N\",IF($B542=\"N\",\"\",\"Y\"))","v":""},{"$f":"IF(OR($B542=\"N\",'Enrollment Form'!G549=\"\"),\"\",IF('Enrollment Form'!$B549<>\"Subscriber\",\"\",IF('Enrollment Form'!$G549='Enrollment Form'!$H549,\"Y\",\"N\")))","v":""},{"$f":"IF($B542=\"N\",\"\",IF(AND(COUNTIFS('Enrollment Form'!$H$11:$H$1000,'Enrollment Form'!$H549,'Enrollment Form'!$B$11:$B$1000,'Enrollment Form'!$B549)>1,'Enrollment Form'!$H549<>\"\"),\"N\",\"Y\"))","v":""},{"$f":"IF($B542=\"N\",\"\",IF(LEN('Enrollment Form'!$Y549)=0,\"\",IF(LEN('Enrollment Form'!$Y549)<>5,\"N\",\"Y\")))","v":""},{"$f":"IF($B542=\"N\",\"\",IF(LEN('Enrollment Form'!$AD549=0),\"\",IF(LEN('Enrollment Form'!$AD549)<>5,\"N\",\"Y\")))","v":""},{"$f":"IF($B542=\"N\",\"\",IF(LEN('Enrollment Form'!$BS549=0),\"\",IF(LEN('Enrollment Form'!$BS549)<>5,\"N\",\"Y\")))","v":""},{"$f":"IF($B542=\"N\",\"\",IF(LEN('Enrollment Form'!$AE549)=0,\"\",IF(LEN('Enrollment Form'!$AE549)<>10,\"N\",\"Y\")))","v":""},{"$f":"IF($B542=\"N\",\"\",IF(LEN('Enrollment Form'!$AF549)=0,\"\",IF(LEN('Enrollment Form'!$AF549)<>10,\"N\",\"Y\")))","v":""},{"$f":"IF('Enrollment Form'!$O549<>\"Graded\",\"-\",IF(AND('Enrollment Form'!$O549=\"Graded\",'Enrollment Form'!$AR549<>\"\"),\"Y\",\"N\"))","v":"-"},{"$f":"IF($B542=\"N\",\"\",IF(OR('Enrollment Form'!$B549<>\"Subscriber\",'Enrollment Form'!$C549=\"ROC\"),\"-\",IF(AND('Enrollment Form'!$B549=\"Subscriber\",'Enrollment Form'!$C549=\"Enroll\",'Enrollment Form'!$AJ549<>\"\"),\"Y\",\"N\")))","v":""},{"$f":"IF($B542=\"N\",\"\",IF(OR('Enrollment Form'!$B549<>\"Subscriber\",'Enrollment Form'!$C549=\"ROC\"),\"-\",IF(AND('Enrollment Form'!$B549=\"Subscriber\",'Enrollment Form'!$C549=\"Enroll\",'Enrollment Form'!$AK549<>\"\"),\"Y\",\"N\")))","v":""},{"$f":"IF($B542=\"N\",\"\",IF(OR('Enrollment Form'!$B549<>\"Subscriber\",'Enrollment Form'!$C549=\"ROC\"),\"-\",IF(AND('Enrollment Form'!$B549=\"Subscriber\",'Enrollment Form'!$C549=\"Enroll\",'Enrollment Form'!$AL549<>\"\"),\"Y\",\"N\")))","v":""},{"$f":"IF($B542=\"N\",\"\",IF(OR('Enrollment Form'!$B549<>\"Subscriber\",'Enrollment Form'!$C549=\"ROC\"),\"-\",IF(AND('Enrollment Form'!$B549=\"Subscriber\",'Enrollment Form'!$C549=\"Enroll\",'Enrollment Form'!$AP549<>\"\"),\"Y\",\"N\")))","v":""},{"$f":"IF($B542=\"N\",\"\",IF(OR('Enrollment Form'!$B549<>\"Subscriber\",'Enrollment Form'!$C549=\"ROC\"),\"-\",IF(AND('Enrollment Form'!$B549=\"Subscriber\",'Enrollment Form'!$C549=\"Enroll\",'Enrollment Form'!$AQ549<>\"\"),\"Y\",\"N\")))","v":""},{"$f":"IF($B542=\"N\",\"\",IF(OR('Enrollment Form'!$B549<>\"Subscriber\",'Enrollment Form'!$C549=\"ROC\"),\"-\",IF(AND('Enrollment Form'!$B549=\"Subscriber\",'Enrollment Form'!$C549=\"Enroll\",'Enrollment Form'!$AS549<>\"\"),\"Y\",\"N\")))","v":""},{"$f":"IF($B542=\"N\",\"\",IF($Q542=\"-\",\"-\",IF(AND($Q542=\"Y\",'Enrollment Form'!$AS549=\"No\"),\"-\",IF(AND($Q542=\"Y\",'Enrollment Form'!$AS549=\"Yes\",'Enrollment Form'!$AT549<>\"\"),\"Y\",\"N\"))))","v":""},{"$f":"IF($B542=\"N\",\"\",IF(OR('Enrollment Form'!$B549<>\"Subscriber\",'Enrollment Form'!$C549=\"ROC\"),\"-\",IF(AND('Enrollment Form'!$B549=\"Subscriber\",'Enrollment Form'!$C549=\"Enroll\",'Enrollment Form'!$CV549<>\"\"),\"Y\",\"N\")))","v":""},{"$f":"IF($B542=\"N\",\"\",IF($S542=\"-\",\"-\",IF(AND($S542=\"Y\",'Enrollment Form'!$CV549=\"No\"),\"-\",IF(AND($S542=\"Y\",'Enrollment Form'!$CV549=\"Yes\",'Enrollment Form'!$CW549<>\"\"),\"Y\",\"N\"))))","v":""},{"$f":"IF(OR('Enrollment Form'!$AY549=\"Yes\",'Enrollment Form'!$AY549=\"\"),\"-\",IF(OR(AND('Enrollment Form'!$AY549=\"No\",ISERROR(FIND(\"HMO\",VLOOKUP('Enrollment Form'!G549,'Enrollment Form'!H$11:J$1000,3,FALSE),1))=FALSE,COUNTA('Enrollment Form'!$AZ549:$BC549)=4),AND('Enrollment Form'!$AY549=\"No\",ISERROR(FIND(\"HMO\",VLOOKUP('Enrollment Form'!G549,'Enrollment Form'!H$11:J$1000,3,FALSE),1))=FALSE,COUNTA('Enrollment Form'!$BT549:$BW549)=4)),\"Y\",\"N\"))","v":"-"},{"$f":"IF($B542=\"N\",\"\",IF('Enrollment Form'!$B549=\"Subscriber\",\"-\",IF(COUNTA('Enrollment Form'!$BL549,'Enrollment Form'!$BN549)=2,\"Y\",\"N\")))","v":""},{"$f":"IF($B542=\"N\",\"\",IF(OR('Enrollment Form'!$AX549=\"\",'Enrollment Form'!$AX549=\"No\"),\"-\",IF(AND('Enrollment Form'!$AX549=\"Yes\",COUNTA('Enrollment Form'!$CR549)=1),\"Y\",\"N\")))","v":""},{"$f":"IF(OR('Enrollment Form'!$CR549=\"\",'Enrollment Form'!$CR549=\"No\"),\"-\",IF(COUNTA('Enrollment Form'!$CT549:$CU549)=2,\"Y\",\"N\"))","v":"-"},{"$f":"IF($B542=\"N\",\"\",IF(COUNTIF('Enrollment Form'!$DG549:$DP549,\"Other\")=COUNTA('Enrollment Form'!$DK549,'Enrollment Form'!$DH549,'Enrollment Form'!$DN549,'Enrollment Form'!$DQ549),\"Y\",\"N\"))","v":""},{"$f":"IF($B542=\"N\",\"\",IF(OR('Enrollment Form'!B549<>\"Subscriber\",'Enrollment Form'!C549=\"ROC\",COUNTIF('Enrollment Form'!AV549:AW549,\"Yes\")>=1),\"-\",IF(AND('Enrollment Form'!C549=\"Enroll\",COUNTIF('Enrollment Form'!AV549:AW549,\"No\")=2,'Enrollment Form'!AX549=\"\"),\"N\",\"Y\")))","v":""},{"$f":"IF(OR(B542=\"N\",'Enrollment Form'!B549<>\"Subscriber\",'Enrollment Form'!C549=\"ROC\",'Enrollment Form'!O549<>\"Multiple of Salary\"),\"-\",IF(COUNTA('Enrollment Form'!T549:U549)<2,\"N\",\"Y\"))","v":"-"},{"$f":"IF(B542=\"N\",\"\",IF(OR('Enrollment Form'!C549=\"ROC\",'Enrollment Form'!B549<>\"Subscriber\",'Enrollment Form'!O549=\"Waive\",'Enrollment Form'!O549=\"\"),\"-\",IF('Enrollment Form'!P549=\"\",\"N\",\"Y\")))","v":""},{"$f":"IF($B542=\"N\",\"\",IF(AND('Enrollment Form'!$C549=\"ROC\",'Enrollment Form'!$DR549<>\"\"),\"Y\",IF(AND('Enrollment Form'!$C549=\"ROC\",'Enrollment Form'!$DR549=\"\"),\"N\",IF(AND('Enrollment Form'!$C549=\"Enroll\",'Enrollment Form'!$B549=\"Subscriber\",'Enrollment Form'!$CX549=\"No\",'Enrollment Form'!$DR549=\"\"),\"N\",IF(AND('Enrollment Form'!$C549=\"Enroll\",'Enrollment Form'!$B549=\"Subscriber\",'Enrollment Form'!$CX549=\"Yes\"),\"-\",\"Y\")))))","v":""},{"$f":"IF($B542=\"N\",\"\",IF(AND('Enrollment Form'!$C549=\"ROC\",'Enrollment Form'!$DS549<>\"\"),\"Y\",IF(AND('Enrollment Form'!$C549=\"ROC\",'Enrollment Form'!$DS549=\"\"),\"N\",IF(AND('Enrollment Form'!$C549=\"Enroll\",'Enrollment Form'!$B549=\"Subscriber\",'Enrollment Form'!$CX549=\"No\",'Enrollment Form'!$DS549=\"\"),\"N\",IF(AND('Enrollment Form'!$C549=\"Enroll\",'Enrollment Form'!$B549=\"Subscriber\",'Enrollment Form'!$CX549=\"Yes\"),\"-\",\"Y\")))))","v":""},{"$f":"IF('Enrollment Form'!AH549=\"\",\"\",IF(ISERROR(SEARCH(\".\",'Enrollment Form'!AH549,SEARCH(\"@\",'Enrollment Form'!AH549))),\"N\",\"Y\"))","v":""},{"$f":"IF(OR($B542=\"N\",'Enrollment Form'!$G549=\"\"),\"\",IF('Enrollment Form'!$B549<>\"Subscriber\",\"-\",IF(COUNTIF('Enrollment Form'!$AV549:$AW549,\"Yes\")=2,\"N\",\"Y\")))","v":""},{"$f":"IF(OR('Enrollment Form'!$CJ549=\"\",'Enrollment Form'!$CJ549=\"No\"),\"-\",IF(AND('Enrollment Form'!$CJ549=\"Yes\",'Enrollment Form'!$CK549=\"\"),\"N\",\"Y\"))","v":"-"},{"$f":"IF(OR('Enrollment Form'!$CL549=\"\",'Enrollment Form'!$CL549=\"No\"),\"-\",IF(AND('Enrollment Form'!$CL549=\"Yes\",'Enrollment Form'!$CM549=\"\"),\"N\",\"Y\"))","v":"-"},{"$f":"IF(OR('Enrollment Form'!$CN549=\"\",'Enrollment Form'!$CN549=\"No\"),\"-\",IF(AND('Enrollment Form'!$CN549=\"Yes\",'Enrollment Form'!$CO549=\"\"),\"N\",\"Y\"))","v":"-"},{"$f":"IF(OR('Enrollment Form'!$CN549=\"\",'Enrollment Form'!$CN549=\"No\"),\"-\",IF(AND('Enrollment Form'!$CN549=\"Yes\",'Enrollment Form'!$CP549=\"\"),\"N\",\"Y\"))","v":"-"},{"$f":"IF('Enrollment Form'!B549<>\"Subscriber\",\"-\",IF(AND('Enrollment Form'!B549=\"Subscriber\",'Enrollment Form'!C549=\"Enroll\",'Enrollment Form'!AA549=\"\"),\"N\",\"Y\"))","v":"-"},{"$f":"IF(OR('Enrollment Form'!B549=\"Subscriber\",'Enrollment Form'!B549=\"\"),\"-\",IF('Enrollment Form'!BP549=\"\",\"N\",\"Y\"))","v":"-"},{"$f":"IF('Enrollment Form'!B549<>\"Subscriber\",\"-\",IF(AND('Enrollment Form'!B549=\"Subscriber\",'Enrollment Form'!G549=\"\"),\"N\",\"Y\"))","v":"-"},{"$f":"IF('Enrollment Form'!A549=\"\",\"\",IF('Enrollment Form'!B549=\"Subscriber\",\"-\",IF(AND('Enrollment Form'!B549<>\"Subscriber\",'Enrollment Form'!G549='Enrollment Form'!H549),\"N\",\"Y\")))","v":""},0]
[550,{"$f":"IF('Enrollment Form'!$A550<>\"\",\"Y\",\"N\")","v":"N"},{"$f":"IF(AND('Enrollment Form'!$B550=\"\",'Enrollment Form'!$C550<>\"\"),\"N\",IF($B543=\"N\",\"\",\"Y\"))","v":""},{"$f":"IF(OR($B543=\"N\",'Enrollment Form'!G550=\"\"),\"\",IF('Enrollment Form'!$B550<>\"Subscriber\",\"\",IF('Enrollment Form'!$G550='Enrollment Form'!$H550,\"Y\",\"N\")))","v":""},{"$f":"IF($B543=\"N\",\"\",IF(AND(COUNTIFS('Enrollment Form'!$H$11:$H$1000,'Enrollment Form'!$H550,'Enrollment Form'!$B$11:$B$1000,'Enrollment Form'!$B550)>1,'Enrollment Form'!$H550<>\"\"),\"N\",\"Y\"))","v":""},{"$f":"IF($B543=\"N\",\"\",IF(LEN('Enrollment Form'!$Y550)=0,\"\",IF(LEN('Enrollment Form'!$Y550)<>5,\"N\",\"Y\")))","v":""},{"$f":"IF($B543=\"N\",\"\",IF(LEN('Enrollment Form'!$AD550=0),\"\",IF(LEN('Enrollment Form'!$AD550)<>5,\"N\",\"Y\")))","v":""},{"$f":"IF($B543=\"N\",\"\",IF(LEN('Enrollment Form'!$BS550=0),\"\",IF(LEN('Enrollment Form'!$BS550)<>5,\"N\",\"Y\")))","v":""},{"$f":"IF($B543=\"N\",\"\",IF(LEN('Enrollment Form'!$AE550)=0,\"\",IF(LEN('Enrollment Form'!$AE550)<>10,\"N\",\"Y\")))","v":""},{"$f":"IF($B543=\"N\",\"\",IF(LEN('Enrollment Form'!$AF550)=0,\"\",IF(LEN('Enrollment Form'!$AF550)<>10,\"N\",\"Y\")))","v":""},{"$f":"IF('Enrollment Form'!$O550<>\"Graded\",\"-\",IF(AND('Enrollment Form'!$O550=\"Graded\",'Enrollment Form'!$AR550<>\"\"),\"Y\",\"N\"))","v":"-"},{"$f":"IF($B543=\"N\",\"\",IF(OR('Enrollment Form'!$B550<>\"Subscriber\",'Enrollment Form'!$C550=\"ROC\"),\"-\",IF(AND('Enrollment Form'!$B550=\"Subscriber\",'Enrollment Form'!$C550=\"Enroll\",'Enrollment Form'!$AJ550<>\"\"),\"Y\",\"N\")))","v":""},{"$f":"IF($B543=\"N\",\"\",IF(OR('Enrollment Form'!$B550<>\"Subscriber\",'Enrollment Form'!$C550=\"ROC\"),\"-\",IF(AND('Enrollment Form'!$B550=\"Subscriber\",'Enrollment Form'!$C550=\"Enroll\",'Enrollment Form'!$AK550<>\"\"),\"Y\",\"N\")))","v":""},{"$f":"IF($B543=\"N\",\"\",IF(OR('Enrollment Form'!$B550<>\"Subscriber\",'Enrollment Form'!$C550=\"ROC\"),\"-\",IF(AND('Enrollment Form'!$B550=\"Subscriber\",'Enrollment Form'!$C550=\"Enroll\",'Enrollment Form'!$AL550<>\"\"),\"Y\",\"N\")))","v":""},{"$f":"IF($B543=\"N\",\"\",IF(OR('Enrollment Form'!$B550<>\"Subscriber\",'Enrollment Form'!$C550=\"ROC\"),\"-\",IF(AND('Enrollment Form'!$B550=\"Subscriber\",'Enrollment Form'!$C550=\"Enroll\",'Enrollment Form'!$AP550<>\"\"),\"Y\",\"N\")))","v":""},{"$f":"IF($B543=\"N\",\"\",IF(OR('Enrollment Form'!$B550<>\"Subscriber\",'Enrollment Form'!$C550=\"ROC\"),\"-\",IF(AND('Enrollment Form'!$B550=\"Subscriber\",'Enrollment Form'!$C550=\"Enroll\",'Enrollment Form'!$AQ550<>\"\"),\"Y\",\"N\")))","v":""},{"$f":"IF($B543=\"N\",\"\",IF(OR('Enrollment Form'!$B550<>\"Subscriber\",'Enrollment Form'!$C550=\"ROC\"),\"-\",IF(AND('Enrollment Form'!$B550=\"Subscriber\",'Enrollment Form'!$C550=\"Enroll\",'Enrollment Form'!$AS550<>\"\"),\"Y\",\"N\")))","v":""},{"$f":"IF($B543=\"N\",\"\",IF($Q543=\"-\",\"-\",IF(AND($Q543=\"Y\",'Enrollment Form'!$AS550=\"No\"),\"-\",IF(AND($Q543=\"Y\",'Enrollment Form'!$AS550=\"Yes\",'Enrollment Form'!$AT550<>\"\"),\"Y\",\"N\"))))","v":""},{"$f":"IF($B543=\"N\",\"\",IF(OR('Enrollment Form'!$B550<>\"Subscriber\",'Enrollment Form'!$C550=\"ROC\"),\"-\",IF(AND('Enrollment Form'!$B550=\"Subscriber\",'Enrollment Form'!$C550=\"Enroll\",'Enrollment Form'!$CV550<>\"\"),\"Y\",\"N\")))","v":""},{"$f":"IF($B543=\"N\",\"\",IF($S543=\"-\",\"-\",IF(AND($S543=\"Y\",'Enrollment Form'!$CV550=\"No\"),\"-\",IF(AND($S543=\"Y\",'Enrollment Form'!$CV550=\"Yes\",'Enrollment Form'!$CW550<>\"\"),\"Y\",\"N\"))))","v":""},{"$f":"IF(OR('Enrollment Form'!$AY550=\"Yes\",'Enrollment Form'!$AY550=\"\"),\"-\",IF(OR(AND('Enrollment Form'!$AY550=\"No\",ISERROR(FIND(\"HMO\",VLOOKUP('Enrollment Form'!G550,'Enrollment Form'!H$11:J$1000,3,FALSE),1))=FALSE,COUNTA('Enrollment Form'!$AZ550:$BC550)=4),AND('Enrollment Form'!$AY550=\"No\",ISERROR(FIND(\"HMO\",VLOOKUP('Enrollment Form'!G550,'Enrollment Form'!H$11:J$1000,3,FALSE),1))=FALSE,COUNTA('Enrollment Form'!$BT550:$BW550)=4)),\"Y\",\"N\"))","v":"-"},{"$f":"IF($B543=\"N\",\"\",IF('Enrollment Form'!$B550=\"Subscriber\",\"-\",IF(COUNTA('Enrollment Form'!$BL550,'Enrollment Form'!$BN550)=2,\"Y\",\"N\")))","v":""},{"$f":"IF($B543=\"N\",\"\",IF(OR('Enrollment Form'!$AX550=\"\",'Enrollment Form'!$AX550=\"No\"),\"-\",IF(AND('Enrollment Form'!$AX550=\"Yes\",COUNTA('Enrollment Form'!$CR550)=1),\"Y\",\"N\")))","v":""},{"$f":"IF(OR('Enrollment Form'!$CR550=\"\",'Enrollment Form'!$CR550=\"No\"),\"-\",IF(COUNTA('Enrollment Form'!$CT550:$CU550)=2,\"Y\",\"N\"))","v":"-"},{"$f":"IF($B543=\"N\",\"\",IF(COUNTIF('Enrollment Form'!$DG550:$DP550,\"Other\")=COUNTA('Enrollment Form'!$DK550,'Enrollment Form'!$DH550,'Enrollment Form'!$DN550,'Enrollment Form'!$DQ550),\"Y\",\"N\"))","v":""},{"$f":"IF($B543=\"N\",\"\",IF(OR('Enrollment Form'!B550<>\"Subscriber\",'Enrollment Form'!C550=\"ROC\",COUNTIF('Enrollment Form'!AV550:AW550,\"Yes\")>=1),\"-\",IF(AND('Enrollment Form'!C550=\"Enroll\",COUNTIF('Enrollment Form'!AV550:AW550,\"No\")=2,'Enrollment Form'!AX550=\"\"),\"N\",\"Y\")))","v":""},{"$f":"IF(OR(B543=\"N\",'Enrollment Form'!B550<>\"Subscriber\",'Enrollment Form'!C550=\"ROC\",'Enrollment Form'!O550<>\"Multiple of Salary\"),\"-\",IF(COUNTA('Enrollment Form'!T550:U550)<2,\"N\",\"Y\"))","v":"-"},{"$f":"IF(B543=\"N\",\"\",IF(OR('Enrollment Form'!C550=\"ROC\",'Enrollment Form'!B550<>\"Subscriber\",'Enrollment Form'!O550=\"Waive\",'Enrollment Form'!O550=\"\"),\"-\",IF('Enrollment Form'!P550=\"\",\"N\",\"Y\")))","v":""},{"$f":"IF($B543=\"N\",\"\",IF(AND('Enrollment Form'!$C550=\"ROC\",'Enrollment Form'!$DR550<>\"\"),\"Y\",IF(AND('Enrollment Form'!$C550=\"ROC\",'Enrollment Form'!$DR550=\"\"),\"N\",IF(AND('Enrollment Form'!$C550=\"Enroll\",'Enrollment Form'!$B550=\"Subscriber\",'Enrollment Form'!$CX550=\"No\",'Enrollment Form'!$DR550=\"\"),\"N\",IF(AND('Enrollment Form'!$C550=\"Enroll\",'Enrollment Form'!$B550=\"Subscriber\",'Enrollment Form'!$CX550=\"Yes\"),\"-\",\"Y\")))))","v":""},{"$f":"IF($B543=\"N\",\"\",IF(AND('Enrollment Form'!$C550=\"ROC\",'Enrollment Form'!$DS550<>\"\"),\"Y\",IF(AND('Enrollment Form'!$C550=\"ROC\",'Enrollment Form'!$DS550=\"\"),\"N\",IF(AND('Enrollment Form'!$C550=\"Enroll\",'Enrollment Form'!$B550=\"Subscriber\",'Enrollment Form'!$CX550=\"No\",'Enrollment Form'!$DS550=\"\"),\"N\",IF(AND('Enrollment Form'!$C550=\"Enroll\",'Enrollment Form'!$B550=\"Subscriber\",'Enrollment Form'!$CX550=\"Yes\"),\"-\",\"Y\")))))","v":""},{"$f":"IF('Enrollment Form'!AH550=\"\",\"\",IF(ISERROR(SEARCH(\".\",'Enrollment Form'!AH550,SEARCH(\"@\",'Enrollment Form'!AH550))),\"N\",\"Y\"))","v":""},{"$f":"IF(OR($B543=\"N\",'Enrollment Form'!$G550=\"\"),\"\",IF('Enrollment Form'!$B550<>\"Subscriber\",\"-\",IF(COUNTIF('Enrollment Form'!$AV550:$AW550,\"Yes\")=2,\"N\",\"Y\")))","v":""},{"$f":"IF(OR('Enrollment Form'!$CJ550=\"\",'Enrollment Form'!$CJ550=\"No\"),\"-\",IF(AND('Enrollment Form'!$CJ550=\"Yes\",'Enrollment Form'!$CK550=\"\"),\"N\",\"Y\"))","v":"-"},{"$f":"IF(OR('Enrollment Form'!$CL550=\"\",'Enrollment Form'!$CL550=\"No\"),\"-\",IF(AND('Enrollment Form'!$CL550=\"Yes\",'Enrollment Form'!$CM550=\"\"),\"N\",\"Y\"))","v":"-"},{"$f":"IF(OR('Enrollment Form'!$CN550=\"\",'Enrollment Form'!$CN550=\"No\"),\"-\",IF(AND('Enrollment Form'!$CN550=\"Yes\",'Enrollment Form'!$CO550=\"\"),\"N\",\"Y\"))","v":"-"},{"$f":"IF(OR('Enrollment Form'!$CN550=\"\",'Enrollment Form'!$CN550=\"No\"),\"-\",IF(AND('Enrollment Form'!$CN550=\"Yes\",'Enrollment Form'!$CP550=\"\"),\"N\",\"Y\"))","v":"-"},{"$f":"IF('Enrollment Form'!B550<>\"Subscriber\",\"-\",IF(AND('Enrollment Form'!B550=\"Subscriber\",'Enrollment Form'!C550=\"Enroll\",'Enrollment Form'!AA550=\"\"),\"N\",\"Y\"))","v":"-"},{"$f":"IF(OR('Enrollment Form'!B550=\"Subscriber\",'Enrollment Form'!B550=\"\"),\"-\",IF('Enrollment Form'!BP550=\"\",\"N\",\"Y\"))","v":"-"},{"$f":"IF('Enrollment Form'!B550<>\"Subscriber\",\"-\",IF(AND('Enrollment Form'!B550=\"Subscriber\",'Enrollment Form'!G550=\"\"),\"N\",\"Y\"))","v":"-"},{"$f":"IF('Enrollment Form'!A550=\"\",\"\",IF('Enrollment Form'!B550=\"Subscriber\",\"-\",IF(AND('Enrollment Form'!B550<>\"Subscriber\",'Enrollment Form'!G550='Enrollment Form'!H550),\"N\",\"Y\")))","v":""},0]
[551,{"$f":"IF('Enrollment Form'!$A551<>\"\",\"Y\",\"N\")","v":"N"},{"$f":"IF(AND('Enrollment Form'!$B551=\"\",'Enrollment Form'!$C551<>\"\"),\"N\",IF($B544=\"N\",\"\",\"Y\"))","v":""},{"$f":"IF(OR($B544=\"N\",'Enrollment Form'!G551=\"\"),\"\",IF('Enrollment Form'!$B551<>\"Subscriber\",\"\",IF('Enrollment Form'!$G551='Enrollment Form'!$H551,\"Y\",\"N\")))","v":""},{"$f":"IF($B544=\"N\",\"\",IF(AND(COUNTIFS('Enrollment Form'!$H$11:$H$1000,'Enrollment Form'!$H551,'Enrollment Form'!$B$11:$B$1000,'Enrollment Form'!$B551)>1,'Enrollment Form'!$H551<>\"\"),\"N\",\"Y\"))","v":""},{"$f":"IF($B544=\"N\",\"\",IF(LEN('Enrollment Form'!$Y551)=0,\"\",IF(LEN('Enrollment Form'!$Y551)<>5,\"N\",\"Y\")))","v":""},{"$f":"IF($B544=\"N\",\"\",IF(LEN('Enrollment Form'!$AD551=0),\"\",IF(LEN('Enrollment Form'!$AD551)<>5,\"N\",\"Y\")))","v":""},{"$f":"IF($B544=\"N\",\"\",IF(LEN('Enrollment Form'!$BS551=0),\"\",IF(LEN('Enrollment Form'!$BS551)<>5,\"N\",\"Y\")))","v":""},{"$f":"IF($B544=\"N\",\"\",IF(LEN('Enrollment Form'!$AE551)=0,\"\",IF(LEN('Enrollment Form'!$AE551)<>10,\"N\",\"Y\")))","v":""},{"$f":"IF($B544=\"N\",\"\",IF(LEN('Enrollment Form'!$AF551)=0,\"\",IF(LEN('Enrollment Form'!$AF551)<>10,\"N\",\"Y\")))","v":""},{"$f":"IF('Enrollment Form'!$O551<>\"Graded\",\"-\",IF(AND('Enrollment Form'!$O551=\"Graded\",'Enrollment Form'!$AR551<>\"\"),\"Y\",\"N\"))","v":"-"},{"$f":"IF($B544=\"N\",\"\",IF(OR('Enrollment Form'!$B551<>\"Subscriber\",'Enrollment Form'!$C551=\"ROC\"),\"-\",IF(AND('Enrollment Form'!$B551=\"Subscriber\",'Enrollment Form'!$C551=\"Enroll\",'Enrollment Form'!$AJ551<>\"\"),\"Y\",\"N\")))","v":""},{"$f":"IF($B544=\"N\",\"\",IF(OR('Enrollment Form'!$B551<>\"Subscriber\",'Enrollment Form'!$C551=\"ROC\"),\"-\",IF(AND('Enrollment Form'!$B551=\"Subscriber\",'Enrollment Form'!$C551=\"Enroll\",'Enrollment Form'!$AK551<>\"\"),\"Y\",\"N\")))","v":""},{"$f":"IF($B544=\"N\",\"\",IF(OR('Enrollment Form'!$B551<>\"Subscriber\",'Enrollment Form'!$C551=\"ROC\"),\"-\",IF(AND('Enrollment Form'!$B551=\"Subscriber\",'Enrollment Form'!$C551=\"Enroll\",'Enrollment Form'!$AL551<>\"\"),\"Y\",\"N\")))","v":""},{"$f":"IF($B544=\"N\",\"\",IF(OR('Enrollment Form'!$B551<>\"Subscriber\",'Enrollment Form'!$C551=\"ROC\"),\"-\",IF(AND('Enrollment Form'!$B551=\"Subscriber\",'Enrollment Form'!$C551=\"Enroll\",'Enrollment Form'!$AP551<>\"\"),\"Y\",\"N\")))","v":""},{"$f":"IF($B544=\"N\",\"\",IF(OR('Enrollment Form'!$B551<>\"Subscriber\",'Enrollment Form'!$C551=\"ROC\"),\"-\",IF(AND('Enrollment Form'!$B551=\"Subscriber\",'Enrollment Form'!$C551=\"Enroll\",'Enrollment Form'!$AQ551<>\"\"),\"Y\",\"N\")))","v":""},{"$f":"IF($B544=\"N\",\"\",IF(OR('Enrollment Form'!$B551<>\"Subscriber\",'Enrollment Form'!$C551=\"ROC\"),\"-\",IF(AND('Enrollment Form'!$B551=\"Subscriber\",'Enrollment Form'!$C551=\"Enroll\",'Enrollment Form'!$AS551<>\"\"),\"Y\",\"N\")))","v":""},{"$f":"IF($B544=\"N\",\"\",IF($Q544=\"-\",\"-\",IF(AND($Q544=\"Y\",'Enrollment Form'!$AS551=\"No\"),\"-\",IF(AND($Q544=\"Y\",'Enrollment Form'!$AS551=\"Yes\",'Enrollment Form'!$AT551<>\"\"),\"Y\",\"N\"))))","v":""},{"$f":"IF($B544=\"N\",\"\",IF(OR('Enrollment Form'!$B551<>\"Subscriber\",'Enrollment Form'!$C551=\"ROC\"),\"-\",IF(AND('Enrollment Form'!$B551=\"Subscriber\",'Enrollment Form'!$C551=\"Enroll\",'Enrollment Form'!$CV551<>\"\"),\"Y\",\"N\")))","v":""},{"$f":"IF($B544=\"N\",\"\",IF($S544=\"-\",\"-\",IF(AND($S544=\"Y\",'Enrollment Form'!$CV551=\"No\"),\"-\",IF(AND($S544=\"Y\",'Enrollment Form'!$CV551=\"Yes\",'Enrollment Form'!$CW551<>\"\"),\"Y\",\"N\"))))","v":""},{"$f":"IF(OR('Enrollment Form'!$AY551=\"Yes\",'Enrollment Form'!$AY551=\"\"),\"-\",IF(OR(AND('Enrollment Form'!$AY551=\"No\",ISERROR(FIND(\"HMO\",VLOOKUP('Enrollment Form'!G551,'Enrollment Form'!H$11:J$1000,3,FALSE),1))=FALSE,COUNTA('Enrollment Form'!$AZ551:$BC551)=4),AND('Enrollment Form'!$AY551=\"No\",ISERROR(FIND(\"HMO\",VLOOKUP('Enrollment Form'!G551,'Enrollment Form'!H$11:J$1000,3,FALSE),1))=FALSE,COUNTA('Enrollment Form'!$BT551:$BW551)=4)),\"Y\",\"N\"))","v":"-"},{"$f":"IF($B544=\"N\",\"\",IF('Enrollment Form'!$B551=\"Subscriber\",\"-\",IF(COUNTA('Enrollment Form'!$BL551,'Enrollment Form'!$BN551)=2,\"Y\",\"N\")))","v":""},{"$f":"IF($B544=\"N\",\"\",IF(OR('Enrollment Form'!$AX551=\"\",'Enrollment Form'!$AX551=\"No\"),\"-\",IF(AND('Enrollment Form'!$AX551=\"Yes\",COUNTA('Enrollment Form'!$CR551)=1),\"Y\",\"N\")))","v":""},{"$f":"IF(OR('Enrollment Form'!$CR551=\"\",'Enrollment Form'!$CR551=\"No\"),\"-\",IF(COUNTA('Enrollment Form'!$CT551:$CU551)=2,\"Y\",\"N\"))","v":"-"},{"$f":"IF($B544=\"N\",\"\",IF(COUNTIF('Enrollment Form'!$DG551:$DP551,\"Other\")=COUNTA('Enrollment Form'!$DK551,'Enrollment Form'!$DH551,'Enrollment Form'!$DN551,'Enrollment Form'!$DQ551),\"Y\",\"N\"))","v":""},{"$f":"IF($B544=\"N\",\"\",IF(OR('Enrollment Form'!B551<>\"Subscriber\",'Enrollment Form'!C551=\"ROC\",COUNTIF('Enrollment Form'!AV551:AW551,\"Yes\")>=1),\"-\",IF(AND('Enrollment Form'!C551=\"Enroll\",COUNTIF('Enrollment Form'!AV551:AW551,\"No\")=2,'Enrollment Form'!AX551=\"\"),\"N\",\"Y\")))","v":""},{"$f":"IF(OR(B544=\"N\",'Enrollment Form'!B551<>\"Subscriber\",'Enrollment Form'!C551=\"ROC\",'Enrollment Form'!O551<>\"Multiple of Salary\"),\"-\",IF(COUNTA('Enrollment Form'!T551:U551)<2,\"N\",\"Y\"))","v":"-"},{"$f":"IF(B544=\"N\",\"\",IF(OR('Enrollment Form'!C551=\"ROC\",'Enrollment Form'!B551<>\"Subscriber\",'Enrollment Form'!O551=\"Waive\",'Enrollment Form'!O551=\"\"),\"-\",IF('Enrollment Form'!P551=\"\",\"N\",\"Y\")))","v":""},{"$f":"IF($B544=\"N\",\"\",IF(AND('Enrollment Form'!$C551=\"ROC\",'Enrollment Form'!$DR551<>\"\"),\"Y\",IF(AND('Enrollment Form'!$C551=\"ROC\",'Enrollment Form'!$DR551=\"\"),\"N\",IF(AND('Enrollment Form'!$C551=\"Enroll\",'Enrollment Form'!$B551=\"Subscriber\",'Enrollment Form'!$CX551=\"No\",'Enrollment Form'!$DR551=\"\"),\"N\",IF(AND('Enrollment Form'!$C551=\"Enroll\",'Enrollment Form'!$B551=\"Subscriber\",'Enrollment Form'!$CX551=\"Yes\"),\"-\",\"Y\")))))","v":""},{"$f":"IF($B544=\"N\",\"\",IF(AND('Enrollment Form'!$C551=\"ROC\",'Enrollment Form'!$DS551<>\"\"),\"Y\",IF(AND('Enrollment Form'!$C551=\"ROC\",'Enrollment Form'!$DS551=\"\"),\"N\",IF(AND('Enrollment Form'!$C551=\"Enroll\",'Enrollment Form'!$B551=\"Subscriber\",'Enrollment Form'!$CX551=\"No\",'Enrollment Form'!$DS551=\"\"),\"N\",IF(AND('Enrollment Form'!$C551=\"Enroll\",'Enrollment Form'!$B551=\"Subscriber\",'Enrollment Form'!$CX551=\"Yes\"),\"-\",\"Y\")))))","v":""},{"$f":"IF('Enrollment Form'!AH551=\"\",\"\",IF(ISERROR(SEARCH(\".\",'Enrollment Form'!AH551,SEARCH(\"@\",'Enrollment Form'!AH551))),\"N\",\"Y\"))","v":""},{"$f":"IF(OR($B544=\"N\",'Enrollment Form'!$G551=\"\"),\"\",IF('Enrollment Form'!$B551<>\"Subscriber\",\"-\",IF(COUNTIF('Enrollment Form'!$AV551:$AW551,\"Yes\")=2,\"N\",\"Y\")))","v":""},{"$f":"IF(OR('Enrollment Form'!$CJ551=\"\",'Enrollment Form'!$CJ551=\"No\"),\"-\",IF(AND('Enrollment Form'!$CJ551=\"Yes\",'Enrollment Form'!$CK551=\"\"),\"N\",\"Y\"))","v":"-"},{"$f":"IF(OR('Enrollment Form'!$CL551=\"\",'Enrollment Form'!$CL551=\"No\"),\"-\",IF(AND('Enrollment Form'!$CL551=\"Yes\",'Enrollment Form'!$CM551=\"\"),\"N\",\"Y\"))","v":"-"},{"$f":"IF(OR('Enrollment Form'!$CN551=\"\",'Enrollment Form'!$CN551=\"No\"),\"-\",IF(AND('Enrollment Form'!$CN551=\"Yes\",'Enrollment Form'!$CO551=\"\"),\"N\",\"Y\"))","v":"-"},{"$f":"IF(OR('Enrollment Form'!$CN551=\"\",'Enrollment Form'!$CN551=\"No\"),\"-\",IF(AND('Enrollment Form'!$CN551=\"Yes\",'Enrollment Form'!$CP551=\"\"),\"N\",\"Y\"))","v":"-"},{"$f":"IF('Enrollment Form'!B551<>\"Subscriber\",\"-\",IF(AND('Enrollment Form'!B551=\"Subscriber\",'Enrollment Form'!C551=\"Enroll\",'Enrollment Form'!AA551=\"\"),\"N\",\"Y\"))","v":"-"},{"$f":"IF(OR('Enrollment Form'!B551=\"Subscriber\",'Enrollment Form'!B551=\"\"),\"-\",IF('Enrollment Form'!BP551=\"\",\"N\",\"Y\"))","v":"-"},{"$f":"IF('Enrollment Form'!B551<>\"Subscriber\",\"-\",IF(AND('Enrollment Form'!B551=\"Subscriber\",'Enrollment Form'!G551=\"\"),\"N\",\"Y\"))","v":"-"},{"$f":"IF('Enrollment Form'!A551=\"\",\"\",IF('Enrollment Form'!B551=\"Subscriber\",\"-\",IF(AND('Enrollment Form'!B551<>\"Subscriber\",'Enrollment Form'!G551='Enrollment Form'!H551),\"N\",\"Y\")))","v":""},0]
[552,{"$f":"IF('Enrollment Form'!$A552<>\"\",\"Y\",\"N\")","v":"N"},{"$f":"IF(AND('Enrollment Form'!$B552=\"\",'Enrollment Form'!$C552<>\"\"),\"N\",IF($B545=\"N\",\"\",\"Y\"))","v":""},{"$f":"IF(OR($B545=\"N\",'Enrollment Form'!G552=\"\"),\"\",IF('Enrollment Form'!$B552<>\"Subscriber\",\"\",IF('Enrollment Form'!$G552='Enrollment Form'!$H552,\"Y\",\"N\")))","v":""},{"$f":"IF($B545=\"N\",\"\",IF(AND(COUNTIFS('Enrollment Form'!$H$11:$H$1000,'Enrollment Form'!$H552,'Enrollment Form'!$B$11:$B$1000,'Enrollment Form'!$B552)>1,'Enrollment Form'!$H552<>\"\"),\"N\",\"Y\"))","v":""},{"$f":"IF($B545=\"N\",\"\",IF(LEN('Enrollment Form'!$Y552)=0,\"\",IF(LEN('Enrollment Form'!$Y552)<>5,\"N\",\"Y\")))","v":""},{"$f":"IF($B545=\"N\",\"\",IF(LEN('Enrollment Form'!$AD552=0),\"\",IF(LEN('Enrollment Form'!$AD552)<>5,\"N\",\"Y\")))","v":""},{"$f":"IF($B545=\"N\",\"\",IF(LEN('Enrollment Form'!$BS552=0),\"\",IF(LEN('Enrollment Form'!$BS552)<>5,\"N\",\"Y\")))","v":""},{"$f":"IF($B545=\"N\",\"\",IF(LEN('Enrollment Form'!$AE552)=0,\"\",IF(LEN('Enrollment Form'!$AE552)<>10,\"N\",\"Y\")))","v":""},{"$f":"IF($B545=\"N\",\"\",IF(LEN('Enrollment Form'!$AF552)=0,\"\",IF(LEN('Enrollment Form'!$AF552)<>10,\"N\",\"Y\")))","v":""},{"$f":"IF('Enrollment Form'!$O552<>\"Graded\",\"-\",IF(AND('Enrollment Form'!$O552=\"Graded\",'Enrollment Form'!$AR552<>\"\"),\"Y\",\"N\"))","v":"-"},{"$f":"IF($B545=\"N\",\"\",IF(OR('Enrollment Form'!$B552<>\"Subscriber\",'Enrollment Form'!$C552=\"ROC\"),\"-\",IF(AND('Enrollment Form'!$B552=\"Subscriber\",'Enrollment Form'!$C552=\"Enroll\",'Enrollment Form'!$AJ552<>\"\"),\"Y\",\"N\")))","v":""},{"$f":"IF($B545=\"N\",\"\",IF(OR('Enrollment Form'!$B552<>\"Subscriber\",'Enrollment Form'!$C552=\"ROC\"),\"-\",IF(AND('Enrollment Form'!$B552=\"Subscriber\",'Enrollment Form'!$C552=\"Enroll\",'Enrollment Form'!$AK552<>\"\"),\"Y\",\"N\")))","v":""},{"$f":"IF($B545=\"N\",\"\",IF(OR('Enrollment Form'!$B552<>\"Subscriber\",'Enrollment Form'!$C552=\"ROC\"),\"-\",IF(AND('Enrollment Form'!$B552=\"Subscriber\",'Enrollment Form'!$C552=\"Enroll\",'Enrollment Form'!$AL552<>\"\"),\"Y\",\"N\")))","v":""},{"$f":"IF($B545=\"N\",\"\",IF(OR('Enrollment Form'!$B552<>\"Subscriber\",'Enrollment Form'!$C552=\"ROC\"),\"-\",IF(AND('Enrollment Form'!$B552=\"Subscriber\",'Enrollment Form'!$C552=\"Enroll\",'Enrollment Form'!$AP552<>\"\"),\"Y\",\"N\")))","v":""},{"$f":"IF($B545=\"N\",\"\",IF(OR('Enrollment Form'!$B552<>\"Subscriber\",'Enrollment Form'!$C552=\"ROC\"),\"-\",IF(AND('Enrollment Form'!$B552=\"Subscriber\",'Enrollment Form'!$C552=\"Enroll\",'Enrollment Form'!$AQ552<>\"\"),\"Y\",\"N\")))","v":""},{"$f":"IF($B545=\"N\",\"\",IF(OR('Enrollment Form'!$B552<>\"Subscriber\",'Enrollment Form'!$C552=\"ROC\"),\"-\",IF(AND('Enrollment Form'!$B552=\"Subscriber\",'Enrollment Form'!$C552=\"Enroll\",'Enrollment Form'!$AS552<>\"\"),\"Y\",\"N\")))","v":""},{"$f":"IF($B545=\"N\",\"\",IF($Q545=\"-\",\"-\",IF(AND($Q545=\"Y\",'Enrollment Form'!$AS552=\"No\"),\"-\",IF(AND($Q545=\"Y\",'Enrollment Form'!$AS552=\"Yes\",'Enrollment Form'!$AT552<>\"\"),\"Y\",\"N\"))))","v":""},{"$f":"IF($B545=\"N\",\"\",IF(OR('Enrollment Form'!$B552<>\"Subscriber\",'Enrollment Form'!$C552=\"ROC\"),\"-\",IF(AND('Enrollment Form'!$B552=\"Subscriber\",'Enrollment Form'!$C552=\"Enroll\",'Enrollment Form'!$CV552<>\"\"),\"Y\",\"N\")))","v":""},{"$f":"IF($B545=\"N\",\"\",IF($S545=\"-\",\"-\",IF(AND($S545=\"Y\",'Enrollment Form'!$CV552=\"No\"),\"-\",IF(AND($S545=\"Y\",'Enrollment Form'!$CV552=\"Yes\",'Enrollment Form'!$CW552<>\"\"),\"Y\",\"N\"))))","v":""},{"$f":"IF(OR('Enrollment Form'!$AY552=\"Yes\",'Enrollment Form'!$AY552=\"\"),\"-\",IF(OR(AND('Enrollment Form'!$AY552=\"No\",ISERROR(FIND(\"HMO\",VLOOKUP('Enrollment Form'!G552,'Enrollment Form'!H$11:J$1000,3,FALSE),1))=FALSE,COUNTA('Enrollment Form'!$AZ552:$BC552)=4),AND('Enrollment Form'!$AY552=\"No\",ISERROR(FIND(\"HMO\",VLOOKUP('Enrollment Form'!G552,'Enrollment Form'!H$11:J$1000,3,FALSE),1))=FALSE,COUNTA('Enrollment Form'!$BT552:$BW552)=4)),\"Y\",\"N\"))","v":"-"},{"$f":"IF($B545=\"N\",\"\",IF('Enrollment Form'!$B552=\"Subscriber\",\"-\",IF(COUNTA('Enrollment Form'!$BL552,'Enrollment Form'!$BN552)=2,\"Y\",\"N\")))","v":""},{"$f":"IF($B545=\"N\",\"\",IF(OR('Enrollment Form'!$AX552=\"\",'Enrollment Form'!$AX552=\"No\"),\"-\",IF(AND('Enrollment Form'!$AX552=\"Yes\",COUNTA('Enrollment Form'!$CR552)=1),\"Y\",\"N\")))","v":""},{"$f":"IF(OR('Enrollment Form'!$CR552=\"\",'Enrollment Form'!$CR552=\"No\"),\"-\",IF(COUNTA('Enrollment Form'!$CT552:$CU552)=2,\"Y\",\"N\"))","v":"-"},{"$f":"IF($B545=\"N\",\"\",IF(COUNTIF('Enrollment Form'!$DG552:$DP552,\"Other\")=COUNTA('Enrollment Form'!$DK552,'Enrollment Form'!$DH552,'Enrollment Form'!$DN552,'Enrollment Form'!$DQ552),\"Y\",\"N\"))","v":""},{"$f":"IF($B545=\"N\",\"\",IF(OR('Enrollment Form'!B552<>\"Subscriber\",'Enrollment Form'!C552=\"ROC\",COUNTIF('Enrollment Form'!AV552:AW552,\"Yes\")>=1),\"-\",IF(AND('Enrollment Form'!C552=\"Enroll\",COUNTIF('Enrollment Form'!AV552:AW552,\"No\")=2,'Enrollment Form'!AX552=\"\"),\"N\",\"Y\")))","v":""},{"$f":"IF(OR(B545=\"N\",'Enrollment Form'!B552<>\"Subscriber\",'Enrollment Form'!C552=\"ROC\",'Enrollment Form'!O552<>\"Multiple of Salary\"),\"-\",IF(COUNTA('Enrollment Form'!T552:U552)<2,\"N\",\"Y\"))","v":"-"},{"$f":"IF(B545=\"N\",\"\",IF(OR('Enrollment Form'!C552=\"ROC\",'Enrollment Form'!B552<>\"Subscriber\",'Enrollment Form'!O552=\"Waive\",'Enrollment Form'!O552=\"\"),\"-\",IF('Enrollment Form'!P552=\"\",\"N\",\"Y\")))","v":""},{"$f":"IF($B545=\"N\",\"\",IF(AND('Enrollment Form'!$C552=\"ROC\",'Enrollment Form'!$DR552<>\"\"),\"Y\",IF(AND('Enrollment Form'!$C552=\"ROC\",'Enrollment Form'!$DR552=\"\"),\"N\",IF(AND('Enrollment Form'!$C552=\"Enroll\",'Enrollment Form'!$B552=\"Subscriber\",'Enrollment Form'!$CX552=\"No\",'Enrollment Form'!$DR552=\"\"),\"N\",IF(AND('Enrollment Form'!$C552=\"Enroll\",'Enrollment Form'!$B552=\"Subscriber\",'Enrollment Form'!$CX552=\"Yes\"),\"-\",\"Y\")))))","v":""},{"$f":"IF($B545=\"N\",\"\",IF(AND('Enrollment Form'!$C552=\"ROC\",'Enrollment Form'!$DS552<>\"\"),\"Y\",IF(AND('Enrollment Form'!$C552=\"ROC\",'Enrollment Form'!$DS552=\"\"),\"N\",IF(AND('Enrollment Form'!$C552=\"Enroll\",'Enrollment Form'!$B552=\"Subscriber\",'Enrollment Form'!$CX552=\"No\",'Enrollment Form'!$DS552=\"\"),\"N\",IF(AND('Enrollment Form'!$C552=\"Enroll\",'Enrollment Form'!$B552=\"Subscriber\",'Enrollment Form'!$CX552=\"Yes\"),\"-\",\"Y\")))))","v":""},{"$f":"IF('Enrollment Form'!AH552=\"\",\"\",IF(ISERROR(SEARCH(\".\",'Enrollment Form'!AH552,SEARCH(\"@\",'Enrollment Form'!AH552))),\"N\",\"Y\"))","v":""},{"$f":"IF(OR($B545=\"N\",'Enrollment Form'!$G552=\"\"),\"\",IF('Enrollment Form'!$B552<>\"Subscriber\",\"-\",IF(COUNTIF('Enrollment Form'!$AV552:$AW552,\"Yes\")=2,\"N\",\"Y\")))","v":""},{"$f":"IF(OR('Enrollment Form'!$CJ552=\"\",'Enrollment Form'!$CJ552=\"No\"),\"-\",IF(AND('Enrollment Form'!$CJ552=\"Yes\",'Enrollment Form'!$CK552=\"\"),\"N\",\"Y\"))","v":"-"},{"$f":"IF(OR('Enrollment Form'!$CL552=\"\",'Enrollment Form'!$CL552=\"No\"),\"-\",IF(AND('Enrollment Form'!$CL552=\"Yes\",'Enrollment Form'!$CM552=\"\"),\"N\",\"Y\"))","v":"-"},{"$f":"IF(OR('Enrollment Form'!$CN552=\"\",'Enrollment Form'!$CN552=\"No\"),\"-\",IF(AND('Enrollment Form'!$CN552=\"Yes\",'Enrollment Form'!$CO552=\"\"),\"N\",\"Y\"))","v":"-"},{"$f":"IF(OR('Enrollment Form'!$CN552=\"\",'Enrollment Form'!$CN552=\"No\"),\"-\",IF(AND('Enrollment Form'!$CN552=\"Yes\",'Enrollment Form'!$CP552=\"\"),\"N\",\"Y\"))","v":"-"},{"$f":"IF('Enrollment Form'!B552<>\"Subscriber\",\"-\",IF(AND('Enrollment Form'!B552=\"Subscriber\",'Enrollment Form'!C552=\"Enroll\",'Enrollment Form'!AA552=\"\"),\"N\",\"Y\"))","v":"-"},{"$f":"IF(OR('Enrollment Form'!B552=\"Subscriber\",'Enrollment Form'!B552=\"\"),\"-\",IF('Enrollment Form'!BP552=\"\",\"N\",\"Y\"))","v":"-"},{"$f":"IF('Enrollment Form'!B552<>\"Subscriber\",\"-\",IF(AND('Enrollment Form'!B552=\"Subscriber\",'Enrollment Form'!G552=\"\"),\"N\",\"Y\"))","v":"-"},{"$f":"IF('Enrollment Form'!A552=\"\",\"\",IF('Enrollment Form'!B552=\"Subscriber\",\"-\",IF(AND('Enrollment Form'!B552<>\"Subscriber\",'Enrollment Form'!G552='Enrollment Form'!H552),\"N\",\"Y\")))","v":""},0]
[553,{"$f":"IF('Enrollment Form'!$A553<>\"\",\"Y\",\"N\")","v":"N"},{"$f":"IF(AND('Enrollment Form'!$B553=\"\",'Enrollment Form'!$C553<>\"\"),\"N\",IF($B546=\"N\",\"\",\"Y\"))","v":""},{"$f":"IF(OR($B546=\"N\",'Enrollment Form'!G553=\"\"),\"\",IF('Enrollment Form'!$B553<>\"Subscriber\",\"\",IF('Enrollment Form'!$G553='Enrollment Form'!$H553,\"Y\",\"N\")))","v":""},{"$f":"IF($B546=\"N\",\"\",IF(AND(COUNTIFS('Enrollment Form'!$H$11:$H$1000,'Enrollment Form'!$H553,'Enrollment Form'!$B$11:$B$1000,'Enrollment Form'!$B553)>1,'Enrollment Form'!$H553<>\"\"),\"N\",\"Y\"))","v":""},{"$f":"IF($B546=\"N\",\"\",IF(LEN('Enrollment Form'!$Y553)=0,\"\",IF(LEN('Enrollment Form'!$Y553)<>5,\"N\",\"Y\")))","v":""},{"$f":"IF($B546=\"N\",\"\",IF(LEN('Enrollment Form'!$AD553=0),\"\",IF(LEN('Enrollment Form'!$AD553)<>5,\"N\",\"Y\")))","v":""},{"$f":"IF($B546=\"N\",\"\",IF(LEN('Enrollment Form'!$BS553=0),\"\",IF(LEN('Enrollment Form'!$BS553)<>5,\"N\",\"Y\")))","v":""},{"$f":"IF($B546=\"N\",\"\",IF(LEN('Enrollment Form'!$AE553)=0,\"\",IF(LEN('Enrollment Form'!$AE553)<>10,\"N\",\"Y\")))","v":""},{"$f":"IF($B546=\"N\",\"\",IF(LEN('Enrollment Form'!$AF553)=0,\"\",IF(LEN('Enrollment Form'!$AF553)<>10,\"N\",\"Y\")))","v":""},{"$f":"IF('Enrollment Form'!$O553<>\"Graded\",\"-\",IF(AND('Enrollment Form'!$O553=\"Graded\",'Enrollment Form'!$AR553<>\"\"),\"Y\",\"N\"))","v":"-"},{"$f":"IF($B546=\"N\",\"\",IF(OR('Enrollment Form'!$B553<>\"Subscriber\",'Enrollment Form'!$C553=\"ROC\"),\"-\",IF(AND('Enrollment Form'!$B553=\"Subscriber\",'Enrollment Form'!$C553=\"Enroll\",'Enrollment Form'!$AJ553<>\"\"),\"Y\",\"N\")))","v":""},{"$f":"IF($B546=\"N\",\"\",IF(OR('Enrollment Form'!$B553<>\"Subscriber\",'Enrollment Form'!$C553=\"ROC\"),\"-\",IF(AND('Enrollment Form'!$B553=\"Subscriber\",'Enrollment Form'!$C553=\"Enroll\",'Enrollment Form'!$AK553<>\"\"),\"Y\",\"N\")))","v":""},{"$f":"IF($B546=\"N\",\"\",IF(OR('Enrollment Form'!$B553<>\"Subscriber\",'Enrollment Form'!$C553=\"ROC\"),\"-\",IF(AND('Enrollment Form'!$B553=\"Subscriber\",'Enrollment Form'!$C553=\"Enroll\",'Enrollment Form'!$AL553<>\"\"),\"Y\",\"N\")))","v":""},{"$f":"IF($B546=\"N\",\"\",IF(OR('Enrollment Form'!$B553<>\"Subscriber\",'Enrollment Form'!$C553=\"ROC\"),\"-\",IF(AND('Enrollment Form'!$B553=\"Subscriber\",'Enrollment Form'!$C553=\"Enroll\",'Enrollment Form'!$AP553<>\"\"),\"Y\",\"N\")))","v":""},{"$f":"IF($B546=\"N\",\"\",IF(OR('Enrollment Form'!$B553<>\"Subscriber\",'Enrollment Form'!$C553=\"ROC\"),\"-\",IF(AND('Enrollment Form'!$B553=\"Subscriber\",'Enrollment Form'!$C553=\"Enroll\",'Enrollment Form'!$AQ553<>\"\"),\"Y\",\"N\")))","v":""},{"$f":"IF($B546=\"N\",\"\",IF(OR('Enrollment Form'!$B553<>\"Subscriber\",'Enrollment Form'!$C553=\"ROC\"),\"-\",IF(AND('Enrollment Form'!$B553=\"Subscriber\",'Enrollment Form'!$C553=\"Enroll\",'Enrollment Form'!$AS553<>\"\"),\"Y\",\"N\")))","v":""},{"$f":"IF($B546=\"N\",\"\",IF($Q546=\"-\",\"-\",IF(AND($Q546=\"Y\",'Enrollment Form'!$AS553=\"No\"),\"-\",IF(AND($Q546=\"Y\",'Enrollment Form'!$AS553=\"Yes\",'Enrollment Form'!$AT553<>\"\"),\"Y\",\"N\"))))","v":""},{"$f":"IF($B546=\"N\",\"\",IF(OR('Enrollment Form'!$B553<>\"Subscriber\",'Enrollment Form'!$C553=\"ROC\"),\"-\",IF(AND('Enrollment Form'!$B553=\"Subscriber\",'Enrollment Form'!$C553=\"Enroll\",'Enrollment Form'!$CV553<>\"\"),\"Y\",\"N\")))","v":""},{"$f":"IF($B546=\"N\",\"\",IF($S546=\"-\",\"-\",IF(AND($S546=\"Y\",'Enrollment Form'!$CV553=\"No\"),\"-\",IF(AND($S546=\"Y\",'Enrollment Form'!$CV553=\"Yes\",'Enrollment Form'!$CW553<>\"\"),\"Y\",\"N\"))))","v":""},{"$f":"IF(OR('Enrollment Form'!$AY553=\"Yes\",'Enrollment Form'!$AY553=\"\"),\"-\",IF(OR(AND('Enrollment Form'!$AY553=\"No\",ISERROR(FIND(\"HMO\",VLOOKUP('Enrollment Form'!G553,'Enrollment Form'!H$11:J$1000,3,FALSE),1))=FALSE,COUNTA('Enrollment Form'!$AZ553:$BC553)=4),AND('Enrollment Form'!$AY553=\"No\",ISERROR(FIND(\"HMO\",VLOOKUP('Enrollment Form'!G553,'Enrollment Form'!H$11:J$1000,3,FALSE),1))=FALSE,COUNTA('Enrollment Form'!$BT553:$BW553)=4)),\"Y\",\"N\"))","v":"-"},{"$f":"IF($B546=\"N\",\"\",IF('Enrollment Form'!$B553=\"Subscriber\",\"-\",IF(COUNTA('Enrollment Form'!$BL553,'Enrollment Form'!$BN553)=2,\"Y\",\"N\")))","v":""},{"$f":"IF($B546=\"N\",\"\",IF(OR('Enrollment Form'!$AX553=\"\",'Enrollment Form'!$AX553=\"No\"),\"-\",IF(AND('Enrollment Form'!$AX553=\"Yes\",COUNTA('Enrollment Form'!$CR553)=1),\"Y\",\"N\")))","v":""},{"$f":"IF(OR('Enrollment Form'!$CR553=\"\",'Enrollment Form'!$CR553=\"No\"),\"-\",IF(COUNTA('Enrollment Form'!$CT553:$CU553)=2,\"Y\",\"N\"))","v":"-"},{"$f":"IF($B546=\"N\",\"\",IF(COUNTIF('Enrollment Form'!$DG553:$DP553,\"Other\")=COUNTA('Enrollment Form'!$DK553,'Enrollment Form'!$DH553,'Enrollment Form'!$DN553,'Enrollment Form'!$DQ553),\"Y\",\"N\"))","v":""},{"$f":"IF($B546=\"N\",\"\",IF(OR('Enrollment Form'!B553<>\"Subscriber\",'Enrollment Form'!C553=\"ROC\",COUNTIF('Enrollment Form'!AV553:AW553,\"Yes\")>=1),\"-\",IF(AND('Enrollment Form'!C553=\"Enroll\",COUNTIF('Enrollment Form'!AV553:AW553,\"No\")=2,'Enrollment Form'!AX553=\"\"),\"N\",\"Y\")))","v":""},{"$f":"IF(OR(B546=\"N\",'Enrollment Form'!B553<>\"Subscriber\",'Enrollment Form'!C553=\"ROC\",'Enrollment Form'!O553<>\"Multiple of Salary\"),\"-\",IF(COUNTA('Enrollment Form'!T553:U553)<2,\"N\",\"Y\"))","v":"-"},{"$f":"IF(B546=\"N\",\"\",IF(OR('Enrollment Form'!C553=\"ROC\",'Enrollment Form'!B553<>\"Subscriber\",'Enrollment Form'!O553=\"Waive\",'Enrollment Form'!O553=\"\"),\"-\",IF('Enrollment Form'!P553=\"\",\"N\",\"Y\")))","v":""},{"$f":"IF($B546=\"N\",\"\",IF(AND('Enrollment Form'!$C553=\"ROC\",'Enrollment Form'!$DR553<>\"\"),\"Y\",IF(AND('Enrollment Form'!$C553=\"ROC\",'Enrollment Form'!$DR553=\"\"),\"N\",IF(AND('Enrollment Form'!$C553=\"Enroll\",'Enrollment Form'!$B553=\"Subscriber\",'Enrollment Form'!$CX553=\"No\",'Enrollment Form'!$DR553=\"\"),\"N\",IF(AND('Enrollment Form'!$C553=\"Enroll\",'Enrollment Form'!$B553=\"Subscriber\",'Enrollment Form'!$CX553=\"Yes\"),\"-\",\"Y\")))))","v":""},{"$f":"IF($B546=\"N\",\"\",IF(AND('Enrollment Form'!$C553=\"ROC\",'Enrollment Form'!$DS553<>\"\"),\"Y\",IF(AND('Enrollment Form'!$C553=\"ROC\",'Enrollment Form'!$DS553=\"\"),\"N\",IF(AND('Enrollment Form'!$C553=\"Enroll\",'Enrollment Form'!$B553=\"Subscriber\",'Enrollment Form'!$CX553=\"No\",'Enrollment Form'!$DS553=\"\"),\"N\",IF(AND('Enrollment Form'!$C553=\"Enroll\",'Enrollment Form'!$B553=\"Subscriber\",'Enrollment Form'!$CX553=\"Yes\"),\"-\",\"Y\")))))","v":""},{"$f":"IF('Enrollment Form'!AH553=\"\",\"\",IF(ISERROR(SEARCH(\".\",'Enrollment Form'!AH553,SEARCH(\"@\",'Enrollment Form'!AH553))),\"N\",\"Y\"))","v":""},{"$f":"IF(OR($B546=\"N\",'Enrollment Form'!$G553=\"\"),\"\",IF('Enrollment Form'!$B553<>\"Subscriber\",\"-\",IF(COUNTIF('Enrollment Form'!$AV553:$AW553,\"Yes\")=2,\"N\",\"Y\")))","v":""},{"$f":"IF(OR('Enrollment Form'!$CJ553=\"\",'Enrollment Form'!$CJ553=\"No\"),\"-\",IF(AND('Enrollment Form'!$CJ553=\"Yes\",'Enrollment Form'!$CK553=\"\"),\"N\",\"Y\"))","v":"-"},{"$f":"IF(OR('Enrollment Form'!$CL553=\"\",'Enrollment Form'!$CL553=\"No\"),\"-\",IF(AND('Enrollment Form'!$CL553=\"Yes\",'Enrollment Form'!$CM553=\"\"),\"N\",\"Y\"))","v":"-"},{"$f":"IF(OR('Enrollment Form'!$CN553=\"\",'Enrollment Form'!$CN553=\"No\"),\"-\",IF(AND('Enrollment Form'!$CN553=\"Yes\",'Enrollment Form'!$CO553=\"\"),\"N\",\"Y\"))","v":"-"},{"$f":"IF(OR('Enrollment Form'!$CN553=\"\",'Enrollment Form'!$CN553=\"No\"),\"-\",IF(AND('Enrollment Form'!$CN553=\"Yes\",'Enrollment Form'!$CP553=\"\"),\"N\",\"Y\"))","v":"-"},{"$f":"IF('Enrollment Form'!B553<>\"Subscriber\",\"-\",IF(AND('Enrollment Form'!B553=\"Subscriber\",'Enrollment Form'!C553=\"Enroll\",'Enrollment Form'!AA553=\"\"),\"N\",\"Y\"))","v":"-"},{"$f":"IF(OR('Enrollment Form'!B553=\"Subscriber\",'Enrollment Form'!B553=\"\"),\"-\",IF('Enrollment Form'!BP553=\"\",\"N\",\"Y\"))","v":"-"},{"$f":"IF('Enrollment Form'!B553<>\"Subscriber\",\"-\",IF(AND('Enrollment Form'!B553=\"Subscriber\",'Enrollment Form'!G553=\"\"),\"N\",\"Y\"))","v":"-"},{"$f":"IF('Enrollment Form'!A553=\"\",\"\",IF('Enrollment Form'!B553=\"Subscriber\",\"-\",IF(AND('Enrollment Form'!B553<>\"Subscriber\",'Enrollment Form'!G553='Enrollment Form'!H553),\"N\",\"Y\")))","v":""},0]
[554,{"$f":"IF('Enrollment Form'!$A554<>\"\",\"Y\",\"N\")","v":"N"},{"$f":"IF(AND('Enrollment Form'!$B554=\"\",'Enrollment Form'!$C554<>\"\"),\"N\",IF($B547=\"N\",\"\",\"Y\"))","v":""},{"$f":"IF(OR($B547=\"N\",'Enrollment Form'!G554=\"\"),\"\",IF('Enrollment Form'!$B554<>\"Subscriber\",\"\",IF('Enrollment Form'!$G554='Enrollment Form'!$H554,\"Y\",\"N\")))","v":""},{"$f":"IF($B547=\"N\",\"\",IF(AND(COUNTIFS('Enrollment Form'!$H$11:$H$1000,'Enrollment Form'!$H554,'Enrollment Form'!$B$11:$B$1000,'Enrollment Form'!$B554)>1,'Enrollment Form'!$H554<>\"\"),\"N\",\"Y\"))","v":""},{"$f":"IF($B547=\"N\",\"\",IF(LEN('Enrollment Form'!$Y554)=0,\"\",IF(LEN('Enrollment Form'!$Y554)<>5,\"N\",\"Y\")))","v":""},{"$f":"IF($B547=\"N\",\"\",IF(LEN('Enrollment Form'!$AD554=0),\"\",IF(LEN('Enrollment Form'!$AD554)<>5,\"N\",\"Y\")))","v":""},{"$f":"IF($B547=\"N\",\"\",IF(LEN('Enrollment Form'!$BS554=0),\"\",IF(LEN('Enrollment Form'!$BS554)<>5,\"N\",\"Y\")))","v":""},{"$f":"IF($B547=\"N\",\"\",IF(LEN('Enrollment Form'!$AE554)=0,\"\",IF(LEN('Enrollment Form'!$AE554)<>10,\"N\",\"Y\")))","v":""},{"$f":"IF($B547=\"N\",\"\",IF(LEN('Enrollment Form'!$AF554)=0,\"\",IF(LEN('Enrollment Form'!$AF554)<>10,\"N\",\"Y\")))","v":""},{"$f":"IF('Enrollment Form'!$O554<>\"Graded\",\"-\",IF(AND('Enrollment Form'!$O554=\"Graded\",'Enrollment Form'!$AR554<>\"\"),\"Y\",\"N\"))","v":"-"},{"$f":"IF($B547=\"N\",\"\",IF(OR('Enrollment Form'!$B554<>\"Subscriber\",'Enrollment Form'!$C554=\"ROC\"),\"-\",IF(AND('Enrollment Form'!$B554=\"Subscriber\",'Enrollment Form'!$C554=\"Enroll\",'Enrollment Form'!$AJ554<>\"\"),\"Y\",\"N\")))","v":""},{"$f":"IF($B547=\"N\",\"\",IF(OR('Enrollment Form'!$B554<>\"Subscriber\",'Enrollment Form'!$C554=\"ROC\"),\"-\",IF(AND('Enrollment Form'!$B554=\"Subscriber\",'Enrollment Form'!$C554=\"Enroll\",'Enrollment Form'!$AK554<>\"\"),\"Y\",\"N\")))","v":""},{"$f":"IF($B547=\"N\",\"\",IF(OR('Enrollment Form'!$B554<>\"Subscriber\",'Enrollment Form'!$C554=\"ROC\"),\"-\",IF(AND('Enrollment Form'!$B554=\"Subscriber\",'Enrollment Form'!$C554=\"Enroll\",'Enrollment Form'!$AL554<>\"\"),\"Y\",\"N\")))","v":""},{"$f":"IF($B547=\"N\",\"\",IF(OR('Enrollment Form'!$B554<>\"Subscriber\",'Enrollment Form'!$C554=\"ROC\"),\"-\",IF(AND('Enrollment Form'!$B554=\"Subscriber\",'Enrollment Form'!$C554=\"Enroll\",'Enrollment Form'!$AP554<>\"\"),\"Y\",\"N\")))","v":""},{"$f":"IF($B547=\"N\",\"\",IF(OR('Enrollment Form'!$B554<>\"Subscriber\",'Enrollment Form'!$C554=\"ROC\"),\"-\",IF(AND('Enrollment Form'!$B554=\"Subscriber\",'Enrollment Form'!$C554=\"Enroll\",'Enrollment Form'!$AQ554<>\"\"),\"Y\",\"N\")))","v":""},{"$f":"IF($B547=\"N\",\"\",IF(OR('Enrollment Form'!$B554<>\"Subscriber\",'Enrollment Form'!$C554=\"ROC\"),\"-\",IF(AND('Enrollment Form'!$B554=\"Subscriber\",'Enrollment Form'!$C554=\"Enroll\",'Enrollment Form'!$AS554<>\"\"),\"Y\",\"N\")))","v":""},{"$f":"IF($B547=\"N\",\"\",IF($Q547=\"-\",\"-\",IF(AND($Q547=\"Y\",'Enrollment Form'!$AS554=\"No\"),\"-\",IF(AND($Q547=\"Y\",'Enrollment Form'!$AS554=\"Yes\",'Enrollment Form'!$AT554<>\"\"),\"Y\",\"N\"))))","v":""},{"$f":"IF($B547=\"N\",\"\",IF(OR('Enrollment Form'!$B554<>\"Subscriber\",'Enrollment Form'!$C554=\"ROC\"),\"-\",IF(AND('Enrollment Form'!$B554=\"Subscriber\",'Enrollment Form'!$C554=\"Enroll\",'Enrollment Form'!$CV554<>\"\"),\"Y\",\"N\")))","v":""},{"$f":"IF($B547=\"N\",\"\",IF($S547=\"-\",\"-\",IF(AND($S547=\"Y\",'Enrollment Form'!$CV554=\"No\"),\"-\",IF(AND($S547=\"Y\",'Enrollment Form'!$CV554=\"Yes\",'Enrollment Form'!$CW554<>\"\"),\"Y\",\"N\"))))","v":""},{"$f":"IF(OR('Enrollment Form'!$AY554=\"Yes\",'Enrollment Form'!$AY554=\"\"),\"-\",IF(OR(AND('Enrollment Form'!$AY554=\"No\",ISERROR(FIND(\"HMO\",VLOOKUP('Enrollment Form'!G554,'Enrollment Form'!H$11:J$1000,3,FALSE),1))=FALSE,COUNTA('Enrollment Form'!$AZ554:$BC554)=4),AND('Enrollment Form'!$AY554=\"No\",ISERROR(FIND(\"HMO\",VLOOKUP('Enrollment Form'!G554,'Enrollment Form'!H$11:J$1000,3,FALSE),1))=FALSE,COUNTA('Enrollment Form'!$BT554:$BW554)=4)),\"Y\",\"N\"))","v":"-"},{"$f":"IF($B547=\"N\",\"\",IF('Enrollment Form'!$B554=\"Subscriber\",\"-\",IF(COUNTA('Enrollment Form'!$BL554,'Enrollment Form'!$BN554)=2,\"Y\",\"N\")))","v":""},{"$f":"IF($B547=\"N\",\"\",IF(OR('Enrollment Form'!$AX554=\"\",'Enrollment Form'!$AX554=\"No\"),\"-\",IF(AND('Enrollment Form'!$AX554=\"Yes\",COUNTA('Enrollment Form'!$CR554)=1),\"Y\",\"N\")))","v":""},{"$f":"IF(OR('Enrollment Form'!$CR554=\"\",'Enrollment Form'!$CR554=\"No\"),\"-\",IF(COUNTA('Enrollment Form'!$CT554:$CU554)=2,\"Y\",\"N\"))","v":"-"},{"$f":"IF($B547=\"N\",\"\",IF(COUNTIF('Enrollment Form'!$DG554:$DP554,\"Other\")=COUNTA('Enrollment Form'!$DK554,'Enrollment Form'!$DH554,'Enrollment Form'!$DN554,'Enrollment Form'!$DQ554),\"Y\",\"N\"))","v":""},{"$f":"IF($B547=\"N\",\"\",IF(OR('Enrollment Form'!B554<>\"Subscriber\",'Enrollment Form'!C554=\"ROC\",COUNTIF('Enrollment Form'!AV554:AW554,\"Yes\")>=1),\"-\",IF(AND('Enrollment Form'!C554=\"Enroll\",COUNTIF('Enrollment Form'!AV554:AW554,\"No\")=2,'Enrollment Form'!AX554=\"\"),\"N\",\"Y\")))","v":""},{"$f":"IF(OR(B547=\"N\",'Enrollment Form'!B554<>\"Subscriber\",'Enrollment Form'!C554=\"ROC\",'Enrollment Form'!O554<>\"Multiple of Salary\"),\"-\",IF(COUNTA('Enrollment Form'!T554:U554)<2,\"N\",\"Y\"))","v":"-"},{"$f":"IF(B547=\"N\",\"\",IF(OR('Enrollment Form'!C554=\"ROC\",'Enrollment Form'!B554<>\"Subscriber\",'Enrollment Form'!O554=\"Waive\",'Enrollment Form'!O554=\"\"),\"-\",IF('Enrollment Form'!P554=\"\",\"N\",\"Y\")))","v":""},{"$f":"IF($B547=\"N\",\"\",IF(AND('Enrollment Form'!$C554=\"ROC\",'Enrollment Form'!$DR554<>\"\"),\"Y\",IF(AND('Enrollment Form'!$C554=\"ROC\",'Enrollment Form'!$DR554=\"\"),\"N\",IF(AND('Enrollment Form'!$C554=\"Enroll\",'Enrollment Form'!$B554=\"Subscriber\",'Enrollment Form'!$CX554=\"No\",'Enrollment Form'!$DR554=\"\"),\"N\",IF(AND('Enrollment Form'!$C554=\"Enroll\",'Enrollment Form'!$B554=\"Subscriber\",'Enrollment Form'!$CX554=\"Yes\"),\"-\",\"Y\")))))","v":""},{"$f":"IF($B547=\"N\",\"\",IF(AND('Enrollment Form'!$C554=\"ROC\",'Enrollment Form'!$DS554<>\"\"),\"Y\",IF(AND('Enrollment Form'!$C554=\"ROC\",'Enrollment Form'!$DS554=\"\"),\"N\",IF(AND('Enrollment Form'!$C554=\"Enroll\",'Enrollment Form'!$B554=\"Subscriber\",'Enrollment Form'!$CX554=\"No\",'Enrollment Form'!$DS554=\"\"),\"N\",IF(AND('Enrollment Form'!$C554=\"Enroll\",'Enrollment Form'!$B554=\"Subscriber\",'Enrollment Form'!$CX554=\"Yes\"),\"-\",\"Y\")))))","v":""},{"$f":"IF('Enrollment Form'!AH554=\"\",\"\",IF(ISERROR(SEARCH(\".\",'Enrollment Form'!AH554,SEARCH(\"@\",'Enrollment Form'!AH554))),\"N\",\"Y\"))","v":""},{"$f":"IF(OR($B547=\"N\",'Enrollment Form'!$G554=\"\"),\"\",IF('Enrollment Form'!$B554<>\"Subscriber\",\"-\",IF(COUNTIF('Enrollment Form'!$AV554:$AW554,\"Yes\")=2,\"N\",\"Y\")))","v":""},{"$f":"IF(OR('Enrollment Form'!$CJ554=\"\",'Enrollment Form'!$CJ554=\"No\"),\"-\",IF(AND('Enrollment Form'!$CJ554=\"Yes\",'Enrollment Form'!$CK554=\"\"),\"N\",\"Y\"))","v":"-"},{"$f":"IF(OR('Enrollment Form'!$CL554=\"\",'Enrollment Form'!$CL554=\"No\"),\"-\",IF(AND('Enrollment Form'!$CL554=\"Yes\",'Enrollment Form'!$CM554=\"\"),\"N\",\"Y\"))","v":"-"},{"$f":"IF(OR('Enrollment Form'!$CN554=\"\",'Enrollment Form'!$CN554=\"No\"),\"-\",IF(AND('Enrollment Form'!$CN554=\"Yes\",'Enrollment Form'!$CO554=\"\"),\"N\",\"Y\"))","v":"-"},{"$f":"IF(OR('Enrollment Form'!$CN554=\"\",'Enrollment Form'!$CN554=\"No\"),\"-\",IF(AND('Enrollment Form'!$CN554=\"Yes\",'Enrollment Form'!$CP554=\"\"),\"N\",\"Y\"))","v":"-"},{"$f":"IF('Enrollment Form'!B554<>\"Subscriber\",\"-\",IF(AND('Enrollment Form'!B554=\"Subscriber\",'Enrollment Form'!C554=\"Enroll\",'Enrollment Form'!AA554=\"\"),\"N\",\"Y\"))","v":"-"},{"$f":"IF(OR('Enrollment Form'!B554=\"Subscriber\",'Enrollment Form'!B554=\"\"),\"-\",IF('Enrollment Form'!BP554=\"\",\"N\",\"Y\"))","v":"-"},{"$f":"IF('Enrollment Form'!B554<>\"Subscriber\",\"-\",IF(AND('Enrollment Form'!B554=\"Subscriber\",'Enrollment Form'!G554=\"\"),\"N\",\"Y\"))","v":"-"},{"$f":"IF('Enrollment Form'!A554=\"\",\"\",IF('Enrollment Form'!B554=\"Subscriber\",\"-\",IF(AND('Enrollment Form'!B554<>\"Subscriber\",'Enrollment Form'!G554='Enrollment Form'!H554),\"N\",\"Y\")))","v":""},0]
[555,{"$f":"IF('Enrollment Form'!$A555<>\"\",\"Y\",\"N\")","v":"N"},{"$f":"IF(AND('Enrollment Form'!$B555=\"\",'Enrollment Form'!$C555<>\"\"),\"N\",IF($B548=\"N\",\"\",\"Y\"))","v":""},{"$f":"IF(OR($B548=\"N\",'Enrollment Form'!G555=\"\"),\"\",IF('Enrollment Form'!$B555<>\"Subscriber\",\"\",IF('Enrollment Form'!$G555='Enrollment Form'!$H555,\"Y\",\"N\")))","v":""},{"$f":"IF($B548=\"N\",\"\",IF(AND(COUNTIFS('Enrollment Form'!$H$11:$H$1000,'Enrollment Form'!$H555,'Enrollment Form'!$B$11:$B$1000,'Enrollment Form'!$B555)>1,'Enrollment Form'!$H555<>\"\"),\"N\",\"Y\"))","v":""},{"$f":"IF($B548=\"N\",\"\",IF(LEN('Enrollment Form'!$Y555)=0,\"\",IF(LEN('Enrollment Form'!$Y555)<>5,\"N\",\"Y\")))","v":""},{"$f":"IF($B548=\"N\",\"\",IF(LEN('Enrollment Form'!$AD555=0),\"\",IF(LEN('Enrollment Form'!$AD555)<>5,\"N\",\"Y\")))","v":""},{"$f":"IF($B548=\"N\",\"\",IF(LEN('Enrollment Form'!$BS555=0),\"\",IF(LEN('Enrollment Form'!$BS555)<>5,\"N\",\"Y\")))","v":""},{"$f":"IF($B548=\"N\",\"\",IF(LEN('Enrollment Form'!$AE555)=0,\"\",IF(LEN('Enrollment Form'!$AE555)<>10,\"N\",\"Y\")))","v":""},{"$f":"IF($B548=\"N\",\"\",IF(LEN('Enrollment Form'!$AF555)=0,\"\",IF(LEN('Enrollment Form'!$AF555)<>10,\"N\",\"Y\")))","v":""},{"$f":"IF('Enrollment Form'!$O555<>\"Graded\",\"-\",IF(AND('Enrollment Form'!$O555=\"Graded\",'Enrollment Form'!$AR555<>\"\"),\"Y\",\"N\"))","v":"-"},{"$f":"IF($B548=\"N\",\"\",IF(OR('Enrollment Form'!$B555<>\"Subscriber\",'Enrollment Form'!$C555=\"ROC\"),\"-\",IF(AND('Enrollment Form'!$B555=\"Subscriber\",'Enrollment Form'!$C555=\"Enroll\",'Enrollment Form'!$AJ555<>\"\"),\"Y\",\"N\")))","v":""},{"$f":"IF($B548=\"N\",\"\",IF(OR('Enrollment Form'!$B555<>\"Subscriber\",'Enrollment Form'!$C555=\"ROC\"),\"-\",IF(AND('Enrollment Form'!$B555=\"Subscriber\",'Enrollment Form'!$C555=\"Enroll\",'Enrollment Form'!$AK555<>\"\"),\"Y\",\"N\")))","v":""},{"$f":"IF($B548=\"N\",\"\",IF(OR('Enrollment Form'!$B555<>\"Subscriber\",'Enrollment Form'!$C555=\"ROC\"),\"-\",IF(AND('Enrollment Form'!$B555=\"Subscriber\",'Enrollment Form'!$C555=\"Enroll\",'Enrollment Form'!$AL555<>\"\"),\"Y\",\"N\")))","v":""},{"$f":"IF($B548=\"N\",\"\",IF(OR('Enrollment Form'!$B555<>\"Subscriber\",'Enrollment Form'!$C555=\"ROC\"),\"-\",IF(AND('Enrollment Form'!$B555=\"Subscriber\",'Enrollment Form'!$C555=\"Enroll\",'Enrollment Form'!$AP555<>\"\"),\"Y\",\"N\")))","v":""},{"$f":"IF($B548=\"N\",\"\",IF(OR('Enrollment Form'!$B555<>\"Subscriber\",'Enrollment Form'!$C555=\"ROC\"),\"-\",IF(AND('Enrollment Form'!$B555=\"Subscriber\",'Enrollment Form'!$C555=\"Enroll\",'Enrollment Form'!$AQ555<>\"\"),\"Y\",\"N\")))","v":""},{"$f":"IF($B548=\"N\",\"\",IF(OR('Enrollment Form'!$B555<>\"Subscriber\",'Enrollment Form'!$C555=\"ROC\"),\"-\",IF(AND('Enrollment Form'!$B555=\"Subscriber\",'Enrollment Form'!$C555=\"Enroll\",'Enrollment Form'!$AS555<>\"\"),\"Y\",\"N\")))","v":""},{"$f":"IF($B548=\"N\",\"\",IF($Q548=\"-\",\"-\",IF(AND($Q548=\"Y\",'Enrollment Form'!$AS555=\"No\"),\"-\",IF(AND($Q548=\"Y\",'Enrollment Form'!$AS555=\"Yes\",'Enrollment Form'!$AT555<>\"\"),\"Y\",\"N\"))))","v":""},{"$f":"IF($B548=\"N\",\"\",IF(OR('Enrollment Form'!$B555<>\"Subscriber\",'Enrollment Form'!$C555=\"ROC\"),\"-\",IF(AND('Enrollment Form'!$B555=\"Subscriber\",'Enrollment Form'!$C555=\"Enroll\",'Enrollment Form'!$CV555<>\"\"),\"Y\",\"N\")))","v":""},{"$f":"IF($B548=\"N\",\"\",IF($S548=\"-\",\"-\",IF(AND($S548=\"Y\",'Enrollment Form'!$CV555=\"No\"),\"-\",IF(AND($S548=\"Y\",'Enrollment Form'!$CV555=\"Yes\",'Enrollment Form'!$CW555<>\"\"),\"Y\",\"N\"))))","v":""},{"$f":"IF(OR('Enrollment Form'!$AY555=\"Yes\",'Enrollment Form'!$AY555=\"\"),\"-\",IF(OR(AND('Enrollment Form'!$AY555=\"No\",ISERROR(FIND(\"HMO\",VLOOKUP('Enrollment Form'!G555,'Enrollment Form'!H$11:J$1000,3,FALSE),1))=FALSE,COUNTA('Enrollment Form'!$AZ555:$BC555)=4),AND('Enrollment Form'!$AY555=\"No\",ISERROR(FIND(\"HMO\",VLOOKUP('Enrollment Form'!G555,'Enrollment Form'!H$11:J$1000,3,FALSE),1))=FALSE,COUNTA('Enrollment Form'!$BT555:$BW555)=4)),\"Y\",\"N\"))","v":"-"},{"$f":"IF($B548=\"N\",\"\",IF('Enrollment Form'!$B555=\"Subscriber\",\"-\",IF(COUNTA('Enrollment Form'!$BL555,'Enrollment Form'!$BN555)=2,\"Y\",\"N\")))","v":""},{"$f":"IF($B548=\"N\",\"\",IF(OR('Enrollment Form'!$AX555=\"\",'Enrollment Form'!$AX555=\"No\"),\"-\",IF(AND('Enrollment Form'!$AX555=\"Yes\",COUNTA('Enrollment Form'!$CR555)=1),\"Y\",\"N\")))","v":""},{"$f":"IF(OR('Enrollment Form'!$CR555=\"\",'Enrollment Form'!$CR555=\"No\"),\"-\",IF(COUNTA('Enrollment Form'!$CT555:$CU555)=2,\"Y\",\"N\"))","v":"-"},{"$f":"IF($B548=\"N\",\"\",IF(COUNTIF('Enrollment Form'!$DG555:$DP555,\"Other\")=COUNTA('Enrollment Form'!$DK555,'Enrollment Form'!$DH555,'Enrollment Form'!$DN555,'Enrollment Form'!$DQ555),\"Y\",\"N\"))","v":""},{"$f":"IF($B548=\"N\",\"\",IF(OR('Enrollment Form'!B555<>\"Subscriber\",'Enrollment Form'!C555=\"ROC\",COUNTIF('Enrollment Form'!AV555:AW555,\"Yes\")>=1),\"-\",IF(AND('Enrollment Form'!C555=\"Enroll\",COUNTIF('Enrollment Form'!AV555:AW555,\"No\")=2,'Enrollment Form'!AX555=\"\"),\"N\",\"Y\")))","v":""},{"$f":"IF(OR(B548=\"N\",'Enrollment Form'!B555<>\"Subscriber\",'Enrollment Form'!C555=\"ROC\",'Enrollment Form'!O555<>\"Multiple of Salary\"),\"-\",IF(COUNTA('Enrollment Form'!T555:U555)<2,\"N\",\"Y\"))","v":"-"},{"$f":"IF(B548=\"N\",\"\",IF(OR('Enrollment Form'!C555=\"ROC\",'Enrollment Form'!B555<>\"Subscriber\",'Enrollment Form'!O555=\"Waive\",'Enrollment Form'!O555=\"\"),\"-\",IF('Enrollment Form'!P555=\"\",\"N\",\"Y\")))","v":""},{"$f":"IF($B548=\"N\",\"\",IF(AND('Enrollment Form'!$C555=\"ROC\",'Enrollment Form'!$DR555<>\"\"),\"Y\",IF(AND('Enrollment Form'!$C555=\"ROC\",'Enrollment Form'!$DR555=\"\"),\"N\",IF(AND('Enrollment Form'!$C555=\"Enroll\",'Enrollment Form'!$B555=\"Subscriber\",'Enrollment Form'!$CX555=\"No\",'Enrollment Form'!$DR555=\"\"),\"N\",IF(AND('Enrollment Form'!$C555=\"Enroll\",'Enrollment Form'!$B555=\"Subscriber\",'Enrollment Form'!$CX555=\"Yes\"),\"-\",\"Y\")))))","v":""},{"$f":"IF($B548=\"N\",\"\",IF(AND('Enrollment Form'!$C555=\"ROC\",'Enrollment Form'!$DS555<>\"\"),\"Y\",IF(AND('Enrollment Form'!$C555=\"ROC\",'Enrollment Form'!$DS555=\"\"),\"N\",IF(AND('Enrollment Form'!$C555=\"Enroll\",'Enrollment Form'!$B555=\"Subscriber\",'Enrollment Form'!$CX555=\"No\",'Enrollment Form'!$DS555=\"\"),\"N\",IF(AND('Enrollment Form'!$C555=\"Enroll\",'Enrollment Form'!$B555=\"Subscriber\",'Enrollment Form'!$CX555=\"Yes\"),\"-\",\"Y\")))))","v":""},{"$f":"IF('Enrollment Form'!AH555=\"\",\"\",IF(ISERROR(SEARCH(\".\",'Enrollment Form'!AH555,SEARCH(\"@\",'Enrollment Form'!AH555))),\"N\",\"Y\"))","v":""},{"$f":"IF(OR($B548=\"N\",'Enrollment Form'!$G555=\"\"),\"\",IF('Enrollment Form'!$B555<>\"Subscriber\",\"-\",IF(COUNTIF('Enrollment Form'!$AV555:$AW555,\"Yes\")=2,\"N\",\"Y\")))","v":""},{"$f":"IF(OR('Enrollment Form'!$CJ555=\"\",'Enrollment Form'!$CJ555=\"No\"),\"-\",IF(AND('Enrollment Form'!$CJ555=\"Yes\",'Enrollment Form'!$CK555=\"\"),\"N\",\"Y\"))","v":"-"},{"$f":"IF(OR('Enrollment Form'!$CL555=\"\",'Enrollment Form'!$CL555=\"No\"),\"-\",IF(AND('Enrollment Form'!$CL555=\"Yes\",'Enrollment Form'!$CM555=\"\"),\"N\",\"Y\"))","v":"-"},{"$f":"IF(OR('Enrollment Form'!$CN555=\"\",'Enrollment Form'!$CN555=\"No\"),\"-\",IF(AND('Enrollment Form'!$CN555=\"Yes\",'Enrollment Form'!$CO555=\"\"),\"N\",\"Y\"))","v":"-"},{"$f":"IF(OR('Enrollment Form'!$CN555=\"\",'Enrollment Form'!$CN555=\"No\"),\"-\",IF(AND('Enrollment Form'!$CN555=\"Yes\",'Enrollment Form'!$CP555=\"\"),\"N\",\"Y\"))","v":"-"},{"$f":"IF('Enrollment Form'!B555<>\"Subscriber\",\"-\",IF(AND('Enrollment Form'!B555=\"Subscriber\",'Enrollment Form'!C555=\"Enroll\",'Enrollment Form'!AA555=\"\"),\"N\",\"Y\"))","v":"-"},{"$f":"IF(OR('Enrollment Form'!B555=\"Subscriber\",'Enrollment Form'!B555=\"\"),\"-\",IF('Enrollment Form'!BP555=\"\",\"N\",\"Y\"))","v":"-"},{"$f":"IF('Enrollment Form'!B555<>\"Subscriber\",\"-\",IF(AND('Enrollment Form'!B555=\"Subscriber\",'Enrollment Form'!G555=\"\"),\"N\",\"Y\"))","v":"-"},{"$f":"IF('Enrollment Form'!A555=\"\",\"\",IF('Enrollment Form'!B555=\"Subscriber\",\"-\",IF(AND('Enrollment Form'!B555<>\"Subscriber\",'Enrollment Form'!G555='Enrollment Form'!H555),\"N\",\"Y\")))","v":""},0]
[556,{"$f":"IF('Enrollment Form'!$A556<>\"\",\"Y\",\"N\")","v":"N"},{"$f":"IF(AND('Enrollment Form'!$B556=\"\",'Enrollment Form'!$C556<>\"\"),\"N\",IF($B549=\"N\",\"\",\"Y\"))","v":""},{"$f":"IF(OR($B549=\"N\",'Enrollment Form'!G556=\"\"),\"\",IF('Enrollment Form'!$B556<>\"Subscriber\",\"\",IF('Enrollment Form'!$G556='Enrollment Form'!$H556,\"Y\",\"N\")))","v":""},{"$f":"IF($B549=\"N\",\"\",IF(AND(COUNTIFS('Enrollment Form'!$H$11:$H$1000,'Enrollment Form'!$H556,'Enrollment Form'!$B$11:$B$1000,'Enrollment Form'!$B556)>1,'Enrollment Form'!$H556<>\"\"),\"N\",\"Y\"))","v":""},{"$f":"IF($B549=\"N\",\"\",IF(LEN('Enrollment Form'!$Y556)=0,\"\",IF(LEN('Enrollment Form'!$Y556)<>5,\"N\",\"Y\")))","v":""},{"$f":"IF($B549=\"N\",\"\",IF(LEN('Enrollment Form'!$AD556=0),\"\",IF(LEN('Enrollment Form'!$AD556)<>5,\"N\",\"Y\")))","v":""},{"$f":"IF($B549=\"N\",\"\",IF(LEN('Enrollment Form'!$BS556=0),\"\",IF(LEN('Enrollment Form'!$BS556)<>5,\"N\",\"Y\")))","v":""},{"$f":"IF($B549=\"N\",\"\",IF(LEN('Enrollment Form'!$AE556)=0,\"\",IF(LEN('Enrollment Form'!$AE556)<>10,\"N\",\"Y\")))","v":""},{"$f":"IF($B549=\"N\",\"\",IF(LEN('Enrollment Form'!$AF556)=0,\"\",IF(LEN('Enrollment Form'!$AF556)<>10,\"N\",\"Y\")))","v":""},{"$f":"IF('Enrollment Form'!$O556<>\"Graded\",\"-\",IF(AND('Enrollment Form'!$O556=\"Graded\",'Enrollment Form'!$AR556<>\"\"),\"Y\",\"N\"))","v":"-"},{"$f":"IF($B549=\"N\",\"\",IF(OR('Enrollment Form'!$B556<>\"Subscriber\",'Enrollment Form'!$C556=\"ROC\"),\"-\",IF(AND('Enrollment Form'!$B556=\"Subscriber\",'Enrollment Form'!$C556=\"Enroll\",'Enrollment Form'!$AJ556<>\"\"),\"Y\",\"N\")))","v":""},{"$f":"IF($B549=\"N\",\"\",IF(OR('Enrollment Form'!$B556<>\"Subscriber\",'Enrollment Form'!$C556=\"ROC\"),\"-\",IF(AND('Enrollment Form'!$B556=\"Subscriber\",'Enrollment Form'!$C556=\"Enroll\",'Enrollment Form'!$AK556<>\"\"),\"Y\",\"N\")))","v":""},{"$f":"IF($B549=\"N\",\"\",IF(OR('Enrollment Form'!$B556<>\"Subscriber\",'Enrollment Form'!$C556=\"ROC\"),\"-\",IF(AND('Enrollment Form'!$B556=\"Subscriber\",'Enrollment Form'!$C556=\"Enroll\",'Enrollment Form'!$AL556<>\"\"),\"Y\",\"N\")))","v":""},{"$f":"IF($B549=\"N\",\"\",IF(OR('Enrollment Form'!$B556<>\"Subscriber\",'Enrollment Form'!$C556=\"ROC\"),\"-\",IF(AND('Enrollment Form'!$B556=\"Subscriber\",'Enrollment Form'!$C556=\"Enroll\",'Enrollment Form'!$AP556<>\"\"),\"Y\",\"N\")))","v":""},{"$f":"IF($B549=\"N\",\"\",IF(OR('Enrollment Form'!$B556<>\"Subscriber\",'Enrollment Form'!$C556=\"ROC\"),\"-\",IF(AND('Enrollment Form'!$B556=\"Subscriber\",'Enrollment Form'!$C556=\"Enroll\",'Enrollment Form'!$AQ556<>\"\"),\"Y\",\"N\")))","v":""},{"$f":"IF($B549=\"N\",\"\",IF(OR('Enrollment Form'!$B556<>\"Subscriber\",'Enrollment Form'!$C556=\"ROC\"),\"-\",IF(AND('Enrollment Form'!$B556=\"Subscriber\",'Enrollment Form'!$C556=\"Enroll\",'Enrollment Form'!$AS556<>\"\"),\"Y\",\"N\")))","v":""},{"$f":"IF($B549=\"N\",\"\",IF($Q549=\"-\",\"-\",IF(AND($Q549=\"Y\",'Enrollment Form'!$AS556=\"No\"),\"-\",IF(AND($Q549=\"Y\",'Enrollment Form'!$AS556=\"Yes\",'Enrollment Form'!$AT556<>\"\"),\"Y\",\"N\"))))","v":""},{"$f":"IF($B549=\"N\",\"\",IF(OR('Enrollment Form'!$B556<>\"Subscriber\",'Enrollment Form'!$C556=\"ROC\"),\"-\",IF(AND('Enrollment Form'!$B556=\"Subscriber\",'Enrollment Form'!$C556=\"Enroll\",'Enrollment Form'!$CV556<>\"\"),\"Y\",\"N\")))","v":""},{"$f":"IF($B549=\"N\",\"\",IF($S549=\"-\",\"-\",IF(AND($S549=\"Y\",'Enrollment Form'!$CV556=\"No\"),\"-\",IF(AND($S549=\"Y\",'Enrollment Form'!$CV556=\"Yes\",'Enrollment Form'!$CW556<>\"\"),\"Y\",\"N\"))))","v":""},{"$f":"IF(OR('Enrollment Form'!$AY556=\"Yes\",'Enrollment Form'!$AY556=\"\"),\"-\",IF(OR(AND('Enrollment Form'!$AY556=\"No\",ISERROR(FIND(\"HMO\",VLOOKUP('Enrollment Form'!G556,'Enrollment Form'!H$11:J$1000,3,FALSE),1))=FALSE,COUNTA('Enrollment Form'!$AZ556:$BC556)=4),AND('Enrollment Form'!$AY556=\"No\",ISERROR(FIND(\"HMO\",VLOOKUP('Enrollment Form'!G556,'Enrollment Form'!H$11:J$1000,3,FALSE),1))=FALSE,COUNTA('Enrollment Form'!$BT556:$BW556)=4)),\"Y\",\"N\"))","v":"-"},{"$f":"IF($B549=\"N\",\"\",IF('Enrollment Form'!$B556=\"Subscriber\",\"-\",IF(COUNTA('Enrollment Form'!$BL556,'Enrollment Form'!$BN556)=2,\"Y\",\"N\")))","v":""},{"$f":"IF($B549=\"N\",\"\",IF(OR('Enrollment Form'!$AX556=\"\",'Enrollment Form'!$AX556=\"No\"),\"-\",IF(AND('Enrollment Form'!$AX556=\"Yes\",COUNTA('Enrollment Form'!$CR556)=1),\"Y\",\"N\")))","v":""},{"$f":"IF(OR('Enrollment Form'!$CR556=\"\",'Enrollment Form'!$CR556=\"No\"),\"-\",IF(COUNTA('Enrollment Form'!$CT556:$CU556)=2,\"Y\",\"N\"))","v":"-"},{"$f":"IF($B549=\"N\",\"\",IF(COUNTIF('Enrollment Form'!$DG556:$DP556,\"Other\")=COUNTA('Enrollment Form'!$DK556,'Enrollment Form'!$DH556,'Enrollment Form'!$DN556,'Enrollment Form'!$DQ556),\"Y\",\"N\"))","v":""},{"$f":"IF($B549=\"N\",\"\",IF(OR('Enrollment Form'!B556<>\"Subscriber\",'Enrollment Form'!C556=\"ROC\",COUNTIF('Enrollment Form'!AV556:AW556,\"Yes\")>=1),\"-\",IF(AND('Enrollment Form'!C556=\"Enroll\",COUNTIF('Enrollment Form'!AV556:AW556,\"No\")=2,'Enrollment Form'!AX556=\"\"),\"N\",\"Y\")))","v":""},{"$f":"IF(OR(B549=\"N\",'Enrollment Form'!B556<>\"Subscriber\",'Enrollment Form'!C556=\"ROC\",'Enrollment Form'!O556<>\"Multiple of Salary\"),\"-\",IF(COUNTA('Enrollment Form'!T556:U556)<2,\"N\",\"Y\"))","v":"-"},{"$f":"IF(B549=\"N\",\"\",IF(OR('Enrollment Form'!C556=\"ROC\",'Enrollment Form'!B556<>\"Subscriber\",'Enrollment Form'!O556=\"Waive\",'Enrollment Form'!O556=\"\"),\"-\",IF('Enrollment Form'!P556=\"\",\"N\",\"Y\")))","v":""},{"$f":"IF($B549=\"N\",\"\",IF(AND('Enrollment Form'!$C556=\"ROC\",'Enrollment Form'!$DR556<>\"\"),\"Y\",IF(AND('Enrollment Form'!$C556=\"ROC\",'Enrollment Form'!$DR556=\"\"),\"N\",IF(AND('Enrollment Form'!$C556=\"Enroll\",'Enrollment Form'!$B556=\"Subscriber\",'Enrollment Form'!$CX556=\"No\",'Enrollment Form'!$DR556=\"\"),\"N\",IF(AND('Enrollment Form'!$C556=\"Enroll\",'Enrollment Form'!$B556=\"Subscriber\",'Enrollment Form'!$CX556=\"Yes\"),\"-\",\"Y\")))))","v":""},{"$f":"IF($B549=\"N\",\"\",IF(AND('Enrollment Form'!$C556=\"ROC\",'Enrollment Form'!$DS556<>\"\"),\"Y\",IF(AND('Enrollment Form'!$C556=\"ROC\",'Enrollment Form'!$DS556=\"\"),\"N\",IF(AND('Enrollment Form'!$C556=\"Enroll\",'Enrollment Form'!$B556=\"Subscriber\",'Enrollment Form'!$CX556=\"No\",'Enrollment Form'!$DS556=\"\"),\"N\",IF(AND('Enrollment Form'!$C556=\"Enroll\",'Enrollment Form'!$B556=\"Subscriber\",'Enrollment Form'!$CX556=\"Yes\"),\"-\",\"Y\")))))","v":""},{"$f":"IF('Enrollment Form'!AH556=\"\",\"\",IF(ISERROR(SEARCH(\".\",'Enrollment Form'!AH556,SEARCH(\"@\",'Enrollment Form'!AH556))),\"N\",\"Y\"))","v":""},{"$f":"IF(OR($B549=\"N\",'Enrollment Form'!$G556=\"\"),\"\",IF('Enrollment Form'!$B556<>\"Subscriber\",\"-\",IF(COUNTIF('Enrollment Form'!$AV556:$AW556,\"Yes\")=2,\"N\",\"Y\")))","v":""},{"$f":"IF(OR('Enrollment Form'!$CJ556=\"\",'Enrollment Form'!$CJ556=\"No\"),\"-\",IF(AND('Enrollment Form'!$CJ556=\"Yes\",'Enrollment Form'!$CK556=\"\"),\"N\",\"Y\"))","v":"-"},{"$f":"IF(OR('Enrollment Form'!$CL556=\"\",'Enrollment Form'!$CL556=\"No\"),\"-\",IF(AND('Enrollment Form'!$CL556=\"Yes\",'Enrollment Form'!$CM556=\"\"),\"N\",\"Y\"))","v":"-"},{"$f":"IF(OR('Enrollment Form'!$CN556=\"\",'Enrollment Form'!$CN556=\"No\"),\"-\",IF(AND('Enrollment Form'!$CN556=\"Yes\",'Enrollment Form'!$CO556=\"\"),\"N\",\"Y\"))","v":"-"},{"$f":"IF(OR('Enrollment Form'!$CN556=\"\",'Enrollment Form'!$CN556=\"No\"),\"-\",IF(AND('Enrollment Form'!$CN556=\"Yes\",'Enrollment Form'!$CP556=\"\"),\"N\",\"Y\"))","v":"-"},{"$f":"IF('Enrollment Form'!B556<>\"Subscriber\",\"-\",IF(AND('Enrollment Form'!B556=\"Subscriber\",'Enrollment Form'!C556=\"Enroll\",'Enrollment Form'!AA556=\"\"),\"N\",\"Y\"))","v":"-"},{"$f":"IF(OR('Enrollment Form'!B556=\"Subscriber\",'Enrollment Form'!B556=\"\"),\"-\",IF('Enrollment Form'!BP556=\"\",\"N\",\"Y\"))","v":"-"},{"$f":"IF('Enrollment Form'!B556<>\"Subscriber\",\"-\",IF(AND('Enrollment Form'!B556=\"Subscriber\",'Enrollment Form'!G556=\"\"),\"N\",\"Y\"))","v":"-"},{"$f":"IF('Enrollment Form'!A556=\"\",\"\",IF('Enrollment Form'!B556=\"Subscriber\",\"-\",IF(AND('Enrollment Form'!B556<>\"Subscriber\",'Enrollment Form'!G556='Enrollment Form'!H556),\"N\",\"Y\")))","v":""},0]
[557,{"$f":"IF('Enrollment Form'!$A557<>\"\",\"Y\",\"N\")","v":"N"},{"$f":"IF(AND('Enrollment Form'!$B557=\"\",'Enrollment Form'!$C557<>\"\"),\"N\",IF($B550=\"N\",\"\",\"Y\"))","v":""},{"$f":"IF(OR($B550=\"N\",'Enrollment Form'!G557=\"\"),\"\",IF('Enrollment Form'!$B557<>\"Subscriber\",\"\",IF('Enrollment Form'!$G557='Enrollment Form'!$H557,\"Y\",\"N\")))","v":""},{"$f":"IF($B550=\"N\",\"\",IF(AND(COUNTIFS('Enrollment Form'!$H$11:$H$1000,'Enrollment Form'!$H557,'Enrollment Form'!$B$11:$B$1000,'Enrollment Form'!$B557)>1,'Enrollment Form'!$H557<>\"\"),\"N\",\"Y\"))","v":""},{"$f":"IF($B550=\"N\",\"\",IF(LEN('Enrollment Form'!$Y557)=0,\"\",IF(LEN('Enrollment Form'!$Y557)<>5,\"N\",\"Y\")))","v":""},{"$f":"IF($B550=\"N\",\"\",IF(LEN('Enrollment Form'!$AD557=0),\"\",IF(LEN('Enrollment Form'!$AD557)<>5,\"N\",\"Y\")))","v":""},{"$f":"IF($B550=\"N\",\"\",IF(LEN('Enrollment Form'!$BS557=0),\"\",IF(LEN('Enrollment Form'!$BS557)<>5,\"N\",\"Y\")))","v":""},{"$f":"IF($B550=\"N\",\"\",IF(LEN('Enrollment Form'!$AE557)=0,\"\",IF(LEN('Enrollment Form'!$AE557)<>10,\"N\",\"Y\")))","v":""},{"$f":"IF($B550=\"N\",\"\",IF(LEN('Enrollment Form'!$AF557)=0,\"\",IF(LEN('Enrollment Form'!$AF557)<>10,\"N\",\"Y\")))","v":""},{"$f":"IF('Enrollment Form'!$O557<>\"Graded\",\"-\",IF(AND('Enrollment Form'!$O557=\"Graded\",'Enrollment Form'!$AR557<>\"\"),\"Y\",\"N\"))","v":"-"},{"$f":"IF($B550=\"N\",\"\",IF(OR('Enrollment Form'!$B557<>\"Subscriber\",'Enrollment Form'!$C557=\"ROC\"),\"-\",IF(AND('Enrollment Form'!$B557=\"Subscriber\",'Enrollment Form'!$C557=\"Enroll\",'Enrollment Form'!$AJ557<>\"\"),\"Y\",\"N\")))","v":""},{"$f":"IF($B550=\"N\",\"\",IF(OR('Enrollment Form'!$B557<>\"Subscriber\",'Enrollment Form'!$C557=\"ROC\"),\"-\",IF(AND('Enrollment Form'!$B557=\"Subscriber\",'Enrollment Form'!$C557=\"Enroll\",'Enrollment Form'!$AK557<>\"\"),\"Y\",\"N\")))","v":""},{"$f":"IF($B550=\"N\",\"\",IF(OR('Enrollment Form'!$B557<>\"Subscriber\",'Enrollment Form'!$C557=\"ROC\"),\"-\",IF(AND('Enrollment Form'!$B557=\"Subscriber\",'Enrollment Form'!$C557=\"Enroll\",'Enrollment Form'!$AL557<>\"\"),\"Y\",\"N\")))","v":""},{"$f":"IF($B550=\"N\",\"\",IF(OR('Enrollment Form'!$B557<>\"Subscriber\",'Enrollment Form'!$C557=\"ROC\"),\"-\",IF(AND('Enrollment Form'!$B557=\"Subscriber\",'Enrollment Form'!$C557=\"Enroll\",'Enrollment Form'!$AP557<>\"\"),\"Y\",\"N\")))","v":""},{"$f":"IF($B550=\"N\",\"\",IF(OR('Enrollment Form'!$B557<>\"Subscriber\",'Enrollment Form'!$C557=\"ROC\"),\"-\",IF(AND('Enrollment Form'!$B557=\"Subscriber\",'Enrollment Form'!$C557=\"Enroll\",'Enrollment Form'!$AQ557<>\"\"),\"Y\",\"N\")))","v":""},{"$f":"IF($B550=\"N\",\"\",IF(OR('Enrollment Form'!$B557<>\"Subscriber\",'Enrollment Form'!$C557=\"ROC\"),\"-\",IF(AND('Enrollment Form'!$B557=\"Subscriber\",'Enrollment Form'!$C557=\"Enroll\",'Enrollment Form'!$AS557<>\"\"),\"Y\",\"N\")))","v":""},{"$f":"IF($B550=\"N\",\"\",IF($Q550=\"-\",\"-\",IF(AND($Q550=\"Y\",'Enrollment Form'!$AS557=\"No\"),\"-\",IF(AND($Q550=\"Y\",'Enrollment Form'!$AS557=\"Yes\",'Enrollment Form'!$AT557<>\"\"),\"Y\",\"N\"))))","v":""},{"$f":"IF($B550=\"N\",\"\",IF(OR('Enrollment Form'!$B557<>\"Subscriber\",'Enrollment Form'!$C557=\"ROC\"),\"-\",IF(AND('Enrollment Form'!$B557=\"Subscriber\",'Enrollment Form'!$C557=\"Enroll\",'Enrollment Form'!$CV557<>\"\"),\"Y\",\"N\")))","v":""},{"$f":"IF($B550=\"N\",\"\",IF($S550=\"-\",\"-\",IF(AND($S550=\"Y\",'Enrollment Form'!$CV557=\"No\"),\"-\",IF(AND($S550=\"Y\",'Enrollment Form'!$CV557=\"Yes\",'Enrollment Form'!$CW557<>\"\"),\"Y\",\"N\"))))","v":""},{"$f":"IF(OR('Enrollment Form'!$AY557=\"Yes\",'Enrollment Form'!$AY557=\"\"),\"-\",IF(OR(AND('Enrollment Form'!$AY557=\"No\",ISERROR(FIND(\"HMO\",VLOOKUP('Enrollment Form'!G557,'Enrollment Form'!H$11:J$1000,3,FALSE),1))=FALSE,COUNTA('Enrollment Form'!$AZ557:$BC557)=4),AND('Enrollment Form'!$AY557=\"No\",ISERROR(FIND(\"HMO\",VLOOKUP('Enrollment Form'!G557,'Enrollment Form'!H$11:J$1000,3,FALSE),1))=FALSE,COUNTA('Enrollment Form'!$BT557:$BW557)=4)),\"Y\",\"N\"))","v":"-"},{"$f":"IF($B550=\"N\",\"\",IF('Enrollment Form'!$B557=\"Subscriber\",\"-\",IF(COUNTA('Enrollment Form'!$BL557,'Enrollment Form'!$BN557)=2,\"Y\",\"N\")))","v":""},{"$f":"IF($B550=\"N\",\"\",IF(OR('Enrollment Form'!$AX557=\"\",'Enrollment Form'!$AX557=\"No\"),\"-\",IF(AND('Enrollment Form'!$AX557=\"Yes\",COUNTA('Enrollment Form'!$CR557)=1),\"Y\",\"N\")))","v":""},{"$f":"IF(OR('Enrollment Form'!$CR557=\"\",'Enrollment Form'!$CR557=\"No\"),\"-\",IF(COUNTA('Enrollment Form'!$CT557:$CU557)=2,\"Y\",\"N\"))","v":"-"},{"$f":"IF($B550=\"N\",\"\",IF(COUNTIF('Enrollment Form'!$DG557:$DP557,\"Other\")=COUNTA('Enrollment Form'!$DK557,'Enrollment Form'!$DH557,'Enrollment Form'!$DN557,'Enrollment Form'!$DQ557),\"Y\",\"N\"))","v":""},{"$f":"IF($B550=\"N\",\"\",IF(OR('Enrollment Form'!B557<>\"Subscriber\",'Enrollment Form'!C557=\"ROC\",COUNTIF('Enrollment Form'!AV557:AW557,\"Yes\")>=1),\"-\",IF(AND('Enrollment Form'!C557=\"Enroll\",COUNTIF('Enrollment Form'!AV557:AW557,\"No\")=2,'Enrollment Form'!AX557=\"\"),\"N\",\"Y\")))","v":""},{"$f":"IF(OR(B550=\"N\",'Enrollment Form'!B557<>\"Subscriber\",'Enrollment Form'!C557=\"ROC\",'Enrollment Form'!O557<>\"Multiple of Salary\"),\"-\",IF(COUNTA('Enrollment Form'!T557:U557)<2,\"N\",\"Y\"))","v":"-"},{"$f":"IF(B550=\"N\",\"\",IF(OR('Enrollment Form'!C557=\"ROC\",'Enrollment Form'!B557<>\"Subscriber\",'Enrollment Form'!O557=\"Waive\",'Enrollment Form'!O557=\"\"),\"-\",IF('Enrollment Form'!P557=\"\",\"N\",\"Y\")))","v":""},{"$f":"IF($B550=\"N\",\"\",IF(AND('Enrollment Form'!$C557=\"ROC\",'Enrollment Form'!$DR557<>\"\"),\"Y\",IF(AND('Enrollment Form'!$C557=\"ROC\",'Enrollment Form'!$DR557=\"\"),\"N\",IF(AND('Enrollment Form'!$C557=\"Enroll\",'Enrollment Form'!$B557=\"Subscriber\",'Enrollment Form'!$CX557=\"No\",'Enrollment Form'!$DR557=\"\"),\"N\",IF(AND('Enrollment Form'!$C557=\"Enroll\",'Enrollment Form'!$B557=\"Subscriber\",'Enrollment Form'!$CX557=\"Yes\"),\"-\",\"Y\")))))","v":""},{"$f":"IF($B550=\"N\",\"\",IF(AND('Enrollment Form'!$C557=\"ROC\",'Enrollment Form'!$DS557<>\"\"),\"Y\",IF(AND('Enrollment Form'!$C557=\"ROC\",'Enrollment Form'!$DS557=\"\"),\"N\",IF(AND('Enrollment Form'!$C557=\"Enroll\",'Enrollment Form'!$B557=\"Subscriber\",'Enrollment Form'!$CX557=\"No\",'Enrollment Form'!$DS557=\"\"),\"N\",IF(AND('Enrollment Form'!$C557=\"Enroll\",'Enrollment Form'!$B557=\"Subscriber\",'Enrollment Form'!$CX557=\"Yes\"),\"-\",\"Y\")))))","v":""},{"$f":"IF('Enrollment Form'!AH557=\"\",\"\",IF(ISERROR(SEARCH(\".\",'Enrollment Form'!AH557,SEARCH(\"@\",'Enrollment Form'!AH557))),\"N\",\"Y\"))","v":""},{"$f":"IF(OR($B550=\"N\",'Enrollment Form'!$G557=\"\"),\"\",IF('Enrollment Form'!$B557<>\"Subscriber\",\"-\",IF(COUNTIF('Enrollment Form'!$AV557:$AW557,\"Yes\")=2,\"N\",\"Y\")))","v":""},{"$f":"IF(OR('Enrollment Form'!$CJ557=\"\",'Enrollment Form'!$CJ557=\"No\"),\"-\",IF(AND('Enrollment Form'!$CJ557=\"Yes\",'Enrollment Form'!$CK557=\"\"),\"N\",\"Y\"))","v":"-"},{"$f":"IF(OR('Enrollment Form'!$CL557=\"\",'Enrollment Form'!$CL557=\"No\"),\"-\",IF(AND('Enrollment Form'!$CL557=\"Yes\",'Enrollment Form'!$CM557=\"\"),\"N\",\"Y\"))","v":"-"},{"$f":"IF(OR('Enrollment Form'!$CN557=\"\",'Enrollment Form'!$CN557=\"No\"),\"-\",IF(AND('Enrollment Form'!$CN557=\"Yes\",'Enrollment Form'!$CO557=\"\"),\"N\",\"Y\"))","v":"-"},{"$f":"IF(OR('Enrollment Form'!$CN557=\"\",'Enrollment Form'!$CN557=\"No\"),\"-\",IF(AND('Enrollment Form'!$CN557=\"Yes\",'Enrollment Form'!$CP557=\"\"),\"N\",\"Y\"))","v":"-"},{"$f":"IF('Enrollment Form'!B557<>\"Subscriber\",\"-\",IF(AND('Enrollment Form'!B557=\"Subscriber\",'Enrollment Form'!C557=\"Enroll\",'Enrollment Form'!AA557=\"\"),\"N\",\"Y\"))","v":"-"},{"$f":"IF(OR('Enrollment Form'!B557=\"Subscriber\",'Enrollment Form'!B557=\"\"),\"-\",IF('Enrollment Form'!BP557=\"\",\"N\",\"Y\"))","v":"-"},{"$f":"IF('Enrollment Form'!B557<>\"Subscriber\",\"-\",IF(AND('Enrollment Form'!B557=\"Subscriber\",'Enrollment Form'!G557=\"\"),\"N\",\"Y\"))","v":"-"},{"$f":"IF('Enrollment Form'!A557=\"\",\"\",IF('Enrollment Form'!B557=\"Subscriber\",\"-\",IF(AND('Enrollment Form'!B557<>\"Subscriber\",'Enrollment Form'!G557='Enrollment Form'!H557),\"N\",\"Y\")))","v":""},0]
[558,{"$f":"IF('Enrollment Form'!$A558<>\"\",\"Y\",\"N\")","v":"N"},{"$f":"IF(AND('Enrollment Form'!$B558=\"\",'Enrollment Form'!$C558<>\"\"),\"N\",IF($B551=\"N\",\"\",\"Y\"))","v":""},{"$f":"IF(OR($B551=\"N\",'Enrollment Form'!G558=\"\"),\"\",IF('Enrollment Form'!$B558<>\"Subscriber\",\"\",IF('Enrollment Form'!$G558='Enrollment Form'!$H558,\"Y\",\"N\")))","v":""},{"$f":"IF($B551=\"N\",\"\",IF(AND(COUNTIFS('Enrollment Form'!$H$11:$H$1000,'Enrollment Form'!$H558,'Enrollment Form'!$B$11:$B$1000,'Enrollment Form'!$B558)>1,'Enrollment Form'!$H558<>\"\"),\"N\",\"Y\"))","v":""},{"$f":"IF($B551=\"N\",\"\",IF(LEN('Enrollment Form'!$Y558)=0,\"\",IF(LEN('Enrollment Form'!$Y558)<>5,\"N\",\"Y\")))","v":""},{"$f":"IF($B551=\"N\",\"\",IF(LEN('Enrollment Form'!$AD558=0),\"\",IF(LEN('Enrollment Form'!$AD558)<>5,\"N\",\"Y\")))","v":""},{"$f":"IF($B551=\"N\",\"\",IF(LEN('Enrollment Form'!$BS558=0),\"\",IF(LEN('Enrollment Form'!$BS558)<>5,\"N\",\"Y\")))","v":""},{"$f":"IF($B551=\"N\",\"\",IF(LEN('Enrollment Form'!$AE558)=0,\"\",IF(LEN('Enrollment Form'!$AE558)<>10,\"N\",\"Y\")))","v":""},{"$f":"IF($B551=\"N\",\"\",IF(LEN('Enrollment Form'!$AF558)=0,\"\",IF(LEN('Enrollment Form'!$AF558)<>10,\"N\",\"Y\")))","v":""},{"$f":"IF('Enrollment Form'!$O558<>\"Graded\",\"-\",IF(AND('Enrollment Form'!$O558=\"Graded\",'Enrollment Form'!$AR558<>\"\"),\"Y\",\"N\"))","v":"-"},{"$f":"IF($B551=\"N\",\"\",IF(OR('Enrollment Form'!$B558<>\"Subscriber\",'Enrollment Form'!$C558=\"ROC\"),\"-\",IF(AND('Enrollment Form'!$B558=\"Subscriber\",'Enrollment Form'!$C558=\"Enroll\",'Enrollment Form'!$AJ558<>\"\"),\"Y\",\"N\")))","v":""},{"$f":"IF($B551=\"N\",\"\",IF(OR('Enrollment Form'!$B558<>\"Subscriber\",'Enrollment Form'!$C558=\"ROC\"),\"-\",IF(AND('Enrollment Form'!$B558=\"Subscriber\",'Enrollment Form'!$C558=\"Enroll\",'Enrollment Form'!$AK558<>\"\"),\"Y\",\"N\")))","v":""},{"$f":"IF($B551=\"N\",\"\",IF(OR('Enrollment Form'!$B558<>\"Subscriber\",'Enrollment Form'!$C558=\"ROC\"),\"-\",IF(AND('Enrollment Form'!$B558=\"Subscriber\",'Enrollment Form'!$C558=\"Enroll\",'Enrollment Form'!$AL558<>\"\"),\"Y\",\"N\")))","v":""},{"$f":"IF($B551=\"N\",\"\",IF(OR('Enrollment Form'!$B558<>\"Subscriber\",'Enrollment Form'!$C558=\"ROC\"),\"-\",IF(AND('Enrollment Form'!$B558=\"Subscriber\",'Enrollment Form'!$C558=\"Enroll\",'Enrollment Form'!$AP558<>\"\"),\"Y\",\"N\")))","v":""},{"$f":"IF($B551=\"N\",\"\",IF(OR('Enrollment Form'!$B558<>\"Subscriber\",'Enrollment Form'!$C558=\"ROC\"),\"-\",IF(AND('Enrollment Form'!$B558=\"Subscriber\",'Enrollment Form'!$C558=\"Enroll\",'Enrollment Form'!$AQ558<>\"\"),\"Y\",\"N\")))","v":""},{"$f":"IF($B551=\"N\",\"\",IF(OR('Enrollment Form'!$B558<>\"Subscriber\",'Enrollment Form'!$C558=\"ROC\"),\"-\",IF(AND('Enrollment Form'!$B558=\"Subscriber\",'Enrollment Form'!$C558=\"Enroll\",'Enrollment Form'!$AS558<>\"\"),\"Y\",\"N\")))","v":""},{"$f":"IF($B551=\"N\",\"\",IF($Q551=\"-\",\"-\",IF(AND($Q551=\"Y\",'Enrollment Form'!$AS558=\"No\"),\"-\",IF(AND($Q551=\"Y\",'Enrollment Form'!$AS558=\"Yes\",'Enrollment Form'!$AT558<>\"\"),\"Y\",\"N\"))))","v":""},{"$f":"IF($B551=\"N\",\"\",IF(OR('Enrollment Form'!$B558<>\"Subscriber\",'Enrollment Form'!$C558=\"ROC\"),\"-\",IF(AND('Enrollment Form'!$B558=\"Subscriber\",'Enrollment Form'!$C558=\"Enroll\",'Enrollment Form'!$CV558<>\"\"),\"Y\",\"N\")))","v":""},{"$f":"IF($B551=\"N\",\"\",IF($S551=\"-\",\"-\",IF(AND($S551=\"Y\",'Enrollment Form'!$CV558=\"No\"),\"-\",IF(AND($S551=\"Y\",'Enrollment Form'!$CV558=\"Yes\",'Enrollment Form'!$CW558<>\"\"),\"Y\",\"N\"))))","v":""},{"$f":"IF(OR('Enrollment Form'!$AY558=\"Yes\",'Enrollment Form'!$AY558=\"\"),\"-\",IF(OR(AND('Enrollment Form'!$AY558=\"No\",ISERROR(FIND(\"HMO\",VLOOKUP('Enrollment Form'!G558,'Enrollment Form'!H$11:J$1000,3,FALSE),1))=FALSE,COUNTA('Enrollment Form'!$AZ558:$BC558)=4),AND('Enrollment Form'!$AY558=\"No\",ISERROR(FIND(\"HMO\",VLOOKUP('Enrollment Form'!G558,'Enrollment Form'!H$11:J$1000,3,FALSE),1))=FALSE,COUNTA('Enrollment Form'!$BT558:$BW558)=4)),\"Y\",\"N\"))","v":"-"},{"$f":"IF($B551=\"N\",\"\",IF('Enrollment Form'!$B558=\"Subscriber\",\"-\",IF(COUNTA('Enrollment Form'!$BL558,'Enrollment Form'!$BN558)=2,\"Y\",\"N\")))","v":""},{"$f":"IF($B551=\"N\",\"\",IF(OR('Enrollment Form'!$AX558=\"\",'Enrollment Form'!$AX558=\"No\"),\"-\",IF(AND('Enrollment Form'!$AX558=\"Yes\",COUNTA('Enrollment Form'!$CR558)=1),\"Y\",\"N\")))","v":""},{"$f":"IF(OR('Enrollment Form'!$CR558=\"\",'Enrollment Form'!$CR558=\"No\"),\"-\",IF(COUNTA('Enrollment Form'!$CT558:$CU558)=2,\"Y\",\"N\"))","v":"-"},{"$f":"IF($B551=\"N\",\"\",IF(COUNTIF('Enrollment Form'!$DG558:$DP558,\"Other\")=COUNTA('Enrollment Form'!$DK558,'Enrollment Form'!$DH558,'Enrollment Form'!$DN558,'Enrollment Form'!$DQ558),\"Y\",\"N\"))","v":""},{"$f":"IF($B551=\"N\",\"\",IF(OR('Enrollment Form'!B558<>\"Subscriber\",'Enrollment Form'!C558=\"ROC\",COUNTIF('Enrollment Form'!AV558:AW558,\"Yes\")>=1),\"-\",IF(AND('Enrollment Form'!C558=\"Enroll\",COUNTIF('Enrollment Form'!AV558:AW558,\"No\")=2,'Enrollment Form'!AX558=\"\"),\"N\",\"Y\")))","v":""},{"$f":"IF(OR(B551=\"N\",'Enrollment Form'!B558<>\"Subscriber\",'Enrollment Form'!C558=\"ROC\",'Enrollment Form'!O558<>\"Multiple of Salary\"),\"-\",IF(COUNTA('Enrollment Form'!T558:U558)<2,\"N\",\"Y\"))","v":"-"},{"$f":"IF(B551=\"N\",\"\",IF(OR('Enrollment Form'!C558=\"ROC\",'Enrollment Form'!B558<>\"Subscriber\",'Enrollment Form'!O558=\"Waive\",'Enrollment Form'!O558=\"\"),\"-\",IF('Enrollment Form'!P558=\"\",\"N\",\"Y\")))","v":""},{"$f":"IF($B551=\"N\",\"\",IF(AND('Enrollment Form'!$C558=\"ROC\",'Enrollment Form'!$DR558<>\"\"),\"Y\",IF(AND('Enrollment Form'!$C558=\"ROC\",'Enrollment Form'!$DR558=\"\"),\"N\",IF(AND('Enrollment Form'!$C558=\"Enroll\",'Enrollment Form'!$B558=\"Subscriber\",'Enrollment Form'!$CX558=\"No\",'Enrollment Form'!$DR558=\"\"),\"N\",IF(AND('Enrollment Form'!$C558=\"Enroll\",'Enrollment Form'!$B558=\"Subscriber\",'Enrollment Form'!$CX558=\"Yes\"),\"-\",\"Y\")))))","v":""},{"$f":"IF($B551=\"N\",\"\",IF(AND('Enrollment Form'!$C558=\"ROC\",'Enrollment Form'!$DS558<>\"\"),\"Y\",IF(AND('Enrollment Form'!$C558=\"ROC\",'Enrollment Form'!$DS558=\"\"),\"N\",IF(AND('Enrollment Form'!$C558=\"Enroll\",'Enrollment Form'!$B558=\"Subscriber\",'Enrollment Form'!$CX558=\"No\",'Enrollment Form'!$DS558=\"\"),\"N\",IF(AND('Enrollment Form'!$C558=\"Enroll\",'Enrollment Form'!$B558=\"Subscriber\",'Enrollment Form'!$CX558=\"Yes\"),\"-\",\"Y\")))))","v":""},{"$f":"IF('Enrollment Form'!AH558=\"\",\"\",IF(ISERROR(SEARCH(\".\",'Enrollment Form'!AH558,SEARCH(\"@\",'Enrollment Form'!AH558))),\"N\",\"Y\"))","v":""},{"$f":"IF(OR($B551=\"N\",'Enrollment Form'!$G558=\"\"),\"\",IF('Enrollment Form'!$B558<>\"Subscriber\",\"-\",IF(COUNTIF('Enrollment Form'!$AV558:$AW558,\"Yes\")=2,\"N\",\"Y\")))","v":""},{"$f":"IF(OR('Enrollment Form'!$CJ558=\"\",'Enrollment Form'!$CJ558=\"No\"),\"-\",IF(AND('Enrollment Form'!$CJ558=\"Yes\",'Enrollment Form'!$CK558=\"\"),\"N\",\"Y\"))","v":"-"},{"$f":"IF(OR('Enrollment Form'!$CL558=\"\",'Enrollment Form'!$CL558=\"No\"),\"-\",IF(AND('Enrollment Form'!$CL558=\"Yes\",'Enrollment Form'!$CM558=\"\"),\"N\",\"Y\"))","v":"-"},{"$f":"IF(OR('Enrollment Form'!$CN558=\"\",'Enrollment Form'!$CN558=\"No\"),\"-\",IF(AND('Enrollment Form'!$CN558=\"Yes\",'Enrollment Form'!$CO558=\"\"),\"N\",\"Y\"))","v":"-"},{"$f":"IF(OR('Enrollment Form'!$CN558=\"\",'Enrollment Form'!$CN558=\"No\"),\"-\",IF(AND('Enrollment Form'!$CN558=\"Yes\",'Enrollment Form'!$CP558=\"\"),\"N\",\"Y\"))","v":"-"},{"$f":"IF('Enrollment Form'!B558<>\"Subscriber\",\"-\",IF(AND('Enrollment Form'!B558=\"Subscriber\",'Enrollment Form'!C558=\"Enroll\",'Enrollment Form'!AA558=\"\"),\"N\",\"Y\"))","v":"-"},{"$f":"IF(OR('Enrollment Form'!B558=\"Subscriber\",'Enrollment Form'!B558=\"\"),\"-\",IF('Enrollment Form'!BP558=\"\",\"N\",\"Y\"))","v":"-"},{"$f":"IF('Enrollment Form'!B558<>\"Subscriber\",\"-\",IF(AND('Enrollment Form'!B558=\"Subscriber\",'Enrollment Form'!G558=\"\"),\"N\",\"Y\"))","v":"-"},{"$f":"IF('Enrollment Form'!A558=\"\",\"\",IF('Enrollment Form'!B558=\"Subscriber\",\"-\",IF(AND('Enrollment Form'!B558<>\"Subscriber\",'Enrollment Form'!G558='Enrollment Form'!H558),\"N\",\"Y\")))","v":""},0]
[559,{"$f":"IF('Enrollment Form'!$A559<>\"\",\"Y\",\"N\")","v":"N"},{"$f":"IF(AND('Enrollment Form'!$B559=\"\",'Enrollment Form'!$C559<>\"\"),\"N\",IF($B552=\"N\",\"\",\"Y\"))","v":""},{"$f":"IF(OR($B552=\"N\",'Enrollment Form'!G559=\"\"),\"\",IF('Enrollment Form'!$B559<>\"Subscriber\",\"\",IF('Enrollment Form'!$G559='Enrollment Form'!$H559,\"Y\",\"N\")))","v":""},{"$f":"IF($B552=\"N\",\"\",IF(AND(COUNTIFS('Enrollment Form'!$H$11:$H$1000,'Enrollment Form'!$H559,'Enrollment Form'!$B$11:$B$1000,'Enrollment Form'!$B559)>1,'Enrollment Form'!$H559<>\"\"),\"N\",\"Y\"))","v":""},{"$f":"IF($B552=\"N\",\"\",IF(LEN('Enrollment Form'!$Y559)=0,\"\",IF(LEN('Enrollment Form'!$Y559)<>5,\"N\",\"Y\")))","v":""},{"$f":"IF($B552=\"N\",\"\",IF(LEN('Enrollment Form'!$AD559=0),\"\",IF(LEN('Enrollment Form'!$AD559)<>5,\"N\",\"Y\")))","v":""},{"$f":"IF($B552=\"N\",\"\",IF(LEN('Enrollment Form'!$BS559=0),\"\",IF(LEN('Enrollment Form'!$BS559)<>5,\"N\",\"Y\")))","v":""},{"$f":"IF($B552=\"N\",\"\",IF(LEN('Enrollment Form'!$AE559)=0,\"\",IF(LEN('Enrollment Form'!$AE559)<>10,\"N\",\"Y\")))","v":""},{"$f":"IF($B552=\"N\",\"\",IF(LEN('Enrollment Form'!$AF559)=0,\"\",IF(LEN('Enrollment Form'!$AF559)<>10,\"N\",\"Y\")))","v":""},{"$f":"IF('Enrollment Form'!$O559<>\"Graded\",\"-\",IF(AND('Enrollment Form'!$O559=\"Graded\",'Enrollment Form'!$AR559<>\"\"),\"Y\",\"N\"))","v":"-"},{"$f":"IF($B552=\"N\",\"\",IF(OR('Enrollment Form'!$B559<>\"Subscriber\",'Enrollment Form'!$C559=\"ROC\"),\"-\",IF(AND('Enrollment Form'!$B559=\"Subscriber\",'Enrollment Form'!$C559=\"Enroll\",'Enrollment Form'!$AJ559<>\"\"),\"Y\",\"N\")))","v":""},{"$f":"IF($B552=\"N\",\"\",IF(OR('Enrollment Form'!$B559<>\"Subscriber\",'Enrollment Form'!$C559=\"ROC\"),\"-\",IF(AND('Enrollment Form'!$B559=\"Subscriber\",'Enrollment Form'!$C559=\"Enroll\",'Enrollment Form'!$AK559<>\"\"),\"Y\",\"N\")))","v":""},{"$f":"IF($B552=\"N\",\"\",IF(OR('Enrollment Form'!$B559<>\"Subscriber\",'Enrollment Form'!$C559=\"ROC\"),\"-\",IF(AND('Enrollment Form'!$B559=\"Subscriber\",'Enrollment Form'!$C559=\"Enroll\",'Enrollment Form'!$AL559<>\"\"),\"Y\",\"N\")))","v":""},{"$f":"IF($B552=\"N\",\"\",IF(OR('Enrollment Form'!$B559<>\"Subscriber\",'Enrollment Form'!$C559=\"ROC\"),\"-\",IF(AND('Enrollment Form'!$B559=\"Subscriber\",'Enrollment Form'!$C559=\"Enroll\",'Enrollment Form'!$AP559<>\"\"),\"Y\",\"N\")))","v":""},{"$f":"IF($B552=\"N\",\"\",IF(OR('Enrollment Form'!$B559<>\"Subscriber\",'Enrollment Form'!$C559=\"ROC\"),\"-\",IF(AND('Enrollment Form'!$B559=\"Subscriber\",'Enrollment Form'!$C559=\"Enroll\",'Enrollment Form'!$AQ559<>\"\"),\"Y\",\"N\")))","v":""},{"$f":"IF($B552=\"N\",\"\",IF(OR('Enrollment Form'!$B559<>\"Subscriber\",'Enrollment Form'!$C559=\"ROC\"),\"-\",IF(AND('Enrollment Form'!$B559=\"Subscriber\",'Enrollment Form'!$C559=\"Enroll\",'Enrollment Form'!$AS559<>\"\"),\"Y\",\"N\")))","v":""},{"$f":"IF($B552=\"N\",\"\",IF($Q552=\"-\",\"-\",IF(AND($Q552=\"Y\",'Enrollment Form'!$AS559=\"No\"),\"-\",IF(AND($Q552=\"Y\",'Enrollment Form'!$AS559=\"Yes\",'Enrollment Form'!$AT559<>\"\"),\"Y\",\"N\"))))","v":""},{"$f":"IF($B552=\"N\",\"\",IF(OR('Enrollment Form'!$B559<>\"Subscriber\",'Enrollment Form'!$C559=\"ROC\"),\"-\",IF(AND('Enrollment Form'!$B559=\"Subscriber\",'Enrollment Form'!$C559=\"Enroll\",'Enrollment Form'!$CV559<>\"\"),\"Y\",\"N\")))","v":""},{"$f":"IF($B552=\"N\",\"\",IF($S552=\"-\",\"-\",IF(AND($S552=\"Y\",'Enrollment Form'!$CV559=\"No\"),\"-\",IF(AND($S552=\"Y\",'Enrollment Form'!$CV559=\"Yes\",'Enrollment Form'!$CW559<>\"\"),\"Y\",\"N\"))))","v":""},{"$f":"IF(OR('Enrollment Form'!$AY559=\"Yes\",'Enrollment Form'!$AY559=\"\"),\"-\",IF(OR(AND('Enrollment Form'!$AY559=\"No\",ISERROR(FIND(\"HMO\",VLOOKUP('Enrollment Form'!G559,'Enrollment Form'!H$11:J$1000,3,FALSE),1))=FALSE,COUNTA('Enrollment Form'!$AZ559:$BC559)=4),AND('Enrollment Form'!$AY559=\"No\",ISERROR(FIND(\"HMO\",VLOOKUP('Enrollment Form'!G559,'Enrollment Form'!H$11:J$1000,3,FALSE),1))=FALSE,COUNTA('Enrollment Form'!$BT559:$BW559)=4)),\"Y\",\"N\"))","v":"-"},{"$f":"IF($B552=\"N\",\"\",IF('Enrollment Form'!$B559=\"Subscriber\",\"-\",IF(COUNTA('Enrollment Form'!$BL559,'Enrollment Form'!$BN559)=2,\"Y\",\"N\")))","v":""},{"$f":"IF($B552=\"N\",\"\",IF(OR('Enrollment Form'!$AX559=\"\",'Enrollment Form'!$AX559=\"No\"),\"-\",IF(AND('Enrollment Form'!$AX559=\"Yes\",COUNTA('Enrollment Form'!$CR559)=1),\"Y\",\"N\")))","v":""},{"$f":"IF(OR('Enrollment Form'!$CR559=\"\",'Enrollment Form'!$CR559=\"No\"),\"-\",IF(COUNTA('Enrollment Form'!$CT559:$CU559)=2,\"Y\",\"N\"))","v":"-"},{"$f":"IF($B552=\"N\",\"\",IF(COUNTIF('Enrollment Form'!$DG559:$DP559,\"Other\")=COUNTA('Enrollment Form'!$DK559,'Enrollment Form'!$DH559,'Enrollment Form'!$DN559,'Enrollment Form'!$DQ559),\"Y\",\"N\"))","v":""},{"$f":"IF($B552=\"N\",\"\",IF(OR('Enrollment Form'!B559<>\"Subscriber\",'Enrollment Form'!C559=\"ROC\",COUNTIF('Enrollment Form'!AV559:AW559,\"Yes\")>=1),\"-\",IF(AND('Enrollment Form'!C559=\"Enroll\",COUNTIF('Enrollment Form'!AV559:AW559,\"No\")=2,'Enrollment Form'!AX559=\"\"),\"N\",\"Y\")))","v":""},{"$f":"IF(OR(B552=\"N\",'Enrollment Form'!B559<>\"Subscriber\",'Enrollment Form'!C559=\"ROC\",'Enrollment Form'!O559<>\"Multiple of Salary\"),\"-\",IF(COUNTA('Enrollment Form'!T559:U559)<2,\"N\",\"Y\"))","v":"-"},{"$f":"IF(B552=\"N\",\"\",IF(OR('Enrollment Form'!C559=\"ROC\",'Enrollment Form'!B559<>\"Subscriber\",'Enrollment Form'!O559=\"Waive\",'Enrollment Form'!O559=\"\"),\"-\",IF('Enrollment Form'!P559=\"\",\"N\",\"Y\")))","v":""},{"$f":"IF($B552=\"N\",\"\",IF(AND('Enrollment Form'!$C559=\"ROC\",'Enrollment Form'!$DR559<>\"\"),\"Y\",IF(AND('Enrollment Form'!$C559=\"ROC\",'Enrollment Form'!$DR559=\"\"),\"N\",IF(AND('Enrollment Form'!$C559=\"Enroll\",'Enrollment Form'!$B559=\"Subscriber\",'Enrollment Form'!$CX559=\"No\",'Enrollment Form'!$DR559=\"\"),\"N\",IF(AND('Enrollment Form'!$C559=\"Enroll\",'Enrollment Form'!$B559=\"Subscriber\",'Enrollment Form'!$CX559=\"Yes\"),\"-\",\"Y\")))))","v":""},{"$f":"IF($B552=\"N\",\"\",IF(AND('Enrollment Form'!$C559=\"ROC\",'Enrollment Form'!$DS559<>\"\"),\"Y\",IF(AND('Enrollment Form'!$C559=\"ROC\",'Enrollment Form'!$DS559=\"\"),\"N\",IF(AND('Enrollment Form'!$C559=\"Enroll\",'Enrollment Form'!$B559=\"Subscriber\",'Enrollment Form'!$CX559=\"No\",'Enrollment Form'!$DS559=\"\"),\"N\",IF(AND('Enrollment Form'!$C559=\"Enroll\",'Enrollment Form'!$B559=\"Subscriber\",'Enrollment Form'!$CX559=\"Yes\"),\"-\",\"Y\")))))","v":""},{"$f":"IF('Enrollment Form'!AH559=\"\",\"\",IF(ISERROR(SEARCH(\".\",'Enrollment Form'!AH559,SEARCH(\"@\",'Enrollment Form'!AH559))),\"N\",\"Y\"))","v":""},{"$f":"IF(OR($B552=\"N\",'Enrollment Form'!$G559=\"\"),\"\",IF('Enrollment Form'!$B559<>\"Subscriber\",\"-\",IF(COUNTIF('Enrollment Form'!$AV559:$AW559,\"Yes\")=2,\"N\",\"Y\")))","v":""},{"$f":"IF(OR('Enrollment Form'!$CJ559=\"\",'Enrollment Form'!$CJ559=\"No\"),\"-\",IF(AND('Enrollment Form'!$CJ559=\"Yes\",'Enrollment Form'!$CK559=\"\"),\"N\",\"Y\"))","v":"-"},{"$f":"IF(OR('Enrollment Form'!$CL559=\"\",'Enrollment Form'!$CL559=\"No\"),\"-\",IF(AND('Enrollment Form'!$CL559=\"Yes\",'Enrollment Form'!$CM559=\"\"),\"N\",\"Y\"))","v":"-"},{"$f":"IF(OR('Enrollment Form'!$CN559=\"\",'Enrollment Form'!$CN559=\"No\"),\"-\",IF(AND('Enrollment Form'!$CN559=\"Yes\",'Enrollment Form'!$CO559=\"\"),\"N\",\"Y\"))","v":"-"},{"$f":"IF(OR('Enrollment Form'!$CN559=\"\",'Enrollment Form'!$CN559=\"No\"),\"-\",IF(AND('Enrollment Form'!$CN559=\"Yes\",'Enrollment Form'!$CP559=\"\"),\"N\",\"Y\"))","v":"-"},{"$f":"IF('Enrollment Form'!B559<>\"Subscriber\",\"-\",IF(AND('Enrollment Form'!B559=\"Subscriber\",'Enrollment Form'!C559=\"Enroll\",'Enrollment Form'!AA559=\"\"),\"N\",\"Y\"))","v":"-"},{"$f":"IF(OR('Enrollment Form'!B559=\"Subscriber\",'Enrollment Form'!B559=\"\"),\"-\",IF('Enrollment Form'!BP559=\"\",\"N\",\"Y\"))","v":"-"},{"$f":"IF('Enrollment Form'!B559<>\"Subscriber\",\"-\",IF(AND('Enrollment Form'!B559=\"Subscriber\",'Enrollment Form'!G559=\"\"),\"N\",\"Y\"))","v":"-"},{"$f":"IF('Enrollment Form'!A559=\"\",\"\",IF('Enrollment Form'!B559=\"Subscriber\",\"-\",IF(AND('Enrollment Form'!B559<>\"Subscriber\",'Enrollment Form'!G559='Enrollment Form'!H559),\"N\",\"Y\")))","v":""},0]
[560,{"$f":"IF('Enrollment Form'!$A560<>\"\",\"Y\",\"N\")","v":"N"},{"$f":"IF(AND('Enrollment Form'!$B560=\"\",'Enrollment Form'!$C560<>\"\"),\"N\",IF($B553=\"N\",\"\",\"Y\"))","v":""},{"$f":"IF(OR($B553=\"N\",'Enrollment Form'!G560=\"\"),\"\",IF('Enrollment Form'!$B560<>\"Subscriber\",\"\",IF('Enrollment Form'!$G560='Enrollment Form'!$H560,\"Y\",\"N\")))","v":""},{"$f":"IF($B553=\"N\",\"\",IF(AND(COUNTIFS('Enrollment Form'!$H$11:$H$1000,'Enrollment Form'!$H560,'Enrollment Form'!$B$11:$B$1000,'Enrollment Form'!$B560)>1,'Enrollment Form'!$H560<>\"\"),\"N\",\"Y\"))","v":""},{"$f":"IF($B553=\"N\",\"\",IF(LEN('Enrollment Form'!$Y560)=0,\"\",IF(LEN('Enrollment Form'!$Y560)<>5,\"N\",\"Y\")))","v":""},{"$f":"IF($B553=\"N\",\"\",IF(LEN('Enrollment Form'!$AD560=0),\"\",IF(LEN('Enrollment Form'!$AD560)<>5,\"N\",\"Y\")))","v":""},{"$f":"IF($B553=\"N\",\"\",IF(LEN('Enrollment Form'!$BS560=0),\"\",IF(LEN('Enrollment Form'!$BS560)<>5,\"N\",\"Y\")))","v":""},{"$f":"IF($B553=\"N\",\"\",IF(LEN('Enrollment Form'!$AE560)=0,\"\",IF(LEN('Enrollment Form'!$AE560)<>10,\"N\",\"Y\")))","v":""},{"$f":"IF($B553=\"N\",\"\",IF(LEN('Enrollment Form'!$AF560)=0,\"\",IF(LEN('Enrollment Form'!$AF560)<>10,\"N\",\"Y\")))","v":""},{"$f":"IF('Enrollment Form'!$O560<>\"Graded\",\"-\",IF(AND('Enrollment Form'!$O560=\"Graded\",'Enrollment Form'!$AR560<>\"\"),\"Y\",\"N\"))","v":"-"},{"$f":"IF($B553=\"N\",\"\",IF(OR('Enrollment Form'!$B560<>\"Subscriber\",'Enrollment Form'!$C560=\"ROC\"),\"-\",IF(AND('Enrollment Form'!$B560=\"Subscriber\",'Enrollment Form'!$C560=\"Enroll\",'Enrollment Form'!$AJ560<>\"\"),\"Y\",\"N\")))","v":""},{"$f":"IF($B553=\"N\",\"\",IF(OR('Enrollment Form'!$B560<>\"Subscriber\",'Enrollment Form'!$C560=\"ROC\"),\"-\",IF(AND('Enrollment Form'!$B560=\"Subscriber\",'Enrollment Form'!$C560=\"Enroll\",'Enrollment Form'!$AK560<>\"\"),\"Y\",\"N\")))","v":""},{"$f":"IF($B553=\"N\",\"\",IF(OR('Enrollment Form'!$B560<>\"Subscriber\",'Enrollment Form'!$C560=\"ROC\"),\"-\",IF(AND('Enrollment Form'!$B560=\"Subscriber\",'Enrollment Form'!$C560=\"Enroll\",'Enrollment Form'!$AL560<>\"\"),\"Y\",\"N\")))","v":""},{"$f":"IF($B553=\"N\",\"\",IF(OR('Enrollment Form'!$B560<>\"Subscriber\",'Enrollment Form'!$C560=\"ROC\"),\"-\",IF(AND('Enrollment Form'!$B560=\"Subscriber\",'Enrollment Form'!$C560=\"Enroll\",'Enrollment Form'!$AP560<>\"\"),\"Y\",\"N\")))","v":""},{"$f":"IF($B553=\"N\",\"\",IF(OR('Enrollment Form'!$B560<>\"Subscriber\",'Enrollment Form'!$C560=\"ROC\"),\"-\",IF(AND('Enrollment Form'!$B560=\"Subscriber\",'Enrollment Form'!$C560=\"Enroll\",'Enrollment Form'!$AQ560<>\"\"),\"Y\",\"N\")))","v":""},{"$f":"IF($B553=\"N\",\"\",IF(OR('Enrollment Form'!$B560<>\"Subscriber\",'Enrollment Form'!$C560=\"ROC\"),\"-\",IF(AND('Enrollment Form'!$B560=\"Subscriber\",'Enrollment Form'!$C560=\"Enroll\",'Enrollment Form'!$AS560<>\"\"),\"Y\",\"N\")))","v":""},{"$f":"IF($B553=\"N\",\"\",IF($Q553=\"-\",\"-\",IF(AND($Q553=\"Y\",'Enrollment Form'!$AS560=\"No\"),\"-\",IF(AND($Q553=\"Y\",'Enrollment Form'!$AS560=\"Yes\",'Enrollment Form'!$AT560<>\"\"),\"Y\",\"N\"))))","v":""},{"$f":"IF($B553=\"N\",\"\",IF(OR('Enrollment Form'!$B560<>\"Subscriber\",'Enrollment Form'!$C560=\"ROC\"),\"-\",IF(AND('Enrollment Form'!$B560=\"Subscriber\",'Enrollment Form'!$C560=\"Enroll\",'Enrollment Form'!$CV560<>\"\"),\"Y\",\"N\")))","v":""},{"$f":"IF($B553=\"N\",\"\",IF($S553=\"-\",\"-\",IF(AND($S553=\"Y\",'Enrollment Form'!$CV560=\"No\"),\"-\",IF(AND($S553=\"Y\",'Enrollment Form'!$CV560=\"Yes\",'Enrollment Form'!$CW560<>\"\"),\"Y\",\"N\"))))","v":""},{"$f":"IF(OR('Enrollment Form'!$AY560=\"Yes\",'Enrollment Form'!$AY560=\"\"),\"-\",IF(OR(AND('Enrollment Form'!$AY560=\"No\",ISERROR(FIND(\"HMO\",VLOOKUP('Enrollment Form'!G560,'Enrollment Form'!H$11:J$1000,3,FALSE),1))=FALSE,COUNTA('Enrollment Form'!$AZ560:$BC560)=4),AND('Enrollment Form'!$AY560=\"No\",ISERROR(FIND(\"HMO\",VLOOKUP('Enrollment Form'!G560,'Enrollment Form'!H$11:J$1000,3,FALSE),1))=FALSE,COUNTA('Enrollment Form'!$BT560:$BW560)=4)),\"Y\",\"N\"))","v":"-"},{"$f":"IF($B553=\"N\",\"\",IF('Enrollment Form'!$B560=\"Subscriber\",\"-\",IF(COUNTA('Enrollment Form'!$BL560,'Enrollment Form'!$BN560)=2,\"Y\",\"N\")))","v":""},{"$f":"IF($B553=\"N\",\"\",IF(OR('Enrollment Form'!$AX560=\"\",'Enrollment Form'!$AX560=\"No\"),\"-\",IF(AND('Enrollment Form'!$AX560=\"Yes\",COUNTA('Enrollment Form'!$CR560)=1),\"Y\",\"N\")))","v":""},{"$f":"IF(OR('Enrollment Form'!$CR560=\"\",'Enrollment Form'!$CR560=\"No\"),\"-\",IF(COUNTA('Enrollment Form'!$CT560:$CU560)=2,\"Y\",\"N\"))","v":"-"},{"$f":"IF($B553=\"N\",\"\",IF(COUNTIF('Enrollment Form'!$DG560:$DP560,\"Other\")=COUNTA('Enrollment Form'!$DK560,'Enrollment Form'!$DH560,'Enrollment Form'!$DN560,'Enrollment Form'!$DQ560),\"Y\",\"N\"))","v":""},{"$f":"IF($B553=\"N\",\"\",IF(OR('Enrollment Form'!B560<>\"Subscriber\",'Enrollment Form'!C560=\"ROC\",COUNTIF('Enrollment Form'!AV560:AW560,\"Yes\")>=1),\"-\",IF(AND('Enrollment Form'!C560=\"Enroll\",COUNTIF('Enrollment Form'!AV560:AW560,\"No\")=2,'Enrollment Form'!AX560=\"\"),\"N\",\"Y\")))","v":""},{"$f":"IF(OR(B553=\"N\",'Enrollment Form'!B560<>\"Subscriber\",'Enrollment Form'!C560=\"ROC\",'Enrollment Form'!O560<>\"Multiple of Salary\"),\"-\",IF(COUNTA('Enrollment Form'!T560:U560)<2,\"N\",\"Y\"))","v":"-"},{"$f":"IF(B553=\"N\",\"\",IF(OR('Enrollment Form'!C560=\"ROC\",'Enrollment Form'!B560<>\"Subscriber\",'Enrollment Form'!O560=\"Waive\",'Enrollment Form'!O560=\"\"),\"-\",IF('Enrollment Form'!P560=\"\",\"N\",\"Y\")))","v":""},{"$f":"IF($B553=\"N\",\"\",IF(AND('Enrollment Form'!$C560=\"ROC\",'Enrollment Form'!$DR560<>\"\"),\"Y\",IF(AND('Enrollment Form'!$C560=\"ROC\",'Enrollment Form'!$DR560=\"\"),\"N\",IF(AND('Enrollment Form'!$C560=\"Enroll\",'Enrollment Form'!$B560=\"Subscriber\",'Enrollment Form'!$CX560=\"No\",'Enrollment Form'!$DR560=\"\"),\"N\",IF(AND('Enrollment Form'!$C560=\"Enroll\",'Enrollment Form'!$B560=\"Subscriber\",'Enrollment Form'!$CX560=\"Yes\"),\"-\",\"Y\")))))","v":""},{"$f":"IF($B553=\"N\",\"\",IF(AND('Enrollment Form'!$C560=\"ROC\",'Enrollment Form'!$DS560<>\"\"),\"Y\",IF(AND('Enrollment Form'!$C560=\"ROC\",'Enrollment Form'!$DS560=\"\"),\"N\",IF(AND('Enrollment Form'!$C560=\"Enroll\",'Enrollment Form'!$B560=\"Subscriber\",'Enrollment Form'!$CX560=\"No\",'Enrollment Form'!$DS560=\"\"),\"N\",IF(AND('Enrollment Form'!$C560=\"Enroll\",'Enrollment Form'!$B560=\"Subscriber\",'Enrollment Form'!$CX560=\"Yes\"),\"-\",\"Y\")))))","v":""},{"$f":"IF('Enrollment Form'!AH560=\"\",\"\",IF(ISERROR(SEARCH(\".\",'Enrollment Form'!AH560,SEARCH(\"@\",'Enrollment Form'!AH560))),\"N\",\"Y\"))","v":""},{"$f":"IF(OR($B553=\"N\",'Enrollment Form'!$G560=\"\"),\"\",IF('Enrollment Form'!$B560<>\"Subscriber\",\"-\",IF(COUNTIF('Enrollment Form'!$AV560:$AW560,\"Yes\")=2,\"N\",\"Y\")))","v":""},{"$f":"IF(OR('Enrollment Form'!$CJ560=\"\",'Enrollment Form'!$CJ560=\"No\"),\"-\",IF(AND('Enrollment Form'!$CJ560=\"Yes\",'Enrollment Form'!$CK560=\"\"),\"N\",\"Y\"))","v":"-"},{"$f":"IF(OR('Enrollment Form'!$CL560=\"\",'Enrollment Form'!$CL560=\"No\"),\"-\",IF(AND('Enrollment Form'!$CL560=\"Yes\",'Enrollment Form'!$CM560=\"\"),\"N\",\"Y\"))","v":"-"},{"$f":"IF(OR('Enrollment Form'!$CN560=\"\",'Enrollment Form'!$CN560=\"No\"),\"-\",IF(AND('Enrollment Form'!$CN560=\"Yes\",'Enrollment Form'!$CO560=\"\"),\"N\",\"Y\"))","v":"-"},{"$f":"IF(OR('Enrollment Form'!$CN560=\"\",'Enrollment Form'!$CN560=\"No\"),\"-\",IF(AND('Enrollment Form'!$CN560=\"Yes\",'Enrollment Form'!$CP560=\"\"),\"N\",\"Y\"))","v":"-"},{"$f":"IF('Enrollment Form'!B560<>\"Subscriber\",\"-\",IF(AND('Enrollment Form'!B560=\"Subscriber\",'Enrollment Form'!C560=\"Enroll\",'Enrollment Form'!AA560=\"\"),\"N\",\"Y\"))","v":"-"},{"$f":"IF(OR('Enrollment Form'!B560=\"Subscriber\",'Enrollment Form'!B560=\"\"),\"-\",IF('Enrollment Form'!BP560=\"\",\"N\",\"Y\"))","v":"-"},{"$f":"IF('Enrollment Form'!B560<>\"Subscriber\",\"-\",IF(AND('Enrollment Form'!B560=\"Subscriber\",'Enrollment Form'!G560=\"\"),\"N\",\"Y\"))","v":"-"},{"$f":"IF('Enrollment Form'!A560=\"\",\"\",IF('Enrollment Form'!B560=\"Subscriber\",\"-\",IF(AND('Enrollment Form'!B560<>\"Subscriber\",'Enrollment Form'!G560='Enrollment Form'!H560),\"N\",\"Y\")))","v":""},0]
[561,{"$f":"IF('Enrollment Form'!$A561<>\"\",\"Y\",\"N\")","v":"N"},{"$f":"IF(AND('Enrollment Form'!$B561=\"\",'Enrollment Form'!$C561<>\"\"),\"N\",IF($B554=\"N\",\"\",\"Y\"))","v":""},{"$f":"IF(OR($B554=\"N\",'Enrollment Form'!G561=\"\"),\"\",IF('Enrollment Form'!$B561<>\"Subscriber\",\"\",IF('Enrollment Form'!$G561='Enrollment Form'!$H561,\"Y\",\"N\")))","v":""},{"$f":"IF($B554=\"N\",\"\",IF(AND(COUNTIFS('Enrollment Form'!$H$11:$H$1000,'Enrollment Form'!$H561,'Enrollment Form'!$B$11:$B$1000,'Enrollment Form'!$B561)>1,'Enrollment Form'!$H561<>\"\"),\"N\",\"Y\"))","v":""},{"$f":"IF($B554=\"N\",\"\",IF(LEN('Enrollment Form'!$Y561)=0,\"\",IF(LEN('Enrollment Form'!$Y561)<>5,\"N\",\"Y\")))","v":""},{"$f":"IF($B554=\"N\",\"\",IF(LEN('Enrollment Form'!$AD561=0),\"\",IF(LEN('Enrollment Form'!$AD561)<>5,\"N\",\"Y\")))","v":""},{"$f":"IF($B554=\"N\",\"\",IF(LEN('Enrollment Form'!$BS561=0),\"\",IF(LEN('Enrollment Form'!$BS561)<>5,\"N\",\"Y\")))","v":""},{"$f":"IF($B554=\"N\",\"\",IF(LEN('Enrollment Form'!$AE561)=0,\"\",IF(LEN('Enrollment Form'!$AE561)<>10,\"N\",\"Y\")))","v":""},{"$f":"IF($B554=\"N\",\"\",IF(LEN('Enrollment Form'!$AF561)=0,\"\",IF(LEN('Enrollment Form'!$AF561)<>10,\"N\",\"Y\")))","v":""},{"$f":"IF('Enrollment Form'!$O561<>\"Graded\",\"-\",IF(AND('Enrollment Form'!$O561=\"Graded\",'Enrollment Form'!$AR561<>\"\"),\"Y\",\"N\"))","v":"-"},{"$f":"IF($B554=\"N\",\"\",IF(OR('Enrollment Form'!$B561<>\"Subscriber\",'Enrollment Form'!$C561=\"ROC\"),\"-\",IF(AND('Enrollment Form'!$B561=\"Subscriber\",'Enrollment Form'!$C561=\"Enroll\",'Enrollment Form'!$AJ561<>\"\"),\"Y\",\"N\")))","v":""},{"$f":"IF($B554=\"N\",\"\",IF(OR('Enrollment Form'!$B561<>\"Subscriber\",'Enrollment Form'!$C561=\"ROC\"),\"-\",IF(AND('Enrollment Form'!$B561=\"Subscriber\",'Enrollment Form'!$C561=\"Enroll\",'Enrollment Form'!$AK561<>\"\"),\"Y\",\"N\")))","v":""},{"$f":"IF($B554=\"N\",\"\",IF(OR('Enrollment Form'!$B561<>\"Subscriber\",'Enrollment Form'!$C561=\"ROC\"),\"-\",IF(AND('Enrollment Form'!$B561=\"Subscriber\",'Enrollment Form'!$C561=\"Enroll\",'Enrollment Form'!$AL561<>\"\"),\"Y\",\"N\")))","v":""},{"$f":"IF($B554=\"N\",\"\",IF(OR('Enrollment Form'!$B561<>\"Subscriber\",'Enrollment Form'!$C561=\"ROC\"),\"-\",IF(AND('Enrollment Form'!$B561=\"Subscriber\",'Enrollment Form'!$C561=\"Enroll\",'Enrollment Form'!$AP561<>\"\"),\"Y\",\"N\")))","v":""},{"$f":"IF($B554=\"N\",\"\",IF(OR('Enrollment Form'!$B561<>\"Subscriber\",'Enrollment Form'!$C561=\"ROC\"),\"-\",IF(AND('Enrollment Form'!$B561=\"Subscriber\",'Enrollment Form'!$C561=\"Enroll\",'Enrollment Form'!$AQ561<>\"\"),\"Y\",\"N\")))","v":""},{"$f":"IF($B554=\"N\",\"\",IF(OR('Enrollment Form'!$B561<>\"Subscriber\",'Enrollment Form'!$C561=\"ROC\"),\"-\",IF(AND('Enrollment Form'!$B561=\"Subscriber\",'Enrollment Form'!$C561=\"Enroll\",'Enrollment Form'!$AS561<>\"\"),\"Y\",\"N\")))","v":""},{"$f":"IF($B554=\"N\",\"\",IF($Q554=\"-\",\"-\",IF(AND($Q554=\"Y\",'Enrollment Form'!$AS561=\"No\"),\"-\",IF(AND($Q554=\"Y\",'Enrollment Form'!$AS561=\"Yes\",'Enrollment Form'!$AT561<>\"\"),\"Y\",\"N\"))))","v":""},{"$f":"IF($B554=\"N\",\"\",IF(OR('Enrollment Form'!$B561<>\"Subscriber\",'Enrollment Form'!$C561=\"ROC\"),\"-\",IF(AND('Enrollment Form'!$B561=\"Subscriber\",'Enrollment Form'!$C561=\"Enroll\",'Enrollment Form'!$CV561<>\"\"),\"Y\",\"N\")))","v":""},{"$f":"IF($B554=\"N\",\"\",IF($S554=\"-\",\"-\",IF(AND($S554=\"Y\",'Enrollment Form'!$CV561=\"No\"),\"-\",IF(AND($S554=\"Y\",'Enrollment Form'!$CV561=\"Yes\",'Enrollment Form'!$CW561<>\"\"),\"Y\",\"N\"))))","v":""},{"$f":"IF(OR('Enrollment Form'!$AY561=\"Yes\",'Enrollment Form'!$AY561=\"\"),\"-\",IF(OR(AND('Enrollment Form'!$AY561=\"No\",ISERROR(FIND(\"HMO\",VLOOKUP('Enrollment Form'!G561,'Enrollment Form'!H$11:J$1000,3,FALSE),1))=FALSE,COUNTA('Enrollment Form'!$AZ561:$BC561)=4),AND('Enrollment Form'!$AY561=\"No\",ISERROR(FIND(\"HMO\",VLOOKUP('Enrollment Form'!G561,'Enrollment Form'!H$11:J$1000,3,FALSE),1))=FALSE,COUNTA('Enrollment Form'!$BT561:$BW561)=4)),\"Y\",\"N\"))","v":"-"},{"$f":"IF($B554=\"N\",\"\",IF('Enrollment Form'!$B561=\"Subscriber\",\"-\",IF(COUNTA('Enrollment Form'!$BL561,'Enrollment Form'!$BN561)=2,\"Y\",\"N\")))","v":""},{"$f":"IF($B554=\"N\",\"\",IF(OR('Enrollment Form'!$AX561=\"\",'Enrollment Form'!$AX561=\"No\"),\"-\",IF(AND('Enrollment Form'!$AX561=\"Yes\",COUNTA('Enrollment Form'!$CR561)=1),\"Y\",\"N\")))","v":""},{"$f":"IF(OR('Enrollment Form'!$CR561=\"\",'Enrollment Form'!$CR561=\"No\"),\"-\",IF(COUNTA('Enrollment Form'!$CT561:$CU561)=2,\"Y\",\"N\"))","v":"-"},{"$f":"IF($B554=\"N\",\"\",IF(COUNTIF('Enrollment Form'!$DG561:$DP561,\"Other\")=COUNTA('Enrollment Form'!$DK561,'Enrollment Form'!$DH561,'Enrollment Form'!$DN561,'Enrollment Form'!$DQ561),\"Y\",\"N\"))","v":""},{"$f":"IF($B554=\"N\",\"\",IF(OR('Enrollment Form'!B561<>\"Subscriber\",'Enrollment Form'!C561=\"ROC\",COUNTIF('Enrollment Form'!AV561:AW561,\"Yes\")>=1),\"-\",IF(AND('Enrollment Form'!C561=\"Enroll\",COUNTIF('Enrollment Form'!AV561:AW561,\"No\")=2,'Enrollment Form'!AX561=\"\"),\"N\",\"Y\")))","v":""},{"$f":"IF(OR(B554=\"N\",'Enrollment Form'!B561<>\"Subscriber\",'Enrollment Form'!C561=\"ROC\",'Enrollment Form'!O561<>\"Multiple of Salary\"),\"-\",IF(COUNTA('Enrollment Form'!T561:U561)<2,\"N\",\"Y\"))","v":"-"},{"$f":"IF(B554=\"N\",\"\",IF(OR('Enrollment Form'!C561=\"ROC\",'Enrollment Form'!B561<>\"Subscriber\",'Enrollment Form'!O561=\"Waive\",'Enrollment Form'!O561=\"\"),\"-\",IF('Enrollment Form'!P561=\"\",\"N\",\"Y\")))","v":""},{"$f":"IF($B554=\"N\",\"\",IF(AND('Enrollment Form'!$C561=\"ROC\",'Enrollment Form'!$DR561<>\"\"),\"Y\",IF(AND('Enrollment Form'!$C561=\"ROC\",'Enrollment Form'!$DR561=\"\"),\"N\",IF(AND('Enrollment Form'!$C561=\"Enroll\",'Enrollment Form'!$B561=\"Subscriber\",'Enrollment Form'!$CX561=\"No\",'Enrollment Form'!$DR561=\"\"),\"N\",IF(AND('Enrollment Form'!$C561=\"Enroll\",'Enrollment Form'!$B561=\"Subscriber\",'Enrollment Form'!$CX561=\"Yes\"),\"-\",\"Y\")))))","v":""},{"$f":"IF($B554=\"N\",\"\",IF(AND('Enrollment Form'!$C561=\"ROC\",'Enrollment Form'!$DS561<>\"\"),\"Y\",IF(AND('Enrollment Form'!$C561=\"ROC\",'Enrollment Form'!$DS561=\"\"),\"N\",IF(AND('Enrollment Form'!$C561=\"Enroll\",'Enrollment Form'!$B561=\"Subscriber\",'Enrollment Form'!$CX561=\"No\",'Enrollment Form'!$DS561=\"\"),\"N\",IF(AND('Enrollment Form'!$C561=\"Enroll\",'Enrollment Form'!$B561=\"Subscriber\",'Enrollment Form'!$CX561=\"Yes\"),\"-\",\"Y\")))))","v":""},{"$f":"IF('Enrollment Form'!AH561=\"\",\"\",IF(ISERROR(SEARCH(\".\",'Enrollment Form'!AH561,SEARCH(\"@\",'Enrollment Form'!AH561))),\"N\",\"Y\"))","v":""},{"$f":"IF(OR($B554=\"N\",'Enrollment Form'!$G561=\"\"),\"\",IF('Enrollment Form'!$B561<>\"Subscriber\",\"-\",IF(COUNTIF('Enrollment Form'!$AV561:$AW561,\"Yes\")=2,\"N\",\"Y\")))","v":""},{"$f":"IF(OR('Enrollment Form'!$CJ561=\"\",'Enrollment Form'!$CJ561=\"No\"),\"-\",IF(AND('Enrollment Form'!$CJ561=\"Yes\",'Enrollment Form'!$CK561=\"\"),\"N\",\"Y\"))","v":"-"},{"$f":"IF(OR('Enrollment Form'!$CL561=\"\",'Enrollment Form'!$CL561=\"No\"),\"-\",IF(AND('Enrollment Form'!$CL561=\"Yes\",'Enrollment Form'!$CM561=\"\"),\"N\",\"Y\"))","v":"-"},{"$f":"IF(OR('Enrollment Form'!$CN561=\"\",'Enrollment Form'!$CN561=\"No\"),\"-\",IF(AND('Enrollment Form'!$CN561=\"Yes\",'Enrollment Form'!$CO561=\"\"),\"N\",\"Y\"))","v":"-"},{"$f":"IF(OR('Enrollment Form'!$CN561=\"\",'Enrollment Form'!$CN561=\"No\"),\"-\",IF(AND('Enrollment Form'!$CN561=\"Yes\",'Enrollment Form'!$CP561=\"\"),\"N\",\"Y\"))","v":"-"},{"$f":"IF('Enrollment Form'!B561<>\"Subscriber\",\"-\",IF(AND('Enrollment Form'!B561=\"Subscriber\",'Enrollment Form'!C561=\"Enroll\",'Enrollment Form'!AA561=\"\"),\"N\",\"Y\"))","v":"-"},{"$f":"IF(OR('Enrollment Form'!B561=\"Subscriber\",'Enrollment Form'!B561=\"\"),\"-\",IF('Enrollment Form'!BP561=\"\",\"N\",\"Y\"))","v":"-"},{"$f":"IF('Enrollment Form'!B561<>\"Subscriber\",\"-\",IF(AND('Enrollment Form'!B561=\"Subscriber\",'Enrollment Form'!G561=\"\"),\"N\",\"Y\"))","v":"-"},{"$f":"IF('Enrollment Form'!A561=\"\",\"\",IF('Enrollment Form'!B561=\"Subscriber\",\"-\",IF(AND('Enrollment Form'!B561<>\"Subscriber\",'Enrollment Form'!G561='Enrollment Form'!H561),\"N\",\"Y\")))","v":""},0]
[562,{"$f":"IF('Enrollment Form'!$A562<>\"\",\"Y\",\"N\")","v":"N"},{"$f":"IF(AND('Enrollment Form'!$B562=\"\",'Enrollment Form'!$C562<>\"\"),\"N\",IF($B555=\"N\",\"\",\"Y\"))","v":""},{"$f":"IF(OR($B555=\"N\",'Enrollment Form'!G562=\"\"),\"\",IF('Enrollment Form'!$B562<>\"Subscriber\",\"\",IF('Enrollment Form'!$G562='Enrollment Form'!$H562,\"Y\",\"N\")))","v":""},{"$f":"IF($B555=\"N\",\"\",IF(AND(COUNTIFS('Enrollment Form'!$H$11:$H$1000,'Enrollment Form'!$H562,'Enrollment Form'!$B$11:$B$1000,'Enrollment Form'!$B562)>1,'Enrollment Form'!$H562<>\"\"),\"N\",\"Y\"))","v":""},{"$f":"IF($B555=\"N\",\"\",IF(LEN('Enrollment Form'!$Y562)=0,\"\",IF(LEN('Enrollment Form'!$Y562)<>5,\"N\",\"Y\")))","v":""},{"$f":"IF($B555=\"N\",\"\",IF(LEN('Enrollment Form'!$AD562=0),\"\",IF(LEN('Enrollment Form'!$AD562)<>5,\"N\",\"Y\")))","v":""},{"$f":"IF($B555=\"N\",\"\",IF(LEN('Enrollment Form'!$BS562=0),\"\",IF(LEN('Enrollment Form'!$BS562)<>5,\"N\",\"Y\")))","v":""},{"$f":"IF($B555=\"N\",\"\",IF(LEN('Enrollment Form'!$AE562)=0,\"\",IF(LEN('Enrollment Form'!$AE562)<>10,\"N\",\"Y\")))","v":""},{"$f":"IF($B555=\"N\",\"\",IF(LEN('Enrollment Form'!$AF562)=0,\"\",IF(LEN('Enrollment Form'!$AF562)<>10,\"N\",\"Y\")))","v":""},{"$f":"IF('Enrollment Form'!$O562<>\"Graded\",\"-\",IF(AND('Enrollment Form'!$O562=\"Graded\",'Enrollment Form'!$AR562<>\"\"),\"Y\",\"N\"))","v":"-"},{"$f":"IF($B555=\"N\",\"\",IF(OR('Enrollment Form'!$B562<>\"Subscriber\",'Enrollment Form'!$C562=\"ROC\"),\"-\",IF(AND('Enrollment Form'!$B562=\"Subscriber\",'Enrollment Form'!$C562=\"Enroll\",'Enrollment Form'!$AJ562<>\"\"),\"Y\",\"N\")))","v":""},{"$f":"IF($B555=\"N\",\"\",IF(OR('Enrollment Form'!$B562<>\"Subscriber\",'Enrollment Form'!$C562=\"ROC\"),\"-\",IF(AND('Enrollment Form'!$B562=\"Subscriber\",'Enrollment Form'!$C562=\"Enroll\",'Enrollment Form'!$AK562<>\"\"),\"Y\",\"N\")))","v":""},{"$f":"IF($B555=\"N\",\"\",IF(OR('Enrollment Form'!$B562<>\"Subscriber\",'Enrollment Form'!$C562=\"ROC\"),\"-\",IF(AND('Enrollment Form'!$B562=\"Subscriber\",'Enrollment Form'!$C562=\"Enroll\",'Enrollment Form'!$AL562<>\"\"),\"Y\",\"N\")))","v":""},{"$f":"IF($B555=\"N\",\"\",IF(OR('Enrollment Form'!$B562<>\"Subscriber\",'Enrollment Form'!$C562=\"ROC\"),\"-\",IF(AND('Enrollment Form'!$B562=\"Subscriber\",'Enrollment Form'!$C562=\"Enroll\",'Enrollment Form'!$AP562<>\"\"),\"Y\",\"N\")))","v":""},{"$f":"IF($B555=\"N\",\"\",IF(OR('Enrollment Form'!$B562<>\"Subscriber\",'Enrollment Form'!$C562=\"ROC\"),\"-\",IF(AND('Enrollment Form'!$B562=\"Subscriber\",'Enrollment Form'!$C562=\"Enroll\",'Enrollment Form'!$AQ562<>\"\"),\"Y\",\"N\")))","v":""},{"$f":"IF($B555=\"N\",\"\",IF(OR('Enrollment Form'!$B562<>\"Subscriber\",'Enrollment Form'!$C562=\"ROC\"),\"-\",IF(AND('Enrollment Form'!$B562=\"Subscriber\",'Enrollment Form'!$C562=\"Enroll\",'Enrollment Form'!$AS562<>\"\"),\"Y\",\"N\")))","v":""},{"$f":"IF($B555=\"N\",\"\",IF($Q555=\"-\",\"-\",IF(AND($Q555=\"Y\",'Enrollment Form'!$AS562=\"No\"),\"-\",IF(AND($Q555=\"Y\",'Enrollment Form'!$AS562=\"Yes\",'Enrollment Form'!$AT562<>\"\"),\"Y\",\"N\"))))","v":""},{"$f":"IF($B555=\"N\",\"\",IF(OR('Enrollment Form'!$B562<>\"Subscriber\",'Enrollment Form'!$C562=\"ROC\"),\"-\",IF(AND('Enrollment Form'!$B562=\"Subscriber\",'Enrollment Form'!$C562=\"Enroll\",'Enrollment Form'!$CV562<>\"\"),\"Y\",\"N\")))","v":""},{"$f":"IF($B555=\"N\",\"\",IF($S555=\"-\",\"-\",IF(AND($S555=\"Y\",'Enrollment Form'!$CV562=\"No\"),\"-\",IF(AND($S555=\"Y\",'Enrollment Form'!$CV562=\"Yes\",'Enrollment Form'!$CW562<>\"\"),\"Y\",\"N\"))))","v":""},{"$f":"IF(OR('Enrollment Form'!$AY562=\"Yes\",'Enrollment Form'!$AY562=\"\"),\"-\",IF(OR(AND('Enrollment Form'!$AY562=\"No\",ISERROR(FIND(\"HMO\",VLOOKUP('Enrollment Form'!G562,'Enrollment Form'!H$11:J$1000,3,FALSE),1))=FALSE,COUNTA('Enrollment Form'!$AZ562:$BC562)=4),AND('Enrollment Form'!$AY562=\"No\",ISERROR(FIND(\"HMO\",VLOOKUP('Enrollment Form'!G562,'Enrollment Form'!H$11:J$1000,3,FALSE),1))=FALSE,COUNTA('Enrollment Form'!$BT562:$BW562)=4)),\"Y\",\"N\"))","v":"-"},{"$f":"IF($B555=\"N\",\"\",IF('Enrollment Form'!$B562=\"Subscriber\",\"-\",IF(COUNTA('Enrollment Form'!$BL562,'Enrollment Form'!$BN562)=2,\"Y\",\"N\")))","v":""},{"$f":"IF($B555=\"N\",\"\",IF(OR('Enrollment Form'!$AX562=\"\",'Enrollment Form'!$AX562=\"No\"),\"-\",IF(AND('Enrollment Form'!$AX562=\"Yes\",COUNTA('Enrollment Form'!$CR562)=1),\"Y\",\"N\")))","v":""},{"$f":"IF(OR('Enrollment Form'!$CR562=\"\",'Enrollment Form'!$CR562=\"No\"),\"-\",IF(COUNTA('Enrollment Form'!$CT562:$CU562)=2,\"Y\",\"N\"))","v":"-"},{"$f":"IF($B555=\"N\",\"\",IF(COUNTIF('Enrollment Form'!$DG562:$DP562,\"Other\")=COUNTA('Enrollment Form'!$DK562,'Enrollment Form'!$DH562,'Enrollment Form'!$DN562,'Enrollment Form'!$DQ562),\"Y\",\"N\"))","v":""},{"$f":"IF($B555=\"N\",\"\",IF(OR('Enrollment Form'!B562<>\"Subscriber\",'Enrollment Form'!C562=\"ROC\",COUNTIF('Enrollment Form'!AV562:AW562,\"Yes\")>=1),\"-\",IF(AND('Enrollment Form'!C562=\"Enroll\",COUNTIF('Enrollment Form'!AV562:AW562,\"No\")=2,'Enrollment Form'!AX562=\"\"),\"N\",\"Y\")))","v":""},{"$f":"IF(OR(B555=\"N\",'Enrollment Form'!B562<>\"Subscriber\",'Enrollment Form'!C562=\"ROC\",'Enrollment Form'!O562<>\"Multiple of Salary\"),\"-\",IF(COUNTA('Enrollment Form'!T562:U562)<2,\"N\",\"Y\"))","v":"-"},{"$f":"IF(B555=\"N\",\"\",IF(OR('Enrollment Form'!C562=\"ROC\",'Enrollment Form'!B562<>\"Subscriber\",'Enrollment Form'!O562=\"Waive\",'Enrollment Form'!O562=\"\"),\"-\",IF('Enrollment Form'!P562=\"\",\"N\",\"Y\")))","v":""},{"$f":"IF($B555=\"N\",\"\",IF(AND('Enrollment Form'!$C562=\"ROC\",'Enrollment Form'!$DR562<>\"\"),\"Y\",IF(AND('Enrollment Form'!$C562=\"ROC\",'Enrollment Form'!$DR562=\"\"),\"N\",IF(AND('Enrollment Form'!$C562=\"Enroll\",'Enrollment Form'!$B562=\"Subscriber\",'Enrollment Form'!$CX562=\"No\",'Enrollment Form'!$DR562=\"\"),\"N\",IF(AND('Enrollment Form'!$C562=\"Enroll\",'Enrollment Form'!$B562=\"Subscriber\",'Enrollment Form'!$CX562=\"Yes\"),\"-\",\"Y\")))))","v":""},{"$f":"IF($B555=\"N\",\"\",IF(AND('Enrollment Form'!$C562=\"ROC\",'Enrollment Form'!$DS562<>\"\"),\"Y\",IF(AND('Enrollment Form'!$C562=\"ROC\",'Enrollment Form'!$DS562=\"\"),\"N\",IF(AND('Enrollment Form'!$C562=\"Enroll\",'Enrollment Form'!$B562=\"Subscriber\",'Enrollment Form'!$CX562=\"No\",'Enrollment Form'!$DS562=\"\"),\"N\",IF(AND('Enrollment Form'!$C562=\"Enroll\",'Enrollment Form'!$B562=\"Subscriber\",'Enrollment Form'!$CX562=\"Yes\"),\"-\",\"Y\")))))","v":""},{"$f":"IF('Enrollment Form'!AH562=\"\",\"\",IF(ISERROR(SEARCH(\".\",'Enrollment Form'!AH562,SEARCH(\"@\",'Enrollment Form'!AH562))),\"N\",\"Y\"))","v":""},{"$f":"IF(OR($B555=\"N\",'Enrollment Form'!$G562=\"\"),\"\",IF('Enrollment Form'!$B562<>\"Subscriber\",\"-\",IF(COUNTIF('Enrollment Form'!$AV562:$AW562,\"Yes\")=2,\"N\",\"Y\")))","v":""},{"$f":"IF(OR('Enrollment Form'!$CJ562=\"\",'Enrollment Form'!$CJ562=\"No\"),\"-\",IF(AND('Enrollment Form'!$CJ562=\"Yes\",'Enrollment Form'!$CK562=\"\"),\"N\",\"Y\"))","v":"-"},{"$f":"IF(OR('Enrollment Form'!$CL562=\"\",'Enrollment Form'!$CL562=\"No\"),\"-\",IF(AND('Enrollment Form'!$CL562=\"Yes\",'Enrollment Form'!$CM562=\"\"),\"N\",\"Y\"))","v":"-"},{"$f":"IF(OR('Enrollment Form'!$CN562=\"\",'Enrollment Form'!$CN562=\"No\"),\"-\",IF(AND('Enrollment Form'!$CN562=\"Yes\",'Enrollment Form'!$CO562=\"\"),\"N\",\"Y\"))","v":"-"},{"$f":"IF(OR('Enrollment Form'!$CN562=\"\",'Enrollment Form'!$CN562=\"No\"),\"-\",IF(AND('Enrollment Form'!$CN562=\"Yes\",'Enrollment Form'!$CP562=\"\"),\"N\",\"Y\"))","v":"-"},{"$f":"IF('Enrollment Form'!B562<>\"Subscriber\",\"-\",IF(AND('Enrollment Form'!B562=\"Subscriber\",'Enrollment Form'!C562=\"Enroll\",'Enrollment Form'!AA562=\"\"),\"N\",\"Y\"))","v":"-"},{"$f":"IF(OR('Enrollment Form'!B562=\"Subscriber\",'Enrollment Form'!B562=\"\"),\"-\",IF('Enrollment Form'!BP562=\"\",\"N\",\"Y\"))","v":"-"},{"$f":"IF('Enrollment Form'!B562<>\"Subscriber\",\"-\",IF(AND('Enrollment Form'!B562=\"Subscriber\",'Enrollment Form'!G562=\"\"),\"N\",\"Y\"))","v":"-"},{"$f":"IF('Enrollment Form'!A562=\"\",\"\",IF('Enrollment Form'!B562=\"Subscriber\",\"-\",IF(AND('Enrollment Form'!B562<>\"Subscriber\",'Enrollment Form'!G562='Enrollment Form'!H562),\"N\",\"Y\")))","v":""},0]
[563,{"$f":"IF('Enrollment Form'!$A563<>\"\",\"Y\",\"N\")","v":"N"},{"$f":"IF(AND('Enrollment Form'!$B563=\"\",'Enrollment Form'!$C563<>\"\"),\"N\",IF($B556=\"N\",\"\",\"Y\"))","v":""},{"$f":"IF(OR($B556=\"N\",'Enrollment Form'!G563=\"\"),\"\",IF('Enrollment Form'!$B563<>\"Subscriber\",\"\",IF('Enrollment Form'!$G563='Enrollment Form'!$H563,\"Y\",\"N\")))","v":""},{"$f":"IF($B556=\"N\",\"\",IF(AND(COUNTIFS('Enrollment Form'!$H$11:$H$1000,'Enrollment Form'!$H563,'Enrollment Form'!$B$11:$B$1000,'Enrollment Form'!$B563)>1,'Enrollment Form'!$H563<>\"\"),\"N\",\"Y\"))","v":""},{"$f":"IF($B556=\"N\",\"\",IF(LEN('Enrollment Form'!$Y563)=0,\"\",IF(LEN('Enrollment Form'!$Y563)<>5,\"N\",\"Y\")))","v":""},{"$f":"IF($B556=\"N\",\"\",IF(LEN('Enrollment Form'!$AD563=0),\"\",IF(LEN('Enrollment Form'!$AD563)<>5,\"N\",\"Y\")))","v":""},{"$f":"IF($B556=\"N\",\"\",IF(LEN('Enrollment Form'!$BS563=0),\"\",IF(LEN('Enrollment Form'!$BS563)<>5,\"N\",\"Y\")))","v":""},{"$f":"IF($B556=\"N\",\"\",IF(LEN('Enrollment Form'!$AE563)=0,\"\",IF(LEN('Enrollment Form'!$AE563)<>10,\"N\",\"Y\")))","v":""},{"$f":"IF($B556=\"N\",\"\",IF(LEN('Enrollment Form'!$AF563)=0,\"\",IF(LEN('Enrollment Form'!$AF563)<>10,\"N\",\"Y\")))","v":""},{"$f":"IF('Enrollment Form'!$O563<>\"Graded\",\"-\",IF(AND('Enrollment Form'!$O563=\"Graded\",'Enrollment Form'!$AR563<>\"\"),\"Y\",\"N\"))","v":"-"},{"$f":"IF($B556=\"N\",\"\",IF(OR('Enrollment Form'!$B563<>\"Subscriber\",'Enrollment Form'!$C563=\"ROC\"),\"-\",IF(AND('Enrollment Form'!$B563=\"Subscriber\",'Enrollment Form'!$C563=\"Enroll\",'Enrollment Form'!$AJ563<>\"\"),\"Y\",\"N\")))","v":""},{"$f":"IF($B556=\"N\",\"\",IF(OR('Enrollment Form'!$B563<>\"Subscriber\",'Enrollment Form'!$C563=\"ROC\"),\"-\",IF(AND('Enrollment Form'!$B563=\"Subscriber\",'Enrollment Form'!$C563=\"Enroll\",'Enrollment Form'!$AK563<>\"\"),\"Y\",\"N\")))","v":""},{"$f":"IF($B556=\"N\",\"\",IF(OR('Enrollment Form'!$B563<>\"Subscriber\",'Enrollment Form'!$C563=\"ROC\"),\"-\",IF(AND('Enrollment Form'!$B563=\"Subscriber\",'Enrollment Form'!$C563=\"Enroll\",'Enrollment Form'!$AL563<>\"\"),\"Y\",\"N\")))","v":""},{"$f":"IF($B556=\"N\",\"\",IF(OR('Enrollment Form'!$B563<>\"Subscriber\",'Enrollment Form'!$C563=\"ROC\"),\"-\",IF(AND('Enrollment Form'!$B563=\"Subscriber\",'Enrollment Form'!$C563=\"Enroll\",'Enrollment Form'!$AP563<>\"\"),\"Y\",\"N\")))","v":""},{"$f":"IF($B556=\"N\",\"\",IF(OR('Enrollment Form'!$B563<>\"Subscriber\",'Enrollment Form'!$C563=\"ROC\"),\"-\",IF(AND('Enrollment Form'!$B563=\"Subscriber\",'Enrollment Form'!$C563=\"Enroll\",'Enrollment Form'!$AQ563<>\"\"),\"Y\",\"N\")))","v":""},{"$f":"IF($B556=\"N\",\"\",IF(OR('Enrollment Form'!$B563<>\"Subscriber\",'Enrollment Form'!$C563=\"ROC\"),\"-\",IF(AND('Enrollment Form'!$B563=\"Subscriber\",'Enrollment Form'!$C563=\"Enroll\",'Enrollment Form'!$AS563<>\"\"),\"Y\",\"N\")))","v":""},{"$f":"IF($B556=\"N\",\"\",IF($Q556=\"-\",\"-\",IF(AND($Q556=\"Y\",'Enrollment Form'!$AS563=\"No\"),\"-\",IF(AND($Q556=\"Y\",'Enrollment Form'!$AS563=\"Yes\",'Enrollment Form'!$AT563<>\"\"),\"Y\",\"N\"))))","v":""},{"$f":"IF($B556=\"N\",\"\",IF(OR('Enrollment Form'!$B563<>\"Subscriber\",'Enrollment Form'!$C563=\"ROC\"),\"-\",IF(AND('Enrollment Form'!$B563=\"Subscriber\",'Enrollment Form'!$C563=\"Enroll\",'Enrollment Form'!$CV563<>\"\"),\"Y\",\"N\")))","v":""},{"$f":"IF($B556=\"N\",\"\",IF($S556=\"-\",\"-\",IF(AND($S556=\"Y\",'Enrollment Form'!$CV563=\"No\"),\"-\",IF(AND($S556=\"Y\",'Enrollment Form'!$CV563=\"Yes\",'Enrollment Form'!$CW563<>\"\"),\"Y\",\"N\"))))","v":""},{"$f":"IF(OR('Enrollment Form'!$AY563=\"Yes\",'Enrollment Form'!$AY563=\"\"),\"-\",IF(OR(AND('Enrollment Form'!$AY563=\"No\",ISERROR(FIND(\"HMO\",VLOOKUP('Enrollment Form'!G563,'Enrollment Form'!H$11:J$1000,3,FALSE),1))=FALSE,COUNTA('Enrollment Form'!$AZ563:$BC563)=4),AND('Enrollment Form'!$AY563=\"No\",ISERROR(FIND(\"HMO\",VLOOKUP('Enrollment Form'!G563,'Enrollment Form'!H$11:J$1000,3,FALSE),1))=FALSE,COUNTA('Enrollment Form'!$BT563:$BW563)=4)),\"Y\",\"N\"))","v":"-"},{"$f":"IF($B556=\"N\",\"\",IF('Enrollment Form'!$B563=\"Subscriber\",\"-\",IF(COUNTA('Enrollment Form'!$BL563,'Enrollment Form'!$BN563)=2,\"Y\",\"N\")))","v":""},{"$f":"IF($B556=\"N\",\"\",IF(OR('Enrollment Form'!$AX563=\"\",'Enrollment Form'!$AX563=\"No\"),\"-\",IF(AND('Enrollment Form'!$AX563=\"Yes\",COUNTA('Enrollment Form'!$CR563)=1),\"Y\",\"N\")))","v":""},{"$f":"IF(OR('Enrollment Form'!$CR563=\"\",'Enrollment Form'!$CR563=\"No\"),\"-\",IF(COUNTA('Enrollment Form'!$CT563:$CU563)=2,\"Y\",\"N\"))","v":"-"},{"$f":"IF($B556=\"N\",\"\",IF(COUNTIF('Enrollment Form'!$DG563:$DP563,\"Other\")=COUNTA('Enrollment Form'!$DK563,'Enrollment Form'!$DH563,'Enrollment Form'!$DN563,'Enrollment Form'!$DQ563),\"Y\",\"N\"))","v":""},{"$f":"IF($B556=\"N\",\"\",IF(OR('Enrollment Form'!B563<>\"Subscriber\",'Enrollment Form'!C563=\"ROC\",COUNTIF('Enrollment Form'!AV563:AW563,\"Yes\")>=1),\"-\",IF(AND('Enrollment Form'!C563=\"Enroll\",COUNTIF('Enrollment Form'!AV563:AW563,\"No\")=2,'Enrollment Form'!AX563=\"\"),\"N\",\"Y\")))","v":""},{"$f":"IF(OR(B556=\"N\",'Enrollment Form'!B563<>\"Subscriber\",'Enrollment Form'!C563=\"ROC\",'Enrollment Form'!O563<>\"Multiple of Salary\"),\"-\",IF(COUNTA('Enrollment Form'!T563:U563)<2,\"N\",\"Y\"))","v":"-"},{"$f":"IF(B556=\"N\",\"\",IF(OR('Enrollment Form'!C563=\"ROC\",'Enrollment Form'!B563<>\"Subscriber\",'Enrollment Form'!O563=\"Waive\",'Enrollment Form'!O563=\"\"),\"-\",IF('Enrollment Form'!P563=\"\",\"N\",\"Y\")))","v":""},{"$f":"IF($B556=\"N\",\"\",IF(AND('Enrollment Form'!$C563=\"ROC\",'Enrollment Form'!$DR563<>\"\"),\"Y\",IF(AND('Enrollment Form'!$C563=\"ROC\",'Enrollment Form'!$DR563=\"\"),\"N\",IF(AND('Enrollment Form'!$C563=\"Enroll\",'Enrollment Form'!$B563=\"Subscriber\",'Enrollment Form'!$CX563=\"No\",'Enrollment Form'!$DR563=\"\"),\"N\",IF(AND('Enrollment Form'!$C563=\"Enroll\",'Enrollment Form'!$B563=\"Subscriber\",'Enrollment Form'!$CX563=\"Yes\"),\"-\",\"Y\")))))","v":""},{"$f":"IF($B556=\"N\",\"\",IF(AND('Enrollment Form'!$C563=\"ROC\",'Enrollment Form'!$DS563<>\"\"),\"Y\",IF(AND('Enrollment Form'!$C563=\"ROC\",'Enrollment Form'!$DS563=\"\"),\"N\",IF(AND('Enrollment Form'!$C563=\"Enroll\",'Enrollment Form'!$B563=\"Subscriber\",'Enrollment Form'!$CX563=\"No\",'Enrollment Form'!$DS563=\"\"),\"N\",IF(AND('Enrollment Form'!$C563=\"Enroll\",'Enrollment Form'!$B563=\"Subscriber\",'Enrollment Form'!$CX563=\"Yes\"),\"-\",\"Y\")))))","v":""},{"$f":"IF('Enrollment Form'!AH563=\"\",\"\",IF(ISERROR(SEARCH(\".\",'Enrollment Form'!AH563,SEARCH(\"@\",'Enrollment Form'!AH563))),\"N\",\"Y\"))","v":""},{"$f":"IF(OR($B556=\"N\",'Enrollment Form'!$G563=\"\"),\"\",IF('Enrollment Form'!$B563<>\"Subscriber\",\"-\",IF(COUNTIF('Enrollment Form'!$AV563:$AW563,\"Yes\")=2,\"N\",\"Y\")))","v":""},{"$f":"IF(OR('Enrollment Form'!$CJ563=\"\",'Enrollment Form'!$CJ563=\"No\"),\"-\",IF(AND('Enrollment Form'!$CJ563=\"Yes\",'Enrollment Form'!$CK563=\"\"),\"N\",\"Y\"))","v":"-"},{"$f":"IF(OR('Enrollment Form'!$CL563=\"\",'Enrollment Form'!$CL563=\"No\"),\"-\",IF(AND('Enrollment Form'!$CL563=\"Yes\",'Enrollment Form'!$CM563=\"\"),\"N\",\"Y\"))","v":"-"},{"$f":"IF(OR('Enrollment Form'!$CN563=\"\",'Enrollment Form'!$CN563=\"No\"),\"-\",IF(AND('Enrollment Form'!$CN563=\"Yes\",'Enrollment Form'!$CO563=\"\"),\"N\",\"Y\"))","v":"-"},{"$f":"IF(OR('Enrollment Form'!$CN563=\"\",'Enrollment Form'!$CN563=\"No\"),\"-\",IF(AND('Enrollment Form'!$CN563=\"Yes\",'Enrollment Form'!$CP563=\"\"),\"N\",\"Y\"))","v":"-"},{"$f":"IF('Enrollment Form'!B563<>\"Subscriber\",\"-\",IF(AND('Enrollment Form'!B563=\"Subscriber\",'Enrollment Form'!C563=\"Enroll\",'Enrollment Form'!AA563=\"\"),\"N\",\"Y\"))","v":"-"},{"$f":"IF(OR('Enrollment Form'!B563=\"Subscriber\",'Enrollment Form'!B563=\"\"),\"-\",IF('Enrollment Form'!BP563=\"\",\"N\",\"Y\"))","v":"-"},{"$f":"IF('Enrollment Form'!B563<>\"Subscriber\",\"-\",IF(AND('Enrollment Form'!B563=\"Subscriber\",'Enrollment Form'!G563=\"\"),\"N\",\"Y\"))","v":"-"},{"$f":"IF('Enrollment Form'!A563=\"\",\"\",IF('Enrollment Form'!B563=\"Subscriber\",\"-\",IF(AND('Enrollment Form'!B563<>\"Subscriber\",'Enrollment Form'!G563='Enrollment Form'!H563),\"N\",\"Y\")))","v":""},0]
[564,{"$f":"IF('Enrollment Form'!$A564<>\"\",\"Y\",\"N\")","v":"N"},{"$f":"IF(AND('Enrollment Form'!$B564=\"\",'Enrollment Form'!$C564<>\"\"),\"N\",IF($B557=\"N\",\"\",\"Y\"))","v":""},{"$f":"IF(OR($B557=\"N\",'Enrollment Form'!G564=\"\"),\"\",IF('Enrollment Form'!$B564<>\"Subscriber\",\"\",IF('Enrollment Form'!$G564='Enrollment Form'!$H564,\"Y\",\"N\")))","v":""},{"$f":"IF($B557=\"N\",\"\",IF(AND(COUNTIFS('Enrollment Form'!$H$11:$H$1000,'Enrollment Form'!$H564,'Enrollment Form'!$B$11:$B$1000,'Enrollment Form'!$B564)>1,'Enrollment Form'!$H564<>\"\"),\"N\",\"Y\"))","v":""},{"$f":"IF($B557=\"N\",\"\",IF(LEN('Enrollment Form'!$Y564)=0,\"\",IF(LEN('Enrollment Form'!$Y564)<>5,\"N\",\"Y\")))","v":""},{"$f":"IF($B557=\"N\",\"\",IF(LEN('Enrollment Form'!$AD564=0),\"\",IF(LEN('Enrollment Form'!$AD564)<>5,\"N\",\"Y\")))","v":""},{"$f":"IF($B557=\"N\",\"\",IF(LEN('Enrollment Form'!$BS564=0),\"\",IF(LEN('Enrollment Form'!$BS564)<>5,\"N\",\"Y\")))","v":""},{"$f":"IF($B557=\"N\",\"\",IF(LEN('Enrollment Form'!$AE564)=0,\"\",IF(LEN('Enrollment Form'!$AE564)<>10,\"N\",\"Y\")))","v":""},{"$f":"IF($B557=\"N\",\"\",IF(LEN('Enrollment Form'!$AF564)=0,\"\",IF(LEN('Enrollment Form'!$AF564)<>10,\"N\",\"Y\")))","v":""},{"$f":"IF('Enrollment Form'!$O564<>\"Graded\",\"-\",IF(AND('Enrollment Form'!$O564=\"Graded\",'Enrollment Form'!$AR564<>\"\"),\"Y\",\"N\"))","v":"-"},{"$f":"IF($B557=\"N\",\"\",IF(OR('Enrollment Form'!$B564<>\"Subscriber\",'Enrollment Form'!$C564=\"ROC\"),\"-\",IF(AND('Enrollment Form'!$B564=\"Subscriber\",'Enrollment Form'!$C564=\"Enroll\",'Enrollment Form'!$AJ564<>\"\"),\"Y\",\"N\")))","v":""},{"$f":"IF($B557=\"N\",\"\",IF(OR('Enrollment Form'!$B564<>\"Subscriber\",'Enrollment Form'!$C564=\"ROC\"),\"-\",IF(AND('Enrollment Form'!$B564=\"Subscriber\",'Enrollment Form'!$C564=\"Enroll\",'Enrollment Form'!$AK564<>\"\"),\"Y\",\"N\")))","v":""},{"$f":"IF($B557=\"N\",\"\",IF(OR('Enrollment Form'!$B564<>\"Subscriber\",'Enrollment Form'!$C564=\"ROC\"),\"-\",IF(AND('Enrollment Form'!$B564=\"Subscriber\",'Enrollment Form'!$C564=\"Enroll\",'Enrollment Form'!$AL564<>\"\"),\"Y\",\"N\")))","v":""},{"$f":"IF($B557=\"N\",\"\",IF(OR('Enrollment Form'!$B564<>\"Subscriber\",'Enrollment Form'!$C564=\"ROC\"),\"-\",IF(AND('Enrollment Form'!$B564=\"Subscriber\",'Enrollment Form'!$C564=\"Enroll\",'Enrollment Form'!$AP564<>\"\"),\"Y\",\"N\")))","v":""},{"$f":"IF($B557=\"N\",\"\",IF(OR('Enrollment Form'!$B564<>\"Subscriber\",'Enrollment Form'!$C564=\"ROC\"),\"-\",IF(AND('Enrollment Form'!$B564=\"Subscriber\",'Enrollment Form'!$C564=\"Enroll\",'Enrollment Form'!$AQ564<>\"\"),\"Y\",\"N\")))","v":""},{"$f":"IF($B557=\"N\",\"\",IF(OR('Enrollment Form'!$B564<>\"Subscriber\",'Enrollment Form'!$C564=\"ROC\"),\"-\",IF(AND('Enrollment Form'!$B564=\"Subscriber\",'Enrollment Form'!$C564=\"Enroll\",'Enrollment Form'!$AS564<>\"\"),\"Y\",\"N\")))","v":""},{"$f":"IF($B557=\"N\",\"\",IF($Q557=\"-\",\"-\",IF(AND($Q557=\"Y\",'Enrollment Form'!$AS564=\"No\"),\"-\",IF(AND($Q557=\"Y\",'Enrollment Form'!$AS564=\"Yes\",'Enrollment Form'!$AT564<>\"\"),\"Y\",\"N\"))))","v":""},{"$f":"IF($B557=\"N\",\"\",IF(OR('Enrollment Form'!$B564<>\"Subscriber\",'Enrollment Form'!$C564=\"ROC\"),\"-\",IF(AND('Enrollment Form'!$B564=\"Subscriber\",'Enrollment Form'!$C564=\"Enroll\",'Enrollment Form'!$CV564<>\"\"),\"Y\",\"N\")))","v":""},{"$f":"IF($B557=\"N\",\"\",IF($S557=\"-\",\"-\",IF(AND($S557=\"Y\",'Enrollment Form'!$CV564=\"No\"),\"-\",IF(AND($S557=\"Y\",'Enrollment Form'!$CV564=\"Yes\",'Enrollment Form'!$CW564<>\"\"),\"Y\",\"N\"))))","v":""},{"$f":"IF(OR('Enrollment Form'!$AY564=\"Yes\",'Enrollment Form'!$AY564=\"\"),\"-\",IF(OR(AND('Enrollment Form'!$AY564=\"No\",ISERROR(FIND(\"HMO\",VLOOKUP('Enrollment Form'!G564,'Enrollment Form'!H$11:J$1000,3,FALSE),1))=FALSE,COUNTA('Enrollment Form'!$AZ564:$BC564)=4),AND('Enrollment Form'!$AY564=\"No\",ISERROR(FIND(\"HMO\",VLOOKUP('Enrollment Form'!G564,'Enrollment Form'!H$11:J$1000,3,FALSE),1))=FALSE,COUNTA('Enrollment Form'!$BT564:$BW564)=4)),\"Y\",\"N\"))","v":"-"},{"$f":"IF($B557=\"N\",\"\",IF('Enrollment Form'!$B564=\"Subscriber\",\"-\",IF(COUNTA('Enrollment Form'!$BL564,'Enrollment Form'!$BN564)=2,\"Y\",\"N\")))","v":""},{"$f":"IF($B557=\"N\",\"\",IF(OR('Enrollment Form'!$AX564=\"\",'Enrollment Form'!$AX564=\"No\"),\"-\",IF(AND('Enrollment Form'!$AX564=\"Yes\",COUNTA('Enrollment Form'!$CR564)=1),\"Y\",\"N\")))","v":""},{"$f":"IF(OR('Enrollment Form'!$CR564=\"\",'Enrollment Form'!$CR564=\"No\"),\"-\",IF(COUNTA('Enrollment Form'!$CT564:$CU564)=2,\"Y\",\"N\"))","v":"-"},{"$f":"IF($B557=\"N\",\"\",IF(COUNTIF('Enrollment Form'!$DG564:$DP564,\"Other\")=COUNTA('Enrollment Form'!$DK564,'Enrollment Form'!$DH564,'Enrollment Form'!$DN564,'Enrollment Form'!$DQ564),\"Y\",\"N\"))","v":""},{"$f":"IF($B557=\"N\",\"\",IF(OR('Enrollment Form'!B564<>\"Subscriber\",'Enrollment Form'!C564=\"ROC\",COUNTIF('Enrollment Form'!AV564:AW564,\"Yes\")>=1),\"-\",IF(AND('Enrollment Form'!C564=\"Enroll\",COUNTIF('Enrollment Form'!AV564:AW564,\"No\")=2,'Enrollment Form'!AX564=\"\"),\"N\",\"Y\")))","v":""},{"$f":"IF(OR(B557=\"N\",'Enrollment Form'!B564<>\"Subscriber\",'Enrollment Form'!C564=\"ROC\",'Enrollment Form'!O564<>\"Multiple of Salary\"),\"-\",IF(COUNTA('Enrollment Form'!T564:U564)<2,\"N\",\"Y\"))","v":"-"},{"$f":"IF(B557=\"N\",\"\",IF(OR('Enrollment Form'!C564=\"ROC\",'Enrollment Form'!B564<>\"Subscriber\",'Enrollment Form'!O564=\"Waive\",'Enrollment Form'!O564=\"\"),\"-\",IF('Enrollment Form'!P564=\"\",\"N\",\"Y\")))","v":""},{"$f":"IF($B557=\"N\",\"\",IF(AND('Enrollment Form'!$C564=\"ROC\",'Enrollment Form'!$DR564<>\"\"),\"Y\",IF(AND('Enrollment Form'!$C564=\"ROC\",'Enrollment Form'!$DR564=\"\"),\"N\",IF(AND('Enrollment Form'!$C564=\"Enroll\",'Enrollment Form'!$B564=\"Subscriber\",'Enrollment Form'!$CX564=\"No\",'Enrollment Form'!$DR564=\"\"),\"N\",IF(AND('Enrollment Form'!$C564=\"Enroll\",'Enrollment Form'!$B564=\"Subscriber\",'Enrollment Form'!$CX564=\"Yes\"),\"-\",\"Y\")))))","v":""},{"$f":"IF($B557=\"N\",\"\",IF(AND('Enrollment Form'!$C564=\"ROC\",'Enrollment Form'!$DS564<>\"\"),\"Y\",IF(AND('Enrollment Form'!$C564=\"ROC\",'Enrollment Form'!$DS564=\"\"),\"N\",IF(AND('Enrollment Form'!$C564=\"Enroll\",'Enrollment Form'!$B564=\"Subscriber\",'Enrollment Form'!$CX564=\"No\",'Enrollment Form'!$DS564=\"\"),\"N\",IF(AND('Enrollment Form'!$C564=\"Enroll\",'Enrollment Form'!$B564=\"Subscriber\",'Enrollment Form'!$CX564=\"Yes\"),\"-\",\"Y\")))))","v":""},{"$f":"IF('Enrollment Form'!AH564=\"\",\"\",IF(ISERROR(SEARCH(\".\",'Enrollment Form'!AH564,SEARCH(\"@\",'Enrollment Form'!AH564))),\"N\",\"Y\"))","v":""},{"$f":"IF(OR($B557=\"N\",'Enrollment Form'!$G564=\"\"),\"\",IF('Enrollment Form'!$B564<>\"Subscriber\",\"-\",IF(COUNTIF('Enrollment Form'!$AV564:$AW564,\"Yes\")=2,\"N\",\"Y\")))","v":""},{"$f":"IF(OR('Enrollment Form'!$CJ564=\"\",'Enrollment Form'!$CJ564=\"No\"),\"-\",IF(AND('Enrollment Form'!$CJ564=\"Yes\",'Enrollment Form'!$CK564=\"\"),\"N\",\"Y\"))","v":"-"},{"$f":"IF(OR('Enrollment Form'!$CL564=\"\",'Enrollment Form'!$CL564=\"No\"),\"-\",IF(AND('Enrollment Form'!$CL564=\"Yes\",'Enrollment Form'!$CM564=\"\"),\"N\",\"Y\"))","v":"-"},{"$f":"IF(OR('Enrollment Form'!$CN564=\"\",'Enrollment Form'!$CN564=\"No\"),\"-\",IF(AND('Enrollment Form'!$CN564=\"Yes\",'Enrollment Form'!$CO564=\"\"),\"N\",\"Y\"))","v":"-"},{"$f":"IF(OR('Enrollment Form'!$CN564=\"\",'Enrollment Form'!$CN564=\"No\"),\"-\",IF(AND('Enrollment Form'!$CN564=\"Yes\",'Enrollment Form'!$CP564=\"\"),\"N\",\"Y\"))","v":"-"},{"$f":"IF('Enrollment Form'!B564<>\"Subscriber\",\"-\",IF(AND('Enrollment Form'!B564=\"Subscriber\",'Enrollment Form'!C564=\"Enroll\",'Enrollment Form'!AA564=\"\"),\"N\",\"Y\"))","v":"-"},{"$f":"IF(OR('Enrollment Form'!B564=\"Subscriber\",'Enrollment Form'!B564=\"\"),\"-\",IF('Enrollment Form'!BP564=\"\",\"N\",\"Y\"))","v":"-"},{"$f":"IF('Enrollment Form'!B564<>\"Subscriber\",\"-\",IF(AND('Enrollment Form'!B564=\"Subscriber\",'Enrollment Form'!G564=\"\"),\"N\",\"Y\"))","v":"-"},{"$f":"IF('Enrollment Form'!A564=\"\",\"\",IF('Enrollment Form'!B564=\"Subscriber\",\"-\",IF(AND('Enrollment Form'!B564<>\"Subscriber\",'Enrollment Form'!G564='Enrollment Form'!H564),\"N\",\"Y\")))","v":""},0]
[565,{"$f":"IF('Enrollment Form'!$A565<>\"\",\"Y\",\"N\")","v":"N"},{"$f":"IF(AND('Enrollment Form'!$B565=\"\",'Enrollment Form'!$C565<>\"\"),\"N\",IF($B558=\"N\",\"\",\"Y\"))","v":""},{"$f":"IF(OR($B558=\"N\",'Enrollment Form'!G565=\"\"),\"\",IF('Enrollment Form'!$B565<>\"Subscriber\",\"\",IF('Enrollment Form'!$G565='Enrollment Form'!$H565,\"Y\",\"N\")))","v":""},{"$f":"IF($B558=\"N\",\"\",IF(AND(COUNTIFS('Enrollment Form'!$H$11:$H$1000,'Enrollment Form'!$H565,'Enrollment Form'!$B$11:$B$1000,'Enrollment Form'!$B565)>1,'Enrollment Form'!$H565<>\"\"),\"N\",\"Y\"))","v":""},{"$f":"IF($B558=\"N\",\"\",IF(LEN('Enrollment Form'!$Y565)=0,\"\",IF(LEN('Enrollment Form'!$Y565)<>5,\"N\",\"Y\")))","v":""},{"$f":"IF($B558=\"N\",\"\",IF(LEN('Enrollment Form'!$AD565=0),\"\",IF(LEN('Enrollment Form'!$AD565)<>5,\"N\",\"Y\")))","v":""},{"$f":"IF($B558=\"N\",\"\",IF(LEN('Enrollment Form'!$BS565=0),\"\",IF(LEN('Enrollment Form'!$BS565)<>5,\"N\",\"Y\")))","v":""},{"$f":"IF($B558=\"N\",\"\",IF(LEN('Enrollment Form'!$AE565)=0,\"\",IF(LEN('Enrollment Form'!$AE565)<>10,\"N\",\"Y\")))","v":""},{"$f":"IF($B558=\"N\",\"\",IF(LEN('Enrollment Form'!$AF565)=0,\"\",IF(LEN('Enrollment Form'!$AF565)<>10,\"N\",\"Y\")))","v":""},{"$f":"IF('Enrollment Form'!$O565<>\"Graded\",\"-\",IF(AND('Enrollment Form'!$O565=\"Graded\",'Enrollment Form'!$AR565<>\"\"),\"Y\",\"N\"))","v":"-"},{"$f":"IF($B558=\"N\",\"\",IF(OR('Enrollment Form'!$B565<>\"Subscriber\",'Enrollment Form'!$C565=\"ROC\"),\"-\",IF(AND('Enrollment Form'!$B565=\"Subscriber\",'Enrollment Form'!$C565=\"Enroll\",'Enrollment Form'!$AJ565<>\"\"),\"Y\",\"N\")))","v":""},{"$f":"IF($B558=\"N\",\"\",IF(OR('Enrollment Form'!$B565<>\"Subscriber\",'Enrollment Form'!$C565=\"ROC\"),\"-\",IF(AND('Enrollment Form'!$B565=\"Subscriber\",'Enrollment Form'!$C565=\"Enroll\",'Enrollment Form'!$AK565<>\"\"),\"Y\",\"N\")))","v":""},{"$f":"IF($B558=\"N\",\"\",IF(OR('Enrollment Form'!$B565<>\"Subscriber\",'Enrollment Form'!$C565=\"ROC\"),\"-\",IF(AND('Enrollment Form'!$B565=\"Subscriber\",'Enrollment Form'!$C565=\"Enroll\",'Enrollment Form'!$AL565<>\"\"),\"Y\",\"N\")))","v":""},{"$f":"IF($B558=\"N\",\"\",IF(OR('Enrollment Form'!$B565<>\"Subscriber\",'Enrollment Form'!$C565=\"ROC\"),\"-\",IF(AND('Enrollment Form'!$B565=\"Subscriber\",'Enrollment Form'!$C565=\"Enroll\",'Enrollment Form'!$AP565<>\"\"),\"Y\",\"N\")))","v":""},{"$f":"IF($B558=\"N\",\"\",IF(OR('Enrollment Form'!$B565<>\"Subscriber\",'Enrollment Form'!$C565=\"ROC\"),\"-\",IF(AND('Enrollment Form'!$B565=\"Subscriber\",'Enrollment Form'!$C565=\"Enroll\",'Enrollment Form'!$AQ565<>\"\"),\"Y\",\"N\")))","v":""},{"$f":"IF($B558=\"N\",\"\",IF(OR('Enrollment Form'!$B565<>\"Subscriber\",'Enrollment Form'!$C565=\"ROC\"),\"-\",IF(AND('Enrollment Form'!$B565=\"Subscriber\",'Enrollment Form'!$C565=\"Enroll\",'Enrollment Form'!$AS565<>\"\"),\"Y\",\"N\")))","v":""},{"$f":"IF($B558=\"N\",\"\",IF($Q558=\"-\",\"-\",IF(AND($Q558=\"Y\",'Enrollment Form'!$AS565=\"No\"),\"-\",IF(AND($Q558=\"Y\",'Enrollment Form'!$AS565=\"Yes\",'Enrollment Form'!$AT565<>\"\"),\"Y\",\"N\"))))","v":""},{"$f":"IF($B558=\"N\",\"\",IF(OR('Enrollment Form'!$B565<>\"Subscriber\",'Enrollment Form'!$C565=\"ROC\"),\"-\",IF(AND('Enrollment Form'!$B565=\"Subscriber\",'Enrollment Form'!$C565=\"Enroll\",'Enrollment Form'!$CV565<>\"\"),\"Y\",\"N\")))","v":""},{"$f":"IF($B558=\"N\",\"\",IF($S558=\"-\",\"-\",IF(AND($S558=\"Y\",'Enrollment Form'!$CV565=\"No\"),\"-\",IF(AND($S558=\"Y\",'Enrollment Form'!$CV565=\"Yes\",'Enrollment Form'!$CW565<>\"\"),\"Y\",\"N\"))))","v":""},{"$f":"IF(OR('Enrollment Form'!$AY565=\"Yes\",'Enrollment Form'!$AY565=\"\"),\"-\",IF(OR(AND('Enrollment Form'!$AY565=\"No\",ISERROR(FIND(\"HMO\",VLOOKUP('Enrollment Form'!G565,'Enrollment Form'!H$11:J$1000,3,FALSE),1))=FALSE,COUNTA('Enrollment Form'!$AZ565:$BC565)=4),AND('Enrollment Form'!$AY565=\"No\",ISERROR(FIND(\"HMO\",VLOOKUP('Enrollment Form'!G565,'Enrollment Form'!H$11:J$1000,3,FALSE),1))=FALSE,COUNTA('Enrollment Form'!$BT565:$BW565)=4)),\"Y\",\"N\"))","v":"-"},{"$f":"IF($B558=\"N\",\"\",IF('Enrollment Form'!$B565=\"Subscriber\",\"-\",IF(COUNTA('Enrollment Form'!$BL565,'Enrollment Form'!$BN565)=2,\"Y\",\"N\")))","v":""},{"$f":"IF($B558=\"N\",\"\",IF(OR('Enrollment Form'!$AX565=\"\",'Enrollment Form'!$AX565=\"No\"),\"-\",IF(AND('Enrollment Form'!$AX565=\"Yes\",COUNTA('Enrollment Form'!$CR565)=1),\"Y\",\"N\")))","v":""},{"$f":"IF(OR('Enrollment Form'!$CR565=\"\",'Enrollment Form'!$CR565=\"No\"),\"-\",IF(COUNTA('Enrollment Form'!$CT565:$CU565)=2,\"Y\",\"N\"))","v":"-"},{"$f":"IF($B558=\"N\",\"\",IF(COUNTIF('Enrollment Form'!$DG565:$DP565,\"Other\")=COUNTA('Enrollment Form'!$DK565,'Enrollment Form'!$DH565,'Enrollment Form'!$DN565,'Enrollment Form'!$DQ565),\"Y\",\"N\"))","v":""},{"$f":"IF($B558=\"N\",\"\",IF(OR('Enrollment Form'!B565<>\"Subscriber\",'Enrollment Form'!C565=\"ROC\",COUNTIF('Enrollment Form'!AV565:AW565,\"Yes\")>=1),\"-\",IF(AND('Enrollment Form'!C565=\"Enroll\",COUNTIF('Enrollment Form'!AV565:AW565,\"No\")=2,'Enrollment Form'!AX565=\"\"),\"N\",\"Y\")))","v":""},{"$f":"IF(OR(B558=\"N\",'Enrollment Form'!B565<>\"Subscriber\",'Enrollment Form'!C565=\"ROC\",'Enrollment Form'!O565<>\"Multiple of Salary\"),\"-\",IF(COUNTA('Enrollment Form'!T565:U565)<2,\"N\",\"Y\"))","v":"-"},{"$f":"IF(B558=\"N\",\"\",IF(OR('Enrollment Form'!C565=\"ROC\",'Enrollment Form'!B565<>\"Subscriber\",'Enrollment Form'!O565=\"Waive\",'Enrollment Form'!O565=\"\"),\"-\",IF('Enrollment Form'!P565=\"\",\"N\",\"Y\")))","v":""},{"$f":"IF($B558=\"N\",\"\",IF(AND('Enrollment Form'!$C565=\"ROC\",'Enrollment Form'!$DR565<>\"\"),\"Y\",IF(AND('Enrollment Form'!$C565=\"ROC\",'Enrollment Form'!$DR565=\"\"),\"N\",IF(AND('Enrollment Form'!$C565=\"Enroll\",'Enrollment Form'!$B565=\"Subscriber\",'Enrollment Form'!$CX565=\"No\",'Enrollment Form'!$DR565=\"\"),\"N\",IF(AND('Enrollment Form'!$C565=\"Enroll\",'Enrollment Form'!$B565=\"Subscriber\",'Enrollment Form'!$CX565=\"Yes\"),\"-\",\"Y\")))))","v":""},{"$f":"IF($B558=\"N\",\"\",IF(AND('Enrollment Form'!$C565=\"ROC\",'Enrollment Form'!$DS565<>\"\"),\"Y\",IF(AND('Enrollment Form'!$C565=\"ROC\",'Enrollment Form'!$DS565=\"\"),\"N\",IF(AND('Enrollment Form'!$C565=\"Enroll\",'Enrollment Form'!$B565=\"Subscriber\",'Enrollment Form'!$CX565=\"No\",'Enrollment Form'!$DS565=\"\"),\"N\",IF(AND('Enrollment Form'!$C565=\"Enroll\",'Enrollment Form'!$B565=\"Subscriber\",'Enrollment Form'!$CX565=\"Yes\"),\"-\",\"Y\")))))","v":""},{"$f":"IF('Enrollment Form'!AH565=\"\",\"\",IF(ISERROR(SEARCH(\".\",'Enrollment Form'!AH565,SEARCH(\"@\",'Enrollment Form'!AH565))),\"N\",\"Y\"))","v":""},{"$f":"IF(OR($B558=\"N\",'Enrollment Form'!$G565=\"\"),\"\",IF('Enrollment Form'!$B565<>\"Subscriber\",\"-\",IF(COUNTIF('Enrollment Form'!$AV565:$AW565,\"Yes\")=2,\"N\",\"Y\")))","v":""},{"$f":"IF(OR('Enrollment Form'!$CJ565=\"\",'Enrollment Form'!$CJ565=\"No\"),\"-\",IF(AND('Enrollment Form'!$CJ565=\"Yes\",'Enrollment Form'!$CK565=\"\"),\"N\",\"Y\"))","v":"-"},{"$f":"IF(OR('Enrollment Form'!$CL565=\"\",'Enrollment Form'!$CL565=\"No\"),\"-\",IF(AND('Enrollment Form'!$CL565=\"Yes\",'Enrollment Form'!$CM565=\"\"),\"N\",\"Y\"))","v":"-"},{"$f":"IF(OR('Enrollment Form'!$CN565=\"\",'Enrollment Form'!$CN565=\"No\"),\"-\",IF(AND('Enrollment Form'!$CN565=\"Yes\",'Enrollment Form'!$CO565=\"\"),\"N\",\"Y\"))","v":"-"},{"$f":"IF(OR('Enrollment Form'!$CN565=\"\",'Enrollment Form'!$CN565=\"No\"),\"-\",IF(AND('Enrollment Form'!$CN565=\"Yes\",'Enrollment Form'!$CP565=\"\"),\"N\",\"Y\"))","v":"-"},{"$f":"IF('Enrollment Form'!B565<>\"Subscriber\",\"-\",IF(AND('Enrollment Form'!B565=\"Subscriber\",'Enrollment Form'!C565=\"Enroll\",'Enrollment Form'!AA565=\"\"),\"N\",\"Y\"))","v":"-"},{"$f":"IF(OR('Enrollment Form'!B565=\"Subscriber\",'Enrollment Form'!B565=\"\"),\"-\",IF('Enrollment Form'!BP565=\"\",\"N\",\"Y\"))","v":"-"},{"$f":"IF('Enrollment Form'!B565<>\"Subscriber\",\"-\",IF(AND('Enrollment Form'!B565=\"Subscriber\",'Enrollment Form'!G565=\"\"),\"N\",\"Y\"))","v":"-"},{"$f":"IF('Enrollment Form'!A565=\"\",\"\",IF('Enrollment Form'!B565=\"Subscriber\",\"-\",IF(AND('Enrollment Form'!B565<>\"Subscriber\",'Enrollment Form'!G565='Enrollment Form'!H565),\"N\",\"Y\")))","v":""},0]
[566,{"$f":"IF('Enrollment Form'!$A566<>\"\",\"Y\",\"N\")","v":"N"},{"$f":"IF(AND('Enrollment Form'!$B566=\"\",'Enrollment Form'!$C566<>\"\"),\"N\",IF($B559=\"N\",\"\",\"Y\"))","v":""},{"$f":"IF(OR($B559=\"N\",'Enrollment Form'!G566=\"\"),\"\",IF('Enrollment Form'!$B566<>\"Subscriber\",\"\",IF('Enrollment Form'!$G566='Enrollment Form'!$H566,\"Y\",\"N\")))","v":""},{"$f":"IF($B559=\"N\",\"\",IF(AND(COUNTIFS('Enrollment Form'!$H$11:$H$1000,'Enrollment Form'!$H566,'Enrollment Form'!$B$11:$B$1000,'Enrollment Form'!$B566)>1,'Enrollment Form'!$H566<>\"\"),\"N\",\"Y\"))","v":""},{"$f":"IF($B559=\"N\",\"\",IF(LEN('Enrollment Form'!$Y566)=0,\"\",IF(LEN('Enrollment Form'!$Y566)<>5,\"N\",\"Y\")))","v":""},{"$f":"IF($B559=\"N\",\"\",IF(LEN('Enrollment Form'!$AD566=0),\"\",IF(LEN('Enrollment Form'!$AD566)<>5,\"N\",\"Y\")))","v":""},{"$f":"IF($B559=\"N\",\"\",IF(LEN('Enrollment Form'!$BS566=0),\"\",IF(LEN('Enrollment Form'!$BS566)<>5,\"N\",\"Y\")))","v":""},{"$f":"IF($B559=\"N\",\"\",IF(LEN('Enrollment Form'!$AE566)=0,\"\",IF(LEN('Enrollment Form'!$AE566)<>10,\"N\",\"Y\")))","v":""},{"$f":"IF($B559=\"N\",\"\",IF(LEN('Enrollment Form'!$AF566)=0,\"\",IF(LEN('Enrollment Form'!$AF566)<>10,\"N\",\"Y\")))","v":""},{"$f":"IF('Enrollment Form'!$O566<>\"Graded\",\"-\",IF(AND('Enrollment Form'!$O566=\"Graded\",'Enrollment Form'!$AR566<>\"\"),\"Y\",\"N\"))","v":"-"},{"$f":"IF($B559=\"N\",\"\",IF(OR('Enrollment Form'!$B566<>\"Subscriber\",'Enrollment Form'!$C566=\"ROC\"),\"-\",IF(AND('Enrollment Form'!$B566=\"Subscriber\",'Enrollment Form'!$C566=\"Enroll\",'Enrollment Form'!$AJ566<>\"\"),\"Y\",\"N\")))","v":""},{"$f":"IF($B559=\"N\",\"\",IF(OR('Enrollment Form'!$B566<>\"Subscriber\",'Enrollment Form'!$C566=\"ROC\"),\"-\",IF(AND('Enrollment Form'!$B566=\"Subscriber\",'Enrollment Form'!$C566=\"Enroll\",'Enrollment Form'!$AK566<>\"\"),\"Y\",\"N\")))","v":""},{"$f":"IF($B559=\"N\",\"\",IF(OR('Enrollment Form'!$B566<>\"Subscriber\",'Enrollment Form'!$C566=\"ROC\"),\"-\",IF(AND('Enrollment Form'!$B566=\"Subscriber\",'Enrollment Form'!$C566=\"Enroll\",'Enrollment Form'!$AL566<>\"\"),\"Y\",\"N\")))","v":""},{"$f":"IF($B559=\"N\",\"\",IF(OR('Enrollment Form'!$B566<>\"Subscriber\",'Enrollment Form'!$C566=\"ROC\"),\"-\",IF(AND('Enrollment Form'!$B566=\"Subscriber\",'Enrollment Form'!$C566=\"Enroll\",'Enrollment Form'!$AP566<>\"\"),\"Y\",\"N\")))","v":""},{"$f":"IF($B559=\"N\",\"\",IF(OR('Enrollment Form'!$B566<>\"Subscriber\",'Enrollment Form'!$C566=\"ROC\"),\"-\",IF(AND('Enrollment Form'!$B566=\"Subscriber\",'Enrollment Form'!$C566=\"Enroll\",'Enrollment Form'!$AQ566<>\"\"),\"Y\",\"N\")))","v":""},{"$f":"IF($B559=\"N\",\"\",IF(OR('Enrollment Form'!$B566<>\"Subscriber\",'Enrollment Form'!$C566=\"ROC\"),\"-\",IF(AND('Enrollment Form'!$B566=\"Subscriber\",'Enrollment Form'!$C566=\"Enroll\",'Enrollment Form'!$AS566<>\"\"),\"Y\",\"N\")))","v":""},{"$f":"IF($B559=\"N\",\"\",IF($Q559=\"-\",\"-\",IF(AND($Q559=\"Y\",'Enrollment Form'!$AS566=\"No\"),\"-\",IF(AND($Q559=\"Y\",'Enrollment Form'!$AS566=\"Yes\",'Enrollment Form'!$AT566<>\"\"),\"Y\",\"N\"))))","v":""},{"$f":"IF($B559=\"N\",\"\",IF(OR('Enrollment Form'!$B566<>\"Subscriber\",'Enrollment Form'!$C566=\"ROC\"),\"-\",IF(AND('Enrollment Form'!$B566=\"Subscriber\",'Enrollment Form'!$C566=\"Enroll\",'Enrollment Form'!$CV566<>\"\"),\"Y\",\"N\")))","v":""},{"$f":"IF($B559=\"N\",\"\",IF($S559=\"-\",\"-\",IF(AND($S559=\"Y\",'Enrollment Form'!$CV566=\"No\"),\"-\",IF(AND($S559=\"Y\",'Enrollment Form'!$CV566=\"Yes\",'Enrollment Form'!$CW566<>\"\"),\"Y\",\"N\"))))","v":""},{"$f":"IF(OR('Enrollment Form'!$AY566=\"Yes\",'Enrollment Form'!$AY566=\"\"),\"-\",IF(OR(AND('Enrollment Form'!$AY566=\"No\",ISERROR(FIND(\"HMO\",VLOOKUP('Enrollment Form'!G566,'Enrollment Form'!H$11:J$1000,3,FALSE),1))=FALSE,COUNTA('Enrollment Form'!$AZ566:$BC566)=4),AND('Enrollment Form'!$AY566=\"No\",ISERROR(FIND(\"HMO\",VLOOKUP('Enrollment Form'!G566,'Enrollment Form'!H$11:J$1000,3,FALSE),1))=FALSE,COUNTA('Enrollment Form'!$BT566:$BW566)=4)),\"Y\",\"N\"))","v":"-"},{"$f":"IF($B559=\"N\",\"\",IF('Enrollment Form'!$B566=\"Subscriber\",\"-\",IF(COUNTA('Enrollment Form'!$BL566,'Enrollment Form'!$BN566)=2,\"Y\",\"N\")))","v":""},{"$f":"IF($B559=\"N\",\"\",IF(OR('Enrollment Form'!$AX566=\"\",'Enrollment Form'!$AX566=\"No\"),\"-\",IF(AND('Enrollment Form'!$AX566=\"Yes\",COUNTA('Enrollment Form'!$CR566)=1),\"Y\",\"N\")))","v":""},{"$f":"IF(OR('Enrollment Form'!$CR566=\"\",'Enrollment Form'!$CR566=\"No\"),\"-\",IF(COUNTA('Enrollment Form'!$CT566:$CU566)=2,\"Y\",\"N\"))","v":"-"},{"$f":"IF($B559=\"N\",\"\",IF(COUNTIF('Enrollment Form'!$DG566:$DP566,\"Other\")=COUNTA('Enrollment Form'!$DK566,'Enrollment Form'!$DH566,'Enrollment Form'!$DN566,'Enrollment Form'!$DQ566),\"Y\",\"N\"))","v":""},{"$f":"IF($B559=\"N\",\"\",IF(OR('Enrollment Form'!B566<>\"Subscriber\",'Enrollment Form'!C566=\"ROC\",COUNTIF('Enrollment Form'!AV566:AW566,\"Yes\")>=1),\"-\",IF(AND('Enrollment Form'!C566=\"Enroll\",COUNTIF('Enrollment Form'!AV566:AW566,\"No\")=2,'Enrollment Form'!AX566=\"\"),\"N\",\"Y\")))","v":""},{"$f":"IF(OR(B559=\"N\",'Enrollment Form'!B566<>\"Subscriber\",'Enrollment Form'!C566=\"ROC\",'Enrollment Form'!O566<>\"Multiple of Salary\"),\"-\",IF(COUNTA('Enrollment Form'!T566:U566)<2,\"N\",\"Y\"))","v":"-"},{"$f":"IF(B559=\"N\",\"\",IF(OR('Enrollment Form'!C566=\"ROC\",'Enrollment Form'!B566<>\"Subscriber\",'Enrollment Form'!O566=\"Waive\",'Enrollment Form'!O566=\"\"),\"-\",IF('Enrollment Form'!P566=\"\",\"N\",\"Y\")))","v":""},{"$f":"IF($B559=\"N\",\"\",IF(AND('Enrollment Form'!$C566=\"ROC\",'Enrollment Form'!$DR566<>\"\"),\"Y\",IF(AND('Enrollment Form'!$C566=\"ROC\",'Enrollment Form'!$DR566=\"\"),\"N\",IF(AND('Enrollment Form'!$C566=\"Enroll\",'Enrollment Form'!$B566=\"Subscriber\",'Enrollment Form'!$CX566=\"No\",'Enrollment Form'!$DR566=\"\"),\"N\",IF(AND('Enrollment Form'!$C566=\"Enroll\",'Enrollment Form'!$B566=\"Subscriber\",'Enrollment Form'!$CX566=\"Yes\"),\"-\",\"Y\")))))","v":""},{"$f":"IF($B559=\"N\",\"\",IF(AND('Enrollment Form'!$C566=\"ROC\",'Enrollment Form'!$DS566<>\"\"),\"Y\",IF(AND('Enrollment Form'!$C566=\"ROC\",'Enrollment Form'!$DS566=\"\"),\"N\",IF(AND('Enrollment Form'!$C566=\"Enroll\",'Enrollment Form'!$B566=\"Subscriber\",'Enrollment Form'!$CX566=\"No\",'Enrollment Form'!$DS566=\"\"),\"N\",IF(AND('Enrollment Form'!$C566=\"Enroll\",'Enrollment Form'!$B566=\"Subscriber\",'Enrollment Form'!$CX566=\"Yes\"),\"-\",\"Y\")))))","v":""},{"$f":"IF('Enrollment Form'!AH566=\"\",\"\",IF(ISERROR(SEARCH(\".\",'Enrollment Form'!AH566,SEARCH(\"@\",'Enrollment Form'!AH566))),\"N\",\"Y\"))","v":""},{"$f":"IF(OR($B559=\"N\",'Enrollment Form'!$G566=\"\"),\"\",IF('Enrollment Form'!$B566<>\"Subscriber\",\"-\",IF(COUNTIF('Enrollment Form'!$AV566:$AW566,\"Yes\")=2,\"N\",\"Y\")))","v":""},{"$f":"IF(OR('Enrollment Form'!$CJ566=\"\",'Enrollment Form'!$CJ566=\"No\"),\"-\",IF(AND('Enrollment Form'!$CJ566=\"Yes\",'Enrollment Form'!$CK566=\"\"),\"N\",\"Y\"))","v":"-"},{"$f":"IF(OR('Enrollment Form'!$CL566=\"\",'Enrollment Form'!$CL566=\"No\"),\"-\",IF(AND('Enrollment Form'!$CL566=\"Yes\",'Enrollment Form'!$CM566=\"\"),\"N\",\"Y\"))","v":"-"},{"$f":"IF(OR('Enrollment Form'!$CN566=\"\",'Enrollment Form'!$CN566=\"No\"),\"-\",IF(AND('Enrollment Form'!$CN566=\"Yes\",'Enrollment Form'!$CO566=\"\"),\"N\",\"Y\"))","v":"-"},{"$f":"IF(OR('Enrollment Form'!$CN566=\"\",'Enrollment Form'!$CN566=\"No\"),\"-\",IF(AND('Enrollment Form'!$CN566=\"Yes\",'Enrollment Form'!$CP566=\"\"),\"N\",\"Y\"))","v":"-"},{"$f":"IF('Enrollment Form'!B566<>\"Subscriber\",\"-\",IF(AND('Enrollment Form'!B566=\"Subscriber\",'Enrollment Form'!C566=\"Enroll\",'Enrollment Form'!AA566=\"\"),\"N\",\"Y\"))","v":"-"},{"$f":"IF(OR('Enrollment Form'!B566=\"Subscriber\",'Enrollment Form'!B566=\"\"),\"-\",IF('Enrollment Form'!BP566=\"\",\"N\",\"Y\"))","v":"-"},{"$f":"IF('Enrollment Form'!B566<>\"Subscriber\",\"-\",IF(AND('Enrollment Form'!B566=\"Subscriber\",'Enrollment Form'!G566=\"\"),\"N\",\"Y\"))","v":"-"},{"$f":"IF('Enrollment Form'!A566=\"\",\"\",IF('Enrollment Form'!B566=\"Subscriber\",\"-\",IF(AND('Enrollment Form'!B566<>\"Subscriber\",'Enrollment Form'!G566='Enrollment Form'!H566),\"N\",\"Y\")))","v":""},0]
[567,{"$f":"IF('Enrollment Form'!$A567<>\"\",\"Y\",\"N\")","v":"N"},{"$f":"IF(AND('Enrollment Form'!$B567=\"\",'Enrollment Form'!$C567<>\"\"),\"N\",IF($B560=\"N\",\"\",\"Y\"))","v":""},{"$f":"IF(OR($B560=\"N\",'Enrollment Form'!G567=\"\"),\"\",IF('Enrollment Form'!$B567<>\"Subscriber\",\"\",IF('Enrollment Form'!$G567='Enrollment Form'!$H567,\"Y\",\"N\")))","v":""},{"$f":"IF($B560=\"N\",\"\",IF(AND(COUNTIFS('Enrollment Form'!$H$11:$H$1000,'Enrollment Form'!$H567,'Enrollment Form'!$B$11:$B$1000,'Enrollment Form'!$B567)>1,'Enrollment Form'!$H567<>\"\"),\"N\",\"Y\"))","v":""},{"$f":"IF($B560=\"N\",\"\",IF(LEN('Enrollment Form'!$Y567)=0,\"\",IF(LEN('Enrollment Form'!$Y567)<>5,\"N\",\"Y\")))","v":""},{"$f":"IF($B560=\"N\",\"\",IF(LEN('Enrollment Form'!$AD567=0),\"\",IF(LEN('Enrollment Form'!$AD567)<>5,\"N\",\"Y\")))","v":""},{"$f":"IF($B560=\"N\",\"\",IF(LEN('Enrollment Form'!$BS567=0),\"\",IF(LEN('Enrollment Form'!$BS567)<>5,\"N\",\"Y\")))","v":""},{"$f":"IF($B560=\"N\",\"\",IF(LEN('Enrollment Form'!$AE567)=0,\"\",IF(LEN('Enrollment Form'!$AE567)<>10,\"N\",\"Y\")))","v":""},{"$f":"IF($B560=\"N\",\"\",IF(LEN('Enrollment Form'!$AF567)=0,\"\",IF(LEN('Enrollment Form'!$AF567)<>10,\"N\",\"Y\")))","v":""},{"$f":"IF('Enrollment Form'!$O567<>\"Graded\",\"-\",IF(AND('Enrollment Form'!$O567=\"Graded\",'Enrollment Form'!$AR567<>\"\"),\"Y\",\"N\"))","v":"-"},{"$f":"IF($B560=\"N\",\"\",IF(OR('Enrollment Form'!$B567<>\"Subscriber\",'Enrollment Form'!$C567=\"ROC\"),\"-\",IF(AND('Enrollment Form'!$B567=\"Subscriber\",'Enrollment Form'!$C567=\"Enroll\",'Enrollment Form'!$AJ567<>\"\"),\"Y\",\"N\")))","v":""},{"$f":"IF($B560=\"N\",\"\",IF(OR('Enrollment Form'!$B567<>\"Subscriber\",'Enrollment Form'!$C567=\"ROC\"),\"-\",IF(AND('Enrollment Form'!$B567=\"Subscriber\",'Enrollment Form'!$C567=\"Enroll\",'Enrollment Form'!$AK567<>\"\"),\"Y\",\"N\")))","v":""},{"$f":"IF($B560=\"N\",\"\",IF(OR('Enrollment Form'!$B567<>\"Subscriber\",'Enrollment Form'!$C567=\"ROC\"),\"-\",IF(AND('Enrollment Form'!$B567=\"Subscriber\",'Enrollment Form'!$C567=\"Enroll\",'Enrollment Form'!$AL567<>\"\"),\"Y\",\"N\")))","v":""},{"$f":"IF($B560=\"N\",\"\",IF(OR('Enrollment Form'!$B567<>\"Subscriber\",'Enrollment Form'!$C567=\"ROC\"),\"-\",IF(AND('Enrollment Form'!$B567=\"Subscriber\",'Enrollment Form'!$C567=\"Enroll\",'Enrollment Form'!$AP567<>\"\"),\"Y\",\"N\")))","v":""},{"$f":"IF($B560=\"N\",\"\",IF(OR('Enrollment Form'!$B567<>\"Subscriber\",'Enrollment Form'!$C567=\"ROC\"),\"-\",IF(AND('Enrollment Form'!$B567=\"Subscriber\",'Enrollment Form'!$C567=\"Enroll\",'Enrollment Form'!$AQ567<>\"\"),\"Y\",\"N\")))","v":""},{"$f":"IF($B560=\"N\",\"\",IF(OR('Enrollment Form'!$B567<>\"Subscriber\",'Enrollment Form'!$C567=\"ROC\"),\"-\",IF(AND('Enrollment Form'!$B567=\"Subscriber\",'Enrollment Form'!$C567=\"Enroll\",'Enrollment Form'!$AS567<>\"\"),\"Y\",\"N\")))","v":""},{"$f":"IF($B560=\"N\",\"\",IF($Q560=\"-\",\"-\",IF(AND($Q560=\"Y\",'Enrollment Form'!$AS567=\"No\"),\"-\",IF(AND($Q560=\"Y\",'Enrollment Form'!$AS567=\"Yes\",'Enrollment Form'!$AT567<>\"\"),\"Y\",\"N\"))))","v":""},{"$f":"IF($B560=\"N\",\"\",IF(OR('Enrollment Form'!$B567<>\"Subscriber\",'Enrollment Form'!$C567=\"ROC\"),\"-\",IF(AND('Enrollment Form'!$B567=\"Subscriber\",'Enrollment Form'!$C567=\"Enroll\",'Enrollment Form'!$CV567<>\"\"),\"Y\",\"N\")))","v":""},{"$f":"IF($B560=\"N\",\"\",IF($S560=\"-\",\"-\",IF(AND($S560=\"Y\",'Enrollment Form'!$CV567=\"No\"),\"-\",IF(AND($S560=\"Y\",'Enrollment Form'!$CV567=\"Yes\",'Enrollment Form'!$CW567<>\"\"),\"Y\",\"N\"))))","v":""},{"$f":"IF(OR('Enrollment Form'!$AY567=\"Yes\",'Enrollment Form'!$AY567=\"\"),\"-\",IF(OR(AND('Enrollment Form'!$AY567=\"No\",ISERROR(FIND(\"HMO\",VLOOKUP('Enrollment Form'!G567,'Enrollment Form'!H$11:J$1000,3,FALSE),1))=FALSE,COUNTA('Enrollment Form'!$AZ567:$BC567)=4),AND('Enrollment Form'!$AY567=\"No\",ISERROR(FIND(\"HMO\",VLOOKUP('Enrollment Form'!G567,'Enrollment Form'!H$11:J$1000,3,FALSE),1))=FALSE,COUNTA('Enrollment Form'!$BT567:$BW567)=4)),\"Y\",\"N\"))","v":"-"},{"$f":"IF($B560=\"N\",\"\",IF('Enrollment Form'!$B567=\"Subscriber\",\"-\",IF(COUNTA('Enrollment Form'!$BL567,'Enrollment Form'!$BN567)=2,\"Y\",\"N\")))","v":""},{"$f":"IF($B560=\"N\",\"\",IF(OR('Enrollment Form'!$AX567=\"\",'Enrollment Form'!$AX567=\"No\"),\"-\",IF(AND('Enrollment Form'!$AX567=\"Yes\",COUNTA('Enrollment Form'!$CR567)=1),\"Y\",\"N\")))","v":""},{"$f":"IF(OR('Enrollment Form'!$CR567=\"\",'Enrollment Form'!$CR567=\"No\"),\"-\",IF(COUNTA('Enrollment Form'!$CT567:$CU567)=2,\"Y\",\"N\"))","v":"-"},{"$f":"IF($B560=\"N\",\"\",IF(COUNTIF('Enrollment Form'!$DG567:$DP567,\"Other\")=COUNTA('Enrollment Form'!$DK567,'Enrollment Form'!$DH567,'Enrollment Form'!$DN567,'Enrollment Form'!$DQ567),\"Y\",\"N\"))","v":""},{"$f":"IF($B560=\"N\",\"\",IF(OR('Enrollment Form'!B567<>\"Subscriber\",'Enrollment Form'!C567=\"ROC\",COUNTIF('Enrollment Form'!AV567:AW567,\"Yes\")>=1),\"-\",IF(AND('Enrollment Form'!C567=\"Enroll\",COUNTIF('Enrollment Form'!AV567:AW567,\"No\")=2,'Enrollment Form'!AX567=\"\"),\"N\",\"Y\")))","v":""},{"$f":"IF(OR(B560=\"N\",'Enrollment Form'!B567<>\"Subscriber\",'Enrollment Form'!C567=\"ROC\",'Enrollment Form'!O567<>\"Multiple of Salary\"),\"-\",IF(COUNTA('Enrollment Form'!T567:U567)<2,\"N\",\"Y\"))","v":"-"},{"$f":"IF(B560=\"N\",\"\",IF(OR('Enrollment Form'!C567=\"ROC\",'Enrollment Form'!B567<>\"Subscriber\",'Enrollment Form'!O567=\"Waive\",'Enrollment Form'!O567=\"\"),\"-\",IF('Enrollment Form'!P567=\"\",\"N\",\"Y\")))","v":""},{"$f":"IF($B560=\"N\",\"\",IF(AND('Enrollment Form'!$C567=\"ROC\",'Enrollment Form'!$DR567<>\"\"),\"Y\",IF(AND('Enrollment Form'!$C567=\"ROC\",'Enrollment Form'!$DR567=\"\"),\"N\",IF(AND('Enrollment Form'!$C567=\"Enroll\",'Enrollment Form'!$B567=\"Subscriber\",'Enrollment Form'!$CX567=\"No\",'Enrollment Form'!$DR567=\"\"),\"N\",IF(AND('Enrollment Form'!$C567=\"Enroll\",'Enrollment Form'!$B567=\"Subscriber\",'Enrollment Form'!$CX567=\"Yes\"),\"-\",\"Y\")))))","v":""},{"$f":"IF($B560=\"N\",\"\",IF(AND('Enrollment Form'!$C567=\"ROC\",'Enrollment Form'!$DS567<>\"\"),\"Y\",IF(AND('Enrollment Form'!$C567=\"ROC\",'Enrollment Form'!$DS567=\"\"),\"N\",IF(AND('Enrollment Form'!$C567=\"Enroll\",'Enrollment Form'!$B567=\"Subscriber\",'Enrollment Form'!$CX567=\"No\",'Enrollment Form'!$DS567=\"\"),\"N\",IF(AND('Enrollment Form'!$C567=\"Enroll\",'Enrollment Form'!$B567=\"Subscriber\",'Enrollment Form'!$CX567=\"Yes\"),\"-\",\"Y\")))))","v":""},{"$f":"IF('Enrollment Form'!AH567=\"\",\"\",IF(ISERROR(SEARCH(\".\",'Enrollment Form'!AH567,SEARCH(\"@\",'Enrollment Form'!AH567))),\"N\",\"Y\"))","v":""},{"$f":"IF(OR($B560=\"N\",'Enrollment Form'!$G567=\"\"),\"\",IF('Enrollment Form'!$B567<>\"Subscriber\",\"-\",IF(COUNTIF('Enrollment Form'!$AV567:$AW567,\"Yes\")=2,\"N\",\"Y\")))","v":""},{"$f":"IF(OR('Enrollment Form'!$CJ567=\"\",'Enrollment Form'!$CJ567=\"No\"),\"-\",IF(AND('Enrollment Form'!$CJ567=\"Yes\",'Enrollment Form'!$CK567=\"\"),\"N\",\"Y\"))","v":"-"},{"$f":"IF(OR('Enrollment Form'!$CL567=\"\",'Enrollment Form'!$CL567=\"No\"),\"-\",IF(AND('Enrollment Form'!$CL567=\"Yes\",'Enrollment Form'!$CM567=\"\"),\"N\",\"Y\"))","v":"-"},{"$f":"IF(OR('Enrollment Form'!$CN567=\"\",'Enrollment Form'!$CN567=\"No\"),\"-\",IF(AND('Enrollment Form'!$CN567=\"Yes\",'Enrollment Form'!$CO567=\"\"),\"N\",\"Y\"))","v":"-"},{"$f":"IF(OR('Enrollment Form'!$CN567=\"\",'Enrollment Form'!$CN567=\"No\"),\"-\",IF(AND('Enrollment Form'!$CN567=\"Yes\",'Enrollment Form'!$CP567=\"\"),\"N\",\"Y\"))","v":"-"},{"$f":"IF('Enrollment Form'!B567<>\"Subscriber\",\"-\",IF(AND('Enrollment Form'!B567=\"Subscriber\",'Enrollment Form'!C567=\"Enroll\",'Enrollment Form'!AA567=\"\"),\"N\",\"Y\"))","v":"-"},{"$f":"IF(OR('Enrollment Form'!B567=\"Subscriber\",'Enrollment Form'!B567=\"\"),\"-\",IF('Enrollment Form'!BP567=\"\",\"N\",\"Y\"))","v":"-"},{"$f":"IF('Enrollment Form'!B567<>\"Subscriber\",\"-\",IF(AND('Enrollment Form'!B567=\"Subscriber\",'Enrollment Form'!G567=\"\"),\"N\",\"Y\"))","v":"-"},{"$f":"IF('Enrollment Form'!A567=\"\",\"\",IF('Enrollment Form'!B567=\"Subscriber\",\"-\",IF(AND('Enrollment Form'!B567<>\"Subscriber\",'Enrollment Form'!G567='Enrollment Form'!H567),\"N\",\"Y\")))","v":""},0]
[568,{"$f":"IF('Enrollment Form'!$A568<>\"\",\"Y\",\"N\")","v":"N"},{"$f":"IF(AND('Enrollment Form'!$B568=\"\",'Enrollment Form'!$C568<>\"\"),\"N\",IF($B561=\"N\",\"\",\"Y\"))","v":""},{"$f":"IF(OR($B561=\"N\",'Enrollment Form'!G568=\"\"),\"\",IF('Enrollment Form'!$B568<>\"Subscriber\",\"\",IF('Enrollment Form'!$G568='Enrollment Form'!$H568,\"Y\",\"N\")))","v":""},{"$f":"IF($B561=\"N\",\"\",IF(AND(COUNTIFS('Enrollment Form'!$H$11:$H$1000,'Enrollment Form'!$H568,'Enrollment Form'!$B$11:$B$1000,'Enrollment Form'!$B568)>1,'Enrollment Form'!$H568<>\"\"),\"N\",\"Y\"))","v":""},{"$f":"IF($B561=\"N\",\"\",IF(LEN('Enrollment Form'!$Y568)=0,\"\",IF(LEN('Enrollment Form'!$Y568)<>5,\"N\",\"Y\")))","v":""},{"$f":"IF($B561=\"N\",\"\",IF(LEN('Enrollment Form'!$AD568=0),\"\",IF(LEN('Enrollment Form'!$AD568)<>5,\"N\",\"Y\")))","v":""},{"$f":"IF($B561=\"N\",\"\",IF(LEN('Enrollment Form'!$BS568=0),\"\",IF(LEN('Enrollment Form'!$BS568)<>5,\"N\",\"Y\")))","v":""},{"$f":"IF($B561=\"N\",\"\",IF(LEN('Enrollment Form'!$AE568)=0,\"\",IF(LEN('Enrollment Form'!$AE568)<>10,\"N\",\"Y\")))","v":""},{"$f":"IF($B561=\"N\",\"\",IF(LEN('Enrollment Form'!$AF568)=0,\"\",IF(LEN('Enrollment Form'!$AF568)<>10,\"N\",\"Y\")))","v":""},{"$f":"IF('Enrollment Form'!$O568<>\"Graded\",\"-\",IF(AND('Enrollment Form'!$O568=\"Graded\",'Enrollment Form'!$AR568<>\"\"),\"Y\",\"N\"))","v":"-"},{"$f":"IF($B561=\"N\",\"\",IF(OR('Enrollment Form'!$B568<>\"Subscriber\",'Enrollment Form'!$C568=\"ROC\"),\"-\",IF(AND('Enrollment Form'!$B568=\"Subscriber\",'Enrollment Form'!$C568=\"Enroll\",'Enrollment Form'!$AJ568<>\"\"),\"Y\",\"N\")))","v":""},{"$f":"IF($B561=\"N\",\"\",IF(OR('Enrollment Form'!$B568<>\"Subscriber\",'Enrollment Form'!$C568=\"ROC\"),\"-\",IF(AND('Enrollment Form'!$B568=\"Subscriber\",'Enrollment Form'!$C568=\"Enroll\",'Enrollment Form'!$AK568<>\"\"),\"Y\",\"N\")))","v":""},{"$f":"IF($B561=\"N\",\"\",IF(OR('Enrollment Form'!$B568<>\"Subscriber\",'Enrollment Form'!$C568=\"ROC\"),\"-\",IF(AND('Enrollment Form'!$B568=\"Subscriber\",'Enrollment Form'!$C568=\"Enroll\",'Enrollment Form'!$AL568<>\"\"),\"Y\",\"N\")))","v":""},{"$f":"IF($B561=\"N\",\"\",IF(OR('Enrollment Form'!$B568<>\"Subscriber\",'Enrollment Form'!$C568=\"ROC\"),\"-\",IF(AND('Enrollment Form'!$B568=\"Subscriber\",'Enrollment Form'!$C568=\"Enroll\",'Enrollment Form'!$AP568<>\"\"),\"Y\",\"N\")))","v":""},{"$f":"IF($B561=\"N\",\"\",IF(OR('Enrollment Form'!$B568<>\"Subscriber\",'Enrollment Form'!$C568=\"ROC\"),\"-\",IF(AND('Enrollment Form'!$B568=\"Subscriber\",'Enrollment Form'!$C568=\"Enroll\",'Enrollment Form'!$AQ568<>\"\"),\"Y\",\"N\")))","v":""},{"$f":"IF($B561=\"N\",\"\",IF(OR('Enrollment Form'!$B568<>\"Subscriber\",'Enrollment Form'!$C568=\"ROC\"),\"-\",IF(AND('Enrollment Form'!$B568=\"Subscriber\",'Enrollment Form'!$C568=\"Enroll\",'Enrollment Form'!$AS568<>\"\"),\"Y\",\"N\")))","v":""},{"$f":"IF($B561=\"N\",\"\",IF($Q561=\"-\",\"-\",IF(AND($Q561=\"Y\",'Enrollment Form'!$AS568=\"No\"),\"-\",IF(AND($Q561=\"Y\",'Enrollment Form'!$AS568=\"Yes\",'Enrollment Form'!$AT568<>\"\"),\"Y\",\"N\"))))","v":""},{"$f":"IF($B561=\"N\",\"\",IF(OR('Enrollment Form'!$B568<>\"Subscriber\",'Enrollment Form'!$C568=\"ROC\"),\"-\",IF(AND('Enrollment Form'!$B568=\"Subscriber\",'Enrollment Form'!$C568=\"Enroll\",'Enrollment Form'!$CV568<>\"\"),\"Y\",\"N\")))","v":""},{"$f":"IF($B561=\"N\",\"\",IF($S561=\"-\",\"-\",IF(AND($S561=\"Y\",'Enrollment Form'!$CV568=\"No\"),\"-\",IF(AND($S561=\"Y\",'Enrollment Form'!$CV568=\"Yes\",'Enrollment Form'!$CW568<>\"\"),\"Y\",\"N\"))))","v":""},{"$f":"IF(OR('Enrollment Form'!$AY568=\"Yes\",'Enrollment Form'!$AY568=\"\"),\"-\",IF(OR(AND('Enrollment Form'!$AY568=\"No\",ISERROR(FIND(\"HMO\",VLOOKUP('Enrollment Form'!G568,'Enrollment Form'!H$11:J$1000,3,FALSE),1))=FALSE,COUNTA('Enrollment Form'!$AZ568:$BC568)=4),AND('Enrollment Form'!$AY568=\"No\",ISERROR(FIND(\"HMO\",VLOOKUP('Enrollment Form'!G568,'Enrollment Form'!H$11:J$1000,3,FALSE),1))=FALSE,COUNTA('Enrollment Form'!$BT568:$BW568)=4)),\"Y\",\"N\"))","v":"-"},{"$f":"IF($B561=\"N\",\"\",IF('Enrollment Form'!$B568=\"Subscriber\",\"-\",IF(COUNTA('Enrollment Form'!$BL568,'Enrollment Form'!$BN568)=2,\"Y\",\"N\")))","v":""},{"$f":"IF($B561=\"N\",\"\",IF(OR('Enrollment Form'!$AX568=\"\",'Enrollment Form'!$AX568=\"No\"),\"-\",IF(AND('Enrollment Form'!$AX568=\"Yes\",COUNTA('Enrollment Form'!$CR568)=1),\"Y\",\"N\")))","v":""},{"$f":"IF(OR('Enrollment Form'!$CR568=\"\",'Enrollment Form'!$CR568=\"No\"),\"-\",IF(COUNTA('Enrollment Form'!$CT568:$CU568)=2,\"Y\",\"N\"))","v":"-"},{"$f":"IF($B561=\"N\",\"\",IF(COUNTIF('Enrollment Form'!$DG568:$DP568,\"Other\")=COUNTA('Enrollment Form'!$DK568,'Enrollment Form'!$DH568,'Enrollment Form'!$DN568,'Enrollment Form'!$DQ568),\"Y\",\"N\"))","v":""},{"$f":"IF($B561=\"N\",\"\",IF(OR('Enrollment Form'!B568<>\"Subscriber\",'Enrollment Form'!C568=\"ROC\",COUNTIF('Enrollment Form'!AV568:AW568,\"Yes\")>=1),\"-\",IF(AND('Enrollment Form'!C568=\"Enroll\",COUNTIF('Enrollment Form'!AV568:AW568,\"No\")=2,'Enrollment Form'!AX568=\"\"),\"N\",\"Y\")))","v":""},{"$f":"IF(OR(B561=\"N\",'Enrollment Form'!B568<>\"Subscriber\",'Enrollment Form'!C568=\"ROC\",'Enrollment Form'!O568<>\"Multiple of Salary\"),\"-\",IF(COUNTA('Enrollment Form'!T568:U568)<2,\"N\",\"Y\"))","v":"-"},{"$f":"IF(B561=\"N\",\"\",IF(OR('Enrollment Form'!C568=\"ROC\",'Enrollment Form'!B568<>\"Subscriber\",'Enrollment Form'!O568=\"Waive\",'Enrollment Form'!O568=\"\"),\"-\",IF('Enrollment Form'!P568=\"\",\"N\",\"Y\")))","v":""},{"$f":"IF($B561=\"N\",\"\",IF(AND('Enrollment Form'!$C568=\"ROC\",'Enrollment Form'!$DR568<>\"\"),\"Y\",IF(AND('Enrollment Form'!$C568=\"ROC\",'Enrollment Form'!$DR568=\"\"),\"N\",IF(AND('Enrollment Form'!$C568=\"Enroll\",'Enrollment Form'!$B568=\"Subscriber\",'Enrollment Form'!$CX568=\"No\",'Enrollment Form'!$DR568=\"\"),\"N\",IF(AND('Enrollment Form'!$C568=\"Enroll\",'Enrollment Form'!$B568=\"Subscriber\",'Enrollment Form'!$CX568=\"Yes\"),\"-\",\"Y\")))))","v":""},{"$f":"IF($B561=\"N\",\"\",IF(AND('Enrollment Form'!$C568=\"ROC\",'Enrollment Form'!$DS568<>\"\"),\"Y\",IF(AND('Enrollment Form'!$C568=\"ROC\",'Enrollment Form'!$DS568=\"\"),\"N\",IF(AND('Enrollment Form'!$C568=\"Enroll\",'Enrollment Form'!$B568=\"Subscriber\",'Enrollment Form'!$CX568=\"No\",'Enrollment Form'!$DS568=\"\"),\"N\",IF(AND('Enrollment Form'!$C568=\"Enroll\",'Enrollment Form'!$B568=\"Subscriber\",'Enrollment Form'!$CX568=\"Yes\"),\"-\",\"Y\")))))","v":""},{"$f":"IF('Enrollment Form'!AH568=\"\",\"\",IF(ISERROR(SEARCH(\".\",'Enrollment Form'!AH568,SEARCH(\"@\",'Enrollment Form'!AH568))),\"N\",\"Y\"))","v":""},{"$f":"IF(OR($B561=\"N\",'Enrollment Form'!$G568=\"\"),\"\",IF('Enrollment Form'!$B568<>\"Subscriber\",\"-\",IF(COUNTIF('Enrollment Form'!$AV568:$AW568,\"Yes\")=2,\"N\",\"Y\")))","v":""},{"$f":"IF(OR('Enrollment Form'!$CJ568=\"\",'Enrollment Form'!$CJ568=\"No\"),\"-\",IF(AND('Enrollment Form'!$CJ568=\"Yes\",'Enrollment Form'!$CK568=\"\"),\"N\",\"Y\"))","v":"-"},{"$f":"IF(OR('Enrollment Form'!$CL568=\"\",'Enrollment Form'!$CL568=\"No\"),\"-\",IF(AND('Enrollment Form'!$CL568=\"Yes\",'Enrollment Form'!$CM568=\"\"),\"N\",\"Y\"))","v":"-"},{"$f":"IF(OR('Enrollment Form'!$CN568=\"\",'Enrollment Form'!$CN568=\"No\"),\"-\",IF(AND('Enrollment Form'!$CN568=\"Yes\",'Enrollment Form'!$CO568=\"\"),\"N\",\"Y\"))","v":"-"},{"$f":"IF(OR('Enrollment Form'!$CN568=\"\",'Enrollment Form'!$CN568=\"No\"),\"-\",IF(AND('Enrollment Form'!$CN568=\"Yes\",'Enrollment Form'!$CP568=\"\"),\"N\",\"Y\"))","v":"-"},{"$f":"IF('Enrollment Form'!B568<>\"Subscriber\",\"-\",IF(AND('Enrollment Form'!B568=\"Subscriber\",'Enrollment Form'!C568=\"Enroll\",'Enrollment Form'!AA568=\"\"),\"N\",\"Y\"))","v":"-"},{"$f":"IF(OR('Enrollment Form'!B568=\"Subscriber\",'Enrollment Form'!B568=\"\"),\"-\",IF('Enrollment Form'!BP568=\"\",\"N\",\"Y\"))","v":"-"},{"$f":"IF('Enrollment Form'!B568<>\"Subscriber\",\"-\",IF(AND('Enrollment Form'!B568=\"Subscriber\",'Enrollment Form'!G568=\"\"),\"N\",\"Y\"))","v":"-"},{"$f":"IF('Enrollment Form'!A568=\"\",\"\",IF('Enrollment Form'!B568=\"Subscriber\",\"-\",IF(AND('Enrollment Form'!B568<>\"Subscriber\",'Enrollment Form'!G568='Enrollment Form'!H568),\"N\",\"Y\")))","v":""},0]
[569,{"$f":"IF('Enrollment Form'!$A569<>\"\",\"Y\",\"N\")","v":"N"},{"$f":"IF(AND('Enrollment Form'!$B569=\"\",'Enrollment Form'!$C569<>\"\"),\"N\",IF($B562=\"N\",\"\",\"Y\"))","v":""},{"$f":"IF(OR($B562=\"N\",'Enrollment Form'!G569=\"\"),\"\",IF('Enrollment Form'!$B569<>\"Subscriber\",\"\",IF('Enrollment Form'!$G569='Enrollment Form'!$H569,\"Y\",\"N\")))","v":""},{"$f":"IF($B562=\"N\",\"\",IF(AND(COUNTIFS('Enrollment Form'!$H$11:$H$1000,'Enrollment Form'!$H569,'Enrollment Form'!$B$11:$B$1000,'Enrollment Form'!$B569)>1,'Enrollment Form'!$H569<>\"\"),\"N\",\"Y\"))","v":""},{"$f":"IF($B562=\"N\",\"\",IF(LEN('Enrollment Form'!$Y569)=0,\"\",IF(LEN('Enrollment Form'!$Y569)<>5,\"N\",\"Y\")))","v":""},{"$f":"IF($B562=\"N\",\"\",IF(LEN('Enrollment Form'!$AD569=0),\"\",IF(LEN('Enrollment Form'!$AD569)<>5,\"N\",\"Y\")))","v":""},{"$f":"IF($B562=\"N\",\"\",IF(LEN('Enrollment Form'!$BS569=0),\"\",IF(LEN('Enrollment Form'!$BS569)<>5,\"N\",\"Y\")))","v":""},{"$f":"IF($B562=\"N\",\"\",IF(LEN('Enrollment Form'!$AE569)=0,\"\",IF(LEN('Enrollment Form'!$AE569)<>10,\"N\",\"Y\")))","v":""},{"$f":"IF($B562=\"N\",\"\",IF(LEN('Enrollment Form'!$AF569)=0,\"\",IF(LEN('Enrollment Form'!$AF569)<>10,\"N\",\"Y\")))","v":""},{"$f":"IF('Enrollment Form'!$O569<>\"Graded\",\"-\",IF(AND('Enrollment Form'!$O569=\"Graded\",'Enrollment Form'!$AR569<>\"\"),\"Y\",\"N\"))","v":"-"},{"$f":"IF($B562=\"N\",\"\",IF(OR('Enrollment Form'!$B569<>\"Subscriber\",'Enrollment Form'!$C569=\"ROC\"),\"-\",IF(AND('Enrollment Form'!$B569=\"Subscriber\",'Enrollment Form'!$C569=\"Enroll\",'Enrollment Form'!$AJ569<>\"\"),\"Y\",\"N\")))","v":""},{"$f":"IF($B562=\"N\",\"\",IF(OR('Enrollment Form'!$B569<>\"Subscriber\",'Enrollment Form'!$C569=\"ROC\"),\"-\",IF(AND('Enrollment Form'!$B569=\"Subscriber\",'Enrollment Form'!$C569=\"Enroll\",'Enrollment Form'!$AK569<>\"\"),\"Y\",\"N\")))","v":""},{"$f":"IF($B562=\"N\",\"\",IF(OR('Enrollment Form'!$B569<>\"Subscriber\",'Enrollment Form'!$C569=\"ROC\"),\"-\",IF(AND('Enrollment Form'!$B569=\"Subscriber\",'Enrollment Form'!$C569=\"Enroll\",'Enrollment Form'!$AL569<>\"\"),\"Y\",\"N\")))","v":""},{"$f":"IF($B562=\"N\",\"\",IF(OR('Enrollment Form'!$B569<>\"Subscriber\",'Enrollment Form'!$C569=\"ROC\"),\"-\",IF(AND('Enrollment Form'!$B569=\"Subscriber\",'Enrollment Form'!$C569=\"Enroll\",'Enrollment Form'!$AP569<>\"\"),\"Y\",\"N\")))","v":""},{"$f":"IF($B562=\"N\",\"\",IF(OR('Enrollment Form'!$B569<>\"Subscriber\",'Enrollment Form'!$C569=\"ROC\"),\"-\",IF(AND('Enrollment Form'!$B569=\"Subscriber\",'Enrollment Form'!$C569=\"Enroll\",'Enrollment Form'!$AQ569<>\"\"),\"Y\",\"N\")))","v":""},{"$f":"IF($B562=\"N\",\"\",IF(OR('Enrollment Form'!$B569<>\"Subscriber\",'Enrollment Form'!$C569=\"ROC\"),\"-\",IF(AND('Enrollment Form'!$B569=\"Subscriber\",'Enrollment Form'!$C569=\"Enroll\",'Enrollment Form'!$AS569<>\"\"),\"Y\",\"N\")))","v":""},{"$f":"IF($B562=\"N\",\"\",IF($Q562=\"-\",\"-\",IF(AND($Q562=\"Y\",'Enrollment Form'!$AS569=\"No\"),\"-\",IF(AND($Q562=\"Y\",'Enrollment Form'!$AS569=\"Yes\",'Enrollment Form'!$AT569<>\"\"),\"Y\",\"N\"))))","v":""},{"$f":"IF($B562=\"N\",\"\",IF(OR('Enrollment Form'!$B569<>\"Subscriber\",'Enrollment Form'!$C569=\"ROC\"),\"-\",IF(AND('Enrollment Form'!$B569=\"Subscriber\",'Enrollment Form'!$C569=\"Enroll\",'Enrollment Form'!$CV569<>\"\"),\"Y\",\"N\")))","v":""},{"$f":"IF($B562=\"N\",\"\",IF($S562=\"-\",\"-\",IF(AND($S562=\"Y\",'Enrollment Form'!$CV569=\"No\"),\"-\",IF(AND($S562=\"Y\",'Enrollment Form'!$CV569=\"Yes\",'Enrollment Form'!$CW569<>\"\"),\"Y\",\"N\"))))","v":""},{"$f":"IF(OR('Enrollment Form'!$AY569=\"Yes\",'Enrollment Form'!$AY569=\"\"),\"-\",IF(OR(AND('Enrollment Form'!$AY569=\"No\",ISERROR(FIND(\"HMO\",VLOOKUP('Enrollment Form'!G569,'Enrollment Form'!H$11:J$1000,3,FALSE),1))=FALSE,COUNTA('Enrollment Form'!$AZ569:$BC569)=4),AND('Enrollment Form'!$AY569=\"No\",ISERROR(FIND(\"HMO\",VLOOKUP('Enrollment Form'!G569,'Enrollment Form'!H$11:J$1000,3,FALSE),1))=FALSE,COUNTA('Enrollment Form'!$BT569:$BW569)=4)),\"Y\",\"N\"))","v":"-"},{"$f":"IF($B562=\"N\",\"\",IF('Enrollment Form'!$B569=\"Subscriber\",\"-\",IF(COUNTA('Enrollment Form'!$BL569,'Enrollment Form'!$BN569)=2,\"Y\",\"N\")))","v":""},{"$f":"IF($B562=\"N\",\"\",IF(OR('Enrollment Form'!$AX569=\"\",'Enrollment Form'!$AX569=\"No\"),\"-\",IF(AND('Enrollment Form'!$AX569=\"Yes\",COUNTA('Enrollment Form'!$CR569)=1),\"Y\",\"N\")))","v":""},{"$f":"IF(OR('Enrollment Form'!$CR569=\"\",'Enrollment Form'!$CR569=\"No\"),\"-\",IF(COUNTA('Enrollment Form'!$CT569:$CU569)=2,\"Y\",\"N\"))","v":"-"},{"$f":"IF($B562=\"N\",\"\",IF(COUNTIF('Enrollment Form'!$DG569:$DP569,\"Other\")=COUNTA('Enrollment Form'!$DK569,'Enrollment Form'!$DH569,'Enrollment Form'!$DN569,'Enrollment Form'!$DQ569),\"Y\",\"N\"))","v":""},{"$f":"IF($B562=\"N\",\"\",IF(OR('Enrollment Form'!B569<>\"Subscriber\",'Enrollment Form'!C569=\"ROC\",COUNTIF('Enrollment Form'!AV569:AW569,\"Yes\")>=1),\"-\",IF(AND('Enrollment Form'!C569=\"Enroll\",COUNTIF('Enrollment Form'!AV569:AW569,\"No\")=2,'Enrollment Form'!AX569=\"\"),\"N\",\"Y\")))","v":""},{"$f":"IF(OR(B562=\"N\",'Enrollment Form'!B569<>\"Subscriber\",'Enrollment Form'!C569=\"ROC\",'Enrollment Form'!O569<>\"Multiple of Salary\"),\"-\",IF(COUNTA('Enrollment Form'!T569:U569)<2,\"N\",\"Y\"))","v":"-"},{"$f":"IF(B562=\"N\",\"\",IF(OR('Enrollment Form'!C569=\"ROC\",'Enrollment Form'!B569<>\"Subscriber\",'Enrollment Form'!O569=\"Waive\",'Enrollment Form'!O569=\"\"),\"-\",IF('Enrollment Form'!P569=\"\",\"N\",\"Y\")))","v":""},{"$f":"IF($B562=\"N\",\"\",IF(AND('Enrollment Form'!$C569=\"ROC\",'Enrollment Form'!$DR569<>\"\"),\"Y\",IF(AND('Enrollment Form'!$C569=\"ROC\",'Enrollment Form'!$DR569=\"\"),\"N\",IF(AND('Enrollment Form'!$C569=\"Enroll\",'Enrollment Form'!$B569=\"Subscriber\",'Enrollment Form'!$CX569=\"No\",'Enrollment Form'!$DR569=\"\"),\"N\",IF(AND('Enrollment Form'!$C569=\"Enroll\",'Enrollment Form'!$B569=\"Subscriber\",'Enrollment Form'!$CX569=\"Yes\"),\"-\",\"Y\")))))","v":""},{"$f":"IF($B562=\"N\",\"\",IF(AND('Enrollment Form'!$C569=\"ROC\",'Enrollment Form'!$DS569<>\"\"),\"Y\",IF(AND('Enrollment Form'!$C569=\"ROC\",'Enrollment Form'!$DS569=\"\"),\"N\",IF(AND('Enrollment Form'!$C569=\"Enroll\",'Enrollment Form'!$B569=\"Subscriber\",'Enrollment Form'!$CX569=\"No\",'Enrollment Form'!$DS569=\"\"),\"N\",IF(AND('Enrollment Form'!$C569=\"Enroll\",'Enrollment Form'!$B569=\"Subscriber\",'Enrollment Form'!$CX569=\"Yes\"),\"-\",\"Y\")))))","v":""},{"$f":"IF('Enrollment Form'!AH569=\"\",\"\",IF(ISERROR(SEARCH(\".\",'Enrollment Form'!AH569,SEARCH(\"@\",'Enrollment Form'!AH569))),\"N\",\"Y\"))","v":""},{"$f":"IF(OR($B562=\"N\",'Enrollment Form'!$G569=\"\"),\"\",IF('Enrollment Form'!$B569<>\"Subscriber\",\"-\",IF(COUNTIF('Enrollment Form'!$AV569:$AW569,\"Yes\")=2,\"N\",\"Y\")))","v":""},{"$f":"IF(OR('Enrollment Form'!$CJ569=\"\",'Enrollment Form'!$CJ569=\"No\"),\"-\",IF(AND('Enrollment Form'!$CJ569=\"Yes\",'Enrollment Form'!$CK569=\"\"),\"N\",\"Y\"))","v":"-"},{"$f":"IF(OR('Enrollment Form'!$CL569=\"\",'Enrollment Form'!$CL569=\"No\"),\"-\",IF(AND('Enrollment Form'!$CL569=\"Yes\",'Enrollment Form'!$CM569=\"\"),\"N\",\"Y\"))","v":"-"},{"$f":"IF(OR('Enrollment Form'!$CN569=\"\",'Enrollment Form'!$CN569=\"No\"),\"-\",IF(AND('Enrollment Form'!$CN569=\"Yes\",'Enrollment Form'!$CO569=\"\"),\"N\",\"Y\"))","v":"-"},{"$f":"IF(OR('Enrollment Form'!$CN569=\"\",'Enrollment Form'!$CN569=\"No\"),\"-\",IF(AND('Enrollment Form'!$CN569=\"Yes\",'Enrollment Form'!$CP569=\"\"),\"N\",\"Y\"))","v":"-"},{"$f":"IF('Enrollment Form'!B569<>\"Subscriber\",\"-\",IF(AND('Enrollment Form'!B569=\"Subscriber\",'Enrollment Form'!C569=\"Enroll\",'Enrollment Form'!AA569=\"\"),\"N\",\"Y\"))","v":"-"},{"$f":"IF(OR('Enrollment Form'!B569=\"Subscriber\",'Enrollment Form'!B569=\"\"),\"-\",IF('Enrollment Form'!BP569=\"\",\"N\",\"Y\"))","v":"-"},{"$f":"IF('Enrollment Form'!B569<>\"Subscriber\",\"-\",IF(AND('Enrollment Form'!B569=\"Subscriber\",'Enrollment Form'!G569=\"\"),\"N\",\"Y\"))","v":"-"},{"$f":"IF('Enrollment Form'!A569=\"\",\"\",IF('Enrollment Form'!B569=\"Subscriber\",\"-\",IF(AND('Enrollment Form'!B569<>\"Subscriber\",'Enrollment Form'!G569='Enrollment Form'!H569),\"N\",\"Y\")))","v":""},0]
[570,{"$f":"IF('Enrollment Form'!$A570<>\"\",\"Y\",\"N\")","v":"N"},{"$f":"IF(AND('Enrollment Form'!$B570=\"\",'Enrollment Form'!$C570<>\"\"),\"N\",IF($B563=\"N\",\"\",\"Y\"))","v":""},{"$f":"IF(OR($B563=\"N\",'Enrollment Form'!G570=\"\"),\"\",IF('Enrollment Form'!$B570<>\"Subscriber\",\"\",IF('Enrollment Form'!$G570='Enrollment Form'!$H570,\"Y\",\"N\")))","v":""},{"$f":"IF($B563=\"N\",\"\",IF(AND(COUNTIFS('Enrollment Form'!$H$11:$H$1000,'Enrollment Form'!$H570,'Enrollment Form'!$B$11:$B$1000,'Enrollment Form'!$B570)>1,'Enrollment Form'!$H570<>\"\"),\"N\",\"Y\"))","v":""},{"$f":"IF($B563=\"N\",\"\",IF(LEN('Enrollment Form'!$Y570)=0,\"\",IF(LEN('Enrollment Form'!$Y570)<>5,\"N\",\"Y\")))","v":""},{"$f":"IF($B563=\"N\",\"\",IF(LEN('Enrollment Form'!$AD570=0),\"\",IF(LEN('Enrollment Form'!$AD570)<>5,\"N\",\"Y\")))","v":""},{"$f":"IF($B563=\"N\",\"\",IF(LEN('Enrollment Form'!$BS570=0),\"\",IF(LEN('Enrollment Form'!$BS570)<>5,\"N\",\"Y\")))","v":""},{"$f":"IF($B563=\"N\",\"\",IF(LEN('Enrollment Form'!$AE570)=0,\"\",IF(LEN('Enrollment Form'!$AE570)<>10,\"N\",\"Y\")))","v":""},{"$f":"IF($B563=\"N\",\"\",IF(LEN('Enrollment Form'!$AF570)=0,\"\",IF(LEN('Enrollment Form'!$AF570)<>10,\"N\",\"Y\")))","v":""},{"$f":"IF('Enrollment Form'!$O570<>\"Graded\",\"-\",IF(AND('Enrollment Form'!$O570=\"Graded\",'Enrollment Form'!$AR570<>\"\"),\"Y\",\"N\"))","v":"-"},{"$f":"IF($B563=\"N\",\"\",IF(OR('Enrollment Form'!$B570<>\"Subscriber\",'Enrollment Form'!$C570=\"ROC\"),\"-\",IF(AND('Enrollment Form'!$B570=\"Subscriber\",'Enrollment Form'!$C570=\"Enroll\",'Enrollment Form'!$AJ570<>\"\"),\"Y\",\"N\")))","v":""},{"$f":"IF($B563=\"N\",\"\",IF(OR('Enrollment Form'!$B570<>\"Subscriber\",'Enrollment Form'!$C570=\"ROC\"),\"-\",IF(AND('Enrollment Form'!$B570=\"Subscriber\",'Enrollment Form'!$C570=\"Enroll\",'Enrollment Form'!$AK570<>\"\"),\"Y\",\"N\")))","v":""},{"$f":"IF($B563=\"N\",\"\",IF(OR('Enrollment Form'!$B570<>\"Subscriber\",'Enrollment Form'!$C570=\"ROC\"),\"-\",IF(AND('Enrollment Form'!$B570=\"Subscriber\",'Enrollment Form'!$C570=\"Enroll\",'Enrollment Form'!$AL570<>\"\"),\"Y\",\"N\")))","v":""},{"$f":"IF($B563=\"N\",\"\",IF(OR('Enrollment Form'!$B570<>\"Subscriber\",'Enrollment Form'!$C570=\"ROC\"),\"-\",IF(AND('Enrollment Form'!$B570=\"Subscriber\",'Enrollment Form'!$C570=\"Enroll\",'Enrollment Form'!$AP570<>\"\"),\"Y\",\"N\")))","v":""},{"$f":"IF($B563=\"N\",\"\",IF(OR('Enrollment Form'!$B570<>\"Subscriber\",'Enrollment Form'!$C570=\"ROC\"),\"-\",IF(AND('Enrollment Form'!$B570=\"Subscriber\",'Enrollment Form'!$C570=\"Enroll\",'Enrollment Form'!$AQ570<>\"\"),\"Y\",\"N\")))","v":""},{"$f":"IF($B563=\"N\",\"\",IF(OR('Enrollment Form'!$B570<>\"Subscriber\",'Enrollment Form'!$C570=\"ROC\"),\"-\",IF(AND('Enrollment Form'!$B570=\"Subscriber\",'Enrollment Form'!$C570=\"Enroll\",'Enrollment Form'!$AS570<>\"\"),\"Y\",\"N\")))","v":""},{"$f":"IF($B563=\"N\",\"\",IF($Q563=\"-\",\"-\",IF(AND($Q563=\"Y\",'Enrollment Form'!$AS570=\"No\"),\"-\",IF(AND($Q563=\"Y\",'Enrollment Form'!$AS570=\"Yes\",'Enrollment Form'!$AT570<>\"\"),\"Y\",\"N\"))))","v":""},{"$f":"IF($B563=\"N\",\"\",IF(OR('Enrollment Form'!$B570<>\"Subscriber\",'Enrollment Form'!$C570=\"ROC\"),\"-\",IF(AND('Enrollment Form'!$B570=\"Subscriber\",'Enrollment Form'!$C570=\"Enroll\",'Enrollment Form'!$CV570<>\"\"),\"Y\",\"N\")))","v":""},{"$f":"IF($B563=\"N\",\"\",IF($S563=\"-\",\"-\",IF(AND($S563=\"Y\",'Enrollment Form'!$CV570=\"No\"),\"-\",IF(AND($S563=\"Y\",'Enrollment Form'!$CV570=\"Yes\",'Enrollment Form'!$CW570<>\"\"),\"Y\",\"N\"))))","v":""},{"$f":"IF(OR('Enrollment Form'!$AY570=\"Yes\",'Enrollment Form'!$AY570=\"\"),\"-\",IF(OR(AND('Enrollment Form'!$AY570=\"No\",ISERROR(FIND(\"HMO\",VLOOKUP('Enrollment Form'!G570,'Enrollment Form'!H$11:J$1000,3,FALSE),1))=FALSE,COUNTA('Enrollment Form'!$AZ570:$BC570)=4),AND('Enrollment Form'!$AY570=\"No\",ISERROR(FIND(\"HMO\",VLOOKUP('Enrollment Form'!G570,'Enrollment Form'!H$11:J$1000,3,FALSE),1))=FALSE,COUNTA('Enrollment Form'!$BT570:$BW570)=4)),\"Y\",\"N\"))","v":"-"},{"$f":"IF($B563=\"N\",\"\",IF('Enrollment Form'!$B570=\"Subscriber\",\"-\",IF(COUNTA('Enrollment Form'!$BL570,'Enrollment Form'!$BN570)=2,\"Y\",\"N\")))","v":""},{"$f":"IF($B563=\"N\",\"\",IF(OR('Enrollment Form'!$AX570=\"\",'Enrollment Form'!$AX570=\"No\"),\"-\",IF(AND('Enrollment Form'!$AX570=\"Yes\",COUNTA('Enrollment Form'!$CR570)=1),\"Y\",\"N\")))","v":""},{"$f":"IF(OR('Enrollment Form'!$CR570=\"\",'Enrollment Form'!$CR570=\"No\"),\"-\",IF(COUNTA('Enrollment Form'!$CT570:$CU570)=2,\"Y\",\"N\"))","v":"-"},{"$f":"IF($B563=\"N\",\"\",IF(COUNTIF('Enrollment Form'!$DG570:$DP570,\"Other\")=COUNTA('Enrollment Form'!$DK570,'Enrollment Form'!$DH570,'Enrollment Form'!$DN570,'Enrollment Form'!$DQ570),\"Y\",\"N\"))","v":""},{"$f":"IF($B563=\"N\",\"\",IF(OR('Enrollment Form'!B570<>\"Subscriber\",'Enrollment Form'!C570=\"ROC\",COUNTIF('Enrollment Form'!AV570:AW570,\"Yes\")>=1),\"-\",IF(AND('Enrollment Form'!C570=\"Enroll\",COUNTIF('Enrollment Form'!AV570:AW570,\"No\")=2,'Enrollment Form'!AX570=\"\"),\"N\",\"Y\")))","v":""},{"$f":"IF(OR(B563=\"N\",'Enrollment Form'!B570<>\"Subscriber\",'Enrollment Form'!C570=\"ROC\",'Enrollment Form'!O570<>\"Multiple of Salary\"),\"-\",IF(COUNTA('Enrollment Form'!T570:U570)<2,\"N\",\"Y\"))","v":"-"},{"$f":"IF(B563=\"N\",\"\",IF(OR('Enrollment Form'!C570=\"ROC\",'Enrollment Form'!B570<>\"Subscriber\",'Enrollment Form'!O570=\"Waive\",'Enrollment Form'!O570=\"\"),\"-\",IF('Enrollment Form'!P570=\"\",\"N\",\"Y\")))","v":""},{"$f":"IF($B563=\"N\",\"\",IF(AND('Enrollment Form'!$C570=\"ROC\",'Enrollment Form'!$DR570<>\"\"),\"Y\",IF(AND('Enrollment Form'!$C570=\"ROC\",'Enrollment Form'!$DR570=\"\"),\"N\",IF(AND('Enrollment Form'!$C570=\"Enroll\",'Enrollment Form'!$B570=\"Subscriber\",'Enrollment Form'!$CX570=\"No\",'Enrollment Form'!$DR570=\"\"),\"N\",IF(AND('Enrollment Form'!$C570=\"Enroll\",'Enrollment Form'!$B570=\"Subscriber\",'Enrollment Form'!$CX570=\"Yes\"),\"-\",\"Y\")))))","v":""},{"$f":"IF($B563=\"N\",\"\",IF(AND('Enrollment Form'!$C570=\"ROC\",'Enrollment Form'!$DS570<>\"\"),\"Y\",IF(AND('Enrollment Form'!$C570=\"ROC\",'Enrollment Form'!$DS570=\"\"),\"N\",IF(AND('Enrollment Form'!$C570=\"Enroll\",'Enrollment Form'!$B570=\"Subscriber\",'Enrollment Form'!$CX570=\"No\",'Enrollment Form'!$DS570=\"\"),\"N\",IF(AND('Enrollment Form'!$C570=\"Enroll\",'Enrollment Form'!$B570=\"Subscriber\",'Enrollment Form'!$CX570=\"Yes\"),\"-\",\"Y\")))))","v":""},{"$f":"IF('Enrollment Form'!AH570=\"\",\"\",IF(ISERROR(SEARCH(\".\",'Enrollment Form'!AH570,SEARCH(\"@\",'Enrollment Form'!AH570))),\"N\",\"Y\"))","v":""},{"$f":"IF(OR($B563=\"N\",'Enrollment Form'!$G570=\"\"),\"\",IF('Enrollment Form'!$B570<>\"Subscriber\",\"-\",IF(COUNTIF('Enrollment Form'!$AV570:$AW570,\"Yes\")=2,\"N\",\"Y\")))","v":""},{"$f":"IF(OR('Enrollment Form'!$CJ570=\"\",'Enrollment Form'!$CJ570=\"No\"),\"-\",IF(AND('Enrollment Form'!$CJ570=\"Yes\",'Enrollment Form'!$CK570=\"\"),\"N\",\"Y\"))","v":"-"},{"$f":"IF(OR('Enrollment Form'!$CL570=\"\",'Enrollment Form'!$CL570=\"No\"),\"-\",IF(AND('Enrollment Form'!$CL570=\"Yes\",'Enrollment Form'!$CM570=\"\"),\"N\",\"Y\"))","v":"-"},{"$f":"IF(OR('Enrollment Form'!$CN570=\"\",'Enrollment Form'!$CN570=\"No\"),\"-\",IF(AND('Enrollment Form'!$CN570=\"Yes\",'Enrollment Form'!$CO570=\"\"),\"N\",\"Y\"))","v":"-"},{"$f":"IF(OR('Enrollment Form'!$CN570=\"\",'Enrollment Form'!$CN570=\"No\"),\"-\",IF(AND('Enrollment Form'!$CN570=\"Yes\",'Enrollment Form'!$CP570=\"\"),\"N\",\"Y\"))","v":"-"},{"$f":"IF('Enrollment Form'!B570<>\"Subscriber\",\"-\",IF(AND('Enrollment Form'!B570=\"Subscriber\",'Enrollment Form'!C570=\"Enroll\",'Enrollment Form'!AA570=\"\"),\"N\",\"Y\"))","v":"-"},{"$f":"IF(OR('Enrollment Form'!B570=\"Subscriber\",'Enrollment Form'!B570=\"\"),\"-\",IF('Enrollment Form'!BP570=\"\",\"N\",\"Y\"))","v":"-"},{"$f":"IF('Enrollment Form'!B570<>\"Subscriber\",\"-\",IF(AND('Enrollment Form'!B570=\"Subscriber\",'Enrollment Form'!G570=\"\"),\"N\",\"Y\"))","v":"-"},{"$f":"IF('Enrollment Form'!A570=\"\",\"\",IF('Enrollment Form'!B570=\"Subscriber\",\"-\",IF(AND('Enrollment Form'!B570<>\"Subscriber\",'Enrollment Form'!G570='Enrollment Form'!H570),\"N\",\"Y\")))","v":""},0]
[571,{"$f":"IF('Enrollment Form'!$A571<>\"\",\"Y\",\"N\")","v":"N"},{"$f":"IF(AND('Enrollment Form'!$B571=\"\",'Enrollment Form'!$C571<>\"\"),\"N\",IF($B564=\"N\",\"\",\"Y\"))","v":""},{"$f":"IF(OR($B564=\"N\",'Enrollment Form'!G571=\"\"),\"\",IF('Enrollment Form'!$B571<>\"Subscriber\",\"\",IF('Enrollment Form'!$G571='Enrollment Form'!$H571,\"Y\",\"N\")))","v":""},{"$f":"IF($B564=\"N\",\"\",IF(AND(COUNTIFS('Enrollment Form'!$H$11:$H$1000,'Enrollment Form'!$H571,'Enrollment Form'!$B$11:$B$1000,'Enrollment Form'!$B571)>1,'Enrollment Form'!$H571<>\"\"),\"N\",\"Y\"))","v":""},{"$f":"IF($B564=\"N\",\"\",IF(LEN('Enrollment Form'!$Y571)=0,\"\",IF(LEN('Enrollment Form'!$Y571)<>5,\"N\",\"Y\")))","v":""},{"$f":"IF($B564=\"N\",\"\",IF(LEN('Enrollment Form'!$AD571=0),\"\",IF(LEN('Enrollment Form'!$AD571)<>5,\"N\",\"Y\")))","v":""},{"$f":"IF($B564=\"N\",\"\",IF(LEN('Enrollment Form'!$BS571=0),\"\",IF(LEN('Enrollment Form'!$BS571)<>5,\"N\",\"Y\")))","v":""},{"$f":"IF($B564=\"N\",\"\",IF(LEN('Enrollment Form'!$AE571)=0,\"\",IF(LEN('Enrollment Form'!$AE571)<>10,\"N\",\"Y\")))","v":""},{"$f":"IF($B564=\"N\",\"\",IF(LEN('Enrollment Form'!$AF571)=0,\"\",IF(LEN('Enrollment Form'!$AF571)<>10,\"N\",\"Y\")))","v":""},{"$f":"IF('Enrollment Form'!$O571<>\"Graded\",\"-\",IF(AND('Enrollment Form'!$O571=\"Graded\",'Enrollment Form'!$AR571<>\"\"),\"Y\",\"N\"))","v":"-"},{"$f":"IF($B564=\"N\",\"\",IF(OR('Enrollment Form'!$B571<>\"Subscriber\",'Enrollment Form'!$C571=\"ROC\"),\"-\",IF(AND('Enrollment Form'!$B571=\"Subscriber\",'Enrollment Form'!$C571=\"Enroll\",'Enrollment Form'!$AJ571<>\"\"),\"Y\",\"N\")))","v":""},{"$f":"IF($B564=\"N\",\"\",IF(OR('Enrollment Form'!$B571<>\"Subscriber\",'Enrollment Form'!$C571=\"ROC\"),\"-\",IF(AND('Enrollment Form'!$B571=\"Subscriber\",'Enrollment Form'!$C571=\"Enroll\",'Enrollment Form'!$AK571<>\"\"),\"Y\",\"N\")))","v":""},{"$f":"IF($B564=\"N\",\"\",IF(OR('Enrollment Form'!$B571<>\"Subscriber\",'Enrollment Form'!$C571=\"ROC\"),\"-\",IF(AND('Enrollment Form'!$B571=\"Subscriber\",'Enrollment Form'!$C571=\"Enroll\",'Enrollment Form'!$AL571<>\"\"),\"Y\",\"N\")))","v":""},{"$f":"IF($B564=\"N\",\"\",IF(OR('Enrollment Form'!$B571<>\"Subscriber\",'Enrollment Form'!$C571=\"ROC\"),\"-\",IF(AND('Enrollment Form'!$B571=\"Subscriber\",'Enrollment Form'!$C571=\"Enroll\",'Enrollment Form'!$AP571<>\"\"),\"Y\",\"N\")))","v":""},{"$f":"IF($B564=\"N\",\"\",IF(OR('Enrollment Form'!$B571<>\"Subscriber\",'Enrollment Form'!$C571=\"ROC\"),\"-\",IF(AND('Enrollment Form'!$B571=\"Subscriber\",'Enrollment Form'!$C571=\"Enroll\",'Enrollment Form'!$AQ571<>\"\"),\"Y\",\"N\")))","v":""},{"$f":"IF($B564=\"N\",\"\",IF(OR('Enrollment Form'!$B571<>\"Subscriber\",'Enrollment Form'!$C571=\"ROC\"),\"-\",IF(AND('Enrollment Form'!$B571=\"Subscriber\",'Enrollment Form'!$C571=\"Enroll\",'Enrollment Form'!$AS571<>\"\"),\"Y\",\"N\")))","v":""},{"$f":"IF($B564=\"N\",\"\",IF($Q564=\"-\",\"-\",IF(AND($Q564=\"Y\",'Enrollment Form'!$AS571=\"No\"),\"-\",IF(AND($Q564=\"Y\",'Enrollment Form'!$AS571=\"Yes\",'Enrollment Form'!$AT571<>\"\"),\"Y\",\"N\"))))","v":""},{"$f":"IF($B564=\"N\",\"\",IF(OR('Enrollment Form'!$B571<>\"Subscriber\",'Enrollment Form'!$C571=\"ROC\"),\"-\",IF(AND('Enrollment Form'!$B571=\"Subscriber\",'Enrollment Form'!$C571=\"Enroll\",'Enrollment Form'!$CV571<>\"\"),\"Y\",\"N\")))","v":""},{"$f":"IF($B564=\"N\",\"\",IF($S564=\"-\",\"-\",IF(AND($S564=\"Y\",'Enrollment Form'!$CV571=\"No\"),\"-\",IF(AND($S564=\"Y\",'Enrollment Form'!$CV571=\"Yes\",'Enrollment Form'!$CW571<>\"\"),\"Y\",\"N\"))))","v":""},{"$f":"IF(OR('Enrollment Form'!$AY571=\"Yes\",'Enrollment Form'!$AY571=\"\"),\"-\",IF(OR(AND('Enrollment Form'!$AY571=\"No\",ISERROR(FIND(\"HMO\",VLOOKUP('Enrollment Form'!G571,'Enrollment Form'!H$11:J$1000,3,FALSE),1))=FALSE,COUNTA('Enrollment Form'!$AZ571:$BC571)=4),AND('Enrollment Form'!$AY571=\"No\",ISERROR(FIND(\"HMO\",VLOOKUP('Enrollment Form'!G571,'Enrollment Form'!H$11:J$1000,3,FALSE),1))=FALSE,COUNTA('Enrollment Form'!$BT571:$BW571)=4)),\"Y\",\"N\"))","v":"-"},{"$f":"IF($B564=\"N\",\"\",IF('Enrollment Form'!$B571=\"Subscriber\",\"-\",IF(COUNTA('Enrollment Form'!$BL571,'Enrollment Form'!$BN571)=2,\"Y\",\"N\")))","v":""},{"$f":"IF($B564=\"N\",\"\",IF(OR('Enrollment Form'!$AX571=\"\",'Enrollment Form'!$AX571=\"No\"),\"-\",IF(AND('Enrollment Form'!$AX571=\"Yes\",COUNTA('Enrollment Form'!$CR571)=1),\"Y\",\"N\")))","v":""},{"$f":"IF(OR('Enrollment Form'!$CR571=\"\",'Enrollment Form'!$CR571=\"No\"),\"-\",IF(COUNTA('Enrollment Form'!$CT571:$CU571)=2,\"Y\",\"N\"))","v":"-"},{"$f":"IF($B564=\"N\",\"\",IF(COUNTIF('Enrollment Form'!$DG571:$DP571,\"Other\")=COUNTA('Enrollment Form'!$DK571,'Enrollment Form'!$DH571,'Enrollment Form'!$DN571,'Enrollment Form'!$DQ571),\"Y\",\"N\"))","v":""},{"$f":"IF($B564=\"N\",\"\",IF(OR('Enrollment Form'!B571<>\"Subscriber\",'Enrollment Form'!C571=\"ROC\",COUNTIF('Enrollment Form'!AV571:AW571,\"Yes\")>=1),\"-\",IF(AND('Enrollment Form'!C571=\"Enroll\",COUNTIF('Enrollment Form'!AV571:AW571,\"No\")=2,'Enrollment Form'!AX571=\"\"),\"N\",\"Y\")))","v":""},{"$f":"IF(OR(B564=\"N\",'Enrollment Form'!B571<>\"Subscriber\",'Enrollment Form'!C571=\"ROC\",'Enrollment Form'!O571<>\"Multiple of Salary\"),\"-\",IF(COUNTA('Enrollment Form'!T571:U571)<2,\"N\",\"Y\"))","v":"-"},{"$f":"IF(B564=\"N\",\"\",IF(OR('Enrollment Form'!C571=\"ROC\",'Enrollment Form'!B571<>\"Subscriber\",'Enrollment Form'!O571=\"Waive\",'Enrollment Form'!O571=\"\"),\"-\",IF('Enrollment Form'!P571=\"\",\"N\",\"Y\")))","v":""},{"$f":"IF($B564=\"N\",\"\",IF(AND('Enrollment Form'!$C571=\"ROC\",'Enrollment Form'!$DR571<>\"\"),\"Y\",IF(AND('Enrollment Form'!$C571=\"ROC\",'Enrollment Form'!$DR571=\"\"),\"N\",IF(AND('Enrollment Form'!$C571=\"Enroll\",'Enrollment Form'!$B571=\"Subscriber\",'Enrollment Form'!$CX571=\"No\",'Enrollment Form'!$DR571=\"\"),\"N\",IF(AND('Enrollment Form'!$C571=\"Enroll\",'Enrollment Form'!$B571=\"Subscriber\",'Enrollment Form'!$CX571=\"Yes\"),\"-\",\"Y\")))))","v":""},{"$f":"IF($B564=\"N\",\"\",IF(AND('Enrollment Form'!$C571=\"ROC\",'Enrollment Form'!$DS571<>\"\"),\"Y\",IF(AND('Enrollment Form'!$C571=\"ROC\",'Enrollment Form'!$DS571=\"\"),\"N\",IF(AND('Enrollment Form'!$C571=\"Enroll\",'Enrollment Form'!$B571=\"Subscriber\",'Enrollment Form'!$CX571=\"No\",'Enrollment Form'!$DS571=\"\"),\"N\",IF(AND('Enrollment Form'!$C571=\"Enroll\",'Enrollment Form'!$B571=\"Subscriber\",'Enrollment Form'!$CX571=\"Yes\"),\"-\",\"Y\")))))","v":""},{"$f":"IF('Enrollment Form'!AH571=\"\",\"\",IF(ISERROR(SEARCH(\".\",'Enrollment Form'!AH571,SEARCH(\"@\",'Enrollment Form'!AH571))),\"N\",\"Y\"))","v":""},{"$f":"IF(OR($B564=\"N\",'Enrollment Form'!$G571=\"\"),\"\",IF('Enrollment Form'!$B571<>\"Subscriber\",\"-\",IF(COUNTIF('Enrollment Form'!$AV571:$AW571,\"Yes\")=2,\"N\",\"Y\")))","v":""},{"$f":"IF(OR('Enrollment Form'!$CJ571=\"\",'Enrollment Form'!$CJ571=\"No\"),\"-\",IF(AND('Enrollment Form'!$CJ571=\"Yes\",'Enrollment Form'!$CK571=\"\"),\"N\",\"Y\"))","v":"-"},{"$f":"IF(OR('Enrollment Form'!$CL571=\"\",'Enrollment Form'!$CL571=\"No\"),\"-\",IF(AND('Enrollment Form'!$CL571=\"Yes\",'Enrollment Form'!$CM571=\"\"),\"N\",\"Y\"))","v":"-"},{"$f":"IF(OR('Enrollment Form'!$CN571=\"\",'Enrollment Form'!$CN571=\"No\"),\"-\",IF(AND('Enrollment Form'!$CN571=\"Yes\",'Enrollment Form'!$CO571=\"\"),\"N\",\"Y\"))","v":"-"},{"$f":"IF(OR('Enrollment Form'!$CN571=\"\",'Enrollment Form'!$CN571=\"No\"),\"-\",IF(AND('Enrollment Form'!$CN571=\"Yes\",'Enrollment Form'!$CP571=\"\"),\"N\",\"Y\"))","v":"-"},{"$f":"IF('Enrollment Form'!B571<>\"Subscriber\",\"-\",IF(AND('Enrollment Form'!B571=\"Subscriber\",'Enrollment Form'!C571=\"Enroll\",'Enrollment Form'!AA571=\"\"),\"N\",\"Y\"))","v":"-"},{"$f":"IF(OR('Enrollment Form'!B571=\"Subscriber\",'Enrollment Form'!B571=\"\"),\"-\",IF('Enrollment Form'!BP571=\"\",\"N\",\"Y\"))","v":"-"},{"$f":"IF('Enrollment Form'!B571<>\"Subscriber\",\"-\",IF(AND('Enrollment Form'!B571=\"Subscriber\",'Enrollment Form'!G571=\"\"),\"N\",\"Y\"))","v":"-"},{"$f":"IF('Enrollment Form'!A571=\"\",\"\",IF('Enrollment Form'!B571=\"Subscriber\",\"-\",IF(AND('Enrollment Form'!B571<>\"Subscriber\",'Enrollment Form'!G571='Enrollment Form'!H571),\"N\",\"Y\")))","v":""},0]
[572,{"$f":"IF('Enrollment Form'!$A572<>\"\",\"Y\",\"N\")","v":"N"},{"$f":"IF(AND('Enrollment Form'!$B572=\"\",'Enrollment Form'!$C572<>\"\"),\"N\",IF($B565=\"N\",\"\",\"Y\"))","v":""},{"$f":"IF(OR($B565=\"N\",'Enrollment Form'!G572=\"\"),\"\",IF('Enrollment Form'!$B572<>\"Subscriber\",\"\",IF('Enrollment Form'!$G572='Enrollment Form'!$H572,\"Y\",\"N\")))","v":""},{"$f":"IF($B565=\"N\",\"\",IF(AND(COUNTIFS('Enrollment Form'!$H$11:$H$1000,'Enrollment Form'!$H572,'Enrollment Form'!$B$11:$B$1000,'Enrollment Form'!$B572)>1,'Enrollment Form'!$H572<>\"\"),\"N\",\"Y\"))","v":""},{"$f":"IF($B565=\"N\",\"\",IF(LEN('Enrollment Form'!$Y572)=0,\"\",IF(LEN('Enrollment Form'!$Y572)<>5,\"N\",\"Y\")))","v":""},{"$f":"IF($B565=\"N\",\"\",IF(LEN('Enrollment Form'!$AD572=0),\"\",IF(LEN('Enrollment Form'!$AD572)<>5,\"N\",\"Y\")))","v":""},{"$f":"IF($B565=\"N\",\"\",IF(LEN('Enrollment Form'!$BS572=0),\"\",IF(LEN('Enrollment Form'!$BS572)<>5,\"N\",\"Y\")))","v":""},{"$f":"IF($B565=\"N\",\"\",IF(LEN('Enrollment Form'!$AE572)=0,\"\",IF(LEN('Enrollment Form'!$AE572)<>10,\"N\",\"Y\")))","v":""},{"$f":"IF($B565=\"N\",\"\",IF(LEN('Enrollment Form'!$AF572)=0,\"\",IF(LEN('Enrollment Form'!$AF572)<>10,\"N\",\"Y\")))","v":""},{"$f":"IF('Enrollment Form'!$O572<>\"Graded\",\"-\",IF(AND('Enrollment Form'!$O572=\"Graded\",'Enrollment Form'!$AR572<>\"\"),\"Y\",\"N\"))","v":"-"},{"$f":"IF($B565=\"N\",\"\",IF(OR('Enrollment Form'!$B572<>\"Subscriber\",'Enrollment Form'!$C572=\"ROC\"),\"-\",IF(AND('Enrollment Form'!$B572=\"Subscriber\",'Enrollment Form'!$C572=\"Enroll\",'Enrollment Form'!$AJ572<>\"\"),\"Y\",\"N\")))","v":""},{"$f":"IF($B565=\"N\",\"\",IF(OR('Enrollment Form'!$B572<>\"Subscriber\",'Enrollment Form'!$C572=\"ROC\"),\"-\",IF(AND('Enrollment Form'!$B572=\"Subscriber\",'Enrollment Form'!$C572=\"Enroll\",'Enrollment Form'!$AK572<>\"\"),\"Y\",\"N\")))","v":""},{"$f":"IF($B565=\"N\",\"\",IF(OR('Enrollment Form'!$B572<>\"Subscriber\",'Enrollment Form'!$C572=\"ROC\"),\"-\",IF(AND('Enrollment Form'!$B572=\"Subscriber\",'Enrollment Form'!$C572=\"Enroll\",'Enrollment Form'!$AL572<>\"\"),\"Y\",\"N\")))","v":""},{"$f":"IF($B565=\"N\",\"\",IF(OR('Enrollment Form'!$B572<>\"Subscriber\",'Enrollment Form'!$C572=\"ROC\"),\"-\",IF(AND('Enrollment Form'!$B572=\"Subscriber\",'Enrollment Form'!$C572=\"Enroll\",'Enrollment Form'!$AP572<>\"\"),\"Y\",\"N\")))","v":""},{"$f":"IF($B565=\"N\",\"\",IF(OR('Enrollment Form'!$B572<>\"Subscriber\",'Enrollment Form'!$C572=\"ROC\"),\"-\",IF(AND('Enrollment Form'!$B572=\"Subscriber\",'Enrollment Form'!$C572=\"Enroll\",'Enrollment Form'!$AQ572<>\"\"),\"Y\",\"N\")))","v":""},{"$f":"IF($B565=\"N\",\"\",IF(OR('Enrollment Form'!$B572<>\"Subscriber\",'Enrollment Form'!$C572=\"ROC\"),\"-\",IF(AND('Enrollment Form'!$B572=\"Subscriber\",'Enrollment Form'!$C572=\"Enroll\",'Enrollment Form'!$AS572<>\"\"),\"Y\",\"N\")))","v":""},{"$f":"IF($B565=\"N\",\"\",IF($Q565=\"-\",\"-\",IF(AND($Q565=\"Y\",'Enrollment Form'!$AS572=\"No\"),\"-\",IF(AND($Q565=\"Y\",'Enrollment Form'!$AS572=\"Yes\",'Enrollment Form'!$AT572<>\"\"),\"Y\",\"N\"))))","v":""},{"$f":"IF($B565=\"N\",\"\",IF(OR('Enrollment Form'!$B572<>\"Subscriber\",'Enrollment Form'!$C572=\"ROC\"),\"-\",IF(AND('Enrollment Form'!$B572=\"Subscriber\",'Enrollment Form'!$C572=\"Enroll\",'Enrollment Form'!$CV572<>\"\"),\"Y\",\"N\")))","v":""},{"$f":"IF($B565=\"N\",\"\",IF($S565=\"-\",\"-\",IF(AND($S565=\"Y\",'Enrollment Form'!$CV572=\"No\"),\"-\",IF(AND($S565=\"Y\",'Enrollment Form'!$CV572=\"Yes\",'Enrollment Form'!$CW572<>\"\"),\"Y\",\"N\"))))","v":""},{"$f":"IF(OR('Enrollment Form'!$AY572=\"Yes\",'Enrollment Form'!$AY572=\"\"),\"-\",IF(OR(AND('Enrollment Form'!$AY572=\"No\",ISERROR(FIND(\"HMO\",VLOOKUP('Enrollment Form'!G572,'Enrollment Form'!H$11:J$1000,3,FALSE),1))=FALSE,COUNTA('Enrollment Form'!$AZ572:$BC572)=4),AND('Enrollment Form'!$AY572=\"No\",ISERROR(FIND(\"HMO\",VLOOKUP('Enrollment Form'!G572,'Enrollment Form'!H$11:J$1000,3,FALSE),1))=FALSE,COUNTA('Enrollment Form'!$BT572:$BW572)=4)),\"Y\",\"N\"))","v":"-"},{"$f":"IF($B565=\"N\",\"\",IF('Enrollment Form'!$B572=\"Subscriber\",\"-\",IF(COUNTA('Enrollment Form'!$BL572,'Enrollment Form'!$BN572)=2,\"Y\",\"N\")))","v":""},{"$f":"IF($B565=\"N\",\"\",IF(OR('Enrollment Form'!$AX572=\"\",'Enrollment Form'!$AX572=\"No\"),\"-\",IF(AND('Enrollment Form'!$AX572=\"Yes\",COUNTA('Enrollment Form'!$CR572)=1),\"Y\",\"N\")))","v":""},{"$f":"IF(OR('Enrollment Form'!$CR572=\"\",'Enrollment Form'!$CR572=\"No\"),\"-\",IF(COUNTA('Enrollment Form'!$CT572:$CU572)=2,\"Y\",\"N\"))","v":"-"},{"$f":"IF($B565=\"N\",\"\",IF(COUNTIF('Enrollment Form'!$DG572:$DP572,\"Other\")=COUNTA('Enrollment Form'!$DK572,'Enrollment Form'!$DH572,'Enrollment Form'!$DN572,'Enrollment Form'!$DQ572),\"Y\",\"N\"))","v":""},{"$f":"IF($B565=\"N\",\"\",IF(OR('Enrollment Form'!B572<>\"Subscriber\",'Enrollment Form'!C572=\"ROC\",COUNTIF('Enrollment Form'!AV572:AW572,\"Yes\")>=1),\"-\",IF(AND('Enrollment Form'!C572=\"Enroll\",COUNTIF('Enrollment Form'!AV572:AW572,\"No\")=2,'Enrollment Form'!AX572=\"\"),\"N\",\"Y\")))","v":""},{"$f":"IF(OR(B565=\"N\",'Enrollment Form'!B572<>\"Subscriber\",'Enrollment Form'!C572=\"ROC\",'Enrollment Form'!O572<>\"Multiple of Salary\"),\"-\",IF(COUNTA('Enrollment Form'!T572:U572)<2,\"N\",\"Y\"))","v":"-"},{"$f":"IF(B565=\"N\",\"\",IF(OR('Enrollment Form'!C572=\"ROC\",'Enrollment Form'!B572<>\"Subscriber\",'Enrollment Form'!O572=\"Waive\",'Enrollment Form'!O572=\"\"),\"-\",IF('Enrollment Form'!P572=\"\",\"N\",\"Y\")))","v":""},{"$f":"IF($B565=\"N\",\"\",IF(AND('Enrollment Form'!$C572=\"ROC\",'Enrollment Form'!$DR572<>\"\"),\"Y\",IF(AND('Enrollment Form'!$C572=\"ROC\",'Enrollment Form'!$DR572=\"\"),\"N\",IF(AND('Enrollment Form'!$C572=\"Enroll\",'Enrollment Form'!$B572=\"Subscriber\",'Enrollment Form'!$CX572=\"No\",'Enrollment Form'!$DR572=\"\"),\"N\",IF(AND('Enrollment Form'!$C572=\"Enroll\",'Enrollment Form'!$B572=\"Subscriber\",'Enrollment Form'!$CX572=\"Yes\"),\"-\",\"Y\")))))","v":""},{"$f":"IF($B565=\"N\",\"\",IF(AND('Enrollment Form'!$C572=\"ROC\",'Enrollment Form'!$DS572<>\"\"),\"Y\",IF(AND('Enrollment Form'!$C572=\"ROC\",'Enrollment Form'!$DS572=\"\"),\"N\",IF(AND('Enrollment Form'!$C572=\"Enroll\",'Enrollment Form'!$B572=\"Subscriber\",'Enrollment Form'!$CX572=\"No\",'Enrollment Form'!$DS572=\"\"),\"N\",IF(AND('Enrollment Form'!$C572=\"Enroll\",'Enrollment Form'!$B572=\"Subscriber\",'Enrollment Form'!$CX572=\"Yes\"),\"-\",\"Y\")))))","v":""},{"$f":"IF('Enrollment Form'!AH572=\"\",\"\",IF(ISERROR(SEARCH(\".\",'Enrollment Form'!AH572,SEARCH(\"@\",'Enrollment Form'!AH572))),\"N\",\"Y\"))","v":""},{"$f":"IF(OR($B565=\"N\",'Enrollment Form'!$G572=\"\"),\"\",IF('Enrollment Form'!$B572<>\"Subscriber\",\"-\",IF(COUNTIF('Enrollment Form'!$AV572:$AW572,\"Yes\")=2,\"N\",\"Y\")))","v":""},{"$f":"IF(OR('Enrollment Form'!$CJ572=\"\",'Enrollment Form'!$CJ572=\"No\"),\"-\",IF(AND('Enrollment Form'!$CJ572=\"Yes\",'Enrollment Form'!$CK572=\"\"),\"N\",\"Y\"))","v":"-"},{"$f":"IF(OR('Enrollment Form'!$CL572=\"\",'Enrollment Form'!$CL572=\"No\"),\"-\",IF(AND('Enrollment Form'!$CL572=\"Yes\",'Enrollment Form'!$CM572=\"\"),\"N\",\"Y\"))","v":"-"},{"$f":"IF(OR('Enrollment Form'!$CN572=\"\",'Enrollment Form'!$CN572=\"No\"),\"-\",IF(AND('Enrollment Form'!$CN572=\"Yes\",'Enrollment Form'!$CO572=\"\"),\"N\",\"Y\"))","v":"-"},{"$f":"IF(OR('Enrollment Form'!$CN572=\"\",'Enrollment Form'!$CN572=\"No\"),\"-\",IF(AND('Enrollment Form'!$CN572=\"Yes\",'Enrollment Form'!$CP572=\"\"),\"N\",\"Y\"))","v":"-"},{"$f":"IF('Enrollment Form'!B572<>\"Subscriber\",\"-\",IF(AND('Enrollment Form'!B572=\"Subscriber\",'Enrollment Form'!C572=\"Enroll\",'Enrollment Form'!AA572=\"\"),\"N\",\"Y\"))","v":"-"},{"$f":"IF(OR('Enrollment Form'!B572=\"Subscriber\",'Enrollment Form'!B572=\"\"),\"-\",IF('Enrollment Form'!BP572=\"\",\"N\",\"Y\"))","v":"-"},{"$f":"IF('Enrollment Form'!B572<>\"Subscriber\",\"-\",IF(AND('Enrollment Form'!B572=\"Subscriber\",'Enrollment Form'!G572=\"\"),\"N\",\"Y\"))","v":"-"},{"$f":"IF('Enrollment Form'!A572=\"\",\"\",IF('Enrollment Form'!B572=\"Subscriber\",\"-\",IF(AND('Enrollment Form'!B572<>\"Subscriber\",'Enrollment Form'!G572='Enrollment Form'!H572),\"N\",\"Y\")))","v":""},0]
[573,{"$f":"IF('Enrollment Form'!$A573<>\"\",\"Y\",\"N\")","v":"N"},{"$f":"IF(AND('Enrollment Form'!$B573=\"\",'Enrollment Form'!$C573<>\"\"),\"N\",IF($B566=\"N\",\"\",\"Y\"))","v":""},{"$f":"IF(OR($B566=\"N\",'Enrollment Form'!G573=\"\"),\"\",IF('Enrollment Form'!$B573<>\"Subscriber\",\"\",IF('Enrollment Form'!$G573='Enrollment Form'!$H573,\"Y\",\"N\")))","v":""},{"$f":"IF($B566=\"N\",\"\",IF(AND(COUNTIFS('Enrollment Form'!$H$11:$H$1000,'Enrollment Form'!$H573,'Enrollment Form'!$B$11:$B$1000,'Enrollment Form'!$B573)>1,'Enrollment Form'!$H573<>\"\"),\"N\",\"Y\"))","v":""},{"$f":"IF($B566=\"N\",\"\",IF(LEN('Enrollment Form'!$Y573)=0,\"\",IF(LEN('Enrollment Form'!$Y573)<>5,\"N\",\"Y\")))","v":""},{"$f":"IF($B566=\"N\",\"\",IF(LEN('Enrollment Form'!$AD573=0),\"\",IF(LEN('Enrollment Form'!$AD573)<>5,\"N\",\"Y\")))","v":""},{"$f":"IF($B566=\"N\",\"\",IF(LEN('Enrollment Form'!$BS573=0),\"\",IF(LEN('Enrollment Form'!$BS573)<>5,\"N\",\"Y\")))","v":""},{"$f":"IF($B566=\"N\",\"\",IF(LEN('Enrollment Form'!$AE573)=0,\"\",IF(LEN('Enrollment Form'!$AE573)<>10,\"N\",\"Y\")))","v":""},{"$f":"IF($B566=\"N\",\"\",IF(LEN('Enrollment Form'!$AF573)=0,\"\",IF(LEN('Enrollment Form'!$AF573)<>10,\"N\",\"Y\")))","v":""},{"$f":"IF('Enrollment Form'!$O573<>\"Graded\",\"-\",IF(AND('Enrollment Form'!$O573=\"Graded\",'Enrollment Form'!$AR573<>\"\"),\"Y\",\"N\"))","v":"-"},{"$f":"IF($B566=\"N\",\"\",IF(OR('Enrollment Form'!$B573<>\"Subscriber\",'Enrollment Form'!$C573=\"ROC\"),\"-\",IF(AND('Enrollment Form'!$B573=\"Subscriber\",'Enrollment Form'!$C573=\"Enroll\",'Enrollment Form'!$AJ573<>\"\"),\"Y\",\"N\")))","v":""},{"$f":"IF($B566=\"N\",\"\",IF(OR('Enrollment Form'!$B573<>\"Subscriber\",'Enrollment Form'!$C573=\"ROC\"),\"-\",IF(AND('Enrollment Form'!$B573=\"Subscriber\",'Enrollment Form'!$C573=\"Enroll\",'Enrollment Form'!$AK573<>\"\"),\"Y\",\"N\")))","v":""},{"$f":"IF($B566=\"N\",\"\",IF(OR('Enrollment Form'!$B573<>\"Subscriber\",'Enrollment Form'!$C573=\"ROC\"),\"-\",IF(AND('Enrollment Form'!$B573=\"Subscriber\",'Enrollment Form'!$C573=\"Enroll\",'Enrollment Form'!$AL573<>\"\"),\"Y\",\"N\")))","v":""},{"$f":"IF($B566=\"N\",\"\",IF(OR('Enrollment Form'!$B573<>\"Subscriber\",'Enrollment Form'!$C573=\"ROC\"),\"-\",IF(AND('Enrollment Form'!$B573=\"Subscriber\",'Enrollment Form'!$C573=\"Enroll\",'Enrollment Form'!$AP573<>\"\"),\"Y\",\"N\")))","v":""},{"$f":"IF($B566=\"N\",\"\",IF(OR('Enrollment Form'!$B573<>\"Subscriber\",'Enrollment Form'!$C573=\"ROC\"),\"-\",IF(AND('Enrollment Form'!$B573=\"Subscriber\",'Enrollment Form'!$C573=\"Enroll\",'Enrollment Form'!$AQ573<>\"\"),\"Y\",\"N\")))","v":""},{"$f":"IF($B566=\"N\",\"\",IF(OR('Enrollment Form'!$B573<>\"Subscriber\",'Enrollment Form'!$C573=\"ROC\"),\"-\",IF(AND('Enrollment Form'!$B573=\"Subscriber\",'Enrollment Form'!$C573=\"Enroll\",'Enrollment Form'!$AS573<>\"\"),\"Y\",\"N\")))","v":""},{"$f":"IF($B566=\"N\",\"\",IF($Q566=\"-\",\"-\",IF(AND($Q566=\"Y\",'Enrollment Form'!$AS573=\"No\"),\"-\",IF(AND($Q566=\"Y\",'Enrollment Form'!$AS573=\"Yes\",'Enrollment Form'!$AT573<>\"\"),\"Y\",\"N\"))))","v":""},{"$f":"IF($B566=\"N\",\"\",IF(OR('Enrollment Form'!$B573<>\"Subscriber\",'Enrollment Form'!$C573=\"ROC\"),\"-\",IF(AND('Enrollment Form'!$B573=\"Subscriber\",'Enrollment Form'!$C573=\"Enroll\",'Enrollment Form'!$CV573<>\"\"),\"Y\",\"N\")))","v":""},{"$f":"IF($B566=\"N\",\"\",IF($S566=\"-\",\"-\",IF(AND($S566=\"Y\",'Enrollment Form'!$CV573=\"No\"),\"-\",IF(AND($S566=\"Y\",'Enrollment Form'!$CV573=\"Yes\",'Enrollment Form'!$CW573<>\"\"),\"Y\",\"N\"))))","v":""},{"$f":"IF(OR('Enrollment Form'!$AY573=\"Yes\",'Enrollment Form'!$AY573=\"\"),\"-\",IF(OR(AND('Enrollment Form'!$AY573=\"No\",ISERROR(FIND(\"HMO\",VLOOKUP('Enrollment Form'!G573,'Enrollment Form'!H$11:J$1000,3,FALSE),1))=FALSE,COUNTA('Enrollment Form'!$AZ573:$BC573)=4),AND('Enrollment Form'!$AY573=\"No\",ISERROR(FIND(\"HMO\",VLOOKUP('Enrollment Form'!G573,'Enrollment Form'!H$11:J$1000,3,FALSE),1))=FALSE,COUNTA('Enrollment Form'!$BT573:$BW573)=4)),\"Y\",\"N\"))","v":"-"},{"$f":"IF($B566=\"N\",\"\",IF('Enrollment Form'!$B573=\"Subscriber\",\"-\",IF(COUNTA('Enrollment Form'!$BL573,'Enrollment Form'!$BN573)=2,\"Y\",\"N\")))","v":""},{"$f":"IF($B566=\"N\",\"\",IF(OR('Enrollment Form'!$AX573=\"\",'Enrollment Form'!$AX573=\"No\"),\"-\",IF(AND('Enrollment Form'!$AX573=\"Yes\",COUNTA('Enrollment Form'!$CR573)=1),\"Y\",\"N\")))","v":""},{"$f":"IF(OR('Enrollment Form'!$CR573=\"\",'Enrollment Form'!$CR573=\"No\"),\"-\",IF(COUNTA('Enrollment Form'!$CT573:$CU573)=2,\"Y\",\"N\"))","v":"-"},{"$f":"IF($B566=\"N\",\"\",IF(COUNTIF('Enrollment Form'!$DG573:$DP573,\"Other\")=COUNTA('Enrollment Form'!$DK573,'Enrollment Form'!$DH573,'Enrollment Form'!$DN573,'Enrollment Form'!$DQ573),\"Y\",\"N\"))","v":""},{"$f":"IF($B566=\"N\",\"\",IF(OR('Enrollment Form'!B573<>\"Subscriber\",'Enrollment Form'!C573=\"ROC\",COUNTIF('Enrollment Form'!AV573:AW573,\"Yes\")>=1),\"-\",IF(AND('Enrollment Form'!C573=\"Enroll\",COUNTIF('Enrollment Form'!AV573:AW573,\"No\")=2,'Enrollment Form'!AX573=\"\"),\"N\",\"Y\")))","v":""},{"$f":"IF(OR(B566=\"N\",'Enrollment Form'!B573<>\"Subscriber\",'Enrollment Form'!C573=\"ROC\",'Enrollment Form'!O573<>\"Multiple of Salary\"),\"-\",IF(COUNTA('Enrollment Form'!T573:U573)<2,\"N\",\"Y\"))","v":"-"},{"$f":"IF(B566=\"N\",\"\",IF(OR('Enrollment Form'!C573=\"ROC\",'Enrollment Form'!B573<>\"Subscriber\",'Enrollment Form'!O573=\"Waive\",'Enrollment Form'!O573=\"\"),\"-\",IF('Enrollment Form'!P573=\"\",\"N\",\"Y\")))","v":""},{"$f":"IF($B566=\"N\",\"\",IF(AND('Enrollment Form'!$C573=\"ROC\",'Enrollment Form'!$DR573<>\"\"),\"Y\",IF(AND('Enrollment Form'!$C573=\"ROC\",'Enrollment Form'!$DR573=\"\"),\"N\",IF(AND('Enrollment Form'!$C573=\"Enroll\",'Enrollment Form'!$B573=\"Subscriber\",'Enrollment Form'!$CX573=\"No\",'Enrollment Form'!$DR573=\"\"),\"N\",IF(AND('Enrollment Form'!$C573=\"Enroll\",'Enrollment Form'!$B573=\"Subscriber\",'Enrollment Form'!$CX573=\"Yes\"),\"-\",\"Y\")))))","v":""},{"$f":"IF($B566=\"N\",\"\",IF(AND('Enrollment Form'!$C573=\"ROC\",'Enrollment Form'!$DS573<>\"\"),\"Y\",IF(AND('Enrollment Form'!$C573=\"ROC\",'Enrollment Form'!$DS573=\"\"),\"N\",IF(AND('Enrollment Form'!$C573=\"Enroll\",'Enrollment Form'!$B573=\"Subscriber\",'Enrollment Form'!$CX573=\"No\",'Enrollment Form'!$DS573=\"\"),\"N\",IF(AND('Enrollment Form'!$C573=\"Enroll\",'Enrollment Form'!$B573=\"Subscriber\",'Enrollment Form'!$CX573=\"Yes\"),\"-\",\"Y\")))))","v":""},{"$f":"IF('Enrollment Form'!AH573=\"\",\"\",IF(ISERROR(SEARCH(\".\",'Enrollment Form'!AH573,SEARCH(\"@\",'Enrollment Form'!AH573))),\"N\",\"Y\"))","v":""},{"$f":"IF(OR($B566=\"N\",'Enrollment Form'!$G573=\"\"),\"\",IF('Enrollment Form'!$B573<>\"Subscriber\",\"-\",IF(COUNTIF('Enrollment Form'!$AV573:$AW573,\"Yes\")=2,\"N\",\"Y\")))","v":""},{"$f":"IF(OR('Enrollment Form'!$CJ573=\"\",'Enrollment Form'!$CJ573=\"No\"),\"-\",IF(AND('Enrollment Form'!$CJ573=\"Yes\",'Enrollment Form'!$CK573=\"\"),\"N\",\"Y\"))","v":"-"},{"$f":"IF(OR('Enrollment Form'!$CL573=\"\",'Enrollment Form'!$CL573=\"No\"),\"-\",IF(AND('Enrollment Form'!$CL573=\"Yes\",'Enrollment Form'!$CM573=\"\"),\"N\",\"Y\"))","v":"-"},{"$f":"IF(OR('Enrollment Form'!$CN573=\"\",'Enrollment Form'!$CN573=\"No\"),\"-\",IF(AND('Enrollment Form'!$CN573=\"Yes\",'Enrollment Form'!$CO573=\"\"),\"N\",\"Y\"))","v":"-"},{"$f":"IF(OR('Enrollment Form'!$CN573=\"\",'Enrollment Form'!$CN573=\"No\"),\"-\",IF(AND('Enrollment Form'!$CN573=\"Yes\",'Enrollment Form'!$CP573=\"\"),\"N\",\"Y\"))","v":"-"},{"$f":"IF('Enrollment Form'!B573<>\"Subscriber\",\"-\",IF(AND('Enrollment Form'!B573=\"Subscriber\",'Enrollment Form'!C573=\"Enroll\",'Enrollment Form'!AA573=\"\"),\"N\",\"Y\"))","v":"-"},{"$f":"IF(OR('Enrollment Form'!B573=\"Subscriber\",'Enrollment Form'!B573=\"\"),\"-\",IF('Enrollment Form'!BP573=\"\",\"N\",\"Y\"))","v":"-"},{"$f":"IF('Enrollment Form'!B573<>\"Subscriber\",\"-\",IF(AND('Enrollment Form'!B573=\"Subscriber\",'Enrollment Form'!G573=\"\"),\"N\",\"Y\"))","v":"-"},{"$f":"IF('Enrollment Form'!A573=\"\",\"\",IF('Enrollment Form'!B573=\"Subscriber\",\"-\",IF(AND('Enrollment Form'!B573<>\"Subscriber\",'Enrollment Form'!G573='Enrollment Form'!H573),\"N\",\"Y\")))","v":""},0]
[574,{"$f":"IF('Enrollment Form'!$A574<>\"\",\"Y\",\"N\")","v":"N"},{"$f":"IF(AND('Enrollment Form'!$B574=\"\",'Enrollment Form'!$C574<>\"\"),\"N\",IF($B567=\"N\",\"\",\"Y\"))","v":""},{"$f":"IF(OR($B567=\"N\",'Enrollment Form'!G574=\"\"),\"\",IF('Enrollment Form'!$B574<>\"Subscriber\",\"\",IF('Enrollment Form'!$G574='Enrollment Form'!$H574,\"Y\",\"N\")))","v":""},{"$f":"IF($B567=\"N\",\"\",IF(AND(COUNTIFS('Enrollment Form'!$H$11:$H$1000,'Enrollment Form'!$H574,'Enrollment Form'!$B$11:$B$1000,'Enrollment Form'!$B574)>1,'Enrollment Form'!$H574<>\"\"),\"N\",\"Y\"))","v":""},{"$f":"IF($B567=\"N\",\"\",IF(LEN('Enrollment Form'!$Y574)=0,\"\",IF(LEN('Enrollment Form'!$Y574)<>5,\"N\",\"Y\")))","v":""},{"$f":"IF($B567=\"N\",\"\",IF(LEN('Enrollment Form'!$AD574=0),\"\",IF(LEN('Enrollment Form'!$AD574)<>5,\"N\",\"Y\")))","v":""},{"$f":"IF($B567=\"N\",\"\",IF(LEN('Enrollment Form'!$BS574=0),\"\",IF(LEN('Enrollment Form'!$BS574)<>5,\"N\",\"Y\")))","v":""},{"$f":"IF($B567=\"N\",\"\",IF(LEN('Enrollment Form'!$AE574)=0,\"\",IF(LEN('Enrollment Form'!$AE574)<>10,\"N\",\"Y\")))","v":""},{"$f":"IF($B567=\"N\",\"\",IF(LEN('Enrollment Form'!$AF574)=0,\"\",IF(LEN('Enrollment Form'!$AF574)<>10,\"N\",\"Y\")))","v":""},{"$f":"IF('Enrollment Form'!$O574<>\"Graded\",\"-\",IF(AND('Enrollment Form'!$O574=\"Graded\",'Enrollment Form'!$AR574<>\"\"),\"Y\",\"N\"))","v":"-"},{"$f":"IF($B567=\"N\",\"\",IF(OR('Enrollment Form'!$B574<>\"Subscriber\",'Enrollment Form'!$C574=\"ROC\"),\"-\",IF(AND('Enrollment Form'!$B574=\"Subscriber\",'Enrollment Form'!$C574=\"Enroll\",'Enrollment Form'!$AJ574<>\"\"),\"Y\",\"N\")))","v":""},{"$f":"IF($B567=\"N\",\"\",IF(OR('Enrollment Form'!$B574<>\"Subscriber\",'Enrollment Form'!$C574=\"ROC\"),\"-\",IF(AND('Enrollment Form'!$B574=\"Subscriber\",'Enrollment Form'!$C574=\"Enroll\",'Enrollment Form'!$AK574<>\"\"),\"Y\",\"N\")))","v":""},{"$f":"IF($B567=\"N\",\"\",IF(OR('Enrollment Form'!$B574<>\"Subscriber\",'Enrollment Form'!$C574=\"ROC\"),\"-\",IF(AND('Enrollment Form'!$B574=\"Subscriber\",'Enrollment Form'!$C574=\"Enroll\",'Enrollment Form'!$AL574<>\"\"),\"Y\",\"N\")))","v":""},{"$f":"IF($B567=\"N\",\"\",IF(OR('Enrollment Form'!$B574<>\"Subscriber\",'Enrollment Form'!$C574=\"ROC\"),\"-\",IF(AND('Enrollment Form'!$B574=\"Subscriber\",'Enrollment Form'!$C574=\"Enroll\",'Enrollment Form'!$AP574<>\"\"),\"Y\",\"N\")))","v":""},{"$f":"IF($B567=\"N\",\"\",IF(OR('Enrollment Form'!$B574<>\"Subscriber\",'Enrollment Form'!$C574=\"ROC\"),\"-\",IF(AND('Enrollment Form'!$B574=\"Subscriber\",'Enrollment Form'!$C574=\"Enroll\",'Enrollment Form'!$AQ574<>\"\"),\"Y\",\"N\")))","v":""},{"$f":"IF($B567=\"N\",\"\",IF(OR('Enrollment Form'!$B574<>\"Subscriber\",'Enrollment Form'!$C574=\"ROC\"),\"-\",IF(AND('Enrollment Form'!$B574=\"Subscriber\",'Enrollment Form'!$C574=\"Enroll\",'Enrollment Form'!$AS574<>\"\"),\"Y\",\"N\")))","v":""},{"$f":"IF($B567=\"N\",\"\",IF($Q567=\"-\",\"-\",IF(AND($Q567=\"Y\",'Enrollment Form'!$AS574=\"No\"),\"-\",IF(AND($Q567=\"Y\",'Enrollment Form'!$AS574=\"Yes\",'Enrollment Form'!$AT574<>\"\"),\"Y\",\"N\"))))","v":""},{"$f":"IF($B567=\"N\",\"\",IF(OR('Enrollment Form'!$B574<>\"Subscriber\",'Enrollment Form'!$C574=\"ROC\"),\"-\",IF(AND('Enrollment Form'!$B574=\"Subscriber\",'Enrollment Form'!$C574=\"Enroll\",'Enrollment Form'!$CV574<>\"\"),\"Y\",\"N\")))","v":""},{"$f":"IF($B567=\"N\",\"\",IF($S567=\"-\",\"-\",IF(AND($S567=\"Y\",'Enrollment Form'!$CV574=\"No\"),\"-\",IF(AND($S567=\"Y\",'Enrollment Form'!$CV574=\"Yes\",'Enrollment Form'!$CW574<>\"\"),\"Y\",\"N\"))))","v":""},{"$f":"IF(OR('Enrollment Form'!$AY574=\"Yes\",'Enrollment Form'!$AY574=\"\"),\"-\",IF(OR(AND('Enrollment Form'!$AY574=\"No\",ISERROR(FIND(\"HMO\",VLOOKUP('Enrollment Form'!G574,'Enrollment Form'!H$11:J$1000,3,FALSE),1))=FALSE,COUNTA('Enrollment Form'!$AZ574:$BC574)=4),AND('Enrollment Form'!$AY574=\"No\",ISERROR(FIND(\"HMO\",VLOOKUP('Enrollment Form'!G574,'Enrollment Form'!H$11:J$1000,3,FALSE),1))=FALSE,COUNTA('Enrollment Form'!$BT574:$BW574)=4)),\"Y\",\"N\"))","v":"-"},{"$f":"IF($B567=\"N\",\"\",IF('Enrollment Form'!$B574=\"Subscriber\",\"-\",IF(COUNTA('Enrollment Form'!$BL574,'Enrollment Form'!$BN574)=2,\"Y\",\"N\")))","v":""},{"$f":"IF($B567=\"N\",\"\",IF(OR('Enrollment Form'!$AX574=\"\",'Enrollment Form'!$AX574=\"No\"),\"-\",IF(AND('Enrollment Form'!$AX574=\"Yes\",COUNTA('Enrollment Form'!$CR574)=1),\"Y\",\"N\")))","v":""},{"$f":"IF(OR('Enrollment Form'!$CR574=\"\",'Enrollment Form'!$CR574=\"No\"),\"-\",IF(COUNTA('Enrollment Form'!$CT574:$CU574)=2,\"Y\",\"N\"))","v":"-"},{"$f":"IF($B567=\"N\",\"\",IF(COUNTIF('Enrollment Form'!$DG574:$DP574,\"Other\")=COUNTA('Enrollment Form'!$DK574,'Enrollment Form'!$DH574,'Enrollment Form'!$DN574,'Enrollment Form'!$DQ574),\"Y\",\"N\"))","v":""},{"$f":"IF($B567=\"N\",\"\",IF(OR('Enrollment Form'!B574<>\"Subscriber\",'Enrollment Form'!C574=\"ROC\",COUNTIF('Enrollment Form'!AV574:AW574,\"Yes\")>=1),\"-\",IF(AND('Enrollment Form'!C574=\"Enroll\",COUNTIF('Enrollment Form'!AV574:AW574,\"No\")=2,'Enrollment Form'!AX574=\"\"),\"N\",\"Y\")))","v":""},{"$f":"IF(OR(B567=\"N\",'Enrollment Form'!B574<>\"Subscriber\",'Enrollment Form'!C574=\"ROC\",'Enrollment Form'!O574<>\"Multiple of Salary\"),\"-\",IF(COUNTA('Enrollment Form'!T574:U574)<2,\"N\",\"Y\"))","v":"-"},{"$f":"IF(B567=\"N\",\"\",IF(OR('Enrollment Form'!C574=\"ROC\",'Enrollment Form'!B574<>\"Subscriber\",'Enrollment Form'!O574=\"Waive\",'Enrollment Form'!O574=\"\"),\"-\",IF('Enrollment Form'!P574=\"\",\"N\",\"Y\")))","v":""},{"$f":"IF($B567=\"N\",\"\",IF(AND('Enrollment Form'!$C574=\"ROC\",'Enrollment Form'!$DR574<>\"\"),\"Y\",IF(AND('Enrollment Form'!$C574=\"ROC\",'Enrollment Form'!$DR574=\"\"),\"N\",IF(AND('Enrollment Form'!$C574=\"Enroll\",'Enrollment Form'!$B574=\"Subscriber\",'Enrollment Form'!$CX574=\"No\",'Enrollment Form'!$DR574=\"\"),\"N\",IF(AND('Enrollment Form'!$C574=\"Enroll\",'Enrollment Form'!$B574=\"Subscriber\",'Enrollment Form'!$CX574=\"Yes\"),\"-\",\"Y\")))))","v":""},{"$f":"IF($B567=\"N\",\"\",IF(AND('Enrollment Form'!$C574=\"ROC\",'Enrollment Form'!$DS574<>\"\"),\"Y\",IF(AND('Enrollment Form'!$C574=\"ROC\",'Enrollment Form'!$DS574=\"\"),\"N\",IF(AND('Enrollment Form'!$C574=\"Enroll\",'Enrollment Form'!$B574=\"Subscriber\",'Enrollment Form'!$CX574=\"No\",'Enrollment Form'!$DS574=\"\"),\"N\",IF(AND('Enrollment Form'!$C574=\"Enroll\",'Enrollment Form'!$B574=\"Subscriber\",'Enrollment Form'!$CX574=\"Yes\"),\"-\",\"Y\")))))","v":""},{"$f":"IF('Enrollment Form'!AH574=\"\",\"\",IF(ISERROR(SEARCH(\".\",'Enrollment Form'!AH574,SEARCH(\"@\",'Enrollment Form'!AH574))),\"N\",\"Y\"))","v":""},{"$f":"IF(OR($B567=\"N\",'Enrollment Form'!$G574=\"\"),\"\",IF('Enrollment Form'!$B574<>\"Subscriber\",\"-\",IF(COUNTIF('Enrollment Form'!$AV574:$AW574,\"Yes\")=2,\"N\",\"Y\")))","v":""},{"$f":"IF(OR('Enrollment Form'!$CJ574=\"\",'Enrollment Form'!$CJ574=\"No\"),\"-\",IF(AND('Enrollment Form'!$CJ574=\"Yes\",'Enrollment Form'!$CK574=\"\"),\"N\",\"Y\"))","v":"-"},{"$f":"IF(OR('Enrollment Form'!$CL574=\"\",'Enrollment Form'!$CL574=\"No\"),\"-\",IF(AND('Enrollment Form'!$CL574=\"Yes\",'Enrollment Form'!$CM574=\"\"),\"N\",\"Y\"))","v":"-"},{"$f":"IF(OR('Enrollment Form'!$CN574=\"\",'Enrollment Form'!$CN574=\"No\"),\"-\",IF(AND('Enrollment Form'!$CN574=\"Yes\",'Enrollment Form'!$CO574=\"\"),\"N\",\"Y\"))","v":"-"},{"$f":"IF(OR('Enrollment Form'!$CN574=\"\",'Enrollment Form'!$CN574=\"No\"),\"-\",IF(AND('Enrollment Form'!$CN574=\"Yes\",'Enrollment Form'!$CP574=\"\"),\"N\",\"Y\"))","v":"-"},{"$f":"IF('Enrollment Form'!B574<>\"Subscriber\",\"-\",IF(AND('Enrollment Form'!B574=\"Subscriber\",'Enrollment Form'!C574=\"Enroll\",'Enrollment Form'!AA574=\"\"),\"N\",\"Y\"))","v":"-"},{"$f":"IF(OR('Enrollment Form'!B574=\"Subscriber\",'Enrollment Form'!B574=\"\"),\"-\",IF('Enrollment Form'!BP574=\"\",\"N\",\"Y\"))","v":"-"},{"$f":"IF('Enrollment Form'!B574<>\"Subscriber\",\"-\",IF(AND('Enrollment Form'!B574=\"Subscriber\",'Enrollment Form'!G574=\"\"),\"N\",\"Y\"))","v":"-"},{"$f":"IF('Enrollment Form'!A574=\"\",\"\",IF('Enrollment Form'!B574=\"Subscriber\",\"-\",IF(AND('Enrollment Form'!B574<>\"Subscriber\",'Enrollment Form'!G574='Enrollment Form'!H574),\"N\",\"Y\")))","v":""},0]
[575,{"$f":"IF('Enrollment Form'!$A575<>\"\",\"Y\",\"N\")","v":"N"},{"$f":"IF(AND('Enrollment Form'!$B575=\"\",'Enrollment Form'!$C575<>\"\"),\"N\",IF($B568=\"N\",\"\",\"Y\"))","v":""},{"$f":"IF(OR($B568=\"N\",'Enrollment Form'!G575=\"\"),\"\",IF('Enrollment Form'!$B575<>\"Subscriber\",\"\",IF('Enrollment Form'!$G575='Enrollment Form'!$H575,\"Y\",\"N\")))","v":""},{"$f":"IF($B568=\"N\",\"\",IF(AND(COUNTIFS('Enrollment Form'!$H$11:$H$1000,'Enrollment Form'!$H575,'Enrollment Form'!$B$11:$B$1000,'Enrollment Form'!$B575)>1,'Enrollment Form'!$H575<>\"\"),\"N\",\"Y\"))","v":""},{"$f":"IF($B568=\"N\",\"\",IF(LEN('Enrollment Form'!$Y575)=0,\"\",IF(LEN('Enrollment Form'!$Y575)<>5,\"N\",\"Y\")))","v":""},{"$f":"IF($B568=\"N\",\"\",IF(LEN('Enrollment Form'!$AD575=0),\"\",IF(LEN('Enrollment Form'!$AD575)<>5,\"N\",\"Y\")))","v":""},{"$f":"IF($B568=\"N\",\"\",IF(LEN('Enrollment Form'!$BS575=0),\"\",IF(LEN('Enrollment Form'!$BS575)<>5,\"N\",\"Y\")))","v":""},{"$f":"IF($B568=\"N\",\"\",IF(LEN('Enrollment Form'!$AE575)=0,\"\",IF(LEN('Enrollment Form'!$AE575)<>10,\"N\",\"Y\")))","v":""},{"$f":"IF($B568=\"N\",\"\",IF(LEN('Enrollment Form'!$AF575)=0,\"\",IF(LEN('Enrollment Form'!$AF575)<>10,\"N\",\"Y\")))","v":""},{"$f":"IF('Enrollment Form'!$O575<>\"Graded\",\"-\",IF(AND('Enrollment Form'!$O575=\"Graded\",'Enrollment Form'!$AR575<>\"\"),\"Y\",\"N\"))","v":"-"},{"$f":"IF($B568=\"N\",\"\",IF(OR('Enrollment Form'!$B575<>\"Subscriber\",'Enrollment Form'!$C575=\"ROC\"),\"-\",IF(AND('Enrollment Form'!$B575=\"Subscriber\",'Enrollment Form'!$C575=\"Enroll\",'Enrollment Form'!$AJ575<>\"\"),\"Y\",\"N\")))","v":""},{"$f":"IF($B568=\"N\",\"\",IF(OR('Enrollment Form'!$B575<>\"Subscriber\",'Enrollment Form'!$C575=\"ROC\"),\"-\",IF(AND('Enrollment Form'!$B575=\"Subscriber\",'Enrollment Form'!$C575=\"Enroll\",'Enrollment Form'!$AK575<>\"\"),\"Y\",\"N\")))","v":""},{"$f":"IF($B568=\"N\",\"\",IF(OR('Enrollment Form'!$B575<>\"Subscriber\",'Enrollment Form'!$C575=\"ROC\"),\"-\",IF(AND('Enrollment Form'!$B575=\"Subscriber\",'Enrollment Form'!$C575=\"Enroll\",'Enrollment Form'!$AL575<>\"\"),\"Y\",\"N\")))","v":""},{"$f":"IF($B568=\"N\",\"\",IF(OR('Enrollment Form'!$B575<>\"Subscriber\",'Enrollment Form'!$C575=\"ROC\"),\"-\",IF(AND('Enrollment Form'!$B575=\"Subscriber\",'Enrollment Form'!$C575=\"Enroll\",'Enrollment Form'!$AP575<>\"\"),\"Y\",\"N\")))","v":""},{"$f":"IF($B568=\"N\",\"\",IF(OR('Enrollment Form'!$B575<>\"Subscriber\",'Enrollment Form'!$C575=\"ROC\"),\"-\",IF(AND('Enrollment Form'!$B575=\"Subscriber\",'Enrollment Form'!$C575=\"Enroll\",'Enrollment Form'!$AQ575<>\"\"),\"Y\",\"N\")))","v":""},{"$f":"IF($B568=\"N\",\"\",IF(OR('Enrollment Form'!$B575<>\"Subscriber\",'Enrollment Form'!$C575=\"ROC\"),\"-\",IF(AND('Enrollment Form'!$B575=\"Subscriber\",'Enrollment Form'!$C575=\"Enroll\",'Enrollment Form'!$AS575<>\"\"),\"Y\",\"N\")))","v":""},{"$f":"IF($B568=\"N\",\"\",IF($Q568=\"-\",\"-\",IF(AND($Q568=\"Y\",'Enrollment Form'!$AS575=\"No\"),\"-\",IF(AND($Q568=\"Y\",'Enrollment Form'!$AS575=\"Yes\",'Enrollment Form'!$AT575<>\"\"),\"Y\",\"N\"))))","v":""},{"$f":"IF($B568=\"N\",\"\",IF(OR('Enrollment Form'!$B575<>\"Subscriber\",'Enrollment Form'!$C575=\"ROC\"),\"-\",IF(AND('Enrollment Form'!$B575=\"Subscriber\",'Enrollment Form'!$C575=\"Enroll\",'Enrollment Form'!$CV575<>\"\"),\"Y\",\"N\")))","v":""},{"$f":"IF($B568=\"N\",\"\",IF($S568=\"-\",\"-\",IF(AND($S568=\"Y\",'Enrollment Form'!$CV575=\"No\"),\"-\",IF(AND($S568=\"Y\",'Enrollment Form'!$CV575=\"Yes\",'Enrollment Form'!$CW575<>\"\"),\"Y\",\"N\"))))","v":""},{"$f":"IF(OR('Enrollment Form'!$AY575=\"Yes\",'Enrollment Form'!$AY575=\"\"),\"-\",IF(OR(AND('Enrollment Form'!$AY575=\"No\",ISERROR(FIND(\"HMO\",VLOOKUP('Enrollment Form'!G575,'Enrollment Form'!H$11:J$1000,3,FALSE),1))=FALSE,COUNTA('Enrollment Form'!$AZ575:$BC575)=4),AND('Enrollment Form'!$AY575=\"No\",ISERROR(FIND(\"HMO\",VLOOKUP('Enrollment Form'!G575,'Enrollment Form'!H$11:J$1000,3,FALSE),1))=FALSE,COUNTA('Enrollment Form'!$BT575:$BW575)=4)),\"Y\",\"N\"))","v":"-"},{"$f":"IF($B568=\"N\",\"\",IF('Enrollment Form'!$B575=\"Subscriber\",\"-\",IF(COUNTA('Enrollment Form'!$BL575,'Enrollment Form'!$BN575)=2,\"Y\",\"N\")))","v":""},{"$f":"IF($B568=\"N\",\"\",IF(OR('Enrollment Form'!$AX575=\"\",'Enrollment Form'!$AX575=\"No\"),\"-\",IF(AND('Enrollment Form'!$AX575=\"Yes\",COUNTA('Enrollment Form'!$CR575)=1),\"Y\",\"N\")))","v":""},{"$f":"IF(OR('Enrollment Form'!$CR575=\"\",'Enrollment Form'!$CR575=\"No\"),\"-\",IF(COUNTA('Enrollment Form'!$CT575:$CU575)=2,\"Y\",\"N\"))","v":"-"},{"$f":"IF($B568=\"N\",\"\",IF(COUNTIF('Enrollment Form'!$DG575:$DP575,\"Other\")=COUNTA('Enrollment Form'!$DK575,'Enrollment Form'!$DH575,'Enrollment Form'!$DN575,'Enrollment Form'!$DQ575),\"Y\",\"N\"))","v":""},{"$f":"IF($B568=\"N\",\"\",IF(OR('Enrollment Form'!B575<>\"Subscriber\",'Enrollment Form'!C575=\"ROC\",COUNTIF('Enrollment Form'!AV575:AW575,\"Yes\")>=1),\"-\",IF(AND('Enrollment Form'!C575=\"Enroll\",COUNTIF('Enrollment Form'!AV575:AW575,\"No\")=2,'Enrollment Form'!AX575=\"\"),\"N\",\"Y\")))","v":""},{"$f":"IF(OR(B568=\"N\",'Enrollment Form'!B575<>\"Subscriber\",'Enrollment Form'!C575=\"ROC\",'Enrollment Form'!O575<>\"Multiple of Salary\"),\"-\",IF(COUNTA('Enrollment Form'!T575:U575)<2,\"N\",\"Y\"))","v":"-"},{"$f":"IF(B568=\"N\",\"\",IF(OR('Enrollment Form'!C575=\"ROC\",'Enrollment Form'!B575<>\"Subscriber\",'Enrollment Form'!O575=\"Waive\",'Enrollment Form'!O575=\"\"),\"-\",IF('Enrollment Form'!P575=\"\",\"N\",\"Y\")))","v":""},{"$f":"IF($B568=\"N\",\"\",IF(AND('Enrollment Form'!$C575=\"ROC\",'Enrollment Form'!$DR575<>\"\"),\"Y\",IF(AND('Enrollment Form'!$C575=\"ROC\",'Enrollment Form'!$DR575=\"\"),\"N\",IF(AND('Enrollment Form'!$C575=\"Enroll\",'Enrollment Form'!$B575=\"Subscriber\",'Enrollment Form'!$CX575=\"No\",'Enrollment Form'!$DR575=\"\"),\"N\",IF(AND('Enrollment Form'!$C575=\"Enroll\",'Enrollment Form'!$B575=\"Subscriber\",'Enrollment Form'!$CX575=\"Yes\"),\"-\",\"Y\")))))","v":""},{"$f":"IF($B568=\"N\",\"\",IF(AND('Enrollment Form'!$C575=\"ROC\",'Enrollment Form'!$DS575<>\"\"),\"Y\",IF(AND('Enrollment Form'!$C575=\"ROC\",'Enrollment Form'!$DS575=\"\"),\"N\",IF(AND('Enrollment Form'!$C575=\"Enroll\",'Enrollment Form'!$B575=\"Subscriber\",'Enrollment Form'!$CX575=\"No\",'Enrollment Form'!$DS575=\"\"),\"N\",IF(AND('Enrollment Form'!$C575=\"Enroll\",'Enrollment Form'!$B575=\"Subscriber\",'Enrollment Form'!$CX575=\"Yes\"),\"-\",\"Y\")))))","v":""},{"$f":"IF('Enrollment Form'!AH575=\"\",\"\",IF(ISERROR(SEARCH(\".\",'Enrollment Form'!AH575,SEARCH(\"@\",'Enrollment Form'!AH575))),\"N\",\"Y\"))","v":""},{"$f":"IF(OR($B568=\"N\",'Enrollment Form'!$G575=\"\"),\"\",IF('Enrollment Form'!$B575<>\"Subscriber\",\"-\",IF(COUNTIF('Enrollment Form'!$AV575:$AW575,\"Yes\")=2,\"N\",\"Y\")))","v":""},{"$f":"IF(OR('Enrollment Form'!$CJ575=\"\",'Enrollment Form'!$CJ575=\"No\"),\"-\",IF(AND('Enrollment Form'!$CJ575=\"Yes\",'Enrollment Form'!$CK575=\"\"),\"N\",\"Y\"))","v":"-"},{"$f":"IF(OR('Enrollment Form'!$CL575=\"\",'Enrollment Form'!$CL575=\"No\"),\"-\",IF(AND('Enrollment Form'!$CL575=\"Yes\",'Enrollment Form'!$CM575=\"\"),\"N\",\"Y\"))","v":"-"},{"$f":"IF(OR('Enrollment Form'!$CN575=\"\",'Enrollment Form'!$CN575=\"No\"),\"-\",IF(AND('Enrollment Form'!$CN575=\"Yes\",'Enrollment Form'!$CO575=\"\"),\"N\",\"Y\"))","v":"-"},{"$f":"IF(OR('Enrollment Form'!$CN575=\"\",'Enrollment Form'!$CN575=\"No\"),\"-\",IF(AND('Enrollment Form'!$CN575=\"Yes\",'Enrollment Form'!$CP575=\"\"),\"N\",\"Y\"))","v":"-"},{"$f":"IF('Enrollment Form'!B575<>\"Subscriber\",\"-\",IF(AND('Enrollment Form'!B575=\"Subscriber\",'Enrollment Form'!C575=\"Enroll\",'Enrollment Form'!AA575=\"\"),\"N\",\"Y\"))","v":"-"},{"$f":"IF(OR('Enrollment Form'!B575=\"Subscriber\",'Enrollment Form'!B575=\"\"),\"-\",IF('Enrollment Form'!BP575=\"\",\"N\",\"Y\"))","v":"-"},{"$f":"IF('Enrollment Form'!B575<>\"Subscriber\",\"-\",IF(AND('Enrollment Form'!B575=\"Subscriber\",'Enrollment Form'!G575=\"\"),\"N\",\"Y\"))","v":"-"},{"$f":"IF('Enrollment Form'!A575=\"\",\"\",IF('Enrollment Form'!B575=\"Subscriber\",\"-\",IF(AND('Enrollment Form'!B575<>\"Subscriber\",'Enrollment Form'!G575='Enrollment Form'!H575),\"N\",\"Y\")))","v":""},0]
[576,{"$f":"IF('Enrollment Form'!$A576<>\"\",\"Y\",\"N\")","v":"N"},{"$f":"IF(AND('Enrollment Form'!$B576=\"\",'Enrollment Form'!$C576<>\"\"),\"N\",IF($B569=\"N\",\"\",\"Y\"))","v":""},{"$f":"IF(OR($B569=\"N\",'Enrollment Form'!G576=\"\"),\"\",IF('Enrollment Form'!$B576<>\"Subscriber\",\"\",IF('Enrollment Form'!$G576='Enrollment Form'!$H576,\"Y\",\"N\")))","v":""},{"$f":"IF($B569=\"N\",\"\",IF(AND(COUNTIFS('Enrollment Form'!$H$11:$H$1000,'Enrollment Form'!$H576,'Enrollment Form'!$B$11:$B$1000,'Enrollment Form'!$B576)>1,'Enrollment Form'!$H576<>\"\"),\"N\",\"Y\"))","v":""},{"$f":"IF($B569=\"N\",\"\",IF(LEN('Enrollment Form'!$Y576)=0,\"\",IF(LEN('Enrollment Form'!$Y576)<>5,\"N\",\"Y\")))","v":""},{"$f":"IF($B569=\"N\",\"\",IF(LEN('Enrollment Form'!$AD576=0),\"\",IF(LEN('Enrollment Form'!$AD576)<>5,\"N\",\"Y\")))","v":""},{"$f":"IF($B569=\"N\",\"\",IF(LEN('Enrollment Form'!$BS576=0),\"\",IF(LEN('Enrollment Form'!$BS576)<>5,\"N\",\"Y\")))","v":""},{"$f":"IF($B569=\"N\",\"\",IF(LEN('Enrollment Form'!$AE576)=0,\"\",IF(LEN('Enrollment Form'!$AE576)<>10,\"N\",\"Y\")))","v":""},{"$f":"IF($B569=\"N\",\"\",IF(LEN('Enrollment Form'!$AF576)=0,\"\",IF(LEN('Enrollment Form'!$AF576)<>10,\"N\",\"Y\")))","v":""},{"$f":"IF('Enrollment Form'!$O576<>\"Graded\",\"-\",IF(AND('Enrollment Form'!$O576=\"Graded\",'Enrollment Form'!$AR576<>\"\"),\"Y\",\"N\"))","v":"-"},{"$f":"IF($B569=\"N\",\"\",IF(OR('Enrollment Form'!$B576<>\"Subscriber\",'Enrollment Form'!$C576=\"ROC\"),\"-\",IF(AND('Enrollment Form'!$B576=\"Subscriber\",'Enrollment Form'!$C576=\"Enroll\",'Enrollment Form'!$AJ576<>\"\"),\"Y\",\"N\")))","v":""},{"$f":"IF($B569=\"N\",\"\",IF(OR('Enrollment Form'!$B576<>\"Subscriber\",'Enrollment Form'!$C576=\"ROC\"),\"-\",IF(AND('Enrollment Form'!$B576=\"Subscriber\",'Enrollment Form'!$C576=\"Enroll\",'Enrollment Form'!$AK576<>\"\"),\"Y\",\"N\")))","v":""},{"$f":"IF($B569=\"N\",\"\",IF(OR('Enrollment Form'!$B576<>\"Subscriber\",'Enrollment Form'!$C576=\"ROC\"),\"-\",IF(AND('Enrollment Form'!$B576=\"Subscriber\",'Enrollment Form'!$C576=\"Enroll\",'Enrollment Form'!$AL576<>\"\"),\"Y\",\"N\")))","v":""},{"$f":"IF($B569=\"N\",\"\",IF(OR('Enrollment Form'!$B576<>\"Subscriber\",'Enrollment Form'!$C576=\"ROC\"),\"-\",IF(AND('Enrollment Form'!$B576=\"Subscriber\",'Enrollment Form'!$C576=\"Enroll\",'Enrollment Form'!$AP576<>\"\"),\"Y\",\"N\")))","v":""},{"$f":"IF($B569=\"N\",\"\",IF(OR('Enrollment Form'!$B576<>\"Subscriber\",'Enrollment Form'!$C576=\"ROC\"),\"-\",IF(AND('Enrollment Form'!$B576=\"Subscriber\",'Enrollment Form'!$C576=\"Enroll\",'Enrollment Form'!$AQ576<>\"\"),\"Y\",\"N\")))","v":""},{"$f":"IF($B569=\"N\",\"\",IF(OR('Enrollment Form'!$B576<>\"Subscriber\",'Enrollment Form'!$C576=\"ROC\"),\"-\",IF(AND('Enrollment Form'!$B576=\"Subscriber\",'Enrollment Form'!$C576=\"Enroll\",'Enrollment Form'!$AS576<>\"\"),\"Y\",\"N\")))","v":""},{"$f":"IF($B569=\"N\",\"\",IF($Q569=\"-\",\"-\",IF(AND($Q569=\"Y\",'Enrollment Form'!$AS576=\"No\"),\"-\",IF(AND($Q569=\"Y\",'Enrollment Form'!$AS576=\"Yes\",'Enrollment Form'!$AT576<>\"\"),\"Y\",\"N\"))))","v":""},{"$f":"IF($B569=\"N\",\"\",IF(OR('Enrollment Form'!$B576<>\"Subscriber\",'Enrollment Form'!$C576=\"ROC\"),\"-\",IF(AND('Enrollment Form'!$B576=\"Subscriber\",'Enrollment Form'!$C576=\"Enroll\",'Enrollment Form'!$CV576<>\"\"),\"Y\",\"N\")))","v":""},{"$f":"IF($B569=\"N\",\"\",IF($S569=\"-\",\"-\",IF(AND($S569=\"Y\",'Enrollment Form'!$CV576=\"No\"),\"-\",IF(AND($S569=\"Y\",'Enrollment Form'!$CV576=\"Yes\",'Enrollment Form'!$CW576<>\"\"),\"Y\",\"N\"))))","v":""},{"$f":"IF(OR('Enrollment Form'!$AY576=\"Yes\",'Enrollment Form'!$AY576=\"\"),\"-\",IF(OR(AND('Enrollment Form'!$AY576=\"No\",ISERROR(FIND(\"HMO\",VLOOKUP('Enrollment Form'!G576,'Enrollment Form'!H$11:J$1000,3,FALSE),1))=FALSE,COUNTA('Enrollment Form'!$AZ576:$BC576)=4),AND('Enrollment Form'!$AY576=\"No\",ISERROR(FIND(\"HMO\",VLOOKUP('Enrollment Form'!G576,'Enrollment Form'!H$11:J$1000,3,FALSE),1))=FALSE,COUNTA('Enrollment Form'!$BT576:$BW576)=4)),\"Y\",\"N\"))","v":"-"},{"$f":"IF($B569=\"N\",\"\",IF('Enrollment Form'!$B576=\"Subscriber\",\"-\",IF(COUNTA('Enrollment Form'!$BL576,'Enrollment Form'!$BN576)=2,\"Y\",\"N\")))","v":""},{"$f":"IF($B569=\"N\",\"\",IF(OR('Enrollment Form'!$AX576=\"\",'Enrollment Form'!$AX576=\"No\"),\"-\",IF(AND('Enrollment Form'!$AX576=\"Yes\",COUNTA('Enrollment Form'!$CR576)=1),\"Y\",\"N\")))","v":""},{"$f":"IF(OR('Enrollment Form'!$CR576=\"\",'Enrollment Form'!$CR576=\"No\"),\"-\",IF(COUNTA('Enrollment Form'!$CT576:$CU576)=2,\"Y\",\"N\"))","v":"-"},{"$f":"IF($B569=\"N\",\"\",IF(COUNTIF('Enrollment Form'!$DG576:$DP576,\"Other\")=COUNTA('Enrollment Form'!$DK576,'Enrollment Form'!$DH576,'Enrollment Form'!$DN576,'Enrollment Form'!$DQ576),\"Y\",\"N\"))","v":""},{"$f":"IF($B569=\"N\",\"\",IF(OR('Enrollment Form'!B576<>\"Subscriber\",'Enrollment Form'!C576=\"ROC\",COUNTIF('Enrollment Form'!AV576:AW576,\"Yes\")>=1),\"-\",IF(AND('Enrollment Form'!C576=\"Enroll\",COUNTIF('Enrollment Form'!AV576:AW576,\"No\")=2,'Enrollment Form'!AX576=\"\"),\"N\",\"Y\")))","v":""},{"$f":"IF(OR(B569=\"N\",'Enrollment Form'!B576<>\"Subscriber\",'Enrollment Form'!C576=\"ROC\",'Enrollment Form'!O576<>\"Multiple of Salary\"),\"-\",IF(COUNTA('Enrollment Form'!T576:U576)<2,\"N\",\"Y\"))","v":"-"},{"$f":"IF(B569=\"N\",\"\",IF(OR('Enrollment Form'!C576=\"ROC\",'Enrollment Form'!B576<>\"Subscriber\",'Enrollment Form'!O576=\"Waive\",'Enrollment Form'!O576=\"\"),\"-\",IF('Enrollment Form'!P576=\"\",\"N\",\"Y\")))","v":""},{"$f":"IF($B569=\"N\",\"\",IF(AND('Enrollment Form'!$C576=\"ROC\",'Enrollment Form'!$DR576<>\"\"),\"Y\",IF(AND('Enrollment Form'!$C576=\"ROC\",'Enrollment Form'!$DR576=\"\"),\"N\",IF(AND('Enrollment Form'!$C576=\"Enroll\",'Enrollment Form'!$B576=\"Subscriber\",'Enrollment Form'!$CX576=\"No\",'Enrollment Form'!$DR576=\"\"),\"N\",IF(AND('Enrollment Form'!$C576=\"Enroll\",'Enrollment Form'!$B576=\"Subscriber\",'Enrollment Form'!$CX576=\"Yes\"),\"-\",\"Y\")))))","v":""},{"$f":"IF($B569=\"N\",\"\",IF(AND('Enrollment Form'!$C576=\"ROC\",'Enrollment Form'!$DS576<>\"\"),\"Y\",IF(AND('Enrollment Form'!$C576=\"ROC\",'Enrollment Form'!$DS576=\"\"),\"N\",IF(AND('Enrollment Form'!$C576=\"Enroll\",'Enrollment Form'!$B576=\"Subscriber\",'Enrollment Form'!$CX576=\"No\",'Enrollment Form'!$DS576=\"\"),\"N\",IF(AND('Enrollment Form'!$C576=\"Enroll\",'Enrollment Form'!$B576=\"Subscriber\",'Enrollment Form'!$CX576=\"Yes\"),\"-\",\"Y\")))))","v":""},{"$f":"IF('Enrollment Form'!AH576=\"\",\"\",IF(ISERROR(SEARCH(\".\",'Enrollment Form'!AH576,SEARCH(\"@\",'Enrollment Form'!AH576))),\"N\",\"Y\"))","v":""},{"$f":"IF(OR($B569=\"N\",'Enrollment Form'!$G576=\"\"),\"\",IF('Enrollment Form'!$B576<>\"Subscriber\",\"-\",IF(COUNTIF('Enrollment Form'!$AV576:$AW576,\"Yes\")=2,\"N\",\"Y\")))","v":""},{"$f":"IF(OR('Enrollment Form'!$CJ576=\"\",'Enrollment Form'!$CJ576=\"No\"),\"-\",IF(AND('Enrollment Form'!$CJ576=\"Yes\",'Enrollment Form'!$CK576=\"\"),\"N\",\"Y\"))","v":"-"},{"$f":"IF(OR('Enrollment Form'!$CL576=\"\",'Enrollment Form'!$CL576=\"No\"),\"-\",IF(AND('Enrollment Form'!$CL576=\"Yes\",'Enrollment Form'!$CM576=\"\"),\"N\",\"Y\"))","v":"-"},{"$f":"IF(OR('Enrollment Form'!$CN576=\"\",'Enrollment Form'!$CN576=\"No\"),\"-\",IF(AND('Enrollment Form'!$CN576=\"Yes\",'Enrollment Form'!$CO576=\"\"),\"N\",\"Y\"))","v":"-"},{"$f":"IF(OR('Enrollment Form'!$CN576=\"\",'Enrollment Form'!$CN576=\"No\"),\"-\",IF(AND('Enrollment Form'!$CN576=\"Yes\",'Enrollment Form'!$CP576=\"\"),\"N\",\"Y\"))","v":"-"},{"$f":"IF('Enrollment Form'!B576<>\"Subscriber\",\"-\",IF(AND('Enrollment Form'!B576=\"Subscriber\",'Enrollment Form'!C576=\"Enroll\",'Enrollment Form'!AA576=\"\"),\"N\",\"Y\"))","v":"-"},{"$f":"IF(OR('Enrollment Form'!B576=\"Subscriber\",'Enrollment Form'!B576=\"\"),\"-\",IF('Enrollment Form'!BP576=\"\",\"N\",\"Y\"))","v":"-"},{"$f":"IF('Enrollment Form'!B576<>\"Subscriber\",\"-\",IF(AND('Enrollment Form'!B576=\"Subscriber\",'Enrollment Form'!G576=\"\"),\"N\",\"Y\"))","v":"-"},{"$f":"IF('Enrollment Form'!A576=\"\",\"\",IF('Enrollment Form'!B576=\"Subscriber\",\"-\",IF(AND('Enrollment Form'!B576<>\"Subscriber\",'Enrollment Form'!G576='Enrollment Form'!H576),\"N\",\"Y\")))","v":""},0]
[577,{"$f":"IF('Enrollment Form'!$A577<>\"\",\"Y\",\"N\")","v":"N"},{"$f":"IF(AND('Enrollment Form'!$B577=\"\",'Enrollment Form'!$C577<>\"\"),\"N\",IF($B570=\"N\",\"\",\"Y\"))","v":""},{"$f":"IF(OR($B570=\"N\",'Enrollment Form'!G577=\"\"),\"\",IF('Enrollment Form'!$B577<>\"Subscriber\",\"\",IF('Enrollment Form'!$G577='Enrollment Form'!$H577,\"Y\",\"N\")))","v":""},{"$f":"IF($B570=\"N\",\"\",IF(AND(COUNTIFS('Enrollment Form'!$H$11:$H$1000,'Enrollment Form'!$H577,'Enrollment Form'!$B$11:$B$1000,'Enrollment Form'!$B577)>1,'Enrollment Form'!$H577<>\"\"),\"N\",\"Y\"))","v":""},{"$f":"IF($B570=\"N\",\"\",IF(LEN('Enrollment Form'!$Y577)=0,\"\",IF(LEN('Enrollment Form'!$Y577)<>5,\"N\",\"Y\")))","v":""},{"$f":"IF($B570=\"N\",\"\",IF(LEN('Enrollment Form'!$AD577=0),\"\",IF(LEN('Enrollment Form'!$AD577)<>5,\"N\",\"Y\")))","v":""},{"$f":"IF($B570=\"N\",\"\",IF(LEN('Enrollment Form'!$BS577=0),\"\",IF(LEN('Enrollment Form'!$BS577)<>5,\"N\",\"Y\")))","v":""},{"$f":"IF($B570=\"N\",\"\",IF(LEN('Enrollment Form'!$AE577)=0,\"\",IF(LEN('Enrollment Form'!$AE577)<>10,\"N\",\"Y\")))","v":""},{"$f":"IF($B570=\"N\",\"\",IF(LEN('Enrollment Form'!$AF577)=0,\"\",IF(LEN('Enrollment Form'!$AF577)<>10,\"N\",\"Y\")))","v":""},{"$f":"IF('Enrollment Form'!$O577<>\"Graded\",\"-\",IF(AND('Enrollment Form'!$O577=\"Graded\",'Enrollment Form'!$AR577<>\"\"),\"Y\",\"N\"))","v":"-"},{"$f":"IF($B570=\"N\",\"\",IF(OR('Enrollment Form'!$B577<>\"Subscriber\",'Enrollment Form'!$C577=\"ROC\"),\"-\",IF(AND('Enrollment Form'!$B577=\"Subscriber\",'Enrollment Form'!$C577=\"Enroll\",'Enrollment Form'!$AJ577<>\"\"),\"Y\",\"N\")))","v":""},{"$f":"IF($B570=\"N\",\"\",IF(OR('Enrollment Form'!$B577<>\"Subscriber\",'Enrollment Form'!$C577=\"ROC\"),\"-\",IF(AND('Enrollment Form'!$B577=\"Subscriber\",'Enrollment Form'!$C577=\"Enroll\",'Enrollment Form'!$AK577<>\"\"),\"Y\",\"N\")))","v":""},{"$f":"IF($B570=\"N\",\"\",IF(OR('Enrollment Form'!$B577<>\"Subscriber\",'Enrollment Form'!$C577=\"ROC\"),\"-\",IF(AND('Enrollment Form'!$B577=\"Subscriber\",'Enrollment Form'!$C577=\"Enroll\",'Enrollment Form'!$AL577<>\"\"),\"Y\",\"N\")))","v":""},{"$f":"IF($B570=\"N\",\"\",IF(OR('Enrollment Form'!$B577<>\"Subscriber\",'Enrollment Form'!$C577=\"ROC\"),\"-\",IF(AND('Enrollment Form'!$B577=\"Subscriber\",'Enrollment Form'!$C577=\"Enroll\",'Enrollment Form'!$AP577<>\"\"),\"Y\",\"N\")))","v":""},{"$f":"IF($B570=\"N\",\"\",IF(OR('Enrollment Form'!$B577<>\"Subscriber\",'Enrollment Form'!$C577=\"ROC\"),\"-\",IF(AND('Enrollment Form'!$B577=\"Subscriber\",'Enrollment Form'!$C577=\"Enroll\",'Enrollment Form'!$AQ577<>\"\"),\"Y\",\"N\")))","v":""},{"$f":"IF($B570=\"N\",\"\",IF(OR('Enrollment Form'!$B577<>\"Subscriber\",'Enrollment Form'!$C577=\"ROC\"),\"-\",IF(AND('Enrollment Form'!$B577=\"Subscriber\",'Enrollment Form'!$C577=\"Enroll\",'Enrollment Form'!$AS577<>\"\"),\"Y\",\"N\")))","v":""},{"$f":"IF($B570=\"N\",\"\",IF($Q570=\"-\",\"-\",IF(AND($Q570=\"Y\",'Enrollment Form'!$AS577=\"No\"),\"-\",IF(AND($Q570=\"Y\",'Enrollment Form'!$AS577=\"Yes\",'Enrollment Form'!$AT577<>\"\"),\"Y\",\"N\"))))","v":""},{"$f":"IF($B570=\"N\",\"\",IF(OR('Enrollment Form'!$B577<>\"Subscriber\",'Enrollment Form'!$C577=\"ROC\"),\"-\",IF(AND('Enrollment Form'!$B577=\"Subscriber\",'Enrollment Form'!$C577=\"Enroll\",'Enrollment Form'!$CV577<>\"\"),\"Y\",\"N\")))","v":""},{"$f":"IF($B570=\"N\",\"\",IF($S570=\"-\",\"-\",IF(AND($S570=\"Y\",'Enrollment Form'!$CV577=\"No\"),\"-\",IF(AND($S570=\"Y\",'Enrollment Form'!$CV577=\"Yes\",'Enrollment Form'!$CW577<>\"\"),\"Y\",\"N\"))))","v":""},{"$f":"IF(OR('Enrollment Form'!$AY577=\"Yes\",'Enrollment Form'!$AY577=\"\"),\"-\",IF(OR(AND('Enrollment Form'!$AY577=\"No\",ISERROR(FIND(\"HMO\",VLOOKUP('Enrollment Form'!G577,'Enrollment Form'!H$11:J$1000,3,FALSE),1))=FALSE,COUNTA('Enrollment Form'!$AZ577:$BC577)=4),AND('Enrollment Form'!$AY577=\"No\",ISERROR(FIND(\"HMO\",VLOOKUP('Enrollment Form'!G577,'Enrollment Form'!H$11:J$1000,3,FALSE),1))=FALSE,COUNTA('Enrollment Form'!$BT577:$BW577)=4)),\"Y\",\"N\"))","v":"-"},{"$f":"IF($B570=\"N\",\"\",IF('Enrollment Form'!$B577=\"Subscriber\",\"-\",IF(COUNTA('Enrollment Form'!$BL577,'Enrollment Form'!$BN577)=2,\"Y\",\"N\")))","v":""},{"$f":"IF($B570=\"N\",\"\",IF(OR('Enrollment Form'!$AX577=\"\",'Enrollment Form'!$AX577=\"No\"),\"-\",IF(AND('Enrollment Form'!$AX577=\"Yes\",COUNTA('Enrollment Form'!$CR577)=1),\"Y\",\"N\")))","v":""},{"$f":"IF(OR('Enrollment Form'!$CR577=\"\",'Enrollment Form'!$CR577=\"No\"),\"-\",IF(COUNTA('Enrollment Form'!$CT577:$CU577)=2,\"Y\",\"N\"))","v":"-"},{"$f":"IF($B570=\"N\",\"\",IF(COUNTIF('Enrollment Form'!$DG577:$DP577,\"Other\")=COUNTA('Enrollment Form'!$DK577,'Enrollment Form'!$DH577,'Enrollment Form'!$DN577,'Enrollment Form'!$DQ577),\"Y\",\"N\"))","v":""},{"$f":"IF($B570=\"N\",\"\",IF(OR('Enrollment Form'!B577<>\"Subscriber\",'Enrollment Form'!C577=\"ROC\",COUNTIF('Enrollment Form'!AV577:AW577,\"Yes\")>=1),\"-\",IF(AND('Enrollment Form'!C577=\"Enroll\",COUNTIF('Enrollment Form'!AV577:AW577,\"No\")=2,'Enrollment Form'!AX577=\"\"),\"N\",\"Y\")))","v":""},{"$f":"IF(OR(B570=\"N\",'Enrollment Form'!B577<>\"Subscriber\",'Enrollment Form'!C577=\"ROC\",'Enrollment Form'!O577<>\"Multiple of Salary\"),\"-\",IF(COUNTA('Enrollment Form'!T577:U577)<2,\"N\",\"Y\"))","v":"-"},{"$f":"IF(B570=\"N\",\"\",IF(OR('Enrollment Form'!C577=\"ROC\",'Enrollment Form'!B577<>\"Subscriber\",'Enrollment Form'!O577=\"Waive\",'Enrollment Form'!O577=\"\"),\"-\",IF('Enrollment Form'!P577=\"\",\"N\",\"Y\")))","v":""},{"$f":"IF($B570=\"N\",\"\",IF(AND('Enrollment Form'!$C577=\"ROC\",'Enrollment Form'!$DR577<>\"\"),\"Y\",IF(AND('Enrollment Form'!$C577=\"ROC\",'Enrollment Form'!$DR577=\"\"),\"N\",IF(AND('Enrollment Form'!$C577=\"Enroll\",'Enrollment Form'!$B577=\"Subscriber\",'Enrollment Form'!$CX577=\"No\",'Enrollment Form'!$DR577=\"\"),\"N\",IF(AND('Enrollment Form'!$C577=\"Enroll\",'Enrollment Form'!$B577=\"Subscriber\",'Enrollment Form'!$CX577=\"Yes\"),\"-\",\"Y\")))))","v":""},{"$f":"IF($B570=\"N\",\"\",IF(AND('Enrollment Form'!$C577=\"ROC\",'Enrollment Form'!$DS577<>\"\"),\"Y\",IF(AND('Enrollment Form'!$C577=\"ROC\",'Enrollment Form'!$DS577=\"\"),\"N\",IF(AND('Enrollment Form'!$C577=\"Enroll\",'Enrollment Form'!$B577=\"Subscriber\",'Enrollment Form'!$CX577=\"No\",'Enrollment Form'!$DS577=\"\"),\"N\",IF(AND('Enrollment Form'!$C577=\"Enroll\",'Enrollment Form'!$B577=\"Subscriber\",'Enrollment Form'!$CX577=\"Yes\"),\"-\",\"Y\")))))","v":""},{"$f":"IF('Enrollment Form'!AH577=\"\",\"\",IF(ISERROR(SEARCH(\".\",'Enrollment Form'!AH577,SEARCH(\"@\",'Enrollment Form'!AH577))),\"N\",\"Y\"))","v":""},{"$f":"IF(OR($B570=\"N\",'Enrollment Form'!$G577=\"\"),\"\",IF('Enrollment Form'!$B577<>\"Subscriber\",\"-\",IF(COUNTIF('Enrollment Form'!$AV577:$AW577,\"Yes\")=2,\"N\",\"Y\")))","v":""},{"$f":"IF(OR('Enrollment Form'!$CJ577=\"\",'Enrollment Form'!$CJ577=\"No\"),\"-\",IF(AND('Enrollment Form'!$CJ577=\"Yes\",'Enrollment Form'!$CK577=\"\"),\"N\",\"Y\"))","v":"-"},{"$f":"IF(OR('Enrollment Form'!$CL577=\"\",'Enrollment Form'!$CL577=\"No\"),\"-\",IF(AND('Enrollment Form'!$CL577=\"Yes\",'Enrollment Form'!$CM577=\"\"),\"N\",\"Y\"))","v":"-"},{"$f":"IF(OR('Enrollment Form'!$CN577=\"\",'Enrollment Form'!$CN577=\"No\"),\"-\",IF(AND('Enrollment Form'!$CN577=\"Yes\",'Enrollment Form'!$CO577=\"\"),\"N\",\"Y\"))","v":"-"},{"$f":"IF(OR('Enrollment Form'!$CN577=\"\",'Enrollment Form'!$CN577=\"No\"),\"-\",IF(AND('Enrollment Form'!$CN577=\"Yes\",'Enrollment Form'!$CP577=\"\"),\"N\",\"Y\"))","v":"-"},{"$f":"IF('Enrollment Form'!B577<>\"Subscriber\",\"-\",IF(AND('Enrollment Form'!B577=\"Subscriber\",'Enrollment Form'!C577=\"Enroll\",'Enrollment Form'!AA577=\"\"),\"N\",\"Y\"))","v":"-"},{"$f":"IF(OR('Enrollment Form'!B577=\"Subscriber\",'Enrollment Form'!B577=\"\"),\"-\",IF('Enrollment Form'!BP577=\"\",\"N\",\"Y\"))","v":"-"},{"$f":"IF('Enrollment Form'!B577<>\"Subscriber\",\"-\",IF(AND('Enrollment Form'!B577=\"Subscriber\",'Enrollment Form'!G577=\"\"),\"N\",\"Y\"))","v":"-"},{"$f":"IF('Enrollment Form'!A577=\"\",\"\",IF('Enrollment Form'!B577=\"Subscriber\",\"-\",IF(AND('Enrollment Form'!B577<>\"Subscriber\",'Enrollment Form'!G577='Enrollment Form'!H577),\"N\",\"Y\")))","v":""},0]
[578,{"$f":"IF('Enrollment Form'!$A578<>\"\",\"Y\",\"N\")","v":"N"},{"$f":"IF(AND('Enrollment Form'!$B578=\"\",'Enrollment Form'!$C578<>\"\"),\"N\",IF($B571=\"N\",\"\",\"Y\"))","v":""},{"$f":"IF(OR($B571=\"N\",'Enrollment Form'!G578=\"\"),\"\",IF('Enrollment Form'!$B578<>\"Subscriber\",\"\",IF('Enrollment Form'!$G578='Enrollment Form'!$H578,\"Y\",\"N\")))","v":""},{"$f":"IF($B571=\"N\",\"\",IF(AND(COUNTIFS('Enrollment Form'!$H$11:$H$1000,'Enrollment Form'!$H578,'Enrollment Form'!$B$11:$B$1000,'Enrollment Form'!$B578)>1,'Enrollment Form'!$H578<>\"\"),\"N\",\"Y\"))","v":""},{"$f":"IF($B571=\"N\",\"\",IF(LEN('Enrollment Form'!$Y578)=0,\"\",IF(LEN('Enrollment Form'!$Y578)<>5,\"N\",\"Y\")))","v":""},{"$f":"IF($B571=\"N\",\"\",IF(LEN('Enrollment Form'!$AD578=0),\"\",IF(LEN('Enrollment Form'!$AD578)<>5,\"N\",\"Y\")))","v":""},{"$f":"IF($B571=\"N\",\"\",IF(LEN('Enrollment Form'!$BS578=0),\"\",IF(LEN('Enrollment Form'!$BS578)<>5,\"N\",\"Y\")))","v":""},{"$f":"IF($B571=\"N\",\"\",IF(LEN('Enrollment Form'!$AE578)=0,\"\",IF(LEN('Enrollment Form'!$AE578)<>10,\"N\",\"Y\")))","v":""},{"$f":"IF($B571=\"N\",\"\",IF(LEN('Enrollment Form'!$AF578)=0,\"\",IF(LEN('Enrollment Form'!$AF578)<>10,\"N\",\"Y\")))","v":""},{"$f":"IF('Enrollment Form'!$O578<>\"Graded\",\"-\",IF(AND('Enrollment Form'!$O578=\"Graded\",'Enrollment Form'!$AR578<>\"\"),\"Y\",\"N\"))","v":"-"},{"$f":"IF($B571=\"N\",\"\",IF(OR('Enrollment Form'!$B578<>\"Subscriber\",'Enrollment Form'!$C578=\"ROC\"),\"-\",IF(AND('Enrollment Form'!$B578=\"Subscriber\",'Enrollment Form'!$C578=\"Enroll\",'Enrollment Form'!$AJ578<>\"\"),\"Y\",\"N\")))","v":""},{"$f":"IF($B571=\"N\",\"\",IF(OR('Enrollment Form'!$B578<>\"Subscriber\",'Enrollment Form'!$C578=\"ROC\"),\"-\",IF(AND('Enrollment Form'!$B578=\"Subscriber\",'Enrollment Form'!$C578=\"Enroll\",'Enrollment Form'!$AK578<>\"\"),\"Y\",\"N\")))","v":""},{"$f":"IF($B571=\"N\",\"\",IF(OR('Enrollment Form'!$B578<>\"Subscriber\",'Enrollment Form'!$C578=\"ROC\"),\"-\",IF(AND('Enrollment Form'!$B578=\"Subscriber\",'Enrollment Form'!$C578=\"Enroll\",'Enrollment Form'!$AL578<>\"\"),\"Y\",\"N\")))","v":""},{"$f":"IF($B571=\"N\",\"\",IF(OR('Enrollment Form'!$B578<>\"Subscriber\",'Enrollment Form'!$C578=\"ROC\"),\"-\",IF(AND('Enrollment Form'!$B578=\"Subscriber\",'Enrollment Form'!$C578=\"Enroll\",'Enrollment Form'!$AP578<>\"\"),\"Y\",\"N\")))","v":""},{"$f":"IF($B571=\"N\",\"\",IF(OR('Enrollment Form'!$B578<>\"Subscriber\",'Enrollment Form'!$C578=\"ROC\"),\"-\",IF(AND('Enrollment Form'!$B578=\"Subscriber\",'Enrollment Form'!$C578=\"Enroll\",'Enrollment Form'!$AQ578<>\"\"),\"Y\",\"N\")))","v":""},{"$f":"IF($B571=\"N\",\"\",IF(OR('Enrollment Form'!$B578<>\"Subscriber\",'Enrollment Form'!$C578=\"ROC\"),\"-\",IF(AND('Enrollment Form'!$B578=\"Subscriber\",'Enrollment Form'!$C578=\"Enroll\",'Enrollment Form'!$AS578<>\"\"),\"Y\",\"N\")))","v":""},{"$f":"IF($B571=\"N\",\"\",IF($Q571=\"-\",\"-\",IF(AND($Q571=\"Y\",'Enrollment Form'!$AS578=\"No\"),\"-\",IF(AND($Q571=\"Y\",'Enrollment Form'!$AS578=\"Yes\",'Enrollment Form'!$AT578<>\"\"),\"Y\",\"N\"))))","v":""},{"$f":"IF($B571=\"N\",\"\",IF(OR('Enrollment Form'!$B578<>\"Subscriber\",'Enrollment Form'!$C578=\"ROC\"),\"-\",IF(AND('Enrollment Form'!$B578=\"Subscriber\",'Enrollment Form'!$C578=\"Enroll\",'Enrollment Form'!$CV578<>\"\"),\"Y\",\"N\")))","v":""},{"$f":"IF($B571=\"N\",\"\",IF($S571=\"-\",\"-\",IF(AND($S571=\"Y\",'Enrollment Form'!$CV578=\"No\"),\"-\",IF(AND($S571=\"Y\",'Enrollment Form'!$CV578=\"Yes\",'Enrollment Form'!$CW578<>\"\"),\"Y\",\"N\"))))","v":""},{"$f":"IF(OR('Enrollment Form'!$AY578=\"Yes\",'Enrollment Form'!$AY578=\"\"),\"-\",IF(OR(AND('Enrollment Form'!$AY578=\"No\",ISERROR(FIND(\"HMO\",VLOOKUP('Enrollment Form'!G578,'Enrollment Form'!H$11:J$1000,3,FALSE),1))=FALSE,COUNTA('Enrollment Form'!$AZ578:$BC578)=4),AND('Enrollment Form'!$AY578=\"No\",ISERROR(FIND(\"HMO\",VLOOKUP('Enrollment Form'!G578,'Enrollment Form'!H$11:J$1000,3,FALSE),1))=FALSE,COUNTA('Enrollment Form'!$BT578:$BW578)=4)),\"Y\",\"N\"))","v":"-"},{"$f":"IF($B571=\"N\",\"\",IF('Enrollment Form'!$B578=\"Subscriber\",\"-\",IF(COUNTA('Enrollment Form'!$BL578,'Enrollment Form'!$BN578)=2,\"Y\",\"N\")))","v":""},{"$f":"IF($B571=\"N\",\"\",IF(OR('Enrollment Form'!$AX578=\"\",'Enrollment Form'!$AX578=\"No\"),\"-\",IF(AND('Enrollment Form'!$AX578=\"Yes\",COUNTA('Enrollment Form'!$CR578)=1),\"Y\",\"N\")))","v":""},{"$f":"IF(OR('Enrollment Form'!$CR578=\"\",'Enrollment Form'!$CR578=\"No\"),\"-\",IF(COUNTA('Enrollment Form'!$CT578:$CU578)=2,\"Y\",\"N\"))","v":"-"},{"$f":"IF($B571=\"N\",\"\",IF(COUNTIF('Enrollment Form'!$DG578:$DP578,\"Other\")=COUNTA('Enrollment Form'!$DK578,'Enrollment Form'!$DH578,'Enrollment Form'!$DN578,'Enrollment Form'!$DQ578),\"Y\",\"N\"))","v":""},{"$f":"IF($B571=\"N\",\"\",IF(OR('Enrollment Form'!B578<>\"Subscriber\",'Enrollment Form'!C578=\"ROC\",COUNTIF('Enrollment Form'!AV578:AW578,\"Yes\")>=1),\"-\",IF(AND('Enrollment Form'!C578=\"Enroll\",COUNTIF('Enrollment Form'!AV578:AW578,\"No\")=2,'Enrollment Form'!AX578=\"\"),\"N\",\"Y\")))","v":""},{"$f":"IF(OR(B571=\"N\",'Enrollment Form'!B578<>\"Subscriber\",'Enrollment Form'!C578=\"ROC\",'Enrollment Form'!O578<>\"Multiple of Salary\"),\"-\",IF(COUNTA('Enrollment Form'!T578:U578)<2,\"N\",\"Y\"))","v":"-"},{"$f":"IF(B571=\"N\",\"\",IF(OR('Enrollment Form'!C578=\"ROC\",'Enrollment Form'!B578<>\"Subscriber\",'Enrollment Form'!O578=\"Waive\",'Enrollment Form'!O578=\"\"),\"-\",IF('Enrollment Form'!P578=\"\",\"N\",\"Y\")))","v":""},{"$f":"IF($B571=\"N\",\"\",IF(AND('Enrollment Form'!$C578=\"ROC\",'Enrollment Form'!$DR578<>\"\"),\"Y\",IF(AND('Enrollment Form'!$C578=\"ROC\",'Enrollment Form'!$DR578=\"\"),\"N\",IF(AND('Enrollment Form'!$C578=\"Enroll\",'Enrollment Form'!$B578=\"Subscriber\",'Enrollment Form'!$CX578=\"No\",'Enrollment Form'!$DR578=\"\"),\"N\",IF(AND('Enrollment Form'!$C578=\"Enroll\",'Enrollment Form'!$B578=\"Subscriber\",'Enrollment Form'!$CX578=\"Yes\"),\"-\",\"Y\")))))","v":""},{"$f":"IF($B571=\"N\",\"\",IF(AND('Enrollment Form'!$C578=\"ROC\",'Enrollment Form'!$DS578<>\"\"),\"Y\",IF(AND('Enrollment Form'!$C578=\"ROC\",'Enrollment Form'!$DS578=\"\"),\"N\",IF(AND('Enrollment Form'!$C578=\"Enroll\",'Enrollment Form'!$B578=\"Subscriber\",'Enrollment Form'!$CX578=\"No\",'Enrollment Form'!$DS578=\"\"),\"N\",IF(AND('Enrollment Form'!$C578=\"Enroll\",'Enrollment Form'!$B578=\"Subscriber\",'Enrollment Form'!$CX578=\"Yes\"),\"-\",\"Y\")))))","v":""},{"$f":"IF('Enrollment Form'!AH578=\"\",\"\",IF(ISERROR(SEARCH(\".\",'Enrollment Form'!AH578,SEARCH(\"@\",'Enrollment Form'!AH578))),\"N\",\"Y\"))","v":""},{"$f":"IF(OR($B571=\"N\",'Enrollment Form'!$G578=\"\"),\"\",IF('Enrollment Form'!$B578<>\"Subscriber\",\"-\",IF(COUNTIF('Enrollment Form'!$AV578:$AW578,\"Yes\")=2,\"N\",\"Y\")))","v":""},{"$f":"IF(OR('Enrollment Form'!$CJ578=\"\",'Enrollment Form'!$CJ578=\"No\"),\"-\",IF(AND('Enrollment Form'!$CJ578=\"Yes\",'Enrollment Form'!$CK578=\"\"),\"N\",\"Y\"))","v":"-"},{"$f":"IF(OR('Enrollment Form'!$CL578=\"\",'Enrollment Form'!$CL578=\"No\"),\"-\",IF(AND('Enrollment Form'!$CL578=\"Yes\",'Enrollment Form'!$CM578=\"\"),\"N\",\"Y\"))","v":"-"},{"$f":"IF(OR('Enrollment Form'!$CN578=\"\",'Enrollment Form'!$CN578=\"No\"),\"-\",IF(AND('Enrollment Form'!$CN578=\"Yes\",'Enrollment Form'!$CO578=\"\"),\"N\",\"Y\"))","v":"-"},{"$f":"IF(OR('Enrollment Form'!$CN578=\"\",'Enrollment Form'!$CN578=\"No\"),\"-\",IF(AND('Enrollment Form'!$CN578=\"Yes\",'Enrollment Form'!$CP578=\"\"),\"N\",\"Y\"))","v":"-"},{"$f":"IF('Enrollment Form'!B578<>\"Subscriber\",\"-\",IF(AND('Enrollment Form'!B578=\"Subscriber\",'Enrollment Form'!C578=\"Enroll\",'Enrollment Form'!AA578=\"\"),\"N\",\"Y\"))","v":"-"},{"$f":"IF(OR('Enrollment Form'!B578=\"Subscriber\",'Enrollment Form'!B578=\"\"),\"-\",IF('Enrollment Form'!BP578=\"\",\"N\",\"Y\"))","v":"-"},{"$f":"IF('Enrollment Form'!B578<>\"Subscriber\",\"-\",IF(AND('Enrollment Form'!B578=\"Subscriber\",'Enrollment Form'!G578=\"\"),\"N\",\"Y\"))","v":"-"},{"$f":"IF('Enrollment Form'!A578=\"\",\"\",IF('Enrollment Form'!B578=\"Subscriber\",\"-\",IF(AND('Enrollment Form'!B578<>\"Subscriber\",'Enrollment Form'!G578='Enrollment Form'!H578),\"N\",\"Y\")))","v":""},0]
[579,{"$f":"IF('Enrollment Form'!$A579<>\"\",\"Y\",\"N\")","v":"N"},{"$f":"IF(AND('Enrollment Form'!$B579=\"\",'Enrollment Form'!$C579<>\"\"),\"N\",IF($B572=\"N\",\"\",\"Y\"))","v":""},{"$f":"IF(OR($B572=\"N\",'Enrollment Form'!G579=\"\"),\"\",IF('Enrollment Form'!$B579<>\"Subscriber\",\"\",IF('Enrollment Form'!$G579='Enrollment Form'!$H579,\"Y\",\"N\")))","v":""},{"$f":"IF($B572=\"N\",\"\",IF(AND(COUNTIFS('Enrollment Form'!$H$11:$H$1000,'Enrollment Form'!$H579,'Enrollment Form'!$B$11:$B$1000,'Enrollment Form'!$B579)>1,'Enrollment Form'!$H579<>\"\"),\"N\",\"Y\"))","v":""},{"$f":"IF($B572=\"N\",\"\",IF(LEN('Enrollment Form'!$Y579)=0,\"\",IF(LEN('Enrollment Form'!$Y579)<>5,\"N\",\"Y\")))","v":""},{"$f":"IF($B572=\"N\",\"\",IF(LEN('Enrollment Form'!$AD579=0),\"\",IF(LEN('Enrollment Form'!$AD579)<>5,\"N\",\"Y\")))","v":""},{"$f":"IF($B572=\"N\",\"\",IF(LEN('Enrollment Form'!$BS579=0),\"\",IF(LEN('Enrollment Form'!$BS579)<>5,\"N\",\"Y\")))","v":""},{"$f":"IF($B572=\"N\",\"\",IF(LEN('Enrollment Form'!$AE579)=0,\"\",IF(LEN('Enrollment Form'!$AE579)<>10,\"N\",\"Y\")))","v":""},{"$f":"IF($B572=\"N\",\"\",IF(LEN('Enrollment Form'!$AF579)=0,\"\",IF(LEN('Enrollment Form'!$AF579)<>10,\"N\",\"Y\")))","v":""},{"$f":"IF('Enrollment Form'!$O579<>\"Graded\",\"-\",IF(AND('Enrollment Form'!$O579=\"Graded\",'Enrollment Form'!$AR579<>\"\"),\"Y\",\"N\"))","v":"-"},{"$f":"IF($B572=\"N\",\"\",IF(OR('Enrollment Form'!$B579<>\"Subscriber\",'Enrollment Form'!$C579=\"ROC\"),\"-\",IF(AND('Enrollment Form'!$B579=\"Subscriber\",'Enrollment Form'!$C579=\"Enroll\",'Enrollment Form'!$AJ579<>\"\"),\"Y\",\"N\")))","v":""},{"$f":"IF($B572=\"N\",\"\",IF(OR('Enrollment Form'!$B579<>\"Subscriber\",'Enrollment Form'!$C579=\"ROC\"),\"-\",IF(AND('Enrollment Form'!$B579=\"Subscriber\",'Enrollment Form'!$C579=\"Enroll\",'Enrollment Form'!$AK579<>\"\"),\"Y\",\"N\")))","v":""},{"$f":"IF($B572=\"N\",\"\",IF(OR('Enrollment Form'!$B579<>\"Subscriber\",'Enrollment Form'!$C579=\"ROC\"),\"-\",IF(AND('Enrollment Form'!$B579=\"Subscriber\",'Enrollment Form'!$C579=\"Enroll\",'Enrollment Form'!$AL579<>\"\"),\"Y\",\"N\")))","v":""},{"$f":"IF($B572=\"N\",\"\",IF(OR('Enrollment Form'!$B579<>\"Subscriber\",'Enrollment Form'!$C579=\"ROC\"),\"-\",IF(AND('Enrollment Form'!$B579=\"Subscriber\",'Enrollment Form'!$C579=\"Enroll\",'Enrollment Form'!$AP579<>\"\"),\"Y\",\"N\")))","v":""},{"$f":"IF($B572=\"N\",\"\",IF(OR('Enrollment Form'!$B579<>\"Subscriber\",'Enrollment Form'!$C579=\"ROC\"),\"-\",IF(AND('Enrollment Form'!$B579=\"Subscriber\",'Enrollment Form'!$C579=\"Enroll\",'Enrollment Form'!$AQ579<>\"\"),\"Y\",\"N\")))","v":""},{"$f":"IF($B572=\"N\",\"\",IF(OR('Enrollment Form'!$B579<>\"Subscriber\",'Enrollment Form'!$C579=\"ROC\"),\"-\",IF(AND('Enrollment Form'!$B579=\"Subscriber\",'Enrollment Form'!$C579=\"Enroll\",'Enrollment Form'!$AS579<>\"\"),\"Y\",\"N\")))","v":""},{"$f":"IF($B572=\"N\",\"\",IF($Q572=\"-\",\"-\",IF(AND($Q572=\"Y\",'Enrollment Form'!$AS579=\"No\"),\"-\",IF(AND($Q572=\"Y\",'Enrollment Form'!$AS579=\"Yes\",'Enrollment Form'!$AT579<>\"\"),\"Y\",\"N\"))))","v":""},{"$f":"IF($B572=\"N\",\"\",IF(OR('Enrollment Form'!$B579<>\"Subscriber\",'Enrollment Form'!$C579=\"ROC\"),\"-\",IF(AND('Enrollment Form'!$B579=\"Subscriber\",'Enrollment Form'!$C579=\"Enroll\",'Enrollment Form'!$CV579<>\"\"),\"Y\",\"N\")))","v":""},{"$f":"IF($B572=\"N\",\"\",IF($S572=\"-\",\"-\",IF(AND($S572=\"Y\",'Enrollment Form'!$CV579=\"No\"),\"-\",IF(AND($S572=\"Y\",'Enrollment Form'!$CV579=\"Yes\",'Enrollment Form'!$CW579<>\"\"),\"Y\",\"N\"))))","v":""},{"$f":"IF(OR('Enrollment Form'!$AY579=\"Yes\",'Enrollment Form'!$AY579=\"\"),\"-\",IF(OR(AND('Enrollment Form'!$AY579=\"No\",ISERROR(FIND(\"HMO\",VLOOKUP('Enrollment Form'!G579,'Enrollment Form'!H$11:J$1000,3,FALSE),1))=FALSE,COUNTA('Enrollment Form'!$AZ579:$BC579)=4),AND('Enrollment Form'!$AY579=\"No\",ISERROR(FIND(\"HMO\",VLOOKUP('Enrollment Form'!G579,'Enrollment Form'!H$11:J$1000,3,FALSE),1))=FALSE,COUNTA('Enrollment Form'!$BT579:$BW579)=4)),\"Y\",\"N\"))","v":"-"},{"$f":"IF($B572=\"N\",\"\",IF('Enrollment Form'!$B579=\"Subscriber\",\"-\",IF(COUNTA('Enrollment Form'!$BL579,'Enrollment Form'!$BN579)=2,\"Y\",\"N\")))","v":""},{"$f":"IF($B572=\"N\",\"\",IF(OR('Enrollment Form'!$AX579=\"\",'Enrollment Form'!$AX579=\"No\"),\"-\",IF(AND('Enrollment Form'!$AX579=\"Yes\",COUNTA('Enrollment Form'!$CR579)=1),\"Y\",\"N\")))","v":""},{"$f":"IF(OR('Enrollment Form'!$CR579=\"\",'Enrollment Form'!$CR579=\"No\"),\"-\",IF(COUNTA('Enrollment Form'!$CT579:$CU579)=2,\"Y\",\"N\"))","v":"-"},{"$f":"IF($B572=\"N\",\"\",IF(COUNTIF('Enrollment Form'!$DG579:$DP579,\"Other\")=COUNTA('Enrollment Form'!$DK579,'Enrollment Form'!$DH579,'Enrollment Form'!$DN579,'Enrollment Form'!$DQ579),\"Y\",\"N\"))","v":""},{"$f":"IF($B572=\"N\",\"\",IF(OR('Enrollment Form'!B579<>\"Subscriber\",'Enrollment Form'!C579=\"ROC\",COUNTIF('Enrollment Form'!AV579:AW579,\"Yes\")>=1),\"-\",IF(AND('Enrollment Form'!C579=\"Enroll\",COUNTIF('Enrollment Form'!AV579:AW579,\"No\")=2,'Enrollment Form'!AX579=\"\"),\"N\",\"Y\")))","v":""},{"$f":"IF(OR(B572=\"N\",'Enrollment Form'!B579<>\"Subscriber\",'Enrollment Form'!C579=\"ROC\",'Enrollment Form'!O579<>\"Multiple of Salary\"),\"-\",IF(COUNTA('Enrollment Form'!T579:U579)<2,\"N\",\"Y\"))","v":"-"},{"$f":"IF(B572=\"N\",\"\",IF(OR('Enrollment Form'!C579=\"ROC\",'Enrollment Form'!B579<>\"Subscriber\",'Enrollment Form'!O579=\"Waive\",'Enrollment Form'!O579=\"\"),\"-\",IF('Enrollment Form'!P579=\"\",\"N\",\"Y\")))","v":""},{"$f":"IF($B572=\"N\",\"\",IF(AND('Enrollment Form'!$C579=\"ROC\",'Enrollment Form'!$DR579<>\"\"),\"Y\",IF(AND('Enrollment Form'!$C579=\"ROC\",'Enrollment Form'!$DR579=\"\"),\"N\",IF(AND('Enrollment Form'!$C579=\"Enroll\",'Enrollment Form'!$B579=\"Subscriber\",'Enrollment Form'!$CX579=\"No\",'Enrollment Form'!$DR579=\"\"),\"N\",IF(AND('Enrollment Form'!$C579=\"Enroll\",'Enrollment Form'!$B579=\"Subscriber\",'Enrollment Form'!$CX579=\"Yes\"),\"-\",\"Y\")))))","v":""},{"$f":"IF($B572=\"N\",\"\",IF(AND('Enrollment Form'!$C579=\"ROC\",'Enrollment Form'!$DS579<>\"\"),\"Y\",IF(AND('Enrollment Form'!$C579=\"ROC\",'Enrollment Form'!$DS579=\"\"),\"N\",IF(AND('Enrollment Form'!$C579=\"Enroll\",'Enrollment Form'!$B579=\"Subscriber\",'Enrollment Form'!$CX579=\"No\",'Enrollment Form'!$DS579=\"\"),\"N\",IF(AND('Enrollment Form'!$C579=\"Enroll\",'Enrollment Form'!$B579=\"Subscriber\",'Enrollment Form'!$CX579=\"Yes\"),\"-\",\"Y\")))))","v":""},{"$f":"IF('Enrollment Form'!AH579=\"\",\"\",IF(ISERROR(SEARCH(\".\",'Enrollment Form'!AH579,SEARCH(\"@\",'Enrollment Form'!AH579))),\"N\",\"Y\"))","v":""},{"$f":"IF(OR($B572=\"N\",'Enrollment Form'!$G579=\"\"),\"\",IF('Enrollment Form'!$B579<>\"Subscriber\",\"-\",IF(COUNTIF('Enrollment Form'!$AV579:$AW579,\"Yes\")=2,\"N\",\"Y\")))","v":""},{"$f":"IF(OR('Enrollment Form'!$CJ579=\"\",'Enrollment Form'!$CJ579=\"No\"),\"-\",IF(AND('Enrollment Form'!$CJ579=\"Yes\",'Enrollment Form'!$CK579=\"\"),\"N\",\"Y\"))","v":"-"},{"$f":"IF(OR('Enrollment Form'!$CL579=\"\",'Enrollment Form'!$CL579=\"No\"),\"-\",IF(AND('Enrollment Form'!$CL579=\"Yes\",'Enrollment Form'!$CM579=\"\"),\"N\",\"Y\"))","v":"-"},{"$f":"IF(OR('Enrollment Form'!$CN579=\"\",'Enrollment Form'!$CN579=\"No\"),\"-\",IF(AND('Enrollment Form'!$CN579=\"Yes\",'Enrollment Form'!$CO579=\"\"),\"N\",\"Y\"))","v":"-"},{"$f":"IF(OR('Enrollment Form'!$CN579=\"\",'Enrollment Form'!$CN579=\"No\"),\"-\",IF(AND('Enrollment Form'!$CN579=\"Yes\",'Enrollment Form'!$CP579=\"\"),\"N\",\"Y\"))","v":"-"},{"$f":"IF('Enrollment Form'!B579<>\"Subscriber\",\"-\",IF(AND('Enrollment Form'!B579=\"Subscriber\",'Enrollment Form'!C579=\"Enroll\",'Enrollment Form'!AA579=\"\"),\"N\",\"Y\"))","v":"-"},{"$f":"IF(OR('Enrollment Form'!B579=\"Subscriber\",'Enrollment Form'!B579=\"\"),\"-\",IF('Enrollment Form'!BP579=\"\",\"N\",\"Y\"))","v":"-"},{"$f":"IF('Enrollment Form'!B579<>\"Subscriber\",\"-\",IF(AND('Enrollment Form'!B579=\"Subscriber\",'Enrollment Form'!G579=\"\"),\"N\",\"Y\"))","v":"-"},{"$f":"IF('Enrollment Form'!A579=\"\",\"\",IF('Enrollment Form'!B579=\"Subscriber\",\"-\",IF(AND('Enrollment Form'!B579<>\"Subscriber\",'Enrollment Form'!G579='Enrollment Form'!H579),\"N\",\"Y\")))","v":""},0]
[580,{"$f":"IF('Enrollment Form'!$A580<>\"\",\"Y\",\"N\")","v":"N"},{"$f":"IF(AND('Enrollment Form'!$B580=\"\",'Enrollment Form'!$C580<>\"\"),\"N\",IF($B573=\"N\",\"\",\"Y\"))","v":""},{"$f":"IF(OR($B573=\"N\",'Enrollment Form'!G580=\"\"),\"\",IF('Enrollment Form'!$B580<>\"Subscriber\",\"\",IF('Enrollment Form'!$G580='Enrollment Form'!$H580,\"Y\",\"N\")))","v":""},{"$f":"IF($B573=\"N\",\"\",IF(AND(COUNTIFS('Enrollment Form'!$H$11:$H$1000,'Enrollment Form'!$H580,'Enrollment Form'!$B$11:$B$1000,'Enrollment Form'!$B580)>1,'Enrollment Form'!$H580<>\"\"),\"N\",\"Y\"))","v":""},{"$f":"IF($B573=\"N\",\"\",IF(LEN('Enrollment Form'!$Y580)=0,\"\",IF(LEN('Enrollment Form'!$Y580)<>5,\"N\",\"Y\")))","v":""},{"$f":"IF($B573=\"N\",\"\",IF(LEN('Enrollment Form'!$AD580=0),\"\",IF(LEN('Enrollment Form'!$AD580)<>5,\"N\",\"Y\")))","v":""},{"$f":"IF($B573=\"N\",\"\",IF(LEN('Enrollment Form'!$BS580=0),\"\",IF(LEN('Enrollment Form'!$BS580)<>5,\"N\",\"Y\")))","v":""},{"$f":"IF($B573=\"N\",\"\",IF(LEN('Enrollment Form'!$AE580)=0,\"\",IF(LEN('Enrollment Form'!$AE580)<>10,\"N\",\"Y\")))","v":""},{"$f":"IF($B573=\"N\",\"\",IF(LEN('Enrollment Form'!$AF580)=0,\"\",IF(LEN('Enrollment Form'!$AF580)<>10,\"N\",\"Y\")))","v":""},{"$f":"IF('Enrollment Form'!$O580<>\"Graded\",\"-\",IF(AND('Enrollment Form'!$O580=\"Graded\",'Enrollment Form'!$AR580<>\"\"),\"Y\",\"N\"))","v":"-"},{"$f":"IF($B573=\"N\",\"\",IF(OR('Enrollment Form'!$B580<>\"Subscriber\",'Enrollment Form'!$C580=\"ROC\"),\"-\",IF(AND('Enrollment Form'!$B580=\"Subscriber\",'Enrollment Form'!$C580=\"Enroll\",'Enrollment Form'!$AJ580<>\"\"),\"Y\",\"N\")))","v":""},{"$f":"IF($B573=\"N\",\"\",IF(OR('Enrollment Form'!$B580<>\"Subscriber\",'Enrollment Form'!$C580=\"ROC\"),\"-\",IF(AND('Enrollment Form'!$B580=\"Subscriber\",'Enrollment Form'!$C580=\"Enroll\",'Enrollment Form'!$AK580<>\"\"),\"Y\",\"N\")))","v":""},{"$f":"IF($B573=\"N\",\"\",IF(OR('Enrollment Form'!$B580<>\"Subscriber\",'Enrollment Form'!$C580=\"ROC\"),\"-\",IF(AND('Enrollment Form'!$B580=\"Subscriber\",'Enrollment Form'!$C580=\"Enroll\",'Enrollment Form'!$AL580<>\"\"),\"Y\",\"N\")))","v":""},{"$f":"IF($B573=\"N\",\"\",IF(OR('Enrollment Form'!$B580<>\"Subscriber\",'Enrollment Form'!$C580=\"ROC\"),\"-\",IF(AND('Enrollment Form'!$B580=\"Subscriber\",'Enrollment Form'!$C580=\"Enroll\",'Enrollment Form'!$AP580<>\"\"),\"Y\",\"N\")))","v":""},{"$f":"IF($B573=\"N\",\"\",IF(OR('Enrollment Form'!$B580<>\"Subscriber\",'Enrollment Form'!$C580=\"ROC\"),\"-\",IF(AND('Enrollment Form'!$B580=\"Subscriber\",'Enrollment Form'!$C580=\"Enroll\",'Enrollment Form'!$AQ580<>\"\"),\"Y\",\"N\")))","v":""},{"$f":"IF($B573=\"N\",\"\",IF(OR('Enrollment Form'!$B580<>\"Subscriber\",'Enrollment Form'!$C580=\"ROC\"),\"-\",IF(AND('Enrollment Form'!$B580=\"Subscriber\",'Enrollment Form'!$C580=\"Enroll\",'Enrollment Form'!$AS580<>\"\"),\"Y\",\"N\")))","v":""},{"$f":"IF($B573=\"N\",\"\",IF($Q573=\"-\",\"-\",IF(AND($Q573=\"Y\",'Enrollment Form'!$AS580=\"No\"),\"-\",IF(AND($Q573=\"Y\",'Enrollment Form'!$AS580=\"Yes\",'Enrollment Form'!$AT580<>\"\"),\"Y\",\"N\"))))","v":""},{"$f":"IF($B573=\"N\",\"\",IF(OR('Enrollment Form'!$B580<>\"Subscriber\",'Enrollment Form'!$C580=\"ROC\"),\"-\",IF(AND('Enrollment Form'!$B580=\"Subscriber\",'Enrollment Form'!$C580=\"Enroll\",'Enrollment Form'!$CV580<>\"\"),\"Y\",\"N\")))","v":""},{"$f":"IF($B573=\"N\",\"\",IF($S573=\"-\",\"-\",IF(AND($S573=\"Y\",'Enrollment Form'!$CV580=\"No\"),\"-\",IF(AND($S573=\"Y\",'Enrollment Form'!$CV580=\"Yes\",'Enrollment Form'!$CW580<>\"\"),\"Y\",\"N\"))))","v":""},{"$f":"IF(OR('Enrollment Form'!$AY580=\"Yes\",'Enrollment Form'!$AY580=\"\"),\"-\",IF(OR(AND('Enrollment Form'!$AY580=\"No\",ISERROR(FIND(\"HMO\",VLOOKUP('Enrollment Form'!G580,'Enrollment Form'!H$11:J$1000,3,FALSE),1))=FALSE,COUNTA('Enrollment Form'!$AZ580:$BC580)=4),AND('Enrollment Form'!$AY580=\"No\",ISERROR(FIND(\"HMO\",VLOOKUP('Enrollment Form'!G580,'Enrollment Form'!H$11:J$1000,3,FALSE),1))=FALSE,COUNTA('Enrollment Form'!$BT580:$BW580)=4)),\"Y\",\"N\"))","v":"-"},{"$f":"IF($B573=\"N\",\"\",IF('Enrollment Form'!$B580=\"Subscriber\",\"-\",IF(COUNTA('Enrollment Form'!$BL580,'Enrollment Form'!$BN580)=2,\"Y\",\"N\")))","v":""},{"$f":"IF($B573=\"N\",\"\",IF(OR('Enrollment Form'!$AX580=\"\",'Enrollment Form'!$AX580=\"No\"),\"-\",IF(AND('Enrollment Form'!$AX580=\"Yes\",COUNTA('Enrollment Form'!$CR580)=1),\"Y\",\"N\")))","v":""},{"$f":"IF(OR('Enrollment Form'!$CR580=\"\",'Enrollment Form'!$CR580=\"No\"),\"-\",IF(COUNTA('Enrollment Form'!$CT580:$CU580)=2,\"Y\",\"N\"))","v":"-"},{"$f":"IF($B573=\"N\",\"\",IF(COUNTIF('Enrollment Form'!$DG580:$DP580,\"Other\")=COUNTA('Enrollment Form'!$DK580,'Enrollment Form'!$DH580,'Enrollment Form'!$DN580,'Enrollment Form'!$DQ580),\"Y\",\"N\"))","v":""},{"$f":"IF($B573=\"N\",\"\",IF(OR('Enrollment Form'!B580<>\"Subscriber\",'Enrollment Form'!C580=\"ROC\",COUNTIF('Enrollment Form'!AV580:AW580,\"Yes\")>=1),\"-\",IF(AND('Enrollment Form'!C580=\"Enroll\",COUNTIF('Enrollment Form'!AV580:AW580,\"No\")=2,'Enrollment Form'!AX580=\"\"),\"N\",\"Y\")))","v":""},{"$f":"IF(OR(B573=\"N\",'Enrollment Form'!B580<>\"Subscriber\",'Enrollment Form'!C580=\"ROC\",'Enrollment Form'!O580<>\"Multiple of Salary\"),\"-\",IF(COUNTA('Enrollment Form'!T580:U580)<2,\"N\",\"Y\"))","v":"-"},{"$f":"IF(B573=\"N\",\"\",IF(OR('Enrollment Form'!C580=\"ROC\",'Enrollment Form'!B580<>\"Subscriber\",'Enrollment Form'!O580=\"Waive\",'Enrollment Form'!O580=\"\"),\"-\",IF('Enrollment Form'!P580=\"\",\"N\",\"Y\")))","v":""},{"$f":"IF($B573=\"N\",\"\",IF(AND('Enrollment Form'!$C580=\"ROC\",'Enrollment Form'!$DR580<>\"\"),\"Y\",IF(AND('Enrollment Form'!$C580=\"ROC\",'Enrollment Form'!$DR580=\"\"),\"N\",IF(AND('Enrollment Form'!$C580=\"Enroll\",'Enrollment Form'!$B580=\"Subscriber\",'Enrollment Form'!$CX580=\"No\",'Enrollment Form'!$DR580=\"\"),\"N\",IF(AND('Enrollment Form'!$C580=\"Enroll\",'Enrollment Form'!$B580=\"Subscriber\",'Enrollment Form'!$CX580=\"Yes\"),\"-\",\"Y\")))))","v":""},{"$f":"IF($B573=\"N\",\"\",IF(AND('Enrollment Form'!$C580=\"ROC\",'Enrollment Form'!$DS580<>\"\"),\"Y\",IF(AND('Enrollment Form'!$C580=\"ROC\",'Enrollment Form'!$DS580=\"\"),\"N\",IF(AND('Enrollment Form'!$C580=\"Enroll\",'Enrollment Form'!$B580=\"Subscriber\",'Enrollment Form'!$CX580=\"No\",'Enrollment Form'!$DS580=\"\"),\"N\",IF(AND('Enrollment Form'!$C580=\"Enroll\",'Enrollment Form'!$B580=\"Subscriber\",'Enrollment Form'!$CX580=\"Yes\"),\"-\",\"Y\")))))","v":""},{"$f":"IF('Enrollment Form'!AH580=\"\",\"\",IF(ISERROR(SEARCH(\".\",'Enrollment Form'!AH580,SEARCH(\"@\",'Enrollment Form'!AH580))),\"N\",\"Y\"))","v":""},{"$f":"IF(OR($B573=\"N\",'Enrollment Form'!$G580=\"\"),\"\",IF('Enrollment Form'!$B580<>\"Subscriber\",\"-\",IF(COUNTIF('Enrollment Form'!$AV580:$AW580,\"Yes\")=2,\"N\",\"Y\")))","v":""},{"$f":"IF(OR('Enrollment Form'!$CJ580=\"\",'Enrollment Form'!$CJ580=\"No\"),\"-\",IF(AND('Enrollment Form'!$CJ580=\"Yes\",'Enrollment Form'!$CK580=\"\"),\"N\",\"Y\"))","v":"-"},{"$f":"IF(OR('Enrollment Form'!$CL580=\"\",'Enrollment Form'!$CL580=\"No\"),\"-\",IF(AND('Enrollment Form'!$CL580=\"Yes\",'Enrollment Form'!$CM580=\"\"),\"N\",\"Y\"))","v":"-"},{"$f":"IF(OR('Enrollment Form'!$CN580=\"\",'Enrollment Form'!$CN580=\"No\"),\"-\",IF(AND('Enrollment Form'!$CN580=\"Yes\",'Enrollment Form'!$CO580=\"\"),\"N\",\"Y\"))","v":"-"},{"$f":"IF(OR('Enrollment Form'!$CN580=\"\",'Enrollment Form'!$CN580=\"No\"),\"-\",IF(AND('Enrollment Form'!$CN580=\"Yes\",'Enrollment Form'!$CP580=\"\"),\"N\",\"Y\"))","v":"-"},{"$f":"IF('Enrollment Form'!B580<>\"Subscriber\",\"-\",IF(AND('Enrollment Form'!B580=\"Subscriber\",'Enrollment Form'!C580=\"Enroll\",'Enrollment Form'!AA580=\"\"),\"N\",\"Y\"))","v":"-"},{"$f":"IF(OR('Enrollment Form'!B580=\"Subscriber\",'Enrollment Form'!B580=\"\"),\"-\",IF('Enrollment Form'!BP580=\"\",\"N\",\"Y\"))","v":"-"},{"$f":"IF('Enrollment Form'!B580<>\"Subscriber\",\"-\",IF(AND('Enrollment Form'!B580=\"Subscriber\",'Enrollment Form'!G580=\"\"),\"N\",\"Y\"))","v":"-"},{"$f":"IF('Enrollment Form'!A580=\"\",\"\",IF('Enrollment Form'!B580=\"Subscriber\",\"-\",IF(AND('Enrollment Form'!B580<>\"Subscriber\",'Enrollment Form'!G580='Enrollment Form'!H580),\"N\",\"Y\")))","v":""},0]
[581,{"$f":"IF('Enrollment Form'!$A581<>\"\",\"Y\",\"N\")","v":"N"},{"$f":"IF(AND('Enrollment Form'!$B581=\"\",'Enrollment Form'!$C581<>\"\"),\"N\",IF($B574=\"N\",\"\",\"Y\"))","v":""},{"$f":"IF(OR($B574=\"N\",'Enrollment Form'!G581=\"\"),\"\",IF('Enrollment Form'!$B581<>\"Subscriber\",\"\",IF('Enrollment Form'!$G581='Enrollment Form'!$H581,\"Y\",\"N\")))","v":""},{"$f":"IF($B574=\"N\",\"\",IF(AND(COUNTIFS('Enrollment Form'!$H$11:$H$1000,'Enrollment Form'!$H581,'Enrollment Form'!$B$11:$B$1000,'Enrollment Form'!$B581)>1,'Enrollment Form'!$H581<>\"\"),\"N\",\"Y\"))","v":""},{"$f":"IF($B574=\"N\",\"\",IF(LEN('Enrollment Form'!$Y581)=0,\"\",IF(LEN('Enrollment Form'!$Y581)<>5,\"N\",\"Y\")))","v":""},{"$f":"IF($B574=\"N\",\"\",IF(LEN('Enrollment Form'!$AD581=0),\"\",IF(LEN('Enrollment Form'!$AD581)<>5,\"N\",\"Y\")))","v":""},{"$f":"IF($B574=\"N\",\"\",IF(LEN('Enrollment Form'!$BS581=0),\"\",IF(LEN('Enrollment Form'!$BS581)<>5,\"N\",\"Y\")))","v":""},{"$f":"IF($B574=\"N\",\"\",IF(LEN('Enrollment Form'!$AE581)=0,\"\",IF(LEN('Enrollment Form'!$AE581)<>10,\"N\",\"Y\")))","v":""},{"$f":"IF($B574=\"N\",\"\",IF(LEN('Enrollment Form'!$AF581)=0,\"\",IF(LEN('Enrollment Form'!$AF581)<>10,\"N\",\"Y\")))","v":""},{"$f":"IF('Enrollment Form'!$O581<>\"Graded\",\"-\",IF(AND('Enrollment Form'!$O581=\"Graded\",'Enrollment Form'!$AR581<>\"\"),\"Y\",\"N\"))","v":"-"},{"$f":"IF($B574=\"N\",\"\",IF(OR('Enrollment Form'!$B581<>\"Subscriber\",'Enrollment Form'!$C581=\"ROC\"),\"-\",IF(AND('Enrollment Form'!$B581=\"Subscriber\",'Enrollment Form'!$C581=\"Enroll\",'Enrollment Form'!$AJ581<>\"\"),\"Y\",\"N\")))","v":""},{"$f":"IF($B574=\"N\",\"\",IF(OR('Enrollment Form'!$B581<>\"Subscriber\",'Enrollment Form'!$C581=\"ROC\"),\"-\",IF(AND('Enrollment Form'!$B581=\"Subscriber\",'Enrollment Form'!$C581=\"Enroll\",'Enrollment Form'!$AK581<>\"\"),\"Y\",\"N\")))","v":""},{"$f":"IF($B574=\"N\",\"\",IF(OR('Enrollment Form'!$B581<>\"Subscriber\",'Enrollment Form'!$C581=\"ROC\"),\"-\",IF(AND('Enrollment Form'!$B581=\"Subscriber\",'Enrollment Form'!$C581=\"Enroll\",'Enrollment Form'!$AL581<>\"\"),\"Y\",\"N\")))","v":""},{"$f":"IF($B574=\"N\",\"\",IF(OR('Enrollment Form'!$B581<>\"Subscriber\",'Enrollment Form'!$C581=\"ROC\"),\"-\",IF(AND('Enrollment Form'!$B581=\"Subscriber\",'Enrollment Form'!$C581=\"Enroll\",'Enrollment Form'!$AP581<>\"\"),\"Y\",\"N\")))","v":""},{"$f":"IF($B574=\"N\",\"\",IF(OR('Enrollment Form'!$B581<>\"Subscriber\",'Enrollment Form'!$C581=\"ROC\"),\"-\",IF(AND('Enrollment Form'!$B581=\"Subscriber\",'Enrollment Form'!$C581=\"Enroll\",'Enrollment Form'!$AQ581<>\"\"),\"Y\",\"N\")))","v":""},{"$f":"IF($B574=\"N\",\"\",IF(OR('Enrollment Form'!$B581<>\"Subscriber\",'Enrollment Form'!$C581=\"ROC\"),\"-\",IF(AND('Enrollment Form'!$B581=\"Subscriber\",'Enrollment Form'!$C581=\"Enroll\",'Enrollment Form'!$AS581<>\"\"),\"Y\",\"N\")))","v":""},{"$f":"IF($B574=\"N\",\"\",IF($Q574=\"-\",\"-\",IF(AND($Q574=\"Y\",'Enrollment Form'!$AS581=\"No\"),\"-\",IF(AND($Q574=\"Y\",'Enrollment Form'!$AS581=\"Yes\",'Enrollment Form'!$AT581<>\"\"),\"Y\",\"N\"))))","v":""},{"$f":"IF($B574=\"N\",\"\",IF(OR('Enrollment Form'!$B581<>\"Subscriber\",'Enrollment Form'!$C581=\"ROC\"),\"-\",IF(AND('Enrollment Form'!$B581=\"Subscriber\",'Enrollment Form'!$C581=\"Enroll\",'Enrollment Form'!$CV581<>\"\"),\"Y\",\"N\")))","v":""},{"$f":"IF($B574=\"N\",\"\",IF($S574=\"-\",\"-\",IF(AND($S574=\"Y\",'Enrollment Form'!$CV581=\"No\"),\"-\",IF(AND($S574=\"Y\",'Enrollment Form'!$CV581=\"Yes\",'Enrollment Form'!$CW581<>\"\"),\"Y\",\"N\"))))","v":""},{"$f":"IF(OR('Enrollment Form'!$AY581=\"Yes\",'Enrollment Form'!$AY581=\"\"),\"-\",IF(OR(AND('Enrollment Form'!$AY581=\"No\",ISERROR(FIND(\"HMO\",VLOOKUP('Enrollment Form'!G581,'Enrollment Form'!H$11:J$1000,3,FALSE),1))=FALSE,COUNTA('Enrollment Form'!$AZ581:$BC581)=4),AND('Enrollment Form'!$AY581=\"No\",ISERROR(FIND(\"HMO\",VLOOKUP('Enrollment Form'!G581,'Enrollment Form'!H$11:J$1000,3,FALSE),1))=FALSE,COUNTA('Enrollment Form'!$BT581:$BW581)=4)),\"Y\",\"N\"))","v":"-"},{"$f":"IF($B574=\"N\",\"\",IF('Enrollment Form'!$B581=\"Subscriber\",\"-\",IF(COUNTA('Enrollment Form'!$BL581,'Enrollment Form'!$BN581)=2,\"Y\",\"N\")))","v":""},{"$f":"IF($B574=\"N\",\"\",IF(OR('Enrollment Form'!$AX581=\"\",'Enrollment Form'!$AX581=\"No\"),\"-\",IF(AND('Enrollment Form'!$AX581=\"Yes\",COUNTA('Enrollment Form'!$CR581)=1),\"Y\",\"N\")))","v":""},{"$f":"IF(OR('Enrollment Form'!$CR581=\"\",'Enrollment Form'!$CR581=\"No\"),\"-\",IF(COUNTA('Enrollment Form'!$CT581:$CU581)=2,\"Y\",\"N\"))","v":"-"},{"$f":"IF($B574=\"N\",\"\",IF(COUNTIF('Enrollment Form'!$DG581:$DP581,\"Other\")=COUNTA('Enrollment Form'!$DK581,'Enrollment Form'!$DH581,'Enrollment Form'!$DN581,'Enrollment Form'!$DQ581),\"Y\",\"N\"))","v":""},{"$f":"IF($B574=\"N\",\"\",IF(OR('Enrollment Form'!B581<>\"Subscriber\",'Enrollment Form'!C581=\"ROC\",COUNTIF('Enrollment Form'!AV581:AW581,\"Yes\")>=1),\"-\",IF(AND('Enrollment Form'!C581=\"Enroll\",COUNTIF('Enrollment Form'!AV581:AW581,\"No\")=2,'Enrollment Form'!AX581=\"\"),\"N\",\"Y\")))","v":""},{"$f":"IF(OR(B574=\"N\",'Enrollment Form'!B581<>\"Subscriber\",'Enrollment Form'!C581=\"ROC\",'Enrollment Form'!O581<>\"Multiple of Salary\"),\"-\",IF(COUNTA('Enrollment Form'!T581:U581)<2,\"N\",\"Y\"))","v":"-"},{"$f":"IF(B574=\"N\",\"\",IF(OR('Enrollment Form'!C581=\"ROC\",'Enrollment Form'!B581<>\"Subscriber\",'Enrollment Form'!O581=\"Waive\",'Enrollment Form'!O581=\"\"),\"-\",IF('Enrollment Form'!P581=\"\",\"N\",\"Y\")))","v":""},{"$f":"IF($B574=\"N\",\"\",IF(AND('Enrollment Form'!$C581=\"ROC\",'Enrollment Form'!$DR581<>\"\"),\"Y\",IF(AND('Enrollment Form'!$C581=\"ROC\",'Enrollment Form'!$DR581=\"\"),\"N\",IF(AND('Enrollment Form'!$C581=\"Enroll\",'Enrollment Form'!$B581=\"Subscriber\",'Enrollment Form'!$CX581=\"No\",'Enrollment Form'!$DR581=\"\"),\"N\",IF(AND('Enrollment Form'!$C581=\"Enroll\",'Enrollment Form'!$B581=\"Subscriber\",'Enrollment Form'!$CX581=\"Yes\"),\"-\",\"Y\")))))","v":""},{"$f":"IF($B574=\"N\",\"\",IF(AND('Enrollment Form'!$C581=\"ROC\",'Enrollment Form'!$DS581<>\"\"),\"Y\",IF(AND('Enrollment Form'!$C581=\"ROC\",'Enrollment Form'!$DS581=\"\"),\"N\",IF(AND('Enrollment Form'!$C581=\"Enroll\",'Enrollment Form'!$B581=\"Subscriber\",'Enrollment Form'!$CX581=\"No\",'Enrollment Form'!$DS581=\"\"),\"N\",IF(AND('Enrollment Form'!$C581=\"Enroll\",'Enrollment Form'!$B581=\"Subscriber\",'Enrollment Form'!$CX581=\"Yes\"),\"-\",\"Y\")))))","v":""},{"$f":"IF('Enrollment Form'!AH581=\"\",\"\",IF(ISERROR(SEARCH(\".\",'Enrollment Form'!AH581,SEARCH(\"@\",'Enrollment Form'!AH581))),\"N\",\"Y\"))","v":""},{"$f":"IF(OR($B574=\"N\",'Enrollment Form'!$G581=\"\"),\"\",IF('Enrollment Form'!$B581<>\"Subscriber\",\"-\",IF(COUNTIF('Enrollment Form'!$AV581:$AW581,\"Yes\")=2,\"N\",\"Y\")))","v":""},{"$f":"IF(OR('Enrollment Form'!$CJ581=\"\",'Enrollment Form'!$CJ581=\"No\"),\"-\",IF(AND('Enrollment Form'!$CJ581=\"Yes\",'Enrollment Form'!$CK581=\"\"),\"N\",\"Y\"))","v":"-"},{"$f":"IF(OR('Enrollment Form'!$CL581=\"\",'Enrollment Form'!$CL581=\"No\"),\"-\",IF(AND('Enrollment Form'!$CL581=\"Yes\",'Enrollment Form'!$CM581=\"\"),\"N\",\"Y\"))","v":"-"},{"$f":"IF(OR('Enrollment Form'!$CN581=\"\",'Enrollment Form'!$CN581=\"No\"),\"-\",IF(AND('Enrollment Form'!$CN581=\"Yes\",'Enrollment Form'!$CO581=\"\"),\"N\",\"Y\"))","v":"-"},{"$f":"IF(OR('Enrollment Form'!$CN581=\"\",'Enrollment Form'!$CN581=\"No\"),\"-\",IF(AND('Enrollment Form'!$CN581=\"Yes\",'Enrollment Form'!$CP581=\"\"),\"N\",\"Y\"))","v":"-"},{"$f":"IF('Enrollment Form'!B581<>\"Subscriber\",\"-\",IF(AND('Enrollment Form'!B581=\"Subscriber\",'Enrollment Form'!C581=\"Enroll\",'Enrollment Form'!AA581=\"\"),\"N\",\"Y\"))","v":"-"},{"$f":"IF(OR('Enrollment Form'!B581=\"Subscriber\",'Enrollment Form'!B581=\"\"),\"-\",IF('Enrollment Form'!BP581=\"\",\"N\",\"Y\"))","v":"-"},{"$f":"IF('Enrollment Form'!B581<>\"Subscriber\",\"-\",IF(AND('Enrollment Form'!B581=\"Subscriber\",'Enrollment Form'!G581=\"\"),\"N\",\"Y\"))","v":"-"},{"$f":"IF('Enrollment Form'!A581=\"\",\"\",IF('Enrollment Form'!B581=\"Subscriber\",\"-\",IF(AND('Enrollment Form'!B581<>\"Subscriber\",'Enrollment Form'!G581='Enrollment Form'!H581),\"N\",\"Y\")))","v":""},0]
[582,{"$f":"IF('Enrollment Form'!$A582<>\"\",\"Y\",\"N\")","v":"N"},{"$f":"IF(AND('Enrollment Form'!$B582=\"\",'Enrollment Form'!$C582<>\"\"),\"N\",IF($B575=\"N\",\"\",\"Y\"))","v":""},{"$f":"IF(OR($B575=\"N\",'Enrollment Form'!G582=\"\"),\"\",IF('Enrollment Form'!$B582<>\"Subscriber\",\"\",IF('Enrollment Form'!$G582='Enrollment Form'!$H582,\"Y\",\"N\")))","v":""},{"$f":"IF($B575=\"N\",\"\",IF(AND(COUNTIFS('Enrollment Form'!$H$11:$H$1000,'Enrollment Form'!$H582,'Enrollment Form'!$B$11:$B$1000,'Enrollment Form'!$B582)>1,'Enrollment Form'!$H582<>\"\"),\"N\",\"Y\"))","v":""},{"$f":"IF($B575=\"N\",\"\",IF(LEN('Enrollment Form'!$Y582)=0,\"\",IF(LEN('Enrollment Form'!$Y582)<>5,\"N\",\"Y\")))","v":""},{"$f":"IF($B575=\"N\",\"\",IF(LEN('Enrollment Form'!$AD582=0),\"\",IF(LEN('Enrollment Form'!$AD582)<>5,\"N\",\"Y\")))","v":""},{"$f":"IF($B575=\"N\",\"\",IF(LEN('Enrollment Form'!$BS582=0),\"\",IF(LEN('Enrollment Form'!$BS582)<>5,\"N\",\"Y\")))","v":""},{"$f":"IF($B575=\"N\",\"\",IF(LEN('Enrollment Form'!$AE582)=0,\"\",IF(LEN('Enrollment Form'!$AE582)<>10,\"N\",\"Y\")))","v":""},{"$f":"IF($B575=\"N\",\"\",IF(LEN('Enrollment Form'!$AF582)=0,\"\",IF(LEN('Enrollment Form'!$AF582)<>10,\"N\",\"Y\")))","v":""},{"$f":"IF('Enrollment Form'!$O582<>\"Graded\",\"-\",IF(AND('Enrollment Form'!$O582=\"Graded\",'Enrollment Form'!$AR582<>\"\"),\"Y\",\"N\"))","v":"-"},{"$f":"IF($B575=\"N\",\"\",IF(OR('Enrollment Form'!$B582<>\"Subscriber\",'Enrollment Form'!$C582=\"ROC\"),\"-\",IF(AND('Enrollment Form'!$B582=\"Subscriber\",'Enrollment Form'!$C582=\"Enroll\",'Enrollment Form'!$AJ582<>\"\"),\"Y\",\"N\")))","v":""},{"$f":"IF($B575=\"N\",\"\",IF(OR('Enrollment Form'!$B582<>\"Subscriber\",'Enrollment Form'!$C582=\"ROC\"),\"-\",IF(AND('Enrollment Form'!$B582=\"Subscriber\",'Enrollment Form'!$C582=\"Enroll\",'Enrollment Form'!$AK582<>\"\"),\"Y\",\"N\")))","v":""},{"$f":"IF($B575=\"N\",\"\",IF(OR('Enrollment Form'!$B582<>\"Subscriber\",'Enrollment Form'!$C582=\"ROC\"),\"-\",IF(AND('Enrollment Form'!$B582=\"Subscriber\",'Enrollment Form'!$C582=\"Enroll\",'Enrollment Form'!$AL582<>\"\"),\"Y\",\"N\")))","v":""},{"$f":"IF($B575=\"N\",\"\",IF(OR('Enrollment Form'!$B582<>\"Subscriber\",'Enrollment Form'!$C582=\"ROC\"),\"-\",IF(AND('Enrollment Form'!$B582=\"Subscriber\",'Enrollment Form'!$C582=\"Enroll\",'Enrollment Form'!$AP582<>\"\"),\"Y\",\"N\")))","v":""},{"$f":"IF($B575=\"N\",\"\",IF(OR('Enrollment Form'!$B582<>\"Subscriber\",'Enrollment Form'!$C582=\"ROC\"),\"-\",IF(AND('Enrollment Form'!$B582=\"Subscriber\",'Enrollment Form'!$C582=\"Enroll\",'Enrollment Form'!$AQ582<>\"\"),\"Y\",\"N\")))","v":""},{"$f":"IF($B575=\"N\",\"\",IF(OR('Enrollment Form'!$B582<>\"Subscriber\",'Enrollment Form'!$C582=\"ROC\"),\"-\",IF(AND('Enrollment Form'!$B582=\"Subscriber\",'Enrollment Form'!$C582=\"Enroll\",'Enrollment Form'!$AS582<>\"\"),\"Y\",\"N\")))","v":""},{"$f":"IF($B575=\"N\",\"\",IF($Q575=\"-\",\"-\",IF(AND($Q575=\"Y\",'Enrollment Form'!$AS582=\"No\"),\"-\",IF(AND($Q575=\"Y\",'Enrollment Form'!$AS582=\"Yes\",'Enrollment Form'!$AT582<>\"\"),\"Y\",\"N\"))))","v":""},{"$f":"IF($B575=\"N\",\"\",IF(OR('Enrollment Form'!$B582<>\"Subscriber\",'Enrollment Form'!$C582=\"ROC\"),\"-\",IF(AND('Enrollment Form'!$B582=\"Subscriber\",'Enrollment Form'!$C582=\"Enroll\",'Enrollment Form'!$CV582<>\"\"),\"Y\",\"N\")))","v":""},{"$f":"IF($B575=\"N\",\"\",IF($S575=\"-\",\"-\",IF(AND($S575=\"Y\",'Enrollment Form'!$CV582=\"No\"),\"-\",IF(AND($S575=\"Y\",'Enrollment Form'!$CV582=\"Yes\",'Enrollment Form'!$CW582<>\"\"),\"Y\",\"N\"))))","v":""},{"$f":"IF(OR('Enrollment Form'!$AY582=\"Yes\",'Enrollment Form'!$AY582=\"\"),\"-\",IF(OR(AND('Enrollment Form'!$AY582=\"No\",ISERROR(FIND(\"HMO\",VLOOKUP('Enrollment Form'!G582,'Enrollment Form'!H$11:J$1000,3,FALSE),1))=FALSE,COUNTA('Enrollment Form'!$AZ582:$BC582)=4),AND('Enrollment Form'!$AY582=\"No\",ISERROR(FIND(\"HMO\",VLOOKUP('Enrollment Form'!G582,'Enrollment Form'!H$11:J$1000,3,FALSE),1))=FALSE,COUNTA('Enrollment Form'!$BT582:$BW582)=4)),\"Y\",\"N\"))","v":"-"},{"$f":"IF($B575=\"N\",\"\",IF('Enrollment Form'!$B582=\"Subscriber\",\"-\",IF(COUNTA('Enrollment Form'!$BL582,'Enrollment Form'!$BN582)=2,\"Y\",\"N\")))","v":""},{"$f":"IF($B575=\"N\",\"\",IF(OR('Enrollment Form'!$AX582=\"\",'Enrollment Form'!$AX582=\"No\"),\"-\",IF(AND('Enrollment Form'!$AX582=\"Yes\",COUNTA('Enrollment Form'!$CR582)=1),\"Y\",\"N\")))","v":""},{"$f":"IF(OR('Enrollment Form'!$CR582=\"\",'Enrollment Form'!$CR582=\"No\"),\"-\",IF(COUNTA('Enrollment Form'!$CT582:$CU582)=2,\"Y\",\"N\"))","v":"-"},{"$f":"IF($B575=\"N\",\"\",IF(COUNTIF('Enrollment Form'!$DG582:$DP582,\"Other\")=COUNTA('Enrollment Form'!$DK582,'Enrollment Form'!$DH582,'Enrollment Form'!$DN582,'Enrollment Form'!$DQ582),\"Y\",\"N\"))","v":""},{"$f":"IF($B575=\"N\",\"\",IF(OR('Enrollment Form'!B582<>\"Subscriber\",'Enrollment Form'!C582=\"ROC\",COUNTIF('Enrollment Form'!AV582:AW582,\"Yes\")>=1),\"-\",IF(AND('Enrollment Form'!C582=\"Enroll\",COUNTIF('Enrollment Form'!AV582:AW582,\"No\")=2,'Enrollment Form'!AX582=\"\"),\"N\",\"Y\")))","v":""},{"$f":"IF(OR(B575=\"N\",'Enrollment Form'!B582<>\"Subscriber\",'Enrollment Form'!C582=\"ROC\",'Enrollment Form'!O582<>\"Multiple of Salary\"),\"-\",IF(COUNTA('Enrollment Form'!T582:U582)<2,\"N\",\"Y\"))","v":"-"},{"$f":"IF(B575=\"N\",\"\",IF(OR('Enrollment Form'!C582=\"ROC\",'Enrollment Form'!B582<>\"Subscriber\",'Enrollment Form'!O582=\"Waive\",'Enrollment Form'!O582=\"\"),\"-\",IF('Enrollment Form'!P582=\"\",\"N\",\"Y\")))","v":""},{"$f":"IF($B575=\"N\",\"\",IF(AND('Enrollment Form'!$C582=\"ROC\",'Enrollment Form'!$DR582<>\"\"),\"Y\",IF(AND('Enrollment Form'!$C582=\"ROC\",'Enrollment Form'!$DR582=\"\"),\"N\",IF(AND('Enrollment Form'!$C582=\"Enroll\",'Enrollment Form'!$B582=\"Subscriber\",'Enrollment Form'!$CX582=\"No\",'Enrollment Form'!$DR582=\"\"),\"N\",IF(AND('Enrollment Form'!$C582=\"Enroll\",'Enrollment Form'!$B582=\"Subscriber\",'Enrollment Form'!$CX582=\"Yes\"),\"-\",\"Y\")))))","v":""},{"$f":"IF($B575=\"N\",\"\",IF(AND('Enrollment Form'!$C582=\"ROC\",'Enrollment Form'!$DS582<>\"\"),\"Y\",IF(AND('Enrollment Form'!$C582=\"ROC\",'Enrollment Form'!$DS582=\"\"),\"N\",IF(AND('Enrollment Form'!$C582=\"Enroll\",'Enrollment Form'!$B582=\"Subscriber\",'Enrollment Form'!$CX582=\"No\",'Enrollment Form'!$DS582=\"\"),\"N\",IF(AND('Enrollment Form'!$C582=\"Enroll\",'Enrollment Form'!$B582=\"Subscriber\",'Enrollment Form'!$CX582=\"Yes\"),\"-\",\"Y\")))))","v":""},{"$f":"IF('Enrollment Form'!AH582=\"\",\"\",IF(ISERROR(SEARCH(\".\",'Enrollment Form'!AH582,SEARCH(\"@\",'Enrollment Form'!AH582))),\"N\",\"Y\"))","v":""},{"$f":"IF(OR($B575=\"N\",'Enrollment Form'!$G582=\"\"),\"\",IF('Enrollment Form'!$B582<>\"Subscriber\",\"-\",IF(COUNTIF('Enrollment Form'!$AV582:$AW582,\"Yes\")=2,\"N\",\"Y\")))","v":""},{"$f":"IF(OR('Enrollment Form'!$CJ582=\"\",'Enrollment Form'!$CJ582=\"No\"),\"-\",IF(AND('Enrollment Form'!$CJ582=\"Yes\",'Enrollment Form'!$CK582=\"\"),\"N\",\"Y\"))","v":"-"},{"$f":"IF(OR('Enrollment Form'!$CL582=\"\",'Enrollment Form'!$CL582=\"No\"),\"-\",IF(AND('Enrollment Form'!$CL582=\"Yes\",'Enrollment Form'!$CM582=\"\"),\"N\",\"Y\"))","v":"-"},{"$f":"IF(OR('Enrollment Form'!$CN582=\"\",'Enrollment Form'!$CN582=\"No\"),\"-\",IF(AND('Enrollment Form'!$CN582=\"Yes\",'Enrollment Form'!$CO582=\"\"),\"N\",\"Y\"))","v":"-"},{"$f":"IF(OR('Enrollment Form'!$CN582=\"\",'Enrollment Form'!$CN582=\"No\"),\"-\",IF(AND('Enrollment Form'!$CN582=\"Yes\",'Enrollment Form'!$CP582=\"\"),\"N\",\"Y\"))","v":"-"},{"$f":"IF('Enrollment Form'!B582<>\"Subscriber\",\"-\",IF(AND('Enrollment Form'!B582=\"Subscriber\",'Enrollment Form'!C582=\"Enroll\",'Enrollment Form'!AA582=\"\"),\"N\",\"Y\"))","v":"-"},{"$f":"IF(OR('Enrollment Form'!B582=\"Subscriber\",'Enrollment Form'!B582=\"\"),\"-\",IF('Enrollment Form'!BP582=\"\",\"N\",\"Y\"))","v":"-"},{"$f":"IF('Enrollment Form'!B582<>\"Subscriber\",\"-\",IF(AND('Enrollment Form'!B582=\"Subscriber\",'Enrollment Form'!G582=\"\"),\"N\",\"Y\"))","v":"-"},{"$f":"IF('Enrollment Form'!A582=\"\",\"\",IF('Enrollment Form'!B582=\"Subscriber\",\"-\",IF(AND('Enrollment Form'!B582<>\"Subscriber\",'Enrollment Form'!G582='Enrollment Form'!H582),\"N\",\"Y\")))","v":""},0]
[583,{"$f":"IF('Enrollment Form'!$A583<>\"\",\"Y\",\"N\")","v":"N"},{"$f":"IF(AND('Enrollment Form'!$B583=\"\",'Enrollment Form'!$C583<>\"\"),\"N\",IF($B576=\"N\",\"\",\"Y\"))","v":""},{"$f":"IF(OR($B576=\"N\",'Enrollment Form'!G583=\"\"),\"\",IF('Enrollment Form'!$B583<>\"Subscriber\",\"\",IF('Enrollment Form'!$G583='Enrollment Form'!$H583,\"Y\",\"N\")))","v":""},{"$f":"IF($B576=\"N\",\"\",IF(AND(COUNTIFS('Enrollment Form'!$H$11:$H$1000,'Enrollment Form'!$H583,'Enrollment Form'!$B$11:$B$1000,'Enrollment Form'!$B583)>1,'Enrollment Form'!$H583<>\"\"),\"N\",\"Y\"))","v":""},{"$f":"IF($B576=\"N\",\"\",IF(LEN('Enrollment Form'!$Y583)=0,\"\",IF(LEN('Enrollment Form'!$Y583)<>5,\"N\",\"Y\")))","v":""},{"$f":"IF($B576=\"N\",\"\",IF(LEN('Enrollment Form'!$AD583=0),\"\",IF(LEN('Enrollment Form'!$AD583)<>5,\"N\",\"Y\")))","v":""},{"$f":"IF($B576=\"N\",\"\",IF(LEN('Enrollment Form'!$BS583=0),\"\",IF(LEN('Enrollment Form'!$BS583)<>5,\"N\",\"Y\")))","v":""},{"$f":"IF($B576=\"N\",\"\",IF(LEN('Enrollment Form'!$AE583)=0,\"\",IF(LEN('Enrollment Form'!$AE583)<>10,\"N\",\"Y\")))","v":""},{"$f":"IF($B576=\"N\",\"\",IF(LEN('Enrollment Form'!$AF583)=0,\"\",IF(LEN('Enrollment Form'!$AF583)<>10,\"N\",\"Y\")))","v":""},{"$f":"IF('Enrollment Form'!$O583<>\"Graded\",\"-\",IF(AND('Enrollment Form'!$O583=\"Graded\",'Enrollment Form'!$AR583<>\"\"),\"Y\",\"N\"))","v":"-"},{"$f":"IF($B576=\"N\",\"\",IF(OR('Enrollment Form'!$B583<>\"Subscriber\",'Enrollment Form'!$C583=\"ROC\"),\"-\",IF(AND('Enrollment Form'!$B583=\"Subscriber\",'Enrollment Form'!$C583=\"Enroll\",'Enrollment Form'!$AJ583<>\"\"),\"Y\",\"N\")))","v":""},{"$f":"IF($B576=\"N\",\"\",IF(OR('Enrollment Form'!$B583<>\"Subscriber\",'Enrollment Form'!$C583=\"ROC\"),\"-\",IF(AND('Enrollment Form'!$B583=\"Subscriber\",'Enrollment Form'!$C583=\"Enroll\",'Enrollment Form'!$AK583<>\"\"),\"Y\",\"N\")))","v":""},{"$f":"IF($B576=\"N\",\"\",IF(OR('Enrollment Form'!$B583<>\"Subscriber\",'Enrollment Form'!$C583=\"ROC\"),\"-\",IF(AND('Enrollment Form'!$B583=\"Subscriber\",'Enrollment Form'!$C583=\"Enroll\",'Enrollment Form'!$AL583<>\"\"),\"Y\",\"N\")))","v":""},{"$f":"IF($B576=\"N\",\"\",IF(OR('Enrollment Form'!$B583<>\"Subscriber\",'Enrollment Form'!$C583=\"ROC\"),\"-\",IF(AND('Enrollment Form'!$B583=\"Subscriber\",'Enrollment Form'!$C583=\"Enroll\",'Enrollment Form'!$AP583<>\"\"),\"Y\",\"N\")))","v":""},{"$f":"IF($B576=\"N\",\"\",IF(OR('Enrollment Form'!$B583<>\"Subscriber\",'Enrollment Form'!$C583=\"ROC\"),\"-\",IF(AND('Enrollment Form'!$B583=\"Subscriber\",'Enrollment Form'!$C583=\"Enroll\",'Enrollment Form'!$AQ583<>\"\"),\"Y\",\"N\")))","v":""},{"$f":"IF($B576=\"N\",\"\",IF(OR('Enrollment Form'!$B583<>\"Subscriber\",'Enrollment Form'!$C583=\"ROC\"),\"-\",IF(AND('Enrollment Form'!$B583=\"Subscriber\",'Enrollment Form'!$C583=\"Enroll\",'Enrollment Form'!$AS583<>\"\"),\"Y\",\"N\")))","v":""},{"$f":"IF($B576=\"N\",\"\",IF($Q576=\"-\",\"-\",IF(AND($Q576=\"Y\",'Enrollment Form'!$AS583=\"No\"),\"-\",IF(AND($Q576=\"Y\",'Enrollment Form'!$AS583=\"Yes\",'Enrollment Form'!$AT583<>\"\"),\"Y\",\"N\"))))","v":""},{"$f":"IF($B576=\"N\",\"\",IF(OR('Enrollment Form'!$B583<>\"Subscriber\",'Enrollment Form'!$C583=\"ROC\"),\"-\",IF(AND('Enrollment Form'!$B583=\"Subscriber\",'Enrollment Form'!$C583=\"Enroll\",'Enrollment Form'!$CV583<>\"\"),\"Y\",\"N\")))","v":""},{"$f":"IF($B576=\"N\",\"\",IF($S576=\"-\",\"-\",IF(AND($S576=\"Y\",'Enrollment Form'!$CV583=\"No\"),\"-\",IF(AND($S576=\"Y\",'Enrollment Form'!$CV583=\"Yes\",'Enrollment Form'!$CW583<>\"\"),\"Y\",\"N\"))))","v":""},{"$f":"IF(OR('Enrollment Form'!$AY583=\"Yes\",'Enrollment Form'!$AY583=\"\"),\"-\",IF(OR(AND('Enrollment Form'!$AY583=\"No\",ISERROR(FIND(\"HMO\",VLOOKUP('Enrollment Form'!G583,'Enrollment Form'!H$11:J$1000,3,FALSE),1))=FALSE,COUNTA('Enrollment Form'!$AZ583:$BC583)=4),AND('Enrollment Form'!$AY583=\"No\",ISERROR(FIND(\"HMO\",VLOOKUP('Enrollment Form'!G583,'Enrollment Form'!H$11:J$1000,3,FALSE),1))=FALSE,COUNTA('Enrollment Form'!$BT583:$BW583)=4)),\"Y\",\"N\"))","v":"-"},{"$f":"IF($B576=\"N\",\"\",IF('Enrollment Form'!$B583=\"Subscriber\",\"-\",IF(COUNTA('Enrollment Form'!$BL583,'Enrollment Form'!$BN583)=2,\"Y\",\"N\")))","v":""},{"$f":"IF($B576=\"N\",\"\",IF(OR('Enrollment Form'!$AX583=\"\",'Enrollment Form'!$AX583=\"No\"),\"-\",IF(AND('Enrollment Form'!$AX583=\"Yes\",COUNTA('Enrollment Form'!$CR583)=1),\"Y\",\"N\")))","v":""},{"$f":"IF(OR('Enrollment Form'!$CR583=\"\",'Enrollment Form'!$CR583=\"No\"),\"-\",IF(COUNTA('Enrollment Form'!$CT583:$CU583)=2,\"Y\",\"N\"))","v":"-"},{"$f":"IF($B576=\"N\",\"\",IF(COUNTIF('Enrollment Form'!$DG583:$DP583,\"Other\")=COUNTA('Enrollment Form'!$DK583,'Enrollment Form'!$DH583,'Enrollment Form'!$DN583,'Enrollment Form'!$DQ583),\"Y\",\"N\"))","v":""},{"$f":"IF($B576=\"N\",\"\",IF(OR('Enrollment Form'!B583<>\"Subscriber\",'Enrollment Form'!C583=\"ROC\",COUNTIF('Enrollment Form'!AV583:AW583,\"Yes\")>=1),\"-\",IF(AND('Enrollment Form'!C583=\"Enroll\",COUNTIF('Enrollment Form'!AV583:AW583,\"No\")=2,'Enrollment Form'!AX583=\"\"),\"N\",\"Y\")))","v":""},{"$f":"IF(OR(B576=\"N\",'Enrollment Form'!B583<>\"Subscriber\",'Enrollment Form'!C583=\"ROC\",'Enrollment Form'!O583<>\"Multiple of Salary\"),\"-\",IF(COUNTA('Enrollment Form'!T583:U583)<2,\"N\",\"Y\"))","v":"-"},{"$f":"IF(B576=\"N\",\"\",IF(OR('Enrollment Form'!C583=\"ROC\",'Enrollment Form'!B583<>\"Subscriber\",'Enrollment Form'!O583=\"Waive\",'Enrollment Form'!O583=\"\"),\"-\",IF('Enrollment Form'!P583=\"\",\"N\",\"Y\")))","v":""},{"$f":"IF($B576=\"N\",\"\",IF(AND('Enrollment Form'!$C583=\"ROC\",'Enrollment Form'!$DR583<>\"\"),\"Y\",IF(AND('Enrollment Form'!$C583=\"ROC\",'Enrollment Form'!$DR583=\"\"),\"N\",IF(AND('Enrollment Form'!$C583=\"Enroll\",'Enrollment Form'!$B583=\"Subscriber\",'Enrollment Form'!$CX583=\"No\",'Enrollment Form'!$DR583=\"\"),\"N\",IF(AND('Enrollment Form'!$C583=\"Enroll\",'Enrollment Form'!$B583=\"Subscriber\",'Enrollment Form'!$CX583=\"Yes\"),\"-\",\"Y\")))))","v":""},{"$f":"IF($B576=\"N\",\"\",IF(AND('Enrollment Form'!$C583=\"ROC\",'Enrollment Form'!$DS583<>\"\"),\"Y\",IF(AND('Enrollment Form'!$C583=\"ROC\",'Enrollment Form'!$DS583=\"\"),\"N\",IF(AND('Enrollment Form'!$C583=\"Enroll\",'Enrollment Form'!$B583=\"Subscriber\",'Enrollment Form'!$CX583=\"No\",'Enrollment Form'!$DS583=\"\"),\"N\",IF(AND('Enrollment Form'!$C583=\"Enroll\",'Enrollment Form'!$B583=\"Subscriber\",'Enrollment Form'!$CX583=\"Yes\"),\"-\",\"Y\")))))","v":""},{"$f":"IF('Enrollment Form'!AH583=\"\",\"\",IF(ISERROR(SEARCH(\".\",'Enrollment Form'!AH583,SEARCH(\"@\",'Enrollment Form'!AH583))),\"N\",\"Y\"))","v":""},{"$f":"IF(OR($B576=\"N\",'Enrollment Form'!$G583=\"\"),\"\",IF('Enrollment Form'!$B583<>\"Subscriber\",\"-\",IF(COUNTIF('Enrollment Form'!$AV583:$AW583,\"Yes\")=2,\"N\",\"Y\")))","v":""},{"$f":"IF(OR('Enrollment Form'!$CJ583=\"\",'Enrollment Form'!$CJ583=\"No\"),\"-\",IF(AND('Enrollment Form'!$CJ583=\"Yes\",'Enrollment Form'!$CK583=\"\"),\"N\",\"Y\"))","v":"-"},{"$f":"IF(OR('Enrollment Form'!$CL583=\"\",'Enrollment Form'!$CL583=\"No\"),\"-\",IF(AND('Enrollment Form'!$CL583=\"Yes\",'Enrollment Form'!$CM583=\"\"),\"N\",\"Y\"))","v":"-"},{"$f":"IF(OR('Enrollment Form'!$CN583=\"\",'Enrollment Form'!$CN583=\"No\"),\"-\",IF(AND('Enrollment Form'!$CN583=\"Yes\",'Enrollment Form'!$CO583=\"\"),\"N\",\"Y\"))","v":"-"},{"$f":"IF(OR('Enrollment Form'!$CN583=\"\",'Enrollment Form'!$CN583=\"No\"),\"-\",IF(AND('Enrollment Form'!$CN583=\"Yes\",'Enrollment Form'!$CP583=\"\"),\"N\",\"Y\"))","v":"-"},{"$f":"IF('Enrollment Form'!B583<>\"Subscriber\",\"-\",IF(AND('Enrollment Form'!B583=\"Subscriber\",'Enrollment Form'!C583=\"Enroll\",'Enrollment Form'!AA583=\"\"),\"N\",\"Y\"))","v":"-"},{"$f":"IF(OR('Enrollment Form'!B583=\"Subscriber\",'Enrollment Form'!B583=\"\"),\"-\",IF('Enrollment Form'!BP583=\"\",\"N\",\"Y\"))","v":"-"},{"$f":"IF('Enrollment Form'!B583<>\"Subscriber\",\"-\",IF(AND('Enrollment Form'!B583=\"Subscriber\",'Enrollment Form'!G583=\"\"),\"N\",\"Y\"))","v":"-"},{"$f":"IF('Enrollment Form'!A583=\"\",\"\",IF('Enrollment Form'!B583=\"Subscriber\",\"-\",IF(AND('Enrollment Form'!B583<>\"Subscriber\",'Enrollment Form'!G583='Enrollment Form'!H583),\"N\",\"Y\")))","v":""},0]
[584,{"$f":"IF('Enrollment Form'!$A584<>\"\",\"Y\",\"N\")","v":"N"},{"$f":"IF(AND('Enrollment Form'!$B584=\"\",'Enrollment Form'!$C584<>\"\"),\"N\",IF($B577=\"N\",\"\",\"Y\"))","v":""},{"$f":"IF(OR($B577=\"N\",'Enrollment Form'!G584=\"\"),\"\",IF('Enrollment Form'!$B584<>\"Subscriber\",\"\",IF('Enrollment Form'!$G584='Enrollment Form'!$H584,\"Y\",\"N\")))","v":""},{"$f":"IF($B577=\"N\",\"\",IF(AND(COUNTIFS('Enrollment Form'!$H$11:$H$1000,'Enrollment Form'!$H584,'Enrollment Form'!$B$11:$B$1000,'Enrollment Form'!$B584)>1,'Enrollment Form'!$H584<>\"\"),\"N\",\"Y\"))","v":""},{"$f":"IF($B577=\"N\",\"\",IF(LEN('Enrollment Form'!$Y584)=0,\"\",IF(LEN('Enrollment Form'!$Y584)<>5,\"N\",\"Y\")))","v":""},{"$f":"IF($B577=\"N\",\"\",IF(LEN('Enrollment Form'!$AD584=0),\"\",IF(LEN('Enrollment Form'!$AD584)<>5,\"N\",\"Y\")))","v":""},{"$f":"IF($B577=\"N\",\"\",IF(LEN('Enrollment Form'!$BS584=0),\"\",IF(LEN('Enrollment Form'!$BS584)<>5,\"N\",\"Y\")))","v":""},{"$f":"IF($B577=\"N\",\"\",IF(LEN('Enrollment Form'!$AE584)=0,\"\",IF(LEN('Enrollment Form'!$AE584)<>10,\"N\",\"Y\")))","v":""},{"$f":"IF($B577=\"N\",\"\",IF(LEN('Enrollment Form'!$AF584)=0,\"\",IF(LEN('Enrollment Form'!$AF584)<>10,\"N\",\"Y\")))","v":""},{"$f":"IF('Enrollment Form'!$O584<>\"Graded\",\"-\",IF(AND('Enrollment Form'!$O584=\"Graded\",'Enrollment Form'!$AR584<>\"\"),\"Y\",\"N\"))","v":"-"},{"$f":"IF($B577=\"N\",\"\",IF(OR('Enrollment Form'!$B584<>\"Subscriber\",'Enrollment Form'!$C584=\"ROC\"),\"-\",IF(AND('Enrollment Form'!$B584=\"Subscriber\",'Enrollment Form'!$C584=\"Enroll\",'Enrollment Form'!$AJ584<>\"\"),\"Y\",\"N\")))","v":""},{"$f":"IF($B577=\"N\",\"\",IF(OR('Enrollment Form'!$B584<>\"Subscriber\",'Enrollment Form'!$C584=\"ROC\"),\"-\",IF(AND('Enrollment Form'!$B584=\"Subscriber\",'Enrollment Form'!$C584=\"Enroll\",'Enrollment Form'!$AK584<>\"\"),\"Y\",\"N\")))","v":""},{"$f":"IF($B577=\"N\",\"\",IF(OR('Enrollment Form'!$B584<>\"Subscriber\",'Enrollment Form'!$C584=\"ROC\"),\"-\",IF(AND('Enrollment Form'!$B584=\"Subscriber\",'Enrollment Form'!$C584=\"Enroll\",'Enrollment Form'!$AL584<>\"\"),\"Y\",\"N\")))","v":""},{"$f":"IF($B577=\"N\",\"\",IF(OR('Enrollment Form'!$B584<>\"Subscriber\",'Enrollment Form'!$C584=\"ROC\"),\"-\",IF(AND('Enrollment Form'!$B584=\"Subscriber\",'Enrollment Form'!$C584=\"Enroll\",'Enrollment Form'!$AP584<>\"\"),\"Y\",\"N\")))","v":""},{"$f":"IF($B577=\"N\",\"\",IF(OR('Enrollment Form'!$B584<>\"Subscriber\",'Enrollment Form'!$C584=\"ROC\"),\"-\",IF(AND('Enrollment Form'!$B584=\"Subscriber\",'Enrollment Form'!$C584=\"Enroll\",'Enrollment Form'!$AQ584<>\"\"),\"Y\",\"N\")))","v":""},{"$f":"IF($B577=\"N\",\"\",IF(OR('Enrollment Form'!$B584<>\"Subscriber\",'Enrollment Form'!$C584=\"ROC\"),\"-\",IF(AND('Enrollment Form'!$B584=\"Subscriber\",'Enrollment Form'!$C584=\"Enroll\",'Enrollment Form'!$AS584<>\"\"),\"Y\",\"N\")))","v":""},{"$f":"IF($B577=\"N\",\"\",IF($Q577=\"-\",\"-\",IF(AND($Q577=\"Y\",'Enrollment Form'!$AS584=\"No\"),\"-\",IF(AND($Q577=\"Y\",'Enrollment Form'!$AS584=\"Yes\",'Enrollment Form'!$AT584<>\"\"),\"Y\",\"N\"))))","v":""},{"$f":"IF($B577=\"N\",\"\",IF(OR('Enrollment Form'!$B584<>\"Subscriber\",'Enrollment Form'!$C584=\"ROC\"),\"-\",IF(AND('Enrollment Form'!$B584=\"Subscriber\",'Enrollment Form'!$C584=\"Enroll\",'Enrollment Form'!$CV584<>\"\"),\"Y\",\"N\")))","v":""},{"$f":"IF($B577=\"N\",\"\",IF($S577=\"-\",\"-\",IF(AND($S577=\"Y\",'Enrollment Form'!$CV584=\"No\"),\"-\",IF(AND($S577=\"Y\",'Enrollment Form'!$CV584=\"Yes\",'Enrollment Form'!$CW584<>\"\"),\"Y\",\"N\"))))","v":""},{"$f":"IF(OR('Enrollment Form'!$AY584=\"Yes\",'Enrollment Form'!$AY584=\"\"),\"-\",IF(OR(AND('Enrollment Form'!$AY584=\"No\",ISERROR(FIND(\"HMO\",VLOOKUP('Enrollment Form'!G584,'Enrollment Form'!H$11:J$1000,3,FALSE),1))=FALSE,COUNTA('Enrollment Form'!$AZ584:$BC584)=4),AND('Enrollment Form'!$AY584=\"No\",ISERROR(FIND(\"HMO\",VLOOKUP('Enrollment Form'!G584,'Enrollment Form'!H$11:J$1000,3,FALSE),1))=FALSE,COUNTA('Enrollment Form'!$BT584:$BW584)=4)),\"Y\",\"N\"))","v":"-"},{"$f":"IF($B577=\"N\",\"\",IF('Enrollment Form'!$B584=\"Subscriber\",\"-\",IF(COUNTA('Enrollment Form'!$BL584,'Enrollment Form'!$BN584)=2,\"Y\",\"N\")))","v":""},{"$f":"IF($B577=\"N\",\"\",IF(OR('Enrollment Form'!$AX584=\"\",'Enrollment Form'!$AX584=\"No\"),\"-\",IF(AND('Enrollment Form'!$AX584=\"Yes\",COUNTA('Enrollment Form'!$CR584)=1),\"Y\",\"N\")))","v":""},{"$f":"IF(OR('Enrollment Form'!$CR584=\"\",'Enrollment Form'!$CR584=\"No\"),\"-\",IF(COUNTA('Enrollment Form'!$CT584:$CU584)=2,\"Y\",\"N\"))","v":"-"},{"$f":"IF($B577=\"N\",\"\",IF(COUNTIF('Enrollment Form'!$DG584:$DP584,\"Other\")=COUNTA('Enrollment Form'!$DK584,'Enrollment Form'!$DH584,'Enrollment Form'!$DN584,'Enrollment Form'!$DQ584),\"Y\",\"N\"))","v":""},{"$f":"IF($B577=\"N\",\"\",IF(OR('Enrollment Form'!B584<>\"Subscriber\",'Enrollment Form'!C584=\"ROC\",COUNTIF('Enrollment Form'!AV584:AW584,\"Yes\")>=1),\"-\",IF(AND('Enrollment Form'!C584=\"Enroll\",COUNTIF('Enrollment Form'!AV584:AW584,\"No\")=2,'Enrollment Form'!AX584=\"\"),\"N\",\"Y\")))","v":""},{"$f":"IF(OR(B577=\"N\",'Enrollment Form'!B584<>\"Subscriber\",'Enrollment Form'!C584=\"ROC\",'Enrollment Form'!O584<>\"Multiple of Salary\"),\"-\",IF(COUNTA('Enrollment Form'!T584:U584)<2,\"N\",\"Y\"))","v":"-"},{"$f":"IF(B577=\"N\",\"\",IF(OR('Enrollment Form'!C584=\"ROC\",'Enrollment Form'!B584<>\"Subscriber\",'Enrollment Form'!O584=\"Waive\",'Enrollment Form'!O584=\"\"),\"-\",IF('Enrollment Form'!P584=\"\",\"N\",\"Y\")))","v":""},{"$f":"IF($B577=\"N\",\"\",IF(AND('Enrollment Form'!$C584=\"ROC\",'Enrollment Form'!$DR584<>\"\"),\"Y\",IF(AND('Enrollment Form'!$C584=\"ROC\",'Enrollment Form'!$DR584=\"\"),\"N\",IF(AND('Enrollment Form'!$C584=\"Enroll\",'Enrollment Form'!$B584=\"Subscriber\",'Enrollment Form'!$CX584=\"No\",'Enrollment Form'!$DR584=\"\"),\"N\",IF(AND('Enrollment Form'!$C584=\"Enroll\",'Enrollment Form'!$B584=\"Subscriber\",'Enrollment Form'!$CX584=\"Yes\"),\"-\",\"Y\")))))","v":""},{"$f":"IF($B577=\"N\",\"\",IF(AND('Enrollment Form'!$C584=\"ROC\",'Enrollment Form'!$DS584<>\"\"),\"Y\",IF(AND('Enrollment Form'!$C584=\"ROC\",'Enrollment Form'!$DS584=\"\"),\"N\",IF(AND('Enrollment Form'!$C584=\"Enroll\",'Enrollment Form'!$B584=\"Subscriber\",'Enrollment Form'!$CX584=\"No\",'Enrollment Form'!$DS584=\"\"),\"N\",IF(AND('Enrollment Form'!$C584=\"Enroll\",'Enrollment Form'!$B584=\"Subscriber\",'Enrollment Form'!$CX584=\"Yes\"),\"-\",\"Y\")))))","v":""},{"$f":"IF('Enrollment Form'!AH584=\"\",\"\",IF(ISERROR(SEARCH(\".\",'Enrollment Form'!AH584,SEARCH(\"@\",'Enrollment Form'!AH584))),\"N\",\"Y\"))","v":""},{"$f":"IF(OR($B577=\"N\",'Enrollment Form'!$G584=\"\"),\"\",IF('Enrollment Form'!$B584<>\"Subscriber\",\"-\",IF(COUNTIF('Enrollment Form'!$AV584:$AW584,\"Yes\")=2,\"N\",\"Y\")))","v":""},{"$f":"IF(OR('Enrollment Form'!$CJ584=\"\",'Enrollment Form'!$CJ584=\"No\"),\"-\",IF(AND('Enrollment Form'!$CJ584=\"Yes\",'Enrollment Form'!$CK584=\"\"),\"N\",\"Y\"))","v":"-"},{"$f":"IF(OR('Enrollment Form'!$CL584=\"\",'Enrollment Form'!$CL584=\"No\"),\"-\",IF(AND('Enrollment Form'!$CL584=\"Yes\",'Enrollment Form'!$CM584=\"\"),\"N\",\"Y\"))","v":"-"},{"$f":"IF(OR('Enrollment Form'!$CN584=\"\",'Enrollment Form'!$CN584=\"No\"),\"-\",IF(AND('Enrollment Form'!$CN584=\"Yes\",'Enrollment Form'!$CO584=\"\"),\"N\",\"Y\"))","v":"-"},{"$f":"IF(OR('Enrollment Form'!$CN584=\"\",'Enrollment Form'!$CN584=\"No\"),\"-\",IF(AND('Enrollment Form'!$CN584=\"Yes\",'Enrollment Form'!$CP584=\"\"),\"N\",\"Y\"))","v":"-"},{"$f":"IF('Enrollment Form'!B584<>\"Subscriber\",\"-\",IF(AND('Enrollment Form'!B584=\"Subscriber\",'Enrollment Form'!C584=\"Enroll\",'Enrollment Form'!AA584=\"\"),\"N\",\"Y\"))","v":"-"},{"$f":"IF(OR('Enrollment Form'!B584=\"Subscriber\",'Enrollment Form'!B584=\"\"),\"-\",IF('Enrollment Form'!BP584=\"\",\"N\",\"Y\"))","v":"-"},{"$f":"IF('Enrollment Form'!B584<>\"Subscriber\",\"-\",IF(AND('Enrollment Form'!B584=\"Subscriber\",'Enrollment Form'!G584=\"\"),\"N\",\"Y\"))","v":"-"},{"$f":"IF('Enrollment Form'!A584=\"\",\"\",IF('Enrollment Form'!B584=\"Subscriber\",\"-\",IF(AND('Enrollment Form'!B584<>\"Subscriber\",'Enrollment Form'!G584='Enrollment Form'!H584),\"N\",\"Y\")))","v":""},0]
[585,{"$f":"IF('Enrollment Form'!$A585<>\"\",\"Y\",\"N\")","v":"N"},{"$f":"IF(AND('Enrollment Form'!$B585=\"\",'Enrollment Form'!$C585<>\"\"),\"N\",IF($B578=\"N\",\"\",\"Y\"))","v":""},{"$f":"IF(OR($B578=\"N\",'Enrollment Form'!G585=\"\"),\"\",IF('Enrollment Form'!$B585<>\"Subscriber\",\"\",IF('Enrollment Form'!$G585='Enrollment Form'!$H585,\"Y\",\"N\")))","v":""},{"$f":"IF($B578=\"N\",\"\",IF(AND(COUNTIFS('Enrollment Form'!$H$11:$H$1000,'Enrollment Form'!$H585,'Enrollment Form'!$B$11:$B$1000,'Enrollment Form'!$B585)>1,'Enrollment Form'!$H585<>\"\"),\"N\",\"Y\"))","v":""},{"$f":"IF($B578=\"N\",\"\",IF(LEN('Enrollment Form'!$Y585)=0,\"\",IF(LEN('Enrollment Form'!$Y585)<>5,\"N\",\"Y\")))","v":""},{"$f":"IF($B578=\"N\",\"\",IF(LEN('Enrollment Form'!$AD585=0),\"\",IF(LEN('Enrollment Form'!$AD585)<>5,\"N\",\"Y\")))","v":""},{"$f":"IF($B578=\"N\",\"\",IF(LEN('Enrollment Form'!$BS585=0),\"\",IF(LEN('Enrollment Form'!$BS585)<>5,\"N\",\"Y\")))","v":""},{"$f":"IF($B578=\"N\",\"\",IF(LEN('Enrollment Form'!$AE585)=0,\"\",IF(LEN('Enrollment Form'!$AE585)<>10,\"N\",\"Y\")))","v":""},{"$f":"IF($B578=\"N\",\"\",IF(LEN('Enrollment Form'!$AF585)=0,\"\",IF(LEN('Enrollment Form'!$AF585)<>10,\"N\",\"Y\")))","v":""},{"$f":"IF('Enrollment Form'!$O585<>\"Graded\",\"-\",IF(AND('Enrollment Form'!$O585=\"Graded\",'Enrollment Form'!$AR585<>\"\"),\"Y\",\"N\"))","v":"-"},{"$f":"IF($B578=\"N\",\"\",IF(OR('Enrollment Form'!$B585<>\"Subscriber\",'Enrollment Form'!$C585=\"ROC\"),\"-\",IF(AND('Enrollment Form'!$B585=\"Subscriber\",'Enrollment Form'!$C585=\"Enroll\",'Enrollment Form'!$AJ585<>\"\"),\"Y\",\"N\")))","v":""},{"$f":"IF($B578=\"N\",\"\",IF(OR('Enrollment Form'!$B585<>\"Subscriber\",'Enrollment Form'!$C585=\"ROC\"),\"-\",IF(AND('Enrollment Form'!$B585=\"Subscriber\",'Enrollment Form'!$C585=\"Enroll\",'Enrollment Form'!$AK585<>\"\"),\"Y\",\"N\")))","v":""},{"$f":"IF($B578=\"N\",\"\",IF(OR('Enrollment Form'!$B585<>\"Subscriber\",'Enrollment Form'!$C585=\"ROC\"),\"-\",IF(AND('Enrollment Form'!$B585=\"Subscriber\",'Enrollment Form'!$C585=\"Enroll\",'Enrollment Form'!$AL585<>\"\"),\"Y\",\"N\")))","v":""},{"$f":"IF($B578=\"N\",\"\",IF(OR('Enrollment Form'!$B585<>\"Subscriber\",'Enrollment Form'!$C585=\"ROC\"),\"-\",IF(AND('Enrollment Form'!$B585=\"Subscriber\",'Enrollment Form'!$C585=\"Enroll\",'Enrollment Form'!$AP585<>\"\"),\"Y\",\"N\")))","v":""},{"$f":"IF($B578=\"N\",\"\",IF(OR('Enrollment Form'!$B585<>\"Subscriber\",'Enrollment Form'!$C585=\"ROC\"),\"-\",IF(AND('Enrollment Form'!$B585=\"Subscriber\",'Enrollment Form'!$C585=\"Enroll\",'Enrollment Form'!$AQ585<>\"\"),\"Y\",\"N\")))","v":""},{"$f":"IF($B578=\"N\",\"\",IF(OR('Enrollment Form'!$B585<>\"Subscriber\",'Enrollment Form'!$C585=\"ROC\"),\"-\",IF(AND('Enrollment Form'!$B585=\"Subscriber\",'Enrollment Form'!$C585=\"Enroll\",'Enrollment Form'!$AS585<>\"\"),\"Y\",\"N\")))","v":""},{"$f":"IF($B578=\"N\",\"\",IF($Q578=\"-\",\"-\",IF(AND($Q578=\"Y\",'Enrollment Form'!$AS585=\"No\"),\"-\",IF(AND($Q578=\"Y\",'Enrollment Form'!$AS585=\"Yes\",'Enrollment Form'!$AT585<>\"\"),\"Y\",\"N\"))))","v":""},{"$f":"IF($B578=\"N\",\"\",IF(OR('Enrollment Form'!$B585<>\"Subscriber\",'Enrollment Form'!$C585=\"ROC\"),\"-\",IF(AND('Enrollment Form'!$B585=\"Subscriber\",'Enrollment Form'!$C585=\"Enroll\",'Enrollment Form'!$CV585<>\"\"),\"Y\",\"N\")))","v":""},{"$f":"IF($B578=\"N\",\"\",IF($S578=\"-\",\"-\",IF(AND($S578=\"Y\",'Enrollment Form'!$CV585=\"No\"),\"-\",IF(AND($S578=\"Y\",'Enrollment Form'!$CV585=\"Yes\",'Enrollment Form'!$CW585<>\"\"),\"Y\",\"N\"))))","v":""},{"$f":"IF(OR('Enrollment Form'!$AY585=\"Yes\",'Enrollment Form'!$AY585=\"\"),\"-\",IF(OR(AND('Enrollment Form'!$AY585=\"No\",ISERROR(FIND(\"HMO\",VLOOKUP('Enrollment Form'!G585,'Enrollment Form'!H$11:J$1000,3,FALSE),1))=FALSE,COUNTA('Enrollment Form'!$AZ585:$BC585)=4),AND('Enrollment Form'!$AY585=\"No\",ISERROR(FIND(\"HMO\",VLOOKUP('Enrollment Form'!G585,'Enrollment Form'!H$11:J$1000,3,FALSE),1))=FALSE,COUNTA('Enrollment Form'!$BT585:$BW585)=4)),\"Y\",\"N\"))","v":"-"},{"$f":"IF($B578=\"N\",\"\",IF('Enrollment Form'!$B585=\"Subscriber\",\"-\",IF(COUNTA('Enrollment Form'!$BL585,'Enrollment Form'!$BN585)=2,\"Y\",\"N\")))","v":""},{"$f":"IF($B578=\"N\",\"\",IF(OR('Enrollment Form'!$AX585=\"\",'Enrollment Form'!$AX585=\"No\"),\"-\",IF(AND('Enrollment Form'!$AX585=\"Yes\",COUNTA('Enrollment Form'!$CR585)=1),\"Y\",\"N\")))","v":""},{"$f":"IF(OR('Enrollment Form'!$CR585=\"\",'Enrollment Form'!$CR585=\"No\"),\"-\",IF(COUNTA('Enrollment Form'!$CT585:$CU585)=2,\"Y\",\"N\"))","v":"-"},{"$f":"IF($B578=\"N\",\"\",IF(COUNTIF('Enrollment Form'!$DG585:$DP585,\"Other\")=COUNTA('Enrollment Form'!$DK585,'Enrollment Form'!$DH585,'Enrollment Form'!$DN585,'Enrollment Form'!$DQ585),\"Y\",\"N\"))","v":""},{"$f":"IF($B578=\"N\",\"\",IF(OR('Enrollment Form'!B585<>\"Subscriber\",'Enrollment Form'!C585=\"ROC\",COUNTIF('Enrollment Form'!AV585:AW585,\"Yes\")>=1),\"-\",IF(AND('Enrollment Form'!C585=\"Enroll\",COUNTIF('Enrollment Form'!AV585:AW585,\"No\")=2,'Enrollment Form'!AX585=\"\"),\"N\",\"Y\")))","v":""},{"$f":"IF(OR(B578=\"N\",'Enrollment Form'!B585<>\"Subscriber\",'Enrollment Form'!C585=\"ROC\",'Enrollment Form'!O585<>\"Multiple of Salary\"),\"-\",IF(COUNTA('Enrollment Form'!T585:U585)<2,\"N\",\"Y\"))","v":"-"},{"$f":"IF(B578=\"N\",\"\",IF(OR('Enrollment Form'!C585=\"ROC\",'Enrollment Form'!B585<>\"Subscriber\",'Enrollment Form'!O585=\"Waive\",'Enrollment Form'!O585=\"\"),\"-\",IF('Enrollment Form'!P585=\"\",\"N\",\"Y\")))","v":""},{"$f":"IF($B578=\"N\",\"\",IF(AND('Enrollment Form'!$C585=\"ROC\",'Enrollment Form'!$DR585<>\"\"),\"Y\",IF(AND('Enrollment Form'!$C585=\"ROC\",'Enrollment Form'!$DR585=\"\"),\"N\",IF(AND('Enrollment Form'!$C585=\"Enroll\",'Enrollment Form'!$B585=\"Subscriber\",'Enrollment Form'!$CX585=\"No\",'Enrollment Form'!$DR585=\"\"),\"N\",IF(AND('Enrollment Form'!$C585=\"Enroll\",'Enrollment Form'!$B585=\"Subscriber\",'Enrollment Form'!$CX585=\"Yes\"),\"-\",\"Y\")))))","v":""},{"$f":"IF($B578=\"N\",\"\",IF(AND('Enrollment Form'!$C585=\"ROC\",'Enrollment Form'!$DS585<>\"\"),\"Y\",IF(AND('Enrollment Form'!$C585=\"ROC\",'Enrollment Form'!$DS585=\"\"),\"N\",IF(AND('Enrollment Form'!$C585=\"Enroll\",'Enrollment Form'!$B585=\"Subscriber\",'Enrollment Form'!$CX585=\"No\",'Enrollment Form'!$DS585=\"\"),\"N\",IF(AND('Enrollment Form'!$C585=\"Enroll\",'Enrollment Form'!$B585=\"Subscriber\",'Enrollment Form'!$CX585=\"Yes\"),\"-\",\"Y\")))))","v":""},{"$f":"IF('Enrollment Form'!AH585=\"\",\"\",IF(ISERROR(SEARCH(\".\",'Enrollment Form'!AH585,SEARCH(\"@\",'Enrollment Form'!AH585))),\"N\",\"Y\"))","v":""},{"$f":"IF(OR($B578=\"N\",'Enrollment Form'!$G585=\"\"),\"\",IF('Enrollment Form'!$B585<>\"Subscriber\",\"-\",IF(COUNTIF('Enrollment Form'!$AV585:$AW585,\"Yes\")=2,\"N\",\"Y\")))","v":""},{"$f":"IF(OR('Enrollment Form'!$CJ585=\"\",'Enrollment Form'!$CJ585=\"No\"),\"-\",IF(AND('Enrollment Form'!$CJ585=\"Yes\",'Enrollment Form'!$CK585=\"\"),\"N\",\"Y\"))","v":"-"},{"$f":"IF(OR('Enrollment Form'!$CL585=\"\",'Enrollment Form'!$CL585=\"No\"),\"-\",IF(AND('Enrollment Form'!$CL585=\"Yes\",'Enrollment Form'!$CM585=\"\"),\"N\",\"Y\"))","v":"-"},{"$f":"IF(OR('Enrollment Form'!$CN585=\"\",'Enrollment Form'!$CN585=\"No\"),\"-\",IF(AND('Enrollment Form'!$CN585=\"Yes\",'Enrollment Form'!$CO585=\"\"),\"N\",\"Y\"))","v":"-"},{"$f":"IF(OR('Enrollment Form'!$CN585=\"\",'Enrollment Form'!$CN585=\"No\"),\"-\",IF(AND('Enrollment Form'!$CN585=\"Yes\",'Enrollment Form'!$CP585=\"\"),\"N\",\"Y\"))","v":"-"},{"$f":"IF('Enrollment Form'!B585<>\"Subscriber\",\"-\",IF(AND('Enrollment Form'!B585=\"Subscriber\",'Enrollment Form'!C585=\"Enroll\",'Enrollment Form'!AA585=\"\"),\"N\",\"Y\"))","v":"-"},{"$f":"IF(OR('Enrollment Form'!B585=\"Subscriber\",'Enrollment Form'!B585=\"\"),\"-\",IF('Enrollment Form'!BP585=\"\",\"N\",\"Y\"))","v":"-"},{"$f":"IF('Enrollment Form'!B585<>\"Subscriber\",\"-\",IF(AND('Enrollment Form'!B585=\"Subscriber\",'Enrollment Form'!G585=\"\"),\"N\",\"Y\"))","v":"-"},{"$f":"IF('Enrollment Form'!A585=\"\",\"\",IF('Enrollment Form'!B585=\"Subscriber\",\"-\",IF(AND('Enrollment Form'!B585<>\"Subscriber\",'Enrollment Form'!G585='Enrollment Form'!H585),\"N\",\"Y\")))","v":""},0]
[586,{"$f":"IF('Enrollment Form'!$A586<>\"\",\"Y\",\"N\")","v":"N"},{"$f":"IF(AND('Enrollment Form'!$B586=\"\",'Enrollment Form'!$C586<>\"\"),\"N\",IF($B579=\"N\",\"\",\"Y\"))","v":""},{"$f":"IF(OR($B579=\"N\",'Enrollment Form'!G586=\"\"),\"\",IF('Enrollment Form'!$B586<>\"Subscriber\",\"\",IF('Enrollment Form'!$G586='Enrollment Form'!$H586,\"Y\",\"N\")))","v":""},{"$f":"IF($B579=\"N\",\"\",IF(AND(COUNTIFS('Enrollment Form'!$H$11:$H$1000,'Enrollment Form'!$H586,'Enrollment Form'!$B$11:$B$1000,'Enrollment Form'!$B586)>1,'Enrollment Form'!$H586<>\"\"),\"N\",\"Y\"))","v":""},{"$f":"IF($B579=\"N\",\"\",IF(LEN('Enrollment Form'!$Y586)=0,\"\",IF(LEN('Enrollment Form'!$Y586)<>5,\"N\",\"Y\")))","v":""},{"$f":"IF($B579=\"N\",\"\",IF(LEN('Enrollment Form'!$AD586=0),\"\",IF(LEN('Enrollment Form'!$AD586)<>5,\"N\",\"Y\")))","v":""},{"$f":"IF($B579=\"N\",\"\",IF(LEN('Enrollment Form'!$BS586=0),\"\",IF(LEN('Enrollment Form'!$BS586)<>5,\"N\",\"Y\")))","v":""},{"$f":"IF($B579=\"N\",\"\",IF(LEN('Enrollment Form'!$AE586)=0,\"\",IF(LEN('Enrollment Form'!$AE586)<>10,\"N\",\"Y\")))","v":""},{"$f":"IF($B579=\"N\",\"\",IF(LEN('Enrollment Form'!$AF586)=0,\"\",IF(LEN('Enrollment Form'!$AF586)<>10,\"N\",\"Y\")))","v":""},{"$f":"IF('Enrollment Form'!$O586<>\"Graded\",\"-\",IF(AND('Enrollment Form'!$O586=\"Graded\",'Enrollment Form'!$AR586<>\"\"),\"Y\",\"N\"))","v":"-"},{"$f":"IF($B579=\"N\",\"\",IF(OR('Enrollment Form'!$B586<>\"Subscriber\",'Enrollment Form'!$C586=\"ROC\"),\"-\",IF(AND('Enrollment Form'!$B586=\"Subscriber\",'Enrollment Form'!$C586=\"Enroll\",'Enrollment Form'!$AJ586<>\"\"),\"Y\",\"N\")))","v":""},{"$f":"IF($B579=\"N\",\"\",IF(OR('Enrollment Form'!$B586<>\"Subscriber\",'Enrollment Form'!$C586=\"ROC\"),\"-\",IF(AND('Enrollment Form'!$B586=\"Subscriber\",'Enrollment Form'!$C586=\"Enroll\",'Enrollment Form'!$AK586<>\"\"),\"Y\",\"N\")))","v":""},{"$f":"IF($B579=\"N\",\"\",IF(OR('Enrollment Form'!$B586<>\"Subscriber\",'Enrollment Form'!$C586=\"ROC\"),\"-\",IF(AND('Enrollment Form'!$B586=\"Subscriber\",'Enrollment Form'!$C586=\"Enroll\",'Enrollment Form'!$AL586<>\"\"),\"Y\",\"N\")))","v":""},{"$f":"IF($B579=\"N\",\"\",IF(OR('Enrollment Form'!$B586<>\"Subscriber\",'Enrollment Form'!$C586=\"ROC\"),\"-\",IF(AND('Enrollment Form'!$B586=\"Subscriber\",'Enrollment Form'!$C586=\"Enroll\",'Enrollment Form'!$AP586<>\"\"),\"Y\",\"N\")))","v":""},{"$f":"IF($B579=\"N\",\"\",IF(OR('Enrollment Form'!$B586<>\"Subscriber\",'Enrollment Form'!$C586=\"ROC\"),\"-\",IF(AND('Enrollment Form'!$B586=\"Subscriber\",'Enrollment Form'!$C586=\"Enroll\",'Enrollment Form'!$AQ586<>\"\"),\"Y\",\"N\")))","v":""},{"$f":"IF($B579=\"N\",\"\",IF(OR('Enrollment Form'!$B586<>\"Subscriber\",'Enrollment Form'!$C586=\"ROC\"),\"-\",IF(AND('Enrollment Form'!$B586=\"Subscriber\",'Enrollment Form'!$C586=\"Enroll\",'Enrollment Form'!$AS586<>\"\"),\"Y\",\"N\")))","v":""},{"$f":"IF($B579=\"N\",\"\",IF($Q579=\"-\",\"-\",IF(AND($Q579=\"Y\",'Enrollment Form'!$AS586=\"No\"),\"-\",IF(AND($Q579=\"Y\",'Enrollment Form'!$AS586=\"Yes\",'Enrollment Form'!$AT586<>\"\"),\"Y\",\"N\"))))","v":""},{"$f":"IF($B579=\"N\",\"\",IF(OR('Enrollment Form'!$B586<>\"Subscriber\",'Enrollment Form'!$C586=\"ROC\"),\"-\",IF(AND('Enrollment Form'!$B586=\"Subscriber\",'Enrollment Form'!$C586=\"Enroll\",'Enrollment Form'!$CV586<>\"\"),\"Y\",\"N\")))","v":""},{"$f":"IF($B579=\"N\",\"\",IF($S579=\"-\",\"-\",IF(AND($S579=\"Y\",'Enrollment Form'!$CV586=\"No\"),\"-\",IF(AND($S579=\"Y\",'Enrollment Form'!$CV586=\"Yes\",'Enrollment Form'!$CW586<>\"\"),\"Y\",\"N\"))))","v":""},{"$f":"IF(OR('Enrollment Form'!$AY586=\"Yes\",'Enrollment Form'!$AY586=\"\"),\"-\",IF(OR(AND('Enrollment Form'!$AY586=\"No\",ISERROR(FIND(\"HMO\",VLOOKUP('Enrollment Form'!G586,'Enrollment Form'!H$11:J$1000,3,FALSE),1))=FALSE,COUNTA('Enrollment Form'!$AZ586:$BC586)=4),AND('Enrollment Form'!$AY586=\"No\",ISERROR(FIND(\"HMO\",VLOOKUP('Enrollment Form'!G586,'Enrollment Form'!H$11:J$1000,3,FALSE),1))=FALSE,COUNTA('Enrollment Form'!$BT586:$BW586)=4)),\"Y\",\"N\"))","v":"-"},{"$f":"IF($B579=\"N\",\"\",IF('Enrollment Form'!$B586=\"Subscriber\",\"-\",IF(COUNTA('Enrollment Form'!$BL586,'Enrollment Form'!$BN586)=2,\"Y\",\"N\")))","v":""},{"$f":"IF($B579=\"N\",\"\",IF(OR('Enrollment Form'!$AX586=\"\",'Enrollment Form'!$AX586=\"No\"),\"-\",IF(AND('Enrollment Form'!$AX586=\"Yes\",COUNTA('Enrollment Form'!$CR586)=1),\"Y\",\"N\")))","v":""},{"$f":"IF(OR('Enrollment Form'!$CR586=\"\",'Enrollment Form'!$CR586=\"No\"),\"-\",IF(COUNTA('Enrollment Form'!$CT586:$CU586)=2,\"Y\",\"N\"))","v":"-"},{"$f":"IF($B579=\"N\",\"\",IF(COUNTIF('Enrollment Form'!$DG586:$DP586,\"Other\")=COUNTA('Enrollment Form'!$DK586,'Enrollment Form'!$DH586,'Enrollment Form'!$DN586,'Enrollment Form'!$DQ586),\"Y\",\"N\"))","v":""},{"$f":"IF($B579=\"N\",\"\",IF(OR('Enrollment Form'!B586<>\"Subscriber\",'Enrollment Form'!C586=\"ROC\",COUNTIF('Enrollment Form'!AV586:AW586,\"Yes\")>=1),\"-\",IF(AND('Enrollment Form'!C586=\"Enroll\",COUNTIF('Enrollment Form'!AV586:AW586,\"No\")=2,'Enrollment Form'!AX586=\"\"),\"N\",\"Y\")))","v":""},{"$f":"IF(OR(B579=\"N\",'Enrollment Form'!B586<>\"Subscriber\",'Enrollment Form'!C586=\"ROC\",'Enrollment Form'!O586<>\"Multiple of Salary\"),\"-\",IF(COUNTA('Enrollment Form'!T586:U586)<2,\"N\",\"Y\"))","v":"-"},{"$f":"IF(B579=\"N\",\"\",IF(OR('Enrollment Form'!C586=\"ROC\",'Enrollment Form'!B586<>\"Subscriber\",'Enrollment Form'!O586=\"Waive\",'Enrollment Form'!O586=\"\"),\"-\",IF('Enrollment Form'!P586=\"\",\"N\",\"Y\")))","v":""},{"$f":"IF($B579=\"N\",\"\",IF(AND('Enrollment Form'!$C586=\"ROC\",'Enrollment Form'!$DR586<>\"\"),\"Y\",IF(AND('Enrollment Form'!$C586=\"ROC\",'Enrollment Form'!$DR586=\"\"),\"N\",IF(AND('Enrollment Form'!$C586=\"Enroll\",'Enrollment Form'!$B586=\"Subscriber\",'Enrollment Form'!$CX586=\"No\",'Enrollment Form'!$DR586=\"\"),\"N\",IF(AND('Enrollment Form'!$C586=\"Enroll\",'Enrollment Form'!$B586=\"Subscriber\",'Enrollment Form'!$CX586=\"Yes\"),\"-\",\"Y\")))))","v":""},{"$f":"IF($B579=\"N\",\"\",IF(AND('Enrollment Form'!$C586=\"ROC\",'Enrollment Form'!$DS586<>\"\"),\"Y\",IF(AND('Enrollment Form'!$C586=\"ROC\",'Enrollment Form'!$DS586=\"\"),\"N\",IF(AND('Enrollment Form'!$C586=\"Enroll\",'Enrollment Form'!$B586=\"Subscriber\",'Enrollment Form'!$CX586=\"No\",'Enrollment Form'!$DS586=\"\"),\"N\",IF(AND('Enrollment Form'!$C586=\"Enroll\",'Enrollment Form'!$B586=\"Subscriber\",'Enrollment Form'!$CX586=\"Yes\"),\"-\",\"Y\")))))","v":""},{"$f":"IF('Enrollment Form'!AH586=\"\",\"\",IF(ISERROR(SEARCH(\".\",'Enrollment Form'!AH586,SEARCH(\"@\",'Enrollment Form'!AH586))),\"N\",\"Y\"))","v":""},{"$f":"IF(OR($B579=\"N\",'Enrollment Form'!$G586=\"\"),\"\",IF('Enrollment Form'!$B586<>\"Subscriber\",\"-\",IF(COUNTIF('Enrollment Form'!$AV586:$AW586,\"Yes\")=2,\"N\",\"Y\")))","v":""},{"$f":"IF(OR('Enrollment Form'!$CJ586=\"\",'Enrollment Form'!$CJ586=\"No\"),\"-\",IF(AND('Enrollment Form'!$CJ586=\"Yes\",'Enrollment Form'!$CK586=\"\"),\"N\",\"Y\"))","v":"-"},{"$f":"IF(OR('Enrollment Form'!$CL586=\"\",'Enrollment Form'!$CL586=\"No\"),\"-\",IF(AND('Enrollment Form'!$CL586=\"Yes\",'Enrollment Form'!$CM586=\"\"),\"N\",\"Y\"))","v":"-"},{"$f":"IF(OR('Enrollment Form'!$CN586=\"\",'Enrollment Form'!$CN586=\"No\"),\"-\",IF(AND('Enrollment Form'!$CN586=\"Yes\",'Enrollment Form'!$CO586=\"\"),\"N\",\"Y\"))","v":"-"},{"$f":"IF(OR('Enrollment Form'!$CN586=\"\",'Enrollment Form'!$CN586=\"No\"),\"-\",IF(AND('Enrollment Form'!$CN586=\"Yes\",'Enrollment Form'!$CP586=\"\"),\"N\",\"Y\"))","v":"-"},{"$f":"IF('Enrollment Form'!B586<>\"Subscriber\",\"-\",IF(AND('Enrollment Form'!B586=\"Subscriber\",'Enrollment Form'!C586=\"Enroll\",'Enrollment Form'!AA586=\"\"),\"N\",\"Y\"))","v":"-"},{"$f":"IF(OR('Enrollment Form'!B586=\"Subscriber\",'Enrollment Form'!B586=\"\"),\"-\",IF('Enrollment Form'!BP586=\"\",\"N\",\"Y\"))","v":"-"},{"$f":"IF('Enrollment Form'!B586<>\"Subscriber\",\"-\",IF(AND('Enrollment Form'!B586=\"Subscriber\",'Enrollment Form'!G586=\"\"),\"N\",\"Y\"))","v":"-"},{"$f":"IF('Enrollment Form'!A586=\"\",\"\",IF('Enrollment Form'!B586=\"Subscriber\",\"-\",IF(AND('Enrollment Form'!B586<>\"Subscriber\",'Enrollment Form'!G586='Enrollment Form'!H586),\"N\",\"Y\")))","v":""},0]
[587,{"$f":"IF('Enrollment Form'!$A587<>\"\",\"Y\",\"N\")","v":"N"},{"$f":"IF(AND('Enrollment Form'!$B587=\"\",'Enrollment Form'!$C587<>\"\"),\"N\",IF($B580=\"N\",\"\",\"Y\"))","v":""},{"$f":"IF(OR($B580=\"N\",'Enrollment Form'!G587=\"\"),\"\",IF('Enrollment Form'!$B587<>\"Subscriber\",\"\",IF('Enrollment Form'!$G587='Enrollment Form'!$H587,\"Y\",\"N\")))","v":""},{"$f":"IF($B580=\"N\",\"\",IF(AND(COUNTIFS('Enrollment Form'!$H$11:$H$1000,'Enrollment Form'!$H587,'Enrollment Form'!$B$11:$B$1000,'Enrollment Form'!$B587)>1,'Enrollment Form'!$H587<>\"\"),\"N\",\"Y\"))","v":""},{"$f":"IF($B580=\"N\",\"\",IF(LEN('Enrollment Form'!$Y587)=0,\"\",IF(LEN('Enrollment Form'!$Y587)<>5,\"N\",\"Y\")))","v":""},{"$f":"IF($B580=\"N\",\"\",IF(LEN('Enrollment Form'!$AD587=0),\"\",IF(LEN('Enrollment Form'!$AD587)<>5,\"N\",\"Y\")))","v":""},{"$f":"IF($B580=\"N\",\"\",IF(LEN('Enrollment Form'!$BS587=0),\"\",IF(LEN('Enrollment Form'!$BS587)<>5,\"N\",\"Y\")))","v":""},{"$f":"IF($B580=\"N\",\"\",IF(LEN('Enrollment Form'!$AE587)=0,\"\",IF(LEN('Enrollment Form'!$AE587)<>10,\"N\",\"Y\")))","v":""},{"$f":"IF($B580=\"N\",\"\",IF(LEN('Enrollment Form'!$AF587)=0,\"\",IF(LEN('Enrollment Form'!$AF587)<>10,\"N\",\"Y\")))","v":""},{"$f":"IF('Enrollment Form'!$O587<>\"Graded\",\"-\",IF(AND('Enrollment Form'!$O587=\"Graded\",'Enrollment Form'!$AR587<>\"\"),\"Y\",\"N\"))","v":"-"},{"$f":"IF($B580=\"N\",\"\",IF(OR('Enrollment Form'!$B587<>\"Subscriber\",'Enrollment Form'!$C587=\"ROC\"),\"-\",IF(AND('Enrollment Form'!$B587=\"Subscriber\",'Enrollment Form'!$C587=\"Enroll\",'Enrollment Form'!$AJ587<>\"\"),\"Y\",\"N\")))","v":""},{"$f":"IF($B580=\"N\",\"\",IF(OR('Enrollment Form'!$B587<>\"Subscriber\",'Enrollment Form'!$C587=\"ROC\"),\"-\",IF(AND('Enrollment Form'!$B587=\"Subscriber\",'Enrollment Form'!$C587=\"Enroll\",'Enrollment Form'!$AK587<>\"\"),\"Y\",\"N\")))","v":""},{"$f":"IF($B580=\"N\",\"\",IF(OR('Enrollment Form'!$B587<>\"Subscriber\",'Enrollment Form'!$C587=\"ROC\"),\"-\",IF(AND('Enrollment Form'!$B587=\"Subscriber\",'Enrollment Form'!$C587=\"Enroll\",'Enrollment Form'!$AL587<>\"\"),\"Y\",\"N\")))","v":""},{"$f":"IF($B580=\"N\",\"\",IF(OR('Enrollment Form'!$B587<>\"Subscriber\",'Enrollment Form'!$C587=\"ROC\"),\"-\",IF(AND('Enrollment Form'!$B587=\"Subscriber\",'Enrollment Form'!$C587=\"Enroll\",'Enrollment Form'!$AP587<>\"\"),\"Y\",\"N\")))","v":""},{"$f":"IF($B580=\"N\",\"\",IF(OR('Enrollment Form'!$B587<>\"Subscriber\",'Enrollment Form'!$C587=\"ROC\"),\"-\",IF(AND('Enrollment Form'!$B587=\"Subscriber\",'Enrollment Form'!$C587=\"Enroll\",'Enrollment Form'!$AQ587<>\"\"),\"Y\",\"N\")))","v":""},{"$f":"IF($B580=\"N\",\"\",IF(OR('Enrollment Form'!$B587<>\"Subscriber\",'Enrollment Form'!$C587=\"ROC\"),\"-\",IF(AND('Enrollment Form'!$B587=\"Subscriber\",'Enrollment Form'!$C587=\"Enroll\",'Enrollment Form'!$AS587<>\"\"),\"Y\",\"N\")))","v":""},{"$f":"IF($B580=\"N\",\"\",IF($Q580=\"-\",\"-\",IF(AND($Q580=\"Y\",'Enrollment Form'!$AS587=\"No\"),\"-\",IF(AND($Q580=\"Y\",'Enrollment Form'!$AS587=\"Yes\",'Enrollment Form'!$AT587<>\"\"),\"Y\",\"N\"))))","v":""},{"$f":"IF($B580=\"N\",\"\",IF(OR('Enrollment Form'!$B587<>\"Subscriber\",'Enrollment Form'!$C587=\"ROC\"),\"-\",IF(AND('Enrollment Form'!$B587=\"Subscriber\",'Enrollment Form'!$C587=\"Enroll\",'Enrollment Form'!$CV587<>\"\"),\"Y\",\"N\")))","v":""},{"$f":"IF($B580=\"N\",\"\",IF($S580=\"-\",\"-\",IF(AND($S580=\"Y\",'Enrollment Form'!$CV587=\"No\"),\"-\",IF(AND($S580=\"Y\",'Enrollment Form'!$CV587=\"Yes\",'Enrollment Form'!$CW587<>\"\"),\"Y\",\"N\"))))","v":""},{"$f":"IF(OR('Enrollment Form'!$AY587=\"Yes\",'Enrollment Form'!$AY587=\"\"),\"-\",IF(OR(AND('Enrollment Form'!$AY587=\"No\",ISERROR(FIND(\"HMO\",VLOOKUP('Enrollment Form'!G587,'Enrollment Form'!H$11:J$1000,3,FALSE),1))=FALSE,COUNTA('Enrollment Form'!$AZ587:$BC587)=4),AND('Enrollment Form'!$AY587=\"No\",ISERROR(FIND(\"HMO\",VLOOKUP('Enrollment Form'!G587,'Enrollment Form'!H$11:J$1000,3,FALSE),1))=FALSE,COUNTA('Enrollment Form'!$BT587:$BW587)=4)),\"Y\",\"N\"))","v":"-"},{"$f":"IF($B580=\"N\",\"\",IF('Enrollment Form'!$B587=\"Subscriber\",\"-\",IF(COUNTA('Enrollment Form'!$BL587,'Enrollment Form'!$BN587)=2,\"Y\",\"N\")))","v":""},{"$f":"IF($B580=\"N\",\"\",IF(OR('Enrollment Form'!$AX587=\"\",'Enrollment Form'!$AX587=\"No\"),\"-\",IF(AND('Enrollment Form'!$AX587=\"Yes\",COUNTA('Enrollment Form'!$CR587)=1),\"Y\",\"N\")))","v":""},{"$f":"IF(OR('Enrollment Form'!$CR587=\"\",'Enrollment Form'!$CR587=\"No\"),\"-\",IF(COUNTA('Enrollment Form'!$CT587:$CU587)=2,\"Y\",\"N\"))","v":"-"},{"$f":"IF($B580=\"N\",\"\",IF(COUNTIF('Enrollment Form'!$DG587:$DP587,\"Other\")=COUNTA('Enrollment Form'!$DK587,'Enrollment Form'!$DH587,'Enrollment Form'!$DN587,'Enrollment Form'!$DQ587),\"Y\",\"N\"))","v":""},{"$f":"IF($B580=\"N\",\"\",IF(OR('Enrollment Form'!B587<>\"Subscriber\",'Enrollment Form'!C587=\"ROC\",COUNTIF('Enrollment Form'!AV587:AW587,\"Yes\")>=1),\"-\",IF(AND('Enrollment Form'!C587=\"Enroll\",COUNTIF('Enrollment Form'!AV587:AW587,\"No\")=2,'Enrollment Form'!AX587=\"\"),\"N\",\"Y\")))","v":""},{"$f":"IF(OR(B580=\"N\",'Enrollment Form'!B587<>\"Subscriber\",'Enrollment Form'!C587=\"ROC\",'Enrollment Form'!O587<>\"Multiple of Salary\"),\"-\",IF(COUNTA('Enrollment Form'!T587:U587)<2,\"N\",\"Y\"))","v":"-"},{"$f":"IF(B580=\"N\",\"\",IF(OR('Enrollment Form'!C587=\"ROC\",'Enrollment Form'!B587<>\"Subscriber\",'Enrollment Form'!O587=\"Waive\",'Enrollment Form'!O587=\"\"),\"-\",IF('Enrollment Form'!P587=\"\",\"N\",\"Y\")))","v":""},{"$f":"IF($B580=\"N\",\"\",IF(AND('Enrollment Form'!$C587=\"ROC\",'Enrollment Form'!$DR587<>\"\"),\"Y\",IF(AND('Enrollment Form'!$C587=\"ROC\",'Enrollment Form'!$DR587=\"\"),\"N\",IF(AND('Enrollment Form'!$C587=\"Enroll\",'Enrollment Form'!$B587=\"Subscriber\",'Enrollment Form'!$CX587=\"No\",'Enrollment Form'!$DR587=\"\"),\"N\",IF(AND('Enrollment Form'!$C587=\"Enroll\",'Enrollment Form'!$B587=\"Subscriber\",'Enrollment Form'!$CX587=\"Yes\"),\"-\",\"Y\")))))","v":""},{"$f":"IF($B580=\"N\",\"\",IF(AND('Enrollment Form'!$C587=\"ROC\",'Enrollment Form'!$DS587<>\"\"),\"Y\",IF(AND('Enrollment Form'!$C587=\"ROC\",'Enrollment Form'!$DS587=\"\"),\"N\",IF(AND('Enrollment Form'!$C587=\"Enroll\",'Enrollment Form'!$B587=\"Subscriber\",'Enrollment Form'!$CX587=\"No\",'Enrollment Form'!$DS587=\"\"),\"N\",IF(AND('Enrollment Form'!$C587=\"Enroll\",'Enrollment Form'!$B587=\"Subscriber\",'Enrollment Form'!$CX587=\"Yes\"),\"-\",\"Y\")))))","v":""},{"$f":"IF('Enrollment Form'!AH587=\"\",\"\",IF(ISERROR(SEARCH(\".\",'Enrollment Form'!AH587,SEARCH(\"@\",'Enrollment Form'!AH587))),\"N\",\"Y\"))","v":""},{"$f":"IF(OR($B580=\"N\",'Enrollment Form'!$G587=\"\"),\"\",IF('Enrollment Form'!$B587<>\"Subscriber\",\"-\",IF(COUNTIF('Enrollment Form'!$AV587:$AW587,\"Yes\")=2,\"N\",\"Y\")))","v":""},{"$f":"IF(OR('Enrollment Form'!$CJ587=\"\",'Enrollment Form'!$CJ587=\"No\"),\"-\",IF(AND('Enrollment Form'!$CJ587=\"Yes\",'Enrollment Form'!$CK587=\"\"),\"N\",\"Y\"))","v":"-"},{"$f":"IF(OR('Enrollment Form'!$CL587=\"\",'Enrollment Form'!$CL587=\"No\"),\"-\",IF(AND('Enrollment Form'!$CL587=\"Yes\",'Enrollment Form'!$CM587=\"\"),\"N\",\"Y\"))","v":"-"},{"$f":"IF(OR('Enrollment Form'!$CN587=\"\",'Enrollment Form'!$CN587=\"No\"),\"-\",IF(AND('Enrollment Form'!$CN587=\"Yes\",'Enrollment Form'!$CO587=\"\"),\"N\",\"Y\"))","v":"-"},{"$f":"IF(OR('Enrollment Form'!$CN587=\"\",'Enrollment Form'!$CN587=\"No\"),\"-\",IF(AND('Enrollment Form'!$CN587=\"Yes\",'Enrollment Form'!$CP587=\"\"),\"N\",\"Y\"))","v":"-"},{"$f":"IF('Enrollment Form'!B587<>\"Subscriber\",\"-\",IF(AND('Enrollment Form'!B587=\"Subscriber\",'Enrollment Form'!C587=\"Enroll\",'Enrollment Form'!AA587=\"\"),\"N\",\"Y\"))","v":"-"},{"$f":"IF(OR('Enrollment Form'!B587=\"Subscriber\",'Enrollment Form'!B587=\"\"),\"-\",IF('Enrollment Form'!BP587=\"\",\"N\",\"Y\"))","v":"-"},{"$f":"IF('Enrollment Form'!B587<>\"Subscriber\",\"-\",IF(AND('Enrollment Form'!B587=\"Subscriber\",'Enrollment Form'!G587=\"\"),\"N\",\"Y\"))","v":"-"},{"$f":"IF('Enrollment Form'!A587=\"\",\"\",IF('Enrollment Form'!B587=\"Subscriber\",\"-\",IF(AND('Enrollment Form'!B587<>\"Subscriber\",'Enrollment Form'!G587='Enrollment Form'!H587),\"N\",\"Y\")))","v":""},{"$f":"COUNTIF(C580:AN580,\"N\")","v":0}]
[588,{"$f":"IF('Enrollment Form'!$A588<>\"\",\"Y\",\"N\")","v":"N"},{"$f":"IF(AND('Enrollment Form'!$B588=\"\",'Enrollment Form'!$C588<>\"\"),\"N\",IF($B581=\"N\",\"\",\"Y\"))","v":""},{"$f":"IF(OR($B581=\"N\",'Enrollment Form'!G588=\"\"),\"\",IF('Enrollment Form'!$B588<>\"Subscriber\",\"\",IF('Enrollment Form'!$G588='Enrollment Form'!$H588,\"Y\",\"N\")))","v":""},{"$f":"IF($B581=\"N\",\"\",IF(AND(COUNTIFS('Enrollment Form'!$H$11:$H$1000,'Enrollment Form'!$H588,'Enrollment Form'!$B$11:$B$1000,'Enrollment Form'!$B588)>1,'Enrollment Form'!$H588<>\"\"),\"N\",\"Y\"))","v":""},{"$f":"IF($B581=\"N\",\"\",IF(LEN('Enrollment Form'!$Y588)=0,\"\",IF(LEN('Enrollment Form'!$Y588)<>5,\"N\",\"Y\")))","v":""},{"$f":"IF($B581=\"N\",\"\",IF(LEN('Enrollment Form'!$AD588=0),\"\",IF(LEN('Enrollment Form'!$AD588)<>5,\"N\",\"Y\")))","v":""},{"$f":"IF($B581=\"N\",\"\",IF(LEN('Enrollment Form'!$BS588=0),\"\",IF(LEN('Enrollment Form'!$BS588)<>5,\"N\",\"Y\")))","v":""},{"$f":"IF($B581=\"N\",\"\",IF(LEN('Enrollment Form'!$AE588)=0,\"\",IF(LEN('Enrollment Form'!$AE588)<>10,\"N\",\"Y\")))","v":""},{"$f":"IF($B581=\"N\",\"\",IF(LEN('Enrollment Form'!$AF588)=0,\"\",IF(LEN('Enrollment Form'!$AF588)<>10,\"N\",\"Y\")))","v":""},{"$f":"IF('Enrollment Form'!$O588<>\"Graded\",\"-\",IF(AND('Enrollment Form'!$O588=\"Graded\",'Enrollment Form'!$AR588<>\"\"),\"Y\",\"N\"))","v":"-"},{"$f":"IF($B581=\"N\",\"\",IF(OR('Enrollment Form'!$B588<>\"Subscriber\",'Enrollment Form'!$C588=\"ROC\"),\"-\",IF(AND('Enrollment Form'!$B588=\"Subscriber\",'Enrollment Form'!$C588=\"Enroll\",'Enrollment Form'!$AJ588<>\"\"),\"Y\",\"N\")))","v":""},{"$f":"IF($B581=\"N\",\"\",IF(OR('Enrollment Form'!$B588<>\"Subscriber\",'Enrollment Form'!$C588=\"ROC\"),\"-\",IF(AND('Enrollment Form'!$B588=\"Subscriber\",'Enrollment Form'!$C588=\"Enroll\",'Enrollment Form'!$AK588<>\"\"),\"Y\",\"N\")))","v":""},{"$f":"IF($B581=\"N\",\"\",IF(OR('Enrollment Form'!$B588<>\"Subscriber\",'Enrollment Form'!$C588=\"ROC\"),\"-\",IF(AND('Enrollment Form'!$B588=\"Subscriber\",'Enrollment Form'!$C588=\"Enroll\",'Enrollment Form'!$AL588<>\"\"),\"Y\",\"N\")))","v":""},{"$f":"IF($B581=\"N\",\"\",IF(OR('Enrollment Form'!$B588<>\"Subscriber\",'Enrollment Form'!$C588=\"ROC\"),\"-\",IF(AND('Enrollment Form'!$B588=\"Subscriber\",'Enrollment Form'!$C588=\"Enroll\",'Enrollment Form'!$AP588<>\"\"),\"Y\",\"N\")))","v":""},{"$f":"IF($B581=\"N\",\"\",IF(OR('Enrollment Form'!$B588<>\"Subscriber\",'Enrollment Form'!$C588=\"ROC\"),\"-\",IF(AND('Enrollment Form'!$B588=\"Subscriber\",'Enrollment Form'!$C588=\"Enroll\",'Enrollment Form'!$AQ588<>\"\"),\"Y\",\"N\")))","v":""},{"$f":"IF($B581=\"N\",\"\",IF(OR('Enrollment Form'!$B588<>\"Subscriber\",'Enrollment Form'!$C588=\"ROC\"),\"-\",IF(AND('Enrollment Form'!$B588=\"Subscriber\",'Enrollment Form'!$C588=\"Enroll\",'Enrollment Form'!$AS588<>\"\"),\"Y\",\"N\")))","v":""},{"$f":"IF($B581=\"N\",\"\",IF($Q581=\"-\",\"-\",IF(AND($Q581=\"Y\",'Enrollment Form'!$AS588=\"No\"),\"-\",IF(AND($Q581=\"Y\",'Enrollment Form'!$AS588=\"Yes\",'Enrollment Form'!$AT588<>\"\"),\"Y\",\"N\"))))","v":""},{"$f":"IF($B581=\"N\",\"\",IF(OR('Enrollment Form'!$B588<>\"Subscriber\",'Enrollment Form'!$C588=\"ROC\"),\"-\",IF(AND('Enrollment Form'!$B588=\"Subscriber\",'Enrollment Form'!$C588=\"Enroll\",'Enrollment Form'!$CV588<>\"\"),\"Y\",\"N\")))","v":""},{"$f":"IF($B581=\"N\",\"\",IF($S581=\"-\",\"-\",IF(AND($S581=\"Y\",'Enrollment Form'!$CV588=\"No\"),\"-\",IF(AND($S581=\"Y\",'Enrollment Form'!$CV588=\"Yes\",'Enrollment Form'!$CW588<>\"\"),\"Y\",\"N\"))))","v":""},{"$f":"IF(OR('Enrollment Form'!$AY588=\"Yes\",'Enrollment Form'!$AY588=\"\"),\"-\",IF(OR(AND('Enrollment Form'!$AY588=\"No\",ISERROR(FIND(\"HMO\",VLOOKUP('Enrollment Form'!G588,'Enrollment Form'!H$11:J$1000,3,FALSE),1))=FALSE,COUNTA('Enrollment Form'!$AZ588:$BC588)=4),AND('Enrollment Form'!$AY588=\"No\",ISERROR(FIND(\"HMO\",VLOOKUP('Enrollment Form'!G588,'Enrollment Form'!H$11:J$1000,3,FALSE),1))=FALSE,COUNTA('Enrollment Form'!$BT588:$BW588)=4)),\"Y\",\"N\"))","v":"-"},{"$f":"IF($B581=\"N\",\"\",IF('Enrollment Form'!$B588=\"Subscriber\",\"-\",IF(COUNTA('Enrollment Form'!$BL588,'Enrollment Form'!$BN588)=2,\"Y\",\"N\")))","v":""},{"$f":"IF($B581=\"N\",\"\",IF(OR('Enrollment Form'!$AX588=\"\",'Enrollment Form'!$AX588=\"No\"),\"-\",IF(AND('Enrollment Form'!$AX588=\"Yes\",COUNTA('Enrollment Form'!$CR588)=1),\"Y\",\"N\")))","v":""},{"$f":"IF(OR('Enrollment Form'!$CR588=\"\",'Enrollment Form'!$CR588=\"No\"),\"-\",IF(COUNTA('Enrollment Form'!$CT588:$CU588)=2,\"Y\",\"N\"))","v":"-"},{"$f":"IF($B581=\"N\",\"\",IF(COUNTIF('Enrollment Form'!$DG588:$DP588,\"Other\")=COUNTA('Enrollment Form'!$DK588,'Enrollment Form'!$DH588,'Enrollment Form'!$DN588,'Enrollment Form'!$DQ588),\"Y\",\"N\"))","v":""},{"$f":"IF($B581=\"N\",\"\",IF(OR('Enrollment Form'!B588<>\"Subscriber\",'Enrollment Form'!C588=\"ROC\",COUNTIF('Enrollment Form'!AV588:AW588,\"Yes\")>=1),\"-\",IF(AND('Enrollment Form'!C588=\"Enroll\",COUNTIF('Enrollment Form'!AV588:AW588,\"No\")=2,'Enrollment Form'!AX588=\"\"),\"N\",\"Y\")))","v":""},{"$f":"IF(OR(B581=\"N\",'Enrollment Form'!B588<>\"Subscriber\",'Enrollment Form'!C588=\"ROC\",'Enrollment Form'!O588<>\"Multiple of Salary\"),\"-\",IF(COUNTA('Enrollment Form'!T588:U588)<2,\"N\",\"Y\"))","v":"-"},{"$f":"IF(B581=\"N\",\"\",IF(OR('Enrollment Form'!C588=\"ROC\",'Enrollment Form'!B588<>\"Subscriber\",'Enrollment Form'!O588=\"Waive\",'Enrollment Form'!O588=\"\"),\"-\",IF('Enrollment Form'!P588=\"\",\"N\",\"Y\")))","v":""},{"$f":"IF($B581=\"N\",\"\",IF(AND('Enrollment Form'!$C588=\"ROC\",'Enrollment Form'!$DR588<>\"\"),\"Y\",IF(AND('Enrollment Form'!$C588=\"ROC\",'Enrollment Form'!$DR588=\"\"),\"N\",IF(AND('Enrollment Form'!$C588=\"Enroll\",'Enrollment Form'!$B588=\"Subscriber\",'Enrollment Form'!$CX588=\"No\",'Enrollment Form'!$DR588=\"\"),\"N\",IF(AND('Enrollment Form'!$C588=\"Enroll\",'Enrollment Form'!$B588=\"Subscriber\",'Enrollment Form'!$CX588=\"Yes\"),\"-\",\"Y\")))))","v":""},{"$f":"IF($B581=\"N\",\"\",IF(AND('Enrollment Form'!$C588=\"ROC\",'Enrollment Form'!$DS588<>\"\"),\"Y\",IF(AND('Enrollment Form'!$C588=\"ROC\",'Enrollment Form'!$DS588=\"\"),\"N\",IF(AND('Enrollment Form'!$C588=\"Enroll\",'Enrollment Form'!$B588=\"Subscriber\",'Enrollment Form'!$CX588=\"No\",'Enrollment Form'!$DS588=\"\"),\"N\",IF(AND('Enrollment Form'!$C588=\"Enroll\",'Enrollment Form'!$B588=\"Subscriber\",'Enrollment Form'!$CX588=\"Yes\"),\"-\",\"Y\")))))","v":""},{"$f":"IF('Enrollment Form'!AH588=\"\",\"\",IF(ISERROR(SEARCH(\".\",'Enrollment Form'!AH588,SEARCH(\"@\",'Enrollment Form'!AH588))),\"N\",\"Y\"))","v":""},{"$f":"IF(OR($B581=\"N\",'Enrollment Form'!$G588=\"\"),\"\",IF('Enrollment Form'!$B588<>\"Subscriber\",\"-\",IF(COUNTIF('Enrollment Form'!$AV588:$AW588,\"Yes\")=2,\"N\",\"Y\")))","v":""},{"$f":"IF(OR('Enrollment Form'!$CJ588=\"\",'Enrollment Form'!$CJ588=\"No\"),\"-\",IF(AND('Enrollment Form'!$CJ588=\"Yes\",'Enrollment Form'!$CK588=\"\"),\"N\",\"Y\"))","v":"-"},{"$f":"IF(OR('Enrollment Form'!$CL588=\"\",'Enrollment Form'!$CL588=\"No\"),\"-\",IF(AND('Enrollment Form'!$CL588=\"Yes\",'Enrollment Form'!$CM588=\"\"),\"N\",\"Y\"))","v":"-"},{"$f":"IF(OR('Enrollment Form'!$CN588=\"\",'Enrollment Form'!$CN588=\"No\"),\"-\",IF(AND('Enrollment Form'!$CN588=\"Yes\",'Enrollment Form'!$CO588=\"\"),\"N\",\"Y\"))","v":"-"},{"$f":"IF(OR('Enrollment Form'!$CN588=\"\",'Enrollment Form'!$CN588=\"No\"),\"-\",IF(AND('Enrollment Form'!$CN588=\"Yes\",'Enrollment Form'!$CP588=\"\"),\"N\",\"Y\"))","v":"-"},{"$f":"IF('Enrollment Form'!B588<>\"Subscriber\",\"-\",IF(AND('Enrollment Form'!B588=\"Subscriber\",'Enrollment Form'!C588=\"Enroll\",'Enrollment Form'!AA588=\"\"),\"N\",\"Y\"))","v":"-"},{"$f":"IF(OR('Enrollment Form'!B588=\"Subscriber\",'Enrollment Form'!B588=\"\"),\"-\",IF('Enrollment Form'!BP588=\"\",\"N\",\"Y\"))","v":"-"},{"$f":"IF('Enrollment Form'!B588<>\"Subscriber\",\"-\",IF(AND('Enrollment Form'!B588=\"Subscriber\",'Enrollment Form'!G588=\"\"),\"N\",\"Y\"))","v":"-"},{"$f":"IF('Enrollment Form'!A588=\"\",\"\",IF('Enrollment Form'!B588=\"Subscriber\",\"-\",IF(AND('Enrollment Form'!B588<>\"Subscriber\",'Enrollment Form'!G588='Enrollment Form'!H588),\"N\",\"Y\")))","v":""},0]
[{"$f":"1+A581","v":589},{"$f":"IF('Enrollment Form'!$A589<>\"\",\"Y\",\"N\")","v":"N"},{"$f":"IF(AND('Enrollment Form'!$B589=\"\",'Enrollment Form'!$C589<>\"\"),\"N\",IF($B582=\"N\",\"\",\"Y\"))","v":""},{"$f":"IF(OR($B582=\"N\",'Enrollment Form'!G589=\"\"),\"\",IF('Enrollment Form'!$B589<>\"Subscriber\",\"\",IF('Enrollment Form'!$G589='Enrollment Form'!$H589,\"Y\",\"N\")))","v":""},{"$f":"IF($B582=\"N\",\"\",IF(AND(COUNTIFS('Enrollment Form'!$H$11:$H$1000,'Enrollment Form'!$H589,'Enrollment Form'!$B$11:$B$1000,'Enrollment Form'!$B589)>1,'Enrollment Form'!$H589<>\"\"),\"N\",\"Y\"))","v":""},{"$f":"IF($B582=\"N\",\"\",IF(LEN('Enrollment Form'!$Y589)=0,\"\",IF(LEN('Enrollment Form'!$Y589)<>5,\"N\",\"Y\")))","v":""},{"$f":"IF($B582=\"N\",\"\",IF(LEN('Enrollment Form'!$AD589=0),\"\",IF(LEN('Enrollment Form'!$AD589)<>5,\"N\",\"Y\")))","v":""},{"$f":"IF($B582=\"N\",\"\",IF(LEN('Enrollment Form'!$BS589=0),\"\",IF(LEN('Enrollment Form'!$BS589)<>5,\"N\",\"Y\")))","v":""},{"$f":"IF($B582=\"N\",\"\",IF(LEN('Enrollment Form'!$AE589)=0,\"\",IF(LEN('Enrollment Form'!$AE589)<>10,\"N\",\"Y\")))","v":""},{"$f":"IF($B582=\"N\",\"\",IF(LEN('Enrollment Form'!$AF589)=0,\"\",IF(LEN('Enrollment Form'!$AF589)<>10,\"N\",\"Y\")))","v":""},{"$f":"IF('Enrollment Form'!$O589<>\"Graded\",\"-\",IF(AND('Enrollment Form'!$O589=\"Graded\",'Enrollment Form'!$AR589<>\"\"),\"Y\",\"N\"))","v":"-"},{"$f":"IF($B582=\"N\",\"\",IF(OR('Enrollment Form'!$B589<>\"Subscriber\",'Enrollment Form'!$C589=\"ROC\"),\"-\",IF(AND('Enrollment Form'!$B589=\"Subscriber\",'Enrollment Form'!$C589=\"Enroll\",'Enrollment Form'!$AJ589<>\"\"),\"Y\",\"N\")))","v":""},{"$f":"IF($B582=\"N\",\"\",IF(OR('Enrollment Form'!$B589<>\"Subscriber\",'Enrollment Form'!$C589=\"ROC\"),\"-\",IF(AND('Enrollment Form'!$B589=\"Subscriber\",'Enrollment Form'!$C589=\"Enroll\",'Enrollment Form'!$AK589<>\"\"),\"Y\",\"N\")))","v":""},{"$f":"IF($B582=\"N\",\"\",IF(OR('Enrollment Form'!$B589<>\"Subscriber\",'Enrollment Form'!$C589=\"ROC\"),\"-\",IF(AND('Enrollment Form'!$B589=\"Subscriber\",'Enrollment Form'!$C589=\"Enroll\",'Enrollment Form'!$AL589<>\"\"),\"Y\",\"N\")))","v":""},{"$f":"IF($B582=\"N\",\"\",IF(OR('Enrollment Form'!$B589<>\"Subscriber\",'Enrollment Form'!$C589=\"ROC\"),\"-\",IF(AND('Enrollment Form'!$B589=\"Subscriber\",'Enrollment Form'!$C589=\"Enroll\",'Enrollment Form'!$AP589<>\"\"),\"Y\",\"N\")))","v":""},{"$f":"IF($B582=\"N\",\"\",IF(OR('Enrollment Form'!$B589<>\"Subscriber\",'Enrollment Form'!$C589=\"ROC\"),\"-\",IF(AND('Enrollment Form'!$B589=\"Subscriber\",'Enrollment Form'!$C589=\"Enroll\",'Enrollment Form'!$AQ589<>\"\"),\"Y\",\"N\")))","v":""},{"$f":"IF($B582=\"N\",\"\",IF(OR('Enrollment Form'!$B589<>\"Subscriber\",'Enrollment Form'!$C589=\"ROC\"),\"-\",IF(AND('Enrollment Form'!$B589=\"Subscriber\",'Enrollment Form'!$C589=\"Enroll\",'Enrollment Form'!$AS589<>\"\"),\"Y\",\"N\")))","v":""},{"$f":"IF($B582=\"N\",\"\",IF($Q582=\"-\",\"-\",IF(AND($Q582=\"Y\",'Enrollment Form'!$AS589=\"No\"),\"-\",IF(AND($Q582=\"Y\",'Enrollment Form'!$AS589=\"Yes\",'Enrollment Form'!$AT589<>\"\"),\"Y\",\"N\"))))","v":""},{"$f":"IF($B582=\"N\",\"\",IF(OR('Enrollment Form'!$B589<>\"Subscriber\",'Enrollment Form'!$C589=\"ROC\"),\"-\",IF(AND('Enrollment Form'!$B589=\"Subscriber\",'Enrollment Form'!$C589=\"Enroll\",'Enrollment Form'!$CV589<>\"\"),\"Y\",\"N\")))","v":""},{"$f":"IF($B582=\"N\",\"\",IF($S582=\"-\",\"-\",IF(AND($S582=\"Y\",'Enrollment Form'!$CV589=\"No\"),\"-\",IF(AND($S582=\"Y\",'Enrollment Form'!$CV589=\"Yes\",'Enrollment Form'!$CW589<>\"\"),\"Y\",\"N\"))))","v":""},{"$f":"IF(OR('Enrollment Form'!$AY589=\"Yes\",'Enrollment Form'!$AY589=\"\"),\"-\",IF(OR(AND('Enrollment Form'!$AY589=\"No\",ISERROR(FIND(\"HMO\",VLOOKUP('Enrollment Form'!G589,'Enrollment Form'!H$11:J$1000,3,FALSE),1))=FALSE,COUNTA('Enrollment Form'!$AZ589:$BC589)=4),AND('Enrollment Form'!$AY589=\"No\",ISERROR(FIND(\"HMO\",VLOOKUP('Enrollment Form'!G589,'Enrollment Form'!H$11:J$1000,3,FALSE),1))=FALSE,COUNTA('Enrollment Form'!$BT589:$BW589)=4)),\"Y\",\"N\"))","v":"-"},{"$f":"IF($B582=\"N\",\"\",IF('Enrollment Form'!$B589=\"Subscriber\",\"-\",IF(COUNTA('Enrollment Form'!$BL589,'Enrollment Form'!$BN589)=2,\"Y\",\"N\")))","v":""},{"$f":"IF($B582=\"N\",\"\",IF(OR('Enrollment Form'!$AX589=\"\",'Enrollment Form'!$AX589=\"No\"),\"-\",IF(AND('Enrollment Form'!$AX589=\"Yes\",COUNTA('Enrollment Form'!$CR589)=1),\"Y\",\"N\")))","v":""},{"$f":"IF(OR('Enrollment Form'!$CR589=\"\",'Enrollment Form'!$CR589=\"No\"),\"-\",IF(COUNTA('Enrollment Form'!$CT589:$CU589)=2,\"Y\",\"N\"))","v":"-"},{"$f":"IF($B582=\"N\",\"\",IF(COUNTIF('Enrollment Form'!$DG589:$DP589,\"Other\")=COUNTA('Enrollment Form'!$DK589,'Enrollment Form'!$DH589,'Enrollment Form'!$DN589,'Enrollment Form'!$DQ589),\"Y\",\"N\"))","v":""},{"$f":"IF($B582=\"N\",\"\",IF(OR('Enrollment Form'!B589<>\"Subscriber\",'Enrollment Form'!C589=\"ROC\",COUNTIF('Enrollment Form'!AV589:AW589,\"Yes\")>=1),\"-\",IF(AND('Enrollment Form'!C589=\"Enroll\",COUNTIF('Enrollment Form'!AV589:AW589,\"No\")=2,'Enrollment Form'!AX589=\"\"),\"N\",\"Y\")))","v":""},{"$f":"IF(OR(B582=\"N\",'Enrollment Form'!B589<>\"Subscriber\",'Enrollment Form'!C589=\"ROC\",'Enrollment Form'!O589<>\"Multiple of Salary\"),\"-\",IF(COUNTA('Enrollment Form'!T589:U589)<2,\"N\",\"Y\"))","v":"-"},{"$f":"IF(B582=\"N\",\"\",IF(OR('Enrollment Form'!C589=\"ROC\",'Enrollment Form'!B589<>\"Subscriber\",'Enrollment Form'!O589=\"Waive\",'Enrollment Form'!O589=\"\"),\"-\",IF('Enrollment Form'!P589=\"\",\"N\",\"Y\")))","v":""},{"$f":"IF($B582=\"N\",\"\",IF(AND('Enrollment Form'!$C589=\"ROC\",'Enrollment Form'!$DR589<>\"\"),\"Y\",IF(AND('Enrollment Form'!$C589=\"ROC\",'Enrollment Form'!$DR589=\"\"),\"N\",IF(AND('Enrollment Form'!$C589=\"Enroll\",'Enrollment Form'!$B589=\"Subscriber\",'Enrollment Form'!$CX589=\"No\",'Enrollment Form'!$DR589=\"\"),\"N\",IF(AND('Enrollment Form'!$C589=\"Enroll\",'Enrollment Form'!$B589=\"Subscriber\",'Enrollment Form'!$CX589=\"Yes\"),\"-\",\"Y\")))))","v":""},{"$f":"IF($B582=\"N\",\"\",IF(AND('Enrollment Form'!$C589=\"ROC\",'Enrollment Form'!$DS589<>\"\"),\"Y\",IF(AND('Enrollment Form'!$C589=\"ROC\",'Enrollment Form'!$DS589=\"\"),\"N\",IF(AND('Enrollment Form'!$C589=\"Enroll\",'Enrollment Form'!$B589=\"Subscriber\",'Enrollment Form'!$CX589=\"No\",'Enrollment Form'!$DS589=\"\"),\"N\",IF(AND('Enrollment Form'!$C589=\"Enroll\",'Enrollment Form'!$B589=\"Subscriber\",'Enrollment Form'!$CX589=\"Yes\"),\"-\",\"Y\")))))","v":""},{"$f":"IF('Enrollment Form'!AH589=\"\",\"\",IF(ISERROR(SEARCH(\".\",'Enrollment Form'!AH589,SEARCH(\"@\",'Enrollment Form'!AH589))),\"N\",\"Y\"))","v":""},{"$f":"IF(OR($B582=\"N\",'Enrollment Form'!$G589=\"\"),\"\",IF('Enrollment Form'!$B589<>\"Subscriber\",\"-\",IF(COUNTIF('Enrollment Form'!$AV589:$AW589,\"Yes\")=2,\"N\",\"Y\")))","v":""},{"$f":"IF(OR('Enrollment Form'!$CJ589=\"\",'Enrollment Form'!$CJ589=\"No\"),\"-\",IF(AND('Enrollment Form'!$CJ589=\"Yes\",'Enrollment Form'!$CK589=\"\"),\"N\",\"Y\"))","v":"-"},{"$f":"IF(OR('Enrollment Form'!$CL589=\"\",'Enrollment Form'!$CL589=\"No\"),\"-\",IF(AND('Enrollment Form'!$CL589=\"Yes\",'Enrollment Form'!$CM589=\"\"),\"N\",\"Y\"))","v":"-"},{"$f":"IF(OR('Enrollment Form'!$CN589=\"\",'Enrollment Form'!$CN589=\"No\"),\"-\",IF(AND('Enrollment Form'!$CN589=\"Yes\",'Enrollment Form'!$CO589=\"\"),\"N\",\"Y\"))","v":"-"},{"$f":"IF(OR('Enrollment Form'!$CN589=\"\",'Enrollment Form'!$CN589=\"No\"),\"-\",IF(AND('Enrollment Form'!$CN589=\"Yes\",'Enrollment Form'!$CP589=\"\"),\"N\",\"Y\"))","v":"-"},{"$f":"IF('Enrollment Form'!B589<>\"Subscriber\",\"-\",IF(AND('Enrollment Form'!B589=\"Subscriber\",'Enrollment Form'!C589=\"Enroll\",'Enrollment Form'!AA589=\"\"),\"N\",\"Y\"))","v":"-"},{"$f":"IF(OR('Enrollment Form'!B589=\"Subscriber\",'Enrollment Form'!B589=\"\"),\"-\",IF('Enrollment Form'!BP589=\"\",\"N\",\"Y\"))","v":"-"},{"$f":"IF('Enrollment Form'!B589<>\"Subscriber\",\"-\",IF(AND('Enrollment Form'!B589=\"Subscriber\",'Enrollment Form'!G589=\"\"),\"N\",\"Y\"))","v":"-"},{"$f":"IF('Enrollment Form'!A589=\"\",\"\",IF('Enrollment Form'!B589=\"Subscriber\",\"-\",IF(AND('Enrollment Form'!B589<>\"Subscriber\",'Enrollment Form'!G589='Enrollment Form'!H589),\"N\",\"Y\")))","v":""},0]
[590,{"$f":"IF('Enrollment Form'!$A590<>\"\",\"Y\",\"N\")","v":"N"},{"$f":"IF(AND('Enrollment Form'!$B590=\"\",'Enrollment Form'!$C590<>\"\"),\"N\",IF($B583=\"N\",\"\",\"Y\"))","v":""},{"$f":"IF(OR($B583=\"N\",'Enrollment Form'!G590=\"\"),\"\",IF('Enrollment Form'!$B590<>\"Subscriber\",\"\",IF('Enrollment Form'!$G590='Enrollment Form'!$H590,\"Y\",\"N\")))","v":""},{"$f":"IF($B583=\"N\",\"\",IF(AND(COUNTIFS('Enrollment Form'!$H$11:$H$1000,'Enrollment Form'!$H590,'Enrollment Form'!$B$11:$B$1000,'Enrollment Form'!$B590)>1,'Enrollment Form'!$H590<>\"\"),\"N\",\"Y\"))","v":""},{"$f":"IF($B583=\"N\",\"\",IF(LEN('Enrollment Form'!$Y590)=0,\"\",IF(LEN('Enrollment Form'!$Y590)<>5,\"N\",\"Y\")))","v":""},{"$f":"IF($B583=\"N\",\"\",IF(LEN('Enrollment Form'!$AD590=0),\"\",IF(LEN('Enrollment Form'!$AD590)<>5,\"N\",\"Y\")))","v":""},{"$f":"IF($B583=\"N\",\"\",IF(LEN('Enrollment Form'!$BS590=0),\"\",IF(LEN('Enrollment Form'!$BS590)<>5,\"N\",\"Y\")))","v":""},{"$f":"IF($B583=\"N\",\"\",IF(LEN('Enrollment Form'!$AE590)=0,\"\",IF(LEN('Enrollment Form'!$AE590)<>10,\"N\",\"Y\")))","v":""},{"$f":"IF($B583=\"N\",\"\",IF(LEN('Enrollment Form'!$AF590)=0,\"\",IF(LEN('Enrollment Form'!$AF590)<>10,\"N\",\"Y\")))","v":""},{"$f":"IF('Enrollment Form'!$O590<>\"Graded\",\"-\",IF(AND('Enrollment Form'!$O590=\"Graded\",'Enrollment Form'!$AR590<>\"\"),\"Y\",\"N\"))","v":"-"},{"$f":"IF($B583=\"N\",\"\",IF(OR('Enrollment Form'!$B590<>\"Subscriber\",'Enrollment Form'!$C590=\"ROC\"),\"-\",IF(AND('Enrollment Form'!$B590=\"Subscriber\",'Enrollment Form'!$C590=\"Enroll\",'Enrollment Form'!$AJ590<>\"\"),\"Y\",\"N\")))","v":""},{"$f":"IF($B583=\"N\",\"\",IF(OR('Enrollment Form'!$B590<>\"Subscriber\",'Enrollment Form'!$C590=\"ROC\"),\"-\",IF(AND('Enrollment Form'!$B590=\"Subscriber\",'Enrollment Form'!$C590=\"Enroll\",'Enrollment Form'!$AK590<>\"\"),\"Y\",\"N\")))","v":""},{"$f":"IF($B583=\"N\",\"\",IF(OR('Enrollment Form'!$B590<>\"Subscriber\",'Enrollment Form'!$C590=\"ROC\"),\"-\",IF(AND('Enrollment Form'!$B590=\"Subscriber\",'Enrollment Form'!$C590=\"Enroll\",'Enrollment Form'!$AL590<>\"\"),\"Y\",\"N\")))","v":""},{"$f":"IF($B583=\"N\",\"\",IF(OR('Enrollment Form'!$B590<>\"Subscriber\",'Enrollment Form'!$C590=\"ROC\"),\"-\",IF(AND('Enrollment Form'!$B590=\"Subscriber\",'Enrollment Form'!$C590=\"Enroll\",'Enrollment Form'!$AP590<>\"\"),\"Y\",\"N\")))","v":""},{"$f":"IF($B583=\"N\",\"\",IF(OR('Enrollment Form'!$B590<>\"Subscriber\",'Enrollment Form'!$C590=\"ROC\"),\"-\",IF(AND('Enrollment Form'!$B590=\"Subscriber\",'Enrollment Form'!$C590=\"Enroll\",'Enrollment Form'!$AQ590<>\"\"),\"Y\",\"N\")))","v":""},{"$f":"IF($B583=\"N\",\"\",IF(OR('Enrollment Form'!$B590<>\"Subscriber\",'Enrollment Form'!$C590=\"ROC\"),\"-\",IF(AND('Enrollment Form'!$B590=\"Subscriber\",'Enrollment Form'!$C590=\"Enroll\",'Enrollment Form'!$AS590<>\"\"),\"Y\",\"N\")))","v":""},{"$f":"IF($B583=\"N\",\"\",IF($Q583=\"-\",\"-\",IF(AND($Q583=\"Y\",'Enrollment Form'!$AS590=\"No\"),\"-\",IF(AND($Q583=\"Y\",'Enrollment Form'!$AS590=\"Yes\",'Enrollment Form'!$AT590<>\"\"),\"Y\",\"N\"))))","v":""},{"$f":"IF($B583=\"N\",\"\",IF(OR('Enrollment Form'!$B590<>\"Subscriber\",'Enrollment Form'!$C590=\"ROC\"),\"-\",IF(AND('Enrollment Form'!$B590=\"Subscriber\",'Enrollment Form'!$C590=\"Enroll\",'Enrollment Form'!$CV590<>\"\"),\"Y\",\"N\")))","v":""},{"$f":"IF($B583=\"N\",\"\",IF($S583=\"-\",\"-\",IF(AND($S583=\"Y\",'Enrollment Form'!$CV590=\"No\"),\"-\",IF(AND($S583=\"Y\",'Enrollment Form'!$CV590=\"Yes\",'Enrollment Form'!$CW590<>\"\"),\"Y\",\"N\"))))","v":""},{"$f":"IF(OR('Enrollment Form'!$AY590=\"Yes\",'Enrollment Form'!$AY590=\"\"),\"-\",IF(OR(AND('Enrollment Form'!$AY590=\"No\",ISERROR(FIND(\"HMO\",VLOOKUP('Enrollment Form'!G590,'Enrollment Form'!H$11:J$1000,3,FALSE),1))=FALSE,COUNTA('Enrollment Form'!$AZ590:$BC590)=4),AND('Enrollment Form'!$AY590=\"No\",ISERROR(FIND(\"HMO\",VLOOKUP('Enrollment Form'!G590,'Enrollment Form'!H$11:J$1000,3,FALSE),1))=FALSE,COUNTA('Enrollment Form'!$BT590:$BW590)=4)),\"Y\",\"N\"))","v":"-"},{"$f":"IF($B583=\"N\",\"\",IF('Enrollment Form'!$B590=\"Subscriber\",\"-\",IF(COUNTA('Enrollment Form'!$BL590,'Enrollment Form'!$BN590)=2,\"Y\",\"N\")))","v":""},{"$f":"IF($B583=\"N\",\"\",IF(OR('Enrollment Form'!$AX590=\"\",'Enrollment Form'!$AX590=\"No\"),\"-\",IF(AND('Enrollment Form'!$AX590=\"Yes\",COUNTA('Enrollment Form'!$CR590)=1),\"Y\",\"N\")))","v":""},{"$f":"IF(OR('Enrollment Form'!$CR590=\"\",'Enrollment Form'!$CR590=\"No\"),\"-\",IF(COUNTA('Enrollment Form'!$CT590:$CU590)=2,\"Y\",\"N\"))","v":"-"},{"$f":"IF($B583=\"N\",\"\",IF(COUNTIF('Enrollment Form'!$DG590:$DP590,\"Other\")=COUNTA('Enrollment Form'!$DK590,'Enrollment Form'!$DH590,'Enrollment Form'!$DN590,'Enrollment Form'!$DQ590),\"Y\",\"N\"))","v":""},{"$f":"IF($B583=\"N\",\"\",IF(OR('Enrollment Form'!B590<>\"Subscriber\",'Enrollment Form'!C590=\"ROC\",COUNTIF('Enrollment Form'!AV590:AW590,\"Yes\")>=1),\"-\",IF(AND('Enrollment Form'!C590=\"Enroll\",COUNTIF('Enrollment Form'!AV590:AW590,\"No\")=2,'Enrollment Form'!AX590=\"\"),\"N\",\"Y\")))","v":""},{"$f":"IF(OR(B583=\"N\",'Enrollment Form'!B590<>\"Subscriber\",'Enrollment Form'!C590=\"ROC\",'Enrollment Form'!O590<>\"Multiple of Salary\"),\"-\",IF(COUNTA('Enrollment Form'!T590:U590)<2,\"N\",\"Y\"))","v":"-"},{"$f":"IF(B583=\"N\",\"\",IF(OR('Enrollment Form'!C590=\"ROC\",'Enrollment Form'!B590<>\"Subscriber\",'Enrollment Form'!O590=\"Waive\",'Enrollment Form'!O590=\"\"),\"-\",IF('Enrollment Form'!P590=\"\",\"N\",\"Y\")))","v":""},{"$f":"IF($B583=\"N\",\"\",IF(AND('Enrollment Form'!$C590=\"ROC\",'Enrollment Form'!$DR590<>\"\"),\"Y\",IF(AND('Enrollment Form'!$C590=\"ROC\",'Enrollment Form'!$DR590=\"\"),\"N\",IF(AND('Enrollment Form'!$C590=\"Enroll\",'Enrollment Form'!$B590=\"Subscriber\",'Enrollment Form'!$CX590=\"No\",'Enrollment Form'!$DR590=\"\"),\"N\",IF(AND('Enrollment Form'!$C590=\"Enroll\",'Enrollment Form'!$B590=\"Subscriber\",'Enrollment Form'!$CX590=\"Yes\"),\"-\",\"Y\")))))","v":""},{"$f":"IF($B583=\"N\",\"\",IF(AND('Enrollment Form'!$C590=\"ROC\",'Enrollment Form'!$DS590<>\"\"),\"Y\",IF(AND('Enrollment Form'!$C590=\"ROC\",'Enrollment Form'!$DS590=\"\"),\"N\",IF(AND('Enrollment Form'!$C590=\"Enroll\",'Enrollment Form'!$B590=\"Subscriber\",'Enrollment Form'!$CX590=\"No\",'Enrollment Form'!$DS590=\"\"),\"N\",IF(AND('Enrollment Form'!$C590=\"Enroll\",'Enrollment Form'!$B590=\"Subscriber\",'Enrollment Form'!$CX590=\"Yes\"),\"-\",\"Y\")))))","v":""},{"$f":"IF('Enrollment Form'!AH590=\"\",\"\",IF(ISERROR(SEARCH(\".\",'Enrollment Form'!AH590,SEARCH(\"@\",'Enrollment Form'!AH590))),\"N\",\"Y\"))","v":""},{"$f":"IF(OR($B583=\"N\",'Enrollment Form'!$G590=\"\"),\"\",IF('Enrollment Form'!$B590<>\"Subscriber\",\"-\",IF(COUNTIF('Enrollment Form'!$AV590:$AW590,\"Yes\")=2,\"N\",\"Y\")))","v":""},{"$f":"IF(OR('Enrollment Form'!$CJ590=\"\",'Enrollment Form'!$CJ590=\"No\"),\"-\",IF(AND('Enrollment Form'!$CJ590=\"Yes\",'Enrollment Form'!$CK590=\"\"),\"N\",\"Y\"))","v":"-"},{"$f":"IF(OR('Enrollment Form'!$CL590=\"\",'Enrollment Form'!$CL590=\"No\"),\"-\",IF(AND('Enrollment Form'!$CL590=\"Yes\",'Enrollment Form'!$CM590=\"\"),\"N\",\"Y\"))","v":"-"},{"$f":"IF(OR('Enrollment Form'!$CN590=\"\",'Enrollment Form'!$CN590=\"No\"),\"-\",IF(AND('Enrollment Form'!$CN590=\"Yes\",'Enrollment Form'!$CO590=\"\"),\"N\",\"Y\"))","v":"-"},{"$f":"IF(OR('Enrollment Form'!$CN590=\"\",'Enrollment Form'!$CN590=\"No\"),\"-\",IF(AND('Enrollment Form'!$CN590=\"Yes\",'Enrollment Form'!$CP590=\"\"),\"N\",\"Y\"))","v":"-"},{"$f":"IF('Enrollment Form'!B590<>\"Subscriber\",\"-\",IF(AND('Enrollment Form'!B590=\"Subscriber\",'Enrollment Form'!C590=\"Enroll\",'Enrollment Form'!AA590=\"\"),\"N\",\"Y\"))","v":"-"},{"$f":"IF(OR('Enrollment Form'!B590=\"Subscriber\",'Enrollment Form'!B590=\"\"),\"-\",IF('Enrollment Form'!BP590=\"\",\"N\",\"Y\"))","v":"-"},{"$f":"IF('Enrollment Form'!B590<>\"Subscriber\",\"-\",IF(AND('Enrollment Form'!B590=\"Subscriber\",'Enrollment Form'!G590=\"\"),\"N\",\"Y\"))","v":"-"},{"$f":"IF('Enrollment Form'!A590=\"\",\"\",IF('Enrollment Form'!B590=\"Subscriber\",\"-\",IF(AND('Enrollment Form'!B590<>\"Subscriber\",'Enrollment Form'!G590='Enrollment Form'!H590),\"N\",\"Y\")))","v":""},0]
[591,{"$f":"IF('Enrollment Form'!$A591<>\"\",\"Y\",\"N\")","v":"N"},{"$f":"IF(AND('Enrollment Form'!$B591=\"\",'Enrollment Form'!$C591<>\"\"),\"N\",IF($B584=\"N\",\"\",\"Y\"))","v":""},{"$f":"IF(OR($B584=\"N\",'Enrollment Form'!G591=\"\"),\"\",IF('Enrollment Form'!$B591<>\"Subscriber\",\"\",IF('Enrollment Form'!$G591='Enrollment Form'!$H591,\"Y\",\"N\")))","v":""},{"$f":"IF($B584=\"N\",\"\",IF(AND(COUNTIFS('Enrollment Form'!$H$11:$H$1000,'Enrollment Form'!$H591,'Enrollment Form'!$B$11:$B$1000,'Enrollment Form'!$B591)>1,'Enrollment Form'!$H591<>\"\"),\"N\",\"Y\"))","v":""},{"$f":"IF($B584=\"N\",\"\",IF(LEN('Enrollment Form'!$Y591)=0,\"\",IF(LEN('Enrollment Form'!$Y591)<>5,\"N\",\"Y\")))","v":""},{"$f":"IF($B584=\"N\",\"\",IF(LEN('Enrollment Form'!$AD591=0),\"\",IF(LEN('Enrollment Form'!$AD591)<>5,\"N\",\"Y\")))","v":""},{"$f":"IF($B584=\"N\",\"\",IF(LEN('Enrollment Form'!$BS591=0),\"\",IF(LEN('Enrollment Form'!$BS591)<>5,\"N\",\"Y\")))","v":""},{"$f":"IF($B584=\"N\",\"\",IF(LEN('Enrollment Form'!$AE591)=0,\"\",IF(LEN('Enrollment Form'!$AE591)<>10,\"N\",\"Y\")))","v":""},{"$f":"IF($B584=\"N\",\"\",IF(LEN('Enrollment Form'!$AF591)=0,\"\",IF(LEN('Enrollment Form'!$AF591)<>10,\"N\",\"Y\")))","v":""},{"$f":"IF('Enrollment Form'!$O591<>\"Graded\",\"-\",IF(AND('Enrollment Form'!$O591=\"Graded\",'Enrollment Form'!$AR591<>\"\"),\"Y\",\"N\"))","v":"-"},{"$f":"IF($B584=\"N\",\"\",IF(OR('Enrollment Form'!$B591<>\"Subscriber\",'Enrollment Form'!$C591=\"ROC\"),\"-\",IF(AND('Enrollment Form'!$B591=\"Subscriber\",'Enrollment Form'!$C591=\"Enroll\",'Enrollment Form'!$AJ591<>\"\"),\"Y\",\"N\")))","v":""},{"$f":"IF($B584=\"N\",\"\",IF(OR('Enrollment Form'!$B591<>\"Subscriber\",'Enrollment Form'!$C591=\"ROC\"),\"-\",IF(AND('Enrollment Form'!$B591=\"Subscriber\",'Enrollment Form'!$C591=\"Enroll\",'Enrollment Form'!$AK591<>\"\"),\"Y\",\"N\")))","v":""},{"$f":"IF($B584=\"N\",\"\",IF(OR('Enrollment Form'!$B591<>\"Subscriber\",'Enrollment Form'!$C591=\"ROC\"),\"-\",IF(AND('Enrollment Form'!$B591=\"Subscriber\",'Enrollment Form'!$C591=\"Enroll\",'Enrollment Form'!$AL591<>\"\"),\"Y\",\"N\")))","v":""},{"$f":"IF($B584=\"N\",\"\",IF(OR('Enrollment Form'!$B591<>\"Subscriber\",'Enrollment Form'!$C591=\"ROC\"),\"-\",IF(AND('Enrollment Form'!$B591=\"Subscriber\",'Enrollment Form'!$C591=\"Enroll\",'Enrollment Form'!$AP591<>\"\"),\"Y\",\"N\")))","v":""},{"$f":"IF($B584=\"N\",\"\",IF(OR('Enrollment Form'!$B591<>\"Subscriber\",'Enrollment Form'!$C591=\"ROC\"),\"-\",IF(AND('Enrollment Form'!$B591=\"Subscriber\",'Enrollment Form'!$C591=\"Enroll\",'Enrollment Form'!$AQ591<>\"\"),\"Y\",\"N\")))","v":""},{"$f":"IF($B584=\"N\",\"\",IF(OR('Enrollment Form'!$B591<>\"Subscriber\",'Enrollment Form'!$C591=\"ROC\"),\"-\",IF(AND('Enrollment Form'!$B591=\"Subscriber\",'Enrollment Form'!$C591=\"Enroll\",'Enrollment Form'!$AS591<>\"\"),\"Y\",\"N\")))","v":""},{"$f":"IF($B584=\"N\",\"\",IF($Q584=\"-\",\"-\",IF(AND($Q584=\"Y\",'Enrollment Form'!$AS591=\"No\"),\"-\",IF(AND($Q584=\"Y\",'Enrollment Form'!$AS591=\"Yes\",'Enrollment Form'!$AT591<>\"\"),\"Y\",\"N\"))))","v":""},{"$f":"IF($B584=\"N\",\"\",IF(OR('Enrollment Form'!$B591<>\"Subscriber\",'Enrollment Form'!$C591=\"ROC\"),\"-\",IF(AND('Enrollment Form'!$B591=\"Subscriber\",'Enrollment Form'!$C591=\"Enroll\",'Enrollment Form'!$CV591<>\"\"),\"Y\",\"N\")))","v":""},{"$f":"IF($B584=\"N\",\"\",IF($S584=\"-\",\"-\",IF(AND($S584=\"Y\",'Enrollment Form'!$CV591=\"No\"),\"-\",IF(AND($S584=\"Y\",'Enrollment Form'!$CV591=\"Yes\",'Enrollment Form'!$CW591<>\"\"),\"Y\",\"N\"))))","v":""},{"$f":"IF(OR('Enrollment Form'!$AY591=\"Yes\",'Enrollment Form'!$AY591=\"\"),\"-\",IF(OR(AND('Enrollment Form'!$AY591=\"No\",ISERROR(FIND(\"HMO\",VLOOKUP('Enrollment Form'!G591,'Enrollment Form'!H$11:J$1000,3,FALSE),1))=FALSE,COUNTA('Enrollment Form'!$AZ591:$BC591)=4),AND('Enrollment Form'!$AY591=\"No\",ISERROR(FIND(\"HMO\",VLOOKUP('Enrollment Form'!G591,'Enrollment Form'!H$11:J$1000,3,FALSE),1))=FALSE,COUNTA('Enrollment Form'!$BT591:$BW591)=4)),\"Y\",\"N\"))","v":"-"},{"$f":"IF($B584=\"N\",\"\",IF('Enrollment Form'!$B591=\"Subscriber\",\"-\",IF(COUNTA('Enrollment Form'!$BL591,'Enrollment Form'!$BN591)=2,\"Y\",\"N\")))","v":""},{"$f":"IF($B584=\"N\",\"\",IF(OR('Enrollment Form'!$AX591=\"\",'Enrollment Form'!$AX591=\"No\"),\"-\",IF(AND('Enrollment Form'!$AX591=\"Yes\",COUNTA('Enrollment Form'!$CR591)=1),\"Y\",\"N\")))","v":""},{"$f":"IF(OR('Enrollment Form'!$CR591=\"\",'Enrollment Form'!$CR591=\"No\"),\"-\",IF(COUNTA('Enrollment Form'!$CT591:$CU591)=2,\"Y\",\"N\"))","v":"-"},{"$f":"IF($B584=\"N\",\"\",IF(COUNTIF('Enrollment Form'!$DG591:$DP591,\"Other\")=COUNTA('Enrollment Form'!$DK591,'Enrollment Form'!$DH591,'Enrollment Form'!$DN591,'Enrollment Form'!$DQ591),\"Y\",\"N\"))","v":""},{"$f":"IF($B584=\"N\",\"\",IF(OR('Enrollment Form'!B591<>\"Subscriber\",'Enrollment Form'!C591=\"ROC\",COUNTIF('Enrollment Form'!AV591:AW591,\"Yes\")>=1),\"-\",IF(AND('Enrollment Form'!C591=\"Enroll\",COUNTIF('Enrollment Form'!AV591:AW591,\"No\")=2,'Enrollment Form'!AX591=\"\"),\"N\",\"Y\")))","v":""},{"$f":"IF(OR(B584=\"N\",'Enrollment Form'!B591<>\"Subscriber\",'Enrollment Form'!C591=\"ROC\",'Enrollment Form'!O591<>\"Multiple of Salary\"),\"-\",IF(COUNTA('Enrollment Form'!T591:U591)<2,\"N\",\"Y\"))","v":"-"},{"$f":"IF(B584=\"N\",\"\",IF(OR('Enrollment Form'!C591=\"ROC\",'Enrollment Form'!B591<>\"Subscriber\",'Enrollment Form'!O591=\"Waive\",'Enrollment Form'!O591=\"\"),\"-\",IF('Enrollment Form'!P591=\"\",\"N\",\"Y\")))","v":""},{"$f":"IF($B584=\"N\",\"\",IF(AND('Enrollment Form'!$C591=\"ROC\",'Enrollment Form'!$DR591<>\"\"),\"Y\",IF(AND('Enrollment Form'!$C591=\"ROC\",'Enrollment Form'!$DR591=\"\"),\"N\",IF(AND('Enrollment Form'!$C591=\"Enroll\",'Enrollment Form'!$B591=\"Subscriber\",'Enrollment Form'!$CX591=\"No\",'Enrollment Form'!$DR591=\"\"),\"N\",IF(AND('Enrollment Form'!$C591=\"Enroll\",'Enrollment Form'!$B591=\"Subscriber\",'Enrollment Form'!$CX591=\"Yes\"),\"-\",\"Y\")))))","v":""},{"$f":"IF($B584=\"N\",\"\",IF(AND('Enrollment Form'!$C591=\"ROC\",'Enrollment Form'!$DS591<>\"\"),\"Y\",IF(AND('Enrollment Form'!$C591=\"ROC\",'Enrollment Form'!$DS591=\"\"),\"N\",IF(AND('Enrollment Form'!$C591=\"Enroll\",'Enrollment Form'!$B591=\"Subscriber\",'Enrollment Form'!$CX591=\"No\",'Enrollment Form'!$DS591=\"\"),\"N\",IF(AND('Enrollment Form'!$C591=\"Enroll\",'Enrollment Form'!$B591=\"Subscriber\",'Enrollment Form'!$CX591=\"Yes\"),\"-\",\"Y\")))))","v":""},{"$f":"IF('Enrollment Form'!AH591=\"\",\"\",IF(ISERROR(SEARCH(\".\",'Enrollment Form'!AH591,SEARCH(\"@\",'Enrollment Form'!AH591))),\"N\",\"Y\"))","v":""},{"$f":"IF(OR($B584=\"N\",'Enrollment Form'!$G591=\"\"),\"\",IF('Enrollment Form'!$B591<>\"Subscriber\",\"-\",IF(COUNTIF('Enrollment Form'!$AV591:$AW591,\"Yes\")=2,\"N\",\"Y\")))","v":""},{"$f":"IF(OR('Enrollment Form'!$CJ591=\"\",'Enrollment Form'!$CJ591=\"No\"),\"-\",IF(AND('Enrollment Form'!$CJ591=\"Yes\",'Enrollment Form'!$CK591=\"\"),\"N\",\"Y\"))","v":"-"},{"$f":"IF(OR('Enrollment Form'!$CL591=\"\",'Enrollment Form'!$CL591=\"No\"),\"-\",IF(AND('Enrollment Form'!$CL591=\"Yes\",'Enrollment Form'!$CM591=\"\"),\"N\",\"Y\"))","v":"-"},{"$f":"IF(OR('Enrollment Form'!$CN591=\"\",'Enrollment Form'!$CN591=\"No\"),\"-\",IF(AND('Enrollment Form'!$CN591=\"Yes\",'Enrollment Form'!$CO591=\"\"),\"N\",\"Y\"))","v":"-"},{"$f":"IF(OR('Enrollment Form'!$CN591=\"\",'Enrollment Form'!$CN591=\"No\"),\"-\",IF(AND('Enrollment Form'!$CN591=\"Yes\",'Enrollment Form'!$CP591=\"\"),\"N\",\"Y\"))","v":"-"},{"$f":"IF('Enrollment Form'!B591<>\"Subscriber\",\"-\",IF(AND('Enrollment Form'!B591=\"Subscriber\",'Enrollment Form'!C591=\"Enroll\",'Enrollment Form'!AA591=\"\"),\"N\",\"Y\"))","v":"-"},{"$f":"IF(OR('Enrollment Form'!B591=\"Subscriber\",'Enrollment Form'!B591=\"\"),\"-\",IF('Enrollment Form'!BP591=\"\",\"N\",\"Y\"))","v":"-"},{"$f":"IF('Enrollment Form'!B591<>\"Subscriber\",\"-\",IF(AND('Enrollment Form'!B591=\"Subscriber\",'Enrollment Form'!G591=\"\"),\"N\",\"Y\"))","v":"-"},{"$f":"IF('Enrollment Form'!A591=\"\",\"\",IF('Enrollment Form'!B591=\"Subscriber\",\"-\",IF(AND('Enrollment Form'!B591<>\"Subscriber\",'Enrollment Form'!G591='Enrollment Form'!H591),\"N\",\"Y\")))","v":""},0]
[592,{"$f":"IF('Enrollment Form'!$A592<>\"\",\"Y\",\"N\")","v":"N"},{"$f":"IF(AND('Enrollment Form'!$B592=\"\",'Enrollment Form'!$C592<>\"\"),\"N\",IF($B585=\"N\",\"\",\"Y\"))","v":""},{"$f":"IF(OR($B585=\"N\",'Enrollment Form'!G592=\"\"),\"\",IF('Enrollment Form'!$B592<>\"Subscriber\",\"\",IF('Enrollment Form'!$G592='Enrollment Form'!$H592,\"Y\",\"N\")))","v":""},{"$f":"IF($B585=\"N\",\"\",IF(AND(COUNTIFS('Enrollment Form'!$H$11:$H$1000,'Enrollment Form'!$H592,'Enrollment Form'!$B$11:$B$1000,'Enrollment Form'!$B592)>1,'Enrollment Form'!$H592<>\"\"),\"N\",\"Y\"))","v":""},{"$f":"IF($B585=\"N\",\"\",IF(LEN('Enrollment Form'!$Y592)=0,\"\",IF(LEN('Enrollment Form'!$Y592)<>5,\"N\",\"Y\")))","v":""},{"$f":"IF($B585=\"N\",\"\",IF(LEN('Enrollment Form'!$AD592=0),\"\",IF(LEN('Enrollment Form'!$AD592)<>5,\"N\",\"Y\")))","v":""},{"$f":"IF($B585=\"N\",\"\",IF(LEN('Enrollment Form'!$BS592=0),\"\",IF(LEN('Enrollment Form'!$BS592)<>5,\"N\",\"Y\")))","v":""},{"$f":"IF($B585=\"N\",\"\",IF(LEN('Enrollment Form'!$AE592)=0,\"\",IF(LEN('Enrollment Form'!$AE592)<>10,\"N\",\"Y\")))","v":""},{"$f":"IF($B585=\"N\",\"\",IF(LEN('Enrollment Form'!$AF592)=0,\"\",IF(LEN('Enrollment Form'!$AF592)<>10,\"N\",\"Y\")))","v":""},{"$f":"IF('Enrollment Form'!$O592<>\"Graded\",\"-\",IF(AND('Enrollment Form'!$O592=\"Graded\",'Enrollment Form'!$AR592<>\"\"),\"Y\",\"N\"))","v":"-"},{"$f":"IF($B585=\"N\",\"\",IF(OR('Enrollment Form'!$B592<>\"Subscriber\",'Enrollment Form'!$C592=\"ROC\"),\"-\",IF(AND('Enrollment Form'!$B592=\"Subscriber\",'Enrollment Form'!$C592=\"Enroll\",'Enrollment Form'!$AJ592<>\"\"),\"Y\",\"N\")))","v":""},{"$f":"IF($B585=\"N\",\"\",IF(OR('Enrollment Form'!$B592<>\"Subscriber\",'Enrollment Form'!$C592=\"ROC\"),\"-\",IF(AND('Enrollment Form'!$B592=\"Subscriber\",'Enrollment Form'!$C592=\"Enroll\",'Enrollment Form'!$AK592<>\"\"),\"Y\",\"N\")))","v":""},{"$f":"IF($B585=\"N\",\"\",IF(OR('Enrollment Form'!$B592<>\"Subscriber\",'Enrollment Form'!$C592=\"ROC\"),\"-\",IF(AND('Enrollment Form'!$B592=\"Subscriber\",'Enrollment Form'!$C592=\"Enroll\",'Enrollment Form'!$AL592<>\"\"),\"Y\",\"N\")))","v":""},{"$f":"IF($B585=\"N\",\"\",IF(OR('Enrollment Form'!$B592<>\"Subscriber\",'Enrollment Form'!$C592=\"ROC\"),\"-\",IF(AND('Enrollment Form'!$B592=\"Subscriber\",'Enrollment Form'!$C592=\"Enroll\",'Enrollment Form'!$AP592<>\"\"),\"Y\",\"N\")))","v":""},{"$f":"IF($B585=\"N\",\"\",IF(OR('Enrollment Form'!$B592<>\"Subscriber\",'Enrollment Form'!$C592=\"ROC\"),\"-\",IF(AND('Enrollment Form'!$B592=\"Subscriber\",'Enrollment Form'!$C592=\"Enroll\",'Enrollment Form'!$AQ592<>\"\"),\"Y\",\"N\")))","v":""},{"$f":"IF($B585=\"N\",\"\",IF(OR('Enrollment Form'!$B592<>\"Subscriber\",'Enrollment Form'!$C592=\"ROC\"),\"-\",IF(AND('Enrollment Form'!$B592=\"Subscriber\",'Enrollment Form'!$C592=\"Enroll\",'Enrollment Form'!$AS592<>\"\"),\"Y\",\"N\")))","v":""},{"$f":"IF($B585=\"N\",\"\",IF($Q585=\"-\",\"-\",IF(AND($Q585=\"Y\",'Enrollment Form'!$AS592=\"No\"),\"-\",IF(AND($Q585=\"Y\",'Enrollment Form'!$AS592=\"Yes\",'Enrollment Form'!$AT592<>\"\"),\"Y\",\"N\"))))","v":""},{"$f":"IF($B585=\"N\",\"\",IF(OR('Enrollment Form'!$B592<>\"Subscriber\",'Enrollment Form'!$C592=\"ROC\"),\"-\",IF(AND('Enrollment Form'!$B592=\"Subscriber\",'Enrollment Form'!$C592=\"Enroll\",'Enrollment Form'!$CV592<>\"\"),\"Y\",\"N\")))","v":""},{"$f":"IF($B585=\"N\",\"\",IF($S585=\"-\",\"-\",IF(AND($S585=\"Y\",'Enrollment Form'!$CV592=\"No\"),\"-\",IF(AND($S585=\"Y\",'Enrollment Form'!$CV592=\"Yes\",'Enrollment Form'!$CW592<>\"\"),\"Y\",\"N\"))))","v":""},{"$f":"IF(OR('Enrollment Form'!$AY592=\"Yes\",'Enrollment Form'!$AY592=\"\"),\"-\",IF(OR(AND('Enrollment Form'!$AY592=\"No\",ISERROR(FIND(\"HMO\",VLOOKUP('Enrollment Form'!G592,'Enrollment Form'!H$11:J$1000,3,FALSE),1))=FALSE,COUNTA('Enrollment Form'!$AZ592:$BC592)=4),AND('Enrollment Form'!$AY592=\"No\",ISERROR(FIND(\"HMO\",VLOOKUP('Enrollment Form'!G592,'Enrollment Form'!H$11:J$1000,3,FALSE),1))=FALSE,COUNTA('Enrollment Form'!$BT592:$BW592)=4)),\"Y\",\"N\"))","v":"-"},{"$f":"IF($B585=\"N\",\"\",IF('Enrollment Form'!$B592=\"Subscriber\",\"-\",IF(COUNTA('Enrollment Form'!$BL592,'Enrollment Form'!$BN592)=2,\"Y\",\"N\")))","v":""},{"$f":"IF($B585=\"N\",\"\",IF(OR('Enrollment Form'!$AX592=\"\",'Enrollment Form'!$AX592=\"No\"),\"-\",IF(AND('Enrollment Form'!$AX592=\"Yes\",COUNTA('Enrollment Form'!$CR592)=1),\"Y\",\"N\")))","v":""},{"$f":"IF(OR('Enrollment Form'!$CR592=\"\",'Enrollment Form'!$CR592=\"No\"),\"-\",IF(COUNTA('Enrollment Form'!$CT592:$CU592)=2,\"Y\",\"N\"))","v":"-"},{"$f":"IF($B585=\"N\",\"\",IF(COUNTIF('Enrollment Form'!$DG592:$DP592,\"Other\")=COUNTA('Enrollment Form'!$DK592,'Enrollment Form'!$DH592,'Enrollment Form'!$DN592,'Enrollment Form'!$DQ592),\"Y\",\"N\"))","v":""},{"$f":"IF($B585=\"N\",\"\",IF(OR('Enrollment Form'!B592<>\"Subscriber\",'Enrollment Form'!C592=\"ROC\",COUNTIF('Enrollment Form'!AV592:AW592,\"Yes\")>=1),\"-\",IF(AND('Enrollment Form'!C592=\"Enroll\",COUNTIF('Enrollment Form'!AV592:AW592,\"No\")=2,'Enrollment Form'!AX592=\"\"),\"N\",\"Y\")))","v":""},{"$f":"IF(OR(B585=\"N\",'Enrollment Form'!B592<>\"Subscriber\",'Enrollment Form'!C592=\"ROC\",'Enrollment Form'!O592<>\"Multiple of Salary\"),\"-\",IF(COUNTA('Enrollment Form'!T592:U592)<2,\"N\",\"Y\"))","v":"-"},{"$f":"IF(B585=\"N\",\"\",IF(OR('Enrollment Form'!C592=\"ROC\",'Enrollment Form'!B592<>\"Subscriber\",'Enrollment Form'!O592=\"Waive\",'Enrollment Form'!O592=\"\"),\"-\",IF('Enrollment Form'!P592=\"\",\"N\",\"Y\")))","v":""},{"$f":"IF($B585=\"N\",\"\",IF(AND('Enrollment Form'!$C592=\"ROC\",'Enrollment Form'!$DR592<>\"\"),\"Y\",IF(AND('Enrollment Form'!$C592=\"ROC\",'Enrollment Form'!$DR592=\"\"),\"N\",IF(AND('Enrollment Form'!$C592=\"Enroll\",'Enrollment Form'!$B592=\"Subscriber\",'Enrollment Form'!$CX592=\"No\",'Enrollment Form'!$DR592=\"\"),\"N\",IF(AND('Enrollment Form'!$C592=\"Enroll\",'Enrollment Form'!$B592=\"Subscriber\",'Enrollment Form'!$CX592=\"Yes\"),\"-\",\"Y\")))))","v":""},{"$f":"IF($B585=\"N\",\"\",IF(AND('Enrollment Form'!$C592=\"ROC\",'Enrollment Form'!$DS592<>\"\"),\"Y\",IF(AND('Enrollment Form'!$C592=\"ROC\",'Enrollment Form'!$DS592=\"\"),\"N\",IF(AND('Enrollment Form'!$C592=\"Enroll\",'Enrollment Form'!$B592=\"Subscriber\",'Enrollment Form'!$CX592=\"No\",'Enrollment Form'!$DS592=\"\"),\"N\",IF(AND('Enrollment Form'!$C592=\"Enroll\",'Enrollment Form'!$B592=\"Subscriber\",'Enrollment Form'!$CX592=\"Yes\"),\"-\",\"Y\")))))","v":""},{"$f":"IF('Enrollment Form'!AH592=\"\",\"\",IF(ISERROR(SEARCH(\".\",'Enrollment Form'!AH592,SEARCH(\"@\",'Enrollment Form'!AH592))),\"N\",\"Y\"))","v":""},{"$f":"IF(OR($B585=\"N\",'Enrollment Form'!$G592=\"\"),\"\",IF('Enrollment Form'!$B592<>\"Subscriber\",\"-\",IF(COUNTIF('Enrollment Form'!$AV592:$AW592,\"Yes\")=2,\"N\",\"Y\")))","v":""},{"$f":"IF(OR('Enrollment Form'!$CJ592=\"\",'Enrollment Form'!$CJ592=\"No\"),\"-\",IF(AND('Enrollment Form'!$CJ592=\"Yes\",'Enrollment Form'!$CK592=\"\"),\"N\",\"Y\"))","v":"-"},{"$f":"IF(OR('Enrollment Form'!$CL592=\"\",'Enrollment Form'!$CL592=\"No\"),\"-\",IF(AND('Enrollment Form'!$CL592=\"Yes\",'Enrollment Form'!$CM592=\"\"),\"N\",\"Y\"))","v":"-"},{"$f":"IF(OR('Enrollment Form'!$CN592=\"\",'Enrollment Form'!$CN592=\"No\"),\"-\",IF(AND('Enrollment Form'!$CN592=\"Yes\",'Enrollment Form'!$CO592=\"\"),\"N\",\"Y\"))","v":"-"},{"$f":"IF(OR('Enrollment Form'!$CN592=\"\",'Enrollment Form'!$CN592=\"No\"),\"-\",IF(AND('Enrollment Form'!$CN592=\"Yes\",'Enrollment Form'!$CP592=\"\"),\"N\",\"Y\"))","v":"-"},{"$f":"IF('Enrollment Form'!B592<>\"Subscriber\",\"-\",IF(AND('Enrollment Form'!B592=\"Subscriber\",'Enrollment Form'!C592=\"Enroll\",'Enrollment Form'!AA592=\"\"),\"N\",\"Y\"))","v":"-"},{"$f":"IF(OR('Enrollment Form'!B592=\"Subscriber\",'Enrollment Form'!B592=\"\"),\"-\",IF('Enrollment Form'!BP592=\"\",\"N\",\"Y\"))","v":"-"},{"$f":"IF('Enrollment Form'!B592<>\"Subscriber\",\"-\",IF(AND('Enrollment Form'!B592=\"Subscriber\",'Enrollment Form'!G592=\"\"),\"N\",\"Y\"))","v":"-"},{"$f":"IF('Enrollment Form'!A592=\"\",\"\",IF('Enrollment Form'!B592=\"Subscriber\",\"-\",IF(AND('Enrollment Form'!B592<>\"Subscriber\",'Enrollment Form'!G592='Enrollment Form'!H592),\"N\",\"Y\")))","v":""},0]
[593,{"$f":"IF('Enrollment Form'!$A593<>\"\",\"Y\",\"N\")","v":"N"},{"$f":"IF(AND('Enrollment Form'!$B593=\"\",'Enrollment Form'!$C593<>\"\"),\"N\",IF($B586=\"N\",\"\",\"Y\"))","v":""},{"$f":"IF(OR($B586=\"N\",'Enrollment Form'!G593=\"\"),\"\",IF('Enrollment Form'!$B593<>\"Subscriber\",\"\",IF('Enrollment Form'!$G593='Enrollment Form'!$H593,\"Y\",\"N\")))","v":""},{"$f":"IF($B586=\"N\",\"\",IF(AND(COUNTIFS('Enrollment Form'!$H$11:$H$1000,'Enrollment Form'!$H593,'Enrollment Form'!$B$11:$B$1000,'Enrollment Form'!$B593)>1,'Enrollment Form'!$H593<>\"\"),\"N\",\"Y\"))","v":""},{"$f":"IF($B586=\"N\",\"\",IF(LEN('Enrollment Form'!$Y593)=0,\"\",IF(LEN('Enrollment Form'!$Y593)<>5,\"N\",\"Y\")))","v":""},{"$f":"IF($B586=\"N\",\"\",IF(LEN('Enrollment Form'!$AD593=0),\"\",IF(LEN('Enrollment Form'!$AD593)<>5,\"N\",\"Y\")))","v":""},{"$f":"IF($B586=\"N\",\"\",IF(LEN('Enrollment Form'!$BS593=0),\"\",IF(LEN('Enrollment Form'!$BS593)<>5,\"N\",\"Y\")))","v":""},{"$f":"IF($B586=\"N\",\"\",IF(LEN('Enrollment Form'!$AE593)=0,\"\",IF(LEN('Enrollment Form'!$AE593)<>10,\"N\",\"Y\")))","v":""},{"$f":"IF($B586=\"N\",\"\",IF(LEN('Enrollment Form'!$AF593)=0,\"\",IF(LEN('Enrollment Form'!$AF593)<>10,\"N\",\"Y\")))","v":""},{"$f":"IF('Enrollment Form'!$O593<>\"Graded\",\"-\",IF(AND('Enrollment Form'!$O593=\"Graded\",'Enrollment Form'!$AR593<>\"\"),\"Y\",\"N\"))","v":"-"},{"$f":"IF($B586=\"N\",\"\",IF(OR('Enrollment Form'!$B593<>\"Subscriber\",'Enrollment Form'!$C593=\"ROC\"),\"-\",IF(AND('Enrollment Form'!$B593=\"Subscriber\",'Enrollment Form'!$C593=\"Enroll\",'Enrollment Form'!$AJ593<>\"\"),\"Y\",\"N\")))","v":""},{"$f":"IF($B586=\"N\",\"\",IF(OR('Enrollment Form'!$B593<>\"Subscriber\",'Enrollment Form'!$C593=\"ROC\"),\"-\",IF(AND('Enrollment Form'!$B593=\"Subscriber\",'Enrollment Form'!$C593=\"Enroll\",'Enrollment Form'!$AK593<>\"\"),\"Y\",\"N\")))","v":""},{"$f":"IF($B586=\"N\",\"\",IF(OR('Enrollment Form'!$B593<>\"Subscriber\",'Enrollment Form'!$C593=\"ROC\"),\"-\",IF(AND('Enrollment Form'!$B593=\"Subscriber\",'Enrollment Form'!$C593=\"Enroll\",'Enrollment Form'!$AL593<>\"\"),\"Y\",\"N\")))","v":""},{"$f":"IF($B586=\"N\",\"\",IF(OR('Enrollment Form'!$B593<>\"Subscriber\",'Enrollment Form'!$C593=\"ROC\"),\"-\",IF(AND('Enrollment Form'!$B593=\"Subscriber\",'Enrollment Form'!$C593=\"Enroll\",'Enrollment Form'!$AP593<>\"\"),\"Y\",\"N\")))","v":""},{"$f":"IF($B586=\"N\",\"\",IF(OR('Enrollment Form'!$B593<>\"Subscriber\",'Enrollment Form'!$C593=\"ROC\"),\"-\",IF(AND('Enrollment Form'!$B593=\"Subscriber\",'Enrollment Form'!$C593=\"Enroll\",'Enrollment Form'!$AQ593<>\"\"),\"Y\",\"N\")))","v":""},{"$f":"IF($B586=\"N\",\"\",IF(OR('Enrollment Form'!$B593<>\"Subscriber\",'Enrollment Form'!$C593=\"ROC\"),\"-\",IF(AND('Enrollment Form'!$B593=\"Subscriber\",'Enrollment Form'!$C593=\"Enroll\",'Enrollment Form'!$AS593<>\"\"),\"Y\",\"N\")))","v":""},{"$f":"IF($B586=\"N\",\"\",IF($Q586=\"-\",\"-\",IF(AND($Q586=\"Y\",'Enrollment Form'!$AS593=\"No\"),\"-\",IF(AND($Q586=\"Y\",'Enrollment Form'!$AS593=\"Yes\",'Enrollment Form'!$AT593<>\"\"),\"Y\",\"N\"))))","v":""},{"$f":"IF($B586=\"N\",\"\",IF(OR('Enrollment Form'!$B593<>\"Subscriber\",'Enrollment Form'!$C593=\"ROC\"),\"-\",IF(AND('Enrollment Form'!$B593=\"Subscriber\",'Enrollment Form'!$C593=\"Enroll\",'Enrollment Form'!$CV593<>\"\"),\"Y\",\"N\")))","v":""},{"$f":"IF($B586=\"N\",\"\",IF($S586=\"-\",\"-\",IF(AND($S586=\"Y\",'Enrollment Form'!$CV593=\"No\"),\"-\",IF(AND($S586=\"Y\",'Enrollment Form'!$CV593=\"Yes\",'Enrollment Form'!$CW593<>\"\"),\"Y\",\"N\"))))","v":""},{"$f":"IF(OR('Enrollment Form'!$AY593=\"Yes\",'Enrollment Form'!$AY593=\"\"),\"-\",IF(OR(AND('Enrollment Form'!$AY593=\"No\",ISERROR(FIND(\"HMO\",VLOOKUP('Enrollment Form'!G593,'Enrollment Form'!H$11:J$1000,3,FALSE),1))=FALSE,COUNTA('Enrollment Form'!$AZ593:$BC593)=4),AND('Enrollment Form'!$AY593=\"No\",ISERROR(FIND(\"HMO\",VLOOKUP('Enrollment Form'!G593,'Enrollment Form'!H$11:J$1000,3,FALSE),1))=FALSE,COUNTA('Enrollment Form'!$BT593:$BW593)=4)),\"Y\",\"N\"))","v":"-"},{"$f":"IF($B586=\"N\",\"\",IF('Enrollment Form'!$B593=\"Subscriber\",\"-\",IF(COUNTA('Enrollment Form'!$BL593,'Enrollment Form'!$BN593)=2,\"Y\",\"N\")))","v":""},{"$f":"IF($B586=\"N\",\"\",IF(OR('Enrollment Form'!$AX593=\"\",'Enrollment Form'!$AX593=\"No\"),\"-\",IF(AND('Enrollment Form'!$AX593=\"Yes\",COUNTA('Enrollment Form'!$CR593)=1),\"Y\",\"N\")))","v":""},{"$f":"IF(OR('Enrollment Form'!$CR593=\"\",'Enrollment Form'!$CR593=\"No\"),\"-\",IF(COUNTA('Enrollment Form'!$CT593:$CU593)=2,\"Y\",\"N\"))","v":"-"},{"$f":"IF($B586=\"N\",\"\",IF(COUNTIF('Enrollment Form'!$DG593:$DP593,\"Other\")=COUNTA('Enrollment Form'!$DK593,'Enrollment Form'!$DH593,'Enrollment Form'!$DN593,'Enrollment Form'!$DQ593),\"Y\",\"N\"))","v":""},{"$f":"IF($B586=\"N\",\"\",IF(OR('Enrollment Form'!B593<>\"Subscriber\",'Enrollment Form'!C593=\"ROC\",COUNTIF('Enrollment Form'!AV593:AW593,\"Yes\")>=1),\"-\",IF(AND('Enrollment Form'!C593=\"Enroll\",COUNTIF('Enrollment Form'!AV593:AW593,\"No\")=2,'Enrollment Form'!AX593=\"\"),\"N\",\"Y\")))","v":""},{"$f":"IF(OR(B586=\"N\",'Enrollment Form'!B593<>\"Subscriber\",'Enrollment Form'!C593=\"ROC\",'Enrollment Form'!O593<>\"Multiple of Salary\"),\"-\",IF(COUNTA('Enrollment Form'!T593:U593)<2,\"N\",\"Y\"))","v":"-"},{"$f":"IF(B586=\"N\",\"\",IF(OR('Enrollment Form'!C593=\"ROC\",'Enrollment Form'!B593<>\"Subscriber\",'Enrollment Form'!O593=\"Waive\",'Enrollment Form'!O593=\"\"),\"-\",IF('Enrollment Form'!P593=\"\",\"N\",\"Y\")))","v":""},{"$f":"IF($B586=\"N\",\"\",IF(AND('Enrollment Form'!$C593=\"ROC\",'Enrollment Form'!$DR593<>\"\"),\"Y\",IF(AND('Enrollment Form'!$C593=\"ROC\",'Enrollment Form'!$DR593=\"\"),\"N\",IF(AND('Enrollment Form'!$C593=\"Enroll\",'Enrollment Form'!$B593=\"Subscriber\",'Enrollment Form'!$CX593=\"No\",'Enrollment Form'!$DR593=\"\"),\"N\",IF(AND('Enrollment Form'!$C593=\"Enroll\",'Enrollment Form'!$B593=\"Subscriber\",'Enrollment Form'!$CX593=\"Yes\"),\"-\",\"Y\")))))","v":""},{"$f":"IF($B586=\"N\",\"\",IF(AND('Enrollment Form'!$C593=\"ROC\",'Enrollment Form'!$DS593<>\"\"),\"Y\",IF(AND('Enrollment Form'!$C593=\"ROC\",'Enrollment Form'!$DS593=\"\"),\"N\",IF(AND('Enrollment Form'!$C593=\"Enroll\",'Enrollment Form'!$B593=\"Subscriber\",'Enrollment Form'!$CX593=\"No\",'Enrollment Form'!$DS593=\"\"),\"N\",IF(AND('Enrollment Form'!$C593=\"Enroll\",'Enrollment Form'!$B593=\"Subscriber\",'Enrollment Form'!$CX593=\"Yes\"),\"-\",\"Y\")))))","v":""},{"$f":"IF('Enrollment Form'!AH593=\"\",\"\",IF(ISERROR(SEARCH(\".\",'Enrollment Form'!AH593,SEARCH(\"@\",'Enrollment Form'!AH593))),\"N\",\"Y\"))","v":""},{"$f":"IF(OR($B586=\"N\",'Enrollment Form'!$G593=\"\"),\"\",IF('Enrollment Form'!$B593<>\"Subscriber\",\"-\",IF(COUNTIF('Enrollment Form'!$AV593:$AW593,\"Yes\")=2,\"N\",\"Y\")))","v":""},{"$f":"IF(OR('Enrollment Form'!$CJ593=\"\",'Enrollment Form'!$CJ593=\"No\"),\"-\",IF(AND('Enrollment Form'!$CJ593=\"Yes\",'Enrollment Form'!$CK593=\"\"),\"N\",\"Y\"))","v":"-"},{"$f":"IF(OR('Enrollment Form'!$CL593=\"\",'Enrollment Form'!$CL593=\"No\"),\"-\",IF(AND('Enrollment Form'!$CL593=\"Yes\",'Enrollment Form'!$CM593=\"\"),\"N\",\"Y\"))","v":"-"},{"$f":"IF(OR('Enrollment Form'!$CN593=\"\",'Enrollment Form'!$CN593=\"No\"),\"-\",IF(AND('Enrollment Form'!$CN593=\"Yes\",'Enrollment Form'!$CO593=\"\"),\"N\",\"Y\"))","v":"-"},{"$f":"IF(OR('Enrollment Form'!$CN593=\"\",'Enrollment Form'!$CN593=\"No\"),\"-\",IF(AND('Enrollment Form'!$CN593=\"Yes\",'Enrollment Form'!$CP593=\"\"),\"N\",\"Y\"))","v":"-"},{"$f":"IF('Enrollment Form'!B593<>\"Subscriber\",\"-\",IF(AND('Enrollment Form'!B593=\"Subscriber\",'Enrollment Form'!C593=\"Enroll\",'Enrollment Form'!AA593=\"\"),\"N\",\"Y\"))","v":"-"},{"$f":"IF(OR('Enrollment Form'!B593=\"Subscriber\",'Enrollment Form'!B593=\"\"),\"-\",IF('Enrollment Form'!BP593=\"\",\"N\",\"Y\"))","v":"-"},{"$f":"IF('Enrollment Form'!B593<>\"Subscriber\",\"-\",IF(AND('Enrollment Form'!B593=\"Subscriber\",'Enrollment Form'!G593=\"\"),\"N\",\"Y\"))","v":"-"},{"$f":"IF('Enrollment Form'!A593=\"\",\"\",IF('Enrollment Form'!B593=\"Subscriber\",\"-\",IF(AND('Enrollment Form'!B593<>\"Subscriber\",'Enrollment Form'!G593='Enrollment Form'!H593),\"N\",\"Y\")))","v":""},0]
[594,{"$f":"IF('Enrollment Form'!$A594<>\"\",\"Y\",\"N\")","v":"N"},{"$f":"IF(AND('Enrollment Form'!$B594=\"\",'Enrollment Form'!$C594<>\"\"),\"N\",IF($B587=\"N\",\"\",\"Y\"))","v":""},{"$f":"IF(OR($B587=\"N\",'Enrollment Form'!G594=\"\"),\"\",IF('Enrollment Form'!$B594<>\"Subscriber\",\"\",IF('Enrollment Form'!$G594='Enrollment Form'!$H594,\"Y\",\"N\")))","v":""},{"$f":"IF($B587=\"N\",\"\",IF(AND(COUNTIFS('Enrollment Form'!$H$11:$H$1000,'Enrollment Form'!$H594,'Enrollment Form'!$B$11:$B$1000,'Enrollment Form'!$B594)>1,'Enrollment Form'!$H594<>\"\"),\"N\",\"Y\"))","v":""},{"$f":"IF($B587=\"N\",\"\",IF(LEN('Enrollment Form'!$Y594)=0,\"\",IF(LEN('Enrollment Form'!$Y594)<>5,\"N\",\"Y\")))","v":""},{"$f":"IF($B587=\"N\",\"\",IF(LEN('Enrollment Form'!$AD594=0),\"\",IF(LEN('Enrollment Form'!$AD594)<>5,\"N\",\"Y\")))","v":""},{"$f":"IF($B587=\"N\",\"\",IF(LEN('Enrollment Form'!$BS594=0),\"\",IF(LEN('Enrollment Form'!$BS594)<>5,\"N\",\"Y\")))","v":""},{"$f":"IF($B587=\"N\",\"\",IF(LEN('Enrollment Form'!$AE594)=0,\"\",IF(LEN('Enrollment Form'!$AE594)<>10,\"N\",\"Y\")))","v":""},{"$f":"IF($B587=\"N\",\"\",IF(LEN('Enrollment Form'!$AF594)=0,\"\",IF(LEN('Enrollment Form'!$AF594)<>10,\"N\",\"Y\")))","v":""},{"$f":"IF('Enrollment Form'!$O594<>\"Graded\",\"-\",IF(AND('Enrollment Form'!$O594=\"Graded\",'Enrollment Form'!$AR594<>\"\"),\"Y\",\"N\"))","v":"-"},{"$f":"IF($B587=\"N\",\"\",IF(OR('Enrollment Form'!$B594<>\"Subscriber\",'Enrollment Form'!$C594=\"ROC\"),\"-\",IF(AND('Enrollment Form'!$B594=\"Subscriber\",'Enrollment Form'!$C594=\"Enroll\",'Enrollment Form'!$AJ594<>\"\"),\"Y\",\"N\")))","v":""},{"$f":"IF($B587=\"N\",\"\",IF(OR('Enrollment Form'!$B594<>\"Subscriber\",'Enrollment Form'!$C594=\"ROC\"),\"-\",IF(AND('Enrollment Form'!$B594=\"Subscriber\",'Enrollment Form'!$C594=\"Enroll\",'Enrollment Form'!$AK594<>\"\"),\"Y\",\"N\")))","v":""},{"$f":"IF($B587=\"N\",\"\",IF(OR('Enrollment Form'!$B594<>\"Subscriber\",'Enrollment Form'!$C594=\"ROC\"),\"-\",IF(AND('Enrollment Form'!$B594=\"Subscriber\",'Enrollment Form'!$C594=\"Enroll\",'Enrollment Form'!$AL594<>\"\"),\"Y\",\"N\")))","v":""},{"$f":"IF($B587=\"N\",\"\",IF(OR('Enrollment Form'!$B594<>\"Subscriber\",'Enrollment Form'!$C594=\"ROC\"),\"-\",IF(AND('Enrollment Form'!$B594=\"Subscriber\",'Enrollment Form'!$C594=\"Enroll\",'Enrollment Form'!$AP594<>\"\"),\"Y\",\"N\")))","v":""},{"$f":"IF($B587=\"N\",\"\",IF(OR('Enrollment Form'!$B594<>\"Subscriber\",'Enrollment Form'!$C594=\"ROC\"),\"-\",IF(AND('Enrollment Form'!$B594=\"Subscriber\",'Enrollment Form'!$C594=\"Enroll\",'Enrollment Form'!$AQ594<>\"\"),\"Y\",\"N\")))","v":""},{"$f":"IF($B587=\"N\",\"\",IF(OR('Enrollment Form'!$B594<>\"Subscriber\",'Enrollment Form'!$C594=\"ROC\"),\"-\",IF(AND('Enrollment Form'!$B594=\"Subscriber\",'Enrollment Form'!$C594=\"Enroll\",'Enrollment Form'!$AS594<>\"\"),\"Y\",\"N\")))","v":""},{"$f":"IF($B587=\"N\",\"\",IF($Q587=\"-\",\"-\",IF(AND($Q587=\"Y\",'Enrollment Form'!$AS594=\"No\"),\"-\",IF(AND($Q587=\"Y\",'Enrollment Form'!$AS594=\"Yes\",'Enrollment Form'!$AT594<>\"\"),\"Y\",\"N\"))))","v":""},{"$f":"IF($B587=\"N\",\"\",IF(OR('Enrollment Form'!$B594<>\"Subscriber\",'Enrollment Form'!$C594=\"ROC\"),\"-\",IF(AND('Enrollment Form'!$B594=\"Subscriber\",'Enrollment Form'!$C594=\"Enroll\",'Enrollment Form'!$CV594<>\"\"),\"Y\",\"N\")))","v":""},{"$f":"IF($B587=\"N\",\"\",IF($S587=\"-\",\"-\",IF(AND($S587=\"Y\",'Enrollment Form'!$CV594=\"No\"),\"-\",IF(AND($S587=\"Y\",'Enrollment Form'!$CV594=\"Yes\",'Enrollment Form'!$CW594<>\"\"),\"Y\",\"N\"))))","v":""},{"$f":"IF(OR('Enrollment Form'!$AY594=\"Yes\",'Enrollment Form'!$AY594=\"\"),\"-\",IF(OR(AND('Enrollment Form'!$AY594=\"No\",ISERROR(FIND(\"HMO\",VLOOKUP('Enrollment Form'!G594,'Enrollment Form'!H$11:J$1000,3,FALSE),1))=FALSE,COUNTA('Enrollment Form'!$AZ594:$BC594)=4),AND('Enrollment Form'!$AY594=\"No\",ISERROR(FIND(\"HMO\",VLOOKUP('Enrollment Form'!G594,'Enrollment Form'!H$11:J$1000,3,FALSE),1))=FALSE,COUNTA('Enrollment Form'!$BT594:$BW594)=4)),\"Y\",\"N\"))","v":"-"},{"$f":"IF($B587=\"N\",\"\",IF('Enrollment Form'!$B594=\"Subscriber\",\"-\",IF(COUNTA('Enrollment Form'!$BL594,'Enrollment Form'!$BN594)=2,\"Y\",\"N\")))","v":""},{"$f":"IF($B587=\"N\",\"\",IF(OR('Enrollment Form'!$AX594=\"\",'Enrollment Form'!$AX594=\"No\"),\"-\",IF(AND('Enrollment Form'!$AX594=\"Yes\",COUNTA('Enrollment Form'!$CR594)=1),\"Y\",\"N\")))","v":""},{"$f":"IF(OR('Enrollment Form'!$CR594=\"\",'Enrollment Form'!$CR594=\"No\"),\"-\",IF(COUNTA('Enrollment Form'!$CT594:$CU594)=2,\"Y\",\"N\"))","v":"-"},{"$f":"IF($B587=\"N\",\"\",IF(COUNTIF('Enrollment Form'!$DG594:$DP594,\"Other\")=COUNTA('Enrollment Form'!$DK594,'Enrollment Form'!$DH594,'Enrollment Form'!$DN594,'Enrollment Form'!$DQ594),\"Y\",\"N\"))","v":""},{"$f":"IF($B587=\"N\",\"\",IF(OR('Enrollment Form'!B594<>\"Subscriber\",'Enrollment Form'!C594=\"ROC\",COUNTIF('Enrollment Form'!AV594:AW594,\"Yes\")>=1),\"-\",IF(AND('Enrollment Form'!C594=\"Enroll\",COUNTIF('Enrollment Form'!AV594:AW594,\"No\")=2,'Enrollment Form'!AX594=\"\"),\"N\",\"Y\")))","v":""},{"$f":"IF(OR(B587=\"N\",'Enrollment Form'!B594<>\"Subscriber\",'Enrollment Form'!C594=\"ROC\",'Enrollment Form'!O594<>\"Multiple of Salary\"),\"-\",IF(COUNTA('Enrollment Form'!T594:U594)<2,\"N\",\"Y\"))","v":"-"},{"$f":"IF(B587=\"N\",\"\",IF(OR('Enrollment Form'!C594=\"ROC\",'Enrollment Form'!B594<>\"Subscriber\",'Enrollment Form'!O594=\"Waive\",'Enrollment Form'!O594=\"\"),\"-\",IF('Enrollment Form'!P594=\"\",\"N\",\"Y\")))","v":""},{"$f":"IF($B587=\"N\",\"\",IF(AND('Enrollment Form'!$C594=\"ROC\",'Enrollment Form'!$DR594<>\"\"),\"Y\",IF(AND('Enrollment Form'!$C594=\"ROC\",'Enrollment Form'!$DR594=\"\"),\"N\",IF(AND('Enrollment Form'!$C594=\"Enroll\",'Enrollment Form'!$B594=\"Subscriber\",'Enrollment Form'!$CX594=\"No\",'Enrollment Form'!$DR594=\"\"),\"N\",IF(AND('Enrollment Form'!$C594=\"Enroll\",'Enrollment Form'!$B594=\"Subscriber\",'Enrollment Form'!$CX594=\"Yes\"),\"-\",\"Y\")))))","v":""},{"$f":"IF($B587=\"N\",\"\",IF(AND('Enrollment Form'!$C594=\"ROC\",'Enrollment Form'!$DS594<>\"\"),\"Y\",IF(AND('Enrollment Form'!$C594=\"ROC\",'Enrollment Form'!$DS594=\"\"),\"N\",IF(AND('Enrollment Form'!$C594=\"Enroll\",'Enrollment Form'!$B594=\"Subscriber\",'Enrollment Form'!$CX594=\"No\",'Enrollment Form'!$DS594=\"\"),\"N\",IF(AND('Enrollment Form'!$C594=\"Enroll\",'Enrollment Form'!$B594=\"Subscriber\",'Enrollment Form'!$CX594=\"Yes\"),\"-\",\"Y\")))))","v":""},{"$f":"IF('Enrollment Form'!AH594=\"\",\"\",IF(ISERROR(SEARCH(\".\",'Enrollment Form'!AH594,SEARCH(\"@\",'Enrollment Form'!AH594))),\"N\",\"Y\"))","v":""},{"$f":"IF(OR($B587=\"N\",'Enrollment Form'!$G594=\"\"),\"\",IF('Enrollment Form'!$B594<>\"Subscriber\",\"-\",IF(COUNTIF('Enrollment Form'!$AV594:$AW594,\"Yes\")=2,\"N\",\"Y\")))","v":""},{"$f":"IF(OR('Enrollment Form'!$CJ594=\"\",'Enrollment Form'!$CJ594=\"No\"),\"-\",IF(AND('Enrollment Form'!$CJ594=\"Yes\",'Enrollment Form'!$CK594=\"\"),\"N\",\"Y\"))","v":"-"},{"$f":"IF(OR('Enrollment Form'!$CL594=\"\",'Enrollment Form'!$CL594=\"No\"),\"-\",IF(AND('Enrollment Form'!$CL594=\"Yes\",'Enrollment Form'!$CM594=\"\"),\"N\",\"Y\"))","v":"-"},{"$f":"IF(OR('Enrollment Form'!$CN594=\"\",'Enrollment Form'!$CN594=\"No\"),\"-\",IF(AND('Enrollment Form'!$CN594=\"Yes\",'Enrollment Form'!$CO594=\"\"),\"N\",\"Y\"))","v":"-"},{"$f":"IF(OR('Enrollment Form'!$CN594=\"\",'Enrollment Form'!$CN594=\"No\"),\"-\",IF(AND('Enrollment Form'!$CN594=\"Yes\",'Enrollment Form'!$CP594=\"\"),\"N\",\"Y\"))","v":"-"},{"$f":"IF('Enrollment Form'!B594<>\"Subscriber\",\"-\",IF(AND('Enrollment Form'!B594=\"Subscriber\",'Enrollment Form'!C594=\"Enroll\",'Enrollment Form'!AA594=\"\"),\"N\",\"Y\"))","v":"-"},{"$f":"IF(OR('Enrollment Form'!B594=\"Subscriber\",'Enrollment Form'!B594=\"\"),\"-\",IF('Enrollment Form'!BP594=\"\",\"N\",\"Y\"))","v":"-"},{"$f":"IF('Enrollment Form'!B594<>\"Subscriber\",\"-\",IF(AND('Enrollment Form'!B594=\"Subscriber\",'Enrollment Form'!G594=\"\"),\"N\",\"Y\"))","v":"-"},{"$f":"IF('Enrollment Form'!A594=\"\",\"\",IF('Enrollment Form'!B594=\"Subscriber\",\"-\",IF(AND('Enrollment Form'!B594<>\"Subscriber\",'Enrollment Form'!G594='Enrollment Form'!H594),\"N\",\"Y\")))","v":""},0]
[595,{"$f":"IF('Enrollment Form'!$A595<>\"\",\"Y\",\"N\")","v":"N"},{"$f":"IF(AND('Enrollment Form'!$B595=\"\",'Enrollment Form'!$C595<>\"\"),\"N\",IF($B588=\"N\",\"\",\"Y\"))","v":""},{"$f":"IF(OR($B588=\"N\",'Enrollment Form'!G595=\"\"),\"\",IF('Enrollment Form'!$B595<>\"Subscriber\",\"\",IF('Enrollment Form'!$G595='Enrollment Form'!$H595,\"Y\",\"N\")))","v":""},{"$f":"IF($B588=\"N\",\"\",IF(AND(COUNTIFS('Enrollment Form'!$H$11:$H$1000,'Enrollment Form'!$H595,'Enrollment Form'!$B$11:$B$1000,'Enrollment Form'!$B595)>1,'Enrollment Form'!$H595<>\"\"),\"N\",\"Y\"))","v":""},{"$f":"IF($B588=\"N\",\"\",IF(LEN('Enrollment Form'!$Y595)=0,\"\",IF(LEN('Enrollment Form'!$Y595)<>5,\"N\",\"Y\")))","v":""},{"$f":"IF($B588=\"N\",\"\",IF(LEN('Enrollment Form'!$AD595=0),\"\",IF(LEN('Enrollment Form'!$AD595)<>5,\"N\",\"Y\")))","v":""},{"$f":"IF($B588=\"N\",\"\",IF(LEN('Enrollment Form'!$BS595=0),\"\",IF(LEN('Enrollment Form'!$BS595)<>5,\"N\",\"Y\")))","v":""},{"$f":"IF($B588=\"N\",\"\",IF(LEN('Enrollment Form'!$AE595)=0,\"\",IF(LEN('Enrollment Form'!$AE595)<>10,\"N\",\"Y\")))","v":""},{"$f":"IF($B588=\"N\",\"\",IF(LEN('Enrollment Form'!$AF595)=0,\"\",IF(LEN('Enrollment Form'!$AF595)<>10,\"N\",\"Y\")))","v":""},{"$f":"IF('Enrollment Form'!$O595<>\"Graded\",\"-\",IF(AND('Enrollment Form'!$O595=\"Graded\",'Enrollment Form'!$AR595<>\"\"),\"Y\",\"N\"))","v":"-"},{"$f":"IF($B588=\"N\",\"\",IF(OR('Enrollment Form'!$B595<>\"Subscriber\",'Enrollment Form'!$C595=\"ROC\"),\"-\",IF(AND('Enrollment Form'!$B595=\"Subscriber\",'Enrollment Form'!$C595=\"Enroll\",'Enrollment Form'!$AJ595<>\"\"),\"Y\",\"N\")))","v":""},{"$f":"IF($B588=\"N\",\"\",IF(OR('Enrollment Form'!$B595<>\"Subscriber\",'Enrollment Form'!$C595=\"ROC\"),\"-\",IF(AND('Enrollment Form'!$B595=\"Subscriber\",'Enrollment Form'!$C595=\"Enroll\",'Enrollment Form'!$AK595<>\"\"),\"Y\",\"N\")))","v":""},{"$f":"IF($B588=\"N\",\"\",IF(OR('Enrollment Form'!$B595<>\"Subscriber\",'Enrollment Form'!$C595=\"ROC\"),\"-\",IF(AND('Enrollment Form'!$B595=\"Subscriber\",'Enrollment Form'!$C595=\"Enroll\",'Enrollment Form'!$AL595<>\"\"),\"Y\",\"N\")))","v":""},{"$f":"IF($B588=\"N\",\"\",IF(OR('Enrollment Form'!$B595<>\"Subscriber\",'Enrollment Form'!$C595=\"ROC\"),\"-\",IF(AND('Enrollment Form'!$B595=\"Subscriber\",'Enrollment Form'!$C595=\"Enroll\",'Enrollment Form'!$AP595<>\"\"),\"Y\",\"N\")))","v":""},{"$f":"IF($B588=\"N\",\"\",IF(OR('Enrollment Form'!$B595<>\"Subscriber\",'Enrollment Form'!$C595=\"ROC\"),\"-\",IF(AND('Enrollment Form'!$B595=\"Subscriber\",'Enrollment Form'!$C595=\"Enroll\",'Enrollment Form'!$AQ595<>\"\"),\"Y\",\"N\")))","v":""},{"$f":"IF($B588=\"N\",\"\",IF(OR('Enrollment Form'!$B595<>\"Subscriber\",'Enrollment Form'!$C595=\"ROC\"),\"-\",IF(AND('Enrollment Form'!$B595=\"Subscriber\",'Enrollment Form'!$C595=\"Enroll\",'Enrollment Form'!$AS595<>\"\"),\"Y\",\"N\")))","v":""},{"$f":"IF($B588=\"N\",\"\",IF($Q588=\"-\",\"-\",IF(AND($Q588=\"Y\",'Enrollment Form'!$AS595=\"No\"),\"-\",IF(AND($Q588=\"Y\",'Enrollment Form'!$AS595=\"Yes\",'Enrollment Form'!$AT595<>\"\"),\"Y\",\"N\"))))","v":""},{"$f":"IF($B588=\"N\",\"\",IF(OR('Enrollment Form'!$B595<>\"Subscriber\",'Enrollment Form'!$C595=\"ROC\"),\"-\",IF(AND('Enrollment Form'!$B595=\"Subscriber\",'Enrollment Form'!$C595=\"Enroll\",'Enrollment Form'!$CV595<>\"\"),\"Y\",\"N\")))","v":""},{"$f":"IF($B588=\"N\",\"\",IF($S588=\"-\",\"-\",IF(AND($S588=\"Y\",'Enrollment Form'!$CV595=\"No\"),\"-\",IF(AND($S588=\"Y\",'Enrollment Form'!$CV595=\"Yes\",'Enrollment Form'!$CW595<>\"\"),\"Y\",\"N\"))))","v":""},{"$f":"IF(OR('Enrollment Form'!$AY595=\"Yes\",'Enrollment Form'!$AY595=\"\"),\"-\",IF(OR(AND('Enrollment Form'!$AY595=\"No\",ISERROR(FIND(\"HMO\",VLOOKUP('Enrollment Form'!G595,'Enrollment Form'!H$11:J$1000,3,FALSE),1))=FALSE,COUNTA('Enrollment Form'!$AZ595:$BC595)=4),AND('Enrollment Form'!$AY595=\"No\",ISERROR(FIND(\"HMO\",VLOOKUP('Enrollment Form'!G595,'Enrollment Form'!H$11:J$1000,3,FALSE),1))=FALSE,COUNTA('Enrollment Form'!$BT595:$BW595)=4)),\"Y\",\"N\"))","v":"-"},{"$f":"IF($B588=\"N\",\"\",IF('Enrollment Form'!$B595=\"Subscriber\",\"-\",IF(COUNTA('Enrollment Form'!$BL595,'Enrollment Form'!$BN595)=2,\"Y\",\"N\")))","v":""},{"$f":"IF($B588=\"N\",\"\",IF(OR('Enrollment Form'!$AX595=\"\",'Enrollment Form'!$AX595=\"No\"),\"-\",IF(AND('Enrollment Form'!$AX595=\"Yes\",COUNTA('Enrollment Form'!$CR595)=1),\"Y\",\"N\")))","v":""},{"$f":"IF(OR('Enrollment Form'!$CR595=\"\",'Enrollment Form'!$CR595=\"No\"),\"-\",IF(COUNTA('Enrollment Form'!$CT595:$CU595)=2,\"Y\",\"N\"))","v":"-"},{"$f":"IF($B588=\"N\",\"\",IF(COUNTIF('Enrollment Form'!$DG595:$DP595,\"Other\")=COUNTA('Enrollment Form'!$DK595,'Enrollment Form'!$DH595,'Enrollment Form'!$DN595,'Enrollment Form'!$DQ595),\"Y\",\"N\"))","v":""},{"$f":"IF($B588=\"N\",\"\",IF(OR('Enrollment Form'!B595<>\"Subscriber\",'Enrollment Form'!C595=\"ROC\",COUNTIF('Enrollment Form'!AV595:AW595,\"Yes\")>=1),\"-\",IF(AND('Enrollment Form'!C595=\"Enroll\",COUNTIF('Enrollment Form'!AV595:AW595,\"No\")=2,'Enrollment Form'!AX595=\"\"),\"N\",\"Y\")))","v":""},{"$f":"IF(OR(B588=\"N\",'Enrollment Form'!B595<>\"Subscriber\",'Enrollment Form'!C595=\"ROC\",'Enrollment Form'!O595<>\"Multiple of Salary\"),\"-\",IF(COUNTA('Enrollment Form'!T595:U595)<2,\"N\",\"Y\"))","v":"-"},{"$f":"IF(B588=\"N\",\"\",IF(OR('Enrollment Form'!C595=\"ROC\",'Enrollment Form'!B595<>\"Subscriber\",'Enrollment Form'!O595=\"Waive\",'Enrollment Form'!O595=\"\"),\"-\",IF('Enrollment Form'!P595=\"\",\"N\",\"Y\")))","v":""},{"$f":"IF($B588=\"N\",\"\",IF(AND('Enrollment Form'!$C595=\"ROC\",'Enrollment Form'!$DR595<>\"\"),\"Y\",IF(AND('Enrollment Form'!$C595=\"ROC\",'Enrollment Form'!$DR595=\"\"),\"N\",IF(AND('Enrollment Form'!$C595=\"Enroll\",'Enrollment Form'!$B595=\"Subscriber\",'Enrollment Form'!$CX595=\"No\",'Enrollment Form'!$DR595=\"\"),\"N\",IF(AND('Enrollment Form'!$C595=\"Enroll\",'Enrollment Form'!$B595=\"Subscriber\",'Enrollment Form'!$CX595=\"Yes\"),\"-\",\"Y\")))))","v":""},{"$f":"IF($B588=\"N\",\"\",IF(AND('Enrollment Form'!$C595=\"ROC\",'Enrollment Form'!$DS595<>\"\"),\"Y\",IF(AND('Enrollment Form'!$C595=\"ROC\",'Enrollment Form'!$DS595=\"\"),\"N\",IF(AND('Enrollment Form'!$C595=\"Enroll\",'Enrollment Form'!$B595=\"Subscriber\",'Enrollment Form'!$CX595=\"No\",'Enrollment Form'!$DS595=\"\"),\"N\",IF(AND('Enrollment Form'!$C595=\"Enroll\",'Enrollment Form'!$B595=\"Subscriber\",'Enrollment Form'!$CX595=\"Yes\"),\"-\",\"Y\")))))","v":""},{"$f":"IF('Enrollment Form'!AH595=\"\",\"\",IF(ISERROR(SEARCH(\".\",'Enrollment Form'!AH595,SEARCH(\"@\",'Enrollment Form'!AH595))),\"N\",\"Y\"))","v":""},{"$f":"IF(OR($B588=\"N\",'Enrollment Form'!$G595=\"\"),\"\",IF('Enrollment Form'!$B595<>\"Subscriber\",\"-\",IF(COUNTIF('Enrollment Form'!$AV595:$AW595,\"Yes\")=2,\"N\",\"Y\")))","v":""},{"$f":"IF(OR('Enrollment Form'!$CJ595=\"\",'Enrollment Form'!$CJ595=\"No\"),\"-\",IF(AND('Enrollment Form'!$CJ595=\"Yes\",'Enrollment Form'!$CK595=\"\"),\"N\",\"Y\"))","v":"-"},{"$f":"IF(OR('Enrollment Form'!$CL595=\"\",'Enrollment Form'!$CL595=\"No\"),\"-\",IF(AND('Enrollment Form'!$CL595=\"Yes\",'Enrollment Form'!$CM595=\"\"),\"N\",\"Y\"))","v":"-"},{"$f":"IF(OR('Enrollment Form'!$CN595=\"\",'Enrollment Form'!$CN595=\"No\"),\"-\",IF(AND('Enrollment Form'!$CN595=\"Yes\",'Enrollment Form'!$CO595=\"\"),\"N\",\"Y\"))","v":"-"},{"$f":"IF(OR('Enrollment Form'!$CN595=\"\",'Enrollment Form'!$CN595=\"No\"),\"-\",IF(AND('Enrollment Form'!$CN595=\"Yes\",'Enrollment Form'!$CP595=\"\"),\"N\",\"Y\"))","v":"-"},{"$f":"IF('Enrollment Form'!B595<>\"Subscriber\",\"-\",IF(AND('Enrollment Form'!B595=\"Subscriber\",'Enrollment Form'!C595=\"Enroll\",'Enrollment Form'!AA595=\"\"),\"N\",\"Y\"))","v":"-"},{"$f":"IF(OR('Enrollment Form'!B595=\"Subscriber\",'Enrollment Form'!B595=\"\"),\"-\",IF('Enrollment Form'!BP595=\"\",\"N\",\"Y\"))","v":"-"},{"$f":"IF('Enrollment Form'!B595<>\"Subscriber\",\"-\",IF(AND('Enrollment Form'!B595=\"Subscriber\",'Enrollment Form'!G595=\"\"),\"N\",\"Y\"))","v":"-"},{"$f":"IF('Enrollment Form'!A595=\"\",\"\",IF('Enrollment Form'!B595=\"Subscriber\",\"-\",IF(AND('Enrollment Form'!B595<>\"Subscriber\",'Enrollment Form'!G595='Enrollment Form'!H595),\"N\",\"Y\")))","v":""},0]
[596,{"$f":"IF('Enrollment Form'!$A596<>\"\",\"Y\",\"N\")","v":"N"},{"$f":"IF(AND('Enrollment Form'!$B596=\"\",'Enrollment Form'!$C596<>\"\"),\"N\",IF($B589=\"N\",\"\",\"Y\"))","v":""},{"$f":"IF(OR($B589=\"N\",'Enrollment Form'!G596=\"\"),\"\",IF('Enrollment Form'!$B596<>\"Subscriber\",\"\",IF('Enrollment Form'!$G596='Enrollment Form'!$H596,\"Y\",\"N\")))","v":""},{"$f":"IF($B589=\"N\",\"\",IF(AND(COUNTIFS('Enrollment Form'!$H$11:$H$1000,'Enrollment Form'!$H596,'Enrollment Form'!$B$11:$B$1000,'Enrollment Form'!$B596)>1,'Enrollment Form'!$H596<>\"\"),\"N\",\"Y\"))","v":""},{"$f":"IF($B589=\"N\",\"\",IF(LEN('Enrollment Form'!$Y596)=0,\"\",IF(LEN('Enrollment Form'!$Y596)<>5,\"N\",\"Y\")))","v":""},{"$f":"IF($B589=\"N\",\"\",IF(LEN('Enrollment Form'!$AD596=0),\"\",IF(LEN('Enrollment Form'!$AD596)<>5,\"N\",\"Y\")))","v":""},{"$f":"IF($B589=\"N\",\"\",IF(LEN('Enrollment Form'!$BS596=0),\"\",IF(LEN('Enrollment Form'!$BS596)<>5,\"N\",\"Y\")))","v":""},{"$f":"IF($B589=\"N\",\"\",IF(LEN('Enrollment Form'!$AE596)=0,\"\",IF(LEN('Enrollment Form'!$AE596)<>10,\"N\",\"Y\")))","v":""},{"$f":"IF($B589=\"N\",\"\",IF(LEN('Enrollment Form'!$AF596)=0,\"\",IF(LEN('Enrollment Form'!$AF596)<>10,\"N\",\"Y\")))","v":""},{"$f":"IF('Enrollment Form'!$O596<>\"Graded\",\"-\",IF(AND('Enrollment Form'!$O596=\"Graded\",'Enrollment Form'!$AR596<>\"\"),\"Y\",\"N\"))","v":"-"},{"$f":"IF($B589=\"N\",\"\",IF(OR('Enrollment Form'!$B596<>\"Subscriber\",'Enrollment Form'!$C596=\"ROC\"),\"-\",IF(AND('Enrollment Form'!$B596=\"Subscriber\",'Enrollment Form'!$C596=\"Enroll\",'Enrollment Form'!$AJ596<>\"\"),\"Y\",\"N\")))","v":""},{"$f":"IF($B589=\"N\",\"\",IF(OR('Enrollment Form'!$B596<>\"Subscriber\",'Enrollment Form'!$C596=\"ROC\"),\"-\",IF(AND('Enrollment Form'!$B596=\"Subscriber\",'Enrollment Form'!$C596=\"Enroll\",'Enrollment Form'!$AK596<>\"\"),\"Y\",\"N\")))","v":""},{"$f":"IF($B589=\"N\",\"\",IF(OR('Enrollment Form'!$B596<>\"Subscriber\",'Enrollment Form'!$C596=\"ROC\"),\"-\",IF(AND('Enrollment Form'!$B596=\"Subscriber\",'Enrollment Form'!$C596=\"Enroll\",'Enrollment Form'!$AL596<>\"\"),\"Y\",\"N\")))","v":""},{"$f":"IF($B589=\"N\",\"\",IF(OR('Enrollment Form'!$B596<>\"Subscriber\",'Enrollment Form'!$C596=\"ROC\"),\"-\",IF(AND('Enrollment Form'!$B596=\"Subscriber\",'Enrollment Form'!$C596=\"Enroll\",'Enrollment Form'!$AP596<>\"\"),\"Y\",\"N\")))","v":""},{"$f":"IF($B589=\"N\",\"\",IF(OR('Enrollment Form'!$B596<>\"Subscriber\",'Enrollment Form'!$C596=\"ROC\"),\"-\",IF(AND('Enrollment Form'!$B596=\"Subscriber\",'Enrollment Form'!$C596=\"Enroll\",'Enrollment Form'!$AQ596<>\"\"),\"Y\",\"N\")))","v":""},{"$f":"IF($B589=\"N\",\"\",IF(OR('Enrollment Form'!$B596<>\"Subscriber\",'Enrollment Form'!$C596=\"ROC\"),\"-\",IF(AND('Enrollment Form'!$B596=\"Subscriber\",'Enrollment Form'!$C596=\"Enroll\",'Enrollment Form'!$AS596<>\"\"),\"Y\",\"N\")))","v":""},{"$f":"IF($B589=\"N\",\"\",IF($Q589=\"-\",\"-\",IF(AND($Q589=\"Y\",'Enrollment Form'!$AS596=\"No\"),\"-\",IF(AND($Q589=\"Y\",'Enrollment Form'!$AS596=\"Yes\",'Enrollment Form'!$AT596<>\"\"),\"Y\",\"N\"))))","v":""},{"$f":"IF($B589=\"N\",\"\",IF(OR('Enrollment Form'!$B596<>\"Subscriber\",'Enrollment Form'!$C596=\"ROC\"),\"-\",IF(AND('Enrollment Form'!$B596=\"Subscriber\",'Enrollment Form'!$C596=\"Enroll\",'Enrollment Form'!$CV596<>\"\"),\"Y\",\"N\")))","v":""},{"$f":"IF($B589=\"N\",\"\",IF($S589=\"-\",\"-\",IF(AND($S589=\"Y\",'Enrollment Form'!$CV596=\"No\"),\"-\",IF(AND($S589=\"Y\",'Enrollment Form'!$CV596=\"Yes\",'Enrollment Form'!$CW596<>\"\"),\"Y\",\"N\"))))","v":""},{"$f":"IF(OR('Enrollment Form'!$AY596=\"Yes\",'Enrollment Form'!$AY596=\"\"),\"-\",IF(OR(AND('Enrollment Form'!$AY596=\"No\",ISERROR(FIND(\"HMO\",VLOOKUP('Enrollment Form'!G596,'Enrollment Form'!H$11:J$1000,3,FALSE),1))=FALSE,COUNTA('Enrollment Form'!$AZ596:$BC596)=4),AND('Enrollment Form'!$AY596=\"No\",ISERROR(FIND(\"HMO\",VLOOKUP('Enrollment Form'!G596,'Enrollment Form'!H$11:J$1000,3,FALSE),1))=FALSE,COUNTA('Enrollment Form'!$BT596:$BW596)=4)),\"Y\",\"N\"))","v":"-"},{"$f":"IF($B589=\"N\",\"\",IF('Enrollment Form'!$B596=\"Subscriber\",\"-\",IF(COUNTA('Enrollment Form'!$BL596,'Enrollment Form'!$BN596)=2,\"Y\",\"N\")))","v":""},{"$f":"IF($B589=\"N\",\"\",IF(OR('Enrollment Form'!$AX596=\"\",'Enrollment Form'!$AX596=\"No\"),\"-\",IF(AND('Enrollment Form'!$AX596=\"Yes\",COUNTA('Enrollment Form'!$CR596)=1),\"Y\",\"N\")))","v":""},{"$f":"IF(OR('Enrollment Form'!$CR596=\"\",'Enrollment Form'!$CR596=\"No\"),\"-\",IF(COUNTA('Enrollment Form'!$CT596:$CU596)=2,\"Y\",\"N\"))","v":"-"},{"$f":"IF($B589=\"N\",\"\",IF(COUNTIF('Enrollment Form'!$DG596:$DP596,\"Other\")=COUNTA('Enrollment Form'!$DK596,'Enrollment Form'!$DH596,'Enrollment Form'!$DN596,'Enrollment Form'!$DQ596),\"Y\",\"N\"))","v":""},{"$f":"IF($B589=\"N\",\"\",IF(OR('Enrollment Form'!B596<>\"Subscriber\",'Enrollment Form'!C596=\"ROC\",COUNTIF('Enrollment Form'!AV596:AW596,\"Yes\")>=1),\"-\",IF(AND('Enrollment Form'!C596=\"Enroll\",COUNTIF('Enrollment Form'!AV596:AW596,\"No\")=2,'Enrollment Form'!AX596=\"\"),\"N\",\"Y\")))","v":""},{"$f":"IF(OR(B589=\"N\",'Enrollment Form'!B596<>\"Subscriber\",'Enrollment Form'!C596=\"ROC\",'Enrollment Form'!O596<>\"Multiple of Salary\"),\"-\",IF(COUNTA('Enrollment Form'!T596:U596)<2,\"N\",\"Y\"))","v":"-"},{"$f":"IF(B589=\"N\",\"\",IF(OR('Enrollment Form'!C596=\"ROC\",'Enrollment Form'!B596<>\"Subscriber\",'Enrollment Form'!O596=\"Waive\",'Enrollment Form'!O596=\"\"),\"-\",IF('Enrollment Form'!P596=\"\",\"N\",\"Y\")))","v":""},{"$f":"IF($B589=\"N\",\"\",IF(AND('Enrollment Form'!$C596=\"ROC\",'Enrollment Form'!$DR596<>\"\"),\"Y\",IF(AND('Enrollment Form'!$C596=\"ROC\",'Enrollment Form'!$DR596=\"\"),\"N\",IF(AND('Enrollment Form'!$C596=\"Enroll\",'Enrollment Form'!$B596=\"Subscriber\",'Enrollment Form'!$CX596=\"No\",'Enrollment Form'!$DR596=\"\"),\"N\",IF(AND('Enrollment Form'!$C596=\"Enroll\",'Enrollment Form'!$B596=\"Subscriber\",'Enrollment Form'!$CX596=\"Yes\"),\"-\",\"Y\")))))","v":""},{"$f":"IF($B589=\"N\",\"\",IF(AND('Enrollment Form'!$C596=\"ROC\",'Enrollment Form'!$DS596<>\"\"),\"Y\",IF(AND('Enrollment Form'!$C596=\"ROC\",'Enrollment Form'!$DS596=\"\"),\"N\",IF(AND('Enrollment Form'!$C596=\"Enroll\",'Enrollment Form'!$B596=\"Subscriber\",'Enrollment Form'!$CX596=\"No\",'Enrollment Form'!$DS596=\"\"),\"N\",IF(AND('Enrollment Form'!$C596=\"Enroll\",'Enrollment Form'!$B596=\"Subscriber\",'Enrollment Form'!$CX596=\"Yes\"),\"-\",\"Y\")))))","v":""},{"$f":"IF('Enrollment Form'!AH596=\"\",\"\",IF(ISERROR(SEARCH(\".\",'Enrollment Form'!AH596,SEARCH(\"@\",'Enrollment Form'!AH596))),\"N\",\"Y\"))","v":""},{"$f":"IF(OR($B589=\"N\",'Enrollment Form'!$G596=\"\"),\"\",IF('Enrollment Form'!$B596<>\"Subscriber\",\"-\",IF(COUNTIF('Enrollment Form'!$AV596:$AW596,\"Yes\")=2,\"N\",\"Y\")))","v":""},{"$f":"IF(OR('Enrollment Form'!$CJ596=\"\",'Enrollment Form'!$CJ596=\"No\"),\"-\",IF(AND('Enrollment Form'!$CJ596=\"Yes\",'Enrollment Form'!$CK596=\"\"),\"N\",\"Y\"))","v":"-"},{"$f":"IF(OR('Enrollment Form'!$CL596=\"\",'Enrollment Form'!$CL596=\"No\"),\"-\",IF(AND('Enrollment Form'!$CL596=\"Yes\",'Enrollment Form'!$CM596=\"\"),\"N\",\"Y\"))","v":"-"},{"$f":"IF(OR('Enrollment Form'!$CN596=\"\",'Enrollment Form'!$CN596=\"No\"),\"-\",IF(AND('Enrollment Form'!$CN596=\"Yes\",'Enrollment Form'!$CO596=\"\"),\"N\",\"Y\"))","v":"-"},{"$f":"IF(OR('Enrollment Form'!$CN596=\"\",'Enrollment Form'!$CN596=\"No\"),\"-\",IF(AND('Enrollment Form'!$CN596=\"Yes\",'Enrollment Form'!$CP596=\"\"),\"N\",\"Y\"))","v":"-"},{"$f":"IF('Enrollment Form'!B596<>\"Subscriber\",\"-\",IF(AND('Enrollment Form'!B596=\"Subscriber\",'Enrollment Form'!C596=\"Enroll\",'Enrollment Form'!AA596=\"\"),\"N\",\"Y\"))","v":"-"},{"$f":"IF(OR('Enrollment Form'!B596=\"Subscriber\",'Enrollment Form'!B596=\"\"),\"-\",IF('Enrollment Form'!BP596=\"\",\"N\",\"Y\"))","v":"-"},{"$f":"IF('Enrollment Form'!B596<>\"Subscriber\",\"-\",IF(AND('Enrollment Form'!B596=\"Subscriber\",'Enrollment Form'!G596=\"\"),\"N\",\"Y\"))","v":"-"},{"$f":"IF('Enrollment Form'!A596=\"\",\"\",IF('Enrollment Form'!B596=\"Subscriber\",\"-\",IF(AND('Enrollment Form'!B596<>\"Subscriber\",'Enrollment Form'!G596='Enrollment Form'!H596),\"N\",\"Y\")))","v":""},0]
[597,{"$f":"IF('Enrollment Form'!$A597<>\"\",\"Y\",\"N\")","v":"N"},{"$f":"IF(AND('Enrollment Form'!$B597=\"\",'Enrollment Form'!$C597<>\"\"),\"N\",IF($B590=\"N\",\"\",\"Y\"))","v":""},{"$f":"IF(OR($B590=\"N\",'Enrollment Form'!G597=\"\"),\"\",IF('Enrollment Form'!$B597<>\"Subscriber\",\"\",IF('Enrollment Form'!$G597='Enrollment Form'!$H597,\"Y\",\"N\")))","v":""},{"$f":"IF($B590=\"N\",\"\",IF(AND(COUNTIFS('Enrollment Form'!$H$11:$H$1000,'Enrollment Form'!$H597,'Enrollment Form'!$B$11:$B$1000,'Enrollment Form'!$B597)>1,'Enrollment Form'!$H597<>\"\"),\"N\",\"Y\"))","v":""},{"$f":"IF($B590=\"N\",\"\",IF(LEN('Enrollment Form'!$Y597)=0,\"\",IF(LEN('Enrollment Form'!$Y597)<>5,\"N\",\"Y\")))","v":""},{"$f":"IF($B590=\"N\",\"\",IF(LEN('Enrollment Form'!$AD597=0),\"\",IF(LEN('Enrollment Form'!$AD597)<>5,\"N\",\"Y\")))","v":""},{"$f":"IF($B590=\"N\",\"\",IF(LEN('Enrollment Form'!$BS597=0),\"\",IF(LEN('Enrollment Form'!$BS597)<>5,\"N\",\"Y\")))","v":""},{"$f":"IF($B590=\"N\",\"\",IF(LEN('Enrollment Form'!$AE597)=0,\"\",IF(LEN('Enrollment Form'!$AE597)<>10,\"N\",\"Y\")))","v":""},{"$f":"IF($B590=\"N\",\"\",IF(LEN('Enrollment Form'!$AF597)=0,\"\",IF(LEN('Enrollment Form'!$AF597)<>10,\"N\",\"Y\")))","v":""},{"$f":"IF('Enrollment Form'!$O597<>\"Graded\",\"-\",IF(AND('Enrollment Form'!$O597=\"Graded\",'Enrollment Form'!$AR597<>\"\"),\"Y\",\"N\"))","v":"-"},{"$f":"IF($B590=\"N\",\"\",IF(OR('Enrollment Form'!$B597<>\"Subscriber\",'Enrollment Form'!$C597=\"ROC\"),\"-\",IF(AND('Enrollment Form'!$B597=\"Subscriber\",'Enrollment Form'!$C597=\"Enroll\",'Enrollment Form'!$AJ597<>\"\"),\"Y\",\"N\")))","v":""},{"$f":"IF($B590=\"N\",\"\",IF(OR('Enrollment Form'!$B597<>\"Subscriber\",'Enrollment Form'!$C597=\"ROC\"),\"-\",IF(AND('Enrollment Form'!$B597=\"Subscriber\",'Enrollment Form'!$C597=\"Enroll\",'Enrollment Form'!$AK597<>\"\"),\"Y\",\"N\")))","v":""},{"$f":"IF($B590=\"N\",\"\",IF(OR('Enrollment Form'!$B597<>\"Subscriber\",'Enrollment Form'!$C597=\"ROC\"),\"-\",IF(AND('Enrollment Form'!$B597=\"Subscriber\",'Enrollment Form'!$C597=\"Enroll\",'Enrollment Form'!$AL597<>\"\"),\"Y\",\"N\")))","v":""},{"$f":"IF($B590=\"N\",\"\",IF(OR('Enrollment Form'!$B597<>\"Subscriber\",'Enrollment Form'!$C597=\"ROC\"),\"-\",IF(AND('Enrollment Form'!$B597=\"Subscriber\",'Enrollment Form'!$C597=\"Enroll\",'Enrollment Form'!$AP597<>\"\"),\"Y\",\"N\")))","v":""},{"$f":"IF($B590=\"N\",\"\",IF(OR('Enrollment Form'!$B597<>\"Subscriber\",'Enrollment Form'!$C597=\"ROC\"),\"-\",IF(AND('Enrollment Form'!$B597=\"Subscriber\",'Enrollment Form'!$C597=\"Enroll\",'Enrollment Form'!$AQ597<>\"\"),\"Y\",\"N\")))","v":""},{"$f":"IF($B590=\"N\",\"\",IF(OR('Enrollment Form'!$B597<>\"Subscriber\",'Enrollment Form'!$C597=\"ROC\"),\"-\",IF(AND('Enrollment Form'!$B597=\"Subscriber\",'Enrollment Form'!$C597=\"Enroll\",'Enrollment Form'!$AS597<>\"\"),\"Y\",\"N\")))","v":""},{"$f":"IF($B590=\"N\",\"\",IF($Q590=\"-\",\"-\",IF(AND($Q590=\"Y\",'Enrollment Form'!$AS597=\"No\"),\"-\",IF(AND($Q590=\"Y\",'Enrollment Form'!$AS597=\"Yes\",'Enrollment Form'!$AT597<>\"\"),\"Y\",\"N\"))))","v":""},{"$f":"IF($B590=\"N\",\"\",IF(OR('Enrollment Form'!$B597<>\"Subscriber\",'Enrollment Form'!$C597=\"ROC\"),\"-\",IF(AND('Enrollment Form'!$B597=\"Subscriber\",'Enrollment Form'!$C597=\"Enroll\",'Enrollment Form'!$CV597<>\"\"),\"Y\",\"N\")))","v":""},{"$f":"IF($B590=\"N\",\"\",IF($S590=\"-\",\"-\",IF(AND($S590=\"Y\",'Enrollment Form'!$CV597=\"No\"),\"-\",IF(AND($S590=\"Y\",'Enrollment Form'!$CV597=\"Yes\",'Enrollment Form'!$CW597<>\"\"),\"Y\",\"N\"))))","v":""},{"$f":"IF(OR('Enrollment Form'!$AY597=\"Yes\",'Enrollment Form'!$AY597=\"\"),\"-\",IF(OR(AND('Enrollment Form'!$AY597=\"No\",ISERROR(FIND(\"HMO\",VLOOKUP('Enrollment Form'!G597,'Enrollment Form'!H$11:J$1000,3,FALSE),1))=FALSE,COUNTA('Enrollment Form'!$AZ597:$BC597)=4),AND('Enrollment Form'!$AY597=\"No\",ISERROR(FIND(\"HMO\",VLOOKUP('Enrollment Form'!G597,'Enrollment Form'!H$11:J$1000,3,FALSE),1))=FALSE,COUNTA('Enrollment Form'!$BT597:$BW597)=4)),\"Y\",\"N\"))","v":"-"},{"$f":"IF($B590=\"N\",\"\",IF('Enrollment Form'!$B597=\"Subscriber\",\"-\",IF(COUNTA('Enrollment Form'!$BL597,'Enrollment Form'!$BN597)=2,\"Y\",\"N\")))","v":""},{"$f":"IF($B590=\"N\",\"\",IF(OR('Enrollment Form'!$AX597=\"\",'Enrollment Form'!$AX597=\"No\"),\"-\",IF(AND('Enrollment Form'!$AX597=\"Yes\",COUNTA('Enrollment Form'!$CR597)=1),\"Y\",\"N\")))","v":""},{"$f":"IF(OR('Enrollment Form'!$CR597=\"\",'Enrollment Form'!$CR597=\"No\"),\"-\",IF(COUNTA('Enrollment Form'!$CT597:$CU597)=2,\"Y\",\"N\"))","v":"-"},{"$f":"IF($B590=\"N\",\"\",IF(COUNTIF('Enrollment Form'!$DG597:$DP597,\"Other\")=COUNTA('Enrollment Form'!$DK597,'Enrollment Form'!$DH597,'Enrollment Form'!$DN597,'Enrollment Form'!$DQ597),\"Y\",\"N\"))","v":""},{"$f":"IF($B590=\"N\",\"\",IF(OR('Enrollment Form'!B597<>\"Subscriber\",'Enrollment Form'!C597=\"ROC\",COUNTIF('Enrollment Form'!AV597:AW597,\"Yes\")>=1),\"-\",IF(AND('Enrollment Form'!C597=\"Enroll\",COUNTIF('Enrollment Form'!AV597:AW597,\"No\")=2,'Enrollment Form'!AX597=\"\"),\"N\",\"Y\")))","v":""},{"$f":"IF(OR(B590=\"N\",'Enrollment Form'!B597<>\"Subscriber\",'Enrollment Form'!C597=\"ROC\",'Enrollment Form'!O597<>\"Multiple of Salary\"),\"-\",IF(COUNTA('Enrollment Form'!T597:U597)<2,\"N\",\"Y\"))","v":"-"},{"$f":"IF(B590=\"N\",\"\",IF(OR('Enrollment Form'!C597=\"ROC\",'Enrollment Form'!B597<>\"Subscriber\",'Enrollment Form'!O597=\"Waive\",'Enrollment Form'!O597=\"\"),\"-\",IF('Enrollment Form'!P597=\"\",\"N\",\"Y\")))","v":""},{"$f":"IF($B590=\"N\",\"\",IF(AND('Enrollment Form'!$C597=\"ROC\",'Enrollment Form'!$DR597<>\"\"),\"Y\",IF(AND('Enrollment Form'!$C597=\"ROC\",'Enrollment Form'!$DR597=\"\"),\"N\",IF(AND('Enrollment Form'!$C597=\"Enroll\",'Enrollment Form'!$B597=\"Subscriber\",'Enrollment Form'!$CX597=\"No\",'Enrollment Form'!$DR597=\"\"),\"N\",IF(AND('Enrollment Form'!$C597=\"Enroll\",'Enrollment Form'!$B597=\"Subscriber\",'Enrollment Form'!$CX597=\"Yes\"),\"-\",\"Y\")))))","v":""},{"$f":"IF($B590=\"N\",\"\",IF(AND('Enrollment Form'!$C597=\"ROC\",'Enrollment Form'!$DS597<>\"\"),\"Y\",IF(AND('Enrollment Form'!$C597=\"ROC\",'Enrollment Form'!$DS597=\"\"),\"N\",IF(AND('Enrollment Form'!$C597=\"Enroll\",'Enrollment Form'!$B597=\"Subscriber\",'Enrollment Form'!$CX597=\"No\",'Enrollment Form'!$DS597=\"\"),\"N\",IF(AND('Enrollment Form'!$C597=\"Enroll\",'Enrollment Form'!$B597=\"Subscriber\",'Enrollment Form'!$CX597=\"Yes\"),\"-\",\"Y\")))))","v":""},{"$f":"IF('Enrollment Form'!AH597=\"\",\"\",IF(ISERROR(SEARCH(\".\",'Enrollment Form'!AH597,SEARCH(\"@\",'Enrollment Form'!AH597))),\"N\",\"Y\"))","v":""},{"$f":"IF(OR($B590=\"N\",'Enrollment Form'!$G597=\"\"),\"\",IF('Enrollment Form'!$B597<>\"Subscriber\",\"-\",IF(COUNTIF('Enrollment Form'!$AV597:$AW597,\"Yes\")=2,\"N\",\"Y\")))","v":""},{"$f":"IF(OR('Enrollment Form'!$CJ597=\"\",'Enrollment Form'!$CJ597=\"No\"),\"-\",IF(AND('Enrollment Form'!$CJ597=\"Yes\",'Enrollment Form'!$CK597=\"\"),\"N\",\"Y\"))","v":"-"},{"$f":"IF(OR('Enrollment Form'!$CL597=\"\",'Enrollment Form'!$CL597=\"No\"),\"-\",IF(AND('Enrollment Form'!$CL597=\"Yes\",'Enrollment Form'!$CM597=\"\"),\"N\",\"Y\"))","v":"-"},{"$f":"IF(OR('Enrollment Form'!$CN597=\"\",'Enrollment Form'!$CN597=\"No\"),\"-\",IF(AND('Enrollment Form'!$CN597=\"Yes\",'Enrollment Form'!$CO597=\"\"),\"N\",\"Y\"))","v":"-"},{"$f":"IF(OR('Enrollment Form'!$CN597=\"\",'Enrollment Form'!$CN597=\"No\"),\"-\",IF(AND('Enrollment Form'!$CN597=\"Yes\",'Enrollment Form'!$CP597=\"\"),\"N\",\"Y\"))","v":"-"},{"$f":"IF('Enrollment Form'!B597<>\"Subscriber\",\"-\",IF(AND('Enrollment Form'!B597=\"Subscriber\",'Enrollment Form'!C597=\"Enroll\",'Enrollment Form'!AA597=\"\"),\"N\",\"Y\"))","v":"-"},{"$f":"IF(OR('Enrollment Form'!B597=\"Subscriber\",'Enrollment Form'!B597=\"\"),\"-\",IF('Enrollment Form'!BP597=\"\",\"N\",\"Y\"))","v":"-"},{"$f":"IF('Enrollment Form'!B597<>\"Subscriber\",\"-\",IF(AND('Enrollment Form'!B597=\"Subscriber\",'Enrollment Form'!G597=\"\"),\"N\",\"Y\"))","v":"-"},{"$f":"IF('Enrollment Form'!A597=\"\",\"\",IF('Enrollment Form'!B597=\"Subscriber\",\"-\",IF(AND('Enrollment Form'!B597<>\"Subscriber\",'Enrollment Form'!G597='Enrollment Form'!H597),\"N\",\"Y\")))","v":""},0]
[598,{"$f":"IF('Enrollment Form'!$A598<>\"\",\"Y\",\"N\")","v":"N"},{"$f":"IF(AND('Enrollment Form'!$B598=\"\",'Enrollment Form'!$C598<>\"\"),\"N\",IF($B591=\"N\",\"\",\"Y\"))","v":""},{"$f":"IF(OR($B591=\"N\",'Enrollment Form'!G598=\"\"),\"\",IF('Enrollment Form'!$B598<>\"Subscriber\",\"\",IF('Enrollment Form'!$G598='Enrollment Form'!$H598,\"Y\",\"N\")))","v":""},{"$f":"IF($B591=\"N\",\"\",IF(AND(COUNTIFS('Enrollment Form'!$H$11:$H$1000,'Enrollment Form'!$H598,'Enrollment Form'!$B$11:$B$1000,'Enrollment Form'!$B598)>1,'Enrollment Form'!$H598<>\"\"),\"N\",\"Y\"))","v":""},{"$f":"IF($B591=\"N\",\"\",IF(LEN('Enrollment Form'!$Y598)=0,\"\",IF(LEN('Enrollment Form'!$Y598)<>5,\"N\",\"Y\")))","v":""},{"$f":"IF($B591=\"N\",\"\",IF(LEN('Enrollment Form'!$AD598=0),\"\",IF(LEN('Enrollment Form'!$AD598)<>5,\"N\",\"Y\")))","v":""},{"$f":"IF($B591=\"N\",\"\",IF(LEN('Enrollment Form'!$BS598=0),\"\",IF(LEN('Enrollment Form'!$BS598)<>5,\"N\",\"Y\")))","v":""},{"$f":"IF($B591=\"N\",\"\",IF(LEN('Enrollment Form'!$AE598)=0,\"\",IF(LEN('Enrollment Form'!$AE598)<>10,\"N\",\"Y\")))","v":""},{"$f":"IF($B591=\"N\",\"\",IF(LEN('Enrollment Form'!$AF598)=0,\"\",IF(LEN('Enrollment Form'!$AF598)<>10,\"N\",\"Y\")))","v":""},{"$f":"IF('Enrollment Form'!$O598<>\"Graded\",\"-\",IF(AND('Enrollment Form'!$O598=\"Graded\",'Enrollment Form'!$AR598<>\"\"),\"Y\",\"N\"))","v":"-"},{"$f":"IF($B591=\"N\",\"\",IF(OR('Enrollment Form'!$B598<>\"Subscriber\",'Enrollment Form'!$C598=\"ROC\"),\"-\",IF(AND('Enrollment Form'!$B598=\"Subscriber\",'Enrollment Form'!$C598=\"Enroll\",'Enrollment Form'!$AJ598<>\"\"),\"Y\",\"N\")))","v":""},{"$f":"IF($B591=\"N\",\"\",IF(OR('Enrollment Form'!$B598<>\"Subscriber\",'Enrollment Form'!$C598=\"ROC\"),\"-\",IF(AND('Enrollment Form'!$B598=\"Subscriber\",'Enrollment Form'!$C598=\"Enroll\",'Enrollment Form'!$AK598<>\"\"),\"Y\",\"N\")))","v":""},{"$f":"IF($B591=\"N\",\"\",IF(OR('Enrollment Form'!$B598<>\"Subscriber\",'Enrollment Form'!$C598=\"ROC\"),\"-\",IF(AND('Enrollment Form'!$B598=\"Subscriber\",'Enrollment Form'!$C598=\"Enroll\",'Enrollment Form'!$AL598<>\"\"),\"Y\",\"N\")))","v":""},{"$f":"IF($B591=\"N\",\"\",IF(OR('Enrollment Form'!$B598<>\"Subscriber\",'Enrollment Form'!$C598=\"ROC\"),\"-\",IF(AND('Enrollment Form'!$B598=\"Subscriber\",'Enrollment Form'!$C598=\"Enroll\",'Enrollment Form'!$AP598<>\"\"),\"Y\",\"N\")))","v":""},{"$f":"IF($B591=\"N\",\"\",IF(OR('Enrollment Form'!$B598<>\"Subscriber\",'Enrollment Form'!$C598=\"ROC\"),\"-\",IF(AND('Enrollment Form'!$B598=\"Subscriber\",'Enrollment Form'!$C598=\"Enroll\",'Enrollment Form'!$AQ598<>\"\"),\"Y\",\"N\")))","v":""},{"$f":"IF($B591=\"N\",\"\",IF(OR('Enrollment Form'!$B598<>\"Subscriber\",'Enrollment Form'!$C598=\"ROC\"),\"-\",IF(AND('Enrollment Form'!$B598=\"Subscriber\",'Enrollment Form'!$C598=\"Enroll\",'Enrollment Form'!$AS598<>\"\"),\"Y\",\"N\")))","v":""},{"$f":"IF($B591=\"N\",\"\",IF($Q591=\"-\",\"-\",IF(AND($Q591=\"Y\",'Enrollment Form'!$AS598=\"No\"),\"-\",IF(AND($Q591=\"Y\",'Enrollment Form'!$AS598=\"Yes\",'Enrollment Form'!$AT598<>\"\"),\"Y\",\"N\"))))","v":""},{"$f":"IF($B591=\"N\",\"\",IF(OR('Enrollment Form'!$B598<>\"Subscriber\",'Enrollment Form'!$C598=\"ROC\"),\"-\",IF(AND('Enrollment Form'!$B598=\"Subscriber\",'Enrollment Form'!$C598=\"Enroll\",'Enrollment Form'!$CV598<>\"\"),\"Y\",\"N\")))","v":""},{"$f":"IF($B591=\"N\",\"\",IF($S591=\"-\",\"-\",IF(AND($S591=\"Y\",'Enrollment Form'!$CV598=\"No\"),\"-\",IF(AND($S591=\"Y\",'Enrollment Form'!$CV598=\"Yes\",'Enrollment Form'!$CW598<>\"\"),\"Y\",\"N\"))))","v":""},{"$f":"IF(OR('Enrollment Form'!$AY598=\"Yes\",'Enrollment Form'!$AY598=\"\"),\"-\",IF(OR(AND('Enrollment Form'!$AY598=\"No\",ISERROR(FIND(\"HMO\",VLOOKUP('Enrollment Form'!G598,'Enrollment Form'!H$11:J$1000,3,FALSE),1))=FALSE,COUNTA('Enrollment Form'!$AZ598:$BC598)=4),AND('Enrollment Form'!$AY598=\"No\",ISERROR(FIND(\"HMO\",VLOOKUP('Enrollment Form'!G598,'Enrollment Form'!H$11:J$1000,3,FALSE),1))=FALSE,COUNTA('Enrollment Form'!$BT598:$BW598)=4)),\"Y\",\"N\"))","v":"-"},{"$f":"IF($B591=\"N\",\"\",IF('Enrollment Form'!$B598=\"Subscriber\",\"-\",IF(COUNTA('Enrollment Form'!$BL598,'Enrollment Form'!$BN598)=2,\"Y\",\"N\")))","v":""},{"$f":"IF($B591=\"N\",\"\",IF(OR('Enrollment Form'!$AX598=\"\",'Enrollment Form'!$AX598=\"No\"),\"-\",IF(AND('Enrollment Form'!$AX598=\"Yes\",COUNTA('Enrollment Form'!$CR598)=1),\"Y\",\"N\")))","v":""},{"$f":"IF(OR('Enrollment Form'!$CR598=\"\",'Enrollment Form'!$CR598=\"No\"),\"-\",IF(COUNTA('Enrollment Form'!$CT598:$CU598)=2,\"Y\",\"N\"))","v":"-"},{"$f":"IF($B591=\"N\",\"\",IF(COUNTIF('Enrollment Form'!$DG598:$DP598,\"Other\")=COUNTA('Enrollment Form'!$DK598,'Enrollment Form'!$DH598,'Enrollment Form'!$DN598,'Enrollment Form'!$DQ598),\"Y\",\"N\"))","v":""},{"$f":"IF($B591=\"N\",\"\",IF(OR('Enrollment Form'!B598<>\"Subscriber\",'Enrollment Form'!C598=\"ROC\",COUNTIF('Enrollment Form'!AV598:AW598,\"Yes\")>=1),\"-\",IF(AND('Enrollment Form'!C598=\"Enroll\",COUNTIF('Enrollment Form'!AV598:AW598,\"No\")=2,'Enrollment Form'!AX598=\"\"),\"N\",\"Y\")))","v":""},{"$f":"IF(OR(B591=\"N\",'Enrollment Form'!B598<>\"Subscriber\",'Enrollment Form'!C598=\"ROC\",'Enrollment Form'!O598<>\"Multiple of Salary\"),\"-\",IF(COUNTA('Enrollment Form'!T598:U598)<2,\"N\",\"Y\"))","v":"-"},{"$f":"IF(B591=\"N\",\"\",IF(OR('Enrollment Form'!C598=\"ROC\",'Enrollment Form'!B598<>\"Subscriber\",'Enrollment Form'!O598=\"Waive\",'Enrollment Form'!O598=\"\"),\"-\",IF('Enrollment Form'!P598=\"\",\"N\",\"Y\")))","v":""},{"$f":"IF($B591=\"N\",\"\",IF(AND('Enrollment Form'!$C598=\"ROC\",'Enrollment Form'!$DR598<>\"\"),\"Y\",IF(AND('Enrollment Form'!$C598=\"ROC\",'Enrollment Form'!$DR598=\"\"),\"N\",IF(AND('Enrollment Form'!$C598=\"Enroll\",'Enrollment Form'!$B598=\"Subscriber\",'Enrollment Form'!$CX598=\"No\",'Enrollment Form'!$DR598=\"\"),\"N\",IF(AND('Enrollment Form'!$C598=\"Enroll\",'Enrollment Form'!$B598=\"Subscriber\",'Enrollment Form'!$CX598=\"Yes\"),\"-\",\"Y\")))))","v":""},{"$f":"IF($B591=\"N\",\"\",IF(AND('Enrollment Form'!$C598=\"ROC\",'Enrollment Form'!$DS598<>\"\"),\"Y\",IF(AND('Enrollment Form'!$C598=\"ROC\",'Enrollment Form'!$DS598=\"\"),\"N\",IF(AND('Enrollment Form'!$C598=\"Enroll\",'Enrollment Form'!$B598=\"Subscriber\",'Enrollment Form'!$CX598=\"No\",'Enrollment Form'!$DS598=\"\"),\"N\",IF(AND('Enrollment Form'!$C598=\"Enroll\",'Enrollment Form'!$B598=\"Subscriber\",'Enrollment Form'!$CX598=\"Yes\"),\"-\",\"Y\")))))","v":""},{"$f":"IF('Enrollment Form'!AH598=\"\",\"\",IF(ISERROR(SEARCH(\".\",'Enrollment Form'!AH598,SEARCH(\"@\",'Enrollment Form'!AH598))),\"N\",\"Y\"))","v":""},{"$f":"IF(OR($B591=\"N\",'Enrollment Form'!$G598=\"\"),\"\",IF('Enrollment Form'!$B598<>\"Subscriber\",\"-\",IF(COUNTIF('Enrollment Form'!$AV598:$AW598,\"Yes\")=2,\"N\",\"Y\")))","v":""},{"$f":"IF(OR('Enrollment Form'!$CJ598=\"\",'Enrollment Form'!$CJ598=\"No\"),\"-\",IF(AND('Enrollment Form'!$CJ598=\"Yes\",'Enrollment Form'!$CK598=\"\"),\"N\",\"Y\"))","v":"-"},{"$f":"IF(OR('Enrollment Form'!$CL598=\"\",'Enrollment Form'!$CL598=\"No\"),\"-\",IF(AND('Enrollment Form'!$CL598=\"Yes\",'Enrollment Form'!$CM598=\"\"),\"N\",\"Y\"))","v":"-"},{"$f":"IF(OR('Enrollment Form'!$CN598=\"\",'Enrollment Form'!$CN598=\"No\"),\"-\",IF(AND('Enrollment Form'!$CN598=\"Yes\",'Enrollment Form'!$CO598=\"\"),\"N\",\"Y\"))","v":"-"},{"$f":"IF(OR('Enrollment Form'!$CN598=\"\",'Enrollment Form'!$CN598=\"No\"),\"-\",IF(AND('Enrollment Form'!$CN598=\"Yes\",'Enrollment Form'!$CP598=\"\"),\"N\",\"Y\"))","v":"-"},{"$f":"IF('Enrollment Form'!B598<>\"Subscriber\",\"-\",IF(AND('Enrollment Form'!B598=\"Subscriber\",'Enrollment Form'!C598=\"Enroll\",'Enrollment Form'!AA598=\"\"),\"N\",\"Y\"))","v":"-"},{"$f":"IF(OR('Enrollment Form'!B598=\"Subscriber\",'Enrollment Form'!B598=\"\"),\"-\",IF('Enrollment Form'!BP598=\"\",\"N\",\"Y\"))","v":"-"},{"$f":"IF('Enrollment Form'!B598<>\"Subscriber\",\"-\",IF(AND('Enrollment Form'!B598=\"Subscriber\",'Enrollment Form'!G598=\"\"),\"N\",\"Y\"))","v":"-"},{"$f":"IF('Enrollment Form'!A598=\"\",\"\",IF('Enrollment Form'!B598=\"Subscriber\",\"-\",IF(AND('Enrollment Form'!B598<>\"Subscriber\",'Enrollment Form'!G598='Enrollment Form'!H598),\"N\",\"Y\")))","v":""},0]
[599,{"$f":"IF('Enrollment Form'!$A599<>\"\",\"Y\",\"N\")","v":"N"},{"$f":"IF(AND('Enrollment Form'!$B599=\"\",'Enrollment Form'!$C599<>\"\"),\"N\",IF($B592=\"N\",\"\",\"Y\"))","v":""},{"$f":"IF(OR($B592=\"N\",'Enrollment Form'!G599=\"\"),\"\",IF('Enrollment Form'!$B599<>\"Subscriber\",\"\",IF('Enrollment Form'!$G599='Enrollment Form'!$H599,\"Y\",\"N\")))","v":""},{"$f":"IF($B592=\"N\",\"\",IF(AND(COUNTIFS('Enrollment Form'!$H$11:$H$1000,'Enrollment Form'!$H599,'Enrollment Form'!$B$11:$B$1000,'Enrollment Form'!$B599)>1,'Enrollment Form'!$H599<>\"\"),\"N\",\"Y\"))","v":""},{"$f":"IF($B592=\"N\",\"\",IF(LEN('Enrollment Form'!$Y599)=0,\"\",IF(LEN('Enrollment Form'!$Y599)<>5,\"N\",\"Y\")))","v":""},{"$f":"IF($B592=\"N\",\"\",IF(LEN('Enrollment Form'!$AD599=0),\"\",IF(LEN('Enrollment Form'!$AD599)<>5,\"N\",\"Y\")))","v":""},{"$f":"IF($B592=\"N\",\"\",IF(LEN('Enrollment Form'!$BS599=0),\"\",IF(LEN('Enrollment Form'!$BS599)<>5,\"N\",\"Y\")))","v":""},{"$f":"IF($B592=\"N\",\"\",IF(LEN('Enrollment Form'!$AE599)=0,\"\",IF(LEN('Enrollment Form'!$AE599)<>10,\"N\",\"Y\")))","v":""},{"$f":"IF($B592=\"N\",\"\",IF(LEN('Enrollment Form'!$AF599)=0,\"\",IF(LEN('Enrollment Form'!$AF599)<>10,\"N\",\"Y\")))","v":""},{"$f":"IF('Enrollment Form'!$O599<>\"Graded\",\"-\",IF(AND('Enrollment Form'!$O599=\"Graded\",'Enrollment Form'!$AR599<>\"\"),\"Y\",\"N\"))","v":"-"},{"$f":"IF($B592=\"N\",\"\",IF(OR('Enrollment Form'!$B599<>\"Subscriber\",'Enrollment Form'!$C599=\"ROC\"),\"-\",IF(AND('Enrollment Form'!$B599=\"Subscriber\",'Enrollment Form'!$C599=\"Enroll\",'Enrollment Form'!$AJ599<>\"\"),\"Y\",\"N\")))","v":""},{"$f":"IF($B592=\"N\",\"\",IF(OR('Enrollment Form'!$B599<>\"Subscriber\",'Enrollment Form'!$C599=\"ROC\"),\"-\",IF(AND('Enrollment Form'!$B599=\"Subscriber\",'Enrollment Form'!$C599=\"Enroll\",'Enrollment Form'!$AK599<>\"\"),\"Y\",\"N\")))","v":""},{"$f":"IF($B592=\"N\",\"\",IF(OR('Enrollment Form'!$B599<>\"Subscriber\",'Enrollment Form'!$C599=\"ROC\"),\"-\",IF(AND('Enrollment Form'!$B599=\"Subscriber\",'Enrollment Form'!$C599=\"Enroll\",'Enrollment Form'!$AL599<>\"\"),\"Y\",\"N\")))","v":""},{"$f":"IF($B592=\"N\",\"\",IF(OR('Enrollment Form'!$B599<>\"Subscriber\",'Enrollment Form'!$C599=\"ROC\"),\"-\",IF(AND('Enrollment Form'!$B599=\"Subscriber\",'Enrollment Form'!$C599=\"Enroll\",'Enrollment Form'!$AP599<>\"\"),\"Y\",\"N\")))","v":""},{"$f":"IF($B592=\"N\",\"\",IF(OR('Enrollment Form'!$B599<>\"Subscriber\",'Enrollment Form'!$C599=\"ROC\"),\"-\",IF(AND('Enrollment Form'!$B599=\"Subscriber\",'Enrollment Form'!$C599=\"Enroll\",'Enrollment Form'!$AQ599<>\"\"),\"Y\",\"N\")))","v":""},{"$f":"IF($B592=\"N\",\"\",IF(OR('Enrollment Form'!$B599<>\"Subscriber\",'Enrollment Form'!$C599=\"ROC\"),\"-\",IF(AND('Enrollment Form'!$B599=\"Subscriber\",'Enrollment Form'!$C599=\"Enroll\",'Enrollment Form'!$AS599<>\"\"),\"Y\",\"N\")))","v":""},{"$f":"IF($B592=\"N\",\"\",IF($Q592=\"-\",\"-\",IF(AND($Q592=\"Y\",'Enrollment Form'!$AS599=\"No\"),\"-\",IF(AND($Q592=\"Y\",'Enrollment Form'!$AS599=\"Yes\",'Enrollment Form'!$AT599<>\"\"),\"Y\",\"N\"))))","v":""},{"$f":"IF($B592=\"N\",\"\",IF(OR('Enrollment Form'!$B599<>\"Subscriber\",'Enrollment Form'!$C599=\"ROC\"),\"-\",IF(AND('Enrollment Form'!$B599=\"Subscriber\",'Enrollment Form'!$C599=\"Enroll\",'Enrollment Form'!$CV599<>\"\"),\"Y\",\"N\")))","v":""},{"$f":"IF($B592=\"N\",\"\",IF($S592=\"-\",\"-\",IF(AND($S592=\"Y\",'Enrollment Form'!$CV599=\"No\"),\"-\",IF(AND($S592=\"Y\",'Enrollment Form'!$CV599=\"Yes\",'Enrollment Form'!$CW599<>\"\"),\"Y\",\"N\"))))","v":""},{"$f":"IF(OR('Enrollment Form'!$AY599=\"Yes\",'Enrollment Form'!$AY599=\"\"),\"-\",IF(OR(AND('Enrollment Form'!$AY599=\"No\",ISERROR(FIND(\"HMO\",VLOOKUP('Enrollment Form'!G599,'Enrollment Form'!H$11:J$1000,3,FALSE),1))=FALSE,COUNTA('Enrollment Form'!$AZ599:$BC599)=4),AND('Enrollment Form'!$AY599=\"No\",ISERROR(FIND(\"HMO\",VLOOKUP('Enrollment Form'!G599,'Enrollment Form'!H$11:J$1000,3,FALSE),1))=FALSE,COUNTA('Enrollment Form'!$BT599:$BW599)=4)),\"Y\",\"N\"))","v":"-"},{"$f":"IF($B592=\"N\",\"\",IF('Enrollment Form'!$B599=\"Subscriber\",\"-\",IF(COUNTA('Enrollment Form'!$BL599,'Enrollment Form'!$BN599)=2,\"Y\",\"N\")))","v":""},{"$f":"IF($B592=\"N\",\"\",IF(OR('Enrollment Form'!$AX599=\"\",'Enrollment Form'!$AX599=\"No\"),\"-\",IF(AND('Enrollment Form'!$AX599=\"Yes\",COUNTA('Enrollment Form'!$CR599)=1),\"Y\",\"N\")))","v":""},{"$f":"IF(OR('Enrollment Form'!$CR599=\"\",'Enrollment Form'!$CR599=\"No\"),\"-\",IF(COUNTA('Enrollment Form'!$CT599:$CU599)=2,\"Y\",\"N\"))","v":"-"},{"$f":"IF($B592=\"N\",\"\",IF(COUNTIF('Enrollment Form'!$DG599:$DP599,\"Other\")=COUNTA('Enrollment Form'!$DK599,'Enrollment Form'!$DH599,'Enrollment Form'!$DN599,'Enrollment Form'!$DQ599),\"Y\",\"N\"))","v":""},{"$f":"IF($B592=\"N\",\"\",IF(OR('Enrollment Form'!B599<>\"Subscriber\",'Enrollment Form'!C599=\"ROC\",COUNTIF('Enrollment Form'!AV599:AW599,\"Yes\")>=1),\"-\",IF(AND('Enrollment Form'!C599=\"Enroll\",COUNTIF('Enrollment Form'!AV599:AW599,\"No\")=2,'Enrollment Form'!AX599=\"\"),\"N\",\"Y\")))","v":""},{"$f":"IF(OR(B592=\"N\",'Enrollment Form'!B599<>\"Subscriber\",'Enrollment Form'!C599=\"ROC\",'Enrollment Form'!O599<>\"Multiple of Salary\"),\"-\",IF(COUNTA('Enrollment Form'!T599:U599)<2,\"N\",\"Y\"))","v":"-"},{"$f":"IF(B592=\"N\",\"\",IF(OR('Enrollment Form'!C599=\"ROC\",'Enrollment Form'!B599<>\"Subscriber\",'Enrollment Form'!O599=\"Waive\",'Enrollment Form'!O599=\"\"),\"-\",IF('Enrollment Form'!P599=\"\",\"N\",\"Y\")))","v":""},{"$f":"IF($B592=\"N\",\"\",IF(AND('Enrollment Form'!$C599=\"ROC\",'Enrollment Form'!$DR599<>\"\"),\"Y\",IF(AND('Enrollment Form'!$C599=\"ROC\",'Enrollment Form'!$DR599=\"\"),\"N\",IF(AND('Enrollment Form'!$C599=\"Enroll\",'Enrollment Form'!$B599=\"Subscriber\",'Enrollment Form'!$CX599=\"No\",'Enrollment Form'!$DR599=\"\"),\"N\",IF(AND('Enrollment Form'!$C599=\"Enroll\",'Enrollment Form'!$B599=\"Subscriber\",'Enrollment Form'!$CX599=\"Yes\"),\"-\",\"Y\")))))","v":""},{"$f":"IF($B592=\"N\",\"\",IF(AND('Enrollment Form'!$C599=\"ROC\",'Enrollment Form'!$DS599<>\"\"),\"Y\",IF(AND('Enrollment Form'!$C599=\"ROC\",'Enrollment Form'!$DS599=\"\"),\"N\",IF(AND('Enrollment Form'!$C599=\"Enroll\",'Enrollment Form'!$B599=\"Subscriber\",'Enrollment Form'!$CX599=\"No\",'Enrollment Form'!$DS599=\"\"),\"N\",IF(AND('Enrollment Form'!$C599=\"Enroll\",'Enrollment Form'!$B599=\"Subscriber\",'Enrollment Form'!$CX599=\"Yes\"),\"-\",\"Y\")))))","v":""},{"$f":"IF('Enrollment Form'!AH599=\"\",\"\",IF(ISERROR(SEARCH(\".\",'Enrollment Form'!AH599,SEARCH(\"@\",'Enrollment Form'!AH599))),\"N\",\"Y\"))","v":""},{"$f":"IF(OR($B592=\"N\",'Enrollment Form'!$G599=\"\"),\"\",IF('Enrollment Form'!$B599<>\"Subscriber\",\"-\",IF(COUNTIF('Enrollment Form'!$AV599:$AW599,\"Yes\")=2,\"N\",\"Y\")))","v":""},{"$f":"IF(OR('Enrollment Form'!$CJ599=\"\",'Enrollment Form'!$CJ599=\"No\"),\"-\",IF(AND('Enrollment Form'!$CJ599=\"Yes\",'Enrollment Form'!$CK599=\"\"),\"N\",\"Y\"))","v":"-"},{"$f":"IF(OR('Enrollment Form'!$CL599=\"\",'Enrollment Form'!$CL599=\"No\"),\"-\",IF(AND('Enrollment Form'!$CL599=\"Yes\",'Enrollment Form'!$CM599=\"\"),\"N\",\"Y\"))","v":"-"},{"$f":"IF(OR('Enrollment Form'!$CN599=\"\",'Enrollment Form'!$CN599=\"No\"),\"-\",IF(AND('Enrollment Form'!$CN599=\"Yes\",'Enrollment Form'!$CO599=\"\"),\"N\",\"Y\"))","v":"-"},{"$f":"IF(OR('Enrollment Form'!$CN599=\"\",'Enrollment Form'!$CN599=\"No\"),\"-\",IF(AND('Enrollment Form'!$CN599=\"Yes\",'Enrollment Form'!$CP599=\"\"),\"N\",\"Y\"))","v":"-"},{"$f":"IF('Enrollment Form'!B599<>\"Subscriber\",\"-\",IF(AND('Enrollment Form'!B599=\"Subscriber\",'Enrollment Form'!C599=\"Enroll\",'Enrollment Form'!AA599=\"\"),\"N\",\"Y\"))","v":"-"},{"$f":"IF(OR('Enrollment Form'!B599=\"Subscriber\",'Enrollment Form'!B599=\"\"),\"-\",IF('Enrollment Form'!BP599=\"\",\"N\",\"Y\"))","v":"-"},{"$f":"IF('Enrollment Form'!B599<>\"Subscriber\",\"-\",IF(AND('Enrollment Form'!B599=\"Subscriber\",'Enrollment Form'!G599=\"\"),\"N\",\"Y\"))","v":"-"},{"$f":"IF('Enrollment Form'!A599=\"\",\"\",IF('Enrollment Form'!B599=\"Subscriber\",\"-\",IF(AND('Enrollment Form'!B599<>\"Subscriber\",'Enrollment Form'!G599='Enrollment Form'!H599),\"N\",\"Y\")))","v":""},0]
[600,{"$f":"IF('Enrollment Form'!$A600<>\"\",\"Y\",\"N\")","v":"N"},{"$f":"IF(AND('Enrollment Form'!$B600=\"\",'Enrollment Form'!$C600<>\"\"),\"N\",IF($B593=\"N\",\"\",\"Y\"))","v":""},{"$f":"IF(OR($B593=\"N\",'Enrollment Form'!G600=\"\"),\"\",IF('Enrollment Form'!$B600<>\"Subscriber\",\"\",IF('Enrollment Form'!$G600='Enrollment Form'!$H600,\"Y\",\"N\")))","v":""},{"$f":"IF($B593=\"N\",\"\",IF(AND(COUNTIFS('Enrollment Form'!$H$11:$H$1000,'Enrollment Form'!$H600,'Enrollment Form'!$B$11:$B$1000,'Enrollment Form'!$B600)>1,'Enrollment Form'!$H600<>\"\"),\"N\",\"Y\"))","v":""},{"$f":"IF($B593=\"N\",\"\",IF(LEN('Enrollment Form'!$Y600)=0,\"\",IF(LEN('Enrollment Form'!$Y600)<>5,\"N\",\"Y\")))","v":""},{"$f":"IF($B593=\"N\",\"\",IF(LEN('Enrollment Form'!$AD600=0),\"\",IF(LEN('Enrollment Form'!$AD600)<>5,\"N\",\"Y\")))","v":""},{"$f":"IF($B593=\"N\",\"\",IF(LEN('Enrollment Form'!$BS600=0),\"\",IF(LEN('Enrollment Form'!$BS600)<>5,\"N\",\"Y\")))","v":""},{"$f":"IF($B593=\"N\",\"\",IF(LEN('Enrollment Form'!$AE600)=0,\"\",IF(LEN('Enrollment Form'!$AE600)<>10,\"N\",\"Y\")))","v":""},{"$f":"IF($B593=\"N\",\"\",IF(LEN('Enrollment Form'!$AF600)=0,\"\",IF(LEN('Enrollment Form'!$AF600)<>10,\"N\",\"Y\")))","v":""},{"$f":"IF('Enrollment Form'!$O600<>\"Graded\",\"-\",IF(AND('Enrollment Form'!$O600=\"Graded\",'Enrollment Form'!$AR600<>\"\"),\"Y\",\"N\"))","v":"-"},{"$f":"IF($B593=\"N\",\"\",IF(OR('Enrollment Form'!$B600<>\"Subscriber\",'Enrollment Form'!$C600=\"ROC\"),\"-\",IF(AND('Enrollment Form'!$B600=\"Subscriber\",'Enrollment Form'!$C600=\"Enroll\",'Enrollment Form'!$AJ600<>\"\"),\"Y\",\"N\")))","v":""},{"$f":"IF($B593=\"N\",\"\",IF(OR('Enrollment Form'!$B600<>\"Subscriber\",'Enrollment Form'!$C600=\"ROC\"),\"-\",IF(AND('Enrollment Form'!$B600=\"Subscriber\",'Enrollment Form'!$C600=\"Enroll\",'Enrollment Form'!$AK600<>\"\"),\"Y\",\"N\")))","v":""},{"$f":"IF($B593=\"N\",\"\",IF(OR('Enrollment Form'!$B600<>\"Subscriber\",'Enrollment Form'!$C600=\"ROC\"),\"-\",IF(AND('Enrollment Form'!$B600=\"Subscriber\",'Enrollment Form'!$C600=\"Enroll\",'Enrollment Form'!$AL600<>\"\"),\"Y\",\"N\")))","v":""},{"$f":"IF($B593=\"N\",\"\",IF(OR('Enrollment Form'!$B600<>\"Subscriber\",'Enrollment Form'!$C600=\"ROC\"),\"-\",IF(AND('Enrollment Form'!$B600=\"Subscriber\",'Enrollment Form'!$C600=\"Enroll\",'Enrollment Form'!$AP600<>\"\"),\"Y\",\"N\")))","v":""},{"$f":"IF($B593=\"N\",\"\",IF(OR('Enrollment Form'!$B600<>\"Subscriber\",'Enrollment Form'!$C600=\"ROC\"),\"-\",IF(AND('Enrollment Form'!$B600=\"Subscriber\",'Enrollment Form'!$C600=\"Enroll\",'Enrollment Form'!$AQ600<>\"\"),\"Y\",\"N\")))","v":""},{"$f":"IF($B593=\"N\",\"\",IF(OR('Enrollment Form'!$B600<>\"Subscriber\",'Enrollment Form'!$C600=\"ROC\"),\"-\",IF(AND('Enrollment Form'!$B600=\"Subscriber\",'Enrollment Form'!$C600=\"Enroll\",'Enrollment Form'!$AS600<>\"\"),\"Y\",\"N\")))","v":""},{"$f":"IF($B593=\"N\",\"\",IF($Q593=\"-\",\"-\",IF(AND($Q593=\"Y\",'Enrollment Form'!$AS600=\"No\"),\"-\",IF(AND($Q593=\"Y\",'Enrollment Form'!$AS600=\"Yes\",'Enrollment Form'!$AT600<>\"\"),\"Y\",\"N\"))))","v":""},{"$f":"IF($B593=\"N\",\"\",IF(OR('Enrollment Form'!$B600<>\"Subscriber\",'Enrollment Form'!$C600=\"ROC\"),\"-\",IF(AND('Enrollment Form'!$B600=\"Subscriber\",'Enrollment Form'!$C600=\"Enroll\",'Enrollment Form'!$CV600<>\"\"),\"Y\",\"N\")))","v":""},{"$f":"IF($B593=\"N\",\"\",IF($S593=\"-\",\"-\",IF(AND($S593=\"Y\",'Enrollment Form'!$CV600=\"No\"),\"-\",IF(AND($S593=\"Y\",'Enrollment Form'!$CV600=\"Yes\",'Enrollment Form'!$CW600<>\"\"),\"Y\",\"N\"))))","v":""},{"$f":"IF(OR('Enrollment Form'!$AY600=\"Yes\",'Enrollment Form'!$AY600=\"\"),\"-\",IF(OR(AND('Enrollment Form'!$AY600=\"No\",ISERROR(FIND(\"HMO\",VLOOKUP('Enrollment Form'!G600,'Enrollment Form'!H$11:J$1000,3,FALSE),1))=FALSE,COUNTA('Enrollment Form'!$AZ600:$BC600)=4),AND('Enrollment Form'!$AY600=\"No\",ISERROR(FIND(\"HMO\",VLOOKUP('Enrollment Form'!G600,'Enrollment Form'!H$11:J$1000,3,FALSE),1))=FALSE,COUNTA('Enrollment Form'!$BT600:$BW600)=4)),\"Y\",\"N\"))","v":"-"},{"$f":"IF($B593=\"N\",\"\",IF('Enrollment Form'!$B600=\"Subscriber\",\"-\",IF(COUNTA('Enrollment Form'!$BL600,'Enrollment Form'!$BN600)=2,\"Y\",\"N\")))","v":""},{"$f":"IF($B593=\"N\",\"\",IF(OR('Enrollment Form'!$AX600=\"\",'Enrollment Form'!$AX600=\"No\"),\"-\",IF(AND('Enrollment Form'!$AX600=\"Yes\",COUNTA('Enrollment Form'!$CR600)=1),\"Y\",\"N\")))","v":""},{"$f":"IF(OR('Enrollment Form'!$CR600=\"\",'Enrollment Form'!$CR600=\"No\"),\"-\",IF(COUNTA('Enrollment Form'!$CT600:$CU600)=2,\"Y\",\"N\"))","v":"-"},{"$f":"IF($B593=\"N\",\"\",IF(COUNTIF('Enrollment Form'!$DG600:$DP600,\"Other\")=COUNTA('Enrollment Form'!$DK600,'Enrollment Form'!$DH600,'Enrollment Form'!$DN600,'Enrollment Form'!$DQ600),\"Y\",\"N\"))","v":""},{"$f":"IF($B593=\"N\",\"\",IF(OR('Enrollment Form'!B600<>\"Subscriber\",'Enrollment Form'!C600=\"ROC\",COUNTIF('Enrollment Form'!AV600:AW600,\"Yes\")>=1),\"-\",IF(AND('Enrollment Form'!C600=\"Enroll\",COUNTIF('Enrollment Form'!AV600:AW600,\"No\")=2,'Enrollment Form'!AX600=\"\"),\"N\",\"Y\")))","v":""},{"$f":"IF(OR(B593=\"N\",'Enrollment Form'!B600<>\"Subscriber\",'Enrollment Form'!C600=\"ROC\",'Enrollment Form'!O600<>\"Multiple of Salary\"),\"-\",IF(COUNTA('Enrollment Form'!T600:U600)<2,\"N\",\"Y\"))","v":"-"},{"$f":"IF(B593=\"N\",\"\",IF(OR('Enrollment Form'!C600=\"ROC\",'Enrollment Form'!B600<>\"Subscriber\",'Enrollment Form'!O600=\"Waive\",'Enrollment Form'!O600=\"\"),\"-\",IF('Enrollment Form'!P600=\"\",\"N\",\"Y\")))","v":""},{"$f":"IF($B593=\"N\",\"\",IF(AND('Enrollment Form'!$C600=\"ROC\",'Enrollment Form'!$DR600<>\"\"),\"Y\",IF(AND('Enrollment Form'!$C600=\"ROC\",'Enrollment Form'!$DR600=\"\"),\"N\",IF(AND('Enrollment Form'!$C600=\"Enroll\",'Enrollment Form'!$B600=\"Subscriber\",'Enrollment Form'!$CX600=\"No\",'Enrollment Form'!$DR600=\"\"),\"N\",IF(AND('Enrollment Form'!$C600=\"Enroll\",'Enrollment Form'!$B600=\"Subscriber\",'Enrollment Form'!$CX600=\"Yes\"),\"-\",\"Y\")))))","v":""},{"$f":"IF($B593=\"N\",\"\",IF(AND('Enrollment Form'!$C600=\"ROC\",'Enrollment Form'!$DS600<>\"\"),\"Y\",IF(AND('Enrollment Form'!$C600=\"ROC\",'Enrollment Form'!$DS600=\"\"),\"N\",IF(AND('Enrollment Form'!$C600=\"Enroll\",'Enrollment Form'!$B600=\"Subscriber\",'Enrollment Form'!$CX600=\"No\",'Enrollment Form'!$DS600=\"\"),\"N\",IF(AND('Enrollment Form'!$C600=\"Enroll\",'Enrollment Form'!$B600=\"Subscriber\",'Enrollment Form'!$CX600=\"Yes\"),\"-\",\"Y\")))))","v":""},{"$f":"IF('Enrollment Form'!AH600=\"\",\"\",IF(ISERROR(SEARCH(\".\",'Enrollment Form'!AH600,SEARCH(\"@\",'Enrollment Form'!AH600))),\"N\",\"Y\"))","v":""},{"$f":"IF(OR($B593=\"N\",'Enrollment Form'!$G600=\"\"),\"\",IF('Enrollment Form'!$B600<>\"Subscriber\",\"-\",IF(COUNTIF('Enrollment Form'!$AV600:$AW600,\"Yes\")=2,\"N\",\"Y\")))","v":""},{"$f":"IF(OR('Enrollment Form'!$CJ600=\"\",'Enrollment Form'!$CJ600=\"No\"),\"-\",IF(AND('Enrollment Form'!$CJ600=\"Yes\",'Enrollment Form'!$CK600=\"\"),\"N\",\"Y\"))","v":"-"},{"$f":"IF(OR('Enrollment Form'!$CL600=\"\",'Enrollment Form'!$CL600=\"No\"),\"-\",IF(AND('Enrollment Form'!$CL600=\"Yes\",'Enrollment Form'!$CM600=\"\"),\"N\",\"Y\"))","v":"-"},{"$f":"IF(OR('Enrollment Form'!$CN600=\"\",'Enrollment Form'!$CN600=\"No\"),\"-\",IF(AND('Enrollment Form'!$CN600=\"Yes\",'Enrollment Form'!$CO600=\"\"),\"N\",\"Y\"))","v":"-"},{"$f":"IF(OR('Enrollment Form'!$CN600=\"\",'Enrollment Form'!$CN600=\"No\"),\"-\",IF(AND('Enrollment Form'!$CN600=\"Yes\",'Enrollment Form'!$CP600=\"\"),\"N\",\"Y\"))","v":"-"},{"$f":"IF('Enrollment Form'!B600<>\"Subscriber\",\"-\",IF(AND('Enrollment Form'!B600=\"Subscriber\",'Enrollment Form'!C600=\"Enroll\",'Enrollment Form'!AA600=\"\"),\"N\",\"Y\"))","v":"-"},{"$f":"IF(OR('Enrollment Form'!B600=\"Subscriber\",'Enrollment Form'!B600=\"\"),\"-\",IF('Enrollment Form'!BP600=\"\",\"N\",\"Y\"))","v":"-"},{"$f":"IF('Enrollment Form'!B600<>\"Subscriber\",\"-\",IF(AND('Enrollment Form'!B600=\"Subscriber\",'Enrollment Form'!G600=\"\"),\"N\",\"Y\"))","v":"-"},{"$f":"IF('Enrollment Form'!A600=\"\",\"\",IF('Enrollment Form'!B600=\"Subscriber\",\"-\",IF(AND('Enrollment Form'!B600<>\"Subscriber\",'Enrollment Form'!G600='Enrollment Form'!H600),\"N\",\"Y\")))","v":""},0]
[601,{"$f":"IF('Enrollment Form'!$A601<>\"\",\"Y\",\"N\")","v":"N"},{"$f":"IF(AND('Enrollment Form'!$B601=\"\",'Enrollment Form'!$C601<>\"\"),\"N\",IF($B594=\"N\",\"\",\"Y\"))","v":""},{"$f":"IF(OR($B594=\"N\",'Enrollment Form'!G601=\"\"),\"\",IF('Enrollment Form'!$B601<>\"Subscriber\",\"\",IF('Enrollment Form'!$G601='Enrollment Form'!$H601,\"Y\",\"N\")))","v":""},{"$f":"IF($B594=\"N\",\"\",IF(AND(COUNTIFS('Enrollment Form'!$H$11:$H$1000,'Enrollment Form'!$H601,'Enrollment Form'!$B$11:$B$1000,'Enrollment Form'!$B601)>1,'Enrollment Form'!$H601<>\"\"),\"N\",\"Y\"))","v":""},{"$f":"IF($B594=\"N\",\"\",IF(LEN('Enrollment Form'!$Y601)=0,\"\",IF(LEN('Enrollment Form'!$Y601)<>5,\"N\",\"Y\")))","v":""},{"$f":"IF($B594=\"N\",\"\",IF(LEN('Enrollment Form'!$AD601=0),\"\",IF(LEN('Enrollment Form'!$AD601)<>5,\"N\",\"Y\")))","v":""},{"$f":"IF($B594=\"N\",\"\",IF(LEN('Enrollment Form'!$BS601=0),\"\",IF(LEN('Enrollment Form'!$BS601)<>5,\"N\",\"Y\")))","v":""},{"$f":"IF($B594=\"N\",\"\",IF(LEN('Enrollment Form'!$AE601)=0,\"\",IF(LEN('Enrollment Form'!$AE601)<>10,\"N\",\"Y\")))","v":""},{"$f":"IF($B594=\"N\",\"\",IF(LEN('Enrollment Form'!$AF601)=0,\"\",IF(LEN('Enrollment Form'!$AF601)<>10,\"N\",\"Y\")))","v":""},{"$f":"IF('Enrollment Form'!$O601<>\"Graded\",\"-\",IF(AND('Enrollment Form'!$O601=\"Graded\",'Enrollment Form'!$AR601<>\"\"),\"Y\",\"N\"))","v":"-"},{"$f":"IF($B594=\"N\",\"\",IF(OR('Enrollment Form'!$B601<>\"Subscriber\",'Enrollment Form'!$C601=\"ROC\"),\"-\",IF(AND('Enrollment Form'!$B601=\"Subscriber\",'Enrollment Form'!$C601=\"Enroll\",'Enrollment Form'!$AJ601<>\"\"),\"Y\",\"N\")))","v":""},{"$f":"IF($B594=\"N\",\"\",IF(OR('Enrollment Form'!$B601<>\"Subscriber\",'Enrollment Form'!$C601=\"ROC\"),\"-\",IF(AND('Enrollment Form'!$B601=\"Subscriber\",'Enrollment Form'!$C601=\"Enroll\",'Enrollment Form'!$AK601<>\"\"),\"Y\",\"N\")))","v":""},{"$f":"IF($B594=\"N\",\"\",IF(OR('Enrollment Form'!$B601<>\"Subscriber\",'Enrollment Form'!$C601=\"ROC\"),\"-\",IF(AND('Enrollment Form'!$B601=\"Subscriber\",'Enrollment Form'!$C601=\"Enroll\",'Enrollment Form'!$AL601<>\"\"),\"Y\",\"N\")))","v":""},{"$f":"IF($B594=\"N\",\"\",IF(OR('Enrollment Form'!$B601<>\"Subscriber\",'Enrollment Form'!$C601=\"ROC\"),\"-\",IF(AND('Enrollment Form'!$B601=\"Subscriber\",'Enrollment Form'!$C601=\"Enroll\",'Enrollment Form'!$AP601<>\"\"),\"Y\",\"N\")))","v":""},{"$f":"IF($B594=\"N\",\"\",IF(OR('Enrollment Form'!$B601<>\"Subscriber\",'Enrollment Form'!$C601=\"ROC\"),\"-\",IF(AND('Enrollment Form'!$B601=\"Subscriber\",'Enrollment Form'!$C601=\"Enroll\",'Enrollment Form'!$AQ601<>\"\"),\"Y\",\"N\")))","v":""},{"$f":"IF($B594=\"N\",\"\",IF(OR('Enrollment Form'!$B601<>\"Subscriber\",'Enrollment Form'!$C601=\"ROC\"),\"-\",IF(AND('Enrollment Form'!$B601=\"Subscriber\",'Enrollment Form'!$C601=\"Enroll\",'Enrollment Form'!$AS601<>\"\"),\"Y\",\"N\")))","v":""},{"$f":"IF($B594=\"N\",\"\",IF($Q594=\"-\",\"-\",IF(AND($Q594=\"Y\",'Enrollment Form'!$AS601=\"No\"),\"-\",IF(AND($Q594=\"Y\",'Enrollment Form'!$AS601=\"Yes\",'Enrollment Form'!$AT601<>\"\"),\"Y\",\"N\"))))","v":""},{"$f":"IF($B594=\"N\",\"\",IF(OR('Enrollment Form'!$B601<>\"Subscriber\",'Enrollment Form'!$C601=\"ROC\"),\"-\",IF(AND('Enrollment Form'!$B601=\"Subscriber\",'Enrollment Form'!$C601=\"Enroll\",'Enrollment Form'!$CV601<>\"\"),\"Y\",\"N\")))","v":""},{"$f":"IF($B594=\"N\",\"\",IF($S594=\"-\",\"-\",IF(AND($S594=\"Y\",'Enrollment Form'!$CV601=\"No\"),\"-\",IF(AND($S594=\"Y\",'Enrollment Form'!$CV601=\"Yes\",'Enrollment Form'!$CW601<>\"\"),\"Y\",\"N\"))))","v":""},{"$f":"IF(OR('Enrollment Form'!$AY601=\"Yes\",'Enrollment Form'!$AY601=\"\"),\"-\",IF(OR(AND('Enrollment Form'!$AY601=\"No\",ISERROR(FIND(\"HMO\",VLOOKUP('Enrollment Form'!G601,'Enrollment Form'!H$11:J$1000,3,FALSE),1))=FALSE,COUNTA('Enrollment Form'!$AZ601:$BC601)=4),AND('Enrollment Form'!$AY601=\"No\",ISERROR(FIND(\"HMO\",VLOOKUP('Enrollment Form'!G601,'Enrollment Form'!H$11:J$1000,3,FALSE),1))=FALSE,COUNTA('Enrollment Form'!$BT601:$BW601)=4)),\"Y\",\"N\"))","v":"-"},{"$f":"IF($B594=\"N\",\"\",IF('Enrollment Form'!$B601=\"Subscriber\",\"-\",IF(COUNTA('Enrollment Form'!$BL601,'Enrollment Form'!$BN601)=2,\"Y\",\"N\")))","v":""},{"$f":"IF($B594=\"N\",\"\",IF(OR('Enrollment Form'!$AX601=\"\",'Enrollment Form'!$AX601=\"No\"),\"-\",IF(AND('Enrollment Form'!$AX601=\"Yes\",COUNTA('Enrollment Form'!$CR601)=1),\"Y\",\"N\")))","v":""},{"$f":"IF(OR('Enrollment Form'!$CR601=\"\",'Enrollment Form'!$CR601=\"No\"),\"-\",IF(COUNTA('Enrollment Form'!$CT601:$CU601)=2,\"Y\",\"N\"))","v":"-"},{"$f":"IF($B594=\"N\",\"\",IF(COUNTIF('Enrollment Form'!$DG601:$DP601,\"Other\")=COUNTA('Enrollment Form'!$DK601,'Enrollment Form'!$DH601,'Enrollment Form'!$DN601,'Enrollment Form'!$DQ601),\"Y\",\"N\"))","v":""},{"$f":"IF($B594=\"N\",\"\",IF(OR('Enrollment Form'!B601<>\"Subscriber\",'Enrollment Form'!C601=\"ROC\",COUNTIF('Enrollment Form'!AV601:AW601,\"Yes\")>=1),\"-\",IF(AND('Enrollment Form'!C601=\"Enroll\",COUNTIF('Enrollment Form'!AV601:AW601,\"No\")=2,'Enrollment Form'!AX601=\"\"),\"N\",\"Y\")))","v":""},{"$f":"IF(OR(B594=\"N\",'Enrollment Form'!B601<>\"Subscriber\",'Enrollment Form'!C601=\"ROC\",'Enrollment Form'!O601<>\"Multiple of Salary\"),\"-\",IF(COUNTA('Enrollment Form'!T601:U601)<2,\"N\",\"Y\"))","v":"-"},{"$f":"IF(B594=\"N\",\"\",IF(OR('Enrollment Form'!C601=\"ROC\",'Enrollment Form'!B601<>\"Subscriber\",'Enrollment Form'!O601=\"Waive\",'Enrollment Form'!O601=\"\"),\"-\",IF('Enrollment Form'!P601=\"\",\"N\",\"Y\")))","v":""},{"$f":"IF($B594=\"N\",\"\",IF(AND('Enrollment Form'!$C601=\"ROC\",'Enrollment Form'!$DR601<>\"\"),\"Y\",IF(AND('Enrollment Form'!$C601=\"ROC\",'Enrollment Form'!$DR601=\"\"),\"N\",IF(AND('Enrollment Form'!$C601=\"Enroll\",'Enrollment Form'!$B601=\"Subscriber\",'Enrollment Form'!$CX601=\"No\",'Enrollment Form'!$DR601=\"\"),\"N\",IF(AND('Enrollment Form'!$C601=\"Enroll\",'Enrollment Form'!$B601=\"Subscriber\",'Enrollment Form'!$CX601=\"Yes\"),\"-\",\"Y\")))))","v":""},{"$f":"IF($B594=\"N\",\"\",IF(AND('Enrollment Form'!$C601=\"ROC\",'Enrollment Form'!$DS601<>\"\"),\"Y\",IF(AND('Enrollment Form'!$C601=\"ROC\",'Enrollment Form'!$DS601=\"\"),\"N\",IF(AND('Enrollment Form'!$C601=\"Enroll\",'Enrollment Form'!$B601=\"Subscriber\",'Enrollment Form'!$CX601=\"No\",'Enrollment Form'!$DS601=\"\"),\"N\",IF(AND('Enrollment Form'!$C601=\"Enroll\",'Enrollment Form'!$B601=\"Subscriber\",'Enrollment Form'!$CX601=\"Yes\"),\"-\",\"Y\")))))","v":""},{"$f":"IF('Enrollment Form'!AH601=\"\",\"\",IF(ISERROR(SEARCH(\".\",'Enrollment Form'!AH601,SEARCH(\"@\",'Enrollment Form'!AH601))),\"N\",\"Y\"))","v":""},{"$f":"IF(OR($B594=\"N\",'Enrollment Form'!$G601=\"\"),\"\",IF('Enrollment Form'!$B601<>\"Subscriber\",\"-\",IF(COUNTIF('Enrollment Form'!$AV601:$AW601,\"Yes\")=2,\"N\",\"Y\")))","v":""},{"$f":"IF(OR('Enrollment Form'!$CJ601=\"\",'Enrollment Form'!$CJ601=\"No\"),\"-\",IF(AND('Enrollment Form'!$CJ601=\"Yes\",'Enrollment Form'!$CK601=\"\"),\"N\",\"Y\"))","v":"-"},{"$f":"IF(OR('Enrollment Form'!$CL601=\"\",'Enrollment Form'!$CL601=\"No\"),\"-\",IF(AND('Enrollment Form'!$CL601=\"Yes\",'Enrollment Form'!$CM601=\"\"),\"N\",\"Y\"))","v":"-"},{"$f":"IF(OR('Enrollment Form'!$CN601=\"\",'Enrollment Form'!$CN601=\"No\"),\"-\",IF(AND('Enrollment Form'!$CN601=\"Yes\",'Enrollment Form'!$CO601=\"\"),\"N\",\"Y\"))","v":"-"},{"$f":"IF(OR('Enrollment Form'!$CN601=\"\",'Enrollment Form'!$CN601=\"No\"),\"-\",IF(AND('Enrollment Form'!$CN601=\"Yes\",'Enrollment Form'!$CP601=\"\"),\"N\",\"Y\"))","v":"-"},{"$f":"IF('Enrollment Form'!B601<>\"Subscriber\",\"-\",IF(AND('Enrollment Form'!B601=\"Subscriber\",'Enrollment Form'!C601=\"Enroll\",'Enrollment Form'!AA601=\"\"),\"N\",\"Y\"))","v":"-"},{"$f":"IF(OR('Enrollment Form'!B601=\"Subscriber\",'Enrollment Form'!B601=\"\"),\"-\",IF('Enrollment Form'!BP601=\"\",\"N\",\"Y\"))","v":"-"},{"$f":"IF('Enrollment Form'!B601<>\"Subscriber\",\"-\",IF(AND('Enrollment Form'!B601=\"Subscriber\",'Enrollment Form'!G601=\"\"),\"N\",\"Y\"))","v":"-"},{"$f":"IF('Enrollment Form'!A601=\"\",\"\",IF('Enrollment Form'!B601=\"Subscriber\",\"-\",IF(AND('Enrollment Form'!B601<>\"Subscriber\",'Enrollment Form'!G601='Enrollment Form'!H601),\"N\",\"Y\")))","v":""},0]
[602,{"$f":"IF('Enrollment Form'!$A602<>\"\",\"Y\",\"N\")","v":"N"},{"$f":"IF(AND('Enrollment Form'!$B602=\"\",'Enrollment Form'!$C602<>\"\"),\"N\",IF($B595=\"N\",\"\",\"Y\"))","v":""},{"$f":"IF(OR($B595=\"N\",'Enrollment Form'!G602=\"\"),\"\",IF('Enrollment Form'!$B602<>\"Subscriber\",\"\",IF('Enrollment Form'!$G602='Enrollment Form'!$H602,\"Y\",\"N\")))","v":""},{"$f":"IF($B595=\"N\",\"\",IF(AND(COUNTIFS('Enrollment Form'!$H$11:$H$1000,'Enrollment Form'!$H602,'Enrollment Form'!$B$11:$B$1000,'Enrollment Form'!$B602)>1,'Enrollment Form'!$H602<>\"\"),\"N\",\"Y\"))","v":""},{"$f":"IF($B595=\"N\",\"\",IF(LEN('Enrollment Form'!$Y602)=0,\"\",IF(LEN('Enrollment Form'!$Y602)<>5,\"N\",\"Y\")))","v":""},{"$f":"IF($B595=\"N\",\"\",IF(LEN('Enrollment Form'!$AD602=0),\"\",IF(LEN('Enrollment Form'!$AD602)<>5,\"N\",\"Y\")))","v":""},{"$f":"IF($B595=\"N\",\"\",IF(LEN('Enrollment Form'!$BS602=0),\"\",IF(LEN('Enrollment Form'!$BS602)<>5,\"N\",\"Y\")))","v":""},{"$f":"IF($B595=\"N\",\"\",IF(LEN('Enrollment Form'!$AE602)=0,\"\",IF(LEN('Enrollment Form'!$AE602)<>10,\"N\",\"Y\")))","v":""},{"$f":"IF($B595=\"N\",\"\",IF(LEN('Enrollment Form'!$AF602)=0,\"\",IF(LEN('Enrollment Form'!$AF602)<>10,\"N\",\"Y\")))","v":""},{"$f":"IF('Enrollment Form'!$O602<>\"Graded\",\"-\",IF(AND('Enrollment Form'!$O602=\"Graded\",'Enrollment Form'!$AR602<>\"\"),\"Y\",\"N\"))","v":"-"},{"$f":"IF($B595=\"N\",\"\",IF(OR('Enrollment Form'!$B602<>\"Subscriber\",'Enrollment Form'!$C602=\"ROC\"),\"-\",IF(AND('Enrollment Form'!$B602=\"Subscriber\",'Enrollment Form'!$C602=\"Enroll\",'Enrollment Form'!$AJ602<>\"\"),\"Y\",\"N\")))","v":""},{"$f":"IF($B595=\"N\",\"\",IF(OR('Enrollment Form'!$B602<>\"Subscriber\",'Enrollment Form'!$C602=\"ROC\"),\"-\",IF(AND('Enrollment Form'!$B602=\"Subscriber\",'Enrollment Form'!$C602=\"Enroll\",'Enrollment Form'!$AK602<>\"\"),\"Y\",\"N\")))","v":""},{"$f":"IF($B595=\"N\",\"\",IF(OR('Enrollment Form'!$B602<>\"Subscriber\",'Enrollment Form'!$C602=\"ROC\"),\"-\",IF(AND('Enrollment Form'!$B602=\"Subscriber\",'Enrollment Form'!$C602=\"Enroll\",'Enrollment Form'!$AL602<>\"\"),\"Y\",\"N\")))","v":""},{"$f":"IF($B595=\"N\",\"\",IF(OR('Enrollment Form'!$B602<>\"Subscriber\",'Enrollment Form'!$C602=\"ROC\"),\"-\",IF(AND('Enrollment Form'!$B602=\"Subscriber\",'Enrollment Form'!$C602=\"Enroll\",'Enrollment Form'!$AP602<>\"\"),\"Y\",\"N\")))","v":""},{"$f":"IF($B595=\"N\",\"\",IF(OR('Enrollment Form'!$B602<>\"Subscriber\",'Enrollment Form'!$C602=\"ROC\"),\"-\",IF(AND('Enrollment Form'!$B602=\"Subscriber\",'Enrollment Form'!$C602=\"Enroll\",'Enrollment Form'!$AQ602<>\"\"),\"Y\",\"N\")))","v":""},{"$f":"IF($B595=\"N\",\"\",IF(OR('Enrollment Form'!$B602<>\"Subscriber\",'Enrollment Form'!$C602=\"ROC\"),\"-\",IF(AND('Enrollment Form'!$B602=\"Subscriber\",'Enrollment Form'!$C602=\"Enroll\",'Enrollment Form'!$AS602<>\"\"),\"Y\",\"N\")))","v":""},{"$f":"IF($B595=\"N\",\"\",IF($Q595=\"-\",\"-\",IF(AND($Q595=\"Y\",'Enrollment Form'!$AS602=\"No\"),\"-\",IF(AND($Q595=\"Y\",'Enrollment Form'!$AS602=\"Yes\",'Enrollment Form'!$AT602<>\"\"),\"Y\",\"N\"))))","v":""},{"$f":"IF($B595=\"N\",\"\",IF(OR('Enrollment Form'!$B602<>\"Subscriber\",'Enrollment Form'!$C602=\"ROC\"),\"-\",IF(AND('Enrollment Form'!$B602=\"Subscriber\",'Enrollment Form'!$C602=\"Enroll\",'Enrollment Form'!$CV602<>\"\"),\"Y\",\"N\")))","v":""},{"$f":"IF($B595=\"N\",\"\",IF($S595=\"-\",\"-\",IF(AND($S595=\"Y\",'Enrollment Form'!$CV602=\"No\"),\"-\",IF(AND($S595=\"Y\",'Enrollment Form'!$CV602=\"Yes\",'Enrollment Form'!$CW602<>\"\"),\"Y\",\"N\"))))","v":""},{"$f":"IF(OR('Enrollment Form'!$AY602=\"Yes\",'Enrollment Form'!$AY602=\"\"),\"-\",IF(OR(AND('Enrollment Form'!$AY602=\"No\",ISERROR(FIND(\"HMO\",VLOOKUP('Enrollment Form'!G602,'Enrollment Form'!H$11:J$1000,3,FALSE),1))=FALSE,COUNTA('Enrollment Form'!$AZ602:$BC602)=4),AND('Enrollment Form'!$AY602=\"No\",ISERROR(FIND(\"HMO\",VLOOKUP('Enrollment Form'!G602,'Enrollment Form'!H$11:J$1000,3,FALSE),1))=FALSE,COUNTA('Enrollment Form'!$BT602:$BW602)=4)),\"Y\",\"N\"))","v":"-"},{"$f":"IF($B595=\"N\",\"\",IF('Enrollment Form'!$B602=\"Subscriber\",\"-\",IF(COUNTA('Enrollment Form'!$BL602,'Enrollment Form'!$BN602)=2,\"Y\",\"N\")))","v":""},{"$f":"IF($B595=\"N\",\"\",IF(OR('Enrollment Form'!$AX602=\"\",'Enrollment Form'!$AX602=\"No\"),\"-\",IF(AND('Enrollment Form'!$AX602=\"Yes\",COUNTA('Enrollment Form'!$CR602)=1),\"Y\",\"N\")))","v":""},{"$f":"IF(OR('Enrollment Form'!$CR602=\"\",'Enrollment Form'!$CR602=\"No\"),\"-\",IF(COUNTA('Enrollment Form'!$CT602:$CU602)=2,\"Y\",\"N\"))","v":"-"},{"$f":"IF($B595=\"N\",\"\",IF(COUNTIF('Enrollment Form'!$DG602:$DP602,\"Other\")=COUNTA('Enrollment Form'!$DK602,'Enrollment Form'!$DH602,'Enrollment Form'!$DN602,'Enrollment Form'!$DQ602),\"Y\",\"N\"))","v":""},{"$f":"IF($B595=\"N\",\"\",IF(OR('Enrollment Form'!B602<>\"Subscriber\",'Enrollment Form'!C602=\"ROC\",COUNTIF('Enrollment Form'!AV602:AW602,\"Yes\")>=1),\"-\",IF(AND('Enrollment Form'!C602=\"Enroll\",COUNTIF('Enrollment Form'!AV602:AW602,\"No\")=2,'Enrollment Form'!AX602=\"\"),\"N\",\"Y\")))","v":""},{"$f":"IF(OR(B595=\"N\",'Enrollment Form'!B602<>\"Subscriber\",'Enrollment Form'!C602=\"ROC\",'Enrollment Form'!O602<>\"Multiple of Salary\"),\"-\",IF(COUNTA('Enrollment Form'!T602:U602)<2,\"N\",\"Y\"))","v":"-"},{"$f":"IF(B595=\"N\",\"\",IF(OR('Enrollment Form'!C602=\"ROC\",'Enrollment Form'!B602<>\"Subscriber\",'Enrollment Form'!O602=\"Waive\",'Enrollment Form'!O602=\"\"),\"-\",IF('Enrollment Form'!P602=\"\",\"N\",\"Y\")))","v":""},{"$f":"IF($B595=\"N\",\"\",IF(AND('Enrollment Form'!$C602=\"ROC\",'Enrollment Form'!$DR602<>\"\"),\"Y\",IF(AND('Enrollment Form'!$C602=\"ROC\",'Enrollment Form'!$DR602=\"\"),\"N\",IF(AND('Enrollment Form'!$C602=\"Enroll\",'Enrollment Form'!$B602=\"Subscriber\",'Enrollment Form'!$CX602=\"No\",'Enrollment Form'!$DR602=\"\"),\"N\",IF(AND('Enrollment Form'!$C602=\"Enroll\",'Enrollment Form'!$B602=\"Subscriber\",'Enrollment Form'!$CX602=\"Yes\"),\"-\",\"Y\")))))","v":""},{"$f":"IF($B595=\"N\",\"\",IF(AND('Enrollment Form'!$C602=\"ROC\",'Enrollment Form'!$DS602<>\"\"),\"Y\",IF(AND('Enrollment Form'!$C602=\"ROC\",'Enrollment Form'!$DS602=\"\"),\"N\",IF(AND('Enrollment Form'!$C602=\"Enroll\",'Enrollment Form'!$B602=\"Subscriber\",'Enrollment Form'!$CX602=\"No\",'Enrollment Form'!$DS602=\"\"),\"N\",IF(AND('Enrollment Form'!$C602=\"Enroll\",'Enrollment Form'!$B602=\"Subscriber\",'Enrollment Form'!$CX602=\"Yes\"),\"-\",\"Y\")))))","v":""},{"$f":"IF('Enrollment Form'!AH602=\"\",\"\",IF(ISERROR(SEARCH(\".\",'Enrollment Form'!AH602,SEARCH(\"@\",'Enrollment Form'!AH602))),\"N\",\"Y\"))","v":""},{"$f":"IF(OR($B595=\"N\",'Enrollment Form'!$G602=\"\"),\"\",IF('Enrollment Form'!$B602<>\"Subscriber\",\"-\",IF(COUNTIF('Enrollment Form'!$AV602:$AW602,\"Yes\")=2,\"N\",\"Y\")))","v":""},{"$f":"IF(OR('Enrollment Form'!$CJ602=\"\",'Enrollment Form'!$CJ602=\"No\"),\"-\",IF(AND('Enrollment Form'!$CJ602=\"Yes\",'Enrollment Form'!$CK602=\"\"),\"N\",\"Y\"))","v":"-"},{"$f":"IF(OR('Enrollment Form'!$CL602=\"\",'Enrollment Form'!$CL602=\"No\"),\"-\",IF(AND('Enrollment Form'!$CL602=\"Yes\",'Enrollment Form'!$CM602=\"\"),\"N\",\"Y\"))","v":"-"},{"$f":"IF(OR('Enrollment Form'!$CN602=\"\",'Enrollment Form'!$CN602=\"No\"),\"-\",IF(AND('Enrollment Form'!$CN602=\"Yes\",'Enrollment Form'!$CO602=\"\"),\"N\",\"Y\"))","v":"-"},{"$f":"IF(OR('Enrollment Form'!$CN602=\"\",'Enrollment Form'!$CN602=\"No\"),\"-\",IF(AND('Enrollment Form'!$CN602=\"Yes\",'Enrollment Form'!$CP602=\"\"),\"N\",\"Y\"))","v":"-"},{"$f":"IF('Enrollment Form'!B602<>\"Subscriber\",\"-\",IF(AND('Enrollment Form'!B602=\"Subscriber\",'Enrollment Form'!C602=\"Enroll\",'Enrollment Form'!AA602=\"\"),\"N\",\"Y\"))","v":"-"},{"$f":"IF(OR('Enrollment Form'!B602=\"Subscriber\",'Enrollment Form'!B602=\"\"),\"-\",IF('Enrollment Form'!BP602=\"\",\"N\",\"Y\"))","v":"-"},{"$f":"IF('Enrollment Form'!B602<>\"Subscriber\",\"-\",IF(AND('Enrollment Form'!B602=\"Subscriber\",'Enrollment Form'!G602=\"\"),\"N\",\"Y\"))","v":"-"},{"$f":"IF('Enrollment Form'!A602=\"\",\"\",IF('Enrollment Form'!B602=\"Subscriber\",\"-\",IF(AND('Enrollment Form'!B602<>\"Subscriber\",'Enrollment Form'!G602='Enrollment Form'!H602),\"N\",\"Y\")))","v":""},0]
[603,{"$f":"IF('Enrollment Form'!$A603<>\"\",\"Y\",\"N\")","v":"N"},{"$f":"IF(AND('Enrollment Form'!$B603=\"\",'Enrollment Form'!$C603<>\"\"),\"N\",IF($B596=\"N\",\"\",\"Y\"))","v":""},{"$f":"IF(OR($B596=\"N\",'Enrollment Form'!G603=\"\"),\"\",IF('Enrollment Form'!$B603<>\"Subscriber\",\"\",IF('Enrollment Form'!$G603='Enrollment Form'!$H603,\"Y\",\"N\")))","v":""},{"$f":"IF($B596=\"N\",\"\",IF(AND(COUNTIFS('Enrollment Form'!$H$11:$H$1000,'Enrollment Form'!$H603,'Enrollment Form'!$B$11:$B$1000,'Enrollment Form'!$B603)>1,'Enrollment Form'!$H603<>\"\"),\"N\",\"Y\"))","v":""},{"$f":"IF($B596=\"N\",\"\",IF(LEN('Enrollment Form'!$Y603)=0,\"\",IF(LEN('Enrollment Form'!$Y603)<>5,\"N\",\"Y\")))","v":""},{"$f":"IF($B596=\"N\",\"\",IF(LEN('Enrollment Form'!$AD603=0),\"\",IF(LEN('Enrollment Form'!$AD603)<>5,\"N\",\"Y\")))","v":""},{"$f":"IF($B596=\"N\",\"\",IF(LEN('Enrollment Form'!$BS603=0),\"\",IF(LEN('Enrollment Form'!$BS603)<>5,\"N\",\"Y\")))","v":""},{"$f":"IF($B596=\"N\",\"\",IF(LEN('Enrollment Form'!$AE603)=0,\"\",IF(LEN('Enrollment Form'!$AE603)<>10,\"N\",\"Y\")))","v":""},{"$f":"IF($B596=\"N\",\"\",IF(LEN('Enrollment Form'!$AF603)=0,\"\",IF(LEN('Enrollment Form'!$AF603)<>10,\"N\",\"Y\")))","v":""},{"$f":"IF('Enrollment Form'!$O603<>\"Graded\",\"-\",IF(AND('Enrollment Form'!$O603=\"Graded\",'Enrollment Form'!$AR603<>\"\"),\"Y\",\"N\"))","v":"-"},{"$f":"IF($B596=\"N\",\"\",IF(OR('Enrollment Form'!$B603<>\"Subscriber\",'Enrollment Form'!$C603=\"ROC\"),\"-\",IF(AND('Enrollment Form'!$B603=\"Subscriber\",'Enrollment Form'!$C603=\"Enroll\",'Enrollment Form'!$AJ603<>\"\"),\"Y\",\"N\")))","v":""},{"$f":"IF($B596=\"N\",\"\",IF(OR('Enrollment Form'!$B603<>\"Subscriber\",'Enrollment Form'!$C603=\"ROC\"),\"-\",IF(AND('Enrollment Form'!$B603=\"Subscriber\",'Enrollment Form'!$C603=\"Enroll\",'Enrollment Form'!$AK603<>\"\"),\"Y\",\"N\")))","v":""},{"$f":"IF($B596=\"N\",\"\",IF(OR('Enrollment Form'!$B603<>\"Subscriber\",'Enrollment Form'!$C603=\"ROC\"),\"-\",IF(AND('Enrollment Form'!$B603=\"Subscriber\",'Enrollment Form'!$C603=\"Enroll\",'Enrollment Form'!$AL603<>\"\"),\"Y\",\"N\")))","v":""},{"$f":"IF($B596=\"N\",\"\",IF(OR('Enrollment Form'!$B603<>\"Subscriber\",'Enrollment Form'!$C603=\"ROC\"),\"-\",IF(AND('Enrollment Form'!$B603=\"Subscriber\",'Enrollment Form'!$C603=\"Enroll\",'Enrollment Form'!$AP603<>\"\"),\"Y\",\"N\")))","v":""},{"$f":"IF($B596=\"N\",\"\",IF(OR('Enrollment Form'!$B603<>\"Subscriber\",'Enrollment Form'!$C603=\"ROC\"),\"-\",IF(AND('Enrollment Form'!$B603=\"Subscriber\",'Enrollment Form'!$C603=\"Enroll\",'Enrollment Form'!$AQ603<>\"\"),\"Y\",\"N\")))","v":""},{"$f":"IF($B596=\"N\",\"\",IF(OR('Enrollment Form'!$B603<>\"Subscriber\",'Enrollment Form'!$C603=\"ROC\"),\"-\",IF(AND('Enrollment Form'!$B603=\"Subscriber\",'Enrollment Form'!$C603=\"Enroll\",'Enrollment Form'!$AS603<>\"\"),\"Y\",\"N\")))","v":""},{"$f":"IF($B596=\"N\",\"\",IF($Q596=\"-\",\"-\",IF(AND($Q596=\"Y\",'Enrollment Form'!$AS603=\"No\"),\"-\",IF(AND($Q596=\"Y\",'Enrollment Form'!$AS603=\"Yes\",'Enrollment Form'!$AT603<>\"\"),\"Y\",\"N\"))))","v":""},{"$f":"IF($B596=\"N\",\"\",IF(OR('Enrollment Form'!$B603<>\"Subscriber\",'Enrollment Form'!$C603=\"ROC\"),\"-\",IF(AND('Enrollment Form'!$B603=\"Subscriber\",'Enrollment Form'!$C603=\"Enroll\",'Enrollment Form'!$CV603<>\"\"),\"Y\",\"N\")))","v":""},{"$f":"IF($B596=\"N\",\"\",IF($S596=\"-\",\"-\",IF(AND($S596=\"Y\",'Enrollment Form'!$CV603=\"No\"),\"-\",IF(AND($S596=\"Y\",'Enrollment Form'!$CV603=\"Yes\",'Enrollment Form'!$CW603<>\"\"),\"Y\",\"N\"))))","v":""},{"$f":"IF(OR('Enrollment Form'!$AY603=\"Yes\",'Enrollment Form'!$AY603=\"\"),\"-\",IF(OR(AND('Enrollment Form'!$AY603=\"No\",ISERROR(FIND(\"HMO\",VLOOKUP('Enrollment Form'!G603,'Enrollment Form'!H$11:J$1000,3,FALSE),1))=FALSE,COUNTA('Enrollment Form'!$AZ603:$BC603)=4),AND('Enrollment Form'!$AY603=\"No\",ISERROR(FIND(\"HMO\",VLOOKUP('Enrollment Form'!G603,'Enrollment Form'!H$11:J$1000,3,FALSE),1))=FALSE,COUNTA('Enrollment Form'!$BT603:$BW603)=4)),\"Y\",\"N\"))","v":"-"},{"$f":"IF($B596=\"N\",\"\",IF('Enrollment Form'!$B603=\"Subscriber\",\"-\",IF(COUNTA('Enrollment Form'!$BL603,'Enrollment Form'!$BN603)=2,\"Y\",\"N\")))","v":""},{"$f":"IF($B596=\"N\",\"\",IF(OR('Enrollment Form'!$AX603=\"\",'Enrollment Form'!$AX603=\"No\"),\"-\",IF(AND('Enrollment Form'!$AX603=\"Yes\",COUNTA('Enrollment Form'!$CR603)=1),\"Y\",\"N\")))","v":""},{"$f":"IF(OR('Enrollment Form'!$CR603=\"\",'Enrollment Form'!$CR603=\"No\"),\"-\",IF(COUNTA('Enrollment Form'!$CT603:$CU603)=2,\"Y\",\"N\"))","v":"-"},{"$f":"IF($B596=\"N\",\"\",IF(COUNTIF('Enrollment Form'!$DG603:$DP603,\"Other\")=COUNTA('Enrollment Form'!$DK603,'Enrollment Form'!$DH603,'Enrollment Form'!$DN603,'Enrollment Form'!$DQ603),\"Y\",\"N\"))","v":""},{"$f":"IF($B596=\"N\",\"\",IF(OR('Enrollment Form'!B603<>\"Subscriber\",'Enrollment Form'!C603=\"ROC\",COUNTIF('Enrollment Form'!AV603:AW603,\"Yes\")>=1),\"-\",IF(AND('Enrollment Form'!C603=\"Enroll\",COUNTIF('Enrollment Form'!AV603:AW603,\"No\")=2,'Enrollment Form'!AX603=\"\"),\"N\",\"Y\")))","v":""},{"$f":"IF(OR(B596=\"N\",'Enrollment Form'!B603<>\"Subscriber\",'Enrollment Form'!C603=\"ROC\",'Enrollment Form'!O603<>\"Multiple of Salary\"),\"-\",IF(COUNTA('Enrollment Form'!T603:U603)<2,\"N\",\"Y\"))","v":"-"},{"$f":"IF(B596=\"N\",\"\",IF(OR('Enrollment Form'!C603=\"ROC\",'Enrollment Form'!B603<>\"Subscriber\",'Enrollment Form'!O603=\"Waive\",'Enrollment Form'!O603=\"\"),\"-\",IF('Enrollment Form'!P603=\"\",\"N\",\"Y\")))","v":""},{"$f":"IF($B596=\"N\",\"\",IF(AND('Enrollment Form'!$C603=\"ROC\",'Enrollment Form'!$DR603<>\"\"),\"Y\",IF(AND('Enrollment Form'!$C603=\"ROC\",'Enrollment Form'!$DR603=\"\"),\"N\",IF(AND('Enrollment Form'!$C603=\"Enroll\",'Enrollment Form'!$B603=\"Subscriber\",'Enrollment Form'!$CX603=\"No\",'Enrollment Form'!$DR603=\"\"),\"N\",IF(AND('Enrollment Form'!$C603=\"Enroll\",'Enrollment Form'!$B603=\"Subscriber\",'Enrollment Form'!$CX603=\"Yes\"),\"-\",\"Y\")))))","v":""},{"$f":"IF($B596=\"N\",\"\",IF(AND('Enrollment Form'!$C603=\"ROC\",'Enrollment Form'!$DS603<>\"\"),\"Y\",IF(AND('Enrollment Form'!$C603=\"ROC\",'Enrollment Form'!$DS603=\"\"),\"N\",IF(AND('Enrollment Form'!$C603=\"Enroll\",'Enrollment Form'!$B603=\"Subscriber\",'Enrollment Form'!$CX603=\"No\",'Enrollment Form'!$DS603=\"\"),\"N\",IF(AND('Enrollment Form'!$C603=\"Enroll\",'Enrollment Form'!$B603=\"Subscriber\",'Enrollment Form'!$CX603=\"Yes\"),\"-\",\"Y\")))))","v":""},{"$f":"IF('Enrollment Form'!AH603=\"\",\"\",IF(ISERROR(SEARCH(\".\",'Enrollment Form'!AH603,SEARCH(\"@\",'Enrollment Form'!AH603))),\"N\",\"Y\"))","v":""},{"$f":"IF(OR($B596=\"N\",'Enrollment Form'!$G603=\"\"),\"\",IF('Enrollment Form'!$B603<>\"Subscriber\",\"-\",IF(COUNTIF('Enrollment Form'!$AV603:$AW603,\"Yes\")=2,\"N\",\"Y\")))","v":""},{"$f":"IF(OR('Enrollment Form'!$CJ603=\"\",'Enrollment Form'!$CJ603=\"No\"),\"-\",IF(AND('Enrollment Form'!$CJ603=\"Yes\",'Enrollment Form'!$CK603=\"\"),\"N\",\"Y\"))","v":"-"},{"$f":"IF(OR('Enrollment Form'!$CL603=\"\",'Enrollment Form'!$CL603=\"No\"),\"-\",IF(AND('Enrollment Form'!$CL603=\"Yes\",'Enrollment Form'!$CM603=\"\"),\"N\",\"Y\"))","v":"-"},{"$f":"IF(OR('Enrollment Form'!$CN603=\"\",'Enrollment Form'!$CN603=\"No\"),\"-\",IF(AND('Enrollment Form'!$CN603=\"Yes\",'Enrollment Form'!$CO603=\"\"),\"N\",\"Y\"))","v":"-"},{"$f":"IF(OR('Enrollment Form'!$CN603=\"\",'Enrollment Form'!$CN603=\"No\"),\"-\",IF(AND('Enrollment Form'!$CN603=\"Yes\",'Enrollment Form'!$CP603=\"\"),\"N\",\"Y\"))","v":"-"},{"$f":"IF('Enrollment Form'!B603<>\"Subscriber\",\"-\",IF(AND('Enrollment Form'!B603=\"Subscriber\",'Enrollment Form'!C603=\"Enroll\",'Enrollment Form'!AA603=\"\"),\"N\",\"Y\"))","v":"-"},{"$f":"IF(OR('Enrollment Form'!B603=\"Subscriber\",'Enrollment Form'!B603=\"\"),\"-\",IF('Enrollment Form'!BP603=\"\",\"N\",\"Y\"))","v":"-"},{"$f":"IF('Enrollment Form'!B603<>\"Subscriber\",\"-\",IF(AND('Enrollment Form'!B603=\"Subscriber\",'Enrollment Form'!G603=\"\"),\"N\",\"Y\"))","v":"-"},{"$f":"IF('Enrollment Form'!A603=\"\",\"\",IF('Enrollment Form'!B603=\"Subscriber\",\"-\",IF(AND('Enrollment Form'!B603<>\"Subscriber\",'Enrollment Form'!G603='Enrollment Form'!H603),\"N\",\"Y\")))","v":""},0]
[604,{"$f":"IF('Enrollment Form'!$A604<>\"\",\"Y\",\"N\")","v":"N"},{"$f":"IF(AND('Enrollment Form'!$B604=\"\",'Enrollment Form'!$C604<>\"\"),\"N\",IF($B597=\"N\",\"\",\"Y\"))","v":""},{"$f":"IF(OR($B597=\"N\",'Enrollment Form'!G604=\"\"),\"\",IF('Enrollment Form'!$B604<>\"Subscriber\",\"\",IF('Enrollment Form'!$G604='Enrollment Form'!$H604,\"Y\",\"N\")))","v":""},{"$f":"IF($B597=\"N\",\"\",IF(AND(COUNTIFS('Enrollment Form'!$H$11:$H$1000,'Enrollment Form'!$H604,'Enrollment Form'!$B$11:$B$1000,'Enrollment Form'!$B604)>1,'Enrollment Form'!$H604<>\"\"),\"N\",\"Y\"))","v":""},{"$f":"IF($B597=\"N\",\"\",IF(LEN('Enrollment Form'!$Y604)=0,\"\",IF(LEN('Enrollment Form'!$Y604)<>5,\"N\",\"Y\")))","v":""},{"$f":"IF($B597=\"N\",\"\",IF(LEN('Enrollment Form'!$AD604=0),\"\",IF(LEN('Enrollment Form'!$AD604)<>5,\"N\",\"Y\")))","v":""},{"$f":"IF($B597=\"N\",\"\",IF(LEN('Enrollment Form'!$BS604=0),\"\",IF(LEN('Enrollment Form'!$BS604)<>5,\"N\",\"Y\")))","v":""},{"$f":"IF($B597=\"N\",\"\",IF(LEN('Enrollment Form'!$AE604)=0,\"\",IF(LEN('Enrollment Form'!$AE604)<>10,\"N\",\"Y\")))","v":""},{"$f":"IF($B597=\"N\",\"\",IF(LEN('Enrollment Form'!$AF604)=0,\"\",IF(LEN('Enrollment Form'!$AF604)<>10,\"N\",\"Y\")))","v":""},{"$f":"IF('Enrollment Form'!$O604<>\"Graded\",\"-\",IF(AND('Enrollment Form'!$O604=\"Graded\",'Enrollment Form'!$AR604<>\"\"),\"Y\",\"N\"))","v":"-"},{"$f":"IF($B597=\"N\",\"\",IF(OR('Enrollment Form'!$B604<>\"Subscriber\",'Enrollment Form'!$C604=\"ROC\"),\"-\",IF(AND('Enrollment Form'!$B604=\"Subscriber\",'Enrollment Form'!$C604=\"Enroll\",'Enrollment Form'!$AJ604<>\"\"),\"Y\",\"N\")))","v":""},{"$f":"IF($B597=\"N\",\"\",IF(OR('Enrollment Form'!$B604<>\"Subscriber\",'Enrollment Form'!$C604=\"ROC\"),\"-\",IF(AND('Enrollment Form'!$B604=\"Subscriber\",'Enrollment Form'!$C604=\"Enroll\",'Enrollment Form'!$AK604<>\"\"),\"Y\",\"N\")))","v":""},{"$f":"IF($B597=\"N\",\"\",IF(OR('Enrollment Form'!$B604<>\"Subscriber\",'Enrollment Form'!$C604=\"ROC\"),\"-\",IF(AND('Enrollment Form'!$B604=\"Subscriber\",'Enrollment Form'!$C604=\"Enroll\",'Enrollment Form'!$AL604<>\"\"),\"Y\",\"N\")))","v":""},{"$f":"IF($B597=\"N\",\"\",IF(OR('Enrollment Form'!$B604<>\"Subscriber\",'Enrollment Form'!$C604=\"ROC\"),\"-\",IF(AND('Enrollment Form'!$B604=\"Subscriber\",'Enrollment Form'!$C604=\"Enroll\",'Enrollment Form'!$AP604<>\"\"),\"Y\",\"N\")))","v":""},{"$f":"IF($B597=\"N\",\"\",IF(OR('Enrollment Form'!$B604<>\"Subscriber\",'Enrollment Form'!$C604=\"ROC\"),\"-\",IF(AND('Enrollment Form'!$B604=\"Subscriber\",'Enrollment Form'!$C604=\"Enroll\",'Enrollment Form'!$AQ604<>\"\"),\"Y\",\"N\")))","v":""},{"$f":"IF($B597=\"N\",\"\",IF(OR('Enrollment Form'!$B604<>\"Subscriber\",'Enrollment Form'!$C604=\"ROC\"),\"-\",IF(AND('Enrollment Form'!$B604=\"Subscriber\",'Enrollment Form'!$C604=\"Enroll\",'Enrollment Form'!$AS604<>\"\"),\"Y\",\"N\")))","v":""},{"$f":"IF($B597=\"N\",\"\",IF($Q597=\"-\",\"-\",IF(AND($Q597=\"Y\",'Enrollment Form'!$AS604=\"No\"),\"-\",IF(AND($Q597=\"Y\",'Enrollment Form'!$AS604=\"Yes\",'Enrollment Form'!$AT604<>\"\"),\"Y\",\"N\"))))","v":""},{"$f":"IF($B597=\"N\",\"\",IF(OR('Enrollment Form'!$B604<>\"Subscriber\",'Enrollment Form'!$C604=\"ROC\"),\"-\",IF(AND('Enrollment Form'!$B604=\"Subscriber\",'Enrollment Form'!$C604=\"Enroll\",'Enrollment Form'!$CV604<>\"\"),\"Y\",\"N\")))","v":""},{"$f":"IF($B597=\"N\",\"\",IF($S597=\"-\",\"-\",IF(AND($S597=\"Y\",'Enrollment Form'!$CV604=\"No\"),\"-\",IF(AND($S597=\"Y\",'Enrollment Form'!$CV604=\"Yes\",'Enrollment Form'!$CW604<>\"\"),\"Y\",\"N\"))))","v":""},{"$f":"IF(OR('Enrollment Form'!$AY604=\"Yes\",'Enrollment Form'!$AY604=\"\"),\"-\",IF(OR(AND('Enrollment Form'!$AY604=\"No\",ISERROR(FIND(\"HMO\",VLOOKUP('Enrollment Form'!G604,'Enrollment Form'!H$11:J$1000,3,FALSE),1))=FALSE,COUNTA('Enrollment Form'!$AZ604:$BC604)=4),AND('Enrollment Form'!$AY604=\"No\",ISERROR(FIND(\"HMO\",VLOOKUP('Enrollment Form'!G604,'Enrollment Form'!H$11:J$1000,3,FALSE),1))=FALSE,COUNTA('Enrollment Form'!$BT604:$BW604)=4)),\"Y\",\"N\"))","v":"-"},{"$f":"IF($B597=\"N\",\"\",IF('Enrollment Form'!$B604=\"Subscriber\",\"-\",IF(COUNTA('Enrollment Form'!$BL604,'Enrollment Form'!$BN604)=2,\"Y\",\"N\")))","v":""},{"$f":"IF($B597=\"N\",\"\",IF(OR('Enrollment Form'!$AX604=\"\",'Enrollment Form'!$AX604=\"No\"),\"-\",IF(AND('Enrollment Form'!$AX604=\"Yes\",COUNTA('Enrollment Form'!$CR604)=1),\"Y\",\"N\")))","v":""},{"$f":"IF(OR('Enrollment Form'!$CR604=\"\",'Enrollment Form'!$CR604=\"No\"),\"-\",IF(COUNTA('Enrollment Form'!$CT604:$CU604)=2,\"Y\",\"N\"))","v":"-"},{"$f":"IF($B597=\"N\",\"\",IF(COUNTIF('Enrollment Form'!$DG604:$DP604,\"Other\")=COUNTA('Enrollment Form'!$DK604,'Enrollment Form'!$DH604,'Enrollment Form'!$DN604,'Enrollment Form'!$DQ604),\"Y\",\"N\"))","v":""},{"$f":"IF($B597=\"N\",\"\",IF(OR('Enrollment Form'!B604<>\"Subscriber\",'Enrollment Form'!C604=\"ROC\",COUNTIF('Enrollment Form'!AV604:AW604,\"Yes\")>=1),\"-\",IF(AND('Enrollment Form'!C604=\"Enroll\",COUNTIF('Enrollment Form'!AV604:AW604,\"No\")=2,'Enrollment Form'!AX604=\"\"),\"N\",\"Y\")))","v":""},{"$f":"IF(OR(B597=\"N\",'Enrollment Form'!B604<>\"Subscriber\",'Enrollment Form'!C604=\"ROC\",'Enrollment Form'!O604<>\"Multiple of Salary\"),\"-\",IF(COUNTA('Enrollment Form'!T604:U604)<2,\"N\",\"Y\"))","v":"-"},{"$f":"IF(B597=\"N\",\"\",IF(OR('Enrollment Form'!C604=\"ROC\",'Enrollment Form'!B604<>\"Subscriber\",'Enrollment Form'!O604=\"Waive\",'Enrollment Form'!O604=\"\"),\"-\",IF('Enrollment Form'!P604=\"\",\"N\",\"Y\")))","v":""},{"$f":"IF($B597=\"N\",\"\",IF(AND('Enrollment Form'!$C604=\"ROC\",'Enrollment Form'!$DR604<>\"\"),\"Y\",IF(AND('Enrollment Form'!$C604=\"ROC\",'Enrollment Form'!$DR604=\"\"),\"N\",IF(AND('Enrollment Form'!$C604=\"Enroll\",'Enrollment Form'!$B604=\"Subscriber\",'Enrollment Form'!$CX604=\"No\",'Enrollment Form'!$DR604=\"\"),\"N\",IF(AND('Enrollment Form'!$C604=\"Enroll\",'Enrollment Form'!$B604=\"Subscriber\",'Enrollment Form'!$CX604=\"Yes\"),\"-\",\"Y\")))))","v":""},{"$f":"IF($B597=\"N\",\"\",IF(AND('Enrollment Form'!$C604=\"ROC\",'Enrollment Form'!$DS604<>\"\"),\"Y\",IF(AND('Enrollment Form'!$C604=\"ROC\",'Enrollment Form'!$DS604=\"\"),\"N\",IF(AND('Enrollment Form'!$C604=\"Enroll\",'Enrollment Form'!$B604=\"Subscriber\",'Enrollment Form'!$CX604=\"No\",'Enrollment Form'!$DS604=\"\"),\"N\",IF(AND('Enrollment Form'!$C604=\"Enroll\",'Enrollment Form'!$B604=\"Subscriber\",'Enrollment Form'!$CX604=\"Yes\"),\"-\",\"Y\")))))","v":""},{"$f":"IF('Enrollment Form'!AH604=\"\",\"\",IF(ISERROR(SEARCH(\".\",'Enrollment Form'!AH604,SEARCH(\"@\",'Enrollment Form'!AH604))),\"N\",\"Y\"))","v":""},{"$f":"IF(OR($B597=\"N\",'Enrollment Form'!$G604=\"\"),\"\",IF('Enrollment Form'!$B604<>\"Subscriber\",\"-\",IF(COUNTIF('Enrollment Form'!$AV604:$AW604,\"Yes\")=2,\"N\",\"Y\")))","v":""},{"$f":"IF(OR('Enrollment Form'!$CJ604=\"\",'Enrollment Form'!$CJ604=\"No\"),\"-\",IF(AND('Enrollment Form'!$CJ604=\"Yes\",'Enrollment Form'!$CK604=\"\"),\"N\",\"Y\"))","v":"-"},{"$f":"IF(OR('Enrollment Form'!$CL604=\"\",'Enrollment Form'!$CL604=\"No\"),\"-\",IF(AND('Enrollment Form'!$CL604=\"Yes\",'Enrollment Form'!$CM604=\"\"),\"N\",\"Y\"))","v":"-"},{"$f":"IF(OR('Enrollment Form'!$CN604=\"\",'Enrollment Form'!$CN604=\"No\"),\"-\",IF(AND('Enrollment Form'!$CN604=\"Yes\",'Enrollment Form'!$CO604=\"\"),\"N\",\"Y\"))","v":"-"},{"$f":"IF(OR('Enrollment Form'!$CN604=\"\",'Enrollment Form'!$CN604=\"No\"),\"-\",IF(AND('Enrollment Form'!$CN604=\"Yes\",'Enrollment Form'!$CP604=\"\"),\"N\",\"Y\"))","v":"-"},{"$f":"IF('Enrollment Form'!B604<>\"Subscriber\",\"-\",IF(AND('Enrollment Form'!B604=\"Subscriber\",'Enrollment Form'!C604=\"Enroll\",'Enrollment Form'!AA604=\"\"),\"N\",\"Y\"))","v":"-"},{"$f":"IF(OR('Enrollment Form'!B604=\"Subscriber\",'Enrollment Form'!B604=\"\"),\"-\",IF('Enrollment Form'!BP604=\"\",\"N\",\"Y\"))","v":"-"},{"$f":"IF('Enrollment Form'!B604<>\"Subscriber\",\"-\",IF(AND('Enrollment Form'!B604=\"Subscriber\",'Enrollment Form'!G604=\"\"),\"N\",\"Y\"))","v":"-"},{"$f":"IF('Enrollment Form'!A604=\"\",\"\",IF('Enrollment Form'!B604=\"Subscriber\",\"-\",IF(AND('Enrollment Form'!B604<>\"Subscriber\",'Enrollment Form'!G604='Enrollment Form'!H604),\"N\",\"Y\")))","v":""},0]
[605,{"$f":"IF('Enrollment Form'!$A605<>\"\",\"Y\",\"N\")","v":"N"},{"$f":"IF(AND('Enrollment Form'!$B605=\"\",'Enrollment Form'!$C605<>\"\"),\"N\",IF($B598=\"N\",\"\",\"Y\"))","v":""},{"$f":"IF(OR($B598=\"N\",'Enrollment Form'!G605=\"\"),\"\",IF('Enrollment Form'!$B605<>\"Subscriber\",\"\",IF('Enrollment Form'!$G605='Enrollment Form'!$H605,\"Y\",\"N\")))","v":""},{"$f":"IF($B598=\"N\",\"\",IF(AND(COUNTIFS('Enrollment Form'!$H$11:$H$1000,'Enrollment Form'!$H605,'Enrollment Form'!$B$11:$B$1000,'Enrollment Form'!$B605)>1,'Enrollment Form'!$H605<>\"\"),\"N\",\"Y\"))","v":""},{"$f":"IF($B598=\"N\",\"\",IF(LEN('Enrollment Form'!$Y605)=0,\"\",IF(LEN('Enrollment Form'!$Y605)<>5,\"N\",\"Y\")))","v":""},{"$f":"IF($B598=\"N\",\"\",IF(LEN('Enrollment Form'!$AD605=0),\"\",IF(LEN('Enrollment Form'!$AD605)<>5,\"N\",\"Y\")))","v":""},{"$f":"IF($B598=\"N\",\"\",IF(LEN('Enrollment Form'!$BS605=0),\"\",IF(LEN('Enrollment Form'!$BS605)<>5,\"N\",\"Y\")))","v":""},{"$f":"IF($B598=\"N\",\"\",IF(LEN('Enrollment Form'!$AE605)=0,\"\",IF(LEN('Enrollment Form'!$AE605)<>10,\"N\",\"Y\")))","v":""},{"$f":"IF($B598=\"N\",\"\",IF(LEN('Enrollment Form'!$AF605)=0,\"\",IF(LEN('Enrollment Form'!$AF605)<>10,\"N\",\"Y\")))","v":""},{"$f":"IF('Enrollment Form'!$O605<>\"Graded\",\"-\",IF(AND('Enrollment Form'!$O605=\"Graded\",'Enrollment Form'!$AR605<>\"\"),\"Y\",\"N\"))","v":"-"},{"$f":"IF($B598=\"N\",\"\",IF(OR('Enrollment Form'!$B605<>\"Subscriber\",'Enrollment Form'!$C605=\"ROC\"),\"-\",IF(AND('Enrollment Form'!$B605=\"Subscriber\",'Enrollment Form'!$C605=\"Enroll\",'Enrollment Form'!$AJ605<>\"\"),\"Y\",\"N\")))","v":""},{"$f":"IF($B598=\"N\",\"\",IF(OR('Enrollment Form'!$B605<>\"Subscriber\",'Enrollment Form'!$C605=\"ROC\"),\"-\",IF(AND('Enrollment Form'!$B605=\"Subscriber\",'Enrollment Form'!$C605=\"Enroll\",'Enrollment Form'!$AK605<>\"\"),\"Y\",\"N\")))","v":""},{"$f":"IF($B598=\"N\",\"\",IF(OR('Enrollment Form'!$B605<>\"Subscriber\",'Enrollment Form'!$C605=\"ROC\"),\"-\",IF(AND('Enrollment Form'!$B605=\"Subscriber\",'Enrollment Form'!$C605=\"Enroll\",'Enrollment Form'!$AL605<>\"\"),\"Y\",\"N\")))","v":""},{"$f":"IF($B598=\"N\",\"\",IF(OR('Enrollment Form'!$B605<>\"Subscriber\",'Enrollment Form'!$C605=\"ROC\"),\"-\",IF(AND('Enrollment Form'!$B605=\"Subscriber\",'Enrollment Form'!$C605=\"Enroll\",'Enrollment Form'!$AP605<>\"\"),\"Y\",\"N\")))","v":""},{"$f":"IF($B598=\"N\",\"\",IF(OR('Enrollment Form'!$B605<>\"Subscriber\",'Enrollment Form'!$C605=\"ROC\"),\"-\",IF(AND('Enrollment Form'!$B605=\"Subscriber\",'Enrollment Form'!$C605=\"Enroll\",'Enrollment Form'!$AQ605<>\"\"),\"Y\",\"N\")))","v":""},{"$f":"IF($B598=\"N\",\"\",IF(OR('Enrollment Form'!$B605<>\"Subscriber\",'Enrollment Form'!$C605=\"ROC\"),\"-\",IF(AND('Enrollment Form'!$B605=\"Subscriber\",'Enrollment Form'!$C605=\"Enroll\",'Enrollment Form'!$AS605<>\"\"),\"Y\",\"N\")))","v":""},{"$f":"IF($B598=\"N\",\"\",IF($Q598=\"-\",\"-\",IF(AND($Q598=\"Y\",'Enrollment Form'!$AS605=\"No\"),\"-\",IF(AND($Q598=\"Y\",'Enrollment Form'!$AS605=\"Yes\",'Enrollment Form'!$AT605<>\"\"),\"Y\",\"N\"))))","v":""},{"$f":"IF($B598=\"N\",\"\",IF(OR('Enrollment Form'!$B605<>\"Subscriber\",'Enrollment Form'!$C605=\"ROC\"),\"-\",IF(AND('Enrollment Form'!$B605=\"Subscriber\",'Enrollment Form'!$C605=\"Enroll\",'Enrollment Form'!$CV605<>\"\"),\"Y\",\"N\")))","v":""},{"$f":"IF($B598=\"N\",\"\",IF($S598=\"-\",\"-\",IF(AND($S598=\"Y\",'Enrollment Form'!$CV605=\"No\"),\"-\",IF(AND($S598=\"Y\",'Enrollment Form'!$CV605=\"Yes\",'Enrollment Form'!$CW605<>\"\"),\"Y\",\"N\"))))","v":""},{"$f":"IF(OR('Enrollment Form'!$AY605=\"Yes\",'Enrollment Form'!$AY605=\"\"),\"-\",IF(OR(AND('Enrollment Form'!$AY605=\"No\",ISERROR(FIND(\"HMO\",VLOOKUP('Enrollment Form'!G605,'Enrollment Form'!H$11:J$1000,3,FALSE),1))=FALSE,COUNTA('Enrollment Form'!$AZ605:$BC605)=4),AND('Enrollment Form'!$AY605=\"No\",ISERROR(FIND(\"HMO\",VLOOKUP('Enrollment Form'!G605,'Enrollment Form'!H$11:J$1000,3,FALSE),1))=FALSE,COUNTA('Enrollment Form'!$BT605:$BW605)=4)),\"Y\",\"N\"))","v":"-"},{"$f":"IF($B598=\"N\",\"\",IF('Enrollment Form'!$B605=\"Subscriber\",\"-\",IF(COUNTA('Enrollment Form'!$BL605,'Enrollment Form'!$BN605)=2,\"Y\",\"N\")))","v":""},{"$f":"IF($B598=\"N\",\"\",IF(OR('Enrollment Form'!$AX605=\"\",'Enrollment Form'!$AX605=\"No\"),\"-\",IF(AND('Enrollment Form'!$AX605=\"Yes\",COUNTA('Enrollment Form'!$CR605)=1),\"Y\",\"N\")))","v":""},{"$f":"IF(OR('Enrollment Form'!$CR605=\"\",'Enrollment Form'!$CR605=\"No\"),\"-\",IF(COUNTA('Enrollment Form'!$CT605:$CU605)=2,\"Y\",\"N\"))","v":"-"},{"$f":"IF($B598=\"N\",\"\",IF(COUNTIF('Enrollment Form'!$DG605:$DP605,\"Other\")=COUNTA('Enrollment Form'!$DK605,'Enrollment Form'!$DH605,'Enrollment Form'!$DN605,'Enrollment Form'!$DQ605),\"Y\",\"N\"))","v":""},{"$f":"IF($B598=\"N\",\"\",IF(OR('Enrollment Form'!B605<>\"Subscriber\",'Enrollment Form'!C605=\"ROC\",COUNTIF('Enrollment Form'!AV605:AW605,\"Yes\")>=1),\"-\",IF(AND('Enrollment Form'!C605=\"Enroll\",COUNTIF('Enrollment Form'!AV605:AW605,\"No\")=2,'Enrollment Form'!AX605=\"\"),\"N\",\"Y\")))","v":""},{"$f":"IF(OR(B598=\"N\",'Enrollment Form'!B605<>\"Subscriber\",'Enrollment Form'!C605=\"ROC\",'Enrollment Form'!O605<>\"Multiple of Salary\"),\"-\",IF(COUNTA('Enrollment Form'!T605:U605)<2,\"N\",\"Y\"))","v":"-"},{"$f":"IF(B598=\"N\",\"\",IF(OR('Enrollment Form'!C605=\"ROC\",'Enrollment Form'!B605<>\"Subscriber\",'Enrollment Form'!O605=\"Waive\",'Enrollment Form'!O605=\"\"),\"-\",IF('Enrollment Form'!P605=\"\",\"N\",\"Y\")))","v":""},{"$f":"IF($B598=\"N\",\"\",IF(AND('Enrollment Form'!$C605=\"ROC\",'Enrollment Form'!$DR605<>\"\"),\"Y\",IF(AND('Enrollment Form'!$C605=\"ROC\",'Enrollment Form'!$DR605=\"\"),\"N\",IF(AND('Enrollment Form'!$C605=\"Enroll\",'Enrollment Form'!$B605=\"Subscriber\",'Enrollment Form'!$CX605=\"No\",'Enrollment Form'!$DR605=\"\"),\"N\",IF(AND('Enrollment Form'!$C605=\"Enroll\",'Enrollment Form'!$B605=\"Subscriber\",'Enrollment Form'!$CX605=\"Yes\"),\"-\",\"Y\")))))","v":""},{"$f":"IF($B598=\"N\",\"\",IF(AND('Enrollment Form'!$C605=\"ROC\",'Enrollment Form'!$DS605<>\"\"),\"Y\",IF(AND('Enrollment Form'!$C605=\"ROC\",'Enrollment Form'!$DS605=\"\"),\"N\",IF(AND('Enrollment Form'!$C605=\"Enroll\",'Enrollment Form'!$B605=\"Subscriber\",'Enrollment Form'!$CX605=\"No\",'Enrollment Form'!$DS605=\"\"),\"N\",IF(AND('Enrollment Form'!$C605=\"Enroll\",'Enrollment Form'!$B605=\"Subscriber\",'Enrollment Form'!$CX605=\"Yes\"),\"-\",\"Y\")))))","v":""},{"$f":"IF('Enrollment Form'!AH605=\"\",\"\",IF(ISERROR(SEARCH(\".\",'Enrollment Form'!AH605,SEARCH(\"@\",'Enrollment Form'!AH605))),\"N\",\"Y\"))","v":""},{"$f":"IF(OR($B598=\"N\",'Enrollment Form'!$G605=\"\"),\"\",IF('Enrollment Form'!$B605<>\"Subscriber\",\"-\",IF(COUNTIF('Enrollment Form'!$AV605:$AW605,\"Yes\")=2,\"N\",\"Y\")))","v":""},{"$f":"IF(OR('Enrollment Form'!$CJ605=\"\",'Enrollment Form'!$CJ605=\"No\"),\"-\",IF(AND('Enrollment Form'!$CJ605=\"Yes\",'Enrollment Form'!$CK605=\"\"),\"N\",\"Y\"))","v":"-"},{"$f":"IF(OR('Enrollment Form'!$CL605=\"\",'Enrollment Form'!$CL605=\"No\"),\"-\",IF(AND('Enrollment Form'!$CL605=\"Yes\",'Enrollment Form'!$CM605=\"\"),\"N\",\"Y\"))","v":"-"},{"$f":"IF(OR('Enrollment Form'!$CN605=\"\",'Enrollment Form'!$CN605=\"No\"),\"-\",IF(AND('Enrollment Form'!$CN605=\"Yes\",'Enrollment Form'!$CO605=\"\"),\"N\",\"Y\"))","v":"-"},{"$f":"IF(OR('Enrollment Form'!$CN605=\"\",'Enrollment Form'!$CN605=\"No\"),\"-\",IF(AND('Enrollment Form'!$CN605=\"Yes\",'Enrollment Form'!$CP605=\"\"),\"N\",\"Y\"))","v":"-"},{"$f":"IF('Enrollment Form'!B605<>\"Subscriber\",\"-\",IF(AND('Enrollment Form'!B605=\"Subscriber\",'Enrollment Form'!C605=\"Enroll\",'Enrollment Form'!AA605=\"\"),\"N\",\"Y\"))","v":"-"},{"$f":"IF(OR('Enrollment Form'!B605=\"Subscriber\",'Enrollment Form'!B605=\"\"),\"-\",IF('Enrollment Form'!BP605=\"\",\"N\",\"Y\"))","v":"-"},{"$f":"IF('Enrollment Form'!B605<>\"Subscriber\",\"-\",IF(AND('Enrollment Form'!B605=\"Subscriber\",'Enrollment Form'!G605=\"\"),\"N\",\"Y\"))","v":"-"},{"$f":"IF('Enrollment Form'!A605=\"\",\"\",IF('Enrollment Form'!B605=\"Subscriber\",\"-\",IF(AND('Enrollment Form'!B605<>\"Subscriber\",'Enrollment Form'!G605='Enrollment Form'!H605),\"N\",\"Y\")))","v":""},0]
[606,{"$f":"IF('Enrollment Form'!$A606<>\"\",\"Y\",\"N\")","v":"N"},{"$f":"IF(AND('Enrollment Form'!$B606=\"\",'Enrollment Form'!$C606<>\"\"),\"N\",IF($B599=\"N\",\"\",\"Y\"))","v":""},{"$f":"IF(OR($B599=\"N\",'Enrollment Form'!G606=\"\"),\"\",IF('Enrollment Form'!$B606<>\"Subscriber\",\"\",IF('Enrollment Form'!$G606='Enrollment Form'!$H606,\"Y\",\"N\")))","v":""},{"$f":"IF($B599=\"N\",\"\",IF(AND(COUNTIFS('Enrollment Form'!$H$11:$H$1000,'Enrollment Form'!$H606,'Enrollment Form'!$B$11:$B$1000,'Enrollment Form'!$B606)>1,'Enrollment Form'!$H606<>\"\"),\"N\",\"Y\"))","v":""},{"$f":"IF($B599=\"N\",\"\",IF(LEN('Enrollment Form'!$Y606)=0,\"\",IF(LEN('Enrollment Form'!$Y606)<>5,\"N\",\"Y\")))","v":""},{"$f":"IF($B599=\"N\",\"\",IF(LEN('Enrollment Form'!$AD606=0),\"\",IF(LEN('Enrollment Form'!$AD606)<>5,\"N\",\"Y\")))","v":""},{"$f":"IF($B599=\"N\",\"\",IF(LEN('Enrollment Form'!$BS606=0),\"\",IF(LEN('Enrollment Form'!$BS606)<>5,\"N\",\"Y\")))","v":""},{"$f":"IF($B599=\"N\",\"\",IF(LEN('Enrollment Form'!$AE606)=0,\"\",IF(LEN('Enrollment Form'!$AE606)<>10,\"N\",\"Y\")))","v":""},{"$f":"IF($B599=\"N\",\"\",IF(LEN('Enrollment Form'!$AF606)=0,\"\",IF(LEN('Enrollment Form'!$AF606)<>10,\"N\",\"Y\")))","v":""},{"$f":"IF('Enrollment Form'!$O606<>\"Graded\",\"-\",IF(AND('Enrollment Form'!$O606=\"Graded\",'Enrollment Form'!$AR606<>\"\"),\"Y\",\"N\"))","v":"-"},{"$f":"IF($B599=\"N\",\"\",IF(OR('Enrollment Form'!$B606<>\"Subscriber\",'Enrollment Form'!$C606=\"ROC\"),\"-\",IF(AND('Enrollment Form'!$B606=\"Subscriber\",'Enrollment Form'!$C606=\"Enroll\",'Enrollment Form'!$AJ606<>\"\"),\"Y\",\"N\")))","v":""},{"$f":"IF($B599=\"N\",\"\",IF(OR('Enrollment Form'!$B606<>\"Subscriber\",'Enrollment Form'!$C606=\"ROC\"),\"-\",IF(AND('Enrollment Form'!$B606=\"Subscriber\",'Enrollment Form'!$C606=\"Enroll\",'Enrollment Form'!$AK606<>\"\"),\"Y\",\"N\")))","v":""},{"$f":"IF($B599=\"N\",\"\",IF(OR('Enrollment Form'!$B606<>\"Subscriber\",'Enrollment Form'!$C606=\"ROC\"),\"-\",IF(AND('Enrollment Form'!$B606=\"Subscriber\",'Enrollment Form'!$C606=\"Enroll\",'Enrollment Form'!$AL606<>\"\"),\"Y\",\"N\")))","v":""},{"$f":"IF($B599=\"N\",\"\",IF(OR('Enrollment Form'!$B606<>\"Subscriber\",'Enrollment Form'!$C606=\"ROC\"),\"-\",IF(AND('Enrollment Form'!$B606=\"Subscriber\",'Enrollment Form'!$C606=\"Enroll\",'Enrollment Form'!$AP606<>\"\"),\"Y\",\"N\")))","v":""},{"$f":"IF($B599=\"N\",\"\",IF(OR('Enrollment Form'!$B606<>\"Subscriber\",'Enrollment Form'!$C606=\"ROC\"),\"-\",IF(AND('Enrollment Form'!$B606=\"Subscriber\",'Enrollment Form'!$C606=\"Enroll\",'Enrollment Form'!$AQ606<>\"\"),\"Y\",\"N\")))","v":""},{"$f":"IF($B599=\"N\",\"\",IF(OR('Enrollment Form'!$B606<>\"Subscriber\",'Enrollment Form'!$C606=\"ROC\"),\"-\",IF(AND('Enrollment Form'!$B606=\"Subscriber\",'Enrollment Form'!$C606=\"Enroll\",'Enrollment Form'!$AS606<>\"\"),\"Y\",\"N\")))","v":""},{"$f":"IF($B599=\"N\",\"\",IF($Q599=\"-\",\"-\",IF(AND($Q599=\"Y\",'Enrollment Form'!$AS606=\"No\"),\"-\",IF(AND($Q599=\"Y\",'Enrollment Form'!$AS606=\"Yes\",'Enrollment Form'!$AT606<>\"\"),\"Y\",\"N\"))))","v":""},{"$f":"IF($B599=\"N\",\"\",IF(OR('Enrollment Form'!$B606<>\"Subscriber\",'Enrollment Form'!$C606=\"ROC\"),\"-\",IF(AND('Enrollment Form'!$B606=\"Subscriber\",'Enrollment Form'!$C606=\"Enroll\",'Enrollment Form'!$CV606<>\"\"),\"Y\",\"N\")))","v":""},{"$f":"IF($B599=\"N\",\"\",IF($S599=\"-\",\"-\",IF(AND($S599=\"Y\",'Enrollment Form'!$CV606=\"No\"),\"-\",IF(AND($S599=\"Y\",'Enrollment Form'!$CV606=\"Yes\",'Enrollment Form'!$CW606<>\"\"),\"Y\",\"N\"))))","v":""},{"$f":"IF(OR('Enrollment Form'!$AY606=\"Yes\",'Enrollment Form'!$AY606=\"\"),\"-\",IF(OR(AND('Enrollment Form'!$AY606=\"No\",ISERROR(FIND(\"HMO\",VLOOKUP('Enrollment Form'!G606,'Enrollment Form'!H$11:J$1000,3,FALSE),1))=FALSE,COUNTA('Enrollment Form'!$AZ606:$BC606)=4),AND('Enrollment Form'!$AY606=\"No\",ISERROR(FIND(\"HMO\",VLOOKUP('Enrollment Form'!G606,'Enrollment Form'!H$11:J$1000,3,FALSE),1))=FALSE,COUNTA('Enrollment Form'!$BT606:$BW606)=4)),\"Y\",\"N\"))","v":"-"},{"$f":"IF($B599=\"N\",\"\",IF('Enrollment Form'!$B606=\"Subscriber\",\"-\",IF(COUNTA('Enrollment Form'!$BL606,'Enrollment Form'!$BN606)=2,\"Y\",\"N\")))","v":""},{"$f":"IF($B599=\"N\",\"\",IF(OR('Enrollment Form'!$AX606=\"\",'Enrollment Form'!$AX606=\"No\"),\"-\",IF(AND('Enrollment Form'!$AX606=\"Yes\",COUNTA('Enrollment Form'!$CR606)=1),\"Y\",\"N\")))","v":""},{"$f":"IF(OR('Enrollment Form'!$CR606=\"\",'Enrollment Form'!$CR606=\"No\"),\"-\",IF(COUNTA('Enrollment Form'!$CT606:$CU606)=2,\"Y\",\"N\"))","v":"-"},{"$f":"IF($B599=\"N\",\"\",IF(COUNTIF('Enrollment Form'!$DG606:$DP606,\"Other\")=COUNTA('Enrollment Form'!$DK606,'Enrollment Form'!$DH606,'Enrollment Form'!$DN606,'Enrollment Form'!$DQ606),\"Y\",\"N\"))","v":""},{"$f":"IF($B599=\"N\",\"\",IF(OR('Enrollment Form'!B606<>\"Subscriber\",'Enrollment Form'!C606=\"ROC\",COUNTIF('Enrollment Form'!AV606:AW606,\"Yes\")>=1),\"-\",IF(AND('Enrollment Form'!C606=\"Enroll\",COUNTIF('Enrollment Form'!AV606:AW606,\"No\")=2,'Enrollment Form'!AX606=\"\"),\"N\",\"Y\")))","v":""},{"$f":"IF(OR(B599=\"N\",'Enrollment Form'!B606<>\"Subscriber\",'Enrollment Form'!C606=\"ROC\",'Enrollment Form'!O606<>\"Multiple of Salary\"),\"-\",IF(COUNTA('Enrollment Form'!T606:U606)<2,\"N\",\"Y\"))","v":"-"},{"$f":"IF(B599=\"N\",\"\",IF(OR('Enrollment Form'!C606=\"ROC\",'Enrollment Form'!B606<>\"Subscriber\",'Enrollment Form'!O606=\"Waive\",'Enrollment Form'!O606=\"\"),\"-\",IF('Enrollment Form'!P606=\"\",\"N\",\"Y\")))","v":""},{"$f":"IF($B599=\"N\",\"\",IF(AND('Enrollment Form'!$C606=\"ROC\",'Enrollment Form'!$DR606<>\"\"),\"Y\",IF(AND('Enrollment Form'!$C606=\"ROC\",'Enrollment Form'!$DR606=\"\"),\"N\",IF(AND('Enrollment Form'!$C606=\"Enroll\",'Enrollment Form'!$B606=\"Subscriber\",'Enrollment Form'!$CX606=\"No\",'Enrollment Form'!$DR606=\"\"),\"N\",IF(AND('Enrollment Form'!$C606=\"Enroll\",'Enrollment Form'!$B606=\"Subscriber\",'Enrollment Form'!$CX606=\"Yes\"),\"-\",\"Y\")))))","v":""},{"$f":"IF($B599=\"N\",\"\",IF(AND('Enrollment Form'!$C606=\"ROC\",'Enrollment Form'!$DS606<>\"\"),\"Y\",IF(AND('Enrollment Form'!$C606=\"ROC\",'Enrollment Form'!$DS606=\"\"),\"N\",IF(AND('Enrollment Form'!$C606=\"Enroll\",'Enrollment Form'!$B606=\"Subscriber\",'Enrollment Form'!$CX606=\"No\",'Enrollment Form'!$DS606=\"\"),\"N\",IF(AND('Enrollment Form'!$C606=\"Enroll\",'Enrollment Form'!$B606=\"Subscriber\",'Enrollment Form'!$CX606=\"Yes\"),\"-\",\"Y\")))))","v":""},{"$f":"IF('Enrollment Form'!AH606=\"\",\"\",IF(ISERROR(SEARCH(\".\",'Enrollment Form'!AH606,SEARCH(\"@\",'Enrollment Form'!AH606))),\"N\",\"Y\"))","v":""},{"$f":"IF(OR($B599=\"N\",'Enrollment Form'!$G606=\"\"),\"\",IF('Enrollment Form'!$B606<>\"Subscriber\",\"-\",IF(COUNTIF('Enrollment Form'!$AV606:$AW606,\"Yes\")=2,\"N\",\"Y\")))","v":""},{"$f":"IF(OR('Enrollment Form'!$CJ606=\"\",'Enrollment Form'!$CJ606=\"No\"),\"-\",IF(AND('Enrollment Form'!$CJ606=\"Yes\",'Enrollment Form'!$CK606=\"\"),\"N\",\"Y\"))","v":"-"},{"$f":"IF(OR('Enrollment Form'!$CL606=\"\",'Enrollment Form'!$CL606=\"No\"),\"-\",IF(AND('Enrollment Form'!$CL606=\"Yes\",'Enrollment Form'!$CM606=\"\"),\"N\",\"Y\"))","v":"-"},{"$f":"IF(OR('Enrollment Form'!$CN606=\"\",'Enrollment Form'!$CN606=\"No\"),\"-\",IF(AND('Enrollment Form'!$CN606=\"Yes\",'Enrollment Form'!$CO606=\"\"),\"N\",\"Y\"))","v":"-"},{"$f":"IF(OR('Enrollment Form'!$CN606=\"\",'Enrollment Form'!$CN606=\"No\"),\"-\",IF(AND('Enrollment Form'!$CN606=\"Yes\",'Enrollment Form'!$CP606=\"\"),\"N\",\"Y\"))","v":"-"},{"$f":"IF('Enrollment Form'!B606<>\"Subscriber\",\"-\",IF(AND('Enrollment Form'!B606=\"Subscriber\",'Enrollment Form'!C606=\"Enroll\",'Enrollment Form'!AA606=\"\"),\"N\",\"Y\"))","v":"-"},{"$f":"IF(OR('Enrollment Form'!B606=\"Subscriber\",'Enrollment Form'!B606=\"\"),\"-\",IF('Enrollment Form'!BP606=\"\",\"N\",\"Y\"))","v":"-"},{"$f":"IF('Enrollment Form'!B606<>\"Subscriber\",\"-\",IF(AND('Enrollment Form'!B606=\"Subscriber\",'Enrollment Form'!G606=\"\"),\"N\",\"Y\"))","v":"-"},{"$f":"IF('Enrollment Form'!A606=\"\",\"\",IF('Enrollment Form'!B606=\"Subscriber\",\"-\",IF(AND('Enrollment Form'!B606<>\"Subscriber\",'Enrollment Form'!G606='Enrollment Form'!H606),\"N\",\"Y\")))","v":""},0]
[607,{"$f":"IF('Enrollment Form'!$A607<>\"\",\"Y\",\"N\")","v":"N"},{"$f":"IF(AND('Enrollment Form'!$B607=\"\",'Enrollment Form'!$C607<>\"\"),\"N\",IF($B600=\"N\",\"\",\"Y\"))","v":""},{"$f":"IF(OR($B600=\"N\",'Enrollment Form'!G607=\"\"),\"\",IF('Enrollment Form'!$B607<>\"Subscriber\",\"\",IF('Enrollment Form'!$G607='Enrollment Form'!$H607,\"Y\",\"N\")))","v":""},{"$f":"IF($B600=\"N\",\"\",IF(AND(COUNTIFS('Enrollment Form'!$H$11:$H$1000,'Enrollment Form'!$H607,'Enrollment Form'!$B$11:$B$1000,'Enrollment Form'!$B607)>1,'Enrollment Form'!$H607<>\"\"),\"N\",\"Y\"))","v":""},{"$f":"IF($B600=\"N\",\"\",IF(LEN('Enrollment Form'!$Y607)=0,\"\",IF(LEN('Enrollment Form'!$Y607)<>5,\"N\",\"Y\")))","v":""},{"$f":"IF($B600=\"N\",\"\",IF(LEN('Enrollment Form'!$AD607=0),\"\",IF(LEN('Enrollment Form'!$AD607)<>5,\"N\",\"Y\")))","v":""},{"$f":"IF($B600=\"N\",\"\",IF(LEN('Enrollment Form'!$BS607=0),\"\",IF(LEN('Enrollment Form'!$BS607)<>5,\"N\",\"Y\")))","v":""},{"$f":"IF($B600=\"N\",\"\",IF(LEN('Enrollment Form'!$AE607)=0,\"\",IF(LEN('Enrollment Form'!$AE607)<>10,\"N\",\"Y\")))","v":""},{"$f":"IF($B600=\"N\",\"\",IF(LEN('Enrollment Form'!$AF607)=0,\"\",IF(LEN('Enrollment Form'!$AF607)<>10,\"N\",\"Y\")))","v":""},{"$f":"IF('Enrollment Form'!$O607<>\"Graded\",\"-\",IF(AND('Enrollment Form'!$O607=\"Graded\",'Enrollment Form'!$AR607<>\"\"),\"Y\",\"N\"))","v":"-"},{"$f":"IF($B600=\"N\",\"\",IF(OR('Enrollment Form'!$B607<>\"Subscriber\",'Enrollment Form'!$C607=\"ROC\"),\"-\",IF(AND('Enrollment Form'!$B607=\"Subscriber\",'Enrollment Form'!$C607=\"Enroll\",'Enrollment Form'!$AJ607<>\"\"),\"Y\",\"N\")))","v":""},{"$f":"IF($B600=\"N\",\"\",IF(OR('Enrollment Form'!$B607<>\"Subscriber\",'Enrollment Form'!$C607=\"ROC\"),\"-\",IF(AND('Enrollment Form'!$B607=\"Subscriber\",'Enrollment Form'!$C607=\"Enroll\",'Enrollment Form'!$AK607<>\"\"),\"Y\",\"N\")))","v":""},{"$f":"IF($B600=\"N\",\"\",IF(OR('Enrollment Form'!$B607<>\"Subscriber\",'Enrollment Form'!$C607=\"ROC\"),\"-\",IF(AND('Enrollment Form'!$B607=\"Subscriber\",'Enrollment Form'!$C607=\"Enroll\",'Enrollment Form'!$AL607<>\"\"),\"Y\",\"N\")))","v":""},{"$f":"IF($B600=\"N\",\"\",IF(OR('Enrollment Form'!$B607<>\"Subscriber\",'Enrollment Form'!$C607=\"ROC\"),\"-\",IF(AND('Enrollment Form'!$B607=\"Subscriber\",'Enrollment Form'!$C607=\"Enroll\",'Enrollment Form'!$AP607<>\"\"),\"Y\",\"N\")))","v":""},{"$f":"IF($B600=\"N\",\"\",IF(OR('Enrollment Form'!$B607<>\"Subscriber\",'Enrollment Form'!$C607=\"ROC\"),\"-\",IF(AND('Enrollment Form'!$B607=\"Subscriber\",'Enrollment Form'!$C607=\"Enroll\",'Enrollment Form'!$AQ607<>\"\"),\"Y\",\"N\")))","v":""},{"$f":"IF($B600=\"N\",\"\",IF(OR('Enrollment Form'!$B607<>\"Subscriber\",'Enrollment Form'!$C607=\"ROC\"),\"-\",IF(AND('Enrollment Form'!$B607=\"Subscriber\",'Enrollment Form'!$C607=\"Enroll\",'Enrollment Form'!$AS607<>\"\"),\"Y\",\"N\")))","v":""},{"$f":"IF($B600=\"N\",\"\",IF($Q600=\"-\",\"-\",IF(AND($Q600=\"Y\",'Enrollment Form'!$AS607=\"No\"),\"-\",IF(AND($Q600=\"Y\",'Enrollment Form'!$AS607=\"Yes\",'Enrollment Form'!$AT607<>\"\"),\"Y\",\"N\"))))","v":""},{"$f":"IF($B600=\"N\",\"\",IF(OR('Enrollment Form'!$B607<>\"Subscriber\",'Enrollment Form'!$C607=\"ROC\"),\"-\",IF(AND('Enrollment Form'!$B607=\"Subscriber\",'Enrollment Form'!$C607=\"Enroll\",'Enrollment Form'!$CV607<>\"\"),\"Y\",\"N\")))","v":""},{"$f":"IF($B600=\"N\",\"\",IF($S600=\"-\",\"-\",IF(AND($S600=\"Y\",'Enrollment Form'!$CV607=\"No\"),\"-\",IF(AND($S600=\"Y\",'Enrollment Form'!$CV607=\"Yes\",'Enrollment Form'!$CW607<>\"\"),\"Y\",\"N\"))))","v":""},{"$f":"IF(OR('Enrollment Form'!$AY607=\"Yes\",'Enrollment Form'!$AY607=\"\"),\"-\",IF(OR(AND('Enrollment Form'!$AY607=\"No\",ISERROR(FIND(\"HMO\",VLOOKUP('Enrollment Form'!G607,'Enrollment Form'!H$11:J$1000,3,FALSE),1))=FALSE,COUNTA('Enrollment Form'!$AZ607:$BC607)=4),AND('Enrollment Form'!$AY607=\"No\",ISERROR(FIND(\"HMO\",VLOOKUP('Enrollment Form'!G607,'Enrollment Form'!H$11:J$1000,3,FALSE),1))=FALSE,COUNTA('Enrollment Form'!$BT607:$BW607)=4)),\"Y\",\"N\"))","v":"-"},{"$f":"IF($B600=\"N\",\"\",IF('Enrollment Form'!$B607=\"Subscriber\",\"-\",IF(COUNTA('Enrollment Form'!$BL607,'Enrollment Form'!$BN607)=2,\"Y\",\"N\")))","v":""},{"$f":"IF($B600=\"N\",\"\",IF(OR('Enrollment Form'!$AX607=\"\",'Enrollment Form'!$AX607=\"No\"),\"-\",IF(AND('Enrollment Form'!$AX607=\"Yes\",COUNTA('Enrollment Form'!$CR607)=1),\"Y\",\"N\")))","v":""},{"$f":"IF(OR('Enrollment Form'!$CR607=\"\",'Enrollment Form'!$CR607=\"No\"),\"-\",IF(COUNTA('Enrollment Form'!$CT607:$CU607)=2,\"Y\",\"N\"))","v":"-"},{"$f":"IF($B600=\"N\",\"\",IF(COUNTIF('Enrollment Form'!$DG607:$DP607,\"Other\")=COUNTA('Enrollment Form'!$DK607,'Enrollment Form'!$DH607,'Enrollment Form'!$DN607,'Enrollment Form'!$DQ607),\"Y\",\"N\"))","v":""},{"$f":"IF($B600=\"N\",\"\",IF(OR('Enrollment Form'!B607<>\"Subscriber\",'Enrollment Form'!C607=\"ROC\",COUNTIF('Enrollment Form'!AV607:AW607,\"Yes\")>=1),\"-\",IF(AND('Enrollment Form'!C607=\"Enroll\",COUNTIF('Enrollment Form'!AV607:AW607,\"No\")=2,'Enrollment Form'!AX607=\"\"),\"N\",\"Y\")))","v":""},{"$f":"IF(OR(B600=\"N\",'Enrollment Form'!B607<>\"Subscriber\",'Enrollment Form'!C607=\"ROC\",'Enrollment Form'!O607<>\"Multiple of Salary\"),\"-\",IF(COUNTA('Enrollment Form'!T607:U607)<2,\"N\",\"Y\"))","v":"-"},{"$f":"IF(B600=\"N\",\"\",IF(OR('Enrollment Form'!C607=\"ROC\",'Enrollment Form'!B607<>\"Subscriber\",'Enrollment Form'!O607=\"Waive\",'Enrollment Form'!O607=\"\"),\"-\",IF('Enrollment Form'!P607=\"\",\"N\",\"Y\")))","v":""},{"$f":"IF($B600=\"N\",\"\",IF(AND('Enrollment Form'!$C607=\"ROC\",'Enrollment Form'!$DR607<>\"\"),\"Y\",IF(AND('Enrollment Form'!$C607=\"ROC\",'Enrollment Form'!$DR607=\"\"),\"N\",IF(AND('Enrollment Form'!$C607=\"Enroll\",'Enrollment Form'!$B607=\"Subscriber\",'Enrollment Form'!$CX607=\"No\",'Enrollment Form'!$DR607=\"\"),\"N\",IF(AND('Enrollment Form'!$C607=\"Enroll\",'Enrollment Form'!$B607=\"Subscriber\",'Enrollment Form'!$CX607=\"Yes\"),\"-\",\"Y\")))))","v":""},{"$f":"IF($B600=\"N\",\"\",IF(AND('Enrollment Form'!$C607=\"ROC\",'Enrollment Form'!$DS607<>\"\"),\"Y\",IF(AND('Enrollment Form'!$C607=\"ROC\",'Enrollment Form'!$DS607=\"\"),\"N\",IF(AND('Enrollment Form'!$C607=\"Enroll\",'Enrollment Form'!$B607=\"Subscriber\",'Enrollment Form'!$CX607=\"No\",'Enrollment Form'!$DS607=\"\"),\"N\",IF(AND('Enrollment Form'!$C607=\"Enroll\",'Enrollment Form'!$B607=\"Subscriber\",'Enrollment Form'!$CX607=\"Yes\"),\"-\",\"Y\")))))","v":""},{"$f":"IF('Enrollment Form'!AH607=\"\",\"\",IF(ISERROR(SEARCH(\".\",'Enrollment Form'!AH607,SEARCH(\"@\",'Enrollment Form'!AH607))),\"N\",\"Y\"))","v":""},{"$f":"IF(OR($B600=\"N\",'Enrollment Form'!$G607=\"\"),\"\",IF('Enrollment Form'!$B607<>\"Subscriber\",\"-\",IF(COUNTIF('Enrollment Form'!$AV607:$AW607,\"Yes\")=2,\"N\",\"Y\")))","v":""},{"$f":"IF(OR('Enrollment Form'!$CJ607=\"\",'Enrollment Form'!$CJ607=\"No\"),\"-\",IF(AND('Enrollment Form'!$CJ607=\"Yes\",'Enrollment Form'!$CK607=\"\"),\"N\",\"Y\"))","v":"-"},{"$f":"IF(OR('Enrollment Form'!$CL607=\"\",'Enrollment Form'!$CL607=\"No\"),\"-\",IF(AND('Enrollment Form'!$CL607=\"Yes\",'Enrollment Form'!$CM607=\"\"),\"N\",\"Y\"))","v":"-"},{"$f":"IF(OR('Enrollment Form'!$CN607=\"\",'Enrollment Form'!$CN607=\"No\"),\"-\",IF(AND('Enrollment Form'!$CN607=\"Yes\",'Enrollment Form'!$CO607=\"\"),\"N\",\"Y\"))","v":"-"},{"$f":"IF(OR('Enrollment Form'!$CN607=\"\",'Enrollment Form'!$CN607=\"No\"),\"-\",IF(AND('Enrollment Form'!$CN607=\"Yes\",'Enrollment Form'!$CP607=\"\"),\"N\",\"Y\"))","v":"-"},{"$f":"IF('Enrollment Form'!B607<>\"Subscriber\",\"-\",IF(AND('Enrollment Form'!B607=\"Subscriber\",'Enrollment Form'!C607=\"Enroll\",'Enrollment Form'!AA607=\"\"),\"N\",\"Y\"))","v":"-"},{"$f":"IF(OR('Enrollment Form'!B607=\"Subscriber\",'Enrollment Form'!B607=\"\"),\"-\",IF('Enrollment Form'!BP607=\"\",\"N\",\"Y\"))","v":"-"},{"$f":"IF('Enrollment Form'!B607<>\"Subscriber\",\"-\",IF(AND('Enrollment Form'!B607=\"Subscriber\",'Enrollment Form'!G607=\"\"),\"N\",\"Y\"))","v":"-"},{"$f":"IF('Enrollment Form'!A607=\"\",\"\",IF('Enrollment Form'!B607=\"Subscriber\",\"-\",IF(AND('Enrollment Form'!B607<>\"Subscriber\",'Enrollment Form'!G607='Enrollment Form'!H607),\"N\",\"Y\")))","v":""},0]
[608,{"$f":"IF('Enrollment Form'!$A608<>\"\",\"Y\",\"N\")","v":"N"},{"$f":"IF(AND('Enrollment Form'!$B608=\"\",'Enrollment Form'!$C608<>\"\"),\"N\",IF($B601=\"N\",\"\",\"Y\"))","v":""},{"$f":"IF(OR($B601=\"N\",'Enrollment Form'!G608=\"\"),\"\",IF('Enrollment Form'!$B608<>\"Subscriber\",\"\",IF('Enrollment Form'!$G608='Enrollment Form'!$H608,\"Y\",\"N\")))","v":""},{"$f":"IF($B601=\"N\",\"\",IF(AND(COUNTIFS('Enrollment Form'!$H$11:$H$1000,'Enrollment Form'!$H608,'Enrollment Form'!$B$11:$B$1000,'Enrollment Form'!$B608)>1,'Enrollment Form'!$H608<>\"\"),\"N\",\"Y\"))","v":""},{"$f":"IF($B601=\"N\",\"\",IF(LEN('Enrollment Form'!$Y608)=0,\"\",IF(LEN('Enrollment Form'!$Y608)<>5,\"N\",\"Y\")))","v":""},{"$f":"IF($B601=\"N\",\"\",IF(LEN('Enrollment Form'!$AD608=0),\"\",IF(LEN('Enrollment Form'!$AD608)<>5,\"N\",\"Y\")))","v":""},{"$f":"IF($B601=\"N\",\"\",IF(LEN('Enrollment Form'!$BS608=0),\"\",IF(LEN('Enrollment Form'!$BS608)<>5,\"N\",\"Y\")))","v":""},{"$f":"IF($B601=\"N\",\"\",IF(LEN('Enrollment Form'!$AE608)=0,\"\",IF(LEN('Enrollment Form'!$AE608)<>10,\"N\",\"Y\")))","v":""},{"$f":"IF($B601=\"N\",\"\",IF(LEN('Enrollment Form'!$AF608)=0,\"\",IF(LEN('Enrollment Form'!$AF608)<>10,\"N\",\"Y\")))","v":""},{"$f":"IF('Enrollment Form'!$O608<>\"Graded\",\"-\",IF(AND('Enrollment Form'!$O608=\"Graded\",'Enrollment Form'!$AR608<>\"\"),\"Y\",\"N\"))","v":"-"},{"$f":"IF($B601=\"N\",\"\",IF(OR('Enrollment Form'!$B608<>\"Subscriber\",'Enrollment Form'!$C608=\"ROC\"),\"-\",IF(AND('Enrollment Form'!$B608=\"Subscriber\",'Enrollment Form'!$C608=\"Enroll\",'Enrollment Form'!$AJ608<>\"\"),\"Y\",\"N\")))","v":""},{"$f":"IF($B601=\"N\",\"\",IF(OR('Enrollment Form'!$B608<>\"Subscriber\",'Enrollment Form'!$C608=\"ROC\"),\"-\",IF(AND('Enrollment Form'!$B608=\"Subscriber\",'Enrollment Form'!$C608=\"Enroll\",'Enrollment Form'!$AK608<>\"\"),\"Y\",\"N\")))","v":""},{"$f":"IF($B601=\"N\",\"\",IF(OR('Enrollment Form'!$B608<>\"Subscriber\",'Enrollment Form'!$C608=\"ROC\"),\"-\",IF(AND('Enrollment Form'!$B608=\"Subscriber\",'Enrollment Form'!$C608=\"Enroll\",'Enrollment Form'!$AL608<>\"\"),\"Y\",\"N\")))","v":""},{"$f":"IF($B601=\"N\",\"\",IF(OR('Enrollment Form'!$B608<>\"Subscriber\",'Enrollment Form'!$C608=\"ROC\"),\"-\",IF(AND('Enrollment Form'!$B608=\"Subscriber\",'Enrollment Form'!$C608=\"Enroll\",'Enrollment Form'!$AP608<>\"\"),\"Y\",\"N\")))","v":""},{"$f":"IF($B601=\"N\",\"\",IF(OR('Enrollment Form'!$B608<>\"Subscriber\",'Enrollment Form'!$C608=\"ROC\"),\"-\",IF(AND('Enrollment Form'!$B608=\"Subscriber\",'Enrollment Form'!$C608=\"Enroll\",'Enrollment Form'!$AQ608<>\"\"),\"Y\",\"N\")))","v":""},{"$f":"IF($B601=\"N\",\"\",IF(OR('Enrollment Form'!$B608<>\"Subscriber\",'Enrollment Form'!$C608=\"ROC\"),\"-\",IF(AND('Enrollment Form'!$B608=\"Subscriber\",'Enrollment Form'!$C608=\"Enroll\",'Enrollment Form'!$AS608<>\"\"),\"Y\",\"N\")))","v":""},{"$f":"IF($B601=\"N\",\"\",IF($Q601=\"-\",\"-\",IF(AND($Q601=\"Y\",'Enrollment Form'!$AS608=\"No\"),\"-\",IF(AND($Q601=\"Y\",'Enrollment Form'!$AS608=\"Yes\",'Enrollment Form'!$AT608<>\"\"),\"Y\",\"N\"))))","v":""},{"$f":"IF($B601=\"N\",\"\",IF(OR('Enrollment Form'!$B608<>\"Subscriber\",'Enrollment Form'!$C608=\"ROC\"),\"-\",IF(AND('Enrollment Form'!$B608=\"Subscriber\",'Enrollment Form'!$C608=\"Enroll\",'Enrollment Form'!$CV608<>\"\"),\"Y\",\"N\")))","v":""},{"$f":"IF($B601=\"N\",\"\",IF($S601=\"-\",\"-\",IF(AND($S601=\"Y\",'Enrollment Form'!$CV608=\"No\"),\"-\",IF(AND($S601=\"Y\",'Enrollment Form'!$CV608=\"Yes\",'Enrollment Form'!$CW608<>\"\"),\"Y\",\"N\"))))","v":""},{"$f":"IF(OR('Enrollment Form'!$AY608=\"Yes\",'Enrollment Form'!$AY608=\"\"),\"-\",IF(OR(AND('Enrollment Form'!$AY608=\"No\",ISERROR(FIND(\"HMO\",VLOOKUP('Enrollment Form'!G608,'Enrollment Form'!H$11:J$1000,3,FALSE),1))=FALSE,COUNTA('Enrollment Form'!$AZ608:$BC608)=4),AND('Enrollment Form'!$AY608=\"No\",ISERROR(FIND(\"HMO\",VLOOKUP('Enrollment Form'!G608,'Enrollment Form'!H$11:J$1000,3,FALSE),1))=FALSE,COUNTA('Enrollment Form'!$BT608:$BW608)=4)),\"Y\",\"N\"))","v":"-"},{"$f":"IF($B601=\"N\",\"\",IF('Enrollment Form'!$B608=\"Subscriber\",\"-\",IF(COUNTA('Enrollment Form'!$BL608,'Enrollment Form'!$BN608)=2,\"Y\",\"N\")))","v":""},{"$f":"IF($B601=\"N\",\"\",IF(OR('Enrollment Form'!$AX608=\"\",'Enrollment Form'!$AX608=\"No\"),\"-\",IF(AND('Enrollment Form'!$AX608=\"Yes\",COUNTA('Enrollment Form'!$CR608)=1),\"Y\",\"N\")))","v":""},{"$f":"IF(OR('Enrollment Form'!$CR608=\"\",'Enrollment Form'!$CR608=\"No\"),\"-\",IF(COUNTA('Enrollment Form'!$CT608:$CU608)=2,\"Y\",\"N\"))","v":"-"},{"$f":"IF($B601=\"N\",\"\",IF(COUNTIF('Enrollment Form'!$DG608:$DP608,\"Other\")=COUNTA('Enrollment Form'!$DK608,'Enrollment Form'!$DH608,'Enrollment Form'!$DN608,'Enrollment Form'!$DQ608),\"Y\",\"N\"))","v":""},{"$f":"IF($B601=\"N\",\"\",IF(OR('Enrollment Form'!B608<>\"Subscriber\",'Enrollment Form'!C608=\"ROC\",COUNTIF('Enrollment Form'!AV608:AW608,\"Yes\")>=1),\"-\",IF(AND('Enrollment Form'!C608=\"Enroll\",COUNTIF('Enrollment Form'!AV608:AW608,\"No\")=2,'Enrollment Form'!AX608=\"\"),\"N\",\"Y\")))","v":""},{"$f":"IF(OR(B601=\"N\",'Enrollment Form'!B608<>\"Subscriber\",'Enrollment Form'!C608=\"ROC\",'Enrollment Form'!O608<>\"Multiple of Salary\"),\"-\",IF(COUNTA('Enrollment Form'!T608:U608)<2,\"N\",\"Y\"))","v":"-"},{"$f":"IF(B601=\"N\",\"\",IF(OR('Enrollment Form'!C608=\"ROC\",'Enrollment Form'!B608<>\"Subscriber\",'Enrollment Form'!O608=\"Waive\",'Enrollment Form'!O608=\"\"),\"-\",IF('Enrollment Form'!P608=\"\",\"N\",\"Y\")))","v":""},{"$f":"IF($B601=\"N\",\"\",IF(AND('Enrollment Form'!$C608=\"ROC\",'Enrollment Form'!$DR608<>\"\"),\"Y\",IF(AND('Enrollment Form'!$C608=\"ROC\",'Enrollment Form'!$DR608=\"\"),\"N\",IF(AND('Enrollment Form'!$C608=\"Enroll\",'Enrollment Form'!$B608=\"Subscriber\",'Enrollment Form'!$CX608=\"No\",'Enrollment Form'!$DR608=\"\"),\"N\",IF(AND('Enrollment Form'!$C608=\"Enroll\",'Enrollment Form'!$B608=\"Subscriber\",'Enrollment Form'!$CX608=\"Yes\"),\"-\",\"Y\")))))","v":""},{"$f":"IF($B601=\"N\",\"\",IF(AND('Enrollment Form'!$C608=\"ROC\",'Enrollment Form'!$DS608<>\"\"),\"Y\",IF(AND('Enrollment Form'!$C608=\"ROC\",'Enrollment Form'!$DS608=\"\"),\"N\",IF(AND('Enrollment Form'!$C608=\"Enroll\",'Enrollment Form'!$B608=\"Subscriber\",'Enrollment Form'!$CX608=\"No\",'Enrollment Form'!$DS608=\"\"),\"N\",IF(AND('Enrollment Form'!$C608=\"Enroll\",'Enrollment Form'!$B608=\"Subscriber\",'Enrollment Form'!$CX608=\"Yes\"),\"-\",\"Y\")))))","v":""},{"$f":"IF('Enrollment Form'!AH608=\"\",\"\",IF(ISERROR(SEARCH(\".\",'Enrollment Form'!AH608,SEARCH(\"@\",'Enrollment Form'!AH608))),\"N\",\"Y\"))","v":""},{"$f":"IF(OR($B601=\"N\",'Enrollment Form'!$G608=\"\"),\"\",IF('Enrollment Form'!$B608<>\"Subscriber\",\"-\",IF(COUNTIF('Enrollment Form'!$AV608:$AW608,\"Yes\")=2,\"N\",\"Y\")))","v":""},{"$f":"IF(OR('Enrollment Form'!$CJ608=\"\",'Enrollment Form'!$CJ608=\"No\"),\"-\",IF(AND('Enrollment Form'!$CJ608=\"Yes\",'Enrollment Form'!$CK608=\"\"),\"N\",\"Y\"))","v":"-"},{"$f":"IF(OR('Enrollment Form'!$CL608=\"\",'Enrollment Form'!$CL608=\"No\"),\"-\",IF(AND('Enrollment Form'!$CL608=\"Yes\",'Enrollment Form'!$CM608=\"\"),\"N\",\"Y\"))","v":"-"},{"$f":"IF(OR('Enrollment Form'!$CN608=\"\",'Enrollment Form'!$CN608=\"No\"),\"-\",IF(AND('Enrollment Form'!$CN608=\"Yes\",'Enrollment Form'!$CO608=\"\"),\"N\",\"Y\"))","v":"-"},{"$f":"IF(OR('Enrollment Form'!$CN608=\"\",'Enrollment Form'!$CN608=\"No\"),\"-\",IF(AND('Enrollment Form'!$CN608=\"Yes\",'Enrollment Form'!$CP608=\"\"),\"N\",\"Y\"))","v":"-"},{"$f":"IF('Enrollment Form'!B608<>\"Subscriber\",\"-\",IF(AND('Enrollment Form'!B608=\"Subscriber\",'Enrollment Form'!C608=\"Enroll\",'Enrollment Form'!AA608=\"\"),\"N\",\"Y\"))","v":"-"},{"$f":"IF(OR('Enrollment Form'!B608=\"Subscriber\",'Enrollment Form'!B608=\"\"),\"-\",IF('Enrollment Form'!BP608=\"\",\"N\",\"Y\"))","v":"-"},{"$f":"IF('Enrollment Form'!B608<>\"Subscriber\",\"-\",IF(AND('Enrollment Form'!B608=\"Subscriber\",'Enrollment Form'!G608=\"\"),\"N\",\"Y\"))","v":"-"},{"$f":"IF('Enrollment Form'!A608=\"\",\"\",IF('Enrollment Form'!B608=\"Subscriber\",\"-\",IF(AND('Enrollment Form'!B608<>\"Subscriber\",'Enrollment Form'!G608='Enrollment Form'!H608),\"N\",\"Y\")))","v":""},0]
[609,{"$f":"IF('Enrollment Form'!$A609<>\"\",\"Y\",\"N\")","v":"N"},{"$f":"IF(AND('Enrollment Form'!$B609=\"\",'Enrollment Form'!$C609<>\"\"),\"N\",IF($B602=\"N\",\"\",\"Y\"))","v":""},{"$f":"IF(OR($B602=\"N\",'Enrollment Form'!G609=\"\"),\"\",IF('Enrollment Form'!$B609<>\"Subscriber\",\"\",IF('Enrollment Form'!$G609='Enrollment Form'!$H609,\"Y\",\"N\")))","v":""},{"$f":"IF($B602=\"N\",\"\",IF(AND(COUNTIFS('Enrollment Form'!$H$11:$H$1000,'Enrollment Form'!$H609,'Enrollment Form'!$B$11:$B$1000,'Enrollment Form'!$B609)>1,'Enrollment Form'!$H609<>\"\"),\"N\",\"Y\"))","v":""},{"$f":"IF($B602=\"N\",\"\",IF(LEN('Enrollment Form'!$Y609)=0,\"\",IF(LEN('Enrollment Form'!$Y609)<>5,\"N\",\"Y\")))","v":""},{"$f":"IF($B602=\"N\",\"\",IF(LEN('Enrollment Form'!$AD609=0),\"\",IF(LEN('Enrollment Form'!$AD609)<>5,\"N\",\"Y\")))","v":""},{"$f":"IF($B602=\"N\",\"\",IF(LEN('Enrollment Form'!$BS609=0),\"\",IF(LEN('Enrollment Form'!$BS609)<>5,\"N\",\"Y\")))","v":""},{"$f":"IF($B602=\"N\",\"\",IF(LEN('Enrollment Form'!$AE609)=0,\"\",IF(LEN('Enrollment Form'!$AE609)<>10,\"N\",\"Y\")))","v":""},{"$f":"IF($B602=\"N\",\"\",IF(LEN('Enrollment Form'!$AF609)=0,\"\",IF(LEN('Enrollment Form'!$AF609)<>10,\"N\",\"Y\")))","v":""},{"$f":"IF('Enrollment Form'!$O609<>\"Graded\",\"-\",IF(AND('Enrollment Form'!$O609=\"Graded\",'Enrollment Form'!$AR609<>\"\"),\"Y\",\"N\"))","v":"-"},{"$f":"IF($B602=\"N\",\"\",IF(OR('Enrollment Form'!$B609<>\"Subscriber\",'Enrollment Form'!$C609=\"ROC\"),\"-\",IF(AND('Enrollment Form'!$B609=\"Subscriber\",'Enrollment Form'!$C609=\"Enroll\",'Enrollment Form'!$AJ609<>\"\"),\"Y\",\"N\")))","v":""},{"$f":"IF($B602=\"N\",\"\",IF(OR('Enrollment Form'!$B609<>\"Subscriber\",'Enrollment Form'!$C609=\"ROC\"),\"-\",IF(AND('Enrollment Form'!$B609=\"Subscriber\",'Enrollment Form'!$C609=\"Enroll\",'Enrollment Form'!$AK609<>\"\"),\"Y\",\"N\")))","v":""},{"$f":"IF($B602=\"N\",\"\",IF(OR('Enrollment Form'!$B609<>\"Subscriber\",'Enrollment Form'!$C609=\"ROC\"),\"-\",IF(AND('Enrollment Form'!$B609=\"Subscriber\",'Enrollment Form'!$C609=\"Enroll\",'Enrollment Form'!$AL609<>\"\"),\"Y\",\"N\")))","v":""},{"$f":"IF($B602=\"N\",\"\",IF(OR('Enrollment Form'!$B609<>\"Subscriber\",'Enrollment Form'!$C609=\"ROC\"),\"-\",IF(AND('Enrollment Form'!$B609=\"Subscriber\",'Enrollment Form'!$C609=\"Enroll\",'Enrollment Form'!$AP609<>\"\"),\"Y\",\"N\")))","v":""},{"$f":"IF($B602=\"N\",\"\",IF(OR('Enrollment Form'!$B609<>\"Subscriber\",'Enrollment Form'!$C609=\"ROC\"),\"-\",IF(AND('Enrollment Form'!$B609=\"Subscriber\",'Enrollment Form'!$C609=\"Enroll\",'Enrollment Form'!$AQ609<>\"\"),\"Y\",\"N\")))","v":""},{"$f":"IF($B602=\"N\",\"\",IF(OR('Enrollment Form'!$B609<>\"Subscriber\",'Enrollment Form'!$C609=\"ROC\"),\"-\",IF(AND('Enrollment Form'!$B609=\"Subscriber\",'Enrollment Form'!$C609=\"Enroll\",'Enrollment Form'!$AS609<>\"\"),\"Y\",\"N\")))","v":""},{"$f":"IF($B602=\"N\",\"\",IF($Q602=\"-\",\"-\",IF(AND($Q602=\"Y\",'Enrollment Form'!$AS609=\"No\"),\"-\",IF(AND($Q602=\"Y\",'Enrollment Form'!$AS609=\"Yes\",'Enrollment Form'!$AT609<>\"\"),\"Y\",\"N\"))))","v":""},{"$f":"IF($B602=\"N\",\"\",IF(OR('Enrollment Form'!$B609<>\"Subscriber\",'Enrollment Form'!$C609=\"ROC\"),\"-\",IF(AND('Enrollment Form'!$B609=\"Subscriber\",'Enrollment Form'!$C609=\"Enroll\",'Enrollment Form'!$CV609<>\"\"),\"Y\",\"N\")))","v":""},{"$f":"IF($B602=\"N\",\"\",IF($S602=\"-\",\"-\",IF(AND($S602=\"Y\",'Enrollment Form'!$CV609=\"No\"),\"-\",IF(AND($S602=\"Y\",'Enrollment Form'!$CV609=\"Yes\",'Enrollment Form'!$CW609<>\"\"),\"Y\",\"N\"))))","v":""},{"$f":"IF(OR('Enrollment Form'!$AY609=\"Yes\",'Enrollment Form'!$AY609=\"\"),\"-\",IF(OR(AND('Enrollment Form'!$AY609=\"No\",ISERROR(FIND(\"HMO\",VLOOKUP('Enrollment Form'!G609,'Enrollment Form'!H$11:J$1000,3,FALSE),1))=FALSE,COUNTA('Enrollment Form'!$AZ609:$BC609)=4),AND('Enrollment Form'!$AY609=\"No\",ISERROR(FIND(\"HMO\",VLOOKUP('Enrollment Form'!G609,'Enrollment Form'!H$11:J$1000,3,FALSE),1))=FALSE,COUNTA('Enrollment Form'!$BT609:$BW609)=4)),\"Y\",\"N\"))","v":"-"},{"$f":"IF($B602=\"N\",\"\",IF('Enrollment Form'!$B609=\"Subscriber\",\"-\",IF(COUNTA('Enrollment Form'!$BL609,'Enrollment Form'!$BN609)=2,\"Y\",\"N\")))","v":""},{"$f":"IF($B602=\"N\",\"\",IF(OR('Enrollment Form'!$AX609=\"\",'Enrollment Form'!$AX609=\"No\"),\"-\",IF(AND('Enrollment Form'!$AX609=\"Yes\",COUNTA('Enrollment Form'!$CR609)=1),\"Y\",\"N\")))","v":""},{"$f":"IF(OR('Enrollment Form'!$CR609=\"\",'Enrollment Form'!$CR609=\"No\"),\"-\",IF(COUNTA('Enrollment Form'!$CT609:$CU609)=2,\"Y\",\"N\"))","v":"-"},{"$f":"IF($B602=\"N\",\"\",IF(COUNTIF('Enrollment Form'!$DG609:$DP609,\"Other\")=COUNTA('Enrollment Form'!$DK609,'Enrollment Form'!$DH609,'Enrollment Form'!$DN609,'Enrollment Form'!$DQ609),\"Y\",\"N\"))","v":""},{"$f":"IF($B602=\"N\",\"\",IF(OR('Enrollment Form'!B609<>\"Subscriber\",'Enrollment Form'!C609=\"ROC\",COUNTIF('Enrollment Form'!AV609:AW609,\"Yes\")>=1),\"-\",IF(AND('Enrollment Form'!C609=\"Enroll\",COUNTIF('Enrollment Form'!AV609:AW609,\"No\")=2,'Enrollment Form'!AX609=\"\"),\"N\",\"Y\")))","v":""},{"$f":"IF(OR(B602=\"N\",'Enrollment Form'!B609<>\"Subscriber\",'Enrollment Form'!C609=\"ROC\",'Enrollment Form'!O609<>\"Multiple of Salary\"),\"-\",IF(COUNTA('Enrollment Form'!T609:U609)<2,\"N\",\"Y\"))","v":"-"},{"$f":"IF(B602=\"N\",\"\",IF(OR('Enrollment Form'!C609=\"ROC\",'Enrollment Form'!B609<>\"Subscriber\",'Enrollment Form'!O609=\"Waive\",'Enrollment Form'!O609=\"\"),\"-\",IF('Enrollment Form'!P609=\"\",\"N\",\"Y\")))","v":""},{"$f":"IF($B602=\"N\",\"\",IF(AND('Enrollment Form'!$C609=\"ROC\",'Enrollment Form'!$DR609<>\"\"),\"Y\",IF(AND('Enrollment Form'!$C609=\"ROC\",'Enrollment Form'!$DR609=\"\"),\"N\",IF(AND('Enrollment Form'!$C609=\"Enroll\",'Enrollment Form'!$B609=\"Subscriber\",'Enrollment Form'!$CX609=\"No\",'Enrollment Form'!$DR609=\"\"),\"N\",IF(AND('Enrollment Form'!$C609=\"Enroll\",'Enrollment Form'!$B609=\"Subscriber\",'Enrollment Form'!$CX609=\"Yes\"),\"-\",\"Y\")))))","v":""},{"$f":"IF($B602=\"N\",\"\",IF(AND('Enrollment Form'!$C609=\"ROC\",'Enrollment Form'!$DS609<>\"\"),\"Y\",IF(AND('Enrollment Form'!$C609=\"ROC\",'Enrollment Form'!$DS609=\"\"),\"N\",IF(AND('Enrollment Form'!$C609=\"Enroll\",'Enrollment Form'!$B609=\"Subscriber\",'Enrollment Form'!$CX609=\"No\",'Enrollment Form'!$DS609=\"\"),\"N\",IF(AND('Enrollment Form'!$C609=\"Enroll\",'Enrollment Form'!$B609=\"Subscriber\",'Enrollment Form'!$CX609=\"Yes\"),\"-\",\"Y\")))))","v":""},{"$f":"IF('Enrollment Form'!AH609=\"\",\"\",IF(ISERROR(SEARCH(\".\",'Enrollment Form'!AH609,SEARCH(\"@\",'Enrollment Form'!AH609))),\"N\",\"Y\"))","v":""},{"$f":"IF(OR($B602=\"N\",'Enrollment Form'!$G609=\"\"),\"\",IF('Enrollment Form'!$B609<>\"Subscriber\",\"-\",IF(COUNTIF('Enrollment Form'!$AV609:$AW609,\"Yes\")=2,\"N\",\"Y\")))","v":""},{"$f":"IF(OR('Enrollment Form'!$CJ609=\"\",'Enrollment Form'!$CJ609=\"No\"),\"-\",IF(AND('Enrollment Form'!$CJ609=\"Yes\",'Enrollment Form'!$CK609=\"\"),\"N\",\"Y\"))","v":"-"},{"$f":"IF(OR('Enrollment Form'!$CL609=\"\",'Enrollment Form'!$CL609=\"No\"),\"-\",IF(AND('Enrollment Form'!$CL609=\"Yes\",'Enrollment Form'!$CM609=\"\"),\"N\",\"Y\"))","v":"-"},{"$f":"IF(OR('Enrollment Form'!$CN609=\"\",'Enrollment Form'!$CN609=\"No\"),\"-\",IF(AND('Enrollment Form'!$CN609=\"Yes\",'Enrollment Form'!$CO609=\"\"),\"N\",\"Y\"))","v":"-"},{"$f":"IF(OR('Enrollment Form'!$CN609=\"\",'Enrollment Form'!$CN609=\"No\"),\"-\",IF(AND('Enrollment Form'!$CN609=\"Yes\",'Enrollment Form'!$CP609=\"\"),\"N\",\"Y\"))","v":"-"},{"$f":"IF('Enrollment Form'!B609<>\"Subscriber\",\"-\",IF(AND('Enrollment Form'!B609=\"Subscriber\",'Enrollment Form'!C609=\"Enroll\",'Enrollment Form'!AA609=\"\"),\"N\",\"Y\"))","v":"-"},{"$f":"IF(OR('Enrollment Form'!B609=\"Subscriber\",'Enrollment Form'!B609=\"\"),\"-\",IF('Enrollment Form'!BP609=\"\",\"N\",\"Y\"))","v":"-"},{"$f":"IF('Enrollment Form'!B609<>\"Subscriber\",\"-\",IF(AND('Enrollment Form'!B609=\"Subscriber\",'Enrollment Form'!G609=\"\"),\"N\",\"Y\"))","v":"-"},{"$f":"IF('Enrollment Form'!A609=\"\",\"\",IF('Enrollment Form'!B609=\"Subscriber\",\"-\",IF(AND('Enrollment Form'!B609<>\"Subscriber\",'Enrollment Form'!G609='Enrollment Form'!H609),\"N\",\"Y\")))","v":""},0]
[610,{"$f":"IF('Enrollment Form'!$A610<>\"\",\"Y\",\"N\")","v":"N"},{"$f":"IF(AND('Enrollment Form'!$B610=\"\",'Enrollment Form'!$C610<>\"\"),\"N\",IF($B603=\"N\",\"\",\"Y\"))","v":""},{"$f":"IF(OR($B603=\"N\",'Enrollment Form'!G610=\"\"),\"\",IF('Enrollment Form'!$B610<>\"Subscriber\",\"\",IF('Enrollment Form'!$G610='Enrollment Form'!$H610,\"Y\",\"N\")))","v":""},{"$f":"IF($B603=\"N\",\"\",IF(AND(COUNTIFS('Enrollment Form'!$H$11:$H$1000,'Enrollment Form'!$H610,'Enrollment Form'!$B$11:$B$1000,'Enrollment Form'!$B610)>1,'Enrollment Form'!$H610<>\"\"),\"N\",\"Y\"))","v":""},{"$f":"IF($B603=\"N\",\"\",IF(LEN('Enrollment Form'!$Y610)=0,\"\",IF(LEN('Enrollment Form'!$Y610)<>5,\"N\",\"Y\")))","v":""},{"$f":"IF($B603=\"N\",\"\",IF(LEN('Enrollment Form'!$AD610=0),\"\",IF(LEN('Enrollment Form'!$AD610)<>5,\"N\",\"Y\")))","v":""},{"$f":"IF($B603=\"N\",\"\",IF(LEN('Enrollment Form'!$BS610=0),\"\",IF(LEN('Enrollment Form'!$BS610)<>5,\"N\",\"Y\")))","v":""},{"$f":"IF($B603=\"N\",\"\",IF(LEN('Enrollment Form'!$AE610)=0,\"\",IF(LEN('Enrollment Form'!$AE610)<>10,\"N\",\"Y\")))","v":""},{"$f":"IF($B603=\"N\",\"\",IF(LEN('Enrollment Form'!$AF610)=0,\"\",IF(LEN('Enrollment Form'!$AF610)<>10,\"N\",\"Y\")))","v":""},{"$f":"IF('Enrollment Form'!$O610<>\"Graded\",\"-\",IF(AND('Enrollment Form'!$O610=\"Graded\",'Enrollment Form'!$AR610<>\"\"),\"Y\",\"N\"))","v":"-"},{"$f":"IF($B603=\"N\",\"\",IF(OR('Enrollment Form'!$B610<>\"Subscriber\",'Enrollment Form'!$C610=\"ROC\"),\"-\",IF(AND('Enrollment Form'!$B610=\"Subscriber\",'Enrollment Form'!$C610=\"Enroll\",'Enrollment Form'!$AJ610<>\"\"),\"Y\",\"N\")))","v":""},{"$f":"IF($B603=\"N\",\"\",IF(OR('Enrollment Form'!$B610<>\"Subscriber\",'Enrollment Form'!$C610=\"ROC\"),\"-\",IF(AND('Enrollment Form'!$B610=\"Subscriber\",'Enrollment Form'!$C610=\"Enroll\",'Enrollment Form'!$AK610<>\"\"),\"Y\",\"N\")))","v":""},{"$f":"IF($B603=\"N\",\"\",IF(OR('Enrollment Form'!$B610<>\"Subscriber\",'Enrollment Form'!$C610=\"ROC\"),\"-\",IF(AND('Enrollment Form'!$B610=\"Subscriber\",'Enrollment Form'!$C610=\"Enroll\",'Enrollment Form'!$AL610<>\"\"),\"Y\",\"N\")))","v":""},{"$f":"IF($B603=\"N\",\"\",IF(OR('Enrollment Form'!$B610<>\"Subscriber\",'Enrollment Form'!$C610=\"ROC\"),\"-\",IF(AND('Enrollment Form'!$B610=\"Subscriber\",'Enrollment Form'!$C610=\"Enroll\",'Enrollment Form'!$AP610<>\"\"),\"Y\",\"N\")))","v":""},{"$f":"IF($B603=\"N\",\"\",IF(OR('Enrollment Form'!$B610<>\"Subscriber\",'Enrollment Form'!$C610=\"ROC\"),\"-\",IF(AND('Enrollment Form'!$B610=\"Subscriber\",'Enrollment Form'!$C610=\"Enroll\",'Enrollment Form'!$AQ610<>\"\"),\"Y\",\"N\")))","v":""},{"$f":"IF($B603=\"N\",\"\",IF(OR('Enrollment Form'!$B610<>\"Subscriber\",'Enrollment Form'!$C610=\"ROC\"),\"-\",IF(AND('Enrollment Form'!$B610=\"Subscriber\",'Enrollment Form'!$C610=\"Enroll\",'Enrollment Form'!$AS610<>\"\"),\"Y\",\"N\")))","v":""},{"$f":"IF($B603=\"N\",\"\",IF($Q603=\"-\",\"-\",IF(AND($Q603=\"Y\",'Enrollment Form'!$AS610=\"No\"),\"-\",IF(AND($Q603=\"Y\",'Enrollment Form'!$AS610=\"Yes\",'Enrollment Form'!$AT610<>\"\"),\"Y\",\"N\"))))","v":""},{"$f":"IF($B603=\"N\",\"\",IF(OR('Enrollment Form'!$B610<>\"Subscriber\",'Enrollment Form'!$C610=\"ROC\"),\"-\",IF(AND('Enrollment Form'!$B610=\"Subscriber\",'Enrollment Form'!$C610=\"Enroll\",'Enrollment Form'!$CV610<>\"\"),\"Y\",\"N\")))","v":""},{"$f":"IF($B603=\"N\",\"\",IF($S603=\"-\",\"-\",IF(AND($S603=\"Y\",'Enrollment Form'!$CV610=\"No\"),\"-\",IF(AND($S603=\"Y\",'Enrollment Form'!$CV610=\"Yes\",'Enrollment Form'!$CW610<>\"\"),\"Y\",\"N\"))))","v":""},{"$f":"IF(OR('Enrollment Form'!$AY610=\"Yes\",'Enrollment Form'!$AY610=\"\"),\"-\",IF(OR(AND('Enrollment Form'!$AY610=\"No\",ISERROR(FIND(\"HMO\",VLOOKUP('Enrollment Form'!G610,'Enrollment Form'!H$11:J$1000,3,FALSE),1))=FALSE,COUNTA('Enrollment Form'!$AZ610:$BC610)=4),AND('Enrollment Form'!$AY610=\"No\",ISERROR(FIND(\"HMO\",VLOOKUP('Enrollment Form'!G610,'Enrollment Form'!H$11:J$1000,3,FALSE),1))=FALSE,COUNTA('Enrollment Form'!$BT610:$BW610)=4)),\"Y\",\"N\"))","v":"-"},{"$f":"IF($B603=\"N\",\"\",IF('Enrollment Form'!$B610=\"Subscriber\",\"-\",IF(COUNTA('Enrollment Form'!$BL610,'Enrollment Form'!$BN610)=2,\"Y\",\"N\")))","v":""},{"$f":"IF($B603=\"N\",\"\",IF(OR('Enrollment Form'!$AX610=\"\",'Enrollment Form'!$AX610=\"No\"),\"-\",IF(AND('Enrollment Form'!$AX610=\"Yes\",COUNTA('Enrollment Form'!$CR610)=1),\"Y\",\"N\")))","v":""},{"$f":"IF(OR('Enrollment Form'!$CR610=\"\",'Enrollment Form'!$CR610=\"No\"),\"-\",IF(COUNTA('Enrollment Form'!$CT610:$CU610)=2,\"Y\",\"N\"))","v":"-"},{"$f":"IF($B603=\"N\",\"\",IF(COUNTIF('Enrollment Form'!$DG610:$DP610,\"Other\")=COUNTA('Enrollment Form'!$DK610,'Enrollment Form'!$DH610,'Enrollment Form'!$DN610,'Enrollment Form'!$DQ610),\"Y\",\"N\"))","v":""},{"$f":"IF($B603=\"N\",\"\",IF(OR('Enrollment Form'!B610<>\"Subscriber\",'Enrollment Form'!C610=\"ROC\",COUNTIF('Enrollment Form'!AV610:AW610,\"Yes\")>=1),\"-\",IF(AND('Enrollment Form'!C610=\"Enroll\",COUNTIF('Enrollment Form'!AV610:AW610,\"No\")=2,'Enrollment Form'!AX610=\"\"),\"N\",\"Y\")))","v":""},{"$f":"IF(OR(B603=\"N\",'Enrollment Form'!B610<>\"Subscriber\",'Enrollment Form'!C610=\"ROC\",'Enrollment Form'!O610<>\"Multiple of Salary\"),\"-\",IF(COUNTA('Enrollment Form'!T610:U610)<2,\"N\",\"Y\"))","v":"-"},{"$f":"IF(B603=\"N\",\"\",IF(OR('Enrollment Form'!C610=\"ROC\",'Enrollment Form'!B610<>\"Subscriber\",'Enrollment Form'!O610=\"Waive\",'Enrollment Form'!O610=\"\"),\"-\",IF('Enrollment Form'!P610=\"\",\"N\",\"Y\")))","v":""},{"$f":"IF($B603=\"N\",\"\",IF(AND('Enrollment Form'!$C610=\"ROC\",'Enrollment Form'!$DR610<>\"\"),\"Y\",IF(AND('Enrollment Form'!$C610=\"ROC\",'Enrollment Form'!$DR610=\"\"),\"N\",IF(AND('Enrollment Form'!$C610=\"Enroll\",'Enrollment Form'!$B610=\"Subscriber\",'Enrollment Form'!$CX610=\"No\",'Enrollment Form'!$DR610=\"\"),\"N\",IF(AND('Enrollment Form'!$C610=\"Enroll\",'Enrollment Form'!$B610=\"Subscriber\",'Enrollment Form'!$CX610=\"Yes\"),\"-\",\"Y\")))))","v":""},{"$f":"IF($B603=\"N\",\"\",IF(AND('Enrollment Form'!$C610=\"ROC\",'Enrollment Form'!$DS610<>\"\"),\"Y\",IF(AND('Enrollment Form'!$C610=\"ROC\",'Enrollment Form'!$DS610=\"\"),\"N\",IF(AND('Enrollment Form'!$C610=\"Enroll\",'Enrollment Form'!$B610=\"Subscriber\",'Enrollment Form'!$CX610=\"No\",'Enrollment Form'!$DS610=\"\"),\"N\",IF(AND('Enrollment Form'!$C610=\"Enroll\",'Enrollment Form'!$B610=\"Subscriber\",'Enrollment Form'!$CX610=\"Yes\"),\"-\",\"Y\")))))","v":""},{"$f":"IF('Enrollment Form'!AH610=\"\",\"\",IF(ISERROR(SEARCH(\".\",'Enrollment Form'!AH610,SEARCH(\"@\",'Enrollment Form'!AH610))),\"N\",\"Y\"))","v":""},{"$f":"IF(OR($B603=\"N\",'Enrollment Form'!$G610=\"\"),\"\",IF('Enrollment Form'!$B610<>\"Subscriber\",\"-\",IF(COUNTIF('Enrollment Form'!$AV610:$AW610,\"Yes\")=2,\"N\",\"Y\")))","v":""},{"$f":"IF(OR('Enrollment Form'!$CJ610=\"\",'Enrollment Form'!$CJ610=\"No\"),\"-\",IF(AND('Enrollment Form'!$CJ610=\"Yes\",'Enrollment Form'!$CK610=\"\"),\"N\",\"Y\"))","v":"-"},{"$f":"IF(OR('Enrollment Form'!$CL610=\"\",'Enrollment Form'!$CL610=\"No\"),\"-\",IF(AND('Enrollment Form'!$CL610=\"Yes\",'Enrollment Form'!$CM610=\"\"),\"N\",\"Y\"))","v":"-"},{"$f":"IF(OR('Enrollment Form'!$CN610=\"\",'Enrollment Form'!$CN610=\"No\"),\"-\",IF(AND('Enrollment Form'!$CN610=\"Yes\",'Enrollment Form'!$CO610=\"\"),\"N\",\"Y\"))","v":"-"},{"$f":"IF(OR('Enrollment Form'!$CN610=\"\",'Enrollment Form'!$CN610=\"No\"),\"-\",IF(AND('Enrollment Form'!$CN610=\"Yes\",'Enrollment Form'!$CP610=\"\"),\"N\",\"Y\"))","v":"-"},{"$f":"IF('Enrollment Form'!B610<>\"Subscriber\",\"-\",IF(AND('Enrollment Form'!B610=\"Subscriber\",'Enrollment Form'!C610=\"Enroll\",'Enrollment Form'!AA610=\"\"),\"N\",\"Y\"))","v":"-"},{"$f":"IF(OR('Enrollment Form'!B610=\"Subscriber\",'Enrollment Form'!B610=\"\"),\"-\",IF('Enrollment Form'!BP610=\"\",\"N\",\"Y\"))","v":"-"},{"$f":"IF('Enrollment Form'!B610<>\"Subscriber\",\"-\",IF(AND('Enrollment Form'!B610=\"Subscriber\",'Enrollment Form'!G610=\"\"),\"N\",\"Y\"))","v":"-"},{"$f":"IF('Enrollment Form'!A610=\"\",\"\",IF('Enrollment Form'!B610=\"Subscriber\",\"-\",IF(AND('Enrollment Form'!B610<>\"Subscriber\",'Enrollment Form'!G610='Enrollment Form'!H610),\"N\",\"Y\")))","v":""},0]
[611,{"$f":"IF('Enrollment Form'!$A611<>\"\",\"Y\",\"N\")","v":"N"},{"$f":"IF(AND('Enrollment Form'!$B611=\"\",'Enrollment Form'!$C611<>\"\"),\"N\",IF($B604=\"N\",\"\",\"Y\"))","v":""},{"$f":"IF(OR($B604=\"N\",'Enrollment Form'!G611=\"\"),\"\",IF('Enrollment Form'!$B611<>\"Subscriber\",\"\",IF('Enrollment Form'!$G611='Enrollment Form'!$H611,\"Y\",\"N\")))","v":""},{"$f":"IF($B604=\"N\",\"\",IF(AND(COUNTIFS('Enrollment Form'!$H$11:$H$1000,'Enrollment Form'!$H611,'Enrollment Form'!$B$11:$B$1000,'Enrollment Form'!$B611)>1,'Enrollment Form'!$H611<>\"\"),\"N\",\"Y\"))","v":""},{"$f":"IF($B604=\"N\",\"\",IF(LEN('Enrollment Form'!$Y611)=0,\"\",IF(LEN('Enrollment Form'!$Y611)<>5,\"N\",\"Y\")))","v":""},{"$f":"IF($B604=\"N\",\"\",IF(LEN('Enrollment Form'!$AD611=0),\"\",IF(LEN('Enrollment Form'!$AD611)<>5,\"N\",\"Y\")))","v":""},{"$f":"IF($B604=\"N\",\"\",IF(LEN('Enrollment Form'!$BS611=0),\"\",IF(LEN('Enrollment Form'!$BS611)<>5,\"N\",\"Y\")))","v":""},{"$f":"IF($B604=\"N\",\"\",IF(LEN('Enrollment Form'!$AE611)=0,\"\",IF(LEN('Enrollment Form'!$AE611)<>10,\"N\",\"Y\")))","v":""},{"$f":"IF($B604=\"N\",\"\",IF(LEN('Enrollment Form'!$AF611)=0,\"\",IF(LEN('Enrollment Form'!$AF611)<>10,\"N\",\"Y\")))","v":""},{"$f":"IF('Enrollment Form'!$O611<>\"Graded\",\"-\",IF(AND('Enrollment Form'!$O611=\"Graded\",'Enrollment Form'!$AR611<>\"\"),\"Y\",\"N\"))","v":"-"},{"$f":"IF($B604=\"N\",\"\",IF(OR('Enrollment Form'!$B611<>\"Subscriber\",'Enrollment Form'!$C611=\"ROC\"),\"-\",IF(AND('Enrollment Form'!$B611=\"Subscriber\",'Enrollment Form'!$C611=\"Enroll\",'Enrollment Form'!$AJ611<>\"\"),\"Y\",\"N\")))","v":""},{"$f":"IF($B604=\"N\",\"\",IF(OR('Enrollment Form'!$B611<>\"Subscriber\",'Enrollment Form'!$C611=\"ROC\"),\"-\",IF(AND('Enrollment Form'!$B611=\"Subscriber\",'Enrollment Form'!$C611=\"Enroll\",'Enrollment Form'!$AK611<>\"\"),\"Y\",\"N\")))","v":""},{"$f":"IF($B604=\"N\",\"\",IF(OR('Enrollment Form'!$B611<>\"Subscriber\",'Enrollment Form'!$C611=\"ROC\"),\"-\",IF(AND('Enrollment Form'!$B611=\"Subscriber\",'Enrollment Form'!$C611=\"Enroll\",'Enrollment Form'!$AL611<>\"\"),\"Y\",\"N\")))","v":""},{"$f":"IF($B604=\"N\",\"\",IF(OR('Enrollment Form'!$B611<>\"Subscriber\",'Enrollment Form'!$C611=\"ROC\"),\"-\",IF(AND('Enrollment Form'!$B611=\"Subscriber\",'Enrollment Form'!$C611=\"Enroll\",'Enrollment Form'!$AP611<>\"\"),\"Y\",\"N\")))","v":""},{"$f":"IF($B604=\"N\",\"\",IF(OR('Enrollment Form'!$B611<>\"Subscriber\",'Enrollment Form'!$C611=\"ROC\"),\"-\",IF(AND('Enrollment Form'!$B611=\"Subscriber\",'Enrollment Form'!$C611=\"Enroll\",'Enrollment Form'!$AQ611<>\"\"),\"Y\",\"N\")))","v":""},{"$f":"IF($B604=\"N\",\"\",IF(OR('Enrollment Form'!$B611<>\"Subscriber\",'Enrollment Form'!$C611=\"ROC\"),\"-\",IF(AND('Enrollment Form'!$B611=\"Subscriber\",'Enrollment Form'!$C611=\"Enroll\",'Enrollment Form'!$AS611<>\"\"),\"Y\",\"N\")))","v":""},{"$f":"IF($B604=\"N\",\"\",IF($Q604=\"-\",\"-\",IF(AND($Q604=\"Y\",'Enrollment Form'!$AS611=\"No\"),\"-\",IF(AND($Q604=\"Y\",'Enrollment Form'!$AS611=\"Yes\",'Enrollment Form'!$AT611<>\"\"),\"Y\",\"N\"))))","v":""},{"$f":"IF($B604=\"N\",\"\",IF(OR('Enrollment Form'!$B611<>\"Subscriber\",'Enrollment Form'!$C611=\"ROC\"),\"-\",IF(AND('Enrollment Form'!$B611=\"Subscriber\",'Enrollment Form'!$C611=\"Enroll\",'Enrollment Form'!$CV611<>\"\"),\"Y\",\"N\")))","v":""},{"$f":"IF($B604=\"N\",\"\",IF($S604=\"-\",\"-\",IF(AND($S604=\"Y\",'Enrollment Form'!$CV611=\"No\"),\"-\",IF(AND($S604=\"Y\",'Enrollment Form'!$CV611=\"Yes\",'Enrollment Form'!$CW611<>\"\"),\"Y\",\"N\"))))","v":""},{"$f":"IF(OR('Enrollment Form'!$AY611=\"Yes\",'Enrollment Form'!$AY611=\"\"),\"-\",IF(OR(AND('Enrollment Form'!$AY611=\"No\",ISERROR(FIND(\"HMO\",VLOOKUP('Enrollment Form'!G611,'Enrollment Form'!H$11:J$1000,3,FALSE),1))=FALSE,COUNTA('Enrollment Form'!$AZ611:$BC611)=4),AND('Enrollment Form'!$AY611=\"No\",ISERROR(FIND(\"HMO\",VLOOKUP('Enrollment Form'!G611,'Enrollment Form'!H$11:J$1000,3,FALSE),1))=FALSE,COUNTA('Enrollment Form'!$BT611:$BW611)=4)),\"Y\",\"N\"))","v":"-"},{"$f":"IF($B604=\"N\",\"\",IF('Enrollment Form'!$B611=\"Subscriber\",\"-\",IF(COUNTA('Enrollment Form'!$BL611,'Enrollment Form'!$BN611)=2,\"Y\",\"N\")))","v":""},{"$f":"IF($B604=\"N\",\"\",IF(OR('Enrollment Form'!$AX611=\"\",'Enrollment Form'!$AX611=\"No\"),\"-\",IF(AND('Enrollment Form'!$AX611=\"Yes\",COUNTA('Enrollment Form'!$CR611)=1),\"Y\",\"N\")))","v":""},{"$f":"IF(OR('Enrollment Form'!$CR611=\"\",'Enrollment Form'!$CR611=\"No\"),\"-\",IF(COUNTA('Enrollment Form'!$CT611:$CU611)=2,\"Y\",\"N\"))","v":"-"},{"$f":"IF($B604=\"N\",\"\",IF(COUNTIF('Enrollment Form'!$DG611:$DP611,\"Other\")=COUNTA('Enrollment Form'!$DK611,'Enrollment Form'!$DH611,'Enrollment Form'!$DN611,'Enrollment Form'!$DQ611),\"Y\",\"N\"))","v":""},{"$f":"IF($B604=\"N\",\"\",IF(OR('Enrollment Form'!B611<>\"Subscriber\",'Enrollment Form'!C611=\"ROC\",COUNTIF('Enrollment Form'!AV611:AW611,\"Yes\")>=1),\"-\",IF(AND('Enrollment Form'!C611=\"Enroll\",COUNTIF('Enrollment Form'!AV611:AW611,\"No\")=2,'Enrollment Form'!AX611=\"\"),\"N\",\"Y\")))","v":""},{"$f":"IF(OR(B604=\"N\",'Enrollment Form'!B611<>\"Subscriber\",'Enrollment Form'!C611=\"ROC\",'Enrollment Form'!O611<>\"Multiple of Salary\"),\"-\",IF(COUNTA('Enrollment Form'!T611:U611)<2,\"N\",\"Y\"))","v":"-"},{"$f":"IF(B604=\"N\",\"\",IF(OR('Enrollment Form'!C611=\"ROC\",'Enrollment Form'!B611<>\"Subscriber\",'Enrollment Form'!O611=\"Waive\",'Enrollment Form'!O611=\"\"),\"-\",IF('Enrollment Form'!P611=\"\",\"N\",\"Y\")))","v":""},{"$f":"IF($B604=\"N\",\"\",IF(AND('Enrollment Form'!$C611=\"ROC\",'Enrollment Form'!$DR611<>\"\"),\"Y\",IF(AND('Enrollment Form'!$C611=\"ROC\",'Enrollment Form'!$DR611=\"\"),\"N\",IF(AND('Enrollment Form'!$C611=\"Enroll\",'Enrollment Form'!$B611=\"Subscriber\",'Enrollment Form'!$CX611=\"No\",'Enrollment Form'!$DR611=\"\"),\"N\",IF(AND('Enrollment Form'!$C611=\"Enroll\",'Enrollment Form'!$B611=\"Subscriber\",'Enrollment Form'!$CX611=\"Yes\"),\"-\",\"Y\")))))","v":""},{"$f":"IF($B604=\"N\",\"\",IF(AND('Enrollment Form'!$C611=\"ROC\",'Enrollment Form'!$DS611<>\"\"),\"Y\",IF(AND('Enrollment Form'!$C611=\"ROC\",'Enrollment Form'!$DS611=\"\"),\"N\",IF(AND('Enrollment Form'!$C611=\"Enroll\",'Enrollment Form'!$B611=\"Subscriber\",'Enrollment Form'!$CX611=\"No\",'Enrollment Form'!$DS611=\"\"),\"N\",IF(AND('Enrollment Form'!$C611=\"Enroll\",'Enrollment Form'!$B611=\"Subscriber\",'Enrollment Form'!$CX611=\"Yes\"),\"-\",\"Y\")))))","v":""},{"$f":"IF('Enrollment Form'!AH611=\"\",\"\",IF(ISERROR(SEARCH(\".\",'Enrollment Form'!AH611,SEARCH(\"@\",'Enrollment Form'!AH611))),\"N\",\"Y\"))","v":""},{"$f":"IF(OR($B604=\"N\",'Enrollment Form'!$G611=\"\"),\"\",IF('Enrollment Form'!$B611<>\"Subscriber\",\"-\",IF(COUNTIF('Enrollment Form'!$AV611:$AW611,\"Yes\")=2,\"N\",\"Y\")))","v":""},{"$f":"IF(OR('Enrollment Form'!$CJ611=\"\",'Enrollment Form'!$CJ611=\"No\"),\"-\",IF(AND('Enrollment Form'!$CJ611=\"Yes\",'Enrollment Form'!$CK611=\"\"),\"N\",\"Y\"))","v":"-"},{"$f":"IF(OR('Enrollment Form'!$CL611=\"\",'Enrollment Form'!$CL611=\"No\"),\"-\",IF(AND('Enrollment Form'!$CL611=\"Yes\",'Enrollment Form'!$CM611=\"\"),\"N\",\"Y\"))","v":"-"},{"$f":"IF(OR('Enrollment Form'!$CN611=\"\",'Enrollment Form'!$CN611=\"No\"),\"-\",IF(AND('Enrollment Form'!$CN611=\"Yes\",'Enrollment Form'!$CO611=\"\"),\"N\",\"Y\"))","v":"-"},{"$f":"IF(OR('Enrollment Form'!$CN611=\"\",'Enrollment Form'!$CN611=\"No\"),\"-\",IF(AND('Enrollment Form'!$CN611=\"Yes\",'Enrollment Form'!$CP611=\"\"),\"N\",\"Y\"))","v":"-"},{"$f":"IF('Enrollment Form'!B611<>\"Subscriber\",\"-\",IF(AND('Enrollment Form'!B611=\"Subscriber\",'Enrollment Form'!C611=\"Enroll\",'Enrollment Form'!AA611=\"\"),\"N\",\"Y\"))","v":"-"},{"$f":"IF(OR('Enrollment Form'!B611=\"Subscriber\",'Enrollment Form'!B611=\"\"),\"-\",IF('Enrollment Form'!BP611=\"\",\"N\",\"Y\"))","v":"-"},{"$f":"IF('Enrollment Form'!B611<>\"Subscriber\",\"-\",IF(AND('Enrollment Form'!B611=\"Subscriber\",'Enrollment Form'!G611=\"\"),\"N\",\"Y\"))","v":"-"},{"$f":"IF('Enrollment Form'!A611=\"\",\"\",IF('Enrollment Form'!B611=\"Subscriber\",\"-\",IF(AND('Enrollment Form'!B611<>\"Subscriber\",'Enrollment Form'!G611='Enrollment Form'!H611),\"N\",\"Y\")))","v":""},0]
[612,{"$f":"IF('Enrollment Form'!$A612<>\"\",\"Y\",\"N\")","v":"N"},{"$f":"IF(AND('Enrollment Form'!$B612=\"\",'Enrollment Form'!$C612<>\"\"),\"N\",IF($B605=\"N\",\"\",\"Y\"))","v":""},{"$f":"IF(OR($B605=\"N\",'Enrollment Form'!G612=\"\"),\"\",IF('Enrollment Form'!$B612<>\"Subscriber\",\"\",IF('Enrollment Form'!$G612='Enrollment Form'!$H612,\"Y\",\"N\")))","v":""},{"$f":"IF($B605=\"N\",\"\",IF(AND(COUNTIFS('Enrollment Form'!$H$11:$H$1000,'Enrollment Form'!$H612,'Enrollment Form'!$B$11:$B$1000,'Enrollment Form'!$B612)>1,'Enrollment Form'!$H612<>\"\"),\"N\",\"Y\"))","v":""},{"$f":"IF($B605=\"N\",\"\",IF(LEN('Enrollment Form'!$Y612)=0,\"\",IF(LEN('Enrollment Form'!$Y612)<>5,\"N\",\"Y\")))","v":""},{"$f":"IF($B605=\"N\",\"\",IF(LEN('Enrollment Form'!$AD612=0),\"\",IF(LEN('Enrollment Form'!$AD612)<>5,\"N\",\"Y\")))","v":""},{"$f":"IF($B605=\"N\",\"\",IF(LEN('Enrollment Form'!$BS612=0),\"\",IF(LEN('Enrollment Form'!$BS612)<>5,\"N\",\"Y\")))","v":""},{"$f":"IF($B605=\"N\",\"\",IF(LEN('Enrollment Form'!$AE612)=0,\"\",IF(LEN('Enrollment Form'!$AE612)<>10,\"N\",\"Y\")))","v":""},{"$f":"IF($B605=\"N\",\"\",IF(LEN('Enrollment Form'!$AF612)=0,\"\",IF(LEN('Enrollment Form'!$AF612)<>10,\"N\",\"Y\")))","v":""},{"$f":"IF('Enrollment Form'!$O612<>\"Graded\",\"-\",IF(AND('Enrollment Form'!$O612=\"Graded\",'Enrollment Form'!$AR612<>\"\"),\"Y\",\"N\"))","v":"-"},{"$f":"IF($B605=\"N\",\"\",IF(OR('Enrollment Form'!$B612<>\"Subscriber\",'Enrollment Form'!$C612=\"ROC\"),\"-\",IF(AND('Enrollment Form'!$B612=\"Subscriber\",'Enrollment Form'!$C612=\"Enroll\",'Enrollment Form'!$AJ612<>\"\"),\"Y\",\"N\")))","v":""},{"$f":"IF($B605=\"N\",\"\",IF(OR('Enrollment Form'!$B612<>\"Subscriber\",'Enrollment Form'!$C612=\"ROC\"),\"-\",IF(AND('Enrollment Form'!$B612=\"Subscriber\",'Enrollment Form'!$C612=\"Enroll\",'Enrollment Form'!$AK612<>\"\"),\"Y\",\"N\")))","v":""},{"$f":"IF($B605=\"N\",\"\",IF(OR('Enrollment Form'!$B612<>\"Subscriber\",'Enrollment Form'!$C612=\"ROC\"),\"-\",IF(AND('Enrollment Form'!$B612=\"Subscriber\",'Enrollment Form'!$C612=\"Enroll\",'Enrollment Form'!$AL612<>\"\"),\"Y\",\"N\")))","v":""},{"$f":"IF($B605=\"N\",\"\",IF(OR('Enrollment Form'!$B612<>\"Subscriber\",'Enrollment Form'!$C612=\"ROC\"),\"-\",IF(AND('Enrollment Form'!$B612=\"Subscriber\",'Enrollment Form'!$C612=\"Enroll\",'Enrollment Form'!$AP612<>\"\"),\"Y\",\"N\")))","v":""},{"$f":"IF($B605=\"N\",\"\",IF(OR('Enrollment Form'!$B612<>\"Subscriber\",'Enrollment Form'!$C612=\"ROC\"),\"-\",IF(AND('Enrollment Form'!$B612=\"Subscriber\",'Enrollment Form'!$C612=\"Enroll\",'Enrollment Form'!$AQ612<>\"\"),\"Y\",\"N\")))","v":""},{"$f":"IF($B605=\"N\",\"\",IF(OR('Enrollment Form'!$B612<>\"Subscriber\",'Enrollment Form'!$C612=\"ROC\"),\"-\",IF(AND('Enrollment Form'!$B612=\"Subscriber\",'Enrollment Form'!$C612=\"Enroll\",'Enrollment Form'!$AS612<>\"\"),\"Y\",\"N\")))","v":""},{"$f":"IF($B605=\"N\",\"\",IF($Q605=\"-\",\"-\",IF(AND($Q605=\"Y\",'Enrollment Form'!$AS612=\"No\"),\"-\",IF(AND($Q605=\"Y\",'Enrollment Form'!$AS612=\"Yes\",'Enrollment Form'!$AT612<>\"\"),\"Y\",\"N\"))))","v":""},{"$f":"IF($B605=\"N\",\"\",IF(OR('Enrollment Form'!$B612<>\"Subscriber\",'Enrollment Form'!$C612=\"ROC\"),\"-\",IF(AND('Enrollment Form'!$B612=\"Subscriber\",'Enrollment Form'!$C612=\"Enroll\",'Enrollment Form'!$CV612<>\"\"),\"Y\",\"N\")))","v":""},{"$f":"IF($B605=\"N\",\"\",IF($S605=\"-\",\"-\",IF(AND($S605=\"Y\",'Enrollment Form'!$CV612=\"No\"),\"-\",IF(AND($S605=\"Y\",'Enrollment Form'!$CV612=\"Yes\",'Enrollment Form'!$CW612<>\"\"),\"Y\",\"N\"))))","v":""},{"$f":"IF(OR('Enrollment Form'!$AY612=\"Yes\",'Enrollment Form'!$AY612=\"\"),\"-\",IF(OR(AND('Enrollment Form'!$AY612=\"No\",ISERROR(FIND(\"HMO\",VLOOKUP('Enrollment Form'!G612,'Enrollment Form'!H$11:J$1000,3,FALSE),1))=FALSE,COUNTA('Enrollment Form'!$AZ612:$BC612)=4),AND('Enrollment Form'!$AY612=\"No\",ISERROR(FIND(\"HMO\",VLOOKUP('Enrollment Form'!G612,'Enrollment Form'!H$11:J$1000,3,FALSE),1))=FALSE,COUNTA('Enrollment Form'!$BT612:$BW612)=4)),\"Y\",\"N\"))","v":"-"},{"$f":"IF($B605=\"N\",\"\",IF('Enrollment Form'!$B612=\"Subscriber\",\"-\",IF(COUNTA('Enrollment Form'!$BL612,'Enrollment Form'!$BN612)=2,\"Y\",\"N\")))","v":""},{"$f":"IF($B605=\"N\",\"\",IF(OR('Enrollment Form'!$AX612=\"\",'Enrollment Form'!$AX612=\"No\"),\"-\",IF(AND('Enrollment Form'!$AX612=\"Yes\",COUNTA('Enrollment Form'!$CR612)=1),\"Y\",\"N\")))","v":""},{"$f":"IF(OR('Enrollment Form'!$CR612=\"\",'Enrollment Form'!$CR612=\"No\"),\"-\",IF(COUNTA('Enrollment Form'!$CT612:$CU612)=2,\"Y\",\"N\"))","v":"-"},{"$f":"IF($B605=\"N\",\"\",IF(COUNTIF('Enrollment Form'!$DG612:$DP612,\"Other\")=COUNTA('Enrollment Form'!$DK612,'Enrollment Form'!$DH612,'Enrollment Form'!$DN612,'Enrollment Form'!$DQ612),\"Y\",\"N\"))","v":""},{"$f":"IF($B605=\"N\",\"\",IF(OR('Enrollment Form'!B612<>\"Subscriber\",'Enrollment Form'!C612=\"ROC\",COUNTIF('Enrollment Form'!AV612:AW612,\"Yes\")>=1),\"-\",IF(AND('Enrollment Form'!C612=\"Enroll\",COUNTIF('Enrollment Form'!AV612:AW612,\"No\")=2,'Enrollment Form'!AX612=\"\"),\"N\",\"Y\")))","v":""},{"$f":"IF(OR(B605=\"N\",'Enrollment Form'!B612<>\"Subscriber\",'Enrollment Form'!C612=\"ROC\",'Enrollment Form'!O612<>\"Multiple of Salary\"),\"-\",IF(COUNTA('Enrollment Form'!T612:U612)<2,\"N\",\"Y\"))","v":"-"},{"$f":"IF(B605=\"N\",\"\",IF(OR('Enrollment Form'!C612=\"ROC\",'Enrollment Form'!B612<>\"Subscriber\",'Enrollment Form'!O612=\"Waive\",'Enrollment Form'!O612=\"\"),\"-\",IF('Enrollment Form'!P612=\"\",\"N\",\"Y\")))","v":""},{"$f":"IF($B605=\"N\",\"\",IF(AND('Enrollment Form'!$C612=\"ROC\",'Enrollment Form'!$DR612<>\"\"),\"Y\",IF(AND('Enrollment Form'!$C612=\"ROC\",'Enrollment Form'!$DR612=\"\"),\"N\",IF(AND('Enrollment Form'!$C612=\"Enroll\",'Enrollment Form'!$B612=\"Subscriber\",'Enrollment Form'!$CX612=\"No\",'Enrollment Form'!$DR612=\"\"),\"N\",IF(AND('Enrollment Form'!$C612=\"Enroll\",'Enrollment Form'!$B612=\"Subscriber\",'Enrollment Form'!$CX612=\"Yes\"),\"-\",\"Y\")))))","v":""},{"$f":"IF($B605=\"N\",\"\",IF(AND('Enrollment Form'!$C612=\"ROC\",'Enrollment Form'!$DS612<>\"\"),\"Y\",IF(AND('Enrollment Form'!$C612=\"ROC\",'Enrollment Form'!$DS612=\"\"),\"N\",IF(AND('Enrollment Form'!$C612=\"Enroll\",'Enrollment Form'!$B612=\"Subscriber\",'Enrollment Form'!$CX612=\"No\",'Enrollment Form'!$DS612=\"\"),\"N\",IF(AND('Enrollment Form'!$C612=\"Enroll\",'Enrollment Form'!$B612=\"Subscriber\",'Enrollment Form'!$CX612=\"Yes\"),\"-\",\"Y\")))))","v":""},{"$f":"IF('Enrollment Form'!AH612=\"\",\"\",IF(ISERROR(SEARCH(\".\",'Enrollment Form'!AH612,SEARCH(\"@\",'Enrollment Form'!AH612))),\"N\",\"Y\"))","v":""},{"$f":"IF(OR($B605=\"N\",'Enrollment Form'!$G612=\"\"),\"\",IF('Enrollment Form'!$B612<>\"Subscriber\",\"-\",IF(COUNTIF('Enrollment Form'!$AV612:$AW612,\"Yes\")=2,\"N\",\"Y\")))","v":""},{"$f":"IF(OR('Enrollment Form'!$CJ612=\"\",'Enrollment Form'!$CJ612=\"No\"),\"-\",IF(AND('Enrollment Form'!$CJ612=\"Yes\",'Enrollment Form'!$CK612=\"\"),\"N\",\"Y\"))","v":"-"},{"$f":"IF(OR('Enrollment Form'!$CL612=\"\",'Enrollment Form'!$CL612=\"No\"),\"-\",IF(AND('Enrollment Form'!$CL612=\"Yes\",'Enrollment Form'!$CM612=\"\"),\"N\",\"Y\"))","v":"-"},{"$f":"IF(OR('Enrollment Form'!$CN612=\"\",'Enrollment Form'!$CN612=\"No\"),\"-\",IF(AND('Enrollment Form'!$CN612=\"Yes\",'Enrollment Form'!$CO612=\"\"),\"N\",\"Y\"))","v":"-"},{"$f":"IF(OR('Enrollment Form'!$CN612=\"\",'Enrollment Form'!$CN612=\"No\"),\"-\",IF(AND('Enrollment Form'!$CN612=\"Yes\",'Enrollment Form'!$CP612=\"\"),\"N\",\"Y\"))","v":"-"},{"$f":"IF('Enrollment Form'!B612<>\"Subscriber\",\"-\",IF(AND('Enrollment Form'!B612=\"Subscriber\",'Enrollment Form'!C612=\"Enroll\",'Enrollment Form'!AA612=\"\"),\"N\",\"Y\"))","v":"-"},{"$f":"IF(OR('Enrollment Form'!B612=\"Subscriber\",'Enrollment Form'!B612=\"\"),\"-\",IF('Enrollment Form'!BP612=\"\",\"N\",\"Y\"))","v":"-"},{"$f":"IF('Enrollment Form'!B612<>\"Subscriber\",\"-\",IF(AND('Enrollment Form'!B612=\"Subscriber\",'Enrollment Form'!G612=\"\"),\"N\",\"Y\"))","v":"-"},{"$f":"IF('Enrollment Form'!A612=\"\",\"\",IF('Enrollment Form'!B612=\"Subscriber\",\"-\",IF(AND('Enrollment Form'!B612<>\"Subscriber\",'Enrollment Form'!G612='Enrollment Form'!H612),\"N\",\"Y\")))","v":""},0]
[613,{"$f":"IF('Enrollment Form'!$A613<>\"\",\"Y\",\"N\")","v":"N"},{"$f":"IF(AND('Enrollment Form'!$B613=\"\",'Enrollment Form'!$C613<>\"\"),\"N\",IF($B606=\"N\",\"\",\"Y\"))","v":""},{"$f":"IF(OR($B606=\"N\",'Enrollment Form'!G613=\"\"),\"\",IF('Enrollment Form'!$B613<>\"Subscriber\",\"\",IF('Enrollment Form'!$G613='Enrollment Form'!$H613,\"Y\",\"N\")))","v":""},{"$f":"IF($B606=\"N\",\"\",IF(AND(COUNTIFS('Enrollment Form'!$H$11:$H$1000,'Enrollment Form'!$H613,'Enrollment Form'!$B$11:$B$1000,'Enrollment Form'!$B613)>1,'Enrollment Form'!$H613<>\"\"),\"N\",\"Y\"))","v":""},{"$f":"IF($B606=\"N\",\"\",IF(LEN('Enrollment Form'!$Y613)=0,\"\",IF(LEN('Enrollment Form'!$Y613)<>5,\"N\",\"Y\")))","v":""},{"$f":"IF($B606=\"N\",\"\",IF(LEN('Enrollment Form'!$AD613=0),\"\",IF(LEN('Enrollment Form'!$AD613)<>5,\"N\",\"Y\")))","v":""},{"$f":"IF($B606=\"N\",\"\",IF(LEN('Enrollment Form'!$BS613=0),\"\",IF(LEN('Enrollment Form'!$BS613)<>5,\"N\",\"Y\")))","v":""},{"$f":"IF($B606=\"N\",\"\",IF(LEN('Enrollment Form'!$AE613)=0,\"\",IF(LEN('Enrollment Form'!$AE613)<>10,\"N\",\"Y\")))","v":""},{"$f":"IF($B606=\"N\",\"\",IF(LEN('Enrollment Form'!$AF613)=0,\"\",IF(LEN('Enrollment Form'!$AF613)<>10,\"N\",\"Y\")))","v":""},{"$f":"IF('Enrollment Form'!$O613<>\"Graded\",\"-\",IF(AND('Enrollment Form'!$O613=\"Graded\",'Enrollment Form'!$AR613<>\"\"),\"Y\",\"N\"))","v":"-"},{"$f":"IF($B606=\"N\",\"\",IF(OR('Enrollment Form'!$B613<>\"Subscriber\",'Enrollment Form'!$C613=\"ROC\"),\"-\",IF(AND('Enrollment Form'!$B613=\"Subscriber\",'Enrollment Form'!$C613=\"Enroll\",'Enrollment Form'!$AJ613<>\"\"),\"Y\",\"N\")))","v":""},{"$f":"IF($B606=\"N\",\"\",IF(OR('Enrollment Form'!$B613<>\"Subscriber\",'Enrollment Form'!$C613=\"ROC\"),\"-\",IF(AND('Enrollment Form'!$B613=\"Subscriber\",'Enrollment Form'!$C613=\"Enroll\",'Enrollment Form'!$AK613<>\"\"),\"Y\",\"N\")))","v":""},{"$f":"IF($B606=\"N\",\"\",IF(OR('Enrollment Form'!$B613<>\"Subscriber\",'Enrollment Form'!$C613=\"ROC\"),\"-\",IF(AND('Enrollment Form'!$B613=\"Subscriber\",'Enrollment Form'!$C613=\"Enroll\",'Enrollment Form'!$AL613<>\"\"),\"Y\",\"N\")))","v":""},{"$f":"IF($B606=\"N\",\"\",IF(OR('Enrollment Form'!$B613<>\"Subscriber\",'Enrollment Form'!$C613=\"ROC\"),\"-\",IF(AND('Enrollment Form'!$B613=\"Subscriber\",'Enrollment Form'!$C613=\"Enroll\",'Enrollment Form'!$AP613<>\"\"),\"Y\",\"N\")))","v":""},{"$f":"IF($B606=\"N\",\"\",IF(OR('Enrollment Form'!$B613<>\"Subscriber\",'Enrollment Form'!$C613=\"ROC\"),\"-\",IF(AND('Enrollment Form'!$B613=\"Subscriber\",'Enrollment Form'!$C613=\"Enroll\",'Enrollment Form'!$AQ613<>\"\"),\"Y\",\"N\")))","v":""},{"$f":"IF($B606=\"N\",\"\",IF(OR('Enrollment Form'!$B613<>\"Subscriber\",'Enrollment Form'!$C613=\"ROC\"),\"-\",IF(AND('Enrollment Form'!$B613=\"Subscriber\",'Enrollment Form'!$C613=\"Enroll\",'Enrollment Form'!$AS613<>\"\"),\"Y\",\"N\")))","v":""},{"$f":"IF($B606=\"N\",\"\",IF($Q606=\"-\",\"-\",IF(AND($Q606=\"Y\",'Enrollment Form'!$AS613=\"No\"),\"-\",IF(AND($Q606=\"Y\",'Enrollment Form'!$AS613=\"Yes\",'Enrollment Form'!$AT613<>\"\"),\"Y\",\"N\"))))","v":""},{"$f":"IF($B606=\"N\",\"\",IF(OR('Enrollment Form'!$B613<>\"Subscriber\",'Enrollment Form'!$C613=\"ROC\"),\"-\",IF(AND('Enrollment Form'!$B613=\"Subscriber\",'Enrollment Form'!$C613=\"Enroll\",'Enrollment Form'!$CV613<>\"\"),\"Y\",\"N\")))","v":""},{"$f":"IF($B606=\"N\",\"\",IF($S606=\"-\",\"-\",IF(AND($S606=\"Y\",'Enrollment Form'!$CV613=\"No\"),\"-\",IF(AND($S606=\"Y\",'Enrollment Form'!$CV613=\"Yes\",'Enrollment Form'!$CW613<>\"\"),\"Y\",\"N\"))))","v":""},{"$f":"IF(OR('Enrollment Form'!$AY613=\"Yes\",'Enrollment Form'!$AY613=\"\"),\"-\",IF(OR(AND('Enrollment Form'!$AY613=\"No\",ISERROR(FIND(\"HMO\",VLOOKUP('Enrollment Form'!G613,'Enrollment Form'!H$11:J$1000,3,FALSE),1))=FALSE,COUNTA('Enrollment Form'!$AZ613:$BC613)=4),AND('Enrollment Form'!$AY613=\"No\",ISERROR(FIND(\"HMO\",VLOOKUP('Enrollment Form'!G613,'Enrollment Form'!H$11:J$1000,3,FALSE),1))=FALSE,COUNTA('Enrollment Form'!$BT613:$BW613)=4)),\"Y\",\"N\"))","v":"-"},{"$f":"IF($B606=\"N\",\"\",IF('Enrollment Form'!$B613=\"Subscriber\",\"-\",IF(COUNTA('Enrollment Form'!$BL613,'Enrollment Form'!$BN613)=2,\"Y\",\"N\")))","v":""},{"$f":"IF($B606=\"N\",\"\",IF(OR('Enrollment Form'!$AX613=\"\",'Enrollment Form'!$AX613=\"No\"),\"-\",IF(AND('Enrollment Form'!$AX613=\"Yes\",COUNTA('Enrollment Form'!$CR613)=1),\"Y\",\"N\")))","v":""},{"$f":"IF(OR('Enrollment Form'!$CR613=\"\",'Enrollment Form'!$CR613=\"No\"),\"-\",IF(COUNTA('Enrollment Form'!$CT613:$CU613)=2,\"Y\",\"N\"))","v":"-"},{"$f":"IF($B606=\"N\",\"\",IF(COUNTIF('Enrollment Form'!$DG613:$DP613,\"Other\")=COUNTA('Enrollment Form'!$DK613,'Enrollment Form'!$DH613,'Enrollment Form'!$DN613,'Enrollment Form'!$DQ613),\"Y\",\"N\"))","v":""},{"$f":"IF($B606=\"N\",\"\",IF(OR('Enrollment Form'!B613<>\"Subscriber\",'Enrollment Form'!C613=\"ROC\",COUNTIF('Enrollment Form'!AV613:AW613,\"Yes\")>=1),\"-\",IF(AND('Enrollment Form'!C613=\"Enroll\",COUNTIF('Enrollment Form'!AV613:AW613,\"No\")=2,'Enrollment Form'!AX613=\"\"),\"N\",\"Y\")))","v":""},{"$f":"IF(OR(B606=\"N\",'Enrollment Form'!B613<>\"Subscriber\",'Enrollment Form'!C613=\"ROC\",'Enrollment Form'!O613<>\"Multiple of Salary\"),\"-\",IF(COUNTA('Enrollment Form'!T613:U613)<2,\"N\",\"Y\"))","v":"-"},{"$f":"IF(B606=\"N\",\"\",IF(OR('Enrollment Form'!C613=\"ROC\",'Enrollment Form'!B613<>\"Subscriber\",'Enrollment Form'!O613=\"Waive\",'Enrollment Form'!O613=\"\"),\"-\",IF('Enrollment Form'!P613=\"\",\"N\",\"Y\")))","v":""},{"$f":"IF($B606=\"N\",\"\",IF(AND('Enrollment Form'!$C613=\"ROC\",'Enrollment Form'!$DR613<>\"\"),\"Y\",IF(AND('Enrollment Form'!$C613=\"ROC\",'Enrollment Form'!$DR613=\"\"),\"N\",IF(AND('Enrollment Form'!$C613=\"Enroll\",'Enrollment Form'!$B613=\"Subscriber\",'Enrollment Form'!$CX613=\"No\",'Enrollment Form'!$DR613=\"\"),\"N\",IF(AND('Enrollment Form'!$C613=\"Enroll\",'Enrollment Form'!$B613=\"Subscriber\",'Enrollment Form'!$CX613=\"Yes\"),\"-\",\"Y\")))))","v":""},{"$f":"IF($B606=\"N\",\"\",IF(AND('Enrollment Form'!$C613=\"ROC\",'Enrollment Form'!$DS613<>\"\"),\"Y\",IF(AND('Enrollment Form'!$C613=\"ROC\",'Enrollment Form'!$DS613=\"\"),\"N\",IF(AND('Enrollment Form'!$C613=\"Enroll\",'Enrollment Form'!$B613=\"Subscriber\",'Enrollment Form'!$CX613=\"No\",'Enrollment Form'!$DS613=\"\"),\"N\",IF(AND('Enrollment Form'!$C613=\"Enroll\",'Enrollment Form'!$B613=\"Subscriber\",'Enrollment Form'!$CX613=\"Yes\"),\"-\",\"Y\")))))","v":""},{"$f":"IF('Enrollment Form'!AH613=\"\",\"\",IF(ISERROR(SEARCH(\".\",'Enrollment Form'!AH613,SEARCH(\"@\",'Enrollment Form'!AH613))),\"N\",\"Y\"))","v":""},{"$f":"IF(OR($B606=\"N\",'Enrollment Form'!$G613=\"\"),\"\",IF('Enrollment Form'!$B613<>\"Subscriber\",\"-\",IF(COUNTIF('Enrollment Form'!$AV613:$AW613,\"Yes\")=2,\"N\",\"Y\")))","v":""},{"$f":"IF(OR('Enrollment Form'!$CJ613=\"\",'Enrollment Form'!$CJ613=\"No\"),\"-\",IF(AND('Enrollment Form'!$CJ613=\"Yes\",'Enrollment Form'!$CK613=\"\"),\"N\",\"Y\"))","v":"-"},{"$f":"IF(OR('Enrollment Form'!$CL613=\"\",'Enrollment Form'!$CL613=\"No\"),\"-\",IF(AND('Enrollment Form'!$CL613=\"Yes\",'Enrollment Form'!$CM613=\"\"),\"N\",\"Y\"))","v":"-"},{"$f":"IF(OR('Enrollment Form'!$CN613=\"\",'Enrollment Form'!$CN613=\"No\"),\"-\",IF(AND('Enrollment Form'!$CN613=\"Yes\",'Enrollment Form'!$CO613=\"\"),\"N\",\"Y\"))","v":"-"},{"$f":"IF(OR('Enrollment Form'!$CN613=\"\",'Enrollment Form'!$CN613=\"No\"),\"-\",IF(AND('Enrollment Form'!$CN613=\"Yes\",'Enrollment Form'!$CP613=\"\"),\"N\",\"Y\"))","v":"-"},{"$f":"IF('Enrollment Form'!B613<>\"Subscriber\",\"-\",IF(AND('Enrollment Form'!B613=\"Subscriber\",'Enrollment Form'!C613=\"Enroll\",'Enrollment Form'!AA613=\"\"),\"N\",\"Y\"))","v":"-"},{"$f":"IF(OR('Enrollment Form'!B613=\"Subscriber\",'Enrollment Form'!B613=\"\"),\"-\",IF('Enrollment Form'!BP613=\"\",\"N\",\"Y\"))","v":"-"},{"$f":"IF('Enrollment Form'!B613<>\"Subscriber\",\"-\",IF(AND('Enrollment Form'!B613=\"Subscriber\",'Enrollment Form'!G613=\"\"),\"N\",\"Y\"))","v":"-"},{"$f":"IF('Enrollment Form'!A613=\"\",\"\",IF('Enrollment Form'!B613=\"Subscriber\",\"-\",IF(AND('Enrollment Form'!B613<>\"Subscriber\",'Enrollment Form'!G613='Enrollment Form'!H613),\"N\",\"Y\")))","v":""},0]
[614,{"$f":"IF('Enrollment Form'!$A614<>\"\",\"Y\",\"N\")","v":"N"},{"$f":"IF(AND('Enrollment Form'!$B614=\"\",'Enrollment Form'!$C614<>\"\"),\"N\",IF($B607=\"N\",\"\",\"Y\"))","v":""},{"$f":"IF(OR($B607=\"N\",'Enrollment Form'!G614=\"\"),\"\",IF('Enrollment Form'!$B614<>\"Subscriber\",\"\",IF('Enrollment Form'!$G614='Enrollment Form'!$H614,\"Y\",\"N\")))","v":""},{"$f":"IF($B607=\"N\",\"\",IF(AND(COUNTIFS('Enrollment Form'!$H$11:$H$1000,'Enrollment Form'!$H614,'Enrollment Form'!$B$11:$B$1000,'Enrollment Form'!$B614)>1,'Enrollment Form'!$H614<>\"\"),\"N\",\"Y\"))","v":""},{"$f":"IF($B607=\"N\",\"\",IF(LEN('Enrollment Form'!$Y614)=0,\"\",IF(LEN('Enrollment Form'!$Y614)<>5,\"N\",\"Y\")))","v":""},{"$f":"IF($B607=\"N\",\"\",IF(LEN('Enrollment Form'!$AD614=0),\"\",IF(LEN('Enrollment Form'!$AD614)<>5,\"N\",\"Y\")))","v":""},{"$f":"IF($B607=\"N\",\"\",IF(LEN('Enrollment Form'!$BS614=0),\"\",IF(LEN('Enrollment Form'!$BS614)<>5,\"N\",\"Y\")))","v":""},{"$f":"IF($B607=\"N\",\"\",IF(LEN('Enrollment Form'!$AE614)=0,\"\",IF(LEN('Enrollment Form'!$AE614)<>10,\"N\",\"Y\")))","v":""},{"$f":"IF($B607=\"N\",\"\",IF(LEN('Enrollment Form'!$AF614)=0,\"\",IF(LEN('Enrollment Form'!$AF614)<>10,\"N\",\"Y\")))","v":""},{"$f":"IF('Enrollment Form'!$O614<>\"Graded\",\"-\",IF(AND('Enrollment Form'!$O614=\"Graded\",'Enrollment Form'!$AR614<>\"\"),\"Y\",\"N\"))","v":"-"},{"$f":"IF($B607=\"N\",\"\",IF(OR('Enrollment Form'!$B614<>\"Subscriber\",'Enrollment Form'!$C614=\"ROC\"),\"-\",IF(AND('Enrollment Form'!$B614=\"Subscriber\",'Enrollment Form'!$C614=\"Enroll\",'Enrollment Form'!$AJ614<>\"\"),\"Y\",\"N\")))","v":""},{"$f":"IF($B607=\"N\",\"\",IF(OR('Enrollment Form'!$B614<>\"Subscriber\",'Enrollment Form'!$C614=\"ROC\"),\"-\",IF(AND('Enrollment Form'!$B614=\"Subscriber\",'Enrollment Form'!$C614=\"Enroll\",'Enrollment Form'!$AK614<>\"\"),\"Y\",\"N\")))","v":""},{"$f":"IF($B607=\"N\",\"\",IF(OR('Enrollment Form'!$B614<>\"Subscriber\",'Enrollment Form'!$C614=\"ROC\"),\"-\",IF(AND('Enrollment Form'!$B614=\"Subscriber\",'Enrollment Form'!$C614=\"Enroll\",'Enrollment Form'!$AL614<>\"\"),\"Y\",\"N\")))","v":""},{"$f":"IF($B607=\"N\",\"\",IF(OR('Enrollment Form'!$B614<>\"Subscriber\",'Enrollment Form'!$C614=\"ROC\"),\"-\",IF(AND('Enrollment Form'!$B614=\"Subscriber\",'Enrollment Form'!$C614=\"Enroll\",'Enrollment Form'!$AP614<>\"\"),\"Y\",\"N\")))","v":""},{"$f":"IF($B607=\"N\",\"\",IF(OR('Enrollment Form'!$B614<>\"Subscriber\",'Enrollment Form'!$C614=\"ROC\"),\"-\",IF(AND('Enrollment Form'!$B614=\"Subscriber\",'Enrollment Form'!$C614=\"Enroll\",'Enrollment Form'!$AQ614<>\"\"),\"Y\",\"N\")))","v":""},{"$f":"IF($B607=\"N\",\"\",IF(OR('Enrollment Form'!$B614<>\"Subscriber\",'Enrollment Form'!$C614=\"ROC\"),\"-\",IF(AND('Enrollment Form'!$B614=\"Subscriber\",'Enrollment Form'!$C614=\"Enroll\",'Enrollment Form'!$AS614<>\"\"),\"Y\",\"N\")))","v":""},{"$f":"IF($B607=\"N\",\"\",IF($Q607=\"-\",\"-\",IF(AND($Q607=\"Y\",'Enrollment Form'!$AS614=\"No\"),\"-\",IF(AND($Q607=\"Y\",'Enrollment Form'!$AS614=\"Yes\",'Enrollment Form'!$AT614<>\"\"),\"Y\",\"N\"))))","v":""},{"$f":"IF($B607=\"N\",\"\",IF(OR('Enrollment Form'!$B614<>\"Subscriber\",'Enrollment Form'!$C614=\"ROC\"),\"-\",IF(AND('Enrollment Form'!$B614=\"Subscriber\",'Enrollment Form'!$C614=\"Enroll\",'Enrollment Form'!$CV614<>\"\"),\"Y\",\"N\")))","v":""},{"$f":"IF($B607=\"N\",\"\",IF($S607=\"-\",\"-\",IF(AND($S607=\"Y\",'Enrollment Form'!$CV614=\"No\"),\"-\",IF(AND($S607=\"Y\",'Enrollment Form'!$CV614=\"Yes\",'Enrollment Form'!$CW614<>\"\"),\"Y\",\"N\"))))","v":""},{"$f":"IF(OR('Enrollment Form'!$AY614=\"Yes\",'Enrollment Form'!$AY614=\"\"),\"-\",IF(OR(AND('Enrollment Form'!$AY614=\"No\",ISERROR(FIND(\"HMO\",VLOOKUP('Enrollment Form'!G614,'Enrollment Form'!H$11:J$1000,3,FALSE),1))=FALSE,COUNTA('Enrollment Form'!$AZ614:$BC614)=4),AND('Enrollment Form'!$AY614=\"No\",ISERROR(FIND(\"HMO\",VLOOKUP('Enrollment Form'!G614,'Enrollment Form'!H$11:J$1000,3,FALSE),1))=FALSE,COUNTA('Enrollment Form'!$BT614:$BW614)=4)),\"Y\",\"N\"))","v":"-"},{"$f":"IF($B607=\"N\",\"\",IF('Enrollment Form'!$B614=\"Subscriber\",\"-\",IF(COUNTA('Enrollment Form'!$BL614,'Enrollment Form'!$BN614)=2,\"Y\",\"N\")))","v":""},{"$f":"IF($B607=\"N\",\"\",IF(OR('Enrollment Form'!$AX614=\"\",'Enrollment Form'!$AX614=\"No\"),\"-\",IF(AND('Enrollment Form'!$AX614=\"Yes\",COUNTA('Enrollment Form'!$CR614)=1),\"Y\",\"N\")))","v":""},{"$f":"IF(OR('Enrollment Form'!$CR614=\"\",'Enrollment Form'!$CR614=\"No\"),\"-\",IF(COUNTA('Enrollment Form'!$CT614:$CU614)=2,\"Y\",\"N\"))","v":"-"},{"$f":"IF($B607=\"N\",\"\",IF(COUNTIF('Enrollment Form'!$DG614:$DP614,\"Other\")=COUNTA('Enrollment Form'!$DK614,'Enrollment Form'!$DH614,'Enrollment Form'!$DN614,'Enrollment Form'!$DQ614),\"Y\",\"N\"))","v":""},{"$f":"IF($B607=\"N\",\"\",IF(OR('Enrollment Form'!B614<>\"Subscriber\",'Enrollment Form'!C614=\"ROC\",COUNTIF('Enrollment Form'!AV614:AW614,\"Yes\")>=1),\"-\",IF(AND('Enrollment Form'!C614=\"Enroll\",COUNTIF('Enrollment Form'!AV614:AW614,\"No\")=2,'Enrollment Form'!AX614=\"\"),\"N\",\"Y\")))","v":""},{"$f":"IF(OR(B607=\"N\",'Enrollment Form'!B614<>\"Subscriber\",'Enrollment Form'!C614=\"ROC\",'Enrollment Form'!O614<>\"Multiple of Salary\"),\"-\",IF(COUNTA('Enrollment Form'!T614:U614)<2,\"N\",\"Y\"))","v":"-"},{"$f":"IF(B607=\"N\",\"\",IF(OR('Enrollment Form'!C614=\"ROC\",'Enrollment Form'!B614<>\"Subscriber\",'Enrollment Form'!O614=\"Waive\",'Enrollment Form'!O614=\"\"),\"-\",IF('Enrollment Form'!P614=\"\",\"N\",\"Y\")))","v":""},{"$f":"IF($B607=\"N\",\"\",IF(AND('Enrollment Form'!$C614=\"ROC\",'Enrollment Form'!$DR614<>\"\"),\"Y\",IF(AND('Enrollment Form'!$C614=\"ROC\",'Enrollment Form'!$DR614=\"\"),\"N\",IF(AND('Enrollment Form'!$C614=\"Enroll\",'Enrollment Form'!$B614=\"Subscriber\",'Enrollment Form'!$CX614=\"No\",'Enrollment Form'!$DR614=\"\"),\"N\",IF(AND('Enrollment Form'!$C614=\"Enroll\",'Enrollment Form'!$B614=\"Subscriber\",'Enrollment Form'!$CX614=\"Yes\"),\"-\",\"Y\")))))","v":""},{"$f":"IF($B607=\"N\",\"\",IF(AND('Enrollment Form'!$C614=\"ROC\",'Enrollment Form'!$DS614<>\"\"),\"Y\",IF(AND('Enrollment Form'!$C614=\"ROC\",'Enrollment Form'!$DS614=\"\"),\"N\",IF(AND('Enrollment Form'!$C614=\"Enroll\",'Enrollment Form'!$B614=\"Subscriber\",'Enrollment Form'!$CX614=\"No\",'Enrollment Form'!$DS614=\"\"),\"N\",IF(AND('Enrollment Form'!$C614=\"Enroll\",'Enrollment Form'!$B614=\"Subscriber\",'Enrollment Form'!$CX614=\"Yes\"),\"-\",\"Y\")))))","v":""},{"$f":"IF('Enrollment Form'!AH614=\"\",\"\",IF(ISERROR(SEARCH(\".\",'Enrollment Form'!AH614,SEARCH(\"@\",'Enrollment Form'!AH614))),\"N\",\"Y\"))","v":""},{"$f":"IF(OR($B607=\"N\",'Enrollment Form'!$G614=\"\"),\"\",IF('Enrollment Form'!$B614<>\"Subscriber\",\"-\",IF(COUNTIF('Enrollment Form'!$AV614:$AW614,\"Yes\")=2,\"N\",\"Y\")))","v":""},{"$f":"IF(OR('Enrollment Form'!$CJ614=\"\",'Enrollment Form'!$CJ614=\"No\"),\"-\",IF(AND('Enrollment Form'!$CJ614=\"Yes\",'Enrollment Form'!$CK614=\"\"),\"N\",\"Y\"))","v":"-"},{"$f":"IF(OR('Enrollment Form'!$CL614=\"\",'Enrollment Form'!$CL614=\"No\"),\"-\",IF(AND('Enrollment Form'!$CL614=\"Yes\",'Enrollment Form'!$CM614=\"\"),\"N\",\"Y\"))","v":"-"},{"$f":"IF(OR('Enrollment Form'!$CN614=\"\",'Enrollment Form'!$CN614=\"No\"),\"-\",IF(AND('Enrollment Form'!$CN614=\"Yes\",'Enrollment Form'!$CO614=\"\"),\"N\",\"Y\"))","v":"-"},{"$f":"IF(OR('Enrollment Form'!$CN614=\"\",'Enrollment Form'!$CN614=\"No\"),\"-\",IF(AND('Enrollment Form'!$CN614=\"Yes\",'Enrollment Form'!$CP614=\"\"),\"N\",\"Y\"))","v":"-"},{"$f":"IF('Enrollment Form'!B614<>\"Subscriber\",\"-\",IF(AND('Enrollment Form'!B614=\"Subscriber\",'Enrollment Form'!C614=\"Enroll\",'Enrollment Form'!AA614=\"\"),\"N\",\"Y\"))","v":"-"},{"$f":"IF(OR('Enrollment Form'!B614=\"Subscriber\",'Enrollment Form'!B614=\"\"),\"-\",IF('Enrollment Form'!BP614=\"\",\"N\",\"Y\"))","v":"-"},{"$f":"IF('Enrollment Form'!B614<>\"Subscriber\",\"-\",IF(AND('Enrollment Form'!B614=\"Subscriber\",'Enrollment Form'!G614=\"\"),\"N\",\"Y\"))","v":"-"},{"$f":"IF('Enrollment Form'!A614=\"\",\"\",IF('Enrollment Form'!B614=\"Subscriber\",\"-\",IF(AND('Enrollment Form'!B614<>\"Subscriber\",'Enrollment Form'!G614='Enrollment Form'!H614),\"N\",\"Y\")))","v":""},0]
[615,{"$f":"IF('Enrollment Form'!$A615<>\"\",\"Y\",\"N\")","v":"N"},{"$f":"IF(AND('Enrollment Form'!$B615=\"\",'Enrollment Form'!$C615<>\"\"),\"N\",IF($B608=\"N\",\"\",\"Y\"))","v":""},{"$f":"IF(OR($B608=\"N\",'Enrollment Form'!G615=\"\"),\"\",IF('Enrollment Form'!$B615<>\"Subscriber\",\"\",IF('Enrollment Form'!$G615='Enrollment Form'!$H615,\"Y\",\"N\")))","v":""},{"$f":"IF($B608=\"N\",\"\",IF(AND(COUNTIFS('Enrollment Form'!$H$11:$H$1000,'Enrollment Form'!$H615,'Enrollment Form'!$B$11:$B$1000,'Enrollment Form'!$B615)>1,'Enrollment Form'!$H615<>\"\"),\"N\",\"Y\"))","v":""},{"$f":"IF($B608=\"N\",\"\",IF(LEN('Enrollment Form'!$Y615)=0,\"\",IF(LEN('Enrollment Form'!$Y615)<>5,\"N\",\"Y\")))","v":""},{"$f":"IF($B608=\"N\",\"\",IF(LEN('Enrollment Form'!$AD615=0),\"\",IF(LEN('Enrollment Form'!$AD615)<>5,\"N\",\"Y\")))","v":""},{"$f":"IF($B608=\"N\",\"\",IF(LEN('Enrollment Form'!$BS615=0),\"\",IF(LEN('Enrollment Form'!$BS615)<>5,\"N\",\"Y\")))","v":""},{"$f":"IF($B608=\"N\",\"\",IF(LEN('Enrollment Form'!$AE615)=0,\"\",IF(LEN('Enrollment Form'!$AE615)<>10,\"N\",\"Y\")))","v":""},{"$f":"IF($B608=\"N\",\"\",IF(LEN('Enrollment Form'!$AF615)=0,\"\",IF(LEN('Enrollment Form'!$AF615)<>10,\"N\",\"Y\")))","v":""},{"$f":"IF('Enrollment Form'!$O615<>\"Graded\",\"-\",IF(AND('Enrollment Form'!$O615=\"Graded\",'Enrollment Form'!$AR615<>\"\"),\"Y\",\"N\"))","v":"-"},{"$f":"IF($B608=\"N\",\"\",IF(OR('Enrollment Form'!$B615<>\"Subscriber\",'Enrollment Form'!$C615=\"ROC\"),\"-\",IF(AND('Enrollment Form'!$B615=\"Subscriber\",'Enrollment Form'!$C615=\"Enroll\",'Enrollment Form'!$AJ615<>\"\"),\"Y\",\"N\")))","v":""},{"$f":"IF($B608=\"N\",\"\",IF(OR('Enrollment Form'!$B615<>\"Subscriber\",'Enrollment Form'!$C615=\"ROC\"),\"-\",IF(AND('Enrollment Form'!$B615=\"Subscriber\",'Enrollment Form'!$C615=\"Enroll\",'Enrollment Form'!$AK615<>\"\"),\"Y\",\"N\")))","v":""},{"$f":"IF($B608=\"N\",\"\",IF(OR('Enrollment Form'!$B615<>\"Subscriber\",'Enrollment Form'!$C615=\"ROC\"),\"-\",IF(AND('Enrollment Form'!$B615=\"Subscriber\",'Enrollment Form'!$C615=\"Enroll\",'Enrollment Form'!$AL615<>\"\"),\"Y\",\"N\")))","v":""},{"$f":"IF($B608=\"N\",\"\",IF(OR('Enrollment Form'!$B615<>\"Subscriber\",'Enrollment Form'!$C615=\"ROC\"),\"-\",IF(AND('Enrollment Form'!$B615=\"Subscriber\",'Enrollment Form'!$C615=\"Enroll\",'Enrollment Form'!$AP615<>\"\"),\"Y\",\"N\")))","v":""},{"$f":"IF($B608=\"N\",\"\",IF(OR('Enrollment Form'!$B615<>\"Subscriber\",'Enrollment Form'!$C615=\"ROC\"),\"-\",IF(AND('Enrollment Form'!$B615=\"Subscriber\",'Enrollment Form'!$C615=\"Enroll\",'Enrollment Form'!$AQ615<>\"\"),\"Y\",\"N\")))","v":""},{"$f":"IF($B608=\"N\",\"\",IF(OR('Enrollment Form'!$B615<>\"Subscriber\",'Enrollment Form'!$C615=\"ROC\"),\"-\",IF(AND('Enrollment Form'!$B615=\"Subscriber\",'Enrollment Form'!$C615=\"Enroll\",'Enrollment Form'!$AS615<>\"\"),\"Y\",\"N\")))","v":""},{"$f":"IF($B608=\"N\",\"\",IF($Q608=\"-\",\"-\",IF(AND($Q608=\"Y\",'Enrollment Form'!$AS615=\"No\"),\"-\",IF(AND($Q608=\"Y\",'Enrollment Form'!$AS615=\"Yes\",'Enrollment Form'!$AT615<>\"\"),\"Y\",\"N\"))))","v":""},{"$f":"IF($B608=\"N\",\"\",IF(OR('Enrollment Form'!$B615<>\"Subscriber\",'Enrollment Form'!$C615=\"ROC\"),\"-\",IF(AND('Enrollment Form'!$B615=\"Subscriber\",'Enrollment Form'!$C615=\"Enroll\",'Enrollment Form'!$CV615<>\"\"),\"Y\",\"N\")))","v":""},{"$f":"IF($B608=\"N\",\"\",IF($S608=\"-\",\"-\",IF(AND($S608=\"Y\",'Enrollment Form'!$CV615=\"No\"),\"-\",IF(AND($S608=\"Y\",'Enrollment Form'!$CV615=\"Yes\",'Enrollment Form'!$CW615<>\"\"),\"Y\",\"N\"))))","v":""},{"$f":"IF(OR('Enrollment Form'!$AY615=\"Yes\",'Enrollment Form'!$AY615=\"\"),\"-\",IF(OR(AND('Enrollment Form'!$AY615=\"No\",ISERROR(FIND(\"HMO\",VLOOKUP('Enrollment Form'!G615,'Enrollment Form'!H$11:J$1000,3,FALSE),1))=FALSE,COUNTA('Enrollment Form'!$AZ615:$BC615)=4),AND('Enrollment Form'!$AY615=\"No\",ISERROR(FIND(\"HMO\",VLOOKUP('Enrollment Form'!G615,'Enrollment Form'!H$11:J$1000,3,FALSE),1))=FALSE,COUNTA('Enrollment Form'!$BT615:$BW615)=4)),\"Y\",\"N\"))","v":"-"},{"$f":"IF($B608=\"N\",\"\",IF('Enrollment Form'!$B615=\"Subscriber\",\"-\",IF(COUNTA('Enrollment Form'!$BL615,'Enrollment Form'!$BN615)=2,\"Y\",\"N\")))","v":""},{"$f":"IF($B608=\"N\",\"\",IF(OR('Enrollment Form'!$AX615=\"\",'Enrollment Form'!$AX615=\"No\"),\"-\",IF(AND('Enrollment Form'!$AX615=\"Yes\",COUNTA('Enrollment Form'!$CR615)=1),\"Y\",\"N\")))","v":""},{"$f":"IF(OR('Enrollment Form'!$CR615=\"\",'Enrollment Form'!$CR615=\"No\"),\"-\",IF(COUNTA('Enrollment Form'!$CT615:$CU615)=2,\"Y\",\"N\"))","v":"-"},{"$f":"IF($B608=\"N\",\"\",IF(COUNTIF('Enrollment Form'!$DG615:$DP615,\"Other\")=COUNTA('Enrollment Form'!$DK615,'Enrollment Form'!$DH615,'Enrollment Form'!$DN615,'Enrollment Form'!$DQ615),\"Y\",\"N\"))","v":""},{"$f":"IF($B608=\"N\",\"\",IF(OR('Enrollment Form'!B615<>\"Subscriber\",'Enrollment Form'!C615=\"ROC\",COUNTIF('Enrollment Form'!AV615:AW615,\"Yes\")>=1),\"-\",IF(AND('Enrollment Form'!C615=\"Enroll\",COUNTIF('Enrollment Form'!AV615:AW615,\"No\")=2,'Enrollment Form'!AX615=\"\"),\"N\",\"Y\")))","v":""},{"$f":"IF(OR(B608=\"N\",'Enrollment Form'!B615<>\"Subscriber\",'Enrollment Form'!C615=\"ROC\",'Enrollment Form'!O615<>\"Multiple of Salary\"),\"-\",IF(COUNTA('Enrollment Form'!T615:U615)<2,\"N\",\"Y\"))","v":"-"},{"$f":"IF(B608=\"N\",\"\",IF(OR('Enrollment Form'!C615=\"ROC\",'Enrollment Form'!B615<>\"Subscriber\",'Enrollment Form'!O615=\"Waive\",'Enrollment Form'!O615=\"\"),\"-\",IF('Enrollment Form'!P615=\"\",\"N\",\"Y\")))","v":""},{"$f":"IF($B608=\"N\",\"\",IF(AND('Enrollment Form'!$C615=\"ROC\",'Enrollment Form'!$DR615<>\"\"),\"Y\",IF(AND('Enrollment Form'!$C615=\"ROC\",'Enrollment Form'!$DR615=\"\"),\"N\",IF(AND('Enrollment Form'!$C615=\"Enroll\",'Enrollment Form'!$B615=\"Subscriber\",'Enrollment Form'!$CX615=\"No\",'Enrollment Form'!$DR615=\"\"),\"N\",IF(AND('Enrollment Form'!$C615=\"Enroll\",'Enrollment Form'!$B615=\"Subscriber\",'Enrollment Form'!$CX615=\"Yes\"),\"-\",\"Y\")))))","v":""},{"$f":"IF($B608=\"N\",\"\",IF(AND('Enrollment Form'!$C615=\"ROC\",'Enrollment Form'!$DS615<>\"\"),\"Y\",IF(AND('Enrollment Form'!$C615=\"ROC\",'Enrollment Form'!$DS615=\"\"),\"N\",IF(AND('Enrollment Form'!$C615=\"Enroll\",'Enrollment Form'!$B615=\"Subscriber\",'Enrollment Form'!$CX615=\"No\",'Enrollment Form'!$DS615=\"\"),\"N\",IF(AND('Enrollment Form'!$C615=\"Enroll\",'Enrollment Form'!$B615=\"Subscriber\",'Enrollment Form'!$CX615=\"Yes\"),\"-\",\"Y\")))))","v":""},{"$f":"IF('Enrollment Form'!AH615=\"\",\"\",IF(ISERROR(SEARCH(\".\",'Enrollment Form'!AH615,SEARCH(\"@\",'Enrollment Form'!AH615))),\"N\",\"Y\"))","v":""},{"$f":"IF(OR($B608=\"N\",'Enrollment Form'!$G615=\"\"),\"\",IF('Enrollment Form'!$B615<>\"Subscriber\",\"-\",IF(COUNTIF('Enrollment Form'!$AV615:$AW615,\"Yes\")=2,\"N\",\"Y\")))","v":""},{"$f":"IF(OR('Enrollment Form'!$CJ615=\"\",'Enrollment Form'!$CJ615=\"No\"),\"-\",IF(AND('Enrollment Form'!$CJ615=\"Yes\",'Enrollment Form'!$CK615=\"\"),\"N\",\"Y\"))","v":"-"},{"$f":"IF(OR('Enrollment Form'!$CL615=\"\",'Enrollment Form'!$CL615=\"No\"),\"-\",IF(AND('Enrollment Form'!$CL615=\"Yes\",'Enrollment Form'!$CM615=\"\"),\"N\",\"Y\"))","v":"-"},{"$f":"IF(OR('Enrollment Form'!$CN615=\"\",'Enrollment Form'!$CN615=\"No\"),\"-\",IF(AND('Enrollment Form'!$CN615=\"Yes\",'Enrollment Form'!$CO615=\"\"),\"N\",\"Y\"))","v":"-"},{"$f":"IF(OR('Enrollment Form'!$CN615=\"\",'Enrollment Form'!$CN615=\"No\"),\"-\",IF(AND('Enrollment Form'!$CN615=\"Yes\",'Enrollment Form'!$CP615=\"\"),\"N\",\"Y\"))","v":"-"},{"$f":"IF('Enrollment Form'!B615<>\"Subscriber\",\"-\",IF(AND('Enrollment Form'!B615=\"Subscriber\",'Enrollment Form'!C615=\"Enroll\",'Enrollment Form'!AA615=\"\"),\"N\",\"Y\"))","v":"-"},{"$f":"IF(OR('Enrollment Form'!B615=\"Subscriber\",'Enrollment Form'!B615=\"\"),\"-\",IF('Enrollment Form'!BP615=\"\",\"N\",\"Y\"))","v":"-"},{"$f":"IF('Enrollment Form'!B615<>\"Subscriber\",\"-\",IF(AND('Enrollment Form'!B615=\"Subscriber\",'Enrollment Form'!G615=\"\"),\"N\",\"Y\"))","v":"-"},{"$f":"IF('Enrollment Form'!A615=\"\",\"\",IF('Enrollment Form'!B615=\"Subscriber\",\"-\",IF(AND('Enrollment Form'!B615<>\"Subscriber\",'Enrollment Form'!G615='Enrollment Form'!H615),\"N\",\"Y\")))","v":""},0]
[616,{"$f":"IF('Enrollment Form'!$A616<>\"\",\"Y\",\"N\")","v":"N"},{"$f":"IF(AND('Enrollment Form'!$B616=\"\",'Enrollment Form'!$C616<>\"\"),\"N\",IF($B609=\"N\",\"\",\"Y\"))","v":""},{"$f":"IF(OR($B609=\"N\",'Enrollment Form'!G616=\"\"),\"\",IF('Enrollment Form'!$B616<>\"Subscriber\",\"\",IF('Enrollment Form'!$G616='Enrollment Form'!$H616,\"Y\",\"N\")))","v":""},{"$f":"IF($B609=\"N\",\"\",IF(AND(COUNTIFS('Enrollment Form'!$H$11:$H$1000,'Enrollment Form'!$H616,'Enrollment Form'!$B$11:$B$1000,'Enrollment Form'!$B616)>1,'Enrollment Form'!$H616<>\"\"),\"N\",\"Y\"))","v":""},{"$f":"IF($B609=\"N\",\"\",IF(LEN('Enrollment Form'!$Y616)=0,\"\",IF(LEN('Enrollment Form'!$Y616)<>5,\"N\",\"Y\")))","v":""},{"$f":"IF($B609=\"N\",\"\",IF(LEN('Enrollment Form'!$AD616=0),\"\",IF(LEN('Enrollment Form'!$AD616)<>5,\"N\",\"Y\")))","v":""},{"$f":"IF($B609=\"N\",\"\",IF(LEN('Enrollment Form'!$BS616=0),\"\",IF(LEN('Enrollment Form'!$BS616)<>5,\"N\",\"Y\")))","v":""},{"$f":"IF($B609=\"N\",\"\",IF(LEN('Enrollment Form'!$AE616)=0,\"\",IF(LEN('Enrollment Form'!$AE616)<>10,\"N\",\"Y\")))","v":""},{"$f":"IF($B609=\"N\",\"\",IF(LEN('Enrollment Form'!$AF616)=0,\"\",IF(LEN('Enrollment Form'!$AF616)<>10,\"N\",\"Y\")))","v":""},{"$f":"IF('Enrollment Form'!$O616<>\"Graded\",\"-\",IF(AND('Enrollment Form'!$O616=\"Graded\",'Enrollment Form'!$AR616<>\"\"),\"Y\",\"N\"))","v":"-"},{"$f":"IF($B609=\"N\",\"\",IF(OR('Enrollment Form'!$B616<>\"Subscriber\",'Enrollment Form'!$C616=\"ROC\"),\"-\",IF(AND('Enrollment Form'!$B616=\"Subscriber\",'Enrollment Form'!$C616=\"Enroll\",'Enrollment Form'!$AJ616<>\"\"),\"Y\",\"N\")))","v":""},{"$f":"IF($B609=\"N\",\"\",IF(OR('Enrollment Form'!$B616<>\"Subscriber\",'Enrollment Form'!$C616=\"ROC\"),\"-\",IF(AND('Enrollment Form'!$B616=\"Subscriber\",'Enrollment Form'!$C616=\"Enroll\",'Enrollment Form'!$AK616<>\"\"),\"Y\",\"N\")))","v":""},{"$f":"IF($B609=\"N\",\"\",IF(OR('Enrollment Form'!$B616<>\"Subscriber\",'Enrollment Form'!$C616=\"ROC\"),\"-\",IF(AND('Enrollment Form'!$B616=\"Subscriber\",'Enrollment Form'!$C616=\"Enroll\",'Enrollment Form'!$AL616<>\"\"),\"Y\",\"N\")))","v":""},{"$f":"IF($B609=\"N\",\"\",IF(OR('Enrollment Form'!$B616<>\"Subscriber\",'Enrollment Form'!$C616=\"ROC\"),\"-\",IF(AND('Enrollment Form'!$B616=\"Subscriber\",'Enrollment Form'!$C616=\"Enroll\",'Enrollment Form'!$AP616<>\"\"),\"Y\",\"N\")))","v":""},{"$f":"IF($B609=\"N\",\"\",IF(OR('Enrollment Form'!$B616<>\"Subscriber\",'Enrollment Form'!$C616=\"ROC\"),\"-\",IF(AND('Enrollment Form'!$B616=\"Subscriber\",'Enrollment Form'!$C616=\"Enroll\",'Enrollment Form'!$AQ616<>\"\"),\"Y\",\"N\")))","v":""},{"$f":"IF($B609=\"N\",\"\",IF(OR('Enrollment Form'!$B616<>\"Subscriber\",'Enrollment Form'!$C616=\"ROC\"),\"-\",IF(AND('Enrollment Form'!$B616=\"Subscriber\",'Enrollment Form'!$C616=\"Enroll\",'Enrollment Form'!$AS616<>\"\"),\"Y\",\"N\")))","v":""},{"$f":"IF($B609=\"N\",\"\",IF($Q609=\"-\",\"-\",IF(AND($Q609=\"Y\",'Enrollment Form'!$AS616=\"No\"),\"-\",IF(AND($Q609=\"Y\",'Enrollment Form'!$AS616=\"Yes\",'Enrollment Form'!$AT616<>\"\"),\"Y\",\"N\"))))","v":""},{"$f":"IF($B609=\"N\",\"\",IF(OR('Enrollment Form'!$B616<>\"Subscriber\",'Enrollment Form'!$C616=\"ROC\"),\"-\",IF(AND('Enrollment Form'!$B616=\"Subscriber\",'Enrollment Form'!$C616=\"Enroll\",'Enrollment Form'!$CV616<>\"\"),\"Y\",\"N\")))","v":""},{"$f":"IF($B609=\"N\",\"\",IF($S609=\"-\",\"-\",IF(AND($S609=\"Y\",'Enrollment Form'!$CV616=\"No\"),\"-\",IF(AND($S609=\"Y\",'Enrollment Form'!$CV616=\"Yes\",'Enrollment Form'!$CW616<>\"\"),\"Y\",\"N\"))))","v":""},{"$f":"IF(OR('Enrollment Form'!$AY616=\"Yes\",'Enrollment Form'!$AY616=\"\"),\"-\",IF(OR(AND('Enrollment Form'!$AY616=\"No\",ISERROR(FIND(\"HMO\",VLOOKUP('Enrollment Form'!G616,'Enrollment Form'!H$11:J$1000,3,FALSE),1))=FALSE,COUNTA('Enrollment Form'!$AZ616:$BC616)=4),AND('Enrollment Form'!$AY616=\"No\",ISERROR(FIND(\"HMO\",VLOOKUP('Enrollment Form'!G616,'Enrollment Form'!H$11:J$1000,3,FALSE),1))=FALSE,COUNTA('Enrollment Form'!$BT616:$BW616)=4)),\"Y\",\"N\"))","v":"-"},{"$f":"IF($B609=\"N\",\"\",IF('Enrollment Form'!$B616=\"Subscriber\",\"-\",IF(COUNTA('Enrollment Form'!$BL616,'Enrollment Form'!$BN616)=2,\"Y\",\"N\")))","v":""},{"$f":"IF($B609=\"N\",\"\",IF(OR('Enrollment Form'!$AX616=\"\",'Enrollment Form'!$AX616=\"No\"),\"-\",IF(AND('Enrollment Form'!$AX616=\"Yes\",COUNTA('Enrollment Form'!$CR616)=1),\"Y\",\"N\")))","v":""},{"$f":"IF(OR('Enrollment Form'!$CR616=\"\",'Enrollment Form'!$CR616=\"No\"),\"-\",IF(COUNTA('Enrollment Form'!$CT616:$CU616)=2,\"Y\",\"N\"))","v":"-"},{"$f":"IF($B609=\"N\",\"\",IF(COUNTIF('Enrollment Form'!$DG616:$DP616,\"Other\")=COUNTA('Enrollment Form'!$DK616,'Enrollment Form'!$DH616,'Enrollment Form'!$DN616,'Enrollment Form'!$DQ616),\"Y\",\"N\"))","v":""},{"$f":"IF($B609=\"N\",\"\",IF(OR('Enrollment Form'!B616<>\"Subscriber\",'Enrollment Form'!C616=\"ROC\",COUNTIF('Enrollment Form'!AV616:AW616,\"Yes\")>=1),\"-\",IF(AND('Enrollment Form'!C616=\"Enroll\",COUNTIF('Enrollment Form'!AV616:AW616,\"No\")=2,'Enrollment Form'!AX616=\"\"),\"N\",\"Y\")))","v":""},{"$f":"IF(OR(B609=\"N\",'Enrollment Form'!B616<>\"Subscriber\",'Enrollment Form'!C616=\"ROC\",'Enrollment Form'!O616<>\"Multiple of Salary\"),\"-\",IF(COUNTA('Enrollment Form'!T616:U616)<2,\"N\",\"Y\"))","v":"-"},{"$f":"IF(B609=\"N\",\"\",IF(OR('Enrollment Form'!C616=\"ROC\",'Enrollment Form'!B616<>\"Subscriber\",'Enrollment Form'!O616=\"Waive\",'Enrollment Form'!O616=\"\"),\"-\",IF('Enrollment Form'!P616=\"\",\"N\",\"Y\")))","v":""},{"$f":"IF($B609=\"N\",\"\",IF(AND('Enrollment Form'!$C616=\"ROC\",'Enrollment Form'!$DR616<>\"\"),\"Y\",IF(AND('Enrollment Form'!$C616=\"ROC\",'Enrollment Form'!$DR616=\"\"),\"N\",IF(AND('Enrollment Form'!$C616=\"Enroll\",'Enrollment Form'!$B616=\"Subscriber\",'Enrollment Form'!$CX616=\"No\",'Enrollment Form'!$DR616=\"\"),\"N\",IF(AND('Enrollment Form'!$C616=\"Enroll\",'Enrollment Form'!$B616=\"Subscriber\",'Enrollment Form'!$CX616=\"Yes\"),\"-\",\"Y\")))))","v":""},{"$f":"IF($B609=\"N\",\"\",IF(AND('Enrollment Form'!$C616=\"ROC\",'Enrollment Form'!$DS616<>\"\"),\"Y\",IF(AND('Enrollment Form'!$C616=\"ROC\",'Enrollment Form'!$DS616=\"\"),\"N\",IF(AND('Enrollment Form'!$C616=\"Enroll\",'Enrollment Form'!$B616=\"Subscriber\",'Enrollment Form'!$CX616=\"No\",'Enrollment Form'!$DS616=\"\"),\"N\",IF(AND('Enrollment Form'!$C616=\"Enroll\",'Enrollment Form'!$B616=\"Subscriber\",'Enrollment Form'!$CX616=\"Yes\"),\"-\",\"Y\")))))","v":""},{"$f":"IF('Enrollment Form'!AH616=\"\",\"\",IF(ISERROR(SEARCH(\".\",'Enrollment Form'!AH616,SEARCH(\"@\",'Enrollment Form'!AH616))),\"N\",\"Y\"))","v":""},{"$f":"IF(OR($B609=\"N\",'Enrollment Form'!$G616=\"\"),\"\",IF('Enrollment Form'!$B616<>\"Subscriber\",\"-\",IF(COUNTIF('Enrollment Form'!$AV616:$AW616,\"Yes\")=2,\"N\",\"Y\")))","v":""},{"$f":"IF(OR('Enrollment Form'!$CJ616=\"\",'Enrollment Form'!$CJ616=\"No\"),\"-\",IF(AND('Enrollment Form'!$CJ616=\"Yes\",'Enrollment Form'!$CK616=\"\"),\"N\",\"Y\"))","v":"-"},{"$f":"IF(OR('Enrollment Form'!$CL616=\"\",'Enrollment Form'!$CL616=\"No\"),\"-\",IF(AND('Enrollment Form'!$CL616=\"Yes\",'Enrollment Form'!$CM616=\"\"),\"N\",\"Y\"))","v":"-"},{"$f":"IF(OR('Enrollment Form'!$CN616=\"\",'Enrollment Form'!$CN616=\"No\"),\"-\",IF(AND('Enrollment Form'!$CN616=\"Yes\",'Enrollment Form'!$CO616=\"\"),\"N\",\"Y\"))","v":"-"},{"$f":"IF(OR('Enrollment Form'!$CN616=\"\",'Enrollment Form'!$CN616=\"No\"),\"-\",IF(AND('Enrollment Form'!$CN616=\"Yes\",'Enrollment Form'!$CP616=\"\"),\"N\",\"Y\"))","v":"-"},{"$f":"IF('Enrollment Form'!B616<>\"Subscriber\",\"-\",IF(AND('Enrollment Form'!B616=\"Subscriber\",'Enrollment Form'!C616=\"Enroll\",'Enrollment Form'!AA616=\"\"),\"N\",\"Y\"))","v":"-"},{"$f":"IF(OR('Enrollment Form'!B616=\"Subscriber\",'Enrollment Form'!B616=\"\"),\"-\",IF('Enrollment Form'!BP616=\"\",\"N\",\"Y\"))","v":"-"},{"$f":"IF('Enrollment Form'!B616<>\"Subscriber\",\"-\",IF(AND('Enrollment Form'!B616=\"Subscriber\",'Enrollment Form'!G616=\"\"),\"N\",\"Y\"))","v":"-"},{"$f":"IF('Enrollment Form'!A616=\"\",\"\",IF('Enrollment Form'!B616=\"Subscriber\",\"-\",IF(AND('Enrollment Form'!B616<>\"Subscriber\",'Enrollment Form'!G616='Enrollment Form'!H616),\"N\",\"Y\")))","v":""},0]
[617,{"$f":"IF('Enrollment Form'!$A617<>\"\",\"Y\",\"N\")","v":"N"},{"$f":"IF(AND('Enrollment Form'!$B617=\"\",'Enrollment Form'!$C617<>\"\"),\"N\",IF($B610=\"N\",\"\",\"Y\"))","v":""},{"$f":"IF(OR($B610=\"N\",'Enrollment Form'!G617=\"\"),\"\",IF('Enrollment Form'!$B617<>\"Subscriber\",\"\",IF('Enrollment Form'!$G617='Enrollment Form'!$H617,\"Y\",\"N\")))","v":""},{"$f":"IF($B610=\"N\",\"\",IF(AND(COUNTIFS('Enrollment Form'!$H$11:$H$1000,'Enrollment Form'!$H617,'Enrollment Form'!$B$11:$B$1000,'Enrollment Form'!$B617)>1,'Enrollment Form'!$H617<>\"\"),\"N\",\"Y\"))","v":""},{"$f":"IF($B610=\"N\",\"\",IF(LEN('Enrollment Form'!$Y617)=0,\"\",IF(LEN('Enrollment Form'!$Y617)<>5,\"N\",\"Y\")))","v":""},{"$f":"IF($B610=\"N\",\"\",IF(LEN('Enrollment Form'!$AD617=0),\"\",IF(LEN('Enrollment Form'!$AD617)<>5,\"N\",\"Y\")))","v":""},{"$f":"IF($B610=\"N\",\"\",IF(LEN('Enrollment Form'!$BS617=0),\"\",IF(LEN('Enrollment Form'!$BS617)<>5,\"N\",\"Y\")))","v":""},{"$f":"IF($B610=\"N\",\"\",IF(LEN('Enrollment Form'!$AE617)=0,\"\",IF(LEN('Enrollment Form'!$AE617)<>10,\"N\",\"Y\")))","v":""},{"$f":"IF($B610=\"N\",\"\",IF(LEN('Enrollment Form'!$AF617)=0,\"\",IF(LEN('Enrollment Form'!$AF617)<>10,\"N\",\"Y\")))","v":""},{"$f":"IF('Enrollment Form'!$O617<>\"Graded\",\"-\",IF(AND('Enrollment Form'!$O617=\"Graded\",'Enrollment Form'!$AR617<>\"\"),\"Y\",\"N\"))","v":"-"},{"$f":"IF($B610=\"N\",\"\",IF(OR('Enrollment Form'!$B617<>\"Subscriber\",'Enrollment Form'!$C617=\"ROC\"),\"-\",IF(AND('Enrollment Form'!$B617=\"Subscriber\",'Enrollment Form'!$C617=\"Enroll\",'Enrollment Form'!$AJ617<>\"\"),\"Y\",\"N\")))","v":""},{"$f":"IF($B610=\"N\",\"\",IF(OR('Enrollment Form'!$B617<>\"Subscriber\",'Enrollment Form'!$C617=\"ROC\"),\"-\",IF(AND('Enrollment Form'!$B617=\"Subscriber\",'Enrollment Form'!$C617=\"Enroll\",'Enrollment Form'!$AK617<>\"\"),\"Y\",\"N\")))","v":""},{"$f":"IF($B610=\"N\",\"\",IF(OR('Enrollment Form'!$B617<>\"Subscriber\",'Enrollment Form'!$C617=\"ROC\"),\"-\",IF(AND('Enrollment Form'!$B617=\"Subscriber\",'Enrollment Form'!$C617=\"Enroll\",'Enrollment Form'!$AL617<>\"\"),\"Y\",\"N\")))","v":""},{"$f":"IF($B610=\"N\",\"\",IF(OR('Enrollment Form'!$B617<>\"Subscriber\",'Enrollment Form'!$C617=\"ROC\"),\"-\",IF(AND('Enrollment Form'!$B617=\"Subscriber\",'Enrollment Form'!$C617=\"Enroll\",'Enrollment Form'!$AP617<>\"\"),\"Y\",\"N\")))","v":""},{"$f":"IF($B610=\"N\",\"\",IF(OR('Enrollment Form'!$B617<>\"Subscriber\",'Enrollment Form'!$C617=\"ROC\"),\"-\",IF(AND('Enrollment Form'!$B617=\"Subscriber\",'Enrollment Form'!$C617=\"Enroll\",'Enrollment Form'!$AQ617<>\"\"),\"Y\",\"N\")))","v":""},{"$f":"IF($B610=\"N\",\"\",IF(OR('Enrollment Form'!$B617<>\"Subscriber\",'Enrollment Form'!$C617=\"ROC\"),\"-\",IF(AND('Enrollment Form'!$B617=\"Subscriber\",'Enrollment Form'!$C617=\"Enroll\",'Enrollment Form'!$AS617<>\"\"),\"Y\",\"N\")))","v":""},{"$f":"IF($B610=\"N\",\"\",IF($Q610=\"-\",\"-\",IF(AND($Q610=\"Y\",'Enrollment Form'!$AS617=\"No\"),\"-\",IF(AND($Q610=\"Y\",'Enrollment Form'!$AS617=\"Yes\",'Enrollment Form'!$AT617<>\"\"),\"Y\",\"N\"))))","v":""},{"$f":"IF($B610=\"N\",\"\",IF(OR('Enrollment Form'!$B617<>\"Subscriber\",'Enrollment Form'!$C617=\"ROC\"),\"-\",IF(AND('Enrollment Form'!$B617=\"Subscriber\",'Enrollment Form'!$C617=\"Enroll\",'Enrollment Form'!$CV617<>\"\"),\"Y\",\"N\")))","v":""},{"$f":"IF($B610=\"N\",\"\",IF($S610=\"-\",\"-\",IF(AND($S610=\"Y\",'Enrollment Form'!$CV617=\"No\"),\"-\",IF(AND($S610=\"Y\",'Enrollment Form'!$CV617=\"Yes\",'Enrollment Form'!$CW617<>\"\"),\"Y\",\"N\"))))","v":""},{"$f":"IF(OR('Enrollment Form'!$AY617=\"Yes\",'Enrollment Form'!$AY617=\"\"),\"-\",IF(OR(AND('Enrollment Form'!$AY617=\"No\",ISERROR(FIND(\"HMO\",VLOOKUP('Enrollment Form'!G617,'Enrollment Form'!H$11:J$1000,3,FALSE),1))=FALSE,COUNTA('Enrollment Form'!$AZ617:$BC617)=4),AND('Enrollment Form'!$AY617=\"No\",ISERROR(FIND(\"HMO\",VLOOKUP('Enrollment Form'!G617,'Enrollment Form'!H$11:J$1000,3,FALSE),1))=FALSE,COUNTA('Enrollment Form'!$BT617:$BW617)=4)),\"Y\",\"N\"))","v":"-"},{"$f":"IF($B610=\"N\",\"\",IF('Enrollment Form'!$B617=\"Subscriber\",\"-\",IF(COUNTA('Enrollment Form'!$BL617,'Enrollment Form'!$BN617)=2,\"Y\",\"N\")))","v":""},{"$f":"IF($B610=\"N\",\"\",IF(OR('Enrollment Form'!$AX617=\"\",'Enrollment Form'!$AX617=\"No\"),\"-\",IF(AND('Enrollment Form'!$AX617=\"Yes\",COUNTA('Enrollment Form'!$CR617)=1),\"Y\",\"N\")))","v":""},{"$f":"IF(OR('Enrollment Form'!$CR617=\"\",'Enrollment Form'!$CR617=\"No\"),\"-\",IF(COUNTA('Enrollment Form'!$CT617:$CU617)=2,\"Y\",\"N\"))","v":"-"},{"$f":"IF($B610=\"N\",\"\",IF(COUNTIF('Enrollment Form'!$DG617:$DP617,\"Other\")=COUNTA('Enrollment Form'!$DK617,'Enrollment Form'!$DH617,'Enrollment Form'!$DN617,'Enrollment Form'!$DQ617),\"Y\",\"N\"))","v":""},{"$f":"IF($B610=\"N\",\"\",IF(OR('Enrollment Form'!B617<>\"Subscriber\",'Enrollment Form'!C617=\"ROC\",COUNTIF('Enrollment Form'!AV617:AW617,\"Yes\")>=1),\"-\",IF(AND('Enrollment Form'!C617=\"Enroll\",COUNTIF('Enrollment Form'!AV617:AW617,\"No\")=2,'Enrollment Form'!AX617=\"\"),\"N\",\"Y\")))","v":""},{"$f":"IF(OR(B610=\"N\",'Enrollment Form'!B617<>\"Subscriber\",'Enrollment Form'!C617=\"ROC\",'Enrollment Form'!O617<>\"Multiple of Salary\"),\"-\",IF(COUNTA('Enrollment Form'!T617:U617)<2,\"N\",\"Y\"))","v":"-"},{"$f":"IF(B610=\"N\",\"\",IF(OR('Enrollment Form'!C617=\"ROC\",'Enrollment Form'!B617<>\"Subscriber\",'Enrollment Form'!O617=\"Waive\",'Enrollment Form'!O617=\"\"),\"-\",IF('Enrollment Form'!P617=\"\",\"N\",\"Y\")))","v":""},{"$f":"IF($B610=\"N\",\"\",IF(AND('Enrollment Form'!$C617=\"ROC\",'Enrollment Form'!$DR617<>\"\"),\"Y\",IF(AND('Enrollment Form'!$C617=\"ROC\",'Enrollment Form'!$DR617=\"\"),\"N\",IF(AND('Enrollment Form'!$C617=\"Enroll\",'Enrollment Form'!$B617=\"Subscriber\",'Enrollment Form'!$CX617=\"No\",'Enrollment Form'!$DR617=\"\"),\"N\",IF(AND('Enrollment Form'!$C617=\"Enroll\",'Enrollment Form'!$B617=\"Subscriber\",'Enrollment Form'!$CX617=\"Yes\"),\"-\",\"Y\")))))","v":""},{"$f":"IF($B610=\"N\",\"\",IF(AND('Enrollment Form'!$C617=\"ROC\",'Enrollment Form'!$DS617<>\"\"),\"Y\",IF(AND('Enrollment Form'!$C617=\"ROC\",'Enrollment Form'!$DS617=\"\"),\"N\",IF(AND('Enrollment Form'!$C617=\"Enroll\",'Enrollment Form'!$B617=\"Subscriber\",'Enrollment Form'!$CX617=\"No\",'Enrollment Form'!$DS617=\"\"),\"N\",IF(AND('Enrollment Form'!$C617=\"Enroll\",'Enrollment Form'!$B617=\"Subscriber\",'Enrollment Form'!$CX617=\"Yes\"),\"-\",\"Y\")))))","v":""},{"$f":"IF('Enrollment Form'!AH617=\"\",\"\",IF(ISERROR(SEARCH(\".\",'Enrollment Form'!AH617,SEARCH(\"@\",'Enrollment Form'!AH617))),\"N\",\"Y\"))","v":""},{"$f":"IF(OR($B610=\"N\",'Enrollment Form'!$G617=\"\"),\"\",IF('Enrollment Form'!$B617<>\"Subscriber\",\"-\",IF(COUNTIF('Enrollment Form'!$AV617:$AW617,\"Yes\")=2,\"N\",\"Y\")))","v":""},{"$f":"IF(OR('Enrollment Form'!$CJ617=\"\",'Enrollment Form'!$CJ617=\"No\"),\"-\",IF(AND('Enrollment Form'!$CJ617=\"Yes\",'Enrollment Form'!$CK617=\"\"),\"N\",\"Y\"))","v":"-"},{"$f":"IF(OR('Enrollment Form'!$CL617=\"\",'Enrollment Form'!$CL617=\"No\"),\"-\",IF(AND('Enrollment Form'!$CL617=\"Yes\",'Enrollment Form'!$CM617=\"\"),\"N\",\"Y\"))","v":"-"},{"$f":"IF(OR('Enrollment Form'!$CN617=\"\",'Enrollment Form'!$CN617=\"No\"),\"-\",IF(AND('Enrollment Form'!$CN617=\"Yes\",'Enrollment Form'!$CO617=\"\"),\"N\",\"Y\"))","v":"-"},{"$f":"IF(OR('Enrollment Form'!$CN617=\"\",'Enrollment Form'!$CN617=\"No\"),\"-\",IF(AND('Enrollment Form'!$CN617=\"Yes\",'Enrollment Form'!$CP617=\"\"),\"N\",\"Y\"))","v":"-"},{"$f":"IF('Enrollment Form'!B617<>\"Subscriber\",\"-\",IF(AND('Enrollment Form'!B617=\"Subscriber\",'Enrollment Form'!C617=\"Enroll\",'Enrollment Form'!AA617=\"\"),\"N\",\"Y\"))","v":"-"},{"$f":"IF(OR('Enrollment Form'!B617=\"Subscriber\",'Enrollment Form'!B617=\"\"),\"-\",IF('Enrollment Form'!BP617=\"\",\"N\",\"Y\"))","v":"-"},{"$f":"IF('Enrollment Form'!B617<>\"Subscriber\",\"-\",IF(AND('Enrollment Form'!B617=\"Subscriber\",'Enrollment Form'!G617=\"\"),\"N\",\"Y\"))","v":"-"},{"$f":"IF('Enrollment Form'!A617=\"\",\"\",IF('Enrollment Form'!B617=\"Subscriber\",\"-\",IF(AND('Enrollment Form'!B617<>\"Subscriber\",'Enrollment Form'!G617='Enrollment Form'!H617),\"N\",\"Y\")))","v":""},0]
[618,{"$f":"IF('Enrollment Form'!$A618<>\"\",\"Y\",\"N\")","v":"N"},{"$f":"IF(AND('Enrollment Form'!$B618=\"\",'Enrollment Form'!$C618<>\"\"),\"N\",IF($B611=\"N\",\"\",\"Y\"))","v":""},{"$f":"IF(OR($B611=\"N\",'Enrollment Form'!G618=\"\"),\"\",IF('Enrollment Form'!$B618<>\"Subscriber\",\"\",IF('Enrollment Form'!$G618='Enrollment Form'!$H618,\"Y\",\"N\")))","v":""},{"$f":"IF($B611=\"N\",\"\",IF(AND(COUNTIFS('Enrollment Form'!$H$11:$H$1000,'Enrollment Form'!$H618,'Enrollment Form'!$B$11:$B$1000,'Enrollment Form'!$B618)>1,'Enrollment Form'!$H618<>\"\"),\"N\",\"Y\"))","v":""},{"$f":"IF($B611=\"N\",\"\",IF(LEN('Enrollment Form'!$Y618)=0,\"\",IF(LEN('Enrollment Form'!$Y618)<>5,\"N\",\"Y\")))","v":""},{"$f":"IF($B611=\"N\",\"\",IF(LEN('Enrollment Form'!$AD618=0),\"\",IF(LEN('Enrollment Form'!$AD618)<>5,\"N\",\"Y\")))","v":""},{"$f":"IF($B611=\"N\",\"\",IF(LEN('Enrollment Form'!$BS618=0),\"\",IF(LEN('Enrollment Form'!$BS618)<>5,\"N\",\"Y\")))","v":""},{"$f":"IF($B611=\"N\",\"\",IF(LEN('Enrollment Form'!$AE618)=0,\"\",IF(LEN('Enrollment Form'!$AE618)<>10,\"N\",\"Y\")))","v":""},{"$f":"IF($B611=\"N\",\"\",IF(LEN('Enrollment Form'!$AF618)=0,\"\",IF(LEN('Enrollment Form'!$AF618)<>10,\"N\",\"Y\")))","v":""},{"$f":"IF('Enrollment Form'!$O618<>\"Graded\",\"-\",IF(AND('Enrollment Form'!$O618=\"Graded\",'Enrollment Form'!$AR618<>\"\"),\"Y\",\"N\"))","v":"-"},{"$f":"IF($B611=\"N\",\"\",IF(OR('Enrollment Form'!$B618<>\"Subscriber\",'Enrollment Form'!$C618=\"ROC\"),\"-\",IF(AND('Enrollment Form'!$B618=\"Subscriber\",'Enrollment Form'!$C618=\"Enroll\",'Enrollment Form'!$AJ618<>\"\"),\"Y\",\"N\")))","v":""},{"$f":"IF($B611=\"N\",\"\",IF(OR('Enrollment Form'!$B618<>\"Subscriber\",'Enrollment Form'!$C618=\"ROC\"),\"-\",IF(AND('Enrollment Form'!$B618=\"Subscriber\",'Enrollment Form'!$C618=\"Enroll\",'Enrollment Form'!$AK618<>\"\"),\"Y\",\"N\")))","v":""},{"$f":"IF($B611=\"N\",\"\",IF(OR('Enrollment Form'!$B618<>\"Subscriber\",'Enrollment Form'!$C618=\"ROC\"),\"-\",IF(AND('Enrollment Form'!$B618=\"Subscriber\",'Enrollment Form'!$C618=\"Enroll\",'Enrollment Form'!$AL618<>\"\"),\"Y\",\"N\")))","v":""},{"$f":"IF($B611=\"N\",\"\",IF(OR('Enrollment Form'!$B618<>\"Subscriber\",'Enrollment Form'!$C618=\"ROC\"),\"-\",IF(AND('Enrollment Form'!$B618=\"Subscriber\",'Enrollment Form'!$C618=\"Enroll\",'Enrollment Form'!$AP618<>\"\"),\"Y\",\"N\")))","v":""},{"$f":"IF($B611=\"N\",\"\",IF(OR('Enrollment Form'!$B618<>\"Subscriber\",'Enrollment Form'!$C618=\"ROC\"),\"-\",IF(AND('Enrollment Form'!$B618=\"Subscriber\",'Enrollment Form'!$C618=\"Enroll\",'Enrollment Form'!$AQ618<>\"\"),\"Y\",\"N\")))","v":""},{"$f":"IF($B611=\"N\",\"\",IF(OR('Enrollment Form'!$B618<>\"Subscriber\",'Enrollment Form'!$C618=\"ROC\"),\"-\",IF(AND('Enrollment Form'!$B618=\"Subscriber\",'Enrollment Form'!$C618=\"Enroll\",'Enrollment Form'!$AS618<>\"\"),\"Y\",\"N\")))","v":""},{"$f":"IF($B611=\"N\",\"\",IF($Q611=\"-\",\"-\",IF(AND($Q611=\"Y\",'Enrollment Form'!$AS618=\"No\"),\"-\",IF(AND($Q611=\"Y\",'Enrollment Form'!$AS618=\"Yes\",'Enrollment Form'!$AT618<>\"\"),\"Y\",\"N\"))))","v":""},{"$f":"IF($B611=\"N\",\"\",IF(OR('Enrollment Form'!$B618<>\"Subscriber\",'Enrollment Form'!$C618=\"ROC\"),\"-\",IF(AND('Enrollment Form'!$B618=\"Subscriber\",'Enrollment Form'!$C618=\"Enroll\",'Enrollment Form'!$CV618<>\"\"),\"Y\",\"N\")))","v":""},{"$f":"IF($B611=\"N\",\"\",IF($S611=\"-\",\"-\",IF(AND($S611=\"Y\",'Enrollment Form'!$CV618=\"No\"),\"-\",IF(AND($S611=\"Y\",'Enrollment Form'!$CV618=\"Yes\",'Enrollment Form'!$CW618<>\"\"),\"Y\",\"N\"))))","v":""},{"$f":"IF(OR('Enrollment Form'!$AY618=\"Yes\",'Enrollment Form'!$AY618=\"\"),\"-\",IF(OR(AND('Enrollment Form'!$AY618=\"No\",ISERROR(FIND(\"HMO\",VLOOKUP('Enrollment Form'!G618,'Enrollment Form'!H$11:J$1000,3,FALSE),1))=FALSE,COUNTA('Enrollment Form'!$AZ618:$BC618)=4),AND('Enrollment Form'!$AY618=\"No\",ISERROR(FIND(\"HMO\",VLOOKUP('Enrollment Form'!G618,'Enrollment Form'!H$11:J$1000,3,FALSE),1))=FALSE,COUNTA('Enrollment Form'!$BT618:$BW618)=4)),\"Y\",\"N\"))","v":"-"},{"$f":"IF($B611=\"N\",\"\",IF('Enrollment Form'!$B618=\"Subscriber\",\"-\",IF(COUNTA('Enrollment Form'!$BL618,'Enrollment Form'!$BN618)=2,\"Y\",\"N\")))","v":""},{"$f":"IF($B611=\"N\",\"\",IF(OR('Enrollment Form'!$AX618=\"\",'Enrollment Form'!$AX618=\"No\"),\"-\",IF(AND('Enrollment Form'!$AX618=\"Yes\",COUNTA('Enrollment Form'!$CR618)=1),\"Y\",\"N\")))","v":""},{"$f":"IF(OR('Enrollment Form'!$CR618=\"\",'Enrollment Form'!$CR618=\"No\"),\"-\",IF(COUNTA('Enrollment Form'!$CT618:$CU618)=2,\"Y\",\"N\"))","v":"-"},{"$f":"IF($B611=\"N\",\"\",IF(COUNTIF('Enrollment Form'!$DG618:$DP618,\"Other\")=COUNTA('Enrollment Form'!$DK618,'Enrollment Form'!$DH618,'Enrollment Form'!$DN618,'Enrollment Form'!$DQ618),\"Y\",\"N\"))","v":""},{"$f":"IF($B611=\"N\",\"\",IF(OR('Enrollment Form'!B618<>\"Subscriber\",'Enrollment Form'!C618=\"ROC\",COUNTIF('Enrollment Form'!AV618:AW618,\"Yes\")>=1),\"-\",IF(AND('Enrollment Form'!C618=\"Enroll\",COUNTIF('Enrollment Form'!AV618:AW618,\"No\")=2,'Enrollment Form'!AX618=\"\"),\"N\",\"Y\")))","v":""},{"$f":"IF(OR(B611=\"N\",'Enrollment Form'!B618<>\"Subscriber\",'Enrollment Form'!C618=\"ROC\",'Enrollment Form'!O618<>\"Multiple of Salary\"),\"-\",IF(COUNTA('Enrollment Form'!T618:U618)<2,\"N\",\"Y\"))","v":"-"},{"$f":"IF(B611=\"N\",\"\",IF(OR('Enrollment Form'!C618=\"ROC\",'Enrollment Form'!B618<>\"Subscriber\",'Enrollment Form'!O618=\"Waive\",'Enrollment Form'!O618=\"\"),\"-\",IF('Enrollment Form'!P618=\"\",\"N\",\"Y\")))","v":""},{"$f":"IF($B611=\"N\",\"\",IF(AND('Enrollment Form'!$C618=\"ROC\",'Enrollment Form'!$DR618<>\"\"),\"Y\",IF(AND('Enrollment Form'!$C618=\"ROC\",'Enrollment Form'!$DR618=\"\"),\"N\",IF(AND('Enrollment Form'!$C618=\"Enroll\",'Enrollment Form'!$B618=\"Subscriber\",'Enrollment Form'!$CX618=\"No\",'Enrollment Form'!$DR618=\"\"),\"N\",IF(AND('Enrollment Form'!$C618=\"Enroll\",'Enrollment Form'!$B618=\"Subscriber\",'Enrollment Form'!$CX618=\"Yes\"),\"-\",\"Y\")))))","v":""},{"$f":"IF($B611=\"N\",\"\",IF(AND('Enrollment Form'!$C618=\"ROC\",'Enrollment Form'!$DS618<>\"\"),\"Y\",IF(AND('Enrollment Form'!$C618=\"ROC\",'Enrollment Form'!$DS618=\"\"),\"N\",IF(AND('Enrollment Form'!$C618=\"Enroll\",'Enrollment Form'!$B618=\"Subscriber\",'Enrollment Form'!$CX618=\"No\",'Enrollment Form'!$DS618=\"\"),\"N\",IF(AND('Enrollment Form'!$C618=\"Enroll\",'Enrollment Form'!$B618=\"Subscriber\",'Enrollment Form'!$CX618=\"Yes\"),\"-\",\"Y\")))))","v":""},{"$f":"IF('Enrollment Form'!AH618=\"\",\"\",IF(ISERROR(SEARCH(\".\",'Enrollment Form'!AH618,SEARCH(\"@\",'Enrollment Form'!AH618))),\"N\",\"Y\"))","v":""},{"$f":"IF(OR($B611=\"N\",'Enrollment Form'!$G618=\"\"),\"\",IF('Enrollment Form'!$B618<>\"Subscriber\",\"-\",IF(COUNTIF('Enrollment Form'!$AV618:$AW618,\"Yes\")=2,\"N\",\"Y\")))","v":""},{"$f":"IF(OR('Enrollment Form'!$CJ618=\"\",'Enrollment Form'!$CJ618=\"No\"),\"-\",IF(AND('Enrollment Form'!$CJ618=\"Yes\",'Enrollment Form'!$CK618=\"\"),\"N\",\"Y\"))","v":"-"},{"$f":"IF(OR('Enrollment Form'!$CL618=\"\",'Enrollment Form'!$CL618=\"No\"),\"-\",IF(AND('Enrollment Form'!$CL618=\"Yes\",'Enrollment Form'!$CM618=\"\"),\"N\",\"Y\"))","v":"-"},{"$f":"IF(OR('Enrollment Form'!$CN618=\"\",'Enrollment Form'!$CN618=\"No\"),\"-\",IF(AND('Enrollment Form'!$CN618=\"Yes\",'Enrollment Form'!$CO618=\"\"),\"N\",\"Y\"))","v":"-"},{"$f":"IF(OR('Enrollment Form'!$CN618=\"\",'Enrollment Form'!$CN618=\"No\"),\"-\",IF(AND('Enrollment Form'!$CN618=\"Yes\",'Enrollment Form'!$CP618=\"\"),\"N\",\"Y\"))","v":"-"},{"$f":"IF('Enrollment Form'!B618<>\"Subscriber\",\"-\",IF(AND('Enrollment Form'!B618=\"Subscriber\",'Enrollment Form'!C618=\"Enroll\",'Enrollment Form'!AA618=\"\"),\"N\",\"Y\"))","v":"-"},{"$f":"IF(OR('Enrollment Form'!B618=\"Subscriber\",'Enrollment Form'!B618=\"\"),\"-\",IF('Enrollment Form'!BP618=\"\",\"N\",\"Y\"))","v":"-"},{"$f":"IF('Enrollment Form'!B618<>\"Subscriber\",\"-\",IF(AND('Enrollment Form'!B618=\"Subscriber\",'Enrollment Form'!G618=\"\"),\"N\",\"Y\"))","v":"-"},{"$f":"IF('Enrollment Form'!A618=\"\",\"\",IF('Enrollment Form'!B618=\"Subscriber\",\"-\",IF(AND('Enrollment Form'!B618<>\"Subscriber\",'Enrollment Form'!G618='Enrollment Form'!H618),\"N\",\"Y\")))","v":""},0]
[619,{"$f":"IF('Enrollment Form'!$A619<>\"\",\"Y\",\"N\")","v":"N"},{"$f":"IF(AND('Enrollment Form'!$B619=\"\",'Enrollment Form'!$C619<>\"\"),\"N\",IF($B612=\"N\",\"\",\"Y\"))","v":""},{"$f":"IF(OR($B612=\"N\",'Enrollment Form'!G619=\"\"),\"\",IF('Enrollment Form'!$B619<>\"Subscriber\",\"\",IF('Enrollment Form'!$G619='Enrollment Form'!$H619,\"Y\",\"N\")))","v":""},{"$f":"IF($B612=\"N\",\"\",IF(AND(COUNTIFS('Enrollment Form'!$H$11:$H$1000,'Enrollment Form'!$H619,'Enrollment Form'!$B$11:$B$1000,'Enrollment Form'!$B619)>1,'Enrollment Form'!$H619<>\"\"),\"N\",\"Y\"))","v":""},{"$f":"IF($B612=\"N\",\"\",IF(LEN('Enrollment Form'!$Y619)=0,\"\",IF(LEN('Enrollment Form'!$Y619)<>5,\"N\",\"Y\")))","v":""},{"$f":"IF($B612=\"N\",\"\",IF(LEN('Enrollment Form'!$AD619=0),\"\",IF(LEN('Enrollment Form'!$AD619)<>5,\"N\",\"Y\")))","v":""},{"$f":"IF($B612=\"N\",\"\",IF(LEN('Enrollment Form'!$BS619=0),\"\",IF(LEN('Enrollment Form'!$BS619)<>5,\"N\",\"Y\")))","v":""},{"$f":"IF($B612=\"N\",\"\",IF(LEN('Enrollment Form'!$AE619)=0,\"\",IF(LEN('Enrollment Form'!$AE619)<>10,\"N\",\"Y\")))","v":""},{"$f":"IF($B612=\"N\",\"\",IF(LEN('Enrollment Form'!$AF619)=0,\"\",IF(LEN('Enrollment Form'!$AF619)<>10,\"N\",\"Y\")))","v":""},{"$f":"IF('Enrollment Form'!$O619<>\"Graded\",\"-\",IF(AND('Enrollment Form'!$O619=\"Graded\",'Enrollment Form'!$AR619<>\"\"),\"Y\",\"N\"))","v":"-"},{"$f":"IF($B612=\"N\",\"\",IF(OR('Enrollment Form'!$B619<>\"Subscriber\",'Enrollment Form'!$C619=\"ROC\"),\"-\",IF(AND('Enrollment Form'!$B619=\"Subscriber\",'Enrollment Form'!$C619=\"Enroll\",'Enrollment Form'!$AJ619<>\"\"),\"Y\",\"N\")))","v":""},{"$f":"IF($B612=\"N\",\"\",IF(OR('Enrollment Form'!$B619<>\"Subscriber\",'Enrollment Form'!$C619=\"ROC\"),\"-\",IF(AND('Enrollment Form'!$B619=\"Subscriber\",'Enrollment Form'!$C619=\"Enroll\",'Enrollment Form'!$AK619<>\"\"),\"Y\",\"N\")))","v":""},{"$f":"IF($B612=\"N\",\"\",IF(OR('Enrollment Form'!$B619<>\"Subscriber\",'Enrollment Form'!$C619=\"ROC\"),\"-\",IF(AND('Enrollment Form'!$B619=\"Subscriber\",'Enrollment Form'!$C619=\"Enroll\",'Enrollment Form'!$AL619<>\"\"),\"Y\",\"N\")))","v":""},{"$f":"IF($B612=\"N\",\"\",IF(OR('Enrollment Form'!$B619<>\"Subscriber\",'Enrollment Form'!$C619=\"ROC\"),\"-\",IF(AND('Enrollment Form'!$B619=\"Subscriber\",'Enrollment Form'!$C619=\"Enroll\",'Enrollment Form'!$AP619<>\"\"),\"Y\",\"N\")))","v":""},{"$f":"IF($B612=\"N\",\"\",IF(OR('Enrollment Form'!$B619<>\"Subscriber\",'Enrollment Form'!$C619=\"ROC\"),\"-\",IF(AND('Enrollment Form'!$B619=\"Subscriber\",'Enrollment Form'!$C619=\"Enroll\",'Enrollment Form'!$AQ619<>\"\"),\"Y\",\"N\")))","v":""},{"$f":"IF($B612=\"N\",\"\",IF(OR('Enrollment Form'!$B619<>\"Subscriber\",'Enrollment Form'!$C619=\"ROC\"),\"-\",IF(AND('Enrollment Form'!$B619=\"Subscriber\",'Enrollment Form'!$C619=\"Enroll\",'Enrollment Form'!$AS619<>\"\"),\"Y\",\"N\")))","v":""},{"$f":"IF($B612=\"N\",\"\",IF($Q612=\"-\",\"-\",IF(AND($Q612=\"Y\",'Enrollment Form'!$AS619=\"No\"),\"-\",IF(AND($Q612=\"Y\",'Enrollment Form'!$AS619=\"Yes\",'Enrollment Form'!$AT619<>\"\"),\"Y\",\"N\"))))","v":""},{"$f":"IF($B612=\"N\",\"\",IF(OR('Enrollment Form'!$B619<>\"Subscriber\",'Enrollment Form'!$C619=\"ROC\"),\"-\",IF(AND('Enrollment Form'!$B619=\"Subscriber\",'Enrollment Form'!$C619=\"Enroll\",'Enrollment Form'!$CV619<>\"\"),\"Y\",\"N\")))","v":""},{"$f":"IF($B612=\"N\",\"\",IF($S612=\"-\",\"-\",IF(AND($S612=\"Y\",'Enrollment Form'!$CV619=\"No\"),\"-\",IF(AND($S612=\"Y\",'Enrollment Form'!$CV619=\"Yes\",'Enrollment Form'!$CW619<>\"\"),\"Y\",\"N\"))))","v":""},{"$f":"IF(OR('Enrollment Form'!$AY619=\"Yes\",'Enrollment Form'!$AY619=\"\"),\"-\",IF(OR(AND('Enrollment Form'!$AY619=\"No\",ISERROR(FIND(\"HMO\",VLOOKUP('Enrollment Form'!G619,'Enrollment Form'!H$11:J$1000,3,FALSE),1))=FALSE,COUNTA('Enrollment Form'!$AZ619:$BC619)=4),AND('Enrollment Form'!$AY619=\"No\",ISERROR(FIND(\"HMO\",VLOOKUP('Enrollment Form'!G619,'Enrollment Form'!H$11:J$1000,3,FALSE),1))=FALSE,COUNTA('Enrollment Form'!$BT619:$BW619)=4)),\"Y\",\"N\"))","v":"-"},{"$f":"IF($B612=\"N\",\"\",IF('Enrollment Form'!$B619=\"Subscriber\",\"-\",IF(COUNTA('Enrollment Form'!$BL619,'Enrollment Form'!$BN619)=2,\"Y\",\"N\")))","v":""},{"$f":"IF($B612=\"N\",\"\",IF(OR('Enrollment Form'!$AX619=\"\",'Enrollment Form'!$AX619=\"No\"),\"-\",IF(AND('Enrollment Form'!$AX619=\"Yes\",COUNTA('Enrollment Form'!$CR619)=1),\"Y\",\"N\")))","v":""},{"$f":"IF(OR('Enrollment Form'!$CR619=\"\",'Enrollment Form'!$CR619=\"No\"),\"-\",IF(COUNTA('Enrollment Form'!$CT619:$CU619)=2,\"Y\",\"N\"))","v":"-"},{"$f":"IF($B612=\"N\",\"\",IF(COUNTIF('Enrollment Form'!$DG619:$DP619,\"Other\")=COUNTA('Enrollment Form'!$DK619,'Enrollment Form'!$DH619,'Enrollment Form'!$DN619,'Enrollment Form'!$DQ619),\"Y\",\"N\"))","v":""},{"$f":"IF($B612=\"N\",\"\",IF(OR('Enrollment Form'!B619<>\"Subscriber\",'Enrollment Form'!C619=\"ROC\",COUNTIF('Enrollment Form'!AV619:AW619,\"Yes\")>=1),\"-\",IF(AND('Enrollment Form'!C619=\"Enroll\",COUNTIF('Enrollment Form'!AV619:AW619,\"No\")=2,'Enrollment Form'!AX619=\"\"),\"N\",\"Y\")))","v":""},{"$f":"IF(OR(B612=\"N\",'Enrollment Form'!B619<>\"Subscriber\",'Enrollment Form'!C619=\"ROC\",'Enrollment Form'!O619<>\"Multiple of Salary\"),\"-\",IF(COUNTA('Enrollment Form'!T619:U619)<2,\"N\",\"Y\"))","v":"-"},{"$f":"IF(B612=\"N\",\"\",IF(OR('Enrollment Form'!C619=\"ROC\",'Enrollment Form'!B619<>\"Subscriber\",'Enrollment Form'!O619=\"Waive\",'Enrollment Form'!O619=\"\"),\"-\",IF('Enrollment Form'!P619=\"\",\"N\",\"Y\")))","v":""},{"$f":"IF($B612=\"N\",\"\",IF(AND('Enrollment Form'!$C619=\"ROC\",'Enrollment Form'!$DR619<>\"\"),\"Y\",IF(AND('Enrollment Form'!$C619=\"ROC\",'Enrollment Form'!$DR619=\"\"),\"N\",IF(AND('Enrollment Form'!$C619=\"Enroll\",'Enrollment Form'!$B619=\"Subscriber\",'Enrollment Form'!$CX619=\"No\",'Enrollment Form'!$DR619=\"\"),\"N\",IF(AND('Enrollment Form'!$C619=\"Enroll\",'Enrollment Form'!$B619=\"Subscriber\",'Enrollment Form'!$CX619=\"Yes\"),\"-\",\"Y\")))))","v":""},{"$f":"IF($B612=\"N\",\"\",IF(AND('Enrollment Form'!$C619=\"ROC\",'Enrollment Form'!$DS619<>\"\"),\"Y\",IF(AND('Enrollment Form'!$C619=\"ROC\",'Enrollment Form'!$DS619=\"\"),\"N\",IF(AND('Enrollment Form'!$C619=\"Enroll\",'Enrollment Form'!$B619=\"Subscriber\",'Enrollment Form'!$CX619=\"No\",'Enrollment Form'!$DS619=\"\"),\"N\",IF(AND('Enrollment Form'!$C619=\"Enroll\",'Enrollment Form'!$B619=\"Subscriber\",'Enrollment Form'!$CX619=\"Yes\"),\"-\",\"Y\")))))","v":""},{"$f":"IF('Enrollment Form'!AH619=\"\",\"\",IF(ISERROR(SEARCH(\".\",'Enrollment Form'!AH619,SEARCH(\"@\",'Enrollment Form'!AH619))),\"N\",\"Y\"))","v":""},{"$f":"IF(OR($B612=\"N\",'Enrollment Form'!$G619=\"\"),\"\",IF('Enrollment Form'!$B619<>\"Subscriber\",\"-\",IF(COUNTIF('Enrollment Form'!$AV619:$AW619,\"Yes\")=2,\"N\",\"Y\")))","v":""},{"$f":"IF(OR('Enrollment Form'!$CJ619=\"\",'Enrollment Form'!$CJ619=\"No\"),\"-\",IF(AND('Enrollment Form'!$CJ619=\"Yes\",'Enrollment Form'!$CK619=\"\"),\"N\",\"Y\"))","v":"-"},{"$f":"IF(OR('Enrollment Form'!$CL619=\"\",'Enrollment Form'!$CL619=\"No\"),\"-\",IF(AND('Enrollment Form'!$CL619=\"Yes\",'Enrollment Form'!$CM619=\"\"),\"N\",\"Y\"))","v":"-"},{"$f":"IF(OR('Enrollment Form'!$CN619=\"\",'Enrollment Form'!$CN619=\"No\"),\"-\",IF(AND('Enrollment Form'!$CN619=\"Yes\",'Enrollment Form'!$CO619=\"\"),\"N\",\"Y\"))","v":"-"},{"$f":"IF(OR('Enrollment Form'!$CN619=\"\",'Enrollment Form'!$CN619=\"No\"),\"-\",IF(AND('Enrollment Form'!$CN619=\"Yes\",'Enrollment Form'!$CP619=\"\"),\"N\",\"Y\"))","v":"-"},{"$f":"IF('Enrollment Form'!B619<>\"Subscriber\",\"-\",IF(AND('Enrollment Form'!B619=\"Subscriber\",'Enrollment Form'!C619=\"Enroll\",'Enrollment Form'!AA619=\"\"),\"N\",\"Y\"))","v":"-"},{"$f":"IF(OR('Enrollment Form'!B619=\"Subscriber\",'Enrollment Form'!B619=\"\"),\"-\",IF('Enrollment Form'!BP619=\"\",\"N\",\"Y\"))","v":"-"},{"$f":"IF('Enrollment Form'!B619<>\"Subscriber\",\"-\",IF(AND('Enrollment Form'!B619=\"Subscriber\",'Enrollment Form'!G619=\"\"),\"N\",\"Y\"))","v":"-"},{"$f":"IF('Enrollment Form'!A619=\"\",\"\",IF('Enrollment Form'!B619=\"Subscriber\",\"-\",IF(AND('Enrollment Form'!B619<>\"Subscriber\",'Enrollment Form'!G619='Enrollment Form'!H619),\"N\",\"Y\")))","v":""},0]
[620,{"$f":"IF('Enrollment Form'!$A620<>\"\",\"Y\",\"N\")","v":"N"},{"$f":"IF(AND('Enrollment Form'!$B620=\"\",'Enrollment Form'!$C620<>\"\"),\"N\",IF($B613=\"N\",\"\",\"Y\"))","v":""},{"$f":"IF(OR($B613=\"N\",'Enrollment Form'!G620=\"\"),\"\",IF('Enrollment Form'!$B620<>\"Subscriber\",\"\",IF('Enrollment Form'!$G620='Enrollment Form'!$H620,\"Y\",\"N\")))","v":""},{"$f":"IF($B613=\"N\",\"\",IF(AND(COUNTIFS('Enrollment Form'!$H$11:$H$1000,'Enrollment Form'!$H620,'Enrollment Form'!$B$11:$B$1000,'Enrollment Form'!$B620)>1,'Enrollment Form'!$H620<>\"\"),\"N\",\"Y\"))","v":""},{"$f":"IF($B613=\"N\",\"\",IF(LEN('Enrollment Form'!$Y620)=0,\"\",IF(LEN('Enrollment Form'!$Y620)<>5,\"N\",\"Y\")))","v":""},{"$f":"IF($B613=\"N\",\"\",IF(LEN('Enrollment Form'!$AD620=0),\"\",IF(LEN('Enrollment Form'!$AD620)<>5,\"N\",\"Y\")))","v":""},{"$f":"IF($B613=\"N\",\"\",IF(LEN('Enrollment Form'!$BS620=0),\"\",IF(LEN('Enrollment Form'!$BS620)<>5,\"N\",\"Y\")))","v":""},{"$f":"IF($B613=\"N\",\"\",IF(LEN('Enrollment Form'!$AE620)=0,\"\",IF(LEN('Enrollment Form'!$AE620)<>10,\"N\",\"Y\")))","v":""},{"$f":"IF($B613=\"N\",\"\",IF(LEN('Enrollment Form'!$AF620)=0,\"\",IF(LEN('Enrollment Form'!$AF620)<>10,\"N\",\"Y\")))","v":""},{"$f":"IF('Enrollment Form'!$O620<>\"Graded\",\"-\",IF(AND('Enrollment Form'!$O620=\"Graded\",'Enrollment Form'!$AR620<>\"\"),\"Y\",\"N\"))","v":"-"},{"$f":"IF($B613=\"N\",\"\",IF(OR('Enrollment Form'!$B620<>\"Subscriber\",'Enrollment Form'!$C620=\"ROC\"),\"-\",IF(AND('Enrollment Form'!$B620=\"Subscriber\",'Enrollment Form'!$C620=\"Enroll\",'Enrollment Form'!$AJ620<>\"\"),\"Y\",\"N\")))","v":""},{"$f":"IF($B613=\"N\",\"\",IF(OR('Enrollment Form'!$B620<>\"Subscriber\",'Enrollment Form'!$C620=\"ROC\"),\"-\",IF(AND('Enrollment Form'!$B620=\"Subscriber\",'Enrollment Form'!$C620=\"Enroll\",'Enrollment Form'!$AK620<>\"\"),\"Y\",\"N\")))","v":""},{"$f":"IF($B613=\"N\",\"\",IF(OR('Enrollment Form'!$B620<>\"Subscriber\",'Enrollment Form'!$C620=\"ROC\"),\"-\",IF(AND('Enrollment Form'!$B620=\"Subscriber\",'Enrollment Form'!$C620=\"Enroll\",'Enrollment Form'!$AL620<>\"\"),\"Y\",\"N\")))","v":""},{"$f":"IF($B613=\"N\",\"\",IF(OR('Enrollment Form'!$B620<>\"Subscriber\",'Enrollment Form'!$C620=\"ROC\"),\"-\",IF(AND('Enrollment Form'!$B620=\"Subscriber\",'Enrollment Form'!$C620=\"Enroll\",'Enrollment Form'!$AP620<>\"\"),\"Y\",\"N\")))","v":""},{"$f":"IF($B613=\"N\",\"\",IF(OR('Enrollment Form'!$B620<>\"Subscriber\",'Enrollment Form'!$C620=\"ROC\"),\"-\",IF(AND('Enrollment Form'!$B620=\"Subscriber\",'Enrollment Form'!$C620=\"Enroll\",'Enrollment Form'!$AQ620<>\"\"),\"Y\",\"N\")))","v":""},{"$f":"IF($B613=\"N\",\"\",IF(OR('Enrollment Form'!$B620<>\"Subscriber\",'Enrollment Form'!$C620=\"ROC\"),\"-\",IF(AND('Enrollment Form'!$B620=\"Subscriber\",'Enrollment Form'!$C620=\"Enroll\",'Enrollment Form'!$AS620<>\"\"),\"Y\",\"N\")))","v":""},{"$f":"IF($B613=\"N\",\"\",IF($Q613=\"-\",\"-\",IF(AND($Q613=\"Y\",'Enrollment Form'!$AS620=\"No\"),\"-\",IF(AND($Q613=\"Y\",'Enrollment Form'!$AS620=\"Yes\",'Enrollment Form'!$AT620<>\"\"),\"Y\",\"N\"))))","v":""},{"$f":"IF($B613=\"N\",\"\",IF(OR('Enrollment Form'!$B620<>\"Subscriber\",'Enrollment Form'!$C620=\"ROC\"),\"-\",IF(AND('Enrollment Form'!$B620=\"Subscriber\",'Enrollment Form'!$C620=\"Enroll\",'Enrollment Form'!$CV620<>\"\"),\"Y\",\"N\")))","v":""},{"$f":"IF($B613=\"N\",\"\",IF($S613=\"-\",\"-\",IF(AND($S613=\"Y\",'Enrollment Form'!$CV620=\"No\"),\"-\",IF(AND($S613=\"Y\",'Enrollment Form'!$CV620=\"Yes\",'Enrollment Form'!$CW620<>\"\"),\"Y\",\"N\"))))","v":""},{"$f":"IF(OR('Enrollment Form'!$AY620=\"Yes\",'Enrollment Form'!$AY620=\"\"),\"-\",IF(OR(AND('Enrollment Form'!$AY620=\"No\",ISERROR(FIND(\"HMO\",VLOOKUP('Enrollment Form'!G620,'Enrollment Form'!H$11:J$1000,3,FALSE),1))=FALSE,COUNTA('Enrollment Form'!$AZ620:$BC620)=4),AND('Enrollment Form'!$AY620=\"No\",ISERROR(FIND(\"HMO\",VLOOKUP('Enrollment Form'!G620,'Enrollment Form'!H$11:J$1000,3,FALSE),1))=FALSE,COUNTA('Enrollment Form'!$BT620:$BW620)=4)),\"Y\",\"N\"))","v":"-"},{"$f":"IF($B613=\"N\",\"\",IF('Enrollment Form'!$B620=\"Subscriber\",\"-\",IF(COUNTA('Enrollment Form'!$BL620,'Enrollment Form'!$BN620)=2,\"Y\",\"N\")))","v":""},{"$f":"IF($B613=\"N\",\"\",IF(OR('Enrollment Form'!$AX620=\"\",'Enrollment Form'!$AX620=\"No\"),\"-\",IF(AND('Enrollment Form'!$AX620=\"Yes\",COUNTA('Enrollment Form'!$CR620)=1),\"Y\",\"N\")))","v":""},{"$f":"IF(OR('Enrollment Form'!$CR620=\"\",'Enrollment Form'!$CR620=\"No\"),\"-\",IF(COUNTA('Enrollment Form'!$CT620:$CU620)=2,\"Y\",\"N\"))","v":"-"},{"$f":"IF($B613=\"N\",\"\",IF(COUNTIF('Enrollment Form'!$DG620:$DP620,\"Other\")=COUNTA('Enrollment Form'!$DK620,'Enrollment Form'!$DH620,'Enrollment Form'!$DN620,'Enrollment Form'!$DQ620),\"Y\",\"N\"))","v":""},{"$f":"IF($B613=\"N\",\"\",IF(OR('Enrollment Form'!B620<>\"Subscriber\",'Enrollment Form'!C620=\"ROC\",COUNTIF('Enrollment Form'!AV620:AW620,\"Yes\")>=1),\"-\",IF(AND('Enrollment Form'!C620=\"Enroll\",COUNTIF('Enrollment Form'!AV620:AW620,\"No\")=2,'Enrollment Form'!AX620=\"\"),\"N\",\"Y\")))","v":""},{"$f":"IF(OR(B613=\"N\",'Enrollment Form'!B620<>\"Subscriber\",'Enrollment Form'!C620=\"ROC\",'Enrollment Form'!O620<>\"Multiple of Salary\"),\"-\",IF(COUNTA('Enrollment Form'!T620:U620)<2,\"N\",\"Y\"))","v":"-"},{"$f":"IF(B613=\"N\",\"\",IF(OR('Enrollment Form'!C620=\"ROC\",'Enrollment Form'!B620<>\"Subscriber\",'Enrollment Form'!O620=\"Waive\",'Enrollment Form'!O620=\"\"),\"-\",IF('Enrollment Form'!P620=\"\",\"N\",\"Y\")))","v":""},{"$f":"IF($B613=\"N\",\"\",IF(AND('Enrollment Form'!$C620=\"ROC\",'Enrollment Form'!$DR620<>\"\"),\"Y\",IF(AND('Enrollment Form'!$C620=\"ROC\",'Enrollment Form'!$DR620=\"\"),\"N\",IF(AND('Enrollment Form'!$C620=\"Enroll\",'Enrollment Form'!$B620=\"Subscriber\",'Enrollment Form'!$CX620=\"No\",'Enrollment Form'!$DR620=\"\"),\"N\",IF(AND('Enrollment Form'!$C620=\"Enroll\",'Enrollment Form'!$B620=\"Subscriber\",'Enrollment Form'!$CX620=\"Yes\"),\"-\",\"Y\")))))","v":""},{"$f":"IF($B613=\"N\",\"\",IF(AND('Enrollment Form'!$C620=\"ROC\",'Enrollment Form'!$DS620<>\"\"),\"Y\",IF(AND('Enrollment Form'!$C620=\"ROC\",'Enrollment Form'!$DS620=\"\"),\"N\",IF(AND('Enrollment Form'!$C620=\"Enroll\",'Enrollment Form'!$B620=\"Subscriber\",'Enrollment Form'!$CX620=\"No\",'Enrollment Form'!$DS620=\"\"),\"N\",IF(AND('Enrollment Form'!$C620=\"Enroll\",'Enrollment Form'!$B620=\"Subscriber\",'Enrollment Form'!$CX620=\"Yes\"),\"-\",\"Y\")))))","v":""},{"$f":"IF('Enrollment Form'!AH620=\"\",\"\",IF(ISERROR(SEARCH(\".\",'Enrollment Form'!AH620,SEARCH(\"@\",'Enrollment Form'!AH620))),\"N\",\"Y\"))","v":""},{"$f":"IF(OR($B613=\"N\",'Enrollment Form'!$G620=\"\"),\"\",IF('Enrollment Form'!$B620<>\"Subscriber\",\"-\",IF(COUNTIF('Enrollment Form'!$AV620:$AW620,\"Yes\")=2,\"N\",\"Y\")))","v":""},{"$f":"IF(OR('Enrollment Form'!$CJ620=\"\",'Enrollment Form'!$CJ620=\"No\"),\"-\",IF(AND('Enrollment Form'!$CJ620=\"Yes\",'Enrollment Form'!$CK620=\"\"),\"N\",\"Y\"))","v":"-"},{"$f":"IF(OR('Enrollment Form'!$CL620=\"\",'Enrollment Form'!$CL620=\"No\"),\"-\",IF(AND('Enrollment Form'!$CL620=\"Yes\",'Enrollment Form'!$CM620=\"\"),\"N\",\"Y\"))","v":"-"},{"$f":"IF(OR('Enrollment Form'!$CN620=\"\",'Enrollment Form'!$CN620=\"No\"),\"-\",IF(AND('Enrollment Form'!$CN620=\"Yes\",'Enrollment Form'!$CO620=\"\"),\"N\",\"Y\"))","v":"-"},{"$f":"IF(OR('Enrollment Form'!$CN620=\"\",'Enrollment Form'!$CN620=\"No\"),\"-\",IF(AND('Enrollment Form'!$CN620=\"Yes\",'Enrollment Form'!$CP620=\"\"),\"N\",\"Y\"))","v":"-"},{"$f":"IF('Enrollment Form'!B620<>\"Subscriber\",\"-\",IF(AND('Enrollment Form'!B620=\"Subscriber\",'Enrollment Form'!C620=\"Enroll\",'Enrollment Form'!AA620=\"\"),\"N\",\"Y\"))","v":"-"},{"$f":"IF(OR('Enrollment Form'!B620=\"Subscriber\",'Enrollment Form'!B620=\"\"),\"-\",IF('Enrollment Form'!BP620=\"\",\"N\",\"Y\"))","v":"-"},{"$f":"IF('Enrollment Form'!B620<>\"Subscriber\",\"-\",IF(AND('Enrollment Form'!B620=\"Subscriber\",'Enrollment Form'!G620=\"\"),\"N\",\"Y\"))","v":"-"},{"$f":"IF('Enrollment Form'!A620=\"\",\"\",IF('Enrollment Form'!B620=\"Subscriber\",\"-\",IF(AND('Enrollment Form'!B620<>\"Subscriber\",'Enrollment Form'!G620='Enrollment Form'!H620),\"N\",\"Y\")))","v":""},0]
[621,{"$f":"IF('Enrollment Form'!$A621<>\"\",\"Y\",\"N\")","v":"N"},{"$f":"IF(AND('Enrollment Form'!$B621=\"\",'Enrollment Form'!$C621<>\"\"),\"N\",IF($B614=\"N\",\"\",\"Y\"))","v":""},{"$f":"IF(OR($B614=\"N\",'Enrollment Form'!G621=\"\"),\"\",IF('Enrollment Form'!$B621<>\"Subscriber\",\"\",IF('Enrollment Form'!$G621='Enrollment Form'!$H621,\"Y\",\"N\")))","v":""},{"$f":"IF($B614=\"N\",\"\",IF(AND(COUNTIFS('Enrollment Form'!$H$11:$H$1000,'Enrollment Form'!$H621,'Enrollment Form'!$B$11:$B$1000,'Enrollment Form'!$B621)>1,'Enrollment Form'!$H621<>\"\"),\"N\",\"Y\"))","v":""},{"$f":"IF($B614=\"N\",\"\",IF(LEN('Enrollment Form'!$Y621)=0,\"\",IF(LEN('Enrollment Form'!$Y621)<>5,\"N\",\"Y\")))","v":""},{"$f":"IF($B614=\"N\",\"\",IF(LEN('Enrollment Form'!$AD621=0),\"\",IF(LEN('Enrollment Form'!$AD621)<>5,\"N\",\"Y\")))","v":""},{"$f":"IF($B614=\"N\",\"\",IF(LEN('Enrollment Form'!$BS621=0),\"\",IF(LEN('Enrollment Form'!$BS621)<>5,\"N\",\"Y\")))","v":""},{"$f":"IF($B614=\"N\",\"\",IF(LEN('Enrollment Form'!$AE621)=0,\"\",IF(LEN('Enrollment Form'!$AE621)<>10,\"N\",\"Y\")))","v":""},{"$f":"IF($B614=\"N\",\"\",IF(LEN('Enrollment Form'!$AF621)=0,\"\",IF(LEN('Enrollment Form'!$AF621)<>10,\"N\",\"Y\")))","v":""},{"$f":"IF('Enrollment Form'!$O621<>\"Graded\",\"-\",IF(AND('Enrollment Form'!$O621=\"Graded\",'Enrollment Form'!$AR621<>\"\"),\"Y\",\"N\"))","v":"-"},{"$f":"IF($B614=\"N\",\"\",IF(OR('Enrollment Form'!$B621<>\"Subscriber\",'Enrollment Form'!$C621=\"ROC\"),\"-\",IF(AND('Enrollment Form'!$B621=\"Subscriber\",'Enrollment Form'!$C621=\"Enroll\",'Enrollment Form'!$AJ621<>\"\"),\"Y\",\"N\")))","v":""},{"$f":"IF($B614=\"N\",\"\",IF(OR('Enrollment Form'!$B621<>\"Subscriber\",'Enrollment Form'!$C621=\"ROC\"),\"-\",IF(AND('Enrollment Form'!$B621=\"Subscriber\",'Enrollment Form'!$C621=\"Enroll\",'Enrollment Form'!$AK621<>\"\"),\"Y\",\"N\")))","v":""},{"$f":"IF($B614=\"N\",\"\",IF(OR('Enrollment Form'!$B621<>\"Subscriber\",'Enrollment Form'!$C621=\"ROC\"),\"-\",IF(AND('Enrollment Form'!$B621=\"Subscriber\",'Enrollment Form'!$C621=\"Enroll\",'Enrollment Form'!$AL621<>\"\"),\"Y\",\"N\")))","v":""},{"$f":"IF($B614=\"N\",\"\",IF(OR('Enrollment Form'!$B621<>\"Subscriber\",'Enrollment Form'!$C621=\"ROC\"),\"-\",IF(AND('Enrollment Form'!$B621=\"Subscriber\",'Enrollment Form'!$C621=\"Enroll\",'Enrollment Form'!$AP621<>\"\"),\"Y\",\"N\")))","v":""},{"$f":"IF($B614=\"N\",\"\",IF(OR('Enrollment Form'!$B621<>\"Subscriber\",'Enrollment Form'!$C621=\"ROC\"),\"-\",IF(AND('Enrollment Form'!$B621=\"Subscriber\",'Enrollment Form'!$C621=\"Enroll\",'Enrollment Form'!$AQ621<>\"\"),\"Y\",\"N\")))","v":""},{"$f":"IF($B614=\"N\",\"\",IF(OR('Enrollment Form'!$B621<>\"Subscriber\",'Enrollment Form'!$C621=\"ROC\"),\"-\",IF(AND('Enrollment Form'!$B621=\"Subscriber\",'Enrollment Form'!$C621=\"Enroll\",'Enrollment Form'!$AS621<>\"\"),\"Y\",\"N\")))","v":""},{"$f":"IF($B614=\"N\",\"\",IF($Q614=\"-\",\"-\",IF(AND($Q614=\"Y\",'Enrollment Form'!$AS621=\"No\"),\"-\",IF(AND($Q614=\"Y\",'Enrollment Form'!$AS621=\"Yes\",'Enrollment Form'!$AT621<>\"\"),\"Y\",\"N\"))))","v":""},{"$f":"IF($B614=\"N\",\"\",IF(OR('Enrollment Form'!$B621<>\"Subscriber\",'Enrollment Form'!$C621=\"ROC\"),\"-\",IF(AND('Enrollment Form'!$B621=\"Subscriber\",'Enrollment Form'!$C621=\"Enroll\",'Enrollment Form'!$CV621<>\"\"),\"Y\",\"N\")))","v":""},{"$f":"IF($B614=\"N\",\"\",IF($S614=\"-\",\"-\",IF(AND($S614=\"Y\",'Enrollment Form'!$CV621=\"No\"),\"-\",IF(AND($S614=\"Y\",'Enrollment Form'!$CV621=\"Yes\",'Enrollment Form'!$CW621<>\"\"),\"Y\",\"N\"))))","v":""},{"$f":"IF(OR('Enrollment Form'!$AY621=\"Yes\",'Enrollment Form'!$AY621=\"\"),\"-\",IF(OR(AND('Enrollment Form'!$AY621=\"No\",ISERROR(FIND(\"HMO\",VLOOKUP('Enrollment Form'!G621,'Enrollment Form'!H$11:J$1000,3,FALSE),1))=FALSE,COUNTA('Enrollment Form'!$AZ621:$BC621)=4),AND('Enrollment Form'!$AY621=\"No\",ISERROR(FIND(\"HMO\",VLOOKUP('Enrollment Form'!G621,'Enrollment Form'!H$11:J$1000,3,FALSE),1))=FALSE,COUNTA('Enrollment Form'!$BT621:$BW621)=4)),\"Y\",\"N\"))","v":"-"},{"$f":"IF($B614=\"N\",\"\",IF('Enrollment Form'!$B621=\"Subscriber\",\"-\",IF(COUNTA('Enrollment Form'!$BL621,'Enrollment Form'!$BN621)=2,\"Y\",\"N\")))","v":""},{"$f":"IF($B614=\"N\",\"\",IF(OR('Enrollment Form'!$AX621=\"\",'Enrollment Form'!$AX621=\"No\"),\"-\",IF(AND('Enrollment Form'!$AX621=\"Yes\",COUNTA('Enrollment Form'!$CR621)=1),\"Y\",\"N\")))","v":""},{"$f":"IF(OR('Enrollment Form'!$CR621=\"\",'Enrollment Form'!$CR621=\"No\"),\"-\",IF(COUNTA('Enrollment Form'!$CT621:$CU621)=2,\"Y\",\"N\"))","v":"-"},{"$f":"IF($B614=\"N\",\"\",IF(COUNTIF('Enrollment Form'!$DG621:$DP621,\"Other\")=COUNTA('Enrollment Form'!$DK621,'Enrollment Form'!$DH621,'Enrollment Form'!$DN621,'Enrollment Form'!$DQ621),\"Y\",\"N\"))","v":""},{"$f":"IF($B614=\"N\",\"\",IF(OR('Enrollment Form'!B621<>\"Subscriber\",'Enrollment Form'!C621=\"ROC\",COUNTIF('Enrollment Form'!AV621:AW621,\"Yes\")>=1),\"-\",IF(AND('Enrollment Form'!C621=\"Enroll\",COUNTIF('Enrollment Form'!AV621:AW621,\"No\")=2,'Enrollment Form'!AX621=\"\"),\"N\",\"Y\")))","v":""},{"$f":"IF(OR(B614=\"N\",'Enrollment Form'!B621<>\"Subscriber\",'Enrollment Form'!C621=\"ROC\",'Enrollment Form'!O621<>\"Multiple of Salary\"),\"-\",IF(COUNTA('Enrollment Form'!T621:U621)<2,\"N\",\"Y\"))","v":"-"},{"$f":"IF(B614=\"N\",\"\",IF(OR('Enrollment Form'!C621=\"ROC\",'Enrollment Form'!B621<>\"Subscriber\",'Enrollment Form'!O621=\"Waive\",'Enrollment Form'!O621=\"\"),\"-\",IF('Enrollment Form'!P621=\"\",\"N\",\"Y\")))","v":""},{"$f":"IF($B614=\"N\",\"\",IF(AND('Enrollment Form'!$C621=\"ROC\",'Enrollment Form'!$DR621<>\"\"),\"Y\",IF(AND('Enrollment Form'!$C621=\"ROC\",'Enrollment Form'!$DR621=\"\"),\"N\",IF(AND('Enrollment Form'!$C621=\"Enroll\",'Enrollment Form'!$B621=\"Subscriber\",'Enrollment Form'!$CX621=\"No\",'Enrollment Form'!$DR621=\"\"),\"N\",IF(AND('Enrollment Form'!$C621=\"Enroll\",'Enrollment Form'!$B621=\"Subscriber\",'Enrollment Form'!$CX621=\"Yes\"),\"-\",\"Y\")))))","v":""},{"$f":"IF($B614=\"N\",\"\",IF(AND('Enrollment Form'!$C621=\"ROC\",'Enrollment Form'!$DS621<>\"\"),\"Y\",IF(AND('Enrollment Form'!$C621=\"ROC\",'Enrollment Form'!$DS621=\"\"),\"N\",IF(AND('Enrollment Form'!$C621=\"Enroll\",'Enrollment Form'!$B621=\"Subscriber\",'Enrollment Form'!$CX621=\"No\",'Enrollment Form'!$DS621=\"\"),\"N\",IF(AND('Enrollment Form'!$C621=\"Enroll\",'Enrollment Form'!$B621=\"Subscriber\",'Enrollment Form'!$CX621=\"Yes\"),\"-\",\"Y\")))))","v":""},{"$f":"IF('Enrollment Form'!AH621=\"\",\"\",IF(ISERROR(SEARCH(\".\",'Enrollment Form'!AH621,SEARCH(\"@\",'Enrollment Form'!AH621))),\"N\",\"Y\"))","v":""},{"$f":"IF(OR($B614=\"N\",'Enrollment Form'!$G621=\"\"),\"\",IF('Enrollment Form'!$B621<>\"Subscriber\",\"-\",IF(COUNTIF('Enrollment Form'!$AV621:$AW621,\"Yes\")=2,\"N\",\"Y\")))","v":""},{"$f":"IF(OR('Enrollment Form'!$CJ621=\"\",'Enrollment Form'!$CJ621=\"No\"),\"-\",IF(AND('Enrollment Form'!$CJ621=\"Yes\",'Enrollment Form'!$CK621=\"\"),\"N\",\"Y\"))","v":"-"},{"$f":"IF(OR('Enrollment Form'!$CL621=\"\",'Enrollment Form'!$CL621=\"No\"),\"-\",IF(AND('Enrollment Form'!$CL621=\"Yes\",'Enrollment Form'!$CM621=\"\"),\"N\",\"Y\"))","v":"-"},{"$f":"IF(OR('Enrollment Form'!$CN621=\"\",'Enrollment Form'!$CN621=\"No\"),\"-\",IF(AND('Enrollment Form'!$CN621=\"Yes\",'Enrollment Form'!$CO621=\"\"),\"N\",\"Y\"))","v":"-"},{"$f":"IF(OR('Enrollment Form'!$CN621=\"\",'Enrollment Form'!$CN621=\"No\"),\"-\",IF(AND('Enrollment Form'!$CN621=\"Yes\",'Enrollment Form'!$CP621=\"\"),\"N\",\"Y\"))","v":"-"},{"$f":"IF('Enrollment Form'!B621<>\"Subscriber\",\"-\",IF(AND('Enrollment Form'!B621=\"Subscriber\",'Enrollment Form'!C621=\"Enroll\",'Enrollment Form'!AA621=\"\"),\"N\",\"Y\"))","v":"-"},{"$f":"IF(OR('Enrollment Form'!B621=\"Subscriber\",'Enrollment Form'!B621=\"\"),\"-\",IF('Enrollment Form'!BP621=\"\",\"N\",\"Y\"))","v":"-"},{"$f":"IF('Enrollment Form'!B621<>\"Subscriber\",\"-\",IF(AND('Enrollment Form'!B621=\"Subscriber\",'Enrollment Form'!G621=\"\"),\"N\",\"Y\"))","v":"-"},{"$f":"IF('Enrollment Form'!A621=\"\",\"\",IF('Enrollment Form'!B621=\"Subscriber\",\"-\",IF(AND('Enrollment Form'!B621<>\"Subscriber\",'Enrollment Form'!G621='Enrollment Form'!H621),\"N\",\"Y\")))","v":""},0]
[622,{"$f":"IF('Enrollment Form'!$A622<>\"\",\"Y\",\"N\")","v":"N"},{"$f":"IF(AND('Enrollment Form'!$B622=\"\",'Enrollment Form'!$C622<>\"\"),\"N\",IF($B615=\"N\",\"\",\"Y\"))","v":""},{"$f":"IF(OR($B615=\"N\",'Enrollment Form'!G622=\"\"),\"\",IF('Enrollment Form'!$B622<>\"Subscriber\",\"\",IF('Enrollment Form'!$G622='Enrollment Form'!$H622,\"Y\",\"N\")))","v":""},{"$f":"IF($B615=\"N\",\"\",IF(AND(COUNTIFS('Enrollment Form'!$H$11:$H$1000,'Enrollment Form'!$H622,'Enrollment Form'!$B$11:$B$1000,'Enrollment Form'!$B622)>1,'Enrollment Form'!$H622<>\"\"),\"N\",\"Y\"))","v":""},{"$f":"IF($B615=\"N\",\"\",IF(LEN('Enrollment Form'!$Y622)=0,\"\",IF(LEN('Enrollment Form'!$Y622)<>5,\"N\",\"Y\")))","v":""},{"$f":"IF($B615=\"N\",\"\",IF(LEN('Enrollment Form'!$AD622=0),\"\",IF(LEN('Enrollment Form'!$AD622)<>5,\"N\",\"Y\")))","v":""},{"$f":"IF($B615=\"N\",\"\",IF(LEN('Enrollment Form'!$BS622=0),\"\",IF(LEN('Enrollment Form'!$BS622)<>5,\"N\",\"Y\")))","v":""},{"$f":"IF($B615=\"N\",\"\",IF(LEN('Enrollment Form'!$AE622)=0,\"\",IF(LEN('Enrollment Form'!$AE622)<>10,\"N\",\"Y\")))","v":""},{"$f":"IF($B615=\"N\",\"\",IF(LEN('Enrollment Form'!$AF622)=0,\"\",IF(LEN('Enrollment Form'!$AF622)<>10,\"N\",\"Y\")))","v":""},{"$f":"IF('Enrollment Form'!$O622<>\"Graded\",\"-\",IF(AND('Enrollment Form'!$O622=\"Graded\",'Enrollment Form'!$AR622<>\"\"),\"Y\",\"N\"))","v":"-"},{"$f":"IF($B615=\"N\",\"\",IF(OR('Enrollment Form'!$B622<>\"Subscriber\",'Enrollment Form'!$C622=\"ROC\"),\"-\",IF(AND('Enrollment Form'!$B622=\"Subscriber\",'Enrollment Form'!$C622=\"Enroll\",'Enrollment Form'!$AJ622<>\"\"),\"Y\",\"N\")))","v":""},{"$f":"IF($B615=\"N\",\"\",IF(OR('Enrollment Form'!$B622<>\"Subscriber\",'Enrollment Form'!$C622=\"ROC\"),\"-\",IF(AND('Enrollment Form'!$B622=\"Subscriber\",'Enrollment Form'!$C622=\"Enroll\",'Enrollment Form'!$AK622<>\"\"),\"Y\",\"N\")))","v":""},{"$f":"IF($B615=\"N\",\"\",IF(OR('Enrollment Form'!$B622<>\"Subscriber\",'Enrollment Form'!$C622=\"ROC\"),\"-\",IF(AND('Enrollment Form'!$B622=\"Subscriber\",'Enrollment Form'!$C622=\"Enroll\",'Enrollment Form'!$AL622<>\"\"),\"Y\",\"N\")))","v":""},{"$f":"IF($B615=\"N\",\"\",IF(OR('Enrollment Form'!$B622<>\"Subscriber\",'Enrollment Form'!$C622=\"ROC\"),\"-\",IF(AND('Enrollment Form'!$B622=\"Subscriber\",'Enrollment Form'!$C622=\"Enroll\",'Enrollment Form'!$AP622<>\"\"),\"Y\",\"N\")))","v":""},{"$f":"IF($B615=\"N\",\"\",IF(OR('Enrollment Form'!$B622<>\"Subscriber\",'Enrollment Form'!$C622=\"ROC\"),\"-\",IF(AND('Enrollment Form'!$B622=\"Subscriber\",'Enrollment Form'!$C622=\"Enroll\",'Enrollment Form'!$AQ622<>\"\"),\"Y\",\"N\")))","v":""},{"$f":"IF($B615=\"N\",\"\",IF(OR('Enrollment Form'!$B622<>\"Subscriber\",'Enrollment Form'!$C622=\"ROC\"),\"-\",IF(AND('Enrollment Form'!$B622=\"Subscriber\",'Enrollment Form'!$C622=\"Enroll\",'Enrollment Form'!$AS622<>\"\"),\"Y\",\"N\")))","v":""},{"$f":"IF($B615=\"N\",\"\",IF($Q615=\"-\",\"-\",IF(AND($Q615=\"Y\",'Enrollment Form'!$AS622=\"No\"),\"-\",IF(AND($Q615=\"Y\",'Enrollment Form'!$AS622=\"Yes\",'Enrollment Form'!$AT622<>\"\"),\"Y\",\"N\"))))","v":""},{"$f":"IF($B615=\"N\",\"\",IF(OR('Enrollment Form'!$B622<>\"Subscriber\",'Enrollment Form'!$C622=\"ROC\"),\"-\",IF(AND('Enrollment Form'!$B622=\"Subscriber\",'Enrollment Form'!$C622=\"Enroll\",'Enrollment Form'!$CV622<>\"\"),\"Y\",\"N\")))","v":""},{"$f":"IF($B615=\"N\",\"\",IF($S615=\"-\",\"-\",IF(AND($S615=\"Y\",'Enrollment Form'!$CV622=\"No\"),\"-\",IF(AND($S615=\"Y\",'Enrollment Form'!$CV622=\"Yes\",'Enrollment Form'!$CW622<>\"\"),\"Y\",\"N\"))))","v":""},{"$f":"IF(OR('Enrollment Form'!$AY622=\"Yes\",'Enrollment Form'!$AY622=\"\"),\"-\",IF(OR(AND('Enrollment Form'!$AY622=\"No\",ISERROR(FIND(\"HMO\",VLOOKUP('Enrollment Form'!G622,'Enrollment Form'!H$11:J$1000,3,FALSE),1))=FALSE,COUNTA('Enrollment Form'!$AZ622:$BC622)=4),AND('Enrollment Form'!$AY622=\"No\",ISERROR(FIND(\"HMO\",VLOOKUP('Enrollment Form'!G622,'Enrollment Form'!H$11:J$1000,3,FALSE),1))=FALSE,COUNTA('Enrollment Form'!$BT622:$BW622)=4)),\"Y\",\"N\"))","v":"-"},{"$f":"IF($B615=\"N\",\"\",IF('Enrollment Form'!$B622=\"Subscriber\",\"-\",IF(COUNTA('Enrollment Form'!$BL622,'Enrollment Form'!$BN622)=2,\"Y\",\"N\")))","v":""},{"$f":"IF($B615=\"N\",\"\",IF(OR('Enrollment Form'!$AX622=\"\",'Enrollment Form'!$AX622=\"No\"),\"-\",IF(AND('Enrollment Form'!$AX622=\"Yes\",COUNTA('Enrollment Form'!$CR622)=1),\"Y\",\"N\")))","v":""},{"$f":"IF(OR('Enrollment Form'!$CR622=\"\",'Enrollment Form'!$CR622=\"No\"),\"-\",IF(COUNTA('Enrollment Form'!$CT622:$CU622)=2,\"Y\",\"N\"))","v":"-"},{"$f":"IF($B615=\"N\",\"\",IF(COUNTIF('Enrollment Form'!$DG622:$DP622,\"Other\")=COUNTA('Enrollment Form'!$DK622,'Enrollment Form'!$DH622,'Enrollment Form'!$DN622,'Enrollment Form'!$DQ622),\"Y\",\"N\"))","v":""},{"$f":"IF($B615=\"N\",\"\",IF(OR('Enrollment Form'!B622<>\"Subscriber\",'Enrollment Form'!C622=\"ROC\",COUNTIF('Enrollment Form'!AV622:AW622,\"Yes\")>=1),\"-\",IF(AND('Enrollment Form'!C622=\"Enroll\",COUNTIF('Enrollment Form'!AV622:AW622,\"No\")=2,'Enrollment Form'!AX622=\"\"),\"N\",\"Y\")))","v":""},{"$f":"IF(OR(B615=\"N\",'Enrollment Form'!B622<>\"Subscriber\",'Enrollment Form'!C622=\"ROC\",'Enrollment Form'!O622<>\"Multiple of Salary\"),\"-\",IF(COUNTA('Enrollment Form'!T622:U622)<2,\"N\",\"Y\"))","v":"-"},{"$f":"IF(B615=\"N\",\"\",IF(OR('Enrollment Form'!C622=\"ROC\",'Enrollment Form'!B622<>\"Subscriber\",'Enrollment Form'!O622=\"Waive\",'Enrollment Form'!O622=\"\"),\"-\",IF('Enrollment Form'!P622=\"\",\"N\",\"Y\")))","v":""},{"$f":"IF($B615=\"N\",\"\",IF(AND('Enrollment Form'!$C622=\"ROC\",'Enrollment Form'!$DR622<>\"\"),\"Y\",IF(AND('Enrollment Form'!$C622=\"ROC\",'Enrollment Form'!$DR622=\"\"),\"N\",IF(AND('Enrollment Form'!$C622=\"Enroll\",'Enrollment Form'!$B622=\"Subscriber\",'Enrollment Form'!$CX622=\"No\",'Enrollment Form'!$DR622=\"\"),\"N\",IF(AND('Enrollment Form'!$C622=\"Enroll\",'Enrollment Form'!$B622=\"Subscriber\",'Enrollment Form'!$CX622=\"Yes\"),\"-\",\"Y\")))))","v":""},{"$f":"IF($B615=\"N\",\"\",IF(AND('Enrollment Form'!$C622=\"ROC\",'Enrollment Form'!$DS622<>\"\"),\"Y\",IF(AND('Enrollment Form'!$C622=\"ROC\",'Enrollment Form'!$DS622=\"\"),\"N\",IF(AND('Enrollment Form'!$C622=\"Enroll\",'Enrollment Form'!$B622=\"Subscriber\",'Enrollment Form'!$CX622=\"No\",'Enrollment Form'!$DS622=\"\"),\"N\",IF(AND('Enrollment Form'!$C622=\"Enroll\",'Enrollment Form'!$B622=\"Subscriber\",'Enrollment Form'!$CX622=\"Yes\"),\"-\",\"Y\")))))","v":""},{"$f":"IF('Enrollment Form'!AH622=\"\",\"\",IF(ISERROR(SEARCH(\".\",'Enrollment Form'!AH622,SEARCH(\"@\",'Enrollment Form'!AH622))),\"N\",\"Y\"))","v":""},{"$f":"IF(OR($B615=\"N\",'Enrollment Form'!$G622=\"\"),\"\",IF('Enrollment Form'!$B622<>\"Subscriber\",\"-\",IF(COUNTIF('Enrollment Form'!$AV622:$AW622,\"Yes\")=2,\"N\",\"Y\")))","v":""},{"$f":"IF(OR('Enrollment Form'!$CJ622=\"\",'Enrollment Form'!$CJ622=\"No\"),\"-\",IF(AND('Enrollment Form'!$CJ622=\"Yes\",'Enrollment Form'!$CK622=\"\"),\"N\",\"Y\"))","v":"-"},{"$f":"IF(OR('Enrollment Form'!$CL622=\"\",'Enrollment Form'!$CL622=\"No\"),\"-\",IF(AND('Enrollment Form'!$CL622=\"Yes\",'Enrollment Form'!$CM622=\"\"),\"N\",\"Y\"))","v":"-"},{"$f":"IF(OR('Enrollment Form'!$CN622=\"\",'Enrollment Form'!$CN622=\"No\"),\"-\",IF(AND('Enrollment Form'!$CN622=\"Yes\",'Enrollment Form'!$CO622=\"\"),\"N\",\"Y\"))","v":"-"},{"$f":"IF(OR('Enrollment Form'!$CN622=\"\",'Enrollment Form'!$CN622=\"No\"),\"-\",IF(AND('Enrollment Form'!$CN622=\"Yes\",'Enrollment Form'!$CP622=\"\"),\"N\",\"Y\"))","v":"-"},{"$f":"IF('Enrollment Form'!B622<>\"Subscriber\",\"-\",IF(AND('Enrollment Form'!B622=\"Subscriber\",'Enrollment Form'!C622=\"Enroll\",'Enrollment Form'!AA622=\"\"),\"N\",\"Y\"))","v":"-"},{"$f":"IF(OR('Enrollment Form'!B622=\"Subscriber\",'Enrollment Form'!B622=\"\"),\"-\",IF('Enrollment Form'!BP622=\"\",\"N\",\"Y\"))","v":"-"},{"$f":"IF('Enrollment Form'!B622<>\"Subscriber\",\"-\",IF(AND('Enrollment Form'!B622=\"Subscriber\",'Enrollment Form'!G622=\"\"),\"N\",\"Y\"))","v":"-"},{"$f":"IF('Enrollment Form'!A622=\"\",\"\",IF('Enrollment Form'!B622=\"Subscriber\",\"-\",IF(AND('Enrollment Form'!B622<>\"Subscriber\",'Enrollment Form'!G622='Enrollment Form'!H622),\"N\",\"Y\")))","v":""},0]
[623,{"$f":"IF('Enrollment Form'!$A623<>\"\",\"Y\",\"N\")","v":"N"},{"$f":"IF(AND('Enrollment Form'!$B623=\"\",'Enrollment Form'!$C623<>\"\"),\"N\",IF($B616=\"N\",\"\",\"Y\"))","v":""},{"$f":"IF(OR($B616=\"N\",'Enrollment Form'!G623=\"\"),\"\",IF('Enrollment Form'!$B623<>\"Subscriber\",\"\",IF('Enrollment Form'!$G623='Enrollment Form'!$H623,\"Y\",\"N\")))","v":""},{"$f":"IF($B616=\"N\",\"\",IF(AND(COUNTIFS('Enrollment Form'!$H$11:$H$1000,'Enrollment Form'!$H623,'Enrollment Form'!$B$11:$B$1000,'Enrollment Form'!$B623)>1,'Enrollment Form'!$H623<>\"\"),\"N\",\"Y\"))","v":""},{"$f":"IF($B616=\"N\",\"\",IF(LEN('Enrollment Form'!$Y623)=0,\"\",IF(LEN('Enrollment Form'!$Y623)<>5,\"N\",\"Y\")))","v":""},{"$f":"IF($B616=\"N\",\"\",IF(LEN('Enrollment Form'!$AD623=0),\"\",IF(LEN('Enrollment Form'!$AD623)<>5,\"N\",\"Y\")))","v":""},{"$f":"IF($B616=\"N\",\"\",IF(LEN('Enrollment Form'!$BS623=0),\"\",IF(LEN('Enrollment Form'!$BS623)<>5,\"N\",\"Y\")))","v":""},{"$f":"IF($B616=\"N\",\"\",IF(LEN('Enrollment Form'!$AE623)=0,\"\",IF(LEN('Enrollment Form'!$AE623)<>10,\"N\",\"Y\")))","v":""},{"$f":"IF($B616=\"N\",\"\",IF(LEN('Enrollment Form'!$AF623)=0,\"\",IF(LEN('Enrollment Form'!$AF623)<>10,\"N\",\"Y\")))","v":""},{"$f":"IF('Enrollment Form'!$O623<>\"Graded\",\"-\",IF(AND('Enrollment Form'!$O623=\"Graded\",'Enrollment Form'!$AR623<>\"\"),\"Y\",\"N\"))","v":"-"},{"$f":"IF($B616=\"N\",\"\",IF(OR('Enrollment Form'!$B623<>\"Subscriber\",'Enrollment Form'!$C623=\"ROC\"),\"-\",IF(AND('Enrollment Form'!$B623=\"Subscriber\",'Enrollment Form'!$C623=\"Enroll\",'Enrollment Form'!$AJ623<>\"\"),\"Y\",\"N\")))","v":""},{"$f":"IF($B616=\"N\",\"\",IF(OR('Enrollment Form'!$B623<>\"Subscriber\",'Enrollment Form'!$C623=\"ROC\"),\"-\",IF(AND('Enrollment Form'!$B623=\"Subscriber\",'Enrollment Form'!$C623=\"Enroll\",'Enrollment Form'!$AK623<>\"\"),\"Y\",\"N\")))","v":""},{"$f":"IF($B616=\"N\",\"\",IF(OR('Enrollment Form'!$B623<>\"Subscriber\",'Enrollment Form'!$C623=\"ROC\"),\"-\",IF(AND('Enrollment Form'!$B623=\"Subscriber\",'Enrollment Form'!$C623=\"Enroll\",'Enrollment Form'!$AL623<>\"\"),\"Y\",\"N\")))","v":""},{"$f":"IF($B616=\"N\",\"\",IF(OR('Enrollment Form'!$B623<>\"Subscriber\",'Enrollment Form'!$C623=\"ROC\"),\"-\",IF(AND('Enrollment Form'!$B623=\"Subscriber\",'Enrollment Form'!$C623=\"Enroll\",'Enrollment Form'!$AP623<>\"\"),\"Y\",\"N\")))","v":""},{"$f":"IF($B616=\"N\",\"\",IF(OR('Enrollment Form'!$B623<>\"Subscriber\",'Enrollment Form'!$C623=\"ROC\"),\"-\",IF(AND('Enrollment Form'!$B623=\"Subscriber\",'Enrollment Form'!$C623=\"Enroll\",'Enrollment Form'!$AQ623<>\"\"),\"Y\",\"N\")))","v":""},{"$f":"IF($B616=\"N\",\"\",IF(OR('Enrollment Form'!$B623<>\"Subscriber\",'Enrollment Form'!$C623=\"ROC\"),\"-\",IF(AND('Enrollment Form'!$B623=\"Subscriber\",'Enrollment Form'!$C623=\"Enroll\",'Enrollment Form'!$AS623<>\"\"),\"Y\",\"N\")))","v":""},{"$f":"IF($B616=\"N\",\"\",IF($Q616=\"-\",\"-\",IF(AND($Q616=\"Y\",'Enrollment Form'!$AS623=\"No\"),\"-\",IF(AND($Q616=\"Y\",'Enrollment Form'!$AS623=\"Yes\",'Enrollment Form'!$AT623<>\"\"),\"Y\",\"N\"))))","v":""},{"$f":"IF($B616=\"N\",\"\",IF(OR('Enrollment Form'!$B623<>\"Subscriber\",'Enrollment Form'!$C623=\"ROC\"),\"-\",IF(AND('Enrollment Form'!$B623=\"Subscriber\",'Enrollment Form'!$C623=\"Enroll\",'Enrollment Form'!$CV623<>\"\"),\"Y\",\"N\")))","v":""},{"$f":"IF($B616=\"N\",\"\",IF($S616=\"-\",\"-\",IF(AND($S616=\"Y\",'Enrollment Form'!$CV623=\"No\"),\"-\",IF(AND($S616=\"Y\",'Enrollment Form'!$CV623=\"Yes\",'Enrollment Form'!$CW623<>\"\"),\"Y\",\"N\"))))","v":""},{"$f":"IF(OR('Enrollment Form'!$AY623=\"Yes\",'Enrollment Form'!$AY623=\"\"),\"-\",IF(OR(AND('Enrollment Form'!$AY623=\"No\",ISERROR(FIND(\"HMO\",VLOOKUP('Enrollment Form'!G623,'Enrollment Form'!H$11:J$1000,3,FALSE),1))=FALSE,COUNTA('Enrollment Form'!$AZ623:$BC623)=4),AND('Enrollment Form'!$AY623=\"No\",ISERROR(FIND(\"HMO\",VLOOKUP('Enrollment Form'!G623,'Enrollment Form'!H$11:J$1000,3,FALSE),1))=FALSE,COUNTA('Enrollment Form'!$BT623:$BW623)=4)),\"Y\",\"N\"))","v":"-"},{"$f":"IF($B616=\"N\",\"\",IF('Enrollment Form'!$B623=\"Subscriber\",\"-\",IF(COUNTA('Enrollment Form'!$BL623,'Enrollment Form'!$BN623)=2,\"Y\",\"N\")))","v":""},{"$f":"IF($B616=\"N\",\"\",IF(OR('Enrollment Form'!$AX623=\"\",'Enrollment Form'!$AX623=\"No\"),\"-\",IF(AND('Enrollment Form'!$AX623=\"Yes\",COUNTA('Enrollment Form'!$CR623)=1),\"Y\",\"N\")))","v":""},{"$f":"IF(OR('Enrollment Form'!$CR623=\"\",'Enrollment Form'!$CR623=\"No\"),\"-\",IF(COUNTA('Enrollment Form'!$CT623:$CU623)=2,\"Y\",\"N\"))","v":"-"},{"$f":"IF($B616=\"N\",\"\",IF(COUNTIF('Enrollment Form'!$DG623:$DP623,\"Other\")=COUNTA('Enrollment Form'!$DK623,'Enrollment Form'!$DH623,'Enrollment Form'!$DN623,'Enrollment Form'!$DQ623),\"Y\",\"N\"))","v":""},{"$f":"IF($B616=\"N\",\"\",IF(OR('Enrollment Form'!B623<>\"Subscriber\",'Enrollment Form'!C623=\"ROC\",COUNTIF('Enrollment Form'!AV623:AW623,\"Yes\")>=1),\"-\",IF(AND('Enrollment Form'!C623=\"Enroll\",COUNTIF('Enrollment Form'!AV623:AW623,\"No\")=2,'Enrollment Form'!AX623=\"\"),\"N\",\"Y\")))","v":""},{"$f":"IF(OR(B616=\"N\",'Enrollment Form'!B623<>\"Subscriber\",'Enrollment Form'!C623=\"ROC\",'Enrollment Form'!O623<>\"Multiple of Salary\"),\"-\",IF(COUNTA('Enrollment Form'!T623:U623)<2,\"N\",\"Y\"))","v":"-"},{"$f":"IF(B616=\"N\",\"\",IF(OR('Enrollment Form'!C623=\"ROC\",'Enrollment Form'!B623<>\"Subscriber\",'Enrollment Form'!O623=\"Waive\",'Enrollment Form'!O623=\"\"),\"-\",IF('Enrollment Form'!P623=\"\",\"N\",\"Y\")))","v":""},{"$f":"IF($B616=\"N\",\"\",IF(AND('Enrollment Form'!$C623=\"ROC\",'Enrollment Form'!$DR623<>\"\"),\"Y\",IF(AND('Enrollment Form'!$C623=\"ROC\",'Enrollment Form'!$DR623=\"\"),\"N\",IF(AND('Enrollment Form'!$C623=\"Enroll\",'Enrollment Form'!$B623=\"Subscriber\",'Enrollment Form'!$CX623=\"No\",'Enrollment Form'!$DR623=\"\"),\"N\",IF(AND('Enrollment Form'!$C623=\"Enroll\",'Enrollment Form'!$B623=\"Subscriber\",'Enrollment Form'!$CX623=\"Yes\"),\"-\",\"Y\")))))","v":""},{"$f":"IF($B616=\"N\",\"\",IF(AND('Enrollment Form'!$C623=\"ROC\",'Enrollment Form'!$DS623<>\"\"),\"Y\",IF(AND('Enrollment Form'!$C623=\"ROC\",'Enrollment Form'!$DS623=\"\"),\"N\",IF(AND('Enrollment Form'!$C623=\"Enroll\",'Enrollment Form'!$B623=\"Subscriber\",'Enrollment Form'!$CX623=\"No\",'Enrollment Form'!$DS623=\"\"),\"N\",IF(AND('Enrollment Form'!$C623=\"Enroll\",'Enrollment Form'!$B623=\"Subscriber\",'Enrollment Form'!$CX623=\"Yes\"),\"-\",\"Y\")))))","v":""},{"$f":"IF('Enrollment Form'!AH623=\"\",\"\",IF(ISERROR(SEARCH(\".\",'Enrollment Form'!AH623,SEARCH(\"@\",'Enrollment Form'!AH623))),\"N\",\"Y\"))","v":""},{"$f":"IF(OR($B616=\"N\",'Enrollment Form'!$G623=\"\"),\"\",IF('Enrollment Form'!$B623<>\"Subscriber\",\"-\",IF(COUNTIF('Enrollment Form'!$AV623:$AW623,\"Yes\")=2,\"N\",\"Y\")))","v":""},{"$f":"IF(OR('Enrollment Form'!$CJ623=\"\",'Enrollment Form'!$CJ623=\"No\"),\"-\",IF(AND('Enrollment Form'!$CJ623=\"Yes\",'Enrollment Form'!$CK623=\"\"),\"N\",\"Y\"))","v":"-"},{"$f":"IF(OR('Enrollment Form'!$CL623=\"\",'Enrollment Form'!$CL623=\"No\"),\"-\",IF(AND('Enrollment Form'!$CL623=\"Yes\",'Enrollment Form'!$CM623=\"\"),\"N\",\"Y\"))","v":"-"},{"$f":"IF(OR('Enrollment Form'!$CN623=\"\",'Enrollment Form'!$CN623=\"No\"),\"-\",IF(AND('Enrollment Form'!$CN623=\"Yes\",'Enrollment Form'!$CO623=\"\"),\"N\",\"Y\"))","v":"-"},{"$f":"IF(OR('Enrollment Form'!$CN623=\"\",'Enrollment Form'!$CN623=\"No\"),\"-\",IF(AND('Enrollment Form'!$CN623=\"Yes\",'Enrollment Form'!$CP623=\"\"),\"N\",\"Y\"))","v":"-"},{"$f":"IF('Enrollment Form'!B623<>\"Subscriber\",\"-\",IF(AND('Enrollment Form'!B623=\"Subscriber\",'Enrollment Form'!C623=\"Enroll\",'Enrollment Form'!AA623=\"\"),\"N\",\"Y\"))","v":"-"},{"$f":"IF(OR('Enrollment Form'!B623=\"Subscriber\",'Enrollment Form'!B623=\"\"),\"-\",IF('Enrollment Form'!BP623=\"\",\"N\",\"Y\"))","v":"-"},{"$f":"IF('Enrollment Form'!B623<>\"Subscriber\",\"-\",IF(AND('Enrollment Form'!B623=\"Subscriber\",'Enrollment Form'!G623=\"\"),\"N\",\"Y\"))","v":"-"},{"$f":"IF('Enrollment Form'!A623=\"\",\"\",IF('Enrollment Form'!B623=\"Subscriber\",\"-\",IF(AND('Enrollment Form'!B623<>\"Subscriber\",'Enrollment Form'!G623='Enrollment Form'!H623),\"N\",\"Y\")))","v":""},0]
[624,{"$f":"IF('Enrollment Form'!$A624<>\"\",\"Y\",\"N\")","v":"N"},{"$f":"IF(AND('Enrollment Form'!$B624=\"\",'Enrollment Form'!$C624<>\"\"),\"N\",IF($B617=\"N\",\"\",\"Y\"))","v":""},{"$f":"IF(OR($B617=\"N\",'Enrollment Form'!G624=\"\"),\"\",IF('Enrollment Form'!$B624<>\"Subscriber\",\"\",IF('Enrollment Form'!$G624='Enrollment Form'!$H624,\"Y\",\"N\")))","v":""},{"$f":"IF($B617=\"N\",\"\",IF(AND(COUNTIFS('Enrollment Form'!$H$11:$H$1000,'Enrollment Form'!$H624,'Enrollment Form'!$B$11:$B$1000,'Enrollment Form'!$B624)>1,'Enrollment Form'!$H624<>\"\"),\"N\",\"Y\"))","v":""},{"$f":"IF($B617=\"N\",\"\",IF(LEN('Enrollment Form'!$Y624)=0,\"\",IF(LEN('Enrollment Form'!$Y624)<>5,\"N\",\"Y\")))","v":""},{"$f":"IF($B617=\"N\",\"\",IF(LEN('Enrollment Form'!$AD624=0),\"\",IF(LEN('Enrollment Form'!$AD624)<>5,\"N\",\"Y\")))","v":""},{"$f":"IF($B617=\"N\",\"\",IF(LEN('Enrollment Form'!$BS624=0),\"\",IF(LEN('Enrollment Form'!$BS624)<>5,\"N\",\"Y\")))","v":""},{"$f":"IF($B617=\"N\",\"\",IF(LEN('Enrollment Form'!$AE624)=0,\"\",IF(LEN('Enrollment Form'!$AE624)<>10,\"N\",\"Y\")))","v":""},{"$f":"IF($B617=\"N\",\"\",IF(LEN('Enrollment Form'!$AF624)=0,\"\",IF(LEN('Enrollment Form'!$AF624)<>10,\"N\",\"Y\")))","v":""},{"$f":"IF('Enrollment Form'!$O624<>\"Graded\",\"-\",IF(AND('Enrollment Form'!$O624=\"Graded\",'Enrollment Form'!$AR624<>\"\"),\"Y\",\"N\"))","v":"-"},{"$f":"IF($B617=\"N\",\"\",IF(OR('Enrollment Form'!$B624<>\"Subscriber\",'Enrollment Form'!$C624=\"ROC\"),\"-\",IF(AND('Enrollment Form'!$B624=\"Subscriber\",'Enrollment Form'!$C624=\"Enroll\",'Enrollment Form'!$AJ624<>\"\"),\"Y\",\"N\")))","v":""},{"$f":"IF($B617=\"N\",\"\",IF(OR('Enrollment Form'!$B624<>\"Subscriber\",'Enrollment Form'!$C624=\"ROC\"),\"-\",IF(AND('Enrollment Form'!$B624=\"Subscriber\",'Enrollment Form'!$C624=\"Enroll\",'Enrollment Form'!$AK624<>\"\"),\"Y\",\"N\")))","v":""},{"$f":"IF($B617=\"N\",\"\",IF(OR('Enrollment Form'!$B624<>\"Subscriber\",'Enrollment Form'!$C624=\"ROC\"),\"-\",IF(AND('Enrollment Form'!$B624=\"Subscriber\",'Enrollment Form'!$C624=\"Enroll\",'Enrollment Form'!$AL624<>\"\"),\"Y\",\"N\")))","v":""},{"$f":"IF($B617=\"N\",\"\",IF(OR('Enrollment Form'!$B624<>\"Subscriber\",'Enrollment Form'!$C624=\"ROC\"),\"-\",IF(AND('Enrollment Form'!$B624=\"Subscriber\",'Enrollment Form'!$C624=\"Enroll\",'Enrollment Form'!$AP624<>\"\"),\"Y\",\"N\")))","v":""},{"$f":"IF($B617=\"N\",\"\",IF(OR('Enrollment Form'!$B624<>\"Subscriber\",'Enrollment Form'!$C624=\"ROC\"),\"-\",IF(AND('Enrollment Form'!$B624=\"Subscriber\",'Enrollment Form'!$C624=\"Enroll\",'Enrollment Form'!$AQ624<>\"\"),\"Y\",\"N\")))","v":""},{"$f":"IF($B617=\"N\",\"\",IF(OR('Enrollment Form'!$B624<>\"Subscriber\",'Enrollment Form'!$C624=\"ROC\"),\"-\",IF(AND('Enrollment Form'!$B624=\"Subscriber\",'Enrollment Form'!$C624=\"Enroll\",'Enrollment Form'!$AS624<>\"\"),\"Y\",\"N\")))","v":""},{"$f":"IF($B617=\"N\",\"\",IF($Q617=\"-\",\"-\",IF(AND($Q617=\"Y\",'Enrollment Form'!$AS624=\"No\"),\"-\",IF(AND($Q617=\"Y\",'Enrollment Form'!$AS624=\"Yes\",'Enrollment Form'!$AT624<>\"\"),\"Y\",\"N\"))))","v":""},{"$f":"IF($B617=\"N\",\"\",IF(OR('Enrollment Form'!$B624<>\"Subscriber\",'Enrollment Form'!$C624=\"ROC\"),\"-\",IF(AND('Enrollment Form'!$B624=\"Subscriber\",'Enrollment Form'!$C624=\"Enroll\",'Enrollment Form'!$CV624<>\"\"),\"Y\",\"N\")))","v":""},{"$f":"IF($B617=\"N\",\"\",IF($S617=\"-\",\"-\",IF(AND($S617=\"Y\",'Enrollment Form'!$CV624=\"No\"),\"-\",IF(AND($S617=\"Y\",'Enrollment Form'!$CV624=\"Yes\",'Enrollment Form'!$CW624<>\"\"),\"Y\",\"N\"))))","v":""},{"$f":"IF(OR('Enrollment Form'!$AY624=\"Yes\",'Enrollment Form'!$AY624=\"\"),\"-\",IF(OR(AND('Enrollment Form'!$AY624=\"No\",ISERROR(FIND(\"HMO\",VLOOKUP('Enrollment Form'!G624,'Enrollment Form'!H$11:J$1000,3,FALSE),1))=FALSE,COUNTA('Enrollment Form'!$AZ624:$BC624)=4),AND('Enrollment Form'!$AY624=\"No\",ISERROR(FIND(\"HMO\",VLOOKUP('Enrollment Form'!G624,'Enrollment Form'!H$11:J$1000,3,FALSE),1))=FALSE,COUNTA('Enrollment Form'!$BT624:$BW624)=4)),\"Y\",\"N\"))","v":"-"},{"$f":"IF($B617=\"N\",\"\",IF('Enrollment Form'!$B624=\"Subscriber\",\"-\",IF(COUNTA('Enrollment Form'!$BL624,'Enrollment Form'!$BN624)=2,\"Y\",\"N\")))","v":""},{"$f":"IF($B617=\"N\",\"\",IF(OR('Enrollment Form'!$AX624=\"\",'Enrollment Form'!$AX624=\"No\"),\"-\",IF(AND('Enrollment Form'!$AX624=\"Yes\",COUNTA('Enrollment Form'!$CR624)=1),\"Y\",\"N\")))","v":""},{"$f":"IF(OR('Enrollment Form'!$CR624=\"\",'Enrollment Form'!$CR624=\"No\"),\"-\",IF(COUNTA('Enrollment Form'!$CT624:$CU624)=2,\"Y\",\"N\"))","v":"-"},{"$f":"IF($B617=\"N\",\"\",IF(COUNTIF('Enrollment Form'!$DG624:$DP624,\"Other\")=COUNTA('Enrollment Form'!$DK624,'Enrollment Form'!$DH624,'Enrollment Form'!$DN624,'Enrollment Form'!$DQ624),\"Y\",\"N\"))","v":""},{"$f":"IF($B617=\"N\",\"\",IF(OR('Enrollment Form'!B624<>\"Subscriber\",'Enrollment Form'!C624=\"ROC\",COUNTIF('Enrollment Form'!AV624:AW624,\"Yes\")>=1),\"-\",IF(AND('Enrollment Form'!C624=\"Enroll\",COUNTIF('Enrollment Form'!AV624:AW624,\"No\")=2,'Enrollment Form'!AX624=\"\"),\"N\",\"Y\")))","v":""},{"$f":"IF(OR(B617=\"N\",'Enrollment Form'!B624<>\"Subscriber\",'Enrollment Form'!C624=\"ROC\",'Enrollment Form'!O624<>\"Multiple of Salary\"),\"-\",IF(COUNTA('Enrollment Form'!T624:U624)<2,\"N\",\"Y\"))","v":"-"},{"$f":"IF(B617=\"N\",\"\",IF(OR('Enrollment Form'!C624=\"ROC\",'Enrollment Form'!B624<>\"Subscriber\",'Enrollment Form'!O624=\"Waive\",'Enrollment Form'!O624=\"\"),\"-\",IF('Enrollment Form'!P624=\"\",\"N\",\"Y\")))","v":""},{"$f":"IF($B617=\"N\",\"\",IF(AND('Enrollment Form'!$C624=\"ROC\",'Enrollment Form'!$DR624<>\"\"),\"Y\",IF(AND('Enrollment Form'!$C624=\"ROC\",'Enrollment Form'!$DR624=\"\"),\"N\",IF(AND('Enrollment Form'!$C624=\"Enroll\",'Enrollment Form'!$B624=\"Subscriber\",'Enrollment Form'!$CX624=\"No\",'Enrollment Form'!$DR624=\"\"),\"N\",IF(AND('Enrollment Form'!$C624=\"Enroll\",'Enrollment Form'!$B624=\"Subscriber\",'Enrollment Form'!$CX624=\"Yes\"),\"-\",\"Y\")))))","v":""},{"$f":"IF($B617=\"N\",\"\",IF(AND('Enrollment Form'!$C624=\"ROC\",'Enrollment Form'!$DS624<>\"\"),\"Y\",IF(AND('Enrollment Form'!$C624=\"ROC\",'Enrollment Form'!$DS624=\"\"),\"N\",IF(AND('Enrollment Form'!$C624=\"Enroll\",'Enrollment Form'!$B624=\"Subscriber\",'Enrollment Form'!$CX624=\"No\",'Enrollment Form'!$DS624=\"\"),\"N\",IF(AND('Enrollment Form'!$C624=\"Enroll\",'Enrollment Form'!$B624=\"Subscriber\",'Enrollment Form'!$CX624=\"Yes\"),\"-\",\"Y\")))))","v":""},{"$f":"IF('Enrollment Form'!AH624=\"\",\"\",IF(ISERROR(SEARCH(\".\",'Enrollment Form'!AH624,SEARCH(\"@\",'Enrollment Form'!AH624))),\"N\",\"Y\"))","v":""},{"$f":"IF(OR($B617=\"N\",'Enrollment Form'!$G624=\"\"),\"\",IF('Enrollment Form'!$B624<>\"Subscriber\",\"-\",IF(COUNTIF('Enrollment Form'!$AV624:$AW624,\"Yes\")=2,\"N\",\"Y\")))","v":""},{"$f":"IF(OR('Enrollment Form'!$CJ624=\"\",'Enrollment Form'!$CJ624=\"No\"),\"-\",IF(AND('Enrollment Form'!$CJ624=\"Yes\",'Enrollment Form'!$CK624=\"\"),\"N\",\"Y\"))","v":"-"},{"$f":"IF(OR('Enrollment Form'!$CL624=\"\",'Enrollment Form'!$CL624=\"No\"),\"-\",IF(AND('Enrollment Form'!$CL624=\"Yes\",'Enrollment Form'!$CM624=\"\"),\"N\",\"Y\"))","v":"-"},{"$f":"IF(OR('Enrollment Form'!$CN624=\"\",'Enrollment Form'!$CN624=\"No\"),\"-\",IF(AND('Enrollment Form'!$CN624=\"Yes\",'Enrollment Form'!$CO624=\"\"),\"N\",\"Y\"))","v":"-"},{"$f":"IF(OR('Enrollment Form'!$CN624=\"\",'Enrollment Form'!$CN624=\"No\"),\"-\",IF(AND('Enrollment Form'!$CN624=\"Yes\",'Enrollment Form'!$CP624=\"\"),\"N\",\"Y\"))","v":"-"},{"$f":"IF('Enrollment Form'!B624<>\"Subscriber\",\"-\",IF(AND('Enrollment Form'!B624=\"Subscriber\",'Enrollment Form'!C624=\"Enroll\",'Enrollment Form'!AA624=\"\"),\"N\",\"Y\"))","v":"-"},{"$f":"IF(OR('Enrollment Form'!B624=\"Subscriber\",'Enrollment Form'!B624=\"\"),\"-\",IF('Enrollment Form'!BP624=\"\",\"N\",\"Y\"))","v":"-"},{"$f":"IF('Enrollment Form'!B624<>\"Subscriber\",\"-\",IF(AND('Enrollment Form'!B624=\"Subscriber\",'Enrollment Form'!G624=\"\"),\"N\",\"Y\"))","v":"-"},{"$f":"IF('Enrollment Form'!A624=\"\",\"\",IF('Enrollment Form'!B624=\"Subscriber\",\"-\",IF(AND('Enrollment Form'!B624<>\"Subscriber\",'Enrollment Form'!G624='Enrollment Form'!H624),\"N\",\"Y\")))","v":""},0]
[625,{"$f":"IF('Enrollment Form'!$A625<>\"\",\"Y\",\"N\")","v":"N"},{"$f":"IF(AND('Enrollment Form'!$B625=\"\",'Enrollment Form'!$C625<>\"\"),\"N\",IF($B618=\"N\",\"\",\"Y\"))","v":""},{"$f":"IF(OR($B618=\"N\",'Enrollment Form'!G625=\"\"),\"\",IF('Enrollment Form'!$B625<>\"Subscriber\",\"\",IF('Enrollment Form'!$G625='Enrollment Form'!$H625,\"Y\",\"N\")))","v":""},{"$f":"IF($B618=\"N\",\"\",IF(AND(COUNTIFS('Enrollment Form'!$H$11:$H$1000,'Enrollment Form'!$H625,'Enrollment Form'!$B$11:$B$1000,'Enrollment Form'!$B625)>1,'Enrollment Form'!$H625<>\"\"),\"N\",\"Y\"))","v":""},{"$f":"IF($B618=\"N\",\"\",IF(LEN('Enrollment Form'!$Y625)=0,\"\",IF(LEN('Enrollment Form'!$Y625)<>5,\"N\",\"Y\")))","v":""},{"$f":"IF($B618=\"N\",\"\",IF(LEN('Enrollment Form'!$AD625=0),\"\",IF(LEN('Enrollment Form'!$AD625)<>5,\"N\",\"Y\")))","v":""},{"$f":"IF($B618=\"N\",\"\",IF(LEN('Enrollment Form'!$BS625=0),\"\",IF(LEN('Enrollment Form'!$BS625)<>5,\"N\",\"Y\")))","v":""},{"$f":"IF($B618=\"N\",\"\",IF(LEN('Enrollment Form'!$AE625)=0,\"\",IF(LEN('Enrollment Form'!$AE625)<>10,\"N\",\"Y\")))","v":""},{"$f":"IF($B618=\"N\",\"\",IF(LEN('Enrollment Form'!$AF625)=0,\"\",IF(LEN('Enrollment Form'!$AF625)<>10,\"N\",\"Y\")))","v":""},{"$f":"IF('Enrollment Form'!$O625<>\"Graded\",\"-\",IF(AND('Enrollment Form'!$O625=\"Graded\",'Enrollment Form'!$AR625<>\"\"),\"Y\",\"N\"))","v":"-"},{"$f":"IF($B618=\"N\",\"\",IF(OR('Enrollment Form'!$B625<>\"Subscriber\",'Enrollment Form'!$C625=\"ROC\"),\"-\",IF(AND('Enrollment Form'!$B625=\"Subscriber\",'Enrollment Form'!$C625=\"Enroll\",'Enrollment Form'!$AJ625<>\"\"),\"Y\",\"N\")))","v":""},{"$f":"IF($B618=\"N\",\"\",IF(OR('Enrollment Form'!$B625<>\"Subscriber\",'Enrollment Form'!$C625=\"ROC\"),\"-\",IF(AND('Enrollment Form'!$B625=\"Subscriber\",'Enrollment Form'!$C625=\"Enroll\",'Enrollment Form'!$AK625<>\"\"),\"Y\",\"N\")))","v":""},{"$f":"IF($B618=\"N\",\"\",IF(OR('Enrollment Form'!$B625<>\"Subscriber\",'Enrollment Form'!$C625=\"ROC\"),\"-\",IF(AND('Enrollment Form'!$B625=\"Subscriber\",'Enrollment Form'!$C625=\"Enroll\",'Enrollment Form'!$AL625<>\"\"),\"Y\",\"N\")))","v":""},{"$f":"IF($B618=\"N\",\"\",IF(OR('Enrollment Form'!$B625<>\"Subscriber\",'Enrollment Form'!$C625=\"ROC\"),\"-\",IF(AND('Enrollment Form'!$B625=\"Subscriber\",'Enrollment Form'!$C625=\"Enroll\",'Enrollment Form'!$AP625<>\"\"),\"Y\",\"N\")))","v":""},{"$f":"IF($B618=\"N\",\"\",IF(OR('Enrollment Form'!$B625<>\"Subscriber\",'Enrollment Form'!$C625=\"ROC\"),\"-\",IF(AND('Enrollment Form'!$B625=\"Subscriber\",'Enrollment Form'!$C625=\"Enroll\",'Enrollment Form'!$AQ625<>\"\"),\"Y\",\"N\")))","v":""},{"$f":"IF($B618=\"N\",\"\",IF(OR('Enrollment Form'!$B625<>\"Subscriber\",'Enrollment Form'!$C625=\"ROC\"),\"-\",IF(AND('Enrollment Form'!$B625=\"Subscriber\",'Enrollment Form'!$C625=\"Enroll\",'Enrollment Form'!$AS625<>\"\"),\"Y\",\"N\")))","v":""},{"$f":"IF($B618=\"N\",\"\",IF($Q618=\"-\",\"-\",IF(AND($Q618=\"Y\",'Enrollment Form'!$AS625=\"No\"),\"-\",IF(AND($Q618=\"Y\",'Enrollment Form'!$AS625=\"Yes\",'Enrollment Form'!$AT625<>\"\"),\"Y\",\"N\"))))","v":""},{"$f":"IF($B618=\"N\",\"\",IF(OR('Enrollment Form'!$B625<>\"Subscriber\",'Enrollment Form'!$C625=\"ROC\"),\"-\",IF(AND('Enrollment Form'!$B625=\"Subscriber\",'Enrollment Form'!$C625=\"Enroll\",'Enrollment Form'!$CV625<>\"\"),\"Y\",\"N\")))","v":""},{"$f":"IF($B618=\"N\",\"\",IF($S618=\"-\",\"-\",IF(AND($S618=\"Y\",'Enrollment Form'!$CV625=\"No\"),\"-\",IF(AND($S618=\"Y\",'Enrollment Form'!$CV625=\"Yes\",'Enrollment Form'!$CW625<>\"\"),\"Y\",\"N\"))))","v":""},{"$f":"IF(OR('Enrollment Form'!$AY625=\"Yes\",'Enrollment Form'!$AY625=\"\"),\"-\",IF(OR(AND('Enrollment Form'!$AY625=\"No\",ISERROR(FIND(\"HMO\",VLOOKUP('Enrollment Form'!G625,'Enrollment Form'!H$11:J$1000,3,FALSE),1))=FALSE,COUNTA('Enrollment Form'!$AZ625:$BC625)=4),AND('Enrollment Form'!$AY625=\"No\",ISERROR(FIND(\"HMO\",VLOOKUP('Enrollment Form'!G625,'Enrollment Form'!H$11:J$1000,3,FALSE),1))=FALSE,COUNTA('Enrollment Form'!$BT625:$BW625)=4)),\"Y\",\"N\"))","v":"-"},{"$f":"IF($B618=\"N\",\"\",IF('Enrollment Form'!$B625=\"Subscriber\",\"-\",IF(COUNTA('Enrollment Form'!$BL625,'Enrollment Form'!$BN625)=2,\"Y\",\"N\")))","v":""},{"$f":"IF($B618=\"N\",\"\",IF(OR('Enrollment Form'!$AX625=\"\",'Enrollment Form'!$AX625=\"No\"),\"-\",IF(AND('Enrollment Form'!$AX625=\"Yes\",COUNTA('Enrollment Form'!$CR625)=1),\"Y\",\"N\")))","v":""},{"$f":"IF(OR('Enrollment Form'!$CR625=\"\",'Enrollment Form'!$CR625=\"No\"),\"-\",IF(COUNTA('Enrollment Form'!$CT625:$CU625)=2,\"Y\",\"N\"))","v":"-"},{"$f":"IF($B618=\"N\",\"\",IF(COUNTIF('Enrollment Form'!$DG625:$DP625,\"Other\")=COUNTA('Enrollment Form'!$DK625,'Enrollment Form'!$DH625,'Enrollment Form'!$DN625,'Enrollment Form'!$DQ625),\"Y\",\"N\"))","v":""},{"$f":"IF($B618=\"N\",\"\",IF(OR('Enrollment Form'!B625<>\"Subscriber\",'Enrollment Form'!C625=\"ROC\",COUNTIF('Enrollment Form'!AV625:AW625,\"Yes\")>=1),\"-\",IF(AND('Enrollment Form'!C625=\"Enroll\",COUNTIF('Enrollment Form'!AV625:AW625,\"No\")=2,'Enrollment Form'!AX625=\"\"),\"N\",\"Y\")))","v":""},{"$f":"IF(OR(B618=\"N\",'Enrollment Form'!B625<>\"Subscriber\",'Enrollment Form'!C625=\"ROC\",'Enrollment Form'!O625<>\"Multiple of Salary\"),\"-\",IF(COUNTA('Enrollment Form'!T625:U625)<2,\"N\",\"Y\"))","v":"-"},{"$f":"IF(B618=\"N\",\"\",IF(OR('Enrollment Form'!C625=\"ROC\",'Enrollment Form'!B625<>\"Subscriber\",'Enrollment Form'!O625=\"Waive\",'Enrollment Form'!O625=\"\"),\"-\",IF('Enrollment Form'!P625=\"\",\"N\",\"Y\")))","v":""},{"$f":"IF($B618=\"N\",\"\",IF(AND('Enrollment Form'!$C625=\"ROC\",'Enrollment Form'!$DR625<>\"\"),\"Y\",IF(AND('Enrollment Form'!$C625=\"ROC\",'Enrollment Form'!$DR625=\"\"),\"N\",IF(AND('Enrollment Form'!$C625=\"Enroll\",'Enrollment Form'!$B625=\"Subscriber\",'Enrollment Form'!$CX625=\"No\",'Enrollment Form'!$DR625=\"\"),\"N\",IF(AND('Enrollment Form'!$C625=\"Enroll\",'Enrollment Form'!$B625=\"Subscriber\",'Enrollment Form'!$CX625=\"Yes\"),\"-\",\"Y\")))))","v":""},{"$f":"IF($B618=\"N\",\"\",IF(AND('Enrollment Form'!$C625=\"ROC\",'Enrollment Form'!$DS625<>\"\"),\"Y\",IF(AND('Enrollment Form'!$C625=\"ROC\",'Enrollment Form'!$DS625=\"\"),\"N\",IF(AND('Enrollment Form'!$C625=\"Enroll\",'Enrollment Form'!$B625=\"Subscriber\",'Enrollment Form'!$CX625=\"No\",'Enrollment Form'!$DS625=\"\"),\"N\",IF(AND('Enrollment Form'!$C625=\"Enroll\",'Enrollment Form'!$B625=\"Subscriber\",'Enrollment Form'!$CX625=\"Yes\"),\"-\",\"Y\")))))","v":""},{"$f":"IF('Enrollment Form'!AH625=\"\",\"\",IF(ISERROR(SEARCH(\".\",'Enrollment Form'!AH625,SEARCH(\"@\",'Enrollment Form'!AH625))),\"N\",\"Y\"))","v":""},{"$f":"IF(OR($B618=\"N\",'Enrollment Form'!$G625=\"\"),\"\",IF('Enrollment Form'!$B625<>\"Subscriber\",\"-\",IF(COUNTIF('Enrollment Form'!$AV625:$AW625,\"Yes\")=2,\"N\",\"Y\")))","v":""},{"$f":"IF(OR('Enrollment Form'!$CJ625=\"\",'Enrollment Form'!$CJ625=\"No\"),\"-\",IF(AND('Enrollment Form'!$CJ625=\"Yes\",'Enrollment Form'!$CK625=\"\"),\"N\",\"Y\"))","v":"-"},{"$f":"IF(OR('Enrollment Form'!$CL625=\"\",'Enrollment Form'!$CL625=\"No\"),\"-\",IF(AND('Enrollment Form'!$CL625=\"Yes\",'Enrollment Form'!$CM625=\"\"),\"N\",\"Y\"))","v":"-"},{"$f":"IF(OR('Enrollment Form'!$CN625=\"\",'Enrollment Form'!$CN625=\"No\"),\"-\",IF(AND('Enrollment Form'!$CN625=\"Yes\",'Enrollment Form'!$CO625=\"\"),\"N\",\"Y\"))","v":"-"},{"$f":"IF(OR('Enrollment Form'!$CN625=\"\",'Enrollment Form'!$CN625=\"No\"),\"-\",IF(AND('Enrollment Form'!$CN625=\"Yes\",'Enrollment Form'!$CP625=\"\"),\"N\",\"Y\"))","v":"-"},{"$f":"IF('Enrollment Form'!B625<>\"Subscriber\",\"-\",IF(AND('Enrollment Form'!B625=\"Subscriber\",'Enrollment Form'!C625=\"Enroll\",'Enrollment Form'!AA625=\"\"),\"N\",\"Y\"))","v":"-"},{"$f":"IF(OR('Enrollment Form'!B625=\"Subscriber\",'Enrollment Form'!B625=\"\"),\"-\",IF('Enrollment Form'!BP625=\"\",\"N\",\"Y\"))","v":"-"},{"$f":"IF('Enrollment Form'!B625<>\"Subscriber\",\"-\",IF(AND('Enrollment Form'!B625=\"Subscriber\",'Enrollment Form'!G625=\"\"),\"N\",\"Y\"))","v":"-"},{"$f":"IF('Enrollment Form'!A625=\"\",\"\",IF('Enrollment Form'!B625=\"Subscriber\",\"-\",IF(AND('Enrollment Form'!B625<>\"Subscriber\",'Enrollment Form'!G625='Enrollment Form'!H625),\"N\",\"Y\")))","v":""},0]
[626,{"$f":"IF('Enrollment Form'!$A626<>\"\",\"Y\",\"N\")","v":"N"},{"$f":"IF(AND('Enrollment Form'!$B626=\"\",'Enrollment Form'!$C626<>\"\"),\"N\",IF($B619=\"N\",\"\",\"Y\"))","v":""},{"$f":"IF(OR($B619=\"N\",'Enrollment Form'!G626=\"\"),\"\",IF('Enrollment Form'!$B626<>\"Subscriber\",\"\",IF('Enrollment Form'!$G626='Enrollment Form'!$H626,\"Y\",\"N\")))","v":""},{"$f":"IF($B619=\"N\",\"\",IF(AND(COUNTIFS('Enrollment Form'!$H$11:$H$1000,'Enrollment Form'!$H626,'Enrollment Form'!$B$11:$B$1000,'Enrollment Form'!$B626)>1,'Enrollment Form'!$H626<>\"\"),\"N\",\"Y\"))","v":""},{"$f":"IF($B619=\"N\",\"\",IF(LEN('Enrollment Form'!$Y626)=0,\"\",IF(LEN('Enrollment Form'!$Y626)<>5,\"N\",\"Y\")))","v":""},{"$f":"IF($B619=\"N\",\"\",IF(LEN('Enrollment Form'!$AD626=0),\"\",IF(LEN('Enrollment Form'!$AD626)<>5,\"N\",\"Y\")))","v":""},{"$f":"IF($B619=\"N\",\"\",IF(LEN('Enrollment Form'!$BS626=0),\"\",IF(LEN('Enrollment Form'!$BS626)<>5,\"N\",\"Y\")))","v":""},{"$f":"IF($B619=\"N\",\"\",IF(LEN('Enrollment Form'!$AE626)=0,\"\",IF(LEN('Enrollment Form'!$AE626)<>10,\"N\",\"Y\")))","v":""},{"$f":"IF($B619=\"N\",\"\",IF(LEN('Enrollment Form'!$AF626)=0,\"\",IF(LEN('Enrollment Form'!$AF626)<>10,\"N\",\"Y\")))","v":""},{"$f":"IF('Enrollment Form'!$O626<>\"Graded\",\"-\",IF(AND('Enrollment Form'!$O626=\"Graded\",'Enrollment Form'!$AR626<>\"\"),\"Y\",\"N\"))","v":"-"},{"$f":"IF($B619=\"N\",\"\",IF(OR('Enrollment Form'!$B626<>\"Subscriber\",'Enrollment Form'!$C626=\"ROC\"),\"-\",IF(AND('Enrollment Form'!$B626=\"Subscriber\",'Enrollment Form'!$C626=\"Enroll\",'Enrollment Form'!$AJ626<>\"\"),\"Y\",\"N\")))","v":""},{"$f":"IF($B619=\"N\",\"\",IF(OR('Enrollment Form'!$B626<>\"Subscriber\",'Enrollment Form'!$C626=\"ROC\"),\"-\",IF(AND('Enrollment Form'!$B626=\"Subscriber\",'Enrollment Form'!$C626=\"Enroll\",'Enrollment Form'!$AK626<>\"\"),\"Y\",\"N\")))","v":""},{"$f":"IF($B619=\"N\",\"\",IF(OR('Enrollment Form'!$B626<>\"Subscriber\",'Enrollment Form'!$C626=\"ROC\"),\"-\",IF(AND('Enrollment Form'!$B626=\"Subscriber\",'Enrollment Form'!$C626=\"Enroll\",'Enrollment Form'!$AL626<>\"\"),\"Y\",\"N\")))","v":""},{"$f":"IF($B619=\"N\",\"\",IF(OR('Enrollment Form'!$B626<>\"Subscriber\",'Enrollment Form'!$C626=\"ROC\"),\"-\",IF(AND('Enrollment Form'!$B626=\"Subscriber\",'Enrollment Form'!$C626=\"Enroll\",'Enrollment Form'!$AP626<>\"\"),\"Y\",\"N\")))","v":""},{"$f":"IF($B619=\"N\",\"\",IF(OR('Enrollment Form'!$B626<>\"Subscriber\",'Enrollment Form'!$C626=\"ROC\"),\"-\",IF(AND('Enrollment Form'!$B626=\"Subscriber\",'Enrollment Form'!$C626=\"Enroll\",'Enrollment Form'!$AQ626<>\"\"),\"Y\",\"N\")))","v":""},{"$f":"IF($B619=\"N\",\"\",IF(OR('Enrollment Form'!$B626<>\"Subscriber\",'Enrollment Form'!$C626=\"ROC\"),\"-\",IF(AND('Enrollment Form'!$B626=\"Subscriber\",'Enrollment Form'!$C626=\"Enroll\",'Enrollment Form'!$AS626<>\"\"),\"Y\",\"N\")))","v":""},{"$f":"IF($B619=\"N\",\"\",IF($Q619=\"-\",\"-\",IF(AND($Q619=\"Y\",'Enrollment Form'!$AS626=\"No\"),\"-\",IF(AND($Q619=\"Y\",'Enrollment Form'!$AS626=\"Yes\",'Enrollment Form'!$AT626<>\"\"),\"Y\",\"N\"))))","v":""},{"$f":"IF($B619=\"N\",\"\",IF(OR('Enrollment Form'!$B626<>\"Subscriber\",'Enrollment Form'!$C626=\"ROC\"),\"-\",IF(AND('Enrollment Form'!$B626=\"Subscriber\",'Enrollment Form'!$C626=\"Enroll\",'Enrollment Form'!$CV626<>\"\"),\"Y\",\"N\")))","v":""},{"$f":"IF($B619=\"N\",\"\",IF($S619=\"-\",\"-\",IF(AND($S619=\"Y\",'Enrollment Form'!$CV626=\"No\"),\"-\",IF(AND($S619=\"Y\",'Enrollment Form'!$CV626=\"Yes\",'Enrollment Form'!$CW626<>\"\"),\"Y\",\"N\"))))","v":""},{"$f":"IF(OR('Enrollment Form'!$AY626=\"Yes\",'Enrollment Form'!$AY626=\"\"),\"-\",IF(OR(AND('Enrollment Form'!$AY626=\"No\",ISERROR(FIND(\"HMO\",VLOOKUP('Enrollment Form'!G626,'Enrollment Form'!H$11:J$1000,3,FALSE),1))=FALSE,COUNTA('Enrollment Form'!$AZ626:$BC626)=4),AND('Enrollment Form'!$AY626=\"No\",ISERROR(FIND(\"HMO\",VLOOKUP('Enrollment Form'!G626,'Enrollment Form'!H$11:J$1000,3,FALSE),1))=FALSE,COUNTA('Enrollment Form'!$BT626:$BW626)=4)),\"Y\",\"N\"))","v":"-"},{"$f":"IF($B619=\"N\",\"\",IF('Enrollment Form'!$B626=\"Subscriber\",\"-\",IF(COUNTA('Enrollment Form'!$BL626,'Enrollment Form'!$BN626)=2,\"Y\",\"N\")))","v":""},{"$f":"IF($B619=\"N\",\"\",IF(OR('Enrollment Form'!$AX626=\"\",'Enrollment Form'!$AX626=\"No\"),\"-\",IF(AND('Enrollment Form'!$AX626=\"Yes\",COUNTA('Enrollment Form'!$CR626)=1),\"Y\",\"N\")))","v":""},{"$f":"IF(OR('Enrollment Form'!$CR626=\"\",'Enrollment Form'!$CR626=\"No\"),\"-\",IF(COUNTA('Enrollment Form'!$CT626:$CU626)=2,\"Y\",\"N\"))","v":"-"},{"$f":"IF($B619=\"N\",\"\",IF(COUNTIF('Enrollment Form'!$DG626:$DP626,\"Other\")=COUNTA('Enrollment Form'!$DK626,'Enrollment Form'!$DH626,'Enrollment Form'!$DN626,'Enrollment Form'!$DQ626),\"Y\",\"N\"))","v":""},{"$f":"IF($B619=\"N\",\"\",IF(OR('Enrollment Form'!B626<>\"Subscriber\",'Enrollment Form'!C626=\"ROC\",COUNTIF('Enrollment Form'!AV626:AW626,\"Yes\")>=1),\"-\",IF(AND('Enrollment Form'!C626=\"Enroll\",COUNTIF('Enrollment Form'!AV626:AW626,\"No\")=2,'Enrollment Form'!AX626=\"\"),\"N\",\"Y\")))","v":""},{"$f":"IF(OR(B619=\"N\",'Enrollment Form'!B626<>\"Subscriber\",'Enrollment Form'!C626=\"ROC\",'Enrollment Form'!O626<>\"Multiple of Salary\"),\"-\",IF(COUNTA('Enrollment Form'!T626:U626)<2,\"N\",\"Y\"))","v":"-"},{"$f":"IF(B619=\"N\",\"\",IF(OR('Enrollment Form'!C626=\"ROC\",'Enrollment Form'!B626<>\"Subscriber\",'Enrollment Form'!O626=\"Waive\",'Enrollment Form'!O626=\"\"),\"-\",IF('Enrollment Form'!P626=\"\",\"N\",\"Y\")))","v":""},{"$f":"IF($B619=\"N\",\"\",IF(AND('Enrollment Form'!$C626=\"ROC\",'Enrollment Form'!$DR626<>\"\"),\"Y\",IF(AND('Enrollment Form'!$C626=\"ROC\",'Enrollment Form'!$DR626=\"\"),\"N\",IF(AND('Enrollment Form'!$C626=\"Enroll\",'Enrollment Form'!$B626=\"Subscriber\",'Enrollment Form'!$CX626=\"No\",'Enrollment Form'!$DR626=\"\"),\"N\",IF(AND('Enrollment Form'!$C626=\"Enroll\",'Enrollment Form'!$B626=\"Subscriber\",'Enrollment Form'!$CX626=\"Yes\"),\"-\",\"Y\")))))","v":""},{"$f":"IF($B619=\"N\",\"\",IF(AND('Enrollment Form'!$C626=\"ROC\",'Enrollment Form'!$DS626<>\"\"),\"Y\",IF(AND('Enrollment Form'!$C626=\"ROC\",'Enrollment Form'!$DS626=\"\"),\"N\",IF(AND('Enrollment Form'!$C626=\"Enroll\",'Enrollment Form'!$B626=\"Subscriber\",'Enrollment Form'!$CX626=\"No\",'Enrollment Form'!$DS626=\"\"),\"N\",IF(AND('Enrollment Form'!$C626=\"Enroll\",'Enrollment Form'!$B626=\"Subscriber\",'Enrollment Form'!$CX626=\"Yes\"),\"-\",\"Y\")))))","v":""},{"$f":"IF('Enrollment Form'!AH626=\"\",\"\",IF(ISERROR(SEARCH(\".\",'Enrollment Form'!AH626,SEARCH(\"@\",'Enrollment Form'!AH626))),\"N\",\"Y\"))","v":""},{"$f":"IF(OR($B619=\"N\",'Enrollment Form'!$G626=\"\"),\"\",IF('Enrollment Form'!$B626<>\"Subscriber\",\"-\",IF(COUNTIF('Enrollment Form'!$AV626:$AW626,\"Yes\")=2,\"N\",\"Y\")))","v":""},{"$f":"IF(OR('Enrollment Form'!$CJ626=\"\",'Enrollment Form'!$CJ626=\"No\"),\"-\",IF(AND('Enrollment Form'!$CJ626=\"Yes\",'Enrollment Form'!$CK626=\"\"),\"N\",\"Y\"))","v":"-"},{"$f":"IF(OR('Enrollment Form'!$CL626=\"\",'Enrollment Form'!$CL626=\"No\"),\"-\",IF(AND('Enrollment Form'!$CL626=\"Yes\",'Enrollment Form'!$CM626=\"\"),\"N\",\"Y\"))","v":"-"},{"$f":"IF(OR('Enrollment Form'!$CN626=\"\",'Enrollment Form'!$CN626=\"No\"),\"-\",IF(AND('Enrollment Form'!$CN626=\"Yes\",'Enrollment Form'!$CO626=\"\"),\"N\",\"Y\"))","v":"-"},{"$f":"IF(OR('Enrollment Form'!$CN626=\"\",'Enrollment Form'!$CN626=\"No\"),\"-\",IF(AND('Enrollment Form'!$CN626=\"Yes\",'Enrollment Form'!$CP626=\"\"),\"N\",\"Y\"))","v":"-"},{"$f":"IF('Enrollment Form'!B626<>\"Subscriber\",\"-\",IF(AND('Enrollment Form'!B626=\"Subscriber\",'Enrollment Form'!C626=\"Enroll\",'Enrollment Form'!AA626=\"\"),\"N\",\"Y\"))","v":"-"},{"$f":"IF(OR('Enrollment Form'!B626=\"Subscriber\",'Enrollment Form'!B626=\"\"),\"-\",IF('Enrollment Form'!BP626=\"\",\"N\",\"Y\"))","v":"-"},{"$f":"IF('Enrollment Form'!B626<>\"Subscriber\",\"-\",IF(AND('Enrollment Form'!B626=\"Subscriber\",'Enrollment Form'!G626=\"\"),\"N\",\"Y\"))","v":"-"},{"$f":"IF('Enrollment Form'!A626=\"\",\"\",IF('Enrollment Form'!B626=\"Subscriber\",\"-\",IF(AND('Enrollment Form'!B626<>\"Subscriber\",'Enrollment Form'!G626='Enrollment Form'!H626),\"N\",\"Y\")))","v":""},0]
[627,{"$f":"IF('Enrollment Form'!$A627<>\"\",\"Y\",\"N\")","v":"N"},{"$f":"IF(AND('Enrollment Form'!$B627=\"\",'Enrollment Form'!$C627<>\"\"),\"N\",IF($B620=\"N\",\"\",\"Y\"))","v":""},{"$f":"IF(OR($B620=\"N\",'Enrollment Form'!G627=\"\"),\"\",IF('Enrollment Form'!$B627<>\"Subscriber\",\"\",IF('Enrollment Form'!$G627='Enrollment Form'!$H627,\"Y\",\"N\")))","v":""},{"$f":"IF($B620=\"N\",\"\",IF(AND(COUNTIFS('Enrollment Form'!$H$11:$H$1000,'Enrollment Form'!$H627,'Enrollment Form'!$B$11:$B$1000,'Enrollment Form'!$B627)>1,'Enrollment Form'!$H627<>\"\"),\"N\",\"Y\"))","v":""},{"$f":"IF($B620=\"N\",\"\",IF(LEN('Enrollment Form'!$Y627)=0,\"\",IF(LEN('Enrollment Form'!$Y627)<>5,\"N\",\"Y\")))","v":""},{"$f":"IF($B620=\"N\",\"\",IF(LEN('Enrollment Form'!$AD627=0),\"\",IF(LEN('Enrollment Form'!$AD627)<>5,\"N\",\"Y\")))","v":""},{"$f":"IF($B620=\"N\",\"\",IF(LEN('Enrollment Form'!$BS627=0),\"\",IF(LEN('Enrollment Form'!$BS627)<>5,\"N\",\"Y\")))","v":""},{"$f":"IF($B620=\"N\",\"\",IF(LEN('Enrollment Form'!$AE627)=0,\"\",IF(LEN('Enrollment Form'!$AE627)<>10,\"N\",\"Y\")))","v":""},{"$f":"IF($B620=\"N\",\"\",IF(LEN('Enrollment Form'!$AF627)=0,\"\",IF(LEN('Enrollment Form'!$AF627)<>10,\"N\",\"Y\")))","v":""},{"$f":"IF('Enrollment Form'!$O627<>\"Graded\",\"-\",IF(AND('Enrollment Form'!$O627=\"Graded\",'Enrollment Form'!$AR627<>\"\"),\"Y\",\"N\"))","v":"-"},{"$f":"IF($B620=\"N\",\"\",IF(OR('Enrollment Form'!$B627<>\"Subscriber\",'Enrollment Form'!$C627=\"ROC\"),\"-\",IF(AND('Enrollment Form'!$B627=\"Subscriber\",'Enrollment Form'!$C627=\"Enroll\",'Enrollment Form'!$AJ627<>\"\"),\"Y\",\"N\")))","v":""},{"$f":"IF($B620=\"N\",\"\",IF(OR('Enrollment Form'!$B627<>\"Subscriber\",'Enrollment Form'!$C627=\"ROC\"),\"-\",IF(AND('Enrollment Form'!$B627=\"Subscriber\",'Enrollment Form'!$C627=\"Enroll\",'Enrollment Form'!$AK627<>\"\"),\"Y\",\"N\")))","v":""},{"$f":"IF($B620=\"N\",\"\",IF(OR('Enrollment Form'!$B627<>\"Subscriber\",'Enrollment Form'!$C627=\"ROC\"),\"-\",IF(AND('Enrollment Form'!$B627=\"Subscriber\",'Enrollment Form'!$C627=\"Enroll\",'Enrollment Form'!$AL627<>\"\"),\"Y\",\"N\")))","v":""},{"$f":"IF($B620=\"N\",\"\",IF(OR('Enrollment Form'!$B627<>\"Subscriber\",'Enrollment Form'!$C627=\"ROC\"),\"-\",IF(AND('Enrollment Form'!$B627=\"Subscriber\",'Enrollment Form'!$C627=\"Enroll\",'Enrollment Form'!$AP627<>\"\"),\"Y\",\"N\")))","v":""},{"$f":"IF($B620=\"N\",\"\",IF(OR('Enrollment Form'!$B627<>\"Subscriber\",'Enrollment Form'!$C627=\"ROC\"),\"-\",IF(AND('Enrollment Form'!$B627=\"Subscriber\",'Enrollment Form'!$C627=\"Enroll\",'Enrollment Form'!$AQ627<>\"\"),\"Y\",\"N\")))","v":""},{"$f":"IF($B620=\"N\",\"\",IF(OR('Enrollment Form'!$B627<>\"Subscriber\",'Enrollment Form'!$C627=\"ROC\"),\"-\",IF(AND('Enrollment Form'!$B627=\"Subscriber\",'Enrollment Form'!$C627=\"Enroll\",'Enrollment Form'!$AS627<>\"\"),\"Y\",\"N\")))","v":""},{"$f":"IF($B620=\"N\",\"\",IF($Q620=\"-\",\"-\",IF(AND($Q620=\"Y\",'Enrollment Form'!$AS627=\"No\"),\"-\",IF(AND($Q620=\"Y\",'Enrollment Form'!$AS627=\"Yes\",'Enrollment Form'!$AT627<>\"\"),\"Y\",\"N\"))))","v":""},{"$f":"IF($B620=\"N\",\"\",IF(OR('Enrollment Form'!$B627<>\"Subscriber\",'Enrollment Form'!$C627=\"ROC\"),\"-\",IF(AND('Enrollment Form'!$B627=\"Subscriber\",'Enrollment Form'!$C627=\"Enroll\",'Enrollment Form'!$CV627<>\"\"),\"Y\",\"N\")))","v":""},{"$f":"IF($B620=\"N\",\"\",IF($S620=\"-\",\"-\",IF(AND($S620=\"Y\",'Enrollment Form'!$CV627=\"No\"),\"-\",IF(AND($S620=\"Y\",'Enrollment Form'!$CV627=\"Yes\",'Enrollment Form'!$CW627<>\"\"),\"Y\",\"N\"))))","v":""},{"$f":"IF(OR('Enrollment Form'!$AY627=\"Yes\",'Enrollment Form'!$AY627=\"\"),\"-\",IF(OR(AND('Enrollment Form'!$AY627=\"No\",ISERROR(FIND(\"HMO\",VLOOKUP('Enrollment Form'!G627,'Enrollment Form'!H$11:J$1000,3,FALSE),1))=FALSE,COUNTA('Enrollment Form'!$AZ627:$BC627)=4),AND('Enrollment Form'!$AY627=\"No\",ISERROR(FIND(\"HMO\",VLOOKUP('Enrollment Form'!G627,'Enrollment Form'!H$11:J$1000,3,FALSE),1))=FALSE,COUNTA('Enrollment Form'!$BT627:$BW627)=4)),\"Y\",\"N\"))","v":"-"},{"$f":"IF($B620=\"N\",\"\",IF('Enrollment Form'!$B627=\"Subscriber\",\"-\",IF(COUNTA('Enrollment Form'!$BL627,'Enrollment Form'!$BN627)=2,\"Y\",\"N\")))","v":""},{"$f":"IF($B620=\"N\",\"\",IF(OR('Enrollment Form'!$AX627=\"\",'Enrollment Form'!$AX627=\"No\"),\"-\",IF(AND('Enrollment Form'!$AX627=\"Yes\",COUNTA('Enrollment Form'!$CR627)=1),\"Y\",\"N\")))","v":""},{"$f":"IF(OR('Enrollment Form'!$CR627=\"\",'Enrollment Form'!$CR627=\"No\"),\"-\",IF(COUNTA('Enrollment Form'!$CT627:$CU627)=2,\"Y\",\"N\"))","v":"-"},{"$f":"IF($B620=\"N\",\"\",IF(COUNTIF('Enrollment Form'!$DG627:$DP627,\"Other\")=COUNTA('Enrollment Form'!$DK627,'Enrollment Form'!$DH627,'Enrollment Form'!$DN627,'Enrollment Form'!$DQ627),\"Y\",\"N\"))","v":""},{"$f":"IF($B620=\"N\",\"\",IF(OR('Enrollment Form'!B627<>\"Subscriber\",'Enrollment Form'!C627=\"ROC\",COUNTIF('Enrollment Form'!AV627:AW627,\"Yes\")>=1),\"-\",IF(AND('Enrollment Form'!C627=\"Enroll\",COUNTIF('Enrollment Form'!AV627:AW627,\"No\")=2,'Enrollment Form'!AX627=\"\"),\"N\",\"Y\")))","v":""},{"$f":"IF(OR(B620=\"N\",'Enrollment Form'!B627<>\"Subscriber\",'Enrollment Form'!C627=\"ROC\",'Enrollment Form'!O627<>\"Multiple of Salary\"),\"-\",IF(COUNTA('Enrollment Form'!T627:U627)<2,\"N\",\"Y\"))","v":"-"},{"$f":"IF(B620=\"N\",\"\",IF(OR('Enrollment Form'!C627=\"ROC\",'Enrollment Form'!B627<>\"Subscriber\",'Enrollment Form'!O627=\"Waive\",'Enrollment Form'!O627=\"\"),\"-\",IF('Enrollment Form'!P627=\"\",\"N\",\"Y\")))","v":""},{"$f":"IF($B620=\"N\",\"\",IF(AND('Enrollment Form'!$C627=\"ROC\",'Enrollment Form'!$DR627<>\"\"),\"Y\",IF(AND('Enrollment Form'!$C627=\"ROC\",'Enrollment Form'!$DR627=\"\"),\"N\",IF(AND('Enrollment Form'!$C627=\"Enroll\",'Enrollment Form'!$B627=\"Subscriber\",'Enrollment Form'!$CX627=\"No\",'Enrollment Form'!$DR627=\"\"),\"N\",IF(AND('Enrollment Form'!$C627=\"Enroll\",'Enrollment Form'!$B627=\"Subscriber\",'Enrollment Form'!$CX627=\"Yes\"),\"-\",\"Y\")))))","v":""},{"$f":"IF($B620=\"N\",\"\",IF(AND('Enrollment Form'!$C627=\"ROC\",'Enrollment Form'!$DS627<>\"\"),\"Y\",IF(AND('Enrollment Form'!$C627=\"ROC\",'Enrollment Form'!$DS627=\"\"),\"N\",IF(AND('Enrollment Form'!$C627=\"Enroll\",'Enrollment Form'!$B627=\"Subscriber\",'Enrollment Form'!$CX627=\"No\",'Enrollment Form'!$DS627=\"\"),\"N\",IF(AND('Enrollment Form'!$C627=\"Enroll\",'Enrollment Form'!$B627=\"Subscriber\",'Enrollment Form'!$CX627=\"Yes\"),\"-\",\"Y\")))))","v":""},{"$f":"IF('Enrollment Form'!AH627=\"\",\"\",IF(ISERROR(SEARCH(\".\",'Enrollment Form'!AH627,SEARCH(\"@\",'Enrollment Form'!AH627))),\"N\",\"Y\"))","v":""},{"$f":"IF(OR($B620=\"N\",'Enrollment Form'!$G627=\"\"),\"\",IF('Enrollment Form'!$B627<>\"Subscriber\",\"-\",IF(COUNTIF('Enrollment Form'!$AV627:$AW627,\"Yes\")=2,\"N\",\"Y\")))","v":""},{"$f":"IF(OR('Enrollment Form'!$CJ627=\"\",'Enrollment Form'!$CJ627=\"No\"),\"-\",IF(AND('Enrollment Form'!$CJ627=\"Yes\",'Enrollment Form'!$CK627=\"\"),\"N\",\"Y\"))","v":"-"},{"$f":"IF(OR('Enrollment Form'!$CL627=\"\",'Enrollment Form'!$CL627=\"No\"),\"-\",IF(AND('Enrollment Form'!$CL627=\"Yes\",'Enrollment Form'!$CM627=\"\"),\"N\",\"Y\"))","v":"-"},{"$f":"IF(OR('Enrollment Form'!$CN627=\"\",'Enrollment Form'!$CN627=\"No\"),\"-\",IF(AND('Enrollment Form'!$CN627=\"Yes\",'Enrollment Form'!$CO627=\"\"),\"N\",\"Y\"))","v":"-"},{"$f":"IF(OR('Enrollment Form'!$CN627=\"\",'Enrollment Form'!$CN627=\"No\"),\"-\",IF(AND('Enrollment Form'!$CN627=\"Yes\",'Enrollment Form'!$CP627=\"\"),\"N\",\"Y\"))","v":"-"},{"$f":"IF('Enrollment Form'!B627<>\"Subscriber\",\"-\",IF(AND('Enrollment Form'!B627=\"Subscriber\",'Enrollment Form'!C627=\"Enroll\",'Enrollment Form'!AA627=\"\"),\"N\",\"Y\"))","v":"-"},{"$f":"IF(OR('Enrollment Form'!B627=\"Subscriber\",'Enrollment Form'!B627=\"\"),\"-\",IF('Enrollment Form'!BP627=\"\",\"N\",\"Y\"))","v":"-"},{"$f":"IF('Enrollment Form'!B627<>\"Subscriber\",\"-\",IF(AND('Enrollment Form'!B627=\"Subscriber\",'Enrollment Form'!G627=\"\"),\"N\",\"Y\"))","v":"-"},{"$f":"IF('Enrollment Form'!A627=\"\",\"\",IF('Enrollment Form'!B627=\"Subscriber\",\"-\",IF(AND('Enrollment Form'!B627<>\"Subscriber\",'Enrollment Form'!G627='Enrollment Form'!H627),\"N\",\"Y\")))","v":""},0]
[628,{"$f":"IF('Enrollment Form'!$A628<>\"\",\"Y\",\"N\")","v":"N"},{"$f":"IF(AND('Enrollment Form'!$B628=\"\",'Enrollment Form'!$C628<>\"\"),\"N\",IF($B621=\"N\",\"\",\"Y\"))","v":""},{"$f":"IF(OR($B621=\"N\",'Enrollment Form'!G628=\"\"),\"\",IF('Enrollment Form'!$B628<>\"Subscriber\",\"\",IF('Enrollment Form'!$G628='Enrollment Form'!$H628,\"Y\",\"N\")))","v":""},{"$f":"IF($B621=\"N\",\"\",IF(AND(COUNTIFS('Enrollment Form'!$H$11:$H$1000,'Enrollment Form'!$H628,'Enrollment Form'!$B$11:$B$1000,'Enrollment Form'!$B628)>1,'Enrollment Form'!$H628<>\"\"),\"N\",\"Y\"))","v":""},{"$f":"IF($B621=\"N\",\"\",IF(LEN('Enrollment Form'!$Y628)=0,\"\",IF(LEN('Enrollment Form'!$Y628)<>5,\"N\",\"Y\")))","v":""},{"$f":"IF($B621=\"N\",\"\",IF(LEN('Enrollment Form'!$AD628=0),\"\",IF(LEN('Enrollment Form'!$AD628)<>5,\"N\",\"Y\")))","v":""},{"$f":"IF($B621=\"N\",\"\",IF(LEN('Enrollment Form'!$BS628=0),\"\",IF(LEN('Enrollment Form'!$BS628)<>5,\"N\",\"Y\")))","v":""},{"$f":"IF($B621=\"N\",\"\",IF(LEN('Enrollment Form'!$AE628)=0,\"\",IF(LEN('Enrollment Form'!$AE628)<>10,\"N\",\"Y\")))","v":""},{"$f":"IF($B621=\"N\",\"\",IF(LEN('Enrollment Form'!$AF628)=0,\"\",IF(LEN('Enrollment Form'!$AF628)<>10,\"N\",\"Y\")))","v":""},{"$f":"IF('Enrollment Form'!$O628<>\"Graded\",\"-\",IF(AND('Enrollment Form'!$O628=\"Graded\",'Enrollment Form'!$AR628<>\"\"),\"Y\",\"N\"))","v":"-"},{"$f":"IF($B621=\"N\",\"\",IF(OR('Enrollment Form'!$B628<>\"Subscriber\",'Enrollment Form'!$C628=\"ROC\"),\"-\",IF(AND('Enrollment Form'!$B628=\"Subscriber\",'Enrollment Form'!$C628=\"Enroll\",'Enrollment Form'!$AJ628<>\"\"),\"Y\",\"N\")))","v":""},{"$f":"IF($B621=\"N\",\"\",IF(OR('Enrollment Form'!$B628<>\"Subscriber\",'Enrollment Form'!$C628=\"ROC\"),\"-\",IF(AND('Enrollment Form'!$B628=\"Subscriber\",'Enrollment Form'!$C628=\"Enroll\",'Enrollment Form'!$AK628<>\"\"),\"Y\",\"N\")))","v":""},{"$f":"IF($B621=\"N\",\"\",IF(OR('Enrollment Form'!$B628<>\"Subscriber\",'Enrollment Form'!$C628=\"ROC\"),\"-\",IF(AND('Enrollment Form'!$B628=\"Subscriber\",'Enrollment Form'!$C628=\"Enroll\",'Enrollment Form'!$AL628<>\"\"),\"Y\",\"N\")))","v":""},{"$f":"IF($B621=\"N\",\"\",IF(OR('Enrollment Form'!$B628<>\"Subscriber\",'Enrollment Form'!$C628=\"ROC\"),\"-\",IF(AND('Enrollment Form'!$B628=\"Subscriber\",'Enrollment Form'!$C628=\"Enroll\",'Enrollment Form'!$AP628<>\"\"),\"Y\",\"N\")))","v":""},{"$f":"IF($B621=\"N\",\"\",IF(OR('Enrollment Form'!$B628<>\"Subscriber\",'Enrollment Form'!$C628=\"ROC\"),\"-\",IF(AND('Enrollment Form'!$B628=\"Subscriber\",'Enrollment Form'!$C628=\"Enroll\",'Enrollment Form'!$AQ628<>\"\"),\"Y\",\"N\")))","v":""},{"$f":"IF($B621=\"N\",\"\",IF(OR('Enrollment Form'!$B628<>\"Subscriber\",'Enrollment Form'!$C628=\"ROC\"),\"-\",IF(AND('Enrollment Form'!$B628=\"Subscriber\",'Enrollment Form'!$C628=\"Enroll\",'Enrollment Form'!$AS628<>\"\"),\"Y\",\"N\")))","v":""},{"$f":"IF($B621=\"N\",\"\",IF($Q621=\"-\",\"-\",IF(AND($Q621=\"Y\",'Enrollment Form'!$AS628=\"No\"),\"-\",IF(AND($Q621=\"Y\",'Enrollment Form'!$AS628=\"Yes\",'Enrollment Form'!$AT628<>\"\"),\"Y\",\"N\"))))","v":""},{"$f":"IF($B621=\"N\",\"\",IF(OR('Enrollment Form'!$B628<>\"Subscriber\",'Enrollment Form'!$C628=\"ROC\"),\"-\",IF(AND('Enrollment Form'!$B628=\"Subscriber\",'Enrollment Form'!$C628=\"Enroll\",'Enrollment Form'!$CV628<>\"\"),\"Y\",\"N\")))","v":""},{"$f":"IF($B621=\"N\",\"\",IF($S621=\"-\",\"-\",IF(AND($S621=\"Y\",'Enrollment Form'!$CV628=\"No\"),\"-\",IF(AND($S621=\"Y\",'Enrollment Form'!$CV628=\"Yes\",'Enrollment Form'!$CW628<>\"\"),\"Y\",\"N\"))))","v":""},{"$f":"IF(OR('Enrollment Form'!$AY628=\"Yes\",'Enrollment Form'!$AY628=\"\"),\"-\",IF(OR(AND('Enrollment Form'!$AY628=\"No\",ISERROR(FIND(\"HMO\",VLOOKUP('Enrollment Form'!G628,'Enrollment Form'!H$11:J$1000,3,FALSE),1))=FALSE,COUNTA('Enrollment Form'!$AZ628:$BC628)=4),AND('Enrollment Form'!$AY628=\"No\",ISERROR(FIND(\"HMO\",VLOOKUP('Enrollment Form'!G628,'Enrollment Form'!H$11:J$1000,3,FALSE),1))=FALSE,COUNTA('Enrollment Form'!$BT628:$BW628)=4)),\"Y\",\"N\"))","v":"-"},{"$f":"IF($B621=\"N\",\"\",IF('Enrollment Form'!$B628=\"Subscriber\",\"-\",IF(COUNTA('Enrollment Form'!$BL628,'Enrollment Form'!$BN628)=2,\"Y\",\"N\")))","v":""},{"$f":"IF($B621=\"N\",\"\",IF(OR('Enrollment Form'!$AX628=\"\",'Enrollment Form'!$AX628=\"No\"),\"-\",IF(AND('Enrollment Form'!$AX628=\"Yes\",COUNTA('Enrollment Form'!$CR628)=1),\"Y\",\"N\")))","v":""},{"$f":"IF(OR('Enrollment Form'!$CR628=\"\",'Enrollment Form'!$CR628=\"No\"),\"-\",IF(COUNTA('Enrollment Form'!$CT628:$CU628)=2,\"Y\",\"N\"))","v":"-"},{"$f":"IF($B621=\"N\",\"\",IF(COUNTIF('Enrollment Form'!$DG628:$DP628,\"Other\")=COUNTA('Enrollment Form'!$DK628,'Enrollment Form'!$DH628,'Enrollment Form'!$DN628,'Enrollment Form'!$DQ628),\"Y\",\"N\"))","v":""},{"$f":"IF($B621=\"N\",\"\",IF(OR('Enrollment Form'!B628<>\"Subscriber\",'Enrollment Form'!C628=\"ROC\",COUNTIF('Enrollment Form'!AV628:AW628,\"Yes\")>=1),\"-\",IF(AND('Enrollment Form'!C628=\"Enroll\",COUNTIF('Enrollment Form'!AV628:AW628,\"No\")=2,'Enrollment Form'!AX628=\"\"),\"N\",\"Y\")))","v":""},{"$f":"IF(OR(B621=\"N\",'Enrollment Form'!B628<>\"Subscriber\",'Enrollment Form'!C628=\"ROC\",'Enrollment Form'!O628<>\"Multiple of Salary\"),\"-\",IF(COUNTA('Enrollment Form'!T628:U628)<2,\"N\",\"Y\"))","v":"-"},{"$f":"IF(B621=\"N\",\"\",IF(OR('Enrollment Form'!C628=\"ROC\",'Enrollment Form'!B628<>\"Subscriber\",'Enrollment Form'!O628=\"Waive\",'Enrollment Form'!O628=\"\"),\"-\",IF('Enrollment Form'!P628=\"\",\"N\",\"Y\")))","v":""},{"$f":"IF($B621=\"N\",\"\",IF(AND('Enrollment Form'!$C628=\"ROC\",'Enrollment Form'!$DR628<>\"\"),\"Y\",IF(AND('Enrollment Form'!$C628=\"ROC\",'Enrollment Form'!$DR628=\"\"),\"N\",IF(AND('Enrollment Form'!$C628=\"Enroll\",'Enrollment Form'!$B628=\"Subscriber\",'Enrollment Form'!$CX628=\"No\",'Enrollment Form'!$DR628=\"\"),\"N\",IF(AND('Enrollment Form'!$C628=\"Enroll\",'Enrollment Form'!$B628=\"Subscriber\",'Enrollment Form'!$CX628=\"Yes\"),\"-\",\"Y\")))))","v":""},{"$f":"IF($B621=\"N\",\"\",IF(AND('Enrollment Form'!$C628=\"ROC\",'Enrollment Form'!$DS628<>\"\"),\"Y\",IF(AND('Enrollment Form'!$C628=\"ROC\",'Enrollment Form'!$DS628=\"\"),\"N\",IF(AND('Enrollment Form'!$C628=\"Enroll\",'Enrollment Form'!$B628=\"Subscriber\",'Enrollment Form'!$CX628=\"No\",'Enrollment Form'!$DS628=\"\"),\"N\",IF(AND('Enrollment Form'!$C628=\"Enroll\",'Enrollment Form'!$B628=\"Subscriber\",'Enrollment Form'!$CX628=\"Yes\"),\"-\",\"Y\")))))","v":""},{"$f":"IF('Enrollment Form'!AH628=\"\",\"\",IF(ISERROR(SEARCH(\".\",'Enrollment Form'!AH628,SEARCH(\"@\",'Enrollment Form'!AH628))),\"N\",\"Y\"))","v":""},{"$f":"IF(OR($B621=\"N\",'Enrollment Form'!$G628=\"\"),\"\",IF('Enrollment Form'!$B628<>\"Subscriber\",\"-\",IF(COUNTIF('Enrollment Form'!$AV628:$AW628,\"Yes\")=2,\"N\",\"Y\")))","v":""},{"$f":"IF(OR('Enrollment Form'!$CJ628=\"\",'Enrollment Form'!$CJ628=\"No\"),\"-\",IF(AND('Enrollment Form'!$CJ628=\"Yes\",'Enrollment Form'!$CK628=\"\"),\"N\",\"Y\"))","v":"-"},{"$f":"IF(OR('Enrollment Form'!$CL628=\"\",'Enrollment Form'!$CL628=\"No\"),\"-\",IF(AND('Enrollment Form'!$CL628=\"Yes\",'Enrollment Form'!$CM628=\"\"),\"N\",\"Y\"))","v":"-"},{"$f":"IF(OR('Enrollment Form'!$CN628=\"\",'Enrollment Form'!$CN628=\"No\"),\"-\",IF(AND('Enrollment Form'!$CN628=\"Yes\",'Enrollment Form'!$CO628=\"\"),\"N\",\"Y\"))","v":"-"},{"$f":"IF(OR('Enrollment Form'!$CN628=\"\",'Enrollment Form'!$CN628=\"No\"),\"-\",IF(AND('Enrollment Form'!$CN628=\"Yes\",'Enrollment Form'!$CP628=\"\"),\"N\",\"Y\"))","v":"-"},{"$f":"IF('Enrollment Form'!B628<>\"Subscriber\",\"-\",IF(AND('Enrollment Form'!B628=\"Subscriber\",'Enrollment Form'!C628=\"Enroll\",'Enrollment Form'!AA628=\"\"),\"N\",\"Y\"))","v":"-"},{"$f":"IF(OR('Enrollment Form'!B628=\"Subscriber\",'Enrollment Form'!B628=\"\"),\"-\",IF('Enrollment Form'!BP628=\"\",\"N\",\"Y\"))","v":"-"},{"$f":"IF('Enrollment Form'!B628<>\"Subscriber\",\"-\",IF(AND('Enrollment Form'!B628=\"Subscriber\",'Enrollment Form'!G628=\"\"),\"N\",\"Y\"))","v":"-"},{"$f":"IF('Enrollment Form'!A628=\"\",\"\",IF('Enrollment Form'!B628=\"Subscriber\",\"-\",IF(AND('Enrollment Form'!B628<>\"Subscriber\",'Enrollment Form'!G628='Enrollment Form'!H628),\"N\",\"Y\")))","v":""},0]
[629,{"$f":"IF('Enrollment Form'!$A629<>\"\",\"Y\",\"N\")","v":"N"},{"$f":"IF(AND('Enrollment Form'!$B629=\"\",'Enrollment Form'!$C629<>\"\"),\"N\",IF($B622=\"N\",\"\",\"Y\"))","v":""},{"$f":"IF(OR($B622=\"N\",'Enrollment Form'!G629=\"\"),\"\",IF('Enrollment Form'!$B629<>\"Subscriber\",\"\",IF('Enrollment Form'!$G629='Enrollment Form'!$H629,\"Y\",\"N\")))","v":""},{"$f":"IF($B622=\"N\",\"\",IF(AND(COUNTIFS('Enrollment Form'!$H$11:$H$1000,'Enrollment Form'!$H629,'Enrollment Form'!$B$11:$B$1000,'Enrollment Form'!$B629)>1,'Enrollment Form'!$H629<>\"\"),\"N\",\"Y\"))","v":""},{"$f":"IF($B622=\"N\",\"\",IF(LEN('Enrollment Form'!$Y629)=0,\"\",IF(LEN('Enrollment Form'!$Y629)<>5,\"N\",\"Y\")))","v":""},{"$f":"IF($B622=\"N\",\"\",IF(LEN('Enrollment Form'!$AD629=0),\"\",IF(LEN('Enrollment Form'!$AD629)<>5,\"N\",\"Y\")))","v":""},{"$f":"IF($B622=\"N\",\"\",IF(LEN('Enrollment Form'!$BS629=0),\"\",IF(LEN('Enrollment Form'!$BS629)<>5,\"N\",\"Y\")))","v":""},{"$f":"IF($B622=\"N\",\"\",IF(LEN('Enrollment Form'!$AE629)=0,\"\",IF(LEN('Enrollment Form'!$AE629)<>10,\"N\",\"Y\")))","v":""},{"$f":"IF($B622=\"N\",\"\",IF(LEN('Enrollment Form'!$AF629)=0,\"\",IF(LEN('Enrollment Form'!$AF629)<>10,\"N\",\"Y\")))","v":""},{"$f":"IF('Enrollment Form'!$O629<>\"Graded\",\"-\",IF(AND('Enrollment Form'!$O629=\"Graded\",'Enrollment Form'!$AR629<>\"\"),\"Y\",\"N\"))","v":"-"},{"$f":"IF($B622=\"N\",\"\",IF(OR('Enrollment Form'!$B629<>\"Subscriber\",'Enrollment Form'!$C629=\"ROC\"),\"-\",IF(AND('Enrollment Form'!$B629=\"Subscriber\",'Enrollment Form'!$C629=\"Enroll\",'Enrollment Form'!$AJ629<>\"\"),\"Y\",\"N\")))","v":""},{"$f":"IF($B622=\"N\",\"\",IF(OR('Enrollment Form'!$B629<>\"Subscriber\",'Enrollment Form'!$C629=\"ROC\"),\"-\",IF(AND('Enrollment Form'!$B629=\"Subscriber\",'Enrollment Form'!$C629=\"Enroll\",'Enrollment Form'!$AK629<>\"\"),\"Y\",\"N\")))","v":""},{"$f":"IF($B622=\"N\",\"\",IF(OR('Enrollment Form'!$B629<>\"Subscriber\",'Enrollment Form'!$C629=\"ROC\"),\"-\",IF(AND('Enrollment Form'!$B629=\"Subscriber\",'Enrollment Form'!$C629=\"Enroll\",'Enrollment Form'!$AL629<>\"\"),\"Y\",\"N\")))","v":""},{"$f":"IF($B622=\"N\",\"\",IF(OR('Enrollment Form'!$B629<>\"Subscriber\",'Enrollment Form'!$C629=\"ROC\"),\"-\",IF(AND('Enrollment Form'!$B629=\"Subscriber\",'Enrollment Form'!$C629=\"Enroll\",'Enrollment Form'!$AP629<>\"\"),\"Y\",\"N\")))","v":""},{"$f":"IF($B622=\"N\",\"\",IF(OR('Enrollment Form'!$B629<>\"Subscriber\",'Enrollment Form'!$C629=\"ROC\"),\"-\",IF(AND('Enrollment Form'!$B629=\"Subscriber\",'Enrollment Form'!$C629=\"Enroll\",'Enrollment Form'!$AQ629<>\"\"),\"Y\",\"N\")))","v":""},{"$f":"IF($B622=\"N\",\"\",IF(OR('Enrollment Form'!$B629<>\"Subscriber\",'Enrollment Form'!$C629=\"ROC\"),\"-\",IF(AND('Enrollment Form'!$B629=\"Subscriber\",'Enrollment Form'!$C629=\"Enroll\",'Enrollment Form'!$AS629<>\"\"),\"Y\",\"N\")))","v":""},{"$f":"IF($B622=\"N\",\"\",IF($Q622=\"-\",\"-\",IF(AND($Q622=\"Y\",'Enrollment Form'!$AS629=\"No\"),\"-\",IF(AND($Q622=\"Y\",'Enrollment Form'!$AS629=\"Yes\",'Enrollment Form'!$AT629<>\"\"),\"Y\",\"N\"))))","v":""},{"$f":"IF($B622=\"N\",\"\",IF(OR('Enrollment Form'!$B629<>\"Subscriber\",'Enrollment Form'!$C629=\"ROC\"),\"-\",IF(AND('Enrollment Form'!$B629=\"Subscriber\",'Enrollment Form'!$C629=\"Enroll\",'Enrollment Form'!$CV629<>\"\"),\"Y\",\"N\")))","v":""},{"$f":"IF($B622=\"N\",\"\",IF($S622=\"-\",\"-\",IF(AND($S622=\"Y\",'Enrollment Form'!$CV629=\"No\"),\"-\",IF(AND($S622=\"Y\",'Enrollment Form'!$CV629=\"Yes\",'Enrollment Form'!$CW629<>\"\"),\"Y\",\"N\"))))","v":""},{"$f":"IF(OR('Enrollment Form'!$AY629=\"Yes\",'Enrollment Form'!$AY629=\"\"),\"-\",IF(OR(AND('Enrollment Form'!$AY629=\"No\",ISERROR(FIND(\"HMO\",VLOOKUP('Enrollment Form'!G629,'Enrollment Form'!H$11:J$1000,3,FALSE),1))=FALSE,COUNTA('Enrollment Form'!$AZ629:$BC629)=4),AND('Enrollment Form'!$AY629=\"No\",ISERROR(FIND(\"HMO\",VLOOKUP('Enrollment Form'!G629,'Enrollment Form'!H$11:J$1000,3,FALSE),1))=FALSE,COUNTA('Enrollment Form'!$BT629:$BW629)=4)),\"Y\",\"N\"))","v":"-"},{"$f":"IF($B622=\"N\",\"\",IF('Enrollment Form'!$B629=\"Subscriber\",\"-\",IF(COUNTA('Enrollment Form'!$BL629,'Enrollment Form'!$BN629)=2,\"Y\",\"N\")))","v":""},{"$f":"IF($B622=\"N\",\"\",IF(OR('Enrollment Form'!$AX629=\"\",'Enrollment Form'!$AX629=\"No\"),\"-\",IF(AND('Enrollment Form'!$AX629=\"Yes\",COUNTA('Enrollment Form'!$CR629)=1),\"Y\",\"N\")))","v":""},{"$f":"IF(OR('Enrollment Form'!$CR629=\"\",'Enrollment Form'!$CR629=\"No\"),\"-\",IF(COUNTA('Enrollment Form'!$CT629:$CU629)=2,\"Y\",\"N\"))","v":"-"},{"$f":"IF($B622=\"N\",\"\",IF(COUNTIF('Enrollment Form'!$DG629:$DP629,\"Other\")=COUNTA('Enrollment Form'!$DK629,'Enrollment Form'!$DH629,'Enrollment Form'!$DN629,'Enrollment Form'!$DQ629),\"Y\",\"N\"))","v":""},{"$f":"IF($B622=\"N\",\"\",IF(OR('Enrollment Form'!B629<>\"Subscriber\",'Enrollment Form'!C629=\"ROC\",COUNTIF('Enrollment Form'!AV629:AW629,\"Yes\")>=1),\"-\",IF(AND('Enrollment Form'!C629=\"Enroll\",COUNTIF('Enrollment Form'!AV629:AW629,\"No\")=2,'Enrollment Form'!AX629=\"\"),\"N\",\"Y\")))","v":""},{"$f":"IF(OR(B622=\"N\",'Enrollment Form'!B629<>\"Subscriber\",'Enrollment Form'!C629=\"ROC\",'Enrollment Form'!O629<>\"Multiple of Salary\"),\"-\",IF(COUNTA('Enrollment Form'!T629:U629)<2,\"N\",\"Y\"))","v":"-"},{"$f":"IF(B622=\"N\",\"\",IF(OR('Enrollment Form'!C629=\"ROC\",'Enrollment Form'!B629<>\"Subscriber\",'Enrollment Form'!O629=\"Waive\",'Enrollment Form'!O629=\"\"),\"-\",IF('Enrollment Form'!P629=\"\",\"N\",\"Y\")))","v":""},{"$f":"IF($B622=\"N\",\"\",IF(AND('Enrollment Form'!$C629=\"ROC\",'Enrollment Form'!$DR629<>\"\"),\"Y\",IF(AND('Enrollment Form'!$C629=\"ROC\",'Enrollment Form'!$DR629=\"\"),\"N\",IF(AND('Enrollment Form'!$C629=\"Enroll\",'Enrollment Form'!$B629=\"Subscriber\",'Enrollment Form'!$CX629=\"No\",'Enrollment Form'!$DR629=\"\"),\"N\",IF(AND('Enrollment Form'!$C629=\"Enroll\",'Enrollment Form'!$B629=\"Subscriber\",'Enrollment Form'!$CX629=\"Yes\"),\"-\",\"Y\")))))","v":""},{"$f":"IF($B622=\"N\",\"\",IF(AND('Enrollment Form'!$C629=\"ROC\",'Enrollment Form'!$DS629<>\"\"),\"Y\",IF(AND('Enrollment Form'!$C629=\"ROC\",'Enrollment Form'!$DS629=\"\"),\"N\",IF(AND('Enrollment Form'!$C629=\"Enroll\",'Enrollment Form'!$B629=\"Subscriber\",'Enrollment Form'!$CX629=\"No\",'Enrollment Form'!$DS629=\"\"),\"N\",IF(AND('Enrollment Form'!$C629=\"Enroll\",'Enrollment Form'!$B629=\"Subscriber\",'Enrollment Form'!$CX629=\"Yes\"),\"-\",\"Y\")))))","v":""},{"$f":"IF('Enrollment Form'!AH629=\"\",\"\",IF(ISERROR(SEARCH(\".\",'Enrollment Form'!AH629,SEARCH(\"@\",'Enrollment Form'!AH629))),\"N\",\"Y\"))","v":""},{"$f":"IF(OR($B622=\"N\",'Enrollment Form'!$G629=\"\"),\"\",IF('Enrollment Form'!$B629<>\"Subscriber\",\"-\",IF(COUNTIF('Enrollment Form'!$AV629:$AW629,\"Yes\")=2,\"N\",\"Y\")))","v":""},{"$f":"IF(OR('Enrollment Form'!$CJ629=\"\",'Enrollment Form'!$CJ629=\"No\"),\"-\",IF(AND('Enrollment Form'!$CJ629=\"Yes\",'Enrollment Form'!$CK629=\"\"),\"N\",\"Y\"))","v":"-"},{"$f":"IF(OR('Enrollment Form'!$CL629=\"\",'Enrollment Form'!$CL629=\"No\"),\"-\",IF(AND('Enrollment Form'!$CL629=\"Yes\",'Enrollment Form'!$CM629=\"\"),\"N\",\"Y\"))","v":"-"},{"$f":"IF(OR('Enrollment Form'!$CN629=\"\",'Enrollment Form'!$CN629=\"No\"),\"-\",IF(AND('Enrollment Form'!$CN629=\"Yes\",'Enrollment Form'!$CO629=\"\"),\"N\",\"Y\"))","v":"-"},{"$f":"IF(OR('Enrollment Form'!$CN629=\"\",'Enrollment Form'!$CN629=\"No\"),\"-\",IF(AND('Enrollment Form'!$CN629=\"Yes\",'Enrollment Form'!$CP629=\"\"),\"N\",\"Y\"))","v":"-"},{"$f":"IF('Enrollment Form'!B629<>\"Subscriber\",\"-\",IF(AND('Enrollment Form'!B629=\"Subscriber\",'Enrollment Form'!C629=\"Enroll\",'Enrollment Form'!AA629=\"\"),\"N\",\"Y\"))","v":"-"},{"$f":"IF(OR('Enrollment Form'!B629=\"Subscriber\",'Enrollment Form'!B629=\"\"),\"-\",IF('Enrollment Form'!BP629=\"\",\"N\",\"Y\"))","v":"-"},{"$f":"IF('Enrollment Form'!B629<>\"Subscriber\",\"-\",IF(AND('Enrollment Form'!B629=\"Subscriber\",'Enrollment Form'!G629=\"\"),\"N\",\"Y\"))","v":"-"},{"$f":"IF('Enrollment Form'!A629=\"\",\"\",IF('Enrollment Form'!B629=\"Subscriber\",\"-\",IF(AND('Enrollment Form'!B629<>\"Subscriber\",'Enrollment Form'!G629='Enrollment Form'!H629),\"N\",\"Y\")))","v":""},0]
[630,{"$f":"IF('Enrollment Form'!$A630<>\"\",\"Y\",\"N\")","v":"N"},{"$f":"IF(AND('Enrollment Form'!$B630=\"\",'Enrollment Form'!$C630<>\"\"),\"N\",IF($B623=\"N\",\"\",\"Y\"))","v":""},{"$f":"IF(OR($B623=\"N\",'Enrollment Form'!G630=\"\"),\"\",IF('Enrollment Form'!$B630<>\"Subscriber\",\"\",IF('Enrollment Form'!$G630='Enrollment Form'!$H630,\"Y\",\"N\")))","v":""},{"$f":"IF($B623=\"N\",\"\",IF(AND(COUNTIFS('Enrollment Form'!$H$11:$H$1000,'Enrollment Form'!$H630,'Enrollment Form'!$B$11:$B$1000,'Enrollment Form'!$B630)>1,'Enrollment Form'!$H630<>\"\"),\"N\",\"Y\"))","v":""},{"$f":"IF($B623=\"N\",\"\",IF(LEN('Enrollment Form'!$Y630)=0,\"\",IF(LEN('Enrollment Form'!$Y630)<>5,\"N\",\"Y\")))","v":""},{"$f":"IF($B623=\"N\",\"\",IF(LEN('Enrollment Form'!$AD630=0),\"\",IF(LEN('Enrollment Form'!$AD630)<>5,\"N\",\"Y\")))","v":""},{"$f":"IF($B623=\"N\",\"\",IF(LEN('Enrollment Form'!$BS630=0),\"\",IF(LEN('Enrollment Form'!$BS630)<>5,\"N\",\"Y\")))","v":""},{"$f":"IF($B623=\"N\",\"\",IF(LEN('Enrollment Form'!$AE630)=0,\"\",IF(LEN('Enrollment Form'!$AE630)<>10,\"N\",\"Y\")))","v":""},{"$f":"IF($B623=\"N\",\"\",IF(LEN('Enrollment Form'!$AF630)=0,\"\",IF(LEN('Enrollment Form'!$AF630)<>10,\"N\",\"Y\")))","v":""},{"$f":"IF('Enrollment Form'!$O630<>\"Graded\",\"-\",IF(AND('Enrollment Form'!$O630=\"Graded\",'Enrollment Form'!$AR630<>\"\"),\"Y\",\"N\"))","v":"-"},{"$f":"IF($B623=\"N\",\"\",IF(OR('Enrollment Form'!$B630<>\"Subscriber\",'Enrollment Form'!$C630=\"ROC\"),\"-\",IF(AND('Enrollment Form'!$B630=\"Subscriber\",'Enrollment Form'!$C630=\"Enroll\",'Enrollment Form'!$AJ630<>\"\"),\"Y\",\"N\")))","v":""},{"$f":"IF($B623=\"N\",\"\",IF(OR('Enrollment Form'!$B630<>\"Subscriber\",'Enrollment Form'!$C630=\"ROC\"),\"-\",IF(AND('Enrollment Form'!$B630=\"Subscriber\",'Enrollment Form'!$C630=\"Enroll\",'Enrollment Form'!$AK630<>\"\"),\"Y\",\"N\")))","v":""},{"$f":"IF($B623=\"N\",\"\",IF(OR('Enrollment Form'!$B630<>\"Subscriber\",'Enrollment Form'!$C630=\"ROC\"),\"-\",IF(AND('Enrollment Form'!$B630=\"Subscriber\",'Enrollment Form'!$C630=\"Enroll\",'Enrollment Form'!$AL630<>\"\"),\"Y\",\"N\")))","v":""},{"$f":"IF($B623=\"N\",\"\",IF(OR('Enrollment Form'!$B630<>\"Subscriber\",'Enrollment Form'!$C630=\"ROC\"),\"-\",IF(AND('Enrollment Form'!$B630=\"Subscriber\",'Enrollment Form'!$C630=\"Enroll\",'Enrollment Form'!$AP630<>\"\"),\"Y\",\"N\")))","v":""},{"$f":"IF($B623=\"N\",\"\",IF(OR('Enrollment Form'!$B630<>\"Subscriber\",'Enrollment Form'!$C630=\"ROC\"),\"-\",IF(AND('Enrollment Form'!$B630=\"Subscriber\",'Enrollment Form'!$C630=\"Enroll\",'Enrollment Form'!$AQ630<>\"\"),\"Y\",\"N\")))","v":""},{"$f":"IF($B623=\"N\",\"\",IF(OR('Enrollment Form'!$B630<>\"Subscriber\",'Enrollment Form'!$C630=\"ROC\"),\"-\",IF(AND('Enrollment Form'!$B630=\"Subscriber\",'Enrollment Form'!$C630=\"Enroll\",'Enrollment Form'!$AS630<>\"\"),\"Y\",\"N\")))","v":""},{"$f":"IF($B623=\"N\",\"\",IF($Q623=\"-\",\"-\",IF(AND($Q623=\"Y\",'Enrollment Form'!$AS630=\"No\"),\"-\",IF(AND($Q623=\"Y\",'Enrollment Form'!$AS630=\"Yes\",'Enrollment Form'!$AT630<>\"\"),\"Y\",\"N\"))))","v":""},{"$f":"IF($B623=\"N\",\"\",IF(OR('Enrollment Form'!$B630<>\"Subscriber\",'Enrollment Form'!$C630=\"ROC\"),\"-\",IF(AND('Enrollment Form'!$B630=\"Subscriber\",'Enrollment Form'!$C630=\"Enroll\",'Enrollment Form'!$CV630<>\"\"),\"Y\",\"N\")))","v":""},{"$f":"IF($B623=\"N\",\"\",IF($S623=\"-\",\"-\",IF(AND($S623=\"Y\",'Enrollment Form'!$CV630=\"No\"),\"-\",IF(AND($S623=\"Y\",'Enrollment Form'!$CV630=\"Yes\",'Enrollment Form'!$CW630<>\"\"),\"Y\",\"N\"))))","v":""},{"$f":"IF(OR('Enrollment Form'!$AY630=\"Yes\",'Enrollment Form'!$AY630=\"\"),\"-\",IF(OR(AND('Enrollment Form'!$AY630=\"No\",ISERROR(FIND(\"HMO\",VLOOKUP('Enrollment Form'!G630,'Enrollment Form'!H$11:J$1000,3,FALSE),1))=FALSE,COUNTA('Enrollment Form'!$AZ630:$BC630)=4),AND('Enrollment Form'!$AY630=\"No\",ISERROR(FIND(\"HMO\",VLOOKUP('Enrollment Form'!G630,'Enrollment Form'!H$11:J$1000,3,FALSE),1))=FALSE,COUNTA('Enrollment Form'!$BT630:$BW630)=4)),\"Y\",\"N\"))","v":"-"},{"$f":"IF($B623=\"N\",\"\",IF('Enrollment Form'!$B630=\"Subscriber\",\"-\",IF(COUNTA('Enrollment Form'!$BL630,'Enrollment Form'!$BN630)=2,\"Y\",\"N\")))","v":""},{"$f":"IF($B623=\"N\",\"\",IF(OR('Enrollment Form'!$AX630=\"\",'Enrollment Form'!$AX630=\"No\"),\"-\",IF(AND('Enrollment Form'!$AX630=\"Yes\",COUNTA('Enrollment Form'!$CR630)=1),\"Y\",\"N\")))","v":""},{"$f":"IF(OR('Enrollment Form'!$CR630=\"\",'Enrollment Form'!$CR630=\"No\"),\"-\",IF(COUNTA('Enrollment Form'!$CT630:$CU630)=2,\"Y\",\"N\"))","v":"-"},{"$f":"IF($B623=\"N\",\"\",IF(COUNTIF('Enrollment Form'!$DG630:$DP630,\"Other\")=COUNTA('Enrollment Form'!$DK630,'Enrollment Form'!$DH630,'Enrollment Form'!$DN630,'Enrollment Form'!$DQ630),\"Y\",\"N\"))","v":""},{"$f":"IF($B623=\"N\",\"\",IF(OR('Enrollment Form'!B630<>\"Subscriber\",'Enrollment Form'!C630=\"ROC\",COUNTIF('Enrollment Form'!AV630:AW630,\"Yes\")>=1),\"-\",IF(AND('Enrollment Form'!C630=\"Enroll\",COUNTIF('Enrollment Form'!AV630:AW630,\"No\")=2,'Enrollment Form'!AX630=\"\"),\"N\",\"Y\")))","v":""},{"$f":"IF(OR(B623=\"N\",'Enrollment Form'!B630<>\"Subscriber\",'Enrollment Form'!C630=\"ROC\",'Enrollment Form'!O630<>\"Multiple of Salary\"),\"-\",IF(COUNTA('Enrollment Form'!T630:U630)<2,\"N\",\"Y\"))","v":"-"},{"$f":"IF(B623=\"N\",\"\",IF(OR('Enrollment Form'!C630=\"ROC\",'Enrollment Form'!B630<>\"Subscriber\",'Enrollment Form'!O630=\"Waive\",'Enrollment Form'!O630=\"\"),\"-\",IF('Enrollment Form'!P630=\"\",\"N\",\"Y\")))","v":""},{"$f":"IF($B623=\"N\",\"\",IF(AND('Enrollment Form'!$C630=\"ROC\",'Enrollment Form'!$DR630<>\"\"),\"Y\",IF(AND('Enrollment Form'!$C630=\"ROC\",'Enrollment Form'!$DR630=\"\"),\"N\",IF(AND('Enrollment Form'!$C630=\"Enroll\",'Enrollment Form'!$B630=\"Subscriber\",'Enrollment Form'!$CX630=\"No\",'Enrollment Form'!$DR630=\"\"),\"N\",IF(AND('Enrollment Form'!$C630=\"Enroll\",'Enrollment Form'!$B630=\"Subscriber\",'Enrollment Form'!$CX630=\"Yes\"),\"-\",\"Y\")))))","v":""},{"$f":"IF($B623=\"N\",\"\",IF(AND('Enrollment Form'!$C630=\"ROC\",'Enrollment Form'!$DS630<>\"\"),\"Y\",IF(AND('Enrollment Form'!$C630=\"ROC\",'Enrollment Form'!$DS630=\"\"),\"N\",IF(AND('Enrollment Form'!$C630=\"Enroll\",'Enrollment Form'!$B630=\"Subscriber\",'Enrollment Form'!$CX630=\"No\",'Enrollment Form'!$DS630=\"\"),\"N\",IF(AND('Enrollment Form'!$C630=\"Enroll\",'Enrollment Form'!$B630=\"Subscriber\",'Enrollment Form'!$CX630=\"Yes\"),\"-\",\"Y\")))))","v":""},{"$f":"IF('Enrollment Form'!AH630=\"\",\"\",IF(ISERROR(SEARCH(\".\",'Enrollment Form'!AH630,SEARCH(\"@\",'Enrollment Form'!AH630))),\"N\",\"Y\"))","v":""},{"$f":"IF(OR($B623=\"N\",'Enrollment Form'!$G630=\"\"),\"\",IF('Enrollment Form'!$B630<>\"Subscriber\",\"-\",IF(COUNTIF('Enrollment Form'!$AV630:$AW630,\"Yes\")=2,\"N\",\"Y\")))","v":""},{"$f":"IF(OR('Enrollment Form'!$CJ630=\"\",'Enrollment Form'!$CJ630=\"No\"),\"-\",IF(AND('Enrollment Form'!$CJ630=\"Yes\",'Enrollment Form'!$CK630=\"\"),\"N\",\"Y\"))","v":"-"},{"$f":"IF(OR('Enrollment Form'!$CL630=\"\",'Enrollment Form'!$CL630=\"No\"),\"-\",IF(AND('Enrollment Form'!$CL630=\"Yes\",'Enrollment Form'!$CM630=\"\"),\"N\",\"Y\"))","v":"-"},{"$f":"IF(OR('Enrollment Form'!$CN630=\"\",'Enrollment Form'!$CN630=\"No\"),\"-\",IF(AND('Enrollment Form'!$CN630=\"Yes\",'Enrollment Form'!$CO630=\"\"),\"N\",\"Y\"))","v":"-"},{"$f":"IF(OR('Enrollment Form'!$CN630=\"\",'Enrollment Form'!$CN630=\"No\"),\"-\",IF(AND('Enrollment Form'!$CN630=\"Yes\",'Enrollment Form'!$CP630=\"\"),\"N\",\"Y\"))","v":"-"},{"$f":"IF('Enrollment Form'!B630<>\"Subscriber\",\"-\",IF(AND('Enrollment Form'!B630=\"Subscriber\",'Enrollment Form'!C630=\"Enroll\",'Enrollment Form'!AA630=\"\"),\"N\",\"Y\"))","v":"-"},{"$f":"IF(OR('Enrollment Form'!B630=\"Subscriber\",'Enrollment Form'!B630=\"\"),\"-\",IF('Enrollment Form'!BP630=\"\",\"N\",\"Y\"))","v":"-"},{"$f":"IF('Enrollment Form'!B630<>\"Subscriber\",\"-\",IF(AND('Enrollment Form'!B630=\"Subscriber\",'Enrollment Form'!G630=\"\"),\"N\",\"Y\"))","v":"-"},{"$f":"IF('Enrollment Form'!A630=\"\",\"\",IF('Enrollment Form'!B630=\"Subscriber\",\"-\",IF(AND('Enrollment Form'!B630<>\"Subscriber\",'Enrollment Form'!G630='Enrollment Form'!H630),\"N\",\"Y\")))","v":""},0]
[631,{"$f":"IF('Enrollment Form'!$A631<>\"\",\"Y\",\"N\")","v":"N"},{"$f":"IF(AND('Enrollment Form'!$B631=\"\",'Enrollment Form'!$C631<>\"\"),\"N\",IF($B624=\"N\",\"\",\"Y\"))","v":""},{"$f":"IF(OR($B624=\"N\",'Enrollment Form'!G631=\"\"),\"\",IF('Enrollment Form'!$B631<>\"Subscriber\",\"\",IF('Enrollment Form'!$G631='Enrollment Form'!$H631,\"Y\",\"N\")))","v":""},{"$f":"IF($B624=\"N\",\"\",IF(AND(COUNTIFS('Enrollment Form'!$H$11:$H$1000,'Enrollment Form'!$H631,'Enrollment Form'!$B$11:$B$1000,'Enrollment Form'!$B631)>1,'Enrollment Form'!$H631<>\"\"),\"N\",\"Y\"))","v":""},{"$f":"IF($B624=\"N\",\"\",IF(LEN('Enrollment Form'!$Y631)=0,\"\",IF(LEN('Enrollment Form'!$Y631)<>5,\"N\",\"Y\")))","v":""},{"$f":"IF($B624=\"N\",\"\",IF(LEN('Enrollment Form'!$AD631=0),\"\",IF(LEN('Enrollment Form'!$AD631)<>5,\"N\",\"Y\")))","v":""},{"$f":"IF($B624=\"N\",\"\",IF(LEN('Enrollment Form'!$BS631=0),\"\",IF(LEN('Enrollment Form'!$BS631)<>5,\"N\",\"Y\")))","v":""},{"$f":"IF($B624=\"N\",\"\",IF(LEN('Enrollment Form'!$AE631)=0,\"\",IF(LEN('Enrollment Form'!$AE631)<>10,\"N\",\"Y\")))","v":""},{"$f":"IF($B624=\"N\",\"\",IF(LEN('Enrollment Form'!$AF631)=0,\"\",IF(LEN('Enrollment Form'!$AF631)<>10,\"N\",\"Y\")))","v":""},{"$f":"IF('Enrollment Form'!$O631<>\"Graded\",\"-\",IF(AND('Enrollment Form'!$O631=\"Graded\",'Enrollment Form'!$AR631<>\"\"),\"Y\",\"N\"))","v":"-"},{"$f":"IF($B624=\"N\",\"\",IF(OR('Enrollment Form'!$B631<>\"Subscriber\",'Enrollment Form'!$C631=\"ROC\"),\"-\",IF(AND('Enrollment Form'!$B631=\"Subscriber\",'Enrollment Form'!$C631=\"Enroll\",'Enrollment Form'!$AJ631<>\"\"),\"Y\",\"N\")))","v":""},{"$f":"IF($B624=\"N\",\"\",IF(OR('Enrollment Form'!$B631<>\"Subscriber\",'Enrollment Form'!$C631=\"ROC\"),\"-\",IF(AND('Enrollment Form'!$B631=\"Subscriber\",'Enrollment Form'!$C631=\"Enroll\",'Enrollment Form'!$AK631<>\"\"),\"Y\",\"N\")))","v":""},{"$f":"IF($B624=\"N\",\"\",IF(OR('Enrollment Form'!$B631<>\"Subscriber\",'Enrollment Form'!$C631=\"ROC\"),\"-\",IF(AND('Enrollment Form'!$B631=\"Subscriber\",'Enrollment Form'!$C631=\"Enroll\",'Enrollment Form'!$AL631<>\"\"),\"Y\",\"N\")))","v":""},{"$f":"IF($B624=\"N\",\"\",IF(OR('Enrollment Form'!$B631<>\"Subscriber\",'Enrollment Form'!$C631=\"ROC\"),\"-\",IF(AND('Enrollment Form'!$B631=\"Subscriber\",'Enrollment Form'!$C631=\"Enroll\",'Enrollment Form'!$AP631<>\"\"),\"Y\",\"N\")))","v":""},{"$f":"IF($B624=\"N\",\"\",IF(OR('Enrollment Form'!$B631<>\"Subscriber\",'Enrollment Form'!$C631=\"ROC\"),\"-\",IF(AND('Enrollment Form'!$B631=\"Subscriber\",'Enrollment Form'!$C631=\"Enroll\",'Enrollment Form'!$AQ631<>\"\"),\"Y\",\"N\")))","v":""},{"$f":"IF($B624=\"N\",\"\",IF(OR('Enrollment Form'!$B631<>\"Subscriber\",'Enrollment Form'!$C631=\"ROC\"),\"-\",IF(AND('Enrollment Form'!$B631=\"Subscriber\",'Enrollment Form'!$C631=\"Enroll\",'Enrollment Form'!$AS631<>\"\"),\"Y\",\"N\")))","v":""},{"$f":"IF($B624=\"N\",\"\",IF($Q624=\"-\",\"-\",IF(AND($Q624=\"Y\",'Enrollment Form'!$AS631=\"No\"),\"-\",IF(AND($Q624=\"Y\",'Enrollment Form'!$AS631=\"Yes\",'Enrollment Form'!$AT631<>\"\"),\"Y\",\"N\"))))","v":""},{"$f":"IF($B624=\"N\",\"\",IF(OR('Enrollment Form'!$B631<>\"Subscriber\",'Enrollment Form'!$C631=\"ROC\"),\"-\",IF(AND('Enrollment Form'!$B631=\"Subscriber\",'Enrollment Form'!$C631=\"Enroll\",'Enrollment Form'!$CV631<>\"\"),\"Y\",\"N\")))","v":""},{"$f":"IF($B624=\"N\",\"\",IF($S624=\"-\",\"-\",IF(AND($S624=\"Y\",'Enrollment Form'!$CV631=\"No\"),\"-\",IF(AND($S624=\"Y\",'Enrollment Form'!$CV631=\"Yes\",'Enrollment Form'!$CW631<>\"\"),\"Y\",\"N\"))))","v":""},{"$f":"IF(OR('Enrollment Form'!$AY631=\"Yes\",'Enrollment Form'!$AY631=\"\"),\"-\",IF(OR(AND('Enrollment Form'!$AY631=\"No\",ISERROR(FIND(\"HMO\",VLOOKUP('Enrollment Form'!G631,'Enrollment Form'!H$11:J$1000,3,FALSE),1))=FALSE,COUNTA('Enrollment Form'!$AZ631:$BC631)=4),AND('Enrollment Form'!$AY631=\"No\",ISERROR(FIND(\"HMO\",VLOOKUP('Enrollment Form'!G631,'Enrollment Form'!H$11:J$1000,3,FALSE),1))=FALSE,COUNTA('Enrollment Form'!$BT631:$BW631)=4)),\"Y\",\"N\"))","v":"-"},{"$f":"IF($B624=\"N\",\"\",IF('Enrollment Form'!$B631=\"Subscriber\",\"-\",IF(COUNTA('Enrollment Form'!$BL631,'Enrollment Form'!$BN631)=2,\"Y\",\"N\")))","v":""},{"$f":"IF($B624=\"N\",\"\",IF(OR('Enrollment Form'!$AX631=\"\",'Enrollment Form'!$AX631=\"No\"),\"-\",IF(AND('Enrollment Form'!$AX631=\"Yes\",COUNTA('Enrollment Form'!$CR631)=1),\"Y\",\"N\")))","v":""},{"$f":"IF(OR('Enrollment Form'!$CR631=\"\",'Enrollment Form'!$CR631=\"No\"),\"-\",IF(COUNTA('Enrollment Form'!$CT631:$CU631)=2,\"Y\",\"N\"))","v":"-"},{"$f":"IF($B624=\"N\",\"\",IF(COUNTIF('Enrollment Form'!$DG631:$DP631,\"Other\")=COUNTA('Enrollment Form'!$DK631,'Enrollment Form'!$DH631,'Enrollment Form'!$DN631,'Enrollment Form'!$DQ631),\"Y\",\"N\"))","v":""},{"$f":"IF($B624=\"N\",\"\",IF(OR('Enrollment Form'!B631<>\"Subscriber\",'Enrollment Form'!C631=\"ROC\",COUNTIF('Enrollment Form'!AV631:AW631,\"Yes\")>=1),\"-\",IF(AND('Enrollment Form'!C631=\"Enroll\",COUNTIF('Enrollment Form'!AV631:AW631,\"No\")=2,'Enrollment Form'!AX631=\"\"),\"N\",\"Y\")))","v":""},{"$f":"IF(OR(B624=\"N\",'Enrollment Form'!B631<>\"Subscriber\",'Enrollment Form'!C631=\"ROC\",'Enrollment Form'!O631<>\"Multiple of Salary\"),\"-\",IF(COUNTA('Enrollment Form'!T631:U631)<2,\"N\",\"Y\"))","v":"-"},{"$f":"IF(B624=\"N\",\"\",IF(OR('Enrollment Form'!C631=\"ROC\",'Enrollment Form'!B631<>\"Subscriber\",'Enrollment Form'!O631=\"Waive\",'Enrollment Form'!O631=\"\"),\"-\",IF('Enrollment Form'!P631=\"\",\"N\",\"Y\")))","v":""},{"$f":"IF($B624=\"N\",\"\",IF(AND('Enrollment Form'!$C631=\"ROC\",'Enrollment Form'!$DR631<>\"\"),\"Y\",IF(AND('Enrollment Form'!$C631=\"ROC\",'Enrollment Form'!$DR631=\"\"),\"N\",IF(AND('Enrollment Form'!$C631=\"Enroll\",'Enrollment Form'!$B631=\"Subscriber\",'Enrollment Form'!$CX631=\"No\",'Enrollment Form'!$DR631=\"\"),\"N\",IF(AND('Enrollment Form'!$C631=\"Enroll\",'Enrollment Form'!$B631=\"Subscriber\",'Enrollment Form'!$CX631=\"Yes\"),\"-\",\"Y\")))))","v":""},{"$f":"IF($B624=\"N\",\"\",IF(AND('Enrollment Form'!$C631=\"ROC\",'Enrollment Form'!$DS631<>\"\"),\"Y\",IF(AND('Enrollment Form'!$C631=\"ROC\",'Enrollment Form'!$DS631=\"\"),\"N\",IF(AND('Enrollment Form'!$C631=\"Enroll\",'Enrollment Form'!$B631=\"Subscriber\",'Enrollment Form'!$CX631=\"No\",'Enrollment Form'!$DS631=\"\"),\"N\",IF(AND('Enrollment Form'!$C631=\"Enroll\",'Enrollment Form'!$B631=\"Subscriber\",'Enrollment Form'!$CX631=\"Yes\"),\"-\",\"Y\")))))","v":""},{"$f":"IF('Enrollment Form'!AH631=\"\",\"\",IF(ISERROR(SEARCH(\".\",'Enrollment Form'!AH631,SEARCH(\"@\",'Enrollment Form'!AH631))),\"N\",\"Y\"))","v":""},{"$f":"IF(OR($B624=\"N\",'Enrollment Form'!$G631=\"\"),\"\",IF('Enrollment Form'!$B631<>\"Subscriber\",\"-\",IF(COUNTIF('Enrollment Form'!$AV631:$AW631,\"Yes\")=2,\"N\",\"Y\")))","v":""},{"$f":"IF(OR('Enrollment Form'!$CJ631=\"\",'Enrollment Form'!$CJ631=\"No\"),\"-\",IF(AND('Enrollment Form'!$CJ631=\"Yes\",'Enrollment Form'!$CK631=\"\"),\"N\",\"Y\"))","v":"-"},{"$f":"IF(OR('Enrollment Form'!$CL631=\"\",'Enrollment Form'!$CL631=\"No\"),\"-\",IF(AND('Enrollment Form'!$CL631=\"Yes\",'Enrollment Form'!$CM631=\"\"),\"N\",\"Y\"))","v":"-"},{"$f":"IF(OR('Enrollment Form'!$CN631=\"\",'Enrollment Form'!$CN631=\"No\"),\"-\",IF(AND('Enrollment Form'!$CN631=\"Yes\",'Enrollment Form'!$CO631=\"\"),\"N\",\"Y\"))","v":"-"},{"$f":"IF(OR('Enrollment Form'!$CN631=\"\",'Enrollment Form'!$CN631=\"No\"),\"-\",IF(AND('Enrollment Form'!$CN631=\"Yes\",'Enrollment Form'!$CP631=\"\"),\"N\",\"Y\"))","v":"-"},{"$f":"IF('Enrollment Form'!B631<>\"Subscriber\",\"-\",IF(AND('Enrollment Form'!B631=\"Subscriber\",'Enrollment Form'!C631=\"Enroll\",'Enrollment Form'!AA631=\"\"),\"N\",\"Y\"))","v":"-"},{"$f":"IF(OR('Enrollment Form'!B631=\"Subscriber\",'Enrollment Form'!B631=\"\"),\"-\",IF('Enrollment Form'!BP631=\"\",\"N\",\"Y\"))","v":"-"},{"$f":"IF('Enrollment Form'!B631<>\"Subscriber\",\"-\",IF(AND('Enrollment Form'!B631=\"Subscriber\",'Enrollment Form'!G631=\"\"),\"N\",\"Y\"))","v":"-"},{"$f":"IF('Enrollment Form'!A631=\"\",\"\",IF('Enrollment Form'!B631=\"Subscriber\",\"-\",IF(AND('Enrollment Form'!B631<>\"Subscriber\",'Enrollment Form'!G631='Enrollment Form'!H631),\"N\",\"Y\")))","v":""},0]
[632,{"$f":"IF('Enrollment Form'!$A632<>\"\",\"Y\",\"N\")","v":"N"},{"$f":"IF(AND('Enrollment Form'!$B632=\"\",'Enrollment Form'!$C632<>\"\"),\"N\",IF($B625=\"N\",\"\",\"Y\"))","v":""},{"$f":"IF(OR($B625=\"N\",'Enrollment Form'!G632=\"\"),\"\",IF('Enrollment Form'!$B632<>\"Subscriber\",\"\",IF('Enrollment Form'!$G632='Enrollment Form'!$H632,\"Y\",\"N\")))","v":""},{"$f":"IF($B625=\"N\",\"\",IF(AND(COUNTIFS('Enrollment Form'!$H$11:$H$1000,'Enrollment Form'!$H632,'Enrollment Form'!$B$11:$B$1000,'Enrollment Form'!$B632)>1,'Enrollment Form'!$H632<>\"\"),\"N\",\"Y\"))","v":""},{"$f":"IF($B625=\"N\",\"\",IF(LEN('Enrollment Form'!$Y632)=0,\"\",IF(LEN('Enrollment Form'!$Y632)<>5,\"N\",\"Y\")))","v":""},{"$f":"IF($B625=\"N\",\"\",IF(LEN('Enrollment Form'!$AD632=0),\"\",IF(LEN('Enrollment Form'!$AD632)<>5,\"N\",\"Y\")))","v":""},{"$f":"IF($B625=\"N\",\"\",IF(LEN('Enrollment Form'!$BS632=0),\"\",IF(LEN('Enrollment Form'!$BS632)<>5,\"N\",\"Y\")))","v":""},{"$f":"IF($B625=\"N\",\"\",IF(LEN('Enrollment Form'!$AE632)=0,\"\",IF(LEN('Enrollment Form'!$AE632)<>10,\"N\",\"Y\")))","v":""},{"$f":"IF($B625=\"N\",\"\",IF(LEN('Enrollment Form'!$AF632)=0,\"\",IF(LEN('Enrollment Form'!$AF632)<>10,\"N\",\"Y\")))","v":""},{"$f":"IF('Enrollment Form'!$O632<>\"Graded\",\"-\",IF(AND('Enrollment Form'!$O632=\"Graded\",'Enrollment Form'!$AR632<>\"\"),\"Y\",\"N\"))","v":"-"},{"$f":"IF($B625=\"N\",\"\",IF(OR('Enrollment Form'!$B632<>\"Subscriber\",'Enrollment Form'!$C632=\"ROC\"),\"-\",IF(AND('Enrollment Form'!$B632=\"Subscriber\",'Enrollment Form'!$C632=\"Enroll\",'Enrollment Form'!$AJ632<>\"\"),\"Y\",\"N\")))","v":""},{"$f":"IF($B625=\"N\",\"\",IF(OR('Enrollment Form'!$B632<>\"Subscriber\",'Enrollment Form'!$C632=\"ROC\"),\"-\",IF(AND('Enrollment Form'!$B632=\"Subscriber\",'Enrollment Form'!$C632=\"Enroll\",'Enrollment Form'!$AK632<>\"\"),\"Y\",\"N\")))","v":""},{"$f":"IF($B625=\"N\",\"\",IF(OR('Enrollment Form'!$B632<>\"Subscriber\",'Enrollment Form'!$C632=\"ROC\"),\"-\",IF(AND('Enrollment Form'!$B632=\"Subscriber\",'Enrollment Form'!$C632=\"Enroll\",'Enrollment Form'!$AL632<>\"\"),\"Y\",\"N\")))","v":""},{"$f":"IF($B625=\"N\",\"\",IF(OR('Enrollment Form'!$B632<>\"Subscriber\",'Enrollment Form'!$C632=\"ROC\"),\"-\",IF(AND('Enrollment Form'!$B632=\"Subscriber\",'Enrollment Form'!$C632=\"Enroll\",'Enrollment Form'!$AP632<>\"\"),\"Y\",\"N\")))","v":""},{"$f":"IF($B625=\"N\",\"\",IF(OR('Enrollment Form'!$B632<>\"Subscriber\",'Enrollment Form'!$C632=\"ROC\"),\"-\",IF(AND('Enrollment Form'!$B632=\"Subscriber\",'Enrollment Form'!$C632=\"Enroll\",'Enrollment Form'!$AQ632<>\"\"),\"Y\",\"N\")))","v":""},{"$f":"IF($B625=\"N\",\"\",IF(OR('Enrollment Form'!$B632<>\"Subscriber\",'Enrollment Form'!$C632=\"ROC\"),\"-\",IF(AND('Enrollment Form'!$B632=\"Subscriber\",'Enrollment Form'!$C632=\"Enroll\",'Enrollment Form'!$AS632<>\"\"),\"Y\",\"N\")))","v":""},{"$f":"IF($B625=\"N\",\"\",IF($Q625=\"-\",\"-\",IF(AND($Q625=\"Y\",'Enrollment Form'!$AS632=\"No\"),\"-\",IF(AND($Q625=\"Y\",'Enrollment Form'!$AS632=\"Yes\",'Enrollment Form'!$AT632<>\"\"),\"Y\",\"N\"))))","v":""},{"$f":"IF($B625=\"N\",\"\",IF(OR('Enrollment Form'!$B632<>\"Subscriber\",'Enrollment Form'!$C632=\"ROC\"),\"-\",IF(AND('Enrollment Form'!$B632=\"Subscriber\",'Enrollment Form'!$C632=\"Enroll\",'Enrollment Form'!$CV632<>\"\"),\"Y\",\"N\")))","v":""},{"$f":"IF($B625=\"N\",\"\",IF($S625=\"-\",\"-\",IF(AND($S625=\"Y\",'Enrollment Form'!$CV632=\"No\"),\"-\",IF(AND($S625=\"Y\",'Enrollment Form'!$CV632=\"Yes\",'Enrollment Form'!$CW632<>\"\"),\"Y\",\"N\"))))","v":""},{"$f":"IF(OR('Enrollment Form'!$AY632=\"Yes\",'Enrollment Form'!$AY632=\"\"),\"-\",IF(OR(AND('Enrollment Form'!$AY632=\"No\",ISERROR(FIND(\"HMO\",VLOOKUP('Enrollment Form'!G632,'Enrollment Form'!H$11:J$1000,3,FALSE),1))=FALSE,COUNTA('Enrollment Form'!$AZ632:$BC632)=4),AND('Enrollment Form'!$AY632=\"No\",ISERROR(FIND(\"HMO\",VLOOKUP('Enrollment Form'!G632,'Enrollment Form'!H$11:J$1000,3,FALSE),1))=FALSE,COUNTA('Enrollment Form'!$BT632:$BW632)=4)),\"Y\",\"N\"))","v":"-"},{"$f":"IF($B625=\"N\",\"\",IF('Enrollment Form'!$B632=\"Subscriber\",\"-\",IF(COUNTA('Enrollment Form'!$BL632,'Enrollment Form'!$BN632)=2,\"Y\",\"N\")))","v":""},{"$f":"IF($B625=\"N\",\"\",IF(OR('Enrollment Form'!$AX632=\"\",'Enrollment Form'!$AX632=\"No\"),\"-\",IF(AND('Enrollment Form'!$AX632=\"Yes\",COUNTA('Enrollment Form'!$CR632)=1),\"Y\",\"N\")))","v":""},{"$f":"IF(OR('Enrollment Form'!$CR632=\"\",'Enrollment Form'!$CR632=\"No\"),\"-\",IF(COUNTA('Enrollment Form'!$CT632:$CU632)=2,\"Y\",\"N\"))","v":"-"},{"$f":"IF($B625=\"N\",\"\",IF(COUNTIF('Enrollment Form'!$DG632:$DP632,\"Other\")=COUNTA('Enrollment Form'!$DK632,'Enrollment Form'!$DH632,'Enrollment Form'!$DN632,'Enrollment Form'!$DQ632),\"Y\",\"N\"))","v":""},{"$f":"IF($B625=\"N\",\"\",IF(OR('Enrollment Form'!B632<>\"Subscriber\",'Enrollment Form'!C632=\"ROC\",COUNTIF('Enrollment Form'!AV632:AW632,\"Yes\")>=1),\"-\",IF(AND('Enrollment Form'!C632=\"Enroll\",COUNTIF('Enrollment Form'!AV632:AW632,\"No\")=2,'Enrollment Form'!AX632=\"\"),\"N\",\"Y\")))","v":""},{"$f":"IF(OR(B625=\"N\",'Enrollment Form'!B632<>\"Subscriber\",'Enrollment Form'!C632=\"ROC\",'Enrollment Form'!O632<>\"Multiple of Salary\"),\"-\",IF(COUNTA('Enrollment Form'!T632:U632)<2,\"N\",\"Y\"))","v":"-"},{"$f":"IF(B625=\"N\",\"\",IF(OR('Enrollment Form'!C632=\"ROC\",'Enrollment Form'!B632<>\"Subscriber\",'Enrollment Form'!O632=\"Waive\",'Enrollment Form'!O632=\"\"),\"-\",IF('Enrollment Form'!P632=\"\",\"N\",\"Y\")))","v":""},{"$f":"IF($B625=\"N\",\"\",IF(AND('Enrollment Form'!$C632=\"ROC\",'Enrollment Form'!$DR632<>\"\"),\"Y\",IF(AND('Enrollment Form'!$C632=\"ROC\",'Enrollment Form'!$DR632=\"\"),\"N\",IF(AND('Enrollment Form'!$C632=\"Enroll\",'Enrollment Form'!$B632=\"Subscriber\",'Enrollment Form'!$CX632=\"No\",'Enrollment Form'!$DR632=\"\"),\"N\",IF(AND('Enrollment Form'!$C632=\"Enroll\",'Enrollment Form'!$B632=\"Subscriber\",'Enrollment Form'!$CX632=\"Yes\"),\"-\",\"Y\")))))","v":""},{"$f":"IF($B625=\"N\",\"\",IF(AND('Enrollment Form'!$C632=\"ROC\",'Enrollment Form'!$DS632<>\"\"),\"Y\",IF(AND('Enrollment Form'!$C632=\"ROC\",'Enrollment Form'!$DS632=\"\"),\"N\",IF(AND('Enrollment Form'!$C632=\"Enroll\",'Enrollment Form'!$B632=\"Subscriber\",'Enrollment Form'!$CX632=\"No\",'Enrollment Form'!$DS632=\"\"),\"N\",IF(AND('Enrollment Form'!$C632=\"Enroll\",'Enrollment Form'!$B632=\"Subscriber\",'Enrollment Form'!$CX632=\"Yes\"),\"-\",\"Y\")))))","v":""},{"$f":"IF('Enrollment Form'!AH632=\"\",\"\",IF(ISERROR(SEARCH(\".\",'Enrollment Form'!AH632,SEARCH(\"@\",'Enrollment Form'!AH632))),\"N\",\"Y\"))","v":""},{"$f":"IF(OR($B625=\"N\",'Enrollment Form'!$G632=\"\"),\"\",IF('Enrollment Form'!$B632<>\"Subscriber\",\"-\",IF(COUNTIF('Enrollment Form'!$AV632:$AW632,\"Yes\")=2,\"N\",\"Y\")))","v":""},{"$f":"IF(OR('Enrollment Form'!$CJ632=\"\",'Enrollment Form'!$CJ632=\"No\"),\"-\",IF(AND('Enrollment Form'!$CJ632=\"Yes\",'Enrollment Form'!$CK632=\"\"),\"N\",\"Y\"))","v":"-"},{"$f":"IF(OR('Enrollment Form'!$CL632=\"\",'Enrollment Form'!$CL632=\"No\"),\"-\",IF(AND('Enrollment Form'!$CL632=\"Yes\",'Enrollment Form'!$CM632=\"\"),\"N\",\"Y\"))","v":"-"},{"$f":"IF(OR('Enrollment Form'!$CN632=\"\",'Enrollment Form'!$CN632=\"No\"),\"-\",IF(AND('Enrollment Form'!$CN632=\"Yes\",'Enrollment Form'!$CO632=\"\"),\"N\",\"Y\"))","v":"-"},{"$f":"IF(OR('Enrollment Form'!$CN632=\"\",'Enrollment Form'!$CN632=\"No\"),\"-\",IF(AND('Enrollment Form'!$CN632=\"Yes\",'Enrollment Form'!$CP632=\"\"),\"N\",\"Y\"))","v":"-"},{"$f":"IF('Enrollment Form'!B632<>\"Subscriber\",\"-\",IF(AND('Enrollment Form'!B632=\"Subscriber\",'Enrollment Form'!C632=\"Enroll\",'Enrollment Form'!AA632=\"\"),\"N\",\"Y\"))","v":"-"},{"$f":"IF(OR('Enrollment Form'!B632=\"Subscriber\",'Enrollment Form'!B632=\"\"),\"-\",IF('Enrollment Form'!BP632=\"\",\"N\",\"Y\"))","v":"-"},{"$f":"IF('Enrollment Form'!B632<>\"Subscriber\",\"-\",IF(AND('Enrollment Form'!B632=\"Subscriber\",'Enrollment Form'!G632=\"\"),\"N\",\"Y\"))","v":"-"},{"$f":"IF('Enrollment Form'!A632=\"\",\"\",IF('Enrollment Form'!B632=\"Subscriber\",\"-\",IF(AND('Enrollment Form'!B632<>\"Subscriber\",'Enrollment Form'!G632='Enrollment Form'!H632),\"N\",\"Y\")))","v":""},0]
[633,{"$f":"IF('Enrollment Form'!$A633<>\"\",\"Y\",\"N\")","v":"N"},{"$f":"IF(AND('Enrollment Form'!$B633=\"\",'Enrollment Form'!$C633<>\"\"),\"N\",IF($B626=\"N\",\"\",\"Y\"))","v":""},{"$f":"IF(OR($B626=\"N\",'Enrollment Form'!G633=\"\"),\"\",IF('Enrollment Form'!$B633<>\"Subscriber\",\"\",IF('Enrollment Form'!$G633='Enrollment Form'!$H633,\"Y\",\"N\")))","v":""},{"$f":"IF($B626=\"N\",\"\",IF(AND(COUNTIFS('Enrollment Form'!$H$11:$H$1000,'Enrollment Form'!$H633,'Enrollment Form'!$B$11:$B$1000,'Enrollment Form'!$B633)>1,'Enrollment Form'!$H633<>\"\"),\"N\",\"Y\"))","v":""},{"$f":"IF($B626=\"N\",\"\",IF(LEN('Enrollment Form'!$Y633)=0,\"\",IF(LEN('Enrollment Form'!$Y633)<>5,\"N\",\"Y\")))","v":""},{"$f":"IF($B626=\"N\",\"\",IF(LEN('Enrollment Form'!$AD633=0),\"\",IF(LEN('Enrollment Form'!$AD633)<>5,\"N\",\"Y\")))","v":""},{"$f":"IF($B626=\"N\",\"\",IF(LEN('Enrollment Form'!$BS633=0),\"\",IF(LEN('Enrollment Form'!$BS633)<>5,\"N\",\"Y\")))","v":""},{"$f":"IF($B626=\"N\",\"\",IF(LEN('Enrollment Form'!$AE633)=0,\"\",IF(LEN('Enrollment Form'!$AE633)<>10,\"N\",\"Y\")))","v":""},{"$f":"IF($B626=\"N\",\"\",IF(LEN('Enrollment Form'!$AF633)=0,\"\",IF(LEN('Enrollment Form'!$AF633)<>10,\"N\",\"Y\")))","v":""},{"$f":"IF('Enrollment Form'!$O633<>\"Graded\",\"-\",IF(AND('Enrollment Form'!$O633=\"Graded\",'Enrollment Form'!$AR633<>\"\"),\"Y\",\"N\"))","v":"-"},{"$f":"IF($B626=\"N\",\"\",IF(OR('Enrollment Form'!$B633<>\"Subscriber\",'Enrollment Form'!$C633=\"ROC\"),\"-\",IF(AND('Enrollment Form'!$B633=\"Subscriber\",'Enrollment Form'!$C633=\"Enroll\",'Enrollment Form'!$AJ633<>\"\"),\"Y\",\"N\")))","v":""},{"$f":"IF($B626=\"N\",\"\",IF(OR('Enrollment Form'!$B633<>\"Subscriber\",'Enrollment Form'!$C633=\"ROC\"),\"-\",IF(AND('Enrollment Form'!$B633=\"Subscriber\",'Enrollment Form'!$C633=\"Enroll\",'Enrollment Form'!$AK633<>\"\"),\"Y\",\"N\")))","v":""},{"$f":"IF($B626=\"N\",\"\",IF(OR('Enrollment Form'!$B633<>\"Subscriber\",'Enrollment Form'!$C633=\"ROC\"),\"-\",IF(AND('Enrollment Form'!$B633=\"Subscriber\",'Enrollment Form'!$C633=\"Enroll\",'Enrollment Form'!$AL633<>\"\"),\"Y\",\"N\")))","v":""},{"$f":"IF($B626=\"N\",\"\",IF(OR('Enrollment Form'!$B633<>\"Subscriber\",'Enrollment Form'!$C633=\"ROC\"),\"-\",IF(AND('Enrollment Form'!$B633=\"Subscriber\",'Enrollment Form'!$C633=\"Enroll\",'Enrollment Form'!$AP633<>\"\"),\"Y\",\"N\")))","v":""},{"$f":"IF($B626=\"N\",\"\",IF(OR('Enrollment Form'!$B633<>\"Subscriber\",'Enrollment Form'!$C633=\"ROC\"),\"-\",IF(AND('Enrollment Form'!$B633=\"Subscriber\",'Enrollment Form'!$C633=\"Enroll\",'Enrollment Form'!$AQ633<>\"\"),\"Y\",\"N\")))","v":""},{"$f":"IF($B626=\"N\",\"\",IF(OR('Enrollment Form'!$B633<>\"Subscriber\",'Enrollment Form'!$C633=\"ROC\"),\"-\",IF(AND('Enrollment Form'!$B633=\"Subscriber\",'Enrollment Form'!$C633=\"Enroll\",'Enrollment Form'!$AS633<>\"\"),\"Y\",\"N\")))","v":""},{"$f":"IF($B626=\"N\",\"\",IF($Q626=\"-\",\"-\",IF(AND($Q626=\"Y\",'Enrollment Form'!$AS633=\"No\"),\"-\",IF(AND($Q626=\"Y\",'Enrollment Form'!$AS633=\"Yes\",'Enrollment Form'!$AT633<>\"\"),\"Y\",\"N\"))))","v":""},{"$f":"IF($B626=\"N\",\"\",IF(OR('Enrollment Form'!$B633<>\"Subscriber\",'Enrollment Form'!$C633=\"ROC\"),\"-\",IF(AND('Enrollment Form'!$B633=\"Subscriber\",'Enrollment Form'!$C633=\"Enroll\",'Enrollment Form'!$CV633<>\"\"),\"Y\",\"N\")))","v":""},{"$f":"IF($B626=\"N\",\"\",IF($S626=\"-\",\"-\",IF(AND($S626=\"Y\",'Enrollment Form'!$CV633=\"No\"),\"-\",IF(AND($S626=\"Y\",'Enrollment Form'!$CV633=\"Yes\",'Enrollment Form'!$CW633<>\"\"),\"Y\",\"N\"))))","v":""},{"$f":"IF(OR('Enrollment Form'!$AY633=\"Yes\",'Enrollment Form'!$AY633=\"\"),\"-\",IF(OR(AND('Enrollment Form'!$AY633=\"No\",ISERROR(FIND(\"HMO\",VLOOKUP('Enrollment Form'!G633,'Enrollment Form'!H$11:J$1000,3,FALSE),1))=FALSE,COUNTA('Enrollment Form'!$AZ633:$BC633)=4),AND('Enrollment Form'!$AY633=\"No\",ISERROR(FIND(\"HMO\",VLOOKUP('Enrollment Form'!G633,'Enrollment Form'!H$11:J$1000,3,FALSE),1))=FALSE,COUNTA('Enrollment Form'!$BT633:$BW633)=4)),\"Y\",\"N\"))","v":"-"},{"$f":"IF($B626=\"N\",\"\",IF('Enrollment Form'!$B633=\"Subscriber\",\"-\",IF(COUNTA('Enrollment Form'!$BL633,'Enrollment Form'!$BN633)=2,\"Y\",\"N\")))","v":""},{"$f":"IF($B626=\"N\",\"\",IF(OR('Enrollment Form'!$AX633=\"\",'Enrollment Form'!$AX633=\"No\"),\"-\",IF(AND('Enrollment Form'!$AX633=\"Yes\",COUNTA('Enrollment Form'!$CR633)=1),\"Y\",\"N\")))","v":""},{"$f":"IF(OR('Enrollment Form'!$CR633=\"\",'Enrollment Form'!$CR633=\"No\"),\"-\",IF(COUNTA('Enrollment Form'!$CT633:$CU633)=2,\"Y\",\"N\"))","v":"-"},{"$f":"IF($B626=\"N\",\"\",IF(COUNTIF('Enrollment Form'!$DG633:$DP633,\"Other\")=COUNTA('Enrollment Form'!$DK633,'Enrollment Form'!$DH633,'Enrollment Form'!$DN633,'Enrollment Form'!$DQ633),\"Y\",\"N\"))","v":""},{"$f":"IF($B626=\"N\",\"\",IF(OR('Enrollment Form'!B633<>\"Subscriber\",'Enrollment Form'!C633=\"ROC\",COUNTIF('Enrollment Form'!AV633:AW633,\"Yes\")>=1),\"-\",IF(AND('Enrollment Form'!C633=\"Enroll\",COUNTIF('Enrollment Form'!AV633:AW633,\"No\")=2,'Enrollment Form'!AX633=\"\"),\"N\",\"Y\")))","v":""},{"$f":"IF(OR(B626=\"N\",'Enrollment Form'!B633<>\"Subscriber\",'Enrollment Form'!C633=\"ROC\",'Enrollment Form'!O633<>\"Multiple of Salary\"),\"-\",IF(COUNTA('Enrollment Form'!T633:U633)<2,\"N\",\"Y\"))","v":"-"},{"$f":"IF(B626=\"N\",\"\",IF(OR('Enrollment Form'!C633=\"ROC\",'Enrollment Form'!B633<>\"Subscriber\",'Enrollment Form'!O633=\"Waive\",'Enrollment Form'!O633=\"\"),\"-\",IF('Enrollment Form'!P633=\"\",\"N\",\"Y\")))","v":""},{"$f":"IF($B626=\"N\",\"\",IF(AND('Enrollment Form'!$C633=\"ROC\",'Enrollment Form'!$DR633<>\"\"),\"Y\",IF(AND('Enrollment Form'!$C633=\"ROC\",'Enrollment Form'!$DR633=\"\"),\"N\",IF(AND('Enrollment Form'!$C633=\"Enroll\",'Enrollment Form'!$B633=\"Subscriber\",'Enrollment Form'!$CX633=\"No\",'Enrollment Form'!$DR633=\"\"),\"N\",IF(AND('Enrollment Form'!$C633=\"Enroll\",'Enrollment Form'!$B633=\"Subscriber\",'Enrollment Form'!$CX633=\"Yes\"),\"-\",\"Y\")))))","v":""},{"$f":"IF($B626=\"N\",\"\",IF(AND('Enrollment Form'!$C633=\"ROC\",'Enrollment Form'!$DS633<>\"\"),\"Y\",IF(AND('Enrollment Form'!$C633=\"ROC\",'Enrollment Form'!$DS633=\"\"),\"N\",IF(AND('Enrollment Form'!$C633=\"Enroll\",'Enrollment Form'!$B633=\"Subscriber\",'Enrollment Form'!$CX633=\"No\",'Enrollment Form'!$DS633=\"\"),\"N\",IF(AND('Enrollment Form'!$C633=\"Enroll\",'Enrollment Form'!$B633=\"Subscriber\",'Enrollment Form'!$CX633=\"Yes\"),\"-\",\"Y\")))))","v":""},{"$f":"IF('Enrollment Form'!AH633=\"\",\"\",IF(ISERROR(SEARCH(\".\",'Enrollment Form'!AH633,SEARCH(\"@\",'Enrollment Form'!AH633))),\"N\",\"Y\"))","v":""},{"$f":"IF(OR($B626=\"N\",'Enrollment Form'!$G633=\"\"),\"\",IF('Enrollment Form'!$B633<>\"Subscriber\",\"-\",IF(COUNTIF('Enrollment Form'!$AV633:$AW633,\"Yes\")=2,\"N\",\"Y\")))","v":""},{"$f":"IF(OR('Enrollment Form'!$CJ633=\"\",'Enrollment Form'!$CJ633=\"No\"),\"-\",IF(AND('Enrollment Form'!$CJ633=\"Yes\",'Enrollment Form'!$CK633=\"\"),\"N\",\"Y\"))","v":"-"},{"$f":"IF(OR('Enrollment Form'!$CL633=\"\",'Enrollment Form'!$CL633=\"No\"),\"-\",IF(AND('Enrollment Form'!$CL633=\"Yes\",'Enrollment Form'!$CM633=\"\"),\"N\",\"Y\"))","v":"-"},{"$f":"IF(OR('Enrollment Form'!$CN633=\"\",'Enrollment Form'!$CN633=\"No\"),\"-\",IF(AND('Enrollment Form'!$CN633=\"Yes\",'Enrollment Form'!$CO633=\"\"),\"N\",\"Y\"))","v":"-"},{"$f":"IF(OR('Enrollment Form'!$CN633=\"\",'Enrollment Form'!$CN633=\"No\"),\"-\",IF(AND('Enrollment Form'!$CN633=\"Yes\",'Enrollment Form'!$CP633=\"\"),\"N\",\"Y\"))","v":"-"},{"$f":"IF('Enrollment Form'!B633<>\"Subscriber\",\"-\",IF(AND('Enrollment Form'!B633=\"Subscriber\",'Enrollment Form'!C633=\"Enroll\",'Enrollment Form'!AA633=\"\"),\"N\",\"Y\"))","v":"-"},{"$f":"IF(OR('Enrollment Form'!B633=\"Subscriber\",'Enrollment Form'!B633=\"\"),\"-\",IF('Enrollment Form'!BP633=\"\",\"N\",\"Y\"))","v":"-"},{"$f":"IF('Enrollment Form'!B633<>\"Subscriber\",\"-\",IF(AND('Enrollment Form'!B633=\"Subscriber\",'Enrollment Form'!G633=\"\"),\"N\",\"Y\"))","v":"-"},{"$f":"IF('Enrollment Form'!A633=\"\",\"\",IF('Enrollment Form'!B633=\"Subscriber\",\"-\",IF(AND('Enrollment Form'!B633<>\"Subscriber\",'Enrollment Form'!G633='Enrollment Form'!H633),\"N\",\"Y\")))","v":""},0]
[634,{"$f":"IF('Enrollment Form'!$A634<>\"\",\"Y\",\"N\")","v":"N"},{"$f":"IF(AND('Enrollment Form'!$B634=\"\",'Enrollment Form'!$C634<>\"\"),\"N\",IF($B627=\"N\",\"\",\"Y\"))","v":""},{"$f":"IF(OR($B627=\"N\",'Enrollment Form'!G634=\"\"),\"\",IF('Enrollment Form'!$B634<>\"Subscriber\",\"\",IF('Enrollment Form'!$G634='Enrollment Form'!$H634,\"Y\",\"N\")))","v":""},{"$f":"IF($B627=\"N\",\"\",IF(AND(COUNTIFS('Enrollment Form'!$H$11:$H$1000,'Enrollment Form'!$H634,'Enrollment Form'!$B$11:$B$1000,'Enrollment Form'!$B634)>1,'Enrollment Form'!$H634<>\"\"),\"N\",\"Y\"))","v":""},{"$f":"IF($B627=\"N\",\"\",IF(LEN('Enrollment Form'!$Y634)=0,\"\",IF(LEN('Enrollment Form'!$Y634)<>5,\"N\",\"Y\")))","v":""},{"$f":"IF($B627=\"N\",\"\",IF(LEN('Enrollment Form'!$AD634=0),\"\",IF(LEN('Enrollment Form'!$AD634)<>5,\"N\",\"Y\")))","v":""},{"$f":"IF($B627=\"N\",\"\",IF(LEN('Enrollment Form'!$BS634=0),\"\",IF(LEN('Enrollment Form'!$BS634)<>5,\"N\",\"Y\")))","v":""},{"$f":"IF($B627=\"N\",\"\",IF(LEN('Enrollment Form'!$AE634)=0,\"\",IF(LEN('Enrollment Form'!$AE634)<>10,\"N\",\"Y\")))","v":""},{"$f":"IF($B627=\"N\",\"\",IF(LEN('Enrollment Form'!$AF634)=0,\"\",IF(LEN('Enrollment Form'!$AF634)<>10,\"N\",\"Y\")))","v":""},{"$f":"IF('Enrollment Form'!$O634<>\"Graded\",\"-\",IF(AND('Enrollment Form'!$O634=\"Graded\",'Enrollment Form'!$AR634<>\"\"),\"Y\",\"N\"))","v":"-"},{"$f":"IF($B627=\"N\",\"\",IF(OR('Enrollment Form'!$B634<>\"Subscriber\",'Enrollment Form'!$C634=\"ROC\"),\"-\",IF(AND('Enrollment Form'!$B634=\"Subscriber\",'Enrollment Form'!$C634=\"Enroll\",'Enrollment Form'!$AJ634<>\"\"),\"Y\",\"N\")))","v":""},{"$f":"IF($B627=\"N\",\"\",IF(OR('Enrollment Form'!$B634<>\"Subscriber\",'Enrollment Form'!$C634=\"ROC\"),\"-\",IF(AND('Enrollment Form'!$B634=\"Subscriber\",'Enrollment Form'!$C634=\"Enroll\",'Enrollment Form'!$AK634<>\"\"),\"Y\",\"N\")))","v":""},{"$f":"IF($B627=\"N\",\"\",IF(OR('Enrollment Form'!$B634<>\"Subscriber\",'Enrollment Form'!$C634=\"ROC\"),\"-\",IF(AND('Enrollment Form'!$B634=\"Subscriber\",'Enrollment Form'!$C634=\"Enroll\",'Enrollment Form'!$AL634<>\"\"),\"Y\",\"N\")))","v":""},{"$f":"IF($B627=\"N\",\"\",IF(OR('Enrollment Form'!$B634<>\"Subscriber\",'Enrollment Form'!$C634=\"ROC\"),\"-\",IF(AND('Enrollment Form'!$B634=\"Subscriber\",'Enrollment Form'!$C634=\"Enroll\",'Enrollment Form'!$AP634<>\"\"),\"Y\",\"N\")))","v":""},{"$f":"IF($B627=\"N\",\"\",IF(OR('Enrollment Form'!$B634<>\"Subscriber\",'Enrollment Form'!$C634=\"ROC\"),\"-\",IF(AND('Enrollment Form'!$B634=\"Subscriber\",'Enrollment Form'!$C634=\"Enroll\",'Enrollment Form'!$AQ634<>\"\"),\"Y\",\"N\")))","v":""},{"$f":"IF($B627=\"N\",\"\",IF(OR('Enrollment Form'!$B634<>\"Subscriber\",'Enrollment Form'!$C634=\"ROC\"),\"-\",IF(AND('Enrollment Form'!$B634=\"Subscriber\",'Enrollment Form'!$C634=\"Enroll\",'Enrollment Form'!$AS634<>\"\"),\"Y\",\"N\")))","v":""},{"$f":"IF($B627=\"N\",\"\",IF($Q627=\"-\",\"-\",IF(AND($Q627=\"Y\",'Enrollment Form'!$AS634=\"No\"),\"-\",IF(AND($Q627=\"Y\",'Enrollment Form'!$AS634=\"Yes\",'Enrollment Form'!$AT634<>\"\"),\"Y\",\"N\"))))","v":""},{"$f":"IF($B627=\"N\",\"\",IF(OR('Enrollment Form'!$B634<>\"Subscriber\",'Enrollment Form'!$C634=\"ROC\"),\"-\",IF(AND('Enrollment Form'!$B634=\"Subscriber\",'Enrollment Form'!$C634=\"Enroll\",'Enrollment Form'!$CV634<>\"\"),\"Y\",\"N\")))","v":""},{"$f":"IF($B627=\"N\",\"\",IF($S627=\"-\",\"-\",IF(AND($S627=\"Y\",'Enrollment Form'!$CV634=\"No\"),\"-\",IF(AND($S627=\"Y\",'Enrollment Form'!$CV634=\"Yes\",'Enrollment Form'!$CW634<>\"\"),\"Y\",\"N\"))))","v":""},{"$f":"IF(OR('Enrollment Form'!$AY634=\"Yes\",'Enrollment Form'!$AY634=\"\"),\"-\",IF(OR(AND('Enrollment Form'!$AY634=\"No\",ISERROR(FIND(\"HMO\",VLOOKUP('Enrollment Form'!G634,'Enrollment Form'!H$11:J$1000,3,FALSE),1))=FALSE,COUNTA('Enrollment Form'!$AZ634:$BC634)=4),AND('Enrollment Form'!$AY634=\"No\",ISERROR(FIND(\"HMO\",VLOOKUP('Enrollment Form'!G634,'Enrollment Form'!H$11:J$1000,3,FALSE),1))=FALSE,COUNTA('Enrollment Form'!$BT634:$BW634)=4)),\"Y\",\"N\"))","v":"-"},{"$f":"IF($B627=\"N\",\"\",IF('Enrollment Form'!$B634=\"Subscriber\",\"-\",IF(COUNTA('Enrollment Form'!$BL634,'Enrollment Form'!$BN634)=2,\"Y\",\"N\")))","v":""},{"$f":"IF($B627=\"N\",\"\",IF(OR('Enrollment Form'!$AX634=\"\",'Enrollment Form'!$AX634=\"No\"),\"-\",IF(AND('Enrollment Form'!$AX634=\"Yes\",COUNTA('Enrollment Form'!$CR634)=1),\"Y\",\"N\")))","v":""},{"$f":"IF(OR('Enrollment Form'!$CR634=\"\",'Enrollment Form'!$CR634=\"No\"),\"-\",IF(COUNTA('Enrollment Form'!$CT634:$CU634)=2,\"Y\",\"N\"))","v":"-"},{"$f":"IF($B627=\"N\",\"\",IF(COUNTIF('Enrollment Form'!$DG634:$DP634,\"Other\")=COUNTA('Enrollment Form'!$DK634,'Enrollment Form'!$DH634,'Enrollment Form'!$DN634,'Enrollment Form'!$DQ634),\"Y\",\"N\"))","v":""},{"$f":"IF($B627=\"N\",\"\",IF(OR('Enrollment Form'!B634<>\"Subscriber\",'Enrollment Form'!C634=\"ROC\",COUNTIF('Enrollment Form'!AV634:AW634,\"Yes\")>=1),\"-\",IF(AND('Enrollment Form'!C634=\"Enroll\",COUNTIF('Enrollment Form'!AV634:AW634,\"No\")=2,'Enrollment Form'!AX634=\"\"),\"N\",\"Y\")))","v":""},{"$f":"IF(OR(B627=\"N\",'Enrollment Form'!B634<>\"Subscriber\",'Enrollment Form'!C634=\"ROC\",'Enrollment Form'!O634<>\"Multiple of Salary\"),\"-\",IF(COUNTA('Enrollment Form'!T634:U634)<2,\"N\",\"Y\"))","v":"-"},{"$f":"IF(B627=\"N\",\"\",IF(OR('Enrollment Form'!C634=\"ROC\",'Enrollment Form'!B634<>\"Subscriber\",'Enrollment Form'!O634=\"Waive\",'Enrollment Form'!O634=\"\"),\"-\",IF('Enrollment Form'!P634=\"\",\"N\",\"Y\")))","v":""},{"$f":"IF($B627=\"N\",\"\",IF(AND('Enrollment Form'!$C634=\"ROC\",'Enrollment Form'!$DR634<>\"\"),\"Y\",IF(AND('Enrollment Form'!$C634=\"ROC\",'Enrollment Form'!$DR634=\"\"),\"N\",IF(AND('Enrollment Form'!$C634=\"Enroll\",'Enrollment Form'!$B634=\"Subscriber\",'Enrollment Form'!$CX634=\"No\",'Enrollment Form'!$DR634=\"\"),\"N\",IF(AND('Enrollment Form'!$C634=\"Enroll\",'Enrollment Form'!$B634=\"Subscriber\",'Enrollment Form'!$CX634=\"Yes\"),\"-\",\"Y\")))))","v":""},{"$f":"IF($B627=\"N\",\"\",IF(AND('Enrollment Form'!$C634=\"ROC\",'Enrollment Form'!$DS634<>\"\"),\"Y\",IF(AND('Enrollment Form'!$C634=\"ROC\",'Enrollment Form'!$DS634=\"\"),\"N\",IF(AND('Enrollment Form'!$C634=\"Enroll\",'Enrollment Form'!$B634=\"Subscriber\",'Enrollment Form'!$CX634=\"No\",'Enrollment Form'!$DS634=\"\"),\"N\",IF(AND('Enrollment Form'!$C634=\"Enroll\",'Enrollment Form'!$B634=\"Subscriber\",'Enrollment Form'!$CX634=\"Yes\"),\"-\",\"Y\")))))","v":""},{"$f":"IF('Enrollment Form'!AH634=\"\",\"\",IF(ISERROR(SEARCH(\".\",'Enrollment Form'!AH634,SEARCH(\"@\",'Enrollment Form'!AH634))),\"N\",\"Y\"))","v":""},{"$f":"IF(OR($B627=\"N\",'Enrollment Form'!$G634=\"\"),\"\",IF('Enrollment Form'!$B634<>\"Subscriber\",\"-\",IF(COUNTIF('Enrollment Form'!$AV634:$AW634,\"Yes\")=2,\"N\",\"Y\")))","v":""},{"$f":"IF(OR('Enrollment Form'!$CJ634=\"\",'Enrollment Form'!$CJ634=\"No\"),\"-\",IF(AND('Enrollment Form'!$CJ634=\"Yes\",'Enrollment Form'!$CK634=\"\"),\"N\",\"Y\"))","v":"-"},{"$f":"IF(OR('Enrollment Form'!$CL634=\"\",'Enrollment Form'!$CL634=\"No\"),\"-\",IF(AND('Enrollment Form'!$CL634=\"Yes\",'Enrollment Form'!$CM634=\"\"),\"N\",\"Y\"))","v":"-"},{"$f":"IF(OR('Enrollment Form'!$CN634=\"\",'Enrollment Form'!$CN634=\"No\"),\"-\",IF(AND('Enrollment Form'!$CN634=\"Yes\",'Enrollment Form'!$CO634=\"\"),\"N\",\"Y\"))","v":"-"},{"$f":"IF(OR('Enrollment Form'!$CN634=\"\",'Enrollment Form'!$CN634=\"No\"),\"-\",IF(AND('Enrollment Form'!$CN634=\"Yes\",'Enrollment Form'!$CP634=\"\"),\"N\",\"Y\"))","v":"-"},{"$f":"IF('Enrollment Form'!B634<>\"Subscriber\",\"-\",IF(AND('Enrollment Form'!B634=\"Subscriber\",'Enrollment Form'!C634=\"Enroll\",'Enrollment Form'!AA634=\"\"),\"N\",\"Y\"))","v":"-"},{"$f":"IF(OR('Enrollment Form'!B634=\"Subscriber\",'Enrollment Form'!B634=\"\"),\"-\",IF('Enrollment Form'!BP634=\"\",\"N\",\"Y\"))","v":"-"},{"$f":"IF('Enrollment Form'!B634<>\"Subscriber\",\"-\",IF(AND('Enrollment Form'!B634=\"Subscriber\",'Enrollment Form'!G634=\"\"),\"N\",\"Y\"))","v":"-"},{"$f":"IF('Enrollment Form'!A634=\"\",\"\",IF('Enrollment Form'!B634=\"Subscriber\",\"-\",IF(AND('Enrollment Form'!B634<>\"Subscriber\",'Enrollment Form'!G634='Enrollment Form'!H634),\"N\",\"Y\")))","v":""},0]
[635,{"$f":"IF('Enrollment Form'!$A635<>\"\",\"Y\",\"N\")","v":"N"},{"$f":"IF(AND('Enrollment Form'!$B635=\"\",'Enrollment Form'!$C635<>\"\"),\"N\",IF($B628=\"N\",\"\",\"Y\"))","v":""},{"$f":"IF(OR($B628=\"N\",'Enrollment Form'!G635=\"\"),\"\",IF('Enrollment Form'!$B635<>\"Subscriber\",\"\",IF('Enrollment Form'!$G635='Enrollment Form'!$H635,\"Y\",\"N\")))","v":""},{"$f":"IF($B628=\"N\",\"\",IF(AND(COUNTIFS('Enrollment Form'!$H$11:$H$1000,'Enrollment Form'!$H635,'Enrollment Form'!$B$11:$B$1000,'Enrollment Form'!$B635)>1,'Enrollment Form'!$H635<>\"\"),\"N\",\"Y\"))","v":""},{"$f":"IF($B628=\"N\",\"\",IF(LEN('Enrollment Form'!$Y635)=0,\"\",IF(LEN('Enrollment Form'!$Y635)<>5,\"N\",\"Y\")))","v":""},{"$f":"IF($B628=\"N\",\"\",IF(LEN('Enrollment Form'!$AD635=0),\"\",IF(LEN('Enrollment Form'!$AD635)<>5,\"N\",\"Y\")))","v":""},{"$f":"IF($B628=\"N\",\"\",IF(LEN('Enrollment Form'!$BS635=0),\"\",IF(LEN('Enrollment Form'!$BS635)<>5,\"N\",\"Y\")))","v":""},{"$f":"IF($B628=\"N\",\"\",IF(LEN('Enrollment Form'!$AE635)=0,\"\",IF(LEN('Enrollment Form'!$AE635)<>10,\"N\",\"Y\")))","v":""},{"$f":"IF($B628=\"N\",\"\",IF(LEN('Enrollment Form'!$AF635)=0,\"\",IF(LEN('Enrollment Form'!$AF635)<>10,\"N\",\"Y\")))","v":""},{"$f":"IF('Enrollment Form'!$O635<>\"Graded\",\"-\",IF(AND('Enrollment Form'!$O635=\"Graded\",'Enrollment Form'!$AR635<>\"\"),\"Y\",\"N\"))","v":"-"},{"$f":"IF($B628=\"N\",\"\",IF(OR('Enrollment Form'!$B635<>\"Subscriber\",'Enrollment Form'!$C635=\"ROC\"),\"-\",IF(AND('Enrollment Form'!$B635=\"Subscriber\",'Enrollment Form'!$C635=\"Enroll\",'Enrollment Form'!$AJ635<>\"\"),\"Y\",\"N\")))","v":""},{"$f":"IF($B628=\"N\",\"\",IF(OR('Enrollment Form'!$B635<>\"Subscriber\",'Enrollment Form'!$C635=\"ROC\"),\"-\",IF(AND('Enrollment Form'!$B635=\"Subscriber\",'Enrollment Form'!$C635=\"Enroll\",'Enrollment Form'!$AK635<>\"\"),\"Y\",\"N\")))","v":""},{"$f":"IF($B628=\"N\",\"\",IF(OR('Enrollment Form'!$B635<>\"Subscriber\",'Enrollment Form'!$C635=\"ROC\"),\"-\",IF(AND('Enrollment Form'!$B635=\"Subscriber\",'Enrollment Form'!$C635=\"Enroll\",'Enrollment Form'!$AL635<>\"\"),\"Y\",\"N\")))","v":""},{"$f":"IF($B628=\"N\",\"\",IF(OR('Enrollment Form'!$B635<>\"Subscriber\",'Enrollment Form'!$C635=\"ROC\"),\"-\",IF(AND('Enrollment Form'!$B635=\"Subscriber\",'Enrollment Form'!$C635=\"Enroll\",'Enrollment Form'!$AP635<>\"\"),\"Y\",\"N\")))","v":""},{"$f":"IF($B628=\"N\",\"\",IF(OR('Enrollment Form'!$B635<>\"Subscriber\",'Enrollment Form'!$C635=\"ROC\"),\"-\",IF(AND('Enrollment Form'!$B635=\"Subscriber\",'Enrollment Form'!$C635=\"Enroll\",'Enrollment Form'!$AQ635<>\"\"),\"Y\",\"N\")))","v":""},{"$f":"IF($B628=\"N\",\"\",IF(OR('Enrollment Form'!$B635<>\"Subscriber\",'Enrollment Form'!$C635=\"ROC\"),\"-\",IF(AND('Enrollment Form'!$B635=\"Subscriber\",'Enrollment Form'!$C635=\"Enroll\",'Enrollment Form'!$AS635<>\"\"),\"Y\",\"N\")))","v":""},{"$f":"IF($B628=\"N\",\"\",IF($Q628=\"-\",\"-\",IF(AND($Q628=\"Y\",'Enrollment Form'!$AS635=\"No\"),\"-\",IF(AND($Q628=\"Y\",'Enrollment Form'!$AS635=\"Yes\",'Enrollment Form'!$AT635<>\"\"),\"Y\",\"N\"))))","v":""},{"$f":"IF($B628=\"N\",\"\",IF(OR('Enrollment Form'!$B635<>\"Subscriber\",'Enrollment Form'!$C635=\"ROC\"),\"-\",IF(AND('Enrollment Form'!$B635=\"Subscriber\",'Enrollment Form'!$C635=\"Enroll\",'Enrollment Form'!$CV635<>\"\"),\"Y\",\"N\")))","v":""},{"$f":"IF($B628=\"N\",\"\",IF($S628=\"-\",\"-\",IF(AND($S628=\"Y\",'Enrollment Form'!$CV635=\"No\"),\"-\",IF(AND($S628=\"Y\",'Enrollment Form'!$CV635=\"Yes\",'Enrollment Form'!$CW635<>\"\"),\"Y\",\"N\"))))","v":""},{"$f":"IF(OR('Enrollment Form'!$AY635=\"Yes\",'Enrollment Form'!$AY635=\"\"),\"-\",IF(OR(AND('Enrollment Form'!$AY635=\"No\",ISERROR(FIND(\"HMO\",VLOOKUP('Enrollment Form'!G635,'Enrollment Form'!H$11:J$1000,3,FALSE),1))=FALSE,COUNTA('Enrollment Form'!$AZ635:$BC635)=4),AND('Enrollment Form'!$AY635=\"No\",ISERROR(FIND(\"HMO\",VLOOKUP('Enrollment Form'!G635,'Enrollment Form'!H$11:J$1000,3,FALSE),1))=FALSE,COUNTA('Enrollment Form'!$BT635:$BW635)=4)),\"Y\",\"N\"))","v":"-"},{"$f":"IF($B628=\"N\",\"\",IF('Enrollment Form'!$B635=\"Subscriber\",\"-\",IF(COUNTA('Enrollment Form'!$BL635,'Enrollment Form'!$BN635)=2,\"Y\",\"N\")))","v":""},{"$f":"IF($B628=\"N\",\"\",IF(OR('Enrollment Form'!$AX635=\"\",'Enrollment Form'!$AX635=\"No\"),\"-\",IF(AND('Enrollment Form'!$AX635=\"Yes\",COUNTA('Enrollment Form'!$CR635)=1),\"Y\",\"N\")))","v":""},{"$f":"IF(OR('Enrollment Form'!$CR635=\"\",'Enrollment Form'!$CR635=\"No\"),\"-\",IF(COUNTA('Enrollment Form'!$CT635:$CU635)=2,\"Y\",\"N\"))","v":"-"},{"$f":"IF($B628=\"N\",\"\",IF(COUNTIF('Enrollment Form'!$DG635:$DP635,\"Other\")=COUNTA('Enrollment Form'!$DK635,'Enrollment Form'!$DH635,'Enrollment Form'!$DN635,'Enrollment Form'!$DQ635),\"Y\",\"N\"))","v":""},{"$f":"IF($B628=\"N\",\"\",IF(OR('Enrollment Form'!B635<>\"Subscriber\",'Enrollment Form'!C635=\"ROC\",COUNTIF('Enrollment Form'!AV635:AW635,\"Yes\")>=1),\"-\",IF(AND('Enrollment Form'!C635=\"Enroll\",COUNTIF('Enrollment Form'!AV635:AW635,\"No\")=2,'Enrollment Form'!AX635=\"\"),\"N\",\"Y\")))","v":""},{"$f":"IF(OR(B628=\"N\",'Enrollment Form'!B635<>\"Subscriber\",'Enrollment Form'!C635=\"ROC\",'Enrollment Form'!O635<>\"Multiple of Salary\"),\"-\",IF(COUNTA('Enrollment Form'!T635:U635)<2,\"N\",\"Y\"))","v":"-"},{"$f":"IF(B628=\"N\",\"\",IF(OR('Enrollment Form'!C635=\"ROC\",'Enrollment Form'!B635<>\"Subscriber\",'Enrollment Form'!O635=\"Waive\",'Enrollment Form'!O635=\"\"),\"-\",IF('Enrollment Form'!P635=\"\",\"N\",\"Y\")))","v":""},{"$f":"IF($B628=\"N\",\"\",IF(AND('Enrollment Form'!$C635=\"ROC\",'Enrollment Form'!$DR635<>\"\"),\"Y\",IF(AND('Enrollment Form'!$C635=\"ROC\",'Enrollment Form'!$DR635=\"\"),\"N\",IF(AND('Enrollment Form'!$C635=\"Enroll\",'Enrollment Form'!$B635=\"Subscriber\",'Enrollment Form'!$CX635=\"No\",'Enrollment Form'!$DR635=\"\"),\"N\",IF(AND('Enrollment Form'!$C635=\"Enroll\",'Enrollment Form'!$B635=\"Subscriber\",'Enrollment Form'!$CX635=\"Yes\"),\"-\",\"Y\")))))","v":""},{"$f":"IF($B628=\"N\",\"\",IF(AND('Enrollment Form'!$C635=\"ROC\",'Enrollment Form'!$DS635<>\"\"),\"Y\",IF(AND('Enrollment Form'!$C635=\"ROC\",'Enrollment Form'!$DS635=\"\"),\"N\",IF(AND('Enrollment Form'!$C635=\"Enroll\",'Enrollment Form'!$B635=\"Subscriber\",'Enrollment Form'!$CX635=\"No\",'Enrollment Form'!$DS635=\"\"),\"N\",IF(AND('Enrollment Form'!$C635=\"Enroll\",'Enrollment Form'!$B635=\"Subscriber\",'Enrollment Form'!$CX635=\"Yes\"),\"-\",\"Y\")))))","v":""},{"$f":"IF('Enrollment Form'!AH635=\"\",\"\",IF(ISERROR(SEARCH(\".\",'Enrollment Form'!AH635,SEARCH(\"@\",'Enrollment Form'!AH635))),\"N\",\"Y\"))","v":""},{"$f":"IF(OR($B628=\"N\",'Enrollment Form'!$G635=\"\"),\"\",IF('Enrollment Form'!$B635<>\"Subscriber\",\"-\",IF(COUNTIF('Enrollment Form'!$AV635:$AW635,\"Yes\")=2,\"N\",\"Y\")))","v":""},{"$f":"IF(OR('Enrollment Form'!$CJ635=\"\",'Enrollment Form'!$CJ635=\"No\"),\"-\",IF(AND('Enrollment Form'!$CJ635=\"Yes\",'Enrollment Form'!$CK635=\"\"),\"N\",\"Y\"))","v":"-"},{"$f":"IF(OR('Enrollment Form'!$CL635=\"\",'Enrollment Form'!$CL635=\"No\"),\"-\",IF(AND('Enrollment Form'!$CL635=\"Yes\",'Enrollment Form'!$CM635=\"\"),\"N\",\"Y\"))","v":"-"},{"$f":"IF(OR('Enrollment Form'!$CN635=\"\",'Enrollment Form'!$CN635=\"No\"),\"-\",IF(AND('Enrollment Form'!$CN635=\"Yes\",'Enrollment Form'!$CO635=\"\"),\"N\",\"Y\"))","v":"-"},{"$f":"IF(OR('Enrollment Form'!$CN635=\"\",'Enrollment Form'!$CN635=\"No\"),\"-\",IF(AND('Enrollment Form'!$CN635=\"Yes\",'Enrollment Form'!$CP635=\"\"),\"N\",\"Y\"))","v":"-"},{"$f":"IF('Enrollment Form'!B635<>\"Subscriber\",\"-\",IF(AND('Enrollment Form'!B635=\"Subscriber\",'Enrollment Form'!C635=\"Enroll\",'Enrollment Form'!AA635=\"\"),\"N\",\"Y\"))","v":"-"},{"$f":"IF(OR('Enrollment Form'!B635=\"Subscriber\",'Enrollment Form'!B635=\"\"),\"-\",IF('Enrollment Form'!BP635=\"\",\"N\",\"Y\"))","v":"-"},{"$f":"IF('Enrollment Form'!B635<>\"Subscriber\",\"-\",IF(AND('Enrollment Form'!B635=\"Subscriber\",'Enrollment Form'!G635=\"\"),\"N\",\"Y\"))","v":"-"},{"$f":"IF('Enrollment Form'!A635=\"\",\"\",IF('Enrollment Form'!B635=\"Subscriber\",\"-\",IF(AND('Enrollment Form'!B635<>\"Subscriber\",'Enrollment Form'!G635='Enrollment Form'!H635),\"N\",\"Y\")))","v":""},0]
[636,{"$f":"IF('Enrollment Form'!$A636<>\"\",\"Y\",\"N\")","v":"N"},{"$f":"IF(AND('Enrollment Form'!$B636=\"\",'Enrollment Form'!$C636<>\"\"),\"N\",IF($B629=\"N\",\"\",\"Y\"))","v":""},{"$f":"IF(OR($B629=\"N\",'Enrollment Form'!G636=\"\"),\"\",IF('Enrollment Form'!$B636<>\"Subscriber\",\"\",IF('Enrollment Form'!$G636='Enrollment Form'!$H636,\"Y\",\"N\")))","v":""},{"$f":"IF($B629=\"N\",\"\",IF(AND(COUNTIFS('Enrollment Form'!$H$11:$H$1000,'Enrollment Form'!$H636,'Enrollment Form'!$B$11:$B$1000,'Enrollment Form'!$B636)>1,'Enrollment Form'!$H636<>\"\"),\"N\",\"Y\"))","v":""},{"$f":"IF($B629=\"N\",\"\",IF(LEN('Enrollment Form'!$Y636)=0,\"\",IF(LEN('Enrollment Form'!$Y636)<>5,\"N\",\"Y\")))","v":""},{"$f":"IF($B629=\"N\",\"\",IF(LEN('Enrollment Form'!$AD636=0),\"\",IF(LEN('Enrollment Form'!$AD636)<>5,\"N\",\"Y\")))","v":""},{"$f":"IF($B629=\"N\",\"\",IF(LEN('Enrollment Form'!$BS636=0),\"\",IF(LEN('Enrollment Form'!$BS636)<>5,\"N\",\"Y\")))","v":""},{"$f":"IF($B629=\"N\",\"\",IF(LEN('Enrollment Form'!$AE636)=0,\"\",IF(LEN('Enrollment Form'!$AE636)<>10,\"N\",\"Y\")))","v":""},{"$f":"IF($B629=\"N\",\"\",IF(LEN('Enrollment Form'!$AF636)=0,\"\",IF(LEN('Enrollment Form'!$AF636)<>10,\"N\",\"Y\")))","v":""},{"$f":"IF('Enrollment Form'!$O636<>\"Graded\",\"-\",IF(AND('Enrollment Form'!$O636=\"Graded\",'Enrollment Form'!$AR636<>\"\"),\"Y\",\"N\"))","v":"-"},{"$f":"IF($B629=\"N\",\"\",IF(OR('Enrollment Form'!$B636<>\"Subscriber\",'Enrollment Form'!$C636=\"ROC\"),\"-\",IF(AND('Enrollment Form'!$B636=\"Subscriber\",'Enrollment Form'!$C636=\"Enroll\",'Enrollment Form'!$AJ636<>\"\"),\"Y\",\"N\")))","v":""},{"$f":"IF($B629=\"N\",\"\",IF(OR('Enrollment Form'!$B636<>\"Subscriber\",'Enrollment Form'!$C636=\"ROC\"),\"-\",IF(AND('Enrollment Form'!$B636=\"Subscriber\",'Enrollment Form'!$C636=\"Enroll\",'Enrollment Form'!$AK636<>\"\"),\"Y\",\"N\")))","v":""},{"$f":"IF($B629=\"N\",\"\",IF(OR('Enrollment Form'!$B636<>\"Subscriber\",'Enrollment Form'!$C636=\"ROC\"),\"-\",IF(AND('Enrollment Form'!$B636=\"Subscriber\",'Enrollment Form'!$C636=\"Enroll\",'Enrollment Form'!$AL636<>\"\"),\"Y\",\"N\")))","v":""},{"$f":"IF($B629=\"N\",\"\",IF(OR('Enrollment Form'!$B636<>\"Subscriber\",'Enrollment Form'!$C636=\"ROC\"),\"-\",IF(AND('Enrollment Form'!$B636=\"Subscriber\",'Enrollment Form'!$C636=\"Enroll\",'Enrollment Form'!$AP636<>\"\"),\"Y\",\"N\")))","v":""},{"$f":"IF($B629=\"N\",\"\",IF(OR('Enrollment Form'!$B636<>\"Subscriber\",'Enrollment Form'!$C636=\"ROC\"),\"-\",IF(AND('Enrollment Form'!$B636=\"Subscriber\",'Enrollment Form'!$C636=\"Enroll\",'Enrollment Form'!$AQ636<>\"\"),\"Y\",\"N\")))","v":""},{"$f":"IF($B629=\"N\",\"\",IF(OR('Enrollment Form'!$B636<>\"Subscriber\",'Enrollment Form'!$C636=\"ROC\"),\"-\",IF(AND('Enrollment Form'!$B636=\"Subscriber\",'Enrollment Form'!$C636=\"Enroll\",'Enrollment Form'!$AS636<>\"\"),\"Y\",\"N\")))","v":""},{"$f":"IF($B629=\"N\",\"\",IF($Q629=\"-\",\"-\",IF(AND($Q629=\"Y\",'Enrollment Form'!$AS636=\"No\"),\"-\",IF(AND($Q629=\"Y\",'Enrollment Form'!$AS636=\"Yes\",'Enrollment Form'!$AT636<>\"\"),\"Y\",\"N\"))))","v":""},{"$f":"IF($B629=\"N\",\"\",IF(OR('Enrollment Form'!$B636<>\"Subscriber\",'Enrollment Form'!$C636=\"ROC\"),\"-\",IF(AND('Enrollment Form'!$B636=\"Subscriber\",'Enrollment Form'!$C636=\"Enroll\",'Enrollment Form'!$CV636<>\"\"),\"Y\",\"N\")))","v":""},{"$f":"IF($B629=\"N\",\"\",IF($S629=\"-\",\"-\",IF(AND($S629=\"Y\",'Enrollment Form'!$CV636=\"No\"),\"-\",IF(AND($S629=\"Y\",'Enrollment Form'!$CV636=\"Yes\",'Enrollment Form'!$CW636<>\"\"),\"Y\",\"N\"))))","v":""},{"$f":"IF(OR('Enrollment Form'!$AY636=\"Yes\",'Enrollment Form'!$AY636=\"\"),\"-\",IF(OR(AND('Enrollment Form'!$AY636=\"No\",ISERROR(FIND(\"HMO\",VLOOKUP('Enrollment Form'!G636,'Enrollment Form'!H$11:J$1000,3,FALSE),1))=FALSE,COUNTA('Enrollment Form'!$AZ636:$BC636)=4),AND('Enrollment Form'!$AY636=\"No\",ISERROR(FIND(\"HMO\",VLOOKUP('Enrollment Form'!G636,'Enrollment Form'!H$11:J$1000,3,FALSE),1))=FALSE,COUNTA('Enrollment Form'!$BT636:$BW636)=4)),\"Y\",\"N\"))","v":"-"},{"$f":"IF($B629=\"N\",\"\",IF('Enrollment Form'!$B636=\"Subscriber\",\"-\",IF(COUNTA('Enrollment Form'!$BL636,'Enrollment Form'!$BN636)=2,\"Y\",\"N\")))","v":""},{"$f":"IF($B629=\"N\",\"\",IF(OR('Enrollment Form'!$AX636=\"\",'Enrollment Form'!$AX636=\"No\"),\"-\",IF(AND('Enrollment Form'!$AX636=\"Yes\",COUNTA('Enrollment Form'!$CR636)=1),\"Y\",\"N\")))","v":""},{"$f":"IF(OR('Enrollment Form'!$CR636=\"\",'Enrollment Form'!$CR636=\"No\"),\"-\",IF(COUNTA('Enrollment Form'!$CT636:$CU636)=2,\"Y\",\"N\"))","v":"-"},{"$f":"IF($B629=\"N\",\"\",IF(COUNTIF('Enrollment Form'!$DG636:$DP636,\"Other\")=COUNTA('Enrollment Form'!$DK636,'Enrollment Form'!$DH636,'Enrollment Form'!$DN636,'Enrollment Form'!$DQ636),\"Y\",\"N\"))","v":""},{"$f":"IF($B629=\"N\",\"\",IF(OR('Enrollment Form'!B636<>\"Subscriber\",'Enrollment Form'!C636=\"ROC\",COUNTIF('Enrollment Form'!AV636:AW636,\"Yes\")>=1),\"-\",IF(AND('Enrollment Form'!C636=\"Enroll\",COUNTIF('Enrollment Form'!AV636:AW636,\"No\")=2,'Enrollment Form'!AX636=\"\"),\"N\",\"Y\")))","v":""},{"$f":"IF(OR(B629=\"N\",'Enrollment Form'!B636<>\"Subscriber\",'Enrollment Form'!C636=\"ROC\",'Enrollment Form'!O636<>\"Multiple of Salary\"),\"-\",IF(COUNTA('Enrollment Form'!T636:U636)<2,\"N\",\"Y\"))","v":"-"},{"$f":"IF(B629=\"N\",\"\",IF(OR('Enrollment Form'!C636=\"ROC\",'Enrollment Form'!B636<>\"Subscriber\",'Enrollment Form'!O636=\"Waive\",'Enrollment Form'!O636=\"\"),\"-\",IF('Enrollment Form'!P636=\"\",\"N\",\"Y\")))","v":""},{"$f":"IF($B629=\"N\",\"\",IF(AND('Enrollment Form'!$C636=\"ROC\",'Enrollment Form'!$DR636<>\"\"),\"Y\",IF(AND('Enrollment Form'!$C636=\"ROC\",'Enrollment Form'!$DR636=\"\"),\"N\",IF(AND('Enrollment Form'!$C636=\"Enroll\",'Enrollment Form'!$B636=\"Subscriber\",'Enrollment Form'!$CX636=\"No\",'Enrollment Form'!$DR636=\"\"),\"N\",IF(AND('Enrollment Form'!$C636=\"Enroll\",'Enrollment Form'!$B636=\"Subscriber\",'Enrollment Form'!$CX636=\"Yes\"),\"-\",\"Y\")))))","v":""},{"$f":"IF($B629=\"N\",\"\",IF(AND('Enrollment Form'!$C636=\"ROC\",'Enrollment Form'!$DS636<>\"\"),\"Y\",IF(AND('Enrollment Form'!$C636=\"ROC\",'Enrollment Form'!$DS636=\"\"),\"N\",IF(AND('Enrollment Form'!$C636=\"Enroll\",'Enrollment Form'!$B636=\"Subscriber\",'Enrollment Form'!$CX636=\"No\",'Enrollment Form'!$DS636=\"\"),\"N\",IF(AND('Enrollment Form'!$C636=\"Enroll\",'Enrollment Form'!$B636=\"Subscriber\",'Enrollment Form'!$CX636=\"Yes\"),\"-\",\"Y\")))))","v":""},{"$f":"IF('Enrollment Form'!AH636=\"\",\"\",IF(ISERROR(SEARCH(\".\",'Enrollment Form'!AH636,SEARCH(\"@\",'Enrollment Form'!AH636))),\"N\",\"Y\"))","v":""},{"$f":"IF(OR($B629=\"N\",'Enrollment Form'!$G636=\"\"),\"\",IF('Enrollment Form'!$B636<>\"Subscriber\",\"-\",IF(COUNTIF('Enrollment Form'!$AV636:$AW636,\"Yes\")=2,\"N\",\"Y\")))","v":""},{"$f":"IF(OR('Enrollment Form'!$CJ636=\"\",'Enrollment Form'!$CJ636=\"No\"),\"-\",IF(AND('Enrollment Form'!$CJ636=\"Yes\",'Enrollment Form'!$CK636=\"\"),\"N\",\"Y\"))","v":"-"},{"$f":"IF(OR('Enrollment Form'!$CL636=\"\",'Enrollment Form'!$CL636=\"No\"),\"-\",IF(AND('Enrollment Form'!$CL636=\"Yes\",'Enrollment Form'!$CM636=\"\"),\"N\",\"Y\"))","v":"-"},{"$f":"IF(OR('Enrollment Form'!$CN636=\"\",'Enrollment Form'!$CN636=\"No\"),\"-\",IF(AND('Enrollment Form'!$CN636=\"Yes\",'Enrollment Form'!$CO636=\"\"),\"N\",\"Y\"))","v":"-"},{"$f":"IF(OR('Enrollment Form'!$CN636=\"\",'Enrollment Form'!$CN636=\"No\"),\"-\",IF(AND('Enrollment Form'!$CN636=\"Yes\",'Enrollment Form'!$CP636=\"\"),\"N\",\"Y\"))","v":"-"},{"$f":"IF('Enrollment Form'!B636<>\"Subscriber\",\"-\",IF(AND('Enrollment Form'!B636=\"Subscriber\",'Enrollment Form'!C636=\"Enroll\",'Enrollment Form'!AA636=\"\"),\"N\",\"Y\"))","v":"-"},{"$f":"IF(OR('Enrollment Form'!B636=\"Subscriber\",'Enrollment Form'!B636=\"\"),\"-\",IF('Enrollment Form'!BP636=\"\",\"N\",\"Y\"))","v":"-"},{"$f":"IF('Enrollment Form'!B636<>\"Subscriber\",\"-\",IF(AND('Enrollment Form'!B636=\"Subscriber\",'Enrollment Form'!G636=\"\"),\"N\",\"Y\"))","v":"-"},{"$f":"IF('Enrollment Form'!A636=\"\",\"\",IF('Enrollment Form'!B636=\"Subscriber\",\"-\",IF(AND('Enrollment Form'!B636<>\"Subscriber\",'Enrollment Form'!G636='Enrollment Form'!H636),\"N\",\"Y\")))","v":""},0]
[637,{"$f":"IF('Enrollment Form'!$A637<>\"\",\"Y\",\"N\")","v":"N"},{"$f":"IF(AND('Enrollment Form'!$B637=\"\",'Enrollment Form'!$C637<>\"\"),\"N\",IF($B630=\"N\",\"\",\"Y\"))","v":""},{"$f":"IF(OR($B630=\"N\",'Enrollment Form'!G637=\"\"),\"\",IF('Enrollment Form'!$B637<>\"Subscriber\",\"\",IF('Enrollment Form'!$G637='Enrollment Form'!$H637,\"Y\",\"N\")))","v":""},{"$f":"IF($B630=\"N\",\"\",IF(AND(COUNTIFS('Enrollment Form'!$H$11:$H$1000,'Enrollment Form'!$H637,'Enrollment Form'!$B$11:$B$1000,'Enrollment Form'!$B637)>1,'Enrollment Form'!$H637<>\"\"),\"N\",\"Y\"))","v":""},{"$f":"IF($B630=\"N\",\"\",IF(LEN('Enrollment Form'!$Y637)=0,\"\",IF(LEN('Enrollment Form'!$Y637)<>5,\"N\",\"Y\")))","v":""},{"$f":"IF($B630=\"N\",\"\",IF(LEN('Enrollment Form'!$AD637=0),\"\",IF(LEN('Enrollment Form'!$AD637)<>5,\"N\",\"Y\")))","v":""},{"$f":"IF($B630=\"N\",\"\",IF(LEN('Enrollment Form'!$BS637=0),\"\",IF(LEN('Enrollment Form'!$BS637)<>5,\"N\",\"Y\")))","v":""},{"$f":"IF($B630=\"N\",\"\",IF(LEN('Enrollment Form'!$AE637)=0,\"\",IF(LEN('Enrollment Form'!$AE637)<>10,\"N\",\"Y\")))","v":""},{"$f":"IF($B630=\"N\",\"\",IF(LEN('Enrollment Form'!$AF637)=0,\"\",IF(LEN('Enrollment Form'!$AF637)<>10,\"N\",\"Y\")))","v":""},{"$f":"IF('Enrollment Form'!$O637<>\"Graded\",\"-\",IF(AND('Enrollment Form'!$O637=\"Graded\",'Enrollment Form'!$AR637<>\"\"),\"Y\",\"N\"))","v":"-"},{"$f":"IF($B630=\"N\",\"\",IF(OR('Enrollment Form'!$B637<>\"Subscriber\",'Enrollment Form'!$C637=\"ROC\"),\"-\",IF(AND('Enrollment Form'!$B637=\"Subscriber\",'Enrollment Form'!$C637=\"Enroll\",'Enrollment Form'!$AJ637<>\"\"),\"Y\",\"N\")))","v":""},{"$f":"IF($B630=\"N\",\"\",IF(OR('Enrollment Form'!$B637<>\"Subscriber\",'Enrollment Form'!$C637=\"ROC\"),\"-\",IF(AND('Enrollment Form'!$B637=\"Subscriber\",'Enrollment Form'!$C637=\"Enroll\",'Enrollment Form'!$AK637<>\"\"),\"Y\",\"N\")))","v":""},{"$f":"IF($B630=\"N\",\"\",IF(OR('Enrollment Form'!$B637<>\"Subscriber\",'Enrollment Form'!$C637=\"ROC\"),\"-\",IF(AND('Enrollment Form'!$B637=\"Subscriber\",'Enrollment Form'!$C637=\"Enroll\",'Enrollment Form'!$AL637<>\"\"),\"Y\",\"N\")))","v":""},{"$f":"IF($B630=\"N\",\"\",IF(OR('Enrollment Form'!$B637<>\"Subscriber\",'Enrollment Form'!$C637=\"ROC\"),\"-\",IF(AND('Enrollment Form'!$B637=\"Subscriber\",'Enrollment Form'!$C637=\"Enroll\",'Enrollment Form'!$AP637<>\"\"),\"Y\",\"N\")))","v":""},{"$f":"IF($B630=\"N\",\"\",IF(OR('Enrollment Form'!$B637<>\"Subscriber\",'Enrollment Form'!$C637=\"ROC\"),\"-\",IF(AND('Enrollment Form'!$B637=\"Subscriber\",'Enrollment Form'!$C637=\"Enroll\",'Enrollment Form'!$AQ637<>\"\"),\"Y\",\"N\")))","v":""},{"$f":"IF($B630=\"N\",\"\",IF(OR('Enrollment Form'!$B637<>\"Subscriber\",'Enrollment Form'!$C637=\"ROC\"),\"-\",IF(AND('Enrollment Form'!$B637=\"Subscriber\",'Enrollment Form'!$C637=\"Enroll\",'Enrollment Form'!$AS637<>\"\"),\"Y\",\"N\")))","v":""},{"$f":"IF($B630=\"N\",\"\",IF($Q630=\"-\",\"-\",IF(AND($Q630=\"Y\",'Enrollment Form'!$AS637=\"No\"),\"-\",IF(AND($Q630=\"Y\",'Enrollment Form'!$AS637=\"Yes\",'Enrollment Form'!$AT637<>\"\"),\"Y\",\"N\"))))","v":""},{"$f":"IF($B630=\"N\",\"\",IF(OR('Enrollment Form'!$B637<>\"Subscriber\",'Enrollment Form'!$C637=\"ROC\"),\"-\",IF(AND('Enrollment Form'!$B637=\"Subscriber\",'Enrollment Form'!$C637=\"Enroll\",'Enrollment Form'!$CV637<>\"\"),\"Y\",\"N\")))","v":""},{"$f":"IF($B630=\"N\",\"\",IF($S630=\"-\",\"-\",IF(AND($S630=\"Y\",'Enrollment Form'!$CV637=\"No\"),\"-\",IF(AND($S630=\"Y\",'Enrollment Form'!$CV637=\"Yes\",'Enrollment Form'!$CW637<>\"\"),\"Y\",\"N\"))))","v":""},{"$f":"IF(OR('Enrollment Form'!$AY637=\"Yes\",'Enrollment Form'!$AY637=\"\"),\"-\",IF(OR(AND('Enrollment Form'!$AY637=\"No\",ISERROR(FIND(\"HMO\",VLOOKUP('Enrollment Form'!G637,'Enrollment Form'!H$11:J$1000,3,FALSE),1))=FALSE,COUNTA('Enrollment Form'!$AZ637:$BC637)=4),AND('Enrollment Form'!$AY637=\"No\",ISERROR(FIND(\"HMO\",VLOOKUP('Enrollment Form'!G637,'Enrollment Form'!H$11:J$1000,3,FALSE),1))=FALSE,COUNTA('Enrollment Form'!$BT637:$BW637)=4)),\"Y\",\"N\"))","v":"-"},{"$f":"IF($B630=\"N\",\"\",IF('Enrollment Form'!$B637=\"Subscriber\",\"-\",IF(COUNTA('Enrollment Form'!$BL637,'Enrollment Form'!$BN637)=2,\"Y\",\"N\")))","v":""},{"$f":"IF($B630=\"N\",\"\",IF(OR('Enrollment Form'!$AX637=\"\",'Enrollment Form'!$AX637=\"No\"),\"-\",IF(AND('Enrollment Form'!$AX637=\"Yes\",COUNTA('Enrollment Form'!$CR637)=1),\"Y\",\"N\")))","v":""},{"$f":"IF(OR('Enrollment Form'!$CR637=\"\",'Enrollment Form'!$CR637=\"No\"),\"-\",IF(COUNTA('Enrollment Form'!$CT637:$CU637)=2,\"Y\",\"N\"))","v":"-"},{"$f":"IF($B630=\"N\",\"\",IF(COUNTIF('Enrollment Form'!$DG637:$DP637,\"Other\")=COUNTA('Enrollment Form'!$DK637,'Enrollment Form'!$DH637,'Enrollment Form'!$DN637,'Enrollment Form'!$DQ637),\"Y\",\"N\"))","v":""},{"$f":"IF($B630=\"N\",\"\",IF(OR('Enrollment Form'!B637<>\"Subscriber\",'Enrollment Form'!C637=\"ROC\",COUNTIF('Enrollment Form'!AV637:AW637,\"Yes\")>=1),\"-\",IF(AND('Enrollment Form'!C637=\"Enroll\",COUNTIF('Enrollment Form'!AV637:AW637,\"No\")=2,'Enrollment Form'!AX637=\"\"),\"N\",\"Y\")))","v":""},{"$f":"IF(OR(B630=\"N\",'Enrollment Form'!B637<>\"Subscriber\",'Enrollment Form'!C637=\"ROC\",'Enrollment Form'!O637<>\"Multiple of Salary\"),\"-\",IF(COUNTA('Enrollment Form'!T637:U637)<2,\"N\",\"Y\"))","v":"-"},{"$f":"IF(B630=\"N\",\"\",IF(OR('Enrollment Form'!C637=\"ROC\",'Enrollment Form'!B637<>\"Subscriber\",'Enrollment Form'!O637=\"Waive\",'Enrollment Form'!O637=\"\"),\"-\",IF('Enrollment Form'!P637=\"\",\"N\",\"Y\")))","v":""},{"$f":"IF($B630=\"N\",\"\",IF(AND('Enrollment Form'!$C637=\"ROC\",'Enrollment Form'!$DR637<>\"\"),\"Y\",IF(AND('Enrollment Form'!$C637=\"ROC\",'Enrollment Form'!$DR637=\"\"),\"N\",IF(AND('Enrollment Form'!$C637=\"Enroll\",'Enrollment Form'!$B637=\"Subscriber\",'Enrollment Form'!$CX637=\"No\",'Enrollment Form'!$DR637=\"\"),\"N\",IF(AND('Enrollment Form'!$C637=\"Enroll\",'Enrollment Form'!$B637=\"Subscriber\",'Enrollment Form'!$CX637=\"Yes\"),\"-\",\"Y\")))))","v":""},{"$f":"IF($B630=\"N\",\"\",IF(AND('Enrollment Form'!$C637=\"ROC\",'Enrollment Form'!$DS637<>\"\"),\"Y\",IF(AND('Enrollment Form'!$C637=\"ROC\",'Enrollment Form'!$DS637=\"\"),\"N\",IF(AND('Enrollment Form'!$C637=\"Enroll\",'Enrollment Form'!$B637=\"Subscriber\",'Enrollment Form'!$CX637=\"No\",'Enrollment Form'!$DS637=\"\"),\"N\",IF(AND('Enrollment Form'!$C637=\"Enroll\",'Enrollment Form'!$B637=\"Subscriber\",'Enrollment Form'!$CX637=\"Yes\"),\"-\",\"Y\")))))","v":""},{"$f":"IF('Enrollment Form'!AH637=\"\",\"\",IF(ISERROR(SEARCH(\".\",'Enrollment Form'!AH637,SEARCH(\"@\",'Enrollment Form'!AH637))),\"N\",\"Y\"))","v":""},{"$f":"IF(OR($B630=\"N\",'Enrollment Form'!$G637=\"\"),\"\",IF('Enrollment Form'!$B637<>\"Subscriber\",\"-\",IF(COUNTIF('Enrollment Form'!$AV637:$AW637,\"Yes\")=2,\"N\",\"Y\")))","v":""},{"$f":"IF(OR('Enrollment Form'!$CJ637=\"\",'Enrollment Form'!$CJ637=\"No\"),\"-\",IF(AND('Enrollment Form'!$CJ637=\"Yes\",'Enrollment Form'!$CK637=\"\"),\"N\",\"Y\"))","v":"-"},{"$f":"IF(OR('Enrollment Form'!$CL637=\"\",'Enrollment Form'!$CL637=\"No\"),\"-\",IF(AND('Enrollment Form'!$CL637=\"Yes\",'Enrollment Form'!$CM637=\"\"),\"N\",\"Y\"))","v":"-"},{"$f":"IF(OR('Enrollment Form'!$CN637=\"\",'Enrollment Form'!$CN637=\"No\"),\"-\",IF(AND('Enrollment Form'!$CN637=\"Yes\",'Enrollment Form'!$CO637=\"\"),\"N\",\"Y\"))","v":"-"},{"$f":"IF(OR('Enrollment Form'!$CN637=\"\",'Enrollment Form'!$CN637=\"No\"),\"-\",IF(AND('Enrollment Form'!$CN637=\"Yes\",'Enrollment Form'!$CP637=\"\"),\"N\",\"Y\"))","v":"-"},{"$f":"IF('Enrollment Form'!B637<>\"Subscriber\",\"-\",IF(AND('Enrollment Form'!B637=\"Subscriber\",'Enrollment Form'!C637=\"Enroll\",'Enrollment Form'!AA637=\"\"),\"N\",\"Y\"))","v":"-"},{"$f":"IF(OR('Enrollment Form'!B637=\"Subscriber\",'Enrollment Form'!B637=\"\"),\"-\",IF('Enrollment Form'!BP637=\"\",\"N\",\"Y\"))","v":"-"},{"$f":"IF('Enrollment Form'!B637<>\"Subscriber\",\"-\",IF(AND('Enrollment Form'!B637=\"Subscriber\",'Enrollment Form'!G637=\"\"),\"N\",\"Y\"))","v":"-"},{"$f":"IF('Enrollment Form'!A637=\"\",\"\",IF('Enrollment Form'!B637=\"Subscriber\",\"-\",IF(AND('Enrollment Form'!B637<>\"Subscriber\",'Enrollment Form'!G637='Enrollment Form'!H637),\"N\",\"Y\")))","v":""},0]
[638,{"$f":"IF('Enrollment Form'!$A638<>\"\",\"Y\",\"N\")","v":"N"},{"$f":"IF(AND('Enrollment Form'!$B638=\"\",'Enrollment Form'!$C638<>\"\"),\"N\",IF($B631=\"N\",\"\",\"Y\"))","v":""},{"$f":"IF(OR($B631=\"N\",'Enrollment Form'!G638=\"\"),\"\",IF('Enrollment Form'!$B638<>\"Subscriber\",\"\",IF('Enrollment Form'!$G638='Enrollment Form'!$H638,\"Y\",\"N\")))","v":""},{"$f":"IF($B631=\"N\",\"\",IF(AND(COUNTIFS('Enrollment Form'!$H$11:$H$1000,'Enrollment Form'!$H638,'Enrollment Form'!$B$11:$B$1000,'Enrollment Form'!$B638)>1,'Enrollment Form'!$H638<>\"\"),\"N\",\"Y\"))","v":""},{"$f":"IF($B631=\"N\",\"\",IF(LEN('Enrollment Form'!$Y638)=0,\"\",IF(LEN('Enrollment Form'!$Y638)<>5,\"N\",\"Y\")))","v":""},{"$f":"IF($B631=\"N\",\"\",IF(LEN('Enrollment Form'!$AD638=0),\"\",IF(LEN('Enrollment Form'!$AD638)<>5,\"N\",\"Y\")))","v":""},{"$f":"IF($B631=\"N\",\"\",IF(LEN('Enrollment Form'!$BS638=0),\"\",IF(LEN('Enrollment Form'!$BS638)<>5,\"N\",\"Y\")))","v":""},{"$f":"IF($B631=\"N\",\"\",IF(LEN('Enrollment Form'!$AE638)=0,\"\",IF(LEN('Enrollment Form'!$AE638)<>10,\"N\",\"Y\")))","v":""},{"$f":"IF($B631=\"N\",\"\",IF(LEN('Enrollment Form'!$AF638)=0,\"\",IF(LEN('Enrollment Form'!$AF638)<>10,\"N\",\"Y\")))","v":""},{"$f":"IF('Enrollment Form'!$O638<>\"Graded\",\"-\",IF(AND('Enrollment Form'!$O638=\"Graded\",'Enrollment Form'!$AR638<>\"\"),\"Y\",\"N\"))","v":"-"},{"$f":"IF($B631=\"N\",\"\",IF(OR('Enrollment Form'!$B638<>\"Subscriber\",'Enrollment Form'!$C638=\"ROC\"),\"-\",IF(AND('Enrollment Form'!$B638=\"Subscriber\",'Enrollment Form'!$C638=\"Enroll\",'Enrollment Form'!$AJ638<>\"\"),\"Y\",\"N\")))","v":""},{"$f":"IF($B631=\"N\",\"\",IF(OR('Enrollment Form'!$B638<>\"Subscriber\",'Enrollment Form'!$C638=\"ROC\"),\"-\",IF(AND('Enrollment Form'!$B638=\"Subscriber\",'Enrollment Form'!$C638=\"Enroll\",'Enrollment Form'!$AK638<>\"\"),\"Y\",\"N\")))","v":""},{"$f":"IF($B631=\"N\",\"\",IF(OR('Enrollment Form'!$B638<>\"Subscriber\",'Enrollment Form'!$C638=\"ROC\"),\"-\",IF(AND('Enrollment Form'!$B638=\"Subscriber\",'Enrollment Form'!$C638=\"Enroll\",'Enrollment Form'!$AL638<>\"\"),\"Y\",\"N\")))","v":""},{"$f":"IF($B631=\"N\",\"\",IF(OR('Enrollment Form'!$B638<>\"Subscriber\",'Enrollment Form'!$C638=\"ROC\"),\"-\",IF(AND('Enrollment Form'!$B638=\"Subscriber\",'Enrollment Form'!$C638=\"Enroll\",'Enrollment Form'!$AP638<>\"\"),\"Y\",\"N\")))","v":""},{"$f":"IF($B631=\"N\",\"\",IF(OR('Enrollment Form'!$B638<>\"Subscriber\",'Enrollment Form'!$C638=\"ROC\"),\"-\",IF(AND('Enrollment Form'!$B638=\"Subscriber\",'Enrollment Form'!$C638=\"Enroll\",'Enrollment Form'!$AQ638<>\"\"),\"Y\",\"N\")))","v":""},{"$f":"IF($B631=\"N\",\"\",IF(OR('Enrollment Form'!$B638<>\"Subscriber\",'Enrollment Form'!$C638=\"ROC\"),\"-\",IF(AND('Enrollment Form'!$B638=\"Subscriber\",'Enrollment Form'!$C638=\"Enroll\",'Enrollment Form'!$AS638<>\"\"),\"Y\",\"N\")))","v":""},{"$f":"IF($B631=\"N\",\"\",IF($Q631=\"-\",\"-\",IF(AND($Q631=\"Y\",'Enrollment Form'!$AS638=\"No\"),\"-\",IF(AND($Q631=\"Y\",'Enrollment Form'!$AS638=\"Yes\",'Enrollment Form'!$AT638<>\"\"),\"Y\",\"N\"))))","v":""},{"$f":"IF($B631=\"N\",\"\",IF(OR('Enrollment Form'!$B638<>\"Subscriber\",'Enrollment Form'!$C638=\"ROC\"),\"-\",IF(AND('Enrollment Form'!$B638=\"Subscriber\",'Enrollment Form'!$C638=\"Enroll\",'Enrollment Form'!$CV638<>\"\"),\"Y\",\"N\")))","v":""},{"$f":"IF($B631=\"N\",\"\",IF($S631=\"-\",\"-\",IF(AND($S631=\"Y\",'Enrollment Form'!$CV638=\"No\"),\"-\",IF(AND($S631=\"Y\",'Enrollment Form'!$CV638=\"Yes\",'Enrollment Form'!$CW638<>\"\"),\"Y\",\"N\"))))","v":""},{"$f":"IF(OR('Enrollment Form'!$AY638=\"Yes\",'Enrollment Form'!$AY638=\"\"),\"-\",IF(OR(AND('Enrollment Form'!$AY638=\"No\",ISERROR(FIND(\"HMO\",VLOOKUP('Enrollment Form'!G638,'Enrollment Form'!H$11:J$1000,3,FALSE),1))=FALSE,COUNTA('Enrollment Form'!$AZ638:$BC638)=4),AND('Enrollment Form'!$AY638=\"No\",ISERROR(FIND(\"HMO\",VLOOKUP('Enrollment Form'!G638,'Enrollment Form'!H$11:J$1000,3,FALSE),1))=FALSE,COUNTA('Enrollment Form'!$BT638:$BW638)=4)),\"Y\",\"N\"))","v":"-"},{"$f":"IF($B631=\"N\",\"\",IF('Enrollment Form'!$B638=\"Subscriber\",\"-\",IF(COUNTA('Enrollment Form'!$BL638,'Enrollment Form'!$BN638)=2,\"Y\",\"N\")))","v":""},{"$f":"IF($B631=\"N\",\"\",IF(OR('Enrollment Form'!$AX638=\"\",'Enrollment Form'!$AX638=\"No\"),\"-\",IF(AND('Enrollment Form'!$AX638=\"Yes\",COUNTA('Enrollment Form'!$CR638)=1),\"Y\",\"N\")))","v":""},{"$f":"IF(OR('Enrollment Form'!$CR638=\"\",'Enrollment Form'!$CR638=\"No\"),\"-\",IF(COUNTA('Enrollment Form'!$CT638:$CU638)=2,\"Y\",\"N\"))","v":"-"},{"$f":"IF($B631=\"N\",\"\",IF(COUNTIF('Enrollment Form'!$DG638:$DP638,\"Other\")=COUNTA('Enrollment Form'!$DK638,'Enrollment Form'!$DH638,'Enrollment Form'!$DN638,'Enrollment Form'!$DQ638),\"Y\",\"N\"))","v":""},{"$f":"IF($B631=\"N\",\"\",IF(OR('Enrollment Form'!B638<>\"Subscriber\",'Enrollment Form'!C638=\"ROC\",COUNTIF('Enrollment Form'!AV638:AW638,\"Yes\")>=1),\"-\",IF(AND('Enrollment Form'!C638=\"Enroll\",COUNTIF('Enrollment Form'!AV638:AW638,\"No\")=2,'Enrollment Form'!AX638=\"\"),\"N\",\"Y\")))","v":""},{"$f":"IF(OR(B631=\"N\",'Enrollment Form'!B638<>\"Subscriber\",'Enrollment Form'!C638=\"ROC\",'Enrollment Form'!O638<>\"Multiple of Salary\"),\"-\",IF(COUNTA('Enrollment Form'!T638:U638)<2,\"N\",\"Y\"))","v":"-"},{"$f":"IF(B631=\"N\",\"\",IF(OR('Enrollment Form'!C638=\"ROC\",'Enrollment Form'!B638<>\"Subscriber\",'Enrollment Form'!O638=\"Waive\",'Enrollment Form'!O638=\"\"),\"-\",IF('Enrollment Form'!P638=\"\",\"N\",\"Y\")))","v":""},{"$f":"IF($B631=\"N\",\"\",IF(AND('Enrollment Form'!$C638=\"ROC\",'Enrollment Form'!$DR638<>\"\"),\"Y\",IF(AND('Enrollment Form'!$C638=\"ROC\",'Enrollment Form'!$DR638=\"\"),\"N\",IF(AND('Enrollment Form'!$C638=\"Enroll\",'Enrollment Form'!$B638=\"Subscriber\",'Enrollment Form'!$CX638=\"No\",'Enrollment Form'!$DR638=\"\"),\"N\",IF(AND('Enrollment Form'!$C638=\"Enroll\",'Enrollment Form'!$B638=\"Subscriber\",'Enrollment Form'!$CX638=\"Yes\"),\"-\",\"Y\")))))","v":""},{"$f":"IF($B631=\"N\",\"\",IF(AND('Enrollment Form'!$C638=\"ROC\",'Enrollment Form'!$DS638<>\"\"),\"Y\",IF(AND('Enrollment Form'!$C638=\"ROC\",'Enrollment Form'!$DS638=\"\"),\"N\",IF(AND('Enrollment Form'!$C638=\"Enroll\",'Enrollment Form'!$B638=\"Subscriber\",'Enrollment Form'!$CX638=\"No\",'Enrollment Form'!$DS638=\"\"),\"N\",IF(AND('Enrollment Form'!$C638=\"Enroll\",'Enrollment Form'!$B638=\"Subscriber\",'Enrollment Form'!$CX638=\"Yes\"),\"-\",\"Y\")))))","v":""},{"$f":"IF('Enrollment Form'!AH638=\"\",\"\",IF(ISERROR(SEARCH(\".\",'Enrollment Form'!AH638,SEARCH(\"@\",'Enrollment Form'!AH638))),\"N\",\"Y\"))","v":""},{"$f":"IF(OR($B631=\"N\",'Enrollment Form'!$G638=\"\"),\"\",IF('Enrollment Form'!$B638<>\"Subscriber\",\"-\",IF(COUNTIF('Enrollment Form'!$AV638:$AW638,\"Yes\")=2,\"N\",\"Y\")))","v":""},{"$f":"IF(OR('Enrollment Form'!$CJ638=\"\",'Enrollment Form'!$CJ638=\"No\"),\"-\",IF(AND('Enrollment Form'!$CJ638=\"Yes\",'Enrollment Form'!$CK638=\"\"),\"N\",\"Y\"))","v":"-"},{"$f":"IF(OR('Enrollment Form'!$CL638=\"\",'Enrollment Form'!$CL638=\"No\"),\"-\",IF(AND('Enrollment Form'!$CL638=\"Yes\",'Enrollment Form'!$CM638=\"\"),\"N\",\"Y\"))","v":"-"},{"$f":"IF(OR('Enrollment Form'!$CN638=\"\",'Enrollment Form'!$CN638=\"No\"),\"-\",IF(AND('Enrollment Form'!$CN638=\"Yes\",'Enrollment Form'!$CO638=\"\"),\"N\",\"Y\"))","v":"-"},{"$f":"IF(OR('Enrollment Form'!$CN638=\"\",'Enrollment Form'!$CN638=\"No\"),\"-\",IF(AND('Enrollment Form'!$CN638=\"Yes\",'Enrollment Form'!$CP638=\"\"),\"N\",\"Y\"))","v":"-"},{"$f":"IF('Enrollment Form'!B638<>\"Subscriber\",\"-\",IF(AND('Enrollment Form'!B638=\"Subscriber\",'Enrollment Form'!C638=\"Enroll\",'Enrollment Form'!AA638=\"\"),\"N\",\"Y\"))","v":"-"},{"$f":"IF(OR('Enrollment Form'!B638=\"Subscriber\",'Enrollment Form'!B638=\"\"),\"-\",IF('Enrollment Form'!BP638=\"\",\"N\",\"Y\"))","v":"-"},{"$f":"IF('Enrollment Form'!B638<>\"Subscriber\",\"-\",IF(AND('Enrollment Form'!B638=\"Subscriber\",'Enrollment Form'!G638=\"\"),\"N\",\"Y\"))","v":"-"},{"$f":"IF('Enrollment Form'!A638=\"\",\"\",IF('Enrollment Form'!B638=\"Subscriber\",\"-\",IF(AND('Enrollment Form'!B638<>\"Subscriber\",'Enrollment Form'!G638='Enrollment Form'!H638),\"N\",\"Y\")))","v":""},0]
[639,{"$f":"IF('Enrollment Form'!$A639<>\"\",\"Y\",\"N\")","v":"N"},{"$f":"IF(AND('Enrollment Form'!$B639=\"\",'Enrollment Form'!$C639<>\"\"),\"N\",IF($B632=\"N\",\"\",\"Y\"))","v":""},{"$f":"IF(OR($B632=\"N\",'Enrollment Form'!G639=\"\"),\"\",IF('Enrollment Form'!$B639<>\"Subscriber\",\"\",IF('Enrollment Form'!$G639='Enrollment Form'!$H639,\"Y\",\"N\")))","v":""},{"$f":"IF($B632=\"N\",\"\",IF(AND(COUNTIFS('Enrollment Form'!$H$11:$H$1000,'Enrollment Form'!$H639,'Enrollment Form'!$B$11:$B$1000,'Enrollment Form'!$B639)>1,'Enrollment Form'!$H639<>\"\"),\"N\",\"Y\"))","v":""},{"$f":"IF($B632=\"N\",\"\",IF(LEN('Enrollment Form'!$Y639)=0,\"\",IF(LEN('Enrollment Form'!$Y639)<>5,\"N\",\"Y\")))","v":""},{"$f":"IF($B632=\"N\",\"\",IF(LEN('Enrollment Form'!$AD639=0),\"\",IF(LEN('Enrollment Form'!$AD639)<>5,\"N\",\"Y\")))","v":""},{"$f":"IF($B632=\"N\",\"\",IF(LEN('Enrollment Form'!$BS639=0),\"\",IF(LEN('Enrollment Form'!$BS639)<>5,\"N\",\"Y\")))","v":""},{"$f":"IF($B632=\"N\",\"\",IF(LEN('Enrollment Form'!$AE639)=0,\"\",IF(LEN('Enrollment Form'!$AE639)<>10,\"N\",\"Y\")))","v":""},{"$f":"IF($B632=\"N\",\"\",IF(LEN('Enrollment Form'!$AF639)=0,\"\",IF(LEN('Enrollment Form'!$AF639)<>10,\"N\",\"Y\")))","v":""},{"$f":"IF('Enrollment Form'!$O639<>\"Graded\",\"-\",IF(AND('Enrollment Form'!$O639=\"Graded\",'Enrollment Form'!$AR639<>\"\"),\"Y\",\"N\"))","v":"-"},{"$f":"IF($B632=\"N\",\"\",IF(OR('Enrollment Form'!$B639<>\"Subscriber\",'Enrollment Form'!$C639=\"ROC\"),\"-\",IF(AND('Enrollment Form'!$B639=\"Subscriber\",'Enrollment Form'!$C639=\"Enroll\",'Enrollment Form'!$AJ639<>\"\"),\"Y\",\"N\")))","v":""},{"$f":"IF($B632=\"N\",\"\",IF(OR('Enrollment Form'!$B639<>\"Subscriber\",'Enrollment Form'!$C639=\"ROC\"),\"-\",IF(AND('Enrollment Form'!$B639=\"Subscriber\",'Enrollment Form'!$C639=\"Enroll\",'Enrollment Form'!$AK639<>\"\"),\"Y\",\"N\")))","v":""},{"$f":"IF($B632=\"N\",\"\",IF(OR('Enrollment Form'!$B639<>\"Subscriber\",'Enrollment Form'!$C639=\"ROC\"),\"-\",IF(AND('Enrollment Form'!$B639=\"Subscriber\",'Enrollment Form'!$C639=\"Enroll\",'Enrollment Form'!$AL639<>\"\"),\"Y\",\"N\")))","v":""},{"$f":"IF($B632=\"N\",\"\",IF(OR('Enrollment Form'!$B639<>\"Subscriber\",'Enrollment Form'!$C639=\"ROC\"),\"-\",IF(AND('Enrollment Form'!$B639=\"Subscriber\",'Enrollment Form'!$C639=\"Enroll\",'Enrollment Form'!$AP639<>\"\"),\"Y\",\"N\")))","v":""},{"$f":"IF($B632=\"N\",\"\",IF(OR('Enrollment Form'!$B639<>\"Subscriber\",'Enrollment Form'!$C639=\"ROC\"),\"-\",IF(AND('Enrollment Form'!$B639=\"Subscriber\",'Enrollment Form'!$C639=\"Enroll\",'Enrollment Form'!$AQ639<>\"\"),\"Y\",\"N\")))","v":""},{"$f":"IF($B632=\"N\",\"\",IF(OR('Enrollment Form'!$B639<>\"Subscriber\",'Enrollment Form'!$C639=\"ROC\"),\"-\",IF(AND('Enrollment Form'!$B639=\"Subscriber\",'Enrollment Form'!$C639=\"Enroll\",'Enrollment Form'!$AS639<>\"\"),\"Y\",\"N\")))","v":""},{"$f":"IF($B632=\"N\",\"\",IF($Q632=\"-\",\"-\",IF(AND($Q632=\"Y\",'Enrollment Form'!$AS639=\"No\"),\"-\",IF(AND($Q632=\"Y\",'Enrollment Form'!$AS639=\"Yes\",'Enrollment Form'!$AT639<>\"\"),\"Y\",\"N\"))))","v":""},{"$f":"IF($B632=\"N\",\"\",IF(OR('Enrollment Form'!$B639<>\"Subscriber\",'Enrollment Form'!$C639=\"ROC\"),\"-\",IF(AND('Enrollment Form'!$B639=\"Subscriber\",'Enrollment Form'!$C639=\"Enroll\",'Enrollment Form'!$CV639<>\"\"),\"Y\",\"N\")))","v":""},{"$f":"IF($B632=\"N\",\"\",IF($S632=\"-\",\"-\",IF(AND($S632=\"Y\",'Enrollment Form'!$CV639=\"No\"),\"-\",IF(AND($S632=\"Y\",'Enrollment Form'!$CV639=\"Yes\",'Enrollment Form'!$CW639<>\"\"),\"Y\",\"N\"))))","v":""},{"$f":"IF(OR('Enrollment Form'!$AY639=\"Yes\",'Enrollment Form'!$AY639=\"\"),\"-\",IF(OR(AND('Enrollment Form'!$AY639=\"No\",ISERROR(FIND(\"HMO\",VLOOKUP('Enrollment Form'!G639,'Enrollment Form'!H$11:J$1000,3,FALSE),1))=FALSE,COUNTA('Enrollment Form'!$AZ639:$BC639)=4),AND('Enrollment Form'!$AY639=\"No\",ISERROR(FIND(\"HMO\",VLOOKUP('Enrollment Form'!G639,'Enrollment Form'!H$11:J$1000,3,FALSE),1))=FALSE,COUNTA('Enrollment Form'!$BT639:$BW639)=4)),\"Y\",\"N\"))","v":"-"},{"$f":"IF($B632=\"N\",\"\",IF('Enrollment Form'!$B639=\"Subscriber\",\"-\",IF(COUNTA('Enrollment Form'!$BL639,'Enrollment Form'!$BN639)=2,\"Y\",\"N\")))","v":""},{"$f":"IF($B632=\"N\",\"\",IF(OR('Enrollment Form'!$AX639=\"\",'Enrollment Form'!$AX639=\"No\"),\"-\",IF(AND('Enrollment Form'!$AX639=\"Yes\",COUNTA('Enrollment Form'!$CR639)=1),\"Y\",\"N\")))","v":""},{"$f":"IF(OR('Enrollment Form'!$CR639=\"\",'Enrollment Form'!$CR639=\"No\"),\"-\",IF(COUNTA('Enrollment Form'!$CT639:$CU639)=2,\"Y\",\"N\"))","v":"-"},{"$f":"IF($B632=\"N\",\"\",IF(COUNTIF('Enrollment Form'!$DG639:$DP639,\"Other\")=COUNTA('Enrollment Form'!$DK639,'Enrollment Form'!$DH639,'Enrollment Form'!$DN639,'Enrollment Form'!$DQ639),\"Y\",\"N\"))","v":""},{"$f":"IF($B632=\"N\",\"\",IF(OR('Enrollment Form'!B639<>\"Subscriber\",'Enrollment Form'!C639=\"ROC\",COUNTIF('Enrollment Form'!AV639:AW639,\"Yes\")>=1),\"-\",IF(AND('Enrollment Form'!C639=\"Enroll\",COUNTIF('Enrollment Form'!AV639:AW639,\"No\")=2,'Enrollment Form'!AX639=\"\"),\"N\",\"Y\")))","v":""},{"$f":"IF(OR(B632=\"N\",'Enrollment Form'!B639<>\"Subscriber\",'Enrollment Form'!C639=\"ROC\",'Enrollment Form'!O639<>\"Multiple of Salary\"),\"-\",IF(COUNTA('Enrollment Form'!T639:U639)<2,\"N\",\"Y\"))","v":"-"},{"$f":"IF(B632=\"N\",\"\",IF(OR('Enrollment Form'!C639=\"ROC\",'Enrollment Form'!B639<>\"Subscriber\",'Enrollment Form'!O639=\"Waive\",'Enrollment Form'!O639=\"\"),\"-\",IF('Enrollment Form'!P639=\"\",\"N\",\"Y\")))","v":""},{"$f":"IF($B632=\"N\",\"\",IF(AND('Enrollment Form'!$C639=\"ROC\",'Enrollment Form'!$DR639<>\"\"),\"Y\",IF(AND('Enrollment Form'!$C639=\"ROC\",'Enrollment Form'!$DR639=\"\"),\"N\",IF(AND('Enrollment Form'!$C639=\"Enroll\",'Enrollment Form'!$B639=\"Subscriber\",'Enrollment Form'!$CX639=\"No\",'Enrollment Form'!$DR639=\"\"),\"N\",IF(AND('Enrollment Form'!$C639=\"Enroll\",'Enrollment Form'!$B639=\"Subscriber\",'Enrollment Form'!$CX639=\"Yes\"),\"-\",\"Y\")))))","v":""},{"$f":"IF($B632=\"N\",\"\",IF(AND('Enrollment Form'!$C639=\"ROC\",'Enrollment Form'!$DS639<>\"\"),\"Y\",IF(AND('Enrollment Form'!$C639=\"ROC\",'Enrollment Form'!$DS639=\"\"),\"N\",IF(AND('Enrollment Form'!$C639=\"Enroll\",'Enrollment Form'!$B639=\"Subscriber\",'Enrollment Form'!$CX639=\"No\",'Enrollment Form'!$DS639=\"\"),\"N\",IF(AND('Enrollment Form'!$C639=\"Enroll\",'Enrollment Form'!$B639=\"Subscriber\",'Enrollment Form'!$CX639=\"Yes\"),\"-\",\"Y\")))))","v":""},{"$f":"IF('Enrollment Form'!AH639=\"\",\"\",IF(ISERROR(SEARCH(\".\",'Enrollment Form'!AH639,SEARCH(\"@\",'Enrollment Form'!AH639))),\"N\",\"Y\"))","v":""},{"$f":"IF(OR($B632=\"N\",'Enrollment Form'!$G639=\"\"),\"\",IF('Enrollment Form'!$B639<>\"Subscriber\",\"-\",IF(COUNTIF('Enrollment Form'!$AV639:$AW639,\"Yes\")=2,\"N\",\"Y\")))","v":""},{"$f":"IF(OR('Enrollment Form'!$CJ639=\"\",'Enrollment Form'!$CJ639=\"No\"),\"-\",IF(AND('Enrollment Form'!$CJ639=\"Yes\",'Enrollment Form'!$CK639=\"\"),\"N\",\"Y\"))","v":"-"},{"$f":"IF(OR('Enrollment Form'!$CL639=\"\",'Enrollment Form'!$CL639=\"No\"),\"-\",IF(AND('Enrollment Form'!$CL639=\"Yes\",'Enrollment Form'!$CM639=\"\"),\"N\",\"Y\"))","v":"-"},{"$f":"IF(OR('Enrollment Form'!$CN639=\"\",'Enrollment Form'!$CN639=\"No\"),\"-\",IF(AND('Enrollment Form'!$CN639=\"Yes\",'Enrollment Form'!$CO639=\"\"),\"N\",\"Y\"))","v":"-"},{"$f":"IF(OR('Enrollment Form'!$CN639=\"\",'Enrollment Form'!$CN639=\"No\"),\"-\",IF(AND('Enrollment Form'!$CN639=\"Yes\",'Enrollment Form'!$CP639=\"\"),\"N\",\"Y\"))","v":"-"},{"$f":"IF('Enrollment Form'!B639<>\"Subscriber\",\"-\",IF(AND('Enrollment Form'!B639=\"Subscriber\",'Enrollment Form'!C639=\"Enroll\",'Enrollment Form'!AA639=\"\"),\"N\",\"Y\"))","v":"-"},{"$f":"IF(OR('Enrollment Form'!B639=\"Subscriber\",'Enrollment Form'!B639=\"\"),\"-\",IF('Enrollment Form'!BP639=\"\",\"N\",\"Y\"))","v":"-"},{"$f":"IF('Enrollment Form'!B639<>\"Subscriber\",\"-\",IF(AND('Enrollment Form'!B639=\"Subscriber\",'Enrollment Form'!G639=\"\"),\"N\",\"Y\"))","v":"-"},{"$f":"IF('Enrollment Form'!A639=\"\",\"\",IF('Enrollment Form'!B639=\"Subscriber\",\"-\",IF(AND('Enrollment Form'!B639<>\"Subscriber\",'Enrollment Form'!G639='Enrollment Form'!H639),\"N\",\"Y\")))","v":""},0]
[640,{"$f":"IF('Enrollment Form'!$A640<>\"\",\"Y\",\"N\")","v":"N"},{"$f":"IF(AND('Enrollment Form'!$B640=\"\",'Enrollment Form'!$C640<>\"\"),\"N\",IF($B633=\"N\",\"\",\"Y\"))","v":""},{"$f":"IF(OR($B633=\"N\",'Enrollment Form'!G640=\"\"),\"\",IF('Enrollment Form'!$B640<>\"Subscriber\",\"\",IF('Enrollment Form'!$G640='Enrollment Form'!$H640,\"Y\",\"N\")))","v":""},{"$f":"IF($B633=\"N\",\"\",IF(AND(COUNTIFS('Enrollment Form'!$H$11:$H$1000,'Enrollment Form'!$H640,'Enrollment Form'!$B$11:$B$1000,'Enrollment Form'!$B640)>1,'Enrollment Form'!$H640<>\"\"),\"N\",\"Y\"))","v":""},{"$f":"IF($B633=\"N\",\"\",IF(LEN('Enrollment Form'!$Y640)=0,\"\",IF(LEN('Enrollment Form'!$Y640)<>5,\"N\",\"Y\")))","v":""},{"$f":"IF($B633=\"N\",\"\",IF(LEN('Enrollment Form'!$AD640=0),\"\",IF(LEN('Enrollment Form'!$AD640)<>5,\"N\",\"Y\")))","v":""},{"$f":"IF($B633=\"N\",\"\",IF(LEN('Enrollment Form'!$BS640=0),\"\",IF(LEN('Enrollment Form'!$BS640)<>5,\"N\",\"Y\")))","v":""},{"$f":"IF($B633=\"N\",\"\",IF(LEN('Enrollment Form'!$AE640)=0,\"\",IF(LEN('Enrollment Form'!$AE640)<>10,\"N\",\"Y\")))","v":""},{"$f":"IF($B633=\"N\",\"\",IF(LEN('Enrollment Form'!$AF640)=0,\"\",IF(LEN('Enrollment Form'!$AF640)<>10,\"N\",\"Y\")))","v":""},{"$f":"IF('Enrollment Form'!$O640<>\"Graded\",\"-\",IF(AND('Enrollment Form'!$O640=\"Graded\",'Enrollment Form'!$AR640<>\"\"),\"Y\",\"N\"))","v":"-"},{"$f":"IF($B633=\"N\",\"\",IF(OR('Enrollment Form'!$B640<>\"Subscriber\",'Enrollment Form'!$C640=\"ROC\"),\"-\",IF(AND('Enrollment Form'!$B640=\"Subscriber\",'Enrollment Form'!$C640=\"Enroll\",'Enrollment Form'!$AJ640<>\"\"),\"Y\",\"N\")))","v":""},{"$f":"IF($B633=\"N\",\"\",IF(OR('Enrollment Form'!$B640<>\"Subscriber\",'Enrollment Form'!$C640=\"ROC\"),\"-\",IF(AND('Enrollment Form'!$B640=\"Subscriber\",'Enrollment Form'!$C640=\"Enroll\",'Enrollment Form'!$AK640<>\"\"),\"Y\",\"N\")))","v":""},{"$f":"IF($B633=\"N\",\"\",IF(OR('Enrollment Form'!$B640<>\"Subscriber\",'Enrollment Form'!$C640=\"ROC\"),\"-\",IF(AND('Enrollment Form'!$B640=\"Subscriber\",'Enrollment Form'!$C640=\"Enroll\",'Enrollment Form'!$AL640<>\"\"),\"Y\",\"N\")))","v":""},{"$f":"IF($B633=\"N\",\"\",IF(OR('Enrollment Form'!$B640<>\"Subscriber\",'Enrollment Form'!$C640=\"ROC\"),\"-\",IF(AND('Enrollment Form'!$B640=\"Subscriber\",'Enrollment Form'!$C640=\"Enroll\",'Enrollment Form'!$AP640<>\"\"),\"Y\",\"N\")))","v":""},{"$f":"IF($B633=\"N\",\"\",IF(OR('Enrollment Form'!$B640<>\"Subscriber\",'Enrollment Form'!$C640=\"ROC\"),\"-\",IF(AND('Enrollment Form'!$B640=\"Subscriber\",'Enrollment Form'!$C640=\"Enroll\",'Enrollment Form'!$AQ640<>\"\"),\"Y\",\"N\")))","v":""},{"$f":"IF($B633=\"N\",\"\",IF(OR('Enrollment Form'!$B640<>\"Subscriber\",'Enrollment Form'!$C640=\"ROC\"),\"-\",IF(AND('Enrollment Form'!$B640=\"Subscriber\",'Enrollment Form'!$C640=\"Enroll\",'Enrollment Form'!$AS640<>\"\"),\"Y\",\"N\")))","v":""},{"$f":"IF($B633=\"N\",\"\",IF($Q633=\"-\",\"-\",IF(AND($Q633=\"Y\",'Enrollment Form'!$AS640=\"No\"),\"-\",IF(AND($Q633=\"Y\",'Enrollment Form'!$AS640=\"Yes\",'Enrollment Form'!$AT640<>\"\"),\"Y\",\"N\"))))","v":""},{"$f":"IF($B633=\"N\",\"\",IF(OR('Enrollment Form'!$B640<>\"Subscriber\",'Enrollment Form'!$C640=\"ROC\"),\"-\",IF(AND('Enrollment Form'!$B640=\"Subscriber\",'Enrollment Form'!$C640=\"Enroll\",'Enrollment Form'!$CV640<>\"\"),\"Y\",\"N\")))","v":""},{"$f":"IF($B633=\"N\",\"\",IF($S633=\"-\",\"-\",IF(AND($S633=\"Y\",'Enrollment Form'!$CV640=\"No\"),\"-\",IF(AND($S633=\"Y\",'Enrollment Form'!$CV640=\"Yes\",'Enrollment Form'!$CW640<>\"\"),\"Y\",\"N\"))))","v":""},{"$f":"IF(OR('Enrollment Form'!$AY640=\"Yes\",'Enrollment Form'!$AY640=\"\"),\"-\",IF(OR(AND('Enrollment Form'!$AY640=\"No\",ISERROR(FIND(\"HMO\",VLOOKUP('Enrollment Form'!G640,'Enrollment Form'!H$11:J$1000,3,FALSE),1))=FALSE,COUNTA('Enrollment Form'!$AZ640:$BC640)=4),AND('Enrollment Form'!$AY640=\"No\",ISERROR(FIND(\"HMO\",VLOOKUP('Enrollment Form'!G640,'Enrollment Form'!H$11:J$1000,3,FALSE),1))=FALSE,COUNTA('Enrollment Form'!$BT640:$BW640)=4)),\"Y\",\"N\"))","v":"-"},{"$f":"IF($B633=\"N\",\"\",IF('Enrollment Form'!$B640=\"Subscriber\",\"-\",IF(COUNTA('Enrollment Form'!$BL640,'Enrollment Form'!$BN640)=2,\"Y\",\"N\")))","v":""},{"$f":"IF($B633=\"N\",\"\",IF(OR('Enrollment Form'!$AX640=\"\",'Enrollment Form'!$AX640=\"No\"),\"-\",IF(AND('Enrollment Form'!$AX640=\"Yes\",COUNTA('Enrollment Form'!$CR640)=1),\"Y\",\"N\")))","v":""},{"$f":"IF(OR('Enrollment Form'!$CR640=\"\",'Enrollment Form'!$CR640=\"No\"),\"-\",IF(COUNTA('Enrollment Form'!$CT640:$CU640)=2,\"Y\",\"N\"))","v":"-"},{"$f":"IF($B633=\"N\",\"\",IF(COUNTIF('Enrollment Form'!$DG640:$DP640,\"Other\")=COUNTA('Enrollment Form'!$DK640,'Enrollment Form'!$DH640,'Enrollment Form'!$DN640,'Enrollment Form'!$DQ640),\"Y\",\"N\"))","v":""},{"$f":"IF($B633=\"N\",\"\",IF(OR('Enrollment Form'!B640<>\"Subscriber\",'Enrollment Form'!C640=\"ROC\",COUNTIF('Enrollment Form'!AV640:AW640,\"Yes\")>=1),\"-\",IF(AND('Enrollment Form'!C640=\"Enroll\",COUNTIF('Enrollment Form'!AV640:AW640,\"No\")=2,'Enrollment Form'!AX640=\"\"),\"N\",\"Y\")))","v":""},{"$f":"IF(OR(B633=\"N\",'Enrollment Form'!B640<>\"Subscriber\",'Enrollment Form'!C640=\"ROC\",'Enrollment Form'!O640<>\"Multiple of Salary\"),\"-\",IF(COUNTA('Enrollment Form'!T640:U640)<2,\"N\",\"Y\"))","v":"-"},{"$f":"IF(B633=\"N\",\"\",IF(OR('Enrollment Form'!C640=\"ROC\",'Enrollment Form'!B640<>\"Subscriber\",'Enrollment Form'!O640=\"Waive\",'Enrollment Form'!O640=\"\"),\"-\",IF('Enrollment Form'!P640=\"\",\"N\",\"Y\")))","v":""},{"$f":"IF($B633=\"N\",\"\",IF(AND('Enrollment Form'!$C640=\"ROC\",'Enrollment Form'!$DR640<>\"\"),\"Y\",IF(AND('Enrollment Form'!$C640=\"ROC\",'Enrollment Form'!$DR640=\"\"),\"N\",IF(AND('Enrollment Form'!$C640=\"Enroll\",'Enrollment Form'!$B640=\"Subscriber\",'Enrollment Form'!$CX640=\"No\",'Enrollment Form'!$DR640=\"\"),\"N\",IF(AND('Enrollment Form'!$C640=\"Enroll\",'Enrollment Form'!$B640=\"Subscriber\",'Enrollment Form'!$CX640=\"Yes\"),\"-\",\"Y\")))))","v":""},{"$f":"IF($B633=\"N\",\"\",IF(AND('Enrollment Form'!$C640=\"ROC\",'Enrollment Form'!$DS640<>\"\"),\"Y\",IF(AND('Enrollment Form'!$C640=\"ROC\",'Enrollment Form'!$DS640=\"\"),\"N\",IF(AND('Enrollment Form'!$C640=\"Enroll\",'Enrollment Form'!$B640=\"Subscriber\",'Enrollment Form'!$CX640=\"No\",'Enrollment Form'!$DS640=\"\"),\"N\",IF(AND('Enrollment Form'!$C640=\"Enroll\",'Enrollment Form'!$B640=\"Subscriber\",'Enrollment Form'!$CX640=\"Yes\"),\"-\",\"Y\")))))","v":""},{"$f":"IF('Enrollment Form'!AH640=\"\",\"\",IF(ISERROR(SEARCH(\".\",'Enrollment Form'!AH640,SEARCH(\"@\",'Enrollment Form'!AH640))),\"N\",\"Y\"))","v":""},{"$f":"IF(OR($B633=\"N\",'Enrollment Form'!$G640=\"\"),\"\",IF('Enrollment Form'!$B640<>\"Subscriber\",\"-\",IF(COUNTIF('Enrollment Form'!$AV640:$AW640,\"Yes\")=2,\"N\",\"Y\")))","v":""},{"$f":"IF(OR('Enrollment Form'!$CJ640=\"\",'Enrollment Form'!$CJ640=\"No\"),\"-\",IF(AND('Enrollment Form'!$CJ640=\"Yes\",'Enrollment Form'!$CK640=\"\"),\"N\",\"Y\"))","v":"-"},{"$f":"IF(OR('Enrollment Form'!$CL640=\"\",'Enrollment Form'!$CL640=\"No\"),\"-\",IF(AND('Enrollment Form'!$CL640=\"Yes\",'Enrollment Form'!$CM640=\"\"),\"N\",\"Y\"))","v":"-"},{"$f":"IF(OR('Enrollment Form'!$CN640=\"\",'Enrollment Form'!$CN640=\"No\"),\"-\",IF(AND('Enrollment Form'!$CN640=\"Yes\",'Enrollment Form'!$CO640=\"\"),\"N\",\"Y\"))","v":"-"},{"$f":"IF(OR('Enrollment Form'!$CN640=\"\",'Enrollment Form'!$CN640=\"No\"),\"-\",IF(AND('Enrollment Form'!$CN640=\"Yes\",'Enrollment Form'!$CP640=\"\"),\"N\",\"Y\"))","v":"-"},{"$f":"IF('Enrollment Form'!B640<>\"Subscriber\",\"-\",IF(AND('Enrollment Form'!B640=\"Subscriber\",'Enrollment Form'!C640=\"Enroll\",'Enrollment Form'!AA640=\"\"),\"N\",\"Y\"))","v":"-"},{"$f":"IF(OR('Enrollment Form'!B640=\"Subscriber\",'Enrollment Form'!B640=\"\"),\"-\",IF('Enrollment Form'!BP640=\"\",\"N\",\"Y\"))","v":"-"},{"$f":"IF('Enrollment Form'!B640<>\"Subscriber\",\"-\",IF(AND('Enrollment Form'!B640=\"Subscriber\",'Enrollment Form'!G640=\"\"),\"N\",\"Y\"))","v":"-"},{"$f":"IF('Enrollment Form'!A640=\"\",\"\",IF('Enrollment Form'!B640=\"Subscriber\",\"-\",IF(AND('Enrollment Form'!B640<>\"Subscriber\",'Enrollment Form'!G640='Enrollment Form'!H640),\"N\",\"Y\")))","v":""},0]
[641,{"$f":"IF('Enrollment Form'!$A641<>\"\",\"Y\",\"N\")","v":"N"},{"$f":"IF(AND('Enrollment Form'!$B641=\"\",'Enrollment Form'!$C641<>\"\"),\"N\",IF($B634=\"N\",\"\",\"Y\"))","v":""},{"$f":"IF(OR($B634=\"N\",'Enrollment Form'!G641=\"\"),\"\",IF('Enrollment Form'!$B641<>\"Subscriber\",\"\",IF('Enrollment Form'!$G641='Enrollment Form'!$H641,\"Y\",\"N\")))","v":""},{"$f":"IF($B634=\"N\",\"\",IF(AND(COUNTIFS('Enrollment Form'!$H$11:$H$1000,'Enrollment Form'!$H641,'Enrollment Form'!$B$11:$B$1000,'Enrollment Form'!$B641)>1,'Enrollment Form'!$H641<>\"\"),\"N\",\"Y\"))","v":""},{"$f":"IF($B634=\"N\",\"\",IF(LEN('Enrollment Form'!$Y641)=0,\"\",IF(LEN('Enrollment Form'!$Y641)<>5,\"N\",\"Y\")))","v":""},{"$f":"IF($B634=\"N\",\"\",IF(LEN('Enrollment Form'!$AD641=0),\"\",IF(LEN('Enrollment Form'!$AD641)<>5,\"N\",\"Y\")))","v":""},{"$f":"IF($B634=\"N\",\"\",IF(LEN('Enrollment Form'!$BS641=0),\"\",IF(LEN('Enrollment Form'!$BS641)<>5,\"N\",\"Y\")))","v":""},{"$f":"IF($B634=\"N\",\"\",IF(LEN('Enrollment Form'!$AE641)=0,\"\",IF(LEN('Enrollment Form'!$AE641)<>10,\"N\",\"Y\")))","v":""},{"$f":"IF($B634=\"N\",\"\",IF(LEN('Enrollment Form'!$AF641)=0,\"\",IF(LEN('Enrollment Form'!$AF641)<>10,\"N\",\"Y\")))","v":""},{"$f":"IF('Enrollment Form'!$O641<>\"Graded\",\"-\",IF(AND('Enrollment Form'!$O641=\"Graded\",'Enrollment Form'!$AR641<>\"\"),\"Y\",\"N\"))","v":"-"},{"$f":"IF($B634=\"N\",\"\",IF(OR('Enrollment Form'!$B641<>\"Subscriber\",'Enrollment Form'!$C641=\"ROC\"),\"-\",IF(AND('Enrollment Form'!$B641=\"Subscriber\",'Enrollment Form'!$C641=\"Enroll\",'Enrollment Form'!$AJ641<>\"\"),\"Y\",\"N\")))","v":""},{"$f":"IF($B634=\"N\",\"\",IF(OR('Enrollment Form'!$B641<>\"Subscriber\",'Enrollment Form'!$C641=\"ROC\"),\"-\",IF(AND('Enrollment Form'!$B641=\"Subscriber\",'Enrollment Form'!$C641=\"Enroll\",'Enrollment Form'!$AK641<>\"\"),\"Y\",\"N\")))","v":""},{"$f":"IF($B634=\"N\",\"\",IF(OR('Enrollment Form'!$B641<>\"Subscriber\",'Enrollment Form'!$C641=\"ROC\"),\"-\",IF(AND('Enrollment Form'!$B641=\"Subscriber\",'Enrollment Form'!$C641=\"Enroll\",'Enrollment Form'!$AL641<>\"\"),\"Y\",\"N\")))","v":""},{"$f":"IF($B634=\"N\",\"\",IF(OR('Enrollment Form'!$B641<>\"Subscriber\",'Enrollment Form'!$C641=\"ROC\"),\"-\",IF(AND('Enrollment Form'!$B641=\"Subscriber\",'Enrollment Form'!$C641=\"Enroll\",'Enrollment Form'!$AP641<>\"\"),\"Y\",\"N\")))","v":""},{"$f":"IF($B634=\"N\",\"\",IF(OR('Enrollment Form'!$B641<>\"Subscriber\",'Enrollment Form'!$C641=\"ROC\"),\"-\",IF(AND('Enrollment Form'!$B641=\"Subscriber\",'Enrollment Form'!$C641=\"Enroll\",'Enrollment Form'!$AQ641<>\"\"),\"Y\",\"N\")))","v":""},{"$f":"IF($B634=\"N\",\"\",IF(OR('Enrollment Form'!$B641<>\"Subscriber\",'Enrollment Form'!$C641=\"ROC\"),\"-\",IF(AND('Enrollment Form'!$B641=\"Subscriber\",'Enrollment Form'!$C641=\"Enroll\",'Enrollment Form'!$AS641<>\"\"),\"Y\",\"N\")))","v":""},{"$f":"IF($B634=\"N\",\"\",IF($Q634=\"-\",\"-\",IF(AND($Q634=\"Y\",'Enrollment Form'!$AS641=\"No\"),\"-\",IF(AND($Q634=\"Y\",'Enrollment Form'!$AS641=\"Yes\",'Enrollment Form'!$AT641<>\"\"),\"Y\",\"N\"))))","v":""},{"$f":"IF($B634=\"N\",\"\",IF(OR('Enrollment Form'!$B641<>\"Subscriber\",'Enrollment Form'!$C641=\"ROC\"),\"-\",IF(AND('Enrollment Form'!$B641=\"Subscriber\",'Enrollment Form'!$C641=\"Enroll\",'Enrollment Form'!$CV641<>\"\"),\"Y\",\"N\")))","v":""},{"$f":"IF($B634=\"N\",\"\",IF($S634=\"-\",\"-\",IF(AND($S634=\"Y\",'Enrollment Form'!$CV641=\"No\"),\"-\",IF(AND($S634=\"Y\",'Enrollment Form'!$CV641=\"Yes\",'Enrollment Form'!$CW641<>\"\"),\"Y\",\"N\"))))","v":""},{"$f":"IF(OR('Enrollment Form'!$AY641=\"Yes\",'Enrollment Form'!$AY641=\"\"),\"-\",IF(OR(AND('Enrollment Form'!$AY641=\"No\",ISERROR(FIND(\"HMO\",VLOOKUP('Enrollment Form'!G641,'Enrollment Form'!H$11:J$1000,3,FALSE),1))=FALSE,COUNTA('Enrollment Form'!$AZ641:$BC641)=4),AND('Enrollment Form'!$AY641=\"No\",ISERROR(FIND(\"HMO\",VLOOKUP('Enrollment Form'!G641,'Enrollment Form'!H$11:J$1000,3,FALSE),1))=FALSE,COUNTA('Enrollment Form'!$BT641:$BW641)=4)),\"Y\",\"N\"))","v":"-"},{"$f":"IF($B634=\"N\",\"\",IF('Enrollment Form'!$B641=\"Subscriber\",\"-\",IF(COUNTA('Enrollment Form'!$BL641,'Enrollment Form'!$BN641)=2,\"Y\",\"N\")))","v":""},{"$f":"IF($B634=\"N\",\"\",IF(OR('Enrollment Form'!$AX641=\"\",'Enrollment Form'!$AX641=\"No\"),\"-\",IF(AND('Enrollment Form'!$AX641=\"Yes\",COUNTA('Enrollment Form'!$CR641)=1),\"Y\",\"N\")))","v":""},{"$f":"IF(OR('Enrollment Form'!$CR641=\"\",'Enrollment Form'!$CR641=\"No\"),\"-\",IF(COUNTA('Enrollment Form'!$CT641:$CU641)=2,\"Y\",\"N\"))","v":"-"},{"$f":"IF($B634=\"N\",\"\",IF(COUNTIF('Enrollment Form'!$DG641:$DP641,\"Other\")=COUNTA('Enrollment Form'!$DK641,'Enrollment Form'!$DH641,'Enrollment Form'!$DN641,'Enrollment Form'!$DQ641),\"Y\",\"N\"))","v":""},{"$f":"IF($B634=\"N\",\"\",IF(OR('Enrollment Form'!B641<>\"Subscriber\",'Enrollment Form'!C641=\"ROC\",COUNTIF('Enrollment Form'!AV641:AW641,\"Yes\")>=1),\"-\",IF(AND('Enrollment Form'!C641=\"Enroll\",COUNTIF('Enrollment Form'!AV641:AW641,\"No\")=2,'Enrollment Form'!AX641=\"\"),\"N\",\"Y\")))","v":""},{"$f":"IF(OR(B634=\"N\",'Enrollment Form'!B641<>\"Subscriber\",'Enrollment Form'!C641=\"ROC\",'Enrollment Form'!O641<>\"Multiple of Salary\"),\"-\",IF(COUNTA('Enrollment Form'!T641:U641)<2,\"N\",\"Y\"))","v":"-"},{"$f":"IF(B634=\"N\",\"\",IF(OR('Enrollment Form'!C641=\"ROC\",'Enrollment Form'!B641<>\"Subscriber\",'Enrollment Form'!O641=\"Waive\",'Enrollment Form'!O641=\"\"),\"-\",IF('Enrollment Form'!P641=\"\",\"N\",\"Y\")))","v":""},{"$f":"IF($B634=\"N\",\"\",IF(AND('Enrollment Form'!$C641=\"ROC\",'Enrollment Form'!$DR641<>\"\"),\"Y\",IF(AND('Enrollment Form'!$C641=\"ROC\",'Enrollment Form'!$DR641=\"\"),\"N\",IF(AND('Enrollment Form'!$C641=\"Enroll\",'Enrollment Form'!$B641=\"Subscriber\",'Enrollment Form'!$CX641=\"No\",'Enrollment Form'!$DR641=\"\"),\"N\",IF(AND('Enrollment Form'!$C641=\"Enroll\",'Enrollment Form'!$B641=\"Subscriber\",'Enrollment Form'!$CX641=\"Yes\"),\"-\",\"Y\")))))","v":""},{"$f":"IF($B634=\"N\",\"\",IF(AND('Enrollment Form'!$C641=\"ROC\",'Enrollment Form'!$DS641<>\"\"),\"Y\",IF(AND('Enrollment Form'!$C641=\"ROC\",'Enrollment Form'!$DS641=\"\"),\"N\",IF(AND('Enrollment Form'!$C641=\"Enroll\",'Enrollment Form'!$B641=\"Subscriber\",'Enrollment Form'!$CX641=\"No\",'Enrollment Form'!$DS641=\"\"),\"N\",IF(AND('Enrollment Form'!$C641=\"Enroll\",'Enrollment Form'!$B641=\"Subscriber\",'Enrollment Form'!$CX641=\"Yes\"),\"-\",\"Y\")))))","v":""},{"$f":"IF('Enrollment Form'!AH641=\"\",\"\",IF(ISERROR(SEARCH(\".\",'Enrollment Form'!AH641,SEARCH(\"@\",'Enrollment Form'!AH641))),\"N\",\"Y\"))","v":""},{"$f":"IF(OR($B634=\"N\",'Enrollment Form'!$G641=\"\"),\"\",IF('Enrollment Form'!$B641<>\"Subscriber\",\"-\",IF(COUNTIF('Enrollment Form'!$AV641:$AW641,\"Yes\")=2,\"N\",\"Y\")))","v":""},{"$f":"IF(OR('Enrollment Form'!$CJ641=\"\",'Enrollment Form'!$CJ641=\"No\"),\"-\",IF(AND('Enrollment Form'!$CJ641=\"Yes\",'Enrollment Form'!$CK641=\"\"),\"N\",\"Y\"))","v":"-"},{"$f":"IF(OR('Enrollment Form'!$CL641=\"\",'Enrollment Form'!$CL641=\"No\"),\"-\",IF(AND('Enrollment Form'!$CL641=\"Yes\",'Enrollment Form'!$CM641=\"\"),\"N\",\"Y\"))","v":"-"},{"$f":"IF(OR('Enrollment Form'!$CN641=\"\",'Enrollment Form'!$CN641=\"No\"),\"-\",IF(AND('Enrollment Form'!$CN641=\"Yes\",'Enrollment Form'!$CO641=\"\"),\"N\",\"Y\"))","v":"-"},{"$f":"IF(OR('Enrollment Form'!$CN641=\"\",'Enrollment Form'!$CN641=\"No\"),\"-\",IF(AND('Enrollment Form'!$CN641=\"Yes\",'Enrollment Form'!$CP641=\"\"),\"N\",\"Y\"))","v":"-"},{"$f":"IF('Enrollment Form'!B641<>\"Subscriber\",\"-\",IF(AND('Enrollment Form'!B641=\"Subscriber\",'Enrollment Form'!C641=\"Enroll\",'Enrollment Form'!AA641=\"\"),\"N\",\"Y\"))","v":"-"},{"$f":"IF(OR('Enrollment Form'!B641=\"Subscriber\",'Enrollment Form'!B641=\"\"),\"-\",IF('Enrollment Form'!BP641=\"\",\"N\",\"Y\"))","v":"-"},{"$f":"IF('Enrollment Form'!B641<>\"Subscriber\",\"-\",IF(AND('Enrollment Form'!B641=\"Subscriber\",'Enrollment Form'!G641=\"\"),\"N\",\"Y\"))","v":"-"},{"$f":"IF('Enrollment Form'!A641=\"\",\"\",IF('Enrollment Form'!B641=\"Subscriber\",\"-\",IF(AND('Enrollment Form'!B641<>\"Subscriber\",'Enrollment Form'!G641='Enrollment Form'!H641),\"N\",\"Y\")))","v":""},0]
[642,{"$f":"IF('Enrollment Form'!$A642<>\"\",\"Y\",\"N\")","v":"N"},{"$f":"IF(AND('Enrollment Form'!$B642=\"\",'Enrollment Form'!$C642<>\"\"),\"N\",IF($B635=\"N\",\"\",\"Y\"))","v":""},{"$f":"IF(OR($B635=\"N\",'Enrollment Form'!G642=\"\"),\"\",IF('Enrollment Form'!$B642<>\"Subscriber\",\"\",IF('Enrollment Form'!$G642='Enrollment Form'!$H642,\"Y\",\"N\")))","v":""},{"$f":"IF($B635=\"N\",\"\",IF(AND(COUNTIFS('Enrollment Form'!$H$11:$H$1000,'Enrollment Form'!$H642,'Enrollment Form'!$B$11:$B$1000,'Enrollment Form'!$B642)>1,'Enrollment Form'!$H642<>\"\"),\"N\",\"Y\"))","v":""},{"$f":"IF($B635=\"N\",\"\",IF(LEN('Enrollment Form'!$Y642)=0,\"\",IF(LEN('Enrollment Form'!$Y642)<>5,\"N\",\"Y\")))","v":""},{"$f":"IF($B635=\"N\",\"\",IF(LEN('Enrollment Form'!$AD642=0),\"\",IF(LEN('Enrollment Form'!$AD642)<>5,\"N\",\"Y\")))","v":""},{"$f":"IF($B635=\"N\",\"\",IF(LEN('Enrollment Form'!$BS642=0),\"\",IF(LEN('Enrollment Form'!$BS642)<>5,\"N\",\"Y\")))","v":""},{"$f":"IF($B635=\"N\",\"\",IF(LEN('Enrollment Form'!$AE642)=0,\"\",IF(LEN('Enrollment Form'!$AE642)<>10,\"N\",\"Y\")))","v":""},{"$f":"IF($B635=\"N\",\"\",IF(LEN('Enrollment Form'!$AF642)=0,\"\",IF(LEN('Enrollment Form'!$AF642)<>10,\"N\",\"Y\")))","v":""},{"$f":"IF('Enrollment Form'!$O642<>\"Graded\",\"-\",IF(AND('Enrollment Form'!$O642=\"Graded\",'Enrollment Form'!$AR642<>\"\"),\"Y\",\"N\"))","v":"-"},{"$f":"IF($B635=\"N\",\"\",IF(OR('Enrollment Form'!$B642<>\"Subscriber\",'Enrollment Form'!$C642=\"ROC\"),\"-\",IF(AND('Enrollment Form'!$B642=\"Subscriber\",'Enrollment Form'!$C642=\"Enroll\",'Enrollment Form'!$AJ642<>\"\"),\"Y\",\"N\")))","v":""},{"$f":"IF($B635=\"N\",\"\",IF(OR('Enrollment Form'!$B642<>\"Subscriber\",'Enrollment Form'!$C642=\"ROC\"),\"-\",IF(AND('Enrollment Form'!$B642=\"Subscriber\",'Enrollment Form'!$C642=\"Enroll\",'Enrollment Form'!$AK642<>\"\"),\"Y\",\"N\")))","v":""},{"$f":"IF($B635=\"N\",\"\",IF(OR('Enrollment Form'!$B642<>\"Subscriber\",'Enrollment Form'!$C642=\"ROC\"),\"-\",IF(AND('Enrollment Form'!$B642=\"Subscriber\",'Enrollment Form'!$C642=\"Enroll\",'Enrollment Form'!$AL642<>\"\"),\"Y\",\"N\")))","v":""},{"$f":"IF($B635=\"N\",\"\",IF(OR('Enrollment Form'!$B642<>\"Subscriber\",'Enrollment Form'!$C642=\"ROC\"),\"-\",IF(AND('Enrollment Form'!$B642=\"Subscriber\",'Enrollment Form'!$C642=\"Enroll\",'Enrollment Form'!$AP642<>\"\"),\"Y\",\"N\")))","v":""},{"$f":"IF($B635=\"N\",\"\",IF(OR('Enrollment Form'!$B642<>\"Subscriber\",'Enrollment Form'!$C642=\"ROC\"),\"-\",IF(AND('Enrollment Form'!$B642=\"Subscriber\",'Enrollment Form'!$C642=\"Enroll\",'Enrollment Form'!$AQ642<>\"\"),\"Y\",\"N\")))","v":""},{"$f":"IF($B635=\"N\",\"\",IF(OR('Enrollment Form'!$B642<>\"Subscriber\",'Enrollment Form'!$C642=\"ROC\"),\"-\",IF(AND('Enrollment Form'!$B642=\"Subscriber\",'Enrollment Form'!$C642=\"Enroll\",'Enrollment Form'!$AS642<>\"\"),\"Y\",\"N\")))","v":""},{"$f":"IF($B635=\"N\",\"\",IF($Q635=\"-\",\"-\",IF(AND($Q635=\"Y\",'Enrollment Form'!$AS642=\"No\"),\"-\",IF(AND($Q635=\"Y\",'Enrollment Form'!$AS642=\"Yes\",'Enrollment Form'!$AT642<>\"\"),\"Y\",\"N\"))))","v":""},{"$f":"IF($B635=\"N\",\"\",IF(OR('Enrollment Form'!$B642<>\"Subscriber\",'Enrollment Form'!$C642=\"ROC\"),\"-\",IF(AND('Enrollment Form'!$B642=\"Subscriber\",'Enrollment Form'!$C642=\"Enroll\",'Enrollment Form'!$CV642<>\"\"),\"Y\",\"N\")))","v":""},{"$f":"IF($B635=\"N\",\"\",IF($S635=\"-\",\"-\",IF(AND($S635=\"Y\",'Enrollment Form'!$CV642=\"No\"),\"-\",IF(AND($S635=\"Y\",'Enrollment Form'!$CV642=\"Yes\",'Enrollment Form'!$CW642<>\"\"),\"Y\",\"N\"))))","v":""},{"$f":"IF(OR('Enrollment Form'!$AY642=\"Yes\",'Enrollment Form'!$AY642=\"\"),\"-\",IF(OR(AND('Enrollment Form'!$AY642=\"No\",ISERROR(FIND(\"HMO\",VLOOKUP('Enrollment Form'!G642,'Enrollment Form'!H$11:J$1000,3,FALSE),1))=FALSE,COUNTA('Enrollment Form'!$AZ642:$BC642)=4),AND('Enrollment Form'!$AY642=\"No\",ISERROR(FIND(\"HMO\",VLOOKUP('Enrollment Form'!G642,'Enrollment Form'!H$11:J$1000,3,FALSE),1))=FALSE,COUNTA('Enrollment Form'!$BT642:$BW642)=4)),\"Y\",\"N\"))","v":"-"},{"$f":"IF($B635=\"N\",\"\",IF('Enrollment Form'!$B642=\"Subscriber\",\"-\",IF(COUNTA('Enrollment Form'!$BL642,'Enrollment Form'!$BN642)=2,\"Y\",\"N\")))","v":""},{"$f":"IF($B635=\"N\",\"\",IF(OR('Enrollment Form'!$AX642=\"\",'Enrollment Form'!$AX642=\"No\"),\"-\",IF(AND('Enrollment Form'!$AX642=\"Yes\",COUNTA('Enrollment Form'!$CR642)=1),\"Y\",\"N\")))","v":""},{"$f":"IF(OR('Enrollment Form'!$CR642=\"\",'Enrollment Form'!$CR642=\"No\"),\"-\",IF(COUNTA('Enrollment Form'!$CT642:$CU642)=2,\"Y\",\"N\"))","v":"-"},{"$f":"IF($B635=\"N\",\"\",IF(COUNTIF('Enrollment Form'!$DG642:$DP642,\"Other\")=COUNTA('Enrollment Form'!$DK642,'Enrollment Form'!$DH642,'Enrollment Form'!$DN642,'Enrollment Form'!$DQ642),\"Y\",\"N\"))","v":""},{"$f":"IF($B635=\"N\",\"\",IF(OR('Enrollment Form'!B642<>\"Subscriber\",'Enrollment Form'!C642=\"ROC\",COUNTIF('Enrollment Form'!AV642:AW642,\"Yes\")>=1),\"-\",IF(AND('Enrollment Form'!C642=\"Enroll\",COUNTIF('Enrollment Form'!AV642:AW642,\"No\")=2,'Enrollment Form'!AX642=\"\"),\"N\",\"Y\")))","v":""},{"$f":"IF(OR(B635=\"N\",'Enrollment Form'!B642<>\"Subscriber\",'Enrollment Form'!C642=\"ROC\",'Enrollment Form'!O642<>\"Multiple of Salary\"),\"-\",IF(COUNTA('Enrollment Form'!T642:U642)<2,\"N\",\"Y\"))","v":"-"},{"$f":"IF(B635=\"N\",\"\",IF(OR('Enrollment Form'!C642=\"ROC\",'Enrollment Form'!B642<>\"Subscriber\",'Enrollment Form'!O642=\"Waive\",'Enrollment Form'!O642=\"\"),\"-\",IF('Enrollment Form'!P642=\"\",\"N\",\"Y\")))","v":""},{"$f":"IF($B635=\"N\",\"\",IF(AND('Enrollment Form'!$C642=\"ROC\",'Enrollment Form'!$DR642<>\"\"),\"Y\",IF(AND('Enrollment Form'!$C642=\"ROC\",'Enrollment Form'!$DR642=\"\"),\"N\",IF(AND('Enrollment Form'!$C642=\"Enroll\",'Enrollment Form'!$B642=\"Subscriber\",'Enrollment Form'!$CX642=\"No\",'Enrollment Form'!$DR642=\"\"),\"N\",IF(AND('Enrollment Form'!$C642=\"Enroll\",'Enrollment Form'!$B642=\"Subscriber\",'Enrollment Form'!$CX642=\"Yes\"),\"-\",\"Y\")))))","v":""},{"$f":"IF($B635=\"N\",\"\",IF(AND('Enrollment Form'!$C642=\"ROC\",'Enrollment Form'!$DS642<>\"\"),\"Y\",IF(AND('Enrollment Form'!$C642=\"ROC\",'Enrollment Form'!$DS642=\"\"),\"N\",IF(AND('Enrollment Form'!$C642=\"Enroll\",'Enrollment Form'!$B642=\"Subscriber\",'Enrollment Form'!$CX642=\"No\",'Enrollment Form'!$DS642=\"\"),\"N\",IF(AND('Enrollment Form'!$C642=\"Enroll\",'Enrollment Form'!$B642=\"Subscriber\",'Enrollment Form'!$CX642=\"Yes\"),\"-\",\"Y\")))))","v":""},{"$f":"IF('Enrollment Form'!AH642=\"\",\"\",IF(ISERROR(SEARCH(\".\",'Enrollment Form'!AH642,SEARCH(\"@\",'Enrollment Form'!AH642))),\"N\",\"Y\"))","v":""},{"$f":"IF(OR($B635=\"N\",'Enrollment Form'!$G642=\"\"),\"\",IF('Enrollment Form'!$B642<>\"Subscriber\",\"-\",IF(COUNTIF('Enrollment Form'!$AV642:$AW642,\"Yes\")=2,\"N\",\"Y\")))","v":""},{"$f":"IF(OR('Enrollment Form'!$CJ642=\"\",'Enrollment Form'!$CJ642=\"No\"),\"-\",IF(AND('Enrollment Form'!$CJ642=\"Yes\",'Enrollment Form'!$CK642=\"\"),\"N\",\"Y\"))","v":"-"},{"$f":"IF(OR('Enrollment Form'!$CL642=\"\",'Enrollment Form'!$CL642=\"No\"),\"-\",IF(AND('Enrollment Form'!$CL642=\"Yes\",'Enrollment Form'!$CM642=\"\"),\"N\",\"Y\"))","v":"-"},{"$f":"IF(OR('Enrollment Form'!$CN642=\"\",'Enrollment Form'!$CN642=\"No\"),\"-\",IF(AND('Enrollment Form'!$CN642=\"Yes\",'Enrollment Form'!$CO642=\"\"),\"N\",\"Y\"))","v":"-"},{"$f":"IF(OR('Enrollment Form'!$CN642=\"\",'Enrollment Form'!$CN642=\"No\"),\"-\",IF(AND('Enrollment Form'!$CN642=\"Yes\",'Enrollment Form'!$CP642=\"\"),\"N\",\"Y\"))","v":"-"},{"$f":"IF('Enrollment Form'!B642<>\"Subscriber\",\"-\",IF(AND('Enrollment Form'!B642=\"Subscriber\",'Enrollment Form'!C642=\"Enroll\",'Enrollment Form'!AA642=\"\"),\"N\",\"Y\"))","v":"-"},{"$f":"IF(OR('Enrollment Form'!B642=\"Subscriber\",'Enrollment Form'!B642=\"\"),\"-\",IF('Enrollment Form'!BP642=\"\",\"N\",\"Y\"))","v":"-"},{"$f":"IF('Enrollment Form'!B642<>\"Subscriber\",\"-\",IF(AND('Enrollment Form'!B642=\"Subscriber\",'Enrollment Form'!G642=\"\"),\"N\",\"Y\"))","v":"-"},{"$f":"IF('Enrollment Form'!A642=\"\",\"\",IF('Enrollment Form'!B642=\"Subscriber\",\"-\",IF(AND('Enrollment Form'!B642<>\"Subscriber\",'Enrollment Form'!G642='Enrollment Form'!H642),\"N\",\"Y\")))","v":""},0]
[643,{"$f":"IF('Enrollment Form'!$A643<>\"\",\"Y\",\"N\")","v":"N"},{"$f":"IF(AND('Enrollment Form'!$B643=\"\",'Enrollment Form'!$C643<>\"\"),\"N\",IF($B636=\"N\",\"\",\"Y\"))","v":""},{"$f":"IF(OR($B636=\"N\",'Enrollment Form'!G643=\"\"),\"\",IF('Enrollment Form'!$B643<>\"Subscriber\",\"\",IF('Enrollment Form'!$G643='Enrollment Form'!$H643,\"Y\",\"N\")))","v":""},{"$f":"IF($B636=\"N\",\"\",IF(AND(COUNTIFS('Enrollment Form'!$H$11:$H$1000,'Enrollment Form'!$H643,'Enrollment Form'!$B$11:$B$1000,'Enrollment Form'!$B643)>1,'Enrollment Form'!$H643<>\"\"),\"N\",\"Y\"))","v":""},{"$f":"IF($B636=\"N\",\"\",IF(LEN('Enrollment Form'!$Y643)=0,\"\",IF(LEN('Enrollment Form'!$Y643)<>5,\"N\",\"Y\")))","v":""},{"$f":"IF($B636=\"N\",\"\",IF(LEN('Enrollment Form'!$AD643=0),\"\",IF(LEN('Enrollment Form'!$AD643)<>5,\"N\",\"Y\")))","v":""},{"$f":"IF($B636=\"N\",\"\",IF(LEN('Enrollment Form'!$BS643=0),\"\",IF(LEN('Enrollment Form'!$BS643)<>5,\"N\",\"Y\")))","v":""},{"$f":"IF($B636=\"N\",\"\",IF(LEN('Enrollment Form'!$AE643)=0,\"\",IF(LEN('Enrollment Form'!$AE643)<>10,\"N\",\"Y\")))","v":""},{"$f":"IF($B636=\"N\",\"\",IF(LEN('Enrollment Form'!$AF643)=0,\"\",IF(LEN('Enrollment Form'!$AF643)<>10,\"N\",\"Y\")))","v":""},{"$f":"IF('Enrollment Form'!$O643<>\"Graded\",\"-\",IF(AND('Enrollment Form'!$O643=\"Graded\",'Enrollment Form'!$AR643<>\"\"),\"Y\",\"N\"))","v":"-"},{"$f":"IF($B636=\"N\",\"\",IF(OR('Enrollment Form'!$B643<>\"Subscriber\",'Enrollment Form'!$C643=\"ROC\"),\"-\",IF(AND('Enrollment Form'!$B643=\"Subscriber\",'Enrollment Form'!$C643=\"Enroll\",'Enrollment Form'!$AJ643<>\"\"),\"Y\",\"N\")))","v":""},{"$f":"IF($B636=\"N\",\"\",IF(OR('Enrollment Form'!$B643<>\"Subscriber\",'Enrollment Form'!$C643=\"ROC\"),\"-\",IF(AND('Enrollment Form'!$B643=\"Subscriber\",'Enrollment Form'!$C643=\"Enroll\",'Enrollment Form'!$AK643<>\"\"),\"Y\",\"N\")))","v":""},{"$f":"IF($B636=\"N\",\"\",IF(OR('Enrollment Form'!$B643<>\"Subscriber\",'Enrollment Form'!$C643=\"ROC\"),\"-\",IF(AND('Enrollment Form'!$B643=\"Subscriber\",'Enrollment Form'!$C643=\"Enroll\",'Enrollment Form'!$AL643<>\"\"),\"Y\",\"N\")))","v":""},{"$f":"IF($B636=\"N\",\"\",IF(OR('Enrollment Form'!$B643<>\"Subscriber\",'Enrollment Form'!$C643=\"ROC\"),\"-\",IF(AND('Enrollment Form'!$B643=\"Subscriber\",'Enrollment Form'!$C643=\"Enroll\",'Enrollment Form'!$AP643<>\"\"),\"Y\",\"N\")))","v":""},{"$f":"IF($B636=\"N\",\"\",IF(OR('Enrollment Form'!$B643<>\"Subscriber\",'Enrollment Form'!$C643=\"ROC\"),\"-\",IF(AND('Enrollment Form'!$B643=\"Subscriber\",'Enrollment Form'!$C643=\"Enroll\",'Enrollment Form'!$AQ643<>\"\"),\"Y\",\"N\")))","v":""},{"$f":"IF($B636=\"N\",\"\",IF(OR('Enrollment Form'!$B643<>\"Subscriber\",'Enrollment Form'!$C643=\"ROC\"),\"-\",IF(AND('Enrollment Form'!$B643=\"Subscriber\",'Enrollment Form'!$C643=\"Enroll\",'Enrollment Form'!$AS643<>\"\"),\"Y\",\"N\")))","v":""},{"$f":"IF($B636=\"N\",\"\",IF($Q636=\"-\",\"-\",IF(AND($Q636=\"Y\",'Enrollment Form'!$AS643=\"No\"),\"-\",IF(AND($Q636=\"Y\",'Enrollment Form'!$AS643=\"Yes\",'Enrollment Form'!$AT643<>\"\"),\"Y\",\"N\"))))","v":""},{"$f":"IF($B636=\"N\",\"\",IF(OR('Enrollment Form'!$B643<>\"Subscriber\",'Enrollment Form'!$C643=\"ROC\"),\"-\",IF(AND('Enrollment Form'!$B643=\"Subscriber\",'Enrollment Form'!$C643=\"Enroll\",'Enrollment Form'!$CV643<>\"\"),\"Y\",\"N\")))","v":""},{"$f":"IF($B636=\"N\",\"\",IF($S636=\"-\",\"-\",IF(AND($S636=\"Y\",'Enrollment Form'!$CV643=\"No\"),\"-\",IF(AND($S636=\"Y\",'Enrollment Form'!$CV643=\"Yes\",'Enrollment Form'!$CW643<>\"\"),\"Y\",\"N\"))))","v":""},{"$f":"IF(OR('Enrollment Form'!$AY643=\"Yes\",'Enrollment Form'!$AY643=\"\"),\"-\",IF(OR(AND('Enrollment Form'!$AY643=\"No\",ISERROR(FIND(\"HMO\",VLOOKUP('Enrollment Form'!G643,'Enrollment Form'!H$11:J$1000,3,FALSE),1))=FALSE,COUNTA('Enrollment Form'!$AZ643:$BC643)=4),AND('Enrollment Form'!$AY643=\"No\",ISERROR(FIND(\"HMO\",VLOOKUP('Enrollment Form'!G643,'Enrollment Form'!H$11:J$1000,3,FALSE),1))=FALSE,COUNTA('Enrollment Form'!$BT643:$BW643)=4)),\"Y\",\"N\"))","v":"-"},{"$f":"IF($B636=\"N\",\"\",IF('Enrollment Form'!$B643=\"Subscriber\",\"-\",IF(COUNTA('Enrollment Form'!$BL643,'Enrollment Form'!$BN643)=2,\"Y\",\"N\")))","v":""},{"$f":"IF($B636=\"N\",\"\",IF(OR('Enrollment Form'!$AX643=\"\",'Enrollment Form'!$AX643=\"No\"),\"-\",IF(AND('Enrollment Form'!$AX643=\"Yes\",COUNTA('Enrollment Form'!$CR643)=1),\"Y\",\"N\")))","v":""},{"$f":"IF(OR('Enrollment Form'!$CR643=\"\",'Enrollment Form'!$CR643=\"No\"),\"-\",IF(COUNTA('Enrollment Form'!$CT643:$CU643)=2,\"Y\",\"N\"))","v":"-"},{"$f":"IF($B636=\"N\",\"\",IF(COUNTIF('Enrollment Form'!$DG643:$DP643,\"Other\")=COUNTA('Enrollment Form'!$DK643,'Enrollment Form'!$DH643,'Enrollment Form'!$DN643,'Enrollment Form'!$DQ643),\"Y\",\"N\"))","v":""},{"$f":"IF($B636=\"N\",\"\",IF(OR('Enrollment Form'!B643<>\"Subscriber\",'Enrollment Form'!C643=\"ROC\",COUNTIF('Enrollment Form'!AV643:AW643,\"Yes\")>=1),\"-\",IF(AND('Enrollment Form'!C643=\"Enroll\",COUNTIF('Enrollment Form'!AV643:AW643,\"No\")=2,'Enrollment Form'!AX643=\"\"),\"N\",\"Y\")))","v":""},{"$f":"IF(OR(B636=\"N\",'Enrollment Form'!B643<>\"Subscriber\",'Enrollment Form'!C643=\"ROC\",'Enrollment Form'!O643<>\"Multiple of Salary\"),\"-\",IF(COUNTA('Enrollment Form'!T643:U643)<2,\"N\",\"Y\"))","v":"-"},{"$f":"IF(B636=\"N\",\"\",IF(OR('Enrollment Form'!C643=\"ROC\",'Enrollment Form'!B643<>\"Subscriber\",'Enrollment Form'!O643=\"Waive\",'Enrollment Form'!O643=\"\"),\"-\",IF('Enrollment Form'!P643=\"\",\"N\",\"Y\")))","v":""},{"$f":"IF($B636=\"N\",\"\",IF(AND('Enrollment Form'!$C643=\"ROC\",'Enrollment Form'!$DR643<>\"\"),\"Y\",IF(AND('Enrollment Form'!$C643=\"ROC\",'Enrollment Form'!$DR643=\"\"),\"N\",IF(AND('Enrollment Form'!$C643=\"Enroll\",'Enrollment Form'!$B643=\"Subscriber\",'Enrollment Form'!$CX643=\"No\",'Enrollment Form'!$DR643=\"\"),\"N\",IF(AND('Enrollment Form'!$C643=\"Enroll\",'Enrollment Form'!$B643=\"Subscriber\",'Enrollment Form'!$CX643=\"Yes\"),\"-\",\"Y\")))))","v":""},{"$f":"IF($B636=\"N\",\"\",IF(AND('Enrollment Form'!$C643=\"ROC\",'Enrollment Form'!$DS643<>\"\"),\"Y\",IF(AND('Enrollment Form'!$C643=\"ROC\",'Enrollment Form'!$DS643=\"\"),\"N\",IF(AND('Enrollment Form'!$C643=\"Enroll\",'Enrollment Form'!$B643=\"Subscriber\",'Enrollment Form'!$CX643=\"No\",'Enrollment Form'!$DS643=\"\"),\"N\",IF(AND('Enrollment Form'!$C643=\"Enroll\",'Enrollment Form'!$B643=\"Subscriber\",'Enrollment Form'!$CX643=\"Yes\"),\"-\",\"Y\")))))","v":""},{"$f":"IF('Enrollment Form'!AH643=\"\",\"\",IF(ISERROR(SEARCH(\".\",'Enrollment Form'!AH643,SEARCH(\"@\",'Enrollment Form'!AH643))),\"N\",\"Y\"))","v":""},{"$f":"IF(OR($B636=\"N\",'Enrollment Form'!$G643=\"\"),\"\",IF('Enrollment Form'!$B643<>\"Subscriber\",\"-\",IF(COUNTIF('Enrollment Form'!$AV643:$AW643,\"Yes\")=2,\"N\",\"Y\")))","v":""},{"$f":"IF(OR('Enrollment Form'!$CJ643=\"\",'Enrollment Form'!$CJ643=\"No\"),\"-\",IF(AND('Enrollment Form'!$CJ643=\"Yes\",'Enrollment Form'!$CK643=\"\"),\"N\",\"Y\"))","v":"-"},{"$f":"IF(OR('Enrollment Form'!$CL643=\"\",'Enrollment Form'!$CL643=\"No\"),\"-\",IF(AND('Enrollment Form'!$CL643=\"Yes\",'Enrollment Form'!$CM643=\"\"),\"N\",\"Y\"))","v":"-"},{"$f":"IF(OR('Enrollment Form'!$CN643=\"\",'Enrollment Form'!$CN643=\"No\"),\"-\",IF(AND('Enrollment Form'!$CN643=\"Yes\",'Enrollment Form'!$CO643=\"\"),\"N\",\"Y\"))","v":"-"},{"$f":"IF(OR('Enrollment Form'!$CN643=\"\",'Enrollment Form'!$CN643=\"No\"),\"-\",IF(AND('Enrollment Form'!$CN643=\"Yes\",'Enrollment Form'!$CP643=\"\"),\"N\",\"Y\"))","v":"-"},{"$f":"IF('Enrollment Form'!B643<>\"Subscriber\",\"-\",IF(AND('Enrollment Form'!B643=\"Subscriber\",'Enrollment Form'!C643=\"Enroll\",'Enrollment Form'!AA643=\"\"),\"N\",\"Y\"))","v":"-"},{"$f":"IF(OR('Enrollment Form'!B643=\"Subscriber\",'Enrollment Form'!B643=\"\"),\"-\",IF('Enrollment Form'!BP643=\"\",\"N\",\"Y\"))","v":"-"},{"$f":"IF('Enrollment Form'!B643<>\"Subscriber\",\"-\",IF(AND('Enrollment Form'!B643=\"Subscriber\",'Enrollment Form'!G643=\"\"),\"N\",\"Y\"))","v":"-"},{"$f":"IF('Enrollment Form'!A643=\"\",\"\",IF('Enrollment Form'!B643=\"Subscriber\",\"-\",IF(AND('Enrollment Form'!B643<>\"Subscriber\",'Enrollment Form'!G643='Enrollment Form'!H643),\"N\",\"Y\")))","v":""},0]
[644,{"$f":"IF('Enrollment Form'!$A644<>\"\",\"Y\",\"N\")","v":"N"},{"$f":"IF(AND('Enrollment Form'!$B644=\"\",'Enrollment Form'!$C644<>\"\"),\"N\",IF($B637=\"N\",\"\",\"Y\"))","v":""},{"$f":"IF(OR($B637=\"N\",'Enrollment Form'!G644=\"\"),\"\",IF('Enrollment Form'!$B644<>\"Subscriber\",\"\",IF('Enrollment Form'!$G644='Enrollment Form'!$H644,\"Y\",\"N\")))","v":""},{"$f":"IF($B637=\"N\",\"\",IF(AND(COUNTIFS('Enrollment Form'!$H$11:$H$1000,'Enrollment Form'!$H644,'Enrollment Form'!$B$11:$B$1000,'Enrollment Form'!$B644)>1,'Enrollment Form'!$H644<>\"\"),\"N\",\"Y\"))","v":""},{"$f":"IF($B637=\"N\",\"\",IF(LEN('Enrollment Form'!$Y644)=0,\"\",IF(LEN('Enrollment Form'!$Y644)<>5,\"N\",\"Y\")))","v":""},{"$f":"IF($B637=\"N\",\"\",IF(LEN('Enrollment Form'!$AD644=0),\"\",IF(LEN('Enrollment Form'!$AD644)<>5,\"N\",\"Y\")))","v":""},{"$f":"IF($B637=\"N\",\"\",IF(LEN('Enrollment Form'!$BS644=0),\"\",IF(LEN('Enrollment Form'!$BS644)<>5,\"N\",\"Y\")))","v":""},{"$f":"IF($B637=\"N\",\"\",IF(LEN('Enrollment Form'!$AE644)=0,\"\",IF(LEN('Enrollment Form'!$AE644)<>10,\"N\",\"Y\")))","v":""},{"$f":"IF($B637=\"N\",\"\",IF(LEN('Enrollment Form'!$AF644)=0,\"\",IF(LEN('Enrollment Form'!$AF644)<>10,\"N\",\"Y\")))","v":""},{"$f":"IF('Enrollment Form'!$O644<>\"Graded\",\"-\",IF(AND('Enrollment Form'!$O644=\"Graded\",'Enrollment Form'!$AR644<>\"\"),\"Y\",\"N\"))","v":"-"},{"$f":"IF($B637=\"N\",\"\",IF(OR('Enrollment Form'!$B644<>\"Subscriber\",'Enrollment Form'!$C644=\"ROC\"),\"-\",IF(AND('Enrollment Form'!$B644=\"Subscriber\",'Enrollment Form'!$C644=\"Enroll\",'Enrollment Form'!$AJ644<>\"\"),\"Y\",\"N\")))","v":""},{"$f":"IF($B637=\"N\",\"\",IF(OR('Enrollment Form'!$B644<>\"Subscriber\",'Enrollment Form'!$C644=\"ROC\"),\"-\",IF(AND('Enrollment Form'!$B644=\"Subscriber\",'Enrollment Form'!$C644=\"Enroll\",'Enrollment Form'!$AK644<>\"\"),\"Y\",\"N\")))","v":""},{"$f":"IF($B637=\"N\",\"\",IF(OR('Enrollment Form'!$B644<>\"Subscriber\",'Enrollment Form'!$C644=\"ROC\"),\"-\",IF(AND('Enrollment Form'!$B644=\"Subscriber\",'Enrollment Form'!$C644=\"Enroll\",'Enrollment Form'!$AL644<>\"\"),\"Y\",\"N\")))","v":""},{"$f":"IF($B637=\"N\",\"\",IF(OR('Enrollment Form'!$B644<>\"Subscriber\",'Enrollment Form'!$C644=\"ROC\"),\"-\",IF(AND('Enrollment Form'!$B644=\"Subscriber\",'Enrollment Form'!$C644=\"Enroll\",'Enrollment Form'!$AP644<>\"\"),\"Y\",\"N\")))","v":""},{"$f":"IF($B637=\"N\",\"\",IF(OR('Enrollment Form'!$B644<>\"Subscriber\",'Enrollment Form'!$C644=\"ROC\"),\"-\",IF(AND('Enrollment Form'!$B644=\"Subscriber\",'Enrollment Form'!$C644=\"Enroll\",'Enrollment Form'!$AQ644<>\"\"),\"Y\",\"N\")))","v":""},{"$f":"IF($B637=\"N\",\"\",IF(OR('Enrollment Form'!$B644<>\"Subscriber\",'Enrollment Form'!$C644=\"ROC\"),\"-\",IF(AND('Enrollment Form'!$B644=\"Subscriber\",'Enrollment Form'!$C644=\"Enroll\",'Enrollment Form'!$AS644<>\"\"),\"Y\",\"N\")))","v":""},{"$f":"IF($B637=\"N\",\"\",IF($Q637=\"-\",\"-\",IF(AND($Q637=\"Y\",'Enrollment Form'!$AS644=\"No\"),\"-\",IF(AND($Q637=\"Y\",'Enrollment Form'!$AS644=\"Yes\",'Enrollment Form'!$AT644<>\"\"),\"Y\",\"N\"))))","v":""},{"$f":"IF($B637=\"N\",\"\",IF(OR('Enrollment Form'!$B644<>\"Subscriber\",'Enrollment Form'!$C644=\"ROC\"),\"-\",IF(AND('Enrollment Form'!$B644=\"Subscriber\",'Enrollment Form'!$C644=\"Enroll\",'Enrollment Form'!$CV644<>\"\"),\"Y\",\"N\")))","v":""},{"$f":"IF($B637=\"N\",\"\",IF($S637=\"-\",\"-\",IF(AND($S637=\"Y\",'Enrollment Form'!$CV644=\"No\"),\"-\",IF(AND($S637=\"Y\",'Enrollment Form'!$CV644=\"Yes\",'Enrollment Form'!$CW644<>\"\"),\"Y\",\"N\"))))","v":""},{"$f":"IF(OR('Enrollment Form'!$AY644=\"Yes\",'Enrollment Form'!$AY644=\"\"),\"-\",IF(OR(AND('Enrollment Form'!$AY644=\"No\",ISERROR(FIND(\"HMO\",VLOOKUP('Enrollment Form'!G644,'Enrollment Form'!H$11:J$1000,3,FALSE),1))=FALSE,COUNTA('Enrollment Form'!$AZ644:$BC644)=4),AND('Enrollment Form'!$AY644=\"No\",ISERROR(FIND(\"HMO\",VLOOKUP('Enrollment Form'!G644,'Enrollment Form'!H$11:J$1000,3,FALSE),1))=FALSE,COUNTA('Enrollment Form'!$BT644:$BW644)=4)),\"Y\",\"N\"))","v":"-"},{"$f":"IF($B637=\"N\",\"\",IF('Enrollment Form'!$B644=\"Subscriber\",\"-\",IF(COUNTA('Enrollment Form'!$BL644,'Enrollment Form'!$BN644)=2,\"Y\",\"N\")))","v":""},{"$f":"IF($B637=\"N\",\"\",IF(OR('Enrollment Form'!$AX644=\"\",'Enrollment Form'!$AX644=\"No\"),\"-\",IF(AND('Enrollment Form'!$AX644=\"Yes\",COUNTA('Enrollment Form'!$CR644)=1),\"Y\",\"N\")))","v":""},{"$f":"IF(OR('Enrollment Form'!$CR644=\"\",'Enrollment Form'!$CR644=\"No\"),\"-\",IF(COUNTA('Enrollment Form'!$CT644:$CU644)=2,\"Y\",\"N\"))","v":"-"},{"$f":"IF($B637=\"N\",\"\",IF(COUNTIF('Enrollment Form'!$DG644:$DP644,\"Other\")=COUNTA('Enrollment Form'!$DK644,'Enrollment Form'!$DH644,'Enrollment Form'!$DN644,'Enrollment Form'!$DQ644),\"Y\",\"N\"))","v":""},{"$f":"IF($B637=\"N\",\"\",IF(OR('Enrollment Form'!B644<>\"Subscriber\",'Enrollment Form'!C644=\"ROC\",COUNTIF('Enrollment Form'!AV644:AW644,\"Yes\")>=1),\"-\",IF(AND('Enrollment Form'!C644=\"Enroll\",COUNTIF('Enrollment Form'!AV644:AW644,\"No\")=2,'Enrollment Form'!AX644=\"\"),\"N\",\"Y\")))","v":""},{"$f":"IF(OR(B637=\"N\",'Enrollment Form'!B644<>\"Subscriber\",'Enrollment Form'!C644=\"ROC\",'Enrollment Form'!O644<>\"Multiple of Salary\"),\"-\",IF(COUNTA('Enrollment Form'!T644:U644)<2,\"N\",\"Y\"))","v":"-"},{"$f":"IF(B637=\"N\",\"\",IF(OR('Enrollment Form'!C644=\"ROC\",'Enrollment Form'!B644<>\"Subscriber\",'Enrollment Form'!O644=\"Waive\",'Enrollment Form'!O644=\"\"),\"-\",IF('Enrollment Form'!P644=\"\",\"N\",\"Y\")))","v":""},{"$f":"IF($B637=\"N\",\"\",IF(AND('Enrollment Form'!$C644=\"ROC\",'Enrollment Form'!$DR644<>\"\"),\"Y\",IF(AND('Enrollment Form'!$C644=\"ROC\",'Enrollment Form'!$DR644=\"\"),\"N\",IF(AND('Enrollment Form'!$C644=\"Enroll\",'Enrollment Form'!$B644=\"Subscriber\",'Enrollment Form'!$CX644=\"No\",'Enrollment Form'!$DR644=\"\"),\"N\",IF(AND('Enrollment Form'!$C644=\"Enroll\",'Enrollment Form'!$B644=\"Subscriber\",'Enrollment Form'!$CX644=\"Yes\"),\"-\",\"Y\")))))","v":""},{"$f":"IF($B637=\"N\",\"\",IF(AND('Enrollment Form'!$C644=\"ROC\",'Enrollment Form'!$DS644<>\"\"),\"Y\",IF(AND('Enrollment Form'!$C644=\"ROC\",'Enrollment Form'!$DS644=\"\"),\"N\",IF(AND('Enrollment Form'!$C644=\"Enroll\",'Enrollment Form'!$B644=\"Subscriber\",'Enrollment Form'!$CX644=\"No\",'Enrollment Form'!$DS644=\"\"),\"N\",IF(AND('Enrollment Form'!$C644=\"Enroll\",'Enrollment Form'!$B644=\"Subscriber\",'Enrollment Form'!$CX644=\"Yes\"),\"-\",\"Y\")))))","v":""},{"$f":"IF('Enrollment Form'!AH644=\"\",\"\",IF(ISERROR(SEARCH(\".\",'Enrollment Form'!AH644,SEARCH(\"@\",'Enrollment Form'!AH644))),\"N\",\"Y\"))","v":""},{"$f":"IF(OR($B637=\"N\",'Enrollment Form'!$G644=\"\"),\"\",IF('Enrollment Form'!$B644<>\"Subscriber\",\"-\",IF(COUNTIF('Enrollment Form'!$AV644:$AW644,\"Yes\")=2,\"N\",\"Y\")))","v":""},{"$f":"IF(OR('Enrollment Form'!$CJ644=\"\",'Enrollment Form'!$CJ644=\"No\"),\"-\",IF(AND('Enrollment Form'!$CJ644=\"Yes\",'Enrollment Form'!$CK644=\"\"),\"N\",\"Y\"))","v":"-"},{"$f":"IF(OR('Enrollment Form'!$CL644=\"\",'Enrollment Form'!$CL644=\"No\"),\"-\",IF(AND('Enrollment Form'!$CL644=\"Yes\",'Enrollment Form'!$CM644=\"\"),\"N\",\"Y\"))","v":"-"},{"$f":"IF(OR('Enrollment Form'!$CN644=\"\",'Enrollment Form'!$CN644=\"No\"),\"-\",IF(AND('Enrollment Form'!$CN644=\"Yes\",'Enrollment Form'!$CO644=\"\"),\"N\",\"Y\"))","v":"-"},{"$f":"IF(OR('Enrollment Form'!$CN644=\"\",'Enrollment Form'!$CN644=\"No\"),\"-\",IF(AND('Enrollment Form'!$CN644=\"Yes\",'Enrollment Form'!$CP644=\"\"),\"N\",\"Y\"))","v":"-"},{"$f":"IF('Enrollment Form'!B644<>\"Subscriber\",\"-\",IF(AND('Enrollment Form'!B644=\"Subscriber\",'Enrollment Form'!C644=\"Enroll\",'Enrollment Form'!AA644=\"\"),\"N\",\"Y\"))","v":"-"},{"$f":"IF(OR('Enrollment Form'!B644=\"Subscriber\",'Enrollment Form'!B644=\"\"),\"-\",IF('Enrollment Form'!BP644=\"\",\"N\",\"Y\"))","v":"-"},{"$f":"IF('Enrollment Form'!B644<>\"Subscriber\",\"-\",IF(AND('Enrollment Form'!B644=\"Subscriber\",'Enrollment Form'!G644=\"\"),\"N\",\"Y\"))","v":"-"},{"$f":"IF('Enrollment Form'!A644=\"\",\"\",IF('Enrollment Form'!B644=\"Subscriber\",\"-\",IF(AND('Enrollment Form'!B644<>\"Subscriber\",'Enrollment Form'!G644='Enrollment Form'!H644),\"N\",\"Y\")))","v":""},0]
[645,{"$f":"IF('Enrollment Form'!$A645<>\"\",\"Y\",\"N\")","v":"N"},{"$f":"IF(AND('Enrollment Form'!$B645=\"\",'Enrollment Form'!$C645<>\"\"),\"N\",IF($B638=\"N\",\"\",\"Y\"))","v":""},{"$f":"IF(OR($B638=\"N\",'Enrollment Form'!G645=\"\"),\"\",IF('Enrollment Form'!$B645<>\"Subscriber\",\"\",IF('Enrollment Form'!$G645='Enrollment Form'!$H645,\"Y\",\"N\")))","v":""},{"$f":"IF($B638=\"N\",\"\",IF(AND(COUNTIFS('Enrollment Form'!$H$11:$H$1000,'Enrollment Form'!$H645,'Enrollment Form'!$B$11:$B$1000,'Enrollment Form'!$B645)>1,'Enrollment Form'!$H645<>\"\"),\"N\",\"Y\"))","v":""},{"$f":"IF($B638=\"N\",\"\",IF(LEN('Enrollment Form'!$Y645)=0,\"\",IF(LEN('Enrollment Form'!$Y645)<>5,\"N\",\"Y\")))","v":""},{"$f":"IF($B638=\"N\",\"\",IF(LEN('Enrollment Form'!$AD645=0),\"\",IF(LEN('Enrollment Form'!$AD645)<>5,\"N\",\"Y\")))","v":""},{"$f":"IF($B638=\"N\",\"\",IF(LEN('Enrollment Form'!$BS645=0),\"\",IF(LEN('Enrollment Form'!$BS645)<>5,\"N\",\"Y\")))","v":""},{"$f":"IF($B638=\"N\",\"\",IF(LEN('Enrollment Form'!$AE645)=0,\"\",IF(LEN('Enrollment Form'!$AE645)<>10,\"N\",\"Y\")))","v":""},{"$f":"IF($B638=\"N\",\"\",IF(LEN('Enrollment Form'!$AF645)=0,\"\",IF(LEN('Enrollment Form'!$AF645)<>10,\"N\",\"Y\")))","v":""},{"$f":"IF('Enrollment Form'!$O645<>\"Graded\",\"-\",IF(AND('Enrollment Form'!$O645=\"Graded\",'Enrollment Form'!$AR645<>\"\"),\"Y\",\"N\"))","v":"-"},{"$f":"IF($B638=\"N\",\"\",IF(OR('Enrollment Form'!$B645<>\"Subscriber\",'Enrollment Form'!$C645=\"ROC\"),\"-\",IF(AND('Enrollment Form'!$B645=\"Subscriber\",'Enrollment Form'!$C645=\"Enroll\",'Enrollment Form'!$AJ645<>\"\"),\"Y\",\"N\")))","v":""},{"$f":"IF($B638=\"N\",\"\",IF(OR('Enrollment Form'!$B645<>\"Subscriber\",'Enrollment Form'!$C645=\"ROC\"),\"-\",IF(AND('Enrollment Form'!$B645=\"Subscriber\",'Enrollment Form'!$C645=\"Enroll\",'Enrollment Form'!$AK645<>\"\"),\"Y\",\"N\")))","v":""},{"$f":"IF($B638=\"N\",\"\",IF(OR('Enrollment Form'!$B645<>\"Subscriber\",'Enrollment Form'!$C645=\"ROC\"),\"-\",IF(AND('Enrollment Form'!$B645=\"Subscriber\",'Enrollment Form'!$C645=\"Enroll\",'Enrollment Form'!$AL645<>\"\"),\"Y\",\"N\")))","v":""},{"$f":"IF($B638=\"N\",\"\",IF(OR('Enrollment Form'!$B645<>\"Subscriber\",'Enrollment Form'!$C645=\"ROC\"),\"-\",IF(AND('Enrollment Form'!$B645=\"Subscriber\",'Enrollment Form'!$C645=\"Enroll\",'Enrollment Form'!$AP645<>\"\"),\"Y\",\"N\")))","v":""},{"$f":"IF($B638=\"N\",\"\",IF(OR('Enrollment Form'!$B645<>\"Subscriber\",'Enrollment Form'!$C645=\"ROC\"),\"-\",IF(AND('Enrollment Form'!$B645=\"Subscriber\",'Enrollment Form'!$C645=\"Enroll\",'Enrollment Form'!$AQ645<>\"\"),\"Y\",\"N\")))","v":""},{"$f":"IF($B638=\"N\",\"\",IF(OR('Enrollment Form'!$B645<>\"Subscriber\",'Enrollment Form'!$C645=\"ROC\"),\"-\",IF(AND('Enrollment Form'!$B645=\"Subscriber\",'Enrollment Form'!$C645=\"Enroll\",'Enrollment Form'!$AS645<>\"\"),\"Y\",\"N\")))","v":""},{"$f":"IF($B638=\"N\",\"\",IF($Q638=\"-\",\"-\",IF(AND($Q638=\"Y\",'Enrollment Form'!$AS645=\"No\"),\"-\",IF(AND($Q638=\"Y\",'Enrollment Form'!$AS645=\"Yes\",'Enrollment Form'!$AT645<>\"\"),\"Y\",\"N\"))))","v":""},{"$f":"IF($B638=\"N\",\"\",IF(OR('Enrollment Form'!$B645<>\"Subscriber\",'Enrollment Form'!$C645=\"ROC\"),\"-\",IF(AND('Enrollment Form'!$B645=\"Subscriber\",'Enrollment Form'!$C645=\"Enroll\",'Enrollment Form'!$CV645<>\"\"),\"Y\",\"N\")))","v":""},{"$f":"IF($B638=\"N\",\"\",IF($S638=\"-\",\"-\",IF(AND($S638=\"Y\",'Enrollment Form'!$CV645=\"No\"),\"-\",IF(AND($S638=\"Y\",'Enrollment Form'!$CV645=\"Yes\",'Enrollment Form'!$CW645<>\"\"),\"Y\",\"N\"))))","v":""},{"$f":"IF(OR('Enrollment Form'!$AY645=\"Yes\",'Enrollment Form'!$AY645=\"\"),\"-\",IF(OR(AND('Enrollment Form'!$AY645=\"No\",ISERROR(FIND(\"HMO\",VLOOKUP('Enrollment Form'!G645,'Enrollment Form'!H$11:J$1000,3,FALSE),1))=FALSE,COUNTA('Enrollment Form'!$AZ645:$BC645)=4),AND('Enrollment Form'!$AY645=\"No\",ISERROR(FIND(\"HMO\",VLOOKUP('Enrollment Form'!G645,'Enrollment Form'!H$11:J$1000,3,FALSE),1))=FALSE,COUNTA('Enrollment Form'!$BT645:$BW645)=4)),\"Y\",\"N\"))","v":"-"},{"$f":"IF($B638=\"N\",\"\",IF('Enrollment Form'!$B645=\"Subscriber\",\"-\",IF(COUNTA('Enrollment Form'!$BL645,'Enrollment Form'!$BN645)=2,\"Y\",\"N\")))","v":""},{"$f":"IF($B638=\"N\",\"\",IF(OR('Enrollment Form'!$AX645=\"\",'Enrollment Form'!$AX645=\"No\"),\"-\",IF(AND('Enrollment Form'!$AX645=\"Yes\",COUNTA('Enrollment Form'!$CR645)=1),\"Y\",\"N\")))","v":""},{"$f":"IF(OR('Enrollment Form'!$CR645=\"\",'Enrollment Form'!$CR645=\"No\"),\"-\",IF(COUNTA('Enrollment Form'!$CT645:$CU645)=2,\"Y\",\"N\"))","v":"-"},{"$f":"IF($B638=\"N\",\"\",IF(COUNTIF('Enrollment Form'!$DG645:$DP645,\"Other\")=COUNTA('Enrollment Form'!$DK645,'Enrollment Form'!$DH645,'Enrollment Form'!$DN645,'Enrollment Form'!$DQ645),\"Y\",\"N\"))","v":""},{"$f":"IF($B638=\"N\",\"\",IF(OR('Enrollment Form'!B645<>\"Subscriber\",'Enrollment Form'!C645=\"ROC\",COUNTIF('Enrollment Form'!AV645:AW645,\"Yes\")>=1),\"-\",IF(AND('Enrollment Form'!C645=\"Enroll\",COUNTIF('Enrollment Form'!AV645:AW645,\"No\")=2,'Enrollment Form'!AX645=\"\"),\"N\",\"Y\")))","v":""},{"$f":"IF(OR(B638=\"N\",'Enrollment Form'!B645<>\"Subscriber\",'Enrollment Form'!C645=\"ROC\",'Enrollment Form'!O645<>\"Multiple of Salary\"),\"-\",IF(COUNTA('Enrollment Form'!T645:U645)<2,\"N\",\"Y\"))","v":"-"},{"$f":"IF(B638=\"N\",\"\",IF(OR('Enrollment Form'!C645=\"ROC\",'Enrollment Form'!B645<>\"Subscriber\",'Enrollment Form'!O645=\"Waive\",'Enrollment Form'!O645=\"\"),\"-\",IF('Enrollment Form'!P645=\"\",\"N\",\"Y\")))","v":""},{"$f":"IF($B638=\"N\",\"\",IF(AND('Enrollment Form'!$C645=\"ROC\",'Enrollment Form'!$DR645<>\"\"),\"Y\",IF(AND('Enrollment Form'!$C645=\"ROC\",'Enrollment Form'!$DR645=\"\"),\"N\",IF(AND('Enrollment Form'!$C645=\"Enroll\",'Enrollment Form'!$B645=\"Subscriber\",'Enrollment Form'!$CX645=\"No\",'Enrollment Form'!$DR645=\"\"),\"N\",IF(AND('Enrollment Form'!$C645=\"Enroll\",'Enrollment Form'!$B645=\"Subscriber\",'Enrollment Form'!$CX645=\"Yes\"),\"-\",\"Y\")))))","v":""},{"$f":"IF($B638=\"N\",\"\",IF(AND('Enrollment Form'!$C645=\"ROC\",'Enrollment Form'!$DS645<>\"\"),\"Y\",IF(AND('Enrollment Form'!$C645=\"ROC\",'Enrollment Form'!$DS645=\"\"),\"N\",IF(AND('Enrollment Form'!$C645=\"Enroll\",'Enrollment Form'!$B645=\"Subscriber\",'Enrollment Form'!$CX645=\"No\",'Enrollment Form'!$DS645=\"\"),\"N\",IF(AND('Enrollment Form'!$C645=\"Enroll\",'Enrollment Form'!$B645=\"Subscriber\",'Enrollment Form'!$CX645=\"Yes\"),\"-\",\"Y\")))))","v":""},{"$f":"IF('Enrollment Form'!AH645=\"\",\"\",IF(ISERROR(SEARCH(\".\",'Enrollment Form'!AH645,SEARCH(\"@\",'Enrollment Form'!AH645))),\"N\",\"Y\"))","v":""},{"$f":"IF(OR($B638=\"N\",'Enrollment Form'!$G645=\"\"),\"\",IF('Enrollment Form'!$B645<>\"Subscriber\",\"-\",IF(COUNTIF('Enrollment Form'!$AV645:$AW645,\"Yes\")=2,\"N\",\"Y\")))","v":""},{"$f":"IF(OR('Enrollment Form'!$CJ645=\"\",'Enrollment Form'!$CJ645=\"No\"),\"-\",IF(AND('Enrollment Form'!$CJ645=\"Yes\",'Enrollment Form'!$CK645=\"\"),\"N\",\"Y\"))","v":"-"},{"$f":"IF(OR('Enrollment Form'!$CL645=\"\",'Enrollment Form'!$CL645=\"No\"),\"-\",IF(AND('Enrollment Form'!$CL645=\"Yes\",'Enrollment Form'!$CM645=\"\"),\"N\",\"Y\"))","v":"-"},{"$f":"IF(OR('Enrollment Form'!$CN645=\"\",'Enrollment Form'!$CN645=\"No\"),\"-\",IF(AND('Enrollment Form'!$CN645=\"Yes\",'Enrollment Form'!$CO645=\"\"),\"N\",\"Y\"))","v":"-"},{"$f":"IF(OR('Enrollment Form'!$CN645=\"\",'Enrollment Form'!$CN645=\"No\"),\"-\",IF(AND('Enrollment Form'!$CN645=\"Yes\",'Enrollment Form'!$CP645=\"\"),\"N\",\"Y\"))","v":"-"},{"$f":"IF('Enrollment Form'!B645<>\"Subscriber\",\"-\",IF(AND('Enrollment Form'!B645=\"Subscriber\",'Enrollment Form'!C645=\"Enroll\",'Enrollment Form'!AA645=\"\"),\"N\",\"Y\"))","v":"-"},{"$f":"IF(OR('Enrollment Form'!B645=\"Subscriber\",'Enrollment Form'!B645=\"\"),\"-\",IF('Enrollment Form'!BP645=\"\",\"N\",\"Y\"))","v":"-"},{"$f":"IF('Enrollment Form'!B645<>\"Subscriber\",\"-\",IF(AND('Enrollment Form'!B645=\"Subscriber\",'Enrollment Form'!G645=\"\"),\"N\",\"Y\"))","v":"-"},{"$f":"IF('Enrollment Form'!A645=\"\",\"\",IF('Enrollment Form'!B645=\"Subscriber\",\"-\",IF(AND('Enrollment Form'!B645<>\"Subscriber\",'Enrollment Form'!G645='Enrollment Form'!H645),\"N\",\"Y\")))","v":""},0]
[646,{"$f":"IF('Enrollment Form'!$A646<>\"\",\"Y\",\"N\")","v":"N"},{"$f":"IF(AND('Enrollment Form'!$B646=\"\",'Enrollment Form'!$C646<>\"\"),\"N\",IF($B639=\"N\",\"\",\"Y\"))","v":""},{"$f":"IF(OR($B639=\"N\",'Enrollment Form'!G646=\"\"),\"\",IF('Enrollment Form'!$B646<>\"Subscriber\",\"\",IF('Enrollment Form'!$G646='Enrollment Form'!$H646,\"Y\",\"N\")))","v":""},{"$f":"IF($B639=\"N\",\"\",IF(AND(COUNTIFS('Enrollment Form'!$H$11:$H$1000,'Enrollment Form'!$H646,'Enrollment Form'!$B$11:$B$1000,'Enrollment Form'!$B646)>1,'Enrollment Form'!$H646<>\"\"),\"N\",\"Y\"))","v":""},{"$f":"IF($B639=\"N\",\"\",IF(LEN('Enrollment Form'!$Y646)=0,\"\",IF(LEN('Enrollment Form'!$Y646)<>5,\"N\",\"Y\")))","v":""},{"$f":"IF($B639=\"N\",\"\",IF(LEN('Enrollment Form'!$AD646=0),\"\",IF(LEN('Enrollment Form'!$AD646)<>5,\"N\",\"Y\")))","v":""},{"$f":"IF($B639=\"N\",\"\",IF(LEN('Enrollment Form'!$BS646=0),\"\",IF(LEN('Enrollment Form'!$BS646)<>5,\"N\",\"Y\")))","v":""},{"$f":"IF($B639=\"N\",\"\",IF(LEN('Enrollment Form'!$AE646)=0,\"\",IF(LEN('Enrollment Form'!$AE646)<>10,\"N\",\"Y\")))","v":""},{"$f":"IF($B639=\"N\",\"\",IF(LEN('Enrollment Form'!$AF646)=0,\"\",IF(LEN('Enrollment Form'!$AF646)<>10,\"N\",\"Y\")))","v":""},{"$f":"IF('Enrollment Form'!$O646<>\"Graded\",\"-\",IF(AND('Enrollment Form'!$O646=\"Graded\",'Enrollment Form'!$AR646<>\"\"),\"Y\",\"N\"))","v":"-"},{"$f":"IF($B639=\"N\",\"\",IF(OR('Enrollment Form'!$B646<>\"Subscriber\",'Enrollment Form'!$C646=\"ROC\"),\"-\",IF(AND('Enrollment Form'!$B646=\"Subscriber\",'Enrollment Form'!$C646=\"Enroll\",'Enrollment Form'!$AJ646<>\"\"),\"Y\",\"N\")))","v":""},{"$f":"IF($B639=\"N\",\"\",IF(OR('Enrollment Form'!$B646<>\"Subscriber\",'Enrollment Form'!$C646=\"ROC\"),\"-\",IF(AND('Enrollment Form'!$B646=\"Subscriber\",'Enrollment Form'!$C646=\"Enroll\",'Enrollment Form'!$AK646<>\"\"),\"Y\",\"N\")))","v":""},{"$f":"IF($B639=\"N\",\"\",IF(OR('Enrollment Form'!$B646<>\"Subscriber\",'Enrollment Form'!$C646=\"ROC\"),\"-\",IF(AND('Enrollment Form'!$B646=\"Subscriber\",'Enrollment Form'!$C646=\"Enroll\",'Enrollment Form'!$AL646<>\"\"),\"Y\",\"N\")))","v":""},{"$f":"IF($B639=\"N\",\"\",IF(OR('Enrollment Form'!$B646<>\"Subscriber\",'Enrollment Form'!$C646=\"ROC\"),\"-\",IF(AND('Enrollment Form'!$B646=\"Subscriber\",'Enrollment Form'!$C646=\"Enroll\",'Enrollment Form'!$AP646<>\"\"),\"Y\",\"N\")))","v":""},{"$f":"IF($B639=\"N\",\"\",IF(OR('Enrollment Form'!$B646<>\"Subscriber\",'Enrollment Form'!$C646=\"ROC\"),\"-\",IF(AND('Enrollment Form'!$B646=\"Subscriber\",'Enrollment Form'!$C646=\"Enroll\",'Enrollment Form'!$AQ646<>\"\"),\"Y\",\"N\")))","v":""},{"$f":"IF($B639=\"N\",\"\",IF(OR('Enrollment Form'!$B646<>\"Subscriber\",'Enrollment Form'!$C646=\"ROC\"),\"-\",IF(AND('Enrollment Form'!$B646=\"Subscriber\",'Enrollment Form'!$C646=\"Enroll\",'Enrollment Form'!$AS646<>\"\"),\"Y\",\"N\")))","v":""},{"$f":"IF($B639=\"N\",\"\",IF($Q639=\"-\",\"-\",IF(AND($Q639=\"Y\",'Enrollment Form'!$AS646=\"No\"),\"-\",IF(AND($Q639=\"Y\",'Enrollment Form'!$AS646=\"Yes\",'Enrollment Form'!$AT646<>\"\"),\"Y\",\"N\"))))","v":""},{"$f":"IF($B639=\"N\",\"\",IF(OR('Enrollment Form'!$B646<>\"Subscriber\",'Enrollment Form'!$C646=\"ROC\"),\"-\",IF(AND('Enrollment Form'!$B646=\"Subscriber\",'Enrollment Form'!$C646=\"Enroll\",'Enrollment Form'!$CV646<>\"\"),\"Y\",\"N\")))","v":""},{"$f":"IF($B639=\"N\",\"\",IF($S639=\"-\",\"-\",IF(AND($S639=\"Y\",'Enrollment Form'!$CV646=\"No\"),\"-\",IF(AND($S639=\"Y\",'Enrollment Form'!$CV646=\"Yes\",'Enrollment Form'!$CW646<>\"\"),\"Y\",\"N\"))))","v":""},{"$f":"IF(OR('Enrollment Form'!$AY646=\"Yes\",'Enrollment Form'!$AY646=\"\"),\"-\",IF(OR(AND('Enrollment Form'!$AY646=\"No\",ISERROR(FIND(\"HMO\",VLOOKUP('Enrollment Form'!G646,'Enrollment Form'!H$11:J$1000,3,FALSE),1))=FALSE,COUNTA('Enrollment Form'!$AZ646:$BC646)=4),AND('Enrollment Form'!$AY646=\"No\",ISERROR(FIND(\"HMO\",VLOOKUP('Enrollment Form'!G646,'Enrollment Form'!H$11:J$1000,3,FALSE),1))=FALSE,COUNTA('Enrollment Form'!$BT646:$BW646)=4)),\"Y\",\"N\"))","v":"-"},{"$f":"IF($B639=\"N\",\"\",IF('Enrollment Form'!$B646=\"Subscriber\",\"-\",IF(COUNTA('Enrollment Form'!$BL646,'Enrollment Form'!$BN646)=2,\"Y\",\"N\")))","v":""},{"$f":"IF($B639=\"N\",\"\",IF(OR('Enrollment Form'!$AX646=\"\",'Enrollment Form'!$AX646=\"No\"),\"-\",IF(AND('Enrollment Form'!$AX646=\"Yes\",COUNTA('Enrollment Form'!$CR646)=1),\"Y\",\"N\")))","v":""},{"$f":"IF(OR('Enrollment Form'!$CR646=\"\",'Enrollment Form'!$CR646=\"No\"),\"-\",IF(COUNTA('Enrollment Form'!$CT646:$CU646)=2,\"Y\",\"N\"))","v":"-"},{"$f":"IF($B639=\"N\",\"\",IF(COUNTIF('Enrollment Form'!$DG646:$DP646,\"Other\")=COUNTA('Enrollment Form'!$DK646,'Enrollment Form'!$DH646,'Enrollment Form'!$DN646,'Enrollment Form'!$DQ646),\"Y\",\"N\"))","v":""},{"$f":"IF($B639=\"N\",\"\",IF(OR('Enrollment Form'!B646<>\"Subscriber\",'Enrollment Form'!C646=\"ROC\",COUNTIF('Enrollment Form'!AV646:AW646,\"Yes\")>=1),\"-\",IF(AND('Enrollment Form'!C646=\"Enroll\",COUNTIF('Enrollment Form'!AV646:AW646,\"No\")=2,'Enrollment Form'!AX646=\"\"),\"N\",\"Y\")))","v":""},{"$f":"IF(OR(B639=\"N\",'Enrollment Form'!B646<>\"Subscriber\",'Enrollment Form'!C646=\"ROC\",'Enrollment Form'!O646<>\"Multiple of Salary\"),\"-\",IF(COUNTA('Enrollment Form'!T646:U646)<2,\"N\",\"Y\"))","v":"-"},{"$f":"IF(B639=\"N\",\"\",IF(OR('Enrollment Form'!C646=\"ROC\",'Enrollment Form'!B646<>\"Subscriber\",'Enrollment Form'!O646=\"Waive\",'Enrollment Form'!O646=\"\"),\"-\",IF('Enrollment Form'!P646=\"\",\"N\",\"Y\")))","v":""},{"$f":"IF($B639=\"N\",\"\",IF(AND('Enrollment Form'!$C646=\"ROC\",'Enrollment Form'!$DR646<>\"\"),\"Y\",IF(AND('Enrollment Form'!$C646=\"ROC\",'Enrollment Form'!$DR646=\"\"),\"N\",IF(AND('Enrollment Form'!$C646=\"Enroll\",'Enrollment Form'!$B646=\"Subscriber\",'Enrollment Form'!$CX646=\"No\",'Enrollment Form'!$DR646=\"\"),\"N\",IF(AND('Enrollment Form'!$C646=\"Enroll\",'Enrollment Form'!$B646=\"Subscriber\",'Enrollment Form'!$CX646=\"Yes\"),\"-\",\"Y\")))))","v":""},{"$f":"IF($B639=\"N\",\"\",IF(AND('Enrollment Form'!$C646=\"ROC\",'Enrollment Form'!$DS646<>\"\"),\"Y\",IF(AND('Enrollment Form'!$C646=\"ROC\",'Enrollment Form'!$DS646=\"\"),\"N\",IF(AND('Enrollment Form'!$C646=\"Enroll\",'Enrollment Form'!$B646=\"Subscriber\",'Enrollment Form'!$CX646=\"No\",'Enrollment Form'!$DS646=\"\"),\"N\",IF(AND('Enrollment Form'!$C646=\"Enroll\",'Enrollment Form'!$B646=\"Subscriber\",'Enrollment Form'!$CX646=\"Yes\"),\"-\",\"Y\")))))","v":""},{"$f":"IF('Enrollment Form'!AH646=\"\",\"\",IF(ISERROR(SEARCH(\".\",'Enrollment Form'!AH646,SEARCH(\"@\",'Enrollment Form'!AH646))),\"N\",\"Y\"))","v":""},{"$f":"IF(OR($B639=\"N\",'Enrollment Form'!$G646=\"\"),\"\",IF('Enrollment Form'!$B646<>\"Subscriber\",\"-\",IF(COUNTIF('Enrollment Form'!$AV646:$AW646,\"Yes\")=2,\"N\",\"Y\")))","v":""},{"$f":"IF(OR('Enrollment Form'!$CJ646=\"\",'Enrollment Form'!$CJ646=\"No\"),\"-\",IF(AND('Enrollment Form'!$CJ646=\"Yes\",'Enrollment Form'!$CK646=\"\"),\"N\",\"Y\"))","v":"-"},{"$f":"IF(OR('Enrollment Form'!$CL646=\"\",'Enrollment Form'!$CL646=\"No\"),\"-\",IF(AND('Enrollment Form'!$CL646=\"Yes\",'Enrollment Form'!$CM646=\"\"),\"N\",\"Y\"))","v":"-"},{"$f":"IF(OR('Enrollment Form'!$CN646=\"\",'Enrollment Form'!$CN646=\"No\"),\"-\",IF(AND('Enrollment Form'!$CN646=\"Yes\",'Enrollment Form'!$CO646=\"\"),\"N\",\"Y\"))","v":"-"},{"$f":"IF(OR('Enrollment Form'!$CN646=\"\",'Enrollment Form'!$CN646=\"No\"),\"-\",IF(AND('Enrollment Form'!$CN646=\"Yes\",'Enrollment Form'!$CP646=\"\"),\"N\",\"Y\"))","v":"-"},{"$f":"IF('Enrollment Form'!B646<>\"Subscriber\",\"-\",IF(AND('Enrollment Form'!B646=\"Subscriber\",'Enrollment Form'!C646=\"Enroll\",'Enrollment Form'!AA646=\"\"),\"N\",\"Y\"))","v":"-"},{"$f":"IF(OR('Enrollment Form'!B646=\"Subscriber\",'Enrollment Form'!B646=\"\"),\"-\",IF('Enrollment Form'!BP646=\"\",\"N\",\"Y\"))","v":"-"},{"$f":"IF('Enrollment Form'!B646<>\"Subscriber\",\"-\",IF(AND('Enrollment Form'!B646=\"Subscriber\",'Enrollment Form'!G646=\"\"),\"N\",\"Y\"))","v":"-"},{"$f":"IF('Enrollment Form'!A646=\"\",\"\",IF('Enrollment Form'!B646=\"Subscriber\",\"-\",IF(AND('Enrollment Form'!B646<>\"Subscriber\",'Enrollment Form'!G646='Enrollment Form'!H646),\"N\",\"Y\")))","v":""},0]
[647,{"$f":"IF('Enrollment Form'!$A647<>\"\",\"Y\",\"N\")","v":"N"},{"$f":"IF(AND('Enrollment Form'!$B647=\"\",'Enrollment Form'!$C647<>\"\"),\"N\",IF($B640=\"N\",\"\",\"Y\"))","v":""},{"$f":"IF(OR($B640=\"N\",'Enrollment Form'!G647=\"\"),\"\",IF('Enrollment Form'!$B647<>\"Subscriber\",\"\",IF('Enrollment Form'!$G647='Enrollment Form'!$H647,\"Y\",\"N\")))","v":""},{"$f":"IF($B640=\"N\",\"\",IF(AND(COUNTIFS('Enrollment Form'!$H$11:$H$1000,'Enrollment Form'!$H647,'Enrollment Form'!$B$11:$B$1000,'Enrollment Form'!$B647)>1,'Enrollment Form'!$H647<>\"\"),\"N\",\"Y\"))","v":""},{"$f":"IF($B640=\"N\",\"\",IF(LEN('Enrollment Form'!$Y647)=0,\"\",IF(LEN('Enrollment Form'!$Y647)<>5,\"N\",\"Y\")))","v":""},{"$f":"IF($B640=\"N\",\"\",IF(LEN('Enrollment Form'!$AD647=0),\"\",IF(LEN('Enrollment Form'!$AD647)<>5,\"N\",\"Y\")))","v":""},{"$f":"IF($B640=\"N\",\"\",IF(LEN('Enrollment Form'!$BS647=0),\"\",IF(LEN('Enrollment Form'!$BS647)<>5,\"N\",\"Y\")))","v":""},{"$f":"IF($B640=\"N\",\"\",IF(LEN('Enrollment Form'!$AE647)=0,\"\",IF(LEN('Enrollment Form'!$AE647)<>10,\"N\",\"Y\")))","v":""},{"$f":"IF($B640=\"N\",\"\",IF(LEN('Enrollment Form'!$AF647)=0,\"\",IF(LEN('Enrollment Form'!$AF647)<>10,\"N\",\"Y\")))","v":""},{"$f":"IF('Enrollment Form'!$O647<>\"Graded\",\"-\",IF(AND('Enrollment Form'!$O647=\"Graded\",'Enrollment Form'!$AR647<>\"\"),\"Y\",\"N\"))","v":"-"},{"$f":"IF($B640=\"N\",\"\",IF(OR('Enrollment Form'!$B647<>\"Subscriber\",'Enrollment Form'!$C647=\"ROC\"),\"-\",IF(AND('Enrollment Form'!$B647=\"Subscriber\",'Enrollment Form'!$C647=\"Enroll\",'Enrollment Form'!$AJ647<>\"\"),\"Y\",\"N\")))","v":""},{"$f":"IF($B640=\"N\",\"\",IF(OR('Enrollment Form'!$B647<>\"Subscriber\",'Enrollment Form'!$C647=\"ROC\"),\"-\",IF(AND('Enrollment Form'!$B647=\"Subscriber\",'Enrollment Form'!$C647=\"Enroll\",'Enrollment Form'!$AK647<>\"\"),\"Y\",\"N\")))","v":""},{"$f":"IF($B640=\"N\",\"\",IF(OR('Enrollment Form'!$B647<>\"Subscriber\",'Enrollment Form'!$C647=\"ROC\"),\"-\",IF(AND('Enrollment Form'!$B647=\"Subscriber\",'Enrollment Form'!$C647=\"Enroll\",'Enrollment Form'!$AL647<>\"\"),\"Y\",\"N\")))","v":""},{"$f":"IF($B640=\"N\",\"\",IF(OR('Enrollment Form'!$B647<>\"Subscriber\",'Enrollment Form'!$C647=\"ROC\"),\"-\",IF(AND('Enrollment Form'!$B647=\"Subscriber\",'Enrollment Form'!$C647=\"Enroll\",'Enrollment Form'!$AP647<>\"\"),\"Y\",\"N\")))","v":""},{"$f":"IF($B640=\"N\",\"\",IF(OR('Enrollment Form'!$B647<>\"Subscriber\",'Enrollment Form'!$C647=\"ROC\"),\"-\",IF(AND('Enrollment Form'!$B647=\"Subscriber\",'Enrollment Form'!$C647=\"Enroll\",'Enrollment Form'!$AQ647<>\"\"),\"Y\",\"N\")))","v":""},{"$f":"IF($B640=\"N\",\"\",IF(OR('Enrollment Form'!$B647<>\"Subscriber\",'Enrollment Form'!$C647=\"ROC\"),\"-\",IF(AND('Enrollment Form'!$B647=\"Subscriber\",'Enrollment Form'!$C647=\"Enroll\",'Enrollment Form'!$AS647<>\"\"),\"Y\",\"N\")))","v":""},{"$f":"IF($B640=\"N\",\"\",IF($Q640=\"-\",\"-\",IF(AND($Q640=\"Y\",'Enrollment Form'!$AS647=\"No\"),\"-\",IF(AND($Q640=\"Y\",'Enrollment Form'!$AS647=\"Yes\",'Enrollment Form'!$AT647<>\"\"),\"Y\",\"N\"))))","v":""},{"$f":"IF($B640=\"N\",\"\",IF(OR('Enrollment Form'!$B647<>\"Subscriber\",'Enrollment Form'!$C647=\"ROC\"),\"-\",IF(AND('Enrollment Form'!$B647=\"Subscriber\",'Enrollment Form'!$C647=\"Enroll\",'Enrollment Form'!$CV647<>\"\"),\"Y\",\"N\")))","v":""},{"$f":"IF($B640=\"N\",\"\",IF($S640=\"-\",\"-\",IF(AND($S640=\"Y\",'Enrollment Form'!$CV647=\"No\"),\"-\",IF(AND($S640=\"Y\",'Enrollment Form'!$CV647=\"Yes\",'Enrollment Form'!$CW647<>\"\"),\"Y\",\"N\"))))","v":""},{"$f":"IF(OR('Enrollment Form'!$AY647=\"Yes\",'Enrollment Form'!$AY647=\"\"),\"-\",IF(OR(AND('Enrollment Form'!$AY647=\"No\",ISERROR(FIND(\"HMO\",VLOOKUP('Enrollment Form'!G647,'Enrollment Form'!H$11:J$1000,3,FALSE),1))=FALSE,COUNTA('Enrollment Form'!$AZ647:$BC647)=4),AND('Enrollment Form'!$AY647=\"No\",ISERROR(FIND(\"HMO\",VLOOKUP('Enrollment Form'!G647,'Enrollment Form'!H$11:J$1000,3,FALSE),1))=FALSE,COUNTA('Enrollment Form'!$BT647:$BW647)=4)),\"Y\",\"N\"))","v":"-"},{"$f":"IF($B640=\"N\",\"\",IF('Enrollment Form'!$B647=\"Subscriber\",\"-\",IF(COUNTA('Enrollment Form'!$BL647,'Enrollment Form'!$BN647)=2,\"Y\",\"N\")))","v":""},{"$f":"IF($B640=\"N\",\"\",IF(OR('Enrollment Form'!$AX647=\"\",'Enrollment Form'!$AX647=\"No\"),\"-\",IF(AND('Enrollment Form'!$AX647=\"Yes\",COUNTA('Enrollment Form'!$CR647)=1),\"Y\",\"N\")))","v":""},{"$f":"IF(OR('Enrollment Form'!$CR647=\"\",'Enrollment Form'!$CR647=\"No\"),\"-\",IF(COUNTA('Enrollment Form'!$CT647:$CU647)=2,\"Y\",\"N\"))","v":"-"},{"$f":"IF($B640=\"N\",\"\",IF(COUNTIF('Enrollment Form'!$DG647:$DP647,\"Other\")=COUNTA('Enrollment Form'!$DK647,'Enrollment Form'!$DH647,'Enrollment Form'!$DN647,'Enrollment Form'!$DQ647),\"Y\",\"N\"))","v":""},{"$f":"IF($B640=\"N\",\"\",IF(OR('Enrollment Form'!B647<>\"Subscriber\",'Enrollment Form'!C647=\"ROC\",COUNTIF('Enrollment Form'!AV647:AW647,\"Yes\")>=1),\"-\",IF(AND('Enrollment Form'!C647=\"Enroll\",COUNTIF('Enrollment Form'!AV647:AW647,\"No\")=2,'Enrollment Form'!AX647=\"\"),\"N\",\"Y\")))","v":""},{"$f":"IF(OR(B640=\"N\",'Enrollment Form'!B647<>\"Subscriber\",'Enrollment Form'!C647=\"ROC\",'Enrollment Form'!O647<>\"Multiple of Salary\"),\"-\",IF(COUNTA('Enrollment Form'!T647:U647)<2,\"N\",\"Y\"))","v":"-"},{"$f":"IF(B640=\"N\",\"\",IF(OR('Enrollment Form'!C647=\"ROC\",'Enrollment Form'!B647<>\"Subscriber\",'Enrollment Form'!O647=\"Waive\",'Enrollment Form'!O647=\"\"),\"-\",IF('Enrollment Form'!P647=\"\",\"N\",\"Y\")))","v":""},{"$f":"IF($B640=\"N\",\"\",IF(AND('Enrollment Form'!$C647=\"ROC\",'Enrollment Form'!$DR647<>\"\"),\"Y\",IF(AND('Enrollment Form'!$C647=\"ROC\",'Enrollment Form'!$DR647=\"\"),\"N\",IF(AND('Enrollment Form'!$C647=\"Enroll\",'Enrollment Form'!$B647=\"Subscriber\",'Enrollment Form'!$CX647=\"No\",'Enrollment Form'!$DR647=\"\"),\"N\",IF(AND('Enrollment Form'!$C647=\"Enroll\",'Enrollment Form'!$B647=\"Subscriber\",'Enrollment Form'!$CX647=\"Yes\"),\"-\",\"Y\")))))","v":""},{"$f":"IF($B640=\"N\",\"\",IF(AND('Enrollment Form'!$C647=\"ROC\",'Enrollment Form'!$DS647<>\"\"),\"Y\",IF(AND('Enrollment Form'!$C647=\"ROC\",'Enrollment Form'!$DS647=\"\"),\"N\",IF(AND('Enrollment Form'!$C647=\"Enroll\",'Enrollment Form'!$B647=\"Subscriber\",'Enrollment Form'!$CX647=\"No\",'Enrollment Form'!$DS647=\"\"),\"N\",IF(AND('Enrollment Form'!$C647=\"Enroll\",'Enrollment Form'!$B647=\"Subscriber\",'Enrollment Form'!$CX647=\"Yes\"),\"-\",\"Y\")))))","v":""},{"$f":"IF('Enrollment Form'!AH647=\"\",\"\",IF(ISERROR(SEARCH(\".\",'Enrollment Form'!AH647,SEARCH(\"@\",'Enrollment Form'!AH647))),\"N\",\"Y\"))","v":""},{"$f":"IF(OR($B640=\"N\",'Enrollment Form'!$G647=\"\"),\"\",IF('Enrollment Form'!$B647<>\"Subscriber\",\"-\",IF(COUNTIF('Enrollment Form'!$AV647:$AW647,\"Yes\")=2,\"N\",\"Y\")))","v":""},{"$f":"IF(OR('Enrollment Form'!$CJ647=\"\",'Enrollment Form'!$CJ647=\"No\"),\"-\",IF(AND('Enrollment Form'!$CJ647=\"Yes\",'Enrollment Form'!$CK647=\"\"),\"N\",\"Y\"))","v":"-"},{"$f":"IF(OR('Enrollment Form'!$CL647=\"\",'Enrollment Form'!$CL647=\"No\"),\"-\",IF(AND('Enrollment Form'!$CL647=\"Yes\",'Enrollment Form'!$CM647=\"\"),\"N\",\"Y\"))","v":"-"},{"$f":"IF(OR('Enrollment Form'!$CN647=\"\",'Enrollment Form'!$CN647=\"No\"),\"-\",IF(AND('Enrollment Form'!$CN647=\"Yes\",'Enrollment Form'!$CO647=\"\"),\"N\",\"Y\"))","v":"-"},{"$f":"IF(OR('Enrollment Form'!$CN647=\"\",'Enrollment Form'!$CN647=\"No\"),\"-\",IF(AND('Enrollment Form'!$CN647=\"Yes\",'Enrollment Form'!$CP647=\"\"),\"N\",\"Y\"))","v":"-"},{"$f":"IF('Enrollment Form'!B647<>\"Subscriber\",\"-\",IF(AND('Enrollment Form'!B647=\"Subscriber\",'Enrollment Form'!C647=\"Enroll\",'Enrollment Form'!AA647=\"\"),\"N\",\"Y\"))","v":"-"},{"$f":"IF(OR('Enrollment Form'!B647=\"Subscriber\",'Enrollment Form'!B647=\"\"),\"-\",IF('Enrollment Form'!BP647=\"\",\"N\",\"Y\"))","v":"-"},{"$f":"IF('Enrollment Form'!B647<>\"Subscriber\",\"-\",IF(AND('Enrollment Form'!B647=\"Subscriber\",'Enrollment Form'!G647=\"\"),\"N\",\"Y\"))","v":"-"},{"$f":"IF('Enrollment Form'!A647=\"\",\"\",IF('Enrollment Form'!B647=\"Subscriber\",\"-\",IF(AND('Enrollment Form'!B647<>\"Subscriber\",'Enrollment Form'!G647='Enrollment Form'!H647),\"N\",\"Y\")))","v":""},0]
[648,{"$f":"IF('Enrollment Form'!$A648<>\"\",\"Y\",\"N\")","v":"N"},{"$f":"IF(AND('Enrollment Form'!$B648=\"\",'Enrollment Form'!$C648<>\"\"),\"N\",IF($B641=\"N\",\"\",\"Y\"))","v":""},{"$f":"IF(OR($B641=\"N\",'Enrollment Form'!G648=\"\"),\"\",IF('Enrollment Form'!$B648<>\"Subscriber\",\"\",IF('Enrollment Form'!$G648='Enrollment Form'!$H648,\"Y\",\"N\")))","v":""},{"$f":"IF($B641=\"N\",\"\",IF(AND(COUNTIFS('Enrollment Form'!$H$11:$H$1000,'Enrollment Form'!$H648,'Enrollment Form'!$B$11:$B$1000,'Enrollment Form'!$B648)>1,'Enrollment Form'!$H648<>\"\"),\"N\",\"Y\"))","v":""},{"$f":"IF($B641=\"N\",\"\",IF(LEN('Enrollment Form'!$Y648)=0,\"\",IF(LEN('Enrollment Form'!$Y648)<>5,\"N\",\"Y\")))","v":""},{"$f":"IF($B641=\"N\",\"\",IF(LEN('Enrollment Form'!$AD648=0),\"\",IF(LEN('Enrollment Form'!$AD648)<>5,\"N\",\"Y\")))","v":""},{"$f":"IF($B641=\"N\",\"\",IF(LEN('Enrollment Form'!$BS648=0),\"\",IF(LEN('Enrollment Form'!$BS648)<>5,\"N\",\"Y\")))","v":""},{"$f":"IF($B641=\"N\",\"\",IF(LEN('Enrollment Form'!$AE648)=0,\"\",IF(LEN('Enrollment Form'!$AE648)<>10,\"N\",\"Y\")))","v":""},{"$f":"IF($B641=\"N\",\"\",IF(LEN('Enrollment Form'!$AF648)=0,\"\",IF(LEN('Enrollment Form'!$AF648)<>10,\"N\",\"Y\")))","v":""},{"$f":"IF('Enrollment Form'!$O648<>\"Graded\",\"-\",IF(AND('Enrollment Form'!$O648=\"Graded\",'Enrollment Form'!$AR648<>\"\"),\"Y\",\"N\"))","v":"-"},{"$f":"IF($B641=\"N\",\"\",IF(OR('Enrollment Form'!$B648<>\"Subscriber\",'Enrollment Form'!$C648=\"ROC\"),\"-\",IF(AND('Enrollment Form'!$B648=\"Subscriber\",'Enrollment Form'!$C648=\"Enroll\",'Enrollment Form'!$AJ648<>\"\"),\"Y\",\"N\")))","v":""},{"$f":"IF($B641=\"N\",\"\",IF(OR('Enrollment Form'!$B648<>\"Subscriber\",'Enrollment Form'!$C648=\"ROC\"),\"-\",IF(AND('Enrollment Form'!$B648=\"Subscriber\",'Enrollment Form'!$C648=\"Enroll\",'Enrollment Form'!$AK648<>\"\"),\"Y\",\"N\")))","v":""},{"$f":"IF($B641=\"N\",\"\",IF(OR('Enrollment Form'!$B648<>\"Subscriber\",'Enrollment Form'!$C648=\"ROC\"),\"-\",IF(AND('Enrollment Form'!$B648=\"Subscriber\",'Enrollment Form'!$C648=\"Enroll\",'Enrollment Form'!$AL648<>\"\"),\"Y\",\"N\")))","v":""},{"$f":"IF($B641=\"N\",\"\",IF(OR('Enrollment Form'!$B648<>\"Subscriber\",'Enrollment Form'!$C648=\"ROC\"),\"-\",IF(AND('Enrollment Form'!$B648=\"Subscriber\",'Enrollment Form'!$C648=\"Enroll\",'Enrollment Form'!$AP648<>\"\"),\"Y\",\"N\")))","v":""},{"$f":"IF($B641=\"N\",\"\",IF(OR('Enrollment Form'!$B648<>\"Subscriber\",'Enrollment Form'!$C648=\"ROC\"),\"-\",IF(AND('Enrollment Form'!$B648=\"Subscriber\",'Enrollment Form'!$C648=\"Enroll\",'Enrollment Form'!$AQ648<>\"\"),\"Y\",\"N\")))","v":""},{"$f":"IF($B641=\"N\",\"\",IF(OR('Enrollment Form'!$B648<>\"Subscriber\",'Enrollment Form'!$C648=\"ROC\"),\"-\",IF(AND('Enrollment Form'!$B648=\"Subscriber\",'Enrollment Form'!$C648=\"Enroll\",'Enrollment Form'!$AS648<>\"\"),\"Y\",\"N\")))","v":""},{"$f":"IF($B641=\"N\",\"\",IF($Q641=\"-\",\"-\",IF(AND($Q641=\"Y\",'Enrollment Form'!$AS648=\"No\"),\"-\",IF(AND($Q641=\"Y\",'Enrollment Form'!$AS648=\"Yes\",'Enrollment Form'!$AT648<>\"\"),\"Y\",\"N\"))))","v":""},{"$f":"IF($B641=\"N\",\"\",IF(OR('Enrollment Form'!$B648<>\"Subscriber\",'Enrollment Form'!$C648=\"ROC\"),\"-\",IF(AND('Enrollment Form'!$B648=\"Subscriber\",'Enrollment Form'!$C648=\"Enroll\",'Enrollment Form'!$CV648<>\"\"),\"Y\",\"N\")))","v":""},{"$f":"IF($B641=\"N\",\"\",IF($S641=\"-\",\"-\",IF(AND($S641=\"Y\",'Enrollment Form'!$CV648=\"No\"),\"-\",IF(AND($S641=\"Y\",'Enrollment Form'!$CV648=\"Yes\",'Enrollment Form'!$CW648<>\"\"),\"Y\",\"N\"))))","v":""},{"$f":"IF(OR('Enrollment Form'!$AY648=\"Yes\",'Enrollment Form'!$AY648=\"\"),\"-\",IF(OR(AND('Enrollment Form'!$AY648=\"No\",ISERROR(FIND(\"HMO\",VLOOKUP('Enrollment Form'!G648,'Enrollment Form'!H$11:J$1000,3,FALSE),1))=FALSE,COUNTA('Enrollment Form'!$AZ648:$BC648)=4),AND('Enrollment Form'!$AY648=\"No\",ISERROR(FIND(\"HMO\",VLOOKUP('Enrollment Form'!G648,'Enrollment Form'!H$11:J$1000,3,FALSE),1))=FALSE,COUNTA('Enrollment Form'!$BT648:$BW648)=4)),\"Y\",\"N\"))","v":"-"},{"$f":"IF($B641=\"N\",\"\",IF('Enrollment Form'!$B648=\"Subscriber\",\"-\",IF(COUNTA('Enrollment Form'!$BL648,'Enrollment Form'!$BN648)=2,\"Y\",\"N\")))","v":""},{"$f":"IF($B641=\"N\",\"\",IF(OR('Enrollment Form'!$AX648=\"\",'Enrollment Form'!$AX648=\"No\"),\"-\",IF(AND('Enrollment Form'!$AX648=\"Yes\",COUNTA('Enrollment Form'!$CR648)=1),\"Y\",\"N\")))","v":""},{"$f":"IF(OR('Enrollment Form'!$CR648=\"\",'Enrollment Form'!$CR648=\"No\"),\"-\",IF(COUNTA('Enrollment Form'!$CT648:$CU648)=2,\"Y\",\"N\"))","v":"-"},{"$f":"IF($B641=\"N\",\"\",IF(COUNTIF('Enrollment Form'!$DG648:$DP648,\"Other\")=COUNTA('Enrollment Form'!$DK648,'Enrollment Form'!$DH648,'Enrollment Form'!$DN648,'Enrollment Form'!$DQ648),\"Y\",\"N\"))","v":""},{"$f":"IF($B641=\"N\",\"\",IF(OR('Enrollment Form'!B648<>\"Subscriber\",'Enrollment Form'!C648=\"ROC\",COUNTIF('Enrollment Form'!AV648:AW648,\"Yes\")>=1),\"-\",IF(AND('Enrollment Form'!C648=\"Enroll\",COUNTIF('Enrollment Form'!AV648:AW648,\"No\")=2,'Enrollment Form'!AX648=\"\"),\"N\",\"Y\")))","v":""},{"$f":"IF(OR(B641=\"N\",'Enrollment Form'!B648<>\"Subscriber\",'Enrollment Form'!C648=\"ROC\",'Enrollment Form'!O648<>\"Multiple of Salary\"),\"-\",IF(COUNTA('Enrollment Form'!T648:U648)<2,\"N\",\"Y\"))","v":"-"},{"$f":"IF(B641=\"N\",\"\",IF(OR('Enrollment Form'!C648=\"ROC\",'Enrollment Form'!B648<>\"Subscriber\",'Enrollment Form'!O648=\"Waive\",'Enrollment Form'!O648=\"\"),\"-\",IF('Enrollment Form'!P648=\"\",\"N\",\"Y\")))","v":""},{"$f":"IF($B641=\"N\",\"\",IF(AND('Enrollment Form'!$C648=\"ROC\",'Enrollment Form'!$DR648<>\"\"),\"Y\",IF(AND('Enrollment Form'!$C648=\"ROC\",'Enrollment Form'!$DR648=\"\"),\"N\",IF(AND('Enrollment Form'!$C648=\"Enroll\",'Enrollment Form'!$B648=\"Subscriber\",'Enrollment Form'!$CX648=\"No\",'Enrollment Form'!$DR648=\"\"),\"N\",IF(AND('Enrollment Form'!$C648=\"Enroll\",'Enrollment Form'!$B648=\"Subscriber\",'Enrollment Form'!$CX648=\"Yes\"),\"-\",\"Y\")))))","v":""},{"$f":"IF($B641=\"N\",\"\",IF(AND('Enrollment Form'!$C648=\"ROC\",'Enrollment Form'!$DS648<>\"\"),\"Y\",IF(AND('Enrollment Form'!$C648=\"ROC\",'Enrollment Form'!$DS648=\"\"),\"N\",IF(AND('Enrollment Form'!$C648=\"Enroll\",'Enrollment Form'!$B648=\"Subscriber\",'Enrollment Form'!$CX648=\"No\",'Enrollment Form'!$DS648=\"\"),\"N\",IF(AND('Enrollment Form'!$C648=\"Enroll\",'Enrollment Form'!$B648=\"Subscriber\",'Enrollment Form'!$CX648=\"Yes\"),\"-\",\"Y\")))))","v":""},{"$f":"IF('Enrollment Form'!AH648=\"\",\"\",IF(ISERROR(SEARCH(\".\",'Enrollment Form'!AH648,SEARCH(\"@\",'Enrollment Form'!AH648))),\"N\",\"Y\"))","v":""},{"$f":"IF(OR($B641=\"N\",'Enrollment Form'!$G648=\"\"),\"\",IF('Enrollment Form'!$B648<>\"Subscriber\",\"-\",IF(COUNTIF('Enrollment Form'!$AV648:$AW648,\"Yes\")=2,\"N\",\"Y\")))","v":""},{"$f":"IF(OR('Enrollment Form'!$CJ648=\"\",'Enrollment Form'!$CJ648=\"No\"),\"-\",IF(AND('Enrollment Form'!$CJ648=\"Yes\",'Enrollment Form'!$CK648=\"\"),\"N\",\"Y\"))","v":"-"},{"$f":"IF(OR('Enrollment Form'!$CL648=\"\",'Enrollment Form'!$CL648=\"No\"),\"-\",IF(AND('Enrollment Form'!$CL648=\"Yes\",'Enrollment Form'!$CM648=\"\"),\"N\",\"Y\"))","v":"-"},{"$f":"IF(OR('Enrollment Form'!$CN648=\"\",'Enrollment Form'!$CN648=\"No\"),\"-\",IF(AND('Enrollment Form'!$CN648=\"Yes\",'Enrollment Form'!$CO648=\"\"),\"N\",\"Y\"))","v":"-"},{"$f":"IF(OR('Enrollment Form'!$CN648=\"\",'Enrollment Form'!$CN648=\"No\"),\"-\",IF(AND('Enrollment Form'!$CN648=\"Yes\",'Enrollment Form'!$CP648=\"\"),\"N\",\"Y\"))","v":"-"},{"$f":"IF('Enrollment Form'!B648<>\"Subscriber\",\"-\",IF(AND('Enrollment Form'!B648=\"Subscriber\",'Enrollment Form'!C648=\"Enroll\",'Enrollment Form'!AA648=\"\"),\"N\",\"Y\"))","v":"-"},{"$f":"IF(OR('Enrollment Form'!B648=\"Subscriber\",'Enrollment Form'!B648=\"\"),\"-\",IF('Enrollment Form'!BP648=\"\",\"N\",\"Y\"))","v":"-"},{"$f":"IF('Enrollment Form'!B648<>\"Subscriber\",\"-\",IF(AND('Enrollment Form'!B648=\"Subscriber\",'Enrollment Form'!G648=\"\"),\"N\",\"Y\"))","v":"-"},{"$f":"IF('Enrollment Form'!A648=\"\",\"\",IF('Enrollment Form'!B648=\"Subscriber\",\"-\",IF(AND('Enrollment Form'!B648<>\"Subscriber\",'Enrollment Form'!G648='Enrollment Form'!H648),\"N\",\"Y\")))","v":""},0]
[649,{"$f":"IF('Enrollment Form'!$A649<>\"\",\"Y\",\"N\")","v":"N"},{"$f":"IF(AND('Enrollment Form'!$B649=\"\",'Enrollment Form'!$C649<>\"\"),\"N\",IF($B642=\"N\",\"\",\"Y\"))","v":""},{"$f":"IF(OR($B642=\"N\",'Enrollment Form'!G649=\"\"),\"\",IF('Enrollment Form'!$B649<>\"Subscriber\",\"\",IF('Enrollment Form'!$G649='Enrollment Form'!$H649,\"Y\",\"N\")))","v":""},{"$f":"IF($B642=\"N\",\"\",IF(AND(COUNTIFS('Enrollment Form'!$H$11:$H$1000,'Enrollment Form'!$H649,'Enrollment Form'!$B$11:$B$1000,'Enrollment Form'!$B649)>1,'Enrollment Form'!$H649<>\"\"),\"N\",\"Y\"))","v":""},{"$f":"IF($B642=\"N\",\"\",IF(LEN('Enrollment Form'!$Y649)=0,\"\",IF(LEN('Enrollment Form'!$Y649)<>5,\"N\",\"Y\")))","v":""},{"$f":"IF($B642=\"N\",\"\",IF(LEN('Enrollment Form'!$AD649=0),\"\",IF(LEN('Enrollment Form'!$AD649)<>5,\"N\",\"Y\")))","v":""},{"$f":"IF($B642=\"N\",\"\",IF(LEN('Enrollment Form'!$BS649=0),\"\",IF(LEN('Enrollment Form'!$BS649)<>5,\"N\",\"Y\")))","v":""},{"$f":"IF($B642=\"N\",\"\",IF(LEN('Enrollment Form'!$AE649)=0,\"\",IF(LEN('Enrollment Form'!$AE649)<>10,\"N\",\"Y\")))","v":""},{"$f":"IF($B642=\"N\",\"\",IF(LEN('Enrollment Form'!$AF649)=0,\"\",IF(LEN('Enrollment Form'!$AF649)<>10,\"N\",\"Y\")))","v":""},{"$f":"IF('Enrollment Form'!$O649<>\"Graded\",\"-\",IF(AND('Enrollment Form'!$O649=\"Graded\",'Enrollment Form'!$AR649<>\"\"),\"Y\",\"N\"))","v":"-"},{"$f":"IF($B642=\"N\",\"\",IF(OR('Enrollment Form'!$B649<>\"Subscriber\",'Enrollment Form'!$C649=\"ROC\"),\"-\",IF(AND('Enrollment Form'!$B649=\"Subscriber\",'Enrollment Form'!$C649=\"Enroll\",'Enrollment Form'!$AJ649<>\"\"),\"Y\",\"N\")))","v":""},{"$f":"IF($B642=\"N\",\"\",IF(OR('Enrollment Form'!$B649<>\"Subscriber\",'Enrollment Form'!$C649=\"ROC\"),\"-\",IF(AND('Enrollment Form'!$B649=\"Subscriber\",'Enrollment Form'!$C649=\"Enroll\",'Enrollment Form'!$AK649<>\"\"),\"Y\",\"N\")))","v":""},{"$f":"IF($B642=\"N\",\"\",IF(OR('Enrollment Form'!$B649<>\"Subscriber\",'Enrollment Form'!$C649=\"ROC\"),\"-\",IF(AND('Enrollment Form'!$B649=\"Subscriber\",'Enrollment Form'!$C649=\"Enroll\",'Enrollment Form'!$AL649<>\"\"),\"Y\",\"N\")))","v":""},{"$f":"IF($B642=\"N\",\"\",IF(OR('Enrollment Form'!$B649<>\"Subscriber\",'Enrollment Form'!$C649=\"ROC\"),\"-\",IF(AND('Enrollment Form'!$B649=\"Subscriber\",'Enrollment Form'!$C649=\"Enroll\",'Enrollment Form'!$AP649<>\"\"),\"Y\",\"N\")))","v":""},{"$f":"IF($B642=\"N\",\"\",IF(OR('Enrollment Form'!$B649<>\"Subscriber\",'Enrollment Form'!$C649=\"ROC\"),\"-\",IF(AND('Enrollment Form'!$B649=\"Subscriber\",'Enrollment Form'!$C649=\"Enroll\",'Enrollment Form'!$AQ649<>\"\"),\"Y\",\"N\")))","v":""},{"$f":"IF($B642=\"N\",\"\",IF(OR('Enrollment Form'!$B649<>\"Subscriber\",'Enrollment Form'!$C649=\"ROC\"),\"-\",IF(AND('Enrollment Form'!$B649=\"Subscriber\",'Enrollment Form'!$C649=\"Enroll\",'Enrollment Form'!$AS649<>\"\"),\"Y\",\"N\")))","v":""},{"$f":"IF($B642=\"N\",\"\",IF($Q642=\"-\",\"-\",IF(AND($Q642=\"Y\",'Enrollment Form'!$AS649=\"No\"),\"-\",IF(AND($Q642=\"Y\",'Enrollment Form'!$AS649=\"Yes\",'Enrollment Form'!$AT649<>\"\"),\"Y\",\"N\"))))","v":""},{"$f":"IF($B642=\"N\",\"\",IF(OR('Enrollment Form'!$B649<>\"Subscriber\",'Enrollment Form'!$C649=\"ROC\"),\"-\",IF(AND('Enrollment Form'!$B649=\"Subscriber\",'Enrollment Form'!$C649=\"Enroll\",'Enrollment Form'!$CV649<>\"\"),\"Y\",\"N\")))","v":""},{"$f":"IF($B642=\"N\",\"\",IF($S642=\"-\",\"-\",IF(AND($S642=\"Y\",'Enrollment Form'!$CV649=\"No\"),\"-\",IF(AND($S642=\"Y\",'Enrollment Form'!$CV649=\"Yes\",'Enrollment Form'!$CW649<>\"\"),\"Y\",\"N\"))))","v":""},{"$f":"IF(OR('Enrollment Form'!$AY649=\"Yes\",'Enrollment Form'!$AY649=\"\"),\"-\",IF(OR(AND('Enrollment Form'!$AY649=\"No\",ISERROR(FIND(\"HMO\",VLOOKUP('Enrollment Form'!G649,'Enrollment Form'!H$11:J$1000,3,FALSE),1))=FALSE,COUNTA('Enrollment Form'!$AZ649:$BC649)=4),AND('Enrollment Form'!$AY649=\"No\",ISERROR(FIND(\"HMO\",VLOOKUP('Enrollment Form'!G649,'Enrollment Form'!H$11:J$1000,3,FALSE),1))=FALSE,COUNTA('Enrollment Form'!$BT649:$BW649)=4)),\"Y\",\"N\"))","v":"-"},{"$f":"IF($B642=\"N\",\"\",IF('Enrollment Form'!$B649=\"Subscriber\",\"-\",IF(COUNTA('Enrollment Form'!$BL649,'Enrollment Form'!$BN649)=2,\"Y\",\"N\")))","v":""},{"$f":"IF($B642=\"N\",\"\",IF(OR('Enrollment Form'!$AX649=\"\",'Enrollment Form'!$AX649=\"No\"),\"-\",IF(AND('Enrollment Form'!$AX649=\"Yes\",COUNTA('Enrollment Form'!$CR649)=1),\"Y\",\"N\")))","v":""},{"$f":"IF(OR('Enrollment Form'!$CR649=\"\",'Enrollment Form'!$CR649=\"No\"),\"-\",IF(COUNTA('Enrollment Form'!$CT649:$CU649)=2,\"Y\",\"N\"))","v":"-"},{"$f":"IF($B642=\"N\",\"\",IF(COUNTIF('Enrollment Form'!$DG649:$DP649,\"Other\")=COUNTA('Enrollment Form'!$DK649,'Enrollment Form'!$DH649,'Enrollment Form'!$DN649,'Enrollment Form'!$DQ649),\"Y\",\"N\"))","v":""},{"$f":"IF($B642=\"N\",\"\",IF(OR('Enrollment Form'!B649<>\"Subscriber\",'Enrollment Form'!C649=\"ROC\",COUNTIF('Enrollment Form'!AV649:AW649,\"Yes\")>=1),\"-\",IF(AND('Enrollment Form'!C649=\"Enroll\",COUNTIF('Enrollment Form'!AV649:AW649,\"No\")=2,'Enrollment Form'!AX649=\"\"),\"N\",\"Y\")))","v":""},{"$f":"IF(OR(B642=\"N\",'Enrollment Form'!B649<>\"Subscriber\",'Enrollment Form'!C649=\"ROC\",'Enrollment Form'!O649<>\"Multiple of Salary\"),\"-\",IF(COUNTA('Enrollment Form'!T649:U649)<2,\"N\",\"Y\"))","v":"-"},{"$f":"IF(B642=\"N\",\"\",IF(OR('Enrollment Form'!C649=\"ROC\",'Enrollment Form'!B649<>\"Subscriber\",'Enrollment Form'!O649=\"Waive\",'Enrollment Form'!O649=\"\"),\"-\",IF('Enrollment Form'!P649=\"\",\"N\",\"Y\")))","v":""},{"$f":"IF($B642=\"N\",\"\",IF(AND('Enrollment Form'!$C649=\"ROC\",'Enrollment Form'!$DR649<>\"\"),\"Y\",IF(AND('Enrollment Form'!$C649=\"ROC\",'Enrollment Form'!$DR649=\"\"),\"N\",IF(AND('Enrollment Form'!$C649=\"Enroll\",'Enrollment Form'!$B649=\"Subscriber\",'Enrollment Form'!$CX649=\"No\",'Enrollment Form'!$DR649=\"\"),\"N\",IF(AND('Enrollment Form'!$C649=\"Enroll\",'Enrollment Form'!$B649=\"Subscriber\",'Enrollment Form'!$CX649=\"Yes\"),\"-\",\"Y\")))))","v":""},{"$f":"IF($B642=\"N\",\"\",IF(AND('Enrollment Form'!$C649=\"ROC\",'Enrollment Form'!$DS649<>\"\"),\"Y\",IF(AND('Enrollment Form'!$C649=\"ROC\",'Enrollment Form'!$DS649=\"\"),\"N\",IF(AND('Enrollment Form'!$C649=\"Enroll\",'Enrollment Form'!$B649=\"Subscriber\",'Enrollment Form'!$CX649=\"No\",'Enrollment Form'!$DS649=\"\"),\"N\",IF(AND('Enrollment Form'!$C649=\"Enroll\",'Enrollment Form'!$B649=\"Subscriber\",'Enrollment Form'!$CX649=\"Yes\"),\"-\",\"Y\")))))","v":""},{"$f":"IF('Enrollment Form'!AH649=\"\",\"\",IF(ISERROR(SEARCH(\".\",'Enrollment Form'!AH649,SEARCH(\"@\",'Enrollment Form'!AH649))),\"N\",\"Y\"))","v":""},{"$f":"IF(OR($B642=\"N\",'Enrollment Form'!$G649=\"\"),\"\",IF('Enrollment Form'!$B649<>\"Subscriber\",\"-\",IF(COUNTIF('Enrollment Form'!$AV649:$AW649,\"Yes\")=2,\"N\",\"Y\")))","v":""},{"$f":"IF(OR('Enrollment Form'!$CJ649=\"\",'Enrollment Form'!$CJ649=\"No\"),\"-\",IF(AND('Enrollment Form'!$CJ649=\"Yes\",'Enrollment Form'!$CK649=\"\"),\"N\",\"Y\"))","v":"-"},{"$f":"IF(OR('Enrollment Form'!$CL649=\"\",'Enrollment Form'!$CL649=\"No\"),\"-\",IF(AND('Enrollment Form'!$CL649=\"Yes\",'Enrollment Form'!$CM649=\"\"),\"N\",\"Y\"))","v":"-"},{"$f":"IF(OR('Enrollment Form'!$CN649=\"\",'Enrollment Form'!$CN649=\"No\"),\"-\",IF(AND('Enrollment Form'!$CN649=\"Yes\",'Enrollment Form'!$CO649=\"\"),\"N\",\"Y\"))","v":"-"},{"$f":"IF(OR('Enrollment Form'!$CN649=\"\",'Enrollment Form'!$CN649=\"No\"),\"-\",IF(AND('Enrollment Form'!$CN649=\"Yes\",'Enrollment Form'!$CP649=\"\"),\"N\",\"Y\"))","v":"-"},{"$f":"IF('Enrollment Form'!B649<>\"Subscriber\",\"-\",IF(AND('Enrollment Form'!B649=\"Subscriber\",'Enrollment Form'!C649=\"Enroll\",'Enrollment Form'!AA649=\"\"),\"N\",\"Y\"))","v":"-"},{"$f":"IF(OR('Enrollment Form'!B649=\"Subscriber\",'Enrollment Form'!B649=\"\"),\"-\",IF('Enrollment Form'!BP649=\"\",\"N\",\"Y\"))","v":"-"},{"$f":"IF('Enrollment Form'!B649<>\"Subscriber\",\"-\",IF(AND('Enrollment Form'!B649=\"Subscriber\",'Enrollment Form'!G649=\"\"),\"N\",\"Y\"))","v":"-"},{"$f":"IF('Enrollment Form'!A649=\"\",\"\",IF('Enrollment Form'!B649=\"Subscriber\",\"-\",IF(AND('Enrollment Form'!B649<>\"Subscriber\",'Enrollment Form'!G649='Enrollment Form'!H649),\"N\",\"Y\")))","v":""},0]
[650,{"$f":"IF('Enrollment Form'!$A650<>\"\",\"Y\",\"N\")","v":"N"},{"$f":"IF(AND('Enrollment Form'!$B650=\"\",'Enrollment Form'!$C650<>\"\"),\"N\",IF($B643=\"N\",\"\",\"Y\"))","v":""},{"$f":"IF(OR($B643=\"N\",'Enrollment Form'!G650=\"\"),\"\",IF('Enrollment Form'!$B650<>\"Subscriber\",\"\",IF('Enrollment Form'!$G650='Enrollment Form'!$H650,\"Y\",\"N\")))","v":""},{"$f":"IF($B643=\"N\",\"\",IF(AND(COUNTIFS('Enrollment Form'!$H$11:$H$1000,'Enrollment Form'!$H650,'Enrollment Form'!$B$11:$B$1000,'Enrollment Form'!$B650)>1,'Enrollment Form'!$H650<>\"\"),\"N\",\"Y\"))","v":""},{"$f":"IF($B643=\"N\",\"\",IF(LEN('Enrollment Form'!$Y650)=0,\"\",IF(LEN('Enrollment Form'!$Y650)<>5,\"N\",\"Y\")))","v":""},{"$f":"IF($B643=\"N\",\"\",IF(LEN('Enrollment Form'!$AD650=0),\"\",IF(LEN('Enrollment Form'!$AD650)<>5,\"N\",\"Y\")))","v":""},{"$f":"IF($B643=\"N\",\"\",IF(LEN('Enrollment Form'!$BS650=0),\"\",IF(LEN('Enrollment Form'!$BS650)<>5,\"N\",\"Y\")))","v":""},{"$f":"IF($B643=\"N\",\"\",IF(LEN('Enrollment Form'!$AE650)=0,\"\",IF(LEN('Enrollment Form'!$AE650)<>10,\"N\",\"Y\")))","v":""},{"$f":"IF($B643=\"N\",\"\",IF(LEN('Enrollment Form'!$AF650)=0,\"\",IF(LEN('Enrollment Form'!$AF650)<>10,\"N\",\"Y\")))","v":""},{"$f":"IF('Enrollment Form'!$O650<>\"Graded\",\"-\",IF(AND('Enrollment Form'!$O650=\"Graded\",'Enrollment Form'!$AR650<>\"\"),\"Y\",\"N\"))","v":"-"},{"$f":"IF($B643=\"N\",\"\",IF(OR('Enrollment Form'!$B650<>\"Subscriber\",'Enrollment Form'!$C650=\"ROC\"),\"-\",IF(AND('Enrollment Form'!$B650=\"Subscriber\",'Enrollment Form'!$C650=\"Enroll\",'Enrollment Form'!$AJ650<>\"\"),\"Y\",\"N\")))","v":""},{"$f":"IF($B643=\"N\",\"\",IF(OR('Enrollment Form'!$B650<>\"Subscriber\",'Enrollment Form'!$C650=\"ROC\"),\"-\",IF(AND('Enrollment Form'!$B650=\"Subscriber\",'Enrollment Form'!$C650=\"Enroll\",'Enrollment Form'!$AK650<>\"\"),\"Y\",\"N\")))","v":""},{"$f":"IF($B643=\"N\",\"\",IF(OR('Enrollment Form'!$B650<>\"Subscriber\",'Enrollment Form'!$C650=\"ROC\"),\"-\",IF(AND('Enrollment Form'!$B650=\"Subscriber\",'Enrollment Form'!$C650=\"Enroll\",'Enrollment Form'!$AL650<>\"\"),\"Y\",\"N\")))","v":""},{"$f":"IF($B643=\"N\",\"\",IF(OR('Enrollment Form'!$B650<>\"Subscriber\",'Enrollment Form'!$C650=\"ROC\"),\"-\",IF(AND('Enrollment Form'!$B650=\"Subscriber\",'Enrollment Form'!$C650=\"Enroll\",'Enrollment Form'!$AP650<>\"\"),\"Y\",\"N\")))","v":""},{"$f":"IF($B643=\"N\",\"\",IF(OR('Enrollment Form'!$B650<>\"Subscriber\",'Enrollment Form'!$C650=\"ROC\"),\"-\",IF(AND('Enrollment Form'!$B650=\"Subscriber\",'Enrollment Form'!$C650=\"Enroll\",'Enrollment Form'!$AQ650<>\"\"),\"Y\",\"N\")))","v":""},{"$f":"IF($B643=\"N\",\"\",IF(OR('Enrollment Form'!$B650<>\"Subscriber\",'Enrollment Form'!$C650=\"ROC\"),\"-\",IF(AND('Enrollment Form'!$B650=\"Subscriber\",'Enrollment Form'!$C650=\"Enroll\",'Enrollment Form'!$AS650<>\"\"),\"Y\",\"N\")))","v":""},{"$f":"IF($B643=\"N\",\"\",IF($Q643=\"-\",\"-\",IF(AND($Q643=\"Y\",'Enrollment Form'!$AS650=\"No\"),\"-\",IF(AND($Q643=\"Y\",'Enrollment Form'!$AS650=\"Yes\",'Enrollment Form'!$AT650<>\"\"),\"Y\",\"N\"))))","v":""},{"$f":"IF($B643=\"N\",\"\",IF(OR('Enrollment Form'!$B650<>\"Subscriber\",'Enrollment Form'!$C650=\"ROC\"),\"-\",IF(AND('Enrollment Form'!$B650=\"Subscriber\",'Enrollment Form'!$C650=\"Enroll\",'Enrollment Form'!$CV650<>\"\"),\"Y\",\"N\")))","v":""},{"$f":"IF($B643=\"N\",\"\",IF($S643=\"-\",\"-\",IF(AND($S643=\"Y\",'Enrollment Form'!$CV650=\"No\"),\"-\",IF(AND($S643=\"Y\",'Enrollment Form'!$CV650=\"Yes\",'Enrollment Form'!$CW650<>\"\"),\"Y\",\"N\"))))","v":""},{"$f":"IF(OR('Enrollment Form'!$AY650=\"Yes\",'Enrollment Form'!$AY650=\"\"),\"-\",IF(OR(AND('Enrollment Form'!$AY650=\"No\",ISERROR(FIND(\"HMO\",VLOOKUP('Enrollment Form'!G650,'Enrollment Form'!H$11:J$1000,3,FALSE),1))=FALSE,COUNTA('Enrollment Form'!$AZ650:$BC650)=4),AND('Enrollment Form'!$AY650=\"No\",ISERROR(FIND(\"HMO\",VLOOKUP('Enrollment Form'!G650,'Enrollment Form'!H$11:J$1000,3,FALSE),1))=FALSE,COUNTA('Enrollment Form'!$BT650:$BW650)=4)),\"Y\",\"N\"))","v":"-"},{"$f":"IF($B643=\"N\",\"\",IF('Enrollment Form'!$B650=\"Subscriber\",\"-\",IF(COUNTA('Enrollment Form'!$BL650,'Enrollment Form'!$BN650)=2,\"Y\",\"N\")))","v":""},{"$f":"IF($B643=\"N\",\"\",IF(OR('Enrollment Form'!$AX650=\"\",'Enrollment Form'!$AX650=\"No\"),\"-\",IF(AND('Enrollment Form'!$AX650=\"Yes\",COUNTA('Enrollment Form'!$CR650)=1),\"Y\",\"N\")))","v":""},{"$f":"IF(OR('Enrollment Form'!$CR650=\"\",'Enrollment Form'!$CR650=\"No\"),\"-\",IF(COUNTA('Enrollment Form'!$CT650:$CU650)=2,\"Y\",\"N\"))","v":"-"},{"$f":"IF($B643=\"N\",\"\",IF(COUNTIF('Enrollment Form'!$DG650:$DP650,\"Other\")=COUNTA('Enrollment Form'!$DK650,'Enrollment Form'!$DH650,'Enrollment Form'!$DN650,'Enrollment Form'!$DQ650),\"Y\",\"N\"))","v":""},{"$f":"IF($B643=\"N\",\"\",IF(OR('Enrollment Form'!B650<>\"Subscriber\",'Enrollment Form'!C650=\"ROC\",COUNTIF('Enrollment Form'!AV650:AW650,\"Yes\")>=1),\"-\",IF(AND('Enrollment Form'!C650=\"Enroll\",COUNTIF('Enrollment Form'!AV650:AW650,\"No\")=2,'Enrollment Form'!AX650=\"\"),\"N\",\"Y\")))","v":""},{"$f":"IF(OR(B643=\"N\",'Enrollment Form'!B650<>\"Subscriber\",'Enrollment Form'!C650=\"ROC\",'Enrollment Form'!O650<>\"Multiple of Salary\"),\"-\",IF(COUNTA('Enrollment Form'!T650:U650)<2,\"N\",\"Y\"))","v":"-"},{"$f":"IF(B643=\"N\",\"\",IF(OR('Enrollment Form'!C650=\"ROC\",'Enrollment Form'!B650<>\"Subscriber\",'Enrollment Form'!O650=\"Waive\",'Enrollment Form'!O650=\"\"),\"-\",IF('Enrollment Form'!P650=\"\",\"N\",\"Y\")))","v":""},{"$f":"IF($B643=\"N\",\"\",IF(AND('Enrollment Form'!$C650=\"ROC\",'Enrollment Form'!$DR650<>\"\"),\"Y\",IF(AND('Enrollment Form'!$C650=\"ROC\",'Enrollment Form'!$DR650=\"\"),\"N\",IF(AND('Enrollment Form'!$C650=\"Enroll\",'Enrollment Form'!$B650=\"Subscriber\",'Enrollment Form'!$CX650=\"No\",'Enrollment Form'!$DR650=\"\"),\"N\",IF(AND('Enrollment Form'!$C650=\"Enroll\",'Enrollment Form'!$B650=\"Subscriber\",'Enrollment Form'!$CX650=\"Yes\"),\"-\",\"Y\")))))","v":""},{"$f":"IF($B643=\"N\",\"\",IF(AND('Enrollment Form'!$C650=\"ROC\",'Enrollment Form'!$DS650<>\"\"),\"Y\",IF(AND('Enrollment Form'!$C650=\"ROC\",'Enrollment Form'!$DS650=\"\"),\"N\",IF(AND('Enrollment Form'!$C650=\"Enroll\",'Enrollment Form'!$B650=\"Subscriber\",'Enrollment Form'!$CX650=\"No\",'Enrollment Form'!$DS650=\"\"),\"N\",IF(AND('Enrollment Form'!$C650=\"Enroll\",'Enrollment Form'!$B650=\"Subscriber\",'Enrollment Form'!$CX650=\"Yes\"),\"-\",\"Y\")))))","v":""},{"$f":"IF('Enrollment Form'!AH650=\"\",\"\",IF(ISERROR(SEARCH(\".\",'Enrollment Form'!AH650,SEARCH(\"@\",'Enrollment Form'!AH650))),\"N\",\"Y\"))","v":""},{"$f":"IF(OR($B643=\"N\",'Enrollment Form'!$G650=\"\"),\"\",IF('Enrollment Form'!$B650<>\"Subscriber\",\"-\",IF(COUNTIF('Enrollment Form'!$AV650:$AW650,\"Yes\")=2,\"N\",\"Y\")))","v":""},{"$f":"IF(OR('Enrollment Form'!$CJ650=\"\",'Enrollment Form'!$CJ650=\"No\"),\"-\",IF(AND('Enrollment Form'!$CJ650=\"Yes\",'Enrollment Form'!$CK650=\"\"),\"N\",\"Y\"))","v":"-"},{"$f":"IF(OR('Enrollment Form'!$CL650=\"\",'Enrollment Form'!$CL650=\"No\"),\"-\",IF(AND('Enrollment Form'!$CL650=\"Yes\",'Enrollment Form'!$CM650=\"\"),\"N\",\"Y\"))","v":"-"},{"$f":"IF(OR('Enrollment Form'!$CN650=\"\",'Enrollment Form'!$CN650=\"No\"),\"-\",IF(AND('Enrollment Form'!$CN650=\"Yes\",'Enrollment Form'!$CO650=\"\"),\"N\",\"Y\"))","v":"-"},{"$f":"IF(OR('Enrollment Form'!$CN650=\"\",'Enrollment Form'!$CN650=\"No\"),\"-\",IF(AND('Enrollment Form'!$CN650=\"Yes\",'Enrollment Form'!$CP650=\"\"),\"N\",\"Y\"))","v":"-"},{"$f":"IF('Enrollment Form'!B650<>\"Subscriber\",\"-\",IF(AND('Enrollment Form'!B650=\"Subscriber\",'Enrollment Form'!C650=\"Enroll\",'Enrollment Form'!AA650=\"\"),\"N\",\"Y\"))","v":"-"},{"$f":"IF(OR('Enrollment Form'!B650=\"Subscriber\",'Enrollment Form'!B650=\"\"),\"-\",IF('Enrollment Form'!BP650=\"\",\"N\",\"Y\"))","v":"-"},{"$f":"IF('Enrollment Form'!B650<>\"Subscriber\",\"-\",IF(AND('Enrollment Form'!B650=\"Subscriber\",'Enrollment Form'!G650=\"\"),\"N\",\"Y\"))","v":"-"},{"$f":"IF('Enrollment Form'!A650=\"\",\"\",IF('Enrollment Form'!B650=\"Subscriber\",\"-\",IF(AND('Enrollment Form'!B650<>\"Subscriber\",'Enrollment Form'!G650='Enrollment Form'!H650),\"N\",\"Y\")))","v":""},0]
[651,{"$f":"IF('Enrollment Form'!$A651<>\"\",\"Y\",\"N\")","v":"N"},{"$f":"IF(AND('Enrollment Form'!$B651=\"\",'Enrollment Form'!$C651<>\"\"),\"N\",IF($B644=\"N\",\"\",\"Y\"))","v":""},{"$f":"IF(OR($B644=\"N\",'Enrollment Form'!G651=\"\"),\"\",IF('Enrollment Form'!$B651<>\"Subscriber\",\"\",IF('Enrollment Form'!$G651='Enrollment Form'!$H651,\"Y\",\"N\")))","v":""},{"$f":"IF($B644=\"N\",\"\",IF(AND(COUNTIFS('Enrollment Form'!$H$11:$H$1000,'Enrollment Form'!$H651,'Enrollment Form'!$B$11:$B$1000,'Enrollment Form'!$B651)>1,'Enrollment Form'!$H651<>\"\"),\"N\",\"Y\"))","v":""},{"$f":"IF($B644=\"N\",\"\",IF(LEN('Enrollment Form'!$Y651)=0,\"\",IF(LEN('Enrollment Form'!$Y651)<>5,\"N\",\"Y\")))","v":""},{"$f":"IF($B644=\"N\",\"\",IF(LEN('Enrollment Form'!$AD651=0),\"\",IF(LEN('Enrollment Form'!$AD651)<>5,\"N\",\"Y\")))","v":""},{"$f":"IF($B644=\"N\",\"\",IF(LEN('Enrollment Form'!$BS651=0),\"\",IF(LEN('Enrollment Form'!$BS651)<>5,\"N\",\"Y\")))","v":""},{"$f":"IF($B644=\"N\",\"\",IF(LEN('Enrollment Form'!$AE651)=0,\"\",IF(LEN('Enrollment Form'!$AE651)<>10,\"N\",\"Y\")))","v":""},{"$f":"IF($B644=\"N\",\"\",IF(LEN('Enrollment Form'!$AF651)=0,\"\",IF(LEN('Enrollment Form'!$AF651)<>10,\"N\",\"Y\")))","v":""},{"$f":"IF('Enrollment Form'!$O651<>\"Graded\",\"-\",IF(AND('Enrollment Form'!$O651=\"Graded\",'Enrollment Form'!$AR651<>\"\"),\"Y\",\"N\"))","v":"-"},{"$f":"IF($B644=\"N\",\"\",IF(OR('Enrollment Form'!$B651<>\"Subscriber\",'Enrollment Form'!$C651=\"ROC\"),\"-\",IF(AND('Enrollment Form'!$B651=\"Subscriber\",'Enrollment Form'!$C651=\"Enroll\",'Enrollment Form'!$AJ651<>\"\"),\"Y\",\"N\")))","v":""},{"$f":"IF($B644=\"N\",\"\",IF(OR('Enrollment Form'!$B651<>\"Subscriber\",'Enrollment Form'!$C651=\"ROC\"),\"-\",IF(AND('Enrollment Form'!$B651=\"Subscriber\",'Enrollment Form'!$C651=\"Enroll\",'Enrollment Form'!$AK651<>\"\"),\"Y\",\"N\")))","v":""},{"$f":"IF($B644=\"N\",\"\",IF(OR('Enrollment Form'!$B651<>\"Subscriber\",'Enrollment Form'!$C651=\"ROC\"),\"-\",IF(AND('Enrollment Form'!$B651=\"Subscriber\",'Enrollment Form'!$C651=\"Enroll\",'Enrollment Form'!$AL651<>\"\"),\"Y\",\"N\")))","v":""},{"$f":"IF($B644=\"N\",\"\",IF(OR('Enrollment Form'!$B651<>\"Subscriber\",'Enrollment Form'!$C651=\"ROC\"),\"-\",IF(AND('Enrollment Form'!$B651=\"Subscriber\",'Enrollment Form'!$C651=\"Enroll\",'Enrollment Form'!$AP651<>\"\"),\"Y\",\"N\")))","v":""},{"$f":"IF($B644=\"N\",\"\",IF(OR('Enrollment Form'!$B651<>\"Subscriber\",'Enrollment Form'!$C651=\"ROC\"),\"-\",IF(AND('Enrollment Form'!$B651=\"Subscriber\",'Enrollment Form'!$C651=\"Enroll\",'Enrollment Form'!$AQ651<>\"\"),\"Y\",\"N\")))","v":""},{"$f":"IF($B644=\"N\",\"\",IF(OR('Enrollment Form'!$B651<>\"Subscriber\",'Enrollment Form'!$C651=\"ROC\"),\"-\",IF(AND('Enrollment Form'!$B651=\"Subscriber\",'Enrollment Form'!$C651=\"Enroll\",'Enrollment Form'!$AS651<>\"\"),\"Y\",\"N\")))","v":""},{"$f":"IF($B644=\"N\",\"\",IF($Q644=\"-\",\"-\",IF(AND($Q644=\"Y\",'Enrollment Form'!$AS651=\"No\"),\"-\",IF(AND($Q644=\"Y\",'Enrollment Form'!$AS651=\"Yes\",'Enrollment Form'!$AT651<>\"\"),\"Y\",\"N\"))))","v":""},{"$f":"IF($B644=\"N\",\"\",IF(OR('Enrollment Form'!$B651<>\"Subscriber\",'Enrollment Form'!$C651=\"ROC\"),\"-\",IF(AND('Enrollment Form'!$B651=\"Subscriber\",'Enrollment Form'!$C651=\"Enroll\",'Enrollment Form'!$CV651<>\"\"),\"Y\",\"N\")))","v":""},{"$f":"IF($B644=\"N\",\"\",IF($S644=\"-\",\"-\",IF(AND($S644=\"Y\",'Enrollment Form'!$CV651=\"No\"),\"-\",IF(AND($S644=\"Y\",'Enrollment Form'!$CV651=\"Yes\",'Enrollment Form'!$CW651<>\"\"),\"Y\",\"N\"))))","v":""},{"$f":"IF(OR('Enrollment Form'!$AY651=\"Yes\",'Enrollment Form'!$AY651=\"\"),\"-\",IF(OR(AND('Enrollment Form'!$AY651=\"No\",ISERROR(FIND(\"HMO\",VLOOKUP('Enrollment Form'!G651,'Enrollment Form'!H$11:J$1000,3,FALSE),1))=FALSE,COUNTA('Enrollment Form'!$AZ651:$BC651)=4),AND('Enrollment Form'!$AY651=\"No\",ISERROR(FIND(\"HMO\",VLOOKUP('Enrollment Form'!G651,'Enrollment Form'!H$11:J$1000,3,FALSE),1))=FALSE,COUNTA('Enrollment Form'!$BT651:$BW651)=4)),\"Y\",\"N\"))","v":"-"},{"$f":"IF($B644=\"N\",\"\",IF('Enrollment Form'!$B651=\"Subscriber\",\"-\",IF(COUNTA('Enrollment Form'!$BL651,'Enrollment Form'!$BN651)=2,\"Y\",\"N\")))","v":""},{"$f":"IF($B644=\"N\",\"\",IF(OR('Enrollment Form'!$AX651=\"\",'Enrollment Form'!$AX651=\"No\"),\"-\",IF(AND('Enrollment Form'!$AX651=\"Yes\",COUNTA('Enrollment Form'!$CR651)=1),\"Y\",\"N\")))","v":""},{"$f":"IF(OR('Enrollment Form'!$CR651=\"\",'Enrollment Form'!$CR651=\"No\"),\"-\",IF(COUNTA('Enrollment Form'!$CT651:$CU651)=2,\"Y\",\"N\"))","v":"-"},{"$f":"IF($B644=\"N\",\"\",IF(COUNTIF('Enrollment Form'!$DG651:$DP651,\"Other\")=COUNTA('Enrollment Form'!$DK651,'Enrollment Form'!$DH651,'Enrollment Form'!$DN651,'Enrollment Form'!$DQ651),\"Y\",\"N\"))","v":""},{"$f":"IF($B644=\"N\",\"\",IF(OR('Enrollment Form'!B651<>\"Subscriber\",'Enrollment Form'!C651=\"ROC\",COUNTIF('Enrollment Form'!AV651:AW651,\"Yes\")>=1),\"-\",IF(AND('Enrollment Form'!C651=\"Enroll\",COUNTIF('Enrollment Form'!AV651:AW651,\"No\")=2,'Enrollment Form'!AX651=\"\"),\"N\",\"Y\")))","v":""},{"$f":"IF(OR(B644=\"N\",'Enrollment Form'!B651<>\"Subscriber\",'Enrollment Form'!C651=\"ROC\",'Enrollment Form'!O651<>\"Multiple of Salary\"),\"-\",IF(COUNTA('Enrollment Form'!T651:U651)<2,\"N\",\"Y\"))","v":"-"},{"$f":"IF(B644=\"N\",\"\",IF(OR('Enrollment Form'!C651=\"ROC\",'Enrollment Form'!B651<>\"Subscriber\",'Enrollment Form'!O651=\"Waive\",'Enrollment Form'!O651=\"\"),\"-\",IF('Enrollment Form'!P651=\"\",\"N\",\"Y\")))","v":""},{"$f":"IF($B644=\"N\",\"\",IF(AND('Enrollment Form'!$C651=\"ROC\",'Enrollment Form'!$DR651<>\"\"),\"Y\",IF(AND('Enrollment Form'!$C651=\"ROC\",'Enrollment Form'!$DR651=\"\"),\"N\",IF(AND('Enrollment Form'!$C651=\"Enroll\",'Enrollment Form'!$B651=\"Subscriber\",'Enrollment Form'!$CX651=\"No\",'Enrollment Form'!$DR651=\"\"),\"N\",IF(AND('Enrollment Form'!$C651=\"Enroll\",'Enrollment Form'!$B651=\"Subscriber\",'Enrollment Form'!$CX651=\"Yes\"),\"-\",\"Y\")))))","v":""},{"$f":"IF($B644=\"N\",\"\",IF(AND('Enrollment Form'!$C651=\"ROC\",'Enrollment Form'!$DS651<>\"\"),\"Y\",IF(AND('Enrollment Form'!$C651=\"ROC\",'Enrollment Form'!$DS651=\"\"),\"N\",IF(AND('Enrollment Form'!$C651=\"Enroll\",'Enrollment Form'!$B651=\"Subscriber\",'Enrollment Form'!$CX651=\"No\",'Enrollment Form'!$DS651=\"\"),\"N\",IF(AND('Enrollment Form'!$C651=\"Enroll\",'Enrollment Form'!$B651=\"Subscriber\",'Enrollment Form'!$CX651=\"Yes\"),\"-\",\"Y\")))))","v":""},{"$f":"IF('Enrollment Form'!AH651=\"\",\"\",IF(ISERROR(SEARCH(\".\",'Enrollment Form'!AH651,SEARCH(\"@\",'Enrollment Form'!AH651))),\"N\",\"Y\"))","v":""},{"$f":"IF(OR($B644=\"N\",'Enrollment Form'!$G651=\"\"),\"\",IF('Enrollment Form'!$B651<>\"Subscriber\",\"-\",IF(COUNTIF('Enrollment Form'!$AV651:$AW651,\"Yes\")=2,\"N\",\"Y\")))","v":""},{"$f":"IF(OR('Enrollment Form'!$CJ651=\"\",'Enrollment Form'!$CJ651=\"No\"),\"-\",IF(AND('Enrollment Form'!$CJ651=\"Yes\",'Enrollment Form'!$CK651=\"\"),\"N\",\"Y\"))","v":"-"},{"$f":"IF(OR('Enrollment Form'!$CL651=\"\",'Enrollment Form'!$CL651=\"No\"),\"-\",IF(AND('Enrollment Form'!$CL651=\"Yes\",'Enrollment Form'!$CM651=\"\"),\"N\",\"Y\"))","v":"-"},{"$f":"IF(OR('Enrollment Form'!$CN651=\"\",'Enrollment Form'!$CN651=\"No\"),\"-\",IF(AND('Enrollment Form'!$CN651=\"Yes\",'Enrollment Form'!$CO651=\"\"),\"N\",\"Y\"))","v":"-"},{"$f":"IF(OR('Enrollment Form'!$CN651=\"\",'Enrollment Form'!$CN651=\"No\"),\"-\",IF(AND('Enrollment Form'!$CN651=\"Yes\",'Enrollment Form'!$CP651=\"\"),\"N\",\"Y\"))","v":"-"},{"$f":"IF('Enrollment Form'!B651<>\"Subscriber\",\"-\",IF(AND('Enrollment Form'!B651=\"Subscriber\",'Enrollment Form'!C651=\"Enroll\",'Enrollment Form'!AA651=\"\"),\"N\",\"Y\"))","v":"-"},{"$f":"IF(OR('Enrollment Form'!B651=\"Subscriber\",'Enrollment Form'!B651=\"\"),\"-\",IF('Enrollment Form'!BP651=\"\",\"N\",\"Y\"))","v":"-"},{"$f":"IF('Enrollment Form'!B651<>\"Subscriber\",\"-\",IF(AND('Enrollment Form'!B651=\"Subscriber\",'Enrollment Form'!G651=\"\"),\"N\",\"Y\"))","v":"-"},{"$f":"IF('Enrollment Form'!A651=\"\",\"\",IF('Enrollment Form'!B651=\"Subscriber\",\"-\",IF(AND('Enrollment Form'!B651<>\"Subscriber\",'Enrollment Form'!G651='Enrollment Form'!H651),\"N\",\"Y\")))","v":""},{"$f":"COUNTIF(C644:AN644,\"N\")","v":0}]
[652,{"$f":"IF('Enrollment Form'!$A652<>\"\",\"Y\",\"N\")","v":"N"},{"$f":"IF(AND('Enrollment Form'!$B652=\"\",'Enrollment Form'!$C652<>\"\"),\"N\",IF($B645=\"N\",\"\",\"Y\"))","v":""},{"$f":"IF(OR($B645=\"N\",'Enrollment Form'!G652=\"\"),\"\",IF('Enrollment Form'!$B652<>\"Subscriber\",\"\",IF('Enrollment Form'!$G652='Enrollment Form'!$H652,\"Y\",\"N\")))","v":""},{"$f":"IF($B645=\"N\",\"\",IF(AND(COUNTIFS('Enrollment Form'!$H$11:$H$1000,'Enrollment Form'!$H652,'Enrollment Form'!$B$11:$B$1000,'Enrollment Form'!$B652)>1,'Enrollment Form'!$H652<>\"\"),\"N\",\"Y\"))","v":""},{"$f":"IF($B645=\"N\",\"\",IF(LEN('Enrollment Form'!$Y652)=0,\"\",IF(LEN('Enrollment Form'!$Y652)<>5,\"N\",\"Y\")))","v":""},{"$f":"IF($B645=\"N\",\"\",IF(LEN('Enrollment Form'!$AD652=0),\"\",IF(LEN('Enrollment Form'!$AD652)<>5,\"N\",\"Y\")))","v":""},{"$f":"IF($B645=\"N\",\"\",IF(LEN('Enrollment Form'!$BS652=0),\"\",IF(LEN('Enrollment Form'!$BS652)<>5,\"N\",\"Y\")))","v":""},{"$f":"IF($B645=\"N\",\"\",IF(LEN('Enrollment Form'!$AE652)=0,\"\",IF(LEN('Enrollment Form'!$AE652)<>10,\"N\",\"Y\")))","v":""},{"$f":"IF($B645=\"N\",\"\",IF(LEN('Enrollment Form'!$AF652)=0,\"\",IF(LEN('Enrollment Form'!$AF652)<>10,\"N\",\"Y\")))","v":""},{"$f":"IF('Enrollment Form'!$O652<>\"Graded\",\"-\",IF(AND('Enrollment Form'!$O652=\"Graded\",'Enrollment Form'!$AR652<>\"\"),\"Y\",\"N\"))","v":"-"},{"$f":"IF($B645=\"N\",\"\",IF(OR('Enrollment Form'!$B652<>\"Subscriber\",'Enrollment Form'!$C652=\"ROC\"),\"-\",IF(AND('Enrollment Form'!$B652=\"Subscriber\",'Enrollment Form'!$C652=\"Enroll\",'Enrollment Form'!$AJ652<>\"\"),\"Y\",\"N\")))","v":""},{"$f":"IF($B645=\"N\",\"\",IF(OR('Enrollment Form'!$B652<>\"Subscriber\",'Enrollment Form'!$C652=\"ROC\"),\"-\",IF(AND('Enrollment Form'!$B652=\"Subscriber\",'Enrollment Form'!$C652=\"Enroll\",'Enrollment Form'!$AK652<>\"\"),\"Y\",\"N\")))","v":""},{"$f":"IF($B645=\"N\",\"\",IF(OR('Enrollment Form'!$B652<>\"Subscriber\",'Enrollment Form'!$C652=\"ROC\"),\"-\",IF(AND('Enrollment Form'!$B652=\"Subscriber\",'Enrollment Form'!$C652=\"Enroll\",'Enrollment Form'!$AL652<>\"\"),\"Y\",\"N\")))","v":""},{"$f":"IF($B645=\"N\",\"\",IF(OR('Enrollment Form'!$B652<>\"Subscriber\",'Enrollment Form'!$C652=\"ROC\"),\"-\",IF(AND('Enrollment Form'!$B652=\"Subscriber\",'Enrollment Form'!$C652=\"Enroll\",'Enrollment Form'!$AP652<>\"\"),\"Y\",\"N\")))","v":""},{"$f":"IF($B645=\"N\",\"\",IF(OR('Enrollment Form'!$B652<>\"Subscriber\",'Enrollment Form'!$C652=\"ROC\"),\"-\",IF(AND('Enrollment Form'!$B652=\"Subscriber\",'Enrollment Form'!$C652=\"Enroll\",'Enrollment Form'!$AQ652<>\"\"),\"Y\",\"N\")))","v":""},{"$f":"IF($B645=\"N\",\"\",IF(OR('Enrollment Form'!$B652<>\"Subscriber\",'Enrollment Form'!$C652=\"ROC\"),\"-\",IF(AND('Enrollment Form'!$B652=\"Subscriber\",'Enrollment Form'!$C652=\"Enroll\",'Enrollment Form'!$AS652<>\"\"),\"Y\",\"N\")))","v":""},{"$f":"IF($B645=\"N\",\"\",IF($Q645=\"-\",\"-\",IF(AND($Q645=\"Y\",'Enrollment Form'!$AS652=\"No\"),\"-\",IF(AND($Q645=\"Y\",'Enrollment Form'!$AS652=\"Yes\",'Enrollment Form'!$AT652<>\"\"),\"Y\",\"N\"))))","v":""},{"$f":"IF($B645=\"N\",\"\",IF(OR('Enrollment Form'!$B652<>\"Subscriber\",'Enrollment Form'!$C652=\"ROC\"),\"-\",IF(AND('Enrollment Form'!$B652=\"Subscriber\",'Enrollment Form'!$C652=\"Enroll\",'Enrollment Form'!$CV652<>\"\"),\"Y\",\"N\")))","v":""},{"$f":"IF($B645=\"N\",\"\",IF($S645=\"-\",\"-\",IF(AND($S645=\"Y\",'Enrollment Form'!$CV652=\"No\"),\"-\",IF(AND($S645=\"Y\",'Enrollment Form'!$CV652=\"Yes\",'Enrollment Form'!$CW652<>\"\"),\"Y\",\"N\"))))","v":""},{"$f":"IF(OR('Enrollment Form'!$AY652=\"Yes\",'Enrollment Form'!$AY652=\"\"),\"-\",IF(OR(AND('Enrollment Form'!$AY652=\"No\",ISERROR(FIND(\"HMO\",VLOOKUP('Enrollment Form'!G652,'Enrollment Form'!H$11:J$1000,3,FALSE),1))=FALSE,COUNTA('Enrollment Form'!$AZ652:$BC652)=4),AND('Enrollment Form'!$AY652=\"No\",ISERROR(FIND(\"HMO\",VLOOKUP('Enrollment Form'!G652,'Enrollment Form'!H$11:J$1000,3,FALSE),1))=FALSE,COUNTA('Enrollment Form'!$BT652:$BW652)=4)),\"Y\",\"N\"))","v":"-"},{"$f":"IF($B645=\"N\",\"\",IF('Enrollment Form'!$B652=\"Subscriber\",\"-\",IF(COUNTA('Enrollment Form'!$BL652,'Enrollment Form'!$BN652)=2,\"Y\",\"N\")))","v":""},{"$f":"IF($B645=\"N\",\"\",IF(OR('Enrollment Form'!$AX652=\"\",'Enrollment Form'!$AX652=\"No\"),\"-\",IF(AND('Enrollment Form'!$AX652=\"Yes\",COUNTA('Enrollment Form'!$CR652)=1),\"Y\",\"N\")))","v":""},{"$f":"IF(OR('Enrollment Form'!$CR652=\"\",'Enrollment Form'!$CR652=\"No\"),\"-\",IF(COUNTA('Enrollment Form'!$CT652:$CU652)=2,\"Y\",\"N\"))","v":"-"},{"$f":"IF($B645=\"N\",\"\",IF(COUNTIF('Enrollment Form'!$DG652:$DP652,\"Other\")=COUNTA('Enrollment Form'!$DK652,'Enrollment Form'!$DH652,'Enrollment Form'!$DN652,'Enrollment Form'!$DQ652),\"Y\",\"N\"))","v":""},{"$f":"IF($B645=\"N\",\"\",IF(OR('Enrollment Form'!B652<>\"Subscriber\",'Enrollment Form'!C652=\"ROC\",COUNTIF('Enrollment Form'!AV652:AW652,\"Yes\")>=1),\"-\",IF(AND('Enrollment Form'!C652=\"Enroll\",COUNTIF('Enrollment Form'!AV652:AW652,\"No\")=2,'Enrollment Form'!AX652=\"\"),\"N\",\"Y\")))","v":""},{"$f":"IF(OR(B645=\"N\",'Enrollment Form'!B652<>\"Subscriber\",'Enrollment Form'!C652=\"ROC\",'Enrollment Form'!O652<>\"Multiple of Salary\"),\"-\",IF(COUNTA('Enrollment Form'!T652:U652)<2,\"N\",\"Y\"))","v":"-"},{"$f":"IF(B645=\"N\",\"\",IF(OR('Enrollment Form'!C652=\"ROC\",'Enrollment Form'!B652<>\"Subscriber\",'Enrollment Form'!O652=\"Waive\",'Enrollment Form'!O652=\"\"),\"-\",IF('Enrollment Form'!P652=\"\",\"N\",\"Y\")))","v":""},{"$f":"IF($B645=\"N\",\"\",IF(AND('Enrollment Form'!$C652=\"ROC\",'Enrollment Form'!$DR652<>\"\"),\"Y\",IF(AND('Enrollment Form'!$C652=\"ROC\",'Enrollment Form'!$DR652=\"\"),\"N\",IF(AND('Enrollment Form'!$C652=\"Enroll\",'Enrollment Form'!$B652=\"Subscriber\",'Enrollment Form'!$CX652=\"No\",'Enrollment Form'!$DR652=\"\"),\"N\",IF(AND('Enrollment Form'!$C652=\"Enroll\",'Enrollment Form'!$B652=\"Subscriber\",'Enrollment Form'!$CX652=\"Yes\"),\"-\",\"Y\")))))","v":""},{"$f":"IF($B645=\"N\",\"\",IF(AND('Enrollment Form'!$C652=\"ROC\",'Enrollment Form'!$DS652<>\"\"),\"Y\",IF(AND('Enrollment Form'!$C652=\"ROC\",'Enrollment Form'!$DS652=\"\"),\"N\",IF(AND('Enrollment Form'!$C652=\"Enroll\",'Enrollment Form'!$B652=\"Subscriber\",'Enrollment Form'!$CX652=\"No\",'Enrollment Form'!$DS652=\"\"),\"N\",IF(AND('Enrollment Form'!$C652=\"Enroll\",'Enrollment Form'!$B652=\"Subscriber\",'Enrollment Form'!$CX652=\"Yes\"),\"-\",\"Y\")))))","v":""},{"$f":"IF('Enrollment Form'!AH652=\"\",\"\",IF(ISERROR(SEARCH(\".\",'Enrollment Form'!AH652,SEARCH(\"@\",'Enrollment Form'!AH652))),\"N\",\"Y\"))","v":""},{"$f":"IF(OR($B645=\"N\",'Enrollment Form'!$G652=\"\"),\"\",IF('Enrollment Form'!$B652<>\"Subscriber\",\"-\",IF(COUNTIF('Enrollment Form'!$AV652:$AW652,\"Yes\")=2,\"N\",\"Y\")))","v":""},{"$f":"IF(OR('Enrollment Form'!$CJ652=\"\",'Enrollment Form'!$CJ652=\"No\"),\"-\",IF(AND('Enrollment Form'!$CJ652=\"Yes\",'Enrollment Form'!$CK652=\"\"),\"N\",\"Y\"))","v":"-"},{"$f":"IF(OR('Enrollment Form'!$CL652=\"\",'Enrollment Form'!$CL652=\"No\"),\"-\",IF(AND('Enrollment Form'!$CL652=\"Yes\",'Enrollment Form'!$CM652=\"\"),\"N\",\"Y\"))","v":"-"},{"$f":"IF(OR('Enrollment Form'!$CN652=\"\",'Enrollment Form'!$CN652=\"No\"),\"-\",IF(AND('Enrollment Form'!$CN652=\"Yes\",'Enrollment Form'!$CO652=\"\"),\"N\",\"Y\"))","v":"-"},{"$f":"IF(OR('Enrollment Form'!$CN652=\"\",'Enrollment Form'!$CN652=\"No\"),\"-\",IF(AND('Enrollment Form'!$CN652=\"Yes\",'Enrollment Form'!$CP652=\"\"),\"N\",\"Y\"))","v":"-"},{"$f":"IF('Enrollment Form'!B652<>\"Subscriber\",\"-\",IF(AND('Enrollment Form'!B652=\"Subscriber\",'Enrollment Form'!C652=\"Enroll\",'Enrollment Form'!AA652=\"\"),\"N\",\"Y\"))","v":"-"},{"$f":"IF(OR('Enrollment Form'!B652=\"Subscriber\",'Enrollment Form'!B652=\"\"),\"-\",IF('Enrollment Form'!BP652=\"\",\"N\",\"Y\"))","v":"-"},{"$f":"IF('Enrollment Form'!B652<>\"Subscriber\",\"-\",IF(AND('Enrollment Form'!B652=\"Subscriber\",'Enrollment Form'!G652=\"\"),\"N\",\"Y\"))","v":"-"},{"$f":"IF('Enrollment Form'!A652=\"\",\"\",IF('Enrollment Form'!B652=\"Subscriber\",\"-\",IF(AND('Enrollment Form'!B652<>\"Subscriber\",'Enrollment Form'!G652='Enrollment Form'!H652),\"N\",\"Y\")))","v":""},0]
[{"$f":"1+A645","v":653},{"$f":"IF('Enrollment Form'!$A653<>\"\",\"Y\",\"N\")","v":"N"},{"$f":"IF(AND('Enrollment Form'!$B653=\"\",'Enrollment Form'!$C653<>\"\"),\"N\",IF($B646=\"N\",\"\",\"Y\"))","v":""},{"$f":"IF(OR($B646=\"N\",'Enrollment Form'!G653=\"\"),\"\",IF('Enrollment Form'!$B653<>\"Subscriber\",\"\",IF('Enrollment Form'!$G653='Enrollment Form'!$H653,\"Y\",\"N\")))","v":""},{"$f":"IF($B646=\"N\",\"\",IF(AND(COUNTIFS('Enrollment Form'!$H$11:$H$1000,'Enrollment Form'!$H653,'Enrollment Form'!$B$11:$B$1000,'Enrollment Form'!$B653)>1,'Enrollment Form'!$H653<>\"\"),\"N\",\"Y\"))","v":""},{"$f":"IF($B646=\"N\",\"\",IF(LEN('Enrollment Form'!$Y653)=0,\"\",IF(LEN('Enrollment Form'!$Y653)<>5,\"N\",\"Y\")))","v":""},{"$f":"IF($B646=\"N\",\"\",IF(LEN('Enrollment Form'!$AD653=0),\"\",IF(LEN('Enrollment Form'!$AD653)<>5,\"N\",\"Y\")))","v":""},{"$f":"IF($B646=\"N\",\"\",IF(LEN('Enrollment Form'!$BS653=0),\"\",IF(LEN('Enrollment Form'!$BS653)<>5,\"N\",\"Y\")))","v":""},{"$f":"IF($B646=\"N\",\"\",IF(LEN('Enrollment Form'!$AE653)=0,\"\",IF(LEN('Enrollment Form'!$AE653)<>10,\"N\",\"Y\")))","v":""},{"$f":"IF($B646=\"N\",\"\",IF(LEN('Enrollment Form'!$AF653)=0,\"\",IF(LEN('Enrollment Form'!$AF653)<>10,\"N\",\"Y\")))","v":""},{"$f":"IF('Enrollment Form'!$O653<>\"Graded\",\"-\",IF(AND('Enrollment Form'!$O653=\"Graded\",'Enrollment Form'!$AR653<>\"\"),\"Y\",\"N\"))","v":"-"},{"$f":"IF($B646=\"N\",\"\",IF(OR('Enrollment Form'!$B653<>\"Subscriber\",'Enrollment Form'!$C653=\"ROC\"),\"-\",IF(AND('Enrollment Form'!$B653=\"Subscriber\",'Enrollment Form'!$C653=\"Enroll\",'Enrollment Form'!$AJ653<>\"\"),\"Y\",\"N\")))","v":""},{"$f":"IF($B646=\"N\",\"\",IF(OR('Enrollment Form'!$B653<>\"Subscriber\",'Enrollment Form'!$C653=\"ROC\"),\"-\",IF(AND('Enrollment Form'!$B653=\"Subscriber\",'Enrollment Form'!$C653=\"Enroll\",'Enrollment Form'!$AK653<>\"\"),\"Y\",\"N\")))","v":""},{"$f":"IF($B646=\"N\",\"\",IF(OR('Enrollment Form'!$B653<>\"Subscriber\",'Enrollment Form'!$C653=\"ROC\"),\"-\",IF(AND('Enrollment Form'!$B653=\"Subscriber\",'Enrollment Form'!$C653=\"Enroll\",'Enrollment Form'!$AL653<>\"\"),\"Y\",\"N\")))","v":""},{"$f":"IF($B646=\"N\",\"\",IF(OR('Enrollment Form'!$B653<>\"Subscriber\",'Enrollment Form'!$C653=\"ROC\"),\"-\",IF(AND('Enrollment Form'!$B653=\"Subscriber\",'Enrollment Form'!$C653=\"Enroll\",'Enrollment Form'!$AP653<>\"\"),\"Y\",\"N\")))","v":""},{"$f":"IF($B646=\"N\",\"\",IF(OR('Enrollment Form'!$B653<>\"Subscriber\",'Enrollment Form'!$C653=\"ROC\"),\"-\",IF(AND('Enrollment Form'!$B653=\"Subscriber\",'Enrollment Form'!$C653=\"Enroll\",'Enrollment Form'!$AQ653<>\"\"),\"Y\",\"N\")))","v":""},{"$f":"IF($B646=\"N\",\"\",IF(OR('Enrollment Form'!$B653<>\"Subscriber\",'Enrollment Form'!$C653=\"ROC\"),\"-\",IF(AND('Enrollment Form'!$B653=\"Subscriber\",'Enrollment Form'!$C653=\"Enroll\",'Enrollment Form'!$AS653<>\"\"),\"Y\",\"N\")))","v":""},{"$f":"IF($B646=\"N\",\"\",IF($Q646=\"-\",\"-\",IF(AND($Q646=\"Y\",'Enrollment Form'!$AS653=\"No\"),\"-\",IF(AND($Q646=\"Y\",'Enrollment Form'!$AS653=\"Yes\",'Enrollment Form'!$AT653<>\"\"),\"Y\",\"N\"))))","v":""},{"$f":"IF($B646=\"N\",\"\",IF(OR('Enrollment Form'!$B653<>\"Subscriber\",'Enrollment Form'!$C653=\"ROC\"),\"-\",IF(AND('Enrollment Form'!$B653=\"Subscriber\",'Enrollment Form'!$C653=\"Enroll\",'Enrollment Form'!$CV653<>\"\"),\"Y\",\"N\")))","v":""},{"$f":"IF($B646=\"N\",\"\",IF($S646=\"-\",\"-\",IF(AND($S646=\"Y\",'Enrollment Form'!$CV653=\"No\"),\"-\",IF(AND($S646=\"Y\",'Enrollment Form'!$CV653=\"Yes\",'Enrollment Form'!$CW653<>\"\"),\"Y\",\"N\"))))","v":""},{"$f":"IF(OR('Enrollment Form'!$AY653=\"Yes\",'Enrollment Form'!$AY653=\"\"),\"-\",IF(OR(AND('Enrollment Form'!$AY653=\"No\",ISERROR(FIND(\"HMO\",VLOOKUP('Enrollment Form'!G653,'Enrollment Form'!H$11:J$1000,3,FALSE),1))=FALSE,COUNTA('Enrollment Form'!$AZ653:$BC653)=4),AND('Enrollment Form'!$AY653=\"No\",ISERROR(FIND(\"HMO\",VLOOKUP('Enrollment Form'!G653,'Enrollment Form'!H$11:J$1000,3,FALSE),1))=FALSE,COUNTA('Enrollment Form'!$BT653:$BW653)=4)),\"Y\",\"N\"))","v":"-"},{"$f":"IF($B646=\"N\",\"\",IF('Enrollment Form'!$B653=\"Subscriber\",\"-\",IF(COUNTA('Enrollment Form'!$BL653,'Enrollment Form'!$BN653)=2,\"Y\",\"N\")))","v":""},{"$f":"IF($B646=\"N\",\"\",IF(OR('Enrollment Form'!$AX653=\"\",'Enrollment Form'!$AX653=\"No\"),\"-\",IF(AND('Enrollment Form'!$AX653=\"Yes\",COUNTA('Enrollment Form'!$CR653)=1),\"Y\",\"N\")))","v":""},{"$f":"IF(OR('Enrollment Form'!$CR653=\"\",'Enrollment Form'!$CR653=\"No\"),\"-\",IF(COUNTA('Enrollment Form'!$CT653:$CU653)=2,\"Y\",\"N\"))","v":"-"},{"$f":"IF($B646=\"N\",\"\",IF(COUNTIF('Enrollment Form'!$DG653:$DP653,\"Other\")=COUNTA('Enrollment Form'!$DK653,'Enrollment Form'!$DH653,'Enrollment Form'!$DN653,'Enrollment Form'!$DQ653),\"Y\",\"N\"))","v":""},{"$f":"IF($B646=\"N\",\"\",IF(OR('Enrollment Form'!B653<>\"Subscriber\",'Enrollment Form'!C653=\"ROC\",COUNTIF('Enrollment Form'!AV653:AW653,\"Yes\")>=1),\"-\",IF(AND('Enrollment Form'!C653=\"Enroll\",COUNTIF('Enrollment Form'!AV653:AW653,\"No\")=2,'Enrollment Form'!AX653=\"\"),\"N\",\"Y\")))","v":""},{"$f":"IF(OR(B646=\"N\",'Enrollment Form'!B653<>\"Subscriber\",'Enrollment Form'!C653=\"ROC\",'Enrollment Form'!O653<>\"Multiple of Salary\"),\"-\",IF(COUNTA('Enrollment Form'!T653:U653)<2,\"N\",\"Y\"))","v":"-"},{"$f":"IF(B646=\"N\",\"\",IF(OR('Enrollment Form'!C653=\"ROC\",'Enrollment Form'!B653<>\"Subscriber\",'Enrollment Form'!O653=\"Waive\",'Enrollment Form'!O653=\"\"),\"-\",IF('Enrollment Form'!P653=\"\",\"N\",\"Y\")))","v":""},{"$f":"IF($B646=\"N\",\"\",IF(AND('Enrollment Form'!$C653=\"ROC\",'Enrollment Form'!$DR653<>\"\"),\"Y\",IF(AND('Enrollment Form'!$C653=\"ROC\",'Enrollment Form'!$DR653=\"\"),\"N\",IF(AND('Enrollment Form'!$C653=\"Enroll\",'Enrollment Form'!$B653=\"Subscriber\",'Enrollment Form'!$CX653=\"No\",'Enrollment Form'!$DR653=\"\"),\"N\",IF(AND('Enrollment Form'!$C653=\"Enroll\",'Enrollment Form'!$B653=\"Subscriber\",'Enrollment Form'!$CX653=\"Yes\"),\"-\",\"Y\")))))","v":""},{"$f":"IF($B646=\"N\",\"\",IF(AND('Enrollment Form'!$C653=\"ROC\",'Enrollment Form'!$DS653<>\"\"),\"Y\",IF(AND('Enrollment Form'!$C653=\"ROC\",'Enrollment Form'!$DS653=\"\"),\"N\",IF(AND('Enrollment Form'!$C653=\"Enroll\",'Enrollment Form'!$B653=\"Subscriber\",'Enrollment Form'!$CX653=\"No\",'Enrollment Form'!$DS653=\"\"),\"N\",IF(AND('Enrollment Form'!$C653=\"Enroll\",'Enrollment Form'!$B653=\"Subscriber\",'Enrollment Form'!$CX653=\"Yes\"),\"-\",\"Y\")))))","v":""},{"$f":"IF('Enrollment Form'!AH653=\"\",\"\",IF(ISERROR(SEARCH(\".\",'Enrollment Form'!AH653,SEARCH(\"@\",'Enrollment Form'!AH653))),\"N\",\"Y\"))","v":""},{"$f":"IF(OR($B646=\"N\",'Enrollment Form'!$G653=\"\"),\"\",IF('Enrollment Form'!$B653<>\"Subscriber\",\"-\",IF(COUNTIF('Enrollment Form'!$AV653:$AW653,\"Yes\")=2,\"N\",\"Y\")))","v":""},{"$f":"IF(OR('Enrollment Form'!$CJ653=\"\",'Enrollment Form'!$CJ653=\"No\"),\"-\",IF(AND('Enrollment Form'!$CJ653=\"Yes\",'Enrollment Form'!$CK653=\"\"),\"N\",\"Y\"))","v":"-"},{"$f":"IF(OR('Enrollment Form'!$CL653=\"\",'Enrollment Form'!$CL653=\"No\"),\"-\",IF(AND('Enrollment Form'!$CL653=\"Yes\",'Enrollment Form'!$CM653=\"\"),\"N\",\"Y\"))","v":"-"},{"$f":"IF(OR('Enrollment Form'!$CN653=\"\",'Enrollment Form'!$CN653=\"No\"),\"-\",IF(AND('Enrollment Form'!$CN653=\"Yes\",'Enrollment Form'!$CO653=\"\"),\"N\",\"Y\"))","v":"-"},{"$f":"IF(OR('Enrollment Form'!$CN653=\"\",'Enrollment Form'!$CN653=\"No\"),\"-\",IF(AND('Enrollment Form'!$CN653=\"Yes\",'Enrollment Form'!$CP653=\"\"),\"N\",\"Y\"))","v":"-"},{"$f":"IF('Enrollment Form'!B653<>\"Subscriber\",\"-\",IF(AND('Enrollment Form'!B653=\"Subscriber\",'Enrollment Form'!C653=\"Enroll\",'Enrollment Form'!AA653=\"\"),\"N\",\"Y\"))","v":"-"},{"$f":"IF(OR('Enrollment Form'!B653=\"Subscriber\",'Enrollment Form'!B653=\"\"),\"-\",IF('Enrollment Form'!BP653=\"\",\"N\",\"Y\"))","v":"-"},{"$f":"IF('Enrollment Form'!B653<>\"Subscriber\",\"-\",IF(AND('Enrollment Form'!B653=\"Subscriber\",'Enrollment Form'!G653=\"\"),\"N\",\"Y\"))","v":"-"},{"$f":"IF('Enrollment Form'!A653=\"\",\"\",IF('Enrollment Form'!B653=\"Subscriber\",\"-\",IF(AND('Enrollment Form'!B653<>\"Subscriber\",'Enrollment Form'!G653='Enrollment Form'!H653),\"N\",\"Y\")))","v":""},0]
[654,{"$f":"IF('Enrollment Form'!$A654<>\"\",\"Y\",\"N\")","v":"N"},{"$f":"IF(AND('Enrollment Form'!$B654=\"\",'Enrollment Form'!$C654<>\"\"),\"N\",IF($B647=\"N\",\"\",\"Y\"))","v":""},{"$f":"IF(OR($B647=\"N\",'Enrollment Form'!G654=\"\"),\"\",IF('Enrollment Form'!$B654<>\"Subscriber\",\"\",IF('Enrollment Form'!$G654='Enrollment Form'!$H654,\"Y\",\"N\")))","v":""},{"$f":"IF($B647=\"N\",\"\",IF(AND(COUNTIFS('Enrollment Form'!$H$11:$H$1000,'Enrollment Form'!$H654,'Enrollment Form'!$B$11:$B$1000,'Enrollment Form'!$B654)>1,'Enrollment Form'!$H654<>\"\"),\"N\",\"Y\"))","v":""},{"$f":"IF($B647=\"N\",\"\",IF(LEN('Enrollment Form'!$Y654)=0,\"\",IF(LEN('Enrollment Form'!$Y654)<>5,\"N\",\"Y\")))","v":""},{"$f":"IF($B647=\"N\",\"\",IF(LEN('Enrollment Form'!$AD654=0),\"\",IF(LEN('Enrollment Form'!$AD654)<>5,\"N\",\"Y\")))","v":""},{"$f":"IF($B647=\"N\",\"\",IF(LEN('Enrollment Form'!$BS654=0),\"\",IF(LEN('Enrollment Form'!$BS654)<>5,\"N\",\"Y\")))","v":""},{"$f":"IF($B647=\"N\",\"\",IF(LEN('Enrollment Form'!$AE654)=0,\"\",IF(LEN('Enrollment Form'!$AE654)<>10,\"N\",\"Y\")))","v":""},{"$f":"IF($B647=\"N\",\"\",IF(LEN('Enrollment Form'!$AF654)=0,\"\",IF(LEN('Enrollment Form'!$AF654)<>10,\"N\",\"Y\")))","v":""},{"$f":"IF('Enrollment Form'!$O654<>\"Graded\",\"-\",IF(AND('Enrollment Form'!$O654=\"Graded\",'Enrollment Form'!$AR654<>\"\"),\"Y\",\"N\"))","v":"-"},{"$f":"IF($B647=\"N\",\"\",IF(OR('Enrollment Form'!$B654<>\"Subscriber\",'Enrollment Form'!$C654=\"ROC\"),\"-\",IF(AND('Enrollment Form'!$B654=\"Subscriber\",'Enrollment Form'!$C654=\"Enroll\",'Enrollment Form'!$AJ654<>\"\"),\"Y\",\"N\")))","v":""},{"$f":"IF($B647=\"N\",\"\",IF(OR('Enrollment Form'!$B654<>\"Subscriber\",'Enrollment Form'!$C654=\"ROC\"),\"-\",IF(AND('Enrollment Form'!$B654=\"Subscriber\",'Enrollment Form'!$C654=\"Enroll\",'Enrollment Form'!$AK654<>\"\"),\"Y\",\"N\")))","v":""},{"$f":"IF($B647=\"N\",\"\",IF(OR('Enrollment Form'!$B654<>\"Subscriber\",'Enrollment Form'!$C654=\"ROC\"),\"-\",IF(AND('Enrollment Form'!$B654=\"Subscriber\",'Enrollment Form'!$C654=\"Enroll\",'Enrollment Form'!$AL654<>\"\"),\"Y\",\"N\")))","v":""},{"$f":"IF($B647=\"N\",\"\",IF(OR('Enrollment Form'!$B654<>\"Subscriber\",'Enrollment Form'!$C654=\"ROC\"),\"-\",IF(AND('Enrollment Form'!$B654=\"Subscriber\",'Enrollment Form'!$C654=\"Enroll\",'Enrollment Form'!$AP654<>\"\"),\"Y\",\"N\")))","v":""},{"$f":"IF($B647=\"N\",\"\",IF(OR('Enrollment Form'!$B654<>\"Subscriber\",'Enrollment Form'!$C654=\"ROC\"),\"-\",IF(AND('Enrollment Form'!$B654=\"Subscriber\",'Enrollment Form'!$C654=\"Enroll\",'Enrollment Form'!$AQ654<>\"\"),\"Y\",\"N\")))","v":""},{"$f":"IF($B647=\"N\",\"\",IF(OR('Enrollment Form'!$B654<>\"Subscriber\",'Enrollment Form'!$C654=\"ROC\"),\"-\",IF(AND('Enrollment Form'!$B654=\"Subscriber\",'Enrollment Form'!$C654=\"Enroll\",'Enrollment Form'!$AS654<>\"\"),\"Y\",\"N\")))","v":""},{"$f":"IF($B647=\"N\",\"\",IF($Q647=\"-\",\"-\",IF(AND($Q647=\"Y\",'Enrollment Form'!$AS654=\"No\"),\"-\",IF(AND($Q647=\"Y\",'Enrollment Form'!$AS654=\"Yes\",'Enrollment Form'!$AT654<>\"\"),\"Y\",\"N\"))))","v":""},{"$f":"IF($B647=\"N\",\"\",IF(OR('Enrollment Form'!$B654<>\"Subscriber\",'Enrollment Form'!$C654=\"ROC\"),\"-\",IF(AND('Enrollment Form'!$B654=\"Subscriber\",'Enrollment Form'!$C654=\"Enroll\",'Enrollment Form'!$CV654<>\"\"),\"Y\",\"N\")))","v":""},{"$f":"IF($B647=\"N\",\"\",IF($S647=\"-\",\"-\",IF(AND($S647=\"Y\",'Enrollment Form'!$CV654=\"No\"),\"-\",IF(AND($S647=\"Y\",'Enrollment Form'!$CV654=\"Yes\",'Enrollment Form'!$CW654<>\"\"),\"Y\",\"N\"))))","v":""},{"$f":"IF(OR('Enrollment Form'!$AY654=\"Yes\",'Enrollment Form'!$AY654=\"\"),\"-\",IF(OR(AND('Enrollment Form'!$AY654=\"No\",ISERROR(FIND(\"HMO\",VLOOKUP('Enrollment Form'!G654,'Enrollment Form'!H$11:J$1000,3,FALSE),1))=FALSE,COUNTA('Enrollment Form'!$AZ654:$BC654)=4),AND('Enrollment Form'!$AY654=\"No\",ISERROR(FIND(\"HMO\",VLOOKUP('Enrollment Form'!G654,'Enrollment Form'!H$11:J$1000,3,FALSE),1))=FALSE,COUNTA('Enrollment Form'!$BT654:$BW654)=4)),\"Y\",\"N\"))","v":"-"},{"$f":"IF($B647=\"N\",\"\",IF('Enrollment Form'!$B654=\"Subscriber\",\"-\",IF(COUNTA('Enrollment Form'!$BL654,'Enrollment Form'!$BN654)=2,\"Y\",\"N\")))","v":""},{"$f":"IF($B647=\"N\",\"\",IF(OR('Enrollment Form'!$AX654=\"\",'Enrollment Form'!$AX654=\"No\"),\"-\",IF(AND('Enrollment Form'!$AX654=\"Yes\",COUNTA('Enrollment Form'!$CR654)=1),\"Y\",\"N\")))","v":""},{"$f":"IF(OR('Enrollment Form'!$CR654=\"\",'Enrollment Form'!$CR654=\"No\"),\"-\",IF(COUNTA('Enrollment Form'!$CT654:$CU654)=2,\"Y\",\"N\"))","v":"-"},{"$f":"IF($B647=\"N\",\"\",IF(COUNTIF('Enrollment Form'!$DG654:$DP654,\"Other\")=COUNTA('Enrollment Form'!$DK654,'Enrollment Form'!$DH654,'Enrollment Form'!$DN654,'Enrollment Form'!$DQ654),\"Y\",\"N\"))","v":""},{"$f":"IF($B647=\"N\",\"\",IF(OR('Enrollment Form'!B654<>\"Subscriber\",'Enrollment Form'!C654=\"ROC\",COUNTIF('Enrollment Form'!AV654:AW654,\"Yes\")>=1),\"-\",IF(AND('Enrollment Form'!C654=\"Enroll\",COUNTIF('Enrollment Form'!AV654:AW654,\"No\")=2,'Enrollment Form'!AX654=\"\"),\"N\",\"Y\")))","v":""},{"$f":"IF(OR(B647=\"N\",'Enrollment Form'!B654<>\"Subscriber\",'Enrollment Form'!C654=\"ROC\",'Enrollment Form'!O654<>\"Multiple of Salary\"),\"-\",IF(COUNTA('Enrollment Form'!T654:U654)<2,\"N\",\"Y\"))","v":"-"},{"$f":"IF(B647=\"N\",\"\",IF(OR('Enrollment Form'!C654=\"ROC\",'Enrollment Form'!B654<>\"Subscriber\",'Enrollment Form'!O654=\"Waive\",'Enrollment Form'!O654=\"\"),\"-\",IF('Enrollment Form'!P654=\"\",\"N\",\"Y\")))","v":""},{"$f":"IF($B647=\"N\",\"\",IF(AND('Enrollment Form'!$C654=\"ROC\",'Enrollment Form'!$DR654<>\"\"),\"Y\",IF(AND('Enrollment Form'!$C654=\"ROC\",'Enrollment Form'!$DR654=\"\"),\"N\",IF(AND('Enrollment Form'!$C654=\"Enroll\",'Enrollment Form'!$B654=\"Subscriber\",'Enrollment Form'!$CX654=\"No\",'Enrollment Form'!$DR654=\"\"),\"N\",IF(AND('Enrollment Form'!$C654=\"Enroll\",'Enrollment Form'!$B654=\"Subscriber\",'Enrollment Form'!$CX654=\"Yes\"),\"-\",\"Y\")))))","v":""},{"$f":"IF($B647=\"N\",\"\",IF(AND('Enrollment Form'!$C654=\"ROC\",'Enrollment Form'!$DS654<>\"\"),\"Y\",IF(AND('Enrollment Form'!$C654=\"ROC\",'Enrollment Form'!$DS654=\"\"),\"N\",IF(AND('Enrollment Form'!$C654=\"Enroll\",'Enrollment Form'!$B654=\"Subscriber\",'Enrollment Form'!$CX654=\"No\",'Enrollment Form'!$DS654=\"\"),\"N\",IF(AND('Enrollment Form'!$C654=\"Enroll\",'Enrollment Form'!$B654=\"Subscriber\",'Enrollment Form'!$CX654=\"Yes\"),\"-\",\"Y\")))))","v":""},{"$f":"IF('Enrollment Form'!AH654=\"\",\"\",IF(ISERROR(SEARCH(\".\",'Enrollment Form'!AH654,SEARCH(\"@\",'Enrollment Form'!AH654))),\"N\",\"Y\"))","v":""},{"$f":"IF(OR($B647=\"N\",'Enrollment Form'!$G654=\"\"),\"\",IF('Enrollment Form'!$B654<>\"Subscriber\",\"-\",IF(COUNTIF('Enrollment Form'!$AV654:$AW654,\"Yes\")=2,\"N\",\"Y\")))","v":""},{"$f":"IF(OR('Enrollment Form'!$CJ654=\"\",'Enrollment Form'!$CJ654=\"No\"),\"-\",IF(AND('Enrollment Form'!$CJ654=\"Yes\",'Enrollment Form'!$CK654=\"\"),\"N\",\"Y\"))","v":"-"},{"$f":"IF(OR('Enrollment Form'!$CL654=\"\",'Enrollment Form'!$CL654=\"No\"),\"-\",IF(AND('Enrollment Form'!$CL654=\"Yes\",'Enrollment Form'!$CM654=\"\"),\"N\",\"Y\"))","v":"-"},{"$f":"IF(OR('Enrollment Form'!$CN654=\"\",'Enrollment Form'!$CN654=\"No\"),\"-\",IF(AND('Enrollment Form'!$CN654=\"Yes\",'Enrollment Form'!$CO654=\"\"),\"N\",\"Y\"))","v":"-"},{"$f":"IF(OR('Enrollment Form'!$CN654=\"\",'Enrollment Form'!$CN654=\"No\"),\"-\",IF(AND('Enrollment Form'!$CN654=\"Yes\",'Enrollment Form'!$CP654=\"\"),\"N\",\"Y\"))","v":"-"},{"$f":"IF('Enrollment Form'!B654<>\"Subscriber\",\"-\",IF(AND('Enrollment Form'!B654=\"Subscriber\",'Enrollment Form'!C654=\"Enroll\",'Enrollment Form'!AA654=\"\"),\"N\",\"Y\"))","v":"-"},{"$f":"IF(OR('Enrollment Form'!B654=\"Subscriber\",'Enrollment Form'!B654=\"\"),\"-\",IF('Enrollment Form'!BP654=\"\",\"N\",\"Y\"))","v":"-"},{"$f":"IF('Enrollment Form'!B654<>\"Subscriber\",\"-\",IF(AND('Enrollment Form'!B654=\"Subscriber\",'Enrollment Form'!G654=\"\"),\"N\",\"Y\"))","v":"-"},{"$f":"IF('Enrollment Form'!A654=\"\",\"\",IF('Enrollment Form'!B654=\"Subscriber\",\"-\",IF(AND('Enrollment Form'!B654<>\"Subscriber\",'Enrollment Form'!G654='Enrollment Form'!H654),\"N\",\"Y\")))","v":""},0]
[655,{"$f":"IF('Enrollment Form'!$A655<>\"\",\"Y\",\"N\")","v":"N"},{"$f":"IF(AND('Enrollment Form'!$B655=\"\",'Enrollment Form'!$C655<>\"\"),\"N\",IF($B648=\"N\",\"\",\"Y\"))","v":""},{"$f":"IF(OR($B648=\"N\",'Enrollment Form'!G655=\"\"),\"\",IF('Enrollment Form'!$B655<>\"Subscriber\",\"\",IF('Enrollment Form'!$G655='Enrollment Form'!$H655,\"Y\",\"N\")))","v":""},{"$f":"IF($B648=\"N\",\"\",IF(AND(COUNTIFS('Enrollment Form'!$H$11:$H$1000,'Enrollment Form'!$H655,'Enrollment Form'!$B$11:$B$1000,'Enrollment Form'!$B655)>1,'Enrollment Form'!$H655<>\"\"),\"N\",\"Y\"))","v":""},{"$f":"IF($B648=\"N\",\"\",IF(LEN('Enrollment Form'!$Y655)=0,\"\",IF(LEN('Enrollment Form'!$Y655)<>5,\"N\",\"Y\")))","v":""},{"$f":"IF($B648=\"N\",\"\",IF(LEN('Enrollment Form'!$AD655=0),\"\",IF(LEN('Enrollment Form'!$AD655)<>5,\"N\",\"Y\")))","v":""},{"$f":"IF($B648=\"N\",\"\",IF(LEN('Enrollment Form'!$BS655=0),\"\",IF(LEN('Enrollment Form'!$BS655)<>5,\"N\",\"Y\")))","v":""},{"$f":"IF($B648=\"N\",\"\",IF(LEN('Enrollment Form'!$AE655)=0,\"\",IF(LEN('Enrollment Form'!$AE655)<>10,\"N\",\"Y\")))","v":""},{"$f":"IF($B648=\"N\",\"\",IF(LEN('Enrollment Form'!$AF655)=0,\"\",IF(LEN('Enrollment Form'!$AF655)<>10,\"N\",\"Y\")))","v":""},{"$f":"IF('Enrollment Form'!$O655<>\"Graded\",\"-\",IF(AND('Enrollment Form'!$O655=\"Graded\",'Enrollment Form'!$AR655<>\"\"),\"Y\",\"N\"))","v":"-"},{"$f":"IF($B648=\"N\",\"\",IF(OR('Enrollment Form'!$B655<>\"Subscriber\",'Enrollment Form'!$C655=\"ROC\"),\"-\",IF(AND('Enrollment Form'!$B655=\"Subscriber\",'Enrollment Form'!$C655=\"Enroll\",'Enrollment Form'!$AJ655<>\"\"),\"Y\",\"N\")))","v":""},{"$f":"IF($B648=\"N\",\"\",IF(OR('Enrollment Form'!$B655<>\"Subscriber\",'Enrollment Form'!$C655=\"ROC\"),\"-\",IF(AND('Enrollment Form'!$B655=\"Subscriber\",'Enrollment Form'!$C655=\"Enroll\",'Enrollment Form'!$AK655<>\"\"),\"Y\",\"N\")))","v":""},{"$f":"IF($B648=\"N\",\"\",IF(OR('Enrollment Form'!$B655<>\"Subscriber\",'Enrollment Form'!$C655=\"ROC\"),\"-\",IF(AND('Enrollment Form'!$B655=\"Subscriber\",'Enrollment Form'!$C655=\"Enroll\",'Enrollment Form'!$AL655<>\"\"),\"Y\",\"N\")))","v":""},{"$f":"IF($B648=\"N\",\"\",IF(OR('Enrollment Form'!$B655<>\"Subscriber\",'Enrollment Form'!$C655=\"ROC\"),\"-\",IF(AND('Enrollment Form'!$B655=\"Subscriber\",'Enrollment Form'!$C655=\"Enroll\",'Enrollment Form'!$AP655<>\"\"),\"Y\",\"N\")))","v":""},{"$f":"IF($B648=\"N\",\"\",IF(OR('Enrollment Form'!$B655<>\"Subscriber\",'Enrollment Form'!$C655=\"ROC\"),\"-\",IF(AND('Enrollment Form'!$B655=\"Subscriber\",'Enrollment Form'!$C655=\"Enroll\",'Enrollment Form'!$AQ655<>\"\"),\"Y\",\"N\")))","v":""},{"$f":"IF($B648=\"N\",\"\",IF(OR('Enrollment Form'!$B655<>\"Subscriber\",'Enrollment Form'!$C655=\"ROC\"),\"-\",IF(AND('Enrollment Form'!$B655=\"Subscriber\",'Enrollment Form'!$C655=\"Enroll\",'Enrollment Form'!$AS655<>\"\"),\"Y\",\"N\")))","v":""},{"$f":"IF($B648=\"N\",\"\",IF($Q648=\"-\",\"-\",IF(AND($Q648=\"Y\",'Enrollment Form'!$AS655=\"No\"),\"-\",IF(AND($Q648=\"Y\",'Enrollment Form'!$AS655=\"Yes\",'Enrollment Form'!$AT655<>\"\"),\"Y\",\"N\"))))","v":""},{"$f":"IF($B648=\"N\",\"\",IF(OR('Enrollment Form'!$B655<>\"Subscriber\",'Enrollment Form'!$C655=\"ROC\"),\"-\",IF(AND('Enrollment Form'!$B655=\"Subscriber\",'Enrollment Form'!$C655=\"Enroll\",'Enrollment Form'!$CV655<>\"\"),\"Y\",\"N\")))","v":""},{"$f":"IF($B648=\"N\",\"\",IF($S648=\"-\",\"-\",IF(AND($S648=\"Y\",'Enrollment Form'!$CV655=\"No\"),\"-\",IF(AND($S648=\"Y\",'Enrollment Form'!$CV655=\"Yes\",'Enrollment Form'!$CW655<>\"\"),\"Y\",\"N\"))))","v":""},{"$f":"IF(OR('Enrollment Form'!$AY655=\"Yes\",'Enrollment Form'!$AY655=\"\"),\"-\",IF(OR(AND('Enrollment Form'!$AY655=\"No\",ISERROR(FIND(\"HMO\",VLOOKUP('Enrollment Form'!G655,'Enrollment Form'!H$11:J$1000,3,FALSE),1))=FALSE,COUNTA('Enrollment Form'!$AZ655:$BC655)=4),AND('Enrollment Form'!$AY655=\"No\",ISERROR(FIND(\"HMO\",VLOOKUP('Enrollment Form'!G655,'Enrollment Form'!H$11:J$1000,3,FALSE),1))=FALSE,COUNTA('Enrollment Form'!$BT655:$BW655)=4)),\"Y\",\"N\"))","v":"-"},{"$f":"IF($B648=\"N\",\"\",IF('Enrollment Form'!$B655=\"Subscriber\",\"-\",IF(COUNTA('Enrollment Form'!$BL655,'Enrollment Form'!$BN655)=2,\"Y\",\"N\")))","v":""},{"$f":"IF($B648=\"N\",\"\",IF(OR('Enrollment Form'!$AX655=\"\",'Enrollment Form'!$AX655=\"No\"),\"-\",IF(AND('Enrollment Form'!$AX655=\"Yes\",COUNTA('Enrollment Form'!$CR655)=1),\"Y\",\"N\")))","v":""},{"$f":"IF(OR('Enrollment Form'!$CR655=\"\",'Enrollment Form'!$CR655=\"No\"),\"-\",IF(COUNTA('Enrollment Form'!$CT655:$CU655)=2,\"Y\",\"N\"))","v":"-"},{"$f":"IF($B648=\"N\",\"\",IF(COUNTIF('Enrollment Form'!$DG655:$DP655,\"Other\")=COUNTA('Enrollment Form'!$DK655,'Enrollment Form'!$DH655,'Enrollment Form'!$DN655,'Enrollment Form'!$DQ655),\"Y\",\"N\"))","v":""},{"$f":"IF($B648=\"N\",\"\",IF(OR('Enrollment Form'!B655<>\"Subscriber\",'Enrollment Form'!C655=\"ROC\",COUNTIF('Enrollment Form'!AV655:AW655,\"Yes\")>=1),\"-\",IF(AND('Enrollment Form'!C655=\"Enroll\",COUNTIF('Enrollment Form'!AV655:AW655,\"No\")=2,'Enrollment Form'!AX655=\"\"),\"N\",\"Y\")))","v":""},{"$f":"IF(OR(B648=\"N\",'Enrollment Form'!B655<>\"Subscriber\",'Enrollment Form'!C655=\"ROC\",'Enrollment Form'!O655<>\"Multiple of Salary\"),\"-\",IF(COUNTA('Enrollment Form'!T655:U655)<2,\"N\",\"Y\"))","v":"-"},{"$f":"IF(B648=\"N\",\"\",IF(OR('Enrollment Form'!C655=\"ROC\",'Enrollment Form'!B655<>\"Subscriber\",'Enrollment Form'!O655=\"Waive\",'Enrollment Form'!O655=\"\"),\"-\",IF('Enrollment Form'!P655=\"\",\"N\",\"Y\")))","v":""},{"$f":"IF($B648=\"N\",\"\",IF(AND('Enrollment Form'!$C655=\"ROC\",'Enrollment Form'!$DR655<>\"\"),\"Y\",IF(AND('Enrollment Form'!$C655=\"ROC\",'Enrollment Form'!$DR655=\"\"),\"N\",IF(AND('Enrollment Form'!$C655=\"Enroll\",'Enrollment Form'!$B655=\"Subscriber\",'Enrollment Form'!$CX655=\"No\",'Enrollment Form'!$DR655=\"\"),\"N\",IF(AND('Enrollment Form'!$C655=\"Enroll\",'Enrollment Form'!$B655=\"Subscriber\",'Enrollment Form'!$CX655=\"Yes\"),\"-\",\"Y\")))))","v":""},{"$f":"IF($B648=\"N\",\"\",IF(AND('Enrollment Form'!$C655=\"ROC\",'Enrollment Form'!$DS655<>\"\"),\"Y\",IF(AND('Enrollment Form'!$C655=\"ROC\",'Enrollment Form'!$DS655=\"\"),\"N\",IF(AND('Enrollment Form'!$C655=\"Enroll\",'Enrollment Form'!$B655=\"Subscriber\",'Enrollment Form'!$CX655=\"No\",'Enrollment Form'!$DS655=\"\"),\"N\",IF(AND('Enrollment Form'!$C655=\"Enroll\",'Enrollment Form'!$B655=\"Subscriber\",'Enrollment Form'!$CX655=\"Yes\"),\"-\",\"Y\")))))","v":""},{"$f":"IF('Enrollment Form'!AH655=\"\",\"\",IF(ISERROR(SEARCH(\".\",'Enrollment Form'!AH655,SEARCH(\"@\",'Enrollment Form'!AH655))),\"N\",\"Y\"))","v":""},{"$f":"IF(OR($B648=\"N\",'Enrollment Form'!$G655=\"\"),\"\",IF('Enrollment Form'!$B655<>\"Subscriber\",\"-\",IF(COUNTIF('Enrollment Form'!$AV655:$AW655,\"Yes\")=2,\"N\",\"Y\")))","v":""},{"$f":"IF(OR('Enrollment Form'!$CJ655=\"\",'Enrollment Form'!$CJ655=\"No\"),\"-\",IF(AND('Enrollment Form'!$CJ655=\"Yes\",'Enrollment Form'!$CK655=\"\"),\"N\",\"Y\"))","v":"-"},{"$f":"IF(OR('Enrollment Form'!$CL655=\"\",'Enrollment Form'!$CL655=\"No\"),\"-\",IF(AND('Enrollment Form'!$CL655=\"Yes\",'Enrollment Form'!$CM655=\"\"),\"N\",\"Y\"))","v":"-"},{"$f":"IF(OR('Enrollment Form'!$CN655=\"\",'Enrollment Form'!$CN655=\"No\"),\"-\",IF(AND('Enrollment Form'!$CN655=\"Yes\",'Enrollment Form'!$CO655=\"\"),\"N\",\"Y\"))","v":"-"},{"$f":"IF(OR('Enrollment Form'!$CN655=\"\",'Enrollment Form'!$CN655=\"No\"),\"-\",IF(AND('Enrollment Form'!$CN655=\"Yes\",'Enrollment Form'!$CP655=\"\"),\"N\",\"Y\"))","v":"-"},{"$f":"IF('Enrollment Form'!B655<>\"Subscriber\",\"-\",IF(AND('Enrollment Form'!B655=\"Subscriber\",'Enrollment Form'!C655=\"Enroll\",'Enrollment Form'!AA655=\"\"),\"N\",\"Y\"))","v":"-"},{"$f":"IF(OR('Enrollment Form'!B655=\"Subscriber\",'Enrollment Form'!B655=\"\"),\"-\",IF('Enrollment Form'!BP655=\"\",\"N\",\"Y\"))","v":"-"},{"$f":"IF('Enrollment Form'!B655<>\"Subscriber\",\"-\",IF(AND('Enrollment Form'!B655=\"Subscriber\",'Enrollment Form'!G655=\"\"),\"N\",\"Y\"))","v":"-"},{"$f":"IF('Enrollment Form'!A655=\"\",\"\",IF('Enrollment Form'!B655=\"Subscriber\",\"-\",IF(AND('Enrollment Form'!B655<>\"Subscriber\",'Enrollment Form'!G655='Enrollment Form'!H655),\"N\",\"Y\")))","v":""},0]
[656,{"$f":"IF('Enrollment Form'!$A656<>\"\",\"Y\",\"N\")","v":"N"},{"$f":"IF(AND('Enrollment Form'!$B656=\"\",'Enrollment Form'!$C656<>\"\"),\"N\",IF($B649=\"N\",\"\",\"Y\"))","v":""},{"$f":"IF(OR($B649=\"N\",'Enrollment Form'!G656=\"\"),\"\",IF('Enrollment Form'!$B656<>\"Subscriber\",\"\",IF('Enrollment Form'!$G656='Enrollment Form'!$H656,\"Y\",\"N\")))","v":""},{"$f":"IF($B649=\"N\",\"\",IF(AND(COUNTIFS('Enrollment Form'!$H$11:$H$1000,'Enrollment Form'!$H656,'Enrollment Form'!$B$11:$B$1000,'Enrollment Form'!$B656)>1,'Enrollment Form'!$H656<>\"\"),\"N\",\"Y\"))","v":""},{"$f":"IF($B649=\"N\",\"\",IF(LEN('Enrollment Form'!$Y656)=0,\"\",IF(LEN('Enrollment Form'!$Y656)<>5,\"N\",\"Y\")))","v":""},{"$f":"IF($B649=\"N\",\"\",IF(LEN('Enrollment Form'!$AD656=0),\"\",IF(LEN('Enrollment Form'!$AD656)<>5,\"N\",\"Y\")))","v":""},{"$f":"IF($B649=\"N\",\"\",IF(LEN('Enrollment Form'!$BS656=0),\"\",IF(LEN('Enrollment Form'!$BS656)<>5,\"N\",\"Y\")))","v":""},{"$f":"IF($B649=\"N\",\"\",IF(LEN('Enrollment Form'!$AE656)=0,\"\",IF(LEN('Enrollment Form'!$AE656)<>10,\"N\",\"Y\")))","v":""},{"$f":"IF($B649=\"N\",\"\",IF(LEN('Enrollment Form'!$AF656)=0,\"\",IF(LEN('Enrollment Form'!$AF656)<>10,\"N\",\"Y\")))","v":""},{"$f":"IF('Enrollment Form'!$O656<>\"Graded\",\"-\",IF(AND('Enrollment Form'!$O656=\"Graded\",'Enrollment Form'!$AR656<>\"\"),\"Y\",\"N\"))","v":"-"},{"$f":"IF($B649=\"N\",\"\",IF(OR('Enrollment Form'!$B656<>\"Subscriber\",'Enrollment Form'!$C656=\"ROC\"),\"-\",IF(AND('Enrollment Form'!$B656=\"Subscriber\",'Enrollment Form'!$C656=\"Enroll\",'Enrollment Form'!$AJ656<>\"\"),\"Y\",\"N\")))","v":""},{"$f":"IF($B649=\"N\",\"\",IF(OR('Enrollment Form'!$B656<>\"Subscriber\",'Enrollment Form'!$C656=\"ROC\"),\"-\",IF(AND('Enrollment Form'!$B656=\"Subscriber\",'Enrollment Form'!$C656=\"Enroll\",'Enrollment Form'!$AK656<>\"\"),\"Y\",\"N\")))","v":""},{"$f":"IF($B649=\"N\",\"\",IF(OR('Enrollment Form'!$B656<>\"Subscriber\",'Enrollment Form'!$C656=\"ROC\"),\"-\",IF(AND('Enrollment Form'!$B656=\"Subscriber\",'Enrollment Form'!$C656=\"Enroll\",'Enrollment Form'!$AL656<>\"\"),\"Y\",\"N\")))","v":""},{"$f":"IF($B649=\"N\",\"\",IF(OR('Enrollment Form'!$B656<>\"Subscriber\",'Enrollment Form'!$C656=\"ROC\"),\"-\",IF(AND('Enrollment Form'!$B656=\"Subscriber\",'Enrollment Form'!$C656=\"Enroll\",'Enrollment Form'!$AP656<>\"\"),\"Y\",\"N\")))","v":""},{"$f":"IF($B649=\"N\",\"\",IF(OR('Enrollment Form'!$B656<>\"Subscriber\",'Enrollment Form'!$C656=\"ROC\"),\"-\",IF(AND('Enrollment Form'!$B656=\"Subscriber\",'Enrollment Form'!$C656=\"Enroll\",'Enrollment Form'!$AQ656<>\"\"),\"Y\",\"N\")))","v":""},{"$f":"IF($B649=\"N\",\"\",IF(OR('Enrollment Form'!$B656<>\"Subscriber\",'Enrollment Form'!$C656=\"ROC\"),\"-\",IF(AND('Enrollment Form'!$B656=\"Subscriber\",'Enrollment Form'!$C656=\"Enroll\",'Enrollment Form'!$AS656<>\"\"),\"Y\",\"N\")))","v":""},{"$f":"IF($B649=\"N\",\"\",IF($Q649=\"-\",\"-\",IF(AND($Q649=\"Y\",'Enrollment Form'!$AS656=\"No\"),\"-\",IF(AND($Q649=\"Y\",'Enrollment Form'!$AS656=\"Yes\",'Enrollment Form'!$AT656<>\"\"),\"Y\",\"N\"))))","v":""},{"$f":"IF($B649=\"N\",\"\",IF(OR('Enrollment Form'!$B656<>\"Subscriber\",'Enrollment Form'!$C656=\"ROC\"),\"-\",IF(AND('Enrollment Form'!$B656=\"Subscriber\",'Enrollment Form'!$C656=\"Enroll\",'Enrollment Form'!$CV656<>\"\"),\"Y\",\"N\")))","v":""},{"$f":"IF($B649=\"N\",\"\",IF($S649=\"-\",\"-\",IF(AND($S649=\"Y\",'Enrollment Form'!$CV656=\"No\"),\"-\",IF(AND($S649=\"Y\",'Enrollment Form'!$CV656=\"Yes\",'Enrollment Form'!$CW656<>\"\"),\"Y\",\"N\"))))","v":""},{"$f":"IF(OR('Enrollment Form'!$AY656=\"Yes\",'Enrollment Form'!$AY656=\"\"),\"-\",IF(OR(AND('Enrollment Form'!$AY656=\"No\",ISERROR(FIND(\"HMO\",VLOOKUP('Enrollment Form'!G656,'Enrollment Form'!H$11:J$1000,3,FALSE),1))=FALSE,COUNTA('Enrollment Form'!$AZ656:$BC656)=4),AND('Enrollment Form'!$AY656=\"No\",ISERROR(FIND(\"HMO\",VLOOKUP('Enrollment Form'!G656,'Enrollment Form'!H$11:J$1000,3,FALSE),1))=FALSE,COUNTA('Enrollment Form'!$BT656:$BW656)=4)),\"Y\",\"N\"))","v":"-"},{"$f":"IF($B649=\"N\",\"\",IF('Enrollment Form'!$B656=\"Subscriber\",\"-\",IF(COUNTA('Enrollment Form'!$BL656,'Enrollment Form'!$BN656)=2,\"Y\",\"N\")))","v":""},{"$f":"IF($B649=\"N\",\"\",IF(OR('Enrollment Form'!$AX656=\"\",'Enrollment Form'!$AX656=\"No\"),\"-\",IF(AND('Enrollment Form'!$AX656=\"Yes\",COUNTA('Enrollment Form'!$CR656)=1),\"Y\",\"N\")))","v":""},{"$f":"IF(OR('Enrollment Form'!$CR656=\"\",'Enrollment Form'!$CR656=\"No\"),\"-\",IF(COUNTA('Enrollment Form'!$CT656:$CU656)=2,\"Y\",\"N\"))","v":"-"},{"$f":"IF($B649=\"N\",\"\",IF(COUNTIF('Enrollment Form'!$DG656:$DP656,\"Other\")=COUNTA('Enrollment Form'!$DK656,'Enrollment Form'!$DH656,'Enrollment Form'!$DN656,'Enrollment Form'!$DQ656),\"Y\",\"N\"))","v":""},{"$f":"IF($B649=\"N\",\"\",IF(OR('Enrollment Form'!B656<>\"Subscriber\",'Enrollment Form'!C656=\"ROC\",COUNTIF('Enrollment Form'!AV656:AW656,\"Yes\")>=1),\"-\",IF(AND('Enrollment Form'!C656=\"Enroll\",COUNTIF('Enrollment Form'!AV656:AW656,\"No\")=2,'Enrollment Form'!AX656=\"\"),\"N\",\"Y\")))","v":""},{"$f":"IF(OR(B649=\"N\",'Enrollment Form'!B656<>\"Subscriber\",'Enrollment Form'!C656=\"ROC\",'Enrollment Form'!O656<>\"Multiple of Salary\"),\"-\",IF(COUNTA('Enrollment Form'!T656:U656)<2,\"N\",\"Y\"))","v":"-"},{"$f":"IF(B649=\"N\",\"\",IF(OR('Enrollment Form'!C656=\"ROC\",'Enrollment Form'!B656<>\"Subscriber\",'Enrollment Form'!O656=\"Waive\",'Enrollment Form'!O656=\"\"),\"-\",IF('Enrollment Form'!P656=\"\",\"N\",\"Y\")))","v":""},{"$f":"IF($B649=\"N\",\"\",IF(AND('Enrollment Form'!$C656=\"ROC\",'Enrollment Form'!$DR656<>\"\"),\"Y\",IF(AND('Enrollment Form'!$C656=\"ROC\",'Enrollment Form'!$DR656=\"\"),\"N\",IF(AND('Enrollment Form'!$C656=\"Enroll\",'Enrollment Form'!$B656=\"Subscriber\",'Enrollment Form'!$CX656=\"No\",'Enrollment Form'!$DR656=\"\"),\"N\",IF(AND('Enrollment Form'!$C656=\"Enroll\",'Enrollment Form'!$B656=\"Subscriber\",'Enrollment Form'!$CX656=\"Yes\"),\"-\",\"Y\")))))","v":""},{"$f":"IF($B649=\"N\",\"\",IF(AND('Enrollment Form'!$C656=\"ROC\",'Enrollment Form'!$DS656<>\"\"),\"Y\",IF(AND('Enrollment Form'!$C656=\"ROC\",'Enrollment Form'!$DS656=\"\"),\"N\",IF(AND('Enrollment Form'!$C656=\"Enroll\",'Enrollment Form'!$B656=\"Subscriber\",'Enrollment Form'!$CX656=\"No\",'Enrollment Form'!$DS656=\"\"),\"N\",IF(AND('Enrollment Form'!$C656=\"Enroll\",'Enrollment Form'!$B656=\"Subscriber\",'Enrollment Form'!$CX656=\"Yes\"),\"-\",\"Y\")))))","v":""},{"$f":"IF('Enrollment Form'!AH656=\"\",\"\",IF(ISERROR(SEARCH(\".\",'Enrollment Form'!AH656,SEARCH(\"@\",'Enrollment Form'!AH656))),\"N\",\"Y\"))","v":""},{"$f":"IF(OR($B649=\"N\",'Enrollment Form'!$G656=\"\"),\"\",IF('Enrollment Form'!$B656<>\"Subscriber\",\"-\",IF(COUNTIF('Enrollment Form'!$AV656:$AW656,\"Yes\")=2,\"N\",\"Y\")))","v":""},{"$f":"IF(OR('Enrollment Form'!$CJ656=\"\",'Enrollment Form'!$CJ656=\"No\"),\"-\",IF(AND('Enrollment Form'!$CJ656=\"Yes\",'Enrollment Form'!$CK656=\"\"),\"N\",\"Y\"))","v":"-"},{"$f":"IF(OR('Enrollment Form'!$CL656=\"\",'Enrollment Form'!$CL656=\"No\"),\"-\",IF(AND('Enrollment Form'!$CL656=\"Yes\",'Enrollment Form'!$CM656=\"\"),\"N\",\"Y\"))","v":"-"},{"$f":"IF(OR('Enrollment Form'!$CN656=\"\",'Enrollment Form'!$CN656=\"No\"),\"-\",IF(AND('Enrollment Form'!$CN656=\"Yes\",'Enrollment Form'!$CO656=\"\"),\"N\",\"Y\"))","v":"-"},{"$f":"IF(OR('Enrollment Form'!$CN656=\"\",'Enrollment Form'!$CN656=\"No\"),\"-\",IF(AND('Enrollment Form'!$CN656=\"Yes\",'Enrollment Form'!$CP656=\"\"),\"N\",\"Y\"))","v":"-"},{"$f":"IF('Enrollment Form'!B656<>\"Subscriber\",\"-\",IF(AND('Enrollment Form'!B656=\"Subscriber\",'Enrollment Form'!C656=\"Enroll\",'Enrollment Form'!AA656=\"\"),\"N\",\"Y\"))","v":"-"},{"$f":"IF(OR('Enrollment Form'!B656=\"Subscriber\",'Enrollment Form'!B656=\"\"),\"-\",IF('Enrollment Form'!BP656=\"\",\"N\",\"Y\"))","v":"-"},{"$f":"IF('Enrollment Form'!B656<>\"Subscriber\",\"-\",IF(AND('Enrollment Form'!B656=\"Subscriber\",'Enrollment Form'!G656=\"\"),\"N\",\"Y\"))","v":"-"},{"$f":"IF('Enrollment Form'!A656=\"\",\"\",IF('Enrollment Form'!B656=\"Subscriber\",\"-\",IF(AND('Enrollment Form'!B656<>\"Subscriber\",'Enrollment Form'!G656='Enrollment Form'!H656),\"N\",\"Y\")))","v":""},0]
[657,{"$f":"IF('Enrollment Form'!$A657<>\"\",\"Y\",\"N\")","v":"N"},{"$f":"IF(AND('Enrollment Form'!$B657=\"\",'Enrollment Form'!$C657<>\"\"),\"N\",IF($B650=\"N\",\"\",\"Y\"))","v":""},{"$f":"IF(OR($B650=\"N\",'Enrollment Form'!G657=\"\"),\"\",IF('Enrollment Form'!$B657<>\"Subscriber\",\"\",IF('Enrollment Form'!$G657='Enrollment Form'!$H657,\"Y\",\"N\")))","v":""},{"$f":"IF($B650=\"N\",\"\",IF(AND(COUNTIFS('Enrollment Form'!$H$11:$H$1000,'Enrollment Form'!$H657,'Enrollment Form'!$B$11:$B$1000,'Enrollment Form'!$B657)>1,'Enrollment Form'!$H657<>\"\"),\"N\",\"Y\"))","v":""},{"$f":"IF($B650=\"N\",\"\",IF(LEN('Enrollment Form'!$Y657)=0,\"\",IF(LEN('Enrollment Form'!$Y657)<>5,\"N\",\"Y\")))","v":""},{"$f":"IF($B650=\"N\",\"\",IF(LEN('Enrollment Form'!$AD657=0),\"\",IF(LEN('Enrollment Form'!$AD657)<>5,\"N\",\"Y\")))","v":""},{"$f":"IF($B650=\"N\",\"\",IF(LEN('Enrollment Form'!$BS657=0),\"\",IF(LEN('Enrollment Form'!$BS657)<>5,\"N\",\"Y\")))","v":""},{"$f":"IF($B650=\"N\",\"\",IF(LEN('Enrollment Form'!$AE657)=0,\"\",IF(LEN('Enrollment Form'!$AE657)<>10,\"N\",\"Y\")))","v":""},{"$f":"IF($B650=\"N\",\"\",IF(LEN('Enrollment Form'!$AF657)=0,\"\",IF(LEN('Enrollment Form'!$AF657)<>10,\"N\",\"Y\")))","v":""},{"$f":"IF('Enrollment Form'!$O657<>\"Graded\",\"-\",IF(AND('Enrollment Form'!$O657=\"Graded\",'Enrollment Form'!$AR657<>\"\"),\"Y\",\"N\"))","v":"-"},{"$f":"IF($B650=\"N\",\"\",IF(OR('Enrollment Form'!$B657<>\"Subscriber\",'Enrollment Form'!$C657=\"ROC\"),\"-\",IF(AND('Enrollment Form'!$B657=\"Subscriber\",'Enrollment Form'!$C657=\"Enroll\",'Enrollment Form'!$AJ657<>\"\"),\"Y\",\"N\")))","v":""},{"$f":"IF($B650=\"N\",\"\",IF(OR('Enrollment Form'!$B657<>\"Subscriber\",'Enrollment Form'!$C657=\"ROC\"),\"-\",IF(AND('Enrollment Form'!$B657=\"Subscriber\",'Enrollment Form'!$C657=\"Enroll\",'Enrollment Form'!$AK657<>\"\"),\"Y\",\"N\")))","v":""},{"$f":"IF($B650=\"N\",\"\",IF(OR('Enrollment Form'!$B657<>\"Subscriber\",'Enrollment Form'!$C657=\"ROC\"),\"-\",IF(AND('Enrollment Form'!$B657=\"Subscriber\",'Enrollment Form'!$C657=\"Enroll\",'Enrollment Form'!$AL657<>\"\"),\"Y\",\"N\")))","v":""},{"$f":"IF($B650=\"N\",\"\",IF(OR('Enrollment Form'!$B657<>\"Subscriber\",'Enrollment Form'!$C657=\"ROC\"),\"-\",IF(AND('Enrollment Form'!$B657=\"Subscriber\",'Enrollment Form'!$C657=\"Enroll\",'Enrollment Form'!$AP657<>\"\"),\"Y\",\"N\")))","v":""},{"$f":"IF($B650=\"N\",\"\",IF(OR('Enrollment Form'!$B657<>\"Subscriber\",'Enrollment Form'!$C657=\"ROC\"),\"-\",IF(AND('Enrollment Form'!$B657=\"Subscriber\",'Enrollment Form'!$C657=\"Enroll\",'Enrollment Form'!$AQ657<>\"\"),\"Y\",\"N\")))","v":""},{"$f":"IF($B650=\"N\",\"\",IF(OR('Enrollment Form'!$B657<>\"Subscriber\",'Enrollment Form'!$C657=\"ROC\"),\"-\",IF(AND('Enrollment Form'!$B657=\"Subscriber\",'Enrollment Form'!$C657=\"Enroll\",'Enrollment Form'!$AS657<>\"\"),\"Y\",\"N\")))","v":""},{"$f":"IF($B650=\"N\",\"\",IF($Q650=\"-\",\"-\",IF(AND($Q650=\"Y\",'Enrollment Form'!$AS657=\"No\"),\"-\",IF(AND($Q650=\"Y\",'Enrollment Form'!$AS657=\"Yes\",'Enrollment Form'!$AT657<>\"\"),\"Y\",\"N\"))))","v":""},{"$f":"IF($B650=\"N\",\"\",IF(OR('Enrollment Form'!$B657<>\"Subscriber\",'Enrollment Form'!$C657=\"ROC\"),\"-\",IF(AND('Enrollment Form'!$B657=\"Subscriber\",'Enrollment Form'!$C657=\"Enroll\",'Enrollment Form'!$CV657<>\"\"),\"Y\",\"N\")))","v":""},{"$f":"IF($B650=\"N\",\"\",IF($S650=\"-\",\"-\",IF(AND($S650=\"Y\",'Enrollment Form'!$CV657=\"No\"),\"-\",IF(AND($S650=\"Y\",'Enrollment Form'!$CV657=\"Yes\",'Enrollment Form'!$CW657<>\"\"),\"Y\",\"N\"))))","v":""},{"$f":"IF(OR('Enrollment Form'!$AY657=\"Yes\",'Enrollment Form'!$AY657=\"\"),\"-\",IF(OR(AND('Enrollment Form'!$AY657=\"No\",ISERROR(FIND(\"HMO\",VLOOKUP('Enrollment Form'!G657,'Enrollment Form'!H$11:J$1000,3,FALSE),1))=FALSE,COUNTA('Enrollment Form'!$AZ657:$BC657)=4),AND('Enrollment Form'!$AY657=\"No\",ISERROR(FIND(\"HMO\",VLOOKUP('Enrollment Form'!G657,'Enrollment Form'!H$11:J$1000,3,FALSE),1))=FALSE,COUNTA('Enrollment Form'!$BT657:$BW657)=4)),\"Y\",\"N\"))","v":"-"},{"$f":"IF($B650=\"N\",\"\",IF('Enrollment Form'!$B657=\"Subscriber\",\"-\",IF(COUNTA('Enrollment Form'!$BL657,'Enrollment Form'!$BN657)=2,\"Y\",\"N\")))","v":""},{"$f":"IF($B650=\"N\",\"\",IF(OR('Enrollment Form'!$AX657=\"\",'Enrollment Form'!$AX657=\"No\"),\"-\",IF(AND('Enrollment Form'!$AX657=\"Yes\",COUNTA('Enrollment Form'!$CR657)=1),\"Y\",\"N\")))","v":""},{"$f":"IF(OR('Enrollment Form'!$CR657=\"\",'Enrollment Form'!$CR657=\"No\"),\"-\",IF(COUNTA('Enrollment Form'!$CT657:$CU657)=2,\"Y\",\"N\"))","v":"-"},{"$f":"IF($B650=\"N\",\"\",IF(COUNTIF('Enrollment Form'!$DG657:$DP657,\"Other\")=COUNTA('Enrollment Form'!$DK657,'Enrollment Form'!$DH657,'Enrollment Form'!$DN657,'Enrollment Form'!$DQ657),\"Y\",\"N\"))","v":""},{"$f":"IF($B650=\"N\",\"\",IF(OR('Enrollment Form'!B657<>\"Subscriber\",'Enrollment Form'!C657=\"ROC\",COUNTIF('Enrollment Form'!AV657:AW657,\"Yes\")>=1),\"-\",IF(AND('Enrollment Form'!C657=\"Enroll\",COUNTIF('Enrollment Form'!AV657:AW657,\"No\")=2,'Enrollment Form'!AX657=\"\"),\"N\",\"Y\")))","v":""},{"$f":"IF(OR(B650=\"N\",'Enrollment Form'!B657<>\"Subscriber\",'Enrollment Form'!C657=\"ROC\",'Enrollment Form'!O657<>\"Multiple of Salary\"),\"-\",IF(COUNTA('Enrollment Form'!T657:U657)<2,\"N\",\"Y\"))","v":"-"},{"$f":"IF(B650=\"N\",\"\",IF(OR('Enrollment Form'!C657=\"ROC\",'Enrollment Form'!B657<>\"Subscriber\",'Enrollment Form'!O657=\"Waive\",'Enrollment Form'!O657=\"\"),\"-\",IF('Enrollment Form'!P657=\"\",\"N\",\"Y\")))","v":""},{"$f":"IF($B650=\"N\",\"\",IF(AND('Enrollment Form'!$C657=\"ROC\",'Enrollment Form'!$DR657<>\"\"),\"Y\",IF(AND('Enrollment Form'!$C657=\"ROC\",'Enrollment Form'!$DR657=\"\"),\"N\",IF(AND('Enrollment Form'!$C657=\"Enroll\",'Enrollment Form'!$B657=\"Subscriber\",'Enrollment Form'!$CX657=\"No\",'Enrollment Form'!$DR657=\"\"),\"N\",IF(AND('Enrollment Form'!$C657=\"Enroll\",'Enrollment Form'!$B657=\"Subscriber\",'Enrollment Form'!$CX657=\"Yes\"),\"-\",\"Y\")))))","v":""},{"$f":"IF($B650=\"N\",\"\",IF(AND('Enrollment Form'!$C657=\"ROC\",'Enrollment Form'!$DS657<>\"\"),\"Y\",IF(AND('Enrollment Form'!$C657=\"ROC\",'Enrollment Form'!$DS657=\"\"),\"N\",IF(AND('Enrollment Form'!$C657=\"Enroll\",'Enrollment Form'!$B657=\"Subscriber\",'Enrollment Form'!$CX657=\"No\",'Enrollment Form'!$DS657=\"\"),\"N\",IF(AND('Enrollment Form'!$C657=\"Enroll\",'Enrollment Form'!$B657=\"Subscriber\",'Enrollment Form'!$CX657=\"Yes\"),\"-\",\"Y\")))))","v":""},{"$f":"IF('Enrollment Form'!AH657=\"\",\"\",IF(ISERROR(SEARCH(\".\",'Enrollment Form'!AH657,SEARCH(\"@\",'Enrollment Form'!AH657))),\"N\",\"Y\"))","v":""},{"$f":"IF(OR($B650=\"N\",'Enrollment Form'!$G657=\"\"),\"\",IF('Enrollment Form'!$B657<>\"Subscriber\",\"-\",IF(COUNTIF('Enrollment Form'!$AV657:$AW657,\"Yes\")=2,\"N\",\"Y\")))","v":""},{"$f":"IF(OR('Enrollment Form'!$CJ657=\"\",'Enrollment Form'!$CJ657=\"No\"),\"-\",IF(AND('Enrollment Form'!$CJ657=\"Yes\",'Enrollment Form'!$CK657=\"\"),\"N\",\"Y\"))","v":"-"},{"$f":"IF(OR('Enrollment Form'!$CL657=\"\",'Enrollment Form'!$CL657=\"No\"),\"-\",IF(AND('Enrollment Form'!$CL657=\"Yes\",'Enrollment Form'!$CM657=\"\"),\"N\",\"Y\"))","v":"-"},{"$f":"IF(OR('Enrollment Form'!$CN657=\"\",'Enrollment Form'!$CN657=\"No\"),\"-\",IF(AND('Enrollment Form'!$CN657=\"Yes\",'Enrollment Form'!$CO657=\"\"),\"N\",\"Y\"))","v":"-"},{"$f":"IF(OR('Enrollment Form'!$CN657=\"\",'Enrollment Form'!$CN657=\"No\"),\"-\",IF(AND('Enrollment Form'!$CN657=\"Yes\",'Enrollment Form'!$CP657=\"\"),\"N\",\"Y\"))","v":"-"},{"$f":"IF('Enrollment Form'!B657<>\"Subscriber\",\"-\",IF(AND('Enrollment Form'!B657=\"Subscriber\",'Enrollment Form'!C657=\"Enroll\",'Enrollment Form'!AA657=\"\"),\"N\",\"Y\"))","v":"-"},{"$f":"IF(OR('Enrollment Form'!B657=\"Subscriber\",'Enrollment Form'!B657=\"\"),\"-\",IF('Enrollment Form'!BP657=\"\",\"N\",\"Y\"))","v":"-"},{"$f":"IF('Enrollment Form'!B657<>\"Subscriber\",\"-\",IF(AND('Enrollment Form'!B657=\"Subscriber\",'Enrollment Form'!G657=\"\"),\"N\",\"Y\"))","v":"-"},{"$f":"IF('Enrollment Form'!A657=\"\",\"\",IF('Enrollment Form'!B657=\"Subscriber\",\"-\",IF(AND('Enrollment Form'!B657<>\"Subscriber\",'Enrollment Form'!G657='Enrollment Form'!H657),\"N\",\"Y\")))","v":""},0]
[658,{"$f":"IF('Enrollment Form'!$A658<>\"\",\"Y\",\"N\")","v":"N"},{"$f":"IF(AND('Enrollment Form'!$B658=\"\",'Enrollment Form'!$C658<>\"\"),\"N\",IF($B651=\"N\",\"\",\"Y\"))","v":""},{"$f":"IF(OR($B651=\"N\",'Enrollment Form'!G658=\"\"),\"\",IF('Enrollment Form'!$B658<>\"Subscriber\",\"\",IF('Enrollment Form'!$G658='Enrollment Form'!$H658,\"Y\",\"N\")))","v":""},{"$f":"IF($B651=\"N\",\"\",IF(AND(COUNTIFS('Enrollment Form'!$H$11:$H$1000,'Enrollment Form'!$H658,'Enrollment Form'!$B$11:$B$1000,'Enrollment Form'!$B658)>1,'Enrollment Form'!$H658<>\"\"),\"N\",\"Y\"))","v":""},{"$f":"IF($B651=\"N\",\"\",IF(LEN('Enrollment Form'!$Y658)=0,\"\",IF(LEN('Enrollment Form'!$Y658)<>5,\"N\",\"Y\")))","v":""},{"$f":"IF($B651=\"N\",\"\",IF(LEN('Enrollment Form'!$AD658=0),\"\",IF(LEN('Enrollment Form'!$AD658)<>5,\"N\",\"Y\")))","v":""},{"$f":"IF($B651=\"N\",\"\",IF(LEN('Enrollment Form'!$BS658=0),\"\",IF(LEN('Enrollment Form'!$BS658)<>5,\"N\",\"Y\")))","v":""},{"$f":"IF($B651=\"N\",\"\",IF(LEN('Enrollment Form'!$AE658)=0,\"\",IF(LEN('Enrollment Form'!$AE658)<>10,\"N\",\"Y\")))","v":""},{"$f":"IF($B651=\"N\",\"\",IF(LEN('Enrollment Form'!$AF658)=0,\"\",IF(LEN('Enrollment Form'!$AF658)<>10,\"N\",\"Y\")))","v":""},{"$f":"IF('Enrollment Form'!$O658<>\"Graded\",\"-\",IF(AND('Enrollment Form'!$O658=\"Graded\",'Enrollment Form'!$AR658<>\"\"),\"Y\",\"N\"))","v":"-"},{"$f":"IF($B651=\"N\",\"\",IF(OR('Enrollment Form'!$B658<>\"Subscriber\",'Enrollment Form'!$C658=\"ROC\"),\"-\",IF(AND('Enrollment Form'!$B658=\"Subscriber\",'Enrollment Form'!$C658=\"Enroll\",'Enrollment Form'!$AJ658<>\"\"),\"Y\",\"N\")))","v":""},{"$f":"IF($B651=\"N\",\"\",IF(OR('Enrollment Form'!$B658<>\"Subscriber\",'Enrollment Form'!$C658=\"ROC\"),\"-\",IF(AND('Enrollment Form'!$B658=\"Subscriber\",'Enrollment Form'!$C658=\"Enroll\",'Enrollment Form'!$AK658<>\"\"),\"Y\",\"N\")))","v":""},{"$f":"IF($B651=\"N\",\"\",IF(OR('Enrollment Form'!$B658<>\"Subscriber\",'Enrollment Form'!$C658=\"ROC\"),\"-\",IF(AND('Enrollment Form'!$B658=\"Subscriber\",'Enrollment Form'!$C658=\"Enroll\",'Enrollment Form'!$AL658<>\"\"),\"Y\",\"N\")))","v":""},{"$f":"IF($B651=\"N\",\"\",IF(OR('Enrollment Form'!$B658<>\"Subscriber\",'Enrollment Form'!$C658=\"ROC\"),\"-\",IF(AND('Enrollment Form'!$B658=\"Subscriber\",'Enrollment Form'!$C658=\"Enroll\",'Enrollment Form'!$AP658<>\"\"),\"Y\",\"N\")))","v":""},{"$f":"IF($B651=\"N\",\"\",IF(OR('Enrollment Form'!$B658<>\"Subscriber\",'Enrollment Form'!$C658=\"ROC\"),\"-\",IF(AND('Enrollment Form'!$B658=\"Subscriber\",'Enrollment Form'!$C658=\"Enroll\",'Enrollment Form'!$AQ658<>\"\"),\"Y\",\"N\")))","v":""},{"$f":"IF($B651=\"N\",\"\",IF(OR('Enrollment Form'!$B658<>\"Subscriber\",'Enrollment Form'!$C658=\"ROC\"),\"-\",IF(AND('Enrollment Form'!$B658=\"Subscriber\",'Enrollment Form'!$C658=\"Enroll\",'Enrollment Form'!$AS658<>\"\"),\"Y\",\"N\")))","v":""},{"$f":"IF($B651=\"N\",\"\",IF($Q651=\"-\",\"-\",IF(AND($Q651=\"Y\",'Enrollment Form'!$AS658=\"No\"),\"-\",IF(AND($Q651=\"Y\",'Enrollment Form'!$AS658=\"Yes\",'Enrollment Form'!$AT658<>\"\"),\"Y\",\"N\"))))","v":""},{"$f":"IF($B651=\"N\",\"\",IF(OR('Enrollment Form'!$B658<>\"Subscriber\",'Enrollment Form'!$C658=\"ROC\"),\"-\",IF(AND('Enrollment Form'!$B658=\"Subscriber\",'Enrollment Form'!$C658=\"Enroll\",'Enrollment Form'!$CV658<>\"\"),\"Y\",\"N\")))","v":""},{"$f":"IF($B651=\"N\",\"\",IF($S651=\"-\",\"-\",IF(AND($S651=\"Y\",'Enrollment Form'!$CV658=\"No\"),\"-\",IF(AND($S651=\"Y\",'Enrollment Form'!$CV658=\"Yes\",'Enrollment Form'!$CW658<>\"\"),\"Y\",\"N\"))))","v":""},{"$f":"IF(OR('Enrollment Form'!$AY658=\"Yes\",'Enrollment Form'!$AY658=\"\"),\"-\",IF(OR(AND('Enrollment Form'!$AY658=\"No\",ISERROR(FIND(\"HMO\",VLOOKUP('Enrollment Form'!G658,'Enrollment Form'!H$11:J$1000,3,FALSE),1))=FALSE,COUNTA('Enrollment Form'!$AZ658:$BC658)=4),AND('Enrollment Form'!$AY658=\"No\",ISERROR(FIND(\"HMO\",VLOOKUP('Enrollment Form'!G658,'Enrollment Form'!H$11:J$1000,3,FALSE),1))=FALSE,COUNTA('Enrollment Form'!$BT658:$BW658)=4)),\"Y\",\"N\"))","v":"-"},{"$f":"IF($B651=\"N\",\"\",IF('Enrollment Form'!$B658=\"Subscriber\",\"-\",IF(COUNTA('Enrollment Form'!$BL658,'Enrollment Form'!$BN658)=2,\"Y\",\"N\")))","v":""},{"$f":"IF($B651=\"N\",\"\",IF(OR('Enrollment Form'!$AX658=\"\",'Enrollment Form'!$AX658=\"No\"),\"-\",IF(AND('Enrollment Form'!$AX658=\"Yes\",COUNTA('Enrollment Form'!$CR658)=1),\"Y\",\"N\")))","v":""},{"$f":"IF(OR('Enrollment Form'!$CR658=\"\",'Enrollment Form'!$CR658=\"No\"),\"-\",IF(COUNTA('Enrollment Form'!$CT658:$CU658)=2,\"Y\",\"N\"))","v":"-"},{"$f":"IF($B651=\"N\",\"\",IF(COUNTIF('Enrollment Form'!$DG658:$DP658,\"Other\")=COUNTA('Enrollment Form'!$DK658,'Enrollment Form'!$DH658,'Enrollment Form'!$DN658,'Enrollment Form'!$DQ658),\"Y\",\"N\"))","v":""},{"$f":"IF($B651=\"N\",\"\",IF(OR('Enrollment Form'!B658<>\"Subscriber\",'Enrollment Form'!C658=\"ROC\",COUNTIF('Enrollment Form'!AV658:AW658,\"Yes\")>=1),\"-\",IF(AND('Enrollment Form'!C658=\"Enroll\",COUNTIF('Enrollment Form'!AV658:AW658,\"No\")=2,'Enrollment Form'!AX658=\"\"),\"N\",\"Y\")))","v":""},{"$f":"IF(OR(B651=\"N\",'Enrollment Form'!B658<>\"Subscriber\",'Enrollment Form'!C658=\"ROC\",'Enrollment Form'!O658<>\"Multiple of Salary\"),\"-\",IF(COUNTA('Enrollment Form'!T658:U658)<2,\"N\",\"Y\"))","v":"-"},{"$f":"IF(B651=\"N\",\"\",IF(OR('Enrollment Form'!C658=\"ROC\",'Enrollment Form'!B658<>\"Subscriber\",'Enrollment Form'!O658=\"Waive\",'Enrollment Form'!O658=\"\"),\"-\",IF('Enrollment Form'!P658=\"\",\"N\",\"Y\")))","v":""},{"$f":"IF($B651=\"N\",\"\",IF(AND('Enrollment Form'!$C658=\"ROC\",'Enrollment Form'!$DR658<>\"\"),\"Y\",IF(AND('Enrollment Form'!$C658=\"ROC\",'Enrollment Form'!$DR658=\"\"),\"N\",IF(AND('Enrollment Form'!$C658=\"Enroll\",'Enrollment Form'!$B658=\"Subscriber\",'Enrollment Form'!$CX658=\"No\",'Enrollment Form'!$DR658=\"\"),\"N\",IF(AND('Enrollment Form'!$C658=\"Enroll\",'Enrollment Form'!$B658=\"Subscriber\",'Enrollment Form'!$CX658=\"Yes\"),\"-\",\"Y\")))))","v":""},{"$f":"IF($B651=\"N\",\"\",IF(AND('Enrollment Form'!$C658=\"ROC\",'Enrollment Form'!$DS658<>\"\"),\"Y\",IF(AND('Enrollment Form'!$C658=\"ROC\",'Enrollment Form'!$DS658=\"\"),\"N\",IF(AND('Enrollment Form'!$C658=\"Enroll\",'Enrollment Form'!$B658=\"Subscriber\",'Enrollment Form'!$CX658=\"No\",'Enrollment Form'!$DS658=\"\"),\"N\",IF(AND('Enrollment Form'!$C658=\"Enroll\",'Enrollment Form'!$B658=\"Subscriber\",'Enrollment Form'!$CX658=\"Yes\"),\"-\",\"Y\")))))","v":""},{"$f":"IF('Enrollment Form'!AH658=\"\",\"\",IF(ISERROR(SEARCH(\".\",'Enrollment Form'!AH658,SEARCH(\"@\",'Enrollment Form'!AH658))),\"N\",\"Y\"))","v":""},{"$f":"IF(OR($B651=\"N\",'Enrollment Form'!$G658=\"\"),\"\",IF('Enrollment Form'!$B658<>\"Subscriber\",\"-\",IF(COUNTIF('Enrollment Form'!$AV658:$AW658,\"Yes\")=2,\"N\",\"Y\")))","v":""},{"$f":"IF(OR('Enrollment Form'!$CJ658=\"\",'Enrollment Form'!$CJ658=\"No\"),\"-\",IF(AND('Enrollment Form'!$CJ658=\"Yes\",'Enrollment Form'!$CK658=\"\"),\"N\",\"Y\"))","v":"-"},{"$f":"IF(OR('Enrollment Form'!$CL658=\"\",'Enrollment Form'!$CL658=\"No\"),\"-\",IF(AND('Enrollment Form'!$CL658=\"Yes\",'Enrollment Form'!$CM658=\"\"),\"N\",\"Y\"))","v":"-"},{"$f":"IF(OR('Enrollment Form'!$CN658=\"\",'Enrollment Form'!$CN658=\"No\"),\"-\",IF(AND('Enrollment Form'!$CN658=\"Yes\",'Enrollment Form'!$CO658=\"\"),\"N\",\"Y\"))","v":"-"},{"$f":"IF(OR('Enrollment Form'!$CN658=\"\",'Enrollment Form'!$CN658=\"No\"),\"-\",IF(AND('Enrollment Form'!$CN658=\"Yes\",'Enrollment Form'!$CP658=\"\"),\"N\",\"Y\"))","v":"-"},{"$f":"IF('Enrollment Form'!B658<>\"Subscriber\",\"-\",IF(AND('Enrollment Form'!B658=\"Subscriber\",'Enrollment Form'!C658=\"Enroll\",'Enrollment Form'!AA658=\"\"),\"N\",\"Y\"))","v":"-"},{"$f":"IF(OR('Enrollment Form'!B658=\"Subscriber\",'Enrollment Form'!B658=\"\"),\"-\",IF('Enrollment Form'!BP658=\"\",\"N\",\"Y\"))","v":"-"},{"$f":"IF('Enrollment Form'!B658<>\"Subscriber\",\"-\",IF(AND('Enrollment Form'!B658=\"Subscriber\",'Enrollment Form'!G658=\"\"),\"N\",\"Y\"))","v":"-"},{"$f":"IF('Enrollment Form'!A658=\"\",\"\",IF('Enrollment Form'!B658=\"Subscriber\",\"-\",IF(AND('Enrollment Form'!B658<>\"Subscriber\",'Enrollment Form'!G658='Enrollment Form'!H658),\"N\",\"Y\")))","v":""},0]
[659,{"$f":"IF('Enrollment Form'!$A659<>\"\",\"Y\",\"N\")","v":"N"},{"$f":"IF(AND('Enrollment Form'!$B659=\"\",'Enrollment Form'!$C659<>\"\"),\"N\",IF($B652=\"N\",\"\",\"Y\"))","v":""},{"$f":"IF(OR($B652=\"N\",'Enrollment Form'!G659=\"\"),\"\",IF('Enrollment Form'!$B659<>\"Subscriber\",\"\",IF('Enrollment Form'!$G659='Enrollment Form'!$H659,\"Y\",\"N\")))","v":""},{"$f":"IF($B652=\"N\",\"\",IF(AND(COUNTIFS('Enrollment Form'!$H$11:$H$1000,'Enrollment Form'!$H659,'Enrollment Form'!$B$11:$B$1000,'Enrollment Form'!$B659)>1,'Enrollment Form'!$H659<>\"\"),\"N\",\"Y\"))","v":""},{"$f":"IF($B652=\"N\",\"\",IF(LEN('Enrollment Form'!$Y659)=0,\"\",IF(LEN('Enrollment Form'!$Y659)<>5,\"N\",\"Y\")))","v":""},{"$f":"IF($B652=\"N\",\"\",IF(LEN('Enrollment Form'!$AD659=0),\"\",IF(LEN('Enrollment Form'!$AD659)<>5,\"N\",\"Y\")))","v":""},{"$f":"IF($B652=\"N\",\"\",IF(LEN('Enrollment Form'!$BS659=0),\"\",IF(LEN('Enrollment Form'!$BS659)<>5,\"N\",\"Y\")))","v":""},{"$f":"IF($B652=\"N\",\"\",IF(LEN('Enrollment Form'!$AE659)=0,\"\",IF(LEN('Enrollment Form'!$AE659)<>10,\"N\",\"Y\")))","v":""},{"$f":"IF($B652=\"N\",\"\",IF(LEN('Enrollment Form'!$AF659)=0,\"\",IF(LEN('Enrollment Form'!$AF659)<>10,\"N\",\"Y\")))","v":""},{"$f":"IF('Enrollment Form'!$O659<>\"Graded\",\"-\",IF(AND('Enrollment Form'!$O659=\"Graded\",'Enrollment Form'!$AR659<>\"\"),\"Y\",\"N\"))","v":"-"},{"$f":"IF($B652=\"N\",\"\",IF(OR('Enrollment Form'!$B659<>\"Subscriber\",'Enrollment Form'!$C659=\"ROC\"),\"-\",IF(AND('Enrollment Form'!$B659=\"Subscriber\",'Enrollment Form'!$C659=\"Enroll\",'Enrollment Form'!$AJ659<>\"\"),\"Y\",\"N\")))","v":""},{"$f":"IF($B652=\"N\",\"\",IF(OR('Enrollment Form'!$B659<>\"Subscriber\",'Enrollment Form'!$C659=\"ROC\"),\"-\",IF(AND('Enrollment Form'!$B659=\"Subscriber\",'Enrollment Form'!$C659=\"Enroll\",'Enrollment Form'!$AK659<>\"\"),\"Y\",\"N\")))","v":""},{"$f":"IF($B652=\"N\",\"\",IF(OR('Enrollment Form'!$B659<>\"Subscriber\",'Enrollment Form'!$C659=\"ROC\"),\"-\",IF(AND('Enrollment Form'!$B659=\"Subscriber\",'Enrollment Form'!$C659=\"Enroll\",'Enrollment Form'!$AL659<>\"\"),\"Y\",\"N\")))","v":""},{"$f":"IF($B652=\"N\",\"\",IF(OR('Enrollment Form'!$B659<>\"Subscriber\",'Enrollment Form'!$C659=\"ROC\"),\"-\",IF(AND('Enrollment Form'!$B659=\"Subscriber\",'Enrollment Form'!$C659=\"Enroll\",'Enrollment Form'!$AP659<>\"\"),\"Y\",\"N\")))","v":""},{"$f":"IF($B652=\"N\",\"\",IF(OR('Enrollment Form'!$B659<>\"Subscriber\",'Enrollment Form'!$C659=\"ROC\"),\"-\",IF(AND('Enrollment Form'!$B659=\"Subscriber\",'Enrollment Form'!$C659=\"Enroll\",'Enrollment Form'!$AQ659<>\"\"),\"Y\",\"N\")))","v":""},{"$f":"IF($B652=\"N\",\"\",IF(OR('Enrollment Form'!$B659<>\"Subscriber\",'Enrollment Form'!$C659=\"ROC\"),\"-\",IF(AND('Enrollment Form'!$B659=\"Subscriber\",'Enrollment Form'!$C659=\"Enroll\",'Enrollment Form'!$AS659<>\"\"),\"Y\",\"N\")))","v":""},{"$f":"IF($B652=\"N\",\"\",IF($Q652=\"-\",\"-\",IF(AND($Q652=\"Y\",'Enrollment Form'!$AS659=\"No\"),\"-\",IF(AND($Q652=\"Y\",'Enrollment Form'!$AS659=\"Yes\",'Enrollment Form'!$AT659<>\"\"),\"Y\",\"N\"))))","v":""},{"$f":"IF($B652=\"N\",\"\",IF(OR('Enrollment Form'!$B659<>\"Subscriber\",'Enrollment Form'!$C659=\"ROC\"),\"-\",IF(AND('Enrollment Form'!$B659=\"Subscriber\",'Enrollment Form'!$C659=\"Enroll\",'Enrollment Form'!$CV659<>\"\"),\"Y\",\"N\")))","v":""},{"$f":"IF($B652=\"N\",\"\",IF($S652=\"-\",\"-\",IF(AND($S652=\"Y\",'Enrollment Form'!$CV659=\"No\"),\"-\",IF(AND($S652=\"Y\",'Enrollment Form'!$CV659=\"Yes\",'Enrollment Form'!$CW659<>\"\"),\"Y\",\"N\"))))","v":""},{"$f":"IF(OR('Enrollment Form'!$AY659=\"Yes\",'Enrollment Form'!$AY659=\"\"),\"-\",IF(OR(AND('Enrollment Form'!$AY659=\"No\",ISERROR(FIND(\"HMO\",VLOOKUP('Enrollment Form'!G659,'Enrollment Form'!H$11:J$1000,3,FALSE),1))=FALSE,COUNTA('Enrollment Form'!$AZ659:$BC659)=4),AND('Enrollment Form'!$AY659=\"No\",ISERROR(FIND(\"HMO\",VLOOKUP('Enrollment Form'!G659,'Enrollment Form'!H$11:J$1000,3,FALSE),1))=FALSE,COUNTA('Enrollment Form'!$BT659:$BW659)=4)),\"Y\",\"N\"))","v":"-"},{"$f":"IF($B652=\"N\",\"\",IF('Enrollment Form'!$B659=\"Subscriber\",\"-\",IF(COUNTA('Enrollment Form'!$BL659,'Enrollment Form'!$BN659)=2,\"Y\",\"N\")))","v":""},{"$f":"IF($B652=\"N\",\"\",IF(OR('Enrollment Form'!$AX659=\"\",'Enrollment Form'!$AX659=\"No\"),\"-\",IF(AND('Enrollment Form'!$AX659=\"Yes\",COUNTA('Enrollment Form'!$CR659)=1),\"Y\",\"N\")))","v":""},{"$f":"IF(OR('Enrollment Form'!$CR659=\"\",'Enrollment Form'!$CR659=\"No\"),\"-\",IF(COUNTA('Enrollment Form'!$CT659:$CU659)=2,\"Y\",\"N\"))","v":"-"},{"$f":"IF($B652=\"N\",\"\",IF(COUNTIF('Enrollment Form'!$DG659:$DP659,\"Other\")=COUNTA('Enrollment Form'!$DK659,'Enrollment Form'!$DH659,'Enrollment Form'!$DN659,'Enrollment Form'!$DQ659),\"Y\",\"N\"))","v":""},{"$f":"IF($B652=\"N\",\"\",IF(OR('Enrollment Form'!B659<>\"Subscriber\",'Enrollment Form'!C659=\"ROC\",COUNTIF('Enrollment Form'!AV659:AW659,\"Yes\")>=1),\"-\",IF(AND('Enrollment Form'!C659=\"Enroll\",COUNTIF('Enrollment Form'!AV659:AW659,\"No\")=2,'Enrollment Form'!AX659=\"\"),\"N\",\"Y\")))","v":""},{"$f":"IF(OR(B652=\"N\",'Enrollment Form'!B659<>\"Subscriber\",'Enrollment Form'!C659=\"ROC\",'Enrollment Form'!O659<>\"Multiple of Salary\"),\"-\",IF(COUNTA('Enrollment Form'!T659:U659)<2,\"N\",\"Y\"))","v":"-"},{"$f":"IF(B652=\"N\",\"\",IF(OR('Enrollment Form'!C659=\"ROC\",'Enrollment Form'!B659<>\"Subscriber\",'Enrollment Form'!O659=\"Waive\",'Enrollment Form'!O659=\"\"),\"-\",IF('Enrollment Form'!P659=\"\",\"N\",\"Y\")))","v":""},{"$f":"IF($B652=\"N\",\"\",IF(AND('Enrollment Form'!$C659=\"ROC\",'Enrollment Form'!$DR659<>\"\"),\"Y\",IF(AND('Enrollment Form'!$C659=\"ROC\",'Enrollment Form'!$DR659=\"\"),\"N\",IF(AND('Enrollment Form'!$C659=\"Enroll\",'Enrollment Form'!$B659=\"Subscriber\",'Enrollment Form'!$CX659=\"No\",'Enrollment Form'!$DR659=\"\"),\"N\",IF(AND('Enrollment Form'!$C659=\"Enroll\",'Enrollment Form'!$B659=\"Subscriber\",'Enrollment Form'!$CX659=\"Yes\"),\"-\",\"Y\")))))","v":""},{"$f":"IF($B652=\"N\",\"\",IF(AND('Enrollment Form'!$C659=\"ROC\",'Enrollment Form'!$DS659<>\"\"),\"Y\",IF(AND('Enrollment Form'!$C659=\"ROC\",'Enrollment Form'!$DS659=\"\"),\"N\",IF(AND('Enrollment Form'!$C659=\"Enroll\",'Enrollment Form'!$B659=\"Subscriber\",'Enrollment Form'!$CX659=\"No\",'Enrollment Form'!$DS659=\"\"),\"N\",IF(AND('Enrollment Form'!$C659=\"Enroll\",'Enrollment Form'!$B659=\"Subscriber\",'Enrollment Form'!$CX659=\"Yes\"),\"-\",\"Y\")))))","v":""},{"$f":"IF('Enrollment Form'!AH659=\"\",\"\",IF(ISERROR(SEARCH(\".\",'Enrollment Form'!AH659,SEARCH(\"@\",'Enrollment Form'!AH659))),\"N\",\"Y\"))","v":""},{"$f":"IF(OR($B652=\"N\",'Enrollment Form'!$G659=\"\"),\"\",IF('Enrollment Form'!$B659<>\"Subscriber\",\"-\",IF(COUNTIF('Enrollment Form'!$AV659:$AW659,\"Yes\")=2,\"N\",\"Y\")))","v":""},{"$f":"IF(OR('Enrollment Form'!$CJ659=\"\",'Enrollment Form'!$CJ659=\"No\"),\"-\",IF(AND('Enrollment Form'!$CJ659=\"Yes\",'Enrollment Form'!$CK659=\"\"),\"N\",\"Y\"))","v":"-"},{"$f":"IF(OR('Enrollment Form'!$CL659=\"\",'Enrollment Form'!$CL659=\"No\"),\"-\",IF(AND('Enrollment Form'!$CL659=\"Yes\",'Enrollment Form'!$CM659=\"\"),\"N\",\"Y\"))","v":"-"},{"$f":"IF(OR('Enrollment Form'!$CN659=\"\",'Enrollment Form'!$CN659=\"No\"),\"-\",IF(AND('Enrollment Form'!$CN659=\"Yes\",'Enrollment Form'!$CO659=\"\"),\"N\",\"Y\"))","v":"-"},{"$f":"IF(OR('Enrollment Form'!$CN659=\"\",'Enrollment Form'!$CN659=\"No\"),\"-\",IF(AND('Enrollment Form'!$CN659=\"Yes\",'Enrollment Form'!$CP659=\"\"),\"N\",\"Y\"))","v":"-"},{"$f":"IF('Enrollment Form'!B659<>\"Subscriber\",\"-\",IF(AND('Enrollment Form'!B659=\"Subscriber\",'Enrollment Form'!C659=\"Enroll\",'Enrollment Form'!AA659=\"\"),\"N\",\"Y\"))","v":"-"},{"$f":"IF(OR('Enrollment Form'!B659=\"Subscriber\",'Enrollment Form'!B659=\"\"),\"-\",IF('Enrollment Form'!BP659=\"\",\"N\",\"Y\"))","v":"-"},{"$f":"IF('Enrollment Form'!B659<>\"Subscriber\",\"-\",IF(AND('Enrollment Form'!B659=\"Subscriber\",'Enrollment Form'!G659=\"\"),\"N\",\"Y\"))","v":"-"},{"$f":"IF('Enrollment Form'!A659=\"\",\"\",IF('Enrollment Form'!B659=\"Subscriber\",\"-\",IF(AND('Enrollment Form'!B659<>\"Subscriber\",'Enrollment Form'!G659='Enrollment Form'!H659),\"N\",\"Y\")))","v":""},0]
[660,{"$f":"IF('Enrollment Form'!$A660<>\"\",\"Y\",\"N\")","v":"N"},{"$f":"IF(AND('Enrollment Form'!$B660=\"\",'Enrollment Form'!$C660<>\"\"),\"N\",IF($B653=\"N\",\"\",\"Y\"))","v":""},{"$f":"IF(OR($B653=\"N\",'Enrollment Form'!G660=\"\"),\"\",IF('Enrollment Form'!$B660<>\"Subscriber\",\"\",IF('Enrollment Form'!$G660='Enrollment Form'!$H660,\"Y\",\"N\")))","v":""},{"$f":"IF($B653=\"N\",\"\",IF(AND(COUNTIFS('Enrollment Form'!$H$11:$H$1000,'Enrollment Form'!$H660,'Enrollment Form'!$B$11:$B$1000,'Enrollment Form'!$B660)>1,'Enrollment Form'!$H660<>\"\"),\"N\",\"Y\"))","v":""},{"$f":"IF($B653=\"N\",\"\",IF(LEN('Enrollment Form'!$Y660)=0,\"\",IF(LEN('Enrollment Form'!$Y660)<>5,\"N\",\"Y\")))","v":""},{"$f":"IF($B653=\"N\",\"\",IF(LEN('Enrollment Form'!$AD660=0),\"\",IF(LEN('Enrollment Form'!$AD660)<>5,\"N\",\"Y\")))","v":""},{"$f":"IF($B653=\"N\",\"\",IF(LEN('Enrollment Form'!$BS660=0),\"\",IF(LEN('Enrollment Form'!$BS660)<>5,\"N\",\"Y\")))","v":""},{"$f":"IF($B653=\"N\",\"\",IF(LEN('Enrollment Form'!$AE660)=0,\"\",IF(LEN('Enrollment Form'!$AE660)<>10,\"N\",\"Y\")))","v":""},{"$f":"IF($B653=\"N\",\"\",IF(LEN('Enrollment Form'!$AF660)=0,\"\",IF(LEN('Enrollment Form'!$AF660)<>10,\"N\",\"Y\")))","v":""},{"$f":"IF('Enrollment Form'!$O660<>\"Graded\",\"-\",IF(AND('Enrollment Form'!$O660=\"Graded\",'Enrollment Form'!$AR660<>\"\"),\"Y\",\"N\"))","v":"-"},{"$f":"IF($B653=\"N\",\"\",IF(OR('Enrollment Form'!$B660<>\"Subscriber\",'Enrollment Form'!$C660=\"ROC\"),\"-\",IF(AND('Enrollment Form'!$B660=\"Subscriber\",'Enrollment Form'!$C660=\"Enroll\",'Enrollment Form'!$AJ660<>\"\"),\"Y\",\"N\")))","v":""},{"$f":"IF($B653=\"N\",\"\",IF(OR('Enrollment Form'!$B660<>\"Subscriber\",'Enrollment Form'!$C660=\"ROC\"),\"-\",IF(AND('Enrollment Form'!$B660=\"Subscriber\",'Enrollment Form'!$C660=\"Enroll\",'Enrollment Form'!$AK660<>\"\"),\"Y\",\"N\")))","v":""},{"$f":"IF($B653=\"N\",\"\",IF(OR('Enrollment Form'!$B660<>\"Subscriber\",'Enrollment Form'!$C660=\"ROC\"),\"-\",IF(AND('Enrollment Form'!$B660=\"Subscriber\",'Enrollment Form'!$C660=\"Enroll\",'Enrollment Form'!$AL660<>\"\"),\"Y\",\"N\")))","v":""},{"$f":"IF($B653=\"N\",\"\",IF(OR('Enrollment Form'!$B660<>\"Subscriber\",'Enrollment Form'!$C660=\"ROC\"),\"-\",IF(AND('Enrollment Form'!$B660=\"Subscriber\",'Enrollment Form'!$C660=\"Enroll\",'Enrollment Form'!$AP660<>\"\"),\"Y\",\"N\")))","v":""},{"$f":"IF($B653=\"N\",\"\",IF(OR('Enrollment Form'!$B660<>\"Subscriber\",'Enrollment Form'!$C660=\"ROC\"),\"-\",IF(AND('Enrollment Form'!$B660=\"Subscriber\",'Enrollment Form'!$C660=\"Enroll\",'Enrollment Form'!$AQ660<>\"\"),\"Y\",\"N\")))","v":""},{"$f":"IF($B653=\"N\",\"\",IF(OR('Enrollment Form'!$B660<>\"Subscriber\",'Enrollment Form'!$C660=\"ROC\"),\"-\",IF(AND('Enrollment Form'!$B660=\"Subscriber\",'Enrollment Form'!$C660=\"Enroll\",'Enrollment Form'!$AS660<>\"\"),\"Y\",\"N\")))","v":""},{"$f":"IF($B653=\"N\",\"\",IF($Q653=\"-\",\"-\",IF(AND($Q653=\"Y\",'Enrollment Form'!$AS660=\"No\"),\"-\",IF(AND($Q653=\"Y\",'Enrollment Form'!$AS660=\"Yes\",'Enrollment Form'!$AT660<>\"\"),\"Y\",\"N\"))))","v":""},{"$f":"IF($B653=\"N\",\"\",IF(OR('Enrollment Form'!$B660<>\"Subscriber\",'Enrollment Form'!$C660=\"ROC\"),\"-\",IF(AND('Enrollment Form'!$B660=\"Subscriber\",'Enrollment Form'!$C660=\"Enroll\",'Enrollment Form'!$CV660<>\"\"),\"Y\",\"N\")))","v":""},{"$f":"IF($B653=\"N\",\"\",IF($S653=\"-\",\"-\",IF(AND($S653=\"Y\",'Enrollment Form'!$CV660=\"No\"),\"-\",IF(AND($S653=\"Y\",'Enrollment Form'!$CV660=\"Yes\",'Enrollment Form'!$CW660<>\"\"),\"Y\",\"N\"))))","v":""},{"$f":"IF(OR('Enrollment Form'!$AY660=\"Yes\",'Enrollment Form'!$AY660=\"\"),\"-\",IF(OR(AND('Enrollment Form'!$AY660=\"No\",ISERROR(FIND(\"HMO\",VLOOKUP('Enrollment Form'!G660,'Enrollment Form'!H$11:J$1000,3,FALSE),1))=FALSE,COUNTA('Enrollment Form'!$AZ660:$BC660)=4),AND('Enrollment Form'!$AY660=\"No\",ISERROR(FIND(\"HMO\",VLOOKUP('Enrollment Form'!G660,'Enrollment Form'!H$11:J$1000,3,FALSE),1))=FALSE,COUNTA('Enrollment Form'!$BT660:$BW660)=4)),\"Y\",\"N\"))","v":"-"},{"$f":"IF($B653=\"N\",\"\",IF('Enrollment Form'!$B660=\"Subscriber\",\"-\",IF(COUNTA('Enrollment Form'!$BL660,'Enrollment Form'!$BN660)=2,\"Y\",\"N\")))","v":""},{"$f":"IF($B653=\"N\",\"\",IF(OR('Enrollment Form'!$AX660=\"\",'Enrollment Form'!$AX660=\"No\"),\"-\",IF(AND('Enrollment Form'!$AX660=\"Yes\",COUNTA('Enrollment Form'!$CR660)=1),\"Y\",\"N\")))","v":""},{"$f":"IF(OR('Enrollment Form'!$CR660=\"\",'Enrollment Form'!$CR660=\"No\"),\"-\",IF(COUNTA('Enrollment Form'!$CT660:$CU660)=2,\"Y\",\"N\"))","v":"-"},{"$f":"IF($B653=\"N\",\"\",IF(COUNTIF('Enrollment Form'!$DG660:$DP660,\"Other\")=COUNTA('Enrollment Form'!$DK660,'Enrollment Form'!$DH660,'Enrollment Form'!$DN660,'Enrollment Form'!$DQ660),\"Y\",\"N\"))","v":""},{"$f":"IF($B653=\"N\",\"\",IF(OR('Enrollment Form'!B660<>\"Subscriber\",'Enrollment Form'!C660=\"ROC\",COUNTIF('Enrollment Form'!AV660:AW660,\"Yes\")>=1),\"-\",IF(AND('Enrollment Form'!C660=\"Enroll\",COUNTIF('Enrollment Form'!AV660:AW660,\"No\")=2,'Enrollment Form'!AX660=\"\"),\"N\",\"Y\")))","v":""},{"$f":"IF(OR(B653=\"N\",'Enrollment Form'!B660<>\"Subscriber\",'Enrollment Form'!C660=\"ROC\",'Enrollment Form'!O660<>\"Multiple of Salary\"),\"-\",IF(COUNTA('Enrollment Form'!T660:U660)<2,\"N\",\"Y\"))","v":"-"},{"$f":"IF(B653=\"N\",\"\",IF(OR('Enrollment Form'!C660=\"ROC\",'Enrollment Form'!B660<>\"Subscriber\",'Enrollment Form'!O660=\"Waive\",'Enrollment Form'!O660=\"\"),\"-\",IF('Enrollment Form'!P660=\"\",\"N\",\"Y\")))","v":""},{"$f":"IF($B653=\"N\",\"\",IF(AND('Enrollment Form'!$C660=\"ROC\",'Enrollment Form'!$DR660<>\"\"),\"Y\",IF(AND('Enrollment Form'!$C660=\"ROC\",'Enrollment Form'!$DR660=\"\"),\"N\",IF(AND('Enrollment Form'!$C660=\"Enroll\",'Enrollment Form'!$B660=\"Subscriber\",'Enrollment Form'!$CX660=\"No\",'Enrollment Form'!$DR660=\"\"),\"N\",IF(AND('Enrollment Form'!$C660=\"Enroll\",'Enrollment Form'!$B660=\"Subscriber\",'Enrollment Form'!$CX660=\"Yes\"),\"-\",\"Y\")))))","v":""},{"$f":"IF($B653=\"N\",\"\",IF(AND('Enrollment Form'!$C660=\"ROC\",'Enrollment Form'!$DS660<>\"\"),\"Y\",IF(AND('Enrollment Form'!$C660=\"ROC\",'Enrollment Form'!$DS660=\"\"),\"N\",IF(AND('Enrollment Form'!$C660=\"Enroll\",'Enrollment Form'!$B660=\"Subscriber\",'Enrollment Form'!$CX660=\"No\",'Enrollment Form'!$DS660=\"\"),\"N\",IF(AND('Enrollment Form'!$C660=\"Enroll\",'Enrollment Form'!$B660=\"Subscriber\",'Enrollment Form'!$CX660=\"Yes\"),\"-\",\"Y\")))))","v":""},{"$f":"IF('Enrollment Form'!AH660=\"\",\"\",IF(ISERROR(SEARCH(\".\",'Enrollment Form'!AH660,SEARCH(\"@\",'Enrollment Form'!AH660))),\"N\",\"Y\"))","v":""},{"$f":"IF(OR($B653=\"N\",'Enrollment Form'!$G660=\"\"),\"\",IF('Enrollment Form'!$B660<>\"Subscriber\",\"-\",IF(COUNTIF('Enrollment Form'!$AV660:$AW660,\"Yes\")=2,\"N\",\"Y\")))","v":""},{"$f":"IF(OR('Enrollment Form'!$CJ660=\"\",'Enrollment Form'!$CJ660=\"No\"),\"-\",IF(AND('Enrollment Form'!$CJ660=\"Yes\",'Enrollment Form'!$CK660=\"\"),\"N\",\"Y\"))","v":"-"},{"$f":"IF(OR('Enrollment Form'!$CL660=\"\",'Enrollment Form'!$CL660=\"No\"),\"-\",IF(AND('Enrollment Form'!$CL660=\"Yes\",'Enrollment Form'!$CM660=\"\"),\"N\",\"Y\"))","v":"-"},{"$f":"IF(OR('Enrollment Form'!$CN660=\"\",'Enrollment Form'!$CN660=\"No\"),\"-\",IF(AND('Enrollment Form'!$CN660=\"Yes\",'Enrollment Form'!$CO660=\"\"),\"N\",\"Y\"))","v":"-"},{"$f":"IF(OR('Enrollment Form'!$CN660=\"\",'Enrollment Form'!$CN660=\"No\"),\"-\",IF(AND('Enrollment Form'!$CN660=\"Yes\",'Enrollment Form'!$CP660=\"\"),\"N\",\"Y\"))","v":"-"},{"$f":"IF('Enrollment Form'!B660<>\"Subscriber\",\"-\",IF(AND('Enrollment Form'!B660=\"Subscriber\",'Enrollment Form'!C660=\"Enroll\",'Enrollment Form'!AA660=\"\"),\"N\",\"Y\"))","v":"-"},{"$f":"IF(OR('Enrollment Form'!B660=\"Subscriber\",'Enrollment Form'!B660=\"\"),\"-\",IF('Enrollment Form'!BP660=\"\",\"N\",\"Y\"))","v":"-"},{"$f":"IF('Enrollment Form'!B660<>\"Subscriber\",\"-\",IF(AND('Enrollment Form'!B660=\"Subscriber\",'Enrollment Form'!G660=\"\"),\"N\",\"Y\"))","v":"-"},{"$f":"IF('Enrollment Form'!A660=\"\",\"\",IF('Enrollment Form'!B660=\"Subscriber\",\"-\",IF(AND('Enrollment Form'!B660<>\"Subscriber\",'Enrollment Form'!G660='Enrollment Form'!H660),\"N\",\"Y\")))","v":""},0]
[661,{"$f":"IF('Enrollment Form'!$A661<>\"\",\"Y\",\"N\")","v":"N"},{"$f":"IF(AND('Enrollment Form'!$B661=\"\",'Enrollment Form'!$C661<>\"\"),\"N\",IF($B654=\"N\",\"\",\"Y\"))","v":""},{"$f":"IF(OR($B654=\"N\",'Enrollment Form'!G661=\"\"),\"\",IF('Enrollment Form'!$B661<>\"Subscriber\",\"\",IF('Enrollment Form'!$G661='Enrollment Form'!$H661,\"Y\",\"N\")))","v":""},{"$f":"IF($B654=\"N\",\"\",IF(AND(COUNTIFS('Enrollment Form'!$H$11:$H$1000,'Enrollment Form'!$H661,'Enrollment Form'!$B$11:$B$1000,'Enrollment Form'!$B661)>1,'Enrollment Form'!$H661<>\"\"),\"N\",\"Y\"))","v":""},{"$f":"IF($B654=\"N\",\"\",IF(LEN('Enrollment Form'!$Y661)=0,\"\",IF(LEN('Enrollment Form'!$Y661)<>5,\"N\",\"Y\")))","v":""},{"$f":"IF($B654=\"N\",\"\",IF(LEN('Enrollment Form'!$AD661=0),\"\",IF(LEN('Enrollment Form'!$AD661)<>5,\"N\",\"Y\")))","v":""},{"$f":"IF($B654=\"N\",\"\",IF(LEN('Enrollment Form'!$BS661=0),\"\",IF(LEN('Enrollment Form'!$BS661)<>5,\"N\",\"Y\")))","v":""},{"$f":"IF($B654=\"N\",\"\",IF(LEN('Enrollment Form'!$AE661)=0,\"\",IF(LEN('Enrollment Form'!$AE661)<>10,\"N\",\"Y\")))","v":""},{"$f":"IF($B654=\"N\",\"\",IF(LEN('Enrollment Form'!$AF661)=0,\"\",IF(LEN('Enrollment Form'!$AF661)<>10,\"N\",\"Y\")))","v":""},{"$f":"IF('Enrollment Form'!$O661<>\"Graded\",\"-\",IF(AND('Enrollment Form'!$O661=\"Graded\",'Enrollment Form'!$AR661<>\"\"),\"Y\",\"N\"))","v":"-"},{"$f":"IF($B654=\"N\",\"\",IF(OR('Enrollment Form'!$B661<>\"Subscriber\",'Enrollment Form'!$C661=\"ROC\"),\"-\",IF(AND('Enrollment Form'!$B661=\"Subscriber\",'Enrollment Form'!$C661=\"Enroll\",'Enrollment Form'!$AJ661<>\"\"),\"Y\",\"N\")))","v":""},{"$f":"IF($B654=\"N\",\"\",IF(OR('Enrollment Form'!$B661<>\"Subscriber\",'Enrollment Form'!$C661=\"ROC\"),\"-\",IF(AND('Enrollment Form'!$B661=\"Subscriber\",'Enrollment Form'!$C661=\"Enroll\",'Enrollment Form'!$AK661<>\"\"),\"Y\",\"N\")))","v":""},{"$f":"IF($B654=\"N\",\"\",IF(OR('Enrollment Form'!$B661<>\"Subscriber\",'Enrollment Form'!$C661=\"ROC\"),\"-\",IF(AND('Enrollment Form'!$B661=\"Subscriber\",'Enrollment Form'!$C661=\"Enroll\",'Enrollment Form'!$AL661<>\"\"),\"Y\",\"N\")))","v":""},{"$f":"IF($B654=\"N\",\"\",IF(OR('Enrollment Form'!$B661<>\"Subscriber\",'Enrollment Form'!$C661=\"ROC\"),\"-\",IF(AND('Enrollment Form'!$B661=\"Subscriber\",'Enrollment Form'!$C661=\"Enroll\",'Enrollment Form'!$AP661<>\"\"),\"Y\",\"N\")))","v":""},{"$f":"IF($B654=\"N\",\"\",IF(OR('Enrollment Form'!$B661<>\"Subscriber\",'Enrollment Form'!$C661=\"ROC\"),\"-\",IF(AND('Enrollment Form'!$B661=\"Subscriber\",'Enrollment Form'!$C661=\"Enroll\",'Enrollment Form'!$AQ661<>\"\"),\"Y\",\"N\")))","v":""},{"$f":"IF($B654=\"N\",\"\",IF(OR('Enrollment Form'!$B661<>\"Subscriber\",'Enrollment Form'!$C661=\"ROC\"),\"-\",IF(AND('Enrollment Form'!$B661=\"Subscriber\",'Enrollment Form'!$C661=\"Enroll\",'Enrollment Form'!$AS661<>\"\"),\"Y\",\"N\")))","v":""},{"$f":"IF($B654=\"N\",\"\",IF($Q654=\"-\",\"-\",IF(AND($Q654=\"Y\",'Enrollment Form'!$AS661=\"No\"),\"-\",IF(AND($Q654=\"Y\",'Enrollment Form'!$AS661=\"Yes\",'Enrollment Form'!$AT661<>\"\"),\"Y\",\"N\"))))","v":""},{"$f":"IF($B654=\"N\",\"\",IF(OR('Enrollment Form'!$B661<>\"Subscriber\",'Enrollment Form'!$C661=\"ROC\"),\"-\",IF(AND('Enrollment Form'!$B661=\"Subscriber\",'Enrollment Form'!$C661=\"Enroll\",'Enrollment Form'!$CV661<>\"\"),\"Y\",\"N\")))","v":""},{"$f":"IF($B654=\"N\",\"\",IF($S654=\"-\",\"-\",IF(AND($S654=\"Y\",'Enrollment Form'!$CV661=\"No\"),\"-\",IF(AND($S654=\"Y\",'Enrollment Form'!$CV661=\"Yes\",'Enrollment Form'!$CW661<>\"\"),\"Y\",\"N\"))))","v":""},{"$f":"IF(OR('Enrollment Form'!$AY661=\"Yes\",'Enrollment Form'!$AY661=\"\"),\"-\",IF(OR(AND('Enrollment Form'!$AY661=\"No\",ISERROR(FIND(\"HMO\",VLOOKUP('Enrollment Form'!G661,'Enrollment Form'!H$11:J$1000,3,FALSE),1))=FALSE,COUNTA('Enrollment Form'!$AZ661:$BC661)=4),AND('Enrollment Form'!$AY661=\"No\",ISERROR(FIND(\"HMO\",VLOOKUP('Enrollment Form'!G661,'Enrollment Form'!H$11:J$1000,3,FALSE),1))=FALSE,COUNTA('Enrollment Form'!$BT661:$BW661)=4)),\"Y\",\"N\"))","v":"-"},{"$f":"IF($B654=\"N\",\"\",IF('Enrollment Form'!$B661=\"Subscriber\",\"-\",IF(COUNTA('Enrollment Form'!$BL661,'Enrollment Form'!$BN661)=2,\"Y\",\"N\")))","v":""},{"$f":"IF($B654=\"N\",\"\",IF(OR('Enrollment Form'!$AX661=\"\",'Enrollment Form'!$AX661=\"No\"),\"-\",IF(AND('Enrollment Form'!$AX661=\"Yes\",COUNTA('Enrollment Form'!$CR661)=1),\"Y\",\"N\")))","v":""},{"$f":"IF(OR('Enrollment Form'!$CR661=\"\",'Enrollment Form'!$CR661=\"No\"),\"-\",IF(COUNTA('Enrollment Form'!$CT661:$CU661)=2,\"Y\",\"N\"))","v":"-"},{"$f":"IF($B654=\"N\",\"\",IF(COUNTIF('Enrollment Form'!$DG661:$DP661,\"Other\")=COUNTA('Enrollment Form'!$DK661,'Enrollment Form'!$DH661,'Enrollment Form'!$DN661,'Enrollment Form'!$DQ661),\"Y\",\"N\"))","v":""},{"$f":"IF($B654=\"N\",\"\",IF(OR('Enrollment Form'!B661<>\"Subscriber\",'Enrollment Form'!C661=\"ROC\",COUNTIF('Enrollment Form'!AV661:AW661,\"Yes\")>=1),\"-\",IF(AND('Enrollment Form'!C661=\"Enroll\",COUNTIF('Enrollment Form'!AV661:AW661,\"No\")=2,'Enrollment Form'!AX661=\"\"),\"N\",\"Y\")))","v":""},{"$f":"IF(OR(B654=\"N\",'Enrollment Form'!B661<>\"Subscriber\",'Enrollment Form'!C661=\"ROC\",'Enrollment Form'!O661<>\"Multiple of Salary\"),\"-\",IF(COUNTA('Enrollment Form'!T661:U661)<2,\"N\",\"Y\"))","v":"-"},{"$f":"IF(B654=\"N\",\"\",IF(OR('Enrollment Form'!C661=\"ROC\",'Enrollment Form'!B661<>\"Subscriber\",'Enrollment Form'!O661=\"Waive\",'Enrollment Form'!O661=\"\"),\"-\",IF('Enrollment Form'!P661=\"\",\"N\",\"Y\")))","v":""},{"$f":"IF($B654=\"N\",\"\",IF(AND('Enrollment Form'!$C661=\"ROC\",'Enrollment Form'!$DR661<>\"\"),\"Y\",IF(AND('Enrollment Form'!$C661=\"ROC\",'Enrollment Form'!$DR661=\"\"),\"N\",IF(AND('Enrollment Form'!$C661=\"Enroll\",'Enrollment Form'!$B661=\"Subscriber\",'Enrollment Form'!$CX661=\"No\",'Enrollment Form'!$DR661=\"\"),\"N\",IF(AND('Enrollment Form'!$C661=\"Enroll\",'Enrollment Form'!$B661=\"Subscriber\",'Enrollment Form'!$CX661=\"Yes\"),\"-\",\"Y\")))))","v":""},{"$f":"IF($B654=\"N\",\"\",IF(AND('Enrollment Form'!$C661=\"ROC\",'Enrollment Form'!$DS661<>\"\"),\"Y\",IF(AND('Enrollment Form'!$C661=\"ROC\",'Enrollment Form'!$DS661=\"\"),\"N\",IF(AND('Enrollment Form'!$C661=\"Enroll\",'Enrollment Form'!$B661=\"Subscriber\",'Enrollment Form'!$CX661=\"No\",'Enrollment Form'!$DS661=\"\"),\"N\",IF(AND('Enrollment Form'!$C661=\"Enroll\",'Enrollment Form'!$B661=\"Subscriber\",'Enrollment Form'!$CX661=\"Yes\"),\"-\",\"Y\")))))","v":""},{"$f":"IF('Enrollment Form'!AH661=\"\",\"\",IF(ISERROR(SEARCH(\".\",'Enrollment Form'!AH661,SEARCH(\"@\",'Enrollment Form'!AH661))),\"N\",\"Y\"))","v":""},{"$f":"IF(OR($B654=\"N\",'Enrollment Form'!$G661=\"\"),\"\",IF('Enrollment Form'!$B661<>\"Subscriber\",\"-\",IF(COUNTIF('Enrollment Form'!$AV661:$AW661,\"Yes\")=2,\"N\",\"Y\")))","v":""},{"$f":"IF(OR('Enrollment Form'!$CJ661=\"\",'Enrollment Form'!$CJ661=\"No\"),\"-\",IF(AND('Enrollment Form'!$CJ661=\"Yes\",'Enrollment Form'!$CK661=\"\"),\"N\",\"Y\"))","v":"-"},{"$f":"IF(OR('Enrollment Form'!$CL661=\"\",'Enrollment Form'!$CL661=\"No\"),\"-\",IF(AND('Enrollment Form'!$CL661=\"Yes\",'Enrollment Form'!$CM661=\"\"),\"N\",\"Y\"))","v":"-"},{"$f":"IF(OR('Enrollment Form'!$CN661=\"\",'Enrollment Form'!$CN661=\"No\"),\"-\",IF(AND('Enrollment Form'!$CN661=\"Yes\",'Enrollment Form'!$CO661=\"\"),\"N\",\"Y\"))","v":"-"},{"$f":"IF(OR('Enrollment Form'!$CN661=\"\",'Enrollment Form'!$CN661=\"No\"),\"-\",IF(AND('Enrollment Form'!$CN661=\"Yes\",'Enrollment Form'!$CP661=\"\"),\"N\",\"Y\"))","v":"-"},{"$f":"IF('Enrollment Form'!B661<>\"Subscriber\",\"-\",IF(AND('Enrollment Form'!B661=\"Subscriber\",'Enrollment Form'!C661=\"Enroll\",'Enrollment Form'!AA661=\"\"),\"N\",\"Y\"))","v":"-"},{"$f":"IF(OR('Enrollment Form'!B661=\"Subscriber\",'Enrollment Form'!B661=\"\"),\"-\",IF('Enrollment Form'!BP661=\"\",\"N\",\"Y\"))","v":"-"},{"$f":"IF('Enrollment Form'!B661<>\"Subscriber\",\"-\",IF(AND('Enrollment Form'!B661=\"Subscriber\",'Enrollment Form'!G661=\"\"),\"N\",\"Y\"))","v":"-"},{"$f":"IF('Enrollment Form'!A661=\"\",\"\",IF('Enrollment Form'!B661=\"Subscriber\",\"-\",IF(AND('Enrollment Form'!B661<>\"Subscriber\",'Enrollment Form'!G661='Enrollment Form'!H661),\"N\",\"Y\")))","v":""},0]
[662,{"$f":"IF('Enrollment Form'!$A662<>\"\",\"Y\",\"N\")","v":"N"},{"$f":"IF(AND('Enrollment Form'!$B662=\"\",'Enrollment Form'!$C662<>\"\"),\"N\",IF($B655=\"N\",\"\",\"Y\"))","v":""},{"$f":"IF(OR($B655=\"N\",'Enrollment Form'!G662=\"\"),\"\",IF('Enrollment Form'!$B662<>\"Subscriber\",\"\",IF('Enrollment Form'!$G662='Enrollment Form'!$H662,\"Y\",\"N\")))","v":""},{"$f":"IF($B655=\"N\",\"\",IF(AND(COUNTIFS('Enrollment Form'!$H$11:$H$1000,'Enrollment Form'!$H662,'Enrollment Form'!$B$11:$B$1000,'Enrollment Form'!$B662)>1,'Enrollment Form'!$H662<>\"\"),\"N\",\"Y\"))","v":""},{"$f":"IF($B655=\"N\",\"\",IF(LEN('Enrollment Form'!$Y662)=0,\"\",IF(LEN('Enrollment Form'!$Y662)<>5,\"N\",\"Y\")))","v":""},{"$f":"IF($B655=\"N\",\"\",IF(LEN('Enrollment Form'!$AD662=0),\"\",IF(LEN('Enrollment Form'!$AD662)<>5,\"N\",\"Y\")))","v":""},{"$f":"IF($B655=\"N\",\"\",IF(LEN('Enrollment Form'!$BS662=0),\"\",IF(LEN('Enrollment Form'!$BS662)<>5,\"N\",\"Y\")))","v":""},{"$f":"IF($B655=\"N\",\"\",IF(LEN('Enrollment Form'!$AE662)=0,\"\",IF(LEN('Enrollment Form'!$AE662)<>10,\"N\",\"Y\")))","v":""},{"$f":"IF($B655=\"N\",\"\",IF(LEN('Enrollment Form'!$AF662)=0,\"\",IF(LEN('Enrollment Form'!$AF662)<>10,\"N\",\"Y\")))","v":""},{"$f":"IF('Enrollment Form'!$O662<>\"Graded\",\"-\",IF(AND('Enrollment Form'!$O662=\"Graded\",'Enrollment Form'!$AR662<>\"\"),\"Y\",\"N\"))","v":"-"},{"$f":"IF($B655=\"N\",\"\",IF(OR('Enrollment Form'!$B662<>\"Subscriber\",'Enrollment Form'!$C662=\"ROC\"),\"-\",IF(AND('Enrollment Form'!$B662=\"Subscriber\",'Enrollment Form'!$C662=\"Enroll\",'Enrollment Form'!$AJ662<>\"\"),\"Y\",\"N\")))","v":""},{"$f":"IF($B655=\"N\",\"\",IF(OR('Enrollment Form'!$B662<>\"Subscriber\",'Enrollment Form'!$C662=\"ROC\"),\"-\",IF(AND('Enrollment Form'!$B662=\"Subscriber\",'Enrollment Form'!$C662=\"Enroll\",'Enrollment Form'!$AK662<>\"\"),\"Y\",\"N\")))","v":""},{"$f":"IF($B655=\"N\",\"\",IF(OR('Enrollment Form'!$B662<>\"Subscriber\",'Enrollment Form'!$C662=\"ROC\"),\"-\",IF(AND('Enrollment Form'!$B662=\"Subscriber\",'Enrollment Form'!$C662=\"Enroll\",'Enrollment Form'!$AL662<>\"\"),\"Y\",\"N\")))","v":""},{"$f":"IF($B655=\"N\",\"\",IF(OR('Enrollment Form'!$B662<>\"Subscriber\",'Enrollment Form'!$C662=\"ROC\"),\"-\",IF(AND('Enrollment Form'!$B662=\"Subscriber\",'Enrollment Form'!$C662=\"Enroll\",'Enrollment Form'!$AP662<>\"\"),\"Y\",\"N\")))","v":""},{"$f":"IF($B655=\"N\",\"\",IF(OR('Enrollment Form'!$B662<>\"Subscriber\",'Enrollment Form'!$C662=\"ROC\"),\"-\",IF(AND('Enrollment Form'!$B662=\"Subscriber\",'Enrollment Form'!$C662=\"Enroll\",'Enrollment Form'!$AQ662<>\"\"),\"Y\",\"N\")))","v":""},{"$f":"IF($B655=\"N\",\"\",IF(OR('Enrollment Form'!$B662<>\"Subscriber\",'Enrollment Form'!$C662=\"ROC\"),\"-\",IF(AND('Enrollment Form'!$B662=\"Subscriber\",'Enrollment Form'!$C662=\"Enroll\",'Enrollment Form'!$AS662<>\"\"),\"Y\",\"N\")))","v":""},{"$f":"IF($B655=\"N\",\"\",IF($Q655=\"-\",\"-\",IF(AND($Q655=\"Y\",'Enrollment Form'!$AS662=\"No\"),\"-\",IF(AND($Q655=\"Y\",'Enrollment Form'!$AS662=\"Yes\",'Enrollment Form'!$AT662<>\"\"),\"Y\",\"N\"))))","v":""},{"$f":"IF($B655=\"N\",\"\",IF(OR('Enrollment Form'!$B662<>\"Subscriber\",'Enrollment Form'!$C662=\"ROC\"),\"-\",IF(AND('Enrollment Form'!$B662=\"Subscriber\",'Enrollment Form'!$C662=\"Enroll\",'Enrollment Form'!$CV662<>\"\"),\"Y\",\"N\")))","v":""},{"$f":"IF($B655=\"N\",\"\",IF($S655=\"-\",\"-\",IF(AND($S655=\"Y\",'Enrollment Form'!$CV662=\"No\"),\"-\",IF(AND($S655=\"Y\",'Enrollment Form'!$CV662=\"Yes\",'Enrollment Form'!$CW662<>\"\"),\"Y\",\"N\"))))","v":""},{"$f":"IF(OR('Enrollment Form'!$AY662=\"Yes\",'Enrollment Form'!$AY662=\"\"),\"-\",IF(OR(AND('Enrollment Form'!$AY662=\"No\",ISERROR(FIND(\"HMO\",VLOOKUP('Enrollment Form'!G662,'Enrollment Form'!H$11:J$1000,3,FALSE),1))=FALSE,COUNTA('Enrollment Form'!$AZ662:$BC662)=4),AND('Enrollment Form'!$AY662=\"No\",ISERROR(FIND(\"HMO\",VLOOKUP('Enrollment Form'!G662,'Enrollment Form'!H$11:J$1000,3,FALSE),1))=FALSE,COUNTA('Enrollment Form'!$BT662:$BW662)=4)),\"Y\",\"N\"))","v":"-"},{"$f":"IF($B655=\"N\",\"\",IF('Enrollment Form'!$B662=\"Subscriber\",\"-\",IF(COUNTA('Enrollment Form'!$BL662,'Enrollment Form'!$BN662)=2,\"Y\",\"N\")))","v":""},{"$f":"IF($B655=\"N\",\"\",IF(OR('Enrollment Form'!$AX662=\"\",'Enrollment Form'!$AX662=\"No\"),\"-\",IF(AND('Enrollment Form'!$AX662=\"Yes\",COUNTA('Enrollment Form'!$CR662)=1),\"Y\",\"N\")))","v":""},{"$f":"IF(OR('Enrollment Form'!$CR662=\"\",'Enrollment Form'!$CR662=\"No\"),\"-\",IF(COUNTA('Enrollment Form'!$CT662:$CU662)=2,\"Y\",\"N\"))","v":"-"},{"$f":"IF($B655=\"N\",\"\",IF(COUNTIF('Enrollment Form'!$DG662:$DP662,\"Other\")=COUNTA('Enrollment Form'!$DK662,'Enrollment Form'!$DH662,'Enrollment Form'!$DN662,'Enrollment Form'!$DQ662),\"Y\",\"N\"))","v":""},{"$f":"IF($B655=\"N\",\"\",IF(OR('Enrollment Form'!B662<>\"Subscriber\",'Enrollment Form'!C662=\"ROC\",COUNTIF('Enrollment Form'!AV662:AW662,\"Yes\")>=1),\"-\",IF(AND('Enrollment Form'!C662=\"Enroll\",COUNTIF('Enrollment Form'!AV662:AW662,\"No\")=2,'Enrollment Form'!AX662=\"\"),\"N\",\"Y\")))","v":""},{"$f":"IF(OR(B655=\"N\",'Enrollment Form'!B662<>\"Subscriber\",'Enrollment Form'!C662=\"ROC\",'Enrollment Form'!O662<>\"Multiple of Salary\"),\"-\",IF(COUNTA('Enrollment Form'!T662:U662)<2,\"N\",\"Y\"))","v":"-"},{"$f":"IF(B655=\"N\",\"\",IF(OR('Enrollment Form'!C662=\"ROC\",'Enrollment Form'!B662<>\"Subscriber\",'Enrollment Form'!O662=\"Waive\",'Enrollment Form'!O662=\"\"),\"-\",IF('Enrollment Form'!P662=\"\",\"N\",\"Y\")))","v":""},{"$f":"IF($B655=\"N\",\"\",IF(AND('Enrollment Form'!$C662=\"ROC\",'Enrollment Form'!$DR662<>\"\"),\"Y\",IF(AND('Enrollment Form'!$C662=\"ROC\",'Enrollment Form'!$DR662=\"\"),\"N\",IF(AND('Enrollment Form'!$C662=\"Enroll\",'Enrollment Form'!$B662=\"Subscriber\",'Enrollment Form'!$CX662=\"No\",'Enrollment Form'!$DR662=\"\"),\"N\",IF(AND('Enrollment Form'!$C662=\"Enroll\",'Enrollment Form'!$B662=\"Subscriber\",'Enrollment Form'!$CX662=\"Yes\"),\"-\",\"Y\")))))","v":""},{"$f":"IF($B655=\"N\",\"\",IF(AND('Enrollment Form'!$C662=\"ROC\",'Enrollment Form'!$DS662<>\"\"),\"Y\",IF(AND('Enrollment Form'!$C662=\"ROC\",'Enrollment Form'!$DS662=\"\"),\"N\",IF(AND('Enrollment Form'!$C662=\"Enroll\",'Enrollment Form'!$B662=\"Subscriber\",'Enrollment Form'!$CX662=\"No\",'Enrollment Form'!$DS662=\"\"),\"N\",IF(AND('Enrollment Form'!$C662=\"Enroll\",'Enrollment Form'!$B662=\"Subscriber\",'Enrollment Form'!$CX662=\"Yes\"),\"-\",\"Y\")))))","v":""},{"$f":"IF('Enrollment Form'!AH662=\"\",\"\",IF(ISERROR(SEARCH(\".\",'Enrollment Form'!AH662,SEARCH(\"@\",'Enrollment Form'!AH662))),\"N\",\"Y\"))","v":""},{"$f":"IF(OR($B655=\"N\",'Enrollment Form'!$G662=\"\"),\"\",IF('Enrollment Form'!$B662<>\"Subscriber\",\"-\",IF(COUNTIF('Enrollment Form'!$AV662:$AW662,\"Yes\")=2,\"N\",\"Y\")))","v":""},{"$f":"IF(OR('Enrollment Form'!$CJ662=\"\",'Enrollment Form'!$CJ662=\"No\"),\"-\",IF(AND('Enrollment Form'!$CJ662=\"Yes\",'Enrollment Form'!$CK662=\"\"),\"N\",\"Y\"))","v":"-"},{"$f":"IF(OR('Enrollment Form'!$CL662=\"\",'Enrollment Form'!$CL662=\"No\"),\"-\",IF(AND('Enrollment Form'!$CL662=\"Yes\",'Enrollment Form'!$CM662=\"\"),\"N\",\"Y\"))","v":"-"},{"$f":"IF(OR('Enrollment Form'!$CN662=\"\",'Enrollment Form'!$CN662=\"No\"),\"-\",IF(AND('Enrollment Form'!$CN662=\"Yes\",'Enrollment Form'!$CO662=\"\"),\"N\",\"Y\"))","v":"-"},{"$f":"IF(OR('Enrollment Form'!$CN662=\"\",'Enrollment Form'!$CN662=\"No\"),\"-\",IF(AND('Enrollment Form'!$CN662=\"Yes\",'Enrollment Form'!$CP662=\"\"),\"N\",\"Y\"))","v":"-"},{"$f":"IF('Enrollment Form'!B662<>\"Subscriber\",\"-\",IF(AND('Enrollment Form'!B662=\"Subscriber\",'Enrollment Form'!C662=\"Enroll\",'Enrollment Form'!AA662=\"\"),\"N\",\"Y\"))","v":"-"},{"$f":"IF(OR('Enrollment Form'!B662=\"Subscriber\",'Enrollment Form'!B662=\"\"),\"-\",IF('Enrollment Form'!BP662=\"\",\"N\",\"Y\"))","v":"-"},{"$f":"IF('Enrollment Form'!B662<>\"Subscriber\",\"-\",IF(AND('Enrollment Form'!B662=\"Subscriber\",'Enrollment Form'!G662=\"\"),\"N\",\"Y\"))","v":"-"},{"$f":"IF('Enrollment Form'!A662=\"\",\"\",IF('Enrollment Form'!B662=\"Subscriber\",\"-\",IF(AND('Enrollment Form'!B662<>\"Subscriber\",'Enrollment Form'!G662='Enrollment Form'!H662),\"N\",\"Y\")))","v":""},0]
[663,{"$f":"IF('Enrollment Form'!$A663<>\"\",\"Y\",\"N\")","v":"N"},{"$f":"IF(AND('Enrollment Form'!$B663=\"\",'Enrollment Form'!$C663<>\"\"),\"N\",IF($B656=\"N\",\"\",\"Y\"))","v":""},{"$f":"IF(OR($B656=\"N\",'Enrollment Form'!G663=\"\"),\"\",IF('Enrollment Form'!$B663<>\"Subscriber\",\"\",IF('Enrollment Form'!$G663='Enrollment Form'!$H663,\"Y\",\"N\")))","v":""},{"$f":"IF($B656=\"N\",\"\",IF(AND(COUNTIFS('Enrollment Form'!$H$11:$H$1000,'Enrollment Form'!$H663,'Enrollment Form'!$B$11:$B$1000,'Enrollment Form'!$B663)>1,'Enrollment Form'!$H663<>\"\"),\"N\",\"Y\"))","v":""},{"$f":"IF($B656=\"N\",\"\",IF(LEN('Enrollment Form'!$Y663)=0,\"\",IF(LEN('Enrollment Form'!$Y663)<>5,\"N\",\"Y\")))","v":""},{"$f":"IF($B656=\"N\",\"\",IF(LEN('Enrollment Form'!$AD663=0),\"\",IF(LEN('Enrollment Form'!$AD663)<>5,\"N\",\"Y\")))","v":""},{"$f":"IF($B656=\"N\",\"\",IF(LEN('Enrollment Form'!$BS663=0),\"\",IF(LEN('Enrollment Form'!$BS663)<>5,\"N\",\"Y\")))","v":""},{"$f":"IF($B656=\"N\",\"\",IF(LEN('Enrollment Form'!$AE663)=0,\"\",IF(LEN('Enrollment Form'!$AE663)<>10,\"N\",\"Y\")))","v":""},{"$f":"IF($B656=\"N\",\"\",IF(LEN('Enrollment Form'!$AF663)=0,\"\",IF(LEN('Enrollment Form'!$AF663)<>10,\"N\",\"Y\")))","v":""},{"$f":"IF('Enrollment Form'!$O663<>\"Graded\",\"-\",IF(AND('Enrollment Form'!$O663=\"Graded\",'Enrollment Form'!$AR663<>\"\"),\"Y\",\"N\"))","v":"-"},{"$f":"IF($B656=\"N\",\"\",IF(OR('Enrollment Form'!$B663<>\"Subscriber\",'Enrollment Form'!$C663=\"ROC\"),\"-\",IF(AND('Enrollment Form'!$B663=\"Subscriber\",'Enrollment Form'!$C663=\"Enroll\",'Enrollment Form'!$AJ663<>\"\"),\"Y\",\"N\")))","v":""},{"$f":"IF($B656=\"N\",\"\",IF(OR('Enrollment Form'!$B663<>\"Subscriber\",'Enrollment Form'!$C663=\"ROC\"),\"-\",IF(AND('Enrollment Form'!$B663=\"Subscriber\",'Enrollment Form'!$C663=\"Enroll\",'Enrollment Form'!$AK663<>\"\"),\"Y\",\"N\")))","v":""},{"$f":"IF($B656=\"N\",\"\",IF(OR('Enrollment Form'!$B663<>\"Subscriber\",'Enrollment Form'!$C663=\"ROC\"),\"-\",IF(AND('Enrollment Form'!$B663=\"Subscriber\",'Enrollment Form'!$C663=\"Enroll\",'Enrollment Form'!$AL663<>\"\"),\"Y\",\"N\")))","v":""},{"$f":"IF($B656=\"N\",\"\",IF(OR('Enrollment Form'!$B663<>\"Subscriber\",'Enrollment Form'!$C663=\"ROC\"),\"-\",IF(AND('Enrollment Form'!$B663=\"Subscriber\",'Enrollment Form'!$C663=\"Enroll\",'Enrollment Form'!$AP663<>\"\"),\"Y\",\"N\")))","v":""},{"$f":"IF($B656=\"N\",\"\",IF(OR('Enrollment Form'!$B663<>\"Subscriber\",'Enrollment Form'!$C663=\"ROC\"),\"-\",IF(AND('Enrollment Form'!$B663=\"Subscriber\",'Enrollment Form'!$C663=\"Enroll\",'Enrollment Form'!$AQ663<>\"\"),\"Y\",\"N\")))","v":""},{"$f":"IF($B656=\"N\",\"\",IF(OR('Enrollment Form'!$B663<>\"Subscriber\",'Enrollment Form'!$C663=\"ROC\"),\"-\",IF(AND('Enrollment Form'!$B663=\"Subscriber\",'Enrollment Form'!$C663=\"Enroll\",'Enrollment Form'!$AS663<>\"\"),\"Y\",\"N\")))","v":""},{"$f":"IF($B656=\"N\",\"\",IF($Q656=\"-\",\"-\",IF(AND($Q656=\"Y\",'Enrollment Form'!$AS663=\"No\"),\"-\",IF(AND($Q656=\"Y\",'Enrollment Form'!$AS663=\"Yes\",'Enrollment Form'!$AT663<>\"\"),\"Y\",\"N\"))))","v":""},{"$f":"IF($B656=\"N\",\"\",IF(OR('Enrollment Form'!$B663<>\"Subscriber\",'Enrollment Form'!$C663=\"ROC\"),\"-\",IF(AND('Enrollment Form'!$B663=\"Subscriber\",'Enrollment Form'!$C663=\"Enroll\",'Enrollment Form'!$CV663<>\"\"),\"Y\",\"N\")))","v":""},{"$f":"IF($B656=\"N\",\"\",IF($S656=\"-\",\"-\",IF(AND($S656=\"Y\",'Enrollment Form'!$CV663=\"No\"),\"-\",IF(AND($S656=\"Y\",'Enrollment Form'!$CV663=\"Yes\",'Enrollment Form'!$CW663<>\"\"),\"Y\",\"N\"))))","v":""},{"$f":"IF(OR('Enrollment Form'!$AY663=\"Yes\",'Enrollment Form'!$AY663=\"\"),\"-\",IF(OR(AND('Enrollment Form'!$AY663=\"No\",ISERROR(FIND(\"HMO\",VLOOKUP('Enrollment Form'!G663,'Enrollment Form'!H$11:J$1000,3,FALSE),1))=FALSE,COUNTA('Enrollment Form'!$AZ663:$BC663)=4),AND('Enrollment Form'!$AY663=\"No\",ISERROR(FIND(\"HMO\",VLOOKUP('Enrollment Form'!G663,'Enrollment Form'!H$11:J$1000,3,FALSE),1))=FALSE,COUNTA('Enrollment Form'!$BT663:$BW663)=4)),\"Y\",\"N\"))","v":"-"},{"$f":"IF($B656=\"N\",\"\",IF('Enrollment Form'!$B663=\"Subscriber\",\"-\",IF(COUNTA('Enrollment Form'!$BL663,'Enrollment Form'!$BN663)=2,\"Y\",\"N\")))","v":""},{"$f":"IF($B656=\"N\",\"\",IF(OR('Enrollment Form'!$AX663=\"\",'Enrollment Form'!$AX663=\"No\"),\"-\",IF(AND('Enrollment Form'!$AX663=\"Yes\",COUNTA('Enrollment Form'!$CR663)=1),\"Y\",\"N\")))","v":""},{"$f":"IF(OR('Enrollment Form'!$CR663=\"\",'Enrollment Form'!$CR663=\"No\"),\"-\",IF(COUNTA('Enrollment Form'!$CT663:$CU663)=2,\"Y\",\"N\"))","v":"-"},{"$f":"IF($B656=\"N\",\"\",IF(COUNTIF('Enrollment Form'!$DG663:$DP663,\"Other\")=COUNTA('Enrollment Form'!$DK663,'Enrollment Form'!$DH663,'Enrollment Form'!$DN663,'Enrollment Form'!$DQ663),\"Y\",\"N\"))","v":""},{"$f":"IF($B656=\"N\",\"\",IF(OR('Enrollment Form'!B663<>\"Subscriber\",'Enrollment Form'!C663=\"ROC\",COUNTIF('Enrollment Form'!AV663:AW663,\"Yes\")>=1),\"-\",IF(AND('Enrollment Form'!C663=\"Enroll\",COUNTIF('Enrollment Form'!AV663:AW663,\"No\")=2,'Enrollment Form'!AX663=\"\"),\"N\",\"Y\")))","v":""},{"$f":"IF(OR(B656=\"N\",'Enrollment Form'!B663<>\"Subscriber\",'Enrollment Form'!C663=\"ROC\",'Enrollment Form'!O663<>\"Multiple of Salary\"),\"-\",IF(COUNTA('Enrollment Form'!T663:U663)<2,\"N\",\"Y\"))","v":"-"},{"$f":"IF(B656=\"N\",\"\",IF(OR('Enrollment Form'!C663=\"ROC\",'Enrollment Form'!B663<>\"Subscriber\",'Enrollment Form'!O663=\"Waive\",'Enrollment Form'!O663=\"\"),\"-\",IF('Enrollment Form'!P663=\"\",\"N\",\"Y\")))","v":""},{"$f":"IF($B656=\"N\",\"\",IF(AND('Enrollment Form'!$C663=\"ROC\",'Enrollment Form'!$DR663<>\"\"),\"Y\",IF(AND('Enrollment Form'!$C663=\"ROC\",'Enrollment Form'!$DR663=\"\"),\"N\",IF(AND('Enrollment Form'!$C663=\"Enroll\",'Enrollment Form'!$B663=\"Subscriber\",'Enrollment Form'!$CX663=\"No\",'Enrollment Form'!$DR663=\"\"),\"N\",IF(AND('Enrollment Form'!$C663=\"Enroll\",'Enrollment Form'!$B663=\"Subscriber\",'Enrollment Form'!$CX663=\"Yes\"),\"-\",\"Y\")))))","v":""},{"$f":"IF($B656=\"N\",\"\",IF(AND('Enrollment Form'!$C663=\"ROC\",'Enrollment Form'!$DS663<>\"\"),\"Y\",IF(AND('Enrollment Form'!$C663=\"ROC\",'Enrollment Form'!$DS663=\"\"),\"N\",IF(AND('Enrollment Form'!$C663=\"Enroll\",'Enrollment Form'!$B663=\"Subscriber\",'Enrollment Form'!$CX663=\"No\",'Enrollment Form'!$DS663=\"\"),\"N\",IF(AND('Enrollment Form'!$C663=\"Enroll\",'Enrollment Form'!$B663=\"Subscriber\",'Enrollment Form'!$CX663=\"Yes\"),\"-\",\"Y\")))))","v":""},{"$f":"IF('Enrollment Form'!AH663=\"\",\"\",IF(ISERROR(SEARCH(\".\",'Enrollment Form'!AH663,SEARCH(\"@\",'Enrollment Form'!AH663))),\"N\",\"Y\"))","v":""},{"$f":"IF(OR($B656=\"N\",'Enrollment Form'!$G663=\"\"),\"\",IF('Enrollment Form'!$B663<>\"Subscriber\",\"-\",IF(COUNTIF('Enrollment Form'!$AV663:$AW663,\"Yes\")=2,\"N\",\"Y\")))","v":""},{"$f":"IF(OR('Enrollment Form'!$CJ663=\"\",'Enrollment Form'!$CJ663=\"No\"),\"-\",IF(AND('Enrollment Form'!$CJ663=\"Yes\",'Enrollment Form'!$CK663=\"\"),\"N\",\"Y\"))","v":"-"},{"$f":"IF(OR('Enrollment Form'!$CL663=\"\",'Enrollment Form'!$CL663=\"No\"),\"-\",IF(AND('Enrollment Form'!$CL663=\"Yes\",'Enrollment Form'!$CM663=\"\"),\"N\",\"Y\"))","v":"-"},{"$f":"IF(OR('Enrollment Form'!$CN663=\"\",'Enrollment Form'!$CN663=\"No\"),\"-\",IF(AND('Enrollment Form'!$CN663=\"Yes\",'Enrollment Form'!$CO663=\"\"),\"N\",\"Y\"))","v":"-"},{"$f":"IF(OR('Enrollment Form'!$CN663=\"\",'Enrollment Form'!$CN663=\"No\"),\"-\",IF(AND('Enrollment Form'!$CN663=\"Yes\",'Enrollment Form'!$CP663=\"\"),\"N\",\"Y\"))","v":"-"},{"$f":"IF('Enrollment Form'!B663<>\"Subscriber\",\"-\",IF(AND('Enrollment Form'!B663=\"Subscriber\",'Enrollment Form'!C663=\"Enroll\",'Enrollment Form'!AA663=\"\"),\"N\",\"Y\"))","v":"-"},{"$f":"IF(OR('Enrollment Form'!B663=\"Subscriber\",'Enrollment Form'!B663=\"\"),\"-\",IF('Enrollment Form'!BP663=\"\",\"N\",\"Y\"))","v":"-"},{"$f":"IF('Enrollment Form'!B663<>\"Subscriber\",\"-\",IF(AND('Enrollment Form'!B663=\"Subscriber\",'Enrollment Form'!G663=\"\"),\"N\",\"Y\"))","v":"-"},{"$f":"IF('Enrollment Form'!A663=\"\",\"\",IF('Enrollment Form'!B663=\"Subscriber\",\"-\",IF(AND('Enrollment Form'!B663<>\"Subscriber\",'Enrollment Form'!G663='Enrollment Form'!H663),\"N\",\"Y\")))","v":""},0]
[664,{"$f":"IF('Enrollment Form'!$A664<>\"\",\"Y\",\"N\")","v":"N"},{"$f":"IF(AND('Enrollment Form'!$B664=\"\",'Enrollment Form'!$C664<>\"\"),\"N\",IF($B657=\"N\",\"\",\"Y\"))","v":""},{"$f":"IF(OR($B657=\"N\",'Enrollment Form'!G664=\"\"),\"\",IF('Enrollment Form'!$B664<>\"Subscriber\",\"\",IF('Enrollment Form'!$G664='Enrollment Form'!$H664,\"Y\",\"N\")))","v":""},{"$f":"IF($B657=\"N\",\"\",IF(AND(COUNTIFS('Enrollment Form'!$H$11:$H$1000,'Enrollment Form'!$H664,'Enrollment Form'!$B$11:$B$1000,'Enrollment Form'!$B664)>1,'Enrollment Form'!$H664<>\"\"),\"N\",\"Y\"))","v":""},{"$f":"IF($B657=\"N\",\"\",IF(LEN('Enrollment Form'!$Y664)=0,\"\",IF(LEN('Enrollment Form'!$Y664)<>5,\"N\",\"Y\")))","v":""},{"$f":"IF($B657=\"N\",\"\",IF(LEN('Enrollment Form'!$AD664=0),\"\",IF(LEN('Enrollment Form'!$AD664)<>5,\"N\",\"Y\")))","v":""},{"$f":"IF($B657=\"N\",\"\",IF(LEN('Enrollment Form'!$BS664=0),\"\",IF(LEN('Enrollment Form'!$BS664)<>5,\"N\",\"Y\")))","v":""},{"$f":"IF($B657=\"N\",\"\",IF(LEN('Enrollment Form'!$AE664)=0,\"\",IF(LEN('Enrollment Form'!$AE664)<>10,\"N\",\"Y\")))","v":""},{"$f":"IF($B657=\"N\",\"\",IF(LEN('Enrollment Form'!$AF664)=0,\"\",IF(LEN('Enrollment Form'!$AF664)<>10,\"N\",\"Y\")))","v":""},{"$f":"IF('Enrollment Form'!$O664<>\"Graded\",\"-\",IF(AND('Enrollment Form'!$O664=\"Graded\",'Enrollment Form'!$AR664<>\"\"),\"Y\",\"N\"))","v":"-"},{"$f":"IF($B657=\"N\",\"\",IF(OR('Enrollment Form'!$B664<>\"Subscriber\",'Enrollment Form'!$C664=\"ROC\"),\"-\",IF(AND('Enrollment Form'!$B664=\"Subscriber\",'Enrollment Form'!$C664=\"Enroll\",'Enrollment Form'!$AJ664<>\"\"),\"Y\",\"N\")))","v":""},{"$f":"IF($B657=\"N\",\"\",IF(OR('Enrollment Form'!$B664<>\"Subscriber\",'Enrollment Form'!$C664=\"ROC\"),\"-\",IF(AND('Enrollment Form'!$B664=\"Subscriber\",'Enrollment Form'!$C664=\"Enroll\",'Enrollment Form'!$AK664<>\"\"),\"Y\",\"N\")))","v":""},{"$f":"IF($B657=\"N\",\"\",IF(OR('Enrollment Form'!$B664<>\"Subscriber\",'Enrollment Form'!$C664=\"ROC\"),\"-\",IF(AND('Enrollment Form'!$B664=\"Subscriber\",'Enrollment Form'!$C664=\"Enroll\",'Enrollment Form'!$AL664<>\"\"),\"Y\",\"N\")))","v":""},{"$f":"IF($B657=\"N\",\"\",IF(OR('Enrollment Form'!$B664<>\"Subscriber\",'Enrollment Form'!$C664=\"ROC\"),\"-\",IF(AND('Enrollment Form'!$B664=\"Subscriber\",'Enrollment Form'!$C664=\"Enroll\",'Enrollment Form'!$AP664<>\"\"),\"Y\",\"N\")))","v":""},{"$f":"IF($B657=\"N\",\"\",IF(OR('Enrollment Form'!$B664<>\"Subscriber\",'Enrollment Form'!$C664=\"ROC\"),\"-\",IF(AND('Enrollment Form'!$B664=\"Subscriber\",'Enrollment Form'!$C664=\"Enroll\",'Enrollment Form'!$AQ664<>\"\"),\"Y\",\"N\")))","v":""},{"$f":"IF($B657=\"N\",\"\",IF(OR('Enrollment Form'!$B664<>\"Subscriber\",'Enrollment Form'!$C664=\"ROC\"),\"-\",IF(AND('Enrollment Form'!$B664=\"Subscriber\",'Enrollment Form'!$C664=\"Enroll\",'Enrollment Form'!$AS664<>\"\"),\"Y\",\"N\")))","v":""},{"$f":"IF($B657=\"N\",\"\",IF($Q657=\"-\",\"-\",IF(AND($Q657=\"Y\",'Enrollment Form'!$AS664=\"No\"),\"-\",IF(AND($Q657=\"Y\",'Enrollment Form'!$AS664=\"Yes\",'Enrollment Form'!$AT664<>\"\"),\"Y\",\"N\"))))","v":""},{"$f":"IF($B657=\"N\",\"\",IF(OR('Enrollment Form'!$B664<>\"Subscriber\",'Enrollment Form'!$C664=\"ROC\"),\"-\",IF(AND('Enrollment Form'!$B664=\"Subscriber\",'Enrollment Form'!$C664=\"Enroll\",'Enrollment Form'!$CV664<>\"\"),\"Y\",\"N\")))","v":""},{"$f":"IF($B657=\"N\",\"\",IF($S657=\"-\",\"-\",IF(AND($S657=\"Y\",'Enrollment Form'!$CV664=\"No\"),\"-\",IF(AND($S657=\"Y\",'Enrollment Form'!$CV664=\"Yes\",'Enrollment Form'!$CW664<>\"\"),\"Y\",\"N\"))))","v":""},{"$f":"IF(OR('Enrollment Form'!$AY664=\"Yes\",'Enrollment Form'!$AY664=\"\"),\"-\",IF(OR(AND('Enrollment Form'!$AY664=\"No\",ISERROR(FIND(\"HMO\",VLOOKUP('Enrollment Form'!G664,'Enrollment Form'!H$11:J$1000,3,FALSE),1))=FALSE,COUNTA('Enrollment Form'!$AZ664:$BC664)=4),AND('Enrollment Form'!$AY664=\"No\",ISERROR(FIND(\"HMO\",VLOOKUP('Enrollment Form'!G664,'Enrollment Form'!H$11:J$1000,3,FALSE),1))=FALSE,COUNTA('Enrollment Form'!$BT664:$BW664)=4)),\"Y\",\"N\"))","v":"-"},{"$f":"IF($B657=\"N\",\"\",IF('Enrollment Form'!$B664=\"Subscriber\",\"-\",IF(COUNTA('Enrollment Form'!$BL664,'Enrollment Form'!$BN664)=2,\"Y\",\"N\")))","v":""},{"$f":"IF($B657=\"N\",\"\",IF(OR('Enrollment Form'!$AX664=\"\",'Enrollment Form'!$AX664=\"No\"),\"-\",IF(AND('Enrollment Form'!$AX664=\"Yes\",COUNTA('Enrollment Form'!$CR664)=1),\"Y\",\"N\")))","v":""},{"$f":"IF(OR('Enrollment Form'!$CR664=\"\",'Enrollment Form'!$CR664=\"No\"),\"-\",IF(COUNTA('Enrollment Form'!$CT664:$CU664)=2,\"Y\",\"N\"))","v":"-"},{"$f":"IF($B657=\"N\",\"\",IF(COUNTIF('Enrollment Form'!$DG664:$DP664,\"Other\")=COUNTA('Enrollment Form'!$DK664,'Enrollment Form'!$DH664,'Enrollment Form'!$DN664,'Enrollment Form'!$DQ664),\"Y\",\"N\"))","v":""},{"$f":"IF($B657=\"N\",\"\",IF(OR('Enrollment Form'!B664<>\"Subscriber\",'Enrollment Form'!C664=\"ROC\",COUNTIF('Enrollment Form'!AV664:AW664,\"Yes\")>=1),\"-\",IF(AND('Enrollment Form'!C664=\"Enroll\",COUNTIF('Enrollment Form'!AV664:AW664,\"No\")=2,'Enrollment Form'!AX664=\"\"),\"N\",\"Y\")))","v":""},{"$f":"IF(OR(B657=\"N\",'Enrollment Form'!B664<>\"Subscriber\",'Enrollment Form'!C664=\"ROC\",'Enrollment Form'!O664<>\"Multiple of Salary\"),\"-\",IF(COUNTA('Enrollment Form'!T664:U664)<2,\"N\",\"Y\"))","v":"-"},{"$f":"IF(B657=\"N\",\"\",IF(OR('Enrollment Form'!C664=\"ROC\",'Enrollment Form'!B664<>\"Subscriber\",'Enrollment Form'!O664=\"Waive\",'Enrollment Form'!O664=\"\"),\"-\",IF('Enrollment Form'!P664=\"\",\"N\",\"Y\")))","v":""},{"$f":"IF($B657=\"N\",\"\",IF(AND('Enrollment Form'!$C664=\"ROC\",'Enrollment Form'!$DR664<>\"\"),\"Y\",IF(AND('Enrollment Form'!$C664=\"ROC\",'Enrollment Form'!$DR664=\"\"),\"N\",IF(AND('Enrollment Form'!$C664=\"Enroll\",'Enrollment Form'!$B664=\"Subscriber\",'Enrollment Form'!$CX664=\"No\",'Enrollment Form'!$DR664=\"\"),\"N\",IF(AND('Enrollment Form'!$C664=\"Enroll\",'Enrollment Form'!$B664=\"Subscriber\",'Enrollment Form'!$CX664=\"Yes\"),\"-\",\"Y\")))))","v":""},{"$f":"IF($B657=\"N\",\"\",IF(AND('Enrollment Form'!$C664=\"ROC\",'Enrollment Form'!$DS664<>\"\"),\"Y\",IF(AND('Enrollment Form'!$C664=\"ROC\",'Enrollment Form'!$DS664=\"\"),\"N\",IF(AND('Enrollment Form'!$C664=\"Enroll\",'Enrollment Form'!$B664=\"Subscriber\",'Enrollment Form'!$CX664=\"No\",'Enrollment Form'!$DS664=\"\"),\"N\",IF(AND('Enrollment Form'!$C664=\"Enroll\",'Enrollment Form'!$B664=\"Subscriber\",'Enrollment Form'!$CX664=\"Yes\"),\"-\",\"Y\")))))","v":""},{"$f":"IF('Enrollment Form'!AH664=\"\",\"\",IF(ISERROR(SEARCH(\".\",'Enrollment Form'!AH664,SEARCH(\"@\",'Enrollment Form'!AH664))),\"N\",\"Y\"))","v":""},{"$f":"IF(OR($B657=\"N\",'Enrollment Form'!$G664=\"\"),\"\",IF('Enrollment Form'!$B664<>\"Subscriber\",\"-\",IF(COUNTIF('Enrollment Form'!$AV664:$AW664,\"Yes\")=2,\"N\",\"Y\")))","v":""},{"$f":"IF(OR('Enrollment Form'!$CJ664=\"\",'Enrollment Form'!$CJ664=\"No\"),\"-\",IF(AND('Enrollment Form'!$CJ664=\"Yes\",'Enrollment Form'!$CK664=\"\"),\"N\",\"Y\"))","v":"-"},{"$f":"IF(OR('Enrollment Form'!$CL664=\"\",'Enrollment Form'!$CL664=\"No\"),\"-\",IF(AND('Enrollment Form'!$CL664=\"Yes\",'Enrollment Form'!$CM664=\"\"),\"N\",\"Y\"))","v":"-"},{"$f":"IF(OR('Enrollment Form'!$CN664=\"\",'Enrollment Form'!$CN664=\"No\"),\"-\",IF(AND('Enrollment Form'!$CN664=\"Yes\",'Enrollment Form'!$CO664=\"\"),\"N\",\"Y\"))","v":"-"},{"$f":"IF(OR('Enrollment Form'!$CN664=\"\",'Enrollment Form'!$CN664=\"No\"),\"-\",IF(AND('Enrollment Form'!$CN664=\"Yes\",'Enrollment Form'!$CP664=\"\"),\"N\",\"Y\"))","v":"-"},{"$f":"IF('Enrollment Form'!B664<>\"Subscriber\",\"-\",IF(AND('Enrollment Form'!B664=\"Subscriber\",'Enrollment Form'!C664=\"Enroll\",'Enrollment Form'!AA664=\"\"),\"N\",\"Y\"))","v":"-"},{"$f":"IF(OR('Enrollment Form'!B664=\"Subscriber\",'Enrollment Form'!B664=\"\"),\"-\",IF('Enrollment Form'!BP664=\"\",\"N\",\"Y\"))","v":"-"},{"$f":"IF('Enrollment Form'!B664<>\"Subscriber\",\"-\",IF(AND('Enrollment Form'!B664=\"Subscriber\",'Enrollment Form'!G664=\"\"),\"N\",\"Y\"))","v":"-"},{"$f":"IF('Enrollment Form'!A664=\"\",\"\",IF('Enrollment Form'!B664=\"Subscriber\",\"-\",IF(AND('Enrollment Form'!B664<>\"Subscriber\",'Enrollment Form'!G664='Enrollment Form'!H664),\"N\",\"Y\")))","v":""},0]
[665,{"$f":"IF('Enrollment Form'!$A665<>\"\",\"Y\",\"N\")","v":"N"},{"$f":"IF(AND('Enrollment Form'!$B665=\"\",'Enrollment Form'!$C665<>\"\"),\"N\",IF($B658=\"N\",\"\",\"Y\"))","v":""},{"$f":"IF(OR($B658=\"N\",'Enrollment Form'!G665=\"\"),\"\",IF('Enrollment Form'!$B665<>\"Subscriber\",\"\",IF('Enrollment Form'!$G665='Enrollment Form'!$H665,\"Y\",\"N\")))","v":""},{"$f":"IF($B658=\"N\",\"\",IF(AND(COUNTIFS('Enrollment Form'!$H$11:$H$1000,'Enrollment Form'!$H665,'Enrollment Form'!$B$11:$B$1000,'Enrollment Form'!$B665)>1,'Enrollment Form'!$H665<>\"\"),\"N\",\"Y\"))","v":""},{"$f":"IF($B658=\"N\",\"\",IF(LEN('Enrollment Form'!$Y665)=0,\"\",IF(LEN('Enrollment Form'!$Y665)<>5,\"N\",\"Y\")))","v":""},{"$f":"IF($B658=\"N\",\"\",IF(LEN('Enrollment Form'!$AD665=0),\"\",IF(LEN('Enrollment Form'!$AD665)<>5,\"N\",\"Y\")))","v":""},{"$f":"IF($B658=\"N\",\"\",IF(LEN('Enrollment Form'!$BS665=0),\"\",IF(LEN('Enrollment Form'!$BS665)<>5,\"N\",\"Y\")))","v":""},{"$f":"IF($B658=\"N\",\"\",IF(LEN('Enrollment Form'!$AE665)=0,\"\",IF(LEN('Enrollment Form'!$AE665)<>10,\"N\",\"Y\")))","v":""},{"$f":"IF($B658=\"N\",\"\",IF(LEN('Enrollment Form'!$AF665)=0,\"\",IF(LEN('Enrollment Form'!$AF665)<>10,\"N\",\"Y\")))","v":""},{"$f":"IF('Enrollment Form'!$O665<>\"Graded\",\"-\",IF(AND('Enrollment Form'!$O665=\"Graded\",'Enrollment Form'!$AR665<>\"\"),\"Y\",\"N\"))","v":"-"},{"$f":"IF($B658=\"N\",\"\",IF(OR('Enrollment Form'!$B665<>\"Subscriber\",'Enrollment Form'!$C665=\"ROC\"),\"-\",IF(AND('Enrollment Form'!$B665=\"Subscriber\",'Enrollment Form'!$C665=\"Enroll\",'Enrollment Form'!$AJ665<>\"\"),\"Y\",\"N\")))","v":""},{"$f":"IF($B658=\"N\",\"\",IF(OR('Enrollment Form'!$B665<>\"Subscriber\",'Enrollment Form'!$C665=\"ROC\"),\"-\",IF(AND('Enrollment Form'!$B665=\"Subscriber\",'Enrollment Form'!$C665=\"Enroll\",'Enrollment Form'!$AK665<>\"\"),\"Y\",\"N\")))","v":""},{"$f":"IF($B658=\"N\",\"\",IF(OR('Enrollment Form'!$B665<>\"Subscriber\",'Enrollment Form'!$C665=\"ROC\"),\"-\",IF(AND('Enrollment Form'!$B665=\"Subscriber\",'Enrollment Form'!$C665=\"Enroll\",'Enrollment Form'!$AL665<>\"\"),\"Y\",\"N\")))","v":""},{"$f":"IF($B658=\"N\",\"\",IF(OR('Enrollment Form'!$B665<>\"Subscriber\",'Enrollment Form'!$C665=\"ROC\"),\"-\",IF(AND('Enrollment Form'!$B665=\"Subscriber\",'Enrollment Form'!$C665=\"Enroll\",'Enrollment Form'!$AP665<>\"\"),\"Y\",\"N\")))","v":""},{"$f":"IF($B658=\"N\",\"\",IF(OR('Enrollment Form'!$B665<>\"Subscriber\",'Enrollment Form'!$C665=\"ROC\"),\"-\",IF(AND('Enrollment Form'!$B665=\"Subscriber\",'Enrollment Form'!$C665=\"Enroll\",'Enrollment Form'!$AQ665<>\"\"),\"Y\",\"N\")))","v":""},{"$f":"IF($B658=\"N\",\"\",IF(OR('Enrollment Form'!$B665<>\"Subscriber\",'Enrollment Form'!$C665=\"ROC\"),\"-\",IF(AND('Enrollment Form'!$B665=\"Subscriber\",'Enrollment Form'!$C665=\"Enroll\",'Enrollment Form'!$AS665<>\"\"),\"Y\",\"N\")))","v":""},{"$f":"IF($B658=\"N\",\"\",IF($Q658=\"-\",\"-\",IF(AND($Q658=\"Y\",'Enrollment Form'!$AS665=\"No\"),\"-\",IF(AND($Q658=\"Y\",'Enrollment Form'!$AS665=\"Yes\",'Enrollment Form'!$AT665<>\"\"),\"Y\",\"N\"))))","v":""},{"$f":"IF($B658=\"N\",\"\",IF(OR('Enrollment Form'!$B665<>\"Subscriber\",'Enrollment Form'!$C665=\"ROC\"),\"-\",IF(AND('Enrollment Form'!$B665=\"Subscriber\",'Enrollment Form'!$C665=\"Enroll\",'Enrollment Form'!$CV665<>\"\"),\"Y\",\"N\")))","v":""},{"$f":"IF($B658=\"N\",\"\",IF($S658=\"-\",\"-\",IF(AND($S658=\"Y\",'Enrollment Form'!$CV665=\"No\"),\"-\",IF(AND($S658=\"Y\",'Enrollment Form'!$CV665=\"Yes\",'Enrollment Form'!$CW665<>\"\"),\"Y\",\"N\"))))","v":""},{"$f":"IF(OR('Enrollment Form'!$AY665=\"Yes\",'Enrollment Form'!$AY665=\"\"),\"-\",IF(OR(AND('Enrollment Form'!$AY665=\"No\",ISERROR(FIND(\"HMO\",VLOOKUP('Enrollment Form'!G665,'Enrollment Form'!H$11:J$1000,3,FALSE),1))=FALSE,COUNTA('Enrollment Form'!$AZ665:$BC665)=4),AND('Enrollment Form'!$AY665=\"No\",ISERROR(FIND(\"HMO\",VLOOKUP('Enrollment Form'!G665,'Enrollment Form'!H$11:J$1000,3,FALSE),1))=FALSE,COUNTA('Enrollment Form'!$BT665:$BW665)=4)),\"Y\",\"N\"))","v":"-"},{"$f":"IF($B658=\"N\",\"\",IF('Enrollment Form'!$B665=\"Subscriber\",\"-\",IF(COUNTA('Enrollment Form'!$BL665,'Enrollment Form'!$BN665)=2,\"Y\",\"N\")))","v":""},{"$f":"IF($B658=\"N\",\"\",IF(OR('Enrollment Form'!$AX665=\"\",'Enrollment Form'!$AX665=\"No\"),\"-\",IF(AND('Enrollment Form'!$AX665=\"Yes\",COUNTA('Enrollment Form'!$CR665)=1),\"Y\",\"N\")))","v":""},{"$f":"IF(OR('Enrollment Form'!$CR665=\"\",'Enrollment Form'!$CR665=\"No\"),\"-\",IF(COUNTA('Enrollment Form'!$CT665:$CU665)=2,\"Y\",\"N\"))","v":"-"},{"$f":"IF($B658=\"N\",\"\",IF(COUNTIF('Enrollment Form'!$DG665:$DP665,\"Other\")=COUNTA('Enrollment Form'!$DK665,'Enrollment Form'!$DH665,'Enrollment Form'!$DN665,'Enrollment Form'!$DQ665),\"Y\",\"N\"))","v":""},{"$f":"IF($B658=\"N\",\"\",IF(OR('Enrollment Form'!B665<>\"Subscriber\",'Enrollment Form'!C665=\"ROC\",COUNTIF('Enrollment Form'!AV665:AW665,\"Yes\")>=1),\"-\",IF(AND('Enrollment Form'!C665=\"Enroll\",COUNTIF('Enrollment Form'!AV665:AW665,\"No\")=2,'Enrollment Form'!AX665=\"\"),\"N\",\"Y\")))","v":""},{"$f":"IF(OR(B658=\"N\",'Enrollment Form'!B665<>\"Subscriber\",'Enrollment Form'!C665=\"ROC\",'Enrollment Form'!O665<>\"Multiple of Salary\"),\"-\",IF(COUNTA('Enrollment Form'!T665:U665)<2,\"N\",\"Y\"))","v":"-"},{"$f":"IF(B658=\"N\",\"\",IF(OR('Enrollment Form'!C665=\"ROC\",'Enrollment Form'!B665<>\"Subscriber\",'Enrollment Form'!O665=\"Waive\",'Enrollment Form'!O665=\"\"),\"-\",IF('Enrollment Form'!P665=\"\",\"N\",\"Y\")))","v":""},{"$f":"IF($B658=\"N\",\"\",IF(AND('Enrollment Form'!$C665=\"ROC\",'Enrollment Form'!$DR665<>\"\"),\"Y\",IF(AND('Enrollment Form'!$C665=\"ROC\",'Enrollment Form'!$DR665=\"\"),\"N\",IF(AND('Enrollment Form'!$C665=\"Enroll\",'Enrollment Form'!$B665=\"Subscriber\",'Enrollment Form'!$CX665=\"No\",'Enrollment Form'!$DR665=\"\"),\"N\",IF(AND('Enrollment Form'!$C665=\"Enroll\",'Enrollment Form'!$B665=\"Subscriber\",'Enrollment Form'!$CX665=\"Yes\"),\"-\",\"Y\")))))","v":""},{"$f":"IF($B658=\"N\",\"\",IF(AND('Enrollment Form'!$C665=\"ROC\",'Enrollment Form'!$DS665<>\"\"),\"Y\",IF(AND('Enrollment Form'!$C665=\"ROC\",'Enrollment Form'!$DS665=\"\"),\"N\",IF(AND('Enrollment Form'!$C665=\"Enroll\",'Enrollment Form'!$B665=\"Subscriber\",'Enrollment Form'!$CX665=\"No\",'Enrollment Form'!$DS665=\"\"),\"N\",IF(AND('Enrollment Form'!$C665=\"Enroll\",'Enrollment Form'!$B665=\"Subscriber\",'Enrollment Form'!$CX665=\"Yes\"),\"-\",\"Y\")))))","v":""},{"$f":"IF('Enrollment Form'!AH665=\"\",\"\",IF(ISERROR(SEARCH(\".\",'Enrollment Form'!AH665,SEARCH(\"@\",'Enrollment Form'!AH665))),\"N\",\"Y\"))","v":""},{"$f":"IF(OR($B658=\"N\",'Enrollment Form'!$G665=\"\"),\"\",IF('Enrollment Form'!$B665<>\"Subscriber\",\"-\",IF(COUNTIF('Enrollment Form'!$AV665:$AW665,\"Yes\")=2,\"N\",\"Y\")))","v":""},{"$f":"IF(OR('Enrollment Form'!$CJ665=\"\",'Enrollment Form'!$CJ665=\"No\"),\"-\",IF(AND('Enrollment Form'!$CJ665=\"Yes\",'Enrollment Form'!$CK665=\"\"),\"N\",\"Y\"))","v":"-"},{"$f":"IF(OR('Enrollment Form'!$CL665=\"\",'Enrollment Form'!$CL665=\"No\"),\"-\",IF(AND('Enrollment Form'!$CL665=\"Yes\",'Enrollment Form'!$CM665=\"\"),\"N\",\"Y\"))","v":"-"},{"$f":"IF(OR('Enrollment Form'!$CN665=\"\",'Enrollment Form'!$CN665=\"No\"),\"-\",IF(AND('Enrollment Form'!$CN665=\"Yes\",'Enrollment Form'!$CO665=\"\"),\"N\",\"Y\"))","v":"-"},{"$f":"IF(OR('Enrollment Form'!$CN665=\"\",'Enrollment Form'!$CN665=\"No\"),\"-\",IF(AND('Enrollment Form'!$CN665=\"Yes\",'Enrollment Form'!$CP665=\"\"),\"N\",\"Y\"))","v":"-"},{"$f":"IF('Enrollment Form'!B665<>\"Subscriber\",\"-\",IF(AND('Enrollment Form'!B665=\"Subscriber\",'Enrollment Form'!C665=\"Enroll\",'Enrollment Form'!AA665=\"\"),\"N\",\"Y\"))","v":"-"},{"$f":"IF(OR('Enrollment Form'!B665=\"Subscriber\",'Enrollment Form'!B665=\"\"),\"-\",IF('Enrollment Form'!BP665=\"\",\"N\",\"Y\"))","v":"-"},{"$f":"IF('Enrollment Form'!B665<>\"Subscriber\",\"-\",IF(AND('Enrollment Form'!B665=\"Subscriber\",'Enrollment Form'!G665=\"\"),\"N\",\"Y\"))","v":"-"},{"$f":"IF('Enrollment Form'!A665=\"\",\"\",IF('Enrollment Form'!B665=\"Subscriber\",\"-\",IF(AND('Enrollment Form'!B665<>\"Subscriber\",'Enrollment Form'!G665='Enrollment Form'!H665),\"N\",\"Y\")))","v":""},0]
[666,{"$f":"IF('Enrollment Form'!$A666<>\"\",\"Y\",\"N\")","v":"N"},{"$f":"IF(AND('Enrollment Form'!$B666=\"\",'Enrollment Form'!$C666<>\"\"),\"N\",IF($B659=\"N\",\"\",\"Y\"))","v":""},{"$f":"IF(OR($B659=\"N\",'Enrollment Form'!G666=\"\"),\"\",IF('Enrollment Form'!$B666<>\"Subscriber\",\"\",IF('Enrollment Form'!$G666='Enrollment Form'!$H666,\"Y\",\"N\")))","v":""},{"$f":"IF($B659=\"N\",\"\",IF(AND(COUNTIFS('Enrollment Form'!$H$11:$H$1000,'Enrollment Form'!$H666,'Enrollment Form'!$B$11:$B$1000,'Enrollment Form'!$B666)>1,'Enrollment Form'!$H666<>\"\"),\"N\",\"Y\"))","v":""},{"$f":"IF($B659=\"N\",\"\",IF(LEN('Enrollment Form'!$Y666)=0,\"\",IF(LEN('Enrollment Form'!$Y666)<>5,\"N\",\"Y\")))","v":""},{"$f":"IF($B659=\"N\",\"\",IF(LEN('Enrollment Form'!$AD666=0),\"\",IF(LEN('Enrollment Form'!$AD666)<>5,\"N\",\"Y\")))","v":""},{"$f":"IF($B659=\"N\",\"\",IF(LEN('Enrollment Form'!$BS666=0),\"\",IF(LEN('Enrollment Form'!$BS666)<>5,\"N\",\"Y\")))","v":""},{"$f":"IF($B659=\"N\",\"\",IF(LEN('Enrollment Form'!$AE666)=0,\"\",IF(LEN('Enrollment Form'!$AE666)<>10,\"N\",\"Y\")))","v":""},{"$f":"IF($B659=\"N\",\"\",IF(LEN('Enrollment Form'!$AF666)=0,\"\",IF(LEN('Enrollment Form'!$AF666)<>10,\"N\",\"Y\")))","v":""},{"$f":"IF('Enrollment Form'!$O666<>\"Graded\",\"-\",IF(AND('Enrollment Form'!$O666=\"Graded\",'Enrollment Form'!$AR666<>\"\"),\"Y\",\"N\"))","v":"-"},{"$f":"IF($B659=\"N\",\"\",IF(OR('Enrollment Form'!$B666<>\"Subscriber\",'Enrollment Form'!$C666=\"ROC\"),\"-\",IF(AND('Enrollment Form'!$B666=\"Subscriber\",'Enrollment Form'!$C666=\"Enroll\",'Enrollment Form'!$AJ666<>\"\"),\"Y\",\"N\")))","v":""},{"$f":"IF($B659=\"N\",\"\",IF(OR('Enrollment Form'!$B666<>\"Subscriber\",'Enrollment Form'!$C666=\"ROC\"),\"-\",IF(AND('Enrollment Form'!$B666=\"Subscriber\",'Enrollment Form'!$C666=\"Enroll\",'Enrollment Form'!$AK666<>\"\"),\"Y\",\"N\")))","v":""},{"$f":"IF($B659=\"N\",\"\",IF(OR('Enrollment Form'!$B666<>\"Subscriber\",'Enrollment Form'!$C666=\"ROC\"),\"-\",IF(AND('Enrollment Form'!$B666=\"Subscriber\",'Enrollment Form'!$C666=\"Enroll\",'Enrollment Form'!$AL666<>\"\"),\"Y\",\"N\")))","v":""},{"$f":"IF($B659=\"N\",\"\",IF(OR('Enrollment Form'!$B666<>\"Subscriber\",'Enrollment Form'!$C666=\"ROC\"),\"-\",IF(AND('Enrollment Form'!$B666=\"Subscriber\",'Enrollment Form'!$C666=\"Enroll\",'Enrollment Form'!$AP666<>\"\"),\"Y\",\"N\")))","v":""},{"$f":"IF($B659=\"N\",\"\",IF(OR('Enrollment Form'!$B666<>\"Subscriber\",'Enrollment Form'!$C666=\"ROC\"),\"-\",IF(AND('Enrollment Form'!$B666=\"Subscriber\",'Enrollment Form'!$C666=\"Enroll\",'Enrollment Form'!$AQ666<>\"\"),\"Y\",\"N\")))","v":""},{"$f":"IF($B659=\"N\",\"\",IF(OR('Enrollment Form'!$B666<>\"Subscriber\",'Enrollment Form'!$C666=\"ROC\"),\"-\",IF(AND('Enrollment Form'!$B666=\"Subscriber\",'Enrollment Form'!$C666=\"Enroll\",'Enrollment Form'!$AS666<>\"\"),\"Y\",\"N\")))","v":""},{"$f":"IF($B659=\"N\",\"\",IF($Q659=\"-\",\"-\",IF(AND($Q659=\"Y\",'Enrollment Form'!$AS666=\"No\"),\"-\",IF(AND($Q659=\"Y\",'Enrollment Form'!$AS666=\"Yes\",'Enrollment Form'!$AT666<>\"\"),\"Y\",\"N\"))))","v":""},{"$f":"IF($B659=\"N\",\"\",IF(OR('Enrollment Form'!$B666<>\"Subscriber\",'Enrollment Form'!$C666=\"ROC\"),\"-\",IF(AND('Enrollment Form'!$B666=\"Subscriber\",'Enrollment Form'!$C666=\"Enroll\",'Enrollment Form'!$CV666<>\"\"),\"Y\",\"N\")))","v":""},{"$f":"IF($B659=\"N\",\"\",IF($S659=\"-\",\"-\",IF(AND($S659=\"Y\",'Enrollment Form'!$CV666=\"No\"),\"-\",IF(AND($S659=\"Y\",'Enrollment Form'!$CV666=\"Yes\",'Enrollment Form'!$CW666<>\"\"),\"Y\",\"N\"))))","v":""},{"$f":"IF(OR('Enrollment Form'!$AY666=\"Yes\",'Enrollment Form'!$AY666=\"\"),\"-\",IF(OR(AND('Enrollment Form'!$AY666=\"No\",ISERROR(FIND(\"HMO\",VLOOKUP('Enrollment Form'!G666,'Enrollment Form'!H$11:J$1000,3,FALSE),1))=FALSE,COUNTA('Enrollment Form'!$AZ666:$BC666)=4),AND('Enrollment Form'!$AY666=\"No\",ISERROR(FIND(\"HMO\",VLOOKUP('Enrollment Form'!G666,'Enrollment Form'!H$11:J$1000,3,FALSE),1))=FALSE,COUNTA('Enrollment Form'!$BT666:$BW666)=4)),\"Y\",\"N\"))","v":"-"},{"$f":"IF($B659=\"N\",\"\",IF('Enrollment Form'!$B666=\"Subscriber\",\"-\",IF(COUNTA('Enrollment Form'!$BL666,'Enrollment Form'!$BN666)=2,\"Y\",\"N\")))","v":""},{"$f":"IF($B659=\"N\",\"\",IF(OR('Enrollment Form'!$AX666=\"\",'Enrollment Form'!$AX666=\"No\"),\"-\",IF(AND('Enrollment Form'!$AX666=\"Yes\",COUNTA('Enrollment Form'!$CR666)=1),\"Y\",\"N\")))","v":""},{"$f":"IF(OR('Enrollment Form'!$CR666=\"\",'Enrollment Form'!$CR666=\"No\"),\"-\",IF(COUNTA('Enrollment Form'!$CT666:$CU666)=2,\"Y\",\"N\"))","v":"-"},{"$f":"IF($B659=\"N\",\"\",IF(COUNTIF('Enrollment Form'!$DG666:$DP666,\"Other\")=COUNTA('Enrollment Form'!$DK666,'Enrollment Form'!$DH666,'Enrollment Form'!$DN666,'Enrollment Form'!$DQ666),\"Y\",\"N\"))","v":""},{"$f":"IF($B659=\"N\",\"\",IF(OR('Enrollment Form'!B666<>\"Subscriber\",'Enrollment Form'!C666=\"ROC\",COUNTIF('Enrollment Form'!AV666:AW666,\"Yes\")>=1),\"-\",IF(AND('Enrollment Form'!C666=\"Enroll\",COUNTIF('Enrollment Form'!AV666:AW666,\"No\")=2,'Enrollment Form'!AX666=\"\"),\"N\",\"Y\")))","v":""},{"$f":"IF(OR(B659=\"N\",'Enrollment Form'!B666<>\"Subscriber\",'Enrollment Form'!C666=\"ROC\",'Enrollment Form'!O666<>\"Multiple of Salary\"),\"-\",IF(COUNTA('Enrollment Form'!T666:U666)<2,\"N\",\"Y\"))","v":"-"},{"$f":"IF(B659=\"N\",\"\",IF(OR('Enrollment Form'!C666=\"ROC\",'Enrollment Form'!B666<>\"Subscriber\",'Enrollment Form'!O666=\"Waive\",'Enrollment Form'!O666=\"\"),\"-\",IF('Enrollment Form'!P666=\"\",\"N\",\"Y\")))","v":""},{"$f":"IF($B659=\"N\",\"\",IF(AND('Enrollment Form'!$C666=\"ROC\",'Enrollment Form'!$DR666<>\"\"),\"Y\",IF(AND('Enrollment Form'!$C666=\"ROC\",'Enrollment Form'!$DR666=\"\"),\"N\",IF(AND('Enrollment Form'!$C666=\"Enroll\",'Enrollment Form'!$B666=\"Subscriber\",'Enrollment Form'!$CX666=\"No\",'Enrollment Form'!$DR666=\"\"),\"N\",IF(AND('Enrollment Form'!$C666=\"Enroll\",'Enrollment Form'!$B666=\"Subscriber\",'Enrollment Form'!$CX666=\"Yes\"),\"-\",\"Y\")))))","v":""},{"$f":"IF($B659=\"N\",\"\",IF(AND('Enrollment Form'!$C666=\"ROC\",'Enrollment Form'!$DS666<>\"\"),\"Y\",IF(AND('Enrollment Form'!$C666=\"ROC\",'Enrollment Form'!$DS666=\"\"),\"N\",IF(AND('Enrollment Form'!$C666=\"Enroll\",'Enrollment Form'!$B666=\"Subscriber\",'Enrollment Form'!$CX666=\"No\",'Enrollment Form'!$DS666=\"\"),\"N\",IF(AND('Enrollment Form'!$C666=\"Enroll\",'Enrollment Form'!$B666=\"Subscriber\",'Enrollment Form'!$CX666=\"Yes\"),\"-\",\"Y\")))))","v":""},{"$f":"IF('Enrollment Form'!AH666=\"\",\"\",IF(ISERROR(SEARCH(\".\",'Enrollment Form'!AH666,SEARCH(\"@\",'Enrollment Form'!AH666))),\"N\",\"Y\"))","v":""},{"$f":"IF(OR($B659=\"N\",'Enrollment Form'!$G666=\"\"),\"\",IF('Enrollment Form'!$B666<>\"Subscriber\",\"-\",IF(COUNTIF('Enrollment Form'!$AV666:$AW666,\"Yes\")=2,\"N\",\"Y\")))","v":""},{"$f":"IF(OR('Enrollment Form'!$CJ666=\"\",'Enrollment Form'!$CJ666=\"No\"),\"-\",IF(AND('Enrollment Form'!$CJ666=\"Yes\",'Enrollment Form'!$CK666=\"\"),\"N\",\"Y\"))","v":"-"},{"$f":"IF(OR('Enrollment Form'!$CL666=\"\",'Enrollment Form'!$CL666=\"No\"),\"-\",IF(AND('Enrollment Form'!$CL666=\"Yes\",'Enrollment Form'!$CM666=\"\"),\"N\",\"Y\"))","v":"-"},{"$f":"IF(OR('Enrollment Form'!$CN666=\"\",'Enrollment Form'!$CN666=\"No\"),\"-\",IF(AND('Enrollment Form'!$CN666=\"Yes\",'Enrollment Form'!$CO666=\"\"),\"N\",\"Y\"))","v":"-"},{"$f":"IF(OR('Enrollment Form'!$CN666=\"\",'Enrollment Form'!$CN666=\"No\"),\"-\",IF(AND('Enrollment Form'!$CN666=\"Yes\",'Enrollment Form'!$CP666=\"\"),\"N\",\"Y\"))","v":"-"},{"$f":"IF('Enrollment Form'!B666<>\"Subscriber\",\"-\",IF(AND('Enrollment Form'!B666=\"Subscriber\",'Enrollment Form'!C666=\"Enroll\",'Enrollment Form'!AA666=\"\"),\"N\",\"Y\"))","v":"-"},{"$f":"IF(OR('Enrollment Form'!B666=\"Subscriber\",'Enrollment Form'!B666=\"\"),\"-\",IF('Enrollment Form'!BP666=\"\",\"N\",\"Y\"))","v":"-"},{"$f":"IF('Enrollment Form'!B666<>\"Subscriber\",\"-\",IF(AND('Enrollment Form'!B666=\"Subscriber\",'Enrollment Form'!G666=\"\"),\"N\",\"Y\"))","v":"-"},{"$f":"IF('Enrollment Form'!A666=\"\",\"\",IF('Enrollment Form'!B666=\"Subscriber\",\"-\",IF(AND('Enrollment Form'!B666<>\"Subscriber\",'Enrollment Form'!G666='Enrollment Form'!H666),\"N\",\"Y\")))","v":""},0]
[667,{"$f":"IF('Enrollment Form'!$A667<>\"\",\"Y\",\"N\")","v":"N"},{"$f":"IF(AND('Enrollment Form'!$B667=\"\",'Enrollment Form'!$C667<>\"\"),\"N\",IF($B660=\"N\",\"\",\"Y\"))","v":""},{"$f":"IF(OR($B660=\"N\",'Enrollment Form'!G667=\"\"),\"\",IF('Enrollment Form'!$B667<>\"Subscriber\",\"\",IF('Enrollment Form'!$G667='Enrollment Form'!$H667,\"Y\",\"N\")))","v":""},{"$f":"IF($B660=\"N\",\"\",IF(AND(COUNTIFS('Enrollment Form'!$H$11:$H$1000,'Enrollment Form'!$H667,'Enrollment Form'!$B$11:$B$1000,'Enrollment Form'!$B667)>1,'Enrollment Form'!$H667<>\"\"),\"N\",\"Y\"))","v":""},{"$f":"IF($B660=\"N\",\"\",IF(LEN('Enrollment Form'!$Y667)=0,\"\",IF(LEN('Enrollment Form'!$Y667)<>5,\"N\",\"Y\")))","v":""},{"$f":"IF($B660=\"N\",\"\",IF(LEN('Enrollment Form'!$AD667=0),\"\",IF(LEN('Enrollment Form'!$AD667)<>5,\"N\",\"Y\")))","v":""},{"$f":"IF($B660=\"N\",\"\",IF(LEN('Enrollment Form'!$BS667=0),\"\",IF(LEN('Enrollment Form'!$BS667)<>5,\"N\",\"Y\")))","v":""},{"$f":"IF($B660=\"N\",\"\",IF(LEN('Enrollment Form'!$AE667)=0,\"\",IF(LEN('Enrollment Form'!$AE667)<>10,\"N\",\"Y\")))","v":""},{"$f":"IF($B660=\"N\",\"\",IF(LEN('Enrollment Form'!$AF667)=0,\"\",IF(LEN('Enrollment Form'!$AF667)<>10,\"N\",\"Y\")))","v":""},{"$f":"IF('Enrollment Form'!$O667<>\"Graded\",\"-\",IF(AND('Enrollment Form'!$O667=\"Graded\",'Enrollment Form'!$AR667<>\"\"),\"Y\",\"N\"))","v":"-"},{"$f":"IF($B660=\"N\",\"\",IF(OR('Enrollment Form'!$B667<>\"Subscriber\",'Enrollment Form'!$C667=\"ROC\"),\"-\",IF(AND('Enrollment Form'!$B667=\"Subscriber\",'Enrollment Form'!$C667=\"Enroll\",'Enrollment Form'!$AJ667<>\"\"),\"Y\",\"N\")))","v":""},{"$f":"IF($B660=\"N\",\"\",IF(OR('Enrollment Form'!$B667<>\"Subscriber\",'Enrollment Form'!$C667=\"ROC\"),\"-\",IF(AND('Enrollment Form'!$B667=\"Subscriber\",'Enrollment Form'!$C667=\"Enroll\",'Enrollment Form'!$AK667<>\"\"),\"Y\",\"N\")))","v":""},{"$f":"IF($B660=\"N\",\"\",IF(OR('Enrollment Form'!$B667<>\"Subscriber\",'Enrollment Form'!$C667=\"ROC\"),\"-\",IF(AND('Enrollment Form'!$B667=\"Subscriber\",'Enrollment Form'!$C667=\"Enroll\",'Enrollment Form'!$AL667<>\"\"),\"Y\",\"N\")))","v":""},{"$f":"IF($B660=\"N\",\"\",IF(OR('Enrollment Form'!$B667<>\"Subscriber\",'Enrollment Form'!$C667=\"ROC\"),\"-\",IF(AND('Enrollment Form'!$B667=\"Subscriber\",'Enrollment Form'!$C667=\"Enroll\",'Enrollment Form'!$AP667<>\"\"),\"Y\",\"N\")))","v":""},{"$f":"IF($B660=\"N\",\"\",IF(OR('Enrollment Form'!$B667<>\"Subscriber\",'Enrollment Form'!$C667=\"ROC\"),\"-\",IF(AND('Enrollment Form'!$B667=\"Subscriber\",'Enrollment Form'!$C667=\"Enroll\",'Enrollment Form'!$AQ667<>\"\"),\"Y\",\"N\")))","v":""},{"$f":"IF($B660=\"N\",\"\",IF(OR('Enrollment Form'!$B667<>\"Subscriber\",'Enrollment Form'!$C667=\"ROC\"),\"-\",IF(AND('Enrollment Form'!$B667=\"Subscriber\",'Enrollment Form'!$C667=\"Enroll\",'Enrollment Form'!$AS667<>\"\"),\"Y\",\"N\")))","v":""},{"$f":"IF($B660=\"N\",\"\",IF($Q660=\"-\",\"-\",IF(AND($Q660=\"Y\",'Enrollment Form'!$AS667=\"No\"),\"-\",IF(AND($Q660=\"Y\",'Enrollment Form'!$AS667=\"Yes\",'Enrollment Form'!$AT667<>\"\"),\"Y\",\"N\"))))","v":""},{"$f":"IF($B660=\"N\",\"\",IF(OR('Enrollment Form'!$B667<>\"Subscriber\",'Enrollment Form'!$C667=\"ROC\"),\"-\",IF(AND('Enrollment Form'!$B667=\"Subscriber\",'Enrollment Form'!$C667=\"Enroll\",'Enrollment Form'!$CV667<>\"\"),\"Y\",\"N\")))","v":""},{"$f":"IF($B660=\"N\",\"\",IF($S660=\"-\",\"-\",IF(AND($S660=\"Y\",'Enrollment Form'!$CV667=\"No\"),\"-\",IF(AND($S660=\"Y\",'Enrollment Form'!$CV667=\"Yes\",'Enrollment Form'!$CW667<>\"\"),\"Y\",\"N\"))))","v":""},{"$f":"IF(OR('Enrollment Form'!$AY667=\"Yes\",'Enrollment Form'!$AY667=\"\"),\"-\",IF(OR(AND('Enrollment Form'!$AY667=\"No\",ISERROR(FIND(\"HMO\",VLOOKUP('Enrollment Form'!G667,'Enrollment Form'!H$11:J$1000,3,FALSE),1))=FALSE,COUNTA('Enrollment Form'!$AZ667:$BC667)=4),AND('Enrollment Form'!$AY667=\"No\",ISERROR(FIND(\"HMO\",VLOOKUP('Enrollment Form'!G667,'Enrollment Form'!H$11:J$1000,3,FALSE),1))=FALSE,COUNTA('Enrollment Form'!$BT667:$BW667)=4)),\"Y\",\"N\"))","v":"-"},{"$f":"IF($B660=\"N\",\"\",IF('Enrollment Form'!$B667=\"Subscriber\",\"-\",IF(COUNTA('Enrollment Form'!$BL667,'Enrollment Form'!$BN667)=2,\"Y\",\"N\")))","v":""},{"$f":"IF($B660=\"N\",\"\",IF(OR('Enrollment Form'!$AX667=\"\",'Enrollment Form'!$AX667=\"No\"),\"-\",IF(AND('Enrollment Form'!$AX667=\"Yes\",COUNTA('Enrollment Form'!$CR667)=1),\"Y\",\"N\")))","v":""},{"$f":"IF(OR('Enrollment Form'!$CR667=\"\",'Enrollment Form'!$CR667=\"No\"),\"-\",IF(COUNTA('Enrollment Form'!$CT667:$CU667)=2,\"Y\",\"N\"))","v":"-"},{"$f":"IF($B660=\"N\",\"\",IF(COUNTIF('Enrollment Form'!$DG667:$DP667,\"Other\")=COUNTA('Enrollment Form'!$DK667,'Enrollment Form'!$DH667,'Enrollment Form'!$DN667,'Enrollment Form'!$DQ667),\"Y\",\"N\"))","v":""},{"$f":"IF($B660=\"N\",\"\",IF(OR('Enrollment Form'!B667<>\"Subscriber\",'Enrollment Form'!C667=\"ROC\",COUNTIF('Enrollment Form'!AV667:AW667,\"Yes\")>=1),\"-\",IF(AND('Enrollment Form'!C667=\"Enroll\",COUNTIF('Enrollment Form'!AV667:AW667,\"No\")=2,'Enrollment Form'!AX667=\"\"),\"N\",\"Y\")))","v":""},{"$f":"IF(OR(B660=\"N\",'Enrollment Form'!B667<>\"Subscriber\",'Enrollment Form'!C667=\"ROC\",'Enrollment Form'!O667<>\"Multiple of Salary\"),\"-\",IF(COUNTA('Enrollment Form'!T667:U667)<2,\"N\",\"Y\"))","v":"-"},{"$f":"IF(B660=\"N\",\"\",IF(OR('Enrollment Form'!C667=\"ROC\",'Enrollment Form'!B667<>\"Subscriber\",'Enrollment Form'!O667=\"Waive\",'Enrollment Form'!O667=\"\"),\"-\",IF('Enrollment Form'!P667=\"\",\"N\",\"Y\")))","v":""},{"$f":"IF($B660=\"N\",\"\",IF(AND('Enrollment Form'!$C667=\"ROC\",'Enrollment Form'!$DR667<>\"\"),\"Y\",IF(AND('Enrollment Form'!$C667=\"ROC\",'Enrollment Form'!$DR667=\"\"),\"N\",IF(AND('Enrollment Form'!$C667=\"Enroll\",'Enrollment Form'!$B667=\"Subscriber\",'Enrollment Form'!$CX667=\"No\",'Enrollment Form'!$DR667=\"\"),\"N\",IF(AND('Enrollment Form'!$C667=\"Enroll\",'Enrollment Form'!$B667=\"Subscriber\",'Enrollment Form'!$CX667=\"Yes\"),\"-\",\"Y\")))))","v":""},{"$f":"IF($B660=\"N\",\"\",IF(AND('Enrollment Form'!$C667=\"ROC\",'Enrollment Form'!$DS667<>\"\"),\"Y\",IF(AND('Enrollment Form'!$C667=\"ROC\",'Enrollment Form'!$DS667=\"\"),\"N\",IF(AND('Enrollment Form'!$C667=\"Enroll\",'Enrollment Form'!$B667=\"Subscriber\",'Enrollment Form'!$CX667=\"No\",'Enrollment Form'!$DS667=\"\"),\"N\",IF(AND('Enrollment Form'!$C667=\"Enroll\",'Enrollment Form'!$B667=\"Subscriber\",'Enrollment Form'!$CX667=\"Yes\"),\"-\",\"Y\")))))","v":""},{"$f":"IF('Enrollment Form'!AH667=\"\",\"\",IF(ISERROR(SEARCH(\".\",'Enrollment Form'!AH667,SEARCH(\"@\",'Enrollment Form'!AH667))),\"N\",\"Y\"))","v":""},{"$f":"IF(OR($B660=\"N\",'Enrollment Form'!$G667=\"\"),\"\",IF('Enrollment Form'!$B667<>\"Subscriber\",\"-\",IF(COUNTIF('Enrollment Form'!$AV667:$AW667,\"Yes\")=2,\"N\",\"Y\")))","v":""},{"$f":"IF(OR('Enrollment Form'!$CJ667=\"\",'Enrollment Form'!$CJ667=\"No\"),\"-\",IF(AND('Enrollment Form'!$CJ667=\"Yes\",'Enrollment Form'!$CK667=\"\"),\"N\",\"Y\"))","v":"-"},{"$f":"IF(OR('Enrollment Form'!$CL667=\"\",'Enrollment Form'!$CL667=\"No\"),\"-\",IF(AND('Enrollment Form'!$CL667=\"Yes\",'Enrollment Form'!$CM667=\"\"),\"N\",\"Y\"))","v":"-"},{"$f":"IF(OR('Enrollment Form'!$CN667=\"\",'Enrollment Form'!$CN667=\"No\"),\"-\",IF(AND('Enrollment Form'!$CN667=\"Yes\",'Enrollment Form'!$CO667=\"\"),\"N\",\"Y\"))","v":"-"},{"$f":"IF(OR('Enrollment Form'!$CN667=\"\",'Enrollment Form'!$CN667=\"No\"),\"-\",IF(AND('Enrollment Form'!$CN667=\"Yes\",'Enrollment Form'!$CP667=\"\"),\"N\",\"Y\"))","v":"-"},{"$f":"IF('Enrollment Form'!B667<>\"Subscriber\",\"-\",IF(AND('Enrollment Form'!B667=\"Subscriber\",'Enrollment Form'!C667=\"Enroll\",'Enrollment Form'!AA667=\"\"),\"N\",\"Y\"))","v":"-"},{"$f":"IF(OR('Enrollment Form'!B667=\"Subscriber\",'Enrollment Form'!B667=\"\"),\"-\",IF('Enrollment Form'!BP667=\"\",\"N\",\"Y\"))","v":"-"},{"$f":"IF('Enrollment Form'!B667<>\"Subscriber\",\"-\",IF(AND('Enrollment Form'!B667=\"Subscriber\",'Enrollment Form'!G667=\"\"),\"N\",\"Y\"))","v":"-"},{"$f":"IF('Enrollment Form'!A667=\"\",\"\",IF('Enrollment Form'!B667=\"Subscriber\",\"-\",IF(AND('Enrollment Form'!B667<>\"Subscriber\",'Enrollment Form'!G667='Enrollment Form'!H667),\"N\",\"Y\")))","v":""},0]
[668,{"$f":"IF('Enrollment Form'!$A668<>\"\",\"Y\",\"N\")","v":"N"},{"$f":"IF(AND('Enrollment Form'!$B668=\"\",'Enrollment Form'!$C668<>\"\"),\"N\",IF($B661=\"N\",\"\",\"Y\"))","v":""},{"$f":"IF(OR($B661=\"N\",'Enrollment Form'!G668=\"\"),\"\",IF('Enrollment Form'!$B668<>\"Subscriber\",\"\",IF('Enrollment Form'!$G668='Enrollment Form'!$H668,\"Y\",\"N\")))","v":""},{"$f":"IF($B661=\"N\",\"\",IF(AND(COUNTIFS('Enrollment Form'!$H$11:$H$1000,'Enrollment Form'!$H668,'Enrollment Form'!$B$11:$B$1000,'Enrollment Form'!$B668)>1,'Enrollment Form'!$H668<>\"\"),\"N\",\"Y\"))","v":""},{"$f":"IF($B661=\"N\",\"\",IF(LEN('Enrollment Form'!$Y668)=0,\"\",IF(LEN('Enrollment Form'!$Y668)<>5,\"N\",\"Y\")))","v":""},{"$f":"IF($B661=\"N\",\"\",IF(LEN('Enrollment Form'!$AD668=0),\"\",IF(LEN('Enrollment Form'!$AD668)<>5,\"N\",\"Y\")))","v":""},{"$f":"IF($B661=\"N\",\"\",IF(LEN('Enrollment Form'!$BS668=0),\"\",IF(LEN('Enrollment Form'!$BS668)<>5,\"N\",\"Y\")))","v":""},{"$f":"IF($B661=\"N\",\"\",IF(LEN('Enrollment Form'!$AE668)=0,\"\",IF(LEN('Enrollment Form'!$AE668)<>10,\"N\",\"Y\")))","v":""},{"$f":"IF($B661=\"N\",\"\",IF(LEN('Enrollment Form'!$AF668)=0,\"\",IF(LEN('Enrollment Form'!$AF668)<>10,\"N\",\"Y\")))","v":""},{"$f":"IF('Enrollment Form'!$O668<>\"Graded\",\"-\",IF(AND('Enrollment Form'!$O668=\"Graded\",'Enrollment Form'!$AR668<>\"\"),\"Y\",\"N\"))","v":"-"},{"$f":"IF($B661=\"N\",\"\",IF(OR('Enrollment Form'!$B668<>\"Subscriber\",'Enrollment Form'!$C668=\"ROC\"),\"-\",IF(AND('Enrollment Form'!$B668=\"Subscriber\",'Enrollment Form'!$C668=\"Enroll\",'Enrollment Form'!$AJ668<>\"\"),\"Y\",\"N\")))","v":""},{"$f":"IF($B661=\"N\",\"\",IF(OR('Enrollment Form'!$B668<>\"Subscriber\",'Enrollment Form'!$C668=\"ROC\"),\"-\",IF(AND('Enrollment Form'!$B668=\"Subscriber\",'Enrollment Form'!$C668=\"Enroll\",'Enrollment Form'!$AK668<>\"\"),\"Y\",\"N\")))","v":""},{"$f":"IF($B661=\"N\",\"\",IF(OR('Enrollment Form'!$B668<>\"Subscriber\",'Enrollment Form'!$C668=\"ROC\"),\"-\",IF(AND('Enrollment Form'!$B668=\"Subscriber\",'Enrollment Form'!$C668=\"Enroll\",'Enrollment Form'!$AL668<>\"\"),\"Y\",\"N\")))","v":""},{"$f":"IF($B661=\"N\",\"\",IF(OR('Enrollment Form'!$B668<>\"Subscriber\",'Enrollment Form'!$C668=\"ROC\"),\"-\",IF(AND('Enrollment Form'!$B668=\"Subscriber\",'Enrollment Form'!$C668=\"Enroll\",'Enrollment Form'!$AP668<>\"\"),\"Y\",\"N\")))","v":""},{"$f":"IF($B661=\"N\",\"\",IF(OR('Enrollment Form'!$B668<>\"Subscriber\",'Enrollment Form'!$C668=\"ROC\"),\"-\",IF(AND('Enrollment Form'!$B668=\"Subscriber\",'Enrollment Form'!$C668=\"Enroll\",'Enrollment Form'!$AQ668<>\"\"),\"Y\",\"N\")))","v":""},{"$f":"IF($B661=\"N\",\"\",IF(OR('Enrollment Form'!$B668<>\"Subscriber\",'Enrollment Form'!$C668=\"ROC\"),\"-\",IF(AND('Enrollment Form'!$B668=\"Subscriber\",'Enrollment Form'!$C668=\"Enroll\",'Enrollment Form'!$AS668<>\"\"),\"Y\",\"N\")))","v":""},{"$f":"IF($B661=\"N\",\"\",IF($Q661=\"-\",\"-\",IF(AND($Q661=\"Y\",'Enrollment Form'!$AS668=\"No\"),\"-\",IF(AND($Q661=\"Y\",'Enrollment Form'!$AS668=\"Yes\",'Enrollment Form'!$AT668<>\"\"),\"Y\",\"N\"))))","v":""},{"$f":"IF($B661=\"N\",\"\",IF(OR('Enrollment Form'!$B668<>\"Subscriber\",'Enrollment Form'!$C668=\"ROC\"),\"-\",IF(AND('Enrollment Form'!$B668=\"Subscriber\",'Enrollment Form'!$C668=\"Enroll\",'Enrollment Form'!$CV668<>\"\"),\"Y\",\"N\")))","v":""},{"$f":"IF($B661=\"N\",\"\",IF($S661=\"-\",\"-\",IF(AND($S661=\"Y\",'Enrollment Form'!$CV668=\"No\"),\"-\",IF(AND($S661=\"Y\",'Enrollment Form'!$CV668=\"Yes\",'Enrollment Form'!$CW668<>\"\"),\"Y\",\"N\"))))","v":""},{"$f":"IF(OR('Enrollment Form'!$AY668=\"Yes\",'Enrollment Form'!$AY668=\"\"),\"-\",IF(OR(AND('Enrollment Form'!$AY668=\"No\",ISERROR(FIND(\"HMO\",VLOOKUP('Enrollment Form'!G668,'Enrollment Form'!H$11:J$1000,3,FALSE),1))=FALSE,COUNTA('Enrollment Form'!$AZ668:$BC668)=4),AND('Enrollment Form'!$AY668=\"No\",ISERROR(FIND(\"HMO\",VLOOKUP('Enrollment Form'!G668,'Enrollment Form'!H$11:J$1000,3,FALSE),1))=FALSE,COUNTA('Enrollment Form'!$BT668:$BW668)=4)),\"Y\",\"N\"))","v":"-"},{"$f":"IF($B661=\"N\",\"\",IF('Enrollment Form'!$B668=\"Subscriber\",\"-\",IF(COUNTA('Enrollment Form'!$BL668,'Enrollment Form'!$BN668)=2,\"Y\",\"N\")))","v":""},{"$f":"IF($B661=\"N\",\"\",IF(OR('Enrollment Form'!$AX668=\"\",'Enrollment Form'!$AX668=\"No\"),\"-\",IF(AND('Enrollment Form'!$AX668=\"Yes\",COUNTA('Enrollment Form'!$CR668)=1),\"Y\",\"N\")))","v":""},{"$f":"IF(OR('Enrollment Form'!$CR668=\"\",'Enrollment Form'!$CR668=\"No\"),\"-\",IF(COUNTA('Enrollment Form'!$CT668:$CU668)=2,\"Y\",\"N\"))","v":"-"},{"$f":"IF($B661=\"N\",\"\",IF(COUNTIF('Enrollment Form'!$DG668:$DP668,\"Other\")=COUNTA('Enrollment Form'!$DK668,'Enrollment Form'!$DH668,'Enrollment Form'!$DN668,'Enrollment Form'!$DQ668),\"Y\",\"N\"))","v":""},{"$f":"IF($B661=\"N\",\"\",IF(OR('Enrollment Form'!B668<>\"Subscriber\",'Enrollment Form'!C668=\"ROC\",COUNTIF('Enrollment Form'!AV668:AW668,\"Yes\")>=1),\"-\",IF(AND('Enrollment Form'!C668=\"Enroll\",COUNTIF('Enrollment Form'!AV668:AW668,\"No\")=2,'Enrollment Form'!AX668=\"\"),\"N\",\"Y\")))","v":""},{"$f":"IF(OR(B661=\"N\",'Enrollment Form'!B668<>\"Subscriber\",'Enrollment Form'!C668=\"ROC\",'Enrollment Form'!O668<>\"Multiple of Salary\"),\"-\",IF(COUNTA('Enrollment Form'!T668:U668)<2,\"N\",\"Y\"))","v":"-"},{"$f":"IF(B661=\"N\",\"\",IF(OR('Enrollment Form'!C668=\"ROC\",'Enrollment Form'!B668<>\"Subscriber\",'Enrollment Form'!O668=\"Waive\",'Enrollment Form'!O668=\"\"),\"-\",IF('Enrollment Form'!P668=\"\",\"N\",\"Y\")))","v":""},{"$f":"IF($B661=\"N\",\"\",IF(AND('Enrollment Form'!$C668=\"ROC\",'Enrollment Form'!$DR668<>\"\"),\"Y\",IF(AND('Enrollment Form'!$C668=\"ROC\",'Enrollment Form'!$DR668=\"\"),\"N\",IF(AND('Enrollment Form'!$C668=\"Enroll\",'Enrollment Form'!$B668=\"Subscriber\",'Enrollment Form'!$CX668=\"No\",'Enrollment Form'!$DR668=\"\"),\"N\",IF(AND('Enrollment Form'!$C668=\"Enroll\",'Enrollment Form'!$B668=\"Subscriber\",'Enrollment Form'!$CX668=\"Yes\"),\"-\",\"Y\")))))","v":""},{"$f":"IF($B661=\"N\",\"\",IF(AND('Enrollment Form'!$C668=\"ROC\",'Enrollment Form'!$DS668<>\"\"),\"Y\",IF(AND('Enrollment Form'!$C668=\"ROC\",'Enrollment Form'!$DS668=\"\"),\"N\",IF(AND('Enrollment Form'!$C668=\"Enroll\",'Enrollment Form'!$B668=\"Subscriber\",'Enrollment Form'!$CX668=\"No\",'Enrollment Form'!$DS668=\"\"),\"N\",IF(AND('Enrollment Form'!$C668=\"Enroll\",'Enrollment Form'!$B668=\"Subscriber\",'Enrollment Form'!$CX668=\"Yes\"),\"-\",\"Y\")))))","v":""},{"$f":"IF('Enrollment Form'!AH668=\"\",\"\",IF(ISERROR(SEARCH(\".\",'Enrollment Form'!AH668,SEARCH(\"@\",'Enrollment Form'!AH668))),\"N\",\"Y\"))","v":""},{"$f":"IF(OR($B661=\"N\",'Enrollment Form'!$G668=\"\"),\"\",IF('Enrollment Form'!$B668<>\"Subscriber\",\"-\",IF(COUNTIF('Enrollment Form'!$AV668:$AW668,\"Yes\")=2,\"N\",\"Y\")))","v":""},{"$f":"IF(OR('Enrollment Form'!$CJ668=\"\",'Enrollment Form'!$CJ668=\"No\"),\"-\",IF(AND('Enrollment Form'!$CJ668=\"Yes\",'Enrollment Form'!$CK668=\"\"),\"N\",\"Y\"))","v":"-"},{"$f":"IF(OR('Enrollment Form'!$CL668=\"\",'Enrollment Form'!$CL668=\"No\"),\"-\",IF(AND('Enrollment Form'!$CL668=\"Yes\",'Enrollment Form'!$CM668=\"\"),\"N\",\"Y\"))","v":"-"},{"$f":"IF(OR('Enrollment Form'!$CN668=\"\",'Enrollment Form'!$CN668=\"No\"),\"-\",IF(AND('Enrollment Form'!$CN668=\"Yes\",'Enrollment Form'!$CO668=\"\"),\"N\",\"Y\"))","v":"-"},{"$f":"IF(OR('Enrollment Form'!$CN668=\"\",'Enrollment Form'!$CN668=\"No\"),\"-\",IF(AND('Enrollment Form'!$CN668=\"Yes\",'Enrollment Form'!$CP668=\"\"),\"N\",\"Y\"))","v":"-"},{"$f":"IF('Enrollment Form'!B668<>\"Subscriber\",\"-\",IF(AND('Enrollment Form'!B668=\"Subscriber\",'Enrollment Form'!C668=\"Enroll\",'Enrollment Form'!AA668=\"\"),\"N\",\"Y\"))","v":"-"},{"$f":"IF(OR('Enrollment Form'!B668=\"Subscriber\",'Enrollment Form'!B668=\"\"),\"-\",IF('Enrollment Form'!BP668=\"\",\"N\",\"Y\"))","v":"-"},{"$f":"IF('Enrollment Form'!B668<>\"Subscriber\",\"-\",IF(AND('Enrollment Form'!B668=\"Subscriber\",'Enrollment Form'!G668=\"\"),\"N\",\"Y\"))","v":"-"},{"$f":"IF('Enrollment Form'!A668=\"\",\"\",IF('Enrollment Form'!B668=\"Subscriber\",\"-\",IF(AND('Enrollment Form'!B668<>\"Subscriber\",'Enrollment Form'!G668='Enrollment Form'!H668),\"N\",\"Y\")))","v":""},0]
[669,{"$f":"IF('Enrollment Form'!$A669<>\"\",\"Y\",\"N\")","v":"N"},{"$f":"IF(AND('Enrollment Form'!$B669=\"\",'Enrollment Form'!$C669<>\"\"),\"N\",IF($B662=\"N\",\"\",\"Y\"))","v":""},{"$f":"IF(OR($B662=\"N\",'Enrollment Form'!G669=\"\"),\"\",IF('Enrollment Form'!$B669<>\"Subscriber\",\"\",IF('Enrollment Form'!$G669='Enrollment Form'!$H669,\"Y\",\"N\")))","v":""},{"$f":"IF($B662=\"N\",\"\",IF(AND(COUNTIFS('Enrollment Form'!$H$11:$H$1000,'Enrollment Form'!$H669,'Enrollment Form'!$B$11:$B$1000,'Enrollment Form'!$B669)>1,'Enrollment Form'!$H669<>\"\"),\"N\",\"Y\"))","v":""},{"$f":"IF($B662=\"N\",\"\",IF(LEN('Enrollment Form'!$Y669)=0,\"\",IF(LEN('Enrollment Form'!$Y669)<>5,\"N\",\"Y\")))","v":""},{"$f":"IF($B662=\"N\",\"\",IF(LEN('Enrollment Form'!$AD669=0),\"\",IF(LEN('Enrollment Form'!$AD669)<>5,\"N\",\"Y\")))","v":""},{"$f":"IF($B662=\"N\",\"\",IF(LEN('Enrollment Form'!$BS669=0),\"\",IF(LEN('Enrollment Form'!$BS669)<>5,\"N\",\"Y\")))","v":""},{"$f":"IF($B662=\"N\",\"\",IF(LEN('Enrollment Form'!$AE669)=0,\"\",IF(LEN('Enrollment Form'!$AE669)<>10,\"N\",\"Y\")))","v":""},{"$f":"IF($B662=\"N\",\"\",IF(LEN('Enrollment Form'!$AF669)=0,\"\",IF(LEN('Enrollment Form'!$AF669)<>10,\"N\",\"Y\")))","v":""},{"$f":"IF('Enrollment Form'!$O669<>\"Graded\",\"-\",IF(AND('Enrollment Form'!$O669=\"Graded\",'Enrollment Form'!$AR669<>\"\"),\"Y\",\"N\"))","v":"-"},{"$f":"IF($B662=\"N\",\"\",IF(OR('Enrollment Form'!$B669<>\"Subscriber\",'Enrollment Form'!$C669=\"ROC\"),\"-\",IF(AND('Enrollment Form'!$B669=\"Subscriber\",'Enrollment Form'!$C669=\"Enroll\",'Enrollment Form'!$AJ669<>\"\"),\"Y\",\"N\")))","v":""},{"$f":"IF($B662=\"N\",\"\",IF(OR('Enrollment Form'!$B669<>\"Subscriber\",'Enrollment Form'!$C669=\"ROC\"),\"-\",IF(AND('Enrollment Form'!$B669=\"Subscriber\",'Enrollment Form'!$C669=\"Enroll\",'Enrollment Form'!$AK669<>\"\"),\"Y\",\"N\")))","v":""},{"$f":"IF($B662=\"N\",\"\",IF(OR('Enrollment Form'!$B669<>\"Subscriber\",'Enrollment Form'!$C669=\"ROC\"),\"-\",IF(AND('Enrollment Form'!$B669=\"Subscriber\",'Enrollment Form'!$C669=\"Enroll\",'Enrollment Form'!$AL669<>\"\"),\"Y\",\"N\")))","v":""},{"$f":"IF($B662=\"N\",\"\",IF(OR('Enrollment Form'!$B669<>\"Subscriber\",'Enrollment Form'!$C669=\"ROC\"),\"-\",IF(AND('Enrollment Form'!$B669=\"Subscriber\",'Enrollment Form'!$C669=\"Enroll\",'Enrollment Form'!$AP669<>\"\"),\"Y\",\"N\")))","v":""},{"$f":"IF($B662=\"N\",\"\",IF(OR('Enrollment Form'!$B669<>\"Subscriber\",'Enrollment Form'!$C669=\"ROC\"),\"-\",IF(AND('Enrollment Form'!$B669=\"Subscriber\",'Enrollment Form'!$C669=\"Enroll\",'Enrollment Form'!$AQ669<>\"\"),\"Y\",\"N\")))","v":""},{"$f":"IF($B662=\"N\",\"\",IF(OR('Enrollment Form'!$B669<>\"Subscriber\",'Enrollment Form'!$C669=\"ROC\"),\"-\",IF(AND('Enrollment Form'!$B669=\"Subscriber\",'Enrollment Form'!$C669=\"Enroll\",'Enrollment Form'!$AS669<>\"\"),\"Y\",\"N\")))","v":""},{"$f":"IF($B662=\"N\",\"\",IF($Q662=\"-\",\"-\",IF(AND($Q662=\"Y\",'Enrollment Form'!$AS669=\"No\"),\"-\",IF(AND($Q662=\"Y\",'Enrollment Form'!$AS669=\"Yes\",'Enrollment Form'!$AT669<>\"\"),\"Y\",\"N\"))))","v":""},{"$f":"IF($B662=\"N\",\"\",IF(OR('Enrollment Form'!$B669<>\"Subscriber\",'Enrollment Form'!$C669=\"ROC\"),\"-\",IF(AND('Enrollment Form'!$B669=\"Subscriber\",'Enrollment Form'!$C669=\"Enroll\",'Enrollment Form'!$CV669<>\"\"),\"Y\",\"N\")))","v":""},{"$f":"IF($B662=\"N\",\"\",IF($S662=\"-\",\"-\",IF(AND($S662=\"Y\",'Enrollment Form'!$CV669=\"No\"),\"-\",IF(AND($S662=\"Y\",'Enrollment Form'!$CV669=\"Yes\",'Enrollment Form'!$CW669<>\"\"),\"Y\",\"N\"))))","v":""},{"$f":"IF(OR('Enrollment Form'!$AY669=\"Yes\",'Enrollment Form'!$AY669=\"\"),\"-\",IF(OR(AND('Enrollment Form'!$AY669=\"No\",ISERROR(FIND(\"HMO\",VLOOKUP('Enrollment Form'!G669,'Enrollment Form'!H$11:J$1000,3,FALSE),1))=FALSE,COUNTA('Enrollment Form'!$AZ669:$BC669)=4),AND('Enrollment Form'!$AY669=\"No\",ISERROR(FIND(\"HMO\",VLOOKUP('Enrollment Form'!G669,'Enrollment Form'!H$11:J$1000,3,FALSE),1))=FALSE,COUNTA('Enrollment Form'!$BT669:$BW669)=4)),\"Y\",\"N\"))","v":"-"},{"$f":"IF($B662=\"N\",\"\",IF('Enrollment Form'!$B669=\"Subscriber\",\"-\",IF(COUNTA('Enrollment Form'!$BL669,'Enrollment Form'!$BN669)=2,\"Y\",\"N\")))","v":""},{"$f":"IF($B662=\"N\",\"\",IF(OR('Enrollment Form'!$AX669=\"\",'Enrollment Form'!$AX669=\"No\"),\"-\",IF(AND('Enrollment Form'!$AX669=\"Yes\",COUNTA('Enrollment Form'!$CR669)=1),\"Y\",\"N\")))","v":""},{"$f":"IF(OR('Enrollment Form'!$CR669=\"\",'Enrollment Form'!$CR669=\"No\"),\"-\",IF(COUNTA('Enrollment Form'!$CT669:$CU669)=2,\"Y\",\"N\"))","v":"-"},{"$f":"IF($B662=\"N\",\"\",IF(COUNTIF('Enrollment Form'!$DG669:$DP669,\"Other\")=COUNTA('Enrollment Form'!$DK669,'Enrollment Form'!$DH669,'Enrollment Form'!$DN669,'Enrollment Form'!$DQ669),\"Y\",\"N\"))","v":""},{"$f":"IF($B662=\"N\",\"\",IF(OR('Enrollment Form'!B669<>\"Subscriber\",'Enrollment Form'!C669=\"ROC\",COUNTIF('Enrollment Form'!AV669:AW669,\"Yes\")>=1),\"-\",IF(AND('Enrollment Form'!C669=\"Enroll\",COUNTIF('Enrollment Form'!AV669:AW669,\"No\")=2,'Enrollment Form'!AX669=\"\"),\"N\",\"Y\")))","v":""},{"$f":"IF(OR(B662=\"N\",'Enrollment Form'!B669<>\"Subscriber\",'Enrollment Form'!C669=\"ROC\",'Enrollment Form'!O669<>\"Multiple of Salary\"),\"-\",IF(COUNTA('Enrollment Form'!T669:U669)<2,\"N\",\"Y\"))","v":"-"},{"$f":"IF(B662=\"N\",\"\",IF(OR('Enrollment Form'!C669=\"ROC\",'Enrollment Form'!B669<>\"Subscriber\",'Enrollment Form'!O669=\"Waive\",'Enrollment Form'!O669=\"\"),\"-\",IF('Enrollment Form'!P669=\"\",\"N\",\"Y\")))","v":""},{"$f":"IF($B662=\"N\",\"\",IF(AND('Enrollment Form'!$C669=\"ROC\",'Enrollment Form'!$DR669<>\"\"),\"Y\",IF(AND('Enrollment Form'!$C669=\"ROC\",'Enrollment Form'!$DR669=\"\"),\"N\",IF(AND('Enrollment Form'!$C669=\"Enroll\",'Enrollment Form'!$B669=\"Subscriber\",'Enrollment Form'!$CX669=\"No\",'Enrollment Form'!$DR669=\"\"),\"N\",IF(AND('Enrollment Form'!$C669=\"Enroll\",'Enrollment Form'!$B669=\"Subscriber\",'Enrollment Form'!$CX669=\"Yes\"),\"-\",\"Y\")))))","v":""},{"$f":"IF($B662=\"N\",\"\",IF(AND('Enrollment Form'!$C669=\"ROC\",'Enrollment Form'!$DS669<>\"\"),\"Y\",IF(AND('Enrollment Form'!$C669=\"ROC\",'Enrollment Form'!$DS669=\"\"),\"N\",IF(AND('Enrollment Form'!$C669=\"Enroll\",'Enrollment Form'!$B669=\"Subscriber\",'Enrollment Form'!$CX669=\"No\",'Enrollment Form'!$DS669=\"\"),\"N\",IF(AND('Enrollment Form'!$C669=\"Enroll\",'Enrollment Form'!$B669=\"Subscriber\",'Enrollment Form'!$CX669=\"Yes\"),\"-\",\"Y\")))))","v":""},{"$f":"IF('Enrollment Form'!AH669=\"\",\"\",IF(ISERROR(SEARCH(\".\",'Enrollment Form'!AH669,SEARCH(\"@\",'Enrollment Form'!AH669))),\"N\",\"Y\"))","v":""},{"$f":"IF(OR($B662=\"N\",'Enrollment Form'!$G669=\"\"),\"\",IF('Enrollment Form'!$B669<>\"Subscriber\",\"-\",IF(COUNTIF('Enrollment Form'!$AV669:$AW669,\"Yes\")=2,\"N\",\"Y\")))","v":""},{"$f":"IF(OR('Enrollment Form'!$CJ669=\"\",'Enrollment Form'!$CJ669=\"No\"),\"-\",IF(AND('Enrollment Form'!$CJ669=\"Yes\",'Enrollment Form'!$CK669=\"\"),\"N\",\"Y\"))","v":"-"},{"$f":"IF(OR('Enrollment Form'!$CL669=\"\",'Enrollment Form'!$CL669=\"No\"),\"-\",IF(AND('Enrollment Form'!$CL669=\"Yes\",'Enrollment Form'!$CM669=\"\"),\"N\",\"Y\"))","v":"-"},{"$f":"IF(OR('Enrollment Form'!$CN669=\"\",'Enrollment Form'!$CN669=\"No\"),\"-\",IF(AND('Enrollment Form'!$CN669=\"Yes\",'Enrollment Form'!$CO669=\"\"),\"N\",\"Y\"))","v":"-"},{"$f":"IF(OR('Enrollment Form'!$CN669=\"\",'Enrollment Form'!$CN669=\"No\"),\"-\",IF(AND('Enrollment Form'!$CN669=\"Yes\",'Enrollment Form'!$CP669=\"\"),\"N\",\"Y\"))","v":"-"},{"$f":"IF('Enrollment Form'!B669<>\"Subscriber\",\"-\",IF(AND('Enrollment Form'!B669=\"Subscriber\",'Enrollment Form'!C669=\"Enroll\",'Enrollment Form'!AA669=\"\"),\"N\",\"Y\"))","v":"-"},{"$f":"IF(OR('Enrollment Form'!B669=\"Subscriber\",'Enrollment Form'!B669=\"\"),\"-\",IF('Enrollment Form'!BP669=\"\",\"N\",\"Y\"))","v":"-"},{"$f":"IF('Enrollment Form'!B669<>\"Subscriber\",\"-\",IF(AND('Enrollment Form'!B669=\"Subscriber\",'Enrollment Form'!G669=\"\"),\"N\",\"Y\"))","v":"-"},{"$f":"IF('Enrollment Form'!A669=\"\",\"\",IF('Enrollment Form'!B669=\"Subscriber\",\"-\",IF(AND('Enrollment Form'!B669<>\"Subscriber\",'Enrollment Form'!G669='Enrollment Form'!H669),\"N\",\"Y\")))","v":""},0]
[670,{"$f":"IF('Enrollment Form'!$A670<>\"\",\"Y\",\"N\")","v":"N"},{"$f":"IF(AND('Enrollment Form'!$B670=\"\",'Enrollment Form'!$C670<>\"\"),\"N\",IF($B663=\"N\",\"\",\"Y\"))","v":""},{"$f":"IF(OR($B663=\"N\",'Enrollment Form'!G670=\"\"),\"\",IF('Enrollment Form'!$B670<>\"Subscriber\",\"\",IF('Enrollment Form'!$G670='Enrollment Form'!$H670,\"Y\",\"N\")))","v":""},{"$f":"IF($B663=\"N\",\"\",IF(AND(COUNTIFS('Enrollment Form'!$H$11:$H$1000,'Enrollment Form'!$H670,'Enrollment Form'!$B$11:$B$1000,'Enrollment Form'!$B670)>1,'Enrollment Form'!$H670<>\"\"),\"N\",\"Y\"))","v":""},{"$f":"IF($B663=\"N\",\"\",IF(LEN('Enrollment Form'!$Y670)=0,\"\",IF(LEN('Enrollment Form'!$Y670)<>5,\"N\",\"Y\")))","v":""},{"$f":"IF($B663=\"N\",\"\",IF(LEN('Enrollment Form'!$AD670=0),\"\",IF(LEN('Enrollment Form'!$AD670)<>5,\"N\",\"Y\")))","v":""},{"$f":"IF($B663=\"N\",\"\",IF(LEN('Enrollment Form'!$BS670=0),\"\",IF(LEN('Enrollment Form'!$BS670)<>5,\"N\",\"Y\")))","v":""},{"$f":"IF($B663=\"N\",\"\",IF(LEN('Enrollment Form'!$AE670)=0,\"\",IF(LEN('Enrollment Form'!$AE670)<>10,\"N\",\"Y\")))","v":""},{"$f":"IF($B663=\"N\",\"\",IF(LEN('Enrollment Form'!$AF670)=0,\"\",IF(LEN('Enrollment Form'!$AF670)<>10,\"N\",\"Y\")))","v":""},{"$f":"IF('Enrollment Form'!$O670<>\"Graded\",\"-\",IF(AND('Enrollment Form'!$O670=\"Graded\",'Enrollment Form'!$AR670<>\"\"),\"Y\",\"N\"))","v":"-"},{"$f":"IF($B663=\"N\",\"\",IF(OR('Enrollment Form'!$B670<>\"Subscriber\",'Enrollment Form'!$C670=\"ROC\"),\"-\",IF(AND('Enrollment Form'!$B670=\"Subscriber\",'Enrollment Form'!$C670=\"Enroll\",'Enrollment Form'!$AJ670<>\"\"),\"Y\",\"N\")))","v":""},{"$f":"IF($B663=\"N\",\"\",IF(OR('Enrollment Form'!$B670<>\"Subscriber\",'Enrollment Form'!$C670=\"ROC\"),\"-\",IF(AND('Enrollment Form'!$B670=\"Subscriber\",'Enrollment Form'!$C670=\"Enroll\",'Enrollment Form'!$AK670<>\"\"),\"Y\",\"N\")))","v":""},{"$f":"IF($B663=\"N\",\"\",IF(OR('Enrollment Form'!$B670<>\"Subscriber\",'Enrollment Form'!$C670=\"ROC\"),\"-\",IF(AND('Enrollment Form'!$B670=\"Subscriber\",'Enrollment Form'!$C670=\"Enroll\",'Enrollment Form'!$AL670<>\"\"),\"Y\",\"N\")))","v":""},{"$f":"IF($B663=\"N\",\"\",IF(OR('Enrollment Form'!$B670<>\"Subscriber\",'Enrollment Form'!$C670=\"ROC\"),\"-\",IF(AND('Enrollment Form'!$B670=\"Subscriber\",'Enrollment Form'!$C670=\"Enroll\",'Enrollment Form'!$AP670<>\"\"),\"Y\",\"N\")))","v":""},{"$f":"IF($B663=\"N\",\"\",IF(OR('Enrollment Form'!$B670<>\"Subscriber\",'Enrollment Form'!$C670=\"ROC\"),\"-\",IF(AND('Enrollment Form'!$B670=\"Subscriber\",'Enrollment Form'!$C670=\"Enroll\",'Enrollment Form'!$AQ670<>\"\"),\"Y\",\"N\")))","v":""},{"$f":"IF($B663=\"N\",\"\",IF(OR('Enrollment Form'!$B670<>\"Subscriber\",'Enrollment Form'!$C670=\"ROC\"),\"-\",IF(AND('Enrollment Form'!$B670=\"Subscriber\",'Enrollment Form'!$C670=\"Enroll\",'Enrollment Form'!$AS670<>\"\"),\"Y\",\"N\")))","v":""},{"$f":"IF($B663=\"N\",\"\",IF($Q663=\"-\",\"-\",IF(AND($Q663=\"Y\",'Enrollment Form'!$AS670=\"No\"),\"-\",IF(AND($Q663=\"Y\",'Enrollment Form'!$AS670=\"Yes\",'Enrollment Form'!$AT670<>\"\"),\"Y\",\"N\"))))","v":""},{"$f":"IF($B663=\"N\",\"\",IF(OR('Enrollment Form'!$B670<>\"Subscriber\",'Enrollment Form'!$C670=\"ROC\"),\"-\",IF(AND('Enrollment Form'!$B670=\"Subscriber\",'Enrollment Form'!$C670=\"Enroll\",'Enrollment Form'!$CV670<>\"\"),\"Y\",\"N\")))","v":""},{"$f":"IF($B663=\"N\",\"\",IF($S663=\"-\",\"-\",IF(AND($S663=\"Y\",'Enrollment Form'!$CV670=\"No\"),\"-\",IF(AND($S663=\"Y\",'Enrollment Form'!$CV670=\"Yes\",'Enrollment Form'!$CW670<>\"\"),\"Y\",\"N\"))))","v":""},{"$f":"IF(OR('Enrollment Form'!$AY670=\"Yes\",'Enrollment Form'!$AY670=\"\"),\"-\",IF(OR(AND('Enrollment Form'!$AY670=\"No\",ISERROR(FIND(\"HMO\",VLOOKUP('Enrollment Form'!G670,'Enrollment Form'!H$11:J$1000,3,FALSE),1))=FALSE,COUNTA('Enrollment Form'!$AZ670:$BC670)=4),AND('Enrollment Form'!$AY670=\"No\",ISERROR(FIND(\"HMO\",VLOOKUP('Enrollment Form'!G670,'Enrollment Form'!H$11:J$1000,3,FALSE),1))=FALSE,COUNTA('Enrollment Form'!$BT670:$BW670)=4)),\"Y\",\"N\"))","v":"-"},{"$f":"IF($B663=\"N\",\"\",IF('Enrollment Form'!$B670=\"Subscriber\",\"-\",IF(COUNTA('Enrollment Form'!$BL670,'Enrollment Form'!$BN670)=2,\"Y\",\"N\")))","v":""},{"$f":"IF($B663=\"N\",\"\",IF(OR('Enrollment Form'!$AX670=\"\",'Enrollment Form'!$AX670=\"No\"),\"-\",IF(AND('Enrollment Form'!$AX670=\"Yes\",COUNTA('Enrollment Form'!$CR670)=1),\"Y\",\"N\")))","v":""},{"$f":"IF(OR('Enrollment Form'!$CR670=\"\",'Enrollment Form'!$CR670=\"No\"),\"-\",IF(COUNTA('Enrollment Form'!$CT670:$CU670)=2,\"Y\",\"N\"))","v":"-"},{"$f":"IF($B663=\"N\",\"\",IF(COUNTIF('Enrollment Form'!$DG670:$DP670,\"Other\")=COUNTA('Enrollment Form'!$DK670,'Enrollment Form'!$DH670,'Enrollment Form'!$DN670,'Enrollment Form'!$DQ670),\"Y\",\"N\"))","v":""},{"$f":"IF($B663=\"N\",\"\",IF(OR('Enrollment Form'!B670<>\"Subscriber\",'Enrollment Form'!C670=\"ROC\",COUNTIF('Enrollment Form'!AV670:AW670,\"Yes\")>=1),\"-\",IF(AND('Enrollment Form'!C670=\"Enroll\",COUNTIF('Enrollment Form'!AV670:AW670,\"No\")=2,'Enrollment Form'!AX670=\"\"),\"N\",\"Y\")))","v":""},{"$f":"IF(OR(B663=\"N\",'Enrollment Form'!B670<>\"Subscriber\",'Enrollment Form'!C670=\"ROC\",'Enrollment Form'!O670<>\"Multiple of Salary\"),\"-\",IF(COUNTA('Enrollment Form'!T670:U670)<2,\"N\",\"Y\"))","v":"-"},{"$f":"IF(B663=\"N\",\"\",IF(OR('Enrollment Form'!C670=\"ROC\",'Enrollment Form'!B670<>\"Subscriber\",'Enrollment Form'!O670=\"Waive\",'Enrollment Form'!O670=\"\"),\"-\",IF('Enrollment Form'!P670=\"\",\"N\",\"Y\")))","v":""},{"$f":"IF($B663=\"N\",\"\",IF(AND('Enrollment Form'!$C670=\"ROC\",'Enrollment Form'!$DR670<>\"\"),\"Y\",IF(AND('Enrollment Form'!$C670=\"ROC\",'Enrollment Form'!$DR670=\"\"),\"N\",IF(AND('Enrollment Form'!$C670=\"Enroll\",'Enrollment Form'!$B670=\"Subscriber\",'Enrollment Form'!$CX670=\"No\",'Enrollment Form'!$DR670=\"\"),\"N\",IF(AND('Enrollment Form'!$C670=\"Enroll\",'Enrollment Form'!$B670=\"Subscriber\",'Enrollment Form'!$CX670=\"Yes\"),\"-\",\"Y\")))))","v":""},{"$f":"IF($B663=\"N\",\"\",IF(AND('Enrollment Form'!$C670=\"ROC\",'Enrollment Form'!$DS670<>\"\"),\"Y\",IF(AND('Enrollment Form'!$C670=\"ROC\",'Enrollment Form'!$DS670=\"\"),\"N\",IF(AND('Enrollment Form'!$C670=\"Enroll\",'Enrollment Form'!$B670=\"Subscriber\",'Enrollment Form'!$CX670=\"No\",'Enrollment Form'!$DS670=\"\"),\"N\",IF(AND('Enrollment Form'!$C670=\"Enroll\",'Enrollment Form'!$B670=\"Subscriber\",'Enrollment Form'!$CX670=\"Yes\"),\"-\",\"Y\")))))","v":""},{"$f":"IF('Enrollment Form'!AH670=\"\",\"\",IF(ISERROR(SEARCH(\".\",'Enrollment Form'!AH670,SEARCH(\"@\",'Enrollment Form'!AH670))),\"N\",\"Y\"))","v":""},{"$f":"IF(OR($B663=\"N\",'Enrollment Form'!$G670=\"\"),\"\",IF('Enrollment Form'!$B670<>\"Subscriber\",\"-\",IF(COUNTIF('Enrollment Form'!$AV670:$AW670,\"Yes\")=2,\"N\",\"Y\")))","v":""},{"$f":"IF(OR('Enrollment Form'!$CJ670=\"\",'Enrollment Form'!$CJ670=\"No\"),\"-\",IF(AND('Enrollment Form'!$CJ670=\"Yes\",'Enrollment Form'!$CK670=\"\"),\"N\",\"Y\"))","v":"-"},{"$f":"IF(OR('Enrollment Form'!$CL670=\"\",'Enrollment Form'!$CL670=\"No\"),\"-\",IF(AND('Enrollment Form'!$CL670=\"Yes\",'Enrollment Form'!$CM670=\"\"),\"N\",\"Y\"))","v":"-"},{"$f":"IF(OR('Enrollment Form'!$CN670=\"\",'Enrollment Form'!$CN670=\"No\"),\"-\",IF(AND('Enrollment Form'!$CN670=\"Yes\",'Enrollment Form'!$CO670=\"\"),\"N\",\"Y\"))","v":"-"},{"$f":"IF(OR('Enrollment Form'!$CN670=\"\",'Enrollment Form'!$CN670=\"No\"),\"-\",IF(AND('Enrollment Form'!$CN670=\"Yes\",'Enrollment Form'!$CP670=\"\"),\"N\",\"Y\"))","v":"-"},{"$f":"IF('Enrollment Form'!B670<>\"Subscriber\",\"-\",IF(AND('Enrollment Form'!B670=\"Subscriber\",'Enrollment Form'!C670=\"Enroll\",'Enrollment Form'!AA670=\"\"),\"N\",\"Y\"))","v":"-"},{"$f":"IF(OR('Enrollment Form'!B670=\"Subscriber\",'Enrollment Form'!B670=\"\"),\"-\",IF('Enrollment Form'!BP670=\"\",\"N\",\"Y\"))","v":"-"},{"$f":"IF('Enrollment Form'!B670<>\"Subscriber\",\"-\",IF(AND('Enrollment Form'!B670=\"Subscriber\",'Enrollment Form'!G670=\"\"),\"N\",\"Y\"))","v":"-"},{"$f":"IF('Enrollment Form'!A670=\"\",\"\",IF('Enrollment Form'!B670=\"Subscriber\",\"-\",IF(AND('Enrollment Form'!B670<>\"Subscriber\",'Enrollment Form'!G670='Enrollment Form'!H670),\"N\",\"Y\")))","v":""},0]
[671,{"$f":"IF('Enrollment Form'!$A671<>\"\",\"Y\",\"N\")","v":"N"},{"$f":"IF(AND('Enrollment Form'!$B671=\"\",'Enrollment Form'!$C671<>\"\"),\"N\",IF($B664=\"N\",\"\",\"Y\"))","v":""},{"$f":"IF(OR($B664=\"N\",'Enrollment Form'!G671=\"\"),\"\",IF('Enrollment Form'!$B671<>\"Subscriber\",\"\",IF('Enrollment Form'!$G671='Enrollment Form'!$H671,\"Y\",\"N\")))","v":""},{"$f":"IF($B664=\"N\",\"\",IF(AND(COUNTIFS('Enrollment Form'!$H$11:$H$1000,'Enrollment Form'!$H671,'Enrollment Form'!$B$11:$B$1000,'Enrollment Form'!$B671)>1,'Enrollment Form'!$H671<>\"\"),\"N\",\"Y\"))","v":""},{"$f":"IF($B664=\"N\",\"\",IF(LEN('Enrollment Form'!$Y671)=0,\"\",IF(LEN('Enrollment Form'!$Y671)<>5,\"N\",\"Y\")))","v":""},{"$f":"IF($B664=\"N\",\"\",IF(LEN('Enrollment Form'!$AD671=0),\"\",IF(LEN('Enrollment Form'!$AD671)<>5,\"N\",\"Y\")))","v":""},{"$f":"IF($B664=\"N\",\"\",IF(LEN('Enrollment Form'!$BS671=0),\"\",IF(LEN('Enrollment Form'!$BS671)<>5,\"N\",\"Y\")))","v":""},{"$f":"IF($B664=\"N\",\"\",IF(LEN('Enrollment Form'!$AE671)=0,\"\",IF(LEN('Enrollment Form'!$AE671)<>10,\"N\",\"Y\")))","v":""},{"$f":"IF($B664=\"N\",\"\",IF(LEN('Enrollment Form'!$AF671)=0,\"\",IF(LEN('Enrollment Form'!$AF671)<>10,\"N\",\"Y\")))","v":""},{"$f":"IF('Enrollment Form'!$O671<>\"Graded\",\"-\",IF(AND('Enrollment Form'!$O671=\"Graded\",'Enrollment Form'!$AR671<>\"\"),\"Y\",\"N\"))","v":"-"},{"$f":"IF($B664=\"N\",\"\",IF(OR('Enrollment Form'!$B671<>\"Subscriber\",'Enrollment Form'!$C671=\"ROC\"),\"-\",IF(AND('Enrollment Form'!$B671=\"Subscriber\",'Enrollment Form'!$C671=\"Enroll\",'Enrollment Form'!$AJ671<>\"\"),\"Y\",\"N\")))","v":""},{"$f":"IF($B664=\"N\",\"\",IF(OR('Enrollment Form'!$B671<>\"Subscriber\",'Enrollment Form'!$C671=\"ROC\"),\"-\",IF(AND('Enrollment Form'!$B671=\"Subscriber\",'Enrollment Form'!$C671=\"Enroll\",'Enrollment Form'!$AK671<>\"\"),\"Y\",\"N\")))","v":""},{"$f":"IF($B664=\"N\",\"\",IF(OR('Enrollment Form'!$B671<>\"Subscriber\",'Enrollment Form'!$C671=\"ROC\"),\"-\",IF(AND('Enrollment Form'!$B671=\"Subscriber\",'Enrollment Form'!$C671=\"Enroll\",'Enrollment Form'!$AL671<>\"\"),\"Y\",\"N\")))","v":""},{"$f":"IF($B664=\"N\",\"\",IF(OR('Enrollment Form'!$B671<>\"Subscriber\",'Enrollment Form'!$C671=\"ROC\"),\"-\",IF(AND('Enrollment Form'!$B671=\"Subscriber\",'Enrollment Form'!$C671=\"Enroll\",'Enrollment Form'!$AP671<>\"\"),\"Y\",\"N\")))","v":""},{"$f":"IF($B664=\"N\",\"\",IF(OR('Enrollment Form'!$B671<>\"Subscriber\",'Enrollment Form'!$C671=\"ROC\"),\"-\",IF(AND('Enrollment Form'!$B671=\"Subscriber\",'Enrollment Form'!$C671=\"Enroll\",'Enrollment Form'!$AQ671<>\"\"),\"Y\",\"N\")))","v":""},{"$f":"IF($B664=\"N\",\"\",IF(OR('Enrollment Form'!$B671<>\"Subscriber\",'Enrollment Form'!$C671=\"ROC\"),\"-\",IF(AND('Enrollment Form'!$B671=\"Subscriber\",'Enrollment Form'!$C671=\"Enroll\",'Enrollment Form'!$AS671<>\"\"),\"Y\",\"N\")))","v":""},{"$f":"IF($B664=\"N\",\"\",IF($Q664=\"-\",\"-\",IF(AND($Q664=\"Y\",'Enrollment Form'!$AS671=\"No\"),\"-\",IF(AND($Q664=\"Y\",'Enrollment Form'!$AS671=\"Yes\",'Enrollment Form'!$AT671<>\"\"),\"Y\",\"N\"))))","v":""},{"$f":"IF($B664=\"N\",\"\",IF(OR('Enrollment Form'!$B671<>\"Subscriber\",'Enrollment Form'!$C671=\"ROC\"),\"-\",IF(AND('Enrollment Form'!$B671=\"Subscriber\",'Enrollment Form'!$C671=\"Enroll\",'Enrollment Form'!$CV671<>\"\"),\"Y\",\"N\")))","v":""},{"$f":"IF($B664=\"N\",\"\",IF($S664=\"-\",\"-\",IF(AND($S664=\"Y\",'Enrollment Form'!$CV671=\"No\"),\"-\",IF(AND($S664=\"Y\",'Enrollment Form'!$CV671=\"Yes\",'Enrollment Form'!$CW671<>\"\"),\"Y\",\"N\"))))","v":""},{"$f":"IF(OR('Enrollment Form'!$AY671=\"Yes\",'Enrollment Form'!$AY671=\"\"),\"-\",IF(OR(AND('Enrollment Form'!$AY671=\"No\",ISERROR(FIND(\"HMO\",VLOOKUP('Enrollment Form'!G671,'Enrollment Form'!H$11:J$1000,3,FALSE),1))=FALSE,COUNTA('Enrollment Form'!$AZ671:$BC671)=4),AND('Enrollment Form'!$AY671=\"No\",ISERROR(FIND(\"HMO\",VLOOKUP('Enrollment Form'!G671,'Enrollment Form'!H$11:J$1000,3,FALSE),1))=FALSE,COUNTA('Enrollment Form'!$BT671:$BW671)=4)),\"Y\",\"N\"))","v":"-"},{"$f":"IF($B664=\"N\",\"\",IF('Enrollment Form'!$B671=\"Subscriber\",\"-\",IF(COUNTA('Enrollment Form'!$BL671,'Enrollment Form'!$BN671)=2,\"Y\",\"N\")))","v":""},{"$f":"IF($B664=\"N\",\"\",IF(OR('Enrollment Form'!$AX671=\"\",'Enrollment Form'!$AX671=\"No\"),\"-\",IF(AND('Enrollment Form'!$AX671=\"Yes\",COUNTA('Enrollment Form'!$CR671)=1),\"Y\",\"N\")))","v":""},{"$f":"IF(OR('Enrollment Form'!$CR671=\"\",'Enrollment Form'!$CR671=\"No\"),\"-\",IF(COUNTA('Enrollment Form'!$CT671:$CU671)=2,\"Y\",\"N\"))","v":"-"},{"$f":"IF($B664=\"N\",\"\",IF(COUNTIF('Enrollment Form'!$DG671:$DP671,\"Other\")=COUNTA('Enrollment Form'!$DK671,'Enrollment Form'!$DH671,'Enrollment Form'!$DN671,'Enrollment Form'!$DQ671),\"Y\",\"N\"))","v":""},{"$f":"IF($B664=\"N\",\"\",IF(OR('Enrollment Form'!B671<>\"Subscriber\",'Enrollment Form'!C671=\"ROC\",COUNTIF('Enrollment Form'!AV671:AW671,\"Yes\")>=1),\"-\",IF(AND('Enrollment Form'!C671=\"Enroll\",COUNTIF('Enrollment Form'!AV671:AW671,\"No\")=2,'Enrollment Form'!AX671=\"\"),\"N\",\"Y\")))","v":""},{"$f":"IF(OR(B664=\"N\",'Enrollment Form'!B671<>\"Subscriber\",'Enrollment Form'!C671=\"ROC\",'Enrollment Form'!O671<>\"Multiple of Salary\"),\"-\",IF(COUNTA('Enrollment Form'!T671:U671)<2,\"N\",\"Y\"))","v":"-"},{"$f":"IF(B664=\"N\",\"\",IF(OR('Enrollment Form'!C671=\"ROC\",'Enrollment Form'!B671<>\"Subscriber\",'Enrollment Form'!O671=\"Waive\",'Enrollment Form'!O671=\"\"),\"-\",IF('Enrollment Form'!P671=\"\",\"N\",\"Y\")))","v":""},{"$f":"IF($B664=\"N\",\"\",IF(AND('Enrollment Form'!$C671=\"ROC\",'Enrollment Form'!$DR671<>\"\"),\"Y\",IF(AND('Enrollment Form'!$C671=\"ROC\",'Enrollment Form'!$DR671=\"\"),\"N\",IF(AND('Enrollment Form'!$C671=\"Enroll\",'Enrollment Form'!$B671=\"Subscriber\",'Enrollment Form'!$CX671=\"No\",'Enrollment Form'!$DR671=\"\"),\"N\",IF(AND('Enrollment Form'!$C671=\"Enroll\",'Enrollment Form'!$B671=\"Subscriber\",'Enrollment Form'!$CX671=\"Yes\"),\"-\",\"Y\")))))","v":""},{"$f":"IF($B664=\"N\",\"\",IF(AND('Enrollment Form'!$C671=\"ROC\",'Enrollment Form'!$DS671<>\"\"),\"Y\",IF(AND('Enrollment Form'!$C671=\"ROC\",'Enrollment Form'!$DS671=\"\"),\"N\",IF(AND('Enrollment Form'!$C671=\"Enroll\",'Enrollment Form'!$B671=\"Subscriber\",'Enrollment Form'!$CX671=\"No\",'Enrollment Form'!$DS671=\"\"),\"N\",IF(AND('Enrollment Form'!$C671=\"Enroll\",'Enrollment Form'!$B671=\"Subscriber\",'Enrollment Form'!$CX671=\"Yes\"),\"-\",\"Y\")))))","v":""},{"$f":"IF('Enrollment Form'!AH671=\"\",\"\",IF(ISERROR(SEARCH(\".\",'Enrollment Form'!AH671,SEARCH(\"@\",'Enrollment Form'!AH671))),\"N\",\"Y\"))","v":""},{"$f":"IF(OR($B664=\"N\",'Enrollment Form'!$G671=\"\"),\"\",IF('Enrollment Form'!$B671<>\"Subscriber\",\"-\",IF(COUNTIF('Enrollment Form'!$AV671:$AW671,\"Yes\")=2,\"N\",\"Y\")))","v":""},{"$f":"IF(OR('Enrollment Form'!$CJ671=\"\",'Enrollment Form'!$CJ671=\"No\"),\"-\",IF(AND('Enrollment Form'!$CJ671=\"Yes\",'Enrollment Form'!$CK671=\"\"),\"N\",\"Y\"))","v":"-"},{"$f":"IF(OR('Enrollment Form'!$CL671=\"\",'Enrollment Form'!$CL671=\"No\"),\"-\",IF(AND('Enrollment Form'!$CL671=\"Yes\",'Enrollment Form'!$CM671=\"\"),\"N\",\"Y\"))","v":"-"},{"$f":"IF(OR('Enrollment Form'!$CN671=\"\",'Enrollment Form'!$CN671=\"No\"),\"-\",IF(AND('Enrollment Form'!$CN671=\"Yes\",'Enrollment Form'!$CO671=\"\"),\"N\",\"Y\"))","v":"-"},{"$f":"IF(OR('Enrollment Form'!$CN671=\"\",'Enrollment Form'!$CN671=\"No\"),\"-\",IF(AND('Enrollment Form'!$CN671=\"Yes\",'Enrollment Form'!$CP671=\"\"),\"N\",\"Y\"))","v":"-"},{"$f":"IF('Enrollment Form'!B671<>\"Subscriber\",\"-\",IF(AND('Enrollment Form'!B671=\"Subscriber\",'Enrollment Form'!C671=\"Enroll\",'Enrollment Form'!AA671=\"\"),\"N\",\"Y\"))","v":"-"},{"$f":"IF(OR('Enrollment Form'!B671=\"Subscriber\",'Enrollment Form'!B671=\"\"),\"-\",IF('Enrollment Form'!BP671=\"\",\"N\",\"Y\"))","v":"-"},{"$f":"IF('Enrollment Form'!B671<>\"Subscriber\",\"-\",IF(AND('Enrollment Form'!B671=\"Subscriber\",'Enrollment Form'!G671=\"\"),\"N\",\"Y\"))","v":"-"},{"$f":"IF('Enrollment Form'!A671=\"\",\"\",IF('Enrollment Form'!B671=\"Subscriber\",\"-\",IF(AND('Enrollment Form'!B671<>\"Subscriber\",'Enrollment Form'!G671='Enrollment Form'!H671),\"N\",\"Y\")))","v":""},0]
[672,{"$f":"IF('Enrollment Form'!$A672<>\"\",\"Y\",\"N\")","v":"N"},{"$f":"IF(AND('Enrollment Form'!$B672=\"\",'Enrollment Form'!$C672<>\"\"),\"N\",IF($B665=\"N\",\"\",\"Y\"))","v":""},{"$f":"IF(OR($B665=\"N\",'Enrollment Form'!G672=\"\"),\"\",IF('Enrollment Form'!$B672<>\"Subscriber\",\"\",IF('Enrollment Form'!$G672='Enrollment Form'!$H672,\"Y\",\"N\")))","v":""},{"$f":"IF($B665=\"N\",\"\",IF(AND(COUNTIFS('Enrollment Form'!$H$11:$H$1000,'Enrollment Form'!$H672,'Enrollment Form'!$B$11:$B$1000,'Enrollment Form'!$B672)>1,'Enrollment Form'!$H672<>\"\"),\"N\",\"Y\"))","v":""},{"$f":"IF($B665=\"N\",\"\",IF(LEN('Enrollment Form'!$Y672)=0,\"\",IF(LEN('Enrollment Form'!$Y672)<>5,\"N\",\"Y\")))","v":""},{"$f":"IF($B665=\"N\",\"\",IF(LEN('Enrollment Form'!$AD672=0),\"\",IF(LEN('Enrollment Form'!$AD672)<>5,\"N\",\"Y\")))","v":""},{"$f":"IF($B665=\"N\",\"\",IF(LEN('Enrollment Form'!$BS672=0),\"\",IF(LEN('Enrollment Form'!$BS672)<>5,\"N\",\"Y\")))","v":""},{"$f":"IF($B665=\"N\",\"\",IF(LEN('Enrollment Form'!$AE672)=0,\"\",IF(LEN('Enrollment Form'!$AE672)<>10,\"N\",\"Y\")))","v":""},{"$f":"IF($B665=\"N\",\"\",IF(LEN('Enrollment Form'!$AF672)=0,\"\",IF(LEN('Enrollment Form'!$AF672)<>10,\"N\",\"Y\")))","v":""},{"$f":"IF('Enrollment Form'!$O672<>\"Graded\",\"-\",IF(AND('Enrollment Form'!$O672=\"Graded\",'Enrollment Form'!$AR672<>\"\"),\"Y\",\"N\"))","v":"-"},{"$f":"IF($B665=\"N\",\"\",IF(OR('Enrollment Form'!$B672<>\"Subscriber\",'Enrollment Form'!$C672=\"ROC\"),\"-\",IF(AND('Enrollment Form'!$B672=\"Subscriber\",'Enrollment Form'!$C672=\"Enroll\",'Enrollment Form'!$AJ672<>\"\"),\"Y\",\"N\")))","v":""},{"$f":"IF($B665=\"N\",\"\",IF(OR('Enrollment Form'!$B672<>\"Subscriber\",'Enrollment Form'!$C672=\"ROC\"),\"-\",IF(AND('Enrollment Form'!$B672=\"Subscriber\",'Enrollment Form'!$C672=\"Enroll\",'Enrollment Form'!$AK672<>\"\"),\"Y\",\"N\")))","v":""},{"$f":"IF($B665=\"N\",\"\",IF(OR('Enrollment Form'!$B672<>\"Subscriber\",'Enrollment Form'!$C672=\"ROC\"),\"-\",IF(AND('Enrollment Form'!$B672=\"Subscriber\",'Enrollment Form'!$C672=\"Enroll\",'Enrollment Form'!$AL672<>\"\"),\"Y\",\"N\")))","v":""},{"$f":"IF($B665=\"N\",\"\",IF(OR('Enrollment Form'!$B672<>\"Subscriber\",'Enrollment Form'!$C672=\"ROC\"),\"-\",IF(AND('Enrollment Form'!$B672=\"Subscriber\",'Enrollment Form'!$C672=\"Enroll\",'Enrollment Form'!$AP672<>\"\"),\"Y\",\"N\")))","v":""},{"$f":"IF($B665=\"N\",\"\",IF(OR('Enrollment Form'!$B672<>\"Subscriber\",'Enrollment Form'!$C672=\"ROC\"),\"-\",IF(AND('Enrollment Form'!$B672=\"Subscriber\",'Enrollment Form'!$C672=\"Enroll\",'Enrollment Form'!$AQ672<>\"\"),\"Y\",\"N\")))","v":""},{"$f":"IF($B665=\"N\",\"\",IF(OR('Enrollment Form'!$B672<>\"Subscriber\",'Enrollment Form'!$C672=\"ROC\"),\"-\",IF(AND('Enrollment Form'!$B672=\"Subscriber\",'Enrollment Form'!$C672=\"Enroll\",'Enrollment Form'!$AS672<>\"\"),\"Y\",\"N\")))","v":""},{"$f":"IF($B665=\"N\",\"\",IF($Q665=\"-\",\"-\",IF(AND($Q665=\"Y\",'Enrollment Form'!$AS672=\"No\"),\"-\",IF(AND($Q665=\"Y\",'Enrollment Form'!$AS672=\"Yes\",'Enrollment Form'!$AT672<>\"\"),\"Y\",\"N\"))))","v":""},{"$f":"IF($B665=\"N\",\"\",IF(OR('Enrollment Form'!$B672<>\"Subscriber\",'Enrollment Form'!$C672=\"ROC\"),\"-\",IF(AND('Enrollment Form'!$B672=\"Subscriber\",'Enrollment Form'!$C672=\"Enroll\",'Enrollment Form'!$CV672<>\"\"),\"Y\",\"N\")))","v":""},{"$f":"IF($B665=\"N\",\"\",IF($S665=\"-\",\"-\",IF(AND($S665=\"Y\",'Enrollment Form'!$CV672=\"No\"),\"-\",IF(AND($S665=\"Y\",'Enrollment Form'!$CV672=\"Yes\",'Enrollment Form'!$CW672<>\"\"),\"Y\",\"N\"))))","v":""},{"$f":"IF(OR('Enrollment Form'!$AY672=\"Yes\",'Enrollment Form'!$AY672=\"\"),\"-\",IF(OR(AND('Enrollment Form'!$AY672=\"No\",ISERROR(FIND(\"HMO\",VLOOKUP('Enrollment Form'!G672,'Enrollment Form'!H$11:J$1000,3,FALSE),1))=FALSE,COUNTA('Enrollment Form'!$AZ672:$BC672)=4),AND('Enrollment Form'!$AY672=\"No\",ISERROR(FIND(\"HMO\",VLOOKUP('Enrollment Form'!G672,'Enrollment Form'!H$11:J$1000,3,FALSE),1))=FALSE,COUNTA('Enrollment Form'!$BT672:$BW672)=4)),\"Y\",\"N\"))","v":"-"},{"$f":"IF($B665=\"N\",\"\",IF('Enrollment Form'!$B672=\"Subscriber\",\"-\",IF(COUNTA('Enrollment Form'!$BL672,'Enrollment Form'!$BN672)=2,\"Y\",\"N\")))","v":""},{"$f":"IF($B665=\"N\",\"\",IF(OR('Enrollment Form'!$AX672=\"\",'Enrollment Form'!$AX672=\"No\"),\"-\",IF(AND('Enrollment Form'!$AX672=\"Yes\",COUNTA('Enrollment Form'!$CR672)=1),\"Y\",\"N\")))","v":""},{"$f":"IF(OR('Enrollment Form'!$CR672=\"\",'Enrollment Form'!$CR672=\"No\"),\"-\",IF(COUNTA('Enrollment Form'!$CT672:$CU672)=2,\"Y\",\"N\"))","v":"-"},{"$f":"IF($B665=\"N\",\"\",IF(COUNTIF('Enrollment Form'!$DG672:$DP672,\"Other\")=COUNTA('Enrollment Form'!$DK672,'Enrollment Form'!$DH672,'Enrollment Form'!$DN672,'Enrollment Form'!$DQ672),\"Y\",\"N\"))","v":""},{"$f":"IF($B665=\"N\",\"\",IF(OR('Enrollment Form'!B672<>\"Subscriber\",'Enrollment Form'!C672=\"ROC\",COUNTIF('Enrollment Form'!AV672:AW672,\"Yes\")>=1),\"-\",IF(AND('Enrollment Form'!C672=\"Enroll\",COUNTIF('Enrollment Form'!AV672:AW672,\"No\")=2,'Enrollment Form'!AX672=\"\"),\"N\",\"Y\")))","v":""},{"$f":"IF(OR(B665=\"N\",'Enrollment Form'!B672<>\"Subscriber\",'Enrollment Form'!C672=\"ROC\",'Enrollment Form'!O672<>\"Multiple of Salary\"),\"-\",IF(COUNTA('Enrollment Form'!T672:U672)<2,\"N\",\"Y\"))","v":"-"},{"$f":"IF(B665=\"N\",\"\",IF(OR('Enrollment Form'!C672=\"ROC\",'Enrollment Form'!B672<>\"Subscriber\",'Enrollment Form'!O672=\"Waive\",'Enrollment Form'!O672=\"\"),\"-\",IF('Enrollment Form'!P672=\"\",\"N\",\"Y\")))","v":""},{"$f":"IF($B665=\"N\",\"\",IF(AND('Enrollment Form'!$C672=\"ROC\",'Enrollment Form'!$DR672<>\"\"),\"Y\",IF(AND('Enrollment Form'!$C672=\"ROC\",'Enrollment Form'!$DR672=\"\"),\"N\",IF(AND('Enrollment Form'!$C672=\"Enroll\",'Enrollment Form'!$B672=\"Subscriber\",'Enrollment Form'!$CX672=\"No\",'Enrollment Form'!$DR672=\"\"),\"N\",IF(AND('Enrollment Form'!$C672=\"Enroll\",'Enrollment Form'!$B672=\"Subscriber\",'Enrollment Form'!$CX672=\"Yes\"),\"-\",\"Y\")))))","v":""},{"$f":"IF($B665=\"N\",\"\",IF(AND('Enrollment Form'!$C672=\"ROC\",'Enrollment Form'!$DS672<>\"\"),\"Y\",IF(AND('Enrollment Form'!$C672=\"ROC\",'Enrollment Form'!$DS672=\"\"),\"N\",IF(AND('Enrollment Form'!$C672=\"Enroll\",'Enrollment Form'!$B672=\"Subscriber\",'Enrollment Form'!$CX672=\"No\",'Enrollment Form'!$DS672=\"\"),\"N\",IF(AND('Enrollment Form'!$C672=\"Enroll\",'Enrollment Form'!$B672=\"Subscriber\",'Enrollment Form'!$CX672=\"Yes\"),\"-\",\"Y\")))))","v":""},{"$f":"IF('Enrollment Form'!AH672=\"\",\"\",IF(ISERROR(SEARCH(\".\",'Enrollment Form'!AH672,SEARCH(\"@\",'Enrollment Form'!AH672))),\"N\",\"Y\"))","v":""},{"$f":"IF(OR($B665=\"N\",'Enrollment Form'!$G672=\"\"),\"\",IF('Enrollment Form'!$B672<>\"Subscriber\",\"-\",IF(COUNTIF('Enrollment Form'!$AV672:$AW672,\"Yes\")=2,\"N\",\"Y\")))","v":""},{"$f":"IF(OR('Enrollment Form'!$CJ672=\"\",'Enrollment Form'!$CJ672=\"No\"),\"-\",IF(AND('Enrollment Form'!$CJ672=\"Yes\",'Enrollment Form'!$CK672=\"\"),\"N\",\"Y\"))","v":"-"},{"$f":"IF(OR('Enrollment Form'!$CL672=\"\",'Enrollment Form'!$CL672=\"No\"),\"-\",IF(AND('Enrollment Form'!$CL672=\"Yes\",'Enrollment Form'!$CM672=\"\"),\"N\",\"Y\"))","v":"-"},{"$f":"IF(OR('Enrollment Form'!$CN672=\"\",'Enrollment Form'!$CN672=\"No\"),\"-\",IF(AND('Enrollment Form'!$CN672=\"Yes\",'Enrollment Form'!$CO672=\"\"),\"N\",\"Y\"))","v":"-"},{"$f":"IF(OR('Enrollment Form'!$CN672=\"\",'Enrollment Form'!$CN672=\"No\"),\"-\",IF(AND('Enrollment Form'!$CN672=\"Yes\",'Enrollment Form'!$CP672=\"\"),\"N\",\"Y\"))","v":"-"},{"$f":"IF('Enrollment Form'!B672<>\"Subscriber\",\"-\",IF(AND('Enrollment Form'!B672=\"Subscriber\",'Enrollment Form'!C672=\"Enroll\",'Enrollment Form'!AA672=\"\"),\"N\",\"Y\"))","v":"-"},{"$f":"IF(OR('Enrollment Form'!B672=\"Subscriber\",'Enrollment Form'!B672=\"\"),\"-\",IF('Enrollment Form'!BP672=\"\",\"N\",\"Y\"))","v":"-"},{"$f":"IF('Enrollment Form'!B672<>\"Subscriber\",\"-\",IF(AND('Enrollment Form'!B672=\"Subscriber\",'Enrollment Form'!G672=\"\"),\"N\",\"Y\"))","v":"-"},{"$f":"IF('Enrollment Form'!A672=\"\",\"\",IF('Enrollment Form'!B672=\"Subscriber\",\"-\",IF(AND('Enrollment Form'!B672<>\"Subscriber\",'Enrollment Form'!G672='Enrollment Form'!H672),\"N\",\"Y\")))","v":""},0]
[673,{"$f":"IF('Enrollment Form'!$A673<>\"\",\"Y\",\"N\")","v":"N"},{"$f":"IF(AND('Enrollment Form'!$B673=\"\",'Enrollment Form'!$C673<>\"\"),\"N\",IF($B666=\"N\",\"\",\"Y\"))","v":""},{"$f":"IF(OR($B666=\"N\",'Enrollment Form'!G673=\"\"),\"\",IF('Enrollment Form'!$B673<>\"Subscriber\",\"\",IF('Enrollment Form'!$G673='Enrollment Form'!$H673,\"Y\",\"N\")))","v":""},{"$f":"IF($B666=\"N\",\"\",IF(AND(COUNTIFS('Enrollment Form'!$H$11:$H$1000,'Enrollment Form'!$H673,'Enrollment Form'!$B$11:$B$1000,'Enrollment Form'!$B673)>1,'Enrollment Form'!$H673<>\"\"),\"N\",\"Y\"))","v":""},{"$f":"IF($B666=\"N\",\"\",IF(LEN('Enrollment Form'!$Y673)=0,\"\",IF(LEN('Enrollment Form'!$Y673)<>5,\"N\",\"Y\")))","v":""},{"$f":"IF($B666=\"N\",\"\",IF(LEN('Enrollment Form'!$AD673=0),\"\",IF(LEN('Enrollment Form'!$AD673)<>5,\"N\",\"Y\")))","v":""},{"$f":"IF($B666=\"N\",\"\",IF(LEN('Enrollment Form'!$BS673=0),\"\",IF(LEN('Enrollment Form'!$BS673)<>5,\"N\",\"Y\")))","v":""},{"$f":"IF($B666=\"N\",\"\",IF(LEN('Enrollment Form'!$AE673)=0,\"\",IF(LEN('Enrollment Form'!$AE673)<>10,\"N\",\"Y\")))","v":""},{"$f":"IF($B666=\"N\",\"\",IF(LEN('Enrollment Form'!$AF673)=0,\"\",IF(LEN('Enrollment Form'!$AF673)<>10,\"N\",\"Y\")))","v":""},{"$f":"IF('Enrollment Form'!$O673<>\"Graded\",\"-\",IF(AND('Enrollment Form'!$O673=\"Graded\",'Enrollment Form'!$AR673<>\"\"),\"Y\",\"N\"))","v":"-"},{"$f":"IF($B666=\"N\",\"\",IF(OR('Enrollment Form'!$B673<>\"Subscriber\",'Enrollment Form'!$C673=\"ROC\"),\"-\",IF(AND('Enrollment Form'!$B673=\"Subscriber\",'Enrollment Form'!$C673=\"Enroll\",'Enrollment Form'!$AJ673<>\"\"),\"Y\",\"N\")))","v":""},{"$f":"IF($B666=\"N\",\"\",IF(OR('Enrollment Form'!$B673<>\"Subscriber\",'Enrollment Form'!$C673=\"ROC\"),\"-\",IF(AND('Enrollment Form'!$B673=\"Subscriber\",'Enrollment Form'!$C673=\"Enroll\",'Enrollment Form'!$AK673<>\"\"),\"Y\",\"N\")))","v":""},{"$f":"IF($B666=\"N\",\"\",IF(OR('Enrollment Form'!$B673<>\"Subscriber\",'Enrollment Form'!$C673=\"ROC\"),\"-\",IF(AND('Enrollment Form'!$B673=\"Subscriber\",'Enrollment Form'!$C673=\"Enroll\",'Enrollment Form'!$AL673<>\"\"),\"Y\",\"N\")))","v":""},{"$f":"IF($B666=\"N\",\"\",IF(OR('Enrollment Form'!$B673<>\"Subscriber\",'Enrollment Form'!$C673=\"ROC\"),\"-\",IF(AND('Enrollment Form'!$B673=\"Subscriber\",'Enrollment Form'!$C673=\"Enroll\",'Enrollment Form'!$AP673<>\"\"),\"Y\",\"N\")))","v":""},{"$f":"IF($B666=\"N\",\"\",IF(OR('Enrollment Form'!$B673<>\"Subscriber\",'Enrollment Form'!$C673=\"ROC\"),\"-\",IF(AND('Enrollment Form'!$B673=\"Subscriber\",'Enrollment Form'!$C673=\"Enroll\",'Enrollment Form'!$AQ673<>\"\"),\"Y\",\"N\")))","v":""},{"$f":"IF($B666=\"N\",\"\",IF(OR('Enrollment Form'!$B673<>\"Subscriber\",'Enrollment Form'!$C673=\"ROC\"),\"-\",IF(AND('Enrollment Form'!$B673=\"Subscriber\",'Enrollment Form'!$C673=\"Enroll\",'Enrollment Form'!$AS673<>\"\"),\"Y\",\"N\")))","v":""},{"$f":"IF($B666=\"N\",\"\",IF($Q666=\"-\",\"-\",IF(AND($Q666=\"Y\",'Enrollment Form'!$AS673=\"No\"),\"-\",IF(AND($Q666=\"Y\",'Enrollment Form'!$AS673=\"Yes\",'Enrollment Form'!$AT673<>\"\"),\"Y\",\"N\"))))","v":""},{"$f":"IF($B666=\"N\",\"\",IF(OR('Enrollment Form'!$B673<>\"Subscriber\",'Enrollment Form'!$C673=\"ROC\"),\"-\",IF(AND('Enrollment Form'!$B673=\"Subscriber\",'Enrollment Form'!$C673=\"Enroll\",'Enrollment Form'!$CV673<>\"\"),\"Y\",\"N\")))","v":""},{"$f":"IF($B666=\"N\",\"\",IF($S666=\"-\",\"-\",IF(AND($S666=\"Y\",'Enrollment Form'!$CV673=\"No\"),\"-\",IF(AND($S666=\"Y\",'Enrollment Form'!$CV673=\"Yes\",'Enrollment Form'!$CW673<>\"\"),\"Y\",\"N\"))))","v":""},{"$f":"IF(OR('Enrollment Form'!$AY673=\"Yes\",'Enrollment Form'!$AY673=\"\"),\"-\",IF(OR(AND('Enrollment Form'!$AY673=\"No\",ISERROR(FIND(\"HMO\",VLOOKUP('Enrollment Form'!G673,'Enrollment Form'!H$11:J$1000,3,FALSE),1))=FALSE,COUNTA('Enrollment Form'!$AZ673:$BC673)=4),AND('Enrollment Form'!$AY673=\"No\",ISERROR(FIND(\"HMO\",VLOOKUP('Enrollment Form'!G673,'Enrollment Form'!H$11:J$1000,3,FALSE),1))=FALSE,COUNTA('Enrollment Form'!$BT673:$BW673)=4)),\"Y\",\"N\"))","v":"-"},{"$f":"IF($B666=\"N\",\"\",IF('Enrollment Form'!$B673=\"Subscriber\",\"-\",IF(COUNTA('Enrollment Form'!$BL673,'Enrollment Form'!$BN673)=2,\"Y\",\"N\")))","v":""},{"$f":"IF($B666=\"N\",\"\",IF(OR('Enrollment Form'!$AX673=\"\",'Enrollment Form'!$AX673=\"No\"),\"-\",IF(AND('Enrollment Form'!$AX673=\"Yes\",COUNTA('Enrollment Form'!$CR673)=1),\"Y\",\"N\")))","v":""},{"$f":"IF(OR('Enrollment Form'!$CR673=\"\",'Enrollment Form'!$CR673=\"No\"),\"-\",IF(COUNTA('Enrollment Form'!$CT673:$CU673)=2,\"Y\",\"N\"))","v":"-"},{"$f":"IF($B666=\"N\",\"\",IF(COUNTIF('Enrollment Form'!$DG673:$DP673,\"Other\")=COUNTA('Enrollment Form'!$DK673,'Enrollment Form'!$DH673,'Enrollment Form'!$DN673,'Enrollment Form'!$DQ673),\"Y\",\"N\"))","v":""},{"$f":"IF($B666=\"N\",\"\",IF(OR('Enrollment Form'!B673<>\"Subscriber\",'Enrollment Form'!C673=\"ROC\",COUNTIF('Enrollment Form'!AV673:AW673,\"Yes\")>=1),\"-\",IF(AND('Enrollment Form'!C673=\"Enroll\",COUNTIF('Enrollment Form'!AV673:AW673,\"No\")=2,'Enrollment Form'!AX673=\"\"),\"N\",\"Y\")))","v":""},{"$f":"IF(OR(B666=\"N\",'Enrollment Form'!B673<>\"Subscriber\",'Enrollment Form'!C673=\"ROC\",'Enrollment Form'!O673<>\"Multiple of Salary\"),\"-\",IF(COUNTA('Enrollment Form'!T673:U673)<2,\"N\",\"Y\"))","v":"-"},{"$f":"IF(B666=\"N\",\"\",IF(OR('Enrollment Form'!C673=\"ROC\",'Enrollment Form'!B673<>\"Subscriber\",'Enrollment Form'!O673=\"Waive\",'Enrollment Form'!O673=\"\"),\"-\",IF('Enrollment Form'!P673=\"\",\"N\",\"Y\")))","v":""},{"$f":"IF($B666=\"N\",\"\",IF(AND('Enrollment Form'!$C673=\"ROC\",'Enrollment Form'!$DR673<>\"\"),\"Y\",IF(AND('Enrollment Form'!$C673=\"ROC\",'Enrollment Form'!$DR673=\"\"),\"N\",IF(AND('Enrollment Form'!$C673=\"Enroll\",'Enrollment Form'!$B673=\"Subscriber\",'Enrollment Form'!$CX673=\"No\",'Enrollment Form'!$DR673=\"\"),\"N\",IF(AND('Enrollment Form'!$C673=\"Enroll\",'Enrollment Form'!$B673=\"Subscriber\",'Enrollment Form'!$CX673=\"Yes\"),\"-\",\"Y\")))))","v":""},{"$f":"IF($B666=\"N\",\"\",IF(AND('Enrollment Form'!$C673=\"ROC\",'Enrollment Form'!$DS673<>\"\"),\"Y\",IF(AND('Enrollment Form'!$C673=\"ROC\",'Enrollment Form'!$DS673=\"\"),\"N\",IF(AND('Enrollment Form'!$C673=\"Enroll\",'Enrollment Form'!$B673=\"Subscriber\",'Enrollment Form'!$CX673=\"No\",'Enrollment Form'!$DS673=\"\"),\"N\",IF(AND('Enrollment Form'!$C673=\"Enroll\",'Enrollment Form'!$B673=\"Subscriber\",'Enrollment Form'!$CX673=\"Yes\"),\"-\",\"Y\")))))","v":""},{"$f":"IF('Enrollment Form'!AH673=\"\",\"\",IF(ISERROR(SEARCH(\".\",'Enrollment Form'!AH673,SEARCH(\"@\",'Enrollment Form'!AH673))),\"N\",\"Y\"))","v":""},{"$f":"IF(OR($B666=\"N\",'Enrollment Form'!$G673=\"\"),\"\",IF('Enrollment Form'!$B673<>\"Subscriber\",\"-\",IF(COUNTIF('Enrollment Form'!$AV673:$AW673,\"Yes\")=2,\"N\",\"Y\")))","v":""},{"$f":"IF(OR('Enrollment Form'!$CJ673=\"\",'Enrollment Form'!$CJ673=\"No\"),\"-\",IF(AND('Enrollment Form'!$CJ673=\"Yes\",'Enrollment Form'!$CK673=\"\"),\"N\",\"Y\"))","v":"-"},{"$f":"IF(OR('Enrollment Form'!$CL673=\"\",'Enrollment Form'!$CL673=\"No\"),\"-\",IF(AND('Enrollment Form'!$CL673=\"Yes\",'Enrollment Form'!$CM673=\"\"),\"N\",\"Y\"))","v":"-"},{"$f":"IF(OR('Enrollment Form'!$CN673=\"\",'Enrollment Form'!$CN673=\"No\"),\"-\",IF(AND('Enrollment Form'!$CN673=\"Yes\",'Enrollment Form'!$CO673=\"\"),\"N\",\"Y\"))","v":"-"},{"$f":"IF(OR('Enrollment Form'!$CN673=\"\",'Enrollment Form'!$CN673=\"No\"),\"-\",IF(AND('Enrollment Form'!$CN673=\"Yes\",'Enrollment Form'!$CP673=\"\"),\"N\",\"Y\"))","v":"-"},{"$f":"IF('Enrollment Form'!B673<>\"Subscriber\",\"-\",IF(AND('Enrollment Form'!B673=\"Subscriber\",'Enrollment Form'!C673=\"Enroll\",'Enrollment Form'!AA673=\"\"),\"N\",\"Y\"))","v":"-"},{"$f":"IF(OR('Enrollment Form'!B673=\"Subscriber\",'Enrollment Form'!B673=\"\"),\"-\",IF('Enrollment Form'!BP673=\"\",\"N\",\"Y\"))","v":"-"},{"$f":"IF('Enrollment Form'!B673<>\"Subscriber\",\"-\",IF(AND('Enrollment Form'!B673=\"Subscriber\",'Enrollment Form'!G673=\"\"),\"N\",\"Y\"))","v":"-"},{"$f":"IF('Enrollment Form'!A673=\"\",\"\",IF('Enrollment Form'!B673=\"Subscriber\",\"-\",IF(AND('Enrollment Form'!B673<>\"Subscriber\",'Enrollment Form'!G673='Enrollment Form'!H673),\"N\",\"Y\")))","v":""},0]
[674,{"$f":"IF('Enrollment Form'!$A674<>\"\",\"Y\",\"N\")","v":"N"},{"$f":"IF(AND('Enrollment Form'!$B674=\"\",'Enrollment Form'!$C674<>\"\"),\"N\",IF($B667=\"N\",\"\",\"Y\"))","v":""},{"$f":"IF(OR($B667=\"N\",'Enrollment Form'!G674=\"\"),\"\",IF('Enrollment Form'!$B674<>\"Subscriber\",\"\",IF('Enrollment Form'!$G674='Enrollment Form'!$H674,\"Y\",\"N\")))","v":""},{"$f":"IF($B667=\"N\",\"\",IF(AND(COUNTIFS('Enrollment Form'!$H$11:$H$1000,'Enrollment Form'!$H674,'Enrollment Form'!$B$11:$B$1000,'Enrollment Form'!$B674)>1,'Enrollment Form'!$H674<>\"\"),\"N\",\"Y\"))","v":""},{"$f":"IF($B667=\"N\",\"\",IF(LEN('Enrollment Form'!$Y674)=0,\"\",IF(LEN('Enrollment Form'!$Y674)<>5,\"N\",\"Y\")))","v":""},{"$f":"IF($B667=\"N\",\"\",IF(LEN('Enrollment Form'!$AD674=0),\"\",IF(LEN('Enrollment Form'!$AD674)<>5,\"N\",\"Y\")))","v":""},{"$f":"IF($B667=\"N\",\"\",IF(LEN('Enrollment Form'!$BS674=0),\"\",IF(LEN('Enrollment Form'!$BS674)<>5,\"N\",\"Y\")))","v":""},{"$f":"IF($B667=\"N\",\"\",IF(LEN('Enrollment Form'!$AE674)=0,\"\",IF(LEN('Enrollment Form'!$AE674)<>10,\"N\",\"Y\")))","v":""},{"$f":"IF($B667=\"N\",\"\",IF(LEN('Enrollment Form'!$AF674)=0,\"\",IF(LEN('Enrollment Form'!$AF674)<>10,\"N\",\"Y\")))","v":""},{"$f":"IF('Enrollment Form'!$O674<>\"Graded\",\"-\",IF(AND('Enrollment Form'!$O674=\"Graded\",'Enrollment Form'!$AR674<>\"\"),\"Y\",\"N\"))","v":"-"},{"$f":"IF($B667=\"N\",\"\",IF(OR('Enrollment Form'!$B674<>\"Subscriber\",'Enrollment Form'!$C674=\"ROC\"),\"-\",IF(AND('Enrollment Form'!$B674=\"Subscriber\",'Enrollment Form'!$C674=\"Enroll\",'Enrollment Form'!$AJ674<>\"\"),\"Y\",\"N\")))","v":""},{"$f":"IF($B667=\"N\",\"\",IF(OR('Enrollment Form'!$B674<>\"Subscriber\",'Enrollment Form'!$C674=\"ROC\"),\"-\",IF(AND('Enrollment Form'!$B674=\"Subscriber\",'Enrollment Form'!$C674=\"Enroll\",'Enrollment Form'!$AK674<>\"\"),\"Y\",\"N\")))","v":""},{"$f":"IF($B667=\"N\",\"\",IF(OR('Enrollment Form'!$B674<>\"Subscriber\",'Enrollment Form'!$C674=\"ROC\"),\"-\",IF(AND('Enrollment Form'!$B674=\"Subscriber\",'Enrollment Form'!$C674=\"Enroll\",'Enrollment Form'!$AL674<>\"\"),\"Y\",\"N\")))","v":""},{"$f":"IF($B667=\"N\",\"\",IF(OR('Enrollment Form'!$B674<>\"Subscriber\",'Enrollment Form'!$C674=\"ROC\"),\"-\",IF(AND('Enrollment Form'!$B674=\"Subscriber\",'Enrollment Form'!$C674=\"Enroll\",'Enrollment Form'!$AP674<>\"\"),\"Y\",\"N\")))","v":""},{"$f":"IF($B667=\"N\",\"\",IF(OR('Enrollment Form'!$B674<>\"Subscriber\",'Enrollment Form'!$C674=\"ROC\"),\"-\",IF(AND('Enrollment Form'!$B674=\"Subscriber\",'Enrollment Form'!$C674=\"Enroll\",'Enrollment Form'!$AQ674<>\"\"),\"Y\",\"N\")))","v":""},{"$f":"IF($B667=\"N\",\"\",IF(OR('Enrollment Form'!$B674<>\"Subscriber\",'Enrollment Form'!$C674=\"ROC\"),\"-\",IF(AND('Enrollment Form'!$B674=\"Subscriber\",'Enrollment Form'!$C674=\"Enroll\",'Enrollment Form'!$AS674<>\"\"),\"Y\",\"N\")))","v":""},{"$f":"IF($B667=\"N\",\"\",IF($Q667=\"-\",\"-\",IF(AND($Q667=\"Y\",'Enrollment Form'!$AS674=\"No\"),\"-\",IF(AND($Q667=\"Y\",'Enrollment Form'!$AS674=\"Yes\",'Enrollment Form'!$AT674<>\"\"),\"Y\",\"N\"))))","v":""},{"$f":"IF($B667=\"N\",\"\",IF(OR('Enrollment Form'!$B674<>\"Subscriber\",'Enrollment Form'!$C674=\"ROC\"),\"-\",IF(AND('Enrollment Form'!$B674=\"Subscriber\",'Enrollment Form'!$C674=\"Enroll\",'Enrollment Form'!$CV674<>\"\"),\"Y\",\"N\")))","v":""},{"$f":"IF($B667=\"N\",\"\",IF($S667=\"-\",\"-\",IF(AND($S667=\"Y\",'Enrollment Form'!$CV674=\"No\"),\"-\",IF(AND($S667=\"Y\",'Enrollment Form'!$CV674=\"Yes\",'Enrollment Form'!$CW674<>\"\"),\"Y\",\"N\"))))","v":""},{"$f":"IF(OR('Enrollment Form'!$AY674=\"Yes\",'Enrollment Form'!$AY674=\"\"),\"-\",IF(OR(AND('Enrollment Form'!$AY674=\"No\",ISERROR(FIND(\"HMO\",VLOOKUP('Enrollment Form'!G674,'Enrollment Form'!H$11:J$1000,3,FALSE),1))=FALSE,COUNTA('Enrollment Form'!$AZ674:$BC674)=4),AND('Enrollment Form'!$AY674=\"No\",ISERROR(FIND(\"HMO\",VLOOKUP('Enrollment Form'!G674,'Enrollment Form'!H$11:J$1000,3,FALSE),1))=FALSE,COUNTA('Enrollment Form'!$BT674:$BW674)=4)),\"Y\",\"N\"))","v":"-"},{"$f":"IF($B667=\"N\",\"\",IF('Enrollment Form'!$B674=\"Subscriber\",\"-\",IF(COUNTA('Enrollment Form'!$BL674,'Enrollment Form'!$BN674)=2,\"Y\",\"N\")))","v":""},{"$f":"IF($B667=\"N\",\"\",IF(OR('Enrollment Form'!$AX674=\"\",'Enrollment Form'!$AX674=\"No\"),\"-\",IF(AND('Enrollment Form'!$AX674=\"Yes\",COUNTA('Enrollment Form'!$CR674)=1),\"Y\",\"N\")))","v":""},{"$f":"IF(OR('Enrollment Form'!$CR674=\"\",'Enrollment Form'!$CR674=\"No\"),\"-\",IF(COUNTA('Enrollment Form'!$CT674:$CU674)=2,\"Y\",\"N\"))","v":"-"},{"$f":"IF($B667=\"N\",\"\",IF(COUNTIF('Enrollment Form'!$DG674:$DP674,\"Other\")=COUNTA('Enrollment Form'!$DK674,'Enrollment Form'!$DH674,'Enrollment Form'!$DN674,'Enrollment Form'!$DQ674),\"Y\",\"N\"))","v":""},{"$f":"IF($B667=\"N\",\"\",IF(OR('Enrollment Form'!B674<>\"Subscriber\",'Enrollment Form'!C674=\"ROC\",COUNTIF('Enrollment Form'!AV674:AW674,\"Yes\")>=1),\"-\",IF(AND('Enrollment Form'!C674=\"Enroll\",COUNTIF('Enrollment Form'!AV674:AW674,\"No\")=2,'Enrollment Form'!AX674=\"\"),\"N\",\"Y\")))","v":""},{"$f":"IF(OR(B667=\"N\",'Enrollment Form'!B674<>\"Subscriber\",'Enrollment Form'!C674=\"ROC\",'Enrollment Form'!O674<>\"Multiple of Salary\"),\"-\",IF(COUNTA('Enrollment Form'!T674:U674)<2,\"N\",\"Y\"))","v":"-"},{"$f":"IF(B667=\"N\",\"\",IF(OR('Enrollment Form'!C674=\"ROC\",'Enrollment Form'!B674<>\"Subscriber\",'Enrollment Form'!O674=\"Waive\",'Enrollment Form'!O674=\"\"),\"-\",IF('Enrollment Form'!P674=\"\",\"N\",\"Y\")))","v":""},{"$f":"IF($B667=\"N\",\"\",IF(AND('Enrollment Form'!$C674=\"ROC\",'Enrollment Form'!$DR674<>\"\"),\"Y\",IF(AND('Enrollment Form'!$C674=\"ROC\",'Enrollment Form'!$DR674=\"\"),\"N\",IF(AND('Enrollment Form'!$C674=\"Enroll\",'Enrollment Form'!$B674=\"Subscriber\",'Enrollment Form'!$CX674=\"No\",'Enrollment Form'!$DR674=\"\"),\"N\",IF(AND('Enrollment Form'!$C674=\"Enroll\",'Enrollment Form'!$B674=\"Subscriber\",'Enrollment Form'!$CX674=\"Yes\"),\"-\",\"Y\")))))","v":""},{"$f":"IF($B667=\"N\",\"\",IF(AND('Enrollment Form'!$C674=\"ROC\",'Enrollment Form'!$DS674<>\"\"),\"Y\",IF(AND('Enrollment Form'!$C674=\"ROC\",'Enrollment Form'!$DS674=\"\"),\"N\",IF(AND('Enrollment Form'!$C674=\"Enroll\",'Enrollment Form'!$B674=\"Subscriber\",'Enrollment Form'!$CX674=\"No\",'Enrollment Form'!$DS674=\"\"),\"N\",IF(AND('Enrollment Form'!$C674=\"Enroll\",'Enrollment Form'!$B674=\"Subscriber\",'Enrollment Form'!$CX674=\"Yes\"),\"-\",\"Y\")))))","v":""},{"$f":"IF('Enrollment Form'!AH674=\"\",\"\",IF(ISERROR(SEARCH(\".\",'Enrollment Form'!AH674,SEARCH(\"@\",'Enrollment Form'!AH674))),\"N\",\"Y\"))","v":""},{"$f":"IF(OR($B667=\"N\",'Enrollment Form'!$G674=\"\"),\"\",IF('Enrollment Form'!$B674<>\"Subscriber\",\"-\",IF(COUNTIF('Enrollment Form'!$AV674:$AW674,\"Yes\")=2,\"N\",\"Y\")))","v":""},{"$f":"IF(OR('Enrollment Form'!$CJ674=\"\",'Enrollment Form'!$CJ674=\"No\"),\"-\",IF(AND('Enrollment Form'!$CJ674=\"Yes\",'Enrollment Form'!$CK674=\"\"),\"N\",\"Y\"))","v":"-"},{"$f":"IF(OR('Enrollment Form'!$CL674=\"\",'Enrollment Form'!$CL674=\"No\"),\"-\",IF(AND('Enrollment Form'!$CL674=\"Yes\",'Enrollment Form'!$CM674=\"\"),\"N\",\"Y\"))","v":"-"},{"$f":"IF(OR('Enrollment Form'!$CN674=\"\",'Enrollment Form'!$CN674=\"No\"),\"-\",IF(AND('Enrollment Form'!$CN674=\"Yes\",'Enrollment Form'!$CO674=\"\"),\"N\",\"Y\"))","v":"-"},{"$f":"IF(OR('Enrollment Form'!$CN674=\"\",'Enrollment Form'!$CN674=\"No\"),\"-\",IF(AND('Enrollment Form'!$CN674=\"Yes\",'Enrollment Form'!$CP674=\"\"),\"N\",\"Y\"))","v":"-"},{"$f":"IF('Enrollment Form'!B674<>\"Subscriber\",\"-\",IF(AND('Enrollment Form'!B674=\"Subscriber\",'Enrollment Form'!C674=\"Enroll\",'Enrollment Form'!AA674=\"\"),\"N\",\"Y\"))","v":"-"},{"$f":"IF(OR('Enrollment Form'!B674=\"Subscriber\",'Enrollment Form'!B674=\"\"),\"-\",IF('Enrollment Form'!BP674=\"\",\"N\",\"Y\"))","v":"-"},{"$f":"IF('Enrollment Form'!B674<>\"Subscriber\",\"-\",IF(AND('Enrollment Form'!B674=\"Subscriber\",'Enrollment Form'!G674=\"\"),\"N\",\"Y\"))","v":"-"},{"$f":"IF('Enrollment Form'!A674=\"\",\"\",IF('Enrollment Form'!B674=\"Subscriber\",\"-\",IF(AND('Enrollment Form'!B674<>\"Subscriber\",'Enrollment Form'!G674='Enrollment Form'!H674),\"N\",\"Y\")))","v":""},0]
[675,{"$f":"IF('Enrollment Form'!$A675<>\"\",\"Y\",\"N\")","v":"N"},{"$f":"IF(AND('Enrollment Form'!$B675=\"\",'Enrollment Form'!$C675<>\"\"),\"N\",IF($B668=\"N\",\"\",\"Y\"))","v":""},{"$f":"IF(OR($B668=\"N\",'Enrollment Form'!G675=\"\"),\"\",IF('Enrollment Form'!$B675<>\"Subscriber\",\"\",IF('Enrollment Form'!$G675='Enrollment Form'!$H675,\"Y\",\"N\")))","v":""},{"$f":"IF($B668=\"N\",\"\",IF(AND(COUNTIFS('Enrollment Form'!$H$11:$H$1000,'Enrollment Form'!$H675,'Enrollment Form'!$B$11:$B$1000,'Enrollment Form'!$B675)>1,'Enrollment Form'!$H675<>\"\"),\"N\",\"Y\"))","v":""},{"$f":"IF($B668=\"N\",\"\",IF(LEN('Enrollment Form'!$Y675)=0,\"\",IF(LEN('Enrollment Form'!$Y675)<>5,\"N\",\"Y\")))","v":""},{"$f":"IF($B668=\"N\",\"\",IF(LEN('Enrollment Form'!$AD675=0),\"\",IF(LEN('Enrollment Form'!$AD675)<>5,\"N\",\"Y\")))","v":""},{"$f":"IF($B668=\"N\",\"\",IF(LEN('Enrollment Form'!$BS675=0),\"\",IF(LEN('Enrollment Form'!$BS675)<>5,\"N\",\"Y\")))","v":""},{"$f":"IF($B668=\"N\",\"\",IF(LEN('Enrollment Form'!$AE675)=0,\"\",IF(LEN('Enrollment Form'!$AE675)<>10,\"N\",\"Y\")))","v":""},{"$f":"IF($B668=\"N\",\"\",IF(LEN('Enrollment Form'!$AF675)=0,\"\",IF(LEN('Enrollment Form'!$AF675)<>10,\"N\",\"Y\")))","v":""},{"$f":"IF('Enrollment Form'!$O675<>\"Graded\",\"-\",IF(AND('Enrollment Form'!$O675=\"Graded\",'Enrollment Form'!$AR675<>\"\"),\"Y\",\"N\"))","v":"-"},{"$f":"IF($B668=\"N\",\"\",IF(OR('Enrollment Form'!$B675<>\"Subscriber\",'Enrollment Form'!$C675=\"ROC\"),\"-\",IF(AND('Enrollment Form'!$B675=\"Subscriber\",'Enrollment Form'!$C675=\"Enroll\",'Enrollment Form'!$AJ675<>\"\"),\"Y\",\"N\")))","v":""},{"$f":"IF($B668=\"N\",\"\",IF(OR('Enrollment Form'!$B675<>\"Subscriber\",'Enrollment Form'!$C675=\"ROC\"),\"-\",IF(AND('Enrollment Form'!$B675=\"Subscriber\",'Enrollment Form'!$C675=\"Enroll\",'Enrollment Form'!$AK675<>\"\"),\"Y\",\"N\")))","v":""},{"$f":"IF($B668=\"N\",\"\",IF(OR('Enrollment Form'!$B675<>\"Subscriber\",'Enrollment Form'!$C675=\"ROC\"),\"-\",IF(AND('Enrollment Form'!$B675=\"Subscriber\",'Enrollment Form'!$C675=\"Enroll\",'Enrollment Form'!$AL675<>\"\"),\"Y\",\"N\")))","v":""},{"$f":"IF($B668=\"N\",\"\",IF(OR('Enrollment Form'!$B675<>\"Subscriber\",'Enrollment Form'!$C675=\"ROC\"),\"-\",IF(AND('Enrollment Form'!$B675=\"Subscriber\",'Enrollment Form'!$C675=\"Enroll\",'Enrollment Form'!$AP675<>\"\"),\"Y\",\"N\")))","v":""},{"$f":"IF($B668=\"N\",\"\",IF(OR('Enrollment Form'!$B675<>\"Subscriber\",'Enrollment Form'!$C675=\"ROC\"),\"-\",IF(AND('Enrollment Form'!$B675=\"Subscriber\",'Enrollment Form'!$C675=\"Enroll\",'Enrollment Form'!$AQ675<>\"\"),\"Y\",\"N\")))","v":""},{"$f":"IF($B668=\"N\",\"\",IF(OR('Enrollment Form'!$B675<>\"Subscriber\",'Enrollment Form'!$C675=\"ROC\"),\"-\",IF(AND('Enrollment Form'!$B675=\"Subscriber\",'Enrollment Form'!$C675=\"Enroll\",'Enrollment Form'!$AS675<>\"\"),\"Y\",\"N\")))","v":""},{"$f":"IF($B668=\"N\",\"\",IF($Q668=\"-\",\"-\",IF(AND($Q668=\"Y\",'Enrollment Form'!$AS675=\"No\"),\"-\",IF(AND($Q668=\"Y\",'Enrollment Form'!$AS675=\"Yes\",'Enrollment Form'!$AT675<>\"\"),\"Y\",\"N\"))))","v":""},{"$f":"IF($B668=\"N\",\"\",IF(OR('Enrollment Form'!$B675<>\"Subscriber\",'Enrollment Form'!$C675=\"ROC\"),\"-\",IF(AND('Enrollment Form'!$B675=\"Subscriber\",'Enrollment Form'!$C675=\"Enroll\",'Enrollment Form'!$CV675<>\"\"),\"Y\",\"N\")))","v":""},{"$f":"IF($B668=\"N\",\"\",IF($S668=\"-\",\"-\",IF(AND($S668=\"Y\",'Enrollment Form'!$CV675=\"No\"),\"-\",IF(AND($S668=\"Y\",'Enrollment Form'!$CV675=\"Yes\",'Enrollment Form'!$CW675<>\"\"),\"Y\",\"N\"))))","v":""},{"$f":"IF(OR('Enrollment Form'!$AY675=\"Yes\",'Enrollment Form'!$AY675=\"\"),\"-\",IF(OR(AND('Enrollment Form'!$AY675=\"No\",ISERROR(FIND(\"HMO\",VLOOKUP('Enrollment Form'!G675,'Enrollment Form'!H$11:J$1000,3,FALSE),1))=FALSE,COUNTA('Enrollment Form'!$AZ675:$BC675)=4),AND('Enrollment Form'!$AY675=\"No\",ISERROR(FIND(\"HMO\",VLOOKUP('Enrollment Form'!G675,'Enrollment Form'!H$11:J$1000,3,FALSE),1))=FALSE,COUNTA('Enrollment Form'!$BT675:$BW675)=4)),\"Y\",\"N\"))","v":"-"},{"$f":"IF($B668=\"N\",\"\",IF('Enrollment Form'!$B675=\"Subscriber\",\"-\",IF(COUNTA('Enrollment Form'!$BL675,'Enrollment Form'!$BN675)=2,\"Y\",\"N\")))","v":""},{"$f":"IF($B668=\"N\",\"\",IF(OR('Enrollment Form'!$AX675=\"\",'Enrollment Form'!$AX675=\"No\"),\"-\",IF(AND('Enrollment Form'!$AX675=\"Yes\",COUNTA('Enrollment Form'!$CR675)=1),\"Y\",\"N\")))","v":""},{"$f":"IF(OR('Enrollment Form'!$CR675=\"\",'Enrollment Form'!$CR675=\"No\"),\"-\",IF(COUNTA('Enrollment Form'!$CT675:$CU675)=2,\"Y\",\"N\"))","v":"-"},{"$f":"IF($B668=\"N\",\"\",IF(COUNTIF('Enrollment Form'!$DG675:$DP675,\"Other\")=COUNTA('Enrollment Form'!$DK675,'Enrollment Form'!$DH675,'Enrollment Form'!$DN675,'Enrollment Form'!$DQ675),\"Y\",\"N\"))","v":""},{"$f":"IF($B668=\"N\",\"\",IF(OR('Enrollment Form'!B675<>\"Subscriber\",'Enrollment Form'!C675=\"ROC\",COUNTIF('Enrollment Form'!AV675:AW675,\"Yes\")>=1),\"-\",IF(AND('Enrollment Form'!C675=\"Enroll\",COUNTIF('Enrollment Form'!AV675:AW675,\"No\")=2,'Enrollment Form'!AX675=\"\"),\"N\",\"Y\")))","v":""},{"$f":"IF(OR(B668=\"N\",'Enrollment Form'!B675<>\"Subscriber\",'Enrollment Form'!C675=\"ROC\",'Enrollment Form'!O675<>\"Multiple of Salary\"),\"-\",IF(COUNTA('Enrollment Form'!T675:U675)<2,\"N\",\"Y\"))","v":"-"},{"$f":"IF(B668=\"N\",\"\",IF(OR('Enrollment Form'!C675=\"ROC\",'Enrollment Form'!B675<>\"Subscriber\",'Enrollment Form'!O675=\"Waive\",'Enrollment Form'!O675=\"\"),\"-\",IF('Enrollment Form'!P675=\"\",\"N\",\"Y\")))","v":""},{"$f":"IF($B668=\"N\",\"\",IF(AND('Enrollment Form'!$C675=\"ROC\",'Enrollment Form'!$DR675<>\"\"),\"Y\",IF(AND('Enrollment Form'!$C675=\"ROC\",'Enrollment Form'!$DR675=\"\"),\"N\",IF(AND('Enrollment Form'!$C675=\"Enroll\",'Enrollment Form'!$B675=\"Subscriber\",'Enrollment Form'!$CX675=\"No\",'Enrollment Form'!$DR675=\"\"),\"N\",IF(AND('Enrollment Form'!$C675=\"Enroll\",'Enrollment Form'!$B675=\"Subscriber\",'Enrollment Form'!$CX675=\"Yes\"),\"-\",\"Y\")))))","v":""},{"$f":"IF($B668=\"N\",\"\",IF(AND('Enrollment Form'!$C675=\"ROC\",'Enrollment Form'!$DS675<>\"\"),\"Y\",IF(AND('Enrollment Form'!$C675=\"ROC\",'Enrollment Form'!$DS675=\"\"),\"N\",IF(AND('Enrollment Form'!$C675=\"Enroll\",'Enrollment Form'!$B675=\"Subscriber\",'Enrollment Form'!$CX675=\"No\",'Enrollment Form'!$DS675=\"\"),\"N\",IF(AND('Enrollment Form'!$C675=\"Enroll\",'Enrollment Form'!$B675=\"Subscriber\",'Enrollment Form'!$CX675=\"Yes\"),\"-\",\"Y\")))))","v":""},{"$f":"IF('Enrollment Form'!AH675=\"\",\"\",IF(ISERROR(SEARCH(\".\",'Enrollment Form'!AH675,SEARCH(\"@\",'Enrollment Form'!AH675))),\"N\",\"Y\"))","v":""},{"$f":"IF(OR($B668=\"N\",'Enrollment Form'!$G675=\"\"),\"\",IF('Enrollment Form'!$B675<>\"Subscriber\",\"-\",IF(COUNTIF('Enrollment Form'!$AV675:$AW675,\"Yes\")=2,\"N\",\"Y\")))","v":""},{"$f":"IF(OR('Enrollment Form'!$CJ675=\"\",'Enrollment Form'!$CJ675=\"No\"),\"-\",IF(AND('Enrollment Form'!$CJ675=\"Yes\",'Enrollment Form'!$CK675=\"\"),\"N\",\"Y\"))","v":"-"},{"$f":"IF(OR('Enrollment Form'!$CL675=\"\",'Enrollment Form'!$CL675=\"No\"),\"-\",IF(AND('Enrollment Form'!$CL675=\"Yes\",'Enrollment Form'!$CM675=\"\"),\"N\",\"Y\"))","v":"-"},{"$f":"IF(OR('Enrollment Form'!$CN675=\"\",'Enrollment Form'!$CN675=\"No\"),\"-\",IF(AND('Enrollment Form'!$CN675=\"Yes\",'Enrollment Form'!$CO675=\"\"),\"N\",\"Y\"))","v":"-"},{"$f":"IF(OR('Enrollment Form'!$CN675=\"\",'Enrollment Form'!$CN675=\"No\"),\"-\",IF(AND('Enrollment Form'!$CN675=\"Yes\",'Enrollment Form'!$CP675=\"\"),\"N\",\"Y\"))","v":"-"},{"$f":"IF('Enrollment Form'!B675<>\"Subscriber\",\"-\",IF(AND('Enrollment Form'!B675=\"Subscriber\",'Enrollment Form'!C675=\"Enroll\",'Enrollment Form'!AA675=\"\"),\"N\",\"Y\"))","v":"-"},{"$f":"IF(OR('Enrollment Form'!B675=\"Subscriber\",'Enrollment Form'!B675=\"\"),\"-\",IF('Enrollment Form'!BP675=\"\",\"N\",\"Y\"))","v":"-"},{"$f":"IF('Enrollment Form'!B675<>\"Subscriber\",\"-\",IF(AND('Enrollment Form'!B675=\"Subscriber\",'Enrollment Form'!G675=\"\"),\"N\",\"Y\"))","v":"-"},{"$f":"IF('Enrollment Form'!A675=\"\",\"\",IF('Enrollment Form'!B675=\"Subscriber\",\"-\",IF(AND('Enrollment Form'!B675<>\"Subscriber\",'Enrollment Form'!G675='Enrollment Form'!H675),\"N\",\"Y\")))","v":""},0]
[676,{"$f":"IF('Enrollment Form'!$A676<>\"\",\"Y\",\"N\")","v":"N"},{"$f":"IF(AND('Enrollment Form'!$B676=\"\",'Enrollment Form'!$C676<>\"\"),\"N\",IF($B669=\"N\",\"\",\"Y\"))","v":""},{"$f":"IF(OR($B669=\"N\",'Enrollment Form'!G676=\"\"),\"\",IF('Enrollment Form'!$B676<>\"Subscriber\",\"\",IF('Enrollment Form'!$G676='Enrollment Form'!$H676,\"Y\",\"N\")))","v":""},{"$f":"IF($B669=\"N\",\"\",IF(AND(COUNTIFS('Enrollment Form'!$H$11:$H$1000,'Enrollment Form'!$H676,'Enrollment Form'!$B$11:$B$1000,'Enrollment Form'!$B676)>1,'Enrollment Form'!$H676<>\"\"),\"N\",\"Y\"))","v":""},{"$f":"IF($B669=\"N\",\"\",IF(LEN('Enrollment Form'!$Y676)=0,\"\",IF(LEN('Enrollment Form'!$Y676)<>5,\"N\",\"Y\")))","v":""},{"$f":"IF($B669=\"N\",\"\",IF(LEN('Enrollment Form'!$AD676=0),\"\",IF(LEN('Enrollment Form'!$AD676)<>5,\"N\",\"Y\")))","v":""},{"$f":"IF($B669=\"N\",\"\",IF(LEN('Enrollment Form'!$BS676=0),\"\",IF(LEN('Enrollment Form'!$BS676)<>5,\"N\",\"Y\")))","v":""},{"$f":"IF($B669=\"N\",\"\",IF(LEN('Enrollment Form'!$AE676)=0,\"\",IF(LEN('Enrollment Form'!$AE676)<>10,\"N\",\"Y\")))","v":""},{"$f":"IF($B669=\"N\",\"\",IF(LEN('Enrollment Form'!$AF676)=0,\"\",IF(LEN('Enrollment Form'!$AF676)<>10,\"N\",\"Y\")))","v":""},{"$f":"IF('Enrollment Form'!$O676<>\"Graded\",\"-\",IF(AND('Enrollment Form'!$O676=\"Graded\",'Enrollment Form'!$AR676<>\"\"),\"Y\",\"N\"))","v":"-"},{"$f":"IF($B669=\"N\",\"\",IF(OR('Enrollment Form'!$B676<>\"Subscriber\",'Enrollment Form'!$C676=\"ROC\"),\"-\",IF(AND('Enrollment Form'!$B676=\"Subscriber\",'Enrollment Form'!$C676=\"Enroll\",'Enrollment Form'!$AJ676<>\"\"),\"Y\",\"N\")))","v":""},{"$f":"IF($B669=\"N\",\"\",IF(OR('Enrollment Form'!$B676<>\"Subscriber\",'Enrollment Form'!$C676=\"ROC\"),\"-\",IF(AND('Enrollment Form'!$B676=\"Subscriber\",'Enrollment Form'!$C676=\"Enroll\",'Enrollment Form'!$AK676<>\"\"),\"Y\",\"N\")))","v":""},{"$f":"IF($B669=\"N\",\"\",IF(OR('Enrollment Form'!$B676<>\"Subscriber\",'Enrollment Form'!$C676=\"ROC\"),\"-\",IF(AND('Enrollment Form'!$B676=\"Subscriber\",'Enrollment Form'!$C676=\"Enroll\",'Enrollment Form'!$AL676<>\"\"),\"Y\",\"N\")))","v":""},{"$f":"IF($B669=\"N\",\"\",IF(OR('Enrollment Form'!$B676<>\"Subscriber\",'Enrollment Form'!$C676=\"ROC\"),\"-\",IF(AND('Enrollment Form'!$B676=\"Subscriber\",'Enrollment Form'!$C676=\"Enroll\",'Enrollment Form'!$AP676<>\"\"),\"Y\",\"N\")))","v":""},{"$f":"IF($B669=\"N\",\"\",IF(OR('Enrollment Form'!$B676<>\"Subscriber\",'Enrollment Form'!$C676=\"ROC\"),\"-\",IF(AND('Enrollment Form'!$B676=\"Subscriber\",'Enrollment Form'!$C676=\"Enroll\",'Enrollment Form'!$AQ676<>\"\"),\"Y\",\"N\")))","v":""},{"$f":"IF($B669=\"N\",\"\",IF(OR('Enrollment Form'!$B676<>\"Subscriber\",'Enrollment Form'!$C676=\"ROC\"),\"-\",IF(AND('Enrollment Form'!$B676=\"Subscriber\",'Enrollment Form'!$C676=\"Enroll\",'Enrollment Form'!$AS676<>\"\"),\"Y\",\"N\")))","v":""},{"$f":"IF($B669=\"N\",\"\",IF($Q669=\"-\",\"-\",IF(AND($Q669=\"Y\",'Enrollment Form'!$AS676=\"No\"),\"-\",IF(AND($Q669=\"Y\",'Enrollment Form'!$AS676=\"Yes\",'Enrollment Form'!$AT676<>\"\"),\"Y\",\"N\"))))","v":""},{"$f":"IF($B669=\"N\",\"\",IF(OR('Enrollment Form'!$B676<>\"Subscriber\",'Enrollment Form'!$C676=\"ROC\"),\"-\",IF(AND('Enrollment Form'!$B676=\"Subscriber\",'Enrollment Form'!$C676=\"Enroll\",'Enrollment Form'!$CV676<>\"\"),\"Y\",\"N\")))","v":""},{"$f":"IF($B669=\"N\",\"\",IF($S669=\"-\",\"-\",IF(AND($S669=\"Y\",'Enrollment Form'!$CV676=\"No\"),\"-\",IF(AND($S669=\"Y\",'Enrollment Form'!$CV676=\"Yes\",'Enrollment Form'!$CW676<>\"\"),\"Y\",\"N\"))))","v":""},{"$f":"IF(OR('Enrollment Form'!$AY676=\"Yes\",'Enrollment Form'!$AY676=\"\"),\"-\",IF(OR(AND('Enrollment Form'!$AY676=\"No\",ISERROR(FIND(\"HMO\",VLOOKUP('Enrollment Form'!G676,'Enrollment Form'!H$11:J$1000,3,FALSE),1))=FALSE,COUNTA('Enrollment Form'!$AZ676:$BC676)=4),AND('Enrollment Form'!$AY676=\"No\",ISERROR(FIND(\"HMO\",VLOOKUP('Enrollment Form'!G676,'Enrollment Form'!H$11:J$1000,3,FALSE),1))=FALSE,COUNTA('Enrollment Form'!$BT676:$BW676)=4)),\"Y\",\"N\"))","v":"-"},{"$f":"IF($B669=\"N\",\"\",IF('Enrollment Form'!$B676=\"Subscriber\",\"-\",IF(COUNTA('Enrollment Form'!$BL676,'Enrollment Form'!$BN676)=2,\"Y\",\"N\")))","v":""},{"$f":"IF($B669=\"N\",\"\",IF(OR('Enrollment Form'!$AX676=\"\",'Enrollment Form'!$AX676=\"No\"),\"-\",IF(AND('Enrollment Form'!$AX676=\"Yes\",COUNTA('Enrollment Form'!$CR676)=1),\"Y\",\"N\")))","v":""},{"$f":"IF(OR('Enrollment Form'!$CR676=\"\",'Enrollment Form'!$CR676=\"No\"),\"-\",IF(COUNTA('Enrollment Form'!$CT676:$CU676)=2,\"Y\",\"N\"))","v":"-"},{"$f":"IF($B669=\"N\",\"\",IF(COUNTIF('Enrollment Form'!$DG676:$DP676,\"Other\")=COUNTA('Enrollment Form'!$DK676,'Enrollment Form'!$DH676,'Enrollment Form'!$DN676,'Enrollment Form'!$DQ676),\"Y\",\"N\"))","v":""},{"$f":"IF($B669=\"N\",\"\",IF(OR('Enrollment Form'!B676<>\"Subscriber\",'Enrollment Form'!C676=\"ROC\",COUNTIF('Enrollment Form'!AV676:AW676,\"Yes\")>=1),\"-\",IF(AND('Enrollment Form'!C676=\"Enroll\",COUNTIF('Enrollment Form'!AV676:AW676,\"No\")=2,'Enrollment Form'!AX676=\"\"),\"N\",\"Y\")))","v":""},{"$f":"IF(OR(B669=\"N\",'Enrollment Form'!B676<>\"Subscriber\",'Enrollment Form'!C676=\"ROC\",'Enrollment Form'!O676<>\"Multiple of Salary\"),\"-\",IF(COUNTA('Enrollment Form'!T676:U676)<2,\"N\",\"Y\"))","v":"-"},{"$f":"IF(B669=\"N\",\"\",IF(OR('Enrollment Form'!C676=\"ROC\",'Enrollment Form'!B676<>\"Subscriber\",'Enrollment Form'!O676=\"Waive\",'Enrollment Form'!O676=\"\"),\"-\",IF('Enrollment Form'!P676=\"\",\"N\",\"Y\")))","v":""},{"$f":"IF($B669=\"N\",\"\",IF(AND('Enrollment Form'!$C676=\"ROC\",'Enrollment Form'!$DR676<>\"\"),\"Y\",IF(AND('Enrollment Form'!$C676=\"ROC\",'Enrollment Form'!$DR676=\"\"),\"N\",IF(AND('Enrollment Form'!$C676=\"Enroll\",'Enrollment Form'!$B676=\"Subscriber\",'Enrollment Form'!$CX676=\"No\",'Enrollment Form'!$DR676=\"\"),\"N\",IF(AND('Enrollment Form'!$C676=\"Enroll\",'Enrollment Form'!$B676=\"Subscriber\",'Enrollment Form'!$CX676=\"Yes\"),\"-\",\"Y\")))))","v":""},{"$f":"IF($B669=\"N\",\"\",IF(AND('Enrollment Form'!$C676=\"ROC\",'Enrollment Form'!$DS676<>\"\"),\"Y\",IF(AND('Enrollment Form'!$C676=\"ROC\",'Enrollment Form'!$DS676=\"\"),\"N\",IF(AND('Enrollment Form'!$C676=\"Enroll\",'Enrollment Form'!$B676=\"Subscriber\",'Enrollment Form'!$CX676=\"No\",'Enrollment Form'!$DS676=\"\"),\"N\",IF(AND('Enrollment Form'!$C676=\"Enroll\",'Enrollment Form'!$B676=\"Subscriber\",'Enrollment Form'!$CX676=\"Yes\"),\"-\",\"Y\")))))","v":""},{"$f":"IF('Enrollment Form'!AH676=\"\",\"\",IF(ISERROR(SEARCH(\".\",'Enrollment Form'!AH676,SEARCH(\"@\",'Enrollment Form'!AH676))),\"N\",\"Y\"))","v":""},{"$f":"IF(OR($B669=\"N\",'Enrollment Form'!$G676=\"\"),\"\",IF('Enrollment Form'!$B676<>\"Subscriber\",\"-\",IF(COUNTIF('Enrollment Form'!$AV676:$AW676,\"Yes\")=2,\"N\",\"Y\")))","v":""},{"$f":"IF(OR('Enrollment Form'!$CJ676=\"\",'Enrollment Form'!$CJ676=\"No\"),\"-\",IF(AND('Enrollment Form'!$CJ676=\"Yes\",'Enrollment Form'!$CK676=\"\"),\"N\",\"Y\"))","v":"-"},{"$f":"IF(OR('Enrollment Form'!$CL676=\"\",'Enrollment Form'!$CL676=\"No\"),\"-\",IF(AND('Enrollment Form'!$CL676=\"Yes\",'Enrollment Form'!$CM676=\"\"),\"N\",\"Y\"))","v":"-"},{"$f":"IF(OR('Enrollment Form'!$CN676=\"\",'Enrollment Form'!$CN676=\"No\"),\"-\",IF(AND('Enrollment Form'!$CN676=\"Yes\",'Enrollment Form'!$CO676=\"\"),\"N\",\"Y\"))","v":"-"},{"$f":"IF(OR('Enrollment Form'!$CN676=\"\",'Enrollment Form'!$CN676=\"No\"),\"-\",IF(AND('Enrollment Form'!$CN676=\"Yes\",'Enrollment Form'!$CP676=\"\"),\"N\",\"Y\"))","v":"-"},{"$f":"IF('Enrollment Form'!B676<>\"Subscriber\",\"-\",IF(AND('Enrollment Form'!B676=\"Subscriber\",'Enrollment Form'!C676=\"Enroll\",'Enrollment Form'!AA676=\"\"),\"N\",\"Y\"))","v":"-"},{"$f":"IF(OR('Enrollment Form'!B676=\"Subscriber\",'Enrollment Form'!B676=\"\"),\"-\",IF('Enrollment Form'!BP676=\"\",\"N\",\"Y\"))","v":"-"},{"$f":"IF('Enrollment Form'!B676<>\"Subscriber\",\"-\",IF(AND('Enrollment Form'!B676=\"Subscriber\",'Enrollment Form'!G676=\"\"),\"N\",\"Y\"))","v":"-"},{"$f":"IF('Enrollment Form'!A676=\"\",\"\",IF('Enrollment Form'!B676=\"Subscriber\",\"-\",IF(AND('Enrollment Form'!B676<>\"Subscriber\",'Enrollment Form'!G676='Enrollment Form'!H676),\"N\",\"Y\")))","v":""},0]
[677,{"$f":"IF('Enrollment Form'!$A677<>\"\",\"Y\",\"N\")","v":"N"},{"$f":"IF(AND('Enrollment Form'!$B677=\"\",'Enrollment Form'!$C677<>\"\"),\"N\",IF($B670=\"N\",\"\",\"Y\"))","v":""},{"$f":"IF(OR($B670=\"N\",'Enrollment Form'!G677=\"\"),\"\",IF('Enrollment Form'!$B677<>\"Subscriber\",\"\",IF('Enrollment Form'!$G677='Enrollment Form'!$H677,\"Y\",\"N\")))","v":""},{"$f":"IF($B670=\"N\",\"\",IF(AND(COUNTIFS('Enrollment Form'!$H$11:$H$1000,'Enrollment Form'!$H677,'Enrollment Form'!$B$11:$B$1000,'Enrollment Form'!$B677)>1,'Enrollment Form'!$H677<>\"\"),\"N\",\"Y\"))","v":""},{"$f":"IF($B670=\"N\",\"\",IF(LEN('Enrollment Form'!$Y677)=0,\"\",IF(LEN('Enrollment Form'!$Y677)<>5,\"N\",\"Y\")))","v":""},{"$f":"IF($B670=\"N\",\"\",IF(LEN('Enrollment Form'!$AD677=0),\"\",IF(LEN('Enrollment Form'!$AD677)<>5,\"N\",\"Y\")))","v":""},{"$f":"IF($B670=\"N\",\"\",IF(LEN('Enrollment Form'!$BS677=0),\"\",IF(LEN('Enrollment Form'!$BS677)<>5,\"N\",\"Y\")))","v":""},{"$f":"IF($B670=\"N\",\"\",IF(LEN('Enrollment Form'!$AE677)=0,\"\",IF(LEN('Enrollment Form'!$AE677)<>10,\"N\",\"Y\")))","v":""},{"$f":"IF($B670=\"N\",\"\",IF(LEN('Enrollment Form'!$AF677)=0,\"\",IF(LEN('Enrollment Form'!$AF677)<>10,\"N\",\"Y\")))","v":""},{"$f":"IF('Enrollment Form'!$O677<>\"Graded\",\"-\",IF(AND('Enrollment Form'!$O677=\"Graded\",'Enrollment Form'!$AR677<>\"\"),\"Y\",\"N\"))","v":"-"},{"$f":"IF($B670=\"N\",\"\",IF(OR('Enrollment Form'!$B677<>\"Subscriber\",'Enrollment Form'!$C677=\"ROC\"),\"-\",IF(AND('Enrollment Form'!$B677=\"Subscriber\",'Enrollment Form'!$C677=\"Enroll\",'Enrollment Form'!$AJ677<>\"\"),\"Y\",\"N\")))","v":""},{"$f":"IF($B670=\"N\",\"\",IF(OR('Enrollment Form'!$B677<>\"Subscriber\",'Enrollment Form'!$C677=\"ROC\"),\"-\",IF(AND('Enrollment Form'!$B677=\"Subscriber\",'Enrollment Form'!$C677=\"Enroll\",'Enrollment Form'!$AK677<>\"\"),\"Y\",\"N\")))","v":""},{"$f":"IF($B670=\"N\",\"\",IF(OR('Enrollment Form'!$B677<>\"Subscriber\",'Enrollment Form'!$C677=\"ROC\"),\"-\",IF(AND('Enrollment Form'!$B677=\"Subscriber\",'Enrollment Form'!$C677=\"Enroll\",'Enrollment Form'!$AL677<>\"\"),\"Y\",\"N\")))","v":""},{"$f":"IF($B670=\"N\",\"\",IF(OR('Enrollment Form'!$B677<>\"Subscriber\",'Enrollment Form'!$C677=\"ROC\"),\"-\",IF(AND('Enrollment Form'!$B677=\"Subscriber\",'Enrollment Form'!$C677=\"Enroll\",'Enrollment Form'!$AP677<>\"\"),\"Y\",\"N\")))","v":""},{"$f":"IF($B670=\"N\",\"\",IF(OR('Enrollment Form'!$B677<>\"Subscriber\",'Enrollment Form'!$C677=\"ROC\"),\"-\",IF(AND('Enrollment Form'!$B677=\"Subscriber\",'Enrollment Form'!$C677=\"Enroll\",'Enrollment Form'!$AQ677<>\"\"),\"Y\",\"N\")))","v":""},{"$f":"IF($B670=\"N\",\"\",IF(OR('Enrollment Form'!$B677<>\"Subscriber\",'Enrollment Form'!$C677=\"ROC\"),\"-\",IF(AND('Enrollment Form'!$B677=\"Subscriber\",'Enrollment Form'!$C677=\"Enroll\",'Enrollment Form'!$AS677<>\"\"),\"Y\",\"N\")))","v":""},{"$f":"IF($B670=\"N\",\"\",IF($Q670=\"-\",\"-\",IF(AND($Q670=\"Y\",'Enrollment Form'!$AS677=\"No\"),\"-\",IF(AND($Q670=\"Y\",'Enrollment Form'!$AS677=\"Yes\",'Enrollment Form'!$AT677<>\"\"),\"Y\",\"N\"))))","v":""},{"$f":"IF($B670=\"N\",\"\",IF(OR('Enrollment Form'!$B677<>\"Subscriber\",'Enrollment Form'!$C677=\"ROC\"),\"-\",IF(AND('Enrollment Form'!$B677=\"Subscriber\",'Enrollment Form'!$C677=\"Enroll\",'Enrollment Form'!$CV677<>\"\"),\"Y\",\"N\")))","v":""},{"$f":"IF($B670=\"N\",\"\",IF($S670=\"-\",\"-\",IF(AND($S670=\"Y\",'Enrollment Form'!$CV677=\"No\"),\"-\",IF(AND($S670=\"Y\",'Enrollment Form'!$CV677=\"Yes\",'Enrollment Form'!$CW677<>\"\"),\"Y\",\"N\"))))","v":""},{"$f":"IF(OR('Enrollment Form'!$AY677=\"Yes\",'Enrollment Form'!$AY677=\"\"),\"-\",IF(OR(AND('Enrollment Form'!$AY677=\"No\",ISERROR(FIND(\"HMO\",VLOOKUP('Enrollment Form'!G677,'Enrollment Form'!H$11:J$1000,3,FALSE),1))=FALSE,COUNTA('Enrollment Form'!$AZ677:$BC677)=4),AND('Enrollment Form'!$AY677=\"No\",ISERROR(FIND(\"HMO\",VLOOKUP('Enrollment Form'!G677,'Enrollment Form'!H$11:J$1000,3,FALSE),1))=FALSE,COUNTA('Enrollment Form'!$BT677:$BW677)=4)),\"Y\",\"N\"))","v":"-"},{"$f":"IF($B670=\"N\",\"\",IF('Enrollment Form'!$B677=\"Subscriber\",\"-\",IF(COUNTA('Enrollment Form'!$BL677,'Enrollment Form'!$BN677)=2,\"Y\",\"N\")))","v":""},{"$f":"IF($B670=\"N\",\"\",IF(OR('Enrollment Form'!$AX677=\"\",'Enrollment Form'!$AX677=\"No\"),\"-\",IF(AND('Enrollment Form'!$AX677=\"Yes\",COUNTA('Enrollment Form'!$CR677)=1),\"Y\",\"N\")))","v":""},{"$f":"IF(OR('Enrollment Form'!$CR677=\"\",'Enrollment Form'!$CR677=\"No\"),\"-\",IF(COUNTA('Enrollment Form'!$CT677:$CU677)=2,\"Y\",\"N\"))","v":"-"},{"$f":"IF($B670=\"N\",\"\",IF(COUNTIF('Enrollment Form'!$DG677:$DP677,\"Other\")=COUNTA('Enrollment Form'!$DK677,'Enrollment Form'!$DH677,'Enrollment Form'!$DN677,'Enrollment Form'!$DQ677),\"Y\",\"N\"))","v":""},{"$f":"IF($B670=\"N\",\"\",IF(OR('Enrollment Form'!B677<>\"Subscriber\",'Enrollment Form'!C677=\"ROC\",COUNTIF('Enrollment Form'!AV677:AW677,\"Yes\")>=1),\"-\",IF(AND('Enrollment Form'!C677=\"Enroll\",COUNTIF('Enrollment Form'!AV677:AW677,\"No\")=2,'Enrollment Form'!AX677=\"\"),\"N\",\"Y\")))","v":""},{"$f":"IF(OR(B670=\"N\",'Enrollment Form'!B677<>\"Subscriber\",'Enrollment Form'!C677=\"ROC\",'Enrollment Form'!O677<>\"Multiple of Salary\"),\"-\",IF(COUNTA('Enrollment Form'!T677:U677)<2,\"N\",\"Y\"))","v":"-"},{"$f":"IF(B670=\"N\",\"\",IF(OR('Enrollment Form'!C677=\"ROC\",'Enrollment Form'!B677<>\"Subscriber\",'Enrollment Form'!O677=\"Waive\",'Enrollment Form'!O677=\"\"),\"-\",IF('Enrollment Form'!P677=\"\",\"N\",\"Y\")))","v":""},{"$f":"IF($B670=\"N\",\"\",IF(AND('Enrollment Form'!$C677=\"ROC\",'Enrollment Form'!$DR677<>\"\"),\"Y\",IF(AND('Enrollment Form'!$C677=\"ROC\",'Enrollment Form'!$DR677=\"\"),\"N\",IF(AND('Enrollment Form'!$C677=\"Enroll\",'Enrollment Form'!$B677=\"Subscriber\",'Enrollment Form'!$CX677=\"No\",'Enrollment Form'!$DR677=\"\"),\"N\",IF(AND('Enrollment Form'!$C677=\"Enroll\",'Enrollment Form'!$B677=\"Subscriber\",'Enrollment Form'!$CX677=\"Yes\"),\"-\",\"Y\")))))","v":""},{"$f":"IF($B670=\"N\",\"\",IF(AND('Enrollment Form'!$C677=\"ROC\",'Enrollment Form'!$DS677<>\"\"),\"Y\",IF(AND('Enrollment Form'!$C677=\"ROC\",'Enrollment Form'!$DS677=\"\"),\"N\",IF(AND('Enrollment Form'!$C677=\"Enroll\",'Enrollment Form'!$B677=\"Subscriber\",'Enrollment Form'!$CX677=\"No\",'Enrollment Form'!$DS677=\"\"),\"N\",IF(AND('Enrollment Form'!$C677=\"Enroll\",'Enrollment Form'!$B677=\"Subscriber\",'Enrollment Form'!$CX677=\"Yes\"),\"-\",\"Y\")))))","v":""},{"$f":"IF('Enrollment Form'!AH677=\"\",\"\",IF(ISERROR(SEARCH(\".\",'Enrollment Form'!AH677,SEARCH(\"@\",'Enrollment Form'!AH677))),\"N\",\"Y\"))","v":""},{"$f":"IF(OR($B670=\"N\",'Enrollment Form'!$G677=\"\"),\"\",IF('Enrollment Form'!$B677<>\"Subscriber\",\"-\",IF(COUNTIF('Enrollment Form'!$AV677:$AW677,\"Yes\")=2,\"N\",\"Y\")))","v":""},{"$f":"IF(OR('Enrollment Form'!$CJ677=\"\",'Enrollment Form'!$CJ677=\"No\"),\"-\",IF(AND('Enrollment Form'!$CJ677=\"Yes\",'Enrollment Form'!$CK677=\"\"),\"N\",\"Y\"))","v":"-"},{"$f":"IF(OR('Enrollment Form'!$CL677=\"\",'Enrollment Form'!$CL677=\"No\"),\"-\",IF(AND('Enrollment Form'!$CL677=\"Yes\",'Enrollment Form'!$CM677=\"\"),\"N\",\"Y\"))","v":"-"},{"$f":"IF(OR('Enrollment Form'!$CN677=\"\",'Enrollment Form'!$CN677=\"No\"),\"-\",IF(AND('Enrollment Form'!$CN677=\"Yes\",'Enrollment Form'!$CO677=\"\"),\"N\",\"Y\"))","v":"-"},{"$f":"IF(OR('Enrollment Form'!$CN677=\"\",'Enrollment Form'!$CN677=\"No\"),\"-\",IF(AND('Enrollment Form'!$CN677=\"Yes\",'Enrollment Form'!$CP677=\"\"),\"N\",\"Y\"))","v":"-"},{"$f":"IF('Enrollment Form'!B677<>\"Subscriber\",\"-\",IF(AND('Enrollment Form'!B677=\"Subscriber\",'Enrollment Form'!C677=\"Enroll\",'Enrollment Form'!AA677=\"\"),\"N\",\"Y\"))","v":"-"},{"$f":"IF(OR('Enrollment Form'!B677=\"Subscriber\",'Enrollment Form'!B677=\"\"),\"-\",IF('Enrollment Form'!BP677=\"\",\"N\",\"Y\"))","v":"-"},{"$f":"IF('Enrollment Form'!B677<>\"Subscriber\",\"-\",IF(AND('Enrollment Form'!B677=\"Subscriber\",'Enrollment Form'!G677=\"\"),\"N\",\"Y\"))","v":"-"},{"$f":"IF('Enrollment Form'!A677=\"\",\"\",IF('Enrollment Form'!B677=\"Subscriber\",\"-\",IF(AND('Enrollment Form'!B677<>\"Subscriber\",'Enrollment Form'!G677='Enrollment Form'!H677),\"N\",\"Y\")))","v":""},0]
[678,{"$f":"IF('Enrollment Form'!$A678<>\"\",\"Y\",\"N\")","v":"N"},{"$f":"IF(AND('Enrollment Form'!$B678=\"\",'Enrollment Form'!$C678<>\"\"),\"N\",IF($B671=\"N\",\"\",\"Y\"))","v":""},{"$f":"IF(OR($B671=\"N\",'Enrollment Form'!G678=\"\"),\"\",IF('Enrollment Form'!$B678<>\"Subscriber\",\"\",IF('Enrollment Form'!$G678='Enrollment Form'!$H678,\"Y\",\"N\")))","v":""},{"$f":"IF($B671=\"N\",\"\",IF(AND(COUNTIFS('Enrollment Form'!$H$11:$H$1000,'Enrollment Form'!$H678,'Enrollment Form'!$B$11:$B$1000,'Enrollment Form'!$B678)>1,'Enrollment Form'!$H678<>\"\"),\"N\",\"Y\"))","v":""},{"$f":"IF($B671=\"N\",\"\",IF(LEN('Enrollment Form'!$Y678)=0,\"\",IF(LEN('Enrollment Form'!$Y678)<>5,\"N\",\"Y\")))","v":""},{"$f":"IF($B671=\"N\",\"\",IF(LEN('Enrollment Form'!$AD678=0),\"\",IF(LEN('Enrollment Form'!$AD678)<>5,\"N\",\"Y\")))","v":""},{"$f":"IF($B671=\"N\",\"\",IF(LEN('Enrollment Form'!$BS678=0),\"\",IF(LEN('Enrollment Form'!$BS678)<>5,\"N\",\"Y\")))","v":""},{"$f":"IF($B671=\"N\",\"\",IF(LEN('Enrollment Form'!$AE678)=0,\"\",IF(LEN('Enrollment Form'!$AE678)<>10,\"N\",\"Y\")))","v":""},{"$f":"IF($B671=\"N\",\"\",IF(LEN('Enrollment Form'!$AF678)=0,\"\",IF(LEN('Enrollment Form'!$AF678)<>10,\"N\",\"Y\")))","v":""},{"$f":"IF('Enrollment Form'!$O678<>\"Graded\",\"-\",IF(AND('Enrollment Form'!$O678=\"Graded\",'Enrollment Form'!$AR678<>\"\"),\"Y\",\"N\"))","v":"-"},{"$f":"IF($B671=\"N\",\"\",IF(OR('Enrollment Form'!$B678<>\"Subscriber\",'Enrollment Form'!$C678=\"ROC\"),\"-\",IF(AND('Enrollment Form'!$B678=\"Subscriber\",'Enrollment Form'!$C678=\"Enroll\",'Enrollment Form'!$AJ678<>\"\"),\"Y\",\"N\")))","v":""},{"$f":"IF($B671=\"N\",\"\",IF(OR('Enrollment Form'!$B678<>\"Subscriber\",'Enrollment Form'!$C678=\"ROC\"),\"-\",IF(AND('Enrollment Form'!$B678=\"Subscriber\",'Enrollment Form'!$C678=\"Enroll\",'Enrollment Form'!$AK678<>\"\"),\"Y\",\"N\")))","v":""},{"$f":"IF($B671=\"N\",\"\",IF(OR('Enrollment Form'!$B678<>\"Subscriber\",'Enrollment Form'!$C678=\"ROC\"),\"-\",IF(AND('Enrollment Form'!$B678=\"Subscriber\",'Enrollment Form'!$C678=\"Enroll\",'Enrollment Form'!$AL678<>\"\"),\"Y\",\"N\")))","v":""},{"$f":"IF($B671=\"N\",\"\",IF(OR('Enrollment Form'!$B678<>\"Subscriber\",'Enrollment Form'!$C678=\"ROC\"),\"-\",IF(AND('Enrollment Form'!$B678=\"Subscriber\",'Enrollment Form'!$C678=\"Enroll\",'Enrollment Form'!$AP678<>\"\"),\"Y\",\"N\")))","v":""},{"$f":"IF($B671=\"N\",\"\",IF(OR('Enrollment Form'!$B678<>\"Subscriber\",'Enrollment Form'!$C678=\"ROC\"),\"-\",IF(AND('Enrollment Form'!$B678=\"Subscriber\",'Enrollment Form'!$C678=\"Enroll\",'Enrollment Form'!$AQ678<>\"\"),\"Y\",\"N\")))","v":""},{"$f":"IF($B671=\"N\",\"\",IF(OR('Enrollment Form'!$B678<>\"Subscriber\",'Enrollment Form'!$C678=\"ROC\"),\"-\",IF(AND('Enrollment Form'!$B678=\"Subscriber\",'Enrollment Form'!$C678=\"Enroll\",'Enrollment Form'!$AS678<>\"\"),\"Y\",\"N\")))","v":""},{"$f":"IF($B671=\"N\",\"\",IF($Q671=\"-\",\"-\",IF(AND($Q671=\"Y\",'Enrollment Form'!$AS678=\"No\"),\"-\",IF(AND($Q671=\"Y\",'Enrollment Form'!$AS678=\"Yes\",'Enrollment Form'!$AT678<>\"\"),\"Y\",\"N\"))))","v":""},{"$f":"IF($B671=\"N\",\"\",IF(OR('Enrollment Form'!$B678<>\"Subscriber\",'Enrollment Form'!$C678=\"ROC\"),\"-\",IF(AND('Enrollment Form'!$B678=\"Subscriber\",'Enrollment Form'!$C678=\"Enroll\",'Enrollment Form'!$CV678<>\"\"),\"Y\",\"N\")))","v":""},{"$f":"IF($B671=\"N\",\"\",IF($S671=\"-\",\"-\",IF(AND($S671=\"Y\",'Enrollment Form'!$CV678=\"No\"),\"-\",IF(AND($S671=\"Y\",'Enrollment Form'!$CV678=\"Yes\",'Enrollment Form'!$CW678<>\"\"),\"Y\",\"N\"))))","v":""},{"$f":"IF(OR('Enrollment Form'!$AY678=\"Yes\",'Enrollment Form'!$AY678=\"\"),\"-\",IF(OR(AND('Enrollment Form'!$AY678=\"No\",ISERROR(FIND(\"HMO\",VLOOKUP('Enrollment Form'!G678,'Enrollment Form'!H$11:J$1000,3,FALSE),1))=FALSE,COUNTA('Enrollment Form'!$AZ678:$BC678)=4),AND('Enrollment Form'!$AY678=\"No\",ISERROR(FIND(\"HMO\",VLOOKUP('Enrollment Form'!G678,'Enrollment Form'!H$11:J$1000,3,FALSE),1))=FALSE,COUNTA('Enrollment Form'!$BT678:$BW678)=4)),\"Y\",\"N\"))","v":"-"},{"$f":"IF($B671=\"N\",\"\",IF('Enrollment Form'!$B678=\"Subscriber\",\"-\",IF(COUNTA('Enrollment Form'!$BL678,'Enrollment Form'!$BN678)=2,\"Y\",\"N\")))","v":""},{"$f":"IF($B671=\"N\",\"\",IF(OR('Enrollment Form'!$AX678=\"\",'Enrollment Form'!$AX678=\"No\"),\"-\",IF(AND('Enrollment Form'!$AX678=\"Yes\",COUNTA('Enrollment Form'!$CR678)=1),\"Y\",\"N\")))","v":""},{"$f":"IF(OR('Enrollment Form'!$CR678=\"\",'Enrollment Form'!$CR678=\"No\"),\"-\",IF(COUNTA('Enrollment Form'!$CT678:$CU678)=2,\"Y\",\"N\"))","v":"-"},{"$f":"IF($B671=\"N\",\"\",IF(COUNTIF('Enrollment Form'!$DG678:$DP678,\"Other\")=COUNTA('Enrollment Form'!$DK678,'Enrollment Form'!$DH678,'Enrollment Form'!$DN678,'Enrollment Form'!$DQ678),\"Y\",\"N\"))","v":""},{"$f":"IF($B671=\"N\",\"\",IF(OR('Enrollment Form'!B678<>\"Subscriber\",'Enrollment Form'!C678=\"ROC\",COUNTIF('Enrollment Form'!AV678:AW678,\"Yes\")>=1),\"-\",IF(AND('Enrollment Form'!C678=\"Enroll\",COUNTIF('Enrollment Form'!AV678:AW678,\"No\")=2,'Enrollment Form'!AX678=\"\"),\"N\",\"Y\")))","v":""},{"$f":"IF(OR(B671=\"N\",'Enrollment Form'!B678<>\"Subscriber\",'Enrollment Form'!C678=\"ROC\",'Enrollment Form'!O678<>\"Multiple of Salary\"),\"-\",IF(COUNTA('Enrollment Form'!T678:U678)<2,\"N\",\"Y\"))","v":"-"},{"$f":"IF(B671=\"N\",\"\",IF(OR('Enrollment Form'!C678=\"ROC\",'Enrollment Form'!B678<>\"Subscriber\",'Enrollment Form'!O678=\"Waive\",'Enrollment Form'!O678=\"\"),\"-\",IF('Enrollment Form'!P678=\"\",\"N\",\"Y\")))","v":""},{"$f":"IF($B671=\"N\",\"\",IF(AND('Enrollment Form'!$C678=\"ROC\",'Enrollment Form'!$DR678<>\"\"),\"Y\",IF(AND('Enrollment Form'!$C678=\"ROC\",'Enrollment Form'!$DR678=\"\"),\"N\",IF(AND('Enrollment Form'!$C678=\"Enroll\",'Enrollment Form'!$B678=\"Subscriber\",'Enrollment Form'!$CX678=\"No\",'Enrollment Form'!$DR678=\"\"),\"N\",IF(AND('Enrollment Form'!$C678=\"Enroll\",'Enrollment Form'!$B678=\"Subscriber\",'Enrollment Form'!$CX678=\"Yes\"),\"-\",\"Y\")))))","v":""},{"$f":"IF($B671=\"N\",\"\",IF(AND('Enrollment Form'!$C678=\"ROC\",'Enrollment Form'!$DS678<>\"\"),\"Y\",IF(AND('Enrollment Form'!$C678=\"ROC\",'Enrollment Form'!$DS678=\"\"),\"N\",IF(AND('Enrollment Form'!$C678=\"Enroll\",'Enrollment Form'!$B678=\"Subscriber\",'Enrollment Form'!$CX678=\"No\",'Enrollment Form'!$DS678=\"\"),\"N\",IF(AND('Enrollment Form'!$C678=\"Enroll\",'Enrollment Form'!$B678=\"Subscriber\",'Enrollment Form'!$CX678=\"Yes\"),\"-\",\"Y\")))))","v":""},{"$f":"IF('Enrollment Form'!AH678=\"\",\"\",IF(ISERROR(SEARCH(\".\",'Enrollment Form'!AH678,SEARCH(\"@\",'Enrollment Form'!AH678))),\"N\",\"Y\"))","v":""},{"$f":"IF(OR($B671=\"N\",'Enrollment Form'!$G678=\"\"),\"\",IF('Enrollment Form'!$B678<>\"Subscriber\",\"-\",IF(COUNTIF('Enrollment Form'!$AV678:$AW678,\"Yes\")=2,\"N\",\"Y\")))","v":""},{"$f":"IF(OR('Enrollment Form'!$CJ678=\"\",'Enrollment Form'!$CJ678=\"No\"),\"-\",IF(AND('Enrollment Form'!$CJ678=\"Yes\",'Enrollment Form'!$CK678=\"\"),\"N\",\"Y\"))","v":"-"},{"$f":"IF(OR('Enrollment Form'!$CL678=\"\",'Enrollment Form'!$CL678=\"No\"),\"-\",IF(AND('Enrollment Form'!$CL678=\"Yes\",'Enrollment Form'!$CM678=\"\"),\"N\",\"Y\"))","v":"-"},{"$f":"IF(OR('Enrollment Form'!$CN678=\"\",'Enrollment Form'!$CN678=\"No\"),\"-\",IF(AND('Enrollment Form'!$CN678=\"Yes\",'Enrollment Form'!$CO678=\"\"),\"N\",\"Y\"))","v":"-"},{"$f":"IF(OR('Enrollment Form'!$CN678=\"\",'Enrollment Form'!$CN678=\"No\"),\"-\",IF(AND('Enrollment Form'!$CN678=\"Yes\",'Enrollment Form'!$CP678=\"\"),\"N\",\"Y\"))","v":"-"},{"$f":"IF('Enrollment Form'!B678<>\"Subscriber\",\"-\",IF(AND('Enrollment Form'!B678=\"Subscriber\",'Enrollment Form'!C678=\"Enroll\",'Enrollment Form'!AA678=\"\"),\"N\",\"Y\"))","v":"-"},{"$f":"IF(OR('Enrollment Form'!B678=\"Subscriber\",'Enrollment Form'!B678=\"\"),\"-\",IF('Enrollment Form'!BP678=\"\",\"N\",\"Y\"))","v":"-"},{"$f":"IF('Enrollment Form'!B678<>\"Subscriber\",\"-\",IF(AND('Enrollment Form'!B678=\"Subscriber\",'Enrollment Form'!G678=\"\"),\"N\",\"Y\"))","v":"-"},{"$f":"IF('Enrollment Form'!A678=\"\",\"\",IF('Enrollment Form'!B678=\"Subscriber\",\"-\",IF(AND('Enrollment Form'!B678<>\"Subscriber\",'Enrollment Form'!G678='Enrollment Form'!H678),\"N\",\"Y\")))","v":""},0]
[679,{"$f":"IF('Enrollment Form'!$A679<>\"\",\"Y\",\"N\")","v":"N"},{"$f":"IF(AND('Enrollment Form'!$B679=\"\",'Enrollment Form'!$C679<>\"\"),\"N\",IF($B672=\"N\",\"\",\"Y\"))","v":""},{"$f":"IF(OR($B672=\"N\",'Enrollment Form'!G679=\"\"),\"\",IF('Enrollment Form'!$B679<>\"Subscriber\",\"\",IF('Enrollment Form'!$G679='Enrollment Form'!$H679,\"Y\",\"N\")))","v":""},{"$f":"IF($B672=\"N\",\"\",IF(AND(COUNTIFS('Enrollment Form'!$H$11:$H$1000,'Enrollment Form'!$H679,'Enrollment Form'!$B$11:$B$1000,'Enrollment Form'!$B679)>1,'Enrollment Form'!$H679<>\"\"),\"N\",\"Y\"))","v":""},{"$f":"IF($B672=\"N\",\"\",IF(LEN('Enrollment Form'!$Y679)=0,\"\",IF(LEN('Enrollment Form'!$Y679)<>5,\"N\",\"Y\")))","v":""},{"$f":"IF($B672=\"N\",\"\",IF(LEN('Enrollment Form'!$AD679=0),\"\",IF(LEN('Enrollment Form'!$AD679)<>5,\"N\",\"Y\")))","v":""},{"$f":"IF($B672=\"N\",\"\",IF(LEN('Enrollment Form'!$BS679=0),\"\",IF(LEN('Enrollment Form'!$BS679)<>5,\"N\",\"Y\")))","v":""},{"$f":"IF($B672=\"N\",\"\",IF(LEN('Enrollment Form'!$AE679)=0,\"\",IF(LEN('Enrollment Form'!$AE679)<>10,\"N\",\"Y\")))","v":""},{"$f":"IF($B672=\"N\",\"\",IF(LEN('Enrollment Form'!$AF679)=0,\"\",IF(LEN('Enrollment Form'!$AF679)<>10,\"N\",\"Y\")))","v":""},{"$f":"IF('Enrollment Form'!$O679<>\"Graded\",\"-\",IF(AND('Enrollment Form'!$O679=\"Graded\",'Enrollment Form'!$AR679<>\"\"),\"Y\",\"N\"))","v":"-"},{"$f":"IF($B672=\"N\",\"\",IF(OR('Enrollment Form'!$B679<>\"Subscriber\",'Enrollment Form'!$C679=\"ROC\"),\"-\",IF(AND('Enrollment Form'!$B679=\"Subscriber\",'Enrollment Form'!$C679=\"Enroll\",'Enrollment Form'!$AJ679<>\"\"),\"Y\",\"N\")))","v":""},{"$f":"IF($B672=\"N\",\"\",IF(OR('Enrollment Form'!$B679<>\"Subscriber\",'Enrollment Form'!$C679=\"ROC\"),\"-\",IF(AND('Enrollment Form'!$B679=\"Subscriber\",'Enrollment Form'!$C679=\"Enroll\",'Enrollment Form'!$AK679<>\"\"),\"Y\",\"N\")))","v":""},{"$f":"IF($B672=\"N\",\"\",IF(OR('Enrollment Form'!$B679<>\"Subscriber\",'Enrollment Form'!$C679=\"ROC\"),\"-\",IF(AND('Enrollment Form'!$B679=\"Subscriber\",'Enrollment Form'!$C679=\"Enroll\",'Enrollment Form'!$AL679<>\"\"),\"Y\",\"N\")))","v":""},{"$f":"IF($B672=\"N\",\"\",IF(OR('Enrollment Form'!$B679<>\"Subscriber\",'Enrollment Form'!$C679=\"ROC\"),\"-\",IF(AND('Enrollment Form'!$B679=\"Subscriber\",'Enrollment Form'!$C679=\"Enroll\",'Enrollment Form'!$AP679<>\"\"),\"Y\",\"N\")))","v":""},{"$f":"IF($B672=\"N\",\"\",IF(OR('Enrollment Form'!$B679<>\"Subscriber\",'Enrollment Form'!$C679=\"ROC\"),\"-\",IF(AND('Enrollment Form'!$B679=\"Subscriber\",'Enrollment Form'!$C679=\"Enroll\",'Enrollment Form'!$AQ679<>\"\"),\"Y\",\"N\")))","v":""},{"$f":"IF($B672=\"N\",\"\",IF(OR('Enrollment Form'!$B679<>\"Subscriber\",'Enrollment Form'!$C679=\"ROC\"),\"-\",IF(AND('Enrollment Form'!$B679=\"Subscriber\",'Enrollment Form'!$C679=\"Enroll\",'Enrollment Form'!$AS679<>\"\"),\"Y\",\"N\")))","v":""},{"$f":"IF($B672=\"N\",\"\",IF($Q672=\"-\",\"-\",IF(AND($Q672=\"Y\",'Enrollment Form'!$AS679=\"No\"),\"-\",IF(AND($Q672=\"Y\",'Enrollment Form'!$AS679=\"Yes\",'Enrollment Form'!$AT679<>\"\"),\"Y\",\"N\"))))","v":""},{"$f":"IF($B672=\"N\",\"\",IF(OR('Enrollment Form'!$B679<>\"Subscriber\",'Enrollment Form'!$C679=\"ROC\"),\"-\",IF(AND('Enrollment Form'!$B679=\"Subscriber\",'Enrollment Form'!$C679=\"Enroll\",'Enrollment Form'!$CV679<>\"\"),\"Y\",\"N\")))","v":""},{"$f":"IF($B672=\"N\",\"\",IF($S672=\"-\",\"-\",IF(AND($S672=\"Y\",'Enrollment Form'!$CV679=\"No\"),\"-\",IF(AND($S672=\"Y\",'Enrollment Form'!$CV679=\"Yes\",'Enrollment Form'!$CW679<>\"\"),\"Y\",\"N\"))))","v":""},{"$f":"IF(OR('Enrollment Form'!$AY679=\"Yes\",'Enrollment Form'!$AY679=\"\"),\"-\",IF(OR(AND('Enrollment Form'!$AY679=\"No\",ISERROR(FIND(\"HMO\",VLOOKUP('Enrollment Form'!G679,'Enrollment Form'!H$11:J$1000,3,FALSE),1))=FALSE,COUNTA('Enrollment Form'!$AZ679:$BC679)=4),AND('Enrollment Form'!$AY679=\"No\",ISERROR(FIND(\"HMO\",VLOOKUP('Enrollment Form'!G679,'Enrollment Form'!H$11:J$1000,3,FALSE),1))=FALSE,COUNTA('Enrollment Form'!$BT679:$BW679)=4)),\"Y\",\"N\"))","v":"-"},{"$f":"IF($B672=\"N\",\"\",IF('Enrollment Form'!$B679=\"Subscriber\",\"-\",IF(COUNTA('Enrollment Form'!$BL679,'Enrollment Form'!$BN679)=2,\"Y\",\"N\")))","v":""},{"$f":"IF($B672=\"N\",\"\",IF(OR('Enrollment Form'!$AX679=\"\",'Enrollment Form'!$AX679=\"No\"),\"-\",IF(AND('Enrollment Form'!$AX679=\"Yes\",COUNTA('Enrollment Form'!$CR679)=1),\"Y\",\"N\")))","v":""},{"$f":"IF(OR('Enrollment Form'!$CR679=\"\",'Enrollment Form'!$CR679=\"No\"),\"-\",IF(COUNTA('Enrollment Form'!$CT679:$CU679)=2,\"Y\",\"N\"))","v":"-"},{"$f":"IF($B672=\"N\",\"\",IF(COUNTIF('Enrollment Form'!$DG679:$DP679,\"Other\")=COUNTA('Enrollment Form'!$DK679,'Enrollment Form'!$DH679,'Enrollment Form'!$DN679,'Enrollment Form'!$DQ679),\"Y\",\"N\"))","v":""},{"$f":"IF($B672=\"N\",\"\",IF(OR('Enrollment Form'!B679<>\"Subscriber\",'Enrollment Form'!C679=\"ROC\",COUNTIF('Enrollment Form'!AV679:AW679,\"Yes\")>=1),\"-\",IF(AND('Enrollment Form'!C679=\"Enroll\",COUNTIF('Enrollment Form'!AV679:AW679,\"No\")=2,'Enrollment Form'!AX679=\"\"),\"N\",\"Y\")))","v":""},{"$f":"IF(OR(B672=\"N\",'Enrollment Form'!B679<>\"Subscriber\",'Enrollment Form'!C679=\"ROC\",'Enrollment Form'!O679<>\"Multiple of Salary\"),\"-\",IF(COUNTA('Enrollment Form'!T679:U679)<2,\"N\",\"Y\"))","v":"-"},{"$f":"IF(B672=\"N\",\"\",IF(OR('Enrollment Form'!C679=\"ROC\",'Enrollment Form'!B679<>\"Subscriber\",'Enrollment Form'!O679=\"Waive\",'Enrollment Form'!O679=\"\"),\"-\",IF('Enrollment Form'!P679=\"\",\"N\",\"Y\")))","v":""},{"$f":"IF($B672=\"N\",\"\",IF(AND('Enrollment Form'!$C679=\"ROC\",'Enrollment Form'!$DR679<>\"\"),\"Y\",IF(AND('Enrollment Form'!$C679=\"ROC\",'Enrollment Form'!$DR679=\"\"),\"N\",IF(AND('Enrollment Form'!$C679=\"Enroll\",'Enrollment Form'!$B679=\"Subscriber\",'Enrollment Form'!$CX679=\"No\",'Enrollment Form'!$DR679=\"\"),\"N\",IF(AND('Enrollment Form'!$C679=\"Enroll\",'Enrollment Form'!$B679=\"Subscriber\",'Enrollment Form'!$CX679=\"Yes\"),\"-\",\"Y\")))))","v":""},{"$f":"IF($B672=\"N\",\"\",IF(AND('Enrollment Form'!$C679=\"ROC\",'Enrollment Form'!$DS679<>\"\"),\"Y\",IF(AND('Enrollment Form'!$C679=\"ROC\",'Enrollment Form'!$DS679=\"\"),\"N\",IF(AND('Enrollment Form'!$C679=\"Enroll\",'Enrollment Form'!$B679=\"Subscriber\",'Enrollment Form'!$CX679=\"No\",'Enrollment Form'!$DS679=\"\"),\"N\",IF(AND('Enrollment Form'!$C679=\"Enroll\",'Enrollment Form'!$B679=\"Subscriber\",'Enrollment Form'!$CX679=\"Yes\"),\"-\",\"Y\")))))","v":""},{"$f":"IF('Enrollment Form'!AH679=\"\",\"\",IF(ISERROR(SEARCH(\".\",'Enrollment Form'!AH679,SEARCH(\"@\",'Enrollment Form'!AH679))),\"N\",\"Y\"))","v":""},{"$f":"IF(OR($B672=\"N\",'Enrollment Form'!$G679=\"\"),\"\",IF('Enrollment Form'!$B679<>\"Subscriber\",\"-\",IF(COUNTIF('Enrollment Form'!$AV679:$AW679,\"Yes\")=2,\"N\",\"Y\")))","v":""},{"$f":"IF(OR('Enrollment Form'!$CJ679=\"\",'Enrollment Form'!$CJ679=\"No\"),\"-\",IF(AND('Enrollment Form'!$CJ679=\"Yes\",'Enrollment Form'!$CK679=\"\"),\"N\",\"Y\"))","v":"-"},{"$f":"IF(OR('Enrollment Form'!$CL679=\"\",'Enrollment Form'!$CL679=\"No\"),\"-\",IF(AND('Enrollment Form'!$CL679=\"Yes\",'Enrollment Form'!$CM679=\"\"),\"N\",\"Y\"))","v":"-"},{"$f":"IF(OR('Enrollment Form'!$CN679=\"\",'Enrollment Form'!$CN679=\"No\"),\"-\",IF(AND('Enrollment Form'!$CN679=\"Yes\",'Enrollment Form'!$CO679=\"\"),\"N\",\"Y\"))","v":"-"},{"$f":"IF(OR('Enrollment Form'!$CN679=\"\",'Enrollment Form'!$CN679=\"No\"),\"-\",IF(AND('Enrollment Form'!$CN679=\"Yes\",'Enrollment Form'!$CP679=\"\"),\"N\",\"Y\"))","v":"-"},{"$f":"IF('Enrollment Form'!B679<>\"Subscriber\",\"-\",IF(AND('Enrollment Form'!B679=\"Subscriber\",'Enrollment Form'!C679=\"Enroll\",'Enrollment Form'!AA679=\"\"),\"N\",\"Y\"))","v":"-"},{"$f":"IF(OR('Enrollment Form'!B679=\"Subscriber\",'Enrollment Form'!B679=\"\"),\"-\",IF('Enrollment Form'!BP679=\"\",\"N\",\"Y\"))","v":"-"},{"$f":"IF('Enrollment Form'!B679<>\"Subscriber\",\"-\",IF(AND('Enrollment Form'!B679=\"Subscriber\",'Enrollment Form'!G679=\"\"),\"N\",\"Y\"))","v":"-"},{"$f":"IF('Enrollment Form'!A679=\"\",\"\",IF('Enrollment Form'!B679=\"Subscriber\",\"-\",IF(AND('Enrollment Form'!B679<>\"Subscriber\",'Enrollment Form'!G679='Enrollment Form'!H679),\"N\",\"Y\")))","v":""},0]
[680,{"$f":"IF('Enrollment Form'!$A680<>\"\",\"Y\",\"N\")","v":"N"},{"$f":"IF(AND('Enrollment Form'!$B680=\"\",'Enrollment Form'!$C680<>\"\"),\"N\",IF($B673=\"N\",\"\",\"Y\"))","v":""},{"$f":"IF(OR($B673=\"N\",'Enrollment Form'!G680=\"\"),\"\",IF('Enrollment Form'!$B680<>\"Subscriber\",\"\",IF('Enrollment Form'!$G680='Enrollment Form'!$H680,\"Y\",\"N\")))","v":""},{"$f":"IF($B673=\"N\",\"\",IF(AND(COUNTIFS('Enrollment Form'!$H$11:$H$1000,'Enrollment Form'!$H680,'Enrollment Form'!$B$11:$B$1000,'Enrollment Form'!$B680)>1,'Enrollment Form'!$H680<>\"\"),\"N\",\"Y\"))","v":""},{"$f":"IF($B673=\"N\",\"\",IF(LEN('Enrollment Form'!$Y680)=0,\"\",IF(LEN('Enrollment Form'!$Y680)<>5,\"N\",\"Y\")))","v":""},{"$f":"IF($B673=\"N\",\"\",IF(LEN('Enrollment Form'!$AD680=0),\"\",IF(LEN('Enrollment Form'!$AD680)<>5,\"N\",\"Y\")))","v":""},{"$f":"IF($B673=\"N\",\"\",IF(LEN('Enrollment Form'!$BS680=0),\"\",IF(LEN('Enrollment Form'!$BS680)<>5,\"N\",\"Y\")))","v":""},{"$f":"IF($B673=\"N\",\"\",IF(LEN('Enrollment Form'!$AE680)=0,\"\",IF(LEN('Enrollment Form'!$AE680)<>10,\"N\",\"Y\")))","v":""},{"$f":"IF($B673=\"N\",\"\",IF(LEN('Enrollment Form'!$AF680)=0,\"\",IF(LEN('Enrollment Form'!$AF680)<>10,\"N\",\"Y\")))","v":""},{"$f":"IF('Enrollment Form'!$O680<>\"Graded\",\"-\",IF(AND('Enrollment Form'!$O680=\"Graded\",'Enrollment Form'!$AR680<>\"\"),\"Y\",\"N\"))","v":"-"},{"$f":"IF($B673=\"N\",\"\",IF(OR('Enrollment Form'!$B680<>\"Subscriber\",'Enrollment Form'!$C680=\"ROC\"),\"-\",IF(AND('Enrollment Form'!$B680=\"Subscriber\",'Enrollment Form'!$C680=\"Enroll\",'Enrollment Form'!$AJ680<>\"\"),\"Y\",\"N\")))","v":""},{"$f":"IF($B673=\"N\",\"\",IF(OR('Enrollment Form'!$B680<>\"Subscriber\",'Enrollment Form'!$C680=\"ROC\"),\"-\",IF(AND('Enrollment Form'!$B680=\"Subscriber\",'Enrollment Form'!$C680=\"Enroll\",'Enrollment Form'!$AK680<>\"\"),\"Y\",\"N\")))","v":""},{"$f":"IF($B673=\"N\",\"\",IF(OR('Enrollment Form'!$B680<>\"Subscriber\",'Enrollment Form'!$C680=\"ROC\"),\"-\",IF(AND('Enrollment Form'!$B680=\"Subscriber\",'Enrollment Form'!$C680=\"Enroll\",'Enrollment Form'!$AL680<>\"\"),\"Y\",\"N\")))","v":""},{"$f":"IF($B673=\"N\",\"\",IF(OR('Enrollment Form'!$B680<>\"Subscriber\",'Enrollment Form'!$C680=\"ROC\"),\"-\",IF(AND('Enrollment Form'!$B680=\"Subscriber\",'Enrollment Form'!$C680=\"Enroll\",'Enrollment Form'!$AP680<>\"\"),\"Y\",\"N\")))","v":""},{"$f":"IF($B673=\"N\",\"\",IF(OR('Enrollment Form'!$B680<>\"Subscriber\",'Enrollment Form'!$C680=\"ROC\"),\"-\",IF(AND('Enrollment Form'!$B680=\"Subscriber\",'Enrollment Form'!$C680=\"Enroll\",'Enrollment Form'!$AQ680<>\"\"),\"Y\",\"N\")))","v":""},{"$f":"IF($B673=\"N\",\"\",IF(OR('Enrollment Form'!$B680<>\"Subscriber\",'Enrollment Form'!$C680=\"ROC\"),\"-\",IF(AND('Enrollment Form'!$B680=\"Subscriber\",'Enrollment Form'!$C680=\"Enroll\",'Enrollment Form'!$AS680<>\"\"),\"Y\",\"N\")))","v":""},{"$f":"IF($B673=\"N\",\"\",IF($Q673=\"-\",\"-\",IF(AND($Q673=\"Y\",'Enrollment Form'!$AS680=\"No\"),\"-\",IF(AND($Q673=\"Y\",'Enrollment Form'!$AS680=\"Yes\",'Enrollment Form'!$AT680<>\"\"),\"Y\",\"N\"))))","v":""},{"$f":"IF($B673=\"N\",\"\",IF(OR('Enrollment Form'!$B680<>\"Subscriber\",'Enrollment Form'!$C680=\"ROC\"),\"-\",IF(AND('Enrollment Form'!$B680=\"Subscriber\",'Enrollment Form'!$C680=\"Enroll\",'Enrollment Form'!$CV680<>\"\"),\"Y\",\"N\")))","v":""},{"$f":"IF($B673=\"N\",\"\",IF($S673=\"-\",\"-\",IF(AND($S673=\"Y\",'Enrollment Form'!$CV680=\"No\"),\"-\",IF(AND($S673=\"Y\",'Enrollment Form'!$CV680=\"Yes\",'Enrollment Form'!$CW680<>\"\"),\"Y\",\"N\"))))","v":""},{"$f":"IF(OR('Enrollment Form'!$AY680=\"Yes\",'Enrollment Form'!$AY680=\"\"),\"-\",IF(OR(AND('Enrollment Form'!$AY680=\"No\",ISERROR(FIND(\"HMO\",VLOOKUP('Enrollment Form'!G680,'Enrollment Form'!H$11:J$1000,3,FALSE),1))=FALSE,COUNTA('Enrollment Form'!$AZ680:$BC680)=4),AND('Enrollment Form'!$AY680=\"No\",ISERROR(FIND(\"HMO\",VLOOKUP('Enrollment Form'!G680,'Enrollment Form'!H$11:J$1000,3,FALSE),1))=FALSE,COUNTA('Enrollment Form'!$BT680:$BW680)=4)),\"Y\",\"N\"))","v":"-"},{"$f":"IF($B673=\"N\",\"\",IF('Enrollment Form'!$B680=\"Subscriber\",\"-\",IF(COUNTA('Enrollment Form'!$BL680,'Enrollment Form'!$BN680)=2,\"Y\",\"N\")))","v":""},{"$f":"IF($B673=\"N\",\"\",IF(OR('Enrollment Form'!$AX680=\"\",'Enrollment Form'!$AX680=\"No\"),\"-\",IF(AND('Enrollment Form'!$AX680=\"Yes\",COUNTA('Enrollment Form'!$CR680)=1),\"Y\",\"N\")))","v":""},{"$f":"IF(OR('Enrollment Form'!$CR680=\"\",'Enrollment Form'!$CR680=\"No\"),\"-\",IF(COUNTA('Enrollment Form'!$CT680:$CU680)=2,\"Y\",\"N\"))","v":"-"},{"$f":"IF($B673=\"N\",\"\",IF(COUNTIF('Enrollment Form'!$DG680:$DP680,\"Other\")=COUNTA('Enrollment Form'!$DK680,'Enrollment Form'!$DH680,'Enrollment Form'!$DN680,'Enrollment Form'!$DQ680),\"Y\",\"N\"))","v":""},{"$f":"IF($B673=\"N\",\"\",IF(OR('Enrollment Form'!B680<>\"Subscriber\",'Enrollment Form'!C680=\"ROC\",COUNTIF('Enrollment Form'!AV680:AW680,\"Yes\")>=1),\"-\",IF(AND('Enrollment Form'!C680=\"Enroll\",COUNTIF('Enrollment Form'!AV680:AW680,\"No\")=2,'Enrollment Form'!AX680=\"\"),\"N\",\"Y\")))","v":""},{"$f":"IF(OR(B673=\"N\",'Enrollment Form'!B680<>\"Subscriber\",'Enrollment Form'!C680=\"ROC\",'Enrollment Form'!O680<>\"Multiple of Salary\"),\"-\",IF(COUNTA('Enrollment Form'!T680:U680)<2,\"N\",\"Y\"))","v":"-"},{"$f":"IF(B673=\"N\",\"\",IF(OR('Enrollment Form'!C680=\"ROC\",'Enrollment Form'!B680<>\"Subscriber\",'Enrollment Form'!O680=\"Waive\",'Enrollment Form'!O680=\"\"),\"-\",IF('Enrollment Form'!P680=\"\",\"N\",\"Y\")))","v":""},{"$f":"IF($B673=\"N\",\"\",IF(AND('Enrollment Form'!$C680=\"ROC\",'Enrollment Form'!$DR680<>\"\"),\"Y\",IF(AND('Enrollment Form'!$C680=\"ROC\",'Enrollment Form'!$DR680=\"\"),\"N\",IF(AND('Enrollment Form'!$C680=\"Enroll\",'Enrollment Form'!$B680=\"Subscriber\",'Enrollment Form'!$CX680=\"No\",'Enrollment Form'!$DR680=\"\"),\"N\",IF(AND('Enrollment Form'!$C680=\"Enroll\",'Enrollment Form'!$B680=\"Subscriber\",'Enrollment Form'!$CX680=\"Yes\"),\"-\",\"Y\")))))","v":""},{"$f":"IF($B673=\"N\",\"\",IF(AND('Enrollment Form'!$C680=\"ROC\",'Enrollment Form'!$DS680<>\"\"),\"Y\",IF(AND('Enrollment Form'!$C680=\"ROC\",'Enrollment Form'!$DS680=\"\"),\"N\",IF(AND('Enrollment Form'!$C680=\"Enroll\",'Enrollment Form'!$B680=\"Subscriber\",'Enrollment Form'!$CX680=\"No\",'Enrollment Form'!$DS680=\"\"),\"N\",IF(AND('Enrollment Form'!$C680=\"Enroll\",'Enrollment Form'!$B680=\"Subscriber\",'Enrollment Form'!$CX680=\"Yes\"),\"-\",\"Y\")))))","v":""},{"$f":"IF('Enrollment Form'!AH680=\"\",\"\",IF(ISERROR(SEARCH(\".\",'Enrollment Form'!AH680,SEARCH(\"@\",'Enrollment Form'!AH680))),\"N\",\"Y\"))","v":""},{"$f":"IF(OR($B673=\"N\",'Enrollment Form'!$G680=\"\"),\"\",IF('Enrollment Form'!$B680<>\"Subscriber\",\"-\",IF(COUNTIF('Enrollment Form'!$AV680:$AW680,\"Yes\")=2,\"N\",\"Y\")))","v":""},{"$f":"IF(OR('Enrollment Form'!$CJ680=\"\",'Enrollment Form'!$CJ680=\"No\"),\"-\",IF(AND('Enrollment Form'!$CJ680=\"Yes\",'Enrollment Form'!$CK680=\"\"),\"N\",\"Y\"))","v":"-"},{"$f":"IF(OR('Enrollment Form'!$CL680=\"\",'Enrollment Form'!$CL680=\"No\"),\"-\",IF(AND('Enrollment Form'!$CL680=\"Yes\",'Enrollment Form'!$CM680=\"\"),\"N\",\"Y\"))","v":"-"},{"$f":"IF(OR('Enrollment Form'!$CN680=\"\",'Enrollment Form'!$CN680=\"No\"),\"-\",IF(AND('Enrollment Form'!$CN680=\"Yes\",'Enrollment Form'!$CO680=\"\"),\"N\",\"Y\"))","v":"-"},{"$f":"IF(OR('Enrollment Form'!$CN680=\"\",'Enrollment Form'!$CN680=\"No\"),\"-\",IF(AND('Enrollment Form'!$CN680=\"Yes\",'Enrollment Form'!$CP680=\"\"),\"N\",\"Y\"))","v":"-"},{"$f":"IF('Enrollment Form'!B680<>\"Subscriber\",\"-\",IF(AND('Enrollment Form'!B680=\"Subscriber\",'Enrollment Form'!C680=\"Enroll\",'Enrollment Form'!AA680=\"\"),\"N\",\"Y\"))","v":"-"},{"$f":"IF(OR('Enrollment Form'!B680=\"Subscriber\",'Enrollment Form'!B680=\"\"),\"-\",IF('Enrollment Form'!BP680=\"\",\"N\",\"Y\"))","v":"-"},{"$f":"IF('Enrollment Form'!B680<>\"Subscriber\",\"-\",IF(AND('Enrollment Form'!B680=\"Subscriber\",'Enrollment Form'!G680=\"\"),\"N\",\"Y\"))","v":"-"},{"$f":"IF('Enrollment Form'!A680=\"\",\"\",IF('Enrollment Form'!B680=\"Subscriber\",\"-\",IF(AND('Enrollment Form'!B680<>\"Subscriber\",'Enrollment Form'!G680='Enrollment Form'!H680),\"N\",\"Y\")))","v":""},0]
[681,{"$f":"IF('Enrollment Form'!$A681<>\"\",\"Y\",\"N\")","v":"N"},{"$f":"IF(AND('Enrollment Form'!$B681=\"\",'Enrollment Form'!$C681<>\"\"),\"N\",IF($B674=\"N\",\"\",\"Y\"))","v":""},{"$f":"IF(OR($B674=\"N\",'Enrollment Form'!G681=\"\"),\"\",IF('Enrollment Form'!$B681<>\"Subscriber\",\"\",IF('Enrollment Form'!$G681='Enrollment Form'!$H681,\"Y\",\"N\")))","v":""},{"$f":"IF($B674=\"N\",\"\",IF(AND(COUNTIFS('Enrollment Form'!$H$11:$H$1000,'Enrollment Form'!$H681,'Enrollment Form'!$B$11:$B$1000,'Enrollment Form'!$B681)>1,'Enrollment Form'!$H681<>\"\"),\"N\",\"Y\"))","v":""},{"$f":"IF($B674=\"N\",\"\",IF(LEN('Enrollment Form'!$Y681)=0,\"\",IF(LEN('Enrollment Form'!$Y681)<>5,\"N\",\"Y\")))","v":""},{"$f":"IF($B674=\"N\",\"\",IF(LEN('Enrollment Form'!$AD681=0),\"\",IF(LEN('Enrollment Form'!$AD681)<>5,\"N\",\"Y\")))","v":""},{"$f":"IF($B674=\"N\",\"\",IF(LEN('Enrollment Form'!$BS681=0),\"\",IF(LEN('Enrollment Form'!$BS681)<>5,\"N\",\"Y\")))","v":""},{"$f":"IF($B674=\"N\",\"\",IF(LEN('Enrollment Form'!$AE681)=0,\"\",IF(LEN('Enrollment Form'!$AE681)<>10,\"N\",\"Y\")))","v":""},{"$f":"IF($B674=\"N\",\"\",IF(LEN('Enrollment Form'!$AF681)=0,\"\",IF(LEN('Enrollment Form'!$AF681)<>10,\"N\",\"Y\")))","v":""},{"$f":"IF('Enrollment Form'!$O681<>\"Graded\",\"-\",IF(AND('Enrollment Form'!$O681=\"Graded\",'Enrollment Form'!$AR681<>\"\"),\"Y\",\"N\"))","v":"-"},{"$f":"IF($B674=\"N\",\"\",IF(OR('Enrollment Form'!$B681<>\"Subscriber\",'Enrollment Form'!$C681=\"ROC\"),\"-\",IF(AND('Enrollment Form'!$B681=\"Subscriber\",'Enrollment Form'!$C681=\"Enroll\",'Enrollment Form'!$AJ681<>\"\"),\"Y\",\"N\")))","v":""},{"$f":"IF($B674=\"N\",\"\",IF(OR('Enrollment Form'!$B681<>\"Subscriber\",'Enrollment Form'!$C681=\"ROC\"),\"-\",IF(AND('Enrollment Form'!$B681=\"Subscriber\",'Enrollment Form'!$C681=\"Enroll\",'Enrollment Form'!$AK681<>\"\"),\"Y\",\"N\")))","v":""},{"$f":"IF($B674=\"N\",\"\",IF(OR('Enrollment Form'!$B681<>\"Subscriber\",'Enrollment Form'!$C681=\"ROC\"),\"-\",IF(AND('Enrollment Form'!$B681=\"Subscriber\",'Enrollment Form'!$C681=\"Enroll\",'Enrollment Form'!$AL681<>\"\"),\"Y\",\"N\")))","v":""},{"$f":"IF($B674=\"N\",\"\",IF(OR('Enrollment Form'!$B681<>\"Subscriber\",'Enrollment Form'!$C681=\"ROC\"),\"-\",IF(AND('Enrollment Form'!$B681=\"Subscriber\",'Enrollment Form'!$C681=\"Enroll\",'Enrollment Form'!$AP681<>\"\"),\"Y\",\"N\")))","v":""},{"$f":"IF($B674=\"N\",\"\",IF(OR('Enrollment Form'!$B681<>\"Subscriber\",'Enrollment Form'!$C681=\"ROC\"),\"-\",IF(AND('Enrollment Form'!$B681=\"Subscriber\",'Enrollment Form'!$C681=\"Enroll\",'Enrollment Form'!$AQ681<>\"\"),\"Y\",\"N\")))","v":""},{"$f":"IF($B674=\"N\",\"\",IF(OR('Enrollment Form'!$B681<>\"Subscriber\",'Enrollment Form'!$C681=\"ROC\"),\"-\",IF(AND('Enrollment Form'!$B681=\"Subscriber\",'Enrollment Form'!$C681=\"Enroll\",'Enrollment Form'!$AS681<>\"\"),\"Y\",\"N\")))","v":""},{"$f":"IF($B674=\"N\",\"\",IF($Q674=\"-\",\"-\",IF(AND($Q674=\"Y\",'Enrollment Form'!$AS681=\"No\"),\"-\",IF(AND($Q674=\"Y\",'Enrollment Form'!$AS681=\"Yes\",'Enrollment Form'!$AT681<>\"\"),\"Y\",\"N\"))))","v":""},{"$f":"IF($B674=\"N\",\"\",IF(OR('Enrollment Form'!$B681<>\"Subscriber\",'Enrollment Form'!$C681=\"ROC\"),\"-\",IF(AND('Enrollment Form'!$B681=\"Subscriber\",'Enrollment Form'!$C681=\"Enroll\",'Enrollment Form'!$CV681<>\"\"),\"Y\",\"N\")))","v":""},{"$f":"IF($B674=\"N\",\"\",IF($S674=\"-\",\"-\",IF(AND($S674=\"Y\",'Enrollment Form'!$CV681=\"No\"),\"-\",IF(AND($S674=\"Y\",'Enrollment Form'!$CV681=\"Yes\",'Enrollment Form'!$CW681<>\"\"),\"Y\",\"N\"))))","v":""},{"$f":"IF(OR('Enrollment Form'!$AY681=\"Yes\",'Enrollment Form'!$AY681=\"\"),\"-\",IF(OR(AND('Enrollment Form'!$AY681=\"No\",ISERROR(FIND(\"HMO\",VLOOKUP('Enrollment Form'!G681,'Enrollment Form'!H$11:J$1000,3,FALSE),1))=FALSE,COUNTA('Enrollment Form'!$AZ681:$BC681)=4),AND('Enrollment Form'!$AY681=\"No\",ISERROR(FIND(\"HMO\",VLOOKUP('Enrollment Form'!G681,'Enrollment Form'!H$11:J$1000,3,FALSE),1))=FALSE,COUNTA('Enrollment Form'!$BT681:$BW681)=4)),\"Y\",\"N\"))","v":"-"},{"$f":"IF($B674=\"N\",\"\",IF('Enrollment Form'!$B681=\"Subscriber\",\"-\",IF(COUNTA('Enrollment Form'!$BL681,'Enrollment Form'!$BN681)=2,\"Y\",\"N\")))","v":""},{"$f":"IF($B674=\"N\",\"\",IF(OR('Enrollment Form'!$AX681=\"\",'Enrollment Form'!$AX681=\"No\"),\"-\",IF(AND('Enrollment Form'!$AX681=\"Yes\",COUNTA('Enrollment Form'!$CR681)=1),\"Y\",\"N\")))","v":""},{"$f":"IF(OR('Enrollment Form'!$CR681=\"\",'Enrollment Form'!$CR681=\"No\"),\"-\",IF(COUNTA('Enrollment Form'!$CT681:$CU681)=2,\"Y\",\"N\"))","v":"-"},{"$f":"IF($B674=\"N\",\"\",IF(COUNTIF('Enrollment Form'!$DG681:$DP681,\"Other\")=COUNTA('Enrollment Form'!$DK681,'Enrollment Form'!$DH681,'Enrollment Form'!$DN681,'Enrollment Form'!$DQ681),\"Y\",\"N\"))","v":""},{"$f":"IF($B674=\"N\",\"\",IF(OR('Enrollment Form'!B681<>\"Subscriber\",'Enrollment Form'!C681=\"ROC\",COUNTIF('Enrollment Form'!AV681:AW681,\"Yes\")>=1),\"-\",IF(AND('Enrollment Form'!C681=\"Enroll\",COUNTIF('Enrollment Form'!AV681:AW681,\"No\")=2,'Enrollment Form'!AX681=\"\"),\"N\",\"Y\")))","v":""},{"$f":"IF(OR(B674=\"N\",'Enrollment Form'!B681<>\"Subscriber\",'Enrollment Form'!C681=\"ROC\",'Enrollment Form'!O681<>\"Multiple of Salary\"),\"-\",IF(COUNTA('Enrollment Form'!T681:U681)<2,\"N\",\"Y\"))","v":"-"},{"$f":"IF(B674=\"N\",\"\",IF(OR('Enrollment Form'!C681=\"ROC\",'Enrollment Form'!B681<>\"Subscriber\",'Enrollment Form'!O681=\"Waive\",'Enrollment Form'!O681=\"\"),\"-\",IF('Enrollment Form'!P681=\"\",\"N\",\"Y\")))","v":""},{"$f":"IF($B674=\"N\",\"\",IF(AND('Enrollment Form'!$C681=\"ROC\",'Enrollment Form'!$DR681<>\"\"),\"Y\",IF(AND('Enrollment Form'!$C681=\"ROC\",'Enrollment Form'!$DR681=\"\"),\"N\",IF(AND('Enrollment Form'!$C681=\"Enroll\",'Enrollment Form'!$B681=\"Subscriber\",'Enrollment Form'!$CX681=\"No\",'Enrollment Form'!$DR681=\"\"),\"N\",IF(AND('Enrollment Form'!$C681=\"Enroll\",'Enrollment Form'!$B681=\"Subscriber\",'Enrollment Form'!$CX681=\"Yes\"),\"-\",\"Y\")))))","v":""},{"$f":"IF($B674=\"N\",\"\",IF(AND('Enrollment Form'!$C681=\"ROC\",'Enrollment Form'!$DS681<>\"\"),\"Y\",IF(AND('Enrollment Form'!$C681=\"ROC\",'Enrollment Form'!$DS681=\"\"),\"N\",IF(AND('Enrollment Form'!$C681=\"Enroll\",'Enrollment Form'!$B681=\"Subscriber\",'Enrollment Form'!$CX681=\"No\",'Enrollment Form'!$DS681=\"\"),\"N\",IF(AND('Enrollment Form'!$C681=\"Enroll\",'Enrollment Form'!$B681=\"Subscriber\",'Enrollment Form'!$CX681=\"Yes\"),\"-\",\"Y\")))))","v":""},{"$f":"IF('Enrollment Form'!AH681=\"\",\"\",IF(ISERROR(SEARCH(\".\",'Enrollment Form'!AH681,SEARCH(\"@\",'Enrollment Form'!AH681))),\"N\",\"Y\"))","v":""},{"$f":"IF(OR($B674=\"N\",'Enrollment Form'!$G681=\"\"),\"\",IF('Enrollment Form'!$B681<>\"Subscriber\",\"-\",IF(COUNTIF('Enrollment Form'!$AV681:$AW681,\"Yes\")=2,\"N\",\"Y\")))","v":""},{"$f":"IF(OR('Enrollment Form'!$CJ681=\"\",'Enrollment Form'!$CJ681=\"No\"),\"-\",IF(AND('Enrollment Form'!$CJ681=\"Yes\",'Enrollment Form'!$CK681=\"\"),\"N\",\"Y\"))","v":"-"},{"$f":"IF(OR('Enrollment Form'!$CL681=\"\",'Enrollment Form'!$CL681=\"No\"),\"-\",IF(AND('Enrollment Form'!$CL681=\"Yes\",'Enrollment Form'!$CM681=\"\"),\"N\",\"Y\"))","v":"-"},{"$f":"IF(OR('Enrollment Form'!$CN681=\"\",'Enrollment Form'!$CN681=\"No\"),\"-\",IF(AND('Enrollment Form'!$CN681=\"Yes\",'Enrollment Form'!$CO681=\"\"),\"N\",\"Y\"))","v":"-"},{"$f":"IF(OR('Enrollment Form'!$CN681=\"\",'Enrollment Form'!$CN681=\"No\"),\"-\",IF(AND('Enrollment Form'!$CN681=\"Yes\",'Enrollment Form'!$CP681=\"\"),\"N\",\"Y\"))","v":"-"},{"$f":"IF('Enrollment Form'!B681<>\"Subscriber\",\"-\",IF(AND('Enrollment Form'!B681=\"Subscriber\",'Enrollment Form'!C681=\"Enroll\",'Enrollment Form'!AA681=\"\"),\"N\",\"Y\"))","v":"-"},{"$f":"IF(OR('Enrollment Form'!B681=\"Subscriber\",'Enrollment Form'!B681=\"\"),\"-\",IF('Enrollment Form'!BP681=\"\",\"N\",\"Y\"))","v":"-"},{"$f":"IF('Enrollment Form'!B681<>\"Subscriber\",\"-\",IF(AND('Enrollment Form'!B681=\"Subscriber\",'Enrollment Form'!G681=\"\"),\"N\",\"Y\"))","v":"-"},{"$f":"IF('Enrollment Form'!A681=\"\",\"\",IF('Enrollment Form'!B681=\"Subscriber\",\"-\",IF(AND('Enrollment Form'!B681<>\"Subscriber\",'Enrollment Form'!G681='Enrollment Form'!H681),\"N\",\"Y\")))","v":""},0]
[682,{"$f":"IF('Enrollment Form'!$A682<>\"\",\"Y\",\"N\")","v":"N"},{"$f":"IF(AND('Enrollment Form'!$B682=\"\",'Enrollment Form'!$C682<>\"\"),\"N\",IF($B675=\"N\",\"\",\"Y\"))","v":""},{"$f":"IF(OR($B675=\"N\",'Enrollment Form'!G682=\"\"),\"\",IF('Enrollment Form'!$B682<>\"Subscriber\",\"\",IF('Enrollment Form'!$G682='Enrollment Form'!$H682,\"Y\",\"N\")))","v":""},{"$f":"IF($B675=\"N\",\"\",IF(AND(COUNTIFS('Enrollment Form'!$H$11:$H$1000,'Enrollment Form'!$H682,'Enrollment Form'!$B$11:$B$1000,'Enrollment Form'!$B682)>1,'Enrollment Form'!$H682<>\"\"),\"N\",\"Y\"))","v":""},{"$f":"IF($B675=\"N\",\"\",IF(LEN('Enrollment Form'!$Y682)=0,\"\",IF(LEN('Enrollment Form'!$Y682)<>5,\"N\",\"Y\")))","v":""},{"$f":"IF($B675=\"N\",\"\",IF(LEN('Enrollment Form'!$AD682=0),\"\",IF(LEN('Enrollment Form'!$AD682)<>5,\"N\",\"Y\")))","v":""},{"$f":"IF($B675=\"N\",\"\",IF(LEN('Enrollment Form'!$BS682=0),\"\",IF(LEN('Enrollment Form'!$BS682)<>5,\"N\",\"Y\")))","v":""},{"$f":"IF($B675=\"N\",\"\",IF(LEN('Enrollment Form'!$AE682)=0,\"\",IF(LEN('Enrollment Form'!$AE682)<>10,\"N\",\"Y\")))","v":""},{"$f":"IF($B675=\"N\",\"\",IF(LEN('Enrollment Form'!$AF682)=0,\"\",IF(LEN('Enrollment Form'!$AF682)<>10,\"N\",\"Y\")))","v":""},{"$f":"IF('Enrollment Form'!$O682<>\"Graded\",\"-\",IF(AND('Enrollment Form'!$O682=\"Graded\",'Enrollment Form'!$AR682<>\"\"),\"Y\",\"N\"))","v":"-"},{"$f":"IF($B675=\"N\",\"\",IF(OR('Enrollment Form'!$B682<>\"Subscriber\",'Enrollment Form'!$C682=\"ROC\"),\"-\",IF(AND('Enrollment Form'!$B682=\"Subscriber\",'Enrollment Form'!$C682=\"Enroll\",'Enrollment Form'!$AJ682<>\"\"),\"Y\",\"N\")))","v":""},{"$f":"IF($B675=\"N\",\"\",IF(OR('Enrollment Form'!$B682<>\"Subscriber\",'Enrollment Form'!$C682=\"ROC\"),\"-\",IF(AND('Enrollment Form'!$B682=\"Subscriber\",'Enrollment Form'!$C682=\"Enroll\",'Enrollment Form'!$AK682<>\"\"),\"Y\",\"N\")))","v":""},{"$f":"IF($B675=\"N\",\"\",IF(OR('Enrollment Form'!$B682<>\"Subscriber\",'Enrollment Form'!$C682=\"ROC\"),\"-\",IF(AND('Enrollment Form'!$B682=\"Subscriber\",'Enrollment Form'!$C682=\"Enroll\",'Enrollment Form'!$AL682<>\"\"),\"Y\",\"N\")))","v":""},{"$f":"IF($B675=\"N\",\"\",IF(OR('Enrollment Form'!$B682<>\"Subscriber\",'Enrollment Form'!$C682=\"ROC\"),\"-\",IF(AND('Enrollment Form'!$B682=\"Subscriber\",'Enrollment Form'!$C682=\"Enroll\",'Enrollment Form'!$AP682<>\"\"),\"Y\",\"N\")))","v":""},{"$f":"IF($B675=\"N\",\"\",IF(OR('Enrollment Form'!$B682<>\"Subscriber\",'Enrollment Form'!$C682=\"ROC\"),\"-\",IF(AND('Enrollment Form'!$B682=\"Subscriber\",'Enrollment Form'!$C682=\"Enroll\",'Enrollment Form'!$AQ682<>\"\"),\"Y\",\"N\")))","v":""},{"$f":"IF($B675=\"N\",\"\",IF(OR('Enrollment Form'!$B682<>\"Subscriber\",'Enrollment Form'!$C682=\"ROC\"),\"-\",IF(AND('Enrollment Form'!$B682=\"Subscriber\",'Enrollment Form'!$C682=\"Enroll\",'Enrollment Form'!$AS682<>\"\"),\"Y\",\"N\")))","v":""},{"$f":"IF($B675=\"N\",\"\",IF($Q675=\"-\",\"-\",IF(AND($Q675=\"Y\",'Enrollment Form'!$AS682=\"No\"),\"-\",IF(AND($Q675=\"Y\",'Enrollment Form'!$AS682=\"Yes\",'Enrollment Form'!$AT682<>\"\"),\"Y\",\"N\"))))","v":""},{"$f":"IF($B675=\"N\",\"\",IF(OR('Enrollment Form'!$B682<>\"Subscriber\",'Enrollment Form'!$C682=\"ROC\"),\"-\",IF(AND('Enrollment Form'!$B682=\"Subscriber\",'Enrollment Form'!$C682=\"Enroll\",'Enrollment Form'!$CV682<>\"\"),\"Y\",\"N\")))","v":""},{"$f":"IF($B675=\"N\",\"\",IF($S675=\"-\",\"-\",IF(AND($S675=\"Y\",'Enrollment Form'!$CV682=\"No\"),\"-\",IF(AND($S675=\"Y\",'Enrollment Form'!$CV682=\"Yes\",'Enrollment Form'!$CW682<>\"\"),\"Y\",\"N\"))))","v":""},{"$f":"IF(OR('Enrollment Form'!$AY682=\"Yes\",'Enrollment Form'!$AY682=\"\"),\"-\",IF(OR(AND('Enrollment Form'!$AY682=\"No\",ISERROR(FIND(\"HMO\",VLOOKUP('Enrollment Form'!G682,'Enrollment Form'!H$11:J$1000,3,FALSE),1))=FALSE,COUNTA('Enrollment Form'!$AZ682:$BC682)=4),AND('Enrollment Form'!$AY682=\"No\",ISERROR(FIND(\"HMO\",VLOOKUP('Enrollment Form'!G682,'Enrollment Form'!H$11:J$1000,3,FALSE),1))=FALSE,COUNTA('Enrollment Form'!$BT682:$BW682)=4)),\"Y\",\"N\"))","v":"-"},{"$f":"IF($B675=\"N\",\"\",IF('Enrollment Form'!$B682=\"Subscriber\",\"-\",IF(COUNTA('Enrollment Form'!$BL682,'Enrollment Form'!$BN682)=2,\"Y\",\"N\")))","v":""},{"$f":"IF($B675=\"N\",\"\",IF(OR('Enrollment Form'!$AX682=\"\",'Enrollment Form'!$AX682=\"No\"),\"-\",IF(AND('Enrollment Form'!$AX682=\"Yes\",COUNTA('Enrollment Form'!$CR682)=1),\"Y\",\"N\")))","v":""},{"$f":"IF(OR('Enrollment Form'!$CR682=\"\",'Enrollment Form'!$CR682=\"No\"),\"-\",IF(COUNTA('Enrollment Form'!$CT682:$CU682)=2,\"Y\",\"N\"))","v":"-"},{"$f":"IF($B675=\"N\",\"\",IF(COUNTIF('Enrollment Form'!$DG682:$DP682,\"Other\")=COUNTA('Enrollment Form'!$DK682,'Enrollment Form'!$DH682,'Enrollment Form'!$DN682,'Enrollment Form'!$DQ682),\"Y\",\"N\"))","v":""},{"$f":"IF($B675=\"N\",\"\",IF(OR('Enrollment Form'!B682<>\"Subscriber\",'Enrollment Form'!C682=\"ROC\",COUNTIF('Enrollment Form'!AV682:AW682,\"Yes\")>=1),\"-\",IF(AND('Enrollment Form'!C682=\"Enroll\",COUNTIF('Enrollment Form'!AV682:AW682,\"No\")=2,'Enrollment Form'!AX682=\"\"),\"N\",\"Y\")))","v":""},{"$f":"IF(OR(B675=\"N\",'Enrollment Form'!B682<>\"Subscriber\",'Enrollment Form'!C682=\"ROC\",'Enrollment Form'!O682<>\"Multiple of Salary\"),\"-\",IF(COUNTA('Enrollment Form'!T682:U682)<2,\"N\",\"Y\"))","v":"-"},{"$f":"IF(B675=\"N\",\"\",IF(OR('Enrollment Form'!C682=\"ROC\",'Enrollment Form'!B682<>\"Subscriber\",'Enrollment Form'!O682=\"Waive\",'Enrollment Form'!O682=\"\"),\"-\",IF('Enrollment Form'!P682=\"\",\"N\",\"Y\")))","v":""},{"$f":"IF($B675=\"N\",\"\",IF(AND('Enrollment Form'!$C682=\"ROC\",'Enrollment Form'!$DR682<>\"\"),\"Y\",IF(AND('Enrollment Form'!$C682=\"ROC\",'Enrollment Form'!$DR682=\"\"),\"N\",IF(AND('Enrollment Form'!$C682=\"Enroll\",'Enrollment Form'!$B682=\"Subscriber\",'Enrollment Form'!$CX682=\"No\",'Enrollment Form'!$DR682=\"\"),\"N\",IF(AND('Enrollment Form'!$C682=\"Enroll\",'Enrollment Form'!$B682=\"Subscriber\",'Enrollment Form'!$CX682=\"Yes\"),\"-\",\"Y\")))))","v":""},{"$f":"IF($B675=\"N\",\"\",IF(AND('Enrollment Form'!$C682=\"ROC\",'Enrollment Form'!$DS682<>\"\"),\"Y\",IF(AND('Enrollment Form'!$C682=\"ROC\",'Enrollment Form'!$DS682=\"\"),\"N\",IF(AND('Enrollment Form'!$C682=\"Enroll\",'Enrollment Form'!$B682=\"Subscriber\",'Enrollment Form'!$CX682=\"No\",'Enrollment Form'!$DS682=\"\"),\"N\",IF(AND('Enrollment Form'!$C682=\"Enroll\",'Enrollment Form'!$B682=\"Subscriber\",'Enrollment Form'!$CX682=\"Yes\"),\"-\",\"Y\")))))","v":""},{"$f":"IF('Enrollment Form'!AH682=\"\",\"\",IF(ISERROR(SEARCH(\".\",'Enrollment Form'!AH682,SEARCH(\"@\",'Enrollment Form'!AH682))),\"N\",\"Y\"))","v":""},{"$f":"IF(OR($B675=\"N\",'Enrollment Form'!$G682=\"\"),\"\",IF('Enrollment Form'!$B682<>\"Subscriber\",\"-\",IF(COUNTIF('Enrollment Form'!$AV682:$AW682,\"Yes\")=2,\"N\",\"Y\")))","v":""},{"$f":"IF(OR('Enrollment Form'!$CJ682=\"\",'Enrollment Form'!$CJ682=\"No\"),\"-\",IF(AND('Enrollment Form'!$CJ682=\"Yes\",'Enrollment Form'!$CK682=\"\"),\"N\",\"Y\"))","v":"-"},{"$f":"IF(OR('Enrollment Form'!$CL682=\"\",'Enrollment Form'!$CL682=\"No\"),\"-\",IF(AND('Enrollment Form'!$CL682=\"Yes\",'Enrollment Form'!$CM682=\"\"),\"N\",\"Y\"))","v":"-"},{"$f":"IF(OR('Enrollment Form'!$CN682=\"\",'Enrollment Form'!$CN682=\"No\"),\"-\",IF(AND('Enrollment Form'!$CN682=\"Yes\",'Enrollment Form'!$CO682=\"\"),\"N\",\"Y\"))","v":"-"},{"$f":"IF(OR('Enrollment Form'!$CN682=\"\",'Enrollment Form'!$CN682=\"No\"),\"-\",IF(AND('Enrollment Form'!$CN682=\"Yes\",'Enrollment Form'!$CP682=\"\"),\"N\",\"Y\"))","v":"-"},{"$f":"IF('Enrollment Form'!B682<>\"Subscriber\",\"-\",IF(AND('Enrollment Form'!B682=\"Subscriber\",'Enrollment Form'!C682=\"Enroll\",'Enrollment Form'!AA682=\"\"),\"N\",\"Y\"))","v":"-"},{"$f":"IF(OR('Enrollment Form'!B682=\"Subscriber\",'Enrollment Form'!B682=\"\"),\"-\",IF('Enrollment Form'!BP682=\"\",\"N\",\"Y\"))","v":"-"},{"$f":"IF('Enrollment Form'!B682<>\"Subscriber\",\"-\",IF(AND('Enrollment Form'!B682=\"Subscriber\",'Enrollment Form'!G682=\"\"),\"N\",\"Y\"))","v":"-"},{"$f":"IF('Enrollment Form'!A682=\"\",\"\",IF('Enrollment Form'!B682=\"Subscriber\",\"-\",IF(AND('Enrollment Form'!B682<>\"Subscriber\",'Enrollment Form'!G682='Enrollment Form'!H682),\"N\",\"Y\")))","v":""},0]
[683,{"$f":"IF('Enrollment Form'!$A683<>\"\",\"Y\",\"N\")","v":"N"},{"$f":"IF(AND('Enrollment Form'!$B683=\"\",'Enrollment Form'!$C683<>\"\"),\"N\",IF($B676=\"N\",\"\",\"Y\"))","v":""},{"$f":"IF(OR($B676=\"N\",'Enrollment Form'!G683=\"\"),\"\",IF('Enrollment Form'!$B683<>\"Subscriber\",\"\",IF('Enrollment Form'!$G683='Enrollment Form'!$H683,\"Y\",\"N\")))","v":""},{"$f":"IF($B676=\"N\",\"\",IF(AND(COUNTIFS('Enrollment Form'!$H$11:$H$1000,'Enrollment Form'!$H683,'Enrollment Form'!$B$11:$B$1000,'Enrollment Form'!$B683)>1,'Enrollment Form'!$H683<>\"\"),\"N\",\"Y\"))","v":""},{"$f":"IF($B676=\"N\",\"\",IF(LEN('Enrollment Form'!$Y683)=0,\"\",IF(LEN('Enrollment Form'!$Y683)<>5,\"N\",\"Y\")))","v":""},{"$f":"IF($B676=\"N\",\"\",IF(LEN('Enrollment Form'!$AD683=0),\"\",IF(LEN('Enrollment Form'!$AD683)<>5,\"N\",\"Y\")))","v":""},{"$f":"IF($B676=\"N\",\"\",IF(LEN('Enrollment Form'!$BS683=0),\"\",IF(LEN('Enrollment Form'!$BS683)<>5,\"N\",\"Y\")))","v":""},{"$f":"IF($B676=\"N\",\"\",IF(LEN('Enrollment Form'!$AE683)=0,\"\",IF(LEN('Enrollment Form'!$AE683)<>10,\"N\",\"Y\")))","v":""},{"$f":"IF($B676=\"N\",\"\",IF(LEN('Enrollment Form'!$AF683)=0,\"\",IF(LEN('Enrollment Form'!$AF683)<>10,\"N\",\"Y\")))","v":""},{"$f":"IF('Enrollment Form'!$O683<>\"Graded\",\"-\",IF(AND('Enrollment Form'!$O683=\"Graded\",'Enrollment Form'!$AR683<>\"\"),\"Y\",\"N\"))","v":"-"},{"$f":"IF($B676=\"N\",\"\",IF(OR('Enrollment Form'!$B683<>\"Subscriber\",'Enrollment Form'!$C683=\"ROC\"),\"-\",IF(AND('Enrollment Form'!$B683=\"Subscriber\",'Enrollment Form'!$C683=\"Enroll\",'Enrollment Form'!$AJ683<>\"\"),\"Y\",\"N\")))","v":""},{"$f":"IF($B676=\"N\",\"\",IF(OR('Enrollment Form'!$B683<>\"Subscriber\",'Enrollment Form'!$C683=\"ROC\"),\"-\",IF(AND('Enrollment Form'!$B683=\"Subscriber\",'Enrollment Form'!$C683=\"Enroll\",'Enrollment Form'!$AK683<>\"\"),\"Y\",\"N\")))","v":""},{"$f":"IF($B676=\"N\",\"\",IF(OR('Enrollment Form'!$B683<>\"Subscriber\",'Enrollment Form'!$C683=\"ROC\"),\"-\",IF(AND('Enrollment Form'!$B683=\"Subscriber\",'Enrollment Form'!$C683=\"Enroll\",'Enrollment Form'!$AL683<>\"\"),\"Y\",\"N\")))","v":""},{"$f":"IF($B676=\"N\",\"\",IF(OR('Enrollment Form'!$B683<>\"Subscriber\",'Enrollment Form'!$C683=\"ROC\"),\"-\",IF(AND('Enrollment Form'!$B683=\"Subscriber\",'Enrollment Form'!$C683=\"Enroll\",'Enrollment Form'!$AP683<>\"\"),\"Y\",\"N\")))","v":""},{"$f":"IF($B676=\"N\",\"\",IF(OR('Enrollment Form'!$B683<>\"Subscriber\",'Enrollment Form'!$C683=\"ROC\"),\"-\",IF(AND('Enrollment Form'!$B683=\"Subscriber\",'Enrollment Form'!$C683=\"Enroll\",'Enrollment Form'!$AQ683<>\"\"),\"Y\",\"N\")))","v":""},{"$f":"IF($B676=\"N\",\"\",IF(OR('Enrollment Form'!$B683<>\"Subscriber\",'Enrollment Form'!$C683=\"ROC\"),\"-\",IF(AND('Enrollment Form'!$B683=\"Subscriber\",'Enrollment Form'!$C683=\"Enroll\",'Enrollment Form'!$AS683<>\"\"),\"Y\",\"N\")))","v":""},{"$f":"IF($B676=\"N\",\"\",IF($Q676=\"-\",\"-\",IF(AND($Q676=\"Y\",'Enrollment Form'!$AS683=\"No\"),\"-\",IF(AND($Q676=\"Y\",'Enrollment Form'!$AS683=\"Yes\",'Enrollment Form'!$AT683<>\"\"),\"Y\",\"N\"))))","v":""},{"$f":"IF($B676=\"N\",\"\",IF(OR('Enrollment Form'!$B683<>\"Subscriber\",'Enrollment Form'!$C683=\"ROC\"),\"-\",IF(AND('Enrollment Form'!$B683=\"Subscriber\",'Enrollment Form'!$C683=\"Enroll\",'Enrollment Form'!$CV683<>\"\"),\"Y\",\"N\")))","v":""},{"$f":"IF($B676=\"N\",\"\",IF($S676=\"-\",\"-\",IF(AND($S676=\"Y\",'Enrollment Form'!$CV683=\"No\"),\"-\",IF(AND($S676=\"Y\",'Enrollment Form'!$CV683=\"Yes\",'Enrollment Form'!$CW683<>\"\"),\"Y\",\"N\"))))","v":""},{"$f":"IF(OR('Enrollment Form'!$AY683=\"Yes\",'Enrollment Form'!$AY683=\"\"),\"-\",IF(OR(AND('Enrollment Form'!$AY683=\"No\",ISERROR(FIND(\"HMO\",VLOOKUP('Enrollment Form'!G683,'Enrollment Form'!H$11:J$1000,3,FALSE),1))=FALSE,COUNTA('Enrollment Form'!$AZ683:$BC683)=4),AND('Enrollment Form'!$AY683=\"No\",ISERROR(FIND(\"HMO\",VLOOKUP('Enrollment Form'!G683,'Enrollment Form'!H$11:J$1000,3,FALSE),1))=FALSE,COUNTA('Enrollment Form'!$BT683:$BW683)=4)),\"Y\",\"N\"))","v":"-"},{"$f":"IF($B676=\"N\",\"\",IF('Enrollment Form'!$B683=\"Subscriber\",\"-\",IF(COUNTA('Enrollment Form'!$BL683,'Enrollment Form'!$BN683)=2,\"Y\",\"N\")))","v":""},{"$f":"IF($B676=\"N\",\"\",IF(OR('Enrollment Form'!$AX683=\"\",'Enrollment Form'!$AX683=\"No\"),\"-\",IF(AND('Enrollment Form'!$AX683=\"Yes\",COUNTA('Enrollment Form'!$CR683)=1),\"Y\",\"N\")))","v":""},{"$f":"IF(OR('Enrollment Form'!$CR683=\"\",'Enrollment Form'!$CR683=\"No\"),\"-\",IF(COUNTA('Enrollment Form'!$CT683:$CU683)=2,\"Y\",\"N\"))","v":"-"},{"$f":"IF($B676=\"N\",\"\",IF(COUNTIF('Enrollment Form'!$DG683:$DP683,\"Other\")=COUNTA('Enrollment Form'!$DK683,'Enrollment Form'!$DH683,'Enrollment Form'!$DN683,'Enrollment Form'!$DQ683),\"Y\",\"N\"))","v":""},{"$f":"IF($B676=\"N\",\"\",IF(OR('Enrollment Form'!B683<>\"Subscriber\",'Enrollment Form'!C683=\"ROC\",COUNTIF('Enrollment Form'!AV683:AW683,\"Yes\")>=1),\"-\",IF(AND('Enrollment Form'!C683=\"Enroll\",COUNTIF('Enrollment Form'!AV683:AW683,\"No\")=2,'Enrollment Form'!AX683=\"\"),\"N\",\"Y\")))","v":""},{"$f":"IF(OR(B676=\"N\",'Enrollment Form'!B683<>\"Subscriber\",'Enrollment Form'!C683=\"ROC\",'Enrollment Form'!O683<>\"Multiple of Salary\"),\"-\",IF(COUNTA('Enrollment Form'!T683:U683)<2,\"N\",\"Y\"))","v":"-"},{"$f":"IF(B676=\"N\",\"\",IF(OR('Enrollment Form'!C683=\"ROC\",'Enrollment Form'!B683<>\"Subscriber\",'Enrollment Form'!O683=\"Waive\",'Enrollment Form'!O683=\"\"),\"-\",IF('Enrollment Form'!P683=\"\",\"N\",\"Y\")))","v":""},{"$f":"IF($B676=\"N\",\"\",IF(AND('Enrollment Form'!$C683=\"ROC\",'Enrollment Form'!$DR683<>\"\"),\"Y\",IF(AND('Enrollment Form'!$C683=\"ROC\",'Enrollment Form'!$DR683=\"\"),\"N\",IF(AND('Enrollment Form'!$C683=\"Enroll\",'Enrollment Form'!$B683=\"Subscriber\",'Enrollment Form'!$CX683=\"No\",'Enrollment Form'!$DR683=\"\"),\"N\",IF(AND('Enrollment Form'!$C683=\"Enroll\",'Enrollment Form'!$B683=\"Subscriber\",'Enrollment Form'!$CX683=\"Yes\"),\"-\",\"Y\")))))","v":""},{"$f":"IF($B676=\"N\",\"\",IF(AND('Enrollment Form'!$C683=\"ROC\",'Enrollment Form'!$DS683<>\"\"),\"Y\",IF(AND('Enrollment Form'!$C683=\"ROC\",'Enrollment Form'!$DS683=\"\"),\"N\",IF(AND('Enrollment Form'!$C683=\"Enroll\",'Enrollment Form'!$B683=\"Subscriber\",'Enrollment Form'!$CX683=\"No\",'Enrollment Form'!$DS683=\"\"),\"N\",IF(AND('Enrollment Form'!$C683=\"Enroll\",'Enrollment Form'!$B683=\"Subscriber\",'Enrollment Form'!$CX683=\"Yes\"),\"-\",\"Y\")))))","v":""},{"$f":"IF('Enrollment Form'!AH683=\"\",\"\",IF(ISERROR(SEARCH(\".\",'Enrollment Form'!AH683,SEARCH(\"@\",'Enrollment Form'!AH683))),\"N\",\"Y\"))","v":""},{"$f":"IF(OR($B676=\"N\",'Enrollment Form'!$G683=\"\"),\"\",IF('Enrollment Form'!$B683<>\"Subscriber\",\"-\",IF(COUNTIF('Enrollment Form'!$AV683:$AW683,\"Yes\")=2,\"N\",\"Y\")))","v":""},{"$f":"IF(OR('Enrollment Form'!$CJ683=\"\",'Enrollment Form'!$CJ683=\"No\"),\"-\",IF(AND('Enrollment Form'!$CJ683=\"Yes\",'Enrollment Form'!$CK683=\"\"),\"N\",\"Y\"))","v":"-"},{"$f":"IF(OR('Enrollment Form'!$CL683=\"\",'Enrollment Form'!$CL683=\"No\"),\"-\",IF(AND('Enrollment Form'!$CL683=\"Yes\",'Enrollment Form'!$CM683=\"\"),\"N\",\"Y\"))","v":"-"},{"$f":"IF(OR('Enrollment Form'!$CN683=\"\",'Enrollment Form'!$CN683=\"No\"),\"-\",IF(AND('Enrollment Form'!$CN683=\"Yes\",'Enrollment Form'!$CO683=\"\"),\"N\",\"Y\"))","v":"-"},{"$f":"IF(OR('Enrollment Form'!$CN683=\"\",'Enrollment Form'!$CN683=\"No\"),\"-\",IF(AND('Enrollment Form'!$CN683=\"Yes\",'Enrollment Form'!$CP683=\"\"),\"N\",\"Y\"))","v":"-"},{"$f":"IF('Enrollment Form'!B683<>\"Subscriber\",\"-\",IF(AND('Enrollment Form'!B683=\"Subscriber\",'Enrollment Form'!C683=\"Enroll\",'Enrollment Form'!AA683=\"\"),\"N\",\"Y\"))","v":"-"},{"$f":"IF(OR('Enrollment Form'!B683=\"Subscriber\",'Enrollment Form'!B683=\"\"),\"-\",IF('Enrollment Form'!BP683=\"\",\"N\",\"Y\"))","v":"-"},{"$f":"IF('Enrollment Form'!B683<>\"Subscriber\",\"-\",IF(AND('Enrollment Form'!B683=\"Subscriber\",'Enrollment Form'!G683=\"\"),\"N\",\"Y\"))","v":"-"},{"$f":"IF('Enrollment Form'!A683=\"\",\"\",IF('Enrollment Form'!B683=\"Subscriber\",\"-\",IF(AND('Enrollment Form'!B683<>\"Subscriber\",'Enrollment Form'!G683='Enrollment Form'!H683),\"N\",\"Y\")))","v":""},0]
[684,{"$f":"IF('Enrollment Form'!$A684<>\"\",\"Y\",\"N\")","v":"N"},{"$f":"IF(AND('Enrollment Form'!$B684=\"\",'Enrollment Form'!$C684<>\"\"),\"N\",IF($B677=\"N\",\"\",\"Y\"))","v":""},{"$f":"IF(OR($B677=\"N\",'Enrollment Form'!G684=\"\"),\"\",IF('Enrollment Form'!$B684<>\"Subscriber\",\"\",IF('Enrollment Form'!$G684='Enrollment Form'!$H684,\"Y\",\"N\")))","v":""},{"$f":"IF($B677=\"N\",\"\",IF(AND(COUNTIFS('Enrollment Form'!$H$11:$H$1000,'Enrollment Form'!$H684,'Enrollment Form'!$B$11:$B$1000,'Enrollment Form'!$B684)>1,'Enrollment Form'!$H684<>\"\"),\"N\",\"Y\"))","v":""},{"$f":"IF($B677=\"N\",\"\",IF(LEN('Enrollment Form'!$Y684)=0,\"\",IF(LEN('Enrollment Form'!$Y684)<>5,\"N\",\"Y\")))","v":""},{"$f":"IF($B677=\"N\",\"\",IF(LEN('Enrollment Form'!$AD684=0),\"\",IF(LEN('Enrollment Form'!$AD684)<>5,\"N\",\"Y\")))","v":""},{"$f":"IF($B677=\"N\",\"\",IF(LEN('Enrollment Form'!$BS684=0),\"\",IF(LEN('Enrollment Form'!$BS684)<>5,\"N\",\"Y\")))","v":""},{"$f":"IF($B677=\"N\",\"\",IF(LEN('Enrollment Form'!$AE684)=0,\"\",IF(LEN('Enrollment Form'!$AE684)<>10,\"N\",\"Y\")))","v":""},{"$f":"IF($B677=\"N\",\"\",IF(LEN('Enrollment Form'!$AF684)=0,\"\",IF(LEN('Enrollment Form'!$AF684)<>10,\"N\",\"Y\")))","v":""},{"$f":"IF('Enrollment Form'!$O684<>\"Graded\",\"-\",IF(AND('Enrollment Form'!$O684=\"Graded\",'Enrollment Form'!$AR684<>\"\"),\"Y\",\"N\"))","v":"-"},{"$f":"IF($B677=\"N\",\"\",IF(OR('Enrollment Form'!$B684<>\"Subscriber\",'Enrollment Form'!$C684=\"ROC\"),\"-\",IF(AND('Enrollment Form'!$B684=\"Subscriber\",'Enrollment Form'!$C684=\"Enroll\",'Enrollment Form'!$AJ684<>\"\"),\"Y\",\"N\")))","v":""},{"$f":"IF($B677=\"N\",\"\",IF(OR('Enrollment Form'!$B684<>\"Subscriber\",'Enrollment Form'!$C684=\"ROC\"),\"-\",IF(AND('Enrollment Form'!$B684=\"Subscriber\",'Enrollment Form'!$C684=\"Enroll\",'Enrollment Form'!$AK684<>\"\"),\"Y\",\"N\")))","v":""},{"$f":"IF($B677=\"N\",\"\",IF(OR('Enrollment Form'!$B684<>\"Subscriber\",'Enrollment Form'!$C684=\"ROC\"),\"-\",IF(AND('Enrollment Form'!$B684=\"Subscriber\",'Enrollment Form'!$C684=\"Enroll\",'Enrollment Form'!$AL684<>\"\"),\"Y\",\"N\")))","v":""},{"$f":"IF($B677=\"N\",\"\",IF(OR('Enrollment Form'!$B684<>\"Subscriber\",'Enrollment Form'!$C684=\"ROC\"),\"-\",IF(AND('Enrollment Form'!$B684=\"Subscriber\",'Enrollment Form'!$C684=\"Enroll\",'Enrollment Form'!$AP684<>\"\"),\"Y\",\"N\")))","v":""},{"$f":"IF($B677=\"N\",\"\",IF(OR('Enrollment Form'!$B684<>\"Subscriber\",'Enrollment Form'!$C684=\"ROC\"),\"-\",IF(AND('Enrollment Form'!$B684=\"Subscriber\",'Enrollment Form'!$C684=\"Enroll\",'Enrollment Form'!$AQ684<>\"\"),\"Y\",\"N\")))","v":""},{"$f":"IF($B677=\"N\",\"\",IF(OR('Enrollment Form'!$B684<>\"Subscriber\",'Enrollment Form'!$C684=\"ROC\"),\"-\",IF(AND('Enrollment Form'!$B684=\"Subscriber\",'Enrollment Form'!$C684=\"Enroll\",'Enrollment Form'!$AS684<>\"\"),\"Y\",\"N\")))","v":""},{"$f":"IF($B677=\"N\",\"\",IF($Q677=\"-\",\"-\",IF(AND($Q677=\"Y\",'Enrollment Form'!$AS684=\"No\"),\"-\",IF(AND($Q677=\"Y\",'Enrollment Form'!$AS684=\"Yes\",'Enrollment Form'!$AT684<>\"\"),\"Y\",\"N\"))))","v":""},{"$f":"IF($B677=\"N\",\"\",IF(OR('Enrollment Form'!$B684<>\"Subscriber\",'Enrollment Form'!$C684=\"ROC\"),\"-\",IF(AND('Enrollment Form'!$B684=\"Subscriber\",'Enrollment Form'!$C684=\"Enroll\",'Enrollment Form'!$CV684<>\"\"),\"Y\",\"N\")))","v":""},{"$f":"IF($B677=\"N\",\"\",IF($S677=\"-\",\"-\",IF(AND($S677=\"Y\",'Enrollment Form'!$CV684=\"No\"),\"-\",IF(AND($S677=\"Y\",'Enrollment Form'!$CV684=\"Yes\",'Enrollment Form'!$CW684<>\"\"),\"Y\",\"N\"))))","v":""},{"$f":"IF(OR('Enrollment Form'!$AY684=\"Yes\",'Enrollment Form'!$AY684=\"\"),\"-\",IF(OR(AND('Enrollment Form'!$AY684=\"No\",ISERROR(FIND(\"HMO\",VLOOKUP('Enrollment Form'!G684,'Enrollment Form'!H$11:J$1000,3,FALSE),1))=FALSE,COUNTA('Enrollment Form'!$AZ684:$BC684)=4),AND('Enrollment Form'!$AY684=\"No\",ISERROR(FIND(\"HMO\",VLOOKUP('Enrollment Form'!G684,'Enrollment Form'!H$11:J$1000,3,FALSE),1))=FALSE,COUNTA('Enrollment Form'!$BT684:$BW684)=4)),\"Y\",\"N\"))","v":"-"},{"$f":"IF($B677=\"N\",\"\",IF('Enrollment Form'!$B684=\"Subscriber\",\"-\",IF(COUNTA('Enrollment Form'!$BL684,'Enrollment Form'!$BN684)=2,\"Y\",\"N\")))","v":""},{"$f":"IF($B677=\"N\",\"\",IF(OR('Enrollment Form'!$AX684=\"\",'Enrollment Form'!$AX684=\"No\"),\"-\",IF(AND('Enrollment Form'!$AX684=\"Yes\",COUNTA('Enrollment Form'!$CR684)=1),\"Y\",\"N\")))","v":""},{"$f":"IF(OR('Enrollment Form'!$CR684=\"\",'Enrollment Form'!$CR684=\"No\"),\"-\",IF(COUNTA('Enrollment Form'!$CT684:$CU684)=2,\"Y\",\"N\"))","v":"-"},{"$f":"IF($B677=\"N\",\"\",IF(COUNTIF('Enrollment Form'!$DG684:$DP684,\"Other\")=COUNTA('Enrollment Form'!$DK684,'Enrollment Form'!$DH684,'Enrollment Form'!$DN684,'Enrollment Form'!$DQ684),\"Y\",\"N\"))","v":""},{"$f":"IF($B677=\"N\",\"\",IF(OR('Enrollment Form'!B684<>\"Subscriber\",'Enrollment Form'!C684=\"ROC\",COUNTIF('Enrollment Form'!AV684:AW684,\"Yes\")>=1),\"-\",IF(AND('Enrollment Form'!C684=\"Enroll\",COUNTIF('Enrollment Form'!AV684:AW684,\"No\")=2,'Enrollment Form'!AX684=\"\"),\"N\",\"Y\")))","v":""},{"$f":"IF(OR(B677=\"N\",'Enrollment Form'!B684<>\"Subscriber\",'Enrollment Form'!C684=\"ROC\",'Enrollment Form'!O684<>\"Multiple of Salary\"),\"-\",IF(COUNTA('Enrollment Form'!T684:U684)<2,\"N\",\"Y\"))","v":"-"},{"$f":"IF(B677=\"N\",\"\",IF(OR('Enrollment Form'!C684=\"ROC\",'Enrollment Form'!B684<>\"Subscriber\",'Enrollment Form'!O684=\"Waive\",'Enrollment Form'!O684=\"\"),\"-\",IF('Enrollment Form'!P684=\"\",\"N\",\"Y\")))","v":""},{"$f":"IF($B677=\"N\",\"\",IF(AND('Enrollment Form'!$C684=\"ROC\",'Enrollment Form'!$DR684<>\"\"),\"Y\",IF(AND('Enrollment Form'!$C684=\"ROC\",'Enrollment Form'!$DR684=\"\"),\"N\",IF(AND('Enrollment Form'!$C684=\"Enroll\",'Enrollment Form'!$B684=\"Subscriber\",'Enrollment Form'!$CX684=\"No\",'Enrollment Form'!$DR684=\"\"),\"N\",IF(AND('Enrollment Form'!$C684=\"Enroll\",'Enrollment Form'!$B684=\"Subscriber\",'Enrollment Form'!$CX684=\"Yes\"),\"-\",\"Y\")))))","v":""},{"$f":"IF($B677=\"N\",\"\",IF(AND('Enrollment Form'!$C684=\"ROC\",'Enrollment Form'!$DS684<>\"\"),\"Y\",IF(AND('Enrollment Form'!$C684=\"ROC\",'Enrollment Form'!$DS684=\"\"),\"N\",IF(AND('Enrollment Form'!$C684=\"Enroll\",'Enrollment Form'!$B684=\"Subscriber\",'Enrollment Form'!$CX684=\"No\",'Enrollment Form'!$DS684=\"\"),\"N\",IF(AND('Enrollment Form'!$C684=\"Enroll\",'Enrollment Form'!$B684=\"Subscriber\",'Enrollment Form'!$CX684=\"Yes\"),\"-\",\"Y\")))))","v":""},{"$f":"IF('Enrollment Form'!AH684=\"\",\"\",IF(ISERROR(SEARCH(\".\",'Enrollment Form'!AH684,SEARCH(\"@\",'Enrollment Form'!AH684))),\"N\",\"Y\"))","v":""},{"$f":"IF(OR($B677=\"N\",'Enrollment Form'!$G684=\"\"),\"\",IF('Enrollment Form'!$B684<>\"Subscriber\",\"-\",IF(COUNTIF('Enrollment Form'!$AV684:$AW684,\"Yes\")=2,\"N\",\"Y\")))","v":""},{"$f":"IF(OR('Enrollment Form'!$CJ684=\"\",'Enrollment Form'!$CJ684=\"No\"),\"-\",IF(AND('Enrollment Form'!$CJ684=\"Yes\",'Enrollment Form'!$CK684=\"\"),\"N\",\"Y\"))","v":"-"},{"$f":"IF(OR('Enrollment Form'!$CL684=\"\",'Enrollment Form'!$CL684=\"No\"),\"-\",IF(AND('Enrollment Form'!$CL684=\"Yes\",'Enrollment Form'!$CM684=\"\"),\"N\",\"Y\"))","v":"-"},{"$f":"IF(OR('Enrollment Form'!$CN684=\"\",'Enrollment Form'!$CN684=\"No\"),\"-\",IF(AND('Enrollment Form'!$CN684=\"Yes\",'Enrollment Form'!$CO684=\"\"),\"N\",\"Y\"))","v":"-"},{"$f":"IF(OR('Enrollment Form'!$CN684=\"\",'Enrollment Form'!$CN684=\"No\"),\"-\",IF(AND('Enrollment Form'!$CN684=\"Yes\",'Enrollment Form'!$CP684=\"\"),\"N\",\"Y\"))","v":"-"},{"$f":"IF('Enrollment Form'!B684<>\"Subscriber\",\"-\",IF(AND('Enrollment Form'!B684=\"Subscriber\",'Enrollment Form'!C684=\"Enroll\",'Enrollment Form'!AA684=\"\"),\"N\",\"Y\"))","v":"-"},{"$f":"IF(OR('Enrollment Form'!B684=\"Subscriber\",'Enrollment Form'!B684=\"\"),\"-\",IF('Enrollment Form'!BP684=\"\",\"N\",\"Y\"))","v":"-"},{"$f":"IF('Enrollment Form'!B684<>\"Subscriber\",\"-\",IF(AND('Enrollment Form'!B684=\"Subscriber\",'Enrollment Form'!G684=\"\"),\"N\",\"Y\"))","v":"-"},{"$f":"IF('Enrollment Form'!A684=\"\",\"\",IF('Enrollment Form'!B684=\"Subscriber\",\"-\",IF(AND('Enrollment Form'!B684<>\"Subscriber\",'Enrollment Form'!G684='Enrollment Form'!H684),\"N\",\"Y\")))","v":""},0]
[685,{"$f":"IF('Enrollment Form'!$A685<>\"\",\"Y\",\"N\")","v":"N"},{"$f":"IF(AND('Enrollment Form'!$B685=\"\",'Enrollment Form'!$C685<>\"\"),\"N\",IF($B678=\"N\",\"\",\"Y\"))","v":""},{"$f":"IF(OR($B678=\"N\",'Enrollment Form'!G685=\"\"),\"\",IF('Enrollment Form'!$B685<>\"Subscriber\",\"\",IF('Enrollment Form'!$G685='Enrollment Form'!$H685,\"Y\",\"N\")))","v":""},{"$f":"IF($B678=\"N\",\"\",IF(AND(COUNTIFS('Enrollment Form'!$H$11:$H$1000,'Enrollment Form'!$H685,'Enrollment Form'!$B$11:$B$1000,'Enrollment Form'!$B685)>1,'Enrollment Form'!$H685<>\"\"),\"N\",\"Y\"))","v":""},{"$f":"IF($B678=\"N\",\"\",IF(LEN('Enrollment Form'!$Y685)=0,\"\",IF(LEN('Enrollment Form'!$Y685)<>5,\"N\",\"Y\")))","v":""},{"$f":"IF($B678=\"N\",\"\",IF(LEN('Enrollment Form'!$AD685=0),\"\",IF(LEN('Enrollment Form'!$AD685)<>5,\"N\",\"Y\")))","v":""},{"$f":"IF($B678=\"N\",\"\",IF(LEN('Enrollment Form'!$BS685=0),\"\",IF(LEN('Enrollment Form'!$BS685)<>5,\"N\",\"Y\")))","v":""},{"$f":"IF($B678=\"N\",\"\",IF(LEN('Enrollment Form'!$AE685)=0,\"\",IF(LEN('Enrollment Form'!$AE685)<>10,\"N\",\"Y\")))","v":""},{"$f":"IF($B678=\"N\",\"\",IF(LEN('Enrollment Form'!$AF685)=0,\"\",IF(LEN('Enrollment Form'!$AF685)<>10,\"N\",\"Y\")))","v":""},{"$f":"IF('Enrollment Form'!$O685<>\"Graded\",\"-\",IF(AND('Enrollment Form'!$O685=\"Graded\",'Enrollment Form'!$AR685<>\"\"),\"Y\",\"N\"))","v":"-"},{"$f":"IF($B678=\"N\",\"\",IF(OR('Enrollment Form'!$B685<>\"Subscriber\",'Enrollment Form'!$C685=\"ROC\"),\"-\",IF(AND('Enrollment Form'!$B685=\"Subscriber\",'Enrollment Form'!$C685=\"Enroll\",'Enrollment Form'!$AJ685<>\"\"),\"Y\",\"N\")))","v":""},{"$f":"IF($B678=\"N\",\"\",IF(OR('Enrollment Form'!$B685<>\"Subscriber\",'Enrollment Form'!$C685=\"ROC\"),\"-\",IF(AND('Enrollment Form'!$B685=\"Subscriber\",'Enrollment Form'!$C685=\"Enroll\",'Enrollment Form'!$AK685<>\"\"),\"Y\",\"N\")))","v":""},{"$f":"IF($B678=\"N\",\"\",IF(OR('Enrollment Form'!$B685<>\"Subscriber\",'Enrollment Form'!$C685=\"ROC\"),\"-\",IF(AND('Enrollment Form'!$B685=\"Subscriber\",'Enrollment Form'!$C685=\"Enroll\",'Enrollment Form'!$AL685<>\"\"),\"Y\",\"N\")))","v":""},{"$f":"IF($B678=\"N\",\"\",IF(OR('Enrollment Form'!$B685<>\"Subscriber\",'Enrollment Form'!$C685=\"ROC\"),\"-\",IF(AND('Enrollment Form'!$B685=\"Subscriber\",'Enrollment Form'!$C685=\"Enroll\",'Enrollment Form'!$AP685<>\"\"),\"Y\",\"N\")))","v":""},{"$f":"IF($B678=\"N\",\"\",IF(OR('Enrollment Form'!$B685<>\"Subscriber\",'Enrollment Form'!$C685=\"ROC\"),\"-\",IF(AND('Enrollment Form'!$B685=\"Subscriber\",'Enrollment Form'!$C685=\"Enroll\",'Enrollment Form'!$AQ685<>\"\"),\"Y\",\"N\")))","v":""},{"$f":"IF($B678=\"N\",\"\",IF(OR('Enrollment Form'!$B685<>\"Subscriber\",'Enrollment Form'!$C685=\"ROC\"),\"-\",IF(AND('Enrollment Form'!$B685=\"Subscriber\",'Enrollment Form'!$C685=\"Enroll\",'Enrollment Form'!$AS685<>\"\"),\"Y\",\"N\")))","v":""},{"$f":"IF($B678=\"N\",\"\",IF($Q678=\"-\",\"-\",IF(AND($Q678=\"Y\",'Enrollment Form'!$AS685=\"No\"),\"-\",IF(AND($Q678=\"Y\",'Enrollment Form'!$AS685=\"Yes\",'Enrollment Form'!$AT685<>\"\"),\"Y\",\"N\"))))","v":""},{"$f":"IF($B678=\"N\",\"\",IF(OR('Enrollment Form'!$B685<>\"Subscriber\",'Enrollment Form'!$C685=\"ROC\"),\"-\",IF(AND('Enrollment Form'!$B685=\"Subscriber\",'Enrollment Form'!$C685=\"Enroll\",'Enrollment Form'!$CV685<>\"\"),\"Y\",\"N\")))","v":""},{"$f":"IF($B678=\"N\",\"\",IF($S678=\"-\",\"-\",IF(AND($S678=\"Y\",'Enrollment Form'!$CV685=\"No\"),\"-\",IF(AND($S678=\"Y\",'Enrollment Form'!$CV685=\"Yes\",'Enrollment Form'!$CW685<>\"\"),\"Y\",\"N\"))))","v":""},{"$f":"IF(OR('Enrollment Form'!$AY685=\"Yes\",'Enrollment Form'!$AY685=\"\"),\"-\",IF(OR(AND('Enrollment Form'!$AY685=\"No\",ISERROR(FIND(\"HMO\",VLOOKUP('Enrollment Form'!G685,'Enrollment Form'!H$11:J$1000,3,FALSE),1))=FALSE,COUNTA('Enrollment Form'!$AZ685:$BC685)=4),AND('Enrollment Form'!$AY685=\"No\",ISERROR(FIND(\"HMO\",VLOOKUP('Enrollment Form'!G685,'Enrollment Form'!H$11:J$1000,3,FALSE),1))=FALSE,COUNTA('Enrollment Form'!$BT685:$BW685)=4)),\"Y\",\"N\"))","v":"-"},{"$f":"IF($B678=\"N\",\"\",IF('Enrollment Form'!$B685=\"Subscriber\",\"-\",IF(COUNTA('Enrollment Form'!$BL685,'Enrollment Form'!$BN685)=2,\"Y\",\"N\")))","v":""},{"$f":"IF($B678=\"N\",\"\",IF(OR('Enrollment Form'!$AX685=\"\",'Enrollment Form'!$AX685=\"No\"),\"-\",IF(AND('Enrollment Form'!$AX685=\"Yes\",COUNTA('Enrollment Form'!$CR685)=1),\"Y\",\"N\")))","v":""},{"$f":"IF(OR('Enrollment Form'!$CR685=\"\",'Enrollment Form'!$CR685=\"No\"),\"-\",IF(COUNTA('Enrollment Form'!$CT685:$CU685)=2,\"Y\",\"N\"))","v":"-"},{"$f":"IF($B678=\"N\",\"\",IF(COUNTIF('Enrollment Form'!$DG685:$DP685,\"Other\")=COUNTA('Enrollment Form'!$DK685,'Enrollment Form'!$DH685,'Enrollment Form'!$DN685,'Enrollment Form'!$DQ685),\"Y\",\"N\"))","v":""},{"$f":"IF($B678=\"N\",\"\",IF(OR('Enrollment Form'!B685<>\"Subscriber\",'Enrollment Form'!C685=\"ROC\",COUNTIF('Enrollment Form'!AV685:AW685,\"Yes\")>=1),\"-\",IF(AND('Enrollment Form'!C685=\"Enroll\",COUNTIF('Enrollment Form'!AV685:AW685,\"No\")=2,'Enrollment Form'!AX685=\"\"),\"N\",\"Y\")))","v":""},{"$f":"IF(OR(B678=\"N\",'Enrollment Form'!B685<>\"Subscriber\",'Enrollment Form'!C685=\"ROC\",'Enrollment Form'!O685<>\"Multiple of Salary\"),\"-\",IF(COUNTA('Enrollment Form'!T685:U685)<2,\"N\",\"Y\"))","v":"-"},{"$f":"IF(B678=\"N\",\"\",IF(OR('Enrollment Form'!C685=\"ROC\",'Enrollment Form'!B685<>\"Subscriber\",'Enrollment Form'!O685=\"Waive\",'Enrollment Form'!O685=\"\"),\"-\",IF('Enrollment Form'!P685=\"\",\"N\",\"Y\")))","v":""},{"$f":"IF($B678=\"N\",\"\",IF(AND('Enrollment Form'!$C685=\"ROC\",'Enrollment Form'!$DR685<>\"\"),\"Y\",IF(AND('Enrollment Form'!$C685=\"ROC\",'Enrollment Form'!$DR685=\"\"),\"N\",IF(AND('Enrollment Form'!$C685=\"Enroll\",'Enrollment Form'!$B685=\"Subscriber\",'Enrollment Form'!$CX685=\"No\",'Enrollment Form'!$DR685=\"\"),\"N\",IF(AND('Enrollment Form'!$C685=\"Enroll\",'Enrollment Form'!$B685=\"Subscriber\",'Enrollment Form'!$CX685=\"Yes\"),\"-\",\"Y\")))))","v":""},{"$f":"IF($B678=\"N\",\"\",IF(AND('Enrollment Form'!$C685=\"ROC\",'Enrollment Form'!$DS685<>\"\"),\"Y\",IF(AND('Enrollment Form'!$C685=\"ROC\",'Enrollment Form'!$DS685=\"\"),\"N\",IF(AND('Enrollment Form'!$C685=\"Enroll\",'Enrollment Form'!$B685=\"Subscriber\",'Enrollment Form'!$CX685=\"No\",'Enrollment Form'!$DS685=\"\"),\"N\",IF(AND('Enrollment Form'!$C685=\"Enroll\",'Enrollment Form'!$B685=\"Subscriber\",'Enrollment Form'!$CX685=\"Yes\"),\"-\",\"Y\")))))","v":""},{"$f":"IF('Enrollment Form'!AH685=\"\",\"\",IF(ISERROR(SEARCH(\".\",'Enrollment Form'!AH685,SEARCH(\"@\",'Enrollment Form'!AH685))),\"N\",\"Y\"))","v":""},{"$f":"IF(OR($B678=\"N\",'Enrollment Form'!$G685=\"\"),\"\",IF('Enrollment Form'!$B685<>\"Subscriber\",\"-\",IF(COUNTIF('Enrollment Form'!$AV685:$AW685,\"Yes\")=2,\"N\",\"Y\")))","v":""},{"$f":"IF(OR('Enrollment Form'!$CJ685=\"\",'Enrollment Form'!$CJ685=\"No\"),\"-\",IF(AND('Enrollment Form'!$CJ685=\"Yes\",'Enrollment Form'!$CK685=\"\"),\"N\",\"Y\"))","v":"-"},{"$f":"IF(OR('Enrollment Form'!$CL685=\"\",'Enrollment Form'!$CL685=\"No\"),\"-\",IF(AND('Enrollment Form'!$CL685=\"Yes\",'Enrollment Form'!$CM685=\"\"),\"N\",\"Y\"))","v":"-"},{"$f":"IF(OR('Enrollment Form'!$CN685=\"\",'Enrollment Form'!$CN685=\"No\"),\"-\",IF(AND('Enrollment Form'!$CN685=\"Yes\",'Enrollment Form'!$CO685=\"\"),\"N\",\"Y\"))","v":"-"},{"$f":"IF(OR('Enrollment Form'!$CN685=\"\",'Enrollment Form'!$CN685=\"No\"),\"-\",IF(AND('Enrollment Form'!$CN685=\"Yes\",'Enrollment Form'!$CP685=\"\"),\"N\",\"Y\"))","v":"-"},{"$f":"IF('Enrollment Form'!B685<>\"Subscriber\",\"-\",IF(AND('Enrollment Form'!B685=\"Subscriber\",'Enrollment Form'!C685=\"Enroll\",'Enrollment Form'!AA685=\"\"),\"N\",\"Y\"))","v":"-"},{"$f":"IF(OR('Enrollment Form'!B685=\"Subscriber\",'Enrollment Form'!B685=\"\"),\"-\",IF('Enrollment Form'!BP685=\"\",\"N\",\"Y\"))","v":"-"},{"$f":"IF('Enrollment Form'!B685<>\"Subscriber\",\"-\",IF(AND('Enrollment Form'!B685=\"Subscriber\",'Enrollment Form'!G685=\"\"),\"N\",\"Y\"))","v":"-"},{"$f":"IF('Enrollment Form'!A685=\"\",\"\",IF('Enrollment Form'!B685=\"Subscriber\",\"-\",IF(AND('Enrollment Form'!B685<>\"Subscriber\",'Enrollment Form'!G685='Enrollment Form'!H685),\"N\",\"Y\")))","v":""},0]
[686,{"$f":"IF('Enrollment Form'!$A686<>\"\",\"Y\",\"N\")","v":"N"},{"$f":"IF(AND('Enrollment Form'!$B686=\"\",'Enrollment Form'!$C686<>\"\"),\"N\",IF($B679=\"N\",\"\",\"Y\"))","v":""},{"$f":"IF(OR($B679=\"N\",'Enrollment Form'!G686=\"\"),\"\",IF('Enrollment Form'!$B686<>\"Subscriber\",\"\",IF('Enrollment Form'!$G686='Enrollment Form'!$H686,\"Y\",\"N\")))","v":""},{"$f":"IF($B679=\"N\",\"\",IF(AND(COUNTIFS('Enrollment Form'!$H$11:$H$1000,'Enrollment Form'!$H686,'Enrollment Form'!$B$11:$B$1000,'Enrollment Form'!$B686)>1,'Enrollment Form'!$H686<>\"\"),\"N\",\"Y\"))","v":""},{"$f":"IF($B679=\"N\",\"\",IF(LEN('Enrollment Form'!$Y686)=0,\"\",IF(LEN('Enrollment Form'!$Y686)<>5,\"N\",\"Y\")))","v":""},{"$f":"IF($B679=\"N\",\"\",IF(LEN('Enrollment Form'!$AD686=0),\"\",IF(LEN('Enrollment Form'!$AD686)<>5,\"N\",\"Y\")))","v":""},{"$f":"IF($B679=\"N\",\"\",IF(LEN('Enrollment Form'!$BS686=0),\"\",IF(LEN('Enrollment Form'!$BS686)<>5,\"N\",\"Y\")))","v":""},{"$f":"IF($B679=\"N\",\"\",IF(LEN('Enrollment Form'!$AE686)=0,\"\",IF(LEN('Enrollment Form'!$AE686)<>10,\"N\",\"Y\")))","v":""},{"$f":"IF($B679=\"N\",\"\",IF(LEN('Enrollment Form'!$AF686)=0,\"\",IF(LEN('Enrollment Form'!$AF686)<>10,\"N\",\"Y\")))","v":""},{"$f":"IF('Enrollment Form'!$O686<>\"Graded\",\"-\",IF(AND('Enrollment Form'!$O686=\"Graded\",'Enrollment Form'!$AR686<>\"\"),\"Y\",\"N\"))","v":"-"},{"$f":"IF($B679=\"N\",\"\",IF(OR('Enrollment Form'!$B686<>\"Subscriber\",'Enrollment Form'!$C686=\"ROC\"),\"-\",IF(AND('Enrollment Form'!$B686=\"Subscriber\",'Enrollment Form'!$C686=\"Enroll\",'Enrollment Form'!$AJ686<>\"\"),\"Y\",\"N\")))","v":""},{"$f":"IF($B679=\"N\",\"\",IF(OR('Enrollment Form'!$B686<>\"Subscriber\",'Enrollment Form'!$C686=\"ROC\"),\"-\",IF(AND('Enrollment Form'!$B686=\"Subscriber\",'Enrollment Form'!$C686=\"Enroll\",'Enrollment Form'!$AK686<>\"\"),\"Y\",\"N\")))","v":""},{"$f":"IF($B679=\"N\",\"\",IF(OR('Enrollment Form'!$B686<>\"Subscriber\",'Enrollment Form'!$C686=\"ROC\"),\"-\",IF(AND('Enrollment Form'!$B686=\"Subscriber\",'Enrollment Form'!$C686=\"Enroll\",'Enrollment Form'!$AL686<>\"\"),\"Y\",\"N\")))","v":""},{"$f":"IF($B679=\"N\",\"\",IF(OR('Enrollment Form'!$B686<>\"Subscriber\",'Enrollment Form'!$C686=\"ROC\"),\"-\",IF(AND('Enrollment Form'!$B686=\"Subscriber\",'Enrollment Form'!$C686=\"Enroll\",'Enrollment Form'!$AP686<>\"\"),\"Y\",\"N\")))","v":""},{"$f":"IF($B679=\"N\",\"\",IF(OR('Enrollment Form'!$B686<>\"Subscriber\",'Enrollment Form'!$C686=\"ROC\"),\"-\",IF(AND('Enrollment Form'!$B686=\"Subscriber\",'Enrollment Form'!$C686=\"Enroll\",'Enrollment Form'!$AQ686<>\"\"),\"Y\",\"N\")))","v":""},{"$f":"IF($B679=\"N\",\"\",IF(OR('Enrollment Form'!$B686<>\"Subscriber\",'Enrollment Form'!$C686=\"ROC\"),\"-\",IF(AND('Enrollment Form'!$B686=\"Subscriber\",'Enrollment Form'!$C686=\"Enroll\",'Enrollment Form'!$AS686<>\"\"),\"Y\",\"N\")))","v":""},{"$f":"IF($B679=\"N\",\"\",IF($Q679=\"-\",\"-\",IF(AND($Q679=\"Y\",'Enrollment Form'!$AS686=\"No\"),\"-\",IF(AND($Q679=\"Y\",'Enrollment Form'!$AS686=\"Yes\",'Enrollment Form'!$AT686<>\"\"),\"Y\",\"N\"))))","v":""},{"$f":"IF($B679=\"N\",\"\",IF(OR('Enrollment Form'!$B686<>\"Subscriber\",'Enrollment Form'!$C686=\"ROC\"),\"-\",IF(AND('Enrollment Form'!$B686=\"Subscriber\",'Enrollment Form'!$C686=\"Enroll\",'Enrollment Form'!$CV686<>\"\"),\"Y\",\"N\")))","v":""},{"$f":"IF($B679=\"N\",\"\",IF($S679=\"-\",\"-\",IF(AND($S679=\"Y\",'Enrollment Form'!$CV686=\"No\"),\"-\",IF(AND($S679=\"Y\",'Enrollment Form'!$CV686=\"Yes\",'Enrollment Form'!$CW686<>\"\"),\"Y\",\"N\"))))","v":""},{"$f":"IF(OR('Enrollment Form'!$AY686=\"Yes\",'Enrollment Form'!$AY686=\"\"),\"-\",IF(OR(AND('Enrollment Form'!$AY686=\"No\",ISERROR(FIND(\"HMO\",VLOOKUP('Enrollment Form'!G686,'Enrollment Form'!H$11:J$1000,3,FALSE),1))=FALSE,COUNTA('Enrollment Form'!$AZ686:$BC686)=4),AND('Enrollment Form'!$AY686=\"No\",ISERROR(FIND(\"HMO\",VLOOKUP('Enrollment Form'!G686,'Enrollment Form'!H$11:J$1000,3,FALSE),1))=FALSE,COUNTA('Enrollment Form'!$BT686:$BW686)=4)),\"Y\",\"N\"))","v":"-"},{"$f":"IF($B679=\"N\",\"\",IF('Enrollment Form'!$B686=\"Subscriber\",\"-\",IF(COUNTA('Enrollment Form'!$BL686,'Enrollment Form'!$BN686)=2,\"Y\",\"N\")))","v":""},{"$f":"IF($B679=\"N\",\"\",IF(OR('Enrollment Form'!$AX686=\"\",'Enrollment Form'!$AX686=\"No\"),\"-\",IF(AND('Enrollment Form'!$AX686=\"Yes\",COUNTA('Enrollment Form'!$CR686)=1),\"Y\",\"N\")))","v":""},{"$f":"IF(OR('Enrollment Form'!$CR686=\"\",'Enrollment Form'!$CR686=\"No\"),\"-\",IF(COUNTA('Enrollment Form'!$CT686:$CU686)=2,\"Y\",\"N\"))","v":"-"},{"$f":"IF($B679=\"N\",\"\",IF(COUNTIF('Enrollment Form'!$DG686:$DP686,\"Other\")=COUNTA('Enrollment Form'!$DK686,'Enrollment Form'!$DH686,'Enrollment Form'!$DN686,'Enrollment Form'!$DQ686),\"Y\",\"N\"))","v":""},{"$f":"IF($B679=\"N\",\"\",IF(OR('Enrollment Form'!B686<>\"Subscriber\",'Enrollment Form'!C686=\"ROC\",COUNTIF('Enrollment Form'!AV686:AW686,\"Yes\")>=1),\"-\",IF(AND('Enrollment Form'!C686=\"Enroll\",COUNTIF('Enrollment Form'!AV686:AW686,\"No\")=2,'Enrollment Form'!AX686=\"\"),\"N\",\"Y\")))","v":""},{"$f":"IF(OR(B679=\"N\",'Enrollment Form'!B686<>\"Subscriber\",'Enrollment Form'!C686=\"ROC\",'Enrollment Form'!O686<>\"Multiple of Salary\"),\"-\",IF(COUNTA('Enrollment Form'!T686:U686)<2,\"N\",\"Y\"))","v":"-"},{"$f":"IF(B679=\"N\",\"\",IF(OR('Enrollment Form'!C686=\"ROC\",'Enrollment Form'!B686<>\"Subscriber\",'Enrollment Form'!O686=\"Waive\",'Enrollment Form'!O686=\"\"),\"-\",IF('Enrollment Form'!P686=\"\",\"N\",\"Y\")))","v":""},{"$f":"IF($B679=\"N\",\"\",IF(AND('Enrollment Form'!$C686=\"ROC\",'Enrollment Form'!$DR686<>\"\"),\"Y\",IF(AND('Enrollment Form'!$C686=\"ROC\",'Enrollment Form'!$DR686=\"\"),\"N\",IF(AND('Enrollment Form'!$C686=\"Enroll\",'Enrollment Form'!$B686=\"Subscriber\",'Enrollment Form'!$CX686=\"No\",'Enrollment Form'!$DR686=\"\"),\"N\",IF(AND('Enrollment Form'!$C686=\"Enroll\",'Enrollment Form'!$B686=\"Subscriber\",'Enrollment Form'!$CX686=\"Yes\"),\"-\",\"Y\")))))","v":""},{"$f":"IF($B679=\"N\",\"\",IF(AND('Enrollment Form'!$C686=\"ROC\",'Enrollment Form'!$DS686<>\"\"),\"Y\",IF(AND('Enrollment Form'!$C686=\"ROC\",'Enrollment Form'!$DS686=\"\"),\"N\",IF(AND('Enrollment Form'!$C686=\"Enroll\",'Enrollment Form'!$B686=\"Subscriber\",'Enrollment Form'!$CX686=\"No\",'Enrollment Form'!$DS686=\"\"),\"N\",IF(AND('Enrollment Form'!$C686=\"Enroll\",'Enrollment Form'!$B686=\"Subscriber\",'Enrollment Form'!$CX686=\"Yes\"),\"-\",\"Y\")))))","v":""},{"$f":"IF('Enrollment Form'!AH686=\"\",\"\",IF(ISERROR(SEARCH(\".\",'Enrollment Form'!AH686,SEARCH(\"@\",'Enrollment Form'!AH686))),\"N\",\"Y\"))","v":""},{"$f":"IF(OR($B679=\"N\",'Enrollment Form'!$G686=\"\"),\"\",IF('Enrollment Form'!$B686<>\"Subscriber\",\"-\",IF(COUNTIF('Enrollment Form'!$AV686:$AW686,\"Yes\")=2,\"N\",\"Y\")))","v":""},{"$f":"IF(OR('Enrollment Form'!$CJ686=\"\",'Enrollment Form'!$CJ686=\"No\"),\"-\",IF(AND('Enrollment Form'!$CJ686=\"Yes\",'Enrollment Form'!$CK686=\"\"),\"N\",\"Y\"))","v":"-"},{"$f":"IF(OR('Enrollment Form'!$CL686=\"\",'Enrollment Form'!$CL686=\"No\"),\"-\",IF(AND('Enrollment Form'!$CL686=\"Yes\",'Enrollment Form'!$CM686=\"\"),\"N\",\"Y\"))","v":"-"},{"$f":"IF(OR('Enrollment Form'!$CN686=\"\",'Enrollment Form'!$CN686=\"No\"),\"-\",IF(AND('Enrollment Form'!$CN686=\"Yes\",'Enrollment Form'!$CO686=\"\"),\"N\",\"Y\"))","v":"-"},{"$f":"IF(OR('Enrollment Form'!$CN686=\"\",'Enrollment Form'!$CN686=\"No\"),\"-\",IF(AND('Enrollment Form'!$CN686=\"Yes\",'Enrollment Form'!$CP686=\"\"),\"N\",\"Y\"))","v":"-"},{"$f":"IF('Enrollment Form'!B686<>\"Subscriber\",\"-\",IF(AND('Enrollment Form'!B686=\"Subscriber\",'Enrollment Form'!C686=\"Enroll\",'Enrollment Form'!AA686=\"\"),\"N\",\"Y\"))","v":"-"},{"$f":"IF(OR('Enrollment Form'!B686=\"Subscriber\",'Enrollment Form'!B686=\"\"),\"-\",IF('Enrollment Form'!BP686=\"\",\"N\",\"Y\"))","v":"-"},{"$f":"IF('Enrollment Form'!B686<>\"Subscriber\",\"-\",IF(AND('Enrollment Form'!B686=\"Subscriber\",'Enrollment Form'!G686=\"\"),\"N\",\"Y\"))","v":"-"},{"$f":"IF('Enrollment Form'!A686=\"\",\"\",IF('Enrollment Form'!B686=\"Subscriber\",\"-\",IF(AND('Enrollment Form'!B686<>\"Subscriber\",'Enrollment Form'!G686='Enrollment Form'!H686),\"N\",\"Y\")))","v":""},0]
[687,{"$f":"IF('Enrollment Form'!$A687<>\"\",\"Y\",\"N\")","v":"N"},{"$f":"IF(AND('Enrollment Form'!$B687=\"\",'Enrollment Form'!$C687<>\"\"),\"N\",IF($B680=\"N\",\"\",\"Y\"))","v":""},{"$f":"IF(OR($B680=\"N\",'Enrollment Form'!G687=\"\"),\"\",IF('Enrollment Form'!$B687<>\"Subscriber\",\"\",IF('Enrollment Form'!$G687='Enrollment Form'!$H687,\"Y\",\"N\")))","v":""},{"$f":"IF($B680=\"N\",\"\",IF(AND(COUNTIFS('Enrollment Form'!$H$11:$H$1000,'Enrollment Form'!$H687,'Enrollment Form'!$B$11:$B$1000,'Enrollment Form'!$B687)>1,'Enrollment Form'!$H687<>\"\"),\"N\",\"Y\"))","v":""},{"$f":"IF($B680=\"N\",\"\",IF(LEN('Enrollment Form'!$Y687)=0,\"\",IF(LEN('Enrollment Form'!$Y687)<>5,\"N\",\"Y\")))","v":""},{"$f":"IF($B680=\"N\",\"\",IF(LEN('Enrollment Form'!$AD687=0),\"\",IF(LEN('Enrollment Form'!$AD687)<>5,\"N\",\"Y\")))","v":""},{"$f":"IF($B680=\"N\",\"\",IF(LEN('Enrollment Form'!$BS687=0),\"\",IF(LEN('Enrollment Form'!$BS687)<>5,\"N\",\"Y\")))","v":""},{"$f":"IF($B680=\"N\",\"\",IF(LEN('Enrollment Form'!$AE687)=0,\"\",IF(LEN('Enrollment Form'!$AE687)<>10,\"N\",\"Y\")))","v":""},{"$f":"IF($B680=\"N\",\"\",IF(LEN('Enrollment Form'!$AF687)=0,\"\",IF(LEN('Enrollment Form'!$AF687)<>10,\"N\",\"Y\")))","v":""},{"$f":"IF('Enrollment Form'!$O687<>\"Graded\",\"-\",IF(AND('Enrollment Form'!$O687=\"Graded\",'Enrollment Form'!$AR687<>\"\"),\"Y\",\"N\"))","v":"-"},{"$f":"IF($B680=\"N\",\"\",IF(OR('Enrollment Form'!$B687<>\"Subscriber\",'Enrollment Form'!$C687=\"ROC\"),\"-\",IF(AND('Enrollment Form'!$B687=\"Subscriber\",'Enrollment Form'!$C687=\"Enroll\",'Enrollment Form'!$AJ687<>\"\"),\"Y\",\"N\")))","v":""},{"$f":"IF($B680=\"N\",\"\",IF(OR('Enrollment Form'!$B687<>\"Subscriber\",'Enrollment Form'!$C687=\"ROC\"),\"-\",IF(AND('Enrollment Form'!$B687=\"Subscriber\",'Enrollment Form'!$C687=\"Enroll\",'Enrollment Form'!$AK687<>\"\"),\"Y\",\"N\")))","v":""},{"$f":"IF($B680=\"N\",\"\",IF(OR('Enrollment Form'!$B687<>\"Subscriber\",'Enrollment Form'!$C687=\"ROC\"),\"-\",IF(AND('Enrollment Form'!$B687=\"Subscriber\",'Enrollment Form'!$C687=\"Enroll\",'Enrollment Form'!$AL687<>\"\"),\"Y\",\"N\")))","v":""},{"$f":"IF($B680=\"N\",\"\",IF(OR('Enrollment Form'!$B687<>\"Subscriber\",'Enrollment Form'!$C687=\"ROC\"),\"-\",IF(AND('Enrollment Form'!$B687=\"Subscriber\",'Enrollment Form'!$C687=\"Enroll\",'Enrollment Form'!$AP687<>\"\"),\"Y\",\"N\")))","v":""},{"$f":"IF($B680=\"N\",\"\",IF(OR('Enrollment Form'!$B687<>\"Subscriber\",'Enrollment Form'!$C687=\"ROC\"),\"-\",IF(AND('Enrollment Form'!$B687=\"Subscriber\",'Enrollment Form'!$C687=\"Enroll\",'Enrollment Form'!$AQ687<>\"\"),\"Y\",\"N\")))","v":""},{"$f":"IF($B680=\"N\",\"\",IF(OR('Enrollment Form'!$B687<>\"Subscriber\",'Enrollment Form'!$C687=\"ROC\"),\"-\",IF(AND('Enrollment Form'!$B687=\"Subscriber\",'Enrollment Form'!$C687=\"Enroll\",'Enrollment Form'!$AS687<>\"\"),\"Y\",\"N\")))","v":""},{"$f":"IF($B680=\"N\",\"\",IF($Q680=\"-\",\"-\",IF(AND($Q680=\"Y\",'Enrollment Form'!$AS687=\"No\"),\"-\",IF(AND($Q680=\"Y\",'Enrollment Form'!$AS687=\"Yes\",'Enrollment Form'!$AT687<>\"\"),\"Y\",\"N\"))))","v":""},{"$f":"IF($B680=\"N\",\"\",IF(OR('Enrollment Form'!$B687<>\"Subscriber\",'Enrollment Form'!$C687=\"ROC\"),\"-\",IF(AND('Enrollment Form'!$B687=\"Subscriber\",'Enrollment Form'!$C687=\"Enroll\",'Enrollment Form'!$CV687<>\"\"),\"Y\",\"N\")))","v":""},{"$f":"IF($B680=\"N\",\"\",IF($S680=\"-\",\"-\",IF(AND($S680=\"Y\",'Enrollment Form'!$CV687=\"No\"),\"-\",IF(AND($S680=\"Y\",'Enrollment Form'!$CV687=\"Yes\",'Enrollment Form'!$CW687<>\"\"),\"Y\",\"N\"))))","v":""},{"$f":"IF(OR('Enrollment Form'!$AY687=\"Yes\",'Enrollment Form'!$AY687=\"\"),\"-\",IF(OR(AND('Enrollment Form'!$AY687=\"No\",ISERROR(FIND(\"HMO\",VLOOKUP('Enrollment Form'!G687,'Enrollment Form'!H$11:J$1000,3,FALSE),1))=FALSE,COUNTA('Enrollment Form'!$AZ687:$BC687)=4),AND('Enrollment Form'!$AY687=\"No\",ISERROR(FIND(\"HMO\",VLOOKUP('Enrollment Form'!G687,'Enrollment Form'!H$11:J$1000,3,FALSE),1))=FALSE,COUNTA('Enrollment Form'!$BT687:$BW687)=4)),\"Y\",\"N\"))","v":"-"},{"$f":"IF($B680=\"N\",\"\",IF('Enrollment Form'!$B687=\"Subscriber\",\"-\",IF(COUNTA('Enrollment Form'!$BL687,'Enrollment Form'!$BN687)=2,\"Y\",\"N\")))","v":""},{"$f":"IF($B680=\"N\",\"\",IF(OR('Enrollment Form'!$AX687=\"\",'Enrollment Form'!$AX687=\"No\"),\"-\",IF(AND('Enrollment Form'!$AX687=\"Yes\",COUNTA('Enrollment Form'!$CR687)=1),\"Y\",\"N\")))","v":""},{"$f":"IF(OR('Enrollment Form'!$CR687=\"\",'Enrollment Form'!$CR687=\"No\"),\"-\",IF(COUNTA('Enrollment Form'!$CT687:$CU687)=2,\"Y\",\"N\"))","v":"-"},{"$f":"IF($B680=\"N\",\"\",IF(COUNTIF('Enrollment Form'!$DG687:$DP687,\"Other\")=COUNTA('Enrollment Form'!$DK687,'Enrollment Form'!$DH687,'Enrollment Form'!$DN687,'Enrollment Form'!$DQ687),\"Y\",\"N\"))","v":""},{"$f":"IF($B680=\"N\",\"\",IF(OR('Enrollment Form'!B687<>\"Subscriber\",'Enrollment Form'!C687=\"ROC\",COUNTIF('Enrollment Form'!AV687:AW687,\"Yes\")>=1),\"-\",IF(AND('Enrollment Form'!C687=\"Enroll\",COUNTIF('Enrollment Form'!AV687:AW687,\"No\")=2,'Enrollment Form'!AX687=\"\"),\"N\",\"Y\")))","v":""},{"$f":"IF(OR(B680=\"N\",'Enrollment Form'!B687<>\"Subscriber\",'Enrollment Form'!C687=\"ROC\",'Enrollment Form'!O687<>\"Multiple of Salary\"),\"-\",IF(COUNTA('Enrollment Form'!T687:U687)<2,\"N\",\"Y\"))","v":"-"},{"$f":"IF(B680=\"N\",\"\",IF(OR('Enrollment Form'!C687=\"ROC\",'Enrollment Form'!B687<>\"Subscriber\",'Enrollment Form'!O687=\"Waive\",'Enrollment Form'!O687=\"\"),\"-\",IF('Enrollment Form'!P687=\"\",\"N\",\"Y\")))","v":""},{"$f":"IF($B680=\"N\",\"\",IF(AND('Enrollment Form'!$C687=\"ROC\",'Enrollment Form'!$DR687<>\"\"),\"Y\",IF(AND('Enrollment Form'!$C687=\"ROC\",'Enrollment Form'!$DR687=\"\"),\"N\",IF(AND('Enrollment Form'!$C687=\"Enroll\",'Enrollment Form'!$B687=\"Subscriber\",'Enrollment Form'!$CX687=\"No\",'Enrollment Form'!$DR687=\"\"),\"N\",IF(AND('Enrollment Form'!$C687=\"Enroll\",'Enrollment Form'!$B687=\"Subscriber\",'Enrollment Form'!$CX687=\"Yes\"),\"-\",\"Y\")))))","v":""},{"$f":"IF($B680=\"N\",\"\",IF(AND('Enrollment Form'!$C687=\"ROC\",'Enrollment Form'!$DS687<>\"\"),\"Y\",IF(AND('Enrollment Form'!$C687=\"ROC\",'Enrollment Form'!$DS687=\"\"),\"N\",IF(AND('Enrollment Form'!$C687=\"Enroll\",'Enrollment Form'!$B687=\"Subscriber\",'Enrollment Form'!$CX687=\"No\",'Enrollment Form'!$DS687=\"\"),\"N\",IF(AND('Enrollment Form'!$C687=\"Enroll\",'Enrollment Form'!$B687=\"Subscriber\",'Enrollment Form'!$CX687=\"Yes\"),\"-\",\"Y\")))))","v":""},{"$f":"IF('Enrollment Form'!AH687=\"\",\"\",IF(ISERROR(SEARCH(\".\",'Enrollment Form'!AH687,SEARCH(\"@\",'Enrollment Form'!AH687))),\"N\",\"Y\"))","v":""},{"$f":"IF(OR($B680=\"N\",'Enrollment Form'!$G687=\"\"),\"\",IF('Enrollment Form'!$B687<>\"Subscriber\",\"-\",IF(COUNTIF('Enrollment Form'!$AV687:$AW687,\"Yes\")=2,\"N\",\"Y\")))","v":""},{"$f":"IF(OR('Enrollment Form'!$CJ687=\"\",'Enrollment Form'!$CJ687=\"No\"),\"-\",IF(AND('Enrollment Form'!$CJ687=\"Yes\",'Enrollment Form'!$CK687=\"\"),\"N\",\"Y\"))","v":"-"},{"$f":"IF(OR('Enrollment Form'!$CL687=\"\",'Enrollment Form'!$CL687=\"No\"),\"-\",IF(AND('Enrollment Form'!$CL687=\"Yes\",'Enrollment Form'!$CM687=\"\"),\"N\",\"Y\"))","v":"-"},{"$f":"IF(OR('Enrollment Form'!$CN687=\"\",'Enrollment Form'!$CN687=\"No\"),\"-\",IF(AND('Enrollment Form'!$CN687=\"Yes\",'Enrollment Form'!$CO687=\"\"),\"N\",\"Y\"))","v":"-"},{"$f":"IF(OR('Enrollment Form'!$CN687=\"\",'Enrollment Form'!$CN687=\"No\"),\"-\",IF(AND('Enrollment Form'!$CN687=\"Yes\",'Enrollment Form'!$CP687=\"\"),\"N\",\"Y\"))","v":"-"},{"$f":"IF('Enrollment Form'!B687<>\"Subscriber\",\"-\",IF(AND('Enrollment Form'!B687=\"Subscriber\",'Enrollment Form'!C687=\"Enroll\",'Enrollment Form'!AA687=\"\"),\"N\",\"Y\"))","v":"-"},{"$f":"IF(OR('Enrollment Form'!B687=\"Subscriber\",'Enrollment Form'!B687=\"\"),\"-\",IF('Enrollment Form'!BP687=\"\",\"N\",\"Y\"))","v":"-"},{"$f":"IF('Enrollment Form'!B687<>\"Subscriber\",\"-\",IF(AND('Enrollment Form'!B687=\"Subscriber\",'Enrollment Form'!G687=\"\"),\"N\",\"Y\"))","v":"-"},{"$f":"IF('Enrollment Form'!A687=\"\",\"\",IF('Enrollment Form'!B687=\"Subscriber\",\"-\",IF(AND('Enrollment Form'!B687<>\"Subscriber\",'Enrollment Form'!G687='Enrollment Form'!H687),\"N\",\"Y\")))","v":""},0]
[688,{"$f":"IF('Enrollment Form'!$A688<>\"\",\"Y\",\"N\")","v":"N"},{"$f":"IF(AND('Enrollment Form'!$B688=\"\",'Enrollment Form'!$C688<>\"\"),\"N\",IF($B681=\"N\",\"\",\"Y\"))","v":""},{"$f":"IF(OR($B681=\"N\",'Enrollment Form'!G688=\"\"),\"\",IF('Enrollment Form'!$B688<>\"Subscriber\",\"\",IF('Enrollment Form'!$G688='Enrollment Form'!$H688,\"Y\",\"N\")))","v":""},{"$f":"IF($B681=\"N\",\"\",IF(AND(COUNTIFS('Enrollment Form'!$H$11:$H$1000,'Enrollment Form'!$H688,'Enrollment Form'!$B$11:$B$1000,'Enrollment Form'!$B688)>1,'Enrollment Form'!$H688<>\"\"),\"N\",\"Y\"))","v":""},{"$f":"IF($B681=\"N\",\"\",IF(LEN('Enrollment Form'!$Y688)=0,\"\",IF(LEN('Enrollment Form'!$Y688)<>5,\"N\",\"Y\")))","v":""},{"$f":"IF($B681=\"N\",\"\",IF(LEN('Enrollment Form'!$AD688=0),\"\",IF(LEN('Enrollment Form'!$AD688)<>5,\"N\",\"Y\")))","v":""},{"$f":"IF($B681=\"N\",\"\",IF(LEN('Enrollment Form'!$BS688=0),\"\",IF(LEN('Enrollment Form'!$BS688)<>5,\"N\",\"Y\")))","v":""},{"$f":"IF($B681=\"N\",\"\",IF(LEN('Enrollment Form'!$AE688)=0,\"\",IF(LEN('Enrollment Form'!$AE688)<>10,\"N\",\"Y\")))","v":""},{"$f":"IF($B681=\"N\",\"\",IF(LEN('Enrollment Form'!$AF688)=0,\"\",IF(LEN('Enrollment Form'!$AF688)<>10,\"N\",\"Y\")))","v":""},{"$f":"IF('Enrollment Form'!$O688<>\"Graded\",\"-\",IF(AND('Enrollment Form'!$O688=\"Graded\",'Enrollment Form'!$AR688<>\"\"),\"Y\",\"N\"))","v":"-"},{"$f":"IF($B681=\"N\",\"\",IF(OR('Enrollment Form'!$B688<>\"Subscriber\",'Enrollment Form'!$C688=\"ROC\"),\"-\",IF(AND('Enrollment Form'!$B688=\"Subscriber\",'Enrollment Form'!$C688=\"Enroll\",'Enrollment Form'!$AJ688<>\"\"),\"Y\",\"N\")))","v":""},{"$f":"IF($B681=\"N\",\"\",IF(OR('Enrollment Form'!$B688<>\"Subscriber\",'Enrollment Form'!$C688=\"ROC\"),\"-\",IF(AND('Enrollment Form'!$B688=\"Subscriber\",'Enrollment Form'!$C688=\"Enroll\",'Enrollment Form'!$AK688<>\"\"),\"Y\",\"N\")))","v":""},{"$f":"IF($B681=\"N\",\"\",IF(OR('Enrollment Form'!$B688<>\"Subscriber\",'Enrollment Form'!$C688=\"ROC\"),\"-\",IF(AND('Enrollment Form'!$B688=\"Subscriber\",'Enrollment Form'!$C688=\"Enroll\",'Enrollment Form'!$AL688<>\"\"),\"Y\",\"N\")))","v":""},{"$f":"IF($B681=\"N\",\"\",IF(OR('Enrollment Form'!$B688<>\"Subscriber\",'Enrollment Form'!$C688=\"ROC\"),\"-\",IF(AND('Enrollment Form'!$B688=\"Subscriber\",'Enrollment Form'!$C688=\"Enroll\",'Enrollment Form'!$AP688<>\"\"),\"Y\",\"N\")))","v":""},{"$f":"IF($B681=\"N\",\"\",IF(OR('Enrollment Form'!$B688<>\"Subscriber\",'Enrollment Form'!$C688=\"ROC\"),\"-\",IF(AND('Enrollment Form'!$B688=\"Subscriber\",'Enrollment Form'!$C688=\"Enroll\",'Enrollment Form'!$AQ688<>\"\"),\"Y\",\"N\")))","v":""},{"$f":"IF($B681=\"N\",\"\",IF(OR('Enrollment Form'!$B688<>\"Subscriber\",'Enrollment Form'!$C688=\"ROC\"),\"-\",IF(AND('Enrollment Form'!$B688=\"Subscriber\",'Enrollment Form'!$C688=\"Enroll\",'Enrollment Form'!$AS688<>\"\"),\"Y\",\"N\")))","v":""},{"$f":"IF($B681=\"N\",\"\",IF($Q681=\"-\",\"-\",IF(AND($Q681=\"Y\",'Enrollment Form'!$AS688=\"No\"),\"-\",IF(AND($Q681=\"Y\",'Enrollment Form'!$AS688=\"Yes\",'Enrollment Form'!$AT688<>\"\"),\"Y\",\"N\"))))","v":""},{"$f":"IF($B681=\"N\",\"\",IF(OR('Enrollment Form'!$B688<>\"Subscriber\",'Enrollment Form'!$C688=\"ROC\"),\"-\",IF(AND('Enrollment Form'!$B688=\"Subscriber\",'Enrollment Form'!$C688=\"Enroll\",'Enrollment Form'!$CV688<>\"\"),\"Y\",\"N\")))","v":""},{"$f":"IF($B681=\"N\",\"\",IF($S681=\"-\",\"-\",IF(AND($S681=\"Y\",'Enrollment Form'!$CV688=\"No\"),\"-\",IF(AND($S681=\"Y\",'Enrollment Form'!$CV688=\"Yes\",'Enrollment Form'!$CW688<>\"\"),\"Y\",\"N\"))))","v":""},{"$f":"IF(OR('Enrollment Form'!$AY688=\"Yes\",'Enrollment Form'!$AY688=\"\"),\"-\",IF(OR(AND('Enrollment Form'!$AY688=\"No\",ISERROR(FIND(\"HMO\",VLOOKUP('Enrollment Form'!G688,'Enrollment Form'!H$11:J$1000,3,FALSE),1))=FALSE,COUNTA('Enrollment Form'!$AZ688:$BC688)=4),AND('Enrollment Form'!$AY688=\"No\",ISERROR(FIND(\"HMO\",VLOOKUP('Enrollment Form'!G688,'Enrollment Form'!H$11:J$1000,3,FALSE),1))=FALSE,COUNTA('Enrollment Form'!$BT688:$BW688)=4)),\"Y\",\"N\"))","v":"-"},{"$f":"IF($B681=\"N\",\"\",IF('Enrollment Form'!$B688=\"Subscriber\",\"-\",IF(COUNTA('Enrollment Form'!$BL688,'Enrollment Form'!$BN688)=2,\"Y\",\"N\")))","v":""},{"$f":"IF($B681=\"N\",\"\",IF(OR('Enrollment Form'!$AX688=\"\",'Enrollment Form'!$AX688=\"No\"),\"-\",IF(AND('Enrollment Form'!$AX688=\"Yes\",COUNTA('Enrollment Form'!$CR688)=1),\"Y\",\"N\")))","v":""},{"$f":"IF(OR('Enrollment Form'!$CR688=\"\",'Enrollment Form'!$CR688=\"No\"),\"-\",IF(COUNTA('Enrollment Form'!$CT688:$CU688)=2,\"Y\",\"N\"))","v":"-"},{"$f":"IF($B681=\"N\",\"\",IF(COUNTIF('Enrollment Form'!$DG688:$DP688,\"Other\")=COUNTA('Enrollment Form'!$DK688,'Enrollment Form'!$DH688,'Enrollment Form'!$DN688,'Enrollment Form'!$DQ688),\"Y\",\"N\"))","v":""},{"$f":"IF($B681=\"N\",\"\",IF(OR('Enrollment Form'!B688<>\"Subscriber\",'Enrollment Form'!C688=\"ROC\",COUNTIF('Enrollment Form'!AV688:AW688,\"Yes\")>=1),\"-\",IF(AND('Enrollment Form'!C688=\"Enroll\",COUNTIF('Enrollment Form'!AV688:AW688,\"No\")=2,'Enrollment Form'!AX688=\"\"),\"N\",\"Y\")))","v":""},{"$f":"IF(OR(B681=\"N\",'Enrollment Form'!B688<>\"Subscriber\",'Enrollment Form'!C688=\"ROC\",'Enrollment Form'!O688<>\"Multiple of Salary\"),\"-\",IF(COUNTA('Enrollment Form'!T688:U688)<2,\"N\",\"Y\"))","v":"-"},{"$f":"IF(B681=\"N\",\"\",IF(OR('Enrollment Form'!C688=\"ROC\",'Enrollment Form'!B688<>\"Subscriber\",'Enrollment Form'!O688=\"Waive\",'Enrollment Form'!O688=\"\"),\"-\",IF('Enrollment Form'!P688=\"\",\"N\",\"Y\")))","v":""},{"$f":"IF($B681=\"N\",\"\",IF(AND('Enrollment Form'!$C688=\"ROC\",'Enrollment Form'!$DR688<>\"\"),\"Y\",IF(AND('Enrollment Form'!$C688=\"ROC\",'Enrollment Form'!$DR688=\"\"),\"N\",IF(AND('Enrollment Form'!$C688=\"Enroll\",'Enrollment Form'!$B688=\"Subscriber\",'Enrollment Form'!$CX688=\"No\",'Enrollment Form'!$DR688=\"\"),\"N\",IF(AND('Enrollment Form'!$C688=\"Enroll\",'Enrollment Form'!$B688=\"Subscriber\",'Enrollment Form'!$CX688=\"Yes\"),\"-\",\"Y\")))))","v":""},{"$f":"IF($B681=\"N\",\"\",IF(AND('Enrollment Form'!$C688=\"ROC\",'Enrollment Form'!$DS688<>\"\"),\"Y\",IF(AND('Enrollment Form'!$C688=\"ROC\",'Enrollment Form'!$DS688=\"\"),\"N\",IF(AND('Enrollment Form'!$C688=\"Enroll\",'Enrollment Form'!$B688=\"Subscriber\",'Enrollment Form'!$CX688=\"No\",'Enrollment Form'!$DS688=\"\"),\"N\",IF(AND('Enrollment Form'!$C688=\"Enroll\",'Enrollment Form'!$B688=\"Subscriber\",'Enrollment Form'!$CX688=\"Yes\"),\"-\",\"Y\")))))","v":""},{"$f":"IF('Enrollment Form'!AH688=\"\",\"\",IF(ISERROR(SEARCH(\".\",'Enrollment Form'!AH688,SEARCH(\"@\",'Enrollment Form'!AH688))),\"N\",\"Y\"))","v":""},{"$f":"IF(OR($B681=\"N\",'Enrollment Form'!$G688=\"\"),\"\",IF('Enrollment Form'!$B688<>\"Subscriber\",\"-\",IF(COUNTIF('Enrollment Form'!$AV688:$AW688,\"Yes\")=2,\"N\",\"Y\")))","v":""},{"$f":"IF(OR('Enrollment Form'!$CJ688=\"\",'Enrollment Form'!$CJ688=\"No\"),\"-\",IF(AND('Enrollment Form'!$CJ688=\"Yes\",'Enrollment Form'!$CK688=\"\"),\"N\",\"Y\"))","v":"-"},{"$f":"IF(OR('Enrollment Form'!$CL688=\"\",'Enrollment Form'!$CL688=\"No\"),\"-\",IF(AND('Enrollment Form'!$CL688=\"Yes\",'Enrollment Form'!$CM688=\"\"),\"N\",\"Y\"))","v":"-"},{"$f":"IF(OR('Enrollment Form'!$CN688=\"\",'Enrollment Form'!$CN688=\"No\"),\"-\",IF(AND('Enrollment Form'!$CN688=\"Yes\",'Enrollment Form'!$CO688=\"\"),\"N\",\"Y\"))","v":"-"},{"$f":"IF(OR('Enrollment Form'!$CN688=\"\",'Enrollment Form'!$CN688=\"No\"),\"-\",IF(AND('Enrollment Form'!$CN688=\"Yes\",'Enrollment Form'!$CP688=\"\"),\"N\",\"Y\"))","v":"-"},{"$f":"IF('Enrollment Form'!B688<>\"Subscriber\",\"-\",IF(AND('Enrollment Form'!B688=\"Subscriber\",'Enrollment Form'!C688=\"Enroll\",'Enrollment Form'!AA688=\"\"),\"N\",\"Y\"))","v":"-"},{"$f":"IF(OR('Enrollment Form'!B688=\"Subscriber\",'Enrollment Form'!B688=\"\"),\"-\",IF('Enrollment Form'!BP688=\"\",\"N\",\"Y\"))","v":"-"},{"$f":"IF('Enrollment Form'!B688<>\"Subscriber\",\"-\",IF(AND('Enrollment Form'!B688=\"Subscriber\",'Enrollment Form'!G688=\"\"),\"N\",\"Y\"))","v":"-"},{"$f":"IF('Enrollment Form'!A688=\"\",\"\",IF('Enrollment Form'!B688=\"Subscriber\",\"-\",IF(AND('Enrollment Form'!B688<>\"Subscriber\",'Enrollment Form'!G688='Enrollment Form'!H688),\"N\",\"Y\")))","v":""},0]
[689,{"$f":"IF('Enrollment Form'!$A689<>\"\",\"Y\",\"N\")","v":"N"},{"$f":"IF(AND('Enrollment Form'!$B689=\"\",'Enrollment Form'!$C689<>\"\"),\"N\",IF($B682=\"N\",\"\",\"Y\"))","v":""},{"$f":"IF(OR($B682=\"N\",'Enrollment Form'!G689=\"\"),\"\",IF('Enrollment Form'!$B689<>\"Subscriber\",\"\",IF('Enrollment Form'!$G689='Enrollment Form'!$H689,\"Y\",\"N\")))","v":""},{"$f":"IF($B682=\"N\",\"\",IF(AND(COUNTIFS('Enrollment Form'!$H$11:$H$1000,'Enrollment Form'!$H689,'Enrollment Form'!$B$11:$B$1000,'Enrollment Form'!$B689)>1,'Enrollment Form'!$H689<>\"\"),\"N\",\"Y\"))","v":""},{"$f":"IF($B682=\"N\",\"\",IF(LEN('Enrollment Form'!$Y689)=0,\"\",IF(LEN('Enrollment Form'!$Y689)<>5,\"N\",\"Y\")))","v":""},{"$f":"IF($B682=\"N\",\"\",IF(LEN('Enrollment Form'!$AD689=0),\"\",IF(LEN('Enrollment Form'!$AD689)<>5,\"N\",\"Y\")))","v":""},{"$f":"IF($B682=\"N\",\"\",IF(LEN('Enrollment Form'!$BS689=0),\"\",IF(LEN('Enrollment Form'!$BS689)<>5,\"N\",\"Y\")))","v":""},{"$f":"IF($B682=\"N\",\"\",IF(LEN('Enrollment Form'!$AE689)=0,\"\",IF(LEN('Enrollment Form'!$AE689)<>10,\"N\",\"Y\")))","v":""},{"$f":"IF($B682=\"N\",\"\",IF(LEN('Enrollment Form'!$AF689)=0,\"\",IF(LEN('Enrollment Form'!$AF689)<>10,\"N\",\"Y\")))","v":""},{"$f":"IF('Enrollment Form'!$O689<>\"Graded\",\"-\",IF(AND('Enrollment Form'!$O689=\"Graded\",'Enrollment Form'!$AR689<>\"\"),\"Y\",\"N\"))","v":"-"},{"$f":"IF($B682=\"N\",\"\",IF(OR('Enrollment Form'!$B689<>\"Subscriber\",'Enrollment Form'!$C689=\"ROC\"),\"-\",IF(AND('Enrollment Form'!$B689=\"Subscriber\",'Enrollment Form'!$C689=\"Enroll\",'Enrollment Form'!$AJ689<>\"\"),\"Y\",\"N\")))","v":""},{"$f":"IF($B682=\"N\",\"\",IF(OR('Enrollment Form'!$B689<>\"Subscriber\",'Enrollment Form'!$C689=\"ROC\"),\"-\",IF(AND('Enrollment Form'!$B689=\"Subscriber\",'Enrollment Form'!$C689=\"Enroll\",'Enrollment Form'!$AK689<>\"\"),\"Y\",\"N\")))","v":""},{"$f":"IF($B682=\"N\",\"\",IF(OR('Enrollment Form'!$B689<>\"Subscriber\",'Enrollment Form'!$C689=\"ROC\"),\"-\",IF(AND('Enrollment Form'!$B689=\"Subscriber\",'Enrollment Form'!$C689=\"Enroll\",'Enrollment Form'!$AL689<>\"\"),\"Y\",\"N\")))","v":""},{"$f":"IF($B682=\"N\",\"\",IF(OR('Enrollment Form'!$B689<>\"Subscriber\",'Enrollment Form'!$C689=\"ROC\"),\"-\",IF(AND('Enrollment Form'!$B689=\"Subscriber\",'Enrollment Form'!$C689=\"Enroll\",'Enrollment Form'!$AP689<>\"\"),\"Y\",\"N\")))","v":""},{"$f":"IF($B682=\"N\",\"\",IF(OR('Enrollment Form'!$B689<>\"Subscriber\",'Enrollment Form'!$C689=\"ROC\"),\"-\",IF(AND('Enrollment Form'!$B689=\"Subscriber\",'Enrollment Form'!$C689=\"Enroll\",'Enrollment Form'!$AQ689<>\"\"),\"Y\",\"N\")))","v":""},{"$f":"IF($B682=\"N\",\"\",IF(OR('Enrollment Form'!$B689<>\"Subscriber\",'Enrollment Form'!$C689=\"ROC\"),\"-\",IF(AND('Enrollment Form'!$B689=\"Subscriber\",'Enrollment Form'!$C689=\"Enroll\",'Enrollment Form'!$AS689<>\"\"),\"Y\",\"N\")))","v":""},{"$f":"IF($B682=\"N\",\"\",IF($Q682=\"-\",\"-\",IF(AND($Q682=\"Y\",'Enrollment Form'!$AS689=\"No\"),\"-\",IF(AND($Q682=\"Y\",'Enrollment Form'!$AS689=\"Yes\",'Enrollment Form'!$AT689<>\"\"),\"Y\",\"N\"))))","v":""},{"$f":"IF($B682=\"N\",\"\",IF(OR('Enrollment Form'!$B689<>\"Subscriber\",'Enrollment Form'!$C689=\"ROC\"),\"-\",IF(AND('Enrollment Form'!$B689=\"Subscriber\",'Enrollment Form'!$C689=\"Enroll\",'Enrollment Form'!$CV689<>\"\"),\"Y\",\"N\")))","v":""},{"$f":"IF($B682=\"N\",\"\",IF($S682=\"-\",\"-\",IF(AND($S682=\"Y\",'Enrollment Form'!$CV689=\"No\"),\"-\",IF(AND($S682=\"Y\",'Enrollment Form'!$CV689=\"Yes\",'Enrollment Form'!$CW689<>\"\"),\"Y\",\"N\"))))","v":""},{"$f":"IF(OR('Enrollment Form'!$AY689=\"Yes\",'Enrollment Form'!$AY689=\"\"),\"-\",IF(OR(AND('Enrollment Form'!$AY689=\"No\",ISERROR(FIND(\"HMO\",VLOOKUP('Enrollment Form'!G689,'Enrollment Form'!H$11:J$1000,3,FALSE),1))=FALSE,COUNTA('Enrollment Form'!$AZ689:$BC689)=4),AND('Enrollment Form'!$AY689=\"No\",ISERROR(FIND(\"HMO\",VLOOKUP('Enrollment Form'!G689,'Enrollment Form'!H$11:J$1000,3,FALSE),1))=FALSE,COUNTA('Enrollment Form'!$BT689:$BW689)=4)),\"Y\",\"N\"))","v":"-"},{"$f":"IF($B682=\"N\",\"\",IF('Enrollment Form'!$B689=\"Subscriber\",\"-\",IF(COUNTA('Enrollment Form'!$BL689,'Enrollment Form'!$BN689)=2,\"Y\",\"N\")))","v":""},{"$f":"IF($B682=\"N\",\"\",IF(OR('Enrollment Form'!$AX689=\"\",'Enrollment Form'!$AX689=\"No\"),\"-\",IF(AND('Enrollment Form'!$AX689=\"Yes\",COUNTA('Enrollment Form'!$CR689)=1),\"Y\",\"N\")))","v":""},{"$f":"IF(OR('Enrollment Form'!$CR689=\"\",'Enrollment Form'!$CR689=\"No\"),\"-\",IF(COUNTA('Enrollment Form'!$CT689:$CU689)=2,\"Y\",\"N\"))","v":"-"},{"$f":"IF($B682=\"N\",\"\",IF(COUNTIF('Enrollment Form'!$DG689:$DP689,\"Other\")=COUNTA('Enrollment Form'!$DK689,'Enrollment Form'!$DH689,'Enrollment Form'!$DN689,'Enrollment Form'!$DQ689),\"Y\",\"N\"))","v":""},{"$f":"IF($B682=\"N\",\"\",IF(OR('Enrollment Form'!B689<>\"Subscriber\",'Enrollment Form'!C689=\"ROC\",COUNTIF('Enrollment Form'!AV689:AW689,\"Yes\")>=1),\"-\",IF(AND('Enrollment Form'!C689=\"Enroll\",COUNTIF('Enrollment Form'!AV689:AW689,\"No\")=2,'Enrollment Form'!AX689=\"\"),\"N\",\"Y\")))","v":""},{"$f":"IF(OR(B682=\"N\",'Enrollment Form'!B689<>\"Subscriber\",'Enrollment Form'!C689=\"ROC\",'Enrollment Form'!O689<>\"Multiple of Salary\"),\"-\",IF(COUNTA('Enrollment Form'!T689:U689)<2,\"N\",\"Y\"))","v":"-"},{"$f":"IF(B682=\"N\",\"\",IF(OR('Enrollment Form'!C689=\"ROC\",'Enrollment Form'!B689<>\"Subscriber\",'Enrollment Form'!O689=\"Waive\",'Enrollment Form'!O689=\"\"),\"-\",IF('Enrollment Form'!P689=\"\",\"N\",\"Y\")))","v":""},{"$f":"IF($B682=\"N\",\"\",IF(AND('Enrollment Form'!$C689=\"ROC\",'Enrollment Form'!$DR689<>\"\"),\"Y\",IF(AND('Enrollment Form'!$C689=\"ROC\",'Enrollment Form'!$DR689=\"\"),\"N\",IF(AND('Enrollment Form'!$C689=\"Enroll\",'Enrollment Form'!$B689=\"Subscriber\",'Enrollment Form'!$CX689=\"No\",'Enrollment Form'!$DR689=\"\"),\"N\",IF(AND('Enrollment Form'!$C689=\"Enroll\",'Enrollment Form'!$B689=\"Subscriber\",'Enrollment Form'!$CX689=\"Yes\"),\"-\",\"Y\")))))","v":""},{"$f":"IF($B682=\"N\",\"\",IF(AND('Enrollment Form'!$C689=\"ROC\",'Enrollment Form'!$DS689<>\"\"),\"Y\",IF(AND('Enrollment Form'!$C689=\"ROC\",'Enrollment Form'!$DS689=\"\"),\"N\",IF(AND('Enrollment Form'!$C689=\"Enroll\",'Enrollment Form'!$B689=\"Subscriber\",'Enrollment Form'!$CX689=\"No\",'Enrollment Form'!$DS689=\"\"),\"N\",IF(AND('Enrollment Form'!$C689=\"Enroll\",'Enrollment Form'!$B689=\"Subscriber\",'Enrollment Form'!$CX689=\"Yes\"),\"-\",\"Y\")))))","v":""},{"$f":"IF('Enrollment Form'!AH689=\"\",\"\",IF(ISERROR(SEARCH(\".\",'Enrollment Form'!AH689,SEARCH(\"@\",'Enrollment Form'!AH689))),\"N\",\"Y\"))","v":""},{"$f":"IF(OR($B682=\"N\",'Enrollment Form'!$G689=\"\"),\"\",IF('Enrollment Form'!$B689<>\"Subscriber\",\"-\",IF(COUNTIF('Enrollment Form'!$AV689:$AW689,\"Yes\")=2,\"N\",\"Y\")))","v":""},{"$f":"IF(OR('Enrollment Form'!$CJ689=\"\",'Enrollment Form'!$CJ689=\"No\"),\"-\",IF(AND('Enrollment Form'!$CJ689=\"Yes\",'Enrollment Form'!$CK689=\"\"),\"N\",\"Y\"))","v":"-"},{"$f":"IF(OR('Enrollment Form'!$CL689=\"\",'Enrollment Form'!$CL689=\"No\"),\"-\",IF(AND('Enrollment Form'!$CL689=\"Yes\",'Enrollment Form'!$CM689=\"\"),\"N\",\"Y\"))","v":"-"},{"$f":"IF(OR('Enrollment Form'!$CN689=\"\",'Enrollment Form'!$CN689=\"No\"),\"-\",IF(AND('Enrollment Form'!$CN689=\"Yes\",'Enrollment Form'!$CO689=\"\"),\"N\",\"Y\"))","v":"-"},{"$f":"IF(OR('Enrollment Form'!$CN689=\"\",'Enrollment Form'!$CN689=\"No\"),\"-\",IF(AND('Enrollment Form'!$CN689=\"Yes\",'Enrollment Form'!$CP689=\"\"),\"N\",\"Y\"))","v":"-"},{"$f":"IF('Enrollment Form'!B689<>\"Subscriber\",\"-\",IF(AND('Enrollment Form'!B689=\"Subscriber\",'Enrollment Form'!C689=\"Enroll\",'Enrollment Form'!AA689=\"\"),\"N\",\"Y\"))","v":"-"},{"$f":"IF(OR('Enrollment Form'!B689=\"Subscriber\",'Enrollment Form'!B689=\"\"),\"-\",IF('Enrollment Form'!BP689=\"\",\"N\",\"Y\"))","v":"-"},{"$f":"IF('Enrollment Form'!B689<>\"Subscriber\",\"-\",IF(AND('Enrollment Form'!B689=\"Subscriber\",'Enrollment Form'!G689=\"\"),\"N\",\"Y\"))","v":"-"},{"$f":"IF('Enrollment Form'!A689=\"\",\"\",IF('Enrollment Form'!B689=\"Subscriber\",\"-\",IF(AND('Enrollment Form'!B689<>\"Subscriber\",'Enrollment Form'!G689='Enrollment Form'!H689),\"N\",\"Y\")))","v":""},0]
[690,{"$f":"IF('Enrollment Form'!$A690<>\"\",\"Y\",\"N\")","v":"N"},{"$f":"IF(AND('Enrollment Form'!$B690=\"\",'Enrollment Form'!$C690<>\"\"),\"N\",IF($B683=\"N\",\"\",\"Y\"))","v":""},{"$f":"IF(OR($B683=\"N\",'Enrollment Form'!G690=\"\"),\"\",IF('Enrollment Form'!$B690<>\"Subscriber\",\"\",IF('Enrollment Form'!$G690='Enrollment Form'!$H690,\"Y\",\"N\")))","v":""},{"$f":"IF($B683=\"N\",\"\",IF(AND(COUNTIFS('Enrollment Form'!$H$11:$H$1000,'Enrollment Form'!$H690,'Enrollment Form'!$B$11:$B$1000,'Enrollment Form'!$B690)>1,'Enrollment Form'!$H690<>\"\"),\"N\",\"Y\"))","v":""},{"$f":"IF($B683=\"N\",\"\",IF(LEN('Enrollment Form'!$Y690)=0,\"\",IF(LEN('Enrollment Form'!$Y690)<>5,\"N\",\"Y\")))","v":""},{"$f":"IF($B683=\"N\",\"\",IF(LEN('Enrollment Form'!$AD690=0),\"\",IF(LEN('Enrollment Form'!$AD690)<>5,\"N\",\"Y\")))","v":""},{"$f":"IF($B683=\"N\",\"\",IF(LEN('Enrollment Form'!$BS690=0),\"\",IF(LEN('Enrollment Form'!$BS690)<>5,\"N\",\"Y\")))","v":""},{"$f":"IF($B683=\"N\",\"\",IF(LEN('Enrollment Form'!$AE690)=0,\"\",IF(LEN('Enrollment Form'!$AE690)<>10,\"N\",\"Y\")))","v":""},{"$f":"IF($B683=\"N\",\"\",IF(LEN('Enrollment Form'!$AF690)=0,\"\",IF(LEN('Enrollment Form'!$AF690)<>10,\"N\",\"Y\")))","v":""},{"$f":"IF('Enrollment Form'!$O690<>\"Graded\",\"-\",IF(AND('Enrollment Form'!$O690=\"Graded\",'Enrollment Form'!$AR690<>\"\"),\"Y\",\"N\"))","v":"-"},{"$f":"IF($B683=\"N\",\"\",IF(OR('Enrollment Form'!$B690<>\"Subscriber\",'Enrollment Form'!$C690=\"ROC\"),\"-\",IF(AND('Enrollment Form'!$B690=\"Subscriber\",'Enrollment Form'!$C690=\"Enroll\",'Enrollment Form'!$AJ690<>\"\"),\"Y\",\"N\")))","v":""},{"$f":"IF($B683=\"N\",\"\",IF(OR('Enrollment Form'!$B690<>\"Subscriber\",'Enrollment Form'!$C690=\"ROC\"),\"-\",IF(AND('Enrollment Form'!$B690=\"Subscriber\",'Enrollment Form'!$C690=\"Enroll\",'Enrollment Form'!$AK690<>\"\"),\"Y\",\"N\")))","v":""},{"$f":"IF($B683=\"N\",\"\",IF(OR('Enrollment Form'!$B690<>\"Subscriber\",'Enrollment Form'!$C690=\"ROC\"),\"-\",IF(AND('Enrollment Form'!$B690=\"Subscriber\",'Enrollment Form'!$C690=\"Enroll\",'Enrollment Form'!$AL690<>\"\"),\"Y\",\"N\")))","v":""},{"$f":"IF($B683=\"N\",\"\",IF(OR('Enrollment Form'!$B690<>\"Subscriber\",'Enrollment Form'!$C690=\"ROC\"),\"-\",IF(AND('Enrollment Form'!$B690=\"Subscriber\",'Enrollment Form'!$C690=\"Enroll\",'Enrollment Form'!$AP690<>\"\"),\"Y\",\"N\")))","v":""},{"$f":"IF($B683=\"N\",\"\",IF(OR('Enrollment Form'!$B690<>\"Subscriber\",'Enrollment Form'!$C690=\"ROC\"),\"-\",IF(AND('Enrollment Form'!$B690=\"Subscriber\",'Enrollment Form'!$C690=\"Enroll\",'Enrollment Form'!$AQ690<>\"\"),\"Y\",\"N\")))","v":""},{"$f":"IF($B683=\"N\",\"\",IF(OR('Enrollment Form'!$B690<>\"Subscriber\",'Enrollment Form'!$C690=\"ROC\"),\"-\",IF(AND('Enrollment Form'!$B690=\"Subscriber\",'Enrollment Form'!$C690=\"Enroll\",'Enrollment Form'!$AS690<>\"\"),\"Y\",\"N\")))","v":""},{"$f":"IF($B683=\"N\",\"\",IF($Q683=\"-\",\"-\",IF(AND($Q683=\"Y\",'Enrollment Form'!$AS690=\"No\"),\"-\",IF(AND($Q683=\"Y\",'Enrollment Form'!$AS690=\"Yes\",'Enrollment Form'!$AT690<>\"\"),\"Y\",\"N\"))))","v":""},{"$f":"IF($B683=\"N\",\"\",IF(OR('Enrollment Form'!$B690<>\"Subscriber\",'Enrollment Form'!$C690=\"ROC\"),\"-\",IF(AND('Enrollment Form'!$B690=\"Subscriber\",'Enrollment Form'!$C690=\"Enroll\",'Enrollment Form'!$CV690<>\"\"),\"Y\",\"N\")))","v":""},{"$f":"IF($B683=\"N\",\"\",IF($S683=\"-\",\"-\",IF(AND($S683=\"Y\",'Enrollment Form'!$CV690=\"No\"),\"-\",IF(AND($S683=\"Y\",'Enrollment Form'!$CV690=\"Yes\",'Enrollment Form'!$CW690<>\"\"),\"Y\",\"N\"))))","v":""},{"$f":"IF(OR('Enrollment Form'!$AY690=\"Yes\",'Enrollment Form'!$AY690=\"\"),\"-\",IF(OR(AND('Enrollment Form'!$AY690=\"No\",ISERROR(FIND(\"HMO\",VLOOKUP('Enrollment Form'!G690,'Enrollment Form'!H$11:J$1000,3,FALSE),1))=FALSE,COUNTA('Enrollment Form'!$AZ690:$BC690)=4),AND('Enrollment Form'!$AY690=\"No\",ISERROR(FIND(\"HMO\",VLOOKUP('Enrollment Form'!G690,'Enrollment Form'!H$11:J$1000,3,FALSE),1))=FALSE,COUNTA('Enrollment Form'!$BT690:$BW690)=4)),\"Y\",\"N\"))","v":"-"},{"$f":"IF($B683=\"N\",\"\",IF('Enrollment Form'!$B690=\"Subscriber\",\"-\",IF(COUNTA('Enrollment Form'!$BL690,'Enrollment Form'!$BN690)=2,\"Y\",\"N\")))","v":""},{"$f":"IF($B683=\"N\",\"\",IF(OR('Enrollment Form'!$AX690=\"\",'Enrollment Form'!$AX690=\"No\"),\"-\",IF(AND('Enrollment Form'!$AX690=\"Yes\",COUNTA('Enrollment Form'!$CR690)=1),\"Y\",\"N\")))","v":""},{"$f":"IF(OR('Enrollment Form'!$CR690=\"\",'Enrollment Form'!$CR690=\"No\"),\"-\",IF(COUNTA('Enrollment Form'!$CT690:$CU690)=2,\"Y\",\"N\"))","v":"-"},{"$f":"IF($B683=\"N\",\"\",IF(COUNTIF('Enrollment Form'!$DG690:$DP690,\"Other\")=COUNTA('Enrollment Form'!$DK690,'Enrollment Form'!$DH690,'Enrollment Form'!$DN690,'Enrollment Form'!$DQ690),\"Y\",\"N\"))","v":""},{"$f":"IF($B683=\"N\",\"\",IF(OR('Enrollment Form'!B690<>\"Subscriber\",'Enrollment Form'!C690=\"ROC\",COUNTIF('Enrollment Form'!AV690:AW690,\"Yes\")>=1),\"-\",IF(AND('Enrollment Form'!C690=\"Enroll\",COUNTIF('Enrollment Form'!AV690:AW690,\"No\")=2,'Enrollment Form'!AX690=\"\"),\"N\",\"Y\")))","v":""},{"$f":"IF(OR(B683=\"N\",'Enrollment Form'!B690<>\"Subscriber\",'Enrollment Form'!C690=\"ROC\",'Enrollment Form'!O690<>\"Multiple of Salary\"),\"-\",IF(COUNTA('Enrollment Form'!T690:U690)<2,\"N\",\"Y\"))","v":"-"},{"$f":"IF(B683=\"N\",\"\",IF(OR('Enrollment Form'!C690=\"ROC\",'Enrollment Form'!B690<>\"Subscriber\",'Enrollment Form'!O690=\"Waive\",'Enrollment Form'!O690=\"\"),\"-\",IF('Enrollment Form'!P690=\"\",\"N\",\"Y\")))","v":""},{"$f":"IF($B683=\"N\",\"\",IF(AND('Enrollment Form'!$C690=\"ROC\",'Enrollment Form'!$DR690<>\"\"),\"Y\",IF(AND('Enrollment Form'!$C690=\"ROC\",'Enrollment Form'!$DR690=\"\"),\"N\",IF(AND('Enrollment Form'!$C690=\"Enroll\",'Enrollment Form'!$B690=\"Subscriber\",'Enrollment Form'!$CX690=\"No\",'Enrollment Form'!$DR690=\"\"),\"N\",IF(AND('Enrollment Form'!$C690=\"Enroll\",'Enrollment Form'!$B690=\"Subscriber\",'Enrollment Form'!$CX690=\"Yes\"),\"-\",\"Y\")))))","v":""},{"$f":"IF($B683=\"N\",\"\",IF(AND('Enrollment Form'!$C690=\"ROC\",'Enrollment Form'!$DS690<>\"\"),\"Y\",IF(AND('Enrollment Form'!$C690=\"ROC\",'Enrollment Form'!$DS690=\"\"),\"N\",IF(AND('Enrollment Form'!$C690=\"Enroll\",'Enrollment Form'!$B690=\"Subscriber\",'Enrollment Form'!$CX690=\"No\",'Enrollment Form'!$DS690=\"\"),\"N\",IF(AND('Enrollment Form'!$C690=\"Enroll\",'Enrollment Form'!$B690=\"Subscriber\",'Enrollment Form'!$CX690=\"Yes\"),\"-\",\"Y\")))))","v":""},{"$f":"IF('Enrollment Form'!AH690=\"\",\"\",IF(ISERROR(SEARCH(\".\",'Enrollment Form'!AH690,SEARCH(\"@\",'Enrollment Form'!AH690))),\"N\",\"Y\"))","v":""},{"$f":"IF(OR($B683=\"N\",'Enrollment Form'!$G690=\"\"),\"\",IF('Enrollment Form'!$B690<>\"Subscriber\",\"-\",IF(COUNTIF('Enrollment Form'!$AV690:$AW690,\"Yes\")=2,\"N\",\"Y\")))","v":""},{"$f":"IF(OR('Enrollment Form'!$CJ690=\"\",'Enrollment Form'!$CJ690=\"No\"),\"-\",IF(AND('Enrollment Form'!$CJ690=\"Yes\",'Enrollment Form'!$CK690=\"\"),\"N\",\"Y\"))","v":"-"},{"$f":"IF(OR('Enrollment Form'!$CL690=\"\",'Enrollment Form'!$CL690=\"No\"),\"-\",IF(AND('Enrollment Form'!$CL690=\"Yes\",'Enrollment Form'!$CM690=\"\"),\"N\",\"Y\"))","v":"-"},{"$f":"IF(OR('Enrollment Form'!$CN690=\"\",'Enrollment Form'!$CN690=\"No\"),\"-\",IF(AND('Enrollment Form'!$CN690=\"Yes\",'Enrollment Form'!$CO690=\"\"),\"N\",\"Y\"))","v":"-"},{"$f":"IF(OR('Enrollment Form'!$CN690=\"\",'Enrollment Form'!$CN690=\"No\"),\"-\",IF(AND('Enrollment Form'!$CN690=\"Yes\",'Enrollment Form'!$CP690=\"\"),\"N\",\"Y\"))","v":"-"},{"$f":"IF('Enrollment Form'!B690<>\"Subscriber\",\"-\",IF(AND('Enrollment Form'!B690=\"Subscriber\",'Enrollment Form'!C690=\"Enroll\",'Enrollment Form'!AA690=\"\"),\"N\",\"Y\"))","v":"-"},{"$f":"IF(OR('Enrollment Form'!B690=\"Subscriber\",'Enrollment Form'!B690=\"\"),\"-\",IF('Enrollment Form'!BP690=\"\",\"N\",\"Y\"))","v":"-"},{"$f":"IF('Enrollment Form'!B690<>\"Subscriber\",\"-\",IF(AND('Enrollment Form'!B690=\"Subscriber\",'Enrollment Form'!G690=\"\"),\"N\",\"Y\"))","v":"-"},{"$f":"IF('Enrollment Form'!A690=\"\",\"\",IF('Enrollment Form'!B690=\"Subscriber\",\"-\",IF(AND('Enrollment Form'!B690<>\"Subscriber\",'Enrollment Form'!G690='Enrollment Form'!H690),\"N\",\"Y\")))","v":""},0]
[691,{"$f":"IF('Enrollment Form'!$A691<>\"\",\"Y\",\"N\")","v":"N"},{"$f":"IF(AND('Enrollment Form'!$B691=\"\",'Enrollment Form'!$C691<>\"\"),\"N\",IF($B684=\"N\",\"\",\"Y\"))","v":""},{"$f":"IF(OR($B684=\"N\",'Enrollment Form'!G691=\"\"),\"\",IF('Enrollment Form'!$B691<>\"Subscriber\",\"\",IF('Enrollment Form'!$G691='Enrollment Form'!$H691,\"Y\",\"N\")))","v":""},{"$f":"IF($B684=\"N\",\"\",IF(AND(COUNTIFS('Enrollment Form'!$H$11:$H$1000,'Enrollment Form'!$H691,'Enrollment Form'!$B$11:$B$1000,'Enrollment Form'!$B691)>1,'Enrollment Form'!$H691<>\"\"),\"N\",\"Y\"))","v":""},{"$f":"IF($B684=\"N\",\"\",IF(LEN('Enrollment Form'!$Y691)=0,\"\",IF(LEN('Enrollment Form'!$Y691)<>5,\"N\",\"Y\")))","v":""},{"$f":"IF($B684=\"N\",\"\",IF(LEN('Enrollment Form'!$AD691=0),\"\",IF(LEN('Enrollment Form'!$AD691)<>5,\"N\",\"Y\")))","v":""},{"$f":"IF($B684=\"N\",\"\",IF(LEN('Enrollment Form'!$BS691=0),\"\",IF(LEN('Enrollment Form'!$BS691)<>5,\"N\",\"Y\")))","v":""},{"$f":"IF($B684=\"N\",\"\",IF(LEN('Enrollment Form'!$AE691)=0,\"\",IF(LEN('Enrollment Form'!$AE691)<>10,\"N\",\"Y\")))","v":""},{"$f":"IF($B684=\"N\",\"\",IF(LEN('Enrollment Form'!$AF691)=0,\"\",IF(LEN('Enrollment Form'!$AF691)<>10,\"N\",\"Y\")))","v":""},{"$f":"IF('Enrollment Form'!$O691<>\"Graded\",\"-\",IF(AND('Enrollment Form'!$O691=\"Graded\",'Enrollment Form'!$AR691<>\"\"),\"Y\",\"N\"))","v":"-"},{"$f":"IF($B684=\"N\",\"\",IF(OR('Enrollment Form'!$B691<>\"Subscriber\",'Enrollment Form'!$C691=\"ROC\"),\"-\",IF(AND('Enrollment Form'!$B691=\"Subscriber\",'Enrollment Form'!$C691=\"Enroll\",'Enrollment Form'!$AJ691<>\"\"),\"Y\",\"N\")))","v":""},{"$f":"IF($B684=\"N\",\"\",IF(OR('Enrollment Form'!$B691<>\"Subscriber\",'Enrollment Form'!$C691=\"ROC\"),\"-\",IF(AND('Enrollment Form'!$B691=\"Subscriber\",'Enrollment Form'!$C691=\"Enroll\",'Enrollment Form'!$AK691<>\"\"),\"Y\",\"N\")))","v":""},{"$f":"IF($B684=\"N\",\"\",IF(OR('Enrollment Form'!$B691<>\"Subscriber\",'Enrollment Form'!$C691=\"ROC\"),\"-\",IF(AND('Enrollment Form'!$B691=\"Subscriber\",'Enrollment Form'!$C691=\"Enroll\",'Enrollment Form'!$AL691<>\"\"),\"Y\",\"N\")))","v":""},{"$f":"IF($B684=\"N\",\"\",IF(OR('Enrollment Form'!$B691<>\"Subscriber\",'Enrollment Form'!$C691=\"ROC\"),\"-\",IF(AND('Enrollment Form'!$B691=\"Subscriber\",'Enrollment Form'!$C691=\"Enroll\",'Enrollment Form'!$AP691<>\"\"),\"Y\",\"N\")))","v":""},{"$f":"IF($B684=\"N\",\"\",IF(OR('Enrollment Form'!$B691<>\"Subscriber\",'Enrollment Form'!$C691=\"ROC\"),\"-\",IF(AND('Enrollment Form'!$B691=\"Subscriber\",'Enrollment Form'!$C691=\"Enroll\",'Enrollment Form'!$AQ691<>\"\"),\"Y\",\"N\")))","v":""},{"$f":"IF($B684=\"N\",\"\",IF(OR('Enrollment Form'!$B691<>\"Subscriber\",'Enrollment Form'!$C691=\"ROC\"),\"-\",IF(AND('Enrollment Form'!$B691=\"Subscriber\",'Enrollment Form'!$C691=\"Enroll\",'Enrollment Form'!$AS691<>\"\"),\"Y\",\"N\")))","v":""},{"$f":"IF($B684=\"N\",\"\",IF($Q684=\"-\",\"-\",IF(AND($Q684=\"Y\",'Enrollment Form'!$AS691=\"No\"),\"-\",IF(AND($Q684=\"Y\",'Enrollment Form'!$AS691=\"Yes\",'Enrollment Form'!$AT691<>\"\"),\"Y\",\"N\"))))","v":""},{"$f":"IF($B684=\"N\",\"\",IF(OR('Enrollment Form'!$B691<>\"Subscriber\",'Enrollment Form'!$C691=\"ROC\"),\"-\",IF(AND('Enrollment Form'!$B691=\"Subscriber\",'Enrollment Form'!$C691=\"Enroll\",'Enrollment Form'!$CV691<>\"\"),\"Y\",\"N\")))","v":""},{"$f":"IF($B684=\"N\",\"\",IF($S684=\"-\",\"-\",IF(AND($S684=\"Y\",'Enrollment Form'!$CV691=\"No\"),\"-\",IF(AND($S684=\"Y\",'Enrollment Form'!$CV691=\"Yes\",'Enrollment Form'!$CW691<>\"\"),\"Y\",\"N\"))))","v":""},{"$f":"IF(OR('Enrollment Form'!$AY691=\"Yes\",'Enrollment Form'!$AY691=\"\"),\"-\",IF(OR(AND('Enrollment Form'!$AY691=\"No\",ISERROR(FIND(\"HMO\",VLOOKUP('Enrollment Form'!G691,'Enrollment Form'!H$11:J$1000,3,FALSE),1))=FALSE,COUNTA('Enrollment Form'!$AZ691:$BC691)=4),AND('Enrollment Form'!$AY691=\"No\",ISERROR(FIND(\"HMO\",VLOOKUP('Enrollment Form'!G691,'Enrollment Form'!H$11:J$1000,3,FALSE),1))=FALSE,COUNTA('Enrollment Form'!$BT691:$BW691)=4)),\"Y\",\"N\"))","v":"-"},{"$f":"IF($B684=\"N\",\"\",IF('Enrollment Form'!$B691=\"Subscriber\",\"-\",IF(COUNTA('Enrollment Form'!$BL691,'Enrollment Form'!$BN691)=2,\"Y\",\"N\")))","v":""},{"$f":"IF($B684=\"N\",\"\",IF(OR('Enrollment Form'!$AX691=\"\",'Enrollment Form'!$AX691=\"No\"),\"-\",IF(AND('Enrollment Form'!$AX691=\"Yes\",COUNTA('Enrollment Form'!$CR691)=1),\"Y\",\"N\")))","v":""},{"$f":"IF(OR('Enrollment Form'!$CR691=\"\",'Enrollment Form'!$CR691=\"No\"),\"-\",IF(COUNTA('Enrollment Form'!$CT691:$CU691)=2,\"Y\",\"N\"))","v":"-"},{"$f":"IF($B684=\"N\",\"\",IF(COUNTIF('Enrollment Form'!$DG691:$DP691,\"Other\")=COUNTA('Enrollment Form'!$DK691,'Enrollment Form'!$DH691,'Enrollment Form'!$DN691,'Enrollment Form'!$DQ691),\"Y\",\"N\"))","v":""},{"$f":"IF($B684=\"N\",\"\",IF(OR('Enrollment Form'!B691<>\"Subscriber\",'Enrollment Form'!C691=\"ROC\",COUNTIF('Enrollment Form'!AV691:AW691,\"Yes\")>=1),\"-\",IF(AND('Enrollment Form'!C691=\"Enroll\",COUNTIF('Enrollment Form'!AV691:AW691,\"No\")=2,'Enrollment Form'!AX691=\"\"),\"N\",\"Y\")))","v":""},{"$f":"IF(OR(B684=\"N\",'Enrollment Form'!B691<>\"Subscriber\",'Enrollment Form'!C691=\"ROC\",'Enrollment Form'!O691<>\"Multiple of Salary\"),\"-\",IF(COUNTA('Enrollment Form'!T691:U691)<2,\"N\",\"Y\"))","v":"-"},{"$f":"IF(B684=\"N\",\"\",IF(OR('Enrollment Form'!C691=\"ROC\",'Enrollment Form'!B691<>\"Subscriber\",'Enrollment Form'!O691=\"Waive\",'Enrollment Form'!O691=\"\"),\"-\",IF('Enrollment Form'!P691=\"\",\"N\",\"Y\")))","v":""},{"$f":"IF($B684=\"N\",\"\",IF(AND('Enrollment Form'!$C691=\"ROC\",'Enrollment Form'!$DR691<>\"\"),\"Y\",IF(AND('Enrollment Form'!$C691=\"ROC\",'Enrollment Form'!$DR691=\"\"),\"N\",IF(AND('Enrollment Form'!$C691=\"Enroll\",'Enrollment Form'!$B691=\"Subscriber\",'Enrollment Form'!$CX691=\"No\",'Enrollment Form'!$DR691=\"\"),\"N\",IF(AND('Enrollment Form'!$C691=\"Enroll\",'Enrollment Form'!$B691=\"Subscriber\",'Enrollment Form'!$CX691=\"Yes\"),\"-\",\"Y\")))))","v":""},{"$f":"IF($B684=\"N\",\"\",IF(AND('Enrollment Form'!$C691=\"ROC\",'Enrollment Form'!$DS691<>\"\"),\"Y\",IF(AND('Enrollment Form'!$C691=\"ROC\",'Enrollment Form'!$DS691=\"\"),\"N\",IF(AND('Enrollment Form'!$C691=\"Enroll\",'Enrollment Form'!$B691=\"Subscriber\",'Enrollment Form'!$CX691=\"No\",'Enrollment Form'!$DS691=\"\"),\"N\",IF(AND('Enrollment Form'!$C691=\"Enroll\",'Enrollment Form'!$B691=\"Subscriber\",'Enrollment Form'!$CX691=\"Yes\"),\"-\",\"Y\")))))","v":""},{"$f":"IF('Enrollment Form'!AH691=\"\",\"\",IF(ISERROR(SEARCH(\".\",'Enrollment Form'!AH691,SEARCH(\"@\",'Enrollment Form'!AH691))),\"N\",\"Y\"))","v":""},{"$f":"IF(OR($B684=\"N\",'Enrollment Form'!$G691=\"\"),\"\",IF('Enrollment Form'!$B691<>\"Subscriber\",\"-\",IF(COUNTIF('Enrollment Form'!$AV691:$AW691,\"Yes\")=2,\"N\",\"Y\")))","v":""},{"$f":"IF(OR('Enrollment Form'!$CJ691=\"\",'Enrollment Form'!$CJ691=\"No\"),\"-\",IF(AND('Enrollment Form'!$CJ691=\"Yes\",'Enrollment Form'!$CK691=\"\"),\"N\",\"Y\"))","v":"-"},{"$f":"IF(OR('Enrollment Form'!$CL691=\"\",'Enrollment Form'!$CL691=\"No\"),\"-\",IF(AND('Enrollment Form'!$CL691=\"Yes\",'Enrollment Form'!$CM691=\"\"),\"N\",\"Y\"))","v":"-"},{"$f":"IF(OR('Enrollment Form'!$CN691=\"\",'Enrollment Form'!$CN691=\"No\"),\"-\",IF(AND('Enrollment Form'!$CN691=\"Yes\",'Enrollment Form'!$CO691=\"\"),\"N\",\"Y\"))","v":"-"},{"$f":"IF(OR('Enrollment Form'!$CN691=\"\",'Enrollment Form'!$CN691=\"No\"),\"-\",IF(AND('Enrollment Form'!$CN691=\"Yes\",'Enrollment Form'!$CP691=\"\"),\"N\",\"Y\"))","v":"-"},{"$f":"IF('Enrollment Form'!B691<>\"Subscriber\",\"-\",IF(AND('Enrollment Form'!B691=\"Subscriber\",'Enrollment Form'!C691=\"Enroll\",'Enrollment Form'!AA691=\"\"),\"N\",\"Y\"))","v":"-"},{"$f":"IF(OR('Enrollment Form'!B691=\"Subscriber\",'Enrollment Form'!B691=\"\"),\"-\",IF('Enrollment Form'!BP691=\"\",\"N\",\"Y\"))","v":"-"},{"$f":"IF('Enrollment Form'!B691<>\"Subscriber\",\"-\",IF(AND('Enrollment Form'!B691=\"Subscriber\",'Enrollment Form'!G691=\"\"),\"N\",\"Y\"))","v":"-"},{"$f":"IF('Enrollment Form'!A691=\"\",\"\",IF('Enrollment Form'!B691=\"Subscriber\",\"-\",IF(AND('Enrollment Form'!B691<>\"Subscriber\",'Enrollment Form'!G691='Enrollment Form'!H691),\"N\",\"Y\")))","v":""},0]
[692,{"$f":"IF('Enrollment Form'!$A692<>\"\",\"Y\",\"N\")","v":"N"},{"$f":"IF(AND('Enrollment Form'!$B692=\"\",'Enrollment Form'!$C692<>\"\"),\"N\",IF($B685=\"N\",\"\",\"Y\"))","v":""},{"$f":"IF(OR($B685=\"N\",'Enrollment Form'!G692=\"\"),\"\",IF('Enrollment Form'!$B692<>\"Subscriber\",\"\",IF('Enrollment Form'!$G692='Enrollment Form'!$H692,\"Y\",\"N\")))","v":""},{"$f":"IF($B685=\"N\",\"\",IF(AND(COUNTIFS('Enrollment Form'!$H$11:$H$1000,'Enrollment Form'!$H692,'Enrollment Form'!$B$11:$B$1000,'Enrollment Form'!$B692)>1,'Enrollment Form'!$H692<>\"\"),\"N\",\"Y\"))","v":""},{"$f":"IF($B685=\"N\",\"\",IF(LEN('Enrollment Form'!$Y692)=0,\"\",IF(LEN('Enrollment Form'!$Y692)<>5,\"N\",\"Y\")))","v":""},{"$f":"IF($B685=\"N\",\"\",IF(LEN('Enrollment Form'!$AD692=0),\"\",IF(LEN('Enrollment Form'!$AD692)<>5,\"N\",\"Y\")))","v":""},{"$f":"IF($B685=\"N\",\"\",IF(LEN('Enrollment Form'!$BS692=0),\"\",IF(LEN('Enrollment Form'!$BS692)<>5,\"N\",\"Y\")))","v":""},{"$f":"IF($B685=\"N\",\"\",IF(LEN('Enrollment Form'!$AE692)=0,\"\",IF(LEN('Enrollment Form'!$AE692)<>10,\"N\",\"Y\")))","v":""},{"$f":"IF($B685=\"N\",\"\",IF(LEN('Enrollment Form'!$AF692)=0,\"\",IF(LEN('Enrollment Form'!$AF692)<>10,\"N\",\"Y\")))","v":""},{"$f":"IF('Enrollment Form'!$O692<>\"Graded\",\"-\",IF(AND('Enrollment Form'!$O692=\"Graded\",'Enrollment Form'!$AR692<>\"\"),\"Y\",\"N\"))","v":"-"},{"$f":"IF($B685=\"N\",\"\",IF(OR('Enrollment Form'!$B692<>\"Subscriber\",'Enrollment Form'!$C692=\"ROC\"),\"-\",IF(AND('Enrollment Form'!$B692=\"Subscriber\",'Enrollment Form'!$C692=\"Enroll\",'Enrollment Form'!$AJ692<>\"\"),\"Y\",\"N\")))","v":""},{"$f":"IF($B685=\"N\",\"\",IF(OR('Enrollment Form'!$B692<>\"Subscriber\",'Enrollment Form'!$C692=\"ROC\"),\"-\",IF(AND('Enrollment Form'!$B692=\"Subscriber\",'Enrollment Form'!$C692=\"Enroll\",'Enrollment Form'!$AK692<>\"\"),\"Y\",\"N\")))","v":""},{"$f":"IF($B685=\"N\",\"\",IF(OR('Enrollment Form'!$B692<>\"Subscriber\",'Enrollment Form'!$C692=\"ROC\"),\"-\",IF(AND('Enrollment Form'!$B692=\"Subscriber\",'Enrollment Form'!$C692=\"Enroll\",'Enrollment Form'!$AL692<>\"\"),\"Y\",\"N\")))","v":""},{"$f":"IF($B685=\"N\",\"\",IF(OR('Enrollment Form'!$B692<>\"Subscriber\",'Enrollment Form'!$C692=\"ROC\"),\"-\",IF(AND('Enrollment Form'!$B692=\"Subscriber\",'Enrollment Form'!$C692=\"Enroll\",'Enrollment Form'!$AP692<>\"\"),\"Y\",\"N\")))","v":""},{"$f":"IF($B685=\"N\",\"\",IF(OR('Enrollment Form'!$B692<>\"Subscriber\",'Enrollment Form'!$C692=\"ROC\"),\"-\",IF(AND('Enrollment Form'!$B692=\"Subscriber\",'Enrollment Form'!$C692=\"Enroll\",'Enrollment Form'!$AQ692<>\"\"),\"Y\",\"N\")))","v":""},{"$f":"IF($B685=\"N\",\"\",IF(OR('Enrollment Form'!$B692<>\"Subscriber\",'Enrollment Form'!$C692=\"ROC\"),\"-\",IF(AND('Enrollment Form'!$B692=\"Subscriber\",'Enrollment Form'!$C692=\"Enroll\",'Enrollment Form'!$AS692<>\"\"),\"Y\",\"N\")))","v":""},{"$f":"IF($B685=\"N\",\"\",IF($Q685=\"-\",\"-\",IF(AND($Q685=\"Y\",'Enrollment Form'!$AS692=\"No\"),\"-\",IF(AND($Q685=\"Y\",'Enrollment Form'!$AS692=\"Yes\",'Enrollment Form'!$AT692<>\"\"),\"Y\",\"N\"))))","v":""},{"$f":"IF($B685=\"N\",\"\",IF(OR('Enrollment Form'!$B692<>\"Subscriber\",'Enrollment Form'!$C692=\"ROC\"),\"-\",IF(AND('Enrollment Form'!$B692=\"Subscriber\",'Enrollment Form'!$C692=\"Enroll\",'Enrollment Form'!$CV692<>\"\"),\"Y\",\"N\")))","v":""},{"$f":"IF($B685=\"N\",\"\",IF($S685=\"-\",\"-\",IF(AND($S685=\"Y\",'Enrollment Form'!$CV692=\"No\"),\"-\",IF(AND($S685=\"Y\",'Enrollment Form'!$CV692=\"Yes\",'Enrollment Form'!$CW692<>\"\"),\"Y\",\"N\"))))","v":""},{"$f":"IF(OR('Enrollment Form'!$AY692=\"Yes\",'Enrollment Form'!$AY692=\"\"),\"-\",IF(OR(AND('Enrollment Form'!$AY692=\"No\",ISERROR(FIND(\"HMO\",VLOOKUP('Enrollment Form'!G692,'Enrollment Form'!H$11:J$1000,3,FALSE),1))=FALSE,COUNTA('Enrollment Form'!$AZ692:$BC692)=4),AND('Enrollment Form'!$AY692=\"No\",ISERROR(FIND(\"HMO\",VLOOKUP('Enrollment Form'!G692,'Enrollment Form'!H$11:J$1000,3,FALSE),1))=FALSE,COUNTA('Enrollment Form'!$BT692:$BW692)=4)),\"Y\",\"N\"))","v":"-"},{"$f":"IF($B685=\"N\",\"\",IF('Enrollment Form'!$B692=\"Subscriber\",\"-\",IF(COUNTA('Enrollment Form'!$BL692,'Enrollment Form'!$BN692)=2,\"Y\",\"N\")))","v":""},{"$f":"IF($B685=\"N\",\"\",IF(OR('Enrollment Form'!$AX692=\"\",'Enrollment Form'!$AX692=\"No\"),\"-\",IF(AND('Enrollment Form'!$AX692=\"Yes\",COUNTA('Enrollment Form'!$CR692)=1),\"Y\",\"N\")))","v":""},{"$f":"IF(OR('Enrollment Form'!$CR692=\"\",'Enrollment Form'!$CR692=\"No\"),\"-\",IF(COUNTA('Enrollment Form'!$CT692:$CU692)=2,\"Y\",\"N\"))","v":"-"},{"$f":"IF($B685=\"N\",\"\",IF(COUNTIF('Enrollment Form'!$DG692:$DP692,\"Other\")=COUNTA('Enrollment Form'!$DK692,'Enrollment Form'!$DH692,'Enrollment Form'!$DN692,'Enrollment Form'!$DQ692),\"Y\",\"N\"))","v":""},{"$f":"IF($B685=\"N\",\"\",IF(OR('Enrollment Form'!B692<>\"Subscriber\",'Enrollment Form'!C692=\"ROC\",COUNTIF('Enrollment Form'!AV692:AW692,\"Yes\")>=1),\"-\",IF(AND('Enrollment Form'!C692=\"Enroll\",COUNTIF('Enrollment Form'!AV692:AW692,\"No\")=2,'Enrollment Form'!AX692=\"\"),\"N\",\"Y\")))","v":""},{"$f":"IF(OR(B685=\"N\",'Enrollment Form'!B692<>\"Subscriber\",'Enrollment Form'!C692=\"ROC\",'Enrollment Form'!O692<>\"Multiple of Salary\"),\"-\",IF(COUNTA('Enrollment Form'!T692:U692)<2,\"N\",\"Y\"))","v":"-"},{"$f":"IF(B685=\"N\",\"\",IF(OR('Enrollment Form'!C692=\"ROC\",'Enrollment Form'!B692<>\"Subscriber\",'Enrollment Form'!O692=\"Waive\",'Enrollment Form'!O692=\"\"),\"-\",IF('Enrollment Form'!P692=\"\",\"N\",\"Y\")))","v":""},{"$f":"IF($B685=\"N\",\"\",IF(AND('Enrollment Form'!$C692=\"ROC\",'Enrollment Form'!$DR692<>\"\"),\"Y\",IF(AND('Enrollment Form'!$C692=\"ROC\",'Enrollment Form'!$DR692=\"\"),\"N\",IF(AND('Enrollment Form'!$C692=\"Enroll\",'Enrollment Form'!$B692=\"Subscriber\",'Enrollment Form'!$CX692=\"No\",'Enrollment Form'!$DR692=\"\"),\"N\",IF(AND('Enrollment Form'!$C692=\"Enroll\",'Enrollment Form'!$B692=\"Subscriber\",'Enrollment Form'!$CX692=\"Yes\"),\"-\",\"Y\")))))","v":""},{"$f":"IF($B685=\"N\",\"\",IF(AND('Enrollment Form'!$C692=\"ROC\",'Enrollment Form'!$DS692<>\"\"),\"Y\",IF(AND('Enrollment Form'!$C692=\"ROC\",'Enrollment Form'!$DS692=\"\"),\"N\",IF(AND('Enrollment Form'!$C692=\"Enroll\",'Enrollment Form'!$B692=\"Subscriber\",'Enrollment Form'!$CX692=\"No\",'Enrollment Form'!$DS692=\"\"),\"N\",IF(AND('Enrollment Form'!$C692=\"Enroll\",'Enrollment Form'!$B692=\"Subscriber\",'Enrollment Form'!$CX692=\"Yes\"),\"-\",\"Y\")))))","v":""},{"$f":"IF('Enrollment Form'!AH692=\"\",\"\",IF(ISERROR(SEARCH(\".\",'Enrollment Form'!AH692,SEARCH(\"@\",'Enrollment Form'!AH692))),\"N\",\"Y\"))","v":""},{"$f":"IF(OR($B685=\"N\",'Enrollment Form'!$G692=\"\"),\"\",IF('Enrollment Form'!$B692<>\"Subscriber\",\"-\",IF(COUNTIF('Enrollment Form'!$AV692:$AW692,\"Yes\")=2,\"N\",\"Y\")))","v":""},{"$f":"IF(OR('Enrollment Form'!$CJ692=\"\",'Enrollment Form'!$CJ692=\"No\"),\"-\",IF(AND('Enrollment Form'!$CJ692=\"Yes\",'Enrollment Form'!$CK692=\"\"),\"N\",\"Y\"))","v":"-"},{"$f":"IF(OR('Enrollment Form'!$CL692=\"\",'Enrollment Form'!$CL692=\"No\"),\"-\",IF(AND('Enrollment Form'!$CL692=\"Yes\",'Enrollment Form'!$CM692=\"\"),\"N\",\"Y\"))","v":"-"},{"$f":"IF(OR('Enrollment Form'!$CN692=\"\",'Enrollment Form'!$CN692=\"No\"),\"-\",IF(AND('Enrollment Form'!$CN692=\"Yes\",'Enrollment Form'!$CO692=\"\"),\"N\",\"Y\"))","v":"-"},{"$f":"IF(OR('Enrollment Form'!$CN692=\"\",'Enrollment Form'!$CN692=\"No\"),\"-\",IF(AND('Enrollment Form'!$CN692=\"Yes\",'Enrollment Form'!$CP692=\"\"),\"N\",\"Y\"))","v":"-"},{"$f":"IF('Enrollment Form'!B692<>\"Subscriber\",\"-\",IF(AND('Enrollment Form'!B692=\"Subscriber\",'Enrollment Form'!C692=\"Enroll\",'Enrollment Form'!AA692=\"\"),\"N\",\"Y\"))","v":"-"},{"$f":"IF(OR('Enrollment Form'!B692=\"Subscriber\",'Enrollment Form'!B692=\"\"),\"-\",IF('Enrollment Form'!BP692=\"\",\"N\",\"Y\"))","v":"-"},{"$f":"IF('Enrollment Form'!B692<>\"Subscriber\",\"-\",IF(AND('Enrollment Form'!B692=\"Subscriber\",'Enrollment Form'!G692=\"\"),\"N\",\"Y\"))","v":"-"},{"$f":"IF('Enrollment Form'!A692=\"\",\"\",IF('Enrollment Form'!B692=\"Subscriber\",\"-\",IF(AND('Enrollment Form'!B692<>\"Subscriber\",'Enrollment Form'!G692='Enrollment Form'!H692),\"N\",\"Y\")))","v":""},0]
[693,{"$f":"IF('Enrollment Form'!$A693<>\"\",\"Y\",\"N\")","v":"N"},{"$f":"IF(AND('Enrollment Form'!$B693=\"\",'Enrollment Form'!$C693<>\"\"),\"N\",IF($B686=\"N\",\"\",\"Y\"))","v":""},{"$f":"IF(OR($B686=\"N\",'Enrollment Form'!G693=\"\"),\"\",IF('Enrollment Form'!$B693<>\"Subscriber\",\"\",IF('Enrollment Form'!$G693='Enrollment Form'!$H693,\"Y\",\"N\")))","v":""},{"$f":"IF($B686=\"N\",\"\",IF(AND(COUNTIFS('Enrollment Form'!$H$11:$H$1000,'Enrollment Form'!$H693,'Enrollment Form'!$B$11:$B$1000,'Enrollment Form'!$B693)>1,'Enrollment Form'!$H693<>\"\"),\"N\",\"Y\"))","v":""},{"$f":"IF($B686=\"N\",\"\",IF(LEN('Enrollment Form'!$Y693)=0,\"\",IF(LEN('Enrollment Form'!$Y693)<>5,\"N\",\"Y\")))","v":""},{"$f":"IF($B686=\"N\",\"\",IF(LEN('Enrollment Form'!$AD693=0),\"\",IF(LEN('Enrollment Form'!$AD693)<>5,\"N\",\"Y\")))","v":""},{"$f":"IF($B686=\"N\",\"\",IF(LEN('Enrollment Form'!$BS693=0),\"\",IF(LEN('Enrollment Form'!$BS693)<>5,\"N\",\"Y\")))","v":""},{"$f":"IF($B686=\"N\",\"\",IF(LEN('Enrollment Form'!$AE693)=0,\"\",IF(LEN('Enrollment Form'!$AE693)<>10,\"N\",\"Y\")))","v":""},{"$f":"IF($B686=\"N\",\"\",IF(LEN('Enrollment Form'!$AF693)=0,\"\",IF(LEN('Enrollment Form'!$AF693)<>10,\"N\",\"Y\")))","v":""},{"$f":"IF('Enrollment Form'!$O693<>\"Graded\",\"-\",IF(AND('Enrollment Form'!$O693=\"Graded\",'Enrollment Form'!$AR693<>\"\"),\"Y\",\"N\"))","v":"-"},{"$f":"IF($B686=\"N\",\"\",IF(OR('Enrollment Form'!$B693<>\"Subscriber\",'Enrollment Form'!$C693=\"ROC\"),\"-\",IF(AND('Enrollment Form'!$B693=\"Subscriber\",'Enrollment Form'!$C693=\"Enroll\",'Enrollment Form'!$AJ693<>\"\"),\"Y\",\"N\")))","v":""},{"$f":"IF($B686=\"N\",\"\",IF(OR('Enrollment Form'!$B693<>\"Subscriber\",'Enrollment Form'!$C693=\"ROC\"),\"-\",IF(AND('Enrollment Form'!$B693=\"Subscriber\",'Enrollment Form'!$C693=\"Enroll\",'Enrollment Form'!$AK693<>\"\"),\"Y\",\"N\")))","v":""},{"$f":"IF($B686=\"N\",\"\",IF(OR('Enrollment Form'!$B693<>\"Subscriber\",'Enrollment Form'!$C693=\"ROC\"),\"-\",IF(AND('Enrollment Form'!$B693=\"Subscriber\",'Enrollment Form'!$C693=\"Enroll\",'Enrollment Form'!$AL693<>\"\"),\"Y\",\"N\")))","v":""},{"$f":"IF($B686=\"N\",\"\",IF(OR('Enrollment Form'!$B693<>\"Subscriber\",'Enrollment Form'!$C693=\"ROC\"),\"-\",IF(AND('Enrollment Form'!$B693=\"Subscriber\",'Enrollment Form'!$C693=\"Enroll\",'Enrollment Form'!$AP693<>\"\"),\"Y\",\"N\")))","v":""},{"$f":"IF($B686=\"N\",\"\",IF(OR('Enrollment Form'!$B693<>\"Subscriber\",'Enrollment Form'!$C693=\"ROC\"),\"-\",IF(AND('Enrollment Form'!$B693=\"Subscriber\",'Enrollment Form'!$C693=\"Enroll\",'Enrollment Form'!$AQ693<>\"\"),\"Y\",\"N\")))","v":""},{"$f":"IF($B686=\"N\",\"\",IF(OR('Enrollment Form'!$B693<>\"Subscriber\",'Enrollment Form'!$C693=\"ROC\"),\"-\",IF(AND('Enrollment Form'!$B693=\"Subscriber\",'Enrollment Form'!$C693=\"Enroll\",'Enrollment Form'!$AS693<>\"\"),\"Y\",\"N\")))","v":""},{"$f":"IF($B686=\"N\",\"\",IF($Q686=\"-\",\"-\",IF(AND($Q686=\"Y\",'Enrollment Form'!$AS693=\"No\"),\"-\",IF(AND($Q686=\"Y\",'Enrollment Form'!$AS693=\"Yes\",'Enrollment Form'!$AT693<>\"\"),\"Y\",\"N\"))))","v":""},{"$f":"IF($B686=\"N\",\"\",IF(OR('Enrollment Form'!$B693<>\"Subscriber\",'Enrollment Form'!$C693=\"ROC\"),\"-\",IF(AND('Enrollment Form'!$B693=\"Subscriber\",'Enrollment Form'!$C693=\"Enroll\",'Enrollment Form'!$CV693<>\"\"),\"Y\",\"N\")))","v":""},{"$f":"IF($B686=\"N\",\"\",IF($S686=\"-\",\"-\",IF(AND($S686=\"Y\",'Enrollment Form'!$CV693=\"No\"),\"-\",IF(AND($S686=\"Y\",'Enrollment Form'!$CV693=\"Yes\",'Enrollment Form'!$CW693<>\"\"),\"Y\",\"N\"))))","v":""},{"$f":"IF(OR('Enrollment Form'!$AY693=\"Yes\",'Enrollment Form'!$AY693=\"\"),\"-\",IF(OR(AND('Enrollment Form'!$AY693=\"No\",ISERROR(FIND(\"HMO\",VLOOKUP('Enrollment Form'!G693,'Enrollment Form'!H$11:J$1000,3,FALSE),1))=FALSE,COUNTA('Enrollment Form'!$AZ693:$BC693)=4),AND('Enrollment Form'!$AY693=\"No\",ISERROR(FIND(\"HMO\",VLOOKUP('Enrollment Form'!G693,'Enrollment Form'!H$11:J$1000,3,FALSE),1))=FALSE,COUNTA('Enrollment Form'!$BT693:$BW693)=4)),\"Y\",\"N\"))","v":"-"},{"$f":"IF($B686=\"N\",\"\",IF('Enrollment Form'!$B693=\"Subscriber\",\"-\",IF(COUNTA('Enrollment Form'!$BL693,'Enrollment Form'!$BN693)=2,\"Y\",\"N\")))","v":""},{"$f":"IF($B686=\"N\",\"\",IF(OR('Enrollment Form'!$AX693=\"\",'Enrollment Form'!$AX693=\"No\"),\"-\",IF(AND('Enrollment Form'!$AX693=\"Yes\",COUNTA('Enrollment Form'!$CR693)=1),\"Y\",\"N\")))","v":""},{"$f":"IF(OR('Enrollment Form'!$CR693=\"\",'Enrollment Form'!$CR693=\"No\"),\"-\",IF(COUNTA('Enrollment Form'!$CT693:$CU693)=2,\"Y\",\"N\"))","v":"-"},{"$f":"IF($B686=\"N\",\"\",IF(COUNTIF('Enrollment Form'!$DG693:$DP693,\"Other\")=COUNTA('Enrollment Form'!$DK693,'Enrollment Form'!$DH693,'Enrollment Form'!$DN693,'Enrollment Form'!$DQ693),\"Y\",\"N\"))","v":""},{"$f":"IF($B686=\"N\",\"\",IF(OR('Enrollment Form'!B693<>\"Subscriber\",'Enrollment Form'!C693=\"ROC\",COUNTIF('Enrollment Form'!AV693:AW693,\"Yes\")>=1),\"-\",IF(AND('Enrollment Form'!C693=\"Enroll\",COUNTIF('Enrollment Form'!AV693:AW693,\"No\")=2,'Enrollment Form'!AX693=\"\"),\"N\",\"Y\")))","v":""},{"$f":"IF(OR(B686=\"N\",'Enrollment Form'!B693<>\"Subscriber\",'Enrollment Form'!C693=\"ROC\",'Enrollment Form'!O693<>\"Multiple of Salary\"),\"-\",IF(COUNTA('Enrollment Form'!T693:U693)<2,\"N\",\"Y\"))","v":"-"},{"$f":"IF(B686=\"N\",\"\",IF(OR('Enrollment Form'!C693=\"ROC\",'Enrollment Form'!B693<>\"Subscriber\",'Enrollment Form'!O693=\"Waive\",'Enrollment Form'!O693=\"\"),\"-\",IF('Enrollment Form'!P693=\"\",\"N\",\"Y\")))","v":""},{"$f":"IF($B686=\"N\",\"\",IF(AND('Enrollment Form'!$C693=\"ROC\",'Enrollment Form'!$DR693<>\"\"),\"Y\",IF(AND('Enrollment Form'!$C693=\"ROC\",'Enrollment Form'!$DR693=\"\"),\"N\",IF(AND('Enrollment Form'!$C693=\"Enroll\",'Enrollment Form'!$B693=\"Subscriber\",'Enrollment Form'!$CX693=\"No\",'Enrollment Form'!$DR693=\"\"),\"N\",IF(AND('Enrollment Form'!$C693=\"Enroll\",'Enrollment Form'!$B693=\"Subscriber\",'Enrollment Form'!$CX693=\"Yes\"),\"-\",\"Y\")))))","v":""},{"$f":"IF($B686=\"N\",\"\",IF(AND('Enrollment Form'!$C693=\"ROC\",'Enrollment Form'!$DS693<>\"\"),\"Y\",IF(AND('Enrollment Form'!$C693=\"ROC\",'Enrollment Form'!$DS693=\"\"),\"N\",IF(AND('Enrollment Form'!$C693=\"Enroll\",'Enrollment Form'!$B693=\"Subscriber\",'Enrollment Form'!$CX693=\"No\",'Enrollment Form'!$DS693=\"\"),\"N\",IF(AND('Enrollment Form'!$C693=\"Enroll\",'Enrollment Form'!$B693=\"Subscriber\",'Enrollment Form'!$CX693=\"Yes\"),\"-\",\"Y\")))))","v":""},{"$f":"IF('Enrollment Form'!AH693=\"\",\"\",IF(ISERROR(SEARCH(\".\",'Enrollment Form'!AH693,SEARCH(\"@\",'Enrollment Form'!AH693))),\"N\",\"Y\"))","v":""},{"$f":"IF(OR($B686=\"N\",'Enrollment Form'!$G693=\"\"),\"\",IF('Enrollment Form'!$B693<>\"Subscriber\",\"-\",IF(COUNTIF('Enrollment Form'!$AV693:$AW693,\"Yes\")=2,\"N\",\"Y\")))","v":""},{"$f":"IF(OR('Enrollment Form'!$CJ693=\"\",'Enrollment Form'!$CJ693=\"No\"),\"-\",IF(AND('Enrollment Form'!$CJ693=\"Yes\",'Enrollment Form'!$CK693=\"\"),\"N\",\"Y\"))","v":"-"},{"$f":"IF(OR('Enrollment Form'!$CL693=\"\",'Enrollment Form'!$CL693=\"No\"),\"-\",IF(AND('Enrollment Form'!$CL693=\"Yes\",'Enrollment Form'!$CM693=\"\"),\"N\",\"Y\"))","v":"-"},{"$f":"IF(OR('Enrollment Form'!$CN693=\"\",'Enrollment Form'!$CN693=\"No\"),\"-\",IF(AND('Enrollment Form'!$CN693=\"Yes\",'Enrollment Form'!$CO693=\"\"),\"N\",\"Y\"))","v":"-"},{"$f":"IF(OR('Enrollment Form'!$CN693=\"\",'Enrollment Form'!$CN693=\"No\"),\"-\",IF(AND('Enrollment Form'!$CN693=\"Yes\",'Enrollment Form'!$CP693=\"\"),\"N\",\"Y\"))","v":"-"},{"$f":"IF('Enrollment Form'!B693<>\"Subscriber\",\"-\",IF(AND('Enrollment Form'!B693=\"Subscriber\",'Enrollment Form'!C693=\"Enroll\",'Enrollment Form'!AA693=\"\"),\"N\",\"Y\"))","v":"-"},{"$f":"IF(OR('Enrollment Form'!B693=\"Subscriber\",'Enrollment Form'!B693=\"\"),\"-\",IF('Enrollment Form'!BP693=\"\",\"N\",\"Y\"))","v":"-"},{"$f":"IF('Enrollment Form'!B693<>\"Subscriber\",\"-\",IF(AND('Enrollment Form'!B693=\"Subscriber\",'Enrollment Form'!G693=\"\"),\"N\",\"Y\"))","v":"-"},{"$f":"IF('Enrollment Form'!A693=\"\",\"\",IF('Enrollment Form'!B693=\"Subscriber\",\"-\",IF(AND('Enrollment Form'!B693<>\"Subscriber\",'Enrollment Form'!G693='Enrollment Form'!H693),\"N\",\"Y\")))","v":""},0]
[694,{"$f":"IF('Enrollment Form'!$A694<>\"\",\"Y\",\"N\")","v":"N"},{"$f":"IF(AND('Enrollment Form'!$B694=\"\",'Enrollment Form'!$C694<>\"\"),\"N\",IF($B687=\"N\",\"\",\"Y\"))","v":""},{"$f":"IF(OR($B687=\"N\",'Enrollment Form'!G694=\"\"),\"\",IF('Enrollment Form'!$B694<>\"Subscriber\",\"\",IF('Enrollment Form'!$G694='Enrollment Form'!$H694,\"Y\",\"N\")))","v":""},{"$f":"IF($B687=\"N\",\"\",IF(AND(COUNTIFS('Enrollment Form'!$H$11:$H$1000,'Enrollment Form'!$H694,'Enrollment Form'!$B$11:$B$1000,'Enrollment Form'!$B694)>1,'Enrollment Form'!$H694<>\"\"),\"N\",\"Y\"))","v":""},{"$f":"IF($B687=\"N\",\"\",IF(LEN('Enrollment Form'!$Y694)=0,\"\",IF(LEN('Enrollment Form'!$Y694)<>5,\"N\",\"Y\")))","v":""},{"$f":"IF($B687=\"N\",\"\",IF(LEN('Enrollment Form'!$AD694=0),\"\",IF(LEN('Enrollment Form'!$AD694)<>5,\"N\",\"Y\")))","v":""},{"$f":"IF($B687=\"N\",\"\",IF(LEN('Enrollment Form'!$BS694=0),\"\",IF(LEN('Enrollment Form'!$BS694)<>5,\"N\",\"Y\")))","v":""},{"$f":"IF($B687=\"N\",\"\",IF(LEN('Enrollment Form'!$AE694)=0,\"\",IF(LEN('Enrollment Form'!$AE694)<>10,\"N\",\"Y\")))","v":""},{"$f":"IF($B687=\"N\",\"\",IF(LEN('Enrollment Form'!$AF694)=0,\"\",IF(LEN('Enrollment Form'!$AF694)<>10,\"N\",\"Y\")))","v":""},{"$f":"IF('Enrollment Form'!$O694<>\"Graded\",\"-\",IF(AND('Enrollment Form'!$O694=\"Graded\",'Enrollment Form'!$AR694<>\"\"),\"Y\",\"N\"))","v":"-"},{"$f":"IF($B687=\"N\",\"\",IF(OR('Enrollment Form'!$B694<>\"Subscriber\",'Enrollment Form'!$C694=\"ROC\"),\"-\",IF(AND('Enrollment Form'!$B694=\"Subscriber\",'Enrollment Form'!$C694=\"Enroll\",'Enrollment Form'!$AJ694<>\"\"),\"Y\",\"N\")))","v":""},{"$f":"IF($B687=\"N\",\"\",IF(OR('Enrollment Form'!$B694<>\"Subscriber\",'Enrollment Form'!$C694=\"ROC\"),\"-\",IF(AND('Enrollment Form'!$B694=\"Subscriber\",'Enrollment Form'!$C694=\"Enroll\",'Enrollment Form'!$AK694<>\"\"),\"Y\",\"N\")))","v":""},{"$f":"IF($B687=\"N\",\"\",IF(OR('Enrollment Form'!$B694<>\"Subscriber\",'Enrollment Form'!$C694=\"ROC\"),\"-\",IF(AND('Enrollment Form'!$B694=\"Subscriber\",'Enrollment Form'!$C694=\"Enroll\",'Enrollment Form'!$AL694<>\"\"),\"Y\",\"N\")))","v":""},{"$f":"IF($B687=\"N\",\"\",IF(OR('Enrollment Form'!$B694<>\"Subscriber\",'Enrollment Form'!$C694=\"ROC\"),\"-\",IF(AND('Enrollment Form'!$B694=\"Subscriber\",'Enrollment Form'!$C694=\"Enroll\",'Enrollment Form'!$AP694<>\"\"),\"Y\",\"N\")))","v":""},{"$f":"IF($B687=\"N\",\"\",IF(OR('Enrollment Form'!$B694<>\"Subscriber\",'Enrollment Form'!$C694=\"ROC\"),\"-\",IF(AND('Enrollment Form'!$B694=\"Subscriber\",'Enrollment Form'!$C694=\"Enroll\",'Enrollment Form'!$AQ694<>\"\"),\"Y\",\"N\")))","v":""},{"$f":"IF($B687=\"N\",\"\",IF(OR('Enrollment Form'!$B694<>\"Subscriber\",'Enrollment Form'!$C694=\"ROC\"),\"-\",IF(AND('Enrollment Form'!$B694=\"Subscriber\",'Enrollment Form'!$C694=\"Enroll\",'Enrollment Form'!$AS694<>\"\"),\"Y\",\"N\")))","v":""},{"$f":"IF($B687=\"N\",\"\",IF($Q687=\"-\",\"-\",IF(AND($Q687=\"Y\",'Enrollment Form'!$AS694=\"No\"),\"-\",IF(AND($Q687=\"Y\",'Enrollment Form'!$AS694=\"Yes\",'Enrollment Form'!$AT694<>\"\"),\"Y\",\"N\"))))","v":""},{"$f":"IF($B687=\"N\",\"\",IF(OR('Enrollment Form'!$B694<>\"Subscriber\",'Enrollment Form'!$C694=\"ROC\"),\"-\",IF(AND('Enrollment Form'!$B694=\"Subscriber\",'Enrollment Form'!$C694=\"Enroll\",'Enrollment Form'!$CV694<>\"\"),\"Y\",\"N\")))","v":""},{"$f":"IF($B687=\"N\",\"\",IF($S687=\"-\",\"-\",IF(AND($S687=\"Y\",'Enrollment Form'!$CV694=\"No\"),\"-\",IF(AND($S687=\"Y\",'Enrollment Form'!$CV694=\"Yes\",'Enrollment Form'!$CW694<>\"\"),\"Y\",\"N\"))))","v":""},{"$f":"IF(OR('Enrollment Form'!$AY694=\"Yes\",'Enrollment Form'!$AY694=\"\"),\"-\",IF(OR(AND('Enrollment Form'!$AY694=\"No\",ISERROR(FIND(\"HMO\",VLOOKUP('Enrollment Form'!G694,'Enrollment Form'!H$11:J$1000,3,FALSE),1))=FALSE,COUNTA('Enrollment Form'!$AZ694:$BC694)=4),AND('Enrollment Form'!$AY694=\"No\",ISERROR(FIND(\"HMO\",VLOOKUP('Enrollment Form'!G694,'Enrollment Form'!H$11:J$1000,3,FALSE),1))=FALSE,COUNTA('Enrollment Form'!$BT694:$BW694)=4)),\"Y\",\"N\"))","v":"-"},{"$f":"IF($B687=\"N\",\"\",IF('Enrollment Form'!$B694=\"Subscriber\",\"-\",IF(COUNTA('Enrollment Form'!$BL694,'Enrollment Form'!$BN694)=2,\"Y\",\"N\")))","v":""},{"$f":"IF($B687=\"N\",\"\",IF(OR('Enrollment Form'!$AX694=\"\",'Enrollment Form'!$AX694=\"No\"),\"-\",IF(AND('Enrollment Form'!$AX694=\"Yes\",COUNTA('Enrollment Form'!$CR694)=1),\"Y\",\"N\")))","v":""},{"$f":"IF(OR('Enrollment Form'!$CR694=\"\",'Enrollment Form'!$CR694=\"No\"),\"-\",IF(COUNTA('Enrollment Form'!$CT694:$CU694)=2,\"Y\",\"N\"))","v":"-"},{"$f":"IF($B687=\"N\",\"\",IF(COUNTIF('Enrollment Form'!$DG694:$DP694,\"Other\")=COUNTA('Enrollment Form'!$DK694,'Enrollment Form'!$DH694,'Enrollment Form'!$DN694,'Enrollment Form'!$DQ694),\"Y\",\"N\"))","v":""},{"$f":"IF($B687=\"N\",\"\",IF(OR('Enrollment Form'!B694<>\"Subscriber\",'Enrollment Form'!C694=\"ROC\",COUNTIF('Enrollment Form'!AV694:AW694,\"Yes\")>=1),\"-\",IF(AND('Enrollment Form'!C694=\"Enroll\",COUNTIF('Enrollment Form'!AV694:AW694,\"No\")=2,'Enrollment Form'!AX694=\"\"),\"N\",\"Y\")))","v":""},{"$f":"IF(OR(B687=\"N\",'Enrollment Form'!B694<>\"Subscriber\",'Enrollment Form'!C694=\"ROC\",'Enrollment Form'!O694<>\"Multiple of Salary\"),\"-\",IF(COUNTA('Enrollment Form'!T694:U694)<2,\"N\",\"Y\"))","v":"-"},{"$f":"IF(B687=\"N\",\"\",IF(OR('Enrollment Form'!C694=\"ROC\",'Enrollment Form'!B694<>\"Subscriber\",'Enrollment Form'!O694=\"Waive\",'Enrollment Form'!O694=\"\"),\"-\",IF('Enrollment Form'!P694=\"\",\"N\",\"Y\")))","v":""},{"$f":"IF($B687=\"N\",\"\",IF(AND('Enrollment Form'!$C694=\"ROC\",'Enrollment Form'!$DR694<>\"\"),\"Y\",IF(AND('Enrollment Form'!$C694=\"ROC\",'Enrollment Form'!$DR694=\"\"),\"N\",IF(AND('Enrollment Form'!$C694=\"Enroll\",'Enrollment Form'!$B694=\"Subscriber\",'Enrollment Form'!$CX694=\"No\",'Enrollment Form'!$DR694=\"\"),\"N\",IF(AND('Enrollment Form'!$C694=\"Enroll\",'Enrollment Form'!$B694=\"Subscriber\",'Enrollment Form'!$CX694=\"Yes\"),\"-\",\"Y\")))))","v":""},{"$f":"IF($B687=\"N\",\"\",IF(AND('Enrollment Form'!$C694=\"ROC\",'Enrollment Form'!$DS694<>\"\"),\"Y\",IF(AND('Enrollment Form'!$C694=\"ROC\",'Enrollment Form'!$DS694=\"\"),\"N\",IF(AND('Enrollment Form'!$C694=\"Enroll\",'Enrollment Form'!$B694=\"Subscriber\",'Enrollment Form'!$CX694=\"No\",'Enrollment Form'!$DS694=\"\"),\"N\",IF(AND('Enrollment Form'!$C694=\"Enroll\",'Enrollment Form'!$B694=\"Subscriber\",'Enrollment Form'!$CX694=\"Yes\"),\"-\",\"Y\")))))","v":""},{"$f":"IF('Enrollment Form'!AH694=\"\",\"\",IF(ISERROR(SEARCH(\".\",'Enrollment Form'!AH694,SEARCH(\"@\",'Enrollment Form'!AH694))),\"N\",\"Y\"))","v":""},{"$f":"IF(OR($B687=\"N\",'Enrollment Form'!$G694=\"\"),\"\",IF('Enrollment Form'!$B694<>\"Subscriber\",\"-\",IF(COUNTIF('Enrollment Form'!$AV694:$AW694,\"Yes\")=2,\"N\",\"Y\")))","v":""},{"$f":"IF(OR('Enrollment Form'!$CJ694=\"\",'Enrollment Form'!$CJ694=\"No\"),\"-\",IF(AND('Enrollment Form'!$CJ694=\"Yes\",'Enrollment Form'!$CK694=\"\"),\"N\",\"Y\"))","v":"-"},{"$f":"IF(OR('Enrollment Form'!$CL694=\"\",'Enrollment Form'!$CL694=\"No\"),\"-\",IF(AND('Enrollment Form'!$CL694=\"Yes\",'Enrollment Form'!$CM694=\"\"),\"N\",\"Y\"))","v":"-"},{"$f":"IF(OR('Enrollment Form'!$CN694=\"\",'Enrollment Form'!$CN694=\"No\"),\"-\",IF(AND('Enrollment Form'!$CN694=\"Yes\",'Enrollment Form'!$CO694=\"\"),\"N\",\"Y\"))","v":"-"},{"$f":"IF(OR('Enrollment Form'!$CN694=\"\",'Enrollment Form'!$CN694=\"No\"),\"-\",IF(AND('Enrollment Form'!$CN694=\"Yes\",'Enrollment Form'!$CP694=\"\"),\"N\",\"Y\"))","v":"-"},{"$f":"IF('Enrollment Form'!B694<>\"Subscriber\",\"-\",IF(AND('Enrollment Form'!B694=\"Subscriber\",'Enrollment Form'!C694=\"Enroll\",'Enrollment Form'!AA694=\"\"),\"N\",\"Y\"))","v":"-"},{"$f":"IF(OR('Enrollment Form'!B694=\"Subscriber\",'Enrollment Form'!B694=\"\"),\"-\",IF('Enrollment Form'!BP694=\"\",\"N\",\"Y\"))","v":"-"},{"$f":"IF('Enrollment Form'!B694<>\"Subscriber\",\"-\",IF(AND('Enrollment Form'!B694=\"Subscriber\",'Enrollment Form'!G694=\"\"),\"N\",\"Y\"))","v":"-"},{"$f":"IF('Enrollment Form'!A694=\"\",\"\",IF('Enrollment Form'!B694=\"Subscriber\",\"-\",IF(AND('Enrollment Form'!B694<>\"Subscriber\",'Enrollment Form'!G694='Enrollment Form'!H694),\"N\",\"Y\")))","v":""},0]
[695,{"$f":"IF('Enrollment Form'!$A695<>\"\",\"Y\",\"N\")","v":"N"},{"$f":"IF(AND('Enrollment Form'!$B695=\"\",'Enrollment Form'!$C695<>\"\"),\"N\",IF($B688=\"N\",\"\",\"Y\"))","v":""},{"$f":"IF(OR($B688=\"N\",'Enrollment Form'!G695=\"\"),\"\",IF('Enrollment Form'!$B695<>\"Subscriber\",\"\",IF('Enrollment Form'!$G695='Enrollment Form'!$H695,\"Y\",\"N\")))","v":""},{"$f":"IF($B688=\"N\",\"\",IF(AND(COUNTIFS('Enrollment Form'!$H$11:$H$1000,'Enrollment Form'!$H695,'Enrollment Form'!$B$11:$B$1000,'Enrollment Form'!$B695)>1,'Enrollment Form'!$H695<>\"\"),\"N\",\"Y\"))","v":""},{"$f":"IF($B688=\"N\",\"\",IF(LEN('Enrollment Form'!$Y695)=0,\"\",IF(LEN('Enrollment Form'!$Y695)<>5,\"N\",\"Y\")))","v":""},{"$f":"IF($B688=\"N\",\"\",IF(LEN('Enrollment Form'!$AD695=0),\"\",IF(LEN('Enrollment Form'!$AD695)<>5,\"N\",\"Y\")))","v":""},{"$f":"IF($B688=\"N\",\"\",IF(LEN('Enrollment Form'!$BS695=0),\"\",IF(LEN('Enrollment Form'!$BS695)<>5,\"N\",\"Y\")))","v":""},{"$f":"IF($B688=\"N\",\"\",IF(LEN('Enrollment Form'!$AE695)=0,\"\",IF(LEN('Enrollment Form'!$AE695)<>10,\"N\",\"Y\")))","v":""},{"$f":"IF($B688=\"N\",\"\",IF(LEN('Enrollment Form'!$AF695)=0,\"\",IF(LEN('Enrollment Form'!$AF695)<>10,\"N\",\"Y\")))","v":""},{"$f":"IF('Enrollment Form'!$O695<>\"Graded\",\"-\",IF(AND('Enrollment Form'!$O695=\"Graded\",'Enrollment Form'!$AR695<>\"\"),\"Y\",\"N\"))","v":"-"},{"$f":"IF($B688=\"N\",\"\",IF(OR('Enrollment Form'!$B695<>\"Subscriber\",'Enrollment Form'!$C695=\"ROC\"),\"-\",IF(AND('Enrollment Form'!$B695=\"Subscriber\",'Enrollment Form'!$C695=\"Enroll\",'Enrollment Form'!$AJ695<>\"\"),\"Y\",\"N\")))","v":""},{"$f":"IF($B688=\"N\",\"\",IF(OR('Enrollment Form'!$B695<>\"Subscriber\",'Enrollment Form'!$C695=\"ROC\"),\"-\",IF(AND('Enrollment Form'!$B695=\"Subscriber\",'Enrollment Form'!$C695=\"Enroll\",'Enrollment Form'!$AK695<>\"\"),\"Y\",\"N\")))","v":""},{"$f":"IF($B688=\"N\",\"\",IF(OR('Enrollment Form'!$B695<>\"Subscriber\",'Enrollment Form'!$C695=\"ROC\"),\"-\",IF(AND('Enrollment Form'!$B695=\"Subscriber\",'Enrollment Form'!$C695=\"Enroll\",'Enrollment Form'!$AL695<>\"\"),\"Y\",\"N\")))","v":""},{"$f":"IF($B688=\"N\",\"\",IF(OR('Enrollment Form'!$B695<>\"Subscriber\",'Enrollment Form'!$C695=\"ROC\"),\"-\",IF(AND('Enrollment Form'!$B695=\"Subscriber\",'Enrollment Form'!$C695=\"Enroll\",'Enrollment Form'!$AP695<>\"\"),\"Y\",\"N\")))","v":""},{"$f":"IF($B688=\"N\",\"\",IF(OR('Enrollment Form'!$B695<>\"Subscriber\",'Enrollment Form'!$C695=\"ROC\"),\"-\",IF(AND('Enrollment Form'!$B695=\"Subscriber\",'Enrollment Form'!$C695=\"Enroll\",'Enrollment Form'!$AQ695<>\"\"),\"Y\",\"N\")))","v":""},{"$f":"IF($B688=\"N\",\"\",IF(OR('Enrollment Form'!$B695<>\"Subscriber\",'Enrollment Form'!$C695=\"ROC\"),\"-\",IF(AND('Enrollment Form'!$B695=\"Subscriber\",'Enrollment Form'!$C695=\"Enroll\",'Enrollment Form'!$AS695<>\"\"),\"Y\",\"N\")))","v":""},{"$f":"IF($B688=\"N\",\"\",IF($Q688=\"-\",\"-\",IF(AND($Q688=\"Y\",'Enrollment Form'!$AS695=\"No\"),\"-\",IF(AND($Q688=\"Y\",'Enrollment Form'!$AS695=\"Yes\",'Enrollment Form'!$AT695<>\"\"),\"Y\",\"N\"))))","v":""},{"$f":"IF($B688=\"N\",\"\",IF(OR('Enrollment Form'!$B695<>\"Subscriber\",'Enrollment Form'!$C695=\"ROC\"),\"-\",IF(AND('Enrollment Form'!$B695=\"Subscriber\",'Enrollment Form'!$C695=\"Enroll\",'Enrollment Form'!$CV695<>\"\"),\"Y\",\"N\")))","v":""},{"$f":"IF($B688=\"N\",\"\",IF($S688=\"-\",\"-\",IF(AND($S688=\"Y\",'Enrollment Form'!$CV695=\"No\"),\"-\",IF(AND($S688=\"Y\",'Enrollment Form'!$CV695=\"Yes\",'Enrollment Form'!$CW695<>\"\"),\"Y\",\"N\"))))","v":""},{"$f":"IF(OR('Enrollment Form'!$AY695=\"Yes\",'Enrollment Form'!$AY695=\"\"),\"-\",IF(OR(AND('Enrollment Form'!$AY695=\"No\",ISERROR(FIND(\"HMO\",VLOOKUP('Enrollment Form'!G695,'Enrollment Form'!H$11:J$1000,3,FALSE),1))=FALSE,COUNTA('Enrollment Form'!$AZ695:$BC695)=4),AND('Enrollment Form'!$AY695=\"No\",ISERROR(FIND(\"HMO\",VLOOKUP('Enrollment Form'!G695,'Enrollment Form'!H$11:J$1000,3,FALSE),1))=FALSE,COUNTA('Enrollment Form'!$BT695:$BW695)=4)),\"Y\",\"N\"))","v":"-"},{"$f":"IF($B688=\"N\",\"\",IF('Enrollment Form'!$B695=\"Subscriber\",\"-\",IF(COUNTA('Enrollment Form'!$BL695,'Enrollment Form'!$BN695)=2,\"Y\",\"N\")))","v":""},{"$f":"IF($B688=\"N\",\"\",IF(OR('Enrollment Form'!$AX695=\"\",'Enrollment Form'!$AX695=\"No\"),\"-\",IF(AND('Enrollment Form'!$AX695=\"Yes\",COUNTA('Enrollment Form'!$CR695)=1),\"Y\",\"N\")))","v":""},{"$f":"IF(OR('Enrollment Form'!$CR695=\"\",'Enrollment Form'!$CR695=\"No\"),\"-\",IF(COUNTA('Enrollment Form'!$CT695:$CU695)=2,\"Y\",\"N\"))","v":"-"},{"$f":"IF($B688=\"N\",\"\",IF(COUNTIF('Enrollment Form'!$DG695:$DP695,\"Other\")=COUNTA('Enrollment Form'!$DK695,'Enrollment Form'!$DH695,'Enrollment Form'!$DN695,'Enrollment Form'!$DQ695),\"Y\",\"N\"))","v":""},{"$f":"IF($B688=\"N\",\"\",IF(OR('Enrollment Form'!B695<>\"Subscriber\",'Enrollment Form'!C695=\"ROC\",COUNTIF('Enrollment Form'!AV695:AW695,\"Yes\")>=1),\"-\",IF(AND('Enrollment Form'!C695=\"Enroll\",COUNTIF('Enrollment Form'!AV695:AW695,\"No\")=2,'Enrollment Form'!AX695=\"\"),\"N\",\"Y\")))","v":""},{"$f":"IF(OR(B688=\"N\",'Enrollment Form'!B695<>\"Subscriber\",'Enrollment Form'!C695=\"ROC\",'Enrollment Form'!O695<>\"Multiple of Salary\"),\"-\",IF(COUNTA('Enrollment Form'!T695:U695)<2,\"N\",\"Y\"))","v":"-"},{"$f":"IF(B688=\"N\",\"\",IF(OR('Enrollment Form'!C695=\"ROC\",'Enrollment Form'!B695<>\"Subscriber\",'Enrollment Form'!O695=\"Waive\",'Enrollment Form'!O695=\"\"),\"-\",IF('Enrollment Form'!P695=\"\",\"N\",\"Y\")))","v":""},{"$f":"IF($B688=\"N\",\"\",IF(AND('Enrollment Form'!$C695=\"ROC\",'Enrollment Form'!$DR695<>\"\"),\"Y\",IF(AND('Enrollment Form'!$C695=\"ROC\",'Enrollment Form'!$DR695=\"\"),\"N\",IF(AND('Enrollment Form'!$C695=\"Enroll\",'Enrollment Form'!$B695=\"Subscriber\",'Enrollment Form'!$CX695=\"No\",'Enrollment Form'!$DR695=\"\"),\"N\",IF(AND('Enrollment Form'!$C695=\"Enroll\",'Enrollment Form'!$B695=\"Subscriber\",'Enrollment Form'!$CX695=\"Yes\"),\"-\",\"Y\")))))","v":""},{"$f":"IF($B688=\"N\",\"\",IF(AND('Enrollment Form'!$C695=\"ROC\",'Enrollment Form'!$DS695<>\"\"),\"Y\",IF(AND('Enrollment Form'!$C695=\"ROC\",'Enrollment Form'!$DS695=\"\"),\"N\",IF(AND('Enrollment Form'!$C695=\"Enroll\",'Enrollment Form'!$B695=\"Subscriber\",'Enrollment Form'!$CX695=\"No\",'Enrollment Form'!$DS695=\"\"),\"N\",IF(AND('Enrollment Form'!$C695=\"Enroll\",'Enrollment Form'!$B695=\"Subscriber\",'Enrollment Form'!$CX695=\"Yes\"),\"-\",\"Y\")))))","v":""},{"$f":"IF('Enrollment Form'!AH695=\"\",\"\",IF(ISERROR(SEARCH(\".\",'Enrollment Form'!AH695,SEARCH(\"@\",'Enrollment Form'!AH695))),\"N\",\"Y\"))","v":""},{"$f":"IF(OR($B688=\"N\",'Enrollment Form'!$G695=\"\"),\"\",IF('Enrollment Form'!$B695<>\"Subscriber\",\"-\",IF(COUNTIF('Enrollment Form'!$AV695:$AW695,\"Yes\")=2,\"N\",\"Y\")))","v":""},{"$f":"IF(OR('Enrollment Form'!$CJ695=\"\",'Enrollment Form'!$CJ695=\"No\"),\"-\",IF(AND('Enrollment Form'!$CJ695=\"Yes\",'Enrollment Form'!$CK695=\"\"),\"N\",\"Y\"))","v":"-"},{"$f":"IF(OR('Enrollment Form'!$CL695=\"\",'Enrollment Form'!$CL695=\"No\"),\"-\",IF(AND('Enrollment Form'!$CL695=\"Yes\",'Enrollment Form'!$CM695=\"\"),\"N\",\"Y\"))","v":"-"},{"$f":"IF(OR('Enrollment Form'!$CN695=\"\",'Enrollment Form'!$CN695=\"No\"),\"-\",IF(AND('Enrollment Form'!$CN695=\"Yes\",'Enrollment Form'!$CO695=\"\"),\"N\",\"Y\"))","v":"-"},{"$f":"IF(OR('Enrollment Form'!$CN695=\"\",'Enrollment Form'!$CN695=\"No\"),\"-\",IF(AND('Enrollment Form'!$CN695=\"Yes\",'Enrollment Form'!$CP695=\"\"),\"N\",\"Y\"))","v":"-"},{"$f":"IF('Enrollment Form'!B695<>\"Subscriber\",\"-\",IF(AND('Enrollment Form'!B695=\"Subscriber\",'Enrollment Form'!C695=\"Enroll\",'Enrollment Form'!AA695=\"\"),\"N\",\"Y\"))","v":"-"},{"$f":"IF(OR('Enrollment Form'!B695=\"Subscriber\",'Enrollment Form'!B695=\"\"),\"-\",IF('Enrollment Form'!BP695=\"\",\"N\",\"Y\"))","v":"-"},{"$f":"IF('Enrollment Form'!B695<>\"Subscriber\",\"-\",IF(AND('Enrollment Form'!B695=\"Subscriber\",'Enrollment Form'!G695=\"\"),\"N\",\"Y\"))","v":"-"},{"$f":"IF('Enrollment Form'!A695=\"\",\"\",IF('Enrollment Form'!B695=\"Subscriber\",\"-\",IF(AND('Enrollment Form'!B695<>\"Subscriber\",'Enrollment Form'!G695='Enrollment Form'!H695),\"N\",\"Y\")))","v":""},0]
[696,{"$f":"IF('Enrollment Form'!$A696<>\"\",\"Y\",\"N\")","v":"N"},{"$f":"IF(AND('Enrollment Form'!$B696=\"\",'Enrollment Form'!$C696<>\"\"),\"N\",IF($B689=\"N\",\"\",\"Y\"))","v":""},{"$f":"IF(OR($B689=\"N\",'Enrollment Form'!G696=\"\"),\"\",IF('Enrollment Form'!$B696<>\"Subscriber\",\"\",IF('Enrollment Form'!$G696='Enrollment Form'!$H696,\"Y\",\"N\")))","v":""},{"$f":"IF($B689=\"N\",\"\",IF(AND(COUNTIFS('Enrollment Form'!$H$11:$H$1000,'Enrollment Form'!$H696,'Enrollment Form'!$B$11:$B$1000,'Enrollment Form'!$B696)>1,'Enrollment Form'!$H696<>\"\"),\"N\",\"Y\"))","v":""},{"$f":"IF($B689=\"N\",\"\",IF(LEN('Enrollment Form'!$Y696)=0,\"\",IF(LEN('Enrollment Form'!$Y696)<>5,\"N\",\"Y\")))","v":""},{"$f":"IF($B689=\"N\",\"\",IF(LEN('Enrollment Form'!$AD696=0),\"\",IF(LEN('Enrollment Form'!$AD696)<>5,\"N\",\"Y\")))","v":""},{"$f":"IF($B689=\"N\",\"\",IF(LEN('Enrollment Form'!$BS696=0),\"\",IF(LEN('Enrollment Form'!$BS696)<>5,\"N\",\"Y\")))","v":""},{"$f":"IF($B689=\"N\",\"\",IF(LEN('Enrollment Form'!$AE696)=0,\"\",IF(LEN('Enrollment Form'!$AE696)<>10,\"N\",\"Y\")))","v":""},{"$f":"IF($B689=\"N\",\"\",IF(LEN('Enrollment Form'!$AF696)=0,\"\",IF(LEN('Enrollment Form'!$AF696)<>10,\"N\",\"Y\")))","v":""},{"$f":"IF('Enrollment Form'!$O696<>\"Graded\",\"-\",IF(AND('Enrollment Form'!$O696=\"Graded\",'Enrollment Form'!$AR696<>\"\"),\"Y\",\"N\"))","v":"-"},{"$f":"IF($B689=\"N\",\"\",IF(OR('Enrollment Form'!$B696<>\"Subscriber\",'Enrollment Form'!$C696=\"ROC\"),\"-\",IF(AND('Enrollment Form'!$B696=\"Subscriber\",'Enrollment Form'!$C696=\"Enroll\",'Enrollment Form'!$AJ696<>\"\"),\"Y\",\"N\")))","v":""},{"$f":"IF($B689=\"N\",\"\",IF(OR('Enrollment Form'!$B696<>\"Subscriber\",'Enrollment Form'!$C696=\"ROC\"),\"-\",IF(AND('Enrollment Form'!$B696=\"Subscriber\",'Enrollment Form'!$C696=\"Enroll\",'Enrollment Form'!$AK696<>\"\"),\"Y\",\"N\")))","v":""},{"$f":"IF($B689=\"N\",\"\",IF(OR('Enrollment Form'!$B696<>\"Subscriber\",'Enrollment Form'!$C696=\"ROC\"),\"-\",IF(AND('Enrollment Form'!$B696=\"Subscriber\",'Enrollment Form'!$C696=\"Enroll\",'Enrollment Form'!$AL696<>\"\"),\"Y\",\"N\")))","v":""},{"$f":"IF($B689=\"N\",\"\",IF(OR('Enrollment Form'!$B696<>\"Subscriber\",'Enrollment Form'!$C696=\"ROC\"),\"-\",IF(AND('Enrollment Form'!$B696=\"Subscriber\",'Enrollment Form'!$C696=\"Enroll\",'Enrollment Form'!$AP696<>\"\"),\"Y\",\"N\")))","v":""},{"$f":"IF($B689=\"N\",\"\",IF(OR('Enrollment Form'!$B696<>\"Subscriber\",'Enrollment Form'!$C696=\"ROC\"),\"-\",IF(AND('Enrollment Form'!$B696=\"Subscriber\",'Enrollment Form'!$C696=\"Enroll\",'Enrollment Form'!$AQ696<>\"\"),\"Y\",\"N\")))","v":""},{"$f":"IF($B689=\"N\",\"\",IF(OR('Enrollment Form'!$B696<>\"Subscriber\",'Enrollment Form'!$C696=\"ROC\"),\"-\",IF(AND('Enrollment Form'!$B696=\"Subscriber\",'Enrollment Form'!$C696=\"Enroll\",'Enrollment Form'!$AS696<>\"\"),\"Y\",\"N\")))","v":""},{"$f":"IF($B689=\"N\",\"\",IF($Q689=\"-\",\"-\",IF(AND($Q689=\"Y\",'Enrollment Form'!$AS696=\"No\"),\"-\",IF(AND($Q689=\"Y\",'Enrollment Form'!$AS696=\"Yes\",'Enrollment Form'!$AT696<>\"\"),\"Y\",\"N\"))))","v":""},{"$f":"IF($B689=\"N\",\"\",IF(OR('Enrollment Form'!$B696<>\"Subscriber\",'Enrollment Form'!$C696=\"ROC\"),\"-\",IF(AND('Enrollment Form'!$B696=\"Subscriber\",'Enrollment Form'!$C696=\"Enroll\",'Enrollment Form'!$CV696<>\"\"),\"Y\",\"N\")))","v":""},{"$f":"IF($B689=\"N\",\"\",IF($S689=\"-\",\"-\",IF(AND($S689=\"Y\",'Enrollment Form'!$CV696=\"No\"),\"-\",IF(AND($S689=\"Y\",'Enrollment Form'!$CV696=\"Yes\",'Enrollment Form'!$CW696<>\"\"),\"Y\",\"N\"))))","v":""},{"$f":"IF(OR('Enrollment Form'!$AY696=\"Yes\",'Enrollment Form'!$AY696=\"\"),\"-\",IF(OR(AND('Enrollment Form'!$AY696=\"No\",ISERROR(FIND(\"HMO\",VLOOKUP('Enrollment Form'!G696,'Enrollment Form'!H$11:J$1000,3,FALSE),1))=FALSE,COUNTA('Enrollment Form'!$AZ696:$BC696)=4),AND('Enrollment Form'!$AY696=\"No\",ISERROR(FIND(\"HMO\",VLOOKUP('Enrollment Form'!G696,'Enrollment Form'!H$11:J$1000,3,FALSE),1))=FALSE,COUNTA('Enrollment Form'!$BT696:$BW696)=4)),\"Y\",\"N\"))","v":"-"},{"$f":"IF($B689=\"N\",\"\",IF('Enrollment Form'!$B696=\"Subscriber\",\"-\",IF(COUNTA('Enrollment Form'!$BL696,'Enrollment Form'!$BN696)=2,\"Y\",\"N\")))","v":""},{"$f":"IF($B689=\"N\",\"\",IF(OR('Enrollment Form'!$AX696=\"\",'Enrollment Form'!$AX696=\"No\"),\"-\",IF(AND('Enrollment Form'!$AX696=\"Yes\",COUNTA('Enrollment Form'!$CR696)=1),\"Y\",\"N\")))","v":""},{"$f":"IF(OR('Enrollment Form'!$CR696=\"\",'Enrollment Form'!$CR696=\"No\"),\"-\",IF(COUNTA('Enrollment Form'!$CT696:$CU696)=2,\"Y\",\"N\"))","v":"-"},{"$f":"IF($B689=\"N\",\"\",IF(COUNTIF('Enrollment Form'!$DG696:$DP696,\"Other\")=COUNTA('Enrollment Form'!$DK696,'Enrollment Form'!$DH696,'Enrollment Form'!$DN696,'Enrollment Form'!$DQ696),\"Y\",\"N\"))","v":""},{"$f":"IF($B689=\"N\",\"\",IF(OR('Enrollment Form'!B696<>\"Subscriber\",'Enrollment Form'!C696=\"ROC\",COUNTIF('Enrollment Form'!AV696:AW696,\"Yes\")>=1),\"-\",IF(AND('Enrollment Form'!C696=\"Enroll\",COUNTIF('Enrollment Form'!AV696:AW696,\"No\")=2,'Enrollment Form'!AX696=\"\"),\"N\",\"Y\")))","v":""},{"$f":"IF(OR(B689=\"N\",'Enrollment Form'!B696<>\"Subscriber\",'Enrollment Form'!C696=\"ROC\",'Enrollment Form'!O696<>\"Multiple of Salary\"),\"-\",IF(COUNTA('Enrollment Form'!T696:U696)<2,\"N\",\"Y\"))","v":"-"},{"$f":"IF(B689=\"N\",\"\",IF(OR('Enrollment Form'!C696=\"ROC\",'Enrollment Form'!B696<>\"Subscriber\",'Enrollment Form'!O696=\"Waive\",'Enrollment Form'!O696=\"\"),\"-\",IF('Enrollment Form'!P696=\"\",\"N\",\"Y\")))","v":""},{"$f":"IF($B689=\"N\",\"\",IF(AND('Enrollment Form'!$C696=\"ROC\",'Enrollment Form'!$DR696<>\"\"),\"Y\",IF(AND('Enrollment Form'!$C696=\"ROC\",'Enrollment Form'!$DR696=\"\"),\"N\",IF(AND('Enrollment Form'!$C696=\"Enroll\",'Enrollment Form'!$B696=\"Subscriber\",'Enrollment Form'!$CX696=\"No\",'Enrollment Form'!$DR696=\"\"),\"N\",IF(AND('Enrollment Form'!$C696=\"Enroll\",'Enrollment Form'!$B696=\"Subscriber\",'Enrollment Form'!$CX696=\"Yes\"),\"-\",\"Y\")))))","v":""},{"$f":"IF($B689=\"N\",\"\",IF(AND('Enrollment Form'!$C696=\"ROC\",'Enrollment Form'!$DS696<>\"\"),\"Y\",IF(AND('Enrollment Form'!$C696=\"ROC\",'Enrollment Form'!$DS696=\"\"),\"N\",IF(AND('Enrollment Form'!$C696=\"Enroll\",'Enrollment Form'!$B696=\"Subscriber\",'Enrollment Form'!$CX696=\"No\",'Enrollment Form'!$DS696=\"\"),\"N\",IF(AND('Enrollment Form'!$C696=\"Enroll\",'Enrollment Form'!$B696=\"Subscriber\",'Enrollment Form'!$CX696=\"Yes\"),\"-\",\"Y\")))))","v":""},{"$f":"IF('Enrollment Form'!AH696=\"\",\"\",IF(ISERROR(SEARCH(\".\",'Enrollment Form'!AH696,SEARCH(\"@\",'Enrollment Form'!AH696))),\"N\",\"Y\"))","v":""},{"$f":"IF(OR($B689=\"N\",'Enrollment Form'!$G696=\"\"),\"\",IF('Enrollment Form'!$B696<>\"Subscriber\",\"-\",IF(COUNTIF('Enrollment Form'!$AV696:$AW696,\"Yes\")=2,\"N\",\"Y\")))","v":""},{"$f":"IF(OR('Enrollment Form'!$CJ696=\"\",'Enrollment Form'!$CJ696=\"No\"),\"-\",IF(AND('Enrollment Form'!$CJ696=\"Yes\",'Enrollment Form'!$CK696=\"\"),\"N\",\"Y\"))","v":"-"},{"$f":"IF(OR('Enrollment Form'!$CL696=\"\",'Enrollment Form'!$CL696=\"No\"),\"-\",IF(AND('Enrollment Form'!$CL696=\"Yes\",'Enrollment Form'!$CM696=\"\"),\"N\",\"Y\"))","v":"-"},{"$f":"IF(OR('Enrollment Form'!$CN696=\"\",'Enrollment Form'!$CN696=\"No\"),\"-\",IF(AND('Enrollment Form'!$CN696=\"Yes\",'Enrollment Form'!$CO696=\"\"),\"N\",\"Y\"))","v":"-"},{"$f":"IF(OR('Enrollment Form'!$CN696=\"\",'Enrollment Form'!$CN696=\"No\"),\"-\",IF(AND('Enrollment Form'!$CN696=\"Yes\",'Enrollment Form'!$CP696=\"\"),\"N\",\"Y\"))","v":"-"},{"$f":"IF('Enrollment Form'!B696<>\"Subscriber\",\"-\",IF(AND('Enrollment Form'!B696=\"Subscriber\",'Enrollment Form'!C696=\"Enroll\",'Enrollment Form'!AA696=\"\"),\"N\",\"Y\"))","v":"-"},{"$f":"IF(OR('Enrollment Form'!B696=\"Subscriber\",'Enrollment Form'!B696=\"\"),\"-\",IF('Enrollment Form'!BP696=\"\",\"N\",\"Y\"))","v":"-"},{"$f":"IF('Enrollment Form'!B696<>\"Subscriber\",\"-\",IF(AND('Enrollment Form'!B696=\"Subscriber\",'Enrollment Form'!G696=\"\"),\"N\",\"Y\"))","v":"-"},{"$f":"IF('Enrollment Form'!A696=\"\",\"\",IF('Enrollment Form'!B696=\"Subscriber\",\"-\",IF(AND('Enrollment Form'!B696<>\"Subscriber\",'Enrollment Form'!G696='Enrollment Form'!H696),\"N\",\"Y\")))","v":""},0]
[697,{"$f":"IF('Enrollment Form'!$A697<>\"\",\"Y\",\"N\")","v":"N"},{"$f":"IF(AND('Enrollment Form'!$B697=\"\",'Enrollment Form'!$C697<>\"\"),\"N\",IF($B690=\"N\",\"\",\"Y\"))","v":""},{"$f":"IF(OR($B690=\"N\",'Enrollment Form'!G697=\"\"),\"\",IF('Enrollment Form'!$B697<>\"Subscriber\",\"\",IF('Enrollment Form'!$G697='Enrollment Form'!$H697,\"Y\",\"N\")))","v":""},{"$f":"IF($B690=\"N\",\"\",IF(AND(COUNTIFS('Enrollment Form'!$H$11:$H$1000,'Enrollment Form'!$H697,'Enrollment Form'!$B$11:$B$1000,'Enrollment Form'!$B697)>1,'Enrollment Form'!$H697<>\"\"),\"N\",\"Y\"))","v":""},{"$f":"IF($B690=\"N\",\"\",IF(LEN('Enrollment Form'!$Y697)=0,\"\",IF(LEN('Enrollment Form'!$Y697)<>5,\"N\",\"Y\")))","v":""},{"$f":"IF($B690=\"N\",\"\",IF(LEN('Enrollment Form'!$AD697=0),\"\",IF(LEN('Enrollment Form'!$AD697)<>5,\"N\",\"Y\")))","v":""},{"$f":"IF($B690=\"N\",\"\",IF(LEN('Enrollment Form'!$BS697=0),\"\",IF(LEN('Enrollment Form'!$BS697)<>5,\"N\",\"Y\")))","v":""},{"$f":"IF($B690=\"N\",\"\",IF(LEN('Enrollment Form'!$AE697)=0,\"\",IF(LEN('Enrollment Form'!$AE697)<>10,\"N\",\"Y\")))","v":""},{"$f":"IF($B690=\"N\",\"\",IF(LEN('Enrollment Form'!$AF697)=0,\"\",IF(LEN('Enrollment Form'!$AF697)<>10,\"N\",\"Y\")))","v":""},{"$f":"IF('Enrollment Form'!$O697<>\"Graded\",\"-\",IF(AND('Enrollment Form'!$O697=\"Graded\",'Enrollment Form'!$AR697<>\"\"),\"Y\",\"N\"))","v":"-"},{"$f":"IF($B690=\"N\",\"\",IF(OR('Enrollment Form'!$B697<>\"Subscriber\",'Enrollment Form'!$C697=\"ROC\"),\"-\",IF(AND('Enrollment Form'!$B697=\"Subscriber\",'Enrollment Form'!$C697=\"Enroll\",'Enrollment Form'!$AJ697<>\"\"),\"Y\",\"N\")))","v":""},{"$f":"IF($B690=\"N\",\"\",IF(OR('Enrollment Form'!$B697<>\"Subscriber\",'Enrollment Form'!$C697=\"ROC\"),\"-\",IF(AND('Enrollment Form'!$B697=\"Subscriber\",'Enrollment Form'!$C697=\"Enroll\",'Enrollment Form'!$AK697<>\"\"),\"Y\",\"N\")))","v":""},{"$f":"IF($B690=\"N\",\"\",IF(OR('Enrollment Form'!$B697<>\"Subscriber\",'Enrollment Form'!$C697=\"ROC\"),\"-\",IF(AND('Enrollment Form'!$B697=\"Subscriber\",'Enrollment Form'!$C697=\"Enroll\",'Enrollment Form'!$AL697<>\"\"),\"Y\",\"N\")))","v":""},{"$f":"IF($B690=\"N\",\"\",IF(OR('Enrollment Form'!$B697<>\"Subscriber\",'Enrollment Form'!$C697=\"ROC\"),\"-\",IF(AND('Enrollment Form'!$B697=\"Subscriber\",'Enrollment Form'!$C697=\"Enroll\",'Enrollment Form'!$AP697<>\"\"),\"Y\",\"N\")))","v":""},{"$f":"IF($B690=\"N\",\"\",IF(OR('Enrollment Form'!$B697<>\"Subscriber\",'Enrollment Form'!$C697=\"ROC\"),\"-\",IF(AND('Enrollment Form'!$B697=\"Subscriber\",'Enrollment Form'!$C697=\"Enroll\",'Enrollment Form'!$AQ697<>\"\"),\"Y\",\"N\")))","v":""},{"$f":"IF($B690=\"N\",\"\",IF(OR('Enrollment Form'!$B697<>\"Subscriber\",'Enrollment Form'!$C697=\"ROC\"),\"-\",IF(AND('Enrollment Form'!$B697=\"Subscriber\",'Enrollment Form'!$C697=\"Enroll\",'Enrollment Form'!$AS697<>\"\"),\"Y\",\"N\")))","v":""},{"$f":"IF($B690=\"N\",\"\",IF($Q690=\"-\",\"-\",IF(AND($Q690=\"Y\",'Enrollment Form'!$AS697=\"No\"),\"-\",IF(AND($Q690=\"Y\",'Enrollment Form'!$AS697=\"Yes\",'Enrollment Form'!$AT697<>\"\"),\"Y\",\"N\"))))","v":""},{"$f":"IF($B690=\"N\",\"\",IF(OR('Enrollment Form'!$B697<>\"Subscriber\",'Enrollment Form'!$C697=\"ROC\"),\"-\",IF(AND('Enrollment Form'!$B697=\"Subscriber\",'Enrollment Form'!$C697=\"Enroll\",'Enrollment Form'!$CV697<>\"\"),\"Y\",\"N\")))","v":""},{"$f":"IF($B690=\"N\",\"\",IF($S690=\"-\",\"-\",IF(AND($S690=\"Y\",'Enrollment Form'!$CV697=\"No\"),\"-\",IF(AND($S690=\"Y\",'Enrollment Form'!$CV697=\"Yes\",'Enrollment Form'!$CW697<>\"\"),\"Y\",\"N\"))))","v":""},{"$f":"IF(OR('Enrollment Form'!$AY697=\"Yes\",'Enrollment Form'!$AY697=\"\"),\"-\",IF(OR(AND('Enrollment Form'!$AY697=\"No\",ISERROR(FIND(\"HMO\",VLOOKUP('Enrollment Form'!G697,'Enrollment Form'!H$11:J$1000,3,FALSE),1))=FALSE,COUNTA('Enrollment Form'!$AZ697:$BC697)=4),AND('Enrollment Form'!$AY697=\"No\",ISERROR(FIND(\"HMO\",VLOOKUP('Enrollment Form'!G697,'Enrollment Form'!H$11:J$1000,3,FALSE),1))=FALSE,COUNTA('Enrollment Form'!$BT697:$BW697)=4)),\"Y\",\"N\"))","v":"-"},{"$f":"IF($B690=\"N\",\"\",IF('Enrollment Form'!$B697=\"Subscriber\",\"-\",IF(COUNTA('Enrollment Form'!$BL697,'Enrollment Form'!$BN697)=2,\"Y\",\"N\")))","v":""},{"$f":"IF($B690=\"N\",\"\",IF(OR('Enrollment Form'!$AX697=\"\",'Enrollment Form'!$AX697=\"No\"),\"-\",IF(AND('Enrollment Form'!$AX697=\"Yes\",COUNTA('Enrollment Form'!$CR697)=1),\"Y\",\"N\")))","v":""},{"$f":"IF(OR('Enrollment Form'!$CR697=\"\",'Enrollment Form'!$CR697=\"No\"),\"-\",IF(COUNTA('Enrollment Form'!$CT697:$CU697)=2,\"Y\",\"N\"))","v":"-"},{"$f":"IF($B690=\"N\",\"\",IF(COUNTIF('Enrollment Form'!$DG697:$DP697,\"Other\")=COUNTA('Enrollment Form'!$DK697,'Enrollment Form'!$DH697,'Enrollment Form'!$DN697,'Enrollment Form'!$DQ697),\"Y\",\"N\"))","v":""},{"$f":"IF($B690=\"N\",\"\",IF(OR('Enrollment Form'!B697<>\"Subscriber\",'Enrollment Form'!C697=\"ROC\",COUNTIF('Enrollment Form'!AV697:AW697,\"Yes\")>=1),\"-\",IF(AND('Enrollment Form'!C697=\"Enroll\",COUNTIF('Enrollment Form'!AV697:AW697,\"No\")=2,'Enrollment Form'!AX697=\"\"),\"N\",\"Y\")))","v":""},{"$f":"IF(OR(B690=\"N\",'Enrollment Form'!B697<>\"Subscriber\",'Enrollment Form'!C697=\"ROC\",'Enrollment Form'!O697<>\"Multiple of Salary\"),\"-\",IF(COUNTA('Enrollment Form'!T697:U697)<2,\"N\",\"Y\"))","v":"-"},{"$f":"IF(B690=\"N\",\"\",IF(OR('Enrollment Form'!C697=\"ROC\",'Enrollment Form'!B697<>\"Subscriber\",'Enrollment Form'!O697=\"Waive\",'Enrollment Form'!O697=\"\"),\"-\",IF('Enrollment Form'!P697=\"\",\"N\",\"Y\")))","v":""},{"$f":"IF($B690=\"N\",\"\",IF(AND('Enrollment Form'!$C697=\"ROC\",'Enrollment Form'!$DR697<>\"\"),\"Y\",IF(AND('Enrollment Form'!$C697=\"ROC\",'Enrollment Form'!$DR697=\"\"),\"N\",IF(AND('Enrollment Form'!$C697=\"Enroll\",'Enrollment Form'!$B697=\"Subscriber\",'Enrollment Form'!$CX697=\"No\",'Enrollment Form'!$DR697=\"\"),\"N\",IF(AND('Enrollment Form'!$C697=\"Enroll\",'Enrollment Form'!$B697=\"Subscriber\",'Enrollment Form'!$CX697=\"Yes\"),\"-\",\"Y\")))))","v":""},{"$f":"IF($B690=\"N\",\"\",IF(AND('Enrollment Form'!$C697=\"ROC\",'Enrollment Form'!$DS697<>\"\"),\"Y\",IF(AND('Enrollment Form'!$C697=\"ROC\",'Enrollment Form'!$DS697=\"\"),\"N\",IF(AND('Enrollment Form'!$C697=\"Enroll\",'Enrollment Form'!$B697=\"Subscriber\",'Enrollment Form'!$CX697=\"No\",'Enrollment Form'!$DS697=\"\"),\"N\",IF(AND('Enrollment Form'!$C697=\"Enroll\",'Enrollment Form'!$B697=\"Subscriber\",'Enrollment Form'!$CX697=\"Yes\"),\"-\",\"Y\")))))","v":""},{"$f":"IF('Enrollment Form'!AH697=\"\",\"\",IF(ISERROR(SEARCH(\".\",'Enrollment Form'!AH697,SEARCH(\"@\",'Enrollment Form'!AH697))),\"N\",\"Y\"))","v":""},{"$f":"IF(OR($B690=\"N\",'Enrollment Form'!$G697=\"\"),\"\",IF('Enrollment Form'!$B697<>\"Subscriber\",\"-\",IF(COUNTIF('Enrollment Form'!$AV697:$AW697,\"Yes\")=2,\"N\",\"Y\")))","v":""},{"$f":"IF(OR('Enrollment Form'!$CJ697=\"\",'Enrollment Form'!$CJ697=\"No\"),\"-\",IF(AND('Enrollment Form'!$CJ697=\"Yes\",'Enrollment Form'!$CK697=\"\"),\"N\",\"Y\"))","v":"-"},{"$f":"IF(OR('Enrollment Form'!$CL697=\"\",'Enrollment Form'!$CL697=\"No\"),\"-\",IF(AND('Enrollment Form'!$CL697=\"Yes\",'Enrollment Form'!$CM697=\"\"),\"N\",\"Y\"))","v":"-"},{"$f":"IF(OR('Enrollment Form'!$CN697=\"\",'Enrollment Form'!$CN697=\"No\"),\"-\",IF(AND('Enrollment Form'!$CN697=\"Yes\",'Enrollment Form'!$CO697=\"\"),\"N\",\"Y\"))","v":"-"},{"$f":"IF(OR('Enrollment Form'!$CN697=\"\",'Enrollment Form'!$CN697=\"No\"),\"-\",IF(AND('Enrollment Form'!$CN697=\"Yes\",'Enrollment Form'!$CP697=\"\"),\"N\",\"Y\"))","v":"-"},{"$f":"IF('Enrollment Form'!B697<>\"Subscriber\",\"-\",IF(AND('Enrollment Form'!B697=\"Subscriber\",'Enrollment Form'!C697=\"Enroll\",'Enrollment Form'!AA697=\"\"),\"N\",\"Y\"))","v":"-"},{"$f":"IF(OR('Enrollment Form'!B697=\"Subscriber\",'Enrollment Form'!B697=\"\"),\"-\",IF('Enrollment Form'!BP697=\"\",\"N\",\"Y\"))","v":"-"},{"$f":"IF('Enrollment Form'!B697<>\"Subscriber\",\"-\",IF(AND('Enrollment Form'!B697=\"Subscriber\",'Enrollment Form'!G697=\"\"),\"N\",\"Y\"))","v":"-"},{"$f":"IF('Enrollment Form'!A697=\"\",\"\",IF('Enrollment Form'!B697=\"Subscriber\",\"-\",IF(AND('Enrollment Form'!B697<>\"Subscriber\",'Enrollment Form'!G697='Enrollment Form'!H697),\"N\",\"Y\")))","v":""},0]
[698,{"$f":"IF('Enrollment Form'!$A698<>\"\",\"Y\",\"N\")","v":"N"},{"$f":"IF(AND('Enrollment Form'!$B698=\"\",'Enrollment Form'!$C698<>\"\"),\"N\",IF($B691=\"N\",\"\",\"Y\"))","v":""},{"$f":"IF(OR($B691=\"N\",'Enrollment Form'!G698=\"\"),\"\",IF('Enrollment Form'!$B698<>\"Subscriber\",\"\",IF('Enrollment Form'!$G698='Enrollment Form'!$H698,\"Y\",\"N\")))","v":""},{"$f":"IF($B691=\"N\",\"\",IF(AND(COUNTIFS('Enrollment Form'!$H$11:$H$1000,'Enrollment Form'!$H698,'Enrollment Form'!$B$11:$B$1000,'Enrollment Form'!$B698)>1,'Enrollment Form'!$H698<>\"\"),\"N\",\"Y\"))","v":""},{"$f":"IF($B691=\"N\",\"\",IF(LEN('Enrollment Form'!$Y698)=0,\"\",IF(LEN('Enrollment Form'!$Y698)<>5,\"N\",\"Y\")))","v":""},{"$f":"IF($B691=\"N\",\"\",IF(LEN('Enrollment Form'!$AD698=0),\"\",IF(LEN('Enrollment Form'!$AD698)<>5,\"N\",\"Y\")))","v":""},{"$f":"IF($B691=\"N\",\"\",IF(LEN('Enrollment Form'!$BS698=0),\"\",IF(LEN('Enrollment Form'!$BS698)<>5,\"N\",\"Y\")))","v":""},{"$f":"IF($B691=\"N\",\"\",IF(LEN('Enrollment Form'!$AE698)=0,\"\",IF(LEN('Enrollment Form'!$AE698)<>10,\"N\",\"Y\")))","v":""},{"$f":"IF($B691=\"N\",\"\",IF(LEN('Enrollment Form'!$AF698)=0,\"\",IF(LEN('Enrollment Form'!$AF698)<>10,\"N\",\"Y\")))","v":""},{"$f":"IF('Enrollment Form'!$O698<>\"Graded\",\"-\",IF(AND('Enrollment Form'!$O698=\"Graded\",'Enrollment Form'!$AR698<>\"\"),\"Y\",\"N\"))","v":"-"},{"$f":"IF($B691=\"N\",\"\",IF(OR('Enrollment Form'!$B698<>\"Subscriber\",'Enrollment Form'!$C698=\"ROC\"),\"-\",IF(AND('Enrollment Form'!$B698=\"Subscriber\",'Enrollment Form'!$C698=\"Enroll\",'Enrollment Form'!$AJ698<>\"\"),\"Y\",\"N\")))","v":""},{"$f":"IF($B691=\"N\",\"\",IF(OR('Enrollment Form'!$B698<>\"Subscriber\",'Enrollment Form'!$C698=\"ROC\"),\"-\",IF(AND('Enrollment Form'!$B698=\"Subscriber\",'Enrollment Form'!$C698=\"Enroll\",'Enrollment Form'!$AK698<>\"\"),\"Y\",\"N\")))","v":""},{"$f":"IF($B691=\"N\",\"\",IF(OR('Enrollment Form'!$B698<>\"Subscriber\",'Enrollment Form'!$C698=\"ROC\"),\"-\",IF(AND('Enrollment Form'!$B698=\"Subscriber\",'Enrollment Form'!$C698=\"Enroll\",'Enrollment Form'!$AL698<>\"\"),\"Y\",\"N\")))","v":""},{"$f":"IF($B691=\"N\",\"\",IF(OR('Enrollment Form'!$B698<>\"Subscriber\",'Enrollment Form'!$C698=\"ROC\"),\"-\",IF(AND('Enrollment Form'!$B698=\"Subscriber\",'Enrollment Form'!$C698=\"Enroll\",'Enrollment Form'!$AP698<>\"\"),\"Y\",\"N\")))","v":""},{"$f":"IF($B691=\"N\",\"\",IF(OR('Enrollment Form'!$B698<>\"Subscriber\",'Enrollment Form'!$C698=\"ROC\"),\"-\",IF(AND('Enrollment Form'!$B698=\"Subscriber\",'Enrollment Form'!$C698=\"Enroll\",'Enrollment Form'!$AQ698<>\"\"),\"Y\",\"N\")))","v":""},{"$f":"IF($B691=\"N\",\"\",IF(OR('Enrollment Form'!$B698<>\"Subscriber\",'Enrollment Form'!$C698=\"ROC\"),\"-\",IF(AND('Enrollment Form'!$B698=\"Subscriber\",'Enrollment Form'!$C698=\"Enroll\",'Enrollment Form'!$AS698<>\"\"),\"Y\",\"N\")))","v":""},{"$f":"IF($B691=\"N\",\"\",IF($Q691=\"-\",\"-\",IF(AND($Q691=\"Y\",'Enrollment Form'!$AS698=\"No\"),\"-\",IF(AND($Q691=\"Y\",'Enrollment Form'!$AS698=\"Yes\",'Enrollment Form'!$AT698<>\"\"),\"Y\",\"N\"))))","v":""},{"$f":"IF($B691=\"N\",\"\",IF(OR('Enrollment Form'!$B698<>\"Subscriber\",'Enrollment Form'!$C698=\"ROC\"),\"-\",IF(AND('Enrollment Form'!$B698=\"Subscriber\",'Enrollment Form'!$C698=\"Enroll\",'Enrollment Form'!$CV698<>\"\"),\"Y\",\"N\")))","v":""},{"$f":"IF($B691=\"N\",\"\",IF($S691=\"-\",\"-\",IF(AND($S691=\"Y\",'Enrollment Form'!$CV698=\"No\"),\"-\",IF(AND($S691=\"Y\",'Enrollment Form'!$CV698=\"Yes\",'Enrollment Form'!$CW698<>\"\"),\"Y\",\"N\"))))","v":""},{"$f":"IF(OR('Enrollment Form'!$AY698=\"Yes\",'Enrollment Form'!$AY698=\"\"),\"-\",IF(OR(AND('Enrollment Form'!$AY698=\"No\",ISERROR(FIND(\"HMO\",VLOOKUP('Enrollment Form'!G698,'Enrollment Form'!H$11:J$1000,3,FALSE),1))=FALSE,COUNTA('Enrollment Form'!$AZ698:$BC698)=4),AND('Enrollment Form'!$AY698=\"No\",ISERROR(FIND(\"HMO\",VLOOKUP('Enrollment Form'!G698,'Enrollment Form'!H$11:J$1000,3,FALSE),1))=FALSE,COUNTA('Enrollment Form'!$BT698:$BW698)=4)),\"Y\",\"N\"))","v":"-"},{"$f":"IF($B691=\"N\",\"\",IF('Enrollment Form'!$B698=\"Subscriber\",\"-\",IF(COUNTA('Enrollment Form'!$BL698,'Enrollment Form'!$BN698)=2,\"Y\",\"N\")))","v":""},{"$f":"IF($B691=\"N\",\"\",IF(OR('Enrollment Form'!$AX698=\"\",'Enrollment Form'!$AX698=\"No\"),\"-\",IF(AND('Enrollment Form'!$AX698=\"Yes\",COUNTA('Enrollment Form'!$CR698)=1),\"Y\",\"N\")))","v":""},{"$f":"IF(OR('Enrollment Form'!$CR698=\"\",'Enrollment Form'!$CR698=\"No\"),\"-\",IF(COUNTA('Enrollment Form'!$CT698:$CU698)=2,\"Y\",\"N\"))","v":"-"},{"$f":"IF($B691=\"N\",\"\",IF(COUNTIF('Enrollment Form'!$DG698:$DP698,\"Other\")=COUNTA('Enrollment Form'!$DK698,'Enrollment Form'!$DH698,'Enrollment Form'!$DN698,'Enrollment Form'!$DQ698),\"Y\",\"N\"))","v":""},{"$f":"IF($B691=\"N\",\"\",IF(OR('Enrollment Form'!B698<>\"Subscriber\",'Enrollment Form'!C698=\"ROC\",COUNTIF('Enrollment Form'!AV698:AW698,\"Yes\")>=1),\"-\",IF(AND('Enrollment Form'!C698=\"Enroll\",COUNTIF('Enrollment Form'!AV698:AW698,\"No\")=2,'Enrollment Form'!AX698=\"\"),\"N\",\"Y\")))","v":""},{"$f":"IF(OR(B691=\"N\",'Enrollment Form'!B698<>\"Subscriber\",'Enrollment Form'!C698=\"ROC\",'Enrollment Form'!O698<>\"Multiple of Salary\"),\"-\",IF(COUNTA('Enrollment Form'!T698:U698)<2,\"N\",\"Y\"))","v":"-"},{"$f":"IF(B691=\"N\",\"\",IF(OR('Enrollment Form'!C698=\"ROC\",'Enrollment Form'!B698<>\"Subscriber\",'Enrollment Form'!O698=\"Waive\",'Enrollment Form'!O698=\"\"),\"-\",IF('Enrollment Form'!P698=\"\",\"N\",\"Y\")))","v":""},{"$f":"IF($B691=\"N\",\"\",IF(AND('Enrollment Form'!$C698=\"ROC\",'Enrollment Form'!$DR698<>\"\"),\"Y\",IF(AND('Enrollment Form'!$C698=\"ROC\",'Enrollment Form'!$DR698=\"\"),\"N\",IF(AND('Enrollment Form'!$C698=\"Enroll\",'Enrollment Form'!$B698=\"Subscriber\",'Enrollment Form'!$CX698=\"No\",'Enrollment Form'!$DR698=\"\"),\"N\",IF(AND('Enrollment Form'!$C698=\"Enroll\",'Enrollment Form'!$B698=\"Subscriber\",'Enrollment Form'!$CX698=\"Yes\"),\"-\",\"Y\")))))","v":""},{"$f":"IF($B691=\"N\",\"\",IF(AND('Enrollment Form'!$C698=\"ROC\",'Enrollment Form'!$DS698<>\"\"),\"Y\",IF(AND('Enrollment Form'!$C698=\"ROC\",'Enrollment Form'!$DS698=\"\"),\"N\",IF(AND('Enrollment Form'!$C698=\"Enroll\",'Enrollment Form'!$B698=\"Subscriber\",'Enrollment Form'!$CX698=\"No\",'Enrollment Form'!$DS698=\"\"),\"N\",IF(AND('Enrollment Form'!$C698=\"Enroll\",'Enrollment Form'!$B698=\"Subscriber\",'Enrollment Form'!$CX698=\"Yes\"),\"-\",\"Y\")))))","v":""},{"$f":"IF('Enrollment Form'!AH698=\"\",\"\",IF(ISERROR(SEARCH(\".\",'Enrollment Form'!AH698,SEARCH(\"@\",'Enrollment Form'!AH698))),\"N\",\"Y\"))","v":""},{"$f":"IF(OR($B691=\"N\",'Enrollment Form'!$G698=\"\"),\"\",IF('Enrollment Form'!$B698<>\"Subscriber\",\"-\",IF(COUNTIF('Enrollment Form'!$AV698:$AW698,\"Yes\")=2,\"N\",\"Y\")))","v":""},{"$f":"IF(OR('Enrollment Form'!$CJ698=\"\",'Enrollment Form'!$CJ698=\"No\"),\"-\",IF(AND('Enrollment Form'!$CJ698=\"Yes\",'Enrollment Form'!$CK698=\"\"),\"N\",\"Y\"))","v":"-"},{"$f":"IF(OR('Enrollment Form'!$CL698=\"\",'Enrollment Form'!$CL698=\"No\"),\"-\",IF(AND('Enrollment Form'!$CL698=\"Yes\",'Enrollment Form'!$CM698=\"\"),\"N\",\"Y\"))","v":"-"},{"$f":"IF(OR('Enrollment Form'!$CN698=\"\",'Enrollment Form'!$CN698=\"No\"),\"-\",IF(AND('Enrollment Form'!$CN698=\"Yes\",'Enrollment Form'!$CO698=\"\"),\"N\",\"Y\"))","v":"-"},{"$f":"IF(OR('Enrollment Form'!$CN698=\"\",'Enrollment Form'!$CN698=\"No\"),\"-\",IF(AND('Enrollment Form'!$CN698=\"Yes\",'Enrollment Form'!$CP698=\"\"),\"N\",\"Y\"))","v":"-"},{"$f":"IF('Enrollment Form'!B698<>\"Subscriber\",\"-\",IF(AND('Enrollment Form'!B698=\"Subscriber\",'Enrollment Form'!C698=\"Enroll\",'Enrollment Form'!AA698=\"\"),\"N\",\"Y\"))","v":"-"},{"$f":"IF(OR('Enrollment Form'!B698=\"Subscriber\",'Enrollment Form'!B698=\"\"),\"-\",IF('Enrollment Form'!BP698=\"\",\"N\",\"Y\"))","v":"-"},{"$f":"IF('Enrollment Form'!B698<>\"Subscriber\",\"-\",IF(AND('Enrollment Form'!B698=\"Subscriber\",'Enrollment Form'!G698=\"\"),\"N\",\"Y\"))","v":"-"},{"$f":"IF('Enrollment Form'!A698=\"\",\"\",IF('Enrollment Form'!B698=\"Subscriber\",\"-\",IF(AND('Enrollment Form'!B698<>\"Subscriber\",'Enrollment Form'!G698='Enrollment Form'!H698),\"N\",\"Y\")))","v":""},0]
[699,{"$f":"IF('Enrollment Form'!$A699<>\"\",\"Y\",\"N\")","v":"N"},{"$f":"IF(AND('Enrollment Form'!$B699=\"\",'Enrollment Form'!$C699<>\"\"),\"N\",IF($B692=\"N\",\"\",\"Y\"))","v":""},{"$f":"IF(OR($B692=\"N\",'Enrollment Form'!G699=\"\"),\"\",IF('Enrollment Form'!$B699<>\"Subscriber\",\"\",IF('Enrollment Form'!$G699='Enrollment Form'!$H699,\"Y\",\"N\")))","v":""},{"$f":"IF($B692=\"N\",\"\",IF(AND(COUNTIFS('Enrollment Form'!$H$11:$H$1000,'Enrollment Form'!$H699,'Enrollment Form'!$B$11:$B$1000,'Enrollment Form'!$B699)>1,'Enrollment Form'!$H699<>\"\"),\"N\",\"Y\"))","v":""},{"$f":"IF($B692=\"N\",\"\",IF(LEN('Enrollment Form'!$Y699)=0,\"\",IF(LEN('Enrollment Form'!$Y699)<>5,\"N\",\"Y\")))","v":""},{"$f":"IF($B692=\"N\",\"\",IF(LEN('Enrollment Form'!$AD699=0),\"\",IF(LEN('Enrollment Form'!$AD699)<>5,\"N\",\"Y\")))","v":""},{"$f":"IF($B692=\"N\",\"\",IF(LEN('Enrollment Form'!$BS699=0),\"\",IF(LEN('Enrollment Form'!$BS699)<>5,\"N\",\"Y\")))","v":""},{"$f":"IF($B692=\"N\",\"\",IF(LEN('Enrollment Form'!$AE699)=0,\"\",IF(LEN('Enrollment Form'!$AE699)<>10,\"N\",\"Y\")))","v":""},{"$f":"IF($B692=\"N\",\"\",IF(LEN('Enrollment Form'!$AF699)=0,\"\",IF(LEN('Enrollment Form'!$AF699)<>10,\"N\",\"Y\")))","v":""},{"$f":"IF('Enrollment Form'!$O699<>\"Graded\",\"-\",IF(AND('Enrollment Form'!$O699=\"Graded\",'Enrollment Form'!$AR699<>\"\"),\"Y\",\"N\"))","v":"-"},{"$f":"IF($B692=\"N\",\"\",IF(OR('Enrollment Form'!$B699<>\"Subscriber\",'Enrollment Form'!$C699=\"ROC\"),\"-\",IF(AND('Enrollment Form'!$B699=\"Subscriber\",'Enrollment Form'!$C699=\"Enroll\",'Enrollment Form'!$AJ699<>\"\"),\"Y\",\"N\")))","v":""},{"$f":"IF($B692=\"N\",\"\",IF(OR('Enrollment Form'!$B699<>\"Subscriber\",'Enrollment Form'!$C699=\"ROC\"),\"-\",IF(AND('Enrollment Form'!$B699=\"Subscriber\",'Enrollment Form'!$C699=\"Enroll\",'Enrollment Form'!$AK699<>\"\"),\"Y\",\"N\")))","v":""},{"$f":"IF($B692=\"N\",\"\",IF(OR('Enrollment Form'!$B699<>\"Subscriber\",'Enrollment Form'!$C699=\"ROC\"),\"-\",IF(AND('Enrollment Form'!$B699=\"Subscriber\",'Enrollment Form'!$C699=\"Enroll\",'Enrollment Form'!$AL699<>\"\"),\"Y\",\"N\")))","v":""},{"$f":"IF($B692=\"N\",\"\",IF(OR('Enrollment Form'!$B699<>\"Subscriber\",'Enrollment Form'!$C699=\"ROC\"),\"-\",IF(AND('Enrollment Form'!$B699=\"Subscriber\",'Enrollment Form'!$C699=\"Enroll\",'Enrollment Form'!$AP699<>\"\"),\"Y\",\"N\")))","v":""},{"$f":"IF($B692=\"N\",\"\",IF(OR('Enrollment Form'!$B699<>\"Subscriber\",'Enrollment Form'!$C699=\"ROC\"),\"-\",IF(AND('Enrollment Form'!$B699=\"Subscriber\",'Enrollment Form'!$C699=\"Enroll\",'Enrollment Form'!$AQ699<>\"\"),\"Y\",\"N\")))","v":""},{"$f":"IF($B692=\"N\",\"\",IF(OR('Enrollment Form'!$B699<>\"Subscriber\",'Enrollment Form'!$C699=\"ROC\"),\"-\",IF(AND('Enrollment Form'!$B699=\"Subscriber\",'Enrollment Form'!$C699=\"Enroll\",'Enrollment Form'!$AS699<>\"\"),\"Y\",\"N\")))","v":""},{"$f":"IF($B692=\"N\",\"\",IF($Q692=\"-\",\"-\",IF(AND($Q692=\"Y\",'Enrollment Form'!$AS699=\"No\"),\"-\",IF(AND($Q692=\"Y\",'Enrollment Form'!$AS699=\"Yes\",'Enrollment Form'!$AT699<>\"\"),\"Y\",\"N\"))))","v":""},{"$f":"IF($B692=\"N\",\"\",IF(OR('Enrollment Form'!$B699<>\"Subscriber\",'Enrollment Form'!$C699=\"ROC\"),\"-\",IF(AND('Enrollment Form'!$B699=\"Subscriber\",'Enrollment Form'!$C699=\"Enroll\",'Enrollment Form'!$CV699<>\"\"),\"Y\",\"N\")))","v":""},{"$f":"IF($B692=\"N\",\"\",IF($S692=\"-\",\"-\",IF(AND($S692=\"Y\",'Enrollment Form'!$CV699=\"No\"),\"-\",IF(AND($S692=\"Y\",'Enrollment Form'!$CV699=\"Yes\",'Enrollment Form'!$CW699<>\"\"),\"Y\",\"N\"))))","v":""},{"$f":"IF(OR('Enrollment Form'!$AY699=\"Yes\",'Enrollment Form'!$AY699=\"\"),\"-\",IF(OR(AND('Enrollment Form'!$AY699=\"No\",ISERROR(FIND(\"HMO\",VLOOKUP('Enrollment Form'!G699,'Enrollment Form'!H$11:J$1000,3,FALSE),1))=FALSE,COUNTA('Enrollment Form'!$AZ699:$BC699)=4),AND('Enrollment Form'!$AY699=\"No\",ISERROR(FIND(\"HMO\",VLOOKUP('Enrollment Form'!G699,'Enrollment Form'!H$11:J$1000,3,FALSE),1))=FALSE,COUNTA('Enrollment Form'!$BT699:$BW699)=4)),\"Y\",\"N\"))","v":"-"},{"$f":"IF($B692=\"N\",\"\",IF('Enrollment Form'!$B699=\"Subscriber\",\"-\",IF(COUNTA('Enrollment Form'!$BL699,'Enrollment Form'!$BN699)=2,\"Y\",\"N\")))","v":""},{"$f":"IF($B692=\"N\",\"\",IF(OR('Enrollment Form'!$AX699=\"\",'Enrollment Form'!$AX699=\"No\"),\"-\",IF(AND('Enrollment Form'!$AX699=\"Yes\",COUNTA('Enrollment Form'!$CR699)=1),\"Y\",\"N\")))","v":""},{"$f":"IF(OR('Enrollment Form'!$CR699=\"\",'Enrollment Form'!$CR699=\"No\"),\"-\",IF(COUNTA('Enrollment Form'!$CT699:$CU699)=2,\"Y\",\"N\"))","v":"-"},{"$f":"IF($B692=\"N\",\"\",IF(COUNTIF('Enrollment Form'!$DG699:$DP699,\"Other\")=COUNTA('Enrollment Form'!$DK699,'Enrollment Form'!$DH699,'Enrollment Form'!$DN699,'Enrollment Form'!$DQ699),\"Y\",\"N\"))","v":""},{"$f":"IF($B692=\"N\",\"\",IF(OR('Enrollment Form'!B699<>\"Subscriber\",'Enrollment Form'!C699=\"ROC\",COUNTIF('Enrollment Form'!AV699:AW699,\"Yes\")>=1),\"-\",IF(AND('Enrollment Form'!C699=\"Enroll\",COUNTIF('Enrollment Form'!AV699:AW699,\"No\")=2,'Enrollment Form'!AX699=\"\"),\"N\",\"Y\")))","v":""},{"$f":"IF(OR(B692=\"N\",'Enrollment Form'!B699<>\"Subscriber\",'Enrollment Form'!C699=\"ROC\",'Enrollment Form'!O699<>\"Multiple of Salary\"),\"-\",IF(COUNTA('Enrollment Form'!T699:U699)<2,\"N\",\"Y\"))","v":"-"},{"$f":"IF(B692=\"N\",\"\",IF(OR('Enrollment Form'!C699=\"ROC\",'Enrollment Form'!B699<>\"Subscriber\",'Enrollment Form'!O699=\"Waive\",'Enrollment Form'!O699=\"\"),\"-\",IF('Enrollment Form'!P699=\"\",\"N\",\"Y\")))","v":""},{"$f":"IF($B692=\"N\",\"\",IF(AND('Enrollment Form'!$C699=\"ROC\",'Enrollment Form'!$DR699<>\"\"),\"Y\",IF(AND('Enrollment Form'!$C699=\"ROC\",'Enrollment Form'!$DR699=\"\"),\"N\",IF(AND('Enrollment Form'!$C699=\"Enroll\",'Enrollment Form'!$B699=\"Subscriber\",'Enrollment Form'!$CX699=\"No\",'Enrollment Form'!$DR699=\"\"),\"N\",IF(AND('Enrollment Form'!$C699=\"Enroll\",'Enrollment Form'!$B699=\"Subscriber\",'Enrollment Form'!$CX699=\"Yes\"),\"-\",\"Y\")))))","v":""},{"$f":"IF($B692=\"N\",\"\",IF(AND('Enrollment Form'!$C699=\"ROC\",'Enrollment Form'!$DS699<>\"\"),\"Y\",IF(AND('Enrollment Form'!$C699=\"ROC\",'Enrollment Form'!$DS699=\"\"),\"N\",IF(AND('Enrollment Form'!$C699=\"Enroll\",'Enrollment Form'!$B699=\"Subscriber\",'Enrollment Form'!$CX699=\"No\",'Enrollment Form'!$DS699=\"\"),\"N\",IF(AND('Enrollment Form'!$C699=\"Enroll\",'Enrollment Form'!$B699=\"Subscriber\",'Enrollment Form'!$CX699=\"Yes\"),\"-\",\"Y\")))))","v":""},{"$f":"IF('Enrollment Form'!AH699=\"\",\"\",IF(ISERROR(SEARCH(\".\",'Enrollment Form'!AH699,SEARCH(\"@\",'Enrollment Form'!AH699))),\"N\",\"Y\"))","v":""},{"$f":"IF(OR($B692=\"N\",'Enrollment Form'!$G699=\"\"),\"\",IF('Enrollment Form'!$B699<>\"Subscriber\",\"-\",IF(COUNTIF('Enrollment Form'!$AV699:$AW699,\"Yes\")=2,\"N\",\"Y\")))","v":""},{"$f":"IF(OR('Enrollment Form'!$CJ699=\"\",'Enrollment Form'!$CJ699=\"No\"),\"-\",IF(AND('Enrollment Form'!$CJ699=\"Yes\",'Enrollment Form'!$CK699=\"\"),\"N\",\"Y\"))","v":"-"},{"$f":"IF(OR('Enrollment Form'!$CL699=\"\",'Enrollment Form'!$CL699=\"No\"),\"-\",IF(AND('Enrollment Form'!$CL699=\"Yes\",'Enrollment Form'!$CM699=\"\"),\"N\",\"Y\"))","v":"-"},{"$f":"IF(OR('Enrollment Form'!$CN699=\"\",'Enrollment Form'!$CN699=\"No\"),\"-\",IF(AND('Enrollment Form'!$CN699=\"Yes\",'Enrollment Form'!$CO699=\"\"),\"N\",\"Y\"))","v":"-"},{"$f":"IF(OR('Enrollment Form'!$CN699=\"\",'Enrollment Form'!$CN699=\"No\"),\"-\",IF(AND('Enrollment Form'!$CN699=\"Yes\",'Enrollment Form'!$CP699=\"\"),\"N\",\"Y\"))","v":"-"},{"$f":"IF('Enrollment Form'!B699<>\"Subscriber\",\"-\",IF(AND('Enrollment Form'!B699=\"Subscriber\",'Enrollment Form'!C699=\"Enroll\",'Enrollment Form'!AA699=\"\"),\"N\",\"Y\"))","v":"-"},{"$f":"IF(OR('Enrollment Form'!B699=\"Subscriber\",'Enrollment Form'!B699=\"\"),\"-\",IF('Enrollment Form'!BP699=\"\",\"N\",\"Y\"))","v":"-"},{"$f":"IF('Enrollment Form'!B699<>\"Subscriber\",\"-\",IF(AND('Enrollment Form'!B699=\"Subscriber\",'Enrollment Form'!G699=\"\"),\"N\",\"Y\"))","v":"-"},{"$f":"IF('Enrollment Form'!A699=\"\",\"\",IF('Enrollment Form'!B699=\"Subscriber\",\"-\",IF(AND('Enrollment Form'!B699<>\"Subscriber\",'Enrollment Form'!G699='Enrollment Form'!H699),\"N\",\"Y\")))","v":""},0]
[700,{"$f":"IF('Enrollment Form'!$A700<>\"\",\"Y\",\"N\")","v":"N"},{"$f":"IF(AND('Enrollment Form'!$B700=\"\",'Enrollment Form'!$C700<>\"\"),\"N\",IF($B693=\"N\",\"\",\"Y\"))","v":""},{"$f":"IF(OR($B693=\"N\",'Enrollment Form'!G700=\"\"),\"\",IF('Enrollment Form'!$B700<>\"Subscriber\",\"\",IF('Enrollment Form'!$G700='Enrollment Form'!$H700,\"Y\",\"N\")))","v":""},{"$f":"IF($B693=\"N\",\"\",IF(AND(COUNTIFS('Enrollment Form'!$H$11:$H$1000,'Enrollment Form'!$H700,'Enrollment Form'!$B$11:$B$1000,'Enrollment Form'!$B700)>1,'Enrollment Form'!$H700<>\"\"),\"N\",\"Y\"))","v":""},{"$f":"IF($B693=\"N\",\"\",IF(LEN('Enrollment Form'!$Y700)=0,\"\",IF(LEN('Enrollment Form'!$Y700)<>5,\"N\",\"Y\")))","v":""},{"$f":"IF($B693=\"N\",\"\",IF(LEN('Enrollment Form'!$AD700=0),\"\",IF(LEN('Enrollment Form'!$AD700)<>5,\"N\",\"Y\")))","v":""},{"$f":"IF($B693=\"N\",\"\",IF(LEN('Enrollment Form'!$BS700=0),\"\",IF(LEN('Enrollment Form'!$BS700)<>5,\"N\",\"Y\")))","v":""},{"$f":"IF($B693=\"N\",\"\",IF(LEN('Enrollment Form'!$AE700)=0,\"\",IF(LEN('Enrollment Form'!$AE700)<>10,\"N\",\"Y\")))","v":""},{"$f":"IF($B693=\"N\",\"\",IF(LEN('Enrollment Form'!$AF700)=0,\"\",IF(LEN('Enrollment Form'!$AF700)<>10,\"N\",\"Y\")))","v":""},{"$f":"IF('Enrollment Form'!$O700<>\"Graded\",\"-\",IF(AND('Enrollment Form'!$O700=\"Graded\",'Enrollment Form'!$AR700<>\"\"),\"Y\",\"N\"))","v":"-"},{"$f":"IF($B693=\"N\",\"\",IF(OR('Enrollment Form'!$B700<>\"Subscriber\",'Enrollment Form'!$C700=\"ROC\"),\"-\",IF(AND('Enrollment Form'!$B700=\"Subscriber\",'Enrollment Form'!$C700=\"Enroll\",'Enrollment Form'!$AJ700<>\"\"),\"Y\",\"N\")))","v":""},{"$f":"IF($B693=\"N\",\"\",IF(OR('Enrollment Form'!$B700<>\"Subscriber\",'Enrollment Form'!$C700=\"ROC\"),\"-\",IF(AND('Enrollment Form'!$B700=\"Subscriber\",'Enrollment Form'!$C700=\"Enroll\",'Enrollment Form'!$AK700<>\"\"),\"Y\",\"N\")))","v":""},{"$f":"IF($B693=\"N\",\"\",IF(OR('Enrollment Form'!$B700<>\"Subscriber\",'Enrollment Form'!$C700=\"ROC\"),\"-\",IF(AND('Enrollment Form'!$B700=\"Subscriber\",'Enrollment Form'!$C700=\"Enroll\",'Enrollment Form'!$AL700<>\"\"),\"Y\",\"N\")))","v":""},{"$f":"IF($B693=\"N\",\"\",IF(OR('Enrollment Form'!$B700<>\"Subscriber\",'Enrollment Form'!$C700=\"ROC\"),\"-\",IF(AND('Enrollment Form'!$B700=\"Subscriber\",'Enrollment Form'!$C700=\"Enroll\",'Enrollment Form'!$AP700<>\"\"),\"Y\",\"N\")))","v":""},{"$f":"IF($B693=\"N\",\"\",IF(OR('Enrollment Form'!$B700<>\"Subscriber\",'Enrollment Form'!$C700=\"ROC\"),\"-\",IF(AND('Enrollment Form'!$B700=\"Subscriber\",'Enrollment Form'!$C700=\"Enroll\",'Enrollment Form'!$AQ700<>\"\"),\"Y\",\"N\")))","v":""},{"$f":"IF($B693=\"N\",\"\",IF(OR('Enrollment Form'!$B700<>\"Subscriber\",'Enrollment Form'!$C700=\"ROC\"),\"-\",IF(AND('Enrollment Form'!$B700=\"Subscriber\",'Enrollment Form'!$C700=\"Enroll\",'Enrollment Form'!$AS700<>\"\"),\"Y\",\"N\")))","v":""},{"$f":"IF($B693=\"N\",\"\",IF($Q693=\"-\",\"-\",IF(AND($Q693=\"Y\",'Enrollment Form'!$AS700=\"No\"),\"-\",IF(AND($Q693=\"Y\",'Enrollment Form'!$AS700=\"Yes\",'Enrollment Form'!$AT700<>\"\"),\"Y\",\"N\"))))","v":""},{"$f":"IF($B693=\"N\",\"\",IF(OR('Enrollment Form'!$B700<>\"Subscriber\",'Enrollment Form'!$C700=\"ROC\"),\"-\",IF(AND('Enrollment Form'!$B700=\"Subscriber\",'Enrollment Form'!$C700=\"Enroll\",'Enrollment Form'!$CV700<>\"\"),\"Y\",\"N\")))","v":""},{"$f":"IF($B693=\"N\",\"\",IF($S693=\"-\",\"-\",IF(AND($S693=\"Y\",'Enrollment Form'!$CV700=\"No\"),\"-\",IF(AND($S693=\"Y\",'Enrollment Form'!$CV700=\"Yes\",'Enrollment Form'!$CW700<>\"\"),\"Y\",\"N\"))))","v":""},{"$f":"IF(OR('Enrollment Form'!$AY700=\"Yes\",'Enrollment Form'!$AY700=\"\"),\"-\",IF(OR(AND('Enrollment Form'!$AY700=\"No\",ISERROR(FIND(\"HMO\",VLOOKUP('Enrollment Form'!G700,'Enrollment Form'!H$11:J$1000,3,FALSE),1))=FALSE,COUNTA('Enrollment Form'!$AZ700:$BC700)=4),AND('Enrollment Form'!$AY700=\"No\",ISERROR(FIND(\"HMO\",VLOOKUP('Enrollment Form'!G700,'Enrollment Form'!H$11:J$1000,3,FALSE),1))=FALSE,COUNTA('Enrollment Form'!$BT700:$BW700)=4)),\"Y\",\"N\"))","v":"-"},{"$f":"IF($B693=\"N\",\"\",IF('Enrollment Form'!$B700=\"Subscriber\",\"-\",IF(COUNTA('Enrollment Form'!$BL700,'Enrollment Form'!$BN700)=2,\"Y\",\"N\")))","v":""},{"$f":"IF($B693=\"N\",\"\",IF(OR('Enrollment Form'!$AX700=\"\",'Enrollment Form'!$AX700=\"No\"),\"-\",IF(AND('Enrollment Form'!$AX700=\"Yes\",COUNTA('Enrollment Form'!$CR700)=1),\"Y\",\"N\")))","v":""},{"$f":"IF(OR('Enrollment Form'!$CR700=\"\",'Enrollment Form'!$CR700=\"No\"),\"-\",IF(COUNTA('Enrollment Form'!$CT700:$CU700)=2,\"Y\",\"N\"))","v":"-"},{"$f":"IF($B693=\"N\",\"\",IF(COUNTIF('Enrollment Form'!$DG700:$DP700,\"Other\")=COUNTA('Enrollment Form'!$DK700,'Enrollment Form'!$DH700,'Enrollment Form'!$DN700,'Enrollment Form'!$DQ700),\"Y\",\"N\"))","v":""},{"$f":"IF($B693=\"N\",\"\",IF(OR('Enrollment Form'!B700<>\"Subscriber\",'Enrollment Form'!C700=\"ROC\",COUNTIF('Enrollment Form'!AV700:AW700,\"Yes\")>=1),\"-\",IF(AND('Enrollment Form'!C700=\"Enroll\",COUNTIF('Enrollment Form'!AV700:AW700,\"No\")=2,'Enrollment Form'!AX700=\"\"),\"N\",\"Y\")))","v":""},{"$f":"IF(OR(B693=\"N\",'Enrollment Form'!B700<>\"Subscriber\",'Enrollment Form'!C700=\"ROC\",'Enrollment Form'!O700<>\"Multiple of Salary\"),\"-\",IF(COUNTA('Enrollment Form'!T700:U700)<2,\"N\",\"Y\"))","v":"-"},{"$f":"IF(B693=\"N\",\"\",IF(OR('Enrollment Form'!C700=\"ROC\",'Enrollment Form'!B700<>\"Subscriber\",'Enrollment Form'!O700=\"Waive\",'Enrollment Form'!O700=\"\"),\"-\",IF('Enrollment Form'!P700=\"\",\"N\",\"Y\")))","v":""},{"$f":"IF($B693=\"N\",\"\",IF(AND('Enrollment Form'!$C700=\"ROC\",'Enrollment Form'!$DR700<>\"\"),\"Y\",IF(AND('Enrollment Form'!$C700=\"ROC\",'Enrollment Form'!$DR700=\"\"),\"N\",IF(AND('Enrollment Form'!$C700=\"Enroll\",'Enrollment Form'!$B700=\"Subscriber\",'Enrollment Form'!$CX700=\"No\",'Enrollment Form'!$DR700=\"\"),\"N\",IF(AND('Enrollment Form'!$C700=\"Enroll\",'Enrollment Form'!$B700=\"Subscriber\",'Enrollment Form'!$CX700=\"Yes\"),\"-\",\"Y\")))))","v":""},{"$f":"IF($B693=\"N\",\"\",IF(AND('Enrollment Form'!$C700=\"ROC\",'Enrollment Form'!$DS700<>\"\"),\"Y\",IF(AND('Enrollment Form'!$C700=\"ROC\",'Enrollment Form'!$DS700=\"\"),\"N\",IF(AND('Enrollment Form'!$C700=\"Enroll\",'Enrollment Form'!$B700=\"Subscriber\",'Enrollment Form'!$CX700=\"No\",'Enrollment Form'!$DS700=\"\"),\"N\",IF(AND('Enrollment Form'!$C700=\"Enroll\",'Enrollment Form'!$B700=\"Subscriber\",'Enrollment Form'!$CX700=\"Yes\"),\"-\",\"Y\")))))","v":""},{"$f":"IF('Enrollment Form'!AH700=\"\",\"\",IF(ISERROR(SEARCH(\".\",'Enrollment Form'!AH700,SEARCH(\"@\",'Enrollment Form'!AH700))),\"N\",\"Y\"))","v":""},{"$f":"IF(OR($B693=\"N\",'Enrollment Form'!$G700=\"\"),\"\",IF('Enrollment Form'!$B700<>\"Subscriber\",\"-\",IF(COUNTIF('Enrollment Form'!$AV700:$AW700,\"Yes\")=2,\"N\",\"Y\")))","v":""},{"$f":"IF(OR('Enrollment Form'!$CJ700=\"\",'Enrollment Form'!$CJ700=\"No\"),\"-\",IF(AND('Enrollment Form'!$CJ700=\"Yes\",'Enrollment Form'!$CK700=\"\"),\"N\",\"Y\"))","v":"-"},{"$f":"IF(OR('Enrollment Form'!$CL700=\"\",'Enrollment Form'!$CL700=\"No\"),\"-\",IF(AND('Enrollment Form'!$CL700=\"Yes\",'Enrollment Form'!$CM700=\"\"),\"N\",\"Y\"))","v":"-"},{"$f":"IF(OR('Enrollment Form'!$CN700=\"\",'Enrollment Form'!$CN700=\"No\"),\"-\",IF(AND('Enrollment Form'!$CN700=\"Yes\",'Enrollment Form'!$CO700=\"\"),\"N\",\"Y\"))","v":"-"},{"$f":"IF(OR('Enrollment Form'!$CN700=\"\",'Enrollment Form'!$CN700=\"No\"),\"-\",IF(AND('Enrollment Form'!$CN700=\"Yes\",'Enrollment Form'!$CP700=\"\"),\"N\",\"Y\"))","v":"-"},{"$f":"IF('Enrollment Form'!B700<>\"Subscriber\",\"-\",IF(AND('Enrollment Form'!B700=\"Subscriber\",'Enrollment Form'!C700=\"Enroll\",'Enrollment Form'!AA700=\"\"),\"N\",\"Y\"))","v":"-"},{"$f":"IF(OR('Enrollment Form'!B700=\"Subscriber\",'Enrollment Form'!B700=\"\"),\"-\",IF('Enrollment Form'!BP700=\"\",\"N\",\"Y\"))","v":"-"},{"$f":"IF('Enrollment Form'!B700<>\"Subscriber\",\"-\",IF(AND('Enrollment Form'!B700=\"Subscriber\",'Enrollment Form'!G700=\"\"),\"N\",\"Y\"))","v":"-"},{"$f":"IF('Enrollment Form'!A700=\"\",\"\",IF('Enrollment Form'!B700=\"Subscriber\",\"-\",IF(AND('Enrollment Form'!B700<>\"Subscriber\",'Enrollment Form'!G700='Enrollment Form'!H700),\"N\",\"Y\")))","v":""},0]
[701,{"$f":"IF('Enrollment Form'!$A701<>\"\",\"Y\",\"N\")","v":"N"},{"$f":"IF(AND('Enrollment Form'!$B701=\"\",'Enrollment Form'!$C701<>\"\"),\"N\",IF($B694=\"N\",\"\",\"Y\"))","v":""},{"$f":"IF(OR($B694=\"N\",'Enrollment Form'!G701=\"\"),\"\",IF('Enrollment Form'!$B701<>\"Subscriber\",\"\",IF('Enrollment Form'!$G701='Enrollment Form'!$H701,\"Y\",\"N\")))","v":""},{"$f":"IF($B694=\"N\",\"\",IF(AND(COUNTIFS('Enrollment Form'!$H$11:$H$1000,'Enrollment Form'!$H701,'Enrollment Form'!$B$11:$B$1000,'Enrollment Form'!$B701)>1,'Enrollment Form'!$H701<>\"\"),\"N\",\"Y\"))","v":""},{"$f":"IF($B694=\"N\",\"\",IF(LEN('Enrollment Form'!$Y701)=0,\"\",IF(LEN('Enrollment Form'!$Y701)<>5,\"N\",\"Y\")))","v":""},{"$f":"IF($B694=\"N\",\"\",IF(LEN('Enrollment Form'!$AD701=0),\"\",IF(LEN('Enrollment Form'!$AD701)<>5,\"N\",\"Y\")))","v":""},{"$f":"IF($B694=\"N\",\"\",IF(LEN('Enrollment Form'!$BS701=0),\"\",IF(LEN('Enrollment Form'!$BS701)<>5,\"N\",\"Y\")))","v":""},{"$f":"IF($B694=\"N\",\"\",IF(LEN('Enrollment Form'!$AE701)=0,\"\",IF(LEN('Enrollment Form'!$AE701)<>10,\"N\",\"Y\")))","v":""},{"$f":"IF($B694=\"N\",\"\",IF(LEN('Enrollment Form'!$AF701)=0,\"\",IF(LEN('Enrollment Form'!$AF701)<>10,\"N\",\"Y\")))","v":""},{"$f":"IF('Enrollment Form'!$O701<>\"Graded\",\"-\",IF(AND('Enrollment Form'!$O701=\"Graded\",'Enrollment Form'!$AR701<>\"\"),\"Y\",\"N\"))","v":"-"},{"$f":"IF($B694=\"N\",\"\",IF(OR('Enrollment Form'!$B701<>\"Subscriber\",'Enrollment Form'!$C701=\"ROC\"),\"-\",IF(AND('Enrollment Form'!$B701=\"Subscriber\",'Enrollment Form'!$C701=\"Enroll\",'Enrollment Form'!$AJ701<>\"\"),\"Y\",\"N\")))","v":""},{"$f":"IF($B694=\"N\",\"\",IF(OR('Enrollment Form'!$B701<>\"Subscriber\",'Enrollment Form'!$C701=\"ROC\"),\"-\",IF(AND('Enrollment Form'!$B701=\"Subscriber\",'Enrollment Form'!$C701=\"Enroll\",'Enrollment Form'!$AK701<>\"\"),\"Y\",\"N\")))","v":""},{"$f":"IF($B694=\"N\",\"\",IF(OR('Enrollment Form'!$B701<>\"Subscriber\",'Enrollment Form'!$C701=\"ROC\"),\"-\",IF(AND('Enrollment Form'!$B701=\"Subscriber\",'Enrollment Form'!$C701=\"Enroll\",'Enrollment Form'!$AL701<>\"\"),\"Y\",\"N\")))","v":""},{"$f":"IF($B694=\"N\",\"\",IF(OR('Enrollment Form'!$B701<>\"Subscriber\",'Enrollment Form'!$C701=\"ROC\"),\"-\",IF(AND('Enrollment Form'!$B701=\"Subscriber\",'Enrollment Form'!$C701=\"Enroll\",'Enrollment Form'!$AP701<>\"\"),\"Y\",\"N\")))","v":""},{"$f":"IF($B694=\"N\",\"\",IF(OR('Enrollment Form'!$B701<>\"Subscriber\",'Enrollment Form'!$C701=\"ROC\"),\"-\",IF(AND('Enrollment Form'!$B701=\"Subscriber\",'Enrollment Form'!$C701=\"Enroll\",'Enrollment Form'!$AQ701<>\"\"),\"Y\",\"N\")))","v":""},{"$f":"IF($B694=\"N\",\"\",IF(OR('Enrollment Form'!$B701<>\"Subscriber\",'Enrollment Form'!$C701=\"ROC\"),\"-\",IF(AND('Enrollment Form'!$B701=\"Subscriber\",'Enrollment Form'!$C701=\"Enroll\",'Enrollment Form'!$AS701<>\"\"),\"Y\",\"N\")))","v":""},{"$f":"IF($B694=\"N\",\"\",IF($Q694=\"-\",\"-\",IF(AND($Q694=\"Y\",'Enrollment Form'!$AS701=\"No\"),\"-\",IF(AND($Q694=\"Y\",'Enrollment Form'!$AS701=\"Yes\",'Enrollment Form'!$AT701<>\"\"),\"Y\",\"N\"))))","v":""},{"$f":"IF($B694=\"N\",\"\",IF(OR('Enrollment Form'!$B701<>\"Subscriber\",'Enrollment Form'!$C701=\"ROC\"),\"-\",IF(AND('Enrollment Form'!$B701=\"Subscriber\",'Enrollment Form'!$C701=\"Enroll\",'Enrollment Form'!$CV701<>\"\"),\"Y\",\"N\")))","v":""},{"$f":"IF($B694=\"N\",\"\",IF($S694=\"-\",\"-\",IF(AND($S694=\"Y\",'Enrollment Form'!$CV701=\"No\"),\"-\",IF(AND($S694=\"Y\",'Enrollment Form'!$CV701=\"Yes\",'Enrollment Form'!$CW701<>\"\"),\"Y\",\"N\"))))","v":""},{"$f":"IF(OR('Enrollment Form'!$AY701=\"Yes\",'Enrollment Form'!$AY701=\"\"),\"-\",IF(OR(AND('Enrollment Form'!$AY701=\"No\",ISERROR(FIND(\"HMO\",VLOOKUP('Enrollment Form'!G701,'Enrollment Form'!H$11:J$1000,3,FALSE),1))=FALSE,COUNTA('Enrollment Form'!$AZ701:$BC701)=4),AND('Enrollment Form'!$AY701=\"No\",ISERROR(FIND(\"HMO\",VLOOKUP('Enrollment Form'!G701,'Enrollment Form'!H$11:J$1000,3,FALSE),1))=FALSE,COUNTA('Enrollment Form'!$BT701:$BW701)=4)),\"Y\",\"N\"))","v":"-"},{"$f":"IF($B694=\"N\",\"\",IF('Enrollment Form'!$B701=\"Subscriber\",\"-\",IF(COUNTA('Enrollment Form'!$BL701,'Enrollment Form'!$BN701)=2,\"Y\",\"N\")))","v":""},{"$f":"IF($B694=\"N\",\"\",IF(OR('Enrollment Form'!$AX701=\"\",'Enrollment Form'!$AX701=\"No\"),\"-\",IF(AND('Enrollment Form'!$AX701=\"Yes\",COUNTA('Enrollment Form'!$CR701)=1),\"Y\",\"N\")))","v":""},{"$f":"IF(OR('Enrollment Form'!$CR701=\"\",'Enrollment Form'!$CR701=\"No\"),\"-\",IF(COUNTA('Enrollment Form'!$CT701:$CU701)=2,\"Y\",\"N\"))","v":"-"},{"$f":"IF($B694=\"N\",\"\",IF(COUNTIF('Enrollment Form'!$DG701:$DP701,\"Other\")=COUNTA('Enrollment Form'!$DK701,'Enrollment Form'!$DH701,'Enrollment Form'!$DN701,'Enrollment Form'!$DQ701),\"Y\",\"N\"))","v":""},{"$f":"IF($B694=\"N\",\"\",IF(OR('Enrollment Form'!B701<>\"Subscriber\",'Enrollment Form'!C701=\"ROC\",COUNTIF('Enrollment Form'!AV701:AW701,\"Yes\")>=1),\"-\",IF(AND('Enrollment Form'!C701=\"Enroll\",COUNTIF('Enrollment Form'!AV701:AW701,\"No\")=2,'Enrollment Form'!AX701=\"\"),\"N\",\"Y\")))","v":""},{"$f":"IF(OR(B694=\"N\",'Enrollment Form'!B701<>\"Subscriber\",'Enrollment Form'!C701=\"ROC\",'Enrollment Form'!O701<>\"Multiple of Salary\"),\"-\",IF(COUNTA('Enrollment Form'!T701:U701)<2,\"N\",\"Y\"))","v":"-"},{"$f":"IF(B694=\"N\",\"\",IF(OR('Enrollment Form'!C701=\"ROC\",'Enrollment Form'!B701<>\"Subscriber\",'Enrollment Form'!O701=\"Waive\",'Enrollment Form'!O701=\"\"),\"-\",IF('Enrollment Form'!P701=\"\",\"N\",\"Y\")))","v":""},{"$f":"IF($B694=\"N\",\"\",IF(AND('Enrollment Form'!$C701=\"ROC\",'Enrollment Form'!$DR701<>\"\"),\"Y\",IF(AND('Enrollment Form'!$C701=\"ROC\",'Enrollment Form'!$DR701=\"\"),\"N\",IF(AND('Enrollment Form'!$C701=\"Enroll\",'Enrollment Form'!$B701=\"Subscriber\",'Enrollment Form'!$CX701=\"No\",'Enrollment Form'!$DR701=\"\"),\"N\",IF(AND('Enrollment Form'!$C701=\"Enroll\",'Enrollment Form'!$B701=\"Subscriber\",'Enrollment Form'!$CX701=\"Yes\"),\"-\",\"Y\")))))","v":""},{"$f":"IF($B694=\"N\",\"\",IF(AND('Enrollment Form'!$C701=\"ROC\",'Enrollment Form'!$DS701<>\"\"),\"Y\",IF(AND('Enrollment Form'!$C701=\"ROC\",'Enrollment Form'!$DS701=\"\"),\"N\",IF(AND('Enrollment Form'!$C701=\"Enroll\",'Enrollment Form'!$B701=\"Subscriber\",'Enrollment Form'!$CX701=\"No\",'Enrollment Form'!$DS701=\"\"),\"N\",IF(AND('Enrollment Form'!$C701=\"Enroll\",'Enrollment Form'!$B701=\"Subscriber\",'Enrollment Form'!$CX701=\"Yes\"),\"-\",\"Y\")))))","v":""},{"$f":"IF('Enrollment Form'!AH701=\"\",\"\",IF(ISERROR(SEARCH(\".\",'Enrollment Form'!AH701,SEARCH(\"@\",'Enrollment Form'!AH701))),\"N\",\"Y\"))","v":""},{"$f":"IF(OR($B694=\"N\",'Enrollment Form'!$G701=\"\"),\"\",IF('Enrollment Form'!$B701<>\"Subscriber\",\"-\",IF(COUNTIF('Enrollment Form'!$AV701:$AW701,\"Yes\")=2,\"N\",\"Y\")))","v":""},{"$f":"IF(OR('Enrollment Form'!$CJ701=\"\",'Enrollment Form'!$CJ701=\"No\"),\"-\",IF(AND('Enrollment Form'!$CJ701=\"Yes\",'Enrollment Form'!$CK701=\"\"),\"N\",\"Y\"))","v":"-"},{"$f":"IF(OR('Enrollment Form'!$CL701=\"\",'Enrollment Form'!$CL701=\"No\"),\"-\",IF(AND('Enrollment Form'!$CL701=\"Yes\",'Enrollment Form'!$CM701=\"\"),\"N\",\"Y\"))","v":"-"},{"$f":"IF(OR('Enrollment Form'!$CN701=\"\",'Enrollment Form'!$CN701=\"No\"),\"-\",IF(AND('Enrollment Form'!$CN701=\"Yes\",'Enrollment Form'!$CO701=\"\"),\"N\",\"Y\"))","v":"-"},{"$f":"IF(OR('Enrollment Form'!$CN701=\"\",'Enrollment Form'!$CN701=\"No\"),\"-\",IF(AND('Enrollment Form'!$CN701=\"Yes\",'Enrollment Form'!$CP701=\"\"),\"N\",\"Y\"))","v":"-"},{"$f":"IF('Enrollment Form'!B701<>\"Subscriber\",\"-\",IF(AND('Enrollment Form'!B701=\"Subscriber\",'Enrollment Form'!C701=\"Enroll\",'Enrollment Form'!AA701=\"\"),\"N\",\"Y\"))","v":"-"},{"$f":"IF(OR('Enrollment Form'!B701=\"Subscriber\",'Enrollment Form'!B701=\"\"),\"-\",IF('Enrollment Form'!BP701=\"\",\"N\",\"Y\"))","v":"-"},{"$f":"IF('Enrollment Form'!B701<>\"Subscriber\",\"-\",IF(AND('Enrollment Form'!B701=\"Subscriber\",'Enrollment Form'!G701=\"\"),\"N\",\"Y\"))","v":"-"},{"$f":"IF('Enrollment Form'!A701=\"\",\"\",IF('Enrollment Form'!B701=\"Subscriber\",\"-\",IF(AND('Enrollment Form'!B701<>\"Subscriber\",'Enrollment Form'!G701='Enrollment Form'!H701),\"N\",\"Y\")))","v":""},0]
[702,{"$f":"IF('Enrollment Form'!$A702<>\"\",\"Y\",\"N\")","v":"N"},{"$f":"IF(AND('Enrollment Form'!$B702=\"\",'Enrollment Form'!$C702<>\"\"),\"N\",IF($B695=\"N\",\"\",\"Y\"))","v":""},{"$f":"IF(OR($B695=\"N\",'Enrollment Form'!G702=\"\"),\"\",IF('Enrollment Form'!$B702<>\"Subscriber\",\"\",IF('Enrollment Form'!$G702='Enrollment Form'!$H702,\"Y\",\"N\")))","v":""},{"$f":"IF($B695=\"N\",\"\",IF(AND(COUNTIFS('Enrollment Form'!$H$11:$H$1000,'Enrollment Form'!$H702,'Enrollment Form'!$B$11:$B$1000,'Enrollment Form'!$B702)>1,'Enrollment Form'!$H702<>\"\"),\"N\",\"Y\"))","v":""},{"$f":"IF($B695=\"N\",\"\",IF(LEN('Enrollment Form'!$Y702)=0,\"\",IF(LEN('Enrollment Form'!$Y702)<>5,\"N\",\"Y\")))","v":""},{"$f":"IF($B695=\"N\",\"\",IF(LEN('Enrollment Form'!$AD702=0),\"\",IF(LEN('Enrollment Form'!$AD702)<>5,\"N\",\"Y\")))","v":""},{"$f":"IF($B695=\"N\",\"\",IF(LEN('Enrollment Form'!$BS702=0),\"\",IF(LEN('Enrollment Form'!$BS702)<>5,\"N\",\"Y\")))","v":""},{"$f":"IF($B695=\"N\",\"\",IF(LEN('Enrollment Form'!$AE702)=0,\"\",IF(LEN('Enrollment Form'!$AE702)<>10,\"N\",\"Y\")))","v":""},{"$f":"IF($B695=\"N\",\"\",IF(LEN('Enrollment Form'!$AF702)=0,\"\",IF(LEN('Enrollment Form'!$AF702)<>10,\"N\",\"Y\")))","v":""},{"$f":"IF('Enrollment Form'!$O702<>\"Graded\",\"-\",IF(AND('Enrollment Form'!$O702=\"Graded\",'Enrollment Form'!$AR702<>\"\"),\"Y\",\"N\"))","v":"-"},{"$f":"IF($B695=\"N\",\"\",IF(OR('Enrollment Form'!$B702<>\"Subscriber\",'Enrollment Form'!$C702=\"ROC\"),\"-\",IF(AND('Enrollment Form'!$B702=\"Subscriber\",'Enrollment Form'!$C702=\"Enroll\",'Enrollment Form'!$AJ702<>\"\"),\"Y\",\"N\")))","v":""},{"$f":"IF($B695=\"N\",\"\",IF(OR('Enrollment Form'!$B702<>\"Subscriber\",'Enrollment Form'!$C702=\"ROC\"),\"-\",IF(AND('Enrollment Form'!$B702=\"Subscriber\",'Enrollment Form'!$C702=\"Enroll\",'Enrollment Form'!$AK702<>\"\"),\"Y\",\"N\")))","v":""},{"$f":"IF($B695=\"N\",\"\",IF(OR('Enrollment Form'!$B702<>\"Subscriber\",'Enrollment Form'!$C702=\"ROC\"),\"-\",IF(AND('Enrollment Form'!$B702=\"Subscriber\",'Enrollment Form'!$C702=\"Enroll\",'Enrollment Form'!$AL702<>\"\"),\"Y\",\"N\")))","v":""},{"$f":"IF($B695=\"N\",\"\",IF(OR('Enrollment Form'!$B702<>\"Subscriber\",'Enrollment Form'!$C702=\"ROC\"),\"-\",IF(AND('Enrollment Form'!$B702=\"Subscriber\",'Enrollment Form'!$C702=\"Enroll\",'Enrollment Form'!$AP702<>\"\"),\"Y\",\"N\")))","v":""},{"$f":"IF($B695=\"N\",\"\",IF(OR('Enrollment Form'!$B702<>\"Subscriber\",'Enrollment Form'!$C702=\"ROC\"),\"-\",IF(AND('Enrollment Form'!$B702=\"Subscriber\",'Enrollment Form'!$C702=\"Enroll\",'Enrollment Form'!$AQ702<>\"\"),\"Y\",\"N\")))","v":""},{"$f":"IF($B695=\"N\",\"\",IF(OR('Enrollment Form'!$B702<>\"Subscriber\",'Enrollment Form'!$C702=\"ROC\"),\"-\",IF(AND('Enrollment Form'!$B702=\"Subscriber\",'Enrollment Form'!$C702=\"Enroll\",'Enrollment Form'!$AS702<>\"\"),\"Y\",\"N\")))","v":""},{"$f":"IF($B695=\"N\",\"\",IF($Q695=\"-\",\"-\",IF(AND($Q695=\"Y\",'Enrollment Form'!$AS702=\"No\"),\"-\",IF(AND($Q695=\"Y\",'Enrollment Form'!$AS702=\"Yes\",'Enrollment Form'!$AT702<>\"\"),\"Y\",\"N\"))))","v":""},{"$f":"IF($B695=\"N\",\"\",IF(OR('Enrollment Form'!$B702<>\"Subscriber\",'Enrollment Form'!$C702=\"ROC\"),\"-\",IF(AND('Enrollment Form'!$B702=\"Subscriber\",'Enrollment Form'!$C702=\"Enroll\",'Enrollment Form'!$CV702<>\"\"),\"Y\",\"N\")))","v":""},{"$f":"IF($B695=\"N\",\"\",IF($S695=\"-\",\"-\",IF(AND($S695=\"Y\",'Enrollment Form'!$CV702=\"No\"),\"-\",IF(AND($S695=\"Y\",'Enrollment Form'!$CV702=\"Yes\",'Enrollment Form'!$CW702<>\"\"),\"Y\",\"N\"))))","v":""},{"$f":"IF(OR('Enrollment Form'!$AY702=\"Yes\",'Enrollment Form'!$AY702=\"\"),\"-\",IF(OR(AND('Enrollment Form'!$AY702=\"No\",ISERROR(FIND(\"HMO\",VLOOKUP('Enrollment Form'!G702,'Enrollment Form'!H$11:J$1000,3,FALSE),1))=FALSE,COUNTA('Enrollment Form'!$AZ702:$BC702)=4),AND('Enrollment Form'!$AY702=\"No\",ISERROR(FIND(\"HMO\",VLOOKUP('Enrollment Form'!G702,'Enrollment Form'!H$11:J$1000,3,FALSE),1))=FALSE,COUNTA('Enrollment Form'!$BT702:$BW702)=4)),\"Y\",\"N\"))","v":"-"},{"$f":"IF($B695=\"N\",\"\",IF('Enrollment Form'!$B702=\"Subscriber\",\"-\",IF(COUNTA('Enrollment Form'!$BL702,'Enrollment Form'!$BN702)=2,\"Y\",\"N\")))","v":""},{"$f":"IF($B695=\"N\",\"\",IF(OR('Enrollment Form'!$AX702=\"\",'Enrollment Form'!$AX702=\"No\"),\"-\",IF(AND('Enrollment Form'!$AX702=\"Yes\",COUNTA('Enrollment Form'!$CR702)=1),\"Y\",\"N\")))","v":""},{"$f":"IF(OR('Enrollment Form'!$CR702=\"\",'Enrollment Form'!$CR702=\"No\"),\"-\",IF(COUNTA('Enrollment Form'!$CT702:$CU702)=2,\"Y\",\"N\"))","v":"-"},{"$f":"IF($B695=\"N\",\"\",IF(COUNTIF('Enrollment Form'!$DG702:$DP702,\"Other\")=COUNTA('Enrollment Form'!$DK702,'Enrollment Form'!$DH702,'Enrollment Form'!$DN702,'Enrollment Form'!$DQ702),\"Y\",\"N\"))","v":""},{"$f":"IF($B695=\"N\",\"\",IF(OR('Enrollment Form'!B702<>\"Subscriber\",'Enrollment Form'!C702=\"ROC\",COUNTIF('Enrollment Form'!AV702:AW702,\"Yes\")>=1),\"-\",IF(AND('Enrollment Form'!C702=\"Enroll\",COUNTIF('Enrollment Form'!AV702:AW702,\"No\")=2,'Enrollment Form'!AX702=\"\"),\"N\",\"Y\")))","v":""},{"$f":"IF(OR(B695=\"N\",'Enrollment Form'!B702<>\"Subscriber\",'Enrollment Form'!C702=\"ROC\",'Enrollment Form'!O702<>\"Multiple of Salary\"),\"-\",IF(COUNTA('Enrollment Form'!T702:U702)<2,\"N\",\"Y\"))","v":"-"},{"$f":"IF(B695=\"N\",\"\",IF(OR('Enrollment Form'!C702=\"ROC\",'Enrollment Form'!B702<>\"Subscriber\",'Enrollment Form'!O702=\"Waive\",'Enrollment Form'!O702=\"\"),\"-\",IF('Enrollment Form'!P702=\"\",\"N\",\"Y\")))","v":""},{"$f":"IF($B695=\"N\",\"\",IF(AND('Enrollment Form'!$C702=\"ROC\",'Enrollment Form'!$DR702<>\"\"),\"Y\",IF(AND('Enrollment Form'!$C702=\"ROC\",'Enrollment Form'!$DR702=\"\"),\"N\",IF(AND('Enrollment Form'!$C702=\"Enroll\",'Enrollment Form'!$B702=\"Subscriber\",'Enrollment Form'!$CX702=\"No\",'Enrollment Form'!$DR702=\"\"),\"N\",IF(AND('Enrollment Form'!$C702=\"Enroll\",'Enrollment Form'!$B702=\"Subscriber\",'Enrollment Form'!$CX702=\"Yes\"),\"-\",\"Y\")))))","v":""},{"$f":"IF($B695=\"N\",\"\",IF(AND('Enrollment Form'!$C702=\"ROC\",'Enrollment Form'!$DS702<>\"\"),\"Y\",IF(AND('Enrollment Form'!$C702=\"ROC\",'Enrollment Form'!$DS702=\"\"),\"N\",IF(AND('Enrollment Form'!$C702=\"Enroll\",'Enrollment Form'!$B702=\"Subscriber\",'Enrollment Form'!$CX702=\"No\",'Enrollment Form'!$DS702=\"\"),\"N\",IF(AND('Enrollment Form'!$C702=\"Enroll\",'Enrollment Form'!$B702=\"Subscriber\",'Enrollment Form'!$CX702=\"Yes\"),\"-\",\"Y\")))))","v":""},{"$f":"IF('Enrollment Form'!AH702=\"\",\"\",IF(ISERROR(SEARCH(\".\",'Enrollment Form'!AH702,SEARCH(\"@\",'Enrollment Form'!AH702))),\"N\",\"Y\"))","v":""},{"$f":"IF(OR($B695=\"N\",'Enrollment Form'!$G702=\"\"),\"\",IF('Enrollment Form'!$B702<>\"Subscriber\",\"-\",IF(COUNTIF('Enrollment Form'!$AV702:$AW702,\"Yes\")=2,\"N\",\"Y\")))","v":""},{"$f":"IF(OR('Enrollment Form'!$CJ702=\"\",'Enrollment Form'!$CJ702=\"No\"),\"-\",IF(AND('Enrollment Form'!$CJ702=\"Yes\",'Enrollment Form'!$CK702=\"\"),\"N\",\"Y\"))","v":"-"},{"$f":"IF(OR('Enrollment Form'!$CL702=\"\",'Enrollment Form'!$CL702=\"No\"),\"-\",IF(AND('Enrollment Form'!$CL702=\"Yes\",'Enrollment Form'!$CM702=\"\"),\"N\",\"Y\"))","v":"-"},{"$f":"IF(OR('Enrollment Form'!$CN702=\"\",'Enrollment Form'!$CN702=\"No\"),\"-\",IF(AND('Enrollment Form'!$CN702=\"Yes\",'Enrollment Form'!$CO702=\"\"),\"N\",\"Y\"))","v":"-"},{"$f":"IF(OR('Enrollment Form'!$CN702=\"\",'Enrollment Form'!$CN702=\"No\"),\"-\",IF(AND('Enrollment Form'!$CN702=\"Yes\",'Enrollment Form'!$CP702=\"\"),\"N\",\"Y\"))","v":"-"},{"$f":"IF('Enrollment Form'!B702<>\"Subscriber\",\"-\",IF(AND('Enrollment Form'!B702=\"Subscriber\",'Enrollment Form'!C702=\"Enroll\",'Enrollment Form'!AA702=\"\"),\"N\",\"Y\"))","v":"-"},{"$f":"IF(OR('Enrollment Form'!B702=\"Subscriber\",'Enrollment Form'!B702=\"\"),\"-\",IF('Enrollment Form'!BP702=\"\",\"N\",\"Y\"))","v":"-"},{"$f":"IF('Enrollment Form'!B702<>\"Subscriber\",\"-\",IF(AND('Enrollment Form'!B702=\"Subscriber\",'Enrollment Form'!G702=\"\"),\"N\",\"Y\"))","v":"-"},{"$f":"IF('Enrollment Form'!A702=\"\",\"\",IF('Enrollment Form'!B702=\"Subscriber\",\"-\",IF(AND('Enrollment Form'!B702<>\"Subscriber\",'Enrollment Form'!G702='Enrollment Form'!H702),\"N\",\"Y\")))","v":""},0]
[703,{"$f":"IF('Enrollment Form'!$A703<>\"\",\"Y\",\"N\")","v":"N"},{"$f":"IF(AND('Enrollment Form'!$B703=\"\",'Enrollment Form'!$C703<>\"\"),\"N\",IF($B696=\"N\",\"\",\"Y\"))","v":""},{"$f":"IF(OR($B696=\"N\",'Enrollment Form'!G703=\"\"),\"\",IF('Enrollment Form'!$B703<>\"Subscriber\",\"\",IF('Enrollment Form'!$G703='Enrollment Form'!$H703,\"Y\",\"N\")))","v":""},{"$f":"IF($B696=\"N\",\"\",IF(AND(COUNTIFS('Enrollment Form'!$H$11:$H$1000,'Enrollment Form'!$H703,'Enrollment Form'!$B$11:$B$1000,'Enrollment Form'!$B703)>1,'Enrollment Form'!$H703<>\"\"),\"N\",\"Y\"))","v":""},{"$f":"IF($B696=\"N\",\"\",IF(LEN('Enrollment Form'!$Y703)=0,\"\",IF(LEN('Enrollment Form'!$Y703)<>5,\"N\",\"Y\")))","v":""},{"$f":"IF($B696=\"N\",\"\",IF(LEN('Enrollment Form'!$AD703=0),\"\",IF(LEN('Enrollment Form'!$AD703)<>5,\"N\",\"Y\")))","v":""},{"$f":"IF($B696=\"N\",\"\",IF(LEN('Enrollment Form'!$BS703=0),\"\",IF(LEN('Enrollment Form'!$BS703)<>5,\"N\",\"Y\")))","v":""},{"$f":"IF($B696=\"N\",\"\",IF(LEN('Enrollment Form'!$AE703)=0,\"\",IF(LEN('Enrollment Form'!$AE703)<>10,\"N\",\"Y\")))","v":""},{"$f":"IF($B696=\"N\",\"\",IF(LEN('Enrollment Form'!$AF703)=0,\"\",IF(LEN('Enrollment Form'!$AF703)<>10,\"N\",\"Y\")))","v":""},{"$f":"IF('Enrollment Form'!$O703<>\"Graded\",\"-\",IF(AND('Enrollment Form'!$O703=\"Graded\",'Enrollment Form'!$AR703<>\"\"),\"Y\",\"N\"))","v":"-"},{"$f":"IF($B696=\"N\",\"\",IF(OR('Enrollment Form'!$B703<>\"Subscriber\",'Enrollment Form'!$C703=\"ROC\"),\"-\",IF(AND('Enrollment Form'!$B703=\"Subscriber\",'Enrollment Form'!$C703=\"Enroll\",'Enrollment Form'!$AJ703<>\"\"),\"Y\",\"N\")))","v":""},{"$f":"IF($B696=\"N\",\"\",IF(OR('Enrollment Form'!$B703<>\"Subscriber\",'Enrollment Form'!$C703=\"ROC\"),\"-\",IF(AND('Enrollment Form'!$B703=\"Subscriber\",'Enrollment Form'!$C703=\"Enroll\",'Enrollment Form'!$AK703<>\"\"),\"Y\",\"N\")))","v":""},{"$f":"IF($B696=\"N\",\"\",IF(OR('Enrollment Form'!$B703<>\"Subscriber\",'Enrollment Form'!$C703=\"ROC\"),\"-\",IF(AND('Enrollment Form'!$B703=\"Subscriber\",'Enrollment Form'!$C703=\"Enroll\",'Enrollment Form'!$AL703<>\"\"),\"Y\",\"N\")))","v":""},{"$f":"IF($B696=\"N\",\"\",IF(OR('Enrollment Form'!$B703<>\"Subscriber\",'Enrollment Form'!$C703=\"ROC\"),\"-\",IF(AND('Enrollment Form'!$B703=\"Subscriber\",'Enrollment Form'!$C703=\"Enroll\",'Enrollment Form'!$AP703<>\"\"),\"Y\",\"N\")))","v":""},{"$f":"IF($B696=\"N\",\"\",IF(OR('Enrollment Form'!$B703<>\"Subscriber\",'Enrollment Form'!$C703=\"ROC\"),\"-\",IF(AND('Enrollment Form'!$B703=\"Subscriber\",'Enrollment Form'!$C703=\"Enroll\",'Enrollment Form'!$AQ703<>\"\"),\"Y\",\"N\")))","v":""},{"$f":"IF($B696=\"N\",\"\",IF(OR('Enrollment Form'!$B703<>\"Subscriber\",'Enrollment Form'!$C703=\"ROC\"),\"-\",IF(AND('Enrollment Form'!$B703=\"Subscriber\",'Enrollment Form'!$C703=\"Enroll\",'Enrollment Form'!$AS703<>\"\"),\"Y\",\"N\")))","v":""},{"$f":"IF($B696=\"N\",\"\",IF($Q696=\"-\",\"-\",IF(AND($Q696=\"Y\",'Enrollment Form'!$AS703=\"No\"),\"-\",IF(AND($Q696=\"Y\",'Enrollment Form'!$AS703=\"Yes\",'Enrollment Form'!$AT703<>\"\"),\"Y\",\"N\"))))","v":""},{"$f":"IF($B696=\"N\",\"\",IF(OR('Enrollment Form'!$B703<>\"Subscriber\",'Enrollment Form'!$C703=\"ROC\"),\"-\",IF(AND('Enrollment Form'!$B703=\"Subscriber\",'Enrollment Form'!$C703=\"Enroll\",'Enrollment Form'!$CV703<>\"\"),\"Y\",\"N\")))","v":""},{"$f":"IF($B696=\"N\",\"\",IF($S696=\"-\",\"-\",IF(AND($S696=\"Y\",'Enrollment Form'!$CV703=\"No\"),\"-\",IF(AND($S696=\"Y\",'Enrollment Form'!$CV703=\"Yes\",'Enrollment Form'!$CW703<>\"\"),\"Y\",\"N\"))))","v":""},{"$f":"IF(OR('Enrollment Form'!$AY703=\"Yes\",'Enrollment Form'!$AY703=\"\"),\"-\",IF(OR(AND('Enrollment Form'!$AY703=\"No\",ISERROR(FIND(\"HMO\",VLOOKUP('Enrollment Form'!G703,'Enrollment Form'!H$11:J$1000,3,FALSE),1))=FALSE,COUNTA('Enrollment Form'!$AZ703:$BC703)=4),AND('Enrollment Form'!$AY703=\"No\",ISERROR(FIND(\"HMO\",VLOOKUP('Enrollment Form'!G703,'Enrollment Form'!H$11:J$1000,3,FALSE),1))=FALSE,COUNTA('Enrollment Form'!$BT703:$BW703)=4)),\"Y\",\"N\"))","v":"-"},{"$f":"IF($B696=\"N\",\"\",IF('Enrollment Form'!$B703=\"Subscriber\",\"-\",IF(COUNTA('Enrollment Form'!$BL703,'Enrollment Form'!$BN703)=2,\"Y\",\"N\")))","v":""},{"$f":"IF($B696=\"N\",\"\",IF(OR('Enrollment Form'!$AX703=\"\",'Enrollment Form'!$AX703=\"No\"),\"-\",IF(AND('Enrollment Form'!$AX703=\"Yes\",COUNTA('Enrollment Form'!$CR703)=1),\"Y\",\"N\")))","v":""},{"$f":"IF(OR('Enrollment Form'!$CR703=\"\",'Enrollment Form'!$CR703=\"No\"),\"-\",IF(COUNTA('Enrollment Form'!$CT703:$CU703)=2,\"Y\",\"N\"))","v":"-"},{"$f":"IF($B696=\"N\",\"\",IF(COUNTIF('Enrollment Form'!$DG703:$DP703,\"Other\")=COUNTA('Enrollment Form'!$DK703,'Enrollment Form'!$DH703,'Enrollment Form'!$DN703,'Enrollment Form'!$DQ703),\"Y\",\"N\"))","v":""},{"$f":"IF($B696=\"N\",\"\",IF(OR('Enrollment Form'!B703<>\"Subscriber\",'Enrollment Form'!C703=\"ROC\",COUNTIF('Enrollment Form'!AV703:AW703,\"Yes\")>=1),\"-\",IF(AND('Enrollment Form'!C703=\"Enroll\",COUNTIF('Enrollment Form'!AV703:AW703,\"No\")=2,'Enrollment Form'!AX703=\"\"),\"N\",\"Y\")))","v":""},{"$f":"IF(OR(B696=\"N\",'Enrollment Form'!B703<>\"Subscriber\",'Enrollment Form'!C703=\"ROC\",'Enrollment Form'!O703<>\"Multiple of Salary\"),\"-\",IF(COUNTA('Enrollment Form'!T703:U703)<2,\"N\",\"Y\"))","v":"-"},{"$f":"IF(B696=\"N\",\"\",IF(OR('Enrollment Form'!C703=\"ROC\",'Enrollment Form'!B703<>\"Subscriber\",'Enrollment Form'!O703=\"Waive\",'Enrollment Form'!O703=\"\"),\"-\",IF('Enrollment Form'!P703=\"\",\"N\",\"Y\")))","v":""},{"$f":"IF($B696=\"N\",\"\",IF(AND('Enrollment Form'!$C703=\"ROC\",'Enrollment Form'!$DR703<>\"\"),\"Y\",IF(AND('Enrollment Form'!$C703=\"ROC\",'Enrollment Form'!$DR703=\"\"),\"N\",IF(AND('Enrollment Form'!$C703=\"Enroll\",'Enrollment Form'!$B703=\"Subscriber\",'Enrollment Form'!$CX703=\"No\",'Enrollment Form'!$DR703=\"\"),\"N\",IF(AND('Enrollment Form'!$C703=\"Enroll\",'Enrollment Form'!$B703=\"Subscriber\",'Enrollment Form'!$CX703=\"Yes\"),\"-\",\"Y\")))))","v":""},{"$f":"IF($B696=\"N\",\"\",IF(AND('Enrollment Form'!$C703=\"ROC\",'Enrollment Form'!$DS703<>\"\"),\"Y\",IF(AND('Enrollment Form'!$C703=\"ROC\",'Enrollment Form'!$DS703=\"\"),\"N\",IF(AND('Enrollment Form'!$C703=\"Enroll\",'Enrollment Form'!$B703=\"Subscriber\",'Enrollment Form'!$CX703=\"No\",'Enrollment Form'!$DS703=\"\"),\"N\",IF(AND('Enrollment Form'!$C703=\"Enroll\",'Enrollment Form'!$B703=\"Subscriber\",'Enrollment Form'!$CX703=\"Yes\"),\"-\",\"Y\")))))","v":""},{"$f":"IF('Enrollment Form'!AH703=\"\",\"\",IF(ISERROR(SEARCH(\".\",'Enrollment Form'!AH703,SEARCH(\"@\",'Enrollment Form'!AH703))),\"N\",\"Y\"))","v":""},{"$f":"IF(OR($B696=\"N\",'Enrollment Form'!$G703=\"\"),\"\",IF('Enrollment Form'!$B703<>\"Subscriber\",\"-\",IF(COUNTIF('Enrollment Form'!$AV703:$AW703,\"Yes\")=2,\"N\",\"Y\")))","v":""},{"$f":"IF(OR('Enrollment Form'!$CJ703=\"\",'Enrollment Form'!$CJ703=\"No\"),\"-\",IF(AND('Enrollment Form'!$CJ703=\"Yes\",'Enrollment Form'!$CK703=\"\"),\"N\",\"Y\"))","v":"-"},{"$f":"IF(OR('Enrollment Form'!$CL703=\"\",'Enrollment Form'!$CL703=\"No\"),\"-\",IF(AND('Enrollment Form'!$CL703=\"Yes\",'Enrollment Form'!$CM703=\"\"),\"N\",\"Y\"))","v":"-"},{"$f":"IF(OR('Enrollment Form'!$CN703=\"\",'Enrollment Form'!$CN703=\"No\"),\"-\",IF(AND('Enrollment Form'!$CN703=\"Yes\",'Enrollment Form'!$CO703=\"\"),\"N\",\"Y\"))","v":"-"},{"$f":"IF(OR('Enrollment Form'!$CN703=\"\",'Enrollment Form'!$CN703=\"No\"),\"-\",IF(AND('Enrollment Form'!$CN703=\"Yes\",'Enrollment Form'!$CP703=\"\"),\"N\",\"Y\"))","v":"-"},{"$f":"IF('Enrollment Form'!B703<>\"Subscriber\",\"-\",IF(AND('Enrollment Form'!B703=\"Subscriber\",'Enrollment Form'!C703=\"Enroll\",'Enrollment Form'!AA703=\"\"),\"N\",\"Y\"))","v":"-"},{"$f":"IF(OR('Enrollment Form'!B703=\"Subscriber\",'Enrollment Form'!B703=\"\"),\"-\",IF('Enrollment Form'!BP703=\"\",\"N\",\"Y\"))","v":"-"},{"$f":"IF('Enrollment Form'!B703<>\"Subscriber\",\"-\",IF(AND('Enrollment Form'!B703=\"Subscriber\",'Enrollment Form'!G703=\"\"),\"N\",\"Y\"))","v":"-"},{"$f":"IF('Enrollment Form'!A703=\"\",\"\",IF('Enrollment Form'!B703=\"Subscriber\",\"-\",IF(AND('Enrollment Form'!B703<>\"Subscriber\",'Enrollment Form'!G703='Enrollment Form'!H703),\"N\",\"Y\")))","v":""},0]
[704,{"$f":"IF('Enrollment Form'!$A704<>\"\",\"Y\",\"N\")","v":"N"},{"$f":"IF(AND('Enrollment Form'!$B704=\"\",'Enrollment Form'!$C704<>\"\"),\"N\",IF($B697=\"N\",\"\",\"Y\"))","v":""},{"$f":"IF(OR($B697=\"N\",'Enrollment Form'!G704=\"\"),\"\",IF('Enrollment Form'!$B704<>\"Subscriber\",\"\",IF('Enrollment Form'!$G704='Enrollment Form'!$H704,\"Y\",\"N\")))","v":""},{"$f":"IF($B697=\"N\",\"\",IF(AND(COUNTIFS('Enrollment Form'!$H$11:$H$1000,'Enrollment Form'!$H704,'Enrollment Form'!$B$11:$B$1000,'Enrollment Form'!$B704)>1,'Enrollment Form'!$H704<>\"\"),\"N\",\"Y\"))","v":""},{"$f":"IF($B697=\"N\",\"\",IF(LEN('Enrollment Form'!$Y704)=0,\"\",IF(LEN('Enrollment Form'!$Y704)<>5,\"N\",\"Y\")))","v":""},{"$f":"IF($B697=\"N\",\"\",IF(LEN('Enrollment Form'!$AD704=0),\"\",IF(LEN('Enrollment Form'!$AD704)<>5,\"N\",\"Y\")))","v":""},{"$f":"IF($B697=\"N\",\"\",IF(LEN('Enrollment Form'!$BS704=0),\"\",IF(LEN('Enrollment Form'!$BS704)<>5,\"N\",\"Y\")))","v":""},{"$f":"IF($B697=\"N\",\"\",IF(LEN('Enrollment Form'!$AE704)=0,\"\",IF(LEN('Enrollment Form'!$AE704)<>10,\"N\",\"Y\")))","v":""},{"$f":"IF($B697=\"N\",\"\",IF(LEN('Enrollment Form'!$AF704)=0,\"\",IF(LEN('Enrollment Form'!$AF704)<>10,\"N\",\"Y\")))","v":""},{"$f":"IF('Enrollment Form'!$O704<>\"Graded\",\"-\",IF(AND('Enrollment Form'!$O704=\"Graded\",'Enrollment Form'!$AR704<>\"\"),\"Y\",\"N\"))","v":"-"},{"$f":"IF($B697=\"N\",\"\",IF(OR('Enrollment Form'!$B704<>\"Subscriber\",'Enrollment Form'!$C704=\"ROC\"),\"-\",IF(AND('Enrollment Form'!$B704=\"Subscriber\",'Enrollment Form'!$C704=\"Enroll\",'Enrollment Form'!$AJ704<>\"\"),\"Y\",\"N\")))","v":""},{"$f":"IF($B697=\"N\",\"\",IF(OR('Enrollment Form'!$B704<>\"Subscriber\",'Enrollment Form'!$C704=\"ROC\"),\"-\",IF(AND('Enrollment Form'!$B704=\"Subscriber\",'Enrollment Form'!$C704=\"Enroll\",'Enrollment Form'!$AK704<>\"\"),\"Y\",\"N\")))","v":""},{"$f":"IF($B697=\"N\",\"\",IF(OR('Enrollment Form'!$B704<>\"Subscriber\",'Enrollment Form'!$C704=\"ROC\"),\"-\",IF(AND('Enrollment Form'!$B704=\"Subscriber\",'Enrollment Form'!$C704=\"Enroll\",'Enrollment Form'!$AL704<>\"\"),\"Y\",\"N\")))","v":""},{"$f":"IF($B697=\"N\",\"\",IF(OR('Enrollment Form'!$B704<>\"Subscriber\",'Enrollment Form'!$C704=\"ROC\"),\"-\",IF(AND('Enrollment Form'!$B704=\"Subscriber\",'Enrollment Form'!$C704=\"Enroll\",'Enrollment Form'!$AP704<>\"\"),\"Y\",\"N\")))","v":""},{"$f":"IF($B697=\"N\",\"\",IF(OR('Enrollment Form'!$B704<>\"Subscriber\",'Enrollment Form'!$C704=\"ROC\"),\"-\",IF(AND('Enrollment Form'!$B704=\"Subscriber\",'Enrollment Form'!$C704=\"Enroll\",'Enrollment Form'!$AQ704<>\"\"),\"Y\",\"N\")))","v":""},{"$f":"IF($B697=\"N\",\"\",IF(OR('Enrollment Form'!$B704<>\"Subscriber\",'Enrollment Form'!$C704=\"ROC\"),\"-\",IF(AND('Enrollment Form'!$B704=\"Subscriber\",'Enrollment Form'!$C704=\"Enroll\",'Enrollment Form'!$AS704<>\"\"),\"Y\",\"N\")))","v":""},{"$f":"IF($B697=\"N\",\"\",IF($Q697=\"-\",\"-\",IF(AND($Q697=\"Y\",'Enrollment Form'!$AS704=\"No\"),\"-\",IF(AND($Q697=\"Y\",'Enrollment Form'!$AS704=\"Yes\",'Enrollment Form'!$AT704<>\"\"),\"Y\",\"N\"))))","v":""},{"$f":"IF($B697=\"N\",\"\",IF(OR('Enrollment Form'!$B704<>\"Subscriber\",'Enrollment Form'!$C704=\"ROC\"),\"-\",IF(AND('Enrollment Form'!$B704=\"Subscriber\",'Enrollment Form'!$C704=\"Enroll\",'Enrollment Form'!$CV704<>\"\"),\"Y\",\"N\")))","v":""},{"$f":"IF($B697=\"N\",\"\",IF($S697=\"-\",\"-\",IF(AND($S697=\"Y\",'Enrollment Form'!$CV704=\"No\"),\"-\",IF(AND($S697=\"Y\",'Enrollment Form'!$CV704=\"Yes\",'Enrollment Form'!$CW704<>\"\"),\"Y\",\"N\"))))","v":""},{"$f":"IF(OR('Enrollment Form'!$AY704=\"Yes\",'Enrollment Form'!$AY704=\"\"),\"-\",IF(OR(AND('Enrollment Form'!$AY704=\"No\",ISERROR(FIND(\"HMO\",VLOOKUP('Enrollment Form'!G704,'Enrollment Form'!H$11:J$1000,3,FALSE),1))=FALSE,COUNTA('Enrollment Form'!$AZ704:$BC704)=4),AND('Enrollment Form'!$AY704=\"No\",ISERROR(FIND(\"HMO\",VLOOKUP('Enrollment Form'!G704,'Enrollment Form'!H$11:J$1000,3,FALSE),1))=FALSE,COUNTA('Enrollment Form'!$BT704:$BW704)=4)),\"Y\",\"N\"))","v":"-"},{"$f":"IF($B697=\"N\",\"\",IF('Enrollment Form'!$B704=\"Subscriber\",\"-\",IF(COUNTA('Enrollment Form'!$BL704,'Enrollment Form'!$BN704)=2,\"Y\",\"N\")))","v":""},{"$f":"IF($B697=\"N\",\"\",IF(OR('Enrollment Form'!$AX704=\"\",'Enrollment Form'!$AX704=\"No\"),\"-\",IF(AND('Enrollment Form'!$AX704=\"Yes\",COUNTA('Enrollment Form'!$CR704)=1),\"Y\",\"N\")))","v":""},{"$f":"IF(OR('Enrollment Form'!$CR704=\"\",'Enrollment Form'!$CR704=\"No\"),\"-\",IF(COUNTA('Enrollment Form'!$CT704:$CU704)=2,\"Y\",\"N\"))","v":"-"},{"$f":"IF($B697=\"N\",\"\",IF(COUNTIF('Enrollment Form'!$DG704:$DP704,\"Other\")=COUNTA('Enrollment Form'!$DK704,'Enrollment Form'!$DH704,'Enrollment Form'!$DN704,'Enrollment Form'!$DQ704),\"Y\",\"N\"))","v":""},{"$f":"IF($B697=\"N\",\"\",IF(OR('Enrollment Form'!B704<>\"Subscriber\",'Enrollment Form'!C704=\"ROC\",COUNTIF('Enrollment Form'!AV704:AW704,\"Yes\")>=1),\"-\",IF(AND('Enrollment Form'!C704=\"Enroll\",COUNTIF('Enrollment Form'!AV704:AW704,\"No\")=2,'Enrollment Form'!AX704=\"\"),\"N\",\"Y\")))","v":""},{"$f":"IF(OR(B697=\"N\",'Enrollment Form'!B704<>\"Subscriber\",'Enrollment Form'!C704=\"ROC\",'Enrollment Form'!O704<>\"Multiple of Salary\"),\"-\",IF(COUNTA('Enrollment Form'!T704:U704)<2,\"N\",\"Y\"))","v":"-"},{"$f":"IF(B697=\"N\",\"\",IF(OR('Enrollment Form'!C704=\"ROC\",'Enrollment Form'!B704<>\"Subscriber\",'Enrollment Form'!O704=\"Waive\",'Enrollment Form'!O704=\"\"),\"-\",IF('Enrollment Form'!P704=\"\",\"N\",\"Y\")))","v":""},{"$f":"IF($B697=\"N\",\"\",IF(AND('Enrollment Form'!$C704=\"ROC\",'Enrollment Form'!$DR704<>\"\"),\"Y\",IF(AND('Enrollment Form'!$C704=\"ROC\",'Enrollment Form'!$DR704=\"\"),\"N\",IF(AND('Enrollment Form'!$C704=\"Enroll\",'Enrollment Form'!$B704=\"Subscriber\",'Enrollment Form'!$CX704=\"No\",'Enrollment Form'!$DR704=\"\"),\"N\",IF(AND('Enrollment Form'!$C704=\"Enroll\",'Enrollment Form'!$B704=\"Subscriber\",'Enrollment Form'!$CX704=\"Yes\"),\"-\",\"Y\")))))","v":""},{"$f":"IF($B697=\"N\",\"\",IF(AND('Enrollment Form'!$C704=\"ROC\",'Enrollment Form'!$DS704<>\"\"),\"Y\",IF(AND('Enrollment Form'!$C704=\"ROC\",'Enrollment Form'!$DS704=\"\"),\"N\",IF(AND('Enrollment Form'!$C704=\"Enroll\",'Enrollment Form'!$B704=\"Subscriber\",'Enrollment Form'!$CX704=\"No\",'Enrollment Form'!$DS704=\"\"),\"N\",IF(AND('Enrollment Form'!$C704=\"Enroll\",'Enrollment Form'!$B704=\"Subscriber\",'Enrollment Form'!$CX704=\"Yes\"),\"-\",\"Y\")))))","v":""},{"$f":"IF('Enrollment Form'!AH704=\"\",\"\",IF(ISERROR(SEARCH(\".\",'Enrollment Form'!AH704,SEARCH(\"@\",'Enrollment Form'!AH704))),\"N\",\"Y\"))","v":""},{"$f":"IF(OR($B697=\"N\",'Enrollment Form'!$G704=\"\"),\"\",IF('Enrollment Form'!$B704<>\"Subscriber\",\"-\",IF(COUNTIF('Enrollment Form'!$AV704:$AW704,\"Yes\")=2,\"N\",\"Y\")))","v":""},{"$f":"IF(OR('Enrollment Form'!$CJ704=\"\",'Enrollment Form'!$CJ704=\"No\"),\"-\",IF(AND('Enrollment Form'!$CJ704=\"Yes\",'Enrollment Form'!$CK704=\"\"),\"N\",\"Y\"))","v":"-"},{"$f":"IF(OR('Enrollment Form'!$CL704=\"\",'Enrollment Form'!$CL704=\"No\"),\"-\",IF(AND('Enrollment Form'!$CL704=\"Yes\",'Enrollment Form'!$CM704=\"\"),\"N\",\"Y\"))","v":"-"},{"$f":"IF(OR('Enrollment Form'!$CN704=\"\",'Enrollment Form'!$CN704=\"No\"),\"-\",IF(AND('Enrollment Form'!$CN704=\"Yes\",'Enrollment Form'!$CO704=\"\"),\"N\",\"Y\"))","v":"-"},{"$f":"IF(OR('Enrollment Form'!$CN704=\"\",'Enrollment Form'!$CN704=\"No\"),\"-\",IF(AND('Enrollment Form'!$CN704=\"Yes\",'Enrollment Form'!$CP704=\"\"),\"N\",\"Y\"))","v":"-"},{"$f":"IF('Enrollment Form'!B704<>\"Subscriber\",\"-\",IF(AND('Enrollment Form'!B704=\"Subscriber\",'Enrollment Form'!C704=\"Enroll\",'Enrollment Form'!AA704=\"\"),\"N\",\"Y\"))","v":"-"},{"$f":"IF(OR('Enrollment Form'!B704=\"Subscriber\",'Enrollment Form'!B704=\"\"),\"-\",IF('Enrollment Form'!BP704=\"\",\"N\",\"Y\"))","v":"-"},{"$f":"IF('Enrollment Form'!B704<>\"Subscriber\",\"-\",IF(AND('Enrollment Form'!B704=\"Subscriber\",'Enrollment Form'!G704=\"\"),\"N\",\"Y\"))","v":"-"},{"$f":"IF('Enrollment Form'!A704=\"\",\"\",IF('Enrollment Form'!B704=\"Subscriber\",\"-\",IF(AND('Enrollment Form'!B704<>\"Subscriber\",'Enrollment Form'!G704='Enrollment Form'!H704),\"N\",\"Y\")))","v":""},0]
[705,{"$f":"IF('Enrollment Form'!$A705<>\"\",\"Y\",\"N\")","v":"N"},{"$f":"IF(AND('Enrollment Form'!$B705=\"\",'Enrollment Form'!$C705<>\"\"),\"N\",IF($B698=\"N\",\"\",\"Y\"))","v":""},{"$f":"IF(OR($B698=\"N\",'Enrollment Form'!G705=\"\"),\"\",IF('Enrollment Form'!$B705<>\"Subscriber\",\"\",IF('Enrollment Form'!$G705='Enrollment Form'!$H705,\"Y\",\"N\")))","v":""},{"$f":"IF($B698=\"N\",\"\",IF(AND(COUNTIFS('Enrollment Form'!$H$11:$H$1000,'Enrollment Form'!$H705,'Enrollment Form'!$B$11:$B$1000,'Enrollment Form'!$B705)>1,'Enrollment Form'!$H705<>\"\"),\"N\",\"Y\"))","v":""},{"$f":"IF($B698=\"N\",\"\",IF(LEN('Enrollment Form'!$Y705)=0,\"\",IF(LEN('Enrollment Form'!$Y705)<>5,\"N\",\"Y\")))","v":""},{"$f":"IF($B698=\"N\",\"\",IF(LEN('Enrollment Form'!$AD705=0),\"\",IF(LEN('Enrollment Form'!$AD705)<>5,\"N\",\"Y\")))","v":""},{"$f":"IF($B698=\"N\",\"\",IF(LEN('Enrollment Form'!$BS705=0),\"\",IF(LEN('Enrollment Form'!$BS705)<>5,\"N\",\"Y\")))","v":""},{"$f":"IF($B698=\"N\",\"\",IF(LEN('Enrollment Form'!$AE705)=0,\"\",IF(LEN('Enrollment Form'!$AE705)<>10,\"N\",\"Y\")))","v":""},{"$f":"IF($B698=\"N\",\"\",IF(LEN('Enrollment Form'!$AF705)=0,\"\",IF(LEN('Enrollment Form'!$AF705)<>10,\"N\",\"Y\")))","v":""},{"$f":"IF('Enrollment Form'!$O705<>\"Graded\",\"-\",IF(AND('Enrollment Form'!$O705=\"Graded\",'Enrollment Form'!$AR705<>\"\"),\"Y\",\"N\"))","v":"-"},{"$f":"IF($B698=\"N\",\"\",IF(OR('Enrollment Form'!$B705<>\"Subscriber\",'Enrollment Form'!$C705=\"ROC\"),\"-\",IF(AND('Enrollment Form'!$B705=\"Subscriber\",'Enrollment Form'!$C705=\"Enroll\",'Enrollment Form'!$AJ705<>\"\"),\"Y\",\"N\")))","v":""},{"$f":"IF($B698=\"N\",\"\",IF(OR('Enrollment Form'!$B705<>\"Subscriber\",'Enrollment Form'!$C705=\"ROC\"),\"-\",IF(AND('Enrollment Form'!$B705=\"Subscriber\",'Enrollment Form'!$C705=\"Enroll\",'Enrollment Form'!$AK705<>\"\"),\"Y\",\"N\")))","v":""},{"$f":"IF($B698=\"N\",\"\",IF(OR('Enrollment Form'!$B705<>\"Subscriber\",'Enrollment Form'!$C705=\"ROC\"),\"-\",IF(AND('Enrollment Form'!$B705=\"Subscriber\",'Enrollment Form'!$C705=\"Enroll\",'Enrollment Form'!$AL705<>\"\"),\"Y\",\"N\")))","v":""},{"$f":"IF($B698=\"N\",\"\",IF(OR('Enrollment Form'!$B705<>\"Subscriber\",'Enrollment Form'!$C705=\"ROC\"),\"-\",IF(AND('Enrollment Form'!$B705=\"Subscriber\",'Enrollment Form'!$C705=\"Enroll\",'Enrollment Form'!$AP705<>\"\"),\"Y\",\"N\")))","v":""},{"$f":"IF($B698=\"N\",\"\",IF(OR('Enrollment Form'!$B705<>\"Subscriber\",'Enrollment Form'!$C705=\"ROC\"),\"-\",IF(AND('Enrollment Form'!$B705=\"Subscriber\",'Enrollment Form'!$C705=\"Enroll\",'Enrollment Form'!$AQ705<>\"\"),\"Y\",\"N\")))","v":""},{"$f":"IF($B698=\"N\",\"\",IF(OR('Enrollment Form'!$B705<>\"Subscriber\",'Enrollment Form'!$C705=\"ROC\"),\"-\",IF(AND('Enrollment Form'!$B705=\"Subscriber\",'Enrollment Form'!$C705=\"Enroll\",'Enrollment Form'!$AS705<>\"\"),\"Y\",\"N\")))","v":""},{"$f":"IF($B698=\"N\",\"\",IF($Q698=\"-\",\"-\",IF(AND($Q698=\"Y\",'Enrollment Form'!$AS705=\"No\"),\"-\",IF(AND($Q698=\"Y\",'Enrollment Form'!$AS705=\"Yes\",'Enrollment Form'!$AT705<>\"\"),\"Y\",\"N\"))))","v":""},{"$f":"IF($B698=\"N\",\"\",IF(OR('Enrollment Form'!$B705<>\"Subscriber\",'Enrollment Form'!$C705=\"ROC\"),\"-\",IF(AND('Enrollment Form'!$B705=\"Subscriber\",'Enrollment Form'!$C705=\"Enroll\",'Enrollment Form'!$CV705<>\"\"),\"Y\",\"N\")))","v":""},{"$f":"IF($B698=\"N\",\"\",IF($S698=\"-\",\"-\",IF(AND($S698=\"Y\",'Enrollment Form'!$CV705=\"No\"),\"-\",IF(AND($S698=\"Y\",'Enrollment Form'!$CV705=\"Yes\",'Enrollment Form'!$CW705<>\"\"),\"Y\",\"N\"))))","v":""},{"$f":"IF(OR('Enrollment Form'!$AY705=\"Yes\",'Enrollment Form'!$AY705=\"\"),\"-\",IF(OR(AND('Enrollment Form'!$AY705=\"No\",ISERROR(FIND(\"HMO\",VLOOKUP('Enrollment Form'!G705,'Enrollment Form'!H$11:J$1000,3,FALSE),1))=FALSE,COUNTA('Enrollment Form'!$AZ705:$BC705)=4),AND('Enrollment Form'!$AY705=\"No\",ISERROR(FIND(\"HMO\",VLOOKUP('Enrollment Form'!G705,'Enrollment Form'!H$11:J$1000,3,FALSE),1))=FALSE,COUNTA('Enrollment Form'!$BT705:$BW705)=4)),\"Y\",\"N\"))","v":"-"},{"$f":"IF($B698=\"N\",\"\",IF('Enrollment Form'!$B705=\"Subscriber\",\"-\",IF(COUNTA('Enrollment Form'!$BL705,'Enrollment Form'!$BN705)=2,\"Y\",\"N\")))","v":""},{"$f":"IF($B698=\"N\",\"\",IF(OR('Enrollment Form'!$AX705=\"\",'Enrollment Form'!$AX705=\"No\"),\"-\",IF(AND('Enrollment Form'!$AX705=\"Yes\",COUNTA('Enrollment Form'!$CR705)=1),\"Y\",\"N\")))","v":""},{"$f":"IF(OR('Enrollment Form'!$CR705=\"\",'Enrollment Form'!$CR705=\"No\"),\"-\",IF(COUNTA('Enrollment Form'!$CT705:$CU705)=2,\"Y\",\"N\"))","v":"-"},{"$f":"IF($B698=\"N\",\"\",IF(COUNTIF('Enrollment Form'!$DG705:$DP705,\"Other\")=COUNTA('Enrollment Form'!$DK705,'Enrollment Form'!$DH705,'Enrollment Form'!$DN705,'Enrollment Form'!$DQ705),\"Y\",\"N\"))","v":""},{"$f":"IF($B698=\"N\",\"\",IF(OR('Enrollment Form'!B705<>\"Subscriber\",'Enrollment Form'!C705=\"ROC\",COUNTIF('Enrollment Form'!AV705:AW705,\"Yes\")>=1),\"-\",IF(AND('Enrollment Form'!C705=\"Enroll\",COUNTIF('Enrollment Form'!AV705:AW705,\"No\")=2,'Enrollment Form'!AX705=\"\"),\"N\",\"Y\")))","v":""},{"$f":"IF(OR(B698=\"N\",'Enrollment Form'!B705<>\"Subscriber\",'Enrollment Form'!C705=\"ROC\",'Enrollment Form'!O705<>\"Multiple of Salary\"),\"-\",IF(COUNTA('Enrollment Form'!T705:U705)<2,\"N\",\"Y\"))","v":"-"},{"$f":"IF(B698=\"N\",\"\",IF(OR('Enrollment Form'!C705=\"ROC\",'Enrollment Form'!B705<>\"Subscriber\",'Enrollment Form'!O705=\"Waive\",'Enrollment Form'!O705=\"\"),\"-\",IF('Enrollment Form'!P705=\"\",\"N\",\"Y\")))","v":""},{"$f":"IF($B698=\"N\",\"\",IF(AND('Enrollment Form'!$C705=\"ROC\",'Enrollment Form'!$DR705<>\"\"),\"Y\",IF(AND('Enrollment Form'!$C705=\"ROC\",'Enrollment Form'!$DR705=\"\"),\"N\",IF(AND('Enrollment Form'!$C705=\"Enroll\",'Enrollment Form'!$B705=\"Subscriber\",'Enrollment Form'!$CX705=\"No\",'Enrollment Form'!$DR705=\"\"),\"N\",IF(AND('Enrollment Form'!$C705=\"Enroll\",'Enrollment Form'!$B705=\"Subscriber\",'Enrollment Form'!$CX705=\"Yes\"),\"-\",\"Y\")))))","v":""},{"$f":"IF($B698=\"N\",\"\",IF(AND('Enrollment Form'!$C705=\"ROC\",'Enrollment Form'!$DS705<>\"\"),\"Y\",IF(AND('Enrollment Form'!$C705=\"ROC\",'Enrollment Form'!$DS705=\"\"),\"N\",IF(AND('Enrollment Form'!$C705=\"Enroll\",'Enrollment Form'!$B705=\"Subscriber\",'Enrollment Form'!$CX705=\"No\",'Enrollment Form'!$DS705=\"\"),\"N\",IF(AND('Enrollment Form'!$C705=\"Enroll\",'Enrollment Form'!$B705=\"Subscriber\",'Enrollment Form'!$CX705=\"Yes\"),\"-\",\"Y\")))))","v":""},{"$f":"IF('Enrollment Form'!AH705=\"\",\"\",IF(ISERROR(SEARCH(\".\",'Enrollment Form'!AH705,SEARCH(\"@\",'Enrollment Form'!AH705))),\"N\",\"Y\"))","v":""},{"$f":"IF(OR($B698=\"N\",'Enrollment Form'!$G705=\"\"),\"\",IF('Enrollment Form'!$B705<>\"Subscriber\",\"-\",IF(COUNTIF('Enrollment Form'!$AV705:$AW705,\"Yes\")=2,\"N\",\"Y\")))","v":""},{"$f":"IF(OR('Enrollment Form'!$CJ705=\"\",'Enrollment Form'!$CJ705=\"No\"),\"-\",IF(AND('Enrollment Form'!$CJ705=\"Yes\",'Enrollment Form'!$CK705=\"\"),\"N\",\"Y\"))","v":"-"},{"$f":"IF(OR('Enrollment Form'!$CL705=\"\",'Enrollment Form'!$CL705=\"No\"),\"-\",IF(AND('Enrollment Form'!$CL705=\"Yes\",'Enrollment Form'!$CM705=\"\"),\"N\",\"Y\"))","v":"-"},{"$f":"IF(OR('Enrollment Form'!$CN705=\"\",'Enrollment Form'!$CN705=\"No\"),\"-\",IF(AND('Enrollment Form'!$CN705=\"Yes\",'Enrollment Form'!$CO705=\"\"),\"N\",\"Y\"))","v":"-"},{"$f":"IF(OR('Enrollment Form'!$CN705=\"\",'Enrollment Form'!$CN705=\"No\"),\"-\",IF(AND('Enrollment Form'!$CN705=\"Yes\",'Enrollment Form'!$CP705=\"\"),\"N\",\"Y\"))","v":"-"},{"$f":"IF('Enrollment Form'!B705<>\"Subscriber\",\"-\",IF(AND('Enrollment Form'!B705=\"Subscriber\",'Enrollment Form'!C705=\"Enroll\",'Enrollment Form'!AA705=\"\"),\"N\",\"Y\"))","v":"-"},{"$f":"IF(OR('Enrollment Form'!B705=\"Subscriber\",'Enrollment Form'!B705=\"\"),\"-\",IF('Enrollment Form'!BP705=\"\",\"N\",\"Y\"))","v":"-"},{"$f":"IF('Enrollment Form'!B705<>\"Subscriber\",\"-\",IF(AND('Enrollment Form'!B705=\"Subscriber\",'Enrollment Form'!G705=\"\"),\"N\",\"Y\"))","v":"-"},{"$f":"IF('Enrollment Form'!A705=\"\",\"\",IF('Enrollment Form'!B705=\"Subscriber\",\"-\",IF(AND('Enrollment Form'!B705<>\"Subscriber\",'Enrollment Form'!G705='Enrollment Form'!H705),\"N\",\"Y\")))","v":""},0]
[706,{"$f":"IF('Enrollment Form'!$A706<>\"\",\"Y\",\"N\")","v":"N"},{"$f":"IF(AND('Enrollment Form'!$B706=\"\",'Enrollment Form'!$C706<>\"\"),\"N\",IF($B699=\"N\",\"\",\"Y\"))","v":""},{"$f":"IF(OR($B699=\"N\",'Enrollment Form'!G706=\"\"),\"\",IF('Enrollment Form'!$B706<>\"Subscriber\",\"\",IF('Enrollment Form'!$G706='Enrollment Form'!$H706,\"Y\",\"N\")))","v":""},{"$f":"IF($B699=\"N\",\"\",IF(AND(COUNTIFS('Enrollment Form'!$H$11:$H$1000,'Enrollment Form'!$H706,'Enrollment Form'!$B$11:$B$1000,'Enrollment Form'!$B706)>1,'Enrollment Form'!$H706<>\"\"),\"N\",\"Y\"))","v":""},{"$f":"IF($B699=\"N\",\"\",IF(LEN('Enrollment Form'!$Y706)=0,\"\",IF(LEN('Enrollment Form'!$Y706)<>5,\"N\",\"Y\")))","v":""},{"$f":"IF($B699=\"N\",\"\",IF(LEN('Enrollment Form'!$AD706=0),\"\",IF(LEN('Enrollment Form'!$AD706)<>5,\"N\",\"Y\")))","v":""},{"$f":"IF($B699=\"N\",\"\",IF(LEN('Enrollment Form'!$BS706=0),\"\",IF(LEN('Enrollment Form'!$BS706)<>5,\"N\",\"Y\")))","v":""},{"$f":"IF($B699=\"N\",\"\",IF(LEN('Enrollment Form'!$AE706)=0,\"\",IF(LEN('Enrollment Form'!$AE706)<>10,\"N\",\"Y\")))","v":""},{"$f":"IF($B699=\"N\",\"\",IF(LEN('Enrollment Form'!$AF706)=0,\"\",IF(LEN('Enrollment Form'!$AF706)<>10,\"N\",\"Y\")))","v":""},{"$f":"IF('Enrollment Form'!$O706<>\"Graded\",\"-\",IF(AND('Enrollment Form'!$O706=\"Graded\",'Enrollment Form'!$AR706<>\"\"),\"Y\",\"N\"))","v":"-"},{"$f":"IF($B699=\"N\",\"\",IF(OR('Enrollment Form'!$B706<>\"Subscriber\",'Enrollment Form'!$C706=\"ROC\"),\"-\",IF(AND('Enrollment Form'!$B706=\"Subscriber\",'Enrollment Form'!$C706=\"Enroll\",'Enrollment Form'!$AJ706<>\"\"),\"Y\",\"N\")))","v":""},{"$f":"IF($B699=\"N\",\"\",IF(OR('Enrollment Form'!$B706<>\"Subscriber\",'Enrollment Form'!$C706=\"ROC\"),\"-\",IF(AND('Enrollment Form'!$B706=\"Subscriber\",'Enrollment Form'!$C706=\"Enroll\",'Enrollment Form'!$AK706<>\"\"),\"Y\",\"N\")))","v":""},{"$f":"IF($B699=\"N\",\"\",IF(OR('Enrollment Form'!$B706<>\"Subscriber\",'Enrollment Form'!$C706=\"ROC\"),\"-\",IF(AND('Enrollment Form'!$B706=\"Subscriber\",'Enrollment Form'!$C706=\"Enroll\",'Enrollment Form'!$AL706<>\"\"),\"Y\",\"N\")))","v":""},{"$f":"IF($B699=\"N\",\"\",IF(OR('Enrollment Form'!$B706<>\"Subscriber\",'Enrollment Form'!$C706=\"ROC\"),\"-\",IF(AND('Enrollment Form'!$B706=\"Subscriber\",'Enrollment Form'!$C706=\"Enroll\",'Enrollment Form'!$AP706<>\"\"),\"Y\",\"N\")))","v":""},{"$f":"IF($B699=\"N\",\"\",IF(OR('Enrollment Form'!$B706<>\"Subscriber\",'Enrollment Form'!$C706=\"ROC\"),\"-\",IF(AND('Enrollment Form'!$B706=\"Subscriber\",'Enrollment Form'!$C706=\"Enroll\",'Enrollment Form'!$AQ706<>\"\"),\"Y\",\"N\")))","v":""},{"$f":"IF($B699=\"N\",\"\",IF(OR('Enrollment Form'!$B706<>\"Subscriber\",'Enrollment Form'!$C706=\"ROC\"),\"-\",IF(AND('Enrollment Form'!$B706=\"Subscriber\",'Enrollment Form'!$C706=\"Enroll\",'Enrollment Form'!$AS706<>\"\"),\"Y\",\"N\")))","v":""},{"$f":"IF($B699=\"N\",\"\",IF($Q699=\"-\",\"-\",IF(AND($Q699=\"Y\",'Enrollment Form'!$AS706=\"No\"),\"-\",IF(AND($Q699=\"Y\",'Enrollment Form'!$AS706=\"Yes\",'Enrollment Form'!$AT706<>\"\"),\"Y\",\"N\"))))","v":""},{"$f":"IF($B699=\"N\",\"\",IF(OR('Enrollment Form'!$B706<>\"Subscriber\",'Enrollment Form'!$C706=\"ROC\"),\"-\",IF(AND('Enrollment Form'!$B706=\"Subscriber\",'Enrollment Form'!$C706=\"Enroll\",'Enrollment Form'!$CV706<>\"\"),\"Y\",\"N\")))","v":""},{"$f":"IF($B699=\"N\",\"\",IF($S699=\"-\",\"-\",IF(AND($S699=\"Y\",'Enrollment Form'!$CV706=\"No\"),\"-\",IF(AND($S699=\"Y\",'Enrollment Form'!$CV706=\"Yes\",'Enrollment Form'!$CW706<>\"\"),\"Y\",\"N\"))))","v":""},{"$f":"IF(OR('Enrollment Form'!$AY706=\"Yes\",'Enrollment Form'!$AY706=\"\"),\"-\",IF(OR(AND('Enrollment Form'!$AY706=\"No\",ISERROR(FIND(\"HMO\",VLOOKUP('Enrollment Form'!G706,'Enrollment Form'!H$11:J$1000,3,FALSE),1))=FALSE,COUNTA('Enrollment Form'!$AZ706:$BC706)=4),AND('Enrollment Form'!$AY706=\"No\",ISERROR(FIND(\"HMO\",VLOOKUP('Enrollment Form'!G706,'Enrollment Form'!H$11:J$1000,3,FALSE),1))=FALSE,COUNTA('Enrollment Form'!$BT706:$BW706)=4)),\"Y\",\"N\"))","v":"-"},{"$f":"IF($B699=\"N\",\"\",IF('Enrollment Form'!$B706=\"Subscriber\",\"-\",IF(COUNTA('Enrollment Form'!$BL706,'Enrollment Form'!$BN706)=2,\"Y\",\"N\")))","v":""},{"$f":"IF($B699=\"N\",\"\",IF(OR('Enrollment Form'!$AX706=\"\",'Enrollment Form'!$AX706=\"No\"),\"-\",IF(AND('Enrollment Form'!$AX706=\"Yes\",COUNTA('Enrollment Form'!$CR706)=1),\"Y\",\"N\")))","v":""},{"$f":"IF(OR('Enrollment Form'!$CR706=\"\",'Enrollment Form'!$CR706=\"No\"),\"-\",IF(COUNTA('Enrollment Form'!$CT706:$CU706)=2,\"Y\",\"N\"))","v":"-"},{"$f":"IF($B699=\"N\",\"\",IF(COUNTIF('Enrollment Form'!$DG706:$DP706,\"Other\")=COUNTA('Enrollment Form'!$DK706,'Enrollment Form'!$DH706,'Enrollment Form'!$DN706,'Enrollment Form'!$DQ706),\"Y\",\"N\"))","v":""},{"$f":"IF($B699=\"N\",\"\",IF(OR('Enrollment Form'!B706<>\"Subscriber\",'Enrollment Form'!C706=\"ROC\",COUNTIF('Enrollment Form'!AV706:AW706,\"Yes\")>=1),\"-\",IF(AND('Enrollment Form'!C706=\"Enroll\",COUNTIF('Enrollment Form'!AV706:AW706,\"No\")=2,'Enrollment Form'!AX706=\"\"),\"N\",\"Y\")))","v":""},{"$f":"IF(OR(B699=\"N\",'Enrollment Form'!B706<>\"Subscriber\",'Enrollment Form'!C706=\"ROC\",'Enrollment Form'!O706<>\"Multiple of Salary\"),\"-\",IF(COUNTA('Enrollment Form'!T706:U706)<2,\"N\",\"Y\"))","v":"-"},{"$f":"IF(B699=\"N\",\"\",IF(OR('Enrollment Form'!C706=\"ROC\",'Enrollment Form'!B706<>\"Subscriber\",'Enrollment Form'!O706=\"Waive\",'Enrollment Form'!O706=\"\"),\"-\",IF('Enrollment Form'!P706=\"\",\"N\",\"Y\")))","v":""},{"$f":"IF($B699=\"N\",\"\",IF(AND('Enrollment Form'!$C706=\"ROC\",'Enrollment Form'!$DR706<>\"\"),\"Y\",IF(AND('Enrollment Form'!$C706=\"ROC\",'Enrollment Form'!$DR706=\"\"),\"N\",IF(AND('Enrollment Form'!$C706=\"Enroll\",'Enrollment Form'!$B706=\"Subscriber\",'Enrollment Form'!$CX706=\"No\",'Enrollment Form'!$DR706=\"\"),\"N\",IF(AND('Enrollment Form'!$C706=\"Enroll\",'Enrollment Form'!$B706=\"Subscriber\",'Enrollment Form'!$CX706=\"Yes\"),\"-\",\"Y\")))))","v":""},{"$f":"IF($B699=\"N\",\"\",IF(AND('Enrollment Form'!$C706=\"ROC\",'Enrollment Form'!$DS706<>\"\"),\"Y\",IF(AND('Enrollment Form'!$C706=\"ROC\",'Enrollment Form'!$DS706=\"\"),\"N\",IF(AND('Enrollment Form'!$C706=\"Enroll\",'Enrollment Form'!$B706=\"Subscriber\",'Enrollment Form'!$CX706=\"No\",'Enrollment Form'!$DS706=\"\"),\"N\",IF(AND('Enrollment Form'!$C706=\"Enroll\",'Enrollment Form'!$B706=\"Subscriber\",'Enrollment Form'!$CX706=\"Yes\"),\"-\",\"Y\")))))","v":""},{"$f":"IF('Enrollment Form'!AH706=\"\",\"\",IF(ISERROR(SEARCH(\".\",'Enrollment Form'!AH706,SEARCH(\"@\",'Enrollment Form'!AH706))),\"N\",\"Y\"))","v":""},{"$f":"IF(OR($B699=\"N\",'Enrollment Form'!$G706=\"\"),\"\",IF('Enrollment Form'!$B706<>\"Subscriber\",\"-\",IF(COUNTIF('Enrollment Form'!$AV706:$AW706,\"Yes\")=2,\"N\",\"Y\")))","v":""},{"$f":"IF(OR('Enrollment Form'!$CJ706=\"\",'Enrollment Form'!$CJ706=\"No\"),\"-\",IF(AND('Enrollment Form'!$CJ706=\"Yes\",'Enrollment Form'!$CK706=\"\"),\"N\",\"Y\"))","v":"-"},{"$f":"IF(OR('Enrollment Form'!$CL706=\"\",'Enrollment Form'!$CL706=\"No\"),\"-\",IF(AND('Enrollment Form'!$CL706=\"Yes\",'Enrollment Form'!$CM706=\"\"),\"N\",\"Y\"))","v":"-"},{"$f":"IF(OR('Enrollment Form'!$CN706=\"\",'Enrollment Form'!$CN706=\"No\"),\"-\",IF(AND('Enrollment Form'!$CN706=\"Yes\",'Enrollment Form'!$CO706=\"\"),\"N\",\"Y\"))","v":"-"},{"$f":"IF(OR('Enrollment Form'!$CN706=\"\",'Enrollment Form'!$CN706=\"No\"),\"-\",IF(AND('Enrollment Form'!$CN706=\"Yes\",'Enrollment Form'!$CP706=\"\"),\"N\",\"Y\"))","v":"-"},{"$f":"IF('Enrollment Form'!B706<>\"Subscriber\",\"-\",IF(AND('Enrollment Form'!B706=\"Subscriber\",'Enrollment Form'!C706=\"Enroll\",'Enrollment Form'!AA706=\"\"),\"N\",\"Y\"))","v":"-"},{"$f":"IF(OR('Enrollment Form'!B706=\"Subscriber\",'Enrollment Form'!B706=\"\"),\"-\",IF('Enrollment Form'!BP706=\"\",\"N\",\"Y\"))","v":"-"},{"$f":"IF('Enrollment Form'!B706<>\"Subscriber\",\"-\",IF(AND('Enrollment Form'!B706=\"Subscriber\",'Enrollment Form'!G706=\"\"),\"N\",\"Y\"))","v":"-"},{"$f":"IF('Enrollment Form'!A706=\"\",\"\",IF('Enrollment Form'!B706=\"Subscriber\",\"-\",IF(AND('Enrollment Form'!B706<>\"Subscriber\",'Enrollment Form'!G706='Enrollment Form'!H706),\"N\",\"Y\")))","v":""},0]
[707,{"$f":"IF('Enrollment Form'!$A707<>\"\",\"Y\",\"N\")","v":"N"},{"$f":"IF(AND('Enrollment Form'!$B707=\"\",'Enrollment Form'!$C707<>\"\"),\"N\",IF($B700=\"N\",\"\",\"Y\"))","v":""},{"$f":"IF(OR($B700=\"N\",'Enrollment Form'!G707=\"\"),\"\",IF('Enrollment Form'!$B707<>\"Subscriber\",\"\",IF('Enrollment Form'!$G707='Enrollment Form'!$H707,\"Y\",\"N\")))","v":""},{"$f":"IF($B700=\"N\",\"\",IF(AND(COUNTIFS('Enrollment Form'!$H$11:$H$1000,'Enrollment Form'!$H707,'Enrollment Form'!$B$11:$B$1000,'Enrollment Form'!$B707)>1,'Enrollment Form'!$H707<>\"\"),\"N\",\"Y\"))","v":""},{"$f":"IF($B700=\"N\",\"\",IF(LEN('Enrollment Form'!$Y707)=0,\"\",IF(LEN('Enrollment Form'!$Y707)<>5,\"N\",\"Y\")))","v":""},{"$f":"IF($B700=\"N\",\"\",IF(LEN('Enrollment Form'!$AD707=0),\"\",IF(LEN('Enrollment Form'!$AD707)<>5,\"N\",\"Y\")))","v":""},{"$f":"IF($B700=\"N\",\"\",IF(LEN('Enrollment Form'!$BS707=0),\"\",IF(LEN('Enrollment Form'!$BS707)<>5,\"N\",\"Y\")))","v":""},{"$f":"IF($B700=\"N\",\"\",IF(LEN('Enrollment Form'!$AE707)=0,\"\",IF(LEN('Enrollment Form'!$AE707)<>10,\"N\",\"Y\")))","v":""},{"$f":"IF($B700=\"N\",\"\",IF(LEN('Enrollment Form'!$AF707)=0,\"\",IF(LEN('Enrollment Form'!$AF707)<>10,\"N\",\"Y\")))","v":""},{"$f":"IF('Enrollment Form'!$O707<>\"Graded\",\"-\",IF(AND('Enrollment Form'!$O707=\"Graded\",'Enrollment Form'!$AR707<>\"\"),\"Y\",\"N\"))","v":"-"},{"$f":"IF($B700=\"N\",\"\",IF(OR('Enrollment Form'!$B707<>\"Subscriber\",'Enrollment Form'!$C707=\"ROC\"),\"-\",IF(AND('Enrollment Form'!$B707=\"Subscriber\",'Enrollment Form'!$C707=\"Enroll\",'Enrollment Form'!$AJ707<>\"\"),\"Y\",\"N\")))","v":""},{"$f":"IF($B700=\"N\",\"\",IF(OR('Enrollment Form'!$B707<>\"Subscriber\",'Enrollment Form'!$C707=\"ROC\"),\"-\",IF(AND('Enrollment Form'!$B707=\"Subscriber\",'Enrollment Form'!$C707=\"Enroll\",'Enrollment Form'!$AK707<>\"\"),\"Y\",\"N\")))","v":""},{"$f":"IF($B700=\"N\",\"\",IF(OR('Enrollment Form'!$B707<>\"Subscriber\",'Enrollment Form'!$C707=\"ROC\"),\"-\",IF(AND('Enrollment Form'!$B707=\"Subscriber\",'Enrollment Form'!$C707=\"Enroll\",'Enrollment Form'!$AL707<>\"\"),\"Y\",\"N\")))","v":""},{"$f":"IF($B700=\"N\",\"\",IF(OR('Enrollment Form'!$B707<>\"Subscriber\",'Enrollment Form'!$C707=\"ROC\"),\"-\",IF(AND('Enrollment Form'!$B707=\"Subscriber\",'Enrollment Form'!$C707=\"Enroll\",'Enrollment Form'!$AP707<>\"\"),\"Y\",\"N\")))","v":""},{"$f":"IF($B700=\"N\",\"\",IF(OR('Enrollment Form'!$B707<>\"Subscriber\",'Enrollment Form'!$C707=\"ROC\"),\"-\",IF(AND('Enrollment Form'!$B707=\"Subscriber\",'Enrollment Form'!$C707=\"Enroll\",'Enrollment Form'!$AQ707<>\"\"),\"Y\",\"N\")))","v":""},{"$f":"IF($B700=\"N\",\"\",IF(OR('Enrollment Form'!$B707<>\"Subscriber\",'Enrollment Form'!$C707=\"ROC\"),\"-\",IF(AND('Enrollment Form'!$B707=\"Subscriber\",'Enrollment Form'!$C707=\"Enroll\",'Enrollment Form'!$AS707<>\"\"),\"Y\",\"N\")))","v":""},{"$f":"IF($B700=\"N\",\"\",IF($Q700=\"-\",\"-\",IF(AND($Q700=\"Y\",'Enrollment Form'!$AS707=\"No\"),\"-\",IF(AND($Q700=\"Y\",'Enrollment Form'!$AS707=\"Yes\",'Enrollment Form'!$AT707<>\"\"),\"Y\",\"N\"))))","v":""},{"$f":"IF($B700=\"N\",\"\",IF(OR('Enrollment Form'!$B707<>\"Subscriber\",'Enrollment Form'!$C707=\"ROC\"),\"-\",IF(AND('Enrollment Form'!$B707=\"Subscriber\",'Enrollment Form'!$C707=\"Enroll\",'Enrollment Form'!$CV707<>\"\"),\"Y\",\"N\")))","v":""},{"$f":"IF($B700=\"N\",\"\",IF($S700=\"-\",\"-\",IF(AND($S700=\"Y\",'Enrollment Form'!$CV707=\"No\"),\"-\",IF(AND($S700=\"Y\",'Enrollment Form'!$CV707=\"Yes\",'Enrollment Form'!$CW707<>\"\"),\"Y\",\"N\"))))","v":""},{"$f":"IF(OR('Enrollment Form'!$AY707=\"Yes\",'Enrollment Form'!$AY707=\"\"),\"-\",IF(OR(AND('Enrollment Form'!$AY707=\"No\",ISERROR(FIND(\"HMO\",VLOOKUP('Enrollment Form'!G707,'Enrollment Form'!H$11:J$1000,3,FALSE),1))=FALSE,COUNTA('Enrollment Form'!$AZ707:$BC707)=4),AND('Enrollment Form'!$AY707=\"No\",ISERROR(FIND(\"HMO\",VLOOKUP('Enrollment Form'!G707,'Enrollment Form'!H$11:J$1000,3,FALSE),1))=FALSE,COUNTA('Enrollment Form'!$BT707:$BW707)=4)),\"Y\",\"N\"))","v":"-"},{"$f":"IF($B700=\"N\",\"\",IF('Enrollment Form'!$B707=\"Subscriber\",\"-\",IF(COUNTA('Enrollment Form'!$BL707,'Enrollment Form'!$BN707)=2,\"Y\",\"N\")))","v":""},{"$f":"IF($B700=\"N\",\"\",IF(OR('Enrollment Form'!$AX707=\"\",'Enrollment Form'!$AX707=\"No\"),\"-\",IF(AND('Enrollment Form'!$AX707=\"Yes\",COUNTA('Enrollment Form'!$CR707)=1),\"Y\",\"N\")))","v":""},{"$f":"IF(OR('Enrollment Form'!$CR707=\"\",'Enrollment Form'!$CR707=\"No\"),\"-\",IF(COUNTA('Enrollment Form'!$CT707:$CU707)=2,\"Y\",\"N\"))","v":"-"},{"$f":"IF($B700=\"N\",\"\",IF(COUNTIF('Enrollment Form'!$DG707:$DP707,\"Other\")=COUNTA('Enrollment Form'!$DK707,'Enrollment Form'!$DH707,'Enrollment Form'!$DN707,'Enrollment Form'!$DQ707),\"Y\",\"N\"))","v":""},{"$f":"IF($B700=\"N\",\"\",IF(OR('Enrollment Form'!B707<>\"Subscriber\",'Enrollment Form'!C707=\"ROC\",COUNTIF('Enrollment Form'!AV707:AW707,\"Yes\")>=1),\"-\",IF(AND('Enrollment Form'!C707=\"Enroll\",COUNTIF('Enrollment Form'!AV707:AW707,\"No\")=2,'Enrollment Form'!AX707=\"\"),\"N\",\"Y\")))","v":""},{"$f":"IF(OR(B700=\"N\",'Enrollment Form'!B707<>\"Subscriber\",'Enrollment Form'!C707=\"ROC\",'Enrollment Form'!O707<>\"Multiple of Salary\"),\"-\",IF(COUNTA('Enrollment Form'!T707:U707)<2,\"N\",\"Y\"))","v":"-"},{"$f":"IF(B700=\"N\",\"\",IF(OR('Enrollment Form'!C707=\"ROC\",'Enrollment Form'!B707<>\"Subscriber\",'Enrollment Form'!O707=\"Waive\",'Enrollment Form'!O707=\"\"),\"-\",IF('Enrollment Form'!P707=\"\",\"N\",\"Y\")))","v":""},{"$f":"IF($B700=\"N\",\"\",IF(AND('Enrollment Form'!$C707=\"ROC\",'Enrollment Form'!$DR707<>\"\"),\"Y\",IF(AND('Enrollment Form'!$C707=\"ROC\",'Enrollment Form'!$DR707=\"\"),\"N\",IF(AND('Enrollment Form'!$C707=\"Enroll\",'Enrollment Form'!$B707=\"Subscriber\",'Enrollment Form'!$CX707=\"No\",'Enrollment Form'!$DR707=\"\"),\"N\",IF(AND('Enrollment Form'!$C707=\"Enroll\",'Enrollment Form'!$B707=\"Subscriber\",'Enrollment Form'!$CX707=\"Yes\"),\"-\",\"Y\")))))","v":""},{"$f":"IF($B700=\"N\",\"\",IF(AND('Enrollment Form'!$C707=\"ROC\",'Enrollment Form'!$DS707<>\"\"),\"Y\",IF(AND('Enrollment Form'!$C707=\"ROC\",'Enrollment Form'!$DS707=\"\"),\"N\",IF(AND('Enrollment Form'!$C707=\"Enroll\",'Enrollment Form'!$B707=\"Subscriber\",'Enrollment Form'!$CX707=\"No\",'Enrollment Form'!$DS707=\"\"),\"N\",IF(AND('Enrollment Form'!$C707=\"Enroll\",'Enrollment Form'!$B707=\"Subscriber\",'Enrollment Form'!$CX707=\"Yes\"),\"-\",\"Y\")))))","v":""},{"$f":"IF('Enrollment Form'!AH707=\"\",\"\",IF(ISERROR(SEARCH(\".\",'Enrollment Form'!AH707,SEARCH(\"@\",'Enrollment Form'!AH707))),\"N\",\"Y\"))","v":""},{"$f":"IF(OR($B700=\"N\",'Enrollment Form'!$G707=\"\"),\"\",IF('Enrollment Form'!$B707<>\"Subscriber\",\"-\",IF(COUNTIF('Enrollment Form'!$AV707:$AW707,\"Yes\")=2,\"N\",\"Y\")))","v":""},{"$f":"IF(OR('Enrollment Form'!$CJ707=\"\",'Enrollment Form'!$CJ707=\"No\"),\"-\",IF(AND('Enrollment Form'!$CJ707=\"Yes\",'Enrollment Form'!$CK707=\"\"),\"N\",\"Y\"))","v":"-"},{"$f":"IF(OR('Enrollment Form'!$CL707=\"\",'Enrollment Form'!$CL707=\"No\"),\"-\",IF(AND('Enrollment Form'!$CL707=\"Yes\",'Enrollment Form'!$CM707=\"\"),\"N\",\"Y\"))","v":"-"},{"$f":"IF(OR('Enrollment Form'!$CN707=\"\",'Enrollment Form'!$CN707=\"No\"),\"-\",IF(AND('Enrollment Form'!$CN707=\"Yes\",'Enrollment Form'!$CO707=\"\"),\"N\",\"Y\"))","v":"-"},{"$f":"IF(OR('Enrollment Form'!$CN707=\"\",'Enrollment Form'!$CN707=\"No\"),\"-\",IF(AND('Enrollment Form'!$CN707=\"Yes\",'Enrollment Form'!$CP707=\"\"),\"N\",\"Y\"))","v":"-"},{"$f":"IF('Enrollment Form'!B707<>\"Subscriber\",\"-\",IF(AND('Enrollment Form'!B707=\"Subscriber\",'Enrollment Form'!C707=\"Enroll\",'Enrollment Form'!AA707=\"\"),\"N\",\"Y\"))","v":"-"},{"$f":"IF(OR('Enrollment Form'!B707=\"Subscriber\",'Enrollment Form'!B707=\"\"),\"-\",IF('Enrollment Form'!BP707=\"\",\"N\",\"Y\"))","v":"-"},{"$f":"IF('Enrollment Form'!B707<>\"Subscriber\",\"-\",IF(AND('Enrollment Form'!B707=\"Subscriber\",'Enrollment Form'!G707=\"\"),\"N\",\"Y\"))","v":"-"},{"$f":"IF('Enrollment Form'!A707=\"\",\"\",IF('Enrollment Form'!B707=\"Subscriber\",\"-\",IF(AND('Enrollment Form'!B707<>\"Subscriber\",'Enrollment Form'!G707='Enrollment Form'!H707),\"N\",\"Y\")))","v":""},0]
[708,{"$f":"IF('Enrollment Form'!$A708<>\"\",\"Y\",\"N\")","v":"N"},{"$f":"IF(AND('Enrollment Form'!$B708=\"\",'Enrollment Form'!$C708<>\"\"),\"N\",IF($B701=\"N\",\"\",\"Y\"))","v":""},{"$f":"IF(OR($B701=\"N\",'Enrollment Form'!G708=\"\"),\"\",IF('Enrollment Form'!$B708<>\"Subscriber\",\"\",IF('Enrollment Form'!$G708='Enrollment Form'!$H708,\"Y\",\"N\")))","v":""},{"$f":"IF($B701=\"N\",\"\",IF(AND(COUNTIFS('Enrollment Form'!$H$11:$H$1000,'Enrollment Form'!$H708,'Enrollment Form'!$B$11:$B$1000,'Enrollment Form'!$B708)>1,'Enrollment Form'!$H708<>\"\"),\"N\",\"Y\"))","v":""},{"$f":"IF($B701=\"N\",\"\",IF(LEN('Enrollment Form'!$Y708)=0,\"\",IF(LEN('Enrollment Form'!$Y708)<>5,\"N\",\"Y\")))","v":""},{"$f":"IF($B701=\"N\",\"\",IF(LEN('Enrollment Form'!$AD708=0),\"\",IF(LEN('Enrollment Form'!$AD708)<>5,\"N\",\"Y\")))","v":""},{"$f":"IF($B701=\"N\",\"\",IF(LEN('Enrollment Form'!$BS708=0),\"\",IF(LEN('Enrollment Form'!$BS708)<>5,\"N\",\"Y\")))","v":""},{"$f":"IF($B701=\"N\",\"\",IF(LEN('Enrollment Form'!$AE708)=0,\"\",IF(LEN('Enrollment Form'!$AE708)<>10,\"N\",\"Y\")))","v":""},{"$f":"IF($B701=\"N\",\"\",IF(LEN('Enrollment Form'!$AF708)=0,\"\",IF(LEN('Enrollment Form'!$AF708)<>10,\"N\",\"Y\")))","v":""},{"$f":"IF('Enrollment Form'!$O708<>\"Graded\",\"-\",IF(AND('Enrollment Form'!$O708=\"Graded\",'Enrollment Form'!$AR708<>\"\"),\"Y\",\"N\"))","v":"-"},{"$f":"IF($B701=\"N\",\"\",IF(OR('Enrollment Form'!$B708<>\"Subscriber\",'Enrollment Form'!$C708=\"ROC\"),\"-\",IF(AND('Enrollment Form'!$B708=\"Subscriber\",'Enrollment Form'!$C708=\"Enroll\",'Enrollment Form'!$AJ708<>\"\"),\"Y\",\"N\")))","v":""},{"$f":"IF($B701=\"N\",\"\",IF(OR('Enrollment Form'!$B708<>\"Subscriber\",'Enrollment Form'!$C708=\"ROC\"),\"-\",IF(AND('Enrollment Form'!$B708=\"Subscriber\",'Enrollment Form'!$C708=\"Enroll\",'Enrollment Form'!$AK708<>\"\"),\"Y\",\"N\")))","v":""},{"$f":"IF($B701=\"N\",\"\",IF(OR('Enrollment Form'!$B708<>\"Subscriber\",'Enrollment Form'!$C708=\"ROC\"),\"-\",IF(AND('Enrollment Form'!$B708=\"Subscriber\",'Enrollment Form'!$C708=\"Enroll\",'Enrollment Form'!$AL708<>\"\"),\"Y\",\"N\")))","v":""},{"$f":"IF($B701=\"N\",\"\",IF(OR('Enrollment Form'!$B708<>\"Subscriber\",'Enrollment Form'!$C708=\"ROC\"),\"-\",IF(AND('Enrollment Form'!$B708=\"Subscriber\",'Enrollment Form'!$C708=\"Enroll\",'Enrollment Form'!$AP708<>\"\"),\"Y\",\"N\")))","v":""},{"$f":"IF($B701=\"N\",\"\",IF(OR('Enrollment Form'!$B708<>\"Subscriber\",'Enrollment Form'!$C708=\"ROC\"),\"-\",IF(AND('Enrollment Form'!$B708=\"Subscriber\",'Enrollment Form'!$C708=\"Enroll\",'Enrollment Form'!$AQ708<>\"\"),\"Y\",\"N\")))","v":""},{"$f":"IF($B701=\"N\",\"\",IF(OR('Enrollment Form'!$B708<>\"Subscriber\",'Enrollment Form'!$C708=\"ROC\"),\"-\",IF(AND('Enrollment Form'!$B708=\"Subscriber\",'Enrollment Form'!$C708=\"Enroll\",'Enrollment Form'!$AS708<>\"\"),\"Y\",\"N\")))","v":""},{"$f":"IF($B701=\"N\",\"\",IF($Q701=\"-\",\"-\",IF(AND($Q701=\"Y\",'Enrollment Form'!$AS708=\"No\"),\"-\",IF(AND($Q701=\"Y\",'Enrollment Form'!$AS708=\"Yes\",'Enrollment Form'!$AT708<>\"\"),\"Y\",\"N\"))))","v":""},{"$f":"IF($B701=\"N\",\"\",IF(OR('Enrollment Form'!$B708<>\"Subscriber\",'Enrollment Form'!$C708=\"ROC\"),\"-\",IF(AND('Enrollment Form'!$B708=\"Subscriber\",'Enrollment Form'!$C708=\"Enroll\",'Enrollment Form'!$CV708<>\"\"),\"Y\",\"N\")))","v":""},{"$f":"IF($B701=\"N\",\"\",IF($S701=\"-\",\"-\",IF(AND($S701=\"Y\",'Enrollment Form'!$CV708=\"No\"),\"-\",IF(AND($S701=\"Y\",'Enrollment Form'!$CV708=\"Yes\",'Enrollment Form'!$CW708<>\"\"),\"Y\",\"N\"))))","v":""},{"$f":"IF(OR('Enrollment Form'!$AY708=\"Yes\",'Enrollment Form'!$AY708=\"\"),\"-\",IF(OR(AND('Enrollment Form'!$AY708=\"No\",ISERROR(FIND(\"HMO\",VLOOKUP('Enrollment Form'!G708,'Enrollment Form'!H$11:J$1000,3,FALSE),1))=FALSE,COUNTA('Enrollment Form'!$AZ708:$BC708)=4),AND('Enrollment Form'!$AY708=\"No\",ISERROR(FIND(\"HMO\",VLOOKUP('Enrollment Form'!G708,'Enrollment Form'!H$11:J$1000,3,FALSE),1))=FALSE,COUNTA('Enrollment Form'!$BT708:$BW708)=4)),\"Y\",\"N\"))","v":"-"},{"$f":"IF($B701=\"N\",\"\",IF('Enrollment Form'!$B708=\"Subscriber\",\"-\",IF(COUNTA('Enrollment Form'!$BL708,'Enrollment Form'!$BN708)=2,\"Y\",\"N\")))","v":""},{"$f":"IF($B701=\"N\",\"\",IF(OR('Enrollment Form'!$AX708=\"\",'Enrollment Form'!$AX708=\"No\"),\"-\",IF(AND('Enrollment Form'!$AX708=\"Yes\",COUNTA('Enrollment Form'!$CR708)=1),\"Y\",\"N\")))","v":""},{"$f":"IF(OR('Enrollment Form'!$CR708=\"\",'Enrollment Form'!$CR708=\"No\"),\"-\",IF(COUNTA('Enrollment Form'!$CT708:$CU708)=2,\"Y\",\"N\"))","v":"-"},{"$f":"IF($B701=\"N\",\"\",IF(COUNTIF('Enrollment Form'!$DG708:$DP708,\"Other\")=COUNTA('Enrollment Form'!$DK708,'Enrollment Form'!$DH708,'Enrollment Form'!$DN708,'Enrollment Form'!$DQ708),\"Y\",\"N\"))","v":""},{"$f":"IF($B701=\"N\",\"\",IF(OR('Enrollment Form'!B708<>\"Subscriber\",'Enrollment Form'!C708=\"ROC\",COUNTIF('Enrollment Form'!AV708:AW708,\"Yes\")>=1),\"-\",IF(AND('Enrollment Form'!C708=\"Enroll\",COUNTIF('Enrollment Form'!AV708:AW708,\"No\")=2,'Enrollment Form'!AX708=\"\"),\"N\",\"Y\")))","v":""},{"$f":"IF(OR(B701=\"N\",'Enrollment Form'!B708<>\"Subscriber\",'Enrollment Form'!C708=\"ROC\",'Enrollment Form'!O708<>\"Multiple of Salary\"),\"-\",IF(COUNTA('Enrollment Form'!T708:U708)<2,\"N\",\"Y\"))","v":"-"},{"$f":"IF(B701=\"N\",\"\",IF(OR('Enrollment Form'!C708=\"ROC\",'Enrollment Form'!B708<>\"Subscriber\",'Enrollment Form'!O708=\"Waive\",'Enrollment Form'!O708=\"\"),\"-\",IF('Enrollment Form'!P708=\"\",\"N\",\"Y\")))","v":""},{"$f":"IF($B701=\"N\",\"\",IF(AND('Enrollment Form'!$C708=\"ROC\",'Enrollment Form'!$DR708<>\"\"),\"Y\",IF(AND('Enrollment Form'!$C708=\"ROC\",'Enrollment Form'!$DR708=\"\"),\"N\",IF(AND('Enrollment Form'!$C708=\"Enroll\",'Enrollment Form'!$B708=\"Subscriber\",'Enrollment Form'!$CX708=\"No\",'Enrollment Form'!$DR708=\"\"),\"N\",IF(AND('Enrollment Form'!$C708=\"Enroll\",'Enrollment Form'!$B708=\"Subscriber\",'Enrollment Form'!$CX708=\"Yes\"),\"-\",\"Y\")))))","v":""},{"$f":"IF($B701=\"N\",\"\",IF(AND('Enrollment Form'!$C708=\"ROC\",'Enrollment Form'!$DS708<>\"\"),\"Y\",IF(AND('Enrollment Form'!$C708=\"ROC\",'Enrollment Form'!$DS708=\"\"),\"N\",IF(AND('Enrollment Form'!$C708=\"Enroll\",'Enrollment Form'!$B708=\"Subscriber\",'Enrollment Form'!$CX708=\"No\",'Enrollment Form'!$DS708=\"\"),\"N\",IF(AND('Enrollment Form'!$C708=\"Enroll\",'Enrollment Form'!$B708=\"Subscriber\",'Enrollment Form'!$CX708=\"Yes\"),\"-\",\"Y\")))))","v":""},{"$f":"IF('Enrollment Form'!AH708=\"\",\"\",IF(ISERROR(SEARCH(\".\",'Enrollment Form'!AH708,SEARCH(\"@\",'Enrollment Form'!AH708))),\"N\",\"Y\"))","v":""},{"$f":"IF(OR($B701=\"N\",'Enrollment Form'!$G708=\"\"),\"\",IF('Enrollment Form'!$B708<>\"Subscriber\",\"-\",IF(COUNTIF('Enrollment Form'!$AV708:$AW708,\"Yes\")=2,\"N\",\"Y\")))","v":""},{"$f":"IF(OR('Enrollment Form'!$CJ708=\"\",'Enrollment Form'!$CJ708=\"No\"),\"-\",IF(AND('Enrollment Form'!$CJ708=\"Yes\",'Enrollment Form'!$CK708=\"\"),\"N\",\"Y\"))","v":"-"},{"$f":"IF(OR('Enrollment Form'!$CL708=\"\",'Enrollment Form'!$CL708=\"No\"),\"-\",IF(AND('Enrollment Form'!$CL708=\"Yes\",'Enrollment Form'!$CM708=\"\"),\"N\",\"Y\"))","v":"-"},{"$f":"IF(OR('Enrollment Form'!$CN708=\"\",'Enrollment Form'!$CN708=\"No\"),\"-\",IF(AND('Enrollment Form'!$CN708=\"Yes\",'Enrollment Form'!$CO708=\"\"),\"N\",\"Y\"))","v":"-"},{"$f":"IF(OR('Enrollment Form'!$CN708=\"\",'Enrollment Form'!$CN708=\"No\"),\"-\",IF(AND('Enrollment Form'!$CN708=\"Yes\",'Enrollment Form'!$CP708=\"\"),\"N\",\"Y\"))","v":"-"},{"$f":"IF('Enrollment Form'!B708<>\"Subscriber\",\"-\",IF(AND('Enrollment Form'!B708=\"Subscriber\",'Enrollment Form'!C708=\"Enroll\",'Enrollment Form'!AA708=\"\"),\"N\",\"Y\"))","v":"-"},{"$f":"IF(OR('Enrollment Form'!B708=\"Subscriber\",'Enrollment Form'!B708=\"\"),\"-\",IF('Enrollment Form'!BP708=\"\",\"N\",\"Y\"))","v":"-"},{"$f":"IF('Enrollment Form'!B708<>\"Subscriber\",\"-\",IF(AND('Enrollment Form'!B708=\"Subscriber\",'Enrollment Form'!G708=\"\"),\"N\",\"Y\"))","v":"-"},{"$f":"IF('Enrollment Form'!A708=\"\",\"\",IF('Enrollment Form'!B708=\"Subscriber\",\"-\",IF(AND('Enrollment Form'!B708<>\"Subscriber\",'Enrollment Form'!G708='Enrollment Form'!H708),\"N\",\"Y\")))","v":""},0]
[709,{"$f":"IF('Enrollment Form'!$A709<>\"\",\"Y\",\"N\")","v":"N"},{"$f":"IF(AND('Enrollment Form'!$B709=\"\",'Enrollment Form'!$C709<>\"\"),\"N\",IF($B702=\"N\",\"\",\"Y\"))","v":""},{"$f":"IF(OR($B702=\"N\",'Enrollment Form'!G709=\"\"),\"\",IF('Enrollment Form'!$B709<>\"Subscriber\",\"\",IF('Enrollment Form'!$G709='Enrollment Form'!$H709,\"Y\",\"N\")))","v":""},{"$f":"IF($B702=\"N\",\"\",IF(AND(COUNTIFS('Enrollment Form'!$H$11:$H$1000,'Enrollment Form'!$H709,'Enrollment Form'!$B$11:$B$1000,'Enrollment Form'!$B709)>1,'Enrollment Form'!$H709<>\"\"),\"N\",\"Y\"))","v":""},{"$f":"IF($B702=\"N\",\"\",IF(LEN('Enrollment Form'!$Y709)=0,\"\",IF(LEN('Enrollment Form'!$Y709)<>5,\"N\",\"Y\")))","v":""},{"$f":"IF($B702=\"N\",\"\",IF(LEN('Enrollment Form'!$AD709=0),\"\",IF(LEN('Enrollment Form'!$AD709)<>5,\"N\",\"Y\")))","v":""},{"$f":"IF($B702=\"N\",\"\",IF(LEN('Enrollment Form'!$BS709=0),\"\",IF(LEN('Enrollment Form'!$BS709)<>5,\"N\",\"Y\")))","v":""},{"$f":"IF($B702=\"N\",\"\",IF(LEN('Enrollment Form'!$AE709)=0,\"\",IF(LEN('Enrollment Form'!$AE709)<>10,\"N\",\"Y\")))","v":""},{"$f":"IF($B702=\"N\",\"\",IF(LEN('Enrollment Form'!$AF709)=0,\"\",IF(LEN('Enrollment Form'!$AF709)<>10,\"N\",\"Y\")))","v":""},{"$f":"IF('Enrollment Form'!$O709<>\"Graded\",\"-\",IF(AND('Enrollment Form'!$O709=\"Graded\",'Enrollment Form'!$AR709<>\"\"),\"Y\",\"N\"))","v":"-"},{"$f":"IF($B702=\"N\",\"\",IF(OR('Enrollment Form'!$B709<>\"Subscriber\",'Enrollment Form'!$C709=\"ROC\"),\"-\",IF(AND('Enrollment Form'!$B709=\"Subscriber\",'Enrollment Form'!$C709=\"Enroll\",'Enrollment Form'!$AJ709<>\"\"),\"Y\",\"N\")))","v":""},{"$f":"IF($B702=\"N\",\"\",IF(OR('Enrollment Form'!$B709<>\"Subscriber\",'Enrollment Form'!$C709=\"ROC\"),\"-\",IF(AND('Enrollment Form'!$B709=\"Subscriber\",'Enrollment Form'!$C709=\"Enroll\",'Enrollment Form'!$AK709<>\"\"),\"Y\",\"N\")))","v":""},{"$f":"IF($B702=\"N\",\"\",IF(OR('Enrollment Form'!$B709<>\"Subscriber\",'Enrollment Form'!$C709=\"ROC\"),\"-\",IF(AND('Enrollment Form'!$B709=\"Subscriber\",'Enrollment Form'!$C709=\"Enroll\",'Enrollment Form'!$AL709<>\"\"),\"Y\",\"N\")))","v":""},{"$f":"IF($B702=\"N\",\"\",IF(OR('Enrollment Form'!$B709<>\"Subscriber\",'Enrollment Form'!$C709=\"ROC\"),\"-\",IF(AND('Enrollment Form'!$B709=\"Subscriber\",'Enrollment Form'!$C709=\"Enroll\",'Enrollment Form'!$AP709<>\"\"),\"Y\",\"N\")))","v":""},{"$f":"IF($B702=\"N\",\"\",IF(OR('Enrollment Form'!$B709<>\"Subscriber\",'Enrollment Form'!$C709=\"ROC\"),\"-\",IF(AND('Enrollment Form'!$B709=\"Subscriber\",'Enrollment Form'!$C709=\"Enroll\",'Enrollment Form'!$AQ709<>\"\"),\"Y\",\"N\")))","v":""},{"$f":"IF($B702=\"N\",\"\",IF(OR('Enrollment Form'!$B709<>\"Subscriber\",'Enrollment Form'!$C709=\"ROC\"),\"-\",IF(AND('Enrollment Form'!$B709=\"Subscriber\",'Enrollment Form'!$C709=\"Enroll\",'Enrollment Form'!$AS709<>\"\"),\"Y\",\"N\")))","v":""},{"$f":"IF($B702=\"N\",\"\",IF($Q702=\"-\",\"-\",IF(AND($Q702=\"Y\",'Enrollment Form'!$AS709=\"No\"),\"-\",IF(AND($Q702=\"Y\",'Enrollment Form'!$AS709=\"Yes\",'Enrollment Form'!$AT709<>\"\"),\"Y\",\"N\"))))","v":""},{"$f":"IF($B702=\"N\",\"\",IF(OR('Enrollment Form'!$B709<>\"Subscriber\",'Enrollment Form'!$C709=\"ROC\"),\"-\",IF(AND('Enrollment Form'!$B709=\"Subscriber\",'Enrollment Form'!$C709=\"Enroll\",'Enrollment Form'!$CV709<>\"\"),\"Y\",\"N\")))","v":""},{"$f":"IF($B702=\"N\",\"\",IF($S702=\"-\",\"-\",IF(AND($S702=\"Y\",'Enrollment Form'!$CV709=\"No\"),\"-\",IF(AND($S702=\"Y\",'Enrollment Form'!$CV709=\"Yes\",'Enrollment Form'!$CW709<>\"\"),\"Y\",\"N\"))))","v":""},{"$f":"IF(OR('Enrollment Form'!$AY709=\"Yes\",'Enrollment Form'!$AY709=\"\"),\"-\",IF(OR(AND('Enrollment Form'!$AY709=\"No\",ISERROR(FIND(\"HMO\",VLOOKUP('Enrollment Form'!G709,'Enrollment Form'!H$11:J$1000,3,FALSE),1))=FALSE,COUNTA('Enrollment Form'!$AZ709:$BC709)=4),AND('Enrollment Form'!$AY709=\"No\",ISERROR(FIND(\"HMO\",VLOOKUP('Enrollment Form'!G709,'Enrollment Form'!H$11:J$1000,3,FALSE),1))=FALSE,COUNTA('Enrollment Form'!$BT709:$BW709)=4)),\"Y\",\"N\"))","v":"-"},{"$f":"IF($B702=\"N\",\"\",IF('Enrollment Form'!$B709=\"Subscriber\",\"-\",IF(COUNTA('Enrollment Form'!$BL709,'Enrollment Form'!$BN709)=2,\"Y\",\"N\")))","v":""},{"$f":"IF($B702=\"N\",\"\",IF(OR('Enrollment Form'!$AX709=\"\",'Enrollment Form'!$AX709=\"No\"),\"-\",IF(AND('Enrollment Form'!$AX709=\"Yes\",COUNTA('Enrollment Form'!$CR709)=1),\"Y\",\"N\")))","v":""},{"$f":"IF(OR('Enrollment Form'!$CR709=\"\",'Enrollment Form'!$CR709=\"No\"),\"-\",IF(COUNTA('Enrollment Form'!$CT709:$CU709)=2,\"Y\",\"N\"))","v":"-"},{"$f":"IF($B702=\"N\",\"\",IF(COUNTIF('Enrollment Form'!$DG709:$DP709,\"Other\")=COUNTA('Enrollment Form'!$DK709,'Enrollment Form'!$DH709,'Enrollment Form'!$DN709,'Enrollment Form'!$DQ709),\"Y\",\"N\"))","v":""},{"$f":"IF($B702=\"N\",\"\",IF(OR('Enrollment Form'!B709<>\"Subscriber\",'Enrollment Form'!C709=\"ROC\",COUNTIF('Enrollment Form'!AV709:AW709,\"Yes\")>=1),\"-\",IF(AND('Enrollment Form'!C709=\"Enroll\",COUNTIF('Enrollment Form'!AV709:AW709,\"No\")=2,'Enrollment Form'!AX709=\"\"),\"N\",\"Y\")))","v":""},{"$f":"IF(OR(B702=\"N\",'Enrollment Form'!B709<>\"Subscriber\",'Enrollment Form'!C709=\"ROC\",'Enrollment Form'!O709<>\"Multiple of Salary\"),\"-\",IF(COUNTA('Enrollment Form'!T709:U709)<2,\"N\",\"Y\"))","v":"-"},{"$f":"IF(B702=\"N\",\"\",IF(OR('Enrollment Form'!C709=\"ROC\",'Enrollment Form'!B709<>\"Subscriber\",'Enrollment Form'!O709=\"Waive\",'Enrollment Form'!O709=\"\"),\"-\",IF('Enrollment Form'!P709=\"\",\"N\",\"Y\")))","v":""},{"$f":"IF($B702=\"N\",\"\",IF(AND('Enrollment Form'!$C709=\"ROC\",'Enrollment Form'!$DR709<>\"\"),\"Y\",IF(AND('Enrollment Form'!$C709=\"ROC\",'Enrollment Form'!$DR709=\"\"),\"N\",IF(AND('Enrollment Form'!$C709=\"Enroll\",'Enrollment Form'!$B709=\"Subscriber\",'Enrollment Form'!$CX709=\"No\",'Enrollment Form'!$DR709=\"\"),\"N\",IF(AND('Enrollment Form'!$C709=\"Enroll\",'Enrollment Form'!$B709=\"Subscriber\",'Enrollment Form'!$CX709=\"Yes\"),\"-\",\"Y\")))))","v":""},{"$f":"IF($B702=\"N\",\"\",IF(AND('Enrollment Form'!$C709=\"ROC\",'Enrollment Form'!$DS709<>\"\"),\"Y\",IF(AND('Enrollment Form'!$C709=\"ROC\",'Enrollment Form'!$DS709=\"\"),\"N\",IF(AND('Enrollment Form'!$C709=\"Enroll\",'Enrollment Form'!$B709=\"Subscriber\",'Enrollment Form'!$CX709=\"No\",'Enrollment Form'!$DS709=\"\"),\"N\",IF(AND('Enrollment Form'!$C709=\"Enroll\",'Enrollment Form'!$B709=\"Subscriber\",'Enrollment Form'!$CX709=\"Yes\"),\"-\",\"Y\")))))","v":""},{"$f":"IF('Enrollment Form'!AH709=\"\",\"\",IF(ISERROR(SEARCH(\".\",'Enrollment Form'!AH709,SEARCH(\"@\",'Enrollment Form'!AH709))),\"N\",\"Y\"))","v":""},{"$f":"IF(OR($B702=\"N\",'Enrollment Form'!$G709=\"\"),\"\",IF('Enrollment Form'!$B709<>\"Subscriber\",\"-\",IF(COUNTIF('Enrollment Form'!$AV709:$AW709,\"Yes\")=2,\"N\",\"Y\")))","v":""},{"$f":"IF(OR('Enrollment Form'!$CJ709=\"\",'Enrollment Form'!$CJ709=\"No\"),\"-\",IF(AND('Enrollment Form'!$CJ709=\"Yes\",'Enrollment Form'!$CK709=\"\"),\"N\",\"Y\"))","v":"-"},{"$f":"IF(OR('Enrollment Form'!$CL709=\"\",'Enrollment Form'!$CL709=\"No\"),\"-\",IF(AND('Enrollment Form'!$CL709=\"Yes\",'Enrollment Form'!$CM709=\"\"),\"N\",\"Y\"))","v":"-"},{"$f":"IF(OR('Enrollment Form'!$CN709=\"\",'Enrollment Form'!$CN709=\"No\"),\"-\",IF(AND('Enrollment Form'!$CN709=\"Yes\",'Enrollment Form'!$CO709=\"\"),\"N\",\"Y\"))","v":"-"},{"$f":"IF(OR('Enrollment Form'!$CN709=\"\",'Enrollment Form'!$CN709=\"No\"),\"-\",IF(AND('Enrollment Form'!$CN709=\"Yes\",'Enrollment Form'!$CP709=\"\"),\"N\",\"Y\"))","v":"-"},{"$f":"IF('Enrollment Form'!B709<>\"Subscriber\",\"-\",IF(AND('Enrollment Form'!B709=\"Subscriber\",'Enrollment Form'!C709=\"Enroll\",'Enrollment Form'!AA709=\"\"),\"N\",\"Y\"))","v":"-"},{"$f":"IF(OR('Enrollment Form'!B709=\"Subscriber\",'Enrollment Form'!B709=\"\"),\"-\",IF('Enrollment Form'!BP709=\"\",\"N\",\"Y\"))","v":"-"},{"$f":"IF('Enrollment Form'!B709<>\"Subscriber\",\"-\",IF(AND('Enrollment Form'!B709=\"Subscriber\",'Enrollment Form'!G709=\"\"),\"N\",\"Y\"))","v":"-"},{"$f":"IF('Enrollment Form'!A709=\"\",\"\",IF('Enrollment Form'!B709=\"Subscriber\",\"-\",IF(AND('Enrollment Form'!B709<>\"Subscriber\",'Enrollment Form'!G709='Enrollment Form'!H709),\"N\",\"Y\")))","v":""},0]
[710,{"$f":"IF('Enrollment Form'!$A710<>\"\",\"Y\",\"N\")","v":"N"},{"$f":"IF(AND('Enrollment Form'!$B710=\"\",'Enrollment Form'!$C710<>\"\"),\"N\",IF($B703=\"N\",\"\",\"Y\"))","v":""},{"$f":"IF(OR($B703=\"N\",'Enrollment Form'!G710=\"\"),\"\",IF('Enrollment Form'!$B710<>\"Subscriber\",\"\",IF('Enrollment Form'!$G710='Enrollment Form'!$H710,\"Y\",\"N\")))","v":""},{"$f":"IF($B703=\"N\",\"\",IF(AND(COUNTIFS('Enrollment Form'!$H$11:$H$1000,'Enrollment Form'!$H710,'Enrollment Form'!$B$11:$B$1000,'Enrollment Form'!$B710)>1,'Enrollment Form'!$H710<>\"\"),\"N\",\"Y\"))","v":""},{"$f":"IF($B703=\"N\",\"\",IF(LEN('Enrollment Form'!$Y710)=0,\"\",IF(LEN('Enrollment Form'!$Y710)<>5,\"N\",\"Y\")))","v":""},{"$f":"IF($B703=\"N\",\"\",IF(LEN('Enrollment Form'!$AD710=0),\"\",IF(LEN('Enrollment Form'!$AD710)<>5,\"N\",\"Y\")))","v":""},{"$f":"IF($B703=\"N\",\"\",IF(LEN('Enrollment Form'!$BS710=0),\"\",IF(LEN('Enrollment Form'!$BS710)<>5,\"N\",\"Y\")))","v":""},{"$f":"IF($B703=\"N\",\"\",IF(LEN('Enrollment Form'!$AE710)=0,\"\",IF(LEN('Enrollment Form'!$AE710)<>10,\"N\",\"Y\")))","v":""},{"$f":"IF($B703=\"N\",\"\",IF(LEN('Enrollment Form'!$AF710)=0,\"\",IF(LEN('Enrollment Form'!$AF710)<>10,\"N\",\"Y\")))","v":""},{"$f":"IF('Enrollment Form'!$O710<>\"Graded\",\"-\",IF(AND('Enrollment Form'!$O710=\"Graded\",'Enrollment Form'!$AR710<>\"\"),\"Y\",\"N\"))","v":"-"},{"$f":"IF($B703=\"N\",\"\",IF(OR('Enrollment Form'!$B710<>\"Subscriber\",'Enrollment Form'!$C710=\"ROC\"),\"-\",IF(AND('Enrollment Form'!$B710=\"Subscriber\",'Enrollment Form'!$C710=\"Enroll\",'Enrollment Form'!$AJ710<>\"\"),\"Y\",\"N\")))","v":""},{"$f":"IF($B703=\"N\",\"\",IF(OR('Enrollment Form'!$B710<>\"Subscriber\",'Enrollment Form'!$C710=\"ROC\"),\"-\",IF(AND('Enrollment Form'!$B710=\"Subscriber\",'Enrollment Form'!$C710=\"Enroll\",'Enrollment Form'!$AK710<>\"\"),\"Y\",\"N\")))","v":""},{"$f":"IF($B703=\"N\",\"\",IF(OR('Enrollment Form'!$B710<>\"Subscriber\",'Enrollment Form'!$C710=\"ROC\"),\"-\",IF(AND('Enrollment Form'!$B710=\"Subscriber\",'Enrollment Form'!$C710=\"Enroll\",'Enrollment Form'!$AL710<>\"\"),\"Y\",\"N\")))","v":""},{"$f":"IF($B703=\"N\",\"\",IF(OR('Enrollment Form'!$B710<>\"Subscriber\",'Enrollment Form'!$C710=\"ROC\"),\"-\",IF(AND('Enrollment Form'!$B710=\"Subscriber\",'Enrollment Form'!$C710=\"Enroll\",'Enrollment Form'!$AP710<>\"\"),\"Y\",\"N\")))","v":""},{"$f":"IF($B703=\"N\",\"\",IF(OR('Enrollment Form'!$B710<>\"Subscriber\",'Enrollment Form'!$C710=\"ROC\"),\"-\",IF(AND('Enrollment Form'!$B710=\"Subscriber\",'Enrollment Form'!$C710=\"Enroll\",'Enrollment Form'!$AQ710<>\"\"),\"Y\",\"N\")))","v":""},{"$f":"IF($B703=\"N\",\"\",IF(OR('Enrollment Form'!$B710<>\"Subscriber\",'Enrollment Form'!$C710=\"ROC\"),\"-\",IF(AND('Enrollment Form'!$B710=\"Subscriber\",'Enrollment Form'!$C710=\"Enroll\",'Enrollment Form'!$AS710<>\"\"),\"Y\",\"N\")))","v":""},{"$f":"IF($B703=\"N\",\"\",IF($Q703=\"-\",\"-\",IF(AND($Q703=\"Y\",'Enrollment Form'!$AS710=\"No\"),\"-\",IF(AND($Q703=\"Y\",'Enrollment Form'!$AS710=\"Yes\",'Enrollment Form'!$AT710<>\"\"),\"Y\",\"N\"))))","v":""},{"$f":"IF($B703=\"N\",\"\",IF(OR('Enrollment Form'!$B710<>\"Subscriber\",'Enrollment Form'!$C710=\"ROC\"),\"-\",IF(AND('Enrollment Form'!$B710=\"Subscriber\",'Enrollment Form'!$C710=\"Enroll\",'Enrollment Form'!$CV710<>\"\"),\"Y\",\"N\")))","v":""},{"$f":"IF($B703=\"N\",\"\",IF($S703=\"-\",\"-\",IF(AND($S703=\"Y\",'Enrollment Form'!$CV710=\"No\"),\"-\",IF(AND($S703=\"Y\",'Enrollment Form'!$CV710=\"Yes\",'Enrollment Form'!$CW710<>\"\"),\"Y\",\"N\"))))","v":""},{"$f":"IF(OR('Enrollment Form'!$AY710=\"Yes\",'Enrollment Form'!$AY710=\"\"),\"-\",IF(OR(AND('Enrollment Form'!$AY710=\"No\",ISERROR(FIND(\"HMO\",VLOOKUP('Enrollment Form'!G710,'Enrollment Form'!H$11:J$1000,3,FALSE),1))=FALSE,COUNTA('Enrollment Form'!$AZ710:$BC710)=4),AND('Enrollment Form'!$AY710=\"No\",ISERROR(FIND(\"HMO\",VLOOKUP('Enrollment Form'!G710,'Enrollment Form'!H$11:J$1000,3,FALSE),1))=FALSE,COUNTA('Enrollment Form'!$BT710:$BW710)=4)),\"Y\",\"N\"))","v":"-"},{"$f":"IF($B703=\"N\",\"\",IF('Enrollment Form'!$B710=\"Subscriber\",\"-\",IF(COUNTA('Enrollment Form'!$BL710,'Enrollment Form'!$BN710)=2,\"Y\",\"N\")))","v":""},{"$f":"IF($B703=\"N\",\"\",IF(OR('Enrollment Form'!$AX710=\"\",'Enrollment Form'!$AX710=\"No\"),\"-\",IF(AND('Enrollment Form'!$AX710=\"Yes\",COUNTA('Enrollment Form'!$CR710)=1),\"Y\",\"N\")))","v":""},{"$f":"IF(OR('Enrollment Form'!$CR710=\"\",'Enrollment Form'!$CR710=\"No\"),\"-\",IF(COUNTA('Enrollment Form'!$CT710:$CU710)=2,\"Y\",\"N\"))","v":"-"},{"$f":"IF($B703=\"N\",\"\",IF(COUNTIF('Enrollment Form'!$DG710:$DP710,\"Other\")=COUNTA('Enrollment Form'!$DK710,'Enrollment Form'!$DH710,'Enrollment Form'!$DN710,'Enrollment Form'!$DQ710),\"Y\",\"N\"))","v":""},{"$f":"IF($B703=\"N\",\"\",IF(OR('Enrollment Form'!B710<>\"Subscriber\",'Enrollment Form'!C710=\"ROC\",COUNTIF('Enrollment Form'!AV710:AW710,\"Yes\")>=1),\"-\",IF(AND('Enrollment Form'!C710=\"Enroll\",COUNTIF('Enrollment Form'!AV710:AW710,\"No\")=2,'Enrollment Form'!AX710=\"\"),\"N\",\"Y\")))","v":""},{"$f":"IF(OR(B703=\"N\",'Enrollment Form'!B710<>\"Subscriber\",'Enrollment Form'!C710=\"ROC\",'Enrollment Form'!O710<>\"Multiple of Salary\"),\"-\",IF(COUNTA('Enrollment Form'!T710:U710)<2,\"N\",\"Y\"))","v":"-"},{"$f":"IF(B703=\"N\",\"\",IF(OR('Enrollment Form'!C710=\"ROC\",'Enrollment Form'!B710<>\"Subscriber\",'Enrollment Form'!O710=\"Waive\",'Enrollment Form'!O710=\"\"),\"-\",IF('Enrollment Form'!P710=\"\",\"N\",\"Y\")))","v":""},{"$f":"IF($B703=\"N\",\"\",IF(AND('Enrollment Form'!$C710=\"ROC\",'Enrollment Form'!$DR710<>\"\"),\"Y\",IF(AND('Enrollment Form'!$C710=\"ROC\",'Enrollment Form'!$DR710=\"\"),\"N\",IF(AND('Enrollment Form'!$C710=\"Enroll\",'Enrollment Form'!$B710=\"Subscriber\",'Enrollment Form'!$CX710=\"No\",'Enrollment Form'!$DR710=\"\"),\"N\",IF(AND('Enrollment Form'!$C710=\"Enroll\",'Enrollment Form'!$B710=\"Subscriber\",'Enrollment Form'!$CX710=\"Yes\"),\"-\",\"Y\")))))","v":""},{"$f":"IF($B703=\"N\",\"\",IF(AND('Enrollment Form'!$C710=\"ROC\",'Enrollment Form'!$DS710<>\"\"),\"Y\",IF(AND('Enrollment Form'!$C710=\"ROC\",'Enrollment Form'!$DS710=\"\"),\"N\",IF(AND('Enrollment Form'!$C710=\"Enroll\",'Enrollment Form'!$B710=\"Subscriber\",'Enrollment Form'!$CX710=\"No\",'Enrollment Form'!$DS710=\"\"),\"N\",IF(AND('Enrollment Form'!$C710=\"Enroll\",'Enrollment Form'!$B710=\"Subscriber\",'Enrollment Form'!$CX710=\"Yes\"),\"-\",\"Y\")))))","v":""},{"$f":"IF('Enrollment Form'!AH710=\"\",\"\",IF(ISERROR(SEARCH(\".\",'Enrollment Form'!AH710,SEARCH(\"@\",'Enrollment Form'!AH710))),\"N\",\"Y\"))","v":""},{"$f":"IF(OR($B703=\"N\",'Enrollment Form'!$G710=\"\"),\"\",IF('Enrollment Form'!$B710<>\"Subscriber\",\"-\",IF(COUNTIF('Enrollment Form'!$AV710:$AW710,\"Yes\")=2,\"N\",\"Y\")))","v":""},{"$f":"IF(OR('Enrollment Form'!$CJ710=\"\",'Enrollment Form'!$CJ710=\"No\"),\"-\",IF(AND('Enrollment Form'!$CJ710=\"Yes\",'Enrollment Form'!$CK710=\"\"),\"N\",\"Y\"))","v":"-"},{"$f":"IF(OR('Enrollment Form'!$CL710=\"\",'Enrollment Form'!$CL710=\"No\"),\"-\",IF(AND('Enrollment Form'!$CL710=\"Yes\",'Enrollment Form'!$CM710=\"\"),\"N\",\"Y\"))","v":"-"},{"$f":"IF(OR('Enrollment Form'!$CN710=\"\",'Enrollment Form'!$CN710=\"No\"),\"-\",IF(AND('Enrollment Form'!$CN710=\"Yes\",'Enrollment Form'!$CO710=\"\"),\"N\",\"Y\"))","v":"-"},{"$f":"IF(OR('Enrollment Form'!$CN710=\"\",'Enrollment Form'!$CN710=\"No\"),\"-\",IF(AND('Enrollment Form'!$CN710=\"Yes\",'Enrollment Form'!$CP710=\"\"),\"N\",\"Y\"))","v":"-"},{"$f":"IF('Enrollment Form'!B710<>\"Subscriber\",\"-\",IF(AND('Enrollment Form'!B710=\"Subscriber\",'Enrollment Form'!C710=\"Enroll\",'Enrollment Form'!AA710=\"\"),\"N\",\"Y\"))","v":"-"},{"$f":"IF(OR('Enrollment Form'!B710=\"Subscriber\",'Enrollment Form'!B710=\"\"),\"-\",IF('Enrollment Form'!BP710=\"\",\"N\",\"Y\"))","v":"-"},{"$f":"IF('Enrollment Form'!B710<>\"Subscriber\",\"-\",IF(AND('Enrollment Form'!B710=\"Subscriber\",'Enrollment Form'!G710=\"\"),\"N\",\"Y\"))","v":"-"},{"$f":"IF('Enrollment Form'!A710=\"\",\"\",IF('Enrollment Form'!B710=\"Subscriber\",\"-\",IF(AND('Enrollment Form'!B710<>\"Subscriber\",'Enrollment Form'!G710='Enrollment Form'!H710),\"N\",\"Y\")))","v":""},0]
[711,{"$f":"IF('Enrollment Form'!$A711<>\"\",\"Y\",\"N\")","v":"N"},{"$f":"IF(AND('Enrollment Form'!$B711=\"\",'Enrollment Form'!$C711<>\"\"),\"N\",IF($B704=\"N\",\"\",\"Y\"))","v":""},{"$f":"IF(OR($B704=\"N\",'Enrollment Form'!G711=\"\"),\"\",IF('Enrollment Form'!$B711<>\"Subscriber\",\"\",IF('Enrollment Form'!$G711='Enrollment Form'!$H711,\"Y\",\"N\")))","v":""},{"$f":"IF($B704=\"N\",\"\",IF(AND(COUNTIFS('Enrollment Form'!$H$11:$H$1000,'Enrollment Form'!$H711,'Enrollment Form'!$B$11:$B$1000,'Enrollment Form'!$B711)>1,'Enrollment Form'!$H711<>\"\"),\"N\",\"Y\"))","v":""},{"$f":"IF($B704=\"N\",\"\",IF(LEN('Enrollment Form'!$Y711)=0,\"\",IF(LEN('Enrollment Form'!$Y711)<>5,\"N\",\"Y\")))","v":""},{"$f":"IF($B704=\"N\",\"\",IF(LEN('Enrollment Form'!$AD711=0),\"\",IF(LEN('Enrollment Form'!$AD711)<>5,\"N\",\"Y\")))","v":""},{"$f":"IF($B704=\"N\",\"\",IF(LEN('Enrollment Form'!$BS711=0),\"\",IF(LEN('Enrollment Form'!$BS711)<>5,\"N\",\"Y\")))","v":""},{"$f":"IF($B704=\"N\",\"\",IF(LEN('Enrollment Form'!$AE711)=0,\"\",IF(LEN('Enrollment Form'!$AE711)<>10,\"N\",\"Y\")))","v":""},{"$f":"IF($B704=\"N\",\"\",IF(LEN('Enrollment Form'!$AF711)=0,\"\",IF(LEN('Enrollment Form'!$AF711)<>10,\"N\",\"Y\")))","v":""},{"$f":"IF('Enrollment Form'!$O711<>\"Graded\",\"-\",IF(AND('Enrollment Form'!$O711=\"Graded\",'Enrollment Form'!$AR711<>\"\"),\"Y\",\"N\"))","v":"-"},{"$f":"IF($B704=\"N\",\"\",IF(OR('Enrollment Form'!$B711<>\"Subscriber\",'Enrollment Form'!$C711=\"ROC\"),\"-\",IF(AND('Enrollment Form'!$B711=\"Subscriber\",'Enrollment Form'!$C711=\"Enroll\",'Enrollment Form'!$AJ711<>\"\"),\"Y\",\"N\")))","v":""},{"$f":"IF($B704=\"N\",\"\",IF(OR('Enrollment Form'!$B711<>\"Subscriber\",'Enrollment Form'!$C711=\"ROC\"),\"-\",IF(AND('Enrollment Form'!$B711=\"Subscriber\",'Enrollment Form'!$C711=\"Enroll\",'Enrollment Form'!$AK711<>\"\"),\"Y\",\"N\")))","v":""},{"$f":"IF($B704=\"N\",\"\",IF(OR('Enrollment Form'!$B711<>\"Subscriber\",'Enrollment Form'!$C711=\"ROC\"),\"-\",IF(AND('Enrollment Form'!$B711=\"Subscriber\",'Enrollment Form'!$C711=\"Enroll\",'Enrollment Form'!$AL711<>\"\"),\"Y\",\"N\")))","v":""},{"$f":"IF($B704=\"N\",\"\",IF(OR('Enrollment Form'!$B711<>\"Subscriber\",'Enrollment Form'!$C711=\"ROC\"),\"-\",IF(AND('Enrollment Form'!$B711=\"Subscriber\",'Enrollment Form'!$C711=\"Enroll\",'Enrollment Form'!$AP711<>\"\"),\"Y\",\"N\")))","v":""},{"$f":"IF($B704=\"N\",\"\",IF(OR('Enrollment Form'!$B711<>\"Subscriber\",'Enrollment Form'!$C711=\"ROC\"),\"-\",IF(AND('Enrollment Form'!$B711=\"Subscriber\",'Enrollment Form'!$C711=\"Enroll\",'Enrollment Form'!$AQ711<>\"\"),\"Y\",\"N\")))","v":""},{"$f":"IF($B704=\"N\",\"\",IF(OR('Enrollment Form'!$B711<>\"Subscriber\",'Enrollment Form'!$C711=\"ROC\"),\"-\",IF(AND('Enrollment Form'!$B711=\"Subscriber\",'Enrollment Form'!$C711=\"Enroll\",'Enrollment Form'!$AS711<>\"\"),\"Y\",\"N\")))","v":""},{"$f":"IF($B704=\"N\",\"\",IF($Q704=\"-\",\"-\",IF(AND($Q704=\"Y\",'Enrollment Form'!$AS711=\"No\"),\"-\",IF(AND($Q704=\"Y\",'Enrollment Form'!$AS711=\"Yes\",'Enrollment Form'!$AT711<>\"\"),\"Y\",\"N\"))))","v":""},{"$f":"IF($B704=\"N\",\"\",IF(OR('Enrollment Form'!$B711<>\"Subscriber\",'Enrollment Form'!$C711=\"ROC\"),\"-\",IF(AND('Enrollment Form'!$B711=\"Subscriber\",'Enrollment Form'!$C711=\"Enroll\",'Enrollment Form'!$CV711<>\"\"),\"Y\",\"N\")))","v":""},{"$f":"IF($B704=\"N\",\"\",IF($S704=\"-\",\"-\",IF(AND($S704=\"Y\",'Enrollment Form'!$CV711=\"No\"),\"-\",IF(AND($S704=\"Y\",'Enrollment Form'!$CV711=\"Yes\",'Enrollment Form'!$CW711<>\"\"),\"Y\",\"N\"))))","v":""},{"$f":"IF(OR('Enrollment Form'!$AY711=\"Yes\",'Enrollment Form'!$AY711=\"\"),\"-\",IF(OR(AND('Enrollment Form'!$AY711=\"No\",ISERROR(FIND(\"HMO\",VLOOKUP('Enrollment Form'!G711,'Enrollment Form'!H$11:J$1000,3,FALSE),1))=FALSE,COUNTA('Enrollment Form'!$AZ711:$BC711)=4),AND('Enrollment Form'!$AY711=\"No\",ISERROR(FIND(\"HMO\",VLOOKUP('Enrollment Form'!G711,'Enrollment Form'!H$11:J$1000,3,FALSE),1))=FALSE,COUNTA('Enrollment Form'!$BT711:$BW711)=4)),\"Y\",\"N\"))","v":"-"},{"$f":"IF($B704=\"N\",\"\",IF('Enrollment Form'!$B711=\"Subscriber\",\"-\",IF(COUNTA('Enrollment Form'!$BL711,'Enrollment Form'!$BN711)=2,\"Y\",\"N\")))","v":""},{"$f":"IF($B704=\"N\",\"\",IF(OR('Enrollment Form'!$AX711=\"\",'Enrollment Form'!$AX711=\"No\"),\"-\",IF(AND('Enrollment Form'!$AX711=\"Yes\",COUNTA('Enrollment Form'!$CR711)=1),\"Y\",\"N\")))","v":""},{"$f":"IF(OR('Enrollment Form'!$CR711=\"\",'Enrollment Form'!$CR711=\"No\"),\"-\",IF(COUNTA('Enrollment Form'!$CT711:$CU711)=2,\"Y\",\"N\"))","v":"-"},{"$f":"IF($B704=\"N\",\"\",IF(COUNTIF('Enrollment Form'!$DG711:$DP711,\"Other\")=COUNTA('Enrollment Form'!$DK711,'Enrollment Form'!$DH711,'Enrollment Form'!$DN711,'Enrollment Form'!$DQ711),\"Y\",\"N\"))","v":""},{"$f":"IF($B704=\"N\",\"\",IF(OR('Enrollment Form'!B711<>\"Subscriber\",'Enrollment Form'!C711=\"ROC\",COUNTIF('Enrollment Form'!AV711:AW711,\"Yes\")>=1),\"-\",IF(AND('Enrollment Form'!C711=\"Enroll\",COUNTIF('Enrollment Form'!AV711:AW711,\"No\")=2,'Enrollment Form'!AX711=\"\"),\"N\",\"Y\")))","v":""},{"$f":"IF(OR(B704=\"N\",'Enrollment Form'!B711<>\"Subscriber\",'Enrollment Form'!C711=\"ROC\",'Enrollment Form'!O711<>\"Multiple of Salary\"),\"-\",IF(COUNTA('Enrollment Form'!T711:U711)<2,\"N\",\"Y\"))","v":"-"},{"$f":"IF(B704=\"N\",\"\",IF(OR('Enrollment Form'!C711=\"ROC\",'Enrollment Form'!B711<>\"Subscriber\",'Enrollment Form'!O711=\"Waive\",'Enrollment Form'!O711=\"\"),\"-\",IF('Enrollment Form'!P711=\"\",\"N\",\"Y\")))","v":""},{"$f":"IF($B704=\"N\",\"\",IF(AND('Enrollment Form'!$C711=\"ROC\",'Enrollment Form'!$DR711<>\"\"),\"Y\",IF(AND('Enrollment Form'!$C711=\"ROC\",'Enrollment Form'!$DR711=\"\"),\"N\",IF(AND('Enrollment Form'!$C711=\"Enroll\",'Enrollment Form'!$B711=\"Subscriber\",'Enrollment Form'!$CX711=\"No\",'Enrollment Form'!$DR711=\"\"),\"N\",IF(AND('Enrollment Form'!$C711=\"Enroll\",'Enrollment Form'!$B711=\"Subscriber\",'Enrollment Form'!$CX711=\"Yes\"),\"-\",\"Y\")))))","v":""},{"$f":"IF($B704=\"N\",\"\",IF(AND('Enrollment Form'!$C711=\"ROC\",'Enrollment Form'!$DS711<>\"\"),\"Y\",IF(AND('Enrollment Form'!$C711=\"ROC\",'Enrollment Form'!$DS711=\"\"),\"N\",IF(AND('Enrollment Form'!$C711=\"Enroll\",'Enrollment Form'!$B711=\"Subscriber\",'Enrollment Form'!$CX711=\"No\",'Enrollment Form'!$DS711=\"\"),\"N\",IF(AND('Enrollment Form'!$C711=\"Enroll\",'Enrollment Form'!$B711=\"Subscriber\",'Enrollment Form'!$CX711=\"Yes\"),\"-\",\"Y\")))))","v":""},{"$f":"IF('Enrollment Form'!AH711=\"\",\"\",IF(ISERROR(SEARCH(\".\",'Enrollment Form'!AH711,SEARCH(\"@\",'Enrollment Form'!AH711))),\"N\",\"Y\"))","v":""},{"$f":"IF(OR($B704=\"N\",'Enrollment Form'!$G711=\"\"),\"\",IF('Enrollment Form'!$B711<>\"Subscriber\",\"-\",IF(COUNTIF('Enrollment Form'!$AV711:$AW711,\"Yes\")=2,\"N\",\"Y\")))","v":""},{"$f":"IF(OR('Enrollment Form'!$CJ711=\"\",'Enrollment Form'!$CJ711=\"No\"),\"-\",IF(AND('Enrollment Form'!$CJ711=\"Yes\",'Enrollment Form'!$CK711=\"\"),\"N\",\"Y\"))","v":"-"},{"$f":"IF(OR('Enrollment Form'!$CL711=\"\",'Enrollment Form'!$CL711=\"No\"),\"-\",IF(AND('Enrollment Form'!$CL711=\"Yes\",'Enrollment Form'!$CM711=\"\"),\"N\",\"Y\"))","v":"-"},{"$f":"IF(OR('Enrollment Form'!$CN711=\"\",'Enrollment Form'!$CN711=\"No\"),\"-\",IF(AND('Enrollment Form'!$CN711=\"Yes\",'Enrollment Form'!$CO711=\"\"),\"N\",\"Y\"))","v":"-"},{"$f":"IF(OR('Enrollment Form'!$CN711=\"\",'Enrollment Form'!$CN711=\"No\"),\"-\",IF(AND('Enrollment Form'!$CN711=\"Yes\",'Enrollment Form'!$CP711=\"\"),\"N\",\"Y\"))","v":"-"},{"$f":"IF('Enrollment Form'!B711<>\"Subscriber\",\"-\",IF(AND('Enrollment Form'!B711=\"Subscriber\",'Enrollment Form'!C711=\"Enroll\",'Enrollment Form'!AA711=\"\"),\"N\",\"Y\"))","v":"-"},{"$f":"IF(OR('Enrollment Form'!B711=\"Subscriber\",'Enrollment Form'!B711=\"\"),\"-\",IF('Enrollment Form'!BP711=\"\",\"N\",\"Y\"))","v":"-"},{"$f":"IF('Enrollment Form'!B711<>\"Subscriber\",\"-\",IF(AND('Enrollment Form'!B711=\"Subscriber\",'Enrollment Form'!G711=\"\"),\"N\",\"Y\"))","v":"-"},{"$f":"IF('Enrollment Form'!A711=\"\",\"\",IF('Enrollment Form'!B711=\"Subscriber\",\"-\",IF(AND('Enrollment Form'!B711<>\"Subscriber\",'Enrollment Form'!G711='Enrollment Form'!H711),\"N\",\"Y\")))","v":""},0]
[712,{"$f":"IF('Enrollment Form'!$A712<>\"\",\"Y\",\"N\")","v":"N"},{"$f":"IF(AND('Enrollment Form'!$B712=\"\",'Enrollment Form'!$C712<>\"\"),\"N\",IF($B705=\"N\",\"\",\"Y\"))","v":""},{"$f":"IF(OR($B705=\"N\",'Enrollment Form'!G712=\"\"),\"\",IF('Enrollment Form'!$B712<>\"Subscriber\",\"\",IF('Enrollment Form'!$G712='Enrollment Form'!$H712,\"Y\",\"N\")))","v":""},{"$f":"IF($B705=\"N\",\"\",IF(AND(COUNTIFS('Enrollment Form'!$H$11:$H$1000,'Enrollment Form'!$H712,'Enrollment Form'!$B$11:$B$1000,'Enrollment Form'!$B712)>1,'Enrollment Form'!$H712<>\"\"),\"N\",\"Y\"))","v":""},{"$f":"IF($B705=\"N\",\"\",IF(LEN('Enrollment Form'!$Y712)=0,\"\",IF(LEN('Enrollment Form'!$Y712)<>5,\"N\",\"Y\")))","v":""},{"$f":"IF($B705=\"N\",\"\",IF(LEN('Enrollment Form'!$AD712=0),\"\",IF(LEN('Enrollment Form'!$AD712)<>5,\"N\",\"Y\")))","v":""},{"$f":"IF($B705=\"N\",\"\",IF(LEN('Enrollment Form'!$BS712=0),\"\",IF(LEN('Enrollment Form'!$BS712)<>5,\"N\",\"Y\")))","v":""},{"$f":"IF($B705=\"N\",\"\",IF(LEN('Enrollment Form'!$AE712)=0,\"\",IF(LEN('Enrollment Form'!$AE712)<>10,\"N\",\"Y\")))","v":""},{"$f":"IF($B705=\"N\",\"\",IF(LEN('Enrollment Form'!$AF712)=0,\"\",IF(LEN('Enrollment Form'!$AF712)<>10,\"N\",\"Y\")))","v":""},{"$f":"IF('Enrollment Form'!$O712<>\"Graded\",\"-\",IF(AND('Enrollment Form'!$O712=\"Graded\",'Enrollment Form'!$AR712<>\"\"),\"Y\",\"N\"))","v":"-"},{"$f":"IF($B705=\"N\",\"\",IF(OR('Enrollment Form'!$B712<>\"Subscriber\",'Enrollment Form'!$C712=\"ROC\"),\"-\",IF(AND('Enrollment Form'!$B712=\"Subscriber\",'Enrollment Form'!$C712=\"Enroll\",'Enrollment Form'!$AJ712<>\"\"),\"Y\",\"N\")))","v":""},{"$f":"IF($B705=\"N\",\"\",IF(OR('Enrollment Form'!$B712<>\"Subscriber\",'Enrollment Form'!$C712=\"ROC\"),\"-\",IF(AND('Enrollment Form'!$B712=\"Subscriber\",'Enrollment Form'!$C712=\"Enroll\",'Enrollment Form'!$AK712<>\"\"),\"Y\",\"N\")))","v":""},{"$f":"IF($B705=\"N\",\"\",IF(OR('Enrollment Form'!$B712<>\"Subscriber\",'Enrollment Form'!$C712=\"ROC\"),\"-\",IF(AND('Enrollment Form'!$B712=\"Subscriber\",'Enrollment Form'!$C712=\"Enroll\",'Enrollment Form'!$AL712<>\"\"),\"Y\",\"N\")))","v":""},{"$f":"IF($B705=\"N\",\"\",IF(OR('Enrollment Form'!$B712<>\"Subscriber\",'Enrollment Form'!$C712=\"ROC\"),\"-\",IF(AND('Enrollment Form'!$B712=\"Subscriber\",'Enrollment Form'!$C712=\"Enroll\",'Enrollment Form'!$AP712<>\"\"),\"Y\",\"N\")))","v":""},{"$f":"IF($B705=\"N\",\"\",IF(OR('Enrollment Form'!$B712<>\"Subscriber\",'Enrollment Form'!$C712=\"ROC\"),\"-\",IF(AND('Enrollment Form'!$B712=\"Subscriber\",'Enrollment Form'!$C712=\"Enroll\",'Enrollment Form'!$AQ712<>\"\"),\"Y\",\"N\")))","v":""},{"$f":"IF($B705=\"N\",\"\",IF(OR('Enrollment Form'!$B712<>\"Subscriber\",'Enrollment Form'!$C712=\"ROC\"),\"-\",IF(AND('Enrollment Form'!$B712=\"Subscriber\",'Enrollment Form'!$C712=\"Enroll\",'Enrollment Form'!$AS712<>\"\"),\"Y\",\"N\")))","v":""},{"$f":"IF($B705=\"N\",\"\",IF($Q705=\"-\",\"-\",IF(AND($Q705=\"Y\",'Enrollment Form'!$AS712=\"No\"),\"-\",IF(AND($Q705=\"Y\",'Enrollment Form'!$AS712=\"Yes\",'Enrollment Form'!$AT712<>\"\"),\"Y\",\"N\"))))","v":""},{"$f":"IF($B705=\"N\",\"\",IF(OR('Enrollment Form'!$B712<>\"Subscriber\",'Enrollment Form'!$C712=\"ROC\"),\"-\",IF(AND('Enrollment Form'!$B712=\"Subscriber\",'Enrollment Form'!$C712=\"Enroll\",'Enrollment Form'!$CV712<>\"\"),\"Y\",\"N\")))","v":""},{"$f":"IF($B705=\"N\",\"\",IF($S705=\"-\",\"-\",IF(AND($S705=\"Y\",'Enrollment Form'!$CV712=\"No\"),\"-\",IF(AND($S705=\"Y\",'Enrollment Form'!$CV712=\"Yes\",'Enrollment Form'!$CW712<>\"\"),\"Y\",\"N\"))))","v":""},{"$f":"IF(OR('Enrollment Form'!$AY712=\"Yes\",'Enrollment Form'!$AY712=\"\"),\"-\",IF(OR(AND('Enrollment Form'!$AY712=\"No\",ISERROR(FIND(\"HMO\",VLOOKUP('Enrollment Form'!G712,'Enrollment Form'!H$11:J$1000,3,FALSE),1))=FALSE,COUNTA('Enrollment Form'!$AZ712:$BC712)=4),AND('Enrollment Form'!$AY712=\"No\",ISERROR(FIND(\"HMO\",VLOOKUP('Enrollment Form'!G712,'Enrollment Form'!H$11:J$1000,3,FALSE),1))=FALSE,COUNTA('Enrollment Form'!$BT712:$BW712)=4)),\"Y\",\"N\"))","v":"-"},{"$f":"IF($B705=\"N\",\"\",IF('Enrollment Form'!$B712=\"Subscriber\",\"-\",IF(COUNTA('Enrollment Form'!$BL712,'Enrollment Form'!$BN712)=2,\"Y\",\"N\")))","v":""},{"$f":"IF($B705=\"N\",\"\",IF(OR('Enrollment Form'!$AX712=\"\",'Enrollment Form'!$AX712=\"No\"),\"-\",IF(AND('Enrollment Form'!$AX712=\"Yes\",COUNTA('Enrollment Form'!$CR712)=1),\"Y\",\"N\")))","v":""},{"$f":"IF(OR('Enrollment Form'!$CR712=\"\",'Enrollment Form'!$CR712=\"No\"),\"-\",IF(COUNTA('Enrollment Form'!$CT712:$CU712)=2,\"Y\",\"N\"))","v":"-"},{"$f":"IF($B705=\"N\",\"\",IF(COUNTIF('Enrollment Form'!$DG712:$DP712,\"Other\")=COUNTA('Enrollment Form'!$DK712,'Enrollment Form'!$DH712,'Enrollment Form'!$DN712,'Enrollment Form'!$DQ712),\"Y\",\"N\"))","v":""},{"$f":"IF($B705=\"N\",\"\",IF(OR('Enrollment Form'!B712<>\"Subscriber\",'Enrollment Form'!C712=\"ROC\",COUNTIF('Enrollment Form'!AV712:AW712,\"Yes\")>=1),\"-\",IF(AND('Enrollment Form'!C712=\"Enroll\",COUNTIF('Enrollment Form'!AV712:AW712,\"No\")=2,'Enrollment Form'!AX712=\"\"),\"N\",\"Y\")))","v":""},{"$f":"IF(OR(B705=\"N\",'Enrollment Form'!B712<>\"Subscriber\",'Enrollment Form'!C712=\"ROC\",'Enrollment Form'!O712<>\"Multiple of Salary\"),\"-\",IF(COUNTA('Enrollment Form'!T712:U712)<2,\"N\",\"Y\"))","v":"-"},{"$f":"IF(B705=\"N\",\"\",IF(OR('Enrollment Form'!C712=\"ROC\",'Enrollment Form'!B712<>\"Subscriber\",'Enrollment Form'!O712=\"Waive\",'Enrollment Form'!O712=\"\"),\"-\",IF('Enrollment Form'!P712=\"\",\"N\",\"Y\")))","v":""},{"$f":"IF($B705=\"N\",\"\",IF(AND('Enrollment Form'!$C712=\"ROC\",'Enrollment Form'!$DR712<>\"\"),\"Y\",IF(AND('Enrollment Form'!$C712=\"ROC\",'Enrollment Form'!$DR712=\"\"),\"N\",IF(AND('Enrollment Form'!$C712=\"Enroll\",'Enrollment Form'!$B712=\"Subscriber\",'Enrollment Form'!$CX712=\"No\",'Enrollment Form'!$DR712=\"\"),\"N\",IF(AND('Enrollment Form'!$C712=\"Enroll\",'Enrollment Form'!$B712=\"Subscriber\",'Enrollment Form'!$CX712=\"Yes\"),\"-\",\"Y\")))))","v":""},{"$f":"IF($B705=\"N\",\"\",IF(AND('Enrollment Form'!$C712=\"ROC\",'Enrollment Form'!$DS712<>\"\"),\"Y\",IF(AND('Enrollment Form'!$C712=\"ROC\",'Enrollment Form'!$DS712=\"\"),\"N\",IF(AND('Enrollment Form'!$C712=\"Enroll\",'Enrollment Form'!$B712=\"Subscriber\",'Enrollment Form'!$CX712=\"No\",'Enrollment Form'!$DS712=\"\"),\"N\",IF(AND('Enrollment Form'!$C712=\"Enroll\",'Enrollment Form'!$B712=\"Subscriber\",'Enrollment Form'!$CX712=\"Yes\"),\"-\",\"Y\")))))","v":""},{"$f":"IF('Enrollment Form'!AH712=\"\",\"\",IF(ISERROR(SEARCH(\".\",'Enrollment Form'!AH712,SEARCH(\"@\",'Enrollment Form'!AH712))),\"N\",\"Y\"))","v":""},{"$f":"IF(OR($B705=\"N\",'Enrollment Form'!$G712=\"\"),\"\",IF('Enrollment Form'!$B712<>\"Subscriber\",\"-\",IF(COUNTIF('Enrollment Form'!$AV712:$AW712,\"Yes\")=2,\"N\",\"Y\")))","v":""},{"$f":"IF(OR('Enrollment Form'!$CJ712=\"\",'Enrollment Form'!$CJ712=\"No\"),\"-\",IF(AND('Enrollment Form'!$CJ712=\"Yes\",'Enrollment Form'!$CK712=\"\"),\"N\",\"Y\"))","v":"-"},{"$f":"IF(OR('Enrollment Form'!$CL712=\"\",'Enrollment Form'!$CL712=\"No\"),\"-\",IF(AND('Enrollment Form'!$CL712=\"Yes\",'Enrollment Form'!$CM712=\"\"),\"N\",\"Y\"))","v":"-"},{"$f":"IF(OR('Enrollment Form'!$CN712=\"\",'Enrollment Form'!$CN712=\"No\"),\"-\",IF(AND('Enrollment Form'!$CN712=\"Yes\",'Enrollment Form'!$CO712=\"\"),\"N\",\"Y\"))","v":"-"},{"$f":"IF(OR('Enrollment Form'!$CN712=\"\",'Enrollment Form'!$CN712=\"No\"),\"-\",IF(AND('Enrollment Form'!$CN712=\"Yes\",'Enrollment Form'!$CP712=\"\"),\"N\",\"Y\"))","v":"-"},{"$f":"IF('Enrollment Form'!B712<>\"Subscriber\",\"-\",IF(AND('Enrollment Form'!B712=\"Subscriber\",'Enrollment Form'!C712=\"Enroll\",'Enrollment Form'!AA712=\"\"),\"N\",\"Y\"))","v":"-"},{"$f":"IF(OR('Enrollment Form'!B712=\"Subscriber\",'Enrollment Form'!B712=\"\"),\"-\",IF('Enrollment Form'!BP712=\"\",\"N\",\"Y\"))","v":"-"},{"$f":"IF('Enrollment Form'!B712<>\"Subscriber\",\"-\",IF(AND('Enrollment Form'!B712=\"Subscriber\",'Enrollment Form'!G712=\"\"),\"N\",\"Y\"))","v":"-"},{"$f":"IF('Enrollment Form'!A712=\"\",\"\",IF('Enrollment Form'!B712=\"Subscriber\",\"-\",IF(AND('Enrollment Form'!B712<>\"Subscriber\",'Enrollment Form'!G712='Enrollment Form'!H712),\"N\",\"Y\")))","v":""},0]
[713,{"$f":"IF('Enrollment Form'!$A713<>\"\",\"Y\",\"N\")","v":"N"},{"$f":"IF(AND('Enrollment Form'!$B713=\"\",'Enrollment Form'!$C713<>\"\"),\"N\",IF($B706=\"N\",\"\",\"Y\"))","v":""},{"$f":"IF(OR($B706=\"N\",'Enrollment Form'!G713=\"\"),\"\",IF('Enrollment Form'!$B713<>\"Subscriber\",\"\",IF('Enrollment Form'!$G713='Enrollment Form'!$H713,\"Y\",\"N\")))","v":""},{"$f":"IF($B706=\"N\",\"\",IF(AND(COUNTIFS('Enrollment Form'!$H$11:$H$1000,'Enrollment Form'!$H713,'Enrollment Form'!$B$11:$B$1000,'Enrollment Form'!$B713)>1,'Enrollment Form'!$H713<>\"\"),\"N\",\"Y\"))","v":""},{"$f":"IF($B706=\"N\",\"\",IF(LEN('Enrollment Form'!$Y713)=0,\"\",IF(LEN('Enrollment Form'!$Y713)<>5,\"N\",\"Y\")))","v":""},{"$f":"IF($B706=\"N\",\"\",IF(LEN('Enrollment Form'!$AD713=0),\"\",IF(LEN('Enrollment Form'!$AD713)<>5,\"N\",\"Y\")))","v":""},{"$f":"IF($B706=\"N\",\"\",IF(LEN('Enrollment Form'!$BS713=0),\"\",IF(LEN('Enrollment Form'!$BS713)<>5,\"N\",\"Y\")))","v":""},{"$f":"IF($B706=\"N\",\"\",IF(LEN('Enrollment Form'!$AE713)=0,\"\",IF(LEN('Enrollment Form'!$AE713)<>10,\"N\",\"Y\")))","v":""},{"$f":"IF($B706=\"N\",\"\",IF(LEN('Enrollment Form'!$AF713)=0,\"\",IF(LEN('Enrollment Form'!$AF713)<>10,\"N\",\"Y\")))","v":""},{"$f":"IF('Enrollment Form'!$O713<>\"Graded\",\"-\",IF(AND('Enrollment Form'!$O713=\"Graded\",'Enrollment Form'!$AR713<>\"\"),\"Y\",\"N\"))","v":"-"},{"$f":"IF($B706=\"N\",\"\",IF(OR('Enrollment Form'!$B713<>\"Subscriber\",'Enrollment Form'!$C713=\"ROC\"),\"-\",IF(AND('Enrollment Form'!$B713=\"Subscriber\",'Enrollment Form'!$C713=\"Enroll\",'Enrollment Form'!$AJ713<>\"\"),\"Y\",\"N\")))","v":""},{"$f":"IF($B706=\"N\",\"\",IF(OR('Enrollment Form'!$B713<>\"Subscriber\",'Enrollment Form'!$C713=\"ROC\"),\"-\",IF(AND('Enrollment Form'!$B713=\"Subscriber\",'Enrollment Form'!$C713=\"Enroll\",'Enrollment Form'!$AK713<>\"\"),\"Y\",\"N\")))","v":""},{"$f":"IF($B706=\"N\",\"\",IF(OR('Enrollment Form'!$B713<>\"Subscriber\",'Enrollment Form'!$C713=\"ROC\"),\"-\",IF(AND('Enrollment Form'!$B713=\"Subscriber\",'Enrollment Form'!$C713=\"Enroll\",'Enrollment Form'!$AL713<>\"\"),\"Y\",\"N\")))","v":""},{"$f":"IF($B706=\"N\",\"\",IF(OR('Enrollment Form'!$B713<>\"Subscriber\",'Enrollment Form'!$C713=\"ROC\"),\"-\",IF(AND('Enrollment Form'!$B713=\"Subscriber\",'Enrollment Form'!$C713=\"Enroll\",'Enrollment Form'!$AP713<>\"\"),\"Y\",\"N\")))","v":""},{"$f":"IF($B706=\"N\",\"\",IF(OR('Enrollment Form'!$B713<>\"Subscriber\",'Enrollment Form'!$C713=\"ROC\"),\"-\",IF(AND('Enrollment Form'!$B713=\"Subscriber\",'Enrollment Form'!$C713=\"Enroll\",'Enrollment Form'!$AQ713<>\"\"),\"Y\",\"N\")))","v":""},{"$f":"IF($B706=\"N\",\"\",IF(OR('Enrollment Form'!$B713<>\"Subscriber\",'Enrollment Form'!$C713=\"ROC\"),\"-\",IF(AND('Enrollment Form'!$B713=\"Subscriber\",'Enrollment Form'!$C713=\"Enroll\",'Enrollment Form'!$AS713<>\"\"),\"Y\",\"N\")))","v":""},{"$f":"IF($B706=\"N\",\"\",IF($Q706=\"-\",\"-\",IF(AND($Q706=\"Y\",'Enrollment Form'!$AS713=\"No\"),\"-\",IF(AND($Q706=\"Y\",'Enrollment Form'!$AS713=\"Yes\",'Enrollment Form'!$AT713<>\"\"),\"Y\",\"N\"))))","v":""},{"$f":"IF($B706=\"N\",\"\",IF(OR('Enrollment Form'!$B713<>\"Subscriber\",'Enrollment Form'!$C713=\"ROC\"),\"-\",IF(AND('Enrollment Form'!$B713=\"Subscriber\",'Enrollment Form'!$C713=\"Enroll\",'Enrollment Form'!$CV713<>\"\"),\"Y\",\"N\")))","v":""},{"$f":"IF($B706=\"N\",\"\",IF($S706=\"-\",\"-\",IF(AND($S706=\"Y\",'Enrollment Form'!$CV713=\"No\"),\"-\",IF(AND($S706=\"Y\",'Enrollment Form'!$CV713=\"Yes\",'Enrollment Form'!$CW713<>\"\"),\"Y\",\"N\"))))","v":""},{"$f":"IF(OR('Enrollment Form'!$AY713=\"Yes\",'Enrollment Form'!$AY713=\"\"),\"-\",IF(OR(AND('Enrollment Form'!$AY713=\"No\",ISERROR(FIND(\"HMO\",VLOOKUP('Enrollment Form'!G713,'Enrollment Form'!H$11:J$1000,3,FALSE),1))=FALSE,COUNTA('Enrollment Form'!$AZ713:$BC713)=4),AND('Enrollment Form'!$AY713=\"No\",ISERROR(FIND(\"HMO\",VLOOKUP('Enrollment Form'!G713,'Enrollment Form'!H$11:J$1000,3,FALSE),1))=FALSE,COUNTA('Enrollment Form'!$BT713:$BW713)=4)),\"Y\",\"N\"))","v":"-"},{"$f":"IF($B706=\"N\",\"\",IF('Enrollment Form'!$B713=\"Subscriber\",\"-\",IF(COUNTA('Enrollment Form'!$BL713,'Enrollment Form'!$BN713)=2,\"Y\",\"N\")))","v":""},{"$f":"IF($B706=\"N\",\"\",IF(OR('Enrollment Form'!$AX713=\"\",'Enrollment Form'!$AX713=\"No\"),\"-\",IF(AND('Enrollment Form'!$AX713=\"Yes\",COUNTA('Enrollment Form'!$CR713)=1),\"Y\",\"N\")))","v":""},{"$f":"IF(OR('Enrollment Form'!$CR713=\"\",'Enrollment Form'!$CR713=\"No\"),\"-\",IF(COUNTA('Enrollment Form'!$CT713:$CU713)=2,\"Y\",\"N\"))","v":"-"},{"$f":"IF($B706=\"N\",\"\",IF(COUNTIF('Enrollment Form'!$DG713:$DP713,\"Other\")=COUNTA('Enrollment Form'!$DK713,'Enrollment Form'!$DH713,'Enrollment Form'!$DN713,'Enrollment Form'!$DQ713),\"Y\",\"N\"))","v":""},{"$f":"IF($B706=\"N\",\"\",IF(OR('Enrollment Form'!B713<>\"Subscriber\",'Enrollment Form'!C713=\"ROC\",COUNTIF('Enrollment Form'!AV713:AW713,\"Yes\")>=1),\"-\",IF(AND('Enrollment Form'!C713=\"Enroll\",COUNTIF('Enrollment Form'!AV713:AW713,\"No\")=2,'Enrollment Form'!AX713=\"\"),\"N\",\"Y\")))","v":""},{"$f":"IF(OR(B706=\"N\",'Enrollment Form'!B713<>\"Subscriber\",'Enrollment Form'!C713=\"ROC\",'Enrollment Form'!O713<>\"Multiple of Salary\"),\"-\",IF(COUNTA('Enrollment Form'!T713:U713)<2,\"N\",\"Y\"))","v":"-"},{"$f":"IF(B706=\"N\",\"\",IF(OR('Enrollment Form'!C713=\"ROC\",'Enrollment Form'!B713<>\"Subscriber\",'Enrollment Form'!O713=\"Waive\",'Enrollment Form'!O713=\"\"),\"-\",IF('Enrollment Form'!P713=\"\",\"N\",\"Y\")))","v":""},{"$f":"IF($B706=\"N\",\"\",IF(AND('Enrollment Form'!$C713=\"ROC\",'Enrollment Form'!$DR713<>\"\"),\"Y\",IF(AND('Enrollment Form'!$C713=\"ROC\",'Enrollment Form'!$DR713=\"\"),\"N\",IF(AND('Enrollment Form'!$C713=\"Enroll\",'Enrollment Form'!$B713=\"Subscriber\",'Enrollment Form'!$CX713=\"No\",'Enrollment Form'!$DR713=\"\"),\"N\",IF(AND('Enrollment Form'!$C713=\"Enroll\",'Enrollment Form'!$B713=\"Subscriber\",'Enrollment Form'!$CX713=\"Yes\"),\"-\",\"Y\")))))","v":""},{"$f":"IF($B706=\"N\",\"\",IF(AND('Enrollment Form'!$C713=\"ROC\",'Enrollment Form'!$DS713<>\"\"),\"Y\",IF(AND('Enrollment Form'!$C713=\"ROC\",'Enrollment Form'!$DS713=\"\"),\"N\",IF(AND('Enrollment Form'!$C713=\"Enroll\",'Enrollment Form'!$B713=\"Subscriber\",'Enrollment Form'!$CX713=\"No\",'Enrollment Form'!$DS713=\"\"),\"N\",IF(AND('Enrollment Form'!$C713=\"Enroll\",'Enrollment Form'!$B713=\"Subscriber\",'Enrollment Form'!$CX713=\"Yes\"),\"-\",\"Y\")))))","v":""},{"$f":"IF('Enrollment Form'!AH713=\"\",\"\",IF(ISERROR(SEARCH(\".\",'Enrollment Form'!AH713,SEARCH(\"@\",'Enrollment Form'!AH713))),\"N\",\"Y\"))","v":""},{"$f":"IF(OR($B706=\"N\",'Enrollment Form'!$G713=\"\"),\"\",IF('Enrollment Form'!$B713<>\"Subscriber\",\"-\",IF(COUNTIF('Enrollment Form'!$AV713:$AW713,\"Yes\")=2,\"N\",\"Y\")))","v":""},{"$f":"IF(OR('Enrollment Form'!$CJ713=\"\",'Enrollment Form'!$CJ713=\"No\"),\"-\",IF(AND('Enrollment Form'!$CJ713=\"Yes\",'Enrollment Form'!$CK713=\"\"),\"N\",\"Y\"))","v":"-"},{"$f":"IF(OR('Enrollment Form'!$CL713=\"\",'Enrollment Form'!$CL713=\"No\"),\"-\",IF(AND('Enrollment Form'!$CL713=\"Yes\",'Enrollment Form'!$CM713=\"\"),\"N\",\"Y\"))","v":"-"},{"$f":"IF(OR('Enrollment Form'!$CN713=\"\",'Enrollment Form'!$CN713=\"No\"),\"-\",IF(AND('Enrollment Form'!$CN713=\"Yes\",'Enrollment Form'!$CO713=\"\"),\"N\",\"Y\"))","v":"-"},{"$f":"IF(OR('Enrollment Form'!$CN713=\"\",'Enrollment Form'!$CN713=\"No\"),\"-\",IF(AND('Enrollment Form'!$CN713=\"Yes\",'Enrollment Form'!$CP713=\"\"),\"N\",\"Y\"))","v":"-"},{"$f":"IF('Enrollment Form'!B713<>\"Subscriber\",\"-\",IF(AND('Enrollment Form'!B713=\"Subscriber\",'Enrollment Form'!C713=\"Enroll\",'Enrollment Form'!AA713=\"\"),\"N\",\"Y\"))","v":"-"},{"$f":"IF(OR('Enrollment Form'!B713=\"Subscriber\",'Enrollment Form'!B713=\"\"),\"-\",IF('Enrollment Form'!BP713=\"\",\"N\",\"Y\"))","v":"-"},{"$f":"IF('Enrollment Form'!B713<>\"Subscriber\",\"-\",IF(AND('Enrollment Form'!B713=\"Subscriber\",'Enrollment Form'!G713=\"\"),\"N\",\"Y\"))","v":"-"},{"$f":"IF('Enrollment Form'!A713=\"\",\"\",IF('Enrollment Form'!B713=\"Subscriber\",\"-\",IF(AND('Enrollment Form'!B713<>\"Subscriber\",'Enrollment Form'!G713='Enrollment Form'!H713),\"N\",\"Y\")))","v":""},0]
[714,{"$f":"IF('Enrollment Form'!$A714<>\"\",\"Y\",\"N\")","v":"N"},{"$f":"IF(AND('Enrollment Form'!$B714=\"\",'Enrollment Form'!$C714<>\"\"),\"N\",IF($B707=\"N\",\"\",\"Y\"))","v":""},{"$f":"IF(OR($B707=\"N\",'Enrollment Form'!G714=\"\"),\"\",IF('Enrollment Form'!$B714<>\"Subscriber\",\"\",IF('Enrollment Form'!$G714='Enrollment Form'!$H714,\"Y\",\"N\")))","v":""},{"$f":"IF($B707=\"N\",\"\",IF(AND(COUNTIFS('Enrollment Form'!$H$11:$H$1000,'Enrollment Form'!$H714,'Enrollment Form'!$B$11:$B$1000,'Enrollment Form'!$B714)>1,'Enrollment Form'!$H714<>\"\"),\"N\",\"Y\"))","v":""},{"$f":"IF($B707=\"N\",\"\",IF(LEN('Enrollment Form'!$Y714)=0,\"\",IF(LEN('Enrollment Form'!$Y714)<>5,\"N\",\"Y\")))","v":""},{"$f":"IF($B707=\"N\",\"\",IF(LEN('Enrollment Form'!$AD714=0),\"\",IF(LEN('Enrollment Form'!$AD714)<>5,\"N\",\"Y\")))","v":""},{"$f":"IF($B707=\"N\",\"\",IF(LEN('Enrollment Form'!$BS714=0),\"\",IF(LEN('Enrollment Form'!$BS714)<>5,\"N\",\"Y\")))","v":""},{"$f":"IF($B707=\"N\",\"\",IF(LEN('Enrollment Form'!$AE714)=0,\"\",IF(LEN('Enrollment Form'!$AE714)<>10,\"N\",\"Y\")))","v":""},{"$f":"IF($B707=\"N\",\"\",IF(LEN('Enrollment Form'!$AF714)=0,\"\",IF(LEN('Enrollment Form'!$AF714)<>10,\"N\",\"Y\")))","v":""},{"$f":"IF('Enrollment Form'!$O714<>\"Graded\",\"-\",IF(AND('Enrollment Form'!$O714=\"Graded\",'Enrollment Form'!$AR714<>\"\"),\"Y\",\"N\"))","v":"-"},{"$f":"IF($B707=\"N\",\"\",IF(OR('Enrollment Form'!$B714<>\"Subscriber\",'Enrollment Form'!$C714=\"ROC\"),\"-\",IF(AND('Enrollment Form'!$B714=\"Subscriber\",'Enrollment Form'!$C714=\"Enroll\",'Enrollment Form'!$AJ714<>\"\"),\"Y\",\"N\")))","v":""},{"$f":"IF($B707=\"N\",\"\",IF(OR('Enrollment Form'!$B714<>\"Subscriber\",'Enrollment Form'!$C714=\"ROC\"),\"-\",IF(AND('Enrollment Form'!$B714=\"Subscriber\",'Enrollment Form'!$C714=\"Enroll\",'Enrollment Form'!$AK714<>\"\"),\"Y\",\"N\")))","v":""},{"$f":"IF($B707=\"N\",\"\",IF(OR('Enrollment Form'!$B714<>\"Subscriber\",'Enrollment Form'!$C714=\"ROC\"),\"-\",IF(AND('Enrollment Form'!$B714=\"Subscriber\",'Enrollment Form'!$C714=\"Enroll\",'Enrollment Form'!$AL714<>\"\"),\"Y\",\"N\")))","v":""},{"$f":"IF($B707=\"N\",\"\",IF(OR('Enrollment Form'!$B714<>\"Subscriber\",'Enrollment Form'!$C714=\"ROC\"),\"-\",IF(AND('Enrollment Form'!$B714=\"Subscriber\",'Enrollment Form'!$C714=\"Enroll\",'Enrollment Form'!$AP714<>\"\"),\"Y\",\"N\")))","v":""},{"$f":"IF($B707=\"N\",\"\",IF(OR('Enrollment Form'!$B714<>\"Subscriber\",'Enrollment Form'!$C714=\"ROC\"),\"-\",IF(AND('Enrollment Form'!$B714=\"Subscriber\",'Enrollment Form'!$C714=\"Enroll\",'Enrollment Form'!$AQ714<>\"\"),\"Y\",\"N\")))","v":""},{"$f":"IF($B707=\"N\",\"\",IF(OR('Enrollment Form'!$B714<>\"Subscriber\",'Enrollment Form'!$C714=\"ROC\"),\"-\",IF(AND('Enrollment Form'!$B714=\"Subscriber\",'Enrollment Form'!$C714=\"Enroll\",'Enrollment Form'!$AS714<>\"\"),\"Y\",\"N\")))","v":""},{"$f":"IF($B707=\"N\",\"\",IF($Q707=\"-\",\"-\",IF(AND($Q707=\"Y\",'Enrollment Form'!$AS714=\"No\"),\"-\",IF(AND($Q707=\"Y\",'Enrollment Form'!$AS714=\"Yes\",'Enrollment Form'!$AT714<>\"\"),\"Y\",\"N\"))))","v":""},{"$f":"IF($B707=\"N\",\"\",IF(OR('Enrollment Form'!$B714<>\"Subscriber\",'Enrollment Form'!$C714=\"ROC\"),\"-\",IF(AND('Enrollment Form'!$B714=\"Subscriber\",'Enrollment Form'!$C714=\"Enroll\",'Enrollment Form'!$CV714<>\"\"),\"Y\",\"N\")))","v":""},{"$f":"IF($B707=\"N\",\"\",IF($S707=\"-\",\"-\",IF(AND($S707=\"Y\",'Enrollment Form'!$CV714=\"No\"),\"-\",IF(AND($S707=\"Y\",'Enrollment Form'!$CV714=\"Yes\",'Enrollment Form'!$CW714<>\"\"),\"Y\",\"N\"))))","v":""},{"$f":"IF(OR('Enrollment Form'!$AY714=\"Yes\",'Enrollment Form'!$AY714=\"\"),\"-\",IF(OR(AND('Enrollment Form'!$AY714=\"No\",ISERROR(FIND(\"HMO\",VLOOKUP('Enrollment Form'!G714,'Enrollment Form'!H$11:J$1000,3,FALSE),1))=FALSE,COUNTA('Enrollment Form'!$AZ714:$BC714)=4),AND('Enrollment Form'!$AY714=\"No\",ISERROR(FIND(\"HMO\",VLOOKUP('Enrollment Form'!G714,'Enrollment Form'!H$11:J$1000,3,FALSE),1))=FALSE,COUNTA('Enrollment Form'!$BT714:$BW714)=4)),\"Y\",\"N\"))","v":"-"},{"$f":"IF($B707=\"N\",\"\",IF('Enrollment Form'!$B714=\"Subscriber\",\"-\",IF(COUNTA('Enrollment Form'!$BL714,'Enrollment Form'!$BN714)=2,\"Y\",\"N\")))","v":""},{"$f":"IF($B707=\"N\",\"\",IF(OR('Enrollment Form'!$AX714=\"\",'Enrollment Form'!$AX714=\"No\"),\"-\",IF(AND('Enrollment Form'!$AX714=\"Yes\",COUNTA('Enrollment Form'!$CR714)=1),\"Y\",\"N\")))","v":""},{"$f":"IF(OR('Enrollment Form'!$CR714=\"\",'Enrollment Form'!$CR714=\"No\"),\"-\",IF(COUNTA('Enrollment Form'!$CT714:$CU714)=2,\"Y\",\"N\"))","v":"-"},{"$f":"IF($B707=\"N\",\"\",IF(COUNTIF('Enrollment Form'!$DG714:$DP714,\"Other\")=COUNTA('Enrollment Form'!$DK714,'Enrollment Form'!$DH714,'Enrollment Form'!$DN714,'Enrollment Form'!$DQ714),\"Y\",\"N\"))","v":""},{"$f":"IF($B707=\"N\",\"\",IF(OR('Enrollment Form'!B714<>\"Subscriber\",'Enrollment Form'!C714=\"ROC\",COUNTIF('Enrollment Form'!AV714:AW714,\"Yes\")>=1),\"-\",IF(AND('Enrollment Form'!C714=\"Enroll\",COUNTIF('Enrollment Form'!AV714:AW714,\"No\")=2,'Enrollment Form'!AX714=\"\"),\"N\",\"Y\")))","v":""},{"$f":"IF(OR(B707=\"N\",'Enrollment Form'!B714<>\"Subscriber\",'Enrollment Form'!C714=\"ROC\",'Enrollment Form'!O714<>\"Multiple of Salary\"),\"-\",IF(COUNTA('Enrollment Form'!T714:U714)<2,\"N\",\"Y\"))","v":"-"},{"$f":"IF(B707=\"N\",\"\",IF(OR('Enrollment Form'!C714=\"ROC\",'Enrollment Form'!B714<>\"Subscriber\",'Enrollment Form'!O714=\"Waive\",'Enrollment Form'!O714=\"\"),\"-\",IF('Enrollment Form'!P714=\"\",\"N\",\"Y\")))","v":""},{"$f":"IF($B707=\"N\",\"\",IF(AND('Enrollment Form'!$C714=\"ROC\",'Enrollment Form'!$DR714<>\"\"),\"Y\",IF(AND('Enrollment Form'!$C714=\"ROC\",'Enrollment Form'!$DR714=\"\"),\"N\",IF(AND('Enrollment Form'!$C714=\"Enroll\",'Enrollment Form'!$B714=\"Subscriber\",'Enrollment Form'!$CX714=\"No\",'Enrollment Form'!$DR714=\"\"),\"N\",IF(AND('Enrollment Form'!$C714=\"Enroll\",'Enrollment Form'!$B714=\"Subscriber\",'Enrollment Form'!$CX714=\"Yes\"),\"-\",\"Y\")))))","v":""},{"$f":"IF($B707=\"N\",\"\",IF(AND('Enrollment Form'!$C714=\"ROC\",'Enrollment Form'!$DS714<>\"\"),\"Y\",IF(AND('Enrollment Form'!$C714=\"ROC\",'Enrollment Form'!$DS714=\"\"),\"N\",IF(AND('Enrollment Form'!$C714=\"Enroll\",'Enrollment Form'!$B714=\"Subscriber\",'Enrollment Form'!$CX714=\"No\",'Enrollment Form'!$DS714=\"\"),\"N\",IF(AND('Enrollment Form'!$C714=\"Enroll\",'Enrollment Form'!$B714=\"Subscriber\",'Enrollment Form'!$CX714=\"Yes\"),\"-\",\"Y\")))))","v":""},{"$f":"IF('Enrollment Form'!AH714=\"\",\"\",IF(ISERROR(SEARCH(\".\",'Enrollment Form'!AH714,SEARCH(\"@\",'Enrollment Form'!AH714))),\"N\",\"Y\"))","v":""},{"$f":"IF(OR($B707=\"N\",'Enrollment Form'!$G714=\"\"),\"\",IF('Enrollment Form'!$B714<>\"Subscriber\",\"-\",IF(COUNTIF('Enrollment Form'!$AV714:$AW714,\"Yes\")=2,\"N\",\"Y\")))","v":""},{"$f":"IF(OR('Enrollment Form'!$CJ714=\"\",'Enrollment Form'!$CJ714=\"No\"),\"-\",IF(AND('Enrollment Form'!$CJ714=\"Yes\",'Enrollment Form'!$CK714=\"\"),\"N\",\"Y\"))","v":"-"},{"$f":"IF(OR('Enrollment Form'!$CL714=\"\",'Enrollment Form'!$CL714=\"No\"),\"-\",IF(AND('Enrollment Form'!$CL714=\"Yes\",'Enrollment Form'!$CM714=\"\"),\"N\",\"Y\"))","v":"-"},{"$f":"IF(OR('Enrollment Form'!$CN714=\"\",'Enrollment Form'!$CN714=\"No\"),\"-\",IF(AND('Enrollment Form'!$CN714=\"Yes\",'Enrollment Form'!$CO714=\"\"),\"N\",\"Y\"))","v":"-"},{"$f":"IF(OR('Enrollment Form'!$CN714=\"\",'Enrollment Form'!$CN714=\"No\"),\"-\",IF(AND('Enrollment Form'!$CN714=\"Yes\",'Enrollment Form'!$CP714=\"\"),\"N\",\"Y\"))","v":"-"},{"$f":"IF('Enrollment Form'!B714<>\"Subscriber\",\"-\",IF(AND('Enrollment Form'!B714=\"Subscriber\",'Enrollment Form'!C714=\"Enroll\",'Enrollment Form'!AA714=\"\"),\"N\",\"Y\"))","v":"-"},{"$f":"IF(OR('Enrollment Form'!B714=\"Subscriber\",'Enrollment Form'!B714=\"\"),\"-\",IF('Enrollment Form'!BP714=\"\",\"N\",\"Y\"))","v":"-"},{"$f":"IF('Enrollment Form'!B714<>\"Subscriber\",\"-\",IF(AND('Enrollment Form'!B714=\"Subscriber\",'Enrollment Form'!G714=\"\"),\"N\",\"Y\"))","v":"-"},{"$f":"IF('Enrollment Form'!A714=\"\",\"\",IF('Enrollment Form'!B714=\"Subscriber\",\"-\",IF(AND('Enrollment Form'!B714<>\"Subscriber\",'Enrollment Form'!G714='Enrollment Form'!H714),\"N\",\"Y\")))","v":""},0]
[715,{"$f":"IF('Enrollment Form'!$A715<>\"\",\"Y\",\"N\")","v":"N"},{"$f":"IF(AND('Enrollment Form'!$B715=\"\",'Enrollment Form'!$C715<>\"\"),\"N\",IF($B708=\"N\",\"\",\"Y\"))","v":""},{"$f":"IF(OR($B708=\"N\",'Enrollment Form'!G715=\"\"),\"\",IF('Enrollment Form'!$B715<>\"Subscriber\",\"\",IF('Enrollment Form'!$G715='Enrollment Form'!$H715,\"Y\",\"N\")))","v":""},{"$f":"IF($B708=\"N\",\"\",IF(AND(COUNTIFS('Enrollment Form'!$H$11:$H$1000,'Enrollment Form'!$H715,'Enrollment Form'!$B$11:$B$1000,'Enrollment Form'!$B715)>1,'Enrollment Form'!$H715<>\"\"),\"N\",\"Y\"))","v":""},{"$f":"IF($B708=\"N\",\"\",IF(LEN('Enrollment Form'!$Y715)=0,\"\",IF(LEN('Enrollment Form'!$Y715)<>5,\"N\",\"Y\")))","v":""},{"$f":"IF($B708=\"N\",\"\",IF(LEN('Enrollment Form'!$AD715=0),\"\",IF(LEN('Enrollment Form'!$AD715)<>5,\"N\",\"Y\")))","v":""},{"$f":"IF($B708=\"N\",\"\",IF(LEN('Enrollment Form'!$BS715=0),\"\",IF(LEN('Enrollment Form'!$BS715)<>5,\"N\",\"Y\")))","v":""},{"$f":"IF($B708=\"N\",\"\",IF(LEN('Enrollment Form'!$AE715)=0,\"\",IF(LEN('Enrollment Form'!$AE715)<>10,\"N\",\"Y\")))","v":""},{"$f":"IF($B708=\"N\",\"\",IF(LEN('Enrollment Form'!$AF715)=0,\"\",IF(LEN('Enrollment Form'!$AF715)<>10,\"N\",\"Y\")))","v":""},{"$f":"IF('Enrollment Form'!$O715<>\"Graded\",\"-\",IF(AND('Enrollment Form'!$O715=\"Graded\",'Enrollment Form'!$AR715<>\"\"),\"Y\",\"N\"))","v":"-"},{"$f":"IF($B708=\"N\",\"\",IF(OR('Enrollment Form'!$B715<>\"Subscriber\",'Enrollment Form'!$C715=\"ROC\"),\"-\",IF(AND('Enrollment Form'!$B715=\"Subscriber\",'Enrollment Form'!$C715=\"Enroll\",'Enrollment Form'!$AJ715<>\"\"),\"Y\",\"N\")))","v":""},{"$f":"IF($B708=\"N\",\"\",IF(OR('Enrollment Form'!$B715<>\"Subscriber\",'Enrollment Form'!$C715=\"ROC\"),\"-\",IF(AND('Enrollment Form'!$B715=\"Subscriber\",'Enrollment Form'!$C715=\"Enroll\",'Enrollment Form'!$AK715<>\"\"),\"Y\",\"N\")))","v":""},{"$f":"IF($B708=\"N\",\"\",IF(OR('Enrollment Form'!$B715<>\"Subscriber\",'Enrollment Form'!$C715=\"ROC\"),\"-\",IF(AND('Enrollment Form'!$B715=\"Subscriber\",'Enrollment Form'!$C715=\"Enroll\",'Enrollment Form'!$AL715<>\"\"),\"Y\",\"N\")))","v":""},{"$f":"IF($B708=\"N\",\"\",IF(OR('Enrollment Form'!$B715<>\"Subscriber\",'Enrollment Form'!$C715=\"ROC\"),\"-\",IF(AND('Enrollment Form'!$B715=\"Subscriber\",'Enrollment Form'!$C715=\"Enroll\",'Enrollment Form'!$AP715<>\"\"),\"Y\",\"N\")))","v":""},{"$f":"IF($B708=\"N\",\"\",IF(OR('Enrollment Form'!$B715<>\"Subscriber\",'Enrollment Form'!$C715=\"ROC\"),\"-\",IF(AND('Enrollment Form'!$B715=\"Subscriber\",'Enrollment Form'!$C715=\"Enroll\",'Enrollment Form'!$AQ715<>\"\"),\"Y\",\"N\")))","v":""},{"$f":"IF($B708=\"N\",\"\",IF(OR('Enrollment Form'!$B715<>\"Subscriber\",'Enrollment Form'!$C715=\"ROC\"),\"-\",IF(AND('Enrollment Form'!$B715=\"Subscriber\",'Enrollment Form'!$C715=\"Enroll\",'Enrollment Form'!$AS715<>\"\"),\"Y\",\"N\")))","v":""},{"$f":"IF($B708=\"N\",\"\",IF($Q708=\"-\",\"-\",IF(AND($Q708=\"Y\",'Enrollment Form'!$AS715=\"No\"),\"-\",IF(AND($Q708=\"Y\",'Enrollment Form'!$AS715=\"Yes\",'Enrollment Form'!$AT715<>\"\"),\"Y\",\"N\"))))","v":""},{"$f":"IF($B708=\"N\",\"\",IF(OR('Enrollment Form'!$B715<>\"Subscriber\",'Enrollment Form'!$C715=\"ROC\"),\"-\",IF(AND('Enrollment Form'!$B715=\"Subscriber\",'Enrollment Form'!$C715=\"Enroll\",'Enrollment Form'!$CV715<>\"\"),\"Y\",\"N\")))","v":""},{"$f":"IF($B708=\"N\",\"\",IF($S708=\"-\",\"-\",IF(AND($S708=\"Y\",'Enrollment Form'!$CV715=\"No\"),\"-\",IF(AND($S708=\"Y\",'Enrollment Form'!$CV715=\"Yes\",'Enrollment Form'!$CW715<>\"\"),\"Y\",\"N\"))))","v":""},{"$f":"IF(OR('Enrollment Form'!$AY715=\"Yes\",'Enrollment Form'!$AY715=\"\"),\"-\",IF(OR(AND('Enrollment Form'!$AY715=\"No\",ISERROR(FIND(\"HMO\",VLOOKUP('Enrollment Form'!G715,'Enrollment Form'!H$11:J$1000,3,FALSE),1))=FALSE,COUNTA('Enrollment Form'!$AZ715:$BC715)=4),AND('Enrollment Form'!$AY715=\"No\",ISERROR(FIND(\"HMO\",VLOOKUP('Enrollment Form'!G715,'Enrollment Form'!H$11:J$1000,3,FALSE),1))=FALSE,COUNTA('Enrollment Form'!$BT715:$BW715)=4)),\"Y\",\"N\"))","v":"-"},{"$f":"IF($B708=\"N\",\"\",IF('Enrollment Form'!$B715=\"Subscriber\",\"-\",IF(COUNTA('Enrollment Form'!$BL715,'Enrollment Form'!$BN715)=2,\"Y\",\"N\")))","v":""},{"$f":"IF($B708=\"N\",\"\",IF(OR('Enrollment Form'!$AX715=\"\",'Enrollment Form'!$AX715=\"No\"),\"-\",IF(AND('Enrollment Form'!$AX715=\"Yes\",COUNTA('Enrollment Form'!$CR715)=1),\"Y\",\"N\")))","v":""},{"$f":"IF(OR('Enrollment Form'!$CR715=\"\",'Enrollment Form'!$CR715=\"No\"),\"-\",IF(COUNTA('Enrollment Form'!$CT715:$CU715)=2,\"Y\",\"N\"))","v":"-"},{"$f":"IF($B708=\"N\",\"\",IF(COUNTIF('Enrollment Form'!$DG715:$DP715,\"Other\")=COUNTA('Enrollment Form'!$DK715,'Enrollment Form'!$DH715,'Enrollment Form'!$DN715,'Enrollment Form'!$DQ715),\"Y\",\"N\"))","v":""},{"$f":"IF($B708=\"N\",\"\",IF(OR('Enrollment Form'!B715<>\"Subscriber\",'Enrollment Form'!C715=\"ROC\",COUNTIF('Enrollment Form'!AV715:AW715,\"Yes\")>=1),\"-\",IF(AND('Enrollment Form'!C715=\"Enroll\",COUNTIF('Enrollment Form'!AV715:AW715,\"No\")=2,'Enrollment Form'!AX715=\"\"),\"N\",\"Y\")))","v":""},{"$f":"IF(OR(B708=\"N\",'Enrollment Form'!B715<>\"Subscriber\",'Enrollment Form'!C715=\"ROC\",'Enrollment Form'!O715<>\"Multiple of Salary\"),\"-\",IF(COUNTA('Enrollment Form'!T715:U715)<2,\"N\",\"Y\"))","v":"-"},{"$f":"IF(B708=\"N\",\"\",IF(OR('Enrollment Form'!C715=\"ROC\",'Enrollment Form'!B715<>\"Subscriber\",'Enrollment Form'!O715=\"Waive\",'Enrollment Form'!O715=\"\"),\"-\",IF('Enrollment Form'!P715=\"\",\"N\",\"Y\")))","v":""},{"$f":"IF($B708=\"N\",\"\",IF(AND('Enrollment Form'!$C715=\"ROC\",'Enrollment Form'!$DR715<>\"\"),\"Y\",IF(AND('Enrollment Form'!$C715=\"ROC\",'Enrollment Form'!$DR715=\"\"),\"N\",IF(AND('Enrollment Form'!$C715=\"Enroll\",'Enrollment Form'!$B715=\"Subscriber\",'Enrollment Form'!$CX715=\"No\",'Enrollment Form'!$DR715=\"\"),\"N\",IF(AND('Enrollment Form'!$C715=\"Enroll\",'Enrollment Form'!$B715=\"Subscriber\",'Enrollment Form'!$CX715=\"Yes\"),\"-\",\"Y\")))))","v":""},{"$f":"IF($B708=\"N\",\"\",IF(AND('Enrollment Form'!$C715=\"ROC\",'Enrollment Form'!$DS715<>\"\"),\"Y\",IF(AND('Enrollment Form'!$C715=\"ROC\",'Enrollment Form'!$DS715=\"\"),\"N\",IF(AND('Enrollment Form'!$C715=\"Enroll\",'Enrollment Form'!$B715=\"Subscriber\",'Enrollment Form'!$CX715=\"No\",'Enrollment Form'!$DS715=\"\"),\"N\",IF(AND('Enrollment Form'!$C715=\"Enroll\",'Enrollment Form'!$B715=\"Subscriber\",'Enrollment Form'!$CX715=\"Yes\"),\"-\",\"Y\")))))","v":""},{"$f":"IF('Enrollment Form'!AH715=\"\",\"\",IF(ISERROR(SEARCH(\".\",'Enrollment Form'!AH715,SEARCH(\"@\",'Enrollment Form'!AH715))),\"N\",\"Y\"))","v":""},{"$f":"IF(OR($B708=\"N\",'Enrollment Form'!$G715=\"\"),\"\",IF('Enrollment Form'!$B715<>\"Subscriber\",\"-\",IF(COUNTIF('Enrollment Form'!$AV715:$AW715,\"Yes\")=2,\"N\",\"Y\")))","v":""},{"$f":"IF(OR('Enrollment Form'!$CJ715=\"\",'Enrollment Form'!$CJ715=\"No\"),\"-\",IF(AND('Enrollment Form'!$CJ715=\"Yes\",'Enrollment Form'!$CK715=\"\"),\"N\",\"Y\"))","v":"-"},{"$f":"IF(OR('Enrollment Form'!$CL715=\"\",'Enrollment Form'!$CL715=\"No\"),\"-\",IF(AND('Enrollment Form'!$CL715=\"Yes\",'Enrollment Form'!$CM715=\"\"),\"N\",\"Y\"))","v":"-"},{"$f":"IF(OR('Enrollment Form'!$CN715=\"\",'Enrollment Form'!$CN715=\"No\"),\"-\",IF(AND('Enrollment Form'!$CN715=\"Yes\",'Enrollment Form'!$CO715=\"\"),\"N\",\"Y\"))","v":"-"},{"$f":"IF(OR('Enrollment Form'!$CN715=\"\",'Enrollment Form'!$CN715=\"No\"),\"-\",IF(AND('Enrollment Form'!$CN715=\"Yes\",'Enrollment Form'!$CP715=\"\"),\"N\",\"Y\"))","v":"-"},{"$f":"IF('Enrollment Form'!B715<>\"Subscriber\",\"-\",IF(AND('Enrollment Form'!B715=\"Subscriber\",'Enrollment Form'!C715=\"Enroll\",'Enrollment Form'!AA715=\"\"),\"N\",\"Y\"))","v":"-"},{"$f":"IF(OR('Enrollment Form'!B715=\"Subscriber\",'Enrollment Form'!B715=\"\"),\"-\",IF('Enrollment Form'!BP715=\"\",\"N\",\"Y\"))","v":"-"},{"$f":"IF('Enrollment Form'!B715<>\"Subscriber\",\"-\",IF(AND('Enrollment Form'!B715=\"Subscriber\",'Enrollment Form'!G715=\"\"),\"N\",\"Y\"))","v":"-"},{"$f":"IF('Enrollment Form'!A715=\"\",\"\",IF('Enrollment Form'!B715=\"Subscriber\",\"-\",IF(AND('Enrollment Form'!B715<>\"Subscriber\",'Enrollment Form'!G715='Enrollment Form'!H715),\"N\",\"Y\")))","v":""},{"$f":"COUNTIF(C708:AN708,\"N\")","v":0}]
[716,{"$f":"IF('Enrollment Form'!$A716<>\"\",\"Y\",\"N\")","v":"N"},{"$f":"IF(AND('Enrollment Form'!$B716=\"\",'Enrollment Form'!$C716<>\"\"),\"N\",IF($B709=\"N\",\"\",\"Y\"))","v":""},{"$f":"IF(OR($B709=\"N\",'Enrollment Form'!G716=\"\"),\"\",IF('Enrollment Form'!$B716<>\"Subscriber\",\"\",IF('Enrollment Form'!$G716='Enrollment Form'!$H716,\"Y\",\"N\")))","v":""},{"$f":"IF($B709=\"N\",\"\",IF(AND(COUNTIFS('Enrollment Form'!$H$11:$H$1000,'Enrollment Form'!$H716,'Enrollment Form'!$B$11:$B$1000,'Enrollment Form'!$B716)>1,'Enrollment Form'!$H716<>\"\"),\"N\",\"Y\"))","v":""},{"$f":"IF($B709=\"N\",\"\",IF(LEN('Enrollment Form'!$Y716)=0,\"\",IF(LEN('Enrollment Form'!$Y716)<>5,\"N\",\"Y\")))","v":""},{"$f":"IF($B709=\"N\",\"\",IF(LEN('Enrollment Form'!$AD716=0),\"\",IF(LEN('Enrollment Form'!$AD716)<>5,\"N\",\"Y\")))","v":""},{"$f":"IF($B709=\"N\",\"\",IF(LEN('Enrollment Form'!$BS716=0),\"\",IF(LEN('Enrollment Form'!$BS716)<>5,\"N\",\"Y\")))","v":""},{"$f":"IF($B709=\"N\",\"\",IF(LEN('Enrollment Form'!$AE716)=0,\"\",IF(LEN('Enrollment Form'!$AE716)<>10,\"N\",\"Y\")))","v":""},{"$f":"IF($B709=\"N\",\"\",IF(LEN('Enrollment Form'!$AF716)=0,\"\",IF(LEN('Enrollment Form'!$AF716)<>10,\"N\",\"Y\")))","v":""},{"$f":"IF('Enrollment Form'!$O716<>\"Graded\",\"-\",IF(AND('Enrollment Form'!$O716=\"Graded\",'Enrollment Form'!$AR716<>\"\"),\"Y\",\"N\"))","v":"-"},{"$f":"IF($B709=\"N\",\"\",IF(OR('Enrollment Form'!$B716<>\"Subscriber\",'Enrollment Form'!$C716=\"ROC\"),\"-\",IF(AND('Enrollment Form'!$B716=\"Subscriber\",'Enrollment Form'!$C716=\"Enroll\",'Enrollment Form'!$AJ716<>\"\"),\"Y\",\"N\")))","v":""},{"$f":"IF($B709=\"N\",\"\",IF(OR('Enrollment Form'!$B716<>\"Subscriber\",'Enrollment Form'!$C716=\"ROC\"),\"-\",IF(AND('Enrollment Form'!$B716=\"Subscriber\",'Enrollment Form'!$C716=\"Enroll\",'Enrollment Form'!$AK716<>\"\"),\"Y\",\"N\")))","v":""},{"$f":"IF($B709=\"N\",\"\",IF(OR('Enrollment Form'!$B716<>\"Subscriber\",'Enrollment Form'!$C716=\"ROC\"),\"-\",IF(AND('Enrollment Form'!$B716=\"Subscriber\",'Enrollment Form'!$C716=\"Enroll\",'Enrollment Form'!$AL716<>\"\"),\"Y\",\"N\")))","v":""},{"$f":"IF($B709=\"N\",\"\",IF(OR('Enrollment Form'!$B716<>\"Subscriber\",'Enrollment Form'!$C716=\"ROC\"),\"-\",IF(AND('Enrollment Form'!$B716=\"Subscriber\",'Enrollment Form'!$C716=\"Enroll\",'Enrollment Form'!$AP716<>\"\"),\"Y\",\"N\")))","v":""},{"$f":"IF($B709=\"N\",\"\",IF(OR('Enrollment Form'!$B716<>\"Subscriber\",'Enrollment Form'!$C716=\"ROC\"),\"-\",IF(AND('Enrollment Form'!$B716=\"Subscriber\",'Enrollment Form'!$C716=\"Enroll\",'Enrollment Form'!$AQ716<>\"\"),\"Y\",\"N\")))","v":""},{"$f":"IF($B709=\"N\",\"\",IF(OR('Enrollment Form'!$B716<>\"Subscriber\",'Enrollment Form'!$C716=\"ROC\"),\"-\",IF(AND('Enrollment Form'!$B716=\"Subscriber\",'Enrollment Form'!$C716=\"Enroll\",'Enrollment Form'!$AS716<>\"\"),\"Y\",\"N\")))","v":""},{"$f":"IF($B709=\"N\",\"\",IF($Q709=\"-\",\"-\",IF(AND($Q709=\"Y\",'Enrollment Form'!$AS716=\"No\"),\"-\",IF(AND($Q709=\"Y\",'Enrollment Form'!$AS716=\"Yes\",'Enrollment Form'!$AT716<>\"\"),\"Y\",\"N\"))))","v":""},{"$f":"IF($B709=\"N\",\"\",IF(OR('Enrollment Form'!$B716<>\"Subscriber\",'Enrollment Form'!$C716=\"ROC\"),\"-\",IF(AND('Enrollment Form'!$B716=\"Subscriber\",'Enrollment Form'!$C716=\"Enroll\",'Enrollment Form'!$CV716<>\"\"),\"Y\",\"N\")))","v":""},{"$f":"IF($B709=\"N\",\"\",IF($S709=\"-\",\"-\",IF(AND($S709=\"Y\",'Enrollment Form'!$CV716=\"No\"),\"-\",IF(AND($S709=\"Y\",'Enrollment Form'!$CV716=\"Yes\",'Enrollment Form'!$CW716<>\"\"),\"Y\",\"N\"))))","v":""},{"$f":"IF(OR('Enrollment Form'!$AY716=\"Yes\",'Enrollment Form'!$AY716=\"\"),\"-\",IF(OR(AND('Enrollment Form'!$AY716=\"No\",ISERROR(FIND(\"HMO\",VLOOKUP('Enrollment Form'!G716,'Enrollment Form'!H$11:J$1000,3,FALSE),1))=FALSE,COUNTA('Enrollment Form'!$AZ716:$BC716)=4),AND('Enrollment Form'!$AY716=\"No\",ISERROR(FIND(\"HMO\",VLOOKUP('Enrollment Form'!G716,'Enrollment Form'!H$11:J$1000,3,FALSE),1))=FALSE,COUNTA('Enrollment Form'!$BT716:$BW716)=4)),\"Y\",\"N\"))","v":"-"},{"$f":"IF($B709=\"N\",\"\",IF('Enrollment Form'!$B716=\"Subscriber\",\"-\",IF(COUNTA('Enrollment Form'!$BL716,'Enrollment Form'!$BN716)=2,\"Y\",\"N\")))","v":""},{"$f":"IF($B709=\"N\",\"\",IF(OR('Enrollment Form'!$AX716=\"\",'Enrollment Form'!$AX716=\"No\"),\"-\",IF(AND('Enrollment Form'!$AX716=\"Yes\",COUNTA('Enrollment Form'!$CR716)=1),\"Y\",\"N\")))","v":""},{"$f":"IF(OR('Enrollment Form'!$CR716=\"\",'Enrollment Form'!$CR716=\"No\"),\"-\",IF(COUNTA('Enrollment Form'!$CT716:$CU716)=2,\"Y\",\"N\"))","v":"-"},{"$f":"IF($B709=\"N\",\"\",IF(COUNTIF('Enrollment Form'!$DG716:$DP716,\"Other\")=COUNTA('Enrollment Form'!$DK716,'Enrollment Form'!$DH716,'Enrollment Form'!$DN716,'Enrollment Form'!$DQ716),\"Y\",\"N\"))","v":""},{"$f":"IF($B709=\"N\",\"\",IF(OR('Enrollment Form'!B716<>\"Subscriber\",'Enrollment Form'!C716=\"ROC\",COUNTIF('Enrollment Form'!AV716:AW716,\"Yes\")>=1),\"-\",IF(AND('Enrollment Form'!C716=\"Enroll\",COUNTIF('Enrollment Form'!AV716:AW716,\"No\")=2,'Enrollment Form'!AX716=\"\"),\"N\",\"Y\")))","v":""},{"$f":"IF(OR(B709=\"N\",'Enrollment Form'!B716<>\"Subscriber\",'Enrollment Form'!C716=\"ROC\",'Enrollment Form'!O716<>\"Multiple of Salary\"),\"-\",IF(COUNTA('Enrollment Form'!T716:U716)<2,\"N\",\"Y\"))","v":"-"},{"$f":"IF(B709=\"N\",\"\",IF(OR('Enrollment Form'!C716=\"ROC\",'Enrollment Form'!B716<>\"Subscriber\",'Enrollment Form'!O716=\"Waive\",'Enrollment Form'!O716=\"\"),\"-\",IF('Enrollment Form'!P716=\"\",\"N\",\"Y\")))","v":""},{"$f":"IF($B709=\"N\",\"\",IF(AND('Enrollment Form'!$C716=\"ROC\",'Enrollment Form'!$DR716<>\"\"),\"Y\",IF(AND('Enrollment Form'!$C716=\"ROC\",'Enrollment Form'!$DR716=\"\"),\"N\",IF(AND('Enrollment Form'!$C716=\"Enroll\",'Enrollment Form'!$B716=\"Subscriber\",'Enrollment Form'!$CX716=\"No\",'Enrollment Form'!$DR716=\"\"),\"N\",IF(AND('Enrollment Form'!$C716=\"Enroll\",'Enrollment Form'!$B716=\"Subscriber\",'Enrollment Form'!$CX716=\"Yes\"),\"-\",\"Y\")))))","v":""},{"$f":"IF($B709=\"N\",\"\",IF(AND('Enrollment Form'!$C716=\"ROC\",'Enrollment Form'!$DS716<>\"\"),\"Y\",IF(AND('Enrollment Form'!$C716=\"ROC\",'Enrollment Form'!$DS716=\"\"),\"N\",IF(AND('Enrollment Form'!$C716=\"Enroll\",'Enrollment Form'!$B716=\"Subscriber\",'Enrollment Form'!$CX716=\"No\",'Enrollment Form'!$DS716=\"\"),\"N\",IF(AND('Enrollment Form'!$C716=\"Enroll\",'Enrollment Form'!$B716=\"Subscriber\",'Enrollment Form'!$CX716=\"Yes\"),\"-\",\"Y\")))))","v":""},{"$f":"IF('Enrollment Form'!AH716=\"\",\"\",IF(ISERROR(SEARCH(\".\",'Enrollment Form'!AH716,SEARCH(\"@\",'Enrollment Form'!AH716))),\"N\",\"Y\"))","v":""},{"$f":"IF(OR($B709=\"N\",'Enrollment Form'!$G716=\"\"),\"\",IF('Enrollment Form'!$B716<>\"Subscriber\",\"-\",IF(COUNTIF('Enrollment Form'!$AV716:$AW716,\"Yes\")=2,\"N\",\"Y\")))","v":""},{"$f":"IF(OR('Enrollment Form'!$CJ716=\"\",'Enrollment Form'!$CJ716=\"No\"),\"-\",IF(AND('Enrollment Form'!$CJ716=\"Yes\",'Enrollment Form'!$CK716=\"\"),\"N\",\"Y\"))","v":"-"},{"$f":"IF(OR('Enrollment Form'!$CL716=\"\",'Enrollment Form'!$CL716=\"No\"),\"-\",IF(AND('Enrollment Form'!$CL716=\"Yes\",'Enrollment Form'!$CM716=\"\"),\"N\",\"Y\"))","v":"-"},{"$f":"IF(OR('Enrollment Form'!$CN716=\"\",'Enrollment Form'!$CN716=\"No\"),\"-\",IF(AND('Enrollment Form'!$CN716=\"Yes\",'Enrollment Form'!$CO716=\"\"),\"N\",\"Y\"))","v":"-"},{"$f":"IF(OR('Enrollment Form'!$CN716=\"\",'Enrollment Form'!$CN716=\"No\"),\"-\",IF(AND('Enrollment Form'!$CN716=\"Yes\",'Enrollment Form'!$CP716=\"\"),\"N\",\"Y\"))","v":"-"},{"$f":"IF('Enrollment Form'!B716<>\"Subscriber\",\"-\",IF(AND('Enrollment Form'!B716=\"Subscriber\",'Enrollment Form'!C716=\"Enroll\",'Enrollment Form'!AA716=\"\"),\"N\",\"Y\"))","v":"-"},{"$f":"IF(OR('Enrollment Form'!B716=\"Subscriber\",'Enrollment Form'!B716=\"\"),\"-\",IF('Enrollment Form'!BP716=\"\",\"N\",\"Y\"))","v":"-"},{"$f":"IF('Enrollment Form'!B716<>\"Subscriber\",\"-\",IF(AND('Enrollment Form'!B716=\"Subscriber\",'Enrollment Form'!G716=\"\"),\"N\",\"Y\"))","v":"-"},{"$f":"IF('Enrollment Form'!A716=\"\",\"\",IF('Enrollment Form'!B716=\"Subscriber\",\"-\",IF(AND('Enrollment Form'!B716<>\"Subscriber\",'Enrollment Form'!G716='Enrollment Form'!H716),\"N\",\"Y\")))","v":""},0]
[{"$f":"1+A709","v":717},{"$f":"IF('Enrollment Form'!$A717<>\"\",\"Y\",\"N\")","v":"N"},{"$f":"IF(AND('Enrollment Form'!$B717=\"\",'Enrollment Form'!$C717<>\"\"),\"N\",IF($B710=\"N\",\"\",\"Y\"))","v":""},{"$f":"IF(OR($B710=\"N\",'Enrollment Form'!G717=\"\"),\"\",IF('Enrollment Form'!$B717<>\"Subscriber\",\"\",IF('Enrollment Form'!$G717='Enrollment Form'!$H717,\"Y\",\"N\")))","v":""},{"$f":"IF($B710=\"N\",\"\",IF(AND(COUNTIFS('Enrollment Form'!$H$11:$H$1000,'Enrollment Form'!$H717,'Enrollment Form'!$B$11:$B$1000,'Enrollment Form'!$B717)>1,'Enrollment Form'!$H717<>\"\"),\"N\",\"Y\"))","v":""},{"$f":"IF($B710=\"N\",\"\",IF(LEN('Enrollment Form'!$Y717)=0,\"\",IF(LEN('Enrollment Form'!$Y717)<>5,\"N\",\"Y\")))","v":""},{"$f":"IF($B710=\"N\",\"\",IF(LEN('Enrollment Form'!$AD717=0),\"\",IF(LEN('Enrollment Form'!$AD717)<>5,\"N\",\"Y\")))","v":""},{"$f":"IF($B710=\"N\",\"\",IF(LEN('Enrollment Form'!$BS717=0),\"\",IF(LEN('Enrollment Form'!$BS717)<>5,\"N\",\"Y\")))","v":""},{"$f":"IF($B710=\"N\",\"\",IF(LEN('Enrollment Form'!$AE717)=0,\"\",IF(LEN('Enrollment Form'!$AE717)<>10,\"N\",\"Y\")))","v":""},{"$f":"IF($B710=\"N\",\"\",IF(LEN('Enrollment Form'!$AF717)=0,\"\",IF(LEN('Enrollment Form'!$AF717)<>10,\"N\",\"Y\")))","v":""},{"$f":"IF('Enrollment Form'!$O717<>\"Graded\",\"-\",IF(AND('Enrollment Form'!$O717=\"Graded\",'Enrollment Form'!$AR717<>\"\"),\"Y\",\"N\"))","v":"-"},{"$f":"IF($B710=\"N\",\"\",IF(OR('Enrollment Form'!$B717<>\"Subscriber\",'Enrollment Form'!$C717=\"ROC\"),\"-\",IF(AND('Enrollment Form'!$B717=\"Subscriber\",'Enrollment Form'!$C717=\"Enroll\",'Enrollment Form'!$AJ717<>\"\"),\"Y\",\"N\")))","v":""},{"$f":"IF($B710=\"N\",\"\",IF(OR('Enrollment Form'!$B717<>\"Subscriber\",'Enrollment Form'!$C717=\"ROC\"),\"-\",IF(AND('Enrollment Form'!$B717=\"Subscriber\",'Enrollment Form'!$C717=\"Enroll\",'Enrollment Form'!$AK717<>\"\"),\"Y\",\"N\")))","v":""},{"$f":"IF($B710=\"N\",\"\",IF(OR('Enrollment Form'!$B717<>\"Subscriber\",'Enrollment Form'!$C717=\"ROC\"),\"-\",IF(AND('Enrollment Form'!$B717=\"Subscriber\",'Enrollment Form'!$C717=\"Enroll\",'Enrollment Form'!$AL717<>\"\"),\"Y\",\"N\")))","v":""},{"$f":"IF($B710=\"N\",\"\",IF(OR('Enrollment Form'!$B717<>\"Subscriber\",'Enrollment Form'!$C717=\"ROC\"),\"-\",IF(AND('Enrollment Form'!$B717=\"Subscriber\",'Enrollment Form'!$C717=\"Enroll\",'Enrollment Form'!$AP717<>\"\"),\"Y\",\"N\")))","v":""},{"$f":"IF($B710=\"N\",\"\",IF(OR('Enrollment Form'!$B717<>\"Subscriber\",'Enrollment Form'!$C717=\"ROC\"),\"-\",IF(AND('Enrollment Form'!$B717=\"Subscriber\",'Enrollment Form'!$C717=\"Enroll\",'Enrollment Form'!$AQ717<>\"\"),\"Y\",\"N\")))","v":""},{"$f":"IF($B710=\"N\",\"\",IF(OR('Enrollment Form'!$B717<>\"Subscriber\",'Enrollment Form'!$C717=\"ROC\"),\"-\",IF(AND('Enrollment Form'!$B717=\"Subscriber\",'Enrollment Form'!$C717=\"Enroll\",'Enrollment Form'!$AS717<>\"\"),\"Y\",\"N\")))","v":""},{"$f":"IF($B710=\"N\",\"\",IF($Q710=\"-\",\"-\",IF(AND($Q710=\"Y\",'Enrollment Form'!$AS717=\"No\"),\"-\",IF(AND($Q710=\"Y\",'Enrollment Form'!$AS717=\"Yes\",'Enrollment Form'!$AT717<>\"\"),\"Y\",\"N\"))))","v":""},{"$f":"IF($B710=\"N\",\"\",IF(OR('Enrollment Form'!$B717<>\"Subscriber\",'Enrollment Form'!$C717=\"ROC\"),\"-\",IF(AND('Enrollment Form'!$B717=\"Subscriber\",'Enrollment Form'!$C717=\"Enroll\",'Enrollment Form'!$CV717<>\"\"),\"Y\",\"N\")))","v":""},{"$f":"IF($B710=\"N\",\"\",IF($S710=\"-\",\"-\",IF(AND($S710=\"Y\",'Enrollment Form'!$CV717=\"No\"),\"-\",IF(AND($S710=\"Y\",'Enrollment Form'!$CV717=\"Yes\",'Enrollment Form'!$CW717<>\"\"),\"Y\",\"N\"))))","v":""},{"$f":"IF(OR('Enrollment Form'!$AY717=\"Yes\",'Enrollment Form'!$AY717=\"\"),\"-\",IF(OR(AND('Enrollment Form'!$AY717=\"No\",ISERROR(FIND(\"HMO\",VLOOKUP('Enrollment Form'!G717,'Enrollment Form'!H$11:J$1000,3,FALSE),1))=FALSE,COUNTA('Enrollment Form'!$AZ717:$BC717)=4),AND('Enrollment Form'!$AY717=\"No\",ISERROR(FIND(\"HMO\",VLOOKUP('Enrollment Form'!G717,'Enrollment Form'!H$11:J$1000,3,FALSE),1))=FALSE,COUNTA('Enrollment Form'!$BT717:$BW717)=4)),\"Y\",\"N\"))","v":"-"},{"$f":"IF($B710=\"N\",\"\",IF('Enrollment Form'!$B717=\"Subscriber\",\"-\",IF(COUNTA('Enrollment Form'!$BL717,'Enrollment Form'!$BN717)=2,\"Y\",\"N\")))","v":""},{"$f":"IF($B710=\"N\",\"\",IF(OR('Enrollment Form'!$AX717=\"\",'Enrollment Form'!$AX717=\"No\"),\"-\",IF(AND('Enrollment Form'!$AX717=\"Yes\",COUNTA('Enrollment Form'!$CR717)=1),\"Y\",\"N\")))","v":""},{"$f":"IF(OR('Enrollment Form'!$CR717=\"\",'Enrollment Form'!$CR717=\"No\"),\"-\",IF(COUNTA('Enrollment Form'!$CT717:$CU717)=2,\"Y\",\"N\"))","v":"-"},{"$f":"IF($B710=\"N\",\"\",IF(COUNTIF('Enrollment Form'!$DG717:$DP717,\"Other\")=COUNTA('Enrollment Form'!$DK717,'Enrollment Form'!$DH717,'Enrollment Form'!$DN717,'Enrollment Form'!$DQ717),\"Y\",\"N\"))","v":""},{"$f":"IF($B710=\"N\",\"\",IF(OR('Enrollment Form'!B717<>\"Subscriber\",'Enrollment Form'!C717=\"ROC\",COUNTIF('Enrollment Form'!AV717:AW717,\"Yes\")>=1),\"-\",IF(AND('Enrollment Form'!C717=\"Enroll\",COUNTIF('Enrollment Form'!AV717:AW717,\"No\")=2,'Enrollment Form'!AX717=\"\"),\"N\",\"Y\")))","v":""},{"$f":"IF(OR(B710=\"N\",'Enrollment Form'!B717<>\"Subscriber\",'Enrollment Form'!C717=\"ROC\",'Enrollment Form'!O717<>\"Multiple of Salary\"),\"-\",IF(COUNTA('Enrollment Form'!T717:U717)<2,\"N\",\"Y\"))","v":"-"},{"$f":"IF(B710=\"N\",\"\",IF(OR('Enrollment Form'!C717=\"ROC\",'Enrollment Form'!B717<>\"Subscriber\",'Enrollment Form'!O717=\"Waive\",'Enrollment Form'!O717=\"\"),\"-\",IF('Enrollment Form'!P717=\"\",\"N\",\"Y\")))","v":""},{"$f":"IF($B710=\"N\",\"\",IF(AND('Enrollment Form'!$C717=\"ROC\",'Enrollment Form'!$DR717<>\"\"),\"Y\",IF(AND('Enrollment Form'!$C717=\"ROC\",'Enrollment Form'!$DR717=\"\"),\"N\",IF(AND('Enrollment Form'!$C717=\"Enroll\",'Enrollment Form'!$B717=\"Subscriber\",'Enrollment Form'!$CX717=\"No\",'Enrollment Form'!$DR717=\"\"),\"N\",IF(AND('Enrollment Form'!$C717=\"Enroll\",'Enrollment Form'!$B717=\"Subscriber\",'Enrollment Form'!$CX717=\"Yes\"),\"-\",\"Y\")))))","v":""},{"$f":"IF($B710=\"N\",\"\",IF(AND('Enrollment Form'!$C717=\"ROC\",'Enrollment Form'!$DS717<>\"\"),\"Y\",IF(AND('Enrollment Form'!$C717=\"ROC\",'Enrollment Form'!$DS717=\"\"),\"N\",IF(AND('Enrollment Form'!$C717=\"Enroll\",'Enrollment Form'!$B717=\"Subscriber\",'Enrollment Form'!$CX717=\"No\",'Enrollment Form'!$DS717=\"\"),\"N\",IF(AND('Enrollment Form'!$C717=\"Enroll\",'Enrollment Form'!$B717=\"Subscriber\",'Enrollment Form'!$CX717=\"Yes\"),\"-\",\"Y\")))))","v":""},{"$f":"IF('Enrollment Form'!AH717=\"\",\"\",IF(ISERROR(SEARCH(\".\",'Enrollment Form'!AH717,SEARCH(\"@\",'Enrollment Form'!AH717))),\"N\",\"Y\"))","v":""},{"$f":"IF(OR($B710=\"N\",'Enrollment Form'!$G717=\"\"),\"\",IF('Enrollment Form'!$B717<>\"Subscriber\",\"-\",IF(COUNTIF('Enrollment Form'!$AV717:$AW717,\"Yes\")=2,\"N\",\"Y\")))","v":""},{"$f":"IF(OR('Enrollment Form'!$CJ717=\"\",'Enrollment Form'!$CJ717=\"No\"),\"-\",IF(AND('Enrollment Form'!$CJ717=\"Yes\",'Enrollment Form'!$CK717=\"\"),\"N\",\"Y\"))","v":"-"},{"$f":"IF(OR('Enrollment Form'!$CL717=\"\",'Enrollment Form'!$CL717=\"No\"),\"-\",IF(AND('Enrollment Form'!$CL717=\"Yes\",'Enrollment Form'!$CM717=\"\"),\"N\",\"Y\"))","v":"-"},{"$f":"IF(OR('Enrollment Form'!$CN717=\"\",'Enrollment Form'!$CN717=\"No\"),\"-\",IF(AND('Enrollment Form'!$CN717=\"Yes\",'Enrollment Form'!$CO717=\"\"),\"N\",\"Y\"))","v":"-"},{"$f":"IF(OR('Enrollment Form'!$CN717=\"\",'Enrollment Form'!$CN717=\"No\"),\"-\",IF(AND('Enrollment Form'!$CN717=\"Yes\",'Enrollment Form'!$CP717=\"\"),\"N\",\"Y\"))","v":"-"},{"$f":"IF('Enrollment Form'!B717<>\"Subscriber\",\"-\",IF(AND('Enrollment Form'!B717=\"Subscriber\",'Enrollment Form'!C717=\"Enroll\",'Enrollment Form'!AA717=\"\"),\"N\",\"Y\"))","v":"-"},{"$f":"IF(OR('Enrollment Form'!B717=\"Subscriber\",'Enrollment Form'!B717=\"\"),\"-\",IF('Enrollment Form'!BP717=\"\",\"N\",\"Y\"))","v":"-"},{"$f":"IF('Enrollment Form'!B717<>\"Subscriber\",\"-\",IF(AND('Enrollment Form'!B717=\"Subscriber\",'Enrollment Form'!G717=\"\"),\"N\",\"Y\"))","v":"-"},{"$f":"IF('Enrollment Form'!A717=\"\",\"\",IF('Enrollment Form'!B717=\"Subscriber\",\"-\",IF(AND('Enrollment Form'!B717<>\"Subscriber\",'Enrollment Form'!G717='Enrollment Form'!H717),\"N\",\"Y\")))","v":""},0]
[718,{"$f":"IF('Enrollment Form'!$A718<>\"\",\"Y\",\"N\")","v":"N"},{"$f":"IF(AND('Enrollment Form'!$B718=\"\",'Enrollment Form'!$C718<>\"\"),\"N\",IF($B711=\"N\",\"\",\"Y\"))","v":""},{"$f":"IF(OR($B711=\"N\",'Enrollment Form'!G718=\"\"),\"\",IF('Enrollment Form'!$B718<>\"Subscriber\",\"\",IF('Enrollment Form'!$G718='Enrollment Form'!$H718,\"Y\",\"N\")))","v":""},{"$f":"IF($B711=\"N\",\"\",IF(AND(COUNTIFS('Enrollment Form'!$H$11:$H$1000,'Enrollment Form'!$H718,'Enrollment Form'!$B$11:$B$1000,'Enrollment Form'!$B718)>1,'Enrollment Form'!$H718<>\"\"),\"N\",\"Y\"))","v":""},{"$f":"IF($B711=\"N\",\"\",IF(LEN('Enrollment Form'!$Y718)=0,\"\",IF(LEN('Enrollment Form'!$Y718)<>5,\"N\",\"Y\")))","v":""},{"$f":"IF($B711=\"N\",\"\",IF(LEN('Enrollment Form'!$AD718=0),\"\",IF(LEN('Enrollment Form'!$AD718)<>5,\"N\",\"Y\")))","v":""},{"$f":"IF($B711=\"N\",\"\",IF(LEN('Enrollment Form'!$BS718=0),\"\",IF(LEN('Enrollment Form'!$BS718)<>5,\"N\",\"Y\")))","v":""},{"$f":"IF($B711=\"N\",\"\",IF(LEN('Enrollment Form'!$AE718)=0,\"\",IF(LEN('Enrollment Form'!$AE718)<>10,\"N\",\"Y\")))","v":""},{"$f":"IF($B711=\"N\",\"\",IF(LEN('Enrollment Form'!$AF718)=0,\"\",IF(LEN('Enrollment Form'!$AF718)<>10,\"N\",\"Y\")))","v":""},{"$f":"IF('Enrollment Form'!$O718<>\"Graded\",\"-\",IF(AND('Enrollment Form'!$O718=\"Graded\",'Enrollment Form'!$AR718<>\"\"),\"Y\",\"N\"))","v":"-"},{"$f":"IF($B711=\"N\",\"\",IF(OR('Enrollment Form'!$B718<>\"Subscriber\",'Enrollment Form'!$C718=\"ROC\"),\"-\",IF(AND('Enrollment Form'!$B718=\"Subscriber\",'Enrollment Form'!$C718=\"Enroll\",'Enrollment Form'!$AJ718<>\"\"),\"Y\",\"N\")))","v":""},{"$f":"IF($B711=\"N\",\"\",IF(OR('Enrollment Form'!$B718<>\"Subscriber\",'Enrollment Form'!$C718=\"ROC\"),\"-\",IF(AND('Enrollment Form'!$B718=\"Subscriber\",'Enrollment Form'!$C718=\"Enroll\",'Enrollment Form'!$AK718<>\"\"),\"Y\",\"N\")))","v":""},{"$f":"IF($B711=\"N\",\"\",IF(OR('Enrollment Form'!$B718<>\"Subscriber\",'Enrollment Form'!$C718=\"ROC\"),\"-\",IF(AND('Enrollment Form'!$B718=\"Subscriber\",'Enrollment Form'!$C718=\"Enroll\",'Enrollment Form'!$AL718<>\"\"),\"Y\",\"N\")))","v":""},{"$f":"IF($B711=\"N\",\"\",IF(OR('Enrollment Form'!$B718<>\"Subscriber\",'Enrollment Form'!$C718=\"ROC\"),\"-\",IF(AND('Enrollment Form'!$B718=\"Subscriber\",'Enrollment Form'!$C718=\"Enroll\",'Enrollment Form'!$AP718<>\"\"),\"Y\",\"N\")))","v":""},{"$f":"IF($B711=\"N\",\"\",IF(OR('Enrollment Form'!$B718<>\"Subscriber\",'Enrollment Form'!$C718=\"ROC\"),\"-\",IF(AND('Enrollment Form'!$B718=\"Subscriber\",'Enrollment Form'!$C718=\"Enroll\",'Enrollment Form'!$AQ718<>\"\"),\"Y\",\"N\")))","v":""},{"$f":"IF($B711=\"N\",\"\",IF(OR('Enrollment Form'!$B718<>\"Subscriber\",'Enrollment Form'!$C718=\"ROC\"),\"-\",IF(AND('Enrollment Form'!$B718=\"Subscriber\",'Enrollment Form'!$C718=\"Enroll\",'Enrollment Form'!$AS718<>\"\"),\"Y\",\"N\")))","v":""},{"$f":"IF($B711=\"N\",\"\",IF($Q711=\"-\",\"-\",IF(AND($Q711=\"Y\",'Enrollment Form'!$AS718=\"No\"),\"-\",IF(AND($Q711=\"Y\",'Enrollment Form'!$AS718=\"Yes\",'Enrollment Form'!$AT718<>\"\"),\"Y\",\"N\"))))","v":""},{"$f":"IF($B711=\"N\",\"\",IF(OR('Enrollment Form'!$B718<>\"Subscriber\",'Enrollment Form'!$C718=\"ROC\"),\"-\",IF(AND('Enrollment Form'!$B718=\"Subscriber\",'Enrollment Form'!$C718=\"Enroll\",'Enrollment Form'!$CV718<>\"\"),\"Y\",\"N\")))","v":""},{"$f":"IF($B711=\"N\",\"\",IF($S711=\"-\",\"-\",IF(AND($S711=\"Y\",'Enrollment Form'!$CV718=\"No\"),\"-\",IF(AND($S711=\"Y\",'Enrollment Form'!$CV718=\"Yes\",'Enrollment Form'!$CW718<>\"\"),\"Y\",\"N\"))))","v":""},{"$f":"IF(OR('Enrollment Form'!$AY718=\"Yes\",'Enrollment Form'!$AY718=\"\"),\"-\",IF(OR(AND('Enrollment Form'!$AY718=\"No\",ISERROR(FIND(\"HMO\",VLOOKUP('Enrollment Form'!G718,'Enrollment Form'!H$11:J$1000,3,FALSE),1))=FALSE,COUNTA('Enrollment Form'!$AZ718:$BC718)=4),AND('Enrollment Form'!$AY718=\"No\",ISERROR(FIND(\"HMO\",VLOOKUP('Enrollment Form'!G718,'Enrollment Form'!H$11:J$1000,3,FALSE),1))=FALSE,COUNTA('Enrollment Form'!$BT718:$BW718)=4)),\"Y\",\"N\"))","v":"-"},{"$f":"IF($B711=\"N\",\"\",IF('Enrollment Form'!$B718=\"Subscriber\",\"-\",IF(COUNTA('Enrollment Form'!$BL718,'Enrollment Form'!$BN718)=2,\"Y\",\"N\")))","v":""},{"$f":"IF($B711=\"N\",\"\",IF(OR('Enrollment Form'!$AX718=\"\",'Enrollment Form'!$AX718=\"No\"),\"-\",IF(AND('Enrollment Form'!$AX718=\"Yes\",COUNTA('Enrollment Form'!$CR718)=1),\"Y\",\"N\")))","v":""},{"$f":"IF(OR('Enrollment Form'!$CR718=\"\",'Enrollment Form'!$CR718=\"No\"),\"-\",IF(COUNTA('Enrollment Form'!$CT718:$CU718)=2,\"Y\",\"N\"))","v":"-"},{"$f":"IF($B711=\"N\",\"\",IF(COUNTIF('Enrollment Form'!$DG718:$DP718,\"Other\")=COUNTA('Enrollment Form'!$DK718,'Enrollment Form'!$DH718,'Enrollment Form'!$DN718,'Enrollment Form'!$DQ718),\"Y\",\"N\"))","v":""},{"$f":"IF($B711=\"N\",\"\",IF(OR('Enrollment Form'!B718<>\"Subscriber\",'Enrollment Form'!C718=\"ROC\",COUNTIF('Enrollment Form'!AV718:AW718,\"Yes\")>=1),\"-\",IF(AND('Enrollment Form'!C718=\"Enroll\",COUNTIF('Enrollment Form'!AV718:AW718,\"No\")=2,'Enrollment Form'!AX718=\"\"),\"N\",\"Y\")))","v":""},{"$f":"IF(OR(B711=\"N\",'Enrollment Form'!B718<>\"Subscriber\",'Enrollment Form'!C718=\"ROC\",'Enrollment Form'!O718<>\"Multiple of Salary\"),\"-\",IF(COUNTA('Enrollment Form'!T718:U718)<2,\"N\",\"Y\"))","v":"-"},{"$f":"IF(B711=\"N\",\"\",IF(OR('Enrollment Form'!C718=\"ROC\",'Enrollment Form'!B718<>\"Subscriber\",'Enrollment Form'!O718=\"Waive\",'Enrollment Form'!O718=\"\"),\"-\",IF('Enrollment Form'!P718=\"\",\"N\",\"Y\")))","v":""},{"$f":"IF($B711=\"N\",\"\",IF(AND('Enrollment Form'!$C718=\"ROC\",'Enrollment Form'!$DR718<>\"\"),\"Y\",IF(AND('Enrollment Form'!$C718=\"ROC\",'Enrollment Form'!$DR718=\"\"),\"N\",IF(AND('Enrollment Form'!$C718=\"Enroll\",'Enrollment Form'!$B718=\"Subscriber\",'Enrollment Form'!$CX718=\"No\",'Enrollment Form'!$DR718=\"\"),\"N\",IF(AND('Enrollment Form'!$C718=\"Enroll\",'Enrollment Form'!$B718=\"Subscriber\",'Enrollment Form'!$CX718=\"Yes\"),\"-\",\"Y\")))))","v":""},{"$f":"IF($B711=\"N\",\"\",IF(AND('Enrollment Form'!$C718=\"ROC\",'Enrollment Form'!$DS718<>\"\"),\"Y\",IF(AND('Enrollment Form'!$C718=\"ROC\",'Enrollment Form'!$DS718=\"\"),\"N\",IF(AND('Enrollment Form'!$C718=\"Enroll\",'Enrollment Form'!$B718=\"Subscriber\",'Enrollment Form'!$CX718=\"No\",'Enrollment Form'!$DS718=\"\"),\"N\",IF(AND('Enrollment Form'!$C718=\"Enroll\",'Enrollment Form'!$B718=\"Subscriber\",'Enrollment Form'!$CX718=\"Yes\"),\"-\",\"Y\")))))","v":""},{"$f":"IF('Enrollment Form'!AH718=\"\",\"\",IF(ISERROR(SEARCH(\".\",'Enrollment Form'!AH718,SEARCH(\"@\",'Enrollment Form'!AH718))),\"N\",\"Y\"))","v":""},{"$f":"IF(OR($B711=\"N\",'Enrollment Form'!$G718=\"\"),\"\",IF('Enrollment Form'!$B718<>\"Subscriber\",\"-\",IF(COUNTIF('Enrollment Form'!$AV718:$AW718,\"Yes\")=2,\"N\",\"Y\")))","v":""},{"$f":"IF(OR('Enrollment Form'!$CJ718=\"\",'Enrollment Form'!$CJ718=\"No\"),\"-\",IF(AND('Enrollment Form'!$CJ718=\"Yes\",'Enrollment Form'!$CK718=\"\"),\"N\",\"Y\"))","v":"-"},{"$f":"IF(OR('Enrollment Form'!$CL718=\"\",'Enrollment Form'!$CL718=\"No\"),\"-\",IF(AND('Enrollment Form'!$CL718=\"Yes\",'Enrollment Form'!$CM718=\"\"),\"N\",\"Y\"))","v":"-"},{"$f":"IF(OR('Enrollment Form'!$CN718=\"\",'Enrollment Form'!$CN718=\"No\"),\"-\",IF(AND('Enrollment Form'!$CN718=\"Yes\",'Enrollment Form'!$CO718=\"\"),\"N\",\"Y\"))","v":"-"},{"$f":"IF(OR('Enrollment Form'!$CN718=\"\",'Enrollment Form'!$CN718=\"No\"),\"-\",IF(AND('Enrollment Form'!$CN718=\"Yes\",'Enrollment Form'!$CP718=\"\"),\"N\",\"Y\"))","v":"-"},{"$f":"IF('Enrollment Form'!B718<>\"Subscriber\",\"-\",IF(AND('Enrollment Form'!B718=\"Subscriber\",'Enrollment Form'!C718=\"Enroll\",'Enrollment Form'!AA718=\"\"),\"N\",\"Y\"))","v":"-"},{"$f":"IF(OR('Enrollment Form'!B718=\"Subscriber\",'Enrollment Form'!B718=\"\"),\"-\",IF('Enrollment Form'!BP718=\"\",\"N\",\"Y\"))","v":"-"},{"$f":"IF('Enrollment Form'!B718<>\"Subscriber\",\"-\",IF(AND('Enrollment Form'!B718=\"Subscriber\",'Enrollment Form'!G718=\"\"),\"N\",\"Y\"))","v":"-"},{"$f":"IF('Enrollment Form'!A718=\"\",\"\",IF('Enrollment Form'!B718=\"Subscriber\",\"-\",IF(AND('Enrollment Form'!B718<>\"Subscriber\",'Enrollment Form'!G718='Enrollment Form'!H718),\"N\",\"Y\")))","v":""},0]
[719,{"$f":"IF('Enrollment Form'!$A719<>\"\",\"Y\",\"N\")","v":"N"},{"$f":"IF(AND('Enrollment Form'!$B719=\"\",'Enrollment Form'!$C719<>\"\"),\"N\",IF($B712=\"N\",\"\",\"Y\"))","v":""},{"$f":"IF(OR($B712=\"N\",'Enrollment Form'!G719=\"\"),\"\",IF('Enrollment Form'!$B719<>\"Subscriber\",\"\",IF('Enrollment Form'!$G719='Enrollment Form'!$H719,\"Y\",\"N\")))","v":""},{"$f":"IF($B712=\"N\",\"\",IF(AND(COUNTIFS('Enrollment Form'!$H$11:$H$1000,'Enrollment Form'!$H719,'Enrollment Form'!$B$11:$B$1000,'Enrollment Form'!$B719)>1,'Enrollment Form'!$H719<>\"\"),\"N\",\"Y\"))","v":""},{"$f":"IF($B712=\"N\",\"\",IF(LEN('Enrollment Form'!$Y719)=0,\"\",IF(LEN('Enrollment Form'!$Y719)<>5,\"N\",\"Y\")))","v":""},{"$f":"IF($B712=\"N\",\"\",IF(LEN('Enrollment Form'!$AD719=0),\"\",IF(LEN('Enrollment Form'!$AD719)<>5,\"N\",\"Y\")))","v":""},{"$f":"IF($B712=\"N\",\"\",IF(LEN('Enrollment Form'!$BS719=0),\"\",IF(LEN('Enrollment Form'!$BS719)<>5,\"N\",\"Y\")))","v":""},{"$f":"IF($B712=\"N\",\"\",IF(LEN('Enrollment Form'!$AE719)=0,\"\",IF(LEN('Enrollment Form'!$AE719)<>10,\"N\",\"Y\")))","v":""},{"$f":"IF($B712=\"N\",\"\",IF(LEN('Enrollment Form'!$AF719)=0,\"\",IF(LEN('Enrollment Form'!$AF719)<>10,\"N\",\"Y\")))","v":""},{"$f":"IF('Enrollment Form'!$O719<>\"Graded\",\"-\",IF(AND('Enrollment Form'!$O719=\"Graded\",'Enrollment Form'!$AR719<>\"\"),\"Y\",\"N\"))","v":"-"},{"$f":"IF($B712=\"N\",\"\",IF(OR('Enrollment Form'!$B719<>\"Subscriber\",'Enrollment Form'!$C719=\"ROC\"),\"-\",IF(AND('Enrollment Form'!$B719=\"Subscriber\",'Enrollment Form'!$C719=\"Enroll\",'Enrollment Form'!$AJ719<>\"\"),\"Y\",\"N\")))","v":""},{"$f":"IF($B712=\"N\",\"\",IF(OR('Enrollment Form'!$B719<>\"Subscriber\",'Enrollment Form'!$C719=\"ROC\"),\"-\",IF(AND('Enrollment Form'!$B719=\"Subscriber\",'Enrollment Form'!$C719=\"Enroll\",'Enrollment Form'!$AK719<>\"\"),\"Y\",\"N\")))","v":""},{"$f":"IF($B712=\"N\",\"\",IF(OR('Enrollment Form'!$B719<>\"Subscriber\",'Enrollment Form'!$C719=\"ROC\"),\"-\",IF(AND('Enrollment Form'!$B719=\"Subscriber\",'Enrollment Form'!$C719=\"Enroll\",'Enrollment Form'!$AL719<>\"\"),\"Y\",\"N\")))","v":""},{"$f":"IF($B712=\"N\",\"\",IF(OR('Enrollment Form'!$B719<>\"Subscriber\",'Enrollment Form'!$C719=\"ROC\"),\"-\",IF(AND('Enrollment Form'!$B719=\"Subscriber\",'Enrollment Form'!$C719=\"Enroll\",'Enrollment Form'!$AP719<>\"\"),\"Y\",\"N\")))","v":""},{"$f":"IF($B712=\"N\",\"\",IF(OR('Enrollment Form'!$B719<>\"Subscriber\",'Enrollment Form'!$C719=\"ROC\"),\"-\",IF(AND('Enrollment Form'!$B719=\"Subscriber\",'Enrollment Form'!$C719=\"Enroll\",'Enrollment Form'!$AQ719<>\"\"),\"Y\",\"N\")))","v":""},{"$f":"IF($B712=\"N\",\"\",IF(OR('Enrollment Form'!$B719<>\"Subscriber\",'Enrollment Form'!$C719=\"ROC\"),\"-\",IF(AND('Enrollment Form'!$B719=\"Subscriber\",'Enrollment Form'!$C719=\"Enroll\",'Enrollment Form'!$AS719<>\"\"),\"Y\",\"N\")))","v":""},{"$f":"IF($B712=\"N\",\"\",IF($Q712=\"-\",\"-\",IF(AND($Q712=\"Y\",'Enrollment Form'!$AS719=\"No\"),\"-\",IF(AND($Q712=\"Y\",'Enrollment Form'!$AS719=\"Yes\",'Enrollment Form'!$AT719<>\"\"),\"Y\",\"N\"))))","v":""},{"$f":"IF($B712=\"N\",\"\",IF(OR('Enrollment Form'!$B719<>\"Subscriber\",'Enrollment Form'!$C719=\"ROC\"),\"-\",IF(AND('Enrollment Form'!$B719=\"Subscriber\",'Enrollment Form'!$C719=\"Enroll\",'Enrollment Form'!$CV719<>\"\"),\"Y\",\"N\")))","v":""},{"$f":"IF($B712=\"N\",\"\",IF($S712=\"-\",\"-\",IF(AND($S712=\"Y\",'Enrollment Form'!$CV719=\"No\"),\"-\",IF(AND($S712=\"Y\",'Enrollment Form'!$CV719=\"Yes\",'Enrollment Form'!$CW719<>\"\"),\"Y\",\"N\"))))","v":""},{"$f":"IF(OR('Enrollment Form'!$AY719=\"Yes\",'Enrollment Form'!$AY719=\"\"),\"-\",IF(OR(AND('Enrollment Form'!$AY719=\"No\",ISERROR(FIND(\"HMO\",VLOOKUP('Enrollment Form'!G719,'Enrollment Form'!H$11:J$1000,3,FALSE),1))=FALSE,COUNTA('Enrollment Form'!$AZ719:$BC719)=4),AND('Enrollment Form'!$AY719=\"No\",ISERROR(FIND(\"HMO\",VLOOKUP('Enrollment Form'!G719,'Enrollment Form'!H$11:J$1000,3,FALSE),1))=FALSE,COUNTA('Enrollment Form'!$BT719:$BW719)=4)),\"Y\",\"N\"))","v":"-"},{"$f":"IF($B712=\"N\",\"\",IF('Enrollment Form'!$B719=\"Subscriber\",\"-\",IF(COUNTA('Enrollment Form'!$BL719,'Enrollment Form'!$BN719)=2,\"Y\",\"N\")))","v":""},{"$f":"IF($B712=\"N\",\"\",IF(OR('Enrollment Form'!$AX719=\"\",'Enrollment Form'!$AX719=\"No\"),\"-\",IF(AND('Enrollment Form'!$AX719=\"Yes\",COUNTA('Enrollment Form'!$CR719)=1),\"Y\",\"N\")))","v":""},{"$f":"IF(OR('Enrollment Form'!$CR719=\"\",'Enrollment Form'!$CR719=\"No\"),\"-\",IF(COUNTA('Enrollment Form'!$CT719:$CU719)=2,\"Y\",\"N\"))","v":"-"},{"$f":"IF($B712=\"N\",\"\",IF(COUNTIF('Enrollment Form'!$DG719:$DP719,\"Other\")=COUNTA('Enrollment Form'!$DK719,'Enrollment Form'!$DH719,'Enrollment Form'!$DN719,'Enrollment Form'!$DQ719),\"Y\",\"N\"))","v":""},{"$f":"IF($B712=\"N\",\"\",IF(OR('Enrollment Form'!B719<>\"Subscriber\",'Enrollment Form'!C719=\"ROC\",COUNTIF('Enrollment Form'!AV719:AW719,\"Yes\")>=1),\"-\",IF(AND('Enrollment Form'!C719=\"Enroll\",COUNTIF('Enrollment Form'!AV719:AW719,\"No\")=2,'Enrollment Form'!AX719=\"\"),\"N\",\"Y\")))","v":""},{"$f":"IF(OR(B712=\"N\",'Enrollment Form'!B719<>\"Subscriber\",'Enrollment Form'!C719=\"ROC\",'Enrollment Form'!O719<>\"Multiple of Salary\"),\"-\",IF(COUNTA('Enrollment Form'!T719:U719)<2,\"N\",\"Y\"))","v":"-"},{"$f":"IF(B712=\"N\",\"\",IF(OR('Enrollment Form'!C719=\"ROC\",'Enrollment Form'!B719<>\"Subscriber\",'Enrollment Form'!O719=\"Waive\",'Enrollment Form'!O719=\"\"),\"-\",IF('Enrollment Form'!P719=\"\",\"N\",\"Y\")))","v":""},{"$f":"IF($B712=\"N\",\"\",IF(AND('Enrollment Form'!$C719=\"ROC\",'Enrollment Form'!$DR719<>\"\"),\"Y\",IF(AND('Enrollment Form'!$C719=\"ROC\",'Enrollment Form'!$DR719=\"\"),\"N\",IF(AND('Enrollment Form'!$C719=\"Enroll\",'Enrollment Form'!$B719=\"Subscriber\",'Enrollment Form'!$CX719=\"No\",'Enrollment Form'!$DR719=\"\"),\"N\",IF(AND('Enrollment Form'!$C719=\"Enroll\",'Enrollment Form'!$B719=\"Subscriber\",'Enrollment Form'!$CX719=\"Yes\"),\"-\",\"Y\")))))","v":""},{"$f":"IF($B712=\"N\",\"\",IF(AND('Enrollment Form'!$C719=\"ROC\",'Enrollment Form'!$DS719<>\"\"),\"Y\",IF(AND('Enrollment Form'!$C719=\"ROC\",'Enrollment Form'!$DS719=\"\"),\"N\",IF(AND('Enrollment Form'!$C719=\"Enroll\",'Enrollment Form'!$B719=\"Subscriber\",'Enrollment Form'!$CX719=\"No\",'Enrollment Form'!$DS719=\"\"),\"N\",IF(AND('Enrollment Form'!$C719=\"Enroll\",'Enrollment Form'!$B719=\"Subscriber\",'Enrollment Form'!$CX719=\"Yes\"),\"-\",\"Y\")))))","v":""},{"$f":"IF('Enrollment Form'!AH719=\"\",\"\",IF(ISERROR(SEARCH(\".\",'Enrollment Form'!AH719,SEARCH(\"@\",'Enrollment Form'!AH719))),\"N\",\"Y\"))","v":""},{"$f":"IF(OR($B712=\"N\",'Enrollment Form'!$G719=\"\"),\"\",IF('Enrollment Form'!$B719<>\"Subscriber\",\"-\",IF(COUNTIF('Enrollment Form'!$AV719:$AW719,\"Yes\")=2,\"N\",\"Y\")))","v":""},{"$f":"IF(OR('Enrollment Form'!$CJ719=\"\",'Enrollment Form'!$CJ719=\"No\"),\"-\",IF(AND('Enrollment Form'!$CJ719=\"Yes\",'Enrollment Form'!$CK719=\"\"),\"N\",\"Y\"))","v":"-"},{"$f":"IF(OR('Enrollment Form'!$CL719=\"\",'Enrollment Form'!$CL719=\"No\"),\"-\",IF(AND('Enrollment Form'!$CL719=\"Yes\",'Enrollment Form'!$CM719=\"\"),\"N\",\"Y\"))","v":"-"},{"$f":"IF(OR('Enrollment Form'!$CN719=\"\",'Enrollment Form'!$CN719=\"No\"),\"-\",IF(AND('Enrollment Form'!$CN719=\"Yes\",'Enrollment Form'!$CO719=\"\"),\"N\",\"Y\"))","v":"-"},{"$f":"IF(OR('Enrollment Form'!$CN719=\"\",'Enrollment Form'!$CN719=\"No\"),\"-\",IF(AND('Enrollment Form'!$CN719=\"Yes\",'Enrollment Form'!$CP719=\"\"),\"N\",\"Y\"))","v":"-"},{"$f":"IF('Enrollment Form'!B719<>\"Subscriber\",\"-\",IF(AND('Enrollment Form'!B719=\"Subscriber\",'Enrollment Form'!C719=\"Enroll\",'Enrollment Form'!AA719=\"\"),\"N\",\"Y\"))","v":"-"},{"$f":"IF(OR('Enrollment Form'!B719=\"Subscriber\",'Enrollment Form'!B719=\"\"),\"-\",IF('Enrollment Form'!BP719=\"\",\"N\",\"Y\"))","v":"-"},{"$f":"IF('Enrollment Form'!B719<>\"Subscriber\",\"-\",IF(AND('Enrollment Form'!B719=\"Subscriber\",'Enrollment Form'!G719=\"\"),\"N\",\"Y\"))","v":"-"},{"$f":"IF('Enrollment Form'!A719=\"\",\"\",IF('Enrollment Form'!B719=\"Subscriber\",\"-\",IF(AND('Enrollment Form'!B719<>\"Subscriber\",'Enrollment Form'!G719='Enrollment Form'!H719),\"N\",\"Y\")))","v":""},0]
[720,{"$f":"IF('Enrollment Form'!$A720<>\"\",\"Y\",\"N\")","v":"N"},{"$f":"IF(AND('Enrollment Form'!$B720=\"\",'Enrollment Form'!$C720<>\"\"),\"N\",IF($B713=\"N\",\"\",\"Y\"))","v":""},{"$f":"IF(OR($B713=\"N\",'Enrollment Form'!G720=\"\"),\"\",IF('Enrollment Form'!$B720<>\"Subscriber\",\"\",IF('Enrollment Form'!$G720='Enrollment Form'!$H720,\"Y\",\"N\")))","v":""},{"$f":"IF($B713=\"N\",\"\",IF(AND(COUNTIFS('Enrollment Form'!$H$11:$H$1000,'Enrollment Form'!$H720,'Enrollment Form'!$B$11:$B$1000,'Enrollment Form'!$B720)>1,'Enrollment Form'!$H720<>\"\"),\"N\",\"Y\"))","v":""},{"$f":"IF($B713=\"N\",\"\",IF(LEN('Enrollment Form'!$Y720)=0,\"\",IF(LEN('Enrollment Form'!$Y720)<>5,\"N\",\"Y\")))","v":""},{"$f":"IF($B713=\"N\",\"\",IF(LEN('Enrollment Form'!$AD720=0),\"\",IF(LEN('Enrollment Form'!$AD720)<>5,\"N\",\"Y\")))","v":""},{"$f":"IF($B713=\"N\",\"\",IF(LEN('Enrollment Form'!$BS720=0),\"\",IF(LEN('Enrollment Form'!$BS720)<>5,\"N\",\"Y\")))","v":""},{"$f":"IF($B713=\"N\",\"\",IF(LEN('Enrollment Form'!$AE720)=0,\"\",IF(LEN('Enrollment Form'!$AE720)<>10,\"N\",\"Y\")))","v":""},{"$f":"IF($B713=\"N\",\"\",IF(LEN('Enrollment Form'!$AF720)=0,\"\",IF(LEN('Enrollment Form'!$AF720)<>10,\"N\",\"Y\")))","v":""},{"$f":"IF('Enrollment Form'!$O720<>\"Graded\",\"-\",IF(AND('Enrollment Form'!$O720=\"Graded\",'Enrollment Form'!$AR720<>\"\"),\"Y\",\"N\"))","v":"-"},{"$f":"IF($B713=\"N\",\"\",IF(OR('Enrollment Form'!$B720<>\"Subscriber\",'Enrollment Form'!$C720=\"ROC\"),\"-\",IF(AND('Enrollment Form'!$B720=\"Subscriber\",'Enrollment Form'!$C720=\"Enroll\",'Enrollment Form'!$AJ720<>\"\"),\"Y\",\"N\")))","v":""},{"$f":"IF($B713=\"N\",\"\",IF(OR('Enrollment Form'!$B720<>\"Subscriber\",'Enrollment Form'!$C720=\"ROC\"),\"-\",IF(AND('Enrollment Form'!$B720=\"Subscriber\",'Enrollment Form'!$C720=\"Enroll\",'Enrollment Form'!$AK720<>\"\"),\"Y\",\"N\")))","v":""},{"$f":"IF($B713=\"N\",\"\",IF(OR('Enrollment Form'!$B720<>\"Subscriber\",'Enrollment Form'!$C720=\"ROC\"),\"-\",IF(AND('Enrollment Form'!$B720=\"Subscriber\",'Enrollment Form'!$C720=\"Enroll\",'Enrollment Form'!$AL720<>\"\"),\"Y\",\"N\")))","v":""},{"$f":"IF($B713=\"N\",\"\",IF(OR('Enrollment Form'!$B720<>\"Subscriber\",'Enrollment Form'!$C720=\"ROC\"),\"-\",IF(AND('Enrollment Form'!$B720=\"Subscriber\",'Enrollment Form'!$C720=\"Enroll\",'Enrollment Form'!$AP720<>\"\"),\"Y\",\"N\")))","v":""},{"$f":"IF($B713=\"N\",\"\",IF(OR('Enrollment Form'!$B720<>\"Subscriber\",'Enrollment Form'!$C720=\"ROC\"),\"-\",IF(AND('Enrollment Form'!$B720=\"Subscriber\",'Enrollment Form'!$C720=\"Enroll\",'Enrollment Form'!$AQ720<>\"\"),\"Y\",\"N\")))","v":""},{"$f":"IF($B713=\"N\",\"\",IF(OR('Enrollment Form'!$B720<>\"Subscriber\",'Enrollment Form'!$C720=\"ROC\"),\"-\",IF(AND('Enrollment Form'!$B720=\"Subscriber\",'Enrollment Form'!$C720=\"Enroll\",'Enrollment Form'!$AS720<>\"\"),\"Y\",\"N\")))","v":""},{"$f":"IF($B713=\"N\",\"\",IF($Q713=\"-\",\"-\",IF(AND($Q713=\"Y\",'Enrollment Form'!$AS720=\"No\"),\"-\",IF(AND($Q713=\"Y\",'Enrollment Form'!$AS720=\"Yes\",'Enrollment Form'!$AT720<>\"\"),\"Y\",\"N\"))))","v":""},{"$f":"IF($B713=\"N\",\"\",IF(OR('Enrollment Form'!$B720<>\"Subscriber\",'Enrollment Form'!$C720=\"ROC\"),\"-\",IF(AND('Enrollment Form'!$B720=\"Subscriber\",'Enrollment Form'!$C720=\"Enroll\",'Enrollment Form'!$CV720<>\"\"),\"Y\",\"N\")))","v":""},{"$f":"IF($B713=\"N\",\"\",IF($S713=\"-\",\"-\",IF(AND($S713=\"Y\",'Enrollment Form'!$CV720=\"No\"),\"-\",IF(AND($S713=\"Y\",'Enrollment Form'!$CV720=\"Yes\",'Enrollment Form'!$CW720<>\"\"),\"Y\",\"N\"))))","v":""},{"$f":"IF(OR('Enrollment Form'!$AY720=\"Yes\",'Enrollment Form'!$AY720=\"\"),\"-\",IF(OR(AND('Enrollment Form'!$AY720=\"No\",ISERROR(FIND(\"HMO\",VLOOKUP('Enrollment Form'!G720,'Enrollment Form'!H$11:J$1000,3,FALSE),1))=FALSE,COUNTA('Enrollment Form'!$AZ720:$BC720)=4),AND('Enrollment Form'!$AY720=\"No\",ISERROR(FIND(\"HMO\",VLOOKUP('Enrollment Form'!G720,'Enrollment Form'!H$11:J$1000,3,FALSE),1))=FALSE,COUNTA('Enrollment Form'!$BT720:$BW720)=4)),\"Y\",\"N\"))","v":"-"},{"$f":"IF($B713=\"N\",\"\",IF('Enrollment Form'!$B720=\"Subscriber\",\"-\",IF(COUNTA('Enrollment Form'!$BL720,'Enrollment Form'!$BN720)=2,\"Y\",\"N\")))","v":""},{"$f":"IF($B713=\"N\",\"\",IF(OR('Enrollment Form'!$AX720=\"\",'Enrollment Form'!$AX720=\"No\"),\"-\",IF(AND('Enrollment Form'!$AX720=\"Yes\",COUNTA('Enrollment Form'!$CR720)=1),\"Y\",\"N\")))","v":""},{"$f":"IF(OR('Enrollment Form'!$CR720=\"\",'Enrollment Form'!$CR720=\"No\"),\"-\",IF(COUNTA('Enrollment Form'!$CT720:$CU720)=2,\"Y\",\"N\"))","v":"-"},{"$f":"IF($B713=\"N\",\"\",IF(COUNTIF('Enrollment Form'!$DG720:$DP720,\"Other\")=COUNTA('Enrollment Form'!$DK720,'Enrollment Form'!$DH720,'Enrollment Form'!$DN720,'Enrollment Form'!$DQ720),\"Y\",\"N\"))","v":""},{"$f":"IF($B713=\"N\",\"\",IF(OR('Enrollment Form'!B720<>\"Subscriber\",'Enrollment Form'!C720=\"ROC\",COUNTIF('Enrollment Form'!AV720:AW720,\"Yes\")>=1),\"-\",IF(AND('Enrollment Form'!C720=\"Enroll\",COUNTIF('Enrollment Form'!AV720:AW720,\"No\")=2,'Enrollment Form'!AX720=\"\"),\"N\",\"Y\")))","v":""},{"$f":"IF(OR(B713=\"N\",'Enrollment Form'!B720<>\"Subscriber\",'Enrollment Form'!C720=\"ROC\",'Enrollment Form'!O720<>\"Multiple of Salary\"),\"-\",IF(COUNTA('Enrollment Form'!T720:U720)<2,\"N\",\"Y\"))","v":"-"},{"$f":"IF(B713=\"N\",\"\",IF(OR('Enrollment Form'!C720=\"ROC\",'Enrollment Form'!B720<>\"Subscriber\",'Enrollment Form'!O720=\"Waive\",'Enrollment Form'!O720=\"\"),\"-\",IF('Enrollment Form'!P720=\"\",\"N\",\"Y\")))","v":""},{"$f":"IF($B713=\"N\",\"\",IF(AND('Enrollment Form'!$C720=\"ROC\",'Enrollment Form'!$DR720<>\"\"),\"Y\",IF(AND('Enrollment Form'!$C720=\"ROC\",'Enrollment Form'!$DR720=\"\"),\"N\",IF(AND('Enrollment Form'!$C720=\"Enroll\",'Enrollment Form'!$B720=\"Subscriber\",'Enrollment Form'!$CX720=\"No\",'Enrollment Form'!$DR720=\"\"),\"N\",IF(AND('Enrollment Form'!$C720=\"Enroll\",'Enrollment Form'!$B720=\"Subscriber\",'Enrollment Form'!$CX720=\"Yes\"),\"-\",\"Y\")))))","v":""},{"$f":"IF($B713=\"N\",\"\",IF(AND('Enrollment Form'!$C720=\"ROC\",'Enrollment Form'!$DS720<>\"\"),\"Y\",IF(AND('Enrollment Form'!$C720=\"ROC\",'Enrollment Form'!$DS720=\"\"),\"N\",IF(AND('Enrollment Form'!$C720=\"Enroll\",'Enrollment Form'!$B720=\"Subscriber\",'Enrollment Form'!$CX720=\"No\",'Enrollment Form'!$DS720=\"\"),\"N\",IF(AND('Enrollment Form'!$C720=\"Enroll\",'Enrollment Form'!$B720=\"Subscriber\",'Enrollment Form'!$CX720=\"Yes\"),\"-\",\"Y\")))))","v":""},{"$f":"IF('Enrollment Form'!AH720=\"\",\"\",IF(ISERROR(SEARCH(\".\",'Enrollment Form'!AH720,SEARCH(\"@\",'Enrollment Form'!AH720))),\"N\",\"Y\"))","v":""},{"$f":"IF(OR($B713=\"N\",'Enrollment Form'!$G720=\"\"),\"\",IF('Enrollment Form'!$B720<>\"Subscriber\",\"-\",IF(COUNTIF('Enrollment Form'!$AV720:$AW720,\"Yes\")=2,\"N\",\"Y\")))","v":""},{"$f":"IF(OR('Enrollment Form'!$CJ720=\"\",'Enrollment Form'!$CJ720=\"No\"),\"-\",IF(AND('Enrollment Form'!$CJ720=\"Yes\",'Enrollment Form'!$CK720=\"\"),\"N\",\"Y\"))","v":"-"},{"$f":"IF(OR('Enrollment Form'!$CL720=\"\",'Enrollment Form'!$CL720=\"No\"),\"-\",IF(AND('Enrollment Form'!$CL720=\"Yes\",'Enrollment Form'!$CM720=\"\"),\"N\",\"Y\"))","v":"-"},{"$f":"IF(OR('Enrollment Form'!$CN720=\"\",'Enrollment Form'!$CN720=\"No\"),\"-\",IF(AND('Enrollment Form'!$CN720=\"Yes\",'Enrollment Form'!$CO720=\"\"),\"N\",\"Y\"))","v":"-"},{"$f":"IF(OR('Enrollment Form'!$CN720=\"\",'Enrollment Form'!$CN720=\"No\"),\"-\",IF(AND('Enrollment Form'!$CN720=\"Yes\",'Enrollment Form'!$CP720=\"\"),\"N\",\"Y\"))","v":"-"},{"$f":"IF('Enrollment Form'!B720<>\"Subscriber\",\"-\",IF(AND('Enrollment Form'!B720=\"Subscriber\",'Enrollment Form'!C720=\"Enroll\",'Enrollment Form'!AA720=\"\"),\"N\",\"Y\"))","v":"-"},{"$f":"IF(OR('Enrollment Form'!B720=\"Subscriber\",'Enrollment Form'!B720=\"\"),\"-\",IF('Enrollment Form'!BP720=\"\",\"N\",\"Y\"))","v":"-"},{"$f":"IF('Enrollment Form'!B720<>\"Subscriber\",\"-\",IF(AND('Enrollment Form'!B720=\"Subscriber\",'Enrollment Form'!G720=\"\"),\"N\",\"Y\"))","v":"-"},{"$f":"IF('Enrollment Form'!A720=\"\",\"\",IF('Enrollment Form'!B720=\"Subscriber\",\"-\",IF(AND('Enrollment Form'!B720<>\"Subscriber\",'Enrollment Form'!G720='Enrollment Form'!H720),\"N\",\"Y\")))","v":""},0]
[721,{"$f":"IF('Enrollment Form'!$A721<>\"\",\"Y\",\"N\")","v":"N"},{"$f":"IF(AND('Enrollment Form'!$B721=\"\",'Enrollment Form'!$C721<>\"\"),\"N\",IF($B714=\"N\",\"\",\"Y\"))","v":""},{"$f":"IF(OR($B714=\"N\",'Enrollment Form'!G721=\"\"),\"\",IF('Enrollment Form'!$B721<>\"Subscriber\",\"\",IF('Enrollment Form'!$G721='Enrollment Form'!$H721,\"Y\",\"N\")))","v":""},{"$f":"IF($B714=\"N\",\"\",IF(AND(COUNTIFS('Enrollment Form'!$H$11:$H$1000,'Enrollment Form'!$H721,'Enrollment Form'!$B$11:$B$1000,'Enrollment Form'!$B721)>1,'Enrollment Form'!$H721<>\"\"),\"N\",\"Y\"))","v":""},{"$f":"IF($B714=\"N\",\"\",IF(LEN('Enrollment Form'!$Y721)=0,\"\",IF(LEN('Enrollment Form'!$Y721)<>5,\"N\",\"Y\")))","v":""},{"$f":"IF($B714=\"N\",\"\",IF(LEN('Enrollment Form'!$AD721=0),\"\",IF(LEN('Enrollment Form'!$AD721)<>5,\"N\",\"Y\")))","v":""},{"$f":"IF($B714=\"N\",\"\",IF(LEN('Enrollment Form'!$BS721=0),\"\",IF(LEN('Enrollment Form'!$BS721)<>5,\"N\",\"Y\")))","v":""},{"$f":"IF($B714=\"N\",\"\",IF(LEN('Enrollment Form'!$AE721)=0,\"\",IF(LEN('Enrollment Form'!$AE721)<>10,\"N\",\"Y\")))","v":""},{"$f":"IF($B714=\"N\",\"\",IF(LEN('Enrollment Form'!$AF721)=0,\"\",IF(LEN('Enrollment Form'!$AF721)<>10,\"N\",\"Y\")))","v":""},{"$f":"IF('Enrollment Form'!$O721<>\"Graded\",\"-\",IF(AND('Enrollment Form'!$O721=\"Graded\",'Enrollment Form'!$AR721<>\"\"),\"Y\",\"N\"))","v":"-"},{"$f":"IF($B714=\"N\",\"\",IF(OR('Enrollment Form'!$B721<>\"Subscriber\",'Enrollment Form'!$C721=\"ROC\"),\"-\",IF(AND('Enrollment Form'!$B721=\"Subscriber\",'Enrollment Form'!$C721=\"Enroll\",'Enrollment Form'!$AJ721<>\"\"),\"Y\",\"N\")))","v":""},{"$f":"IF($B714=\"N\",\"\",IF(OR('Enrollment Form'!$B721<>\"Subscriber\",'Enrollment Form'!$C721=\"ROC\"),\"-\",IF(AND('Enrollment Form'!$B721=\"Subscriber\",'Enrollment Form'!$C721=\"Enroll\",'Enrollment Form'!$AK721<>\"\"),\"Y\",\"N\")))","v":""},{"$f":"IF($B714=\"N\",\"\",IF(OR('Enrollment Form'!$B721<>\"Subscriber\",'Enrollment Form'!$C721=\"ROC\"),\"-\",IF(AND('Enrollment Form'!$B721=\"Subscriber\",'Enrollment Form'!$C721=\"Enroll\",'Enrollment Form'!$AL721<>\"\"),\"Y\",\"N\")))","v":""},{"$f":"IF($B714=\"N\",\"\",IF(OR('Enrollment Form'!$B721<>\"Subscriber\",'Enrollment Form'!$C721=\"ROC\"),\"-\",IF(AND('Enrollment Form'!$B721=\"Subscriber\",'Enrollment Form'!$C721=\"Enroll\",'Enrollment Form'!$AP721<>\"\"),\"Y\",\"N\")))","v":""},{"$f":"IF($B714=\"N\",\"\",IF(OR('Enrollment Form'!$B721<>\"Subscriber\",'Enrollment Form'!$C721=\"ROC\"),\"-\",IF(AND('Enrollment Form'!$B721=\"Subscriber\",'Enrollment Form'!$C721=\"Enroll\",'Enrollment Form'!$AQ721<>\"\"),\"Y\",\"N\")))","v":""},{"$f":"IF($B714=\"N\",\"\",IF(OR('Enrollment Form'!$B721<>\"Subscriber\",'Enrollment Form'!$C721=\"ROC\"),\"-\",IF(AND('Enrollment Form'!$B721=\"Subscriber\",'Enrollment Form'!$C721=\"Enroll\",'Enrollment Form'!$AS721<>\"\"),\"Y\",\"N\")))","v":""},{"$f":"IF($B714=\"N\",\"\",IF($Q714=\"-\",\"-\",IF(AND($Q714=\"Y\",'Enrollment Form'!$AS721=\"No\"),\"-\",IF(AND($Q714=\"Y\",'Enrollment Form'!$AS721=\"Yes\",'Enrollment Form'!$AT721<>\"\"),\"Y\",\"N\"))))","v":""},{"$f":"IF($B714=\"N\",\"\",IF(OR('Enrollment Form'!$B721<>\"Subscriber\",'Enrollment Form'!$C721=\"ROC\"),\"-\",IF(AND('Enrollment Form'!$B721=\"Subscriber\",'Enrollment Form'!$C721=\"Enroll\",'Enrollment Form'!$CV721<>\"\"),\"Y\",\"N\")))","v":""},{"$f":"IF($B714=\"N\",\"\",IF($S714=\"-\",\"-\",IF(AND($S714=\"Y\",'Enrollment Form'!$CV721=\"No\"),\"-\",IF(AND($S714=\"Y\",'Enrollment Form'!$CV721=\"Yes\",'Enrollment Form'!$CW721<>\"\"),\"Y\",\"N\"))))","v":""},{"$f":"IF(OR('Enrollment Form'!$AY721=\"Yes\",'Enrollment Form'!$AY721=\"\"),\"-\",IF(OR(AND('Enrollment Form'!$AY721=\"No\",ISERROR(FIND(\"HMO\",VLOOKUP('Enrollment Form'!G721,'Enrollment Form'!H$11:J$1000,3,FALSE),1))=FALSE,COUNTA('Enrollment Form'!$AZ721:$BC721)=4),AND('Enrollment Form'!$AY721=\"No\",ISERROR(FIND(\"HMO\",VLOOKUP('Enrollment Form'!G721,'Enrollment Form'!H$11:J$1000,3,FALSE),1))=FALSE,COUNTA('Enrollment Form'!$BT721:$BW721)=4)),\"Y\",\"N\"))","v":"-"},{"$f":"IF($B714=\"N\",\"\",IF('Enrollment Form'!$B721=\"Subscriber\",\"-\",IF(COUNTA('Enrollment Form'!$BL721,'Enrollment Form'!$BN721)=2,\"Y\",\"N\")))","v":""},{"$f":"IF($B714=\"N\",\"\",IF(OR('Enrollment Form'!$AX721=\"\",'Enrollment Form'!$AX721=\"No\"),\"-\",IF(AND('Enrollment Form'!$AX721=\"Yes\",COUNTA('Enrollment Form'!$CR721)=1),\"Y\",\"N\")))","v":""},{"$f":"IF(OR('Enrollment Form'!$CR721=\"\",'Enrollment Form'!$CR721=\"No\"),\"-\",IF(COUNTA('Enrollment Form'!$CT721:$CU721)=2,\"Y\",\"N\"))","v":"-"},{"$f":"IF($B714=\"N\",\"\",IF(COUNTIF('Enrollment Form'!$DG721:$DP721,\"Other\")=COUNTA('Enrollment Form'!$DK721,'Enrollment Form'!$DH721,'Enrollment Form'!$DN721,'Enrollment Form'!$DQ721),\"Y\",\"N\"))","v":""},{"$f":"IF($B714=\"N\",\"\",IF(OR('Enrollment Form'!B721<>\"Subscriber\",'Enrollment Form'!C721=\"ROC\",COUNTIF('Enrollment Form'!AV721:AW721,\"Yes\")>=1),\"-\",IF(AND('Enrollment Form'!C721=\"Enroll\",COUNTIF('Enrollment Form'!AV721:AW721,\"No\")=2,'Enrollment Form'!AX721=\"\"),\"N\",\"Y\")))","v":""},{"$f":"IF(OR(B714=\"N\",'Enrollment Form'!B721<>\"Subscriber\",'Enrollment Form'!C721=\"ROC\",'Enrollment Form'!O721<>\"Multiple of Salary\"),\"-\",IF(COUNTA('Enrollment Form'!T721:U721)<2,\"N\",\"Y\"))","v":"-"},{"$f":"IF(B714=\"N\",\"\",IF(OR('Enrollment Form'!C721=\"ROC\",'Enrollment Form'!B721<>\"Subscriber\",'Enrollment Form'!O721=\"Waive\",'Enrollment Form'!O721=\"\"),\"-\",IF('Enrollment Form'!P721=\"\",\"N\",\"Y\")))","v":""},{"$f":"IF($B714=\"N\",\"\",IF(AND('Enrollment Form'!$C721=\"ROC\",'Enrollment Form'!$DR721<>\"\"),\"Y\",IF(AND('Enrollment Form'!$C721=\"ROC\",'Enrollment Form'!$DR721=\"\"),\"N\",IF(AND('Enrollment Form'!$C721=\"Enroll\",'Enrollment Form'!$B721=\"Subscriber\",'Enrollment Form'!$CX721=\"No\",'Enrollment Form'!$DR721=\"\"),\"N\",IF(AND('Enrollment Form'!$C721=\"Enroll\",'Enrollment Form'!$B721=\"Subscriber\",'Enrollment Form'!$CX721=\"Yes\"),\"-\",\"Y\")))))","v":""},{"$f":"IF($B714=\"N\",\"\",IF(AND('Enrollment Form'!$C721=\"ROC\",'Enrollment Form'!$DS721<>\"\"),\"Y\",IF(AND('Enrollment Form'!$C721=\"ROC\",'Enrollment Form'!$DS721=\"\"),\"N\",IF(AND('Enrollment Form'!$C721=\"Enroll\",'Enrollment Form'!$B721=\"Subscriber\",'Enrollment Form'!$CX721=\"No\",'Enrollment Form'!$DS721=\"\"),\"N\",IF(AND('Enrollment Form'!$C721=\"Enroll\",'Enrollment Form'!$B721=\"Subscriber\",'Enrollment Form'!$CX721=\"Yes\"),\"-\",\"Y\")))))","v":""},{"$f":"IF('Enrollment Form'!AH721=\"\",\"\",IF(ISERROR(SEARCH(\".\",'Enrollment Form'!AH721,SEARCH(\"@\",'Enrollment Form'!AH721))),\"N\",\"Y\"))","v":""},{"$f":"IF(OR($B714=\"N\",'Enrollment Form'!$G721=\"\"),\"\",IF('Enrollment Form'!$B721<>\"Subscriber\",\"-\",IF(COUNTIF('Enrollment Form'!$AV721:$AW721,\"Yes\")=2,\"N\",\"Y\")))","v":""},{"$f":"IF(OR('Enrollment Form'!$CJ721=\"\",'Enrollment Form'!$CJ721=\"No\"),\"-\",IF(AND('Enrollment Form'!$CJ721=\"Yes\",'Enrollment Form'!$CK721=\"\"),\"N\",\"Y\"))","v":"-"},{"$f":"IF(OR('Enrollment Form'!$CL721=\"\",'Enrollment Form'!$CL721=\"No\"),\"-\",IF(AND('Enrollment Form'!$CL721=\"Yes\",'Enrollment Form'!$CM721=\"\"),\"N\",\"Y\"))","v":"-"},{"$f":"IF(OR('Enrollment Form'!$CN721=\"\",'Enrollment Form'!$CN721=\"No\"),\"-\",IF(AND('Enrollment Form'!$CN721=\"Yes\",'Enrollment Form'!$CO721=\"\"),\"N\",\"Y\"))","v":"-"},{"$f":"IF(OR('Enrollment Form'!$CN721=\"\",'Enrollment Form'!$CN721=\"No\"),\"-\",IF(AND('Enrollment Form'!$CN721=\"Yes\",'Enrollment Form'!$CP721=\"\"),\"N\",\"Y\"))","v":"-"},{"$f":"IF('Enrollment Form'!B721<>\"Subscriber\",\"-\",IF(AND('Enrollment Form'!B721=\"Subscriber\",'Enrollment Form'!C721=\"Enroll\",'Enrollment Form'!AA721=\"\"),\"N\",\"Y\"))","v":"-"},{"$f":"IF(OR('Enrollment Form'!B721=\"Subscriber\",'Enrollment Form'!B721=\"\"),\"-\",IF('Enrollment Form'!BP721=\"\",\"N\",\"Y\"))","v":"-"},{"$f":"IF('Enrollment Form'!B721<>\"Subscriber\",\"-\",IF(AND('Enrollment Form'!B721=\"Subscriber\",'Enrollment Form'!G721=\"\"),\"N\",\"Y\"))","v":"-"},{"$f":"IF('Enrollment Form'!A721=\"\",\"\",IF('Enrollment Form'!B721=\"Subscriber\",\"-\",IF(AND('Enrollment Form'!B721<>\"Subscriber\",'Enrollment Form'!G721='Enrollment Form'!H721),\"N\",\"Y\")))","v":""},0]
[722,{"$f":"IF('Enrollment Form'!$A722<>\"\",\"Y\",\"N\")","v":"N"},{"$f":"IF(AND('Enrollment Form'!$B722=\"\",'Enrollment Form'!$C722<>\"\"),\"N\",IF($B715=\"N\",\"\",\"Y\"))","v":""},{"$f":"IF(OR($B715=\"N\",'Enrollment Form'!G722=\"\"),\"\",IF('Enrollment Form'!$B722<>\"Subscriber\",\"\",IF('Enrollment Form'!$G722='Enrollment Form'!$H722,\"Y\",\"N\")))","v":""},{"$f":"IF($B715=\"N\",\"\",IF(AND(COUNTIFS('Enrollment Form'!$H$11:$H$1000,'Enrollment Form'!$H722,'Enrollment Form'!$B$11:$B$1000,'Enrollment Form'!$B722)>1,'Enrollment Form'!$H722<>\"\"),\"N\",\"Y\"))","v":""},{"$f":"IF($B715=\"N\",\"\",IF(LEN('Enrollment Form'!$Y722)=0,\"\",IF(LEN('Enrollment Form'!$Y722)<>5,\"N\",\"Y\")))","v":""},{"$f":"IF($B715=\"N\",\"\",IF(LEN('Enrollment Form'!$AD722=0),\"\",IF(LEN('Enrollment Form'!$AD722)<>5,\"N\",\"Y\")))","v":""},{"$f":"IF($B715=\"N\",\"\",IF(LEN('Enrollment Form'!$BS722=0),\"\",IF(LEN('Enrollment Form'!$BS722)<>5,\"N\",\"Y\")))","v":""},{"$f":"IF($B715=\"N\",\"\",IF(LEN('Enrollment Form'!$AE722)=0,\"\",IF(LEN('Enrollment Form'!$AE722)<>10,\"N\",\"Y\")))","v":""},{"$f":"IF($B715=\"N\",\"\",IF(LEN('Enrollment Form'!$AF722)=0,\"\",IF(LEN('Enrollment Form'!$AF722)<>10,\"N\",\"Y\")))","v":""},{"$f":"IF('Enrollment Form'!$O722<>\"Graded\",\"-\",IF(AND('Enrollment Form'!$O722=\"Graded\",'Enrollment Form'!$AR722<>\"\"),\"Y\",\"N\"))","v":"-"},{"$f":"IF($B715=\"N\",\"\",IF(OR('Enrollment Form'!$B722<>\"Subscriber\",'Enrollment Form'!$C722=\"ROC\"),\"-\",IF(AND('Enrollment Form'!$B722=\"Subscriber\",'Enrollment Form'!$C722=\"Enroll\",'Enrollment Form'!$AJ722<>\"\"),\"Y\",\"N\")))","v":""},{"$f":"IF($B715=\"N\",\"\",IF(OR('Enrollment Form'!$B722<>\"Subscriber\",'Enrollment Form'!$C722=\"ROC\"),\"-\",IF(AND('Enrollment Form'!$B722=\"Subscriber\",'Enrollment Form'!$C722=\"Enroll\",'Enrollment Form'!$AK722<>\"\"),\"Y\",\"N\")))","v":""},{"$f":"IF($B715=\"N\",\"\",IF(OR('Enrollment Form'!$B722<>\"Subscriber\",'Enrollment Form'!$C722=\"ROC\"),\"-\",IF(AND('Enrollment Form'!$B722=\"Subscriber\",'Enrollment Form'!$C722=\"Enroll\",'Enrollment Form'!$AL722<>\"\"),\"Y\",\"N\")))","v":""},{"$f":"IF($B715=\"N\",\"\",IF(OR('Enrollment Form'!$B722<>\"Subscriber\",'Enrollment Form'!$C722=\"ROC\"),\"-\",IF(AND('Enrollment Form'!$B722=\"Subscriber\",'Enrollment Form'!$C722=\"Enroll\",'Enrollment Form'!$AP722<>\"\"),\"Y\",\"N\")))","v":""},{"$f":"IF($B715=\"N\",\"\",IF(OR('Enrollment Form'!$B722<>\"Subscriber\",'Enrollment Form'!$C722=\"ROC\"),\"-\",IF(AND('Enrollment Form'!$B722=\"Subscriber\",'Enrollment Form'!$C722=\"Enroll\",'Enrollment Form'!$AQ722<>\"\"),\"Y\",\"N\")))","v":""},{"$f":"IF($B715=\"N\",\"\",IF(OR('Enrollment Form'!$B722<>\"Subscriber\",'Enrollment Form'!$C722=\"ROC\"),\"-\",IF(AND('Enrollment Form'!$B722=\"Subscriber\",'Enrollment Form'!$C722=\"Enroll\",'Enrollment Form'!$AS722<>\"\"),\"Y\",\"N\")))","v":""},{"$f":"IF($B715=\"N\",\"\",IF($Q715=\"-\",\"-\",IF(AND($Q715=\"Y\",'Enrollment Form'!$AS722=\"No\"),\"-\",IF(AND($Q715=\"Y\",'Enrollment Form'!$AS722=\"Yes\",'Enrollment Form'!$AT722<>\"\"),\"Y\",\"N\"))))","v":""},{"$f":"IF($B715=\"N\",\"\",IF(OR('Enrollment Form'!$B722<>\"Subscriber\",'Enrollment Form'!$C722=\"ROC\"),\"-\",IF(AND('Enrollment Form'!$B722=\"Subscriber\",'Enrollment Form'!$C722=\"Enroll\",'Enrollment Form'!$CV722<>\"\"),\"Y\",\"N\")))","v":""},{"$f":"IF($B715=\"N\",\"\",IF($S715=\"-\",\"-\",IF(AND($S715=\"Y\",'Enrollment Form'!$CV722=\"No\"),\"-\",IF(AND($S715=\"Y\",'Enrollment Form'!$CV722=\"Yes\",'Enrollment Form'!$CW722<>\"\"),\"Y\",\"N\"))))","v":""},{"$f":"IF(OR('Enrollment Form'!$AY722=\"Yes\",'Enrollment Form'!$AY722=\"\"),\"-\",IF(OR(AND('Enrollment Form'!$AY722=\"No\",ISERROR(FIND(\"HMO\",VLOOKUP('Enrollment Form'!G722,'Enrollment Form'!H$11:J$1000,3,FALSE),1))=FALSE,COUNTA('Enrollment Form'!$AZ722:$BC722)=4),AND('Enrollment Form'!$AY722=\"No\",ISERROR(FIND(\"HMO\",VLOOKUP('Enrollment Form'!G722,'Enrollment Form'!H$11:J$1000,3,FALSE),1))=FALSE,COUNTA('Enrollment Form'!$BT722:$BW722)=4)),\"Y\",\"N\"))","v":"-"},{"$f":"IF($B715=\"N\",\"\",IF('Enrollment Form'!$B722=\"Subscriber\",\"-\",IF(COUNTA('Enrollment Form'!$BL722,'Enrollment Form'!$BN722)=2,\"Y\",\"N\")))","v":""},{"$f":"IF($B715=\"N\",\"\",IF(OR('Enrollment Form'!$AX722=\"\",'Enrollment Form'!$AX722=\"No\"),\"-\",IF(AND('Enrollment Form'!$AX722=\"Yes\",COUNTA('Enrollment Form'!$CR722)=1),\"Y\",\"N\")))","v":""},{"$f":"IF(OR('Enrollment Form'!$CR722=\"\",'Enrollment Form'!$CR722=\"No\"),\"-\",IF(COUNTA('Enrollment Form'!$CT722:$CU722)=2,\"Y\",\"N\"))","v":"-"},{"$f":"IF($B715=\"N\",\"\",IF(COUNTIF('Enrollment Form'!$DG722:$DP722,\"Other\")=COUNTA('Enrollment Form'!$DK722,'Enrollment Form'!$DH722,'Enrollment Form'!$DN722,'Enrollment Form'!$DQ722),\"Y\",\"N\"))","v":""},{"$f":"IF($B715=\"N\",\"\",IF(OR('Enrollment Form'!B722<>\"Subscriber\",'Enrollment Form'!C722=\"ROC\",COUNTIF('Enrollment Form'!AV722:AW722,\"Yes\")>=1),\"-\",IF(AND('Enrollment Form'!C722=\"Enroll\",COUNTIF('Enrollment Form'!AV722:AW722,\"No\")=2,'Enrollment Form'!AX722=\"\"),\"N\",\"Y\")))","v":""},{"$f":"IF(OR(B715=\"N\",'Enrollment Form'!B722<>\"Subscriber\",'Enrollment Form'!C722=\"ROC\",'Enrollment Form'!O722<>\"Multiple of Salary\"),\"-\",IF(COUNTA('Enrollment Form'!T722:U722)<2,\"N\",\"Y\"))","v":"-"},{"$f":"IF(B715=\"N\",\"\",IF(OR('Enrollment Form'!C722=\"ROC\",'Enrollment Form'!B722<>\"Subscriber\",'Enrollment Form'!O722=\"Waive\",'Enrollment Form'!O722=\"\"),\"-\",IF('Enrollment Form'!P722=\"\",\"N\",\"Y\")))","v":""},{"$f":"IF($B715=\"N\",\"\",IF(AND('Enrollment Form'!$C722=\"ROC\",'Enrollment Form'!$DR722<>\"\"),\"Y\",IF(AND('Enrollment Form'!$C722=\"ROC\",'Enrollment Form'!$DR722=\"\"),\"N\",IF(AND('Enrollment Form'!$C722=\"Enroll\",'Enrollment Form'!$B722=\"Subscriber\",'Enrollment Form'!$CX722=\"No\",'Enrollment Form'!$DR722=\"\"),\"N\",IF(AND('Enrollment Form'!$C722=\"Enroll\",'Enrollment Form'!$B722=\"Subscriber\",'Enrollment Form'!$CX722=\"Yes\"),\"-\",\"Y\")))))","v":""},{"$f":"IF($B715=\"N\",\"\",IF(AND('Enrollment Form'!$C722=\"ROC\",'Enrollment Form'!$DS722<>\"\"),\"Y\",IF(AND('Enrollment Form'!$C722=\"ROC\",'Enrollment Form'!$DS722=\"\"),\"N\",IF(AND('Enrollment Form'!$C722=\"Enroll\",'Enrollment Form'!$B722=\"Subscriber\",'Enrollment Form'!$CX722=\"No\",'Enrollment Form'!$DS722=\"\"),\"N\",IF(AND('Enrollment Form'!$C722=\"Enroll\",'Enrollment Form'!$B722=\"Subscriber\",'Enrollment Form'!$CX722=\"Yes\"),\"-\",\"Y\")))))","v":""},{"$f":"IF('Enrollment Form'!AH722=\"\",\"\",IF(ISERROR(SEARCH(\".\",'Enrollment Form'!AH722,SEARCH(\"@\",'Enrollment Form'!AH722))),\"N\",\"Y\"))","v":""},{"$f":"IF(OR($B715=\"N\",'Enrollment Form'!$G722=\"\"),\"\",IF('Enrollment Form'!$B722<>\"Subscriber\",\"-\",IF(COUNTIF('Enrollment Form'!$AV722:$AW722,\"Yes\")=2,\"N\",\"Y\")))","v":""},{"$f":"IF(OR('Enrollment Form'!$CJ722=\"\",'Enrollment Form'!$CJ722=\"No\"),\"-\",IF(AND('Enrollment Form'!$CJ722=\"Yes\",'Enrollment Form'!$CK722=\"\"),\"N\",\"Y\"))","v":"-"},{"$f":"IF(OR('Enrollment Form'!$CL722=\"\",'Enrollment Form'!$CL722=\"No\"),\"-\",IF(AND('Enrollment Form'!$CL722=\"Yes\",'Enrollment Form'!$CM722=\"\"),\"N\",\"Y\"))","v":"-"},{"$f":"IF(OR('Enrollment Form'!$CN722=\"\",'Enrollment Form'!$CN722=\"No\"),\"-\",IF(AND('Enrollment Form'!$CN722=\"Yes\",'Enrollment Form'!$CO722=\"\"),\"N\",\"Y\"))","v":"-"},{"$f":"IF(OR('Enrollment Form'!$CN722=\"\",'Enrollment Form'!$CN722=\"No\"),\"-\",IF(AND('Enrollment Form'!$CN722=\"Yes\",'Enrollment Form'!$CP722=\"\"),\"N\",\"Y\"))","v":"-"},{"$f":"IF('Enrollment Form'!B722<>\"Subscriber\",\"-\",IF(AND('Enrollment Form'!B722=\"Subscriber\",'Enrollment Form'!C722=\"Enroll\",'Enrollment Form'!AA722=\"\"),\"N\",\"Y\"))","v":"-"},{"$f":"IF(OR('Enrollment Form'!B722=\"Subscriber\",'Enrollment Form'!B722=\"\"),\"-\",IF('Enrollment Form'!BP722=\"\",\"N\",\"Y\"))","v":"-"},{"$f":"IF('Enrollment Form'!B722<>\"Subscriber\",\"-\",IF(AND('Enrollment Form'!B722=\"Subscriber\",'Enrollment Form'!G722=\"\"),\"N\",\"Y\"))","v":"-"},{"$f":"IF('Enrollment Form'!A722=\"\",\"\",IF('Enrollment Form'!B722=\"Subscriber\",\"-\",IF(AND('Enrollment Form'!B722<>\"Subscriber\",'Enrollment Form'!G722='Enrollment Form'!H722),\"N\",\"Y\")))","v":""},0]
[723,{"$f":"IF('Enrollment Form'!$A723<>\"\",\"Y\",\"N\")","v":"N"},{"$f":"IF(AND('Enrollment Form'!$B723=\"\",'Enrollment Form'!$C723<>\"\"),\"N\",IF($B716=\"N\",\"\",\"Y\"))","v":""},{"$f":"IF(OR($B716=\"N\",'Enrollment Form'!G723=\"\"),\"\",IF('Enrollment Form'!$B723<>\"Subscriber\",\"\",IF('Enrollment Form'!$G723='Enrollment Form'!$H723,\"Y\",\"N\")))","v":""},{"$f":"IF($B716=\"N\",\"\",IF(AND(COUNTIFS('Enrollment Form'!$H$11:$H$1000,'Enrollment Form'!$H723,'Enrollment Form'!$B$11:$B$1000,'Enrollment Form'!$B723)>1,'Enrollment Form'!$H723<>\"\"),\"N\",\"Y\"))","v":""},{"$f":"IF($B716=\"N\",\"\",IF(LEN('Enrollment Form'!$Y723)=0,\"\",IF(LEN('Enrollment Form'!$Y723)<>5,\"N\",\"Y\")))","v":""},{"$f":"IF($B716=\"N\",\"\",IF(LEN('Enrollment Form'!$AD723=0),\"\",IF(LEN('Enrollment Form'!$AD723)<>5,\"N\",\"Y\")))","v":""},{"$f":"IF($B716=\"N\",\"\",IF(LEN('Enrollment Form'!$BS723=0),\"\",IF(LEN('Enrollment Form'!$BS723)<>5,\"N\",\"Y\")))","v":""},{"$f":"IF($B716=\"N\",\"\",IF(LEN('Enrollment Form'!$AE723)=0,\"\",IF(LEN('Enrollment Form'!$AE723)<>10,\"N\",\"Y\")))","v":""},{"$f":"IF($B716=\"N\",\"\",IF(LEN('Enrollment Form'!$AF723)=0,\"\",IF(LEN('Enrollment Form'!$AF723)<>10,\"N\",\"Y\")))","v":""},{"$f":"IF('Enrollment Form'!$O723<>\"Graded\",\"-\",IF(AND('Enrollment Form'!$O723=\"Graded\",'Enrollment Form'!$AR723<>\"\"),\"Y\",\"N\"))","v":"-"},{"$f":"IF($B716=\"N\",\"\",IF(OR('Enrollment Form'!$B723<>\"Subscriber\",'Enrollment Form'!$C723=\"ROC\"),\"-\",IF(AND('Enrollment Form'!$B723=\"Subscriber\",'Enrollment Form'!$C723=\"Enroll\",'Enrollment Form'!$AJ723<>\"\"),\"Y\",\"N\")))","v":""},{"$f":"IF($B716=\"N\",\"\",IF(OR('Enrollment Form'!$B723<>\"Subscriber\",'Enrollment Form'!$C723=\"ROC\"),\"-\",IF(AND('Enrollment Form'!$B723=\"Subscriber\",'Enrollment Form'!$C723=\"Enroll\",'Enrollment Form'!$AK723<>\"\"),\"Y\",\"N\")))","v":""},{"$f":"IF($B716=\"N\",\"\",IF(OR('Enrollment Form'!$B723<>\"Subscriber\",'Enrollment Form'!$C723=\"ROC\"),\"-\",IF(AND('Enrollment Form'!$B723=\"Subscriber\",'Enrollment Form'!$C723=\"Enroll\",'Enrollment Form'!$AL723<>\"\"),\"Y\",\"N\")))","v":""},{"$f":"IF($B716=\"N\",\"\",IF(OR('Enrollment Form'!$B723<>\"Subscriber\",'Enrollment Form'!$C723=\"ROC\"),\"-\",IF(AND('Enrollment Form'!$B723=\"Subscriber\",'Enrollment Form'!$C723=\"Enroll\",'Enrollment Form'!$AP723<>\"\"),\"Y\",\"N\")))","v":""},{"$f":"IF($B716=\"N\",\"\",IF(OR('Enrollment Form'!$B723<>\"Subscriber\",'Enrollment Form'!$C723=\"ROC\"),\"-\",IF(AND('Enrollment Form'!$B723=\"Subscriber\",'Enrollment Form'!$C723=\"Enroll\",'Enrollment Form'!$AQ723<>\"\"),\"Y\",\"N\")))","v":""},{"$f":"IF($B716=\"N\",\"\",IF(OR('Enrollment Form'!$B723<>\"Subscriber\",'Enrollment Form'!$C723=\"ROC\"),\"-\",IF(AND('Enrollment Form'!$B723=\"Subscriber\",'Enrollment Form'!$C723=\"Enroll\",'Enrollment Form'!$AS723<>\"\"),\"Y\",\"N\")))","v":""},{"$f":"IF($B716=\"N\",\"\",IF($Q716=\"-\",\"-\",IF(AND($Q716=\"Y\",'Enrollment Form'!$AS723=\"No\"),\"-\",IF(AND($Q716=\"Y\",'Enrollment Form'!$AS723=\"Yes\",'Enrollment Form'!$AT723<>\"\"),\"Y\",\"N\"))))","v":""},{"$f":"IF($B716=\"N\",\"\",IF(OR('Enrollment Form'!$B723<>\"Subscriber\",'Enrollment Form'!$C723=\"ROC\"),\"-\",IF(AND('Enrollment Form'!$B723=\"Subscriber\",'Enrollment Form'!$C723=\"Enroll\",'Enrollment Form'!$CV723<>\"\"),\"Y\",\"N\")))","v":""},{"$f":"IF($B716=\"N\",\"\",IF($S716=\"-\",\"-\",IF(AND($S716=\"Y\",'Enrollment Form'!$CV723=\"No\"),\"-\",IF(AND($S716=\"Y\",'Enrollment Form'!$CV723=\"Yes\",'Enrollment Form'!$CW723<>\"\"),\"Y\",\"N\"))))","v":""},{"$f":"IF(OR('Enrollment Form'!$AY723=\"Yes\",'Enrollment Form'!$AY723=\"\"),\"-\",IF(OR(AND('Enrollment Form'!$AY723=\"No\",ISERROR(FIND(\"HMO\",VLOOKUP('Enrollment Form'!G723,'Enrollment Form'!H$11:J$1000,3,FALSE),1))=FALSE,COUNTA('Enrollment Form'!$AZ723:$BC723)=4),AND('Enrollment Form'!$AY723=\"No\",ISERROR(FIND(\"HMO\",VLOOKUP('Enrollment Form'!G723,'Enrollment Form'!H$11:J$1000,3,FALSE),1))=FALSE,COUNTA('Enrollment Form'!$BT723:$BW723)=4)),\"Y\",\"N\"))","v":"-"},{"$f":"IF($B716=\"N\",\"\",IF('Enrollment Form'!$B723=\"Subscriber\",\"-\",IF(COUNTA('Enrollment Form'!$BL723,'Enrollment Form'!$BN723)=2,\"Y\",\"N\")))","v":""},{"$f":"IF($B716=\"N\",\"\",IF(OR('Enrollment Form'!$AX723=\"\",'Enrollment Form'!$AX723=\"No\"),\"-\",IF(AND('Enrollment Form'!$AX723=\"Yes\",COUNTA('Enrollment Form'!$CR723)=1),\"Y\",\"N\")))","v":""},{"$f":"IF(OR('Enrollment Form'!$CR723=\"\",'Enrollment Form'!$CR723=\"No\"),\"-\",IF(COUNTA('Enrollment Form'!$CT723:$CU723)=2,\"Y\",\"N\"))","v":"-"},{"$f":"IF($B716=\"N\",\"\",IF(COUNTIF('Enrollment Form'!$DG723:$DP723,\"Other\")=COUNTA('Enrollment Form'!$DK723,'Enrollment Form'!$DH723,'Enrollment Form'!$DN723,'Enrollment Form'!$DQ723),\"Y\",\"N\"))","v":""},{"$f":"IF($B716=\"N\",\"\",IF(OR('Enrollment Form'!B723<>\"Subscriber\",'Enrollment Form'!C723=\"ROC\",COUNTIF('Enrollment Form'!AV723:AW723,\"Yes\")>=1),\"-\",IF(AND('Enrollment Form'!C723=\"Enroll\",COUNTIF('Enrollment Form'!AV723:AW723,\"No\")=2,'Enrollment Form'!AX723=\"\"),\"N\",\"Y\")))","v":""},{"$f":"IF(OR(B716=\"N\",'Enrollment Form'!B723<>\"Subscriber\",'Enrollment Form'!C723=\"ROC\",'Enrollment Form'!O723<>\"Multiple of Salary\"),\"-\",IF(COUNTA('Enrollment Form'!T723:U723)<2,\"N\",\"Y\"))","v":"-"},{"$f":"IF(B716=\"N\",\"\",IF(OR('Enrollment Form'!C723=\"ROC\",'Enrollment Form'!B723<>\"Subscriber\",'Enrollment Form'!O723=\"Waive\",'Enrollment Form'!O723=\"\"),\"-\",IF('Enrollment Form'!P723=\"\",\"N\",\"Y\")))","v":""},{"$f":"IF($B716=\"N\",\"\",IF(AND('Enrollment Form'!$C723=\"ROC\",'Enrollment Form'!$DR723<>\"\"),\"Y\",IF(AND('Enrollment Form'!$C723=\"ROC\",'Enrollment Form'!$DR723=\"\"),\"N\",IF(AND('Enrollment Form'!$C723=\"Enroll\",'Enrollment Form'!$B723=\"Subscriber\",'Enrollment Form'!$CX723=\"No\",'Enrollment Form'!$DR723=\"\"),\"N\",IF(AND('Enrollment Form'!$C723=\"Enroll\",'Enrollment Form'!$B723=\"Subscriber\",'Enrollment Form'!$CX723=\"Yes\"),\"-\",\"Y\")))))","v":""},{"$f":"IF($B716=\"N\",\"\",IF(AND('Enrollment Form'!$C723=\"ROC\",'Enrollment Form'!$DS723<>\"\"),\"Y\",IF(AND('Enrollment Form'!$C723=\"ROC\",'Enrollment Form'!$DS723=\"\"),\"N\",IF(AND('Enrollment Form'!$C723=\"Enroll\",'Enrollment Form'!$B723=\"Subscriber\",'Enrollment Form'!$CX723=\"No\",'Enrollment Form'!$DS723=\"\"),\"N\",IF(AND('Enrollment Form'!$C723=\"Enroll\",'Enrollment Form'!$B723=\"Subscriber\",'Enrollment Form'!$CX723=\"Yes\"),\"-\",\"Y\")))))","v":""},{"$f":"IF('Enrollment Form'!AH723=\"\",\"\",IF(ISERROR(SEARCH(\".\",'Enrollment Form'!AH723,SEARCH(\"@\",'Enrollment Form'!AH723))),\"N\",\"Y\"))","v":""},{"$f":"IF(OR($B716=\"N\",'Enrollment Form'!$G723=\"\"),\"\",IF('Enrollment Form'!$B723<>\"Subscriber\",\"-\",IF(COUNTIF('Enrollment Form'!$AV723:$AW723,\"Yes\")=2,\"N\",\"Y\")))","v":""},{"$f":"IF(OR('Enrollment Form'!$CJ723=\"\",'Enrollment Form'!$CJ723=\"No\"),\"-\",IF(AND('Enrollment Form'!$CJ723=\"Yes\",'Enrollment Form'!$CK723=\"\"),\"N\",\"Y\"))","v":"-"},{"$f":"IF(OR('Enrollment Form'!$CL723=\"\",'Enrollment Form'!$CL723=\"No\"),\"-\",IF(AND('Enrollment Form'!$CL723=\"Yes\",'Enrollment Form'!$CM723=\"\"),\"N\",\"Y\"))","v":"-"},{"$f":"IF(OR('Enrollment Form'!$CN723=\"\",'Enrollment Form'!$CN723=\"No\"),\"-\",IF(AND('Enrollment Form'!$CN723=\"Yes\",'Enrollment Form'!$CO723=\"\"),\"N\",\"Y\"))","v":"-"},{"$f":"IF(OR('Enrollment Form'!$CN723=\"\",'Enrollment Form'!$CN723=\"No\"),\"-\",IF(AND('Enrollment Form'!$CN723=\"Yes\",'Enrollment Form'!$CP723=\"\"),\"N\",\"Y\"))","v":"-"},{"$f":"IF('Enrollment Form'!B723<>\"Subscriber\",\"-\",IF(AND('Enrollment Form'!B723=\"Subscriber\",'Enrollment Form'!C723=\"Enroll\",'Enrollment Form'!AA723=\"\"),\"N\",\"Y\"))","v":"-"},{"$f":"IF(OR('Enrollment Form'!B723=\"Subscriber\",'Enrollment Form'!B723=\"\"),\"-\",IF('Enrollment Form'!BP723=\"\",\"N\",\"Y\"))","v":"-"},{"$f":"IF('Enrollment Form'!B723<>\"Subscriber\",\"-\",IF(AND('Enrollment Form'!B723=\"Subscriber\",'Enrollment Form'!G723=\"\"),\"N\",\"Y\"))","v":"-"},{"$f":"IF('Enrollment Form'!A723=\"\",\"\",IF('Enrollment Form'!B723=\"Subscriber\",\"-\",IF(AND('Enrollment Form'!B723<>\"Subscriber\",'Enrollment Form'!G723='Enrollment Form'!H723),\"N\",\"Y\")))","v":""},0]
[724,{"$f":"IF('Enrollment Form'!$A724<>\"\",\"Y\",\"N\")","v":"N"},{"$f":"IF(AND('Enrollment Form'!$B724=\"\",'Enrollment Form'!$C724<>\"\"),\"N\",IF($B717=\"N\",\"\",\"Y\"))","v":""},{"$f":"IF(OR($B717=\"N\",'Enrollment Form'!G724=\"\"),\"\",IF('Enrollment Form'!$B724<>\"Subscriber\",\"\",IF('Enrollment Form'!$G724='Enrollment Form'!$H724,\"Y\",\"N\")))","v":""},{"$f":"IF($B717=\"N\",\"\",IF(AND(COUNTIFS('Enrollment Form'!$H$11:$H$1000,'Enrollment Form'!$H724,'Enrollment Form'!$B$11:$B$1000,'Enrollment Form'!$B724)>1,'Enrollment Form'!$H724<>\"\"),\"N\",\"Y\"))","v":""},{"$f":"IF($B717=\"N\",\"\",IF(LEN('Enrollment Form'!$Y724)=0,\"\",IF(LEN('Enrollment Form'!$Y724)<>5,\"N\",\"Y\")))","v":""},{"$f":"IF($B717=\"N\",\"\",IF(LEN('Enrollment Form'!$AD724=0),\"\",IF(LEN('Enrollment Form'!$AD724)<>5,\"N\",\"Y\")))","v":""},{"$f":"IF($B717=\"N\",\"\",IF(LEN('Enrollment Form'!$BS724=0),\"\",IF(LEN('Enrollment Form'!$BS724)<>5,\"N\",\"Y\")))","v":""},{"$f":"IF($B717=\"N\",\"\",IF(LEN('Enrollment Form'!$AE724)=0,\"\",IF(LEN('Enrollment Form'!$AE724)<>10,\"N\",\"Y\")))","v":""},{"$f":"IF($B717=\"N\",\"\",IF(LEN('Enrollment Form'!$AF724)=0,\"\",IF(LEN('Enrollment Form'!$AF724)<>10,\"N\",\"Y\")))","v":""},{"$f":"IF('Enrollment Form'!$O724<>\"Graded\",\"-\",IF(AND('Enrollment Form'!$O724=\"Graded\",'Enrollment Form'!$AR724<>\"\"),\"Y\",\"N\"))","v":"-"},{"$f":"IF($B717=\"N\",\"\",IF(OR('Enrollment Form'!$B724<>\"Subscriber\",'Enrollment Form'!$C724=\"ROC\"),\"-\",IF(AND('Enrollment Form'!$B724=\"Subscriber\",'Enrollment Form'!$C724=\"Enroll\",'Enrollment Form'!$AJ724<>\"\"),\"Y\",\"N\")))","v":""},{"$f":"IF($B717=\"N\",\"\",IF(OR('Enrollment Form'!$B724<>\"Subscriber\",'Enrollment Form'!$C724=\"ROC\"),\"-\",IF(AND('Enrollment Form'!$B724=\"Subscriber\",'Enrollment Form'!$C724=\"Enroll\",'Enrollment Form'!$AK724<>\"\"),\"Y\",\"N\")))","v":""},{"$f":"IF($B717=\"N\",\"\",IF(OR('Enrollment Form'!$B724<>\"Subscriber\",'Enrollment Form'!$C724=\"ROC\"),\"-\",IF(AND('Enrollment Form'!$B724=\"Subscriber\",'Enrollment Form'!$C724=\"Enroll\",'Enrollment Form'!$AL724<>\"\"),\"Y\",\"N\")))","v":""},{"$f":"IF($B717=\"N\",\"\",IF(OR('Enrollment Form'!$B724<>\"Subscriber\",'Enrollment Form'!$C724=\"ROC\"),\"-\",IF(AND('Enrollment Form'!$B724=\"Subscriber\",'Enrollment Form'!$C724=\"Enroll\",'Enrollment Form'!$AP724<>\"\"),\"Y\",\"N\")))","v":""},{"$f":"IF($B717=\"N\",\"\",IF(OR('Enrollment Form'!$B724<>\"Subscriber\",'Enrollment Form'!$C724=\"ROC\"),\"-\",IF(AND('Enrollment Form'!$B724=\"Subscriber\",'Enrollment Form'!$C724=\"Enroll\",'Enrollment Form'!$AQ724<>\"\"),\"Y\",\"N\")))","v":""},{"$f":"IF($B717=\"N\",\"\",IF(OR('Enrollment Form'!$B724<>\"Subscriber\",'Enrollment Form'!$C724=\"ROC\"),\"-\",IF(AND('Enrollment Form'!$B724=\"Subscriber\",'Enrollment Form'!$C724=\"Enroll\",'Enrollment Form'!$AS724<>\"\"),\"Y\",\"N\")))","v":""},{"$f":"IF($B717=\"N\",\"\",IF($Q717=\"-\",\"-\",IF(AND($Q717=\"Y\",'Enrollment Form'!$AS724=\"No\"),\"-\",IF(AND($Q717=\"Y\",'Enrollment Form'!$AS724=\"Yes\",'Enrollment Form'!$AT724<>\"\"),\"Y\",\"N\"))))","v":""},{"$f":"IF($B717=\"N\",\"\",IF(OR('Enrollment Form'!$B724<>\"Subscriber\",'Enrollment Form'!$C724=\"ROC\"),\"-\",IF(AND('Enrollment Form'!$B724=\"Subscriber\",'Enrollment Form'!$C724=\"Enroll\",'Enrollment Form'!$CV724<>\"\"),\"Y\",\"N\")))","v":""},{"$f":"IF($B717=\"N\",\"\",IF($S717=\"-\",\"-\",IF(AND($S717=\"Y\",'Enrollment Form'!$CV724=\"No\"),\"-\",IF(AND($S717=\"Y\",'Enrollment Form'!$CV724=\"Yes\",'Enrollment Form'!$CW724<>\"\"),\"Y\",\"N\"))))","v":""},{"$f":"IF(OR('Enrollment Form'!$AY724=\"Yes\",'Enrollment Form'!$AY724=\"\"),\"-\",IF(OR(AND('Enrollment Form'!$AY724=\"No\",ISERROR(FIND(\"HMO\",VLOOKUP('Enrollment Form'!G724,'Enrollment Form'!H$11:J$1000,3,FALSE),1))=FALSE,COUNTA('Enrollment Form'!$AZ724:$BC724)=4),AND('Enrollment Form'!$AY724=\"No\",ISERROR(FIND(\"HMO\",VLOOKUP('Enrollment Form'!G724,'Enrollment Form'!H$11:J$1000,3,FALSE),1))=FALSE,COUNTA('Enrollment Form'!$BT724:$BW724)=4)),\"Y\",\"N\"))","v":"-"},{"$f":"IF($B717=\"N\",\"\",IF('Enrollment Form'!$B724=\"Subscriber\",\"-\",IF(COUNTA('Enrollment Form'!$BL724,'Enrollment Form'!$BN724)=2,\"Y\",\"N\")))","v":""},{"$f":"IF($B717=\"N\",\"\",IF(OR('Enrollment Form'!$AX724=\"\",'Enrollment Form'!$AX724=\"No\"),\"-\",IF(AND('Enrollment Form'!$AX724=\"Yes\",COUNTA('Enrollment Form'!$CR724)=1),\"Y\",\"N\")))","v":""},{"$f":"IF(OR('Enrollment Form'!$CR724=\"\",'Enrollment Form'!$CR724=\"No\"),\"-\",IF(COUNTA('Enrollment Form'!$CT724:$CU724)=2,\"Y\",\"N\"))","v":"-"},{"$f":"IF($B717=\"N\",\"\",IF(COUNTIF('Enrollment Form'!$DG724:$DP724,\"Other\")=COUNTA('Enrollment Form'!$DK724,'Enrollment Form'!$DH724,'Enrollment Form'!$DN724,'Enrollment Form'!$DQ724),\"Y\",\"N\"))","v":""},{"$f":"IF($B717=\"N\",\"\",IF(OR('Enrollment Form'!B724<>\"Subscriber\",'Enrollment Form'!C724=\"ROC\",COUNTIF('Enrollment Form'!AV724:AW724,\"Yes\")>=1),\"-\",IF(AND('Enrollment Form'!C724=\"Enroll\",COUNTIF('Enrollment Form'!AV724:AW724,\"No\")=2,'Enrollment Form'!AX724=\"\"),\"N\",\"Y\")))","v":""},{"$f":"IF(OR(B717=\"N\",'Enrollment Form'!B724<>\"Subscriber\",'Enrollment Form'!C724=\"ROC\",'Enrollment Form'!O724<>\"Multiple of Salary\"),\"-\",IF(COUNTA('Enrollment Form'!T724:U724)<2,\"N\",\"Y\"))","v":"-"},{"$f":"IF(B717=\"N\",\"\",IF(OR('Enrollment Form'!C724=\"ROC\",'Enrollment Form'!B724<>\"Subscriber\",'Enrollment Form'!O724=\"Waive\",'Enrollment Form'!O724=\"\"),\"-\",IF('Enrollment Form'!P724=\"\",\"N\",\"Y\")))","v":""},{"$f":"IF($B717=\"N\",\"\",IF(AND('Enrollment Form'!$C724=\"ROC\",'Enrollment Form'!$DR724<>\"\"),\"Y\",IF(AND('Enrollment Form'!$C724=\"ROC\",'Enrollment Form'!$DR724=\"\"),\"N\",IF(AND('Enrollment Form'!$C724=\"Enroll\",'Enrollment Form'!$B724=\"Subscriber\",'Enrollment Form'!$CX724=\"No\",'Enrollment Form'!$DR724=\"\"),\"N\",IF(AND('Enrollment Form'!$C724=\"Enroll\",'Enrollment Form'!$B724=\"Subscriber\",'Enrollment Form'!$CX724=\"Yes\"),\"-\",\"Y\")))))","v":""},{"$f":"IF($B717=\"N\",\"\",IF(AND('Enrollment Form'!$C724=\"ROC\",'Enrollment Form'!$DS724<>\"\"),\"Y\",IF(AND('Enrollment Form'!$C724=\"ROC\",'Enrollment Form'!$DS724=\"\"),\"N\",IF(AND('Enrollment Form'!$C724=\"Enroll\",'Enrollment Form'!$B724=\"Subscriber\",'Enrollment Form'!$CX724=\"No\",'Enrollment Form'!$DS724=\"\"),\"N\",IF(AND('Enrollment Form'!$C724=\"Enroll\",'Enrollment Form'!$B724=\"Subscriber\",'Enrollment Form'!$CX724=\"Yes\"),\"-\",\"Y\")))))","v":""},{"$f":"IF('Enrollment Form'!AH724=\"\",\"\",IF(ISERROR(SEARCH(\".\",'Enrollment Form'!AH724,SEARCH(\"@\",'Enrollment Form'!AH724))),\"N\",\"Y\"))","v":""},{"$f":"IF(OR($B717=\"N\",'Enrollment Form'!$G724=\"\"),\"\",IF('Enrollment Form'!$B724<>\"Subscriber\",\"-\",IF(COUNTIF('Enrollment Form'!$AV724:$AW724,\"Yes\")=2,\"N\",\"Y\")))","v":""},{"$f":"IF(OR('Enrollment Form'!$CJ724=\"\",'Enrollment Form'!$CJ724=\"No\"),\"-\",IF(AND('Enrollment Form'!$CJ724=\"Yes\",'Enrollment Form'!$CK724=\"\"),\"N\",\"Y\"))","v":"-"},{"$f":"IF(OR('Enrollment Form'!$CL724=\"\",'Enrollment Form'!$CL724=\"No\"),\"-\",IF(AND('Enrollment Form'!$CL724=\"Yes\",'Enrollment Form'!$CM724=\"\"),\"N\",\"Y\"))","v":"-"},{"$f":"IF(OR('Enrollment Form'!$CN724=\"\",'Enrollment Form'!$CN724=\"No\"),\"-\",IF(AND('Enrollment Form'!$CN724=\"Yes\",'Enrollment Form'!$CO724=\"\"),\"N\",\"Y\"))","v":"-"},{"$f":"IF(OR('Enrollment Form'!$CN724=\"\",'Enrollment Form'!$CN724=\"No\"),\"-\",IF(AND('Enrollment Form'!$CN724=\"Yes\",'Enrollment Form'!$CP724=\"\"),\"N\",\"Y\"))","v":"-"},{"$f":"IF('Enrollment Form'!B724<>\"Subscriber\",\"-\",IF(AND('Enrollment Form'!B724=\"Subscriber\",'Enrollment Form'!C724=\"Enroll\",'Enrollment Form'!AA724=\"\"),\"N\",\"Y\"))","v":"-"},{"$f":"IF(OR('Enrollment Form'!B724=\"Subscriber\",'Enrollment Form'!B724=\"\"),\"-\",IF('Enrollment Form'!BP724=\"\",\"N\",\"Y\"))","v":"-"},{"$f":"IF('Enrollment Form'!B724<>\"Subscriber\",\"-\",IF(AND('Enrollment Form'!B724=\"Subscriber\",'Enrollment Form'!G724=\"\"),\"N\",\"Y\"))","v":"-"},{"$f":"IF('Enrollment Form'!A724=\"\",\"\",IF('Enrollment Form'!B724=\"Subscriber\",\"-\",IF(AND('Enrollment Form'!B724<>\"Subscriber\",'Enrollment Form'!G724='Enrollment Form'!H724),\"N\",\"Y\")))","v":""},0]
[725,{"$f":"IF('Enrollment Form'!$A725<>\"\",\"Y\",\"N\")","v":"N"},{"$f":"IF(AND('Enrollment Form'!$B725=\"\",'Enrollment Form'!$C725<>\"\"),\"N\",IF($B718=\"N\",\"\",\"Y\"))","v":""},{"$f":"IF(OR($B718=\"N\",'Enrollment Form'!G725=\"\"),\"\",IF('Enrollment Form'!$B725<>\"Subscriber\",\"\",IF('Enrollment Form'!$G725='Enrollment Form'!$H725,\"Y\",\"N\")))","v":""},{"$f":"IF($B718=\"N\",\"\",IF(AND(COUNTIFS('Enrollment Form'!$H$11:$H$1000,'Enrollment Form'!$H725,'Enrollment Form'!$B$11:$B$1000,'Enrollment Form'!$B725)>1,'Enrollment Form'!$H725<>\"\"),\"N\",\"Y\"))","v":""},{"$f":"IF($B718=\"N\",\"\",IF(LEN('Enrollment Form'!$Y725)=0,\"\",IF(LEN('Enrollment Form'!$Y725)<>5,\"N\",\"Y\")))","v":""},{"$f":"IF($B718=\"N\",\"\",IF(LEN('Enrollment Form'!$AD725=0),\"\",IF(LEN('Enrollment Form'!$AD725)<>5,\"N\",\"Y\")))","v":""},{"$f":"IF($B718=\"N\",\"\",IF(LEN('Enrollment Form'!$BS725=0),\"\",IF(LEN('Enrollment Form'!$BS725)<>5,\"N\",\"Y\")))","v":""},{"$f":"IF($B718=\"N\",\"\",IF(LEN('Enrollment Form'!$AE725)=0,\"\",IF(LEN('Enrollment Form'!$AE725)<>10,\"N\",\"Y\")))","v":""},{"$f":"IF($B718=\"N\",\"\",IF(LEN('Enrollment Form'!$AF725)=0,\"\",IF(LEN('Enrollment Form'!$AF725)<>10,\"N\",\"Y\")))","v":""},{"$f":"IF('Enrollment Form'!$O725<>\"Graded\",\"-\",IF(AND('Enrollment Form'!$O725=\"Graded\",'Enrollment Form'!$AR725<>\"\"),\"Y\",\"N\"))","v":"-"},{"$f":"IF($B718=\"N\",\"\",IF(OR('Enrollment Form'!$B725<>\"Subscriber\",'Enrollment Form'!$C725=\"ROC\"),\"-\",IF(AND('Enrollment Form'!$B725=\"Subscriber\",'Enrollment Form'!$C725=\"Enroll\",'Enrollment Form'!$AJ725<>\"\"),\"Y\",\"N\")))","v":""},{"$f":"IF($B718=\"N\",\"\",IF(OR('Enrollment Form'!$B725<>\"Subscriber\",'Enrollment Form'!$C725=\"ROC\"),\"-\",IF(AND('Enrollment Form'!$B725=\"Subscriber\",'Enrollment Form'!$C725=\"Enroll\",'Enrollment Form'!$AK725<>\"\"),\"Y\",\"N\")))","v":""},{"$f":"IF($B718=\"N\",\"\",IF(OR('Enrollment Form'!$B725<>\"Subscriber\",'Enrollment Form'!$C725=\"ROC\"),\"-\",IF(AND('Enrollment Form'!$B725=\"Subscriber\",'Enrollment Form'!$C725=\"Enroll\",'Enrollment Form'!$AL725<>\"\"),\"Y\",\"N\")))","v":""},{"$f":"IF($B718=\"N\",\"\",IF(OR('Enrollment Form'!$B725<>\"Subscriber\",'Enrollment Form'!$C725=\"ROC\"),\"-\",IF(AND('Enrollment Form'!$B725=\"Subscriber\",'Enrollment Form'!$C725=\"Enroll\",'Enrollment Form'!$AP725<>\"\"),\"Y\",\"N\")))","v":""},{"$f":"IF($B718=\"N\",\"\",IF(OR('Enrollment Form'!$B725<>\"Subscriber\",'Enrollment Form'!$C725=\"ROC\"),\"-\",IF(AND('Enrollment Form'!$B725=\"Subscriber\",'Enrollment Form'!$C725=\"Enroll\",'Enrollment Form'!$AQ725<>\"\"),\"Y\",\"N\")))","v":""},{"$f":"IF($B718=\"N\",\"\",IF(OR('Enrollment Form'!$B725<>\"Subscriber\",'Enrollment Form'!$C725=\"ROC\"),\"-\",IF(AND('Enrollment Form'!$B725=\"Subscriber\",'Enrollment Form'!$C725=\"Enroll\",'Enrollment Form'!$AS725<>\"\"),\"Y\",\"N\")))","v":""},{"$f":"IF($B718=\"N\",\"\",IF($Q718=\"-\",\"-\",IF(AND($Q718=\"Y\",'Enrollment Form'!$AS725=\"No\"),\"-\",IF(AND($Q718=\"Y\",'Enrollment Form'!$AS725=\"Yes\",'Enrollment Form'!$AT725<>\"\"),\"Y\",\"N\"))))","v":""},{"$f":"IF($B718=\"N\",\"\",IF(OR('Enrollment Form'!$B725<>\"Subscriber\",'Enrollment Form'!$C725=\"ROC\"),\"-\",IF(AND('Enrollment Form'!$B725=\"Subscriber\",'Enrollment Form'!$C725=\"Enroll\",'Enrollment Form'!$CV725<>\"\"),\"Y\",\"N\")))","v":""},{"$f":"IF($B718=\"N\",\"\",IF($S718=\"-\",\"-\",IF(AND($S718=\"Y\",'Enrollment Form'!$CV725=\"No\"),\"-\",IF(AND($S718=\"Y\",'Enrollment Form'!$CV725=\"Yes\",'Enrollment Form'!$CW725<>\"\"),\"Y\",\"N\"))))","v":""},{"$f":"IF(OR('Enrollment Form'!$AY725=\"Yes\",'Enrollment Form'!$AY725=\"\"),\"-\",IF(OR(AND('Enrollment Form'!$AY725=\"No\",ISERROR(FIND(\"HMO\",VLOOKUP('Enrollment Form'!G725,'Enrollment Form'!H$11:J$1000,3,FALSE),1))=FALSE,COUNTA('Enrollment Form'!$AZ725:$BC725)=4),AND('Enrollment Form'!$AY725=\"No\",ISERROR(FIND(\"HMO\",VLOOKUP('Enrollment Form'!G725,'Enrollment Form'!H$11:J$1000,3,FALSE),1))=FALSE,COUNTA('Enrollment Form'!$BT725:$BW725)=4)),\"Y\",\"N\"))","v":"-"},{"$f":"IF($B718=\"N\",\"\",IF('Enrollment Form'!$B725=\"Subscriber\",\"-\",IF(COUNTA('Enrollment Form'!$BL725,'Enrollment Form'!$BN725)=2,\"Y\",\"N\")))","v":""},{"$f":"IF($B718=\"N\",\"\",IF(OR('Enrollment Form'!$AX725=\"\",'Enrollment Form'!$AX725=\"No\"),\"-\",IF(AND('Enrollment Form'!$AX725=\"Yes\",COUNTA('Enrollment Form'!$CR725)=1),\"Y\",\"N\")))","v":""},{"$f":"IF(OR('Enrollment Form'!$CR725=\"\",'Enrollment Form'!$CR725=\"No\"),\"-\",IF(COUNTA('Enrollment Form'!$CT725:$CU725)=2,\"Y\",\"N\"))","v":"-"},{"$f":"IF($B718=\"N\",\"\",IF(COUNTIF('Enrollment Form'!$DG725:$DP725,\"Other\")=COUNTA('Enrollment Form'!$DK725,'Enrollment Form'!$DH725,'Enrollment Form'!$DN725,'Enrollment Form'!$DQ725),\"Y\",\"N\"))","v":""},{"$f":"IF($B718=\"N\",\"\",IF(OR('Enrollment Form'!B725<>\"Subscriber\",'Enrollment Form'!C725=\"ROC\",COUNTIF('Enrollment Form'!AV725:AW725,\"Yes\")>=1),\"-\",IF(AND('Enrollment Form'!C725=\"Enroll\",COUNTIF('Enrollment Form'!AV725:AW725,\"No\")=2,'Enrollment Form'!AX725=\"\"),\"N\",\"Y\")))","v":""},{"$f":"IF(OR(B718=\"N\",'Enrollment Form'!B725<>\"Subscriber\",'Enrollment Form'!C725=\"ROC\",'Enrollment Form'!O725<>\"Multiple of Salary\"),\"-\",IF(COUNTA('Enrollment Form'!T725:U725)<2,\"N\",\"Y\"))","v":"-"},{"$f":"IF(B718=\"N\",\"\",IF(OR('Enrollment Form'!C725=\"ROC\",'Enrollment Form'!B725<>\"Subscriber\",'Enrollment Form'!O725=\"Waive\",'Enrollment Form'!O725=\"\"),\"-\",IF('Enrollment Form'!P725=\"\",\"N\",\"Y\")))","v":""},{"$f":"IF($B718=\"N\",\"\",IF(AND('Enrollment Form'!$C725=\"ROC\",'Enrollment Form'!$DR725<>\"\"),\"Y\",IF(AND('Enrollment Form'!$C725=\"ROC\",'Enrollment Form'!$DR725=\"\"),\"N\",IF(AND('Enrollment Form'!$C725=\"Enroll\",'Enrollment Form'!$B725=\"Subscriber\",'Enrollment Form'!$CX725=\"No\",'Enrollment Form'!$DR725=\"\"),\"N\",IF(AND('Enrollment Form'!$C725=\"Enroll\",'Enrollment Form'!$B725=\"Subscriber\",'Enrollment Form'!$CX725=\"Yes\"),\"-\",\"Y\")))))","v":""},{"$f":"IF($B718=\"N\",\"\",IF(AND('Enrollment Form'!$C725=\"ROC\",'Enrollment Form'!$DS725<>\"\"),\"Y\",IF(AND('Enrollment Form'!$C725=\"ROC\",'Enrollment Form'!$DS725=\"\"),\"N\",IF(AND('Enrollment Form'!$C725=\"Enroll\",'Enrollment Form'!$B725=\"Subscriber\",'Enrollment Form'!$CX725=\"No\",'Enrollment Form'!$DS725=\"\"),\"N\",IF(AND('Enrollment Form'!$C725=\"Enroll\",'Enrollment Form'!$B725=\"Subscriber\",'Enrollment Form'!$CX725=\"Yes\"),\"-\",\"Y\")))))","v":""},{"$f":"IF('Enrollment Form'!AH725=\"\",\"\",IF(ISERROR(SEARCH(\".\",'Enrollment Form'!AH725,SEARCH(\"@\",'Enrollment Form'!AH725))),\"N\",\"Y\"))","v":""},{"$f":"IF(OR($B718=\"N\",'Enrollment Form'!$G725=\"\"),\"\",IF('Enrollment Form'!$B725<>\"Subscriber\",\"-\",IF(COUNTIF('Enrollment Form'!$AV725:$AW725,\"Yes\")=2,\"N\",\"Y\")))","v":""},{"$f":"IF(OR('Enrollment Form'!$CJ725=\"\",'Enrollment Form'!$CJ725=\"No\"),\"-\",IF(AND('Enrollment Form'!$CJ725=\"Yes\",'Enrollment Form'!$CK725=\"\"),\"N\",\"Y\"))","v":"-"},{"$f":"IF(OR('Enrollment Form'!$CL725=\"\",'Enrollment Form'!$CL725=\"No\"),\"-\",IF(AND('Enrollment Form'!$CL725=\"Yes\",'Enrollment Form'!$CM725=\"\"),\"N\",\"Y\"))","v":"-"},{"$f":"IF(OR('Enrollment Form'!$CN725=\"\",'Enrollment Form'!$CN725=\"No\"),\"-\",IF(AND('Enrollment Form'!$CN725=\"Yes\",'Enrollment Form'!$CO725=\"\"),\"N\",\"Y\"))","v":"-"},{"$f":"IF(OR('Enrollment Form'!$CN725=\"\",'Enrollment Form'!$CN725=\"No\"),\"-\",IF(AND('Enrollment Form'!$CN725=\"Yes\",'Enrollment Form'!$CP725=\"\"),\"N\",\"Y\"))","v":"-"},{"$f":"IF('Enrollment Form'!B725<>\"Subscriber\",\"-\",IF(AND('Enrollment Form'!B725=\"Subscriber\",'Enrollment Form'!C725=\"Enroll\",'Enrollment Form'!AA725=\"\"),\"N\",\"Y\"))","v":"-"},{"$f":"IF(OR('Enrollment Form'!B725=\"Subscriber\",'Enrollment Form'!B725=\"\"),\"-\",IF('Enrollment Form'!BP725=\"\",\"N\",\"Y\"))","v":"-"},{"$f":"IF('Enrollment Form'!B725<>\"Subscriber\",\"-\",IF(AND('Enrollment Form'!B725=\"Subscriber\",'Enrollment Form'!G725=\"\"),\"N\",\"Y\"))","v":"-"},{"$f":"IF('Enrollment Form'!A725=\"\",\"\",IF('Enrollment Form'!B725=\"Subscriber\",\"-\",IF(AND('Enrollment Form'!B725<>\"Subscriber\",'Enrollment Form'!G725='Enrollment Form'!H725),\"N\",\"Y\")))","v":""},0]
[726,{"$f":"IF('Enrollment Form'!$A726<>\"\",\"Y\",\"N\")","v":"N"},{"$f":"IF(AND('Enrollment Form'!$B726=\"\",'Enrollment Form'!$C726<>\"\"),\"N\",IF($B719=\"N\",\"\",\"Y\"))","v":""},{"$f":"IF(OR($B719=\"N\",'Enrollment Form'!G726=\"\"),\"\",IF('Enrollment Form'!$B726<>\"Subscriber\",\"\",IF('Enrollment Form'!$G726='Enrollment Form'!$H726,\"Y\",\"N\")))","v":""},{"$f":"IF($B719=\"N\",\"\",IF(AND(COUNTIFS('Enrollment Form'!$H$11:$H$1000,'Enrollment Form'!$H726,'Enrollment Form'!$B$11:$B$1000,'Enrollment Form'!$B726)>1,'Enrollment Form'!$H726<>\"\"),\"N\",\"Y\"))","v":""},{"$f":"IF($B719=\"N\",\"\",IF(LEN('Enrollment Form'!$Y726)=0,\"\",IF(LEN('Enrollment Form'!$Y726)<>5,\"N\",\"Y\")))","v":""},{"$f":"IF($B719=\"N\",\"\",IF(LEN('Enrollment Form'!$AD726=0),\"\",IF(LEN('Enrollment Form'!$AD726)<>5,\"N\",\"Y\")))","v":""},{"$f":"IF($B719=\"N\",\"\",IF(LEN('Enrollment Form'!$BS726=0),\"\",IF(LEN('Enrollment Form'!$BS726)<>5,\"N\",\"Y\")))","v":""},{"$f":"IF($B719=\"N\",\"\",IF(LEN('Enrollment Form'!$AE726)=0,\"\",IF(LEN('Enrollment Form'!$AE726)<>10,\"N\",\"Y\")))","v":""},{"$f":"IF($B719=\"N\",\"\",IF(LEN('Enrollment Form'!$AF726)=0,\"\",IF(LEN('Enrollment Form'!$AF726)<>10,\"N\",\"Y\")))","v":""},{"$f":"IF('Enrollment Form'!$O726<>\"Graded\",\"-\",IF(AND('Enrollment Form'!$O726=\"Graded\",'Enrollment Form'!$AR726<>\"\"),\"Y\",\"N\"))","v":"-"},{"$f":"IF($B719=\"N\",\"\",IF(OR('Enrollment Form'!$B726<>\"Subscriber\",'Enrollment Form'!$C726=\"ROC\"),\"-\",IF(AND('Enrollment Form'!$B726=\"Subscriber\",'Enrollment Form'!$C726=\"Enroll\",'Enrollment Form'!$AJ726<>\"\"),\"Y\",\"N\")))","v":""},{"$f":"IF($B719=\"N\",\"\",IF(OR('Enrollment Form'!$B726<>\"Subscriber\",'Enrollment Form'!$C726=\"ROC\"),\"-\",IF(AND('Enrollment Form'!$B726=\"Subscriber\",'Enrollment Form'!$C726=\"Enroll\",'Enrollment Form'!$AK726<>\"\"),\"Y\",\"N\")))","v":""},{"$f":"IF($B719=\"N\",\"\",IF(OR('Enrollment Form'!$B726<>\"Subscriber\",'Enrollment Form'!$C726=\"ROC\"),\"-\",IF(AND('Enrollment Form'!$B726=\"Subscriber\",'Enrollment Form'!$C726=\"Enroll\",'Enrollment Form'!$AL726<>\"\"),\"Y\",\"N\")))","v":""},{"$f":"IF($B719=\"N\",\"\",IF(OR('Enrollment Form'!$B726<>\"Subscriber\",'Enrollment Form'!$C726=\"ROC\"),\"-\",IF(AND('Enrollment Form'!$B726=\"Subscriber\",'Enrollment Form'!$C726=\"Enroll\",'Enrollment Form'!$AP726<>\"\"),\"Y\",\"N\")))","v":""},{"$f":"IF($B719=\"N\",\"\",IF(OR('Enrollment Form'!$B726<>\"Subscriber\",'Enrollment Form'!$C726=\"ROC\"),\"-\",IF(AND('Enrollment Form'!$B726=\"Subscriber\",'Enrollment Form'!$C726=\"Enroll\",'Enrollment Form'!$AQ726<>\"\"),\"Y\",\"N\")))","v":""},{"$f":"IF($B719=\"N\",\"\",IF(OR('Enrollment Form'!$B726<>\"Subscriber\",'Enrollment Form'!$C726=\"ROC\"),\"-\",IF(AND('Enrollment Form'!$B726=\"Subscriber\",'Enrollment Form'!$C726=\"Enroll\",'Enrollment Form'!$AS726<>\"\"),\"Y\",\"N\")))","v":""},{"$f":"IF($B719=\"N\",\"\",IF($Q719=\"-\",\"-\",IF(AND($Q719=\"Y\",'Enrollment Form'!$AS726=\"No\"),\"-\",IF(AND($Q719=\"Y\",'Enrollment Form'!$AS726=\"Yes\",'Enrollment Form'!$AT726<>\"\"),\"Y\",\"N\"))))","v":""},{"$f":"IF($B719=\"N\",\"\",IF(OR('Enrollment Form'!$B726<>\"Subscriber\",'Enrollment Form'!$C726=\"ROC\"),\"-\",IF(AND('Enrollment Form'!$B726=\"Subscriber\",'Enrollment Form'!$C726=\"Enroll\",'Enrollment Form'!$CV726<>\"\"),\"Y\",\"N\")))","v":""},{"$f":"IF($B719=\"N\",\"\",IF($S719=\"-\",\"-\",IF(AND($S719=\"Y\",'Enrollment Form'!$CV726=\"No\"),\"-\",IF(AND($S719=\"Y\",'Enrollment Form'!$CV726=\"Yes\",'Enrollment Form'!$CW726<>\"\"),\"Y\",\"N\"))))","v":""},{"$f":"IF(OR('Enrollment Form'!$AY726=\"Yes\",'Enrollment Form'!$AY726=\"\"),\"-\",IF(OR(AND('Enrollment Form'!$AY726=\"No\",ISERROR(FIND(\"HMO\",VLOOKUP('Enrollment Form'!G726,'Enrollment Form'!H$11:J$1000,3,FALSE),1))=FALSE,COUNTA('Enrollment Form'!$AZ726:$BC726)=4),AND('Enrollment Form'!$AY726=\"No\",ISERROR(FIND(\"HMO\",VLOOKUP('Enrollment Form'!G726,'Enrollment Form'!H$11:J$1000,3,FALSE),1))=FALSE,COUNTA('Enrollment Form'!$BT726:$BW726)=4)),\"Y\",\"N\"))","v":"-"},{"$f":"IF($B719=\"N\",\"\",IF('Enrollment Form'!$B726=\"Subscriber\",\"-\",IF(COUNTA('Enrollment Form'!$BL726,'Enrollment Form'!$BN726)=2,\"Y\",\"N\")))","v":""},{"$f":"IF($B719=\"N\",\"\",IF(OR('Enrollment Form'!$AX726=\"\",'Enrollment Form'!$AX726=\"No\"),\"-\",IF(AND('Enrollment Form'!$AX726=\"Yes\",COUNTA('Enrollment Form'!$CR726)=1),\"Y\",\"N\")))","v":""},{"$f":"IF(OR('Enrollment Form'!$CR726=\"\",'Enrollment Form'!$CR726=\"No\"),\"-\",IF(COUNTA('Enrollment Form'!$CT726:$CU726)=2,\"Y\",\"N\"))","v":"-"},{"$f":"IF($B719=\"N\",\"\",IF(COUNTIF('Enrollment Form'!$DG726:$DP726,\"Other\")=COUNTA('Enrollment Form'!$DK726,'Enrollment Form'!$DH726,'Enrollment Form'!$DN726,'Enrollment Form'!$DQ726),\"Y\",\"N\"))","v":""},{"$f":"IF($B719=\"N\",\"\",IF(OR('Enrollment Form'!B726<>\"Subscriber\",'Enrollment Form'!C726=\"ROC\",COUNTIF('Enrollment Form'!AV726:AW726,\"Yes\")>=1),\"-\",IF(AND('Enrollment Form'!C726=\"Enroll\",COUNTIF('Enrollment Form'!AV726:AW726,\"No\")=2,'Enrollment Form'!AX726=\"\"),\"N\",\"Y\")))","v":""},{"$f":"IF(OR(B719=\"N\",'Enrollment Form'!B726<>\"Subscriber\",'Enrollment Form'!C726=\"ROC\",'Enrollment Form'!O726<>\"Multiple of Salary\"),\"-\",IF(COUNTA('Enrollment Form'!T726:U726)<2,\"N\",\"Y\"))","v":"-"},{"$f":"IF(B719=\"N\",\"\",IF(OR('Enrollment Form'!C726=\"ROC\",'Enrollment Form'!B726<>\"Subscriber\",'Enrollment Form'!O726=\"Waive\",'Enrollment Form'!O726=\"\"),\"-\",IF('Enrollment Form'!P726=\"\",\"N\",\"Y\")))","v":""},{"$f":"IF($B719=\"N\",\"\",IF(AND('Enrollment Form'!$C726=\"ROC\",'Enrollment Form'!$DR726<>\"\"),\"Y\",IF(AND('Enrollment Form'!$C726=\"ROC\",'Enrollment Form'!$DR726=\"\"),\"N\",IF(AND('Enrollment Form'!$C726=\"Enroll\",'Enrollment Form'!$B726=\"Subscriber\",'Enrollment Form'!$CX726=\"No\",'Enrollment Form'!$DR726=\"\"),\"N\",IF(AND('Enrollment Form'!$C726=\"Enroll\",'Enrollment Form'!$B726=\"Subscriber\",'Enrollment Form'!$CX726=\"Yes\"),\"-\",\"Y\")))))","v":""},{"$f":"IF($B719=\"N\",\"\",IF(AND('Enrollment Form'!$C726=\"ROC\",'Enrollment Form'!$DS726<>\"\"),\"Y\",IF(AND('Enrollment Form'!$C726=\"ROC\",'Enrollment Form'!$DS726=\"\"),\"N\",IF(AND('Enrollment Form'!$C726=\"Enroll\",'Enrollment Form'!$B726=\"Subscriber\",'Enrollment Form'!$CX726=\"No\",'Enrollment Form'!$DS726=\"\"),\"N\",IF(AND('Enrollment Form'!$C726=\"Enroll\",'Enrollment Form'!$B726=\"Subscriber\",'Enrollment Form'!$CX726=\"Yes\"),\"-\",\"Y\")))))","v":""},{"$f":"IF('Enrollment Form'!AH726=\"\",\"\",IF(ISERROR(SEARCH(\".\",'Enrollment Form'!AH726,SEARCH(\"@\",'Enrollment Form'!AH726))),\"N\",\"Y\"))","v":""},{"$f":"IF(OR($B719=\"N\",'Enrollment Form'!$G726=\"\"),\"\",IF('Enrollment Form'!$B726<>\"Subscriber\",\"-\",IF(COUNTIF('Enrollment Form'!$AV726:$AW726,\"Yes\")=2,\"N\",\"Y\")))","v":""},{"$f":"IF(OR('Enrollment Form'!$CJ726=\"\",'Enrollment Form'!$CJ726=\"No\"),\"-\",IF(AND('Enrollment Form'!$CJ726=\"Yes\",'Enrollment Form'!$CK726=\"\"),\"N\",\"Y\"))","v":"-"},{"$f":"IF(OR('Enrollment Form'!$CL726=\"\",'Enrollment Form'!$CL726=\"No\"),\"-\",IF(AND('Enrollment Form'!$CL726=\"Yes\",'Enrollment Form'!$CM726=\"\"),\"N\",\"Y\"))","v":"-"},{"$f":"IF(OR('Enrollment Form'!$CN726=\"\",'Enrollment Form'!$CN726=\"No\"),\"-\",IF(AND('Enrollment Form'!$CN726=\"Yes\",'Enrollment Form'!$CO726=\"\"),\"N\",\"Y\"))","v":"-"},{"$f":"IF(OR('Enrollment Form'!$CN726=\"\",'Enrollment Form'!$CN726=\"No\"),\"-\",IF(AND('Enrollment Form'!$CN726=\"Yes\",'Enrollment Form'!$CP726=\"\"),\"N\",\"Y\"))","v":"-"},{"$f":"IF('Enrollment Form'!B726<>\"Subscriber\",\"-\",IF(AND('Enrollment Form'!B726=\"Subscriber\",'Enrollment Form'!C726=\"Enroll\",'Enrollment Form'!AA726=\"\"),\"N\",\"Y\"))","v":"-"},{"$f":"IF(OR('Enrollment Form'!B726=\"Subscriber\",'Enrollment Form'!B726=\"\"),\"-\",IF('Enrollment Form'!BP726=\"\",\"N\",\"Y\"))","v":"-"},{"$f":"IF('Enrollment Form'!B726<>\"Subscriber\",\"-\",IF(AND('Enrollment Form'!B726=\"Subscriber\",'Enrollment Form'!G726=\"\"),\"N\",\"Y\"))","v":"-"},{"$f":"IF('Enrollment Form'!A726=\"\",\"\",IF('Enrollment Form'!B726=\"Subscriber\",\"-\",IF(AND('Enrollment Form'!B726<>\"Subscriber\",'Enrollment Form'!G726='Enrollment Form'!H726),\"N\",\"Y\")))","v":""},0]
[727,{"$f":"IF('Enrollment Form'!$A727<>\"\",\"Y\",\"N\")","v":"N"},{"$f":"IF(AND('Enrollment Form'!$B727=\"\",'Enrollment Form'!$C727<>\"\"),\"N\",IF($B720=\"N\",\"\",\"Y\"))","v":""},{"$f":"IF(OR($B720=\"N\",'Enrollment Form'!G727=\"\"),\"\",IF('Enrollment Form'!$B727<>\"Subscriber\",\"\",IF('Enrollment Form'!$G727='Enrollment Form'!$H727,\"Y\",\"N\")))","v":""},{"$f":"IF($B720=\"N\",\"\",IF(AND(COUNTIFS('Enrollment Form'!$H$11:$H$1000,'Enrollment Form'!$H727,'Enrollment Form'!$B$11:$B$1000,'Enrollment Form'!$B727)>1,'Enrollment Form'!$H727<>\"\"),\"N\",\"Y\"))","v":""},{"$f":"IF($B720=\"N\",\"\",IF(LEN('Enrollment Form'!$Y727)=0,\"\",IF(LEN('Enrollment Form'!$Y727)<>5,\"N\",\"Y\")))","v":""},{"$f":"IF($B720=\"N\",\"\",IF(LEN('Enrollment Form'!$AD727=0),\"\",IF(LEN('Enrollment Form'!$AD727)<>5,\"N\",\"Y\")))","v":""},{"$f":"IF($B720=\"N\",\"\",IF(LEN('Enrollment Form'!$BS727=0),\"\",IF(LEN('Enrollment Form'!$BS727)<>5,\"N\",\"Y\")))","v":""},{"$f":"IF($B720=\"N\",\"\",IF(LEN('Enrollment Form'!$AE727)=0,\"\",IF(LEN('Enrollment Form'!$AE727)<>10,\"N\",\"Y\")))","v":""},{"$f":"IF($B720=\"N\",\"\",IF(LEN('Enrollment Form'!$AF727)=0,\"\",IF(LEN('Enrollment Form'!$AF727)<>10,\"N\",\"Y\")))","v":""},{"$f":"IF('Enrollment Form'!$O727<>\"Graded\",\"-\",IF(AND('Enrollment Form'!$O727=\"Graded\",'Enrollment Form'!$AR727<>\"\"),\"Y\",\"N\"))","v":"-"},{"$f":"IF($B720=\"N\",\"\",IF(OR('Enrollment Form'!$B727<>\"Subscriber\",'Enrollment Form'!$C727=\"ROC\"),\"-\",IF(AND('Enrollment Form'!$B727=\"Subscriber\",'Enrollment Form'!$C727=\"Enroll\",'Enrollment Form'!$AJ727<>\"\"),\"Y\",\"N\")))","v":""},{"$f":"IF($B720=\"N\",\"\",IF(OR('Enrollment Form'!$B727<>\"Subscriber\",'Enrollment Form'!$C727=\"ROC\"),\"-\",IF(AND('Enrollment Form'!$B727=\"Subscriber\",'Enrollment Form'!$C727=\"Enroll\",'Enrollment Form'!$AK727<>\"\"),\"Y\",\"N\")))","v":""},{"$f":"IF($B720=\"N\",\"\",IF(OR('Enrollment Form'!$B727<>\"Subscriber\",'Enrollment Form'!$C727=\"ROC\"),\"-\",IF(AND('Enrollment Form'!$B727=\"Subscriber\",'Enrollment Form'!$C727=\"Enroll\",'Enrollment Form'!$AL727<>\"\"),\"Y\",\"N\")))","v":""},{"$f":"IF($B720=\"N\",\"\",IF(OR('Enrollment Form'!$B727<>\"Subscriber\",'Enrollment Form'!$C727=\"ROC\"),\"-\",IF(AND('Enrollment Form'!$B727=\"Subscriber\",'Enrollment Form'!$C727=\"Enroll\",'Enrollment Form'!$AP727<>\"\"),\"Y\",\"N\")))","v":""},{"$f":"IF($B720=\"N\",\"\",IF(OR('Enrollment Form'!$B727<>\"Subscriber\",'Enrollment Form'!$C727=\"ROC\"),\"-\",IF(AND('Enrollment Form'!$B727=\"Subscriber\",'Enrollment Form'!$C727=\"Enroll\",'Enrollment Form'!$AQ727<>\"\"),\"Y\",\"N\")))","v":""},{"$f":"IF($B720=\"N\",\"\",IF(OR('Enrollment Form'!$B727<>\"Subscriber\",'Enrollment Form'!$C727=\"ROC\"),\"-\",IF(AND('Enrollment Form'!$B727=\"Subscriber\",'Enrollment Form'!$C727=\"Enroll\",'Enrollment Form'!$AS727<>\"\"),\"Y\",\"N\")))","v":""},{"$f":"IF($B720=\"N\",\"\",IF($Q720=\"-\",\"-\",IF(AND($Q720=\"Y\",'Enrollment Form'!$AS727=\"No\"),\"-\",IF(AND($Q720=\"Y\",'Enrollment Form'!$AS727=\"Yes\",'Enrollment Form'!$AT727<>\"\"),\"Y\",\"N\"))))","v":""},{"$f":"IF($B720=\"N\",\"\",IF(OR('Enrollment Form'!$B727<>\"Subscriber\",'Enrollment Form'!$C727=\"ROC\"),\"-\",IF(AND('Enrollment Form'!$B727=\"Subscriber\",'Enrollment Form'!$C727=\"Enroll\",'Enrollment Form'!$CV727<>\"\"),\"Y\",\"N\")))","v":""},{"$f":"IF($B720=\"N\",\"\",IF($S720=\"-\",\"-\",IF(AND($S720=\"Y\",'Enrollment Form'!$CV727=\"No\"),\"-\",IF(AND($S720=\"Y\",'Enrollment Form'!$CV727=\"Yes\",'Enrollment Form'!$CW727<>\"\"),\"Y\",\"N\"))))","v":""},{"$f":"IF(OR('Enrollment Form'!$AY727=\"Yes\",'Enrollment Form'!$AY727=\"\"),\"-\",IF(OR(AND('Enrollment Form'!$AY727=\"No\",ISERROR(FIND(\"HMO\",VLOOKUP('Enrollment Form'!G727,'Enrollment Form'!H$11:J$1000,3,FALSE),1))=FALSE,COUNTA('Enrollment Form'!$AZ727:$BC727)=4),AND('Enrollment Form'!$AY727=\"No\",ISERROR(FIND(\"HMO\",VLOOKUP('Enrollment Form'!G727,'Enrollment Form'!H$11:J$1000,3,FALSE),1))=FALSE,COUNTA('Enrollment Form'!$BT727:$BW727)=4)),\"Y\",\"N\"))","v":"-"},{"$f":"IF($B720=\"N\",\"\",IF('Enrollment Form'!$B727=\"Subscriber\",\"-\",IF(COUNTA('Enrollment Form'!$BL727,'Enrollment Form'!$BN727)=2,\"Y\",\"N\")))","v":""},{"$f":"IF($B720=\"N\",\"\",IF(OR('Enrollment Form'!$AX727=\"\",'Enrollment Form'!$AX727=\"No\"),\"-\",IF(AND('Enrollment Form'!$AX727=\"Yes\",COUNTA('Enrollment Form'!$CR727)=1),\"Y\",\"N\")))","v":""},{"$f":"IF(OR('Enrollment Form'!$CR727=\"\",'Enrollment Form'!$CR727=\"No\"),\"-\",IF(COUNTA('Enrollment Form'!$CT727:$CU727)=2,\"Y\",\"N\"))","v":"-"},{"$f":"IF($B720=\"N\",\"\",IF(COUNTIF('Enrollment Form'!$DG727:$DP727,\"Other\")=COUNTA('Enrollment Form'!$DK727,'Enrollment Form'!$DH727,'Enrollment Form'!$DN727,'Enrollment Form'!$DQ727),\"Y\",\"N\"))","v":""},{"$f":"IF($B720=\"N\",\"\",IF(OR('Enrollment Form'!B727<>\"Subscriber\",'Enrollment Form'!C727=\"ROC\",COUNTIF('Enrollment Form'!AV727:AW727,\"Yes\")>=1),\"-\",IF(AND('Enrollment Form'!C727=\"Enroll\",COUNTIF('Enrollment Form'!AV727:AW727,\"No\")=2,'Enrollment Form'!AX727=\"\"),\"N\",\"Y\")))","v":""},{"$f":"IF(OR(B720=\"N\",'Enrollment Form'!B727<>\"Subscriber\",'Enrollment Form'!C727=\"ROC\",'Enrollment Form'!O727<>\"Multiple of Salary\"),\"-\",IF(COUNTA('Enrollment Form'!T727:U727)<2,\"N\",\"Y\"))","v":"-"},{"$f":"IF(B720=\"N\",\"\",IF(OR('Enrollment Form'!C727=\"ROC\",'Enrollment Form'!B727<>\"Subscriber\",'Enrollment Form'!O727=\"Waive\",'Enrollment Form'!O727=\"\"),\"-\",IF('Enrollment Form'!P727=\"\",\"N\",\"Y\")))","v":""},{"$f":"IF($B720=\"N\",\"\",IF(AND('Enrollment Form'!$C727=\"ROC\",'Enrollment Form'!$DR727<>\"\"),\"Y\",IF(AND('Enrollment Form'!$C727=\"ROC\",'Enrollment Form'!$DR727=\"\"),\"N\",IF(AND('Enrollment Form'!$C727=\"Enroll\",'Enrollment Form'!$B727=\"Subscriber\",'Enrollment Form'!$CX727=\"No\",'Enrollment Form'!$DR727=\"\"),\"N\",IF(AND('Enrollment Form'!$C727=\"Enroll\",'Enrollment Form'!$B727=\"Subscriber\",'Enrollment Form'!$CX727=\"Yes\"),\"-\",\"Y\")))))","v":""},{"$f":"IF($B720=\"N\",\"\",IF(AND('Enrollment Form'!$C727=\"ROC\",'Enrollment Form'!$DS727<>\"\"),\"Y\",IF(AND('Enrollment Form'!$C727=\"ROC\",'Enrollment Form'!$DS727=\"\"),\"N\",IF(AND('Enrollment Form'!$C727=\"Enroll\",'Enrollment Form'!$B727=\"Subscriber\",'Enrollment Form'!$CX727=\"No\",'Enrollment Form'!$DS727=\"\"),\"N\",IF(AND('Enrollment Form'!$C727=\"Enroll\",'Enrollment Form'!$B727=\"Subscriber\",'Enrollment Form'!$CX727=\"Yes\"),\"-\",\"Y\")))))","v":""},{"$f":"IF('Enrollment Form'!AH727=\"\",\"\",IF(ISERROR(SEARCH(\".\",'Enrollment Form'!AH727,SEARCH(\"@\",'Enrollment Form'!AH727))),\"N\",\"Y\"))","v":""},{"$f":"IF(OR($B720=\"N\",'Enrollment Form'!$G727=\"\"),\"\",IF('Enrollment Form'!$B727<>\"Subscriber\",\"-\",IF(COUNTIF('Enrollment Form'!$AV727:$AW727,\"Yes\")=2,\"N\",\"Y\")))","v":""},{"$f":"IF(OR('Enrollment Form'!$CJ727=\"\",'Enrollment Form'!$CJ727=\"No\"),\"-\",IF(AND('Enrollment Form'!$CJ727=\"Yes\",'Enrollment Form'!$CK727=\"\"),\"N\",\"Y\"))","v":"-"},{"$f":"IF(OR('Enrollment Form'!$CL727=\"\",'Enrollment Form'!$CL727=\"No\"),\"-\",IF(AND('Enrollment Form'!$CL727=\"Yes\",'Enrollment Form'!$CM727=\"\"),\"N\",\"Y\"))","v":"-"},{"$f":"IF(OR('Enrollment Form'!$CN727=\"\",'Enrollment Form'!$CN727=\"No\"),\"-\",IF(AND('Enrollment Form'!$CN727=\"Yes\",'Enrollment Form'!$CO727=\"\"),\"N\",\"Y\"))","v":"-"},{"$f":"IF(OR('Enrollment Form'!$CN727=\"\",'Enrollment Form'!$CN727=\"No\"),\"-\",IF(AND('Enrollment Form'!$CN727=\"Yes\",'Enrollment Form'!$CP727=\"\"),\"N\",\"Y\"))","v":"-"},{"$f":"IF('Enrollment Form'!B727<>\"Subscriber\",\"-\",IF(AND('Enrollment Form'!B727=\"Subscriber\",'Enrollment Form'!C727=\"Enroll\",'Enrollment Form'!AA727=\"\"),\"N\",\"Y\"))","v":"-"},{"$f":"IF(OR('Enrollment Form'!B727=\"Subscriber\",'Enrollment Form'!B727=\"\"),\"-\",IF('Enrollment Form'!BP727=\"\",\"N\",\"Y\"))","v":"-"},{"$f":"IF('Enrollment Form'!B727<>\"Subscriber\",\"-\",IF(AND('Enrollment Form'!B727=\"Subscriber\",'Enrollment Form'!G727=\"\"),\"N\",\"Y\"))","v":"-"},{"$f":"IF('Enrollment Form'!A727=\"\",\"\",IF('Enrollment Form'!B727=\"Subscriber\",\"-\",IF(AND('Enrollment Form'!B727<>\"Subscriber\",'Enrollment Form'!G727='Enrollment Form'!H727),\"N\",\"Y\")))","v":""},0]
[728,{"$f":"IF('Enrollment Form'!$A728<>\"\",\"Y\",\"N\")","v":"N"},{"$f":"IF(AND('Enrollment Form'!$B728=\"\",'Enrollment Form'!$C728<>\"\"),\"N\",IF($B721=\"N\",\"\",\"Y\"))","v":""},{"$f":"IF(OR($B721=\"N\",'Enrollment Form'!G728=\"\"),\"\",IF('Enrollment Form'!$B728<>\"Subscriber\",\"\",IF('Enrollment Form'!$G728='Enrollment Form'!$H728,\"Y\",\"N\")))","v":""},{"$f":"IF($B721=\"N\",\"\",IF(AND(COUNTIFS('Enrollment Form'!$H$11:$H$1000,'Enrollment Form'!$H728,'Enrollment Form'!$B$11:$B$1000,'Enrollment Form'!$B728)>1,'Enrollment Form'!$H728<>\"\"),\"N\",\"Y\"))","v":""},{"$f":"IF($B721=\"N\",\"\",IF(LEN('Enrollment Form'!$Y728)=0,\"\",IF(LEN('Enrollment Form'!$Y728)<>5,\"N\",\"Y\")))","v":""},{"$f":"IF($B721=\"N\",\"\",IF(LEN('Enrollment Form'!$AD728=0),\"\",IF(LEN('Enrollment Form'!$AD728)<>5,\"N\",\"Y\")))","v":""},{"$f":"IF($B721=\"N\",\"\",IF(LEN('Enrollment Form'!$BS728=0),\"\",IF(LEN('Enrollment Form'!$BS728)<>5,\"N\",\"Y\")))","v":""},{"$f":"IF($B721=\"N\",\"\",IF(LEN('Enrollment Form'!$AE728)=0,\"\",IF(LEN('Enrollment Form'!$AE728)<>10,\"N\",\"Y\")))","v":""},{"$f":"IF($B721=\"N\",\"\",IF(LEN('Enrollment Form'!$AF728)=0,\"\",IF(LEN('Enrollment Form'!$AF728)<>10,\"N\",\"Y\")))","v":""},{"$f":"IF('Enrollment Form'!$O728<>\"Graded\",\"-\",IF(AND('Enrollment Form'!$O728=\"Graded\",'Enrollment Form'!$AR728<>\"\"),\"Y\",\"N\"))","v":"-"},{"$f":"IF($B721=\"N\",\"\",IF(OR('Enrollment Form'!$B728<>\"Subscriber\",'Enrollment Form'!$C728=\"ROC\"),\"-\",IF(AND('Enrollment Form'!$B728=\"Subscriber\",'Enrollment Form'!$C728=\"Enroll\",'Enrollment Form'!$AJ728<>\"\"),\"Y\",\"N\")))","v":""},{"$f":"IF($B721=\"N\",\"\",IF(OR('Enrollment Form'!$B728<>\"Subscriber\",'Enrollment Form'!$C728=\"ROC\"),\"-\",IF(AND('Enrollment Form'!$B728=\"Subscriber\",'Enrollment Form'!$C728=\"Enroll\",'Enrollment Form'!$AK728<>\"\"),\"Y\",\"N\")))","v":""},{"$f":"IF($B721=\"N\",\"\",IF(OR('Enrollment Form'!$B728<>\"Subscriber\",'Enrollment Form'!$C728=\"ROC\"),\"-\",IF(AND('Enrollment Form'!$B728=\"Subscriber\",'Enrollment Form'!$C728=\"Enroll\",'Enrollment Form'!$AL728<>\"\"),\"Y\",\"N\")))","v":""},{"$f":"IF($B721=\"N\",\"\",IF(OR('Enrollment Form'!$B728<>\"Subscriber\",'Enrollment Form'!$C728=\"ROC\"),\"-\",IF(AND('Enrollment Form'!$B728=\"Subscriber\",'Enrollment Form'!$C728=\"Enroll\",'Enrollment Form'!$AP728<>\"\"),\"Y\",\"N\")))","v":""},{"$f":"IF($B721=\"N\",\"\",IF(OR('Enrollment Form'!$B728<>\"Subscriber\",'Enrollment Form'!$C728=\"ROC\"),\"-\",IF(AND('Enrollment Form'!$B728=\"Subscriber\",'Enrollment Form'!$C728=\"Enroll\",'Enrollment Form'!$AQ728<>\"\"),\"Y\",\"N\")))","v":""},{"$f":"IF($B721=\"N\",\"\",IF(OR('Enrollment Form'!$B728<>\"Subscriber\",'Enrollment Form'!$C728=\"ROC\"),\"-\",IF(AND('Enrollment Form'!$B728=\"Subscriber\",'Enrollment Form'!$C728=\"Enroll\",'Enrollment Form'!$AS728<>\"\"),\"Y\",\"N\")))","v":""},{"$f":"IF($B721=\"N\",\"\",IF($Q721=\"-\",\"-\",IF(AND($Q721=\"Y\",'Enrollment Form'!$AS728=\"No\"),\"-\",IF(AND($Q721=\"Y\",'Enrollment Form'!$AS728=\"Yes\",'Enrollment Form'!$AT728<>\"\"),\"Y\",\"N\"))))","v":""},{"$f":"IF($B721=\"N\",\"\",IF(OR('Enrollment Form'!$B728<>\"Subscriber\",'Enrollment Form'!$C728=\"ROC\"),\"-\",IF(AND('Enrollment Form'!$B728=\"Subscriber\",'Enrollment Form'!$C728=\"Enroll\",'Enrollment Form'!$CV728<>\"\"),\"Y\",\"N\")))","v":""},{"$f":"IF($B721=\"N\",\"\",IF($S721=\"-\",\"-\",IF(AND($S721=\"Y\",'Enrollment Form'!$CV728=\"No\"),\"-\",IF(AND($S721=\"Y\",'Enrollment Form'!$CV728=\"Yes\",'Enrollment Form'!$CW728<>\"\"),\"Y\",\"N\"))))","v":""},{"$f":"IF(OR('Enrollment Form'!$AY728=\"Yes\",'Enrollment Form'!$AY728=\"\"),\"-\",IF(OR(AND('Enrollment Form'!$AY728=\"No\",ISERROR(FIND(\"HMO\",VLOOKUP('Enrollment Form'!G728,'Enrollment Form'!H$11:J$1000,3,FALSE),1))=FALSE,COUNTA('Enrollment Form'!$AZ728:$BC728)=4),AND('Enrollment Form'!$AY728=\"No\",ISERROR(FIND(\"HMO\",VLOOKUP('Enrollment Form'!G728,'Enrollment Form'!H$11:J$1000,3,FALSE),1))=FALSE,COUNTA('Enrollment Form'!$BT728:$BW728)=4)),\"Y\",\"N\"))","v":"-"},{"$f":"IF($B721=\"N\",\"\",IF('Enrollment Form'!$B728=\"Subscriber\",\"-\",IF(COUNTA('Enrollment Form'!$BL728,'Enrollment Form'!$BN728)=2,\"Y\",\"N\")))","v":""},{"$f":"IF($B721=\"N\",\"\",IF(OR('Enrollment Form'!$AX728=\"\",'Enrollment Form'!$AX728=\"No\"),\"-\",IF(AND('Enrollment Form'!$AX728=\"Yes\",COUNTA('Enrollment Form'!$CR728)=1),\"Y\",\"N\")))","v":""},{"$f":"IF(OR('Enrollment Form'!$CR728=\"\",'Enrollment Form'!$CR728=\"No\"),\"-\",IF(COUNTA('Enrollment Form'!$CT728:$CU728)=2,\"Y\",\"N\"))","v":"-"},{"$f":"IF($B721=\"N\",\"\",IF(COUNTIF('Enrollment Form'!$DG728:$DP728,\"Other\")=COUNTA('Enrollment Form'!$DK728,'Enrollment Form'!$DH728,'Enrollment Form'!$DN728,'Enrollment Form'!$DQ728),\"Y\",\"N\"))","v":""},{"$f":"IF($B721=\"N\",\"\",IF(OR('Enrollment Form'!B728<>\"Subscriber\",'Enrollment Form'!C728=\"ROC\",COUNTIF('Enrollment Form'!AV728:AW728,\"Yes\")>=1),\"-\",IF(AND('Enrollment Form'!C728=\"Enroll\",COUNTIF('Enrollment Form'!AV728:AW728,\"No\")=2,'Enrollment Form'!AX728=\"\"),\"N\",\"Y\")))","v":""},{"$f":"IF(OR(B721=\"N\",'Enrollment Form'!B728<>\"Subscriber\",'Enrollment Form'!C728=\"ROC\",'Enrollment Form'!O728<>\"Multiple of Salary\"),\"-\",IF(COUNTA('Enrollment Form'!T728:U728)<2,\"N\",\"Y\"))","v":"-"},{"$f":"IF(B721=\"N\",\"\",IF(OR('Enrollment Form'!C728=\"ROC\",'Enrollment Form'!B728<>\"Subscriber\",'Enrollment Form'!O728=\"Waive\",'Enrollment Form'!O728=\"\"),\"-\",IF('Enrollment Form'!P728=\"\",\"N\",\"Y\")))","v":""},{"$f":"IF($B721=\"N\",\"\",IF(AND('Enrollment Form'!$C728=\"ROC\",'Enrollment Form'!$DR728<>\"\"),\"Y\",IF(AND('Enrollment Form'!$C728=\"ROC\",'Enrollment Form'!$DR728=\"\"),\"N\",IF(AND('Enrollment Form'!$C728=\"Enroll\",'Enrollment Form'!$B728=\"Subscriber\",'Enrollment Form'!$CX728=\"No\",'Enrollment Form'!$DR728=\"\"),\"N\",IF(AND('Enrollment Form'!$C728=\"Enroll\",'Enrollment Form'!$B728=\"Subscriber\",'Enrollment Form'!$CX728=\"Yes\"),\"-\",\"Y\")))))","v":""},{"$f":"IF($B721=\"N\",\"\",IF(AND('Enrollment Form'!$C728=\"ROC\",'Enrollment Form'!$DS728<>\"\"),\"Y\",IF(AND('Enrollment Form'!$C728=\"ROC\",'Enrollment Form'!$DS728=\"\"),\"N\",IF(AND('Enrollment Form'!$C728=\"Enroll\",'Enrollment Form'!$B728=\"Subscriber\",'Enrollment Form'!$CX728=\"No\",'Enrollment Form'!$DS728=\"\"),\"N\",IF(AND('Enrollment Form'!$C728=\"Enroll\",'Enrollment Form'!$B728=\"Subscriber\",'Enrollment Form'!$CX728=\"Yes\"),\"-\",\"Y\")))))","v":""},{"$f":"IF('Enrollment Form'!AH728=\"\",\"\",IF(ISERROR(SEARCH(\".\",'Enrollment Form'!AH728,SEARCH(\"@\",'Enrollment Form'!AH728))),\"N\",\"Y\"))","v":""},{"$f":"IF(OR($B721=\"N\",'Enrollment Form'!$G728=\"\"),\"\",IF('Enrollment Form'!$B728<>\"Subscriber\",\"-\",IF(COUNTIF('Enrollment Form'!$AV728:$AW728,\"Yes\")=2,\"N\",\"Y\")))","v":""},{"$f":"IF(OR('Enrollment Form'!$CJ728=\"\",'Enrollment Form'!$CJ728=\"No\"),\"-\",IF(AND('Enrollment Form'!$CJ728=\"Yes\",'Enrollment Form'!$CK728=\"\"),\"N\",\"Y\"))","v":"-"},{"$f":"IF(OR('Enrollment Form'!$CL728=\"\",'Enrollment Form'!$CL728=\"No\"),\"-\",IF(AND('Enrollment Form'!$CL728=\"Yes\",'Enrollment Form'!$CM728=\"\"),\"N\",\"Y\"))","v":"-"},{"$f":"IF(OR('Enrollment Form'!$CN728=\"\",'Enrollment Form'!$CN728=\"No\"),\"-\",IF(AND('Enrollment Form'!$CN728=\"Yes\",'Enrollment Form'!$CO728=\"\"),\"N\",\"Y\"))","v":"-"},{"$f":"IF(OR('Enrollment Form'!$CN728=\"\",'Enrollment Form'!$CN728=\"No\"),\"-\",IF(AND('Enrollment Form'!$CN728=\"Yes\",'Enrollment Form'!$CP728=\"\"),\"N\",\"Y\"))","v":"-"},{"$f":"IF('Enrollment Form'!B728<>\"Subscriber\",\"-\",IF(AND('Enrollment Form'!B728=\"Subscriber\",'Enrollment Form'!C728=\"Enroll\",'Enrollment Form'!AA728=\"\"),\"N\",\"Y\"))","v":"-"},{"$f":"IF(OR('Enrollment Form'!B728=\"Subscriber\",'Enrollment Form'!B728=\"\"),\"-\",IF('Enrollment Form'!BP728=\"\",\"N\",\"Y\"))","v":"-"},{"$f":"IF('Enrollment Form'!B728<>\"Subscriber\",\"-\",IF(AND('Enrollment Form'!B728=\"Subscriber\",'Enrollment Form'!G728=\"\"),\"N\",\"Y\"))","v":"-"},{"$f":"IF('Enrollment Form'!A728=\"\",\"\",IF('Enrollment Form'!B728=\"Subscriber\",\"-\",IF(AND('Enrollment Form'!B728<>\"Subscriber\",'Enrollment Form'!G728='Enrollment Form'!H728),\"N\",\"Y\")))","v":""},0]
[729,{"$f":"IF('Enrollment Form'!$A729<>\"\",\"Y\",\"N\")","v":"N"},{"$f":"IF(AND('Enrollment Form'!$B729=\"\",'Enrollment Form'!$C729<>\"\"),\"N\",IF($B722=\"N\",\"\",\"Y\"))","v":""},{"$f":"IF(OR($B722=\"N\",'Enrollment Form'!G729=\"\"),\"\",IF('Enrollment Form'!$B729<>\"Subscriber\",\"\",IF('Enrollment Form'!$G729='Enrollment Form'!$H729,\"Y\",\"N\")))","v":""},{"$f":"IF($B722=\"N\",\"\",IF(AND(COUNTIFS('Enrollment Form'!$H$11:$H$1000,'Enrollment Form'!$H729,'Enrollment Form'!$B$11:$B$1000,'Enrollment Form'!$B729)>1,'Enrollment Form'!$H729<>\"\"),\"N\",\"Y\"))","v":""},{"$f":"IF($B722=\"N\",\"\",IF(LEN('Enrollment Form'!$Y729)=0,\"\",IF(LEN('Enrollment Form'!$Y729)<>5,\"N\",\"Y\")))","v":""},{"$f":"IF($B722=\"N\",\"\",IF(LEN('Enrollment Form'!$AD729=0),\"\",IF(LEN('Enrollment Form'!$AD729)<>5,\"N\",\"Y\")))","v":""},{"$f":"IF($B722=\"N\",\"\",IF(LEN('Enrollment Form'!$BS729=0),\"\",IF(LEN('Enrollment Form'!$BS729)<>5,\"N\",\"Y\")))","v":""},{"$f":"IF($B722=\"N\",\"\",IF(LEN('Enrollment Form'!$AE729)=0,\"\",IF(LEN('Enrollment Form'!$AE729)<>10,\"N\",\"Y\")))","v":""},{"$f":"IF($B722=\"N\",\"\",IF(LEN('Enrollment Form'!$AF729)=0,\"\",IF(LEN('Enrollment Form'!$AF729)<>10,\"N\",\"Y\")))","v":""},{"$f":"IF('Enrollment Form'!$O729<>\"Graded\",\"-\",IF(AND('Enrollment Form'!$O729=\"Graded\",'Enrollment Form'!$AR729<>\"\"),\"Y\",\"N\"))","v":"-"},{"$f":"IF($B722=\"N\",\"\",IF(OR('Enrollment Form'!$B729<>\"Subscriber\",'Enrollment Form'!$C729=\"ROC\"),\"-\",IF(AND('Enrollment Form'!$B729=\"Subscriber\",'Enrollment Form'!$C729=\"Enroll\",'Enrollment Form'!$AJ729<>\"\"),\"Y\",\"N\")))","v":""},{"$f":"IF($B722=\"N\",\"\",IF(OR('Enrollment Form'!$B729<>\"Subscriber\",'Enrollment Form'!$C729=\"ROC\"),\"-\",IF(AND('Enrollment Form'!$B729=\"Subscriber\",'Enrollment Form'!$C729=\"Enroll\",'Enrollment Form'!$AK729<>\"\"),\"Y\",\"N\")))","v":""},{"$f":"IF($B722=\"N\",\"\",IF(OR('Enrollment Form'!$B729<>\"Subscriber\",'Enrollment Form'!$C729=\"ROC\"),\"-\",IF(AND('Enrollment Form'!$B729=\"Subscriber\",'Enrollment Form'!$C729=\"Enroll\",'Enrollment Form'!$AL729<>\"\"),\"Y\",\"N\")))","v":""},{"$f":"IF($B722=\"N\",\"\",IF(OR('Enrollment Form'!$B729<>\"Subscriber\",'Enrollment Form'!$C729=\"ROC\"),\"-\",IF(AND('Enrollment Form'!$B729=\"Subscriber\",'Enrollment Form'!$C729=\"Enroll\",'Enrollment Form'!$AP729<>\"\"),\"Y\",\"N\")))","v":""},{"$f":"IF($B722=\"N\",\"\",IF(OR('Enrollment Form'!$B729<>\"Subscriber\",'Enrollment Form'!$C729=\"ROC\"),\"-\",IF(AND('Enrollment Form'!$B729=\"Subscriber\",'Enrollment Form'!$C729=\"Enroll\",'Enrollment Form'!$AQ729<>\"\"),\"Y\",\"N\")))","v":""},{"$f":"IF($B722=\"N\",\"\",IF(OR('Enrollment Form'!$B729<>\"Subscriber\",'Enrollment Form'!$C729=\"ROC\"),\"-\",IF(AND('Enrollment Form'!$B729=\"Subscriber\",'Enrollment Form'!$C729=\"Enroll\",'Enrollment Form'!$AS729<>\"\"),\"Y\",\"N\")))","v":""},{"$f":"IF($B722=\"N\",\"\",IF($Q722=\"-\",\"-\",IF(AND($Q722=\"Y\",'Enrollment Form'!$AS729=\"No\"),\"-\",IF(AND($Q722=\"Y\",'Enrollment Form'!$AS729=\"Yes\",'Enrollment Form'!$AT729<>\"\"),\"Y\",\"N\"))))","v":""},{"$f":"IF($B722=\"N\",\"\",IF(OR('Enrollment Form'!$B729<>\"Subscriber\",'Enrollment Form'!$C729=\"ROC\"),\"-\",IF(AND('Enrollment Form'!$B729=\"Subscriber\",'Enrollment Form'!$C729=\"Enroll\",'Enrollment Form'!$CV729<>\"\"),\"Y\",\"N\")))","v":""},{"$f":"IF($B722=\"N\",\"\",IF($S722=\"-\",\"-\",IF(AND($S722=\"Y\",'Enrollment Form'!$CV729=\"No\"),\"-\",IF(AND($S722=\"Y\",'Enrollment Form'!$CV729=\"Yes\",'Enrollment Form'!$CW729<>\"\"),\"Y\",\"N\"))))","v":""},{"$f":"IF(OR('Enrollment Form'!$AY729=\"Yes\",'Enrollment Form'!$AY729=\"\"),\"-\",IF(OR(AND('Enrollment Form'!$AY729=\"No\",ISERROR(FIND(\"HMO\",VLOOKUP('Enrollment Form'!G729,'Enrollment Form'!H$11:J$1000,3,FALSE),1))=FALSE,COUNTA('Enrollment Form'!$AZ729:$BC729)=4),AND('Enrollment Form'!$AY729=\"No\",ISERROR(FIND(\"HMO\",VLOOKUP('Enrollment Form'!G729,'Enrollment Form'!H$11:J$1000,3,FALSE),1))=FALSE,COUNTA('Enrollment Form'!$BT729:$BW729)=4)),\"Y\",\"N\"))","v":"-"},{"$f":"IF($B722=\"N\",\"\",IF('Enrollment Form'!$B729=\"Subscriber\",\"-\",IF(COUNTA('Enrollment Form'!$BL729,'Enrollment Form'!$BN729)=2,\"Y\",\"N\")))","v":""},{"$f":"IF($B722=\"N\",\"\",IF(OR('Enrollment Form'!$AX729=\"\",'Enrollment Form'!$AX729=\"No\"),\"-\",IF(AND('Enrollment Form'!$AX729=\"Yes\",COUNTA('Enrollment Form'!$CR729)=1),\"Y\",\"N\")))","v":""},{"$f":"IF(OR('Enrollment Form'!$CR729=\"\",'Enrollment Form'!$CR729=\"No\"),\"-\",IF(COUNTA('Enrollment Form'!$CT729:$CU729)=2,\"Y\",\"N\"))","v":"-"},{"$f":"IF($B722=\"N\",\"\",IF(COUNTIF('Enrollment Form'!$DG729:$DP729,\"Other\")=COUNTA('Enrollment Form'!$DK729,'Enrollment Form'!$DH729,'Enrollment Form'!$DN729,'Enrollment Form'!$DQ729),\"Y\",\"N\"))","v":""},{"$f":"IF($B722=\"N\",\"\",IF(OR('Enrollment Form'!B729<>\"Subscriber\",'Enrollment Form'!C729=\"ROC\",COUNTIF('Enrollment Form'!AV729:AW729,\"Yes\")>=1),\"-\",IF(AND('Enrollment Form'!C729=\"Enroll\",COUNTIF('Enrollment Form'!AV729:AW729,\"No\")=2,'Enrollment Form'!AX729=\"\"),\"N\",\"Y\")))","v":""},{"$f":"IF(OR(B722=\"N\",'Enrollment Form'!B729<>\"Subscriber\",'Enrollment Form'!C729=\"ROC\",'Enrollment Form'!O729<>\"Multiple of Salary\"),\"-\",IF(COUNTA('Enrollment Form'!T729:U729)<2,\"N\",\"Y\"))","v":"-"},{"$f":"IF(B722=\"N\",\"\",IF(OR('Enrollment Form'!C729=\"ROC\",'Enrollment Form'!B729<>\"Subscriber\",'Enrollment Form'!O729=\"Waive\",'Enrollment Form'!O729=\"\"),\"-\",IF('Enrollment Form'!P729=\"\",\"N\",\"Y\")))","v":""},{"$f":"IF($B722=\"N\",\"\",IF(AND('Enrollment Form'!$C729=\"ROC\",'Enrollment Form'!$DR729<>\"\"),\"Y\",IF(AND('Enrollment Form'!$C729=\"ROC\",'Enrollment Form'!$DR729=\"\"),\"N\",IF(AND('Enrollment Form'!$C729=\"Enroll\",'Enrollment Form'!$B729=\"Subscriber\",'Enrollment Form'!$CX729=\"No\",'Enrollment Form'!$DR729=\"\"),\"N\",IF(AND('Enrollment Form'!$C729=\"Enroll\",'Enrollment Form'!$B729=\"Subscriber\",'Enrollment Form'!$CX729=\"Yes\"),\"-\",\"Y\")))))","v":""},{"$f":"IF($B722=\"N\",\"\",IF(AND('Enrollment Form'!$C729=\"ROC\",'Enrollment Form'!$DS729<>\"\"),\"Y\",IF(AND('Enrollment Form'!$C729=\"ROC\",'Enrollment Form'!$DS729=\"\"),\"N\",IF(AND('Enrollment Form'!$C729=\"Enroll\",'Enrollment Form'!$B729=\"Subscriber\",'Enrollment Form'!$CX729=\"No\",'Enrollment Form'!$DS729=\"\"),\"N\",IF(AND('Enrollment Form'!$C729=\"Enroll\",'Enrollment Form'!$B729=\"Subscriber\",'Enrollment Form'!$CX729=\"Yes\"),\"-\",\"Y\")))))","v":""},{"$f":"IF('Enrollment Form'!AH729=\"\",\"\",IF(ISERROR(SEARCH(\".\",'Enrollment Form'!AH729,SEARCH(\"@\",'Enrollment Form'!AH729))),\"N\",\"Y\"))","v":""},{"$f":"IF(OR($B722=\"N\",'Enrollment Form'!$G729=\"\"),\"\",IF('Enrollment Form'!$B729<>\"Subscriber\",\"-\",IF(COUNTIF('Enrollment Form'!$AV729:$AW729,\"Yes\")=2,\"N\",\"Y\")))","v":""},{"$f":"IF(OR('Enrollment Form'!$CJ729=\"\",'Enrollment Form'!$CJ729=\"No\"),\"-\",IF(AND('Enrollment Form'!$CJ729=\"Yes\",'Enrollment Form'!$CK729=\"\"),\"N\",\"Y\"))","v":"-"},{"$f":"IF(OR('Enrollment Form'!$CL729=\"\",'Enrollment Form'!$CL729=\"No\"),\"-\",IF(AND('Enrollment Form'!$CL729=\"Yes\",'Enrollment Form'!$CM729=\"\"),\"N\",\"Y\"))","v":"-"},{"$f":"IF(OR('Enrollment Form'!$CN729=\"\",'Enrollment Form'!$CN729=\"No\"),\"-\",IF(AND('Enrollment Form'!$CN729=\"Yes\",'Enrollment Form'!$CO729=\"\"),\"N\",\"Y\"))","v":"-"},{"$f":"IF(OR('Enrollment Form'!$CN729=\"\",'Enrollment Form'!$CN729=\"No\"),\"-\",IF(AND('Enrollment Form'!$CN729=\"Yes\",'Enrollment Form'!$CP729=\"\"),\"N\",\"Y\"))","v":"-"},{"$f":"IF('Enrollment Form'!B729<>\"Subscriber\",\"-\",IF(AND('Enrollment Form'!B729=\"Subscriber\",'Enrollment Form'!C729=\"Enroll\",'Enrollment Form'!AA729=\"\"),\"N\",\"Y\"))","v":"-"},{"$f":"IF(OR('Enrollment Form'!B729=\"Subscriber\",'Enrollment Form'!B729=\"\"),\"-\",IF('Enrollment Form'!BP729=\"\",\"N\",\"Y\"))","v":"-"},{"$f":"IF('Enrollment Form'!B729<>\"Subscriber\",\"-\",IF(AND('Enrollment Form'!B729=\"Subscriber\",'Enrollment Form'!G729=\"\"),\"N\",\"Y\"))","v":"-"},{"$f":"IF('Enrollment Form'!A729=\"\",\"\",IF('Enrollment Form'!B729=\"Subscriber\",\"-\",IF(AND('Enrollment Form'!B729<>\"Subscriber\",'Enrollment Form'!G729='Enrollment Form'!H729),\"N\",\"Y\")))","v":""},0]
[730,{"$f":"IF('Enrollment Form'!$A730<>\"\",\"Y\",\"N\")","v":"N"},{"$f":"IF(AND('Enrollment Form'!$B730=\"\",'Enrollment Form'!$C730<>\"\"),\"N\",IF($B723=\"N\",\"\",\"Y\"))","v":""},{"$f":"IF(OR($B723=\"N\",'Enrollment Form'!G730=\"\"),\"\",IF('Enrollment Form'!$B730<>\"Subscriber\",\"\",IF('Enrollment Form'!$G730='Enrollment Form'!$H730,\"Y\",\"N\")))","v":""},{"$f":"IF($B723=\"N\",\"\",IF(AND(COUNTIFS('Enrollment Form'!$H$11:$H$1000,'Enrollment Form'!$H730,'Enrollment Form'!$B$11:$B$1000,'Enrollment Form'!$B730)>1,'Enrollment Form'!$H730<>\"\"),\"N\",\"Y\"))","v":""},{"$f":"IF($B723=\"N\",\"\",IF(LEN('Enrollment Form'!$Y730)=0,\"\",IF(LEN('Enrollment Form'!$Y730)<>5,\"N\",\"Y\")))","v":""},{"$f":"IF($B723=\"N\",\"\",IF(LEN('Enrollment Form'!$AD730=0),\"\",IF(LEN('Enrollment Form'!$AD730)<>5,\"N\",\"Y\")))","v":""},{"$f":"IF($B723=\"N\",\"\",IF(LEN('Enrollment Form'!$BS730=0),\"\",IF(LEN('Enrollment Form'!$BS730)<>5,\"N\",\"Y\")))","v":""},{"$f":"IF($B723=\"N\",\"\",IF(LEN('Enrollment Form'!$AE730)=0,\"\",IF(LEN('Enrollment Form'!$AE730)<>10,\"N\",\"Y\")))","v":""},{"$f":"IF($B723=\"N\",\"\",IF(LEN('Enrollment Form'!$AF730)=0,\"\",IF(LEN('Enrollment Form'!$AF730)<>10,\"N\",\"Y\")))","v":""},{"$f":"IF('Enrollment Form'!$O730<>\"Graded\",\"-\",IF(AND('Enrollment Form'!$O730=\"Graded\",'Enrollment Form'!$AR730<>\"\"),\"Y\",\"N\"))","v":"-"},{"$f":"IF($B723=\"N\",\"\",IF(OR('Enrollment Form'!$B730<>\"Subscriber\",'Enrollment Form'!$C730=\"ROC\"),\"-\",IF(AND('Enrollment Form'!$B730=\"Subscriber\",'Enrollment Form'!$C730=\"Enroll\",'Enrollment Form'!$AJ730<>\"\"),\"Y\",\"N\")))","v":""},{"$f":"IF($B723=\"N\",\"\",IF(OR('Enrollment Form'!$B730<>\"Subscriber\",'Enrollment Form'!$C730=\"ROC\"),\"-\",IF(AND('Enrollment Form'!$B730=\"Subscriber\",'Enrollment Form'!$C730=\"Enroll\",'Enrollment Form'!$AK730<>\"\"),\"Y\",\"N\")))","v":""},{"$f":"IF($B723=\"N\",\"\",IF(OR('Enrollment Form'!$B730<>\"Subscriber\",'Enrollment Form'!$C730=\"ROC\"),\"-\",IF(AND('Enrollment Form'!$B730=\"Subscriber\",'Enrollment Form'!$C730=\"Enroll\",'Enrollment Form'!$AL730<>\"\"),\"Y\",\"N\")))","v":""},{"$f":"IF($B723=\"N\",\"\",IF(OR('Enrollment Form'!$B730<>\"Subscriber\",'Enrollment Form'!$C730=\"ROC\"),\"-\",IF(AND('Enrollment Form'!$B730=\"Subscriber\",'Enrollment Form'!$C730=\"Enroll\",'Enrollment Form'!$AP730<>\"\"),\"Y\",\"N\")))","v":""},{"$f":"IF($B723=\"N\",\"\",IF(OR('Enrollment Form'!$B730<>\"Subscriber\",'Enrollment Form'!$C730=\"ROC\"),\"-\",IF(AND('Enrollment Form'!$B730=\"Subscriber\",'Enrollment Form'!$C730=\"Enroll\",'Enrollment Form'!$AQ730<>\"\"),\"Y\",\"N\")))","v":""},{"$f":"IF($B723=\"N\",\"\",IF(OR('Enrollment Form'!$B730<>\"Subscriber\",'Enrollment Form'!$C730=\"ROC\"),\"-\",IF(AND('Enrollment Form'!$B730=\"Subscriber\",'Enrollment Form'!$C730=\"Enroll\",'Enrollment Form'!$AS730<>\"\"),\"Y\",\"N\")))","v":""},{"$f":"IF($B723=\"N\",\"\",IF($Q723=\"-\",\"-\",IF(AND($Q723=\"Y\",'Enrollment Form'!$AS730=\"No\"),\"-\",IF(AND($Q723=\"Y\",'Enrollment Form'!$AS730=\"Yes\",'Enrollment Form'!$AT730<>\"\"),\"Y\",\"N\"))))","v":""},{"$f":"IF($B723=\"N\",\"\",IF(OR('Enrollment Form'!$B730<>\"Subscriber\",'Enrollment Form'!$C730=\"ROC\"),\"-\",IF(AND('Enrollment Form'!$B730=\"Subscriber\",'Enrollment Form'!$C730=\"Enroll\",'Enrollment Form'!$CV730<>\"\"),\"Y\",\"N\")))","v":""},{"$f":"IF($B723=\"N\",\"\",IF($S723=\"-\",\"-\",IF(AND($S723=\"Y\",'Enrollment Form'!$CV730=\"No\"),\"-\",IF(AND($S723=\"Y\",'Enrollment Form'!$CV730=\"Yes\",'Enrollment Form'!$CW730<>\"\"),\"Y\",\"N\"))))","v":""},{"$f":"IF(OR('Enrollment Form'!$AY730=\"Yes\",'Enrollment Form'!$AY730=\"\"),\"-\",IF(OR(AND('Enrollment Form'!$AY730=\"No\",ISERROR(FIND(\"HMO\",VLOOKUP('Enrollment Form'!G730,'Enrollment Form'!H$11:J$1000,3,FALSE),1))=FALSE,COUNTA('Enrollment Form'!$AZ730:$BC730)=4),AND('Enrollment Form'!$AY730=\"No\",ISERROR(FIND(\"HMO\",VLOOKUP('Enrollment Form'!G730,'Enrollment Form'!H$11:J$1000,3,FALSE),1))=FALSE,COUNTA('Enrollment Form'!$BT730:$BW730)=4)),\"Y\",\"N\"))","v":"-"},{"$f":"IF($B723=\"N\",\"\",IF('Enrollment Form'!$B730=\"Subscriber\",\"-\",IF(COUNTA('Enrollment Form'!$BL730,'Enrollment Form'!$BN730)=2,\"Y\",\"N\")))","v":""},{"$f":"IF($B723=\"N\",\"\",IF(OR('Enrollment Form'!$AX730=\"\",'Enrollment Form'!$AX730=\"No\"),\"-\",IF(AND('Enrollment Form'!$AX730=\"Yes\",COUNTA('Enrollment Form'!$CR730)=1),\"Y\",\"N\")))","v":""},{"$f":"IF(OR('Enrollment Form'!$CR730=\"\",'Enrollment Form'!$CR730=\"No\"),\"-\",IF(COUNTA('Enrollment Form'!$CT730:$CU730)=2,\"Y\",\"N\"))","v":"-"},{"$f":"IF($B723=\"N\",\"\",IF(COUNTIF('Enrollment Form'!$DG730:$DP730,\"Other\")=COUNTA('Enrollment Form'!$DK730,'Enrollment Form'!$DH730,'Enrollment Form'!$DN730,'Enrollment Form'!$DQ730),\"Y\",\"N\"))","v":""},{"$f":"IF($B723=\"N\",\"\",IF(OR('Enrollment Form'!B730<>\"Subscriber\",'Enrollment Form'!C730=\"ROC\",COUNTIF('Enrollment Form'!AV730:AW730,\"Yes\")>=1),\"-\",IF(AND('Enrollment Form'!C730=\"Enroll\",COUNTIF('Enrollment Form'!AV730:AW730,\"No\")=2,'Enrollment Form'!AX730=\"\"),\"N\",\"Y\")))","v":""},{"$f":"IF(OR(B723=\"N\",'Enrollment Form'!B730<>\"Subscriber\",'Enrollment Form'!C730=\"ROC\",'Enrollment Form'!O730<>\"Multiple of Salary\"),\"-\",IF(COUNTA('Enrollment Form'!T730:U730)<2,\"N\",\"Y\"))","v":"-"},{"$f":"IF(B723=\"N\",\"\",IF(OR('Enrollment Form'!C730=\"ROC\",'Enrollment Form'!B730<>\"Subscriber\",'Enrollment Form'!O730=\"Waive\",'Enrollment Form'!O730=\"\"),\"-\",IF('Enrollment Form'!P730=\"\",\"N\",\"Y\")))","v":""},{"$f":"IF($B723=\"N\",\"\",IF(AND('Enrollment Form'!$C730=\"ROC\",'Enrollment Form'!$DR730<>\"\"),\"Y\",IF(AND('Enrollment Form'!$C730=\"ROC\",'Enrollment Form'!$DR730=\"\"),\"N\",IF(AND('Enrollment Form'!$C730=\"Enroll\",'Enrollment Form'!$B730=\"Subscriber\",'Enrollment Form'!$CX730=\"No\",'Enrollment Form'!$DR730=\"\"),\"N\",IF(AND('Enrollment Form'!$C730=\"Enroll\",'Enrollment Form'!$B730=\"Subscriber\",'Enrollment Form'!$CX730=\"Yes\"),\"-\",\"Y\")))))","v":""},{"$f":"IF($B723=\"N\",\"\",IF(AND('Enrollment Form'!$C730=\"ROC\",'Enrollment Form'!$DS730<>\"\"),\"Y\",IF(AND('Enrollment Form'!$C730=\"ROC\",'Enrollment Form'!$DS730=\"\"),\"N\",IF(AND('Enrollment Form'!$C730=\"Enroll\",'Enrollment Form'!$B730=\"Subscriber\",'Enrollment Form'!$CX730=\"No\",'Enrollment Form'!$DS730=\"\"),\"N\",IF(AND('Enrollment Form'!$C730=\"Enroll\",'Enrollment Form'!$B730=\"Subscriber\",'Enrollment Form'!$CX730=\"Yes\"),\"-\",\"Y\")))))","v":""},{"$f":"IF('Enrollment Form'!AH730=\"\",\"\",IF(ISERROR(SEARCH(\".\",'Enrollment Form'!AH730,SEARCH(\"@\",'Enrollment Form'!AH730))),\"N\",\"Y\"))","v":""},{"$f":"IF(OR($B723=\"N\",'Enrollment Form'!$G730=\"\"),\"\",IF('Enrollment Form'!$B730<>\"Subscriber\",\"-\",IF(COUNTIF('Enrollment Form'!$AV730:$AW730,\"Yes\")=2,\"N\",\"Y\")))","v":""},{"$f":"IF(OR('Enrollment Form'!$CJ730=\"\",'Enrollment Form'!$CJ730=\"No\"),\"-\",IF(AND('Enrollment Form'!$CJ730=\"Yes\",'Enrollment Form'!$CK730=\"\"),\"N\",\"Y\"))","v":"-"},{"$f":"IF(OR('Enrollment Form'!$CL730=\"\",'Enrollment Form'!$CL730=\"No\"),\"-\",IF(AND('Enrollment Form'!$CL730=\"Yes\",'Enrollment Form'!$CM730=\"\"),\"N\",\"Y\"))","v":"-"},{"$f":"IF(OR('Enrollment Form'!$CN730=\"\",'Enrollment Form'!$CN730=\"No\"),\"-\",IF(AND('Enrollment Form'!$CN730=\"Yes\",'Enrollment Form'!$CO730=\"\"),\"N\",\"Y\"))","v":"-"},{"$f":"IF(OR('Enrollment Form'!$CN730=\"\",'Enrollment Form'!$CN730=\"No\"),\"-\",IF(AND('Enrollment Form'!$CN730=\"Yes\",'Enrollment Form'!$CP730=\"\"),\"N\",\"Y\"))","v":"-"},{"$f":"IF('Enrollment Form'!B730<>\"Subscriber\",\"-\",IF(AND('Enrollment Form'!B730=\"Subscriber\",'Enrollment Form'!C730=\"Enroll\",'Enrollment Form'!AA730=\"\"),\"N\",\"Y\"))","v":"-"},{"$f":"IF(OR('Enrollment Form'!B730=\"Subscriber\",'Enrollment Form'!B730=\"\"),\"-\",IF('Enrollment Form'!BP730=\"\",\"N\",\"Y\"))","v":"-"},{"$f":"IF('Enrollment Form'!B730<>\"Subscriber\",\"-\",IF(AND('Enrollment Form'!B730=\"Subscriber\",'Enrollment Form'!G730=\"\"),\"N\",\"Y\"))","v":"-"},{"$f":"IF('Enrollment Form'!A730=\"\",\"\",IF('Enrollment Form'!B730=\"Subscriber\",\"-\",IF(AND('Enrollment Form'!B730<>\"Subscriber\",'Enrollment Form'!G730='Enrollment Form'!H730),\"N\",\"Y\")))","v":""},0]
[731,{"$f":"IF('Enrollment Form'!$A731<>\"\",\"Y\",\"N\")","v":"N"},{"$f":"IF(AND('Enrollment Form'!$B731=\"\",'Enrollment Form'!$C731<>\"\"),\"N\",IF($B724=\"N\",\"\",\"Y\"))","v":""},{"$f":"IF(OR($B724=\"N\",'Enrollment Form'!G731=\"\"),\"\",IF('Enrollment Form'!$B731<>\"Subscriber\",\"\",IF('Enrollment Form'!$G731='Enrollment Form'!$H731,\"Y\",\"N\")))","v":""},{"$f":"IF($B724=\"N\",\"\",IF(AND(COUNTIFS('Enrollment Form'!$H$11:$H$1000,'Enrollment Form'!$H731,'Enrollment Form'!$B$11:$B$1000,'Enrollment Form'!$B731)>1,'Enrollment Form'!$H731<>\"\"),\"N\",\"Y\"))","v":""},{"$f":"IF($B724=\"N\",\"\",IF(LEN('Enrollment Form'!$Y731)=0,\"\",IF(LEN('Enrollment Form'!$Y731)<>5,\"N\",\"Y\")))","v":""},{"$f":"IF($B724=\"N\",\"\",IF(LEN('Enrollment Form'!$AD731=0),\"\",IF(LEN('Enrollment Form'!$AD731)<>5,\"N\",\"Y\")))","v":""},{"$f":"IF($B724=\"N\",\"\",IF(LEN('Enrollment Form'!$BS731=0),\"\",IF(LEN('Enrollment Form'!$BS731)<>5,\"N\",\"Y\")))","v":""},{"$f":"IF($B724=\"N\",\"\",IF(LEN('Enrollment Form'!$AE731)=0,\"\",IF(LEN('Enrollment Form'!$AE731)<>10,\"N\",\"Y\")))","v":""},{"$f":"IF($B724=\"N\",\"\",IF(LEN('Enrollment Form'!$AF731)=0,\"\",IF(LEN('Enrollment Form'!$AF731)<>10,\"N\",\"Y\")))","v":""},{"$f":"IF('Enrollment Form'!$O731<>\"Graded\",\"-\",IF(AND('Enrollment Form'!$O731=\"Graded\",'Enrollment Form'!$AR731<>\"\"),\"Y\",\"N\"))","v":"-"},{"$f":"IF($B724=\"N\",\"\",IF(OR('Enrollment Form'!$B731<>\"Subscriber\",'Enrollment Form'!$C731=\"ROC\"),\"-\",IF(AND('Enrollment Form'!$B731=\"Subscriber\",'Enrollment Form'!$C731=\"Enroll\",'Enrollment Form'!$AJ731<>\"\"),\"Y\",\"N\")))","v":""},{"$f":"IF($B724=\"N\",\"\",IF(OR('Enrollment Form'!$B731<>\"Subscriber\",'Enrollment Form'!$C731=\"ROC\"),\"-\",IF(AND('Enrollment Form'!$B731=\"Subscriber\",'Enrollment Form'!$C731=\"Enroll\",'Enrollment Form'!$AK731<>\"\"),\"Y\",\"N\")))","v":""},{"$f":"IF($B724=\"N\",\"\",IF(OR('Enrollment Form'!$B731<>\"Subscriber\",'Enrollment Form'!$C731=\"ROC\"),\"-\",IF(AND('Enrollment Form'!$B731=\"Subscriber\",'Enrollment Form'!$C731=\"Enroll\",'Enrollment Form'!$AL731<>\"\"),\"Y\",\"N\")))","v":""},{"$f":"IF($B724=\"N\",\"\",IF(OR('Enrollment Form'!$B731<>\"Subscriber\",'Enrollment Form'!$C731=\"ROC\"),\"-\",IF(AND('Enrollment Form'!$B731=\"Subscriber\",'Enrollment Form'!$C731=\"Enroll\",'Enrollment Form'!$AP731<>\"\"),\"Y\",\"N\")))","v":""},{"$f":"IF($B724=\"N\",\"\",IF(OR('Enrollment Form'!$B731<>\"Subscriber\",'Enrollment Form'!$C731=\"ROC\"),\"-\",IF(AND('Enrollment Form'!$B731=\"Subscriber\",'Enrollment Form'!$C731=\"Enroll\",'Enrollment Form'!$AQ731<>\"\"),\"Y\",\"N\")))","v":""},{"$f":"IF($B724=\"N\",\"\",IF(OR('Enrollment Form'!$B731<>\"Subscriber\",'Enrollment Form'!$C731=\"ROC\"),\"-\",IF(AND('Enrollment Form'!$B731=\"Subscriber\",'Enrollment Form'!$C731=\"Enroll\",'Enrollment Form'!$AS731<>\"\"),\"Y\",\"N\")))","v":""},{"$f":"IF($B724=\"N\",\"\",IF($Q724=\"-\",\"-\",IF(AND($Q724=\"Y\",'Enrollment Form'!$AS731=\"No\"),\"-\",IF(AND($Q724=\"Y\",'Enrollment Form'!$AS731=\"Yes\",'Enrollment Form'!$AT731<>\"\"),\"Y\",\"N\"))))","v":""},{"$f":"IF($B724=\"N\",\"\",IF(OR('Enrollment Form'!$B731<>\"Subscriber\",'Enrollment Form'!$C731=\"ROC\"),\"-\",IF(AND('Enrollment Form'!$B731=\"Subscriber\",'Enrollment Form'!$C731=\"Enroll\",'Enrollment Form'!$CV731<>\"\"),\"Y\",\"N\")))","v":""},{"$f":"IF($B724=\"N\",\"\",IF($S724=\"-\",\"-\",IF(AND($S724=\"Y\",'Enrollment Form'!$CV731=\"No\"),\"-\",IF(AND($S724=\"Y\",'Enrollment Form'!$CV731=\"Yes\",'Enrollment Form'!$CW731<>\"\"),\"Y\",\"N\"))))","v":""},{"$f":"IF(OR('Enrollment Form'!$AY731=\"Yes\",'Enrollment Form'!$AY731=\"\"),\"-\",IF(OR(AND('Enrollment Form'!$AY731=\"No\",ISERROR(FIND(\"HMO\",VLOOKUP('Enrollment Form'!G731,'Enrollment Form'!H$11:J$1000,3,FALSE),1))=FALSE,COUNTA('Enrollment Form'!$AZ731:$BC731)=4),AND('Enrollment Form'!$AY731=\"No\",ISERROR(FIND(\"HMO\",VLOOKUP('Enrollment Form'!G731,'Enrollment Form'!H$11:J$1000,3,FALSE),1))=FALSE,COUNTA('Enrollment Form'!$BT731:$BW731)=4)),\"Y\",\"N\"))","v":"-"},{"$f":"IF($B724=\"N\",\"\",IF('Enrollment Form'!$B731=\"Subscriber\",\"-\",IF(COUNTA('Enrollment Form'!$BL731,'Enrollment Form'!$BN731)=2,\"Y\",\"N\")))","v":""},{"$f":"IF($B724=\"N\",\"\",IF(OR('Enrollment Form'!$AX731=\"\",'Enrollment Form'!$AX731=\"No\"),\"-\",IF(AND('Enrollment Form'!$AX731=\"Yes\",COUNTA('Enrollment Form'!$CR731)=1),\"Y\",\"N\")))","v":""},{"$f":"IF(OR('Enrollment Form'!$CR731=\"\",'Enrollment Form'!$CR731=\"No\"),\"-\",IF(COUNTA('Enrollment Form'!$CT731:$CU731)=2,\"Y\",\"N\"))","v":"-"},{"$f":"IF($B724=\"N\",\"\",IF(COUNTIF('Enrollment Form'!$DG731:$DP731,\"Other\")=COUNTA('Enrollment Form'!$DK731,'Enrollment Form'!$DH731,'Enrollment Form'!$DN731,'Enrollment Form'!$DQ731),\"Y\",\"N\"))","v":""},{"$f":"IF($B724=\"N\",\"\",IF(OR('Enrollment Form'!B731<>\"Subscriber\",'Enrollment Form'!C731=\"ROC\",COUNTIF('Enrollment Form'!AV731:AW731,\"Yes\")>=1),\"-\",IF(AND('Enrollment Form'!C731=\"Enroll\",COUNTIF('Enrollment Form'!AV731:AW731,\"No\")=2,'Enrollment Form'!AX731=\"\"),\"N\",\"Y\")))","v":""},{"$f":"IF(OR(B724=\"N\",'Enrollment Form'!B731<>\"Subscriber\",'Enrollment Form'!C731=\"ROC\",'Enrollment Form'!O731<>\"Multiple of Salary\"),\"-\",IF(COUNTA('Enrollment Form'!T731:U731)<2,\"N\",\"Y\"))","v":"-"},{"$f":"IF(B724=\"N\",\"\",IF(OR('Enrollment Form'!C731=\"ROC\",'Enrollment Form'!B731<>\"Subscriber\",'Enrollment Form'!O731=\"Waive\",'Enrollment Form'!O731=\"\"),\"-\",IF('Enrollment Form'!P731=\"\",\"N\",\"Y\")))","v":""},{"$f":"IF($B724=\"N\",\"\",IF(AND('Enrollment Form'!$C731=\"ROC\",'Enrollment Form'!$DR731<>\"\"),\"Y\",IF(AND('Enrollment Form'!$C731=\"ROC\",'Enrollment Form'!$DR731=\"\"),\"N\",IF(AND('Enrollment Form'!$C731=\"Enroll\",'Enrollment Form'!$B731=\"Subscriber\",'Enrollment Form'!$CX731=\"No\",'Enrollment Form'!$DR731=\"\"),\"N\",IF(AND('Enrollment Form'!$C731=\"Enroll\",'Enrollment Form'!$B731=\"Subscriber\",'Enrollment Form'!$CX731=\"Yes\"),\"-\",\"Y\")))))","v":""},{"$f":"IF($B724=\"N\",\"\",IF(AND('Enrollment Form'!$C731=\"ROC\",'Enrollment Form'!$DS731<>\"\"),\"Y\",IF(AND('Enrollment Form'!$C731=\"ROC\",'Enrollment Form'!$DS731=\"\"),\"N\",IF(AND('Enrollment Form'!$C731=\"Enroll\",'Enrollment Form'!$B731=\"Subscriber\",'Enrollment Form'!$CX731=\"No\",'Enrollment Form'!$DS731=\"\"),\"N\",IF(AND('Enrollment Form'!$C731=\"Enroll\",'Enrollment Form'!$B731=\"Subscriber\",'Enrollment Form'!$CX731=\"Yes\"),\"-\",\"Y\")))))","v":""},{"$f":"IF('Enrollment Form'!AH731=\"\",\"\",IF(ISERROR(SEARCH(\".\",'Enrollment Form'!AH731,SEARCH(\"@\",'Enrollment Form'!AH731))),\"N\",\"Y\"))","v":""},{"$f":"IF(OR($B724=\"N\",'Enrollment Form'!$G731=\"\"),\"\",IF('Enrollment Form'!$B731<>\"Subscriber\",\"-\",IF(COUNTIF('Enrollment Form'!$AV731:$AW731,\"Yes\")=2,\"N\",\"Y\")))","v":""},{"$f":"IF(OR('Enrollment Form'!$CJ731=\"\",'Enrollment Form'!$CJ731=\"No\"),\"-\",IF(AND('Enrollment Form'!$CJ731=\"Yes\",'Enrollment Form'!$CK731=\"\"),\"N\",\"Y\"))","v":"-"},{"$f":"IF(OR('Enrollment Form'!$CL731=\"\",'Enrollment Form'!$CL731=\"No\"),\"-\",IF(AND('Enrollment Form'!$CL731=\"Yes\",'Enrollment Form'!$CM731=\"\"),\"N\",\"Y\"))","v":"-"},{"$f":"IF(OR('Enrollment Form'!$CN731=\"\",'Enrollment Form'!$CN731=\"No\"),\"-\",IF(AND('Enrollment Form'!$CN731=\"Yes\",'Enrollment Form'!$CO731=\"\"),\"N\",\"Y\"))","v":"-"},{"$f":"IF(OR('Enrollment Form'!$CN731=\"\",'Enrollment Form'!$CN731=\"No\"),\"-\",IF(AND('Enrollment Form'!$CN731=\"Yes\",'Enrollment Form'!$CP731=\"\"),\"N\",\"Y\"))","v":"-"},{"$f":"IF('Enrollment Form'!B731<>\"Subscriber\",\"-\",IF(AND('Enrollment Form'!B731=\"Subscriber\",'Enrollment Form'!C731=\"Enroll\",'Enrollment Form'!AA731=\"\"),\"N\",\"Y\"))","v":"-"},{"$f":"IF(OR('Enrollment Form'!B731=\"Subscriber\",'Enrollment Form'!B731=\"\"),\"-\",IF('Enrollment Form'!BP731=\"\",\"N\",\"Y\"))","v":"-"},{"$f":"IF('Enrollment Form'!B731<>\"Subscriber\",\"-\",IF(AND('Enrollment Form'!B731=\"Subscriber\",'Enrollment Form'!G731=\"\"),\"N\",\"Y\"))","v":"-"},{"$f":"IF('Enrollment Form'!A731=\"\",\"\",IF('Enrollment Form'!B731=\"Subscriber\",\"-\",IF(AND('Enrollment Form'!B731<>\"Subscriber\",'Enrollment Form'!G731='Enrollment Form'!H731),\"N\",\"Y\")))","v":""},0]
[732,{"$f":"IF('Enrollment Form'!$A732<>\"\",\"Y\",\"N\")","v":"N"},{"$f":"IF(AND('Enrollment Form'!$B732=\"\",'Enrollment Form'!$C732<>\"\"),\"N\",IF($B725=\"N\",\"\",\"Y\"))","v":""},{"$f":"IF(OR($B725=\"N\",'Enrollment Form'!G732=\"\"),\"\",IF('Enrollment Form'!$B732<>\"Subscriber\",\"\",IF('Enrollment Form'!$G732='Enrollment Form'!$H732,\"Y\",\"N\")))","v":""},{"$f":"IF($B725=\"N\",\"\",IF(AND(COUNTIFS('Enrollment Form'!$H$11:$H$1000,'Enrollment Form'!$H732,'Enrollment Form'!$B$11:$B$1000,'Enrollment Form'!$B732)>1,'Enrollment Form'!$H732<>\"\"),\"N\",\"Y\"))","v":""},{"$f":"IF($B725=\"N\",\"\",IF(LEN('Enrollment Form'!$Y732)=0,\"\",IF(LEN('Enrollment Form'!$Y732)<>5,\"N\",\"Y\")))","v":""},{"$f":"IF($B725=\"N\",\"\",IF(LEN('Enrollment Form'!$AD732=0),\"\",IF(LEN('Enrollment Form'!$AD732)<>5,\"N\",\"Y\")))","v":""},{"$f":"IF($B725=\"N\",\"\",IF(LEN('Enrollment Form'!$BS732=0),\"\",IF(LEN('Enrollment Form'!$BS732)<>5,\"N\",\"Y\")))","v":""},{"$f":"IF($B725=\"N\",\"\",IF(LEN('Enrollment Form'!$AE732)=0,\"\",IF(LEN('Enrollment Form'!$AE732)<>10,\"N\",\"Y\")))","v":""},{"$f":"IF($B725=\"N\",\"\",IF(LEN('Enrollment Form'!$AF732)=0,\"\",IF(LEN('Enrollment Form'!$AF732)<>10,\"N\",\"Y\")))","v":""},{"$f":"IF('Enrollment Form'!$O732<>\"Graded\",\"-\",IF(AND('Enrollment Form'!$O732=\"Graded\",'Enrollment Form'!$AR732<>\"\"),\"Y\",\"N\"))","v":"-"},{"$f":"IF($B725=\"N\",\"\",IF(OR('Enrollment Form'!$B732<>\"Subscriber\",'Enrollment Form'!$C732=\"ROC\"),\"-\",IF(AND('Enrollment Form'!$B732=\"Subscriber\",'Enrollment Form'!$C732=\"Enroll\",'Enrollment Form'!$AJ732<>\"\"),\"Y\",\"N\")))","v":""},{"$f":"IF($B725=\"N\",\"\",IF(OR('Enrollment Form'!$B732<>\"Subscriber\",'Enrollment Form'!$C732=\"ROC\"),\"-\",IF(AND('Enrollment Form'!$B732=\"Subscriber\",'Enrollment Form'!$C732=\"Enroll\",'Enrollment Form'!$AK732<>\"\"),\"Y\",\"N\")))","v":""},{"$f":"IF($B725=\"N\",\"\",IF(OR('Enrollment Form'!$B732<>\"Subscriber\",'Enrollment Form'!$C732=\"ROC\"),\"-\",IF(AND('Enrollment Form'!$B732=\"Subscriber\",'Enrollment Form'!$C732=\"Enroll\",'Enrollment Form'!$AL732<>\"\"),\"Y\",\"N\")))","v":""},{"$f":"IF($B725=\"N\",\"\",IF(OR('Enrollment Form'!$B732<>\"Subscriber\",'Enrollment Form'!$C732=\"ROC\"),\"-\",IF(AND('Enrollment Form'!$B732=\"Subscriber\",'Enrollment Form'!$C732=\"Enroll\",'Enrollment Form'!$AP732<>\"\"),\"Y\",\"N\")))","v":""},{"$f":"IF($B725=\"N\",\"\",IF(OR('Enrollment Form'!$B732<>\"Subscriber\",'Enrollment Form'!$C732=\"ROC\"),\"-\",IF(AND('Enrollment Form'!$B732=\"Subscriber\",'Enrollment Form'!$C732=\"Enroll\",'Enrollment Form'!$AQ732<>\"\"),\"Y\",\"N\")))","v":""},{"$f":"IF($B725=\"N\",\"\",IF(OR('Enrollment Form'!$B732<>\"Subscriber\",'Enrollment Form'!$C732=\"ROC\"),\"-\",IF(AND('Enrollment Form'!$B732=\"Subscriber\",'Enrollment Form'!$C732=\"Enroll\",'Enrollment Form'!$AS732<>\"\"),\"Y\",\"N\")))","v":""},{"$f":"IF($B725=\"N\",\"\",IF($Q725=\"-\",\"-\",IF(AND($Q725=\"Y\",'Enrollment Form'!$AS732=\"No\"),\"-\",IF(AND($Q725=\"Y\",'Enrollment Form'!$AS732=\"Yes\",'Enrollment Form'!$AT732<>\"\"),\"Y\",\"N\"))))","v":""},{"$f":"IF($B725=\"N\",\"\",IF(OR('Enrollment Form'!$B732<>\"Subscriber\",'Enrollment Form'!$C732=\"ROC\"),\"-\",IF(AND('Enrollment Form'!$B732=\"Subscriber\",'Enrollment Form'!$C732=\"Enroll\",'Enrollment Form'!$CV732<>\"\"),\"Y\",\"N\")))","v":""},{"$f":"IF($B725=\"N\",\"\",IF($S725=\"-\",\"-\",IF(AND($S725=\"Y\",'Enrollment Form'!$CV732=\"No\"),\"-\",IF(AND($S725=\"Y\",'Enrollment Form'!$CV732=\"Yes\",'Enrollment Form'!$CW732<>\"\"),\"Y\",\"N\"))))","v":""},{"$f":"IF(OR('Enrollment Form'!$AY732=\"Yes\",'Enrollment Form'!$AY732=\"\"),\"-\",IF(OR(AND('Enrollment Form'!$AY732=\"No\",ISERROR(FIND(\"HMO\",VLOOKUP('Enrollment Form'!G732,'Enrollment Form'!H$11:J$1000,3,FALSE),1))=FALSE,COUNTA('Enrollment Form'!$AZ732:$BC732)=4),AND('Enrollment Form'!$AY732=\"No\",ISERROR(FIND(\"HMO\",VLOOKUP('Enrollment Form'!G732,'Enrollment Form'!H$11:J$1000,3,FALSE),1))=FALSE,COUNTA('Enrollment Form'!$BT732:$BW732)=4)),\"Y\",\"N\"))","v":"-"},{"$f":"IF($B725=\"N\",\"\",IF('Enrollment Form'!$B732=\"Subscriber\",\"-\",IF(COUNTA('Enrollment Form'!$BL732,'Enrollment Form'!$BN732)=2,\"Y\",\"N\")))","v":""},{"$f":"IF($B725=\"N\",\"\",IF(OR('Enrollment Form'!$AX732=\"\",'Enrollment Form'!$AX732=\"No\"),\"-\",IF(AND('Enrollment Form'!$AX732=\"Yes\",COUNTA('Enrollment Form'!$CR732)=1),\"Y\",\"N\")))","v":""},{"$f":"IF(OR('Enrollment Form'!$CR732=\"\",'Enrollment Form'!$CR732=\"No\"),\"-\",IF(COUNTA('Enrollment Form'!$CT732:$CU732)=2,\"Y\",\"N\"))","v":"-"},{"$f":"IF($B725=\"N\",\"\",IF(COUNTIF('Enrollment Form'!$DG732:$DP732,\"Other\")=COUNTA('Enrollment Form'!$DK732,'Enrollment Form'!$DH732,'Enrollment Form'!$DN732,'Enrollment Form'!$DQ732),\"Y\",\"N\"))","v":""},{"$f":"IF($B725=\"N\",\"\",IF(OR('Enrollment Form'!B732<>\"Subscriber\",'Enrollment Form'!C732=\"ROC\",COUNTIF('Enrollment Form'!AV732:AW732,\"Yes\")>=1),\"-\",IF(AND('Enrollment Form'!C732=\"Enroll\",COUNTIF('Enrollment Form'!AV732:AW732,\"No\")=2,'Enrollment Form'!AX732=\"\"),\"N\",\"Y\")))","v":""},{"$f":"IF(OR(B725=\"N\",'Enrollment Form'!B732<>\"Subscriber\",'Enrollment Form'!C732=\"ROC\",'Enrollment Form'!O732<>\"Multiple of Salary\"),\"-\",IF(COUNTA('Enrollment Form'!T732:U732)<2,\"N\",\"Y\"))","v":"-"},{"$f":"IF(B725=\"N\",\"\",IF(OR('Enrollment Form'!C732=\"ROC\",'Enrollment Form'!B732<>\"Subscriber\",'Enrollment Form'!O732=\"Waive\",'Enrollment Form'!O732=\"\"),\"-\",IF('Enrollment Form'!P732=\"\",\"N\",\"Y\")))","v":""},{"$f":"IF($B725=\"N\",\"\",IF(AND('Enrollment Form'!$C732=\"ROC\",'Enrollment Form'!$DR732<>\"\"),\"Y\",IF(AND('Enrollment Form'!$C732=\"ROC\",'Enrollment Form'!$DR732=\"\"),\"N\",IF(AND('Enrollment Form'!$C732=\"Enroll\",'Enrollment Form'!$B732=\"Subscriber\",'Enrollment Form'!$CX732=\"No\",'Enrollment Form'!$DR732=\"\"),\"N\",IF(AND('Enrollment Form'!$C732=\"Enroll\",'Enrollment Form'!$B732=\"Subscriber\",'Enrollment Form'!$CX732=\"Yes\"),\"-\",\"Y\")))))","v":""},{"$f":"IF($B725=\"N\",\"\",IF(AND('Enrollment Form'!$C732=\"ROC\",'Enrollment Form'!$DS732<>\"\"),\"Y\",IF(AND('Enrollment Form'!$C732=\"ROC\",'Enrollment Form'!$DS732=\"\"),\"N\",IF(AND('Enrollment Form'!$C732=\"Enroll\",'Enrollment Form'!$B732=\"Subscriber\",'Enrollment Form'!$CX732=\"No\",'Enrollment Form'!$DS732=\"\"),\"N\",IF(AND('Enrollment Form'!$C732=\"Enroll\",'Enrollment Form'!$B732=\"Subscriber\",'Enrollment Form'!$CX732=\"Yes\"),\"-\",\"Y\")))))","v":""},{"$f":"IF('Enrollment Form'!AH732=\"\",\"\",IF(ISERROR(SEARCH(\".\",'Enrollment Form'!AH732,SEARCH(\"@\",'Enrollment Form'!AH732))),\"N\",\"Y\"))","v":""},{"$f":"IF(OR($B725=\"N\",'Enrollment Form'!$G732=\"\"),\"\",IF('Enrollment Form'!$B732<>\"Subscriber\",\"-\",IF(COUNTIF('Enrollment Form'!$AV732:$AW732,\"Yes\")=2,\"N\",\"Y\")))","v":""},{"$f":"IF(OR('Enrollment Form'!$CJ732=\"\",'Enrollment Form'!$CJ732=\"No\"),\"-\",IF(AND('Enrollment Form'!$CJ732=\"Yes\",'Enrollment Form'!$CK732=\"\"),\"N\",\"Y\"))","v":"-"},{"$f":"IF(OR('Enrollment Form'!$CL732=\"\",'Enrollment Form'!$CL732=\"No\"),\"-\",IF(AND('Enrollment Form'!$CL732=\"Yes\",'Enrollment Form'!$CM732=\"\"),\"N\",\"Y\"))","v":"-"},{"$f":"IF(OR('Enrollment Form'!$CN732=\"\",'Enrollment Form'!$CN732=\"No\"),\"-\",IF(AND('Enrollment Form'!$CN732=\"Yes\",'Enrollment Form'!$CO732=\"\"),\"N\",\"Y\"))","v":"-"},{"$f":"IF(OR('Enrollment Form'!$CN732=\"\",'Enrollment Form'!$CN732=\"No\"),\"-\",IF(AND('Enrollment Form'!$CN732=\"Yes\",'Enrollment Form'!$CP732=\"\"),\"N\",\"Y\"))","v":"-"},{"$f":"IF('Enrollment Form'!B732<>\"Subscriber\",\"-\",IF(AND('Enrollment Form'!B732=\"Subscriber\",'Enrollment Form'!C732=\"Enroll\",'Enrollment Form'!AA732=\"\"),\"N\",\"Y\"))","v":"-"},{"$f":"IF(OR('Enrollment Form'!B732=\"Subscriber\",'Enrollment Form'!B732=\"\"),\"-\",IF('Enrollment Form'!BP732=\"\",\"N\",\"Y\"))","v":"-"},{"$f":"IF('Enrollment Form'!B732<>\"Subscriber\",\"-\",IF(AND('Enrollment Form'!B732=\"Subscriber\",'Enrollment Form'!G732=\"\"),\"N\",\"Y\"))","v":"-"},{"$f":"IF('Enrollment Form'!A732=\"\",\"\",IF('Enrollment Form'!B732=\"Subscriber\",\"-\",IF(AND('Enrollment Form'!B732<>\"Subscriber\",'Enrollment Form'!G732='Enrollment Form'!H732),\"N\",\"Y\")))","v":""},0]
[733,{"$f":"IF('Enrollment Form'!$A733<>\"\",\"Y\",\"N\")","v":"N"},{"$f":"IF(AND('Enrollment Form'!$B733=\"\",'Enrollment Form'!$C733<>\"\"),\"N\",IF($B726=\"N\",\"\",\"Y\"))","v":""},{"$f":"IF(OR($B726=\"N\",'Enrollment Form'!G733=\"\"),\"\",IF('Enrollment Form'!$B733<>\"Subscriber\",\"\",IF('Enrollment Form'!$G733='Enrollment Form'!$H733,\"Y\",\"N\")))","v":""},{"$f":"IF($B726=\"N\",\"\",IF(AND(COUNTIFS('Enrollment Form'!$H$11:$H$1000,'Enrollment Form'!$H733,'Enrollment Form'!$B$11:$B$1000,'Enrollment Form'!$B733)>1,'Enrollment Form'!$H733<>\"\"),\"N\",\"Y\"))","v":""},{"$f":"IF($B726=\"N\",\"\",IF(LEN('Enrollment Form'!$Y733)=0,\"\",IF(LEN('Enrollment Form'!$Y733)<>5,\"N\",\"Y\")))","v":""},{"$f":"IF($B726=\"N\",\"\",IF(LEN('Enrollment Form'!$AD733=0),\"\",IF(LEN('Enrollment Form'!$AD733)<>5,\"N\",\"Y\")))","v":""},{"$f":"IF($B726=\"N\",\"\",IF(LEN('Enrollment Form'!$BS733=0),\"\",IF(LEN('Enrollment Form'!$BS733)<>5,\"N\",\"Y\")))","v":""},{"$f":"IF($B726=\"N\",\"\",IF(LEN('Enrollment Form'!$AE733)=0,\"\",IF(LEN('Enrollment Form'!$AE733)<>10,\"N\",\"Y\")))","v":""},{"$f":"IF($B726=\"N\",\"\",IF(LEN('Enrollment Form'!$AF733)=0,\"\",IF(LEN('Enrollment Form'!$AF733)<>10,\"N\",\"Y\")))","v":""},{"$f":"IF('Enrollment Form'!$O733<>\"Graded\",\"-\",IF(AND('Enrollment Form'!$O733=\"Graded\",'Enrollment Form'!$AR733<>\"\"),\"Y\",\"N\"))","v":"-"},{"$f":"IF($B726=\"N\",\"\",IF(OR('Enrollment Form'!$B733<>\"Subscriber\",'Enrollment Form'!$C733=\"ROC\"),\"-\",IF(AND('Enrollment Form'!$B733=\"Subscriber\",'Enrollment Form'!$C733=\"Enroll\",'Enrollment Form'!$AJ733<>\"\"),\"Y\",\"N\")))","v":""},{"$f":"IF($B726=\"N\",\"\",IF(OR('Enrollment Form'!$B733<>\"Subscriber\",'Enrollment Form'!$C733=\"ROC\"),\"-\",IF(AND('Enrollment Form'!$B733=\"Subscriber\",'Enrollment Form'!$C733=\"Enroll\",'Enrollment Form'!$AK733<>\"\"),\"Y\",\"N\")))","v":""},{"$f":"IF($B726=\"N\",\"\",IF(OR('Enrollment Form'!$B733<>\"Subscriber\",'Enrollment Form'!$C733=\"ROC\"),\"-\",IF(AND('Enrollment Form'!$B733=\"Subscriber\",'Enrollment Form'!$C733=\"Enroll\",'Enrollment Form'!$AL733<>\"\"),\"Y\",\"N\")))","v":""},{"$f":"IF($B726=\"N\",\"\",IF(OR('Enrollment Form'!$B733<>\"Subscriber\",'Enrollment Form'!$C733=\"ROC\"),\"-\",IF(AND('Enrollment Form'!$B733=\"Subscriber\",'Enrollment Form'!$C733=\"Enroll\",'Enrollment Form'!$AP733<>\"\"),\"Y\",\"N\")))","v":""},{"$f":"IF($B726=\"N\",\"\",IF(OR('Enrollment Form'!$B733<>\"Subscriber\",'Enrollment Form'!$C733=\"ROC\"),\"-\",IF(AND('Enrollment Form'!$B733=\"Subscriber\",'Enrollment Form'!$C733=\"Enroll\",'Enrollment Form'!$AQ733<>\"\"),\"Y\",\"N\")))","v":""},{"$f":"IF($B726=\"N\",\"\",IF(OR('Enrollment Form'!$B733<>\"Subscriber\",'Enrollment Form'!$C733=\"ROC\"),\"-\",IF(AND('Enrollment Form'!$B733=\"Subscriber\",'Enrollment Form'!$C733=\"Enroll\",'Enrollment Form'!$AS733<>\"\"),\"Y\",\"N\")))","v":""},{"$f":"IF($B726=\"N\",\"\",IF($Q726=\"-\",\"-\",IF(AND($Q726=\"Y\",'Enrollment Form'!$AS733=\"No\"),\"-\",IF(AND($Q726=\"Y\",'Enrollment Form'!$AS733=\"Yes\",'Enrollment Form'!$AT733<>\"\"),\"Y\",\"N\"))))","v":""},{"$f":"IF($B726=\"N\",\"\",IF(OR('Enrollment Form'!$B733<>\"Subscriber\",'Enrollment Form'!$C733=\"ROC\"),\"-\",IF(AND('Enrollment Form'!$B733=\"Subscriber\",'Enrollment Form'!$C733=\"Enroll\",'Enrollment Form'!$CV733<>\"\"),\"Y\",\"N\")))","v":""},{"$f":"IF($B726=\"N\",\"\",IF($S726=\"-\",\"-\",IF(AND($S726=\"Y\",'Enrollment Form'!$CV733=\"No\"),\"-\",IF(AND($S726=\"Y\",'Enrollment Form'!$CV733=\"Yes\",'Enrollment Form'!$CW733<>\"\"),\"Y\",\"N\"))))","v":""},{"$f":"IF(OR('Enrollment Form'!$AY733=\"Yes\",'Enrollment Form'!$AY733=\"\"),\"-\",IF(OR(AND('Enrollment Form'!$AY733=\"No\",ISERROR(FIND(\"HMO\",VLOOKUP('Enrollment Form'!G733,'Enrollment Form'!H$11:J$1000,3,FALSE),1))=FALSE,COUNTA('Enrollment Form'!$AZ733:$BC733)=4),AND('Enrollment Form'!$AY733=\"No\",ISERROR(FIND(\"HMO\",VLOOKUP('Enrollment Form'!G733,'Enrollment Form'!H$11:J$1000,3,FALSE),1))=FALSE,COUNTA('Enrollment Form'!$BT733:$BW733)=4)),\"Y\",\"N\"))","v":"-"},{"$f":"IF($B726=\"N\",\"\",IF('Enrollment Form'!$B733=\"Subscriber\",\"-\",IF(COUNTA('Enrollment Form'!$BL733,'Enrollment Form'!$BN733)=2,\"Y\",\"N\")))","v":""},{"$f":"IF($B726=\"N\",\"\",IF(OR('Enrollment Form'!$AX733=\"\",'Enrollment Form'!$AX733=\"No\"),\"-\",IF(AND('Enrollment Form'!$AX733=\"Yes\",COUNTA('Enrollment Form'!$CR733)=1),\"Y\",\"N\")))","v":""},{"$f":"IF(OR('Enrollment Form'!$CR733=\"\",'Enrollment Form'!$CR733=\"No\"),\"-\",IF(COUNTA('Enrollment Form'!$CT733:$CU733)=2,\"Y\",\"N\"))","v":"-"},{"$f":"IF($B726=\"N\",\"\",IF(COUNTIF('Enrollment Form'!$DG733:$DP733,\"Other\")=COUNTA('Enrollment Form'!$DK733,'Enrollment Form'!$DH733,'Enrollment Form'!$DN733,'Enrollment Form'!$DQ733),\"Y\",\"N\"))","v":""},{"$f":"IF($B726=\"N\",\"\",IF(OR('Enrollment Form'!B733<>\"Subscriber\",'Enrollment Form'!C733=\"ROC\",COUNTIF('Enrollment Form'!AV733:AW733,\"Yes\")>=1),\"-\",IF(AND('Enrollment Form'!C733=\"Enroll\",COUNTIF('Enrollment Form'!AV733:AW733,\"No\")=2,'Enrollment Form'!AX733=\"\"),\"N\",\"Y\")))","v":""},{"$f":"IF(OR(B726=\"N\",'Enrollment Form'!B733<>\"Subscriber\",'Enrollment Form'!C733=\"ROC\",'Enrollment Form'!O733<>\"Multiple of Salary\"),\"-\",IF(COUNTA('Enrollment Form'!T733:U733)<2,\"N\",\"Y\"))","v":"-"},{"$f":"IF(B726=\"N\",\"\",IF(OR('Enrollment Form'!C733=\"ROC\",'Enrollment Form'!B733<>\"Subscriber\",'Enrollment Form'!O733=\"Waive\",'Enrollment Form'!O733=\"\"),\"-\",IF('Enrollment Form'!P733=\"\",\"N\",\"Y\")))","v":""},{"$f":"IF($B726=\"N\",\"\",IF(AND('Enrollment Form'!$C733=\"ROC\",'Enrollment Form'!$DR733<>\"\"),\"Y\",IF(AND('Enrollment Form'!$C733=\"ROC\",'Enrollment Form'!$DR733=\"\"),\"N\",IF(AND('Enrollment Form'!$C733=\"Enroll\",'Enrollment Form'!$B733=\"Subscriber\",'Enrollment Form'!$CX733=\"No\",'Enrollment Form'!$DR733=\"\"),\"N\",IF(AND('Enrollment Form'!$C733=\"Enroll\",'Enrollment Form'!$B733=\"Subscriber\",'Enrollment Form'!$CX733=\"Yes\"),\"-\",\"Y\")))))","v":""},{"$f":"IF($B726=\"N\",\"\",IF(AND('Enrollment Form'!$C733=\"ROC\",'Enrollment Form'!$DS733<>\"\"),\"Y\",IF(AND('Enrollment Form'!$C733=\"ROC\",'Enrollment Form'!$DS733=\"\"),\"N\",IF(AND('Enrollment Form'!$C733=\"Enroll\",'Enrollment Form'!$B733=\"Subscriber\",'Enrollment Form'!$CX733=\"No\",'Enrollment Form'!$DS733=\"\"),\"N\",IF(AND('Enrollment Form'!$C733=\"Enroll\",'Enrollment Form'!$B733=\"Subscriber\",'Enrollment Form'!$CX733=\"Yes\"),\"-\",\"Y\")))))","v":""},{"$f":"IF('Enrollment Form'!AH733=\"\",\"\",IF(ISERROR(SEARCH(\".\",'Enrollment Form'!AH733,SEARCH(\"@\",'Enrollment Form'!AH733))),\"N\",\"Y\"))","v":""},{"$f":"IF(OR($B726=\"N\",'Enrollment Form'!$G733=\"\"),\"\",IF('Enrollment Form'!$B733<>\"Subscriber\",\"-\",IF(COUNTIF('Enrollment Form'!$AV733:$AW733,\"Yes\")=2,\"N\",\"Y\")))","v":""},{"$f":"IF(OR('Enrollment Form'!$CJ733=\"\",'Enrollment Form'!$CJ733=\"No\"),\"-\",IF(AND('Enrollment Form'!$CJ733=\"Yes\",'Enrollment Form'!$CK733=\"\"),\"N\",\"Y\"))","v":"-"},{"$f":"IF(OR('Enrollment Form'!$CL733=\"\",'Enrollment Form'!$CL733=\"No\"),\"-\",IF(AND('Enrollment Form'!$CL733=\"Yes\",'Enrollment Form'!$CM733=\"\"),\"N\",\"Y\"))","v":"-"},{"$f":"IF(OR('Enrollment Form'!$CN733=\"\",'Enrollment Form'!$CN733=\"No\"),\"-\",IF(AND('Enrollment Form'!$CN733=\"Yes\",'Enrollment Form'!$CO733=\"\"),\"N\",\"Y\"))","v":"-"},{"$f":"IF(OR('Enrollment Form'!$CN733=\"\",'Enrollment Form'!$CN733=\"No\"),\"-\",IF(AND('Enrollment Form'!$CN733=\"Yes\",'Enrollment Form'!$CP733=\"\"),\"N\",\"Y\"))","v":"-"},{"$f":"IF('Enrollment Form'!B733<>\"Subscriber\",\"-\",IF(AND('Enrollment Form'!B733=\"Subscriber\",'Enrollment Form'!C733=\"Enroll\",'Enrollment Form'!AA733=\"\"),\"N\",\"Y\"))","v":"-"},{"$f":"IF(OR('Enrollment Form'!B733=\"Subscriber\",'Enrollment Form'!B733=\"\"),\"-\",IF('Enrollment Form'!BP733=\"\",\"N\",\"Y\"))","v":"-"},{"$f":"IF('Enrollment Form'!B733<>\"Subscriber\",\"-\",IF(AND('Enrollment Form'!B733=\"Subscriber\",'Enrollment Form'!G733=\"\"),\"N\",\"Y\"))","v":"-"},{"$f":"IF('Enrollment Form'!A733=\"\",\"\",IF('Enrollment Form'!B733=\"Subscriber\",\"-\",IF(AND('Enrollment Form'!B733<>\"Subscriber\",'Enrollment Form'!G733='Enrollment Form'!H733),\"N\",\"Y\")))","v":""},0]
[734,{"$f":"IF('Enrollment Form'!$A734<>\"\",\"Y\",\"N\")","v":"N"},{"$f":"IF(AND('Enrollment Form'!$B734=\"\",'Enrollment Form'!$C734<>\"\"),\"N\",IF($B727=\"N\",\"\",\"Y\"))","v":""},{"$f":"IF(OR($B727=\"N\",'Enrollment Form'!G734=\"\"),\"\",IF('Enrollment Form'!$B734<>\"Subscriber\",\"\",IF('Enrollment Form'!$G734='Enrollment Form'!$H734,\"Y\",\"N\")))","v":""},{"$f":"IF($B727=\"N\",\"\",IF(AND(COUNTIFS('Enrollment Form'!$H$11:$H$1000,'Enrollment Form'!$H734,'Enrollment Form'!$B$11:$B$1000,'Enrollment Form'!$B734)>1,'Enrollment Form'!$H734<>\"\"),\"N\",\"Y\"))","v":""},{"$f":"IF($B727=\"N\",\"\",IF(LEN('Enrollment Form'!$Y734)=0,\"\",IF(LEN('Enrollment Form'!$Y734)<>5,\"N\",\"Y\")))","v":""},{"$f":"IF($B727=\"N\",\"\",IF(LEN('Enrollment Form'!$AD734=0),\"\",IF(LEN('Enrollment Form'!$AD734)<>5,\"N\",\"Y\")))","v":""},{"$f":"IF($B727=\"N\",\"\",IF(LEN('Enrollment Form'!$BS734=0),\"\",IF(LEN('Enrollment Form'!$BS734)<>5,\"N\",\"Y\")))","v":""},{"$f":"IF($B727=\"N\",\"\",IF(LEN('Enrollment Form'!$AE734)=0,\"\",IF(LEN('Enrollment Form'!$AE734)<>10,\"N\",\"Y\")))","v":""},{"$f":"IF($B727=\"N\",\"\",IF(LEN('Enrollment Form'!$AF734)=0,\"\",IF(LEN('Enrollment Form'!$AF734)<>10,\"N\",\"Y\")))","v":""},{"$f":"IF('Enrollment Form'!$O734<>\"Graded\",\"-\",IF(AND('Enrollment Form'!$O734=\"Graded\",'Enrollment Form'!$AR734<>\"\"),\"Y\",\"N\"))","v":"-"},{"$f":"IF($B727=\"N\",\"\",IF(OR('Enrollment Form'!$B734<>\"Subscriber\",'Enrollment Form'!$C734=\"ROC\"),\"-\",IF(AND('Enrollment Form'!$B734=\"Subscriber\",'Enrollment Form'!$C734=\"Enroll\",'Enrollment Form'!$AJ734<>\"\"),\"Y\",\"N\")))","v":""},{"$f":"IF($B727=\"N\",\"\",IF(OR('Enrollment Form'!$B734<>\"Subscriber\",'Enrollment Form'!$C734=\"ROC\"),\"-\",IF(AND('Enrollment Form'!$B734=\"Subscriber\",'Enrollment Form'!$C734=\"Enroll\",'Enrollment Form'!$AK734<>\"\"),\"Y\",\"N\")))","v":""},{"$f":"IF($B727=\"N\",\"\",IF(OR('Enrollment Form'!$B734<>\"Subscriber\",'Enrollment Form'!$C734=\"ROC\"),\"-\",IF(AND('Enrollment Form'!$B734=\"Subscriber\",'Enrollment Form'!$C734=\"Enroll\",'Enrollment Form'!$AL734<>\"\"),\"Y\",\"N\")))","v":""},{"$f":"IF($B727=\"N\",\"\",IF(OR('Enrollment Form'!$B734<>\"Subscriber\",'Enrollment Form'!$C734=\"ROC\"),\"-\",IF(AND('Enrollment Form'!$B734=\"Subscriber\",'Enrollment Form'!$C734=\"Enroll\",'Enrollment Form'!$AP734<>\"\"),\"Y\",\"N\")))","v":""},{"$f":"IF($B727=\"N\",\"\",IF(OR('Enrollment Form'!$B734<>\"Subscriber\",'Enrollment Form'!$C734=\"ROC\"),\"-\",IF(AND('Enrollment Form'!$B734=\"Subscriber\",'Enrollment Form'!$C734=\"Enroll\",'Enrollment Form'!$AQ734<>\"\"),\"Y\",\"N\")))","v":""},{"$f":"IF($B727=\"N\",\"\",IF(OR('Enrollment Form'!$B734<>\"Subscriber\",'Enrollment Form'!$C734=\"ROC\"),\"-\",IF(AND('Enrollment Form'!$B734=\"Subscriber\",'Enrollment Form'!$C734=\"Enroll\",'Enrollment Form'!$AS734<>\"\"),\"Y\",\"N\")))","v":""},{"$f":"IF($B727=\"N\",\"\",IF($Q727=\"-\",\"-\",IF(AND($Q727=\"Y\",'Enrollment Form'!$AS734=\"No\"),\"-\",IF(AND($Q727=\"Y\",'Enrollment Form'!$AS734=\"Yes\",'Enrollment Form'!$AT734<>\"\"),\"Y\",\"N\"))))","v":""},{"$f":"IF($B727=\"N\",\"\",IF(OR('Enrollment Form'!$B734<>\"Subscriber\",'Enrollment Form'!$C734=\"ROC\"),\"-\",IF(AND('Enrollment Form'!$B734=\"Subscriber\",'Enrollment Form'!$C734=\"Enroll\",'Enrollment Form'!$CV734<>\"\"),\"Y\",\"N\")))","v":""},{"$f":"IF($B727=\"N\",\"\",IF($S727=\"-\",\"-\",IF(AND($S727=\"Y\",'Enrollment Form'!$CV734=\"No\"),\"-\",IF(AND($S727=\"Y\",'Enrollment Form'!$CV734=\"Yes\",'Enrollment Form'!$CW734<>\"\"),\"Y\",\"N\"))))","v":""},{"$f":"IF(OR('Enrollment Form'!$AY734=\"Yes\",'Enrollment Form'!$AY734=\"\"),\"-\",IF(OR(AND('Enrollment Form'!$AY734=\"No\",ISERROR(FIND(\"HMO\",VLOOKUP('Enrollment Form'!G734,'Enrollment Form'!H$11:J$1000,3,FALSE),1))=FALSE,COUNTA('Enrollment Form'!$AZ734:$BC734)=4),AND('Enrollment Form'!$AY734=\"No\",ISERROR(FIND(\"HMO\",VLOOKUP('Enrollment Form'!G734,'Enrollment Form'!H$11:J$1000,3,FALSE),1))=FALSE,COUNTA('Enrollment Form'!$BT734:$BW734)=4)),\"Y\",\"N\"))","v":"-"},{"$f":"IF($B727=\"N\",\"\",IF('Enrollment Form'!$B734=\"Subscriber\",\"-\",IF(COUNTA('Enrollment Form'!$BL734,'Enrollment Form'!$BN734)=2,\"Y\",\"N\")))","v":""},{"$f":"IF($B727=\"N\",\"\",IF(OR('Enrollment Form'!$AX734=\"\",'Enrollment Form'!$AX734=\"No\"),\"-\",IF(AND('Enrollment Form'!$AX734=\"Yes\",COUNTA('Enrollment Form'!$CR734)=1),\"Y\",\"N\")))","v":""},{"$f":"IF(OR('Enrollment Form'!$CR734=\"\",'Enrollment Form'!$CR734=\"No\"),\"-\",IF(COUNTA('Enrollment Form'!$CT734:$CU734)=2,\"Y\",\"N\"))","v":"-"},{"$f":"IF($B727=\"N\",\"\",IF(COUNTIF('Enrollment Form'!$DG734:$DP734,\"Other\")=COUNTA('Enrollment Form'!$DK734,'Enrollment Form'!$DH734,'Enrollment Form'!$DN734,'Enrollment Form'!$DQ734),\"Y\",\"N\"))","v":""},{"$f":"IF($B727=\"N\",\"\",IF(OR('Enrollment Form'!B734<>\"Subscriber\",'Enrollment Form'!C734=\"ROC\",COUNTIF('Enrollment Form'!AV734:AW734,\"Yes\")>=1),\"-\",IF(AND('Enrollment Form'!C734=\"Enroll\",COUNTIF('Enrollment Form'!AV734:AW734,\"No\")=2,'Enrollment Form'!AX734=\"\"),\"N\",\"Y\")))","v":""},{"$f":"IF(OR(B727=\"N\",'Enrollment Form'!B734<>\"Subscriber\",'Enrollment Form'!C734=\"ROC\",'Enrollment Form'!O734<>\"Multiple of Salary\"),\"-\",IF(COUNTA('Enrollment Form'!T734:U734)<2,\"N\",\"Y\"))","v":"-"},{"$f":"IF(B727=\"N\",\"\",IF(OR('Enrollment Form'!C734=\"ROC\",'Enrollment Form'!B734<>\"Subscriber\",'Enrollment Form'!O734=\"Waive\",'Enrollment Form'!O734=\"\"),\"-\",IF('Enrollment Form'!P734=\"\",\"N\",\"Y\")))","v":""},{"$f":"IF($B727=\"N\",\"\",IF(AND('Enrollment Form'!$C734=\"ROC\",'Enrollment Form'!$DR734<>\"\"),\"Y\",IF(AND('Enrollment Form'!$C734=\"ROC\",'Enrollment Form'!$DR734=\"\"),\"N\",IF(AND('Enrollment Form'!$C734=\"Enroll\",'Enrollment Form'!$B734=\"Subscriber\",'Enrollment Form'!$CX734=\"No\",'Enrollment Form'!$DR734=\"\"),\"N\",IF(AND('Enrollment Form'!$C734=\"Enroll\",'Enrollment Form'!$B734=\"Subscriber\",'Enrollment Form'!$CX734=\"Yes\"),\"-\",\"Y\")))))","v":""},{"$f":"IF($B727=\"N\",\"\",IF(AND('Enrollment Form'!$C734=\"ROC\",'Enrollment Form'!$DS734<>\"\"),\"Y\",IF(AND('Enrollment Form'!$C734=\"ROC\",'Enrollment Form'!$DS734=\"\"),\"N\",IF(AND('Enrollment Form'!$C734=\"Enroll\",'Enrollment Form'!$B734=\"Subscriber\",'Enrollment Form'!$CX734=\"No\",'Enrollment Form'!$DS734=\"\"),\"N\",IF(AND('Enrollment Form'!$C734=\"Enroll\",'Enrollment Form'!$B734=\"Subscriber\",'Enrollment Form'!$CX734=\"Yes\"),\"-\",\"Y\")))))","v":""},{"$f":"IF('Enrollment Form'!AH734=\"\",\"\",IF(ISERROR(SEARCH(\".\",'Enrollment Form'!AH734,SEARCH(\"@\",'Enrollment Form'!AH734))),\"N\",\"Y\"))","v":""},{"$f":"IF(OR($B727=\"N\",'Enrollment Form'!$G734=\"\"),\"\",IF('Enrollment Form'!$B734<>\"Subscriber\",\"-\",IF(COUNTIF('Enrollment Form'!$AV734:$AW734,\"Yes\")=2,\"N\",\"Y\")))","v":""},{"$f":"IF(OR('Enrollment Form'!$CJ734=\"\",'Enrollment Form'!$CJ734=\"No\"),\"-\",IF(AND('Enrollment Form'!$CJ734=\"Yes\",'Enrollment Form'!$CK734=\"\"),\"N\",\"Y\"))","v":"-"},{"$f":"IF(OR('Enrollment Form'!$CL734=\"\",'Enrollment Form'!$CL734=\"No\"),\"-\",IF(AND('Enrollment Form'!$CL734=\"Yes\",'Enrollment Form'!$CM734=\"\"),\"N\",\"Y\"))","v":"-"},{"$f":"IF(OR('Enrollment Form'!$CN734=\"\",'Enrollment Form'!$CN734=\"No\"),\"-\",IF(AND('Enrollment Form'!$CN734=\"Yes\",'Enrollment Form'!$CO734=\"\"),\"N\",\"Y\"))","v":"-"},{"$f":"IF(OR('Enrollment Form'!$CN734=\"\",'Enrollment Form'!$CN734=\"No\"),\"-\",IF(AND('Enrollment Form'!$CN734=\"Yes\",'Enrollment Form'!$CP734=\"\"),\"N\",\"Y\"))","v":"-"},{"$f":"IF('Enrollment Form'!B734<>\"Subscriber\",\"-\",IF(AND('Enrollment Form'!B734=\"Subscriber\",'Enrollment Form'!C734=\"Enroll\",'Enrollment Form'!AA734=\"\"),\"N\",\"Y\"))","v":"-"},{"$f":"IF(OR('Enrollment Form'!B734=\"Subscriber\",'Enrollment Form'!B734=\"\"),\"-\",IF('Enrollment Form'!BP734=\"\",\"N\",\"Y\"))","v":"-"},{"$f":"IF('Enrollment Form'!B734<>\"Subscriber\",\"-\",IF(AND('Enrollment Form'!B734=\"Subscriber\",'Enrollment Form'!G734=\"\"),\"N\",\"Y\"))","v":"-"},{"$f":"IF('Enrollment Form'!A734=\"\",\"\",IF('Enrollment Form'!B734=\"Subscriber\",\"-\",IF(AND('Enrollment Form'!B734<>\"Subscriber\",'Enrollment Form'!G734='Enrollment Form'!H734),\"N\",\"Y\")))","v":""},0]
[735,{"$f":"IF('Enrollment Form'!$A735<>\"\",\"Y\",\"N\")","v":"N"},{"$f":"IF(AND('Enrollment Form'!$B735=\"\",'Enrollment Form'!$C735<>\"\"),\"N\",IF($B728=\"N\",\"\",\"Y\"))","v":""},{"$f":"IF(OR($B728=\"N\",'Enrollment Form'!G735=\"\"),\"\",IF('Enrollment Form'!$B735<>\"Subscriber\",\"\",IF('Enrollment Form'!$G735='Enrollment Form'!$H735,\"Y\",\"N\")))","v":""},{"$f":"IF($B728=\"N\",\"\",IF(AND(COUNTIFS('Enrollment Form'!$H$11:$H$1000,'Enrollment Form'!$H735,'Enrollment Form'!$B$11:$B$1000,'Enrollment Form'!$B735)>1,'Enrollment Form'!$H735<>\"\"),\"N\",\"Y\"))","v":""},{"$f":"IF($B728=\"N\",\"\",IF(LEN('Enrollment Form'!$Y735)=0,\"\",IF(LEN('Enrollment Form'!$Y735)<>5,\"N\",\"Y\")))","v":""},{"$f":"IF($B728=\"N\",\"\",IF(LEN('Enrollment Form'!$AD735=0),\"\",IF(LEN('Enrollment Form'!$AD735)<>5,\"N\",\"Y\")))","v":""},{"$f":"IF($B728=\"N\",\"\",IF(LEN('Enrollment Form'!$BS735=0),\"\",IF(LEN('Enrollment Form'!$BS735)<>5,\"N\",\"Y\")))","v":""},{"$f":"IF($B728=\"N\",\"\",IF(LEN('Enrollment Form'!$AE735)=0,\"\",IF(LEN('Enrollment Form'!$AE735)<>10,\"N\",\"Y\")))","v":""},{"$f":"IF($B728=\"N\",\"\",IF(LEN('Enrollment Form'!$AF735)=0,\"\",IF(LEN('Enrollment Form'!$AF735)<>10,\"N\",\"Y\")))","v":""},{"$f":"IF('Enrollment Form'!$O735<>\"Graded\",\"-\",IF(AND('Enrollment Form'!$O735=\"Graded\",'Enrollment Form'!$AR735<>\"\"),\"Y\",\"N\"))","v":"-"},{"$f":"IF($B728=\"N\",\"\",IF(OR('Enrollment Form'!$B735<>\"Subscriber\",'Enrollment Form'!$C735=\"ROC\"),\"-\",IF(AND('Enrollment Form'!$B735=\"Subscriber\",'Enrollment Form'!$C735=\"Enroll\",'Enrollment Form'!$AJ735<>\"\"),\"Y\",\"N\")))","v":""},{"$f":"IF($B728=\"N\",\"\",IF(OR('Enrollment Form'!$B735<>\"Subscriber\",'Enrollment Form'!$C735=\"ROC\"),\"-\",IF(AND('Enrollment Form'!$B735=\"Subscriber\",'Enrollment Form'!$C735=\"Enroll\",'Enrollment Form'!$AK735<>\"\"),\"Y\",\"N\")))","v":""},{"$f":"IF($B728=\"N\",\"\",IF(OR('Enrollment Form'!$B735<>\"Subscriber\",'Enrollment Form'!$C735=\"ROC\"),\"-\",IF(AND('Enrollment Form'!$B735=\"Subscriber\",'Enrollment Form'!$C735=\"Enroll\",'Enrollment Form'!$AL735<>\"\"),\"Y\",\"N\")))","v":""},{"$f":"IF($B728=\"N\",\"\",IF(OR('Enrollment Form'!$B735<>\"Subscriber\",'Enrollment Form'!$C735=\"ROC\"),\"-\",IF(AND('Enrollment Form'!$B735=\"Subscriber\",'Enrollment Form'!$C735=\"Enroll\",'Enrollment Form'!$AP735<>\"\"),\"Y\",\"N\")))","v":""},{"$f":"IF($B728=\"N\",\"\",IF(OR('Enrollment Form'!$B735<>\"Subscriber\",'Enrollment Form'!$C735=\"ROC\"),\"-\",IF(AND('Enrollment Form'!$B735=\"Subscriber\",'Enrollment Form'!$C735=\"Enroll\",'Enrollment Form'!$AQ735<>\"\"),\"Y\",\"N\")))","v":""},{"$f":"IF($B728=\"N\",\"\",IF(OR('Enrollment Form'!$B735<>\"Subscriber\",'Enrollment Form'!$C735=\"ROC\"),\"-\",IF(AND('Enrollment Form'!$B735=\"Subscriber\",'Enrollment Form'!$C735=\"Enroll\",'Enrollment Form'!$AS735<>\"\"),\"Y\",\"N\")))","v":""},{"$f":"IF($B728=\"N\",\"\",IF($Q728=\"-\",\"-\",IF(AND($Q728=\"Y\",'Enrollment Form'!$AS735=\"No\"),\"-\",IF(AND($Q728=\"Y\",'Enrollment Form'!$AS735=\"Yes\",'Enrollment Form'!$AT735<>\"\"),\"Y\",\"N\"))))","v":""},{"$f":"IF($B728=\"N\",\"\",IF(OR('Enrollment Form'!$B735<>\"Subscriber\",'Enrollment Form'!$C735=\"ROC\"),\"-\",IF(AND('Enrollment Form'!$B735=\"Subscriber\",'Enrollment Form'!$C735=\"Enroll\",'Enrollment Form'!$CV735<>\"\"),\"Y\",\"N\")))","v":""},{"$f":"IF($B728=\"N\",\"\",IF($S728=\"-\",\"-\",IF(AND($S728=\"Y\",'Enrollment Form'!$CV735=\"No\"),\"-\",IF(AND($S728=\"Y\",'Enrollment Form'!$CV735=\"Yes\",'Enrollment Form'!$CW735<>\"\"),\"Y\",\"N\"))))","v":""},{"$f":"IF(OR('Enrollment Form'!$AY735=\"Yes\",'Enrollment Form'!$AY735=\"\"),\"-\",IF(OR(AND('Enrollment Form'!$AY735=\"No\",ISERROR(FIND(\"HMO\",VLOOKUP('Enrollment Form'!G735,'Enrollment Form'!H$11:J$1000,3,FALSE),1))=FALSE,COUNTA('Enrollment Form'!$AZ735:$BC735)=4),AND('Enrollment Form'!$AY735=\"No\",ISERROR(FIND(\"HMO\",VLOOKUP('Enrollment Form'!G735,'Enrollment Form'!H$11:J$1000,3,FALSE),1))=FALSE,COUNTA('Enrollment Form'!$BT735:$BW735)=4)),\"Y\",\"N\"))","v":"-"},{"$f":"IF($B728=\"N\",\"\",IF('Enrollment Form'!$B735=\"Subscriber\",\"-\",IF(COUNTA('Enrollment Form'!$BL735,'Enrollment Form'!$BN735)=2,\"Y\",\"N\")))","v":""},{"$f":"IF($B728=\"N\",\"\",IF(OR('Enrollment Form'!$AX735=\"\",'Enrollment Form'!$AX735=\"No\"),\"-\",IF(AND('Enrollment Form'!$AX735=\"Yes\",COUNTA('Enrollment Form'!$CR735)=1),\"Y\",\"N\")))","v":""},{"$f":"IF(OR('Enrollment Form'!$CR735=\"\",'Enrollment Form'!$CR735=\"No\"),\"-\",IF(COUNTA('Enrollment Form'!$CT735:$CU735)=2,\"Y\",\"N\"))","v":"-"},{"$f":"IF($B728=\"N\",\"\",IF(COUNTIF('Enrollment Form'!$DG735:$DP735,\"Other\")=COUNTA('Enrollment Form'!$DK735,'Enrollment Form'!$DH735,'Enrollment Form'!$DN735,'Enrollment Form'!$DQ735),\"Y\",\"N\"))","v":""},{"$f":"IF($B728=\"N\",\"\",IF(OR('Enrollment Form'!B735<>\"Subscriber\",'Enrollment Form'!C735=\"ROC\",COUNTIF('Enrollment Form'!AV735:AW735,\"Yes\")>=1),\"-\",IF(AND('Enrollment Form'!C735=\"Enroll\",COUNTIF('Enrollment Form'!AV735:AW735,\"No\")=2,'Enrollment Form'!AX735=\"\"),\"N\",\"Y\")))","v":""},{"$f":"IF(OR(B728=\"N\",'Enrollment Form'!B735<>\"Subscriber\",'Enrollment Form'!C735=\"ROC\",'Enrollment Form'!O735<>\"Multiple of Salary\"),\"-\",IF(COUNTA('Enrollment Form'!T735:U735)<2,\"N\",\"Y\"))","v":"-"},{"$f":"IF(B728=\"N\",\"\",IF(OR('Enrollment Form'!C735=\"ROC\",'Enrollment Form'!B735<>\"Subscriber\",'Enrollment Form'!O735=\"Waive\",'Enrollment Form'!O735=\"\"),\"-\",IF('Enrollment Form'!P735=\"\",\"N\",\"Y\")))","v":""},{"$f":"IF($B728=\"N\",\"\",IF(AND('Enrollment Form'!$C735=\"ROC\",'Enrollment Form'!$DR735<>\"\"),\"Y\",IF(AND('Enrollment Form'!$C735=\"ROC\",'Enrollment Form'!$DR735=\"\"),\"N\",IF(AND('Enrollment Form'!$C735=\"Enroll\",'Enrollment Form'!$B735=\"Subscriber\",'Enrollment Form'!$CX735=\"No\",'Enrollment Form'!$DR735=\"\"),\"N\",IF(AND('Enrollment Form'!$C735=\"Enroll\",'Enrollment Form'!$B735=\"Subscriber\",'Enrollment Form'!$CX735=\"Yes\"),\"-\",\"Y\")))))","v":""},{"$f":"IF($B728=\"N\",\"\",IF(AND('Enrollment Form'!$C735=\"ROC\",'Enrollment Form'!$DS735<>\"\"),\"Y\",IF(AND('Enrollment Form'!$C735=\"ROC\",'Enrollment Form'!$DS735=\"\"),\"N\",IF(AND('Enrollment Form'!$C735=\"Enroll\",'Enrollment Form'!$B735=\"Subscriber\",'Enrollment Form'!$CX735=\"No\",'Enrollment Form'!$DS735=\"\"),\"N\",IF(AND('Enrollment Form'!$C735=\"Enroll\",'Enrollment Form'!$B735=\"Subscriber\",'Enrollment Form'!$CX735=\"Yes\"),\"-\",\"Y\")))))","v":""},{"$f":"IF('Enrollment Form'!AH735=\"\",\"\",IF(ISERROR(SEARCH(\".\",'Enrollment Form'!AH735,SEARCH(\"@\",'Enrollment Form'!AH735))),\"N\",\"Y\"))","v":""},{"$f":"IF(OR($B728=\"N\",'Enrollment Form'!$G735=\"\"),\"\",IF('Enrollment Form'!$B735<>\"Subscriber\",\"-\",IF(COUNTIF('Enrollment Form'!$AV735:$AW735,\"Yes\")=2,\"N\",\"Y\")))","v":""},{"$f":"IF(OR('Enrollment Form'!$CJ735=\"\",'Enrollment Form'!$CJ735=\"No\"),\"-\",IF(AND('Enrollment Form'!$CJ735=\"Yes\",'Enrollment Form'!$CK735=\"\"),\"N\",\"Y\"))","v":"-"},{"$f":"IF(OR('Enrollment Form'!$CL735=\"\",'Enrollment Form'!$CL735=\"No\"),\"-\",IF(AND('Enrollment Form'!$CL735=\"Yes\",'Enrollment Form'!$CM735=\"\"),\"N\",\"Y\"))","v":"-"},{"$f":"IF(OR('Enrollment Form'!$CN735=\"\",'Enrollment Form'!$CN735=\"No\"),\"-\",IF(AND('Enrollment Form'!$CN735=\"Yes\",'Enrollment Form'!$CO735=\"\"),\"N\",\"Y\"))","v":"-"},{"$f":"IF(OR('Enrollment Form'!$CN735=\"\",'Enrollment Form'!$CN735=\"No\"),\"-\",IF(AND('Enrollment Form'!$CN735=\"Yes\",'Enrollment Form'!$CP735=\"\"),\"N\",\"Y\"))","v":"-"},{"$f":"IF('Enrollment Form'!B735<>\"Subscriber\",\"-\",IF(AND('Enrollment Form'!B735=\"Subscriber\",'Enrollment Form'!C735=\"Enroll\",'Enrollment Form'!AA735=\"\"),\"N\",\"Y\"))","v":"-"},{"$f":"IF(OR('Enrollment Form'!B735=\"Subscriber\",'Enrollment Form'!B735=\"\"),\"-\",IF('Enrollment Form'!BP735=\"\",\"N\",\"Y\"))","v":"-"},{"$f":"IF('Enrollment Form'!B735<>\"Subscriber\",\"-\",IF(AND('Enrollment Form'!B735=\"Subscriber\",'Enrollment Form'!G735=\"\"),\"N\",\"Y\"))","v":"-"},{"$f":"IF('Enrollment Form'!A735=\"\",\"\",IF('Enrollment Form'!B735=\"Subscriber\",\"-\",IF(AND('Enrollment Form'!B735<>\"Subscriber\",'Enrollment Form'!G735='Enrollment Form'!H735),\"N\",\"Y\")))","v":""},0]
[736,{"$f":"IF('Enrollment Form'!$A736<>\"\",\"Y\",\"N\")","v":"N"},{"$f":"IF(AND('Enrollment Form'!$B736=\"\",'Enrollment Form'!$C736<>\"\"),\"N\",IF($B729=\"N\",\"\",\"Y\"))","v":""},{"$f":"IF(OR($B729=\"N\",'Enrollment Form'!G736=\"\"),\"\",IF('Enrollment Form'!$B736<>\"Subscriber\",\"\",IF('Enrollment Form'!$G736='Enrollment Form'!$H736,\"Y\",\"N\")))","v":""},{"$f":"IF($B729=\"N\",\"\",IF(AND(COUNTIFS('Enrollment Form'!$H$11:$H$1000,'Enrollment Form'!$H736,'Enrollment Form'!$B$11:$B$1000,'Enrollment Form'!$B736)>1,'Enrollment Form'!$H736<>\"\"),\"N\",\"Y\"))","v":""},{"$f":"IF($B729=\"N\",\"\",IF(LEN('Enrollment Form'!$Y736)=0,\"\",IF(LEN('Enrollment Form'!$Y736)<>5,\"N\",\"Y\")))","v":""},{"$f":"IF($B729=\"N\",\"\",IF(LEN('Enrollment Form'!$AD736=0),\"\",IF(LEN('Enrollment Form'!$AD736)<>5,\"N\",\"Y\")))","v":""},{"$f":"IF($B729=\"N\",\"\",IF(LEN('Enrollment Form'!$BS736=0),\"\",IF(LEN('Enrollment Form'!$BS736)<>5,\"N\",\"Y\")))","v":""},{"$f":"IF($B729=\"N\",\"\",IF(LEN('Enrollment Form'!$AE736)=0,\"\",IF(LEN('Enrollment Form'!$AE736)<>10,\"N\",\"Y\")))","v":""},{"$f":"IF($B729=\"N\",\"\",IF(LEN('Enrollment Form'!$AF736)=0,\"\",IF(LEN('Enrollment Form'!$AF736)<>10,\"N\",\"Y\")))","v":""},{"$f":"IF('Enrollment Form'!$O736<>\"Graded\",\"-\",IF(AND('Enrollment Form'!$O736=\"Graded\",'Enrollment Form'!$AR736<>\"\"),\"Y\",\"N\"))","v":"-"},{"$f":"IF($B729=\"N\",\"\",IF(OR('Enrollment Form'!$B736<>\"Subscriber\",'Enrollment Form'!$C736=\"ROC\"),\"-\",IF(AND('Enrollment Form'!$B736=\"Subscriber\",'Enrollment Form'!$C736=\"Enroll\",'Enrollment Form'!$AJ736<>\"\"),\"Y\",\"N\")))","v":""},{"$f":"IF($B729=\"N\",\"\",IF(OR('Enrollment Form'!$B736<>\"Subscriber\",'Enrollment Form'!$C736=\"ROC\"),\"-\",IF(AND('Enrollment Form'!$B736=\"Subscriber\",'Enrollment Form'!$C736=\"Enroll\",'Enrollment Form'!$AK736<>\"\"),\"Y\",\"N\")))","v":""},{"$f":"IF($B729=\"N\",\"\",IF(OR('Enrollment Form'!$B736<>\"Subscriber\",'Enrollment Form'!$C736=\"ROC\"),\"-\",IF(AND('Enrollment Form'!$B736=\"Subscriber\",'Enrollment Form'!$C736=\"Enroll\",'Enrollment Form'!$AL736<>\"\"),\"Y\",\"N\")))","v":""},{"$f":"IF($B729=\"N\",\"\",IF(OR('Enrollment Form'!$B736<>\"Subscriber\",'Enrollment Form'!$C736=\"ROC\"),\"-\",IF(AND('Enrollment Form'!$B736=\"Subscriber\",'Enrollment Form'!$C736=\"Enroll\",'Enrollment Form'!$AP736<>\"\"),\"Y\",\"N\")))","v":""},{"$f":"IF($B729=\"N\",\"\",IF(OR('Enrollment Form'!$B736<>\"Subscriber\",'Enrollment Form'!$C736=\"ROC\"),\"-\",IF(AND('Enrollment Form'!$B736=\"Subscriber\",'Enrollment Form'!$C736=\"Enroll\",'Enrollment Form'!$AQ736<>\"\"),\"Y\",\"N\")))","v":""},{"$f":"IF($B729=\"N\",\"\",IF(OR('Enrollment Form'!$B736<>\"Subscriber\",'Enrollment Form'!$C736=\"ROC\"),\"-\",IF(AND('Enrollment Form'!$B736=\"Subscriber\",'Enrollment Form'!$C736=\"Enroll\",'Enrollment Form'!$AS736<>\"\"),\"Y\",\"N\")))","v":""},{"$f":"IF($B729=\"N\",\"\",IF($Q729=\"-\",\"-\",IF(AND($Q729=\"Y\",'Enrollment Form'!$AS736=\"No\"),\"-\",IF(AND($Q729=\"Y\",'Enrollment Form'!$AS736=\"Yes\",'Enrollment Form'!$AT736<>\"\"),\"Y\",\"N\"))))","v":""},{"$f":"IF($B729=\"N\",\"\",IF(OR('Enrollment Form'!$B736<>\"Subscriber\",'Enrollment Form'!$C736=\"ROC\"),\"-\",IF(AND('Enrollment Form'!$B736=\"Subscriber\",'Enrollment Form'!$C736=\"Enroll\",'Enrollment Form'!$CV736<>\"\"),\"Y\",\"N\")))","v":""},{"$f":"IF($B729=\"N\",\"\",IF($S729=\"-\",\"-\",IF(AND($S729=\"Y\",'Enrollment Form'!$CV736=\"No\"),\"-\",IF(AND($S729=\"Y\",'Enrollment Form'!$CV736=\"Yes\",'Enrollment Form'!$CW736<>\"\"),\"Y\",\"N\"))))","v":""},{"$f":"IF(OR('Enrollment Form'!$AY736=\"Yes\",'Enrollment Form'!$AY736=\"\"),\"-\",IF(OR(AND('Enrollment Form'!$AY736=\"No\",ISERROR(FIND(\"HMO\",VLOOKUP('Enrollment Form'!G736,'Enrollment Form'!H$11:J$1000,3,FALSE),1))=FALSE,COUNTA('Enrollment Form'!$AZ736:$BC736)=4),AND('Enrollment Form'!$AY736=\"No\",ISERROR(FIND(\"HMO\",VLOOKUP('Enrollment Form'!G736,'Enrollment Form'!H$11:J$1000,3,FALSE),1))=FALSE,COUNTA('Enrollment Form'!$BT736:$BW736)=4)),\"Y\",\"N\"))","v":"-"},{"$f":"IF($B729=\"N\",\"\",IF('Enrollment Form'!$B736=\"Subscriber\",\"-\",IF(COUNTA('Enrollment Form'!$BL736,'Enrollment Form'!$BN736)=2,\"Y\",\"N\")))","v":""},{"$f":"IF($B729=\"N\",\"\",IF(OR('Enrollment Form'!$AX736=\"\",'Enrollment Form'!$AX736=\"No\"),\"-\",IF(AND('Enrollment Form'!$AX736=\"Yes\",COUNTA('Enrollment Form'!$CR736)=1),\"Y\",\"N\")))","v":""},{"$f":"IF(OR('Enrollment Form'!$CR736=\"\",'Enrollment Form'!$CR736=\"No\"),\"-\",IF(COUNTA('Enrollment Form'!$CT736:$CU736)=2,\"Y\",\"N\"))","v":"-"},{"$f":"IF($B729=\"N\",\"\",IF(COUNTIF('Enrollment Form'!$DG736:$DP736,\"Other\")=COUNTA('Enrollment Form'!$DK736,'Enrollment Form'!$DH736,'Enrollment Form'!$DN736,'Enrollment Form'!$DQ736),\"Y\",\"N\"))","v":""},{"$f":"IF($B729=\"N\",\"\",IF(OR('Enrollment Form'!B736<>\"Subscriber\",'Enrollment Form'!C736=\"ROC\",COUNTIF('Enrollment Form'!AV736:AW736,\"Yes\")>=1),\"-\",IF(AND('Enrollment Form'!C736=\"Enroll\",COUNTIF('Enrollment Form'!AV736:AW736,\"No\")=2,'Enrollment Form'!AX736=\"\"),\"N\",\"Y\")))","v":""},{"$f":"IF(OR(B729=\"N\",'Enrollment Form'!B736<>\"Subscriber\",'Enrollment Form'!C736=\"ROC\",'Enrollment Form'!O736<>\"Multiple of Salary\"),\"-\",IF(COUNTA('Enrollment Form'!T736:U736)<2,\"N\",\"Y\"))","v":"-"},{"$f":"IF(B729=\"N\",\"\",IF(OR('Enrollment Form'!C736=\"ROC\",'Enrollment Form'!B736<>\"Subscriber\",'Enrollment Form'!O736=\"Waive\",'Enrollment Form'!O736=\"\"),\"-\",IF('Enrollment Form'!P736=\"\",\"N\",\"Y\")))","v":""},{"$f":"IF($B729=\"N\",\"\",IF(AND('Enrollment Form'!$C736=\"ROC\",'Enrollment Form'!$DR736<>\"\"),\"Y\",IF(AND('Enrollment Form'!$C736=\"ROC\",'Enrollment Form'!$DR736=\"\"),\"N\",IF(AND('Enrollment Form'!$C736=\"Enroll\",'Enrollment Form'!$B736=\"Subscriber\",'Enrollment Form'!$CX736=\"No\",'Enrollment Form'!$DR736=\"\"),\"N\",IF(AND('Enrollment Form'!$C736=\"Enroll\",'Enrollment Form'!$B736=\"Subscriber\",'Enrollment Form'!$CX736=\"Yes\"),\"-\",\"Y\")))))","v":""},{"$f":"IF($B729=\"N\",\"\",IF(AND('Enrollment Form'!$C736=\"ROC\",'Enrollment Form'!$DS736<>\"\"),\"Y\",IF(AND('Enrollment Form'!$C736=\"ROC\",'Enrollment Form'!$DS736=\"\"),\"N\",IF(AND('Enrollment Form'!$C736=\"Enroll\",'Enrollment Form'!$B736=\"Subscriber\",'Enrollment Form'!$CX736=\"No\",'Enrollment Form'!$DS736=\"\"),\"N\",IF(AND('Enrollment Form'!$C736=\"Enroll\",'Enrollment Form'!$B736=\"Subscriber\",'Enrollment Form'!$CX736=\"Yes\"),\"-\",\"Y\")))))","v":""},{"$f":"IF('Enrollment Form'!AH736=\"\",\"\",IF(ISERROR(SEARCH(\".\",'Enrollment Form'!AH736,SEARCH(\"@\",'Enrollment Form'!AH736))),\"N\",\"Y\"))","v":""},{"$f":"IF(OR($B729=\"N\",'Enrollment Form'!$G736=\"\"),\"\",IF('Enrollment Form'!$B736<>\"Subscriber\",\"-\",IF(COUNTIF('Enrollment Form'!$AV736:$AW736,\"Yes\")=2,\"N\",\"Y\")))","v":""},{"$f":"IF(OR('Enrollment Form'!$CJ736=\"\",'Enrollment Form'!$CJ736=\"No\"),\"-\",IF(AND('Enrollment Form'!$CJ736=\"Yes\",'Enrollment Form'!$CK736=\"\"),\"N\",\"Y\"))","v":"-"},{"$f":"IF(OR('Enrollment Form'!$CL736=\"\",'Enrollment Form'!$CL736=\"No\"),\"-\",IF(AND('Enrollment Form'!$CL736=\"Yes\",'Enrollment Form'!$CM736=\"\"),\"N\",\"Y\"))","v":"-"},{"$f":"IF(OR('Enrollment Form'!$CN736=\"\",'Enrollment Form'!$CN736=\"No\"),\"-\",IF(AND('Enrollment Form'!$CN736=\"Yes\",'Enrollment Form'!$CO736=\"\"),\"N\",\"Y\"))","v":"-"},{"$f":"IF(OR('Enrollment Form'!$CN736=\"\",'Enrollment Form'!$CN736=\"No\"),\"-\",IF(AND('Enrollment Form'!$CN736=\"Yes\",'Enrollment Form'!$CP736=\"\"),\"N\",\"Y\"))","v":"-"},{"$f":"IF('Enrollment Form'!B736<>\"Subscriber\",\"-\",IF(AND('Enrollment Form'!B736=\"Subscriber\",'Enrollment Form'!C736=\"Enroll\",'Enrollment Form'!AA736=\"\"),\"N\",\"Y\"))","v":"-"},{"$f":"IF(OR('Enrollment Form'!B736=\"Subscriber\",'Enrollment Form'!B736=\"\"),\"-\",IF('Enrollment Form'!BP736=\"\",\"N\",\"Y\"))","v":"-"},{"$f":"IF('Enrollment Form'!B736<>\"Subscriber\",\"-\",IF(AND('Enrollment Form'!B736=\"Subscriber\",'Enrollment Form'!G736=\"\"),\"N\",\"Y\"))","v":"-"},{"$f":"IF('Enrollment Form'!A736=\"\",\"\",IF('Enrollment Form'!B736=\"Subscriber\",\"-\",IF(AND('Enrollment Form'!B736<>\"Subscriber\",'Enrollment Form'!G736='Enrollment Form'!H736),\"N\",\"Y\")))","v":""},0]
[737,{"$f":"IF('Enrollment Form'!$A737<>\"\",\"Y\",\"N\")","v":"N"},{"$f":"IF(AND('Enrollment Form'!$B737=\"\",'Enrollment Form'!$C737<>\"\"),\"N\",IF($B730=\"N\",\"\",\"Y\"))","v":""},{"$f":"IF(OR($B730=\"N\",'Enrollment Form'!G737=\"\"),\"\",IF('Enrollment Form'!$B737<>\"Subscriber\",\"\",IF('Enrollment Form'!$G737='Enrollment Form'!$H737,\"Y\",\"N\")))","v":""},{"$f":"IF($B730=\"N\",\"\",IF(AND(COUNTIFS('Enrollment Form'!$H$11:$H$1000,'Enrollment Form'!$H737,'Enrollment Form'!$B$11:$B$1000,'Enrollment Form'!$B737)>1,'Enrollment Form'!$H737<>\"\"),\"N\",\"Y\"))","v":""},{"$f":"IF($B730=\"N\",\"\",IF(LEN('Enrollment Form'!$Y737)=0,\"\",IF(LEN('Enrollment Form'!$Y737)<>5,\"N\",\"Y\")))","v":""},{"$f":"IF($B730=\"N\",\"\",IF(LEN('Enrollment Form'!$AD737=0),\"\",IF(LEN('Enrollment Form'!$AD737)<>5,\"N\",\"Y\")))","v":""},{"$f":"IF($B730=\"N\",\"\",IF(LEN('Enrollment Form'!$BS737=0),\"\",IF(LEN('Enrollment Form'!$BS737)<>5,\"N\",\"Y\")))","v":""},{"$f":"IF($B730=\"N\",\"\",IF(LEN('Enrollment Form'!$AE737)=0,\"\",IF(LEN('Enrollment Form'!$AE737)<>10,\"N\",\"Y\")))","v":""},{"$f":"IF($B730=\"N\",\"\",IF(LEN('Enrollment Form'!$AF737)=0,\"\",IF(LEN('Enrollment Form'!$AF737)<>10,\"N\",\"Y\")))","v":""},{"$f":"IF('Enrollment Form'!$O737<>\"Graded\",\"-\",IF(AND('Enrollment Form'!$O737=\"Graded\",'Enrollment Form'!$AR737<>\"\"),\"Y\",\"N\"))","v":"-"},{"$f":"IF($B730=\"N\",\"\",IF(OR('Enrollment Form'!$B737<>\"Subscriber\",'Enrollment Form'!$C737=\"ROC\"),\"-\",IF(AND('Enrollment Form'!$B737=\"Subscriber\",'Enrollment Form'!$C737=\"Enroll\",'Enrollment Form'!$AJ737<>\"\"),\"Y\",\"N\")))","v":""},{"$f":"IF($B730=\"N\",\"\",IF(OR('Enrollment Form'!$B737<>\"Subscriber\",'Enrollment Form'!$C737=\"ROC\"),\"-\",IF(AND('Enrollment Form'!$B737=\"Subscriber\",'Enrollment Form'!$C737=\"Enroll\",'Enrollment Form'!$AK737<>\"\"),\"Y\",\"N\")))","v":""},{"$f":"IF($B730=\"N\",\"\",IF(OR('Enrollment Form'!$B737<>\"Subscriber\",'Enrollment Form'!$C737=\"ROC\"),\"-\",IF(AND('Enrollment Form'!$B737=\"Subscriber\",'Enrollment Form'!$C737=\"Enroll\",'Enrollment Form'!$AL737<>\"\"),\"Y\",\"N\")))","v":""},{"$f":"IF($B730=\"N\",\"\",IF(OR('Enrollment Form'!$B737<>\"Subscriber\",'Enrollment Form'!$C737=\"ROC\"),\"-\",IF(AND('Enrollment Form'!$B737=\"Subscriber\",'Enrollment Form'!$C737=\"Enroll\",'Enrollment Form'!$AP737<>\"\"),\"Y\",\"N\")))","v":""},{"$f":"IF($B730=\"N\",\"\",IF(OR('Enrollment Form'!$B737<>\"Subscriber\",'Enrollment Form'!$C737=\"ROC\"),\"-\",IF(AND('Enrollment Form'!$B737=\"Subscriber\",'Enrollment Form'!$C737=\"Enroll\",'Enrollment Form'!$AQ737<>\"\"),\"Y\",\"N\")))","v":""},{"$f":"IF($B730=\"N\",\"\",IF(OR('Enrollment Form'!$B737<>\"Subscriber\",'Enrollment Form'!$C737=\"ROC\"),\"-\",IF(AND('Enrollment Form'!$B737=\"Subscriber\",'Enrollment Form'!$C737=\"Enroll\",'Enrollment Form'!$AS737<>\"\"),\"Y\",\"N\")))","v":""},{"$f":"IF($B730=\"N\",\"\",IF($Q730=\"-\",\"-\",IF(AND($Q730=\"Y\",'Enrollment Form'!$AS737=\"No\"),\"-\",IF(AND($Q730=\"Y\",'Enrollment Form'!$AS737=\"Yes\",'Enrollment Form'!$AT737<>\"\"),\"Y\",\"N\"))))","v":""},{"$f":"IF($B730=\"N\",\"\",IF(OR('Enrollment Form'!$B737<>\"Subscriber\",'Enrollment Form'!$C737=\"ROC\"),\"-\",IF(AND('Enrollment Form'!$B737=\"Subscriber\",'Enrollment Form'!$C737=\"Enroll\",'Enrollment Form'!$CV737<>\"\"),\"Y\",\"N\")))","v":""},{"$f":"IF($B730=\"N\",\"\",IF($S730=\"-\",\"-\",IF(AND($S730=\"Y\",'Enrollment Form'!$CV737=\"No\"),\"-\",IF(AND($S730=\"Y\",'Enrollment Form'!$CV737=\"Yes\",'Enrollment Form'!$CW737<>\"\"),\"Y\",\"N\"))))","v":""},{"$f":"IF(OR('Enrollment Form'!$AY737=\"Yes\",'Enrollment Form'!$AY737=\"\"),\"-\",IF(OR(AND('Enrollment Form'!$AY737=\"No\",ISERROR(FIND(\"HMO\",VLOOKUP('Enrollment Form'!G737,'Enrollment Form'!H$11:J$1000,3,FALSE),1))=FALSE,COUNTA('Enrollment Form'!$AZ737:$BC737)=4),AND('Enrollment Form'!$AY737=\"No\",ISERROR(FIND(\"HMO\",VLOOKUP('Enrollment Form'!G737,'Enrollment Form'!H$11:J$1000,3,FALSE),1))=FALSE,COUNTA('Enrollment Form'!$BT737:$BW737)=4)),\"Y\",\"N\"))","v":"-"},{"$f":"IF($B730=\"N\",\"\",IF('Enrollment Form'!$B737=\"Subscriber\",\"-\",IF(COUNTA('Enrollment Form'!$BL737,'Enrollment Form'!$BN737)=2,\"Y\",\"N\")))","v":""},{"$f":"IF($B730=\"N\",\"\",IF(OR('Enrollment Form'!$AX737=\"\",'Enrollment Form'!$AX737=\"No\"),\"-\",IF(AND('Enrollment Form'!$AX737=\"Yes\",COUNTA('Enrollment Form'!$CR737)=1),\"Y\",\"N\")))","v":""},{"$f":"IF(OR('Enrollment Form'!$CR737=\"\",'Enrollment Form'!$CR737=\"No\"),\"-\",IF(COUNTA('Enrollment Form'!$CT737:$CU737)=2,\"Y\",\"N\"))","v":"-"},{"$f":"IF($B730=\"N\",\"\",IF(COUNTIF('Enrollment Form'!$DG737:$DP737,\"Other\")=COUNTA('Enrollment Form'!$DK737,'Enrollment Form'!$DH737,'Enrollment Form'!$DN737,'Enrollment Form'!$DQ737),\"Y\",\"N\"))","v":""},{"$f":"IF($B730=\"N\",\"\",IF(OR('Enrollment Form'!B737<>\"Subscriber\",'Enrollment Form'!C737=\"ROC\",COUNTIF('Enrollment Form'!AV737:AW737,\"Yes\")>=1),\"-\",IF(AND('Enrollment Form'!C737=\"Enroll\",COUNTIF('Enrollment Form'!AV737:AW737,\"No\")=2,'Enrollment Form'!AX737=\"\"),\"N\",\"Y\")))","v":""},{"$f":"IF(OR(B730=\"N\",'Enrollment Form'!B737<>\"Subscriber\",'Enrollment Form'!C737=\"ROC\",'Enrollment Form'!O737<>\"Multiple of Salary\"),\"-\",IF(COUNTA('Enrollment Form'!T737:U737)<2,\"N\",\"Y\"))","v":"-"},{"$f":"IF(B730=\"N\",\"\",IF(OR('Enrollment Form'!C737=\"ROC\",'Enrollment Form'!B737<>\"Subscriber\",'Enrollment Form'!O737=\"Waive\",'Enrollment Form'!O737=\"\"),\"-\",IF('Enrollment Form'!P737=\"\",\"N\",\"Y\")))","v":""},{"$f":"IF($B730=\"N\",\"\",IF(AND('Enrollment Form'!$C737=\"ROC\",'Enrollment Form'!$DR737<>\"\"),\"Y\",IF(AND('Enrollment Form'!$C737=\"ROC\",'Enrollment Form'!$DR737=\"\"),\"N\",IF(AND('Enrollment Form'!$C737=\"Enroll\",'Enrollment Form'!$B737=\"Subscriber\",'Enrollment Form'!$CX737=\"No\",'Enrollment Form'!$DR737=\"\"),\"N\",IF(AND('Enrollment Form'!$C737=\"Enroll\",'Enrollment Form'!$B737=\"Subscriber\",'Enrollment Form'!$CX737=\"Yes\"),\"-\",\"Y\")))))","v":""},{"$f":"IF($B730=\"N\",\"\",IF(AND('Enrollment Form'!$C737=\"ROC\",'Enrollment Form'!$DS737<>\"\"),\"Y\",IF(AND('Enrollment Form'!$C737=\"ROC\",'Enrollment Form'!$DS737=\"\"),\"N\",IF(AND('Enrollment Form'!$C737=\"Enroll\",'Enrollment Form'!$B737=\"Subscriber\",'Enrollment Form'!$CX737=\"No\",'Enrollment Form'!$DS737=\"\"),\"N\",IF(AND('Enrollment Form'!$C737=\"Enroll\",'Enrollment Form'!$B737=\"Subscriber\",'Enrollment Form'!$CX737=\"Yes\"),\"-\",\"Y\")))))","v":""},{"$f":"IF('Enrollment Form'!AH737=\"\",\"\",IF(ISERROR(SEARCH(\".\",'Enrollment Form'!AH737,SEARCH(\"@\",'Enrollment Form'!AH737))),\"N\",\"Y\"))","v":""},{"$f":"IF(OR($B730=\"N\",'Enrollment Form'!$G737=\"\"),\"\",IF('Enrollment Form'!$B737<>\"Subscriber\",\"-\",IF(COUNTIF('Enrollment Form'!$AV737:$AW737,\"Yes\")=2,\"N\",\"Y\")))","v":""},{"$f":"IF(OR('Enrollment Form'!$CJ737=\"\",'Enrollment Form'!$CJ737=\"No\"),\"-\",IF(AND('Enrollment Form'!$CJ737=\"Yes\",'Enrollment Form'!$CK737=\"\"),\"N\",\"Y\"))","v":"-"},{"$f":"IF(OR('Enrollment Form'!$CL737=\"\",'Enrollment Form'!$CL737=\"No\"),\"-\",IF(AND('Enrollment Form'!$CL737=\"Yes\",'Enrollment Form'!$CM737=\"\"),\"N\",\"Y\"))","v":"-"},{"$f":"IF(OR('Enrollment Form'!$CN737=\"\",'Enrollment Form'!$CN737=\"No\"),\"-\",IF(AND('Enrollment Form'!$CN737=\"Yes\",'Enrollment Form'!$CO737=\"\"),\"N\",\"Y\"))","v":"-"},{"$f":"IF(OR('Enrollment Form'!$CN737=\"\",'Enrollment Form'!$CN737=\"No\"),\"-\",IF(AND('Enrollment Form'!$CN737=\"Yes\",'Enrollment Form'!$CP737=\"\"),\"N\",\"Y\"))","v":"-"},{"$f":"IF('Enrollment Form'!B737<>\"Subscriber\",\"-\",IF(AND('Enrollment Form'!B737=\"Subscriber\",'Enrollment Form'!C737=\"Enroll\",'Enrollment Form'!AA737=\"\"),\"N\",\"Y\"))","v":"-"},{"$f":"IF(OR('Enrollment Form'!B737=\"Subscriber\",'Enrollment Form'!B737=\"\"),\"-\",IF('Enrollment Form'!BP737=\"\",\"N\",\"Y\"))","v":"-"},{"$f":"IF('Enrollment Form'!B737<>\"Subscriber\",\"-\",IF(AND('Enrollment Form'!B737=\"Subscriber\",'Enrollment Form'!G737=\"\"),\"N\",\"Y\"))","v":"-"},{"$f":"IF('Enrollment Form'!A737=\"\",\"\",IF('Enrollment Form'!B737=\"Subscriber\",\"-\",IF(AND('Enrollment Form'!B737<>\"Subscriber\",'Enrollment Form'!G737='Enrollment Form'!H737),\"N\",\"Y\")))","v":""},0]
[738,{"$f":"IF('Enrollment Form'!$A738<>\"\",\"Y\",\"N\")","v":"N"},{"$f":"IF(AND('Enrollment Form'!$B738=\"\",'Enrollment Form'!$C738<>\"\"),\"N\",IF($B731=\"N\",\"\",\"Y\"))","v":""},{"$f":"IF(OR($B731=\"N\",'Enrollment Form'!G738=\"\"),\"\",IF('Enrollment Form'!$B738<>\"Subscriber\",\"\",IF('Enrollment Form'!$G738='Enrollment Form'!$H738,\"Y\",\"N\")))","v":""},{"$f":"IF($B731=\"N\",\"\",IF(AND(COUNTIFS('Enrollment Form'!$H$11:$H$1000,'Enrollment Form'!$H738,'Enrollment Form'!$B$11:$B$1000,'Enrollment Form'!$B738)>1,'Enrollment Form'!$H738<>\"\"),\"N\",\"Y\"))","v":""},{"$f":"IF($B731=\"N\",\"\",IF(LEN('Enrollment Form'!$Y738)=0,\"\",IF(LEN('Enrollment Form'!$Y738)<>5,\"N\",\"Y\")))","v":""},{"$f":"IF($B731=\"N\",\"\",IF(LEN('Enrollment Form'!$AD738=0),\"\",IF(LEN('Enrollment Form'!$AD738)<>5,\"N\",\"Y\")))","v":""},{"$f":"IF($B731=\"N\",\"\",IF(LEN('Enrollment Form'!$BS738=0),\"\",IF(LEN('Enrollment Form'!$BS738)<>5,\"N\",\"Y\")))","v":""},{"$f":"IF($B731=\"N\",\"\",IF(LEN('Enrollment Form'!$AE738)=0,\"\",IF(LEN('Enrollment Form'!$AE738)<>10,\"N\",\"Y\")))","v":""},{"$f":"IF($B731=\"N\",\"\",IF(LEN('Enrollment Form'!$AF738)=0,\"\",IF(LEN('Enrollment Form'!$AF738)<>10,\"N\",\"Y\")))","v":""},{"$f":"IF('Enrollment Form'!$O738<>\"Graded\",\"-\",IF(AND('Enrollment Form'!$O738=\"Graded\",'Enrollment Form'!$AR738<>\"\"),\"Y\",\"N\"))","v":"-"},{"$f":"IF($B731=\"N\",\"\",IF(OR('Enrollment Form'!$B738<>\"Subscriber\",'Enrollment Form'!$C738=\"ROC\"),\"-\",IF(AND('Enrollment Form'!$B738=\"Subscriber\",'Enrollment Form'!$C738=\"Enroll\",'Enrollment Form'!$AJ738<>\"\"),\"Y\",\"N\")))","v":""},{"$f":"IF($B731=\"N\",\"\",IF(OR('Enrollment Form'!$B738<>\"Subscriber\",'Enrollment Form'!$C738=\"ROC\"),\"-\",IF(AND('Enrollment Form'!$B738=\"Subscriber\",'Enrollment Form'!$C738=\"Enroll\",'Enrollment Form'!$AK738<>\"\"),\"Y\",\"N\")))","v":""},{"$f":"IF($B731=\"N\",\"\",IF(OR('Enrollment Form'!$B738<>\"Subscriber\",'Enrollment Form'!$C738=\"ROC\"),\"-\",IF(AND('Enrollment Form'!$B738=\"Subscriber\",'Enrollment Form'!$C738=\"Enroll\",'Enrollment Form'!$AL738<>\"\"),\"Y\",\"N\")))","v":""},{"$f":"IF($B731=\"N\",\"\",IF(OR('Enrollment Form'!$B738<>\"Subscriber\",'Enrollment Form'!$C738=\"ROC\"),\"-\",IF(AND('Enrollment Form'!$B738=\"Subscriber\",'Enrollment Form'!$C738=\"Enroll\",'Enrollment Form'!$AP738<>\"\"),\"Y\",\"N\")))","v":""},{"$f":"IF($B731=\"N\",\"\",IF(OR('Enrollment Form'!$B738<>\"Subscriber\",'Enrollment Form'!$C738=\"ROC\"),\"-\",IF(AND('Enrollment Form'!$B738=\"Subscriber\",'Enrollment Form'!$C738=\"Enroll\",'Enrollment Form'!$AQ738<>\"\"),\"Y\",\"N\")))","v":""},{"$f":"IF($B731=\"N\",\"\",IF(OR('Enrollment Form'!$B738<>\"Subscriber\",'Enrollment Form'!$C738=\"ROC\"),\"-\",IF(AND('Enrollment Form'!$B738=\"Subscriber\",'Enrollment Form'!$C738=\"Enroll\",'Enrollment Form'!$AS738<>\"\"),\"Y\",\"N\")))","v":""},{"$f":"IF($B731=\"N\",\"\",IF($Q731=\"-\",\"-\",IF(AND($Q731=\"Y\",'Enrollment Form'!$AS738=\"No\"),\"-\",IF(AND($Q731=\"Y\",'Enrollment Form'!$AS738=\"Yes\",'Enrollment Form'!$AT738<>\"\"),\"Y\",\"N\"))))","v":""},{"$f":"IF($B731=\"N\",\"\",IF(OR('Enrollment Form'!$B738<>\"Subscriber\",'Enrollment Form'!$C738=\"ROC\"),\"-\",IF(AND('Enrollment Form'!$B738=\"Subscriber\",'Enrollment Form'!$C738=\"Enroll\",'Enrollment Form'!$CV738<>\"\"),\"Y\",\"N\")))","v":""},{"$f":"IF($B731=\"N\",\"\",IF($S731=\"-\",\"-\",IF(AND($S731=\"Y\",'Enrollment Form'!$CV738=\"No\"),\"-\",IF(AND($S731=\"Y\",'Enrollment Form'!$CV738=\"Yes\",'Enrollment Form'!$CW738<>\"\"),\"Y\",\"N\"))))","v":""},{"$f":"IF(OR('Enrollment Form'!$AY738=\"Yes\",'Enrollment Form'!$AY738=\"\"),\"-\",IF(OR(AND('Enrollment Form'!$AY738=\"No\",ISERROR(FIND(\"HMO\",VLOOKUP('Enrollment Form'!G738,'Enrollment Form'!H$11:J$1000,3,FALSE),1))=FALSE,COUNTA('Enrollment Form'!$AZ738:$BC738)=4),AND('Enrollment Form'!$AY738=\"No\",ISERROR(FIND(\"HMO\",VLOOKUP('Enrollment Form'!G738,'Enrollment Form'!H$11:J$1000,3,FALSE),1))=FALSE,COUNTA('Enrollment Form'!$BT738:$BW738)=4)),\"Y\",\"N\"))","v":"-"},{"$f":"IF($B731=\"N\",\"\",IF('Enrollment Form'!$B738=\"Subscriber\",\"-\",IF(COUNTA('Enrollment Form'!$BL738,'Enrollment Form'!$BN738)=2,\"Y\",\"N\")))","v":""},{"$f":"IF($B731=\"N\",\"\",IF(OR('Enrollment Form'!$AX738=\"\",'Enrollment Form'!$AX738=\"No\"),\"-\",IF(AND('Enrollment Form'!$AX738=\"Yes\",COUNTA('Enrollment Form'!$CR738)=1),\"Y\",\"N\")))","v":""},{"$f":"IF(OR('Enrollment Form'!$CR738=\"\",'Enrollment Form'!$CR738=\"No\"),\"-\",IF(COUNTA('Enrollment Form'!$CT738:$CU738)=2,\"Y\",\"N\"))","v":"-"},{"$f":"IF($B731=\"N\",\"\",IF(COUNTIF('Enrollment Form'!$DG738:$DP738,\"Other\")=COUNTA('Enrollment Form'!$DK738,'Enrollment Form'!$DH738,'Enrollment Form'!$DN738,'Enrollment Form'!$DQ738),\"Y\",\"N\"))","v":""},{"$f":"IF($B731=\"N\",\"\",IF(OR('Enrollment Form'!B738<>\"Subscriber\",'Enrollment Form'!C738=\"ROC\",COUNTIF('Enrollment Form'!AV738:AW738,\"Yes\")>=1),\"-\",IF(AND('Enrollment Form'!C738=\"Enroll\",COUNTIF('Enrollment Form'!AV738:AW738,\"No\")=2,'Enrollment Form'!AX738=\"\"),\"N\",\"Y\")))","v":""},{"$f":"IF(OR(B731=\"N\",'Enrollment Form'!B738<>\"Subscriber\",'Enrollment Form'!C738=\"ROC\",'Enrollment Form'!O738<>\"Multiple of Salary\"),\"-\",IF(COUNTA('Enrollment Form'!T738:U738)<2,\"N\",\"Y\"))","v":"-"},{"$f":"IF(B731=\"N\",\"\",IF(OR('Enrollment Form'!C738=\"ROC\",'Enrollment Form'!B738<>\"Subscriber\",'Enrollment Form'!O738=\"Waive\",'Enrollment Form'!O738=\"\"),\"-\",IF('Enrollment Form'!P738=\"\",\"N\",\"Y\")))","v":""},{"$f":"IF($B731=\"N\",\"\",IF(AND('Enrollment Form'!$C738=\"ROC\",'Enrollment Form'!$DR738<>\"\"),\"Y\",IF(AND('Enrollment Form'!$C738=\"ROC\",'Enrollment Form'!$DR738=\"\"),\"N\",IF(AND('Enrollment Form'!$C738=\"Enroll\",'Enrollment Form'!$B738=\"Subscriber\",'Enrollment Form'!$CX738=\"No\",'Enrollment Form'!$DR738=\"\"),\"N\",IF(AND('Enrollment Form'!$C738=\"Enroll\",'Enrollment Form'!$B738=\"Subscriber\",'Enrollment Form'!$CX738=\"Yes\"),\"-\",\"Y\")))))","v":""},{"$f":"IF($B731=\"N\",\"\",IF(AND('Enrollment Form'!$C738=\"ROC\",'Enrollment Form'!$DS738<>\"\"),\"Y\",IF(AND('Enrollment Form'!$C738=\"ROC\",'Enrollment Form'!$DS738=\"\"),\"N\",IF(AND('Enrollment Form'!$C738=\"Enroll\",'Enrollment Form'!$B738=\"Subscriber\",'Enrollment Form'!$CX738=\"No\",'Enrollment Form'!$DS738=\"\"),\"N\",IF(AND('Enrollment Form'!$C738=\"Enroll\",'Enrollment Form'!$B738=\"Subscriber\",'Enrollment Form'!$CX738=\"Yes\"),\"-\",\"Y\")))))","v":""},{"$f":"IF('Enrollment Form'!AH738=\"\",\"\",IF(ISERROR(SEARCH(\".\",'Enrollment Form'!AH738,SEARCH(\"@\",'Enrollment Form'!AH738))),\"N\",\"Y\"))","v":""},{"$f":"IF(OR($B731=\"N\",'Enrollment Form'!$G738=\"\"),\"\",IF('Enrollment Form'!$B738<>\"Subscriber\",\"-\",IF(COUNTIF('Enrollment Form'!$AV738:$AW738,\"Yes\")=2,\"N\",\"Y\")))","v":""},{"$f":"IF(OR('Enrollment Form'!$CJ738=\"\",'Enrollment Form'!$CJ738=\"No\"),\"-\",IF(AND('Enrollment Form'!$CJ738=\"Yes\",'Enrollment Form'!$CK738=\"\"),\"N\",\"Y\"))","v":"-"},{"$f":"IF(OR('Enrollment Form'!$CL738=\"\",'Enrollment Form'!$CL738=\"No\"),\"-\",IF(AND('Enrollment Form'!$CL738=\"Yes\",'Enrollment Form'!$CM738=\"\"),\"N\",\"Y\"))","v":"-"},{"$f":"IF(OR('Enrollment Form'!$CN738=\"\",'Enrollment Form'!$CN738=\"No\"),\"-\",IF(AND('Enrollment Form'!$CN738=\"Yes\",'Enrollment Form'!$CO738=\"\"),\"N\",\"Y\"))","v":"-"},{"$f":"IF(OR('Enrollment Form'!$CN738=\"\",'Enrollment Form'!$CN738=\"No\"),\"-\",IF(AND('Enrollment Form'!$CN738=\"Yes\",'Enrollment Form'!$CP738=\"\"),\"N\",\"Y\"))","v":"-"},{"$f":"IF('Enrollment Form'!B738<>\"Subscriber\",\"-\",IF(AND('Enrollment Form'!B738=\"Subscriber\",'Enrollment Form'!C738=\"Enroll\",'Enrollment Form'!AA738=\"\"),\"N\",\"Y\"))","v":"-"},{"$f":"IF(OR('Enrollment Form'!B738=\"Subscriber\",'Enrollment Form'!B738=\"\"),\"-\",IF('Enrollment Form'!BP738=\"\",\"N\",\"Y\"))","v":"-"},{"$f":"IF('Enrollment Form'!B738<>\"Subscriber\",\"-\",IF(AND('Enrollment Form'!B738=\"Subscriber\",'Enrollment Form'!G738=\"\"),\"N\",\"Y\"))","v":"-"},{"$f":"IF('Enrollment Form'!A738=\"\",\"\",IF('Enrollment Form'!B738=\"Subscriber\",\"-\",IF(AND('Enrollment Form'!B738<>\"Subscriber\",'Enrollment Form'!G738='Enrollment Form'!H738),\"N\",\"Y\")))","v":""},0]
[739,{"$f":"IF('Enrollment Form'!$A739<>\"\",\"Y\",\"N\")","v":"N"},{"$f":"IF(AND('Enrollment Form'!$B739=\"\",'Enrollment Form'!$C739<>\"\"),\"N\",IF($B732=\"N\",\"\",\"Y\"))","v":""},{"$f":"IF(OR($B732=\"N\",'Enrollment Form'!G739=\"\"),\"\",IF('Enrollment Form'!$B739<>\"Subscriber\",\"\",IF('Enrollment Form'!$G739='Enrollment Form'!$H739,\"Y\",\"N\")))","v":""},{"$f":"IF($B732=\"N\",\"\",IF(AND(COUNTIFS('Enrollment Form'!$H$11:$H$1000,'Enrollment Form'!$H739,'Enrollment Form'!$B$11:$B$1000,'Enrollment Form'!$B739)>1,'Enrollment Form'!$H739<>\"\"),\"N\",\"Y\"))","v":""},{"$f":"IF($B732=\"N\",\"\",IF(LEN('Enrollment Form'!$Y739)=0,\"\",IF(LEN('Enrollment Form'!$Y739)<>5,\"N\",\"Y\")))","v":""},{"$f":"IF($B732=\"N\",\"\",IF(LEN('Enrollment Form'!$AD739=0),\"\",IF(LEN('Enrollment Form'!$AD739)<>5,\"N\",\"Y\")))","v":""},{"$f":"IF($B732=\"N\",\"\",IF(LEN('Enrollment Form'!$BS739=0),\"\",IF(LEN('Enrollment Form'!$BS739)<>5,\"N\",\"Y\")))","v":""},{"$f":"IF($B732=\"N\",\"\",IF(LEN('Enrollment Form'!$AE739)=0,\"\",IF(LEN('Enrollment Form'!$AE739)<>10,\"N\",\"Y\")))","v":""},{"$f":"IF($B732=\"N\",\"\",IF(LEN('Enrollment Form'!$AF739)=0,\"\",IF(LEN('Enrollment Form'!$AF739)<>10,\"N\",\"Y\")))","v":""},{"$f":"IF('Enrollment Form'!$O739<>\"Graded\",\"-\",IF(AND('Enrollment Form'!$O739=\"Graded\",'Enrollment Form'!$AR739<>\"\"),\"Y\",\"N\"))","v":"-"},{"$f":"IF($B732=\"N\",\"\",IF(OR('Enrollment Form'!$B739<>\"Subscriber\",'Enrollment Form'!$C739=\"ROC\"),\"-\",IF(AND('Enrollment Form'!$B739=\"Subscriber\",'Enrollment Form'!$C739=\"Enroll\",'Enrollment Form'!$AJ739<>\"\"),\"Y\",\"N\")))","v":""},{"$f":"IF($B732=\"N\",\"\",IF(OR('Enrollment Form'!$B739<>\"Subscriber\",'Enrollment Form'!$C739=\"ROC\"),\"-\",IF(AND('Enrollment Form'!$B739=\"Subscriber\",'Enrollment Form'!$C739=\"Enroll\",'Enrollment Form'!$AK739<>\"\"),\"Y\",\"N\")))","v":""},{"$f":"IF($B732=\"N\",\"\",IF(OR('Enrollment Form'!$B739<>\"Subscriber\",'Enrollment Form'!$C739=\"ROC\"),\"-\",IF(AND('Enrollment Form'!$B739=\"Subscriber\",'Enrollment Form'!$C739=\"Enroll\",'Enrollment Form'!$AL739<>\"\"),\"Y\",\"N\")))","v":""},{"$f":"IF($B732=\"N\",\"\",IF(OR('Enrollment Form'!$B739<>\"Subscriber\",'Enrollment Form'!$C739=\"ROC\"),\"-\",IF(AND('Enrollment Form'!$B739=\"Subscriber\",'Enrollment Form'!$C739=\"Enroll\",'Enrollment Form'!$AP739<>\"\"),\"Y\",\"N\")))","v":""},{"$f":"IF($B732=\"N\",\"\",IF(OR('Enrollment Form'!$B739<>\"Subscriber\",'Enrollment Form'!$C739=\"ROC\"),\"-\",IF(AND('Enrollment Form'!$B739=\"Subscriber\",'Enrollment Form'!$C739=\"Enroll\",'Enrollment Form'!$AQ739<>\"\"),\"Y\",\"N\")))","v":""},{"$f":"IF($B732=\"N\",\"\",IF(OR('Enrollment Form'!$B739<>\"Subscriber\",'Enrollment Form'!$C739=\"ROC\"),\"-\",IF(AND('Enrollment Form'!$B739=\"Subscriber\",'Enrollment Form'!$C739=\"Enroll\",'Enrollment Form'!$AS739<>\"\"),\"Y\",\"N\")))","v":""},{"$f":"IF($B732=\"N\",\"\",IF($Q732=\"-\",\"-\",IF(AND($Q732=\"Y\",'Enrollment Form'!$AS739=\"No\"),\"-\",IF(AND($Q732=\"Y\",'Enrollment Form'!$AS739=\"Yes\",'Enrollment Form'!$AT739<>\"\"),\"Y\",\"N\"))))","v":""},{"$f":"IF($B732=\"N\",\"\",IF(OR('Enrollment Form'!$B739<>\"Subscriber\",'Enrollment Form'!$C739=\"ROC\"),\"-\",IF(AND('Enrollment Form'!$B739=\"Subscriber\",'Enrollment Form'!$C739=\"Enroll\",'Enrollment Form'!$CV739<>\"\"),\"Y\",\"N\")))","v":""},{"$f":"IF($B732=\"N\",\"\",IF($S732=\"-\",\"-\",IF(AND($S732=\"Y\",'Enrollment Form'!$CV739=\"No\"),\"-\",IF(AND($S732=\"Y\",'Enrollment Form'!$CV739=\"Yes\",'Enrollment Form'!$CW739<>\"\"),\"Y\",\"N\"))))","v":""},{"$f":"IF(OR('Enrollment Form'!$AY739=\"Yes\",'Enrollment Form'!$AY739=\"\"),\"-\",IF(OR(AND('Enrollment Form'!$AY739=\"No\",ISERROR(FIND(\"HMO\",VLOOKUP('Enrollment Form'!G739,'Enrollment Form'!H$11:J$1000,3,FALSE),1))=FALSE,COUNTA('Enrollment Form'!$AZ739:$BC739)=4),AND('Enrollment Form'!$AY739=\"No\",ISERROR(FIND(\"HMO\",VLOOKUP('Enrollment Form'!G739,'Enrollment Form'!H$11:J$1000,3,FALSE),1))=FALSE,COUNTA('Enrollment Form'!$BT739:$BW739)=4)),\"Y\",\"N\"))","v":"-"},{"$f":"IF($B732=\"N\",\"\",IF('Enrollment Form'!$B739=\"Subscriber\",\"-\",IF(COUNTA('Enrollment Form'!$BL739,'Enrollment Form'!$BN739)=2,\"Y\",\"N\")))","v":""},{"$f":"IF($B732=\"N\",\"\",IF(OR('Enrollment Form'!$AX739=\"\",'Enrollment Form'!$AX739=\"No\"),\"-\",IF(AND('Enrollment Form'!$AX739=\"Yes\",COUNTA('Enrollment Form'!$CR739)=1),\"Y\",\"N\")))","v":""},{"$f":"IF(OR('Enrollment Form'!$CR739=\"\",'Enrollment Form'!$CR739=\"No\"),\"-\",IF(COUNTA('Enrollment Form'!$CT739:$CU739)=2,\"Y\",\"N\"))","v":"-"},{"$f":"IF($B732=\"N\",\"\",IF(COUNTIF('Enrollment Form'!$DG739:$DP739,\"Other\")=COUNTA('Enrollment Form'!$DK739,'Enrollment Form'!$DH739,'Enrollment Form'!$DN739,'Enrollment Form'!$DQ739),\"Y\",\"N\"))","v":""},{"$f":"IF($B732=\"N\",\"\",IF(OR('Enrollment Form'!B739<>\"Subscriber\",'Enrollment Form'!C739=\"ROC\",COUNTIF('Enrollment Form'!AV739:AW739,\"Yes\")>=1),\"-\",IF(AND('Enrollment Form'!C739=\"Enroll\",COUNTIF('Enrollment Form'!AV739:AW739,\"No\")=2,'Enrollment Form'!AX739=\"\"),\"N\",\"Y\")))","v":""},{"$f":"IF(OR(B732=\"N\",'Enrollment Form'!B739<>\"Subscriber\",'Enrollment Form'!C739=\"ROC\",'Enrollment Form'!O739<>\"Multiple of Salary\"),\"-\",IF(COUNTA('Enrollment Form'!T739:U739)<2,\"N\",\"Y\"))","v":"-"},{"$f":"IF(B732=\"N\",\"\",IF(OR('Enrollment Form'!C739=\"ROC\",'Enrollment Form'!B739<>\"Subscriber\",'Enrollment Form'!O739=\"Waive\",'Enrollment Form'!O739=\"\"),\"-\",IF('Enrollment Form'!P739=\"\",\"N\",\"Y\")))","v":""},{"$f":"IF($B732=\"N\",\"\",IF(AND('Enrollment Form'!$C739=\"ROC\",'Enrollment Form'!$DR739<>\"\"),\"Y\",IF(AND('Enrollment Form'!$C739=\"ROC\",'Enrollment Form'!$DR739=\"\"),\"N\",IF(AND('Enrollment Form'!$C739=\"Enroll\",'Enrollment Form'!$B739=\"Subscriber\",'Enrollment Form'!$CX739=\"No\",'Enrollment Form'!$DR739=\"\"),\"N\",IF(AND('Enrollment Form'!$C739=\"Enroll\",'Enrollment Form'!$B739=\"Subscriber\",'Enrollment Form'!$CX739=\"Yes\"),\"-\",\"Y\")))))","v":""},{"$f":"IF($B732=\"N\",\"\",IF(AND('Enrollment Form'!$C739=\"ROC\",'Enrollment Form'!$DS739<>\"\"),\"Y\",IF(AND('Enrollment Form'!$C739=\"ROC\",'Enrollment Form'!$DS739=\"\"),\"N\",IF(AND('Enrollment Form'!$C739=\"Enroll\",'Enrollment Form'!$B739=\"Subscriber\",'Enrollment Form'!$CX739=\"No\",'Enrollment Form'!$DS739=\"\"),\"N\",IF(AND('Enrollment Form'!$C739=\"Enroll\",'Enrollment Form'!$B739=\"Subscriber\",'Enrollment Form'!$CX739=\"Yes\"),\"-\",\"Y\")))))","v":""},{"$f":"IF('Enrollment Form'!AH739=\"\",\"\",IF(ISERROR(SEARCH(\".\",'Enrollment Form'!AH739,SEARCH(\"@\",'Enrollment Form'!AH739))),\"N\",\"Y\"))","v":""},{"$f":"IF(OR($B732=\"N\",'Enrollment Form'!$G739=\"\"),\"\",IF('Enrollment Form'!$B739<>\"Subscriber\",\"-\",IF(COUNTIF('Enrollment Form'!$AV739:$AW739,\"Yes\")=2,\"N\",\"Y\")))","v":""},{"$f":"IF(OR('Enrollment Form'!$CJ739=\"\",'Enrollment Form'!$CJ739=\"No\"),\"-\",IF(AND('Enrollment Form'!$CJ739=\"Yes\",'Enrollment Form'!$CK739=\"\"),\"N\",\"Y\"))","v":"-"},{"$f":"IF(OR('Enrollment Form'!$CL739=\"\",'Enrollment Form'!$CL739=\"No\"),\"-\",IF(AND('Enrollment Form'!$CL739=\"Yes\",'Enrollment Form'!$CM739=\"\"),\"N\",\"Y\"))","v":"-"},{"$f":"IF(OR('Enrollment Form'!$CN739=\"\",'Enrollment Form'!$CN739=\"No\"),\"-\",IF(AND('Enrollment Form'!$CN739=\"Yes\",'Enrollment Form'!$CO739=\"\"),\"N\",\"Y\"))","v":"-"},{"$f":"IF(OR('Enrollment Form'!$CN739=\"\",'Enrollment Form'!$CN739=\"No\"),\"-\",IF(AND('Enrollment Form'!$CN739=\"Yes\",'Enrollment Form'!$CP739=\"\"),\"N\",\"Y\"))","v":"-"},{"$f":"IF('Enrollment Form'!B739<>\"Subscriber\",\"-\",IF(AND('Enrollment Form'!B739=\"Subscriber\",'Enrollment Form'!C739=\"Enroll\",'Enrollment Form'!AA739=\"\"),\"N\",\"Y\"))","v":"-"},{"$f":"IF(OR('Enrollment Form'!B739=\"Subscriber\",'Enrollment Form'!B739=\"\"),\"-\",IF('Enrollment Form'!BP739=\"\",\"N\",\"Y\"))","v":"-"},{"$f":"IF('Enrollment Form'!B739<>\"Subscriber\",\"-\",IF(AND('Enrollment Form'!B739=\"Subscriber\",'Enrollment Form'!G739=\"\"),\"N\",\"Y\"))","v":"-"},{"$f":"IF('Enrollment Form'!A739=\"\",\"\",IF('Enrollment Form'!B739=\"Subscriber\",\"-\",IF(AND('Enrollment Form'!B739<>\"Subscriber\",'Enrollment Form'!G739='Enrollment Form'!H739),\"N\",\"Y\")))","v":""},0]
[740,{"$f":"IF('Enrollment Form'!$A740<>\"\",\"Y\",\"N\")","v":"N"},{"$f":"IF(AND('Enrollment Form'!$B740=\"\",'Enrollment Form'!$C740<>\"\"),\"N\",IF($B733=\"N\",\"\",\"Y\"))","v":""},{"$f":"IF(OR($B733=\"N\",'Enrollment Form'!G740=\"\"),\"\",IF('Enrollment Form'!$B740<>\"Subscriber\",\"\",IF('Enrollment Form'!$G740='Enrollment Form'!$H740,\"Y\",\"N\")))","v":""},{"$f":"IF($B733=\"N\",\"\",IF(AND(COUNTIFS('Enrollment Form'!$H$11:$H$1000,'Enrollment Form'!$H740,'Enrollment Form'!$B$11:$B$1000,'Enrollment Form'!$B740)>1,'Enrollment Form'!$H740<>\"\"),\"N\",\"Y\"))","v":""},{"$f":"IF($B733=\"N\",\"\",IF(LEN('Enrollment Form'!$Y740)=0,\"\",IF(LEN('Enrollment Form'!$Y740)<>5,\"N\",\"Y\")))","v":""},{"$f":"IF($B733=\"N\",\"\",IF(LEN('Enrollment Form'!$AD740=0),\"\",IF(LEN('Enrollment Form'!$AD740)<>5,\"N\",\"Y\")))","v":""},{"$f":"IF($B733=\"N\",\"\",IF(LEN('Enrollment Form'!$BS740=0),\"\",IF(LEN('Enrollment Form'!$BS740)<>5,\"N\",\"Y\")))","v":""},{"$f":"IF($B733=\"N\",\"\",IF(LEN('Enrollment Form'!$AE740)=0,\"\",IF(LEN('Enrollment Form'!$AE740)<>10,\"N\",\"Y\")))","v":""},{"$f":"IF($B733=\"N\",\"\",IF(LEN('Enrollment Form'!$AF740)=0,\"\",IF(LEN('Enrollment Form'!$AF740)<>10,\"N\",\"Y\")))","v":""},{"$f":"IF('Enrollment Form'!$O740<>\"Graded\",\"-\",IF(AND('Enrollment Form'!$O740=\"Graded\",'Enrollment Form'!$AR740<>\"\"),\"Y\",\"N\"))","v":"-"},{"$f":"IF($B733=\"N\",\"\",IF(OR('Enrollment Form'!$B740<>\"Subscriber\",'Enrollment Form'!$C740=\"ROC\"),\"-\",IF(AND('Enrollment Form'!$B740=\"Subscriber\",'Enrollment Form'!$C740=\"Enroll\",'Enrollment Form'!$AJ740<>\"\"),\"Y\",\"N\")))","v":""},{"$f":"IF($B733=\"N\",\"\",IF(OR('Enrollment Form'!$B740<>\"Subscriber\",'Enrollment Form'!$C740=\"ROC\"),\"-\",IF(AND('Enrollment Form'!$B740=\"Subscriber\",'Enrollment Form'!$C740=\"Enroll\",'Enrollment Form'!$AK740<>\"\"),\"Y\",\"N\")))","v":""},{"$f":"IF($B733=\"N\",\"\",IF(OR('Enrollment Form'!$B740<>\"Subscriber\",'Enrollment Form'!$C740=\"ROC\"),\"-\",IF(AND('Enrollment Form'!$B740=\"Subscriber\",'Enrollment Form'!$C740=\"Enroll\",'Enrollment Form'!$AL740<>\"\"),\"Y\",\"N\")))","v":""},{"$f":"IF($B733=\"N\",\"\",IF(OR('Enrollment Form'!$B740<>\"Subscriber\",'Enrollment Form'!$C740=\"ROC\"),\"-\",IF(AND('Enrollment Form'!$B740=\"Subscriber\",'Enrollment Form'!$C740=\"Enroll\",'Enrollment Form'!$AP740<>\"\"),\"Y\",\"N\")))","v":""},{"$f":"IF($B733=\"N\",\"\",IF(OR('Enrollment Form'!$B740<>\"Subscriber\",'Enrollment Form'!$C740=\"ROC\"),\"-\",IF(AND('Enrollment Form'!$B740=\"Subscriber\",'Enrollment Form'!$C740=\"Enroll\",'Enrollment Form'!$AQ740<>\"\"),\"Y\",\"N\")))","v":""},{"$f":"IF($B733=\"N\",\"\",IF(OR('Enrollment Form'!$B740<>\"Subscriber\",'Enrollment Form'!$C740=\"ROC\"),\"-\",IF(AND('Enrollment Form'!$B740=\"Subscriber\",'Enrollment Form'!$C740=\"Enroll\",'Enrollment Form'!$AS740<>\"\"),\"Y\",\"N\")))","v":""},{"$f":"IF($B733=\"N\",\"\",IF($Q733=\"-\",\"-\",IF(AND($Q733=\"Y\",'Enrollment Form'!$AS740=\"No\"),\"-\",IF(AND($Q733=\"Y\",'Enrollment Form'!$AS740=\"Yes\",'Enrollment Form'!$AT740<>\"\"),\"Y\",\"N\"))))","v":""},{"$f":"IF($B733=\"N\",\"\",IF(OR('Enrollment Form'!$B740<>\"Subscriber\",'Enrollment Form'!$C740=\"ROC\"),\"-\",IF(AND('Enrollment Form'!$B740=\"Subscriber\",'Enrollment Form'!$C740=\"Enroll\",'Enrollment Form'!$CV740<>\"\"),\"Y\",\"N\")))","v":""},{"$f":"IF($B733=\"N\",\"\",IF($S733=\"-\",\"-\",IF(AND($S733=\"Y\",'Enrollment Form'!$CV740=\"No\"),\"-\",IF(AND($S733=\"Y\",'Enrollment Form'!$CV740=\"Yes\",'Enrollment Form'!$CW740<>\"\"),\"Y\",\"N\"))))","v":""},{"$f":"IF(OR('Enrollment Form'!$AY740=\"Yes\",'Enrollment Form'!$AY740=\"\"),\"-\",IF(OR(AND('Enrollment Form'!$AY740=\"No\",ISERROR(FIND(\"HMO\",VLOOKUP('Enrollment Form'!G740,'Enrollment Form'!H$11:J$1000,3,FALSE),1))=FALSE,COUNTA('Enrollment Form'!$AZ740:$BC740)=4),AND('Enrollment Form'!$AY740=\"No\",ISERROR(FIND(\"HMO\",VLOOKUP('Enrollment Form'!G740,'Enrollment Form'!H$11:J$1000,3,FALSE),1))=FALSE,COUNTA('Enrollment Form'!$BT740:$BW740)=4)),\"Y\",\"N\"))","v":"-"},{"$f":"IF($B733=\"N\",\"\",IF('Enrollment Form'!$B740=\"Subscriber\",\"-\",IF(COUNTA('Enrollment Form'!$BL740,'Enrollment Form'!$BN740)=2,\"Y\",\"N\")))","v":""},{"$f":"IF($B733=\"N\",\"\",IF(OR('Enrollment Form'!$AX740=\"\",'Enrollment Form'!$AX740=\"No\"),\"-\",IF(AND('Enrollment Form'!$AX740=\"Yes\",COUNTA('Enrollment Form'!$CR740)=1),\"Y\",\"N\")))","v":""},{"$f":"IF(OR('Enrollment Form'!$CR740=\"\",'Enrollment Form'!$CR740=\"No\"),\"-\",IF(COUNTA('Enrollment Form'!$CT740:$CU740)=2,\"Y\",\"N\"))","v":"-"},{"$f":"IF($B733=\"N\",\"\",IF(COUNTIF('Enrollment Form'!$DG740:$DP740,\"Other\")=COUNTA('Enrollment Form'!$DK740,'Enrollment Form'!$DH740,'Enrollment Form'!$DN740,'Enrollment Form'!$DQ740),\"Y\",\"N\"))","v":""},{"$f":"IF($B733=\"N\",\"\",IF(OR('Enrollment Form'!B740<>\"Subscriber\",'Enrollment Form'!C740=\"ROC\",COUNTIF('Enrollment Form'!AV740:AW740,\"Yes\")>=1),\"-\",IF(AND('Enrollment Form'!C740=\"Enroll\",COUNTIF('Enrollment Form'!AV740:AW740,\"No\")=2,'Enrollment Form'!AX740=\"\"),\"N\",\"Y\")))","v":""},{"$f":"IF(OR(B733=\"N\",'Enrollment Form'!B740<>\"Subscriber\",'Enrollment Form'!C740=\"ROC\",'Enrollment Form'!O740<>\"Multiple of Salary\"),\"-\",IF(COUNTA('Enrollment Form'!T740:U740)<2,\"N\",\"Y\"))","v":"-"},{"$f":"IF(B733=\"N\",\"\",IF(OR('Enrollment Form'!C740=\"ROC\",'Enrollment Form'!B740<>\"Subscriber\",'Enrollment Form'!O740=\"Waive\",'Enrollment Form'!O740=\"\"),\"-\",IF('Enrollment Form'!P740=\"\",\"N\",\"Y\")))","v":""},{"$f":"IF($B733=\"N\",\"\",IF(AND('Enrollment Form'!$C740=\"ROC\",'Enrollment Form'!$DR740<>\"\"),\"Y\",IF(AND('Enrollment Form'!$C740=\"ROC\",'Enrollment Form'!$DR740=\"\"),\"N\",IF(AND('Enrollment Form'!$C740=\"Enroll\",'Enrollment Form'!$B740=\"Subscriber\",'Enrollment Form'!$CX740=\"No\",'Enrollment Form'!$DR740=\"\"),\"N\",IF(AND('Enrollment Form'!$C740=\"Enroll\",'Enrollment Form'!$B740=\"Subscriber\",'Enrollment Form'!$CX740=\"Yes\"),\"-\",\"Y\")))))","v":""},{"$f":"IF($B733=\"N\",\"\",IF(AND('Enrollment Form'!$C740=\"ROC\",'Enrollment Form'!$DS740<>\"\"),\"Y\",IF(AND('Enrollment Form'!$C740=\"ROC\",'Enrollment Form'!$DS740=\"\"),\"N\",IF(AND('Enrollment Form'!$C740=\"Enroll\",'Enrollment Form'!$B740=\"Subscriber\",'Enrollment Form'!$CX740=\"No\",'Enrollment Form'!$DS740=\"\"),\"N\",IF(AND('Enrollment Form'!$C740=\"Enroll\",'Enrollment Form'!$B740=\"Subscriber\",'Enrollment Form'!$CX740=\"Yes\"),\"-\",\"Y\")))))","v":""},{"$f":"IF('Enrollment Form'!AH740=\"\",\"\",IF(ISERROR(SEARCH(\".\",'Enrollment Form'!AH740,SEARCH(\"@\",'Enrollment Form'!AH740))),\"N\",\"Y\"))","v":""},{"$f":"IF(OR($B733=\"N\",'Enrollment Form'!$G740=\"\"),\"\",IF('Enrollment Form'!$B740<>\"Subscriber\",\"-\",IF(COUNTIF('Enrollment Form'!$AV740:$AW740,\"Yes\")=2,\"N\",\"Y\")))","v":""},{"$f":"IF(OR('Enrollment Form'!$CJ740=\"\",'Enrollment Form'!$CJ740=\"No\"),\"-\",IF(AND('Enrollment Form'!$CJ740=\"Yes\",'Enrollment Form'!$CK740=\"\"),\"N\",\"Y\"))","v":"-"},{"$f":"IF(OR('Enrollment Form'!$CL740=\"\",'Enrollment Form'!$CL740=\"No\"),\"-\",IF(AND('Enrollment Form'!$CL740=\"Yes\",'Enrollment Form'!$CM740=\"\"),\"N\",\"Y\"))","v":"-"},{"$f":"IF(OR('Enrollment Form'!$CN740=\"\",'Enrollment Form'!$CN740=\"No\"),\"-\",IF(AND('Enrollment Form'!$CN740=\"Yes\",'Enrollment Form'!$CO740=\"\"),\"N\",\"Y\"))","v":"-"},{"$f":"IF(OR('Enrollment Form'!$CN740=\"\",'Enrollment Form'!$CN740=\"No\"),\"-\",IF(AND('Enrollment Form'!$CN740=\"Yes\",'Enrollment Form'!$CP740=\"\"),\"N\",\"Y\"))","v":"-"},{"$f":"IF('Enrollment Form'!B740<>\"Subscriber\",\"-\",IF(AND('Enrollment Form'!B740=\"Subscriber\",'Enrollment Form'!C740=\"Enroll\",'Enrollment Form'!AA740=\"\"),\"N\",\"Y\"))","v":"-"},{"$f":"IF(OR('Enrollment Form'!B740=\"Subscriber\",'Enrollment Form'!B740=\"\"),\"-\",IF('Enrollment Form'!BP740=\"\",\"N\",\"Y\"))","v":"-"},{"$f":"IF('Enrollment Form'!B740<>\"Subscriber\",\"-\",IF(AND('Enrollment Form'!B740=\"Subscriber\",'Enrollment Form'!G740=\"\"),\"N\",\"Y\"))","v":"-"},{"$f":"IF('Enrollment Form'!A740=\"\",\"\",IF('Enrollment Form'!B740=\"Subscriber\",\"-\",IF(AND('Enrollment Form'!B740<>\"Subscriber\",'Enrollment Form'!G740='Enrollment Form'!H740),\"N\",\"Y\")))","v":""},0]
[741,{"$f":"IF('Enrollment Form'!$A741<>\"\",\"Y\",\"N\")","v":"N"},{"$f":"IF(AND('Enrollment Form'!$B741=\"\",'Enrollment Form'!$C741<>\"\"),\"N\",IF($B734=\"N\",\"\",\"Y\"))","v":""},{"$f":"IF(OR($B734=\"N\",'Enrollment Form'!G741=\"\"),\"\",IF('Enrollment Form'!$B741<>\"Subscriber\",\"\",IF('Enrollment Form'!$G741='Enrollment Form'!$H741,\"Y\",\"N\")))","v":""},{"$f":"IF($B734=\"N\",\"\",IF(AND(COUNTIFS('Enrollment Form'!$H$11:$H$1000,'Enrollment Form'!$H741,'Enrollment Form'!$B$11:$B$1000,'Enrollment Form'!$B741)>1,'Enrollment Form'!$H741<>\"\"),\"N\",\"Y\"))","v":""},{"$f":"IF($B734=\"N\",\"\",IF(LEN('Enrollment Form'!$Y741)=0,\"\",IF(LEN('Enrollment Form'!$Y741)<>5,\"N\",\"Y\")))","v":""},{"$f":"IF($B734=\"N\",\"\",IF(LEN('Enrollment Form'!$AD741=0),\"\",IF(LEN('Enrollment Form'!$AD741)<>5,\"N\",\"Y\")))","v":""},{"$f":"IF($B734=\"N\",\"\",IF(LEN('Enrollment Form'!$BS741=0),\"\",IF(LEN('Enrollment Form'!$BS741)<>5,\"N\",\"Y\")))","v":""},{"$f":"IF($B734=\"N\",\"\",IF(LEN('Enrollment Form'!$AE741)=0,\"\",IF(LEN('Enrollment Form'!$AE741)<>10,\"N\",\"Y\")))","v":""},{"$f":"IF($B734=\"N\",\"\",IF(LEN('Enrollment Form'!$AF741)=0,\"\",IF(LEN('Enrollment Form'!$AF741)<>10,\"N\",\"Y\")))","v":""},{"$f":"IF('Enrollment Form'!$O741<>\"Graded\",\"-\",IF(AND('Enrollment Form'!$O741=\"Graded\",'Enrollment Form'!$AR741<>\"\"),\"Y\",\"N\"))","v":"-"},{"$f":"IF($B734=\"N\",\"\",IF(OR('Enrollment Form'!$B741<>\"Subscriber\",'Enrollment Form'!$C741=\"ROC\"),\"-\",IF(AND('Enrollment Form'!$B741=\"Subscriber\",'Enrollment Form'!$C741=\"Enroll\",'Enrollment Form'!$AJ741<>\"\"),\"Y\",\"N\")))","v":""},{"$f":"IF($B734=\"N\",\"\",IF(OR('Enrollment Form'!$B741<>\"Subscriber\",'Enrollment Form'!$C741=\"ROC\"),\"-\",IF(AND('Enrollment Form'!$B741=\"Subscriber\",'Enrollment Form'!$C741=\"Enroll\",'Enrollment Form'!$AK741<>\"\"),\"Y\",\"N\")))","v":""},{"$f":"IF($B734=\"N\",\"\",IF(OR('Enrollment Form'!$B741<>\"Subscriber\",'Enrollment Form'!$C741=\"ROC\"),\"-\",IF(AND('Enrollment Form'!$B741=\"Subscriber\",'Enrollment Form'!$C741=\"Enroll\",'Enrollment Form'!$AL741<>\"\"),\"Y\",\"N\")))","v":""},{"$f":"IF($B734=\"N\",\"\",IF(OR('Enrollment Form'!$B741<>\"Subscriber\",'Enrollment Form'!$C741=\"ROC\"),\"-\",IF(AND('Enrollment Form'!$B741=\"Subscriber\",'Enrollment Form'!$C741=\"Enroll\",'Enrollment Form'!$AP741<>\"\"),\"Y\",\"N\")))","v":""},{"$f":"IF($B734=\"N\",\"\",IF(OR('Enrollment Form'!$B741<>\"Subscriber\",'Enrollment Form'!$C741=\"ROC\"),\"-\",IF(AND('Enrollment Form'!$B741=\"Subscriber\",'Enrollment Form'!$C741=\"Enroll\",'Enrollment Form'!$AQ741<>\"\"),\"Y\",\"N\")))","v":""},{"$f":"IF($B734=\"N\",\"\",IF(OR('Enrollment Form'!$B741<>\"Subscriber\",'Enrollment Form'!$C741=\"ROC\"),\"-\",IF(AND('Enrollment Form'!$B741=\"Subscriber\",'Enrollment Form'!$C741=\"Enroll\",'Enrollment Form'!$AS741<>\"\"),\"Y\",\"N\")))","v":""},{"$f":"IF($B734=\"N\",\"\",IF($Q734=\"-\",\"-\",IF(AND($Q734=\"Y\",'Enrollment Form'!$AS741=\"No\"),\"-\",IF(AND($Q734=\"Y\",'Enrollment Form'!$AS741=\"Yes\",'Enrollment Form'!$AT741<>\"\"),\"Y\",\"N\"))))","v":""},{"$f":"IF($B734=\"N\",\"\",IF(OR('Enrollment Form'!$B741<>\"Subscriber\",'Enrollment Form'!$C741=\"ROC\"),\"-\",IF(AND('Enrollment Form'!$B741=\"Subscriber\",'Enrollment Form'!$C741=\"Enroll\",'Enrollment Form'!$CV741<>\"\"),\"Y\",\"N\")))","v":""},{"$f":"IF($B734=\"N\",\"\",IF($S734=\"-\",\"-\",IF(AND($S734=\"Y\",'Enrollment Form'!$CV741=\"No\"),\"-\",IF(AND($S734=\"Y\",'Enrollment Form'!$CV741=\"Yes\",'Enrollment Form'!$CW741<>\"\"),\"Y\",\"N\"))))","v":""},{"$f":"IF(OR('Enrollment Form'!$AY741=\"Yes\",'Enrollment Form'!$AY741=\"\"),\"-\",IF(OR(AND('Enrollment Form'!$AY741=\"No\",ISERROR(FIND(\"HMO\",VLOOKUP('Enrollment Form'!G741,'Enrollment Form'!H$11:J$1000,3,FALSE),1))=FALSE,COUNTA('Enrollment Form'!$AZ741:$BC741)=4),AND('Enrollment Form'!$AY741=\"No\",ISERROR(FIND(\"HMO\",VLOOKUP('Enrollment Form'!G741,'Enrollment Form'!H$11:J$1000,3,FALSE),1))=FALSE,COUNTA('Enrollment Form'!$BT741:$BW741)=4)),\"Y\",\"N\"))","v":"-"},{"$f":"IF($B734=\"N\",\"\",IF('Enrollment Form'!$B741=\"Subscriber\",\"-\",IF(COUNTA('Enrollment Form'!$BL741,'Enrollment Form'!$BN741)=2,\"Y\",\"N\")))","v":""},{"$f":"IF($B734=\"N\",\"\",IF(OR('Enrollment Form'!$AX741=\"\",'Enrollment Form'!$AX741=\"No\"),\"-\",IF(AND('Enrollment Form'!$AX741=\"Yes\",COUNTA('Enrollment Form'!$CR741)=1),\"Y\",\"N\")))","v":""},{"$f":"IF(OR('Enrollment Form'!$CR741=\"\",'Enrollment Form'!$CR741=\"No\"),\"-\",IF(COUNTA('Enrollment Form'!$CT741:$CU741)=2,\"Y\",\"N\"))","v":"-"},{"$f":"IF($B734=\"N\",\"\",IF(COUNTIF('Enrollment Form'!$DG741:$DP741,\"Other\")=COUNTA('Enrollment Form'!$DK741,'Enrollment Form'!$DH741,'Enrollment Form'!$DN741,'Enrollment Form'!$DQ741),\"Y\",\"N\"))","v":""},{"$f":"IF($B734=\"N\",\"\",IF(OR('Enrollment Form'!B741<>\"Subscriber\",'Enrollment Form'!C741=\"ROC\",COUNTIF('Enrollment Form'!AV741:AW741,\"Yes\")>=1),\"-\",IF(AND('Enrollment Form'!C741=\"Enroll\",COUNTIF('Enrollment Form'!AV741:AW741,\"No\")=2,'Enrollment Form'!AX741=\"\"),\"N\",\"Y\")))","v":""},{"$f":"IF(OR(B734=\"N\",'Enrollment Form'!B741<>\"Subscriber\",'Enrollment Form'!C741=\"ROC\",'Enrollment Form'!O741<>\"Multiple of Salary\"),\"-\",IF(COUNTA('Enrollment Form'!T741:U741)<2,\"N\",\"Y\"))","v":"-"},{"$f":"IF(B734=\"N\",\"\",IF(OR('Enrollment Form'!C741=\"ROC\",'Enrollment Form'!B741<>\"Subscriber\",'Enrollment Form'!O741=\"Waive\",'Enrollment Form'!O741=\"\"),\"-\",IF('Enrollment Form'!P741=\"\",\"N\",\"Y\")))","v":""},{"$f":"IF($B734=\"N\",\"\",IF(AND('Enrollment Form'!$C741=\"ROC\",'Enrollment Form'!$DR741<>\"\"),\"Y\",IF(AND('Enrollment Form'!$C741=\"ROC\",'Enrollment Form'!$DR741=\"\"),\"N\",IF(AND('Enrollment Form'!$C741=\"Enroll\",'Enrollment Form'!$B741=\"Subscriber\",'Enrollment Form'!$CX741=\"No\",'Enrollment Form'!$DR741=\"\"),\"N\",IF(AND('Enrollment Form'!$C741=\"Enroll\",'Enrollment Form'!$B741=\"Subscriber\",'Enrollment Form'!$CX741=\"Yes\"),\"-\",\"Y\")))))","v":""},{"$f":"IF($B734=\"N\",\"\",IF(AND('Enrollment Form'!$C741=\"ROC\",'Enrollment Form'!$DS741<>\"\"),\"Y\",IF(AND('Enrollment Form'!$C741=\"ROC\",'Enrollment Form'!$DS741=\"\"),\"N\",IF(AND('Enrollment Form'!$C741=\"Enroll\",'Enrollment Form'!$B741=\"Subscriber\",'Enrollment Form'!$CX741=\"No\",'Enrollment Form'!$DS741=\"\"),\"N\",IF(AND('Enrollment Form'!$C741=\"Enroll\",'Enrollment Form'!$B741=\"Subscriber\",'Enrollment Form'!$CX741=\"Yes\"),\"-\",\"Y\")))))","v":""},{"$f":"IF('Enrollment Form'!AH741=\"\",\"\",IF(ISERROR(SEARCH(\".\",'Enrollment Form'!AH741,SEARCH(\"@\",'Enrollment Form'!AH741))),\"N\",\"Y\"))","v":""},{"$f":"IF(OR($B734=\"N\",'Enrollment Form'!$G741=\"\"),\"\",IF('Enrollment Form'!$B741<>\"Subscriber\",\"-\",IF(COUNTIF('Enrollment Form'!$AV741:$AW741,\"Yes\")=2,\"N\",\"Y\")))","v":""},{"$f":"IF(OR('Enrollment Form'!$CJ741=\"\",'Enrollment Form'!$CJ741=\"No\"),\"-\",IF(AND('Enrollment Form'!$CJ741=\"Yes\",'Enrollment Form'!$CK741=\"\"),\"N\",\"Y\"))","v":"-"},{"$f":"IF(OR('Enrollment Form'!$CL741=\"\",'Enrollment Form'!$CL741=\"No\"),\"-\",IF(AND('Enrollment Form'!$CL741=\"Yes\",'Enrollment Form'!$CM741=\"\"),\"N\",\"Y\"))","v":"-"},{"$f":"IF(OR('Enrollment Form'!$CN741=\"\",'Enrollment Form'!$CN741=\"No\"),\"-\",IF(AND('Enrollment Form'!$CN741=\"Yes\",'Enrollment Form'!$CO741=\"\"),\"N\",\"Y\"))","v":"-"},{"$f":"IF(OR('Enrollment Form'!$CN741=\"\",'Enrollment Form'!$CN741=\"No\"),\"-\",IF(AND('Enrollment Form'!$CN741=\"Yes\",'Enrollment Form'!$CP741=\"\"),\"N\",\"Y\"))","v":"-"},{"$f":"IF('Enrollment Form'!B741<>\"Subscriber\",\"-\",IF(AND('Enrollment Form'!B741=\"Subscriber\",'Enrollment Form'!C741=\"Enroll\",'Enrollment Form'!AA741=\"\"),\"N\",\"Y\"))","v":"-"},{"$f":"IF(OR('Enrollment Form'!B741=\"Subscriber\",'Enrollment Form'!B741=\"\"),\"-\",IF('Enrollment Form'!BP741=\"\",\"N\",\"Y\"))","v":"-"},{"$f":"IF('Enrollment Form'!B741<>\"Subscriber\",\"-\",IF(AND('Enrollment Form'!B741=\"Subscriber\",'Enrollment Form'!G741=\"\"),\"N\",\"Y\"))","v":"-"},{"$f":"IF('Enrollment Form'!A741=\"\",\"\",IF('Enrollment Form'!B741=\"Subscriber\",\"-\",IF(AND('Enrollment Form'!B741<>\"Subscriber\",'Enrollment Form'!G741='Enrollment Form'!H741),\"N\",\"Y\")))","v":""},0]
[742,{"$f":"IF('Enrollment Form'!$A742<>\"\",\"Y\",\"N\")","v":"N"},{"$f":"IF(AND('Enrollment Form'!$B742=\"\",'Enrollment Form'!$C742<>\"\"),\"N\",IF($B735=\"N\",\"\",\"Y\"))","v":""},{"$f":"IF(OR($B735=\"N\",'Enrollment Form'!G742=\"\"),\"\",IF('Enrollment Form'!$B742<>\"Subscriber\",\"\",IF('Enrollment Form'!$G742='Enrollment Form'!$H742,\"Y\",\"N\")))","v":""},{"$f":"IF($B735=\"N\",\"\",IF(AND(COUNTIFS('Enrollment Form'!$H$11:$H$1000,'Enrollment Form'!$H742,'Enrollment Form'!$B$11:$B$1000,'Enrollment Form'!$B742)>1,'Enrollment Form'!$H742<>\"\"),\"N\",\"Y\"))","v":""},{"$f":"IF($B735=\"N\",\"\",IF(LEN('Enrollment Form'!$Y742)=0,\"\",IF(LEN('Enrollment Form'!$Y742)<>5,\"N\",\"Y\")))","v":""},{"$f":"IF($B735=\"N\",\"\",IF(LEN('Enrollment Form'!$AD742=0),\"\",IF(LEN('Enrollment Form'!$AD742)<>5,\"N\",\"Y\")))","v":""},{"$f":"IF($B735=\"N\",\"\",IF(LEN('Enrollment Form'!$BS742=0),\"\",IF(LEN('Enrollment Form'!$BS742)<>5,\"N\",\"Y\")))","v":""},{"$f":"IF($B735=\"N\",\"\",IF(LEN('Enrollment Form'!$AE742)=0,\"\",IF(LEN('Enrollment Form'!$AE742)<>10,\"N\",\"Y\")))","v":""},{"$f":"IF($B735=\"N\",\"\",IF(LEN('Enrollment Form'!$AF742)=0,\"\",IF(LEN('Enrollment Form'!$AF742)<>10,\"N\",\"Y\")))","v":""},{"$f":"IF('Enrollment Form'!$O742<>\"Graded\",\"-\",IF(AND('Enrollment Form'!$O742=\"Graded\",'Enrollment Form'!$AR742<>\"\"),\"Y\",\"N\"))","v":"-"},{"$f":"IF($B735=\"N\",\"\",IF(OR('Enrollment Form'!$B742<>\"Subscriber\",'Enrollment Form'!$C742=\"ROC\"),\"-\",IF(AND('Enrollment Form'!$B742=\"Subscriber\",'Enrollment Form'!$C742=\"Enroll\",'Enrollment Form'!$AJ742<>\"\"),\"Y\",\"N\")))","v":""},{"$f":"IF($B735=\"N\",\"\",IF(OR('Enrollment Form'!$B742<>\"Subscriber\",'Enrollment Form'!$C742=\"ROC\"),\"-\",IF(AND('Enrollment Form'!$B742=\"Subscriber\",'Enrollment Form'!$C742=\"Enroll\",'Enrollment Form'!$AK742<>\"\"),\"Y\",\"N\")))","v":""},{"$f":"IF($B735=\"N\",\"\",IF(OR('Enrollment Form'!$B742<>\"Subscriber\",'Enrollment Form'!$C742=\"ROC\"),\"-\",IF(AND('Enrollment Form'!$B742=\"Subscriber\",'Enrollment Form'!$C742=\"Enroll\",'Enrollment Form'!$AL742<>\"\"),\"Y\",\"N\")))","v":""},{"$f":"IF($B735=\"N\",\"\",IF(OR('Enrollment Form'!$B742<>\"Subscriber\",'Enrollment Form'!$C742=\"ROC\"),\"-\",IF(AND('Enrollment Form'!$B742=\"Subscriber\",'Enrollment Form'!$C742=\"Enroll\",'Enrollment Form'!$AP742<>\"\"),\"Y\",\"N\")))","v":""},{"$f":"IF($B735=\"N\",\"\",IF(OR('Enrollment Form'!$B742<>\"Subscriber\",'Enrollment Form'!$C742=\"ROC\"),\"-\",IF(AND('Enrollment Form'!$B742=\"Subscriber\",'Enrollment Form'!$C742=\"Enroll\",'Enrollment Form'!$AQ742<>\"\"),\"Y\",\"N\")))","v":""},{"$f":"IF($B735=\"N\",\"\",IF(OR('Enrollment Form'!$B742<>\"Subscriber\",'Enrollment Form'!$C742=\"ROC\"),\"-\",IF(AND('Enrollment Form'!$B742=\"Subscriber\",'Enrollment Form'!$C742=\"Enroll\",'Enrollment Form'!$AS742<>\"\"),\"Y\",\"N\")))","v":""},{"$f":"IF($B735=\"N\",\"\",IF($Q735=\"-\",\"-\",IF(AND($Q735=\"Y\",'Enrollment Form'!$AS742=\"No\"),\"-\",IF(AND($Q735=\"Y\",'Enrollment Form'!$AS742=\"Yes\",'Enrollment Form'!$AT742<>\"\"),\"Y\",\"N\"))))","v":""},{"$f":"IF($B735=\"N\",\"\",IF(OR('Enrollment Form'!$B742<>\"Subscriber\",'Enrollment Form'!$C742=\"ROC\"),\"-\",IF(AND('Enrollment Form'!$B742=\"Subscriber\",'Enrollment Form'!$C742=\"Enroll\",'Enrollment Form'!$CV742<>\"\"),\"Y\",\"N\")))","v":""},{"$f":"IF($B735=\"N\",\"\",IF($S735=\"-\",\"-\",IF(AND($S735=\"Y\",'Enrollment Form'!$CV742=\"No\"),\"-\",IF(AND($S735=\"Y\",'Enrollment Form'!$CV742=\"Yes\",'Enrollment Form'!$CW742<>\"\"),\"Y\",\"N\"))))","v":""},{"$f":"IF(OR('Enrollment Form'!$AY742=\"Yes\",'Enrollment Form'!$AY742=\"\"),\"-\",IF(OR(AND('Enrollment Form'!$AY742=\"No\",ISERROR(FIND(\"HMO\",VLOOKUP('Enrollment Form'!G742,'Enrollment Form'!H$11:J$1000,3,FALSE),1))=FALSE,COUNTA('Enrollment Form'!$AZ742:$BC742)=4),AND('Enrollment Form'!$AY742=\"No\",ISERROR(FIND(\"HMO\",VLOOKUP('Enrollment Form'!G742,'Enrollment Form'!H$11:J$1000,3,FALSE),1))=FALSE,COUNTA('Enrollment Form'!$BT742:$BW742)=4)),\"Y\",\"N\"))","v":"-"},{"$f":"IF($B735=\"N\",\"\",IF('Enrollment Form'!$B742=\"Subscriber\",\"-\",IF(COUNTA('Enrollment Form'!$BL742,'Enrollment Form'!$BN742)=2,\"Y\",\"N\")))","v":""},{"$f":"IF($B735=\"N\",\"\",IF(OR('Enrollment Form'!$AX742=\"\",'Enrollment Form'!$AX742=\"No\"),\"-\",IF(AND('Enrollment Form'!$AX742=\"Yes\",COUNTA('Enrollment Form'!$CR742)=1),\"Y\",\"N\")))","v":""},{"$f":"IF(OR('Enrollment Form'!$CR742=\"\",'Enrollment Form'!$CR742=\"No\"),\"-\",IF(COUNTA('Enrollment Form'!$CT742:$CU742)=2,\"Y\",\"N\"))","v":"-"},{"$f":"IF($B735=\"N\",\"\",IF(COUNTIF('Enrollment Form'!$DG742:$DP742,\"Other\")=COUNTA('Enrollment Form'!$DK742,'Enrollment Form'!$DH742,'Enrollment Form'!$DN742,'Enrollment Form'!$DQ742),\"Y\",\"N\"))","v":""},{"$f":"IF($B735=\"N\",\"\",IF(OR('Enrollment Form'!B742<>\"Subscriber\",'Enrollment Form'!C742=\"ROC\",COUNTIF('Enrollment Form'!AV742:AW742,\"Yes\")>=1),\"-\",IF(AND('Enrollment Form'!C742=\"Enroll\",COUNTIF('Enrollment Form'!AV742:AW742,\"No\")=2,'Enrollment Form'!AX742=\"\"),\"N\",\"Y\")))","v":""},{"$f":"IF(OR(B735=\"N\",'Enrollment Form'!B742<>\"Subscriber\",'Enrollment Form'!C742=\"ROC\",'Enrollment Form'!O742<>\"Multiple of Salary\"),\"-\",IF(COUNTA('Enrollment Form'!T742:U742)<2,\"N\",\"Y\"))","v":"-"},{"$f":"IF(B735=\"N\",\"\",IF(OR('Enrollment Form'!C742=\"ROC\",'Enrollment Form'!B742<>\"Subscriber\",'Enrollment Form'!O742=\"Waive\",'Enrollment Form'!O742=\"\"),\"-\",IF('Enrollment Form'!P742=\"\",\"N\",\"Y\")))","v":""},{"$f":"IF($B735=\"N\",\"\",IF(AND('Enrollment Form'!$C742=\"ROC\",'Enrollment Form'!$DR742<>\"\"),\"Y\",IF(AND('Enrollment Form'!$C742=\"ROC\",'Enrollment Form'!$DR742=\"\"),\"N\",IF(AND('Enrollment Form'!$C742=\"Enroll\",'Enrollment Form'!$B742=\"Subscriber\",'Enrollment Form'!$CX742=\"No\",'Enrollment Form'!$DR742=\"\"),\"N\",IF(AND('Enrollment Form'!$C742=\"Enroll\",'Enrollment Form'!$B742=\"Subscriber\",'Enrollment Form'!$CX742=\"Yes\"),\"-\",\"Y\")))))","v":""},{"$f":"IF($B735=\"N\",\"\",IF(AND('Enrollment Form'!$C742=\"ROC\",'Enrollment Form'!$DS742<>\"\"),\"Y\",IF(AND('Enrollment Form'!$C742=\"ROC\",'Enrollment Form'!$DS742=\"\"),\"N\",IF(AND('Enrollment Form'!$C742=\"Enroll\",'Enrollment Form'!$B742=\"Subscriber\",'Enrollment Form'!$CX742=\"No\",'Enrollment Form'!$DS742=\"\"),\"N\",IF(AND('Enrollment Form'!$C742=\"Enroll\",'Enrollment Form'!$B742=\"Subscriber\",'Enrollment Form'!$CX742=\"Yes\"),\"-\",\"Y\")))))","v":""},{"$f":"IF('Enrollment Form'!AH742=\"\",\"\",IF(ISERROR(SEARCH(\".\",'Enrollment Form'!AH742,SEARCH(\"@\",'Enrollment Form'!AH742))),\"N\",\"Y\"))","v":""},{"$f":"IF(OR($B735=\"N\",'Enrollment Form'!$G742=\"\"),\"\",IF('Enrollment Form'!$B742<>\"Subscriber\",\"-\",IF(COUNTIF('Enrollment Form'!$AV742:$AW742,\"Yes\")=2,\"N\",\"Y\")))","v":""},{"$f":"IF(OR('Enrollment Form'!$CJ742=\"\",'Enrollment Form'!$CJ742=\"No\"),\"-\",IF(AND('Enrollment Form'!$CJ742=\"Yes\",'Enrollment Form'!$CK742=\"\"),\"N\",\"Y\"))","v":"-"},{"$f":"IF(OR('Enrollment Form'!$CL742=\"\",'Enrollment Form'!$CL742=\"No\"),\"-\",IF(AND('Enrollment Form'!$CL742=\"Yes\",'Enrollment Form'!$CM742=\"\"),\"N\",\"Y\"))","v":"-"},{"$f":"IF(OR('Enrollment Form'!$CN742=\"\",'Enrollment Form'!$CN742=\"No\"),\"-\",IF(AND('Enrollment Form'!$CN742=\"Yes\",'Enrollment Form'!$CO742=\"\"),\"N\",\"Y\"))","v":"-"},{"$f":"IF(OR('Enrollment Form'!$CN742=\"\",'Enrollment Form'!$CN742=\"No\"),\"-\",IF(AND('Enrollment Form'!$CN742=\"Yes\",'Enrollment Form'!$CP742=\"\"),\"N\",\"Y\"))","v":"-"},{"$f":"IF('Enrollment Form'!B742<>\"Subscriber\",\"-\",IF(AND('Enrollment Form'!B742=\"Subscriber\",'Enrollment Form'!C742=\"Enroll\",'Enrollment Form'!AA742=\"\"),\"N\",\"Y\"))","v":"-"},{"$f":"IF(OR('Enrollment Form'!B742=\"Subscriber\",'Enrollment Form'!B742=\"\"),\"-\",IF('Enrollment Form'!BP742=\"\",\"N\",\"Y\"))","v":"-"},{"$f":"IF('Enrollment Form'!B742<>\"Subscriber\",\"-\",IF(AND('Enrollment Form'!B742=\"Subscriber\",'Enrollment Form'!G742=\"\"),\"N\",\"Y\"))","v":"-"},{"$f":"IF('Enrollment Form'!A742=\"\",\"\",IF('Enrollment Form'!B742=\"Subscriber\",\"-\",IF(AND('Enrollment Form'!B742<>\"Subscriber\",'Enrollment Form'!G742='Enrollment Form'!H742),\"N\",\"Y\")))","v":""},0]
[743,{"$f":"IF('Enrollment Form'!$A743<>\"\",\"Y\",\"N\")","v":"N"},{"$f":"IF(AND('Enrollment Form'!$B743=\"\",'Enrollment Form'!$C743<>\"\"),\"N\",IF($B736=\"N\",\"\",\"Y\"))","v":""},{"$f":"IF(OR($B736=\"N\",'Enrollment Form'!G743=\"\"),\"\",IF('Enrollment Form'!$B743<>\"Subscriber\",\"\",IF('Enrollment Form'!$G743='Enrollment Form'!$H743,\"Y\",\"N\")))","v":""},{"$f":"IF($B736=\"N\",\"\",IF(AND(COUNTIFS('Enrollment Form'!$H$11:$H$1000,'Enrollment Form'!$H743,'Enrollment Form'!$B$11:$B$1000,'Enrollment Form'!$B743)>1,'Enrollment Form'!$H743<>\"\"),\"N\",\"Y\"))","v":""},{"$f":"IF($B736=\"N\",\"\",IF(LEN('Enrollment Form'!$Y743)=0,\"\",IF(LEN('Enrollment Form'!$Y743)<>5,\"N\",\"Y\")))","v":""},{"$f":"IF($B736=\"N\",\"\",IF(LEN('Enrollment Form'!$AD743=0),\"\",IF(LEN('Enrollment Form'!$AD743)<>5,\"N\",\"Y\")))","v":""},{"$f":"IF($B736=\"N\",\"\",IF(LEN('Enrollment Form'!$BS743=0),\"\",IF(LEN('Enrollment Form'!$BS743)<>5,\"N\",\"Y\")))","v":""},{"$f":"IF($B736=\"N\",\"\",IF(LEN('Enrollment Form'!$AE743)=0,\"\",IF(LEN('Enrollment Form'!$AE743)<>10,\"N\",\"Y\")))","v":""},{"$f":"IF($B736=\"N\",\"\",IF(LEN('Enrollment Form'!$AF743)=0,\"\",IF(LEN('Enrollment Form'!$AF743)<>10,\"N\",\"Y\")))","v":""},{"$f":"IF('Enrollment Form'!$O743<>\"Graded\",\"-\",IF(AND('Enrollment Form'!$O743=\"Graded\",'Enrollment Form'!$AR743<>\"\"),\"Y\",\"N\"))","v":"-"},{"$f":"IF($B736=\"N\",\"\",IF(OR('Enrollment Form'!$B743<>\"Subscriber\",'Enrollment Form'!$C743=\"ROC\"),\"-\",IF(AND('Enrollment Form'!$B743=\"Subscriber\",'Enrollment Form'!$C743=\"Enroll\",'Enrollment Form'!$AJ743<>\"\"),\"Y\",\"N\")))","v":""},{"$f":"IF($B736=\"N\",\"\",IF(OR('Enrollment Form'!$B743<>\"Subscriber\",'Enrollment Form'!$C743=\"ROC\"),\"-\",IF(AND('Enrollment Form'!$B743=\"Subscriber\",'Enrollment Form'!$C743=\"Enroll\",'Enrollment Form'!$AK743<>\"\"),\"Y\",\"N\")))","v":""},{"$f":"IF($B736=\"N\",\"\",IF(OR('Enrollment Form'!$B743<>\"Subscriber\",'Enrollment Form'!$C743=\"ROC\"),\"-\",IF(AND('Enrollment Form'!$B743=\"Subscriber\",'Enrollment Form'!$C743=\"Enroll\",'Enrollment Form'!$AL743<>\"\"),\"Y\",\"N\")))","v":""},{"$f":"IF($B736=\"N\",\"\",IF(OR('Enrollment Form'!$B743<>\"Subscriber\",'Enrollment Form'!$C743=\"ROC\"),\"-\",IF(AND('Enrollment Form'!$B743=\"Subscriber\",'Enrollment Form'!$C743=\"Enroll\",'Enrollment Form'!$AP743<>\"\"),\"Y\",\"N\")))","v":""},{"$f":"IF($B736=\"N\",\"\",IF(OR('Enrollment Form'!$B743<>\"Subscriber\",'Enrollment Form'!$C743=\"ROC\"),\"-\",IF(AND('Enrollment Form'!$B743=\"Subscriber\",'Enrollment Form'!$C743=\"Enroll\",'Enrollment Form'!$AQ743<>\"\"),\"Y\",\"N\")))","v":""},{"$f":"IF($B736=\"N\",\"\",IF(OR('Enrollment Form'!$B743<>\"Subscriber\",'Enrollment Form'!$C743=\"ROC\"),\"-\",IF(AND('Enrollment Form'!$B743=\"Subscriber\",'Enrollment Form'!$C743=\"Enroll\",'Enrollment Form'!$AS743<>\"\"),\"Y\",\"N\")))","v":""},{"$f":"IF($B736=\"N\",\"\",IF($Q736=\"-\",\"-\",IF(AND($Q736=\"Y\",'Enrollment Form'!$AS743=\"No\"),\"-\",IF(AND($Q736=\"Y\",'Enrollment Form'!$AS743=\"Yes\",'Enrollment Form'!$AT743<>\"\"),\"Y\",\"N\"))))","v":""},{"$f":"IF($B736=\"N\",\"\",IF(OR('Enrollment Form'!$B743<>\"Subscriber\",'Enrollment Form'!$C743=\"ROC\"),\"-\",IF(AND('Enrollment Form'!$B743=\"Subscriber\",'Enrollment Form'!$C743=\"Enroll\",'Enrollment Form'!$CV743<>\"\"),\"Y\",\"N\")))","v":""},{"$f":"IF($B736=\"N\",\"\",IF($S736=\"-\",\"-\",IF(AND($S736=\"Y\",'Enrollment Form'!$CV743=\"No\"),\"-\",IF(AND($S736=\"Y\",'Enrollment Form'!$CV743=\"Yes\",'Enrollment Form'!$CW743<>\"\"),\"Y\",\"N\"))))","v":""},{"$f":"IF(OR('Enrollment Form'!$AY743=\"Yes\",'Enrollment Form'!$AY743=\"\"),\"-\",IF(OR(AND('Enrollment Form'!$AY743=\"No\",ISERROR(FIND(\"HMO\",VLOOKUP('Enrollment Form'!G743,'Enrollment Form'!H$11:J$1000,3,FALSE),1))=FALSE,COUNTA('Enrollment Form'!$AZ743:$BC743)=4),AND('Enrollment Form'!$AY743=\"No\",ISERROR(FIND(\"HMO\",VLOOKUP('Enrollment Form'!G743,'Enrollment Form'!H$11:J$1000,3,FALSE),1))=FALSE,COUNTA('Enrollment Form'!$BT743:$BW743)=4)),\"Y\",\"N\"))","v":"-"},{"$f":"IF($B736=\"N\",\"\",IF('Enrollment Form'!$B743=\"Subscriber\",\"-\",IF(COUNTA('Enrollment Form'!$BL743,'Enrollment Form'!$BN743)=2,\"Y\",\"N\")))","v":""},{"$f":"IF($B736=\"N\",\"\",IF(OR('Enrollment Form'!$AX743=\"\",'Enrollment Form'!$AX743=\"No\"),\"-\",IF(AND('Enrollment Form'!$AX743=\"Yes\",COUNTA('Enrollment Form'!$CR743)=1),\"Y\",\"N\")))","v":""},{"$f":"IF(OR('Enrollment Form'!$CR743=\"\",'Enrollment Form'!$CR743=\"No\"),\"-\",IF(COUNTA('Enrollment Form'!$CT743:$CU743)=2,\"Y\",\"N\"))","v":"-"},{"$f":"IF($B736=\"N\",\"\",IF(COUNTIF('Enrollment Form'!$DG743:$DP743,\"Other\")=COUNTA('Enrollment Form'!$DK743,'Enrollment Form'!$DH743,'Enrollment Form'!$DN743,'Enrollment Form'!$DQ743),\"Y\",\"N\"))","v":""},{"$f":"IF($B736=\"N\",\"\",IF(OR('Enrollment Form'!B743<>\"Subscriber\",'Enrollment Form'!C743=\"ROC\",COUNTIF('Enrollment Form'!AV743:AW743,\"Yes\")>=1),\"-\",IF(AND('Enrollment Form'!C743=\"Enroll\",COUNTIF('Enrollment Form'!AV743:AW743,\"No\")=2,'Enrollment Form'!AX743=\"\"),\"N\",\"Y\")))","v":""},{"$f":"IF(OR(B736=\"N\",'Enrollment Form'!B743<>\"Subscriber\",'Enrollment Form'!C743=\"ROC\",'Enrollment Form'!O743<>\"Multiple of Salary\"),\"-\",IF(COUNTA('Enrollment Form'!T743:U743)<2,\"N\",\"Y\"))","v":"-"},{"$f":"IF(B736=\"N\",\"\",IF(OR('Enrollment Form'!C743=\"ROC\",'Enrollment Form'!B743<>\"Subscriber\",'Enrollment Form'!O743=\"Waive\",'Enrollment Form'!O743=\"\"),\"-\",IF('Enrollment Form'!P743=\"\",\"N\",\"Y\")))","v":""},{"$f":"IF($B736=\"N\",\"\",IF(AND('Enrollment Form'!$C743=\"ROC\",'Enrollment Form'!$DR743<>\"\"),\"Y\",IF(AND('Enrollment Form'!$C743=\"ROC\",'Enrollment Form'!$DR743=\"\"),\"N\",IF(AND('Enrollment Form'!$C743=\"Enroll\",'Enrollment Form'!$B743=\"Subscriber\",'Enrollment Form'!$CX743=\"No\",'Enrollment Form'!$DR743=\"\"),\"N\",IF(AND('Enrollment Form'!$C743=\"Enroll\",'Enrollment Form'!$B743=\"Subscriber\",'Enrollment Form'!$CX743=\"Yes\"),\"-\",\"Y\")))))","v":""},{"$f":"IF($B736=\"N\",\"\",IF(AND('Enrollment Form'!$C743=\"ROC\",'Enrollment Form'!$DS743<>\"\"),\"Y\",IF(AND('Enrollment Form'!$C743=\"ROC\",'Enrollment Form'!$DS743=\"\"),\"N\",IF(AND('Enrollment Form'!$C743=\"Enroll\",'Enrollment Form'!$B743=\"Subscriber\",'Enrollment Form'!$CX743=\"No\",'Enrollment Form'!$DS743=\"\"),\"N\",IF(AND('Enrollment Form'!$C743=\"Enroll\",'Enrollment Form'!$B743=\"Subscriber\",'Enrollment Form'!$CX743=\"Yes\"),\"-\",\"Y\")))))","v":""},{"$f":"IF('Enrollment Form'!AH743=\"\",\"\",IF(ISERROR(SEARCH(\".\",'Enrollment Form'!AH743,SEARCH(\"@\",'Enrollment Form'!AH743))),\"N\",\"Y\"))","v":""},{"$f":"IF(OR($B736=\"N\",'Enrollment Form'!$G743=\"\"),\"\",IF('Enrollment Form'!$B743<>\"Subscriber\",\"-\",IF(COUNTIF('Enrollment Form'!$AV743:$AW743,\"Yes\")=2,\"N\",\"Y\")))","v":""},{"$f":"IF(OR('Enrollment Form'!$CJ743=\"\",'Enrollment Form'!$CJ743=\"No\"),\"-\",IF(AND('Enrollment Form'!$CJ743=\"Yes\",'Enrollment Form'!$CK743=\"\"),\"N\",\"Y\"))","v":"-"},{"$f":"IF(OR('Enrollment Form'!$CL743=\"\",'Enrollment Form'!$CL743=\"No\"),\"-\",IF(AND('Enrollment Form'!$CL743=\"Yes\",'Enrollment Form'!$CM743=\"\"),\"N\",\"Y\"))","v":"-"},{"$f":"IF(OR('Enrollment Form'!$CN743=\"\",'Enrollment Form'!$CN743=\"No\"),\"-\",IF(AND('Enrollment Form'!$CN743=\"Yes\",'Enrollment Form'!$CO743=\"\"),\"N\",\"Y\"))","v":"-"},{"$f":"IF(OR('Enrollment Form'!$CN743=\"\",'Enrollment Form'!$CN743=\"No\"),\"-\",IF(AND('Enrollment Form'!$CN743=\"Yes\",'Enrollment Form'!$CP743=\"\"),\"N\",\"Y\"))","v":"-"},{"$f":"IF('Enrollment Form'!B743<>\"Subscriber\",\"-\",IF(AND('Enrollment Form'!B743=\"Subscriber\",'Enrollment Form'!C743=\"Enroll\",'Enrollment Form'!AA743=\"\"),\"N\",\"Y\"))","v":"-"},{"$f":"IF(OR('Enrollment Form'!B743=\"Subscriber\",'Enrollment Form'!B743=\"\"),\"-\",IF('Enrollment Form'!BP743=\"\",\"N\",\"Y\"))","v":"-"},{"$f":"IF('Enrollment Form'!B743<>\"Subscriber\",\"-\",IF(AND('Enrollment Form'!B743=\"Subscriber\",'Enrollment Form'!G743=\"\"),\"N\",\"Y\"))","v":"-"},{"$f":"IF('Enrollment Form'!A743=\"\",\"\",IF('Enrollment Form'!B743=\"Subscriber\",\"-\",IF(AND('Enrollment Form'!B743<>\"Subscriber\",'Enrollment Form'!G743='Enrollment Form'!H743),\"N\",\"Y\")))","v":""},0]
[744,{"$f":"IF('Enrollment Form'!$A744<>\"\",\"Y\",\"N\")","v":"N"},{"$f":"IF(AND('Enrollment Form'!$B744=\"\",'Enrollment Form'!$C744<>\"\"),\"N\",IF($B737=\"N\",\"\",\"Y\"))","v":""},{"$f":"IF(OR($B737=\"N\",'Enrollment Form'!G744=\"\"),\"\",IF('Enrollment Form'!$B744<>\"Subscriber\",\"\",IF('Enrollment Form'!$G744='Enrollment Form'!$H744,\"Y\",\"N\")))","v":""},{"$f":"IF($B737=\"N\",\"\",IF(AND(COUNTIFS('Enrollment Form'!$H$11:$H$1000,'Enrollment Form'!$H744,'Enrollment Form'!$B$11:$B$1000,'Enrollment Form'!$B744)>1,'Enrollment Form'!$H744<>\"\"),\"N\",\"Y\"))","v":""},{"$f":"IF($B737=\"N\",\"\",IF(LEN('Enrollment Form'!$Y744)=0,\"\",IF(LEN('Enrollment Form'!$Y744)<>5,\"N\",\"Y\")))","v":""},{"$f":"IF($B737=\"N\",\"\",IF(LEN('Enrollment Form'!$AD744=0),\"\",IF(LEN('Enrollment Form'!$AD744)<>5,\"N\",\"Y\")))","v":""},{"$f":"IF($B737=\"N\",\"\",IF(LEN('Enrollment Form'!$BS744=0),\"\",IF(LEN('Enrollment Form'!$BS744)<>5,\"N\",\"Y\")))","v":""},{"$f":"IF($B737=\"N\",\"\",IF(LEN('Enrollment Form'!$AE744)=0,\"\",IF(LEN('Enrollment Form'!$AE744)<>10,\"N\",\"Y\")))","v":""},{"$f":"IF($B737=\"N\",\"\",IF(LEN('Enrollment Form'!$AF744)=0,\"\",IF(LEN('Enrollment Form'!$AF744)<>10,\"N\",\"Y\")))","v":""},{"$f":"IF('Enrollment Form'!$O744<>\"Graded\",\"-\",IF(AND('Enrollment Form'!$O744=\"Graded\",'Enrollment Form'!$AR744<>\"\"),\"Y\",\"N\"))","v":"-"},{"$f":"IF($B737=\"N\",\"\",IF(OR('Enrollment Form'!$B744<>\"Subscriber\",'Enrollment Form'!$C744=\"ROC\"),\"-\",IF(AND('Enrollment Form'!$B744=\"Subscriber\",'Enrollment Form'!$C744=\"Enroll\",'Enrollment Form'!$AJ744<>\"\"),\"Y\",\"N\")))","v":""},{"$f":"IF($B737=\"N\",\"\",IF(OR('Enrollment Form'!$B744<>\"Subscriber\",'Enrollment Form'!$C744=\"ROC\"),\"-\",IF(AND('Enrollment Form'!$B744=\"Subscriber\",'Enrollment Form'!$C744=\"Enroll\",'Enrollment Form'!$AK744<>\"\"),\"Y\",\"N\")))","v":""},{"$f":"IF($B737=\"N\",\"\",IF(OR('Enrollment Form'!$B744<>\"Subscriber\",'Enrollment Form'!$C744=\"ROC\"),\"-\",IF(AND('Enrollment Form'!$B744=\"Subscriber\",'Enrollment Form'!$C744=\"Enroll\",'Enrollment Form'!$AL744<>\"\"),\"Y\",\"N\")))","v":""},{"$f":"IF($B737=\"N\",\"\",IF(OR('Enrollment Form'!$B744<>\"Subscriber\",'Enrollment Form'!$C744=\"ROC\"),\"-\",IF(AND('Enrollment Form'!$B744=\"Subscriber\",'Enrollment Form'!$C744=\"Enroll\",'Enrollment Form'!$AP744<>\"\"),\"Y\",\"N\")))","v":""},{"$f":"IF($B737=\"N\",\"\",IF(OR('Enrollment Form'!$B744<>\"Subscriber\",'Enrollment Form'!$C744=\"ROC\"),\"-\",IF(AND('Enrollment Form'!$B744=\"Subscriber\",'Enrollment Form'!$C744=\"Enroll\",'Enrollment Form'!$AQ744<>\"\"),\"Y\",\"N\")))","v":""},{"$f":"IF($B737=\"N\",\"\",IF(OR('Enrollment Form'!$B744<>\"Subscriber\",'Enrollment Form'!$C744=\"ROC\"),\"-\",IF(AND('Enrollment Form'!$B744=\"Subscriber\",'Enrollment Form'!$C744=\"Enroll\",'Enrollment Form'!$AS744<>\"\"),\"Y\",\"N\")))","v":""},{"$f":"IF($B737=\"N\",\"\",IF($Q737=\"-\",\"-\",IF(AND($Q737=\"Y\",'Enrollment Form'!$AS744=\"No\"),\"-\",IF(AND($Q737=\"Y\",'Enrollment Form'!$AS744=\"Yes\",'Enrollment Form'!$AT744<>\"\"),\"Y\",\"N\"))))","v":""},{"$f":"IF($B737=\"N\",\"\",IF(OR('Enrollment Form'!$B744<>\"Subscriber\",'Enrollment Form'!$C744=\"ROC\"),\"-\",IF(AND('Enrollment Form'!$B744=\"Subscriber\",'Enrollment Form'!$C744=\"Enroll\",'Enrollment Form'!$CV744<>\"\"),\"Y\",\"N\")))","v":""},{"$f":"IF($B737=\"N\",\"\",IF($S737=\"-\",\"-\",IF(AND($S737=\"Y\",'Enrollment Form'!$CV744=\"No\"),\"-\",IF(AND($S737=\"Y\",'Enrollment Form'!$CV744=\"Yes\",'Enrollment Form'!$CW744<>\"\"),\"Y\",\"N\"))))","v":""},{"$f":"IF(OR('Enrollment Form'!$AY744=\"Yes\",'Enrollment Form'!$AY744=\"\"),\"-\",IF(OR(AND('Enrollment Form'!$AY744=\"No\",ISERROR(FIND(\"HMO\",VLOOKUP('Enrollment Form'!G744,'Enrollment Form'!H$11:J$1000,3,FALSE),1))=FALSE,COUNTA('Enrollment Form'!$AZ744:$BC744)=4),AND('Enrollment Form'!$AY744=\"No\",ISERROR(FIND(\"HMO\",VLOOKUP('Enrollment Form'!G744,'Enrollment Form'!H$11:J$1000,3,FALSE),1))=FALSE,COUNTA('Enrollment Form'!$BT744:$BW744)=4)),\"Y\",\"N\"))","v":"-"},{"$f":"IF($B737=\"N\",\"\",IF('Enrollment Form'!$B744=\"Subscriber\",\"-\",IF(COUNTA('Enrollment Form'!$BL744,'Enrollment Form'!$BN744)=2,\"Y\",\"N\")))","v":""},{"$f":"IF($B737=\"N\",\"\",IF(OR('Enrollment Form'!$AX744=\"\",'Enrollment Form'!$AX744=\"No\"),\"-\",IF(AND('Enrollment Form'!$AX744=\"Yes\",COUNTA('Enrollment Form'!$CR744)=1),\"Y\",\"N\")))","v":""},{"$f":"IF(OR('Enrollment Form'!$CR744=\"\",'Enrollment Form'!$CR744=\"No\"),\"-\",IF(COUNTA('Enrollment Form'!$CT744:$CU744)=2,\"Y\",\"N\"))","v":"-"},{"$f":"IF($B737=\"N\",\"\",IF(COUNTIF('Enrollment Form'!$DG744:$DP744,\"Other\")=COUNTA('Enrollment Form'!$DK744,'Enrollment Form'!$DH744,'Enrollment Form'!$DN744,'Enrollment Form'!$DQ744),\"Y\",\"N\"))","v":""},{"$f":"IF($B737=\"N\",\"\",IF(OR('Enrollment Form'!B744<>\"Subscriber\",'Enrollment Form'!C744=\"ROC\",COUNTIF('Enrollment Form'!AV744:AW744,\"Yes\")>=1),\"-\",IF(AND('Enrollment Form'!C744=\"Enroll\",COUNTIF('Enrollment Form'!AV744:AW744,\"No\")=2,'Enrollment Form'!AX744=\"\"),\"N\",\"Y\")))","v":""},{"$f":"IF(OR(B737=\"N\",'Enrollment Form'!B744<>\"Subscriber\",'Enrollment Form'!C744=\"ROC\",'Enrollment Form'!O744<>\"Multiple of Salary\"),\"-\",IF(COUNTA('Enrollment Form'!T744:U744)<2,\"N\",\"Y\"))","v":"-"},{"$f":"IF(B737=\"N\",\"\",IF(OR('Enrollment Form'!C744=\"ROC\",'Enrollment Form'!B744<>\"Subscriber\",'Enrollment Form'!O744=\"Waive\",'Enrollment Form'!O744=\"\"),\"-\",IF('Enrollment Form'!P744=\"\",\"N\",\"Y\")))","v":""},{"$f":"IF($B737=\"N\",\"\",IF(AND('Enrollment Form'!$C744=\"ROC\",'Enrollment Form'!$DR744<>\"\"),\"Y\",IF(AND('Enrollment Form'!$C744=\"ROC\",'Enrollment Form'!$DR744=\"\"),\"N\",IF(AND('Enrollment Form'!$C744=\"Enroll\",'Enrollment Form'!$B744=\"Subscriber\",'Enrollment Form'!$CX744=\"No\",'Enrollment Form'!$DR744=\"\"),\"N\",IF(AND('Enrollment Form'!$C744=\"Enroll\",'Enrollment Form'!$B744=\"Subscriber\",'Enrollment Form'!$CX744=\"Yes\"),\"-\",\"Y\")))))","v":""},{"$f":"IF($B737=\"N\",\"\",IF(AND('Enrollment Form'!$C744=\"ROC\",'Enrollment Form'!$DS744<>\"\"),\"Y\",IF(AND('Enrollment Form'!$C744=\"ROC\",'Enrollment Form'!$DS744=\"\"),\"N\",IF(AND('Enrollment Form'!$C744=\"Enroll\",'Enrollment Form'!$B744=\"Subscriber\",'Enrollment Form'!$CX744=\"No\",'Enrollment Form'!$DS744=\"\"),\"N\",IF(AND('Enrollment Form'!$C744=\"Enroll\",'Enrollment Form'!$B744=\"Subscriber\",'Enrollment Form'!$CX744=\"Yes\"),\"-\",\"Y\")))))","v":""},{"$f":"IF('Enrollment Form'!AH744=\"\",\"\",IF(ISERROR(SEARCH(\".\",'Enrollment Form'!AH744,SEARCH(\"@\",'Enrollment Form'!AH744))),\"N\",\"Y\"))","v":""},{"$f":"IF(OR($B737=\"N\",'Enrollment Form'!$G744=\"\"),\"\",IF('Enrollment Form'!$B744<>\"Subscriber\",\"-\",IF(COUNTIF('Enrollment Form'!$AV744:$AW744,\"Yes\")=2,\"N\",\"Y\")))","v":""},{"$f":"IF(OR('Enrollment Form'!$CJ744=\"\",'Enrollment Form'!$CJ744=\"No\"),\"-\",IF(AND('Enrollment Form'!$CJ744=\"Yes\",'Enrollment Form'!$CK744=\"\"),\"N\",\"Y\"))","v":"-"},{"$f":"IF(OR('Enrollment Form'!$CL744=\"\",'Enrollment Form'!$CL744=\"No\"),\"-\",IF(AND('Enrollment Form'!$CL744=\"Yes\",'Enrollment Form'!$CM744=\"\"),\"N\",\"Y\"))","v":"-"},{"$f":"IF(OR('Enrollment Form'!$CN744=\"\",'Enrollment Form'!$CN744=\"No\"),\"-\",IF(AND('Enrollment Form'!$CN744=\"Yes\",'Enrollment Form'!$CO744=\"\"),\"N\",\"Y\"))","v":"-"},{"$f":"IF(OR('Enrollment Form'!$CN744=\"\",'Enrollment Form'!$CN744=\"No\"),\"-\",IF(AND('Enrollment Form'!$CN744=\"Yes\",'Enrollment Form'!$CP744=\"\"),\"N\",\"Y\"))","v":"-"},{"$f":"IF('Enrollment Form'!B744<>\"Subscriber\",\"-\",IF(AND('Enrollment Form'!B744=\"Subscriber\",'Enrollment Form'!C744=\"Enroll\",'Enrollment Form'!AA744=\"\"),\"N\",\"Y\"))","v":"-"},{"$f":"IF(OR('Enrollment Form'!B744=\"Subscriber\",'Enrollment Form'!B744=\"\"),\"-\",IF('Enrollment Form'!BP744=\"\",\"N\",\"Y\"))","v":"-"},{"$f":"IF('Enrollment Form'!B744<>\"Subscriber\",\"-\",IF(AND('Enrollment Form'!B744=\"Subscriber\",'Enrollment Form'!G744=\"\"),\"N\",\"Y\"))","v":"-"},{"$f":"IF('Enrollment Form'!A744=\"\",\"\",IF('Enrollment Form'!B744=\"Subscriber\",\"-\",IF(AND('Enrollment Form'!B744<>\"Subscriber\",'Enrollment Form'!G744='Enrollment Form'!H744),\"N\",\"Y\")))","v":""},0]
[745,{"$f":"IF('Enrollment Form'!$A745<>\"\",\"Y\",\"N\")","v":"N"},{"$f":"IF(AND('Enrollment Form'!$B745=\"\",'Enrollment Form'!$C745<>\"\"),\"N\",IF($B738=\"N\",\"\",\"Y\"))","v":""},{"$f":"IF(OR($B738=\"N\",'Enrollment Form'!G745=\"\"),\"\",IF('Enrollment Form'!$B745<>\"Subscriber\",\"\",IF('Enrollment Form'!$G745='Enrollment Form'!$H745,\"Y\",\"N\")))","v":""},{"$f":"IF($B738=\"N\",\"\",IF(AND(COUNTIFS('Enrollment Form'!$H$11:$H$1000,'Enrollment Form'!$H745,'Enrollment Form'!$B$11:$B$1000,'Enrollment Form'!$B745)>1,'Enrollment Form'!$H745<>\"\"),\"N\",\"Y\"))","v":""},{"$f":"IF($B738=\"N\",\"\",IF(LEN('Enrollment Form'!$Y745)=0,\"\",IF(LEN('Enrollment Form'!$Y745)<>5,\"N\",\"Y\")))","v":""},{"$f":"IF($B738=\"N\",\"\",IF(LEN('Enrollment Form'!$AD745=0),\"\",IF(LEN('Enrollment Form'!$AD745)<>5,\"N\",\"Y\")))","v":""},{"$f":"IF($B738=\"N\",\"\",IF(LEN('Enrollment Form'!$BS745=0),\"\",IF(LEN('Enrollment Form'!$BS745)<>5,\"N\",\"Y\")))","v":""},{"$f":"IF($B738=\"N\",\"\",IF(LEN('Enrollment Form'!$AE745)=0,\"\",IF(LEN('Enrollment Form'!$AE745)<>10,\"N\",\"Y\")))","v":""},{"$f":"IF($B738=\"N\",\"\",IF(LEN('Enrollment Form'!$AF745)=0,\"\",IF(LEN('Enrollment Form'!$AF745)<>10,\"N\",\"Y\")))","v":""},{"$f":"IF('Enrollment Form'!$O745<>\"Graded\",\"-\",IF(AND('Enrollment Form'!$O745=\"Graded\",'Enrollment Form'!$AR745<>\"\"),\"Y\",\"N\"))","v":"-"},{"$f":"IF($B738=\"N\",\"\",IF(OR('Enrollment Form'!$B745<>\"Subscriber\",'Enrollment Form'!$C745=\"ROC\"),\"-\",IF(AND('Enrollment Form'!$B745=\"Subscriber\",'Enrollment Form'!$C745=\"Enroll\",'Enrollment Form'!$AJ745<>\"\"),\"Y\",\"N\")))","v":""},{"$f":"IF($B738=\"N\",\"\",IF(OR('Enrollment Form'!$B745<>\"Subscriber\",'Enrollment Form'!$C745=\"ROC\"),\"-\",IF(AND('Enrollment Form'!$B745=\"Subscriber\",'Enrollment Form'!$C745=\"Enroll\",'Enrollment Form'!$AK745<>\"\"),\"Y\",\"N\")))","v":""},{"$f":"IF($B738=\"N\",\"\",IF(OR('Enrollment Form'!$B745<>\"Subscriber\",'Enrollment Form'!$C745=\"ROC\"),\"-\",IF(AND('Enrollment Form'!$B745=\"Subscriber\",'Enrollment Form'!$C745=\"Enroll\",'Enrollment Form'!$AL745<>\"\"),\"Y\",\"N\")))","v":""},{"$f":"IF($B738=\"N\",\"\",IF(OR('Enrollment Form'!$B745<>\"Subscriber\",'Enrollment Form'!$C745=\"ROC\"),\"-\",IF(AND('Enrollment Form'!$B745=\"Subscriber\",'Enrollment Form'!$C745=\"Enroll\",'Enrollment Form'!$AP745<>\"\"),\"Y\",\"N\")))","v":""},{"$f":"IF($B738=\"N\",\"\",IF(OR('Enrollment Form'!$B745<>\"Subscriber\",'Enrollment Form'!$C745=\"ROC\"),\"-\",IF(AND('Enrollment Form'!$B745=\"Subscriber\",'Enrollment Form'!$C745=\"Enroll\",'Enrollment Form'!$AQ745<>\"\"),\"Y\",\"N\")))","v":""},{"$f":"IF($B738=\"N\",\"\",IF(OR('Enrollment Form'!$B745<>\"Subscriber\",'Enrollment Form'!$C745=\"ROC\"),\"-\",IF(AND('Enrollment Form'!$B745=\"Subscriber\",'Enrollment Form'!$C745=\"Enroll\",'Enrollment Form'!$AS745<>\"\"),\"Y\",\"N\")))","v":""},{"$f":"IF($B738=\"N\",\"\",IF($Q738=\"-\",\"-\",IF(AND($Q738=\"Y\",'Enrollment Form'!$AS745=\"No\"),\"-\",IF(AND($Q738=\"Y\",'Enrollment Form'!$AS745=\"Yes\",'Enrollment Form'!$AT745<>\"\"),\"Y\",\"N\"))))","v":""},{"$f":"IF($B738=\"N\",\"\",IF(OR('Enrollment Form'!$B745<>\"Subscriber\",'Enrollment Form'!$C745=\"ROC\"),\"-\",IF(AND('Enrollment Form'!$B745=\"Subscriber\",'Enrollment Form'!$C745=\"Enroll\",'Enrollment Form'!$CV745<>\"\"),\"Y\",\"N\")))","v":""},{"$f":"IF($B738=\"N\",\"\",IF($S738=\"-\",\"-\",IF(AND($S738=\"Y\",'Enrollment Form'!$CV745=\"No\"),\"-\",IF(AND($S738=\"Y\",'Enrollment Form'!$CV745=\"Yes\",'Enrollment Form'!$CW745<>\"\"),\"Y\",\"N\"))))","v":""},{"$f":"IF(OR('Enrollment Form'!$AY745=\"Yes\",'Enrollment Form'!$AY745=\"\"),\"-\",IF(OR(AND('Enrollment Form'!$AY745=\"No\",ISERROR(FIND(\"HMO\",VLOOKUP('Enrollment Form'!G745,'Enrollment Form'!H$11:J$1000,3,FALSE),1))=FALSE,COUNTA('Enrollment Form'!$AZ745:$BC745)=4),AND('Enrollment Form'!$AY745=\"No\",ISERROR(FIND(\"HMO\",VLOOKUP('Enrollment Form'!G745,'Enrollment Form'!H$11:J$1000,3,FALSE),1))=FALSE,COUNTA('Enrollment Form'!$BT745:$BW745)=4)),\"Y\",\"N\"))","v":"-"},{"$f":"IF($B738=\"N\",\"\",IF('Enrollment Form'!$B745=\"Subscriber\",\"-\",IF(COUNTA('Enrollment Form'!$BL745,'Enrollment Form'!$BN745)=2,\"Y\",\"N\")))","v":""},{"$f":"IF($B738=\"N\",\"\",IF(OR('Enrollment Form'!$AX745=\"\",'Enrollment Form'!$AX745=\"No\"),\"-\",IF(AND('Enrollment Form'!$AX745=\"Yes\",COUNTA('Enrollment Form'!$CR745)=1),\"Y\",\"N\")))","v":""},{"$f":"IF(OR('Enrollment Form'!$CR745=\"\",'Enrollment Form'!$CR745=\"No\"),\"-\",IF(COUNTA('Enrollment Form'!$CT745:$CU745)=2,\"Y\",\"N\"))","v":"-"},{"$f":"IF($B738=\"N\",\"\",IF(COUNTIF('Enrollment Form'!$DG745:$DP745,\"Other\")=COUNTA('Enrollment Form'!$DK745,'Enrollment Form'!$DH745,'Enrollment Form'!$DN745,'Enrollment Form'!$DQ745),\"Y\",\"N\"))","v":""},{"$f":"IF($B738=\"N\",\"\",IF(OR('Enrollment Form'!B745<>\"Subscriber\",'Enrollment Form'!C745=\"ROC\",COUNTIF('Enrollment Form'!AV745:AW745,\"Yes\")>=1),\"-\",IF(AND('Enrollment Form'!C745=\"Enroll\",COUNTIF('Enrollment Form'!AV745:AW745,\"No\")=2,'Enrollment Form'!AX745=\"\"),\"N\",\"Y\")))","v":""},{"$f":"IF(OR(B738=\"N\",'Enrollment Form'!B745<>\"Subscriber\",'Enrollment Form'!C745=\"ROC\",'Enrollment Form'!O745<>\"Multiple of Salary\"),\"-\",IF(COUNTA('Enrollment Form'!T745:U745)<2,\"N\",\"Y\"))","v":"-"},{"$f":"IF(B738=\"N\",\"\",IF(OR('Enrollment Form'!C745=\"ROC\",'Enrollment Form'!B745<>\"Subscriber\",'Enrollment Form'!O745=\"Waive\",'Enrollment Form'!O745=\"\"),\"-\",IF('Enrollment Form'!P745=\"\",\"N\",\"Y\")))","v":""},{"$f":"IF($B738=\"N\",\"\",IF(AND('Enrollment Form'!$C745=\"ROC\",'Enrollment Form'!$DR745<>\"\"),\"Y\",IF(AND('Enrollment Form'!$C745=\"ROC\",'Enrollment Form'!$DR745=\"\"),\"N\",IF(AND('Enrollment Form'!$C745=\"Enroll\",'Enrollment Form'!$B745=\"Subscriber\",'Enrollment Form'!$CX745=\"No\",'Enrollment Form'!$DR745=\"\"),\"N\",IF(AND('Enrollment Form'!$C745=\"Enroll\",'Enrollment Form'!$B745=\"Subscriber\",'Enrollment Form'!$CX745=\"Yes\"),\"-\",\"Y\")))))","v":""},{"$f":"IF($B738=\"N\",\"\",IF(AND('Enrollment Form'!$C745=\"ROC\",'Enrollment Form'!$DS745<>\"\"),\"Y\",IF(AND('Enrollment Form'!$C745=\"ROC\",'Enrollment Form'!$DS745=\"\"),\"N\",IF(AND('Enrollment Form'!$C745=\"Enroll\",'Enrollment Form'!$B745=\"Subscriber\",'Enrollment Form'!$CX745=\"No\",'Enrollment Form'!$DS745=\"\"),\"N\",IF(AND('Enrollment Form'!$C745=\"Enroll\",'Enrollment Form'!$B745=\"Subscriber\",'Enrollment Form'!$CX745=\"Yes\"),\"-\",\"Y\")))))","v":""},{"$f":"IF('Enrollment Form'!AH745=\"\",\"\",IF(ISERROR(SEARCH(\".\",'Enrollment Form'!AH745,SEARCH(\"@\",'Enrollment Form'!AH745))),\"N\",\"Y\"))","v":""},{"$f":"IF(OR($B738=\"N\",'Enrollment Form'!$G745=\"\"),\"\",IF('Enrollment Form'!$B745<>\"Subscriber\",\"-\",IF(COUNTIF('Enrollment Form'!$AV745:$AW745,\"Yes\")=2,\"N\",\"Y\")))","v":""},{"$f":"IF(OR('Enrollment Form'!$CJ745=\"\",'Enrollment Form'!$CJ745=\"No\"),\"-\",IF(AND('Enrollment Form'!$CJ745=\"Yes\",'Enrollment Form'!$CK745=\"\"),\"N\",\"Y\"))","v":"-"},{"$f":"IF(OR('Enrollment Form'!$CL745=\"\",'Enrollment Form'!$CL745=\"No\"),\"-\",IF(AND('Enrollment Form'!$CL745=\"Yes\",'Enrollment Form'!$CM745=\"\"),\"N\",\"Y\"))","v":"-"},{"$f":"IF(OR('Enrollment Form'!$CN745=\"\",'Enrollment Form'!$CN745=\"No\"),\"-\",IF(AND('Enrollment Form'!$CN745=\"Yes\",'Enrollment Form'!$CO745=\"\"),\"N\",\"Y\"))","v":"-"},{"$f":"IF(OR('Enrollment Form'!$CN745=\"\",'Enrollment Form'!$CN745=\"No\"),\"-\",IF(AND('Enrollment Form'!$CN745=\"Yes\",'Enrollment Form'!$CP745=\"\"),\"N\",\"Y\"))","v":"-"},{"$f":"IF('Enrollment Form'!B745<>\"Subscriber\",\"-\",IF(AND('Enrollment Form'!B745=\"Subscriber\",'Enrollment Form'!C745=\"Enroll\",'Enrollment Form'!AA745=\"\"),\"N\",\"Y\"))","v":"-"},{"$f":"IF(OR('Enrollment Form'!B745=\"Subscriber\",'Enrollment Form'!B745=\"\"),\"-\",IF('Enrollment Form'!BP745=\"\",\"N\",\"Y\"))","v":"-"},{"$f":"IF('Enrollment Form'!B745<>\"Subscriber\",\"-\",IF(AND('Enrollment Form'!B745=\"Subscriber\",'Enrollment Form'!G745=\"\"),\"N\",\"Y\"))","v":"-"},{"$f":"IF('Enrollment Form'!A745=\"\",\"\",IF('Enrollment Form'!B745=\"Subscriber\",\"-\",IF(AND('Enrollment Form'!B745<>\"Subscriber\",'Enrollment Form'!G745='Enrollment Form'!H745),\"N\",\"Y\")))","v":""},0]
[746,{"$f":"IF('Enrollment Form'!$A746<>\"\",\"Y\",\"N\")","v":"N"},{"$f":"IF(AND('Enrollment Form'!$B746=\"\",'Enrollment Form'!$C746<>\"\"),\"N\",IF($B739=\"N\",\"\",\"Y\"))","v":""},{"$f":"IF(OR($B739=\"N\",'Enrollment Form'!G746=\"\"),\"\",IF('Enrollment Form'!$B746<>\"Subscriber\",\"\",IF('Enrollment Form'!$G746='Enrollment Form'!$H746,\"Y\",\"N\")))","v":""},{"$f":"IF($B739=\"N\",\"\",IF(AND(COUNTIFS('Enrollment Form'!$H$11:$H$1000,'Enrollment Form'!$H746,'Enrollment Form'!$B$11:$B$1000,'Enrollment Form'!$B746)>1,'Enrollment Form'!$H746<>\"\"),\"N\",\"Y\"))","v":""},{"$f":"IF($B739=\"N\",\"\",IF(LEN('Enrollment Form'!$Y746)=0,\"\",IF(LEN('Enrollment Form'!$Y746)<>5,\"N\",\"Y\")))","v":""},{"$f":"IF($B739=\"N\",\"\",IF(LEN('Enrollment Form'!$AD746=0),\"\",IF(LEN('Enrollment Form'!$AD746)<>5,\"N\",\"Y\")))","v":""},{"$f":"IF($B739=\"N\",\"\",IF(LEN('Enrollment Form'!$BS746=0),\"\",IF(LEN('Enrollment Form'!$BS746)<>5,\"N\",\"Y\")))","v":""},{"$f":"IF($B739=\"N\",\"\",IF(LEN('Enrollment Form'!$AE746)=0,\"\",IF(LEN('Enrollment Form'!$AE746)<>10,\"N\",\"Y\")))","v":""},{"$f":"IF($B739=\"N\",\"\",IF(LEN('Enrollment Form'!$AF746)=0,\"\",IF(LEN('Enrollment Form'!$AF746)<>10,\"N\",\"Y\")))","v":""},{"$f":"IF('Enrollment Form'!$O746<>\"Graded\",\"-\",IF(AND('Enrollment Form'!$O746=\"Graded\",'Enrollment Form'!$AR746<>\"\"),\"Y\",\"N\"))","v":"-"},{"$f":"IF($B739=\"N\",\"\",IF(OR('Enrollment Form'!$B746<>\"Subscriber\",'Enrollment Form'!$C746=\"ROC\"),\"-\",IF(AND('Enrollment Form'!$B746=\"Subscriber\",'Enrollment Form'!$C746=\"Enroll\",'Enrollment Form'!$AJ746<>\"\"),\"Y\",\"N\")))","v":""},{"$f":"IF($B739=\"N\",\"\",IF(OR('Enrollment Form'!$B746<>\"Subscriber\",'Enrollment Form'!$C746=\"ROC\"),\"-\",IF(AND('Enrollment Form'!$B746=\"Subscriber\",'Enrollment Form'!$C746=\"Enroll\",'Enrollment Form'!$AK746<>\"\"),\"Y\",\"N\")))","v":""},{"$f":"IF($B739=\"N\",\"\",IF(OR('Enrollment Form'!$B746<>\"Subscriber\",'Enrollment Form'!$C746=\"ROC\"),\"-\",IF(AND('Enrollment Form'!$B746=\"Subscriber\",'Enrollment Form'!$C746=\"Enroll\",'Enrollment Form'!$AL746<>\"\"),\"Y\",\"N\")))","v":""},{"$f":"IF($B739=\"N\",\"\",IF(OR('Enrollment Form'!$B746<>\"Subscriber\",'Enrollment Form'!$C746=\"ROC\"),\"-\",IF(AND('Enrollment Form'!$B746=\"Subscriber\",'Enrollment Form'!$C746=\"Enroll\",'Enrollment Form'!$AP746<>\"\"),\"Y\",\"N\")))","v":""},{"$f":"IF($B739=\"N\",\"\",IF(OR('Enrollment Form'!$B746<>\"Subscriber\",'Enrollment Form'!$C746=\"ROC\"),\"-\",IF(AND('Enrollment Form'!$B746=\"Subscriber\",'Enrollment Form'!$C746=\"Enroll\",'Enrollment Form'!$AQ746<>\"\"),\"Y\",\"N\")))","v":""},{"$f":"IF($B739=\"N\",\"\",IF(OR('Enrollment Form'!$B746<>\"Subscriber\",'Enrollment Form'!$C746=\"ROC\"),\"-\",IF(AND('Enrollment Form'!$B746=\"Subscriber\",'Enrollment Form'!$C746=\"Enroll\",'Enrollment Form'!$AS746<>\"\"),\"Y\",\"N\")))","v":""},{"$f":"IF($B739=\"N\",\"\",IF($Q739=\"-\",\"-\",IF(AND($Q739=\"Y\",'Enrollment Form'!$AS746=\"No\"),\"-\",IF(AND($Q739=\"Y\",'Enrollment Form'!$AS746=\"Yes\",'Enrollment Form'!$AT746<>\"\"),\"Y\",\"N\"))))","v":""},{"$f":"IF($B739=\"N\",\"\",IF(OR('Enrollment Form'!$B746<>\"Subscriber\",'Enrollment Form'!$C746=\"ROC\"),\"-\",IF(AND('Enrollment Form'!$B746=\"Subscriber\",'Enrollment Form'!$C746=\"Enroll\",'Enrollment Form'!$CV746<>\"\"),\"Y\",\"N\")))","v":""},{"$f":"IF($B739=\"N\",\"\",IF($S739=\"-\",\"-\",IF(AND($S739=\"Y\",'Enrollment Form'!$CV746=\"No\"),\"-\",IF(AND($S739=\"Y\",'Enrollment Form'!$CV746=\"Yes\",'Enrollment Form'!$CW746<>\"\"),\"Y\",\"N\"))))","v":""},{"$f":"IF(OR('Enrollment Form'!$AY746=\"Yes\",'Enrollment Form'!$AY746=\"\"),\"-\",IF(OR(AND('Enrollment Form'!$AY746=\"No\",ISERROR(FIND(\"HMO\",VLOOKUP('Enrollment Form'!G746,'Enrollment Form'!H$11:J$1000,3,FALSE),1))=FALSE,COUNTA('Enrollment Form'!$AZ746:$BC746)=4),AND('Enrollment Form'!$AY746=\"No\",ISERROR(FIND(\"HMO\",VLOOKUP('Enrollment Form'!G746,'Enrollment Form'!H$11:J$1000,3,FALSE),1))=FALSE,COUNTA('Enrollment Form'!$BT746:$BW746)=4)),\"Y\",\"N\"))","v":"-"},{"$f":"IF($B739=\"N\",\"\",IF('Enrollment Form'!$B746=\"Subscriber\",\"-\",IF(COUNTA('Enrollment Form'!$BL746,'Enrollment Form'!$BN746)=2,\"Y\",\"N\")))","v":""},{"$f":"IF($B739=\"N\",\"\",IF(OR('Enrollment Form'!$AX746=\"\",'Enrollment Form'!$AX746=\"No\"),\"-\",IF(AND('Enrollment Form'!$AX746=\"Yes\",COUNTA('Enrollment Form'!$CR746)=1),\"Y\",\"N\")))","v":""},{"$f":"IF(OR('Enrollment Form'!$CR746=\"\",'Enrollment Form'!$CR746=\"No\"),\"-\",IF(COUNTA('Enrollment Form'!$CT746:$CU746)=2,\"Y\",\"N\"))","v":"-"},{"$f":"IF($B739=\"N\",\"\",IF(COUNTIF('Enrollment Form'!$DG746:$DP746,\"Other\")=COUNTA('Enrollment Form'!$DK746,'Enrollment Form'!$DH746,'Enrollment Form'!$DN746,'Enrollment Form'!$DQ746),\"Y\",\"N\"))","v":""},{"$f":"IF($B739=\"N\",\"\",IF(OR('Enrollment Form'!B746<>\"Subscriber\",'Enrollment Form'!C746=\"ROC\",COUNTIF('Enrollment Form'!AV746:AW746,\"Yes\")>=1),\"-\",IF(AND('Enrollment Form'!C746=\"Enroll\",COUNTIF('Enrollment Form'!AV746:AW746,\"No\")=2,'Enrollment Form'!AX746=\"\"),\"N\",\"Y\")))","v":""},{"$f":"IF(OR(B739=\"N\",'Enrollment Form'!B746<>\"Subscriber\",'Enrollment Form'!C746=\"ROC\",'Enrollment Form'!O746<>\"Multiple of Salary\"),\"-\",IF(COUNTA('Enrollment Form'!T746:U746)<2,\"N\",\"Y\"))","v":"-"},{"$f":"IF(B739=\"N\",\"\",IF(OR('Enrollment Form'!C746=\"ROC\",'Enrollment Form'!B746<>\"Subscriber\",'Enrollment Form'!O746=\"Waive\",'Enrollment Form'!O746=\"\"),\"-\",IF('Enrollment Form'!P746=\"\",\"N\",\"Y\")))","v":""},{"$f":"IF($B739=\"N\",\"\",IF(AND('Enrollment Form'!$C746=\"ROC\",'Enrollment Form'!$DR746<>\"\"),\"Y\",IF(AND('Enrollment Form'!$C746=\"ROC\",'Enrollment Form'!$DR746=\"\"),\"N\",IF(AND('Enrollment Form'!$C746=\"Enroll\",'Enrollment Form'!$B746=\"Subscriber\",'Enrollment Form'!$CX746=\"No\",'Enrollment Form'!$DR746=\"\"),\"N\",IF(AND('Enrollment Form'!$C746=\"Enroll\",'Enrollment Form'!$B746=\"Subscriber\",'Enrollment Form'!$CX746=\"Yes\"),\"-\",\"Y\")))))","v":""},{"$f":"IF($B739=\"N\",\"\",IF(AND('Enrollment Form'!$C746=\"ROC\",'Enrollment Form'!$DS746<>\"\"),\"Y\",IF(AND('Enrollment Form'!$C746=\"ROC\",'Enrollment Form'!$DS746=\"\"),\"N\",IF(AND('Enrollment Form'!$C746=\"Enroll\",'Enrollment Form'!$B746=\"Subscriber\",'Enrollment Form'!$CX746=\"No\",'Enrollment Form'!$DS746=\"\"),\"N\",IF(AND('Enrollment Form'!$C746=\"Enroll\",'Enrollment Form'!$B746=\"Subscriber\",'Enrollment Form'!$CX746=\"Yes\"),\"-\",\"Y\")))))","v":""},{"$f":"IF('Enrollment Form'!AH746=\"\",\"\",IF(ISERROR(SEARCH(\".\",'Enrollment Form'!AH746,SEARCH(\"@\",'Enrollment Form'!AH746))),\"N\",\"Y\"))","v":""},{"$f":"IF(OR($B739=\"N\",'Enrollment Form'!$G746=\"\"),\"\",IF('Enrollment Form'!$B746<>\"Subscriber\",\"-\",IF(COUNTIF('Enrollment Form'!$AV746:$AW746,\"Yes\")=2,\"N\",\"Y\")))","v":""},{"$f":"IF(OR('Enrollment Form'!$CJ746=\"\",'Enrollment Form'!$CJ746=\"No\"),\"-\",IF(AND('Enrollment Form'!$CJ746=\"Yes\",'Enrollment Form'!$CK746=\"\"),\"N\",\"Y\"))","v":"-"},{"$f":"IF(OR('Enrollment Form'!$CL746=\"\",'Enrollment Form'!$CL746=\"No\"),\"-\",IF(AND('Enrollment Form'!$CL746=\"Yes\",'Enrollment Form'!$CM746=\"\"),\"N\",\"Y\"))","v":"-"},{"$f":"IF(OR('Enrollment Form'!$CN746=\"\",'Enrollment Form'!$CN746=\"No\"),\"-\",IF(AND('Enrollment Form'!$CN746=\"Yes\",'Enrollment Form'!$CO746=\"\"),\"N\",\"Y\"))","v":"-"},{"$f":"IF(OR('Enrollment Form'!$CN746=\"\",'Enrollment Form'!$CN746=\"No\"),\"-\",IF(AND('Enrollment Form'!$CN746=\"Yes\",'Enrollment Form'!$CP746=\"\"),\"N\",\"Y\"))","v":"-"},{"$f":"IF('Enrollment Form'!B746<>\"Subscriber\",\"-\",IF(AND('Enrollment Form'!B746=\"Subscriber\",'Enrollment Form'!C746=\"Enroll\",'Enrollment Form'!AA746=\"\"),\"N\",\"Y\"))","v":"-"},{"$f":"IF(OR('Enrollment Form'!B746=\"Subscriber\",'Enrollment Form'!B746=\"\"),\"-\",IF('Enrollment Form'!BP746=\"\",\"N\",\"Y\"))","v":"-"},{"$f":"IF('Enrollment Form'!B746<>\"Subscriber\",\"-\",IF(AND('Enrollment Form'!B746=\"Subscriber\",'Enrollment Form'!G746=\"\"),\"N\",\"Y\"))","v":"-"},{"$f":"IF('Enrollment Form'!A746=\"\",\"\",IF('Enrollment Form'!B746=\"Subscriber\",\"-\",IF(AND('Enrollment Form'!B746<>\"Subscriber\",'Enrollment Form'!G746='Enrollment Form'!H746),\"N\",\"Y\")))","v":""},0]
[747,{"$f":"IF('Enrollment Form'!$A747<>\"\",\"Y\",\"N\")","v":"N"},{"$f":"IF(AND('Enrollment Form'!$B747=\"\",'Enrollment Form'!$C747<>\"\"),\"N\",IF($B740=\"N\",\"\",\"Y\"))","v":""},{"$f":"IF(OR($B740=\"N\",'Enrollment Form'!G747=\"\"),\"\",IF('Enrollment Form'!$B747<>\"Subscriber\",\"\",IF('Enrollment Form'!$G747='Enrollment Form'!$H747,\"Y\",\"N\")))","v":""},{"$f":"IF($B740=\"N\",\"\",IF(AND(COUNTIFS('Enrollment Form'!$H$11:$H$1000,'Enrollment Form'!$H747,'Enrollment Form'!$B$11:$B$1000,'Enrollment Form'!$B747)>1,'Enrollment Form'!$H747<>\"\"),\"N\",\"Y\"))","v":""},{"$f":"IF($B740=\"N\",\"\",IF(LEN('Enrollment Form'!$Y747)=0,\"\",IF(LEN('Enrollment Form'!$Y747)<>5,\"N\",\"Y\")))","v":""},{"$f":"IF($B740=\"N\",\"\",IF(LEN('Enrollment Form'!$AD747=0),\"\",IF(LEN('Enrollment Form'!$AD747)<>5,\"N\",\"Y\")))","v":""},{"$f":"IF($B740=\"N\",\"\",IF(LEN('Enrollment Form'!$BS747=0),\"\",IF(LEN('Enrollment Form'!$BS747)<>5,\"N\",\"Y\")))","v":""},{"$f":"IF($B740=\"N\",\"\",IF(LEN('Enrollment Form'!$AE747)=0,\"\",IF(LEN('Enrollment Form'!$AE747)<>10,\"N\",\"Y\")))","v":""},{"$f":"IF($B740=\"N\",\"\",IF(LEN('Enrollment Form'!$AF747)=0,\"\",IF(LEN('Enrollment Form'!$AF747)<>10,\"N\",\"Y\")))","v":""},{"$f":"IF('Enrollment Form'!$O747<>\"Graded\",\"-\",IF(AND('Enrollment Form'!$O747=\"Graded\",'Enrollment Form'!$AR747<>\"\"),\"Y\",\"N\"))","v":"-"},{"$f":"IF($B740=\"N\",\"\",IF(OR('Enrollment Form'!$B747<>\"Subscriber\",'Enrollment Form'!$C747=\"ROC\"),\"-\",IF(AND('Enrollment Form'!$B747=\"Subscriber\",'Enrollment Form'!$C747=\"Enroll\",'Enrollment Form'!$AJ747<>\"\"),\"Y\",\"N\")))","v":""},{"$f":"IF($B740=\"N\",\"\",IF(OR('Enrollment Form'!$B747<>\"Subscriber\",'Enrollment Form'!$C747=\"ROC\"),\"-\",IF(AND('Enrollment Form'!$B747=\"Subscriber\",'Enrollment Form'!$C747=\"Enroll\",'Enrollment Form'!$AK747<>\"\"),\"Y\",\"N\")))","v":""},{"$f":"IF($B740=\"N\",\"\",IF(OR('Enrollment Form'!$B747<>\"Subscriber\",'Enrollment Form'!$C747=\"ROC\"),\"-\",IF(AND('Enrollment Form'!$B747=\"Subscriber\",'Enrollment Form'!$C747=\"Enroll\",'Enrollment Form'!$AL747<>\"\"),\"Y\",\"N\")))","v":""},{"$f":"IF($B740=\"N\",\"\",IF(OR('Enrollment Form'!$B747<>\"Subscriber\",'Enrollment Form'!$C747=\"ROC\"),\"-\",IF(AND('Enrollment Form'!$B747=\"Subscriber\",'Enrollment Form'!$C747=\"Enroll\",'Enrollment Form'!$AP747<>\"\"),\"Y\",\"N\")))","v":""},{"$f":"IF($B740=\"N\",\"\",IF(OR('Enrollment Form'!$B747<>\"Subscriber\",'Enrollment Form'!$C747=\"ROC\"),\"-\",IF(AND('Enrollment Form'!$B747=\"Subscriber\",'Enrollment Form'!$C747=\"Enroll\",'Enrollment Form'!$AQ747<>\"\"),\"Y\",\"N\")))","v":""},{"$f":"IF($B740=\"N\",\"\",IF(OR('Enrollment Form'!$B747<>\"Subscriber\",'Enrollment Form'!$C747=\"ROC\"),\"-\",IF(AND('Enrollment Form'!$B747=\"Subscriber\",'Enrollment Form'!$C747=\"Enroll\",'Enrollment Form'!$AS747<>\"\"),\"Y\",\"N\")))","v":""},{"$f":"IF($B740=\"N\",\"\",IF($Q740=\"-\",\"-\",IF(AND($Q740=\"Y\",'Enrollment Form'!$AS747=\"No\"),\"-\",IF(AND($Q740=\"Y\",'Enrollment Form'!$AS747=\"Yes\",'Enrollment Form'!$AT747<>\"\"),\"Y\",\"N\"))))","v":""},{"$f":"IF($B740=\"N\",\"\",IF(OR('Enrollment Form'!$B747<>\"Subscriber\",'Enrollment Form'!$C747=\"ROC\"),\"-\",IF(AND('Enrollment Form'!$B747=\"Subscriber\",'Enrollment Form'!$C747=\"Enroll\",'Enrollment Form'!$CV747<>\"\"),\"Y\",\"N\")))","v":""},{"$f":"IF($B740=\"N\",\"\",IF($S740=\"-\",\"-\",IF(AND($S740=\"Y\",'Enrollment Form'!$CV747=\"No\"),\"-\",IF(AND($S740=\"Y\",'Enrollment Form'!$CV747=\"Yes\",'Enrollment Form'!$CW747<>\"\"),\"Y\",\"N\"))))","v":""},{"$f":"IF(OR('Enrollment Form'!$AY747=\"Yes\",'Enrollment Form'!$AY747=\"\"),\"-\",IF(OR(AND('Enrollment Form'!$AY747=\"No\",ISERROR(FIND(\"HMO\",VLOOKUP('Enrollment Form'!G747,'Enrollment Form'!H$11:J$1000,3,FALSE),1))=FALSE,COUNTA('Enrollment Form'!$AZ747:$BC747)=4),AND('Enrollment Form'!$AY747=\"No\",ISERROR(FIND(\"HMO\",VLOOKUP('Enrollment Form'!G747,'Enrollment Form'!H$11:J$1000,3,FALSE),1))=FALSE,COUNTA('Enrollment Form'!$BT747:$BW747)=4)),\"Y\",\"N\"))","v":"-"},{"$f":"IF($B740=\"N\",\"\",IF('Enrollment Form'!$B747=\"Subscriber\",\"-\",IF(COUNTA('Enrollment Form'!$BL747,'Enrollment Form'!$BN747)=2,\"Y\",\"N\")))","v":""},{"$f":"IF($B740=\"N\",\"\",IF(OR('Enrollment Form'!$AX747=\"\",'Enrollment Form'!$AX747=\"No\"),\"-\",IF(AND('Enrollment Form'!$AX747=\"Yes\",COUNTA('Enrollment Form'!$CR747)=1),\"Y\",\"N\")))","v":""},{"$f":"IF(OR('Enrollment Form'!$CR747=\"\",'Enrollment Form'!$CR747=\"No\"),\"-\",IF(COUNTA('Enrollment Form'!$CT747:$CU747)=2,\"Y\",\"N\"))","v":"-"},{"$f":"IF($B740=\"N\",\"\",IF(COUNTIF('Enrollment Form'!$DG747:$DP747,\"Other\")=COUNTA('Enrollment Form'!$DK747,'Enrollment Form'!$DH747,'Enrollment Form'!$DN747,'Enrollment Form'!$DQ747),\"Y\",\"N\"))","v":""},{"$f":"IF($B740=\"N\",\"\",IF(OR('Enrollment Form'!B747<>\"Subscriber\",'Enrollment Form'!C747=\"ROC\",COUNTIF('Enrollment Form'!AV747:AW747,\"Yes\")>=1),\"-\",IF(AND('Enrollment Form'!C747=\"Enroll\",COUNTIF('Enrollment Form'!AV747:AW747,\"No\")=2,'Enrollment Form'!AX747=\"\"),\"N\",\"Y\")))","v":""},{"$f":"IF(OR(B740=\"N\",'Enrollment Form'!B747<>\"Subscriber\",'Enrollment Form'!C747=\"ROC\",'Enrollment Form'!O747<>\"Multiple of Salary\"),\"-\",IF(COUNTA('Enrollment Form'!T747:U747)<2,\"N\",\"Y\"))","v":"-"},{"$f":"IF(B740=\"N\",\"\",IF(OR('Enrollment Form'!C747=\"ROC\",'Enrollment Form'!B747<>\"Subscriber\",'Enrollment Form'!O747=\"Waive\",'Enrollment Form'!O747=\"\"),\"-\",IF('Enrollment Form'!P747=\"\",\"N\",\"Y\")))","v":""},{"$f":"IF($B740=\"N\",\"\",IF(AND('Enrollment Form'!$C747=\"ROC\",'Enrollment Form'!$DR747<>\"\"),\"Y\",IF(AND('Enrollment Form'!$C747=\"ROC\",'Enrollment Form'!$DR747=\"\"),\"N\",IF(AND('Enrollment Form'!$C747=\"Enroll\",'Enrollment Form'!$B747=\"Subscriber\",'Enrollment Form'!$CX747=\"No\",'Enrollment Form'!$DR747=\"\"),\"N\",IF(AND('Enrollment Form'!$C747=\"Enroll\",'Enrollment Form'!$B747=\"Subscriber\",'Enrollment Form'!$CX747=\"Yes\"),\"-\",\"Y\")))))","v":""},{"$f":"IF($B740=\"N\",\"\",IF(AND('Enrollment Form'!$C747=\"ROC\",'Enrollment Form'!$DS747<>\"\"),\"Y\",IF(AND('Enrollment Form'!$C747=\"ROC\",'Enrollment Form'!$DS747=\"\"),\"N\",IF(AND('Enrollment Form'!$C747=\"Enroll\",'Enrollment Form'!$B747=\"Subscriber\",'Enrollment Form'!$CX747=\"No\",'Enrollment Form'!$DS747=\"\"),\"N\",IF(AND('Enrollment Form'!$C747=\"Enroll\",'Enrollment Form'!$B747=\"Subscriber\",'Enrollment Form'!$CX747=\"Yes\"),\"-\",\"Y\")))))","v":""},{"$f":"IF('Enrollment Form'!AH747=\"\",\"\",IF(ISERROR(SEARCH(\".\",'Enrollment Form'!AH747,SEARCH(\"@\",'Enrollment Form'!AH747))),\"N\",\"Y\"))","v":""},{"$f":"IF(OR($B740=\"N\",'Enrollment Form'!$G747=\"\"),\"\",IF('Enrollment Form'!$B747<>\"Subscriber\",\"-\",IF(COUNTIF('Enrollment Form'!$AV747:$AW747,\"Yes\")=2,\"N\",\"Y\")))","v":""},{"$f":"IF(OR('Enrollment Form'!$CJ747=\"\",'Enrollment Form'!$CJ747=\"No\"),\"-\",IF(AND('Enrollment Form'!$CJ747=\"Yes\",'Enrollment Form'!$CK747=\"\"),\"N\",\"Y\"))","v":"-"},{"$f":"IF(OR('Enrollment Form'!$CL747=\"\",'Enrollment Form'!$CL747=\"No\"),\"-\",IF(AND('Enrollment Form'!$CL747=\"Yes\",'Enrollment Form'!$CM747=\"\"),\"N\",\"Y\"))","v":"-"},{"$f":"IF(OR('Enrollment Form'!$CN747=\"\",'Enrollment Form'!$CN747=\"No\"),\"-\",IF(AND('Enrollment Form'!$CN747=\"Yes\",'Enrollment Form'!$CO747=\"\"),\"N\",\"Y\"))","v":"-"},{"$f":"IF(OR('Enrollment Form'!$CN747=\"\",'Enrollment Form'!$CN747=\"No\"),\"-\",IF(AND('Enrollment Form'!$CN747=\"Yes\",'Enrollment Form'!$CP747=\"\"),\"N\",\"Y\"))","v":"-"},{"$f":"IF('Enrollment Form'!B747<>\"Subscriber\",\"-\",IF(AND('Enrollment Form'!B747=\"Subscriber\",'Enrollment Form'!C747=\"Enroll\",'Enrollment Form'!AA747=\"\"),\"N\",\"Y\"))","v":"-"},{"$f":"IF(OR('Enrollment Form'!B747=\"Subscriber\",'Enrollment Form'!B747=\"\"),\"-\",IF('Enrollment Form'!BP747=\"\",\"N\",\"Y\"))","v":"-"},{"$f":"IF('Enrollment Form'!B747<>\"Subscriber\",\"-\",IF(AND('Enrollment Form'!B747=\"Subscriber\",'Enrollment Form'!G747=\"\"),\"N\",\"Y\"))","v":"-"},{"$f":"IF('Enrollment Form'!A747=\"\",\"\",IF('Enrollment Form'!B747=\"Subscriber\",\"-\",IF(AND('Enrollment Form'!B747<>\"Subscriber\",'Enrollment Form'!G747='Enrollment Form'!H747),\"N\",\"Y\")))","v":""},0]
[748,{"$f":"IF('Enrollment Form'!$A748<>\"\",\"Y\",\"N\")","v":"N"},{"$f":"IF(AND('Enrollment Form'!$B748=\"\",'Enrollment Form'!$C748<>\"\"),\"N\",IF($B741=\"N\",\"\",\"Y\"))","v":""},{"$f":"IF(OR($B741=\"N\",'Enrollment Form'!G748=\"\"),\"\",IF('Enrollment Form'!$B748<>\"Subscriber\",\"\",IF('Enrollment Form'!$G748='Enrollment Form'!$H748,\"Y\",\"N\")))","v":""},{"$f":"IF($B741=\"N\",\"\",IF(AND(COUNTIFS('Enrollment Form'!$H$11:$H$1000,'Enrollment Form'!$H748,'Enrollment Form'!$B$11:$B$1000,'Enrollment Form'!$B748)>1,'Enrollment Form'!$H748<>\"\"),\"N\",\"Y\"))","v":""},{"$f":"IF($B741=\"N\",\"\",IF(LEN('Enrollment Form'!$Y748)=0,\"\",IF(LEN('Enrollment Form'!$Y748)<>5,\"N\",\"Y\")))","v":""},{"$f":"IF($B741=\"N\",\"\",IF(LEN('Enrollment Form'!$AD748=0),\"\",IF(LEN('Enrollment Form'!$AD748)<>5,\"N\",\"Y\")))","v":""},{"$f":"IF($B741=\"N\",\"\",IF(LEN('Enrollment Form'!$BS748=0),\"\",IF(LEN('Enrollment Form'!$BS748)<>5,\"N\",\"Y\")))","v":""},{"$f":"IF($B741=\"N\",\"\",IF(LEN('Enrollment Form'!$AE748)=0,\"\",IF(LEN('Enrollment Form'!$AE748)<>10,\"N\",\"Y\")))","v":""},{"$f":"IF($B741=\"N\",\"\",IF(LEN('Enrollment Form'!$AF748)=0,\"\",IF(LEN('Enrollment Form'!$AF748)<>10,\"N\",\"Y\")))","v":""},{"$f":"IF('Enrollment Form'!$O748<>\"Graded\",\"-\",IF(AND('Enrollment Form'!$O748=\"Graded\",'Enrollment Form'!$AR748<>\"\"),\"Y\",\"N\"))","v":"-"},{"$f":"IF($B741=\"N\",\"\",IF(OR('Enrollment Form'!$B748<>\"Subscriber\",'Enrollment Form'!$C748=\"ROC\"),\"-\",IF(AND('Enrollment Form'!$B748=\"Subscriber\",'Enrollment Form'!$C748=\"Enroll\",'Enrollment Form'!$AJ748<>\"\"),\"Y\",\"N\")))","v":""},{"$f":"IF($B741=\"N\",\"\",IF(OR('Enrollment Form'!$B748<>\"Subscriber\",'Enrollment Form'!$C748=\"ROC\"),\"-\",IF(AND('Enrollment Form'!$B748=\"Subscriber\",'Enrollment Form'!$C748=\"Enroll\",'Enrollment Form'!$AK748<>\"\"),\"Y\",\"N\")))","v":""},{"$f":"IF($B741=\"N\",\"\",IF(OR('Enrollment Form'!$B748<>\"Subscriber\",'Enrollment Form'!$C748=\"ROC\"),\"-\",IF(AND('Enrollment Form'!$B748=\"Subscriber\",'Enrollment Form'!$C748=\"Enroll\",'Enrollment Form'!$AL748<>\"\"),\"Y\",\"N\")))","v":""},{"$f":"IF($B741=\"N\",\"\",IF(OR('Enrollment Form'!$B748<>\"Subscriber\",'Enrollment Form'!$C748=\"ROC\"),\"-\",IF(AND('Enrollment Form'!$B748=\"Subscriber\",'Enrollment Form'!$C748=\"Enroll\",'Enrollment Form'!$AP748<>\"\"),\"Y\",\"N\")))","v":""},{"$f":"IF($B741=\"N\",\"\",IF(OR('Enrollment Form'!$B748<>\"Subscriber\",'Enrollment Form'!$C748=\"ROC\"),\"-\",IF(AND('Enrollment Form'!$B748=\"Subscriber\",'Enrollment Form'!$C748=\"Enroll\",'Enrollment Form'!$AQ748<>\"\"),\"Y\",\"N\")))","v":""},{"$f":"IF($B741=\"N\",\"\",IF(OR('Enrollment Form'!$B748<>\"Subscriber\",'Enrollment Form'!$C748=\"ROC\"),\"-\",IF(AND('Enrollment Form'!$B748=\"Subscriber\",'Enrollment Form'!$C748=\"Enroll\",'Enrollment Form'!$AS748<>\"\"),\"Y\",\"N\")))","v":""},{"$f":"IF($B741=\"N\",\"\",IF($Q741=\"-\",\"-\",IF(AND($Q741=\"Y\",'Enrollment Form'!$AS748=\"No\"),\"-\",IF(AND($Q741=\"Y\",'Enrollment Form'!$AS748=\"Yes\",'Enrollment Form'!$AT748<>\"\"),\"Y\",\"N\"))))","v":""},{"$f":"IF($B741=\"N\",\"\",IF(OR('Enrollment Form'!$B748<>\"Subscriber\",'Enrollment Form'!$C748=\"ROC\"),\"-\",IF(AND('Enrollment Form'!$B748=\"Subscriber\",'Enrollment Form'!$C748=\"Enroll\",'Enrollment Form'!$CV748<>\"\"),\"Y\",\"N\")))","v":""},{"$f":"IF($B741=\"N\",\"\",IF($S741=\"-\",\"-\",IF(AND($S741=\"Y\",'Enrollment Form'!$CV748=\"No\"),\"-\",IF(AND($S741=\"Y\",'Enrollment Form'!$CV748=\"Yes\",'Enrollment Form'!$CW748<>\"\"),\"Y\",\"N\"))))","v":""},{"$f":"IF(OR('Enrollment Form'!$AY748=\"Yes\",'Enrollment Form'!$AY748=\"\"),\"-\",IF(OR(AND('Enrollment Form'!$AY748=\"No\",ISERROR(FIND(\"HMO\",VLOOKUP('Enrollment Form'!G748,'Enrollment Form'!H$11:J$1000,3,FALSE),1))=FALSE,COUNTA('Enrollment Form'!$AZ748:$BC748)=4),AND('Enrollment Form'!$AY748=\"No\",ISERROR(FIND(\"HMO\",VLOOKUP('Enrollment Form'!G748,'Enrollment Form'!H$11:J$1000,3,FALSE),1))=FALSE,COUNTA('Enrollment Form'!$BT748:$BW748)=4)),\"Y\",\"N\"))","v":"-"},{"$f":"IF($B741=\"N\",\"\",IF('Enrollment Form'!$B748=\"Subscriber\",\"-\",IF(COUNTA('Enrollment Form'!$BL748,'Enrollment Form'!$BN748)=2,\"Y\",\"N\")))","v":""},{"$f":"IF($B741=\"N\",\"\",IF(OR('Enrollment Form'!$AX748=\"\",'Enrollment Form'!$AX748=\"No\"),\"-\",IF(AND('Enrollment Form'!$AX748=\"Yes\",COUNTA('Enrollment Form'!$CR748)=1),\"Y\",\"N\")))","v":""},{"$f":"IF(OR('Enrollment Form'!$CR748=\"\",'Enrollment Form'!$CR748=\"No\"),\"-\",IF(COUNTA('Enrollment Form'!$CT748:$CU748)=2,\"Y\",\"N\"))","v":"-"},{"$f":"IF($B741=\"N\",\"\",IF(COUNTIF('Enrollment Form'!$DG748:$DP748,\"Other\")=COUNTA('Enrollment Form'!$DK748,'Enrollment Form'!$DH748,'Enrollment Form'!$DN748,'Enrollment Form'!$DQ748),\"Y\",\"N\"))","v":""},{"$f":"IF($B741=\"N\",\"\",IF(OR('Enrollment Form'!B748<>\"Subscriber\",'Enrollment Form'!C748=\"ROC\",COUNTIF('Enrollment Form'!AV748:AW748,\"Yes\")>=1),\"-\",IF(AND('Enrollment Form'!C748=\"Enroll\",COUNTIF('Enrollment Form'!AV748:AW748,\"No\")=2,'Enrollment Form'!AX748=\"\"),\"N\",\"Y\")))","v":""},{"$f":"IF(OR(B741=\"N\",'Enrollment Form'!B748<>\"Subscriber\",'Enrollment Form'!C748=\"ROC\",'Enrollment Form'!O748<>\"Multiple of Salary\"),\"-\",IF(COUNTA('Enrollment Form'!T748:U748)<2,\"N\",\"Y\"))","v":"-"},{"$f":"IF(B741=\"N\",\"\",IF(OR('Enrollment Form'!C748=\"ROC\",'Enrollment Form'!B748<>\"Subscriber\",'Enrollment Form'!O748=\"Waive\",'Enrollment Form'!O748=\"\"),\"-\",IF('Enrollment Form'!P748=\"\",\"N\",\"Y\")))","v":""},{"$f":"IF($B741=\"N\",\"\",IF(AND('Enrollment Form'!$C748=\"ROC\",'Enrollment Form'!$DR748<>\"\"),\"Y\",IF(AND('Enrollment Form'!$C748=\"ROC\",'Enrollment Form'!$DR748=\"\"),\"N\",IF(AND('Enrollment Form'!$C748=\"Enroll\",'Enrollment Form'!$B748=\"Subscriber\",'Enrollment Form'!$CX748=\"No\",'Enrollment Form'!$DR748=\"\"),\"N\",IF(AND('Enrollment Form'!$C748=\"Enroll\",'Enrollment Form'!$B748=\"Subscriber\",'Enrollment Form'!$CX748=\"Yes\"),\"-\",\"Y\")))))","v":""},{"$f":"IF($B741=\"N\",\"\",IF(AND('Enrollment Form'!$C748=\"ROC\",'Enrollment Form'!$DS748<>\"\"),\"Y\",IF(AND('Enrollment Form'!$C748=\"ROC\",'Enrollment Form'!$DS748=\"\"),\"N\",IF(AND('Enrollment Form'!$C748=\"Enroll\",'Enrollment Form'!$B748=\"Subscriber\",'Enrollment Form'!$CX748=\"No\",'Enrollment Form'!$DS748=\"\"),\"N\",IF(AND('Enrollment Form'!$C748=\"Enroll\",'Enrollment Form'!$B748=\"Subscriber\",'Enrollment Form'!$CX748=\"Yes\"),\"-\",\"Y\")))))","v":""},{"$f":"IF('Enrollment Form'!AH748=\"\",\"\",IF(ISERROR(SEARCH(\".\",'Enrollment Form'!AH748,SEARCH(\"@\",'Enrollment Form'!AH748))),\"N\",\"Y\"))","v":""},{"$f":"IF(OR($B741=\"N\",'Enrollment Form'!$G748=\"\"),\"\",IF('Enrollment Form'!$B748<>\"Subscriber\",\"-\",IF(COUNTIF('Enrollment Form'!$AV748:$AW748,\"Yes\")=2,\"N\",\"Y\")))","v":""},{"$f":"IF(OR('Enrollment Form'!$CJ748=\"\",'Enrollment Form'!$CJ748=\"No\"),\"-\",IF(AND('Enrollment Form'!$CJ748=\"Yes\",'Enrollment Form'!$CK748=\"\"),\"N\",\"Y\"))","v":"-"},{"$f":"IF(OR('Enrollment Form'!$CL748=\"\",'Enrollment Form'!$CL748=\"No\"),\"-\",IF(AND('Enrollment Form'!$CL748=\"Yes\",'Enrollment Form'!$CM748=\"\"),\"N\",\"Y\"))","v":"-"},{"$f":"IF(OR('Enrollment Form'!$CN748=\"\",'Enrollment Form'!$CN748=\"No\"),\"-\",IF(AND('Enrollment Form'!$CN748=\"Yes\",'Enrollment Form'!$CO748=\"\"),\"N\",\"Y\"))","v":"-"},{"$f":"IF(OR('Enrollment Form'!$CN748=\"\",'Enrollment Form'!$CN748=\"No\"),\"-\",IF(AND('Enrollment Form'!$CN748=\"Yes\",'Enrollment Form'!$CP748=\"\"),\"N\",\"Y\"))","v":"-"},{"$f":"IF('Enrollment Form'!B748<>\"Subscriber\",\"-\",IF(AND('Enrollment Form'!B748=\"Subscriber\",'Enrollment Form'!C748=\"Enroll\",'Enrollment Form'!AA748=\"\"),\"N\",\"Y\"))","v":"-"},{"$f":"IF(OR('Enrollment Form'!B748=\"Subscriber\",'Enrollment Form'!B748=\"\"),\"-\",IF('Enrollment Form'!BP748=\"\",\"N\",\"Y\"))","v":"-"},{"$f":"IF('Enrollment Form'!B748<>\"Subscriber\",\"-\",IF(AND('Enrollment Form'!B748=\"Subscriber\",'Enrollment Form'!G748=\"\"),\"N\",\"Y\"))","v":"-"},{"$f":"IF('Enrollment Form'!A748=\"\",\"\",IF('Enrollment Form'!B748=\"Subscriber\",\"-\",IF(AND('Enrollment Form'!B748<>\"Subscriber\",'Enrollment Form'!G748='Enrollment Form'!H748),\"N\",\"Y\")))","v":""},0]
[749,{"$f":"IF('Enrollment Form'!$A749<>\"\",\"Y\",\"N\")","v":"N"},{"$f":"IF(AND('Enrollment Form'!$B749=\"\",'Enrollment Form'!$C749<>\"\"),\"N\",IF($B742=\"N\",\"\",\"Y\"))","v":""},{"$f":"IF(OR($B742=\"N\",'Enrollment Form'!G749=\"\"),\"\",IF('Enrollment Form'!$B749<>\"Subscriber\",\"\",IF('Enrollment Form'!$G749='Enrollment Form'!$H749,\"Y\",\"N\")))","v":""},{"$f":"IF($B742=\"N\",\"\",IF(AND(COUNTIFS('Enrollment Form'!$H$11:$H$1000,'Enrollment Form'!$H749,'Enrollment Form'!$B$11:$B$1000,'Enrollment Form'!$B749)>1,'Enrollment Form'!$H749<>\"\"),\"N\",\"Y\"))","v":""},{"$f":"IF($B742=\"N\",\"\",IF(LEN('Enrollment Form'!$Y749)=0,\"\",IF(LEN('Enrollment Form'!$Y749)<>5,\"N\",\"Y\")))","v":""},{"$f":"IF($B742=\"N\",\"\",IF(LEN('Enrollment Form'!$AD749=0),\"\",IF(LEN('Enrollment Form'!$AD749)<>5,\"N\",\"Y\")))","v":""},{"$f":"IF($B742=\"N\",\"\",IF(LEN('Enrollment Form'!$BS749=0),\"\",IF(LEN('Enrollment Form'!$BS749)<>5,\"N\",\"Y\")))","v":""},{"$f":"IF($B742=\"N\",\"\",IF(LEN('Enrollment Form'!$AE749)=0,\"\",IF(LEN('Enrollment Form'!$AE749)<>10,\"N\",\"Y\")))","v":""},{"$f":"IF($B742=\"N\",\"\",IF(LEN('Enrollment Form'!$AF749)=0,\"\",IF(LEN('Enrollment Form'!$AF749)<>10,\"N\",\"Y\")))","v":""},{"$f":"IF('Enrollment Form'!$O749<>\"Graded\",\"-\",IF(AND('Enrollment Form'!$O749=\"Graded\",'Enrollment Form'!$AR749<>\"\"),\"Y\",\"N\"))","v":"-"},{"$f":"IF($B742=\"N\",\"\",IF(OR('Enrollment Form'!$B749<>\"Subscriber\",'Enrollment Form'!$C749=\"ROC\"),\"-\",IF(AND('Enrollment Form'!$B749=\"Subscriber\",'Enrollment Form'!$C749=\"Enroll\",'Enrollment Form'!$AJ749<>\"\"),\"Y\",\"N\")))","v":""},{"$f":"IF($B742=\"N\",\"\",IF(OR('Enrollment Form'!$B749<>\"Subscriber\",'Enrollment Form'!$C749=\"ROC\"),\"-\",IF(AND('Enrollment Form'!$B749=\"Subscriber\",'Enrollment Form'!$C749=\"Enroll\",'Enrollment Form'!$AK749<>\"\"),\"Y\",\"N\")))","v":""},{"$f":"IF($B742=\"N\",\"\",IF(OR('Enrollment Form'!$B749<>\"Subscriber\",'Enrollment Form'!$C749=\"ROC\"),\"-\",IF(AND('Enrollment Form'!$B749=\"Subscriber\",'Enrollment Form'!$C749=\"Enroll\",'Enrollment Form'!$AL749<>\"\"),\"Y\",\"N\")))","v":""},{"$f":"IF($B742=\"N\",\"\",IF(OR('Enrollment Form'!$B749<>\"Subscriber\",'Enrollment Form'!$C749=\"ROC\"),\"-\",IF(AND('Enrollment Form'!$B749=\"Subscriber\",'Enrollment Form'!$C749=\"Enroll\",'Enrollment Form'!$AP749<>\"\"),\"Y\",\"N\")))","v":""},{"$f":"IF($B742=\"N\",\"\",IF(OR('Enrollment Form'!$B749<>\"Subscriber\",'Enrollment Form'!$C749=\"ROC\"),\"-\",IF(AND('Enrollment Form'!$B749=\"Subscriber\",'Enrollment Form'!$C749=\"Enroll\",'Enrollment Form'!$AQ749<>\"\"),\"Y\",\"N\")))","v":""},{"$f":"IF($B742=\"N\",\"\",IF(OR('Enrollment Form'!$B749<>\"Subscriber\",'Enrollment Form'!$C749=\"ROC\"),\"-\",IF(AND('Enrollment Form'!$B749=\"Subscriber\",'Enrollment Form'!$C749=\"Enroll\",'Enrollment Form'!$AS749<>\"\"),\"Y\",\"N\")))","v":""},{"$f":"IF($B742=\"N\",\"\",IF($Q742=\"-\",\"-\",IF(AND($Q742=\"Y\",'Enrollment Form'!$AS749=\"No\"),\"-\",IF(AND($Q742=\"Y\",'Enrollment Form'!$AS749=\"Yes\",'Enrollment Form'!$AT749<>\"\"),\"Y\",\"N\"))))","v":""},{"$f":"IF($B742=\"N\",\"\",IF(OR('Enrollment Form'!$B749<>\"Subscriber\",'Enrollment Form'!$C749=\"ROC\"),\"-\",IF(AND('Enrollment Form'!$B749=\"Subscriber\",'Enrollment Form'!$C749=\"Enroll\",'Enrollment Form'!$CV749<>\"\"),\"Y\",\"N\")))","v":""},{"$f":"IF($B742=\"N\",\"\",IF($S742=\"-\",\"-\",IF(AND($S742=\"Y\",'Enrollment Form'!$CV749=\"No\"),\"-\",IF(AND($S742=\"Y\",'Enrollment Form'!$CV749=\"Yes\",'Enrollment Form'!$CW749<>\"\"),\"Y\",\"N\"))))","v":""},{"$f":"IF(OR('Enrollment Form'!$AY749=\"Yes\",'Enrollment Form'!$AY749=\"\"),\"-\",IF(OR(AND('Enrollment Form'!$AY749=\"No\",ISERROR(FIND(\"HMO\",VLOOKUP('Enrollment Form'!G749,'Enrollment Form'!H$11:J$1000,3,FALSE),1))=FALSE,COUNTA('Enrollment Form'!$AZ749:$BC749)=4),AND('Enrollment Form'!$AY749=\"No\",ISERROR(FIND(\"HMO\",VLOOKUP('Enrollment Form'!G749,'Enrollment Form'!H$11:J$1000,3,FALSE),1))=FALSE,COUNTA('Enrollment Form'!$BT749:$BW749)=4)),\"Y\",\"N\"))","v":"-"},{"$f":"IF($B742=\"N\",\"\",IF('Enrollment Form'!$B749=\"Subscriber\",\"-\",IF(COUNTA('Enrollment Form'!$BL749,'Enrollment Form'!$BN749)=2,\"Y\",\"N\")))","v":""},{"$f":"IF($B742=\"N\",\"\",IF(OR('Enrollment Form'!$AX749=\"\",'Enrollment Form'!$AX749=\"No\"),\"-\",IF(AND('Enrollment Form'!$AX749=\"Yes\",COUNTA('Enrollment Form'!$CR749)=1),\"Y\",\"N\")))","v":""},{"$f":"IF(OR('Enrollment Form'!$CR749=\"\",'Enrollment Form'!$CR749=\"No\"),\"-\",IF(COUNTA('Enrollment Form'!$CT749:$CU749)=2,\"Y\",\"N\"))","v":"-"},{"$f":"IF($B742=\"N\",\"\",IF(COUNTIF('Enrollment Form'!$DG749:$DP749,\"Other\")=COUNTA('Enrollment Form'!$DK749,'Enrollment Form'!$DH749,'Enrollment Form'!$DN749,'Enrollment Form'!$DQ749),\"Y\",\"N\"))","v":""},{"$f":"IF($B742=\"N\",\"\",IF(OR('Enrollment Form'!B749<>\"Subscriber\",'Enrollment Form'!C749=\"ROC\",COUNTIF('Enrollment Form'!AV749:AW749,\"Yes\")>=1),\"-\",IF(AND('Enrollment Form'!C749=\"Enroll\",COUNTIF('Enrollment Form'!AV749:AW749,\"No\")=2,'Enrollment Form'!AX749=\"\"),\"N\",\"Y\")))","v":""},{"$f":"IF(OR(B742=\"N\",'Enrollment Form'!B749<>\"Subscriber\",'Enrollment Form'!C749=\"ROC\",'Enrollment Form'!O749<>\"Multiple of Salary\"),\"-\",IF(COUNTA('Enrollment Form'!T749:U749)<2,\"N\",\"Y\"))","v":"-"},{"$f":"IF(B742=\"N\",\"\",IF(OR('Enrollment Form'!C749=\"ROC\",'Enrollment Form'!B749<>\"Subscriber\",'Enrollment Form'!O749=\"Waive\",'Enrollment Form'!O749=\"\"),\"-\",IF('Enrollment Form'!P749=\"\",\"N\",\"Y\")))","v":""},{"$f":"IF($B742=\"N\",\"\",IF(AND('Enrollment Form'!$C749=\"ROC\",'Enrollment Form'!$DR749<>\"\"),\"Y\",IF(AND('Enrollment Form'!$C749=\"ROC\",'Enrollment Form'!$DR749=\"\"),\"N\",IF(AND('Enrollment Form'!$C749=\"Enroll\",'Enrollment Form'!$B749=\"Subscriber\",'Enrollment Form'!$CX749=\"No\",'Enrollment Form'!$DR749=\"\"),\"N\",IF(AND('Enrollment Form'!$C749=\"Enroll\",'Enrollment Form'!$B749=\"Subscriber\",'Enrollment Form'!$CX749=\"Yes\"),\"-\",\"Y\")))))","v":""},{"$f":"IF($B742=\"N\",\"\",IF(AND('Enrollment Form'!$C749=\"ROC\",'Enrollment Form'!$DS749<>\"\"),\"Y\",IF(AND('Enrollment Form'!$C749=\"ROC\",'Enrollment Form'!$DS749=\"\"),\"N\",IF(AND('Enrollment Form'!$C749=\"Enroll\",'Enrollment Form'!$B749=\"Subscriber\",'Enrollment Form'!$CX749=\"No\",'Enrollment Form'!$DS749=\"\"),\"N\",IF(AND('Enrollment Form'!$C749=\"Enroll\",'Enrollment Form'!$B749=\"Subscriber\",'Enrollment Form'!$CX749=\"Yes\"),\"-\",\"Y\")))))","v":""},{"$f":"IF('Enrollment Form'!AH749=\"\",\"\",IF(ISERROR(SEARCH(\".\",'Enrollment Form'!AH749,SEARCH(\"@\",'Enrollment Form'!AH749))),\"N\",\"Y\"))","v":""},{"$f":"IF(OR($B742=\"N\",'Enrollment Form'!$G749=\"\"),\"\",IF('Enrollment Form'!$B749<>\"Subscriber\",\"-\",IF(COUNTIF('Enrollment Form'!$AV749:$AW749,\"Yes\")=2,\"N\",\"Y\")))","v":""},{"$f":"IF(OR('Enrollment Form'!$CJ749=\"\",'Enrollment Form'!$CJ749=\"No\"),\"-\",IF(AND('Enrollment Form'!$CJ749=\"Yes\",'Enrollment Form'!$CK749=\"\"),\"N\",\"Y\"))","v":"-"},{"$f":"IF(OR('Enrollment Form'!$CL749=\"\",'Enrollment Form'!$CL749=\"No\"),\"-\",IF(AND('Enrollment Form'!$CL749=\"Yes\",'Enrollment Form'!$CM749=\"\"),\"N\",\"Y\"))","v":"-"},{"$f":"IF(OR('Enrollment Form'!$CN749=\"\",'Enrollment Form'!$CN749=\"No\"),\"-\",IF(AND('Enrollment Form'!$CN749=\"Yes\",'Enrollment Form'!$CO749=\"\"),\"N\",\"Y\"))","v":"-"},{"$f":"IF(OR('Enrollment Form'!$CN749=\"\",'Enrollment Form'!$CN749=\"No\"),\"-\",IF(AND('Enrollment Form'!$CN749=\"Yes\",'Enrollment Form'!$CP749=\"\"),\"N\",\"Y\"))","v":"-"},{"$f":"IF('Enrollment Form'!B749<>\"Subscriber\",\"-\",IF(AND('Enrollment Form'!B749=\"Subscriber\",'Enrollment Form'!C749=\"Enroll\",'Enrollment Form'!AA749=\"\"),\"N\",\"Y\"))","v":"-"},{"$f":"IF(OR('Enrollment Form'!B749=\"Subscriber\",'Enrollment Form'!B749=\"\"),\"-\",IF('Enrollment Form'!BP749=\"\",\"N\",\"Y\"))","v":"-"},{"$f":"IF('Enrollment Form'!B749<>\"Subscriber\",\"-\",IF(AND('Enrollment Form'!B749=\"Subscriber\",'Enrollment Form'!G749=\"\"),\"N\",\"Y\"))","v":"-"},{"$f":"IF('Enrollment Form'!A749=\"\",\"\",IF('Enrollment Form'!B749=\"Subscriber\",\"-\",IF(AND('Enrollment Form'!B749<>\"Subscriber\",'Enrollment Form'!G749='Enrollment Form'!H749),\"N\",\"Y\")))","v":""},0]
[750,{"$f":"IF('Enrollment Form'!$A750<>\"\",\"Y\",\"N\")","v":"N"},{"$f":"IF(AND('Enrollment Form'!$B750=\"\",'Enrollment Form'!$C750<>\"\"),\"N\",IF($B743=\"N\",\"\",\"Y\"))","v":""},{"$f":"IF(OR($B743=\"N\",'Enrollment Form'!G750=\"\"),\"\",IF('Enrollment Form'!$B750<>\"Subscriber\",\"\",IF('Enrollment Form'!$G750='Enrollment Form'!$H750,\"Y\",\"N\")))","v":""},{"$f":"IF($B743=\"N\",\"\",IF(AND(COUNTIFS('Enrollment Form'!$H$11:$H$1000,'Enrollment Form'!$H750,'Enrollment Form'!$B$11:$B$1000,'Enrollment Form'!$B750)>1,'Enrollment Form'!$H750<>\"\"),\"N\",\"Y\"))","v":""},{"$f":"IF($B743=\"N\",\"\",IF(LEN('Enrollment Form'!$Y750)=0,\"\",IF(LEN('Enrollment Form'!$Y750)<>5,\"N\",\"Y\")))","v":""},{"$f":"IF($B743=\"N\",\"\",IF(LEN('Enrollment Form'!$AD750=0),\"\",IF(LEN('Enrollment Form'!$AD750)<>5,\"N\",\"Y\")))","v":""},{"$f":"IF($B743=\"N\",\"\",IF(LEN('Enrollment Form'!$BS750=0),\"\",IF(LEN('Enrollment Form'!$BS750)<>5,\"N\",\"Y\")))","v":""},{"$f":"IF($B743=\"N\",\"\",IF(LEN('Enrollment Form'!$AE750)=0,\"\",IF(LEN('Enrollment Form'!$AE750)<>10,\"N\",\"Y\")))","v":""},{"$f":"IF($B743=\"N\",\"\",IF(LEN('Enrollment Form'!$AF750)=0,\"\",IF(LEN('Enrollment Form'!$AF750)<>10,\"N\",\"Y\")))","v":""},{"$f":"IF('Enrollment Form'!$O750<>\"Graded\",\"-\",IF(AND('Enrollment Form'!$O750=\"Graded\",'Enrollment Form'!$AR750<>\"\"),\"Y\",\"N\"))","v":"-"},{"$f":"IF($B743=\"N\",\"\",IF(OR('Enrollment Form'!$B750<>\"Subscriber\",'Enrollment Form'!$C750=\"ROC\"),\"-\",IF(AND('Enrollment Form'!$B750=\"Subscriber\",'Enrollment Form'!$C750=\"Enroll\",'Enrollment Form'!$AJ750<>\"\"),\"Y\",\"N\")))","v":""},{"$f":"IF($B743=\"N\",\"\",IF(OR('Enrollment Form'!$B750<>\"Subscriber\",'Enrollment Form'!$C750=\"ROC\"),\"-\",IF(AND('Enrollment Form'!$B750=\"Subscriber\",'Enrollment Form'!$C750=\"Enroll\",'Enrollment Form'!$AK750<>\"\"),\"Y\",\"N\")))","v":""},{"$f":"IF($B743=\"N\",\"\",IF(OR('Enrollment Form'!$B750<>\"Subscriber\",'Enrollment Form'!$C750=\"ROC\"),\"-\",IF(AND('Enrollment Form'!$B750=\"Subscriber\",'Enrollment Form'!$C750=\"Enroll\",'Enrollment Form'!$AL750<>\"\"),\"Y\",\"N\")))","v":""},{"$f":"IF($B743=\"N\",\"\",IF(OR('Enrollment Form'!$B750<>\"Subscriber\",'Enrollment Form'!$C750=\"ROC\"),\"-\",IF(AND('Enrollment Form'!$B750=\"Subscriber\",'Enrollment Form'!$C750=\"Enroll\",'Enrollment Form'!$AP750<>\"\"),\"Y\",\"N\")))","v":""},{"$f":"IF($B743=\"N\",\"\",IF(OR('Enrollment Form'!$B750<>\"Subscriber\",'Enrollment Form'!$C750=\"ROC\"),\"-\",IF(AND('Enrollment Form'!$B750=\"Subscriber\",'Enrollment Form'!$C750=\"Enroll\",'Enrollment Form'!$AQ750<>\"\"),\"Y\",\"N\")))","v":""},{"$f":"IF($B743=\"N\",\"\",IF(OR('Enrollment Form'!$B750<>\"Subscriber\",'Enrollment Form'!$C750=\"ROC\"),\"-\",IF(AND('Enrollment Form'!$B750=\"Subscriber\",'Enrollment Form'!$C750=\"Enroll\",'Enrollment Form'!$AS750<>\"\"),\"Y\",\"N\")))","v":""},{"$f":"IF($B743=\"N\",\"\",IF($Q743=\"-\",\"-\",IF(AND($Q743=\"Y\",'Enrollment Form'!$AS750=\"No\"),\"-\",IF(AND($Q743=\"Y\",'Enrollment Form'!$AS750=\"Yes\",'Enrollment Form'!$AT750<>\"\"),\"Y\",\"N\"))))","v":""},{"$f":"IF($B743=\"N\",\"\",IF(OR('Enrollment Form'!$B750<>\"Subscriber\",'Enrollment Form'!$C750=\"ROC\"),\"-\",IF(AND('Enrollment Form'!$B750=\"Subscriber\",'Enrollment Form'!$C750=\"Enroll\",'Enrollment Form'!$CV750<>\"\"),\"Y\",\"N\")))","v":""},{"$f":"IF($B743=\"N\",\"\",IF($S743=\"-\",\"-\",IF(AND($S743=\"Y\",'Enrollment Form'!$CV750=\"No\"),\"-\",IF(AND($S743=\"Y\",'Enrollment Form'!$CV750=\"Yes\",'Enrollment Form'!$CW750<>\"\"),\"Y\",\"N\"))))","v":""},{"$f":"IF(OR('Enrollment Form'!$AY750=\"Yes\",'Enrollment Form'!$AY750=\"\"),\"-\",IF(OR(AND('Enrollment Form'!$AY750=\"No\",ISERROR(FIND(\"HMO\",VLOOKUP('Enrollment Form'!G750,'Enrollment Form'!H$11:J$1000,3,FALSE),1))=FALSE,COUNTA('Enrollment Form'!$AZ750:$BC750)=4),AND('Enrollment Form'!$AY750=\"No\",ISERROR(FIND(\"HMO\",VLOOKUP('Enrollment Form'!G750,'Enrollment Form'!H$11:J$1000,3,FALSE),1))=FALSE,COUNTA('Enrollment Form'!$BT750:$BW750)=4)),\"Y\",\"N\"))","v":"-"},{"$f":"IF($B743=\"N\",\"\",IF('Enrollment Form'!$B750=\"Subscriber\",\"-\",IF(COUNTA('Enrollment Form'!$BL750,'Enrollment Form'!$BN750)=2,\"Y\",\"N\")))","v":""},{"$f":"IF($B743=\"N\",\"\",IF(OR('Enrollment Form'!$AX750=\"\",'Enrollment Form'!$AX750=\"No\"),\"-\",IF(AND('Enrollment Form'!$AX750=\"Yes\",COUNTA('Enrollment Form'!$CR750)=1),\"Y\",\"N\")))","v":""},{"$f":"IF(OR('Enrollment Form'!$CR750=\"\",'Enrollment Form'!$CR750=\"No\"),\"-\",IF(COUNTA('Enrollment Form'!$CT750:$CU750)=2,\"Y\",\"N\"))","v":"-"},{"$f":"IF($B743=\"N\",\"\",IF(COUNTIF('Enrollment Form'!$DG750:$DP750,\"Other\")=COUNTA('Enrollment Form'!$DK750,'Enrollment Form'!$DH750,'Enrollment Form'!$DN750,'Enrollment Form'!$DQ750),\"Y\",\"N\"))","v":""},{"$f":"IF($B743=\"N\",\"\",IF(OR('Enrollment Form'!B750<>\"Subscriber\",'Enrollment Form'!C750=\"ROC\",COUNTIF('Enrollment Form'!AV750:AW750,\"Yes\")>=1),\"-\",IF(AND('Enrollment Form'!C750=\"Enroll\",COUNTIF('Enrollment Form'!AV750:AW750,\"No\")=2,'Enrollment Form'!AX750=\"\"),\"N\",\"Y\")))","v":""},{"$f":"IF(OR(B743=\"N\",'Enrollment Form'!B750<>\"Subscriber\",'Enrollment Form'!C750=\"ROC\",'Enrollment Form'!O750<>\"Multiple of Salary\"),\"-\",IF(COUNTA('Enrollment Form'!T750:U750)<2,\"N\",\"Y\"))","v":"-"},{"$f":"IF(B743=\"N\",\"\",IF(OR('Enrollment Form'!C750=\"ROC\",'Enrollment Form'!B750<>\"Subscriber\",'Enrollment Form'!O750=\"Waive\",'Enrollment Form'!O750=\"\"),\"-\",IF('Enrollment Form'!P750=\"\",\"N\",\"Y\")))","v":""},{"$f":"IF($B743=\"N\",\"\",IF(AND('Enrollment Form'!$C750=\"ROC\",'Enrollment Form'!$DR750<>\"\"),\"Y\",IF(AND('Enrollment Form'!$C750=\"ROC\",'Enrollment Form'!$DR750=\"\"),\"N\",IF(AND('Enrollment Form'!$C750=\"Enroll\",'Enrollment Form'!$B750=\"Subscriber\",'Enrollment Form'!$CX750=\"No\",'Enrollment Form'!$DR750=\"\"),\"N\",IF(AND('Enrollment Form'!$C750=\"Enroll\",'Enrollment Form'!$B750=\"Subscriber\",'Enrollment Form'!$CX750=\"Yes\"),\"-\",\"Y\")))))","v":""},{"$f":"IF($B743=\"N\",\"\",IF(AND('Enrollment Form'!$C750=\"ROC\",'Enrollment Form'!$DS750<>\"\"),\"Y\",IF(AND('Enrollment Form'!$C750=\"ROC\",'Enrollment Form'!$DS750=\"\"),\"N\",IF(AND('Enrollment Form'!$C750=\"Enroll\",'Enrollment Form'!$B750=\"Subscriber\",'Enrollment Form'!$CX750=\"No\",'Enrollment Form'!$DS750=\"\"),\"N\",IF(AND('Enrollment Form'!$C750=\"Enroll\",'Enrollment Form'!$B750=\"Subscriber\",'Enrollment Form'!$CX750=\"Yes\"),\"-\",\"Y\")))))","v":""},{"$f":"IF('Enrollment Form'!AH750=\"\",\"\",IF(ISERROR(SEARCH(\".\",'Enrollment Form'!AH750,SEARCH(\"@\",'Enrollment Form'!AH750))),\"N\",\"Y\"))","v":""},{"$f":"IF(OR($B743=\"N\",'Enrollment Form'!$G750=\"\"),\"\",IF('Enrollment Form'!$B750<>\"Subscriber\",\"-\",IF(COUNTIF('Enrollment Form'!$AV750:$AW750,\"Yes\")=2,\"N\",\"Y\")))","v":""},{"$f":"IF(OR('Enrollment Form'!$CJ750=\"\",'Enrollment Form'!$CJ750=\"No\"),\"-\",IF(AND('Enrollment Form'!$CJ750=\"Yes\",'Enrollment Form'!$CK750=\"\"),\"N\",\"Y\"))","v":"-"},{"$f":"IF(OR('Enrollment Form'!$CL750=\"\",'Enrollment Form'!$CL750=\"No\"),\"-\",IF(AND('Enrollment Form'!$CL750=\"Yes\",'Enrollment Form'!$CM750=\"\"),\"N\",\"Y\"))","v":"-"},{"$f":"IF(OR('Enrollment Form'!$CN750=\"\",'Enrollment Form'!$CN750=\"No\"),\"-\",IF(AND('Enrollment Form'!$CN750=\"Yes\",'Enrollment Form'!$CO750=\"\"),\"N\",\"Y\"))","v":"-"},{"$f":"IF(OR('Enrollment Form'!$CN750=\"\",'Enrollment Form'!$CN750=\"No\"),\"-\",IF(AND('Enrollment Form'!$CN750=\"Yes\",'Enrollment Form'!$CP750=\"\"),\"N\",\"Y\"))","v":"-"},{"$f":"IF('Enrollment Form'!B750<>\"Subscriber\",\"-\",IF(AND('Enrollment Form'!B750=\"Subscriber\",'Enrollment Form'!C750=\"Enroll\",'Enrollment Form'!AA750=\"\"),\"N\",\"Y\"))","v":"-"},{"$f":"IF(OR('Enrollment Form'!B750=\"Subscriber\",'Enrollment Form'!B750=\"\"),\"-\",IF('Enrollment Form'!BP750=\"\",\"N\",\"Y\"))","v":"-"},{"$f":"IF('Enrollment Form'!B750<>\"Subscriber\",\"-\",IF(AND('Enrollment Form'!B750=\"Subscriber\",'Enrollment Form'!G750=\"\"),\"N\",\"Y\"))","v":"-"},{"$f":"IF('Enrollment Form'!A750=\"\",\"\",IF('Enrollment Form'!B750=\"Subscriber\",\"-\",IF(AND('Enrollment Form'!B750<>\"Subscriber\",'Enrollment Form'!G750='Enrollment Form'!H750),\"N\",\"Y\")))","v":""},0]
[751,{"$f":"IF('Enrollment Form'!$A751<>\"\",\"Y\",\"N\")","v":"N"},{"$f":"IF(AND('Enrollment Form'!$B751=\"\",'Enrollment Form'!$C751<>\"\"),\"N\",IF($B744=\"N\",\"\",\"Y\"))","v":""},{"$f":"IF(OR($B744=\"N\",'Enrollment Form'!G751=\"\"),\"\",IF('Enrollment Form'!$B751<>\"Subscriber\",\"\",IF('Enrollment Form'!$G751='Enrollment Form'!$H751,\"Y\",\"N\")))","v":""},{"$f":"IF($B744=\"N\",\"\",IF(AND(COUNTIFS('Enrollment Form'!$H$11:$H$1000,'Enrollment Form'!$H751,'Enrollment Form'!$B$11:$B$1000,'Enrollment Form'!$B751)>1,'Enrollment Form'!$H751<>\"\"),\"N\",\"Y\"))","v":""},{"$f":"IF($B744=\"N\",\"\",IF(LEN('Enrollment Form'!$Y751)=0,\"\",IF(LEN('Enrollment Form'!$Y751)<>5,\"N\",\"Y\")))","v":""},{"$f":"IF($B744=\"N\",\"\",IF(LEN('Enrollment Form'!$AD751=0),\"\",IF(LEN('Enrollment Form'!$AD751)<>5,\"N\",\"Y\")))","v":""},{"$f":"IF($B744=\"N\",\"\",IF(LEN('Enrollment Form'!$BS751=0),\"\",IF(LEN('Enrollment Form'!$BS751)<>5,\"N\",\"Y\")))","v":""},{"$f":"IF($B744=\"N\",\"\",IF(LEN('Enrollment Form'!$AE751)=0,\"\",IF(LEN('Enrollment Form'!$AE751)<>10,\"N\",\"Y\")))","v":""},{"$f":"IF($B744=\"N\",\"\",IF(LEN('Enrollment Form'!$AF751)=0,\"\",IF(LEN('Enrollment Form'!$AF751)<>10,\"N\",\"Y\")))","v":""},{"$f":"IF('Enrollment Form'!$O751<>\"Graded\",\"-\",IF(AND('Enrollment Form'!$O751=\"Graded\",'Enrollment Form'!$AR751<>\"\"),\"Y\",\"N\"))","v":"-"},{"$f":"IF($B744=\"N\",\"\",IF(OR('Enrollment Form'!$B751<>\"Subscriber\",'Enrollment Form'!$C751=\"ROC\"),\"-\",IF(AND('Enrollment Form'!$B751=\"Subscriber\",'Enrollment Form'!$C751=\"Enroll\",'Enrollment Form'!$AJ751<>\"\"),\"Y\",\"N\")))","v":""},{"$f":"IF($B744=\"N\",\"\",IF(OR('Enrollment Form'!$B751<>\"Subscriber\",'Enrollment Form'!$C751=\"ROC\"),\"-\",IF(AND('Enrollment Form'!$B751=\"Subscriber\",'Enrollment Form'!$C751=\"Enroll\",'Enrollment Form'!$AK751<>\"\"),\"Y\",\"N\")))","v":""},{"$f":"IF($B744=\"N\",\"\",IF(OR('Enrollment Form'!$B751<>\"Subscriber\",'Enrollment Form'!$C751=\"ROC\"),\"-\",IF(AND('Enrollment Form'!$B751=\"Subscriber\",'Enrollment Form'!$C751=\"Enroll\",'Enrollment Form'!$AL751<>\"\"),\"Y\",\"N\")))","v":""},{"$f":"IF($B744=\"N\",\"\",IF(OR('Enrollment Form'!$B751<>\"Subscriber\",'Enrollment Form'!$C751=\"ROC\"),\"-\",IF(AND('Enrollment Form'!$B751=\"Subscriber\",'Enrollment Form'!$C751=\"Enroll\",'Enrollment Form'!$AP751<>\"\"),\"Y\",\"N\")))","v":""},{"$f":"IF($B744=\"N\",\"\",IF(OR('Enrollment Form'!$B751<>\"Subscriber\",'Enrollment Form'!$C751=\"ROC\"),\"-\",IF(AND('Enrollment Form'!$B751=\"Subscriber\",'Enrollment Form'!$C751=\"Enroll\",'Enrollment Form'!$AQ751<>\"\"),\"Y\",\"N\")))","v":""},{"$f":"IF($B744=\"N\",\"\",IF(OR('Enrollment Form'!$B751<>\"Subscriber\",'Enrollment Form'!$C751=\"ROC\"),\"-\",IF(AND('Enrollment Form'!$B751=\"Subscriber\",'Enrollment Form'!$C751=\"Enroll\",'Enrollment Form'!$AS751<>\"\"),\"Y\",\"N\")))","v":""},{"$f":"IF($B744=\"N\",\"\",IF($Q744=\"-\",\"-\",IF(AND($Q744=\"Y\",'Enrollment Form'!$AS751=\"No\"),\"-\",IF(AND($Q744=\"Y\",'Enrollment Form'!$AS751=\"Yes\",'Enrollment Form'!$AT751<>\"\"),\"Y\",\"N\"))))","v":""},{"$f":"IF($B744=\"N\",\"\",IF(OR('Enrollment Form'!$B751<>\"Subscriber\",'Enrollment Form'!$C751=\"ROC\"),\"-\",IF(AND('Enrollment Form'!$B751=\"Subscriber\",'Enrollment Form'!$C751=\"Enroll\",'Enrollment Form'!$CV751<>\"\"),\"Y\",\"N\")))","v":""},{"$f":"IF($B744=\"N\",\"\",IF($S744=\"-\",\"-\",IF(AND($S744=\"Y\",'Enrollment Form'!$CV751=\"No\"),\"-\",IF(AND($S744=\"Y\",'Enrollment Form'!$CV751=\"Yes\",'Enrollment Form'!$CW751<>\"\"),\"Y\",\"N\"))))","v":""},{"$f":"IF(OR('Enrollment Form'!$AY751=\"Yes\",'Enrollment Form'!$AY751=\"\"),\"-\",IF(OR(AND('Enrollment Form'!$AY751=\"No\",ISERROR(FIND(\"HMO\",VLOOKUP('Enrollment Form'!G751,'Enrollment Form'!H$11:J$1000,3,FALSE),1))=FALSE,COUNTA('Enrollment Form'!$AZ751:$BC751)=4),AND('Enrollment Form'!$AY751=\"No\",ISERROR(FIND(\"HMO\",VLOOKUP('Enrollment Form'!G751,'Enrollment Form'!H$11:J$1000,3,FALSE),1))=FALSE,COUNTA('Enrollment Form'!$BT751:$BW751)=4)),\"Y\",\"N\"))","v":"-"},{"$f":"IF($B744=\"N\",\"\",IF('Enrollment Form'!$B751=\"Subscriber\",\"-\",IF(COUNTA('Enrollment Form'!$BL751,'Enrollment Form'!$BN751)=2,\"Y\",\"N\")))","v":""},{"$f":"IF($B744=\"N\",\"\",IF(OR('Enrollment Form'!$AX751=\"\",'Enrollment Form'!$AX751=\"No\"),\"-\",IF(AND('Enrollment Form'!$AX751=\"Yes\",COUNTA('Enrollment Form'!$CR751)=1),\"Y\",\"N\")))","v":""},{"$f":"IF(OR('Enrollment Form'!$CR751=\"\",'Enrollment Form'!$CR751=\"No\"),\"-\",IF(COUNTA('Enrollment Form'!$CT751:$CU751)=2,\"Y\",\"N\"))","v":"-"},{"$f":"IF($B744=\"N\",\"\",IF(COUNTIF('Enrollment Form'!$DG751:$DP751,\"Other\")=COUNTA('Enrollment Form'!$DK751,'Enrollment Form'!$DH751,'Enrollment Form'!$DN751,'Enrollment Form'!$DQ751),\"Y\",\"N\"))","v":""},{"$f":"IF($B744=\"N\",\"\",IF(OR('Enrollment Form'!B751<>\"Subscriber\",'Enrollment Form'!C751=\"ROC\",COUNTIF('Enrollment Form'!AV751:AW751,\"Yes\")>=1),\"-\",IF(AND('Enrollment Form'!C751=\"Enroll\",COUNTIF('Enrollment Form'!AV751:AW751,\"No\")=2,'Enrollment Form'!AX751=\"\"),\"N\",\"Y\")))","v":""},{"$f":"IF(OR(B744=\"N\",'Enrollment Form'!B751<>\"Subscriber\",'Enrollment Form'!C751=\"ROC\",'Enrollment Form'!O751<>\"Multiple of Salary\"),\"-\",IF(COUNTA('Enrollment Form'!T751:U751)<2,\"N\",\"Y\"))","v":"-"},{"$f":"IF(B744=\"N\",\"\",IF(OR('Enrollment Form'!C751=\"ROC\",'Enrollment Form'!B751<>\"Subscriber\",'Enrollment Form'!O751=\"Waive\",'Enrollment Form'!O751=\"\"),\"-\",IF('Enrollment Form'!P751=\"\",\"N\",\"Y\")))","v":""},{"$f":"IF($B744=\"N\",\"\",IF(AND('Enrollment Form'!$C751=\"ROC\",'Enrollment Form'!$DR751<>\"\"),\"Y\",IF(AND('Enrollment Form'!$C751=\"ROC\",'Enrollment Form'!$DR751=\"\"),\"N\",IF(AND('Enrollment Form'!$C751=\"Enroll\",'Enrollment Form'!$B751=\"Subscriber\",'Enrollment Form'!$CX751=\"No\",'Enrollment Form'!$DR751=\"\"),\"N\",IF(AND('Enrollment Form'!$C751=\"Enroll\",'Enrollment Form'!$B751=\"Subscriber\",'Enrollment Form'!$CX751=\"Yes\"),\"-\",\"Y\")))))","v":""},{"$f":"IF($B744=\"N\",\"\",IF(AND('Enrollment Form'!$C751=\"ROC\",'Enrollment Form'!$DS751<>\"\"),\"Y\",IF(AND('Enrollment Form'!$C751=\"ROC\",'Enrollment Form'!$DS751=\"\"),\"N\",IF(AND('Enrollment Form'!$C751=\"Enroll\",'Enrollment Form'!$B751=\"Subscriber\",'Enrollment Form'!$CX751=\"No\",'Enrollment Form'!$DS751=\"\"),\"N\",IF(AND('Enrollment Form'!$C751=\"Enroll\",'Enrollment Form'!$B751=\"Subscriber\",'Enrollment Form'!$CX751=\"Yes\"),\"-\",\"Y\")))))","v":""},{"$f":"IF('Enrollment Form'!AH751=\"\",\"\",IF(ISERROR(SEARCH(\".\",'Enrollment Form'!AH751,SEARCH(\"@\",'Enrollment Form'!AH751))),\"N\",\"Y\"))","v":""},{"$f":"IF(OR($B744=\"N\",'Enrollment Form'!$G751=\"\"),\"\",IF('Enrollment Form'!$B751<>\"Subscriber\",\"-\",IF(COUNTIF('Enrollment Form'!$AV751:$AW751,\"Yes\")=2,\"N\",\"Y\")))","v":""},{"$f":"IF(OR('Enrollment Form'!$CJ751=\"\",'Enrollment Form'!$CJ751=\"No\"),\"-\",IF(AND('Enrollment Form'!$CJ751=\"Yes\",'Enrollment Form'!$CK751=\"\"),\"N\",\"Y\"))","v":"-"},{"$f":"IF(OR('Enrollment Form'!$CL751=\"\",'Enrollment Form'!$CL751=\"No\"),\"-\",IF(AND('Enrollment Form'!$CL751=\"Yes\",'Enrollment Form'!$CM751=\"\"),\"N\",\"Y\"))","v":"-"},{"$f":"IF(OR('Enrollment Form'!$CN751=\"\",'Enrollment Form'!$CN751=\"No\"),\"-\",IF(AND('Enrollment Form'!$CN751=\"Yes\",'Enrollment Form'!$CO751=\"\"),\"N\",\"Y\"))","v":"-"},{"$f":"IF(OR('Enrollment Form'!$CN751=\"\",'Enrollment Form'!$CN751=\"No\"),\"-\",IF(AND('Enrollment Form'!$CN751=\"Yes\",'Enrollment Form'!$CP751=\"\"),\"N\",\"Y\"))","v":"-"},{"$f":"IF('Enrollment Form'!B751<>\"Subscriber\",\"-\",IF(AND('Enrollment Form'!B751=\"Subscriber\",'Enrollment Form'!C751=\"Enroll\",'Enrollment Form'!AA751=\"\"),\"N\",\"Y\"))","v":"-"},{"$f":"IF(OR('Enrollment Form'!B751=\"Subscriber\",'Enrollment Form'!B751=\"\"),\"-\",IF('Enrollment Form'!BP751=\"\",\"N\",\"Y\"))","v":"-"},{"$f":"IF('Enrollment Form'!B751<>\"Subscriber\",\"-\",IF(AND('Enrollment Form'!B751=\"Subscriber\",'Enrollment Form'!G751=\"\"),\"N\",\"Y\"))","v":"-"},{"$f":"IF('Enrollment Form'!A751=\"\",\"\",IF('Enrollment Form'!B751=\"Subscriber\",\"-\",IF(AND('Enrollment Form'!B751<>\"Subscriber\",'Enrollment Form'!G751='Enrollment Form'!H751),\"N\",\"Y\")))","v":""},0]
[752,{"$f":"IF('Enrollment Form'!$A752<>\"\",\"Y\",\"N\")","v":"N"},{"$f":"IF(AND('Enrollment Form'!$B752=\"\",'Enrollment Form'!$C752<>\"\"),\"N\",IF($B745=\"N\",\"\",\"Y\"))","v":""},{"$f":"IF(OR($B745=\"N\",'Enrollment Form'!G752=\"\"),\"\",IF('Enrollment Form'!$B752<>\"Subscriber\",\"\",IF('Enrollment Form'!$G752='Enrollment Form'!$H752,\"Y\",\"N\")))","v":""},{"$f":"IF($B745=\"N\",\"\",IF(AND(COUNTIFS('Enrollment Form'!$H$11:$H$1000,'Enrollment Form'!$H752,'Enrollment Form'!$B$11:$B$1000,'Enrollment Form'!$B752)>1,'Enrollment Form'!$H752<>\"\"),\"N\",\"Y\"))","v":""},{"$f":"IF($B745=\"N\",\"\",IF(LEN('Enrollment Form'!$Y752)=0,\"\",IF(LEN('Enrollment Form'!$Y752)<>5,\"N\",\"Y\")))","v":""},{"$f":"IF($B745=\"N\",\"\",IF(LEN('Enrollment Form'!$AD752=0),\"\",IF(LEN('Enrollment Form'!$AD752)<>5,\"N\",\"Y\")))","v":""},{"$f":"IF($B745=\"N\",\"\",IF(LEN('Enrollment Form'!$BS752=0),\"\",IF(LEN('Enrollment Form'!$BS752)<>5,\"N\",\"Y\")))","v":""},{"$f":"IF($B745=\"N\",\"\",IF(LEN('Enrollment Form'!$AE752)=0,\"\",IF(LEN('Enrollment Form'!$AE752)<>10,\"N\",\"Y\")))","v":""},{"$f":"IF($B745=\"N\",\"\",IF(LEN('Enrollment Form'!$AF752)=0,\"\",IF(LEN('Enrollment Form'!$AF752)<>10,\"N\",\"Y\")))","v":""},{"$f":"IF('Enrollment Form'!$O752<>\"Graded\",\"-\",IF(AND('Enrollment Form'!$O752=\"Graded\",'Enrollment Form'!$AR752<>\"\"),\"Y\",\"N\"))","v":"-"},{"$f":"IF($B745=\"N\",\"\",IF(OR('Enrollment Form'!$B752<>\"Subscriber\",'Enrollment Form'!$C752=\"ROC\"),\"-\",IF(AND('Enrollment Form'!$B752=\"Subscriber\",'Enrollment Form'!$C752=\"Enroll\",'Enrollment Form'!$AJ752<>\"\"),\"Y\",\"N\")))","v":""},{"$f":"IF($B745=\"N\",\"\",IF(OR('Enrollment Form'!$B752<>\"Subscriber\",'Enrollment Form'!$C752=\"ROC\"),\"-\",IF(AND('Enrollment Form'!$B752=\"Subscriber\",'Enrollment Form'!$C752=\"Enroll\",'Enrollment Form'!$AK752<>\"\"),\"Y\",\"N\")))","v":""},{"$f":"IF($B745=\"N\",\"\",IF(OR('Enrollment Form'!$B752<>\"Subscriber\",'Enrollment Form'!$C752=\"ROC\"),\"-\",IF(AND('Enrollment Form'!$B752=\"Subscriber\",'Enrollment Form'!$C752=\"Enroll\",'Enrollment Form'!$AL752<>\"\"),\"Y\",\"N\")))","v":""},{"$f":"IF($B745=\"N\",\"\",IF(OR('Enrollment Form'!$B752<>\"Subscriber\",'Enrollment Form'!$C752=\"ROC\"),\"-\",IF(AND('Enrollment Form'!$B752=\"Subscriber\",'Enrollment Form'!$C752=\"Enroll\",'Enrollment Form'!$AP752<>\"\"),\"Y\",\"N\")))","v":""},{"$f":"IF($B745=\"N\",\"\",IF(OR('Enrollment Form'!$B752<>\"Subscriber\",'Enrollment Form'!$C752=\"ROC\"),\"-\",IF(AND('Enrollment Form'!$B752=\"Subscriber\",'Enrollment Form'!$C752=\"Enroll\",'Enrollment Form'!$AQ752<>\"\"),\"Y\",\"N\")))","v":""},{"$f":"IF($B745=\"N\",\"\",IF(OR('Enrollment Form'!$B752<>\"Subscriber\",'Enrollment Form'!$C752=\"ROC\"),\"-\",IF(AND('Enrollment Form'!$B752=\"Subscriber\",'Enrollment Form'!$C752=\"Enroll\",'Enrollment Form'!$AS752<>\"\"),\"Y\",\"N\")))","v":""},{"$f":"IF($B745=\"N\",\"\",IF($Q745=\"-\",\"-\",IF(AND($Q745=\"Y\",'Enrollment Form'!$AS752=\"No\"),\"-\",IF(AND($Q745=\"Y\",'Enrollment Form'!$AS752=\"Yes\",'Enrollment Form'!$AT752<>\"\"),\"Y\",\"N\"))))","v":""},{"$f":"IF($B745=\"N\",\"\",IF(OR('Enrollment Form'!$B752<>\"Subscriber\",'Enrollment Form'!$C752=\"ROC\"),\"-\",IF(AND('Enrollment Form'!$B752=\"Subscriber\",'Enrollment Form'!$C752=\"Enroll\",'Enrollment Form'!$CV752<>\"\"),\"Y\",\"N\")))","v":""},{"$f":"IF($B745=\"N\",\"\",IF($S745=\"-\",\"-\",IF(AND($S745=\"Y\",'Enrollment Form'!$CV752=\"No\"),\"-\",IF(AND($S745=\"Y\",'Enrollment Form'!$CV752=\"Yes\",'Enrollment Form'!$CW752<>\"\"),\"Y\",\"N\"))))","v":""},{"$f":"IF(OR('Enrollment Form'!$AY752=\"Yes\",'Enrollment Form'!$AY752=\"\"),\"-\",IF(OR(AND('Enrollment Form'!$AY752=\"No\",ISERROR(FIND(\"HMO\",VLOOKUP('Enrollment Form'!G752,'Enrollment Form'!H$11:J$1000,3,FALSE),1))=FALSE,COUNTA('Enrollment Form'!$AZ752:$BC752)=4),AND('Enrollment Form'!$AY752=\"No\",ISERROR(FIND(\"HMO\",VLOOKUP('Enrollment Form'!G752,'Enrollment Form'!H$11:J$1000,3,FALSE),1))=FALSE,COUNTA('Enrollment Form'!$BT752:$BW752)=4)),\"Y\",\"N\"))","v":"-"},{"$f":"IF($B745=\"N\",\"\",IF('Enrollment Form'!$B752=\"Subscriber\",\"-\",IF(COUNTA('Enrollment Form'!$BL752,'Enrollment Form'!$BN752)=2,\"Y\",\"N\")))","v":""},{"$f":"IF($B745=\"N\",\"\",IF(OR('Enrollment Form'!$AX752=\"\",'Enrollment Form'!$AX752=\"No\"),\"-\",IF(AND('Enrollment Form'!$AX752=\"Yes\",COUNTA('Enrollment Form'!$CR752)=1),\"Y\",\"N\")))","v":""},{"$f":"IF(OR('Enrollment Form'!$CR752=\"\",'Enrollment Form'!$CR752=\"No\"),\"-\",IF(COUNTA('Enrollment Form'!$CT752:$CU752)=2,\"Y\",\"N\"))","v":"-"},{"$f":"IF($B745=\"N\",\"\",IF(COUNTIF('Enrollment Form'!$DG752:$DP752,\"Other\")=COUNTA('Enrollment Form'!$DK752,'Enrollment Form'!$DH752,'Enrollment Form'!$DN752,'Enrollment Form'!$DQ752),\"Y\",\"N\"))","v":""},{"$f":"IF($B745=\"N\",\"\",IF(OR('Enrollment Form'!B752<>\"Subscriber\",'Enrollment Form'!C752=\"ROC\",COUNTIF('Enrollment Form'!AV752:AW752,\"Yes\")>=1),\"-\",IF(AND('Enrollment Form'!C752=\"Enroll\",COUNTIF('Enrollment Form'!AV752:AW752,\"No\")=2,'Enrollment Form'!AX752=\"\"),\"N\",\"Y\")))","v":""},{"$f":"IF(OR(B745=\"N\",'Enrollment Form'!B752<>\"Subscriber\",'Enrollment Form'!C752=\"ROC\",'Enrollment Form'!O752<>\"Multiple of Salary\"),\"-\",IF(COUNTA('Enrollment Form'!T752:U752)<2,\"N\",\"Y\"))","v":"-"},{"$f":"IF(B745=\"N\",\"\",IF(OR('Enrollment Form'!C752=\"ROC\",'Enrollment Form'!B752<>\"Subscriber\",'Enrollment Form'!O752=\"Waive\",'Enrollment Form'!O752=\"\"),\"-\",IF('Enrollment Form'!P752=\"\",\"N\",\"Y\")))","v":""},{"$f":"IF($B745=\"N\",\"\",IF(AND('Enrollment Form'!$C752=\"ROC\",'Enrollment Form'!$DR752<>\"\"),\"Y\",IF(AND('Enrollment Form'!$C752=\"ROC\",'Enrollment Form'!$DR752=\"\"),\"N\",IF(AND('Enrollment Form'!$C752=\"Enroll\",'Enrollment Form'!$B752=\"Subscriber\",'Enrollment Form'!$CX752=\"No\",'Enrollment Form'!$DR752=\"\"),\"N\",IF(AND('Enrollment Form'!$C752=\"Enroll\",'Enrollment Form'!$B752=\"Subscriber\",'Enrollment Form'!$CX752=\"Yes\"),\"-\",\"Y\")))))","v":""},{"$f":"IF($B745=\"N\",\"\",IF(AND('Enrollment Form'!$C752=\"ROC\",'Enrollment Form'!$DS752<>\"\"),\"Y\",IF(AND('Enrollment Form'!$C752=\"ROC\",'Enrollment Form'!$DS752=\"\"),\"N\",IF(AND('Enrollment Form'!$C752=\"Enroll\",'Enrollment Form'!$B752=\"Subscriber\",'Enrollment Form'!$CX752=\"No\",'Enrollment Form'!$DS752=\"\"),\"N\",IF(AND('Enrollment Form'!$C752=\"Enroll\",'Enrollment Form'!$B752=\"Subscriber\",'Enrollment Form'!$CX752=\"Yes\"),\"-\",\"Y\")))))","v":""},{"$f":"IF('Enrollment Form'!AH752=\"\",\"\",IF(ISERROR(SEARCH(\".\",'Enrollment Form'!AH752,SEARCH(\"@\",'Enrollment Form'!AH752))),\"N\",\"Y\"))","v":""},{"$f":"IF(OR($B745=\"N\",'Enrollment Form'!$G752=\"\"),\"\",IF('Enrollment Form'!$B752<>\"Subscriber\",\"-\",IF(COUNTIF('Enrollment Form'!$AV752:$AW752,\"Yes\")=2,\"N\",\"Y\")))","v":""},{"$f":"IF(OR('Enrollment Form'!$CJ752=\"\",'Enrollment Form'!$CJ752=\"No\"),\"-\",IF(AND('Enrollment Form'!$CJ752=\"Yes\",'Enrollment Form'!$CK752=\"\"),\"N\",\"Y\"))","v":"-"},{"$f":"IF(OR('Enrollment Form'!$CL752=\"\",'Enrollment Form'!$CL752=\"No\"),\"-\",IF(AND('Enrollment Form'!$CL752=\"Yes\",'Enrollment Form'!$CM752=\"\"),\"N\",\"Y\"))","v":"-"},{"$f":"IF(OR('Enrollment Form'!$CN752=\"\",'Enrollment Form'!$CN752=\"No\"),\"-\",IF(AND('Enrollment Form'!$CN752=\"Yes\",'Enrollment Form'!$CO752=\"\"),\"N\",\"Y\"))","v":"-"},{"$f":"IF(OR('Enrollment Form'!$CN752=\"\",'Enrollment Form'!$CN752=\"No\"),\"-\",IF(AND('Enrollment Form'!$CN752=\"Yes\",'Enrollment Form'!$CP752=\"\"),\"N\",\"Y\"))","v":"-"},{"$f":"IF('Enrollment Form'!B752<>\"Subscriber\",\"-\",IF(AND('Enrollment Form'!B752=\"Subscriber\",'Enrollment Form'!C752=\"Enroll\",'Enrollment Form'!AA752=\"\"),\"N\",\"Y\"))","v":"-"},{"$f":"IF(OR('Enrollment Form'!B752=\"Subscriber\",'Enrollment Form'!B752=\"\"),\"-\",IF('Enrollment Form'!BP752=\"\",\"N\",\"Y\"))","v":"-"},{"$f":"IF('Enrollment Form'!B752<>\"Subscriber\",\"-\",IF(AND('Enrollment Form'!B752=\"Subscriber\",'Enrollment Form'!G752=\"\"),\"N\",\"Y\"))","v":"-"},{"$f":"IF('Enrollment Form'!A752=\"\",\"\",IF('Enrollment Form'!B752=\"Subscriber\",\"-\",IF(AND('Enrollment Form'!B752<>\"Subscriber\",'Enrollment Form'!G752='Enrollment Form'!H752),\"N\",\"Y\")))","v":""},0]
[753,{"$f":"IF('Enrollment Form'!$A753<>\"\",\"Y\",\"N\")","v":"N"},{"$f":"IF(AND('Enrollment Form'!$B753=\"\",'Enrollment Form'!$C753<>\"\"),\"N\",IF($B746=\"N\",\"\",\"Y\"))","v":""},{"$f":"IF(OR($B746=\"N\",'Enrollment Form'!G753=\"\"),\"\",IF('Enrollment Form'!$B753<>\"Subscriber\",\"\",IF('Enrollment Form'!$G753='Enrollment Form'!$H753,\"Y\",\"N\")))","v":""},{"$f":"IF($B746=\"N\",\"\",IF(AND(COUNTIFS('Enrollment Form'!$H$11:$H$1000,'Enrollment Form'!$H753,'Enrollment Form'!$B$11:$B$1000,'Enrollment Form'!$B753)>1,'Enrollment Form'!$H753<>\"\"),\"N\",\"Y\"))","v":""},{"$f":"IF($B746=\"N\",\"\",IF(LEN('Enrollment Form'!$Y753)=0,\"\",IF(LEN('Enrollment Form'!$Y753)<>5,\"N\",\"Y\")))","v":""},{"$f":"IF($B746=\"N\",\"\",IF(LEN('Enrollment Form'!$AD753=0),\"\",IF(LEN('Enrollment Form'!$AD753)<>5,\"N\",\"Y\")))","v":""},{"$f":"IF($B746=\"N\",\"\",IF(LEN('Enrollment Form'!$BS753=0),\"\",IF(LEN('Enrollment Form'!$BS753)<>5,\"N\",\"Y\")))","v":""},{"$f":"IF($B746=\"N\",\"\",IF(LEN('Enrollment Form'!$AE753)=0,\"\",IF(LEN('Enrollment Form'!$AE753)<>10,\"N\",\"Y\")))","v":""},{"$f":"IF($B746=\"N\",\"\",IF(LEN('Enrollment Form'!$AF753)=0,\"\",IF(LEN('Enrollment Form'!$AF753)<>10,\"N\",\"Y\")))","v":""},{"$f":"IF('Enrollment Form'!$O753<>\"Graded\",\"-\",IF(AND('Enrollment Form'!$O753=\"Graded\",'Enrollment Form'!$AR753<>\"\"),\"Y\",\"N\"))","v":"-"},{"$f":"IF($B746=\"N\",\"\",IF(OR('Enrollment Form'!$B753<>\"Subscriber\",'Enrollment Form'!$C753=\"ROC\"),\"-\",IF(AND('Enrollment Form'!$B753=\"Subscriber\",'Enrollment Form'!$C753=\"Enroll\",'Enrollment Form'!$AJ753<>\"\"),\"Y\",\"N\")))","v":""},{"$f":"IF($B746=\"N\",\"\",IF(OR('Enrollment Form'!$B753<>\"Subscriber\",'Enrollment Form'!$C753=\"ROC\"),\"-\",IF(AND('Enrollment Form'!$B753=\"Subscriber\",'Enrollment Form'!$C753=\"Enroll\",'Enrollment Form'!$AK753<>\"\"),\"Y\",\"N\")))","v":""},{"$f":"IF($B746=\"N\",\"\",IF(OR('Enrollment Form'!$B753<>\"Subscriber\",'Enrollment Form'!$C753=\"ROC\"),\"-\",IF(AND('Enrollment Form'!$B753=\"Subscriber\",'Enrollment Form'!$C753=\"Enroll\",'Enrollment Form'!$AL753<>\"\"),\"Y\",\"N\")))","v":""},{"$f":"IF($B746=\"N\",\"\",IF(OR('Enrollment Form'!$B753<>\"Subscriber\",'Enrollment Form'!$C753=\"ROC\"),\"-\",IF(AND('Enrollment Form'!$B753=\"Subscriber\",'Enrollment Form'!$C753=\"Enroll\",'Enrollment Form'!$AP753<>\"\"),\"Y\",\"N\")))","v":""},{"$f":"IF($B746=\"N\",\"\",IF(OR('Enrollment Form'!$B753<>\"Subscriber\",'Enrollment Form'!$C753=\"ROC\"),\"-\",IF(AND('Enrollment Form'!$B753=\"Subscriber\",'Enrollment Form'!$C753=\"Enroll\",'Enrollment Form'!$AQ753<>\"\"),\"Y\",\"N\")))","v":""},{"$f":"IF($B746=\"N\",\"\",IF(OR('Enrollment Form'!$B753<>\"Subscriber\",'Enrollment Form'!$C753=\"ROC\"),\"-\",IF(AND('Enrollment Form'!$B753=\"Subscriber\",'Enrollment Form'!$C753=\"Enroll\",'Enrollment Form'!$AS753<>\"\"),\"Y\",\"N\")))","v":""},{"$f":"IF($B746=\"N\",\"\",IF($Q746=\"-\",\"-\",IF(AND($Q746=\"Y\",'Enrollment Form'!$AS753=\"No\"),\"-\",IF(AND($Q746=\"Y\",'Enrollment Form'!$AS753=\"Yes\",'Enrollment Form'!$AT753<>\"\"),\"Y\",\"N\"))))","v":""},{"$f":"IF($B746=\"N\",\"\",IF(OR('Enrollment Form'!$B753<>\"Subscriber\",'Enrollment Form'!$C753=\"ROC\"),\"-\",IF(AND('Enrollment Form'!$B753=\"Subscriber\",'Enrollment Form'!$C753=\"Enroll\",'Enrollment Form'!$CV753<>\"\"),\"Y\",\"N\")))","v":""},{"$f":"IF($B746=\"N\",\"\",IF($S746=\"-\",\"-\",IF(AND($S746=\"Y\",'Enrollment Form'!$CV753=\"No\"),\"-\",IF(AND($S746=\"Y\",'Enrollment Form'!$CV753=\"Yes\",'Enrollment Form'!$CW753<>\"\"),\"Y\",\"N\"))))","v":""},{"$f":"IF(OR('Enrollment Form'!$AY753=\"Yes\",'Enrollment Form'!$AY753=\"\"),\"-\",IF(OR(AND('Enrollment Form'!$AY753=\"No\",ISERROR(FIND(\"HMO\",VLOOKUP('Enrollment Form'!G753,'Enrollment Form'!H$11:J$1000,3,FALSE),1))=FALSE,COUNTA('Enrollment Form'!$AZ753:$BC753)=4),AND('Enrollment Form'!$AY753=\"No\",ISERROR(FIND(\"HMO\",VLOOKUP('Enrollment Form'!G753,'Enrollment Form'!H$11:J$1000,3,FALSE),1))=FALSE,COUNTA('Enrollment Form'!$BT753:$BW753)=4)),\"Y\",\"N\"))","v":"-"},{"$f":"IF($B746=\"N\",\"\",IF('Enrollment Form'!$B753=\"Subscriber\",\"-\",IF(COUNTA('Enrollment Form'!$BL753,'Enrollment Form'!$BN753)=2,\"Y\",\"N\")))","v":""},{"$f":"IF($B746=\"N\",\"\",IF(OR('Enrollment Form'!$AX753=\"\",'Enrollment Form'!$AX753=\"No\"),\"-\",IF(AND('Enrollment Form'!$AX753=\"Yes\",COUNTA('Enrollment Form'!$CR753)=1),\"Y\",\"N\")))","v":""},{"$f":"IF(OR('Enrollment Form'!$CR753=\"\",'Enrollment Form'!$CR753=\"No\"),\"-\",IF(COUNTA('Enrollment Form'!$CT753:$CU753)=2,\"Y\",\"N\"))","v":"-"},{"$f":"IF($B746=\"N\",\"\",IF(COUNTIF('Enrollment Form'!$DG753:$DP753,\"Other\")=COUNTA('Enrollment Form'!$DK753,'Enrollment Form'!$DH753,'Enrollment Form'!$DN753,'Enrollment Form'!$DQ753),\"Y\",\"N\"))","v":""},{"$f":"IF($B746=\"N\",\"\",IF(OR('Enrollment Form'!B753<>\"Subscriber\",'Enrollment Form'!C753=\"ROC\",COUNTIF('Enrollment Form'!AV753:AW753,\"Yes\")>=1),\"-\",IF(AND('Enrollment Form'!C753=\"Enroll\",COUNTIF('Enrollment Form'!AV753:AW753,\"No\")=2,'Enrollment Form'!AX753=\"\"),\"N\",\"Y\")))","v":""},{"$f":"IF(OR(B746=\"N\",'Enrollment Form'!B753<>\"Subscriber\",'Enrollment Form'!C753=\"ROC\",'Enrollment Form'!O753<>\"Multiple of Salary\"),\"-\",IF(COUNTA('Enrollment Form'!T753:U753)<2,\"N\",\"Y\"))","v":"-"},{"$f":"IF(B746=\"N\",\"\",IF(OR('Enrollment Form'!C753=\"ROC\",'Enrollment Form'!B753<>\"Subscriber\",'Enrollment Form'!O753=\"Waive\",'Enrollment Form'!O753=\"\"),\"-\",IF('Enrollment Form'!P753=\"\",\"N\",\"Y\")))","v":""},{"$f":"IF($B746=\"N\",\"\",IF(AND('Enrollment Form'!$C753=\"ROC\",'Enrollment Form'!$DR753<>\"\"),\"Y\",IF(AND('Enrollment Form'!$C753=\"ROC\",'Enrollment Form'!$DR753=\"\"),\"N\",IF(AND('Enrollment Form'!$C753=\"Enroll\",'Enrollment Form'!$B753=\"Subscriber\",'Enrollment Form'!$CX753=\"No\",'Enrollment Form'!$DR753=\"\"),\"N\",IF(AND('Enrollment Form'!$C753=\"Enroll\",'Enrollment Form'!$B753=\"Subscriber\",'Enrollment Form'!$CX753=\"Yes\"),\"-\",\"Y\")))))","v":""},{"$f":"IF($B746=\"N\",\"\",IF(AND('Enrollment Form'!$C753=\"ROC\",'Enrollment Form'!$DS753<>\"\"),\"Y\",IF(AND('Enrollment Form'!$C753=\"ROC\",'Enrollment Form'!$DS753=\"\"),\"N\",IF(AND('Enrollment Form'!$C753=\"Enroll\",'Enrollment Form'!$B753=\"Subscriber\",'Enrollment Form'!$CX753=\"No\",'Enrollment Form'!$DS753=\"\"),\"N\",IF(AND('Enrollment Form'!$C753=\"Enroll\",'Enrollment Form'!$B753=\"Subscriber\",'Enrollment Form'!$CX753=\"Yes\"),\"-\",\"Y\")))))","v":""},{"$f":"IF('Enrollment Form'!AH753=\"\",\"\",IF(ISERROR(SEARCH(\".\",'Enrollment Form'!AH753,SEARCH(\"@\",'Enrollment Form'!AH753))),\"N\",\"Y\"))","v":""},{"$f":"IF(OR($B746=\"N\",'Enrollment Form'!$G753=\"\"),\"\",IF('Enrollment Form'!$B753<>\"Subscriber\",\"-\",IF(COUNTIF('Enrollment Form'!$AV753:$AW753,\"Yes\")=2,\"N\",\"Y\")))","v":""},{"$f":"IF(OR('Enrollment Form'!$CJ753=\"\",'Enrollment Form'!$CJ753=\"No\"),\"-\",IF(AND('Enrollment Form'!$CJ753=\"Yes\",'Enrollment Form'!$CK753=\"\"),\"N\",\"Y\"))","v":"-"},{"$f":"IF(OR('Enrollment Form'!$CL753=\"\",'Enrollment Form'!$CL753=\"No\"),\"-\",IF(AND('Enrollment Form'!$CL753=\"Yes\",'Enrollment Form'!$CM753=\"\"),\"N\",\"Y\"))","v":"-"},{"$f":"IF(OR('Enrollment Form'!$CN753=\"\",'Enrollment Form'!$CN753=\"No\"),\"-\",IF(AND('Enrollment Form'!$CN753=\"Yes\",'Enrollment Form'!$CO753=\"\"),\"N\",\"Y\"))","v":"-"},{"$f":"IF(OR('Enrollment Form'!$CN753=\"\",'Enrollment Form'!$CN753=\"No\"),\"-\",IF(AND('Enrollment Form'!$CN753=\"Yes\",'Enrollment Form'!$CP753=\"\"),\"N\",\"Y\"))","v":"-"},{"$f":"IF('Enrollment Form'!B753<>\"Subscriber\",\"-\",IF(AND('Enrollment Form'!B753=\"Subscriber\",'Enrollment Form'!C753=\"Enroll\",'Enrollment Form'!AA753=\"\"),\"N\",\"Y\"))","v":"-"},{"$f":"IF(OR('Enrollment Form'!B753=\"Subscriber\",'Enrollment Form'!B753=\"\"),\"-\",IF('Enrollment Form'!BP753=\"\",\"N\",\"Y\"))","v":"-"},{"$f":"IF('Enrollment Form'!B753<>\"Subscriber\",\"-\",IF(AND('Enrollment Form'!B753=\"Subscriber\",'Enrollment Form'!G753=\"\"),\"N\",\"Y\"))","v":"-"},{"$f":"IF('Enrollment Form'!A753=\"\",\"\",IF('Enrollment Form'!B753=\"Subscriber\",\"-\",IF(AND('Enrollment Form'!B753<>\"Subscriber\",'Enrollment Form'!G753='Enrollment Form'!H753),\"N\",\"Y\")))","v":""},0]
[754,{"$f":"IF('Enrollment Form'!$A754<>\"\",\"Y\",\"N\")","v":"N"},{"$f":"IF(AND('Enrollment Form'!$B754=\"\",'Enrollment Form'!$C754<>\"\"),\"N\",IF($B747=\"N\",\"\",\"Y\"))","v":""},{"$f":"IF(OR($B747=\"N\",'Enrollment Form'!G754=\"\"),\"\",IF('Enrollment Form'!$B754<>\"Subscriber\",\"\",IF('Enrollment Form'!$G754='Enrollment Form'!$H754,\"Y\",\"N\")))","v":""},{"$f":"IF($B747=\"N\",\"\",IF(AND(COUNTIFS('Enrollment Form'!$H$11:$H$1000,'Enrollment Form'!$H754,'Enrollment Form'!$B$11:$B$1000,'Enrollment Form'!$B754)>1,'Enrollment Form'!$H754<>\"\"),\"N\",\"Y\"))","v":""},{"$f":"IF($B747=\"N\",\"\",IF(LEN('Enrollment Form'!$Y754)=0,\"\",IF(LEN('Enrollment Form'!$Y754)<>5,\"N\",\"Y\")))","v":""},{"$f":"IF($B747=\"N\",\"\",IF(LEN('Enrollment Form'!$AD754=0),\"\",IF(LEN('Enrollment Form'!$AD754)<>5,\"N\",\"Y\")))","v":""},{"$f":"IF($B747=\"N\",\"\",IF(LEN('Enrollment Form'!$BS754=0),\"\",IF(LEN('Enrollment Form'!$BS754)<>5,\"N\",\"Y\")))","v":""},{"$f":"IF($B747=\"N\",\"\",IF(LEN('Enrollment Form'!$AE754)=0,\"\",IF(LEN('Enrollment Form'!$AE754)<>10,\"N\",\"Y\")))","v":""},{"$f":"IF($B747=\"N\",\"\",IF(LEN('Enrollment Form'!$AF754)=0,\"\",IF(LEN('Enrollment Form'!$AF754)<>10,\"N\",\"Y\")))","v":""},{"$f":"IF('Enrollment Form'!$O754<>\"Graded\",\"-\",IF(AND('Enrollment Form'!$O754=\"Graded\",'Enrollment Form'!$AR754<>\"\"),\"Y\",\"N\"))","v":"-"},{"$f":"IF($B747=\"N\",\"\",IF(OR('Enrollment Form'!$B754<>\"Subscriber\",'Enrollment Form'!$C754=\"ROC\"),\"-\",IF(AND('Enrollment Form'!$B754=\"Subscriber\",'Enrollment Form'!$C754=\"Enroll\",'Enrollment Form'!$AJ754<>\"\"),\"Y\",\"N\")))","v":""},{"$f":"IF($B747=\"N\",\"\",IF(OR('Enrollment Form'!$B754<>\"Subscriber\",'Enrollment Form'!$C754=\"ROC\"),\"-\",IF(AND('Enrollment Form'!$B754=\"Subscriber\",'Enrollment Form'!$C754=\"Enroll\",'Enrollment Form'!$AK754<>\"\"),\"Y\",\"N\")))","v":""},{"$f":"IF($B747=\"N\",\"\",IF(OR('Enrollment Form'!$B754<>\"Subscriber\",'Enrollment Form'!$C754=\"ROC\"),\"-\",IF(AND('Enrollment Form'!$B754=\"Subscriber\",'Enrollment Form'!$C754=\"Enroll\",'Enrollment Form'!$AL754<>\"\"),\"Y\",\"N\")))","v":""},{"$f":"IF($B747=\"N\",\"\",IF(OR('Enrollment Form'!$B754<>\"Subscriber\",'Enrollment Form'!$C754=\"ROC\"),\"-\",IF(AND('Enrollment Form'!$B754=\"Subscriber\",'Enrollment Form'!$C754=\"Enroll\",'Enrollment Form'!$AP754<>\"\"),\"Y\",\"N\")))","v":""},{"$f":"IF($B747=\"N\",\"\",IF(OR('Enrollment Form'!$B754<>\"Subscriber\",'Enrollment Form'!$C754=\"ROC\"),\"-\",IF(AND('Enrollment Form'!$B754=\"Subscriber\",'Enrollment Form'!$C754=\"Enroll\",'Enrollment Form'!$AQ754<>\"\"),\"Y\",\"N\")))","v":""},{"$f":"IF($B747=\"N\",\"\",IF(OR('Enrollment Form'!$B754<>\"Subscriber\",'Enrollment Form'!$C754=\"ROC\"),\"-\",IF(AND('Enrollment Form'!$B754=\"Subscriber\",'Enrollment Form'!$C754=\"Enroll\",'Enrollment Form'!$AS754<>\"\"),\"Y\",\"N\")))","v":""},{"$f":"IF($B747=\"N\",\"\",IF($Q747=\"-\",\"-\",IF(AND($Q747=\"Y\",'Enrollment Form'!$AS754=\"No\"),\"-\",IF(AND($Q747=\"Y\",'Enrollment Form'!$AS754=\"Yes\",'Enrollment Form'!$AT754<>\"\"),\"Y\",\"N\"))))","v":""},{"$f":"IF($B747=\"N\",\"\",IF(OR('Enrollment Form'!$B754<>\"Subscriber\",'Enrollment Form'!$C754=\"ROC\"),\"-\",IF(AND('Enrollment Form'!$B754=\"Subscriber\",'Enrollment Form'!$C754=\"Enroll\",'Enrollment Form'!$CV754<>\"\"),\"Y\",\"N\")))","v":""},{"$f":"IF($B747=\"N\",\"\",IF($S747=\"-\",\"-\",IF(AND($S747=\"Y\",'Enrollment Form'!$CV754=\"No\"),\"-\",IF(AND($S747=\"Y\",'Enrollment Form'!$CV754=\"Yes\",'Enrollment Form'!$CW754<>\"\"),\"Y\",\"N\"))))","v":""},{"$f":"IF(OR('Enrollment Form'!$AY754=\"Yes\",'Enrollment Form'!$AY754=\"\"),\"-\",IF(OR(AND('Enrollment Form'!$AY754=\"No\",ISERROR(FIND(\"HMO\",VLOOKUP('Enrollment Form'!G754,'Enrollment Form'!H$11:J$1000,3,FALSE),1))=FALSE,COUNTA('Enrollment Form'!$AZ754:$BC754)=4),AND('Enrollment Form'!$AY754=\"No\",ISERROR(FIND(\"HMO\",VLOOKUP('Enrollment Form'!G754,'Enrollment Form'!H$11:J$1000,3,FALSE),1))=FALSE,COUNTA('Enrollment Form'!$BT754:$BW754)=4)),\"Y\",\"N\"))","v":"-"},{"$f":"IF($B747=\"N\",\"\",IF('Enrollment Form'!$B754=\"Subscriber\",\"-\",IF(COUNTA('Enrollment Form'!$BL754,'Enrollment Form'!$BN754)=2,\"Y\",\"N\")))","v":""},{"$f":"IF($B747=\"N\",\"\",IF(OR('Enrollment Form'!$AX754=\"\",'Enrollment Form'!$AX754=\"No\"),\"-\",IF(AND('Enrollment Form'!$AX754=\"Yes\",COUNTA('Enrollment Form'!$CR754)=1),\"Y\",\"N\")))","v":""},{"$f":"IF(OR('Enrollment Form'!$CR754=\"\",'Enrollment Form'!$CR754=\"No\"),\"-\",IF(COUNTA('Enrollment Form'!$CT754:$CU754)=2,\"Y\",\"N\"))","v":"-"},{"$f":"IF($B747=\"N\",\"\",IF(COUNTIF('Enrollment Form'!$DG754:$DP754,\"Other\")=COUNTA('Enrollment Form'!$DK754,'Enrollment Form'!$DH754,'Enrollment Form'!$DN754,'Enrollment Form'!$DQ754),\"Y\",\"N\"))","v":""},{"$f":"IF($B747=\"N\",\"\",IF(OR('Enrollment Form'!B754<>\"Subscriber\",'Enrollment Form'!C754=\"ROC\",COUNTIF('Enrollment Form'!AV754:AW754,\"Yes\")>=1),\"-\",IF(AND('Enrollment Form'!C754=\"Enroll\",COUNTIF('Enrollment Form'!AV754:AW754,\"No\")=2,'Enrollment Form'!AX754=\"\"),\"N\",\"Y\")))","v":""},{"$f":"IF(OR(B747=\"N\",'Enrollment Form'!B754<>\"Subscriber\",'Enrollment Form'!C754=\"ROC\",'Enrollment Form'!O754<>\"Multiple of Salary\"),\"-\",IF(COUNTA('Enrollment Form'!T754:U754)<2,\"N\",\"Y\"))","v":"-"},{"$f":"IF(B747=\"N\",\"\",IF(OR('Enrollment Form'!C754=\"ROC\",'Enrollment Form'!B754<>\"Subscriber\",'Enrollment Form'!O754=\"Waive\",'Enrollment Form'!O754=\"\"),\"-\",IF('Enrollment Form'!P754=\"\",\"N\",\"Y\")))","v":""},{"$f":"IF($B747=\"N\",\"\",IF(AND('Enrollment Form'!$C754=\"ROC\",'Enrollment Form'!$DR754<>\"\"),\"Y\",IF(AND('Enrollment Form'!$C754=\"ROC\",'Enrollment Form'!$DR754=\"\"),\"N\",IF(AND('Enrollment Form'!$C754=\"Enroll\",'Enrollment Form'!$B754=\"Subscriber\",'Enrollment Form'!$CX754=\"No\",'Enrollment Form'!$DR754=\"\"),\"N\",IF(AND('Enrollment Form'!$C754=\"Enroll\",'Enrollment Form'!$B754=\"Subscriber\",'Enrollment Form'!$CX754=\"Yes\"),\"-\",\"Y\")))))","v":""},{"$f":"IF($B747=\"N\",\"\",IF(AND('Enrollment Form'!$C754=\"ROC\",'Enrollment Form'!$DS754<>\"\"),\"Y\",IF(AND('Enrollment Form'!$C754=\"ROC\",'Enrollment Form'!$DS754=\"\"),\"N\",IF(AND('Enrollment Form'!$C754=\"Enroll\",'Enrollment Form'!$B754=\"Subscriber\",'Enrollment Form'!$CX754=\"No\",'Enrollment Form'!$DS754=\"\"),\"N\",IF(AND('Enrollment Form'!$C754=\"Enroll\",'Enrollment Form'!$B754=\"Subscriber\",'Enrollment Form'!$CX754=\"Yes\"),\"-\",\"Y\")))))","v":""},{"$f":"IF('Enrollment Form'!AH754=\"\",\"\",IF(ISERROR(SEARCH(\".\",'Enrollment Form'!AH754,SEARCH(\"@\",'Enrollment Form'!AH754))),\"N\",\"Y\"))","v":""},{"$f":"IF(OR($B747=\"N\",'Enrollment Form'!$G754=\"\"),\"\",IF('Enrollment Form'!$B754<>\"Subscriber\",\"-\",IF(COUNTIF('Enrollment Form'!$AV754:$AW754,\"Yes\")=2,\"N\",\"Y\")))","v":""},{"$f":"IF(OR('Enrollment Form'!$CJ754=\"\",'Enrollment Form'!$CJ754=\"No\"),\"-\",IF(AND('Enrollment Form'!$CJ754=\"Yes\",'Enrollment Form'!$CK754=\"\"),\"N\",\"Y\"))","v":"-"},{"$f":"IF(OR('Enrollment Form'!$CL754=\"\",'Enrollment Form'!$CL754=\"No\"),\"-\",IF(AND('Enrollment Form'!$CL754=\"Yes\",'Enrollment Form'!$CM754=\"\"),\"N\",\"Y\"))","v":"-"},{"$f":"IF(OR('Enrollment Form'!$CN754=\"\",'Enrollment Form'!$CN754=\"No\"),\"-\",IF(AND('Enrollment Form'!$CN754=\"Yes\",'Enrollment Form'!$CO754=\"\"),\"N\",\"Y\"))","v":"-"},{"$f":"IF(OR('Enrollment Form'!$CN754=\"\",'Enrollment Form'!$CN754=\"No\"),\"-\",IF(AND('Enrollment Form'!$CN754=\"Yes\",'Enrollment Form'!$CP754=\"\"),\"N\",\"Y\"))","v":"-"},{"$f":"IF('Enrollment Form'!B754<>\"Subscriber\",\"-\",IF(AND('Enrollment Form'!B754=\"Subscriber\",'Enrollment Form'!C754=\"Enroll\",'Enrollment Form'!AA754=\"\"),\"N\",\"Y\"))","v":"-"},{"$f":"IF(OR('Enrollment Form'!B754=\"Subscriber\",'Enrollment Form'!B754=\"\"),\"-\",IF('Enrollment Form'!BP754=\"\",\"N\",\"Y\"))","v":"-"},{"$f":"IF('Enrollment Form'!B754<>\"Subscriber\",\"-\",IF(AND('Enrollment Form'!B754=\"Subscriber\",'Enrollment Form'!G754=\"\"),\"N\",\"Y\"))","v":"-"},{"$f":"IF('Enrollment Form'!A754=\"\",\"\",IF('Enrollment Form'!B754=\"Subscriber\",\"-\",IF(AND('Enrollment Form'!B754<>\"Subscriber\",'Enrollment Form'!G754='Enrollment Form'!H754),\"N\",\"Y\")))","v":""},0]
[755,{"$f":"IF('Enrollment Form'!$A755<>\"\",\"Y\",\"N\")","v":"N"},{"$f":"IF(AND('Enrollment Form'!$B755=\"\",'Enrollment Form'!$C755<>\"\"),\"N\",IF($B748=\"N\",\"\",\"Y\"))","v":""},{"$f":"IF(OR($B748=\"N\",'Enrollment Form'!G755=\"\"),\"\",IF('Enrollment Form'!$B755<>\"Subscriber\",\"\",IF('Enrollment Form'!$G755='Enrollment Form'!$H755,\"Y\",\"N\")))","v":""},{"$f":"IF($B748=\"N\",\"\",IF(AND(COUNTIFS('Enrollment Form'!$H$11:$H$1000,'Enrollment Form'!$H755,'Enrollment Form'!$B$11:$B$1000,'Enrollment Form'!$B755)>1,'Enrollment Form'!$H755<>\"\"),\"N\",\"Y\"))","v":""},{"$f":"IF($B748=\"N\",\"\",IF(LEN('Enrollment Form'!$Y755)=0,\"\",IF(LEN('Enrollment Form'!$Y755)<>5,\"N\",\"Y\")))","v":""},{"$f":"IF($B748=\"N\",\"\",IF(LEN('Enrollment Form'!$AD755=0),\"\",IF(LEN('Enrollment Form'!$AD755)<>5,\"N\",\"Y\")))","v":""},{"$f":"IF($B748=\"N\",\"\",IF(LEN('Enrollment Form'!$BS755=0),\"\",IF(LEN('Enrollment Form'!$BS755)<>5,\"N\",\"Y\")))","v":""},{"$f":"IF($B748=\"N\",\"\",IF(LEN('Enrollment Form'!$AE755)=0,\"\",IF(LEN('Enrollment Form'!$AE755)<>10,\"N\",\"Y\")))","v":""},{"$f":"IF($B748=\"N\",\"\",IF(LEN('Enrollment Form'!$AF755)=0,\"\",IF(LEN('Enrollment Form'!$AF755)<>10,\"N\",\"Y\")))","v":""},{"$f":"IF('Enrollment Form'!$O755<>\"Graded\",\"-\",IF(AND('Enrollment Form'!$O755=\"Graded\",'Enrollment Form'!$AR755<>\"\"),\"Y\",\"N\"))","v":"-"},{"$f":"IF($B748=\"N\",\"\",IF(OR('Enrollment Form'!$B755<>\"Subscriber\",'Enrollment Form'!$C755=\"ROC\"),\"-\",IF(AND('Enrollment Form'!$B755=\"Subscriber\",'Enrollment Form'!$C755=\"Enroll\",'Enrollment Form'!$AJ755<>\"\"),\"Y\",\"N\")))","v":""},{"$f":"IF($B748=\"N\",\"\",IF(OR('Enrollment Form'!$B755<>\"Subscriber\",'Enrollment Form'!$C755=\"ROC\"),\"-\",IF(AND('Enrollment Form'!$B755=\"Subscriber\",'Enrollment Form'!$C755=\"Enroll\",'Enrollment Form'!$AK755<>\"\"),\"Y\",\"N\")))","v":""},{"$f":"IF($B748=\"N\",\"\",IF(OR('Enrollment Form'!$B755<>\"Subscriber\",'Enrollment Form'!$C755=\"ROC\"),\"-\",IF(AND('Enrollment Form'!$B755=\"Subscriber\",'Enrollment Form'!$C755=\"Enroll\",'Enrollment Form'!$AL755<>\"\"),\"Y\",\"N\")))","v":""},{"$f":"IF($B748=\"N\",\"\",IF(OR('Enrollment Form'!$B755<>\"Subscriber\",'Enrollment Form'!$C755=\"ROC\"),\"-\",IF(AND('Enrollment Form'!$B755=\"Subscriber\",'Enrollment Form'!$C755=\"Enroll\",'Enrollment Form'!$AP755<>\"\"),\"Y\",\"N\")))","v":""},{"$f":"IF($B748=\"N\",\"\",IF(OR('Enrollment Form'!$B755<>\"Subscriber\",'Enrollment Form'!$C755=\"ROC\"),\"-\",IF(AND('Enrollment Form'!$B755=\"Subscriber\",'Enrollment Form'!$C755=\"Enroll\",'Enrollment Form'!$AQ755<>\"\"),\"Y\",\"N\")))","v":""},{"$f":"IF($B748=\"N\",\"\",IF(OR('Enrollment Form'!$B755<>\"Subscriber\",'Enrollment Form'!$C755=\"ROC\"),\"-\",IF(AND('Enrollment Form'!$B755=\"Subscriber\",'Enrollment Form'!$C755=\"Enroll\",'Enrollment Form'!$AS755<>\"\"),\"Y\",\"N\")))","v":""},{"$f":"IF($B748=\"N\",\"\",IF($Q748=\"-\",\"-\",IF(AND($Q748=\"Y\",'Enrollment Form'!$AS755=\"No\"),\"-\",IF(AND($Q748=\"Y\",'Enrollment Form'!$AS755=\"Yes\",'Enrollment Form'!$AT755<>\"\"),\"Y\",\"N\"))))","v":""},{"$f":"IF($B748=\"N\",\"\",IF(OR('Enrollment Form'!$B755<>\"Subscriber\",'Enrollment Form'!$C755=\"ROC\"),\"-\",IF(AND('Enrollment Form'!$B755=\"Subscriber\",'Enrollment Form'!$C755=\"Enroll\",'Enrollment Form'!$CV755<>\"\"),\"Y\",\"N\")))","v":""},{"$f":"IF($B748=\"N\",\"\",IF($S748=\"-\",\"-\",IF(AND($S748=\"Y\",'Enrollment Form'!$CV755=\"No\"),\"-\",IF(AND($S748=\"Y\",'Enrollment Form'!$CV755=\"Yes\",'Enrollment Form'!$CW755<>\"\"),\"Y\",\"N\"))))","v":""},{"$f":"IF(OR('Enrollment Form'!$AY755=\"Yes\",'Enrollment Form'!$AY755=\"\"),\"-\",IF(OR(AND('Enrollment Form'!$AY755=\"No\",ISERROR(FIND(\"HMO\",VLOOKUP('Enrollment Form'!G755,'Enrollment Form'!H$11:J$1000,3,FALSE),1))=FALSE,COUNTA('Enrollment Form'!$AZ755:$BC755)=4),AND('Enrollment Form'!$AY755=\"No\",ISERROR(FIND(\"HMO\",VLOOKUP('Enrollment Form'!G755,'Enrollment Form'!H$11:J$1000,3,FALSE),1))=FALSE,COUNTA('Enrollment Form'!$BT755:$BW755)=4)),\"Y\",\"N\"))","v":"-"},{"$f":"IF($B748=\"N\",\"\",IF('Enrollment Form'!$B755=\"Subscriber\",\"-\",IF(COUNTA('Enrollment Form'!$BL755,'Enrollment Form'!$BN755)=2,\"Y\",\"N\")))","v":""},{"$f":"IF($B748=\"N\",\"\",IF(OR('Enrollment Form'!$AX755=\"\",'Enrollment Form'!$AX755=\"No\"),\"-\",IF(AND('Enrollment Form'!$AX755=\"Yes\",COUNTA('Enrollment Form'!$CR755)=1),\"Y\",\"N\")))","v":""},{"$f":"IF(OR('Enrollment Form'!$CR755=\"\",'Enrollment Form'!$CR755=\"No\"),\"-\",IF(COUNTA('Enrollment Form'!$CT755:$CU755)=2,\"Y\",\"N\"))","v":"-"},{"$f":"IF($B748=\"N\",\"\",IF(COUNTIF('Enrollment Form'!$DG755:$DP755,\"Other\")=COUNTA('Enrollment Form'!$DK755,'Enrollment Form'!$DH755,'Enrollment Form'!$DN755,'Enrollment Form'!$DQ755),\"Y\",\"N\"))","v":""},{"$f":"IF($B748=\"N\",\"\",IF(OR('Enrollment Form'!B755<>\"Subscriber\",'Enrollment Form'!C755=\"ROC\",COUNTIF('Enrollment Form'!AV755:AW755,\"Yes\")>=1),\"-\",IF(AND('Enrollment Form'!C755=\"Enroll\",COUNTIF('Enrollment Form'!AV755:AW755,\"No\")=2,'Enrollment Form'!AX755=\"\"),\"N\",\"Y\")))","v":""},{"$f":"IF(OR(B748=\"N\",'Enrollment Form'!B755<>\"Subscriber\",'Enrollment Form'!C755=\"ROC\",'Enrollment Form'!O755<>\"Multiple of Salary\"),\"-\",IF(COUNTA('Enrollment Form'!T755:U755)<2,\"N\",\"Y\"))","v":"-"},{"$f":"IF(B748=\"N\",\"\",IF(OR('Enrollment Form'!C755=\"ROC\",'Enrollment Form'!B755<>\"Subscriber\",'Enrollment Form'!O755=\"Waive\",'Enrollment Form'!O755=\"\"),\"-\",IF('Enrollment Form'!P755=\"\",\"N\",\"Y\")))","v":""},{"$f":"IF($B748=\"N\",\"\",IF(AND('Enrollment Form'!$C755=\"ROC\",'Enrollment Form'!$DR755<>\"\"),\"Y\",IF(AND('Enrollment Form'!$C755=\"ROC\",'Enrollment Form'!$DR755=\"\"),\"N\",IF(AND('Enrollment Form'!$C755=\"Enroll\",'Enrollment Form'!$B755=\"Subscriber\",'Enrollment Form'!$CX755=\"No\",'Enrollment Form'!$DR755=\"\"),\"N\",IF(AND('Enrollment Form'!$C755=\"Enroll\",'Enrollment Form'!$B755=\"Subscriber\",'Enrollment Form'!$CX755=\"Yes\"),\"-\",\"Y\")))))","v":""},{"$f":"IF($B748=\"N\",\"\",IF(AND('Enrollment Form'!$C755=\"ROC\",'Enrollment Form'!$DS755<>\"\"),\"Y\",IF(AND('Enrollment Form'!$C755=\"ROC\",'Enrollment Form'!$DS755=\"\"),\"N\",IF(AND('Enrollment Form'!$C755=\"Enroll\",'Enrollment Form'!$B755=\"Subscriber\",'Enrollment Form'!$CX755=\"No\",'Enrollment Form'!$DS755=\"\"),\"N\",IF(AND('Enrollment Form'!$C755=\"Enroll\",'Enrollment Form'!$B755=\"Subscriber\",'Enrollment Form'!$CX755=\"Yes\"),\"-\",\"Y\")))))","v":""},{"$f":"IF('Enrollment Form'!AH755=\"\",\"\",IF(ISERROR(SEARCH(\".\",'Enrollment Form'!AH755,SEARCH(\"@\",'Enrollment Form'!AH755))),\"N\",\"Y\"))","v":""},{"$f":"IF(OR($B748=\"N\",'Enrollment Form'!$G755=\"\"),\"\",IF('Enrollment Form'!$B755<>\"Subscriber\",\"-\",IF(COUNTIF('Enrollment Form'!$AV755:$AW755,\"Yes\")=2,\"N\",\"Y\")))","v":""},{"$f":"IF(OR('Enrollment Form'!$CJ755=\"\",'Enrollment Form'!$CJ755=\"No\"),\"-\",IF(AND('Enrollment Form'!$CJ755=\"Yes\",'Enrollment Form'!$CK755=\"\"),\"N\",\"Y\"))","v":"-"},{"$f":"IF(OR('Enrollment Form'!$CL755=\"\",'Enrollment Form'!$CL755=\"No\"),\"-\",IF(AND('Enrollment Form'!$CL755=\"Yes\",'Enrollment Form'!$CM755=\"\"),\"N\",\"Y\"))","v":"-"},{"$f":"IF(OR('Enrollment Form'!$CN755=\"\",'Enrollment Form'!$CN755=\"No\"),\"-\",IF(AND('Enrollment Form'!$CN755=\"Yes\",'Enrollment Form'!$CO755=\"\"),\"N\",\"Y\"))","v":"-"},{"$f":"IF(OR('Enrollment Form'!$CN755=\"\",'Enrollment Form'!$CN755=\"No\"),\"-\",IF(AND('Enrollment Form'!$CN755=\"Yes\",'Enrollment Form'!$CP755=\"\"),\"N\",\"Y\"))","v":"-"},{"$f":"IF('Enrollment Form'!B755<>\"Subscriber\",\"-\",IF(AND('Enrollment Form'!B755=\"Subscriber\",'Enrollment Form'!C755=\"Enroll\",'Enrollment Form'!AA755=\"\"),\"N\",\"Y\"))","v":"-"},{"$f":"IF(OR('Enrollment Form'!B755=\"Subscriber\",'Enrollment Form'!B755=\"\"),\"-\",IF('Enrollment Form'!BP755=\"\",\"N\",\"Y\"))","v":"-"},{"$f":"IF('Enrollment Form'!B755<>\"Subscriber\",\"-\",IF(AND('Enrollment Form'!B755=\"Subscriber\",'Enrollment Form'!G755=\"\"),\"N\",\"Y\"))","v":"-"},{"$f":"IF('Enrollment Form'!A755=\"\",\"\",IF('Enrollment Form'!B755=\"Subscriber\",\"-\",IF(AND('Enrollment Form'!B755<>\"Subscriber\",'Enrollment Form'!G755='Enrollment Form'!H755),\"N\",\"Y\")))","v":""},0]
[756,{"$f":"IF('Enrollment Form'!$A756<>\"\",\"Y\",\"N\")","v":"N"},{"$f":"IF(AND('Enrollment Form'!$B756=\"\",'Enrollment Form'!$C756<>\"\"),\"N\",IF($B749=\"N\",\"\",\"Y\"))","v":""},{"$f":"IF(OR($B749=\"N\",'Enrollment Form'!G756=\"\"),\"\",IF('Enrollment Form'!$B756<>\"Subscriber\",\"\",IF('Enrollment Form'!$G756='Enrollment Form'!$H756,\"Y\",\"N\")))","v":""},{"$f":"IF($B749=\"N\",\"\",IF(AND(COUNTIFS('Enrollment Form'!$H$11:$H$1000,'Enrollment Form'!$H756,'Enrollment Form'!$B$11:$B$1000,'Enrollment Form'!$B756)>1,'Enrollment Form'!$H756<>\"\"),\"N\",\"Y\"))","v":""},{"$f":"IF($B749=\"N\",\"\",IF(LEN('Enrollment Form'!$Y756)=0,\"\",IF(LEN('Enrollment Form'!$Y756)<>5,\"N\",\"Y\")))","v":""},{"$f":"IF($B749=\"N\",\"\",IF(LEN('Enrollment Form'!$AD756=0),\"\",IF(LEN('Enrollment Form'!$AD756)<>5,\"N\",\"Y\")))","v":""},{"$f":"IF($B749=\"N\",\"\",IF(LEN('Enrollment Form'!$BS756=0),\"\",IF(LEN('Enrollment Form'!$BS756)<>5,\"N\",\"Y\")))","v":""},{"$f":"IF($B749=\"N\",\"\",IF(LEN('Enrollment Form'!$AE756)=0,\"\",IF(LEN('Enrollment Form'!$AE756)<>10,\"N\",\"Y\")))","v":""},{"$f":"IF($B749=\"N\",\"\",IF(LEN('Enrollment Form'!$AF756)=0,\"\",IF(LEN('Enrollment Form'!$AF756)<>10,\"N\",\"Y\")))","v":""},{"$f":"IF('Enrollment Form'!$O756<>\"Graded\",\"-\",IF(AND('Enrollment Form'!$O756=\"Graded\",'Enrollment Form'!$AR756<>\"\"),\"Y\",\"N\"))","v":"-"},{"$f":"IF($B749=\"N\",\"\",IF(OR('Enrollment Form'!$B756<>\"Subscriber\",'Enrollment Form'!$C756=\"ROC\"),\"-\",IF(AND('Enrollment Form'!$B756=\"Subscriber\",'Enrollment Form'!$C756=\"Enroll\",'Enrollment Form'!$AJ756<>\"\"),\"Y\",\"N\")))","v":""},{"$f":"IF($B749=\"N\",\"\",IF(OR('Enrollment Form'!$B756<>\"Subscriber\",'Enrollment Form'!$C756=\"ROC\"),\"-\",IF(AND('Enrollment Form'!$B756=\"Subscriber\",'Enrollment Form'!$C756=\"Enroll\",'Enrollment Form'!$AK756<>\"\"),\"Y\",\"N\")))","v":""},{"$f":"IF($B749=\"N\",\"\",IF(OR('Enrollment Form'!$B756<>\"Subscriber\",'Enrollment Form'!$C756=\"ROC\"),\"-\",IF(AND('Enrollment Form'!$B756=\"Subscriber\",'Enrollment Form'!$C756=\"Enroll\",'Enrollment Form'!$AL756<>\"\"),\"Y\",\"N\")))","v":""},{"$f":"IF($B749=\"N\",\"\",IF(OR('Enrollment Form'!$B756<>\"Subscriber\",'Enrollment Form'!$C756=\"ROC\"),\"-\",IF(AND('Enrollment Form'!$B756=\"Subscriber\",'Enrollment Form'!$C756=\"Enroll\",'Enrollment Form'!$AP756<>\"\"),\"Y\",\"N\")))","v":""},{"$f":"IF($B749=\"N\",\"\",IF(OR('Enrollment Form'!$B756<>\"Subscriber\",'Enrollment Form'!$C756=\"ROC\"),\"-\",IF(AND('Enrollment Form'!$B756=\"Subscriber\",'Enrollment Form'!$C756=\"Enroll\",'Enrollment Form'!$AQ756<>\"\"),\"Y\",\"N\")))","v":""},{"$f":"IF($B749=\"N\",\"\",IF(OR('Enrollment Form'!$B756<>\"Subscriber\",'Enrollment Form'!$C756=\"ROC\"),\"-\",IF(AND('Enrollment Form'!$B756=\"Subscriber\",'Enrollment Form'!$C756=\"Enroll\",'Enrollment Form'!$AS756<>\"\"),\"Y\",\"N\")))","v":""},{"$f":"IF($B749=\"N\",\"\",IF($Q749=\"-\",\"-\",IF(AND($Q749=\"Y\",'Enrollment Form'!$AS756=\"No\"),\"-\",IF(AND($Q749=\"Y\",'Enrollment Form'!$AS756=\"Yes\",'Enrollment Form'!$AT756<>\"\"),\"Y\",\"N\"))))","v":""},{"$f":"IF($B749=\"N\",\"\",IF(OR('Enrollment Form'!$B756<>\"Subscriber\",'Enrollment Form'!$C756=\"ROC\"),\"-\",IF(AND('Enrollment Form'!$B756=\"Subscriber\",'Enrollment Form'!$C756=\"Enroll\",'Enrollment Form'!$CV756<>\"\"),\"Y\",\"N\")))","v":""},{"$f":"IF($B749=\"N\",\"\",IF($S749=\"-\",\"-\",IF(AND($S749=\"Y\",'Enrollment Form'!$CV756=\"No\"),\"-\",IF(AND($S749=\"Y\",'Enrollment Form'!$CV756=\"Yes\",'Enrollment Form'!$CW756<>\"\"),\"Y\",\"N\"))))","v":""},{"$f":"IF(OR('Enrollment Form'!$AY756=\"Yes\",'Enrollment Form'!$AY756=\"\"),\"-\",IF(OR(AND('Enrollment Form'!$AY756=\"No\",ISERROR(FIND(\"HMO\",VLOOKUP('Enrollment Form'!G756,'Enrollment Form'!H$11:J$1000,3,FALSE),1))=FALSE,COUNTA('Enrollment Form'!$AZ756:$BC756)=4),AND('Enrollment Form'!$AY756=\"No\",ISERROR(FIND(\"HMO\",VLOOKUP('Enrollment Form'!G756,'Enrollment Form'!H$11:J$1000,3,FALSE),1))=FALSE,COUNTA('Enrollment Form'!$BT756:$BW756)=4)),\"Y\",\"N\"))","v":"-"},{"$f":"IF($B749=\"N\",\"\",IF('Enrollment Form'!$B756=\"Subscriber\",\"-\",IF(COUNTA('Enrollment Form'!$BL756,'Enrollment Form'!$BN756)=2,\"Y\",\"N\")))","v":""},{"$f":"IF($B749=\"N\",\"\",IF(OR('Enrollment Form'!$AX756=\"\",'Enrollment Form'!$AX756=\"No\"),\"-\",IF(AND('Enrollment Form'!$AX756=\"Yes\",COUNTA('Enrollment Form'!$CR756)=1),\"Y\",\"N\")))","v":""},{"$f":"IF(OR('Enrollment Form'!$CR756=\"\",'Enrollment Form'!$CR756=\"No\"),\"-\",IF(COUNTA('Enrollment Form'!$CT756:$CU756)=2,\"Y\",\"N\"))","v":"-"},{"$f":"IF($B749=\"N\",\"\",IF(COUNTIF('Enrollment Form'!$DG756:$DP756,\"Other\")=COUNTA('Enrollment Form'!$DK756,'Enrollment Form'!$DH756,'Enrollment Form'!$DN756,'Enrollment Form'!$DQ756),\"Y\",\"N\"))","v":""},{"$f":"IF($B749=\"N\",\"\",IF(OR('Enrollment Form'!B756<>\"Subscriber\",'Enrollment Form'!C756=\"ROC\",COUNTIF('Enrollment Form'!AV756:AW756,\"Yes\")>=1),\"-\",IF(AND('Enrollment Form'!C756=\"Enroll\",COUNTIF('Enrollment Form'!AV756:AW756,\"No\")=2,'Enrollment Form'!AX756=\"\"),\"N\",\"Y\")))","v":""},{"$f":"IF(OR(B749=\"N\",'Enrollment Form'!B756<>\"Subscriber\",'Enrollment Form'!C756=\"ROC\",'Enrollment Form'!O756<>\"Multiple of Salary\"),\"-\",IF(COUNTA('Enrollment Form'!T756:U756)<2,\"N\",\"Y\"))","v":"-"},{"$f":"IF(B749=\"N\",\"\",IF(OR('Enrollment Form'!C756=\"ROC\",'Enrollment Form'!B756<>\"Subscriber\",'Enrollment Form'!O756=\"Waive\",'Enrollment Form'!O756=\"\"),\"-\",IF('Enrollment Form'!P756=\"\",\"N\",\"Y\")))","v":""},{"$f":"IF($B749=\"N\",\"\",IF(AND('Enrollment Form'!$C756=\"ROC\",'Enrollment Form'!$DR756<>\"\"),\"Y\",IF(AND('Enrollment Form'!$C756=\"ROC\",'Enrollment Form'!$DR756=\"\"),\"N\",IF(AND('Enrollment Form'!$C756=\"Enroll\",'Enrollment Form'!$B756=\"Subscriber\",'Enrollment Form'!$CX756=\"No\",'Enrollment Form'!$DR756=\"\"),\"N\",IF(AND('Enrollment Form'!$C756=\"Enroll\",'Enrollment Form'!$B756=\"Subscriber\",'Enrollment Form'!$CX756=\"Yes\"),\"-\",\"Y\")))))","v":""},{"$f":"IF($B749=\"N\",\"\",IF(AND('Enrollment Form'!$C756=\"ROC\",'Enrollment Form'!$DS756<>\"\"),\"Y\",IF(AND('Enrollment Form'!$C756=\"ROC\",'Enrollment Form'!$DS756=\"\"),\"N\",IF(AND('Enrollment Form'!$C756=\"Enroll\",'Enrollment Form'!$B756=\"Subscriber\",'Enrollment Form'!$CX756=\"No\",'Enrollment Form'!$DS756=\"\"),\"N\",IF(AND('Enrollment Form'!$C756=\"Enroll\",'Enrollment Form'!$B756=\"Subscriber\",'Enrollment Form'!$CX756=\"Yes\"),\"-\",\"Y\")))))","v":""},{"$f":"IF('Enrollment Form'!AH756=\"\",\"\",IF(ISERROR(SEARCH(\".\",'Enrollment Form'!AH756,SEARCH(\"@\",'Enrollment Form'!AH756))),\"N\",\"Y\"))","v":""},{"$f":"IF(OR($B749=\"N\",'Enrollment Form'!$G756=\"\"),\"\",IF('Enrollment Form'!$B756<>\"Subscriber\",\"-\",IF(COUNTIF('Enrollment Form'!$AV756:$AW756,\"Yes\")=2,\"N\",\"Y\")))","v":""},{"$f":"IF(OR('Enrollment Form'!$CJ756=\"\",'Enrollment Form'!$CJ756=\"No\"),\"-\",IF(AND('Enrollment Form'!$CJ756=\"Yes\",'Enrollment Form'!$CK756=\"\"),\"N\",\"Y\"))","v":"-"},{"$f":"IF(OR('Enrollment Form'!$CL756=\"\",'Enrollment Form'!$CL756=\"No\"),\"-\",IF(AND('Enrollment Form'!$CL756=\"Yes\",'Enrollment Form'!$CM756=\"\"),\"N\",\"Y\"))","v":"-"},{"$f":"IF(OR('Enrollment Form'!$CN756=\"\",'Enrollment Form'!$CN756=\"No\"),\"-\",IF(AND('Enrollment Form'!$CN756=\"Yes\",'Enrollment Form'!$CO756=\"\"),\"N\",\"Y\"))","v":"-"},{"$f":"IF(OR('Enrollment Form'!$CN756=\"\",'Enrollment Form'!$CN756=\"No\"),\"-\",IF(AND('Enrollment Form'!$CN756=\"Yes\",'Enrollment Form'!$CP756=\"\"),\"N\",\"Y\"))","v":"-"},{"$f":"IF('Enrollment Form'!B756<>\"Subscriber\",\"-\",IF(AND('Enrollment Form'!B756=\"Subscriber\",'Enrollment Form'!C756=\"Enroll\",'Enrollment Form'!AA756=\"\"),\"N\",\"Y\"))","v":"-"},{"$f":"IF(OR('Enrollment Form'!B756=\"Subscriber\",'Enrollment Form'!B756=\"\"),\"-\",IF('Enrollment Form'!BP756=\"\",\"N\",\"Y\"))","v":"-"},{"$f":"IF('Enrollment Form'!B756<>\"Subscriber\",\"-\",IF(AND('Enrollment Form'!B756=\"Subscriber\",'Enrollment Form'!G756=\"\"),\"N\",\"Y\"))","v":"-"},{"$f":"IF('Enrollment Form'!A756=\"\",\"\",IF('Enrollment Form'!B756=\"Subscriber\",\"-\",IF(AND('Enrollment Form'!B756<>\"Subscriber\",'Enrollment Form'!G756='Enrollment Form'!H756),\"N\",\"Y\")))","v":""},0]
[757,{"$f":"IF('Enrollment Form'!$A757<>\"\",\"Y\",\"N\")","v":"N"},{"$f":"IF(AND('Enrollment Form'!$B757=\"\",'Enrollment Form'!$C757<>\"\"),\"N\",IF($B750=\"N\",\"\",\"Y\"))","v":""},{"$f":"IF(OR($B750=\"N\",'Enrollment Form'!G757=\"\"),\"\",IF('Enrollment Form'!$B757<>\"Subscriber\",\"\",IF('Enrollment Form'!$G757='Enrollment Form'!$H757,\"Y\",\"N\")))","v":""},{"$f":"IF($B750=\"N\",\"\",IF(AND(COUNTIFS('Enrollment Form'!$H$11:$H$1000,'Enrollment Form'!$H757,'Enrollment Form'!$B$11:$B$1000,'Enrollment Form'!$B757)>1,'Enrollment Form'!$H757<>\"\"),\"N\",\"Y\"))","v":""},{"$f":"IF($B750=\"N\",\"\",IF(LEN('Enrollment Form'!$Y757)=0,\"\",IF(LEN('Enrollment Form'!$Y757)<>5,\"N\",\"Y\")))","v":""},{"$f":"IF($B750=\"N\",\"\",IF(LEN('Enrollment Form'!$AD757=0),\"\",IF(LEN('Enrollment Form'!$AD757)<>5,\"N\",\"Y\")))","v":""},{"$f":"IF($B750=\"N\",\"\",IF(LEN('Enrollment Form'!$BS757=0),\"\",IF(LEN('Enrollment Form'!$BS757)<>5,\"N\",\"Y\")))","v":""},{"$f":"IF($B750=\"N\",\"\",IF(LEN('Enrollment Form'!$AE757)=0,\"\",IF(LEN('Enrollment Form'!$AE757)<>10,\"N\",\"Y\")))","v":""},{"$f":"IF($B750=\"N\",\"\",IF(LEN('Enrollment Form'!$AF757)=0,\"\",IF(LEN('Enrollment Form'!$AF757)<>10,\"N\",\"Y\")))","v":""},{"$f":"IF('Enrollment Form'!$O757<>\"Graded\",\"-\",IF(AND('Enrollment Form'!$O757=\"Graded\",'Enrollment Form'!$AR757<>\"\"),\"Y\",\"N\"))","v":"-"},{"$f":"IF($B750=\"N\",\"\",IF(OR('Enrollment Form'!$B757<>\"Subscriber\",'Enrollment Form'!$C757=\"ROC\"),\"-\",IF(AND('Enrollment Form'!$B757=\"Subscriber\",'Enrollment Form'!$C757=\"Enroll\",'Enrollment Form'!$AJ757<>\"\"),\"Y\",\"N\")))","v":""},{"$f":"IF($B750=\"N\",\"\",IF(OR('Enrollment Form'!$B757<>\"Subscriber\",'Enrollment Form'!$C757=\"ROC\"),\"-\",IF(AND('Enrollment Form'!$B757=\"Subscriber\",'Enrollment Form'!$C757=\"Enroll\",'Enrollment Form'!$AK757<>\"\"),\"Y\",\"N\")))","v":""},{"$f":"IF($B750=\"N\",\"\",IF(OR('Enrollment Form'!$B757<>\"Subscriber\",'Enrollment Form'!$C757=\"ROC\"),\"-\",IF(AND('Enrollment Form'!$B757=\"Subscriber\",'Enrollment Form'!$C757=\"Enroll\",'Enrollment Form'!$AL757<>\"\"),\"Y\",\"N\")))","v":""},{"$f":"IF($B750=\"N\",\"\",IF(OR('Enrollment Form'!$B757<>\"Subscriber\",'Enrollment Form'!$C757=\"ROC\"),\"-\",IF(AND('Enrollment Form'!$B757=\"Subscriber\",'Enrollment Form'!$C757=\"Enroll\",'Enrollment Form'!$AP757<>\"\"),\"Y\",\"N\")))","v":""},{"$f":"IF($B750=\"N\",\"\",IF(OR('Enrollment Form'!$B757<>\"Subscriber\",'Enrollment Form'!$C757=\"ROC\"),\"-\",IF(AND('Enrollment Form'!$B757=\"Subscriber\",'Enrollment Form'!$C757=\"Enroll\",'Enrollment Form'!$AQ757<>\"\"),\"Y\",\"N\")))","v":""},{"$f":"IF($B750=\"N\",\"\",IF(OR('Enrollment Form'!$B757<>\"Subscriber\",'Enrollment Form'!$C757=\"ROC\"),\"-\",IF(AND('Enrollment Form'!$B757=\"Subscriber\",'Enrollment Form'!$C757=\"Enroll\",'Enrollment Form'!$AS757<>\"\"),\"Y\",\"N\")))","v":""},{"$f":"IF($B750=\"N\",\"\",IF($Q750=\"-\",\"-\",IF(AND($Q750=\"Y\",'Enrollment Form'!$AS757=\"No\"),\"-\",IF(AND($Q750=\"Y\",'Enrollment Form'!$AS757=\"Yes\",'Enrollment Form'!$AT757<>\"\"),\"Y\",\"N\"))))","v":""},{"$f":"IF($B750=\"N\",\"\",IF(OR('Enrollment Form'!$B757<>\"Subscriber\",'Enrollment Form'!$C757=\"ROC\"),\"-\",IF(AND('Enrollment Form'!$B757=\"Subscriber\",'Enrollment Form'!$C757=\"Enroll\",'Enrollment Form'!$CV757<>\"\"),\"Y\",\"N\")))","v":""},{"$f":"IF($B750=\"N\",\"\",IF($S750=\"-\",\"-\",IF(AND($S750=\"Y\",'Enrollment Form'!$CV757=\"No\"),\"-\",IF(AND($S750=\"Y\",'Enrollment Form'!$CV757=\"Yes\",'Enrollment Form'!$CW757<>\"\"),\"Y\",\"N\"))))","v":""},{"$f":"IF(OR('Enrollment Form'!$AY757=\"Yes\",'Enrollment Form'!$AY757=\"\"),\"-\",IF(OR(AND('Enrollment Form'!$AY757=\"No\",ISERROR(FIND(\"HMO\",VLOOKUP('Enrollment Form'!G757,'Enrollment Form'!H$11:J$1000,3,FALSE),1))=FALSE,COUNTA('Enrollment Form'!$AZ757:$BC757)=4),AND('Enrollment Form'!$AY757=\"No\",ISERROR(FIND(\"HMO\",VLOOKUP('Enrollment Form'!G757,'Enrollment Form'!H$11:J$1000,3,FALSE),1))=FALSE,COUNTA('Enrollment Form'!$BT757:$BW757)=4)),\"Y\",\"N\"))","v":"-"},{"$f":"IF($B750=\"N\",\"\",IF('Enrollment Form'!$B757=\"Subscriber\",\"-\",IF(COUNTA('Enrollment Form'!$BL757,'Enrollment Form'!$BN757)=2,\"Y\",\"N\")))","v":""},{"$f":"IF($B750=\"N\",\"\",IF(OR('Enrollment Form'!$AX757=\"\",'Enrollment Form'!$AX757=\"No\"),\"-\",IF(AND('Enrollment Form'!$AX757=\"Yes\",COUNTA('Enrollment Form'!$CR757)=1),\"Y\",\"N\")))","v":""},{"$f":"IF(OR('Enrollment Form'!$CR757=\"\",'Enrollment Form'!$CR757=\"No\"),\"-\",IF(COUNTA('Enrollment Form'!$CT757:$CU757)=2,\"Y\",\"N\"))","v":"-"},{"$f":"IF($B750=\"N\",\"\",IF(COUNTIF('Enrollment Form'!$DG757:$DP757,\"Other\")=COUNTA('Enrollment Form'!$DK757,'Enrollment Form'!$DH757,'Enrollment Form'!$DN757,'Enrollment Form'!$DQ757),\"Y\",\"N\"))","v":""},{"$f":"IF($B750=\"N\",\"\",IF(OR('Enrollment Form'!B757<>\"Subscriber\",'Enrollment Form'!C757=\"ROC\",COUNTIF('Enrollment Form'!AV757:AW757,\"Yes\")>=1),\"-\",IF(AND('Enrollment Form'!C757=\"Enroll\",COUNTIF('Enrollment Form'!AV757:AW757,\"No\")=2,'Enrollment Form'!AX757=\"\"),\"N\",\"Y\")))","v":""},{"$f":"IF(OR(B750=\"N\",'Enrollment Form'!B757<>\"Subscriber\",'Enrollment Form'!C757=\"ROC\",'Enrollment Form'!O757<>\"Multiple of Salary\"),\"-\",IF(COUNTA('Enrollment Form'!T757:U757)<2,\"N\",\"Y\"))","v":"-"},{"$f":"IF(B750=\"N\",\"\",IF(OR('Enrollment Form'!C757=\"ROC\",'Enrollment Form'!B757<>\"Subscriber\",'Enrollment Form'!O757=\"Waive\",'Enrollment Form'!O757=\"\"),\"-\",IF('Enrollment Form'!P757=\"\",\"N\",\"Y\")))","v":""},{"$f":"IF($B750=\"N\",\"\",IF(AND('Enrollment Form'!$C757=\"ROC\",'Enrollment Form'!$DR757<>\"\"),\"Y\",IF(AND('Enrollment Form'!$C757=\"ROC\",'Enrollment Form'!$DR757=\"\"),\"N\",IF(AND('Enrollment Form'!$C757=\"Enroll\",'Enrollment Form'!$B757=\"Subscriber\",'Enrollment Form'!$CX757=\"No\",'Enrollment Form'!$DR757=\"\"),\"N\",IF(AND('Enrollment Form'!$C757=\"Enroll\",'Enrollment Form'!$B757=\"Subscriber\",'Enrollment Form'!$CX757=\"Yes\"),\"-\",\"Y\")))))","v":""},{"$f":"IF($B750=\"N\",\"\",IF(AND('Enrollment Form'!$C757=\"ROC\",'Enrollment Form'!$DS757<>\"\"),\"Y\",IF(AND('Enrollment Form'!$C757=\"ROC\",'Enrollment Form'!$DS757=\"\"),\"N\",IF(AND('Enrollment Form'!$C757=\"Enroll\",'Enrollment Form'!$B757=\"Subscriber\",'Enrollment Form'!$CX757=\"No\",'Enrollment Form'!$DS757=\"\"),\"N\",IF(AND('Enrollment Form'!$C757=\"Enroll\",'Enrollment Form'!$B757=\"Subscriber\",'Enrollment Form'!$CX757=\"Yes\"),\"-\",\"Y\")))))","v":""},{"$f":"IF('Enrollment Form'!AH757=\"\",\"\",IF(ISERROR(SEARCH(\".\",'Enrollment Form'!AH757,SEARCH(\"@\",'Enrollment Form'!AH757))),\"N\",\"Y\"))","v":""},{"$f":"IF(OR($B750=\"N\",'Enrollment Form'!$G757=\"\"),\"\",IF('Enrollment Form'!$B757<>\"Subscriber\",\"-\",IF(COUNTIF('Enrollment Form'!$AV757:$AW757,\"Yes\")=2,\"N\",\"Y\")))","v":""},{"$f":"IF(OR('Enrollment Form'!$CJ757=\"\",'Enrollment Form'!$CJ757=\"No\"),\"-\",IF(AND('Enrollment Form'!$CJ757=\"Yes\",'Enrollment Form'!$CK757=\"\"),\"N\",\"Y\"))","v":"-"},{"$f":"IF(OR('Enrollment Form'!$CL757=\"\",'Enrollment Form'!$CL757=\"No\"),\"-\",IF(AND('Enrollment Form'!$CL757=\"Yes\",'Enrollment Form'!$CM757=\"\"),\"N\",\"Y\"))","v":"-"},{"$f":"IF(OR('Enrollment Form'!$CN757=\"\",'Enrollment Form'!$CN757=\"No\"),\"-\",IF(AND('Enrollment Form'!$CN757=\"Yes\",'Enrollment Form'!$CO757=\"\"),\"N\",\"Y\"))","v":"-"},{"$f":"IF(OR('Enrollment Form'!$CN757=\"\",'Enrollment Form'!$CN757=\"No\"),\"-\",IF(AND('Enrollment Form'!$CN757=\"Yes\",'Enrollment Form'!$CP757=\"\"),\"N\",\"Y\"))","v":"-"},{"$f":"IF('Enrollment Form'!B757<>\"Subscriber\",\"-\",IF(AND('Enrollment Form'!B757=\"Subscriber\",'Enrollment Form'!C757=\"Enroll\",'Enrollment Form'!AA757=\"\"),\"N\",\"Y\"))","v":"-"},{"$f":"IF(OR('Enrollment Form'!B757=\"Subscriber\",'Enrollment Form'!B757=\"\"),\"-\",IF('Enrollment Form'!BP757=\"\",\"N\",\"Y\"))","v":"-"},{"$f":"IF('Enrollment Form'!B757<>\"Subscriber\",\"-\",IF(AND('Enrollment Form'!B757=\"Subscriber\",'Enrollment Form'!G757=\"\"),\"N\",\"Y\"))","v":"-"},{"$f":"IF('Enrollment Form'!A757=\"\",\"\",IF('Enrollment Form'!B757=\"Subscriber\",\"-\",IF(AND('Enrollment Form'!B757<>\"Subscriber\",'Enrollment Form'!G757='Enrollment Form'!H757),\"N\",\"Y\")))","v":""},0]
[758,{"$f":"IF('Enrollment Form'!$A758<>\"\",\"Y\",\"N\")","v":"N"},{"$f":"IF(AND('Enrollment Form'!$B758=\"\",'Enrollment Form'!$C758<>\"\"),\"N\",IF($B751=\"N\",\"\",\"Y\"))","v":""},{"$f":"IF(OR($B751=\"N\",'Enrollment Form'!G758=\"\"),\"\",IF('Enrollment Form'!$B758<>\"Subscriber\",\"\",IF('Enrollment Form'!$G758='Enrollment Form'!$H758,\"Y\",\"N\")))","v":""},{"$f":"IF($B751=\"N\",\"\",IF(AND(COUNTIFS('Enrollment Form'!$H$11:$H$1000,'Enrollment Form'!$H758,'Enrollment Form'!$B$11:$B$1000,'Enrollment Form'!$B758)>1,'Enrollment Form'!$H758<>\"\"),\"N\",\"Y\"))","v":""},{"$f":"IF($B751=\"N\",\"\",IF(LEN('Enrollment Form'!$Y758)=0,\"\",IF(LEN('Enrollment Form'!$Y758)<>5,\"N\",\"Y\")))","v":""},{"$f":"IF($B751=\"N\",\"\",IF(LEN('Enrollment Form'!$AD758=0),\"\",IF(LEN('Enrollment Form'!$AD758)<>5,\"N\",\"Y\")))","v":""},{"$f":"IF($B751=\"N\",\"\",IF(LEN('Enrollment Form'!$BS758=0),\"\",IF(LEN('Enrollment Form'!$BS758)<>5,\"N\",\"Y\")))","v":""},{"$f":"IF($B751=\"N\",\"\",IF(LEN('Enrollment Form'!$AE758)=0,\"\",IF(LEN('Enrollment Form'!$AE758)<>10,\"N\",\"Y\")))","v":""},{"$f":"IF($B751=\"N\",\"\",IF(LEN('Enrollment Form'!$AF758)=0,\"\",IF(LEN('Enrollment Form'!$AF758)<>10,\"N\",\"Y\")))","v":""},{"$f":"IF('Enrollment Form'!$O758<>\"Graded\",\"-\",IF(AND('Enrollment Form'!$O758=\"Graded\",'Enrollment Form'!$AR758<>\"\"),\"Y\",\"N\"))","v":"-"},{"$f":"IF($B751=\"N\",\"\",IF(OR('Enrollment Form'!$B758<>\"Subscriber\",'Enrollment Form'!$C758=\"ROC\"),\"-\",IF(AND('Enrollment Form'!$B758=\"Subscriber\",'Enrollment Form'!$C758=\"Enroll\",'Enrollment Form'!$AJ758<>\"\"),\"Y\",\"N\")))","v":""},{"$f":"IF($B751=\"N\",\"\",IF(OR('Enrollment Form'!$B758<>\"Subscriber\",'Enrollment Form'!$C758=\"ROC\"),\"-\",IF(AND('Enrollment Form'!$B758=\"Subscriber\",'Enrollment Form'!$C758=\"Enroll\",'Enrollment Form'!$AK758<>\"\"),\"Y\",\"N\")))","v":""},{"$f":"IF($B751=\"N\",\"\",IF(OR('Enrollment Form'!$B758<>\"Subscriber\",'Enrollment Form'!$C758=\"ROC\"),\"-\",IF(AND('Enrollment Form'!$B758=\"Subscriber\",'Enrollment Form'!$C758=\"Enroll\",'Enrollment Form'!$AL758<>\"\"),\"Y\",\"N\")))","v":""},{"$f":"IF($B751=\"N\",\"\",IF(OR('Enrollment Form'!$B758<>\"Subscriber\",'Enrollment Form'!$C758=\"ROC\"),\"-\",IF(AND('Enrollment Form'!$B758=\"Subscriber\",'Enrollment Form'!$C758=\"Enroll\",'Enrollment Form'!$AP758<>\"\"),\"Y\",\"N\")))","v":""},{"$f":"IF($B751=\"N\",\"\",IF(OR('Enrollment Form'!$B758<>\"Subscriber\",'Enrollment Form'!$C758=\"ROC\"),\"-\",IF(AND('Enrollment Form'!$B758=\"Subscriber\",'Enrollment Form'!$C758=\"Enroll\",'Enrollment Form'!$AQ758<>\"\"),\"Y\",\"N\")))","v":""},{"$f":"IF($B751=\"N\",\"\",IF(OR('Enrollment Form'!$B758<>\"Subscriber\",'Enrollment Form'!$C758=\"ROC\"),\"-\",IF(AND('Enrollment Form'!$B758=\"Subscriber\",'Enrollment Form'!$C758=\"Enroll\",'Enrollment Form'!$AS758<>\"\"),\"Y\",\"N\")))","v":""},{"$f":"IF($B751=\"N\",\"\",IF($Q751=\"-\",\"-\",IF(AND($Q751=\"Y\",'Enrollment Form'!$AS758=\"No\"),\"-\",IF(AND($Q751=\"Y\",'Enrollment Form'!$AS758=\"Yes\",'Enrollment Form'!$AT758<>\"\"),\"Y\",\"N\"))))","v":""},{"$f":"IF($B751=\"N\",\"\",IF(OR('Enrollment Form'!$B758<>\"Subscriber\",'Enrollment Form'!$C758=\"ROC\"),\"-\",IF(AND('Enrollment Form'!$B758=\"Subscriber\",'Enrollment Form'!$C758=\"Enroll\",'Enrollment Form'!$CV758<>\"\"),\"Y\",\"N\")))","v":""},{"$f":"IF($B751=\"N\",\"\",IF($S751=\"-\",\"-\",IF(AND($S751=\"Y\",'Enrollment Form'!$CV758=\"No\"),\"-\",IF(AND($S751=\"Y\",'Enrollment Form'!$CV758=\"Yes\",'Enrollment Form'!$CW758<>\"\"),\"Y\",\"N\"))))","v":""},{"$f":"IF(OR('Enrollment Form'!$AY758=\"Yes\",'Enrollment Form'!$AY758=\"\"),\"-\",IF(OR(AND('Enrollment Form'!$AY758=\"No\",ISERROR(FIND(\"HMO\",VLOOKUP('Enrollment Form'!G758,'Enrollment Form'!H$11:J$1000,3,FALSE),1))=FALSE,COUNTA('Enrollment Form'!$AZ758:$BC758)=4),AND('Enrollment Form'!$AY758=\"No\",ISERROR(FIND(\"HMO\",VLOOKUP('Enrollment Form'!G758,'Enrollment Form'!H$11:J$1000,3,FALSE),1))=FALSE,COUNTA('Enrollment Form'!$BT758:$BW758)=4)),\"Y\",\"N\"))","v":"-"},{"$f":"IF($B751=\"N\",\"\",IF('Enrollment Form'!$B758=\"Subscriber\",\"-\",IF(COUNTA('Enrollment Form'!$BL758,'Enrollment Form'!$BN758)=2,\"Y\",\"N\")))","v":""},{"$f":"IF($B751=\"N\",\"\",IF(OR('Enrollment Form'!$AX758=\"\",'Enrollment Form'!$AX758=\"No\"),\"-\",IF(AND('Enrollment Form'!$AX758=\"Yes\",COUNTA('Enrollment Form'!$CR758)=1),\"Y\",\"N\")))","v":""},{"$f":"IF(OR('Enrollment Form'!$CR758=\"\",'Enrollment Form'!$CR758=\"No\"),\"-\",IF(COUNTA('Enrollment Form'!$CT758:$CU758)=2,\"Y\",\"N\"))","v":"-"},{"$f":"IF($B751=\"N\",\"\",IF(COUNTIF('Enrollment Form'!$DG758:$DP758,\"Other\")=COUNTA('Enrollment Form'!$DK758,'Enrollment Form'!$DH758,'Enrollment Form'!$DN758,'Enrollment Form'!$DQ758),\"Y\",\"N\"))","v":""},{"$f":"IF($B751=\"N\",\"\",IF(OR('Enrollment Form'!B758<>\"Subscriber\",'Enrollment Form'!C758=\"ROC\",COUNTIF('Enrollment Form'!AV758:AW758,\"Yes\")>=1),\"-\",IF(AND('Enrollment Form'!C758=\"Enroll\",COUNTIF('Enrollment Form'!AV758:AW758,\"No\")=2,'Enrollment Form'!AX758=\"\"),\"N\",\"Y\")))","v":""},{"$f":"IF(OR(B751=\"N\",'Enrollment Form'!B758<>\"Subscriber\",'Enrollment Form'!C758=\"ROC\",'Enrollment Form'!O758<>\"Multiple of Salary\"),\"-\",IF(COUNTA('Enrollment Form'!T758:U758)<2,\"N\",\"Y\"))","v":"-"},{"$f":"IF(B751=\"N\",\"\",IF(OR('Enrollment Form'!C758=\"ROC\",'Enrollment Form'!B758<>\"Subscriber\",'Enrollment Form'!O758=\"Waive\",'Enrollment Form'!O758=\"\"),\"-\",IF('Enrollment Form'!P758=\"\",\"N\",\"Y\")))","v":""},{"$f":"IF($B751=\"N\",\"\",IF(AND('Enrollment Form'!$C758=\"ROC\",'Enrollment Form'!$DR758<>\"\"),\"Y\",IF(AND('Enrollment Form'!$C758=\"ROC\",'Enrollment Form'!$DR758=\"\"),\"N\",IF(AND('Enrollment Form'!$C758=\"Enroll\",'Enrollment Form'!$B758=\"Subscriber\",'Enrollment Form'!$CX758=\"No\",'Enrollment Form'!$DR758=\"\"),\"N\",IF(AND('Enrollment Form'!$C758=\"Enroll\",'Enrollment Form'!$B758=\"Subscriber\",'Enrollment Form'!$CX758=\"Yes\"),\"-\",\"Y\")))))","v":""},{"$f":"IF($B751=\"N\",\"\",IF(AND('Enrollment Form'!$C758=\"ROC\",'Enrollment Form'!$DS758<>\"\"),\"Y\",IF(AND('Enrollment Form'!$C758=\"ROC\",'Enrollment Form'!$DS758=\"\"),\"N\",IF(AND('Enrollment Form'!$C758=\"Enroll\",'Enrollment Form'!$B758=\"Subscriber\",'Enrollment Form'!$CX758=\"No\",'Enrollment Form'!$DS758=\"\"),\"N\",IF(AND('Enrollment Form'!$C758=\"Enroll\",'Enrollment Form'!$B758=\"Subscriber\",'Enrollment Form'!$CX758=\"Yes\"),\"-\",\"Y\")))))","v":""},{"$f":"IF('Enrollment Form'!AH758=\"\",\"\",IF(ISERROR(SEARCH(\".\",'Enrollment Form'!AH758,SEARCH(\"@\",'Enrollment Form'!AH758))),\"N\",\"Y\"))","v":""},{"$f":"IF(OR($B751=\"N\",'Enrollment Form'!$G758=\"\"),\"\",IF('Enrollment Form'!$B758<>\"Subscriber\",\"-\",IF(COUNTIF('Enrollment Form'!$AV758:$AW758,\"Yes\")=2,\"N\",\"Y\")))","v":""},{"$f":"IF(OR('Enrollment Form'!$CJ758=\"\",'Enrollment Form'!$CJ758=\"No\"),\"-\",IF(AND('Enrollment Form'!$CJ758=\"Yes\",'Enrollment Form'!$CK758=\"\"),\"N\",\"Y\"))","v":"-"},{"$f":"IF(OR('Enrollment Form'!$CL758=\"\",'Enrollment Form'!$CL758=\"No\"),\"-\",IF(AND('Enrollment Form'!$CL758=\"Yes\",'Enrollment Form'!$CM758=\"\"),\"N\",\"Y\"))","v":"-"},{"$f":"IF(OR('Enrollment Form'!$CN758=\"\",'Enrollment Form'!$CN758=\"No\"),\"-\",IF(AND('Enrollment Form'!$CN758=\"Yes\",'Enrollment Form'!$CO758=\"\"),\"N\",\"Y\"))","v":"-"},{"$f":"IF(OR('Enrollment Form'!$CN758=\"\",'Enrollment Form'!$CN758=\"No\"),\"-\",IF(AND('Enrollment Form'!$CN758=\"Yes\",'Enrollment Form'!$CP758=\"\"),\"N\",\"Y\"))","v":"-"},{"$f":"IF('Enrollment Form'!B758<>\"Subscriber\",\"-\",IF(AND('Enrollment Form'!B758=\"Subscriber\",'Enrollment Form'!C758=\"Enroll\",'Enrollment Form'!AA758=\"\"),\"N\",\"Y\"))","v":"-"},{"$f":"IF(OR('Enrollment Form'!B758=\"Subscriber\",'Enrollment Form'!B758=\"\"),\"-\",IF('Enrollment Form'!BP758=\"\",\"N\",\"Y\"))","v":"-"},{"$f":"IF('Enrollment Form'!B758<>\"Subscriber\",\"-\",IF(AND('Enrollment Form'!B758=\"Subscriber\",'Enrollment Form'!G758=\"\"),\"N\",\"Y\"))","v":"-"},{"$f":"IF('Enrollment Form'!A758=\"\",\"\",IF('Enrollment Form'!B758=\"Subscriber\",\"-\",IF(AND('Enrollment Form'!B758<>\"Subscriber\",'Enrollment Form'!G758='Enrollment Form'!H758),\"N\",\"Y\")))","v":""},0]
[759,{"$f":"IF('Enrollment Form'!$A759<>\"\",\"Y\",\"N\")","v":"N"},{"$f":"IF(AND('Enrollment Form'!$B759=\"\",'Enrollment Form'!$C759<>\"\"),\"N\",IF($B752=\"N\",\"\",\"Y\"))","v":""},{"$f":"IF(OR($B752=\"N\",'Enrollment Form'!G759=\"\"),\"\",IF('Enrollment Form'!$B759<>\"Subscriber\",\"\",IF('Enrollment Form'!$G759='Enrollment Form'!$H759,\"Y\",\"N\")))","v":""},{"$f":"IF($B752=\"N\",\"\",IF(AND(COUNTIFS('Enrollment Form'!$H$11:$H$1000,'Enrollment Form'!$H759,'Enrollment Form'!$B$11:$B$1000,'Enrollment Form'!$B759)>1,'Enrollment Form'!$H759<>\"\"),\"N\",\"Y\"))","v":""},{"$f":"IF($B752=\"N\",\"\",IF(LEN('Enrollment Form'!$Y759)=0,\"\",IF(LEN('Enrollment Form'!$Y759)<>5,\"N\",\"Y\")))","v":""},{"$f":"IF($B752=\"N\",\"\",IF(LEN('Enrollment Form'!$AD759=0),\"\",IF(LEN('Enrollment Form'!$AD759)<>5,\"N\",\"Y\")))","v":""},{"$f":"IF($B752=\"N\",\"\",IF(LEN('Enrollment Form'!$BS759=0),\"\",IF(LEN('Enrollment Form'!$BS759)<>5,\"N\",\"Y\")))","v":""},{"$f":"IF($B752=\"N\",\"\",IF(LEN('Enrollment Form'!$AE759)=0,\"\",IF(LEN('Enrollment Form'!$AE759)<>10,\"N\",\"Y\")))","v":""},{"$f":"IF($B752=\"N\",\"\",IF(LEN('Enrollment Form'!$AF759)=0,\"\",IF(LEN('Enrollment Form'!$AF759)<>10,\"N\",\"Y\")))","v":""},{"$f":"IF('Enrollment Form'!$O759<>\"Graded\",\"-\",IF(AND('Enrollment Form'!$O759=\"Graded\",'Enrollment Form'!$AR759<>\"\"),\"Y\",\"N\"))","v":"-"},{"$f":"IF($B752=\"N\",\"\",IF(OR('Enrollment Form'!$B759<>\"Subscriber\",'Enrollment Form'!$C759=\"ROC\"),\"-\",IF(AND('Enrollment Form'!$B759=\"Subscriber\",'Enrollment Form'!$C759=\"Enroll\",'Enrollment Form'!$AJ759<>\"\"),\"Y\",\"N\")))","v":""},{"$f":"IF($B752=\"N\",\"\",IF(OR('Enrollment Form'!$B759<>\"Subscriber\",'Enrollment Form'!$C759=\"ROC\"),\"-\",IF(AND('Enrollment Form'!$B759=\"Subscriber\",'Enrollment Form'!$C759=\"Enroll\",'Enrollment Form'!$AK759<>\"\"),\"Y\",\"N\")))","v":""},{"$f":"IF($B752=\"N\",\"\",IF(OR('Enrollment Form'!$B759<>\"Subscriber\",'Enrollment Form'!$C759=\"ROC\"),\"-\",IF(AND('Enrollment Form'!$B759=\"Subscriber\",'Enrollment Form'!$C759=\"Enroll\",'Enrollment Form'!$AL759<>\"\"),\"Y\",\"N\")))","v":""},{"$f":"IF($B752=\"N\",\"\",IF(OR('Enrollment Form'!$B759<>\"Subscriber\",'Enrollment Form'!$C759=\"ROC\"),\"-\",IF(AND('Enrollment Form'!$B759=\"Subscriber\",'Enrollment Form'!$C759=\"Enroll\",'Enrollment Form'!$AP759<>\"\"),\"Y\",\"N\")))","v":""},{"$f":"IF($B752=\"N\",\"\",IF(OR('Enrollment Form'!$B759<>\"Subscriber\",'Enrollment Form'!$C759=\"ROC\"),\"-\",IF(AND('Enrollment Form'!$B759=\"Subscriber\",'Enrollment Form'!$C759=\"Enroll\",'Enrollment Form'!$AQ759<>\"\"),\"Y\",\"N\")))","v":""},{"$f":"IF($B752=\"N\",\"\",IF(OR('Enrollment Form'!$B759<>\"Subscriber\",'Enrollment Form'!$C759=\"ROC\"),\"-\",IF(AND('Enrollment Form'!$B759=\"Subscriber\",'Enrollment Form'!$C759=\"Enroll\",'Enrollment Form'!$AS759<>\"\"),\"Y\",\"N\")))","v":""},{"$f":"IF($B752=\"N\",\"\",IF($Q752=\"-\",\"-\",IF(AND($Q752=\"Y\",'Enrollment Form'!$AS759=\"No\"),\"-\",IF(AND($Q752=\"Y\",'Enrollment Form'!$AS759=\"Yes\",'Enrollment Form'!$AT759<>\"\"),\"Y\",\"N\"))))","v":""},{"$f":"IF($B752=\"N\",\"\",IF(OR('Enrollment Form'!$B759<>\"Subscriber\",'Enrollment Form'!$C759=\"ROC\"),\"-\",IF(AND('Enrollment Form'!$B759=\"Subscriber\",'Enrollment Form'!$C759=\"Enroll\",'Enrollment Form'!$CV759<>\"\"),\"Y\",\"N\")))","v":""},{"$f":"IF($B752=\"N\",\"\",IF($S752=\"-\",\"-\",IF(AND($S752=\"Y\",'Enrollment Form'!$CV759=\"No\"),\"-\",IF(AND($S752=\"Y\",'Enrollment Form'!$CV759=\"Yes\",'Enrollment Form'!$CW759<>\"\"),\"Y\",\"N\"))))","v":""},{"$f":"IF(OR('Enrollment Form'!$AY759=\"Yes\",'Enrollment Form'!$AY759=\"\"),\"-\",IF(OR(AND('Enrollment Form'!$AY759=\"No\",ISERROR(FIND(\"HMO\",VLOOKUP('Enrollment Form'!G759,'Enrollment Form'!H$11:J$1000,3,FALSE),1))=FALSE,COUNTA('Enrollment Form'!$AZ759:$BC759)=4),AND('Enrollment Form'!$AY759=\"No\",ISERROR(FIND(\"HMO\",VLOOKUP('Enrollment Form'!G759,'Enrollment Form'!H$11:J$1000,3,FALSE),1))=FALSE,COUNTA('Enrollment Form'!$BT759:$BW759)=4)),\"Y\",\"N\"))","v":"-"},{"$f":"IF($B752=\"N\",\"\",IF('Enrollment Form'!$B759=\"Subscriber\",\"-\",IF(COUNTA('Enrollment Form'!$BL759,'Enrollment Form'!$BN759)=2,\"Y\",\"N\")))","v":""},{"$f":"IF($B752=\"N\",\"\",IF(OR('Enrollment Form'!$AX759=\"\",'Enrollment Form'!$AX759=\"No\"),\"-\",IF(AND('Enrollment Form'!$AX759=\"Yes\",COUNTA('Enrollment Form'!$CR759)=1),\"Y\",\"N\")))","v":""},{"$f":"IF(OR('Enrollment Form'!$CR759=\"\",'Enrollment Form'!$CR759=\"No\"),\"-\",IF(COUNTA('Enrollment Form'!$CT759:$CU759)=2,\"Y\",\"N\"))","v":"-"},{"$f":"IF($B752=\"N\",\"\",IF(COUNTIF('Enrollment Form'!$DG759:$DP759,\"Other\")=COUNTA('Enrollment Form'!$DK759,'Enrollment Form'!$DH759,'Enrollment Form'!$DN759,'Enrollment Form'!$DQ759),\"Y\",\"N\"))","v":""},{"$f":"IF($B752=\"N\",\"\",IF(OR('Enrollment Form'!B759<>\"Subscriber\",'Enrollment Form'!C759=\"ROC\",COUNTIF('Enrollment Form'!AV759:AW759,\"Yes\")>=1),\"-\",IF(AND('Enrollment Form'!C759=\"Enroll\",COUNTIF('Enrollment Form'!AV759:AW759,\"No\")=2,'Enrollment Form'!AX759=\"\"),\"N\",\"Y\")))","v":""},{"$f":"IF(OR(B752=\"N\",'Enrollment Form'!B759<>\"Subscriber\",'Enrollment Form'!C759=\"ROC\",'Enrollment Form'!O759<>\"Multiple of Salary\"),\"-\",IF(COUNTA('Enrollment Form'!T759:U759)<2,\"N\",\"Y\"))","v":"-"},{"$f":"IF(B752=\"N\",\"\",IF(OR('Enrollment Form'!C759=\"ROC\",'Enrollment Form'!B759<>\"Subscriber\",'Enrollment Form'!O759=\"Waive\",'Enrollment Form'!O759=\"\"),\"-\",IF('Enrollment Form'!P759=\"\",\"N\",\"Y\")))","v":""},{"$f":"IF($B752=\"N\",\"\",IF(AND('Enrollment Form'!$C759=\"ROC\",'Enrollment Form'!$DR759<>\"\"),\"Y\",IF(AND('Enrollment Form'!$C759=\"ROC\",'Enrollment Form'!$DR759=\"\"),\"N\",IF(AND('Enrollment Form'!$C759=\"Enroll\",'Enrollment Form'!$B759=\"Subscriber\",'Enrollment Form'!$CX759=\"No\",'Enrollment Form'!$DR759=\"\"),\"N\",IF(AND('Enrollment Form'!$C759=\"Enroll\",'Enrollment Form'!$B759=\"Subscriber\",'Enrollment Form'!$CX759=\"Yes\"),\"-\",\"Y\")))))","v":""},{"$f":"IF($B752=\"N\",\"\",IF(AND('Enrollment Form'!$C759=\"ROC\",'Enrollment Form'!$DS759<>\"\"),\"Y\",IF(AND('Enrollment Form'!$C759=\"ROC\",'Enrollment Form'!$DS759=\"\"),\"N\",IF(AND('Enrollment Form'!$C759=\"Enroll\",'Enrollment Form'!$B759=\"Subscriber\",'Enrollment Form'!$CX759=\"No\",'Enrollment Form'!$DS759=\"\"),\"N\",IF(AND('Enrollment Form'!$C759=\"Enroll\",'Enrollment Form'!$B759=\"Subscriber\",'Enrollment Form'!$CX759=\"Yes\"),\"-\",\"Y\")))))","v":""},{"$f":"IF('Enrollment Form'!AH759=\"\",\"\",IF(ISERROR(SEARCH(\".\",'Enrollment Form'!AH759,SEARCH(\"@\",'Enrollment Form'!AH759))),\"N\",\"Y\"))","v":""},{"$f":"IF(OR($B752=\"N\",'Enrollment Form'!$G759=\"\"),\"\",IF('Enrollment Form'!$B759<>\"Subscriber\",\"-\",IF(COUNTIF('Enrollment Form'!$AV759:$AW759,\"Yes\")=2,\"N\",\"Y\")))","v":""},{"$f":"IF(OR('Enrollment Form'!$CJ759=\"\",'Enrollment Form'!$CJ759=\"No\"),\"-\",IF(AND('Enrollment Form'!$CJ759=\"Yes\",'Enrollment Form'!$CK759=\"\"),\"N\",\"Y\"))","v":"-"},{"$f":"IF(OR('Enrollment Form'!$CL759=\"\",'Enrollment Form'!$CL759=\"No\"),\"-\",IF(AND('Enrollment Form'!$CL759=\"Yes\",'Enrollment Form'!$CM759=\"\"),\"N\",\"Y\"))","v":"-"},{"$f":"IF(OR('Enrollment Form'!$CN759=\"\",'Enrollment Form'!$CN759=\"No\"),\"-\",IF(AND('Enrollment Form'!$CN759=\"Yes\",'Enrollment Form'!$CO759=\"\"),\"N\",\"Y\"))","v":"-"},{"$f":"IF(OR('Enrollment Form'!$CN759=\"\",'Enrollment Form'!$CN759=\"No\"),\"-\",IF(AND('Enrollment Form'!$CN759=\"Yes\",'Enrollment Form'!$CP759=\"\"),\"N\",\"Y\"))","v":"-"},{"$f":"IF('Enrollment Form'!B759<>\"Subscriber\",\"-\",IF(AND('Enrollment Form'!B759=\"Subscriber\",'Enrollment Form'!C759=\"Enroll\",'Enrollment Form'!AA759=\"\"),\"N\",\"Y\"))","v":"-"},{"$f":"IF(OR('Enrollment Form'!B759=\"Subscriber\",'Enrollment Form'!B759=\"\"),\"-\",IF('Enrollment Form'!BP759=\"\",\"N\",\"Y\"))","v":"-"},{"$f":"IF('Enrollment Form'!B759<>\"Subscriber\",\"-\",IF(AND('Enrollment Form'!B759=\"Subscriber\",'Enrollment Form'!G759=\"\"),\"N\",\"Y\"))","v":"-"},{"$f":"IF('Enrollment Form'!A759=\"\",\"\",IF('Enrollment Form'!B759=\"Subscriber\",\"-\",IF(AND('Enrollment Form'!B759<>\"Subscriber\",'Enrollment Form'!G759='Enrollment Form'!H759),\"N\",\"Y\")))","v":""},0]
[760,{"$f":"IF('Enrollment Form'!$A760<>\"\",\"Y\",\"N\")","v":"N"},{"$f":"IF(AND('Enrollment Form'!$B760=\"\",'Enrollment Form'!$C760<>\"\"),\"N\",IF($B753=\"N\",\"\",\"Y\"))","v":""},{"$f":"IF(OR($B753=\"N\",'Enrollment Form'!G760=\"\"),\"\",IF('Enrollment Form'!$B760<>\"Subscriber\",\"\",IF('Enrollment Form'!$G760='Enrollment Form'!$H760,\"Y\",\"N\")))","v":""},{"$f":"IF($B753=\"N\",\"\",IF(AND(COUNTIFS('Enrollment Form'!$H$11:$H$1000,'Enrollment Form'!$H760,'Enrollment Form'!$B$11:$B$1000,'Enrollment Form'!$B760)>1,'Enrollment Form'!$H760<>\"\"),\"N\",\"Y\"))","v":""},{"$f":"IF($B753=\"N\",\"\",IF(LEN('Enrollment Form'!$Y760)=0,\"\",IF(LEN('Enrollment Form'!$Y760)<>5,\"N\",\"Y\")))","v":""},{"$f":"IF($B753=\"N\",\"\",IF(LEN('Enrollment Form'!$AD760=0),\"\",IF(LEN('Enrollment Form'!$AD760)<>5,\"N\",\"Y\")))","v":""},{"$f":"IF($B753=\"N\",\"\",IF(LEN('Enrollment Form'!$BS760=0),\"\",IF(LEN('Enrollment Form'!$BS760)<>5,\"N\",\"Y\")))","v":""},{"$f":"IF($B753=\"N\",\"\",IF(LEN('Enrollment Form'!$AE760)=0,\"\",IF(LEN('Enrollment Form'!$AE760)<>10,\"N\",\"Y\")))","v":""},{"$f":"IF($B753=\"N\",\"\",IF(LEN('Enrollment Form'!$AF760)=0,\"\",IF(LEN('Enrollment Form'!$AF760)<>10,\"N\",\"Y\")))","v":""},{"$f":"IF('Enrollment Form'!$O760<>\"Graded\",\"-\",IF(AND('Enrollment Form'!$O760=\"Graded\",'Enrollment Form'!$AR760<>\"\"),\"Y\",\"N\"))","v":"-"},{"$f":"IF($B753=\"N\",\"\",IF(OR('Enrollment Form'!$B760<>\"Subscriber\",'Enrollment Form'!$C760=\"ROC\"),\"-\",IF(AND('Enrollment Form'!$B760=\"Subscriber\",'Enrollment Form'!$C760=\"Enroll\",'Enrollment Form'!$AJ760<>\"\"),\"Y\",\"N\")))","v":""},{"$f":"IF($B753=\"N\",\"\",IF(OR('Enrollment Form'!$B760<>\"Subscriber\",'Enrollment Form'!$C760=\"ROC\"),\"-\",IF(AND('Enrollment Form'!$B760=\"Subscriber\",'Enrollment Form'!$C760=\"Enroll\",'Enrollment Form'!$AK760<>\"\"),\"Y\",\"N\")))","v":""},{"$f":"IF($B753=\"N\",\"\",IF(OR('Enrollment Form'!$B760<>\"Subscriber\",'Enrollment Form'!$C760=\"ROC\"),\"-\",IF(AND('Enrollment Form'!$B760=\"Subscriber\",'Enrollment Form'!$C760=\"Enroll\",'Enrollment Form'!$AL760<>\"\"),\"Y\",\"N\")))","v":""},{"$f":"IF($B753=\"N\",\"\",IF(OR('Enrollment Form'!$B760<>\"Subscriber\",'Enrollment Form'!$C760=\"ROC\"),\"-\",IF(AND('Enrollment Form'!$B760=\"Subscriber\",'Enrollment Form'!$C760=\"Enroll\",'Enrollment Form'!$AP760<>\"\"),\"Y\",\"N\")))","v":""},{"$f":"IF($B753=\"N\",\"\",IF(OR('Enrollment Form'!$B760<>\"Subscriber\",'Enrollment Form'!$C760=\"ROC\"),\"-\",IF(AND('Enrollment Form'!$B760=\"Subscriber\",'Enrollment Form'!$C760=\"Enroll\",'Enrollment Form'!$AQ760<>\"\"),\"Y\",\"N\")))","v":""},{"$f":"IF($B753=\"N\",\"\",IF(OR('Enrollment Form'!$B760<>\"Subscriber\",'Enrollment Form'!$C760=\"ROC\"),\"-\",IF(AND('Enrollment Form'!$B760=\"Subscriber\",'Enrollment Form'!$C760=\"Enroll\",'Enrollment Form'!$AS760<>\"\"),\"Y\",\"N\")))","v":""},{"$f":"IF($B753=\"N\",\"\",IF($Q753=\"-\",\"-\",IF(AND($Q753=\"Y\",'Enrollment Form'!$AS760=\"No\"),\"-\",IF(AND($Q753=\"Y\",'Enrollment Form'!$AS760=\"Yes\",'Enrollment Form'!$AT760<>\"\"),\"Y\",\"N\"))))","v":""},{"$f":"IF($B753=\"N\",\"\",IF(OR('Enrollment Form'!$B760<>\"Subscriber\",'Enrollment Form'!$C760=\"ROC\"),\"-\",IF(AND('Enrollment Form'!$B760=\"Subscriber\",'Enrollment Form'!$C760=\"Enroll\",'Enrollment Form'!$CV760<>\"\"),\"Y\",\"N\")))","v":""},{"$f":"IF($B753=\"N\",\"\",IF($S753=\"-\",\"-\",IF(AND($S753=\"Y\",'Enrollment Form'!$CV760=\"No\"),\"-\",IF(AND($S753=\"Y\",'Enrollment Form'!$CV760=\"Yes\",'Enrollment Form'!$CW760<>\"\"),\"Y\",\"N\"))))","v":""},{"$f":"IF(OR('Enrollment Form'!$AY760=\"Yes\",'Enrollment Form'!$AY760=\"\"),\"-\",IF(OR(AND('Enrollment Form'!$AY760=\"No\",ISERROR(FIND(\"HMO\",VLOOKUP('Enrollment Form'!G760,'Enrollment Form'!H$11:J$1000,3,FALSE),1))=FALSE,COUNTA('Enrollment Form'!$AZ760:$BC760)=4),AND('Enrollment Form'!$AY760=\"No\",ISERROR(FIND(\"HMO\",VLOOKUP('Enrollment Form'!G760,'Enrollment Form'!H$11:J$1000,3,FALSE),1))=FALSE,COUNTA('Enrollment Form'!$BT760:$BW760)=4)),\"Y\",\"N\"))","v":"-"},{"$f":"IF($B753=\"N\",\"\",IF('Enrollment Form'!$B760=\"Subscriber\",\"-\",IF(COUNTA('Enrollment Form'!$BL760,'Enrollment Form'!$BN760)=2,\"Y\",\"N\")))","v":""},{"$f":"IF($B753=\"N\",\"\",IF(OR('Enrollment Form'!$AX760=\"\",'Enrollment Form'!$AX760=\"No\"),\"-\",IF(AND('Enrollment Form'!$AX760=\"Yes\",COUNTA('Enrollment Form'!$CR760)=1),\"Y\",\"N\")))","v":""},{"$f":"IF(OR('Enrollment Form'!$CR760=\"\",'Enrollment Form'!$CR760=\"No\"),\"-\",IF(COUNTA('Enrollment Form'!$CT760:$CU760)=2,\"Y\",\"N\"))","v":"-"},{"$f":"IF($B753=\"N\",\"\",IF(COUNTIF('Enrollment Form'!$DG760:$DP760,\"Other\")=COUNTA('Enrollment Form'!$DK760,'Enrollment Form'!$DH760,'Enrollment Form'!$DN760,'Enrollment Form'!$DQ760),\"Y\",\"N\"))","v":""},{"$f":"IF($B753=\"N\",\"\",IF(OR('Enrollment Form'!B760<>\"Subscriber\",'Enrollment Form'!C760=\"ROC\",COUNTIF('Enrollment Form'!AV760:AW760,\"Yes\")>=1),\"-\",IF(AND('Enrollment Form'!C760=\"Enroll\",COUNTIF('Enrollment Form'!AV760:AW760,\"No\")=2,'Enrollment Form'!AX760=\"\"),\"N\",\"Y\")))","v":""},{"$f":"IF(OR(B753=\"N\",'Enrollment Form'!B760<>\"Subscriber\",'Enrollment Form'!C760=\"ROC\",'Enrollment Form'!O760<>\"Multiple of Salary\"),\"-\",IF(COUNTA('Enrollment Form'!T760:U760)<2,\"N\",\"Y\"))","v":"-"},{"$f":"IF(B753=\"N\",\"\",IF(OR('Enrollment Form'!C760=\"ROC\",'Enrollment Form'!B760<>\"Subscriber\",'Enrollment Form'!O760=\"Waive\",'Enrollment Form'!O760=\"\"),\"-\",IF('Enrollment Form'!P760=\"\",\"N\",\"Y\")))","v":""},{"$f":"IF($B753=\"N\",\"\",IF(AND('Enrollment Form'!$C760=\"ROC\",'Enrollment Form'!$DR760<>\"\"),\"Y\",IF(AND('Enrollment Form'!$C760=\"ROC\",'Enrollment Form'!$DR760=\"\"),\"N\",IF(AND('Enrollment Form'!$C760=\"Enroll\",'Enrollment Form'!$B760=\"Subscriber\",'Enrollment Form'!$CX760=\"No\",'Enrollment Form'!$DR760=\"\"),\"N\",IF(AND('Enrollment Form'!$C760=\"Enroll\",'Enrollment Form'!$B760=\"Subscriber\",'Enrollment Form'!$CX760=\"Yes\"),\"-\",\"Y\")))))","v":""},{"$f":"IF($B753=\"N\",\"\",IF(AND('Enrollment Form'!$C760=\"ROC\",'Enrollment Form'!$DS760<>\"\"),\"Y\",IF(AND('Enrollment Form'!$C760=\"ROC\",'Enrollment Form'!$DS760=\"\"),\"N\",IF(AND('Enrollment Form'!$C760=\"Enroll\",'Enrollment Form'!$B760=\"Subscriber\",'Enrollment Form'!$CX760=\"No\",'Enrollment Form'!$DS760=\"\"),\"N\",IF(AND('Enrollment Form'!$C760=\"Enroll\",'Enrollment Form'!$B760=\"Subscriber\",'Enrollment Form'!$CX760=\"Yes\"),\"-\",\"Y\")))))","v":""},{"$f":"IF('Enrollment Form'!AH760=\"\",\"\",IF(ISERROR(SEARCH(\".\",'Enrollment Form'!AH760,SEARCH(\"@\",'Enrollment Form'!AH760))),\"N\",\"Y\"))","v":""},{"$f":"IF(OR($B753=\"N\",'Enrollment Form'!$G760=\"\"),\"\",IF('Enrollment Form'!$B760<>\"Subscriber\",\"-\",IF(COUNTIF('Enrollment Form'!$AV760:$AW760,\"Yes\")=2,\"N\",\"Y\")))","v":""},{"$f":"IF(OR('Enrollment Form'!$CJ760=\"\",'Enrollment Form'!$CJ760=\"No\"),\"-\",IF(AND('Enrollment Form'!$CJ760=\"Yes\",'Enrollment Form'!$CK760=\"\"),\"N\",\"Y\"))","v":"-"},{"$f":"IF(OR('Enrollment Form'!$CL760=\"\",'Enrollment Form'!$CL760=\"No\"),\"-\",IF(AND('Enrollment Form'!$CL760=\"Yes\",'Enrollment Form'!$CM760=\"\"),\"N\",\"Y\"))","v":"-"},{"$f":"IF(OR('Enrollment Form'!$CN760=\"\",'Enrollment Form'!$CN760=\"No\"),\"-\",IF(AND('Enrollment Form'!$CN760=\"Yes\",'Enrollment Form'!$CO760=\"\"),\"N\",\"Y\"))","v":"-"},{"$f":"IF(OR('Enrollment Form'!$CN760=\"\",'Enrollment Form'!$CN760=\"No\"),\"-\",IF(AND('Enrollment Form'!$CN760=\"Yes\",'Enrollment Form'!$CP760=\"\"),\"N\",\"Y\"))","v":"-"},{"$f":"IF('Enrollment Form'!B760<>\"Subscriber\",\"-\",IF(AND('Enrollment Form'!B760=\"Subscriber\",'Enrollment Form'!C760=\"Enroll\",'Enrollment Form'!AA760=\"\"),\"N\",\"Y\"))","v":"-"},{"$f":"IF(OR('Enrollment Form'!B760=\"Subscriber\",'Enrollment Form'!B760=\"\"),\"-\",IF('Enrollment Form'!BP760=\"\",\"N\",\"Y\"))","v":"-"},{"$f":"IF('Enrollment Form'!B760<>\"Subscriber\",\"-\",IF(AND('Enrollment Form'!B760=\"Subscriber\",'Enrollment Form'!G760=\"\"),\"N\",\"Y\"))","v":"-"},{"$f":"IF('Enrollment Form'!A760=\"\",\"\",IF('Enrollment Form'!B760=\"Subscriber\",\"-\",IF(AND('Enrollment Form'!B760<>\"Subscriber\",'Enrollment Form'!G760='Enrollment Form'!H760),\"N\",\"Y\")))","v":""},0]
[761,{"$f":"IF('Enrollment Form'!$A761<>\"\",\"Y\",\"N\")","v":"N"},{"$f":"IF(AND('Enrollment Form'!$B761=\"\",'Enrollment Form'!$C761<>\"\"),\"N\",IF($B754=\"N\",\"\",\"Y\"))","v":""},{"$f":"IF(OR($B754=\"N\",'Enrollment Form'!G761=\"\"),\"\",IF('Enrollment Form'!$B761<>\"Subscriber\",\"\",IF('Enrollment Form'!$G761='Enrollment Form'!$H761,\"Y\",\"N\")))","v":""},{"$f":"IF($B754=\"N\",\"\",IF(AND(COUNTIFS('Enrollment Form'!$H$11:$H$1000,'Enrollment Form'!$H761,'Enrollment Form'!$B$11:$B$1000,'Enrollment Form'!$B761)>1,'Enrollment Form'!$H761<>\"\"),\"N\",\"Y\"))","v":""},{"$f":"IF($B754=\"N\",\"\",IF(LEN('Enrollment Form'!$Y761)=0,\"\",IF(LEN('Enrollment Form'!$Y761)<>5,\"N\",\"Y\")))","v":""},{"$f":"IF($B754=\"N\",\"\",IF(LEN('Enrollment Form'!$AD761=0),\"\",IF(LEN('Enrollment Form'!$AD761)<>5,\"N\",\"Y\")))","v":""},{"$f":"IF($B754=\"N\",\"\",IF(LEN('Enrollment Form'!$BS761=0),\"\",IF(LEN('Enrollment Form'!$BS761)<>5,\"N\",\"Y\")))","v":""},{"$f":"IF($B754=\"N\",\"\",IF(LEN('Enrollment Form'!$AE761)=0,\"\",IF(LEN('Enrollment Form'!$AE761)<>10,\"N\",\"Y\")))","v":""},{"$f":"IF($B754=\"N\",\"\",IF(LEN('Enrollment Form'!$AF761)=0,\"\",IF(LEN('Enrollment Form'!$AF761)<>10,\"N\",\"Y\")))","v":""},{"$f":"IF('Enrollment Form'!$O761<>\"Graded\",\"-\",IF(AND('Enrollment Form'!$O761=\"Graded\",'Enrollment Form'!$AR761<>\"\"),\"Y\",\"N\"))","v":"-"},{"$f":"IF($B754=\"N\",\"\",IF(OR('Enrollment Form'!$B761<>\"Subscriber\",'Enrollment Form'!$C761=\"ROC\"),\"-\",IF(AND('Enrollment Form'!$B761=\"Subscriber\",'Enrollment Form'!$C761=\"Enroll\",'Enrollment Form'!$AJ761<>\"\"),\"Y\",\"N\")))","v":""},{"$f":"IF($B754=\"N\",\"\",IF(OR('Enrollment Form'!$B761<>\"Subscriber\",'Enrollment Form'!$C761=\"ROC\"),\"-\",IF(AND('Enrollment Form'!$B761=\"Subscriber\",'Enrollment Form'!$C761=\"Enroll\",'Enrollment Form'!$AK761<>\"\"),\"Y\",\"N\")))","v":""},{"$f":"IF($B754=\"N\",\"\",IF(OR('Enrollment Form'!$B761<>\"Subscriber\",'Enrollment Form'!$C761=\"ROC\"),\"-\",IF(AND('Enrollment Form'!$B761=\"Subscriber\",'Enrollment Form'!$C761=\"Enroll\",'Enrollment Form'!$AL761<>\"\"),\"Y\",\"N\")))","v":""},{"$f":"IF($B754=\"N\",\"\",IF(OR('Enrollment Form'!$B761<>\"Subscriber\",'Enrollment Form'!$C761=\"ROC\"),\"-\",IF(AND('Enrollment Form'!$B761=\"Subscriber\",'Enrollment Form'!$C761=\"Enroll\",'Enrollment Form'!$AP761<>\"\"),\"Y\",\"N\")))","v":""},{"$f":"IF($B754=\"N\",\"\",IF(OR('Enrollment Form'!$B761<>\"Subscriber\",'Enrollment Form'!$C761=\"ROC\"),\"-\",IF(AND('Enrollment Form'!$B761=\"Subscriber\",'Enrollment Form'!$C761=\"Enroll\",'Enrollment Form'!$AQ761<>\"\"),\"Y\",\"N\")))","v":""},{"$f":"IF($B754=\"N\",\"\",IF(OR('Enrollment Form'!$B761<>\"Subscriber\",'Enrollment Form'!$C761=\"ROC\"),\"-\",IF(AND('Enrollment Form'!$B761=\"Subscriber\",'Enrollment Form'!$C761=\"Enroll\",'Enrollment Form'!$AS761<>\"\"),\"Y\",\"N\")))","v":""},{"$f":"IF($B754=\"N\",\"\",IF($Q754=\"-\",\"-\",IF(AND($Q754=\"Y\",'Enrollment Form'!$AS761=\"No\"),\"-\",IF(AND($Q754=\"Y\",'Enrollment Form'!$AS761=\"Yes\",'Enrollment Form'!$AT761<>\"\"),\"Y\",\"N\"))))","v":""},{"$f":"IF($B754=\"N\",\"\",IF(OR('Enrollment Form'!$B761<>\"Subscriber\",'Enrollment Form'!$C761=\"ROC\"),\"-\",IF(AND('Enrollment Form'!$B761=\"Subscriber\",'Enrollment Form'!$C761=\"Enroll\",'Enrollment Form'!$CV761<>\"\"),\"Y\",\"N\")))","v":""},{"$f":"IF($B754=\"N\",\"\",IF($S754=\"-\",\"-\",IF(AND($S754=\"Y\",'Enrollment Form'!$CV761=\"No\"),\"-\",IF(AND($S754=\"Y\",'Enrollment Form'!$CV761=\"Yes\",'Enrollment Form'!$CW761<>\"\"),\"Y\",\"N\"))))","v":""},{"$f":"IF(OR('Enrollment Form'!$AY761=\"Yes\",'Enrollment Form'!$AY761=\"\"),\"-\",IF(OR(AND('Enrollment Form'!$AY761=\"No\",ISERROR(FIND(\"HMO\",VLOOKUP('Enrollment Form'!G761,'Enrollment Form'!H$11:J$1000,3,FALSE),1))=FALSE,COUNTA('Enrollment Form'!$AZ761:$BC761)=4),AND('Enrollment Form'!$AY761=\"No\",ISERROR(FIND(\"HMO\",VLOOKUP('Enrollment Form'!G761,'Enrollment Form'!H$11:J$1000,3,FALSE),1))=FALSE,COUNTA('Enrollment Form'!$BT761:$BW761)=4)),\"Y\",\"N\"))","v":"-"},{"$f":"IF($B754=\"N\",\"\",IF('Enrollment Form'!$B761=\"Subscriber\",\"-\",IF(COUNTA('Enrollment Form'!$BL761,'Enrollment Form'!$BN761)=2,\"Y\",\"N\")))","v":""},{"$f":"IF($B754=\"N\",\"\",IF(OR('Enrollment Form'!$AX761=\"\",'Enrollment Form'!$AX761=\"No\"),\"-\",IF(AND('Enrollment Form'!$AX761=\"Yes\",COUNTA('Enrollment Form'!$CR761)=1),\"Y\",\"N\")))","v":""},{"$f":"IF(OR('Enrollment Form'!$CR761=\"\",'Enrollment Form'!$CR761=\"No\"),\"-\",IF(COUNTA('Enrollment Form'!$CT761:$CU761)=2,\"Y\",\"N\"))","v":"-"},{"$f":"IF($B754=\"N\",\"\",IF(COUNTIF('Enrollment Form'!$DG761:$DP761,\"Other\")=COUNTA('Enrollment Form'!$DK761,'Enrollment Form'!$DH761,'Enrollment Form'!$DN761,'Enrollment Form'!$DQ761),\"Y\",\"N\"))","v":""},{"$f":"IF($B754=\"N\",\"\",IF(OR('Enrollment Form'!B761<>\"Subscriber\",'Enrollment Form'!C761=\"ROC\",COUNTIF('Enrollment Form'!AV761:AW761,\"Yes\")>=1),\"-\",IF(AND('Enrollment Form'!C761=\"Enroll\",COUNTIF('Enrollment Form'!AV761:AW761,\"No\")=2,'Enrollment Form'!AX761=\"\"),\"N\",\"Y\")))","v":""},{"$f":"IF(OR(B754=\"N\",'Enrollment Form'!B761<>\"Subscriber\",'Enrollment Form'!C761=\"ROC\",'Enrollment Form'!O761<>\"Multiple of Salary\"),\"-\",IF(COUNTA('Enrollment Form'!T761:U761)<2,\"N\",\"Y\"))","v":"-"},{"$f":"IF(B754=\"N\",\"\",IF(OR('Enrollment Form'!C761=\"ROC\",'Enrollment Form'!B761<>\"Subscriber\",'Enrollment Form'!O761=\"Waive\",'Enrollment Form'!O761=\"\"),\"-\",IF('Enrollment Form'!P761=\"\",\"N\",\"Y\")))","v":""},{"$f":"IF($B754=\"N\",\"\",IF(AND('Enrollment Form'!$C761=\"ROC\",'Enrollment Form'!$DR761<>\"\"),\"Y\",IF(AND('Enrollment Form'!$C761=\"ROC\",'Enrollment Form'!$DR761=\"\"),\"N\",IF(AND('Enrollment Form'!$C761=\"Enroll\",'Enrollment Form'!$B761=\"Subscriber\",'Enrollment Form'!$CX761=\"No\",'Enrollment Form'!$DR761=\"\"),\"N\",IF(AND('Enrollment Form'!$C761=\"Enroll\",'Enrollment Form'!$B761=\"Subscriber\",'Enrollment Form'!$CX761=\"Yes\"),\"-\",\"Y\")))))","v":""},{"$f":"IF($B754=\"N\",\"\",IF(AND('Enrollment Form'!$C761=\"ROC\",'Enrollment Form'!$DS761<>\"\"),\"Y\",IF(AND('Enrollment Form'!$C761=\"ROC\",'Enrollment Form'!$DS761=\"\"),\"N\",IF(AND('Enrollment Form'!$C761=\"Enroll\",'Enrollment Form'!$B761=\"Subscriber\",'Enrollment Form'!$CX761=\"No\",'Enrollment Form'!$DS761=\"\"),\"N\",IF(AND('Enrollment Form'!$C761=\"Enroll\",'Enrollment Form'!$B761=\"Subscriber\",'Enrollment Form'!$CX761=\"Yes\"),\"-\",\"Y\")))))","v":""},{"$f":"IF('Enrollment Form'!AH761=\"\",\"\",IF(ISERROR(SEARCH(\".\",'Enrollment Form'!AH761,SEARCH(\"@\",'Enrollment Form'!AH761))),\"N\",\"Y\"))","v":""},{"$f":"IF(OR($B754=\"N\",'Enrollment Form'!$G761=\"\"),\"\",IF('Enrollment Form'!$B761<>\"Subscriber\",\"-\",IF(COUNTIF('Enrollment Form'!$AV761:$AW761,\"Yes\")=2,\"N\",\"Y\")))","v":""},{"$f":"IF(OR('Enrollment Form'!$CJ761=\"\",'Enrollment Form'!$CJ761=\"No\"),\"-\",IF(AND('Enrollment Form'!$CJ761=\"Yes\",'Enrollment Form'!$CK761=\"\"),\"N\",\"Y\"))","v":"-"},{"$f":"IF(OR('Enrollment Form'!$CL761=\"\",'Enrollment Form'!$CL761=\"No\"),\"-\",IF(AND('Enrollment Form'!$CL761=\"Yes\",'Enrollment Form'!$CM761=\"\"),\"N\",\"Y\"))","v":"-"},{"$f":"IF(OR('Enrollment Form'!$CN761=\"\",'Enrollment Form'!$CN761=\"No\"),\"-\",IF(AND('Enrollment Form'!$CN761=\"Yes\",'Enrollment Form'!$CO761=\"\"),\"N\",\"Y\"))","v":"-"},{"$f":"IF(OR('Enrollment Form'!$CN761=\"\",'Enrollment Form'!$CN761=\"No\"),\"-\",IF(AND('Enrollment Form'!$CN761=\"Yes\",'Enrollment Form'!$CP761=\"\"),\"N\",\"Y\"))","v":"-"},{"$f":"IF('Enrollment Form'!B761<>\"Subscriber\",\"-\",IF(AND('Enrollment Form'!B761=\"Subscriber\",'Enrollment Form'!C761=\"Enroll\",'Enrollment Form'!AA761=\"\"),\"N\",\"Y\"))","v":"-"},{"$f":"IF(OR('Enrollment Form'!B761=\"Subscriber\",'Enrollment Form'!B761=\"\"),\"-\",IF('Enrollment Form'!BP761=\"\",\"N\",\"Y\"))","v":"-"},{"$f":"IF('Enrollment Form'!B761<>\"Subscriber\",\"-\",IF(AND('Enrollment Form'!B761=\"Subscriber\",'Enrollment Form'!G761=\"\"),\"N\",\"Y\"))","v":"-"},{"$f":"IF('Enrollment Form'!A761=\"\",\"\",IF('Enrollment Form'!B761=\"Subscriber\",\"-\",IF(AND('Enrollment Form'!B761<>\"Subscriber\",'Enrollment Form'!G761='Enrollment Form'!H761),\"N\",\"Y\")))","v":""},0]
[762,{"$f":"IF('Enrollment Form'!$A762<>\"\",\"Y\",\"N\")","v":"N"},{"$f":"IF(AND('Enrollment Form'!$B762=\"\",'Enrollment Form'!$C762<>\"\"),\"N\",IF($B755=\"N\",\"\",\"Y\"))","v":""},{"$f":"IF(OR($B755=\"N\",'Enrollment Form'!G762=\"\"),\"\",IF('Enrollment Form'!$B762<>\"Subscriber\",\"\",IF('Enrollment Form'!$G762='Enrollment Form'!$H762,\"Y\",\"N\")))","v":""},{"$f":"IF($B755=\"N\",\"\",IF(AND(COUNTIFS('Enrollment Form'!$H$11:$H$1000,'Enrollment Form'!$H762,'Enrollment Form'!$B$11:$B$1000,'Enrollment Form'!$B762)>1,'Enrollment Form'!$H762<>\"\"),\"N\",\"Y\"))","v":""},{"$f":"IF($B755=\"N\",\"\",IF(LEN('Enrollment Form'!$Y762)=0,\"\",IF(LEN('Enrollment Form'!$Y762)<>5,\"N\",\"Y\")))","v":""},{"$f":"IF($B755=\"N\",\"\",IF(LEN('Enrollment Form'!$AD762=0),\"\",IF(LEN('Enrollment Form'!$AD762)<>5,\"N\",\"Y\")))","v":""},{"$f":"IF($B755=\"N\",\"\",IF(LEN('Enrollment Form'!$BS762=0),\"\",IF(LEN('Enrollment Form'!$BS762)<>5,\"N\",\"Y\")))","v":""},{"$f":"IF($B755=\"N\",\"\",IF(LEN('Enrollment Form'!$AE762)=0,\"\",IF(LEN('Enrollment Form'!$AE762)<>10,\"N\",\"Y\")))","v":""},{"$f":"IF($B755=\"N\",\"\",IF(LEN('Enrollment Form'!$AF762)=0,\"\",IF(LEN('Enrollment Form'!$AF762)<>10,\"N\",\"Y\")))","v":""},{"$f":"IF('Enrollment Form'!$O762<>\"Graded\",\"-\",IF(AND('Enrollment Form'!$O762=\"Graded\",'Enrollment Form'!$AR762<>\"\"),\"Y\",\"N\"))","v":"-"},{"$f":"IF($B755=\"N\",\"\",IF(OR('Enrollment Form'!$B762<>\"Subscriber\",'Enrollment Form'!$C762=\"ROC\"),\"-\",IF(AND('Enrollment Form'!$B762=\"Subscriber\",'Enrollment Form'!$C762=\"Enroll\",'Enrollment Form'!$AJ762<>\"\"),\"Y\",\"N\")))","v":""},{"$f":"IF($B755=\"N\",\"\",IF(OR('Enrollment Form'!$B762<>\"Subscriber\",'Enrollment Form'!$C762=\"ROC\"),\"-\",IF(AND('Enrollment Form'!$B762=\"Subscriber\",'Enrollment Form'!$C762=\"Enroll\",'Enrollment Form'!$AK762<>\"\"),\"Y\",\"N\")))","v":""},{"$f":"IF($B755=\"N\",\"\",IF(OR('Enrollment Form'!$B762<>\"Subscriber\",'Enrollment Form'!$C762=\"ROC\"),\"-\",IF(AND('Enrollment Form'!$B762=\"Subscriber\",'Enrollment Form'!$C762=\"Enroll\",'Enrollment Form'!$AL762<>\"\"),\"Y\",\"N\")))","v":""},{"$f":"IF($B755=\"N\",\"\",IF(OR('Enrollment Form'!$B762<>\"Subscriber\",'Enrollment Form'!$C762=\"ROC\"),\"-\",IF(AND('Enrollment Form'!$B762=\"Subscriber\",'Enrollment Form'!$C762=\"Enroll\",'Enrollment Form'!$AP762<>\"\"),\"Y\",\"N\")))","v":""},{"$f":"IF($B755=\"N\",\"\",IF(OR('Enrollment Form'!$B762<>\"Subscriber\",'Enrollment Form'!$C762=\"ROC\"),\"-\",IF(AND('Enrollment Form'!$B762=\"Subscriber\",'Enrollment Form'!$C762=\"Enroll\",'Enrollment Form'!$AQ762<>\"\"),\"Y\",\"N\")))","v":""},{"$f":"IF($B755=\"N\",\"\",IF(OR('Enrollment Form'!$B762<>\"Subscriber\",'Enrollment Form'!$C762=\"ROC\"),\"-\",IF(AND('Enrollment Form'!$B762=\"Subscriber\",'Enrollment Form'!$C762=\"Enroll\",'Enrollment Form'!$AS762<>\"\"),\"Y\",\"N\")))","v":""},{"$f":"IF($B755=\"N\",\"\",IF($Q755=\"-\",\"-\",IF(AND($Q755=\"Y\",'Enrollment Form'!$AS762=\"No\"),\"-\",IF(AND($Q755=\"Y\",'Enrollment Form'!$AS762=\"Yes\",'Enrollment Form'!$AT762<>\"\"),\"Y\",\"N\"))))","v":""},{"$f":"IF($B755=\"N\",\"\",IF(OR('Enrollment Form'!$B762<>\"Subscriber\",'Enrollment Form'!$C762=\"ROC\"),\"-\",IF(AND('Enrollment Form'!$B762=\"Subscriber\",'Enrollment Form'!$C762=\"Enroll\",'Enrollment Form'!$CV762<>\"\"),\"Y\",\"N\")))","v":""},{"$f":"IF($B755=\"N\",\"\",IF($S755=\"-\",\"-\",IF(AND($S755=\"Y\",'Enrollment Form'!$CV762=\"No\"),\"-\",IF(AND($S755=\"Y\",'Enrollment Form'!$CV762=\"Yes\",'Enrollment Form'!$CW762<>\"\"),\"Y\",\"N\"))))","v":""},{"$f":"IF(OR('Enrollment Form'!$AY762=\"Yes\",'Enrollment Form'!$AY762=\"\"),\"-\",IF(OR(AND('Enrollment Form'!$AY762=\"No\",ISERROR(FIND(\"HMO\",VLOOKUP('Enrollment Form'!G762,'Enrollment Form'!H$11:J$1000,3,FALSE),1))=FALSE,COUNTA('Enrollment Form'!$AZ762:$BC762)=4),AND('Enrollment Form'!$AY762=\"No\",ISERROR(FIND(\"HMO\",VLOOKUP('Enrollment Form'!G762,'Enrollment Form'!H$11:J$1000,3,FALSE),1))=FALSE,COUNTA('Enrollment Form'!$BT762:$BW762)=4)),\"Y\",\"N\"))","v":"-"},{"$f":"IF($B755=\"N\",\"\",IF('Enrollment Form'!$B762=\"Subscriber\",\"-\",IF(COUNTA('Enrollment Form'!$BL762,'Enrollment Form'!$BN762)=2,\"Y\",\"N\")))","v":""},{"$f":"IF($B755=\"N\",\"\",IF(OR('Enrollment Form'!$AX762=\"\",'Enrollment Form'!$AX762=\"No\"),\"-\",IF(AND('Enrollment Form'!$AX762=\"Yes\",COUNTA('Enrollment Form'!$CR762)=1),\"Y\",\"N\")))","v":""},{"$f":"IF(OR('Enrollment Form'!$CR762=\"\",'Enrollment Form'!$CR762=\"No\"),\"-\",IF(COUNTA('Enrollment Form'!$CT762:$CU762)=2,\"Y\",\"N\"))","v":"-"},{"$f":"IF($B755=\"N\",\"\",IF(COUNTIF('Enrollment Form'!$DG762:$DP762,\"Other\")=COUNTA('Enrollment Form'!$DK762,'Enrollment Form'!$DH762,'Enrollment Form'!$DN762,'Enrollment Form'!$DQ762),\"Y\",\"N\"))","v":""},{"$f":"IF($B755=\"N\",\"\",IF(OR('Enrollment Form'!B762<>\"Subscriber\",'Enrollment Form'!C762=\"ROC\",COUNTIF('Enrollment Form'!AV762:AW762,\"Yes\")>=1),\"-\",IF(AND('Enrollment Form'!C762=\"Enroll\",COUNTIF('Enrollment Form'!AV762:AW762,\"No\")=2,'Enrollment Form'!AX762=\"\"),\"N\",\"Y\")))","v":""},{"$f":"IF(OR(B755=\"N\",'Enrollment Form'!B762<>\"Subscriber\",'Enrollment Form'!C762=\"ROC\",'Enrollment Form'!O762<>\"Multiple of Salary\"),\"-\",IF(COUNTA('Enrollment Form'!T762:U762)<2,\"N\",\"Y\"))","v":"-"},{"$f":"IF(B755=\"N\",\"\",IF(OR('Enrollment Form'!C762=\"ROC\",'Enrollment Form'!B762<>\"Subscriber\",'Enrollment Form'!O762=\"Waive\",'Enrollment Form'!O762=\"\"),\"-\",IF('Enrollment Form'!P762=\"\",\"N\",\"Y\")))","v":""},{"$f":"IF($B755=\"N\",\"\",IF(AND('Enrollment Form'!$C762=\"ROC\",'Enrollment Form'!$DR762<>\"\"),\"Y\",IF(AND('Enrollment Form'!$C762=\"ROC\",'Enrollment Form'!$DR762=\"\"),\"N\",IF(AND('Enrollment Form'!$C762=\"Enroll\",'Enrollment Form'!$B762=\"Subscriber\",'Enrollment Form'!$CX762=\"No\",'Enrollment Form'!$DR762=\"\"),\"N\",IF(AND('Enrollment Form'!$C762=\"Enroll\",'Enrollment Form'!$B762=\"Subscriber\",'Enrollment Form'!$CX762=\"Yes\"),\"-\",\"Y\")))))","v":""},{"$f":"IF($B755=\"N\",\"\",IF(AND('Enrollment Form'!$C762=\"ROC\",'Enrollment Form'!$DS762<>\"\"),\"Y\",IF(AND('Enrollment Form'!$C762=\"ROC\",'Enrollment Form'!$DS762=\"\"),\"N\",IF(AND('Enrollment Form'!$C762=\"Enroll\",'Enrollment Form'!$B762=\"Subscriber\",'Enrollment Form'!$CX762=\"No\",'Enrollment Form'!$DS762=\"\"),\"N\",IF(AND('Enrollment Form'!$C762=\"Enroll\",'Enrollment Form'!$B762=\"Subscriber\",'Enrollment Form'!$CX762=\"Yes\"),\"-\",\"Y\")))))","v":""},{"$f":"IF('Enrollment Form'!AH762=\"\",\"\",IF(ISERROR(SEARCH(\".\",'Enrollment Form'!AH762,SEARCH(\"@\",'Enrollment Form'!AH762))),\"N\",\"Y\"))","v":""},{"$f":"IF(OR($B755=\"N\",'Enrollment Form'!$G762=\"\"),\"\",IF('Enrollment Form'!$B762<>\"Subscriber\",\"-\",IF(COUNTIF('Enrollment Form'!$AV762:$AW762,\"Yes\")=2,\"N\",\"Y\")))","v":""},{"$f":"IF(OR('Enrollment Form'!$CJ762=\"\",'Enrollment Form'!$CJ762=\"No\"),\"-\",IF(AND('Enrollment Form'!$CJ762=\"Yes\",'Enrollment Form'!$CK762=\"\"),\"N\",\"Y\"))","v":"-"},{"$f":"IF(OR('Enrollment Form'!$CL762=\"\",'Enrollment Form'!$CL762=\"No\"),\"-\",IF(AND('Enrollment Form'!$CL762=\"Yes\",'Enrollment Form'!$CM762=\"\"),\"N\",\"Y\"))","v":"-"},{"$f":"IF(OR('Enrollment Form'!$CN762=\"\",'Enrollment Form'!$CN762=\"No\"),\"-\",IF(AND('Enrollment Form'!$CN762=\"Yes\",'Enrollment Form'!$CO762=\"\"),\"N\",\"Y\"))","v":"-"},{"$f":"IF(OR('Enrollment Form'!$CN762=\"\",'Enrollment Form'!$CN762=\"No\"),\"-\",IF(AND('Enrollment Form'!$CN762=\"Yes\",'Enrollment Form'!$CP762=\"\"),\"N\",\"Y\"))","v":"-"},{"$f":"IF('Enrollment Form'!B762<>\"Subscriber\",\"-\",IF(AND('Enrollment Form'!B762=\"Subscriber\",'Enrollment Form'!C762=\"Enroll\",'Enrollment Form'!AA762=\"\"),\"N\",\"Y\"))","v":"-"},{"$f":"IF(OR('Enrollment Form'!B762=\"Subscriber\",'Enrollment Form'!B762=\"\"),\"-\",IF('Enrollment Form'!BP762=\"\",\"N\",\"Y\"))","v":"-"},{"$f":"IF('Enrollment Form'!B762<>\"Subscriber\",\"-\",IF(AND('Enrollment Form'!B762=\"Subscriber\",'Enrollment Form'!G762=\"\"),\"N\",\"Y\"))","v":"-"},{"$f":"IF('Enrollment Form'!A762=\"\",\"\",IF('Enrollment Form'!B762=\"Subscriber\",\"-\",IF(AND('Enrollment Form'!B762<>\"Subscriber\",'Enrollment Form'!G762='Enrollment Form'!H762),\"N\",\"Y\")))","v":""},0]
[763,{"$f":"IF('Enrollment Form'!$A763<>\"\",\"Y\",\"N\")","v":"N"},{"$f":"IF(AND('Enrollment Form'!$B763=\"\",'Enrollment Form'!$C763<>\"\"),\"N\",IF($B756=\"N\",\"\",\"Y\"))","v":""},{"$f":"IF(OR($B756=\"N\",'Enrollment Form'!G763=\"\"),\"\",IF('Enrollment Form'!$B763<>\"Subscriber\",\"\",IF('Enrollment Form'!$G763='Enrollment Form'!$H763,\"Y\",\"N\")))","v":""},{"$f":"IF($B756=\"N\",\"\",IF(AND(COUNTIFS('Enrollment Form'!$H$11:$H$1000,'Enrollment Form'!$H763,'Enrollment Form'!$B$11:$B$1000,'Enrollment Form'!$B763)>1,'Enrollment Form'!$H763<>\"\"),\"N\",\"Y\"))","v":""},{"$f":"IF($B756=\"N\",\"\",IF(LEN('Enrollment Form'!$Y763)=0,\"\",IF(LEN('Enrollment Form'!$Y763)<>5,\"N\",\"Y\")))","v":""},{"$f":"IF($B756=\"N\",\"\",IF(LEN('Enrollment Form'!$AD763=0),\"\",IF(LEN('Enrollment Form'!$AD763)<>5,\"N\",\"Y\")))","v":""},{"$f":"IF($B756=\"N\",\"\",IF(LEN('Enrollment Form'!$BS763=0),\"\",IF(LEN('Enrollment Form'!$BS763)<>5,\"N\",\"Y\")))","v":""},{"$f":"IF($B756=\"N\",\"\",IF(LEN('Enrollment Form'!$AE763)=0,\"\",IF(LEN('Enrollment Form'!$AE763)<>10,\"N\",\"Y\")))","v":""},{"$f":"IF($B756=\"N\",\"\",IF(LEN('Enrollment Form'!$AF763)=0,\"\",IF(LEN('Enrollment Form'!$AF763)<>10,\"N\",\"Y\")))","v":""},{"$f":"IF('Enrollment Form'!$O763<>\"Graded\",\"-\",IF(AND('Enrollment Form'!$O763=\"Graded\",'Enrollment Form'!$AR763<>\"\"),\"Y\",\"N\"))","v":"-"},{"$f":"IF($B756=\"N\",\"\",IF(OR('Enrollment Form'!$B763<>\"Subscriber\",'Enrollment Form'!$C763=\"ROC\"),\"-\",IF(AND('Enrollment Form'!$B763=\"Subscriber\",'Enrollment Form'!$C763=\"Enroll\",'Enrollment Form'!$AJ763<>\"\"),\"Y\",\"N\")))","v":""},{"$f":"IF($B756=\"N\",\"\",IF(OR('Enrollment Form'!$B763<>\"Subscriber\",'Enrollment Form'!$C763=\"ROC\"),\"-\",IF(AND('Enrollment Form'!$B763=\"Subscriber\",'Enrollment Form'!$C763=\"Enroll\",'Enrollment Form'!$AK763<>\"\"),\"Y\",\"N\")))","v":""},{"$f":"IF($B756=\"N\",\"\",IF(OR('Enrollment Form'!$B763<>\"Subscriber\",'Enrollment Form'!$C763=\"ROC\"),\"-\",IF(AND('Enrollment Form'!$B763=\"Subscriber\",'Enrollment Form'!$C763=\"Enroll\",'Enrollment Form'!$AL763<>\"\"),\"Y\",\"N\")))","v":""},{"$f":"IF($B756=\"N\",\"\",IF(OR('Enrollment Form'!$B763<>\"Subscriber\",'Enrollment Form'!$C763=\"ROC\"),\"-\",IF(AND('Enrollment Form'!$B763=\"Subscriber\",'Enrollment Form'!$C763=\"Enroll\",'Enrollment Form'!$AP763<>\"\"),\"Y\",\"N\")))","v":""},{"$f":"IF($B756=\"N\",\"\",IF(OR('Enrollment Form'!$B763<>\"Subscriber\",'Enrollment Form'!$C763=\"ROC\"),\"-\",IF(AND('Enrollment Form'!$B763=\"Subscriber\",'Enrollment Form'!$C763=\"Enroll\",'Enrollment Form'!$AQ763<>\"\"),\"Y\",\"N\")))","v":""},{"$f":"IF($B756=\"N\",\"\",IF(OR('Enrollment Form'!$B763<>\"Subscriber\",'Enrollment Form'!$C763=\"ROC\"),\"-\",IF(AND('Enrollment Form'!$B763=\"Subscriber\",'Enrollment Form'!$C763=\"Enroll\",'Enrollment Form'!$AS763<>\"\"),\"Y\",\"N\")))","v":""},{"$f":"IF($B756=\"N\",\"\",IF($Q756=\"-\",\"-\",IF(AND($Q756=\"Y\",'Enrollment Form'!$AS763=\"No\"),\"-\",IF(AND($Q756=\"Y\",'Enrollment Form'!$AS763=\"Yes\",'Enrollment Form'!$AT763<>\"\"),\"Y\",\"N\"))))","v":""},{"$f":"IF($B756=\"N\",\"\",IF(OR('Enrollment Form'!$B763<>\"Subscriber\",'Enrollment Form'!$C763=\"ROC\"),\"-\",IF(AND('Enrollment Form'!$B763=\"Subscriber\",'Enrollment Form'!$C763=\"Enroll\",'Enrollment Form'!$CV763<>\"\"),\"Y\",\"N\")))","v":""},{"$f":"IF($B756=\"N\",\"\",IF($S756=\"-\",\"-\",IF(AND($S756=\"Y\",'Enrollment Form'!$CV763=\"No\"),\"-\",IF(AND($S756=\"Y\",'Enrollment Form'!$CV763=\"Yes\",'Enrollment Form'!$CW763<>\"\"),\"Y\",\"N\"))))","v":""},{"$f":"IF(OR('Enrollment Form'!$AY763=\"Yes\",'Enrollment Form'!$AY763=\"\"),\"-\",IF(OR(AND('Enrollment Form'!$AY763=\"No\",ISERROR(FIND(\"HMO\",VLOOKUP('Enrollment Form'!G763,'Enrollment Form'!H$11:J$1000,3,FALSE),1))=FALSE,COUNTA('Enrollment Form'!$AZ763:$BC763)=4),AND('Enrollment Form'!$AY763=\"No\",ISERROR(FIND(\"HMO\",VLOOKUP('Enrollment Form'!G763,'Enrollment Form'!H$11:J$1000,3,FALSE),1))=FALSE,COUNTA('Enrollment Form'!$BT763:$BW763)=4)),\"Y\",\"N\"))","v":"-"},{"$f":"IF($B756=\"N\",\"\",IF('Enrollment Form'!$B763=\"Subscriber\",\"-\",IF(COUNTA('Enrollment Form'!$BL763,'Enrollment Form'!$BN763)=2,\"Y\",\"N\")))","v":""},{"$f":"IF($B756=\"N\",\"\",IF(OR('Enrollment Form'!$AX763=\"\",'Enrollment Form'!$AX763=\"No\"),\"-\",IF(AND('Enrollment Form'!$AX763=\"Yes\",COUNTA('Enrollment Form'!$CR763)=1),\"Y\",\"N\")))","v":""},{"$f":"IF(OR('Enrollment Form'!$CR763=\"\",'Enrollment Form'!$CR763=\"No\"),\"-\",IF(COUNTA('Enrollment Form'!$CT763:$CU763)=2,\"Y\",\"N\"))","v":"-"},{"$f":"IF($B756=\"N\",\"\",IF(COUNTIF('Enrollment Form'!$DG763:$DP763,\"Other\")=COUNTA('Enrollment Form'!$DK763,'Enrollment Form'!$DH763,'Enrollment Form'!$DN763,'Enrollment Form'!$DQ763),\"Y\",\"N\"))","v":""},{"$f":"IF($B756=\"N\",\"\",IF(OR('Enrollment Form'!B763<>\"Subscriber\",'Enrollment Form'!C763=\"ROC\",COUNTIF('Enrollment Form'!AV763:AW763,\"Yes\")>=1),\"-\",IF(AND('Enrollment Form'!C763=\"Enroll\",COUNTIF('Enrollment Form'!AV763:AW763,\"No\")=2,'Enrollment Form'!AX763=\"\"),\"N\",\"Y\")))","v":""},{"$f":"IF(OR(B756=\"N\",'Enrollment Form'!B763<>\"Subscriber\",'Enrollment Form'!C763=\"ROC\",'Enrollment Form'!O763<>\"Multiple of Salary\"),\"-\",IF(COUNTA('Enrollment Form'!T763:U763)<2,\"N\",\"Y\"))","v":"-"},{"$f":"IF(B756=\"N\",\"\",IF(OR('Enrollment Form'!C763=\"ROC\",'Enrollment Form'!B763<>\"Subscriber\",'Enrollment Form'!O763=\"Waive\",'Enrollment Form'!O763=\"\"),\"-\",IF('Enrollment Form'!P763=\"\",\"N\",\"Y\")))","v":""},{"$f":"IF($B756=\"N\",\"\",IF(AND('Enrollment Form'!$C763=\"ROC\",'Enrollment Form'!$DR763<>\"\"),\"Y\",IF(AND('Enrollment Form'!$C763=\"ROC\",'Enrollment Form'!$DR763=\"\"),\"N\",IF(AND('Enrollment Form'!$C763=\"Enroll\",'Enrollment Form'!$B763=\"Subscriber\",'Enrollment Form'!$CX763=\"No\",'Enrollment Form'!$DR763=\"\"),\"N\",IF(AND('Enrollment Form'!$C763=\"Enroll\",'Enrollment Form'!$B763=\"Subscriber\",'Enrollment Form'!$CX763=\"Yes\"),\"-\",\"Y\")))))","v":""},{"$f":"IF($B756=\"N\",\"\",IF(AND('Enrollment Form'!$C763=\"ROC\",'Enrollment Form'!$DS763<>\"\"),\"Y\",IF(AND('Enrollment Form'!$C763=\"ROC\",'Enrollment Form'!$DS763=\"\"),\"N\",IF(AND('Enrollment Form'!$C763=\"Enroll\",'Enrollment Form'!$B763=\"Subscriber\",'Enrollment Form'!$CX763=\"No\",'Enrollment Form'!$DS763=\"\"),\"N\",IF(AND('Enrollment Form'!$C763=\"Enroll\",'Enrollment Form'!$B763=\"Subscriber\",'Enrollment Form'!$CX763=\"Yes\"),\"-\",\"Y\")))))","v":""},{"$f":"IF('Enrollment Form'!AH763=\"\",\"\",IF(ISERROR(SEARCH(\".\",'Enrollment Form'!AH763,SEARCH(\"@\",'Enrollment Form'!AH763))),\"N\",\"Y\"))","v":""},{"$f":"IF(OR($B756=\"N\",'Enrollment Form'!$G763=\"\"),\"\",IF('Enrollment Form'!$B763<>\"Subscriber\",\"-\",IF(COUNTIF('Enrollment Form'!$AV763:$AW763,\"Yes\")=2,\"N\",\"Y\")))","v":""},{"$f":"IF(OR('Enrollment Form'!$CJ763=\"\",'Enrollment Form'!$CJ763=\"No\"),\"-\",IF(AND('Enrollment Form'!$CJ763=\"Yes\",'Enrollment Form'!$CK763=\"\"),\"N\",\"Y\"))","v":"-"},{"$f":"IF(OR('Enrollment Form'!$CL763=\"\",'Enrollment Form'!$CL763=\"No\"),\"-\",IF(AND('Enrollment Form'!$CL763=\"Yes\",'Enrollment Form'!$CM763=\"\"),\"N\",\"Y\"))","v":"-"},{"$f":"IF(OR('Enrollment Form'!$CN763=\"\",'Enrollment Form'!$CN763=\"No\"),\"-\",IF(AND('Enrollment Form'!$CN763=\"Yes\",'Enrollment Form'!$CO763=\"\"),\"N\",\"Y\"))","v":"-"},{"$f":"IF(OR('Enrollment Form'!$CN763=\"\",'Enrollment Form'!$CN763=\"No\"),\"-\",IF(AND('Enrollment Form'!$CN763=\"Yes\",'Enrollment Form'!$CP763=\"\"),\"N\",\"Y\"))","v":"-"},{"$f":"IF('Enrollment Form'!B763<>\"Subscriber\",\"-\",IF(AND('Enrollment Form'!B763=\"Subscriber\",'Enrollment Form'!C763=\"Enroll\",'Enrollment Form'!AA763=\"\"),\"N\",\"Y\"))","v":"-"},{"$f":"IF(OR('Enrollment Form'!B763=\"Subscriber\",'Enrollment Form'!B763=\"\"),\"-\",IF('Enrollment Form'!BP763=\"\",\"N\",\"Y\"))","v":"-"},{"$f":"IF('Enrollment Form'!B763<>\"Subscriber\",\"-\",IF(AND('Enrollment Form'!B763=\"Subscriber\",'Enrollment Form'!G763=\"\"),\"N\",\"Y\"))","v":"-"},{"$f":"IF('Enrollment Form'!A763=\"\",\"\",IF('Enrollment Form'!B763=\"Subscriber\",\"-\",IF(AND('Enrollment Form'!B763<>\"Subscriber\",'Enrollment Form'!G763='Enrollment Form'!H763),\"N\",\"Y\")))","v":""},0]
[764,{"$f":"IF('Enrollment Form'!$A764<>\"\",\"Y\",\"N\")","v":"N"},{"$f":"IF(AND('Enrollment Form'!$B764=\"\",'Enrollment Form'!$C764<>\"\"),\"N\",IF($B757=\"N\",\"\",\"Y\"))","v":""},{"$f":"IF(OR($B757=\"N\",'Enrollment Form'!G764=\"\"),\"\",IF('Enrollment Form'!$B764<>\"Subscriber\",\"\",IF('Enrollment Form'!$G764='Enrollment Form'!$H764,\"Y\",\"N\")))","v":""},{"$f":"IF($B757=\"N\",\"\",IF(AND(COUNTIFS('Enrollment Form'!$H$11:$H$1000,'Enrollment Form'!$H764,'Enrollment Form'!$B$11:$B$1000,'Enrollment Form'!$B764)>1,'Enrollment Form'!$H764<>\"\"),\"N\",\"Y\"))","v":""},{"$f":"IF($B757=\"N\",\"\",IF(LEN('Enrollment Form'!$Y764)=0,\"\",IF(LEN('Enrollment Form'!$Y764)<>5,\"N\",\"Y\")))","v":""},{"$f":"IF($B757=\"N\",\"\",IF(LEN('Enrollment Form'!$AD764=0),\"\",IF(LEN('Enrollment Form'!$AD764)<>5,\"N\",\"Y\")))","v":""},{"$f":"IF($B757=\"N\",\"\",IF(LEN('Enrollment Form'!$BS764=0),\"\",IF(LEN('Enrollment Form'!$BS764)<>5,\"N\",\"Y\")))","v":""},{"$f":"IF($B757=\"N\",\"\",IF(LEN('Enrollment Form'!$AE764)=0,\"\",IF(LEN('Enrollment Form'!$AE764)<>10,\"N\",\"Y\")))","v":""},{"$f":"IF($B757=\"N\",\"\",IF(LEN('Enrollment Form'!$AF764)=0,\"\",IF(LEN('Enrollment Form'!$AF764)<>10,\"N\",\"Y\")))","v":""},{"$f":"IF('Enrollment Form'!$O764<>\"Graded\",\"-\",IF(AND('Enrollment Form'!$O764=\"Graded\",'Enrollment Form'!$AR764<>\"\"),\"Y\",\"N\"))","v":"-"},{"$f":"IF($B757=\"N\",\"\",IF(OR('Enrollment Form'!$B764<>\"Subscriber\",'Enrollment Form'!$C764=\"ROC\"),\"-\",IF(AND('Enrollment Form'!$B764=\"Subscriber\",'Enrollment Form'!$C764=\"Enroll\",'Enrollment Form'!$AJ764<>\"\"),\"Y\",\"N\")))","v":""},{"$f":"IF($B757=\"N\",\"\",IF(OR('Enrollment Form'!$B764<>\"Subscriber\",'Enrollment Form'!$C764=\"ROC\"),\"-\",IF(AND('Enrollment Form'!$B764=\"Subscriber\",'Enrollment Form'!$C764=\"Enroll\",'Enrollment Form'!$AK764<>\"\"),\"Y\",\"N\")))","v":""},{"$f":"IF($B757=\"N\",\"\",IF(OR('Enrollment Form'!$B764<>\"Subscriber\",'Enrollment Form'!$C764=\"ROC\"),\"-\",IF(AND('Enrollment Form'!$B764=\"Subscriber\",'Enrollment Form'!$C764=\"Enroll\",'Enrollment Form'!$AL764<>\"\"),\"Y\",\"N\")))","v":""},{"$f":"IF($B757=\"N\",\"\",IF(OR('Enrollment Form'!$B764<>\"Subscriber\",'Enrollment Form'!$C764=\"ROC\"),\"-\",IF(AND('Enrollment Form'!$B764=\"Subscriber\",'Enrollment Form'!$C764=\"Enroll\",'Enrollment Form'!$AP764<>\"\"),\"Y\",\"N\")))","v":""},{"$f":"IF($B757=\"N\",\"\",IF(OR('Enrollment Form'!$B764<>\"Subscriber\",'Enrollment Form'!$C764=\"ROC\"),\"-\",IF(AND('Enrollment Form'!$B764=\"Subscriber\",'Enrollment Form'!$C764=\"Enroll\",'Enrollment Form'!$AQ764<>\"\"),\"Y\",\"N\")))","v":""},{"$f":"IF($B757=\"N\",\"\",IF(OR('Enrollment Form'!$B764<>\"Subscriber\",'Enrollment Form'!$C764=\"ROC\"),\"-\",IF(AND('Enrollment Form'!$B764=\"Subscriber\",'Enrollment Form'!$C764=\"Enroll\",'Enrollment Form'!$AS764<>\"\"),\"Y\",\"N\")))","v":""},{"$f":"IF($B757=\"N\",\"\",IF($Q757=\"-\",\"-\",IF(AND($Q757=\"Y\",'Enrollment Form'!$AS764=\"No\"),\"-\",IF(AND($Q757=\"Y\",'Enrollment Form'!$AS764=\"Yes\",'Enrollment Form'!$AT764<>\"\"),\"Y\",\"N\"))))","v":""},{"$f":"IF($B757=\"N\",\"\",IF(OR('Enrollment Form'!$B764<>\"Subscriber\",'Enrollment Form'!$C764=\"ROC\"),\"-\",IF(AND('Enrollment Form'!$B764=\"Subscriber\",'Enrollment Form'!$C764=\"Enroll\",'Enrollment Form'!$CV764<>\"\"),\"Y\",\"N\")))","v":""},{"$f":"IF($B757=\"N\",\"\",IF($S757=\"-\",\"-\",IF(AND($S757=\"Y\",'Enrollment Form'!$CV764=\"No\"),\"-\",IF(AND($S757=\"Y\",'Enrollment Form'!$CV764=\"Yes\",'Enrollment Form'!$CW764<>\"\"),\"Y\",\"N\"))))","v":""},{"$f":"IF(OR('Enrollment Form'!$AY764=\"Yes\",'Enrollment Form'!$AY764=\"\"),\"-\",IF(OR(AND('Enrollment Form'!$AY764=\"No\",ISERROR(FIND(\"HMO\",VLOOKUP('Enrollment Form'!G764,'Enrollment Form'!H$11:J$1000,3,FALSE),1))=FALSE,COUNTA('Enrollment Form'!$AZ764:$BC764)=4),AND('Enrollment Form'!$AY764=\"No\",ISERROR(FIND(\"HMO\",VLOOKUP('Enrollment Form'!G764,'Enrollment Form'!H$11:J$1000,3,FALSE),1))=FALSE,COUNTA('Enrollment Form'!$BT764:$BW764)=4)),\"Y\",\"N\"))","v":"-"},{"$f":"IF($B757=\"N\",\"\",IF('Enrollment Form'!$B764=\"Subscriber\",\"-\",IF(COUNTA('Enrollment Form'!$BL764,'Enrollment Form'!$BN764)=2,\"Y\",\"N\")))","v":""},{"$f":"IF($B757=\"N\",\"\",IF(OR('Enrollment Form'!$AX764=\"\",'Enrollment Form'!$AX764=\"No\"),\"-\",IF(AND('Enrollment Form'!$AX764=\"Yes\",COUNTA('Enrollment Form'!$CR764)=1),\"Y\",\"N\")))","v":""},{"$f":"IF(OR('Enrollment Form'!$CR764=\"\",'Enrollment Form'!$CR764=\"No\"),\"-\",IF(COUNTA('Enrollment Form'!$CT764:$CU764)=2,\"Y\",\"N\"))","v":"-"},{"$f":"IF($B757=\"N\",\"\",IF(COUNTIF('Enrollment Form'!$DG764:$DP764,\"Other\")=COUNTA('Enrollment Form'!$DK764,'Enrollment Form'!$DH764,'Enrollment Form'!$DN764,'Enrollment Form'!$DQ764),\"Y\",\"N\"))","v":""},{"$f":"IF($B757=\"N\",\"\",IF(OR('Enrollment Form'!B764<>\"Subscriber\",'Enrollment Form'!C764=\"ROC\",COUNTIF('Enrollment Form'!AV764:AW764,\"Yes\")>=1),\"-\",IF(AND('Enrollment Form'!C764=\"Enroll\",COUNTIF('Enrollment Form'!AV764:AW764,\"No\")=2,'Enrollment Form'!AX764=\"\"),\"N\",\"Y\")))","v":""},{"$f":"IF(OR(B757=\"N\",'Enrollment Form'!B764<>\"Subscriber\",'Enrollment Form'!C764=\"ROC\",'Enrollment Form'!O764<>\"Multiple of Salary\"),\"-\",IF(COUNTA('Enrollment Form'!T764:U764)<2,\"N\",\"Y\"))","v":"-"},{"$f":"IF(B757=\"N\",\"\",IF(OR('Enrollment Form'!C764=\"ROC\",'Enrollment Form'!B764<>\"Subscriber\",'Enrollment Form'!O764=\"Waive\",'Enrollment Form'!O764=\"\"),\"-\",IF('Enrollment Form'!P764=\"\",\"N\",\"Y\")))","v":""},{"$f":"IF($B757=\"N\",\"\",IF(AND('Enrollment Form'!$C764=\"ROC\",'Enrollment Form'!$DR764<>\"\"),\"Y\",IF(AND('Enrollment Form'!$C764=\"ROC\",'Enrollment Form'!$DR764=\"\"),\"N\",IF(AND('Enrollment Form'!$C764=\"Enroll\",'Enrollment Form'!$B764=\"Subscriber\",'Enrollment Form'!$CX764=\"No\",'Enrollment Form'!$DR764=\"\"),\"N\",IF(AND('Enrollment Form'!$C764=\"Enroll\",'Enrollment Form'!$B764=\"Subscriber\",'Enrollment Form'!$CX764=\"Yes\"),\"-\",\"Y\")))))","v":""},{"$f":"IF($B757=\"N\",\"\",IF(AND('Enrollment Form'!$C764=\"ROC\",'Enrollment Form'!$DS764<>\"\"),\"Y\",IF(AND('Enrollment Form'!$C764=\"ROC\",'Enrollment Form'!$DS764=\"\"),\"N\",IF(AND('Enrollment Form'!$C764=\"Enroll\",'Enrollment Form'!$B764=\"Subscriber\",'Enrollment Form'!$CX764=\"No\",'Enrollment Form'!$DS764=\"\"),\"N\",IF(AND('Enrollment Form'!$C764=\"Enroll\",'Enrollment Form'!$B764=\"Subscriber\",'Enrollment Form'!$CX764=\"Yes\"),\"-\",\"Y\")))))","v":""},{"$f":"IF('Enrollment Form'!AH764=\"\",\"\",IF(ISERROR(SEARCH(\".\",'Enrollment Form'!AH764,SEARCH(\"@\",'Enrollment Form'!AH764))),\"N\",\"Y\"))","v":""},{"$f":"IF(OR($B757=\"N\",'Enrollment Form'!$G764=\"\"),\"\",IF('Enrollment Form'!$B764<>\"Subscriber\",\"-\",IF(COUNTIF('Enrollment Form'!$AV764:$AW764,\"Yes\")=2,\"N\",\"Y\")))","v":""},{"$f":"IF(OR('Enrollment Form'!$CJ764=\"\",'Enrollment Form'!$CJ764=\"No\"),\"-\",IF(AND('Enrollment Form'!$CJ764=\"Yes\",'Enrollment Form'!$CK764=\"\"),\"N\",\"Y\"))","v":"-"},{"$f":"IF(OR('Enrollment Form'!$CL764=\"\",'Enrollment Form'!$CL764=\"No\"),\"-\",IF(AND('Enrollment Form'!$CL764=\"Yes\",'Enrollment Form'!$CM764=\"\"),\"N\",\"Y\"))","v":"-"},{"$f":"IF(OR('Enrollment Form'!$CN764=\"\",'Enrollment Form'!$CN764=\"No\"),\"-\",IF(AND('Enrollment Form'!$CN764=\"Yes\",'Enrollment Form'!$CO764=\"\"),\"N\",\"Y\"))","v":"-"},{"$f":"IF(OR('Enrollment Form'!$CN764=\"\",'Enrollment Form'!$CN764=\"No\"),\"-\",IF(AND('Enrollment Form'!$CN764=\"Yes\",'Enrollment Form'!$CP764=\"\"),\"N\",\"Y\"))","v":"-"},{"$f":"IF('Enrollment Form'!B764<>\"Subscriber\",\"-\",IF(AND('Enrollment Form'!B764=\"Subscriber\",'Enrollment Form'!C764=\"Enroll\",'Enrollment Form'!AA764=\"\"),\"N\",\"Y\"))","v":"-"},{"$f":"IF(OR('Enrollment Form'!B764=\"Subscriber\",'Enrollment Form'!B764=\"\"),\"-\",IF('Enrollment Form'!BP764=\"\",\"N\",\"Y\"))","v":"-"},{"$f":"IF('Enrollment Form'!B764<>\"Subscriber\",\"-\",IF(AND('Enrollment Form'!B764=\"Subscriber\",'Enrollment Form'!G764=\"\"),\"N\",\"Y\"))","v":"-"},{"$f":"IF('Enrollment Form'!A764=\"\",\"\",IF('Enrollment Form'!B764=\"Subscriber\",\"-\",IF(AND('Enrollment Form'!B764<>\"Subscriber\",'Enrollment Form'!G764='Enrollment Form'!H764),\"N\",\"Y\")))","v":""},0]
[765,{"$f":"IF('Enrollment Form'!$A765<>\"\",\"Y\",\"N\")","v":"N"},{"$f":"IF(AND('Enrollment Form'!$B765=\"\",'Enrollment Form'!$C765<>\"\"),\"N\",IF($B758=\"N\",\"\",\"Y\"))","v":""},{"$f":"IF(OR($B758=\"N\",'Enrollment Form'!G765=\"\"),\"\",IF('Enrollment Form'!$B765<>\"Subscriber\",\"\",IF('Enrollment Form'!$G765='Enrollment Form'!$H765,\"Y\",\"N\")))","v":""},{"$f":"IF($B758=\"N\",\"\",IF(AND(COUNTIFS('Enrollment Form'!$H$11:$H$1000,'Enrollment Form'!$H765,'Enrollment Form'!$B$11:$B$1000,'Enrollment Form'!$B765)>1,'Enrollment Form'!$H765<>\"\"),\"N\",\"Y\"))","v":""},{"$f":"IF($B758=\"N\",\"\",IF(LEN('Enrollment Form'!$Y765)=0,\"\",IF(LEN('Enrollment Form'!$Y765)<>5,\"N\",\"Y\")))","v":""},{"$f":"IF($B758=\"N\",\"\",IF(LEN('Enrollment Form'!$AD765=0),\"\",IF(LEN('Enrollment Form'!$AD765)<>5,\"N\",\"Y\")))","v":""},{"$f":"IF($B758=\"N\",\"\",IF(LEN('Enrollment Form'!$BS765=0),\"\",IF(LEN('Enrollment Form'!$BS765)<>5,\"N\",\"Y\")))","v":""},{"$f":"IF($B758=\"N\",\"\",IF(LEN('Enrollment Form'!$AE765)=0,\"\",IF(LEN('Enrollment Form'!$AE765)<>10,\"N\",\"Y\")))","v":""},{"$f":"IF($B758=\"N\",\"\",IF(LEN('Enrollment Form'!$AF765)=0,\"\",IF(LEN('Enrollment Form'!$AF765)<>10,\"N\",\"Y\")))","v":""},{"$f":"IF('Enrollment Form'!$O765<>\"Graded\",\"-\",IF(AND('Enrollment Form'!$O765=\"Graded\",'Enrollment Form'!$AR765<>\"\"),\"Y\",\"N\"))","v":"-"},{"$f":"IF($B758=\"N\",\"\",IF(OR('Enrollment Form'!$B765<>\"Subscriber\",'Enrollment Form'!$C765=\"ROC\"),\"-\",IF(AND('Enrollment Form'!$B765=\"Subscriber\",'Enrollment Form'!$C765=\"Enroll\",'Enrollment Form'!$AJ765<>\"\"),\"Y\",\"N\")))","v":""},{"$f":"IF($B758=\"N\",\"\",IF(OR('Enrollment Form'!$B765<>\"Subscriber\",'Enrollment Form'!$C765=\"ROC\"),\"-\",IF(AND('Enrollment Form'!$B765=\"Subscriber\",'Enrollment Form'!$C765=\"Enroll\",'Enrollment Form'!$AK765<>\"\"),\"Y\",\"N\")))","v":""},{"$f":"IF($B758=\"N\",\"\",IF(OR('Enrollment Form'!$B765<>\"Subscriber\",'Enrollment Form'!$C765=\"ROC\"),\"-\",IF(AND('Enrollment Form'!$B765=\"Subscriber\",'Enrollment Form'!$C765=\"Enroll\",'Enrollment Form'!$AL765<>\"\"),\"Y\",\"N\")))","v":""},{"$f":"IF($B758=\"N\",\"\",IF(OR('Enrollment Form'!$B765<>\"Subscriber\",'Enrollment Form'!$C765=\"ROC\"),\"-\",IF(AND('Enrollment Form'!$B765=\"Subscriber\",'Enrollment Form'!$C765=\"Enroll\",'Enrollment Form'!$AP765<>\"\"),\"Y\",\"N\")))","v":""},{"$f":"IF($B758=\"N\",\"\",IF(OR('Enrollment Form'!$B765<>\"Subscriber\",'Enrollment Form'!$C765=\"ROC\"),\"-\",IF(AND('Enrollment Form'!$B765=\"Subscriber\",'Enrollment Form'!$C765=\"Enroll\",'Enrollment Form'!$AQ765<>\"\"),\"Y\",\"N\")))","v":""},{"$f":"IF($B758=\"N\",\"\",IF(OR('Enrollment Form'!$B765<>\"Subscriber\",'Enrollment Form'!$C765=\"ROC\"),\"-\",IF(AND('Enrollment Form'!$B765=\"Subscriber\",'Enrollment Form'!$C765=\"Enroll\",'Enrollment Form'!$AS765<>\"\"),\"Y\",\"N\")))","v":""},{"$f":"IF($B758=\"N\",\"\",IF($Q758=\"-\",\"-\",IF(AND($Q758=\"Y\",'Enrollment Form'!$AS765=\"No\"),\"-\",IF(AND($Q758=\"Y\",'Enrollment Form'!$AS765=\"Yes\",'Enrollment Form'!$AT765<>\"\"),\"Y\",\"N\"))))","v":""},{"$f":"IF($B758=\"N\",\"\",IF(OR('Enrollment Form'!$B765<>\"Subscriber\",'Enrollment Form'!$C765=\"ROC\"),\"-\",IF(AND('Enrollment Form'!$B765=\"Subscriber\",'Enrollment Form'!$C765=\"Enroll\",'Enrollment Form'!$CV765<>\"\"),\"Y\",\"N\")))","v":""},{"$f":"IF($B758=\"N\",\"\",IF($S758=\"-\",\"-\",IF(AND($S758=\"Y\",'Enrollment Form'!$CV765=\"No\"),\"-\",IF(AND($S758=\"Y\",'Enrollment Form'!$CV765=\"Yes\",'Enrollment Form'!$CW765<>\"\"),\"Y\",\"N\"))))","v":""},{"$f":"IF(OR('Enrollment Form'!$AY765=\"Yes\",'Enrollment Form'!$AY765=\"\"),\"-\",IF(OR(AND('Enrollment Form'!$AY765=\"No\",ISERROR(FIND(\"HMO\",VLOOKUP('Enrollment Form'!G765,'Enrollment Form'!H$11:J$1000,3,FALSE),1))=FALSE,COUNTA('Enrollment Form'!$AZ765:$BC765)=4),AND('Enrollment Form'!$AY765=\"No\",ISERROR(FIND(\"HMO\",VLOOKUP('Enrollment Form'!G765,'Enrollment Form'!H$11:J$1000,3,FALSE),1))=FALSE,COUNTA('Enrollment Form'!$BT765:$BW765)=4)),\"Y\",\"N\"))","v":"-"},{"$f":"IF($B758=\"N\",\"\",IF('Enrollment Form'!$B765=\"Subscriber\",\"-\",IF(COUNTA('Enrollment Form'!$BL765,'Enrollment Form'!$BN765)=2,\"Y\",\"N\")))","v":""},{"$f":"IF($B758=\"N\",\"\",IF(OR('Enrollment Form'!$AX765=\"\",'Enrollment Form'!$AX765=\"No\"),\"-\",IF(AND('Enrollment Form'!$AX765=\"Yes\",COUNTA('Enrollment Form'!$CR765)=1),\"Y\",\"N\")))","v":""},{"$f":"IF(OR('Enrollment Form'!$CR765=\"\",'Enrollment Form'!$CR765=\"No\"),\"-\",IF(COUNTA('Enrollment Form'!$CT765:$CU765)=2,\"Y\",\"N\"))","v":"-"},{"$f":"IF($B758=\"N\",\"\",IF(COUNTIF('Enrollment Form'!$DG765:$DP765,\"Other\")=COUNTA('Enrollment Form'!$DK765,'Enrollment Form'!$DH765,'Enrollment Form'!$DN765,'Enrollment Form'!$DQ765),\"Y\",\"N\"))","v":""},{"$f":"IF($B758=\"N\",\"\",IF(OR('Enrollment Form'!B765<>\"Subscriber\",'Enrollment Form'!C765=\"ROC\",COUNTIF('Enrollment Form'!AV765:AW765,\"Yes\")>=1),\"-\",IF(AND('Enrollment Form'!C765=\"Enroll\",COUNTIF('Enrollment Form'!AV765:AW765,\"No\")=2,'Enrollment Form'!AX765=\"\"),\"N\",\"Y\")))","v":""},{"$f":"IF(OR(B758=\"N\",'Enrollment Form'!B765<>\"Subscriber\",'Enrollment Form'!C765=\"ROC\",'Enrollment Form'!O765<>\"Multiple of Salary\"),\"-\",IF(COUNTA('Enrollment Form'!T765:U765)<2,\"N\",\"Y\"))","v":"-"},{"$f":"IF(B758=\"N\",\"\",IF(OR('Enrollment Form'!C765=\"ROC\",'Enrollment Form'!B765<>\"Subscriber\",'Enrollment Form'!O765=\"Waive\",'Enrollment Form'!O765=\"\"),\"-\",IF('Enrollment Form'!P765=\"\",\"N\",\"Y\")))","v":""},{"$f":"IF($B758=\"N\",\"\",IF(AND('Enrollment Form'!$C765=\"ROC\",'Enrollment Form'!$DR765<>\"\"),\"Y\",IF(AND('Enrollment Form'!$C765=\"ROC\",'Enrollment Form'!$DR765=\"\"),\"N\",IF(AND('Enrollment Form'!$C765=\"Enroll\",'Enrollment Form'!$B765=\"Subscriber\",'Enrollment Form'!$CX765=\"No\",'Enrollment Form'!$DR765=\"\"),\"N\",IF(AND('Enrollment Form'!$C765=\"Enroll\",'Enrollment Form'!$B765=\"Subscriber\",'Enrollment Form'!$CX765=\"Yes\"),\"-\",\"Y\")))))","v":""},{"$f":"IF($B758=\"N\",\"\",IF(AND('Enrollment Form'!$C765=\"ROC\",'Enrollment Form'!$DS765<>\"\"),\"Y\",IF(AND('Enrollment Form'!$C765=\"ROC\",'Enrollment Form'!$DS765=\"\"),\"N\",IF(AND('Enrollment Form'!$C765=\"Enroll\",'Enrollment Form'!$B765=\"Subscriber\",'Enrollment Form'!$CX765=\"No\",'Enrollment Form'!$DS765=\"\"),\"N\",IF(AND('Enrollment Form'!$C765=\"Enroll\",'Enrollment Form'!$B765=\"Subscriber\",'Enrollment Form'!$CX765=\"Yes\"),\"-\",\"Y\")))))","v":""},{"$f":"IF('Enrollment Form'!AH765=\"\",\"\",IF(ISERROR(SEARCH(\".\",'Enrollment Form'!AH765,SEARCH(\"@\",'Enrollment Form'!AH765))),\"N\",\"Y\"))","v":""},{"$f":"IF(OR($B758=\"N\",'Enrollment Form'!$G765=\"\"),\"\",IF('Enrollment Form'!$B765<>\"Subscriber\",\"-\",IF(COUNTIF('Enrollment Form'!$AV765:$AW765,\"Yes\")=2,\"N\",\"Y\")))","v":""},{"$f":"IF(OR('Enrollment Form'!$CJ765=\"\",'Enrollment Form'!$CJ765=\"No\"),\"-\",IF(AND('Enrollment Form'!$CJ765=\"Yes\",'Enrollment Form'!$CK765=\"\"),\"N\",\"Y\"))","v":"-"},{"$f":"IF(OR('Enrollment Form'!$CL765=\"\",'Enrollment Form'!$CL765=\"No\"),\"-\",IF(AND('Enrollment Form'!$CL765=\"Yes\",'Enrollment Form'!$CM765=\"\"),\"N\",\"Y\"))","v":"-"},{"$f":"IF(OR('Enrollment Form'!$CN765=\"\",'Enrollment Form'!$CN765=\"No\"),\"-\",IF(AND('Enrollment Form'!$CN765=\"Yes\",'Enrollment Form'!$CO765=\"\"),\"N\",\"Y\"))","v":"-"},{"$f":"IF(OR('Enrollment Form'!$CN765=\"\",'Enrollment Form'!$CN765=\"No\"),\"-\",IF(AND('Enrollment Form'!$CN765=\"Yes\",'Enrollment Form'!$CP765=\"\"),\"N\",\"Y\"))","v":"-"},{"$f":"IF('Enrollment Form'!B765<>\"Subscriber\",\"-\",IF(AND('Enrollment Form'!B765=\"Subscriber\",'Enrollment Form'!C765=\"Enroll\",'Enrollment Form'!AA765=\"\"),\"N\",\"Y\"))","v":"-"},{"$f":"IF(OR('Enrollment Form'!B765=\"Subscriber\",'Enrollment Form'!B765=\"\"),\"-\",IF('Enrollment Form'!BP765=\"\",\"N\",\"Y\"))","v":"-"},{"$f":"IF('Enrollment Form'!B765<>\"Subscriber\",\"-\",IF(AND('Enrollment Form'!B765=\"Subscriber\",'Enrollment Form'!G765=\"\"),\"N\",\"Y\"))","v":"-"},{"$f":"IF('Enrollment Form'!A765=\"\",\"\",IF('Enrollment Form'!B765=\"Subscriber\",\"-\",IF(AND('Enrollment Form'!B765<>\"Subscriber\",'Enrollment Form'!G765='Enrollment Form'!H765),\"N\",\"Y\")))","v":""},0]
[766,{"$f":"IF('Enrollment Form'!$A766<>\"\",\"Y\",\"N\")","v":"N"},{"$f":"IF(AND('Enrollment Form'!$B766=\"\",'Enrollment Form'!$C766<>\"\"),\"N\",IF($B759=\"N\",\"\",\"Y\"))","v":""},{"$f":"IF(OR($B759=\"N\",'Enrollment Form'!G766=\"\"),\"\",IF('Enrollment Form'!$B766<>\"Subscriber\",\"\",IF('Enrollment Form'!$G766='Enrollment Form'!$H766,\"Y\",\"N\")))","v":""},{"$f":"IF($B759=\"N\",\"\",IF(AND(COUNTIFS('Enrollment Form'!$H$11:$H$1000,'Enrollment Form'!$H766,'Enrollment Form'!$B$11:$B$1000,'Enrollment Form'!$B766)>1,'Enrollment Form'!$H766<>\"\"),\"N\",\"Y\"))","v":""},{"$f":"IF($B759=\"N\",\"\",IF(LEN('Enrollment Form'!$Y766)=0,\"\",IF(LEN('Enrollment Form'!$Y766)<>5,\"N\",\"Y\")))","v":""},{"$f":"IF($B759=\"N\",\"\",IF(LEN('Enrollment Form'!$AD766=0),\"\",IF(LEN('Enrollment Form'!$AD766)<>5,\"N\",\"Y\")))","v":""},{"$f":"IF($B759=\"N\",\"\",IF(LEN('Enrollment Form'!$BS766=0),\"\",IF(LEN('Enrollment Form'!$BS766)<>5,\"N\",\"Y\")))","v":""},{"$f":"IF($B759=\"N\",\"\",IF(LEN('Enrollment Form'!$AE766)=0,\"\",IF(LEN('Enrollment Form'!$AE766)<>10,\"N\",\"Y\")))","v":""},{"$f":"IF($B759=\"N\",\"\",IF(LEN('Enrollment Form'!$AF766)=0,\"\",IF(LEN('Enrollment Form'!$AF766)<>10,\"N\",\"Y\")))","v":""},{"$f":"IF('Enrollment Form'!$O766<>\"Graded\",\"-\",IF(AND('Enrollment Form'!$O766=\"Graded\",'Enrollment Form'!$AR766<>\"\"),\"Y\",\"N\"))","v":"-"},{"$f":"IF($B759=\"N\",\"\",IF(OR('Enrollment Form'!$B766<>\"Subscriber\",'Enrollment Form'!$C766=\"ROC\"),\"-\",IF(AND('Enrollment Form'!$B766=\"Subscriber\",'Enrollment Form'!$C766=\"Enroll\",'Enrollment Form'!$AJ766<>\"\"),\"Y\",\"N\")))","v":""},{"$f":"IF($B759=\"N\",\"\",IF(OR('Enrollment Form'!$B766<>\"Subscriber\",'Enrollment Form'!$C766=\"ROC\"),\"-\",IF(AND('Enrollment Form'!$B766=\"Subscriber\",'Enrollment Form'!$C766=\"Enroll\",'Enrollment Form'!$AK766<>\"\"),\"Y\",\"N\")))","v":""},{"$f":"IF($B759=\"N\",\"\",IF(OR('Enrollment Form'!$B766<>\"Subscriber\",'Enrollment Form'!$C766=\"ROC\"),\"-\",IF(AND('Enrollment Form'!$B766=\"Subscriber\",'Enrollment Form'!$C766=\"Enroll\",'Enrollment Form'!$AL766<>\"\"),\"Y\",\"N\")))","v":""},{"$f":"IF($B759=\"N\",\"\",IF(OR('Enrollment Form'!$B766<>\"Subscriber\",'Enrollment Form'!$C766=\"ROC\"),\"-\",IF(AND('Enrollment Form'!$B766=\"Subscriber\",'Enrollment Form'!$C766=\"Enroll\",'Enrollment Form'!$AP766<>\"\"),\"Y\",\"N\")))","v":""},{"$f":"IF($B759=\"N\",\"\",IF(OR('Enrollment Form'!$B766<>\"Subscriber\",'Enrollment Form'!$C766=\"ROC\"),\"-\",IF(AND('Enrollment Form'!$B766=\"Subscriber\",'Enrollment Form'!$C766=\"Enroll\",'Enrollment Form'!$AQ766<>\"\"),\"Y\",\"N\")))","v":""},{"$f":"IF($B759=\"N\",\"\",IF(OR('Enrollment Form'!$B766<>\"Subscriber\",'Enrollment Form'!$C766=\"ROC\"),\"-\",IF(AND('Enrollment Form'!$B766=\"Subscriber\",'Enrollment Form'!$C766=\"Enroll\",'Enrollment Form'!$AS766<>\"\"),\"Y\",\"N\")))","v":""},{"$f":"IF($B759=\"N\",\"\",IF($Q759=\"-\",\"-\",IF(AND($Q759=\"Y\",'Enrollment Form'!$AS766=\"No\"),\"-\",IF(AND($Q759=\"Y\",'Enrollment Form'!$AS766=\"Yes\",'Enrollment Form'!$AT766<>\"\"),\"Y\",\"N\"))))","v":""},{"$f":"IF($B759=\"N\",\"\",IF(OR('Enrollment Form'!$B766<>\"Subscriber\",'Enrollment Form'!$C766=\"ROC\"),\"-\",IF(AND('Enrollment Form'!$B766=\"Subscriber\",'Enrollment Form'!$C766=\"Enroll\",'Enrollment Form'!$CV766<>\"\"),\"Y\",\"N\")))","v":""},{"$f":"IF($B759=\"N\",\"\",IF($S759=\"-\",\"-\",IF(AND($S759=\"Y\",'Enrollment Form'!$CV766=\"No\"),\"-\",IF(AND($S759=\"Y\",'Enrollment Form'!$CV766=\"Yes\",'Enrollment Form'!$CW766<>\"\"),\"Y\",\"N\"))))","v":""},{"$f":"IF(OR('Enrollment Form'!$AY766=\"Yes\",'Enrollment Form'!$AY766=\"\"),\"-\",IF(OR(AND('Enrollment Form'!$AY766=\"No\",ISERROR(FIND(\"HMO\",VLOOKUP('Enrollment Form'!G766,'Enrollment Form'!H$11:J$1000,3,FALSE),1))=FALSE,COUNTA('Enrollment Form'!$AZ766:$BC766)=4),AND('Enrollment Form'!$AY766=\"No\",ISERROR(FIND(\"HMO\",VLOOKUP('Enrollment Form'!G766,'Enrollment Form'!H$11:J$1000,3,FALSE),1))=FALSE,COUNTA('Enrollment Form'!$BT766:$BW766)=4)),\"Y\",\"N\"))","v":"-"},{"$f":"IF($B759=\"N\",\"\",IF('Enrollment Form'!$B766=\"Subscriber\",\"-\",IF(COUNTA('Enrollment Form'!$BL766,'Enrollment Form'!$BN766)=2,\"Y\",\"N\")))","v":""},{"$f":"IF($B759=\"N\",\"\",IF(OR('Enrollment Form'!$AX766=\"\",'Enrollment Form'!$AX766=\"No\"),\"-\",IF(AND('Enrollment Form'!$AX766=\"Yes\",COUNTA('Enrollment Form'!$CR766)=1),\"Y\",\"N\")))","v":""},{"$f":"IF(OR('Enrollment Form'!$CR766=\"\",'Enrollment Form'!$CR766=\"No\"),\"-\",IF(COUNTA('Enrollment Form'!$CT766:$CU766)=2,\"Y\",\"N\"))","v":"-"},{"$f":"IF($B759=\"N\",\"\",IF(COUNTIF('Enrollment Form'!$DG766:$DP766,\"Other\")=COUNTA('Enrollment Form'!$DK766,'Enrollment Form'!$DH766,'Enrollment Form'!$DN766,'Enrollment Form'!$DQ766),\"Y\",\"N\"))","v":""},{"$f":"IF($B759=\"N\",\"\",IF(OR('Enrollment Form'!B766<>\"Subscriber\",'Enrollment Form'!C766=\"ROC\",COUNTIF('Enrollment Form'!AV766:AW766,\"Yes\")>=1),\"-\",IF(AND('Enrollment Form'!C766=\"Enroll\",COUNTIF('Enrollment Form'!AV766:AW766,\"No\")=2,'Enrollment Form'!AX766=\"\"),\"N\",\"Y\")))","v":""},{"$f":"IF(OR(B759=\"N\",'Enrollment Form'!B766<>\"Subscriber\",'Enrollment Form'!C766=\"ROC\",'Enrollment Form'!O766<>\"Multiple of Salary\"),\"-\",IF(COUNTA('Enrollment Form'!T766:U766)<2,\"N\",\"Y\"))","v":"-"},{"$f":"IF(B759=\"N\",\"\",IF(OR('Enrollment Form'!C766=\"ROC\",'Enrollment Form'!B766<>\"Subscriber\",'Enrollment Form'!O766=\"Waive\",'Enrollment Form'!O766=\"\"),\"-\",IF('Enrollment Form'!P766=\"\",\"N\",\"Y\")))","v":""},{"$f":"IF($B759=\"N\",\"\",IF(AND('Enrollment Form'!$C766=\"ROC\",'Enrollment Form'!$DR766<>\"\"),\"Y\",IF(AND('Enrollment Form'!$C766=\"ROC\",'Enrollment Form'!$DR766=\"\"),\"N\",IF(AND('Enrollment Form'!$C766=\"Enroll\",'Enrollment Form'!$B766=\"Subscriber\",'Enrollment Form'!$CX766=\"No\",'Enrollment Form'!$DR766=\"\"),\"N\",IF(AND('Enrollment Form'!$C766=\"Enroll\",'Enrollment Form'!$B766=\"Subscriber\",'Enrollment Form'!$CX766=\"Yes\"),\"-\",\"Y\")))))","v":""},{"$f":"IF($B759=\"N\",\"\",IF(AND('Enrollment Form'!$C766=\"ROC\",'Enrollment Form'!$DS766<>\"\"),\"Y\",IF(AND('Enrollment Form'!$C766=\"ROC\",'Enrollment Form'!$DS766=\"\"),\"N\",IF(AND('Enrollment Form'!$C766=\"Enroll\",'Enrollment Form'!$B766=\"Subscriber\",'Enrollment Form'!$CX766=\"No\",'Enrollment Form'!$DS766=\"\"),\"N\",IF(AND('Enrollment Form'!$C766=\"Enroll\",'Enrollment Form'!$B766=\"Subscriber\",'Enrollment Form'!$CX766=\"Yes\"),\"-\",\"Y\")))))","v":""},{"$f":"IF('Enrollment Form'!AH766=\"\",\"\",IF(ISERROR(SEARCH(\".\",'Enrollment Form'!AH766,SEARCH(\"@\",'Enrollment Form'!AH766))),\"N\",\"Y\"))","v":""},{"$f":"IF(OR($B759=\"N\",'Enrollment Form'!$G766=\"\"),\"\",IF('Enrollment Form'!$B766<>\"Subscriber\",\"-\",IF(COUNTIF('Enrollment Form'!$AV766:$AW766,\"Yes\")=2,\"N\",\"Y\")))","v":""},{"$f":"IF(OR('Enrollment Form'!$CJ766=\"\",'Enrollment Form'!$CJ766=\"No\"),\"-\",IF(AND('Enrollment Form'!$CJ766=\"Yes\",'Enrollment Form'!$CK766=\"\"),\"N\",\"Y\"))","v":"-"},{"$f":"IF(OR('Enrollment Form'!$CL766=\"\",'Enrollment Form'!$CL766=\"No\"),\"-\",IF(AND('Enrollment Form'!$CL766=\"Yes\",'Enrollment Form'!$CM766=\"\"),\"N\",\"Y\"))","v":"-"},{"$f":"IF(OR('Enrollment Form'!$CN766=\"\",'Enrollment Form'!$CN766=\"No\"),\"-\",IF(AND('Enrollment Form'!$CN766=\"Yes\",'Enrollment Form'!$CO766=\"\"),\"N\",\"Y\"))","v":"-"},{"$f":"IF(OR('Enrollment Form'!$CN766=\"\",'Enrollment Form'!$CN766=\"No\"),\"-\",IF(AND('Enrollment Form'!$CN766=\"Yes\",'Enrollment Form'!$CP766=\"\"),\"N\",\"Y\"))","v":"-"},{"$f":"IF('Enrollment Form'!B766<>\"Subscriber\",\"-\",IF(AND('Enrollment Form'!B766=\"Subscriber\",'Enrollment Form'!C766=\"Enroll\",'Enrollment Form'!AA766=\"\"),\"N\",\"Y\"))","v":"-"},{"$f":"IF(OR('Enrollment Form'!B766=\"Subscriber\",'Enrollment Form'!B766=\"\"),\"-\",IF('Enrollment Form'!BP766=\"\",\"N\",\"Y\"))","v":"-"},{"$f":"IF('Enrollment Form'!B766<>\"Subscriber\",\"-\",IF(AND('Enrollment Form'!B766=\"Subscriber\",'Enrollment Form'!G766=\"\"),\"N\",\"Y\"))","v":"-"},{"$f":"IF('Enrollment Form'!A766=\"\",\"\",IF('Enrollment Form'!B766=\"Subscriber\",\"-\",IF(AND('Enrollment Form'!B766<>\"Subscriber\",'Enrollment Form'!G766='Enrollment Form'!H766),\"N\",\"Y\")))","v":""},0]
[767,{"$f":"IF('Enrollment Form'!$A767<>\"\",\"Y\",\"N\")","v":"N"},{"$f":"IF(AND('Enrollment Form'!$B767=\"\",'Enrollment Form'!$C767<>\"\"),\"N\",IF($B760=\"N\",\"\",\"Y\"))","v":""},{"$f":"IF(OR($B760=\"N\",'Enrollment Form'!G767=\"\"),\"\",IF('Enrollment Form'!$B767<>\"Subscriber\",\"\",IF('Enrollment Form'!$G767='Enrollment Form'!$H767,\"Y\",\"N\")))","v":""},{"$f":"IF($B760=\"N\",\"\",IF(AND(COUNTIFS('Enrollment Form'!$H$11:$H$1000,'Enrollment Form'!$H767,'Enrollment Form'!$B$11:$B$1000,'Enrollment Form'!$B767)>1,'Enrollment Form'!$H767<>\"\"),\"N\",\"Y\"))","v":""},{"$f":"IF($B760=\"N\",\"\",IF(LEN('Enrollment Form'!$Y767)=0,\"\",IF(LEN('Enrollment Form'!$Y767)<>5,\"N\",\"Y\")))","v":""},{"$f":"IF($B760=\"N\",\"\",IF(LEN('Enrollment Form'!$AD767=0),\"\",IF(LEN('Enrollment Form'!$AD767)<>5,\"N\",\"Y\")))","v":""},{"$f":"IF($B760=\"N\",\"\",IF(LEN('Enrollment Form'!$BS767=0),\"\",IF(LEN('Enrollment Form'!$BS767)<>5,\"N\",\"Y\")))","v":""},{"$f":"IF($B760=\"N\",\"\",IF(LEN('Enrollment Form'!$AE767)=0,\"\",IF(LEN('Enrollment Form'!$AE767)<>10,\"N\",\"Y\")))","v":""},{"$f":"IF($B760=\"N\",\"\",IF(LEN('Enrollment Form'!$AF767)=0,\"\",IF(LEN('Enrollment Form'!$AF767)<>10,\"N\",\"Y\")))","v":""},{"$f":"IF('Enrollment Form'!$O767<>\"Graded\",\"-\",IF(AND('Enrollment Form'!$O767=\"Graded\",'Enrollment Form'!$AR767<>\"\"),\"Y\",\"N\"))","v":"-"},{"$f":"IF($B760=\"N\",\"\",IF(OR('Enrollment Form'!$B767<>\"Subscriber\",'Enrollment Form'!$C767=\"ROC\"),\"-\",IF(AND('Enrollment Form'!$B767=\"Subscriber\",'Enrollment Form'!$C767=\"Enroll\",'Enrollment Form'!$AJ767<>\"\"),\"Y\",\"N\")))","v":""},{"$f":"IF($B760=\"N\",\"\",IF(OR('Enrollment Form'!$B767<>\"Subscriber\",'Enrollment Form'!$C767=\"ROC\"),\"-\",IF(AND('Enrollment Form'!$B767=\"Subscriber\",'Enrollment Form'!$C767=\"Enroll\",'Enrollment Form'!$AK767<>\"\"),\"Y\",\"N\")))","v":""},{"$f":"IF($B760=\"N\",\"\",IF(OR('Enrollment Form'!$B767<>\"Subscriber\",'Enrollment Form'!$C767=\"ROC\"),\"-\",IF(AND('Enrollment Form'!$B767=\"Subscriber\",'Enrollment Form'!$C767=\"Enroll\",'Enrollment Form'!$AL767<>\"\"),\"Y\",\"N\")))","v":""},{"$f":"IF($B760=\"N\",\"\",IF(OR('Enrollment Form'!$B767<>\"Subscriber\",'Enrollment Form'!$C767=\"ROC\"),\"-\",IF(AND('Enrollment Form'!$B767=\"Subscriber\",'Enrollment Form'!$C767=\"Enroll\",'Enrollment Form'!$AP767<>\"\"),\"Y\",\"N\")))","v":""},{"$f":"IF($B760=\"N\",\"\",IF(OR('Enrollment Form'!$B767<>\"Subscriber\",'Enrollment Form'!$C767=\"ROC\"),\"-\",IF(AND('Enrollment Form'!$B767=\"Subscriber\",'Enrollment Form'!$C767=\"Enroll\",'Enrollment Form'!$AQ767<>\"\"),\"Y\",\"N\")))","v":""},{"$f":"IF($B760=\"N\",\"\",IF(OR('Enrollment Form'!$B767<>\"Subscriber\",'Enrollment Form'!$C767=\"ROC\"),\"-\",IF(AND('Enrollment Form'!$B767=\"Subscriber\",'Enrollment Form'!$C767=\"Enroll\",'Enrollment Form'!$AS767<>\"\"),\"Y\",\"N\")))","v":""},{"$f":"IF($B760=\"N\",\"\",IF($Q760=\"-\",\"-\",IF(AND($Q760=\"Y\",'Enrollment Form'!$AS767=\"No\"),\"-\",IF(AND($Q760=\"Y\",'Enrollment Form'!$AS767=\"Yes\",'Enrollment Form'!$AT767<>\"\"),\"Y\",\"N\"))))","v":""},{"$f":"IF($B760=\"N\",\"\",IF(OR('Enrollment Form'!$B767<>\"Subscriber\",'Enrollment Form'!$C767=\"ROC\"),\"-\",IF(AND('Enrollment Form'!$B767=\"Subscriber\",'Enrollment Form'!$C767=\"Enroll\",'Enrollment Form'!$CV767<>\"\"),\"Y\",\"N\")))","v":""},{"$f":"IF($B760=\"N\",\"\",IF($S760=\"-\",\"-\",IF(AND($S760=\"Y\",'Enrollment Form'!$CV767=\"No\"),\"-\",IF(AND($S760=\"Y\",'Enrollment Form'!$CV767=\"Yes\",'Enrollment Form'!$CW767<>\"\"),\"Y\",\"N\"))))","v":""},{"$f":"IF(OR('Enrollment Form'!$AY767=\"Yes\",'Enrollment Form'!$AY767=\"\"),\"-\",IF(OR(AND('Enrollment Form'!$AY767=\"No\",ISERROR(FIND(\"HMO\",VLOOKUP('Enrollment Form'!G767,'Enrollment Form'!H$11:J$1000,3,FALSE),1))=FALSE,COUNTA('Enrollment Form'!$AZ767:$BC767)=4),AND('Enrollment Form'!$AY767=\"No\",ISERROR(FIND(\"HMO\",VLOOKUP('Enrollment Form'!G767,'Enrollment Form'!H$11:J$1000,3,FALSE),1))=FALSE,COUNTA('Enrollment Form'!$BT767:$BW767)=4)),\"Y\",\"N\"))","v":"-"},{"$f":"IF($B760=\"N\",\"\",IF('Enrollment Form'!$B767=\"Subscriber\",\"-\",IF(COUNTA('Enrollment Form'!$BL767,'Enrollment Form'!$BN767)=2,\"Y\",\"N\")))","v":""},{"$f":"IF($B760=\"N\",\"\",IF(OR('Enrollment Form'!$AX767=\"\",'Enrollment Form'!$AX767=\"No\"),\"-\",IF(AND('Enrollment Form'!$AX767=\"Yes\",COUNTA('Enrollment Form'!$CR767)=1),\"Y\",\"N\")))","v":""},{"$f":"IF(OR('Enrollment Form'!$CR767=\"\",'Enrollment Form'!$CR767=\"No\"),\"-\",IF(COUNTA('Enrollment Form'!$CT767:$CU767)=2,\"Y\",\"N\"))","v":"-"},{"$f":"IF($B760=\"N\",\"\",IF(COUNTIF('Enrollment Form'!$DG767:$DP767,\"Other\")=COUNTA('Enrollment Form'!$DK767,'Enrollment Form'!$DH767,'Enrollment Form'!$DN767,'Enrollment Form'!$DQ767),\"Y\",\"N\"))","v":""},{"$f":"IF($B760=\"N\",\"\",IF(OR('Enrollment Form'!B767<>\"Subscriber\",'Enrollment Form'!C767=\"ROC\",COUNTIF('Enrollment Form'!AV767:AW767,\"Yes\")>=1),\"-\",IF(AND('Enrollment Form'!C767=\"Enroll\",COUNTIF('Enrollment Form'!AV767:AW767,\"No\")=2,'Enrollment Form'!AX767=\"\"),\"N\",\"Y\")))","v":""},{"$f":"IF(OR(B760=\"N\",'Enrollment Form'!B767<>\"Subscriber\",'Enrollment Form'!C767=\"ROC\",'Enrollment Form'!O767<>\"Multiple of Salary\"),\"-\",IF(COUNTA('Enrollment Form'!T767:U767)<2,\"N\",\"Y\"))","v":"-"},{"$f":"IF(B760=\"N\",\"\",IF(OR('Enrollment Form'!C767=\"ROC\",'Enrollment Form'!B767<>\"Subscriber\",'Enrollment Form'!O767=\"Waive\",'Enrollment Form'!O767=\"\"),\"-\",IF('Enrollment Form'!P767=\"\",\"N\",\"Y\")))","v":""},{"$f":"IF($B760=\"N\",\"\",IF(AND('Enrollment Form'!$C767=\"ROC\",'Enrollment Form'!$DR767<>\"\"),\"Y\",IF(AND('Enrollment Form'!$C767=\"ROC\",'Enrollment Form'!$DR767=\"\"),\"N\",IF(AND('Enrollment Form'!$C767=\"Enroll\",'Enrollment Form'!$B767=\"Subscriber\",'Enrollment Form'!$CX767=\"No\",'Enrollment Form'!$DR767=\"\"),\"N\",IF(AND('Enrollment Form'!$C767=\"Enroll\",'Enrollment Form'!$B767=\"Subscriber\",'Enrollment Form'!$CX767=\"Yes\"),\"-\",\"Y\")))))","v":""},{"$f":"IF($B760=\"N\",\"\",IF(AND('Enrollment Form'!$C767=\"ROC\",'Enrollment Form'!$DS767<>\"\"),\"Y\",IF(AND('Enrollment Form'!$C767=\"ROC\",'Enrollment Form'!$DS767=\"\"),\"N\",IF(AND('Enrollment Form'!$C767=\"Enroll\",'Enrollment Form'!$B767=\"Subscriber\",'Enrollment Form'!$CX767=\"No\",'Enrollment Form'!$DS767=\"\"),\"N\",IF(AND('Enrollment Form'!$C767=\"Enroll\",'Enrollment Form'!$B767=\"Subscriber\",'Enrollment Form'!$CX767=\"Yes\"),\"-\",\"Y\")))))","v":""},{"$f":"IF('Enrollment Form'!AH767=\"\",\"\",IF(ISERROR(SEARCH(\".\",'Enrollment Form'!AH767,SEARCH(\"@\",'Enrollment Form'!AH767))),\"N\",\"Y\"))","v":""},{"$f":"IF(OR($B760=\"N\",'Enrollment Form'!$G767=\"\"),\"\",IF('Enrollment Form'!$B767<>\"Subscriber\",\"-\",IF(COUNTIF('Enrollment Form'!$AV767:$AW767,\"Yes\")=2,\"N\",\"Y\")))","v":""},{"$f":"IF(OR('Enrollment Form'!$CJ767=\"\",'Enrollment Form'!$CJ767=\"No\"),\"-\",IF(AND('Enrollment Form'!$CJ767=\"Yes\",'Enrollment Form'!$CK767=\"\"),\"N\",\"Y\"))","v":"-"},{"$f":"IF(OR('Enrollment Form'!$CL767=\"\",'Enrollment Form'!$CL767=\"No\"),\"-\",IF(AND('Enrollment Form'!$CL767=\"Yes\",'Enrollment Form'!$CM767=\"\"),\"N\",\"Y\"))","v":"-"},{"$f":"IF(OR('Enrollment Form'!$CN767=\"\",'Enrollment Form'!$CN767=\"No\"),\"-\",IF(AND('Enrollment Form'!$CN767=\"Yes\",'Enrollment Form'!$CO767=\"\"),\"N\",\"Y\"))","v":"-"},{"$f":"IF(OR('Enrollment Form'!$CN767=\"\",'Enrollment Form'!$CN767=\"No\"),\"-\",IF(AND('Enrollment Form'!$CN767=\"Yes\",'Enrollment Form'!$CP767=\"\"),\"N\",\"Y\"))","v":"-"},{"$f":"IF('Enrollment Form'!B767<>\"Subscriber\",\"-\",IF(AND('Enrollment Form'!B767=\"Subscriber\",'Enrollment Form'!C767=\"Enroll\",'Enrollment Form'!AA767=\"\"),\"N\",\"Y\"))","v":"-"},{"$f":"IF(OR('Enrollment Form'!B767=\"Subscriber\",'Enrollment Form'!B767=\"\"),\"-\",IF('Enrollment Form'!BP767=\"\",\"N\",\"Y\"))","v":"-"},{"$f":"IF('Enrollment Form'!B767<>\"Subscriber\",\"-\",IF(AND('Enrollment Form'!B767=\"Subscriber\",'Enrollment Form'!G767=\"\"),\"N\",\"Y\"))","v":"-"},{"$f":"IF('Enrollment Form'!A767=\"\",\"\",IF('Enrollment Form'!B767=\"Subscriber\",\"-\",IF(AND('Enrollment Form'!B767<>\"Subscriber\",'Enrollment Form'!G767='Enrollment Form'!H767),\"N\",\"Y\")))","v":""},0]
[768,{"$f":"IF('Enrollment Form'!$A768<>\"\",\"Y\",\"N\")","v":"N"},{"$f":"IF(AND('Enrollment Form'!$B768=\"\",'Enrollment Form'!$C768<>\"\"),\"N\",IF($B761=\"N\",\"\",\"Y\"))","v":""},{"$f":"IF(OR($B761=\"N\",'Enrollment Form'!G768=\"\"),\"\",IF('Enrollment Form'!$B768<>\"Subscriber\",\"\",IF('Enrollment Form'!$G768='Enrollment Form'!$H768,\"Y\",\"N\")))","v":""},{"$f":"IF($B761=\"N\",\"\",IF(AND(COUNTIFS('Enrollment Form'!$H$11:$H$1000,'Enrollment Form'!$H768,'Enrollment Form'!$B$11:$B$1000,'Enrollment Form'!$B768)>1,'Enrollment Form'!$H768<>\"\"),\"N\",\"Y\"))","v":""},{"$f":"IF($B761=\"N\",\"\",IF(LEN('Enrollment Form'!$Y768)=0,\"\",IF(LEN('Enrollment Form'!$Y768)<>5,\"N\",\"Y\")))","v":""},{"$f":"IF($B761=\"N\",\"\",IF(LEN('Enrollment Form'!$AD768=0),\"\",IF(LEN('Enrollment Form'!$AD768)<>5,\"N\",\"Y\")))","v":""},{"$f":"IF($B761=\"N\",\"\",IF(LEN('Enrollment Form'!$BS768=0),\"\",IF(LEN('Enrollment Form'!$BS768)<>5,\"N\",\"Y\")))","v":""},{"$f":"IF($B761=\"N\",\"\",IF(LEN('Enrollment Form'!$AE768)=0,\"\",IF(LEN('Enrollment Form'!$AE768)<>10,\"N\",\"Y\")))","v":""},{"$f":"IF($B761=\"N\",\"\",IF(LEN('Enrollment Form'!$AF768)=0,\"\",IF(LEN('Enrollment Form'!$AF768)<>10,\"N\",\"Y\")))","v":""},{"$f":"IF('Enrollment Form'!$O768<>\"Graded\",\"-\",IF(AND('Enrollment Form'!$O768=\"Graded\",'Enrollment Form'!$AR768<>\"\"),\"Y\",\"N\"))","v":"-"},{"$f":"IF($B761=\"N\",\"\",IF(OR('Enrollment Form'!$B768<>\"Subscriber\",'Enrollment Form'!$C768=\"ROC\"),\"-\",IF(AND('Enrollment Form'!$B768=\"Subscriber\",'Enrollment Form'!$C768=\"Enroll\",'Enrollment Form'!$AJ768<>\"\"),\"Y\",\"N\")))","v":""},{"$f":"IF($B761=\"N\",\"\",IF(OR('Enrollment Form'!$B768<>\"Subscriber\",'Enrollment Form'!$C768=\"ROC\"),\"-\",IF(AND('Enrollment Form'!$B768=\"Subscriber\",'Enrollment Form'!$C768=\"Enroll\",'Enrollment Form'!$AK768<>\"\"),\"Y\",\"N\")))","v":""},{"$f":"IF($B761=\"N\",\"\",IF(OR('Enrollment Form'!$B768<>\"Subscriber\",'Enrollment Form'!$C768=\"ROC\"),\"-\",IF(AND('Enrollment Form'!$B768=\"Subscriber\",'Enrollment Form'!$C768=\"Enroll\",'Enrollment Form'!$AL768<>\"\"),\"Y\",\"N\")))","v":""},{"$f":"IF($B761=\"N\",\"\",IF(OR('Enrollment Form'!$B768<>\"Subscriber\",'Enrollment Form'!$C768=\"ROC\"),\"-\",IF(AND('Enrollment Form'!$B768=\"Subscriber\",'Enrollment Form'!$C768=\"Enroll\",'Enrollment Form'!$AP768<>\"\"),\"Y\",\"N\")))","v":""},{"$f":"IF($B761=\"N\",\"\",IF(OR('Enrollment Form'!$B768<>\"Subscriber\",'Enrollment Form'!$C768=\"ROC\"),\"-\",IF(AND('Enrollment Form'!$B768=\"Subscriber\",'Enrollment Form'!$C768=\"Enroll\",'Enrollment Form'!$AQ768<>\"\"),\"Y\",\"N\")))","v":""},{"$f":"IF($B761=\"N\",\"\",IF(OR('Enrollment Form'!$B768<>\"Subscriber\",'Enrollment Form'!$C768=\"ROC\"),\"-\",IF(AND('Enrollment Form'!$B768=\"Subscriber\",'Enrollment Form'!$C768=\"Enroll\",'Enrollment Form'!$AS768<>\"\"),\"Y\",\"N\")))","v":""},{"$f":"IF($B761=\"N\",\"\",IF($Q761=\"-\",\"-\",IF(AND($Q761=\"Y\",'Enrollment Form'!$AS768=\"No\"),\"-\",IF(AND($Q761=\"Y\",'Enrollment Form'!$AS768=\"Yes\",'Enrollment Form'!$AT768<>\"\"),\"Y\",\"N\"))))","v":""},{"$f":"IF($B761=\"N\",\"\",IF(OR('Enrollment Form'!$B768<>\"Subscriber\",'Enrollment Form'!$C768=\"ROC\"),\"-\",IF(AND('Enrollment Form'!$B768=\"Subscriber\",'Enrollment Form'!$C768=\"Enroll\",'Enrollment Form'!$CV768<>\"\"),\"Y\",\"N\")))","v":""},{"$f":"IF($B761=\"N\",\"\",IF($S761=\"-\",\"-\",IF(AND($S761=\"Y\",'Enrollment Form'!$CV768=\"No\"),\"-\",IF(AND($S761=\"Y\",'Enrollment Form'!$CV768=\"Yes\",'Enrollment Form'!$CW768<>\"\"),\"Y\",\"N\"))))","v":""},{"$f":"IF(OR('Enrollment Form'!$AY768=\"Yes\",'Enrollment Form'!$AY768=\"\"),\"-\",IF(OR(AND('Enrollment Form'!$AY768=\"No\",ISERROR(FIND(\"HMO\",VLOOKUP('Enrollment Form'!G768,'Enrollment Form'!H$11:J$1000,3,FALSE),1))=FALSE,COUNTA('Enrollment Form'!$AZ768:$BC768)=4),AND('Enrollment Form'!$AY768=\"No\",ISERROR(FIND(\"HMO\",VLOOKUP('Enrollment Form'!G768,'Enrollment Form'!H$11:J$1000,3,FALSE),1))=FALSE,COUNTA('Enrollment Form'!$BT768:$BW768)=4)),\"Y\",\"N\"))","v":"-"},{"$f":"IF($B761=\"N\",\"\",IF('Enrollment Form'!$B768=\"Subscriber\",\"-\",IF(COUNTA('Enrollment Form'!$BL768,'Enrollment Form'!$BN768)=2,\"Y\",\"N\")))","v":""},{"$f":"IF($B761=\"N\",\"\",IF(OR('Enrollment Form'!$AX768=\"\",'Enrollment Form'!$AX768=\"No\"),\"-\",IF(AND('Enrollment Form'!$AX768=\"Yes\",COUNTA('Enrollment Form'!$CR768)=1),\"Y\",\"N\")))","v":""},{"$f":"IF(OR('Enrollment Form'!$CR768=\"\",'Enrollment Form'!$CR768=\"No\"),\"-\",IF(COUNTA('Enrollment Form'!$CT768:$CU768)=2,\"Y\",\"N\"))","v":"-"},{"$f":"IF($B761=\"N\",\"\",IF(COUNTIF('Enrollment Form'!$DG768:$DP768,\"Other\")=COUNTA('Enrollment Form'!$DK768,'Enrollment Form'!$DH768,'Enrollment Form'!$DN768,'Enrollment Form'!$DQ768),\"Y\",\"N\"))","v":""},{"$f":"IF($B761=\"N\",\"\",IF(OR('Enrollment Form'!B768<>\"Subscriber\",'Enrollment Form'!C768=\"ROC\",COUNTIF('Enrollment Form'!AV768:AW768,\"Yes\")>=1),\"-\",IF(AND('Enrollment Form'!C768=\"Enroll\",COUNTIF('Enrollment Form'!AV768:AW768,\"No\")=2,'Enrollment Form'!AX768=\"\"),\"N\",\"Y\")))","v":""},{"$f":"IF(OR(B761=\"N\",'Enrollment Form'!B768<>\"Subscriber\",'Enrollment Form'!C768=\"ROC\",'Enrollment Form'!O768<>\"Multiple of Salary\"),\"-\",IF(COUNTA('Enrollment Form'!T768:U768)<2,\"N\",\"Y\"))","v":"-"},{"$f":"IF(B761=\"N\",\"\",IF(OR('Enrollment Form'!C768=\"ROC\",'Enrollment Form'!B768<>\"Subscriber\",'Enrollment Form'!O768=\"Waive\",'Enrollment Form'!O768=\"\"),\"-\",IF('Enrollment Form'!P768=\"\",\"N\",\"Y\")))","v":""},{"$f":"IF($B761=\"N\",\"\",IF(AND('Enrollment Form'!$C768=\"ROC\",'Enrollment Form'!$DR768<>\"\"),\"Y\",IF(AND('Enrollment Form'!$C768=\"ROC\",'Enrollment Form'!$DR768=\"\"),\"N\",IF(AND('Enrollment Form'!$C768=\"Enroll\",'Enrollment Form'!$B768=\"Subscriber\",'Enrollment Form'!$CX768=\"No\",'Enrollment Form'!$DR768=\"\"),\"N\",IF(AND('Enrollment Form'!$C768=\"Enroll\",'Enrollment Form'!$B768=\"Subscriber\",'Enrollment Form'!$CX768=\"Yes\"),\"-\",\"Y\")))))","v":""},{"$f":"IF($B761=\"N\",\"\",IF(AND('Enrollment Form'!$C768=\"ROC\",'Enrollment Form'!$DS768<>\"\"),\"Y\",IF(AND('Enrollment Form'!$C768=\"ROC\",'Enrollment Form'!$DS768=\"\"),\"N\",IF(AND('Enrollment Form'!$C768=\"Enroll\",'Enrollment Form'!$B768=\"Subscriber\",'Enrollment Form'!$CX768=\"No\",'Enrollment Form'!$DS768=\"\"),\"N\",IF(AND('Enrollment Form'!$C768=\"Enroll\",'Enrollment Form'!$B768=\"Subscriber\",'Enrollment Form'!$CX768=\"Yes\"),\"-\",\"Y\")))))","v":""},{"$f":"IF('Enrollment Form'!AH768=\"\",\"\",IF(ISERROR(SEARCH(\".\",'Enrollment Form'!AH768,SEARCH(\"@\",'Enrollment Form'!AH768))),\"N\",\"Y\"))","v":""},{"$f":"IF(OR($B761=\"N\",'Enrollment Form'!$G768=\"\"),\"\",IF('Enrollment Form'!$B768<>\"Subscriber\",\"-\",IF(COUNTIF('Enrollment Form'!$AV768:$AW768,\"Yes\")=2,\"N\",\"Y\")))","v":""},{"$f":"IF(OR('Enrollment Form'!$CJ768=\"\",'Enrollment Form'!$CJ768=\"No\"),\"-\",IF(AND('Enrollment Form'!$CJ768=\"Yes\",'Enrollment Form'!$CK768=\"\"),\"N\",\"Y\"))","v":"-"},{"$f":"IF(OR('Enrollment Form'!$CL768=\"\",'Enrollment Form'!$CL768=\"No\"),\"-\",IF(AND('Enrollment Form'!$CL768=\"Yes\",'Enrollment Form'!$CM768=\"\"),\"N\",\"Y\"))","v":"-"},{"$f":"IF(OR('Enrollment Form'!$CN768=\"\",'Enrollment Form'!$CN768=\"No\"),\"-\",IF(AND('Enrollment Form'!$CN768=\"Yes\",'Enrollment Form'!$CO768=\"\"),\"N\",\"Y\"))","v":"-"},{"$f":"IF(OR('Enrollment Form'!$CN768=\"\",'Enrollment Form'!$CN768=\"No\"),\"-\",IF(AND('Enrollment Form'!$CN768=\"Yes\",'Enrollment Form'!$CP768=\"\"),\"N\",\"Y\"))","v":"-"},{"$f":"IF('Enrollment Form'!B768<>\"Subscriber\",\"-\",IF(AND('Enrollment Form'!B768=\"Subscriber\",'Enrollment Form'!C768=\"Enroll\",'Enrollment Form'!AA768=\"\"),\"N\",\"Y\"))","v":"-"},{"$f":"IF(OR('Enrollment Form'!B768=\"Subscriber\",'Enrollment Form'!B768=\"\"),\"-\",IF('Enrollment Form'!BP768=\"\",\"N\",\"Y\"))","v":"-"},{"$f":"IF('Enrollment Form'!B768<>\"Subscriber\",\"-\",IF(AND('Enrollment Form'!B768=\"Subscriber\",'Enrollment Form'!G768=\"\"),\"N\",\"Y\"))","v":"-"},{"$f":"IF('Enrollment Form'!A768=\"\",\"\",IF('Enrollment Form'!B768=\"Subscriber\",\"-\",IF(AND('Enrollment Form'!B768<>\"Subscriber\",'Enrollment Form'!G768='Enrollment Form'!H768),\"N\",\"Y\")))","v":""},0]
[769,{"$f":"IF('Enrollment Form'!$A769<>\"\",\"Y\",\"N\")","v":"N"},{"$f":"IF(AND('Enrollment Form'!$B769=\"\",'Enrollment Form'!$C769<>\"\"),\"N\",IF($B762=\"N\",\"\",\"Y\"))","v":""},{"$f":"IF(OR($B762=\"N\",'Enrollment Form'!G769=\"\"),\"\",IF('Enrollment Form'!$B769<>\"Subscriber\",\"\",IF('Enrollment Form'!$G769='Enrollment Form'!$H769,\"Y\",\"N\")))","v":""},{"$f":"IF($B762=\"N\",\"\",IF(AND(COUNTIFS('Enrollment Form'!$H$11:$H$1000,'Enrollment Form'!$H769,'Enrollment Form'!$B$11:$B$1000,'Enrollment Form'!$B769)>1,'Enrollment Form'!$H769<>\"\"),\"N\",\"Y\"))","v":""},{"$f":"IF($B762=\"N\",\"\",IF(LEN('Enrollment Form'!$Y769)=0,\"\",IF(LEN('Enrollment Form'!$Y769)<>5,\"N\",\"Y\")))","v":""},{"$f":"IF($B762=\"N\",\"\",IF(LEN('Enrollment Form'!$AD769=0),\"\",IF(LEN('Enrollment Form'!$AD769)<>5,\"N\",\"Y\")))","v":""},{"$f":"IF($B762=\"N\",\"\",IF(LEN('Enrollment Form'!$BS769=0),\"\",IF(LEN('Enrollment Form'!$BS769)<>5,\"N\",\"Y\")))","v":""},{"$f":"IF($B762=\"N\",\"\",IF(LEN('Enrollment Form'!$AE769)=0,\"\",IF(LEN('Enrollment Form'!$AE769)<>10,\"N\",\"Y\")))","v":""},{"$f":"IF($B762=\"N\",\"\",IF(LEN('Enrollment Form'!$AF769)=0,\"\",IF(LEN('Enrollment Form'!$AF769)<>10,\"N\",\"Y\")))","v":""},{"$f":"IF('Enrollment Form'!$O769<>\"Graded\",\"-\",IF(AND('Enrollment Form'!$O769=\"Graded\",'Enrollment Form'!$AR769<>\"\"),\"Y\",\"N\"))","v":"-"},{"$f":"IF($B762=\"N\",\"\",IF(OR('Enrollment Form'!$B769<>\"Subscriber\",'Enrollment Form'!$C769=\"ROC\"),\"-\",IF(AND('Enrollment Form'!$B769=\"Subscriber\",'Enrollment Form'!$C769=\"Enroll\",'Enrollment Form'!$AJ769<>\"\"),\"Y\",\"N\")))","v":""},{"$f":"IF($B762=\"N\",\"\",IF(OR('Enrollment Form'!$B769<>\"Subscriber\",'Enrollment Form'!$C769=\"ROC\"),\"-\",IF(AND('Enrollment Form'!$B769=\"Subscriber\",'Enrollment Form'!$C769=\"Enroll\",'Enrollment Form'!$AK769<>\"\"),\"Y\",\"N\")))","v":""},{"$f":"IF($B762=\"N\",\"\",IF(OR('Enrollment Form'!$B769<>\"Subscriber\",'Enrollment Form'!$C769=\"ROC\"),\"-\",IF(AND('Enrollment Form'!$B769=\"Subscriber\",'Enrollment Form'!$C769=\"Enroll\",'Enrollment Form'!$AL769<>\"\"),\"Y\",\"N\")))","v":""},{"$f":"IF($B762=\"N\",\"\",IF(OR('Enrollment Form'!$B769<>\"Subscriber\",'Enrollment Form'!$C769=\"ROC\"),\"-\",IF(AND('Enrollment Form'!$B769=\"Subscriber\",'Enrollment Form'!$C769=\"Enroll\",'Enrollment Form'!$AP769<>\"\"),\"Y\",\"N\")))","v":""},{"$f":"IF($B762=\"N\",\"\",IF(OR('Enrollment Form'!$B769<>\"Subscriber\",'Enrollment Form'!$C769=\"ROC\"),\"-\",IF(AND('Enrollment Form'!$B769=\"Subscriber\",'Enrollment Form'!$C769=\"Enroll\",'Enrollment Form'!$AQ769<>\"\"),\"Y\",\"N\")))","v":""},{"$f":"IF($B762=\"N\",\"\",IF(OR('Enrollment Form'!$B769<>\"Subscriber\",'Enrollment Form'!$C769=\"ROC\"),\"-\",IF(AND('Enrollment Form'!$B769=\"Subscriber\",'Enrollment Form'!$C769=\"Enroll\",'Enrollment Form'!$AS769<>\"\"),\"Y\",\"N\")))","v":""},{"$f":"IF($B762=\"N\",\"\",IF($Q762=\"-\",\"-\",IF(AND($Q762=\"Y\",'Enrollment Form'!$AS769=\"No\"),\"-\",IF(AND($Q762=\"Y\",'Enrollment Form'!$AS769=\"Yes\",'Enrollment Form'!$AT769<>\"\"),\"Y\",\"N\"))))","v":""},{"$f":"IF($B762=\"N\",\"\",IF(OR('Enrollment Form'!$B769<>\"Subscriber\",'Enrollment Form'!$C769=\"ROC\"),\"-\",IF(AND('Enrollment Form'!$B769=\"Subscriber\",'Enrollment Form'!$C769=\"Enroll\",'Enrollment Form'!$CV769<>\"\"),\"Y\",\"N\")))","v":""},{"$f":"IF($B762=\"N\",\"\",IF($S762=\"-\",\"-\",IF(AND($S762=\"Y\",'Enrollment Form'!$CV769=\"No\"),\"-\",IF(AND($S762=\"Y\",'Enrollment Form'!$CV769=\"Yes\",'Enrollment Form'!$CW769<>\"\"),\"Y\",\"N\"))))","v":""},{"$f":"IF(OR('Enrollment Form'!$AY769=\"Yes\",'Enrollment Form'!$AY769=\"\"),\"-\",IF(OR(AND('Enrollment Form'!$AY769=\"No\",ISERROR(FIND(\"HMO\",VLOOKUP('Enrollment Form'!G769,'Enrollment Form'!H$11:J$1000,3,FALSE),1))=FALSE,COUNTA('Enrollment Form'!$AZ769:$BC769)=4),AND('Enrollment Form'!$AY769=\"No\",ISERROR(FIND(\"HMO\",VLOOKUP('Enrollment Form'!G769,'Enrollment Form'!H$11:J$1000,3,FALSE),1))=FALSE,COUNTA('Enrollment Form'!$BT769:$BW769)=4)),\"Y\",\"N\"))","v":"-"},{"$f":"IF($B762=\"N\",\"\",IF('Enrollment Form'!$B769=\"Subscriber\",\"-\",IF(COUNTA('Enrollment Form'!$BL769,'Enrollment Form'!$BN769)=2,\"Y\",\"N\")))","v":""},{"$f":"IF($B762=\"N\",\"\",IF(OR('Enrollment Form'!$AX769=\"\",'Enrollment Form'!$AX769=\"No\"),\"-\",IF(AND('Enrollment Form'!$AX769=\"Yes\",COUNTA('Enrollment Form'!$CR769)=1),\"Y\",\"N\")))","v":""},{"$f":"IF(OR('Enrollment Form'!$CR769=\"\",'Enrollment Form'!$CR769=\"No\"),\"-\",IF(COUNTA('Enrollment Form'!$CT769:$CU769)=2,\"Y\",\"N\"))","v":"-"},{"$f":"IF($B762=\"N\",\"\",IF(COUNTIF('Enrollment Form'!$DG769:$DP769,\"Other\")=COUNTA('Enrollment Form'!$DK769,'Enrollment Form'!$DH769,'Enrollment Form'!$DN769,'Enrollment Form'!$DQ769),\"Y\",\"N\"))","v":""},{"$f":"IF($B762=\"N\",\"\",IF(OR('Enrollment Form'!B769<>\"Subscriber\",'Enrollment Form'!C769=\"ROC\",COUNTIF('Enrollment Form'!AV769:AW769,\"Yes\")>=1),\"-\",IF(AND('Enrollment Form'!C769=\"Enroll\",COUNTIF('Enrollment Form'!AV769:AW769,\"No\")=2,'Enrollment Form'!AX769=\"\"),\"N\",\"Y\")))","v":""},{"$f":"IF(OR(B762=\"N\",'Enrollment Form'!B769<>\"Subscriber\",'Enrollment Form'!C769=\"ROC\",'Enrollment Form'!O769<>\"Multiple of Salary\"),\"-\",IF(COUNTA('Enrollment Form'!T769:U769)<2,\"N\",\"Y\"))","v":"-"},{"$f":"IF(B762=\"N\",\"\",IF(OR('Enrollment Form'!C769=\"ROC\",'Enrollment Form'!B769<>\"Subscriber\",'Enrollment Form'!O769=\"Waive\",'Enrollment Form'!O769=\"\"),\"-\",IF('Enrollment Form'!P769=\"\",\"N\",\"Y\")))","v":""},{"$f":"IF($B762=\"N\",\"\",IF(AND('Enrollment Form'!$C769=\"ROC\",'Enrollment Form'!$DR769<>\"\"),\"Y\",IF(AND('Enrollment Form'!$C769=\"ROC\",'Enrollment Form'!$DR769=\"\"),\"N\",IF(AND('Enrollment Form'!$C769=\"Enroll\",'Enrollment Form'!$B769=\"Subscriber\",'Enrollment Form'!$CX769=\"No\",'Enrollment Form'!$DR769=\"\"),\"N\",IF(AND('Enrollment Form'!$C769=\"Enroll\",'Enrollment Form'!$B769=\"Subscriber\",'Enrollment Form'!$CX769=\"Yes\"),\"-\",\"Y\")))))","v":""},{"$f":"IF($B762=\"N\",\"\",IF(AND('Enrollment Form'!$C769=\"ROC\",'Enrollment Form'!$DS769<>\"\"),\"Y\",IF(AND('Enrollment Form'!$C769=\"ROC\",'Enrollment Form'!$DS769=\"\"),\"N\",IF(AND('Enrollment Form'!$C769=\"Enroll\",'Enrollment Form'!$B769=\"Subscriber\",'Enrollment Form'!$CX769=\"No\",'Enrollment Form'!$DS769=\"\"),\"N\",IF(AND('Enrollment Form'!$C769=\"Enroll\",'Enrollment Form'!$B769=\"Subscriber\",'Enrollment Form'!$CX769=\"Yes\"),\"-\",\"Y\")))))","v":""},{"$f":"IF('Enrollment Form'!AH769=\"\",\"\",IF(ISERROR(SEARCH(\".\",'Enrollment Form'!AH769,SEARCH(\"@\",'Enrollment Form'!AH769))),\"N\",\"Y\"))","v":""},{"$f":"IF(OR($B762=\"N\",'Enrollment Form'!$G769=\"\"),\"\",IF('Enrollment Form'!$B769<>\"Subscriber\",\"-\",IF(COUNTIF('Enrollment Form'!$AV769:$AW769,\"Yes\")=2,\"N\",\"Y\")))","v":""},{"$f":"IF(OR('Enrollment Form'!$CJ769=\"\",'Enrollment Form'!$CJ769=\"No\"),\"-\",IF(AND('Enrollment Form'!$CJ769=\"Yes\",'Enrollment Form'!$CK769=\"\"),\"N\",\"Y\"))","v":"-"},{"$f":"IF(OR('Enrollment Form'!$CL769=\"\",'Enrollment Form'!$CL769=\"No\"),\"-\",IF(AND('Enrollment Form'!$CL769=\"Yes\",'Enrollment Form'!$CM769=\"\"),\"N\",\"Y\"))","v":"-"},{"$f":"IF(OR('Enrollment Form'!$CN769=\"\",'Enrollment Form'!$CN769=\"No\"),\"-\",IF(AND('Enrollment Form'!$CN769=\"Yes\",'Enrollment Form'!$CO769=\"\"),\"N\",\"Y\"))","v":"-"},{"$f":"IF(OR('Enrollment Form'!$CN769=\"\",'Enrollment Form'!$CN769=\"No\"),\"-\",IF(AND('Enrollment Form'!$CN769=\"Yes\",'Enrollment Form'!$CP769=\"\"),\"N\",\"Y\"))","v":"-"},{"$f":"IF('Enrollment Form'!B769<>\"Subscriber\",\"-\",IF(AND('Enrollment Form'!B769=\"Subscriber\",'Enrollment Form'!C769=\"Enroll\",'Enrollment Form'!AA769=\"\"),\"N\",\"Y\"))","v":"-"},{"$f":"IF(OR('Enrollment Form'!B769=\"Subscriber\",'Enrollment Form'!B769=\"\"),\"-\",IF('Enrollment Form'!BP769=\"\",\"N\",\"Y\"))","v":"-"},{"$f":"IF('Enrollment Form'!B769<>\"Subscriber\",\"-\",IF(AND('Enrollment Form'!B769=\"Subscriber\",'Enrollment Form'!G769=\"\"),\"N\",\"Y\"))","v":"-"},{"$f":"IF('Enrollment Form'!A769=\"\",\"\",IF('Enrollment Form'!B769=\"Subscriber\",\"-\",IF(AND('Enrollment Form'!B769<>\"Subscriber\",'Enrollment Form'!G769='Enrollment Form'!H769),\"N\",\"Y\")))","v":""},0]
[770,{"$f":"IF('Enrollment Form'!$A770<>\"\",\"Y\",\"N\")","v":"N"},{"$f":"IF(AND('Enrollment Form'!$B770=\"\",'Enrollment Form'!$C770<>\"\"),\"N\",IF($B763=\"N\",\"\",\"Y\"))","v":""},{"$f":"IF(OR($B763=\"N\",'Enrollment Form'!G770=\"\"),\"\",IF('Enrollment Form'!$B770<>\"Subscriber\",\"\",IF('Enrollment Form'!$G770='Enrollment Form'!$H770,\"Y\",\"N\")))","v":""},{"$f":"IF($B763=\"N\",\"\",IF(AND(COUNTIFS('Enrollment Form'!$H$11:$H$1000,'Enrollment Form'!$H770,'Enrollment Form'!$B$11:$B$1000,'Enrollment Form'!$B770)>1,'Enrollment Form'!$H770<>\"\"),\"N\",\"Y\"))","v":""},{"$f":"IF($B763=\"N\",\"\",IF(LEN('Enrollment Form'!$Y770)=0,\"\",IF(LEN('Enrollment Form'!$Y770)<>5,\"N\",\"Y\")))","v":""},{"$f":"IF($B763=\"N\",\"\",IF(LEN('Enrollment Form'!$AD770=0),\"\",IF(LEN('Enrollment Form'!$AD770)<>5,\"N\",\"Y\")))","v":""},{"$f":"IF($B763=\"N\",\"\",IF(LEN('Enrollment Form'!$BS770=0),\"\",IF(LEN('Enrollment Form'!$BS770)<>5,\"N\",\"Y\")))","v":""},{"$f":"IF($B763=\"N\",\"\",IF(LEN('Enrollment Form'!$AE770)=0,\"\",IF(LEN('Enrollment Form'!$AE770)<>10,\"N\",\"Y\")))","v":""},{"$f":"IF($B763=\"N\",\"\",IF(LEN('Enrollment Form'!$AF770)=0,\"\",IF(LEN('Enrollment Form'!$AF770)<>10,\"N\",\"Y\")))","v":""},{"$f":"IF('Enrollment Form'!$O770<>\"Graded\",\"-\",IF(AND('Enrollment Form'!$O770=\"Graded\",'Enrollment Form'!$AR770<>\"\"),\"Y\",\"N\"))","v":"-"},{"$f":"IF($B763=\"N\",\"\",IF(OR('Enrollment Form'!$B770<>\"Subscriber\",'Enrollment Form'!$C770=\"ROC\"),\"-\",IF(AND('Enrollment Form'!$B770=\"Subscriber\",'Enrollment Form'!$C770=\"Enroll\",'Enrollment Form'!$AJ770<>\"\"),\"Y\",\"N\")))","v":""},{"$f":"IF($B763=\"N\",\"\",IF(OR('Enrollment Form'!$B770<>\"Subscriber\",'Enrollment Form'!$C770=\"ROC\"),\"-\",IF(AND('Enrollment Form'!$B770=\"Subscriber\",'Enrollment Form'!$C770=\"Enroll\",'Enrollment Form'!$AK770<>\"\"),\"Y\",\"N\")))","v":""},{"$f":"IF($B763=\"N\",\"\",IF(OR('Enrollment Form'!$B770<>\"Subscriber\",'Enrollment Form'!$C770=\"ROC\"),\"-\",IF(AND('Enrollment Form'!$B770=\"Subscriber\",'Enrollment Form'!$C770=\"Enroll\",'Enrollment Form'!$AL770<>\"\"),\"Y\",\"N\")))","v":""},{"$f":"IF($B763=\"N\",\"\",IF(OR('Enrollment Form'!$B770<>\"Subscriber\",'Enrollment Form'!$C770=\"ROC\"),\"-\",IF(AND('Enrollment Form'!$B770=\"Subscriber\",'Enrollment Form'!$C770=\"Enroll\",'Enrollment Form'!$AP770<>\"\"),\"Y\",\"N\")))","v":""},{"$f":"IF($B763=\"N\",\"\",IF(OR('Enrollment Form'!$B770<>\"Subscriber\",'Enrollment Form'!$C770=\"ROC\"),\"-\",IF(AND('Enrollment Form'!$B770=\"Subscriber\",'Enrollment Form'!$C770=\"Enroll\",'Enrollment Form'!$AQ770<>\"\"),\"Y\",\"N\")))","v":""},{"$f":"IF($B763=\"N\",\"\",IF(OR('Enrollment Form'!$B770<>\"Subscriber\",'Enrollment Form'!$C770=\"ROC\"),\"-\",IF(AND('Enrollment Form'!$B770=\"Subscriber\",'Enrollment Form'!$C770=\"Enroll\",'Enrollment Form'!$AS770<>\"\"),\"Y\",\"N\")))","v":""},{"$f":"IF($B763=\"N\",\"\",IF($Q763=\"-\",\"-\",IF(AND($Q763=\"Y\",'Enrollment Form'!$AS770=\"No\"),\"-\",IF(AND($Q763=\"Y\",'Enrollment Form'!$AS770=\"Yes\",'Enrollment Form'!$AT770<>\"\"),\"Y\",\"N\"))))","v":""},{"$f":"IF($B763=\"N\",\"\",IF(OR('Enrollment Form'!$B770<>\"Subscriber\",'Enrollment Form'!$C770=\"ROC\"),\"-\",IF(AND('Enrollment Form'!$B770=\"Subscriber\",'Enrollment Form'!$C770=\"Enroll\",'Enrollment Form'!$CV770<>\"\"),\"Y\",\"N\")))","v":""},{"$f":"IF($B763=\"N\",\"\",IF($S763=\"-\",\"-\",IF(AND($S763=\"Y\",'Enrollment Form'!$CV770=\"No\"),\"-\",IF(AND($S763=\"Y\",'Enrollment Form'!$CV770=\"Yes\",'Enrollment Form'!$CW770<>\"\"),\"Y\",\"N\"))))","v":""},{"$f":"IF(OR('Enrollment Form'!$AY770=\"Yes\",'Enrollment Form'!$AY770=\"\"),\"-\",IF(OR(AND('Enrollment Form'!$AY770=\"No\",ISERROR(FIND(\"HMO\",VLOOKUP('Enrollment Form'!G770,'Enrollment Form'!H$11:J$1000,3,FALSE),1))=FALSE,COUNTA('Enrollment Form'!$AZ770:$BC770)=4),AND('Enrollment Form'!$AY770=\"No\",ISERROR(FIND(\"HMO\",VLOOKUP('Enrollment Form'!G770,'Enrollment Form'!H$11:J$1000,3,FALSE),1))=FALSE,COUNTA('Enrollment Form'!$BT770:$BW770)=4)),\"Y\",\"N\"))","v":"-"},{"$f":"IF($B763=\"N\",\"\",IF('Enrollment Form'!$B770=\"Subscriber\",\"-\",IF(COUNTA('Enrollment Form'!$BL770,'Enrollment Form'!$BN770)=2,\"Y\",\"N\")))","v":""},{"$f":"IF($B763=\"N\",\"\",IF(OR('Enrollment Form'!$AX770=\"\",'Enrollment Form'!$AX770=\"No\"),\"-\",IF(AND('Enrollment Form'!$AX770=\"Yes\",COUNTA('Enrollment Form'!$CR770)=1),\"Y\",\"N\")))","v":""},{"$f":"IF(OR('Enrollment Form'!$CR770=\"\",'Enrollment Form'!$CR770=\"No\"),\"-\",IF(COUNTA('Enrollment Form'!$CT770:$CU770)=2,\"Y\",\"N\"))","v":"-"},{"$f":"IF($B763=\"N\",\"\",IF(COUNTIF('Enrollment Form'!$DG770:$DP770,\"Other\")=COUNTA('Enrollment Form'!$DK770,'Enrollment Form'!$DH770,'Enrollment Form'!$DN770,'Enrollment Form'!$DQ770),\"Y\",\"N\"))","v":""},{"$f":"IF($B763=\"N\",\"\",IF(OR('Enrollment Form'!B770<>\"Subscriber\",'Enrollment Form'!C770=\"ROC\",COUNTIF('Enrollment Form'!AV770:AW770,\"Yes\")>=1),\"-\",IF(AND('Enrollment Form'!C770=\"Enroll\",COUNTIF('Enrollment Form'!AV770:AW770,\"No\")=2,'Enrollment Form'!AX770=\"\"),\"N\",\"Y\")))","v":""},{"$f":"IF(OR(B763=\"N\",'Enrollment Form'!B770<>\"Subscriber\",'Enrollment Form'!C770=\"ROC\",'Enrollment Form'!O770<>\"Multiple of Salary\"),\"-\",IF(COUNTA('Enrollment Form'!T770:U770)<2,\"N\",\"Y\"))","v":"-"},{"$f":"IF(B763=\"N\",\"\",IF(OR('Enrollment Form'!C770=\"ROC\",'Enrollment Form'!B770<>\"Subscriber\",'Enrollment Form'!O770=\"Waive\",'Enrollment Form'!O770=\"\"),\"-\",IF('Enrollment Form'!P770=\"\",\"N\",\"Y\")))","v":""},{"$f":"IF($B763=\"N\",\"\",IF(AND('Enrollment Form'!$C770=\"ROC\",'Enrollment Form'!$DR770<>\"\"),\"Y\",IF(AND('Enrollment Form'!$C770=\"ROC\",'Enrollment Form'!$DR770=\"\"),\"N\",IF(AND('Enrollment Form'!$C770=\"Enroll\",'Enrollment Form'!$B770=\"Subscriber\",'Enrollment Form'!$CX770=\"No\",'Enrollment Form'!$DR770=\"\"),\"N\",IF(AND('Enrollment Form'!$C770=\"Enroll\",'Enrollment Form'!$B770=\"Subscriber\",'Enrollment Form'!$CX770=\"Yes\"),\"-\",\"Y\")))))","v":""},{"$f":"IF($B763=\"N\",\"\",IF(AND('Enrollment Form'!$C770=\"ROC\",'Enrollment Form'!$DS770<>\"\"),\"Y\",IF(AND('Enrollment Form'!$C770=\"ROC\",'Enrollment Form'!$DS770=\"\"),\"N\",IF(AND('Enrollment Form'!$C770=\"Enroll\",'Enrollment Form'!$B770=\"Subscriber\",'Enrollment Form'!$CX770=\"No\",'Enrollment Form'!$DS770=\"\"),\"N\",IF(AND('Enrollment Form'!$C770=\"Enroll\",'Enrollment Form'!$B770=\"Subscriber\",'Enrollment Form'!$CX770=\"Yes\"),\"-\",\"Y\")))))","v":""},{"$f":"IF('Enrollment Form'!AH770=\"\",\"\",IF(ISERROR(SEARCH(\".\",'Enrollment Form'!AH770,SEARCH(\"@\",'Enrollment Form'!AH770))),\"N\",\"Y\"))","v":""},{"$f":"IF(OR($B763=\"N\",'Enrollment Form'!$G770=\"\"),\"\",IF('Enrollment Form'!$B770<>\"Subscriber\",\"-\",IF(COUNTIF('Enrollment Form'!$AV770:$AW770,\"Yes\")=2,\"N\",\"Y\")))","v":""},{"$f":"IF(OR('Enrollment Form'!$CJ770=\"\",'Enrollment Form'!$CJ770=\"No\"),\"-\",IF(AND('Enrollment Form'!$CJ770=\"Yes\",'Enrollment Form'!$CK770=\"\"),\"N\",\"Y\"))","v":"-"},{"$f":"IF(OR('Enrollment Form'!$CL770=\"\",'Enrollment Form'!$CL770=\"No\"),\"-\",IF(AND('Enrollment Form'!$CL770=\"Yes\",'Enrollment Form'!$CM770=\"\"),\"N\",\"Y\"))","v":"-"},{"$f":"IF(OR('Enrollment Form'!$CN770=\"\",'Enrollment Form'!$CN770=\"No\"),\"-\",IF(AND('Enrollment Form'!$CN770=\"Yes\",'Enrollment Form'!$CO770=\"\"),\"N\",\"Y\"))","v":"-"},{"$f":"IF(OR('Enrollment Form'!$CN770=\"\",'Enrollment Form'!$CN770=\"No\"),\"-\",IF(AND('Enrollment Form'!$CN770=\"Yes\",'Enrollment Form'!$CP770=\"\"),\"N\",\"Y\"))","v":"-"},{"$f":"IF('Enrollment Form'!B770<>\"Subscriber\",\"-\",IF(AND('Enrollment Form'!B770=\"Subscriber\",'Enrollment Form'!C770=\"Enroll\",'Enrollment Form'!AA770=\"\"),\"N\",\"Y\"))","v":"-"},{"$f":"IF(OR('Enrollment Form'!B770=\"Subscriber\",'Enrollment Form'!B770=\"\"),\"-\",IF('Enrollment Form'!BP770=\"\",\"N\",\"Y\"))","v":"-"},{"$f":"IF('Enrollment Form'!B770<>\"Subscriber\",\"-\",IF(AND('Enrollment Form'!B770=\"Subscriber\",'Enrollment Form'!G770=\"\"),\"N\",\"Y\"))","v":"-"},{"$f":"IF('Enrollment Form'!A770=\"\",\"\",IF('Enrollment Form'!B770=\"Subscriber\",\"-\",IF(AND('Enrollment Form'!B770<>\"Subscriber\",'Enrollment Form'!G770='Enrollment Form'!H770),\"N\",\"Y\")))","v":""},0]
[771,{"$f":"IF('Enrollment Form'!$A771<>\"\",\"Y\",\"N\")","v":"N"},{"$f":"IF(AND('Enrollment Form'!$B771=\"\",'Enrollment Form'!$C771<>\"\"),\"N\",IF($B764=\"N\",\"\",\"Y\"))","v":""},{"$f":"IF(OR($B764=\"N\",'Enrollment Form'!G771=\"\"),\"\",IF('Enrollment Form'!$B771<>\"Subscriber\",\"\",IF('Enrollment Form'!$G771='Enrollment Form'!$H771,\"Y\",\"N\")))","v":""},{"$f":"IF($B764=\"N\",\"\",IF(AND(COUNTIFS('Enrollment Form'!$H$11:$H$1000,'Enrollment Form'!$H771,'Enrollment Form'!$B$11:$B$1000,'Enrollment Form'!$B771)>1,'Enrollment Form'!$H771<>\"\"),\"N\",\"Y\"))","v":""},{"$f":"IF($B764=\"N\",\"\",IF(LEN('Enrollment Form'!$Y771)=0,\"\",IF(LEN('Enrollment Form'!$Y771)<>5,\"N\",\"Y\")))","v":""},{"$f":"IF($B764=\"N\",\"\",IF(LEN('Enrollment Form'!$AD771=0),\"\",IF(LEN('Enrollment Form'!$AD771)<>5,\"N\",\"Y\")))","v":""},{"$f":"IF($B764=\"N\",\"\",IF(LEN('Enrollment Form'!$BS771=0),\"\",IF(LEN('Enrollment Form'!$BS771)<>5,\"N\",\"Y\")))","v":""},{"$f":"IF($B764=\"N\",\"\",IF(LEN('Enrollment Form'!$AE771)=0,\"\",IF(LEN('Enrollment Form'!$AE771)<>10,\"N\",\"Y\")))","v":""},{"$f":"IF($B764=\"N\",\"\",IF(LEN('Enrollment Form'!$AF771)=0,\"\",IF(LEN('Enrollment Form'!$AF771)<>10,\"N\",\"Y\")))","v":""},{"$f":"IF('Enrollment Form'!$O771<>\"Graded\",\"-\",IF(AND('Enrollment Form'!$O771=\"Graded\",'Enrollment Form'!$AR771<>\"\"),\"Y\",\"N\"))","v":"-"},{"$f":"IF($B764=\"N\",\"\",IF(OR('Enrollment Form'!$B771<>\"Subscriber\",'Enrollment Form'!$C771=\"ROC\"),\"-\",IF(AND('Enrollment Form'!$B771=\"Subscriber\",'Enrollment Form'!$C771=\"Enroll\",'Enrollment Form'!$AJ771<>\"\"),\"Y\",\"N\")))","v":""},{"$f":"IF($B764=\"N\",\"\",IF(OR('Enrollment Form'!$B771<>\"Subscriber\",'Enrollment Form'!$C771=\"ROC\"),\"-\",IF(AND('Enrollment Form'!$B771=\"Subscriber\",'Enrollment Form'!$C771=\"Enroll\",'Enrollment Form'!$AK771<>\"\"),\"Y\",\"N\")))","v":""},{"$f":"IF($B764=\"N\",\"\",IF(OR('Enrollment Form'!$B771<>\"Subscriber\",'Enrollment Form'!$C771=\"ROC\"),\"-\",IF(AND('Enrollment Form'!$B771=\"Subscriber\",'Enrollment Form'!$C771=\"Enroll\",'Enrollment Form'!$AL771<>\"\"),\"Y\",\"N\")))","v":""},{"$f":"IF($B764=\"N\",\"\",IF(OR('Enrollment Form'!$B771<>\"Subscriber\",'Enrollment Form'!$C771=\"ROC\"),\"-\",IF(AND('Enrollment Form'!$B771=\"Subscriber\",'Enrollment Form'!$C771=\"Enroll\",'Enrollment Form'!$AP771<>\"\"),\"Y\",\"N\")))","v":""},{"$f":"IF($B764=\"N\",\"\",IF(OR('Enrollment Form'!$B771<>\"Subscriber\",'Enrollment Form'!$C771=\"ROC\"),\"-\",IF(AND('Enrollment Form'!$B771=\"Subscriber\",'Enrollment Form'!$C771=\"Enroll\",'Enrollment Form'!$AQ771<>\"\"),\"Y\",\"N\")))","v":""},{"$f":"IF($B764=\"N\",\"\",IF(OR('Enrollment Form'!$B771<>\"Subscriber\",'Enrollment Form'!$C771=\"ROC\"),\"-\",IF(AND('Enrollment Form'!$B771=\"Subscriber\",'Enrollment Form'!$C771=\"Enroll\",'Enrollment Form'!$AS771<>\"\"),\"Y\",\"N\")))","v":""},{"$f":"IF($B764=\"N\",\"\",IF($Q764=\"-\",\"-\",IF(AND($Q764=\"Y\",'Enrollment Form'!$AS771=\"No\"),\"-\",IF(AND($Q764=\"Y\",'Enrollment Form'!$AS771=\"Yes\",'Enrollment Form'!$AT771<>\"\"),\"Y\",\"N\"))))","v":""},{"$f":"IF($B764=\"N\",\"\",IF(OR('Enrollment Form'!$B771<>\"Subscriber\",'Enrollment Form'!$C771=\"ROC\"),\"-\",IF(AND('Enrollment Form'!$B771=\"Subscriber\",'Enrollment Form'!$C771=\"Enroll\",'Enrollment Form'!$CV771<>\"\"),\"Y\",\"N\")))","v":""},{"$f":"IF($B764=\"N\",\"\",IF($S764=\"-\",\"-\",IF(AND($S764=\"Y\",'Enrollment Form'!$CV771=\"No\"),\"-\",IF(AND($S764=\"Y\",'Enrollment Form'!$CV771=\"Yes\",'Enrollment Form'!$CW771<>\"\"),\"Y\",\"N\"))))","v":""},{"$f":"IF(OR('Enrollment Form'!$AY771=\"Yes\",'Enrollment Form'!$AY771=\"\"),\"-\",IF(OR(AND('Enrollment Form'!$AY771=\"No\",ISERROR(FIND(\"HMO\",VLOOKUP('Enrollment Form'!G771,'Enrollment Form'!H$11:J$1000,3,FALSE),1))=FALSE,COUNTA('Enrollment Form'!$AZ771:$BC771)=4),AND('Enrollment Form'!$AY771=\"No\",ISERROR(FIND(\"HMO\",VLOOKUP('Enrollment Form'!G771,'Enrollment Form'!H$11:J$1000,3,FALSE),1))=FALSE,COUNTA('Enrollment Form'!$BT771:$BW771)=4)),\"Y\",\"N\"))","v":"-"},{"$f":"IF($B764=\"N\",\"\",IF('Enrollment Form'!$B771=\"Subscriber\",\"-\",IF(COUNTA('Enrollment Form'!$BL771,'Enrollment Form'!$BN771)=2,\"Y\",\"N\")))","v":""},{"$f":"IF($B764=\"N\",\"\",IF(OR('Enrollment Form'!$AX771=\"\",'Enrollment Form'!$AX771=\"No\"),\"-\",IF(AND('Enrollment Form'!$AX771=\"Yes\",COUNTA('Enrollment Form'!$CR771)=1),\"Y\",\"N\")))","v":""},{"$f":"IF(OR('Enrollment Form'!$CR771=\"\",'Enrollment Form'!$CR771=\"No\"),\"-\",IF(COUNTA('Enrollment Form'!$CT771:$CU771)=2,\"Y\",\"N\"))","v":"-"},{"$f":"IF($B764=\"N\",\"\",IF(COUNTIF('Enrollment Form'!$DG771:$DP771,\"Other\")=COUNTA('Enrollment Form'!$DK771,'Enrollment Form'!$DH771,'Enrollment Form'!$DN771,'Enrollment Form'!$DQ771),\"Y\",\"N\"))","v":""},{"$f":"IF($B764=\"N\",\"\",IF(OR('Enrollment Form'!B771<>\"Subscriber\",'Enrollment Form'!C771=\"ROC\",COUNTIF('Enrollment Form'!AV771:AW771,\"Yes\")>=1),\"-\",IF(AND('Enrollment Form'!C771=\"Enroll\",COUNTIF('Enrollment Form'!AV771:AW771,\"No\")=2,'Enrollment Form'!AX771=\"\"),\"N\",\"Y\")))","v":""},{"$f":"IF(OR(B764=\"N\",'Enrollment Form'!B771<>\"Subscriber\",'Enrollment Form'!C771=\"ROC\",'Enrollment Form'!O771<>\"Multiple of Salary\"),\"-\",IF(COUNTA('Enrollment Form'!T771:U771)<2,\"N\",\"Y\"))","v":"-"},{"$f":"IF(B764=\"N\",\"\",IF(OR('Enrollment Form'!C771=\"ROC\",'Enrollment Form'!B771<>\"Subscriber\",'Enrollment Form'!O771=\"Waive\",'Enrollment Form'!O771=\"\"),\"-\",IF('Enrollment Form'!P771=\"\",\"N\",\"Y\")))","v":""},{"$f":"IF($B764=\"N\",\"\",IF(AND('Enrollment Form'!$C771=\"ROC\",'Enrollment Form'!$DR771<>\"\"),\"Y\",IF(AND('Enrollment Form'!$C771=\"ROC\",'Enrollment Form'!$DR771=\"\"),\"N\",IF(AND('Enrollment Form'!$C771=\"Enroll\",'Enrollment Form'!$B771=\"Subscriber\",'Enrollment Form'!$CX771=\"No\",'Enrollment Form'!$DR771=\"\"),\"N\",IF(AND('Enrollment Form'!$C771=\"Enroll\",'Enrollment Form'!$B771=\"Subscriber\",'Enrollment Form'!$CX771=\"Yes\"),\"-\",\"Y\")))))","v":""},{"$f":"IF($B764=\"N\",\"\",IF(AND('Enrollment Form'!$C771=\"ROC\",'Enrollment Form'!$DS771<>\"\"),\"Y\",IF(AND('Enrollment Form'!$C771=\"ROC\",'Enrollment Form'!$DS771=\"\"),\"N\",IF(AND('Enrollment Form'!$C771=\"Enroll\",'Enrollment Form'!$B771=\"Subscriber\",'Enrollment Form'!$CX771=\"No\",'Enrollment Form'!$DS771=\"\"),\"N\",IF(AND('Enrollment Form'!$C771=\"Enroll\",'Enrollment Form'!$B771=\"Subscriber\",'Enrollment Form'!$CX771=\"Yes\"),\"-\",\"Y\")))))","v":""},{"$f":"IF('Enrollment Form'!AH771=\"\",\"\",IF(ISERROR(SEARCH(\".\",'Enrollment Form'!AH771,SEARCH(\"@\",'Enrollment Form'!AH771))),\"N\",\"Y\"))","v":""},{"$f":"IF(OR($B764=\"N\",'Enrollment Form'!$G771=\"\"),\"\",IF('Enrollment Form'!$B771<>\"Subscriber\",\"-\",IF(COUNTIF('Enrollment Form'!$AV771:$AW771,\"Yes\")=2,\"N\",\"Y\")))","v":""},{"$f":"IF(OR('Enrollment Form'!$CJ771=\"\",'Enrollment Form'!$CJ771=\"No\"),\"-\",IF(AND('Enrollment Form'!$CJ771=\"Yes\",'Enrollment Form'!$CK771=\"\"),\"N\",\"Y\"))","v":"-"},{"$f":"IF(OR('Enrollment Form'!$CL771=\"\",'Enrollment Form'!$CL771=\"No\"),\"-\",IF(AND('Enrollment Form'!$CL771=\"Yes\",'Enrollment Form'!$CM771=\"\"),\"N\",\"Y\"))","v":"-"},{"$f":"IF(OR('Enrollment Form'!$CN771=\"\",'Enrollment Form'!$CN771=\"No\"),\"-\",IF(AND('Enrollment Form'!$CN771=\"Yes\",'Enrollment Form'!$CO771=\"\"),\"N\",\"Y\"))","v":"-"},{"$f":"IF(OR('Enrollment Form'!$CN771=\"\",'Enrollment Form'!$CN771=\"No\"),\"-\",IF(AND('Enrollment Form'!$CN771=\"Yes\",'Enrollment Form'!$CP771=\"\"),\"N\",\"Y\"))","v":"-"},{"$f":"IF('Enrollment Form'!B771<>\"Subscriber\",\"-\",IF(AND('Enrollment Form'!B771=\"Subscriber\",'Enrollment Form'!C771=\"Enroll\",'Enrollment Form'!AA771=\"\"),\"N\",\"Y\"))","v":"-"},{"$f":"IF(OR('Enrollment Form'!B771=\"Subscriber\",'Enrollment Form'!B771=\"\"),\"-\",IF('Enrollment Form'!BP771=\"\",\"N\",\"Y\"))","v":"-"},{"$f":"IF('Enrollment Form'!B771<>\"Subscriber\",\"-\",IF(AND('Enrollment Form'!B771=\"Subscriber\",'Enrollment Form'!G771=\"\"),\"N\",\"Y\"))","v":"-"},{"$f":"IF('Enrollment Form'!A771=\"\",\"\",IF('Enrollment Form'!B771=\"Subscriber\",\"-\",IF(AND('Enrollment Form'!B771<>\"Subscriber\",'Enrollment Form'!G771='Enrollment Form'!H771),\"N\",\"Y\")))","v":""},0]
[772,{"$f":"IF('Enrollment Form'!$A772<>\"\",\"Y\",\"N\")","v":"N"},{"$f":"IF(AND('Enrollment Form'!$B772=\"\",'Enrollment Form'!$C772<>\"\"),\"N\",IF($B765=\"N\",\"\",\"Y\"))","v":""},{"$f":"IF(OR($B765=\"N\",'Enrollment Form'!G772=\"\"),\"\",IF('Enrollment Form'!$B772<>\"Subscriber\",\"\",IF('Enrollment Form'!$G772='Enrollment Form'!$H772,\"Y\",\"N\")))","v":""},{"$f":"IF($B765=\"N\",\"\",IF(AND(COUNTIFS('Enrollment Form'!$H$11:$H$1000,'Enrollment Form'!$H772,'Enrollment Form'!$B$11:$B$1000,'Enrollment Form'!$B772)>1,'Enrollment Form'!$H772<>\"\"),\"N\",\"Y\"))","v":""},{"$f":"IF($B765=\"N\",\"\",IF(LEN('Enrollment Form'!$Y772)=0,\"\",IF(LEN('Enrollment Form'!$Y772)<>5,\"N\",\"Y\")))","v":""},{"$f":"IF($B765=\"N\",\"\",IF(LEN('Enrollment Form'!$AD772=0),\"\",IF(LEN('Enrollment Form'!$AD772)<>5,\"N\",\"Y\")))","v":""},{"$f":"IF($B765=\"N\",\"\",IF(LEN('Enrollment Form'!$BS772=0),\"\",IF(LEN('Enrollment Form'!$BS772)<>5,\"N\",\"Y\")))","v":""},{"$f":"IF($B765=\"N\",\"\",IF(LEN('Enrollment Form'!$AE772)=0,\"\",IF(LEN('Enrollment Form'!$AE772)<>10,\"N\",\"Y\")))","v":""},{"$f":"IF($B765=\"N\",\"\",IF(LEN('Enrollment Form'!$AF772)=0,\"\",IF(LEN('Enrollment Form'!$AF772)<>10,\"N\",\"Y\")))","v":""},{"$f":"IF('Enrollment Form'!$O772<>\"Graded\",\"-\",IF(AND('Enrollment Form'!$O772=\"Graded\",'Enrollment Form'!$AR772<>\"\"),\"Y\",\"N\"))","v":"-"},{"$f":"IF($B765=\"N\",\"\",IF(OR('Enrollment Form'!$B772<>\"Subscriber\",'Enrollment Form'!$C772=\"ROC\"),\"-\",IF(AND('Enrollment Form'!$B772=\"Subscriber\",'Enrollment Form'!$C772=\"Enroll\",'Enrollment Form'!$AJ772<>\"\"),\"Y\",\"N\")))","v":""},{"$f":"IF($B765=\"N\",\"\",IF(OR('Enrollment Form'!$B772<>\"Subscriber\",'Enrollment Form'!$C772=\"ROC\"),\"-\",IF(AND('Enrollment Form'!$B772=\"Subscriber\",'Enrollment Form'!$C772=\"Enroll\",'Enrollment Form'!$AK772<>\"\"),\"Y\",\"N\")))","v":""},{"$f":"IF($B765=\"N\",\"\",IF(OR('Enrollment Form'!$B772<>\"Subscriber\",'Enrollment Form'!$C772=\"ROC\"),\"-\",IF(AND('Enrollment Form'!$B772=\"Subscriber\",'Enrollment Form'!$C772=\"Enroll\",'Enrollment Form'!$AL772<>\"\"),\"Y\",\"N\")))","v":""},{"$f":"IF($B765=\"N\",\"\",IF(OR('Enrollment Form'!$B772<>\"Subscriber\",'Enrollment Form'!$C772=\"ROC\"),\"-\",IF(AND('Enrollment Form'!$B772=\"Subscriber\",'Enrollment Form'!$C772=\"Enroll\",'Enrollment Form'!$AP772<>\"\"),\"Y\",\"N\")))","v":""},{"$f":"IF($B765=\"N\",\"\",IF(OR('Enrollment Form'!$B772<>\"Subscriber\",'Enrollment Form'!$C772=\"ROC\"),\"-\",IF(AND('Enrollment Form'!$B772=\"Subscriber\",'Enrollment Form'!$C772=\"Enroll\",'Enrollment Form'!$AQ772<>\"\"),\"Y\",\"N\")))","v":""},{"$f":"IF($B765=\"N\",\"\",IF(OR('Enrollment Form'!$B772<>\"Subscriber\",'Enrollment Form'!$C772=\"ROC\"),\"-\",IF(AND('Enrollment Form'!$B772=\"Subscriber\",'Enrollment Form'!$C772=\"Enroll\",'Enrollment Form'!$AS772<>\"\"),\"Y\",\"N\")))","v":""},{"$f":"IF($B765=\"N\",\"\",IF($Q765=\"-\",\"-\",IF(AND($Q765=\"Y\",'Enrollment Form'!$AS772=\"No\"),\"-\",IF(AND($Q765=\"Y\",'Enrollment Form'!$AS772=\"Yes\",'Enrollment Form'!$AT772<>\"\"),\"Y\",\"N\"))))","v":""},{"$f":"IF($B765=\"N\",\"\",IF(OR('Enrollment Form'!$B772<>\"Subscriber\",'Enrollment Form'!$C772=\"ROC\"),\"-\",IF(AND('Enrollment Form'!$B772=\"Subscriber\",'Enrollment Form'!$C772=\"Enroll\",'Enrollment Form'!$CV772<>\"\"),\"Y\",\"N\")))","v":""},{"$f":"IF($B765=\"N\",\"\",IF($S765=\"-\",\"-\",IF(AND($S765=\"Y\",'Enrollment Form'!$CV772=\"No\"),\"-\",IF(AND($S765=\"Y\",'Enrollment Form'!$CV772=\"Yes\",'Enrollment Form'!$CW772<>\"\"),\"Y\",\"N\"))))","v":""},{"$f":"IF(OR('Enrollment Form'!$AY772=\"Yes\",'Enrollment Form'!$AY772=\"\"),\"-\",IF(OR(AND('Enrollment Form'!$AY772=\"No\",ISERROR(FIND(\"HMO\",VLOOKUP('Enrollment Form'!G772,'Enrollment Form'!H$11:J$1000,3,FALSE),1))=FALSE,COUNTA('Enrollment Form'!$AZ772:$BC772)=4),AND('Enrollment Form'!$AY772=\"No\",ISERROR(FIND(\"HMO\",VLOOKUP('Enrollment Form'!G772,'Enrollment Form'!H$11:J$1000,3,FALSE),1))=FALSE,COUNTA('Enrollment Form'!$BT772:$BW772)=4)),\"Y\",\"N\"))","v":"-"},{"$f":"IF($B765=\"N\",\"\",IF('Enrollment Form'!$B772=\"Subscriber\",\"-\",IF(COUNTA('Enrollment Form'!$BL772,'Enrollment Form'!$BN772)=2,\"Y\",\"N\")))","v":""},{"$f":"IF($B765=\"N\",\"\",IF(OR('Enrollment Form'!$AX772=\"\",'Enrollment Form'!$AX772=\"No\"),\"-\",IF(AND('Enrollment Form'!$AX772=\"Yes\",COUNTA('Enrollment Form'!$CR772)=1),\"Y\",\"N\")))","v":""},{"$f":"IF(OR('Enrollment Form'!$CR772=\"\",'Enrollment Form'!$CR772=\"No\"),\"-\",IF(COUNTA('Enrollment Form'!$CT772:$CU772)=2,\"Y\",\"N\"))","v":"-"},{"$f":"IF($B765=\"N\",\"\",IF(COUNTIF('Enrollment Form'!$DG772:$DP772,\"Other\")=COUNTA('Enrollment Form'!$DK772,'Enrollment Form'!$DH772,'Enrollment Form'!$DN772,'Enrollment Form'!$DQ772),\"Y\",\"N\"))","v":""},{"$f":"IF($B765=\"N\",\"\",IF(OR('Enrollment Form'!B772<>\"Subscriber\",'Enrollment Form'!C772=\"ROC\",COUNTIF('Enrollment Form'!AV772:AW772,\"Yes\")>=1),\"-\",IF(AND('Enrollment Form'!C772=\"Enroll\",COUNTIF('Enrollment Form'!AV772:AW772,\"No\")=2,'Enrollment Form'!AX772=\"\"),\"N\",\"Y\")))","v":""},{"$f":"IF(OR(B765=\"N\",'Enrollment Form'!B772<>\"Subscriber\",'Enrollment Form'!C772=\"ROC\",'Enrollment Form'!O772<>\"Multiple of Salary\"),\"-\",IF(COUNTA('Enrollment Form'!T772:U772)<2,\"N\",\"Y\"))","v":"-"},{"$f":"IF(B765=\"N\",\"\",IF(OR('Enrollment Form'!C772=\"ROC\",'Enrollment Form'!B772<>\"Subscriber\",'Enrollment Form'!O772=\"Waive\",'Enrollment Form'!O772=\"\"),\"-\",IF('Enrollment Form'!P772=\"\",\"N\",\"Y\")))","v":""},{"$f":"IF($B765=\"N\",\"\",IF(AND('Enrollment Form'!$C772=\"ROC\",'Enrollment Form'!$DR772<>\"\"),\"Y\",IF(AND('Enrollment Form'!$C772=\"ROC\",'Enrollment Form'!$DR772=\"\"),\"N\",IF(AND('Enrollment Form'!$C772=\"Enroll\",'Enrollment Form'!$B772=\"Subscriber\",'Enrollment Form'!$CX772=\"No\",'Enrollment Form'!$DR772=\"\"),\"N\",IF(AND('Enrollment Form'!$C772=\"Enroll\",'Enrollment Form'!$B772=\"Subscriber\",'Enrollment Form'!$CX772=\"Yes\"),\"-\",\"Y\")))))","v":""},{"$f":"IF($B765=\"N\",\"\",IF(AND('Enrollment Form'!$C772=\"ROC\",'Enrollment Form'!$DS772<>\"\"),\"Y\",IF(AND('Enrollment Form'!$C772=\"ROC\",'Enrollment Form'!$DS772=\"\"),\"N\",IF(AND('Enrollment Form'!$C772=\"Enroll\",'Enrollment Form'!$B772=\"Subscriber\",'Enrollment Form'!$CX772=\"No\",'Enrollment Form'!$DS772=\"\"),\"N\",IF(AND('Enrollment Form'!$C772=\"Enroll\",'Enrollment Form'!$B772=\"Subscriber\",'Enrollment Form'!$CX772=\"Yes\"),\"-\",\"Y\")))))","v":""},{"$f":"IF('Enrollment Form'!AH772=\"\",\"\",IF(ISERROR(SEARCH(\".\",'Enrollment Form'!AH772,SEARCH(\"@\",'Enrollment Form'!AH772))),\"N\",\"Y\"))","v":""},{"$f":"IF(OR($B765=\"N\",'Enrollment Form'!$G772=\"\"),\"\",IF('Enrollment Form'!$B772<>\"Subscriber\",\"-\",IF(COUNTIF('Enrollment Form'!$AV772:$AW772,\"Yes\")=2,\"N\",\"Y\")))","v":""},{"$f":"IF(OR('Enrollment Form'!$CJ772=\"\",'Enrollment Form'!$CJ772=\"No\"),\"-\",IF(AND('Enrollment Form'!$CJ772=\"Yes\",'Enrollment Form'!$CK772=\"\"),\"N\",\"Y\"))","v":"-"},{"$f":"IF(OR('Enrollment Form'!$CL772=\"\",'Enrollment Form'!$CL772=\"No\"),\"-\",IF(AND('Enrollment Form'!$CL772=\"Yes\",'Enrollment Form'!$CM772=\"\"),\"N\",\"Y\"))","v":"-"},{"$f":"IF(OR('Enrollment Form'!$CN772=\"\",'Enrollment Form'!$CN772=\"No\"),\"-\",IF(AND('Enrollment Form'!$CN772=\"Yes\",'Enrollment Form'!$CO772=\"\"),\"N\",\"Y\"))","v":"-"},{"$f":"IF(OR('Enrollment Form'!$CN772=\"\",'Enrollment Form'!$CN772=\"No\"),\"-\",IF(AND('Enrollment Form'!$CN772=\"Yes\",'Enrollment Form'!$CP772=\"\"),\"N\",\"Y\"))","v":"-"},{"$f":"IF('Enrollment Form'!B772<>\"Subscriber\",\"-\",IF(AND('Enrollment Form'!B772=\"Subscriber\",'Enrollment Form'!C772=\"Enroll\",'Enrollment Form'!AA772=\"\"),\"N\",\"Y\"))","v":"-"},{"$f":"IF(OR('Enrollment Form'!B772=\"Subscriber\",'Enrollment Form'!B772=\"\"),\"-\",IF('Enrollment Form'!BP772=\"\",\"N\",\"Y\"))","v":"-"},{"$f":"IF('Enrollment Form'!B772<>\"Subscriber\",\"-\",IF(AND('Enrollment Form'!B772=\"Subscriber\",'Enrollment Form'!G772=\"\"),\"N\",\"Y\"))","v":"-"},{"$f":"IF('Enrollment Form'!A772=\"\",\"\",IF('Enrollment Form'!B772=\"Subscriber\",\"-\",IF(AND('Enrollment Form'!B772<>\"Subscriber\",'Enrollment Form'!G772='Enrollment Form'!H772),\"N\",\"Y\")))","v":""},0]
[773,{"$f":"IF('Enrollment Form'!$A773<>\"\",\"Y\",\"N\")","v":"N"},{"$f":"IF(AND('Enrollment Form'!$B773=\"\",'Enrollment Form'!$C773<>\"\"),\"N\",IF($B766=\"N\",\"\",\"Y\"))","v":""},{"$f":"IF(OR($B766=\"N\",'Enrollment Form'!G773=\"\"),\"\",IF('Enrollment Form'!$B773<>\"Subscriber\",\"\",IF('Enrollment Form'!$G773='Enrollment Form'!$H773,\"Y\",\"N\")))","v":""},{"$f":"IF($B766=\"N\",\"\",IF(AND(COUNTIFS('Enrollment Form'!$H$11:$H$1000,'Enrollment Form'!$H773,'Enrollment Form'!$B$11:$B$1000,'Enrollment Form'!$B773)>1,'Enrollment Form'!$H773<>\"\"),\"N\",\"Y\"))","v":""},{"$f":"IF($B766=\"N\",\"\",IF(LEN('Enrollment Form'!$Y773)=0,\"\",IF(LEN('Enrollment Form'!$Y773)<>5,\"N\",\"Y\")))","v":""},{"$f":"IF($B766=\"N\",\"\",IF(LEN('Enrollment Form'!$AD773=0),\"\",IF(LEN('Enrollment Form'!$AD773)<>5,\"N\",\"Y\")))","v":""},{"$f":"IF($B766=\"N\",\"\",IF(LEN('Enrollment Form'!$BS773=0),\"\",IF(LEN('Enrollment Form'!$BS773)<>5,\"N\",\"Y\")))","v":""},{"$f":"IF($B766=\"N\",\"\",IF(LEN('Enrollment Form'!$AE773)=0,\"\",IF(LEN('Enrollment Form'!$AE773)<>10,\"N\",\"Y\")))","v":""},{"$f":"IF($B766=\"N\",\"\",IF(LEN('Enrollment Form'!$AF773)=0,\"\",IF(LEN('Enrollment Form'!$AF773)<>10,\"N\",\"Y\")))","v":""},{"$f":"IF('Enrollment Form'!$O773<>\"Graded\",\"-\",IF(AND('Enrollment Form'!$O773=\"Graded\",'Enrollment Form'!$AR773<>\"\"),\"Y\",\"N\"))","v":"-"},{"$f":"IF($B766=\"N\",\"\",IF(OR('Enrollment Form'!$B773<>\"Subscriber\",'Enrollment Form'!$C773=\"ROC\"),\"-\",IF(AND('Enrollment Form'!$B773=\"Subscriber\",'Enrollment Form'!$C773=\"Enroll\",'Enrollment Form'!$AJ773<>\"\"),\"Y\",\"N\")))","v":""},{"$f":"IF($B766=\"N\",\"\",IF(OR('Enrollment Form'!$B773<>\"Subscriber\",'Enrollment Form'!$C773=\"ROC\"),\"-\",IF(AND('Enrollment Form'!$B773=\"Subscriber\",'Enrollment Form'!$C773=\"Enroll\",'Enrollment Form'!$AK773<>\"\"),\"Y\",\"N\")))","v":""},{"$f":"IF($B766=\"N\",\"\",IF(OR('Enrollment Form'!$B773<>\"Subscriber\",'Enrollment Form'!$C773=\"ROC\"),\"-\",IF(AND('Enrollment Form'!$B773=\"Subscriber\",'Enrollment Form'!$C773=\"Enroll\",'Enrollment Form'!$AL773<>\"\"),\"Y\",\"N\")))","v":""},{"$f":"IF($B766=\"N\",\"\",IF(OR('Enrollment Form'!$B773<>\"Subscriber\",'Enrollment Form'!$C773=\"ROC\"),\"-\",IF(AND('Enrollment Form'!$B773=\"Subscriber\",'Enrollment Form'!$C773=\"Enroll\",'Enrollment Form'!$AP773<>\"\"),\"Y\",\"N\")))","v":""},{"$f":"IF($B766=\"N\",\"\",IF(OR('Enrollment Form'!$B773<>\"Subscriber\",'Enrollment Form'!$C773=\"ROC\"),\"-\",IF(AND('Enrollment Form'!$B773=\"Subscriber\",'Enrollment Form'!$C773=\"Enroll\",'Enrollment Form'!$AQ773<>\"\"),\"Y\",\"N\")))","v":""},{"$f":"IF($B766=\"N\",\"\",IF(OR('Enrollment Form'!$B773<>\"Subscriber\",'Enrollment Form'!$C773=\"ROC\"),\"-\",IF(AND('Enrollment Form'!$B773=\"Subscriber\",'Enrollment Form'!$C773=\"Enroll\",'Enrollment Form'!$AS773<>\"\"),\"Y\",\"N\")))","v":""},{"$f":"IF($B766=\"N\",\"\",IF($Q766=\"-\",\"-\",IF(AND($Q766=\"Y\",'Enrollment Form'!$AS773=\"No\"),\"-\",IF(AND($Q766=\"Y\",'Enrollment Form'!$AS773=\"Yes\",'Enrollment Form'!$AT773<>\"\"),\"Y\",\"N\"))))","v":""},{"$f":"IF($B766=\"N\",\"\",IF(OR('Enrollment Form'!$B773<>\"Subscriber\",'Enrollment Form'!$C773=\"ROC\"),\"-\",IF(AND('Enrollment Form'!$B773=\"Subscriber\",'Enrollment Form'!$C773=\"Enroll\",'Enrollment Form'!$CV773<>\"\"),\"Y\",\"N\")))","v":""},{"$f":"IF($B766=\"N\",\"\",IF($S766=\"-\",\"-\",IF(AND($S766=\"Y\",'Enrollment Form'!$CV773=\"No\"),\"-\",IF(AND($S766=\"Y\",'Enrollment Form'!$CV773=\"Yes\",'Enrollment Form'!$CW773<>\"\"),\"Y\",\"N\"))))","v":""},{"$f":"IF(OR('Enrollment Form'!$AY773=\"Yes\",'Enrollment Form'!$AY773=\"\"),\"-\",IF(OR(AND('Enrollment Form'!$AY773=\"No\",ISERROR(FIND(\"HMO\",VLOOKUP('Enrollment Form'!G773,'Enrollment Form'!H$11:J$1000,3,FALSE),1))=FALSE,COUNTA('Enrollment Form'!$AZ773:$BC773)=4),AND('Enrollment Form'!$AY773=\"No\",ISERROR(FIND(\"HMO\",VLOOKUP('Enrollment Form'!G773,'Enrollment Form'!H$11:J$1000,3,FALSE),1))=FALSE,COUNTA('Enrollment Form'!$BT773:$BW773)=4)),\"Y\",\"N\"))","v":"-"},{"$f":"IF($B766=\"N\",\"\",IF('Enrollment Form'!$B773=\"Subscriber\",\"-\",IF(COUNTA('Enrollment Form'!$BL773,'Enrollment Form'!$BN773)=2,\"Y\",\"N\")))","v":""},{"$f":"IF($B766=\"N\",\"\",IF(OR('Enrollment Form'!$AX773=\"\",'Enrollment Form'!$AX773=\"No\"),\"-\",IF(AND('Enrollment Form'!$AX773=\"Yes\",COUNTA('Enrollment Form'!$CR773)=1),\"Y\",\"N\")))","v":""},{"$f":"IF(OR('Enrollment Form'!$CR773=\"\",'Enrollment Form'!$CR773=\"No\"),\"-\",IF(COUNTA('Enrollment Form'!$CT773:$CU773)=2,\"Y\",\"N\"))","v":"-"},{"$f":"IF($B766=\"N\",\"\",IF(COUNTIF('Enrollment Form'!$DG773:$DP773,\"Other\")=COUNTA('Enrollment Form'!$DK773,'Enrollment Form'!$DH773,'Enrollment Form'!$DN773,'Enrollment Form'!$DQ773),\"Y\",\"N\"))","v":""},{"$f":"IF($B766=\"N\",\"\",IF(OR('Enrollment Form'!B773<>\"Subscriber\",'Enrollment Form'!C773=\"ROC\",COUNTIF('Enrollment Form'!AV773:AW773,\"Yes\")>=1),\"-\",IF(AND('Enrollment Form'!C773=\"Enroll\",COUNTIF('Enrollment Form'!AV773:AW773,\"No\")=2,'Enrollment Form'!AX773=\"\"),\"N\",\"Y\")))","v":""},{"$f":"IF(OR(B766=\"N\",'Enrollment Form'!B773<>\"Subscriber\",'Enrollment Form'!C773=\"ROC\",'Enrollment Form'!O773<>\"Multiple of Salary\"),\"-\",IF(COUNTA('Enrollment Form'!T773:U773)<2,\"N\",\"Y\"))","v":"-"},{"$f":"IF(B766=\"N\",\"\",IF(OR('Enrollment Form'!C773=\"ROC\",'Enrollment Form'!B773<>\"Subscriber\",'Enrollment Form'!O773=\"Waive\",'Enrollment Form'!O773=\"\"),\"-\",IF('Enrollment Form'!P773=\"\",\"N\",\"Y\")))","v":""},{"$f":"IF($B766=\"N\",\"\",IF(AND('Enrollment Form'!$C773=\"ROC\",'Enrollment Form'!$DR773<>\"\"),\"Y\",IF(AND('Enrollment Form'!$C773=\"ROC\",'Enrollment Form'!$DR773=\"\"),\"N\",IF(AND('Enrollment Form'!$C773=\"Enroll\",'Enrollment Form'!$B773=\"Subscriber\",'Enrollment Form'!$CX773=\"No\",'Enrollment Form'!$DR773=\"\"),\"N\",IF(AND('Enrollment Form'!$C773=\"Enroll\",'Enrollment Form'!$B773=\"Subscriber\",'Enrollment Form'!$CX773=\"Yes\"),\"-\",\"Y\")))))","v":""},{"$f":"IF($B766=\"N\",\"\",IF(AND('Enrollment Form'!$C773=\"ROC\",'Enrollment Form'!$DS773<>\"\"),\"Y\",IF(AND('Enrollment Form'!$C773=\"ROC\",'Enrollment Form'!$DS773=\"\"),\"N\",IF(AND('Enrollment Form'!$C773=\"Enroll\",'Enrollment Form'!$B773=\"Subscriber\",'Enrollment Form'!$CX773=\"No\",'Enrollment Form'!$DS773=\"\"),\"N\",IF(AND('Enrollment Form'!$C773=\"Enroll\",'Enrollment Form'!$B773=\"Subscriber\",'Enrollment Form'!$CX773=\"Yes\"),\"-\",\"Y\")))))","v":""},{"$f":"IF('Enrollment Form'!AH773=\"\",\"\",IF(ISERROR(SEARCH(\".\",'Enrollment Form'!AH773,SEARCH(\"@\",'Enrollment Form'!AH773))),\"N\",\"Y\"))","v":""},{"$f":"IF(OR($B766=\"N\",'Enrollment Form'!$G773=\"\"),\"\",IF('Enrollment Form'!$B773<>\"Subscriber\",\"-\",IF(COUNTIF('Enrollment Form'!$AV773:$AW773,\"Yes\")=2,\"N\",\"Y\")))","v":""},{"$f":"IF(OR('Enrollment Form'!$CJ773=\"\",'Enrollment Form'!$CJ773=\"No\"),\"-\",IF(AND('Enrollment Form'!$CJ773=\"Yes\",'Enrollment Form'!$CK773=\"\"),\"N\",\"Y\"))","v":"-"},{"$f":"IF(OR('Enrollment Form'!$CL773=\"\",'Enrollment Form'!$CL773=\"No\"),\"-\",IF(AND('Enrollment Form'!$CL773=\"Yes\",'Enrollment Form'!$CM773=\"\"),\"N\",\"Y\"))","v":"-"},{"$f":"IF(OR('Enrollment Form'!$CN773=\"\",'Enrollment Form'!$CN773=\"No\"),\"-\",IF(AND('Enrollment Form'!$CN773=\"Yes\",'Enrollment Form'!$CO773=\"\"),\"N\",\"Y\"))","v":"-"},{"$f":"IF(OR('Enrollment Form'!$CN773=\"\",'Enrollment Form'!$CN773=\"No\"),\"-\",IF(AND('Enrollment Form'!$CN773=\"Yes\",'Enrollment Form'!$CP773=\"\"),\"N\",\"Y\"))","v":"-"},{"$f":"IF('Enrollment Form'!B773<>\"Subscriber\",\"-\",IF(AND('Enrollment Form'!B773=\"Subscriber\",'Enrollment Form'!C773=\"Enroll\",'Enrollment Form'!AA773=\"\"),\"N\",\"Y\"))","v":"-"},{"$f":"IF(OR('Enrollment Form'!B773=\"Subscriber\",'Enrollment Form'!B773=\"\"),\"-\",IF('Enrollment Form'!BP773=\"\",\"N\",\"Y\"))","v":"-"},{"$f":"IF('Enrollment Form'!B773<>\"Subscriber\",\"-\",IF(AND('Enrollment Form'!B773=\"Subscriber\",'Enrollment Form'!G773=\"\"),\"N\",\"Y\"))","v":"-"},{"$f":"IF('Enrollment Form'!A773=\"\",\"\",IF('Enrollment Form'!B773=\"Subscriber\",\"-\",IF(AND('Enrollment Form'!B773<>\"Subscriber\",'Enrollment Form'!G773='Enrollment Form'!H773),\"N\",\"Y\")))","v":""},0]
[774,{"$f":"IF('Enrollment Form'!$A774<>\"\",\"Y\",\"N\")","v":"N"},{"$f":"IF(AND('Enrollment Form'!$B774=\"\",'Enrollment Form'!$C774<>\"\"),\"N\",IF($B767=\"N\",\"\",\"Y\"))","v":""},{"$f":"IF(OR($B767=\"N\",'Enrollment Form'!G774=\"\"),\"\",IF('Enrollment Form'!$B774<>\"Subscriber\",\"\",IF('Enrollment Form'!$G774='Enrollment Form'!$H774,\"Y\",\"N\")))","v":""},{"$f":"IF($B767=\"N\",\"\",IF(AND(COUNTIFS('Enrollment Form'!$H$11:$H$1000,'Enrollment Form'!$H774,'Enrollment Form'!$B$11:$B$1000,'Enrollment Form'!$B774)>1,'Enrollment Form'!$H774<>\"\"),\"N\",\"Y\"))","v":""},{"$f":"IF($B767=\"N\",\"\",IF(LEN('Enrollment Form'!$Y774)=0,\"\",IF(LEN('Enrollment Form'!$Y774)<>5,\"N\",\"Y\")))","v":""},{"$f":"IF($B767=\"N\",\"\",IF(LEN('Enrollment Form'!$AD774=0),\"\",IF(LEN('Enrollment Form'!$AD774)<>5,\"N\",\"Y\")))","v":""},{"$f":"IF($B767=\"N\",\"\",IF(LEN('Enrollment Form'!$BS774=0),\"\",IF(LEN('Enrollment Form'!$BS774)<>5,\"N\",\"Y\")))","v":""},{"$f":"IF($B767=\"N\",\"\",IF(LEN('Enrollment Form'!$AE774)=0,\"\",IF(LEN('Enrollment Form'!$AE774)<>10,\"N\",\"Y\")))","v":""},{"$f":"IF($B767=\"N\",\"\",IF(LEN('Enrollment Form'!$AF774)=0,\"\",IF(LEN('Enrollment Form'!$AF774)<>10,\"N\",\"Y\")))","v":""},{"$f":"IF('Enrollment Form'!$O774<>\"Graded\",\"-\",IF(AND('Enrollment Form'!$O774=\"Graded\",'Enrollment Form'!$AR774<>\"\"),\"Y\",\"N\"))","v":"-"},{"$f":"IF($B767=\"N\",\"\",IF(OR('Enrollment Form'!$B774<>\"Subscriber\",'Enrollment Form'!$C774=\"ROC\"),\"-\",IF(AND('Enrollment Form'!$B774=\"Subscriber\",'Enrollment Form'!$C774=\"Enroll\",'Enrollment Form'!$AJ774<>\"\"),\"Y\",\"N\")))","v":""},{"$f":"IF($B767=\"N\",\"\",IF(OR('Enrollment Form'!$B774<>\"Subscriber\",'Enrollment Form'!$C774=\"ROC\"),\"-\",IF(AND('Enrollment Form'!$B774=\"Subscriber\",'Enrollment Form'!$C774=\"Enroll\",'Enrollment Form'!$AK774<>\"\"),\"Y\",\"N\")))","v":""},{"$f":"IF($B767=\"N\",\"\",IF(OR('Enrollment Form'!$B774<>\"Subscriber\",'Enrollment Form'!$C774=\"ROC\"),\"-\",IF(AND('Enrollment Form'!$B774=\"Subscriber\",'Enrollment Form'!$C774=\"Enroll\",'Enrollment Form'!$AL774<>\"\"),\"Y\",\"N\")))","v":""},{"$f":"IF($B767=\"N\",\"\",IF(OR('Enrollment Form'!$B774<>\"Subscriber\",'Enrollment Form'!$C774=\"ROC\"),\"-\",IF(AND('Enrollment Form'!$B774=\"Subscriber\",'Enrollment Form'!$C774=\"Enroll\",'Enrollment Form'!$AP774<>\"\"),\"Y\",\"N\")))","v":""},{"$f":"IF($B767=\"N\",\"\",IF(OR('Enrollment Form'!$B774<>\"Subscriber\",'Enrollment Form'!$C774=\"ROC\"),\"-\",IF(AND('Enrollment Form'!$B774=\"Subscriber\",'Enrollment Form'!$C774=\"Enroll\",'Enrollment Form'!$AQ774<>\"\"),\"Y\",\"N\")))","v":""},{"$f":"IF($B767=\"N\",\"\",IF(OR('Enrollment Form'!$B774<>\"Subscriber\",'Enrollment Form'!$C774=\"ROC\"),\"-\",IF(AND('Enrollment Form'!$B774=\"Subscriber\",'Enrollment Form'!$C774=\"Enroll\",'Enrollment Form'!$AS774<>\"\"),\"Y\",\"N\")))","v":""},{"$f":"IF($B767=\"N\",\"\",IF($Q767=\"-\",\"-\",IF(AND($Q767=\"Y\",'Enrollment Form'!$AS774=\"No\"),\"-\",IF(AND($Q767=\"Y\",'Enrollment Form'!$AS774=\"Yes\",'Enrollment Form'!$AT774<>\"\"),\"Y\",\"N\"))))","v":""},{"$f":"IF($B767=\"N\",\"\",IF(OR('Enrollment Form'!$B774<>\"Subscriber\",'Enrollment Form'!$C774=\"ROC\"),\"-\",IF(AND('Enrollment Form'!$B774=\"Subscriber\",'Enrollment Form'!$C774=\"Enroll\",'Enrollment Form'!$CV774<>\"\"),\"Y\",\"N\")))","v":""},{"$f":"IF($B767=\"N\",\"\",IF($S767=\"-\",\"-\",IF(AND($S767=\"Y\",'Enrollment Form'!$CV774=\"No\"),\"-\",IF(AND($S767=\"Y\",'Enrollment Form'!$CV774=\"Yes\",'Enrollment Form'!$CW774<>\"\"),\"Y\",\"N\"))))","v":""},{"$f":"IF(OR('Enrollment Form'!$AY774=\"Yes\",'Enrollment Form'!$AY774=\"\"),\"-\",IF(OR(AND('Enrollment Form'!$AY774=\"No\",ISERROR(FIND(\"HMO\",VLOOKUP('Enrollment Form'!G774,'Enrollment Form'!H$11:J$1000,3,FALSE),1))=FALSE,COUNTA('Enrollment Form'!$AZ774:$BC774)=4),AND('Enrollment Form'!$AY774=\"No\",ISERROR(FIND(\"HMO\",VLOOKUP('Enrollment Form'!G774,'Enrollment Form'!H$11:J$1000,3,FALSE),1))=FALSE,COUNTA('Enrollment Form'!$BT774:$BW774)=4)),\"Y\",\"N\"))","v":"-"},{"$f":"IF($B767=\"N\",\"\",IF('Enrollment Form'!$B774=\"Subscriber\",\"-\",IF(COUNTA('Enrollment Form'!$BL774,'Enrollment Form'!$BN774)=2,\"Y\",\"N\")))","v":""},{"$f":"IF($B767=\"N\",\"\",IF(OR('Enrollment Form'!$AX774=\"\",'Enrollment Form'!$AX774=\"No\"),\"-\",IF(AND('Enrollment Form'!$AX774=\"Yes\",COUNTA('Enrollment Form'!$CR774)=1),\"Y\",\"N\")))","v":""},{"$f":"IF(OR('Enrollment Form'!$CR774=\"\",'Enrollment Form'!$CR774=\"No\"),\"-\",IF(COUNTA('Enrollment Form'!$CT774:$CU774)=2,\"Y\",\"N\"))","v":"-"},{"$f":"IF($B767=\"N\",\"\",IF(COUNTIF('Enrollment Form'!$DG774:$DP774,\"Other\")=COUNTA('Enrollment Form'!$DK774,'Enrollment Form'!$DH774,'Enrollment Form'!$DN774,'Enrollment Form'!$DQ774),\"Y\",\"N\"))","v":""},{"$f":"IF($B767=\"N\",\"\",IF(OR('Enrollment Form'!B774<>\"Subscriber\",'Enrollment Form'!C774=\"ROC\",COUNTIF('Enrollment Form'!AV774:AW774,\"Yes\")>=1),\"-\",IF(AND('Enrollment Form'!C774=\"Enroll\",COUNTIF('Enrollment Form'!AV774:AW774,\"No\")=2,'Enrollment Form'!AX774=\"\"),\"N\",\"Y\")))","v":""},{"$f":"IF(OR(B767=\"N\",'Enrollment Form'!B774<>\"Subscriber\",'Enrollment Form'!C774=\"ROC\",'Enrollment Form'!O774<>\"Multiple of Salary\"),\"-\",IF(COUNTA('Enrollment Form'!T774:U774)<2,\"N\",\"Y\"))","v":"-"},{"$f":"IF(B767=\"N\",\"\",IF(OR('Enrollment Form'!C774=\"ROC\",'Enrollment Form'!B774<>\"Subscriber\",'Enrollment Form'!O774=\"Waive\",'Enrollment Form'!O774=\"\"),\"-\",IF('Enrollment Form'!P774=\"\",\"N\",\"Y\")))","v":""},{"$f":"IF($B767=\"N\",\"\",IF(AND('Enrollment Form'!$C774=\"ROC\",'Enrollment Form'!$DR774<>\"\"),\"Y\",IF(AND('Enrollment Form'!$C774=\"ROC\",'Enrollment Form'!$DR774=\"\"),\"N\",IF(AND('Enrollment Form'!$C774=\"Enroll\",'Enrollment Form'!$B774=\"Subscriber\",'Enrollment Form'!$CX774=\"No\",'Enrollment Form'!$DR774=\"\"),\"N\",IF(AND('Enrollment Form'!$C774=\"Enroll\",'Enrollment Form'!$B774=\"Subscriber\",'Enrollment Form'!$CX774=\"Yes\"),\"-\",\"Y\")))))","v":""},{"$f":"IF($B767=\"N\",\"\",IF(AND('Enrollment Form'!$C774=\"ROC\",'Enrollment Form'!$DS774<>\"\"),\"Y\",IF(AND('Enrollment Form'!$C774=\"ROC\",'Enrollment Form'!$DS774=\"\"),\"N\",IF(AND('Enrollment Form'!$C774=\"Enroll\",'Enrollment Form'!$B774=\"Subscriber\",'Enrollment Form'!$CX774=\"No\",'Enrollment Form'!$DS774=\"\"),\"N\",IF(AND('Enrollment Form'!$C774=\"Enroll\",'Enrollment Form'!$B774=\"Subscriber\",'Enrollment Form'!$CX774=\"Yes\"),\"-\",\"Y\")))))","v":""},{"$f":"IF('Enrollment Form'!AH774=\"\",\"\",IF(ISERROR(SEARCH(\".\",'Enrollment Form'!AH774,SEARCH(\"@\",'Enrollment Form'!AH774))),\"N\",\"Y\"))","v":""},{"$f":"IF(OR($B767=\"N\",'Enrollment Form'!$G774=\"\"),\"\",IF('Enrollment Form'!$B774<>\"Subscriber\",\"-\",IF(COUNTIF('Enrollment Form'!$AV774:$AW774,\"Yes\")=2,\"N\",\"Y\")))","v":""},{"$f":"IF(OR('Enrollment Form'!$CJ774=\"\",'Enrollment Form'!$CJ774=\"No\"),\"-\",IF(AND('Enrollment Form'!$CJ774=\"Yes\",'Enrollment Form'!$CK774=\"\"),\"N\",\"Y\"))","v":"-"},{"$f":"IF(OR('Enrollment Form'!$CL774=\"\",'Enrollment Form'!$CL774=\"No\"),\"-\",IF(AND('Enrollment Form'!$CL774=\"Yes\",'Enrollment Form'!$CM774=\"\"),\"N\",\"Y\"))","v":"-"},{"$f":"IF(OR('Enrollment Form'!$CN774=\"\",'Enrollment Form'!$CN774=\"No\"),\"-\",IF(AND('Enrollment Form'!$CN774=\"Yes\",'Enrollment Form'!$CO774=\"\"),\"N\",\"Y\"))","v":"-"},{"$f":"IF(OR('Enrollment Form'!$CN774=\"\",'Enrollment Form'!$CN774=\"No\"),\"-\",IF(AND('Enrollment Form'!$CN774=\"Yes\",'Enrollment Form'!$CP774=\"\"),\"N\",\"Y\"))","v":"-"},{"$f":"IF('Enrollment Form'!B774<>\"Subscriber\",\"-\",IF(AND('Enrollment Form'!B774=\"Subscriber\",'Enrollment Form'!C774=\"Enroll\",'Enrollment Form'!AA774=\"\"),\"N\",\"Y\"))","v":"-"},{"$f":"IF(OR('Enrollment Form'!B774=\"Subscriber\",'Enrollment Form'!B774=\"\"),\"-\",IF('Enrollment Form'!BP774=\"\",\"N\",\"Y\"))","v":"-"},{"$f":"IF('Enrollment Form'!B774<>\"Subscriber\",\"-\",IF(AND('Enrollment Form'!B774=\"Subscriber\",'Enrollment Form'!G774=\"\"),\"N\",\"Y\"))","v":"-"},{"$f":"IF('Enrollment Form'!A774=\"\",\"\",IF('Enrollment Form'!B774=\"Subscriber\",\"-\",IF(AND('Enrollment Form'!B774<>\"Subscriber\",'Enrollment Form'!G774='Enrollment Form'!H774),\"N\",\"Y\")))","v":""},0]
[775,{"$f":"IF('Enrollment Form'!$A775<>\"\",\"Y\",\"N\")","v":"N"},{"$f":"IF(AND('Enrollment Form'!$B775=\"\",'Enrollment Form'!$C775<>\"\"),\"N\",IF($B768=\"N\",\"\",\"Y\"))","v":""},{"$f":"IF(OR($B768=\"N\",'Enrollment Form'!G775=\"\"),\"\",IF('Enrollment Form'!$B775<>\"Subscriber\",\"\",IF('Enrollment Form'!$G775='Enrollment Form'!$H775,\"Y\",\"N\")))","v":""},{"$f":"IF($B768=\"N\",\"\",IF(AND(COUNTIFS('Enrollment Form'!$H$11:$H$1000,'Enrollment Form'!$H775,'Enrollment Form'!$B$11:$B$1000,'Enrollment Form'!$B775)>1,'Enrollment Form'!$H775<>\"\"),\"N\",\"Y\"))","v":""},{"$f":"IF($B768=\"N\",\"\",IF(LEN('Enrollment Form'!$Y775)=0,\"\",IF(LEN('Enrollment Form'!$Y775)<>5,\"N\",\"Y\")))","v":""},{"$f":"IF($B768=\"N\",\"\",IF(LEN('Enrollment Form'!$AD775=0),\"\",IF(LEN('Enrollment Form'!$AD775)<>5,\"N\",\"Y\")))","v":""},{"$f":"IF($B768=\"N\",\"\",IF(LEN('Enrollment Form'!$BS775=0),\"\",IF(LEN('Enrollment Form'!$BS775)<>5,\"N\",\"Y\")))","v":""},{"$f":"IF($B768=\"N\",\"\",IF(LEN('Enrollment Form'!$AE775)=0,\"\",IF(LEN('Enrollment Form'!$AE775)<>10,\"N\",\"Y\")))","v":""},{"$f":"IF($B768=\"N\",\"\",IF(LEN('Enrollment Form'!$AF775)=0,\"\",IF(LEN('Enrollment Form'!$AF775)<>10,\"N\",\"Y\")))","v":""},{"$f":"IF('Enrollment Form'!$O775<>\"Graded\",\"-\",IF(AND('Enrollment Form'!$O775=\"Graded\",'Enrollment Form'!$AR775<>\"\"),\"Y\",\"N\"))","v":"-"},{"$f":"IF($B768=\"N\",\"\",IF(OR('Enrollment Form'!$B775<>\"Subscriber\",'Enrollment Form'!$C775=\"ROC\"),\"-\",IF(AND('Enrollment Form'!$B775=\"Subscriber\",'Enrollment Form'!$C775=\"Enroll\",'Enrollment Form'!$AJ775<>\"\"),\"Y\",\"N\")))","v":""},{"$f":"IF($B768=\"N\",\"\",IF(OR('Enrollment Form'!$B775<>\"Subscriber\",'Enrollment Form'!$C775=\"ROC\"),\"-\",IF(AND('Enrollment Form'!$B775=\"Subscriber\",'Enrollment Form'!$C775=\"Enroll\",'Enrollment Form'!$AK775<>\"\"),\"Y\",\"N\")))","v":""},{"$f":"IF($B768=\"N\",\"\",IF(OR('Enrollment Form'!$B775<>\"Subscriber\",'Enrollment Form'!$C775=\"ROC\"),\"-\",IF(AND('Enrollment Form'!$B775=\"Subscriber\",'Enrollment Form'!$C775=\"Enroll\",'Enrollment Form'!$AL775<>\"\"),\"Y\",\"N\")))","v":""},{"$f":"IF($B768=\"N\",\"\",IF(OR('Enrollment Form'!$B775<>\"Subscriber\",'Enrollment Form'!$C775=\"ROC\"),\"-\",IF(AND('Enrollment Form'!$B775=\"Subscriber\",'Enrollment Form'!$C775=\"Enroll\",'Enrollment Form'!$AP775<>\"\"),\"Y\",\"N\")))","v":""},{"$f":"IF($B768=\"N\",\"\",IF(OR('Enrollment Form'!$B775<>\"Subscriber\",'Enrollment Form'!$C775=\"ROC\"),\"-\",IF(AND('Enrollment Form'!$B775=\"Subscriber\",'Enrollment Form'!$C775=\"Enroll\",'Enrollment Form'!$AQ775<>\"\"),\"Y\",\"N\")))","v":""},{"$f":"IF($B768=\"N\",\"\",IF(OR('Enrollment Form'!$B775<>\"Subscriber\",'Enrollment Form'!$C775=\"ROC\"),\"-\",IF(AND('Enrollment Form'!$B775=\"Subscriber\",'Enrollment Form'!$C775=\"Enroll\",'Enrollment Form'!$AS775<>\"\"),\"Y\",\"N\")))","v":""},{"$f":"IF($B768=\"N\",\"\",IF($Q768=\"-\",\"-\",IF(AND($Q768=\"Y\",'Enrollment Form'!$AS775=\"No\"),\"-\",IF(AND($Q768=\"Y\",'Enrollment Form'!$AS775=\"Yes\",'Enrollment Form'!$AT775<>\"\"),\"Y\",\"N\"))))","v":""},{"$f":"IF($B768=\"N\",\"\",IF(OR('Enrollment Form'!$B775<>\"Subscriber\",'Enrollment Form'!$C775=\"ROC\"),\"-\",IF(AND('Enrollment Form'!$B775=\"Subscriber\",'Enrollment Form'!$C775=\"Enroll\",'Enrollment Form'!$CV775<>\"\"),\"Y\",\"N\")))","v":""},{"$f":"IF($B768=\"N\",\"\",IF($S768=\"-\",\"-\",IF(AND($S768=\"Y\",'Enrollment Form'!$CV775=\"No\"),\"-\",IF(AND($S768=\"Y\",'Enrollment Form'!$CV775=\"Yes\",'Enrollment Form'!$CW775<>\"\"),\"Y\",\"N\"))))","v":""},{"$f":"IF(OR('Enrollment Form'!$AY775=\"Yes\",'Enrollment Form'!$AY775=\"\"),\"-\",IF(OR(AND('Enrollment Form'!$AY775=\"No\",ISERROR(FIND(\"HMO\",VLOOKUP('Enrollment Form'!G775,'Enrollment Form'!H$11:J$1000,3,FALSE),1))=FALSE,COUNTA('Enrollment Form'!$AZ775:$BC775)=4),AND('Enrollment Form'!$AY775=\"No\",ISERROR(FIND(\"HMO\",VLOOKUP('Enrollment Form'!G775,'Enrollment Form'!H$11:J$1000,3,FALSE),1))=FALSE,COUNTA('Enrollment Form'!$BT775:$BW775)=4)),\"Y\",\"N\"))","v":"-"},{"$f":"IF($B768=\"N\",\"\",IF('Enrollment Form'!$B775=\"Subscriber\",\"-\",IF(COUNTA('Enrollment Form'!$BL775,'Enrollment Form'!$BN775)=2,\"Y\",\"N\")))","v":""},{"$f":"IF($B768=\"N\",\"\",IF(OR('Enrollment Form'!$AX775=\"\",'Enrollment Form'!$AX775=\"No\"),\"-\",IF(AND('Enrollment Form'!$AX775=\"Yes\",COUNTA('Enrollment Form'!$CR775)=1),\"Y\",\"N\")))","v":""},{"$f":"IF(OR('Enrollment Form'!$CR775=\"\",'Enrollment Form'!$CR775=\"No\"),\"-\",IF(COUNTA('Enrollment Form'!$CT775:$CU775)=2,\"Y\",\"N\"))","v":"-"},{"$f":"IF($B768=\"N\",\"\",IF(COUNTIF('Enrollment Form'!$DG775:$DP775,\"Other\")=COUNTA('Enrollment Form'!$DK775,'Enrollment Form'!$DH775,'Enrollment Form'!$DN775,'Enrollment Form'!$DQ775),\"Y\",\"N\"))","v":""},{"$f":"IF($B768=\"N\",\"\",IF(OR('Enrollment Form'!B775<>\"Subscriber\",'Enrollment Form'!C775=\"ROC\",COUNTIF('Enrollment Form'!AV775:AW775,\"Yes\")>=1),\"-\",IF(AND('Enrollment Form'!C775=\"Enroll\",COUNTIF('Enrollment Form'!AV775:AW775,\"No\")=2,'Enrollment Form'!AX775=\"\"),\"N\",\"Y\")))","v":""},{"$f":"IF(OR(B768=\"N\",'Enrollment Form'!B775<>\"Subscriber\",'Enrollment Form'!C775=\"ROC\",'Enrollment Form'!O775<>\"Multiple of Salary\"),\"-\",IF(COUNTA('Enrollment Form'!T775:U775)<2,\"N\",\"Y\"))","v":"-"},{"$f":"IF(B768=\"N\",\"\",IF(OR('Enrollment Form'!C775=\"ROC\",'Enrollment Form'!B775<>\"Subscriber\",'Enrollment Form'!O775=\"Waive\",'Enrollment Form'!O775=\"\"),\"-\",IF('Enrollment Form'!P775=\"\",\"N\",\"Y\")))","v":""},{"$f":"IF($B768=\"N\",\"\",IF(AND('Enrollment Form'!$C775=\"ROC\",'Enrollment Form'!$DR775<>\"\"),\"Y\",IF(AND('Enrollment Form'!$C775=\"ROC\",'Enrollment Form'!$DR775=\"\"),\"N\",IF(AND('Enrollment Form'!$C775=\"Enroll\",'Enrollment Form'!$B775=\"Subscriber\",'Enrollment Form'!$CX775=\"No\",'Enrollment Form'!$DR775=\"\"),\"N\",IF(AND('Enrollment Form'!$C775=\"Enroll\",'Enrollment Form'!$B775=\"Subscriber\",'Enrollment Form'!$CX775=\"Yes\"),\"-\",\"Y\")))))","v":""},{"$f":"IF($B768=\"N\",\"\",IF(AND('Enrollment Form'!$C775=\"ROC\",'Enrollment Form'!$DS775<>\"\"),\"Y\",IF(AND('Enrollment Form'!$C775=\"ROC\",'Enrollment Form'!$DS775=\"\"),\"N\",IF(AND('Enrollment Form'!$C775=\"Enroll\",'Enrollment Form'!$B775=\"Subscriber\",'Enrollment Form'!$CX775=\"No\",'Enrollment Form'!$DS775=\"\"),\"N\",IF(AND('Enrollment Form'!$C775=\"Enroll\",'Enrollment Form'!$B775=\"Subscriber\",'Enrollment Form'!$CX775=\"Yes\"),\"-\",\"Y\")))))","v":""},{"$f":"IF('Enrollment Form'!AH775=\"\",\"\",IF(ISERROR(SEARCH(\".\",'Enrollment Form'!AH775,SEARCH(\"@\",'Enrollment Form'!AH775))),\"N\",\"Y\"))","v":""},{"$f":"IF(OR($B768=\"N\",'Enrollment Form'!$G775=\"\"),\"\",IF('Enrollment Form'!$B775<>\"Subscriber\",\"-\",IF(COUNTIF('Enrollment Form'!$AV775:$AW775,\"Yes\")=2,\"N\",\"Y\")))","v":""},{"$f":"IF(OR('Enrollment Form'!$CJ775=\"\",'Enrollment Form'!$CJ775=\"No\"),\"-\",IF(AND('Enrollment Form'!$CJ775=\"Yes\",'Enrollment Form'!$CK775=\"\"),\"N\",\"Y\"))","v":"-"},{"$f":"IF(OR('Enrollment Form'!$CL775=\"\",'Enrollment Form'!$CL775=\"No\"),\"-\",IF(AND('Enrollment Form'!$CL775=\"Yes\",'Enrollment Form'!$CM775=\"\"),\"N\",\"Y\"))","v":"-"},{"$f":"IF(OR('Enrollment Form'!$CN775=\"\",'Enrollment Form'!$CN775=\"No\"),\"-\",IF(AND('Enrollment Form'!$CN775=\"Yes\",'Enrollment Form'!$CO775=\"\"),\"N\",\"Y\"))","v":"-"},{"$f":"IF(OR('Enrollment Form'!$CN775=\"\",'Enrollment Form'!$CN775=\"No\"),\"-\",IF(AND('Enrollment Form'!$CN775=\"Yes\",'Enrollment Form'!$CP775=\"\"),\"N\",\"Y\"))","v":"-"},{"$f":"IF('Enrollment Form'!B775<>\"Subscriber\",\"-\",IF(AND('Enrollment Form'!B775=\"Subscriber\",'Enrollment Form'!C775=\"Enroll\",'Enrollment Form'!AA775=\"\"),\"N\",\"Y\"))","v":"-"},{"$f":"IF(OR('Enrollment Form'!B775=\"Subscriber\",'Enrollment Form'!B775=\"\"),\"-\",IF('Enrollment Form'!BP775=\"\",\"N\",\"Y\"))","v":"-"},{"$f":"IF('Enrollment Form'!B775<>\"Subscriber\",\"-\",IF(AND('Enrollment Form'!B775=\"Subscriber\",'Enrollment Form'!G775=\"\"),\"N\",\"Y\"))","v":"-"},{"$f":"IF('Enrollment Form'!A775=\"\",\"\",IF('Enrollment Form'!B775=\"Subscriber\",\"-\",IF(AND('Enrollment Form'!B775<>\"Subscriber\",'Enrollment Form'!G775='Enrollment Form'!H775),\"N\",\"Y\")))","v":""},0]
[776,{"$f":"IF('Enrollment Form'!$A776<>\"\",\"Y\",\"N\")","v":"N"},{"$f":"IF(AND('Enrollment Form'!$B776=\"\",'Enrollment Form'!$C776<>\"\"),\"N\",IF($B769=\"N\",\"\",\"Y\"))","v":""},{"$f":"IF(OR($B769=\"N\",'Enrollment Form'!G776=\"\"),\"\",IF('Enrollment Form'!$B776<>\"Subscriber\",\"\",IF('Enrollment Form'!$G776='Enrollment Form'!$H776,\"Y\",\"N\")))","v":""},{"$f":"IF($B769=\"N\",\"\",IF(AND(COUNTIFS('Enrollment Form'!$H$11:$H$1000,'Enrollment Form'!$H776,'Enrollment Form'!$B$11:$B$1000,'Enrollment Form'!$B776)>1,'Enrollment Form'!$H776<>\"\"),\"N\",\"Y\"))","v":""},{"$f":"IF($B769=\"N\",\"\",IF(LEN('Enrollment Form'!$Y776)=0,\"\",IF(LEN('Enrollment Form'!$Y776)<>5,\"N\",\"Y\")))","v":""},{"$f":"IF($B769=\"N\",\"\",IF(LEN('Enrollment Form'!$AD776=0),\"\",IF(LEN('Enrollment Form'!$AD776)<>5,\"N\",\"Y\")))","v":""},{"$f":"IF($B769=\"N\",\"\",IF(LEN('Enrollment Form'!$BS776=0),\"\",IF(LEN('Enrollment Form'!$BS776)<>5,\"N\",\"Y\")))","v":""},{"$f":"IF($B769=\"N\",\"\",IF(LEN('Enrollment Form'!$AE776)=0,\"\",IF(LEN('Enrollment Form'!$AE776)<>10,\"N\",\"Y\")))","v":""},{"$f":"IF($B769=\"N\",\"\",IF(LEN('Enrollment Form'!$AF776)=0,\"\",IF(LEN('Enrollment Form'!$AF776)<>10,\"N\",\"Y\")))","v":""},{"$f":"IF('Enrollment Form'!$O776<>\"Graded\",\"-\",IF(AND('Enrollment Form'!$O776=\"Graded\",'Enrollment Form'!$AR776<>\"\"),\"Y\",\"N\"))","v":"-"},{"$f":"IF($B769=\"N\",\"\",IF(OR('Enrollment Form'!$B776<>\"Subscriber\",'Enrollment Form'!$C776=\"ROC\"),\"-\",IF(AND('Enrollment Form'!$B776=\"Subscriber\",'Enrollment Form'!$C776=\"Enroll\",'Enrollment Form'!$AJ776<>\"\"),\"Y\",\"N\")))","v":""},{"$f":"IF($B769=\"N\",\"\",IF(OR('Enrollment Form'!$B776<>\"Subscriber\",'Enrollment Form'!$C776=\"ROC\"),\"-\",IF(AND('Enrollment Form'!$B776=\"Subscriber\",'Enrollment Form'!$C776=\"Enroll\",'Enrollment Form'!$AK776<>\"\"),\"Y\",\"N\")))","v":""},{"$f":"IF($B769=\"N\",\"\",IF(OR('Enrollment Form'!$B776<>\"Subscriber\",'Enrollment Form'!$C776=\"ROC\"),\"-\",IF(AND('Enrollment Form'!$B776=\"Subscriber\",'Enrollment Form'!$C776=\"Enroll\",'Enrollment Form'!$AL776<>\"\"),\"Y\",\"N\")))","v":""},{"$f":"IF($B769=\"N\",\"\",IF(OR('Enrollment Form'!$B776<>\"Subscriber\",'Enrollment Form'!$C776=\"ROC\"),\"-\",IF(AND('Enrollment Form'!$B776=\"Subscriber\",'Enrollment Form'!$C776=\"Enroll\",'Enrollment Form'!$AP776<>\"\"),\"Y\",\"N\")))","v":""},{"$f":"IF($B769=\"N\",\"\",IF(OR('Enrollment Form'!$B776<>\"Subscriber\",'Enrollment Form'!$C776=\"ROC\"),\"-\",IF(AND('Enrollment Form'!$B776=\"Subscriber\",'Enrollment Form'!$C776=\"Enroll\",'Enrollment Form'!$AQ776<>\"\"),\"Y\",\"N\")))","v":""},{"$f":"IF($B769=\"N\",\"\",IF(OR('Enrollment Form'!$B776<>\"Subscriber\",'Enrollment Form'!$C776=\"ROC\"),\"-\",IF(AND('Enrollment Form'!$B776=\"Subscriber\",'Enrollment Form'!$C776=\"Enroll\",'Enrollment Form'!$AS776<>\"\"),\"Y\",\"N\")))","v":""},{"$f":"IF($B769=\"N\",\"\",IF($Q769=\"-\",\"-\",IF(AND($Q769=\"Y\",'Enrollment Form'!$AS776=\"No\"),\"-\",IF(AND($Q769=\"Y\",'Enrollment Form'!$AS776=\"Yes\",'Enrollment Form'!$AT776<>\"\"),\"Y\",\"N\"))))","v":""},{"$f":"IF($B769=\"N\",\"\",IF(OR('Enrollment Form'!$B776<>\"Subscriber\",'Enrollment Form'!$C776=\"ROC\"),\"-\",IF(AND('Enrollment Form'!$B776=\"Subscriber\",'Enrollment Form'!$C776=\"Enroll\",'Enrollment Form'!$CV776<>\"\"),\"Y\",\"N\")))","v":""},{"$f":"IF($B769=\"N\",\"\",IF($S769=\"-\",\"-\",IF(AND($S769=\"Y\",'Enrollment Form'!$CV776=\"No\"),\"-\",IF(AND($S769=\"Y\",'Enrollment Form'!$CV776=\"Yes\",'Enrollment Form'!$CW776<>\"\"),\"Y\",\"N\"))))","v":""},{"$f":"IF(OR('Enrollment Form'!$AY776=\"Yes\",'Enrollment Form'!$AY776=\"\"),\"-\",IF(OR(AND('Enrollment Form'!$AY776=\"No\",ISERROR(FIND(\"HMO\",VLOOKUP('Enrollment Form'!G776,'Enrollment Form'!H$11:J$1000,3,FALSE),1))=FALSE,COUNTA('Enrollment Form'!$AZ776:$BC776)=4),AND('Enrollment Form'!$AY776=\"No\",ISERROR(FIND(\"HMO\",VLOOKUP('Enrollment Form'!G776,'Enrollment Form'!H$11:J$1000,3,FALSE),1))=FALSE,COUNTA('Enrollment Form'!$BT776:$BW776)=4)),\"Y\",\"N\"))","v":"-"},{"$f":"IF($B769=\"N\",\"\",IF('Enrollment Form'!$B776=\"Subscriber\",\"-\",IF(COUNTA('Enrollment Form'!$BL776,'Enrollment Form'!$BN776)=2,\"Y\",\"N\")))","v":""},{"$f":"IF($B769=\"N\",\"\",IF(OR('Enrollment Form'!$AX776=\"\",'Enrollment Form'!$AX776=\"No\"),\"-\",IF(AND('Enrollment Form'!$AX776=\"Yes\",COUNTA('Enrollment Form'!$CR776)=1),\"Y\",\"N\")))","v":""},{"$f":"IF(OR('Enrollment Form'!$CR776=\"\",'Enrollment Form'!$CR776=\"No\"),\"-\",IF(COUNTA('Enrollment Form'!$CT776:$CU776)=2,\"Y\",\"N\"))","v":"-"},{"$f":"IF($B769=\"N\",\"\",IF(COUNTIF('Enrollment Form'!$DG776:$DP776,\"Other\")=COUNTA('Enrollment Form'!$DK776,'Enrollment Form'!$DH776,'Enrollment Form'!$DN776,'Enrollment Form'!$DQ776),\"Y\",\"N\"))","v":""},{"$f":"IF($B769=\"N\",\"\",IF(OR('Enrollment Form'!B776<>\"Subscriber\",'Enrollment Form'!C776=\"ROC\",COUNTIF('Enrollment Form'!AV776:AW776,\"Yes\")>=1),\"-\",IF(AND('Enrollment Form'!C776=\"Enroll\",COUNTIF('Enrollment Form'!AV776:AW776,\"No\")=2,'Enrollment Form'!AX776=\"\"),\"N\",\"Y\")))","v":""},{"$f":"IF(OR(B769=\"N\",'Enrollment Form'!B776<>\"Subscriber\",'Enrollment Form'!C776=\"ROC\",'Enrollment Form'!O776<>\"Multiple of Salary\"),\"-\",IF(COUNTA('Enrollment Form'!T776:U776)<2,\"N\",\"Y\"))","v":"-"},{"$f":"IF(B769=\"N\",\"\",IF(OR('Enrollment Form'!C776=\"ROC\",'Enrollment Form'!B776<>\"Subscriber\",'Enrollment Form'!O776=\"Waive\",'Enrollment Form'!O776=\"\"),\"-\",IF('Enrollment Form'!P776=\"\",\"N\",\"Y\")))","v":""},{"$f":"IF($B769=\"N\",\"\",IF(AND('Enrollment Form'!$C776=\"ROC\",'Enrollment Form'!$DR776<>\"\"),\"Y\",IF(AND('Enrollment Form'!$C776=\"ROC\",'Enrollment Form'!$DR776=\"\"),\"N\",IF(AND('Enrollment Form'!$C776=\"Enroll\",'Enrollment Form'!$B776=\"Subscriber\",'Enrollment Form'!$CX776=\"No\",'Enrollment Form'!$DR776=\"\"),\"N\",IF(AND('Enrollment Form'!$C776=\"Enroll\",'Enrollment Form'!$B776=\"Subscriber\",'Enrollment Form'!$CX776=\"Yes\"),\"-\",\"Y\")))))","v":""},{"$f":"IF($B769=\"N\",\"\",IF(AND('Enrollment Form'!$C776=\"ROC\",'Enrollment Form'!$DS776<>\"\"),\"Y\",IF(AND('Enrollment Form'!$C776=\"ROC\",'Enrollment Form'!$DS776=\"\"),\"N\",IF(AND('Enrollment Form'!$C776=\"Enroll\",'Enrollment Form'!$B776=\"Subscriber\",'Enrollment Form'!$CX776=\"No\",'Enrollment Form'!$DS776=\"\"),\"N\",IF(AND('Enrollment Form'!$C776=\"Enroll\",'Enrollment Form'!$B776=\"Subscriber\",'Enrollment Form'!$CX776=\"Yes\"),\"-\",\"Y\")))))","v":""},{"$f":"IF('Enrollment Form'!AH776=\"\",\"\",IF(ISERROR(SEARCH(\".\",'Enrollment Form'!AH776,SEARCH(\"@\",'Enrollment Form'!AH776))),\"N\",\"Y\"))","v":""},{"$f":"IF(OR($B769=\"N\",'Enrollment Form'!$G776=\"\"),\"\",IF('Enrollment Form'!$B776<>\"Subscriber\",\"-\",IF(COUNTIF('Enrollment Form'!$AV776:$AW776,\"Yes\")=2,\"N\",\"Y\")))","v":""},{"$f":"IF(OR('Enrollment Form'!$CJ776=\"\",'Enrollment Form'!$CJ776=\"No\"),\"-\",IF(AND('Enrollment Form'!$CJ776=\"Yes\",'Enrollment Form'!$CK776=\"\"),\"N\",\"Y\"))","v":"-"},{"$f":"IF(OR('Enrollment Form'!$CL776=\"\",'Enrollment Form'!$CL776=\"No\"),\"-\",IF(AND('Enrollment Form'!$CL776=\"Yes\",'Enrollment Form'!$CM776=\"\"),\"N\",\"Y\"))","v":"-"},{"$f":"IF(OR('Enrollment Form'!$CN776=\"\",'Enrollment Form'!$CN776=\"No\"),\"-\",IF(AND('Enrollment Form'!$CN776=\"Yes\",'Enrollment Form'!$CO776=\"\"),\"N\",\"Y\"))","v":"-"},{"$f":"IF(OR('Enrollment Form'!$CN776=\"\",'Enrollment Form'!$CN776=\"No\"),\"-\",IF(AND('Enrollment Form'!$CN776=\"Yes\",'Enrollment Form'!$CP776=\"\"),\"N\",\"Y\"))","v":"-"},{"$f":"IF('Enrollment Form'!B776<>\"Subscriber\",\"-\",IF(AND('Enrollment Form'!B776=\"Subscriber\",'Enrollment Form'!C776=\"Enroll\",'Enrollment Form'!AA776=\"\"),\"N\",\"Y\"))","v":"-"},{"$f":"IF(OR('Enrollment Form'!B776=\"Subscriber\",'Enrollment Form'!B776=\"\"),\"-\",IF('Enrollment Form'!BP776=\"\",\"N\",\"Y\"))","v":"-"},{"$f":"IF('Enrollment Form'!B776<>\"Subscriber\",\"-\",IF(AND('Enrollment Form'!B776=\"Subscriber\",'Enrollment Form'!G776=\"\"),\"N\",\"Y\"))","v":"-"},{"$f":"IF('Enrollment Form'!A776=\"\",\"\",IF('Enrollment Form'!B776=\"Subscriber\",\"-\",IF(AND('Enrollment Form'!B776<>\"Subscriber\",'Enrollment Form'!G776='Enrollment Form'!H776),\"N\",\"Y\")))","v":""},0]
[777,{"$f":"IF('Enrollment Form'!$A777<>\"\",\"Y\",\"N\")","v":"N"},{"$f":"IF(AND('Enrollment Form'!$B777=\"\",'Enrollment Form'!$C777<>\"\"),\"N\",IF($B770=\"N\",\"\",\"Y\"))","v":""},{"$f":"IF(OR($B770=\"N\",'Enrollment Form'!G777=\"\"),\"\",IF('Enrollment Form'!$B777<>\"Subscriber\",\"\",IF('Enrollment Form'!$G777='Enrollment Form'!$H777,\"Y\",\"N\")))","v":""},{"$f":"IF($B770=\"N\",\"\",IF(AND(COUNTIFS('Enrollment Form'!$H$11:$H$1000,'Enrollment Form'!$H777,'Enrollment Form'!$B$11:$B$1000,'Enrollment Form'!$B777)>1,'Enrollment Form'!$H777<>\"\"),\"N\",\"Y\"))","v":""},{"$f":"IF($B770=\"N\",\"\",IF(LEN('Enrollment Form'!$Y777)=0,\"\",IF(LEN('Enrollment Form'!$Y777)<>5,\"N\",\"Y\")))","v":""},{"$f":"IF($B770=\"N\",\"\",IF(LEN('Enrollment Form'!$AD777=0),\"\",IF(LEN('Enrollment Form'!$AD777)<>5,\"N\",\"Y\")))","v":""},{"$f":"IF($B770=\"N\",\"\",IF(LEN('Enrollment Form'!$BS777=0),\"\",IF(LEN('Enrollment Form'!$BS777)<>5,\"N\",\"Y\")))","v":""},{"$f":"IF($B770=\"N\",\"\",IF(LEN('Enrollment Form'!$AE777)=0,\"\",IF(LEN('Enrollment Form'!$AE777)<>10,\"N\",\"Y\")))","v":""},{"$f":"IF($B770=\"N\",\"\",IF(LEN('Enrollment Form'!$AF777)=0,\"\",IF(LEN('Enrollment Form'!$AF777)<>10,\"N\",\"Y\")))","v":""},{"$f":"IF('Enrollment Form'!$O777<>\"Graded\",\"-\",IF(AND('Enrollment Form'!$O777=\"Graded\",'Enrollment Form'!$AR777<>\"\"),\"Y\",\"N\"))","v":"-"},{"$f":"IF($B770=\"N\",\"\",IF(OR('Enrollment Form'!$B777<>\"Subscriber\",'Enrollment Form'!$C777=\"ROC\"),\"-\",IF(AND('Enrollment Form'!$B777=\"Subscriber\",'Enrollment Form'!$C777=\"Enroll\",'Enrollment Form'!$AJ777<>\"\"),\"Y\",\"N\")))","v":""},{"$f":"IF($B770=\"N\",\"\",IF(OR('Enrollment Form'!$B777<>\"Subscriber\",'Enrollment Form'!$C777=\"ROC\"),\"-\",IF(AND('Enrollment Form'!$B777=\"Subscriber\",'Enrollment Form'!$C777=\"Enroll\",'Enrollment Form'!$AK777<>\"\"),\"Y\",\"N\")))","v":""},{"$f":"IF($B770=\"N\",\"\",IF(OR('Enrollment Form'!$B777<>\"Subscriber\",'Enrollment Form'!$C777=\"ROC\"),\"-\",IF(AND('Enrollment Form'!$B777=\"Subscriber\",'Enrollment Form'!$C777=\"Enroll\",'Enrollment Form'!$AL777<>\"\"),\"Y\",\"N\")))","v":""},{"$f":"IF($B770=\"N\",\"\",IF(OR('Enrollment Form'!$B777<>\"Subscriber\",'Enrollment Form'!$C777=\"ROC\"),\"-\",IF(AND('Enrollment Form'!$B777=\"Subscriber\",'Enrollment Form'!$C777=\"Enroll\",'Enrollment Form'!$AP777<>\"\"),\"Y\",\"N\")))","v":""},{"$f":"IF($B770=\"N\",\"\",IF(OR('Enrollment Form'!$B777<>\"Subscriber\",'Enrollment Form'!$C777=\"ROC\"),\"-\",IF(AND('Enrollment Form'!$B777=\"Subscriber\",'Enrollment Form'!$C777=\"Enroll\",'Enrollment Form'!$AQ777<>\"\"),\"Y\",\"N\")))","v":""},{"$f":"IF($B770=\"N\",\"\",IF(OR('Enrollment Form'!$B777<>\"Subscriber\",'Enrollment Form'!$C777=\"ROC\"),\"-\",IF(AND('Enrollment Form'!$B777=\"Subscriber\",'Enrollment Form'!$C777=\"Enroll\",'Enrollment Form'!$AS777<>\"\"),\"Y\",\"N\")))","v":""},{"$f":"IF($B770=\"N\",\"\",IF($Q770=\"-\",\"-\",IF(AND($Q770=\"Y\",'Enrollment Form'!$AS777=\"No\"),\"-\",IF(AND($Q770=\"Y\",'Enrollment Form'!$AS777=\"Yes\",'Enrollment Form'!$AT777<>\"\"),\"Y\",\"N\"))))","v":""},{"$f":"IF($B770=\"N\",\"\",IF(OR('Enrollment Form'!$B777<>\"Subscriber\",'Enrollment Form'!$C777=\"ROC\"),\"-\",IF(AND('Enrollment Form'!$B777=\"Subscriber\",'Enrollment Form'!$C777=\"Enroll\",'Enrollment Form'!$CV777<>\"\"),\"Y\",\"N\")))","v":""},{"$f":"IF($B770=\"N\",\"\",IF($S770=\"-\",\"-\",IF(AND($S770=\"Y\",'Enrollment Form'!$CV777=\"No\"),\"-\",IF(AND($S770=\"Y\",'Enrollment Form'!$CV777=\"Yes\",'Enrollment Form'!$CW777<>\"\"),\"Y\",\"N\"))))","v":""},{"$f":"IF(OR('Enrollment Form'!$AY777=\"Yes\",'Enrollment Form'!$AY777=\"\"),\"-\",IF(OR(AND('Enrollment Form'!$AY777=\"No\",ISERROR(FIND(\"HMO\",VLOOKUP('Enrollment Form'!G777,'Enrollment Form'!H$11:J$1000,3,FALSE),1))=FALSE,COUNTA('Enrollment Form'!$AZ777:$BC777)=4),AND('Enrollment Form'!$AY777=\"No\",ISERROR(FIND(\"HMO\",VLOOKUP('Enrollment Form'!G777,'Enrollment Form'!H$11:J$1000,3,FALSE),1))=FALSE,COUNTA('Enrollment Form'!$BT777:$BW777)=4)),\"Y\",\"N\"))","v":"-"},{"$f":"IF($B770=\"N\",\"\",IF('Enrollment Form'!$B777=\"Subscriber\",\"-\",IF(COUNTA('Enrollment Form'!$BL777,'Enrollment Form'!$BN777)=2,\"Y\",\"N\")))","v":""},{"$f":"IF($B770=\"N\",\"\",IF(OR('Enrollment Form'!$AX777=\"\",'Enrollment Form'!$AX777=\"No\"),\"-\",IF(AND('Enrollment Form'!$AX777=\"Yes\",COUNTA('Enrollment Form'!$CR777)=1),\"Y\",\"N\")))","v":""},{"$f":"IF(OR('Enrollment Form'!$CR777=\"\",'Enrollment Form'!$CR777=\"No\"),\"-\",IF(COUNTA('Enrollment Form'!$CT777:$CU777)=2,\"Y\",\"N\"))","v":"-"},{"$f":"IF($B770=\"N\",\"\",IF(COUNTIF('Enrollment Form'!$DG777:$DP777,\"Other\")=COUNTA('Enrollment Form'!$DK777,'Enrollment Form'!$DH777,'Enrollment Form'!$DN777,'Enrollment Form'!$DQ777),\"Y\",\"N\"))","v":""},{"$f":"IF($B770=\"N\",\"\",IF(OR('Enrollment Form'!B777<>\"Subscriber\",'Enrollment Form'!C777=\"ROC\",COUNTIF('Enrollment Form'!AV777:AW777,\"Yes\")>=1),\"-\",IF(AND('Enrollment Form'!C777=\"Enroll\",COUNTIF('Enrollment Form'!AV777:AW777,\"No\")=2,'Enrollment Form'!AX777=\"\"),\"N\",\"Y\")))","v":""},{"$f":"IF(OR(B770=\"N\",'Enrollment Form'!B777<>\"Subscriber\",'Enrollment Form'!C777=\"ROC\",'Enrollment Form'!O777<>\"Multiple of Salary\"),\"-\",IF(COUNTA('Enrollment Form'!T777:U777)<2,\"N\",\"Y\"))","v":"-"},{"$f":"IF(B770=\"N\",\"\",IF(OR('Enrollment Form'!C777=\"ROC\",'Enrollment Form'!B777<>\"Subscriber\",'Enrollment Form'!O777=\"Waive\",'Enrollment Form'!O777=\"\"),\"-\",IF('Enrollment Form'!P777=\"\",\"N\",\"Y\")))","v":""},{"$f":"IF($B770=\"N\",\"\",IF(AND('Enrollment Form'!$C777=\"ROC\",'Enrollment Form'!$DR777<>\"\"),\"Y\",IF(AND('Enrollment Form'!$C777=\"ROC\",'Enrollment Form'!$DR777=\"\"),\"N\",IF(AND('Enrollment Form'!$C777=\"Enroll\",'Enrollment Form'!$B777=\"Subscriber\",'Enrollment Form'!$CX777=\"No\",'Enrollment Form'!$DR777=\"\"),\"N\",IF(AND('Enrollment Form'!$C777=\"Enroll\",'Enrollment Form'!$B777=\"Subscriber\",'Enrollment Form'!$CX777=\"Yes\"),\"-\",\"Y\")))))","v":""},{"$f":"IF($B770=\"N\",\"\",IF(AND('Enrollment Form'!$C777=\"ROC\",'Enrollment Form'!$DS777<>\"\"),\"Y\",IF(AND('Enrollment Form'!$C777=\"ROC\",'Enrollment Form'!$DS777=\"\"),\"N\",IF(AND('Enrollment Form'!$C777=\"Enroll\",'Enrollment Form'!$B777=\"Subscriber\",'Enrollment Form'!$CX777=\"No\",'Enrollment Form'!$DS777=\"\"),\"N\",IF(AND('Enrollment Form'!$C777=\"Enroll\",'Enrollment Form'!$B777=\"Subscriber\",'Enrollment Form'!$CX777=\"Yes\"),\"-\",\"Y\")))))","v":""},{"$f":"IF('Enrollment Form'!AH777=\"\",\"\",IF(ISERROR(SEARCH(\".\",'Enrollment Form'!AH777,SEARCH(\"@\",'Enrollment Form'!AH777))),\"N\",\"Y\"))","v":""},{"$f":"IF(OR($B770=\"N\",'Enrollment Form'!$G777=\"\"),\"\",IF('Enrollment Form'!$B777<>\"Subscriber\",\"-\",IF(COUNTIF('Enrollment Form'!$AV777:$AW777,\"Yes\")=2,\"N\",\"Y\")))","v":""},{"$f":"IF(OR('Enrollment Form'!$CJ777=\"\",'Enrollment Form'!$CJ777=\"No\"),\"-\",IF(AND('Enrollment Form'!$CJ777=\"Yes\",'Enrollment Form'!$CK777=\"\"),\"N\",\"Y\"))","v":"-"},{"$f":"IF(OR('Enrollment Form'!$CL777=\"\",'Enrollment Form'!$CL777=\"No\"),\"-\",IF(AND('Enrollment Form'!$CL777=\"Yes\",'Enrollment Form'!$CM777=\"\"),\"N\",\"Y\"))","v":"-"},{"$f":"IF(OR('Enrollment Form'!$CN777=\"\",'Enrollment Form'!$CN777=\"No\"),\"-\",IF(AND('Enrollment Form'!$CN777=\"Yes\",'Enrollment Form'!$CO777=\"\"),\"N\",\"Y\"))","v":"-"},{"$f":"IF(OR('Enrollment Form'!$CN777=\"\",'Enrollment Form'!$CN777=\"No\"),\"-\",IF(AND('Enrollment Form'!$CN777=\"Yes\",'Enrollment Form'!$CP777=\"\"),\"N\",\"Y\"))","v":"-"},{"$f":"IF('Enrollment Form'!B777<>\"Subscriber\",\"-\",IF(AND('Enrollment Form'!B777=\"Subscriber\",'Enrollment Form'!C777=\"Enroll\",'Enrollment Form'!AA777=\"\"),\"N\",\"Y\"))","v":"-"},{"$f":"IF(OR('Enrollment Form'!B777=\"Subscriber\",'Enrollment Form'!B777=\"\"),\"-\",IF('Enrollment Form'!BP777=\"\",\"N\",\"Y\"))","v":"-"},{"$f":"IF('Enrollment Form'!B777<>\"Subscriber\",\"-\",IF(AND('Enrollment Form'!B777=\"Subscriber\",'Enrollment Form'!G777=\"\"),\"N\",\"Y\"))","v":"-"},{"$f":"IF('Enrollment Form'!A777=\"\",\"\",IF('Enrollment Form'!B777=\"Subscriber\",\"-\",IF(AND('Enrollment Form'!B777<>\"Subscriber\",'Enrollment Form'!G777='Enrollment Form'!H777),\"N\",\"Y\")))","v":""},0]
[778,{"$f":"IF('Enrollment Form'!$A778<>\"\",\"Y\",\"N\")","v":"N"},{"$f":"IF(AND('Enrollment Form'!$B778=\"\",'Enrollment Form'!$C778<>\"\"),\"N\",IF($B771=\"N\",\"\",\"Y\"))","v":""},{"$f":"IF(OR($B771=\"N\",'Enrollment Form'!G778=\"\"),\"\",IF('Enrollment Form'!$B778<>\"Subscriber\",\"\",IF('Enrollment Form'!$G778='Enrollment Form'!$H778,\"Y\",\"N\")))","v":""},{"$f":"IF($B771=\"N\",\"\",IF(AND(COUNTIFS('Enrollment Form'!$H$11:$H$1000,'Enrollment Form'!$H778,'Enrollment Form'!$B$11:$B$1000,'Enrollment Form'!$B778)>1,'Enrollment Form'!$H778<>\"\"),\"N\",\"Y\"))","v":""},{"$f":"IF($B771=\"N\",\"\",IF(LEN('Enrollment Form'!$Y778)=0,\"\",IF(LEN('Enrollment Form'!$Y778)<>5,\"N\",\"Y\")))","v":""},{"$f":"IF($B771=\"N\",\"\",IF(LEN('Enrollment Form'!$AD778=0),\"\",IF(LEN('Enrollment Form'!$AD778)<>5,\"N\",\"Y\")))","v":""},{"$f":"IF($B771=\"N\",\"\",IF(LEN('Enrollment Form'!$BS778=0),\"\",IF(LEN('Enrollment Form'!$BS778)<>5,\"N\",\"Y\")))","v":""},{"$f":"IF($B771=\"N\",\"\",IF(LEN('Enrollment Form'!$AE778)=0,\"\",IF(LEN('Enrollment Form'!$AE778)<>10,\"N\",\"Y\")))","v":""},{"$f":"IF($B771=\"N\",\"\",IF(LEN('Enrollment Form'!$AF778)=0,\"\",IF(LEN('Enrollment Form'!$AF778)<>10,\"N\",\"Y\")))","v":""},{"$f":"IF('Enrollment Form'!$O778<>\"Graded\",\"-\",IF(AND('Enrollment Form'!$O778=\"Graded\",'Enrollment Form'!$AR778<>\"\"),\"Y\",\"N\"))","v":"-"},{"$f":"IF($B771=\"N\",\"\",IF(OR('Enrollment Form'!$B778<>\"Subscriber\",'Enrollment Form'!$C778=\"ROC\"),\"-\",IF(AND('Enrollment Form'!$B778=\"Subscriber\",'Enrollment Form'!$C778=\"Enroll\",'Enrollment Form'!$AJ778<>\"\"),\"Y\",\"N\")))","v":""},{"$f":"IF($B771=\"N\",\"\",IF(OR('Enrollment Form'!$B778<>\"Subscriber\",'Enrollment Form'!$C778=\"ROC\"),\"-\",IF(AND('Enrollment Form'!$B778=\"Subscriber\",'Enrollment Form'!$C778=\"Enroll\",'Enrollment Form'!$AK778<>\"\"),\"Y\",\"N\")))","v":""},{"$f":"IF($B771=\"N\",\"\",IF(OR('Enrollment Form'!$B778<>\"Subscriber\",'Enrollment Form'!$C778=\"ROC\"),\"-\",IF(AND('Enrollment Form'!$B778=\"Subscriber\",'Enrollment Form'!$C778=\"Enroll\",'Enrollment Form'!$AL778<>\"\"),\"Y\",\"N\")))","v":""},{"$f":"IF($B771=\"N\",\"\",IF(OR('Enrollment Form'!$B778<>\"Subscriber\",'Enrollment Form'!$C778=\"ROC\"),\"-\",IF(AND('Enrollment Form'!$B778=\"Subscriber\",'Enrollment Form'!$C778=\"Enroll\",'Enrollment Form'!$AP778<>\"\"),\"Y\",\"N\")))","v":""},{"$f":"IF($B771=\"N\",\"\",IF(OR('Enrollment Form'!$B778<>\"Subscriber\",'Enrollment Form'!$C778=\"ROC\"),\"-\",IF(AND('Enrollment Form'!$B778=\"Subscriber\",'Enrollment Form'!$C778=\"Enroll\",'Enrollment Form'!$AQ778<>\"\"),\"Y\",\"N\")))","v":""},{"$f":"IF($B771=\"N\",\"\",IF(OR('Enrollment Form'!$B778<>\"Subscriber\",'Enrollment Form'!$C778=\"ROC\"),\"-\",IF(AND('Enrollment Form'!$B778=\"Subscriber\",'Enrollment Form'!$C778=\"Enroll\",'Enrollment Form'!$AS778<>\"\"),\"Y\",\"N\")))","v":""},{"$f":"IF($B771=\"N\",\"\",IF($Q771=\"-\",\"-\",IF(AND($Q771=\"Y\",'Enrollment Form'!$AS778=\"No\"),\"-\",IF(AND($Q771=\"Y\",'Enrollment Form'!$AS778=\"Yes\",'Enrollment Form'!$AT778<>\"\"),\"Y\",\"N\"))))","v":""},{"$f":"IF($B771=\"N\",\"\",IF(OR('Enrollment Form'!$B778<>\"Subscriber\",'Enrollment Form'!$C778=\"ROC\"),\"-\",IF(AND('Enrollment Form'!$B778=\"Subscriber\",'Enrollment Form'!$C778=\"Enroll\",'Enrollment Form'!$CV778<>\"\"),\"Y\",\"N\")))","v":""},{"$f":"IF($B771=\"N\",\"\",IF($S771=\"-\",\"-\",IF(AND($S771=\"Y\",'Enrollment Form'!$CV778=\"No\"),\"-\",IF(AND($S771=\"Y\",'Enrollment Form'!$CV778=\"Yes\",'Enrollment Form'!$CW778<>\"\"),\"Y\",\"N\"))))","v":""},{"$f":"IF(OR('Enrollment Form'!$AY778=\"Yes\",'Enrollment Form'!$AY778=\"\"),\"-\",IF(OR(AND('Enrollment Form'!$AY778=\"No\",ISERROR(FIND(\"HMO\",VLOOKUP('Enrollment Form'!G778,'Enrollment Form'!H$11:J$1000,3,FALSE),1))=FALSE,COUNTA('Enrollment Form'!$AZ778:$BC778)=4),AND('Enrollment Form'!$AY778=\"No\",ISERROR(FIND(\"HMO\",VLOOKUP('Enrollment Form'!G778,'Enrollment Form'!H$11:J$1000,3,FALSE),1))=FALSE,COUNTA('Enrollment Form'!$BT778:$BW778)=4)),\"Y\",\"N\"))","v":"-"},{"$f":"IF($B771=\"N\",\"\",IF('Enrollment Form'!$B778=\"Subscriber\",\"-\",IF(COUNTA('Enrollment Form'!$BL778,'Enrollment Form'!$BN778)=2,\"Y\",\"N\")))","v":""},{"$f":"IF($B771=\"N\",\"\",IF(OR('Enrollment Form'!$AX778=\"\",'Enrollment Form'!$AX778=\"No\"),\"-\",IF(AND('Enrollment Form'!$AX778=\"Yes\",COUNTA('Enrollment Form'!$CR778)=1),\"Y\",\"N\")))","v":""},{"$f":"IF(OR('Enrollment Form'!$CR778=\"\",'Enrollment Form'!$CR778=\"No\"),\"-\",IF(COUNTA('Enrollment Form'!$CT778:$CU778)=2,\"Y\",\"N\"))","v":"-"},{"$f":"IF($B771=\"N\",\"\",IF(COUNTIF('Enrollment Form'!$DG778:$DP778,\"Other\")=COUNTA('Enrollment Form'!$DK778,'Enrollment Form'!$DH778,'Enrollment Form'!$DN778,'Enrollment Form'!$DQ778),\"Y\",\"N\"))","v":""},{"$f":"IF($B771=\"N\",\"\",IF(OR('Enrollment Form'!B778<>\"Subscriber\",'Enrollment Form'!C778=\"ROC\",COUNTIF('Enrollment Form'!AV778:AW778,\"Yes\")>=1),\"-\",IF(AND('Enrollment Form'!C778=\"Enroll\",COUNTIF('Enrollment Form'!AV778:AW778,\"No\")=2,'Enrollment Form'!AX778=\"\"),\"N\",\"Y\")))","v":""},{"$f":"IF(OR(B771=\"N\",'Enrollment Form'!B778<>\"Subscriber\",'Enrollment Form'!C778=\"ROC\",'Enrollment Form'!O778<>\"Multiple of Salary\"),\"-\",IF(COUNTA('Enrollment Form'!T778:U778)<2,\"N\",\"Y\"))","v":"-"},{"$f":"IF(B771=\"N\",\"\",IF(OR('Enrollment Form'!C778=\"ROC\",'Enrollment Form'!B778<>\"Subscriber\",'Enrollment Form'!O778=\"Waive\",'Enrollment Form'!O778=\"\"),\"-\",IF('Enrollment Form'!P778=\"\",\"N\",\"Y\")))","v":""},{"$f":"IF($B771=\"N\",\"\",IF(AND('Enrollment Form'!$C778=\"ROC\",'Enrollment Form'!$DR778<>\"\"),\"Y\",IF(AND('Enrollment Form'!$C778=\"ROC\",'Enrollment Form'!$DR778=\"\"),\"N\",IF(AND('Enrollment Form'!$C778=\"Enroll\",'Enrollment Form'!$B778=\"Subscriber\",'Enrollment Form'!$CX778=\"No\",'Enrollment Form'!$DR778=\"\"),\"N\",IF(AND('Enrollment Form'!$C778=\"Enroll\",'Enrollment Form'!$B778=\"Subscriber\",'Enrollment Form'!$CX778=\"Yes\"),\"-\",\"Y\")))))","v":""},{"$f":"IF($B771=\"N\",\"\",IF(AND('Enrollment Form'!$C778=\"ROC\",'Enrollment Form'!$DS778<>\"\"),\"Y\",IF(AND('Enrollment Form'!$C778=\"ROC\",'Enrollment Form'!$DS778=\"\"),\"N\",IF(AND('Enrollment Form'!$C778=\"Enroll\",'Enrollment Form'!$B778=\"Subscriber\",'Enrollment Form'!$CX778=\"No\",'Enrollment Form'!$DS778=\"\"),\"N\",IF(AND('Enrollment Form'!$C778=\"Enroll\",'Enrollment Form'!$B778=\"Subscriber\",'Enrollment Form'!$CX778=\"Yes\"),\"-\",\"Y\")))))","v":""},{"$f":"IF('Enrollment Form'!AH778=\"\",\"\",IF(ISERROR(SEARCH(\".\",'Enrollment Form'!AH778,SEARCH(\"@\",'Enrollment Form'!AH778))),\"N\",\"Y\"))","v":""},{"$f":"IF(OR($B771=\"N\",'Enrollment Form'!$G778=\"\"),\"\",IF('Enrollment Form'!$B778<>\"Subscriber\",\"-\",IF(COUNTIF('Enrollment Form'!$AV778:$AW778,\"Yes\")=2,\"N\",\"Y\")))","v":""},{"$f":"IF(OR('Enrollment Form'!$CJ778=\"\",'Enrollment Form'!$CJ778=\"No\"),\"-\",IF(AND('Enrollment Form'!$CJ778=\"Yes\",'Enrollment Form'!$CK778=\"\"),\"N\",\"Y\"))","v":"-"},{"$f":"IF(OR('Enrollment Form'!$CL778=\"\",'Enrollment Form'!$CL778=\"No\"),\"-\",IF(AND('Enrollment Form'!$CL778=\"Yes\",'Enrollment Form'!$CM778=\"\"),\"N\",\"Y\"))","v":"-"},{"$f":"IF(OR('Enrollment Form'!$CN778=\"\",'Enrollment Form'!$CN778=\"No\"),\"-\",IF(AND('Enrollment Form'!$CN778=\"Yes\",'Enrollment Form'!$CO778=\"\"),\"N\",\"Y\"))","v":"-"},{"$f":"IF(OR('Enrollment Form'!$CN778=\"\",'Enrollment Form'!$CN778=\"No\"),\"-\",IF(AND('Enrollment Form'!$CN778=\"Yes\",'Enrollment Form'!$CP778=\"\"),\"N\",\"Y\"))","v":"-"},{"$f":"IF('Enrollment Form'!B778<>\"Subscriber\",\"-\",IF(AND('Enrollment Form'!B778=\"Subscriber\",'Enrollment Form'!C778=\"Enroll\",'Enrollment Form'!AA778=\"\"),\"N\",\"Y\"))","v":"-"},{"$f":"IF(OR('Enrollment Form'!B778=\"Subscriber\",'Enrollment Form'!B778=\"\"),\"-\",IF('Enrollment Form'!BP778=\"\",\"N\",\"Y\"))","v":"-"},{"$f":"IF('Enrollment Form'!B778<>\"Subscriber\",\"-\",IF(AND('Enrollment Form'!B778=\"Subscriber\",'Enrollment Form'!G778=\"\"),\"N\",\"Y\"))","v":"-"},{"$f":"IF('Enrollment Form'!A778=\"\",\"\",IF('Enrollment Form'!B778=\"Subscriber\",\"-\",IF(AND('Enrollment Form'!B778<>\"Subscriber\",'Enrollment Form'!G778='Enrollment Form'!H778),\"N\",\"Y\")))","v":""},0]
[779,{"$f":"IF('Enrollment Form'!$A779<>\"\",\"Y\",\"N\")","v":"N"},{"$f":"IF(AND('Enrollment Form'!$B779=\"\",'Enrollment Form'!$C779<>\"\"),\"N\",IF($B772=\"N\",\"\",\"Y\"))","v":""},{"$f":"IF(OR($B772=\"N\",'Enrollment Form'!G779=\"\"),\"\",IF('Enrollment Form'!$B779<>\"Subscriber\",\"\",IF('Enrollment Form'!$G779='Enrollment Form'!$H779,\"Y\",\"N\")))","v":""},{"$f":"IF($B772=\"N\",\"\",IF(AND(COUNTIFS('Enrollment Form'!$H$11:$H$1000,'Enrollment Form'!$H779,'Enrollment Form'!$B$11:$B$1000,'Enrollment Form'!$B779)>1,'Enrollment Form'!$H779<>\"\"),\"N\",\"Y\"))","v":""},{"$f":"IF($B772=\"N\",\"\",IF(LEN('Enrollment Form'!$Y779)=0,\"\",IF(LEN('Enrollment Form'!$Y779)<>5,\"N\",\"Y\")))","v":""},{"$f":"IF($B772=\"N\",\"\",IF(LEN('Enrollment Form'!$AD779=0),\"\",IF(LEN('Enrollment Form'!$AD779)<>5,\"N\",\"Y\")))","v":""},{"$f":"IF($B772=\"N\",\"\",IF(LEN('Enrollment Form'!$BS779=0),\"\",IF(LEN('Enrollment Form'!$BS779)<>5,\"N\",\"Y\")))","v":""},{"$f":"IF($B772=\"N\",\"\",IF(LEN('Enrollment Form'!$AE779)=0,\"\",IF(LEN('Enrollment Form'!$AE779)<>10,\"N\",\"Y\")))","v":""},{"$f":"IF($B772=\"N\",\"\",IF(LEN('Enrollment Form'!$AF779)=0,\"\",IF(LEN('Enrollment Form'!$AF779)<>10,\"N\",\"Y\")))","v":""},{"$f":"IF('Enrollment Form'!$O779<>\"Graded\",\"-\",IF(AND('Enrollment Form'!$O779=\"Graded\",'Enrollment Form'!$AR779<>\"\"),\"Y\",\"N\"))","v":"-"},{"$f":"IF($B772=\"N\",\"\",IF(OR('Enrollment Form'!$B779<>\"Subscriber\",'Enrollment Form'!$C779=\"ROC\"),\"-\",IF(AND('Enrollment Form'!$B779=\"Subscriber\",'Enrollment Form'!$C779=\"Enroll\",'Enrollment Form'!$AJ779<>\"\"),\"Y\",\"N\")))","v":""},{"$f":"IF($B772=\"N\",\"\",IF(OR('Enrollment Form'!$B779<>\"Subscriber\",'Enrollment Form'!$C779=\"ROC\"),\"-\",IF(AND('Enrollment Form'!$B779=\"Subscriber\",'Enrollment Form'!$C779=\"Enroll\",'Enrollment Form'!$AK779<>\"\"),\"Y\",\"N\")))","v":""},{"$f":"IF($B772=\"N\",\"\",IF(OR('Enrollment Form'!$B779<>\"Subscriber\",'Enrollment Form'!$C779=\"ROC\"),\"-\",IF(AND('Enrollment Form'!$B779=\"Subscriber\",'Enrollment Form'!$C779=\"Enroll\",'Enrollment Form'!$AL779<>\"\"),\"Y\",\"N\")))","v":""},{"$f":"IF($B772=\"N\",\"\",IF(OR('Enrollment Form'!$B779<>\"Subscriber\",'Enrollment Form'!$C779=\"ROC\"),\"-\",IF(AND('Enrollment Form'!$B779=\"Subscriber\",'Enrollment Form'!$C779=\"Enroll\",'Enrollment Form'!$AP779<>\"\"),\"Y\",\"N\")))","v":""},{"$f":"IF($B772=\"N\",\"\",IF(OR('Enrollment Form'!$B779<>\"Subscriber\",'Enrollment Form'!$C779=\"ROC\"),\"-\",IF(AND('Enrollment Form'!$B779=\"Subscriber\",'Enrollment Form'!$C779=\"Enroll\",'Enrollment Form'!$AQ779<>\"\"),\"Y\",\"N\")))","v":""},{"$f":"IF($B772=\"N\",\"\",IF(OR('Enrollment Form'!$B779<>\"Subscriber\",'Enrollment Form'!$C779=\"ROC\"),\"-\",IF(AND('Enrollment Form'!$B779=\"Subscriber\",'Enrollment Form'!$C779=\"Enroll\",'Enrollment Form'!$AS779<>\"\"),\"Y\",\"N\")))","v":""},{"$f":"IF($B772=\"N\",\"\",IF($Q772=\"-\",\"-\",IF(AND($Q772=\"Y\",'Enrollment Form'!$AS779=\"No\"),\"-\",IF(AND($Q772=\"Y\",'Enrollment Form'!$AS779=\"Yes\",'Enrollment Form'!$AT779<>\"\"),\"Y\",\"N\"))))","v":""},{"$f":"IF($B772=\"N\",\"\",IF(OR('Enrollment Form'!$B779<>\"Subscriber\",'Enrollment Form'!$C779=\"ROC\"),\"-\",IF(AND('Enrollment Form'!$B779=\"Subscriber\",'Enrollment Form'!$C779=\"Enroll\",'Enrollment Form'!$CV779<>\"\"),\"Y\",\"N\")))","v":""},{"$f":"IF($B772=\"N\",\"\",IF($S772=\"-\",\"-\",IF(AND($S772=\"Y\",'Enrollment Form'!$CV779=\"No\"),\"-\",IF(AND($S772=\"Y\",'Enrollment Form'!$CV779=\"Yes\",'Enrollment Form'!$CW779<>\"\"),\"Y\",\"N\"))))","v":""},{"$f":"IF(OR('Enrollment Form'!$AY779=\"Yes\",'Enrollment Form'!$AY779=\"\"),\"-\",IF(OR(AND('Enrollment Form'!$AY779=\"No\",ISERROR(FIND(\"HMO\",VLOOKUP('Enrollment Form'!G779,'Enrollment Form'!H$11:J$1000,3,FALSE),1))=FALSE,COUNTA('Enrollment Form'!$AZ779:$BC779)=4),AND('Enrollment Form'!$AY779=\"No\",ISERROR(FIND(\"HMO\",VLOOKUP('Enrollment Form'!G779,'Enrollment Form'!H$11:J$1000,3,FALSE),1))=FALSE,COUNTA('Enrollment Form'!$BT779:$BW779)=4)),\"Y\",\"N\"))","v":"-"},{"$f":"IF($B772=\"N\",\"\",IF('Enrollment Form'!$B779=\"Subscriber\",\"-\",IF(COUNTA('Enrollment Form'!$BL779,'Enrollment Form'!$BN779)=2,\"Y\",\"N\")))","v":""},{"$f":"IF($B772=\"N\",\"\",IF(OR('Enrollment Form'!$AX779=\"\",'Enrollment Form'!$AX779=\"No\"),\"-\",IF(AND('Enrollment Form'!$AX779=\"Yes\",COUNTA('Enrollment Form'!$CR779)=1),\"Y\",\"N\")))","v":""},{"$f":"IF(OR('Enrollment Form'!$CR779=\"\",'Enrollment Form'!$CR779=\"No\"),\"-\",IF(COUNTA('Enrollment Form'!$CT779:$CU779)=2,\"Y\",\"N\"))","v":"-"},{"$f":"IF($B772=\"N\",\"\",IF(COUNTIF('Enrollment Form'!$DG779:$DP779,\"Other\")=COUNTA('Enrollment Form'!$DK779,'Enrollment Form'!$DH779,'Enrollment Form'!$DN779,'Enrollment Form'!$DQ779),\"Y\",\"N\"))","v":""},{"$f":"IF($B772=\"N\",\"\",IF(OR('Enrollment Form'!B779<>\"Subscriber\",'Enrollment Form'!C779=\"ROC\",COUNTIF('Enrollment Form'!AV779:AW779,\"Yes\")>=1),\"-\",IF(AND('Enrollment Form'!C779=\"Enroll\",COUNTIF('Enrollment Form'!AV779:AW779,\"No\")=2,'Enrollment Form'!AX779=\"\"),\"N\",\"Y\")))","v":""},{"$f":"IF(OR(B772=\"N\",'Enrollment Form'!B779<>\"Subscriber\",'Enrollment Form'!C779=\"ROC\",'Enrollment Form'!O779<>\"Multiple of Salary\"),\"-\",IF(COUNTA('Enrollment Form'!T779:U779)<2,\"N\",\"Y\"))","v":"-"},{"$f":"IF(B772=\"N\",\"\",IF(OR('Enrollment Form'!C779=\"ROC\",'Enrollment Form'!B779<>\"Subscriber\",'Enrollment Form'!O779=\"Waive\",'Enrollment Form'!O779=\"\"),\"-\",IF('Enrollment Form'!P779=\"\",\"N\",\"Y\")))","v":""},{"$f":"IF($B772=\"N\",\"\",IF(AND('Enrollment Form'!$C779=\"ROC\",'Enrollment Form'!$DR779<>\"\"),\"Y\",IF(AND('Enrollment Form'!$C779=\"ROC\",'Enrollment Form'!$DR779=\"\"),\"N\",IF(AND('Enrollment Form'!$C779=\"Enroll\",'Enrollment Form'!$B779=\"Subscriber\",'Enrollment Form'!$CX779=\"No\",'Enrollment Form'!$DR779=\"\"),\"N\",IF(AND('Enrollment Form'!$C779=\"Enroll\",'Enrollment Form'!$B779=\"Subscriber\",'Enrollment Form'!$CX779=\"Yes\"),\"-\",\"Y\")))))","v":""},{"$f":"IF($B772=\"N\",\"\",IF(AND('Enrollment Form'!$C779=\"ROC\",'Enrollment Form'!$DS779<>\"\"),\"Y\",IF(AND('Enrollment Form'!$C779=\"ROC\",'Enrollment Form'!$DS779=\"\"),\"N\",IF(AND('Enrollment Form'!$C779=\"Enroll\",'Enrollment Form'!$B779=\"Subscriber\",'Enrollment Form'!$CX779=\"No\",'Enrollment Form'!$DS779=\"\"),\"N\",IF(AND('Enrollment Form'!$C779=\"Enroll\",'Enrollment Form'!$B779=\"Subscriber\",'Enrollment Form'!$CX779=\"Yes\"),\"-\",\"Y\")))))","v":""},{"$f":"IF('Enrollment Form'!AH779=\"\",\"\",IF(ISERROR(SEARCH(\".\",'Enrollment Form'!AH779,SEARCH(\"@\",'Enrollment Form'!AH779))),\"N\",\"Y\"))","v":""},{"$f":"IF(OR($B772=\"N\",'Enrollment Form'!$G779=\"\"),\"\",IF('Enrollment Form'!$B779<>\"Subscriber\",\"-\",IF(COUNTIF('Enrollment Form'!$AV779:$AW779,\"Yes\")=2,\"N\",\"Y\")))","v":""},{"$f":"IF(OR('Enrollment Form'!$CJ779=\"\",'Enrollment Form'!$CJ779=\"No\"),\"-\",IF(AND('Enrollment Form'!$CJ779=\"Yes\",'Enrollment Form'!$CK779=\"\"),\"N\",\"Y\"))","v":"-"},{"$f":"IF(OR('Enrollment Form'!$CL779=\"\",'Enrollment Form'!$CL779=\"No\"),\"-\",IF(AND('Enrollment Form'!$CL779=\"Yes\",'Enrollment Form'!$CM779=\"\"),\"N\",\"Y\"))","v":"-"},{"$f":"IF(OR('Enrollment Form'!$CN779=\"\",'Enrollment Form'!$CN779=\"No\"),\"-\",IF(AND('Enrollment Form'!$CN779=\"Yes\",'Enrollment Form'!$CO779=\"\"),\"N\",\"Y\"))","v":"-"},{"$f":"IF(OR('Enrollment Form'!$CN779=\"\",'Enrollment Form'!$CN779=\"No\"),\"-\",IF(AND('Enrollment Form'!$CN779=\"Yes\",'Enrollment Form'!$CP779=\"\"),\"N\",\"Y\"))","v":"-"},{"$f":"IF('Enrollment Form'!B779<>\"Subscriber\",\"-\",IF(AND('Enrollment Form'!B779=\"Subscriber\",'Enrollment Form'!C779=\"Enroll\",'Enrollment Form'!AA779=\"\"),\"N\",\"Y\"))","v":"-"},{"$f":"IF(OR('Enrollment Form'!B779=\"Subscriber\",'Enrollment Form'!B779=\"\"),\"-\",IF('Enrollment Form'!BP779=\"\",\"N\",\"Y\"))","v":"-"},{"$f":"IF('Enrollment Form'!B779<>\"Subscriber\",\"-\",IF(AND('Enrollment Form'!B779=\"Subscriber\",'Enrollment Form'!G779=\"\"),\"N\",\"Y\"))","v":"-"},{"$f":"IF('Enrollment Form'!A779=\"\",\"\",IF('Enrollment Form'!B779=\"Subscriber\",\"-\",IF(AND('Enrollment Form'!B779<>\"Subscriber\",'Enrollment Form'!G779='Enrollment Form'!H779),\"N\",\"Y\")))","v":""},{"$f":"COUNTIF(C772:AN772,\"N\")","v":0}]
[780,{"$f":"IF('Enrollment Form'!$A780<>\"\",\"Y\",\"N\")","v":"N"},{"$f":"IF(AND('Enrollment Form'!$B780=\"\",'Enrollment Form'!$C780<>\"\"),\"N\",IF($B773=\"N\",\"\",\"Y\"))","v":""},{"$f":"IF(OR($B773=\"N\",'Enrollment Form'!G780=\"\"),\"\",IF('Enrollment Form'!$B780<>\"Subscriber\",\"\",IF('Enrollment Form'!$G780='Enrollment Form'!$H780,\"Y\",\"N\")))","v":""},{"$f":"IF($B773=\"N\",\"\",IF(AND(COUNTIFS('Enrollment Form'!$H$11:$H$1000,'Enrollment Form'!$H780,'Enrollment Form'!$B$11:$B$1000,'Enrollment Form'!$B780)>1,'Enrollment Form'!$H780<>\"\"),\"N\",\"Y\"))","v":""},{"$f":"IF($B773=\"N\",\"\",IF(LEN('Enrollment Form'!$Y780)=0,\"\",IF(LEN('Enrollment Form'!$Y780)<>5,\"N\",\"Y\")))","v":""},{"$f":"IF($B773=\"N\",\"\",IF(LEN('Enrollment Form'!$AD780=0),\"\",IF(LEN('Enrollment Form'!$AD780)<>5,\"N\",\"Y\")))","v":""},{"$f":"IF($B773=\"N\",\"\",IF(LEN('Enrollment Form'!$BS780=0),\"\",IF(LEN('Enrollment Form'!$BS780)<>5,\"N\",\"Y\")))","v":""},{"$f":"IF($B773=\"N\",\"\",IF(LEN('Enrollment Form'!$AE780)=0,\"\",IF(LEN('Enrollment Form'!$AE780)<>10,\"N\",\"Y\")))","v":""},{"$f":"IF($B773=\"N\",\"\",IF(LEN('Enrollment Form'!$AF780)=0,\"\",IF(LEN('Enrollment Form'!$AF780)<>10,\"N\",\"Y\")))","v":""},{"$f":"IF('Enrollment Form'!$O780<>\"Graded\",\"-\",IF(AND('Enrollment Form'!$O780=\"Graded\",'Enrollment Form'!$AR780<>\"\"),\"Y\",\"N\"))","v":"-"},{"$f":"IF($B773=\"N\",\"\",IF(OR('Enrollment Form'!$B780<>\"Subscriber\",'Enrollment Form'!$C780=\"ROC\"),\"-\",IF(AND('Enrollment Form'!$B780=\"Subscriber\",'Enrollment Form'!$C780=\"Enroll\",'Enrollment Form'!$AJ780<>\"\"),\"Y\",\"N\")))","v":""},{"$f":"IF($B773=\"N\",\"\",IF(OR('Enrollment Form'!$B780<>\"Subscriber\",'Enrollment Form'!$C780=\"ROC\"),\"-\",IF(AND('Enrollment Form'!$B780=\"Subscriber\",'Enrollment Form'!$C780=\"Enroll\",'Enrollment Form'!$AK780<>\"\"),\"Y\",\"N\")))","v":""},{"$f":"IF($B773=\"N\",\"\",IF(OR('Enrollment Form'!$B780<>\"Subscriber\",'Enrollment Form'!$C780=\"ROC\"),\"-\",IF(AND('Enrollment Form'!$B780=\"Subscriber\",'Enrollment Form'!$C780=\"Enroll\",'Enrollment Form'!$AL780<>\"\"),\"Y\",\"N\")))","v":""},{"$f":"IF($B773=\"N\",\"\",IF(OR('Enrollment Form'!$B780<>\"Subscriber\",'Enrollment Form'!$C780=\"ROC\"),\"-\",IF(AND('Enrollment Form'!$B780=\"Subscriber\",'Enrollment Form'!$C780=\"Enroll\",'Enrollment Form'!$AP780<>\"\"),\"Y\",\"N\")))","v":""},{"$f":"IF($B773=\"N\",\"\",IF(OR('Enrollment Form'!$B780<>\"Subscriber\",'Enrollment Form'!$C780=\"ROC\"),\"-\",IF(AND('Enrollment Form'!$B780=\"Subscriber\",'Enrollment Form'!$C780=\"Enroll\",'Enrollment Form'!$AQ780<>\"\"),\"Y\",\"N\")))","v":""},{"$f":"IF($B773=\"N\",\"\",IF(OR('Enrollment Form'!$B780<>\"Subscriber\",'Enrollment Form'!$C780=\"ROC\"),\"-\",IF(AND('Enrollment Form'!$B780=\"Subscriber\",'Enrollment Form'!$C780=\"Enroll\",'Enrollment Form'!$AS780<>\"\"),\"Y\",\"N\")))","v":""},{"$f":"IF($B773=\"N\",\"\",IF($Q773=\"-\",\"-\",IF(AND($Q773=\"Y\",'Enrollment Form'!$AS780=\"No\"),\"-\",IF(AND($Q773=\"Y\",'Enrollment Form'!$AS780=\"Yes\",'Enrollment Form'!$AT780<>\"\"),\"Y\",\"N\"))))","v":""},{"$f":"IF($B773=\"N\",\"\",IF(OR('Enrollment Form'!$B780<>\"Subscriber\",'Enrollment Form'!$C780=\"ROC\"),\"-\",IF(AND('Enrollment Form'!$B780=\"Subscriber\",'Enrollment Form'!$C780=\"Enroll\",'Enrollment Form'!$CV780<>\"\"),\"Y\",\"N\")))","v":""},{"$f":"IF($B773=\"N\",\"\",IF($S773=\"-\",\"-\",IF(AND($S773=\"Y\",'Enrollment Form'!$CV780=\"No\"),\"-\",IF(AND($S773=\"Y\",'Enrollment Form'!$CV780=\"Yes\",'Enrollment Form'!$CW780<>\"\"),\"Y\",\"N\"))))","v":""},{"$f":"IF(OR('Enrollment Form'!$AY780=\"Yes\",'Enrollment Form'!$AY780=\"\"),\"-\",IF(OR(AND('Enrollment Form'!$AY780=\"No\",ISERROR(FIND(\"HMO\",VLOOKUP('Enrollment Form'!G780,'Enrollment Form'!H$11:J$1000,3,FALSE),1))=FALSE,COUNTA('Enrollment Form'!$AZ780:$BC780)=4),AND('Enrollment Form'!$AY780=\"No\",ISERROR(FIND(\"HMO\",VLOOKUP('Enrollment Form'!G780,'Enrollment Form'!H$11:J$1000,3,FALSE),1))=FALSE,COUNTA('Enrollment Form'!$BT780:$BW780)=4)),\"Y\",\"N\"))","v":"-"},{"$f":"IF($B773=\"N\",\"\",IF('Enrollment Form'!$B780=\"Subscriber\",\"-\",IF(COUNTA('Enrollment Form'!$BL780,'Enrollment Form'!$BN780)=2,\"Y\",\"N\")))","v":""},{"$f":"IF($B773=\"N\",\"\",IF(OR('Enrollment Form'!$AX780=\"\",'Enrollment Form'!$AX780=\"No\"),\"-\",IF(AND('Enrollment Form'!$AX780=\"Yes\",COUNTA('Enrollment Form'!$CR780)=1),\"Y\",\"N\")))","v":""},{"$f":"IF(OR('Enrollment Form'!$CR780=\"\",'Enrollment Form'!$CR780=\"No\"),\"-\",IF(COUNTA('Enrollment Form'!$CT780:$CU780)=2,\"Y\",\"N\"))","v":"-"},{"$f":"IF($B773=\"N\",\"\",IF(COUNTIF('Enrollment Form'!$DG780:$DP780,\"Other\")=COUNTA('Enrollment Form'!$DK780,'Enrollment Form'!$DH780,'Enrollment Form'!$DN780,'Enrollment Form'!$DQ780),\"Y\",\"N\"))","v":""},{"$f":"IF($B773=\"N\",\"\",IF(OR('Enrollment Form'!B780<>\"Subscriber\",'Enrollment Form'!C780=\"ROC\",COUNTIF('Enrollment Form'!AV780:AW780,\"Yes\")>=1),\"-\",IF(AND('Enrollment Form'!C780=\"Enroll\",COUNTIF('Enrollment Form'!AV780:AW780,\"No\")=2,'Enrollment Form'!AX780=\"\"),\"N\",\"Y\")))","v":""},{"$f":"IF(OR(B773=\"N\",'Enrollment Form'!B780<>\"Subscriber\",'Enrollment Form'!C780=\"ROC\",'Enrollment Form'!O780<>\"Multiple of Salary\"),\"-\",IF(COUNTA('Enrollment Form'!T780:U780)<2,\"N\",\"Y\"))","v":"-"},{"$f":"IF(B773=\"N\",\"\",IF(OR('Enrollment Form'!C780=\"ROC\",'Enrollment Form'!B780<>\"Subscriber\",'Enrollment Form'!O780=\"Waive\",'Enrollment Form'!O780=\"\"),\"-\",IF('Enrollment Form'!P780=\"\",\"N\",\"Y\")))","v":""},{"$f":"IF($B773=\"N\",\"\",IF(AND('Enrollment Form'!$C780=\"ROC\",'Enrollment Form'!$DR780<>\"\"),\"Y\",IF(AND('Enrollment Form'!$C780=\"ROC\",'Enrollment Form'!$DR780=\"\"),\"N\",IF(AND('Enrollment Form'!$C780=\"Enroll\",'Enrollment Form'!$B780=\"Subscriber\",'Enrollment Form'!$CX780=\"No\",'Enrollment Form'!$DR780=\"\"),\"N\",IF(AND('Enrollment Form'!$C780=\"Enroll\",'Enrollment Form'!$B780=\"Subscriber\",'Enrollment Form'!$CX780=\"Yes\"),\"-\",\"Y\")))))","v":""},{"$f":"IF($B773=\"N\",\"\",IF(AND('Enrollment Form'!$C780=\"ROC\",'Enrollment Form'!$DS780<>\"\"),\"Y\",IF(AND('Enrollment Form'!$C780=\"ROC\",'Enrollment Form'!$DS780=\"\"),\"N\",IF(AND('Enrollment Form'!$C780=\"Enroll\",'Enrollment Form'!$B780=\"Subscriber\",'Enrollment Form'!$CX780=\"No\",'Enrollment Form'!$DS780=\"\"),\"N\",IF(AND('Enrollment Form'!$C780=\"Enroll\",'Enrollment Form'!$B780=\"Subscriber\",'Enrollment Form'!$CX780=\"Yes\"),\"-\",\"Y\")))))","v":""},{"$f":"IF('Enrollment Form'!AH780=\"\",\"\",IF(ISERROR(SEARCH(\".\",'Enrollment Form'!AH780,SEARCH(\"@\",'Enrollment Form'!AH780))),\"N\",\"Y\"))","v":""},{"$f":"IF(OR($B773=\"N\",'Enrollment Form'!$G780=\"\"),\"\",IF('Enrollment Form'!$B780<>\"Subscriber\",\"-\",IF(COUNTIF('Enrollment Form'!$AV780:$AW780,\"Yes\")=2,\"N\",\"Y\")))","v":""},{"$f":"IF(OR('Enrollment Form'!$CJ780=\"\",'Enrollment Form'!$CJ780=\"No\"),\"-\",IF(AND('Enrollment Form'!$CJ780=\"Yes\",'Enrollment Form'!$CK780=\"\"),\"N\",\"Y\"))","v":"-"},{"$f":"IF(OR('Enrollment Form'!$CL780=\"\",'Enrollment Form'!$CL780=\"No\"),\"-\",IF(AND('Enrollment Form'!$CL780=\"Yes\",'Enrollment Form'!$CM780=\"\"),\"N\",\"Y\"))","v":"-"},{"$f":"IF(OR('Enrollment Form'!$CN780=\"\",'Enrollment Form'!$CN780=\"No\"),\"-\",IF(AND('Enrollment Form'!$CN780=\"Yes\",'Enrollment Form'!$CO780=\"\"),\"N\",\"Y\"))","v":"-"},{"$f":"IF(OR('Enrollment Form'!$CN780=\"\",'Enrollment Form'!$CN780=\"No\"),\"-\",IF(AND('Enrollment Form'!$CN780=\"Yes\",'Enrollment Form'!$CP780=\"\"),\"N\",\"Y\"))","v":"-"},{"$f":"IF('Enrollment Form'!B780<>\"Subscriber\",\"-\",IF(AND('Enrollment Form'!B780=\"Subscriber\",'Enrollment Form'!C780=\"Enroll\",'Enrollment Form'!AA780=\"\"),\"N\",\"Y\"))","v":"-"},{"$f":"IF(OR('Enrollment Form'!B780=\"Subscriber\",'Enrollment Form'!B780=\"\"),\"-\",IF('Enrollment Form'!BP780=\"\",\"N\",\"Y\"))","v":"-"},{"$f":"IF('Enrollment Form'!B780<>\"Subscriber\",\"-\",IF(AND('Enrollment Form'!B780=\"Subscriber\",'Enrollment Form'!G780=\"\"),\"N\",\"Y\"))","v":"-"},{"$f":"IF('Enrollment Form'!A780=\"\",\"\",IF('Enrollment Form'!B780=\"Subscriber\",\"-\",IF(AND('Enrollment Form'!B780<>\"Subscriber\",'Enrollment Form'!G780='Enrollment Form'!H780),\"N\",\"Y\")))","v":""},0]
[{"$f":"1+A773","v":781},{"$f":"IF('Enrollment Form'!$A781<>\"\",\"Y\",\"N\")","v":"N"},{"$f":"IF(AND('Enrollment Form'!$B781=\"\",'Enrollment Form'!$C781<>\"\"),\"N\",IF($B774=\"N\",\"\",\"Y\"))","v":""},{"$f":"IF(OR($B774=\"N\",'Enrollment Form'!G781=\"\"),\"\",IF('Enrollment Form'!$B781<>\"Subscriber\",\"\",IF('Enrollment Form'!$G781='Enrollment Form'!$H781,\"Y\",\"N\")))","v":""},{"$f":"IF($B774=\"N\",\"\",IF(AND(COUNTIFS('Enrollment Form'!$H$11:$H$1000,'Enrollment Form'!$H781,'Enrollment Form'!$B$11:$B$1000,'Enrollment Form'!$B781)>1,'Enrollment Form'!$H781<>\"\"),\"N\",\"Y\"))","v":""},{"$f":"IF($B774=\"N\",\"\",IF(LEN('Enrollment Form'!$Y781)=0,\"\",IF(LEN('Enrollment Form'!$Y781)<>5,\"N\",\"Y\")))","v":""},{"$f":"IF($B774=\"N\",\"\",IF(LEN('Enrollment Form'!$AD781=0),\"\",IF(LEN('Enrollment Form'!$AD781)<>5,\"N\",\"Y\")))","v":""},{"$f":"IF($B774=\"N\",\"\",IF(LEN('Enrollment Form'!$BS781=0),\"\",IF(LEN('Enrollment Form'!$BS781)<>5,\"N\",\"Y\")))","v":""},{"$f":"IF($B774=\"N\",\"\",IF(LEN('Enrollment Form'!$AE781)=0,\"\",IF(LEN('Enrollment Form'!$AE781)<>10,\"N\",\"Y\")))","v":""},{"$f":"IF($B774=\"N\",\"\",IF(LEN('Enrollment Form'!$AF781)=0,\"\",IF(LEN('Enrollment Form'!$AF781)<>10,\"N\",\"Y\")))","v":""},{"$f":"IF('Enrollment Form'!$O781<>\"Graded\",\"-\",IF(AND('Enrollment Form'!$O781=\"Graded\",'Enrollment Form'!$AR781<>\"\"),\"Y\",\"N\"))","v":"-"},{"$f":"IF($B774=\"N\",\"\",IF(OR('Enrollment Form'!$B781<>\"Subscriber\",'Enrollment Form'!$C781=\"ROC\"),\"-\",IF(AND('Enrollment Form'!$B781=\"Subscriber\",'Enrollment Form'!$C781=\"Enroll\",'Enrollment Form'!$AJ781<>\"\"),\"Y\",\"N\")))","v":""},{"$f":"IF($B774=\"N\",\"\",IF(OR('Enrollment Form'!$B781<>\"Subscriber\",'Enrollment Form'!$C781=\"ROC\"),\"-\",IF(AND('Enrollment Form'!$B781=\"Subscriber\",'Enrollment Form'!$C781=\"Enroll\",'Enrollment Form'!$AK781<>\"\"),\"Y\",\"N\")))","v":""},{"$f":"IF($B774=\"N\",\"\",IF(OR('Enrollment Form'!$B781<>\"Subscriber\",'Enrollment Form'!$C781=\"ROC\"),\"-\",IF(AND('Enrollment Form'!$B781=\"Subscriber\",'Enrollment Form'!$C781=\"Enroll\",'Enrollment Form'!$AL781<>\"\"),\"Y\",\"N\")))","v":""},{"$f":"IF($B774=\"N\",\"\",IF(OR('Enrollment Form'!$B781<>\"Subscriber\",'Enrollment Form'!$C781=\"ROC\"),\"-\",IF(AND('Enrollment Form'!$B781=\"Subscriber\",'Enrollment Form'!$C781=\"Enroll\",'Enrollment Form'!$AP781<>\"\"),\"Y\",\"N\")))","v":""},{"$f":"IF($B774=\"N\",\"\",IF(OR('Enrollment Form'!$B781<>\"Subscriber\",'Enrollment Form'!$C781=\"ROC\"),\"-\",IF(AND('Enrollment Form'!$B781=\"Subscriber\",'Enrollment Form'!$C781=\"Enroll\",'Enrollment Form'!$AQ781<>\"\"),\"Y\",\"N\")))","v":""},{"$f":"IF($B774=\"N\",\"\",IF(OR('Enrollment Form'!$B781<>\"Subscriber\",'Enrollment Form'!$C781=\"ROC\"),\"-\",IF(AND('Enrollment Form'!$B781=\"Subscriber\",'Enrollment Form'!$C781=\"Enroll\",'Enrollment Form'!$AS781<>\"\"),\"Y\",\"N\")))","v":""},{"$f":"IF($B774=\"N\",\"\",IF($Q774=\"-\",\"-\",IF(AND($Q774=\"Y\",'Enrollment Form'!$AS781=\"No\"),\"-\",IF(AND($Q774=\"Y\",'Enrollment Form'!$AS781=\"Yes\",'Enrollment Form'!$AT781<>\"\"),\"Y\",\"N\"))))","v":""},{"$f":"IF($B774=\"N\",\"\",IF(OR('Enrollment Form'!$B781<>\"Subscriber\",'Enrollment Form'!$C781=\"ROC\"),\"-\",IF(AND('Enrollment Form'!$B781=\"Subscriber\",'Enrollment Form'!$C781=\"Enroll\",'Enrollment Form'!$CV781<>\"\"),\"Y\",\"N\")))","v":""},{"$f":"IF($B774=\"N\",\"\",IF($S774=\"-\",\"-\",IF(AND($S774=\"Y\",'Enrollment Form'!$CV781=\"No\"),\"-\",IF(AND($S774=\"Y\",'Enrollment Form'!$CV781=\"Yes\",'Enrollment Form'!$CW781<>\"\"),\"Y\",\"N\"))))","v":""},{"$f":"IF(OR('Enrollment Form'!$AY781=\"Yes\",'Enrollment Form'!$AY781=\"\"),\"-\",IF(OR(AND('Enrollment Form'!$AY781=\"No\",ISERROR(FIND(\"HMO\",VLOOKUP('Enrollment Form'!G781,'Enrollment Form'!H$11:J$1000,3,FALSE),1))=FALSE,COUNTA('Enrollment Form'!$AZ781:$BC781)=4),AND('Enrollment Form'!$AY781=\"No\",ISERROR(FIND(\"HMO\",VLOOKUP('Enrollment Form'!G781,'Enrollment Form'!H$11:J$1000,3,FALSE),1))=FALSE,COUNTA('Enrollment Form'!$BT781:$BW781)=4)),\"Y\",\"N\"))","v":"-"},{"$f":"IF($B774=\"N\",\"\",IF('Enrollment Form'!$B781=\"Subscriber\",\"-\",IF(COUNTA('Enrollment Form'!$BL781,'Enrollment Form'!$BN781)=2,\"Y\",\"N\")))","v":""},{"$f":"IF($B774=\"N\",\"\",IF(OR('Enrollment Form'!$AX781=\"\",'Enrollment Form'!$AX781=\"No\"),\"-\",IF(AND('Enrollment Form'!$AX781=\"Yes\",COUNTA('Enrollment Form'!$CR781)=1),\"Y\",\"N\")))","v":""},{"$f":"IF(OR('Enrollment Form'!$CR781=\"\",'Enrollment Form'!$CR781=\"No\"),\"-\",IF(COUNTA('Enrollment Form'!$CT781:$CU781)=2,\"Y\",\"N\"))","v":"-"},{"$f":"IF($B774=\"N\",\"\",IF(COUNTIF('Enrollment Form'!$DG781:$DP781,\"Other\")=COUNTA('Enrollment Form'!$DK781,'Enrollment Form'!$DH781,'Enrollment Form'!$DN781,'Enrollment Form'!$DQ781),\"Y\",\"N\"))","v":""},{"$f":"IF($B774=\"N\",\"\",IF(OR('Enrollment Form'!B781<>\"Subscriber\",'Enrollment Form'!C781=\"ROC\",COUNTIF('Enrollment Form'!AV781:AW781,\"Yes\")>=1),\"-\",IF(AND('Enrollment Form'!C781=\"Enroll\",COUNTIF('Enrollment Form'!AV781:AW781,\"No\")=2,'Enrollment Form'!AX781=\"\"),\"N\",\"Y\")))","v":""},{"$f":"IF(OR(B774=\"N\",'Enrollment Form'!B781<>\"Subscriber\",'Enrollment Form'!C781=\"ROC\",'Enrollment Form'!O781<>\"Multiple of Salary\"),\"-\",IF(COUNTA('Enrollment Form'!T781:U781)<2,\"N\",\"Y\"))","v":"-"},{"$f":"IF(B774=\"N\",\"\",IF(OR('Enrollment Form'!C781=\"ROC\",'Enrollment Form'!B781<>\"Subscriber\",'Enrollment Form'!O781=\"Waive\",'Enrollment Form'!O781=\"\"),\"-\",IF('Enrollment Form'!P781=\"\",\"N\",\"Y\")))","v":""},{"$f":"IF($B774=\"N\",\"\",IF(AND('Enrollment Form'!$C781=\"ROC\",'Enrollment Form'!$DR781<>\"\"),\"Y\",IF(AND('Enrollment Form'!$C781=\"ROC\",'Enrollment Form'!$DR781=\"\"),\"N\",IF(AND('Enrollment Form'!$C781=\"Enroll\",'Enrollment Form'!$B781=\"Subscriber\",'Enrollment Form'!$CX781=\"No\",'Enrollment Form'!$DR781=\"\"),\"N\",IF(AND('Enrollment Form'!$C781=\"Enroll\",'Enrollment Form'!$B781=\"Subscriber\",'Enrollment Form'!$CX781=\"Yes\"),\"-\",\"Y\")))))","v":""},{"$f":"IF($B774=\"N\",\"\",IF(AND('Enrollment Form'!$C781=\"ROC\",'Enrollment Form'!$DS781<>\"\"),\"Y\",IF(AND('Enrollment Form'!$C781=\"ROC\",'Enrollment Form'!$DS781=\"\"),\"N\",IF(AND('Enrollment Form'!$C781=\"Enroll\",'Enrollment Form'!$B781=\"Subscriber\",'Enrollment Form'!$CX781=\"No\",'Enrollment Form'!$DS781=\"\"),\"N\",IF(AND('Enrollment Form'!$C781=\"Enroll\",'Enrollment Form'!$B781=\"Subscriber\",'Enrollment Form'!$CX781=\"Yes\"),\"-\",\"Y\")))))","v":""},{"$f":"IF('Enrollment Form'!AH781=\"\",\"\",IF(ISERROR(SEARCH(\".\",'Enrollment Form'!AH781,SEARCH(\"@\",'Enrollment Form'!AH781))),\"N\",\"Y\"))","v":""},{"$f":"IF(OR($B774=\"N\",'Enrollment Form'!$G781=\"\"),\"\",IF('Enrollment Form'!$B781<>\"Subscriber\",\"-\",IF(COUNTIF('Enrollment Form'!$AV781:$AW781,\"Yes\")=2,\"N\",\"Y\")))","v":""},{"$f":"IF(OR('Enrollment Form'!$CJ781=\"\",'Enrollment Form'!$CJ781=\"No\"),\"-\",IF(AND('Enrollment Form'!$CJ781=\"Yes\",'Enrollment Form'!$CK781=\"\"),\"N\",\"Y\"))","v":"-"},{"$f":"IF(OR('Enrollment Form'!$CL781=\"\",'Enrollment Form'!$CL781=\"No\"),\"-\",IF(AND('Enrollment Form'!$CL781=\"Yes\",'Enrollment Form'!$CM781=\"\"),\"N\",\"Y\"))","v":"-"},{"$f":"IF(OR('Enrollment Form'!$CN781=\"\",'Enrollment Form'!$CN781=\"No\"),\"-\",IF(AND('Enrollment Form'!$CN781=\"Yes\",'Enrollment Form'!$CO781=\"\"),\"N\",\"Y\"))","v":"-"},{"$f":"IF(OR('Enrollment Form'!$CN781=\"\",'Enrollment Form'!$CN781=\"No\"),\"-\",IF(AND('Enrollment Form'!$CN781=\"Yes\",'Enrollment Form'!$CP781=\"\"),\"N\",\"Y\"))","v":"-"},{"$f":"IF('Enrollment Form'!B781<>\"Subscriber\",\"-\",IF(AND('Enrollment Form'!B781=\"Subscriber\",'Enrollment Form'!C781=\"Enroll\",'Enrollment Form'!AA781=\"\"),\"N\",\"Y\"))","v":"-"},{"$f":"IF(OR('Enrollment Form'!B781=\"Subscriber\",'Enrollment Form'!B781=\"\"),\"-\",IF('Enrollment Form'!BP781=\"\",\"N\",\"Y\"))","v":"-"},{"$f":"IF('Enrollment Form'!B781<>\"Subscriber\",\"-\",IF(AND('Enrollment Form'!B781=\"Subscriber\",'Enrollment Form'!G781=\"\"),\"N\",\"Y\"))","v":"-"},{"$f":"IF('Enrollment Form'!A781=\"\",\"\",IF('Enrollment Form'!B781=\"Subscriber\",\"-\",IF(AND('Enrollment Form'!B781<>\"Subscriber\",'Enrollment Form'!G781='Enrollment Form'!H781),\"N\",\"Y\")))","v":""},0]
[782,{"$f":"IF('Enrollment Form'!$A782<>\"\",\"Y\",\"N\")","v":"N"},{"$f":"IF(AND('Enrollment Form'!$B782=\"\",'Enrollment Form'!$C782<>\"\"),\"N\",IF($B775=\"N\",\"\",\"Y\"))","v":""},{"$f":"IF(OR($B775=\"N\",'Enrollment Form'!G782=\"\"),\"\",IF('Enrollment Form'!$B782<>\"Subscriber\",\"\",IF('Enrollment Form'!$G782='Enrollment Form'!$H782,\"Y\",\"N\")))","v":""},{"$f":"IF($B775=\"N\",\"\",IF(AND(COUNTIFS('Enrollment Form'!$H$11:$H$1000,'Enrollment Form'!$H782,'Enrollment Form'!$B$11:$B$1000,'Enrollment Form'!$B782)>1,'Enrollment Form'!$H782<>\"\"),\"N\",\"Y\"))","v":""},{"$f":"IF($B775=\"N\",\"\",IF(LEN('Enrollment Form'!$Y782)=0,\"\",IF(LEN('Enrollment Form'!$Y782)<>5,\"N\",\"Y\")))","v":""},{"$f":"IF($B775=\"N\",\"\",IF(LEN('Enrollment Form'!$AD782=0),\"\",IF(LEN('Enrollment Form'!$AD782)<>5,\"N\",\"Y\")))","v":""},{"$f":"IF($B775=\"N\",\"\",IF(LEN('Enrollment Form'!$BS782=0),\"\",IF(LEN('Enrollment Form'!$BS782)<>5,\"N\",\"Y\")))","v":""},{"$f":"IF($B775=\"N\",\"\",IF(LEN('Enrollment Form'!$AE782)=0,\"\",IF(LEN('Enrollment Form'!$AE782)<>10,\"N\",\"Y\")))","v":""},{"$f":"IF($B775=\"N\",\"\",IF(LEN('Enrollment Form'!$AF782)=0,\"\",IF(LEN('Enrollment Form'!$AF782)<>10,\"N\",\"Y\")))","v":""},{"$f":"IF('Enrollment Form'!$O782<>\"Graded\",\"-\",IF(AND('Enrollment Form'!$O782=\"Graded\",'Enrollment Form'!$AR782<>\"\"),\"Y\",\"N\"))","v":"-"},{"$f":"IF($B775=\"N\",\"\",IF(OR('Enrollment Form'!$B782<>\"Subscriber\",'Enrollment Form'!$C782=\"ROC\"),\"-\",IF(AND('Enrollment Form'!$B782=\"Subscriber\",'Enrollment Form'!$C782=\"Enroll\",'Enrollment Form'!$AJ782<>\"\"),\"Y\",\"N\")))","v":""},{"$f":"IF($B775=\"N\",\"\",IF(OR('Enrollment Form'!$B782<>\"Subscriber\",'Enrollment Form'!$C782=\"ROC\"),\"-\",IF(AND('Enrollment Form'!$B782=\"Subscriber\",'Enrollment Form'!$C782=\"Enroll\",'Enrollment Form'!$AK782<>\"\"),\"Y\",\"N\")))","v":""},{"$f":"IF($B775=\"N\",\"\",IF(OR('Enrollment Form'!$B782<>\"Subscriber\",'Enrollment Form'!$C782=\"ROC\"),\"-\",IF(AND('Enrollment Form'!$B782=\"Subscriber\",'Enrollment Form'!$C782=\"Enroll\",'Enrollment Form'!$AL782<>\"\"),\"Y\",\"N\")))","v":""},{"$f":"IF($B775=\"N\",\"\",IF(OR('Enrollment Form'!$B782<>\"Subscriber\",'Enrollment Form'!$C782=\"ROC\"),\"-\",IF(AND('Enrollment Form'!$B782=\"Subscriber\",'Enrollment Form'!$C782=\"Enroll\",'Enrollment Form'!$AP782<>\"\"),\"Y\",\"N\")))","v":""},{"$f":"IF($B775=\"N\",\"\",IF(OR('Enrollment Form'!$B782<>\"Subscriber\",'Enrollment Form'!$C782=\"ROC\"),\"-\",IF(AND('Enrollment Form'!$B782=\"Subscriber\",'Enrollment Form'!$C782=\"Enroll\",'Enrollment Form'!$AQ782<>\"\"),\"Y\",\"N\")))","v":""},{"$f":"IF($B775=\"N\",\"\",IF(OR('Enrollment Form'!$B782<>\"Subscriber\",'Enrollment Form'!$C782=\"ROC\"),\"-\",IF(AND('Enrollment Form'!$B782=\"Subscriber\",'Enrollment Form'!$C782=\"Enroll\",'Enrollment Form'!$AS782<>\"\"),\"Y\",\"N\")))","v":""},{"$f":"IF($B775=\"N\",\"\",IF($Q775=\"-\",\"-\",IF(AND($Q775=\"Y\",'Enrollment Form'!$AS782=\"No\"),\"-\",IF(AND($Q775=\"Y\",'Enrollment Form'!$AS782=\"Yes\",'Enrollment Form'!$AT782<>\"\"),\"Y\",\"N\"))))","v":""},{"$f":"IF($B775=\"N\",\"\",IF(OR('Enrollment Form'!$B782<>\"Subscriber\",'Enrollment Form'!$C782=\"ROC\"),\"-\",IF(AND('Enrollment Form'!$B782=\"Subscriber\",'Enrollment Form'!$C782=\"Enroll\",'Enrollment Form'!$CV782<>\"\"),\"Y\",\"N\")))","v":""},{"$f":"IF($B775=\"N\",\"\",IF($S775=\"-\",\"-\",IF(AND($S775=\"Y\",'Enrollment Form'!$CV782=\"No\"),\"-\",IF(AND($S775=\"Y\",'Enrollment Form'!$CV782=\"Yes\",'Enrollment Form'!$CW782<>\"\"),\"Y\",\"N\"))))","v":""},{"$f":"IF(OR('Enrollment Form'!$AY782=\"Yes\",'Enrollment Form'!$AY782=\"\"),\"-\",IF(OR(AND('Enrollment Form'!$AY782=\"No\",ISERROR(FIND(\"HMO\",VLOOKUP('Enrollment Form'!G782,'Enrollment Form'!H$11:J$1000,3,FALSE),1))=FALSE,COUNTA('Enrollment Form'!$AZ782:$BC782)=4),AND('Enrollment Form'!$AY782=\"No\",ISERROR(FIND(\"HMO\",VLOOKUP('Enrollment Form'!G782,'Enrollment Form'!H$11:J$1000,3,FALSE),1))=FALSE,COUNTA('Enrollment Form'!$BT782:$BW782)=4)),\"Y\",\"N\"))","v":"-"},{"$f":"IF($B775=\"N\",\"\",IF('Enrollment Form'!$B782=\"Subscriber\",\"-\",IF(COUNTA('Enrollment Form'!$BL782,'Enrollment Form'!$BN782)=2,\"Y\",\"N\")))","v":""},{"$f":"IF($B775=\"N\",\"\",IF(OR('Enrollment Form'!$AX782=\"\",'Enrollment Form'!$AX782=\"No\"),\"-\",IF(AND('Enrollment Form'!$AX782=\"Yes\",COUNTA('Enrollment Form'!$CR782)=1),\"Y\",\"N\")))","v":""},{"$f":"IF(OR('Enrollment Form'!$CR782=\"\",'Enrollment Form'!$CR782=\"No\"),\"-\",IF(COUNTA('Enrollment Form'!$CT782:$CU782)=2,\"Y\",\"N\"))","v":"-"},{"$f":"IF($B775=\"N\",\"\",IF(COUNTIF('Enrollment Form'!$DG782:$DP782,\"Other\")=COUNTA('Enrollment Form'!$DK782,'Enrollment Form'!$DH782,'Enrollment Form'!$DN782,'Enrollment Form'!$DQ782),\"Y\",\"N\"))","v":""},{"$f":"IF($B775=\"N\",\"\",IF(OR('Enrollment Form'!B782<>\"Subscriber\",'Enrollment Form'!C782=\"ROC\",COUNTIF('Enrollment Form'!AV782:AW782,\"Yes\")>=1),\"-\",IF(AND('Enrollment Form'!C782=\"Enroll\",COUNTIF('Enrollment Form'!AV782:AW782,\"No\")=2,'Enrollment Form'!AX782=\"\"),\"N\",\"Y\")))","v":""},{"$f":"IF(OR(B775=\"N\",'Enrollment Form'!B782<>\"Subscriber\",'Enrollment Form'!C782=\"ROC\",'Enrollment Form'!O782<>\"Multiple of Salary\"),\"-\",IF(COUNTA('Enrollment Form'!T782:U782)<2,\"N\",\"Y\"))","v":"-"},{"$f":"IF(B775=\"N\",\"\",IF(OR('Enrollment Form'!C782=\"ROC\",'Enrollment Form'!B782<>\"Subscriber\",'Enrollment Form'!O782=\"Waive\",'Enrollment Form'!O782=\"\"),\"-\",IF('Enrollment Form'!P782=\"\",\"N\",\"Y\")))","v":""},{"$f":"IF($B775=\"N\",\"\",IF(AND('Enrollment Form'!$C782=\"ROC\",'Enrollment Form'!$DR782<>\"\"),\"Y\",IF(AND('Enrollment Form'!$C782=\"ROC\",'Enrollment Form'!$DR782=\"\"),\"N\",IF(AND('Enrollment Form'!$C782=\"Enroll\",'Enrollment Form'!$B782=\"Subscriber\",'Enrollment Form'!$CX782=\"No\",'Enrollment Form'!$DR782=\"\"),\"N\",IF(AND('Enrollment Form'!$C782=\"Enroll\",'Enrollment Form'!$B782=\"Subscriber\",'Enrollment Form'!$CX782=\"Yes\"),\"-\",\"Y\")))))","v":""},{"$f":"IF($B775=\"N\",\"\",IF(AND('Enrollment Form'!$C782=\"ROC\",'Enrollment Form'!$DS782<>\"\"),\"Y\",IF(AND('Enrollment Form'!$C782=\"ROC\",'Enrollment Form'!$DS782=\"\"),\"N\",IF(AND('Enrollment Form'!$C782=\"Enroll\",'Enrollment Form'!$B782=\"Subscriber\",'Enrollment Form'!$CX782=\"No\",'Enrollment Form'!$DS782=\"\"),\"N\",IF(AND('Enrollment Form'!$C782=\"Enroll\",'Enrollment Form'!$B782=\"Subscriber\",'Enrollment Form'!$CX782=\"Yes\"),\"-\",\"Y\")))))","v":""},{"$f":"IF('Enrollment Form'!AH782=\"\",\"\",IF(ISERROR(SEARCH(\".\",'Enrollment Form'!AH782,SEARCH(\"@\",'Enrollment Form'!AH782))),\"N\",\"Y\"))","v":""},{"$f":"IF(OR($B775=\"N\",'Enrollment Form'!$G782=\"\"),\"\",IF('Enrollment Form'!$B782<>\"Subscriber\",\"-\",IF(COUNTIF('Enrollment Form'!$AV782:$AW782,\"Yes\")=2,\"N\",\"Y\")))","v":""},{"$f":"IF(OR('Enrollment Form'!$CJ782=\"\",'Enrollment Form'!$CJ782=\"No\"),\"-\",IF(AND('Enrollment Form'!$CJ782=\"Yes\",'Enrollment Form'!$CK782=\"\"),\"N\",\"Y\"))","v":"-"},{"$f":"IF(OR('Enrollment Form'!$CL782=\"\",'Enrollment Form'!$CL782=\"No\"),\"-\",IF(AND('Enrollment Form'!$CL782=\"Yes\",'Enrollment Form'!$CM782=\"\"),\"N\",\"Y\"))","v":"-"},{"$f":"IF(OR('Enrollment Form'!$CN782=\"\",'Enrollment Form'!$CN782=\"No\"),\"-\",IF(AND('Enrollment Form'!$CN782=\"Yes\",'Enrollment Form'!$CO782=\"\"),\"N\",\"Y\"))","v":"-"},{"$f":"IF(OR('Enrollment Form'!$CN782=\"\",'Enrollment Form'!$CN782=\"No\"),\"-\",IF(AND('Enrollment Form'!$CN782=\"Yes\",'Enrollment Form'!$CP782=\"\"),\"N\",\"Y\"))","v":"-"},{"$f":"IF('Enrollment Form'!B782<>\"Subscriber\",\"-\",IF(AND('Enrollment Form'!B782=\"Subscriber\",'Enrollment Form'!C782=\"Enroll\",'Enrollment Form'!AA782=\"\"),\"N\",\"Y\"))","v":"-"},{"$f":"IF(OR('Enrollment Form'!B782=\"Subscriber\",'Enrollment Form'!B782=\"\"),\"-\",IF('Enrollment Form'!BP782=\"\",\"N\",\"Y\"))","v":"-"},{"$f":"IF('Enrollment Form'!B782<>\"Subscriber\",\"-\",IF(AND('Enrollment Form'!B782=\"Subscriber\",'Enrollment Form'!G782=\"\"),\"N\",\"Y\"))","v":"-"},{"$f":"IF('Enrollment Form'!A782=\"\",\"\",IF('Enrollment Form'!B782=\"Subscriber\",\"-\",IF(AND('Enrollment Form'!B782<>\"Subscriber\",'Enrollment Form'!G782='Enrollment Form'!H782),\"N\",\"Y\")))","v":""},0]
[783,{"$f":"IF('Enrollment Form'!$A783<>\"\",\"Y\",\"N\")","v":"N"},{"$f":"IF(AND('Enrollment Form'!$B783=\"\",'Enrollment Form'!$C783<>\"\"),\"N\",IF($B776=\"N\",\"\",\"Y\"))","v":""},{"$f":"IF(OR($B776=\"N\",'Enrollment Form'!G783=\"\"),\"\",IF('Enrollment Form'!$B783<>\"Subscriber\",\"\",IF('Enrollment Form'!$G783='Enrollment Form'!$H783,\"Y\",\"N\")))","v":""},{"$f":"IF($B776=\"N\",\"\",IF(AND(COUNTIFS('Enrollment Form'!$H$11:$H$1000,'Enrollment Form'!$H783,'Enrollment Form'!$B$11:$B$1000,'Enrollment Form'!$B783)>1,'Enrollment Form'!$H783<>\"\"),\"N\",\"Y\"))","v":""},{"$f":"IF($B776=\"N\",\"\",IF(LEN('Enrollment Form'!$Y783)=0,\"\",IF(LEN('Enrollment Form'!$Y783)<>5,\"N\",\"Y\")))","v":""},{"$f":"IF($B776=\"N\",\"\",IF(LEN('Enrollment Form'!$AD783=0),\"\",IF(LEN('Enrollment Form'!$AD783)<>5,\"N\",\"Y\")))","v":""},{"$f":"IF($B776=\"N\",\"\",IF(LEN('Enrollment Form'!$BS783=0),\"\",IF(LEN('Enrollment Form'!$BS783)<>5,\"N\",\"Y\")))","v":""},{"$f":"IF($B776=\"N\",\"\",IF(LEN('Enrollment Form'!$AE783)=0,\"\",IF(LEN('Enrollment Form'!$AE783)<>10,\"N\",\"Y\")))","v":""},{"$f":"IF($B776=\"N\",\"\",IF(LEN('Enrollment Form'!$AF783)=0,\"\",IF(LEN('Enrollment Form'!$AF783)<>10,\"N\",\"Y\")))","v":""},{"$f":"IF('Enrollment Form'!$O783<>\"Graded\",\"-\",IF(AND('Enrollment Form'!$O783=\"Graded\",'Enrollment Form'!$AR783<>\"\"),\"Y\",\"N\"))","v":"-"},{"$f":"IF($B776=\"N\",\"\",IF(OR('Enrollment Form'!$B783<>\"Subscriber\",'Enrollment Form'!$C783=\"ROC\"),\"-\",IF(AND('Enrollment Form'!$B783=\"Subscriber\",'Enrollment Form'!$C783=\"Enroll\",'Enrollment Form'!$AJ783<>\"\"),\"Y\",\"N\")))","v":""},{"$f":"IF($B776=\"N\",\"\",IF(OR('Enrollment Form'!$B783<>\"Subscriber\",'Enrollment Form'!$C783=\"ROC\"),\"-\",IF(AND('Enrollment Form'!$B783=\"Subscriber\",'Enrollment Form'!$C783=\"Enroll\",'Enrollment Form'!$AK783<>\"\"),\"Y\",\"N\")))","v":""},{"$f":"IF($B776=\"N\",\"\",IF(OR('Enrollment Form'!$B783<>\"Subscriber\",'Enrollment Form'!$C783=\"ROC\"),\"-\",IF(AND('Enrollment Form'!$B783=\"Subscriber\",'Enrollment Form'!$C783=\"Enroll\",'Enrollment Form'!$AL783<>\"\"),\"Y\",\"N\")))","v":""},{"$f":"IF($B776=\"N\",\"\",IF(OR('Enrollment Form'!$B783<>\"Subscriber\",'Enrollment Form'!$C783=\"ROC\"),\"-\",IF(AND('Enrollment Form'!$B783=\"Subscriber\",'Enrollment Form'!$C783=\"Enroll\",'Enrollment Form'!$AP783<>\"\"),\"Y\",\"N\")))","v":""},{"$f":"IF($B776=\"N\",\"\",IF(OR('Enrollment Form'!$B783<>\"Subscriber\",'Enrollment Form'!$C783=\"ROC\"),\"-\",IF(AND('Enrollment Form'!$B783=\"Subscriber\",'Enrollment Form'!$C783=\"Enroll\",'Enrollment Form'!$AQ783<>\"\"),\"Y\",\"N\")))","v":""},{"$f":"IF($B776=\"N\",\"\",IF(OR('Enrollment Form'!$B783<>\"Subscriber\",'Enrollment Form'!$C783=\"ROC\"),\"-\",IF(AND('Enrollment Form'!$B783=\"Subscriber\",'Enrollment Form'!$C783=\"Enroll\",'Enrollment Form'!$AS783<>\"\"),\"Y\",\"N\")))","v":""},{"$f":"IF($B776=\"N\",\"\",IF($Q776=\"-\",\"-\",IF(AND($Q776=\"Y\",'Enrollment Form'!$AS783=\"No\"),\"-\",IF(AND($Q776=\"Y\",'Enrollment Form'!$AS783=\"Yes\",'Enrollment Form'!$AT783<>\"\"),\"Y\",\"N\"))))","v":""},{"$f":"IF($B776=\"N\",\"\",IF(OR('Enrollment Form'!$B783<>\"Subscriber\",'Enrollment Form'!$C783=\"ROC\"),\"-\",IF(AND('Enrollment Form'!$B783=\"Subscriber\",'Enrollment Form'!$C783=\"Enroll\",'Enrollment Form'!$CV783<>\"\"),\"Y\",\"N\")))","v":""},{"$f":"IF($B776=\"N\",\"\",IF($S776=\"-\",\"-\",IF(AND($S776=\"Y\",'Enrollment Form'!$CV783=\"No\"),\"-\",IF(AND($S776=\"Y\",'Enrollment Form'!$CV783=\"Yes\",'Enrollment Form'!$CW783<>\"\"),\"Y\",\"N\"))))","v":""},{"$f":"IF(OR('Enrollment Form'!$AY783=\"Yes\",'Enrollment Form'!$AY783=\"\"),\"-\",IF(OR(AND('Enrollment Form'!$AY783=\"No\",ISERROR(FIND(\"HMO\",VLOOKUP('Enrollment Form'!G783,'Enrollment Form'!H$11:J$1000,3,FALSE),1))=FALSE,COUNTA('Enrollment Form'!$AZ783:$BC783)=4),AND('Enrollment Form'!$AY783=\"No\",ISERROR(FIND(\"HMO\",VLOOKUP('Enrollment Form'!G783,'Enrollment Form'!H$11:J$1000,3,FALSE),1))=FALSE,COUNTA('Enrollment Form'!$BT783:$BW783)=4)),\"Y\",\"N\"))","v":"-"},{"$f":"IF($B776=\"N\",\"\",IF('Enrollment Form'!$B783=\"Subscriber\",\"-\",IF(COUNTA('Enrollment Form'!$BL783,'Enrollment Form'!$BN783)=2,\"Y\",\"N\")))","v":""},{"$f":"IF($B776=\"N\",\"\",IF(OR('Enrollment Form'!$AX783=\"\",'Enrollment Form'!$AX783=\"No\"),\"-\",IF(AND('Enrollment Form'!$AX783=\"Yes\",COUNTA('Enrollment Form'!$CR783)=1),\"Y\",\"N\")))","v":""},{"$f":"IF(OR('Enrollment Form'!$CR783=\"\",'Enrollment Form'!$CR783=\"No\"),\"-\",IF(COUNTA('Enrollment Form'!$CT783:$CU783)=2,\"Y\",\"N\"))","v":"-"},{"$f":"IF($B776=\"N\",\"\",IF(COUNTIF('Enrollment Form'!$DG783:$DP783,\"Other\")=COUNTA('Enrollment Form'!$DK783,'Enrollment Form'!$DH783,'Enrollment Form'!$DN783,'Enrollment Form'!$DQ783),\"Y\",\"N\"))","v":""},{"$f":"IF($B776=\"N\",\"\",IF(OR('Enrollment Form'!B783<>\"Subscriber\",'Enrollment Form'!C783=\"ROC\",COUNTIF('Enrollment Form'!AV783:AW783,\"Yes\")>=1),\"-\",IF(AND('Enrollment Form'!C783=\"Enroll\",COUNTIF('Enrollment Form'!AV783:AW783,\"No\")=2,'Enrollment Form'!AX783=\"\"),\"N\",\"Y\")))","v":""},{"$f":"IF(OR(B776=\"N\",'Enrollment Form'!B783<>\"Subscriber\",'Enrollment Form'!C783=\"ROC\",'Enrollment Form'!O783<>\"Multiple of Salary\"),\"-\",IF(COUNTA('Enrollment Form'!T783:U783)<2,\"N\",\"Y\"))","v":"-"},{"$f":"IF(B776=\"N\",\"\",IF(OR('Enrollment Form'!C783=\"ROC\",'Enrollment Form'!B783<>\"Subscriber\",'Enrollment Form'!O783=\"Waive\",'Enrollment Form'!O783=\"\"),\"-\",IF('Enrollment Form'!P783=\"\",\"N\",\"Y\")))","v":""},{"$f":"IF($B776=\"N\",\"\",IF(AND('Enrollment Form'!$C783=\"ROC\",'Enrollment Form'!$DR783<>\"\"),\"Y\",IF(AND('Enrollment Form'!$C783=\"ROC\",'Enrollment Form'!$DR783=\"\"),\"N\",IF(AND('Enrollment Form'!$C783=\"Enroll\",'Enrollment Form'!$B783=\"Subscriber\",'Enrollment Form'!$CX783=\"No\",'Enrollment Form'!$DR783=\"\"),\"N\",IF(AND('Enrollment Form'!$C783=\"Enroll\",'Enrollment Form'!$B783=\"Subscriber\",'Enrollment Form'!$CX783=\"Yes\"),\"-\",\"Y\")))))","v":""},{"$f":"IF($B776=\"N\",\"\",IF(AND('Enrollment Form'!$C783=\"ROC\",'Enrollment Form'!$DS783<>\"\"),\"Y\",IF(AND('Enrollment Form'!$C783=\"ROC\",'Enrollment Form'!$DS783=\"\"),\"N\",IF(AND('Enrollment Form'!$C783=\"Enroll\",'Enrollment Form'!$B783=\"Subscriber\",'Enrollment Form'!$CX783=\"No\",'Enrollment Form'!$DS783=\"\"),\"N\",IF(AND('Enrollment Form'!$C783=\"Enroll\",'Enrollment Form'!$B783=\"Subscriber\",'Enrollment Form'!$CX783=\"Yes\"),\"-\",\"Y\")))))","v":""},{"$f":"IF('Enrollment Form'!AH783=\"\",\"\",IF(ISERROR(SEARCH(\".\",'Enrollment Form'!AH783,SEARCH(\"@\",'Enrollment Form'!AH783))),\"N\",\"Y\"))","v":""},{"$f":"IF(OR($B776=\"N\",'Enrollment Form'!$G783=\"\"),\"\",IF('Enrollment Form'!$B783<>\"Subscriber\",\"-\",IF(COUNTIF('Enrollment Form'!$AV783:$AW783,\"Yes\")=2,\"N\",\"Y\")))","v":""},{"$f":"IF(OR('Enrollment Form'!$CJ783=\"\",'Enrollment Form'!$CJ783=\"No\"),\"-\",IF(AND('Enrollment Form'!$CJ783=\"Yes\",'Enrollment Form'!$CK783=\"\"),\"N\",\"Y\"))","v":"-"},{"$f":"IF(OR('Enrollment Form'!$CL783=\"\",'Enrollment Form'!$CL783=\"No\"),\"-\",IF(AND('Enrollment Form'!$CL783=\"Yes\",'Enrollment Form'!$CM783=\"\"),\"N\",\"Y\"))","v":"-"},{"$f":"IF(OR('Enrollment Form'!$CN783=\"\",'Enrollment Form'!$CN783=\"No\"),\"-\",IF(AND('Enrollment Form'!$CN783=\"Yes\",'Enrollment Form'!$CO783=\"\"),\"N\",\"Y\"))","v":"-"},{"$f":"IF(OR('Enrollment Form'!$CN783=\"\",'Enrollment Form'!$CN783=\"No\"),\"-\",IF(AND('Enrollment Form'!$CN783=\"Yes\",'Enrollment Form'!$CP783=\"\"),\"N\",\"Y\"))","v":"-"},{"$f":"IF('Enrollment Form'!B783<>\"Subscriber\",\"-\",IF(AND('Enrollment Form'!B783=\"Subscriber\",'Enrollment Form'!C783=\"Enroll\",'Enrollment Form'!AA783=\"\"),\"N\",\"Y\"))","v":"-"},{"$f":"IF(OR('Enrollment Form'!B783=\"Subscriber\",'Enrollment Form'!B783=\"\"),\"-\",IF('Enrollment Form'!BP783=\"\",\"N\",\"Y\"))","v":"-"},{"$f":"IF('Enrollment Form'!B783<>\"Subscriber\",\"-\",IF(AND('Enrollment Form'!B783=\"Subscriber\",'Enrollment Form'!G783=\"\"),\"N\",\"Y\"))","v":"-"},{"$f":"IF('Enrollment Form'!A783=\"\",\"\",IF('Enrollment Form'!B783=\"Subscriber\",\"-\",IF(AND('Enrollment Form'!B783<>\"Subscriber\",'Enrollment Form'!G783='Enrollment Form'!H783),\"N\",\"Y\")))","v":""},0]
[784,{"$f":"IF('Enrollment Form'!$A784<>\"\",\"Y\",\"N\")","v":"N"},{"$f":"IF(AND('Enrollment Form'!$B784=\"\",'Enrollment Form'!$C784<>\"\"),\"N\",IF($B777=\"N\",\"\",\"Y\"))","v":""},{"$f":"IF(OR($B777=\"N\",'Enrollment Form'!G784=\"\"),\"\",IF('Enrollment Form'!$B784<>\"Subscriber\",\"\",IF('Enrollment Form'!$G784='Enrollment Form'!$H784,\"Y\",\"N\")))","v":""},{"$f":"IF($B777=\"N\",\"\",IF(AND(COUNTIFS('Enrollment Form'!$H$11:$H$1000,'Enrollment Form'!$H784,'Enrollment Form'!$B$11:$B$1000,'Enrollment Form'!$B784)>1,'Enrollment Form'!$H784<>\"\"),\"N\",\"Y\"))","v":""},{"$f":"IF($B777=\"N\",\"\",IF(LEN('Enrollment Form'!$Y784)=0,\"\",IF(LEN('Enrollment Form'!$Y784)<>5,\"N\",\"Y\")))","v":""},{"$f":"IF($B777=\"N\",\"\",IF(LEN('Enrollment Form'!$AD784=0),\"\",IF(LEN('Enrollment Form'!$AD784)<>5,\"N\",\"Y\")))","v":""},{"$f":"IF($B777=\"N\",\"\",IF(LEN('Enrollment Form'!$BS784=0),\"\",IF(LEN('Enrollment Form'!$BS784)<>5,\"N\",\"Y\")))","v":""},{"$f":"IF($B777=\"N\",\"\",IF(LEN('Enrollment Form'!$AE784)=0,\"\",IF(LEN('Enrollment Form'!$AE784)<>10,\"N\",\"Y\")))","v":""},{"$f":"IF($B777=\"N\",\"\",IF(LEN('Enrollment Form'!$AF784)=0,\"\",IF(LEN('Enrollment Form'!$AF784)<>10,\"N\",\"Y\")))","v":""},{"$f":"IF('Enrollment Form'!$O784<>\"Graded\",\"-\",IF(AND('Enrollment Form'!$O784=\"Graded\",'Enrollment Form'!$AR784<>\"\"),\"Y\",\"N\"))","v":"-"},{"$f":"IF($B777=\"N\",\"\",IF(OR('Enrollment Form'!$B784<>\"Subscriber\",'Enrollment Form'!$C784=\"ROC\"),\"-\",IF(AND('Enrollment Form'!$B784=\"Subscriber\",'Enrollment Form'!$C784=\"Enroll\",'Enrollment Form'!$AJ784<>\"\"),\"Y\",\"N\")))","v":""},{"$f":"IF($B777=\"N\",\"\",IF(OR('Enrollment Form'!$B784<>\"Subscriber\",'Enrollment Form'!$C784=\"ROC\"),\"-\",IF(AND('Enrollment Form'!$B784=\"Subscriber\",'Enrollment Form'!$C784=\"Enroll\",'Enrollment Form'!$AK784<>\"\"),\"Y\",\"N\")))","v":""},{"$f":"IF($B777=\"N\",\"\",IF(OR('Enrollment Form'!$B784<>\"Subscriber\",'Enrollment Form'!$C784=\"ROC\"),\"-\",IF(AND('Enrollment Form'!$B784=\"Subscriber\",'Enrollment Form'!$C784=\"Enroll\",'Enrollment Form'!$AL784<>\"\"),\"Y\",\"N\")))","v":""},{"$f":"IF($B777=\"N\",\"\",IF(OR('Enrollment Form'!$B784<>\"Subscriber\",'Enrollment Form'!$C784=\"ROC\"),\"-\",IF(AND('Enrollment Form'!$B784=\"Subscriber\",'Enrollment Form'!$C784=\"Enroll\",'Enrollment Form'!$AP784<>\"\"),\"Y\",\"N\")))","v":""},{"$f":"IF($B777=\"N\",\"\",IF(OR('Enrollment Form'!$B784<>\"Subscriber\",'Enrollment Form'!$C784=\"ROC\"),\"-\",IF(AND('Enrollment Form'!$B784=\"Subscriber\",'Enrollment Form'!$C784=\"Enroll\",'Enrollment Form'!$AQ784<>\"\"),\"Y\",\"N\")))","v":""},{"$f":"IF($B777=\"N\",\"\",IF(OR('Enrollment Form'!$B784<>\"Subscriber\",'Enrollment Form'!$C784=\"ROC\"),\"-\",IF(AND('Enrollment Form'!$B784=\"Subscriber\",'Enrollment Form'!$C784=\"Enroll\",'Enrollment Form'!$AS784<>\"\"),\"Y\",\"N\")))","v":""},{"$f":"IF($B777=\"N\",\"\",IF($Q777=\"-\",\"-\",IF(AND($Q777=\"Y\",'Enrollment Form'!$AS784=\"No\"),\"-\",IF(AND($Q777=\"Y\",'Enrollment Form'!$AS784=\"Yes\",'Enrollment Form'!$AT784<>\"\"),\"Y\",\"N\"))))","v":""},{"$f":"IF($B777=\"N\",\"\",IF(OR('Enrollment Form'!$B784<>\"Subscriber\",'Enrollment Form'!$C784=\"ROC\"),\"-\",IF(AND('Enrollment Form'!$B784=\"Subscriber\",'Enrollment Form'!$C784=\"Enroll\",'Enrollment Form'!$CV784<>\"\"),\"Y\",\"N\")))","v":""},{"$f":"IF($B777=\"N\",\"\",IF($S777=\"-\",\"-\",IF(AND($S777=\"Y\",'Enrollment Form'!$CV784=\"No\"),\"-\",IF(AND($S777=\"Y\",'Enrollment Form'!$CV784=\"Yes\",'Enrollment Form'!$CW784<>\"\"),\"Y\",\"N\"))))","v":""},{"$f":"IF(OR('Enrollment Form'!$AY784=\"Yes\",'Enrollment Form'!$AY784=\"\"),\"-\",IF(OR(AND('Enrollment Form'!$AY784=\"No\",ISERROR(FIND(\"HMO\",VLOOKUP('Enrollment Form'!G784,'Enrollment Form'!H$11:J$1000,3,FALSE),1))=FALSE,COUNTA('Enrollment Form'!$AZ784:$BC784)=4),AND('Enrollment Form'!$AY784=\"No\",ISERROR(FIND(\"HMO\",VLOOKUP('Enrollment Form'!G784,'Enrollment Form'!H$11:J$1000,3,FALSE),1))=FALSE,COUNTA('Enrollment Form'!$BT784:$BW784)=4)),\"Y\",\"N\"))","v":"-"},{"$f":"IF($B777=\"N\",\"\",IF('Enrollment Form'!$B784=\"Subscriber\",\"-\",IF(COUNTA('Enrollment Form'!$BL784,'Enrollment Form'!$BN784)=2,\"Y\",\"N\")))","v":""},{"$f":"IF($B777=\"N\",\"\",IF(OR('Enrollment Form'!$AX784=\"\",'Enrollment Form'!$AX784=\"No\"),\"-\",IF(AND('Enrollment Form'!$AX784=\"Yes\",COUNTA('Enrollment Form'!$CR784)=1),\"Y\",\"N\")))","v":""},{"$f":"IF(OR('Enrollment Form'!$CR784=\"\",'Enrollment Form'!$CR784=\"No\"),\"-\",IF(COUNTA('Enrollment Form'!$CT784:$CU784)=2,\"Y\",\"N\"))","v":"-"},{"$f":"IF($B777=\"N\",\"\",IF(COUNTIF('Enrollment Form'!$DG784:$DP784,\"Other\")=COUNTA('Enrollment Form'!$DK784,'Enrollment Form'!$DH784,'Enrollment Form'!$DN784,'Enrollment Form'!$DQ784),\"Y\",\"N\"))","v":""},{"$f":"IF($B777=\"N\",\"\",IF(OR('Enrollment Form'!B784<>\"Subscriber\",'Enrollment Form'!C784=\"ROC\",COUNTIF('Enrollment Form'!AV784:AW784,\"Yes\")>=1),\"-\",IF(AND('Enrollment Form'!C784=\"Enroll\",COUNTIF('Enrollment Form'!AV784:AW784,\"No\")=2,'Enrollment Form'!AX784=\"\"),\"N\",\"Y\")))","v":""},{"$f":"IF(OR(B777=\"N\",'Enrollment Form'!B784<>\"Subscriber\",'Enrollment Form'!C784=\"ROC\",'Enrollment Form'!O784<>\"Multiple of Salary\"),\"-\",IF(COUNTA('Enrollment Form'!T784:U784)<2,\"N\",\"Y\"))","v":"-"},{"$f":"IF(B777=\"N\",\"\",IF(OR('Enrollment Form'!C784=\"ROC\",'Enrollment Form'!B784<>\"Subscriber\",'Enrollment Form'!O784=\"Waive\",'Enrollment Form'!O784=\"\"),\"-\",IF('Enrollment Form'!P784=\"\",\"N\",\"Y\")))","v":""},{"$f":"IF($B777=\"N\",\"\",IF(AND('Enrollment Form'!$C784=\"ROC\",'Enrollment Form'!$DR784<>\"\"),\"Y\",IF(AND('Enrollment Form'!$C784=\"ROC\",'Enrollment Form'!$DR784=\"\"),\"N\",IF(AND('Enrollment Form'!$C784=\"Enroll\",'Enrollment Form'!$B784=\"Subscriber\",'Enrollment Form'!$CX784=\"No\",'Enrollment Form'!$DR784=\"\"),\"N\",IF(AND('Enrollment Form'!$C784=\"Enroll\",'Enrollment Form'!$B784=\"Subscriber\",'Enrollment Form'!$CX784=\"Yes\"),\"-\",\"Y\")))))","v":""},{"$f":"IF($B777=\"N\",\"\",IF(AND('Enrollment Form'!$C784=\"ROC\",'Enrollment Form'!$DS784<>\"\"),\"Y\",IF(AND('Enrollment Form'!$C784=\"ROC\",'Enrollment Form'!$DS784=\"\"),\"N\",IF(AND('Enrollment Form'!$C784=\"Enroll\",'Enrollment Form'!$B784=\"Subscriber\",'Enrollment Form'!$CX784=\"No\",'Enrollment Form'!$DS784=\"\"),\"N\",IF(AND('Enrollment Form'!$C784=\"Enroll\",'Enrollment Form'!$B784=\"Subscriber\",'Enrollment Form'!$CX784=\"Yes\"),\"-\",\"Y\")))))","v":""},{"$f":"IF('Enrollment Form'!AH784=\"\",\"\",IF(ISERROR(SEARCH(\".\",'Enrollment Form'!AH784,SEARCH(\"@\",'Enrollment Form'!AH784))),\"N\",\"Y\"))","v":""},{"$f":"IF(OR($B777=\"N\",'Enrollment Form'!$G784=\"\"),\"\",IF('Enrollment Form'!$B784<>\"Subscriber\",\"-\",IF(COUNTIF('Enrollment Form'!$AV784:$AW784,\"Yes\")=2,\"N\",\"Y\")))","v":""},{"$f":"IF(OR('Enrollment Form'!$CJ784=\"\",'Enrollment Form'!$CJ784=\"No\"),\"-\",IF(AND('Enrollment Form'!$CJ784=\"Yes\",'Enrollment Form'!$CK784=\"\"),\"N\",\"Y\"))","v":"-"},{"$f":"IF(OR('Enrollment Form'!$CL784=\"\",'Enrollment Form'!$CL784=\"No\"),\"-\",IF(AND('Enrollment Form'!$CL784=\"Yes\",'Enrollment Form'!$CM784=\"\"),\"N\",\"Y\"))","v":"-"},{"$f":"IF(OR('Enrollment Form'!$CN784=\"\",'Enrollment Form'!$CN784=\"No\"),\"-\",IF(AND('Enrollment Form'!$CN784=\"Yes\",'Enrollment Form'!$CO784=\"\"),\"N\",\"Y\"))","v":"-"},{"$f":"IF(OR('Enrollment Form'!$CN784=\"\",'Enrollment Form'!$CN784=\"No\"),\"-\",IF(AND('Enrollment Form'!$CN784=\"Yes\",'Enrollment Form'!$CP784=\"\"),\"N\",\"Y\"))","v":"-"},{"$f":"IF('Enrollment Form'!B784<>\"Subscriber\",\"-\",IF(AND('Enrollment Form'!B784=\"Subscriber\",'Enrollment Form'!C784=\"Enroll\",'Enrollment Form'!AA784=\"\"),\"N\",\"Y\"))","v":"-"},{"$f":"IF(OR('Enrollment Form'!B784=\"Subscriber\",'Enrollment Form'!B784=\"\"),\"-\",IF('Enrollment Form'!BP784=\"\",\"N\",\"Y\"))","v":"-"},{"$f":"IF('Enrollment Form'!B784<>\"Subscriber\",\"-\",IF(AND('Enrollment Form'!B784=\"Subscriber\",'Enrollment Form'!G784=\"\"),\"N\",\"Y\"))","v":"-"},{"$f":"IF('Enrollment Form'!A784=\"\",\"\",IF('Enrollment Form'!B784=\"Subscriber\",\"-\",IF(AND('Enrollment Form'!B784<>\"Subscriber\",'Enrollment Form'!G784='Enrollment Form'!H784),\"N\",\"Y\")))","v":""},0]
[785,{"$f":"IF('Enrollment Form'!$A785<>\"\",\"Y\",\"N\")","v":"N"},{"$f":"IF(AND('Enrollment Form'!$B785=\"\",'Enrollment Form'!$C785<>\"\"),\"N\",IF($B778=\"N\",\"\",\"Y\"))","v":""},{"$f":"IF(OR($B778=\"N\",'Enrollment Form'!G785=\"\"),\"\",IF('Enrollment Form'!$B785<>\"Subscriber\",\"\",IF('Enrollment Form'!$G785='Enrollment Form'!$H785,\"Y\",\"N\")))","v":""},{"$f":"IF($B778=\"N\",\"\",IF(AND(COUNTIFS('Enrollment Form'!$H$11:$H$1000,'Enrollment Form'!$H785,'Enrollment Form'!$B$11:$B$1000,'Enrollment Form'!$B785)>1,'Enrollment Form'!$H785<>\"\"),\"N\",\"Y\"))","v":""},{"$f":"IF($B778=\"N\",\"\",IF(LEN('Enrollment Form'!$Y785)=0,\"\",IF(LEN('Enrollment Form'!$Y785)<>5,\"N\",\"Y\")))","v":""},{"$f":"IF($B778=\"N\",\"\",IF(LEN('Enrollment Form'!$AD785=0),\"\",IF(LEN('Enrollment Form'!$AD785)<>5,\"N\",\"Y\")))","v":""},{"$f":"IF($B778=\"N\",\"\",IF(LEN('Enrollment Form'!$BS785=0),\"\",IF(LEN('Enrollment Form'!$BS785)<>5,\"N\",\"Y\")))","v":""},{"$f":"IF($B778=\"N\",\"\",IF(LEN('Enrollment Form'!$AE785)=0,\"\",IF(LEN('Enrollment Form'!$AE785)<>10,\"N\",\"Y\")))","v":""},{"$f":"IF($B778=\"N\",\"\",IF(LEN('Enrollment Form'!$AF785)=0,\"\",IF(LEN('Enrollment Form'!$AF785)<>10,\"N\",\"Y\")))","v":""},{"$f":"IF('Enrollment Form'!$O785<>\"Graded\",\"-\",IF(AND('Enrollment Form'!$O785=\"Graded\",'Enrollment Form'!$AR785<>\"\"),\"Y\",\"N\"))","v":"-"},{"$f":"IF($B778=\"N\",\"\",IF(OR('Enrollment Form'!$B785<>\"Subscriber\",'Enrollment Form'!$C785=\"ROC\"),\"-\",IF(AND('Enrollment Form'!$B785=\"Subscriber\",'Enrollment Form'!$C785=\"Enroll\",'Enrollment Form'!$AJ785<>\"\"),\"Y\",\"N\")))","v":""},{"$f":"IF($B778=\"N\",\"\",IF(OR('Enrollment Form'!$B785<>\"Subscriber\",'Enrollment Form'!$C785=\"ROC\"),\"-\",IF(AND('Enrollment Form'!$B785=\"Subscriber\",'Enrollment Form'!$C785=\"Enroll\",'Enrollment Form'!$AK785<>\"\"),\"Y\",\"N\")))","v":""},{"$f":"IF($B778=\"N\",\"\",IF(OR('Enrollment Form'!$B785<>\"Subscriber\",'Enrollment Form'!$C785=\"ROC\"),\"-\",IF(AND('Enrollment Form'!$B785=\"Subscriber\",'Enrollment Form'!$C785=\"Enroll\",'Enrollment Form'!$AL785<>\"\"),\"Y\",\"N\")))","v":""},{"$f":"IF($B778=\"N\",\"\",IF(OR('Enrollment Form'!$B785<>\"Subscriber\",'Enrollment Form'!$C785=\"ROC\"),\"-\",IF(AND('Enrollment Form'!$B785=\"Subscriber\",'Enrollment Form'!$C785=\"Enroll\",'Enrollment Form'!$AP785<>\"\"),\"Y\",\"N\")))","v":""},{"$f":"IF($B778=\"N\",\"\",IF(OR('Enrollment Form'!$B785<>\"Subscriber\",'Enrollment Form'!$C785=\"ROC\"),\"-\",IF(AND('Enrollment Form'!$B785=\"Subscriber\",'Enrollment Form'!$C785=\"Enroll\",'Enrollment Form'!$AQ785<>\"\"),\"Y\",\"N\")))","v":""},{"$f":"IF($B778=\"N\",\"\",IF(OR('Enrollment Form'!$B785<>\"Subscriber\",'Enrollment Form'!$C785=\"ROC\"),\"-\",IF(AND('Enrollment Form'!$B785=\"Subscriber\",'Enrollment Form'!$C785=\"Enroll\",'Enrollment Form'!$AS785<>\"\"),\"Y\",\"N\")))","v":""},{"$f":"IF($B778=\"N\",\"\",IF($Q778=\"-\",\"-\",IF(AND($Q778=\"Y\",'Enrollment Form'!$AS785=\"No\"),\"-\",IF(AND($Q778=\"Y\",'Enrollment Form'!$AS785=\"Yes\",'Enrollment Form'!$AT785<>\"\"),\"Y\",\"N\"))))","v":""},{"$f":"IF($B778=\"N\",\"\",IF(OR('Enrollment Form'!$B785<>\"Subscriber\",'Enrollment Form'!$C785=\"ROC\"),\"-\",IF(AND('Enrollment Form'!$B785=\"Subscriber\",'Enrollment Form'!$C785=\"Enroll\",'Enrollment Form'!$CV785<>\"\"),\"Y\",\"N\")))","v":""},{"$f":"IF($B778=\"N\",\"\",IF($S778=\"-\",\"-\",IF(AND($S778=\"Y\",'Enrollment Form'!$CV785=\"No\"),\"-\",IF(AND($S778=\"Y\",'Enrollment Form'!$CV785=\"Yes\",'Enrollment Form'!$CW785<>\"\"),\"Y\",\"N\"))))","v":""},{"$f":"IF(OR('Enrollment Form'!$AY785=\"Yes\",'Enrollment Form'!$AY785=\"\"),\"-\",IF(OR(AND('Enrollment Form'!$AY785=\"No\",ISERROR(FIND(\"HMO\",VLOOKUP('Enrollment Form'!G785,'Enrollment Form'!H$11:J$1000,3,FALSE),1))=FALSE,COUNTA('Enrollment Form'!$AZ785:$BC785)=4),AND('Enrollment Form'!$AY785=\"No\",ISERROR(FIND(\"HMO\",VLOOKUP('Enrollment Form'!G785,'Enrollment Form'!H$11:J$1000,3,FALSE),1))=FALSE,COUNTA('Enrollment Form'!$BT785:$BW785)=4)),\"Y\",\"N\"))","v":"-"},{"$f":"IF($B778=\"N\",\"\",IF('Enrollment Form'!$B785=\"Subscriber\",\"-\",IF(COUNTA('Enrollment Form'!$BL785,'Enrollment Form'!$BN785)=2,\"Y\",\"N\")))","v":""},{"$f":"IF($B778=\"N\",\"\",IF(OR('Enrollment Form'!$AX785=\"\",'Enrollment Form'!$AX785=\"No\"),\"-\",IF(AND('Enrollment Form'!$AX785=\"Yes\",COUNTA('Enrollment Form'!$CR785)=1),\"Y\",\"N\")))","v":""},{"$f":"IF(OR('Enrollment Form'!$CR785=\"\",'Enrollment Form'!$CR785=\"No\"),\"-\",IF(COUNTA('Enrollment Form'!$CT785:$CU785)=2,\"Y\",\"N\"))","v":"-"},{"$f":"IF($B778=\"N\",\"\",IF(COUNTIF('Enrollment Form'!$DG785:$DP785,\"Other\")=COUNTA('Enrollment Form'!$DK785,'Enrollment Form'!$DH785,'Enrollment Form'!$DN785,'Enrollment Form'!$DQ785),\"Y\",\"N\"))","v":""},{"$f":"IF($B778=\"N\",\"\",IF(OR('Enrollment Form'!B785<>\"Subscriber\",'Enrollment Form'!C785=\"ROC\",COUNTIF('Enrollment Form'!AV785:AW785,\"Yes\")>=1),\"-\",IF(AND('Enrollment Form'!C785=\"Enroll\",COUNTIF('Enrollment Form'!AV785:AW785,\"No\")=2,'Enrollment Form'!AX785=\"\"),\"N\",\"Y\")))","v":""},{"$f":"IF(OR(B778=\"N\",'Enrollment Form'!B785<>\"Subscriber\",'Enrollment Form'!C785=\"ROC\",'Enrollment Form'!O785<>\"Multiple of Salary\"),\"-\",IF(COUNTA('Enrollment Form'!T785:U785)<2,\"N\",\"Y\"))","v":"-"},{"$f":"IF(B778=\"N\",\"\",IF(OR('Enrollment Form'!C785=\"ROC\",'Enrollment Form'!B785<>\"Subscriber\",'Enrollment Form'!O785=\"Waive\",'Enrollment Form'!O785=\"\"),\"-\",IF('Enrollment Form'!P785=\"\",\"N\",\"Y\")))","v":""},{"$f":"IF($B778=\"N\",\"\",IF(AND('Enrollment Form'!$C785=\"ROC\",'Enrollment Form'!$DR785<>\"\"),\"Y\",IF(AND('Enrollment Form'!$C785=\"ROC\",'Enrollment Form'!$DR785=\"\"),\"N\",IF(AND('Enrollment Form'!$C785=\"Enroll\",'Enrollment Form'!$B785=\"Subscriber\",'Enrollment Form'!$CX785=\"No\",'Enrollment Form'!$DR785=\"\"),\"N\",IF(AND('Enrollment Form'!$C785=\"Enroll\",'Enrollment Form'!$B785=\"Subscriber\",'Enrollment Form'!$CX785=\"Yes\"),\"-\",\"Y\")))))","v":""},{"$f":"IF($B778=\"N\",\"\",IF(AND('Enrollment Form'!$C785=\"ROC\",'Enrollment Form'!$DS785<>\"\"),\"Y\",IF(AND('Enrollment Form'!$C785=\"ROC\",'Enrollment Form'!$DS785=\"\"),\"N\",IF(AND('Enrollment Form'!$C785=\"Enroll\",'Enrollment Form'!$B785=\"Subscriber\",'Enrollment Form'!$CX785=\"No\",'Enrollment Form'!$DS785=\"\"),\"N\",IF(AND('Enrollment Form'!$C785=\"Enroll\",'Enrollment Form'!$B785=\"Subscriber\",'Enrollment Form'!$CX785=\"Yes\"),\"-\",\"Y\")))))","v":""},{"$f":"IF('Enrollment Form'!AH785=\"\",\"\",IF(ISERROR(SEARCH(\".\",'Enrollment Form'!AH785,SEARCH(\"@\",'Enrollment Form'!AH785))),\"N\",\"Y\"))","v":""},{"$f":"IF(OR($B778=\"N\",'Enrollment Form'!$G785=\"\"),\"\",IF('Enrollment Form'!$B785<>\"Subscriber\",\"-\",IF(COUNTIF('Enrollment Form'!$AV785:$AW785,\"Yes\")=2,\"N\",\"Y\")))","v":""},{"$f":"IF(OR('Enrollment Form'!$CJ785=\"\",'Enrollment Form'!$CJ785=\"No\"),\"-\",IF(AND('Enrollment Form'!$CJ785=\"Yes\",'Enrollment Form'!$CK785=\"\"),\"N\",\"Y\"))","v":"-"},{"$f":"IF(OR('Enrollment Form'!$CL785=\"\",'Enrollment Form'!$CL785=\"No\"),\"-\",IF(AND('Enrollment Form'!$CL785=\"Yes\",'Enrollment Form'!$CM785=\"\"),\"N\",\"Y\"))","v":"-"},{"$f":"IF(OR('Enrollment Form'!$CN785=\"\",'Enrollment Form'!$CN785=\"No\"),\"-\",IF(AND('Enrollment Form'!$CN785=\"Yes\",'Enrollment Form'!$CO785=\"\"),\"N\",\"Y\"))","v":"-"},{"$f":"IF(OR('Enrollment Form'!$CN785=\"\",'Enrollment Form'!$CN785=\"No\"),\"-\",IF(AND('Enrollment Form'!$CN785=\"Yes\",'Enrollment Form'!$CP785=\"\"),\"N\",\"Y\"))","v":"-"},{"$f":"IF('Enrollment Form'!B785<>\"Subscriber\",\"-\",IF(AND('Enrollment Form'!B785=\"Subscriber\",'Enrollment Form'!C785=\"Enroll\",'Enrollment Form'!AA785=\"\"),\"N\",\"Y\"))","v":"-"},{"$f":"IF(OR('Enrollment Form'!B785=\"Subscriber\",'Enrollment Form'!B785=\"\"),\"-\",IF('Enrollment Form'!BP785=\"\",\"N\",\"Y\"))","v":"-"},{"$f":"IF('Enrollment Form'!B785<>\"Subscriber\",\"-\",IF(AND('Enrollment Form'!B785=\"Subscriber\",'Enrollment Form'!G785=\"\"),\"N\",\"Y\"))","v":"-"},{"$f":"IF('Enrollment Form'!A785=\"\",\"\",IF('Enrollment Form'!B785=\"Subscriber\",\"-\",IF(AND('Enrollment Form'!B785<>\"Subscriber\",'Enrollment Form'!G785='Enrollment Form'!H785),\"N\",\"Y\")))","v":""},0]
[786,{"$f":"IF('Enrollment Form'!$A786<>\"\",\"Y\",\"N\")","v":"N"},{"$f":"IF(AND('Enrollment Form'!$B786=\"\",'Enrollment Form'!$C786<>\"\"),\"N\",IF($B779=\"N\",\"\",\"Y\"))","v":""},{"$f":"IF(OR($B779=\"N\",'Enrollment Form'!G786=\"\"),\"\",IF('Enrollment Form'!$B786<>\"Subscriber\",\"\",IF('Enrollment Form'!$G786='Enrollment Form'!$H786,\"Y\",\"N\")))","v":""},{"$f":"IF($B779=\"N\",\"\",IF(AND(COUNTIFS('Enrollment Form'!$H$11:$H$1000,'Enrollment Form'!$H786,'Enrollment Form'!$B$11:$B$1000,'Enrollment Form'!$B786)>1,'Enrollment Form'!$H786<>\"\"),\"N\",\"Y\"))","v":""},{"$f":"IF($B779=\"N\",\"\",IF(LEN('Enrollment Form'!$Y786)=0,\"\",IF(LEN('Enrollment Form'!$Y786)<>5,\"N\",\"Y\")))","v":""},{"$f":"IF($B779=\"N\",\"\",IF(LEN('Enrollment Form'!$AD786=0),\"\",IF(LEN('Enrollment Form'!$AD786)<>5,\"N\",\"Y\")))","v":""},{"$f":"IF($B779=\"N\",\"\",IF(LEN('Enrollment Form'!$BS786=0),\"\",IF(LEN('Enrollment Form'!$BS786)<>5,\"N\",\"Y\")))","v":""},{"$f":"IF($B779=\"N\",\"\",IF(LEN('Enrollment Form'!$AE786)=0,\"\",IF(LEN('Enrollment Form'!$AE786)<>10,\"N\",\"Y\")))","v":""},{"$f":"IF($B779=\"N\",\"\",IF(LEN('Enrollment Form'!$AF786)=0,\"\",IF(LEN('Enrollment Form'!$AF786)<>10,\"N\",\"Y\")))","v":""},{"$f":"IF('Enrollment Form'!$O786<>\"Graded\",\"-\",IF(AND('Enrollment Form'!$O786=\"Graded\",'Enrollment Form'!$AR786<>\"\"),\"Y\",\"N\"))","v":"-"},{"$f":"IF($B779=\"N\",\"\",IF(OR('Enrollment Form'!$B786<>\"Subscriber\",'Enrollment Form'!$C786=\"ROC\"),\"-\",IF(AND('Enrollment Form'!$B786=\"Subscriber\",'Enrollment Form'!$C786=\"Enroll\",'Enrollment Form'!$AJ786<>\"\"),\"Y\",\"N\")))","v":""},{"$f":"IF($B779=\"N\",\"\",IF(OR('Enrollment Form'!$B786<>\"Subscriber\",'Enrollment Form'!$C786=\"ROC\"),\"-\",IF(AND('Enrollment Form'!$B786=\"Subscriber\",'Enrollment Form'!$C786=\"Enroll\",'Enrollment Form'!$AK786<>\"\"),\"Y\",\"N\")))","v":""},{"$f":"IF($B779=\"N\",\"\",IF(OR('Enrollment Form'!$B786<>\"Subscriber\",'Enrollment Form'!$C786=\"ROC\"),\"-\",IF(AND('Enrollment Form'!$B786=\"Subscriber\",'Enrollment Form'!$C786=\"Enroll\",'Enrollment Form'!$AL786<>\"\"),\"Y\",\"N\")))","v":""},{"$f":"IF($B779=\"N\",\"\",IF(OR('Enrollment Form'!$B786<>\"Subscriber\",'Enrollment Form'!$C786=\"ROC\"),\"-\",IF(AND('Enrollment Form'!$B786=\"Subscriber\",'Enrollment Form'!$C786=\"Enroll\",'Enrollment Form'!$AP786<>\"\"),\"Y\",\"N\")))","v":""},{"$f":"IF($B779=\"N\",\"\",IF(OR('Enrollment Form'!$B786<>\"Subscriber\",'Enrollment Form'!$C786=\"ROC\"),\"-\",IF(AND('Enrollment Form'!$B786=\"Subscriber\",'Enrollment Form'!$C786=\"Enroll\",'Enrollment Form'!$AQ786<>\"\"),\"Y\",\"N\")))","v":""},{"$f":"IF($B779=\"N\",\"\",IF(OR('Enrollment Form'!$B786<>\"Subscriber\",'Enrollment Form'!$C786=\"ROC\"),\"-\",IF(AND('Enrollment Form'!$B786=\"Subscriber\",'Enrollment Form'!$C786=\"Enroll\",'Enrollment Form'!$AS786<>\"\"),\"Y\",\"N\")))","v":""},{"$f":"IF($B779=\"N\",\"\",IF($Q779=\"-\",\"-\",IF(AND($Q779=\"Y\",'Enrollment Form'!$AS786=\"No\"),\"-\",IF(AND($Q779=\"Y\",'Enrollment Form'!$AS786=\"Yes\",'Enrollment Form'!$AT786<>\"\"),\"Y\",\"N\"))))","v":""},{"$f":"IF($B779=\"N\",\"\",IF(OR('Enrollment Form'!$B786<>\"Subscriber\",'Enrollment Form'!$C786=\"ROC\"),\"-\",IF(AND('Enrollment Form'!$B786=\"Subscriber\",'Enrollment Form'!$C786=\"Enroll\",'Enrollment Form'!$CV786<>\"\"),\"Y\",\"N\")))","v":""},{"$f":"IF($B779=\"N\",\"\",IF($S779=\"-\",\"-\",IF(AND($S779=\"Y\",'Enrollment Form'!$CV786=\"No\"),\"-\",IF(AND($S779=\"Y\",'Enrollment Form'!$CV786=\"Yes\",'Enrollment Form'!$CW786<>\"\"),\"Y\",\"N\"))))","v":""},{"$f":"IF(OR('Enrollment Form'!$AY786=\"Yes\",'Enrollment Form'!$AY786=\"\"),\"-\",IF(OR(AND('Enrollment Form'!$AY786=\"No\",ISERROR(FIND(\"HMO\",VLOOKUP('Enrollment Form'!G786,'Enrollment Form'!H$11:J$1000,3,FALSE),1))=FALSE,COUNTA('Enrollment Form'!$AZ786:$BC786)=4),AND('Enrollment Form'!$AY786=\"No\",ISERROR(FIND(\"HMO\",VLOOKUP('Enrollment Form'!G786,'Enrollment Form'!H$11:J$1000,3,FALSE),1))=FALSE,COUNTA('Enrollment Form'!$BT786:$BW786)=4)),\"Y\",\"N\"))","v":"-"},{"$f":"IF($B779=\"N\",\"\",IF('Enrollment Form'!$B786=\"Subscriber\",\"-\",IF(COUNTA('Enrollment Form'!$BL786,'Enrollment Form'!$BN786)=2,\"Y\",\"N\")))","v":""},{"$f":"IF($B779=\"N\",\"\",IF(OR('Enrollment Form'!$AX786=\"\",'Enrollment Form'!$AX786=\"No\"),\"-\",IF(AND('Enrollment Form'!$AX786=\"Yes\",COUNTA('Enrollment Form'!$CR786)=1),\"Y\",\"N\")))","v":""},{"$f":"IF(OR('Enrollment Form'!$CR786=\"\",'Enrollment Form'!$CR786=\"No\"),\"-\",IF(COUNTA('Enrollment Form'!$CT786:$CU786)=2,\"Y\",\"N\"))","v":"-"},{"$f":"IF($B779=\"N\",\"\",IF(COUNTIF('Enrollment Form'!$DG786:$DP786,\"Other\")=COUNTA('Enrollment Form'!$DK786,'Enrollment Form'!$DH786,'Enrollment Form'!$DN786,'Enrollment Form'!$DQ786),\"Y\",\"N\"))","v":""},{"$f":"IF($B779=\"N\",\"\",IF(OR('Enrollment Form'!B786<>\"Subscriber\",'Enrollment Form'!C786=\"ROC\",COUNTIF('Enrollment Form'!AV786:AW786,\"Yes\")>=1),\"-\",IF(AND('Enrollment Form'!C786=\"Enroll\",COUNTIF('Enrollment Form'!AV786:AW786,\"No\")=2,'Enrollment Form'!AX786=\"\"),\"N\",\"Y\")))","v":""},{"$f":"IF(OR(B779=\"N\",'Enrollment Form'!B786<>\"Subscriber\",'Enrollment Form'!C786=\"ROC\",'Enrollment Form'!O786<>\"Multiple of Salary\"),\"-\",IF(COUNTA('Enrollment Form'!T786:U786)<2,\"N\",\"Y\"))","v":"-"},{"$f":"IF(B779=\"N\",\"\",IF(OR('Enrollment Form'!C786=\"ROC\",'Enrollment Form'!B786<>\"Subscriber\",'Enrollment Form'!O786=\"Waive\",'Enrollment Form'!O786=\"\"),\"-\",IF('Enrollment Form'!P786=\"\",\"N\",\"Y\")))","v":""},{"$f":"IF($B779=\"N\",\"\",IF(AND('Enrollment Form'!$C786=\"ROC\",'Enrollment Form'!$DR786<>\"\"),\"Y\",IF(AND('Enrollment Form'!$C786=\"ROC\",'Enrollment Form'!$DR786=\"\"),\"N\",IF(AND('Enrollment Form'!$C786=\"Enroll\",'Enrollment Form'!$B786=\"Subscriber\",'Enrollment Form'!$CX786=\"No\",'Enrollment Form'!$DR786=\"\"),\"N\",IF(AND('Enrollment Form'!$C786=\"Enroll\",'Enrollment Form'!$B786=\"Subscriber\",'Enrollment Form'!$CX786=\"Yes\"),\"-\",\"Y\")))))","v":""},{"$f":"IF($B779=\"N\",\"\",IF(AND('Enrollment Form'!$C786=\"ROC\",'Enrollment Form'!$DS786<>\"\"),\"Y\",IF(AND('Enrollment Form'!$C786=\"ROC\",'Enrollment Form'!$DS786=\"\"),\"N\",IF(AND('Enrollment Form'!$C786=\"Enroll\",'Enrollment Form'!$B786=\"Subscriber\",'Enrollment Form'!$CX786=\"No\",'Enrollment Form'!$DS786=\"\"),\"N\",IF(AND('Enrollment Form'!$C786=\"Enroll\",'Enrollment Form'!$B786=\"Subscriber\",'Enrollment Form'!$CX786=\"Yes\"),\"-\",\"Y\")))))","v":""},{"$f":"IF('Enrollment Form'!AH786=\"\",\"\",IF(ISERROR(SEARCH(\".\",'Enrollment Form'!AH786,SEARCH(\"@\",'Enrollment Form'!AH786))),\"N\",\"Y\"))","v":""},{"$f":"IF(OR($B779=\"N\",'Enrollment Form'!$G786=\"\"),\"\",IF('Enrollment Form'!$B786<>\"Subscriber\",\"-\",IF(COUNTIF('Enrollment Form'!$AV786:$AW786,\"Yes\")=2,\"N\",\"Y\")))","v":""},{"$f":"IF(OR('Enrollment Form'!$CJ786=\"\",'Enrollment Form'!$CJ786=\"No\"),\"-\",IF(AND('Enrollment Form'!$CJ786=\"Yes\",'Enrollment Form'!$CK786=\"\"),\"N\",\"Y\"))","v":"-"},{"$f":"IF(OR('Enrollment Form'!$CL786=\"\",'Enrollment Form'!$CL786=\"No\"),\"-\",IF(AND('Enrollment Form'!$CL786=\"Yes\",'Enrollment Form'!$CM786=\"\"),\"N\",\"Y\"))","v":"-"},{"$f":"IF(OR('Enrollment Form'!$CN786=\"\",'Enrollment Form'!$CN786=\"No\"),\"-\",IF(AND('Enrollment Form'!$CN786=\"Yes\",'Enrollment Form'!$CO786=\"\"),\"N\",\"Y\"))","v":"-"},{"$f":"IF(OR('Enrollment Form'!$CN786=\"\",'Enrollment Form'!$CN786=\"No\"),\"-\",IF(AND('Enrollment Form'!$CN786=\"Yes\",'Enrollment Form'!$CP786=\"\"),\"N\",\"Y\"))","v":"-"},{"$f":"IF('Enrollment Form'!B786<>\"Subscriber\",\"-\",IF(AND('Enrollment Form'!B786=\"Subscriber\",'Enrollment Form'!C786=\"Enroll\",'Enrollment Form'!AA786=\"\"),\"N\",\"Y\"))","v":"-"},{"$f":"IF(OR('Enrollment Form'!B786=\"Subscriber\",'Enrollment Form'!B786=\"\"),\"-\",IF('Enrollment Form'!BP786=\"\",\"N\",\"Y\"))","v":"-"},{"$f":"IF('Enrollment Form'!B786<>\"Subscriber\",\"-\",IF(AND('Enrollment Form'!B786=\"Subscriber\",'Enrollment Form'!G786=\"\"),\"N\",\"Y\"))","v":"-"},{"$f":"IF('Enrollment Form'!A786=\"\",\"\",IF('Enrollment Form'!B786=\"Subscriber\",\"-\",IF(AND('Enrollment Form'!B786<>\"Subscriber\",'Enrollment Form'!G786='Enrollment Form'!H786),\"N\",\"Y\")))","v":""},0]
[787,{"$f":"IF('Enrollment Form'!$A787<>\"\",\"Y\",\"N\")","v":"N"},{"$f":"IF(AND('Enrollment Form'!$B787=\"\",'Enrollment Form'!$C787<>\"\"),\"N\",IF($B780=\"N\",\"\",\"Y\"))","v":""},{"$f":"IF(OR($B780=\"N\",'Enrollment Form'!G787=\"\"),\"\",IF('Enrollment Form'!$B787<>\"Subscriber\",\"\",IF('Enrollment Form'!$G787='Enrollment Form'!$H787,\"Y\",\"N\")))","v":""},{"$f":"IF($B780=\"N\",\"\",IF(AND(COUNTIFS('Enrollment Form'!$H$11:$H$1000,'Enrollment Form'!$H787,'Enrollment Form'!$B$11:$B$1000,'Enrollment Form'!$B787)>1,'Enrollment Form'!$H787<>\"\"),\"N\",\"Y\"))","v":""},{"$f":"IF($B780=\"N\",\"\",IF(LEN('Enrollment Form'!$Y787)=0,\"\",IF(LEN('Enrollment Form'!$Y787)<>5,\"N\",\"Y\")))","v":""},{"$f":"IF($B780=\"N\",\"\",IF(LEN('Enrollment Form'!$AD787=0),\"\",IF(LEN('Enrollment Form'!$AD787)<>5,\"N\",\"Y\")))","v":""},{"$f":"IF($B780=\"N\",\"\",IF(LEN('Enrollment Form'!$BS787=0),\"\",IF(LEN('Enrollment Form'!$BS787)<>5,\"N\",\"Y\")))","v":""},{"$f":"IF($B780=\"N\",\"\",IF(LEN('Enrollment Form'!$AE787)=0,\"\",IF(LEN('Enrollment Form'!$AE787)<>10,\"N\",\"Y\")))","v":""},{"$f":"IF($B780=\"N\",\"\",IF(LEN('Enrollment Form'!$AF787)=0,\"\",IF(LEN('Enrollment Form'!$AF787)<>10,\"N\",\"Y\")))","v":""},{"$f":"IF('Enrollment Form'!$O787<>\"Graded\",\"-\",IF(AND('Enrollment Form'!$O787=\"Graded\",'Enrollment Form'!$AR787<>\"\"),\"Y\",\"N\"))","v":"-"},{"$f":"IF($B780=\"N\",\"\",IF(OR('Enrollment Form'!$B787<>\"Subscriber\",'Enrollment Form'!$C787=\"ROC\"),\"-\",IF(AND('Enrollment Form'!$B787=\"Subscriber\",'Enrollment Form'!$C787=\"Enroll\",'Enrollment Form'!$AJ787<>\"\"),\"Y\",\"N\")))","v":""},{"$f":"IF($B780=\"N\",\"\",IF(OR('Enrollment Form'!$B787<>\"Subscriber\",'Enrollment Form'!$C787=\"ROC\"),\"-\",IF(AND('Enrollment Form'!$B787=\"Subscriber\",'Enrollment Form'!$C787=\"Enroll\",'Enrollment Form'!$AK787<>\"\"),\"Y\",\"N\")))","v":""},{"$f":"IF($B780=\"N\",\"\",IF(OR('Enrollment Form'!$B787<>\"Subscriber\",'Enrollment Form'!$C787=\"ROC\"),\"-\",IF(AND('Enrollment Form'!$B787=\"Subscriber\",'Enrollment Form'!$C787=\"Enroll\",'Enrollment Form'!$AL787<>\"\"),\"Y\",\"N\")))","v":""},{"$f":"IF($B780=\"N\",\"\",IF(OR('Enrollment Form'!$B787<>\"Subscriber\",'Enrollment Form'!$C787=\"ROC\"),\"-\",IF(AND('Enrollment Form'!$B787=\"Subscriber\",'Enrollment Form'!$C787=\"Enroll\",'Enrollment Form'!$AP787<>\"\"),\"Y\",\"N\")))","v":""},{"$f":"IF($B780=\"N\",\"\",IF(OR('Enrollment Form'!$B787<>\"Subscriber\",'Enrollment Form'!$C787=\"ROC\"),\"-\",IF(AND('Enrollment Form'!$B787=\"Subscriber\",'Enrollment Form'!$C787=\"Enroll\",'Enrollment Form'!$AQ787<>\"\"),\"Y\",\"N\")))","v":""},{"$f":"IF($B780=\"N\",\"\",IF(OR('Enrollment Form'!$B787<>\"Subscriber\",'Enrollment Form'!$C787=\"ROC\"),\"-\",IF(AND('Enrollment Form'!$B787=\"Subscriber\",'Enrollment Form'!$C787=\"Enroll\",'Enrollment Form'!$AS787<>\"\"),\"Y\",\"N\")))","v":""},{"$f":"IF($B780=\"N\",\"\",IF($Q780=\"-\",\"-\",IF(AND($Q780=\"Y\",'Enrollment Form'!$AS787=\"No\"),\"-\",IF(AND($Q780=\"Y\",'Enrollment Form'!$AS787=\"Yes\",'Enrollment Form'!$AT787<>\"\"),\"Y\",\"N\"))))","v":""},{"$f":"IF($B780=\"N\",\"\",IF(OR('Enrollment Form'!$B787<>\"Subscriber\",'Enrollment Form'!$C787=\"ROC\"),\"-\",IF(AND('Enrollment Form'!$B787=\"Subscriber\",'Enrollment Form'!$C787=\"Enroll\",'Enrollment Form'!$CV787<>\"\"),\"Y\",\"N\")))","v":""},{"$f":"IF($B780=\"N\",\"\",IF($S780=\"-\",\"-\",IF(AND($S780=\"Y\",'Enrollment Form'!$CV787=\"No\"),\"-\",IF(AND($S780=\"Y\",'Enrollment Form'!$CV787=\"Yes\",'Enrollment Form'!$CW787<>\"\"),\"Y\",\"N\"))))","v":""},{"$f":"IF(OR('Enrollment Form'!$AY787=\"Yes\",'Enrollment Form'!$AY787=\"\"),\"-\",IF(OR(AND('Enrollment Form'!$AY787=\"No\",ISERROR(FIND(\"HMO\",VLOOKUP('Enrollment Form'!G787,'Enrollment Form'!H$11:J$1000,3,FALSE),1))=FALSE,COUNTA('Enrollment Form'!$AZ787:$BC787)=4),AND('Enrollment Form'!$AY787=\"No\",ISERROR(FIND(\"HMO\",VLOOKUP('Enrollment Form'!G787,'Enrollment Form'!H$11:J$1000,3,FALSE),1))=FALSE,COUNTA('Enrollment Form'!$BT787:$BW787)=4)),\"Y\",\"N\"))","v":"-"},{"$f":"IF($B780=\"N\",\"\",IF('Enrollment Form'!$B787=\"Subscriber\",\"-\",IF(COUNTA('Enrollment Form'!$BL787,'Enrollment Form'!$BN787)=2,\"Y\",\"N\")))","v":""},{"$f":"IF($B780=\"N\",\"\",IF(OR('Enrollment Form'!$AX787=\"\",'Enrollment Form'!$AX787=\"No\"),\"-\",IF(AND('Enrollment Form'!$AX787=\"Yes\",COUNTA('Enrollment Form'!$CR787)=1),\"Y\",\"N\")))","v":""},{"$f":"IF(OR('Enrollment Form'!$CR787=\"\",'Enrollment Form'!$CR787=\"No\"),\"-\",IF(COUNTA('Enrollment Form'!$CT787:$CU787)=2,\"Y\",\"N\"))","v":"-"},{"$f":"IF($B780=\"N\",\"\",IF(COUNTIF('Enrollment Form'!$DG787:$DP787,\"Other\")=COUNTA('Enrollment Form'!$DK787,'Enrollment Form'!$DH787,'Enrollment Form'!$DN787,'Enrollment Form'!$DQ787),\"Y\",\"N\"))","v":""},{"$f":"IF($B780=\"N\",\"\",IF(OR('Enrollment Form'!B787<>\"Subscriber\",'Enrollment Form'!C787=\"ROC\",COUNTIF('Enrollment Form'!AV787:AW787,\"Yes\")>=1),\"-\",IF(AND('Enrollment Form'!C787=\"Enroll\",COUNTIF('Enrollment Form'!AV787:AW787,\"No\")=2,'Enrollment Form'!AX787=\"\"),\"N\",\"Y\")))","v":""},{"$f":"IF(OR(B780=\"N\",'Enrollment Form'!B787<>\"Subscriber\",'Enrollment Form'!C787=\"ROC\",'Enrollment Form'!O787<>\"Multiple of Salary\"),\"-\",IF(COUNTA('Enrollment Form'!T787:U787)<2,\"N\",\"Y\"))","v":"-"},{"$f":"IF(B780=\"N\",\"\",IF(OR('Enrollment Form'!C787=\"ROC\",'Enrollment Form'!B787<>\"Subscriber\",'Enrollment Form'!O787=\"Waive\",'Enrollment Form'!O787=\"\"),\"-\",IF('Enrollment Form'!P787=\"\",\"N\",\"Y\")))","v":""},{"$f":"IF($B780=\"N\",\"\",IF(AND('Enrollment Form'!$C787=\"ROC\",'Enrollment Form'!$DR787<>\"\"),\"Y\",IF(AND('Enrollment Form'!$C787=\"ROC\",'Enrollment Form'!$DR787=\"\"),\"N\",IF(AND('Enrollment Form'!$C787=\"Enroll\",'Enrollment Form'!$B787=\"Subscriber\",'Enrollment Form'!$CX787=\"No\",'Enrollment Form'!$DR787=\"\"),\"N\",IF(AND('Enrollment Form'!$C787=\"Enroll\",'Enrollment Form'!$B787=\"Subscriber\",'Enrollment Form'!$CX787=\"Yes\"),\"-\",\"Y\")))))","v":""},{"$f":"IF($B780=\"N\",\"\",IF(AND('Enrollment Form'!$C787=\"ROC\",'Enrollment Form'!$DS787<>\"\"),\"Y\",IF(AND('Enrollment Form'!$C787=\"ROC\",'Enrollment Form'!$DS787=\"\"),\"N\",IF(AND('Enrollment Form'!$C787=\"Enroll\",'Enrollment Form'!$B787=\"Subscriber\",'Enrollment Form'!$CX787=\"No\",'Enrollment Form'!$DS787=\"\"),\"N\",IF(AND('Enrollment Form'!$C787=\"Enroll\",'Enrollment Form'!$B787=\"Subscriber\",'Enrollment Form'!$CX787=\"Yes\"),\"-\",\"Y\")))))","v":""},{"$f":"IF('Enrollment Form'!AH787=\"\",\"\",IF(ISERROR(SEARCH(\".\",'Enrollment Form'!AH787,SEARCH(\"@\",'Enrollment Form'!AH787))),\"N\",\"Y\"))","v":""},{"$f":"IF(OR($B780=\"N\",'Enrollment Form'!$G787=\"\"),\"\",IF('Enrollment Form'!$B787<>\"Subscriber\",\"-\",IF(COUNTIF('Enrollment Form'!$AV787:$AW787,\"Yes\")=2,\"N\",\"Y\")))","v":""},{"$f":"IF(OR('Enrollment Form'!$CJ787=\"\",'Enrollment Form'!$CJ787=\"No\"),\"-\",IF(AND('Enrollment Form'!$CJ787=\"Yes\",'Enrollment Form'!$CK787=\"\"),\"N\",\"Y\"))","v":"-"},{"$f":"IF(OR('Enrollment Form'!$CL787=\"\",'Enrollment Form'!$CL787=\"No\"),\"-\",IF(AND('Enrollment Form'!$CL787=\"Yes\",'Enrollment Form'!$CM787=\"\"),\"N\",\"Y\"))","v":"-"},{"$f":"IF(OR('Enrollment Form'!$CN787=\"\",'Enrollment Form'!$CN787=\"No\"),\"-\",IF(AND('Enrollment Form'!$CN787=\"Yes\",'Enrollment Form'!$CO787=\"\"),\"N\",\"Y\"))","v":"-"},{"$f":"IF(OR('Enrollment Form'!$CN787=\"\",'Enrollment Form'!$CN787=\"No\"),\"-\",IF(AND('Enrollment Form'!$CN787=\"Yes\",'Enrollment Form'!$CP787=\"\"),\"N\",\"Y\"))","v":"-"},{"$f":"IF('Enrollment Form'!B787<>\"Subscriber\",\"-\",IF(AND('Enrollment Form'!B787=\"Subscriber\",'Enrollment Form'!C787=\"Enroll\",'Enrollment Form'!AA787=\"\"),\"N\",\"Y\"))","v":"-"},{"$f":"IF(OR('Enrollment Form'!B787=\"Subscriber\",'Enrollment Form'!B787=\"\"),\"-\",IF('Enrollment Form'!BP787=\"\",\"N\",\"Y\"))","v":"-"},{"$f":"IF('Enrollment Form'!B787<>\"Subscriber\",\"-\",IF(AND('Enrollment Form'!B787=\"Subscriber\",'Enrollment Form'!G787=\"\"),\"N\",\"Y\"))","v":"-"},{"$f":"IF('Enrollment Form'!A787=\"\",\"\",IF('Enrollment Form'!B787=\"Subscriber\",\"-\",IF(AND('Enrollment Form'!B787<>\"Subscriber\",'Enrollment Form'!G787='Enrollment Form'!H787),\"N\",\"Y\")))","v":""},0]
[788,{"$f":"IF('Enrollment Form'!$A788<>\"\",\"Y\",\"N\")","v":"N"},{"$f":"IF(AND('Enrollment Form'!$B788=\"\",'Enrollment Form'!$C788<>\"\"),\"N\",IF($B781=\"N\",\"\",\"Y\"))","v":""},{"$f":"IF(OR($B781=\"N\",'Enrollment Form'!G788=\"\"),\"\",IF('Enrollment Form'!$B788<>\"Subscriber\",\"\",IF('Enrollment Form'!$G788='Enrollment Form'!$H788,\"Y\",\"N\")))","v":""},{"$f":"IF($B781=\"N\",\"\",IF(AND(COUNTIFS('Enrollment Form'!$H$11:$H$1000,'Enrollment Form'!$H788,'Enrollment Form'!$B$11:$B$1000,'Enrollment Form'!$B788)>1,'Enrollment Form'!$H788<>\"\"),\"N\",\"Y\"))","v":""},{"$f":"IF($B781=\"N\",\"\",IF(LEN('Enrollment Form'!$Y788)=0,\"\",IF(LEN('Enrollment Form'!$Y788)<>5,\"N\",\"Y\")))","v":""},{"$f":"IF($B781=\"N\",\"\",IF(LEN('Enrollment Form'!$AD788=0),\"\",IF(LEN('Enrollment Form'!$AD788)<>5,\"N\",\"Y\")))","v":""},{"$f":"IF($B781=\"N\",\"\",IF(LEN('Enrollment Form'!$BS788=0),\"\",IF(LEN('Enrollment Form'!$BS788)<>5,\"N\",\"Y\")))","v":""},{"$f":"IF($B781=\"N\",\"\",IF(LEN('Enrollment Form'!$AE788)=0,\"\",IF(LEN('Enrollment Form'!$AE788)<>10,\"N\",\"Y\")))","v":""},{"$f":"IF($B781=\"N\",\"\",IF(LEN('Enrollment Form'!$AF788)=0,\"\",IF(LEN('Enrollment Form'!$AF788)<>10,\"N\",\"Y\")))","v":""},{"$f":"IF('Enrollment Form'!$O788<>\"Graded\",\"-\",IF(AND('Enrollment Form'!$O788=\"Graded\",'Enrollment Form'!$AR788<>\"\"),\"Y\",\"N\"))","v":"-"},{"$f":"IF($B781=\"N\",\"\",IF(OR('Enrollment Form'!$B788<>\"Subscriber\",'Enrollment Form'!$C788=\"ROC\"),\"-\",IF(AND('Enrollment Form'!$B788=\"Subscriber\",'Enrollment Form'!$C788=\"Enroll\",'Enrollment Form'!$AJ788<>\"\"),\"Y\",\"N\")))","v":""},{"$f":"IF($B781=\"N\",\"\",IF(OR('Enrollment Form'!$B788<>\"Subscriber\",'Enrollment Form'!$C788=\"ROC\"),\"-\",IF(AND('Enrollment Form'!$B788=\"Subscriber\",'Enrollment Form'!$C788=\"Enroll\",'Enrollment Form'!$AK788<>\"\"),\"Y\",\"N\")))","v":""},{"$f":"IF($B781=\"N\",\"\",IF(OR('Enrollment Form'!$B788<>\"Subscriber\",'Enrollment Form'!$C788=\"ROC\"),\"-\",IF(AND('Enrollment Form'!$B788=\"Subscriber\",'Enrollment Form'!$C788=\"Enroll\",'Enrollment Form'!$AL788<>\"\"),\"Y\",\"N\")))","v":""},{"$f":"IF($B781=\"N\",\"\",IF(OR('Enrollment Form'!$B788<>\"Subscriber\",'Enrollment Form'!$C788=\"ROC\"),\"-\",IF(AND('Enrollment Form'!$B788=\"Subscriber\",'Enrollment Form'!$C788=\"Enroll\",'Enrollment Form'!$AP788<>\"\"),\"Y\",\"N\")))","v":""},{"$f":"IF($B781=\"N\",\"\",IF(OR('Enrollment Form'!$B788<>\"Subscriber\",'Enrollment Form'!$C788=\"ROC\"),\"-\",IF(AND('Enrollment Form'!$B788=\"Subscriber\",'Enrollment Form'!$C788=\"Enroll\",'Enrollment Form'!$AQ788<>\"\"),\"Y\",\"N\")))","v":""},{"$f":"IF($B781=\"N\",\"\",IF(OR('Enrollment Form'!$B788<>\"Subscriber\",'Enrollment Form'!$C788=\"ROC\"),\"-\",IF(AND('Enrollment Form'!$B788=\"Subscriber\",'Enrollment Form'!$C788=\"Enroll\",'Enrollment Form'!$AS788<>\"\"),\"Y\",\"N\")))","v":""},{"$f":"IF($B781=\"N\",\"\",IF($Q781=\"-\",\"-\",IF(AND($Q781=\"Y\",'Enrollment Form'!$AS788=\"No\"),\"-\",IF(AND($Q781=\"Y\",'Enrollment Form'!$AS788=\"Yes\",'Enrollment Form'!$AT788<>\"\"),\"Y\",\"N\"))))","v":""},{"$f":"IF($B781=\"N\",\"\",IF(OR('Enrollment Form'!$B788<>\"Subscriber\",'Enrollment Form'!$C788=\"ROC\"),\"-\",IF(AND('Enrollment Form'!$B788=\"Subscriber\",'Enrollment Form'!$C788=\"Enroll\",'Enrollment Form'!$CV788<>\"\"),\"Y\",\"N\")))","v":""},{"$f":"IF($B781=\"N\",\"\",IF($S781=\"-\",\"-\",IF(AND($S781=\"Y\",'Enrollment Form'!$CV788=\"No\"),\"-\",IF(AND($S781=\"Y\",'Enrollment Form'!$CV788=\"Yes\",'Enrollment Form'!$CW788<>\"\"),\"Y\",\"N\"))))","v":""},{"$f":"IF(OR('Enrollment Form'!$AY788=\"Yes\",'Enrollment Form'!$AY788=\"\"),\"-\",IF(OR(AND('Enrollment Form'!$AY788=\"No\",ISERROR(FIND(\"HMO\",VLOOKUP('Enrollment Form'!G788,'Enrollment Form'!H$11:J$1000,3,FALSE),1))=FALSE,COUNTA('Enrollment Form'!$AZ788:$BC788)=4),AND('Enrollment Form'!$AY788=\"No\",ISERROR(FIND(\"HMO\",VLOOKUP('Enrollment Form'!G788,'Enrollment Form'!H$11:J$1000,3,FALSE),1))=FALSE,COUNTA('Enrollment Form'!$BT788:$BW788)=4)),\"Y\",\"N\"))","v":"-"},{"$f":"IF($B781=\"N\",\"\",IF('Enrollment Form'!$B788=\"Subscriber\",\"-\",IF(COUNTA('Enrollment Form'!$BL788,'Enrollment Form'!$BN788)=2,\"Y\",\"N\")))","v":""},{"$f":"IF($B781=\"N\",\"\",IF(OR('Enrollment Form'!$AX788=\"\",'Enrollment Form'!$AX788=\"No\"),\"-\",IF(AND('Enrollment Form'!$AX788=\"Yes\",COUNTA('Enrollment Form'!$CR788)=1),\"Y\",\"N\")))","v":""},{"$f":"IF(OR('Enrollment Form'!$CR788=\"\",'Enrollment Form'!$CR788=\"No\"),\"-\",IF(COUNTA('Enrollment Form'!$CT788:$CU788)=2,\"Y\",\"N\"))","v":"-"},{"$f":"IF($B781=\"N\",\"\",IF(COUNTIF('Enrollment Form'!$DG788:$DP788,\"Other\")=COUNTA('Enrollment Form'!$DK788,'Enrollment Form'!$DH788,'Enrollment Form'!$DN788,'Enrollment Form'!$DQ788),\"Y\",\"N\"))","v":""},{"$f":"IF($B781=\"N\",\"\",IF(OR('Enrollment Form'!B788<>\"Subscriber\",'Enrollment Form'!C788=\"ROC\",COUNTIF('Enrollment Form'!AV788:AW788,\"Yes\")>=1),\"-\",IF(AND('Enrollment Form'!C788=\"Enroll\",COUNTIF('Enrollment Form'!AV788:AW788,\"No\")=2,'Enrollment Form'!AX788=\"\"),\"N\",\"Y\")))","v":""},{"$f":"IF(OR(B781=\"N\",'Enrollment Form'!B788<>\"Subscriber\",'Enrollment Form'!C788=\"ROC\",'Enrollment Form'!O788<>\"Multiple of Salary\"),\"-\",IF(COUNTA('Enrollment Form'!T788:U788)<2,\"N\",\"Y\"))","v":"-"},{"$f":"IF(B781=\"N\",\"\",IF(OR('Enrollment Form'!C788=\"ROC\",'Enrollment Form'!B788<>\"Subscriber\",'Enrollment Form'!O788=\"Waive\",'Enrollment Form'!O788=\"\"),\"-\",IF('Enrollment Form'!P788=\"\",\"N\",\"Y\")))","v":""},{"$f":"IF($B781=\"N\",\"\",IF(AND('Enrollment Form'!$C788=\"ROC\",'Enrollment Form'!$DR788<>\"\"),\"Y\",IF(AND('Enrollment Form'!$C788=\"ROC\",'Enrollment Form'!$DR788=\"\"),\"N\",IF(AND('Enrollment Form'!$C788=\"Enroll\",'Enrollment Form'!$B788=\"Subscriber\",'Enrollment Form'!$CX788=\"No\",'Enrollment Form'!$DR788=\"\"),\"N\",IF(AND('Enrollment Form'!$C788=\"Enroll\",'Enrollment Form'!$B788=\"Subscriber\",'Enrollment Form'!$CX788=\"Yes\"),\"-\",\"Y\")))))","v":""},{"$f":"IF($B781=\"N\",\"\",IF(AND('Enrollment Form'!$C788=\"ROC\",'Enrollment Form'!$DS788<>\"\"),\"Y\",IF(AND('Enrollment Form'!$C788=\"ROC\",'Enrollment Form'!$DS788=\"\"),\"N\",IF(AND('Enrollment Form'!$C788=\"Enroll\",'Enrollment Form'!$B788=\"Subscriber\",'Enrollment Form'!$CX788=\"No\",'Enrollment Form'!$DS788=\"\"),\"N\",IF(AND('Enrollment Form'!$C788=\"Enroll\",'Enrollment Form'!$B788=\"Subscriber\",'Enrollment Form'!$CX788=\"Yes\"),\"-\",\"Y\")))))","v":""},{"$f":"IF('Enrollment Form'!AH788=\"\",\"\",IF(ISERROR(SEARCH(\".\",'Enrollment Form'!AH788,SEARCH(\"@\",'Enrollment Form'!AH788))),\"N\",\"Y\"))","v":""},{"$f":"IF(OR($B781=\"N\",'Enrollment Form'!$G788=\"\"),\"\",IF('Enrollment Form'!$B788<>\"Subscriber\",\"-\",IF(COUNTIF('Enrollment Form'!$AV788:$AW788,\"Yes\")=2,\"N\",\"Y\")))","v":""},{"$f":"IF(OR('Enrollment Form'!$CJ788=\"\",'Enrollment Form'!$CJ788=\"No\"),\"-\",IF(AND('Enrollment Form'!$CJ788=\"Yes\",'Enrollment Form'!$CK788=\"\"),\"N\",\"Y\"))","v":"-"},{"$f":"IF(OR('Enrollment Form'!$CL788=\"\",'Enrollment Form'!$CL788=\"No\"),\"-\",IF(AND('Enrollment Form'!$CL788=\"Yes\",'Enrollment Form'!$CM788=\"\"),\"N\",\"Y\"))","v":"-"},{"$f":"IF(OR('Enrollment Form'!$CN788=\"\",'Enrollment Form'!$CN788=\"No\"),\"-\",IF(AND('Enrollment Form'!$CN788=\"Yes\",'Enrollment Form'!$CO788=\"\"),\"N\",\"Y\"))","v":"-"},{"$f":"IF(OR('Enrollment Form'!$CN788=\"\",'Enrollment Form'!$CN788=\"No\"),\"-\",IF(AND('Enrollment Form'!$CN788=\"Yes\",'Enrollment Form'!$CP788=\"\"),\"N\",\"Y\"))","v":"-"},{"$f":"IF('Enrollment Form'!B788<>\"Subscriber\",\"-\",IF(AND('Enrollment Form'!B788=\"Subscriber\",'Enrollment Form'!C788=\"Enroll\",'Enrollment Form'!AA788=\"\"),\"N\",\"Y\"))","v":"-"},{"$f":"IF(OR('Enrollment Form'!B788=\"Subscriber\",'Enrollment Form'!B788=\"\"),\"-\",IF('Enrollment Form'!BP788=\"\",\"N\",\"Y\"))","v":"-"},{"$f":"IF('Enrollment Form'!B788<>\"Subscriber\",\"-\",IF(AND('Enrollment Form'!B788=\"Subscriber\",'Enrollment Form'!G788=\"\"),\"N\",\"Y\"))","v":"-"},{"$f":"IF('Enrollment Form'!A788=\"\",\"\",IF('Enrollment Form'!B788=\"Subscriber\",\"-\",IF(AND('Enrollment Form'!B788<>\"Subscriber\",'Enrollment Form'!G788='Enrollment Form'!H788),\"N\",\"Y\")))","v":""},0]
[789,{"$f":"IF('Enrollment Form'!$A789<>\"\",\"Y\",\"N\")","v":"N"},{"$f":"IF(AND('Enrollment Form'!$B789=\"\",'Enrollment Form'!$C789<>\"\"),\"N\",IF($B782=\"N\",\"\",\"Y\"))","v":""},{"$f":"IF(OR($B782=\"N\",'Enrollment Form'!G789=\"\"),\"\",IF('Enrollment Form'!$B789<>\"Subscriber\",\"\",IF('Enrollment Form'!$G789='Enrollment Form'!$H789,\"Y\",\"N\")))","v":""},{"$f":"IF($B782=\"N\",\"\",IF(AND(COUNTIFS('Enrollment Form'!$H$11:$H$1000,'Enrollment Form'!$H789,'Enrollment Form'!$B$11:$B$1000,'Enrollment Form'!$B789)>1,'Enrollment Form'!$H789<>\"\"),\"N\",\"Y\"))","v":""},{"$f":"IF($B782=\"N\",\"\",IF(LEN('Enrollment Form'!$Y789)=0,\"\",IF(LEN('Enrollment Form'!$Y789)<>5,\"N\",\"Y\")))","v":""},{"$f":"IF($B782=\"N\",\"\",IF(LEN('Enrollment Form'!$AD789=0),\"\",IF(LEN('Enrollment Form'!$AD789)<>5,\"N\",\"Y\")))","v":""},{"$f":"IF($B782=\"N\",\"\",IF(LEN('Enrollment Form'!$BS789=0),\"\",IF(LEN('Enrollment Form'!$BS789)<>5,\"N\",\"Y\")))","v":""},{"$f":"IF($B782=\"N\",\"\",IF(LEN('Enrollment Form'!$AE789)=0,\"\",IF(LEN('Enrollment Form'!$AE789)<>10,\"N\",\"Y\")))","v":""},{"$f":"IF($B782=\"N\",\"\",IF(LEN('Enrollment Form'!$AF789)=0,\"\",IF(LEN('Enrollment Form'!$AF789)<>10,\"N\",\"Y\")))","v":""},{"$f":"IF('Enrollment Form'!$O789<>\"Graded\",\"-\",IF(AND('Enrollment Form'!$O789=\"Graded\",'Enrollment Form'!$AR789<>\"\"),\"Y\",\"N\"))","v":"-"},{"$f":"IF($B782=\"N\",\"\",IF(OR('Enrollment Form'!$B789<>\"Subscriber\",'Enrollment Form'!$C789=\"ROC\"),\"-\",IF(AND('Enrollment Form'!$B789=\"Subscriber\",'Enrollment Form'!$C789=\"Enroll\",'Enrollment Form'!$AJ789<>\"\"),\"Y\",\"N\")))","v":""},{"$f":"IF($B782=\"N\",\"\",IF(OR('Enrollment Form'!$B789<>\"Subscriber\",'Enrollment Form'!$C789=\"ROC\"),\"-\",IF(AND('Enrollment Form'!$B789=\"Subscriber\",'Enrollment Form'!$C789=\"Enroll\",'Enrollment Form'!$AK789<>\"\"),\"Y\",\"N\")))","v":""},{"$f":"IF($B782=\"N\",\"\",IF(OR('Enrollment Form'!$B789<>\"Subscriber\",'Enrollment Form'!$C789=\"ROC\"),\"-\",IF(AND('Enrollment Form'!$B789=\"Subscriber\",'Enrollment Form'!$C789=\"Enroll\",'Enrollment Form'!$AL789<>\"\"),\"Y\",\"N\")))","v":""},{"$f":"IF($B782=\"N\",\"\",IF(OR('Enrollment Form'!$B789<>\"Subscriber\",'Enrollment Form'!$C789=\"ROC\"),\"-\",IF(AND('Enrollment Form'!$B789=\"Subscriber\",'Enrollment Form'!$C789=\"Enroll\",'Enrollment Form'!$AP789<>\"\"),\"Y\",\"N\")))","v":""},{"$f":"IF($B782=\"N\",\"\",IF(OR('Enrollment Form'!$B789<>\"Subscriber\",'Enrollment Form'!$C789=\"ROC\"),\"-\",IF(AND('Enrollment Form'!$B789=\"Subscriber\",'Enrollment Form'!$C789=\"Enroll\",'Enrollment Form'!$AQ789<>\"\"),\"Y\",\"N\")))","v":""},{"$f":"IF($B782=\"N\",\"\",IF(OR('Enrollment Form'!$B789<>\"Subscriber\",'Enrollment Form'!$C789=\"ROC\"),\"-\",IF(AND('Enrollment Form'!$B789=\"Subscriber\",'Enrollment Form'!$C789=\"Enroll\",'Enrollment Form'!$AS789<>\"\"),\"Y\",\"N\")))","v":""},{"$f":"IF($B782=\"N\",\"\",IF($Q782=\"-\",\"-\",IF(AND($Q782=\"Y\",'Enrollment Form'!$AS789=\"No\"),\"-\",IF(AND($Q782=\"Y\",'Enrollment Form'!$AS789=\"Yes\",'Enrollment Form'!$AT789<>\"\"),\"Y\",\"N\"))))","v":""},{"$f":"IF($B782=\"N\",\"\",IF(OR('Enrollment Form'!$B789<>\"Subscriber\",'Enrollment Form'!$C789=\"ROC\"),\"-\",IF(AND('Enrollment Form'!$B789=\"Subscriber\",'Enrollment Form'!$C789=\"Enroll\",'Enrollment Form'!$CV789<>\"\"),\"Y\",\"N\")))","v":""},{"$f":"IF($B782=\"N\",\"\",IF($S782=\"-\",\"-\",IF(AND($S782=\"Y\",'Enrollment Form'!$CV789=\"No\"),\"-\",IF(AND($S782=\"Y\",'Enrollment Form'!$CV789=\"Yes\",'Enrollment Form'!$CW789<>\"\"),\"Y\",\"N\"))))","v":""},{"$f":"IF(OR('Enrollment Form'!$AY789=\"Yes\",'Enrollment Form'!$AY789=\"\"),\"-\",IF(OR(AND('Enrollment Form'!$AY789=\"No\",ISERROR(FIND(\"HMO\",VLOOKUP('Enrollment Form'!G789,'Enrollment Form'!H$11:J$1000,3,FALSE),1))=FALSE,COUNTA('Enrollment Form'!$AZ789:$BC789)=4),AND('Enrollment Form'!$AY789=\"No\",ISERROR(FIND(\"HMO\",VLOOKUP('Enrollment Form'!G789,'Enrollment Form'!H$11:J$1000,3,FALSE),1))=FALSE,COUNTA('Enrollment Form'!$BT789:$BW789)=4)),\"Y\",\"N\"))","v":"-"},{"$f":"IF($B782=\"N\",\"\",IF('Enrollment Form'!$B789=\"Subscriber\",\"-\",IF(COUNTA('Enrollment Form'!$BL789,'Enrollment Form'!$BN789)=2,\"Y\",\"N\")))","v":""},{"$f":"IF($B782=\"N\",\"\",IF(OR('Enrollment Form'!$AX789=\"\",'Enrollment Form'!$AX789=\"No\"),\"-\",IF(AND('Enrollment Form'!$AX789=\"Yes\",COUNTA('Enrollment Form'!$CR789)=1),\"Y\",\"N\")))","v":""},{"$f":"IF(OR('Enrollment Form'!$CR789=\"\",'Enrollment Form'!$CR789=\"No\"),\"-\",IF(COUNTA('Enrollment Form'!$CT789:$CU789)=2,\"Y\",\"N\"))","v":"-"},{"$f":"IF($B782=\"N\",\"\",IF(COUNTIF('Enrollment Form'!$DG789:$DP789,\"Other\")=COUNTA('Enrollment Form'!$DK789,'Enrollment Form'!$DH789,'Enrollment Form'!$DN789,'Enrollment Form'!$DQ789),\"Y\",\"N\"))","v":""},{"$f":"IF($B782=\"N\",\"\",IF(OR('Enrollment Form'!B789<>\"Subscriber\",'Enrollment Form'!C789=\"ROC\",COUNTIF('Enrollment Form'!AV789:AW789,\"Yes\")>=1),\"-\",IF(AND('Enrollment Form'!C789=\"Enroll\",COUNTIF('Enrollment Form'!AV789:AW789,\"No\")=2,'Enrollment Form'!AX789=\"\"),\"N\",\"Y\")))","v":""},{"$f":"IF(OR(B782=\"N\",'Enrollment Form'!B789<>\"Subscriber\",'Enrollment Form'!C789=\"ROC\",'Enrollment Form'!O789<>\"Multiple of Salary\"),\"-\",IF(COUNTA('Enrollment Form'!T789:U789)<2,\"N\",\"Y\"))","v":"-"},{"$f":"IF(B782=\"N\",\"\",IF(OR('Enrollment Form'!C789=\"ROC\",'Enrollment Form'!B789<>\"Subscriber\",'Enrollment Form'!O789=\"Waive\",'Enrollment Form'!O789=\"\"),\"-\",IF('Enrollment Form'!P789=\"\",\"N\",\"Y\")))","v":""},{"$f":"IF($B782=\"N\",\"\",IF(AND('Enrollment Form'!$C789=\"ROC\",'Enrollment Form'!$DR789<>\"\"),\"Y\",IF(AND('Enrollment Form'!$C789=\"ROC\",'Enrollment Form'!$DR789=\"\"),\"N\",IF(AND('Enrollment Form'!$C789=\"Enroll\",'Enrollment Form'!$B789=\"Subscriber\",'Enrollment Form'!$CX789=\"No\",'Enrollment Form'!$DR789=\"\"),\"N\",IF(AND('Enrollment Form'!$C789=\"Enroll\",'Enrollment Form'!$B789=\"Subscriber\",'Enrollment Form'!$CX789=\"Yes\"),\"-\",\"Y\")))))","v":""},{"$f":"IF($B782=\"N\",\"\",IF(AND('Enrollment Form'!$C789=\"ROC\",'Enrollment Form'!$DS789<>\"\"),\"Y\",IF(AND('Enrollment Form'!$C789=\"ROC\",'Enrollment Form'!$DS789=\"\"),\"N\",IF(AND('Enrollment Form'!$C789=\"Enroll\",'Enrollment Form'!$B789=\"Subscriber\",'Enrollment Form'!$CX789=\"No\",'Enrollment Form'!$DS789=\"\"),\"N\",IF(AND('Enrollment Form'!$C789=\"Enroll\",'Enrollment Form'!$B789=\"Subscriber\",'Enrollment Form'!$CX789=\"Yes\"),\"-\",\"Y\")))))","v":""},{"$f":"IF('Enrollment Form'!AH789=\"\",\"\",IF(ISERROR(SEARCH(\".\",'Enrollment Form'!AH789,SEARCH(\"@\",'Enrollment Form'!AH789))),\"N\",\"Y\"))","v":""},{"$f":"IF(OR($B782=\"N\",'Enrollment Form'!$G789=\"\"),\"\",IF('Enrollment Form'!$B789<>\"Subscriber\",\"-\",IF(COUNTIF('Enrollment Form'!$AV789:$AW789,\"Yes\")=2,\"N\",\"Y\")))","v":""},{"$f":"IF(OR('Enrollment Form'!$CJ789=\"\",'Enrollment Form'!$CJ789=\"No\"),\"-\",IF(AND('Enrollment Form'!$CJ789=\"Yes\",'Enrollment Form'!$CK789=\"\"),\"N\",\"Y\"))","v":"-"},{"$f":"IF(OR('Enrollment Form'!$CL789=\"\",'Enrollment Form'!$CL789=\"No\"),\"-\",IF(AND('Enrollment Form'!$CL789=\"Yes\",'Enrollment Form'!$CM789=\"\"),\"N\",\"Y\"))","v":"-"},{"$f":"IF(OR('Enrollment Form'!$CN789=\"\",'Enrollment Form'!$CN789=\"No\"),\"-\",IF(AND('Enrollment Form'!$CN789=\"Yes\",'Enrollment Form'!$CO789=\"\"),\"N\",\"Y\"))","v":"-"},{"$f":"IF(OR('Enrollment Form'!$CN789=\"\",'Enrollment Form'!$CN789=\"No\"),\"-\",IF(AND('Enrollment Form'!$CN789=\"Yes\",'Enrollment Form'!$CP789=\"\"),\"N\",\"Y\"))","v":"-"},{"$f":"IF('Enrollment Form'!B789<>\"Subscriber\",\"-\",IF(AND('Enrollment Form'!B789=\"Subscriber\",'Enrollment Form'!C789=\"Enroll\",'Enrollment Form'!AA789=\"\"),\"N\",\"Y\"))","v":"-"},{"$f":"IF(OR('Enrollment Form'!B789=\"Subscriber\",'Enrollment Form'!B789=\"\"),\"-\",IF('Enrollment Form'!BP789=\"\",\"N\",\"Y\"))","v":"-"},{"$f":"IF('Enrollment Form'!B789<>\"Subscriber\",\"-\",IF(AND('Enrollment Form'!B789=\"Subscriber\",'Enrollment Form'!G789=\"\"),\"N\",\"Y\"))","v":"-"},{"$f":"IF('Enrollment Form'!A789=\"\",\"\",IF('Enrollment Form'!B789=\"Subscriber\",\"-\",IF(AND('Enrollment Form'!B789<>\"Subscriber\",'Enrollment Form'!G789='Enrollment Form'!H789),\"N\",\"Y\")))","v":""},0]
[790,{"$f":"IF('Enrollment Form'!$A790<>\"\",\"Y\",\"N\")","v":"N"},{"$f":"IF(AND('Enrollment Form'!$B790=\"\",'Enrollment Form'!$C790<>\"\"),\"N\",IF($B783=\"N\",\"\",\"Y\"))","v":""},{"$f":"IF(OR($B783=\"N\",'Enrollment Form'!G790=\"\"),\"\",IF('Enrollment Form'!$B790<>\"Subscriber\",\"\",IF('Enrollment Form'!$G790='Enrollment Form'!$H790,\"Y\",\"N\")))","v":""},{"$f":"IF($B783=\"N\",\"\",IF(AND(COUNTIFS('Enrollment Form'!$H$11:$H$1000,'Enrollment Form'!$H790,'Enrollment Form'!$B$11:$B$1000,'Enrollment Form'!$B790)>1,'Enrollment Form'!$H790<>\"\"),\"N\",\"Y\"))","v":""},{"$f":"IF($B783=\"N\",\"\",IF(LEN('Enrollment Form'!$Y790)=0,\"\",IF(LEN('Enrollment Form'!$Y790)<>5,\"N\",\"Y\")))","v":""},{"$f":"IF($B783=\"N\",\"\",IF(LEN('Enrollment Form'!$AD790=0),\"\",IF(LEN('Enrollment Form'!$AD790)<>5,\"N\",\"Y\")))","v":""},{"$f":"IF($B783=\"N\",\"\",IF(LEN('Enrollment Form'!$BS790=0),\"\",IF(LEN('Enrollment Form'!$BS790)<>5,\"N\",\"Y\")))","v":""},{"$f":"IF($B783=\"N\",\"\",IF(LEN('Enrollment Form'!$AE790)=0,\"\",IF(LEN('Enrollment Form'!$AE790)<>10,\"N\",\"Y\")))","v":""},{"$f":"IF($B783=\"N\",\"\",IF(LEN('Enrollment Form'!$AF790)=0,\"\",IF(LEN('Enrollment Form'!$AF790)<>10,\"N\",\"Y\")))","v":""},{"$f":"IF('Enrollment Form'!$O790<>\"Graded\",\"-\",IF(AND('Enrollment Form'!$O790=\"Graded\",'Enrollment Form'!$AR790<>\"\"),\"Y\",\"N\"))","v":"-"},{"$f":"IF($B783=\"N\",\"\",IF(OR('Enrollment Form'!$B790<>\"Subscriber\",'Enrollment Form'!$C790=\"ROC\"),\"-\",IF(AND('Enrollment Form'!$B790=\"Subscriber\",'Enrollment Form'!$C790=\"Enroll\",'Enrollment Form'!$AJ790<>\"\"),\"Y\",\"N\")))","v":""},{"$f":"IF($B783=\"N\",\"\",IF(OR('Enrollment Form'!$B790<>\"Subscriber\",'Enrollment Form'!$C790=\"ROC\"),\"-\",IF(AND('Enrollment Form'!$B790=\"Subscriber\",'Enrollment Form'!$C790=\"Enroll\",'Enrollment Form'!$AK790<>\"\"),\"Y\",\"N\")))","v":""},{"$f":"IF($B783=\"N\",\"\",IF(OR('Enrollment Form'!$B790<>\"Subscriber\",'Enrollment Form'!$C790=\"ROC\"),\"-\",IF(AND('Enrollment Form'!$B790=\"Subscriber\",'Enrollment Form'!$C790=\"Enroll\",'Enrollment Form'!$AL790<>\"\"),\"Y\",\"N\")))","v":""},{"$f":"IF($B783=\"N\",\"\",IF(OR('Enrollment Form'!$B790<>\"Subscriber\",'Enrollment Form'!$C790=\"ROC\"),\"-\",IF(AND('Enrollment Form'!$B790=\"Subscriber\",'Enrollment Form'!$C790=\"Enroll\",'Enrollment Form'!$AP790<>\"\"),\"Y\",\"N\")))","v":""},{"$f":"IF($B783=\"N\",\"\",IF(OR('Enrollment Form'!$B790<>\"Subscriber\",'Enrollment Form'!$C790=\"ROC\"),\"-\",IF(AND('Enrollment Form'!$B790=\"Subscriber\",'Enrollment Form'!$C790=\"Enroll\",'Enrollment Form'!$AQ790<>\"\"),\"Y\",\"N\")))","v":""},{"$f":"IF($B783=\"N\",\"\",IF(OR('Enrollment Form'!$B790<>\"Subscriber\",'Enrollment Form'!$C790=\"ROC\"),\"-\",IF(AND('Enrollment Form'!$B790=\"Subscriber\",'Enrollment Form'!$C790=\"Enroll\",'Enrollment Form'!$AS790<>\"\"),\"Y\",\"N\")))","v":""},{"$f":"IF($B783=\"N\",\"\",IF($Q783=\"-\",\"-\",IF(AND($Q783=\"Y\",'Enrollment Form'!$AS790=\"No\"),\"-\",IF(AND($Q783=\"Y\",'Enrollment Form'!$AS790=\"Yes\",'Enrollment Form'!$AT790<>\"\"),\"Y\",\"N\"))))","v":""},{"$f":"IF($B783=\"N\",\"\",IF(OR('Enrollment Form'!$B790<>\"Subscriber\",'Enrollment Form'!$C790=\"ROC\"),\"-\",IF(AND('Enrollment Form'!$B790=\"Subscriber\",'Enrollment Form'!$C790=\"Enroll\",'Enrollment Form'!$CV790<>\"\"),\"Y\",\"N\")))","v":""},{"$f":"IF($B783=\"N\",\"\",IF($S783=\"-\",\"-\",IF(AND($S783=\"Y\",'Enrollment Form'!$CV790=\"No\"),\"-\",IF(AND($S783=\"Y\",'Enrollment Form'!$CV790=\"Yes\",'Enrollment Form'!$CW790<>\"\"),\"Y\",\"N\"))))","v":""},{"$f":"IF(OR('Enrollment Form'!$AY790=\"Yes\",'Enrollment Form'!$AY790=\"\"),\"-\",IF(OR(AND('Enrollment Form'!$AY790=\"No\",ISERROR(FIND(\"HMO\",VLOOKUP('Enrollment Form'!G790,'Enrollment Form'!H$11:J$1000,3,FALSE),1))=FALSE,COUNTA('Enrollment Form'!$AZ790:$BC790)=4),AND('Enrollment Form'!$AY790=\"No\",ISERROR(FIND(\"HMO\",VLOOKUP('Enrollment Form'!G790,'Enrollment Form'!H$11:J$1000,3,FALSE),1))=FALSE,COUNTA('Enrollment Form'!$BT790:$BW790)=4)),\"Y\",\"N\"))","v":"-"},{"$f":"IF($B783=\"N\",\"\",IF('Enrollment Form'!$B790=\"Subscriber\",\"-\",IF(COUNTA('Enrollment Form'!$BL790,'Enrollment Form'!$BN790)=2,\"Y\",\"N\")))","v":""},{"$f":"IF($B783=\"N\",\"\",IF(OR('Enrollment Form'!$AX790=\"\",'Enrollment Form'!$AX790=\"No\"),\"-\",IF(AND('Enrollment Form'!$AX790=\"Yes\",COUNTA('Enrollment Form'!$CR790)=1),\"Y\",\"N\")))","v":""},{"$f":"IF(OR('Enrollment Form'!$CR790=\"\",'Enrollment Form'!$CR790=\"No\"),\"-\",IF(COUNTA('Enrollment Form'!$CT790:$CU790)=2,\"Y\",\"N\"))","v":"-"},{"$f":"IF($B783=\"N\",\"\",IF(COUNTIF('Enrollment Form'!$DG790:$DP790,\"Other\")=COUNTA('Enrollment Form'!$DK790,'Enrollment Form'!$DH790,'Enrollment Form'!$DN790,'Enrollment Form'!$DQ790),\"Y\",\"N\"))","v":""},{"$f":"IF($B783=\"N\",\"\",IF(OR('Enrollment Form'!B790<>\"Subscriber\",'Enrollment Form'!C790=\"ROC\",COUNTIF('Enrollment Form'!AV790:AW790,\"Yes\")>=1),\"-\",IF(AND('Enrollment Form'!C790=\"Enroll\",COUNTIF('Enrollment Form'!AV790:AW790,\"No\")=2,'Enrollment Form'!AX790=\"\"),\"N\",\"Y\")))","v":""},{"$f":"IF(OR(B783=\"N\",'Enrollment Form'!B790<>\"Subscriber\",'Enrollment Form'!C790=\"ROC\",'Enrollment Form'!O790<>\"Multiple of Salary\"),\"-\",IF(COUNTA('Enrollment Form'!T790:U790)<2,\"N\",\"Y\"))","v":"-"},{"$f":"IF(B783=\"N\",\"\",IF(OR('Enrollment Form'!C790=\"ROC\",'Enrollment Form'!B790<>\"Subscriber\",'Enrollment Form'!O790=\"Waive\",'Enrollment Form'!O790=\"\"),\"-\",IF('Enrollment Form'!P790=\"\",\"N\",\"Y\")))","v":""},{"$f":"IF($B783=\"N\",\"\",IF(AND('Enrollment Form'!$C790=\"ROC\",'Enrollment Form'!$DR790<>\"\"),\"Y\",IF(AND('Enrollment Form'!$C790=\"ROC\",'Enrollment Form'!$DR790=\"\"),\"N\",IF(AND('Enrollment Form'!$C790=\"Enroll\",'Enrollment Form'!$B790=\"Subscriber\",'Enrollment Form'!$CX790=\"No\",'Enrollment Form'!$DR790=\"\"),\"N\",IF(AND('Enrollment Form'!$C790=\"Enroll\",'Enrollment Form'!$B790=\"Subscriber\",'Enrollment Form'!$CX790=\"Yes\"),\"-\",\"Y\")))))","v":""},{"$f":"IF($B783=\"N\",\"\",IF(AND('Enrollment Form'!$C790=\"ROC\",'Enrollment Form'!$DS790<>\"\"),\"Y\",IF(AND('Enrollment Form'!$C790=\"ROC\",'Enrollment Form'!$DS790=\"\"),\"N\",IF(AND('Enrollment Form'!$C790=\"Enroll\",'Enrollment Form'!$B790=\"Subscriber\",'Enrollment Form'!$CX790=\"No\",'Enrollment Form'!$DS790=\"\"),\"N\",IF(AND('Enrollment Form'!$C790=\"Enroll\",'Enrollment Form'!$B790=\"Subscriber\",'Enrollment Form'!$CX790=\"Yes\"),\"-\",\"Y\")))))","v":""},{"$f":"IF('Enrollment Form'!AH790=\"\",\"\",IF(ISERROR(SEARCH(\".\",'Enrollment Form'!AH790,SEARCH(\"@\",'Enrollment Form'!AH790))),\"N\",\"Y\"))","v":""},{"$f":"IF(OR($B783=\"N\",'Enrollment Form'!$G790=\"\"),\"\",IF('Enrollment Form'!$B790<>\"Subscriber\",\"-\",IF(COUNTIF('Enrollment Form'!$AV790:$AW790,\"Yes\")=2,\"N\",\"Y\")))","v":""},{"$f":"IF(OR('Enrollment Form'!$CJ790=\"\",'Enrollment Form'!$CJ790=\"No\"),\"-\",IF(AND('Enrollment Form'!$CJ790=\"Yes\",'Enrollment Form'!$CK790=\"\"),\"N\",\"Y\"))","v":"-"},{"$f":"IF(OR('Enrollment Form'!$CL790=\"\",'Enrollment Form'!$CL790=\"No\"),\"-\",IF(AND('Enrollment Form'!$CL790=\"Yes\",'Enrollment Form'!$CM790=\"\"),\"N\",\"Y\"))","v":"-"},{"$f":"IF(OR('Enrollment Form'!$CN790=\"\",'Enrollment Form'!$CN790=\"No\"),\"-\",IF(AND('Enrollment Form'!$CN790=\"Yes\",'Enrollment Form'!$CO790=\"\"),\"N\",\"Y\"))","v":"-"},{"$f":"IF(OR('Enrollment Form'!$CN790=\"\",'Enrollment Form'!$CN790=\"No\"),\"-\",IF(AND('Enrollment Form'!$CN790=\"Yes\",'Enrollment Form'!$CP790=\"\"),\"N\",\"Y\"))","v":"-"},{"$f":"IF('Enrollment Form'!B790<>\"Subscriber\",\"-\",IF(AND('Enrollment Form'!B790=\"Subscriber\",'Enrollment Form'!C790=\"Enroll\",'Enrollment Form'!AA790=\"\"),\"N\",\"Y\"))","v":"-"},{"$f":"IF(OR('Enrollment Form'!B790=\"Subscriber\",'Enrollment Form'!B790=\"\"),\"-\",IF('Enrollment Form'!BP790=\"\",\"N\",\"Y\"))","v":"-"},{"$f":"IF('Enrollment Form'!B790<>\"Subscriber\",\"-\",IF(AND('Enrollment Form'!B790=\"Subscriber\",'Enrollment Form'!G790=\"\"),\"N\",\"Y\"))","v":"-"},{"$f":"IF('Enrollment Form'!A790=\"\",\"\",IF('Enrollment Form'!B790=\"Subscriber\",\"-\",IF(AND('Enrollment Form'!B790<>\"Subscriber\",'Enrollment Form'!G790='Enrollment Form'!H790),\"N\",\"Y\")))","v":""},0]
[791,{"$f":"IF('Enrollment Form'!$A791<>\"\",\"Y\",\"N\")","v":"N"},{"$f":"IF(AND('Enrollment Form'!$B791=\"\",'Enrollment Form'!$C791<>\"\"),\"N\",IF($B784=\"N\",\"\",\"Y\"))","v":""},{"$f":"IF(OR($B784=\"N\",'Enrollment Form'!G791=\"\"),\"\",IF('Enrollment Form'!$B791<>\"Subscriber\",\"\",IF('Enrollment Form'!$G791='Enrollment Form'!$H791,\"Y\",\"N\")))","v":""},{"$f":"IF($B784=\"N\",\"\",IF(AND(COUNTIFS('Enrollment Form'!$H$11:$H$1000,'Enrollment Form'!$H791,'Enrollment Form'!$B$11:$B$1000,'Enrollment Form'!$B791)>1,'Enrollment Form'!$H791<>\"\"),\"N\",\"Y\"))","v":""},{"$f":"IF($B784=\"N\",\"\",IF(LEN('Enrollment Form'!$Y791)=0,\"\",IF(LEN('Enrollment Form'!$Y791)<>5,\"N\",\"Y\")))","v":""},{"$f":"IF($B784=\"N\",\"\",IF(LEN('Enrollment Form'!$AD791=0),\"\",IF(LEN('Enrollment Form'!$AD791)<>5,\"N\",\"Y\")))","v":""},{"$f":"IF($B784=\"N\",\"\",IF(LEN('Enrollment Form'!$BS791=0),\"\",IF(LEN('Enrollment Form'!$BS791)<>5,\"N\",\"Y\")))","v":""},{"$f":"IF($B784=\"N\",\"\",IF(LEN('Enrollment Form'!$AE791)=0,\"\",IF(LEN('Enrollment Form'!$AE791)<>10,\"N\",\"Y\")))","v":""},{"$f":"IF($B784=\"N\",\"\",IF(LEN('Enrollment Form'!$AF791)=0,\"\",IF(LEN('Enrollment Form'!$AF791)<>10,\"N\",\"Y\")))","v":""},{"$f":"IF('Enrollment Form'!$O791<>\"Graded\",\"-\",IF(AND('Enrollment Form'!$O791=\"Graded\",'Enrollment Form'!$AR791<>\"\"),\"Y\",\"N\"))","v":"-"},{"$f":"IF($B784=\"N\",\"\",IF(OR('Enrollment Form'!$B791<>\"Subscriber\",'Enrollment Form'!$C791=\"ROC\"),\"-\",IF(AND('Enrollment Form'!$B791=\"Subscriber\",'Enrollment Form'!$C791=\"Enroll\",'Enrollment Form'!$AJ791<>\"\"),\"Y\",\"N\")))","v":""},{"$f":"IF($B784=\"N\",\"\",IF(OR('Enrollment Form'!$B791<>\"Subscriber\",'Enrollment Form'!$C791=\"ROC\"),\"-\",IF(AND('Enrollment Form'!$B791=\"Subscriber\",'Enrollment Form'!$C791=\"Enroll\",'Enrollment Form'!$AK791<>\"\"),\"Y\",\"N\")))","v":""},{"$f":"IF($B784=\"N\",\"\",IF(OR('Enrollment Form'!$B791<>\"Subscriber\",'Enrollment Form'!$C791=\"ROC\"),\"-\",IF(AND('Enrollment Form'!$B791=\"Subscriber\",'Enrollment Form'!$C791=\"Enroll\",'Enrollment Form'!$AL791<>\"\"),\"Y\",\"N\")))","v":""},{"$f":"IF($B784=\"N\",\"\",IF(OR('Enrollment Form'!$B791<>\"Subscriber\",'Enrollment Form'!$C791=\"ROC\"),\"-\",IF(AND('Enrollment Form'!$B791=\"Subscriber\",'Enrollment Form'!$C791=\"Enroll\",'Enrollment Form'!$AP791<>\"\"),\"Y\",\"N\")))","v":""},{"$f":"IF($B784=\"N\",\"\",IF(OR('Enrollment Form'!$B791<>\"Subscriber\",'Enrollment Form'!$C791=\"ROC\"),\"-\",IF(AND('Enrollment Form'!$B791=\"Subscriber\",'Enrollment Form'!$C791=\"Enroll\",'Enrollment Form'!$AQ791<>\"\"),\"Y\",\"N\")))","v":""},{"$f":"IF($B784=\"N\",\"\",IF(OR('Enrollment Form'!$B791<>\"Subscriber\",'Enrollment Form'!$C791=\"ROC\"),\"-\",IF(AND('Enrollment Form'!$B791=\"Subscriber\",'Enrollment Form'!$C791=\"Enroll\",'Enrollment Form'!$AS791<>\"\"),\"Y\",\"N\")))","v":""},{"$f":"IF($B784=\"N\",\"\",IF($Q784=\"-\",\"-\",IF(AND($Q784=\"Y\",'Enrollment Form'!$AS791=\"No\"),\"-\",IF(AND($Q784=\"Y\",'Enrollment Form'!$AS791=\"Yes\",'Enrollment Form'!$AT791<>\"\"),\"Y\",\"N\"))))","v":""},{"$f":"IF($B784=\"N\",\"\",IF(OR('Enrollment Form'!$B791<>\"Subscriber\",'Enrollment Form'!$C791=\"ROC\"),\"-\",IF(AND('Enrollment Form'!$B791=\"Subscriber\",'Enrollment Form'!$C791=\"Enroll\",'Enrollment Form'!$CV791<>\"\"),\"Y\",\"N\")))","v":""},{"$f":"IF($B784=\"N\",\"\",IF($S784=\"-\",\"-\",IF(AND($S784=\"Y\",'Enrollment Form'!$CV791=\"No\"),\"-\",IF(AND($S784=\"Y\",'Enrollment Form'!$CV791=\"Yes\",'Enrollment Form'!$CW791<>\"\"),\"Y\",\"N\"))))","v":""},{"$f":"IF(OR('Enrollment Form'!$AY791=\"Yes\",'Enrollment Form'!$AY791=\"\"),\"-\",IF(OR(AND('Enrollment Form'!$AY791=\"No\",ISERROR(FIND(\"HMO\",VLOOKUP('Enrollment Form'!G791,'Enrollment Form'!H$11:J$1000,3,FALSE),1))=FALSE,COUNTA('Enrollment Form'!$AZ791:$BC791)=4),AND('Enrollment Form'!$AY791=\"No\",ISERROR(FIND(\"HMO\",VLOOKUP('Enrollment Form'!G791,'Enrollment Form'!H$11:J$1000,3,FALSE),1))=FALSE,COUNTA('Enrollment Form'!$BT791:$BW791)=4)),\"Y\",\"N\"))","v":"-"},{"$f":"IF($B784=\"N\",\"\",IF('Enrollment Form'!$B791=\"Subscriber\",\"-\",IF(COUNTA('Enrollment Form'!$BL791,'Enrollment Form'!$BN791)=2,\"Y\",\"N\")))","v":""},{"$f":"IF($B784=\"N\",\"\",IF(OR('Enrollment Form'!$AX791=\"\",'Enrollment Form'!$AX791=\"No\"),\"-\",IF(AND('Enrollment Form'!$AX791=\"Yes\",COUNTA('Enrollment Form'!$CR791)=1),\"Y\",\"N\")))","v":""},{"$f":"IF(OR('Enrollment Form'!$CR791=\"\",'Enrollment Form'!$CR791=\"No\"),\"-\",IF(COUNTA('Enrollment Form'!$CT791:$CU791)=2,\"Y\",\"N\"))","v":"-"},{"$f":"IF($B784=\"N\",\"\",IF(COUNTIF('Enrollment Form'!$DG791:$DP791,\"Other\")=COUNTA('Enrollment Form'!$DK791,'Enrollment Form'!$DH791,'Enrollment Form'!$DN791,'Enrollment Form'!$DQ791),\"Y\",\"N\"))","v":""},{"$f":"IF($B784=\"N\",\"\",IF(OR('Enrollment Form'!B791<>\"Subscriber\",'Enrollment Form'!C791=\"ROC\",COUNTIF('Enrollment Form'!AV791:AW791,\"Yes\")>=1),\"-\",IF(AND('Enrollment Form'!C791=\"Enroll\",COUNTIF('Enrollment Form'!AV791:AW791,\"No\")=2,'Enrollment Form'!AX791=\"\"),\"N\",\"Y\")))","v":""},{"$f":"IF(OR(B784=\"N\",'Enrollment Form'!B791<>\"Subscriber\",'Enrollment Form'!C791=\"ROC\",'Enrollment Form'!O791<>\"Multiple of Salary\"),\"-\",IF(COUNTA('Enrollment Form'!T791:U791)<2,\"N\",\"Y\"))","v":"-"},{"$f":"IF(B784=\"N\",\"\",IF(OR('Enrollment Form'!C791=\"ROC\",'Enrollment Form'!B791<>\"Subscriber\",'Enrollment Form'!O791=\"Waive\",'Enrollment Form'!O791=\"\"),\"-\",IF('Enrollment Form'!P791=\"\",\"N\",\"Y\")))","v":""},{"$f":"IF($B784=\"N\",\"\",IF(AND('Enrollment Form'!$C791=\"ROC\",'Enrollment Form'!$DR791<>\"\"),\"Y\",IF(AND('Enrollment Form'!$C791=\"ROC\",'Enrollment Form'!$DR791=\"\"),\"N\",IF(AND('Enrollment Form'!$C791=\"Enroll\",'Enrollment Form'!$B791=\"Subscriber\",'Enrollment Form'!$CX791=\"No\",'Enrollment Form'!$DR791=\"\"),\"N\",IF(AND('Enrollment Form'!$C791=\"Enroll\",'Enrollment Form'!$B791=\"Subscriber\",'Enrollment Form'!$CX791=\"Yes\"),\"-\",\"Y\")))))","v":""},{"$f":"IF($B784=\"N\",\"\",IF(AND('Enrollment Form'!$C791=\"ROC\",'Enrollment Form'!$DS791<>\"\"),\"Y\",IF(AND('Enrollment Form'!$C791=\"ROC\",'Enrollment Form'!$DS791=\"\"),\"N\",IF(AND('Enrollment Form'!$C791=\"Enroll\",'Enrollment Form'!$B791=\"Subscriber\",'Enrollment Form'!$CX791=\"No\",'Enrollment Form'!$DS791=\"\"),\"N\",IF(AND('Enrollment Form'!$C791=\"Enroll\",'Enrollment Form'!$B791=\"Subscriber\",'Enrollment Form'!$CX791=\"Yes\"),\"-\",\"Y\")))))","v":""},{"$f":"IF('Enrollment Form'!AH791=\"\",\"\",IF(ISERROR(SEARCH(\".\",'Enrollment Form'!AH791,SEARCH(\"@\",'Enrollment Form'!AH791))),\"N\",\"Y\"))","v":""},{"$f":"IF(OR($B784=\"N\",'Enrollment Form'!$G791=\"\"),\"\",IF('Enrollment Form'!$B791<>\"Subscriber\",\"-\",IF(COUNTIF('Enrollment Form'!$AV791:$AW791,\"Yes\")=2,\"N\",\"Y\")))","v":""},{"$f":"IF(OR('Enrollment Form'!$CJ791=\"\",'Enrollment Form'!$CJ791=\"No\"),\"-\",IF(AND('Enrollment Form'!$CJ791=\"Yes\",'Enrollment Form'!$CK791=\"\"),\"N\",\"Y\"))","v":"-"},{"$f":"IF(OR('Enrollment Form'!$CL791=\"\",'Enrollment Form'!$CL791=\"No\"),\"-\",IF(AND('Enrollment Form'!$CL791=\"Yes\",'Enrollment Form'!$CM791=\"\"),\"N\",\"Y\"))","v":"-"},{"$f":"IF(OR('Enrollment Form'!$CN791=\"\",'Enrollment Form'!$CN791=\"No\"),\"-\",IF(AND('Enrollment Form'!$CN791=\"Yes\",'Enrollment Form'!$CO791=\"\"),\"N\",\"Y\"))","v":"-"},{"$f":"IF(OR('Enrollment Form'!$CN791=\"\",'Enrollment Form'!$CN791=\"No\"),\"-\",IF(AND('Enrollment Form'!$CN791=\"Yes\",'Enrollment Form'!$CP791=\"\"),\"N\",\"Y\"))","v":"-"},{"$f":"IF('Enrollment Form'!B791<>\"Subscriber\",\"-\",IF(AND('Enrollment Form'!B791=\"Subscriber\",'Enrollment Form'!C791=\"Enroll\",'Enrollment Form'!AA791=\"\"),\"N\",\"Y\"))","v":"-"},{"$f":"IF(OR('Enrollment Form'!B791=\"Subscriber\",'Enrollment Form'!B791=\"\"),\"-\",IF('Enrollment Form'!BP791=\"\",\"N\",\"Y\"))","v":"-"},{"$f":"IF('Enrollment Form'!B791<>\"Subscriber\",\"-\",IF(AND('Enrollment Form'!B791=\"Subscriber\",'Enrollment Form'!G791=\"\"),\"N\",\"Y\"))","v":"-"},{"$f":"IF('Enrollment Form'!A791=\"\",\"\",IF('Enrollment Form'!B791=\"Subscriber\",\"-\",IF(AND('Enrollment Form'!B791<>\"Subscriber\",'Enrollment Form'!G791='Enrollment Form'!H791),\"N\",\"Y\")))","v":""},0]
[792,{"$f":"IF('Enrollment Form'!$A792<>\"\",\"Y\",\"N\")","v":"N"},{"$f":"IF(AND('Enrollment Form'!$B792=\"\",'Enrollment Form'!$C792<>\"\"),\"N\",IF($B785=\"N\",\"\",\"Y\"))","v":""},{"$f":"IF(OR($B785=\"N\",'Enrollment Form'!G792=\"\"),\"\",IF('Enrollment Form'!$B792<>\"Subscriber\",\"\",IF('Enrollment Form'!$G792='Enrollment Form'!$H792,\"Y\",\"N\")))","v":""},{"$f":"IF($B785=\"N\",\"\",IF(AND(COUNTIFS('Enrollment Form'!$H$11:$H$1000,'Enrollment Form'!$H792,'Enrollment Form'!$B$11:$B$1000,'Enrollment Form'!$B792)>1,'Enrollment Form'!$H792<>\"\"),\"N\",\"Y\"))","v":""},{"$f":"IF($B785=\"N\",\"\",IF(LEN('Enrollment Form'!$Y792)=0,\"\",IF(LEN('Enrollment Form'!$Y792)<>5,\"N\",\"Y\")))","v":""},{"$f":"IF($B785=\"N\",\"\",IF(LEN('Enrollment Form'!$AD792=0),\"\",IF(LEN('Enrollment Form'!$AD792)<>5,\"N\",\"Y\")))","v":""},{"$f":"IF($B785=\"N\",\"\",IF(LEN('Enrollment Form'!$BS792=0),\"\",IF(LEN('Enrollment Form'!$BS792)<>5,\"N\",\"Y\")))","v":""},{"$f":"IF($B785=\"N\",\"\",IF(LEN('Enrollment Form'!$AE792)=0,\"\",IF(LEN('Enrollment Form'!$AE792)<>10,\"N\",\"Y\")))","v":""},{"$f":"IF($B785=\"N\",\"\",IF(LEN('Enrollment Form'!$AF792)=0,\"\",IF(LEN('Enrollment Form'!$AF792)<>10,\"N\",\"Y\")))","v":""},{"$f":"IF('Enrollment Form'!$O792<>\"Graded\",\"-\",IF(AND('Enrollment Form'!$O792=\"Graded\",'Enrollment Form'!$AR792<>\"\"),\"Y\",\"N\"))","v":"-"},{"$f":"IF($B785=\"N\",\"\",IF(OR('Enrollment Form'!$B792<>\"Subscriber\",'Enrollment Form'!$C792=\"ROC\"),\"-\",IF(AND('Enrollment Form'!$B792=\"Subscriber\",'Enrollment Form'!$C792=\"Enroll\",'Enrollment Form'!$AJ792<>\"\"),\"Y\",\"N\")))","v":""},{"$f":"IF($B785=\"N\",\"\",IF(OR('Enrollment Form'!$B792<>\"Subscriber\",'Enrollment Form'!$C792=\"ROC\"),\"-\",IF(AND('Enrollment Form'!$B792=\"Subscriber\",'Enrollment Form'!$C792=\"Enroll\",'Enrollment Form'!$AK792<>\"\"),\"Y\",\"N\")))","v":""},{"$f":"IF($B785=\"N\",\"\",IF(OR('Enrollment Form'!$B792<>\"Subscriber\",'Enrollment Form'!$C792=\"ROC\"),\"-\",IF(AND('Enrollment Form'!$B792=\"Subscriber\",'Enrollment Form'!$C792=\"Enroll\",'Enrollment Form'!$AL792<>\"\"),\"Y\",\"N\")))","v":""},{"$f":"IF($B785=\"N\",\"\",IF(OR('Enrollment Form'!$B792<>\"Subscriber\",'Enrollment Form'!$C792=\"ROC\"),\"-\",IF(AND('Enrollment Form'!$B792=\"Subscriber\",'Enrollment Form'!$C792=\"Enroll\",'Enrollment Form'!$AP792<>\"\"),\"Y\",\"N\")))","v":""},{"$f":"IF($B785=\"N\",\"\",IF(OR('Enrollment Form'!$B792<>\"Subscriber\",'Enrollment Form'!$C792=\"ROC\"),\"-\",IF(AND('Enrollment Form'!$B792=\"Subscriber\",'Enrollment Form'!$C792=\"Enroll\",'Enrollment Form'!$AQ792<>\"\"),\"Y\",\"N\")))","v":""},{"$f":"IF($B785=\"N\",\"\",IF(OR('Enrollment Form'!$B792<>\"Subscriber\",'Enrollment Form'!$C792=\"ROC\"),\"-\",IF(AND('Enrollment Form'!$B792=\"Subscriber\",'Enrollment Form'!$C792=\"Enroll\",'Enrollment Form'!$AS792<>\"\"),\"Y\",\"N\")))","v":""},{"$f":"IF($B785=\"N\",\"\",IF($Q785=\"-\",\"-\",IF(AND($Q785=\"Y\",'Enrollment Form'!$AS792=\"No\"),\"-\",IF(AND($Q785=\"Y\",'Enrollment Form'!$AS792=\"Yes\",'Enrollment Form'!$AT792<>\"\"),\"Y\",\"N\"))))","v":""},{"$f":"IF($B785=\"N\",\"\",IF(OR('Enrollment Form'!$B792<>\"Subscriber\",'Enrollment Form'!$C792=\"ROC\"),\"-\",IF(AND('Enrollment Form'!$B792=\"Subscriber\",'Enrollment Form'!$C792=\"Enroll\",'Enrollment Form'!$CV792<>\"\"),\"Y\",\"N\")))","v":""},{"$f":"IF($B785=\"N\",\"\",IF($S785=\"-\",\"-\",IF(AND($S785=\"Y\",'Enrollment Form'!$CV792=\"No\"),\"-\",IF(AND($S785=\"Y\",'Enrollment Form'!$CV792=\"Yes\",'Enrollment Form'!$CW792<>\"\"),\"Y\",\"N\"))))","v":""},{"$f":"IF(OR('Enrollment Form'!$AY792=\"Yes\",'Enrollment Form'!$AY792=\"\"),\"-\",IF(OR(AND('Enrollment Form'!$AY792=\"No\",ISERROR(FIND(\"HMO\",VLOOKUP('Enrollment Form'!G792,'Enrollment Form'!H$11:J$1000,3,FALSE),1))=FALSE,COUNTA('Enrollment Form'!$AZ792:$BC792)=4),AND('Enrollment Form'!$AY792=\"No\",ISERROR(FIND(\"HMO\",VLOOKUP('Enrollment Form'!G792,'Enrollment Form'!H$11:J$1000,3,FALSE),1))=FALSE,COUNTA('Enrollment Form'!$BT792:$BW792)=4)),\"Y\",\"N\"))","v":"-"},{"$f":"IF($B785=\"N\",\"\",IF('Enrollment Form'!$B792=\"Subscriber\",\"-\",IF(COUNTA('Enrollment Form'!$BL792,'Enrollment Form'!$BN792)=2,\"Y\",\"N\")))","v":""},{"$f":"IF($B785=\"N\",\"\",IF(OR('Enrollment Form'!$AX792=\"\",'Enrollment Form'!$AX792=\"No\"),\"-\",IF(AND('Enrollment Form'!$AX792=\"Yes\",COUNTA('Enrollment Form'!$CR792)=1),\"Y\",\"N\")))","v":""},{"$f":"IF(OR('Enrollment Form'!$CR792=\"\",'Enrollment Form'!$CR792=\"No\"),\"-\",IF(COUNTA('Enrollment Form'!$CT792:$CU792)=2,\"Y\",\"N\"))","v":"-"},{"$f":"IF($B785=\"N\",\"\",IF(COUNTIF('Enrollment Form'!$DG792:$DP792,\"Other\")=COUNTA('Enrollment Form'!$DK792,'Enrollment Form'!$DH792,'Enrollment Form'!$DN792,'Enrollment Form'!$DQ792),\"Y\",\"N\"))","v":""},{"$f":"IF($B785=\"N\",\"\",IF(OR('Enrollment Form'!B792<>\"Subscriber\",'Enrollment Form'!C792=\"ROC\",COUNTIF('Enrollment Form'!AV792:AW792,\"Yes\")>=1),\"-\",IF(AND('Enrollment Form'!C792=\"Enroll\",COUNTIF('Enrollment Form'!AV792:AW792,\"No\")=2,'Enrollment Form'!AX792=\"\"),\"N\",\"Y\")))","v":""},{"$f":"IF(OR(B785=\"N\",'Enrollment Form'!B792<>\"Subscriber\",'Enrollment Form'!C792=\"ROC\",'Enrollment Form'!O792<>\"Multiple of Salary\"),\"-\",IF(COUNTA('Enrollment Form'!T792:U792)<2,\"N\",\"Y\"))","v":"-"},{"$f":"IF(B785=\"N\",\"\",IF(OR('Enrollment Form'!C792=\"ROC\",'Enrollment Form'!B792<>\"Subscriber\",'Enrollment Form'!O792=\"Waive\",'Enrollment Form'!O792=\"\"),\"-\",IF('Enrollment Form'!P792=\"\",\"N\",\"Y\")))","v":""},{"$f":"IF($B785=\"N\",\"\",IF(AND('Enrollment Form'!$C792=\"ROC\",'Enrollment Form'!$DR792<>\"\"),\"Y\",IF(AND('Enrollment Form'!$C792=\"ROC\",'Enrollment Form'!$DR792=\"\"),\"N\",IF(AND('Enrollment Form'!$C792=\"Enroll\",'Enrollment Form'!$B792=\"Subscriber\",'Enrollment Form'!$CX792=\"No\",'Enrollment Form'!$DR792=\"\"),\"N\",IF(AND('Enrollment Form'!$C792=\"Enroll\",'Enrollment Form'!$B792=\"Subscriber\",'Enrollment Form'!$CX792=\"Yes\"),\"-\",\"Y\")))))","v":""},{"$f":"IF($B785=\"N\",\"\",IF(AND('Enrollment Form'!$C792=\"ROC\",'Enrollment Form'!$DS792<>\"\"),\"Y\",IF(AND('Enrollment Form'!$C792=\"ROC\",'Enrollment Form'!$DS792=\"\"),\"N\",IF(AND('Enrollment Form'!$C792=\"Enroll\",'Enrollment Form'!$B792=\"Subscriber\",'Enrollment Form'!$CX792=\"No\",'Enrollment Form'!$DS792=\"\"),\"N\",IF(AND('Enrollment Form'!$C792=\"Enroll\",'Enrollment Form'!$B792=\"Subscriber\",'Enrollment Form'!$CX792=\"Yes\"),\"-\",\"Y\")))))","v":""},{"$f":"IF('Enrollment Form'!AH792=\"\",\"\",IF(ISERROR(SEARCH(\".\",'Enrollment Form'!AH792,SEARCH(\"@\",'Enrollment Form'!AH792))),\"N\",\"Y\"))","v":""},{"$f":"IF(OR($B785=\"N\",'Enrollment Form'!$G792=\"\"),\"\",IF('Enrollment Form'!$B792<>\"Subscriber\",\"-\",IF(COUNTIF('Enrollment Form'!$AV792:$AW792,\"Yes\")=2,\"N\",\"Y\")))","v":""},{"$f":"IF(OR('Enrollment Form'!$CJ792=\"\",'Enrollment Form'!$CJ792=\"No\"),\"-\",IF(AND('Enrollment Form'!$CJ792=\"Yes\",'Enrollment Form'!$CK792=\"\"),\"N\",\"Y\"))","v":"-"},{"$f":"IF(OR('Enrollment Form'!$CL792=\"\",'Enrollment Form'!$CL792=\"No\"),\"-\",IF(AND('Enrollment Form'!$CL792=\"Yes\",'Enrollment Form'!$CM792=\"\"),\"N\",\"Y\"))","v":"-"},{"$f":"IF(OR('Enrollment Form'!$CN792=\"\",'Enrollment Form'!$CN792=\"No\"),\"-\",IF(AND('Enrollment Form'!$CN792=\"Yes\",'Enrollment Form'!$CO792=\"\"),\"N\",\"Y\"))","v":"-"},{"$f":"IF(OR('Enrollment Form'!$CN792=\"\",'Enrollment Form'!$CN792=\"No\"),\"-\",IF(AND('Enrollment Form'!$CN792=\"Yes\",'Enrollment Form'!$CP792=\"\"),\"N\",\"Y\"))","v":"-"},{"$f":"IF('Enrollment Form'!B792<>\"Subscriber\",\"-\",IF(AND('Enrollment Form'!B792=\"Subscriber\",'Enrollment Form'!C792=\"Enroll\",'Enrollment Form'!AA792=\"\"),\"N\",\"Y\"))","v":"-"},{"$f":"IF(OR('Enrollment Form'!B792=\"Subscriber\",'Enrollment Form'!B792=\"\"),\"-\",IF('Enrollment Form'!BP792=\"\",\"N\",\"Y\"))","v":"-"},{"$f":"IF('Enrollment Form'!B792<>\"Subscriber\",\"-\",IF(AND('Enrollment Form'!B792=\"Subscriber\",'Enrollment Form'!G792=\"\"),\"N\",\"Y\"))","v":"-"},{"$f":"IF('Enrollment Form'!A792=\"\",\"\",IF('Enrollment Form'!B792=\"Subscriber\",\"-\",IF(AND('Enrollment Form'!B792<>\"Subscriber\",'Enrollment Form'!G792='Enrollment Form'!H792),\"N\",\"Y\")))","v":""},0]
[793,{"$f":"IF('Enrollment Form'!$A793<>\"\",\"Y\",\"N\")","v":"N"},{"$f":"IF(AND('Enrollment Form'!$B793=\"\",'Enrollment Form'!$C793<>\"\"),\"N\",IF($B786=\"N\",\"\",\"Y\"))","v":""},{"$f":"IF(OR($B786=\"N\",'Enrollment Form'!G793=\"\"),\"\",IF('Enrollment Form'!$B793<>\"Subscriber\",\"\",IF('Enrollment Form'!$G793='Enrollment Form'!$H793,\"Y\",\"N\")))","v":""},{"$f":"IF($B786=\"N\",\"\",IF(AND(COUNTIFS('Enrollment Form'!$H$11:$H$1000,'Enrollment Form'!$H793,'Enrollment Form'!$B$11:$B$1000,'Enrollment Form'!$B793)>1,'Enrollment Form'!$H793<>\"\"),\"N\",\"Y\"))","v":""},{"$f":"IF($B786=\"N\",\"\",IF(LEN('Enrollment Form'!$Y793)=0,\"\",IF(LEN('Enrollment Form'!$Y793)<>5,\"N\",\"Y\")))","v":""},{"$f":"IF($B786=\"N\",\"\",IF(LEN('Enrollment Form'!$AD793=0),\"\",IF(LEN('Enrollment Form'!$AD793)<>5,\"N\",\"Y\")))","v":""},{"$f":"IF($B786=\"N\",\"\",IF(LEN('Enrollment Form'!$BS793=0),\"\",IF(LEN('Enrollment Form'!$BS793)<>5,\"N\",\"Y\")))","v":""},{"$f":"IF($B786=\"N\",\"\",IF(LEN('Enrollment Form'!$AE793)=0,\"\",IF(LEN('Enrollment Form'!$AE793)<>10,\"N\",\"Y\")))","v":""},{"$f":"IF($B786=\"N\",\"\",IF(LEN('Enrollment Form'!$AF793)=0,\"\",IF(LEN('Enrollment Form'!$AF793)<>10,\"N\",\"Y\")))","v":""},{"$f":"IF('Enrollment Form'!$O793<>\"Graded\",\"-\",IF(AND('Enrollment Form'!$O793=\"Graded\",'Enrollment Form'!$AR793<>\"\"),\"Y\",\"N\"))","v":"-"},{"$f":"IF($B786=\"N\",\"\",IF(OR('Enrollment Form'!$B793<>\"Subscriber\",'Enrollment Form'!$C793=\"ROC\"),\"-\",IF(AND('Enrollment Form'!$B793=\"Subscriber\",'Enrollment Form'!$C793=\"Enroll\",'Enrollment Form'!$AJ793<>\"\"),\"Y\",\"N\")))","v":""},{"$f":"IF($B786=\"N\",\"\",IF(OR('Enrollment Form'!$B793<>\"Subscriber\",'Enrollment Form'!$C793=\"ROC\"),\"-\",IF(AND('Enrollment Form'!$B793=\"Subscriber\",'Enrollment Form'!$C793=\"Enroll\",'Enrollment Form'!$AK793<>\"\"),\"Y\",\"N\")))","v":""},{"$f":"IF($B786=\"N\",\"\",IF(OR('Enrollment Form'!$B793<>\"Subscriber\",'Enrollment Form'!$C793=\"ROC\"),\"-\",IF(AND('Enrollment Form'!$B793=\"Subscriber\",'Enrollment Form'!$C793=\"Enroll\",'Enrollment Form'!$AL793<>\"\"),\"Y\",\"N\")))","v":""},{"$f":"IF($B786=\"N\",\"\",IF(OR('Enrollment Form'!$B793<>\"Subscriber\",'Enrollment Form'!$C793=\"ROC\"),\"-\",IF(AND('Enrollment Form'!$B793=\"Subscriber\",'Enrollment Form'!$C793=\"Enroll\",'Enrollment Form'!$AP793<>\"\"),\"Y\",\"N\")))","v":""},{"$f":"IF($B786=\"N\",\"\",IF(OR('Enrollment Form'!$B793<>\"Subscriber\",'Enrollment Form'!$C793=\"ROC\"),\"-\",IF(AND('Enrollment Form'!$B793=\"Subscriber\",'Enrollment Form'!$C793=\"Enroll\",'Enrollment Form'!$AQ793<>\"\"),\"Y\",\"N\")))","v":""},{"$f":"IF($B786=\"N\",\"\",IF(OR('Enrollment Form'!$B793<>\"Subscriber\",'Enrollment Form'!$C793=\"ROC\"),\"-\",IF(AND('Enrollment Form'!$B793=\"Subscriber\",'Enrollment Form'!$C793=\"Enroll\",'Enrollment Form'!$AS793<>\"\"),\"Y\",\"N\")))","v":""},{"$f":"IF($B786=\"N\",\"\",IF($Q786=\"-\",\"-\",IF(AND($Q786=\"Y\",'Enrollment Form'!$AS793=\"No\"),\"-\",IF(AND($Q786=\"Y\",'Enrollment Form'!$AS793=\"Yes\",'Enrollment Form'!$AT793<>\"\"),\"Y\",\"N\"))))","v":""},{"$f":"IF($B786=\"N\",\"\",IF(OR('Enrollment Form'!$B793<>\"Subscriber\",'Enrollment Form'!$C793=\"ROC\"),\"-\",IF(AND('Enrollment Form'!$B793=\"Subscriber\",'Enrollment Form'!$C793=\"Enroll\",'Enrollment Form'!$CV793<>\"\"),\"Y\",\"N\")))","v":""},{"$f":"IF($B786=\"N\",\"\",IF($S786=\"-\",\"-\",IF(AND($S786=\"Y\",'Enrollment Form'!$CV793=\"No\"),\"-\",IF(AND($S786=\"Y\",'Enrollment Form'!$CV793=\"Yes\",'Enrollment Form'!$CW793<>\"\"),\"Y\",\"N\"))))","v":""},{"$f":"IF(OR('Enrollment Form'!$AY793=\"Yes\",'Enrollment Form'!$AY793=\"\"),\"-\",IF(OR(AND('Enrollment Form'!$AY793=\"No\",ISERROR(FIND(\"HMO\",VLOOKUP('Enrollment Form'!G793,'Enrollment Form'!H$11:J$1000,3,FALSE),1))=FALSE,COUNTA('Enrollment Form'!$AZ793:$BC793)=4),AND('Enrollment Form'!$AY793=\"No\",ISERROR(FIND(\"HMO\",VLOOKUP('Enrollment Form'!G793,'Enrollment Form'!H$11:J$1000,3,FALSE),1))=FALSE,COUNTA('Enrollment Form'!$BT793:$BW793)=4)),\"Y\",\"N\"))","v":"-"},{"$f":"IF($B786=\"N\",\"\",IF('Enrollment Form'!$B793=\"Subscriber\",\"-\",IF(COUNTA('Enrollment Form'!$BL793,'Enrollment Form'!$BN793)=2,\"Y\",\"N\")))","v":""},{"$f":"IF($B786=\"N\",\"\",IF(OR('Enrollment Form'!$AX793=\"\",'Enrollment Form'!$AX793=\"No\"),\"-\",IF(AND('Enrollment Form'!$AX793=\"Yes\",COUNTA('Enrollment Form'!$CR793)=1),\"Y\",\"N\")))","v":""},{"$f":"IF(OR('Enrollment Form'!$CR793=\"\",'Enrollment Form'!$CR793=\"No\"),\"-\",IF(COUNTA('Enrollment Form'!$CT793:$CU793)=2,\"Y\",\"N\"))","v":"-"},{"$f":"IF($B786=\"N\",\"\",IF(COUNTIF('Enrollment Form'!$DG793:$DP793,\"Other\")=COUNTA('Enrollment Form'!$DK793,'Enrollment Form'!$DH793,'Enrollment Form'!$DN793,'Enrollment Form'!$DQ793),\"Y\",\"N\"))","v":""},{"$f":"IF($B786=\"N\",\"\",IF(OR('Enrollment Form'!B793<>\"Subscriber\",'Enrollment Form'!C793=\"ROC\",COUNTIF('Enrollment Form'!AV793:AW793,\"Yes\")>=1),\"-\",IF(AND('Enrollment Form'!C793=\"Enroll\",COUNTIF('Enrollment Form'!AV793:AW793,\"No\")=2,'Enrollment Form'!AX793=\"\"),\"N\",\"Y\")))","v":""},{"$f":"IF(OR(B786=\"N\",'Enrollment Form'!B793<>\"Subscriber\",'Enrollment Form'!C793=\"ROC\",'Enrollment Form'!O793<>\"Multiple of Salary\"),\"-\",IF(COUNTA('Enrollment Form'!T793:U793)<2,\"N\",\"Y\"))","v":"-"},{"$f":"IF(B786=\"N\",\"\",IF(OR('Enrollment Form'!C793=\"ROC\",'Enrollment Form'!B793<>\"Subscriber\",'Enrollment Form'!O793=\"Waive\",'Enrollment Form'!O793=\"\"),\"-\",IF('Enrollment Form'!P793=\"\",\"N\",\"Y\")))","v":""},{"$f":"IF($B786=\"N\",\"\",IF(AND('Enrollment Form'!$C793=\"ROC\",'Enrollment Form'!$DR793<>\"\"),\"Y\",IF(AND('Enrollment Form'!$C793=\"ROC\",'Enrollment Form'!$DR793=\"\"),\"N\",IF(AND('Enrollment Form'!$C793=\"Enroll\",'Enrollment Form'!$B793=\"Subscriber\",'Enrollment Form'!$CX793=\"No\",'Enrollment Form'!$DR793=\"\"),\"N\",IF(AND('Enrollment Form'!$C793=\"Enroll\",'Enrollment Form'!$B793=\"Subscriber\",'Enrollment Form'!$CX793=\"Yes\"),\"-\",\"Y\")))))","v":""},{"$f":"IF($B786=\"N\",\"\",IF(AND('Enrollment Form'!$C793=\"ROC\",'Enrollment Form'!$DS793<>\"\"),\"Y\",IF(AND('Enrollment Form'!$C793=\"ROC\",'Enrollment Form'!$DS793=\"\"),\"N\",IF(AND('Enrollment Form'!$C793=\"Enroll\",'Enrollment Form'!$B793=\"Subscriber\",'Enrollment Form'!$CX793=\"No\",'Enrollment Form'!$DS793=\"\"),\"N\",IF(AND('Enrollment Form'!$C793=\"Enroll\",'Enrollment Form'!$B793=\"Subscriber\",'Enrollment Form'!$CX793=\"Yes\"),\"-\",\"Y\")))))","v":""},{"$f":"IF('Enrollment Form'!AH793=\"\",\"\",IF(ISERROR(SEARCH(\".\",'Enrollment Form'!AH793,SEARCH(\"@\",'Enrollment Form'!AH793))),\"N\",\"Y\"))","v":""},{"$f":"IF(OR($B786=\"N\",'Enrollment Form'!$G793=\"\"),\"\",IF('Enrollment Form'!$B793<>\"Subscriber\",\"-\",IF(COUNTIF('Enrollment Form'!$AV793:$AW793,\"Yes\")=2,\"N\",\"Y\")))","v":""},{"$f":"IF(OR('Enrollment Form'!$CJ793=\"\",'Enrollment Form'!$CJ793=\"No\"),\"-\",IF(AND('Enrollment Form'!$CJ793=\"Yes\",'Enrollment Form'!$CK793=\"\"),\"N\",\"Y\"))","v":"-"},{"$f":"IF(OR('Enrollment Form'!$CL793=\"\",'Enrollment Form'!$CL793=\"No\"),\"-\",IF(AND('Enrollment Form'!$CL793=\"Yes\",'Enrollment Form'!$CM793=\"\"),\"N\",\"Y\"))","v":"-"},{"$f":"IF(OR('Enrollment Form'!$CN793=\"\",'Enrollment Form'!$CN793=\"No\"),\"-\",IF(AND('Enrollment Form'!$CN793=\"Yes\",'Enrollment Form'!$CO793=\"\"),\"N\",\"Y\"))","v":"-"},{"$f":"IF(OR('Enrollment Form'!$CN793=\"\",'Enrollment Form'!$CN793=\"No\"),\"-\",IF(AND('Enrollment Form'!$CN793=\"Yes\",'Enrollment Form'!$CP793=\"\"),\"N\",\"Y\"))","v":"-"},{"$f":"IF('Enrollment Form'!B793<>\"Subscriber\",\"-\",IF(AND('Enrollment Form'!B793=\"Subscriber\",'Enrollment Form'!C793=\"Enroll\",'Enrollment Form'!AA793=\"\"),\"N\",\"Y\"))","v":"-"},{"$f":"IF(OR('Enrollment Form'!B793=\"Subscriber\",'Enrollment Form'!B793=\"\"),\"-\",IF('Enrollment Form'!BP793=\"\",\"N\",\"Y\"))","v":"-"},{"$f":"IF('Enrollment Form'!B793<>\"Subscriber\",\"-\",IF(AND('Enrollment Form'!B793=\"Subscriber\",'Enrollment Form'!G793=\"\"),\"N\",\"Y\"))","v":"-"},{"$f":"IF('Enrollment Form'!A793=\"\",\"\",IF('Enrollment Form'!B793=\"Subscriber\",\"-\",IF(AND('Enrollment Form'!B793<>\"Subscriber\",'Enrollment Form'!G793='Enrollment Form'!H793),\"N\",\"Y\")))","v":""},0]
[794,{"$f":"IF('Enrollment Form'!$A794<>\"\",\"Y\",\"N\")","v":"N"},{"$f":"IF(AND('Enrollment Form'!$B794=\"\",'Enrollment Form'!$C794<>\"\"),\"N\",IF($B787=\"N\",\"\",\"Y\"))","v":""},{"$f":"IF(OR($B787=\"N\",'Enrollment Form'!G794=\"\"),\"\",IF('Enrollment Form'!$B794<>\"Subscriber\",\"\",IF('Enrollment Form'!$G794='Enrollment Form'!$H794,\"Y\",\"N\")))","v":""},{"$f":"IF($B787=\"N\",\"\",IF(AND(COUNTIFS('Enrollment Form'!$H$11:$H$1000,'Enrollment Form'!$H794,'Enrollment Form'!$B$11:$B$1000,'Enrollment Form'!$B794)>1,'Enrollment Form'!$H794<>\"\"),\"N\",\"Y\"))","v":""},{"$f":"IF($B787=\"N\",\"\",IF(LEN('Enrollment Form'!$Y794)=0,\"\",IF(LEN('Enrollment Form'!$Y794)<>5,\"N\",\"Y\")))","v":""},{"$f":"IF($B787=\"N\",\"\",IF(LEN('Enrollment Form'!$AD794=0),\"\",IF(LEN('Enrollment Form'!$AD794)<>5,\"N\",\"Y\")))","v":""},{"$f":"IF($B787=\"N\",\"\",IF(LEN('Enrollment Form'!$BS794=0),\"\",IF(LEN('Enrollment Form'!$BS794)<>5,\"N\",\"Y\")))","v":""},{"$f":"IF($B787=\"N\",\"\",IF(LEN('Enrollment Form'!$AE794)=0,\"\",IF(LEN('Enrollment Form'!$AE794)<>10,\"N\",\"Y\")))","v":""},{"$f":"IF($B787=\"N\",\"\",IF(LEN('Enrollment Form'!$AF794)=0,\"\",IF(LEN('Enrollment Form'!$AF794)<>10,\"N\",\"Y\")))","v":""},{"$f":"IF('Enrollment Form'!$O794<>\"Graded\",\"-\",IF(AND('Enrollment Form'!$O794=\"Graded\",'Enrollment Form'!$AR794<>\"\"),\"Y\",\"N\"))","v":"-"},{"$f":"IF($B787=\"N\",\"\",IF(OR('Enrollment Form'!$B794<>\"Subscriber\",'Enrollment Form'!$C794=\"ROC\"),\"-\",IF(AND('Enrollment Form'!$B794=\"Subscriber\",'Enrollment Form'!$C794=\"Enroll\",'Enrollment Form'!$AJ794<>\"\"),\"Y\",\"N\")))","v":""},{"$f":"IF($B787=\"N\",\"\",IF(OR('Enrollment Form'!$B794<>\"Subscriber\",'Enrollment Form'!$C794=\"ROC\"),\"-\",IF(AND('Enrollment Form'!$B794=\"Subscriber\",'Enrollment Form'!$C794=\"Enroll\",'Enrollment Form'!$AK794<>\"\"),\"Y\",\"N\")))","v":""},{"$f":"IF($B787=\"N\",\"\",IF(OR('Enrollment Form'!$B794<>\"Subscriber\",'Enrollment Form'!$C794=\"ROC\"),\"-\",IF(AND('Enrollment Form'!$B794=\"Subscriber\",'Enrollment Form'!$C794=\"Enroll\",'Enrollment Form'!$AL794<>\"\"),\"Y\",\"N\")))","v":""},{"$f":"IF($B787=\"N\",\"\",IF(OR('Enrollment Form'!$B794<>\"Subscriber\",'Enrollment Form'!$C794=\"ROC\"),\"-\",IF(AND('Enrollment Form'!$B794=\"Subscriber\",'Enrollment Form'!$C794=\"Enroll\",'Enrollment Form'!$AP794<>\"\"),\"Y\",\"N\")))","v":""},{"$f":"IF($B787=\"N\",\"\",IF(OR('Enrollment Form'!$B794<>\"Subscriber\",'Enrollment Form'!$C794=\"ROC\"),\"-\",IF(AND('Enrollment Form'!$B794=\"Subscriber\",'Enrollment Form'!$C794=\"Enroll\",'Enrollment Form'!$AQ794<>\"\"),\"Y\",\"N\")))","v":""},{"$f":"IF($B787=\"N\",\"\",IF(OR('Enrollment Form'!$B794<>\"Subscriber\",'Enrollment Form'!$C794=\"ROC\"),\"-\",IF(AND('Enrollment Form'!$B794=\"Subscriber\",'Enrollment Form'!$C794=\"Enroll\",'Enrollment Form'!$AS794<>\"\"),\"Y\",\"N\")))","v":""},{"$f":"IF($B787=\"N\",\"\",IF($Q787=\"-\",\"-\",IF(AND($Q787=\"Y\",'Enrollment Form'!$AS794=\"No\"),\"-\",IF(AND($Q787=\"Y\",'Enrollment Form'!$AS794=\"Yes\",'Enrollment Form'!$AT794<>\"\"),\"Y\",\"N\"))))","v":""},{"$f":"IF($B787=\"N\",\"\",IF(OR('Enrollment Form'!$B794<>\"Subscriber\",'Enrollment Form'!$C794=\"ROC\"),\"-\",IF(AND('Enrollment Form'!$B794=\"Subscriber\",'Enrollment Form'!$C794=\"Enroll\",'Enrollment Form'!$CV794<>\"\"),\"Y\",\"N\")))","v":""},{"$f":"IF($B787=\"N\",\"\",IF($S787=\"-\",\"-\",IF(AND($S787=\"Y\",'Enrollment Form'!$CV794=\"No\"),\"-\",IF(AND($S787=\"Y\",'Enrollment Form'!$CV794=\"Yes\",'Enrollment Form'!$CW794<>\"\"),\"Y\",\"N\"))))","v":""},{"$f":"IF(OR('Enrollment Form'!$AY794=\"Yes\",'Enrollment Form'!$AY794=\"\"),\"-\",IF(OR(AND('Enrollment Form'!$AY794=\"No\",ISERROR(FIND(\"HMO\",VLOOKUP('Enrollment Form'!G794,'Enrollment Form'!H$11:J$1000,3,FALSE),1))=FALSE,COUNTA('Enrollment Form'!$AZ794:$BC794)=4),AND('Enrollment Form'!$AY794=\"No\",ISERROR(FIND(\"HMO\",VLOOKUP('Enrollment Form'!G794,'Enrollment Form'!H$11:J$1000,3,FALSE),1))=FALSE,COUNTA('Enrollment Form'!$BT794:$BW794)=4)),\"Y\",\"N\"))","v":"-"},{"$f":"IF($B787=\"N\",\"\",IF('Enrollment Form'!$B794=\"Subscriber\",\"-\",IF(COUNTA('Enrollment Form'!$BL794,'Enrollment Form'!$BN794)=2,\"Y\",\"N\")))","v":""},{"$f":"IF($B787=\"N\",\"\",IF(OR('Enrollment Form'!$AX794=\"\",'Enrollment Form'!$AX794=\"No\"),\"-\",IF(AND('Enrollment Form'!$AX794=\"Yes\",COUNTA('Enrollment Form'!$CR794)=1),\"Y\",\"N\")))","v":""},{"$f":"IF(OR('Enrollment Form'!$CR794=\"\",'Enrollment Form'!$CR794=\"No\"),\"-\",IF(COUNTA('Enrollment Form'!$CT794:$CU794)=2,\"Y\",\"N\"))","v":"-"},{"$f":"IF($B787=\"N\",\"\",IF(COUNTIF('Enrollment Form'!$DG794:$DP794,\"Other\")=COUNTA('Enrollment Form'!$DK794,'Enrollment Form'!$DH794,'Enrollment Form'!$DN794,'Enrollment Form'!$DQ794),\"Y\",\"N\"))","v":""},{"$f":"IF($B787=\"N\",\"\",IF(OR('Enrollment Form'!B794<>\"Subscriber\",'Enrollment Form'!C794=\"ROC\",COUNTIF('Enrollment Form'!AV794:AW794,\"Yes\")>=1),\"-\",IF(AND('Enrollment Form'!C794=\"Enroll\",COUNTIF('Enrollment Form'!AV794:AW794,\"No\")=2,'Enrollment Form'!AX794=\"\"),\"N\",\"Y\")))","v":""},{"$f":"IF(OR(B787=\"N\",'Enrollment Form'!B794<>\"Subscriber\",'Enrollment Form'!C794=\"ROC\",'Enrollment Form'!O794<>\"Multiple of Salary\"),\"-\",IF(COUNTA('Enrollment Form'!T794:U794)<2,\"N\",\"Y\"))","v":"-"},{"$f":"IF(B787=\"N\",\"\",IF(OR('Enrollment Form'!C794=\"ROC\",'Enrollment Form'!B794<>\"Subscriber\",'Enrollment Form'!O794=\"Waive\",'Enrollment Form'!O794=\"\"),\"-\",IF('Enrollment Form'!P794=\"\",\"N\",\"Y\")))","v":""},{"$f":"IF($B787=\"N\",\"\",IF(AND('Enrollment Form'!$C794=\"ROC\",'Enrollment Form'!$DR794<>\"\"),\"Y\",IF(AND('Enrollment Form'!$C794=\"ROC\",'Enrollment Form'!$DR794=\"\"),\"N\",IF(AND('Enrollment Form'!$C794=\"Enroll\",'Enrollment Form'!$B794=\"Subscriber\",'Enrollment Form'!$CX794=\"No\",'Enrollment Form'!$DR794=\"\"),\"N\",IF(AND('Enrollment Form'!$C794=\"Enroll\",'Enrollment Form'!$B794=\"Subscriber\",'Enrollment Form'!$CX794=\"Yes\"),\"-\",\"Y\")))))","v":""},{"$f":"IF($B787=\"N\",\"\",IF(AND('Enrollment Form'!$C794=\"ROC\",'Enrollment Form'!$DS794<>\"\"),\"Y\",IF(AND('Enrollment Form'!$C794=\"ROC\",'Enrollment Form'!$DS794=\"\"),\"N\",IF(AND('Enrollment Form'!$C794=\"Enroll\",'Enrollment Form'!$B794=\"Subscriber\",'Enrollment Form'!$CX794=\"No\",'Enrollment Form'!$DS794=\"\"),\"N\",IF(AND('Enrollment Form'!$C794=\"Enroll\",'Enrollment Form'!$B794=\"Subscriber\",'Enrollment Form'!$CX794=\"Yes\"),\"-\",\"Y\")))))","v":""},{"$f":"IF('Enrollment Form'!AH794=\"\",\"\",IF(ISERROR(SEARCH(\".\",'Enrollment Form'!AH794,SEARCH(\"@\",'Enrollment Form'!AH794))),\"N\",\"Y\"))","v":""},{"$f":"IF(OR($B787=\"N\",'Enrollment Form'!$G794=\"\"),\"\",IF('Enrollment Form'!$B794<>\"Subscriber\",\"-\",IF(COUNTIF('Enrollment Form'!$AV794:$AW794,\"Yes\")=2,\"N\",\"Y\")))","v":""},{"$f":"IF(OR('Enrollment Form'!$CJ794=\"\",'Enrollment Form'!$CJ794=\"No\"),\"-\",IF(AND('Enrollment Form'!$CJ794=\"Yes\",'Enrollment Form'!$CK794=\"\"),\"N\",\"Y\"))","v":"-"},{"$f":"IF(OR('Enrollment Form'!$CL794=\"\",'Enrollment Form'!$CL794=\"No\"),\"-\",IF(AND('Enrollment Form'!$CL794=\"Yes\",'Enrollment Form'!$CM794=\"\"),\"N\",\"Y\"))","v":"-"},{"$f":"IF(OR('Enrollment Form'!$CN794=\"\",'Enrollment Form'!$CN794=\"No\"),\"-\",IF(AND('Enrollment Form'!$CN794=\"Yes\",'Enrollment Form'!$CO794=\"\"),\"N\",\"Y\"))","v":"-"},{"$f":"IF(OR('Enrollment Form'!$CN794=\"\",'Enrollment Form'!$CN794=\"No\"),\"-\",IF(AND('Enrollment Form'!$CN794=\"Yes\",'Enrollment Form'!$CP794=\"\"),\"N\",\"Y\"))","v":"-"},{"$f":"IF('Enrollment Form'!B794<>\"Subscriber\",\"-\",IF(AND('Enrollment Form'!B794=\"Subscriber\",'Enrollment Form'!C794=\"Enroll\",'Enrollment Form'!AA794=\"\"),\"N\",\"Y\"))","v":"-"},{"$f":"IF(OR('Enrollment Form'!B794=\"Subscriber\",'Enrollment Form'!B794=\"\"),\"-\",IF('Enrollment Form'!BP794=\"\",\"N\",\"Y\"))","v":"-"},{"$f":"IF('Enrollment Form'!B794<>\"Subscriber\",\"-\",IF(AND('Enrollment Form'!B794=\"Subscriber\",'Enrollment Form'!G794=\"\"),\"N\",\"Y\"))","v":"-"},{"$f":"IF('Enrollment Form'!A794=\"\",\"\",IF('Enrollment Form'!B794=\"Subscriber\",\"-\",IF(AND('Enrollment Form'!B794<>\"Subscriber\",'Enrollment Form'!G794='Enrollment Form'!H794),\"N\",\"Y\")))","v":""},0]
[795,{"$f":"IF('Enrollment Form'!$A795<>\"\",\"Y\",\"N\")","v":"N"},{"$f":"IF(AND('Enrollment Form'!$B795=\"\",'Enrollment Form'!$C795<>\"\"),\"N\",IF($B788=\"N\",\"\",\"Y\"))","v":""},{"$f":"IF(OR($B788=\"N\",'Enrollment Form'!G795=\"\"),\"\",IF('Enrollment Form'!$B795<>\"Subscriber\",\"\",IF('Enrollment Form'!$G795='Enrollment Form'!$H795,\"Y\",\"N\")))","v":""},{"$f":"IF($B788=\"N\",\"\",IF(AND(COUNTIFS('Enrollment Form'!$H$11:$H$1000,'Enrollment Form'!$H795,'Enrollment Form'!$B$11:$B$1000,'Enrollment Form'!$B795)>1,'Enrollment Form'!$H795<>\"\"),\"N\",\"Y\"))","v":""},{"$f":"IF($B788=\"N\",\"\",IF(LEN('Enrollment Form'!$Y795)=0,\"\",IF(LEN('Enrollment Form'!$Y795)<>5,\"N\",\"Y\")))","v":""},{"$f":"IF($B788=\"N\",\"\",IF(LEN('Enrollment Form'!$AD795=0),\"\",IF(LEN('Enrollment Form'!$AD795)<>5,\"N\",\"Y\")))","v":""},{"$f":"IF($B788=\"N\",\"\",IF(LEN('Enrollment Form'!$BS795=0),\"\",IF(LEN('Enrollment Form'!$BS795)<>5,\"N\",\"Y\")))","v":""},{"$f":"IF($B788=\"N\",\"\",IF(LEN('Enrollment Form'!$AE795)=0,\"\",IF(LEN('Enrollment Form'!$AE795)<>10,\"N\",\"Y\")))","v":""},{"$f":"IF($B788=\"N\",\"\",IF(LEN('Enrollment Form'!$AF795)=0,\"\",IF(LEN('Enrollment Form'!$AF795)<>10,\"N\",\"Y\")))","v":""},{"$f":"IF('Enrollment Form'!$O795<>\"Graded\",\"-\",IF(AND('Enrollment Form'!$O795=\"Graded\",'Enrollment Form'!$AR795<>\"\"),\"Y\",\"N\"))","v":"-"},{"$f":"IF($B788=\"N\",\"\",IF(OR('Enrollment Form'!$B795<>\"Subscriber\",'Enrollment Form'!$C795=\"ROC\"),\"-\",IF(AND('Enrollment Form'!$B795=\"Subscriber\",'Enrollment Form'!$C795=\"Enroll\",'Enrollment Form'!$AJ795<>\"\"),\"Y\",\"N\")))","v":""},{"$f":"IF($B788=\"N\",\"\",IF(OR('Enrollment Form'!$B795<>\"Subscriber\",'Enrollment Form'!$C795=\"ROC\"),\"-\",IF(AND('Enrollment Form'!$B795=\"Subscriber\",'Enrollment Form'!$C795=\"Enroll\",'Enrollment Form'!$AK795<>\"\"),\"Y\",\"N\")))","v":""},{"$f":"IF($B788=\"N\",\"\",IF(OR('Enrollment Form'!$B795<>\"Subscriber\",'Enrollment Form'!$C795=\"ROC\"),\"-\",IF(AND('Enrollment Form'!$B795=\"Subscriber\",'Enrollment Form'!$C795=\"Enroll\",'Enrollment Form'!$AL795<>\"\"),\"Y\",\"N\")))","v":""},{"$f":"IF($B788=\"N\",\"\",IF(OR('Enrollment Form'!$B795<>\"Subscriber\",'Enrollment Form'!$C795=\"ROC\"),\"-\",IF(AND('Enrollment Form'!$B795=\"Subscriber\",'Enrollment Form'!$C795=\"Enroll\",'Enrollment Form'!$AP795<>\"\"),\"Y\",\"N\")))","v":""},{"$f":"IF($B788=\"N\",\"\",IF(OR('Enrollment Form'!$B795<>\"Subscriber\",'Enrollment Form'!$C795=\"ROC\"),\"-\",IF(AND('Enrollment Form'!$B795=\"Subscriber\",'Enrollment Form'!$C795=\"Enroll\",'Enrollment Form'!$AQ795<>\"\"),\"Y\",\"N\")))","v":""},{"$f":"IF($B788=\"N\",\"\",IF(OR('Enrollment Form'!$B795<>\"Subscriber\",'Enrollment Form'!$C795=\"ROC\"),\"-\",IF(AND('Enrollment Form'!$B795=\"Subscriber\",'Enrollment Form'!$C795=\"Enroll\",'Enrollment Form'!$AS795<>\"\"),\"Y\",\"N\")))","v":""},{"$f":"IF($B788=\"N\",\"\",IF($Q788=\"-\",\"-\",IF(AND($Q788=\"Y\",'Enrollment Form'!$AS795=\"No\"),\"-\",IF(AND($Q788=\"Y\",'Enrollment Form'!$AS795=\"Yes\",'Enrollment Form'!$AT795<>\"\"),\"Y\",\"N\"))))","v":""},{"$f":"IF($B788=\"N\",\"\",IF(OR('Enrollment Form'!$B795<>\"Subscriber\",'Enrollment Form'!$C795=\"ROC\"),\"-\",IF(AND('Enrollment Form'!$B795=\"Subscriber\",'Enrollment Form'!$C795=\"Enroll\",'Enrollment Form'!$CV795<>\"\"),\"Y\",\"N\")))","v":""},{"$f":"IF($B788=\"N\",\"\",IF($S788=\"-\",\"-\",IF(AND($S788=\"Y\",'Enrollment Form'!$CV795=\"No\"),\"-\",IF(AND($S788=\"Y\",'Enrollment Form'!$CV795=\"Yes\",'Enrollment Form'!$CW795<>\"\"),\"Y\",\"N\"))))","v":""},{"$f":"IF(OR('Enrollment Form'!$AY795=\"Yes\",'Enrollment Form'!$AY795=\"\"),\"-\",IF(OR(AND('Enrollment Form'!$AY795=\"No\",ISERROR(FIND(\"HMO\",VLOOKUP('Enrollment Form'!G795,'Enrollment Form'!H$11:J$1000,3,FALSE),1))=FALSE,COUNTA('Enrollment Form'!$AZ795:$BC795)=4),AND('Enrollment Form'!$AY795=\"No\",ISERROR(FIND(\"HMO\",VLOOKUP('Enrollment Form'!G795,'Enrollment Form'!H$11:J$1000,3,FALSE),1))=FALSE,COUNTA('Enrollment Form'!$BT795:$BW795)=4)),\"Y\",\"N\"))","v":"-"},{"$f":"IF($B788=\"N\",\"\",IF('Enrollment Form'!$B795=\"Subscriber\",\"-\",IF(COUNTA('Enrollment Form'!$BL795,'Enrollment Form'!$BN795)=2,\"Y\",\"N\")))","v":""},{"$f":"IF($B788=\"N\",\"\",IF(OR('Enrollment Form'!$AX795=\"\",'Enrollment Form'!$AX795=\"No\"),\"-\",IF(AND('Enrollment Form'!$AX795=\"Yes\",COUNTA('Enrollment Form'!$CR795)=1),\"Y\",\"N\")))","v":""},{"$f":"IF(OR('Enrollment Form'!$CR795=\"\",'Enrollment Form'!$CR795=\"No\"),\"-\",IF(COUNTA('Enrollment Form'!$CT795:$CU795)=2,\"Y\",\"N\"))","v":"-"},{"$f":"IF($B788=\"N\",\"\",IF(COUNTIF('Enrollment Form'!$DG795:$DP795,\"Other\")=COUNTA('Enrollment Form'!$DK795,'Enrollment Form'!$DH795,'Enrollment Form'!$DN795,'Enrollment Form'!$DQ795),\"Y\",\"N\"))","v":""},{"$f":"IF($B788=\"N\",\"\",IF(OR('Enrollment Form'!B795<>\"Subscriber\",'Enrollment Form'!C795=\"ROC\",COUNTIF('Enrollment Form'!AV795:AW795,\"Yes\")>=1),\"-\",IF(AND('Enrollment Form'!C795=\"Enroll\",COUNTIF('Enrollment Form'!AV795:AW795,\"No\")=2,'Enrollment Form'!AX795=\"\"),\"N\",\"Y\")))","v":""},{"$f":"IF(OR(B788=\"N\",'Enrollment Form'!B795<>\"Subscriber\",'Enrollment Form'!C795=\"ROC\",'Enrollment Form'!O795<>\"Multiple of Salary\"),\"-\",IF(COUNTA('Enrollment Form'!T795:U795)<2,\"N\",\"Y\"))","v":"-"},{"$f":"IF(B788=\"N\",\"\",IF(OR('Enrollment Form'!C795=\"ROC\",'Enrollment Form'!B795<>\"Subscriber\",'Enrollment Form'!O795=\"Waive\",'Enrollment Form'!O795=\"\"),\"-\",IF('Enrollment Form'!P795=\"\",\"N\",\"Y\")))","v":""},{"$f":"IF($B788=\"N\",\"\",IF(AND('Enrollment Form'!$C795=\"ROC\",'Enrollment Form'!$DR795<>\"\"),\"Y\",IF(AND('Enrollment Form'!$C795=\"ROC\",'Enrollment Form'!$DR795=\"\"),\"N\",IF(AND('Enrollment Form'!$C795=\"Enroll\",'Enrollment Form'!$B795=\"Subscriber\",'Enrollment Form'!$CX795=\"No\",'Enrollment Form'!$DR795=\"\"),\"N\",IF(AND('Enrollment Form'!$C795=\"Enroll\",'Enrollment Form'!$B795=\"Subscriber\",'Enrollment Form'!$CX795=\"Yes\"),\"-\",\"Y\")))))","v":""},{"$f":"IF($B788=\"N\",\"\",IF(AND('Enrollment Form'!$C795=\"ROC\",'Enrollment Form'!$DS795<>\"\"),\"Y\",IF(AND('Enrollment Form'!$C795=\"ROC\",'Enrollment Form'!$DS795=\"\"),\"N\",IF(AND('Enrollment Form'!$C795=\"Enroll\",'Enrollment Form'!$B795=\"Subscriber\",'Enrollment Form'!$CX795=\"No\",'Enrollment Form'!$DS795=\"\"),\"N\",IF(AND('Enrollment Form'!$C795=\"Enroll\",'Enrollment Form'!$B795=\"Subscriber\",'Enrollment Form'!$CX795=\"Yes\"),\"-\",\"Y\")))))","v":""},{"$f":"IF('Enrollment Form'!AH795=\"\",\"\",IF(ISERROR(SEARCH(\".\",'Enrollment Form'!AH795,SEARCH(\"@\",'Enrollment Form'!AH795))),\"N\",\"Y\"))","v":""},{"$f":"IF(OR($B788=\"N\",'Enrollment Form'!$G795=\"\"),\"\",IF('Enrollment Form'!$B795<>\"Subscriber\",\"-\",IF(COUNTIF('Enrollment Form'!$AV795:$AW795,\"Yes\")=2,\"N\",\"Y\")))","v":""},{"$f":"IF(OR('Enrollment Form'!$CJ795=\"\",'Enrollment Form'!$CJ795=\"No\"),\"-\",IF(AND('Enrollment Form'!$CJ795=\"Yes\",'Enrollment Form'!$CK795=\"\"),\"N\",\"Y\"))","v":"-"},{"$f":"IF(OR('Enrollment Form'!$CL795=\"\",'Enrollment Form'!$CL795=\"No\"),\"-\",IF(AND('Enrollment Form'!$CL795=\"Yes\",'Enrollment Form'!$CM795=\"\"),\"N\",\"Y\"))","v":"-"},{"$f":"IF(OR('Enrollment Form'!$CN795=\"\",'Enrollment Form'!$CN795=\"No\"),\"-\",IF(AND('Enrollment Form'!$CN795=\"Yes\",'Enrollment Form'!$CO795=\"\"),\"N\",\"Y\"))","v":"-"},{"$f":"IF(OR('Enrollment Form'!$CN795=\"\",'Enrollment Form'!$CN795=\"No\"),\"-\",IF(AND('Enrollment Form'!$CN795=\"Yes\",'Enrollment Form'!$CP795=\"\"),\"N\",\"Y\"))","v":"-"},{"$f":"IF('Enrollment Form'!B795<>\"Subscriber\",\"-\",IF(AND('Enrollment Form'!B795=\"Subscriber\",'Enrollment Form'!C795=\"Enroll\",'Enrollment Form'!AA795=\"\"),\"N\",\"Y\"))","v":"-"},{"$f":"IF(OR('Enrollment Form'!B795=\"Subscriber\",'Enrollment Form'!B795=\"\"),\"-\",IF('Enrollment Form'!BP795=\"\",\"N\",\"Y\"))","v":"-"},{"$f":"IF('Enrollment Form'!B795<>\"Subscriber\",\"-\",IF(AND('Enrollment Form'!B795=\"Subscriber\",'Enrollment Form'!G795=\"\"),\"N\",\"Y\"))","v":"-"},{"$f":"IF('Enrollment Form'!A795=\"\",\"\",IF('Enrollment Form'!B795=\"Subscriber\",\"-\",IF(AND('Enrollment Form'!B795<>\"Subscriber\",'Enrollment Form'!G795='Enrollment Form'!H795),\"N\",\"Y\")))","v":""},0]
[796,{"$f":"IF('Enrollment Form'!$A796<>\"\",\"Y\",\"N\")","v":"N"},{"$f":"IF(AND('Enrollment Form'!$B796=\"\",'Enrollment Form'!$C796<>\"\"),\"N\",IF($B789=\"N\",\"\",\"Y\"))","v":""},{"$f":"IF(OR($B789=\"N\",'Enrollment Form'!G796=\"\"),\"\",IF('Enrollment Form'!$B796<>\"Subscriber\",\"\",IF('Enrollment Form'!$G796='Enrollment Form'!$H796,\"Y\",\"N\")))","v":""},{"$f":"IF($B789=\"N\",\"\",IF(AND(COUNTIFS('Enrollment Form'!$H$11:$H$1000,'Enrollment Form'!$H796,'Enrollment Form'!$B$11:$B$1000,'Enrollment Form'!$B796)>1,'Enrollment Form'!$H796<>\"\"),\"N\",\"Y\"))","v":""},{"$f":"IF($B789=\"N\",\"\",IF(LEN('Enrollment Form'!$Y796)=0,\"\",IF(LEN('Enrollment Form'!$Y796)<>5,\"N\",\"Y\")))","v":""},{"$f":"IF($B789=\"N\",\"\",IF(LEN('Enrollment Form'!$AD796=0),\"\",IF(LEN('Enrollment Form'!$AD796)<>5,\"N\",\"Y\")))","v":""},{"$f":"IF($B789=\"N\",\"\",IF(LEN('Enrollment Form'!$BS796=0),\"\",IF(LEN('Enrollment Form'!$BS796)<>5,\"N\",\"Y\")))","v":""},{"$f":"IF($B789=\"N\",\"\",IF(LEN('Enrollment Form'!$AE796)=0,\"\",IF(LEN('Enrollment Form'!$AE796)<>10,\"N\",\"Y\")))","v":""},{"$f":"IF($B789=\"N\",\"\",IF(LEN('Enrollment Form'!$AF796)=0,\"\",IF(LEN('Enrollment Form'!$AF796)<>10,\"N\",\"Y\")))","v":""},{"$f":"IF('Enrollment Form'!$O796<>\"Graded\",\"-\",IF(AND('Enrollment Form'!$O796=\"Graded\",'Enrollment Form'!$AR796<>\"\"),\"Y\",\"N\"))","v":"-"},{"$f":"IF($B789=\"N\",\"\",IF(OR('Enrollment Form'!$B796<>\"Subscriber\",'Enrollment Form'!$C796=\"ROC\"),\"-\",IF(AND('Enrollment Form'!$B796=\"Subscriber\",'Enrollment Form'!$C796=\"Enroll\",'Enrollment Form'!$AJ796<>\"\"),\"Y\",\"N\")))","v":""},{"$f":"IF($B789=\"N\",\"\",IF(OR('Enrollment Form'!$B796<>\"Subscriber\",'Enrollment Form'!$C796=\"ROC\"),\"-\",IF(AND('Enrollment Form'!$B796=\"Subscriber\",'Enrollment Form'!$C796=\"Enroll\",'Enrollment Form'!$AK796<>\"\"),\"Y\",\"N\")))","v":""},{"$f":"IF($B789=\"N\",\"\",IF(OR('Enrollment Form'!$B796<>\"Subscriber\",'Enrollment Form'!$C796=\"ROC\"),\"-\",IF(AND('Enrollment Form'!$B796=\"Subscriber\",'Enrollment Form'!$C796=\"Enroll\",'Enrollment Form'!$AL796<>\"\"),\"Y\",\"N\")))","v":""},{"$f":"IF($B789=\"N\",\"\",IF(OR('Enrollment Form'!$B796<>\"Subscriber\",'Enrollment Form'!$C796=\"ROC\"),\"-\",IF(AND('Enrollment Form'!$B796=\"Subscriber\",'Enrollment Form'!$C796=\"Enroll\",'Enrollment Form'!$AP796<>\"\"),\"Y\",\"N\")))","v":""},{"$f":"IF($B789=\"N\",\"\",IF(OR('Enrollment Form'!$B796<>\"Subscriber\",'Enrollment Form'!$C796=\"ROC\"),\"-\",IF(AND('Enrollment Form'!$B796=\"Subscriber\",'Enrollment Form'!$C796=\"Enroll\",'Enrollment Form'!$AQ796<>\"\"),\"Y\",\"N\")))","v":""},{"$f":"IF($B789=\"N\",\"\",IF(OR('Enrollment Form'!$B796<>\"Subscriber\",'Enrollment Form'!$C796=\"ROC\"),\"-\",IF(AND('Enrollment Form'!$B796=\"Subscriber\",'Enrollment Form'!$C796=\"Enroll\",'Enrollment Form'!$AS796<>\"\"),\"Y\",\"N\")))","v":""},{"$f":"IF($B789=\"N\",\"\",IF($Q789=\"-\",\"-\",IF(AND($Q789=\"Y\",'Enrollment Form'!$AS796=\"No\"),\"-\",IF(AND($Q789=\"Y\",'Enrollment Form'!$AS796=\"Yes\",'Enrollment Form'!$AT796<>\"\"),\"Y\",\"N\"))))","v":""},{"$f":"IF($B789=\"N\",\"\",IF(OR('Enrollment Form'!$B796<>\"Subscriber\",'Enrollment Form'!$C796=\"ROC\"),\"-\",IF(AND('Enrollment Form'!$B796=\"Subscriber\",'Enrollment Form'!$C796=\"Enroll\",'Enrollment Form'!$CV796<>\"\"),\"Y\",\"N\")))","v":""},{"$f":"IF($B789=\"N\",\"\",IF($S789=\"-\",\"-\",IF(AND($S789=\"Y\",'Enrollment Form'!$CV796=\"No\"),\"-\",IF(AND($S789=\"Y\",'Enrollment Form'!$CV796=\"Yes\",'Enrollment Form'!$CW796<>\"\"),\"Y\",\"N\"))))","v":""},{"$f":"IF(OR('Enrollment Form'!$AY796=\"Yes\",'Enrollment Form'!$AY796=\"\"),\"-\",IF(OR(AND('Enrollment Form'!$AY796=\"No\",ISERROR(FIND(\"HMO\",VLOOKUP('Enrollment Form'!G796,'Enrollment Form'!H$11:J$1000,3,FALSE),1))=FALSE,COUNTA('Enrollment Form'!$AZ796:$BC796)=4),AND('Enrollment Form'!$AY796=\"No\",ISERROR(FIND(\"HMO\",VLOOKUP('Enrollment Form'!G796,'Enrollment Form'!H$11:J$1000,3,FALSE),1))=FALSE,COUNTA('Enrollment Form'!$BT796:$BW796)=4)),\"Y\",\"N\"))","v":"-"},{"$f":"IF($B789=\"N\",\"\",IF('Enrollment Form'!$B796=\"Subscriber\",\"-\",IF(COUNTA('Enrollment Form'!$BL796,'Enrollment Form'!$BN796)=2,\"Y\",\"N\")))","v":""},{"$f":"IF($B789=\"N\",\"\",IF(OR('Enrollment Form'!$AX796=\"\",'Enrollment Form'!$AX796=\"No\"),\"-\",IF(AND('Enrollment Form'!$AX796=\"Yes\",COUNTA('Enrollment Form'!$CR796)=1),\"Y\",\"N\")))","v":""},{"$f":"IF(OR('Enrollment Form'!$CR796=\"\",'Enrollment Form'!$CR796=\"No\"),\"-\",IF(COUNTA('Enrollment Form'!$CT796:$CU796)=2,\"Y\",\"N\"))","v":"-"},{"$f":"IF($B789=\"N\",\"\",IF(COUNTIF('Enrollment Form'!$DG796:$DP796,\"Other\")=COUNTA('Enrollment Form'!$DK796,'Enrollment Form'!$DH796,'Enrollment Form'!$DN796,'Enrollment Form'!$DQ796),\"Y\",\"N\"))","v":""},{"$f":"IF($B789=\"N\",\"\",IF(OR('Enrollment Form'!B796<>\"Subscriber\",'Enrollment Form'!C796=\"ROC\",COUNTIF('Enrollment Form'!AV796:AW796,\"Yes\")>=1),\"-\",IF(AND('Enrollment Form'!C796=\"Enroll\",COUNTIF('Enrollment Form'!AV796:AW796,\"No\")=2,'Enrollment Form'!AX796=\"\"),\"N\",\"Y\")))","v":""},{"$f":"IF(OR(B789=\"N\",'Enrollment Form'!B796<>\"Subscriber\",'Enrollment Form'!C796=\"ROC\",'Enrollment Form'!O796<>\"Multiple of Salary\"),\"-\",IF(COUNTA('Enrollment Form'!T796:U796)<2,\"N\",\"Y\"))","v":"-"},{"$f":"IF(B789=\"N\",\"\",IF(OR('Enrollment Form'!C796=\"ROC\",'Enrollment Form'!B796<>\"Subscriber\",'Enrollment Form'!O796=\"Waive\",'Enrollment Form'!O796=\"\"),\"-\",IF('Enrollment Form'!P796=\"\",\"N\",\"Y\")))","v":""},{"$f":"IF($B789=\"N\",\"\",IF(AND('Enrollment Form'!$C796=\"ROC\",'Enrollment Form'!$DR796<>\"\"),\"Y\",IF(AND('Enrollment Form'!$C796=\"ROC\",'Enrollment Form'!$DR796=\"\"),\"N\",IF(AND('Enrollment Form'!$C796=\"Enroll\",'Enrollment Form'!$B796=\"Subscriber\",'Enrollment Form'!$CX796=\"No\",'Enrollment Form'!$DR796=\"\"),\"N\",IF(AND('Enrollment Form'!$C796=\"Enroll\",'Enrollment Form'!$B796=\"Subscriber\",'Enrollment Form'!$CX796=\"Yes\"),\"-\",\"Y\")))))","v":""},{"$f":"IF($B789=\"N\",\"\",IF(AND('Enrollment Form'!$C796=\"ROC\",'Enrollment Form'!$DS796<>\"\"),\"Y\",IF(AND('Enrollment Form'!$C796=\"ROC\",'Enrollment Form'!$DS796=\"\"),\"N\",IF(AND('Enrollment Form'!$C796=\"Enroll\",'Enrollment Form'!$B796=\"Subscriber\",'Enrollment Form'!$CX796=\"No\",'Enrollment Form'!$DS796=\"\"),\"N\",IF(AND('Enrollment Form'!$C796=\"Enroll\",'Enrollment Form'!$B796=\"Subscriber\",'Enrollment Form'!$CX796=\"Yes\"),\"-\",\"Y\")))))","v":""},{"$f":"IF('Enrollment Form'!AH796=\"\",\"\",IF(ISERROR(SEARCH(\".\",'Enrollment Form'!AH796,SEARCH(\"@\",'Enrollment Form'!AH796))),\"N\",\"Y\"))","v":""},{"$f":"IF(OR($B789=\"N\",'Enrollment Form'!$G796=\"\"),\"\",IF('Enrollment Form'!$B796<>\"Subscriber\",\"-\",IF(COUNTIF('Enrollment Form'!$AV796:$AW796,\"Yes\")=2,\"N\",\"Y\")))","v":""},{"$f":"IF(OR('Enrollment Form'!$CJ796=\"\",'Enrollment Form'!$CJ796=\"No\"),\"-\",IF(AND('Enrollment Form'!$CJ796=\"Yes\",'Enrollment Form'!$CK796=\"\"),\"N\",\"Y\"))","v":"-"},{"$f":"IF(OR('Enrollment Form'!$CL796=\"\",'Enrollment Form'!$CL796=\"No\"),\"-\",IF(AND('Enrollment Form'!$CL796=\"Yes\",'Enrollment Form'!$CM796=\"\"),\"N\",\"Y\"))","v":"-"},{"$f":"IF(OR('Enrollment Form'!$CN796=\"\",'Enrollment Form'!$CN796=\"No\"),\"-\",IF(AND('Enrollment Form'!$CN796=\"Yes\",'Enrollment Form'!$CO796=\"\"),\"N\",\"Y\"))","v":"-"},{"$f":"IF(OR('Enrollment Form'!$CN796=\"\",'Enrollment Form'!$CN796=\"No\"),\"-\",IF(AND('Enrollment Form'!$CN796=\"Yes\",'Enrollment Form'!$CP796=\"\"),\"N\",\"Y\"))","v":"-"},{"$f":"IF('Enrollment Form'!B796<>\"Subscriber\",\"-\",IF(AND('Enrollment Form'!B796=\"Subscriber\",'Enrollment Form'!C796=\"Enroll\",'Enrollment Form'!AA796=\"\"),\"N\",\"Y\"))","v":"-"},{"$f":"IF(OR('Enrollment Form'!B796=\"Subscriber\",'Enrollment Form'!B796=\"\"),\"-\",IF('Enrollment Form'!BP796=\"\",\"N\",\"Y\"))","v":"-"},{"$f":"IF('Enrollment Form'!B796<>\"Subscriber\",\"-\",IF(AND('Enrollment Form'!B796=\"Subscriber\",'Enrollment Form'!G796=\"\"),\"N\",\"Y\"))","v":"-"},{"$f":"IF('Enrollment Form'!A796=\"\",\"\",IF('Enrollment Form'!B796=\"Subscriber\",\"-\",IF(AND('Enrollment Form'!B796<>\"Subscriber\",'Enrollment Form'!G796='Enrollment Form'!H796),\"N\",\"Y\")))","v":""},0]
[797,{"$f":"IF('Enrollment Form'!$A797<>\"\",\"Y\",\"N\")","v":"N"},{"$f":"IF(AND('Enrollment Form'!$B797=\"\",'Enrollment Form'!$C797<>\"\"),\"N\",IF($B790=\"N\",\"\",\"Y\"))","v":""},{"$f":"IF(OR($B790=\"N\",'Enrollment Form'!G797=\"\"),\"\",IF('Enrollment Form'!$B797<>\"Subscriber\",\"\",IF('Enrollment Form'!$G797='Enrollment Form'!$H797,\"Y\",\"N\")))","v":""},{"$f":"IF($B790=\"N\",\"\",IF(AND(COUNTIFS('Enrollment Form'!$H$11:$H$1000,'Enrollment Form'!$H797,'Enrollment Form'!$B$11:$B$1000,'Enrollment Form'!$B797)>1,'Enrollment Form'!$H797<>\"\"),\"N\",\"Y\"))","v":""},{"$f":"IF($B790=\"N\",\"\",IF(LEN('Enrollment Form'!$Y797)=0,\"\",IF(LEN('Enrollment Form'!$Y797)<>5,\"N\",\"Y\")))","v":""},{"$f":"IF($B790=\"N\",\"\",IF(LEN('Enrollment Form'!$AD797=0),\"\",IF(LEN('Enrollment Form'!$AD797)<>5,\"N\",\"Y\")))","v":""},{"$f":"IF($B790=\"N\",\"\",IF(LEN('Enrollment Form'!$BS797=0),\"\",IF(LEN('Enrollment Form'!$BS797)<>5,\"N\",\"Y\")))","v":""},{"$f":"IF($B790=\"N\",\"\",IF(LEN('Enrollment Form'!$AE797)=0,\"\",IF(LEN('Enrollment Form'!$AE797)<>10,\"N\",\"Y\")))","v":""},{"$f":"IF($B790=\"N\",\"\",IF(LEN('Enrollment Form'!$AF797)=0,\"\",IF(LEN('Enrollment Form'!$AF797)<>10,\"N\",\"Y\")))","v":""},{"$f":"IF('Enrollment Form'!$O797<>\"Graded\",\"-\",IF(AND('Enrollment Form'!$O797=\"Graded\",'Enrollment Form'!$AR797<>\"\"),\"Y\",\"N\"))","v":"-"},{"$f":"IF($B790=\"N\",\"\",IF(OR('Enrollment Form'!$B797<>\"Subscriber\",'Enrollment Form'!$C797=\"ROC\"),\"-\",IF(AND('Enrollment Form'!$B797=\"Subscriber\",'Enrollment Form'!$C797=\"Enroll\",'Enrollment Form'!$AJ797<>\"\"),\"Y\",\"N\")))","v":""},{"$f":"IF($B790=\"N\",\"\",IF(OR('Enrollment Form'!$B797<>\"Subscriber\",'Enrollment Form'!$C797=\"ROC\"),\"-\",IF(AND('Enrollment Form'!$B797=\"Subscriber\",'Enrollment Form'!$C797=\"Enroll\",'Enrollment Form'!$AK797<>\"\"),\"Y\",\"N\")))","v":""},{"$f":"IF($B790=\"N\",\"\",IF(OR('Enrollment Form'!$B797<>\"Subscriber\",'Enrollment Form'!$C797=\"ROC\"),\"-\",IF(AND('Enrollment Form'!$B797=\"Subscriber\",'Enrollment Form'!$C797=\"Enroll\",'Enrollment Form'!$AL797<>\"\"),\"Y\",\"N\")))","v":""},{"$f":"IF($B790=\"N\",\"\",IF(OR('Enrollment Form'!$B797<>\"Subscriber\",'Enrollment Form'!$C797=\"ROC\"),\"-\",IF(AND('Enrollment Form'!$B797=\"Subscriber\",'Enrollment Form'!$C797=\"Enroll\",'Enrollment Form'!$AP797<>\"\"),\"Y\",\"N\")))","v":""},{"$f":"IF($B790=\"N\",\"\",IF(OR('Enrollment Form'!$B797<>\"Subscriber\",'Enrollment Form'!$C797=\"ROC\"),\"-\",IF(AND('Enrollment Form'!$B797=\"Subscriber\",'Enrollment Form'!$C797=\"Enroll\",'Enrollment Form'!$AQ797<>\"\"),\"Y\",\"N\")))","v":""},{"$f":"IF($B790=\"N\",\"\",IF(OR('Enrollment Form'!$B797<>\"Subscriber\",'Enrollment Form'!$C797=\"ROC\"),\"-\",IF(AND('Enrollment Form'!$B797=\"Subscriber\",'Enrollment Form'!$C797=\"Enroll\",'Enrollment Form'!$AS797<>\"\"),\"Y\",\"N\")))","v":""},{"$f":"IF($B790=\"N\",\"\",IF($Q790=\"-\",\"-\",IF(AND($Q790=\"Y\",'Enrollment Form'!$AS797=\"No\"),\"-\",IF(AND($Q790=\"Y\",'Enrollment Form'!$AS797=\"Yes\",'Enrollment Form'!$AT797<>\"\"),\"Y\",\"N\"))))","v":""},{"$f":"IF($B790=\"N\",\"\",IF(OR('Enrollment Form'!$B797<>\"Subscriber\",'Enrollment Form'!$C797=\"ROC\"),\"-\",IF(AND('Enrollment Form'!$B797=\"Subscriber\",'Enrollment Form'!$C797=\"Enroll\",'Enrollment Form'!$CV797<>\"\"),\"Y\",\"N\")))","v":""},{"$f":"IF($B790=\"N\",\"\",IF($S790=\"-\",\"-\",IF(AND($S790=\"Y\",'Enrollment Form'!$CV797=\"No\"),\"-\",IF(AND($S790=\"Y\",'Enrollment Form'!$CV797=\"Yes\",'Enrollment Form'!$CW797<>\"\"),\"Y\",\"N\"))))","v":""},{"$f":"IF(OR('Enrollment Form'!$AY797=\"Yes\",'Enrollment Form'!$AY797=\"\"),\"-\",IF(OR(AND('Enrollment Form'!$AY797=\"No\",ISERROR(FIND(\"HMO\",VLOOKUP('Enrollment Form'!G797,'Enrollment Form'!H$11:J$1000,3,FALSE),1))=FALSE,COUNTA('Enrollment Form'!$AZ797:$BC797)=4),AND('Enrollment Form'!$AY797=\"No\",ISERROR(FIND(\"HMO\",VLOOKUP('Enrollment Form'!G797,'Enrollment Form'!H$11:J$1000,3,FALSE),1))=FALSE,COUNTA('Enrollment Form'!$BT797:$BW797)=4)),\"Y\",\"N\"))","v":"-"},{"$f":"IF($B790=\"N\",\"\",IF('Enrollment Form'!$B797=\"Subscriber\",\"-\",IF(COUNTA('Enrollment Form'!$BL797,'Enrollment Form'!$BN797)=2,\"Y\",\"N\")))","v":""},{"$f":"IF($B790=\"N\",\"\",IF(OR('Enrollment Form'!$AX797=\"\",'Enrollment Form'!$AX797=\"No\"),\"-\",IF(AND('Enrollment Form'!$AX797=\"Yes\",COUNTA('Enrollment Form'!$CR797)=1),\"Y\",\"N\")))","v":""},{"$f":"IF(OR('Enrollment Form'!$CR797=\"\",'Enrollment Form'!$CR797=\"No\"),\"-\",IF(COUNTA('Enrollment Form'!$CT797:$CU797)=2,\"Y\",\"N\"))","v":"-"},{"$f":"IF($B790=\"N\",\"\",IF(COUNTIF('Enrollment Form'!$DG797:$DP797,\"Other\")=COUNTA('Enrollment Form'!$DK797,'Enrollment Form'!$DH797,'Enrollment Form'!$DN797,'Enrollment Form'!$DQ797),\"Y\",\"N\"))","v":""},{"$f":"IF($B790=\"N\",\"\",IF(OR('Enrollment Form'!B797<>\"Subscriber\",'Enrollment Form'!C797=\"ROC\",COUNTIF('Enrollment Form'!AV797:AW797,\"Yes\")>=1),\"-\",IF(AND('Enrollment Form'!C797=\"Enroll\",COUNTIF('Enrollment Form'!AV797:AW797,\"No\")=2,'Enrollment Form'!AX797=\"\"),\"N\",\"Y\")))","v":""},{"$f":"IF(OR(B790=\"N\",'Enrollment Form'!B797<>\"Subscriber\",'Enrollment Form'!C797=\"ROC\",'Enrollment Form'!O797<>\"Multiple of Salary\"),\"-\",IF(COUNTA('Enrollment Form'!T797:U797)<2,\"N\",\"Y\"))","v":"-"},{"$f":"IF(B790=\"N\",\"\",IF(OR('Enrollment Form'!C797=\"ROC\",'Enrollment Form'!B797<>\"Subscriber\",'Enrollment Form'!O797=\"Waive\",'Enrollment Form'!O797=\"\"),\"-\",IF('Enrollment Form'!P797=\"\",\"N\",\"Y\")))","v":""},{"$f":"IF($B790=\"N\",\"\",IF(AND('Enrollment Form'!$C797=\"ROC\",'Enrollment Form'!$DR797<>\"\"),\"Y\",IF(AND('Enrollment Form'!$C797=\"ROC\",'Enrollment Form'!$DR797=\"\"),\"N\",IF(AND('Enrollment Form'!$C797=\"Enroll\",'Enrollment Form'!$B797=\"Subscriber\",'Enrollment Form'!$CX797=\"No\",'Enrollment Form'!$DR797=\"\"),\"N\",IF(AND('Enrollment Form'!$C797=\"Enroll\",'Enrollment Form'!$B797=\"Subscriber\",'Enrollment Form'!$CX797=\"Yes\"),\"-\",\"Y\")))))","v":""},{"$f":"IF($B790=\"N\",\"\",IF(AND('Enrollment Form'!$C797=\"ROC\",'Enrollment Form'!$DS797<>\"\"),\"Y\",IF(AND('Enrollment Form'!$C797=\"ROC\",'Enrollment Form'!$DS797=\"\"),\"N\",IF(AND('Enrollment Form'!$C797=\"Enroll\",'Enrollment Form'!$B797=\"Subscriber\",'Enrollment Form'!$CX797=\"No\",'Enrollment Form'!$DS797=\"\"),\"N\",IF(AND('Enrollment Form'!$C797=\"Enroll\",'Enrollment Form'!$B797=\"Subscriber\",'Enrollment Form'!$CX797=\"Yes\"),\"-\",\"Y\")))))","v":""},{"$f":"IF('Enrollment Form'!AH797=\"\",\"\",IF(ISERROR(SEARCH(\".\",'Enrollment Form'!AH797,SEARCH(\"@\",'Enrollment Form'!AH797))),\"N\",\"Y\"))","v":""},{"$f":"IF(OR($B790=\"N\",'Enrollment Form'!$G797=\"\"),\"\",IF('Enrollment Form'!$B797<>\"Subscriber\",\"-\",IF(COUNTIF('Enrollment Form'!$AV797:$AW797,\"Yes\")=2,\"N\",\"Y\")))","v":""},{"$f":"IF(OR('Enrollment Form'!$CJ797=\"\",'Enrollment Form'!$CJ797=\"No\"),\"-\",IF(AND('Enrollment Form'!$CJ797=\"Yes\",'Enrollment Form'!$CK797=\"\"),\"N\",\"Y\"))","v":"-"},{"$f":"IF(OR('Enrollment Form'!$CL797=\"\",'Enrollment Form'!$CL797=\"No\"),\"-\",IF(AND('Enrollment Form'!$CL797=\"Yes\",'Enrollment Form'!$CM797=\"\"),\"N\",\"Y\"))","v":"-"},{"$f":"IF(OR('Enrollment Form'!$CN797=\"\",'Enrollment Form'!$CN797=\"No\"),\"-\",IF(AND('Enrollment Form'!$CN797=\"Yes\",'Enrollment Form'!$CO797=\"\"),\"N\",\"Y\"))","v":"-"},{"$f":"IF(OR('Enrollment Form'!$CN797=\"\",'Enrollment Form'!$CN797=\"No\"),\"-\",IF(AND('Enrollment Form'!$CN797=\"Yes\",'Enrollment Form'!$CP797=\"\"),\"N\",\"Y\"))","v":"-"},{"$f":"IF('Enrollment Form'!B797<>\"Subscriber\",\"-\",IF(AND('Enrollment Form'!B797=\"Subscriber\",'Enrollment Form'!C797=\"Enroll\",'Enrollment Form'!AA797=\"\"),\"N\",\"Y\"))","v":"-"},{"$f":"IF(OR('Enrollment Form'!B797=\"Subscriber\",'Enrollment Form'!B797=\"\"),\"-\",IF('Enrollment Form'!BP797=\"\",\"N\",\"Y\"))","v":"-"},{"$f":"IF('Enrollment Form'!B797<>\"Subscriber\",\"-\",IF(AND('Enrollment Form'!B797=\"Subscriber\",'Enrollment Form'!G797=\"\"),\"N\",\"Y\"))","v":"-"},{"$f":"IF('Enrollment Form'!A797=\"\",\"\",IF('Enrollment Form'!B797=\"Subscriber\",\"-\",IF(AND('Enrollment Form'!B797<>\"Subscriber\",'Enrollment Form'!G797='Enrollment Form'!H797),\"N\",\"Y\")))","v":""},0]
[798,{"$f":"IF('Enrollment Form'!$A798<>\"\",\"Y\",\"N\")","v":"N"},{"$f":"IF(AND('Enrollment Form'!$B798=\"\",'Enrollment Form'!$C798<>\"\"),\"N\",IF($B791=\"N\",\"\",\"Y\"))","v":""},{"$f":"IF(OR($B791=\"N\",'Enrollment Form'!G798=\"\"),\"\",IF('Enrollment Form'!$B798<>\"Subscriber\",\"\",IF('Enrollment Form'!$G798='Enrollment Form'!$H798,\"Y\",\"N\")))","v":""},{"$f":"IF($B791=\"N\",\"\",IF(AND(COUNTIFS('Enrollment Form'!$H$11:$H$1000,'Enrollment Form'!$H798,'Enrollment Form'!$B$11:$B$1000,'Enrollment Form'!$B798)>1,'Enrollment Form'!$H798<>\"\"),\"N\",\"Y\"))","v":""},{"$f":"IF($B791=\"N\",\"\",IF(LEN('Enrollment Form'!$Y798)=0,\"\",IF(LEN('Enrollment Form'!$Y798)<>5,\"N\",\"Y\")))","v":""},{"$f":"IF($B791=\"N\",\"\",IF(LEN('Enrollment Form'!$AD798=0),\"\",IF(LEN('Enrollment Form'!$AD798)<>5,\"N\",\"Y\")))","v":""},{"$f":"IF($B791=\"N\",\"\",IF(LEN('Enrollment Form'!$BS798=0),\"\",IF(LEN('Enrollment Form'!$BS798)<>5,\"N\",\"Y\")))","v":""},{"$f":"IF($B791=\"N\",\"\",IF(LEN('Enrollment Form'!$AE798)=0,\"\",IF(LEN('Enrollment Form'!$AE798)<>10,\"N\",\"Y\")))","v":""},{"$f":"IF($B791=\"N\",\"\",IF(LEN('Enrollment Form'!$AF798)=0,\"\",IF(LEN('Enrollment Form'!$AF798)<>10,\"N\",\"Y\")))","v":""},{"$f":"IF('Enrollment Form'!$O798<>\"Graded\",\"-\",IF(AND('Enrollment Form'!$O798=\"Graded\",'Enrollment Form'!$AR798<>\"\"),\"Y\",\"N\"))","v":"-"},{"$f":"IF($B791=\"N\",\"\",IF(OR('Enrollment Form'!$B798<>\"Subscriber\",'Enrollment Form'!$C798=\"ROC\"),\"-\",IF(AND('Enrollment Form'!$B798=\"Subscriber\",'Enrollment Form'!$C798=\"Enroll\",'Enrollment Form'!$AJ798<>\"\"),\"Y\",\"N\")))","v":""},{"$f":"IF($B791=\"N\",\"\",IF(OR('Enrollment Form'!$B798<>\"Subscriber\",'Enrollment Form'!$C798=\"ROC\"),\"-\",IF(AND('Enrollment Form'!$B798=\"Subscriber\",'Enrollment Form'!$C798=\"Enroll\",'Enrollment Form'!$AK798<>\"\"),\"Y\",\"N\")))","v":""},{"$f":"IF($B791=\"N\",\"\",IF(OR('Enrollment Form'!$B798<>\"Subscriber\",'Enrollment Form'!$C798=\"ROC\"),\"-\",IF(AND('Enrollment Form'!$B798=\"Subscriber\",'Enrollment Form'!$C798=\"Enroll\",'Enrollment Form'!$AL798<>\"\"),\"Y\",\"N\")))","v":""},{"$f":"IF($B791=\"N\",\"\",IF(OR('Enrollment Form'!$B798<>\"Subscriber\",'Enrollment Form'!$C798=\"ROC\"),\"-\",IF(AND('Enrollment Form'!$B798=\"Subscriber\",'Enrollment Form'!$C798=\"Enroll\",'Enrollment Form'!$AP798<>\"\"),\"Y\",\"N\")))","v":""},{"$f":"IF($B791=\"N\",\"\",IF(OR('Enrollment Form'!$B798<>\"Subscriber\",'Enrollment Form'!$C798=\"ROC\"),\"-\",IF(AND('Enrollment Form'!$B798=\"Subscriber\",'Enrollment Form'!$C798=\"Enroll\",'Enrollment Form'!$AQ798<>\"\"),\"Y\",\"N\")))","v":""},{"$f":"IF($B791=\"N\",\"\",IF(OR('Enrollment Form'!$B798<>\"Subscriber\",'Enrollment Form'!$C798=\"ROC\"),\"-\",IF(AND('Enrollment Form'!$B798=\"Subscriber\",'Enrollment Form'!$C798=\"Enroll\",'Enrollment Form'!$AS798<>\"\"),\"Y\",\"N\")))","v":""},{"$f":"IF($B791=\"N\",\"\",IF($Q791=\"-\",\"-\",IF(AND($Q791=\"Y\",'Enrollment Form'!$AS798=\"No\"),\"-\",IF(AND($Q791=\"Y\",'Enrollment Form'!$AS798=\"Yes\",'Enrollment Form'!$AT798<>\"\"),\"Y\",\"N\"))))","v":""},{"$f":"IF($B791=\"N\",\"\",IF(OR('Enrollment Form'!$B798<>\"Subscriber\",'Enrollment Form'!$C798=\"ROC\"),\"-\",IF(AND('Enrollment Form'!$B798=\"Subscriber\",'Enrollment Form'!$C798=\"Enroll\",'Enrollment Form'!$CV798<>\"\"),\"Y\",\"N\")))","v":""},{"$f":"IF($B791=\"N\",\"\",IF($S791=\"-\",\"-\",IF(AND($S791=\"Y\",'Enrollment Form'!$CV798=\"No\"),\"-\",IF(AND($S791=\"Y\",'Enrollment Form'!$CV798=\"Yes\",'Enrollment Form'!$CW798<>\"\"),\"Y\",\"N\"))))","v":""},{"$f":"IF(OR('Enrollment Form'!$AY798=\"Yes\",'Enrollment Form'!$AY798=\"\"),\"-\",IF(OR(AND('Enrollment Form'!$AY798=\"No\",ISERROR(FIND(\"HMO\",VLOOKUP('Enrollment Form'!G798,'Enrollment Form'!H$11:J$1000,3,FALSE),1))=FALSE,COUNTA('Enrollment Form'!$AZ798:$BC798)=4),AND('Enrollment Form'!$AY798=\"No\",ISERROR(FIND(\"HMO\",VLOOKUP('Enrollment Form'!G798,'Enrollment Form'!H$11:J$1000,3,FALSE),1))=FALSE,COUNTA('Enrollment Form'!$BT798:$BW798)=4)),\"Y\",\"N\"))","v":"-"},{"$f":"IF($B791=\"N\",\"\",IF('Enrollment Form'!$B798=\"Subscriber\",\"-\",IF(COUNTA('Enrollment Form'!$BL798,'Enrollment Form'!$BN798)=2,\"Y\",\"N\")))","v":""},{"$f":"IF($B791=\"N\",\"\",IF(OR('Enrollment Form'!$AX798=\"\",'Enrollment Form'!$AX798=\"No\"),\"-\",IF(AND('Enrollment Form'!$AX798=\"Yes\",COUNTA('Enrollment Form'!$CR798)=1),\"Y\",\"N\")))","v":""},{"$f":"IF(OR('Enrollment Form'!$CR798=\"\",'Enrollment Form'!$CR798=\"No\"),\"-\",IF(COUNTA('Enrollment Form'!$CT798:$CU798)=2,\"Y\",\"N\"))","v":"-"},{"$f":"IF($B791=\"N\",\"\",IF(COUNTIF('Enrollment Form'!$DG798:$DP798,\"Other\")=COUNTA('Enrollment Form'!$DK798,'Enrollment Form'!$DH798,'Enrollment Form'!$DN798,'Enrollment Form'!$DQ798),\"Y\",\"N\"))","v":""},{"$f":"IF($B791=\"N\",\"\",IF(OR('Enrollment Form'!B798<>\"Subscriber\",'Enrollment Form'!C798=\"ROC\",COUNTIF('Enrollment Form'!AV798:AW798,\"Yes\")>=1),\"-\",IF(AND('Enrollment Form'!C798=\"Enroll\",COUNTIF('Enrollment Form'!AV798:AW798,\"No\")=2,'Enrollment Form'!AX798=\"\"),\"N\",\"Y\")))","v":""},{"$f":"IF(OR(B791=\"N\",'Enrollment Form'!B798<>\"Subscriber\",'Enrollment Form'!C798=\"ROC\",'Enrollment Form'!O798<>\"Multiple of Salary\"),\"-\",IF(COUNTA('Enrollment Form'!T798:U798)<2,\"N\",\"Y\"))","v":"-"},{"$f":"IF(B791=\"N\",\"\",IF(OR('Enrollment Form'!C798=\"ROC\",'Enrollment Form'!B798<>\"Subscriber\",'Enrollment Form'!O798=\"Waive\",'Enrollment Form'!O798=\"\"),\"-\",IF('Enrollment Form'!P798=\"\",\"N\",\"Y\")))","v":""},{"$f":"IF($B791=\"N\",\"\",IF(AND('Enrollment Form'!$C798=\"ROC\",'Enrollment Form'!$DR798<>\"\"),\"Y\",IF(AND('Enrollment Form'!$C798=\"ROC\",'Enrollment Form'!$DR798=\"\"),\"N\",IF(AND('Enrollment Form'!$C798=\"Enroll\",'Enrollment Form'!$B798=\"Subscriber\",'Enrollment Form'!$CX798=\"No\",'Enrollment Form'!$DR798=\"\"),\"N\",IF(AND('Enrollment Form'!$C798=\"Enroll\",'Enrollment Form'!$B798=\"Subscriber\",'Enrollment Form'!$CX798=\"Yes\"),\"-\",\"Y\")))))","v":""},{"$f":"IF($B791=\"N\",\"\",IF(AND('Enrollment Form'!$C798=\"ROC\",'Enrollment Form'!$DS798<>\"\"),\"Y\",IF(AND('Enrollment Form'!$C798=\"ROC\",'Enrollment Form'!$DS798=\"\"),\"N\",IF(AND('Enrollment Form'!$C798=\"Enroll\",'Enrollment Form'!$B798=\"Subscriber\",'Enrollment Form'!$CX798=\"No\",'Enrollment Form'!$DS798=\"\"),\"N\",IF(AND('Enrollment Form'!$C798=\"Enroll\",'Enrollment Form'!$B798=\"Subscriber\",'Enrollment Form'!$CX798=\"Yes\"),\"-\",\"Y\")))))","v":""},{"$f":"IF('Enrollment Form'!AH798=\"\",\"\",IF(ISERROR(SEARCH(\".\",'Enrollment Form'!AH798,SEARCH(\"@\",'Enrollment Form'!AH798))),\"N\",\"Y\"))","v":""},{"$f":"IF(OR($B791=\"N\",'Enrollment Form'!$G798=\"\"),\"\",IF('Enrollment Form'!$B798<>\"Subscriber\",\"-\",IF(COUNTIF('Enrollment Form'!$AV798:$AW798,\"Yes\")=2,\"N\",\"Y\")))","v":""},{"$f":"IF(OR('Enrollment Form'!$CJ798=\"\",'Enrollment Form'!$CJ798=\"No\"),\"-\",IF(AND('Enrollment Form'!$CJ798=\"Yes\",'Enrollment Form'!$CK798=\"\"),\"N\",\"Y\"))","v":"-"},{"$f":"IF(OR('Enrollment Form'!$CL798=\"\",'Enrollment Form'!$CL798=\"No\"),\"-\",IF(AND('Enrollment Form'!$CL798=\"Yes\",'Enrollment Form'!$CM798=\"\"),\"N\",\"Y\"))","v":"-"},{"$f":"IF(OR('Enrollment Form'!$CN798=\"\",'Enrollment Form'!$CN798=\"No\"),\"-\",IF(AND('Enrollment Form'!$CN798=\"Yes\",'Enrollment Form'!$CO798=\"\"),\"N\",\"Y\"))","v":"-"},{"$f":"IF(OR('Enrollment Form'!$CN798=\"\",'Enrollment Form'!$CN798=\"No\"),\"-\",IF(AND('Enrollment Form'!$CN798=\"Yes\",'Enrollment Form'!$CP798=\"\"),\"N\",\"Y\"))","v":"-"},{"$f":"IF('Enrollment Form'!B798<>\"Subscriber\",\"-\",IF(AND('Enrollment Form'!B798=\"Subscriber\",'Enrollment Form'!C798=\"Enroll\",'Enrollment Form'!AA798=\"\"),\"N\",\"Y\"))","v":"-"},{"$f":"IF(OR('Enrollment Form'!B798=\"Subscriber\",'Enrollment Form'!B798=\"\"),\"-\",IF('Enrollment Form'!BP798=\"\",\"N\",\"Y\"))","v":"-"},{"$f":"IF('Enrollment Form'!B798<>\"Subscriber\",\"-\",IF(AND('Enrollment Form'!B798=\"Subscriber\",'Enrollment Form'!G798=\"\"),\"N\",\"Y\"))","v":"-"},{"$f":"IF('Enrollment Form'!A798=\"\",\"\",IF('Enrollment Form'!B798=\"Subscriber\",\"-\",IF(AND('Enrollment Form'!B798<>\"Subscriber\",'Enrollment Form'!G798='Enrollment Form'!H798),\"N\",\"Y\")))","v":""},0]
[799,{"$f":"IF('Enrollment Form'!$A799<>\"\",\"Y\",\"N\")","v":"N"},{"$f":"IF(AND('Enrollment Form'!$B799=\"\",'Enrollment Form'!$C799<>\"\"),\"N\",IF($B792=\"N\",\"\",\"Y\"))","v":""},{"$f":"IF(OR($B792=\"N\",'Enrollment Form'!G799=\"\"),\"\",IF('Enrollment Form'!$B799<>\"Subscriber\",\"\",IF('Enrollment Form'!$G799='Enrollment Form'!$H799,\"Y\",\"N\")))","v":""},{"$f":"IF($B792=\"N\",\"\",IF(AND(COUNTIFS('Enrollment Form'!$H$11:$H$1000,'Enrollment Form'!$H799,'Enrollment Form'!$B$11:$B$1000,'Enrollment Form'!$B799)>1,'Enrollment Form'!$H799<>\"\"),\"N\",\"Y\"))","v":""},{"$f":"IF($B792=\"N\",\"\",IF(LEN('Enrollment Form'!$Y799)=0,\"\",IF(LEN('Enrollment Form'!$Y799)<>5,\"N\",\"Y\")))","v":""},{"$f":"IF($B792=\"N\",\"\",IF(LEN('Enrollment Form'!$AD799=0),\"\",IF(LEN('Enrollment Form'!$AD799)<>5,\"N\",\"Y\")))","v":""},{"$f":"IF($B792=\"N\",\"\",IF(LEN('Enrollment Form'!$BS799=0),\"\",IF(LEN('Enrollment Form'!$BS799)<>5,\"N\",\"Y\")))","v":""},{"$f":"IF($B792=\"N\",\"\",IF(LEN('Enrollment Form'!$AE799)=0,\"\",IF(LEN('Enrollment Form'!$AE799)<>10,\"N\",\"Y\")))","v":""},{"$f":"IF($B792=\"N\",\"\",IF(LEN('Enrollment Form'!$AF799)=0,\"\",IF(LEN('Enrollment Form'!$AF799)<>10,\"N\",\"Y\")))","v":""},{"$f":"IF('Enrollment Form'!$O799<>\"Graded\",\"-\",IF(AND('Enrollment Form'!$O799=\"Graded\",'Enrollment Form'!$AR799<>\"\"),\"Y\",\"N\"))","v":"-"},{"$f":"IF($B792=\"N\",\"\",IF(OR('Enrollment Form'!$B799<>\"Subscriber\",'Enrollment Form'!$C799=\"ROC\"),\"-\",IF(AND('Enrollment Form'!$B799=\"Subscriber\",'Enrollment Form'!$C799=\"Enroll\",'Enrollment Form'!$AJ799<>\"\"),\"Y\",\"N\")))","v":""},{"$f":"IF($B792=\"N\",\"\",IF(OR('Enrollment Form'!$B799<>\"Subscriber\",'Enrollment Form'!$C799=\"ROC\"),\"-\",IF(AND('Enrollment Form'!$B799=\"Subscriber\",'Enrollment Form'!$C799=\"Enroll\",'Enrollment Form'!$AK799<>\"\"),\"Y\",\"N\")))","v":""},{"$f":"IF($B792=\"N\",\"\",IF(OR('Enrollment Form'!$B799<>\"Subscriber\",'Enrollment Form'!$C799=\"ROC\"),\"-\",IF(AND('Enrollment Form'!$B799=\"Subscriber\",'Enrollment Form'!$C799=\"Enroll\",'Enrollment Form'!$AL799<>\"\"),\"Y\",\"N\")))","v":""},{"$f":"IF($B792=\"N\",\"\",IF(OR('Enrollment Form'!$B799<>\"Subscriber\",'Enrollment Form'!$C799=\"ROC\"),\"-\",IF(AND('Enrollment Form'!$B799=\"Subscriber\",'Enrollment Form'!$C799=\"Enroll\",'Enrollment Form'!$AP799<>\"\"),\"Y\",\"N\")))","v":""},{"$f":"IF($B792=\"N\",\"\",IF(OR('Enrollment Form'!$B799<>\"Subscriber\",'Enrollment Form'!$C799=\"ROC\"),\"-\",IF(AND('Enrollment Form'!$B799=\"Subscriber\",'Enrollment Form'!$C799=\"Enroll\",'Enrollment Form'!$AQ799<>\"\"),\"Y\",\"N\")))","v":""},{"$f":"IF($B792=\"N\",\"\",IF(OR('Enrollment Form'!$B799<>\"Subscriber\",'Enrollment Form'!$C799=\"ROC\"),\"-\",IF(AND('Enrollment Form'!$B799=\"Subscriber\",'Enrollment Form'!$C799=\"Enroll\",'Enrollment Form'!$AS799<>\"\"),\"Y\",\"N\")))","v":""},{"$f":"IF($B792=\"N\",\"\",IF($Q792=\"-\",\"-\",IF(AND($Q792=\"Y\",'Enrollment Form'!$AS799=\"No\"),\"-\",IF(AND($Q792=\"Y\",'Enrollment Form'!$AS799=\"Yes\",'Enrollment Form'!$AT799<>\"\"),\"Y\",\"N\"))))","v":""},{"$f":"IF($B792=\"N\",\"\",IF(OR('Enrollment Form'!$B799<>\"Subscriber\",'Enrollment Form'!$C799=\"ROC\"),\"-\",IF(AND('Enrollment Form'!$B799=\"Subscriber\",'Enrollment Form'!$C799=\"Enroll\",'Enrollment Form'!$CV799<>\"\"),\"Y\",\"N\")))","v":""},{"$f":"IF($B792=\"N\",\"\",IF($S792=\"-\",\"-\",IF(AND($S792=\"Y\",'Enrollment Form'!$CV799=\"No\"),\"-\",IF(AND($S792=\"Y\",'Enrollment Form'!$CV799=\"Yes\",'Enrollment Form'!$CW799<>\"\"),\"Y\",\"N\"))))","v":""},{"$f":"IF(OR('Enrollment Form'!$AY799=\"Yes\",'Enrollment Form'!$AY799=\"\"),\"-\",IF(OR(AND('Enrollment Form'!$AY799=\"No\",ISERROR(FIND(\"HMO\",VLOOKUP('Enrollment Form'!G799,'Enrollment Form'!H$11:J$1000,3,FALSE),1))=FALSE,COUNTA('Enrollment Form'!$AZ799:$BC799)=4),AND('Enrollment Form'!$AY799=\"No\",ISERROR(FIND(\"HMO\",VLOOKUP('Enrollment Form'!G799,'Enrollment Form'!H$11:J$1000,3,FALSE),1))=FALSE,COUNTA('Enrollment Form'!$BT799:$BW799)=4)),\"Y\",\"N\"))","v":"-"},{"$f":"IF($B792=\"N\",\"\",IF('Enrollment Form'!$B799=\"Subscriber\",\"-\",IF(COUNTA('Enrollment Form'!$BL799,'Enrollment Form'!$BN799)=2,\"Y\",\"N\")))","v":""},{"$f":"IF($B792=\"N\",\"\",IF(OR('Enrollment Form'!$AX799=\"\",'Enrollment Form'!$AX799=\"No\"),\"-\",IF(AND('Enrollment Form'!$AX799=\"Yes\",COUNTA('Enrollment Form'!$CR799)=1),\"Y\",\"N\")))","v":""},{"$f":"IF(OR('Enrollment Form'!$CR799=\"\",'Enrollment Form'!$CR799=\"No\"),\"-\",IF(COUNTA('Enrollment Form'!$CT799:$CU799)=2,\"Y\",\"N\"))","v":"-"},{"$f":"IF($B792=\"N\",\"\",IF(COUNTIF('Enrollment Form'!$DG799:$DP799,\"Other\")=COUNTA('Enrollment Form'!$DK799,'Enrollment Form'!$DH799,'Enrollment Form'!$DN799,'Enrollment Form'!$DQ799),\"Y\",\"N\"))","v":""},{"$f":"IF($B792=\"N\",\"\",IF(OR('Enrollment Form'!B799<>\"Subscriber\",'Enrollment Form'!C799=\"ROC\",COUNTIF('Enrollment Form'!AV799:AW799,\"Yes\")>=1),\"-\",IF(AND('Enrollment Form'!C799=\"Enroll\",COUNTIF('Enrollment Form'!AV799:AW799,\"No\")=2,'Enrollment Form'!AX799=\"\"),\"N\",\"Y\")))","v":""},{"$f":"IF(OR(B792=\"N\",'Enrollment Form'!B799<>\"Subscriber\",'Enrollment Form'!C799=\"ROC\",'Enrollment Form'!O799<>\"Multiple of Salary\"),\"-\",IF(COUNTA('Enrollment Form'!T799:U799)<2,\"N\",\"Y\"))","v":"-"},{"$f":"IF(B792=\"N\",\"\",IF(OR('Enrollment Form'!C799=\"ROC\",'Enrollment Form'!B799<>\"Subscriber\",'Enrollment Form'!O799=\"Waive\",'Enrollment Form'!O799=\"\"),\"-\",IF('Enrollment Form'!P799=\"\",\"N\",\"Y\")))","v":""},{"$f":"IF($B792=\"N\",\"\",IF(AND('Enrollment Form'!$C799=\"ROC\",'Enrollment Form'!$DR799<>\"\"),\"Y\",IF(AND('Enrollment Form'!$C799=\"ROC\",'Enrollment Form'!$DR799=\"\"),\"N\",IF(AND('Enrollment Form'!$C799=\"Enroll\",'Enrollment Form'!$B799=\"Subscriber\",'Enrollment Form'!$CX799=\"No\",'Enrollment Form'!$DR799=\"\"),\"N\",IF(AND('Enrollment Form'!$C799=\"Enroll\",'Enrollment Form'!$B799=\"Subscriber\",'Enrollment Form'!$CX799=\"Yes\"),\"-\",\"Y\")))))","v":""},{"$f":"IF($B792=\"N\",\"\",IF(AND('Enrollment Form'!$C799=\"ROC\",'Enrollment Form'!$DS799<>\"\"),\"Y\",IF(AND('Enrollment Form'!$C799=\"ROC\",'Enrollment Form'!$DS799=\"\"),\"N\",IF(AND('Enrollment Form'!$C799=\"Enroll\",'Enrollment Form'!$B799=\"Subscriber\",'Enrollment Form'!$CX799=\"No\",'Enrollment Form'!$DS799=\"\"),\"N\",IF(AND('Enrollment Form'!$C799=\"Enroll\",'Enrollment Form'!$B799=\"Subscriber\",'Enrollment Form'!$CX799=\"Yes\"),\"-\",\"Y\")))))","v":""},{"$f":"IF('Enrollment Form'!AH799=\"\",\"\",IF(ISERROR(SEARCH(\".\",'Enrollment Form'!AH799,SEARCH(\"@\",'Enrollment Form'!AH799))),\"N\",\"Y\"))","v":""},{"$f":"IF(OR($B792=\"N\",'Enrollment Form'!$G799=\"\"),\"\",IF('Enrollment Form'!$B799<>\"Subscriber\",\"-\",IF(COUNTIF('Enrollment Form'!$AV799:$AW799,\"Yes\")=2,\"N\",\"Y\")))","v":""},{"$f":"IF(OR('Enrollment Form'!$CJ799=\"\",'Enrollment Form'!$CJ799=\"No\"),\"-\",IF(AND('Enrollment Form'!$CJ799=\"Yes\",'Enrollment Form'!$CK799=\"\"),\"N\",\"Y\"))","v":"-"},{"$f":"IF(OR('Enrollment Form'!$CL799=\"\",'Enrollment Form'!$CL799=\"No\"),\"-\",IF(AND('Enrollment Form'!$CL799=\"Yes\",'Enrollment Form'!$CM799=\"\"),\"N\",\"Y\"))","v":"-"},{"$f":"IF(OR('Enrollment Form'!$CN799=\"\",'Enrollment Form'!$CN799=\"No\"),\"-\",IF(AND('Enrollment Form'!$CN799=\"Yes\",'Enrollment Form'!$CO799=\"\"),\"N\",\"Y\"))","v":"-"},{"$f":"IF(OR('Enrollment Form'!$CN799=\"\",'Enrollment Form'!$CN799=\"No\"),\"-\",IF(AND('Enrollment Form'!$CN799=\"Yes\",'Enrollment Form'!$CP799=\"\"),\"N\",\"Y\"))","v":"-"},{"$f":"IF('Enrollment Form'!B799<>\"Subscriber\",\"-\",IF(AND('Enrollment Form'!B799=\"Subscriber\",'Enrollment Form'!C799=\"Enroll\",'Enrollment Form'!AA799=\"\"),\"N\",\"Y\"))","v":"-"},{"$f":"IF(OR('Enrollment Form'!B799=\"Subscriber\",'Enrollment Form'!B799=\"\"),\"-\",IF('Enrollment Form'!BP799=\"\",\"N\",\"Y\"))","v":"-"},{"$f":"IF('Enrollment Form'!B799<>\"Subscriber\",\"-\",IF(AND('Enrollment Form'!B799=\"Subscriber\",'Enrollment Form'!G799=\"\"),\"N\",\"Y\"))","v":"-"},{"$f":"IF('Enrollment Form'!A799=\"\",\"\",IF('Enrollment Form'!B799=\"Subscriber\",\"-\",IF(AND('Enrollment Form'!B799<>\"Subscriber\",'Enrollment Form'!G799='Enrollment Form'!H799),\"N\",\"Y\")))","v":""},0]
[800,{"$f":"IF('Enrollment Form'!$A800<>\"\",\"Y\",\"N\")","v":"N"},{"$f":"IF(AND('Enrollment Form'!$B800=\"\",'Enrollment Form'!$C800<>\"\"),\"N\",IF($B793=\"N\",\"\",\"Y\"))","v":""},{"$f":"IF(OR($B793=\"N\",'Enrollment Form'!G800=\"\"),\"\",IF('Enrollment Form'!$B800<>\"Subscriber\",\"\",IF('Enrollment Form'!$G800='Enrollment Form'!$H800,\"Y\",\"N\")))","v":""},{"$f":"IF($B793=\"N\",\"\",IF(AND(COUNTIFS('Enrollment Form'!$H$11:$H$1000,'Enrollment Form'!$H800,'Enrollment Form'!$B$11:$B$1000,'Enrollment Form'!$B800)>1,'Enrollment Form'!$H800<>\"\"),\"N\",\"Y\"))","v":""},{"$f":"IF($B793=\"N\",\"\",IF(LEN('Enrollment Form'!$Y800)=0,\"\",IF(LEN('Enrollment Form'!$Y800)<>5,\"N\",\"Y\")))","v":""},{"$f":"IF($B793=\"N\",\"\",IF(LEN('Enrollment Form'!$AD800=0),\"\",IF(LEN('Enrollment Form'!$AD800)<>5,\"N\",\"Y\")))","v":""},{"$f":"IF($B793=\"N\",\"\",IF(LEN('Enrollment Form'!$BS800=0),\"\",IF(LEN('Enrollment Form'!$BS800)<>5,\"N\",\"Y\")))","v":""},{"$f":"IF($B793=\"N\",\"\",IF(LEN('Enrollment Form'!$AE800)=0,\"\",IF(LEN('Enrollment Form'!$AE800)<>10,\"N\",\"Y\")))","v":""},{"$f":"IF($B793=\"N\",\"\",IF(LEN('Enrollment Form'!$AF800)=0,\"\",IF(LEN('Enrollment Form'!$AF800)<>10,\"N\",\"Y\")))","v":""},{"$f":"IF('Enrollment Form'!$O800<>\"Graded\",\"-\",IF(AND('Enrollment Form'!$O800=\"Graded\",'Enrollment Form'!$AR800<>\"\"),\"Y\",\"N\"))","v":"-"},{"$f":"IF($B793=\"N\",\"\",IF(OR('Enrollment Form'!$B800<>\"Subscriber\",'Enrollment Form'!$C800=\"ROC\"),\"-\",IF(AND('Enrollment Form'!$B800=\"Subscriber\",'Enrollment Form'!$C800=\"Enroll\",'Enrollment Form'!$AJ800<>\"\"),\"Y\",\"N\")))","v":""},{"$f":"IF($B793=\"N\",\"\",IF(OR('Enrollment Form'!$B800<>\"Subscriber\",'Enrollment Form'!$C800=\"ROC\"),\"-\",IF(AND('Enrollment Form'!$B800=\"Subscriber\",'Enrollment Form'!$C800=\"Enroll\",'Enrollment Form'!$AK800<>\"\"),\"Y\",\"N\")))","v":""},{"$f":"IF($B793=\"N\",\"\",IF(OR('Enrollment Form'!$B800<>\"Subscriber\",'Enrollment Form'!$C800=\"ROC\"),\"-\",IF(AND('Enrollment Form'!$B800=\"Subscriber\",'Enrollment Form'!$C800=\"Enroll\",'Enrollment Form'!$AL800<>\"\"),\"Y\",\"N\")))","v":""},{"$f":"IF($B793=\"N\",\"\",IF(OR('Enrollment Form'!$B800<>\"Subscriber\",'Enrollment Form'!$C800=\"ROC\"),\"-\",IF(AND('Enrollment Form'!$B800=\"Subscriber\",'Enrollment Form'!$C800=\"Enroll\",'Enrollment Form'!$AP800<>\"\"),\"Y\",\"N\")))","v":""},{"$f":"IF($B793=\"N\",\"\",IF(OR('Enrollment Form'!$B800<>\"Subscriber\",'Enrollment Form'!$C800=\"ROC\"),\"-\",IF(AND('Enrollment Form'!$B800=\"Subscriber\",'Enrollment Form'!$C800=\"Enroll\",'Enrollment Form'!$AQ800<>\"\"),\"Y\",\"N\")))","v":""},{"$f":"IF($B793=\"N\",\"\",IF(OR('Enrollment Form'!$B800<>\"Subscriber\",'Enrollment Form'!$C800=\"ROC\"),\"-\",IF(AND('Enrollment Form'!$B800=\"Subscriber\",'Enrollment Form'!$C800=\"Enroll\",'Enrollment Form'!$AS800<>\"\"),\"Y\",\"N\")))","v":""},{"$f":"IF($B793=\"N\",\"\",IF($Q793=\"-\",\"-\",IF(AND($Q793=\"Y\",'Enrollment Form'!$AS800=\"No\"),\"-\",IF(AND($Q793=\"Y\",'Enrollment Form'!$AS800=\"Yes\",'Enrollment Form'!$AT800<>\"\"),\"Y\",\"N\"))))","v":""},{"$f":"IF($B793=\"N\",\"\",IF(OR('Enrollment Form'!$B800<>\"Subscriber\",'Enrollment Form'!$C800=\"ROC\"),\"-\",IF(AND('Enrollment Form'!$B800=\"Subscriber\",'Enrollment Form'!$C800=\"Enroll\",'Enrollment Form'!$CV800<>\"\"),\"Y\",\"N\")))","v":""},{"$f":"IF($B793=\"N\",\"\",IF($S793=\"-\",\"-\",IF(AND($S793=\"Y\",'Enrollment Form'!$CV800=\"No\"),\"-\",IF(AND($S793=\"Y\",'Enrollment Form'!$CV800=\"Yes\",'Enrollment Form'!$CW800<>\"\"),\"Y\",\"N\"))))","v":""},{"$f":"IF(OR('Enrollment Form'!$AY800=\"Yes\",'Enrollment Form'!$AY800=\"\"),\"-\",IF(OR(AND('Enrollment Form'!$AY800=\"No\",ISERROR(FIND(\"HMO\",VLOOKUP('Enrollment Form'!G800,'Enrollment Form'!H$11:J$1000,3,FALSE),1))=FALSE,COUNTA('Enrollment Form'!$AZ800:$BC800)=4),AND('Enrollment Form'!$AY800=\"No\",ISERROR(FIND(\"HMO\",VLOOKUP('Enrollment Form'!G800,'Enrollment Form'!H$11:J$1000,3,FALSE),1))=FALSE,COUNTA('Enrollment Form'!$BT800:$BW800)=4)),\"Y\",\"N\"))","v":"-"},{"$f":"IF($B793=\"N\",\"\",IF('Enrollment Form'!$B800=\"Subscriber\",\"-\",IF(COUNTA('Enrollment Form'!$BL800,'Enrollment Form'!$BN800)=2,\"Y\",\"N\")))","v":""},{"$f":"IF($B793=\"N\",\"\",IF(OR('Enrollment Form'!$AX800=\"\",'Enrollment Form'!$AX800=\"No\"),\"-\",IF(AND('Enrollment Form'!$AX800=\"Yes\",COUNTA('Enrollment Form'!$CR800)=1),\"Y\",\"N\")))","v":""},{"$f":"IF(OR('Enrollment Form'!$CR800=\"\",'Enrollment Form'!$CR800=\"No\"),\"-\",IF(COUNTA('Enrollment Form'!$CT800:$CU800)=2,\"Y\",\"N\"))","v":"-"},{"$f":"IF($B793=\"N\",\"\",IF(COUNTIF('Enrollment Form'!$DG800:$DP800,\"Other\")=COUNTA('Enrollment Form'!$DK800,'Enrollment Form'!$DH800,'Enrollment Form'!$DN800,'Enrollment Form'!$DQ800),\"Y\",\"N\"))","v":""},{"$f":"IF($B793=\"N\",\"\",IF(OR('Enrollment Form'!B800<>\"Subscriber\",'Enrollment Form'!C800=\"ROC\",COUNTIF('Enrollment Form'!AV800:AW800,\"Yes\")>=1),\"-\",IF(AND('Enrollment Form'!C800=\"Enroll\",COUNTIF('Enrollment Form'!AV800:AW800,\"No\")=2,'Enrollment Form'!AX800=\"\"),\"N\",\"Y\")))","v":""},{"$f":"IF(OR(B793=\"N\",'Enrollment Form'!B800<>\"Subscriber\",'Enrollment Form'!C800=\"ROC\",'Enrollment Form'!O800<>\"Multiple of Salary\"),\"-\",IF(COUNTA('Enrollment Form'!T800:U800)<2,\"N\",\"Y\"))","v":"-"},{"$f":"IF(B793=\"N\",\"\",IF(OR('Enrollment Form'!C800=\"ROC\",'Enrollment Form'!B800<>\"Subscriber\",'Enrollment Form'!O800=\"Waive\",'Enrollment Form'!O800=\"\"),\"-\",IF('Enrollment Form'!P800=\"\",\"N\",\"Y\")))","v":""},{"$f":"IF($B793=\"N\",\"\",IF(AND('Enrollment Form'!$C800=\"ROC\",'Enrollment Form'!$DR800<>\"\"),\"Y\",IF(AND('Enrollment Form'!$C800=\"ROC\",'Enrollment Form'!$DR800=\"\"),\"N\",IF(AND('Enrollment Form'!$C800=\"Enroll\",'Enrollment Form'!$B800=\"Subscriber\",'Enrollment Form'!$CX800=\"No\",'Enrollment Form'!$DR800=\"\"),\"N\",IF(AND('Enrollment Form'!$C800=\"Enroll\",'Enrollment Form'!$B800=\"Subscriber\",'Enrollment Form'!$CX800=\"Yes\"),\"-\",\"Y\")))))","v":""},{"$f":"IF($B793=\"N\",\"\",IF(AND('Enrollment Form'!$C800=\"ROC\",'Enrollment Form'!$DS800<>\"\"),\"Y\",IF(AND('Enrollment Form'!$C800=\"ROC\",'Enrollment Form'!$DS800=\"\"),\"N\",IF(AND('Enrollment Form'!$C800=\"Enroll\",'Enrollment Form'!$B800=\"Subscriber\",'Enrollment Form'!$CX800=\"No\",'Enrollment Form'!$DS800=\"\"),\"N\",IF(AND('Enrollment Form'!$C800=\"Enroll\",'Enrollment Form'!$B800=\"Subscriber\",'Enrollment Form'!$CX800=\"Yes\"),\"-\",\"Y\")))))","v":""},{"$f":"IF('Enrollment Form'!AH800=\"\",\"\",IF(ISERROR(SEARCH(\".\",'Enrollment Form'!AH800,SEARCH(\"@\",'Enrollment Form'!AH800))),\"N\",\"Y\"))","v":""},{"$f":"IF(OR($B793=\"N\",'Enrollment Form'!$G800=\"\"),\"\",IF('Enrollment Form'!$B800<>\"Subscriber\",\"-\",IF(COUNTIF('Enrollment Form'!$AV800:$AW800,\"Yes\")=2,\"N\",\"Y\")))","v":""},{"$f":"IF(OR('Enrollment Form'!$CJ800=\"\",'Enrollment Form'!$CJ800=\"No\"),\"-\",IF(AND('Enrollment Form'!$CJ800=\"Yes\",'Enrollment Form'!$CK800=\"\"),\"N\",\"Y\"))","v":"-"},{"$f":"IF(OR('Enrollment Form'!$CL800=\"\",'Enrollment Form'!$CL800=\"No\"),\"-\",IF(AND('Enrollment Form'!$CL800=\"Yes\",'Enrollment Form'!$CM800=\"\"),\"N\",\"Y\"))","v":"-"},{"$f":"IF(OR('Enrollment Form'!$CN800=\"\",'Enrollment Form'!$CN800=\"No\"),\"-\",IF(AND('Enrollment Form'!$CN800=\"Yes\",'Enrollment Form'!$CO800=\"\"),\"N\",\"Y\"))","v":"-"},{"$f":"IF(OR('Enrollment Form'!$CN800=\"\",'Enrollment Form'!$CN800=\"No\"),\"-\",IF(AND('Enrollment Form'!$CN800=\"Yes\",'Enrollment Form'!$CP800=\"\"),\"N\",\"Y\"))","v":"-"},{"$f":"IF('Enrollment Form'!B800<>\"Subscriber\",\"-\",IF(AND('Enrollment Form'!B800=\"Subscriber\",'Enrollment Form'!C800=\"Enroll\",'Enrollment Form'!AA800=\"\"),\"N\",\"Y\"))","v":"-"},{"$f":"IF(OR('Enrollment Form'!B800=\"Subscriber\",'Enrollment Form'!B800=\"\"),\"-\",IF('Enrollment Form'!BP800=\"\",\"N\",\"Y\"))","v":"-"},{"$f":"IF('Enrollment Form'!B800<>\"Subscriber\",\"-\",IF(AND('Enrollment Form'!B800=\"Subscriber\",'Enrollment Form'!G800=\"\"),\"N\",\"Y\"))","v":"-"},{"$f":"IF('Enrollment Form'!A800=\"\",\"\",IF('Enrollment Form'!B800=\"Subscriber\",\"-\",IF(AND('Enrollment Form'!B800<>\"Subscriber\",'Enrollment Form'!G800='Enrollment Form'!H800),\"N\",\"Y\")))","v":""},0]
[801,{"$f":"IF('Enrollment Form'!$A801<>\"\",\"Y\",\"N\")","v":"N"},{"$f":"IF(AND('Enrollment Form'!$B801=\"\",'Enrollment Form'!$C801<>\"\"),\"N\",IF($B794=\"N\",\"\",\"Y\"))","v":""},{"$f":"IF(OR($B794=\"N\",'Enrollment Form'!G801=\"\"),\"\",IF('Enrollment Form'!$B801<>\"Subscriber\",\"\",IF('Enrollment Form'!$G801='Enrollment Form'!$H801,\"Y\",\"N\")))","v":""},{"$f":"IF($B794=\"N\",\"\",IF(AND(COUNTIFS('Enrollment Form'!$H$11:$H$1000,'Enrollment Form'!$H801,'Enrollment Form'!$B$11:$B$1000,'Enrollment Form'!$B801)>1,'Enrollment Form'!$H801<>\"\"),\"N\",\"Y\"))","v":""},{"$f":"IF($B794=\"N\",\"\",IF(LEN('Enrollment Form'!$Y801)=0,\"\",IF(LEN('Enrollment Form'!$Y801)<>5,\"N\",\"Y\")))","v":""},{"$f":"IF($B794=\"N\",\"\",IF(LEN('Enrollment Form'!$AD801=0),\"\",IF(LEN('Enrollment Form'!$AD801)<>5,\"N\",\"Y\")))","v":""},{"$f":"IF($B794=\"N\",\"\",IF(LEN('Enrollment Form'!$BS801=0),\"\",IF(LEN('Enrollment Form'!$BS801)<>5,\"N\",\"Y\")))","v":""},{"$f":"IF($B794=\"N\",\"\",IF(LEN('Enrollment Form'!$AE801)=0,\"\",IF(LEN('Enrollment Form'!$AE801)<>10,\"N\",\"Y\")))","v":""},{"$f":"IF($B794=\"N\",\"\",IF(LEN('Enrollment Form'!$AF801)=0,\"\",IF(LEN('Enrollment Form'!$AF801)<>10,\"N\",\"Y\")))","v":""},{"$f":"IF('Enrollment Form'!$O801<>\"Graded\",\"-\",IF(AND('Enrollment Form'!$O801=\"Graded\",'Enrollment Form'!$AR801<>\"\"),\"Y\",\"N\"))","v":"-"},{"$f":"IF($B794=\"N\",\"\",IF(OR('Enrollment Form'!$B801<>\"Subscriber\",'Enrollment Form'!$C801=\"ROC\"),\"-\",IF(AND('Enrollment Form'!$B801=\"Subscriber\",'Enrollment Form'!$C801=\"Enroll\",'Enrollment Form'!$AJ801<>\"\"),\"Y\",\"N\")))","v":""},{"$f":"IF($B794=\"N\",\"\",IF(OR('Enrollment Form'!$B801<>\"Subscriber\",'Enrollment Form'!$C801=\"ROC\"),\"-\",IF(AND('Enrollment Form'!$B801=\"Subscriber\",'Enrollment Form'!$C801=\"Enroll\",'Enrollment Form'!$AK801<>\"\"),\"Y\",\"N\")))","v":""},{"$f":"IF($B794=\"N\",\"\",IF(OR('Enrollment Form'!$B801<>\"Subscriber\",'Enrollment Form'!$C801=\"ROC\"),\"-\",IF(AND('Enrollment Form'!$B801=\"Subscriber\",'Enrollment Form'!$C801=\"Enroll\",'Enrollment Form'!$AL801<>\"\"),\"Y\",\"N\")))","v":""},{"$f":"IF($B794=\"N\",\"\",IF(OR('Enrollment Form'!$B801<>\"Subscriber\",'Enrollment Form'!$C801=\"ROC\"),\"-\",IF(AND('Enrollment Form'!$B801=\"Subscriber\",'Enrollment Form'!$C801=\"Enroll\",'Enrollment Form'!$AP801<>\"\"),\"Y\",\"N\")))","v":""},{"$f":"IF($B794=\"N\",\"\",IF(OR('Enrollment Form'!$B801<>\"Subscriber\",'Enrollment Form'!$C801=\"ROC\"),\"-\",IF(AND('Enrollment Form'!$B801=\"Subscriber\",'Enrollment Form'!$C801=\"Enroll\",'Enrollment Form'!$AQ801<>\"\"),\"Y\",\"N\")))","v":""},{"$f":"IF($B794=\"N\",\"\",IF(OR('Enrollment Form'!$B801<>\"Subscriber\",'Enrollment Form'!$C801=\"ROC\"),\"-\",IF(AND('Enrollment Form'!$B801=\"Subscriber\",'Enrollment Form'!$C801=\"Enroll\",'Enrollment Form'!$AS801<>\"\"),\"Y\",\"N\")))","v":""},{"$f":"IF($B794=\"N\",\"\",IF($Q794=\"-\",\"-\",IF(AND($Q794=\"Y\",'Enrollment Form'!$AS801=\"No\"),\"-\",IF(AND($Q794=\"Y\",'Enrollment Form'!$AS801=\"Yes\",'Enrollment Form'!$AT801<>\"\"),\"Y\",\"N\"))))","v":""},{"$f":"IF($B794=\"N\",\"\",IF(OR('Enrollment Form'!$B801<>\"Subscriber\",'Enrollment Form'!$C801=\"ROC\"),\"-\",IF(AND('Enrollment Form'!$B801=\"Subscriber\",'Enrollment Form'!$C801=\"Enroll\",'Enrollment Form'!$CV801<>\"\"),\"Y\",\"N\")))","v":""},{"$f":"IF($B794=\"N\",\"\",IF($S794=\"-\",\"-\",IF(AND($S794=\"Y\",'Enrollment Form'!$CV801=\"No\"),\"-\",IF(AND($S794=\"Y\",'Enrollment Form'!$CV801=\"Yes\",'Enrollment Form'!$CW801<>\"\"),\"Y\",\"N\"))))","v":""},{"$f":"IF(OR('Enrollment Form'!$AY801=\"Yes\",'Enrollment Form'!$AY801=\"\"),\"-\",IF(OR(AND('Enrollment Form'!$AY801=\"No\",ISERROR(FIND(\"HMO\",VLOOKUP('Enrollment Form'!G801,'Enrollment Form'!H$11:J$1000,3,FALSE),1))=FALSE,COUNTA('Enrollment Form'!$AZ801:$BC801)=4),AND('Enrollment Form'!$AY801=\"No\",ISERROR(FIND(\"HMO\",VLOOKUP('Enrollment Form'!G801,'Enrollment Form'!H$11:J$1000,3,FALSE),1))=FALSE,COUNTA('Enrollment Form'!$BT801:$BW801)=4)),\"Y\",\"N\"))","v":"-"},{"$f":"IF($B794=\"N\",\"\",IF('Enrollment Form'!$B801=\"Subscriber\",\"-\",IF(COUNTA('Enrollment Form'!$BL801,'Enrollment Form'!$BN801)=2,\"Y\",\"N\")))","v":""},{"$f":"IF($B794=\"N\",\"\",IF(OR('Enrollment Form'!$AX801=\"\",'Enrollment Form'!$AX801=\"No\"),\"-\",IF(AND('Enrollment Form'!$AX801=\"Yes\",COUNTA('Enrollment Form'!$CR801)=1),\"Y\",\"N\")))","v":""},{"$f":"IF(OR('Enrollment Form'!$CR801=\"\",'Enrollment Form'!$CR801=\"No\"),\"-\",IF(COUNTA('Enrollment Form'!$CT801:$CU801)=2,\"Y\",\"N\"))","v":"-"},{"$f":"IF($B794=\"N\",\"\",IF(COUNTIF('Enrollment Form'!$DG801:$DP801,\"Other\")=COUNTA('Enrollment Form'!$DK801,'Enrollment Form'!$DH801,'Enrollment Form'!$DN801,'Enrollment Form'!$DQ801),\"Y\",\"N\"))","v":""},{"$f":"IF($B794=\"N\",\"\",IF(OR('Enrollment Form'!B801<>\"Subscriber\",'Enrollment Form'!C801=\"ROC\",COUNTIF('Enrollment Form'!AV801:AW801,\"Yes\")>=1),\"-\",IF(AND('Enrollment Form'!C801=\"Enroll\",COUNTIF('Enrollment Form'!AV801:AW801,\"No\")=2,'Enrollment Form'!AX801=\"\"),\"N\",\"Y\")))","v":""},{"$f":"IF(OR(B794=\"N\",'Enrollment Form'!B801<>\"Subscriber\",'Enrollment Form'!C801=\"ROC\",'Enrollment Form'!O801<>\"Multiple of Salary\"),\"-\",IF(COUNTA('Enrollment Form'!T801:U801)<2,\"N\",\"Y\"))","v":"-"},{"$f":"IF(B794=\"N\",\"\",IF(OR('Enrollment Form'!C801=\"ROC\",'Enrollment Form'!B801<>\"Subscriber\",'Enrollment Form'!O801=\"Waive\",'Enrollment Form'!O801=\"\"),\"-\",IF('Enrollment Form'!P801=\"\",\"N\",\"Y\")))","v":""},{"$f":"IF($B794=\"N\",\"\",IF(AND('Enrollment Form'!$C801=\"ROC\",'Enrollment Form'!$DR801<>\"\"),\"Y\",IF(AND('Enrollment Form'!$C801=\"ROC\",'Enrollment Form'!$DR801=\"\"),\"N\",IF(AND('Enrollment Form'!$C801=\"Enroll\",'Enrollment Form'!$B801=\"Subscriber\",'Enrollment Form'!$CX801=\"No\",'Enrollment Form'!$DR801=\"\"),\"N\",IF(AND('Enrollment Form'!$C801=\"Enroll\",'Enrollment Form'!$B801=\"Subscriber\",'Enrollment Form'!$CX801=\"Yes\"),\"-\",\"Y\")))))","v":""},{"$f":"IF($B794=\"N\",\"\",IF(AND('Enrollment Form'!$C801=\"ROC\",'Enrollment Form'!$DS801<>\"\"),\"Y\",IF(AND('Enrollment Form'!$C801=\"ROC\",'Enrollment Form'!$DS801=\"\"),\"N\",IF(AND('Enrollment Form'!$C801=\"Enroll\",'Enrollment Form'!$B801=\"Subscriber\",'Enrollment Form'!$CX801=\"No\",'Enrollment Form'!$DS801=\"\"),\"N\",IF(AND('Enrollment Form'!$C801=\"Enroll\",'Enrollment Form'!$B801=\"Subscriber\",'Enrollment Form'!$CX801=\"Yes\"),\"-\",\"Y\")))))","v":""},{"$f":"IF('Enrollment Form'!AH801=\"\",\"\",IF(ISERROR(SEARCH(\".\",'Enrollment Form'!AH801,SEARCH(\"@\",'Enrollment Form'!AH801))),\"N\",\"Y\"))","v":""},{"$f":"IF(OR($B794=\"N\",'Enrollment Form'!$G801=\"\"),\"\",IF('Enrollment Form'!$B801<>\"Subscriber\",\"-\",IF(COUNTIF('Enrollment Form'!$AV801:$AW801,\"Yes\")=2,\"N\",\"Y\")))","v":""},{"$f":"IF(OR('Enrollment Form'!$CJ801=\"\",'Enrollment Form'!$CJ801=\"No\"),\"-\",IF(AND('Enrollment Form'!$CJ801=\"Yes\",'Enrollment Form'!$CK801=\"\"),\"N\",\"Y\"))","v":"-"},{"$f":"IF(OR('Enrollment Form'!$CL801=\"\",'Enrollment Form'!$CL801=\"No\"),\"-\",IF(AND('Enrollment Form'!$CL801=\"Yes\",'Enrollment Form'!$CM801=\"\"),\"N\",\"Y\"))","v":"-"},{"$f":"IF(OR('Enrollment Form'!$CN801=\"\",'Enrollment Form'!$CN801=\"No\"),\"-\",IF(AND('Enrollment Form'!$CN801=\"Yes\",'Enrollment Form'!$CO801=\"\"),\"N\",\"Y\"))","v":"-"},{"$f":"IF(OR('Enrollment Form'!$CN801=\"\",'Enrollment Form'!$CN801=\"No\"),\"-\",IF(AND('Enrollment Form'!$CN801=\"Yes\",'Enrollment Form'!$CP801=\"\"),\"N\",\"Y\"))","v":"-"},{"$f":"IF('Enrollment Form'!B801<>\"Subscriber\",\"-\",IF(AND('Enrollment Form'!B801=\"Subscriber\",'Enrollment Form'!C801=\"Enroll\",'Enrollment Form'!AA801=\"\"),\"N\",\"Y\"))","v":"-"},{"$f":"IF(OR('Enrollment Form'!B801=\"Subscriber\",'Enrollment Form'!B801=\"\"),\"-\",IF('Enrollment Form'!BP801=\"\",\"N\",\"Y\"))","v":"-"},{"$f":"IF('Enrollment Form'!B801<>\"Subscriber\",\"-\",IF(AND('Enrollment Form'!B801=\"Subscriber\",'Enrollment Form'!G801=\"\"),\"N\",\"Y\"))","v":"-"},{"$f":"IF('Enrollment Form'!A801=\"\",\"\",IF('Enrollment Form'!B801=\"Subscriber\",\"-\",IF(AND('Enrollment Form'!B801<>\"Subscriber\",'Enrollment Form'!G801='Enrollment Form'!H801),\"N\",\"Y\")))","v":""},0]
[802,{"$f":"IF('Enrollment Form'!$A802<>\"\",\"Y\",\"N\")","v":"N"},{"$f":"IF(AND('Enrollment Form'!$B802=\"\",'Enrollment Form'!$C802<>\"\"),\"N\",IF($B795=\"N\",\"\",\"Y\"))","v":""},{"$f":"IF(OR($B795=\"N\",'Enrollment Form'!G802=\"\"),\"\",IF('Enrollment Form'!$B802<>\"Subscriber\",\"\",IF('Enrollment Form'!$G802='Enrollment Form'!$H802,\"Y\",\"N\")))","v":""},{"$f":"IF($B795=\"N\",\"\",IF(AND(COUNTIFS('Enrollment Form'!$H$11:$H$1000,'Enrollment Form'!$H802,'Enrollment Form'!$B$11:$B$1000,'Enrollment Form'!$B802)>1,'Enrollment Form'!$H802<>\"\"),\"N\",\"Y\"))","v":""},{"$f":"IF($B795=\"N\",\"\",IF(LEN('Enrollment Form'!$Y802)=0,\"\",IF(LEN('Enrollment Form'!$Y802)<>5,\"N\",\"Y\")))","v":""},{"$f":"IF($B795=\"N\",\"\",IF(LEN('Enrollment Form'!$AD802=0),\"\",IF(LEN('Enrollment Form'!$AD802)<>5,\"N\",\"Y\")))","v":""},{"$f":"IF($B795=\"N\",\"\",IF(LEN('Enrollment Form'!$BS802=0),\"\",IF(LEN('Enrollment Form'!$BS802)<>5,\"N\",\"Y\")))","v":""},{"$f":"IF($B795=\"N\",\"\",IF(LEN('Enrollment Form'!$AE802)=0,\"\",IF(LEN('Enrollment Form'!$AE802)<>10,\"N\",\"Y\")))","v":""},{"$f":"IF($B795=\"N\",\"\",IF(LEN('Enrollment Form'!$AF802)=0,\"\",IF(LEN('Enrollment Form'!$AF802)<>10,\"N\",\"Y\")))","v":""},{"$f":"IF('Enrollment Form'!$O802<>\"Graded\",\"-\",IF(AND('Enrollment Form'!$O802=\"Graded\",'Enrollment Form'!$AR802<>\"\"),\"Y\",\"N\"))","v":"-"},{"$f":"IF($B795=\"N\",\"\",IF(OR('Enrollment Form'!$B802<>\"Subscriber\",'Enrollment Form'!$C802=\"ROC\"),\"-\",IF(AND('Enrollment Form'!$B802=\"Subscriber\",'Enrollment Form'!$C802=\"Enroll\",'Enrollment Form'!$AJ802<>\"\"),\"Y\",\"N\")))","v":""},{"$f":"IF($B795=\"N\",\"\",IF(OR('Enrollment Form'!$B802<>\"Subscriber\",'Enrollment Form'!$C802=\"ROC\"),\"-\",IF(AND('Enrollment Form'!$B802=\"Subscriber\",'Enrollment Form'!$C802=\"Enroll\",'Enrollment Form'!$AK802<>\"\"),\"Y\",\"N\")))","v":""},{"$f":"IF($B795=\"N\",\"\",IF(OR('Enrollment Form'!$B802<>\"Subscriber\",'Enrollment Form'!$C802=\"ROC\"),\"-\",IF(AND('Enrollment Form'!$B802=\"Subscriber\",'Enrollment Form'!$C802=\"Enroll\",'Enrollment Form'!$AL802<>\"\"),\"Y\",\"N\")))","v":""},{"$f":"IF($B795=\"N\",\"\",IF(OR('Enrollment Form'!$B802<>\"Subscriber\",'Enrollment Form'!$C802=\"ROC\"),\"-\",IF(AND('Enrollment Form'!$B802=\"Subscriber\",'Enrollment Form'!$C802=\"Enroll\",'Enrollment Form'!$AP802<>\"\"),\"Y\",\"N\")))","v":""},{"$f":"IF($B795=\"N\",\"\",IF(OR('Enrollment Form'!$B802<>\"Subscriber\",'Enrollment Form'!$C802=\"ROC\"),\"-\",IF(AND('Enrollment Form'!$B802=\"Subscriber\",'Enrollment Form'!$C802=\"Enroll\",'Enrollment Form'!$AQ802<>\"\"),\"Y\",\"N\")))","v":""},{"$f":"IF($B795=\"N\",\"\",IF(OR('Enrollment Form'!$B802<>\"Subscriber\",'Enrollment Form'!$C802=\"ROC\"),\"-\",IF(AND('Enrollment Form'!$B802=\"Subscriber\",'Enrollment Form'!$C802=\"Enroll\",'Enrollment Form'!$AS802<>\"\"),\"Y\",\"N\")))","v":""},{"$f":"IF($B795=\"N\",\"\",IF($Q795=\"-\",\"-\",IF(AND($Q795=\"Y\",'Enrollment Form'!$AS802=\"No\"),\"-\",IF(AND($Q795=\"Y\",'Enrollment Form'!$AS802=\"Yes\",'Enrollment Form'!$AT802<>\"\"),\"Y\",\"N\"))))","v":""},{"$f":"IF($B795=\"N\",\"\",IF(OR('Enrollment Form'!$B802<>\"Subscriber\",'Enrollment Form'!$C802=\"ROC\"),\"-\",IF(AND('Enrollment Form'!$B802=\"Subscriber\",'Enrollment Form'!$C802=\"Enroll\",'Enrollment Form'!$CV802<>\"\"),\"Y\",\"N\")))","v":""},{"$f":"IF($B795=\"N\",\"\",IF($S795=\"-\",\"-\",IF(AND($S795=\"Y\",'Enrollment Form'!$CV802=\"No\"),\"-\",IF(AND($S795=\"Y\",'Enrollment Form'!$CV802=\"Yes\",'Enrollment Form'!$CW802<>\"\"),\"Y\",\"N\"))))","v":""},{"$f":"IF(OR('Enrollment Form'!$AY802=\"Yes\",'Enrollment Form'!$AY802=\"\"),\"-\",IF(OR(AND('Enrollment Form'!$AY802=\"No\",ISERROR(FIND(\"HMO\",VLOOKUP('Enrollment Form'!G802,'Enrollment Form'!H$11:J$1000,3,FALSE),1))=FALSE,COUNTA('Enrollment Form'!$AZ802:$BC802)=4),AND('Enrollment Form'!$AY802=\"No\",ISERROR(FIND(\"HMO\",VLOOKUP('Enrollment Form'!G802,'Enrollment Form'!H$11:J$1000,3,FALSE),1))=FALSE,COUNTA('Enrollment Form'!$BT802:$BW802)=4)),\"Y\",\"N\"))","v":"-"},{"$f":"IF($B795=\"N\",\"\",IF('Enrollment Form'!$B802=\"Subscriber\",\"-\",IF(COUNTA('Enrollment Form'!$BL802,'Enrollment Form'!$BN802)=2,\"Y\",\"N\")))","v":""},{"$f":"IF($B795=\"N\",\"\",IF(OR('Enrollment Form'!$AX802=\"\",'Enrollment Form'!$AX802=\"No\"),\"-\",IF(AND('Enrollment Form'!$AX802=\"Yes\",COUNTA('Enrollment Form'!$CR802)=1),\"Y\",\"N\")))","v":""},{"$f":"IF(OR('Enrollment Form'!$CR802=\"\",'Enrollment Form'!$CR802=\"No\"),\"-\",IF(COUNTA('Enrollment Form'!$CT802:$CU802)=2,\"Y\",\"N\"))","v":"-"},{"$f":"IF($B795=\"N\",\"\",IF(COUNTIF('Enrollment Form'!$DG802:$DP802,\"Other\")=COUNTA('Enrollment Form'!$DK802,'Enrollment Form'!$DH802,'Enrollment Form'!$DN802,'Enrollment Form'!$DQ802),\"Y\",\"N\"))","v":""},{"$f":"IF($B795=\"N\",\"\",IF(OR('Enrollment Form'!B802<>\"Subscriber\",'Enrollment Form'!C802=\"ROC\",COUNTIF('Enrollment Form'!AV802:AW802,\"Yes\")>=1),\"-\",IF(AND('Enrollment Form'!C802=\"Enroll\",COUNTIF('Enrollment Form'!AV802:AW802,\"No\")=2,'Enrollment Form'!AX802=\"\"),\"N\",\"Y\")))","v":""},{"$f":"IF(OR(B795=\"N\",'Enrollment Form'!B802<>\"Subscriber\",'Enrollment Form'!C802=\"ROC\",'Enrollment Form'!O802<>\"Multiple of Salary\"),\"-\",IF(COUNTA('Enrollment Form'!T802:U802)<2,\"N\",\"Y\"))","v":"-"},{"$f":"IF(B795=\"N\",\"\",IF(OR('Enrollment Form'!C802=\"ROC\",'Enrollment Form'!B802<>\"Subscriber\",'Enrollment Form'!O802=\"Waive\",'Enrollment Form'!O802=\"\"),\"-\",IF('Enrollment Form'!P802=\"\",\"N\",\"Y\")))","v":""},{"$f":"IF($B795=\"N\",\"\",IF(AND('Enrollment Form'!$C802=\"ROC\",'Enrollment Form'!$DR802<>\"\"),\"Y\",IF(AND('Enrollment Form'!$C802=\"ROC\",'Enrollment Form'!$DR802=\"\"),\"N\",IF(AND('Enrollment Form'!$C802=\"Enroll\",'Enrollment Form'!$B802=\"Subscriber\",'Enrollment Form'!$CX802=\"No\",'Enrollment Form'!$DR802=\"\"),\"N\",IF(AND('Enrollment Form'!$C802=\"Enroll\",'Enrollment Form'!$B802=\"Subscriber\",'Enrollment Form'!$CX802=\"Yes\"),\"-\",\"Y\")))))","v":""},{"$f":"IF($B795=\"N\",\"\",IF(AND('Enrollment Form'!$C802=\"ROC\",'Enrollment Form'!$DS802<>\"\"),\"Y\",IF(AND('Enrollment Form'!$C802=\"ROC\",'Enrollment Form'!$DS802=\"\"),\"N\",IF(AND('Enrollment Form'!$C802=\"Enroll\",'Enrollment Form'!$B802=\"Subscriber\",'Enrollment Form'!$CX802=\"No\",'Enrollment Form'!$DS802=\"\"),\"N\",IF(AND('Enrollment Form'!$C802=\"Enroll\",'Enrollment Form'!$B802=\"Subscriber\",'Enrollment Form'!$CX802=\"Yes\"),\"-\",\"Y\")))))","v":""},{"$f":"IF('Enrollment Form'!AH802=\"\",\"\",IF(ISERROR(SEARCH(\".\",'Enrollment Form'!AH802,SEARCH(\"@\",'Enrollment Form'!AH802))),\"N\",\"Y\"))","v":""},{"$f":"IF(OR($B795=\"N\",'Enrollment Form'!$G802=\"\"),\"\",IF('Enrollment Form'!$B802<>\"Subscriber\",\"-\",IF(COUNTIF('Enrollment Form'!$AV802:$AW802,\"Yes\")=2,\"N\",\"Y\")))","v":""},{"$f":"IF(OR('Enrollment Form'!$CJ802=\"\",'Enrollment Form'!$CJ802=\"No\"),\"-\",IF(AND('Enrollment Form'!$CJ802=\"Yes\",'Enrollment Form'!$CK802=\"\"),\"N\",\"Y\"))","v":"-"},{"$f":"IF(OR('Enrollment Form'!$CL802=\"\",'Enrollment Form'!$CL802=\"No\"),\"-\",IF(AND('Enrollment Form'!$CL802=\"Yes\",'Enrollment Form'!$CM802=\"\"),\"N\",\"Y\"))","v":"-"},{"$f":"IF(OR('Enrollment Form'!$CN802=\"\",'Enrollment Form'!$CN802=\"No\"),\"-\",IF(AND('Enrollment Form'!$CN802=\"Yes\",'Enrollment Form'!$CO802=\"\"),\"N\",\"Y\"))","v":"-"},{"$f":"IF(OR('Enrollment Form'!$CN802=\"\",'Enrollment Form'!$CN802=\"No\"),\"-\",IF(AND('Enrollment Form'!$CN802=\"Yes\",'Enrollment Form'!$CP802=\"\"),\"N\",\"Y\"))","v":"-"},{"$f":"IF('Enrollment Form'!B802<>\"Subscriber\",\"-\",IF(AND('Enrollment Form'!B802=\"Subscriber\",'Enrollment Form'!C802=\"Enroll\",'Enrollment Form'!AA802=\"\"),\"N\",\"Y\"))","v":"-"},{"$f":"IF(OR('Enrollment Form'!B802=\"Subscriber\",'Enrollment Form'!B802=\"\"),\"-\",IF('Enrollment Form'!BP802=\"\",\"N\",\"Y\"))","v":"-"},{"$f":"IF('Enrollment Form'!B802<>\"Subscriber\",\"-\",IF(AND('Enrollment Form'!B802=\"Subscriber\",'Enrollment Form'!G802=\"\"),\"N\",\"Y\"))","v":"-"},{"$f":"IF('Enrollment Form'!A802=\"\",\"\",IF('Enrollment Form'!B802=\"Subscriber\",\"-\",IF(AND('Enrollment Form'!B802<>\"Subscriber\",'Enrollment Form'!G802='Enrollment Form'!H802),\"N\",\"Y\")))","v":""},0]
[803,{"$f":"IF('Enrollment Form'!$A803<>\"\",\"Y\",\"N\")","v":"N"},{"$f":"IF(AND('Enrollment Form'!$B803=\"\",'Enrollment Form'!$C803<>\"\"),\"N\",IF($B796=\"N\",\"\",\"Y\"))","v":""},{"$f":"IF(OR($B796=\"N\",'Enrollment Form'!G803=\"\"),\"\",IF('Enrollment Form'!$B803<>\"Subscriber\",\"\",IF('Enrollment Form'!$G803='Enrollment Form'!$H803,\"Y\",\"N\")))","v":""},{"$f":"IF($B796=\"N\",\"\",IF(AND(COUNTIFS('Enrollment Form'!$H$11:$H$1000,'Enrollment Form'!$H803,'Enrollment Form'!$B$11:$B$1000,'Enrollment Form'!$B803)>1,'Enrollment Form'!$H803<>\"\"),\"N\",\"Y\"))","v":""},{"$f":"IF($B796=\"N\",\"\",IF(LEN('Enrollment Form'!$Y803)=0,\"\",IF(LEN('Enrollment Form'!$Y803)<>5,\"N\",\"Y\")))","v":""},{"$f":"IF($B796=\"N\",\"\",IF(LEN('Enrollment Form'!$AD803=0),\"\",IF(LEN('Enrollment Form'!$AD803)<>5,\"N\",\"Y\")))","v":""},{"$f":"IF($B796=\"N\",\"\",IF(LEN('Enrollment Form'!$BS803=0),\"\",IF(LEN('Enrollment Form'!$BS803)<>5,\"N\",\"Y\")))","v":""},{"$f":"IF($B796=\"N\",\"\",IF(LEN('Enrollment Form'!$AE803)=0,\"\",IF(LEN('Enrollment Form'!$AE803)<>10,\"N\",\"Y\")))","v":""},{"$f":"IF($B796=\"N\",\"\",IF(LEN('Enrollment Form'!$AF803)=0,\"\",IF(LEN('Enrollment Form'!$AF803)<>10,\"N\",\"Y\")))","v":""},{"$f":"IF('Enrollment Form'!$O803<>\"Graded\",\"-\",IF(AND('Enrollment Form'!$O803=\"Graded\",'Enrollment Form'!$AR803<>\"\"),\"Y\",\"N\"))","v":"-"},{"$f":"IF($B796=\"N\",\"\",IF(OR('Enrollment Form'!$B803<>\"Subscriber\",'Enrollment Form'!$C803=\"ROC\"),\"-\",IF(AND('Enrollment Form'!$B803=\"Subscriber\",'Enrollment Form'!$C803=\"Enroll\",'Enrollment Form'!$AJ803<>\"\"),\"Y\",\"N\")))","v":""},{"$f":"IF($B796=\"N\",\"\",IF(OR('Enrollment Form'!$B803<>\"Subscriber\",'Enrollment Form'!$C803=\"ROC\"),\"-\",IF(AND('Enrollment Form'!$B803=\"Subscriber\",'Enrollment Form'!$C803=\"Enroll\",'Enrollment Form'!$AK803<>\"\"),\"Y\",\"N\")))","v":""},{"$f":"IF($B796=\"N\",\"\",IF(OR('Enrollment Form'!$B803<>\"Subscriber\",'Enrollment Form'!$C803=\"ROC\"),\"-\",IF(AND('Enrollment Form'!$B803=\"Subscriber\",'Enrollment Form'!$C803=\"Enroll\",'Enrollment Form'!$AL803<>\"\"),\"Y\",\"N\")))","v":""},{"$f":"IF($B796=\"N\",\"\",IF(OR('Enrollment Form'!$B803<>\"Subscriber\",'Enrollment Form'!$C803=\"ROC\"),\"-\",IF(AND('Enrollment Form'!$B803=\"Subscriber\",'Enrollment Form'!$C803=\"Enroll\",'Enrollment Form'!$AP803<>\"\"),\"Y\",\"N\")))","v":""},{"$f":"IF($B796=\"N\",\"\",IF(OR('Enrollment Form'!$B803<>\"Subscriber\",'Enrollment Form'!$C803=\"ROC\"),\"-\",IF(AND('Enrollment Form'!$B803=\"Subscriber\",'Enrollment Form'!$C803=\"Enroll\",'Enrollment Form'!$AQ803<>\"\"),\"Y\",\"N\")))","v":""},{"$f":"IF($B796=\"N\",\"\",IF(OR('Enrollment Form'!$B803<>\"Subscriber\",'Enrollment Form'!$C803=\"ROC\"),\"-\",IF(AND('Enrollment Form'!$B803=\"Subscriber\",'Enrollment Form'!$C803=\"Enroll\",'Enrollment Form'!$AS803<>\"\"),\"Y\",\"N\")))","v":""},{"$f":"IF($B796=\"N\",\"\",IF($Q796=\"-\",\"-\",IF(AND($Q796=\"Y\",'Enrollment Form'!$AS803=\"No\"),\"-\",IF(AND($Q796=\"Y\",'Enrollment Form'!$AS803=\"Yes\",'Enrollment Form'!$AT803<>\"\"),\"Y\",\"N\"))))","v":""},{"$f":"IF($B796=\"N\",\"\",IF(OR('Enrollment Form'!$B803<>\"Subscriber\",'Enrollment Form'!$C803=\"ROC\"),\"-\",IF(AND('Enrollment Form'!$B803=\"Subscriber\",'Enrollment Form'!$C803=\"Enroll\",'Enrollment Form'!$CV803<>\"\"),\"Y\",\"N\")))","v":""},{"$f":"IF($B796=\"N\",\"\",IF($S796=\"-\",\"-\",IF(AND($S796=\"Y\",'Enrollment Form'!$CV803=\"No\"),\"-\",IF(AND($S796=\"Y\",'Enrollment Form'!$CV803=\"Yes\",'Enrollment Form'!$CW803<>\"\"),\"Y\",\"N\"))))","v":""},{"$f":"IF(OR('Enrollment Form'!$AY803=\"Yes\",'Enrollment Form'!$AY803=\"\"),\"-\",IF(OR(AND('Enrollment Form'!$AY803=\"No\",ISERROR(FIND(\"HMO\",VLOOKUP('Enrollment Form'!G803,'Enrollment Form'!H$11:J$1000,3,FALSE),1))=FALSE,COUNTA('Enrollment Form'!$AZ803:$BC803)=4),AND('Enrollment Form'!$AY803=\"No\",ISERROR(FIND(\"HMO\",VLOOKUP('Enrollment Form'!G803,'Enrollment Form'!H$11:J$1000,3,FALSE),1))=FALSE,COUNTA('Enrollment Form'!$BT803:$BW803)=4)),\"Y\",\"N\"))","v":"-"},{"$f":"IF($B796=\"N\",\"\",IF('Enrollment Form'!$B803=\"Subscriber\",\"-\",IF(COUNTA('Enrollment Form'!$BL803,'Enrollment Form'!$BN803)=2,\"Y\",\"N\")))","v":""},{"$f":"IF($B796=\"N\",\"\",IF(OR('Enrollment Form'!$AX803=\"\",'Enrollment Form'!$AX803=\"No\"),\"-\",IF(AND('Enrollment Form'!$AX803=\"Yes\",COUNTA('Enrollment Form'!$CR803)=1),\"Y\",\"N\")))","v":""},{"$f":"IF(OR('Enrollment Form'!$CR803=\"\",'Enrollment Form'!$CR803=\"No\"),\"-\",IF(COUNTA('Enrollment Form'!$CT803:$CU803)=2,\"Y\",\"N\"))","v":"-"},{"$f":"IF($B796=\"N\",\"\",IF(COUNTIF('Enrollment Form'!$DG803:$DP803,\"Other\")=COUNTA('Enrollment Form'!$DK803,'Enrollment Form'!$DH803,'Enrollment Form'!$DN803,'Enrollment Form'!$DQ803),\"Y\",\"N\"))","v":""},{"$f":"IF($B796=\"N\",\"\",IF(OR('Enrollment Form'!B803<>\"Subscriber\",'Enrollment Form'!C803=\"ROC\",COUNTIF('Enrollment Form'!AV803:AW803,\"Yes\")>=1),\"-\",IF(AND('Enrollment Form'!C803=\"Enroll\",COUNTIF('Enrollment Form'!AV803:AW803,\"No\")=2,'Enrollment Form'!AX803=\"\"),\"N\",\"Y\")))","v":""},{"$f":"IF(OR(B796=\"N\",'Enrollment Form'!B803<>\"Subscriber\",'Enrollment Form'!C803=\"ROC\",'Enrollment Form'!O803<>\"Multiple of Salary\"),\"-\",IF(COUNTA('Enrollment Form'!T803:U803)<2,\"N\",\"Y\"))","v":"-"},{"$f":"IF(B796=\"N\",\"\",IF(OR('Enrollment Form'!C803=\"ROC\",'Enrollment Form'!B803<>\"Subscriber\",'Enrollment Form'!O803=\"Waive\",'Enrollment Form'!O803=\"\"),\"-\",IF('Enrollment Form'!P803=\"\",\"N\",\"Y\")))","v":""},{"$f":"IF($B796=\"N\",\"\",IF(AND('Enrollment Form'!$C803=\"ROC\",'Enrollment Form'!$DR803<>\"\"),\"Y\",IF(AND('Enrollment Form'!$C803=\"ROC\",'Enrollment Form'!$DR803=\"\"),\"N\",IF(AND('Enrollment Form'!$C803=\"Enroll\",'Enrollment Form'!$B803=\"Subscriber\",'Enrollment Form'!$CX803=\"No\",'Enrollment Form'!$DR803=\"\"),\"N\",IF(AND('Enrollment Form'!$C803=\"Enroll\",'Enrollment Form'!$B803=\"Subscriber\",'Enrollment Form'!$CX803=\"Yes\"),\"-\",\"Y\")))))","v":""},{"$f":"IF($B796=\"N\",\"\",IF(AND('Enrollment Form'!$C803=\"ROC\",'Enrollment Form'!$DS803<>\"\"),\"Y\",IF(AND('Enrollment Form'!$C803=\"ROC\",'Enrollment Form'!$DS803=\"\"),\"N\",IF(AND('Enrollment Form'!$C803=\"Enroll\",'Enrollment Form'!$B803=\"Subscriber\",'Enrollment Form'!$CX803=\"No\",'Enrollment Form'!$DS803=\"\"),\"N\",IF(AND('Enrollment Form'!$C803=\"Enroll\",'Enrollment Form'!$B803=\"Subscriber\",'Enrollment Form'!$CX803=\"Yes\"),\"-\",\"Y\")))))","v":""},{"$f":"IF('Enrollment Form'!AH803=\"\",\"\",IF(ISERROR(SEARCH(\".\",'Enrollment Form'!AH803,SEARCH(\"@\",'Enrollment Form'!AH803))),\"N\",\"Y\"))","v":""},{"$f":"IF(OR($B796=\"N\",'Enrollment Form'!$G803=\"\"),\"\",IF('Enrollment Form'!$B803<>\"Subscriber\",\"-\",IF(COUNTIF('Enrollment Form'!$AV803:$AW803,\"Yes\")=2,\"N\",\"Y\")))","v":""},{"$f":"IF(OR('Enrollment Form'!$CJ803=\"\",'Enrollment Form'!$CJ803=\"No\"),\"-\",IF(AND('Enrollment Form'!$CJ803=\"Yes\",'Enrollment Form'!$CK803=\"\"),\"N\",\"Y\"))","v":"-"},{"$f":"IF(OR('Enrollment Form'!$CL803=\"\",'Enrollment Form'!$CL803=\"No\"),\"-\",IF(AND('Enrollment Form'!$CL803=\"Yes\",'Enrollment Form'!$CM803=\"\"),\"N\",\"Y\"))","v":"-"},{"$f":"IF(OR('Enrollment Form'!$CN803=\"\",'Enrollment Form'!$CN803=\"No\"),\"-\",IF(AND('Enrollment Form'!$CN803=\"Yes\",'Enrollment Form'!$CO803=\"\"),\"N\",\"Y\"))","v":"-"},{"$f":"IF(OR('Enrollment Form'!$CN803=\"\",'Enrollment Form'!$CN803=\"No\"),\"-\",IF(AND('Enrollment Form'!$CN803=\"Yes\",'Enrollment Form'!$CP803=\"\"),\"N\",\"Y\"))","v":"-"},{"$f":"IF('Enrollment Form'!B803<>\"Subscriber\",\"-\",IF(AND('Enrollment Form'!B803=\"Subscriber\",'Enrollment Form'!C803=\"Enroll\",'Enrollment Form'!AA803=\"\"),\"N\",\"Y\"))","v":"-"},{"$f":"IF(OR('Enrollment Form'!B803=\"Subscriber\",'Enrollment Form'!B803=\"\"),\"-\",IF('Enrollment Form'!BP803=\"\",\"N\",\"Y\"))","v":"-"},{"$f":"IF('Enrollment Form'!B803<>\"Subscriber\",\"-\",IF(AND('Enrollment Form'!B803=\"Subscriber\",'Enrollment Form'!G803=\"\"),\"N\",\"Y\"))","v":"-"},{"$f":"IF('Enrollment Form'!A803=\"\",\"\",IF('Enrollment Form'!B803=\"Subscriber\",\"-\",IF(AND('Enrollment Form'!B803<>\"Subscriber\",'Enrollment Form'!G803='Enrollment Form'!H803),\"N\",\"Y\")))","v":""},0]
[804,{"$f":"IF('Enrollment Form'!$A804<>\"\",\"Y\",\"N\")","v":"N"},{"$f":"IF(AND('Enrollment Form'!$B804=\"\",'Enrollment Form'!$C804<>\"\"),\"N\",IF($B797=\"N\",\"\",\"Y\"))","v":""},{"$f":"IF(OR($B797=\"N\",'Enrollment Form'!G804=\"\"),\"\",IF('Enrollment Form'!$B804<>\"Subscriber\",\"\",IF('Enrollment Form'!$G804='Enrollment Form'!$H804,\"Y\",\"N\")))","v":""},{"$f":"IF($B797=\"N\",\"\",IF(AND(COUNTIFS('Enrollment Form'!$H$11:$H$1000,'Enrollment Form'!$H804,'Enrollment Form'!$B$11:$B$1000,'Enrollment Form'!$B804)>1,'Enrollment Form'!$H804<>\"\"),\"N\",\"Y\"))","v":""},{"$f":"IF($B797=\"N\",\"\",IF(LEN('Enrollment Form'!$Y804)=0,\"\",IF(LEN('Enrollment Form'!$Y804)<>5,\"N\",\"Y\")))","v":""},{"$f":"IF($B797=\"N\",\"\",IF(LEN('Enrollment Form'!$AD804=0),\"\",IF(LEN('Enrollment Form'!$AD804)<>5,\"N\",\"Y\")))","v":""},{"$f":"IF($B797=\"N\",\"\",IF(LEN('Enrollment Form'!$BS804=0),\"\",IF(LEN('Enrollment Form'!$BS804)<>5,\"N\",\"Y\")))","v":""},{"$f":"IF($B797=\"N\",\"\",IF(LEN('Enrollment Form'!$AE804)=0,\"\",IF(LEN('Enrollment Form'!$AE804)<>10,\"N\",\"Y\")))","v":""},{"$f":"IF($B797=\"N\",\"\",IF(LEN('Enrollment Form'!$AF804)=0,\"\",IF(LEN('Enrollment Form'!$AF804)<>10,\"N\",\"Y\")))","v":""},{"$f":"IF('Enrollment Form'!$O804<>\"Graded\",\"-\",IF(AND('Enrollment Form'!$O804=\"Graded\",'Enrollment Form'!$AR804<>\"\"),\"Y\",\"N\"))","v":"-"},{"$f":"IF($B797=\"N\",\"\",IF(OR('Enrollment Form'!$B804<>\"Subscriber\",'Enrollment Form'!$C804=\"ROC\"),\"-\",IF(AND('Enrollment Form'!$B804=\"Subscriber\",'Enrollment Form'!$C804=\"Enroll\",'Enrollment Form'!$AJ804<>\"\"),\"Y\",\"N\")))","v":""},{"$f":"IF($B797=\"N\",\"\",IF(OR('Enrollment Form'!$B804<>\"Subscriber\",'Enrollment Form'!$C804=\"ROC\"),\"-\",IF(AND('Enrollment Form'!$B804=\"Subscriber\",'Enrollment Form'!$C804=\"Enroll\",'Enrollment Form'!$AK804<>\"\"),\"Y\",\"N\")))","v":""},{"$f":"IF($B797=\"N\",\"\",IF(OR('Enrollment Form'!$B804<>\"Subscriber\",'Enrollment Form'!$C804=\"ROC\"),\"-\",IF(AND('Enrollment Form'!$B804=\"Subscriber\",'Enrollment Form'!$C804=\"Enroll\",'Enrollment Form'!$AL804<>\"\"),\"Y\",\"N\")))","v":""},{"$f":"IF($B797=\"N\",\"\",IF(OR('Enrollment Form'!$B804<>\"Subscriber\",'Enrollment Form'!$C804=\"ROC\"),\"-\",IF(AND('Enrollment Form'!$B804=\"Subscriber\",'Enrollment Form'!$C804=\"Enroll\",'Enrollment Form'!$AP804<>\"\"),\"Y\",\"N\")))","v":""},{"$f":"IF($B797=\"N\",\"\",IF(OR('Enrollment Form'!$B804<>\"Subscriber\",'Enrollment Form'!$C804=\"ROC\"),\"-\",IF(AND('Enrollment Form'!$B804=\"Subscriber\",'Enrollment Form'!$C804=\"Enroll\",'Enrollment Form'!$AQ804<>\"\"),\"Y\",\"N\")))","v":""},{"$f":"IF($B797=\"N\",\"\",IF(OR('Enrollment Form'!$B804<>\"Subscriber\",'Enrollment Form'!$C804=\"ROC\"),\"-\",IF(AND('Enrollment Form'!$B804=\"Subscriber\",'Enrollment Form'!$C804=\"Enroll\",'Enrollment Form'!$AS804<>\"\"),\"Y\",\"N\")))","v":""},{"$f":"IF($B797=\"N\",\"\",IF($Q797=\"-\",\"-\",IF(AND($Q797=\"Y\",'Enrollment Form'!$AS804=\"No\"),\"-\",IF(AND($Q797=\"Y\",'Enrollment Form'!$AS804=\"Yes\",'Enrollment Form'!$AT804<>\"\"),\"Y\",\"N\"))))","v":""},{"$f":"IF($B797=\"N\",\"\",IF(OR('Enrollment Form'!$B804<>\"Subscriber\",'Enrollment Form'!$C804=\"ROC\"),\"-\",IF(AND('Enrollment Form'!$B804=\"Subscriber\",'Enrollment Form'!$C804=\"Enroll\",'Enrollment Form'!$CV804<>\"\"),\"Y\",\"N\")))","v":""},{"$f":"IF($B797=\"N\",\"\",IF($S797=\"-\",\"-\",IF(AND($S797=\"Y\",'Enrollment Form'!$CV804=\"No\"),\"-\",IF(AND($S797=\"Y\",'Enrollment Form'!$CV804=\"Yes\",'Enrollment Form'!$CW804<>\"\"),\"Y\",\"N\"))))","v":""},{"$f":"IF(OR('Enrollment Form'!$AY804=\"Yes\",'Enrollment Form'!$AY804=\"\"),\"-\",IF(OR(AND('Enrollment Form'!$AY804=\"No\",ISERROR(FIND(\"HMO\",VLOOKUP('Enrollment Form'!G804,'Enrollment Form'!H$11:J$1000,3,FALSE),1))=FALSE,COUNTA('Enrollment Form'!$AZ804:$BC804)=4),AND('Enrollment Form'!$AY804=\"No\",ISERROR(FIND(\"HMO\",VLOOKUP('Enrollment Form'!G804,'Enrollment Form'!H$11:J$1000,3,FALSE),1))=FALSE,COUNTA('Enrollment Form'!$BT804:$BW804)=4)),\"Y\",\"N\"))","v":"-"},{"$f":"IF($B797=\"N\",\"\",IF('Enrollment Form'!$B804=\"Subscriber\",\"-\",IF(COUNTA('Enrollment Form'!$BL804,'Enrollment Form'!$BN804)=2,\"Y\",\"N\")))","v":""},{"$f":"IF($B797=\"N\",\"\",IF(OR('Enrollment Form'!$AX804=\"\",'Enrollment Form'!$AX804=\"No\"),\"-\",IF(AND('Enrollment Form'!$AX804=\"Yes\",COUNTA('Enrollment Form'!$CR804)=1),\"Y\",\"N\")))","v":""},{"$f":"IF(OR('Enrollment Form'!$CR804=\"\",'Enrollment Form'!$CR804=\"No\"),\"-\",IF(COUNTA('Enrollment Form'!$CT804:$CU804)=2,\"Y\",\"N\"))","v":"-"},{"$f":"IF($B797=\"N\",\"\",IF(COUNTIF('Enrollment Form'!$DG804:$DP804,\"Other\")=COUNTA('Enrollment Form'!$DK804,'Enrollment Form'!$DH804,'Enrollment Form'!$DN804,'Enrollment Form'!$DQ804),\"Y\",\"N\"))","v":""},{"$f":"IF($B797=\"N\",\"\",IF(OR('Enrollment Form'!B804<>\"Subscriber\",'Enrollment Form'!C804=\"ROC\",COUNTIF('Enrollment Form'!AV804:AW804,\"Yes\")>=1),\"-\",IF(AND('Enrollment Form'!C804=\"Enroll\",COUNTIF('Enrollment Form'!AV804:AW804,\"No\")=2,'Enrollment Form'!AX804=\"\"),\"N\",\"Y\")))","v":""},{"$f":"IF(OR(B797=\"N\",'Enrollment Form'!B804<>\"Subscriber\",'Enrollment Form'!C804=\"ROC\",'Enrollment Form'!O804<>\"Multiple of Salary\"),\"-\",IF(COUNTA('Enrollment Form'!T804:U804)<2,\"N\",\"Y\"))","v":"-"},{"$f":"IF(B797=\"N\",\"\",IF(OR('Enrollment Form'!C804=\"ROC\",'Enrollment Form'!B804<>\"Subscriber\",'Enrollment Form'!O804=\"Waive\",'Enrollment Form'!O804=\"\"),\"-\",IF('Enrollment Form'!P804=\"\",\"N\",\"Y\")))","v":""},{"$f":"IF($B797=\"N\",\"\",IF(AND('Enrollment Form'!$C804=\"ROC\",'Enrollment Form'!$DR804<>\"\"),\"Y\",IF(AND('Enrollment Form'!$C804=\"ROC\",'Enrollment Form'!$DR804=\"\"),\"N\",IF(AND('Enrollment Form'!$C804=\"Enroll\",'Enrollment Form'!$B804=\"Subscriber\",'Enrollment Form'!$CX804=\"No\",'Enrollment Form'!$DR804=\"\"),\"N\",IF(AND('Enrollment Form'!$C804=\"Enroll\",'Enrollment Form'!$B804=\"Subscriber\",'Enrollment Form'!$CX804=\"Yes\"),\"-\",\"Y\")))))","v":""},{"$f":"IF($B797=\"N\",\"\",IF(AND('Enrollment Form'!$C804=\"ROC\",'Enrollment Form'!$DS804<>\"\"),\"Y\",IF(AND('Enrollment Form'!$C804=\"ROC\",'Enrollment Form'!$DS804=\"\"),\"N\",IF(AND('Enrollment Form'!$C804=\"Enroll\",'Enrollment Form'!$B804=\"Subscriber\",'Enrollment Form'!$CX804=\"No\",'Enrollment Form'!$DS804=\"\"),\"N\",IF(AND('Enrollment Form'!$C804=\"Enroll\",'Enrollment Form'!$B804=\"Subscriber\",'Enrollment Form'!$CX804=\"Yes\"),\"-\",\"Y\")))))","v":""},{"$f":"IF('Enrollment Form'!AH804=\"\",\"\",IF(ISERROR(SEARCH(\".\",'Enrollment Form'!AH804,SEARCH(\"@\",'Enrollment Form'!AH804))),\"N\",\"Y\"))","v":""},{"$f":"IF(OR($B797=\"N\",'Enrollment Form'!$G804=\"\"),\"\",IF('Enrollment Form'!$B804<>\"Subscriber\",\"-\",IF(COUNTIF('Enrollment Form'!$AV804:$AW804,\"Yes\")=2,\"N\",\"Y\")))","v":""},{"$f":"IF(OR('Enrollment Form'!$CJ804=\"\",'Enrollment Form'!$CJ804=\"No\"),\"-\",IF(AND('Enrollment Form'!$CJ804=\"Yes\",'Enrollment Form'!$CK804=\"\"),\"N\",\"Y\"))","v":"-"},{"$f":"IF(OR('Enrollment Form'!$CL804=\"\",'Enrollment Form'!$CL804=\"No\"),\"-\",IF(AND('Enrollment Form'!$CL804=\"Yes\",'Enrollment Form'!$CM804=\"\"),\"N\",\"Y\"))","v":"-"},{"$f":"IF(OR('Enrollment Form'!$CN804=\"\",'Enrollment Form'!$CN804=\"No\"),\"-\",IF(AND('Enrollment Form'!$CN804=\"Yes\",'Enrollment Form'!$CO804=\"\"),\"N\",\"Y\"))","v":"-"},{"$f":"IF(OR('Enrollment Form'!$CN804=\"\",'Enrollment Form'!$CN804=\"No\"),\"-\",IF(AND('Enrollment Form'!$CN804=\"Yes\",'Enrollment Form'!$CP804=\"\"),\"N\",\"Y\"))","v":"-"},{"$f":"IF('Enrollment Form'!B804<>\"Subscriber\",\"-\",IF(AND('Enrollment Form'!B804=\"Subscriber\",'Enrollment Form'!C804=\"Enroll\",'Enrollment Form'!AA804=\"\"),\"N\",\"Y\"))","v":"-"},{"$f":"IF(OR('Enrollment Form'!B804=\"Subscriber\",'Enrollment Form'!B804=\"\"),\"-\",IF('Enrollment Form'!BP804=\"\",\"N\",\"Y\"))","v":"-"},{"$f":"IF('Enrollment Form'!B804<>\"Subscriber\",\"-\",IF(AND('Enrollment Form'!B804=\"Subscriber\",'Enrollment Form'!G804=\"\"),\"N\",\"Y\"))","v":"-"},{"$f":"IF('Enrollment Form'!A804=\"\",\"\",IF('Enrollment Form'!B804=\"Subscriber\",\"-\",IF(AND('Enrollment Form'!B804<>\"Subscriber\",'Enrollment Form'!G804='Enrollment Form'!H804),\"N\",\"Y\")))","v":""},0]
[805,{"$f":"IF('Enrollment Form'!$A805<>\"\",\"Y\",\"N\")","v":"N"},{"$f":"IF(AND('Enrollment Form'!$B805=\"\",'Enrollment Form'!$C805<>\"\"),\"N\",IF($B798=\"N\",\"\",\"Y\"))","v":""},{"$f":"IF(OR($B798=\"N\",'Enrollment Form'!G805=\"\"),\"\",IF('Enrollment Form'!$B805<>\"Subscriber\",\"\",IF('Enrollment Form'!$G805='Enrollment Form'!$H805,\"Y\",\"N\")))","v":""},{"$f":"IF($B798=\"N\",\"\",IF(AND(COUNTIFS('Enrollment Form'!$H$11:$H$1000,'Enrollment Form'!$H805,'Enrollment Form'!$B$11:$B$1000,'Enrollment Form'!$B805)>1,'Enrollment Form'!$H805<>\"\"),\"N\",\"Y\"))","v":""},{"$f":"IF($B798=\"N\",\"\",IF(LEN('Enrollment Form'!$Y805)=0,\"\",IF(LEN('Enrollment Form'!$Y805)<>5,\"N\",\"Y\")))","v":""},{"$f":"IF($B798=\"N\",\"\",IF(LEN('Enrollment Form'!$AD805=0),\"\",IF(LEN('Enrollment Form'!$AD805)<>5,\"N\",\"Y\")))","v":""},{"$f":"IF($B798=\"N\",\"\",IF(LEN('Enrollment Form'!$BS805=0),\"\",IF(LEN('Enrollment Form'!$BS805)<>5,\"N\",\"Y\")))","v":""},{"$f":"IF($B798=\"N\",\"\",IF(LEN('Enrollment Form'!$AE805)=0,\"\",IF(LEN('Enrollment Form'!$AE805)<>10,\"N\",\"Y\")))","v":""},{"$f":"IF($B798=\"N\",\"\",IF(LEN('Enrollment Form'!$AF805)=0,\"\",IF(LEN('Enrollment Form'!$AF805)<>10,\"N\",\"Y\")))","v":""},{"$f":"IF('Enrollment Form'!$O805<>\"Graded\",\"-\",IF(AND('Enrollment Form'!$O805=\"Graded\",'Enrollment Form'!$AR805<>\"\"),\"Y\",\"N\"))","v":"-"},{"$f":"IF($B798=\"N\",\"\",IF(OR('Enrollment Form'!$B805<>\"Subscriber\",'Enrollment Form'!$C805=\"ROC\"),\"-\",IF(AND('Enrollment Form'!$B805=\"Subscriber\",'Enrollment Form'!$C805=\"Enroll\",'Enrollment Form'!$AJ805<>\"\"),\"Y\",\"N\")))","v":""},{"$f":"IF($B798=\"N\",\"\",IF(OR('Enrollment Form'!$B805<>\"Subscriber\",'Enrollment Form'!$C805=\"ROC\"),\"-\",IF(AND('Enrollment Form'!$B805=\"Subscriber\",'Enrollment Form'!$C805=\"Enroll\",'Enrollment Form'!$AK805<>\"\"),\"Y\",\"N\")))","v":""},{"$f":"IF($B798=\"N\",\"\",IF(OR('Enrollment Form'!$B805<>\"Subscriber\",'Enrollment Form'!$C805=\"ROC\"),\"-\",IF(AND('Enrollment Form'!$B805=\"Subscriber\",'Enrollment Form'!$C805=\"Enroll\",'Enrollment Form'!$AL805<>\"\"),\"Y\",\"N\")))","v":""},{"$f":"IF($B798=\"N\",\"\",IF(OR('Enrollment Form'!$B805<>\"Subscriber\",'Enrollment Form'!$C805=\"ROC\"),\"-\",IF(AND('Enrollment Form'!$B805=\"Subscriber\",'Enrollment Form'!$C805=\"Enroll\",'Enrollment Form'!$AP805<>\"\"),\"Y\",\"N\")))","v":""},{"$f":"IF($B798=\"N\",\"\",IF(OR('Enrollment Form'!$B805<>\"Subscriber\",'Enrollment Form'!$C805=\"ROC\"),\"-\",IF(AND('Enrollment Form'!$B805=\"Subscriber\",'Enrollment Form'!$C805=\"Enroll\",'Enrollment Form'!$AQ805<>\"\"),\"Y\",\"N\")))","v":""},{"$f":"IF($B798=\"N\",\"\",IF(OR('Enrollment Form'!$B805<>\"Subscriber\",'Enrollment Form'!$C805=\"ROC\"),\"-\",IF(AND('Enrollment Form'!$B805=\"Subscriber\",'Enrollment Form'!$C805=\"Enroll\",'Enrollment Form'!$AS805<>\"\"),\"Y\",\"N\")))","v":""},{"$f":"IF($B798=\"N\",\"\",IF($Q798=\"-\",\"-\",IF(AND($Q798=\"Y\",'Enrollment Form'!$AS805=\"No\"),\"-\",IF(AND($Q798=\"Y\",'Enrollment Form'!$AS805=\"Yes\",'Enrollment Form'!$AT805<>\"\"),\"Y\",\"N\"))))","v":""},{"$f":"IF($B798=\"N\",\"\",IF(OR('Enrollment Form'!$B805<>\"Subscriber\",'Enrollment Form'!$C805=\"ROC\"),\"-\",IF(AND('Enrollment Form'!$B805=\"Subscriber\",'Enrollment Form'!$C805=\"Enroll\",'Enrollment Form'!$CV805<>\"\"),\"Y\",\"N\")))","v":""},{"$f":"IF($B798=\"N\",\"\",IF($S798=\"-\",\"-\",IF(AND($S798=\"Y\",'Enrollment Form'!$CV805=\"No\"),\"-\",IF(AND($S798=\"Y\",'Enrollment Form'!$CV805=\"Yes\",'Enrollment Form'!$CW805<>\"\"),\"Y\",\"N\"))))","v":""},{"$f":"IF(OR('Enrollment Form'!$AY805=\"Yes\",'Enrollment Form'!$AY805=\"\"),\"-\",IF(OR(AND('Enrollment Form'!$AY805=\"No\",ISERROR(FIND(\"HMO\",VLOOKUP('Enrollment Form'!G805,'Enrollment Form'!H$11:J$1000,3,FALSE),1))=FALSE,COUNTA('Enrollment Form'!$AZ805:$BC805)=4),AND('Enrollment Form'!$AY805=\"No\",ISERROR(FIND(\"HMO\",VLOOKUP('Enrollment Form'!G805,'Enrollment Form'!H$11:J$1000,3,FALSE),1))=FALSE,COUNTA('Enrollment Form'!$BT805:$BW805)=4)),\"Y\",\"N\"))","v":"-"},{"$f":"IF($B798=\"N\",\"\",IF('Enrollment Form'!$B805=\"Subscriber\",\"-\",IF(COUNTA('Enrollment Form'!$BL805,'Enrollment Form'!$BN805)=2,\"Y\",\"N\")))","v":""},{"$f":"IF($B798=\"N\",\"\",IF(OR('Enrollment Form'!$AX805=\"\",'Enrollment Form'!$AX805=\"No\"),\"-\",IF(AND('Enrollment Form'!$AX805=\"Yes\",COUNTA('Enrollment Form'!$CR805)=1),\"Y\",\"N\")))","v":""},{"$f":"IF(OR('Enrollment Form'!$CR805=\"\",'Enrollment Form'!$CR805=\"No\"),\"-\",IF(COUNTA('Enrollment Form'!$CT805:$CU805)=2,\"Y\",\"N\"))","v":"-"},{"$f":"IF($B798=\"N\",\"\",IF(COUNTIF('Enrollment Form'!$DG805:$DP805,\"Other\")=COUNTA('Enrollment Form'!$DK805,'Enrollment Form'!$DH805,'Enrollment Form'!$DN805,'Enrollment Form'!$DQ805),\"Y\",\"N\"))","v":""},{"$f":"IF($B798=\"N\",\"\",IF(OR('Enrollment Form'!B805<>\"Subscriber\",'Enrollment Form'!C805=\"ROC\",COUNTIF('Enrollment Form'!AV805:AW805,\"Yes\")>=1),\"-\",IF(AND('Enrollment Form'!C805=\"Enroll\",COUNTIF('Enrollment Form'!AV805:AW805,\"No\")=2,'Enrollment Form'!AX805=\"\"),\"N\",\"Y\")))","v":""},{"$f":"IF(OR(B798=\"N\",'Enrollment Form'!B805<>\"Subscriber\",'Enrollment Form'!C805=\"ROC\",'Enrollment Form'!O805<>\"Multiple of Salary\"),\"-\",IF(COUNTA('Enrollment Form'!T805:U805)<2,\"N\",\"Y\"))","v":"-"},{"$f":"IF(B798=\"N\",\"\",IF(OR('Enrollment Form'!C805=\"ROC\",'Enrollment Form'!B805<>\"Subscriber\",'Enrollment Form'!O805=\"Waive\",'Enrollment Form'!O805=\"\"),\"-\",IF('Enrollment Form'!P805=\"\",\"N\",\"Y\")))","v":""},{"$f":"IF($B798=\"N\",\"\",IF(AND('Enrollment Form'!$C805=\"ROC\",'Enrollment Form'!$DR805<>\"\"),\"Y\",IF(AND('Enrollment Form'!$C805=\"ROC\",'Enrollment Form'!$DR805=\"\"),\"N\",IF(AND('Enrollment Form'!$C805=\"Enroll\",'Enrollment Form'!$B805=\"Subscriber\",'Enrollment Form'!$CX805=\"No\",'Enrollment Form'!$DR805=\"\"),\"N\",IF(AND('Enrollment Form'!$C805=\"Enroll\",'Enrollment Form'!$B805=\"Subscriber\",'Enrollment Form'!$CX805=\"Yes\"),\"-\",\"Y\")))))","v":""},{"$f":"IF($B798=\"N\",\"\",IF(AND('Enrollment Form'!$C805=\"ROC\",'Enrollment Form'!$DS805<>\"\"),\"Y\",IF(AND('Enrollment Form'!$C805=\"ROC\",'Enrollment Form'!$DS805=\"\"),\"N\",IF(AND('Enrollment Form'!$C805=\"Enroll\",'Enrollment Form'!$B805=\"Subscriber\",'Enrollment Form'!$CX805=\"No\",'Enrollment Form'!$DS805=\"\"),\"N\",IF(AND('Enrollment Form'!$C805=\"Enroll\",'Enrollment Form'!$B805=\"Subscriber\",'Enrollment Form'!$CX805=\"Yes\"),\"-\",\"Y\")))))","v":""},{"$f":"IF('Enrollment Form'!AH805=\"\",\"\",IF(ISERROR(SEARCH(\".\",'Enrollment Form'!AH805,SEARCH(\"@\",'Enrollment Form'!AH805))),\"N\",\"Y\"))","v":""},{"$f":"IF(OR($B798=\"N\",'Enrollment Form'!$G805=\"\"),\"\",IF('Enrollment Form'!$B805<>\"Subscriber\",\"-\",IF(COUNTIF('Enrollment Form'!$AV805:$AW805,\"Yes\")=2,\"N\",\"Y\")))","v":""},{"$f":"IF(OR('Enrollment Form'!$CJ805=\"\",'Enrollment Form'!$CJ805=\"No\"),\"-\",IF(AND('Enrollment Form'!$CJ805=\"Yes\",'Enrollment Form'!$CK805=\"\"),\"N\",\"Y\"))","v":"-"},{"$f":"IF(OR('Enrollment Form'!$CL805=\"\",'Enrollment Form'!$CL805=\"No\"),\"-\",IF(AND('Enrollment Form'!$CL805=\"Yes\",'Enrollment Form'!$CM805=\"\"),\"N\",\"Y\"))","v":"-"},{"$f":"IF(OR('Enrollment Form'!$CN805=\"\",'Enrollment Form'!$CN805=\"No\"),\"-\",IF(AND('Enrollment Form'!$CN805=\"Yes\",'Enrollment Form'!$CO805=\"\"),\"N\",\"Y\"))","v":"-"},{"$f":"IF(OR('Enrollment Form'!$CN805=\"\",'Enrollment Form'!$CN805=\"No\"),\"-\",IF(AND('Enrollment Form'!$CN805=\"Yes\",'Enrollment Form'!$CP805=\"\"),\"N\",\"Y\"))","v":"-"},{"$f":"IF('Enrollment Form'!B805<>\"Subscriber\",\"-\",IF(AND('Enrollment Form'!B805=\"Subscriber\",'Enrollment Form'!C805=\"Enroll\",'Enrollment Form'!AA805=\"\"),\"N\",\"Y\"))","v":"-"},{"$f":"IF(OR('Enrollment Form'!B805=\"Subscriber\",'Enrollment Form'!B805=\"\"),\"-\",IF('Enrollment Form'!BP805=\"\",\"N\",\"Y\"))","v":"-"},{"$f":"IF('Enrollment Form'!B805<>\"Subscriber\",\"-\",IF(AND('Enrollment Form'!B805=\"Subscriber\",'Enrollment Form'!G805=\"\"),\"N\",\"Y\"))","v":"-"},{"$f":"IF('Enrollment Form'!A805=\"\",\"\",IF('Enrollment Form'!B805=\"Subscriber\",\"-\",IF(AND('Enrollment Form'!B805<>\"Subscriber\",'Enrollment Form'!G805='Enrollment Form'!H805),\"N\",\"Y\")))","v":""},0]
[806,{"$f":"IF('Enrollment Form'!$A806<>\"\",\"Y\",\"N\")","v":"N"},{"$f":"IF(AND('Enrollment Form'!$B806=\"\",'Enrollment Form'!$C806<>\"\"),\"N\",IF($B799=\"N\",\"\",\"Y\"))","v":""},{"$f":"IF(OR($B799=\"N\",'Enrollment Form'!G806=\"\"),\"\",IF('Enrollment Form'!$B806<>\"Subscriber\",\"\",IF('Enrollment Form'!$G806='Enrollment Form'!$H806,\"Y\",\"N\")))","v":""},{"$f":"IF($B799=\"N\",\"\",IF(AND(COUNTIFS('Enrollment Form'!$H$11:$H$1000,'Enrollment Form'!$H806,'Enrollment Form'!$B$11:$B$1000,'Enrollment Form'!$B806)>1,'Enrollment Form'!$H806<>\"\"),\"N\",\"Y\"))","v":""},{"$f":"IF($B799=\"N\",\"\",IF(LEN('Enrollment Form'!$Y806)=0,\"\",IF(LEN('Enrollment Form'!$Y806)<>5,\"N\",\"Y\")))","v":""},{"$f":"IF($B799=\"N\",\"\",IF(LEN('Enrollment Form'!$AD806=0),\"\",IF(LEN('Enrollment Form'!$AD806)<>5,\"N\",\"Y\")))","v":""},{"$f":"IF($B799=\"N\",\"\",IF(LEN('Enrollment Form'!$BS806=0),\"\",IF(LEN('Enrollment Form'!$BS806)<>5,\"N\",\"Y\")))","v":""},{"$f":"IF($B799=\"N\",\"\",IF(LEN('Enrollment Form'!$AE806)=0,\"\",IF(LEN('Enrollment Form'!$AE806)<>10,\"N\",\"Y\")))","v":""},{"$f":"IF($B799=\"N\",\"\",IF(LEN('Enrollment Form'!$AF806)=0,\"\",IF(LEN('Enrollment Form'!$AF806)<>10,\"N\",\"Y\")))","v":""},{"$f":"IF('Enrollment Form'!$O806<>\"Graded\",\"-\",IF(AND('Enrollment Form'!$O806=\"Graded\",'Enrollment Form'!$AR806<>\"\"),\"Y\",\"N\"))","v":"-"},{"$f":"IF($B799=\"N\",\"\",IF(OR('Enrollment Form'!$B806<>\"Subscriber\",'Enrollment Form'!$C806=\"ROC\"),\"-\",IF(AND('Enrollment Form'!$B806=\"Subscriber\",'Enrollment Form'!$C806=\"Enroll\",'Enrollment Form'!$AJ806<>\"\"),\"Y\",\"N\")))","v":""},{"$f":"IF($B799=\"N\",\"\",IF(OR('Enrollment Form'!$B806<>\"Subscriber\",'Enrollment Form'!$C806=\"ROC\"),\"-\",IF(AND('Enrollment Form'!$B806=\"Subscriber\",'Enrollment Form'!$C806=\"Enroll\",'Enrollment Form'!$AK806<>\"\"),\"Y\",\"N\")))","v":""},{"$f":"IF($B799=\"N\",\"\",IF(OR('Enrollment Form'!$B806<>\"Subscriber\",'Enrollment Form'!$C806=\"ROC\"),\"-\",IF(AND('Enrollment Form'!$B806=\"Subscriber\",'Enrollment Form'!$C806=\"Enroll\",'Enrollment Form'!$AL806<>\"\"),\"Y\",\"N\")))","v":""},{"$f":"IF($B799=\"N\",\"\",IF(OR('Enrollment Form'!$B806<>\"Subscriber\",'Enrollment Form'!$C806=\"ROC\"),\"-\",IF(AND('Enrollment Form'!$B806=\"Subscriber\",'Enrollment Form'!$C806=\"Enroll\",'Enrollment Form'!$AP806<>\"\"),\"Y\",\"N\")))","v":""},{"$f":"IF($B799=\"N\",\"\",IF(OR('Enrollment Form'!$B806<>\"Subscriber\",'Enrollment Form'!$C806=\"ROC\"),\"-\",IF(AND('Enrollment Form'!$B806=\"Subscriber\",'Enrollment Form'!$C806=\"Enroll\",'Enrollment Form'!$AQ806<>\"\"),\"Y\",\"N\")))","v":""},{"$f":"IF($B799=\"N\",\"\",IF(OR('Enrollment Form'!$B806<>\"Subscriber\",'Enrollment Form'!$C806=\"ROC\"),\"-\",IF(AND('Enrollment Form'!$B806=\"Subscriber\",'Enrollment Form'!$C806=\"Enroll\",'Enrollment Form'!$AS806<>\"\"),\"Y\",\"N\")))","v":""},{"$f":"IF($B799=\"N\",\"\",IF($Q799=\"-\",\"-\",IF(AND($Q799=\"Y\",'Enrollment Form'!$AS806=\"No\"),\"-\",IF(AND($Q799=\"Y\",'Enrollment Form'!$AS806=\"Yes\",'Enrollment Form'!$AT806<>\"\"),\"Y\",\"N\"))))","v":""},{"$f":"IF($B799=\"N\",\"\",IF(OR('Enrollment Form'!$B806<>\"Subscriber\",'Enrollment Form'!$C806=\"ROC\"),\"-\",IF(AND('Enrollment Form'!$B806=\"Subscriber\",'Enrollment Form'!$C806=\"Enroll\",'Enrollment Form'!$CV806<>\"\"),\"Y\",\"N\")))","v":""},{"$f":"IF($B799=\"N\",\"\",IF($S799=\"-\",\"-\",IF(AND($S799=\"Y\",'Enrollment Form'!$CV806=\"No\"),\"-\",IF(AND($S799=\"Y\",'Enrollment Form'!$CV806=\"Yes\",'Enrollment Form'!$CW806<>\"\"),\"Y\",\"N\"))))","v":""},{"$f":"IF(OR('Enrollment Form'!$AY806=\"Yes\",'Enrollment Form'!$AY806=\"\"),\"-\",IF(OR(AND('Enrollment Form'!$AY806=\"No\",ISERROR(FIND(\"HMO\",VLOOKUP('Enrollment Form'!G806,'Enrollment Form'!H$11:J$1000,3,FALSE),1))=FALSE,COUNTA('Enrollment Form'!$AZ806:$BC806)=4),AND('Enrollment Form'!$AY806=\"No\",ISERROR(FIND(\"HMO\",VLOOKUP('Enrollment Form'!G806,'Enrollment Form'!H$11:J$1000,3,FALSE),1))=FALSE,COUNTA('Enrollment Form'!$BT806:$BW806)=4)),\"Y\",\"N\"))","v":"-"},{"$f":"IF($B799=\"N\",\"\",IF('Enrollment Form'!$B806=\"Subscriber\",\"-\",IF(COUNTA('Enrollment Form'!$BL806,'Enrollment Form'!$BN806)=2,\"Y\",\"N\")))","v":""},{"$f":"IF($B799=\"N\",\"\",IF(OR('Enrollment Form'!$AX806=\"\",'Enrollment Form'!$AX806=\"No\"),\"-\",IF(AND('Enrollment Form'!$AX806=\"Yes\",COUNTA('Enrollment Form'!$CR806)=1),\"Y\",\"N\")))","v":""},{"$f":"IF(OR('Enrollment Form'!$CR806=\"\",'Enrollment Form'!$CR806=\"No\"),\"-\",IF(COUNTA('Enrollment Form'!$CT806:$CU806)=2,\"Y\",\"N\"))","v":"-"},{"$f":"IF($B799=\"N\",\"\",IF(COUNTIF('Enrollment Form'!$DG806:$DP806,\"Other\")=COUNTA('Enrollment Form'!$DK806,'Enrollment Form'!$DH806,'Enrollment Form'!$DN806,'Enrollment Form'!$DQ806),\"Y\",\"N\"))","v":""},{"$f":"IF($B799=\"N\",\"\",IF(OR('Enrollment Form'!B806<>\"Subscriber\",'Enrollment Form'!C806=\"ROC\",COUNTIF('Enrollment Form'!AV806:AW806,\"Yes\")>=1),\"-\",IF(AND('Enrollment Form'!C806=\"Enroll\",COUNTIF('Enrollment Form'!AV806:AW806,\"No\")=2,'Enrollment Form'!AX806=\"\"),\"N\",\"Y\")))","v":""},{"$f":"IF(OR(B799=\"N\",'Enrollment Form'!B806<>\"Subscriber\",'Enrollment Form'!C806=\"ROC\",'Enrollment Form'!O806<>\"Multiple of Salary\"),\"-\",IF(COUNTA('Enrollment Form'!T806:U806)<2,\"N\",\"Y\"))","v":"-"},{"$f":"IF(B799=\"N\",\"\",IF(OR('Enrollment Form'!C806=\"ROC\",'Enrollment Form'!B806<>\"Subscriber\",'Enrollment Form'!O806=\"Waive\",'Enrollment Form'!O806=\"\"),\"-\",IF('Enrollment Form'!P806=\"\",\"N\",\"Y\")))","v":""},{"$f":"IF($B799=\"N\",\"\",IF(AND('Enrollment Form'!$C806=\"ROC\",'Enrollment Form'!$DR806<>\"\"),\"Y\",IF(AND('Enrollment Form'!$C806=\"ROC\",'Enrollment Form'!$DR806=\"\"),\"N\",IF(AND('Enrollment Form'!$C806=\"Enroll\",'Enrollment Form'!$B806=\"Subscriber\",'Enrollment Form'!$CX806=\"No\",'Enrollment Form'!$DR806=\"\"),\"N\",IF(AND('Enrollment Form'!$C806=\"Enroll\",'Enrollment Form'!$B806=\"Subscriber\",'Enrollment Form'!$CX806=\"Yes\"),\"-\",\"Y\")))))","v":""},{"$f":"IF($B799=\"N\",\"\",IF(AND('Enrollment Form'!$C806=\"ROC\",'Enrollment Form'!$DS806<>\"\"),\"Y\",IF(AND('Enrollment Form'!$C806=\"ROC\",'Enrollment Form'!$DS806=\"\"),\"N\",IF(AND('Enrollment Form'!$C806=\"Enroll\",'Enrollment Form'!$B806=\"Subscriber\",'Enrollment Form'!$CX806=\"No\",'Enrollment Form'!$DS806=\"\"),\"N\",IF(AND('Enrollment Form'!$C806=\"Enroll\",'Enrollment Form'!$B806=\"Subscriber\",'Enrollment Form'!$CX806=\"Yes\"),\"-\",\"Y\")))))","v":""},{"$f":"IF('Enrollment Form'!AH806=\"\",\"\",IF(ISERROR(SEARCH(\".\",'Enrollment Form'!AH806,SEARCH(\"@\",'Enrollment Form'!AH806))),\"N\",\"Y\"))","v":""},{"$f":"IF(OR($B799=\"N\",'Enrollment Form'!$G806=\"\"),\"\",IF('Enrollment Form'!$B806<>\"Subscriber\",\"-\",IF(COUNTIF('Enrollment Form'!$AV806:$AW806,\"Yes\")=2,\"N\",\"Y\")))","v":""},{"$f":"IF(OR('Enrollment Form'!$CJ806=\"\",'Enrollment Form'!$CJ806=\"No\"),\"-\",IF(AND('Enrollment Form'!$CJ806=\"Yes\",'Enrollment Form'!$CK806=\"\"),\"N\",\"Y\"))","v":"-"},{"$f":"IF(OR('Enrollment Form'!$CL806=\"\",'Enrollment Form'!$CL806=\"No\"),\"-\",IF(AND('Enrollment Form'!$CL806=\"Yes\",'Enrollment Form'!$CM806=\"\"),\"N\",\"Y\"))","v":"-"},{"$f":"IF(OR('Enrollment Form'!$CN806=\"\",'Enrollment Form'!$CN806=\"No\"),\"-\",IF(AND('Enrollment Form'!$CN806=\"Yes\",'Enrollment Form'!$CO806=\"\"),\"N\",\"Y\"))","v":"-"},{"$f":"IF(OR('Enrollment Form'!$CN806=\"\",'Enrollment Form'!$CN806=\"No\"),\"-\",IF(AND('Enrollment Form'!$CN806=\"Yes\",'Enrollment Form'!$CP806=\"\"),\"N\",\"Y\"))","v":"-"},{"$f":"IF('Enrollment Form'!B806<>\"Subscriber\",\"-\",IF(AND('Enrollment Form'!B806=\"Subscriber\",'Enrollment Form'!C806=\"Enroll\",'Enrollment Form'!AA806=\"\"),\"N\",\"Y\"))","v":"-"},{"$f":"IF(OR('Enrollment Form'!B806=\"Subscriber\",'Enrollment Form'!B806=\"\"),\"-\",IF('Enrollment Form'!BP806=\"\",\"N\",\"Y\"))","v":"-"},{"$f":"IF('Enrollment Form'!B806<>\"Subscriber\",\"-\",IF(AND('Enrollment Form'!B806=\"Subscriber\",'Enrollment Form'!G806=\"\"),\"N\",\"Y\"))","v":"-"},{"$f":"IF('Enrollment Form'!A806=\"\",\"\",IF('Enrollment Form'!B806=\"Subscriber\",\"-\",IF(AND('Enrollment Form'!B806<>\"Subscriber\",'Enrollment Form'!G806='Enrollment Form'!H806),\"N\",\"Y\")))","v":""},0]
[807,{"$f":"IF('Enrollment Form'!$A807<>\"\",\"Y\",\"N\")","v":"N"},{"$f":"IF(AND('Enrollment Form'!$B807=\"\",'Enrollment Form'!$C807<>\"\"),\"N\",IF($B800=\"N\",\"\",\"Y\"))","v":""},{"$f":"IF(OR($B800=\"N\",'Enrollment Form'!G807=\"\"),\"\",IF('Enrollment Form'!$B807<>\"Subscriber\",\"\",IF('Enrollment Form'!$G807='Enrollment Form'!$H807,\"Y\",\"N\")))","v":""},{"$f":"IF($B800=\"N\",\"\",IF(AND(COUNTIFS('Enrollment Form'!$H$11:$H$1000,'Enrollment Form'!$H807,'Enrollment Form'!$B$11:$B$1000,'Enrollment Form'!$B807)>1,'Enrollment Form'!$H807<>\"\"),\"N\",\"Y\"))","v":""},{"$f":"IF($B800=\"N\",\"\",IF(LEN('Enrollment Form'!$Y807)=0,\"\",IF(LEN('Enrollment Form'!$Y807)<>5,\"N\",\"Y\")))","v":""},{"$f":"IF($B800=\"N\",\"\",IF(LEN('Enrollment Form'!$AD807=0),\"\",IF(LEN('Enrollment Form'!$AD807)<>5,\"N\",\"Y\")))","v":""},{"$f":"IF($B800=\"N\",\"\",IF(LEN('Enrollment Form'!$BS807=0),\"\",IF(LEN('Enrollment Form'!$BS807)<>5,\"N\",\"Y\")))","v":""},{"$f":"IF($B800=\"N\",\"\",IF(LEN('Enrollment Form'!$AE807)=0,\"\",IF(LEN('Enrollment Form'!$AE807)<>10,\"N\",\"Y\")))","v":""},{"$f":"IF($B800=\"N\",\"\",IF(LEN('Enrollment Form'!$AF807)=0,\"\",IF(LEN('Enrollment Form'!$AF807)<>10,\"N\",\"Y\")))","v":""},{"$f":"IF('Enrollment Form'!$O807<>\"Graded\",\"-\",IF(AND('Enrollment Form'!$O807=\"Graded\",'Enrollment Form'!$AR807<>\"\"),\"Y\",\"N\"))","v":"-"},{"$f":"IF($B800=\"N\",\"\",IF(OR('Enrollment Form'!$B807<>\"Subscriber\",'Enrollment Form'!$C807=\"ROC\"),\"-\",IF(AND('Enrollment Form'!$B807=\"Subscriber\",'Enrollment Form'!$C807=\"Enroll\",'Enrollment Form'!$AJ807<>\"\"),\"Y\",\"N\")))","v":""},{"$f":"IF($B800=\"N\",\"\",IF(OR('Enrollment Form'!$B807<>\"Subscriber\",'Enrollment Form'!$C807=\"ROC\"),\"-\",IF(AND('Enrollment Form'!$B807=\"Subscriber\",'Enrollment Form'!$C807=\"Enroll\",'Enrollment Form'!$AK807<>\"\"),\"Y\",\"N\")))","v":""},{"$f":"IF($B800=\"N\",\"\",IF(OR('Enrollment Form'!$B807<>\"Subscriber\",'Enrollment Form'!$C807=\"ROC\"),\"-\",IF(AND('Enrollment Form'!$B807=\"Subscriber\",'Enrollment Form'!$C807=\"Enroll\",'Enrollment Form'!$AL807<>\"\"),\"Y\",\"N\")))","v":""},{"$f":"IF($B800=\"N\",\"\",IF(OR('Enrollment Form'!$B807<>\"Subscriber\",'Enrollment Form'!$C807=\"ROC\"),\"-\",IF(AND('Enrollment Form'!$B807=\"Subscriber\",'Enrollment Form'!$C807=\"Enroll\",'Enrollment Form'!$AP807<>\"\"),\"Y\",\"N\")))","v":""},{"$f":"IF($B800=\"N\",\"\",IF(OR('Enrollment Form'!$B807<>\"Subscriber\",'Enrollment Form'!$C807=\"ROC\"),\"-\",IF(AND('Enrollment Form'!$B807=\"Subscriber\",'Enrollment Form'!$C807=\"Enroll\",'Enrollment Form'!$AQ807<>\"\"),\"Y\",\"N\")))","v":""},{"$f":"IF($B800=\"N\",\"\",IF(OR('Enrollment Form'!$B807<>\"Subscriber\",'Enrollment Form'!$C807=\"ROC\"),\"-\",IF(AND('Enrollment Form'!$B807=\"Subscriber\",'Enrollment Form'!$C807=\"Enroll\",'Enrollment Form'!$AS807<>\"\"),\"Y\",\"N\")))","v":""},{"$f":"IF($B800=\"N\",\"\",IF($Q800=\"-\",\"-\",IF(AND($Q800=\"Y\",'Enrollment Form'!$AS807=\"No\"),\"-\",IF(AND($Q800=\"Y\",'Enrollment Form'!$AS807=\"Yes\",'Enrollment Form'!$AT807<>\"\"),\"Y\",\"N\"))))","v":""},{"$f":"IF($B800=\"N\",\"\",IF(OR('Enrollment Form'!$B807<>\"Subscriber\",'Enrollment Form'!$C807=\"ROC\"),\"-\",IF(AND('Enrollment Form'!$B807=\"Subscriber\",'Enrollment Form'!$C807=\"Enroll\",'Enrollment Form'!$CV807<>\"\"),\"Y\",\"N\")))","v":""},{"$f":"IF($B800=\"N\",\"\",IF($S800=\"-\",\"-\",IF(AND($S800=\"Y\",'Enrollment Form'!$CV807=\"No\"),\"-\",IF(AND($S800=\"Y\",'Enrollment Form'!$CV807=\"Yes\",'Enrollment Form'!$CW807<>\"\"),\"Y\",\"N\"))))","v":""},{"$f":"IF(OR('Enrollment Form'!$AY807=\"Yes\",'Enrollment Form'!$AY807=\"\"),\"-\",IF(OR(AND('Enrollment Form'!$AY807=\"No\",ISERROR(FIND(\"HMO\",VLOOKUP('Enrollment Form'!G807,'Enrollment Form'!H$11:J$1000,3,FALSE),1))=FALSE,COUNTA('Enrollment Form'!$AZ807:$BC807)=4),AND('Enrollment Form'!$AY807=\"No\",ISERROR(FIND(\"HMO\",VLOOKUP('Enrollment Form'!G807,'Enrollment Form'!H$11:J$1000,3,FALSE),1))=FALSE,COUNTA('Enrollment Form'!$BT807:$BW807)=4)),\"Y\",\"N\"))","v":"-"},{"$f":"IF($B800=\"N\",\"\",IF('Enrollment Form'!$B807=\"Subscriber\",\"-\",IF(COUNTA('Enrollment Form'!$BL807,'Enrollment Form'!$BN807)=2,\"Y\",\"N\")))","v":""},{"$f":"IF($B800=\"N\",\"\",IF(OR('Enrollment Form'!$AX807=\"\",'Enrollment Form'!$AX807=\"No\"),\"-\",IF(AND('Enrollment Form'!$AX807=\"Yes\",COUNTA('Enrollment Form'!$CR807)=1),\"Y\",\"N\")))","v":""},{"$f":"IF(OR('Enrollment Form'!$CR807=\"\",'Enrollment Form'!$CR807=\"No\"),\"-\",IF(COUNTA('Enrollment Form'!$CT807:$CU807)=2,\"Y\",\"N\"))","v":"-"},{"$f":"IF($B800=\"N\",\"\",IF(COUNTIF('Enrollment Form'!$DG807:$DP807,\"Other\")=COUNTA('Enrollment Form'!$DK807,'Enrollment Form'!$DH807,'Enrollment Form'!$DN807,'Enrollment Form'!$DQ807),\"Y\",\"N\"))","v":""},{"$f":"IF($B800=\"N\",\"\",IF(OR('Enrollment Form'!B807<>\"Subscriber\",'Enrollment Form'!C807=\"ROC\",COUNTIF('Enrollment Form'!AV807:AW807,\"Yes\")>=1),\"-\",IF(AND('Enrollment Form'!C807=\"Enroll\",COUNTIF('Enrollment Form'!AV807:AW807,\"No\")=2,'Enrollment Form'!AX807=\"\"),\"N\",\"Y\")))","v":""},{"$f":"IF(OR(B800=\"N\",'Enrollment Form'!B807<>\"Subscriber\",'Enrollment Form'!C807=\"ROC\",'Enrollment Form'!O807<>\"Multiple of Salary\"),\"-\",IF(COUNTA('Enrollment Form'!T807:U807)<2,\"N\",\"Y\"))","v":"-"},{"$f":"IF(B800=\"N\",\"\",IF(OR('Enrollment Form'!C807=\"ROC\",'Enrollment Form'!B807<>\"Subscriber\",'Enrollment Form'!O807=\"Waive\",'Enrollment Form'!O807=\"\"),\"-\",IF('Enrollment Form'!P807=\"\",\"N\",\"Y\")))","v":""},{"$f":"IF($B800=\"N\",\"\",IF(AND('Enrollment Form'!$C807=\"ROC\",'Enrollment Form'!$DR807<>\"\"),\"Y\",IF(AND('Enrollment Form'!$C807=\"ROC\",'Enrollment Form'!$DR807=\"\"),\"N\",IF(AND('Enrollment Form'!$C807=\"Enroll\",'Enrollment Form'!$B807=\"Subscriber\",'Enrollment Form'!$CX807=\"No\",'Enrollment Form'!$DR807=\"\"),\"N\",IF(AND('Enrollment Form'!$C807=\"Enroll\",'Enrollment Form'!$B807=\"Subscriber\",'Enrollment Form'!$CX807=\"Yes\"),\"-\",\"Y\")))))","v":""},{"$f":"IF($B800=\"N\",\"\",IF(AND('Enrollment Form'!$C807=\"ROC\",'Enrollment Form'!$DS807<>\"\"),\"Y\",IF(AND('Enrollment Form'!$C807=\"ROC\",'Enrollment Form'!$DS807=\"\"),\"N\",IF(AND('Enrollment Form'!$C807=\"Enroll\",'Enrollment Form'!$B807=\"Subscriber\",'Enrollment Form'!$CX807=\"No\",'Enrollment Form'!$DS807=\"\"),\"N\",IF(AND('Enrollment Form'!$C807=\"Enroll\",'Enrollment Form'!$B807=\"Subscriber\",'Enrollment Form'!$CX807=\"Yes\"),\"-\",\"Y\")))))","v":""},{"$f":"IF('Enrollment Form'!AH807=\"\",\"\",IF(ISERROR(SEARCH(\".\",'Enrollment Form'!AH807,SEARCH(\"@\",'Enrollment Form'!AH807))),\"N\",\"Y\"))","v":""},{"$f":"IF(OR($B800=\"N\",'Enrollment Form'!$G807=\"\"),\"\",IF('Enrollment Form'!$B807<>\"Subscriber\",\"-\",IF(COUNTIF('Enrollment Form'!$AV807:$AW807,\"Yes\")=2,\"N\",\"Y\")))","v":""},{"$f":"IF(OR('Enrollment Form'!$CJ807=\"\",'Enrollment Form'!$CJ807=\"No\"),\"-\",IF(AND('Enrollment Form'!$CJ807=\"Yes\",'Enrollment Form'!$CK807=\"\"),\"N\",\"Y\"))","v":"-"},{"$f":"IF(OR('Enrollment Form'!$CL807=\"\",'Enrollment Form'!$CL807=\"No\"),\"-\",IF(AND('Enrollment Form'!$CL807=\"Yes\",'Enrollment Form'!$CM807=\"\"),\"N\",\"Y\"))","v":"-"},{"$f":"IF(OR('Enrollment Form'!$CN807=\"\",'Enrollment Form'!$CN807=\"No\"),\"-\",IF(AND('Enrollment Form'!$CN807=\"Yes\",'Enrollment Form'!$CO807=\"\"),\"N\",\"Y\"))","v":"-"},{"$f":"IF(OR('Enrollment Form'!$CN807=\"\",'Enrollment Form'!$CN807=\"No\"),\"-\",IF(AND('Enrollment Form'!$CN807=\"Yes\",'Enrollment Form'!$CP807=\"\"),\"N\",\"Y\"))","v":"-"},{"$f":"IF('Enrollment Form'!B807<>\"Subscriber\",\"-\",IF(AND('Enrollment Form'!B807=\"Subscriber\",'Enrollment Form'!C807=\"Enroll\",'Enrollment Form'!AA807=\"\"),\"N\",\"Y\"))","v":"-"},{"$f":"IF(OR('Enrollment Form'!B807=\"Subscriber\",'Enrollment Form'!B807=\"\"),\"-\",IF('Enrollment Form'!BP807=\"\",\"N\",\"Y\"))","v":"-"},{"$f":"IF('Enrollment Form'!B807<>\"Subscriber\",\"-\",IF(AND('Enrollment Form'!B807=\"Subscriber\",'Enrollment Form'!G807=\"\"),\"N\",\"Y\"))","v":"-"},{"$f":"IF('Enrollment Form'!A807=\"\",\"\",IF('Enrollment Form'!B807=\"Subscriber\",\"-\",IF(AND('Enrollment Form'!B807<>\"Subscriber\",'Enrollment Form'!G807='Enrollment Form'!H807),\"N\",\"Y\")))","v":""},0]
[808,{"$f":"IF('Enrollment Form'!$A808<>\"\",\"Y\",\"N\")","v":"N"},{"$f":"IF(AND('Enrollment Form'!$B808=\"\",'Enrollment Form'!$C808<>\"\"),\"N\",IF($B801=\"N\",\"\",\"Y\"))","v":""},{"$f":"IF(OR($B801=\"N\",'Enrollment Form'!G808=\"\"),\"\",IF('Enrollment Form'!$B808<>\"Subscriber\",\"\",IF('Enrollment Form'!$G808='Enrollment Form'!$H808,\"Y\",\"N\")))","v":""},{"$f":"IF($B801=\"N\",\"\",IF(AND(COUNTIFS('Enrollment Form'!$H$11:$H$1000,'Enrollment Form'!$H808,'Enrollment Form'!$B$11:$B$1000,'Enrollment Form'!$B808)>1,'Enrollment Form'!$H808<>\"\"),\"N\",\"Y\"))","v":""},{"$f":"IF($B801=\"N\",\"\",IF(LEN('Enrollment Form'!$Y808)=0,\"\",IF(LEN('Enrollment Form'!$Y808)<>5,\"N\",\"Y\")))","v":""},{"$f":"IF($B801=\"N\",\"\",IF(LEN('Enrollment Form'!$AD808=0),\"\",IF(LEN('Enrollment Form'!$AD808)<>5,\"N\",\"Y\")))","v":""},{"$f":"IF($B801=\"N\",\"\",IF(LEN('Enrollment Form'!$BS808=0),\"\",IF(LEN('Enrollment Form'!$BS808)<>5,\"N\",\"Y\")))","v":""},{"$f":"IF($B801=\"N\",\"\",IF(LEN('Enrollment Form'!$AE808)=0,\"\",IF(LEN('Enrollment Form'!$AE808)<>10,\"N\",\"Y\")))","v":""},{"$f":"IF($B801=\"N\",\"\",IF(LEN('Enrollment Form'!$AF808)=0,\"\",IF(LEN('Enrollment Form'!$AF808)<>10,\"N\",\"Y\")))","v":""},{"$f":"IF('Enrollment Form'!$O808<>\"Graded\",\"-\",IF(AND('Enrollment Form'!$O808=\"Graded\",'Enrollment Form'!$AR808<>\"\"),\"Y\",\"N\"))","v":"-"},{"$f":"IF($B801=\"N\",\"\",IF(OR('Enrollment Form'!$B808<>\"Subscriber\",'Enrollment Form'!$C808=\"ROC\"),\"-\",IF(AND('Enrollment Form'!$B808=\"Subscriber\",'Enrollment Form'!$C808=\"Enroll\",'Enrollment Form'!$AJ808<>\"\"),\"Y\",\"N\")))","v":""},{"$f":"IF($B801=\"N\",\"\",IF(OR('Enrollment Form'!$B808<>\"Subscriber\",'Enrollment Form'!$C808=\"ROC\"),\"-\",IF(AND('Enrollment Form'!$B808=\"Subscriber\",'Enrollment Form'!$C808=\"Enroll\",'Enrollment Form'!$AK808<>\"\"),\"Y\",\"N\")))","v":""},{"$f":"IF($B801=\"N\",\"\",IF(OR('Enrollment Form'!$B808<>\"Subscriber\",'Enrollment Form'!$C808=\"ROC\"),\"-\",IF(AND('Enrollment Form'!$B808=\"Subscriber\",'Enrollment Form'!$C808=\"Enroll\",'Enrollment Form'!$AL808<>\"\"),\"Y\",\"N\")))","v":""},{"$f":"IF($B801=\"N\",\"\",IF(OR('Enrollment Form'!$B808<>\"Subscriber\",'Enrollment Form'!$C808=\"ROC\"),\"-\",IF(AND('Enrollment Form'!$B808=\"Subscriber\",'Enrollment Form'!$C808=\"Enroll\",'Enrollment Form'!$AP808<>\"\"),\"Y\",\"N\")))","v":""},{"$f":"IF($B801=\"N\",\"\",IF(OR('Enrollment Form'!$B808<>\"Subscriber\",'Enrollment Form'!$C808=\"ROC\"),\"-\",IF(AND('Enrollment Form'!$B808=\"Subscriber\",'Enrollment Form'!$C808=\"Enroll\",'Enrollment Form'!$AQ808<>\"\"),\"Y\",\"N\")))","v":""},{"$f":"IF($B801=\"N\",\"\",IF(OR('Enrollment Form'!$B808<>\"Subscriber\",'Enrollment Form'!$C808=\"ROC\"),\"-\",IF(AND('Enrollment Form'!$B808=\"Subscriber\",'Enrollment Form'!$C808=\"Enroll\",'Enrollment Form'!$AS808<>\"\"),\"Y\",\"N\")))","v":""},{"$f":"IF($B801=\"N\",\"\",IF($Q801=\"-\",\"-\",IF(AND($Q801=\"Y\",'Enrollment Form'!$AS808=\"No\"),\"-\",IF(AND($Q801=\"Y\",'Enrollment Form'!$AS808=\"Yes\",'Enrollment Form'!$AT808<>\"\"),\"Y\",\"N\"))))","v":""},{"$f":"IF($B801=\"N\",\"\",IF(OR('Enrollment Form'!$B808<>\"Subscriber\",'Enrollment Form'!$C808=\"ROC\"),\"-\",IF(AND('Enrollment Form'!$B808=\"Subscriber\",'Enrollment Form'!$C808=\"Enroll\",'Enrollment Form'!$CV808<>\"\"),\"Y\",\"N\")))","v":""},{"$f":"IF($B801=\"N\",\"\",IF($S801=\"-\",\"-\",IF(AND($S801=\"Y\",'Enrollment Form'!$CV808=\"No\"),\"-\",IF(AND($S801=\"Y\",'Enrollment Form'!$CV808=\"Yes\",'Enrollment Form'!$CW808<>\"\"),\"Y\",\"N\"))))","v":""},{"$f":"IF(OR('Enrollment Form'!$AY808=\"Yes\",'Enrollment Form'!$AY808=\"\"),\"-\",IF(OR(AND('Enrollment Form'!$AY808=\"No\",ISERROR(FIND(\"HMO\",VLOOKUP('Enrollment Form'!G808,'Enrollment Form'!H$11:J$1000,3,FALSE),1))=FALSE,COUNTA('Enrollment Form'!$AZ808:$BC808)=4),AND('Enrollment Form'!$AY808=\"No\",ISERROR(FIND(\"HMO\",VLOOKUP('Enrollment Form'!G808,'Enrollment Form'!H$11:J$1000,3,FALSE),1))=FALSE,COUNTA('Enrollment Form'!$BT808:$BW808)=4)),\"Y\",\"N\"))","v":"-"},{"$f":"IF($B801=\"N\",\"\",IF('Enrollment Form'!$B808=\"Subscriber\",\"-\",IF(COUNTA('Enrollment Form'!$BL808,'Enrollment Form'!$BN808)=2,\"Y\",\"N\")))","v":""},{"$f":"IF($B801=\"N\",\"\",IF(OR('Enrollment Form'!$AX808=\"\",'Enrollment Form'!$AX808=\"No\"),\"-\",IF(AND('Enrollment Form'!$AX808=\"Yes\",COUNTA('Enrollment Form'!$CR808)=1),\"Y\",\"N\")))","v":""},{"$f":"IF(OR('Enrollment Form'!$CR808=\"\",'Enrollment Form'!$CR808=\"No\"),\"-\",IF(COUNTA('Enrollment Form'!$CT808:$CU808)=2,\"Y\",\"N\"))","v":"-"},{"$f":"IF($B801=\"N\",\"\",IF(COUNTIF('Enrollment Form'!$DG808:$DP808,\"Other\")=COUNTA('Enrollment Form'!$DK808,'Enrollment Form'!$DH808,'Enrollment Form'!$DN808,'Enrollment Form'!$DQ808),\"Y\",\"N\"))","v":""},{"$f":"IF($B801=\"N\",\"\",IF(OR('Enrollment Form'!B808<>\"Subscriber\",'Enrollment Form'!C808=\"ROC\",COUNTIF('Enrollment Form'!AV808:AW808,\"Yes\")>=1),\"-\",IF(AND('Enrollment Form'!C808=\"Enroll\",COUNTIF('Enrollment Form'!AV808:AW808,\"No\")=2,'Enrollment Form'!AX808=\"\"),\"N\",\"Y\")))","v":""},{"$f":"IF(OR(B801=\"N\",'Enrollment Form'!B808<>\"Subscriber\",'Enrollment Form'!C808=\"ROC\",'Enrollment Form'!O808<>\"Multiple of Salary\"),\"-\",IF(COUNTA('Enrollment Form'!T808:U808)<2,\"N\",\"Y\"))","v":"-"},{"$f":"IF(B801=\"N\",\"\",IF(OR('Enrollment Form'!C808=\"ROC\",'Enrollment Form'!B808<>\"Subscriber\",'Enrollment Form'!O808=\"Waive\",'Enrollment Form'!O808=\"\"),\"-\",IF('Enrollment Form'!P808=\"\",\"N\",\"Y\")))","v":""},{"$f":"IF($B801=\"N\",\"\",IF(AND('Enrollment Form'!$C808=\"ROC\",'Enrollment Form'!$DR808<>\"\"),\"Y\",IF(AND('Enrollment Form'!$C808=\"ROC\",'Enrollment Form'!$DR808=\"\"),\"N\",IF(AND('Enrollment Form'!$C808=\"Enroll\",'Enrollment Form'!$B808=\"Subscriber\",'Enrollment Form'!$CX808=\"No\",'Enrollment Form'!$DR808=\"\"),\"N\",IF(AND('Enrollment Form'!$C808=\"Enroll\",'Enrollment Form'!$B808=\"Subscriber\",'Enrollment Form'!$CX808=\"Yes\"),\"-\",\"Y\")))))","v":""},{"$f":"IF($B801=\"N\",\"\",IF(AND('Enrollment Form'!$C808=\"ROC\",'Enrollment Form'!$DS808<>\"\"),\"Y\",IF(AND('Enrollment Form'!$C808=\"ROC\",'Enrollment Form'!$DS808=\"\"),\"N\",IF(AND('Enrollment Form'!$C808=\"Enroll\",'Enrollment Form'!$B808=\"Subscriber\",'Enrollment Form'!$CX808=\"No\",'Enrollment Form'!$DS808=\"\"),\"N\",IF(AND('Enrollment Form'!$C808=\"Enroll\",'Enrollment Form'!$B808=\"Subscriber\",'Enrollment Form'!$CX808=\"Yes\"),\"-\",\"Y\")))))","v":""},{"$f":"IF('Enrollment Form'!AH808=\"\",\"\",IF(ISERROR(SEARCH(\".\",'Enrollment Form'!AH808,SEARCH(\"@\",'Enrollment Form'!AH808))),\"N\",\"Y\"))","v":""},{"$f":"IF(OR($B801=\"N\",'Enrollment Form'!$G808=\"\"),\"\",IF('Enrollment Form'!$B808<>\"Subscriber\",\"-\",IF(COUNTIF('Enrollment Form'!$AV808:$AW808,\"Yes\")=2,\"N\",\"Y\")))","v":""},{"$f":"IF(OR('Enrollment Form'!$CJ808=\"\",'Enrollment Form'!$CJ808=\"No\"),\"-\",IF(AND('Enrollment Form'!$CJ808=\"Yes\",'Enrollment Form'!$CK808=\"\"),\"N\",\"Y\"))","v":"-"},{"$f":"IF(OR('Enrollment Form'!$CL808=\"\",'Enrollment Form'!$CL808=\"No\"),\"-\",IF(AND('Enrollment Form'!$CL808=\"Yes\",'Enrollment Form'!$CM808=\"\"),\"N\",\"Y\"))","v":"-"},{"$f":"IF(OR('Enrollment Form'!$CN808=\"\",'Enrollment Form'!$CN808=\"No\"),\"-\",IF(AND('Enrollment Form'!$CN808=\"Yes\",'Enrollment Form'!$CO808=\"\"),\"N\",\"Y\"))","v":"-"},{"$f":"IF(OR('Enrollment Form'!$CN808=\"\",'Enrollment Form'!$CN808=\"No\"),\"-\",IF(AND('Enrollment Form'!$CN808=\"Yes\",'Enrollment Form'!$CP808=\"\"),\"N\",\"Y\"))","v":"-"},{"$f":"IF('Enrollment Form'!B808<>\"Subscriber\",\"-\",IF(AND('Enrollment Form'!B808=\"Subscriber\",'Enrollment Form'!C808=\"Enroll\",'Enrollment Form'!AA808=\"\"),\"N\",\"Y\"))","v":"-"},{"$f":"IF(OR('Enrollment Form'!B808=\"Subscriber\",'Enrollment Form'!B808=\"\"),\"-\",IF('Enrollment Form'!BP808=\"\",\"N\",\"Y\"))","v":"-"},{"$f":"IF('Enrollment Form'!B808<>\"Subscriber\",\"-\",IF(AND('Enrollment Form'!B808=\"Subscriber\",'Enrollment Form'!G808=\"\"),\"N\",\"Y\"))","v":"-"},{"$f":"IF('Enrollment Form'!A808=\"\",\"\",IF('Enrollment Form'!B808=\"Subscriber\",\"-\",IF(AND('Enrollment Form'!B808<>\"Subscriber\",'Enrollment Form'!G808='Enrollment Form'!H808),\"N\",\"Y\")))","v":""},0]
[809,{"$f":"IF('Enrollment Form'!$A809<>\"\",\"Y\",\"N\")","v":"N"},{"$f":"IF(AND('Enrollment Form'!$B809=\"\",'Enrollment Form'!$C809<>\"\"),\"N\",IF($B802=\"N\",\"\",\"Y\"))","v":""},{"$f":"IF(OR($B802=\"N\",'Enrollment Form'!G809=\"\"),\"\",IF('Enrollment Form'!$B809<>\"Subscriber\",\"\",IF('Enrollment Form'!$G809='Enrollment Form'!$H809,\"Y\",\"N\")))","v":""},{"$f":"IF($B802=\"N\",\"\",IF(AND(COUNTIFS('Enrollment Form'!$H$11:$H$1000,'Enrollment Form'!$H809,'Enrollment Form'!$B$11:$B$1000,'Enrollment Form'!$B809)>1,'Enrollment Form'!$H809<>\"\"),\"N\",\"Y\"))","v":""},{"$f":"IF($B802=\"N\",\"\",IF(LEN('Enrollment Form'!$Y809)=0,\"\",IF(LEN('Enrollment Form'!$Y809)<>5,\"N\",\"Y\")))","v":""},{"$f":"IF($B802=\"N\",\"\",IF(LEN('Enrollment Form'!$AD809=0),\"\",IF(LEN('Enrollment Form'!$AD809)<>5,\"N\",\"Y\")))","v":""},{"$f":"IF($B802=\"N\",\"\",IF(LEN('Enrollment Form'!$BS809=0),\"\",IF(LEN('Enrollment Form'!$BS809)<>5,\"N\",\"Y\")))","v":""},{"$f":"IF($B802=\"N\",\"\",IF(LEN('Enrollment Form'!$AE809)=0,\"\",IF(LEN('Enrollment Form'!$AE809)<>10,\"N\",\"Y\")))","v":""},{"$f":"IF($B802=\"N\",\"\",IF(LEN('Enrollment Form'!$AF809)=0,\"\",IF(LEN('Enrollment Form'!$AF809)<>10,\"N\",\"Y\")))","v":""},{"$f":"IF('Enrollment Form'!$O809<>\"Graded\",\"-\",IF(AND('Enrollment Form'!$O809=\"Graded\",'Enrollment Form'!$AR809<>\"\"),\"Y\",\"N\"))","v":"-"},{"$f":"IF($B802=\"N\",\"\",IF(OR('Enrollment Form'!$B809<>\"Subscriber\",'Enrollment Form'!$C809=\"ROC\"),\"-\",IF(AND('Enrollment Form'!$B809=\"Subscriber\",'Enrollment Form'!$C809=\"Enroll\",'Enrollment Form'!$AJ809<>\"\"),\"Y\",\"N\")))","v":""},{"$f":"IF($B802=\"N\",\"\",IF(OR('Enrollment Form'!$B809<>\"Subscriber\",'Enrollment Form'!$C809=\"ROC\"),\"-\",IF(AND('Enrollment Form'!$B809=\"Subscriber\",'Enrollment Form'!$C809=\"Enroll\",'Enrollment Form'!$AK809<>\"\"),\"Y\",\"N\")))","v":""},{"$f":"IF($B802=\"N\",\"\",IF(OR('Enrollment Form'!$B809<>\"Subscriber\",'Enrollment Form'!$C809=\"ROC\"),\"-\",IF(AND('Enrollment Form'!$B809=\"Subscriber\",'Enrollment Form'!$C809=\"Enroll\",'Enrollment Form'!$AL809<>\"\"),\"Y\",\"N\")))","v":""},{"$f":"IF($B802=\"N\",\"\",IF(OR('Enrollment Form'!$B809<>\"Subscriber\",'Enrollment Form'!$C809=\"ROC\"),\"-\",IF(AND('Enrollment Form'!$B809=\"Subscriber\",'Enrollment Form'!$C809=\"Enroll\",'Enrollment Form'!$AP809<>\"\"),\"Y\",\"N\")))","v":""},{"$f":"IF($B802=\"N\",\"\",IF(OR('Enrollment Form'!$B809<>\"Subscriber\",'Enrollment Form'!$C809=\"ROC\"),\"-\",IF(AND('Enrollment Form'!$B809=\"Subscriber\",'Enrollment Form'!$C809=\"Enroll\",'Enrollment Form'!$AQ809<>\"\"),\"Y\",\"N\")))","v":""},{"$f":"IF($B802=\"N\",\"\",IF(OR('Enrollment Form'!$B809<>\"Subscriber\",'Enrollment Form'!$C809=\"ROC\"),\"-\",IF(AND('Enrollment Form'!$B809=\"Subscriber\",'Enrollment Form'!$C809=\"Enroll\",'Enrollment Form'!$AS809<>\"\"),\"Y\",\"N\")))","v":""},{"$f":"IF($B802=\"N\",\"\",IF($Q802=\"-\",\"-\",IF(AND($Q802=\"Y\",'Enrollment Form'!$AS809=\"No\"),\"-\",IF(AND($Q802=\"Y\",'Enrollment Form'!$AS809=\"Yes\",'Enrollment Form'!$AT809<>\"\"),\"Y\",\"N\"))))","v":""},{"$f":"IF($B802=\"N\",\"\",IF(OR('Enrollment Form'!$B809<>\"Subscriber\",'Enrollment Form'!$C809=\"ROC\"),\"-\",IF(AND('Enrollment Form'!$B809=\"Subscriber\",'Enrollment Form'!$C809=\"Enroll\",'Enrollment Form'!$CV809<>\"\"),\"Y\",\"N\")))","v":""},{"$f":"IF($B802=\"N\",\"\",IF($S802=\"-\",\"-\",IF(AND($S802=\"Y\",'Enrollment Form'!$CV809=\"No\"),\"-\",IF(AND($S802=\"Y\",'Enrollment Form'!$CV809=\"Yes\",'Enrollment Form'!$CW809<>\"\"),\"Y\",\"N\"))))","v":""},{"$f":"IF(OR('Enrollment Form'!$AY809=\"Yes\",'Enrollment Form'!$AY809=\"\"),\"-\",IF(OR(AND('Enrollment Form'!$AY809=\"No\",ISERROR(FIND(\"HMO\",VLOOKUP('Enrollment Form'!G809,'Enrollment Form'!H$11:J$1000,3,FALSE),1))=FALSE,COUNTA('Enrollment Form'!$AZ809:$BC809)=4),AND('Enrollment Form'!$AY809=\"No\",ISERROR(FIND(\"HMO\",VLOOKUP('Enrollment Form'!G809,'Enrollment Form'!H$11:J$1000,3,FALSE),1))=FALSE,COUNTA('Enrollment Form'!$BT809:$BW809)=4)),\"Y\",\"N\"))","v":"-"},{"$f":"IF($B802=\"N\",\"\",IF('Enrollment Form'!$B809=\"Subscriber\",\"-\",IF(COUNTA('Enrollment Form'!$BL809,'Enrollment Form'!$BN809)=2,\"Y\",\"N\")))","v":""},{"$f":"IF($B802=\"N\",\"\",IF(OR('Enrollment Form'!$AX809=\"\",'Enrollment Form'!$AX809=\"No\"),\"-\",IF(AND('Enrollment Form'!$AX809=\"Yes\",COUNTA('Enrollment Form'!$CR809)=1),\"Y\",\"N\")))","v":""},{"$f":"IF(OR('Enrollment Form'!$CR809=\"\",'Enrollment Form'!$CR809=\"No\"),\"-\",IF(COUNTA('Enrollment Form'!$CT809:$CU809)=2,\"Y\",\"N\"))","v":"-"},{"$f":"IF($B802=\"N\",\"\",IF(COUNTIF('Enrollment Form'!$DG809:$DP809,\"Other\")=COUNTA('Enrollment Form'!$DK809,'Enrollment Form'!$DH809,'Enrollment Form'!$DN809,'Enrollment Form'!$DQ809),\"Y\",\"N\"))","v":""},{"$f":"IF($B802=\"N\",\"\",IF(OR('Enrollment Form'!B809<>\"Subscriber\",'Enrollment Form'!C809=\"ROC\",COUNTIF('Enrollment Form'!AV809:AW809,\"Yes\")>=1),\"-\",IF(AND('Enrollment Form'!C809=\"Enroll\",COUNTIF('Enrollment Form'!AV809:AW809,\"No\")=2,'Enrollment Form'!AX809=\"\"),\"N\",\"Y\")))","v":""},{"$f":"IF(OR(B802=\"N\",'Enrollment Form'!B809<>\"Subscriber\",'Enrollment Form'!C809=\"ROC\",'Enrollment Form'!O809<>\"Multiple of Salary\"),\"-\",IF(COUNTA('Enrollment Form'!T809:U809)<2,\"N\",\"Y\"))","v":"-"},{"$f":"IF(B802=\"N\",\"\",IF(OR('Enrollment Form'!C809=\"ROC\",'Enrollment Form'!B809<>\"Subscriber\",'Enrollment Form'!O809=\"Waive\",'Enrollment Form'!O809=\"\"),\"-\",IF('Enrollment Form'!P809=\"\",\"N\",\"Y\")))","v":""},{"$f":"IF($B802=\"N\",\"\",IF(AND('Enrollment Form'!$C809=\"ROC\",'Enrollment Form'!$DR809<>\"\"),\"Y\",IF(AND('Enrollment Form'!$C809=\"ROC\",'Enrollment Form'!$DR809=\"\"),\"N\",IF(AND('Enrollment Form'!$C809=\"Enroll\",'Enrollment Form'!$B809=\"Subscriber\",'Enrollment Form'!$CX809=\"No\",'Enrollment Form'!$DR809=\"\"),\"N\",IF(AND('Enrollment Form'!$C809=\"Enroll\",'Enrollment Form'!$B809=\"Subscriber\",'Enrollment Form'!$CX809=\"Yes\"),\"-\",\"Y\")))))","v":""},{"$f":"IF($B802=\"N\",\"\",IF(AND('Enrollment Form'!$C809=\"ROC\",'Enrollment Form'!$DS809<>\"\"),\"Y\",IF(AND('Enrollment Form'!$C809=\"ROC\",'Enrollment Form'!$DS809=\"\"),\"N\",IF(AND('Enrollment Form'!$C809=\"Enroll\",'Enrollment Form'!$B809=\"Subscriber\",'Enrollment Form'!$CX809=\"No\",'Enrollment Form'!$DS809=\"\"),\"N\",IF(AND('Enrollment Form'!$C809=\"Enroll\",'Enrollment Form'!$B809=\"Subscriber\",'Enrollment Form'!$CX809=\"Yes\"),\"-\",\"Y\")))))","v":""},{"$f":"IF('Enrollment Form'!AH809=\"\",\"\",IF(ISERROR(SEARCH(\".\",'Enrollment Form'!AH809,SEARCH(\"@\",'Enrollment Form'!AH809))),\"N\",\"Y\"))","v":""},{"$f":"IF(OR($B802=\"N\",'Enrollment Form'!$G809=\"\"),\"\",IF('Enrollment Form'!$B809<>\"Subscriber\",\"-\",IF(COUNTIF('Enrollment Form'!$AV809:$AW809,\"Yes\")=2,\"N\",\"Y\")))","v":""},{"$f":"IF(OR('Enrollment Form'!$CJ809=\"\",'Enrollment Form'!$CJ809=\"No\"),\"-\",IF(AND('Enrollment Form'!$CJ809=\"Yes\",'Enrollment Form'!$CK809=\"\"),\"N\",\"Y\"))","v":"-"},{"$f":"IF(OR('Enrollment Form'!$CL809=\"\",'Enrollment Form'!$CL809=\"No\"),\"-\",IF(AND('Enrollment Form'!$CL809=\"Yes\",'Enrollment Form'!$CM809=\"\"),\"N\",\"Y\"))","v":"-"},{"$f":"IF(OR('Enrollment Form'!$CN809=\"\",'Enrollment Form'!$CN809=\"No\"),\"-\",IF(AND('Enrollment Form'!$CN809=\"Yes\",'Enrollment Form'!$CO809=\"\"),\"N\",\"Y\"))","v":"-"},{"$f":"IF(OR('Enrollment Form'!$CN809=\"\",'Enrollment Form'!$CN809=\"No\"),\"-\",IF(AND('Enrollment Form'!$CN809=\"Yes\",'Enrollment Form'!$CP809=\"\"),\"N\",\"Y\"))","v":"-"},{"$f":"IF('Enrollment Form'!B809<>\"Subscriber\",\"-\",IF(AND('Enrollment Form'!B809=\"Subscriber\",'Enrollment Form'!C809=\"Enroll\",'Enrollment Form'!AA809=\"\"),\"N\",\"Y\"))","v":"-"},{"$f":"IF(OR('Enrollment Form'!B809=\"Subscriber\",'Enrollment Form'!B809=\"\"),\"-\",IF('Enrollment Form'!BP809=\"\",\"N\",\"Y\"))","v":"-"},{"$f":"IF('Enrollment Form'!B809<>\"Subscriber\",\"-\",IF(AND('Enrollment Form'!B809=\"Subscriber\",'Enrollment Form'!G809=\"\"),\"N\",\"Y\"))","v":"-"},{"$f":"IF('Enrollment Form'!A809=\"\",\"\",IF('Enrollment Form'!B809=\"Subscriber\",\"-\",IF(AND('Enrollment Form'!B809<>\"Subscriber\",'Enrollment Form'!G809='Enrollment Form'!H809),\"N\",\"Y\")))","v":""},0]
[810,{"$f":"IF('Enrollment Form'!$A810<>\"\",\"Y\",\"N\")","v":"N"},{"$f":"IF(AND('Enrollment Form'!$B810=\"\",'Enrollment Form'!$C810<>\"\"),\"N\",IF($B803=\"N\",\"\",\"Y\"))","v":""},{"$f":"IF(OR($B803=\"N\",'Enrollment Form'!G810=\"\"),\"\",IF('Enrollment Form'!$B810<>\"Subscriber\",\"\",IF('Enrollment Form'!$G810='Enrollment Form'!$H810,\"Y\",\"N\")))","v":""},{"$f":"IF($B803=\"N\",\"\",IF(AND(COUNTIFS('Enrollment Form'!$H$11:$H$1000,'Enrollment Form'!$H810,'Enrollment Form'!$B$11:$B$1000,'Enrollment Form'!$B810)>1,'Enrollment Form'!$H810<>\"\"),\"N\",\"Y\"))","v":""},{"$f":"IF($B803=\"N\",\"\",IF(LEN('Enrollment Form'!$Y810)=0,\"\",IF(LEN('Enrollment Form'!$Y810)<>5,\"N\",\"Y\")))","v":""},{"$f":"IF($B803=\"N\",\"\",IF(LEN('Enrollment Form'!$AD810=0),\"\",IF(LEN('Enrollment Form'!$AD810)<>5,\"N\",\"Y\")))","v":""},{"$f":"IF($B803=\"N\",\"\",IF(LEN('Enrollment Form'!$BS810=0),\"\",IF(LEN('Enrollment Form'!$BS810)<>5,\"N\",\"Y\")))","v":""},{"$f":"IF($B803=\"N\",\"\",IF(LEN('Enrollment Form'!$AE810)=0,\"\",IF(LEN('Enrollment Form'!$AE810)<>10,\"N\",\"Y\")))","v":""},{"$f":"IF($B803=\"N\",\"\",IF(LEN('Enrollment Form'!$AF810)=0,\"\",IF(LEN('Enrollment Form'!$AF810)<>10,\"N\",\"Y\")))","v":""},{"$f":"IF('Enrollment Form'!$O810<>\"Graded\",\"-\",IF(AND('Enrollment Form'!$O810=\"Graded\",'Enrollment Form'!$AR810<>\"\"),\"Y\",\"N\"))","v":"-"},{"$f":"IF($B803=\"N\",\"\",IF(OR('Enrollment Form'!$B810<>\"Subscriber\",'Enrollment Form'!$C810=\"ROC\"),\"-\",IF(AND('Enrollment Form'!$B810=\"Subscriber\",'Enrollment Form'!$C810=\"Enroll\",'Enrollment Form'!$AJ810<>\"\"),\"Y\",\"N\")))","v":""},{"$f":"IF($B803=\"N\",\"\",IF(OR('Enrollment Form'!$B810<>\"Subscriber\",'Enrollment Form'!$C810=\"ROC\"),\"-\",IF(AND('Enrollment Form'!$B810=\"Subscriber\",'Enrollment Form'!$C810=\"Enroll\",'Enrollment Form'!$AK810<>\"\"),\"Y\",\"N\")))","v":""},{"$f":"IF($B803=\"N\",\"\",IF(OR('Enrollment Form'!$B810<>\"Subscriber\",'Enrollment Form'!$C810=\"ROC\"),\"-\",IF(AND('Enrollment Form'!$B810=\"Subscriber\",'Enrollment Form'!$C810=\"Enroll\",'Enrollment Form'!$AL810<>\"\"),\"Y\",\"N\")))","v":""},{"$f":"IF($B803=\"N\",\"\",IF(OR('Enrollment Form'!$B810<>\"Subscriber\",'Enrollment Form'!$C810=\"ROC\"),\"-\",IF(AND('Enrollment Form'!$B810=\"Subscriber\",'Enrollment Form'!$C810=\"Enroll\",'Enrollment Form'!$AP810<>\"\"),\"Y\",\"N\")))","v":""},{"$f":"IF($B803=\"N\",\"\",IF(OR('Enrollment Form'!$B810<>\"Subscriber\",'Enrollment Form'!$C810=\"ROC\"),\"-\",IF(AND('Enrollment Form'!$B810=\"Subscriber\",'Enrollment Form'!$C810=\"Enroll\",'Enrollment Form'!$AQ810<>\"\"),\"Y\",\"N\")))","v":""},{"$f":"IF($B803=\"N\",\"\",IF(OR('Enrollment Form'!$B810<>\"Subscriber\",'Enrollment Form'!$C810=\"ROC\"),\"-\",IF(AND('Enrollment Form'!$B810=\"Subscriber\",'Enrollment Form'!$C810=\"Enroll\",'Enrollment Form'!$AS810<>\"\"),\"Y\",\"N\")))","v":""},{"$f":"IF($B803=\"N\",\"\",IF($Q803=\"-\",\"-\",IF(AND($Q803=\"Y\",'Enrollment Form'!$AS810=\"No\"),\"-\",IF(AND($Q803=\"Y\",'Enrollment Form'!$AS810=\"Yes\",'Enrollment Form'!$AT810<>\"\"),\"Y\",\"N\"))))","v":""},{"$f":"IF($B803=\"N\",\"\",IF(OR('Enrollment Form'!$B810<>\"Subscriber\",'Enrollment Form'!$C810=\"ROC\"),\"-\",IF(AND('Enrollment Form'!$B810=\"Subscriber\",'Enrollment Form'!$C810=\"Enroll\",'Enrollment Form'!$CV810<>\"\"),\"Y\",\"N\")))","v":""},{"$f":"IF($B803=\"N\",\"\",IF($S803=\"-\",\"-\",IF(AND($S803=\"Y\",'Enrollment Form'!$CV810=\"No\"),\"-\",IF(AND($S803=\"Y\",'Enrollment Form'!$CV810=\"Yes\",'Enrollment Form'!$CW810<>\"\"),\"Y\",\"N\"))))","v":""},{"$f":"IF(OR('Enrollment Form'!$AY810=\"Yes\",'Enrollment Form'!$AY810=\"\"),\"-\",IF(OR(AND('Enrollment Form'!$AY810=\"No\",ISERROR(FIND(\"HMO\",VLOOKUP('Enrollment Form'!G810,'Enrollment Form'!H$11:J$1000,3,FALSE),1))=FALSE,COUNTA('Enrollment Form'!$AZ810:$BC810)=4),AND('Enrollment Form'!$AY810=\"No\",ISERROR(FIND(\"HMO\",VLOOKUP('Enrollment Form'!G810,'Enrollment Form'!H$11:J$1000,3,FALSE),1))=FALSE,COUNTA('Enrollment Form'!$BT810:$BW810)=4)),\"Y\",\"N\"))","v":"-"},{"$f":"IF($B803=\"N\",\"\",IF('Enrollment Form'!$B810=\"Subscriber\",\"-\",IF(COUNTA('Enrollment Form'!$BL810,'Enrollment Form'!$BN810)=2,\"Y\",\"N\")))","v":""},{"$f":"IF($B803=\"N\",\"\",IF(OR('Enrollment Form'!$AX810=\"\",'Enrollment Form'!$AX810=\"No\"),\"-\",IF(AND('Enrollment Form'!$AX810=\"Yes\",COUNTA('Enrollment Form'!$CR810)=1),\"Y\",\"N\")))","v":""},{"$f":"IF(OR('Enrollment Form'!$CR810=\"\",'Enrollment Form'!$CR810=\"No\"),\"-\",IF(COUNTA('Enrollment Form'!$CT810:$CU810)=2,\"Y\",\"N\"))","v":"-"},{"$f":"IF($B803=\"N\",\"\",IF(COUNTIF('Enrollment Form'!$DG810:$DP810,\"Other\")=COUNTA('Enrollment Form'!$DK810,'Enrollment Form'!$DH810,'Enrollment Form'!$DN810,'Enrollment Form'!$DQ810),\"Y\",\"N\"))","v":""},{"$f":"IF($B803=\"N\",\"\",IF(OR('Enrollment Form'!B810<>\"Subscriber\",'Enrollment Form'!C810=\"ROC\",COUNTIF('Enrollment Form'!AV810:AW810,\"Yes\")>=1),\"-\",IF(AND('Enrollment Form'!C810=\"Enroll\",COUNTIF('Enrollment Form'!AV810:AW810,\"No\")=2,'Enrollment Form'!AX810=\"\"),\"N\",\"Y\")))","v":""},{"$f":"IF(OR(B803=\"N\",'Enrollment Form'!B810<>\"Subscriber\",'Enrollment Form'!C810=\"ROC\",'Enrollment Form'!O810<>\"Multiple of Salary\"),\"-\",IF(COUNTA('Enrollment Form'!T810:U810)<2,\"N\",\"Y\"))","v":"-"},{"$f":"IF(B803=\"N\",\"\",IF(OR('Enrollment Form'!C810=\"ROC\",'Enrollment Form'!B810<>\"Subscriber\",'Enrollment Form'!O810=\"Waive\",'Enrollment Form'!O810=\"\"),\"-\",IF('Enrollment Form'!P810=\"\",\"N\",\"Y\")))","v":""},{"$f":"IF($B803=\"N\",\"\",IF(AND('Enrollment Form'!$C810=\"ROC\",'Enrollment Form'!$DR810<>\"\"),\"Y\",IF(AND('Enrollment Form'!$C810=\"ROC\",'Enrollment Form'!$DR810=\"\"),\"N\",IF(AND('Enrollment Form'!$C810=\"Enroll\",'Enrollment Form'!$B810=\"Subscriber\",'Enrollment Form'!$CX810=\"No\",'Enrollment Form'!$DR810=\"\"),\"N\",IF(AND('Enrollment Form'!$C810=\"Enroll\",'Enrollment Form'!$B810=\"Subscriber\",'Enrollment Form'!$CX810=\"Yes\"),\"-\",\"Y\")))))","v":""},{"$f":"IF($B803=\"N\",\"\",IF(AND('Enrollment Form'!$C810=\"ROC\",'Enrollment Form'!$DS810<>\"\"),\"Y\",IF(AND('Enrollment Form'!$C810=\"ROC\",'Enrollment Form'!$DS810=\"\"),\"N\",IF(AND('Enrollment Form'!$C810=\"Enroll\",'Enrollment Form'!$B810=\"Subscriber\",'Enrollment Form'!$CX810=\"No\",'Enrollment Form'!$DS810=\"\"),\"N\",IF(AND('Enrollment Form'!$C810=\"Enroll\",'Enrollment Form'!$B810=\"Subscriber\",'Enrollment Form'!$CX810=\"Yes\"),\"-\",\"Y\")))))","v":""},{"$f":"IF('Enrollment Form'!AH810=\"\",\"\",IF(ISERROR(SEARCH(\".\",'Enrollment Form'!AH810,SEARCH(\"@\",'Enrollment Form'!AH810))),\"N\",\"Y\"))","v":""},{"$f":"IF(OR($B803=\"N\",'Enrollment Form'!$G810=\"\"),\"\",IF('Enrollment Form'!$B810<>\"Subscriber\",\"-\",IF(COUNTIF('Enrollment Form'!$AV810:$AW810,\"Yes\")=2,\"N\",\"Y\")))","v":""},{"$f":"IF(OR('Enrollment Form'!$CJ810=\"\",'Enrollment Form'!$CJ810=\"No\"),\"-\",IF(AND('Enrollment Form'!$CJ810=\"Yes\",'Enrollment Form'!$CK810=\"\"),\"N\",\"Y\"))","v":"-"},{"$f":"IF(OR('Enrollment Form'!$CL810=\"\",'Enrollment Form'!$CL810=\"No\"),\"-\",IF(AND('Enrollment Form'!$CL810=\"Yes\",'Enrollment Form'!$CM810=\"\"),\"N\",\"Y\"))","v":"-"},{"$f":"IF(OR('Enrollment Form'!$CN810=\"\",'Enrollment Form'!$CN810=\"No\"),\"-\",IF(AND('Enrollment Form'!$CN810=\"Yes\",'Enrollment Form'!$CO810=\"\"),\"N\",\"Y\"))","v":"-"},{"$f":"IF(OR('Enrollment Form'!$CN810=\"\",'Enrollment Form'!$CN810=\"No\"),\"-\",IF(AND('Enrollment Form'!$CN810=\"Yes\",'Enrollment Form'!$CP810=\"\"),\"N\",\"Y\"))","v":"-"},{"$f":"IF('Enrollment Form'!B810<>\"Subscriber\",\"-\",IF(AND('Enrollment Form'!B810=\"Subscriber\",'Enrollment Form'!C810=\"Enroll\",'Enrollment Form'!AA810=\"\"),\"N\",\"Y\"))","v":"-"},{"$f":"IF(OR('Enrollment Form'!B810=\"Subscriber\",'Enrollment Form'!B810=\"\"),\"-\",IF('Enrollment Form'!BP810=\"\",\"N\",\"Y\"))","v":"-"},{"$f":"IF('Enrollment Form'!B810<>\"Subscriber\",\"-\",IF(AND('Enrollment Form'!B810=\"Subscriber\",'Enrollment Form'!G810=\"\"),\"N\",\"Y\"))","v":"-"},{"$f":"IF('Enrollment Form'!A810=\"\",\"\",IF('Enrollment Form'!B810=\"Subscriber\",\"-\",IF(AND('Enrollment Form'!B810<>\"Subscriber\",'Enrollment Form'!G810='Enrollment Form'!H810),\"N\",\"Y\")))","v":""},0]
[811,{"$f":"IF('Enrollment Form'!$A811<>\"\",\"Y\",\"N\")","v":"N"},{"$f":"IF(AND('Enrollment Form'!$B811=\"\",'Enrollment Form'!$C811<>\"\"),\"N\",IF($B804=\"N\",\"\",\"Y\"))","v":""},{"$f":"IF(OR($B804=\"N\",'Enrollment Form'!G811=\"\"),\"\",IF('Enrollment Form'!$B811<>\"Subscriber\",\"\",IF('Enrollment Form'!$G811='Enrollment Form'!$H811,\"Y\",\"N\")))","v":""},{"$f":"IF($B804=\"N\",\"\",IF(AND(COUNTIFS('Enrollment Form'!$H$11:$H$1000,'Enrollment Form'!$H811,'Enrollment Form'!$B$11:$B$1000,'Enrollment Form'!$B811)>1,'Enrollment Form'!$H811<>\"\"),\"N\",\"Y\"))","v":""},{"$f":"IF($B804=\"N\",\"\",IF(LEN('Enrollment Form'!$Y811)=0,\"\",IF(LEN('Enrollment Form'!$Y811)<>5,\"N\",\"Y\")))","v":""},{"$f":"IF($B804=\"N\",\"\",IF(LEN('Enrollment Form'!$AD811=0),\"\",IF(LEN('Enrollment Form'!$AD811)<>5,\"N\",\"Y\")))","v":""},{"$f":"IF($B804=\"N\",\"\",IF(LEN('Enrollment Form'!$BS811=0),\"\",IF(LEN('Enrollment Form'!$BS811)<>5,\"N\",\"Y\")))","v":""},{"$f":"IF($B804=\"N\",\"\",IF(LEN('Enrollment Form'!$AE811)=0,\"\",IF(LEN('Enrollment Form'!$AE811)<>10,\"N\",\"Y\")))","v":""},{"$f":"IF($B804=\"N\",\"\",IF(LEN('Enrollment Form'!$AF811)=0,\"\",IF(LEN('Enrollment Form'!$AF811)<>10,\"N\",\"Y\")))","v":""},{"$f":"IF('Enrollment Form'!$O811<>\"Graded\",\"-\",IF(AND('Enrollment Form'!$O811=\"Graded\",'Enrollment Form'!$AR811<>\"\"),\"Y\",\"N\"))","v":"-"},{"$f":"IF($B804=\"N\",\"\",IF(OR('Enrollment Form'!$B811<>\"Subscriber\",'Enrollment Form'!$C811=\"ROC\"),\"-\",IF(AND('Enrollment Form'!$B811=\"Subscriber\",'Enrollment Form'!$C811=\"Enroll\",'Enrollment Form'!$AJ811<>\"\"),\"Y\",\"N\")))","v":""},{"$f":"IF($B804=\"N\",\"\",IF(OR('Enrollment Form'!$B811<>\"Subscriber\",'Enrollment Form'!$C811=\"ROC\"),\"-\",IF(AND('Enrollment Form'!$B811=\"Subscriber\",'Enrollment Form'!$C811=\"Enroll\",'Enrollment Form'!$AK811<>\"\"),\"Y\",\"N\")))","v":""},{"$f":"IF($B804=\"N\",\"\",IF(OR('Enrollment Form'!$B811<>\"Subscriber\",'Enrollment Form'!$C811=\"ROC\"),\"-\",IF(AND('Enrollment Form'!$B811=\"Subscriber\",'Enrollment Form'!$C811=\"Enroll\",'Enrollment Form'!$AL811<>\"\"),\"Y\",\"N\")))","v":""},{"$f":"IF($B804=\"N\",\"\",IF(OR('Enrollment Form'!$B811<>\"Subscriber\",'Enrollment Form'!$C811=\"ROC\"),\"-\",IF(AND('Enrollment Form'!$B811=\"Subscriber\",'Enrollment Form'!$C811=\"Enroll\",'Enrollment Form'!$AP811<>\"\"),\"Y\",\"N\")))","v":""},{"$f":"IF($B804=\"N\",\"\",IF(OR('Enrollment Form'!$B811<>\"Subscriber\",'Enrollment Form'!$C811=\"ROC\"),\"-\",IF(AND('Enrollment Form'!$B811=\"Subscriber\",'Enrollment Form'!$C811=\"Enroll\",'Enrollment Form'!$AQ811<>\"\"),\"Y\",\"N\")))","v":""},{"$f":"IF($B804=\"N\",\"\",IF(OR('Enrollment Form'!$B811<>\"Subscriber\",'Enrollment Form'!$C811=\"ROC\"),\"-\",IF(AND('Enrollment Form'!$B811=\"Subscriber\",'Enrollment Form'!$C811=\"Enroll\",'Enrollment Form'!$AS811<>\"\"),\"Y\",\"N\")))","v":""},{"$f":"IF($B804=\"N\",\"\",IF($Q804=\"-\",\"-\",IF(AND($Q804=\"Y\",'Enrollment Form'!$AS811=\"No\"),\"-\",IF(AND($Q804=\"Y\",'Enrollment Form'!$AS811=\"Yes\",'Enrollment Form'!$AT811<>\"\"),\"Y\",\"N\"))))","v":""},{"$f":"IF($B804=\"N\",\"\",IF(OR('Enrollment Form'!$B811<>\"Subscriber\",'Enrollment Form'!$C811=\"ROC\"),\"-\",IF(AND('Enrollment Form'!$B811=\"Subscriber\",'Enrollment Form'!$C811=\"Enroll\",'Enrollment Form'!$CV811<>\"\"),\"Y\",\"N\")))","v":""},{"$f":"IF($B804=\"N\",\"\",IF($S804=\"-\",\"-\",IF(AND($S804=\"Y\",'Enrollment Form'!$CV811=\"No\"),\"-\",IF(AND($S804=\"Y\",'Enrollment Form'!$CV811=\"Yes\",'Enrollment Form'!$CW811<>\"\"),\"Y\",\"N\"))))","v":""},{"$f":"IF(OR('Enrollment Form'!$AY811=\"Yes\",'Enrollment Form'!$AY811=\"\"),\"-\",IF(OR(AND('Enrollment Form'!$AY811=\"No\",ISERROR(FIND(\"HMO\",VLOOKUP('Enrollment Form'!G811,'Enrollment Form'!H$11:J$1000,3,FALSE),1))=FALSE,COUNTA('Enrollment Form'!$AZ811:$BC811)=4),AND('Enrollment Form'!$AY811=\"No\",ISERROR(FIND(\"HMO\",VLOOKUP('Enrollment Form'!G811,'Enrollment Form'!H$11:J$1000,3,FALSE),1))=FALSE,COUNTA('Enrollment Form'!$BT811:$BW811)=4)),\"Y\",\"N\"))","v":"-"},{"$f":"IF($B804=\"N\",\"\",IF('Enrollment Form'!$B811=\"Subscriber\",\"-\",IF(COUNTA('Enrollment Form'!$BL811,'Enrollment Form'!$BN811)=2,\"Y\",\"N\")))","v":""},{"$f":"IF($B804=\"N\",\"\",IF(OR('Enrollment Form'!$AX811=\"\",'Enrollment Form'!$AX811=\"No\"),\"-\",IF(AND('Enrollment Form'!$AX811=\"Yes\",COUNTA('Enrollment Form'!$CR811)=1),\"Y\",\"N\")))","v":""},{"$f":"IF(OR('Enrollment Form'!$CR811=\"\",'Enrollment Form'!$CR811=\"No\"),\"-\",IF(COUNTA('Enrollment Form'!$CT811:$CU811)=2,\"Y\",\"N\"))","v":"-"},{"$f":"IF($B804=\"N\",\"\",IF(COUNTIF('Enrollment Form'!$DG811:$DP811,\"Other\")=COUNTA('Enrollment Form'!$DK811,'Enrollment Form'!$DH811,'Enrollment Form'!$DN811,'Enrollment Form'!$DQ811),\"Y\",\"N\"))","v":""},{"$f":"IF($B804=\"N\",\"\",IF(OR('Enrollment Form'!B811<>\"Subscriber\",'Enrollment Form'!C811=\"ROC\",COUNTIF('Enrollment Form'!AV811:AW811,\"Yes\")>=1),\"-\",IF(AND('Enrollment Form'!C811=\"Enroll\",COUNTIF('Enrollment Form'!AV811:AW811,\"No\")=2,'Enrollment Form'!AX811=\"\"),\"N\",\"Y\")))","v":""},{"$f":"IF(OR(B804=\"N\",'Enrollment Form'!B811<>\"Subscriber\",'Enrollment Form'!C811=\"ROC\",'Enrollment Form'!O811<>\"Multiple of Salary\"),\"-\",IF(COUNTA('Enrollment Form'!T811:U811)<2,\"N\",\"Y\"))","v":"-"},{"$f":"IF(B804=\"N\",\"\",IF(OR('Enrollment Form'!C811=\"ROC\",'Enrollment Form'!B811<>\"Subscriber\",'Enrollment Form'!O811=\"Waive\",'Enrollment Form'!O811=\"\"),\"-\",IF('Enrollment Form'!P811=\"\",\"N\",\"Y\")))","v":""},{"$f":"IF($B804=\"N\",\"\",IF(AND('Enrollment Form'!$C811=\"ROC\",'Enrollment Form'!$DR811<>\"\"),\"Y\",IF(AND('Enrollment Form'!$C811=\"ROC\",'Enrollment Form'!$DR811=\"\"),\"N\",IF(AND('Enrollment Form'!$C811=\"Enroll\",'Enrollment Form'!$B811=\"Subscriber\",'Enrollment Form'!$CX811=\"No\",'Enrollment Form'!$DR811=\"\"),\"N\",IF(AND('Enrollment Form'!$C811=\"Enroll\",'Enrollment Form'!$B811=\"Subscriber\",'Enrollment Form'!$CX811=\"Yes\"),\"-\",\"Y\")))))","v":""},{"$f":"IF($B804=\"N\",\"\",IF(AND('Enrollment Form'!$C811=\"ROC\",'Enrollment Form'!$DS811<>\"\"),\"Y\",IF(AND('Enrollment Form'!$C811=\"ROC\",'Enrollment Form'!$DS811=\"\"),\"N\",IF(AND('Enrollment Form'!$C811=\"Enroll\",'Enrollment Form'!$B811=\"Subscriber\",'Enrollment Form'!$CX811=\"No\",'Enrollment Form'!$DS811=\"\"),\"N\",IF(AND('Enrollment Form'!$C811=\"Enroll\",'Enrollment Form'!$B811=\"Subscriber\",'Enrollment Form'!$CX811=\"Yes\"),\"-\",\"Y\")))))","v":""},{"$f":"IF('Enrollment Form'!AH811=\"\",\"\",IF(ISERROR(SEARCH(\".\",'Enrollment Form'!AH811,SEARCH(\"@\",'Enrollment Form'!AH811))),\"N\",\"Y\"))","v":""},{"$f":"IF(OR($B804=\"N\",'Enrollment Form'!$G811=\"\"),\"\",IF('Enrollment Form'!$B811<>\"Subscriber\",\"-\",IF(COUNTIF('Enrollment Form'!$AV811:$AW811,\"Yes\")=2,\"N\",\"Y\")))","v":""},{"$f":"IF(OR('Enrollment Form'!$CJ811=\"\",'Enrollment Form'!$CJ811=\"No\"),\"-\",IF(AND('Enrollment Form'!$CJ811=\"Yes\",'Enrollment Form'!$CK811=\"\"),\"N\",\"Y\"))","v":"-"},{"$f":"IF(OR('Enrollment Form'!$CL811=\"\",'Enrollment Form'!$CL811=\"No\"),\"-\",IF(AND('Enrollment Form'!$CL811=\"Yes\",'Enrollment Form'!$CM811=\"\"),\"N\",\"Y\"))","v":"-"},{"$f":"IF(OR('Enrollment Form'!$CN811=\"\",'Enrollment Form'!$CN811=\"No\"),\"-\",IF(AND('Enrollment Form'!$CN811=\"Yes\",'Enrollment Form'!$CO811=\"\"),\"N\",\"Y\"))","v":"-"},{"$f":"IF(OR('Enrollment Form'!$CN811=\"\",'Enrollment Form'!$CN811=\"No\"),\"-\",IF(AND('Enrollment Form'!$CN811=\"Yes\",'Enrollment Form'!$CP811=\"\"),\"N\",\"Y\"))","v":"-"},{"$f":"IF('Enrollment Form'!B811<>\"Subscriber\",\"-\",IF(AND('Enrollment Form'!B811=\"Subscriber\",'Enrollment Form'!C811=\"Enroll\",'Enrollment Form'!AA811=\"\"),\"N\",\"Y\"))","v":"-"},{"$f":"IF(OR('Enrollment Form'!B811=\"Subscriber\",'Enrollment Form'!B811=\"\"),\"-\",IF('Enrollment Form'!BP811=\"\",\"N\",\"Y\"))","v":"-"},{"$f":"IF('Enrollment Form'!B811<>\"Subscriber\",\"-\",IF(AND('Enrollment Form'!B811=\"Subscriber\",'Enrollment Form'!G811=\"\"),\"N\",\"Y\"))","v":"-"},{"$f":"IF('Enrollment Form'!A811=\"\",\"\",IF('Enrollment Form'!B811=\"Subscriber\",\"-\",IF(AND('Enrollment Form'!B811<>\"Subscriber\",'Enrollment Form'!G811='Enrollment Form'!H811),\"N\",\"Y\")))","v":""},0]
[812,{"$f":"IF('Enrollment Form'!$A812<>\"\",\"Y\",\"N\")","v":"N"},{"$f":"IF(AND('Enrollment Form'!$B812=\"\",'Enrollment Form'!$C812<>\"\"),\"N\",IF($B805=\"N\",\"\",\"Y\"))","v":""},{"$f":"IF(OR($B805=\"N\",'Enrollment Form'!G812=\"\"),\"\",IF('Enrollment Form'!$B812<>\"Subscriber\",\"\",IF('Enrollment Form'!$G812='Enrollment Form'!$H812,\"Y\",\"N\")))","v":""},{"$f":"IF($B805=\"N\",\"\",IF(AND(COUNTIFS('Enrollment Form'!$H$11:$H$1000,'Enrollment Form'!$H812,'Enrollment Form'!$B$11:$B$1000,'Enrollment Form'!$B812)>1,'Enrollment Form'!$H812<>\"\"),\"N\",\"Y\"))","v":""},{"$f":"IF($B805=\"N\",\"\",IF(LEN('Enrollment Form'!$Y812)=0,\"\",IF(LEN('Enrollment Form'!$Y812)<>5,\"N\",\"Y\")))","v":""},{"$f":"IF($B805=\"N\",\"\",IF(LEN('Enrollment Form'!$AD812=0),\"\",IF(LEN('Enrollment Form'!$AD812)<>5,\"N\",\"Y\")))","v":""},{"$f":"IF($B805=\"N\",\"\",IF(LEN('Enrollment Form'!$BS812=0),\"\",IF(LEN('Enrollment Form'!$BS812)<>5,\"N\",\"Y\")))","v":""},{"$f":"IF($B805=\"N\",\"\",IF(LEN('Enrollment Form'!$AE812)=0,\"\",IF(LEN('Enrollment Form'!$AE812)<>10,\"N\",\"Y\")))","v":""},{"$f":"IF($B805=\"N\",\"\",IF(LEN('Enrollment Form'!$AF812)=0,\"\",IF(LEN('Enrollment Form'!$AF812)<>10,\"N\",\"Y\")))","v":""},{"$f":"IF('Enrollment Form'!$O812<>\"Graded\",\"-\",IF(AND('Enrollment Form'!$O812=\"Graded\",'Enrollment Form'!$AR812<>\"\"),\"Y\",\"N\"))","v":"-"},{"$f":"IF($B805=\"N\",\"\",IF(OR('Enrollment Form'!$B812<>\"Subscriber\",'Enrollment Form'!$C812=\"ROC\"),\"-\",IF(AND('Enrollment Form'!$B812=\"Subscriber\",'Enrollment Form'!$C812=\"Enroll\",'Enrollment Form'!$AJ812<>\"\"),\"Y\",\"N\")))","v":""},{"$f":"IF($B805=\"N\",\"\",IF(OR('Enrollment Form'!$B812<>\"Subscriber\",'Enrollment Form'!$C812=\"ROC\"),\"-\",IF(AND('Enrollment Form'!$B812=\"Subscriber\",'Enrollment Form'!$C812=\"Enroll\",'Enrollment Form'!$AK812<>\"\"),\"Y\",\"N\")))","v":""},{"$f":"IF($B805=\"N\",\"\",IF(OR('Enrollment Form'!$B812<>\"Subscriber\",'Enrollment Form'!$C812=\"ROC\"),\"-\",IF(AND('Enrollment Form'!$B812=\"Subscriber\",'Enrollment Form'!$C812=\"Enroll\",'Enrollment Form'!$AL812<>\"\"),\"Y\",\"N\")))","v":""},{"$f":"IF($B805=\"N\",\"\",IF(OR('Enrollment Form'!$B812<>\"Subscriber\",'Enrollment Form'!$C812=\"ROC\"),\"-\",IF(AND('Enrollment Form'!$B812=\"Subscriber\",'Enrollment Form'!$C812=\"Enroll\",'Enrollment Form'!$AP812<>\"\"),\"Y\",\"N\")))","v":""},{"$f":"IF($B805=\"N\",\"\",IF(OR('Enrollment Form'!$B812<>\"Subscriber\",'Enrollment Form'!$C812=\"ROC\"),\"-\",IF(AND('Enrollment Form'!$B812=\"Subscriber\",'Enrollment Form'!$C812=\"Enroll\",'Enrollment Form'!$AQ812<>\"\"),\"Y\",\"N\")))","v":""},{"$f":"IF($B805=\"N\",\"\",IF(OR('Enrollment Form'!$B812<>\"Subscriber\",'Enrollment Form'!$C812=\"ROC\"),\"-\",IF(AND('Enrollment Form'!$B812=\"Subscriber\",'Enrollment Form'!$C812=\"Enroll\",'Enrollment Form'!$AS812<>\"\"),\"Y\",\"N\")))","v":""},{"$f":"IF($B805=\"N\",\"\",IF($Q805=\"-\",\"-\",IF(AND($Q805=\"Y\",'Enrollment Form'!$AS812=\"No\"),\"-\",IF(AND($Q805=\"Y\",'Enrollment Form'!$AS812=\"Yes\",'Enrollment Form'!$AT812<>\"\"),\"Y\",\"N\"))))","v":""},{"$f":"IF($B805=\"N\",\"\",IF(OR('Enrollment Form'!$B812<>\"Subscriber\",'Enrollment Form'!$C812=\"ROC\"),\"-\",IF(AND('Enrollment Form'!$B812=\"Subscriber\",'Enrollment Form'!$C812=\"Enroll\",'Enrollment Form'!$CV812<>\"\"),\"Y\",\"N\")))","v":""},{"$f":"IF($B805=\"N\",\"\",IF($S805=\"-\",\"-\",IF(AND($S805=\"Y\",'Enrollment Form'!$CV812=\"No\"),\"-\",IF(AND($S805=\"Y\",'Enrollment Form'!$CV812=\"Yes\",'Enrollment Form'!$CW812<>\"\"),\"Y\",\"N\"))))","v":""},{"$f":"IF(OR('Enrollment Form'!$AY812=\"Yes\",'Enrollment Form'!$AY812=\"\"),\"-\",IF(OR(AND('Enrollment Form'!$AY812=\"No\",ISERROR(FIND(\"HMO\",VLOOKUP('Enrollment Form'!G812,'Enrollment Form'!H$11:J$1000,3,FALSE),1))=FALSE,COUNTA('Enrollment Form'!$AZ812:$BC812)=4),AND('Enrollment Form'!$AY812=\"No\",ISERROR(FIND(\"HMO\",VLOOKUP('Enrollment Form'!G812,'Enrollment Form'!H$11:J$1000,3,FALSE),1))=FALSE,COUNTA('Enrollment Form'!$BT812:$BW812)=4)),\"Y\",\"N\"))","v":"-"},{"$f":"IF($B805=\"N\",\"\",IF('Enrollment Form'!$B812=\"Subscriber\",\"-\",IF(COUNTA('Enrollment Form'!$BL812,'Enrollment Form'!$BN812)=2,\"Y\",\"N\")))","v":""},{"$f":"IF($B805=\"N\",\"\",IF(OR('Enrollment Form'!$AX812=\"\",'Enrollment Form'!$AX812=\"No\"),\"-\",IF(AND('Enrollment Form'!$AX812=\"Yes\",COUNTA('Enrollment Form'!$CR812)=1),\"Y\",\"N\")))","v":""},{"$f":"IF(OR('Enrollment Form'!$CR812=\"\",'Enrollment Form'!$CR812=\"No\"),\"-\",IF(COUNTA('Enrollment Form'!$CT812:$CU812)=2,\"Y\",\"N\"))","v":"-"},{"$f":"IF($B805=\"N\",\"\",IF(COUNTIF('Enrollment Form'!$DG812:$DP812,\"Other\")=COUNTA('Enrollment Form'!$DK812,'Enrollment Form'!$DH812,'Enrollment Form'!$DN812,'Enrollment Form'!$DQ812),\"Y\",\"N\"))","v":""},{"$f":"IF($B805=\"N\",\"\",IF(OR('Enrollment Form'!B812<>\"Subscriber\",'Enrollment Form'!C812=\"ROC\",COUNTIF('Enrollment Form'!AV812:AW812,\"Yes\")>=1),\"-\",IF(AND('Enrollment Form'!C812=\"Enroll\",COUNTIF('Enrollment Form'!AV812:AW812,\"No\")=2,'Enrollment Form'!AX812=\"\"),\"N\",\"Y\")))","v":""},{"$f":"IF(OR(B805=\"N\",'Enrollment Form'!B812<>\"Subscriber\",'Enrollment Form'!C812=\"ROC\",'Enrollment Form'!O812<>\"Multiple of Salary\"),\"-\",IF(COUNTA('Enrollment Form'!T812:U812)<2,\"N\",\"Y\"))","v":"-"},{"$f":"IF(B805=\"N\",\"\",IF(OR('Enrollment Form'!C812=\"ROC\",'Enrollment Form'!B812<>\"Subscriber\",'Enrollment Form'!O812=\"Waive\",'Enrollment Form'!O812=\"\"),\"-\",IF('Enrollment Form'!P812=\"\",\"N\",\"Y\")))","v":""},{"$f":"IF($B805=\"N\",\"\",IF(AND('Enrollment Form'!$C812=\"ROC\",'Enrollment Form'!$DR812<>\"\"),\"Y\",IF(AND('Enrollment Form'!$C812=\"ROC\",'Enrollment Form'!$DR812=\"\"),\"N\",IF(AND('Enrollment Form'!$C812=\"Enroll\",'Enrollment Form'!$B812=\"Subscriber\",'Enrollment Form'!$CX812=\"No\",'Enrollment Form'!$DR812=\"\"),\"N\",IF(AND('Enrollment Form'!$C812=\"Enroll\",'Enrollment Form'!$B812=\"Subscriber\",'Enrollment Form'!$CX812=\"Yes\"),\"-\",\"Y\")))))","v":""},{"$f":"IF($B805=\"N\",\"\",IF(AND('Enrollment Form'!$C812=\"ROC\",'Enrollment Form'!$DS812<>\"\"),\"Y\",IF(AND('Enrollment Form'!$C812=\"ROC\",'Enrollment Form'!$DS812=\"\"),\"N\",IF(AND('Enrollment Form'!$C812=\"Enroll\",'Enrollment Form'!$B812=\"Subscriber\",'Enrollment Form'!$CX812=\"No\",'Enrollment Form'!$DS812=\"\"),\"N\",IF(AND('Enrollment Form'!$C812=\"Enroll\",'Enrollment Form'!$B812=\"Subscriber\",'Enrollment Form'!$CX812=\"Yes\"),\"-\",\"Y\")))))","v":""},{"$f":"IF('Enrollment Form'!AH812=\"\",\"\",IF(ISERROR(SEARCH(\".\",'Enrollment Form'!AH812,SEARCH(\"@\",'Enrollment Form'!AH812))),\"N\",\"Y\"))","v":""},{"$f":"IF(OR($B805=\"N\",'Enrollment Form'!$G812=\"\"),\"\",IF('Enrollment Form'!$B812<>\"Subscriber\",\"-\",IF(COUNTIF('Enrollment Form'!$AV812:$AW812,\"Yes\")=2,\"N\",\"Y\")))","v":""},{"$f":"IF(OR('Enrollment Form'!$CJ812=\"\",'Enrollment Form'!$CJ812=\"No\"),\"-\",IF(AND('Enrollment Form'!$CJ812=\"Yes\",'Enrollment Form'!$CK812=\"\"),\"N\",\"Y\"))","v":"-"},{"$f":"IF(OR('Enrollment Form'!$CL812=\"\",'Enrollment Form'!$CL812=\"No\"),\"-\",IF(AND('Enrollment Form'!$CL812=\"Yes\",'Enrollment Form'!$CM812=\"\"),\"N\",\"Y\"))","v":"-"},{"$f":"IF(OR('Enrollment Form'!$CN812=\"\",'Enrollment Form'!$CN812=\"No\"),\"-\",IF(AND('Enrollment Form'!$CN812=\"Yes\",'Enrollment Form'!$CO812=\"\"),\"N\",\"Y\"))","v":"-"},{"$f":"IF(OR('Enrollment Form'!$CN812=\"\",'Enrollment Form'!$CN812=\"No\"),\"-\",IF(AND('Enrollment Form'!$CN812=\"Yes\",'Enrollment Form'!$CP812=\"\"),\"N\",\"Y\"))","v":"-"},{"$f":"IF('Enrollment Form'!B812<>\"Subscriber\",\"-\",IF(AND('Enrollment Form'!B812=\"Subscriber\",'Enrollment Form'!C812=\"Enroll\",'Enrollment Form'!AA812=\"\"),\"N\",\"Y\"))","v":"-"},{"$f":"IF(OR('Enrollment Form'!B812=\"Subscriber\",'Enrollment Form'!B812=\"\"),\"-\",IF('Enrollment Form'!BP812=\"\",\"N\",\"Y\"))","v":"-"},{"$f":"IF('Enrollment Form'!B812<>\"Subscriber\",\"-\",IF(AND('Enrollment Form'!B812=\"Subscriber\",'Enrollment Form'!G812=\"\"),\"N\",\"Y\"))","v":"-"},{"$f":"IF('Enrollment Form'!A812=\"\",\"\",IF('Enrollment Form'!B812=\"Subscriber\",\"-\",IF(AND('Enrollment Form'!B812<>\"Subscriber\",'Enrollment Form'!G812='Enrollment Form'!H812),\"N\",\"Y\")))","v":""},0]
[813,{"$f":"IF('Enrollment Form'!$A813<>\"\",\"Y\",\"N\")","v":"N"},{"$f":"IF(AND('Enrollment Form'!$B813=\"\",'Enrollment Form'!$C813<>\"\"),\"N\",IF($B806=\"N\",\"\",\"Y\"))","v":""},{"$f":"IF(OR($B806=\"N\",'Enrollment Form'!G813=\"\"),\"\",IF('Enrollment Form'!$B813<>\"Subscriber\",\"\",IF('Enrollment Form'!$G813='Enrollment Form'!$H813,\"Y\",\"N\")))","v":""},{"$f":"IF($B806=\"N\",\"\",IF(AND(COUNTIFS('Enrollment Form'!$H$11:$H$1000,'Enrollment Form'!$H813,'Enrollment Form'!$B$11:$B$1000,'Enrollment Form'!$B813)>1,'Enrollment Form'!$H813<>\"\"),\"N\",\"Y\"))","v":""},{"$f":"IF($B806=\"N\",\"\",IF(LEN('Enrollment Form'!$Y813)=0,\"\",IF(LEN('Enrollment Form'!$Y813)<>5,\"N\",\"Y\")))","v":""},{"$f":"IF($B806=\"N\",\"\",IF(LEN('Enrollment Form'!$AD813=0),\"\",IF(LEN('Enrollment Form'!$AD813)<>5,\"N\",\"Y\")))","v":""},{"$f":"IF($B806=\"N\",\"\",IF(LEN('Enrollment Form'!$BS813=0),\"\",IF(LEN('Enrollment Form'!$BS813)<>5,\"N\",\"Y\")))","v":""},{"$f":"IF($B806=\"N\",\"\",IF(LEN('Enrollment Form'!$AE813)=0,\"\",IF(LEN('Enrollment Form'!$AE813)<>10,\"N\",\"Y\")))","v":""},{"$f":"IF($B806=\"N\",\"\",IF(LEN('Enrollment Form'!$AF813)=0,\"\",IF(LEN('Enrollment Form'!$AF813)<>10,\"N\",\"Y\")))","v":""},{"$f":"IF('Enrollment Form'!$O813<>\"Graded\",\"-\",IF(AND('Enrollment Form'!$O813=\"Graded\",'Enrollment Form'!$AR813<>\"\"),\"Y\",\"N\"))","v":"-"},{"$f":"IF($B806=\"N\",\"\",IF(OR('Enrollment Form'!$B813<>\"Subscriber\",'Enrollment Form'!$C813=\"ROC\"),\"-\",IF(AND('Enrollment Form'!$B813=\"Subscriber\",'Enrollment Form'!$C813=\"Enroll\",'Enrollment Form'!$AJ813<>\"\"),\"Y\",\"N\")))","v":""},{"$f":"IF($B806=\"N\",\"\",IF(OR('Enrollment Form'!$B813<>\"Subscriber\",'Enrollment Form'!$C813=\"ROC\"),\"-\",IF(AND('Enrollment Form'!$B813=\"Subscriber\",'Enrollment Form'!$C813=\"Enroll\",'Enrollment Form'!$AK813<>\"\"),\"Y\",\"N\")))","v":""},{"$f":"IF($B806=\"N\",\"\",IF(OR('Enrollment Form'!$B813<>\"Subscriber\",'Enrollment Form'!$C813=\"ROC\"),\"-\",IF(AND('Enrollment Form'!$B813=\"Subscriber\",'Enrollment Form'!$C813=\"Enroll\",'Enrollment Form'!$AL813<>\"\"),\"Y\",\"N\")))","v":""},{"$f":"IF($B806=\"N\",\"\",IF(OR('Enrollment Form'!$B813<>\"Subscriber\",'Enrollment Form'!$C813=\"ROC\"),\"-\",IF(AND('Enrollment Form'!$B813=\"Subscriber\",'Enrollment Form'!$C813=\"Enroll\",'Enrollment Form'!$AP813<>\"\"),\"Y\",\"N\")))","v":""},{"$f":"IF($B806=\"N\",\"\",IF(OR('Enrollment Form'!$B813<>\"Subscriber\",'Enrollment Form'!$C813=\"ROC\"),\"-\",IF(AND('Enrollment Form'!$B813=\"Subscriber\",'Enrollment Form'!$C813=\"Enroll\",'Enrollment Form'!$AQ813<>\"\"),\"Y\",\"N\")))","v":""},{"$f":"IF($B806=\"N\",\"\",IF(OR('Enrollment Form'!$B813<>\"Subscriber\",'Enrollment Form'!$C813=\"ROC\"),\"-\",IF(AND('Enrollment Form'!$B813=\"Subscriber\",'Enrollment Form'!$C813=\"Enroll\",'Enrollment Form'!$AS813<>\"\"),\"Y\",\"N\")))","v":""},{"$f":"IF($B806=\"N\",\"\",IF($Q806=\"-\",\"-\",IF(AND($Q806=\"Y\",'Enrollment Form'!$AS813=\"No\"),\"-\",IF(AND($Q806=\"Y\",'Enrollment Form'!$AS813=\"Yes\",'Enrollment Form'!$AT813<>\"\"),\"Y\",\"N\"))))","v":""},{"$f":"IF($B806=\"N\",\"\",IF(OR('Enrollment Form'!$B813<>\"Subscriber\",'Enrollment Form'!$C813=\"ROC\"),\"-\",IF(AND('Enrollment Form'!$B813=\"Subscriber\",'Enrollment Form'!$C813=\"Enroll\",'Enrollment Form'!$CV813<>\"\"),\"Y\",\"N\")))","v":""},{"$f":"IF($B806=\"N\",\"\",IF($S806=\"-\",\"-\",IF(AND($S806=\"Y\",'Enrollment Form'!$CV813=\"No\"),\"-\",IF(AND($S806=\"Y\",'Enrollment Form'!$CV813=\"Yes\",'Enrollment Form'!$CW813<>\"\"),\"Y\",\"N\"))))","v":""},{"$f":"IF(OR('Enrollment Form'!$AY813=\"Yes\",'Enrollment Form'!$AY813=\"\"),\"-\",IF(OR(AND('Enrollment Form'!$AY813=\"No\",ISERROR(FIND(\"HMO\",VLOOKUP('Enrollment Form'!G813,'Enrollment Form'!H$11:J$1000,3,FALSE),1))=FALSE,COUNTA('Enrollment Form'!$AZ813:$BC813)=4),AND('Enrollment Form'!$AY813=\"No\",ISERROR(FIND(\"HMO\",VLOOKUP('Enrollment Form'!G813,'Enrollment Form'!H$11:J$1000,3,FALSE),1))=FALSE,COUNTA('Enrollment Form'!$BT813:$BW813)=4)),\"Y\",\"N\"))","v":"-"},{"$f":"IF($B806=\"N\",\"\",IF('Enrollment Form'!$B813=\"Subscriber\",\"-\",IF(COUNTA('Enrollment Form'!$BL813,'Enrollment Form'!$BN813)=2,\"Y\",\"N\")))","v":""},{"$f":"IF($B806=\"N\",\"\",IF(OR('Enrollment Form'!$AX813=\"\",'Enrollment Form'!$AX813=\"No\"),\"-\",IF(AND('Enrollment Form'!$AX813=\"Yes\",COUNTA('Enrollment Form'!$CR813)=1),\"Y\",\"N\")))","v":""},{"$f":"IF(OR('Enrollment Form'!$CR813=\"\",'Enrollment Form'!$CR813=\"No\"),\"-\",IF(COUNTA('Enrollment Form'!$CT813:$CU813)=2,\"Y\",\"N\"))","v":"-"},{"$f":"IF($B806=\"N\",\"\",IF(COUNTIF('Enrollment Form'!$DG813:$DP813,\"Other\")=COUNTA('Enrollment Form'!$DK813,'Enrollment Form'!$DH813,'Enrollment Form'!$DN813,'Enrollment Form'!$DQ813),\"Y\",\"N\"))","v":""},{"$f":"IF($B806=\"N\",\"\",IF(OR('Enrollment Form'!B813<>\"Subscriber\",'Enrollment Form'!C813=\"ROC\",COUNTIF('Enrollment Form'!AV813:AW813,\"Yes\")>=1),\"-\",IF(AND('Enrollment Form'!C813=\"Enroll\",COUNTIF('Enrollment Form'!AV813:AW813,\"No\")=2,'Enrollment Form'!AX813=\"\"),\"N\",\"Y\")))","v":""},{"$f":"IF(OR(B806=\"N\",'Enrollment Form'!B813<>\"Subscriber\",'Enrollment Form'!C813=\"ROC\",'Enrollment Form'!O813<>\"Multiple of Salary\"),\"-\",IF(COUNTA('Enrollment Form'!T813:U813)<2,\"N\",\"Y\"))","v":"-"},{"$f":"IF(B806=\"N\",\"\",IF(OR('Enrollment Form'!C813=\"ROC\",'Enrollment Form'!B813<>\"Subscriber\",'Enrollment Form'!O813=\"Waive\",'Enrollment Form'!O813=\"\"),\"-\",IF('Enrollment Form'!P813=\"\",\"N\",\"Y\")))","v":""},{"$f":"IF($B806=\"N\",\"\",IF(AND('Enrollment Form'!$C813=\"ROC\",'Enrollment Form'!$DR813<>\"\"),\"Y\",IF(AND('Enrollment Form'!$C813=\"ROC\",'Enrollment Form'!$DR813=\"\"),\"N\",IF(AND('Enrollment Form'!$C813=\"Enroll\",'Enrollment Form'!$B813=\"Subscriber\",'Enrollment Form'!$CX813=\"No\",'Enrollment Form'!$DR813=\"\"),\"N\",IF(AND('Enrollment Form'!$C813=\"Enroll\",'Enrollment Form'!$B813=\"Subscriber\",'Enrollment Form'!$CX813=\"Yes\"),\"-\",\"Y\")))))","v":""},{"$f":"IF($B806=\"N\",\"\",IF(AND('Enrollment Form'!$C813=\"ROC\",'Enrollment Form'!$DS813<>\"\"),\"Y\",IF(AND('Enrollment Form'!$C813=\"ROC\",'Enrollment Form'!$DS813=\"\"),\"N\",IF(AND('Enrollment Form'!$C813=\"Enroll\",'Enrollment Form'!$B813=\"Subscriber\",'Enrollment Form'!$CX813=\"No\",'Enrollment Form'!$DS813=\"\"),\"N\",IF(AND('Enrollment Form'!$C813=\"Enroll\",'Enrollment Form'!$B813=\"Subscriber\",'Enrollment Form'!$CX813=\"Yes\"),\"-\",\"Y\")))))","v":""},{"$f":"IF('Enrollment Form'!AH813=\"\",\"\",IF(ISERROR(SEARCH(\".\",'Enrollment Form'!AH813,SEARCH(\"@\",'Enrollment Form'!AH813))),\"N\",\"Y\"))","v":""},{"$f":"IF(OR($B806=\"N\",'Enrollment Form'!$G813=\"\"),\"\",IF('Enrollment Form'!$B813<>\"Subscriber\",\"-\",IF(COUNTIF('Enrollment Form'!$AV813:$AW813,\"Yes\")=2,\"N\",\"Y\")))","v":""},{"$f":"IF(OR('Enrollment Form'!$CJ813=\"\",'Enrollment Form'!$CJ813=\"No\"),\"-\",IF(AND('Enrollment Form'!$CJ813=\"Yes\",'Enrollment Form'!$CK813=\"\"),\"N\",\"Y\"))","v":"-"},{"$f":"IF(OR('Enrollment Form'!$CL813=\"\",'Enrollment Form'!$CL813=\"No\"),\"-\",IF(AND('Enrollment Form'!$CL813=\"Yes\",'Enrollment Form'!$CM813=\"\"),\"N\",\"Y\"))","v":"-"},{"$f":"IF(OR('Enrollment Form'!$CN813=\"\",'Enrollment Form'!$CN813=\"No\"),\"-\",IF(AND('Enrollment Form'!$CN813=\"Yes\",'Enrollment Form'!$CO813=\"\"),\"N\",\"Y\"))","v":"-"},{"$f":"IF(OR('Enrollment Form'!$CN813=\"\",'Enrollment Form'!$CN813=\"No\"),\"-\",IF(AND('Enrollment Form'!$CN813=\"Yes\",'Enrollment Form'!$CP813=\"\"),\"N\",\"Y\"))","v":"-"},{"$f":"IF('Enrollment Form'!B813<>\"Subscriber\",\"-\",IF(AND('Enrollment Form'!B813=\"Subscriber\",'Enrollment Form'!C813=\"Enroll\",'Enrollment Form'!AA813=\"\"),\"N\",\"Y\"))","v":"-"},{"$f":"IF(OR('Enrollment Form'!B813=\"Subscriber\",'Enrollment Form'!B813=\"\"),\"-\",IF('Enrollment Form'!BP813=\"\",\"N\",\"Y\"))","v":"-"},{"$f":"IF('Enrollment Form'!B813<>\"Subscriber\",\"-\",IF(AND('Enrollment Form'!B813=\"Subscriber\",'Enrollment Form'!G813=\"\"),\"N\",\"Y\"))","v":"-"},{"$f":"IF('Enrollment Form'!A813=\"\",\"\",IF('Enrollment Form'!B813=\"Subscriber\",\"-\",IF(AND('Enrollment Form'!B813<>\"Subscriber\",'Enrollment Form'!G813='Enrollment Form'!H813),\"N\",\"Y\")))","v":""},0]
[814,{"$f":"IF('Enrollment Form'!$A814<>\"\",\"Y\",\"N\")","v":"N"},{"$f":"IF(AND('Enrollment Form'!$B814=\"\",'Enrollment Form'!$C814<>\"\"),\"N\",IF($B807=\"N\",\"\",\"Y\"))","v":""},{"$f":"IF(OR($B807=\"N\",'Enrollment Form'!G814=\"\"),\"\",IF('Enrollment Form'!$B814<>\"Subscriber\",\"\",IF('Enrollment Form'!$G814='Enrollment Form'!$H814,\"Y\",\"N\")))","v":""},{"$f":"IF($B807=\"N\",\"\",IF(AND(COUNTIFS('Enrollment Form'!$H$11:$H$1000,'Enrollment Form'!$H814,'Enrollment Form'!$B$11:$B$1000,'Enrollment Form'!$B814)>1,'Enrollment Form'!$H814<>\"\"),\"N\",\"Y\"))","v":""},{"$f":"IF($B807=\"N\",\"\",IF(LEN('Enrollment Form'!$Y814)=0,\"\",IF(LEN('Enrollment Form'!$Y814)<>5,\"N\",\"Y\")))","v":""},{"$f":"IF($B807=\"N\",\"\",IF(LEN('Enrollment Form'!$AD814=0),\"\",IF(LEN('Enrollment Form'!$AD814)<>5,\"N\",\"Y\")))","v":""},{"$f":"IF($B807=\"N\",\"\",IF(LEN('Enrollment Form'!$BS814=0),\"\",IF(LEN('Enrollment Form'!$BS814)<>5,\"N\",\"Y\")))","v":""},{"$f":"IF($B807=\"N\",\"\",IF(LEN('Enrollment Form'!$AE814)=0,\"\",IF(LEN('Enrollment Form'!$AE814)<>10,\"N\",\"Y\")))","v":""},{"$f":"IF($B807=\"N\",\"\",IF(LEN('Enrollment Form'!$AF814)=0,\"\",IF(LEN('Enrollment Form'!$AF814)<>10,\"N\",\"Y\")))","v":""},{"$f":"IF('Enrollment Form'!$O814<>\"Graded\",\"-\",IF(AND('Enrollment Form'!$O814=\"Graded\",'Enrollment Form'!$AR814<>\"\"),\"Y\",\"N\"))","v":"-"},{"$f":"IF($B807=\"N\",\"\",IF(OR('Enrollment Form'!$B814<>\"Subscriber\",'Enrollment Form'!$C814=\"ROC\"),\"-\",IF(AND('Enrollment Form'!$B814=\"Subscriber\",'Enrollment Form'!$C814=\"Enroll\",'Enrollment Form'!$AJ814<>\"\"),\"Y\",\"N\")))","v":""},{"$f":"IF($B807=\"N\",\"\",IF(OR('Enrollment Form'!$B814<>\"Subscriber\",'Enrollment Form'!$C814=\"ROC\"),\"-\",IF(AND('Enrollment Form'!$B814=\"Subscriber\",'Enrollment Form'!$C814=\"Enroll\",'Enrollment Form'!$AK814<>\"\"),\"Y\",\"N\")))","v":""},{"$f":"IF($B807=\"N\",\"\",IF(OR('Enrollment Form'!$B814<>\"Subscriber\",'Enrollment Form'!$C814=\"ROC\"),\"-\",IF(AND('Enrollment Form'!$B814=\"Subscriber\",'Enrollment Form'!$C814=\"Enroll\",'Enrollment Form'!$AL814<>\"\"),\"Y\",\"N\")))","v":""},{"$f":"IF($B807=\"N\",\"\",IF(OR('Enrollment Form'!$B814<>\"Subscriber\",'Enrollment Form'!$C814=\"ROC\"),\"-\",IF(AND('Enrollment Form'!$B814=\"Subscriber\",'Enrollment Form'!$C814=\"Enroll\",'Enrollment Form'!$AP814<>\"\"),\"Y\",\"N\")))","v":""},{"$f":"IF($B807=\"N\",\"\",IF(OR('Enrollment Form'!$B814<>\"Subscriber\",'Enrollment Form'!$C814=\"ROC\"),\"-\",IF(AND('Enrollment Form'!$B814=\"Subscriber\",'Enrollment Form'!$C814=\"Enroll\",'Enrollment Form'!$AQ814<>\"\"),\"Y\",\"N\")))","v":""},{"$f":"IF($B807=\"N\",\"\",IF(OR('Enrollment Form'!$B814<>\"Subscriber\",'Enrollment Form'!$C814=\"ROC\"),\"-\",IF(AND('Enrollment Form'!$B814=\"Subscriber\",'Enrollment Form'!$C814=\"Enroll\",'Enrollment Form'!$AS814<>\"\"),\"Y\",\"N\")))","v":""},{"$f":"IF($B807=\"N\",\"\",IF($Q807=\"-\",\"-\",IF(AND($Q807=\"Y\",'Enrollment Form'!$AS814=\"No\"),\"-\",IF(AND($Q807=\"Y\",'Enrollment Form'!$AS814=\"Yes\",'Enrollment Form'!$AT814<>\"\"),\"Y\",\"N\"))))","v":""},{"$f":"IF($B807=\"N\",\"\",IF(OR('Enrollment Form'!$B814<>\"Subscriber\",'Enrollment Form'!$C814=\"ROC\"),\"-\",IF(AND('Enrollment Form'!$B814=\"Subscriber\",'Enrollment Form'!$C814=\"Enroll\",'Enrollment Form'!$CV814<>\"\"),\"Y\",\"N\")))","v":""},{"$f":"IF($B807=\"N\",\"\",IF($S807=\"-\",\"-\",IF(AND($S807=\"Y\",'Enrollment Form'!$CV814=\"No\"),\"-\",IF(AND($S807=\"Y\",'Enrollment Form'!$CV814=\"Yes\",'Enrollment Form'!$CW814<>\"\"),\"Y\",\"N\"))))","v":""},{"$f":"IF(OR('Enrollment Form'!$AY814=\"Yes\",'Enrollment Form'!$AY814=\"\"),\"-\",IF(OR(AND('Enrollment Form'!$AY814=\"No\",ISERROR(FIND(\"HMO\",VLOOKUP('Enrollment Form'!G814,'Enrollment Form'!H$11:J$1000,3,FALSE),1))=FALSE,COUNTA('Enrollment Form'!$AZ814:$BC814)=4),AND('Enrollment Form'!$AY814=\"No\",ISERROR(FIND(\"HMO\",VLOOKUP('Enrollment Form'!G814,'Enrollment Form'!H$11:J$1000,3,FALSE),1))=FALSE,COUNTA('Enrollment Form'!$BT814:$BW814)=4)),\"Y\",\"N\"))","v":"-"},{"$f":"IF($B807=\"N\",\"\",IF('Enrollment Form'!$B814=\"Subscriber\",\"-\",IF(COUNTA('Enrollment Form'!$BL814,'Enrollment Form'!$BN814)=2,\"Y\",\"N\")))","v":""},{"$f":"IF($B807=\"N\",\"\",IF(OR('Enrollment Form'!$AX814=\"\",'Enrollment Form'!$AX814=\"No\"),\"-\",IF(AND('Enrollment Form'!$AX814=\"Yes\",COUNTA('Enrollment Form'!$CR814)=1),\"Y\",\"N\")))","v":""},{"$f":"IF(OR('Enrollment Form'!$CR814=\"\",'Enrollment Form'!$CR814=\"No\"),\"-\",IF(COUNTA('Enrollment Form'!$CT814:$CU814)=2,\"Y\",\"N\"))","v":"-"},{"$f":"IF($B807=\"N\",\"\",IF(COUNTIF('Enrollment Form'!$DG814:$DP814,\"Other\")=COUNTA('Enrollment Form'!$DK814,'Enrollment Form'!$DH814,'Enrollment Form'!$DN814,'Enrollment Form'!$DQ814),\"Y\",\"N\"))","v":""},{"$f":"IF($B807=\"N\",\"\",IF(OR('Enrollment Form'!B814<>\"Subscriber\",'Enrollment Form'!C814=\"ROC\",COUNTIF('Enrollment Form'!AV814:AW814,\"Yes\")>=1),\"-\",IF(AND('Enrollment Form'!C814=\"Enroll\",COUNTIF('Enrollment Form'!AV814:AW814,\"No\")=2,'Enrollment Form'!AX814=\"\"),\"N\",\"Y\")))","v":""},{"$f":"IF(OR(B807=\"N\",'Enrollment Form'!B814<>\"Subscriber\",'Enrollment Form'!C814=\"ROC\",'Enrollment Form'!O814<>\"Multiple of Salary\"),\"-\",IF(COUNTA('Enrollment Form'!T814:U814)<2,\"N\",\"Y\"))","v":"-"},{"$f":"IF(B807=\"N\",\"\",IF(OR('Enrollment Form'!C814=\"ROC\",'Enrollment Form'!B814<>\"Subscriber\",'Enrollment Form'!O814=\"Waive\",'Enrollment Form'!O814=\"\"),\"-\",IF('Enrollment Form'!P814=\"\",\"N\",\"Y\")))","v":""},{"$f":"IF($B807=\"N\",\"\",IF(AND('Enrollment Form'!$C814=\"ROC\",'Enrollment Form'!$DR814<>\"\"),\"Y\",IF(AND('Enrollment Form'!$C814=\"ROC\",'Enrollment Form'!$DR814=\"\"),\"N\",IF(AND('Enrollment Form'!$C814=\"Enroll\",'Enrollment Form'!$B814=\"Subscriber\",'Enrollment Form'!$CX814=\"No\",'Enrollment Form'!$DR814=\"\"),\"N\",IF(AND('Enrollment Form'!$C814=\"Enroll\",'Enrollment Form'!$B814=\"Subscriber\",'Enrollment Form'!$CX814=\"Yes\"),\"-\",\"Y\")))))","v":""},{"$f":"IF($B807=\"N\",\"\",IF(AND('Enrollment Form'!$C814=\"ROC\",'Enrollment Form'!$DS814<>\"\"),\"Y\",IF(AND('Enrollment Form'!$C814=\"ROC\",'Enrollment Form'!$DS814=\"\"),\"N\",IF(AND('Enrollment Form'!$C814=\"Enroll\",'Enrollment Form'!$B814=\"Subscriber\",'Enrollment Form'!$CX814=\"No\",'Enrollment Form'!$DS814=\"\"),\"N\",IF(AND('Enrollment Form'!$C814=\"Enroll\",'Enrollment Form'!$B814=\"Subscriber\",'Enrollment Form'!$CX814=\"Yes\"),\"-\",\"Y\")))))","v":""},{"$f":"IF('Enrollment Form'!AH814=\"\",\"\",IF(ISERROR(SEARCH(\".\",'Enrollment Form'!AH814,SEARCH(\"@\",'Enrollment Form'!AH814))),\"N\",\"Y\"))","v":""},{"$f":"IF(OR($B807=\"N\",'Enrollment Form'!$G814=\"\"),\"\",IF('Enrollment Form'!$B814<>\"Subscriber\",\"-\",IF(COUNTIF('Enrollment Form'!$AV814:$AW814,\"Yes\")=2,\"N\",\"Y\")))","v":""},{"$f":"IF(OR('Enrollment Form'!$CJ814=\"\",'Enrollment Form'!$CJ814=\"No\"),\"-\",IF(AND('Enrollment Form'!$CJ814=\"Yes\",'Enrollment Form'!$CK814=\"\"),\"N\",\"Y\"))","v":"-"},{"$f":"IF(OR('Enrollment Form'!$CL814=\"\",'Enrollment Form'!$CL814=\"No\"),\"-\",IF(AND('Enrollment Form'!$CL814=\"Yes\",'Enrollment Form'!$CM814=\"\"),\"N\",\"Y\"))","v":"-"},{"$f":"IF(OR('Enrollment Form'!$CN814=\"\",'Enrollment Form'!$CN814=\"No\"),\"-\",IF(AND('Enrollment Form'!$CN814=\"Yes\",'Enrollment Form'!$CO814=\"\"),\"N\",\"Y\"))","v":"-"},{"$f":"IF(OR('Enrollment Form'!$CN814=\"\",'Enrollment Form'!$CN814=\"No\"),\"-\",IF(AND('Enrollment Form'!$CN814=\"Yes\",'Enrollment Form'!$CP814=\"\"),\"N\",\"Y\"))","v":"-"},{"$f":"IF('Enrollment Form'!B814<>\"Subscriber\",\"-\",IF(AND('Enrollment Form'!B814=\"Subscriber\",'Enrollment Form'!C814=\"Enroll\",'Enrollment Form'!AA814=\"\"),\"N\",\"Y\"))","v":"-"},{"$f":"IF(OR('Enrollment Form'!B814=\"Subscriber\",'Enrollment Form'!B814=\"\"),\"-\",IF('Enrollment Form'!BP814=\"\",\"N\",\"Y\"))","v":"-"},{"$f":"IF('Enrollment Form'!B814<>\"Subscriber\",\"-\",IF(AND('Enrollment Form'!B814=\"Subscriber\",'Enrollment Form'!G814=\"\"),\"N\",\"Y\"))","v":"-"},{"$f":"IF('Enrollment Form'!A814=\"\",\"\",IF('Enrollment Form'!B814=\"Subscriber\",\"-\",IF(AND('Enrollment Form'!B814<>\"Subscriber\",'Enrollment Form'!G814='Enrollment Form'!H814),\"N\",\"Y\")))","v":""},0]
[815,{"$f":"IF('Enrollment Form'!$A815<>\"\",\"Y\",\"N\")","v":"N"},{"$f":"IF(AND('Enrollment Form'!$B815=\"\",'Enrollment Form'!$C815<>\"\"),\"N\",IF($B808=\"N\",\"\",\"Y\"))","v":""},{"$f":"IF(OR($B808=\"N\",'Enrollment Form'!G815=\"\"),\"\",IF('Enrollment Form'!$B815<>\"Subscriber\",\"\",IF('Enrollment Form'!$G815='Enrollment Form'!$H815,\"Y\",\"N\")))","v":""},{"$f":"IF($B808=\"N\",\"\",IF(AND(COUNTIFS('Enrollment Form'!$H$11:$H$1000,'Enrollment Form'!$H815,'Enrollment Form'!$B$11:$B$1000,'Enrollment Form'!$B815)>1,'Enrollment Form'!$H815<>\"\"),\"N\",\"Y\"))","v":""},{"$f":"IF($B808=\"N\",\"\",IF(LEN('Enrollment Form'!$Y815)=0,\"\",IF(LEN('Enrollment Form'!$Y815)<>5,\"N\",\"Y\")))","v":""},{"$f":"IF($B808=\"N\",\"\",IF(LEN('Enrollment Form'!$AD815=0),\"\",IF(LEN('Enrollment Form'!$AD815)<>5,\"N\",\"Y\")))","v":""},{"$f":"IF($B808=\"N\",\"\",IF(LEN('Enrollment Form'!$BS815=0),\"\",IF(LEN('Enrollment Form'!$BS815)<>5,\"N\",\"Y\")))","v":""},{"$f":"IF($B808=\"N\",\"\",IF(LEN('Enrollment Form'!$AE815)=0,\"\",IF(LEN('Enrollment Form'!$AE815)<>10,\"N\",\"Y\")))","v":""},{"$f":"IF($B808=\"N\",\"\",IF(LEN('Enrollment Form'!$AF815)=0,\"\",IF(LEN('Enrollment Form'!$AF815)<>10,\"N\",\"Y\")))","v":""},{"$f":"IF('Enrollment Form'!$O815<>\"Graded\",\"-\",IF(AND('Enrollment Form'!$O815=\"Graded\",'Enrollment Form'!$AR815<>\"\"),\"Y\",\"N\"))","v":"-"},{"$f":"IF($B808=\"N\",\"\",IF(OR('Enrollment Form'!$B815<>\"Subscriber\",'Enrollment Form'!$C815=\"ROC\"),\"-\",IF(AND('Enrollment Form'!$B815=\"Subscriber\",'Enrollment Form'!$C815=\"Enroll\",'Enrollment Form'!$AJ815<>\"\"),\"Y\",\"N\")))","v":""},{"$f":"IF($B808=\"N\",\"\",IF(OR('Enrollment Form'!$B815<>\"Subscriber\",'Enrollment Form'!$C815=\"ROC\"),\"-\",IF(AND('Enrollment Form'!$B815=\"Subscriber\",'Enrollment Form'!$C815=\"Enroll\",'Enrollment Form'!$AK815<>\"\"),\"Y\",\"N\")))","v":""},{"$f":"IF($B808=\"N\",\"\",IF(OR('Enrollment Form'!$B815<>\"Subscriber\",'Enrollment Form'!$C815=\"ROC\"),\"-\",IF(AND('Enrollment Form'!$B815=\"Subscriber\",'Enrollment Form'!$C815=\"Enroll\",'Enrollment Form'!$AL815<>\"\"),\"Y\",\"N\")))","v":""},{"$f":"IF($B808=\"N\",\"\",IF(OR('Enrollment Form'!$B815<>\"Subscriber\",'Enrollment Form'!$C815=\"ROC\"),\"-\",IF(AND('Enrollment Form'!$B815=\"Subscriber\",'Enrollment Form'!$C815=\"Enroll\",'Enrollment Form'!$AP815<>\"\"),\"Y\",\"N\")))","v":""},{"$f":"IF($B808=\"N\",\"\",IF(OR('Enrollment Form'!$B815<>\"Subscriber\",'Enrollment Form'!$C815=\"ROC\"),\"-\",IF(AND('Enrollment Form'!$B815=\"Subscriber\",'Enrollment Form'!$C815=\"Enroll\",'Enrollment Form'!$AQ815<>\"\"),\"Y\",\"N\")))","v":""},{"$f":"IF($B808=\"N\",\"\",IF(OR('Enrollment Form'!$B815<>\"Subscriber\",'Enrollment Form'!$C815=\"ROC\"),\"-\",IF(AND('Enrollment Form'!$B815=\"Subscriber\",'Enrollment Form'!$C815=\"Enroll\",'Enrollment Form'!$AS815<>\"\"),\"Y\",\"N\")))","v":""},{"$f":"IF($B808=\"N\",\"\",IF($Q808=\"-\",\"-\",IF(AND($Q808=\"Y\",'Enrollment Form'!$AS815=\"No\"),\"-\",IF(AND($Q808=\"Y\",'Enrollment Form'!$AS815=\"Yes\",'Enrollment Form'!$AT815<>\"\"),\"Y\",\"N\"))))","v":""},{"$f":"IF($B808=\"N\",\"\",IF(OR('Enrollment Form'!$B815<>\"Subscriber\",'Enrollment Form'!$C815=\"ROC\"),\"-\",IF(AND('Enrollment Form'!$B815=\"Subscriber\",'Enrollment Form'!$C815=\"Enroll\",'Enrollment Form'!$CV815<>\"\"),\"Y\",\"N\")))","v":""},{"$f":"IF($B808=\"N\",\"\",IF($S808=\"-\",\"-\",IF(AND($S808=\"Y\",'Enrollment Form'!$CV815=\"No\"),\"-\",IF(AND($S808=\"Y\",'Enrollment Form'!$CV815=\"Yes\",'Enrollment Form'!$CW815<>\"\"),\"Y\",\"N\"))))","v":""},{"$f":"IF(OR('Enrollment Form'!$AY815=\"Yes\",'Enrollment Form'!$AY815=\"\"),\"-\",IF(OR(AND('Enrollment Form'!$AY815=\"No\",ISERROR(FIND(\"HMO\",VLOOKUP('Enrollment Form'!G815,'Enrollment Form'!H$11:J$1000,3,FALSE),1))=FALSE,COUNTA('Enrollment Form'!$AZ815:$BC815)=4),AND('Enrollment Form'!$AY815=\"No\",ISERROR(FIND(\"HMO\",VLOOKUP('Enrollment Form'!G815,'Enrollment Form'!H$11:J$1000,3,FALSE),1))=FALSE,COUNTA('Enrollment Form'!$BT815:$BW815)=4)),\"Y\",\"N\"))","v":"-"},{"$f":"IF($B808=\"N\",\"\",IF('Enrollment Form'!$B815=\"Subscriber\",\"-\",IF(COUNTA('Enrollment Form'!$BL815,'Enrollment Form'!$BN815)=2,\"Y\",\"N\")))","v":""},{"$f":"IF($B808=\"N\",\"\",IF(OR('Enrollment Form'!$AX815=\"\",'Enrollment Form'!$AX815=\"No\"),\"-\",IF(AND('Enrollment Form'!$AX815=\"Yes\",COUNTA('Enrollment Form'!$CR815)=1),\"Y\",\"N\")))","v":""},{"$f":"IF(OR('Enrollment Form'!$CR815=\"\",'Enrollment Form'!$CR815=\"No\"),\"-\",IF(COUNTA('Enrollment Form'!$CT815:$CU815)=2,\"Y\",\"N\"))","v":"-"},{"$f":"IF($B808=\"N\",\"\",IF(COUNTIF('Enrollment Form'!$DG815:$DP815,\"Other\")=COUNTA('Enrollment Form'!$DK815,'Enrollment Form'!$DH815,'Enrollment Form'!$DN815,'Enrollment Form'!$DQ815),\"Y\",\"N\"))","v":""},{"$f":"IF($B808=\"N\",\"\",IF(OR('Enrollment Form'!B815<>\"Subscriber\",'Enrollment Form'!C815=\"ROC\",COUNTIF('Enrollment Form'!AV815:AW815,\"Yes\")>=1),\"-\",IF(AND('Enrollment Form'!C815=\"Enroll\",COUNTIF('Enrollment Form'!AV815:AW815,\"No\")=2,'Enrollment Form'!AX815=\"\"),\"N\",\"Y\")))","v":""},{"$f":"IF(OR(B808=\"N\",'Enrollment Form'!B815<>\"Subscriber\",'Enrollment Form'!C815=\"ROC\",'Enrollment Form'!O815<>\"Multiple of Salary\"),\"-\",IF(COUNTA('Enrollment Form'!T815:U815)<2,\"N\",\"Y\"))","v":"-"},{"$f":"IF(B808=\"N\",\"\",IF(OR('Enrollment Form'!C815=\"ROC\",'Enrollment Form'!B815<>\"Subscriber\",'Enrollment Form'!O815=\"Waive\",'Enrollment Form'!O815=\"\"),\"-\",IF('Enrollment Form'!P815=\"\",\"N\",\"Y\")))","v":""},{"$f":"IF($B808=\"N\",\"\",IF(AND('Enrollment Form'!$C815=\"ROC\",'Enrollment Form'!$DR815<>\"\"),\"Y\",IF(AND('Enrollment Form'!$C815=\"ROC\",'Enrollment Form'!$DR815=\"\"),\"N\",IF(AND('Enrollment Form'!$C815=\"Enroll\",'Enrollment Form'!$B815=\"Subscriber\",'Enrollment Form'!$CX815=\"No\",'Enrollment Form'!$DR815=\"\"),\"N\",IF(AND('Enrollment Form'!$C815=\"Enroll\",'Enrollment Form'!$B815=\"Subscriber\",'Enrollment Form'!$CX815=\"Yes\"),\"-\",\"Y\")))))","v":""},{"$f":"IF($B808=\"N\",\"\",IF(AND('Enrollment Form'!$C815=\"ROC\",'Enrollment Form'!$DS815<>\"\"),\"Y\",IF(AND('Enrollment Form'!$C815=\"ROC\",'Enrollment Form'!$DS815=\"\"),\"N\",IF(AND('Enrollment Form'!$C815=\"Enroll\",'Enrollment Form'!$B815=\"Subscriber\",'Enrollment Form'!$CX815=\"No\",'Enrollment Form'!$DS815=\"\"),\"N\",IF(AND('Enrollment Form'!$C815=\"Enroll\",'Enrollment Form'!$B815=\"Subscriber\",'Enrollment Form'!$CX815=\"Yes\"),\"-\",\"Y\")))))","v":""},{"$f":"IF('Enrollment Form'!AH815=\"\",\"\",IF(ISERROR(SEARCH(\".\",'Enrollment Form'!AH815,SEARCH(\"@\",'Enrollment Form'!AH815))),\"N\",\"Y\"))","v":""},{"$f":"IF(OR($B808=\"N\",'Enrollment Form'!$G815=\"\"),\"\",IF('Enrollment Form'!$B815<>\"Subscriber\",\"-\",IF(COUNTIF('Enrollment Form'!$AV815:$AW815,\"Yes\")=2,\"N\",\"Y\")))","v":""},{"$f":"IF(OR('Enrollment Form'!$CJ815=\"\",'Enrollment Form'!$CJ815=\"No\"),\"-\",IF(AND('Enrollment Form'!$CJ815=\"Yes\",'Enrollment Form'!$CK815=\"\"),\"N\",\"Y\"))","v":"-"},{"$f":"IF(OR('Enrollment Form'!$CL815=\"\",'Enrollment Form'!$CL815=\"No\"),\"-\",IF(AND('Enrollment Form'!$CL815=\"Yes\",'Enrollment Form'!$CM815=\"\"),\"N\",\"Y\"))","v":"-"},{"$f":"IF(OR('Enrollment Form'!$CN815=\"\",'Enrollment Form'!$CN815=\"No\"),\"-\",IF(AND('Enrollment Form'!$CN815=\"Yes\",'Enrollment Form'!$CO815=\"\"),\"N\",\"Y\"))","v":"-"},{"$f":"IF(OR('Enrollment Form'!$CN815=\"\",'Enrollment Form'!$CN815=\"No\"),\"-\",IF(AND('Enrollment Form'!$CN815=\"Yes\",'Enrollment Form'!$CP815=\"\"),\"N\",\"Y\"))","v":"-"},{"$f":"IF('Enrollment Form'!B815<>\"Subscriber\",\"-\",IF(AND('Enrollment Form'!B815=\"Subscriber\",'Enrollment Form'!C815=\"Enroll\",'Enrollment Form'!AA815=\"\"),\"N\",\"Y\"))","v":"-"},{"$f":"IF(OR('Enrollment Form'!B815=\"Subscriber\",'Enrollment Form'!B815=\"\"),\"-\",IF('Enrollment Form'!BP815=\"\",\"N\",\"Y\"))","v":"-"},{"$f":"IF('Enrollment Form'!B815<>\"Subscriber\",\"-\",IF(AND('Enrollment Form'!B815=\"Subscriber\",'Enrollment Form'!G815=\"\"),\"N\",\"Y\"))","v":"-"},{"$f":"IF('Enrollment Form'!A815=\"\",\"\",IF('Enrollment Form'!B815=\"Subscriber\",\"-\",IF(AND('Enrollment Form'!B815<>\"Subscriber\",'Enrollment Form'!G815='Enrollment Form'!H815),\"N\",\"Y\")))","v":""},0]
[816,{"$f":"IF('Enrollment Form'!$A816<>\"\",\"Y\",\"N\")","v":"N"},{"$f":"IF(AND('Enrollment Form'!$B816=\"\",'Enrollment Form'!$C816<>\"\"),\"N\",IF($B809=\"N\",\"\",\"Y\"))","v":""},{"$f":"IF(OR($B809=\"N\",'Enrollment Form'!G816=\"\"),\"\",IF('Enrollment Form'!$B816<>\"Subscriber\",\"\",IF('Enrollment Form'!$G816='Enrollment Form'!$H816,\"Y\",\"N\")))","v":""},{"$f":"IF($B809=\"N\",\"\",IF(AND(COUNTIFS('Enrollment Form'!$H$11:$H$1000,'Enrollment Form'!$H816,'Enrollment Form'!$B$11:$B$1000,'Enrollment Form'!$B816)>1,'Enrollment Form'!$H816<>\"\"),\"N\",\"Y\"))","v":""},{"$f":"IF($B809=\"N\",\"\",IF(LEN('Enrollment Form'!$Y816)=0,\"\",IF(LEN('Enrollment Form'!$Y816)<>5,\"N\",\"Y\")))","v":""},{"$f":"IF($B809=\"N\",\"\",IF(LEN('Enrollment Form'!$AD816=0),\"\",IF(LEN('Enrollment Form'!$AD816)<>5,\"N\",\"Y\")))","v":""},{"$f":"IF($B809=\"N\",\"\",IF(LEN('Enrollment Form'!$BS816=0),\"\",IF(LEN('Enrollment Form'!$BS816)<>5,\"N\",\"Y\")))","v":""},{"$f":"IF($B809=\"N\",\"\",IF(LEN('Enrollment Form'!$AE816)=0,\"\",IF(LEN('Enrollment Form'!$AE816)<>10,\"N\",\"Y\")))","v":""},{"$f":"IF($B809=\"N\",\"\",IF(LEN('Enrollment Form'!$AF816)=0,\"\",IF(LEN('Enrollment Form'!$AF816)<>10,\"N\",\"Y\")))","v":""},{"$f":"IF('Enrollment Form'!$O816<>\"Graded\",\"-\",IF(AND('Enrollment Form'!$O816=\"Graded\",'Enrollment Form'!$AR816<>\"\"),\"Y\",\"N\"))","v":"-"},{"$f":"IF($B809=\"N\",\"\",IF(OR('Enrollment Form'!$B816<>\"Subscriber\",'Enrollment Form'!$C816=\"ROC\"),\"-\",IF(AND('Enrollment Form'!$B816=\"Subscriber\",'Enrollment Form'!$C816=\"Enroll\",'Enrollment Form'!$AJ816<>\"\"),\"Y\",\"N\")))","v":""},{"$f":"IF($B809=\"N\",\"\",IF(OR('Enrollment Form'!$B816<>\"Subscriber\",'Enrollment Form'!$C816=\"ROC\"),\"-\",IF(AND('Enrollment Form'!$B816=\"Subscriber\",'Enrollment Form'!$C816=\"Enroll\",'Enrollment Form'!$AK816<>\"\"),\"Y\",\"N\")))","v":""},{"$f":"IF($B809=\"N\",\"\",IF(OR('Enrollment Form'!$B816<>\"Subscriber\",'Enrollment Form'!$C816=\"ROC\"),\"-\",IF(AND('Enrollment Form'!$B816=\"Subscriber\",'Enrollment Form'!$C816=\"Enroll\",'Enrollment Form'!$AL816<>\"\"),\"Y\",\"N\")))","v":""},{"$f":"IF($B809=\"N\",\"\",IF(OR('Enrollment Form'!$B816<>\"Subscriber\",'Enrollment Form'!$C816=\"ROC\"),\"-\",IF(AND('Enrollment Form'!$B816=\"Subscriber\",'Enrollment Form'!$C816=\"Enroll\",'Enrollment Form'!$AP816<>\"\"),\"Y\",\"N\")))","v":""},{"$f":"IF($B809=\"N\",\"\",IF(OR('Enrollment Form'!$B816<>\"Subscriber\",'Enrollment Form'!$C816=\"ROC\"),\"-\",IF(AND('Enrollment Form'!$B816=\"Subscriber\",'Enrollment Form'!$C816=\"Enroll\",'Enrollment Form'!$AQ816<>\"\"),\"Y\",\"N\")))","v":""},{"$f":"IF($B809=\"N\",\"\",IF(OR('Enrollment Form'!$B816<>\"Subscriber\",'Enrollment Form'!$C816=\"ROC\"),\"-\",IF(AND('Enrollment Form'!$B816=\"Subscriber\",'Enrollment Form'!$C816=\"Enroll\",'Enrollment Form'!$AS816<>\"\"),\"Y\",\"N\")))","v":""},{"$f":"IF($B809=\"N\",\"\",IF($Q809=\"-\",\"-\",IF(AND($Q809=\"Y\",'Enrollment Form'!$AS816=\"No\"),\"-\",IF(AND($Q809=\"Y\",'Enrollment Form'!$AS816=\"Yes\",'Enrollment Form'!$AT816<>\"\"),\"Y\",\"N\"))))","v":""},{"$f":"IF($B809=\"N\",\"\",IF(OR('Enrollment Form'!$B816<>\"Subscriber\",'Enrollment Form'!$C816=\"ROC\"),\"-\",IF(AND('Enrollment Form'!$B816=\"Subscriber\",'Enrollment Form'!$C816=\"Enroll\",'Enrollment Form'!$CV816<>\"\"),\"Y\",\"N\")))","v":""},{"$f":"IF($B809=\"N\",\"\",IF($S809=\"-\",\"-\",IF(AND($S809=\"Y\",'Enrollment Form'!$CV816=\"No\"),\"-\",IF(AND($S809=\"Y\",'Enrollment Form'!$CV816=\"Yes\",'Enrollment Form'!$CW816<>\"\"),\"Y\",\"N\"))))","v":""},{"$f":"IF(OR('Enrollment Form'!$AY816=\"Yes\",'Enrollment Form'!$AY816=\"\"),\"-\",IF(OR(AND('Enrollment Form'!$AY816=\"No\",ISERROR(FIND(\"HMO\",VLOOKUP('Enrollment Form'!G816,'Enrollment Form'!H$11:J$1000,3,FALSE),1))=FALSE,COUNTA('Enrollment Form'!$AZ816:$BC816)=4),AND('Enrollment Form'!$AY816=\"No\",ISERROR(FIND(\"HMO\",VLOOKUP('Enrollment Form'!G816,'Enrollment Form'!H$11:J$1000,3,FALSE),1))=FALSE,COUNTA('Enrollment Form'!$BT816:$BW816)=4)),\"Y\",\"N\"))","v":"-"},{"$f":"IF($B809=\"N\",\"\",IF('Enrollment Form'!$B816=\"Subscriber\",\"-\",IF(COUNTA('Enrollment Form'!$BL816,'Enrollment Form'!$BN816)=2,\"Y\",\"N\")))","v":""},{"$f":"IF($B809=\"N\",\"\",IF(OR('Enrollment Form'!$AX816=\"\",'Enrollment Form'!$AX816=\"No\"),\"-\",IF(AND('Enrollment Form'!$AX816=\"Yes\",COUNTA('Enrollment Form'!$CR816)=1),\"Y\",\"N\")))","v":""},{"$f":"IF(OR('Enrollment Form'!$CR816=\"\",'Enrollment Form'!$CR816=\"No\"),\"-\",IF(COUNTA('Enrollment Form'!$CT816:$CU816)=2,\"Y\",\"N\"))","v":"-"},{"$f":"IF($B809=\"N\",\"\",IF(COUNTIF('Enrollment Form'!$DG816:$DP816,\"Other\")=COUNTA('Enrollment Form'!$DK816,'Enrollment Form'!$DH816,'Enrollment Form'!$DN816,'Enrollment Form'!$DQ816),\"Y\",\"N\"))","v":""},{"$f":"IF($B809=\"N\",\"\",IF(OR('Enrollment Form'!B816<>\"Subscriber\",'Enrollment Form'!C816=\"ROC\",COUNTIF('Enrollment Form'!AV816:AW816,\"Yes\")>=1),\"-\",IF(AND('Enrollment Form'!C816=\"Enroll\",COUNTIF('Enrollment Form'!AV816:AW816,\"No\")=2,'Enrollment Form'!AX816=\"\"),\"N\",\"Y\")))","v":""},{"$f":"IF(OR(B809=\"N\",'Enrollment Form'!B816<>\"Subscriber\",'Enrollment Form'!C816=\"ROC\",'Enrollment Form'!O816<>\"Multiple of Salary\"),\"-\",IF(COUNTA('Enrollment Form'!T816:U816)<2,\"N\",\"Y\"))","v":"-"},{"$f":"IF(B809=\"N\",\"\",IF(OR('Enrollment Form'!C816=\"ROC\",'Enrollment Form'!B816<>\"Subscriber\",'Enrollment Form'!O816=\"Waive\",'Enrollment Form'!O816=\"\"),\"-\",IF('Enrollment Form'!P816=\"\",\"N\",\"Y\")))","v":""},{"$f":"IF($B809=\"N\",\"\",IF(AND('Enrollment Form'!$C816=\"ROC\",'Enrollment Form'!$DR816<>\"\"),\"Y\",IF(AND('Enrollment Form'!$C816=\"ROC\",'Enrollment Form'!$DR816=\"\"),\"N\",IF(AND('Enrollment Form'!$C816=\"Enroll\",'Enrollment Form'!$B816=\"Subscriber\",'Enrollment Form'!$CX816=\"No\",'Enrollment Form'!$DR816=\"\"),\"N\",IF(AND('Enrollment Form'!$C816=\"Enroll\",'Enrollment Form'!$B816=\"Subscriber\",'Enrollment Form'!$CX816=\"Yes\"),\"-\",\"Y\")))))","v":""},{"$f":"IF($B809=\"N\",\"\",IF(AND('Enrollment Form'!$C816=\"ROC\",'Enrollment Form'!$DS816<>\"\"),\"Y\",IF(AND('Enrollment Form'!$C816=\"ROC\",'Enrollment Form'!$DS816=\"\"),\"N\",IF(AND('Enrollment Form'!$C816=\"Enroll\",'Enrollment Form'!$B816=\"Subscriber\",'Enrollment Form'!$CX816=\"No\",'Enrollment Form'!$DS816=\"\"),\"N\",IF(AND('Enrollment Form'!$C816=\"Enroll\",'Enrollment Form'!$B816=\"Subscriber\",'Enrollment Form'!$CX816=\"Yes\"),\"-\",\"Y\")))))","v":""},{"$f":"IF('Enrollment Form'!AH816=\"\",\"\",IF(ISERROR(SEARCH(\".\",'Enrollment Form'!AH816,SEARCH(\"@\",'Enrollment Form'!AH816))),\"N\",\"Y\"))","v":""},{"$f":"IF(OR($B809=\"N\",'Enrollment Form'!$G816=\"\"),\"\",IF('Enrollment Form'!$B816<>\"Subscriber\",\"-\",IF(COUNTIF('Enrollment Form'!$AV816:$AW816,\"Yes\")=2,\"N\",\"Y\")))","v":""},{"$f":"IF(OR('Enrollment Form'!$CJ816=\"\",'Enrollment Form'!$CJ816=\"No\"),\"-\",IF(AND('Enrollment Form'!$CJ816=\"Yes\",'Enrollment Form'!$CK816=\"\"),\"N\",\"Y\"))","v":"-"},{"$f":"IF(OR('Enrollment Form'!$CL816=\"\",'Enrollment Form'!$CL816=\"No\"),\"-\",IF(AND('Enrollment Form'!$CL816=\"Yes\",'Enrollment Form'!$CM816=\"\"),\"N\",\"Y\"))","v":"-"},{"$f":"IF(OR('Enrollment Form'!$CN816=\"\",'Enrollment Form'!$CN816=\"No\"),\"-\",IF(AND('Enrollment Form'!$CN816=\"Yes\",'Enrollment Form'!$CO816=\"\"),\"N\",\"Y\"))","v":"-"},{"$f":"IF(OR('Enrollment Form'!$CN816=\"\",'Enrollment Form'!$CN816=\"No\"),\"-\",IF(AND('Enrollment Form'!$CN816=\"Yes\",'Enrollment Form'!$CP816=\"\"),\"N\",\"Y\"))","v":"-"},{"$f":"IF('Enrollment Form'!B816<>\"Subscriber\",\"-\",IF(AND('Enrollment Form'!B816=\"Subscriber\",'Enrollment Form'!C816=\"Enroll\",'Enrollment Form'!AA816=\"\"),\"N\",\"Y\"))","v":"-"},{"$f":"IF(OR('Enrollment Form'!B816=\"Subscriber\",'Enrollment Form'!B816=\"\"),\"-\",IF('Enrollment Form'!BP816=\"\",\"N\",\"Y\"))","v":"-"},{"$f":"IF('Enrollment Form'!B816<>\"Subscriber\",\"-\",IF(AND('Enrollment Form'!B816=\"Subscriber\",'Enrollment Form'!G816=\"\"),\"N\",\"Y\"))","v":"-"},{"$f":"IF('Enrollment Form'!A816=\"\",\"\",IF('Enrollment Form'!B816=\"Subscriber\",\"-\",IF(AND('Enrollment Form'!B816<>\"Subscriber\",'Enrollment Form'!G816='Enrollment Form'!H816),\"N\",\"Y\")))","v":""},0]
[817,{"$f":"IF('Enrollment Form'!$A817<>\"\",\"Y\",\"N\")","v":"N"},{"$f":"IF(AND('Enrollment Form'!$B817=\"\",'Enrollment Form'!$C817<>\"\"),\"N\",IF($B810=\"N\",\"\",\"Y\"))","v":""},{"$f":"IF(OR($B810=\"N\",'Enrollment Form'!G817=\"\"),\"\",IF('Enrollment Form'!$B817<>\"Subscriber\",\"\",IF('Enrollment Form'!$G817='Enrollment Form'!$H817,\"Y\",\"N\")))","v":""},{"$f":"IF($B810=\"N\",\"\",IF(AND(COUNTIFS('Enrollment Form'!$H$11:$H$1000,'Enrollment Form'!$H817,'Enrollment Form'!$B$11:$B$1000,'Enrollment Form'!$B817)>1,'Enrollment Form'!$H817<>\"\"),\"N\",\"Y\"))","v":""},{"$f":"IF($B810=\"N\",\"\",IF(LEN('Enrollment Form'!$Y817)=0,\"\",IF(LEN('Enrollment Form'!$Y817)<>5,\"N\",\"Y\")))","v":""},{"$f":"IF($B810=\"N\",\"\",IF(LEN('Enrollment Form'!$AD817=0),\"\",IF(LEN('Enrollment Form'!$AD817)<>5,\"N\",\"Y\")))","v":""},{"$f":"IF($B810=\"N\",\"\",IF(LEN('Enrollment Form'!$BS817=0),\"\",IF(LEN('Enrollment Form'!$BS817)<>5,\"N\",\"Y\")))","v":""},{"$f":"IF($B810=\"N\",\"\",IF(LEN('Enrollment Form'!$AE817)=0,\"\",IF(LEN('Enrollment Form'!$AE817)<>10,\"N\",\"Y\")))","v":""},{"$f":"IF($B810=\"N\",\"\",IF(LEN('Enrollment Form'!$AF817)=0,\"\",IF(LEN('Enrollment Form'!$AF817)<>10,\"N\",\"Y\")))","v":""},{"$f":"IF('Enrollment Form'!$O817<>\"Graded\",\"-\",IF(AND('Enrollment Form'!$O817=\"Graded\",'Enrollment Form'!$AR817<>\"\"),\"Y\",\"N\"))","v":"-"},{"$f":"IF($B810=\"N\",\"\",IF(OR('Enrollment Form'!$B817<>\"Subscriber\",'Enrollment Form'!$C817=\"ROC\"),\"-\",IF(AND('Enrollment Form'!$B817=\"Subscriber\",'Enrollment Form'!$C817=\"Enroll\",'Enrollment Form'!$AJ817<>\"\"),\"Y\",\"N\")))","v":""},{"$f":"IF($B810=\"N\",\"\",IF(OR('Enrollment Form'!$B817<>\"Subscriber\",'Enrollment Form'!$C817=\"ROC\"),\"-\",IF(AND('Enrollment Form'!$B817=\"Subscriber\",'Enrollment Form'!$C817=\"Enroll\",'Enrollment Form'!$AK817<>\"\"),\"Y\",\"N\")))","v":""},{"$f":"IF($B810=\"N\",\"\",IF(OR('Enrollment Form'!$B817<>\"Subscriber\",'Enrollment Form'!$C817=\"ROC\"),\"-\",IF(AND('Enrollment Form'!$B817=\"Subscriber\",'Enrollment Form'!$C817=\"Enroll\",'Enrollment Form'!$AL817<>\"\"),\"Y\",\"N\")))","v":""},{"$f":"IF($B810=\"N\",\"\",IF(OR('Enrollment Form'!$B817<>\"Subscriber\",'Enrollment Form'!$C817=\"ROC\"),\"-\",IF(AND('Enrollment Form'!$B817=\"Subscriber\",'Enrollment Form'!$C817=\"Enroll\",'Enrollment Form'!$AP817<>\"\"),\"Y\",\"N\")))","v":""},{"$f":"IF($B810=\"N\",\"\",IF(OR('Enrollment Form'!$B817<>\"Subscriber\",'Enrollment Form'!$C817=\"ROC\"),\"-\",IF(AND('Enrollment Form'!$B817=\"Subscriber\",'Enrollment Form'!$C817=\"Enroll\",'Enrollment Form'!$AQ817<>\"\"),\"Y\",\"N\")))","v":""},{"$f":"IF($B810=\"N\",\"\",IF(OR('Enrollment Form'!$B817<>\"Subscriber\",'Enrollment Form'!$C817=\"ROC\"),\"-\",IF(AND('Enrollment Form'!$B817=\"Subscriber\",'Enrollment Form'!$C817=\"Enroll\",'Enrollment Form'!$AS817<>\"\"),\"Y\",\"N\")))","v":""},{"$f":"IF($B810=\"N\",\"\",IF($Q810=\"-\",\"-\",IF(AND($Q810=\"Y\",'Enrollment Form'!$AS817=\"No\"),\"-\",IF(AND($Q810=\"Y\",'Enrollment Form'!$AS817=\"Yes\",'Enrollment Form'!$AT817<>\"\"),\"Y\",\"N\"))))","v":""},{"$f":"IF($B810=\"N\",\"\",IF(OR('Enrollment Form'!$B817<>\"Subscriber\",'Enrollment Form'!$C817=\"ROC\"),\"-\",IF(AND('Enrollment Form'!$B817=\"Subscriber\",'Enrollment Form'!$C817=\"Enroll\",'Enrollment Form'!$CV817<>\"\"),\"Y\",\"N\")))","v":""},{"$f":"IF($B810=\"N\",\"\",IF($S810=\"-\",\"-\",IF(AND($S810=\"Y\",'Enrollment Form'!$CV817=\"No\"),\"-\",IF(AND($S810=\"Y\",'Enrollment Form'!$CV817=\"Yes\",'Enrollment Form'!$CW817<>\"\"),\"Y\",\"N\"))))","v":""},{"$f":"IF(OR('Enrollment Form'!$AY817=\"Yes\",'Enrollment Form'!$AY817=\"\"),\"-\",IF(OR(AND('Enrollment Form'!$AY817=\"No\",ISERROR(FIND(\"HMO\",VLOOKUP('Enrollment Form'!G817,'Enrollment Form'!H$11:J$1000,3,FALSE),1))=FALSE,COUNTA('Enrollment Form'!$AZ817:$BC817)=4),AND('Enrollment Form'!$AY817=\"No\",ISERROR(FIND(\"HMO\",VLOOKUP('Enrollment Form'!G817,'Enrollment Form'!H$11:J$1000,3,FALSE),1))=FALSE,COUNTA('Enrollment Form'!$BT817:$BW817)=4)),\"Y\",\"N\"))","v":"-"},{"$f":"IF($B810=\"N\",\"\",IF('Enrollment Form'!$B817=\"Subscriber\",\"-\",IF(COUNTA('Enrollment Form'!$BL817,'Enrollment Form'!$BN817)=2,\"Y\",\"N\")))","v":""},{"$f":"IF($B810=\"N\",\"\",IF(OR('Enrollment Form'!$AX817=\"\",'Enrollment Form'!$AX817=\"No\"),\"-\",IF(AND('Enrollment Form'!$AX817=\"Yes\",COUNTA('Enrollment Form'!$CR817)=1),\"Y\",\"N\")))","v":""},{"$f":"IF(OR('Enrollment Form'!$CR817=\"\",'Enrollment Form'!$CR817=\"No\"),\"-\",IF(COUNTA('Enrollment Form'!$CT817:$CU817)=2,\"Y\",\"N\"))","v":"-"},{"$f":"IF($B810=\"N\",\"\",IF(COUNTIF('Enrollment Form'!$DG817:$DP817,\"Other\")=COUNTA('Enrollment Form'!$DK817,'Enrollment Form'!$DH817,'Enrollment Form'!$DN817,'Enrollment Form'!$DQ817),\"Y\",\"N\"))","v":""},{"$f":"IF($B810=\"N\",\"\",IF(OR('Enrollment Form'!B817<>\"Subscriber\",'Enrollment Form'!C817=\"ROC\",COUNTIF('Enrollment Form'!AV817:AW817,\"Yes\")>=1),\"-\",IF(AND('Enrollment Form'!C817=\"Enroll\",COUNTIF('Enrollment Form'!AV817:AW817,\"No\")=2,'Enrollment Form'!AX817=\"\"),\"N\",\"Y\")))","v":""},{"$f":"IF(OR(B810=\"N\",'Enrollment Form'!B817<>\"Subscriber\",'Enrollment Form'!C817=\"ROC\",'Enrollment Form'!O817<>\"Multiple of Salary\"),\"-\",IF(COUNTA('Enrollment Form'!T817:U817)<2,\"N\",\"Y\"))","v":"-"},{"$f":"IF(B810=\"N\",\"\",IF(OR('Enrollment Form'!C817=\"ROC\",'Enrollment Form'!B817<>\"Subscriber\",'Enrollment Form'!O817=\"Waive\",'Enrollment Form'!O817=\"\"),\"-\",IF('Enrollment Form'!P817=\"\",\"N\",\"Y\")))","v":""},{"$f":"IF($B810=\"N\",\"\",IF(AND('Enrollment Form'!$C817=\"ROC\",'Enrollment Form'!$DR817<>\"\"),\"Y\",IF(AND('Enrollment Form'!$C817=\"ROC\",'Enrollment Form'!$DR817=\"\"),\"N\",IF(AND('Enrollment Form'!$C817=\"Enroll\",'Enrollment Form'!$B817=\"Subscriber\",'Enrollment Form'!$CX817=\"No\",'Enrollment Form'!$DR817=\"\"),\"N\",IF(AND('Enrollment Form'!$C817=\"Enroll\",'Enrollment Form'!$B817=\"Subscriber\",'Enrollment Form'!$CX817=\"Yes\"),\"-\",\"Y\")))))","v":""},{"$f":"IF($B810=\"N\",\"\",IF(AND('Enrollment Form'!$C817=\"ROC\",'Enrollment Form'!$DS817<>\"\"),\"Y\",IF(AND('Enrollment Form'!$C817=\"ROC\",'Enrollment Form'!$DS817=\"\"),\"N\",IF(AND('Enrollment Form'!$C817=\"Enroll\",'Enrollment Form'!$B817=\"Subscriber\",'Enrollment Form'!$CX817=\"No\",'Enrollment Form'!$DS817=\"\"),\"N\",IF(AND('Enrollment Form'!$C817=\"Enroll\",'Enrollment Form'!$B817=\"Subscriber\",'Enrollment Form'!$CX817=\"Yes\"),\"-\",\"Y\")))))","v":""},{"$f":"IF('Enrollment Form'!AH817=\"\",\"\",IF(ISERROR(SEARCH(\".\",'Enrollment Form'!AH817,SEARCH(\"@\",'Enrollment Form'!AH817))),\"N\",\"Y\"))","v":""},{"$f":"IF(OR($B810=\"N\",'Enrollment Form'!$G817=\"\"),\"\",IF('Enrollment Form'!$B817<>\"Subscriber\",\"-\",IF(COUNTIF('Enrollment Form'!$AV817:$AW817,\"Yes\")=2,\"N\",\"Y\")))","v":""},{"$f":"IF(OR('Enrollment Form'!$CJ817=\"\",'Enrollment Form'!$CJ817=\"No\"),\"-\",IF(AND('Enrollment Form'!$CJ817=\"Yes\",'Enrollment Form'!$CK817=\"\"),\"N\",\"Y\"))","v":"-"},{"$f":"IF(OR('Enrollment Form'!$CL817=\"\",'Enrollment Form'!$CL817=\"No\"),\"-\",IF(AND('Enrollment Form'!$CL817=\"Yes\",'Enrollment Form'!$CM817=\"\"),\"N\",\"Y\"))","v":"-"},{"$f":"IF(OR('Enrollment Form'!$CN817=\"\",'Enrollment Form'!$CN817=\"No\"),\"-\",IF(AND('Enrollment Form'!$CN817=\"Yes\",'Enrollment Form'!$CO817=\"\"),\"N\",\"Y\"))","v":"-"},{"$f":"IF(OR('Enrollment Form'!$CN817=\"\",'Enrollment Form'!$CN817=\"No\"),\"-\",IF(AND('Enrollment Form'!$CN817=\"Yes\",'Enrollment Form'!$CP817=\"\"),\"N\",\"Y\"))","v":"-"},{"$f":"IF('Enrollment Form'!B817<>\"Subscriber\",\"-\",IF(AND('Enrollment Form'!B817=\"Subscriber\",'Enrollment Form'!C817=\"Enroll\",'Enrollment Form'!AA817=\"\"),\"N\",\"Y\"))","v":"-"},{"$f":"IF(OR('Enrollment Form'!B817=\"Subscriber\",'Enrollment Form'!B817=\"\"),\"-\",IF('Enrollment Form'!BP817=\"\",\"N\",\"Y\"))","v":"-"},{"$f":"IF('Enrollment Form'!B817<>\"Subscriber\",\"-\",IF(AND('Enrollment Form'!B817=\"Subscriber\",'Enrollment Form'!G817=\"\"),\"N\",\"Y\"))","v":"-"},{"$f":"IF('Enrollment Form'!A817=\"\",\"\",IF('Enrollment Form'!B817=\"Subscriber\",\"-\",IF(AND('Enrollment Form'!B817<>\"Subscriber\",'Enrollment Form'!G817='Enrollment Form'!H817),\"N\",\"Y\")))","v":""},0]
[818,{"$f":"IF('Enrollment Form'!$A818<>\"\",\"Y\",\"N\")","v":"N"},{"$f":"IF(AND('Enrollment Form'!$B818=\"\",'Enrollment Form'!$C818<>\"\"),\"N\",IF($B811=\"N\",\"\",\"Y\"))","v":""},{"$f":"IF(OR($B811=\"N\",'Enrollment Form'!G818=\"\"),\"\",IF('Enrollment Form'!$B818<>\"Subscriber\",\"\",IF('Enrollment Form'!$G818='Enrollment Form'!$H818,\"Y\",\"N\")))","v":""},{"$f":"IF($B811=\"N\",\"\",IF(AND(COUNTIFS('Enrollment Form'!$H$11:$H$1000,'Enrollment Form'!$H818,'Enrollment Form'!$B$11:$B$1000,'Enrollment Form'!$B818)>1,'Enrollment Form'!$H818<>\"\"),\"N\",\"Y\"))","v":""},{"$f":"IF($B811=\"N\",\"\",IF(LEN('Enrollment Form'!$Y818)=0,\"\",IF(LEN('Enrollment Form'!$Y818)<>5,\"N\",\"Y\")))","v":""},{"$f":"IF($B811=\"N\",\"\",IF(LEN('Enrollment Form'!$AD818=0),\"\",IF(LEN('Enrollment Form'!$AD818)<>5,\"N\",\"Y\")))","v":""},{"$f":"IF($B811=\"N\",\"\",IF(LEN('Enrollment Form'!$BS818=0),\"\",IF(LEN('Enrollment Form'!$BS818)<>5,\"N\",\"Y\")))","v":""},{"$f":"IF($B811=\"N\",\"\",IF(LEN('Enrollment Form'!$AE818)=0,\"\",IF(LEN('Enrollment Form'!$AE818)<>10,\"N\",\"Y\")))","v":""},{"$f":"IF($B811=\"N\",\"\",IF(LEN('Enrollment Form'!$AF818)=0,\"\",IF(LEN('Enrollment Form'!$AF818)<>10,\"N\",\"Y\")))","v":""},{"$f":"IF('Enrollment Form'!$O818<>\"Graded\",\"-\",IF(AND('Enrollment Form'!$O818=\"Graded\",'Enrollment Form'!$AR818<>\"\"),\"Y\",\"N\"))","v":"-"},{"$f":"IF($B811=\"N\",\"\",IF(OR('Enrollment Form'!$B818<>\"Subscriber\",'Enrollment Form'!$C818=\"ROC\"),\"-\",IF(AND('Enrollment Form'!$B818=\"Subscriber\",'Enrollment Form'!$C818=\"Enroll\",'Enrollment Form'!$AJ818<>\"\"),\"Y\",\"N\")))","v":""},{"$f":"IF($B811=\"N\",\"\",IF(OR('Enrollment Form'!$B818<>\"Subscriber\",'Enrollment Form'!$C818=\"ROC\"),\"-\",IF(AND('Enrollment Form'!$B818=\"Subscriber\",'Enrollment Form'!$C818=\"Enroll\",'Enrollment Form'!$AK818<>\"\"),\"Y\",\"N\")))","v":""},{"$f":"IF($B811=\"N\",\"\",IF(OR('Enrollment Form'!$B818<>\"Subscriber\",'Enrollment Form'!$C818=\"ROC\"),\"-\",IF(AND('Enrollment Form'!$B818=\"Subscriber\",'Enrollment Form'!$C818=\"Enroll\",'Enrollment Form'!$AL818<>\"\"),\"Y\",\"N\")))","v":""},{"$f":"IF($B811=\"N\",\"\",IF(OR('Enrollment Form'!$B818<>\"Subscriber\",'Enrollment Form'!$C818=\"ROC\"),\"-\",IF(AND('Enrollment Form'!$B818=\"Subscriber\",'Enrollment Form'!$C818=\"Enroll\",'Enrollment Form'!$AP818<>\"\"),\"Y\",\"N\")))","v":""},{"$f":"IF($B811=\"N\",\"\",IF(OR('Enrollment Form'!$B818<>\"Subscriber\",'Enrollment Form'!$C818=\"ROC\"),\"-\",IF(AND('Enrollment Form'!$B818=\"Subscriber\",'Enrollment Form'!$C818=\"Enroll\",'Enrollment Form'!$AQ818<>\"\"),\"Y\",\"N\")))","v":""},{"$f":"IF($B811=\"N\",\"\",IF(OR('Enrollment Form'!$B818<>\"Subscriber\",'Enrollment Form'!$C818=\"ROC\"),\"-\",IF(AND('Enrollment Form'!$B818=\"Subscriber\",'Enrollment Form'!$C818=\"Enroll\",'Enrollment Form'!$AS818<>\"\"),\"Y\",\"N\")))","v":""},{"$f":"IF($B811=\"N\",\"\",IF($Q811=\"-\",\"-\",IF(AND($Q811=\"Y\",'Enrollment Form'!$AS818=\"No\"),\"-\",IF(AND($Q811=\"Y\",'Enrollment Form'!$AS818=\"Yes\",'Enrollment Form'!$AT818<>\"\"),\"Y\",\"N\"))))","v":""},{"$f":"IF($B811=\"N\",\"\",IF(OR('Enrollment Form'!$B818<>\"Subscriber\",'Enrollment Form'!$C818=\"ROC\"),\"-\",IF(AND('Enrollment Form'!$B818=\"Subscriber\",'Enrollment Form'!$C818=\"Enroll\",'Enrollment Form'!$CV818<>\"\"),\"Y\",\"N\")))","v":""},{"$f":"IF($B811=\"N\",\"\",IF($S811=\"-\",\"-\",IF(AND($S811=\"Y\",'Enrollment Form'!$CV818=\"No\"),\"-\",IF(AND($S811=\"Y\",'Enrollment Form'!$CV818=\"Yes\",'Enrollment Form'!$CW818<>\"\"),\"Y\",\"N\"))))","v":""},{"$f":"IF(OR('Enrollment Form'!$AY818=\"Yes\",'Enrollment Form'!$AY818=\"\"),\"-\",IF(OR(AND('Enrollment Form'!$AY818=\"No\",ISERROR(FIND(\"HMO\",VLOOKUP('Enrollment Form'!G818,'Enrollment Form'!H$11:J$1000,3,FALSE),1))=FALSE,COUNTA('Enrollment Form'!$AZ818:$BC818)=4),AND('Enrollment Form'!$AY818=\"No\",ISERROR(FIND(\"HMO\",VLOOKUP('Enrollment Form'!G818,'Enrollment Form'!H$11:J$1000,3,FALSE),1))=FALSE,COUNTA('Enrollment Form'!$BT818:$BW818)=4)),\"Y\",\"N\"))","v":"-"},{"$f":"IF($B811=\"N\",\"\",IF('Enrollment Form'!$B818=\"Subscriber\",\"-\",IF(COUNTA('Enrollment Form'!$BL818,'Enrollment Form'!$BN818)=2,\"Y\",\"N\")))","v":""},{"$f":"IF($B811=\"N\",\"\",IF(OR('Enrollment Form'!$AX818=\"\",'Enrollment Form'!$AX818=\"No\"),\"-\",IF(AND('Enrollment Form'!$AX818=\"Yes\",COUNTA('Enrollment Form'!$CR818)=1),\"Y\",\"N\")))","v":""},{"$f":"IF(OR('Enrollment Form'!$CR818=\"\",'Enrollment Form'!$CR818=\"No\"),\"-\",IF(COUNTA('Enrollment Form'!$CT818:$CU818)=2,\"Y\",\"N\"))","v":"-"},{"$f":"IF($B811=\"N\",\"\",IF(COUNTIF('Enrollment Form'!$DG818:$DP818,\"Other\")=COUNTA('Enrollment Form'!$DK818,'Enrollment Form'!$DH818,'Enrollment Form'!$DN818,'Enrollment Form'!$DQ818),\"Y\",\"N\"))","v":""},{"$f":"IF($B811=\"N\",\"\",IF(OR('Enrollment Form'!B818<>\"Subscriber\",'Enrollment Form'!C818=\"ROC\",COUNTIF('Enrollment Form'!AV818:AW818,\"Yes\")>=1),\"-\",IF(AND('Enrollment Form'!C818=\"Enroll\",COUNTIF('Enrollment Form'!AV818:AW818,\"No\")=2,'Enrollment Form'!AX818=\"\"),\"N\",\"Y\")))","v":""},{"$f":"IF(OR(B811=\"N\",'Enrollment Form'!B818<>\"Subscriber\",'Enrollment Form'!C818=\"ROC\",'Enrollment Form'!O818<>\"Multiple of Salary\"),\"-\",IF(COUNTA('Enrollment Form'!T818:U818)<2,\"N\",\"Y\"))","v":"-"},{"$f":"IF(B811=\"N\",\"\",IF(OR('Enrollment Form'!C818=\"ROC\",'Enrollment Form'!B818<>\"Subscriber\",'Enrollment Form'!O818=\"Waive\",'Enrollment Form'!O818=\"\"),\"-\",IF('Enrollment Form'!P818=\"\",\"N\",\"Y\")))","v":""},{"$f":"IF($B811=\"N\",\"\",IF(AND('Enrollment Form'!$C818=\"ROC\",'Enrollment Form'!$DR818<>\"\"),\"Y\",IF(AND('Enrollment Form'!$C818=\"ROC\",'Enrollment Form'!$DR818=\"\"),\"N\",IF(AND('Enrollment Form'!$C818=\"Enroll\",'Enrollment Form'!$B818=\"Subscriber\",'Enrollment Form'!$CX818=\"No\",'Enrollment Form'!$DR818=\"\"),\"N\",IF(AND('Enrollment Form'!$C818=\"Enroll\",'Enrollment Form'!$B818=\"Subscriber\",'Enrollment Form'!$CX818=\"Yes\"),\"-\",\"Y\")))))","v":""},{"$f":"IF($B811=\"N\",\"\",IF(AND('Enrollment Form'!$C818=\"ROC\",'Enrollment Form'!$DS818<>\"\"),\"Y\",IF(AND('Enrollment Form'!$C818=\"ROC\",'Enrollment Form'!$DS818=\"\"),\"N\",IF(AND('Enrollment Form'!$C818=\"Enroll\",'Enrollment Form'!$B818=\"Subscriber\",'Enrollment Form'!$CX818=\"No\",'Enrollment Form'!$DS818=\"\"),\"N\",IF(AND('Enrollment Form'!$C818=\"Enroll\",'Enrollment Form'!$B818=\"Subscriber\",'Enrollment Form'!$CX818=\"Yes\"),\"-\",\"Y\")))))","v":""},{"$f":"IF('Enrollment Form'!AH818=\"\",\"\",IF(ISERROR(SEARCH(\".\",'Enrollment Form'!AH818,SEARCH(\"@\",'Enrollment Form'!AH818))),\"N\",\"Y\"))","v":""},{"$f":"IF(OR($B811=\"N\",'Enrollment Form'!$G818=\"\"),\"\",IF('Enrollment Form'!$B818<>\"Subscriber\",\"-\",IF(COUNTIF('Enrollment Form'!$AV818:$AW818,\"Yes\")=2,\"N\",\"Y\")))","v":""},{"$f":"IF(OR('Enrollment Form'!$CJ818=\"\",'Enrollment Form'!$CJ818=\"No\"),\"-\",IF(AND('Enrollment Form'!$CJ818=\"Yes\",'Enrollment Form'!$CK818=\"\"),\"N\",\"Y\"))","v":"-"},{"$f":"IF(OR('Enrollment Form'!$CL818=\"\",'Enrollment Form'!$CL818=\"No\"),\"-\",IF(AND('Enrollment Form'!$CL818=\"Yes\",'Enrollment Form'!$CM818=\"\"),\"N\",\"Y\"))","v":"-"},{"$f":"IF(OR('Enrollment Form'!$CN818=\"\",'Enrollment Form'!$CN818=\"No\"),\"-\",IF(AND('Enrollment Form'!$CN818=\"Yes\",'Enrollment Form'!$CO818=\"\"),\"N\",\"Y\"))","v":"-"},{"$f":"IF(OR('Enrollment Form'!$CN818=\"\",'Enrollment Form'!$CN818=\"No\"),\"-\",IF(AND('Enrollment Form'!$CN818=\"Yes\",'Enrollment Form'!$CP818=\"\"),\"N\",\"Y\"))","v":"-"},{"$f":"IF('Enrollment Form'!B818<>\"Subscriber\",\"-\",IF(AND('Enrollment Form'!B818=\"Subscriber\",'Enrollment Form'!C818=\"Enroll\",'Enrollment Form'!AA818=\"\"),\"N\",\"Y\"))","v":"-"},{"$f":"IF(OR('Enrollment Form'!B818=\"Subscriber\",'Enrollment Form'!B818=\"\"),\"-\",IF('Enrollment Form'!BP818=\"\",\"N\",\"Y\"))","v":"-"},{"$f":"IF('Enrollment Form'!B818<>\"Subscriber\",\"-\",IF(AND('Enrollment Form'!B818=\"Subscriber\",'Enrollment Form'!G818=\"\"),\"N\",\"Y\"))","v":"-"},{"$f":"IF('Enrollment Form'!A818=\"\",\"\",IF('Enrollment Form'!B818=\"Subscriber\",\"-\",IF(AND('Enrollment Form'!B818<>\"Subscriber\",'Enrollment Form'!G818='Enrollment Form'!H818),\"N\",\"Y\")))","v":""},0]
[819,{"$f":"IF('Enrollment Form'!$A819<>\"\",\"Y\",\"N\")","v":"N"},{"$f":"IF(AND('Enrollment Form'!$B819=\"\",'Enrollment Form'!$C819<>\"\"),\"N\",IF($B812=\"N\",\"\",\"Y\"))","v":""},{"$f":"IF(OR($B812=\"N\",'Enrollment Form'!G819=\"\"),\"\",IF('Enrollment Form'!$B819<>\"Subscriber\",\"\",IF('Enrollment Form'!$G819='Enrollment Form'!$H819,\"Y\",\"N\")))","v":""},{"$f":"IF($B812=\"N\",\"\",IF(AND(COUNTIFS('Enrollment Form'!$H$11:$H$1000,'Enrollment Form'!$H819,'Enrollment Form'!$B$11:$B$1000,'Enrollment Form'!$B819)>1,'Enrollment Form'!$H819<>\"\"),\"N\",\"Y\"))","v":""},{"$f":"IF($B812=\"N\",\"\",IF(LEN('Enrollment Form'!$Y819)=0,\"\",IF(LEN('Enrollment Form'!$Y819)<>5,\"N\",\"Y\")))","v":""},{"$f":"IF($B812=\"N\",\"\",IF(LEN('Enrollment Form'!$AD819=0),\"\",IF(LEN('Enrollment Form'!$AD819)<>5,\"N\",\"Y\")))","v":""},{"$f":"IF($B812=\"N\",\"\",IF(LEN('Enrollment Form'!$BS819=0),\"\",IF(LEN('Enrollment Form'!$BS819)<>5,\"N\",\"Y\")))","v":""},{"$f":"IF($B812=\"N\",\"\",IF(LEN('Enrollment Form'!$AE819)=0,\"\",IF(LEN('Enrollment Form'!$AE819)<>10,\"N\",\"Y\")))","v":""},{"$f":"IF($B812=\"N\",\"\",IF(LEN('Enrollment Form'!$AF819)=0,\"\",IF(LEN('Enrollment Form'!$AF819)<>10,\"N\",\"Y\")))","v":""},{"$f":"IF('Enrollment Form'!$O819<>\"Graded\",\"-\",IF(AND('Enrollment Form'!$O819=\"Graded\",'Enrollment Form'!$AR819<>\"\"),\"Y\",\"N\"))","v":"-"},{"$f":"IF($B812=\"N\",\"\",IF(OR('Enrollment Form'!$B819<>\"Subscriber\",'Enrollment Form'!$C819=\"ROC\"),\"-\",IF(AND('Enrollment Form'!$B819=\"Subscriber\",'Enrollment Form'!$C819=\"Enroll\",'Enrollment Form'!$AJ819<>\"\"),\"Y\",\"N\")))","v":""},{"$f":"IF($B812=\"N\",\"\",IF(OR('Enrollment Form'!$B819<>\"Subscriber\",'Enrollment Form'!$C819=\"ROC\"),\"-\",IF(AND('Enrollment Form'!$B819=\"Subscriber\",'Enrollment Form'!$C819=\"Enroll\",'Enrollment Form'!$AK819<>\"\"),\"Y\",\"N\")))","v":""},{"$f":"IF($B812=\"N\",\"\",IF(OR('Enrollment Form'!$B819<>\"Subscriber\",'Enrollment Form'!$C819=\"ROC\"),\"-\",IF(AND('Enrollment Form'!$B819=\"Subscriber\",'Enrollment Form'!$C819=\"Enroll\",'Enrollment Form'!$AL819<>\"\"),\"Y\",\"N\")))","v":""},{"$f":"IF($B812=\"N\",\"\",IF(OR('Enrollment Form'!$B819<>\"Subscriber\",'Enrollment Form'!$C819=\"ROC\"),\"-\",IF(AND('Enrollment Form'!$B819=\"Subscriber\",'Enrollment Form'!$C819=\"Enroll\",'Enrollment Form'!$AP819<>\"\"),\"Y\",\"N\")))","v":""},{"$f":"IF($B812=\"N\",\"\",IF(OR('Enrollment Form'!$B819<>\"Subscriber\",'Enrollment Form'!$C819=\"ROC\"),\"-\",IF(AND('Enrollment Form'!$B819=\"Subscriber\",'Enrollment Form'!$C819=\"Enroll\",'Enrollment Form'!$AQ819<>\"\"),\"Y\",\"N\")))","v":""},{"$f":"IF($B812=\"N\",\"\",IF(OR('Enrollment Form'!$B819<>\"Subscriber\",'Enrollment Form'!$C819=\"ROC\"),\"-\",IF(AND('Enrollment Form'!$B819=\"Subscriber\",'Enrollment Form'!$C819=\"Enroll\",'Enrollment Form'!$AS819<>\"\"),\"Y\",\"N\")))","v":""},{"$f":"IF($B812=\"N\",\"\",IF($Q812=\"-\",\"-\",IF(AND($Q812=\"Y\",'Enrollment Form'!$AS819=\"No\"),\"-\",IF(AND($Q812=\"Y\",'Enrollment Form'!$AS819=\"Yes\",'Enrollment Form'!$AT819<>\"\"),\"Y\",\"N\"))))","v":""},{"$f":"IF($B812=\"N\",\"\",IF(OR('Enrollment Form'!$B819<>\"Subscriber\",'Enrollment Form'!$C819=\"ROC\"),\"-\",IF(AND('Enrollment Form'!$B819=\"Subscriber\",'Enrollment Form'!$C819=\"Enroll\",'Enrollment Form'!$CV819<>\"\"),\"Y\",\"N\")))","v":""},{"$f":"IF($B812=\"N\",\"\",IF($S812=\"-\",\"-\",IF(AND($S812=\"Y\",'Enrollment Form'!$CV819=\"No\"),\"-\",IF(AND($S812=\"Y\",'Enrollment Form'!$CV819=\"Yes\",'Enrollment Form'!$CW819<>\"\"),\"Y\",\"N\"))))","v":""},{"$f":"IF(OR('Enrollment Form'!$AY819=\"Yes\",'Enrollment Form'!$AY819=\"\"),\"-\",IF(OR(AND('Enrollment Form'!$AY819=\"No\",ISERROR(FIND(\"HMO\",VLOOKUP('Enrollment Form'!G819,'Enrollment Form'!H$11:J$1000,3,FALSE),1))=FALSE,COUNTA('Enrollment Form'!$AZ819:$BC819)=4),AND('Enrollment Form'!$AY819=\"No\",ISERROR(FIND(\"HMO\",VLOOKUP('Enrollment Form'!G819,'Enrollment Form'!H$11:J$1000,3,FALSE),1))=FALSE,COUNTA('Enrollment Form'!$BT819:$BW819)=4)),\"Y\",\"N\"))","v":"-"},{"$f":"IF($B812=\"N\",\"\",IF('Enrollment Form'!$B819=\"Subscriber\",\"-\",IF(COUNTA('Enrollment Form'!$BL819,'Enrollment Form'!$BN819)=2,\"Y\",\"N\")))","v":""},{"$f":"IF($B812=\"N\",\"\",IF(OR('Enrollment Form'!$AX819=\"\",'Enrollment Form'!$AX819=\"No\"),\"-\",IF(AND('Enrollment Form'!$AX819=\"Yes\",COUNTA('Enrollment Form'!$CR819)=1),\"Y\",\"N\")))","v":""},{"$f":"IF(OR('Enrollment Form'!$CR819=\"\",'Enrollment Form'!$CR819=\"No\"),\"-\",IF(COUNTA('Enrollment Form'!$CT819:$CU819)=2,\"Y\",\"N\"))","v":"-"},{"$f":"IF($B812=\"N\",\"\",IF(COUNTIF('Enrollment Form'!$DG819:$DP819,\"Other\")=COUNTA('Enrollment Form'!$DK819,'Enrollment Form'!$DH819,'Enrollment Form'!$DN819,'Enrollment Form'!$DQ819),\"Y\",\"N\"))","v":""},{"$f":"IF($B812=\"N\",\"\",IF(OR('Enrollment Form'!B819<>\"Subscriber\",'Enrollment Form'!C819=\"ROC\",COUNTIF('Enrollment Form'!AV819:AW819,\"Yes\")>=1),\"-\",IF(AND('Enrollment Form'!C819=\"Enroll\",COUNTIF('Enrollment Form'!AV819:AW819,\"No\")=2,'Enrollment Form'!AX819=\"\"),\"N\",\"Y\")))","v":""},{"$f":"IF(OR(B812=\"N\",'Enrollment Form'!B819<>\"Subscriber\",'Enrollment Form'!C819=\"ROC\",'Enrollment Form'!O819<>\"Multiple of Salary\"),\"-\",IF(COUNTA('Enrollment Form'!T819:U819)<2,\"N\",\"Y\"))","v":"-"},{"$f":"IF(B812=\"N\",\"\",IF(OR('Enrollment Form'!C819=\"ROC\",'Enrollment Form'!B819<>\"Subscriber\",'Enrollment Form'!O819=\"Waive\",'Enrollment Form'!O819=\"\"),\"-\",IF('Enrollment Form'!P819=\"\",\"N\",\"Y\")))","v":""},{"$f":"IF($B812=\"N\",\"\",IF(AND('Enrollment Form'!$C819=\"ROC\",'Enrollment Form'!$DR819<>\"\"),\"Y\",IF(AND('Enrollment Form'!$C819=\"ROC\",'Enrollment Form'!$DR819=\"\"),\"N\",IF(AND('Enrollment Form'!$C819=\"Enroll\",'Enrollment Form'!$B819=\"Subscriber\",'Enrollment Form'!$CX819=\"No\",'Enrollment Form'!$DR819=\"\"),\"N\",IF(AND('Enrollment Form'!$C819=\"Enroll\",'Enrollment Form'!$B819=\"Subscriber\",'Enrollment Form'!$CX819=\"Yes\"),\"-\",\"Y\")))))","v":""},{"$f":"IF($B812=\"N\",\"\",IF(AND('Enrollment Form'!$C819=\"ROC\",'Enrollment Form'!$DS819<>\"\"),\"Y\",IF(AND('Enrollment Form'!$C819=\"ROC\",'Enrollment Form'!$DS819=\"\"),\"N\",IF(AND('Enrollment Form'!$C819=\"Enroll\",'Enrollment Form'!$B819=\"Subscriber\",'Enrollment Form'!$CX819=\"No\",'Enrollment Form'!$DS819=\"\"),\"N\",IF(AND('Enrollment Form'!$C819=\"Enroll\",'Enrollment Form'!$B819=\"Subscriber\",'Enrollment Form'!$CX819=\"Yes\"),\"-\",\"Y\")))))","v":""},{"$f":"IF('Enrollment Form'!AH819=\"\",\"\",IF(ISERROR(SEARCH(\".\",'Enrollment Form'!AH819,SEARCH(\"@\",'Enrollment Form'!AH819))),\"N\",\"Y\"))","v":""},{"$f":"IF(OR($B812=\"N\",'Enrollment Form'!$G819=\"\"),\"\",IF('Enrollment Form'!$B819<>\"Subscriber\",\"-\",IF(COUNTIF('Enrollment Form'!$AV819:$AW819,\"Yes\")=2,\"N\",\"Y\")))","v":""},{"$f":"IF(OR('Enrollment Form'!$CJ819=\"\",'Enrollment Form'!$CJ819=\"No\"),\"-\",IF(AND('Enrollment Form'!$CJ819=\"Yes\",'Enrollment Form'!$CK819=\"\"),\"N\",\"Y\"))","v":"-"},{"$f":"IF(OR('Enrollment Form'!$CL819=\"\",'Enrollment Form'!$CL819=\"No\"),\"-\",IF(AND('Enrollment Form'!$CL819=\"Yes\",'Enrollment Form'!$CM819=\"\"),\"N\",\"Y\"))","v":"-"},{"$f":"IF(OR('Enrollment Form'!$CN819=\"\",'Enrollment Form'!$CN819=\"No\"),\"-\",IF(AND('Enrollment Form'!$CN819=\"Yes\",'Enrollment Form'!$CO819=\"\"),\"N\",\"Y\"))","v":"-"},{"$f":"IF(OR('Enrollment Form'!$CN819=\"\",'Enrollment Form'!$CN819=\"No\"),\"-\",IF(AND('Enrollment Form'!$CN819=\"Yes\",'Enrollment Form'!$CP819=\"\"),\"N\",\"Y\"))","v":"-"},{"$f":"IF('Enrollment Form'!B819<>\"Subscriber\",\"-\",IF(AND('Enrollment Form'!B819=\"Subscriber\",'Enrollment Form'!C819=\"Enroll\",'Enrollment Form'!AA819=\"\"),\"N\",\"Y\"))","v":"-"},{"$f":"IF(OR('Enrollment Form'!B819=\"Subscriber\",'Enrollment Form'!B819=\"\"),\"-\",IF('Enrollment Form'!BP819=\"\",\"N\",\"Y\"))","v":"-"},{"$f":"IF('Enrollment Form'!B819<>\"Subscriber\",\"-\",IF(AND('Enrollment Form'!B819=\"Subscriber\",'Enrollment Form'!G819=\"\"),\"N\",\"Y\"))","v":"-"},{"$f":"IF('Enrollment Form'!A819=\"\",\"\",IF('Enrollment Form'!B819=\"Subscriber\",\"-\",IF(AND('Enrollment Form'!B819<>\"Subscriber\",'Enrollment Form'!G819='Enrollment Form'!H819),\"N\",\"Y\")))","v":""},0]
[820,{"$f":"IF('Enrollment Form'!$A820<>\"\",\"Y\",\"N\")","v":"N"},{"$f":"IF(AND('Enrollment Form'!$B820=\"\",'Enrollment Form'!$C820<>\"\"),\"N\",IF($B813=\"N\",\"\",\"Y\"))","v":""},{"$f":"IF(OR($B813=\"N\",'Enrollment Form'!G820=\"\"),\"\",IF('Enrollment Form'!$B820<>\"Subscriber\",\"\",IF('Enrollment Form'!$G820='Enrollment Form'!$H820,\"Y\",\"N\")))","v":""},{"$f":"IF($B813=\"N\",\"\",IF(AND(COUNTIFS('Enrollment Form'!$H$11:$H$1000,'Enrollment Form'!$H820,'Enrollment Form'!$B$11:$B$1000,'Enrollment Form'!$B820)>1,'Enrollment Form'!$H820<>\"\"),\"N\",\"Y\"))","v":""},{"$f":"IF($B813=\"N\",\"\",IF(LEN('Enrollment Form'!$Y820)=0,\"\",IF(LEN('Enrollment Form'!$Y820)<>5,\"N\",\"Y\")))","v":""},{"$f":"IF($B813=\"N\",\"\",IF(LEN('Enrollment Form'!$AD820=0),\"\",IF(LEN('Enrollment Form'!$AD820)<>5,\"N\",\"Y\")))","v":""},{"$f":"IF($B813=\"N\",\"\",IF(LEN('Enrollment Form'!$BS820=0),\"\",IF(LEN('Enrollment Form'!$BS820)<>5,\"N\",\"Y\")))","v":""},{"$f":"IF($B813=\"N\",\"\",IF(LEN('Enrollment Form'!$AE820)=0,\"\",IF(LEN('Enrollment Form'!$AE820)<>10,\"N\",\"Y\")))","v":""},{"$f":"IF($B813=\"N\",\"\",IF(LEN('Enrollment Form'!$AF820)=0,\"\",IF(LEN('Enrollment Form'!$AF820)<>10,\"N\",\"Y\")))","v":""},{"$f":"IF('Enrollment Form'!$O820<>\"Graded\",\"-\",IF(AND('Enrollment Form'!$O820=\"Graded\",'Enrollment Form'!$AR820<>\"\"),\"Y\",\"N\"))","v":"-"},{"$f":"IF($B813=\"N\",\"\",IF(OR('Enrollment Form'!$B820<>\"Subscriber\",'Enrollment Form'!$C820=\"ROC\"),\"-\",IF(AND('Enrollment Form'!$B820=\"Subscriber\",'Enrollment Form'!$C820=\"Enroll\",'Enrollment Form'!$AJ820<>\"\"),\"Y\",\"N\")))","v":""},{"$f":"IF($B813=\"N\",\"\",IF(OR('Enrollment Form'!$B820<>\"Subscriber\",'Enrollment Form'!$C820=\"ROC\"),\"-\",IF(AND('Enrollment Form'!$B820=\"Subscriber\",'Enrollment Form'!$C820=\"Enroll\",'Enrollment Form'!$AK820<>\"\"),\"Y\",\"N\")))","v":""},{"$f":"IF($B813=\"N\",\"\",IF(OR('Enrollment Form'!$B820<>\"Subscriber\",'Enrollment Form'!$C820=\"ROC\"),\"-\",IF(AND('Enrollment Form'!$B820=\"Subscriber\",'Enrollment Form'!$C820=\"Enroll\",'Enrollment Form'!$AL820<>\"\"),\"Y\",\"N\")))","v":""},{"$f":"IF($B813=\"N\",\"\",IF(OR('Enrollment Form'!$B820<>\"Subscriber\",'Enrollment Form'!$C820=\"ROC\"),\"-\",IF(AND('Enrollment Form'!$B820=\"Subscriber\",'Enrollment Form'!$C820=\"Enroll\",'Enrollment Form'!$AP820<>\"\"),\"Y\",\"N\")))","v":""},{"$f":"IF($B813=\"N\",\"\",IF(OR('Enrollment Form'!$B820<>\"Subscriber\",'Enrollment Form'!$C820=\"ROC\"),\"-\",IF(AND('Enrollment Form'!$B820=\"Subscriber\",'Enrollment Form'!$C820=\"Enroll\",'Enrollment Form'!$AQ820<>\"\"),\"Y\",\"N\")))","v":""},{"$f":"IF($B813=\"N\",\"\",IF(OR('Enrollment Form'!$B820<>\"Subscriber\",'Enrollment Form'!$C820=\"ROC\"),\"-\",IF(AND('Enrollment Form'!$B820=\"Subscriber\",'Enrollment Form'!$C820=\"Enroll\",'Enrollment Form'!$AS820<>\"\"),\"Y\",\"N\")))","v":""},{"$f":"IF($B813=\"N\",\"\",IF($Q813=\"-\",\"-\",IF(AND($Q813=\"Y\",'Enrollment Form'!$AS820=\"No\"),\"-\",IF(AND($Q813=\"Y\",'Enrollment Form'!$AS820=\"Yes\",'Enrollment Form'!$AT820<>\"\"),\"Y\",\"N\"))))","v":""},{"$f":"IF($B813=\"N\",\"\",IF(OR('Enrollment Form'!$B820<>\"Subscriber\",'Enrollment Form'!$C820=\"ROC\"),\"-\",IF(AND('Enrollment Form'!$B820=\"Subscriber\",'Enrollment Form'!$C820=\"Enroll\",'Enrollment Form'!$CV820<>\"\"),\"Y\",\"N\")))","v":""},{"$f":"IF($B813=\"N\",\"\",IF($S813=\"-\",\"-\",IF(AND($S813=\"Y\",'Enrollment Form'!$CV820=\"No\"),\"-\",IF(AND($S813=\"Y\",'Enrollment Form'!$CV820=\"Yes\",'Enrollment Form'!$CW820<>\"\"),\"Y\",\"N\"))))","v":""},{"$f":"IF(OR('Enrollment Form'!$AY820=\"Yes\",'Enrollment Form'!$AY820=\"\"),\"-\",IF(OR(AND('Enrollment Form'!$AY820=\"No\",ISERROR(FIND(\"HMO\",VLOOKUP('Enrollment Form'!G820,'Enrollment Form'!H$11:J$1000,3,FALSE),1))=FALSE,COUNTA('Enrollment Form'!$AZ820:$BC820)=4),AND('Enrollment Form'!$AY820=\"No\",ISERROR(FIND(\"HMO\",VLOOKUP('Enrollment Form'!G820,'Enrollment Form'!H$11:J$1000,3,FALSE),1))=FALSE,COUNTA('Enrollment Form'!$BT820:$BW820)=4)),\"Y\",\"N\"))","v":"-"},{"$f":"IF($B813=\"N\",\"\",IF('Enrollment Form'!$B820=\"Subscriber\",\"-\",IF(COUNTA('Enrollment Form'!$BL820,'Enrollment Form'!$BN820)=2,\"Y\",\"N\")))","v":""},{"$f":"IF($B813=\"N\",\"\",IF(OR('Enrollment Form'!$AX820=\"\",'Enrollment Form'!$AX820=\"No\"),\"-\",IF(AND('Enrollment Form'!$AX820=\"Yes\",COUNTA('Enrollment Form'!$CR820)=1),\"Y\",\"N\")))","v":""},{"$f":"IF(OR('Enrollment Form'!$CR820=\"\",'Enrollment Form'!$CR820=\"No\"),\"-\",IF(COUNTA('Enrollment Form'!$CT820:$CU820)=2,\"Y\",\"N\"))","v":"-"},{"$f":"IF($B813=\"N\",\"\",IF(COUNTIF('Enrollment Form'!$DG820:$DP820,\"Other\")=COUNTA('Enrollment Form'!$DK820,'Enrollment Form'!$DH820,'Enrollment Form'!$DN820,'Enrollment Form'!$DQ820),\"Y\",\"N\"))","v":""},{"$f":"IF($B813=\"N\",\"\",IF(OR('Enrollment Form'!B820<>\"Subscriber\",'Enrollment Form'!C820=\"ROC\",COUNTIF('Enrollment Form'!AV820:AW820,\"Yes\")>=1),\"-\",IF(AND('Enrollment Form'!C820=\"Enroll\",COUNTIF('Enrollment Form'!AV820:AW820,\"No\")=2,'Enrollment Form'!AX820=\"\"),\"N\",\"Y\")))","v":""},{"$f":"IF(OR(B813=\"N\",'Enrollment Form'!B820<>\"Subscriber\",'Enrollment Form'!C820=\"ROC\",'Enrollment Form'!O820<>\"Multiple of Salary\"),\"-\",IF(COUNTA('Enrollment Form'!T820:U820)<2,\"N\",\"Y\"))","v":"-"},{"$f":"IF(B813=\"N\",\"\",IF(OR('Enrollment Form'!C820=\"ROC\",'Enrollment Form'!B820<>\"Subscriber\",'Enrollment Form'!O820=\"Waive\",'Enrollment Form'!O820=\"\"),\"-\",IF('Enrollment Form'!P820=\"\",\"N\",\"Y\")))","v":""},{"$f":"IF($B813=\"N\",\"\",IF(AND('Enrollment Form'!$C820=\"ROC\",'Enrollment Form'!$DR820<>\"\"),\"Y\",IF(AND('Enrollment Form'!$C820=\"ROC\",'Enrollment Form'!$DR820=\"\"),\"N\",IF(AND('Enrollment Form'!$C820=\"Enroll\",'Enrollment Form'!$B820=\"Subscriber\",'Enrollment Form'!$CX820=\"No\",'Enrollment Form'!$DR820=\"\"),\"N\",IF(AND('Enrollment Form'!$C820=\"Enroll\",'Enrollment Form'!$B820=\"Subscriber\",'Enrollment Form'!$CX820=\"Yes\"),\"-\",\"Y\")))))","v":""},{"$f":"IF($B813=\"N\",\"\",IF(AND('Enrollment Form'!$C820=\"ROC\",'Enrollment Form'!$DS820<>\"\"),\"Y\",IF(AND('Enrollment Form'!$C820=\"ROC\",'Enrollment Form'!$DS820=\"\"),\"N\",IF(AND('Enrollment Form'!$C820=\"Enroll\",'Enrollment Form'!$B820=\"Subscriber\",'Enrollment Form'!$CX820=\"No\",'Enrollment Form'!$DS820=\"\"),\"N\",IF(AND('Enrollment Form'!$C820=\"Enroll\",'Enrollment Form'!$B820=\"Subscriber\",'Enrollment Form'!$CX820=\"Yes\"),\"-\",\"Y\")))))","v":""},{"$f":"IF('Enrollment Form'!AH820=\"\",\"\",IF(ISERROR(SEARCH(\".\",'Enrollment Form'!AH820,SEARCH(\"@\",'Enrollment Form'!AH820))),\"N\",\"Y\"))","v":""},{"$f":"IF(OR($B813=\"N\",'Enrollment Form'!$G820=\"\"),\"\",IF('Enrollment Form'!$B820<>\"Subscriber\",\"-\",IF(COUNTIF('Enrollment Form'!$AV820:$AW820,\"Yes\")=2,\"N\",\"Y\")))","v":""},{"$f":"IF(OR('Enrollment Form'!$CJ820=\"\",'Enrollment Form'!$CJ820=\"No\"),\"-\",IF(AND('Enrollment Form'!$CJ820=\"Yes\",'Enrollment Form'!$CK820=\"\"),\"N\",\"Y\"))","v":"-"},{"$f":"IF(OR('Enrollment Form'!$CL820=\"\",'Enrollment Form'!$CL820=\"No\"),\"-\",IF(AND('Enrollment Form'!$CL820=\"Yes\",'Enrollment Form'!$CM820=\"\"),\"N\",\"Y\"))","v":"-"},{"$f":"IF(OR('Enrollment Form'!$CN820=\"\",'Enrollment Form'!$CN820=\"No\"),\"-\",IF(AND('Enrollment Form'!$CN820=\"Yes\",'Enrollment Form'!$CO820=\"\"),\"N\",\"Y\"))","v":"-"},{"$f":"IF(OR('Enrollment Form'!$CN820=\"\",'Enrollment Form'!$CN820=\"No\"),\"-\",IF(AND('Enrollment Form'!$CN820=\"Yes\",'Enrollment Form'!$CP820=\"\"),\"N\",\"Y\"))","v":"-"},{"$f":"IF('Enrollment Form'!B820<>\"Subscriber\",\"-\",IF(AND('Enrollment Form'!B820=\"Subscriber\",'Enrollment Form'!C820=\"Enroll\",'Enrollment Form'!AA820=\"\"),\"N\",\"Y\"))","v":"-"},{"$f":"IF(OR('Enrollment Form'!B820=\"Subscriber\",'Enrollment Form'!B820=\"\"),\"-\",IF('Enrollment Form'!BP820=\"\",\"N\",\"Y\"))","v":"-"},{"$f":"IF('Enrollment Form'!B820<>\"Subscriber\",\"-\",IF(AND('Enrollment Form'!B820=\"Subscriber\",'Enrollment Form'!G820=\"\"),\"N\",\"Y\"))","v":"-"},{"$f":"IF('Enrollment Form'!A820=\"\",\"\",IF('Enrollment Form'!B820=\"Subscriber\",\"-\",IF(AND('Enrollment Form'!B820<>\"Subscriber\",'Enrollment Form'!G820='Enrollment Form'!H820),\"N\",\"Y\")))","v":""},0]
[821,{"$f":"IF('Enrollment Form'!$A821<>\"\",\"Y\",\"N\")","v":"N"},{"$f":"IF(AND('Enrollment Form'!$B821=\"\",'Enrollment Form'!$C821<>\"\"),\"N\",IF($B814=\"N\",\"\",\"Y\"))","v":""},{"$f":"IF(OR($B814=\"N\",'Enrollment Form'!G821=\"\"),\"\",IF('Enrollment Form'!$B821<>\"Subscriber\",\"\",IF('Enrollment Form'!$G821='Enrollment Form'!$H821,\"Y\",\"N\")))","v":""},{"$f":"IF($B814=\"N\",\"\",IF(AND(COUNTIFS('Enrollment Form'!$H$11:$H$1000,'Enrollment Form'!$H821,'Enrollment Form'!$B$11:$B$1000,'Enrollment Form'!$B821)>1,'Enrollment Form'!$H821<>\"\"),\"N\",\"Y\"))","v":""},{"$f":"IF($B814=\"N\",\"\",IF(LEN('Enrollment Form'!$Y821)=0,\"\",IF(LEN('Enrollment Form'!$Y821)<>5,\"N\",\"Y\")))","v":""},{"$f":"IF($B814=\"N\",\"\",IF(LEN('Enrollment Form'!$AD821=0),\"\",IF(LEN('Enrollment Form'!$AD821)<>5,\"N\",\"Y\")))","v":""},{"$f":"IF($B814=\"N\",\"\",IF(LEN('Enrollment Form'!$BS821=0),\"\",IF(LEN('Enrollment Form'!$BS821)<>5,\"N\",\"Y\")))","v":""},{"$f":"IF($B814=\"N\",\"\",IF(LEN('Enrollment Form'!$AE821)=0,\"\",IF(LEN('Enrollment Form'!$AE821)<>10,\"N\",\"Y\")))","v":""},{"$f":"IF($B814=\"N\",\"\",IF(LEN('Enrollment Form'!$AF821)=0,\"\",IF(LEN('Enrollment Form'!$AF821)<>10,\"N\",\"Y\")))","v":""},{"$f":"IF('Enrollment Form'!$O821<>\"Graded\",\"-\",IF(AND('Enrollment Form'!$O821=\"Graded\",'Enrollment Form'!$AR821<>\"\"),\"Y\",\"N\"))","v":"-"},{"$f":"IF($B814=\"N\",\"\",IF(OR('Enrollment Form'!$B821<>\"Subscriber\",'Enrollment Form'!$C821=\"ROC\"),\"-\",IF(AND('Enrollment Form'!$B821=\"Subscriber\",'Enrollment Form'!$C821=\"Enroll\",'Enrollment Form'!$AJ821<>\"\"),\"Y\",\"N\")))","v":""},{"$f":"IF($B814=\"N\",\"\",IF(OR('Enrollment Form'!$B821<>\"Subscriber\",'Enrollment Form'!$C821=\"ROC\"),\"-\",IF(AND('Enrollment Form'!$B821=\"Subscriber\",'Enrollment Form'!$C821=\"Enroll\",'Enrollment Form'!$AK821<>\"\"),\"Y\",\"N\")))","v":""},{"$f":"IF($B814=\"N\",\"\",IF(OR('Enrollment Form'!$B821<>\"Subscriber\",'Enrollment Form'!$C821=\"ROC\"),\"-\",IF(AND('Enrollment Form'!$B821=\"Subscriber\",'Enrollment Form'!$C821=\"Enroll\",'Enrollment Form'!$AL821<>\"\"),\"Y\",\"N\")))","v":""},{"$f":"IF($B814=\"N\",\"\",IF(OR('Enrollment Form'!$B821<>\"Subscriber\",'Enrollment Form'!$C821=\"ROC\"),\"-\",IF(AND('Enrollment Form'!$B821=\"Subscriber\",'Enrollment Form'!$C821=\"Enroll\",'Enrollment Form'!$AP821<>\"\"),\"Y\",\"N\")))","v":""},{"$f":"IF($B814=\"N\",\"\",IF(OR('Enrollment Form'!$B821<>\"Subscriber\",'Enrollment Form'!$C821=\"ROC\"),\"-\",IF(AND('Enrollment Form'!$B821=\"Subscriber\",'Enrollment Form'!$C821=\"Enroll\",'Enrollment Form'!$AQ821<>\"\"),\"Y\",\"N\")))","v":""},{"$f":"IF($B814=\"N\",\"\",IF(OR('Enrollment Form'!$B821<>\"Subscriber\",'Enrollment Form'!$C821=\"ROC\"),\"-\",IF(AND('Enrollment Form'!$B821=\"Subscriber\",'Enrollment Form'!$C821=\"Enroll\",'Enrollment Form'!$AS821<>\"\"),\"Y\",\"N\")))","v":""},{"$f":"IF($B814=\"N\",\"\",IF($Q814=\"-\",\"-\",IF(AND($Q814=\"Y\",'Enrollment Form'!$AS821=\"No\"),\"-\",IF(AND($Q814=\"Y\",'Enrollment Form'!$AS821=\"Yes\",'Enrollment Form'!$AT821<>\"\"),\"Y\",\"N\"))))","v":""},{"$f":"IF($B814=\"N\",\"\",IF(OR('Enrollment Form'!$B821<>\"Subscriber\",'Enrollment Form'!$C821=\"ROC\"),\"-\",IF(AND('Enrollment Form'!$B821=\"Subscriber\",'Enrollment Form'!$C821=\"Enroll\",'Enrollment Form'!$CV821<>\"\"),\"Y\",\"N\")))","v":""},{"$f":"IF($B814=\"N\",\"\",IF($S814=\"-\",\"-\",IF(AND($S814=\"Y\",'Enrollment Form'!$CV821=\"No\"),\"-\",IF(AND($S814=\"Y\",'Enrollment Form'!$CV821=\"Yes\",'Enrollment Form'!$CW821<>\"\"),\"Y\",\"N\"))))","v":""},{"$f":"IF(OR('Enrollment Form'!$AY821=\"Yes\",'Enrollment Form'!$AY821=\"\"),\"-\",IF(OR(AND('Enrollment Form'!$AY821=\"No\",ISERROR(FIND(\"HMO\",VLOOKUP('Enrollment Form'!G821,'Enrollment Form'!H$11:J$1000,3,FALSE),1))=FALSE,COUNTA('Enrollment Form'!$AZ821:$BC821)=4),AND('Enrollment Form'!$AY821=\"No\",ISERROR(FIND(\"HMO\",VLOOKUP('Enrollment Form'!G821,'Enrollment Form'!H$11:J$1000,3,FALSE),1))=FALSE,COUNTA('Enrollment Form'!$BT821:$BW821)=4)),\"Y\",\"N\"))","v":"-"},{"$f":"IF($B814=\"N\",\"\",IF('Enrollment Form'!$B821=\"Subscriber\",\"-\",IF(COUNTA('Enrollment Form'!$BL821,'Enrollment Form'!$BN821)=2,\"Y\",\"N\")))","v":""},{"$f":"IF($B814=\"N\",\"\",IF(OR('Enrollment Form'!$AX821=\"\",'Enrollment Form'!$AX821=\"No\"),\"-\",IF(AND('Enrollment Form'!$AX821=\"Yes\",COUNTA('Enrollment Form'!$CR821)=1),\"Y\",\"N\")))","v":""},{"$f":"IF(OR('Enrollment Form'!$CR821=\"\",'Enrollment Form'!$CR821=\"No\"),\"-\",IF(COUNTA('Enrollment Form'!$CT821:$CU821)=2,\"Y\",\"N\"))","v":"-"},{"$f":"IF($B814=\"N\",\"\",IF(COUNTIF('Enrollment Form'!$DG821:$DP821,\"Other\")=COUNTA('Enrollment Form'!$DK821,'Enrollment Form'!$DH821,'Enrollment Form'!$DN821,'Enrollment Form'!$DQ821),\"Y\",\"N\"))","v":""},{"$f":"IF($B814=\"N\",\"\",IF(OR('Enrollment Form'!B821<>\"Subscriber\",'Enrollment Form'!C821=\"ROC\",COUNTIF('Enrollment Form'!AV821:AW821,\"Yes\")>=1),\"-\",IF(AND('Enrollment Form'!C821=\"Enroll\",COUNTIF('Enrollment Form'!AV821:AW821,\"No\")=2,'Enrollment Form'!AX821=\"\"),\"N\",\"Y\")))","v":""},{"$f":"IF(OR(B814=\"N\",'Enrollment Form'!B821<>\"Subscriber\",'Enrollment Form'!C821=\"ROC\",'Enrollment Form'!O821<>\"Multiple of Salary\"),\"-\",IF(COUNTA('Enrollment Form'!T821:U821)<2,\"N\",\"Y\"))","v":"-"},{"$f":"IF(B814=\"N\",\"\",IF(OR('Enrollment Form'!C821=\"ROC\",'Enrollment Form'!B821<>\"Subscriber\",'Enrollment Form'!O821=\"Waive\",'Enrollment Form'!O821=\"\"),\"-\",IF('Enrollment Form'!P821=\"\",\"N\",\"Y\")))","v":""},{"$f":"IF($B814=\"N\",\"\",IF(AND('Enrollment Form'!$C821=\"ROC\",'Enrollment Form'!$DR821<>\"\"),\"Y\",IF(AND('Enrollment Form'!$C821=\"ROC\",'Enrollment Form'!$DR821=\"\"),\"N\",IF(AND('Enrollment Form'!$C821=\"Enroll\",'Enrollment Form'!$B821=\"Subscriber\",'Enrollment Form'!$CX821=\"No\",'Enrollment Form'!$DR821=\"\"),\"N\",IF(AND('Enrollment Form'!$C821=\"Enroll\",'Enrollment Form'!$B821=\"Subscriber\",'Enrollment Form'!$CX821=\"Yes\"),\"-\",\"Y\")))))","v":""},{"$f":"IF($B814=\"N\",\"\",IF(AND('Enrollment Form'!$C821=\"ROC\",'Enrollment Form'!$DS821<>\"\"),\"Y\",IF(AND('Enrollment Form'!$C821=\"ROC\",'Enrollment Form'!$DS821=\"\"),\"N\",IF(AND('Enrollment Form'!$C821=\"Enroll\",'Enrollment Form'!$B821=\"Subscriber\",'Enrollment Form'!$CX821=\"No\",'Enrollment Form'!$DS821=\"\"),\"N\",IF(AND('Enrollment Form'!$C821=\"Enroll\",'Enrollment Form'!$B821=\"Subscriber\",'Enrollment Form'!$CX821=\"Yes\"),\"-\",\"Y\")))))","v":""},{"$f":"IF('Enrollment Form'!AH821=\"\",\"\",IF(ISERROR(SEARCH(\".\",'Enrollment Form'!AH821,SEARCH(\"@\",'Enrollment Form'!AH821))),\"N\",\"Y\"))","v":""},{"$f":"IF(OR($B814=\"N\",'Enrollment Form'!$G821=\"\"),\"\",IF('Enrollment Form'!$B821<>\"Subscriber\",\"-\",IF(COUNTIF('Enrollment Form'!$AV821:$AW821,\"Yes\")=2,\"N\",\"Y\")))","v":""},{"$f":"IF(OR('Enrollment Form'!$CJ821=\"\",'Enrollment Form'!$CJ821=\"No\"),\"-\",IF(AND('Enrollment Form'!$CJ821=\"Yes\",'Enrollment Form'!$CK821=\"\"),\"N\",\"Y\"))","v":"-"},{"$f":"IF(OR('Enrollment Form'!$CL821=\"\",'Enrollment Form'!$CL821=\"No\"),\"-\",IF(AND('Enrollment Form'!$CL821=\"Yes\",'Enrollment Form'!$CM821=\"\"),\"N\",\"Y\"))","v":"-"},{"$f":"IF(OR('Enrollment Form'!$CN821=\"\",'Enrollment Form'!$CN821=\"No\"),\"-\",IF(AND('Enrollment Form'!$CN821=\"Yes\",'Enrollment Form'!$CO821=\"\"),\"N\",\"Y\"))","v":"-"},{"$f":"IF(OR('Enrollment Form'!$CN821=\"\",'Enrollment Form'!$CN821=\"No\"),\"-\",IF(AND('Enrollment Form'!$CN821=\"Yes\",'Enrollment Form'!$CP821=\"\"),\"N\",\"Y\"))","v":"-"},{"$f":"IF('Enrollment Form'!B821<>\"Subscriber\",\"-\",IF(AND('Enrollment Form'!B821=\"Subscriber\",'Enrollment Form'!C821=\"Enroll\",'Enrollment Form'!AA821=\"\"),\"N\",\"Y\"))","v":"-"},{"$f":"IF(OR('Enrollment Form'!B821=\"Subscriber\",'Enrollment Form'!B821=\"\"),\"-\",IF('Enrollment Form'!BP821=\"\",\"N\",\"Y\"))","v":"-"},{"$f":"IF('Enrollment Form'!B821<>\"Subscriber\",\"-\",IF(AND('Enrollment Form'!B821=\"Subscriber\",'Enrollment Form'!G821=\"\"),\"N\",\"Y\"))","v":"-"},{"$f":"IF('Enrollment Form'!A821=\"\",\"\",IF('Enrollment Form'!B821=\"Subscriber\",\"-\",IF(AND('Enrollment Form'!B821<>\"Subscriber\",'Enrollment Form'!G821='Enrollment Form'!H821),\"N\",\"Y\")))","v":""},0]
[822,{"$f":"IF('Enrollment Form'!$A822<>\"\",\"Y\",\"N\")","v":"N"},{"$f":"IF(AND('Enrollment Form'!$B822=\"\",'Enrollment Form'!$C822<>\"\"),\"N\",IF($B815=\"N\",\"\",\"Y\"))","v":""},{"$f":"IF(OR($B815=\"N\",'Enrollment Form'!G822=\"\"),\"\",IF('Enrollment Form'!$B822<>\"Subscriber\",\"\",IF('Enrollment Form'!$G822='Enrollment Form'!$H822,\"Y\",\"N\")))","v":""},{"$f":"IF($B815=\"N\",\"\",IF(AND(COUNTIFS('Enrollment Form'!$H$11:$H$1000,'Enrollment Form'!$H822,'Enrollment Form'!$B$11:$B$1000,'Enrollment Form'!$B822)>1,'Enrollment Form'!$H822<>\"\"),\"N\",\"Y\"))","v":""},{"$f":"IF($B815=\"N\",\"\",IF(LEN('Enrollment Form'!$Y822)=0,\"\",IF(LEN('Enrollment Form'!$Y822)<>5,\"N\",\"Y\")))","v":""},{"$f":"IF($B815=\"N\",\"\",IF(LEN('Enrollment Form'!$AD822=0),\"\",IF(LEN('Enrollment Form'!$AD822)<>5,\"N\",\"Y\")))","v":""},{"$f":"IF($B815=\"N\",\"\",IF(LEN('Enrollment Form'!$BS822=0),\"\",IF(LEN('Enrollment Form'!$BS822)<>5,\"N\",\"Y\")))","v":""},{"$f":"IF($B815=\"N\",\"\",IF(LEN('Enrollment Form'!$AE822)=0,\"\",IF(LEN('Enrollment Form'!$AE822)<>10,\"N\",\"Y\")))","v":""},{"$f":"IF($B815=\"N\",\"\",IF(LEN('Enrollment Form'!$AF822)=0,\"\",IF(LEN('Enrollment Form'!$AF822)<>10,\"N\",\"Y\")))","v":""},{"$f":"IF('Enrollment Form'!$O822<>\"Graded\",\"-\",IF(AND('Enrollment Form'!$O822=\"Graded\",'Enrollment Form'!$AR822<>\"\"),\"Y\",\"N\"))","v":"-"},{"$f":"IF($B815=\"N\",\"\",IF(OR('Enrollment Form'!$B822<>\"Subscriber\",'Enrollment Form'!$C822=\"ROC\"),\"-\",IF(AND('Enrollment Form'!$B822=\"Subscriber\",'Enrollment Form'!$C822=\"Enroll\",'Enrollment Form'!$AJ822<>\"\"),\"Y\",\"N\")))","v":""},{"$f":"IF($B815=\"N\",\"\",IF(OR('Enrollment Form'!$B822<>\"Subscriber\",'Enrollment Form'!$C822=\"ROC\"),\"-\",IF(AND('Enrollment Form'!$B822=\"Subscriber\",'Enrollment Form'!$C822=\"Enroll\",'Enrollment Form'!$AK822<>\"\"),\"Y\",\"N\")))","v":""},{"$f":"IF($B815=\"N\",\"\",IF(OR('Enrollment Form'!$B822<>\"Subscriber\",'Enrollment Form'!$C822=\"ROC\"),\"-\",IF(AND('Enrollment Form'!$B822=\"Subscriber\",'Enrollment Form'!$C822=\"Enroll\",'Enrollment Form'!$AL822<>\"\"),\"Y\",\"N\")))","v":""},{"$f":"IF($B815=\"N\",\"\",IF(OR('Enrollment Form'!$B822<>\"Subscriber\",'Enrollment Form'!$C822=\"ROC\"),\"-\",IF(AND('Enrollment Form'!$B822=\"Subscriber\",'Enrollment Form'!$C822=\"Enroll\",'Enrollment Form'!$AP822<>\"\"),\"Y\",\"N\")))","v":""},{"$f":"IF($B815=\"N\",\"\",IF(OR('Enrollment Form'!$B822<>\"Subscriber\",'Enrollment Form'!$C822=\"ROC\"),\"-\",IF(AND('Enrollment Form'!$B822=\"Subscriber\",'Enrollment Form'!$C822=\"Enroll\",'Enrollment Form'!$AQ822<>\"\"),\"Y\",\"N\")))","v":""},{"$f":"IF($B815=\"N\",\"\",IF(OR('Enrollment Form'!$B822<>\"Subscriber\",'Enrollment Form'!$C822=\"ROC\"),\"-\",IF(AND('Enrollment Form'!$B822=\"Subscriber\",'Enrollment Form'!$C822=\"Enroll\",'Enrollment Form'!$AS822<>\"\"),\"Y\",\"N\")))","v":""},{"$f":"IF($B815=\"N\",\"\",IF($Q815=\"-\",\"-\",IF(AND($Q815=\"Y\",'Enrollment Form'!$AS822=\"No\"),\"-\",IF(AND($Q815=\"Y\",'Enrollment Form'!$AS822=\"Yes\",'Enrollment Form'!$AT822<>\"\"),\"Y\",\"N\"))))","v":""},{"$f":"IF($B815=\"N\",\"\",IF(OR('Enrollment Form'!$B822<>\"Subscriber\",'Enrollment Form'!$C822=\"ROC\"),\"-\",IF(AND('Enrollment Form'!$B822=\"Subscriber\",'Enrollment Form'!$C822=\"Enroll\",'Enrollment Form'!$CV822<>\"\"),\"Y\",\"N\")))","v":""},{"$f":"IF($B815=\"N\",\"\",IF($S815=\"-\",\"-\",IF(AND($S815=\"Y\",'Enrollment Form'!$CV822=\"No\"),\"-\",IF(AND($S815=\"Y\",'Enrollment Form'!$CV822=\"Yes\",'Enrollment Form'!$CW822<>\"\"),\"Y\",\"N\"))))","v":""},{"$f":"IF(OR('Enrollment Form'!$AY822=\"Yes\",'Enrollment Form'!$AY822=\"\"),\"-\",IF(OR(AND('Enrollment Form'!$AY822=\"No\",ISERROR(FIND(\"HMO\",VLOOKUP('Enrollment Form'!G822,'Enrollment Form'!H$11:J$1000,3,FALSE),1))=FALSE,COUNTA('Enrollment Form'!$AZ822:$BC822)=4),AND('Enrollment Form'!$AY822=\"No\",ISERROR(FIND(\"HMO\",VLOOKUP('Enrollment Form'!G822,'Enrollment Form'!H$11:J$1000,3,FALSE),1))=FALSE,COUNTA('Enrollment Form'!$BT822:$BW822)=4)),\"Y\",\"N\"))","v":"-"},{"$f":"IF($B815=\"N\",\"\",IF('Enrollment Form'!$B822=\"Subscriber\",\"-\",IF(COUNTA('Enrollment Form'!$BL822,'Enrollment Form'!$BN822)=2,\"Y\",\"N\")))","v":""},{"$f":"IF($B815=\"N\",\"\",IF(OR('Enrollment Form'!$AX822=\"\",'Enrollment Form'!$AX822=\"No\"),\"-\",IF(AND('Enrollment Form'!$AX822=\"Yes\",COUNTA('Enrollment Form'!$CR822)=1),\"Y\",\"N\")))","v":""},{"$f":"IF(OR('Enrollment Form'!$CR822=\"\",'Enrollment Form'!$CR822=\"No\"),\"-\",IF(COUNTA('Enrollment Form'!$CT822:$CU822)=2,\"Y\",\"N\"))","v":"-"},{"$f":"IF($B815=\"N\",\"\",IF(COUNTIF('Enrollment Form'!$DG822:$DP822,\"Other\")=COUNTA('Enrollment Form'!$DK822,'Enrollment Form'!$DH822,'Enrollment Form'!$DN822,'Enrollment Form'!$DQ822),\"Y\",\"N\"))","v":""},{"$f":"IF($B815=\"N\",\"\",IF(OR('Enrollment Form'!B822<>\"Subscriber\",'Enrollment Form'!C822=\"ROC\",COUNTIF('Enrollment Form'!AV822:AW822,\"Yes\")>=1),\"-\",IF(AND('Enrollment Form'!C822=\"Enroll\",COUNTIF('Enrollment Form'!AV822:AW822,\"No\")=2,'Enrollment Form'!AX822=\"\"),\"N\",\"Y\")))","v":""},{"$f":"IF(OR(B815=\"N\",'Enrollment Form'!B822<>\"Subscriber\",'Enrollment Form'!C822=\"ROC\",'Enrollment Form'!O822<>\"Multiple of Salary\"),\"-\",IF(COUNTA('Enrollment Form'!T822:U822)<2,\"N\",\"Y\"))","v":"-"},{"$f":"IF(B815=\"N\",\"\",IF(OR('Enrollment Form'!C822=\"ROC\",'Enrollment Form'!B822<>\"Subscriber\",'Enrollment Form'!O822=\"Waive\",'Enrollment Form'!O822=\"\"),\"-\",IF('Enrollment Form'!P822=\"\",\"N\",\"Y\")))","v":""},{"$f":"IF($B815=\"N\",\"\",IF(AND('Enrollment Form'!$C822=\"ROC\",'Enrollment Form'!$DR822<>\"\"),\"Y\",IF(AND('Enrollment Form'!$C822=\"ROC\",'Enrollment Form'!$DR822=\"\"),\"N\",IF(AND('Enrollment Form'!$C822=\"Enroll\",'Enrollment Form'!$B822=\"Subscriber\",'Enrollment Form'!$CX822=\"No\",'Enrollment Form'!$DR822=\"\"),\"N\",IF(AND('Enrollment Form'!$C822=\"Enroll\",'Enrollment Form'!$B822=\"Subscriber\",'Enrollment Form'!$CX822=\"Yes\"),\"-\",\"Y\")))))","v":""},{"$f":"IF($B815=\"N\",\"\",IF(AND('Enrollment Form'!$C822=\"ROC\",'Enrollment Form'!$DS822<>\"\"),\"Y\",IF(AND('Enrollment Form'!$C822=\"ROC\",'Enrollment Form'!$DS822=\"\"),\"N\",IF(AND('Enrollment Form'!$C822=\"Enroll\",'Enrollment Form'!$B822=\"Subscriber\",'Enrollment Form'!$CX822=\"No\",'Enrollment Form'!$DS822=\"\"),\"N\",IF(AND('Enrollment Form'!$C822=\"Enroll\",'Enrollment Form'!$B822=\"Subscriber\",'Enrollment Form'!$CX822=\"Yes\"),\"-\",\"Y\")))))","v":""},{"$f":"IF('Enrollment Form'!AH822=\"\",\"\",IF(ISERROR(SEARCH(\".\",'Enrollment Form'!AH822,SEARCH(\"@\",'Enrollment Form'!AH822))),\"N\",\"Y\"))","v":""},{"$f":"IF(OR($B815=\"N\",'Enrollment Form'!$G822=\"\"),\"\",IF('Enrollment Form'!$B822<>\"Subscriber\",\"-\",IF(COUNTIF('Enrollment Form'!$AV822:$AW822,\"Yes\")=2,\"N\",\"Y\")))","v":""},{"$f":"IF(OR('Enrollment Form'!$CJ822=\"\",'Enrollment Form'!$CJ822=\"No\"),\"-\",IF(AND('Enrollment Form'!$CJ822=\"Yes\",'Enrollment Form'!$CK822=\"\"),\"N\",\"Y\"))","v":"-"},{"$f":"IF(OR('Enrollment Form'!$CL822=\"\",'Enrollment Form'!$CL822=\"No\"),\"-\",IF(AND('Enrollment Form'!$CL822=\"Yes\",'Enrollment Form'!$CM822=\"\"),\"N\",\"Y\"))","v":"-"},{"$f":"IF(OR('Enrollment Form'!$CN822=\"\",'Enrollment Form'!$CN822=\"No\"),\"-\",IF(AND('Enrollment Form'!$CN822=\"Yes\",'Enrollment Form'!$CO822=\"\"),\"N\",\"Y\"))","v":"-"},{"$f":"IF(OR('Enrollment Form'!$CN822=\"\",'Enrollment Form'!$CN822=\"No\"),\"-\",IF(AND('Enrollment Form'!$CN822=\"Yes\",'Enrollment Form'!$CP822=\"\"),\"N\",\"Y\"))","v":"-"},{"$f":"IF('Enrollment Form'!B822<>\"Subscriber\",\"-\",IF(AND('Enrollment Form'!B822=\"Subscriber\",'Enrollment Form'!C822=\"Enroll\",'Enrollment Form'!AA822=\"\"),\"N\",\"Y\"))","v":"-"},{"$f":"IF(OR('Enrollment Form'!B822=\"Subscriber\",'Enrollment Form'!B822=\"\"),\"-\",IF('Enrollment Form'!BP822=\"\",\"N\",\"Y\"))","v":"-"},{"$f":"IF('Enrollment Form'!B822<>\"Subscriber\",\"-\",IF(AND('Enrollment Form'!B822=\"Subscriber\",'Enrollment Form'!G822=\"\"),\"N\",\"Y\"))","v":"-"},{"$f":"IF('Enrollment Form'!A822=\"\",\"\",IF('Enrollment Form'!B822=\"Subscriber\",\"-\",IF(AND('Enrollment Form'!B822<>\"Subscriber\",'Enrollment Form'!G822='Enrollment Form'!H822),\"N\",\"Y\")))","v":""},0]
[823,{"$f":"IF('Enrollment Form'!$A823<>\"\",\"Y\",\"N\")","v":"N"},{"$f":"IF(AND('Enrollment Form'!$B823=\"\",'Enrollment Form'!$C823<>\"\"),\"N\",IF($B816=\"N\",\"\",\"Y\"))","v":""},{"$f":"IF(OR($B816=\"N\",'Enrollment Form'!G823=\"\"),\"\",IF('Enrollment Form'!$B823<>\"Subscriber\",\"\",IF('Enrollment Form'!$G823='Enrollment Form'!$H823,\"Y\",\"N\")))","v":""},{"$f":"IF($B816=\"N\",\"\",IF(AND(COUNTIFS('Enrollment Form'!$H$11:$H$1000,'Enrollment Form'!$H823,'Enrollment Form'!$B$11:$B$1000,'Enrollment Form'!$B823)>1,'Enrollment Form'!$H823<>\"\"),\"N\",\"Y\"))","v":""},{"$f":"IF($B816=\"N\",\"\",IF(LEN('Enrollment Form'!$Y823)=0,\"\",IF(LEN('Enrollment Form'!$Y823)<>5,\"N\",\"Y\")))","v":""},{"$f":"IF($B816=\"N\",\"\",IF(LEN('Enrollment Form'!$AD823=0),\"\",IF(LEN('Enrollment Form'!$AD823)<>5,\"N\",\"Y\")))","v":""},{"$f":"IF($B816=\"N\",\"\",IF(LEN('Enrollment Form'!$BS823=0),\"\",IF(LEN('Enrollment Form'!$BS823)<>5,\"N\",\"Y\")))","v":""},{"$f":"IF($B816=\"N\",\"\",IF(LEN('Enrollment Form'!$AE823)=0,\"\",IF(LEN('Enrollment Form'!$AE823)<>10,\"N\",\"Y\")))","v":""},{"$f":"IF($B816=\"N\",\"\",IF(LEN('Enrollment Form'!$AF823)=0,\"\",IF(LEN('Enrollment Form'!$AF823)<>10,\"N\",\"Y\")))","v":""},{"$f":"IF('Enrollment Form'!$O823<>\"Graded\",\"-\",IF(AND('Enrollment Form'!$O823=\"Graded\",'Enrollment Form'!$AR823<>\"\"),\"Y\",\"N\"))","v":"-"},{"$f":"IF($B816=\"N\",\"\",IF(OR('Enrollment Form'!$B823<>\"Subscriber\",'Enrollment Form'!$C823=\"ROC\"),\"-\",IF(AND('Enrollment Form'!$B823=\"Subscriber\",'Enrollment Form'!$C823=\"Enroll\",'Enrollment Form'!$AJ823<>\"\"),\"Y\",\"N\")))","v":""},{"$f":"IF($B816=\"N\",\"\",IF(OR('Enrollment Form'!$B823<>\"Subscriber\",'Enrollment Form'!$C823=\"ROC\"),\"-\",IF(AND('Enrollment Form'!$B823=\"Subscriber\",'Enrollment Form'!$C823=\"Enroll\",'Enrollment Form'!$AK823<>\"\"),\"Y\",\"N\")))","v":""},{"$f":"IF($B816=\"N\",\"\",IF(OR('Enrollment Form'!$B823<>\"Subscriber\",'Enrollment Form'!$C823=\"ROC\"),\"-\",IF(AND('Enrollment Form'!$B823=\"Subscriber\",'Enrollment Form'!$C823=\"Enroll\",'Enrollment Form'!$AL823<>\"\"),\"Y\",\"N\")))","v":""},{"$f":"IF($B816=\"N\",\"\",IF(OR('Enrollment Form'!$B823<>\"Subscriber\",'Enrollment Form'!$C823=\"ROC\"),\"-\",IF(AND('Enrollment Form'!$B823=\"Subscriber\",'Enrollment Form'!$C823=\"Enroll\",'Enrollment Form'!$AP823<>\"\"),\"Y\",\"N\")))","v":""},{"$f":"IF($B816=\"N\",\"\",IF(OR('Enrollment Form'!$B823<>\"Subscriber\",'Enrollment Form'!$C823=\"ROC\"),\"-\",IF(AND('Enrollment Form'!$B823=\"Subscriber\",'Enrollment Form'!$C823=\"Enroll\",'Enrollment Form'!$AQ823<>\"\"),\"Y\",\"N\")))","v":""},{"$f":"IF($B816=\"N\",\"\",IF(OR('Enrollment Form'!$B823<>\"Subscriber\",'Enrollment Form'!$C823=\"ROC\"),\"-\",IF(AND('Enrollment Form'!$B823=\"Subscriber\",'Enrollment Form'!$C823=\"Enroll\",'Enrollment Form'!$AS823<>\"\"),\"Y\",\"N\")))","v":""},{"$f":"IF($B816=\"N\",\"\",IF($Q816=\"-\",\"-\",IF(AND($Q816=\"Y\",'Enrollment Form'!$AS823=\"No\"),\"-\",IF(AND($Q816=\"Y\",'Enrollment Form'!$AS823=\"Yes\",'Enrollment Form'!$AT823<>\"\"),\"Y\",\"N\"))))","v":""},{"$f":"IF($B816=\"N\",\"\",IF(OR('Enrollment Form'!$B823<>\"Subscriber\",'Enrollment Form'!$C823=\"ROC\"),\"-\",IF(AND('Enrollment Form'!$B823=\"Subscriber\",'Enrollment Form'!$C823=\"Enroll\",'Enrollment Form'!$CV823<>\"\"),\"Y\",\"N\")))","v":""},{"$f":"IF($B816=\"N\",\"\",IF($S816=\"-\",\"-\",IF(AND($S816=\"Y\",'Enrollment Form'!$CV823=\"No\"),\"-\",IF(AND($S816=\"Y\",'Enrollment Form'!$CV823=\"Yes\",'Enrollment Form'!$CW823<>\"\"),\"Y\",\"N\"))))","v":""},{"$f":"IF(OR('Enrollment Form'!$AY823=\"Yes\",'Enrollment Form'!$AY823=\"\"),\"-\",IF(OR(AND('Enrollment Form'!$AY823=\"No\",ISERROR(FIND(\"HMO\",VLOOKUP('Enrollment Form'!G823,'Enrollment Form'!H$11:J$1000,3,FALSE),1))=FALSE,COUNTA('Enrollment Form'!$AZ823:$BC823)=4),AND('Enrollment Form'!$AY823=\"No\",ISERROR(FIND(\"HMO\",VLOOKUP('Enrollment Form'!G823,'Enrollment Form'!H$11:J$1000,3,FALSE),1))=FALSE,COUNTA('Enrollment Form'!$BT823:$BW823)=4)),\"Y\",\"N\"))","v":"-"},{"$f":"IF($B816=\"N\",\"\",IF('Enrollment Form'!$B823=\"Subscriber\",\"-\",IF(COUNTA('Enrollment Form'!$BL823,'Enrollment Form'!$BN823)=2,\"Y\",\"N\")))","v":""},{"$f":"IF($B816=\"N\",\"\",IF(OR('Enrollment Form'!$AX823=\"\",'Enrollment Form'!$AX823=\"No\"),\"-\",IF(AND('Enrollment Form'!$AX823=\"Yes\",COUNTA('Enrollment Form'!$CR823)=1),\"Y\",\"N\")))","v":""},{"$f":"IF(OR('Enrollment Form'!$CR823=\"\",'Enrollment Form'!$CR823=\"No\"),\"-\",IF(COUNTA('Enrollment Form'!$CT823:$CU823)=2,\"Y\",\"N\"))","v":"-"},{"$f":"IF($B816=\"N\",\"\",IF(COUNTIF('Enrollment Form'!$DG823:$DP823,\"Other\")=COUNTA('Enrollment Form'!$DK823,'Enrollment Form'!$DH823,'Enrollment Form'!$DN823,'Enrollment Form'!$DQ823),\"Y\",\"N\"))","v":""},{"$f":"IF($B816=\"N\",\"\",IF(OR('Enrollment Form'!B823<>\"Subscriber\",'Enrollment Form'!C823=\"ROC\",COUNTIF('Enrollment Form'!AV823:AW823,\"Yes\")>=1),\"-\",IF(AND('Enrollment Form'!C823=\"Enroll\",COUNTIF('Enrollment Form'!AV823:AW823,\"No\")=2,'Enrollment Form'!AX823=\"\"),\"N\",\"Y\")))","v":""},{"$f":"IF(OR(B816=\"N\",'Enrollment Form'!B823<>\"Subscriber\",'Enrollment Form'!C823=\"ROC\",'Enrollment Form'!O823<>\"Multiple of Salary\"),\"-\",IF(COUNTA('Enrollment Form'!T823:U823)<2,\"N\",\"Y\"))","v":"-"},{"$f":"IF(B816=\"N\",\"\",IF(OR('Enrollment Form'!C823=\"ROC\",'Enrollment Form'!B823<>\"Subscriber\",'Enrollment Form'!O823=\"Waive\",'Enrollment Form'!O823=\"\"),\"-\",IF('Enrollment Form'!P823=\"\",\"N\",\"Y\")))","v":""},{"$f":"IF($B816=\"N\",\"\",IF(AND('Enrollment Form'!$C823=\"ROC\",'Enrollment Form'!$DR823<>\"\"),\"Y\",IF(AND('Enrollment Form'!$C823=\"ROC\",'Enrollment Form'!$DR823=\"\"),\"N\",IF(AND('Enrollment Form'!$C823=\"Enroll\",'Enrollment Form'!$B823=\"Subscriber\",'Enrollment Form'!$CX823=\"No\",'Enrollment Form'!$DR823=\"\"),\"N\",IF(AND('Enrollment Form'!$C823=\"Enroll\",'Enrollment Form'!$B823=\"Subscriber\",'Enrollment Form'!$CX823=\"Yes\"),\"-\",\"Y\")))))","v":""},{"$f":"IF($B816=\"N\",\"\",IF(AND('Enrollment Form'!$C823=\"ROC\",'Enrollment Form'!$DS823<>\"\"),\"Y\",IF(AND('Enrollment Form'!$C823=\"ROC\",'Enrollment Form'!$DS823=\"\"),\"N\",IF(AND('Enrollment Form'!$C823=\"Enroll\",'Enrollment Form'!$B823=\"Subscriber\",'Enrollment Form'!$CX823=\"No\",'Enrollment Form'!$DS823=\"\"),\"N\",IF(AND('Enrollment Form'!$C823=\"Enroll\",'Enrollment Form'!$B823=\"Subscriber\",'Enrollment Form'!$CX823=\"Yes\"),\"-\",\"Y\")))))","v":""},{"$f":"IF('Enrollment Form'!AH823=\"\",\"\",IF(ISERROR(SEARCH(\".\",'Enrollment Form'!AH823,SEARCH(\"@\",'Enrollment Form'!AH823))),\"N\",\"Y\"))","v":""},{"$f":"IF(OR($B816=\"N\",'Enrollment Form'!$G823=\"\"),\"\",IF('Enrollment Form'!$B823<>\"Subscriber\",\"-\",IF(COUNTIF('Enrollment Form'!$AV823:$AW823,\"Yes\")=2,\"N\",\"Y\")))","v":""},{"$f":"IF(OR('Enrollment Form'!$CJ823=\"\",'Enrollment Form'!$CJ823=\"No\"),\"-\",IF(AND('Enrollment Form'!$CJ823=\"Yes\",'Enrollment Form'!$CK823=\"\"),\"N\",\"Y\"))","v":"-"},{"$f":"IF(OR('Enrollment Form'!$CL823=\"\",'Enrollment Form'!$CL823=\"No\"),\"-\",IF(AND('Enrollment Form'!$CL823=\"Yes\",'Enrollment Form'!$CM823=\"\"),\"N\",\"Y\"))","v":"-"},{"$f":"IF(OR('Enrollment Form'!$CN823=\"\",'Enrollment Form'!$CN823=\"No\"),\"-\",IF(AND('Enrollment Form'!$CN823=\"Yes\",'Enrollment Form'!$CO823=\"\"),\"N\",\"Y\"))","v":"-"},{"$f":"IF(OR('Enrollment Form'!$CN823=\"\",'Enrollment Form'!$CN823=\"No\"),\"-\",IF(AND('Enrollment Form'!$CN823=\"Yes\",'Enrollment Form'!$CP823=\"\"),\"N\",\"Y\"))","v":"-"},{"$f":"IF('Enrollment Form'!B823<>\"Subscriber\",\"-\",IF(AND('Enrollment Form'!B823=\"Subscriber\",'Enrollment Form'!C823=\"Enroll\",'Enrollment Form'!AA823=\"\"),\"N\",\"Y\"))","v":"-"},{"$f":"IF(OR('Enrollment Form'!B823=\"Subscriber\",'Enrollment Form'!B823=\"\"),\"-\",IF('Enrollment Form'!BP823=\"\",\"N\",\"Y\"))","v":"-"},{"$f":"IF('Enrollment Form'!B823<>\"Subscriber\",\"-\",IF(AND('Enrollment Form'!B823=\"Subscriber\",'Enrollment Form'!G823=\"\"),\"N\",\"Y\"))","v":"-"},{"$f":"IF('Enrollment Form'!A823=\"\",\"\",IF('Enrollment Form'!B823=\"Subscriber\",\"-\",IF(AND('Enrollment Form'!B823<>\"Subscriber\",'Enrollment Form'!G823='Enrollment Form'!H823),\"N\",\"Y\")))","v":""},0]
[824,{"$f":"IF('Enrollment Form'!$A824<>\"\",\"Y\",\"N\")","v":"N"},{"$f":"IF(AND('Enrollment Form'!$B824=\"\",'Enrollment Form'!$C824<>\"\"),\"N\",IF($B817=\"N\",\"\",\"Y\"))","v":""},{"$f":"IF(OR($B817=\"N\",'Enrollment Form'!G824=\"\"),\"\",IF('Enrollment Form'!$B824<>\"Subscriber\",\"\",IF('Enrollment Form'!$G824='Enrollment Form'!$H824,\"Y\",\"N\")))","v":""},{"$f":"IF($B817=\"N\",\"\",IF(AND(COUNTIFS('Enrollment Form'!$H$11:$H$1000,'Enrollment Form'!$H824,'Enrollment Form'!$B$11:$B$1000,'Enrollment Form'!$B824)>1,'Enrollment Form'!$H824<>\"\"),\"N\",\"Y\"))","v":""},{"$f":"IF($B817=\"N\",\"\",IF(LEN('Enrollment Form'!$Y824)=0,\"\",IF(LEN('Enrollment Form'!$Y824)<>5,\"N\",\"Y\")))","v":""},{"$f":"IF($B817=\"N\",\"\",IF(LEN('Enrollment Form'!$AD824=0),\"\",IF(LEN('Enrollment Form'!$AD824)<>5,\"N\",\"Y\")))","v":""},{"$f":"IF($B817=\"N\",\"\",IF(LEN('Enrollment Form'!$BS824=0),\"\",IF(LEN('Enrollment Form'!$BS824)<>5,\"N\",\"Y\")))","v":""},{"$f":"IF($B817=\"N\",\"\",IF(LEN('Enrollment Form'!$AE824)=0,\"\",IF(LEN('Enrollment Form'!$AE824)<>10,\"N\",\"Y\")))","v":""},{"$f":"IF($B817=\"N\",\"\",IF(LEN('Enrollment Form'!$AF824)=0,\"\",IF(LEN('Enrollment Form'!$AF824)<>10,\"N\",\"Y\")))","v":""},{"$f":"IF('Enrollment Form'!$O824<>\"Graded\",\"-\",IF(AND('Enrollment Form'!$O824=\"Graded\",'Enrollment Form'!$AR824<>\"\"),\"Y\",\"N\"))","v":"-"},{"$f":"IF($B817=\"N\",\"\",IF(OR('Enrollment Form'!$B824<>\"Subscriber\",'Enrollment Form'!$C824=\"ROC\"),\"-\",IF(AND('Enrollment Form'!$B824=\"Subscriber\",'Enrollment Form'!$C824=\"Enroll\",'Enrollment Form'!$AJ824<>\"\"),\"Y\",\"N\")))","v":""},{"$f":"IF($B817=\"N\",\"\",IF(OR('Enrollment Form'!$B824<>\"Subscriber\",'Enrollment Form'!$C824=\"ROC\"),\"-\",IF(AND('Enrollment Form'!$B824=\"Subscriber\",'Enrollment Form'!$C824=\"Enroll\",'Enrollment Form'!$AK824<>\"\"),\"Y\",\"N\")))","v":""},{"$f":"IF($B817=\"N\",\"\",IF(OR('Enrollment Form'!$B824<>\"Subscriber\",'Enrollment Form'!$C824=\"ROC\"),\"-\",IF(AND('Enrollment Form'!$B824=\"Subscriber\",'Enrollment Form'!$C824=\"Enroll\",'Enrollment Form'!$AL824<>\"\"),\"Y\",\"N\")))","v":""},{"$f":"IF($B817=\"N\",\"\",IF(OR('Enrollment Form'!$B824<>\"Subscriber\",'Enrollment Form'!$C824=\"ROC\"),\"-\",IF(AND('Enrollment Form'!$B824=\"Subscriber\",'Enrollment Form'!$C824=\"Enroll\",'Enrollment Form'!$AP824<>\"\"),\"Y\",\"N\")))","v":""},{"$f":"IF($B817=\"N\",\"\",IF(OR('Enrollment Form'!$B824<>\"Subscriber\",'Enrollment Form'!$C824=\"ROC\"),\"-\",IF(AND('Enrollment Form'!$B824=\"Subscriber\",'Enrollment Form'!$C824=\"Enroll\",'Enrollment Form'!$AQ824<>\"\"),\"Y\",\"N\")))","v":""},{"$f":"IF($B817=\"N\",\"\",IF(OR('Enrollment Form'!$B824<>\"Subscriber\",'Enrollment Form'!$C824=\"ROC\"),\"-\",IF(AND('Enrollment Form'!$B824=\"Subscriber\",'Enrollment Form'!$C824=\"Enroll\",'Enrollment Form'!$AS824<>\"\"),\"Y\",\"N\")))","v":""},{"$f":"IF($B817=\"N\",\"\",IF($Q817=\"-\",\"-\",IF(AND($Q817=\"Y\",'Enrollment Form'!$AS824=\"No\"),\"-\",IF(AND($Q817=\"Y\",'Enrollment Form'!$AS824=\"Yes\",'Enrollment Form'!$AT824<>\"\"),\"Y\",\"N\"))))","v":""},{"$f":"IF($B817=\"N\",\"\",IF(OR('Enrollment Form'!$B824<>\"Subscriber\",'Enrollment Form'!$C824=\"ROC\"),\"-\",IF(AND('Enrollment Form'!$B824=\"Subscriber\",'Enrollment Form'!$C824=\"Enroll\",'Enrollment Form'!$CV824<>\"\"),\"Y\",\"N\")))","v":""},{"$f":"IF($B817=\"N\",\"\",IF($S817=\"-\",\"-\",IF(AND($S817=\"Y\",'Enrollment Form'!$CV824=\"No\"),\"-\",IF(AND($S817=\"Y\",'Enrollment Form'!$CV824=\"Yes\",'Enrollment Form'!$CW824<>\"\"),\"Y\",\"N\"))))","v":""},{"$f":"IF(OR('Enrollment Form'!$AY824=\"Yes\",'Enrollment Form'!$AY824=\"\"),\"-\",IF(OR(AND('Enrollment Form'!$AY824=\"No\",ISERROR(FIND(\"HMO\",VLOOKUP('Enrollment Form'!G824,'Enrollment Form'!H$11:J$1000,3,FALSE),1))=FALSE,COUNTA('Enrollment Form'!$AZ824:$BC824)=4),AND('Enrollment Form'!$AY824=\"No\",ISERROR(FIND(\"HMO\",VLOOKUP('Enrollment Form'!G824,'Enrollment Form'!H$11:J$1000,3,FALSE),1))=FALSE,COUNTA('Enrollment Form'!$BT824:$BW824)=4)),\"Y\",\"N\"))","v":"-"},{"$f":"IF($B817=\"N\",\"\",IF('Enrollment Form'!$B824=\"Subscriber\",\"-\",IF(COUNTA('Enrollment Form'!$BL824,'Enrollment Form'!$BN824)=2,\"Y\",\"N\")))","v":""},{"$f":"IF($B817=\"N\",\"\",IF(OR('Enrollment Form'!$AX824=\"\",'Enrollment Form'!$AX824=\"No\"),\"-\",IF(AND('Enrollment Form'!$AX824=\"Yes\",COUNTA('Enrollment Form'!$CR824)=1),\"Y\",\"N\")))","v":""},{"$f":"IF(OR('Enrollment Form'!$CR824=\"\",'Enrollment Form'!$CR824=\"No\"),\"-\",IF(COUNTA('Enrollment Form'!$CT824:$CU824)=2,\"Y\",\"N\"))","v":"-"},{"$f":"IF($B817=\"N\",\"\",IF(COUNTIF('Enrollment Form'!$DG824:$DP824,\"Other\")=COUNTA('Enrollment Form'!$DK824,'Enrollment Form'!$DH824,'Enrollment Form'!$DN824,'Enrollment Form'!$DQ824),\"Y\",\"N\"))","v":""},{"$f":"IF($B817=\"N\",\"\",IF(OR('Enrollment Form'!B824<>\"Subscriber\",'Enrollment Form'!C824=\"ROC\",COUNTIF('Enrollment Form'!AV824:AW824,\"Yes\")>=1),\"-\",IF(AND('Enrollment Form'!C824=\"Enroll\",COUNTIF('Enrollment Form'!AV824:AW824,\"No\")=2,'Enrollment Form'!AX824=\"\"),\"N\",\"Y\")))","v":""},{"$f":"IF(OR(B817=\"N\",'Enrollment Form'!B824<>\"Subscriber\",'Enrollment Form'!C824=\"ROC\",'Enrollment Form'!O824<>\"Multiple of Salary\"),\"-\",IF(COUNTA('Enrollment Form'!T824:U824)<2,\"N\",\"Y\"))","v":"-"},{"$f":"IF(B817=\"N\",\"\",IF(OR('Enrollment Form'!C824=\"ROC\",'Enrollment Form'!B824<>\"Subscriber\",'Enrollment Form'!O824=\"Waive\",'Enrollment Form'!O824=\"\"),\"-\",IF('Enrollment Form'!P824=\"\",\"N\",\"Y\")))","v":""},{"$f":"IF($B817=\"N\",\"\",IF(AND('Enrollment Form'!$C824=\"ROC\",'Enrollment Form'!$DR824<>\"\"),\"Y\",IF(AND('Enrollment Form'!$C824=\"ROC\",'Enrollment Form'!$DR824=\"\"),\"N\",IF(AND('Enrollment Form'!$C824=\"Enroll\",'Enrollment Form'!$B824=\"Subscriber\",'Enrollment Form'!$CX824=\"No\",'Enrollment Form'!$DR824=\"\"),\"N\",IF(AND('Enrollment Form'!$C824=\"Enroll\",'Enrollment Form'!$B824=\"Subscriber\",'Enrollment Form'!$CX824=\"Yes\"),\"-\",\"Y\")))))","v":""},{"$f":"IF($B817=\"N\",\"\",IF(AND('Enrollment Form'!$C824=\"ROC\",'Enrollment Form'!$DS824<>\"\"),\"Y\",IF(AND('Enrollment Form'!$C824=\"ROC\",'Enrollment Form'!$DS824=\"\"),\"N\",IF(AND('Enrollment Form'!$C824=\"Enroll\",'Enrollment Form'!$B824=\"Subscriber\",'Enrollment Form'!$CX824=\"No\",'Enrollment Form'!$DS824=\"\"),\"N\",IF(AND('Enrollment Form'!$C824=\"Enroll\",'Enrollment Form'!$B824=\"Subscriber\",'Enrollment Form'!$CX824=\"Yes\"),\"-\",\"Y\")))))","v":""},{"$f":"IF('Enrollment Form'!AH824=\"\",\"\",IF(ISERROR(SEARCH(\".\",'Enrollment Form'!AH824,SEARCH(\"@\",'Enrollment Form'!AH824))),\"N\",\"Y\"))","v":""},{"$f":"IF(OR($B817=\"N\",'Enrollment Form'!$G824=\"\"),\"\",IF('Enrollment Form'!$B824<>\"Subscriber\",\"-\",IF(COUNTIF('Enrollment Form'!$AV824:$AW824,\"Yes\")=2,\"N\",\"Y\")))","v":""},{"$f":"IF(OR('Enrollment Form'!$CJ824=\"\",'Enrollment Form'!$CJ824=\"No\"),\"-\",IF(AND('Enrollment Form'!$CJ824=\"Yes\",'Enrollment Form'!$CK824=\"\"),\"N\",\"Y\"))","v":"-"},{"$f":"IF(OR('Enrollment Form'!$CL824=\"\",'Enrollment Form'!$CL824=\"No\"),\"-\",IF(AND('Enrollment Form'!$CL824=\"Yes\",'Enrollment Form'!$CM824=\"\"),\"N\",\"Y\"))","v":"-"},{"$f":"IF(OR('Enrollment Form'!$CN824=\"\",'Enrollment Form'!$CN824=\"No\"),\"-\",IF(AND('Enrollment Form'!$CN824=\"Yes\",'Enrollment Form'!$CO824=\"\"),\"N\",\"Y\"))","v":"-"},{"$f":"IF(OR('Enrollment Form'!$CN824=\"\",'Enrollment Form'!$CN824=\"No\"),\"-\",IF(AND('Enrollment Form'!$CN824=\"Yes\",'Enrollment Form'!$CP824=\"\"),\"N\",\"Y\"))","v":"-"},{"$f":"IF('Enrollment Form'!B824<>\"Subscriber\",\"-\",IF(AND('Enrollment Form'!B824=\"Subscriber\",'Enrollment Form'!C824=\"Enroll\",'Enrollment Form'!AA824=\"\"),\"N\",\"Y\"))","v":"-"},{"$f":"IF(OR('Enrollment Form'!B824=\"Subscriber\",'Enrollment Form'!B824=\"\"),\"-\",IF('Enrollment Form'!BP824=\"\",\"N\",\"Y\"))","v":"-"},{"$f":"IF('Enrollment Form'!B824<>\"Subscriber\",\"-\",IF(AND('Enrollment Form'!B824=\"Subscriber\",'Enrollment Form'!G824=\"\"),\"N\",\"Y\"))","v":"-"},{"$f":"IF('Enrollment Form'!A824=\"\",\"\",IF('Enrollment Form'!B824=\"Subscriber\",\"-\",IF(AND('Enrollment Form'!B824<>\"Subscriber\",'Enrollment Form'!G824='Enrollment Form'!H824),\"N\",\"Y\")))","v":""},0]
[825,{"$f":"IF('Enrollment Form'!$A825<>\"\",\"Y\",\"N\")","v":"N"},{"$f":"IF(AND('Enrollment Form'!$B825=\"\",'Enrollment Form'!$C825<>\"\"),\"N\",IF($B818=\"N\",\"\",\"Y\"))","v":""},{"$f":"IF(OR($B818=\"N\",'Enrollment Form'!G825=\"\"),\"\",IF('Enrollment Form'!$B825<>\"Subscriber\",\"\",IF('Enrollment Form'!$G825='Enrollment Form'!$H825,\"Y\",\"N\")))","v":""},{"$f":"IF($B818=\"N\",\"\",IF(AND(COUNTIFS('Enrollment Form'!$H$11:$H$1000,'Enrollment Form'!$H825,'Enrollment Form'!$B$11:$B$1000,'Enrollment Form'!$B825)>1,'Enrollment Form'!$H825<>\"\"),\"N\",\"Y\"))","v":""},{"$f":"IF($B818=\"N\",\"\",IF(LEN('Enrollment Form'!$Y825)=0,\"\",IF(LEN('Enrollment Form'!$Y825)<>5,\"N\",\"Y\")))","v":""},{"$f":"IF($B818=\"N\",\"\",IF(LEN('Enrollment Form'!$AD825=0),\"\",IF(LEN('Enrollment Form'!$AD825)<>5,\"N\",\"Y\")))","v":""},{"$f":"IF($B818=\"N\",\"\",IF(LEN('Enrollment Form'!$BS825=0),\"\",IF(LEN('Enrollment Form'!$BS825)<>5,\"N\",\"Y\")))","v":""},{"$f":"IF($B818=\"N\",\"\",IF(LEN('Enrollment Form'!$AE825)=0,\"\",IF(LEN('Enrollment Form'!$AE825)<>10,\"N\",\"Y\")))","v":""},{"$f":"IF($B818=\"N\",\"\",IF(LEN('Enrollment Form'!$AF825)=0,\"\",IF(LEN('Enrollment Form'!$AF825)<>10,\"N\",\"Y\")))","v":""},{"$f":"IF('Enrollment Form'!$O825<>\"Graded\",\"-\",IF(AND('Enrollment Form'!$O825=\"Graded\",'Enrollment Form'!$AR825<>\"\"),\"Y\",\"N\"))","v":"-"},{"$f":"IF($B818=\"N\",\"\",IF(OR('Enrollment Form'!$B825<>\"Subscriber\",'Enrollment Form'!$C825=\"ROC\"),\"-\",IF(AND('Enrollment Form'!$B825=\"Subscriber\",'Enrollment Form'!$C825=\"Enroll\",'Enrollment Form'!$AJ825<>\"\"),\"Y\",\"N\")))","v":""},{"$f":"IF($B818=\"N\",\"\",IF(OR('Enrollment Form'!$B825<>\"Subscriber\",'Enrollment Form'!$C825=\"ROC\"),\"-\",IF(AND('Enrollment Form'!$B825=\"Subscriber\",'Enrollment Form'!$C825=\"Enroll\",'Enrollment Form'!$AK825<>\"\"),\"Y\",\"N\")))","v":""},{"$f":"IF($B818=\"N\",\"\",IF(OR('Enrollment Form'!$B825<>\"Subscriber\",'Enrollment Form'!$C825=\"ROC\"),\"-\",IF(AND('Enrollment Form'!$B825=\"Subscriber\",'Enrollment Form'!$C825=\"Enroll\",'Enrollment Form'!$AL825<>\"\"),\"Y\",\"N\")))","v":""},{"$f":"IF($B818=\"N\",\"\",IF(OR('Enrollment Form'!$B825<>\"Subscriber\",'Enrollment Form'!$C825=\"ROC\"),\"-\",IF(AND('Enrollment Form'!$B825=\"Subscriber\",'Enrollment Form'!$C825=\"Enroll\",'Enrollment Form'!$AP825<>\"\"),\"Y\",\"N\")))","v":""},{"$f":"IF($B818=\"N\",\"\",IF(OR('Enrollment Form'!$B825<>\"Subscriber\",'Enrollment Form'!$C825=\"ROC\"),\"-\",IF(AND('Enrollment Form'!$B825=\"Subscriber\",'Enrollment Form'!$C825=\"Enroll\",'Enrollment Form'!$AQ825<>\"\"),\"Y\",\"N\")))","v":""},{"$f":"IF($B818=\"N\",\"\",IF(OR('Enrollment Form'!$B825<>\"Subscriber\",'Enrollment Form'!$C825=\"ROC\"),\"-\",IF(AND('Enrollment Form'!$B825=\"Subscriber\",'Enrollment Form'!$C825=\"Enroll\",'Enrollment Form'!$AS825<>\"\"),\"Y\",\"N\")))","v":""},{"$f":"IF($B818=\"N\",\"\",IF($Q818=\"-\",\"-\",IF(AND($Q818=\"Y\",'Enrollment Form'!$AS825=\"No\"),\"-\",IF(AND($Q818=\"Y\",'Enrollment Form'!$AS825=\"Yes\",'Enrollment Form'!$AT825<>\"\"),\"Y\",\"N\"))))","v":""},{"$f":"IF($B818=\"N\",\"\",IF(OR('Enrollment Form'!$B825<>\"Subscriber\",'Enrollment Form'!$C825=\"ROC\"),\"-\",IF(AND('Enrollment Form'!$B825=\"Subscriber\",'Enrollment Form'!$C825=\"Enroll\",'Enrollment Form'!$CV825<>\"\"),\"Y\",\"N\")))","v":""},{"$f":"IF($B818=\"N\",\"\",IF($S818=\"-\",\"-\",IF(AND($S818=\"Y\",'Enrollment Form'!$CV825=\"No\"),\"-\",IF(AND($S818=\"Y\",'Enrollment Form'!$CV825=\"Yes\",'Enrollment Form'!$CW825<>\"\"),\"Y\",\"N\"))))","v":""},{"$f":"IF(OR('Enrollment Form'!$AY825=\"Yes\",'Enrollment Form'!$AY825=\"\"),\"-\",IF(OR(AND('Enrollment Form'!$AY825=\"No\",ISERROR(FIND(\"HMO\",VLOOKUP('Enrollment Form'!G825,'Enrollment Form'!H$11:J$1000,3,FALSE),1))=FALSE,COUNTA('Enrollment Form'!$AZ825:$BC825)=4),AND('Enrollment Form'!$AY825=\"No\",ISERROR(FIND(\"HMO\",VLOOKUP('Enrollment Form'!G825,'Enrollment Form'!H$11:J$1000,3,FALSE),1))=FALSE,COUNTA('Enrollment Form'!$BT825:$BW825)=4)),\"Y\",\"N\"))","v":"-"},{"$f":"IF($B818=\"N\",\"\",IF('Enrollment Form'!$B825=\"Subscriber\",\"-\",IF(COUNTA('Enrollment Form'!$BL825,'Enrollment Form'!$BN825)=2,\"Y\",\"N\")))","v":""},{"$f":"IF($B818=\"N\",\"\",IF(OR('Enrollment Form'!$AX825=\"\",'Enrollment Form'!$AX825=\"No\"),\"-\",IF(AND('Enrollment Form'!$AX825=\"Yes\",COUNTA('Enrollment Form'!$CR825)=1),\"Y\",\"N\")))","v":""},{"$f":"IF(OR('Enrollment Form'!$CR825=\"\",'Enrollment Form'!$CR825=\"No\"),\"-\",IF(COUNTA('Enrollment Form'!$CT825:$CU825)=2,\"Y\",\"N\"))","v":"-"},{"$f":"IF($B818=\"N\",\"\",IF(COUNTIF('Enrollment Form'!$DG825:$DP825,\"Other\")=COUNTA('Enrollment Form'!$DK825,'Enrollment Form'!$DH825,'Enrollment Form'!$DN825,'Enrollment Form'!$DQ825),\"Y\",\"N\"))","v":""},{"$f":"IF($B818=\"N\",\"\",IF(OR('Enrollment Form'!B825<>\"Subscriber\",'Enrollment Form'!C825=\"ROC\",COUNTIF('Enrollment Form'!AV825:AW825,\"Yes\")>=1),\"-\",IF(AND('Enrollment Form'!C825=\"Enroll\",COUNTIF('Enrollment Form'!AV825:AW825,\"No\")=2,'Enrollment Form'!AX825=\"\"),\"N\",\"Y\")))","v":""},{"$f":"IF(OR(B818=\"N\",'Enrollment Form'!B825<>\"Subscriber\",'Enrollment Form'!C825=\"ROC\",'Enrollment Form'!O825<>\"Multiple of Salary\"),\"-\",IF(COUNTA('Enrollment Form'!T825:U825)<2,\"N\",\"Y\"))","v":"-"},{"$f":"IF(B818=\"N\",\"\",IF(OR('Enrollment Form'!C825=\"ROC\",'Enrollment Form'!B825<>\"Subscriber\",'Enrollment Form'!O825=\"Waive\",'Enrollment Form'!O825=\"\"),\"-\",IF('Enrollment Form'!P825=\"\",\"N\",\"Y\")))","v":""},{"$f":"IF($B818=\"N\",\"\",IF(AND('Enrollment Form'!$C825=\"ROC\",'Enrollment Form'!$DR825<>\"\"),\"Y\",IF(AND('Enrollment Form'!$C825=\"ROC\",'Enrollment Form'!$DR825=\"\"),\"N\",IF(AND('Enrollment Form'!$C825=\"Enroll\",'Enrollment Form'!$B825=\"Subscriber\",'Enrollment Form'!$CX825=\"No\",'Enrollment Form'!$DR825=\"\"),\"N\",IF(AND('Enrollment Form'!$C825=\"Enroll\",'Enrollment Form'!$B825=\"Subscriber\",'Enrollment Form'!$CX825=\"Yes\"),\"-\",\"Y\")))))","v":""},{"$f":"IF($B818=\"N\",\"\",IF(AND('Enrollment Form'!$C825=\"ROC\",'Enrollment Form'!$DS825<>\"\"),\"Y\",IF(AND('Enrollment Form'!$C825=\"ROC\",'Enrollment Form'!$DS825=\"\"),\"N\",IF(AND('Enrollment Form'!$C825=\"Enroll\",'Enrollment Form'!$B825=\"Subscriber\",'Enrollment Form'!$CX825=\"No\",'Enrollment Form'!$DS825=\"\"),\"N\",IF(AND('Enrollment Form'!$C825=\"Enroll\",'Enrollment Form'!$B825=\"Subscriber\",'Enrollment Form'!$CX825=\"Yes\"),\"-\",\"Y\")))))","v":""},{"$f":"IF('Enrollment Form'!AH825=\"\",\"\",IF(ISERROR(SEARCH(\".\",'Enrollment Form'!AH825,SEARCH(\"@\",'Enrollment Form'!AH825))),\"N\",\"Y\"))","v":""},{"$f":"IF(OR($B818=\"N\",'Enrollment Form'!$G825=\"\"),\"\",IF('Enrollment Form'!$B825<>\"Subscriber\",\"-\",IF(COUNTIF('Enrollment Form'!$AV825:$AW825,\"Yes\")=2,\"N\",\"Y\")))","v":""},{"$f":"IF(OR('Enrollment Form'!$CJ825=\"\",'Enrollment Form'!$CJ825=\"No\"),\"-\",IF(AND('Enrollment Form'!$CJ825=\"Yes\",'Enrollment Form'!$CK825=\"\"),\"N\",\"Y\"))","v":"-"},{"$f":"IF(OR('Enrollment Form'!$CL825=\"\",'Enrollment Form'!$CL825=\"No\"),\"-\",IF(AND('Enrollment Form'!$CL825=\"Yes\",'Enrollment Form'!$CM825=\"\"),\"N\",\"Y\"))","v":"-"},{"$f":"IF(OR('Enrollment Form'!$CN825=\"\",'Enrollment Form'!$CN825=\"No\"),\"-\",IF(AND('Enrollment Form'!$CN825=\"Yes\",'Enrollment Form'!$CO825=\"\"),\"N\",\"Y\"))","v":"-"},{"$f":"IF(OR('Enrollment Form'!$CN825=\"\",'Enrollment Form'!$CN825=\"No\"),\"-\",IF(AND('Enrollment Form'!$CN825=\"Yes\",'Enrollment Form'!$CP825=\"\"),\"N\",\"Y\"))","v":"-"},{"$f":"IF('Enrollment Form'!B825<>\"Subscriber\",\"-\",IF(AND('Enrollment Form'!B825=\"Subscriber\",'Enrollment Form'!C825=\"Enroll\",'Enrollment Form'!AA825=\"\"),\"N\",\"Y\"))","v":"-"},{"$f":"IF(OR('Enrollment Form'!B825=\"Subscriber\",'Enrollment Form'!B825=\"\"),\"-\",IF('Enrollment Form'!BP825=\"\",\"N\",\"Y\"))","v":"-"},{"$f":"IF('Enrollment Form'!B825<>\"Subscriber\",\"-\",IF(AND('Enrollment Form'!B825=\"Subscriber\",'Enrollment Form'!G825=\"\"),\"N\",\"Y\"))","v":"-"},{"$f":"IF('Enrollment Form'!A825=\"\",\"\",IF('Enrollment Form'!B825=\"Subscriber\",\"-\",IF(AND('Enrollment Form'!B825<>\"Subscriber\",'Enrollment Form'!G825='Enrollment Form'!H825),\"N\",\"Y\")))","v":""},0]
[826,{"$f":"IF('Enrollment Form'!$A826<>\"\",\"Y\",\"N\")","v":"N"},{"$f":"IF(AND('Enrollment Form'!$B826=\"\",'Enrollment Form'!$C826<>\"\"),\"N\",IF($B819=\"N\",\"\",\"Y\"))","v":""},{"$f":"IF(OR($B819=\"N\",'Enrollment Form'!G826=\"\"),\"\",IF('Enrollment Form'!$B826<>\"Subscriber\",\"\",IF('Enrollment Form'!$G826='Enrollment Form'!$H826,\"Y\",\"N\")))","v":""},{"$f":"IF($B819=\"N\",\"\",IF(AND(COUNTIFS('Enrollment Form'!$H$11:$H$1000,'Enrollment Form'!$H826,'Enrollment Form'!$B$11:$B$1000,'Enrollment Form'!$B826)>1,'Enrollment Form'!$H826<>\"\"),\"N\",\"Y\"))","v":""},{"$f":"IF($B819=\"N\",\"\",IF(LEN('Enrollment Form'!$Y826)=0,\"\",IF(LEN('Enrollment Form'!$Y826)<>5,\"N\",\"Y\")))","v":""},{"$f":"IF($B819=\"N\",\"\",IF(LEN('Enrollment Form'!$AD826=0),\"\",IF(LEN('Enrollment Form'!$AD826)<>5,\"N\",\"Y\")))","v":""},{"$f":"IF($B819=\"N\",\"\",IF(LEN('Enrollment Form'!$BS826=0),\"\",IF(LEN('Enrollment Form'!$BS826)<>5,\"N\",\"Y\")))","v":""},{"$f":"IF($B819=\"N\",\"\",IF(LEN('Enrollment Form'!$AE826)=0,\"\",IF(LEN('Enrollment Form'!$AE826)<>10,\"N\",\"Y\")))","v":""},{"$f":"IF($B819=\"N\",\"\",IF(LEN('Enrollment Form'!$AF826)=0,\"\",IF(LEN('Enrollment Form'!$AF826)<>10,\"N\",\"Y\")))","v":""},{"$f":"IF('Enrollment Form'!$O826<>\"Graded\",\"-\",IF(AND('Enrollment Form'!$O826=\"Graded\",'Enrollment Form'!$AR826<>\"\"),\"Y\",\"N\"))","v":"-"},{"$f":"IF($B819=\"N\",\"\",IF(OR('Enrollment Form'!$B826<>\"Subscriber\",'Enrollment Form'!$C826=\"ROC\"),\"-\",IF(AND('Enrollment Form'!$B826=\"Subscriber\",'Enrollment Form'!$C826=\"Enroll\",'Enrollment Form'!$AJ826<>\"\"),\"Y\",\"N\")))","v":""},{"$f":"IF($B819=\"N\",\"\",IF(OR('Enrollment Form'!$B826<>\"Subscriber\",'Enrollment Form'!$C826=\"ROC\"),\"-\",IF(AND('Enrollment Form'!$B826=\"Subscriber\",'Enrollment Form'!$C826=\"Enroll\",'Enrollment Form'!$AK826<>\"\"),\"Y\",\"N\")))","v":""},{"$f":"IF($B819=\"N\",\"\",IF(OR('Enrollment Form'!$B826<>\"Subscriber\",'Enrollment Form'!$C826=\"ROC\"),\"-\",IF(AND('Enrollment Form'!$B826=\"Subscriber\",'Enrollment Form'!$C826=\"Enroll\",'Enrollment Form'!$AL826<>\"\"),\"Y\",\"N\")))","v":""},{"$f":"IF($B819=\"N\",\"\",IF(OR('Enrollment Form'!$B826<>\"Subscriber\",'Enrollment Form'!$C826=\"ROC\"),\"-\",IF(AND('Enrollment Form'!$B826=\"Subscriber\",'Enrollment Form'!$C826=\"Enroll\",'Enrollment Form'!$AP826<>\"\"),\"Y\",\"N\")))","v":""},{"$f":"IF($B819=\"N\",\"\",IF(OR('Enrollment Form'!$B826<>\"Subscriber\",'Enrollment Form'!$C826=\"ROC\"),\"-\",IF(AND('Enrollment Form'!$B826=\"Subscriber\",'Enrollment Form'!$C826=\"Enroll\",'Enrollment Form'!$AQ826<>\"\"),\"Y\",\"N\")))","v":""},{"$f":"IF($B819=\"N\",\"\",IF(OR('Enrollment Form'!$B826<>\"Subscriber\",'Enrollment Form'!$C826=\"ROC\"),\"-\",IF(AND('Enrollment Form'!$B826=\"Subscriber\",'Enrollment Form'!$C826=\"Enroll\",'Enrollment Form'!$AS826<>\"\"),\"Y\",\"N\")))","v":""},{"$f":"IF($B819=\"N\",\"\",IF($Q819=\"-\",\"-\",IF(AND($Q819=\"Y\",'Enrollment Form'!$AS826=\"No\"),\"-\",IF(AND($Q819=\"Y\",'Enrollment Form'!$AS826=\"Yes\",'Enrollment Form'!$AT826<>\"\"),\"Y\",\"N\"))))","v":""},{"$f":"IF($B819=\"N\",\"\",IF(OR('Enrollment Form'!$B826<>\"Subscriber\",'Enrollment Form'!$C826=\"ROC\"),\"-\",IF(AND('Enrollment Form'!$B826=\"Subscriber\",'Enrollment Form'!$C826=\"Enroll\",'Enrollment Form'!$CV826<>\"\"),\"Y\",\"N\")))","v":""},{"$f":"IF($B819=\"N\",\"\",IF($S819=\"-\",\"-\",IF(AND($S819=\"Y\",'Enrollment Form'!$CV826=\"No\"),\"-\",IF(AND($S819=\"Y\",'Enrollment Form'!$CV826=\"Yes\",'Enrollment Form'!$CW826<>\"\"),\"Y\",\"N\"))))","v":""},{"$f":"IF(OR('Enrollment Form'!$AY826=\"Yes\",'Enrollment Form'!$AY826=\"\"),\"-\",IF(OR(AND('Enrollment Form'!$AY826=\"No\",ISERROR(FIND(\"HMO\",VLOOKUP('Enrollment Form'!G826,'Enrollment Form'!H$11:J$1000,3,FALSE),1))=FALSE,COUNTA('Enrollment Form'!$AZ826:$BC826)=4),AND('Enrollment Form'!$AY826=\"No\",ISERROR(FIND(\"HMO\",VLOOKUP('Enrollment Form'!G826,'Enrollment Form'!H$11:J$1000,3,FALSE),1))=FALSE,COUNTA('Enrollment Form'!$BT826:$BW826)=4)),\"Y\",\"N\"))","v":"-"},{"$f":"IF($B819=\"N\",\"\",IF('Enrollment Form'!$B826=\"Subscriber\",\"-\",IF(COUNTA('Enrollment Form'!$BL826,'Enrollment Form'!$BN826)=2,\"Y\",\"N\")))","v":""},{"$f":"IF($B819=\"N\",\"\",IF(OR('Enrollment Form'!$AX826=\"\",'Enrollment Form'!$AX826=\"No\"),\"-\",IF(AND('Enrollment Form'!$AX826=\"Yes\",COUNTA('Enrollment Form'!$CR826)=1),\"Y\",\"N\")))","v":""},{"$f":"IF(OR('Enrollment Form'!$CR826=\"\",'Enrollment Form'!$CR826=\"No\"),\"-\",IF(COUNTA('Enrollment Form'!$CT826:$CU826)=2,\"Y\",\"N\"))","v":"-"},{"$f":"IF($B819=\"N\",\"\",IF(COUNTIF('Enrollment Form'!$DG826:$DP826,\"Other\")=COUNTA('Enrollment Form'!$DK826,'Enrollment Form'!$DH826,'Enrollment Form'!$DN826,'Enrollment Form'!$DQ826),\"Y\",\"N\"))","v":""},{"$f":"IF($B819=\"N\",\"\",IF(OR('Enrollment Form'!B826<>\"Subscriber\",'Enrollment Form'!C826=\"ROC\",COUNTIF('Enrollment Form'!AV826:AW826,\"Yes\")>=1),\"-\",IF(AND('Enrollment Form'!C826=\"Enroll\",COUNTIF('Enrollment Form'!AV826:AW826,\"No\")=2,'Enrollment Form'!AX826=\"\"),\"N\",\"Y\")))","v":""},{"$f":"IF(OR(B819=\"N\",'Enrollment Form'!B826<>\"Subscriber\",'Enrollment Form'!C826=\"ROC\",'Enrollment Form'!O826<>\"Multiple of Salary\"),\"-\",IF(COUNTA('Enrollment Form'!T826:U826)<2,\"N\",\"Y\"))","v":"-"},{"$f":"IF(B819=\"N\",\"\",IF(OR('Enrollment Form'!C826=\"ROC\",'Enrollment Form'!B826<>\"Subscriber\",'Enrollment Form'!O826=\"Waive\",'Enrollment Form'!O826=\"\"),\"-\",IF('Enrollment Form'!P826=\"\",\"N\",\"Y\")))","v":""},{"$f":"IF($B819=\"N\",\"\",IF(AND('Enrollment Form'!$C826=\"ROC\",'Enrollment Form'!$DR826<>\"\"),\"Y\",IF(AND('Enrollment Form'!$C826=\"ROC\",'Enrollment Form'!$DR826=\"\"),\"N\",IF(AND('Enrollment Form'!$C826=\"Enroll\",'Enrollment Form'!$B826=\"Subscriber\",'Enrollment Form'!$CX826=\"No\",'Enrollment Form'!$DR826=\"\"),\"N\",IF(AND('Enrollment Form'!$C826=\"Enroll\",'Enrollment Form'!$B826=\"Subscriber\",'Enrollment Form'!$CX826=\"Yes\"),\"-\",\"Y\")))))","v":""},{"$f":"IF($B819=\"N\",\"\",IF(AND('Enrollment Form'!$C826=\"ROC\",'Enrollment Form'!$DS826<>\"\"),\"Y\",IF(AND('Enrollment Form'!$C826=\"ROC\",'Enrollment Form'!$DS826=\"\"),\"N\",IF(AND('Enrollment Form'!$C826=\"Enroll\",'Enrollment Form'!$B826=\"Subscriber\",'Enrollment Form'!$CX826=\"No\",'Enrollment Form'!$DS826=\"\"),\"N\",IF(AND('Enrollment Form'!$C826=\"Enroll\",'Enrollment Form'!$B826=\"Subscriber\",'Enrollment Form'!$CX826=\"Yes\"),\"-\",\"Y\")))))","v":""},{"$f":"IF('Enrollment Form'!AH826=\"\",\"\",IF(ISERROR(SEARCH(\".\",'Enrollment Form'!AH826,SEARCH(\"@\",'Enrollment Form'!AH826))),\"N\",\"Y\"))","v":""},{"$f":"IF(OR($B819=\"N\",'Enrollment Form'!$G826=\"\"),\"\",IF('Enrollment Form'!$B826<>\"Subscriber\",\"-\",IF(COUNTIF('Enrollment Form'!$AV826:$AW826,\"Yes\")=2,\"N\",\"Y\")))","v":""},{"$f":"IF(OR('Enrollment Form'!$CJ826=\"\",'Enrollment Form'!$CJ826=\"No\"),\"-\",IF(AND('Enrollment Form'!$CJ826=\"Yes\",'Enrollment Form'!$CK826=\"\"),\"N\",\"Y\"))","v":"-"},{"$f":"IF(OR('Enrollment Form'!$CL826=\"\",'Enrollment Form'!$CL826=\"No\"),\"-\",IF(AND('Enrollment Form'!$CL826=\"Yes\",'Enrollment Form'!$CM826=\"\"),\"N\",\"Y\"))","v":"-"},{"$f":"IF(OR('Enrollment Form'!$CN826=\"\",'Enrollment Form'!$CN826=\"No\"),\"-\",IF(AND('Enrollment Form'!$CN826=\"Yes\",'Enrollment Form'!$CO826=\"\"),\"N\",\"Y\"))","v":"-"},{"$f":"IF(OR('Enrollment Form'!$CN826=\"\",'Enrollment Form'!$CN826=\"No\"),\"-\",IF(AND('Enrollment Form'!$CN826=\"Yes\",'Enrollment Form'!$CP826=\"\"),\"N\",\"Y\"))","v":"-"},{"$f":"IF('Enrollment Form'!B826<>\"Subscriber\",\"-\",IF(AND('Enrollment Form'!B826=\"Subscriber\",'Enrollment Form'!C826=\"Enroll\",'Enrollment Form'!AA826=\"\"),\"N\",\"Y\"))","v":"-"},{"$f":"IF(OR('Enrollment Form'!B826=\"Subscriber\",'Enrollment Form'!B826=\"\"),\"-\",IF('Enrollment Form'!BP826=\"\",\"N\",\"Y\"))","v":"-"},{"$f":"IF('Enrollment Form'!B826<>\"Subscriber\",\"-\",IF(AND('Enrollment Form'!B826=\"Subscriber\",'Enrollment Form'!G826=\"\"),\"N\",\"Y\"))","v":"-"},{"$f":"IF('Enrollment Form'!A826=\"\",\"\",IF('Enrollment Form'!B826=\"Subscriber\",\"-\",IF(AND('Enrollment Form'!B826<>\"Subscriber\",'Enrollment Form'!G826='Enrollment Form'!H826),\"N\",\"Y\")))","v":""},0]
[827,{"$f":"IF('Enrollment Form'!$A827<>\"\",\"Y\",\"N\")","v":"N"},{"$f":"IF(AND('Enrollment Form'!$B827=\"\",'Enrollment Form'!$C827<>\"\"),\"N\",IF($B820=\"N\",\"\",\"Y\"))","v":""},{"$f":"IF(OR($B820=\"N\",'Enrollment Form'!G827=\"\"),\"\",IF('Enrollment Form'!$B827<>\"Subscriber\",\"\",IF('Enrollment Form'!$G827='Enrollment Form'!$H827,\"Y\",\"N\")))","v":""},{"$f":"IF($B820=\"N\",\"\",IF(AND(COUNTIFS('Enrollment Form'!$H$11:$H$1000,'Enrollment Form'!$H827,'Enrollment Form'!$B$11:$B$1000,'Enrollment Form'!$B827)>1,'Enrollment Form'!$H827<>\"\"),\"N\",\"Y\"))","v":""},{"$f":"IF($B820=\"N\",\"\",IF(LEN('Enrollment Form'!$Y827)=0,\"\",IF(LEN('Enrollment Form'!$Y827)<>5,\"N\",\"Y\")))","v":""},{"$f":"IF($B820=\"N\",\"\",IF(LEN('Enrollment Form'!$AD827=0),\"\",IF(LEN('Enrollment Form'!$AD827)<>5,\"N\",\"Y\")))","v":""},{"$f":"IF($B820=\"N\",\"\",IF(LEN('Enrollment Form'!$BS827=0),\"\",IF(LEN('Enrollment Form'!$BS827)<>5,\"N\",\"Y\")))","v":""},{"$f":"IF($B820=\"N\",\"\",IF(LEN('Enrollment Form'!$AE827)=0,\"\",IF(LEN('Enrollment Form'!$AE827)<>10,\"N\",\"Y\")))","v":""},{"$f":"IF($B820=\"N\",\"\",IF(LEN('Enrollment Form'!$AF827)=0,\"\",IF(LEN('Enrollment Form'!$AF827)<>10,\"N\",\"Y\")))","v":""},{"$f":"IF('Enrollment Form'!$O827<>\"Graded\",\"-\",IF(AND('Enrollment Form'!$O827=\"Graded\",'Enrollment Form'!$AR827<>\"\"),\"Y\",\"N\"))","v":"-"},{"$f":"IF($B820=\"N\",\"\",IF(OR('Enrollment Form'!$B827<>\"Subscriber\",'Enrollment Form'!$C827=\"ROC\"),\"-\",IF(AND('Enrollment Form'!$B827=\"Subscriber\",'Enrollment Form'!$C827=\"Enroll\",'Enrollment Form'!$AJ827<>\"\"),\"Y\",\"N\")))","v":""},{"$f":"IF($B820=\"N\",\"\",IF(OR('Enrollment Form'!$B827<>\"Subscriber\",'Enrollment Form'!$C827=\"ROC\"),\"-\",IF(AND('Enrollment Form'!$B827=\"Subscriber\",'Enrollment Form'!$C827=\"Enroll\",'Enrollment Form'!$AK827<>\"\"),\"Y\",\"N\")))","v":""},{"$f":"IF($B820=\"N\",\"\",IF(OR('Enrollment Form'!$B827<>\"Subscriber\",'Enrollment Form'!$C827=\"ROC\"),\"-\",IF(AND('Enrollment Form'!$B827=\"Subscriber\",'Enrollment Form'!$C827=\"Enroll\",'Enrollment Form'!$AL827<>\"\"),\"Y\",\"N\")))","v":""},{"$f":"IF($B820=\"N\",\"\",IF(OR('Enrollment Form'!$B827<>\"Subscriber\",'Enrollment Form'!$C827=\"ROC\"),\"-\",IF(AND('Enrollment Form'!$B827=\"Subscriber\",'Enrollment Form'!$C827=\"Enroll\",'Enrollment Form'!$AP827<>\"\"),\"Y\",\"N\")))","v":""},{"$f":"IF($B820=\"N\",\"\",IF(OR('Enrollment Form'!$B827<>\"Subscriber\",'Enrollment Form'!$C827=\"ROC\"),\"-\",IF(AND('Enrollment Form'!$B827=\"Subscriber\",'Enrollment Form'!$C827=\"Enroll\",'Enrollment Form'!$AQ827<>\"\"),\"Y\",\"N\")))","v":""},{"$f":"IF($B820=\"N\",\"\",IF(OR('Enrollment Form'!$B827<>\"Subscriber\",'Enrollment Form'!$C827=\"ROC\"),\"-\",IF(AND('Enrollment Form'!$B827=\"Subscriber\",'Enrollment Form'!$C827=\"Enroll\",'Enrollment Form'!$AS827<>\"\"),\"Y\",\"N\")))","v":""},{"$f":"IF($B820=\"N\",\"\",IF($Q820=\"-\",\"-\",IF(AND($Q820=\"Y\",'Enrollment Form'!$AS827=\"No\"),\"-\",IF(AND($Q820=\"Y\",'Enrollment Form'!$AS827=\"Yes\",'Enrollment Form'!$AT827<>\"\"),\"Y\",\"N\"))))","v":""},{"$f":"IF($B820=\"N\",\"\",IF(OR('Enrollment Form'!$B827<>\"Subscriber\",'Enrollment Form'!$C827=\"ROC\"),\"-\",IF(AND('Enrollment Form'!$B827=\"Subscriber\",'Enrollment Form'!$C827=\"Enroll\",'Enrollment Form'!$CV827<>\"\"),\"Y\",\"N\")))","v":""},{"$f":"IF($B820=\"N\",\"\",IF($S820=\"-\",\"-\",IF(AND($S820=\"Y\",'Enrollment Form'!$CV827=\"No\"),\"-\",IF(AND($S820=\"Y\",'Enrollment Form'!$CV827=\"Yes\",'Enrollment Form'!$CW827<>\"\"),\"Y\",\"N\"))))","v":""},{"$f":"IF(OR('Enrollment Form'!$AY827=\"Yes\",'Enrollment Form'!$AY827=\"\"),\"-\",IF(OR(AND('Enrollment Form'!$AY827=\"No\",ISERROR(FIND(\"HMO\",VLOOKUP('Enrollment Form'!G827,'Enrollment Form'!H$11:J$1000,3,FALSE),1))=FALSE,COUNTA('Enrollment Form'!$AZ827:$BC827)=4),AND('Enrollment Form'!$AY827=\"No\",ISERROR(FIND(\"HMO\",VLOOKUP('Enrollment Form'!G827,'Enrollment Form'!H$11:J$1000,3,FALSE),1))=FALSE,COUNTA('Enrollment Form'!$BT827:$BW827)=4)),\"Y\",\"N\"))","v":"-"},{"$f":"IF($B820=\"N\",\"\",IF('Enrollment Form'!$B827=\"Subscriber\",\"-\",IF(COUNTA('Enrollment Form'!$BL827,'Enrollment Form'!$BN827)=2,\"Y\",\"N\")))","v":""},{"$f":"IF($B820=\"N\",\"\",IF(OR('Enrollment Form'!$AX827=\"\",'Enrollment Form'!$AX827=\"No\"),\"-\",IF(AND('Enrollment Form'!$AX827=\"Yes\",COUNTA('Enrollment Form'!$CR827)=1),\"Y\",\"N\")))","v":""},{"$f":"IF(OR('Enrollment Form'!$CR827=\"\",'Enrollment Form'!$CR827=\"No\"),\"-\",IF(COUNTA('Enrollment Form'!$CT827:$CU827)=2,\"Y\",\"N\"))","v":"-"},{"$f":"IF($B820=\"N\",\"\",IF(COUNTIF('Enrollment Form'!$DG827:$DP827,\"Other\")=COUNTA('Enrollment Form'!$DK827,'Enrollment Form'!$DH827,'Enrollment Form'!$DN827,'Enrollment Form'!$DQ827),\"Y\",\"N\"))","v":""},{"$f":"IF($B820=\"N\",\"\",IF(OR('Enrollment Form'!B827<>\"Subscriber\",'Enrollment Form'!C827=\"ROC\",COUNTIF('Enrollment Form'!AV827:AW827,\"Yes\")>=1),\"-\",IF(AND('Enrollment Form'!C827=\"Enroll\",COUNTIF('Enrollment Form'!AV827:AW827,\"No\")=2,'Enrollment Form'!AX827=\"\"),\"N\",\"Y\")))","v":""},{"$f":"IF(OR(B820=\"N\",'Enrollment Form'!B827<>\"Subscriber\",'Enrollment Form'!C827=\"ROC\",'Enrollment Form'!O827<>\"Multiple of Salary\"),\"-\",IF(COUNTA('Enrollment Form'!T827:U827)<2,\"N\",\"Y\"))","v":"-"},{"$f":"IF(B820=\"N\",\"\",IF(OR('Enrollment Form'!C827=\"ROC\",'Enrollment Form'!B827<>\"Subscriber\",'Enrollment Form'!O827=\"Waive\",'Enrollment Form'!O827=\"\"),\"-\",IF('Enrollment Form'!P827=\"\",\"N\",\"Y\")))","v":""},{"$f":"IF($B820=\"N\",\"\",IF(AND('Enrollment Form'!$C827=\"ROC\",'Enrollment Form'!$DR827<>\"\"),\"Y\",IF(AND('Enrollment Form'!$C827=\"ROC\",'Enrollment Form'!$DR827=\"\"),\"N\",IF(AND('Enrollment Form'!$C827=\"Enroll\",'Enrollment Form'!$B827=\"Subscriber\",'Enrollment Form'!$CX827=\"No\",'Enrollment Form'!$DR827=\"\"),\"N\",IF(AND('Enrollment Form'!$C827=\"Enroll\",'Enrollment Form'!$B827=\"Subscriber\",'Enrollment Form'!$CX827=\"Yes\"),\"-\",\"Y\")))))","v":""},{"$f":"IF($B820=\"N\",\"\",IF(AND('Enrollment Form'!$C827=\"ROC\",'Enrollment Form'!$DS827<>\"\"),\"Y\",IF(AND('Enrollment Form'!$C827=\"ROC\",'Enrollment Form'!$DS827=\"\"),\"N\",IF(AND('Enrollment Form'!$C827=\"Enroll\",'Enrollment Form'!$B827=\"Subscriber\",'Enrollment Form'!$CX827=\"No\",'Enrollment Form'!$DS827=\"\"),\"N\",IF(AND('Enrollment Form'!$C827=\"Enroll\",'Enrollment Form'!$B827=\"Subscriber\",'Enrollment Form'!$CX827=\"Yes\"),\"-\",\"Y\")))))","v":""},{"$f":"IF('Enrollment Form'!AH827=\"\",\"\",IF(ISERROR(SEARCH(\".\",'Enrollment Form'!AH827,SEARCH(\"@\",'Enrollment Form'!AH827))),\"N\",\"Y\"))","v":""},{"$f":"IF(OR($B820=\"N\",'Enrollment Form'!$G827=\"\"),\"\",IF('Enrollment Form'!$B827<>\"Subscriber\",\"-\",IF(COUNTIF('Enrollment Form'!$AV827:$AW827,\"Yes\")=2,\"N\",\"Y\")))","v":""},{"$f":"IF(OR('Enrollment Form'!$CJ827=\"\",'Enrollment Form'!$CJ827=\"No\"),\"-\",IF(AND('Enrollment Form'!$CJ827=\"Yes\",'Enrollment Form'!$CK827=\"\"),\"N\",\"Y\"))","v":"-"},{"$f":"IF(OR('Enrollment Form'!$CL827=\"\",'Enrollment Form'!$CL827=\"No\"),\"-\",IF(AND('Enrollment Form'!$CL827=\"Yes\",'Enrollment Form'!$CM827=\"\"),\"N\",\"Y\"))","v":"-"},{"$f":"IF(OR('Enrollment Form'!$CN827=\"\",'Enrollment Form'!$CN827=\"No\"),\"-\",IF(AND('Enrollment Form'!$CN827=\"Yes\",'Enrollment Form'!$CO827=\"\"),\"N\",\"Y\"))","v":"-"},{"$f":"IF(OR('Enrollment Form'!$CN827=\"\",'Enrollment Form'!$CN827=\"No\"),\"-\",IF(AND('Enrollment Form'!$CN827=\"Yes\",'Enrollment Form'!$CP827=\"\"),\"N\",\"Y\"))","v":"-"},{"$f":"IF('Enrollment Form'!B827<>\"Subscriber\",\"-\",IF(AND('Enrollment Form'!B827=\"Subscriber\",'Enrollment Form'!C827=\"Enroll\",'Enrollment Form'!AA827=\"\"),\"N\",\"Y\"))","v":"-"},{"$f":"IF(OR('Enrollment Form'!B827=\"Subscriber\",'Enrollment Form'!B827=\"\"),\"-\",IF('Enrollment Form'!BP827=\"\",\"N\",\"Y\"))","v":"-"},{"$f":"IF('Enrollment Form'!B827<>\"Subscriber\",\"-\",IF(AND('Enrollment Form'!B827=\"Subscriber\",'Enrollment Form'!G827=\"\"),\"N\",\"Y\"))","v":"-"},{"$f":"IF('Enrollment Form'!A827=\"\",\"\",IF('Enrollment Form'!B827=\"Subscriber\",\"-\",IF(AND('Enrollment Form'!B827<>\"Subscriber\",'Enrollment Form'!G827='Enrollment Form'!H827),\"N\",\"Y\")))","v":""},0]
[828,{"$f":"IF('Enrollment Form'!$A828<>\"\",\"Y\",\"N\")","v":"N"},{"$f":"IF(AND('Enrollment Form'!$B828=\"\",'Enrollment Form'!$C828<>\"\"),\"N\",IF($B821=\"N\",\"\",\"Y\"))","v":""},{"$f":"IF(OR($B821=\"N\",'Enrollment Form'!G828=\"\"),\"\",IF('Enrollment Form'!$B828<>\"Subscriber\",\"\",IF('Enrollment Form'!$G828='Enrollment Form'!$H828,\"Y\",\"N\")))","v":""},{"$f":"IF($B821=\"N\",\"\",IF(AND(COUNTIFS('Enrollment Form'!$H$11:$H$1000,'Enrollment Form'!$H828,'Enrollment Form'!$B$11:$B$1000,'Enrollment Form'!$B828)>1,'Enrollment Form'!$H828<>\"\"),\"N\",\"Y\"))","v":""},{"$f":"IF($B821=\"N\",\"\",IF(LEN('Enrollment Form'!$Y828)=0,\"\",IF(LEN('Enrollment Form'!$Y828)<>5,\"N\",\"Y\")))","v":""},{"$f":"IF($B821=\"N\",\"\",IF(LEN('Enrollment Form'!$AD828=0),\"\",IF(LEN('Enrollment Form'!$AD828)<>5,\"N\",\"Y\")))","v":""},{"$f":"IF($B821=\"N\",\"\",IF(LEN('Enrollment Form'!$BS828=0),\"\",IF(LEN('Enrollment Form'!$BS828)<>5,\"N\",\"Y\")))","v":""},{"$f":"IF($B821=\"N\",\"\",IF(LEN('Enrollment Form'!$AE828)=0,\"\",IF(LEN('Enrollment Form'!$AE828)<>10,\"N\",\"Y\")))","v":""},{"$f":"IF($B821=\"N\",\"\",IF(LEN('Enrollment Form'!$AF828)=0,\"\",IF(LEN('Enrollment Form'!$AF828)<>10,\"N\",\"Y\")))","v":""},{"$f":"IF('Enrollment Form'!$O828<>\"Graded\",\"-\",IF(AND('Enrollment Form'!$O828=\"Graded\",'Enrollment Form'!$AR828<>\"\"),\"Y\",\"N\"))","v":"-"},{"$f":"IF($B821=\"N\",\"\",IF(OR('Enrollment Form'!$B828<>\"Subscriber\",'Enrollment Form'!$C828=\"ROC\"),\"-\",IF(AND('Enrollment Form'!$B828=\"Subscriber\",'Enrollment Form'!$C828=\"Enroll\",'Enrollment Form'!$AJ828<>\"\"),\"Y\",\"N\")))","v":""},{"$f":"IF($B821=\"N\",\"\",IF(OR('Enrollment Form'!$B828<>\"Subscriber\",'Enrollment Form'!$C828=\"ROC\"),\"-\",IF(AND('Enrollment Form'!$B828=\"Subscriber\",'Enrollment Form'!$C828=\"Enroll\",'Enrollment Form'!$AK828<>\"\"),\"Y\",\"N\")))","v":""},{"$f":"IF($B821=\"N\",\"\",IF(OR('Enrollment Form'!$B828<>\"Subscriber\",'Enrollment Form'!$C828=\"ROC\"),\"-\",IF(AND('Enrollment Form'!$B828=\"Subscriber\",'Enrollment Form'!$C828=\"Enroll\",'Enrollment Form'!$AL828<>\"\"),\"Y\",\"N\")))","v":""},{"$f":"IF($B821=\"N\",\"\",IF(OR('Enrollment Form'!$B828<>\"Subscriber\",'Enrollment Form'!$C828=\"ROC\"),\"-\",IF(AND('Enrollment Form'!$B828=\"Subscriber\",'Enrollment Form'!$C828=\"Enroll\",'Enrollment Form'!$AP828<>\"\"),\"Y\",\"N\")))","v":""},{"$f":"IF($B821=\"N\",\"\",IF(OR('Enrollment Form'!$B828<>\"Subscriber\",'Enrollment Form'!$C828=\"ROC\"),\"-\",IF(AND('Enrollment Form'!$B828=\"Subscriber\",'Enrollment Form'!$C828=\"Enroll\",'Enrollment Form'!$AQ828<>\"\"),\"Y\",\"N\")))","v":""},{"$f":"IF($B821=\"N\",\"\",IF(OR('Enrollment Form'!$B828<>\"Subscriber\",'Enrollment Form'!$C828=\"ROC\"),\"-\",IF(AND('Enrollment Form'!$B828=\"Subscriber\",'Enrollment Form'!$C828=\"Enroll\",'Enrollment Form'!$AS828<>\"\"),\"Y\",\"N\")))","v":""},{"$f":"IF($B821=\"N\",\"\",IF($Q821=\"-\",\"-\",IF(AND($Q821=\"Y\",'Enrollment Form'!$AS828=\"No\"),\"-\",IF(AND($Q821=\"Y\",'Enrollment Form'!$AS828=\"Yes\",'Enrollment Form'!$AT828<>\"\"),\"Y\",\"N\"))))","v":""},{"$f":"IF($B821=\"N\",\"\",IF(OR('Enrollment Form'!$B828<>\"Subscriber\",'Enrollment Form'!$C828=\"ROC\"),\"-\",IF(AND('Enrollment Form'!$B828=\"Subscriber\",'Enrollment Form'!$C828=\"Enroll\",'Enrollment Form'!$CV828<>\"\"),\"Y\",\"N\")))","v":""},{"$f":"IF($B821=\"N\",\"\",IF($S821=\"-\",\"-\",IF(AND($S821=\"Y\",'Enrollment Form'!$CV828=\"No\"),\"-\",IF(AND($S821=\"Y\",'Enrollment Form'!$CV828=\"Yes\",'Enrollment Form'!$CW828<>\"\"),\"Y\",\"N\"))))","v":""},{"$f":"IF(OR('Enrollment Form'!$AY828=\"Yes\",'Enrollment Form'!$AY828=\"\"),\"-\",IF(OR(AND('Enrollment Form'!$AY828=\"No\",ISERROR(FIND(\"HMO\",VLOOKUP('Enrollment Form'!G828,'Enrollment Form'!H$11:J$1000,3,FALSE),1))=FALSE,COUNTA('Enrollment Form'!$AZ828:$BC828)=4),AND('Enrollment Form'!$AY828=\"No\",ISERROR(FIND(\"HMO\",VLOOKUP('Enrollment Form'!G828,'Enrollment Form'!H$11:J$1000,3,FALSE),1))=FALSE,COUNTA('Enrollment Form'!$BT828:$BW828)=4)),\"Y\",\"N\"))","v":"-"},{"$f":"IF($B821=\"N\",\"\",IF('Enrollment Form'!$B828=\"Subscriber\",\"-\",IF(COUNTA('Enrollment Form'!$BL828,'Enrollment Form'!$BN828)=2,\"Y\",\"N\")))","v":""},{"$f":"IF($B821=\"N\",\"\",IF(OR('Enrollment Form'!$AX828=\"\",'Enrollment Form'!$AX828=\"No\"),\"-\",IF(AND('Enrollment Form'!$AX828=\"Yes\",COUNTA('Enrollment Form'!$CR828)=1),\"Y\",\"N\")))","v":""},{"$f":"IF(OR('Enrollment Form'!$CR828=\"\",'Enrollment Form'!$CR828=\"No\"),\"-\",IF(COUNTA('Enrollment Form'!$CT828:$CU828)=2,\"Y\",\"N\"))","v":"-"},{"$f":"IF($B821=\"N\",\"\",IF(COUNTIF('Enrollment Form'!$DG828:$DP828,\"Other\")=COUNTA('Enrollment Form'!$DK828,'Enrollment Form'!$DH828,'Enrollment Form'!$DN828,'Enrollment Form'!$DQ828),\"Y\",\"N\"))","v":""},{"$f":"IF($B821=\"N\",\"\",IF(OR('Enrollment Form'!B828<>\"Subscriber\",'Enrollment Form'!C828=\"ROC\",COUNTIF('Enrollment Form'!AV828:AW828,\"Yes\")>=1),\"-\",IF(AND('Enrollment Form'!C828=\"Enroll\",COUNTIF('Enrollment Form'!AV828:AW828,\"No\")=2,'Enrollment Form'!AX828=\"\"),\"N\",\"Y\")))","v":""},{"$f":"IF(OR(B821=\"N\",'Enrollment Form'!B828<>\"Subscriber\",'Enrollment Form'!C828=\"ROC\",'Enrollment Form'!O828<>\"Multiple of Salary\"),\"-\",IF(COUNTA('Enrollment Form'!T828:U828)<2,\"N\",\"Y\"))","v":"-"},{"$f":"IF(B821=\"N\",\"\",IF(OR('Enrollment Form'!C828=\"ROC\",'Enrollment Form'!B828<>\"Subscriber\",'Enrollment Form'!O828=\"Waive\",'Enrollment Form'!O828=\"\"),\"-\",IF('Enrollment Form'!P828=\"\",\"N\",\"Y\")))","v":""},{"$f":"IF($B821=\"N\",\"\",IF(AND('Enrollment Form'!$C828=\"ROC\",'Enrollment Form'!$DR828<>\"\"),\"Y\",IF(AND('Enrollment Form'!$C828=\"ROC\",'Enrollment Form'!$DR828=\"\"),\"N\",IF(AND('Enrollment Form'!$C828=\"Enroll\",'Enrollment Form'!$B828=\"Subscriber\",'Enrollment Form'!$CX828=\"No\",'Enrollment Form'!$DR828=\"\"),\"N\",IF(AND('Enrollment Form'!$C828=\"Enroll\",'Enrollment Form'!$B828=\"Subscriber\",'Enrollment Form'!$CX828=\"Yes\"),\"-\",\"Y\")))))","v":""},{"$f":"IF($B821=\"N\",\"\",IF(AND('Enrollment Form'!$C828=\"ROC\",'Enrollment Form'!$DS828<>\"\"),\"Y\",IF(AND('Enrollment Form'!$C828=\"ROC\",'Enrollment Form'!$DS828=\"\"),\"N\",IF(AND('Enrollment Form'!$C828=\"Enroll\",'Enrollment Form'!$B828=\"Subscriber\",'Enrollment Form'!$CX828=\"No\",'Enrollment Form'!$DS828=\"\"),\"N\",IF(AND('Enrollment Form'!$C828=\"Enroll\",'Enrollment Form'!$B828=\"Subscriber\",'Enrollment Form'!$CX828=\"Yes\"),\"-\",\"Y\")))))","v":""},{"$f":"IF('Enrollment Form'!AH828=\"\",\"\",IF(ISERROR(SEARCH(\".\",'Enrollment Form'!AH828,SEARCH(\"@\",'Enrollment Form'!AH828))),\"N\",\"Y\"))","v":""},{"$f":"IF(OR($B821=\"N\",'Enrollment Form'!$G828=\"\"),\"\",IF('Enrollment Form'!$B828<>\"Subscriber\",\"-\",IF(COUNTIF('Enrollment Form'!$AV828:$AW828,\"Yes\")=2,\"N\",\"Y\")))","v":""},{"$f":"IF(OR('Enrollment Form'!$CJ828=\"\",'Enrollment Form'!$CJ828=\"No\"),\"-\",IF(AND('Enrollment Form'!$CJ828=\"Yes\",'Enrollment Form'!$CK828=\"\"),\"N\",\"Y\"))","v":"-"},{"$f":"IF(OR('Enrollment Form'!$CL828=\"\",'Enrollment Form'!$CL828=\"No\"),\"-\",IF(AND('Enrollment Form'!$CL828=\"Yes\",'Enrollment Form'!$CM828=\"\"),\"N\",\"Y\"))","v":"-"},{"$f":"IF(OR('Enrollment Form'!$CN828=\"\",'Enrollment Form'!$CN828=\"No\"),\"-\",IF(AND('Enrollment Form'!$CN828=\"Yes\",'Enrollment Form'!$CO828=\"\"),\"N\",\"Y\"))","v":"-"},{"$f":"IF(OR('Enrollment Form'!$CN828=\"\",'Enrollment Form'!$CN828=\"No\"),\"-\",IF(AND('Enrollment Form'!$CN828=\"Yes\",'Enrollment Form'!$CP828=\"\"),\"N\",\"Y\"))","v":"-"},{"$f":"IF('Enrollment Form'!B828<>\"Subscriber\",\"-\",IF(AND('Enrollment Form'!B828=\"Subscriber\",'Enrollment Form'!C828=\"Enroll\",'Enrollment Form'!AA828=\"\"),\"N\",\"Y\"))","v":"-"},{"$f":"IF(OR('Enrollment Form'!B828=\"Subscriber\",'Enrollment Form'!B828=\"\"),\"-\",IF('Enrollment Form'!BP828=\"\",\"N\",\"Y\"))","v":"-"},{"$f":"IF('Enrollment Form'!B828<>\"Subscriber\",\"-\",IF(AND('Enrollment Form'!B828=\"Subscriber\",'Enrollment Form'!G828=\"\"),\"N\",\"Y\"))","v":"-"},{"$f":"IF('Enrollment Form'!A828=\"\",\"\",IF('Enrollment Form'!B828=\"Subscriber\",\"-\",IF(AND('Enrollment Form'!B828<>\"Subscriber\",'Enrollment Form'!G828='Enrollment Form'!H828),\"N\",\"Y\")))","v":""},0]
[829,{"$f":"IF('Enrollment Form'!$A829<>\"\",\"Y\",\"N\")","v":"N"},{"$f":"IF(AND('Enrollment Form'!$B829=\"\",'Enrollment Form'!$C829<>\"\"),\"N\",IF($B822=\"N\",\"\",\"Y\"))","v":""},{"$f":"IF(OR($B822=\"N\",'Enrollment Form'!G829=\"\"),\"\",IF('Enrollment Form'!$B829<>\"Subscriber\",\"\",IF('Enrollment Form'!$G829='Enrollment Form'!$H829,\"Y\",\"N\")))","v":""},{"$f":"IF($B822=\"N\",\"\",IF(AND(COUNTIFS('Enrollment Form'!$H$11:$H$1000,'Enrollment Form'!$H829,'Enrollment Form'!$B$11:$B$1000,'Enrollment Form'!$B829)>1,'Enrollment Form'!$H829<>\"\"),\"N\",\"Y\"))","v":""},{"$f":"IF($B822=\"N\",\"\",IF(LEN('Enrollment Form'!$Y829)=0,\"\",IF(LEN('Enrollment Form'!$Y829)<>5,\"N\",\"Y\")))","v":""},{"$f":"IF($B822=\"N\",\"\",IF(LEN('Enrollment Form'!$AD829=0),\"\",IF(LEN('Enrollment Form'!$AD829)<>5,\"N\",\"Y\")))","v":""},{"$f":"IF($B822=\"N\",\"\",IF(LEN('Enrollment Form'!$BS829=0),\"\",IF(LEN('Enrollment Form'!$BS829)<>5,\"N\",\"Y\")))","v":""},{"$f":"IF($B822=\"N\",\"\",IF(LEN('Enrollment Form'!$AE829)=0,\"\",IF(LEN('Enrollment Form'!$AE829)<>10,\"N\",\"Y\")))","v":""},{"$f":"IF($B822=\"N\",\"\",IF(LEN('Enrollment Form'!$AF829)=0,\"\",IF(LEN('Enrollment Form'!$AF829)<>10,\"N\",\"Y\")))","v":""},{"$f":"IF('Enrollment Form'!$O829<>\"Graded\",\"-\",IF(AND('Enrollment Form'!$O829=\"Graded\",'Enrollment Form'!$AR829<>\"\"),\"Y\",\"N\"))","v":"-"},{"$f":"IF($B822=\"N\",\"\",IF(OR('Enrollment Form'!$B829<>\"Subscriber\",'Enrollment Form'!$C829=\"ROC\"),\"-\",IF(AND('Enrollment Form'!$B829=\"Subscriber\",'Enrollment Form'!$C829=\"Enroll\",'Enrollment Form'!$AJ829<>\"\"),\"Y\",\"N\")))","v":""},{"$f":"IF($B822=\"N\",\"\",IF(OR('Enrollment Form'!$B829<>\"Subscriber\",'Enrollment Form'!$C829=\"ROC\"),\"-\",IF(AND('Enrollment Form'!$B829=\"Subscriber\",'Enrollment Form'!$C829=\"Enroll\",'Enrollment Form'!$AK829<>\"\"),\"Y\",\"N\")))","v":""},{"$f":"IF($B822=\"N\",\"\",IF(OR('Enrollment Form'!$B829<>\"Subscriber\",'Enrollment Form'!$C829=\"ROC\"),\"-\",IF(AND('Enrollment Form'!$B829=\"Subscriber\",'Enrollment Form'!$C829=\"Enroll\",'Enrollment Form'!$AL829<>\"\"),\"Y\",\"N\")))","v":""},{"$f":"IF($B822=\"N\",\"\",IF(OR('Enrollment Form'!$B829<>\"Subscriber\",'Enrollment Form'!$C829=\"ROC\"),\"-\",IF(AND('Enrollment Form'!$B829=\"Subscriber\",'Enrollment Form'!$C829=\"Enroll\",'Enrollment Form'!$AP829<>\"\"),\"Y\",\"N\")))","v":""},{"$f":"IF($B822=\"N\",\"\",IF(OR('Enrollment Form'!$B829<>\"Subscriber\",'Enrollment Form'!$C829=\"ROC\"),\"-\",IF(AND('Enrollment Form'!$B829=\"Subscriber\",'Enrollment Form'!$C829=\"Enroll\",'Enrollment Form'!$AQ829<>\"\"),\"Y\",\"N\")))","v":""},{"$f":"IF($B822=\"N\",\"\",IF(OR('Enrollment Form'!$B829<>\"Subscriber\",'Enrollment Form'!$C829=\"ROC\"),\"-\",IF(AND('Enrollment Form'!$B829=\"Subscriber\",'Enrollment Form'!$C829=\"Enroll\",'Enrollment Form'!$AS829<>\"\"),\"Y\",\"N\")))","v":""},{"$f":"IF($B822=\"N\",\"\",IF($Q822=\"-\",\"-\",IF(AND($Q822=\"Y\",'Enrollment Form'!$AS829=\"No\"),\"-\",IF(AND($Q822=\"Y\",'Enrollment Form'!$AS829=\"Yes\",'Enrollment Form'!$AT829<>\"\"),\"Y\",\"N\"))))","v":""},{"$f":"IF($B822=\"N\",\"\",IF(OR('Enrollment Form'!$B829<>\"Subscriber\",'Enrollment Form'!$C829=\"ROC\"),\"-\",IF(AND('Enrollment Form'!$B829=\"Subscriber\",'Enrollment Form'!$C829=\"Enroll\",'Enrollment Form'!$CV829<>\"\"),\"Y\",\"N\")))","v":""},{"$f":"IF($B822=\"N\",\"\",IF($S822=\"-\",\"-\",IF(AND($S822=\"Y\",'Enrollment Form'!$CV829=\"No\"),\"-\",IF(AND($S822=\"Y\",'Enrollment Form'!$CV829=\"Yes\",'Enrollment Form'!$CW829<>\"\"),\"Y\",\"N\"))))","v":""},{"$f":"IF(OR('Enrollment Form'!$AY829=\"Yes\",'Enrollment Form'!$AY829=\"\"),\"-\",IF(OR(AND('Enrollment Form'!$AY829=\"No\",ISERROR(FIND(\"HMO\",VLOOKUP('Enrollment Form'!G829,'Enrollment Form'!H$11:J$1000,3,FALSE),1))=FALSE,COUNTA('Enrollment Form'!$AZ829:$BC829)=4),AND('Enrollment Form'!$AY829=\"No\",ISERROR(FIND(\"HMO\",VLOOKUP('Enrollment Form'!G829,'Enrollment Form'!H$11:J$1000,3,FALSE),1))=FALSE,COUNTA('Enrollment Form'!$BT829:$BW829)=4)),\"Y\",\"N\"))","v":"-"},{"$f":"IF($B822=\"N\",\"\",IF('Enrollment Form'!$B829=\"Subscriber\",\"-\",IF(COUNTA('Enrollment Form'!$BL829,'Enrollment Form'!$BN829)=2,\"Y\",\"N\")))","v":""},{"$f":"IF($B822=\"N\",\"\",IF(OR('Enrollment Form'!$AX829=\"\",'Enrollment Form'!$AX829=\"No\"),\"-\",IF(AND('Enrollment Form'!$AX829=\"Yes\",COUNTA('Enrollment Form'!$CR829)=1),\"Y\",\"N\")))","v":""},{"$f":"IF(OR('Enrollment Form'!$CR829=\"\",'Enrollment Form'!$CR829=\"No\"),\"-\",IF(COUNTA('Enrollment Form'!$CT829:$CU829)=2,\"Y\",\"N\"))","v":"-"},{"$f":"IF($B822=\"N\",\"\",IF(COUNTIF('Enrollment Form'!$DG829:$DP829,\"Other\")=COUNTA('Enrollment Form'!$DK829,'Enrollment Form'!$DH829,'Enrollment Form'!$DN829,'Enrollment Form'!$DQ829),\"Y\",\"N\"))","v":""},{"$f":"IF($B822=\"N\",\"\",IF(OR('Enrollment Form'!B829<>\"Subscriber\",'Enrollment Form'!C829=\"ROC\",COUNTIF('Enrollment Form'!AV829:AW829,\"Yes\")>=1),\"-\",IF(AND('Enrollment Form'!C829=\"Enroll\",COUNTIF('Enrollment Form'!AV829:AW829,\"No\")=2,'Enrollment Form'!AX829=\"\"),\"N\",\"Y\")))","v":""},{"$f":"IF(OR(B822=\"N\",'Enrollment Form'!B829<>\"Subscriber\",'Enrollment Form'!C829=\"ROC\",'Enrollment Form'!O829<>\"Multiple of Salary\"),\"-\",IF(COUNTA('Enrollment Form'!T829:U829)<2,\"N\",\"Y\"))","v":"-"},{"$f":"IF(B822=\"N\",\"\",IF(OR('Enrollment Form'!C829=\"ROC\",'Enrollment Form'!B829<>\"Subscriber\",'Enrollment Form'!O829=\"Waive\",'Enrollment Form'!O829=\"\"),\"-\",IF('Enrollment Form'!P829=\"\",\"N\",\"Y\")))","v":""},{"$f":"IF($B822=\"N\",\"\",IF(AND('Enrollment Form'!$C829=\"ROC\",'Enrollment Form'!$DR829<>\"\"),\"Y\",IF(AND('Enrollment Form'!$C829=\"ROC\",'Enrollment Form'!$DR829=\"\"),\"N\",IF(AND('Enrollment Form'!$C829=\"Enroll\",'Enrollment Form'!$B829=\"Subscriber\",'Enrollment Form'!$CX829=\"No\",'Enrollment Form'!$DR829=\"\"),\"N\",IF(AND('Enrollment Form'!$C829=\"Enroll\",'Enrollment Form'!$B829=\"Subscriber\",'Enrollment Form'!$CX829=\"Yes\"),\"-\",\"Y\")))))","v":""},{"$f":"IF($B822=\"N\",\"\",IF(AND('Enrollment Form'!$C829=\"ROC\",'Enrollment Form'!$DS829<>\"\"),\"Y\",IF(AND('Enrollment Form'!$C829=\"ROC\",'Enrollment Form'!$DS829=\"\"),\"N\",IF(AND('Enrollment Form'!$C829=\"Enroll\",'Enrollment Form'!$B829=\"Subscriber\",'Enrollment Form'!$CX829=\"No\",'Enrollment Form'!$DS829=\"\"),\"N\",IF(AND('Enrollment Form'!$C829=\"Enroll\",'Enrollment Form'!$B829=\"Subscriber\",'Enrollment Form'!$CX829=\"Yes\"),\"-\",\"Y\")))))","v":""},{"$f":"IF('Enrollment Form'!AH829=\"\",\"\",IF(ISERROR(SEARCH(\".\",'Enrollment Form'!AH829,SEARCH(\"@\",'Enrollment Form'!AH829))),\"N\",\"Y\"))","v":""},{"$f":"IF(OR($B822=\"N\",'Enrollment Form'!$G829=\"\"),\"\",IF('Enrollment Form'!$B829<>\"Subscriber\",\"-\",IF(COUNTIF('Enrollment Form'!$AV829:$AW829,\"Yes\")=2,\"N\",\"Y\")))","v":""},{"$f":"IF(OR('Enrollment Form'!$CJ829=\"\",'Enrollment Form'!$CJ829=\"No\"),\"-\",IF(AND('Enrollment Form'!$CJ829=\"Yes\",'Enrollment Form'!$CK829=\"\"),\"N\",\"Y\"))","v":"-"},{"$f":"IF(OR('Enrollment Form'!$CL829=\"\",'Enrollment Form'!$CL829=\"No\"),\"-\",IF(AND('Enrollment Form'!$CL829=\"Yes\",'Enrollment Form'!$CM829=\"\"),\"N\",\"Y\"))","v":"-"},{"$f":"IF(OR('Enrollment Form'!$CN829=\"\",'Enrollment Form'!$CN829=\"No\"),\"-\",IF(AND('Enrollment Form'!$CN829=\"Yes\",'Enrollment Form'!$CO829=\"\"),\"N\",\"Y\"))","v":"-"},{"$f":"IF(OR('Enrollment Form'!$CN829=\"\",'Enrollment Form'!$CN829=\"No\"),\"-\",IF(AND('Enrollment Form'!$CN829=\"Yes\",'Enrollment Form'!$CP829=\"\"),\"N\",\"Y\"))","v":"-"},{"$f":"IF('Enrollment Form'!B829<>\"Subscriber\",\"-\",IF(AND('Enrollment Form'!B829=\"Subscriber\",'Enrollment Form'!C829=\"Enroll\",'Enrollment Form'!AA829=\"\"),\"N\",\"Y\"))","v":"-"},{"$f":"IF(OR('Enrollment Form'!B829=\"Subscriber\",'Enrollment Form'!B829=\"\"),\"-\",IF('Enrollment Form'!BP829=\"\",\"N\",\"Y\"))","v":"-"},{"$f":"IF('Enrollment Form'!B829<>\"Subscriber\",\"-\",IF(AND('Enrollment Form'!B829=\"Subscriber\",'Enrollment Form'!G829=\"\"),\"N\",\"Y\"))","v":"-"},{"$f":"IF('Enrollment Form'!A829=\"\",\"\",IF('Enrollment Form'!B829=\"Subscriber\",\"-\",IF(AND('Enrollment Form'!B829<>\"Subscriber\",'Enrollment Form'!G829='Enrollment Form'!H829),\"N\",\"Y\")))","v":""},0]
[830,{"$f":"IF('Enrollment Form'!$A830<>\"\",\"Y\",\"N\")","v":"N"},{"$f":"IF(AND('Enrollment Form'!$B830=\"\",'Enrollment Form'!$C830<>\"\"),\"N\",IF($B823=\"N\",\"\",\"Y\"))","v":""},{"$f":"IF(OR($B823=\"N\",'Enrollment Form'!G830=\"\"),\"\",IF('Enrollment Form'!$B830<>\"Subscriber\",\"\",IF('Enrollment Form'!$G830='Enrollment Form'!$H830,\"Y\",\"N\")))","v":""},{"$f":"IF($B823=\"N\",\"\",IF(AND(COUNTIFS('Enrollment Form'!$H$11:$H$1000,'Enrollment Form'!$H830,'Enrollment Form'!$B$11:$B$1000,'Enrollment Form'!$B830)>1,'Enrollment Form'!$H830<>\"\"),\"N\",\"Y\"))","v":""},{"$f":"IF($B823=\"N\",\"\",IF(LEN('Enrollment Form'!$Y830)=0,\"\",IF(LEN('Enrollment Form'!$Y830)<>5,\"N\",\"Y\")))","v":""},{"$f":"IF($B823=\"N\",\"\",IF(LEN('Enrollment Form'!$AD830=0),\"\",IF(LEN('Enrollment Form'!$AD830)<>5,\"N\",\"Y\")))","v":""},{"$f":"IF($B823=\"N\",\"\",IF(LEN('Enrollment Form'!$BS830=0),\"\",IF(LEN('Enrollment Form'!$BS830)<>5,\"N\",\"Y\")))","v":""},{"$f":"IF($B823=\"N\",\"\",IF(LEN('Enrollment Form'!$AE830)=0,\"\",IF(LEN('Enrollment Form'!$AE830)<>10,\"N\",\"Y\")))","v":""},{"$f":"IF($B823=\"N\",\"\",IF(LEN('Enrollment Form'!$AF830)=0,\"\",IF(LEN('Enrollment Form'!$AF830)<>10,\"N\",\"Y\")))","v":""},{"$f":"IF('Enrollment Form'!$O830<>\"Graded\",\"-\",IF(AND('Enrollment Form'!$O830=\"Graded\",'Enrollment Form'!$AR830<>\"\"),\"Y\",\"N\"))","v":"-"},{"$f":"IF($B823=\"N\",\"\",IF(OR('Enrollment Form'!$B830<>\"Subscriber\",'Enrollment Form'!$C830=\"ROC\"),\"-\",IF(AND('Enrollment Form'!$B830=\"Subscriber\",'Enrollment Form'!$C830=\"Enroll\",'Enrollment Form'!$AJ830<>\"\"),\"Y\",\"N\")))","v":""},{"$f":"IF($B823=\"N\",\"\",IF(OR('Enrollment Form'!$B830<>\"Subscriber\",'Enrollment Form'!$C830=\"ROC\"),\"-\",IF(AND('Enrollment Form'!$B830=\"Subscriber\",'Enrollment Form'!$C830=\"Enroll\",'Enrollment Form'!$AK830<>\"\"),\"Y\",\"N\")))","v":""},{"$f":"IF($B823=\"N\",\"\",IF(OR('Enrollment Form'!$B830<>\"Subscriber\",'Enrollment Form'!$C830=\"ROC\"),\"-\",IF(AND('Enrollment Form'!$B830=\"Subscriber\",'Enrollment Form'!$C830=\"Enroll\",'Enrollment Form'!$AL830<>\"\"),\"Y\",\"N\")))","v":""},{"$f":"IF($B823=\"N\",\"\",IF(OR('Enrollment Form'!$B830<>\"Subscriber\",'Enrollment Form'!$C830=\"ROC\"),\"-\",IF(AND('Enrollment Form'!$B830=\"Subscriber\",'Enrollment Form'!$C830=\"Enroll\",'Enrollment Form'!$AP830<>\"\"),\"Y\",\"N\")))","v":""},{"$f":"IF($B823=\"N\",\"\",IF(OR('Enrollment Form'!$B830<>\"Subscriber\",'Enrollment Form'!$C830=\"ROC\"),\"-\",IF(AND('Enrollment Form'!$B830=\"Subscriber\",'Enrollment Form'!$C830=\"Enroll\",'Enrollment Form'!$AQ830<>\"\"),\"Y\",\"N\")))","v":""},{"$f":"IF($B823=\"N\",\"\",IF(OR('Enrollment Form'!$B830<>\"Subscriber\",'Enrollment Form'!$C830=\"ROC\"),\"-\",IF(AND('Enrollment Form'!$B830=\"Subscriber\",'Enrollment Form'!$C830=\"Enroll\",'Enrollment Form'!$AS830<>\"\"),\"Y\",\"N\")))","v":""},{"$f":"IF($B823=\"N\",\"\",IF($Q823=\"-\",\"-\",IF(AND($Q823=\"Y\",'Enrollment Form'!$AS830=\"No\"),\"-\",IF(AND($Q823=\"Y\",'Enrollment Form'!$AS830=\"Yes\",'Enrollment Form'!$AT830<>\"\"),\"Y\",\"N\"))))","v":""},{"$f":"IF($B823=\"N\",\"\",IF(OR('Enrollment Form'!$B830<>\"Subscriber\",'Enrollment Form'!$C830=\"ROC\"),\"-\",IF(AND('Enrollment Form'!$B830=\"Subscriber\",'Enrollment Form'!$C830=\"Enroll\",'Enrollment Form'!$CV830<>\"\"),\"Y\",\"N\")))","v":""},{"$f":"IF($B823=\"N\",\"\",IF($S823=\"-\",\"-\",IF(AND($S823=\"Y\",'Enrollment Form'!$CV830=\"No\"),\"-\",IF(AND($S823=\"Y\",'Enrollment Form'!$CV830=\"Yes\",'Enrollment Form'!$CW830<>\"\"),\"Y\",\"N\"))))","v":""},{"$f":"IF(OR('Enrollment Form'!$AY830=\"Yes\",'Enrollment Form'!$AY830=\"\"),\"-\",IF(OR(AND('Enrollment Form'!$AY830=\"No\",ISERROR(FIND(\"HMO\",VLOOKUP('Enrollment Form'!G830,'Enrollment Form'!H$11:J$1000,3,FALSE),1))=FALSE,COUNTA('Enrollment Form'!$AZ830:$BC830)=4),AND('Enrollment Form'!$AY830=\"No\",ISERROR(FIND(\"HMO\",VLOOKUP('Enrollment Form'!G830,'Enrollment Form'!H$11:J$1000,3,FALSE),1))=FALSE,COUNTA('Enrollment Form'!$BT830:$BW830)=4)),\"Y\",\"N\"))","v":"-"},{"$f":"IF($B823=\"N\",\"\",IF('Enrollment Form'!$B830=\"Subscriber\",\"-\",IF(COUNTA('Enrollment Form'!$BL830,'Enrollment Form'!$BN830)=2,\"Y\",\"N\")))","v":""},{"$f":"IF($B823=\"N\",\"\",IF(OR('Enrollment Form'!$AX830=\"\",'Enrollment Form'!$AX830=\"No\"),\"-\",IF(AND('Enrollment Form'!$AX830=\"Yes\",COUNTA('Enrollment Form'!$CR830)=1),\"Y\",\"N\")))","v":""},{"$f":"IF(OR('Enrollment Form'!$CR830=\"\",'Enrollment Form'!$CR830=\"No\"),\"-\",IF(COUNTA('Enrollment Form'!$CT830:$CU830)=2,\"Y\",\"N\"))","v":"-"},{"$f":"IF($B823=\"N\",\"\",IF(COUNTIF('Enrollment Form'!$DG830:$DP830,\"Other\")=COUNTA('Enrollment Form'!$DK830,'Enrollment Form'!$DH830,'Enrollment Form'!$DN830,'Enrollment Form'!$DQ830),\"Y\",\"N\"))","v":""},{"$f":"IF($B823=\"N\",\"\",IF(OR('Enrollment Form'!B830<>\"Subscriber\",'Enrollment Form'!C830=\"ROC\",COUNTIF('Enrollment Form'!AV830:AW830,\"Yes\")>=1),\"-\",IF(AND('Enrollment Form'!C830=\"Enroll\",COUNTIF('Enrollment Form'!AV830:AW830,\"No\")=2,'Enrollment Form'!AX830=\"\"),\"N\",\"Y\")))","v":""},{"$f":"IF(OR(B823=\"N\",'Enrollment Form'!B830<>\"Subscriber\",'Enrollment Form'!C830=\"ROC\",'Enrollment Form'!O830<>\"Multiple of Salary\"),\"-\",IF(COUNTA('Enrollment Form'!T830:U830)<2,\"N\",\"Y\"))","v":"-"},{"$f":"IF(B823=\"N\",\"\",IF(OR('Enrollment Form'!C830=\"ROC\",'Enrollment Form'!B830<>\"Subscriber\",'Enrollment Form'!O830=\"Waive\",'Enrollment Form'!O830=\"\"),\"-\",IF('Enrollment Form'!P830=\"\",\"N\",\"Y\")))","v":""},{"$f":"IF($B823=\"N\",\"\",IF(AND('Enrollment Form'!$C830=\"ROC\",'Enrollment Form'!$DR830<>\"\"),\"Y\",IF(AND('Enrollment Form'!$C830=\"ROC\",'Enrollment Form'!$DR830=\"\"),\"N\",IF(AND('Enrollment Form'!$C830=\"Enroll\",'Enrollment Form'!$B830=\"Subscriber\",'Enrollment Form'!$CX830=\"No\",'Enrollment Form'!$DR830=\"\"),\"N\",IF(AND('Enrollment Form'!$C830=\"Enroll\",'Enrollment Form'!$B830=\"Subscriber\",'Enrollment Form'!$CX830=\"Yes\"),\"-\",\"Y\")))))","v":""},{"$f":"IF($B823=\"N\",\"\",IF(AND('Enrollment Form'!$C830=\"ROC\",'Enrollment Form'!$DS830<>\"\"),\"Y\",IF(AND('Enrollment Form'!$C830=\"ROC\",'Enrollment Form'!$DS830=\"\"),\"N\",IF(AND('Enrollment Form'!$C830=\"Enroll\",'Enrollment Form'!$B830=\"Subscriber\",'Enrollment Form'!$CX830=\"No\",'Enrollment Form'!$DS830=\"\"),\"N\",IF(AND('Enrollment Form'!$C830=\"Enroll\",'Enrollment Form'!$B830=\"Subscriber\",'Enrollment Form'!$CX830=\"Yes\"),\"-\",\"Y\")))))","v":""},{"$f":"IF('Enrollment Form'!AH830=\"\",\"\",IF(ISERROR(SEARCH(\".\",'Enrollment Form'!AH830,SEARCH(\"@\",'Enrollment Form'!AH830))),\"N\",\"Y\"))","v":""},{"$f":"IF(OR($B823=\"N\",'Enrollment Form'!$G830=\"\"),\"\",IF('Enrollment Form'!$B830<>\"Subscriber\",\"-\",IF(COUNTIF('Enrollment Form'!$AV830:$AW830,\"Yes\")=2,\"N\",\"Y\")))","v":""},{"$f":"IF(OR('Enrollment Form'!$CJ830=\"\",'Enrollment Form'!$CJ830=\"No\"),\"-\",IF(AND('Enrollment Form'!$CJ830=\"Yes\",'Enrollment Form'!$CK830=\"\"),\"N\",\"Y\"))","v":"-"},{"$f":"IF(OR('Enrollment Form'!$CL830=\"\",'Enrollment Form'!$CL830=\"No\"),\"-\",IF(AND('Enrollment Form'!$CL830=\"Yes\",'Enrollment Form'!$CM830=\"\"),\"N\",\"Y\"))","v":"-"},{"$f":"IF(OR('Enrollment Form'!$CN830=\"\",'Enrollment Form'!$CN830=\"No\"),\"-\",IF(AND('Enrollment Form'!$CN830=\"Yes\",'Enrollment Form'!$CO830=\"\"),\"N\",\"Y\"))","v":"-"},{"$f":"IF(OR('Enrollment Form'!$CN830=\"\",'Enrollment Form'!$CN830=\"No\"),\"-\",IF(AND('Enrollment Form'!$CN830=\"Yes\",'Enrollment Form'!$CP830=\"\"),\"N\",\"Y\"))","v":"-"},{"$f":"IF('Enrollment Form'!B830<>\"Subscriber\",\"-\",IF(AND('Enrollment Form'!B830=\"Subscriber\",'Enrollment Form'!C830=\"Enroll\",'Enrollment Form'!AA830=\"\"),\"N\",\"Y\"))","v":"-"},{"$f":"IF(OR('Enrollment Form'!B830=\"Subscriber\",'Enrollment Form'!B830=\"\"),\"-\",IF('Enrollment Form'!BP830=\"\",\"N\",\"Y\"))","v":"-"},{"$f":"IF('Enrollment Form'!B830<>\"Subscriber\",\"-\",IF(AND('Enrollment Form'!B830=\"Subscriber\",'Enrollment Form'!G830=\"\"),\"N\",\"Y\"))","v":"-"},{"$f":"IF('Enrollment Form'!A830=\"\",\"\",IF('Enrollment Form'!B830=\"Subscriber\",\"-\",IF(AND('Enrollment Form'!B830<>\"Subscriber\",'Enrollment Form'!G830='Enrollment Form'!H830),\"N\",\"Y\")))","v":""},0]
[831,{"$f":"IF('Enrollment Form'!$A831<>\"\",\"Y\",\"N\")","v":"N"},{"$f":"IF(AND('Enrollment Form'!$B831=\"\",'Enrollment Form'!$C831<>\"\"),\"N\",IF($B824=\"N\",\"\",\"Y\"))","v":""},{"$f":"IF(OR($B824=\"N\",'Enrollment Form'!G831=\"\"),\"\",IF('Enrollment Form'!$B831<>\"Subscriber\",\"\",IF('Enrollment Form'!$G831='Enrollment Form'!$H831,\"Y\",\"N\")))","v":""},{"$f":"IF($B824=\"N\",\"\",IF(AND(COUNTIFS('Enrollment Form'!$H$11:$H$1000,'Enrollment Form'!$H831,'Enrollment Form'!$B$11:$B$1000,'Enrollment Form'!$B831)>1,'Enrollment Form'!$H831<>\"\"),\"N\",\"Y\"))","v":""},{"$f":"IF($B824=\"N\",\"\",IF(LEN('Enrollment Form'!$Y831)=0,\"\",IF(LEN('Enrollment Form'!$Y831)<>5,\"N\",\"Y\")))","v":""},{"$f":"IF($B824=\"N\",\"\",IF(LEN('Enrollment Form'!$AD831=0),\"\",IF(LEN('Enrollment Form'!$AD831)<>5,\"N\",\"Y\")))","v":""},{"$f":"IF($B824=\"N\",\"\",IF(LEN('Enrollment Form'!$BS831=0),\"\",IF(LEN('Enrollment Form'!$BS831)<>5,\"N\",\"Y\")))","v":""},{"$f":"IF($B824=\"N\",\"\",IF(LEN('Enrollment Form'!$AE831)=0,\"\",IF(LEN('Enrollment Form'!$AE831)<>10,\"N\",\"Y\")))","v":""},{"$f":"IF($B824=\"N\",\"\",IF(LEN('Enrollment Form'!$AF831)=0,\"\",IF(LEN('Enrollment Form'!$AF831)<>10,\"N\",\"Y\")))","v":""},{"$f":"IF('Enrollment Form'!$O831<>\"Graded\",\"-\",IF(AND('Enrollment Form'!$O831=\"Graded\",'Enrollment Form'!$AR831<>\"\"),\"Y\",\"N\"))","v":"-"},{"$f":"IF($B824=\"N\",\"\",IF(OR('Enrollment Form'!$B831<>\"Subscriber\",'Enrollment Form'!$C831=\"ROC\"),\"-\",IF(AND('Enrollment Form'!$B831=\"Subscriber\",'Enrollment Form'!$C831=\"Enroll\",'Enrollment Form'!$AJ831<>\"\"),\"Y\",\"N\")))","v":""},{"$f":"IF($B824=\"N\",\"\",IF(OR('Enrollment Form'!$B831<>\"Subscriber\",'Enrollment Form'!$C831=\"ROC\"),\"-\",IF(AND('Enrollment Form'!$B831=\"Subscriber\",'Enrollment Form'!$C831=\"Enroll\",'Enrollment Form'!$AK831<>\"\"),\"Y\",\"N\")))","v":""},{"$f":"IF($B824=\"N\",\"\",IF(OR('Enrollment Form'!$B831<>\"Subscriber\",'Enrollment Form'!$C831=\"ROC\"),\"-\",IF(AND('Enrollment Form'!$B831=\"Subscriber\",'Enrollment Form'!$C831=\"Enroll\",'Enrollment Form'!$AL831<>\"\"),\"Y\",\"N\")))","v":""},{"$f":"IF($B824=\"N\",\"\",IF(OR('Enrollment Form'!$B831<>\"Subscriber\",'Enrollment Form'!$C831=\"ROC\"),\"-\",IF(AND('Enrollment Form'!$B831=\"Subscriber\",'Enrollment Form'!$C831=\"Enroll\",'Enrollment Form'!$AP831<>\"\"),\"Y\",\"N\")))","v":""},{"$f":"IF($B824=\"N\",\"\",IF(OR('Enrollment Form'!$B831<>\"Subscriber\",'Enrollment Form'!$C831=\"ROC\"),\"-\",IF(AND('Enrollment Form'!$B831=\"Subscriber\",'Enrollment Form'!$C831=\"Enroll\",'Enrollment Form'!$AQ831<>\"\"),\"Y\",\"N\")))","v":""},{"$f":"IF($B824=\"N\",\"\",IF(OR('Enrollment Form'!$B831<>\"Subscriber\",'Enrollment Form'!$C831=\"ROC\"),\"-\",IF(AND('Enrollment Form'!$B831=\"Subscriber\",'Enrollment Form'!$C831=\"Enroll\",'Enrollment Form'!$AS831<>\"\"),\"Y\",\"N\")))","v":""},{"$f":"IF($B824=\"N\",\"\",IF($Q824=\"-\",\"-\",IF(AND($Q824=\"Y\",'Enrollment Form'!$AS831=\"No\"),\"-\",IF(AND($Q824=\"Y\",'Enrollment Form'!$AS831=\"Yes\",'Enrollment Form'!$AT831<>\"\"),\"Y\",\"N\"))))","v":""},{"$f":"IF($B824=\"N\",\"\",IF(OR('Enrollment Form'!$B831<>\"Subscriber\",'Enrollment Form'!$C831=\"ROC\"),\"-\",IF(AND('Enrollment Form'!$B831=\"Subscriber\",'Enrollment Form'!$C831=\"Enroll\",'Enrollment Form'!$CV831<>\"\"),\"Y\",\"N\")))","v":""},{"$f":"IF($B824=\"N\",\"\",IF($S824=\"-\",\"-\",IF(AND($S824=\"Y\",'Enrollment Form'!$CV831=\"No\"),\"-\",IF(AND($S824=\"Y\",'Enrollment Form'!$CV831=\"Yes\",'Enrollment Form'!$CW831<>\"\"),\"Y\",\"N\"))))","v":""},{"$f":"IF(OR('Enrollment Form'!$AY831=\"Yes\",'Enrollment Form'!$AY831=\"\"),\"-\",IF(OR(AND('Enrollment Form'!$AY831=\"No\",ISERROR(FIND(\"HMO\",VLOOKUP('Enrollment Form'!G831,'Enrollment Form'!H$11:J$1000,3,FALSE),1))=FALSE,COUNTA('Enrollment Form'!$AZ831:$BC831)=4),AND('Enrollment Form'!$AY831=\"No\",ISERROR(FIND(\"HMO\",VLOOKUP('Enrollment Form'!G831,'Enrollment Form'!H$11:J$1000,3,FALSE),1))=FALSE,COUNTA('Enrollment Form'!$BT831:$BW831)=4)),\"Y\",\"N\"))","v":"-"},{"$f":"IF($B824=\"N\",\"\",IF('Enrollment Form'!$B831=\"Subscriber\",\"-\",IF(COUNTA('Enrollment Form'!$BL831,'Enrollment Form'!$BN831)=2,\"Y\",\"N\")))","v":""},{"$f":"IF($B824=\"N\",\"\",IF(OR('Enrollment Form'!$AX831=\"\",'Enrollment Form'!$AX831=\"No\"),\"-\",IF(AND('Enrollment Form'!$AX831=\"Yes\",COUNTA('Enrollment Form'!$CR831)=1),\"Y\",\"N\")))","v":""},{"$f":"IF(OR('Enrollment Form'!$CR831=\"\",'Enrollment Form'!$CR831=\"No\"),\"-\",IF(COUNTA('Enrollment Form'!$CT831:$CU831)=2,\"Y\",\"N\"))","v":"-"},{"$f":"IF($B824=\"N\",\"\",IF(COUNTIF('Enrollment Form'!$DG831:$DP831,\"Other\")=COUNTA('Enrollment Form'!$DK831,'Enrollment Form'!$DH831,'Enrollment Form'!$DN831,'Enrollment Form'!$DQ831),\"Y\",\"N\"))","v":""},{"$f":"IF($B824=\"N\",\"\",IF(OR('Enrollment Form'!B831<>\"Subscriber\",'Enrollment Form'!C831=\"ROC\",COUNTIF('Enrollment Form'!AV831:AW831,\"Yes\")>=1),\"-\",IF(AND('Enrollment Form'!C831=\"Enroll\",COUNTIF('Enrollment Form'!AV831:AW831,\"No\")=2,'Enrollment Form'!AX831=\"\"),\"N\",\"Y\")))","v":""},{"$f":"IF(OR(B824=\"N\",'Enrollment Form'!B831<>\"Subscriber\",'Enrollment Form'!C831=\"ROC\",'Enrollment Form'!O831<>\"Multiple of Salary\"),\"-\",IF(COUNTA('Enrollment Form'!T831:U831)<2,\"N\",\"Y\"))","v":"-"},{"$f":"IF(B824=\"N\",\"\",IF(OR('Enrollment Form'!C831=\"ROC\",'Enrollment Form'!B831<>\"Subscriber\",'Enrollment Form'!O831=\"Waive\",'Enrollment Form'!O831=\"\"),\"-\",IF('Enrollment Form'!P831=\"\",\"N\",\"Y\")))","v":""},{"$f":"IF($B824=\"N\",\"\",IF(AND('Enrollment Form'!$C831=\"ROC\",'Enrollment Form'!$DR831<>\"\"),\"Y\",IF(AND('Enrollment Form'!$C831=\"ROC\",'Enrollment Form'!$DR831=\"\"),\"N\",IF(AND('Enrollment Form'!$C831=\"Enroll\",'Enrollment Form'!$B831=\"Subscriber\",'Enrollment Form'!$CX831=\"No\",'Enrollment Form'!$DR831=\"\"),\"N\",IF(AND('Enrollment Form'!$C831=\"Enroll\",'Enrollment Form'!$B831=\"Subscriber\",'Enrollment Form'!$CX831=\"Yes\"),\"-\",\"Y\")))))","v":""},{"$f":"IF($B824=\"N\",\"\",IF(AND('Enrollment Form'!$C831=\"ROC\",'Enrollment Form'!$DS831<>\"\"),\"Y\",IF(AND('Enrollment Form'!$C831=\"ROC\",'Enrollment Form'!$DS831=\"\"),\"N\",IF(AND('Enrollment Form'!$C831=\"Enroll\",'Enrollment Form'!$B831=\"Subscriber\",'Enrollment Form'!$CX831=\"No\",'Enrollment Form'!$DS831=\"\"),\"N\",IF(AND('Enrollment Form'!$C831=\"Enroll\",'Enrollment Form'!$B831=\"Subscriber\",'Enrollment Form'!$CX831=\"Yes\"),\"-\",\"Y\")))))","v":""},{"$f":"IF('Enrollment Form'!AH831=\"\",\"\",IF(ISERROR(SEARCH(\".\",'Enrollment Form'!AH831,SEARCH(\"@\",'Enrollment Form'!AH831))),\"N\",\"Y\"))","v":""},{"$f":"IF(OR($B824=\"N\",'Enrollment Form'!$G831=\"\"),\"\",IF('Enrollment Form'!$B831<>\"Subscriber\",\"-\",IF(COUNTIF('Enrollment Form'!$AV831:$AW831,\"Yes\")=2,\"N\",\"Y\")))","v":""},{"$f":"IF(OR('Enrollment Form'!$CJ831=\"\",'Enrollment Form'!$CJ831=\"No\"),\"-\",IF(AND('Enrollment Form'!$CJ831=\"Yes\",'Enrollment Form'!$CK831=\"\"),\"N\",\"Y\"))","v":"-"},{"$f":"IF(OR('Enrollment Form'!$CL831=\"\",'Enrollment Form'!$CL831=\"No\"),\"-\",IF(AND('Enrollment Form'!$CL831=\"Yes\",'Enrollment Form'!$CM831=\"\"),\"N\",\"Y\"))","v":"-"},{"$f":"IF(OR('Enrollment Form'!$CN831=\"\",'Enrollment Form'!$CN831=\"No\"),\"-\",IF(AND('Enrollment Form'!$CN831=\"Yes\",'Enrollment Form'!$CO831=\"\"),\"N\",\"Y\"))","v":"-"},{"$f":"IF(OR('Enrollment Form'!$CN831=\"\",'Enrollment Form'!$CN831=\"No\"),\"-\",IF(AND('Enrollment Form'!$CN831=\"Yes\",'Enrollment Form'!$CP831=\"\"),\"N\",\"Y\"))","v":"-"},{"$f":"IF('Enrollment Form'!B831<>\"Subscriber\",\"-\",IF(AND('Enrollment Form'!B831=\"Subscriber\",'Enrollment Form'!C831=\"Enroll\",'Enrollment Form'!AA831=\"\"),\"N\",\"Y\"))","v":"-"},{"$f":"IF(OR('Enrollment Form'!B831=\"Subscriber\",'Enrollment Form'!B831=\"\"),\"-\",IF('Enrollment Form'!BP831=\"\",\"N\",\"Y\"))","v":"-"},{"$f":"IF('Enrollment Form'!B831<>\"Subscriber\",\"-\",IF(AND('Enrollment Form'!B831=\"Subscriber\",'Enrollment Form'!G831=\"\"),\"N\",\"Y\"))","v":"-"},{"$f":"IF('Enrollment Form'!A831=\"\",\"\",IF('Enrollment Form'!B831=\"Subscriber\",\"-\",IF(AND('Enrollment Form'!B831<>\"Subscriber\",'Enrollment Form'!G831='Enrollment Form'!H831),\"N\",\"Y\")))","v":""},0]
[832,{"$f":"IF('Enrollment Form'!$A832<>\"\",\"Y\",\"N\")","v":"N"},{"$f":"IF(AND('Enrollment Form'!$B832=\"\",'Enrollment Form'!$C832<>\"\"),\"N\",IF($B825=\"N\",\"\",\"Y\"))","v":""},{"$f":"IF(OR($B825=\"N\",'Enrollment Form'!G832=\"\"),\"\",IF('Enrollment Form'!$B832<>\"Subscriber\",\"\",IF('Enrollment Form'!$G832='Enrollment Form'!$H832,\"Y\",\"N\")))","v":""},{"$f":"IF($B825=\"N\",\"\",IF(AND(COUNTIFS('Enrollment Form'!$H$11:$H$1000,'Enrollment Form'!$H832,'Enrollment Form'!$B$11:$B$1000,'Enrollment Form'!$B832)>1,'Enrollment Form'!$H832<>\"\"),\"N\",\"Y\"))","v":""},{"$f":"IF($B825=\"N\",\"\",IF(LEN('Enrollment Form'!$Y832)=0,\"\",IF(LEN('Enrollment Form'!$Y832)<>5,\"N\",\"Y\")))","v":""},{"$f":"IF($B825=\"N\",\"\",IF(LEN('Enrollment Form'!$AD832=0),\"\",IF(LEN('Enrollment Form'!$AD832)<>5,\"N\",\"Y\")))","v":""},{"$f":"IF($B825=\"N\",\"\",IF(LEN('Enrollment Form'!$BS832=0),\"\",IF(LEN('Enrollment Form'!$BS832)<>5,\"N\",\"Y\")))","v":""},{"$f":"IF($B825=\"N\",\"\",IF(LEN('Enrollment Form'!$AE832)=0,\"\",IF(LEN('Enrollment Form'!$AE832)<>10,\"N\",\"Y\")))","v":""},{"$f":"IF($B825=\"N\",\"\",IF(LEN('Enrollment Form'!$AF832)=0,\"\",IF(LEN('Enrollment Form'!$AF832)<>10,\"N\",\"Y\")))","v":""},{"$f":"IF('Enrollment Form'!$O832<>\"Graded\",\"-\",IF(AND('Enrollment Form'!$O832=\"Graded\",'Enrollment Form'!$AR832<>\"\"),\"Y\",\"N\"))","v":"-"},{"$f":"IF($B825=\"N\",\"\",IF(OR('Enrollment Form'!$B832<>\"Subscriber\",'Enrollment Form'!$C832=\"ROC\"),\"-\",IF(AND('Enrollment Form'!$B832=\"Subscriber\",'Enrollment Form'!$C832=\"Enroll\",'Enrollment Form'!$AJ832<>\"\"),\"Y\",\"N\")))","v":""},{"$f":"IF($B825=\"N\",\"\",IF(OR('Enrollment Form'!$B832<>\"Subscriber\",'Enrollment Form'!$C832=\"ROC\"),\"-\",IF(AND('Enrollment Form'!$B832=\"Subscriber\",'Enrollment Form'!$C832=\"Enroll\",'Enrollment Form'!$AK832<>\"\"),\"Y\",\"N\")))","v":""},{"$f":"IF($B825=\"N\",\"\",IF(OR('Enrollment Form'!$B832<>\"Subscriber\",'Enrollment Form'!$C832=\"ROC\"),\"-\",IF(AND('Enrollment Form'!$B832=\"Subscriber\",'Enrollment Form'!$C832=\"Enroll\",'Enrollment Form'!$AL832<>\"\"),\"Y\",\"N\")))","v":""},{"$f":"IF($B825=\"N\",\"\",IF(OR('Enrollment Form'!$B832<>\"Subscriber\",'Enrollment Form'!$C832=\"ROC\"),\"-\",IF(AND('Enrollment Form'!$B832=\"Subscriber\",'Enrollment Form'!$C832=\"Enroll\",'Enrollment Form'!$AP832<>\"\"),\"Y\",\"N\")))","v":""},{"$f":"IF($B825=\"N\",\"\",IF(OR('Enrollment Form'!$B832<>\"Subscriber\",'Enrollment Form'!$C832=\"ROC\"),\"-\",IF(AND('Enrollment Form'!$B832=\"Subscriber\",'Enrollment Form'!$C832=\"Enroll\",'Enrollment Form'!$AQ832<>\"\"),\"Y\",\"N\")))","v":""},{"$f":"IF($B825=\"N\",\"\",IF(OR('Enrollment Form'!$B832<>\"Subscriber\",'Enrollment Form'!$C832=\"ROC\"),\"-\",IF(AND('Enrollment Form'!$B832=\"Subscriber\",'Enrollment Form'!$C832=\"Enroll\",'Enrollment Form'!$AS832<>\"\"),\"Y\",\"N\")))","v":""},{"$f":"IF($B825=\"N\",\"\",IF($Q825=\"-\",\"-\",IF(AND($Q825=\"Y\",'Enrollment Form'!$AS832=\"No\"),\"-\",IF(AND($Q825=\"Y\",'Enrollment Form'!$AS832=\"Yes\",'Enrollment Form'!$AT832<>\"\"),\"Y\",\"N\"))))","v":""},{"$f":"IF($B825=\"N\",\"\",IF(OR('Enrollment Form'!$B832<>\"Subscriber\",'Enrollment Form'!$C832=\"ROC\"),\"-\",IF(AND('Enrollment Form'!$B832=\"Subscriber\",'Enrollment Form'!$C832=\"Enroll\",'Enrollment Form'!$CV832<>\"\"),\"Y\",\"N\")))","v":""},{"$f":"IF($B825=\"N\",\"\",IF($S825=\"-\",\"-\",IF(AND($S825=\"Y\",'Enrollment Form'!$CV832=\"No\"),\"-\",IF(AND($S825=\"Y\",'Enrollment Form'!$CV832=\"Yes\",'Enrollment Form'!$CW832<>\"\"),\"Y\",\"N\"))))","v":""},{"$f":"IF(OR('Enrollment Form'!$AY832=\"Yes\",'Enrollment Form'!$AY832=\"\"),\"-\",IF(OR(AND('Enrollment Form'!$AY832=\"No\",ISERROR(FIND(\"HMO\",VLOOKUP('Enrollment Form'!G832,'Enrollment Form'!H$11:J$1000,3,FALSE),1))=FALSE,COUNTA('Enrollment Form'!$AZ832:$BC832)=4),AND('Enrollment Form'!$AY832=\"No\",ISERROR(FIND(\"HMO\",VLOOKUP('Enrollment Form'!G832,'Enrollment Form'!H$11:J$1000,3,FALSE),1))=FALSE,COUNTA('Enrollment Form'!$BT832:$BW832)=4)),\"Y\",\"N\"))","v":"-"},{"$f":"IF($B825=\"N\",\"\",IF('Enrollment Form'!$B832=\"Subscriber\",\"-\",IF(COUNTA('Enrollment Form'!$BL832,'Enrollment Form'!$BN832)=2,\"Y\",\"N\")))","v":""},{"$f":"IF($B825=\"N\",\"\",IF(OR('Enrollment Form'!$AX832=\"\",'Enrollment Form'!$AX832=\"No\"),\"-\",IF(AND('Enrollment Form'!$AX832=\"Yes\",COUNTA('Enrollment Form'!$CR832)=1),\"Y\",\"N\")))","v":""},{"$f":"IF(OR('Enrollment Form'!$CR832=\"\",'Enrollment Form'!$CR832=\"No\"),\"-\",IF(COUNTA('Enrollment Form'!$CT832:$CU832)=2,\"Y\",\"N\"))","v":"-"},{"$f":"IF($B825=\"N\",\"\",IF(COUNTIF('Enrollment Form'!$DG832:$DP832,\"Other\")=COUNTA('Enrollment Form'!$DK832,'Enrollment Form'!$DH832,'Enrollment Form'!$DN832,'Enrollment Form'!$DQ832),\"Y\",\"N\"))","v":""},{"$f":"IF($B825=\"N\",\"\",IF(OR('Enrollment Form'!B832<>\"Subscriber\",'Enrollment Form'!C832=\"ROC\",COUNTIF('Enrollment Form'!AV832:AW832,\"Yes\")>=1),\"-\",IF(AND('Enrollment Form'!C832=\"Enroll\",COUNTIF('Enrollment Form'!AV832:AW832,\"No\")=2,'Enrollment Form'!AX832=\"\"),\"N\",\"Y\")))","v":""},{"$f":"IF(OR(B825=\"N\",'Enrollment Form'!B832<>\"Subscriber\",'Enrollment Form'!C832=\"ROC\",'Enrollment Form'!O832<>\"Multiple of Salary\"),\"-\",IF(COUNTA('Enrollment Form'!T832:U832)<2,\"N\",\"Y\"))","v":"-"},{"$f":"IF(B825=\"N\",\"\",IF(OR('Enrollment Form'!C832=\"ROC\",'Enrollment Form'!B832<>\"Subscriber\",'Enrollment Form'!O832=\"Waive\",'Enrollment Form'!O832=\"\"),\"-\",IF('Enrollment Form'!P832=\"\",\"N\",\"Y\")))","v":""},{"$f":"IF($B825=\"N\",\"\",IF(AND('Enrollment Form'!$C832=\"ROC\",'Enrollment Form'!$DR832<>\"\"),\"Y\",IF(AND('Enrollment Form'!$C832=\"ROC\",'Enrollment Form'!$DR832=\"\"),\"N\",IF(AND('Enrollment Form'!$C832=\"Enroll\",'Enrollment Form'!$B832=\"Subscriber\",'Enrollment Form'!$CX832=\"No\",'Enrollment Form'!$DR832=\"\"),\"N\",IF(AND('Enrollment Form'!$C832=\"Enroll\",'Enrollment Form'!$B832=\"Subscriber\",'Enrollment Form'!$CX832=\"Yes\"),\"-\",\"Y\")))))","v":""},{"$f":"IF($B825=\"N\",\"\",IF(AND('Enrollment Form'!$C832=\"ROC\",'Enrollment Form'!$DS832<>\"\"),\"Y\",IF(AND('Enrollment Form'!$C832=\"ROC\",'Enrollment Form'!$DS832=\"\"),\"N\",IF(AND('Enrollment Form'!$C832=\"Enroll\",'Enrollment Form'!$B832=\"Subscriber\",'Enrollment Form'!$CX832=\"No\",'Enrollment Form'!$DS832=\"\"),\"N\",IF(AND('Enrollment Form'!$C832=\"Enroll\",'Enrollment Form'!$B832=\"Subscriber\",'Enrollment Form'!$CX832=\"Yes\"),\"-\",\"Y\")))))","v":""},{"$f":"IF('Enrollment Form'!AH832=\"\",\"\",IF(ISERROR(SEARCH(\".\",'Enrollment Form'!AH832,SEARCH(\"@\",'Enrollment Form'!AH832))),\"N\",\"Y\"))","v":""},{"$f":"IF(OR($B825=\"N\",'Enrollment Form'!$G832=\"\"),\"\",IF('Enrollment Form'!$B832<>\"Subscriber\",\"-\",IF(COUNTIF('Enrollment Form'!$AV832:$AW832,\"Yes\")=2,\"N\",\"Y\")))","v":""},{"$f":"IF(OR('Enrollment Form'!$CJ832=\"\",'Enrollment Form'!$CJ832=\"No\"),\"-\",IF(AND('Enrollment Form'!$CJ832=\"Yes\",'Enrollment Form'!$CK832=\"\"),\"N\",\"Y\"))","v":"-"},{"$f":"IF(OR('Enrollment Form'!$CL832=\"\",'Enrollment Form'!$CL832=\"No\"),\"-\",IF(AND('Enrollment Form'!$CL832=\"Yes\",'Enrollment Form'!$CM832=\"\"),\"N\",\"Y\"))","v":"-"},{"$f":"IF(OR('Enrollment Form'!$CN832=\"\",'Enrollment Form'!$CN832=\"No\"),\"-\",IF(AND('Enrollment Form'!$CN832=\"Yes\",'Enrollment Form'!$CO832=\"\"),\"N\",\"Y\"))","v":"-"},{"$f":"IF(OR('Enrollment Form'!$CN832=\"\",'Enrollment Form'!$CN832=\"No\"),\"-\",IF(AND('Enrollment Form'!$CN832=\"Yes\",'Enrollment Form'!$CP832=\"\"),\"N\",\"Y\"))","v":"-"},{"$f":"IF('Enrollment Form'!B832<>\"Subscriber\",\"-\",IF(AND('Enrollment Form'!B832=\"Subscriber\",'Enrollment Form'!C832=\"Enroll\",'Enrollment Form'!AA832=\"\"),\"N\",\"Y\"))","v":"-"},{"$f":"IF(OR('Enrollment Form'!B832=\"Subscriber\",'Enrollment Form'!B832=\"\"),\"-\",IF('Enrollment Form'!BP832=\"\",\"N\",\"Y\"))","v":"-"},{"$f":"IF('Enrollment Form'!B832<>\"Subscriber\",\"-\",IF(AND('Enrollment Form'!B832=\"Subscriber\",'Enrollment Form'!G832=\"\"),\"N\",\"Y\"))","v":"-"},{"$f":"IF('Enrollment Form'!A832=\"\",\"\",IF('Enrollment Form'!B832=\"Subscriber\",\"-\",IF(AND('Enrollment Form'!B832<>\"Subscriber\",'Enrollment Form'!G832='Enrollment Form'!H832),\"N\",\"Y\")))","v":""},0]
[833,{"$f":"IF('Enrollment Form'!$A833<>\"\",\"Y\",\"N\")","v":"N"},{"$f":"IF(AND('Enrollment Form'!$B833=\"\",'Enrollment Form'!$C833<>\"\"),\"N\",IF($B826=\"N\",\"\",\"Y\"))","v":""},{"$f":"IF(OR($B826=\"N\",'Enrollment Form'!G833=\"\"),\"\",IF('Enrollment Form'!$B833<>\"Subscriber\",\"\",IF('Enrollment Form'!$G833='Enrollment Form'!$H833,\"Y\",\"N\")))","v":""},{"$f":"IF($B826=\"N\",\"\",IF(AND(COUNTIFS('Enrollment Form'!$H$11:$H$1000,'Enrollment Form'!$H833,'Enrollment Form'!$B$11:$B$1000,'Enrollment Form'!$B833)>1,'Enrollment Form'!$H833<>\"\"),\"N\",\"Y\"))","v":""},{"$f":"IF($B826=\"N\",\"\",IF(LEN('Enrollment Form'!$Y833)=0,\"\",IF(LEN('Enrollment Form'!$Y833)<>5,\"N\",\"Y\")))","v":""},{"$f":"IF($B826=\"N\",\"\",IF(LEN('Enrollment Form'!$AD833=0),\"\",IF(LEN('Enrollment Form'!$AD833)<>5,\"N\",\"Y\")))","v":""},{"$f":"IF($B826=\"N\",\"\",IF(LEN('Enrollment Form'!$BS833=0),\"\",IF(LEN('Enrollment Form'!$BS833)<>5,\"N\",\"Y\")))","v":""},{"$f":"IF($B826=\"N\",\"\",IF(LEN('Enrollment Form'!$AE833)=0,\"\",IF(LEN('Enrollment Form'!$AE833)<>10,\"N\",\"Y\")))","v":""},{"$f":"IF($B826=\"N\",\"\",IF(LEN('Enrollment Form'!$AF833)=0,\"\",IF(LEN('Enrollment Form'!$AF833)<>10,\"N\",\"Y\")))","v":""},{"$f":"IF('Enrollment Form'!$O833<>\"Graded\",\"-\",IF(AND('Enrollment Form'!$O833=\"Graded\",'Enrollment Form'!$AR833<>\"\"),\"Y\",\"N\"))","v":"-"},{"$f":"IF($B826=\"N\",\"\",IF(OR('Enrollment Form'!$B833<>\"Subscriber\",'Enrollment Form'!$C833=\"ROC\"),\"-\",IF(AND('Enrollment Form'!$B833=\"Subscriber\",'Enrollment Form'!$C833=\"Enroll\",'Enrollment Form'!$AJ833<>\"\"),\"Y\",\"N\")))","v":""},{"$f":"IF($B826=\"N\",\"\",IF(OR('Enrollment Form'!$B833<>\"Subscriber\",'Enrollment Form'!$C833=\"ROC\"),\"-\",IF(AND('Enrollment Form'!$B833=\"Subscriber\",'Enrollment Form'!$C833=\"Enroll\",'Enrollment Form'!$AK833<>\"\"),\"Y\",\"N\")))","v":""},{"$f":"IF($B826=\"N\",\"\",IF(OR('Enrollment Form'!$B833<>\"Subscriber\",'Enrollment Form'!$C833=\"ROC\"),\"-\",IF(AND('Enrollment Form'!$B833=\"Subscriber\",'Enrollment Form'!$C833=\"Enroll\",'Enrollment Form'!$AL833<>\"\"),\"Y\",\"N\")))","v":""},{"$f":"IF($B826=\"N\",\"\",IF(OR('Enrollment Form'!$B833<>\"Subscriber\",'Enrollment Form'!$C833=\"ROC\"),\"-\",IF(AND('Enrollment Form'!$B833=\"Subscriber\",'Enrollment Form'!$C833=\"Enroll\",'Enrollment Form'!$AP833<>\"\"),\"Y\",\"N\")))","v":""},{"$f":"IF($B826=\"N\",\"\",IF(OR('Enrollment Form'!$B833<>\"Subscriber\",'Enrollment Form'!$C833=\"ROC\"),\"-\",IF(AND('Enrollment Form'!$B833=\"Subscriber\",'Enrollment Form'!$C833=\"Enroll\",'Enrollment Form'!$AQ833<>\"\"),\"Y\",\"N\")))","v":""},{"$f":"IF($B826=\"N\",\"\",IF(OR('Enrollment Form'!$B833<>\"Subscriber\",'Enrollment Form'!$C833=\"ROC\"),\"-\",IF(AND('Enrollment Form'!$B833=\"Subscriber\",'Enrollment Form'!$C833=\"Enroll\",'Enrollment Form'!$AS833<>\"\"),\"Y\",\"N\")))","v":""},{"$f":"IF($B826=\"N\",\"\",IF($Q826=\"-\",\"-\",IF(AND($Q826=\"Y\",'Enrollment Form'!$AS833=\"No\"),\"-\",IF(AND($Q826=\"Y\",'Enrollment Form'!$AS833=\"Yes\",'Enrollment Form'!$AT833<>\"\"),\"Y\",\"N\"))))","v":""},{"$f":"IF($B826=\"N\",\"\",IF(OR('Enrollment Form'!$B833<>\"Subscriber\",'Enrollment Form'!$C833=\"ROC\"),\"-\",IF(AND('Enrollment Form'!$B833=\"Subscriber\",'Enrollment Form'!$C833=\"Enroll\",'Enrollment Form'!$CV833<>\"\"),\"Y\",\"N\")))","v":""},{"$f":"IF($B826=\"N\",\"\",IF($S826=\"-\",\"-\",IF(AND($S826=\"Y\",'Enrollment Form'!$CV833=\"No\"),\"-\",IF(AND($S826=\"Y\",'Enrollment Form'!$CV833=\"Yes\",'Enrollment Form'!$CW833<>\"\"),\"Y\",\"N\"))))","v":""},{"$f":"IF(OR('Enrollment Form'!$AY833=\"Yes\",'Enrollment Form'!$AY833=\"\"),\"-\",IF(OR(AND('Enrollment Form'!$AY833=\"No\",ISERROR(FIND(\"HMO\",VLOOKUP('Enrollment Form'!G833,'Enrollment Form'!H$11:J$1000,3,FALSE),1))=FALSE,COUNTA('Enrollment Form'!$AZ833:$BC833)=4),AND('Enrollment Form'!$AY833=\"No\",ISERROR(FIND(\"HMO\",VLOOKUP('Enrollment Form'!G833,'Enrollment Form'!H$11:J$1000,3,FALSE),1))=FALSE,COUNTA('Enrollment Form'!$BT833:$BW833)=4)),\"Y\",\"N\"))","v":"-"},{"$f":"IF($B826=\"N\",\"\",IF('Enrollment Form'!$B833=\"Subscriber\",\"-\",IF(COUNTA('Enrollment Form'!$BL833,'Enrollment Form'!$BN833)=2,\"Y\",\"N\")))","v":""},{"$f":"IF($B826=\"N\",\"\",IF(OR('Enrollment Form'!$AX833=\"\",'Enrollment Form'!$AX833=\"No\"),\"-\",IF(AND('Enrollment Form'!$AX833=\"Yes\",COUNTA('Enrollment Form'!$CR833)=1),\"Y\",\"N\")))","v":""},{"$f":"IF(OR('Enrollment Form'!$CR833=\"\",'Enrollment Form'!$CR833=\"No\"),\"-\",IF(COUNTA('Enrollment Form'!$CT833:$CU833)=2,\"Y\",\"N\"))","v":"-"},{"$f":"IF($B826=\"N\",\"\",IF(COUNTIF('Enrollment Form'!$DG833:$DP833,\"Other\")=COUNTA('Enrollment Form'!$DK833,'Enrollment Form'!$DH833,'Enrollment Form'!$DN833,'Enrollment Form'!$DQ833),\"Y\",\"N\"))","v":""},{"$f":"IF($B826=\"N\",\"\",IF(OR('Enrollment Form'!B833<>\"Subscriber\",'Enrollment Form'!C833=\"ROC\",COUNTIF('Enrollment Form'!AV833:AW833,\"Yes\")>=1),\"-\",IF(AND('Enrollment Form'!C833=\"Enroll\",COUNTIF('Enrollment Form'!AV833:AW833,\"No\")=2,'Enrollment Form'!AX833=\"\"),\"N\",\"Y\")))","v":""},{"$f":"IF(OR(B826=\"N\",'Enrollment Form'!B833<>\"Subscriber\",'Enrollment Form'!C833=\"ROC\",'Enrollment Form'!O833<>\"Multiple of Salary\"),\"-\",IF(COUNTA('Enrollment Form'!T833:U833)<2,\"N\",\"Y\"))","v":"-"},{"$f":"IF(B826=\"N\",\"\",IF(OR('Enrollment Form'!C833=\"ROC\",'Enrollment Form'!B833<>\"Subscriber\",'Enrollment Form'!O833=\"Waive\",'Enrollment Form'!O833=\"\"),\"-\",IF('Enrollment Form'!P833=\"\",\"N\",\"Y\")))","v":""},{"$f":"IF($B826=\"N\",\"\",IF(AND('Enrollment Form'!$C833=\"ROC\",'Enrollment Form'!$DR833<>\"\"),\"Y\",IF(AND('Enrollment Form'!$C833=\"ROC\",'Enrollment Form'!$DR833=\"\"),\"N\",IF(AND('Enrollment Form'!$C833=\"Enroll\",'Enrollment Form'!$B833=\"Subscriber\",'Enrollment Form'!$CX833=\"No\",'Enrollment Form'!$DR833=\"\"),\"N\",IF(AND('Enrollment Form'!$C833=\"Enroll\",'Enrollment Form'!$B833=\"Subscriber\",'Enrollment Form'!$CX833=\"Yes\"),\"-\",\"Y\")))))","v":""},{"$f":"IF($B826=\"N\",\"\",IF(AND('Enrollment Form'!$C833=\"ROC\",'Enrollment Form'!$DS833<>\"\"),\"Y\",IF(AND('Enrollment Form'!$C833=\"ROC\",'Enrollment Form'!$DS833=\"\"),\"N\",IF(AND('Enrollment Form'!$C833=\"Enroll\",'Enrollment Form'!$B833=\"Subscriber\",'Enrollment Form'!$CX833=\"No\",'Enrollment Form'!$DS833=\"\"),\"N\",IF(AND('Enrollment Form'!$C833=\"Enroll\",'Enrollment Form'!$B833=\"Subscriber\",'Enrollment Form'!$CX833=\"Yes\"),\"-\",\"Y\")))))","v":""},{"$f":"IF('Enrollment Form'!AH833=\"\",\"\",IF(ISERROR(SEARCH(\".\",'Enrollment Form'!AH833,SEARCH(\"@\",'Enrollment Form'!AH833))),\"N\",\"Y\"))","v":""},{"$f":"IF(OR($B826=\"N\",'Enrollment Form'!$G833=\"\"),\"\",IF('Enrollment Form'!$B833<>\"Subscriber\",\"-\",IF(COUNTIF('Enrollment Form'!$AV833:$AW833,\"Yes\")=2,\"N\",\"Y\")))","v":""},{"$f":"IF(OR('Enrollment Form'!$CJ833=\"\",'Enrollment Form'!$CJ833=\"No\"),\"-\",IF(AND('Enrollment Form'!$CJ833=\"Yes\",'Enrollment Form'!$CK833=\"\"),\"N\",\"Y\"))","v":"-"},{"$f":"IF(OR('Enrollment Form'!$CL833=\"\",'Enrollment Form'!$CL833=\"No\"),\"-\",IF(AND('Enrollment Form'!$CL833=\"Yes\",'Enrollment Form'!$CM833=\"\"),\"N\",\"Y\"))","v":"-"},{"$f":"IF(OR('Enrollment Form'!$CN833=\"\",'Enrollment Form'!$CN833=\"No\"),\"-\",IF(AND('Enrollment Form'!$CN833=\"Yes\",'Enrollment Form'!$CO833=\"\"),\"N\",\"Y\"))","v":"-"},{"$f":"IF(OR('Enrollment Form'!$CN833=\"\",'Enrollment Form'!$CN833=\"No\"),\"-\",IF(AND('Enrollment Form'!$CN833=\"Yes\",'Enrollment Form'!$CP833=\"\"),\"N\",\"Y\"))","v":"-"},{"$f":"IF('Enrollment Form'!B833<>\"Subscriber\",\"-\",IF(AND('Enrollment Form'!B833=\"Subscriber\",'Enrollment Form'!C833=\"Enroll\",'Enrollment Form'!AA833=\"\"),\"N\",\"Y\"))","v":"-"},{"$f":"IF(OR('Enrollment Form'!B833=\"Subscriber\",'Enrollment Form'!B833=\"\"),\"-\",IF('Enrollment Form'!BP833=\"\",\"N\",\"Y\"))","v":"-"},{"$f":"IF('Enrollment Form'!B833<>\"Subscriber\",\"-\",IF(AND('Enrollment Form'!B833=\"Subscriber\",'Enrollment Form'!G833=\"\"),\"N\",\"Y\"))","v":"-"},{"$f":"IF('Enrollment Form'!A833=\"\",\"\",IF('Enrollment Form'!B833=\"Subscriber\",\"-\",IF(AND('Enrollment Form'!B833<>\"Subscriber\",'Enrollment Form'!G833='Enrollment Form'!H833),\"N\",\"Y\")))","v":""},0]
[834,{"$f":"IF('Enrollment Form'!$A834<>\"\",\"Y\",\"N\")","v":"N"},{"$f":"IF(AND('Enrollment Form'!$B834=\"\",'Enrollment Form'!$C834<>\"\"),\"N\",IF($B827=\"N\",\"\",\"Y\"))","v":""},{"$f":"IF(OR($B827=\"N\",'Enrollment Form'!G834=\"\"),\"\",IF('Enrollment Form'!$B834<>\"Subscriber\",\"\",IF('Enrollment Form'!$G834='Enrollment Form'!$H834,\"Y\",\"N\")))","v":""},{"$f":"IF($B827=\"N\",\"\",IF(AND(COUNTIFS('Enrollment Form'!$H$11:$H$1000,'Enrollment Form'!$H834,'Enrollment Form'!$B$11:$B$1000,'Enrollment Form'!$B834)>1,'Enrollment Form'!$H834<>\"\"),\"N\",\"Y\"))","v":""},{"$f":"IF($B827=\"N\",\"\",IF(LEN('Enrollment Form'!$Y834)=0,\"\",IF(LEN('Enrollment Form'!$Y834)<>5,\"N\",\"Y\")))","v":""},{"$f":"IF($B827=\"N\",\"\",IF(LEN('Enrollment Form'!$AD834=0),\"\",IF(LEN('Enrollment Form'!$AD834)<>5,\"N\",\"Y\")))","v":""},{"$f":"IF($B827=\"N\",\"\",IF(LEN('Enrollment Form'!$BS834=0),\"\",IF(LEN('Enrollment Form'!$BS834)<>5,\"N\",\"Y\")))","v":""},{"$f":"IF($B827=\"N\",\"\",IF(LEN('Enrollment Form'!$AE834)=0,\"\",IF(LEN('Enrollment Form'!$AE834)<>10,\"N\",\"Y\")))","v":""},{"$f":"IF($B827=\"N\",\"\",IF(LEN('Enrollment Form'!$AF834)=0,\"\",IF(LEN('Enrollment Form'!$AF834)<>10,\"N\",\"Y\")))","v":""},{"$f":"IF('Enrollment Form'!$O834<>\"Graded\",\"-\",IF(AND('Enrollment Form'!$O834=\"Graded\",'Enrollment Form'!$AR834<>\"\"),\"Y\",\"N\"))","v":"-"},{"$f":"IF($B827=\"N\",\"\",IF(OR('Enrollment Form'!$B834<>\"Subscriber\",'Enrollment Form'!$C834=\"ROC\"),\"-\",IF(AND('Enrollment Form'!$B834=\"Subscriber\",'Enrollment Form'!$C834=\"Enroll\",'Enrollment Form'!$AJ834<>\"\"),\"Y\",\"N\")))","v":""},{"$f":"IF($B827=\"N\",\"\",IF(OR('Enrollment Form'!$B834<>\"Subscriber\",'Enrollment Form'!$C834=\"ROC\"),\"-\",IF(AND('Enrollment Form'!$B834=\"Subscriber\",'Enrollment Form'!$C834=\"Enroll\",'Enrollment Form'!$AK834<>\"\"),\"Y\",\"N\")))","v":""},{"$f":"IF($B827=\"N\",\"\",IF(OR('Enrollment Form'!$B834<>\"Subscriber\",'Enrollment Form'!$C834=\"ROC\"),\"-\",IF(AND('Enrollment Form'!$B834=\"Subscriber\",'Enrollment Form'!$C834=\"Enroll\",'Enrollment Form'!$AL834<>\"\"),\"Y\",\"N\")))","v":""},{"$f":"IF($B827=\"N\",\"\",IF(OR('Enrollment Form'!$B834<>\"Subscriber\",'Enrollment Form'!$C834=\"ROC\"),\"-\",IF(AND('Enrollment Form'!$B834=\"Subscriber\",'Enrollment Form'!$C834=\"Enroll\",'Enrollment Form'!$AP834<>\"\"),\"Y\",\"N\")))","v":""},{"$f":"IF($B827=\"N\",\"\",IF(OR('Enrollment Form'!$B834<>\"Subscriber\",'Enrollment Form'!$C834=\"ROC\"),\"-\",IF(AND('Enrollment Form'!$B834=\"Subscriber\",'Enrollment Form'!$C834=\"Enroll\",'Enrollment Form'!$AQ834<>\"\"),\"Y\",\"N\")))","v":""},{"$f":"IF($B827=\"N\",\"\",IF(OR('Enrollment Form'!$B834<>\"Subscriber\",'Enrollment Form'!$C834=\"ROC\"),\"-\",IF(AND('Enrollment Form'!$B834=\"Subscriber\",'Enrollment Form'!$C834=\"Enroll\",'Enrollment Form'!$AS834<>\"\"),\"Y\",\"N\")))","v":""},{"$f":"IF($B827=\"N\",\"\",IF($Q827=\"-\",\"-\",IF(AND($Q827=\"Y\",'Enrollment Form'!$AS834=\"No\"),\"-\",IF(AND($Q827=\"Y\",'Enrollment Form'!$AS834=\"Yes\",'Enrollment Form'!$AT834<>\"\"),\"Y\",\"N\"))))","v":""},{"$f":"IF($B827=\"N\",\"\",IF(OR('Enrollment Form'!$B834<>\"Subscriber\",'Enrollment Form'!$C834=\"ROC\"),\"-\",IF(AND('Enrollment Form'!$B834=\"Subscriber\",'Enrollment Form'!$C834=\"Enroll\",'Enrollment Form'!$CV834<>\"\"),\"Y\",\"N\")))","v":""},{"$f":"IF($B827=\"N\",\"\",IF($S827=\"-\",\"-\",IF(AND($S827=\"Y\",'Enrollment Form'!$CV834=\"No\"),\"-\",IF(AND($S827=\"Y\",'Enrollment Form'!$CV834=\"Yes\",'Enrollment Form'!$CW834<>\"\"),\"Y\",\"N\"))))","v":""},{"$f":"IF(OR('Enrollment Form'!$AY834=\"Yes\",'Enrollment Form'!$AY834=\"\"),\"-\",IF(OR(AND('Enrollment Form'!$AY834=\"No\",ISERROR(FIND(\"HMO\",VLOOKUP('Enrollment Form'!G834,'Enrollment Form'!H$11:J$1000,3,FALSE),1))=FALSE,COUNTA('Enrollment Form'!$AZ834:$BC834)=4),AND('Enrollment Form'!$AY834=\"No\",ISERROR(FIND(\"HMO\",VLOOKUP('Enrollment Form'!G834,'Enrollment Form'!H$11:J$1000,3,FALSE),1))=FALSE,COUNTA('Enrollment Form'!$BT834:$BW834)=4)),\"Y\",\"N\"))","v":"-"},{"$f":"IF($B827=\"N\",\"\",IF('Enrollment Form'!$B834=\"Subscriber\",\"-\",IF(COUNTA('Enrollment Form'!$BL834,'Enrollment Form'!$BN834)=2,\"Y\",\"N\")))","v":""},{"$f":"IF($B827=\"N\",\"\",IF(OR('Enrollment Form'!$AX834=\"\",'Enrollment Form'!$AX834=\"No\"),\"-\",IF(AND('Enrollment Form'!$AX834=\"Yes\",COUNTA('Enrollment Form'!$CR834)=1),\"Y\",\"N\")))","v":""},{"$f":"IF(OR('Enrollment Form'!$CR834=\"\",'Enrollment Form'!$CR834=\"No\"),\"-\",IF(COUNTA('Enrollment Form'!$CT834:$CU834)=2,\"Y\",\"N\"))","v":"-"},{"$f":"IF($B827=\"N\",\"\",IF(COUNTIF('Enrollment Form'!$DG834:$DP834,\"Other\")=COUNTA('Enrollment Form'!$DK834,'Enrollment Form'!$DH834,'Enrollment Form'!$DN834,'Enrollment Form'!$DQ834),\"Y\",\"N\"))","v":""},{"$f":"IF($B827=\"N\",\"\",IF(OR('Enrollment Form'!B834<>\"Subscriber\",'Enrollment Form'!C834=\"ROC\",COUNTIF('Enrollment Form'!AV834:AW834,\"Yes\")>=1),\"-\",IF(AND('Enrollment Form'!C834=\"Enroll\",COUNTIF('Enrollment Form'!AV834:AW834,\"No\")=2,'Enrollment Form'!AX834=\"\"),\"N\",\"Y\")))","v":""},{"$f":"IF(OR(B827=\"N\",'Enrollment Form'!B834<>\"Subscriber\",'Enrollment Form'!C834=\"ROC\",'Enrollment Form'!O834<>\"Multiple of Salary\"),\"-\",IF(COUNTA('Enrollment Form'!T834:U834)<2,\"N\",\"Y\"))","v":"-"},{"$f":"IF(B827=\"N\",\"\",IF(OR('Enrollment Form'!C834=\"ROC\",'Enrollment Form'!B834<>\"Subscriber\",'Enrollment Form'!O834=\"Waive\",'Enrollment Form'!O834=\"\"),\"-\",IF('Enrollment Form'!P834=\"\",\"N\",\"Y\")))","v":""},{"$f":"IF($B827=\"N\",\"\",IF(AND('Enrollment Form'!$C834=\"ROC\",'Enrollment Form'!$DR834<>\"\"),\"Y\",IF(AND('Enrollment Form'!$C834=\"ROC\",'Enrollment Form'!$DR834=\"\"),\"N\",IF(AND('Enrollment Form'!$C834=\"Enroll\",'Enrollment Form'!$B834=\"Subscriber\",'Enrollment Form'!$CX834=\"No\",'Enrollment Form'!$DR834=\"\"),\"N\",IF(AND('Enrollment Form'!$C834=\"Enroll\",'Enrollment Form'!$B834=\"Subscriber\",'Enrollment Form'!$CX834=\"Yes\"),\"-\",\"Y\")))))","v":""},{"$f":"IF($B827=\"N\",\"\",IF(AND('Enrollment Form'!$C834=\"ROC\",'Enrollment Form'!$DS834<>\"\"),\"Y\",IF(AND('Enrollment Form'!$C834=\"ROC\",'Enrollment Form'!$DS834=\"\"),\"N\",IF(AND('Enrollment Form'!$C834=\"Enroll\",'Enrollment Form'!$B834=\"Subscriber\",'Enrollment Form'!$CX834=\"No\",'Enrollment Form'!$DS834=\"\"),\"N\",IF(AND('Enrollment Form'!$C834=\"Enroll\",'Enrollment Form'!$B834=\"Subscriber\",'Enrollment Form'!$CX834=\"Yes\"),\"-\",\"Y\")))))","v":""},{"$f":"IF('Enrollment Form'!AH834=\"\",\"\",IF(ISERROR(SEARCH(\".\",'Enrollment Form'!AH834,SEARCH(\"@\",'Enrollment Form'!AH834))),\"N\",\"Y\"))","v":""},{"$f":"IF(OR($B827=\"N\",'Enrollment Form'!$G834=\"\"),\"\",IF('Enrollment Form'!$B834<>\"Subscriber\",\"-\",IF(COUNTIF('Enrollment Form'!$AV834:$AW834,\"Yes\")=2,\"N\",\"Y\")))","v":""},{"$f":"IF(OR('Enrollment Form'!$CJ834=\"\",'Enrollment Form'!$CJ834=\"No\"),\"-\",IF(AND('Enrollment Form'!$CJ834=\"Yes\",'Enrollment Form'!$CK834=\"\"),\"N\",\"Y\"))","v":"-"},{"$f":"IF(OR('Enrollment Form'!$CL834=\"\",'Enrollment Form'!$CL834=\"No\"),\"-\",IF(AND('Enrollment Form'!$CL834=\"Yes\",'Enrollment Form'!$CM834=\"\"),\"N\",\"Y\"))","v":"-"},{"$f":"IF(OR('Enrollment Form'!$CN834=\"\",'Enrollment Form'!$CN834=\"No\"),\"-\",IF(AND('Enrollment Form'!$CN834=\"Yes\",'Enrollment Form'!$CO834=\"\"),\"N\",\"Y\"))","v":"-"},{"$f":"IF(OR('Enrollment Form'!$CN834=\"\",'Enrollment Form'!$CN834=\"No\"),\"-\",IF(AND('Enrollment Form'!$CN834=\"Yes\",'Enrollment Form'!$CP834=\"\"),\"N\",\"Y\"))","v":"-"},{"$f":"IF('Enrollment Form'!B834<>\"Subscriber\",\"-\",IF(AND('Enrollment Form'!B834=\"Subscriber\",'Enrollment Form'!C834=\"Enroll\",'Enrollment Form'!AA834=\"\"),\"N\",\"Y\"))","v":"-"},{"$f":"IF(OR('Enrollment Form'!B834=\"Subscriber\",'Enrollment Form'!B834=\"\"),\"-\",IF('Enrollment Form'!BP834=\"\",\"N\",\"Y\"))","v":"-"},{"$f":"IF('Enrollment Form'!B834<>\"Subscriber\",\"-\",IF(AND('Enrollment Form'!B834=\"Subscriber\",'Enrollment Form'!G834=\"\"),\"N\",\"Y\"))","v":"-"},{"$f":"IF('Enrollment Form'!A834=\"\",\"\",IF('Enrollment Form'!B834=\"Subscriber\",\"-\",IF(AND('Enrollment Form'!B834<>\"Subscriber\",'Enrollment Form'!G834='Enrollment Form'!H834),\"N\",\"Y\")))","v":""},0]
[835,{"$f":"IF('Enrollment Form'!$A835<>\"\",\"Y\",\"N\")","v":"N"},{"$f":"IF(AND('Enrollment Form'!$B835=\"\",'Enrollment Form'!$C835<>\"\"),\"N\",IF($B828=\"N\",\"\",\"Y\"))","v":""},{"$f":"IF(OR($B828=\"N\",'Enrollment Form'!G835=\"\"),\"\",IF('Enrollment Form'!$B835<>\"Subscriber\",\"\",IF('Enrollment Form'!$G835='Enrollment Form'!$H835,\"Y\",\"N\")))","v":""},{"$f":"IF($B828=\"N\",\"\",IF(AND(COUNTIFS('Enrollment Form'!$H$11:$H$1000,'Enrollment Form'!$H835,'Enrollment Form'!$B$11:$B$1000,'Enrollment Form'!$B835)>1,'Enrollment Form'!$H835<>\"\"),\"N\",\"Y\"))","v":""},{"$f":"IF($B828=\"N\",\"\",IF(LEN('Enrollment Form'!$Y835)=0,\"\",IF(LEN('Enrollment Form'!$Y835)<>5,\"N\",\"Y\")))","v":""},{"$f":"IF($B828=\"N\",\"\",IF(LEN('Enrollment Form'!$AD835=0),\"\",IF(LEN('Enrollment Form'!$AD835)<>5,\"N\",\"Y\")))","v":""},{"$f":"IF($B828=\"N\",\"\",IF(LEN('Enrollment Form'!$BS835=0),\"\",IF(LEN('Enrollment Form'!$BS835)<>5,\"N\",\"Y\")))","v":""},{"$f":"IF($B828=\"N\",\"\",IF(LEN('Enrollment Form'!$AE835)=0,\"\",IF(LEN('Enrollment Form'!$AE835)<>10,\"N\",\"Y\")))","v":""},{"$f":"IF($B828=\"N\",\"\",IF(LEN('Enrollment Form'!$AF835)=0,\"\",IF(LEN('Enrollment Form'!$AF835)<>10,\"N\",\"Y\")))","v":""},{"$f":"IF('Enrollment Form'!$O835<>\"Graded\",\"-\",IF(AND('Enrollment Form'!$O835=\"Graded\",'Enrollment Form'!$AR835<>\"\"),\"Y\",\"N\"))","v":"-"},{"$f":"IF($B828=\"N\",\"\",IF(OR('Enrollment Form'!$B835<>\"Subscriber\",'Enrollment Form'!$C835=\"ROC\"),\"-\",IF(AND('Enrollment Form'!$B835=\"Subscriber\",'Enrollment Form'!$C835=\"Enroll\",'Enrollment Form'!$AJ835<>\"\"),\"Y\",\"N\")))","v":""},{"$f":"IF($B828=\"N\",\"\",IF(OR('Enrollment Form'!$B835<>\"Subscriber\",'Enrollment Form'!$C835=\"ROC\"),\"-\",IF(AND('Enrollment Form'!$B835=\"Subscriber\",'Enrollment Form'!$C835=\"Enroll\",'Enrollment Form'!$AK835<>\"\"),\"Y\",\"N\")))","v":""},{"$f":"IF($B828=\"N\",\"\",IF(OR('Enrollment Form'!$B835<>\"Subscriber\",'Enrollment Form'!$C835=\"ROC\"),\"-\",IF(AND('Enrollment Form'!$B835=\"Subscriber\",'Enrollment Form'!$C835=\"Enroll\",'Enrollment Form'!$AL835<>\"\"),\"Y\",\"N\")))","v":""},{"$f":"IF($B828=\"N\",\"\",IF(OR('Enrollment Form'!$B835<>\"Subscriber\",'Enrollment Form'!$C835=\"ROC\"),\"-\",IF(AND('Enrollment Form'!$B835=\"Subscriber\",'Enrollment Form'!$C835=\"Enroll\",'Enrollment Form'!$AP835<>\"\"),\"Y\",\"N\")))","v":""},{"$f":"IF($B828=\"N\",\"\",IF(OR('Enrollment Form'!$B835<>\"Subscriber\",'Enrollment Form'!$C835=\"ROC\"),\"-\",IF(AND('Enrollment Form'!$B835=\"Subscriber\",'Enrollment Form'!$C835=\"Enroll\",'Enrollment Form'!$AQ835<>\"\"),\"Y\",\"N\")))","v":""},{"$f":"IF($B828=\"N\",\"\",IF(OR('Enrollment Form'!$B835<>\"Subscriber\",'Enrollment Form'!$C835=\"ROC\"),\"-\",IF(AND('Enrollment Form'!$B835=\"Subscriber\",'Enrollment Form'!$C835=\"Enroll\",'Enrollment Form'!$AS835<>\"\"),\"Y\",\"N\")))","v":""},{"$f":"IF($B828=\"N\",\"\",IF($Q828=\"-\",\"-\",IF(AND($Q828=\"Y\",'Enrollment Form'!$AS835=\"No\"),\"-\",IF(AND($Q828=\"Y\",'Enrollment Form'!$AS835=\"Yes\",'Enrollment Form'!$AT835<>\"\"),\"Y\",\"N\"))))","v":""},{"$f":"IF($B828=\"N\",\"\",IF(OR('Enrollment Form'!$B835<>\"Subscriber\",'Enrollment Form'!$C835=\"ROC\"),\"-\",IF(AND('Enrollment Form'!$B835=\"Subscriber\",'Enrollment Form'!$C835=\"Enroll\",'Enrollment Form'!$CV835<>\"\"),\"Y\",\"N\")))","v":""},{"$f":"IF($B828=\"N\",\"\",IF($S828=\"-\",\"-\",IF(AND($S828=\"Y\",'Enrollment Form'!$CV835=\"No\"),\"-\",IF(AND($S828=\"Y\",'Enrollment Form'!$CV835=\"Yes\",'Enrollment Form'!$CW835<>\"\"),\"Y\",\"N\"))))","v":""},{"$f":"IF(OR('Enrollment Form'!$AY835=\"Yes\",'Enrollment Form'!$AY835=\"\"),\"-\",IF(OR(AND('Enrollment Form'!$AY835=\"No\",ISERROR(FIND(\"HMO\",VLOOKUP('Enrollment Form'!G835,'Enrollment Form'!H$11:J$1000,3,FALSE),1))=FALSE,COUNTA('Enrollment Form'!$AZ835:$BC835)=4),AND('Enrollment Form'!$AY835=\"No\",ISERROR(FIND(\"HMO\",VLOOKUP('Enrollment Form'!G835,'Enrollment Form'!H$11:J$1000,3,FALSE),1))=FALSE,COUNTA('Enrollment Form'!$BT835:$BW835)=4)),\"Y\",\"N\"))","v":"-"},{"$f":"IF($B828=\"N\",\"\",IF('Enrollment Form'!$B835=\"Subscriber\",\"-\",IF(COUNTA('Enrollment Form'!$BL835,'Enrollment Form'!$BN835)=2,\"Y\",\"N\")))","v":""},{"$f":"IF($B828=\"N\",\"\",IF(OR('Enrollment Form'!$AX835=\"\",'Enrollment Form'!$AX835=\"No\"),\"-\",IF(AND('Enrollment Form'!$AX835=\"Yes\",COUNTA('Enrollment Form'!$CR835)=1),\"Y\",\"N\")))","v":""},{"$f":"IF(OR('Enrollment Form'!$CR835=\"\",'Enrollment Form'!$CR835=\"No\"),\"-\",IF(COUNTA('Enrollment Form'!$CT835:$CU835)=2,\"Y\",\"N\"))","v":"-"},{"$f":"IF($B828=\"N\",\"\",IF(COUNTIF('Enrollment Form'!$DG835:$DP835,\"Other\")=COUNTA('Enrollment Form'!$DK835,'Enrollment Form'!$DH835,'Enrollment Form'!$DN835,'Enrollment Form'!$DQ835),\"Y\",\"N\"))","v":""},{"$f":"IF($B828=\"N\",\"\",IF(OR('Enrollment Form'!B835<>\"Subscriber\",'Enrollment Form'!C835=\"ROC\",COUNTIF('Enrollment Form'!AV835:AW835,\"Yes\")>=1),\"-\",IF(AND('Enrollment Form'!C835=\"Enroll\",COUNTIF('Enrollment Form'!AV835:AW835,\"No\")=2,'Enrollment Form'!AX835=\"\"),\"N\",\"Y\")))","v":""},{"$f":"IF(OR(B828=\"N\",'Enrollment Form'!B835<>\"Subscriber\",'Enrollment Form'!C835=\"ROC\",'Enrollment Form'!O835<>\"Multiple of Salary\"),\"-\",IF(COUNTA('Enrollment Form'!T835:U835)<2,\"N\",\"Y\"))","v":"-"},{"$f":"IF(B828=\"N\",\"\",IF(OR('Enrollment Form'!C835=\"ROC\",'Enrollment Form'!B835<>\"Subscriber\",'Enrollment Form'!O835=\"Waive\",'Enrollment Form'!O835=\"\"),\"-\",IF('Enrollment Form'!P835=\"\",\"N\",\"Y\")))","v":""},{"$f":"IF($B828=\"N\",\"\",IF(AND('Enrollment Form'!$C835=\"ROC\",'Enrollment Form'!$DR835<>\"\"),\"Y\",IF(AND('Enrollment Form'!$C835=\"ROC\",'Enrollment Form'!$DR835=\"\"),\"N\",IF(AND('Enrollment Form'!$C835=\"Enroll\",'Enrollment Form'!$B835=\"Subscriber\",'Enrollment Form'!$CX835=\"No\",'Enrollment Form'!$DR835=\"\"),\"N\",IF(AND('Enrollment Form'!$C835=\"Enroll\",'Enrollment Form'!$B835=\"Subscriber\",'Enrollment Form'!$CX835=\"Yes\"),\"-\",\"Y\")))))","v":""},{"$f":"IF($B828=\"N\",\"\",IF(AND('Enrollment Form'!$C835=\"ROC\",'Enrollment Form'!$DS835<>\"\"),\"Y\",IF(AND('Enrollment Form'!$C835=\"ROC\",'Enrollment Form'!$DS835=\"\"),\"N\",IF(AND('Enrollment Form'!$C835=\"Enroll\",'Enrollment Form'!$B835=\"Subscriber\",'Enrollment Form'!$CX835=\"No\",'Enrollment Form'!$DS835=\"\"),\"N\",IF(AND('Enrollment Form'!$C835=\"Enroll\",'Enrollment Form'!$B835=\"Subscriber\",'Enrollment Form'!$CX835=\"Yes\"),\"-\",\"Y\")))))","v":""},{"$f":"IF('Enrollment Form'!AH835=\"\",\"\",IF(ISERROR(SEARCH(\".\",'Enrollment Form'!AH835,SEARCH(\"@\",'Enrollment Form'!AH835))),\"N\",\"Y\"))","v":""},{"$f":"IF(OR($B828=\"N\",'Enrollment Form'!$G835=\"\"),\"\",IF('Enrollment Form'!$B835<>\"Subscriber\",\"-\",IF(COUNTIF('Enrollment Form'!$AV835:$AW835,\"Yes\")=2,\"N\",\"Y\")))","v":""},{"$f":"IF(OR('Enrollment Form'!$CJ835=\"\",'Enrollment Form'!$CJ835=\"No\"),\"-\",IF(AND('Enrollment Form'!$CJ835=\"Yes\",'Enrollment Form'!$CK835=\"\"),\"N\",\"Y\"))","v":"-"},{"$f":"IF(OR('Enrollment Form'!$CL835=\"\",'Enrollment Form'!$CL835=\"No\"),\"-\",IF(AND('Enrollment Form'!$CL835=\"Yes\",'Enrollment Form'!$CM835=\"\"),\"N\",\"Y\"))","v":"-"},{"$f":"IF(OR('Enrollment Form'!$CN835=\"\",'Enrollment Form'!$CN835=\"No\"),\"-\",IF(AND('Enrollment Form'!$CN835=\"Yes\",'Enrollment Form'!$CO835=\"\"),\"N\",\"Y\"))","v":"-"},{"$f":"IF(OR('Enrollment Form'!$CN835=\"\",'Enrollment Form'!$CN835=\"No\"),\"-\",IF(AND('Enrollment Form'!$CN835=\"Yes\",'Enrollment Form'!$CP835=\"\"),\"N\",\"Y\"))","v":"-"},{"$f":"IF('Enrollment Form'!B835<>\"Subscriber\",\"-\",IF(AND('Enrollment Form'!B835=\"Subscriber\",'Enrollment Form'!C835=\"Enroll\",'Enrollment Form'!AA835=\"\"),\"N\",\"Y\"))","v":"-"},{"$f":"IF(OR('Enrollment Form'!B835=\"Subscriber\",'Enrollment Form'!B835=\"\"),\"-\",IF('Enrollment Form'!BP835=\"\",\"N\",\"Y\"))","v":"-"},{"$f":"IF('Enrollment Form'!B835<>\"Subscriber\",\"-\",IF(AND('Enrollment Form'!B835=\"Subscriber\",'Enrollment Form'!G835=\"\"),\"N\",\"Y\"))","v":"-"},{"$f":"IF('Enrollment Form'!A835=\"\",\"\",IF('Enrollment Form'!B835=\"Subscriber\",\"-\",IF(AND('Enrollment Form'!B835<>\"Subscriber\",'Enrollment Form'!G835='Enrollment Form'!H835),\"N\",\"Y\")))","v":""},0]
[836,{"$f":"IF('Enrollment Form'!$A836<>\"\",\"Y\",\"N\")","v":"N"},{"$f":"IF(AND('Enrollment Form'!$B836=\"\",'Enrollment Form'!$C836<>\"\"),\"N\",IF($B829=\"N\",\"\",\"Y\"))","v":""},{"$f":"IF(OR($B829=\"N\",'Enrollment Form'!G836=\"\"),\"\",IF('Enrollment Form'!$B836<>\"Subscriber\",\"\",IF('Enrollment Form'!$G836='Enrollment Form'!$H836,\"Y\",\"N\")))","v":""},{"$f":"IF($B829=\"N\",\"\",IF(AND(COUNTIFS('Enrollment Form'!$H$11:$H$1000,'Enrollment Form'!$H836,'Enrollment Form'!$B$11:$B$1000,'Enrollment Form'!$B836)>1,'Enrollment Form'!$H836<>\"\"),\"N\",\"Y\"))","v":""},{"$f":"IF($B829=\"N\",\"\",IF(LEN('Enrollment Form'!$Y836)=0,\"\",IF(LEN('Enrollment Form'!$Y836)<>5,\"N\",\"Y\")))","v":""},{"$f":"IF($B829=\"N\",\"\",IF(LEN('Enrollment Form'!$AD836=0),\"\",IF(LEN('Enrollment Form'!$AD836)<>5,\"N\",\"Y\")))","v":""},{"$f":"IF($B829=\"N\",\"\",IF(LEN('Enrollment Form'!$BS836=0),\"\",IF(LEN('Enrollment Form'!$BS836)<>5,\"N\",\"Y\")))","v":""},{"$f":"IF($B829=\"N\",\"\",IF(LEN('Enrollment Form'!$AE836)=0,\"\",IF(LEN('Enrollment Form'!$AE836)<>10,\"N\",\"Y\")))","v":""},{"$f":"IF($B829=\"N\",\"\",IF(LEN('Enrollment Form'!$AF836)=0,\"\",IF(LEN('Enrollment Form'!$AF836)<>10,\"N\",\"Y\")))","v":""},{"$f":"IF('Enrollment Form'!$O836<>\"Graded\",\"-\",IF(AND('Enrollment Form'!$O836=\"Graded\",'Enrollment Form'!$AR836<>\"\"),\"Y\",\"N\"))","v":"-"},{"$f":"IF($B829=\"N\",\"\",IF(OR('Enrollment Form'!$B836<>\"Subscriber\",'Enrollment Form'!$C836=\"ROC\"),\"-\",IF(AND('Enrollment Form'!$B836=\"Subscriber\",'Enrollment Form'!$C836=\"Enroll\",'Enrollment Form'!$AJ836<>\"\"),\"Y\",\"N\")))","v":""},{"$f":"IF($B829=\"N\",\"\",IF(OR('Enrollment Form'!$B836<>\"Subscriber\",'Enrollment Form'!$C836=\"ROC\"),\"-\",IF(AND('Enrollment Form'!$B836=\"Subscriber\",'Enrollment Form'!$C836=\"Enroll\",'Enrollment Form'!$AK836<>\"\"),\"Y\",\"N\")))","v":""},{"$f":"IF($B829=\"N\",\"\",IF(OR('Enrollment Form'!$B836<>\"Subscriber\",'Enrollment Form'!$C836=\"ROC\"),\"-\",IF(AND('Enrollment Form'!$B836=\"Subscriber\",'Enrollment Form'!$C836=\"Enroll\",'Enrollment Form'!$AL836<>\"\"),\"Y\",\"N\")))","v":""},{"$f":"IF($B829=\"N\",\"\",IF(OR('Enrollment Form'!$B836<>\"Subscriber\",'Enrollment Form'!$C836=\"ROC\"),\"-\",IF(AND('Enrollment Form'!$B836=\"Subscriber\",'Enrollment Form'!$C836=\"Enroll\",'Enrollment Form'!$AP836<>\"\"),\"Y\",\"N\")))","v":""},{"$f":"IF($B829=\"N\",\"\",IF(OR('Enrollment Form'!$B836<>\"Subscriber\",'Enrollment Form'!$C836=\"ROC\"),\"-\",IF(AND('Enrollment Form'!$B836=\"Subscriber\",'Enrollment Form'!$C836=\"Enroll\",'Enrollment Form'!$AQ836<>\"\"),\"Y\",\"N\")))","v":""},{"$f":"IF($B829=\"N\",\"\",IF(OR('Enrollment Form'!$B836<>\"Subscriber\",'Enrollment Form'!$C836=\"ROC\"),\"-\",IF(AND('Enrollment Form'!$B836=\"Subscriber\",'Enrollment Form'!$C836=\"Enroll\",'Enrollment Form'!$AS836<>\"\"),\"Y\",\"N\")))","v":""},{"$f":"IF($B829=\"N\",\"\",IF($Q829=\"-\",\"-\",IF(AND($Q829=\"Y\",'Enrollment Form'!$AS836=\"No\"),\"-\",IF(AND($Q829=\"Y\",'Enrollment Form'!$AS836=\"Yes\",'Enrollment Form'!$AT836<>\"\"),\"Y\",\"N\"))))","v":""},{"$f":"IF($B829=\"N\",\"\",IF(OR('Enrollment Form'!$B836<>\"Subscriber\",'Enrollment Form'!$C836=\"ROC\"),\"-\",IF(AND('Enrollment Form'!$B836=\"Subscriber\",'Enrollment Form'!$C836=\"Enroll\",'Enrollment Form'!$CV836<>\"\"),\"Y\",\"N\")))","v":""},{"$f":"IF($B829=\"N\",\"\",IF($S829=\"-\",\"-\",IF(AND($S829=\"Y\",'Enrollment Form'!$CV836=\"No\"),\"-\",IF(AND($S829=\"Y\",'Enrollment Form'!$CV836=\"Yes\",'Enrollment Form'!$CW836<>\"\"),\"Y\",\"N\"))))","v":""},{"$f":"IF(OR('Enrollment Form'!$AY836=\"Yes\",'Enrollment Form'!$AY836=\"\"),\"-\",IF(OR(AND('Enrollment Form'!$AY836=\"No\",ISERROR(FIND(\"HMO\",VLOOKUP('Enrollment Form'!G836,'Enrollment Form'!H$11:J$1000,3,FALSE),1))=FALSE,COUNTA('Enrollment Form'!$AZ836:$BC836)=4),AND('Enrollment Form'!$AY836=\"No\",ISERROR(FIND(\"HMO\",VLOOKUP('Enrollment Form'!G836,'Enrollment Form'!H$11:J$1000,3,FALSE),1))=FALSE,COUNTA('Enrollment Form'!$BT836:$BW836)=4)),\"Y\",\"N\"))","v":"-"},{"$f":"IF($B829=\"N\",\"\",IF('Enrollment Form'!$B836=\"Subscriber\",\"-\",IF(COUNTA('Enrollment Form'!$BL836,'Enrollment Form'!$BN836)=2,\"Y\",\"N\")))","v":""},{"$f":"IF($B829=\"N\",\"\",IF(OR('Enrollment Form'!$AX836=\"\",'Enrollment Form'!$AX836=\"No\"),\"-\",IF(AND('Enrollment Form'!$AX836=\"Yes\",COUNTA('Enrollment Form'!$CR836)=1),\"Y\",\"N\")))","v":""},{"$f":"IF(OR('Enrollment Form'!$CR836=\"\",'Enrollment Form'!$CR836=\"No\"),\"-\",IF(COUNTA('Enrollment Form'!$CT836:$CU836)=2,\"Y\",\"N\"))","v":"-"},{"$f":"IF($B829=\"N\",\"\",IF(COUNTIF('Enrollment Form'!$DG836:$DP836,\"Other\")=COUNTA('Enrollment Form'!$DK836,'Enrollment Form'!$DH836,'Enrollment Form'!$DN836,'Enrollment Form'!$DQ836),\"Y\",\"N\"))","v":""},{"$f":"IF($B829=\"N\",\"\",IF(OR('Enrollment Form'!B836<>\"Subscriber\",'Enrollment Form'!C836=\"ROC\",COUNTIF('Enrollment Form'!AV836:AW836,\"Yes\")>=1),\"-\",IF(AND('Enrollment Form'!C836=\"Enroll\",COUNTIF('Enrollment Form'!AV836:AW836,\"No\")=2,'Enrollment Form'!AX836=\"\"),\"N\",\"Y\")))","v":""},{"$f":"IF(OR(B829=\"N\",'Enrollment Form'!B836<>\"Subscriber\",'Enrollment Form'!C836=\"ROC\",'Enrollment Form'!O836<>\"Multiple of Salary\"),\"-\",IF(COUNTA('Enrollment Form'!T836:U836)<2,\"N\",\"Y\"))","v":"-"},{"$f":"IF(B829=\"N\",\"\",IF(OR('Enrollment Form'!C836=\"ROC\",'Enrollment Form'!B836<>\"Subscriber\",'Enrollment Form'!O836=\"Waive\",'Enrollment Form'!O836=\"\"),\"-\",IF('Enrollment Form'!P836=\"\",\"N\",\"Y\")))","v":""},{"$f":"IF($B829=\"N\",\"\",IF(AND('Enrollment Form'!$C836=\"ROC\",'Enrollment Form'!$DR836<>\"\"),\"Y\",IF(AND('Enrollment Form'!$C836=\"ROC\",'Enrollment Form'!$DR836=\"\"),\"N\",IF(AND('Enrollment Form'!$C836=\"Enroll\",'Enrollment Form'!$B836=\"Subscriber\",'Enrollment Form'!$CX836=\"No\",'Enrollment Form'!$DR836=\"\"),\"N\",IF(AND('Enrollment Form'!$C836=\"Enroll\",'Enrollment Form'!$B836=\"Subscriber\",'Enrollment Form'!$CX836=\"Yes\"),\"-\",\"Y\")))))","v":""},{"$f":"IF($B829=\"N\",\"\",IF(AND('Enrollment Form'!$C836=\"ROC\",'Enrollment Form'!$DS836<>\"\"),\"Y\",IF(AND('Enrollment Form'!$C836=\"ROC\",'Enrollment Form'!$DS836=\"\"),\"N\",IF(AND('Enrollment Form'!$C836=\"Enroll\",'Enrollment Form'!$B836=\"Subscriber\",'Enrollment Form'!$CX836=\"No\",'Enrollment Form'!$DS836=\"\"),\"N\",IF(AND('Enrollment Form'!$C836=\"Enroll\",'Enrollment Form'!$B836=\"Subscriber\",'Enrollment Form'!$CX836=\"Yes\"),\"-\",\"Y\")))))","v":""},{"$f":"IF('Enrollment Form'!AH836=\"\",\"\",IF(ISERROR(SEARCH(\".\",'Enrollment Form'!AH836,SEARCH(\"@\",'Enrollment Form'!AH836))),\"N\",\"Y\"))","v":""},{"$f":"IF(OR($B829=\"N\",'Enrollment Form'!$G836=\"\"),\"\",IF('Enrollment Form'!$B836<>\"Subscriber\",\"-\",IF(COUNTIF('Enrollment Form'!$AV836:$AW836,\"Yes\")=2,\"N\",\"Y\")))","v":""},{"$f":"IF(OR('Enrollment Form'!$CJ836=\"\",'Enrollment Form'!$CJ836=\"No\"),\"-\",IF(AND('Enrollment Form'!$CJ836=\"Yes\",'Enrollment Form'!$CK836=\"\"),\"N\",\"Y\"))","v":"-"},{"$f":"IF(OR('Enrollment Form'!$CL836=\"\",'Enrollment Form'!$CL836=\"No\"),\"-\",IF(AND('Enrollment Form'!$CL836=\"Yes\",'Enrollment Form'!$CM836=\"\"),\"N\",\"Y\"))","v":"-"},{"$f":"IF(OR('Enrollment Form'!$CN836=\"\",'Enrollment Form'!$CN836=\"No\"),\"-\",IF(AND('Enrollment Form'!$CN836=\"Yes\",'Enrollment Form'!$CO836=\"\"),\"N\",\"Y\"))","v":"-"},{"$f":"IF(OR('Enrollment Form'!$CN836=\"\",'Enrollment Form'!$CN836=\"No\"),\"-\",IF(AND('Enrollment Form'!$CN836=\"Yes\",'Enrollment Form'!$CP836=\"\"),\"N\",\"Y\"))","v":"-"},{"$f":"IF('Enrollment Form'!B836<>\"Subscriber\",\"-\",IF(AND('Enrollment Form'!B836=\"Subscriber\",'Enrollment Form'!C836=\"Enroll\",'Enrollment Form'!AA836=\"\"),\"N\",\"Y\"))","v":"-"},{"$f":"IF(OR('Enrollment Form'!B836=\"Subscriber\",'Enrollment Form'!B836=\"\"),\"-\",IF('Enrollment Form'!BP836=\"\",\"N\",\"Y\"))","v":"-"},{"$f":"IF('Enrollment Form'!B836<>\"Subscriber\",\"-\",IF(AND('Enrollment Form'!B836=\"Subscriber\",'Enrollment Form'!G836=\"\"),\"N\",\"Y\"))","v":"-"},{"$f":"IF('Enrollment Form'!A836=\"\",\"\",IF('Enrollment Form'!B836=\"Subscriber\",\"-\",IF(AND('Enrollment Form'!B836<>\"Subscriber\",'Enrollment Form'!G836='Enrollment Form'!H836),\"N\",\"Y\")))","v":""},0]
[837,{"$f":"IF('Enrollment Form'!$A837<>\"\",\"Y\",\"N\")","v":"N"},{"$f":"IF(AND('Enrollment Form'!$B837=\"\",'Enrollment Form'!$C837<>\"\"),\"N\",IF($B830=\"N\",\"\",\"Y\"))","v":""},{"$f":"IF(OR($B830=\"N\",'Enrollment Form'!G837=\"\"),\"\",IF('Enrollment Form'!$B837<>\"Subscriber\",\"\",IF('Enrollment Form'!$G837='Enrollment Form'!$H837,\"Y\",\"N\")))","v":""},{"$f":"IF($B830=\"N\",\"\",IF(AND(COUNTIFS('Enrollment Form'!$H$11:$H$1000,'Enrollment Form'!$H837,'Enrollment Form'!$B$11:$B$1000,'Enrollment Form'!$B837)>1,'Enrollment Form'!$H837<>\"\"),\"N\",\"Y\"))","v":""},{"$f":"IF($B830=\"N\",\"\",IF(LEN('Enrollment Form'!$Y837)=0,\"\",IF(LEN('Enrollment Form'!$Y837)<>5,\"N\",\"Y\")))","v":""},{"$f":"IF($B830=\"N\",\"\",IF(LEN('Enrollment Form'!$AD837=0),\"\",IF(LEN('Enrollment Form'!$AD837)<>5,\"N\",\"Y\")))","v":""},{"$f":"IF($B830=\"N\",\"\",IF(LEN('Enrollment Form'!$BS837=0),\"\",IF(LEN('Enrollment Form'!$BS837)<>5,\"N\",\"Y\")))","v":""},{"$f":"IF($B830=\"N\",\"\",IF(LEN('Enrollment Form'!$AE837)=0,\"\",IF(LEN('Enrollment Form'!$AE837)<>10,\"N\",\"Y\")))","v":""},{"$f":"IF($B830=\"N\",\"\",IF(LEN('Enrollment Form'!$AF837)=0,\"\",IF(LEN('Enrollment Form'!$AF837)<>10,\"N\",\"Y\")))","v":""},{"$f":"IF('Enrollment Form'!$O837<>\"Graded\",\"-\",IF(AND('Enrollment Form'!$O837=\"Graded\",'Enrollment Form'!$AR837<>\"\"),\"Y\",\"N\"))","v":"-"},{"$f":"IF($B830=\"N\",\"\",IF(OR('Enrollment Form'!$B837<>\"Subscriber\",'Enrollment Form'!$C837=\"ROC\"),\"-\",IF(AND('Enrollment Form'!$B837=\"Subscriber\",'Enrollment Form'!$C837=\"Enroll\",'Enrollment Form'!$AJ837<>\"\"),\"Y\",\"N\")))","v":""},{"$f":"IF($B830=\"N\",\"\",IF(OR('Enrollment Form'!$B837<>\"Subscriber\",'Enrollment Form'!$C837=\"ROC\"),\"-\",IF(AND('Enrollment Form'!$B837=\"Subscriber\",'Enrollment Form'!$C837=\"Enroll\",'Enrollment Form'!$AK837<>\"\"),\"Y\",\"N\")))","v":""},{"$f":"IF($B830=\"N\",\"\",IF(OR('Enrollment Form'!$B837<>\"Subscriber\",'Enrollment Form'!$C837=\"ROC\"),\"-\",IF(AND('Enrollment Form'!$B837=\"Subscriber\",'Enrollment Form'!$C837=\"Enroll\",'Enrollment Form'!$AL837<>\"\"),\"Y\",\"N\")))","v":""},{"$f":"IF($B830=\"N\",\"\",IF(OR('Enrollment Form'!$B837<>\"Subscriber\",'Enrollment Form'!$C837=\"ROC\"),\"-\",IF(AND('Enrollment Form'!$B837=\"Subscriber\",'Enrollment Form'!$C837=\"Enroll\",'Enrollment Form'!$AP837<>\"\"),\"Y\",\"N\")))","v":""},{"$f":"IF($B830=\"N\",\"\",IF(OR('Enrollment Form'!$B837<>\"Subscriber\",'Enrollment Form'!$C837=\"ROC\"),\"-\",IF(AND('Enrollment Form'!$B837=\"Subscriber\",'Enrollment Form'!$C837=\"Enroll\",'Enrollment Form'!$AQ837<>\"\"),\"Y\",\"N\")))","v":""},{"$f":"IF($B830=\"N\",\"\",IF(OR('Enrollment Form'!$B837<>\"Subscriber\",'Enrollment Form'!$C837=\"ROC\"),\"-\",IF(AND('Enrollment Form'!$B837=\"Subscriber\",'Enrollment Form'!$C837=\"Enroll\",'Enrollment Form'!$AS837<>\"\"),\"Y\",\"N\")))","v":""},{"$f":"IF($B830=\"N\",\"\",IF($Q830=\"-\",\"-\",IF(AND($Q830=\"Y\",'Enrollment Form'!$AS837=\"No\"),\"-\",IF(AND($Q830=\"Y\",'Enrollment Form'!$AS837=\"Yes\",'Enrollment Form'!$AT837<>\"\"),\"Y\",\"N\"))))","v":""},{"$f":"IF($B830=\"N\",\"\",IF(OR('Enrollment Form'!$B837<>\"Subscriber\",'Enrollment Form'!$C837=\"ROC\"),\"-\",IF(AND('Enrollment Form'!$B837=\"Subscriber\",'Enrollment Form'!$C837=\"Enroll\",'Enrollment Form'!$CV837<>\"\"),\"Y\",\"N\")))","v":""},{"$f":"IF($B830=\"N\",\"\",IF($S830=\"-\",\"-\",IF(AND($S830=\"Y\",'Enrollment Form'!$CV837=\"No\"),\"-\",IF(AND($S830=\"Y\",'Enrollment Form'!$CV837=\"Yes\",'Enrollment Form'!$CW837<>\"\"),\"Y\",\"N\"))))","v":""},{"$f":"IF(OR('Enrollment Form'!$AY837=\"Yes\",'Enrollment Form'!$AY837=\"\"),\"-\",IF(OR(AND('Enrollment Form'!$AY837=\"No\",ISERROR(FIND(\"HMO\",VLOOKUP('Enrollment Form'!G837,'Enrollment Form'!H$11:J$1000,3,FALSE),1))=FALSE,COUNTA('Enrollment Form'!$AZ837:$BC837)=4),AND('Enrollment Form'!$AY837=\"No\",ISERROR(FIND(\"HMO\",VLOOKUP('Enrollment Form'!G837,'Enrollment Form'!H$11:J$1000,3,FALSE),1))=FALSE,COUNTA('Enrollment Form'!$BT837:$BW837)=4)),\"Y\",\"N\"))","v":"-"},{"$f":"IF($B830=\"N\",\"\",IF('Enrollment Form'!$B837=\"Subscriber\",\"-\",IF(COUNTA('Enrollment Form'!$BL837,'Enrollment Form'!$BN837)=2,\"Y\",\"N\")))","v":""},{"$f":"IF($B830=\"N\",\"\",IF(OR('Enrollment Form'!$AX837=\"\",'Enrollment Form'!$AX837=\"No\"),\"-\",IF(AND('Enrollment Form'!$AX837=\"Yes\",COUNTA('Enrollment Form'!$CR837)=1),\"Y\",\"N\")))","v":""},{"$f":"IF(OR('Enrollment Form'!$CR837=\"\",'Enrollment Form'!$CR837=\"No\"),\"-\",IF(COUNTA('Enrollment Form'!$CT837:$CU837)=2,\"Y\",\"N\"))","v":"-"},{"$f":"IF($B830=\"N\",\"\",IF(COUNTIF('Enrollment Form'!$DG837:$DP837,\"Other\")=COUNTA('Enrollment Form'!$DK837,'Enrollment Form'!$DH837,'Enrollment Form'!$DN837,'Enrollment Form'!$DQ837),\"Y\",\"N\"))","v":""},{"$f":"IF($B830=\"N\",\"\",IF(OR('Enrollment Form'!B837<>\"Subscriber\",'Enrollment Form'!C837=\"ROC\",COUNTIF('Enrollment Form'!AV837:AW837,\"Yes\")>=1),\"-\",IF(AND('Enrollment Form'!C837=\"Enroll\",COUNTIF('Enrollment Form'!AV837:AW837,\"No\")=2,'Enrollment Form'!AX837=\"\"),\"N\",\"Y\")))","v":""},{"$f":"IF(OR(B830=\"N\",'Enrollment Form'!B837<>\"Subscriber\",'Enrollment Form'!C837=\"ROC\",'Enrollment Form'!O837<>\"Multiple of Salary\"),\"-\",IF(COUNTA('Enrollment Form'!T837:U837)<2,\"N\",\"Y\"))","v":"-"},{"$f":"IF(B830=\"N\",\"\",IF(OR('Enrollment Form'!C837=\"ROC\",'Enrollment Form'!B837<>\"Subscriber\",'Enrollment Form'!O837=\"Waive\",'Enrollment Form'!O837=\"\"),\"-\",IF('Enrollment Form'!P837=\"\",\"N\",\"Y\")))","v":""},{"$f":"IF($B830=\"N\",\"\",IF(AND('Enrollment Form'!$C837=\"ROC\",'Enrollment Form'!$DR837<>\"\"),\"Y\",IF(AND('Enrollment Form'!$C837=\"ROC\",'Enrollment Form'!$DR837=\"\"),\"N\",IF(AND('Enrollment Form'!$C837=\"Enroll\",'Enrollment Form'!$B837=\"Subscriber\",'Enrollment Form'!$CX837=\"No\",'Enrollment Form'!$DR837=\"\"),\"N\",IF(AND('Enrollment Form'!$C837=\"Enroll\",'Enrollment Form'!$B837=\"Subscriber\",'Enrollment Form'!$CX837=\"Yes\"),\"-\",\"Y\")))))","v":""},{"$f":"IF($B830=\"N\",\"\",IF(AND('Enrollment Form'!$C837=\"ROC\",'Enrollment Form'!$DS837<>\"\"),\"Y\",IF(AND('Enrollment Form'!$C837=\"ROC\",'Enrollment Form'!$DS837=\"\"),\"N\",IF(AND('Enrollment Form'!$C837=\"Enroll\",'Enrollment Form'!$B837=\"Subscriber\",'Enrollment Form'!$CX837=\"No\",'Enrollment Form'!$DS837=\"\"),\"N\",IF(AND('Enrollment Form'!$C837=\"Enroll\",'Enrollment Form'!$B837=\"Subscriber\",'Enrollment Form'!$CX837=\"Yes\"),\"-\",\"Y\")))))","v":""},{"$f":"IF('Enrollment Form'!AH837=\"\",\"\",IF(ISERROR(SEARCH(\".\",'Enrollment Form'!AH837,SEARCH(\"@\",'Enrollment Form'!AH837))),\"N\",\"Y\"))","v":""},{"$f":"IF(OR($B830=\"N\",'Enrollment Form'!$G837=\"\"),\"\",IF('Enrollment Form'!$B837<>\"Subscriber\",\"-\",IF(COUNTIF('Enrollment Form'!$AV837:$AW837,\"Yes\")=2,\"N\",\"Y\")))","v":""},{"$f":"IF(OR('Enrollment Form'!$CJ837=\"\",'Enrollment Form'!$CJ837=\"No\"),\"-\",IF(AND('Enrollment Form'!$CJ837=\"Yes\",'Enrollment Form'!$CK837=\"\"),\"N\",\"Y\"))","v":"-"},{"$f":"IF(OR('Enrollment Form'!$CL837=\"\",'Enrollment Form'!$CL837=\"No\"),\"-\",IF(AND('Enrollment Form'!$CL837=\"Yes\",'Enrollment Form'!$CM837=\"\"),\"N\",\"Y\"))","v":"-"},{"$f":"IF(OR('Enrollment Form'!$CN837=\"\",'Enrollment Form'!$CN837=\"No\"),\"-\",IF(AND('Enrollment Form'!$CN837=\"Yes\",'Enrollment Form'!$CO837=\"\"),\"N\",\"Y\"))","v":"-"},{"$f":"IF(OR('Enrollment Form'!$CN837=\"\",'Enrollment Form'!$CN837=\"No\"),\"-\",IF(AND('Enrollment Form'!$CN837=\"Yes\",'Enrollment Form'!$CP837=\"\"),\"N\",\"Y\"))","v":"-"},{"$f":"IF('Enrollment Form'!B837<>\"Subscriber\",\"-\",IF(AND('Enrollment Form'!B837=\"Subscriber\",'Enrollment Form'!C837=\"Enroll\",'Enrollment Form'!AA837=\"\"),\"N\",\"Y\"))","v":"-"},{"$f":"IF(OR('Enrollment Form'!B837=\"Subscriber\",'Enrollment Form'!B837=\"\"),\"-\",IF('Enrollment Form'!BP837=\"\",\"N\",\"Y\"))","v":"-"},{"$f":"IF('Enrollment Form'!B837<>\"Subscriber\",\"-\",IF(AND('Enrollment Form'!B837=\"Subscriber\",'Enrollment Form'!G837=\"\"),\"N\",\"Y\"))","v":"-"},{"$f":"IF('Enrollment Form'!A837=\"\",\"\",IF('Enrollment Form'!B837=\"Subscriber\",\"-\",IF(AND('Enrollment Form'!B837<>\"Subscriber\",'Enrollment Form'!G837='Enrollment Form'!H837),\"N\",\"Y\")))","v":""},0]
[838,{"$f":"IF('Enrollment Form'!$A838<>\"\",\"Y\",\"N\")","v":"N"},{"$f":"IF(AND('Enrollment Form'!$B838=\"\",'Enrollment Form'!$C838<>\"\"),\"N\",IF($B831=\"N\",\"\",\"Y\"))","v":""},{"$f":"IF(OR($B831=\"N\",'Enrollment Form'!G838=\"\"),\"\",IF('Enrollment Form'!$B838<>\"Subscriber\",\"\",IF('Enrollment Form'!$G838='Enrollment Form'!$H838,\"Y\",\"N\")))","v":""},{"$f":"IF($B831=\"N\",\"\",IF(AND(COUNTIFS('Enrollment Form'!$H$11:$H$1000,'Enrollment Form'!$H838,'Enrollment Form'!$B$11:$B$1000,'Enrollment Form'!$B838)>1,'Enrollment Form'!$H838<>\"\"),\"N\",\"Y\"))","v":""},{"$f":"IF($B831=\"N\",\"\",IF(LEN('Enrollment Form'!$Y838)=0,\"\",IF(LEN('Enrollment Form'!$Y838)<>5,\"N\",\"Y\")))","v":""},{"$f":"IF($B831=\"N\",\"\",IF(LEN('Enrollment Form'!$AD838=0),\"\",IF(LEN('Enrollment Form'!$AD838)<>5,\"N\",\"Y\")))","v":""},{"$f":"IF($B831=\"N\",\"\",IF(LEN('Enrollment Form'!$BS838=0),\"\",IF(LEN('Enrollment Form'!$BS838)<>5,\"N\",\"Y\")))","v":""},{"$f":"IF($B831=\"N\",\"\",IF(LEN('Enrollment Form'!$AE838)=0,\"\",IF(LEN('Enrollment Form'!$AE838)<>10,\"N\",\"Y\")))","v":""},{"$f":"IF($B831=\"N\",\"\",IF(LEN('Enrollment Form'!$AF838)=0,\"\",IF(LEN('Enrollment Form'!$AF838)<>10,\"N\",\"Y\")))","v":""},{"$f":"IF('Enrollment Form'!$O838<>\"Graded\",\"-\",IF(AND('Enrollment Form'!$O838=\"Graded\",'Enrollment Form'!$AR838<>\"\"),\"Y\",\"N\"))","v":"-"},{"$f":"IF($B831=\"N\",\"\",IF(OR('Enrollment Form'!$B838<>\"Subscriber\",'Enrollment Form'!$C838=\"ROC\"),\"-\",IF(AND('Enrollment Form'!$B838=\"Subscriber\",'Enrollment Form'!$C838=\"Enroll\",'Enrollment Form'!$AJ838<>\"\"),\"Y\",\"N\")))","v":""},{"$f":"IF($B831=\"N\",\"\",IF(OR('Enrollment Form'!$B838<>\"Subscriber\",'Enrollment Form'!$C838=\"ROC\"),\"-\",IF(AND('Enrollment Form'!$B838=\"Subscriber\",'Enrollment Form'!$C838=\"Enroll\",'Enrollment Form'!$AK838<>\"\"),\"Y\",\"N\")))","v":""},{"$f":"IF($B831=\"N\",\"\",IF(OR('Enrollment Form'!$B838<>\"Subscriber\",'Enrollment Form'!$C838=\"ROC\"),\"-\",IF(AND('Enrollment Form'!$B838=\"Subscriber\",'Enrollment Form'!$C838=\"Enroll\",'Enrollment Form'!$AL838<>\"\"),\"Y\",\"N\")))","v":""},{"$f":"IF($B831=\"N\",\"\",IF(OR('Enrollment Form'!$B838<>\"Subscriber\",'Enrollment Form'!$C838=\"ROC\"),\"-\",IF(AND('Enrollment Form'!$B838=\"Subscriber\",'Enrollment Form'!$C838=\"Enroll\",'Enrollment Form'!$AP838<>\"\"),\"Y\",\"N\")))","v":""},{"$f":"IF($B831=\"N\",\"\",IF(OR('Enrollment Form'!$B838<>\"Subscriber\",'Enrollment Form'!$C838=\"ROC\"),\"-\",IF(AND('Enrollment Form'!$B838=\"Subscriber\",'Enrollment Form'!$C838=\"Enroll\",'Enrollment Form'!$AQ838<>\"\"),\"Y\",\"N\")))","v":""},{"$f":"IF($B831=\"N\",\"\",IF(OR('Enrollment Form'!$B838<>\"Subscriber\",'Enrollment Form'!$C838=\"ROC\"),\"-\",IF(AND('Enrollment Form'!$B838=\"Subscriber\",'Enrollment Form'!$C838=\"Enroll\",'Enrollment Form'!$AS838<>\"\"),\"Y\",\"N\")))","v":""},{"$f":"IF($B831=\"N\",\"\",IF($Q831=\"-\",\"-\",IF(AND($Q831=\"Y\",'Enrollment Form'!$AS838=\"No\"),\"-\",IF(AND($Q831=\"Y\",'Enrollment Form'!$AS838=\"Yes\",'Enrollment Form'!$AT838<>\"\"),\"Y\",\"N\"))))","v":""},{"$f":"IF($B831=\"N\",\"\",IF(OR('Enrollment Form'!$B838<>\"Subscriber\",'Enrollment Form'!$C838=\"ROC\"),\"-\",IF(AND('Enrollment Form'!$B838=\"Subscriber\",'Enrollment Form'!$C838=\"Enroll\",'Enrollment Form'!$CV838<>\"\"),\"Y\",\"N\")))","v":""},{"$f":"IF($B831=\"N\",\"\",IF($S831=\"-\",\"-\",IF(AND($S831=\"Y\",'Enrollment Form'!$CV838=\"No\"),\"-\",IF(AND($S831=\"Y\",'Enrollment Form'!$CV838=\"Yes\",'Enrollment Form'!$CW838<>\"\"),\"Y\",\"N\"))))","v":""},{"$f":"IF(OR('Enrollment Form'!$AY838=\"Yes\",'Enrollment Form'!$AY838=\"\"),\"-\",IF(OR(AND('Enrollment Form'!$AY838=\"No\",ISERROR(FIND(\"HMO\",VLOOKUP('Enrollment Form'!G838,'Enrollment Form'!H$11:J$1000,3,FALSE),1))=FALSE,COUNTA('Enrollment Form'!$AZ838:$BC838)=4),AND('Enrollment Form'!$AY838=\"No\",ISERROR(FIND(\"HMO\",VLOOKUP('Enrollment Form'!G838,'Enrollment Form'!H$11:J$1000,3,FALSE),1))=FALSE,COUNTA('Enrollment Form'!$BT838:$BW838)=4)),\"Y\",\"N\"))","v":"-"},{"$f":"IF($B831=\"N\",\"\",IF('Enrollment Form'!$B838=\"Subscriber\",\"-\",IF(COUNTA('Enrollment Form'!$BL838,'Enrollment Form'!$BN838)=2,\"Y\",\"N\")))","v":""},{"$f":"IF($B831=\"N\",\"\",IF(OR('Enrollment Form'!$AX838=\"\",'Enrollment Form'!$AX838=\"No\"),\"-\",IF(AND('Enrollment Form'!$AX838=\"Yes\",COUNTA('Enrollment Form'!$CR838)=1),\"Y\",\"N\")))","v":""},{"$f":"IF(OR('Enrollment Form'!$CR838=\"\",'Enrollment Form'!$CR838=\"No\"),\"-\",IF(COUNTA('Enrollment Form'!$CT838:$CU838)=2,\"Y\",\"N\"))","v":"-"},{"$f":"IF($B831=\"N\",\"\",IF(COUNTIF('Enrollment Form'!$DG838:$DP838,\"Other\")=COUNTA('Enrollment Form'!$DK838,'Enrollment Form'!$DH838,'Enrollment Form'!$DN838,'Enrollment Form'!$DQ838),\"Y\",\"N\"))","v":""},{"$f":"IF($B831=\"N\",\"\",IF(OR('Enrollment Form'!B838<>\"Subscriber\",'Enrollment Form'!C838=\"ROC\",COUNTIF('Enrollment Form'!AV838:AW838,\"Yes\")>=1),\"-\",IF(AND('Enrollment Form'!C838=\"Enroll\",COUNTIF('Enrollment Form'!AV838:AW838,\"No\")=2,'Enrollment Form'!AX838=\"\"),\"N\",\"Y\")))","v":""},{"$f":"IF(OR(B831=\"N\",'Enrollment Form'!B838<>\"Subscriber\",'Enrollment Form'!C838=\"ROC\",'Enrollment Form'!O838<>\"Multiple of Salary\"),\"-\",IF(COUNTA('Enrollment Form'!T838:U838)<2,\"N\",\"Y\"))","v":"-"},{"$f":"IF(B831=\"N\",\"\",IF(OR('Enrollment Form'!C838=\"ROC\",'Enrollment Form'!B838<>\"Subscriber\",'Enrollment Form'!O838=\"Waive\",'Enrollment Form'!O838=\"\"),\"-\",IF('Enrollment Form'!P838=\"\",\"N\",\"Y\")))","v":""},{"$f":"IF($B831=\"N\",\"\",IF(AND('Enrollment Form'!$C838=\"ROC\",'Enrollment Form'!$DR838<>\"\"),\"Y\",IF(AND('Enrollment Form'!$C838=\"ROC\",'Enrollment Form'!$DR838=\"\"),\"N\",IF(AND('Enrollment Form'!$C838=\"Enroll\",'Enrollment Form'!$B838=\"Subscriber\",'Enrollment Form'!$CX838=\"No\",'Enrollment Form'!$DR838=\"\"),\"N\",IF(AND('Enrollment Form'!$C838=\"Enroll\",'Enrollment Form'!$B838=\"Subscriber\",'Enrollment Form'!$CX838=\"Yes\"),\"-\",\"Y\")))))","v":""},{"$f":"IF($B831=\"N\",\"\",IF(AND('Enrollment Form'!$C838=\"ROC\",'Enrollment Form'!$DS838<>\"\"),\"Y\",IF(AND('Enrollment Form'!$C838=\"ROC\",'Enrollment Form'!$DS838=\"\"),\"N\",IF(AND('Enrollment Form'!$C838=\"Enroll\",'Enrollment Form'!$B838=\"Subscriber\",'Enrollment Form'!$CX838=\"No\",'Enrollment Form'!$DS838=\"\"),\"N\",IF(AND('Enrollment Form'!$C838=\"Enroll\",'Enrollment Form'!$B838=\"Subscriber\",'Enrollment Form'!$CX838=\"Yes\"),\"-\",\"Y\")))))","v":""},{"$f":"IF('Enrollment Form'!AH838=\"\",\"\",IF(ISERROR(SEARCH(\".\",'Enrollment Form'!AH838,SEARCH(\"@\",'Enrollment Form'!AH838))),\"N\",\"Y\"))","v":""},{"$f":"IF(OR($B831=\"N\",'Enrollment Form'!$G838=\"\"),\"\",IF('Enrollment Form'!$B838<>\"Subscriber\",\"-\",IF(COUNTIF('Enrollment Form'!$AV838:$AW838,\"Yes\")=2,\"N\",\"Y\")))","v":""},{"$f":"IF(OR('Enrollment Form'!$CJ838=\"\",'Enrollment Form'!$CJ838=\"No\"),\"-\",IF(AND('Enrollment Form'!$CJ838=\"Yes\",'Enrollment Form'!$CK838=\"\"),\"N\",\"Y\"))","v":"-"},{"$f":"IF(OR('Enrollment Form'!$CL838=\"\",'Enrollment Form'!$CL838=\"No\"),\"-\",IF(AND('Enrollment Form'!$CL838=\"Yes\",'Enrollment Form'!$CM838=\"\"),\"N\",\"Y\"))","v":"-"},{"$f":"IF(OR('Enrollment Form'!$CN838=\"\",'Enrollment Form'!$CN838=\"No\"),\"-\",IF(AND('Enrollment Form'!$CN838=\"Yes\",'Enrollment Form'!$CO838=\"\"),\"N\",\"Y\"))","v":"-"},{"$f":"IF(OR('Enrollment Form'!$CN838=\"\",'Enrollment Form'!$CN838=\"No\"),\"-\",IF(AND('Enrollment Form'!$CN838=\"Yes\",'Enrollment Form'!$CP838=\"\"),\"N\",\"Y\"))","v":"-"},{"$f":"IF('Enrollment Form'!B838<>\"Subscriber\",\"-\",IF(AND('Enrollment Form'!B838=\"Subscriber\",'Enrollment Form'!C838=\"Enroll\",'Enrollment Form'!AA838=\"\"),\"N\",\"Y\"))","v":"-"},{"$f":"IF(OR('Enrollment Form'!B838=\"Subscriber\",'Enrollment Form'!B838=\"\"),\"-\",IF('Enrollment Form'!BP838=\"\",\"N\",\"Y\"))","v":"-"},{"$f":"IF('Enrollment Form'!B838<>\"Subscriber\",\"-\",IF(AND('Enrollment Form'!B838=\"Subscriber\",'Enrollment Form'!G838=\"\"),\"N\",\"Y\"))","v":"-"},{"$f":"IF('Enrollment Form'!A838=\"\",\"\",IF('Enrollment Form'!B838=\"Subscriber\",\"-\",IF(AND('Enrollment Form'!B838<>\"Subscriber\",'Enrollment Form'!G838='Enrollment Form'!H838),\"N\",\"Y\")))","v":""},0]
[839,{"$f":"IF('Enrollment Form'!$A839<>\"\",\"Y\",\"N\")","v":"N"},{"$f":"IF(AND('Enrollment Form'!$B839=\"\",'Enrollment Form'!$C839<>\"\"),\"N\",IF($B832=\"N\",\"\",\"Y\"))","v":""},{"$f":"IF(OR($B832=\"N\",'Enrollment Form'!G839=\"\"),\"\",IF('Enrollment Form'!$B839<>\"Subscriber\",\"\",IF('Enrollment Form'!$G839='Enrollment Form'!$H839,\"Y\",\"N\")))","v":""},{"$f":"IF($B832=\"N\",\"\",IF(AND(COUNTIFS('Enrollment Form'!$H$11:$H$1000,'Enrollment Form'!$H839,'Enrollment Form'!$B$11:$B$1000,'Enrollment Form'!$B839)>1,'Enrollment Form'!$H839<>\"\"),\"N\",\"Y\"))","v":""},{"$f":"IF($B832=\"N\",\"\",IF(LEN('Enrollment Form'!$Y839)=0,\"\",IF(LEN('Enrollment Form'!$Y839)<>5,\"N\",\"Y\")))","v":""},{"$f":"IF($B832=\"N\",\"\",IF(LEN('Enrollment Form'!$AD839=0),\"\",IF(LEN('Enrollment Form'!$AD839)<>5,\"N\",\"Y\")))","v":""},{"$f":"IF($B832=\"N\",\"\",IF(LEN('Enrollment Form'!$BS839=0),\"\",IF(LEN('Enrollment Form'!$BS839)<>5,\"N\",\"Y\")))","v":""},{"$f":"IF($B832=\"N\",\"\",IF(LEN('Enrollment Form'!$AE839)=0,\"\",IF(LEN('Enrollment Form'!$AE839)<>10,\"N\",\"Y\")))","v":""},{"$f":"IF($B832=\"N\",\"\",IF(LEN('Enrollment Form'!$AF839)=0,\"\",IF(LEN('Enrollment Form'!$AF839)<>10,\"N\",\"Y\")))","v":""},{"$f":"IF('Enrollment Form'!$O839<>\"Graded\",\"-\",IF(AND('Enrollment Form'!$O839=\"Graded\",'Enrollment Form'!$AR839<>\"\"),\"Y\",\"N\"))","v":"-"},{"$f":"IF($B832=\"N\",\"\",IF(OR('Enrollment Form'!$B839<>\"Subscriber\",'Enrollment Form'!$C839=\"ROC\"),\"-\",IF(AND('Enrollment Form'!$B839=\"Subscriber\",'Enrollment Form'!$C839=\"Enroll\",'Enrollment Form'!$AJ839<>\"\"),\"Y\",\"N\")))","v":""},{"$f":"IF($B832=\"N\",\"\",IF(OR('Enrollment Form'!$B839<>\"Subscriber\",'Enrollment Form'!$C839=\"ROC\"),\"-\",IF(AND('Enrollment Form'!$B839=\"Subscriber\",'Enrollment Form'!$C839=\"Enroll\",'Enrollment Form'!$AK839<>\"\"),\"Y\",\"N\")))","v":""},{"$f":"IF($B832=\"N\",\"\",IF(OR('Enrollment Form'!$B839<>\"Subscriber\",'Enrollment Form'!$C839=\"ROC\"),\"-\",IF(AND('Enrollment Form'!$B839=\"Subscriber\",'Enrollment Form'!$C839=\"Enroll\",'Enrollment Form'!$AL839<>\"\"),\"Y\",\"N\")))","v":""},{"$f":"IF($B832=\"N\",\"\",IF(OR('Enrollment Form'!$B839<>\"Subscriber\",'Enrollment Form'!$C839=\"ROC\"),\"-\",IF(AND('Enrollment Form'!$B839=\"Subscriber\",'Enrollment Form'!$C839=\"Enroll\",'Enrollment Form'!$AP839<>\"\"),\"Y\",\"N\")))","v":""},{"$f":"IF($B832=\"N\",\"\",IF(OR('Enrollment Form'!$B839<>\"Subscriber\",'Enrollment Form'!$C839=\"ROC\"),\"-\",IF(AND('Enrollment Form'!$B839=\"Subscriber\",'Enrollment Form'!$C839=\"Enroll\",'Enrollment Form'!$AQ839<>\"\"),\"Y\",\"N\")))","v":""},{"$f":"IF($B832=\"N\",\"\",IF(OR('Enrollment Form'!$B839<>\"Subscriber\",'Enrollment Form'!$C839=\"ROC\"),\"-\",IF(AND('Enrollment Form'!$B839=\"Subscriber\",'Enrollment Form'!$C839=\"Enroll\",'Enrollment Form'!$AS839<>\"\"),\"Y\",\"N\")))","v":""},{"$f":"IF($B832=\"N\",\"\",IF($Q832=\"-\",\"-\",IF(AND($Q832=\"Y\",'Enrollment Form'!$AS839=\"No\"),\"-\",IF(AND($Q832=\"Y\",'Enrollment Form'!$AS839=\"Yes\",'Enrollment Form'!$AT839<>\"\"),\"Y\",\"N\"))))","v":""},{"$f":"IF($B832=\"N\",\"\",IF(OR('Enrollment Form'!$B839<>\"Subscriber\",'Enrollment Form'!$C839=\"ROC\"),\"-\",IF(AND('Enrollment Form'!$B839=\"Subscriber\",'Enrollment Form'!$C839=\"Enroll\",'Enrollment Form'!$CV839<>\"\"),\"Y\",\"N\")))","v":""},{"$f":"IF($B832=\"N\",\"\",IF($S832=\"-\",\"-\",IF(AND($S832=\"Y\",'Enrollment Form'!$CV839=\"No\"),\"-\",IF(AND($S832=\"Y\",'Enrollment Form'!$CV839=\"Yes\",'Enrollment Form'!$CW839<>\"\"),\"Y\",\"N\"))))","v":""},{"$f":"IF(OR('Enrollment Form'!$AY839=\"Yes\",'Enrollment Form'!$AY839=\"\"),\"-\",IF(OR(AND('Enrollment Form'!$AY839=\"No\",ISERROR(FIND(\"HMO\",VLOOKUP('Enrollment Form'!G839,'Enrollment Form'!H$11:J$1000,3,FALSE),1))=FALSE,COUNTA('Enrollment Form'!$AZ839:$BC839)=4),AND('Enrollment Form'!$AY839=\"No\",ISERROR(FIND(\"HMO\",VLOOKUP('Enrollment Form'!G839,'Enrollment Form'!H$11:J$1000,3,FALSE),1))=FALSE,COUNTA('Enrollment Form'!$BT839:$BW839)=4)),\"Y\",\"N\"))","v":"-"},{"$f":"IF($B832=\"N\",\"\",IF('Enrollment Form'!$B839=\"Subscriber\",\"-\",IF(COUNTA('Enrollment Form'!$BL839,'Enrollment Form'!$BN839)=2,\"Y\",\"N\")))","v":""},{"$f":"IF($B832=\"N\",\"\",IF(OR('Enrollment Form'!$AX839=\"\",'Enrollment Form'!$AX839=\"No\"),\"-\",IF(AND('Enrollment Form'!$AX839=\"Yes\",COUNTA('Enrollment Form'!$CR839)=1),\"Y\",\"N\")))","v":""},{"$f":"IF(OR('Enrollment Form'!$CR839=\"\",'Enrollment Form'!$CR839=\"No\"),\"-\",IF(COUNTA('Enrollment Form'!$CT839:$CU839)=2,\"Y\",\"N\"))","v":"-"},{"$f":"IF($B832=\"N\",\"\",IF(COUNTIF('Enrollment Form'!$DG839:$DP839,\"Other\")=COUNTA('Enrollment Form'!$DK839,'Enrollment Form'!$DH839,'Enrollment Form'!$DN839,'Enrollment Form'!$DQ839),\"Y\",\"N\"))","v":""},{"$f":"IF($B832=\"N\",\"\",IF(OR('Enrollment Form'!B839<>\"Subscriber\",'Enrollment Form'!C839=\"ROC\",COUNTIF('Enrollment Form'!AV839:AW839,\"Yes\")>=1),\"-\",IF(AND('Enrollment Form'!C839=\"Enroll\",COUNTIF('Enrollment Form'!AV839:AW839,\"No\")=2,'Enrollment Form'!AX839=\"\"),\"N\",\"Y\")))","v":""},{"$f":"IF(OR(B832=\"N\",'Enrollment Form'!B839<>\"Subscriber\",'Enrollment Form'!C839=\"ROC\",'Enrollment Form'!O839<>\"Multiple of Salary\"),\"-\",IF(COUNTA('Enrollment Form'!T839:U839)<2,\"N\",\"Y\"))","v":"-"},{"$f":"IF(B832=\"N\",\"\",IF(OR('Enrollment Form'!C839=\"ROC\",'Enrollment Form'!B839<>\"Subscriber\",'Enrollment Form'!O839=\"Waive\",'Enrollment Form'!O839=\"\"),\"-\",IF('Enrollment Form'!P839=\"\",\"N\",\"Y\")))","v":""},{"$f":"IF($B832=\"N\",\"\",IF(AND('Enrollment Form'!$C839=\"ROC\",'Enrollment Form'!$DR839<>\"\"),\"Y\",IF(AND('Enrollment Form'!$C839=\"ROC\",'Enrollment Form'!$DR839=\"\"),\"N\",IF(AND('Enrollment Form'!$C839=\"Enroll\",'Enrollment Form'!$B839=\"Subscriber\",'Enrollment Form'!$CX839=\"No\",'Enrollment Form'!$DR839=\"\"),\"N\",IF(AND('Enrollment Form'!$C839=\"Enroll\",'Enrollment Form'!$B839=\"Subscriber\",'Enrollment Form'!$CX839=\"Yes\"),\"-\",\"Y\")))))","v":""},{"$f":"IF($B832=\"N\",\"\",IF(AND('Enrollment Form'!$C839=\"ROC\",'Enrollment Form'!$DS839<>\"\"),\"Y\",IF(AND('Enrollment Form'!$C839=\"ROC\",'Enrollment Form'!$DS839=\"\"),\"N\",IF(AND('Enrollment Form'!$C839=\"Enroll\",'Enrollment Form'!$B839=\"Subscriber\",'Enrollment Form'!$CX839=\"No\",'Enrollment Form'!$DS839=\"\"),\"N\",IF(AND('Enrollment Form'!$C839=\"Enroll\",'Enrollment Form'!$B839=\"Subscriber\",'Enrollment Form'!$CX839=\"Yes\"),\"-\",\"Y\")))))","v":""},{"$f":"IF('Enrollment Form'!AH839=\"\",\"\",IF(ISERROR(SEARCH(\".\",'Enrollment Form'!AH839,SEARCH(\"@\",'Enrollment Form'!AH839))),\"N\",\"Y\"))","v":""},{"$f":"IF(OR($B832=\"N\",'Enrollment Form'!$G839=\"\"),\"\",IF('Enrollment Form'!$B839<>\"Subscriber\",\"-\",IF(COUNTIF('Enrollment Form'!$AV839:$AW839,\"Yes\")=2,\"N\",\"Y\")))","v":""},{"$f":"IF(OR('Enrollment Form'!$CJ839=\"\",'Enrollment Form'!$CJ839=\"No\"),\"-\",IF(AND('Enrollment Form'!$CJ839=\"Yes\",'Enrollment Form'!$CK839=\"\"),\"N\",\"Y\"))","v":"-"},{"$f":"IF(OR('Enrollment Form'!$CL839=\"\",'Enrollment Form'!$CL839=\"No\"),\"-\",IF(AND('Enrollment Form'!$CL839=\"Yes\",'Enrollment Form'!$CM839=\"\"),\"N\",\"Y\"))","v":"-"},{"$f":"IF(OR('Enrollment Form'!$CN839=\"\",'Enrollment Form'!$CN839=\"No\"),\"-\",IF(AND('Enrollment Form'!$CN839=\"Yes\",'Enrollment Form'!$CO839=\"\"),\"N\",\"Y\"))","v":"-"},{"$f":"IF(OR('Enrollment Form'!$CN839=\"\",'Enrollment Form'!$CN839=\"No\"),\"-\",IF(AND('Enrollment Form'!$CN839=\"Yes\",'Enrollment Form'!$CP839=\"\"),\"N\",\"Y\"))","v":"-"},{"$f":"IF('Enrollment Form'!B839<>\"Subscriber\",\"-\",IF(AND('Enrollment Form'!B839=\"Subscriber\",'Enrollment Form'!C839=\"Enroll\",'Enrollment Form'!AA839=\"\"),\"N\",\"Y\"))","v":"-"},{"$f":"IF(OR('Enrollment Form'!B839=\"Subscriber\",'Enrollment Form'!B839=\"\"),\"-\",IF('Enrollment Form'!BP839=\"\",\"N\",\"Y\"))","v":"-"},{"$f":"IF('Enrollment Form'!B839<>\"Subscriber\",\"-\",IF(AND('Enrollment Form'!B839=\"Subscriber\",'Enrollment Form'!G839=\"\"),\"N\",\"Y\"))","v":"-"},{"$f":"IF('Enrollment Form'!A839=\"\",\"\",IF('Enrollment Form'!B839=\"Subscriber\",\"-\",IF(AND('Enrollment Form'!B839<>\"Subscriber\",'Enrollment Form'!G839='Enrollment Form'!H839),\"N\",\"Y\")))","v":""},0]
[840,{"$f":"IF('Enrollment Form'!$A840<>\"\",\"Y\",\"N\")","v":"N"},{"$f":"IF(AND('Enrollment Form'!$B840=\"\",'Enrollment Form'!$C840<>\"\"),\"N\",IF($B833=\"N\",\"\",\"Y\"))","v":""},{"$f":"IF(OR($B833=\"N\",'Enrollment Form'!G840=\"\"),\"\",IF('Enrollment Form'!$B840<>\"Subscriber\",\"\",IF('Enrollment Form'!$G840='Enrollment Form'!$H840,\"Y\",\"N\")))","v":""},{"$f":"IF($B833=\"N\",\"\",IF(AND(COUNTIFS('Enrollment Form'!$H$11:$H$1000,'Enrollment Form'!$H840,'Enrollment Form'!$B$11:$B$1000,'Enrollment Form'!$B840)>1,'Enrollment Form'!$H840<>\"\"),\"N\",\"Y\"))","v":""},{"$f":"IF($B833=\"N\",\"\",IF(LEN('Enrollment Form'!$Y840)=0,\"\",IF(LEN('Enrollment Form'!$Y840)<>5,\"N\",\"Y\")))","v":""},{"$f":"IF($B833=\"N\",\"\",IF(LEN('Enrollment Form'!$AD840=0),\"\",IF(LEN('Enrollment Form'!$AD840)<>5,\"N\",\"Y\")))","v":""},{"$f":"IF($B833=\"N\",\"\",IF(LEN('Enrollment Form'!$BS840=0),\"\",IF(LEN('Enrollment Form'!$BS840)<>5,\"N\",\"Y\")))","v":""},{"$f":"IF($B833=\"N\",\"\",IF(LEN('Enrollment Form'!$AE840)=0,\"\",IF(LEN('Enrollment Form'!$AE840)<>10,\"N\",\"Y\")))","v":""},{"$f":"IF($B833=\"N\",\"\",IF(LEN('Enrollment Form'!$AF840)=0,\"\",IF(LEN('Enrollment Form'!$AF840)<>10,\"N\",\"Y\")))","v":""},{"$f":"IF('Enrollment Form'!$O840<>\"Graded\",\"-\",IF(AND('Enrollment Form'!$O840=\"Graded\",'Enrollment Form'!$AR840<>\"\"),\"Y\",\"N\"))","v":"-"},{"$f":"IF($B833=\"N\",\"\",IF(OR('Enrollment Form'!$B840<>\"Subscriber\",'Enrollment Form'!$C840=\"ROC\"),\"-\",IF(AND('Enrollment Form'!$B840=\"Subscriber\",'Enrollment Form'!$C840=\"Enroll\",'Enrollment Form'!$AJ840<>\"\"),\"Y\",\"N\")))","v":""},{"$f":"IF($B833=\"N\",\"\",IF(OR('Enrollment Form'!$B840<>\"Subscriber\",'Enrollment Form'!$C840=\"ROC\"),\"-\",IF(AND('Enrollment Form'!$B840=\"Subscriber\",'Enrollment Form'!$C840=\"Enroll\",'Enrollment Form'!$AK840<>\"\"),\"Y\",\"N\")))","v":""},{"$f":"IF($B833=\"N\",\"\",IF(OR('Enrollment Form'!$B840<>\"Subscriber\",'Enrollment Form'!$C840=\"ROC\"),\"-\",IF(AND('Enrollment Form'!$B840=\"Subscriber\",'Enrollment Form'!$C840=\"Enroll\",'Enrollment Form'!$AL840<>\"\"),\"Y\",\"N\")))","v":""},{"$f":"IF($B833=\"N\",\"\",IF(OR('Enrollment Form'!$B840<>\"Subscriber\",'Enrollment Form'!$C840=\"ROC\"),\"-\",IF(AND('Enrollment Form'!$B840=\"Subscriber\",'Enrollment Form'!$C840=\"Enroll\",'Enrollment Form'!$AP840<>\"\"),\"Y\",\"N\")))","v":""},{"$f":"IF($B833=\"N\",\"\",IF(OR('Enrollment Form'!$B840<>\"Subscriber\",'Enrollment Form'!$C840=\"ROC\"),\"-\",IF(AND('Enrollment Form'!$B840=\"Subscriber\",'Enrollment Form'!$C840=\"Enroll\",'Enrollment Form'!$AQ840<>\"\"),\"Y\",\"N\")))","v":""},{"$f":"IF($B833=\"N\",\"\",IF(OR('Enrollment Form'!$B840<>\"Subscriber\",'Enrollment Form'!$C840=\"ROC\"),\"-\",IF(AND('Enrollment Form'!$B840=\"Subscriber\",'Enrollment Form'!$C840=\"Enroll\",'Enrollment Form'!$AS840<>\"\"),\"Y\",\"N\")))","v":""},{"$f":"IF($B833=\"N\",\"\",IF($Q833=\"-\",\"-\",IF(AND($Q833=\"Y\",'Enrollment Form'!$AS840=\"No\"),\"-\",IF(AND($Q833=\"Y\",'Enrollment Form'!$AS840=\"Yes\",'Enrollment Form'!$AT840<>\"\"),\"Y\",\"N\"))))","v":""},{"$f":"IF($B833=\"N\",\"\",IF(OR('Enrollment Form'!$B840<>\"Subscriber\",'Enrollment Form'!$C840=\"ROC\"),\"-\",IF(AND('Enrollment Form'!$B840=\"Subscriber\",'Enrollment Form'!$C840=\"Enroll\",'Enrollment Form'!$CV840<>\"\"),\"Y\",\"N\")))","v":""},{"$f":"IF($B833=\"N\",\"\",IF($S833=\"-\",\"-\",IF(AND($S833=\"Y\",'Enrollment Form'!$CV840=\"No\"),\"-\",IF(AND($S833=\"Y\",'Enrollment Form'!$CV840=\"Yes\",'Enrollment Form'!$CW840<>\"\"),\"Y\",\"N\"))))","v":""},{"$f":"IF(OR('Enrollment Form'!$AY840=\"Yes\",'Enrollment Form'!$AY840=\"\"),\"-\",IF(OR(AND('Enrollment Form'!$AY840=\"No\",ISERROR(FIND(\"HMO\",VLOOKUP('Enrollment Form'!G840,'Enrollment Form'!H$11:J$1000,3,FALSE),1))=FALSE,COUNTA('Enrollment Form'!$AZ840:$BC840)=4),AND('Enrollment Form'!$AY840=\"No\",ISERROR(FIND(\"HMO\",VLOOKUP('Enrollment Form'!G840,'Enrollment Form'!H$11:J$1000,3,FALSE),1))=FALSE,COUNTA('Enrollment Form'!$BT840:$BW840)=4)),\"Y\",\"N\"))","v":"-"},{"$f":"IF($B833=\"N\",\"\",IF('Enrollment Form'!$B840=\"Subscriber\",\"-\",IF(COUNTA('Enrollment Form'!$BL840,'Enrollment Form'!$BN840)=2,\"Y\",\"N\")))","v":""},{"$f":"IF($B833=\"N\",\"\",IF(OR('Enrollment Form'!$AX840=\"\",'Enrollment Form'!$AX840=\"No\"),\"-\",IF(AND('Enrollment Form'!$AX840=\"Yes\",COUNTA('Enrollment Form'!$CR840)=1),\"Y\",\"N\")))","v":""},{"$f":"IF(OR('Enrollment Form'!$CR840=\"\",'Enrollment Form'!$CR840=\"No\"),\"-\",IF(COUNTA('Enrollment Form'!$CT840:$CU840)=2,\"Y\",\"N\"))","v":"-"},{"$f":"IF($B833=\"N\",\"\",IF(COUNTIF('Enrollment Form'!$DG840:$DP840,\"Other\")=COUNTA('Enrollment Form'!$DK840,'Enrollment Form'!$DH840,'Enrollment Form'!$DN840,'Enrollment Form'!$DQ840),\"Y\",\"N\"))","v":""},{"$f":"IF($B833=\"N\",\"\",IF(OR('Enrollment Form'!B840<>\"Subscriber\",'Enrollment Form'!C840=\"ROC\",COUNTIF('Enrollment Form'!AV840:AW840,\"Yes\")>=1),\"-\",IF(AND('Enrollment Form'!C840=\"Enroll\",COUNTIF('Enrollment Form'!AV840:AW840,\"No\")=2,'Enrollment Form'!AX840=\"\"),\"N\",\"Y\")))","v":""},{"$f":"IF(OR(B833=\"N\",'Enrollment Form'!B840<>\"Subscriber\",'Enrollment Form'!C840=\"ROC\",'Enrollment Form'!O840<>\"Multiple of Salary\"),\"-\",IF(COUNTA('Enrollment Form'!T840:U840)<2,\"N\",\"Y\"))","v":"-"},{"$f":"IF(B833=\"N\",\"\",IF(OR('Enrollment Form'!C840=\"ROC\",'Enrollment Form'!B840<>\"Subscriber\",'Enrollment Form'!O840=\"Waive\",'Enrollment Form'!O840=\"\"),\"-\",IF('Enrollment Form'!P840=\"\",\"N\",\"Y\")))","v":""},{"$f":"IF($B833=\"N\",\"\",IF(AND('Enrollment Form'!$C840=\"ROC\",'Enrollment Form'!$DR840<>\"\"),\"Y\",IF(AND('Enrollment Form'!$C840=\"ROC\",'Enrollment Form'!$DR840=\"\"),\"N\",IF(AND('Enrollment Form'!$C840=\"Enroll\",'Enrollment Form'!$B840=\"Subscriber\",'Enrollment Form'!$CX840=\"No\",'Enrollment Form'!$DR840=\"\"),\"N\",IF(AND('Enrollment Form'!$C840=\"Enroll\",'Enrollment Form'!$B840=\"Subscriber\",'Enrollment Form'!$CX840=\"Yes\"),\"-\",\"Y\")))))","v":""},{"$f":"IF($B833=\"N\",\"\",IF(AND('Enrollment Form'!$C840=\"ROC\",'Enrollment Form'!$DS840<>\"\"),\"Y\",IF(AND('Enrollment Form'!$C840=\"ROC\",'Enrollment Form'!$DS840=\"\"),\"N\",IF(AND('Enrollment Form'!$C840=\"Enroll\",'Enrollment Form'!$B840=\"Subscriber\",'Enrollment Form'!$CX840=\"No\",'Enrollment Form'!$DS840=\"\"),\"N\",IF(AND('Enrollment Form'!$C840=\"Enroll\",'Enrollment Form'!$B840=\"Subscriber\",'Enrollment Form'!$CX840=\"Yes\"),\"-\",\"Y\")))))","v":""},{"$f":"IF('Enrollment Form'!AH840=\"\",\"\",IF(ISERROR(SEARCH(\".\",'Enrollment Form'!AH840,SEARCH(\"@\",'Enrollment Form'!AH840))),\"N\",\"Y\"))","v":""},{"$f":"IF(OR($B833=\"N\",'Enrollment Form'!$G840=\"\"),\"\",IF('Enrollment Form'!$B840<>\"Subscriber\",\"-\",IF(COUNTIF('Enrollment Form'!$AV840:$AW840,\"Yes\")=2,\"N\",\"Y\")))","v":""},{"$f":"IF(OR('Enrollment Form'!$CJ840=\"\",'Enrollment Form'!$CJ840=\"No\"),\"-\",IF(AND('Enrollment Form'!$CJ840=\"Yes\",'Enrollment Form'!$CK840=\"\"),\"N\",\"Y\"))","v":"-"},{"$f":"IF(OR('Enrollment Form'!$CL840=\"\",'Enrollment Form'!$CL840=\"No\"),\"-\",IF(AND('Enrollment Form'!$CL840=\"Yes\",'Enrollment Form'!$CM840=\"\"),\"N\",\"Y\"))","v":"-"},{"$f":"IF(OR('Enrollment Form'!$CN840=\"\",'Enrollment Form'!$CN840=\"No\"),\"-\",IF(AND('Enrollment Form'!$CN840=\"Yes\",'Enrollment Form'!$CO840=\"\"),\"N\",\"Y\"))","v":"-"},{"$f":"IF(OR('Enrollment Form'!$CN840=\"\",'Enrollment Form'!$CN840=\"No\"),\"-\",IF(AND('Enrollment Form'!$CN840=\"Yes\",'Enrollment Form'!$CP840=\"\"),\"N\",\"Y\"))","v":"-"},{"$f":"IF('Enrollment Form'!B840<>\"Subscriber\",\"-\",IF(AND('Enrollment Form'!B840=\"Subscriber\",'Enrollment Form'!C840=\"Enroll\",'Enrollment Form'!AA840=\"\"),\"N\",\"Y\"))","v":"-"},{"$f":"IF(OR('Enrollment Form'!B840=\"Subscriber\",'Enrollment Form'!B840=\"\"),\"-\",IF('Enrollment Form'!BP840=\"\",\"N\",\"Y\"))","v":"-"},{"$f":"IF('Enrollment Form'!B840<>\"Subscriber\",\"-\",IF(AND('Enrollment Form'!B840=\"Subscriber\",'Enrollment Form'!G840=\"\"),\"N\",\"Y\"))","v":"-"},{"$f":"IF('Enrollment Form'!A840=\"\",\"\",IF('Enrollment Form'!B840=\"Subscriber\",\"-\",IF(AND('Enrollment Form'!B840<>\"Subscriber\",'Enrollment Form'!G840='Enrollment Form'!H840),\"N\",\"Y\")))","v":""},0]
[841,{"$f":"IF('Enrollment Form'!$A841<>\"\",\"Y\",\"N\")","v":"N"},{"$f":"IF(AND('Enrollment Form'!$B841=\"\",'Enrollment Form'!$C841<>\"\"),\"N\",IF($B834=\"N\",\"\",\"Y\"))","v":""},{"$f":"IF(OR($B834=\"N\",'Enrollment Form'!G841=\"\"),\"\",IF('Enrollment Form'!$B841<>\"Subscriber\",\"\",IF('Enrollment Form'!$G841='Enrollment Form'!$H841,\"Y\",\"N\")))","v":""},{"$f":"IF($B834=\"N\",\"\",IF(AND(COUNTIFS('Enrollment Form'!$H$11:$H$1000,'Enrollment Form'!$H841,'Enrollment Form'!$B$11:$B$1000,'Enrollment Form'!$B841)>1,'Enrollment Form'!$H841<>\"\"),\"N\",\"Y\"))","v":""},{"$f":"IF($B834=\"N\",\"\",IF(LEN('Enrollment Form'!$Y841)=0,\"\",IF(LEN('Enrollment Form'!$Y841)<>5,\"N\",\"Y\")))","v":""},{"$f":"IF($B834=\"N\",\"\",IF(LEN('Enrollment Form'!$AD841=0),\"\",IF(LEN('Enrollment Form'!$AD841)<>5,\"N\",\"Y\")))","v":""},{"$f":"IF($B834=\"N\",\"\",IF(LEN('Enrollment Form'!$BS841=0),\"\",IF(LEN('Enrollment Form'!$BS841)<>5,\"N\",\"Y\")))","v":""},{"$f":"IF($B834=\"N\",\"\",IF(LEN('Enrollment Form'!$AE841)=0,\"\",IF(LEN('Enrollment Form'!$AE841)<>10,\"N\",\"Y\")))","v":""},{"$f":"IF($B834=\"N\",\"\",IF(LEN('Enrollment Form'!$AF841)=0,\"\",IF(LEN('Enrollment Form'!$AF841)<>10,\"N\",\"Y\")))","v":""},{"$f":"IF('Enrollment Form'!$O841<>\"Graded\",\"-\",IF(AND('Enrollment Form'!$O841=\"Graded\",'Enrollment Form'!$AR841<>\"\"),\"Y\",\"N\"))","v":"-"},{"$f":"IF($B834=\"N\",\"\",IF(OR('Enrollment Form'!$B841<>\"Subscriber\",'Enrollment Form'!$C841=\"ROC\"),\"-\",IF(AND('Enrollment Form'!$B841=\"Subscriber\",'Enrollment Form'!$C841=\"Enroll\",'Enrollment Form'!$AJ841<>\"\"),\"Y\",\"N\")))","v":""},{"$f":"IF($B834=\"N\",\"\",IF(OR('Enrollment Form'!$B841<>\"Subscriber\",'Enrollment Form'!$C841=\"ROC\"),\"-\",IF(AND('Enrollment Form'!$B841=\"Subscriber\",'Enrollment Form'!$C841=\"Enroll\",'Enrollment Form'!$AK841<>\"\"),\"Y\",\"N\")))","v":""},{"$f":"IF($B834=\"N\",\"\",IF(OR('Enrollment Form'!$B841<>\"Subscriber\",'Enrollment Form'!$C841=\"ROC\"),\"-\",IF(AND('Enrollment Form'!$B841=\"Subscriber\",'Enrollment Form'!$C841=\"Enroll\",'Enrollment Form'!$AL841<>\"\"),\"Y\",\"N\")))","v":""},{"$f":"IF($B834=\"N\",\"\",IF(OR('Enrollment Form'!$B841<>\"Subscriber\",'Enrollment Form'!$C841=\"ROC\"),\"-\",IF(AND('Enrollment Form'!$B841=\"Subscriber\",'Enrollment Form'!$C841=\"Enroll\",'Enrollment Form'!$AP841<>\"\"),\"Y\",\"N\")))","v":""},{"$f":"IF($B834=\"N\",\"\",IF(OR('Enrollment Form'!$B841<>\"Subscriber\",'Enrollment Form'!$C841=\"ROC\"),\"-\",IF(AND('Enrollment Form'!$B841=\"Subscriber\",'Enrollment Form'!$C841=\"Enroll\",'Enrollment Form'!$AQ841<>\"\"),\"Y\",\"N\")))","v":""},{"$f":"IF($B834=\"N\",\"\",IF(OR('Enrollment Form'!$B841<>\"Subscriber\",'Enrollment Form'!$C841=\"ROC\"),\"-\",IF(AND('Enrollment Form'!$B841=\"Subscriber\",'Enrollment Form'!$C841=\"Enroll\",'Enrollment Form'!$AS841<>\"\"),\"Y\",\"N\")))","v":""},{"$f":"IF($B834=\"N\",\"\",IF($Q834=\"-\",\"-\",IF(AND($Q834=\"Y\",'Enrollment Form'!$AS841=\"No\"),\"-\",IF(AND($Q834=\"Y\",'Enrollment Form'!$AS841=\"Yes\",'Enrollment Form'!$AT841<>\"\"),\"Y\",\"N\"))))","v":""},{"$f":"IF($B834=\"N\",\"\",IF(OR('Enrollment Form'!$B841<>\"Subscriber\",'Enrollment Form'!$C841=\"ROC\"),\"-\",IF(AND('Enrollment Form'!$B841=\"Subscriber\",'Enrollment Form'!$C841=\"Enroll\",'Enrollment Form'!$CV841<>\"\"),\"Y\",\"N\")))","v":""},{"$f":"IF($B834=\"N\",\"\",IF($S834=\"-\",\"-\",IF(AND($S834=\"Y\",'Enrollment Form'!$CV841=\"No\"),\"-\",IF(AND($S834=\"Y\",'Enrollment Form'!$CV841=\"Yes\",'Enrollment Form'!$CW841<>\"\"),\"Y\",\"N\"))))","v":""},{"$f":"IF(OR('Enrollment Form'!$AY841=\"Yes\",'Enrollment Form'!$AY841=\"\"),\"-\",IF(OR(AND('Enrollment Form'!$AY841=\"No\",ISERROR(FIND(\"HMO\",VLOOKUP('Enrollment Form'!G841,'Enrollment Form'!H$11:J$1000,3,FALSE),1))=FALSE,COUNTA('Enrollment Form'!$AZ841:$BC841)=4),AND('Enrollment Form'!$AY841=\"No\",ISERROR(FIND(\"HMO\",VLOOKUP('Enrollment Form'!G841,'Enrollment Form'!H$11:J$1000,3,FALSE),1))=FALSE,COUNTA('Enrollment Form'!$BT841:$BW841)=4)),\"Y\",\"N\"))","v":"-"},{"$f":"IF($B834=\"N\",\"\",IF('Enrollment Form'!$B841=\"Subscriber\",\"-\",IF(COUNTA('Enrollment Form'!$BL841,'Enrollment Form'!$BN841)=2,\"Y\",\"N\")))","v":""},{"$f":"IF($B834=\"N\",\"\",IF(OR('Enrollment Form'!$AX841=\"\",'Enrollment Form'!$AX841=\"No\"),\"-\",IF(AND('Enrollment Form'!$AX841=\"Yes\",COUNTA('Enrollment Form'!$CR841)=1),\"Y\",\"N\")))","v":""},{"$f":"IF(OR('Enrollment Form'!$CR841=\"\",'Enrollment Form'!$CR841=\"No\"),\"-\",IF(COUNTA('Enrollment Form'!$CT841:$CU841)=2,\"Y\",\"N\"))","v":"-"},{"$f":"IF($B834=\"N\",\"\",IF(COUNTIF('Enrollment Form'!$DG841:$DP841,\"Other\")=COUNTA('Enrollment Form'!$DK841,'Enrollment Form'!$DH841,'Enrollment Form'!$DN841,'Enrollment Form'!$DQ841),\"Y\",\"N\"))","v":""},{"$f":"IF($B834=\"N\",\"\",IF(OR('Enrollment Form'!B841<>\"Subscriber\",'Enrollment Form'!C841=\"ROC\",COUNTIF('Enrollment Form'!AV841:AW841,\"Yes\")>=1),\"-\",IF(AND('Enrollment Form'!C841=\"Enroll\",COUNTIF('Enrollment Form'!AV841:AW841,\"No\")=2,'Enrollment Form'!AX841=\"\"),\"N\",\"Y\")))","v":""},{"$f":"IF(OR(B834=\"N\",'Enrollment Form'!B841<>\"Subscriber\",'Enrollment Form'!C841=\"ROC\",'Enrollment Form'!O841<>\"Multiple of Salary\"),\"-\",IF(COUNTA('Enrollment Form'!T841:U841)<2,\"N\",\"Y\"))","v":"-"},{"$f":"IF(B834=\"N\",\"\",IF(OR('Enrollment Form'!C841=\"ROC\",'Enrollment Form'!B841<>\"Subscriber\",'Enrollment Form'!O841=\"Waive\",'Enrollment Form'!O841=\"\"),\"-\",IF('Enrollment Form'!P841=\"\",\"N\",\"Y\")))","v":""},{"$f":"IF($B834=\"N\",\"\",IF(AND('Enrollment Form'!$C841=\"ROC\",'Enrollment Form'!$DR841<>\"\"),\"Y\",IF(AND('Enrollment Form'!$C841=\"ROC\",'Enrollment Form'!$DR841=\"\"),\"N\",IF(AND('Enrollment Form'!$C841=\"Enroll\",'Enrollment Form'!$B841=\"Subscriber\",'Enrollment Form'!$CX841=\"No\",'Enrollment Form'!$DR841=\"\"),\"N\",IF(AND('Enrollment Form'!$C841=\"Enroll\",'Enrollment Form'!$B841=\"Subscriber\",'Enrollment Form'!$CX841=\"Yes\"),\"-\",\"Y\")))))","v":""},{"$f":"IF($B834=\"N\",\"\",IF(AND('Enrollment Form'!$C841=\"ROC\",'Enrollment Form'!$DS841<>\"\"),\"Y\",IF(AND('Enrollment Form'!$C841=\"ROC\",'Enrollment Form'!$DS841=\"\"),\"N\",IF(AND('Enrollment Form'!$C841=\"Enroll\",'Enrollment Form'!$B841=\"Subscriber\",'Enrollment Form'!$CX841=\"No\",'Enrollment Form'!$DS841=\"\"),\"N\",IF(AND('Enrollment Form'!$C841=\"Enroll\",'Enrollment Form'!$B841=\"Subscriber\",'Enrollment Form'!$CX841=\"Yes\"),\"-\",\"Y\")))))","v":""},{"$f":"IF('Enrollment Form'!AH841=\"\",\"\",IF(ISERROR(SEARCH(\".\",'Enrollment Form'!AH841,SEARCH(\"@\",'Enrollment Form'!AH841))),\"N\",\"Y\"))","v":""},{"$f":"IF(OR($B834=\"N\",'Enrollment Form'!$G841=\"\"),\"\",IF('Enrollment Form'!$B841<>\"Subscriber\",\"-\",IF(COUNTIF('Enrollment Form'!$AV841:$AW841,\"Yes\")=2,\"N\",\"Y\")))","v":""},{"$f":"IF(OR('Enrollment Form'!$CJ841=\"\",'Enrollment Form'!$CJ841=\"No\"),\"-\",IF(AND('Enrollment Form'!$CJ841=\"Yes\",'Enrollment Form'!$CK841=\"\"),\"N\",\"Y\"))","v":"-"},{"$f":"IF(OR('Enrollment Form'!$CL841=\"\",'Enrollment Form'!$CL841=\"No\"),\"-\",IF(AND('Enrollment Form'!$CL841=\"Yes\",'Enrollment Form'!$CM841=\"\"),\"N\",\"Y\"))","v":"-"},{"$f":"IF(OR('Enrollment Form'!$CN841=\"\",'Enrollment Form'!$CN841=\"No\"),\"-\",IF(AND('Enrollment Form'!$CN841=\"Yes\",'Enrollment Form'!$CO841=\"\"),\"N\",\"Y\"))","v":"-"},{"$f":"IF(OR('Enrollment Form'!$CN841=\"\",'Enrollment Form'!$CN841=\"No\"),\"-\",IF(AND('Enrollment Form'!$CN841=\"Yes\",'Enrollment Form'!$CP841=\"\"),\"N\",\"Y\"))","v":"-"},{"$f":"IF('Enrollment Form'!B841<>\"Subscriber\",\"-\",IF(AND('Enrollment Form'!B841=\"Subscriber\",'Enrollment Form'!C841=\"Enroll\",'Enrollment Form'!AA841=\"\"),\"N\",\"Y\"))","v":"-"},{"$f":"IF(OR('Enrollment Form'!B841=\"Subscriber\",'Enrollment Form'!B841=\"\"),\"-\",IF('Enrollment Form'!BP841=\"\",\"N\",\"Y\"))","v":"-"},{"$f":"IF('Enrollment Form'!B841<>\"Subscriber\",\"-\",IF(AND('Enrollment Form'!B841=\"Subscriber\",'Enrollment Form'!G841=\"\"),\"N\",\"Y\"))","v":"-"},{"$f":"IF('Enrollment Form'!A841=\"\",\"\",IF('Enrollment Form'!B841=\"Subscriber\",\"-\",IF(AND('Enrollment Form'!B841<>\"Subscriber\",'Enrollment Form'!G841='Enrollment Form'!H841),\"N\",\"Y\")))","v":""},0]
[842,{"$f":"IF('Enrollment Form'!$A842<>\"\",\"Y\",\"N\")","v":"N"},{"$f":"IF(AND('Enrollment Form'!$B842=\"\",'Enrollment Form'!$C842<>\"\"),\"N\",IF($B835=\"N\",\"\",\"Y\"))","v":""},{"$f":"IF(OR($B835=\"N\",'Enrollment Form'!G842=\"\"),\"\",IF('Enrollment Form'!$B842<>\"Subscriber\",\"\",IF('Enrollment Form'!$G842='Enrollment Form'!$H842,\"Y\",\"N\")))","v":""},{"$f":"IF($B835=\"N\",\"\",IF(AND(COUNTIFS('Enrollment Form'!$H$11:$H$1000,'Enrollment Form'!$H842,'Enrollment Form'!$B$11:$B$1000,'Enrollment Form'!$B842)>1,'Enrollment Form'!$H842<>\"\"),\"N\",\"Y\"))","v":""},{"$f":"IF($B835=\"N\",\"\",IF(LEN('Enrollment Form'!$Y842)=0,\"\",IF(LEN('Enrollment Form'!$Y842)<>5,\"N\",\"Y\")))","v":""},{"$f":"IF($B835=\"N\",\"\",IF(LEN('Enrollment Form'!$AD842=0),\"\",IF(LEN('Enrollment Form'!$AD842)<>5,\"N\",\"Y\")))","v":""},{"$f":"IF($B835=\"N\",\"\",IF(LEN('Enrollment Form'!$BS842=0),\"\",IF(LEN('Enrollment Form'!$BS842)<>5,\"N\",\"Y\")))","v":""},{"$f":"IF($B835=\"N\",\"\",IF(LEN('Enrollment Form'!$AE842)=0,\"\",IF(LEN('Enrollment Form'!$AE842)<>10,\"N\",\"Y\")))","v":""},{"$f":"IF($B835=\"N\",\"\",IF(LEN('Enrollment Form'!$AF842)=0,\"\",IF(LEN('Enrollment Form'!$AF842)<>10,\"N\",\"Y\")))","v":""},{"$f":"IF('Enrollment Form'!$O842<>\"Graded\",\"-\",IF(AND('Enrollment Form'!$O842=\"Graded\",'Enrollment Form'!$AR842<>\"\"),\"Y\",\"N\"))","v":"-"},{"$f":"IF($B835=\"N\",\"\",IF(OR('Enrollment Form'!$B842<>\"Subscriber\",'Enrollment Form'!$C842=\"ROC\"),\"-\",IF(AND('Enrollment Form'!$B842=\"Subscriber\",'Enrollment Form'!$C842=\"Enroll\",'Enrollment Form'!$AJ842<>\"\"),\"Y\",\"N\")))","v":""},{"$f":"IF($B835=\"N\",\"\",IF(OR('Enrollment Form'!$B842<>\"Subscriber\",'Enrollment Form'!$C842=\"ROC\"),\"-\",IF(AND('Enrollment Form'!$B842=\"Subscriber\",'Enrollment Form'!$C842=\"Enroll\",'Enrollment Form'!$AK842<>\"\"),\"Y\",\"N\")))","v":""},{"$f":"IF($B835=\"N\",\"\",IF(OR('Enrollment Form'!$B842<>\"Subscriber\",'Enrollment Form'!$C842=\"ROC\"),\"-\",IF(AND('Enrollment Form'!$B842=\"Subscriber\",'Enrollment Form'!$C842=\"Enroll\",'Enrollment Form'!$AL842<>\"\"),\"Y\",\"N\")))","v":""},{"$f":"IF($B835=\"N\",\"\",IF(OR('Enrollment Form'!$B842<>\"Subscriber\",'Enrollment Form'!$C842=\"ROC\"),\"-\",IF(AND('Enrollment Form'!$B842=\"Subscriber\",'Enrollment Form'!$C842=\"Enroll\",'Enrollment Form'!$AP842<>\"\"),\"Y\",\"N\")))","v":""},{"$f":"IF($B835=\"N\",\"\",IF(OR('Enrollment Form'!$B842<>\"Subscriber\",'Enrollment Form'!$C842=\"ROC\"),\"-\",IF(AND('Enrollment Form'!$B842=\"Subscriber\",'Enrollment Form'!$C842=\"Enroll\",'Enrollment Form'!$AQ842<>\"\"),\"Y\",\"N\")))","v":""},{"$f":"IF($B835=\"N\",\"\",IF(OR('Enrollment Form'!$B842<>\"Subscriber\",'Enrollment Form'!$C842=\"ROC\"),\"-\",IF(AND('Enrollment Form'!$B842=\"Subscriber\",'Enrollment Form'!$C842=\"Enroll\",'Enrollment Form'!$AS842<>\"\"),\"Y\",\"N\")))","v":""},{"$f":"IF($B835=\"N\",\"\",IF($Q835=\"-\",\"-\",IF(AND($Q835=\"Y\",'Enrollment Form'!$AS842=\"No\"),\"-\",IF(AND($Q835=\"Y\",'Enrollment Form'!$AS842=\"Yes\",'Enrollment Form'!$AT842<>\"\"),\"Y\",\"N\"))))","v":""},{"$f":"IF($B835=\"N\",\"\",IF(OR('Enrollment Form'!$B842<>\"Subscriber\",'Enrollment Form'!$C842=\"ROC\"),\"-\",IF(AND('Enrollment Form'!$B842=\"Subscriber\",'Enrollment Form'!$C842=\"Enroll\",'Enrollment Form'!$CV842<>\"\"),\"Y\",\"N\")))","v":""},{"$f":"IF($B835=\"N\",\"\",IF($S835=\"-\",\"-\",IF(AND($S835=\"Y\",'Enrollment Form'!$CV842=\"No\"),\"-\",IF(AND($S835=\"Y\",'Enrollment Form'!$CV842=\"Yes\",'Enrollment Form'!$CW842<>\"\"),\"Y\",\"N\"))))","v":""},{"$f":"IF(OR('Enrollment Form'!$AY842=\"Yes\",'Enrollment Form'!$AY842=\"\"),\"-\",IF(OR(AND('Enrollment Form'!$AY842=\"No\",ISERROR(FIND(\"HMO\",VLOOKUP('Enrollment Form'!G842,'Enrollment Form'!H$11:J$1000,3,FALSE),1))=FALSE,COUNTA('Enrollment Form'!$AZ842:$BC842)=4),AND('Enrollment Form'!$AY842=\"No\",ISERROR(FIND(\"HMO\",VLOOKUP('Enrollment Form'!G842,'Enrollment Form'!H$11:J$1000,3,FALSE),1))=FALSE,COUNTA('Enrollment Form'!$BT842:$BW842)=4)),\"Y\",\"N\"))","v":"-"},{"$f":"IF($B835=\"N\",\"\",IF('Enrollment Form'!$B842=\"Subscriber\",\"-\",IF(COUNTA('Enrollment Form'!$BL842,'Enrollment Form'!$BN842)=2,\"Y\",\"N\")))","v":""},{"$f":"IF($B835=\"N\",\"\",IF(OR('Enrollment Form'!$AX842=\"\",'Enrollment Form'!$AX842=\"No\"),\"-\",IF(AND('Enrollment Form'!$AX842=\"Yes\",COUNTA('Enrollment Form'!$CR842)=1),\"Y\",\"N\")))","v":""},{"$f":"IF(OR('Enrollment Form'!$CR842=\"\",'Enrollment Form'!$CR842=\"No\"),\"-\",IF(COUNTA('Enrollment Form'!$CT842:$CU842)=2,\"Y\",\"N\"))","v":"-"},{"$f":"IF($B835=\"N\",\"\",IF(COUNTIF('Enrollment Form'!$DG842:$DP842,\"Other\")=COUNTA('Enrollment Form'!$DK842,'Enrollment Form'!$DH842,'Enrollment Form'!$DN842,'Enrollment Form'!$DQ842),\"Y\",\"N\"))","v":""},{"$f":"IF($B835=\"N\",\"\",IF(OR('Enrollment Form'!B842<>\"Subscriber\",'Enrollment Form'!C842=\"ROC\",COUNTIF('Enrollment Form'!AV842:AW842,\"Yes\")>=1),\"-\",IF(AND('Enrollment Form'!C842=\"Enroll\",COUNTIF('Enrollment Form'!AV842:AW842,\"No\")=2,'Enrollment Form'!AX842=\"\"),\"N\",\"Y\")))","v":""},{"$f":"IF(OR(B835=\"N\",'Enrollment Form'!B842<>\"Subscriber\",'Enrollment Form'!C842=\"ROC\",'Enrollment Form'!O842<>\"Multiple of Salary\"),\"-\",IF(COUNTA('Enrollment Form'!T842:U842)<2,\"N\",\"Y\"))","v":"-"},{"$f":"IF(B835=\"N\",\"\",IF(OR('Enrollment Form'!C842=\"ROC\",'Enrollment Form'!B842<>\"Subscriber\",'Enrollment Form'!O842=\"Waive\",'Enrollment Form'!O842=\"\"),\"-\",IF('Enrollment Form'!P842=\"\",\"N\",\"Y\")))","v":""},{"$f":"IF($B835=\"N\",\"\",IF(AND('Enrollment Form'!$C842=\"ROC\",'Enrollment Form'!$DR842<>\"\"),\"Y\",IF(AND('Enrollment Form'!$C842=\"ROC\",'Enrollment Form'!$DR842=\"\"),\"N\",IF(AND('Enrollment Form'!$C842=\"Enroll\",'Enrollment Form'!$B842=\"Subscriber\",'Enrollment Form'!$CX842=\"No\",'Enrollment Form'!$DR842=\"\"),\"N\",IF(AND('Enrollment Form'!$C842=\"Enroll\",'Enrollment Form'!$B842=\"Subscriber\",'Enrollment Form'!$CX842=\"Yes\"),\"-\",\"Y\")))))","v":""},{"$f":"IF($B835=\"N\",\"\",IF(AND('Enrollment Form'!$C842=\"ROC\",'Enrollment Form'!$DS842<>\"\"),\"Y\",IF(AND('Enrollment Form'!$C842=\"ROC\",'Enrollment Form'!$DS842=\"\"),\"N\",IF(AND('Enrollment Form'!$C842=\"Enroll\",'Enrollment Form'!$B842=\"Subscriber\",'Enrollment Form'!$CX842=\"No\",'Enrollment Form'!$DS842=\"\"),\"N\",IF(AND('Enrollment Form'!$C842=\"Enroll\",'Enrollment Form'!$B842=\"Subscriber\",'Enrollment Form'!$CX842=\"Yes\"),\"-\",\"Y\")))))","v":""},{"$f":"IF('Enrollment Form'!AH842=\"\",\"\",IF(ISERROR(SEARCH(\".\",'Enrollment Form'!AH842,SEARCH(\"@\",'Enrollment Form'!AH842))),\"N\",\"Y\"))","v":""},{"$f":"IF(OR($B835=\"N\",'Enrollment Form'!$G842=\"\"),\"\",IF('Enrollment Form'!$B842<>\"Subscriber\",\"-\",IF(COUNTIF('Enrollment Form'!$AV842:$AW842,\"Yes\")=2,\"N\",\"Y\")))","v":""},{"$f":"IF(OR('Enrollment Form'!$CJ842=\"\",'Enrollment Form'!$CJ842=\"No\"),\"-\",IF(AND('Enrollment Form'!$CJ842=\"Yes\",'Enrollment Form'!$CK842=\"\"),\"N\",\"Y\"))","v":"-"},{"$f":"IF(OR('Enrollment Form'!$CL842=\"\",'Enrollment Form'!$CL842=\"No\"),\"-\",IF(AND('Enrollment Form'!$CL842=\"Yes\",'Enrollment Form'!$CM842=\"\"),\"N\",\"Y\"))","v":"-"},{"$f":"IF(OR('Enrollment Form'!$CN842=\"\",'Enrollment Form'!$CN842=\"No\"),\"-\",IF(AND('Enrollment Form'!$CN842=\"Yes\",'Enrollment Form'!$CO842=\"\"),\"N\",\"Y\"))","v":"-"},{"$f":"IF(OR('Enrollment Form'!$CN842=\"\",'Enrollment Form'!$CN842=\"No\"),\"-\",IF(AND('Enrollment Form'!$CN842=\"Yes\",'Enrollment Form'!$CP842=\"\"),\"N\",\"Y\"))","v":"-"},{"$f":"IF('Enrollment Form'!B842<>\"Subscriber\",\"-\",IF(AND('Enrollment Form'!B842=\"Subscriber\",'Enrollment Form'!C842=\"Enroll\",'Enrollment Form'!AA842=\"\"),\"N\",\"Y\"))","v":"-"},{"$f":"IF(OR('Enrollment Form'!B842=\"Subscriber\",'Enrollment Form'!B842=\"\"),\"-\",IF('Enrollment Form'!BP842=\"\",\"N\",\"Y\"))","v":"-"},{"$f":"IF('Enrollment Form'!B842<>\"Subscriber\",\"-\",IF(AND('Enrollment Form'!B842=\"Subscriber\",'Enrollment Form'!G842=\"\"),\"N\",\"Y\"))","v":"-"},{"$f":"IF('Enrollment Form'!A842=\"\",\"\",IF('Enrollment Form'!B842=\"Subscriber\",\"-\",IF(AND('Enrollment Form'!B842<>\"Subscriber\",'Enrollment Form'!G842='Enrollment Form'!H842),\"N\",\"Y\")))","v":""},0]
[843,{"$f":"IF('Enrollment Form'!$A843<>\"\",\"Y\",\"N\")","v":"N"},{"$f":"IF(AND('Enrollment Form'!$B843=\"\",'Enrollment Form'!$C843<>\"\"),\"N\",IF($B836=\"N\",\"\",\"Y\"))","v":""},{"$f":"IF(OR($B836=\"N\",'Enrollment Form'!G843=\"\"),\"\",IF('Enrollment Form'!$B843<>\"Subscriber\",\"\",IF('Enrollment Form'!$G843='Enrollment Form'!$H843,\"Y\",\"N\")))","v":""},{"$f":"IF($B836=\"N\",\"\",IF(AND(COUNTIFS('Enrollment Form'!$H$11:$H$1000,'Enrollment Form'!$H843,'Enrollment Form'!$B$11:$B$1000,'Enrollment Form'!$B843)>1,'Enrollment Form'!$H843<>\"\"),\"N\",\"Y\"))","v":""},{"$f":"IF($B836=\"N\",\"\",IF(LEN('Enrollment Form'!$Y843)=0,\"\",IF(LEN('Enrollment Form'!$Y843)<>5,\"N\",\"Y\")))","v":""},{"$f":"IF($B836=\"N\",\"\",IF(LEN('Enrollment Form'!$AD843=0),\"\",IF(LEN('Enrollment Form'!$AD843)<>5,\"N\",\"Y\")))","v":""},{"$f":"IF($B836=\"N\",\"\",IF(LEN('Enrollment Form'!$BS843=0),\"\",IF(LEN('Enrollment Form'!$BS843)<>5,\"N\",\"Y\")))","v":""},{"$f":"IF($B836=\"N\",\"\",IF(LEN('Enrollment Form'!$AE843)=0,\"\",IF(LEN('Enrollment Form'!$AE843)<>10,\"N\",\"Y\")))","v":""},{"$f":"IF($B836=\"N\",\"\",IF(LEN('Enrollment Form'!$AF843)=0,\"\",IF(LEN('Enrollment Form'!$AF843)<>10,\"N\",\"Y\")))","v":""},{"$f":"IF('Enrollment Form'!$O843<>\"Graded\",\"-\",IF(AND('Enrollment Form'!$O843=\"Graded\",'Enrollment Form'!$AR843<>\"\"),\"Y\",\"N\"))","v":"-"},{"$f":"IF($B836=\"N\",\"\",IF(OR('Enrollment Form'!$B843<>\"Subscriber\",'Enrollment Form'!$C843=\"ROC\"),\"-\",IF(AND('Enrollment Form'!$B843=\"Subscriber\",'Enrollment Form'!$C843=\"Enroll\",'Enrollment Form'!$AJ843<>\"\"),\"Y\",\"N\")))","v":""},{"$f":"IF($B836=\"N\",\"\",IF(OR('Enrollment Form'!$B843<>\"Subscriber\",'Enrollment Form'!$C843=\"ROC\"),\"-\",IF(AND('Enrollment Form'!$B843=\"Subscriber\",'Enrollment Form'!$C843=\"Enroll\",'Enrollment Form'!$AK843<>\"\"),\"Y\",\"N\")))","v":""},{"$f":"IF($B836=\"N\",\"\",IF(OR('Enrollment Form'!$B843<>\"Subscriber\",'Enrollment Form'!$C843=\"ROC\"),\"-\",IF(AND('Enrollment Form'!$B843=\"Subscriber\",'Enrollment Form'!$C843=\"Enroll\",'Enrollment Form'!$AL843<>\"\"),\"Y\",\"N\")))","v":""},{"$f":"IF($B836=\"N\",\"\",IF(OR('Enrollment Form'!$B843<>\"Subscriber\",'Enrollment Form'!$C843=\"ROC\"),\"-\",IF(AND('Enrollment Form'!$B843=\"Subscriber\",'Enrollment Form'!$C843=\"Enroll\",'Enrollment Form'!$AP843<>\"\"),\"Y\",\"N\")))","v":""},{"$f":"IF($B836=\"N\",\"\",IF(OR('Enrollment Form'!$B843<>\"Subscriber\",'Enrollment Form'!$C843=\"ROC\"),\"-\",IF(AND('Enrollment Form'!$B843=\"Subscriber\",'Enrollment Form'!$C843=\"Enroll\",'Enrollment Form'!$AQ843<>\"\"),\"Y\",\"N\")))","v":""},{"$f":"IF($B836=\"N\",\"\",IF(OR('Enrollment Form'!$B843<>\"Subscriber\",'Enrollment Form'!$C843=\"ROC\"),\"-\",IF(AND('Enrollment Form'!$B843=\"Subscriber\",'Enrollment Form'!$C843=\"Enroll\",'Enrollment Form'!$AS843<>\"\"),\"Y\",\"N\")))","v":""},{"$f":"IF($B836=\"N\",\"\",IF($Q836=\"-\",\"-\",IF(AND($Q836=\"Y\",'Enrollment Form'!$AS843=\"No\"),\"-\",IF(AND($Q836=\"Y\",'Enrollment Form'!$AS843=\"Yes\",'Enrollment Form'!$AT843<>\"\"),\"Y\",\"N\"))))","v":""},{"$f":"IF($B836=\"N\",\"\",IF(OR('Enrollment Form'!$B843<>\"Subscriber\",'Enrollment Form'!$C843=\"ROC\"),\"-\",IF(AND('Enrollment Form'!$B843=\"Subscriber\",'Enrollment Form'!$C843=\"Enroll\",'Enrollment Form'!$CV843<>\"\"),\"Y\",\"N\")))","v":""},{"$f":"IF($B836=\"N\",\"\",IF($S836=\"-\",\"-\",IF(AND($S836=\"Y\",'Enrollment Form'!$CV843=\"No\"),\"-\",IF(AND($S836=\"Y\",'Enrollment Form'!$CV843=\"Yes\",'Enrollment Form'!$CW843<>\"\"),\"Y\",\"N\"))))","v":""},{"$f":"IF(OR('Enrollment Form'!$AY843=\"Yes\",'Enrollment Form'!$AY843=\"\"),\"-\",IF(OR(AND('Enrollment Form'!$AY843=\"No\",ISERROR(FIND(\"HMO\",VLOOKUP('Enrollment Form'!G843,'Enrollment Form'!H$11:J$1000,3,FALSE),1))=FALSE,COUNTA('Enrollment Form'!$AZ843:$BC843)=4),AND('Enrollment Form'!$AY843=\"No\",ISERROR(FIND(\"HMO\",VLOOKUP('Enrollment Form'!G843,'Enrollment Form'!H$11:J$1000,3,FALSE),1))=FALSE,COUNTA('Enrollment Form'!$BT843:$BW843)=4)),\"Y\",\"N\"))","v":"-"},{"$f":"IF($B836=\"N\",\"\",IF('Enrollment Form'!$B843=\"Subscriber\",\"-\",IF(COUNTA('Enrollment Form'!$BL843,'Enrollment Form'!$BN843)=2,\"Y\",\"N\")))","v":""},{"$f":"IF($B836=\"N\",\"\",IF(OR('Enrollment Form'!$AX843=\"\",'Enrollment Form'!$AX843=\"No\"),\"-\",IF(AND('Enrollment Form'!$AX843=\"Yes\",COUNTA('Enrollment Form'!$CR843)=1),\"Y\",\"N\")))","v":""},{"$f":"IF(OR('Enrollment Form'!$CR843=\"\",'Enrollment Form'!$CR843=\"No\"),\"-\",IF(COUNTA('Enrollment Form'!$CT843:$CU843)=2,\"Y\",\"N\"))","v":"-"},{"$f":"IF($B836=\"N\",\"\",IF(COUNTIF('Enrollment Form'!$DG843:$DP843,\"Other\")=COUNTA('Enrollment Form'!$DK843,'Enrollment Form'!$DH843,'Enrollment Form'!$DN843,'Enrollment Form'!$DQ843),\"Y\",\"N\"))","v":""},{"$f":"IF($B836=\"N\",\"\",IF(OR('Enrollment Form'!B843<>\"Subscriber\",'Enrollment Form'!C843=\"ROC\",COUNTIF('Enrollment Form'!AV843:AW843,\"Yes\")>=1),\"-\",IF(AND('Enrollment Form'!C843=\"Enroll\",COUNTIF('Enrollment Form'!AV843:AW843,\"No\")=2,'Enrollment Form'!AX843=\"\"),\"N\",\"Y\")))","v":""},{"$f":"IF(OR(B836=\"N\",'Enrollment Form'!B843<>\"Subscriber\",'Enrollment Form'!C843=\"ROC\",'Enrollment Form'!O843<>\"Multiple of Salary\"),\"-\",IF(COUNTA('Enrollment Form'!T843:U843)<2,\"N\",\"Y\"))","v":"-"},{"$f":"IF(B836=\"N\",\"\",IF(OR('Enrollment Form'!C843=\"ROC\",'Enrollment Form'!B843<>\"Subscriber\",'Enrollment Form'!O843=\"Waive\",'Enrollment Form'!O843=\"\"),\"-\",IF('Enrollment Form'!P843=\"\",\"N\",\"Y\")))","v":""},{"$f":"IF($B836=\"N\",\"\",IF(AND('Enrollment Form'!$C843=\"ROC\",'Enrollment Form'!$DR843<>\"\"),\"Y\",IF(AND('Enrollment Form'!$C843=\"ROC\",'Enrollment Form'!$DR843=\"\"),\"N\",IF(AND('Enrollment Form'!$C843=\"Enroll\",'Enrollment Form'!$B843=\"Subscriber\",'Enrollment Form'!$CX843=\"No\",'Enrollment Form'!$DR843=\"\"),\"N\",IF(AND('Enrollment Form'!$C843=\"Enroll\",'Enrollment Form'!$B843=\"Subscriber\",'Enrollment Form'!$CX843=\"Yes\"),\"-\",\"Y\")))))","v":""},{"$f":"IF($B836=\"N\",\"\",IF(AND('Enrollment Form'!$C843=\"ROC\",'Enrollment Form'!$DS843<>\"\"),\"Y\",IF(AND('Enrollment Form'!$C843=\"ROC\",'Enrollment Form'!$DS843=\"\"),\"N\",IF(AND('Enrollment Form'!$C843=\"Enroll\",'Enrollment Form'!$B843=\"Subscriber\",'Enrollment Form'!$CX843=\"No\",'Enrollment Form'!$DS843=\"\"),\"N\",IF(AND('Enrollment Form'!$C843=\"Enroll\",'Enrollment Form'!$B843=\"Subscriber\",'Enrollment Form'!$CX843=\"Yes\"),\"-\",\"Y\")))))","v":""},{"$f":"IF('Enrollment Form'!AH843=\"\",\"\",IF(ISERROR(SEARCH(\".\",'Enrollment Form'!AH843,SEARCH(\"@\",'Enrollment Form'!AH843))),\"N\",\"Y\"))","v":""},{"$f":"IF(OR($B836=\"N\",'Enrollment Form'!$G843=\"\"),\"\",IF('Enrollment Form'!$B843<>\"Subscriber\",\"-\",IF(COUNTIF('Enrollment Form'!$AV843:$AW843,\"Yes\")=2,\"N\",\"Y\")))","v":""},{"$f":"IF(OR('Enrollment Form'!$CJ843=\"\",'Enrollment Form'!$CJ843=\"No\"),\"-\",IF(AND('Enrollment Form'!$CJ843=\"Yes\",'Enrollment Form'!$CK843=\"\"),\"N\",\"Y\"))","v":"-"},{"$f":"IF(OR('Enrollment Form'!$CL843=\"\",'Enrollment Form'!$CL843=\"No\"),\"-\",IF(AND('Enrollment Form'!$CL843=\"Yes\",'Enrollment Form'!$CM843=\"\"),\"N\",\"Y\"))","v":"-"},{"$f":"IF(OR('Enrollment Form'!$CN843=\"\",'Enrollment Form'!$CN843=\"No\"),\"-\",IF(AND('Enrollment Form'!$CN843=\"Yes\",'Enrollment Form'!$CO843=\"\"),\"N\",\"Y\"))","v":"-"},{"$f":"IF(OR('Enrollment Form'!$CN843=\"\",'Enrollment Form'!$CN843=\"No\"),\"-\",IF(AND('Enrollment Form'!$CN843=\"Yes\",'Enrollment Form'!$CP843=\"\"),\"N\",\"Y\"))","v":"-"},{"$f":"IF('Enrollment Form'!B843<>\"Subscriber\",\"-\",IF(AND('Enrollment Form'!B843=\"Subscriber\",'Enrollment Form'!C843=\"Enroll\",'Enrollment Form'!AA843=\"\"),\"N\",\"Y\"))","v":"-"},{"$f":"IF(OR('Enrollment Form'!B843=\"Subscriber\",'Enrollment Form'!B843=\"\"),\"-\",IF('Enrollment Form'!BP843=\"\",\"N\",\"Y\"))","v":"-"},{"$f":"IF('Enrollment Form'!B843<>\"Subscriber\",\"-\",IF(AND('Enrollment Form'!B843=\"Subscriber\",'Enrollment Form'!G843=\"\"),\"N\",\"Y\"))","v":"-"},{"$f":"IF('Enrollment Form'!A843=\"\",\"\",IF('Enrollment Form'!B843=\"Subscriber\",\"-\",IF(AND('Enrollment Form'!B843<>\"Subscriber\",'Enrollment Form'!G843='Enrollment Form'!H843),\"N\",\"Y\")))","v":""},{"$f":"COUNTIF(C836:AN836,\"N\")","v":0}]
[844,{"$f":"IF('Enrollment Form'!$A844<>\"\",\"Y\",\"N\")","v":"N"},{"$f":"IF(AND('Enrollment Form'!$B844=\"\",'Enrollment Form'!$C844<>\"\"),\"N\",IF($B837=\"N\",\"\",\"Y\"))","v":""},{"$f":"IF(OR($B837=\"N\",'Enrollment Form'!G844=\"\"),\"\",IF('Enrollment Form'!$B844<>\"Subscriber\",\"\",IF('Enrollment Form'!$G844='Enrollment Form'!$H844,\"Y\",\"N\")))","v":""},{"$f":"IF($B837=\"N\",\"\",IF(AND(COUNTIFS('Enrollment Form'!$H$11:$H$1000,'Enrollment Form'!$H844,'Enrollment Form'!$B$11:$B$1000,'Enrollment Form'!$B844)>1,'Enrollment Form'!$H844<>\"\"),\"N\",\"Y\"))","v":""},{"$f":"IF($B837=\"N\",\"\",IF(LEN('Enrollment Form'!$Y844)=0,\"\",IF(LEN('Enrollment Form'!$Y844)<>5,\"N\",\"Y\")))","v":""},{"$f":"IF($B837=\"N\",\"\",IF(LEN('Enrollment Form'!$AD844=0),\"\",IF(LEN('Enrollment Form'!$AD844)<>5,\"N\",\"Y\")))","v":""},{"$f":"IF($B837=\"N\",\"\",IF(LEN('Enrollment Form'!$BS844=0),\"\",IF(LEN('Enrollment Form'!$BS844)<>5,\"N\",\"Y\")))","v":""},{"$f":"IF($B837=\"N\",\"\",IF(LEN('Enrollment Form'!$AE844)=0,\"\",IF(LEN('Enrollment Form'!$AE844)<>10,\"N\",\"Y\")))","v":""},{"$f":"IF($B837=\"N\",\"\",IF(LEN('Enrollment Form'!$AF844)=0,\"\",IF(LEN('Enrollment Form'!$AF844)<>10,\"N\",\"Y\")))","v":""},{"$f":"IF('Enrollment Form'!$O844<>\"Graded\",\"-\",IF(AND('Enrollment Form'!$O844=\"Graded\",'Enrollment Form'!$AR844<>\"\"),\"Y\",\"N\"))","v":"-"},{"$f":"IF($B837=\"N\",\"\",IF(OR('Enrollment Form'!$B844<>\"Subscriber\",'Enrollment Form'!$C844=\"ROC\"),\"-\",IF(AND('Enrollment Form'!$B844=\"Subscriber\",'Enrollment Form'!$C844=\"Enroll\",'Enrollment Form'!$AJ844<>\"\"),\"Y\",\"N\")))","v":""},{"$f":"IF($B837=\"N\",\"\",IF(OR('Enrollment Form'!$B844<>\"Subscriber\",'Enrollment Form'!$C844=\"ROC\"),\"-\",IF(AND('Enrollment Form'!$B844=\"Subscriber\",'Enrollment Form'!$C844=\"Enroll\",'Enrollment Form'!$AK844<>\"\"),\"Y\",\"N\")))","v":""},{"$f":"IF($B837=\"N\",\"\",IF(OR('Enrollment Form'!$B844<>\"Subscriber\",'Enrollment Form'!$C844=\"ROC\"),\"-\",IF(AND('Enrollment Form'!$B844=\"Subscriber\",'Enrollment Form'!$C844=\"Enroll\",'Enrollment Form'!$AL844<>\"\"),\"Y\",\"N\")))","v":""},{"$f":"IF($B837=\"N\",\"\",IF(OR('Enrollment Form'!$B844<>\"Subscriber\",'Enrollment Form'!$C844=\"ROC\"),\"-\",IF(AND('Enrollment Form'!$B844=\"Subscriber\",'Enrollment Form'!$C844=\"Enroll\",'Enrollment Form'!$AP844<>\"\"),\"Y\",\"N\")))","v":""},{"$f":"IF($B837=\"N\",\"\",IF(OR('Enrollment Form'!$B844<>\"Subscriber\",'Enrollment Form'!$C844=\"ROC\"),\"-\",IF(AND('Enrollment Form'!$B844=\"Subscriber\",'Enrollment Form'!$C844=\"Enroll\",'Enrollment Form'!$AQ844<>\"\"),\"Y\",\"N\")))","v":""},{"$f":"IF($B837=\"N\",\"\",IF(OR('Enrollment Form'!$B844<>\"Subscriber\",'Enrollment Form'!$C844=\"ROC\"),\"-\",IF(AND('Enrollment Form'!$B844=\"Subscriber\",'Enrollment Form'!$C844=\"Enroll\",'Enrollment Form'!$AS844<>\"\"),\"Y\",\"N\")))","v":""},{"$f":"IF($B837=\"N\",\"\",IF($Q837=\"-\",\"-\",IF(AND($Q837=\"Y\",'Enrollment Form'!$AS844=\"No\"),\"-\",IF(AND($Q837=\"Y\",'Enrollment Form'!$AS844=\"Yes\",'Enrollment Form'!$AT844<>\"\"),\"Y\",\"N\"))))","v":""},{"$f":"IF($B837=\"N\",\"\",IF(OR('Enrollment Form'!$B844<>\"Subscriber\",'Enrollment Form'!$C844=\"ROC\"),\"-\",IF(AND('Enrollment Form'!$B844=\"Subscriber\",'Enrollment Form'!$C844=\"Enroll\",'Enrollment Form'!$CV844<>\"\"),\"Y\",\"N\")))","v":""},{"$f":"IF($B837=\"N\",\"\",IF($S837=\"-\",\"-\",IF(AND($S837=\"Y\",'Enrollment Form'!$CV844=\"No\"),\"-\",IF(AND($S837=\"Y\",'Enrollment Form'!$CV844=\"Yes\",'Enrollment Form'!$CW844<>\"\"),\"Y\",\"N\"))))","v":""},{"$f":"IF(OR('Enrollment Form'!$AY844=\"Yes\",'Enrollment Form'!$AY844=\"\"),\"-\",IF(OR(AND('Enrollment Form'!$AY844=\"No\",ISERROR(FIND(\"HMO\",VLOOKUP('Enrollment Form'!G844,'Enrollment Form'!H$11:J$1000,3,FALSE),1))=FALSE,COUNTA('Enrollment Form'!$AZ844:$BC844)=4),AND('Enrollment Form'!$AY844=\"No\",ISERROR(FIND(\"HMO\",VLOOKUP('Enrollment Form'!G844,'Enrollment Form'!H$11:J$1000,3,FALSE),1))=FALSE,COUNTA('Enrollment Form'!$BT844:$BW844)=4)),\"Y\",\"N\"))","v":"-"},{"$f":"IF($B837=\"N\",\"\",IF('Enrollment Form'!$B844=\"Subscriber\",\"-\",IF(COUNTA('Enrollment Form'!$BL844,'Enrollment Form'!$BN844)=2,\"Y\",\"N\")))","v":""},{"$f":"IF($B837=\"N\",\"\",IF(OR('Enrollment Form'!$AX844=\"\",'Enrollment Form'!$AX844=\"No\"),\"-\",IF(AND('Enrollment Form'!$AX844=\"Yes\",COUNTA('Enrollment Form'!$CR844)=1),\"Y\",\"N\")))","v":""},{"$f":"IF(OR('Enrollment Form'!$CR844=\"\",'Enrollment Form'!$CR844=\"No\"),\"-\",IF(COUNTA('Enrollment Form'!$CT844:$CU844)=2,\"Y\",\"N\"))","v":"-"},{"$f":"IF($B837=\"N\",\"\",IF(COUNTIF('Enrollment Form'!$DG844:$DP844,\"Other\")=COUNTA('Enrollment Form'!$DK844,'Enrollment Form'!$DH844,'Enrollment Form'!$DN844,'Enrollment Form'!$DQ844),\"Y\",\"N\"))","v":""},{"$f":"IF($B837=\"N\",\"\",IF(OR('Enrollment Form'!B844<>\"Subscriber\",'Enrollment Form'!C844=\"ROC\",COUNTIF('Enrollment Form'!AV844:AW844,\"Yes\")>=1),\"-\",IF(AND('Enrollment Form'!C844=\"Enroll\",COUNTIF('Enrollment Form'!AV844:AW844,\"No\")=2,'Enrollment Form'!AX844=\"\"),\"N\",\"Y\")))","v":""},{"$f":"IF(OR(B837=\"N\",'Enrollment Form'!B844<>\"Subscriber\",'Enrollment Form'!C844=\"ROC\",'Enrollment Form'!O844<>\"Multiple of Salary\"),\"-\",IF(COUNTA('Enrollment Form'!T844:U844)<2,\"N\",\"Y\"))","v":"-"},{"$f":"IF(B837=\"N\",\"\",IF(OR('Enrollment Form'!C844=\"ROC\",'Enrollment Form'!B844<>\"Subscriber\",'Enrollment Form'!O844=\"Waive\",'Enrollment Form'!O844=\"\"),\"-\",IF('Enrollment Form'!P844=\"\",\"N\",\"Y\")))","v":""},{"$f":"IF($B837=\"N\",\"\",IF(AND('Enrollment Form'!$C844=\"ROC\",'Enrollment Form'!$DR844<>\"\"),\"Y\",IF(AND('Enrollment Form'!$C844=\"ROC\",'Enrollment Form'!$DR844=\"\"),\"N\",IF(AND('Enrollment Form'!$C844=\"Enroll\",'Enrollment Form'!$B844=\"Subscriber\",'Enrollment Form'!$CX844=\"No\",'Enrollment Form'!$DR844=\"\"),\"N\",IF(AND('Enrollment Form'!$C844=\"Enroll\",'Enrollment Form'!$B844=\"Subscriber\",'Enrollment Form'!$CX844=\"Yes\"),\"-\",\"Y\")))))","v":""},{"$f":"IF($B837=\"N\",\"\",IF(AND('Enrollment Form'!$C844=\"ROC\",'Enrollment Form'!$DS844<>\"\"),\"Y\",IF(AND('Enrollment Form'!$C844=\"ROC\",'Enrollment Form'!$DS844=\"\"),\"N\",IF(AND('Enrollment Form'!$C844=\"Enroll\",'Enrollment Form'!$B844=\"Subscriber\",'Enrollment Form'!$CX844=\"No\",'Enrollment Form'!$DS844=\"\"),\"N\",IF(AND('Enrollment Form'!$C844=\"Enroll\",'Enrollment Form'!$B844=\"Subscriber\",'Enrollment Form'!$CX844=\"Yes\"),\"-\",\"Y\")))))","v":""},{"$f":"IF('Enrollment Form'!AH844=\"\",\"\",IF(ISERROR(SEARCH(\".\",'Enrollment Form'!AH844,SEARCH(\"@\",'Enrollment Form'!AH844))),\"N\",\"Y\"))","v":""},{"$f":"IF(OR($B837=\"N\",'Enrollment Form'!$G844=\"\"),\"\",IF('Enrollment Form'!$B844<>\"Subscriber\",\"-\",IF(COUNTIF('Enrollment Form'!$AV844:$AW844,\"Yes\")=2,\"N\",\"Y\")))","v":""},{"$f":"IF(OR('Enrollment Form'!$CJ844=\"\",'Enrollment Form'!$CJ844=\"No\"),\"-\",IF(AND('Enrollment Form'!$CJ844=\"Yes\",'Enrollment Form'!$CK844=\"\"),\"N\",\"Y\"))","v":"-"},{"$f":"IF(OR('Enrollment Form'!$CL844=\"\",'Enrollment Form'!$CL844=\"No\"),\"-\",IF(AND('Enrollment Form'!$CL844=\"Yes\",'Enrollment Form'!$CM844=\"\"),\"N\",\"Y\"))","v":"-"},{"$f":"IF(OR('Enrollment Form'!$CN844=\"\",'Enrollment Form'!$CN844=\"No\"),\"-\",IF(AND('Enrollment Form'!$CN844=\"Yes\",'Enrollment Form'!$CO844=\"\"),\"N\",\"Y\"))","v":"-"},{"$f":"IF(OR('Enrollment Form'!$CN844=\"\",'Enrollment Form'!$CN844=\"No\"),\"-\",IF(AND('Enrollment Form'!$CN844=\"Yes\",'Enrollment Form'!$CP844=\"\"),\"N\",\"Y\"))","v":"-"},{"$f":"IF('Enrollment Form'!B844<>\"Subscriber\",\"-\",IF(AND('Enrollment Form'!B844=\"Subscriber\",'Enrollment Form'!C844=\"Enroll\",'Enrollment Form'!AA844=\"\"),\"N\",\"Y\"))","v":"-"},{"$f":"IF(OR('Enrollment Form'!B844=\"Subscriber\",'Enrollment Form'!B844=\"\"),\"-\",IF('Enrollment Form'!BP844=\"\",\"N\",\"Y\"))","v":"-"},{"$f":"IF('Enrollment Form'!B844<>\"Subscriber\",\"-\",IF(AND('Enrollment Form'!B844=\"Subscriber\",'Enrollment Form'!G844=\"\"),\"N\",\"Y\"))","v":"-"},{"$f":"IF('Enrollment Form'!A844=\"\",\"\",IF('Enrollment Form'!B844=\"Subscriber\",\"-\",IF(AND('Enrollment Form'!B844<>\"Subscriber\",'Enrollment Form'!G844='Enrollment Form'!H844),\"N\",\"Y\")))","v":""},0]
[{"$f":"1+A837","v":845},{"$f":"IF('Enrollment Form'!$A845<>\"\",\"Y\",\"N\")","v":"N"},{"$f":"IF(AND('Enrollment Form'!$B845=\"\",'Enrollment Form'!$C845<>\"\"),\"N\",IF($B838=\"N\",\"\",\"Y\"))","v":""},{"$f":"IF(OR($B838=\"N\",'Enrollment Form'!G845=\"\"),\"\",IF('Enrollment Form'!$B845<>\"Subscriber\",\"\",IF('Enrollment Form'!$G845='Enrollment Form'!$H845,\"Y\",\"N\")))","v":""},{"$f":"IF($B838=\"N\",\"\",IF(AND(COUNTIFS('Enrollment Form'!$H$11:$H$1000,'Enrollment Form'!$H845,'Enrollment Form'!$B$11:$B$1000,'Enrollment Form'!$B845)>1,'Enrollment Form'!$H845<>\"\"),\"N\",\"Y\"))","v":""},{"$f":"IF($B838=\"N\",\"\",IF(LEN('Enrollment Form'!$Y845)=0,\"\",IF(LEN('Enrollment Form'!$Y845)<>5,\"N\",\"Y\")))","v":""},{"$f":"IF($B838=\"N\",\"\",IF(LEN('Enrollment Form'!$AD845=0),\"\",IF(LEN('Enrollment Form'!$AD845)<>5,\"N\",\"Y\")))","v":""},{"$f":"IF($B838=\"N\",\"\",IF(LEN('Enrollment Form'!$BS845=0),\"\",IF(LEN('Enrollment Form'!$BS845)<>5,\"N\",\"Y\")))","v":""},{"$f":"IF($B838=\"N\",\"\",IF(LEN('Enrollment Form'!$AE845)=0,\"\",IF(LEN('Enrollment Form'!$AE845)<>10,\"N\",\"Y\")))","v":""},{"$f":"IF($B838=\"N\",\"\",IF(LEN('Enrollment Form'!$AF845)=0,\"\",IF(LEN('Enrollment Form'!$AF845)<>10,\"N\",\"Y\")))","v":""},{"$f":"IF('Enrollment Form'!$O845<>\"Graded\",\"-\",IF(AND('Enrollment Form'!$O845=\"Graded\",'Enrollment Form'!$AR845<>\"\"),\"Y\",\"N\"))","v":"-"},{"$f":"IF($B838=\"N\",\"\",IF(OR('Enrollment Form'!$B845<>\"Subscriber\",'Enrollment Form'!$C845=\"ROC\"),\"-\",IF(AND('Enrollment Form'!$B845=\"Subscriber\",'Enrollment Form'!$C845=\"Enroll\",'Enrollment Form'!$AJ845<>\"\"),\"Y\",\"N\")))","v":""},{"$f":"IF($B838=\"N\",\"\",IF(OR('Enrollment Form'!$B845<>\"Subscriber\",'Enrollment Form'!$C845=\"ROC\"),\"-\",IF(AND('Enrollment Form'!$B845=\"Subscriber\",'Enrollment Form'!$C845=\"Enroll\",'Enrollment Form'!$AK845<>\"\"),\"Y\",\"N\")))","v":""},{"$f":"IF($B838=\"N\",\"\",IF(OR('Enrollment Form'!$B845<>\"Subscriber\",'Enrollment Form'!$C845=\"ROC\"),\"-\",IF(AND('Enrollment Form'!$B845=\"Subscriber\",'Enrollment Form'!$C845=\"Enroll\",'Enrollment Form'!$AL845<>\"\"),\"Y\",\"N\")))","v":""},{"$f":"IF($B838=\"N\",\"\",IF(OR('Enrollment Form'!$B845<>\"Subscriber\",'Enrollment Form'!$C845=\"ROC\"),\"-\",IF(AND('Enrollment Form'!$B845=\"Subscriber\",'Enrollment Form'!$C845=\"Enroll\",'Enrollment Form'!$AP845<>\"\"),\"Y\",\"N\")))","v":""},{"$f":"IF($B838=\"N\",\"\",IF(OR('Enrollment Form'!$B845<>\"Subscriber\",'Enrollment Form'!$C845=\"ROC\"),\"-\",IF(AND('Enrollment Form'!$B845=\"Subscriber\",'Enrollment Form'!$C845=\"Enroll\",'Enrollment Form'!$AQ845<>\"\"),\"Y\",\"N\")))","v":""},{"$f":"IF($B838=\"N\",\"\",IF(OR('Enrollment Form'!$B845<>\"Subscriber\",'Enrollment Form'!$C845=\"ROC\"),\"-\",IF(AND('Enrollment Form'!$B845=\"Subscriber\",'Enrollment Form'!$C845=\"Enroll\",'Enrollment Form'!$AS845<>\"\"),\"Y\",\"N\")))","v":""},{"$f":"IF($B838=\"N\",\"\",IF($Q838=\"-\",\"-\",IF(AND($Q838=\"Y\",'Enrollment Form'!$AS845=\"No\"),\"-\",IF(AND($Q838=\"Y\",'Enrollment Form'!$AS845=\"Yes\",'Enrollment Form'!$AT845<>\"\"),\"Y\",\"N\"))))","v":""},{"$f":"IF($B838=\"N\",\"\",IF(OR('Enrollment Form'!$B845<>\"Subscriber\",'Enrollment Form'!$C845=\"ROC\"),\"-\",IF(AND('Enrollment Form'!$B845=\"Subscriber\",'Enrollment Form'!$C845=\"Enroll\",'Enrollment Form'!$CV845<>\"\"),\"Y\",\"N\")))","v":""},{"$f":"IF($B838=\"N\",\"\",IF($S838=\"-\",\"-\",IF(AND($S838=\"Y\",'Enrollment Form'!$CV845=\"No\"),\"-\",IF(AND($S838=\"Y\",'Enrollment Form'!$CV845=\"Yes\",'Enrollment Form'!$CW845<>\"\"),\"Y\",\"N\"))))","v":""},{"$f":"IF(OR('Enrollment Form'!$AY845=\"Yes\",'Enrollment Form'!$AY845=\"\"),\"-\",IF(OR(AND('Enrollment Form'!$AY845=\"No\",ISERROR(FIND(\"HMO\",VLOOKUP('Enrollment Form'!G845,'Enrollment Form'!H$11:J$1000,3,FALSE),1))=FALSE,COUNTA('Enrollment Form'!$AZ845:$BC845)=4),AND('Enrollment Form'!$AY845=\"No\",ISERROR(FIND(\"HMO\",VLOOKUP('Enrollment Form'!G845,'Enrollment Form'!H$11:J$1000,3,FALSE),1))=FALSE,COUNTA('Enrollment Form'!$BT845:$BW845)=4)),\"Y\",\"N\"))","v":"-"},{"$f":"IF($B838=\"N\",\"\",IF('Enrollment Form'!$B845=\"Subscriber\",\"-\",IF(COUNTA('Enrollment Form'!$BL845,'Enrollment Form'!$BN845)=2,\"Y\",\"N\")))","v":""},{"$f":"IF($B838=\"N\",\"\",IF(OR('Enrollment Form'!$AX845=\"\",'Enrollment Form'!$AX845=\"No\"),\"-\",IF(AND('Enrollment Form'!$AX845=\"Yes\",COUNTA('Enrollment Form'!$CR845)=1),\"Y\",\"N\")))","v":""},{"$f":"IF(OR('Enrollment Form'!$CR845=\"\",'Enrollment Form'!$CR845=\"No\"),\"-\",IF(COUNTA('Enrollment Form'!$CT845:$CU845)=2,\"Y\",\"N\"))","v":"-"},{"$f":"IF($B838=\"N\",\"\",IF(COUNTIF('Enrollment Form'!$DG845:$DP845,\"Other\")=COUNTA('Enrollment Form'!$DK845,'Enrollment Form'!$DH845,'Enrollment Form'!$DN845,'Enrollment Form'!$DQ845),\"Y\",\"N\"))","v":""},{"$f":"IF($B838=\"N\",\"\",IF(OR('Enrollment Form'!B845<>\"Subscriber\",'Enrollment Form'!C845=\"ROC\",COUNTIF('Enrollment Form'!AV845:AW845,\"Yes\")>=1),\"-\",IF(AND('Enrollment Form'!C845=\"Enroll\",COUNTIF('Enrollment Form'!AV845:AW845,\"No\")=2,'Enrollment Form'!AX845=\"\"),\"N\",\"Y\")))","v":""},{"$f":"IF(OR(B838=\"N\",'Enrollment Form'!B845<>\"Subscriber\",'Enrollment Form'!C845=\"ROC\",'Enrollment Form'!O845<>\"Multiple of Salary\"),\"-\",IF(COUNTA('Enrollment Form'!T845:U845)<2,\"N\",\"Y\"))","v":"-"},{"$f":"IF(B838=\"N\",\"\",IF(OR('Enrollment Form'!C845=\"ROC\",'Enrollment Form'!B845<>\"Subscriber\",'Enrollment Form'!O845=\"Waive\",'Enrollment Form'!O845=\"\"),\"-\",IF('Enrollment Form'!P845=\"\",\"N\",\"Y\")))","v":""},{"$f":"IF($B838=\"N\",\"\",IF(AND('Enrollment Form'!$C845=\"ROC\",'Enrollment Form'!$DR845<>\"\"),\"Y\",IF(AND('Enrollment Form'!$C845=\"ROC\",'Enrollment Form'!$DR845=\"\"),\"N\",IF(AND('Enrollment Form'!$C845=\"Enroll\",'Enrollment Form'!$B845=\"Subscriber\",'Enrollment Form'!$CX845=\"No\",'Enrollment Form'!$DR845=\"\"),\"N\",IF(AND('Enrollment Form'!$C845=\"Enroll\",'Enrollment Form'!$B845=\"Subscriber\",'Enrollment Form'!$CX845=\"Yes\"),\"-\",\"Y\")))))","v":""},{"$f":"IF($B838=\"N\",\"\",IF(AND('Enrollment Form'!$C845=\"ROC\",'Enrollment Form'!$DS845<>\"\"),\"Y\",IF(AND('Enrollment Form'!$C845=\"ROC\",'Enrollment Form'!$DS845=\"\"),\"N\",IF(AND('Enrollment Form'!$C845=\"Enroll\",'Enrollment Form'!$B845=\"Subscriber\",'Enrollment Form'!$CX845=\"No\",'Enrollment Form'!$DS845=\"\"),\"N\",IF(AND('Enrollment Form'!$C845=\"Enroll\",'Enrollment Form'!$B845=\"Subscriber\",'Enrollment Form'!$CX845=\"Yes\"),\"-\",\"Y\")))))","v":""},{"$f":"IF('Enrollment Form'!AH845=\"\",\"\",IF(ISERROR(SEARCH(\".\",'Enrollment Form'!AH845,SEARCH(\"@\",'Enrollment Form'!AH845))),\"N\",\"Y\"))","v":""},{"$f":"IF(OR($B838=\"N\",'Enrollment Form'!$G845=\"\"),\"\",IF('Enrollment Form'!$B845<>\"Subscriber\",\"-\",IF(COUNTIF('Enrollment Form'!$AV845:$AW845,\"Yes\")=2,\"N\",\"Y\")))","v":""},{"$f":"IF(OR('Enrollment Form'!$CJ845=\"\",'Enrollment Form'!$CJ845=\"No\"),\"-\",IF(AND('Enrollment Form'!$CJ845=\"Yes\",'Enrollment Form'!$CK845=\"\"),\"N\",\"Y\"))","v":"-"},{"$f":"IF(OR('Enrollment Form'!$CL845=\"\",'Enrollment Form'!$CL845=\"No\"),\"-\",IF(AND('Enrollment Form'!$CL845=\"Yes\",'Enrollment Form'!$CM845=\"\"),\"N\",\"Y\"))","v":"-"},{"$f":"IF(OR('Enrollment Form'!$CN845=\"\",'Enrollment Form'!$CN845=\"No\"),\"-\",IF(AND('Enrollment Form'!$CN845=\"Yes\",'Enrollment Form'!$CO845=\"\"),\"N\",\"Y\"))","v":"-"},{"$f":"IF(OR('Enrollment Form'!$CN845=\"\",'Enrollment Form'!$CN845=\"No\"),\"-\",IF(AND('Enrollment Form'!$CN845=\"Yes\",'Enrollment Form'!$CP845=\"\"),\"N\",\"Y\"))","v":"-"},{"$f":"IF('Enrollment Form'!B845<>\"Subscriber\",\"-\",IF(AND('Enrollment Form'!B845=\"Subscriber\",'Enrollment Form'!C845=\"Enroll\",'Enrollment Form'!AA845=\"\"),\"N\",\"Y\"))","v":"-"},{"$f":"IF(OR('Enrollment Form'!B845=\"Subscriber\",'Enrollment Form'!B845=\"\"),\"-\",IF('Enrollment Form'!BP845=\"\",\"N\",\"Y\"))","v":"-"},{"$f":"IF('Enrollment Form'!B845<>\"Subscriber\",\"-\",IF(AND('Enrollment Form'!B845=\"Subscriber\",'Enrollment Form'!G845=\"\"),\"N\",\"Y\"))","v":"-"},{"$f":"IF('Enrollment Form'!A845=\"\",\"\",IF('Enrollment Form'!B845=\"Subscriber\",\"-\",IF(AND('Enrollment Form'!B845<>\"Subscriber\",'Enrollment Form'!G845='Enrollment Form'!H845),\"N\",\"Y\")))","v":""},0]
[846,{"$f":"IF('Enrollment Form'!$A846<>\"\",\"Y\",\"N\")","v":"N"},{"$f":"IF(AND('Enrollment Form'!$B846=\"\",'Enrollment Form'!$C846<>\"\"),\"N\",IF($B839=\"N\",\"\",\"Y\"))","v":""},{"$f":"IF(OR($B839=\"N\",'Enrollment Form'!G846=\"\"),\"\",IF('Enrollment Form'!$B846<>\"Subscriber\",\"\",IF('Enrollment Form'!$G846='Enrollment Form'!$H846,\"Y\",\"N\")))","v":""},{"$f":"IF($B839=\"N\",\"\",IF(AND(COUNTIFS('Enrollment Form'!$H$11:$H$1000,'Enrollment Form'!$H846,'Enrollment Form'!$B$11:$B$1000,'Enrollment Form'!$B846)>1,'Enrollment Form'!$H846<>\"\"),\"N\",\"Y\"))","v":""},{"$f":"IF($B839=\"N\",\"\",IF(LEN('Enrollment Form'!$Y846)=0,\"\",IF(LEN('Enrollment Form'!$Y846)<>5,\"N\",\"Y\")))","v":""},{"$f":"IF($B839=\"N\",\"\",IF(LEN('Enrollment Form'!$AD846=0),\"\",IF(LEN('Enrollment Form'!$AD846)<>5,\"N\",\"Y\")))","v":""},{"$f":"IF($B839=\"N\",\"\",IF(LEN('Enrollment Form'!$BS846=0),\"\",IF(LEN('Enrollment Form'!$BS846)<>5,\"N\",\"Y\")))","v":""},{"$f":"IF($B839=\"N\",\"\",IF(LEN('Enrollment Form'!$AE846)=0,\"\",IF(LEN('Enrollment Form'!$AE846)<>10,\"N\",\"Y\")))","v":""},{"$f":"IF($B839=\"N\",\"\",IF(LEN('Enrollment Form'!$AF846)=0,\"\",IF(LEN('Enrollment Form'!$AF846)<>10,\"N\",\"Y\")))","v":""},{"$f":"IF('Enrollment Form'!$O846<>\"Graded\",\"-\",IF(AND('Enrollment Form'!$O846=\"Graded\",'Enrollment Form'!$AR846<>\"\"),\"Y\",\"N\"))","v":"-"},{"$f":"IF($B839=\"N\",\"\",IF(OR('Enrollment Form'!$B846<>\"Subscriber\",'Enrollment Form'!$C846=\"ROC\"),\"-\",IF(AND('Enrollment Form'!$B846=\"Subscriber\",'Enrollment Form'!$C846=\"Enroll\",'Enrollment Form'!$AJ846<>\"\"),\"Y\",\"N\")))","v":""},{"$f":"IF($B839=\"N\",\"\",IF(OR('Enrollment Form'!$B846<>\"Subscriber\",'Enrollment Form'!$C846=\"ROC\"),\"-\",IF(AND('Enrollment Form'!$B846=\"Subscriber\",'Enrollment Form'!$C846=\"Enroll\",'Enrollment Form'!$AK846<>\"\"),\"Y\",\"N\")))","v":""},{"$f":"IF($B839=\"N\",\"\",IF(OR('Enrollment Form'!$B846<>\"Subscriber\",'Enrollment Form'!$C846=\"ROC\"),\"-\",IF(AND('Enrollment Form'!$B846=\"Subscriber\",'Enrollment Form'!$C846=\"Enroll\",'Enrollment Form'!$AL846<>\"\"),\"Y\",\"N\")))","v":""},{"$f":"IF($B839=\"N\",\"\",IF(OR('Enrollment Form'!$B846<>\"Subscriber\",'Enrollment Form'!$C846=\"ROC\"),\"-\",IF(AND('Enrollment Form'!$B846=\"Subscriber\",'Enrollment Form'!$C846=\"Enroll\",'Enrollment Form'!$AP846<>\"\"),\"Y\",\"N\")))","v":""},{"$f":"IF($B839=\"N\",\"\",IF(OR('Enrollment Form'!$B846<>\"Subscriber\",'Enrollment Form'!$C846=\"ROC\"),\"-\",IF(AND('Enrollment Form'!$B846=\"Subscriber\",'Enrollment Form'!$C846=\"Enroll\",'Enrollment Form'!$AQ846<>\"\"),\"Y\",\"N\")))","v":""},{"$f":"IF($B839=\"N\",\"\",IF(OR('Enrollment Form'!$B846<>\"Subscriber\",'Enrollment Form'!$C846=\"ROC\"),\"-\",IF(AND('Enrollment Form'!$B846=\"Subscriber\",'Enrollment Form'!$C846=\"Enroll\",'Enrollment Form'!$AS846<>\"\"),\"Y\",\"N\")))","v":""},{"$f":"IF($B839=\"N\",\"\",IF($Q839=\"-\",\"-\",IF(AND($Q839=\"Y\",'Enrollment Form'!$AS846=\"No\"),\"-\",IF(AND($Q839=\"Y\",'Enrollment Form'!$AS846=\"Yes\",'Enrollment Form'!$AT846<>\"\"),\"Y\",\"N\"))))","v":""},{"$f":"IF($B839=\"N\",\"\",IF(OR('Enrollment Form'!$B846<>\"Subscriber\",'Enrollment Form'!$C846=\"ROC\"),\"-\",IF(AND('Enrollment Form'!$B846=\"Subscriber\",'Enrollment Form'!$C846=\"Enroll\",'Enrollment Form'!$CV846<>\"\"),\"Y\",\"N\")))","v":""},{"$f":"IF($B839=\"N\",\"\",IF($S839=\"-\",\"-\",IF(AND($S839=\"Y\",'Enrollment Form'!$CV846=\"No\"),\"-\",IF(AND($S839=\"Y\",'Enrollment Form'!$CV846=\"Yes\",'Enrollment Form'!$CW846<>\"\"),\"Y\",\"N\"))))","v":""},{"$f":"IF(OR('Enrollment Form'!$AY846=\"Yes\",'Enrollment Form'!$AY846=\"\"),\"-\",IF(OR(AND('Enrollment Form'!$AY846=\"No\",ISERROR(FIND(\"HMO\",VLOOKUP('Enrollment Form'!G846,'Enrollment Form'!H$11:J$1000,3,FALSE),1))=FALSE,COUNTA('Enrollment Form'!$AZ846:$BC846)=4),AND('Enrollment Form'!$AY846=\"No\",ISERROR(FIND(\"HMO\",VLOOKUP('Enrollment Form'!G846,'Enrollment Form'!H$11:J$1000,3,FALSE),1))=FALSE,COUNTA('Enrollment Form'!$BT846:$BW846)=4)),\"Y\",\"N\"))","v":"-"},{"$f":"IF($B839=\"N\",\"\",IF('Enrollment Form'!$B846=\"Subscriber\",\"-\",IF(COUNTA('Enrollment Form'!$BL846,'Enrollment Form'!$BN846)=2,\"Y\",\"N\")))","v":""},{"$f":"IF($B839=\"N\",\"\",IF(OR('Enrollment Form'!$AX846=\"\",'Enrollment Form'!$AX846=\"No\"),\"-\",IF(AND('Enrollment Form'!$AX846=\"Yes\",COUNTA('Enrollment Form'!$CR846)=1),\"Y\",\"N\")))","v":""},{"$f":"IF(OR('Enrollment Form'!$CR846=\"\",'Enrollment Form'!$CR846=\"No\"),\"-\",IF(COUNTA('Enrollment Form'!$CT846:$CU846)=2,\"Y\",\"N\"))","v":"-"},{"$f":"IF($B839=\"N\",\"\",IF(COUNTIF('Enrollment Form'!$DG846:$DP846,\"Other\")=COUNTA('Enrollment Form'!$DK846,'Enrollment Form'!$DH846,'Enrollment Form'!$DN846,'Enrollment Form'!$DQ846),\"Y\",\"N\"))","v":""},{"$f":"IF($B839=\"N\",\"\",IF(OR('Enrollment Form'!B846<>\"Subscriber\",'Enrollment Form'!C846=\"ROC\",COUNTIF('Enrollment Form'!AV846:AW846,\"Yes\")>=1),\"-\",IF(AND('Enrollment Form'!C846=\"Enroll\",COUNTIF('Enrollment Form'!AV846:AW846,\"No\")=2,'Enrollment Form'!AX846=\"\"),\"N\",\"Y\")))","v":""},{"$f":"IF(OR(B839=\"N\",'Enrollment Form'!B846<>\"Subscriber\",'Enrollment Form'!C846=\"ROC\",'Enrollment Form'!O846<>\"Multiple of Salary\"),\"-\",IF(COUNTA('Enrollment Form'!T846:U846)<2,\"N\",\"Y\"))","v":"-"},{"$f":"IF(B839=\"N\",\"\",IF(OR('Enrollment Form'!C846=\"ROC\",'Enrollment Form'!B846<>\"Subscriber\",'Enrollment Form'!O846=\"Waive\",'Enrollment Form'!O846=\"\"),\"-\",IF('Enrollment Form'!P846=\"\",\"N\",\"Y\")))","v":""},{"$f":"IF($B839=\"N\",\"\",IF(AND('Enrollment Form'!$C846=\"ROC\",'Enrollment Form'!$DR846<>\"\"),\"Y\",IF(AND('Enrollment Form'!$C846=\"ROC\",'Enrollment Form'!$DR846=\"\"),\"N\",IF(AND('Enrollment Form'!$C846=\"Enroll\",'Enrollment Form'!$B846=\"Subscriber\",'Enrollment Form'!$CX846=\"No\",'Enrollment Form'!$DR846=\"\"),\"N\",IF(AND('Enrollment Form'!$C846=\"Enroll\",'Enrollment Form'!$B846=\"Subscriber\",'Enrollment Form'!$CX846=\"Yes\"),\"-\",\"Y\")))))","v":""},{"$f":"IF($B839=\"N\",\"\",IF(AND('Enrollment Form'!$C846=\"ROC\",'Enrollment Form'!$DS846<>\"\"),\"Y\",IF(AND('Enrollment Form'!$C846=\"ROC\",'Enrollment Form'!$DS846=\"\"),\"N\",IF(AND('Enrollment Form'!$C846=\"Enroll\",'Enrollment Form'!$B846=\"Subscriber\",'Enrollment Form'!$CX846=\"No\",'Enrollment Form'!$DS846=\"\"),\"N\",IF(AND('Enrollment Form'!$C846=\"Enroll\",'Enrollment Form'!$B846=\"Subscriber\",'Enrollment Form'!$CX846=\"Yes\"),\"-\",\"Y\")))))","v":""},{"$f":"IF('Enrollment Form'!AH846=\"\",\"\",IF(ISERROR(SEARCH(\".\",'Enrollment Form'!AH846,SEARCH(\"@\",'Enrollment Form'!AH846))),\"N\",\"Y\"))","v":""},{"$f":"IF(OR($B839=\"N\",'Enrollment Form'!$G846=\"\"),\"\",IF('Enrollment Form'!$B846<>\"Subscriber\",\"-\",IF(COUNTIF('Enrollment Form'!$AV846:$AW846,\"Yes\")=2,\"N\",\"Y\")))","v":""},{"$f":"IF(OR('Enrollment Form'!$CJ846=\"\",'Enrollment Form'!$CJ846=\"No\"),\"-\",IF(AND('Enrollment Form'!$CJ846=\"Yes\",'Enrollment Form'!$CK846=\"\"),\"N\",\"Y\"))","v":"-"},{"$f":"IF(OR('Enrollment Form'!$CL846=\"\",'Enrollment Form'!$CL846=\"No\"),\"-\",IF(AND('Enrollment Form'!$CL846=\"Yes\",'Enrollment Form'!$CM846=\"\"),\"N\",\"Y\"))","v":"-"},{"$f":"IF(OR('Enrollment Form'!$CN846=\"\",'Enrollment Form'!$CN846=\"No\"),\"-\",IF(AND('Enrollment Form'!$CN846=\"Yes\",'Enrollment Form'!$CO846=\"\"),\"N\",\"Y\"))","v":"-"},{"$f":"IF(OR('Enrollment Form'!$CN846=\"\",'Enrollment Form'!$CN846=\"No\"),\"-\",IF(AND('Enrollment Form'!$CN846=\"Yes\",'Enrollment Form'!$CP846=\"\"),\"N\",\"Y\"))","v":"-"},{"$f":"IF('Enrollment Form'!B846<>\"Subscriber\",\"-\",IF(AND('Enrollment Form'!B846=\"Subscriber\",'Enrollment Form'!C846=\"Enroll\",'Enrollment Form'!AA846=\"\"),\"N\",\"Y\"))","v":"-"},{"$f":"IF(OR('Enrollment Form'!B846=\"Subscriber\",'Enrollment Form'!B846=\"\"),\"-\",IF('Enrollment Form'!BP846=\"\",\"N\",\"Y\"))","v":"-"},{"$f":"IF('Enrollment Form'!B846<>\"Subscriber\",\"-\",IF(AND('Enrollment Form'!B846=\"Subscriber\",'Enrollment Form'!G846=\"\"),\"N\",\"Y\"))","v":"-"},{"$f":"IF('Enrollment Form'!A846=\"\",\"\",IF('Enrollment Form'!B846=\"Subscriber\",\"-\",IF(AND('Enrollment Form'!B846<>\"Subscriber\",'Enrollment Form'!G846='Enrollment Form'!H846),\"N\",\"Y\")))","v":""},0]
[847,{"$f":"IF('Enrollment Form'!$A847<>\"\",\"Y\",\"N\")","v":"N"},{"$f":"IF(AND('Enrollment Form'!$B847=\"\",'Enrollment Form'!$C847<>\"\"),\"N\",IF($B840=\"N\",\"\",\"Y\"))","v":""},{"$f":"IF(OR($B840=\"N\",'Enrollment Form'!G847=\"\"),\"\",IF('Enrollment Form'!$B847<>\"Subscriber\",\"\",IF('Enrollment Form'!$G847='Enrollment Form'!$H847,\"Y\",\"N\")))","v":""},{"$f":"IF($B840=\"N\",\"\",IF(AND(COUNTIFS('Enrollment Form'!$H$11:$H$1000,'Enrollment Form'!$H847,'Enrollment Form'!$B$11:$B$1000,'Enrollment Form'!$B847)>1,'Enrollment Form'!$H847<>\"\"),\"N\",\"Y\"))","v":""},{"$f":"IF($B840=\"N\",\"\",IF(LEN('Enrollment Form'!$Y847)=0,\"\",IF(LEN('Enrollment Form'!$Y847)<>5,\"N\",\"Y\")))","v":""},{"$f":"IF($B840=\"N\",\"\",IF(LEN('Enrollment Form'!$AD847=0),\"\",IF(LEN('Enrollment Form'!$AD847)<>5,\"N\",\"Y\")))","v":""},{"$f":"IF($B840=\"N\",\"\",IF(LEN('Enrollment Form'!$BS847=0),\"\",IF(LEN('Enrollment Form'!$BS847)<>5,\"N\",\"Y\")))","v":""},{"$f":"IF($B840=\"N\",\"\",IF(LEN('Enrollment Form'!$AE847)=0,\"\",IF(LEN('Enrollment Form'!$AE847)<>10,\"N\",\"Y\")))","v":""},{"$f":"IF($B840=\"N\",\"\",IF(LEN('Enrollment Form'!$AF847)=0,\"\",IF(LEN('Enrollment Form'!$AF847)<>10,\"N\",\"Y\")))","v":""},{"$f":"IF('Enrollment Form'!$O847<>\"Graded\",\"-\",IF(AND('Enrollment Form'!$O847=\"Graded\",'Enrollment Form'!$AR847<>\"\"),\"Y\",\"N\"))","v":"-"},{"$f":"IF($B840=\"N\",\"\",IF(OR('Enrollment Form'!$B847<>\"Subscriber\",'Enrollment Form'!$C847=\"ROC\"),\"-\",IF(AND('Enrollment Form'!$B847=\"Subscriber\",'Enrollment Form'!$C847=\"Enroll\",'Enrollment Form'!$AJ847<>\"\"),\"Y\",\"N\")))","v":""},{"$f":"IF($B840=\"N\",\"\",IF(OR('Enrollment Form'!$B847<>\"Subscriber\",'Enrollment Form'!$C847=\"ROC\"),\"-\",IF(AND('Enrollment Form'!$B847=\"Subscriber\",'Enrollment Form'!$C847=\"Enroll\",'Enrollment Form'!$AK847<>\"\"),\"Y\",\"N\")))","v":""},{"$f":"IF($B840=\"N\",\"\",IF(OR('Enrollment Form'!$B847<>\"Subscriber\",'Enrollment Form'!$C847=\"ROC\"),\"-\",IF(AND('Enrollment Form'!$B847=\"Subscriber\",'Enrollment Form'!$C847=\"Enroll\",'Enrollment Form'!$AL847<>\"\"),\"Y\",\"N\")))","v":""},{"$f":"IF($B840=\"N\",\"\",IF(OR('Enrollment Form'!$B847<>\"Subscriber\",'Enrollment Form'!$C847=\"ROC\"),\"-\",IF(AND('Enrollment Form'!$B847=\"Subscriber\",'Enrollment Form'!$C847=\"Enroll\",'Enrollment Form'!$AP847<>\"\"),\"Y\",\"N\")))","v":""},{"$f":"IF($B840=\"N\",\"\",IF(OR('Enrollment Form'!$B847<>\"Subscriber\",'Enrollment Form'!$C847=\"ROC\"),\"-\",IF(AND('Enrollment Form'!$B847=\"Subscriber\",'Enrollment Form'!$C847=\"Enroll\",'Enrollment Form'!$AQ847<>\"\"),\"Y\",\"N\")))","v":""},{"$f":"IF($B840=\"N\",\"\",IF(OR('Enrollment Form'!$B847<>\"Subscriber\",'Enrollment Form'!$C847=\"ROC\"),\"-\",IF(AND('Enrollment Form'!$B847=\"Subscriber\",'Enrollment Form'!$C847=\"Enroll\",'Enrollment Form'!$AS847<>\"\"),\"Y\",\"N\")))","v":""},{"$f":"IF($B840=\"N\",\"\",IF($Q840=\"-\",\"-\",IF(AND($Q840=\"Y\",'Enrollment Form'!$AS847=\"No\"),\"-\",IF(AND($Q840=\"Y\",'Enrollment Form'!$AS847=\"Yes\",'Enrollment Form'!$AT847<>\"\"),\"Y\",\"N\"))))","v":""},{"$f":"IF($B840=\"N\",\"\",IF(OR('Enrollment Form'!$B847<>\"Subscriber\",'Enrollment Form'!$C847=\"ROC\"),\"-\",IF(AND('Enrollment Form'!$B847=\"Subscriber\",'Enrollment Form'!$C847=\"Enroll\",'Enrollment Form'!$CV847<>\"\"),\"Y\",\"N\")))","v":""},{"$f":"IF($B840=\"N\",\"\",IF($S840=\"-\",\"-\",IF(AND($S840=\"Y\",'Enrollment Form'!$CV847=\"No\"),\"-\",IF(AND($S840=\"Y\",'Enrollment Form'!$CV847=\"Yes\",'Enrollment Form'!$CW847<>\"\"),\"Y\",\"N\"))))","v":""},{"$f":"IF(OR('Enrollment Form'!$AY847=\"Yes\",'Enrollment Form'!$AY847=\"\"),\"-\",IF(OR(AND('Enrollment Form'!$AY847=\"No\",ISERROR(FIND(\"HMO\",VLOOKUP('Enrollment Form'!G847,'Enrollment Form'!H$11:J$1000,3,FALSE),1))=FALSE,COUNTA('Enrollment Form'!$AZ847:$BC847)=4),AND('Enrollment Form'!$AY847=\"No\",ISERROR(FIND(\"HMO\",VLOOKUP('Enrollment Form'!G847,'Enrollment Form'!H$11:J$1000,3,FALSE),1))=FALSE,COUNTA('Enrollment Form'!$BT847:$BW847)=4)),\"Y\",\"N\"))","v":"-"},{"$f":"IF($B840=\"N\",\"\",IF('Enrollment Form'!$B847=\"Subscriber\",\"-\",IF(COUNTA('Enrollment Form'!$BL847,'Enrollment Form'!$BN847)=2,\"Y\",\"N\")))","v":""},{"$f":"IF($B840=\"N\",\"\",IF(OR('Enrollment Form'!$AX847=\"\",'Enrollment Form'!$AX847=\"No\"),\"-\",IF(AND('Enrollment Form'!$AX847=\"Yes\",COUNTA('Enrollment Form'!$CR847)=1),\"Y\",\"N\")))","v":""},{"$f":"IF(OR('Enrollment Form'!$CR847=\"\",'Enrollment Form'!$CR847=\"No\"),\"-\",IF(COUNTA('Enrollment Form'!$CT847:$CU847)=2,\"Y\",\"N\"))","v":"-"},{"$f":"IF($B840=\"N\",\"\",IF(COUNTIF('Enrollment Form'!$DG847:$DP847,\"Other\")=COUNTA('Enrollment Form'!$DK847,'Enrollment Form'!$DH847,'Enrollment Form'!$DN847,'Enrollment Form'!$DQ847),\"Y\",\"N\"))","v":""},{"$f":"IF($B840=\"N\",\"\",IF(OR('Enrollment Form'!B847<>\"Subscriber\",'Enrollment Form'!C847=\"ROC\",COUNTIF('Enrollment Form'!AV847:AW847,\"Yes\")>=1),\"-\",IF(AND('Enrollment Form'!C847=\"Enroll\",COUNTIF('Enrollment Form'!AV847:AW847,\"No\")=2,'Enrollment Form'!AX847=\"\"),\"N\",\"Y\")))","v":""},{"$f":"IF(OR(B840=\"N\",'Enrollment Form'!B847<>\"Subscriber\",'Enrollment Form'!C847=\"ROC\",'Enrollment Form'!O847<>\"Multiple of Salary\"),\"-\",IF(COUNTA('Enrollment Form'!T847:U847)<2,\"N\",\"Y\"))","v":"-"},{"$f":"IF(B840=\"N\",\"\",IF(OR('Enrollment Form'!C847=\"ROC\",'Enrollment Form'!B847<>\"Subscriber\",'Enrollment Form'!O847=\"Waive\",'Enrollment Form'!O847=\"\"),\"-\",IF('Enrollment Form'!P847=\"\",\"N\",\"Y\")))","v":""},{"$f":"IF($B840=\"N\",\"\",IF(AND('Enrollment Form'!$C847=\"ROC\",'Enrollment Form'!$DR847<>\"\"),\"Y\",IF(AND('Enrollment Form'!$C847=\"ROC\",'Enrollment Form'!$DR847=\"\"),\"N\",IF(AND('Enrollment Form'!$C847=\"Enroll\",'Enrollment Form'!$B847=\"Subscriber\",'Enrollment Form'!$CX847=\"No\",'Enrollment Form'!$DR847=\"\"),\"N\",IF(AND('Enrollment Form'!$C847=\"Enroll\",'Enrollment Form'!$B847=\"Subscriber\",'Enrollment Form'!$CX847=\"Yes\"),\"-\",\"Y\")))))","v":""},{"$f":"IF($B840=\"N\",\"\",IF(AND('Enrollment Form'!$C847=\"ROC\",'Enrollment Form'!$DS847<>\"\"),\"Y\",IF(AND('Enrollment Form'!$C847=\"ROC\",'Enrollment Form'!$DS847=\"\"),\"N\",IF(AND('Enrollment Form'!$C847=\"Enroll\",'Enrollment Form'!$B847=\"Subscriber\",'Enrollment Form'!$CX847=\"No\",'Enrollment Form'!$DS847=\"\"),\"N\",IF(AND('Enrollment Form'!$C847=\"Enroll\",'Enrollment Form'!$B847=\"Subscriber\",'Enrollment Form'!$CX847=\"Yes\"),\"-\",\"Y\")))))","v":""},{"$f":"IF('Enrollment Form'!AH847=\"\",\"\",IF(ISERROR(SEARCH(\".\",'Enrollment Form'!AH847,SEARCH(\"@\",'Enrollment Form'!AH847))),\"N\",\"Y\"))","v":""},{"$f":"IF(OR($B840=\"N\",'Enrollment Form'!$G847=\"\"),\"\",IF('Enrollment Form'!$B847<>\"Subscriber\",\"-\",IF(COUNTIF('Enrollment Form'!$AV847:$AW847,\"Yes\")=2,\"N\",\"Y\")))","v":""},{"$f":"IF(OR('Enrollment Form'!$CJ847=\"\",'Enrollment Form'!$CJ847=\"No\"),\"-\",IF(AND('Enrollment Form'!$CJ847=\"Yes\",'Enrollment Form'!$CK847=\"\"),\"N\",\"Y\"))","v":"-"},{"$f":"IF(OR('Enrollment Form'!$CL847=\"\",'Enrollment Form'!$CL847=\"No\"),\"-\",IF(AND('Enrollment Form'!$CL847=\"Yes\",'Enrollment Form'!$CM847=\"\"),\"N\",\"Y\"))","v":"-"},{"$f":"IF(OR('Enrollment Form'!$CN847=\"\",'Enrollment Form'!$CN847=\"No\"),\"-\",IF(AND('Enrollment Form'!$CN847=\"Yes\",'Enrollment Form'!$CO847=\"\"),\"N\",\"Y\"))","v":"-"},{"$f":"IF(OR('Enrollment Form'!$CN847=\"\",'Enrollment Form'!$CN847=\"No\"),\"-\",IF(AND('Enrollment Form'!$CN847=\"Yes\",'Enrollment Form'!$CP847=\"\"),\"N\",\"Y\"))","v":"-"},{"$f":"IF('Enrollment Form'!B847<>\"Subscriber\",\"-\",IF(AND('Enrollment Form'!B847=\"Subscriber\",'Enrollment Form'!C847=\"Enroll\",'Enrollment Form'!AA847=\"\"),\"N\",\"Y\"))","v":"-"},{"$f":"IF(OR('Enrollment Form'!B847=\"Subscriber\",'Enrollment Form'!B847=\"\"),\"-\",IF('Enrollment Form'!BP847=\"\",\"N\",\"Y\"))","v":"-"},{"$f":"IF('Enrollment Form'!B847<>\"Subscriber\",\"-\",IF(AND('Enrollment Form'!B847=\"Subscriber\",'Enrollment Form'!G847=\"\"),\"N\",\"Y\"))","v":"-"},{"$f":"IF('Enrollment Form'!A847=\"\",\"\",IF('Enrollment Form'!B847=\"Subscriber\",\"-\",IF(AND('Enrollment Form'!B847<>\"Subscriber\",'Enrollment Form'!G847='Enrollment Form'!H847),\"N\",\"Y\")))","v":""},0]
[848,{"$f":"IF('Enrollment Form'!$A848<>\"\",\"Y\",\"N\")","v":"N"},{"$f":"IF(AND('Enrollment Form'!$B848=\"\",'Enrollment Form'!$C848<>\"\"),\"N\",IF($B841=\"N\",\"\",\"Y\"))","v":""},{"$f":"IF(OR($B841=\"N\",'Enrollment Form'!G848=\"\"),\"\",IF('Enrollment Form'!$B848<>\"Subscriber\",\"\",IF('Enrollment Form'!$G848='Enrollment Form'!$H848,\"Y\",\"N\")))","v":""},{"$f":"IF($B841=\"N\",\"\",IF(AND(COUNTIFS('Enrollment Form'!$H$11:$H$1000,'Enrollment Form'!$H848,'Enrollment Form'!$B$11:$B$1000,'Enrollment Form'!$B848)>1,'Enrollment Form'!$H848<>\"\"),\"N\",\"Y\"))","v":""},{"$f":"IF($B841=\"N\",\"\",IF(LEN('Enrollment Form'!$Y848)=0,\"\",IF(LEN('Enrollment Form'!$Y848)<>5,\"N\",\"Y\")))","v":""},{"$f":"IF($B841=\"N\",\"\",IF(LEN('Enrollment Form'!$AD848=0),\"\",IF(LEN('Enrollment Form'!$AD848)<>5,\"N\",\"Y\")))","v":""},{"$f":"IF($B841=\"N\",\"\",IF(LEN('Enrollment Form'!$BS848=0),\"\",IF(LEN('Enrollment Form'!$BS848)<>5,\"N\",\"Y\")))","v":""},{"$f":"IF($B841=\"N\",\"\",IF(LEN('Enrollment Form'!$AE848)=0,\"\",IF(LEN('Enrollment Form'!$AE848)<>10,\"N\",\"Y\")))","v":""},{"$f":"IF($B841=\"N\",\"\",IF(LEN('Enrollment Form'!$AF848)=0,\"\",IF(LEN('Enrollment Form'!$AF848)<>10,\"N\",\"Y\")))","v":""},{"$f":"IF('Enrollment Form'!$O848<>\"Graded\",\"-\",IF(AND('Enrollment Form'!$O848=\"Graded\",'Enrollment Form'!$AR848<>\"\"),\"Y\",\"N\"))","v":"-"},{"$f":"IF($B841=\"N\",\"\",IF(OR('Enrollment Form'!$B848<>\"Subscriber\",'Enrollment Form'!$C848=\"ROC\"),\"-\",IF(AND('Enrollment Form'!$B848=\"Subscriber\",'Enrollment Form'!$C848=\"Enroll\",'Enrollment Form'!$AJ848<>\"\"),\"Y\",\"N\")))","v":""},{"$f":"IF($B841=\"N\",\"\",IF(OR('Enrollment Form'!$B848<>\"Subscriber\",'Enrollment Form'!$C848=\"ROC\"),\"-\",IF(AND('Enrollment Form'!$B848=\"Subscriber\",'Enrollment Form'!$C848=\"Enroll\",'Enrollment Form'!$AK848<>\"\"),\"Y\",\"N\")))","v":""},{"$f":"IF($B841=\"N\",\"\",IF(OR('Enrollment Form'!$B848<>\"Subscriber\",'Enrollment Form'!$C848=\"ROC\"),\"-\",IF(AND('Enrollment Form'!$B848=\"Subscriber\",'Enrollment Form'!$C848=\"Enroll\",'Enrollment Form'!$AL848<>\"\"),\"Y\",\"N\")))","v":""},{"$f":"IF($B841=\"N\",\"\",IF(OR('Enrollment Form'!$B848<>\"Subscriber\",'Enrollment Form'!$C848=\"ROC\"),\"-\",IF(AND('Enrollment Form'!$B848=\"Subscriber\",'Enrollment Form'!$C848=\"Enroll\",'Enrollment Form'!$AP848<>\"\"),\"Y\",\"N\")))","v":""},{"$f":"IF($B841=\"N\",\"\",IF(OR('Enrollment Form'!$B848<>\"Subscriber\",'Enrollment Form'!$C848=\"ROC\"),\"-\",IF(AND('Enrollment Form'!$B848=\"Subscriber\",'Enrollment Form'!$C848=\"Enroll\",'Enrollment Form'!$AQ848<>\"\"),\"Y\",\"N\")))","v":""},{"$f":"IF($B841=\"N\",\"\",IF(OR('Enrollment Form'!$B848<>\"Subscriber\",'Enrollment Form'!$C848=\"ROC\"),\"-\",IF(AND('Enrollment Form'!$B848=\"Subscriber\",'Enrollment Form'!$C848=\"Enroll\",'Enrollment Form'!$AS848<>\"\"),\"Y\",\"N\")))","v":""},{"$f":"IF($B841=\"N\",\"\",IF($Q841=\"-\",\"-\",IF(AND($Q841=\"Y\",'Enrollment Form'!$AS848=\"No\"),\"-\",IF(AND($Q841=\"Y\",'Enrollment Form'!$AS848=\"Yes\",'Enrollment Form'!$AT848<>\"\"),\"Y\",\"N\"))))","v":""},{"$f":"IF($B841=\"N\",\"\",IF(OR('Enrollment Form'!$B848<>\"Subscriber\",'Enrollment Form'!$C848=\"ROC\"),\"-\",IF(AND('Enrollment Form'!$B848=\"Subscriber\",'Enrollment Form'!$C848=\"Enroll\",'Enrollment Form'!$CV848<>\"\"),\"Y\",\"N\")))","v":""},{"$f":"IF($B841=\"N\",\"\",IF($S841=\"-\",\"-\",IF(AND($S841=\"Y\",'Enrollment Form'!$CV848=\"No\"),\"-\",IF(AND($S841=\"Y\",'Enrollment Form'!$CV848=\"Yes\",'Enrollment Form'!$CW848<>\"\"),\"Y\",\"N\"))))","v":""},{"$f":"IF(OR('Enrollment Form'!$AY848=\"Yes\",'Enrollment Form'!$AY848=\"\"),\"-\",IF(OR(AND('Enrollment Form'!$AY848=\"No\",ISERROR(FIND(\"HMO\",VLOOKUP('Enrollment Form'!G848,'Enrollment Form'!H$11:J$1000,3,FALSE),1))=FALSE,COUNTA('Enrollment Form'!$AZ848:$BC848)=4),AND('Enrollment Form'!$AY848=\"No\",ISERROR(FIND(\"HMO\",VLOOKUP('Enrollment Form'!G848,'Enrollment Form'!H$11:J$1000,3,FALSE),1))=FALSE,COUNTA('Enrollment Form'!$BT848:$BW848)=4)),\"Y\",\"N\"))","v":"-"},{"$f":"IF($B841=\"N\",\"\",IF('Enrollment Form'!$B848=\"Subscriber\",\"-\",IF(COUNTA('Enrollment Form'!$BL848,'Enrollment Form'!$BN848)=2,\"Y\",\"N\")))","v":""},{"$f":"IF($B841=\"N\",\"\",IF(OR('Enrollment Form'!$AX848=\"\",'Enrollment Form'!$AX848=\"No\"),\"-\",IF(AND('Enrollment Form'!$AX848=\"Yes\",COUNTA('Enrollment Form'!$CR848)=1),\"Y\",\"N\")))","v":""},{"$f":"IF(OR('Enrollment Form'!$CR848=\"\",'Enrollment Form'!$CR848=\"No\"),\"-\",IF(COUNTA('Enrollment Form'!$CT848:$CU848)=2,\"Y\",\"N\"))","v":"-"},{"$f":"IF($B841=\"N\",\"\",IF(COUNTIF('Enrollment Form'!$DG848:$DP848,\"Other\")=COUNTA('Enrollment Form'!$DK848,'Enrollment Form'!$DH848,'Enrollment Form'!$DN848,'Enrollment Form'!$DQ848),\"Y\",\"N\"))","v":""},{"$f":"IF($B841=\"N\",\"\",IF(OR('Enrollment Form'!B848<>\"Subscriber\",'Enrollment Form'!C848=\"ROC\",COUNTIF('Enrollment Form'!AV848:AW848,\"Yes\")>=1),\"-\",IF(AND('Enrollment Form'!C848=\"Enroll\",COUNTIF('Enrollment Form'!AV848:AW848,\"No\")=2,'Enrollment Form'!AX848=\"\"),\"N\",\"Y\")))","v":""},{"$f":"IF(OR(B841=\"N\",'Enrollment Form'!B848<>\"Subscriber\",'Enrollment Form'!C848=\"ROC\",'Enrollment Form'!O848<>\"Multiple of Salary\"),\"-\",IF(COUNTA('Enrollment Form'!T848:U848)<2,\"N\",\"Y\"))","v":"-"},{"$f":"IF(B841=\"N\",\"\",IF(OR('Enrollment Form'!C848=\"ROC\",'Enrollment Form'!B848<>\"Subscriber\",'Enrollment Form'!O848=\"Waive\",'Enrollment Form'!O848=\"\"),\"-\",IF('Enrollment Form'!P848=\"\",\"N\",\"Y\")))","v":""},{"$f":"IF($B841=\"N\",\"\",IF(AND('Enrollment Form'!$C848=\"ROC\",'Enrollment Form'!$DR848<>\"\"),\"Y\",IF(AND('Enrollment Form'!$C848=\"ROC\",'Enrollment Form'!$DR848=\"\"),\"N\",IF(AND('Enrollment Form'!$C848=\"Enroll\",'Enrollment Form'!$B848=\"Subscriber\",'Enrollment Form'!$CX848=\"No\",'Enrollment Form'!$DR848=\"\"),\"N\",IF(AND('Enrollment Form'!$C848=\"Enroll\",'Enrollment Form'!$B848=\"Subscriber\",'Enrollment Form'!$CX848=\"Yes\"),\"-\",\"Y\")))))","v":""},{"$f":"IF($B841=\"N\",\"\",IF(AND('Enrollment Form'!$C848=\"ROC\",'Enrollment Form'!$DS848<>\"\"),\"Y\",IF(AND('Enrollment Form'!$C848=\"ROC\",'Enrollment Form'!$DS848=\"\"),\"N\",IF(AND('Enrollment Form'!$C848=\"Enroll\",'Enrollment Form'!$B848=\"Subscriber\",'Enrollment Form'!$CX848=\"No\",'Enrollment Form'!$DS848=\"\"),\"N\",IF(AND('Enrollment Form'!$C848=\"Enroll\",'Enrollment Form'!$B848=\"Subscriber\",'Enrollment Form'!$CX848=\"Yes\"),\"-\",\"Y\")))))","v":""},{"$f":"IF('Enrollment Form'!AH848=\"\",\"\",IF(ISERROR(SEARCH(\".\",'Enrollment Form'!AH848,SEARCH(\"@\",'Enrollment Form'!AH848))),\"N\",\"Y\"))","v":""},{"$f":"IF(OR($B841=\"N\",'Enrollment Form'!$G848=\"\"),\"\",IF('Enrollment Form'!$B848<>\"Subscriber\",\"-\",IF(COUNTIF('Enrollment Form'!$AV848:$AW848,\"Yes\")=2,\"N\",\"Y\")))","v":""},{"$f":"IF(OR('Enrollment Form'!$CJ848=\"\",'Enrollment Form'!$CJ848=\"No\"),\"-\",IF(AND('Enrollment Form'!$CJ848=\"Yes\",'Enrollment Form'!$CK848=\"\"),\"N\",\"Y\"))","v":"-"},{"$f":"IF(OR('Enrollment Form'!$CL848=\"\",'Enrollment Form'!$CL848=\"No\"),\"-\",IF(AND('Enrollment Form'!$CL848=\"Yes\",'Enrollment Form'!$CM848=\"\"),\"N\",\"Y\"))","v":"-"},{"$f":"IF(OR('Enrollment Form'!$CN848=\"\",'Enrollment Form'!$CN848=\"No\"),\"-\",IF(AND('Enrollment Form'!$CN848=\"Yes\",'Enrollment Form'!$CO848=\"\"),\"N\",\"Y\"))","v":"-"},{"$f":"IF(OR('Enrollment Form'!$CN848=\"\",'Enrollment Form'!$CN848=\"No\"),\"-\",IF(AND('Enrollment Form'!$CN848=\"Yes\",'Enrollment Form'!$CP848=\"\"),\"N\",\"Y\"))","v":"-"},{"$f":"IF('Enrollment Form'!B848<>\"Subscriber\",\"-\",IF(AND('Enrollment Form'!B848=\"Subscriber\",'Enrollment Form'!C848=\"Enroll\",'Enrollment Form'!AA848=\"\"),\"N\",\"Y\"))","v":"-"},{"$f":"IF(OR('Enrollment Form'!B848=\"Subscriber\",'Enrollment Form'!B848=\"\"),\"-\",IF('Enrollment Form'!BP848=\"\",\"N\",\"Y\"))","v":"-"},{"$f":"IF('Enrollment Form'!B848<>\"Subscriber\",\"-\",IF(AND('Enrollment Form'!B848=\"Subscriber\",'Enrollment Form'!G848=\"\"),\"N\",\"Y\"))","v":"-"},{"$f":"IF('Enrollment Form'!A848=\"\",\"\",IF('Enrollment Form'!B848=\"Subscriber\",\"-\",IF(AND('Enrollment Form'!B848<>\"Subscriber\",'Enrollment Form'!G848='Enrollment Form'!H848),\"N\",\"Y\")))","v":""},0]
[849,{"$f":"IF('Enrollment Form'!$A849<>\"\",\"Y\",\"N\")","v":"N"},{"$f":"IF(AND('Enrollment Form'!$B849=\"\",'Enrollment Form'!$C849<>\"\"),\"N\",IF($B842=\"N\",\"\",\"Y\"))","v":""},{"$f":"IF(OR($B842=\"N\",'Enrollment Form'!G849=\"\"),\"\",IF('Enrollment Form'!$B849<>\"Subscriber\",\"\",IF('Enrollment Form'!$G849='Enrollment Form'!$H849,\"Y\",\"N\")))","v":""},{"$f":"IF($B842=\"N\",\"\",IF(AND(COUNTIFS('Enrollment Form'!$H$11:$H$1000,'Enrollment Form'!$H849,'Enrollment Form'!$B$11:$B$1000,'Enrollment Form'!$B849)>1,'Enrollment Form'!$H849<>\"\"),\"N\",\"Y\"))","v":""},{"$f":"IF($B842=\"N\",\"\",IF(LEN('Enrollment Form'!$Y849)=0,\"\",IF(LEN('Enrollment Form'!$Y849)<>5,\"N\",\"Y\")))","v":""},{"$f":"IF($B842=\"N\",\"\",IF(LEN('Enrollment Form'!$AD849=0),\"\",IF(LEN('Enrollment Form'!$AD849)<>5,\"N\",\"Y\")))","v":""},{"$f":"IF($B842=\"N\",\"\",IF(LEN('Enrollment Form'!$BS849=0),\"\",IF(LEN('Enrollment Form'!$BS849)<>5,\"N\",\"Y\")))","v":""},{"$f":"IF($B842=\"N\",\"\",IF(LEN('Enrollment Form'!$AE849)=0,\"\",IF(LEN('Enrollment Form'!$AE849)<>10,\"N\",\"Y\")))","v":""},{"$f":"IF($B842=\"N\",\"\",IF(LEN('Enrollment Form'!$AF849)=0,\"\",IF(LEN('Enrollment Form'!$AF849)<>10,\"N\",\"Y\")))","v":""},{"$f":"IF('Enrollment Form'!$O849<>\"Graded\",\"-\",IF(AND('Enrollment Form'!$O849=\"Graded\",'Enrollment Form'!$AR849<>\"\"),\"Y\",\"N\"))","v":"-"},{"$f":"IF($B842=\"N\",\"\",IF(OR('Enrollment Form'!$B849<>\"Subscriber\",'Enrollment Form'!$C849=\"ROC\"),\"-\",IF(AND('Enrollment Form'!$B849=\"Subscriber\",'Enrollment Form'!$C849=\"Enroll\",'Enrollment Form'!$AJ849<>\"\"),\"Y\",\"N\")))","v":""},{"$f":"IF($B842=\"N\",\"\",IF(OR('Enrollment Form'!$B849<>\"Subscriber\",'Enrollment Form'!$C849=\"ROC\"),\"-\",IF(AND('Enrollment Form'!$B849=\"Subscriber\",'Enrollment Form'!$C849=\"Enroll\",'Enrollment Form'!$AK849<>\"\"),\"Y\",\"N\")))","v":""},{"$f":"IF($B842=\"N\",\"\",IF(OR('Enrollment Form'!$B849<>\"Subscriber\",'Enrollment Form'!$C849=\"ROC\"),\"-\",IF(AND('Enrollment Form'!$B849=\"Subscriber\",'Enrollment Form'!$C849=\"Enroll\",'Enrollment Form'!$AL849<>\"\"),\"Y\",\"N\")))","v":""},{"$f":"IF($B842=\"N\",\"\",IF(OR('Enrollment Form'!$B849<>\"Subscriber\",'Enrollment Form'!$C849=\"ROC\"),\"-\",IF(AND('Enrollment Form'!$B849=\"Subscriber\",'Enrollment Form'!$C849=\"Enroll\",'Enrollment Form'!$AP849<>\"\"),\"Y\",\"N\")))","v":""},{"$f":"IF($B842=\"N\",\"\",IF(OR('Enrollment Form'!$B849<>\"Subscriber\",'Enrollment Form'!$C849=\"ROC\"),\"-\",IF(AND('Enrollment Form'!$B849=\"Subscriber\",'Enrollment Form'!$C849=\"Enroll\",'Enrollment Form'!$AQ849<>\"\"),\"Y\",\"N\")))","v":""},{"$f":"IF($B842=\"N\",\"\",IF(OR('Enrollment Form'!$B849<>\"Subscriber\",'Enrollment Form'!$C849=\"ROC\"),\"-\",IF(AND('Enrollment Form'!$B849=\"Subscriber\",'Enrollment Form'!$C849=\"Enroll\",'Enrollment Form'!$AS849<>\"\"),\"Y\",\"N\")))","v":""},{"$f":"IF($B842=\"N\",\"\",IF($Q842=\"-\",\"-\",IF(AND($Q842=\"Y\",'Enrollment Form'!$AS849=\"No\"),\"-\",IF(AND($Q842=\"Y\",'Enrollment Form'!$AS849=\"Yes\",'Enrollment Form'!$AT849<>\"\"),\"Y\",\"N\"))))","v":""},{"$f":"IF($B842=\"N\",\"\",IF(OR('Enrollment Form'!$B849<>\"Subscriber\",'Enrollment Form'!$C849=\"ROC\"),\"-\",IF(AND('Enrollment Form'!$B849=\"Subscriber\",'Enrollment Form'!$C849=\"Enroll\",'Enrollment Form'!$CV849<>\"\"),\"Y\",\"N\")))","v":""},{"$f":"IF($B842=\"N\",\"\",IF($S842=\"-\",\"-\",IF(AND($S842=\"Y\",'Enrollment Form'!$CV849=\"No\"),\"-\",IF(AND($S842=\"Y\",'Enrollment Form'!$CV849=\"Yes\",'Enrollment Form'!$CW849<>\"\"),\"Y\",\"N\"))))","v":""},{"$f":"IF(OR('Enrollment Form'!$AY849=\"Yes\",'Enrollment Form'!$AY849=\"\"),\"-\",IF(OR(AND('Enrollment Form'!$AY849=\"No\",ISERROR(FIND(\"HMO\",VLOOKUP('Enrollment Form'!G849,'Enrollment Form'!H$11:J$1000,3,FALSE),1))=FALSE,COUNTA('Enrollment Form'!$AZ849:$BC849)=4),AND('Enrollment Form'!$AY849=\"No\",ISERROR(FIND(\"HMO\",VLOOKUP('Enrollment Form'!G849,'Enrollment Form'!H$11:J$1000,3,FALSE),1))=FALSE,COUNTA('Enrollment Form'!$BT849:$BW849)=4)),\"Y\",\"N\"))","v":"-"},{"$f":"IF($B842=\"N\",\"\",IF('Enrollment Form'!$B849=\"Subscriber\",\"-\",IF(COUNTA('Enrollment Form'!$BL849,'Enrollment Form'!$BN849)=2,\"Y\",\"N\")))","v":""},{"$f":"IF($B842=\"N\",\"\",IF(OR('Enrollment Form'!$AX849=\"\",'Enrollment Form'!$AX849=\"No\"),\"-\",IF(AND('Enrollment Form'!$AX849=\"Yes\",COUNTA('Enrollment Form'!$CR849)=1),\"Y\",\"N\")))","v":""},{"$f":"IF(OR('Enrollment Form'!$CR849=\"\",'Enrollment Form'!$CR849=\"No\"),\"-\",IF(COUNTA('Enrollment Form'!$CT849:$CU849)=2,\"Y\",\"N\"))","v":"-"},{"$f":"IF($B842=\"N\",\"\",IF(COUNTIF('Enrollment Form'!$DG849:$DP849,\"Other\")=COUNTA('Enrollment Form'!$DK849,'Enrollment Form'!$DH849,'Enrollment Form'!$DN849,'Enrollment Form'!$DQ849),\"Y\",\"N\"))","v":""},{"$f":"IF($B842=\"N\",\"\",IF(OR('Enrollment Form'!B849<>\"Subscriber\",'Enrollment Form'!C849=\"ROC\",COUNTIF('Enrollment Form'!AV849:AW849,\"Yes\")>=1),\"-\",IF(AND('Enrollment Form'!C849=\"Enroll\",COUNTIF('Enrollment Form'!AV849:AW849,\"No\")=2,'Enrollment Form'!AX849=\"\"),\"N\",\"Y\")))","v":""},{"$f":"IF(OR(B842=\"N\",'Enrollment Form'!B849<>\"Subscriber\",'Enrollment Form'!C849=\"ROC\",'Enrollment Form'!O849<>\"Multiple of Salary\"),\"-\",IF(COUNTA('Enrollment Form'!T849:U849)<2,\"N\",\"Y\"))","v":"-"},{"$f":"IF(B842=\"N\",\"\",IF(OR('Enrollment Form'!C849=\"ROC\",'Enrollment Form'!B849<>\"Subscriber\",'Enrollment Form'!O849=\"Waive\",'Enrollment Form'!O849=\"\"),\"-\",IF('Enrollment Form'!P849=\"\",\"N\",\"Y\")))","v":""},{"$f":"IF($B842=\"N\",\"\",IF(AND('Enrollment Form'!$C849=\"ROC\",'Enrollment Form'!$DR849<>\"\"),\"Y\",IF(AND('Enrollment Form'!$C849=\"ROC\",'Enrollment Form'!$DR849=\"\"),\"N\",IF(AND('Enrollment Form'!$C849=\"Enroll\",'Enrollment Form'!$B849=\"Subscriber\",'Enrollment Form'!$CX849=\"No\",'Enrollment Form'!$DR849=\"\"),\"N\",IF(AND('Enrollment Form'!$C849=\"Enroll\",'Enrollment Form'!$B849=\"Subscriber\",'Enrollment Form'!$CX849=\"Yes\"),\"-\",\"Y\")))))","v":""},{"$f":"IF($B842=\"N\",\"\",IF(AND('Enrollment Form'!$C849=\"ROC\",'Enrollment Form'!$DS849<>\"\"),\"Y\",IF(AND('Enrollment Form'!$C849=\"ROC\",'Enrollment Form'!$DS849=\"\"),\"N\",IF(AND('Enrollment Form'!$C849=\"Enroll\",'Enrollment Form'!$B849=\"Subscriber\",'Enrollment Form'!$CX849=\"No\",'Enrollment Form'!$DS849=\"\"),\"N\",IF(AND('Enrollment Form'!$C849=\"Enroll\",'Enrollment Form'!$B849=\"Subscriber\",'Enrollment Form'!$CX849=\"Yes\"),\"-\",\"Y\")))))","v":""},{"$f":"IF('Enrollment Form'!AH849=\"\",\"\",IF(ISERROR(SEARCH(\".\",'Enrollment Form'!AH849,SEARCH(\"@\",'Enrollment Form'!AH849))),\"N\",\"Y\"))","v":""},{"$f":"IF(OR($B842=\"N\",'Enrollment Form'!$G849=\"\"),\"\",IF('Enrollment Form'!$B849<>\"Subscriber\",\"-\",IF(COUNTIF('Enrollment Form'!$AV849:$AW849,\"Yes\")=2,\"N\",\"Y\")))","v":""},{"$f":"IF(OR('Enrollment Form'!$CJ849=\"\",'Enrollment Form'!$CJ849=\"No\"),\"-\",IF(AND('Enrollment Form'!$CJ849=\"Yes\",'Enrollment Form'!$CK849=\"\"),\"N\",\"Y\"))","v":"-"},{"$f":"IF(OR('Enrollment Form'!$CL849=\"\",'Enrollment Form'!$CL849=\"No\"),\"-\",IF(AND('Enrollment Form'!$CL849=\"Yes\",'Enrollment Form'!$CM849=\"\"),\"N\",\"Y\"))","v":"-"},{"$f":"IF(OR('Enrollment Form'!$CN849=\"\",'Enrollment Form'!$CN849=\"No\"),\"-\",IF(AND('Enrollment Form'!$CN849=\"Yes\",'Enrollment Form'!$CO849=\"\"),\"N\",\"Y\"))","v":"-"},{"$f":"IF(OR('Enrollment Form'!$CN849=\"\",'Enrollment Form'!$CN849=\"No\"),\"-\",IF(AND('Enrollment Form'!$CN849=\"Yes\",'Enrollment Form'!$CP849=\"\"),\"N\",\"Y\"))","v":"-"},{"$f":"IF('Enrollment Form'!B849<>\"Subscriber\",\"-\",IF(AND('Enrollment Form'!B849=\"Subscriber\",'Enrollment Form'!C849=\"Enroll\",'Enrollment Form'!AA849=\"\"),\"N\",\"Y\"))","v":"-"},{"$f":"IF(OR('Enrollment Form'!B849=\"Subscriber\",'Enrollment Form'!B849=\"\"),\"-\",IF('Enrollment Form'!BP849=\"\",\"N\",\"Y\"))","v":"-"},{"$f":"IF('Enrollment Form'!B849<>\"Subscriber\",\"-\",IF(AND('Enrollment Form'!B849=\"Subscriber\",'Enrollment Form'!G849=\"\"),\"N\",\"Y\"))","v":"-"},{"$f":"IF('Enrollment Form'!A849=\"\",\"\",IF('Enrollment Form'!B849=\"Subscriber\",\"-\",IF(AND('Enrollment Form'!B849<>\"Subscriber\",'Enrollment Form'!G849='Enrollment Form'!H849),\"N\",\"Y\")))","v":""},0]
[850,{"$f":"IF('Enrollment Form'!$A850<>\"\",\"Y\",\"N\")","v":"N"},{"$f":"IF(AND('Enrollment Form'!$B850=\"\",'Enrollment Form'!$C850<>\"\"),\"N\",IF($B843=\"N\",\"\",\"Y\"))","v":""},{"$f":"IF(OR($B843=\"N\",'Enrollment Form'!G850=\"\"),\"\",IF('Enrollment Form'!$B850<>\"Subscriber\",\"\",IF('Enrollment Form'!$G850='Enrollment Form'!$H850,\"Y\",\"N\")))","v":""},{"$f":"IF($B843=\"N\",\"\",IF(AND(COUNTIFS('Enrollment Form'!$H$11:$H$1000,'Enrollment Form'!$H850,'Enrollment Form'!$B$11:$B$1000,'Enrollment Form'!$B850)>1,'Enrollment Form'!$H850<>\"\"),\"N\",\"Y\"))","v":""},{"$f":"IF($B843=\"N\",\"\",IF(LEN('Enrollment Form'!$Y850)=0,\"\",IF(LEN('Enrollment Form'!$Y850)<>5,\"N\",\"Y\")))","v":""},{"$f":"IF($B843=\"N\",\"\",IF(LEN('Enrollment Form'!$AD850=0),\"\",IF(LEN('Enrollment Form'!$AD850)<>5,\"N\",\"Y\")))","v":""},{"$f":"IF($B843=\"N\",\"\",IF(LEN('Enrollment Form'!$BS850=0),\"\",IF(LEN('Enrollment Form'!$BS850)<>5,\"N\",\"Y\")))","v":""},{"$f":"IF($B843=\"N\",\"\",IF(LEN('Enrollment Form'!$AE850)=0,\"\",IF(LEN('Enrollment Form'!$AE850)<>10,\"N\",\"Y\")))","v":""},{"$f":"IF($B843=\"N\",\"\",IF(LEN('Enrollment Form'!$AF850)=0,\"\",IF(LEN('Enrollment Form'!$AF850)<>10,\"N\",\"Y\")))","v":""},{"$f":"IF('Enrollment Form'!$O850<>\"Graded\",\"-\",IF(AND('Enrollment Form'!$O850=\"Graded\",'Enrollment Form'!$AR850<>\"\"),\"Y\",\"N\"))","v":"-"},{"$f":"IF($B843=\"N\",\"\",IF(OR('Enrollment Form'!$B850<>\"Subscriber\",'Enrollment Form'!$C850=\"ROC\"),\"-\",IF(AND('Enrollment Form'!$B850=\"Subscriber\",'Enrollment Form'!$C850=\"Enroll\",'Enrollment Form'!$AJ850<>\"\"),\"Y\",\"N\")))","v":""},{"$f":"IF($B843=\"N\",\"\",IF(OR('Enrollment Form'!$B850<>\"Subscriber\",'Enrollment Form'!$C850=\"ROC\"),\"-\",IF(AND('Enrollment Form'!$B850=\"Subscriber\",'Enrollment Form'!$C850=\"Enroll\",'Enrollment Form'!$AK850<>\"\"),\"Y\",\"N\")))","v":""},{"$f":"IF($B843=\"N\",\"\",IF(OR('Enrollment Form'!$B850<>\"Subscriber\",'Enrollment Form'!$C850=\"ROC\"),\"-\",IF(AND('Enrollment Form'!$B850=\"Subscriber\",'Enrollment Form'!$C850=\"Enroll\",'Enrollment Form'!$AL850<>\"\"),\"Y\",\"N\")))","v":""},{"$f":"IF($B843=\"N\",\"\",IF(OR('Enrollment Form'!$B850<>\"Subscriber\",'Enrollment Form'!$C850=\"ROC\"),\"-\",IF(AND('Enrollment Form'!$B850=\"Subscriber\",'Enrollment Form'!$C850=\"Enroll\",'Enrollment Form'!$AP850<>\"\"),\"Y\",\"N\")))","v":""},{"$f":"IF($B843=\"N\",\"\",IF(OR('Enrollment Form'!$B850<>\"Subscriber\",'Enrollment Form'!$C850=\"ROC\"),\"-\",IF(AND('Enrollment Form'!$B850=\"Subscriber\",'Enrollment Form'!$C850=\"Enroll\",'Enrollment Form'!$AQ850<>\"\"),\"Y\",\"N\")))","v":""},{"$f":"IF($B843=\"N\",\"\",IF(OR('Enrollment Form'!$B850<>\"Subscriber\",'Enrollment Form'!$C850=\"ROC\"),\"-\",IF(AND('Enrollment Form'!$B850=\"Subscriber\",'Enrollment Form'!$C850=\"Enroll\",'Enrollment Form'!$AS850<>\"\"),\"Y\",\"N\")))","v":""},{"$f":"IF($B843=\"N\",\"\",IF($Q843=\"-\",\"-\",IF(AND($Q843=\"Y\",'Enrollment Form'!$AS850=\"No\"),\"-\",IF(AND($Q843=\"Y\",'Enrollment Form'!$AS850=\"Yes\",'Enrollment Form'!$AT850<>\"\"),\"Y\",\"N\"))))","v":""},{"$f":"IF($B843=\"N\",\"\",IF(OR('Enrollment Form'!$B850<>\"Subscriber\",'Enrollment Form'!$C850=\"ROC\"),\"-\",IF(AND('Enrollment Form'!$B850=\"Subscriber\",'Enrollment Form'!$C850=\"Enroll\",'Enrollment Form'!$CV850<>\"\"),\"Y\",\"N\")))","v":""},{"$f":"IF($B843=\"N\",\"\",IF($S843=\"-\",\"-\",IF(AND($S843=\"Y\",'Enrollment Form'!$CV850=\"No\"),\"-\",IF(AND($S843=\"Y\",'Enrollment Form'!$CV850=\"Yes\",'Enrollment Form'!$CW850<>\"\"),\"Y\",\"N\"))))","v":""},{"$f":"IF(OR('Enrollment Form'!$AY850=\"Yes\",'Enrollment Form'!$AY850=\"\"),\"-\",IF(OR(AND('Enrollment Form'!$AY850=\"No\",ISERROR(FIND(\"HMO\",VLOOKUP('Enrollment Form'!G850,'Enrollment Form'!H$11:J$1000,3,FALSE),1))=FALSE,COUNTA('Enrollment Form'!$AZ850:$BC850)=4),AND('Enrollment Form'!$AY850=\"No\",ISERROR(FIND(\"HMO\",VLOOKUP('Enrollment Form'!G850,'Enrollment Form'!H$11:J$1000,3,FALSE),1))=FALSE,COUNTA('Enrollment Form'!$BT850:$BW850)=4)),\"Y\",\"N\"))","v":"-"},{"$f":"IF($B843=\"N\",\"\",IF('Enrollment Form'!$B850=\"Subscriber\",\"-\",IF(COUNTA('Enrollment Form'!$BL850,'Enrollment Form'!$BN850)=2,\"Y\",\"N\")))","v":""},{"$f":"IF($B843=\"N\",\"\",IF(OR('Enrollment Form'!$AX850=\"\",'Enrollment Form'!$AX850=\"No\"),\"-\",IF(AND('Enrollment Form'!$AX850=\"Yes\",COUNTA('Enrollment Form'!$CR850)=1),\"Y\",\"N\")))","v":""},{"$f":"IF(OR('Enrollment Form'!$CR850=\"\",'Enrollment Form'!$CR850=\"No\"),\"-\",IF(COUNTA('Enrollment Form'!$CT850:$CU850)=2,\"Y\",\"N\"))","v":"-"},{"$f":"IF($B843=\"N\",\"\",IF(COUNTIF('Enrollment Form'!$DG850:$DP850,\"Other\")=COUNTA('Enrollment Form'!$DK850,'Enrollment Form'!$DH850,'Enrollment Form'!$DN850,'Enrollment Form'!$DQ850),\"Y\",\"N\"))","v":""},{"$f":"IF($B843=\"N\",\"\",IF(OR('Enrollment Form'!B850<>\"Subscriber\",'Enrollment Form'!C850=\"ROC\",COUNTIF('Enrollment Form'!AV850:AW850,\"Yes\")>=1),\"-\",IF(AND('Enrollment Form'!C850=\"Enroll\",COUNTIF('Enrollment Form'!AV850:AW850,\"No\")=2,'Enrollment Form'!AX850=\"\"),\"N\",\"Y\")))","v":""},{"$f":"IF(OR(B843=\"N\",'Enrollment Form'!B850<>\"Subscriber\",'Enrollment Form'!C850=\"ROC\",'Enrollment Form'!O850<>\"Multiple of Salary\"),\"-\",IF(COUNTA('Enrollment Form'!T850:U850)<2,\"N\",\"Y\"))","v":"-"},{"$f":"IF(B843=\"N\",\"\",IF(OR('Enrollment Form'!C850=\"ROC\",'Enrollment Form'!B850<>\"Subscriber\",'Enrollment Form'!O850=\"Waive\",'Enrollment Form'!O850=\"\"),\"-\",IF('Enrollment Form'!P850=\"\",\"N\",\"Y\")))","v":""},{"$f":"IF($B843=\"N\",\"\",IF(AND('Enrollment Form'!$C850=\"ROC\",'Enrollment Form'!$DR850<>\"\"),\"Y\",IF(AND('Enrollment Form'!$C850=\"ROC\",'Enrollment Form'!$DR850=\"\"),\"N\",IF(AND('Enrollment Form'!$C850=\"Enroll\",'Enrollment Form'!$B850=\"Subscriber\",'Enrollment Form'!$CX850=\"No\",'Enrollment Form'!$DR850=\"\"),\"N\",IF(AND('Enrollment Form'!$C850=\"Enroll\",'Enrollment Form'!$B850=\"Subscriber\",'Enrollment Form'!$CX850=\"Yes\"),\"-\",\"Y\")))))","v":""},{"$f":"IF($B843=\"N\",\"\",IF(AND('Enrollment Form'!$C850=\"ROC\",'Enrollment Form'!$DS850<>\"\"),\"Y\",IF(AND('Enrollment Form'!$C850=\"ROC\",'Enrollment Form'!$DS850=\"\"),\"N\",IF(AND('Enrollment Form'!$C850=\"Enroll\",'Enrollment Form'!$B850=\"Subscriber\",'Enrollment Form'!$CX850=\"No\",'Enrollment Form'!$DS850=\"\"),\"N\",IF(AND('Enrollment Form'!$C850=\"Enroll\",'Enrollment Form'!$B850=\"Subscriber\",'Enrollment Form'!$CX850=\"Yes\"),\"-\",\"Y\")))))","v":""},{"$f":"IF('Enrollment Form'!AH850=\"\",\"\",IF(ISERROR(SEARCH(\".\",'Enrollment Form'!AH850,SEARCH(\"@\",'Enrollment Form'!AH850))),\"N\",\"Y\"))","v":""},{"$f":"IF(OR($B843=\"N\",'Enrollment Form'!$G850=\"\"),\"\",IF('Enrollment Form'!$B850<>\"Subscriber\",\"-\",IF(COUNTIF('Enrollment Form'!$AV850:$AW850,\"Yes\")=2,\"N\",\"Y\")))","v":""},{"$f":"IF(OR('Enrollment Form'!$CJ850=\"\",'Enrollment Form'!$CJ850=\"No\"),\"-\",IF(AND('Enrollment Form'!$CJ850=\"Yes\",'Enrollment Form'!$CK850=\"\"),\"N\",\"Y\"))","v":"-"},{"$f":"IF(OR('Enrollment Form'!$CL850=\"\",'Enrollment Form'!$CL850=\"No\"),\"-\",IF(AND('Enrollment Form'!$CL850=\"Yes\",'Enrollment Form'!$CM850=\"\"),\"N\",\"Y\"))","v":"-"},{"$f":"IF(OR('Enrollment Form'!$CN850=\"\",'Enrollment Form'!$CN850=\"No\"),\"-\",IF(AND('Enrollment Form'!$CN850=\"Yes\",'Enrollment Form'!$CO850=\"\"),\"N\",\"Y\"))","v":"-"},{"$f":"IF(OR('Enrollment Form'!$CN850=\"\",'Enrollment Form'!$CN850=\"No\"),\"-\",IF(AND('Enrollment Form'!$CN850=\"Yes\",'Enrollment Form'!$CP850=\"\"),\"N\",\"Y\"))","v":"-"},{"$f":"IF('Enrollment Form'!B850<>\"Subscriber\",\"-\",IF(AND('Enrollment Form'!B850=\"Subscriber\",'Enrollment Form'!C850=\"Enroll\",'Enrollment Form'!AA850=\"\"),\"N\",\"Y\"))","v":"-"},{"$f":"IF(OR('Enrollment Form'!B850=\"Subscriber\",'Enrollment Form'!B850=\"\"),\"-\",IF('Enrollment Form'!BP850=\"\",\"N\",\"Y\"))","v":"-"},{"$f":"IF('Enrollment Form'!B850<>\"Subscriber\",\"-\",IF(AND('Enrollment Form'!B850=\"Subscriber\",'Enrollment Form'!G850=\"\"),\"N\",\"Y\"))","v":"-"},{"$f":"IF('Enrollment Form'!A850=\"\",\"\",IF('Enrollment Form'!B850=\"Subscriber\",\"-\",IF(AND('Enrollment Form'!B850<>\"Subscriber\",'Enrollment Form'!G850='Enrollment Form'!H850),\"N\",\"Y\")))","v":""},0]
[851,{"$f":"IF('Enrollment Form'!$A851<>\"\",\"Y\",\"N\")","v":"N"},{"$f":"IF(AND('Enrollment Form'!$B851=\"\",'Enrollment Form'!$C851<>\"\"),\"N\",IF($B844=\"N\",\"\",\"Y\"))","v":""},{"$f":"IF(OR($B844=\"N\",'Enrollment Form'!G851=\"\"),\"\",IF('Enrollment Form'!$B851<>\"Subscriber\",\"\",IF('Enrollment Form'!$G851='Enrollment Form'!$H851,\"Y\",\"N\")))","v":""},{"$f":"IF($B844=\"N\",\"\",IF(AND(COUNTIFS('Enrollment Form'!$H$11:$H$1000,'Enrollment Form'!$H851,'Enrollment Form'!$B$11:$B$1000,'Enrollment Form'!$B851)>1,'Enrollment Form'!$H851<>\"\"),\"N\",\"Y\"))","v":""},{"$f":"IF($B844=\"N\",\"\",IF(LEN('Enrollment Form'!$Y851)=0,\"\",IF(LEN('Enrollment Form'!$Y851)<>5,\"N\",\"Y\")))","v":""},{"$f":"IF($B844=\"N\",\"\",IF(LEN('Enrollment Form'!$AD851=0),\"\",IF(LEN('Enrollment Form'!$AD851)<>5,\"N\",\"Y\")))","v":""},{"$f":"IF($B844=\"N\",\"\",IF(LEN('Enrollment Form'!$BS851=0),\"\",IF(LEN('Enrollment Form'!$BS851)<>5,\"N\",\"Y\")))","v":""},{"$f":"IF($B844=\"N\",\"\",IF(LEN('Enrollment Form'!$AE851)=0,\"\",IF(LEN('Enrollment Form'!$AE851)<>10,\"N\",\"Y\")))","v":""},{"$f":"IF($B844=\"N\",\"\",IF(LEN('Enrollment Form'!$AF851)=0,\"\",IF(LEN('Enrollment Form'!$AF851)<>10,\"N\",\"Y\")))","v":""},{"$f":"IF('Enrollment Form'!$O851<>\"Graded\",\"-\",IF(AND('Enrollment Form'!$O851=\"Graded\",'Enrollment Form'!$AR851<>\"\"),\"Y\",\"N\"))","v":"-"},{"$f":"IF($B844=\"N\",\"\",IF(OR('Enrollment Form'!$B851<>\"Subscriber\",'Enrollment Form'!$C851=\"ROC\"),\"-\",IF(AND('Enrollment Form'!$B851=\"Subscriber\",'Enrollment Form'!$C851=\"Enroll\",'Enrollment Form'!$AJ851<>\"\"),\"Y\",\"N\")))","v":""},{"$f":"IF($B844=\"N\",\"\",IF(OR('Enrollment Form'!$B851<>\"Subscriber\",'Enrollment Form'!$C851=\"ROC\"),\"-\",IF(AND('Enrollment Form'!$B851=\"Subscriber\",'Enrollment Form'!$C851=\"Enroll\",'Enrollment Form'!$AK851<>\"\"),\"Y\",\"N\")))","v":""},{"$f":"IF($B844=\"N\",\"\",IF(OR('Enrollment Form'!$B851<>\"Subscriber\",'Enrollment Form'!$C851=\"ROC\"),\"-\",IF(AND('Enrollment Form'!$B851=\"Subscriber\",'Enrollment Form'!$C851=\"Enroll\",'Enrollment Form'!$AL851<>\"\"),\"Y\",\"N\")))","v":""},{"$f":"IF($B844=\"N\",\"\",IF(OR('Enrollment Form'!$B851<>\"Subscriber\",'Enrollment Form'!$C851=\"ROC\"),\"-\",IF(AND('Enrollment Form'!$B851=\"Subscriber\",'Enrollment Form'!$C851=\"Enroll\",'Enrollment Form'!$AP851<>\"\"),\"Y\",\"N\")))","v":""},{"$f":"IF($B844=\"N\",\"\",IF(OR('Enrollment Form'!$B851<>\"Subscriber\",'Enrollment Form'!$C851=\"ROC\"),\"-\",IF(AND('Enrollment Form'!$B851=\"Subscriber\",'Enrollment Form'!$C851=\"Enroll\",'Enrollment Form'!$AQ851<>\"\"),\"Y\",\"N\")))","v":""},{"$f":"IF($B844=\"N\",\"\",IF(OR('Enrollment Form'!$B851<>\"Subscriber\",'Enrollment Form'!$C851=\"ROC\"),\"-\",IF(AND('Enrollment Form'!$B851=\"Subscriber\",'Enrollment Form'!$C851=\"Enroll\",'Enrollment Form'!$AS851<>\"\"),\"Y\",\"N\")))","v":""},{"$f":"IF($B844=\"N\",\"\",IF($Q844=\"-\",\"-\",IF(AND($Q844=\"Y\",'Enrollment Form'!$AS851=\"No\"),\"-\",IF(AND($Q844=\"Y\",'Enrollment Form'!$AS851=\"Yes\",'Enrollment Form'!$AT851<>\"\"),\"Y\",\"N\"))))","v":""},{"$f":"IF($B844=\"N\",\"\",IF(OR('Enrollment Form'!$B851<>\"Subscriber\",'Enrollment Form'!$C851=\"ROC\"),\"-\",IF(AND('Enrollment Form'!$B851=\"Subscriber\",'Enrollment Form'!$C851=\"Enroll\",'Enrollment Form'!$CV851<>\"\"),\"Y\",\"N\")))","v":""},{"$f":"IF($B844=\"N\",\"\",IF($S844=\"-\",\"-\",IF(AND($S844=\"Y\",'Enrollment Form'!$CV851=\"No\"),\"-\",IF(AND($S844=\"Y\",'Enrollment Form'!$CV851=\"Yes\",'Enrollment Form'!$CW851<>\"\"),\"Y\",\"N\"))))","v":""},{"$f":"IF(OR('Enrollment Form'!$AY851=\"Yes\",'Enrollment Form'!$AY851=\"\"),\"-\",IF(OR(AND('Enrollment Form'!$AY851=\"No\",ISERROR(FIND(\"HMO\",VLOOKUP('Enrollment Form'!G851,'Enrollment Form'!H$11:J$1000,3,FALSE),1))=FALSE,COUNTA('Enrollment Form'!$AZ851:$BC851)=4),AND('Enrollment Form'!$AY851=\"No\",ISERROR(FIND(\"HMO\",VLOOKUP('Enrollment Form'!G851,'Enrollment Form'!H$11:J$1000,3,FALSE),1))=FALSE,COUNTA('Enrollment Form'!$BT851:$BW851)=4)),\"Y\",\"N\"))","v":"-"},{"$f":"IF($B844=\"N\",\"\",IF('Enrollment Form'!$B851=\"Subscriber\",\"-\",IF(COUNTA('Enrollment Form'!$BL851,'Enrollment Form'!$BN851)=2,\"Y\",\"N\")))","v":""},{"$f":"IF($B844=\"N\",\"\",IF(OR('Enrollment Form'!$AX851=\"\",'Enrollment Form'!$AX851=\"No\"),\"-\",IF(AND('Enrollment Form'!$AX851=\"Yes\",COUNTA('Enrollment Form'!$CR851)=1),\"Y\",\"N\")))","v":""},{"$f":"IF(OR('Enrollment Form'!$CR851=\"\",'Enrollment Form'!$CR851=\"No\"),\"-\",IF(COUNTA('Enrollment Form'!$CT851:$CU851)=2,\"Y\",\"N\"))","v":"-"},{"$f":"IF($B844=\"N\",\"\",IF(COUNTIF('Enrollment Form'!$DG851:$DP851,\"Other\")=COUNTA('Enrollment Form'!$DK851,'Enrollment Form'!$DH851,'Enrollment Form'!$DN851,'Enrollment Form'!$DQ851),\"Y\",\"N\"))","v":""},{"$f":"IF($B844=\"N\",\"\",IF(OR('Enrollment Form'!B851<>\"Subscriber\",'Enrollment Form'!C851=\"ROC\",COUNTIF('Enrollment Form'!AV851:AW851,\"Yes\")>=1),\"-\",IF(AND('Enrollment Form'!C851=\"Enroll\",COUNTIF('Enrollment Form'!AV851:AW851,\"No\")=2,'Enrollment Form'!AX851=\"\"),\"N\",\"Y\")))","v":""},{"$f":"IF(OR(B844=\"N\",'Enrollment Form'!B851<>\"Subscriber\",'Enrollment Form'!C851=\"ROC\",'Enrollment Form'!O851<>\"Multiple of Salary\"),\"-\",IF(COUNTA('Enrollment Form'!T851:U851)<2,\"N\",\"Y\"))","v":"-"},{"$f":"IF(B844=\"N\",\"\",IF(OR('Enrollment Form'!C851=\"ROC\",'Enrollment Form'!B851<>\"Subscriber\",'Enrollment Form'!O851=\"Waive\",'Enrollment Form'!O851=\"\"),\"-\",IF('Enrollment Form'!P851=\"\",\"N\",\"Y\")))","v":""},{"$f":"IF($B844=\"N\",\"\",IF(AND('Enrollment Form'!$C851=\"ROC\",'Enrollment Form'!$DR851<>\"\"),\"Y\",IF(AND('Enrollment Form'!$C851=\"ROC\",'Enrollment Form'!$DR851=\"\"),\"N\",IF(AND('Enrollment Form'!$C851=\"Enroll\",'Enrollment Form'!$B851=\"Subscriber\",'Enrollment Form'!$CX851=\"No\",'Enrollment Form'!$DR851=\"\"),\"N\",IF(AND('Enrollment Form'!$C851=\"Enroll\",'Enrollment Form'!$B851=\"Subscriber\",'Enrollment Form'!$CX851=\"Yes\"),\"-\",\"Y\")))))","v":""},{"$f":"IF($B844=\"N\",\"\",IF(AND('Enrollment Form'!$C851=\"ROC\",'Enrollment Form'!$DS851<>\"\"),\"Y\",IF(AND('Enrollment Form'!$C851=\"ROC\",'Enrollment Form'!$DS851=\"\"),\"N\",IF(AND('Enrollment Form'!$C851=\"Enroll\",'Enrollment Form'!$B851=\"Subscriber\",'Enrollment Form'!$CX851=\"No\",'Enrollment Form'!$DS851=\"\"),\"N\",IF(AND('Enrollment Form'!$C851=\"Enroll\",'Enrollment Form'!$B851=\"Subscriber\",'Enrollment Form'!$CX851=\"Yes\"),\"-\",\"Y\")))))","v":""},{"$f":"IF('Enrollment Form'!AH851=\"\",\"\",IF(ISERROR(SEARCH(\".\",'Enrollment Form'!AH851,SEARCH(\"@\",'Enrollment Form'!AH851))),\"N\",\"Y\"))","v":""},{"$f":"IF(OR($B844=\"N\",'Enrollment Form'!$G851=\"\"),\"\",IF('Enrollment Form'!$B851<>\"Subscriber\",\"-\",IF(COUNTIF('Enrollment Form'!$AV851:$AW851,\"Yes\")=2,\"N\",\"Y\")))","v":""},{"$f":"IF(OR('Enrollment Form'!$CJ851=\"\",'Enrollment Form'!$CJ851=\"No\"),\"-\",IF(AND('Enrollment Form'!$CJ851=\"Yes\",'Enrollment Form'!$CK851=\"\"),\"N\",\"Y\"))","v":"-"},{"$f":"IF(OR('Enrollment Form'!$CL851=\"\",'Enrollment Form'!$CL851=\"No\"),\"-\",IF(AND('Enrollment Form'!$CL851=\"Yes\",'Enrollment Form'!$CM851=\"\"),\"N\",\"Y\"))","v":"-"},{"$f":"IF(OR('Enrollment Form'!$CN851=\"\",'Enrollment Form'!$CN851=\"No\"),\"-\",IF(AND('Enrollment Form'!$CN851=\"Yes\",'Enrollment Form'!$CO851=\"\"),\"N\",\"Y\"))","v":"-"},{"$f":"IF(OR('Enrollment Form'!$CN851=\"\",'Enrollment Form'!$CN851=\"No\"),\"-\",IF(AND('Enrollment Form'!$CN851=\"Yes\",'Enrollment Form'!$CP851=\"\"),\"N\",\"Y\"))","v":"-"},{"$f":"IF('Enrollment Form'!B851<>\"Subscriber\",\"-\",IF(AND('Enrollment Form'!B851=\"Subscriber\",'Enrollment Form'!C851=\"Enroll\",'Enrollment Form'!AA851=\"\"),\"N\",\"Y\"))","v":"-"},{"$f":"IF(OR('Enrollment Form'!B851=\"Subscriber\",'Enrollment Form'!B851=\"\"),\"-\",IF('Enrollment Form'!BP851=\"\",\"N\",\"Y\"))","v":"-"},{"$f":"IF('Enrollment Form'!B851<>\"Subscriber\",\"-\",IF(AND('Enrollment Form'!B851=\"Subscriber\",'Enrollment Form'!G851=\"\"),\"N\",\"Y\"))","v":"-"},{"$f":"IF('Enrollment Form'!A851=\"\",\"\",IF('Enrollment Form'!B851=\"Subscriber\",\"-\",IF(AND('Enrollment Form'!B851<>\"Subscriber\",'Enrollment Form'!G851='Enrollment Form'!H851),\"N\",\"Y\")))","v":""},0]
[852,{"$f":"IF('Enrollment Form'!$A852<>\"\",\"Y\",\"N\")","v":"N"},{"$f":"IF(AND('Enrollment Form'!$B852=\"\",'Enrollment Form'!$C852<>\"\"),\"N\",IF($B845=\"N\",\"\",\"Y\"))","v":""},{"$f":"IF(OR($B845=\"N\",'Enrollment Form'!G852=\"\"),\"\",IF('Enrollment Form'!$B852<>\"Subscriber\",\"\",IF('Enrollment Form'!$G852='Enrollment Form'!$H852,\"Y\",\"N\")))","v":""},{"$f":"IF($B845=\"N\",\"\",IF(AND(COUNTIFS('Enrollment Form'!$H$11:$H$1000,'Enrollment Form'!$H852,'Enrollment Form'!$B$11:$B$1000,'Enrollment Form'!$B852)>1,'Enrollment Form'!$H852<>\"\"),\"N\",\"Y\"))","v":""},{"$f":"IF($B845=\"N\",\"\",IF(LEN('Enrollment Form'!$Y852)=0,\"\",IF(LEN('Enrollment Form'!$Y852)<>5,\"N\",\"Y\")))","v":""},{"$f":"IF($B845=\"N\",\"\",IF(LEN('Enrollment Form'!$AD852=0),\"\",IF(LEN('Enrollment Form'!$AD852)<>5,\"N\",\"Y\")))","v":""},{"$f":"IF($B845=\"N\",\"\",IF(LEN('Enrollment Form'!$BS852=0),\"\",IF(LEN('Enrollment Form'!$BS852)<>5,\"N\",\"Y\")))","v":""},{"$f":"IF($B845=\"N\",\"\",IF(LEN('Enrollment Form'!$AE852)=0,\"\",IF(LEN('Enrollment Form'!$AE852)<>10,\"N\",\"Y\")))","v":""},{"$f":"IF($B845=\"N\",\"\",IF(LEN('Enrollment Form'!$AF852)=0,\"\",IF(LEN('Enrollment Form'!$AF852)<>10,\"N\",\"Y\")))","v":""},{"$f":"IF('Enrollment Form'!$O852<>\"Graded\",\"-\",IF(AND('Enrollment Form'!$O852=\"Graded\",'Enrollment Form'!$AR852<>\"\"),\"Y\",\"N\"))","v":"-"},{"$f":"IF($B845=\"N\",\"\",IF(OR('Enrollment Form'!$B852<>\"Subscriber\",'Enrollment Form'!$C852=\"ROC\"),\"-\",IF(AND('Enrollment Form'!$B852=\"Subscriber\",'Enrollment Form'!$C852=\"Enroll\",'Enrollment Form'!$AJ852<>\"\"),\"Y\",\"N\")))","v":""},{"$f":"IF($B845=\"N\",\"\",IF(OR('Enrollment Form'!$B852<>\"Subscriber\",'Enrollment Form'!$C852=\"ROC\"),\"-\",IF(AND('Enrollment Form'!$B852=\"Subscriber\",'Enrollment Form'!$C852=\"Enroll\",'Enrollment Form'!$AK852<>\"\"),\"Y\",\"N\")))","v":""},{"$f":"IF($B845=\"N\",\"\",IF(OR('Enrollment Form'!$B852<>\"Subscriber\",'Enrollment Form'!$C852=\"ROC\"),\"-\",IF(AND('Enrollment Form'!$B852=\"Subscriber\",'Enrollment Form'!$C852=\"Enroll\",'Enrollment Form'!$AL852<>\"\"),\"Y\",\"N\")))","v":""},{"$f":"IF($B845=\"N\",\"\",IF(OR('Enrollment Form'!$B852<>\"Subscriber\",'Enrollment Form'!$C852=\"ROC\"),\"-\",IF(AND('Enrollment Form'!$B852=\"Subscriber\",'Enrollment Form'!$C852=\"Enroll\",'Enrollment Form'!$AP852<>\"\"),\"Y\",\"N\")))","v":""},{"$f":"IF($B845=\"N\",\"\",IF(OR('Enrollment Form'!$B852<>\"Subscriber\",'Enrollment Form'!$C852=\"ROC\"),\"-\",IF(AND('Enrollment Form'!$B852=\"Subscriber\",'Enrollment Form'!$C852=\"Enroll\",'Enrollment Form'!$AQ852<>\"\"),\"Y\",\"N\")))","v":""},{"$f":"IF($B845=\"N\",\"\",IF(OR('Enrollment Form'!$B852<>\"Subscriber\",'Enrollment Form'!$C852=\"ROC\"),\"-\",IF(AND('Enrollment Form'!$B852=\"Subscriber\",'Enrollment Form'!$C852=\"Enroll\",'Enrollment Form'!$AS852<>\"\"),\"Y\",\"N\")))","v":""},{"$f":"IF($B845=\"N\",\"\",IF($Q845=\"-\",\"-\",IF(AND($Q845=\"Y\",'Enrollment Form'!$AS852=\"No\"),\"-\",IF(AND($Q845=\"Y\",'Enrollment Form'!$AS852=\"Yes\",'Enrollment Form'!$AT852<>\"\"),\"Y\",\"N\"))))","v":""},{"$f":"IF($B845=\"N\",\"\",IF(OR('Enrollment Form'!$B852<>\"Subscriber\",'Enrollment Form'!$C852=\"ROC\"),\"-\",IF(AND('Enrollment Form'!$B852=\"Subscriber\",'Enrollment Form'!$C852=\"Enroll\",'Enrollment Form'!$CV852<>\"\"),\"Y\",\"N\")))","v":""},{"$f":"IF($B845=\"N\",\"\",IF($S845=\"-\",\"-\",IF(AND($S845=\"Y\",'Enrollment Form'!$CV852=\"No\"),\"-\",IF(AND($S845=\"Y\",'Enrollment Form'!$CV852=\"Yes\",'Enrollment Form'!$CW852<>\"\"),\"Y\",\"N\"))))","v":""},{"$f":"IF(OR('Enrollment Form'!$AY852=\"Yes\",'Enrollment Form'!$AY852=\"\"),\"-\",IF(OR(AND('Enrollment Form'!$AY852=\"No\",ISERROR(FIND(\"HMO\",VLOOKUP('Enrollment Form'!G852,'Enrollment Form'!H$11:J$1000,3,FALSE),1))=FALSE,COUNTA('Enrollment Form'!$AZ852:$BC852)=4),AND('Enrollment Form'!$AY852=\"No\",ISERROR(FIND(\"HMO\",VLOOKUP('Enrollment Form'!G852,'Enrollment Form'!H$11:J$1000,3,FALSE),1))=FALSE,COUNTA('Enrollment Form'!$BT852:$BW852)=4)),\"Y\",\"N\"))","v":"-"},{"$f":"IF($B845=\"N\",\"\",IF('Enrollment Form'!$B852=\"Subscriber\",\"-\",IF(COUNTA('Enrollment Form'!$BL852,'Enrollment Form'!$BN852)=2,\"Y\",\"N\")))","v":""},{"$f":"IF($B845=\"N\",\"\",IF(OR('Enrollment Form'!$AX852=\"\",'Enrollment Form'!$AX852=\"No\"),\"-\",IF(AND('Enrollment Form'!$AX852=\"Yes\",COUNTA('Enrollment Form'!$CR852)=1),\"Y\",\"N\")))","v":""},{"$f":"IF(OR('Enrollment Form'!$CR852=\"\",'Enrollment Form'!$CR852=\"No\"),\"-\",IF(COUNTA('Enrollment Form'!$CT852:$CU852)=2,\"Y\",\"N\"))","v":"-"},{"$f":"IF($B845=\"N\",\"\",IF(COUNTIF('Enrollment Form'!$DG852:$DP852,\"Other\")=COUNTA('Enrollment Form'!$DK852,'Enrollment Form'!$DH852,'Enrollment Form'!$DN852,'Enrollment Form'!$DQ852),\"Y\",\"N\"))","v":""},{"$f":"IF($B845=\"N\",\"\",IF(OR('Enrollment Form'!B852<>\"Subscriber\",'Enrollment Form'!C852=\"ROC\",COUNTIF('Enrollment Form'!AV852:AW852,\"Yes\")>=1),\"-\",IF(AND('Enrollment Form'!C852=\"Enroll\",COUNTIF('Enrollment Form'!AV852:AW852,\"No\")=2,'Enrollment Form'!AX852=\"\"),\"N\",\"Y\")))","v":""},{"$f":"IF(OR(B845=\"N\",'Enrollment Form'!B852<>\"Subscriber\",'Enrollment Form'!C852=\"ROC\",'Enrollment Form'!O852<>\"Multiple of Salary\"),\"-\",IF(COUNTA('Enrollment Form'!T852:U852)<2,\"N\",\"Y\"))","v":"-"},{"$f":"IF(B845=\"N\",\"\",IF(OR('Enrollment Form'!C852=\"ROC\",'Enrollment Form'!B852<>\"Subscriber\",'Enrollment Form'!O852=\"Waive\",'Enrollment Form'!O852=\"\"),\"-\",IF('Enrollment Form'!P852=\"\",\"N\",\"Y\")))","v":""},{"$f":"IF($B845=\"N\",\"\",IF(AND('Enrollment Form'!$C852=\"ROC\",'Enrollment Form'!$DR852<>\"\"),\"Y\",IF(AND('Enrollment Form'!$C852=\"ROC\",'Enrollment Form'!$DR852=\"\"),\"N\",IF(AND('Enrollment Form'!$C852=\"Enroll\",'Enrollment Form'!$B852=\"Subscriber\",'Enrollment Form'!$CX852=\"No\",'Enrollment Form'!$DR852=\"\"),\"N\",IF(AND('Enrollment Form'!$C852=\"Enroll\",'Enrollment Form'!$B852=\"Subscriber\",'Enrollment Form'!$CX852=\"Yes\"),\"-\",\"Y\")))))","v":""},{"$f":"IF($B845=\"N\",\"\",IF(AND('Enrollment Form'!$C852=\"ROC\",'Enrollment Form'!$DS852<>\"\"),\"Y\",IF(AND('Enrollment Form'!$C852=\"ROC\",'Enrollment Form'!$DS852=\"\"),\"N\",IF(AND('Enrollment Form'!$C852=\"Enroll\",'Enrollment Form'!$B852=\"Subscriber\",'Enrollment Form'!$CX852=\"No\",'Enrollment Form'!$DS852=\"\"),\"N\",IF(AND('Enrollment Form'!$C852=\"Enroll\",'Enrollment Form'!$B852=\"Subscriber\",'Enrollment Form'!$CX852=\"Yes\"),\"-\",\"Y\")))))","v":""},{"$f":"IF('Enrollment Form'!AH852=\"\",\"\",IF(ISERROR(SEARCH(\".\",'Enrollment Form'!AH852,SEARCH(\"@\",'Enrollment Form'!AH852))),\"N\",\"Y\"))","v":""},{"$f":"IF(OR($B845=\"N\",'Enrollment Form'!$G852=\"\"),\"\",IF('Enrollment Form'!$B852<>\"Subscriber\",\"-\",IF(COUNTIF('Enrollment Form'!$AV852:$AW852,\"Yes\")=2,\"N\",\"Y\")))","v":""},{"$f":"IF(OR('Enrollment Form'!$CJ852=\"\",'Enrollment Form'!$CJ852=\"No\"),\"-\",IF(AND('Enrollment Form'!$CJ852=\"Yes\",'Enrollment Form'!$CK852=\"\"),\"N\",\"Y\"))","v":"-"},{"$f":"IF(OR('Enrollment Form'!$CL852=\"\",'Enrollment Form'!$CL852=\"No\"),\"-\",IF(AND('Enrollment Form'!$CL852=\"Yes\",'Enrollment Form'!$CM852=\"\"),\"N\",\"Y\"))","v":"-"},{"$f":"IF(OR('Enrollment Form'!$CN852=\"\",'Enrollment Form'!$CN852=\"No\"),\"-\",IF(AND('Enrollment Form'!$CN852=\"Yes\",'Enrollment Form'!$CO852=\"\"),\"N\",\"Y\"))","v":"-"},{"$f":"IF(OR('Enrollment Form'!$CN852=\"\",'Enrollment Form'!$CN852=\"No\"),\"-\",IF(AND('Enrollment Form'!$CN852=\"Yes\",'Enrollment Form'!$CP852=\"\"),\"N\",\"Y\"))","v":"-"},{"$f":"IF('Enrollment Form'!B852<>\"Subscriber\",\"-\",IF(AND('Enrollment Form'!B852=\"Subscriber\",'Enrollment Form'!C852=\"Enroll\",'Enrollment Form'!AA852=\"\"),\"N\",\"Y\"))","v":"-"},{"$f":"IF(OR('Enrollment Form'!B852=\"Subscriber\",'Enrollment Form'!B852=\"\"),\"-\",IF('Enrollment Form'!BP852=\"\",\"N\",\"Y\"))","v":"-"},{"$f":"IF('Enrollment Form'!B852<>\"Subscriber\",\"-\",IF(AND('Enrollment Form'!B852=\"Subscriber\",'Enrollment Form'!G852=\"\"),\"N\",\"Y\"))","v":"-"},{"$f":"IF('Enrollment Form'!A852=\"\",\"\",IF('Enrollment Form'!B852=\"Subscriber\",\"-\",IF(AND('Enrollment Form'!B852<>\"Subscriber\",'Enrollment Form'!G852='Enrollment Form'!H852),\"N\",\"Y\")))","v":""},0]
[853,{"$f":"IF('Enrollment Form'!$A853<>\"\",\"Y\",\"N\")","v":"N"},{"$f":"IF(AND('Enrollment Form'!$B853=\"\",'Enrollment Form'!$C853<>\"\"),\"N\",IF($B846=\"N\",\"\",\"Y\"))","v":""},{"$f":"IF(OR($B846=\"N\",'Enrollment Form'!G853=\"\"),\"\",IF('Enrollment Form'!$B853<>\"Subscriber\",\"\",IF('Enrollment Form'!$G853='Enrollment Form'!$H853,\"Y\",\"N\")))","v":""},{"$f":"IF($B846=\"N\",\"\",IF(AND(COUNTIFS('Enrollment Form'!$H$11:$H$1000,'Enrollment Form'!$H853,'Enrollment Form'!$B$11:$B$1000,'Enrollment Form'!$B853)>1,'Enrollment Form'!$H853<>\"\"),\"N\",\"Y\"))","v":""},{"$f":"IF($B846=\"N\",\"\",IF(LEN('Enrollment Form'!$Y853)=0,\"\",IF(LEN('Enrollment Form'!$Y853)<>5,\"N\",\"Y\")))","v":""},{"$f":"IF($B846=\"N\",\"\",IF(LEN('Enrollment Form'!$AD853=0),\"\",IF(LEN('Enrollment Form'!$AD853)<>5,\"N\",\"Y\")))","v":""},{"$f":"IF($B846=\"N\",\"\",IF(LEN('Enrollment Form'!$BS853=0),\"\",IF(LEN('Enrollment Form'!$BS853)<>5,\"N\",\"Y\")))","v":""},{"$f":"IF($B846=\"N\",\"\",IF(LEN('Enrollment Form'!$AE853)=0,\"\",IF(LEN('Enrollment Form'!$AE853)<>10,\"N\",\"Y\")))","v":""},{"$f":"IF($B846=\"N\",\"\",IF(LEN('Enrollment Form'!$AF853)=0,\"\",IF(LEN('Enrollment Form'!$AF853)<>10,\"N\",\"Y\")))","v":""},{"$f":"IF('Enrollment Form'!$O853<>\"Graded\",\"-\",IF(AND('Enrollment Form'!$O853=\"Graded\",'Enrollment Form'!$AR853<>\"\"),\"Y\",\"N\"))","v":"-"},{"$f":"IF($B846=\"N\",\"\",IF(OR('Enrollment Form'!$B853<>\"Subscriber\",'Enrollment Form'!$C853=\"ROC\"),\"-\",IF(AND('Enrollment Form'!$B853=\"Subscriber\",'Enrollment Form'!$C853=\"Enroll\",'Enrollment Form'!$AJ853<>\"\"),\"Y\",\"N\")))","v":""},{"$f":"IF($B846=\"N\",\"\",IF(OR('Enrollment Form'!$B853<>\"Subscriber\",'Enrollment Form'!$C853=\"ROC\"),\"-\",IF(AND('Enrollment Form'!$B853=\"Subscriber\",'Enrollment Form'!$C853=\"Enroll\",'Enrollment Form'!$AK853<>\"\"),\"Y\",\"N\")))","v":""},{"$f":"IF($B846=\"N\",\"\",IF(OR('Enrollment Form'!$B853<>\"Subscriber\",'Enrollment Form'!$C853=\"ROC\"),\"-\",IF(AND('Enrollment Form'!$B853=\"Subscriber\",'Enrollment Form'!$C853=\"Enroll\",'Enrollment Form'!$AL853<>\"\"),\"Y\",\"N\")))","v":""},{"$f":"IF($B846=\"N\",\"\",IF(OR('Enrollment Form'!$B853<>\"Subscriber\",'Enrollment Form'!$C853=\"ROC\"),\"-\",IF(AND('Enrollment Form'!$B853=\"Subscriber\",'Enrollment Form'!$C853=\"Enroll\",'Enrollment Form'!$AP853<>\"\"),\"Y\",\"N\")))","v":""},{"$f":"IF($B846=\"N\",\"\",IF(OR('Enrollment Form'!$B853<>\"Subscriber\",'Enrollment Form'!$C853=\"ROC\"),\"-\",IF(AND('Enrollment Form'!$B853=\"Subscriber\",'Enrollment Form'!$C853=\"Enroll\",'Enrollment Form'!$AQ853<>\"\"),\"Y\",\"N\")))","v":""},{"$f":"IF($B846=\"N\",\"\",IF(OR('Enrollment Form'!$B853<>\"Subscriber\",'Enrollment Form'!$C853=\"ROC\"),\"-\",IF(AND('Enrollment Form'!$B853=\"Subscriber\",'Enrollment Form'!$C853=\"Enroll\",'Enrollment Form'!$AS853<>\"\"),\"Y\",\"N\")))","v":""},{"$f":"IF($B846=\"N\",\"\",IF($Q846=\"-\",\"-\",IF(AND($Q846=\"Y\",'Enrollment Form'!$AS853=\"No\"),\"-\",IF(AND($Q846=\"Y\",'Enrollment Form'!$AS853=\"Yes\",'Enrollment Form'!$AT853<>\"\"),\"Y\",\"N\"))))","v":""},{"$f":"IF($B846=\"N\",\"\",IF(OR('Enrollment Form'!$B853<>\"Subscriber\",'Enrollment Form'!$C853=\"ROC\"),\"-\",IF(AND('Enrollment Form'!$B853=\"Subscriber\",'Enrollment Form'!$C853=\"Enroll\",'Enrollment Form'!$CV853<>\"\"),\"Y\",\"N\")))","v":""},{"$f":"IF($B846=\"N\",\"\",IF($S846=\"-\",\"-\",IF(AND($S846=\"Y\",'Enrollment Form'!$CV853=\"No\"),\"-\",IF(AND($S846=\"Y\",'Enrollment Form'!$CV853=\"Yes\",'Enrollment Form'!$CW853<>\"\"),\"Y\",\"N\"))))","v":""},{"$f":"IF(OR('Enrollment Form'!$AY853=\"Yes\",'Enrollment Form'!$AY853=\"\"),\"-\",IF(OR(AND('Enrollment Form'!$AY853=\"No\",ISERROR(FIND(\"HMO\",VLOOKUP('Enrollment Form'!G853,'Enrollment Form'!H$11:J$1000,3,FALSE),1))=FALSE,COUNTA('Enrollment Form'!$AZ853:$BC853)=4),AND('Enrollment Form'!$AY853=\"No\",ISERROR(FIND(\"HMO\",VLOOKUP('Enrollment Form'!G853,'Enrollment Form'!H$11:J$1000,3,FALSE),1))=FALSE,COUNTA('Enrollment Form'!$BT853:$BW853)=4)),\"Y\",\"N\"))","v":"-"},{"$f":"IF($B846=\"N\",\"\",IF('Enrollment Form'!$B853=\"Subscriber\",\"-\",IF(COUNTA('Enrollment Form'!$BL853,'Enrollment Form'!$BN853)=2,\"Y\",\"N\")))","v":""},{"$f":"IF($B846=\"N\",\"\",IF(OR('Enrollment Form'!$AX853=\"\",'Enrollment Form'!$AX853=\"No\"),\"-\",IF(AND('Enrollment Form'!$AX853=\"Yes\",COUNTA('Enrollment Form'!$CR853)=1),\"Y\",\"N\")))","v":""},{"$f":"IF(OR('Enrollment Form'!$CR853=\"\",'Enrollment Form'!$CR853=\"No\"),\"-\",IF(COUNTA('Enrollment Form'!$CT853:$CU853)=2,\"Y\",\"N\"))","v":"-"},{"$f":"IF($B846=\"N\",\"\",IF(COUNTIF('Enrollment Form'!$DG853:$DP853,\"Other\")=COUNTA('Enrollment Form'!$DK853,'Enrollment Form'!$DH853,'Enrollment Form'!$DN853,'Enrollment Form'!$DQ853),\"Y\",\"N\"))","v":""},{"$f":"IF($B846=\"N\",\"\",IF(OR('Enrollment Form'!B853<>\"Subscriber\",'Enrollment Form'!C853=\"ROC\",COUNTIF('Enrollment Form'!AV853:AW853,\"Yes\")>=1),\"-\",IF(AND('Enrollment Form'!C853=\"Enroll\",COUNTIF('Enrollment Form'!AV853:AW853,\"No\")=2,'Enrollment Form'!AX853=\"\"),\"N\",\"Y\")))","v":""},{"$f":"IF(OR(B846=\"N\",'Enrollment Form'!B853<>\"Subscriber\",'Enrollment Form'!C853=\"ROC\",'Enrollment Form'!O853<>\"Multiple of Salary\"),\"-\",IF(COUNTA('Enrollment Form'!T853:U853)<2,\"N\",\"Y\"))","v":"-"},{"$f":"IF(B846=\"N\",\"\",IF(OR('Enrollment Form'!C853=\"ROC\",'Enrollment Form'!B853<>\"Subscriber\",'Enrollment Form'!O853=\"Waive\",'Enrollment Form'!O853=\"\"),\"-\",IF('Enrollment Form'!P853=\"\",\"N\",\"Y\")))","v":""},{"$f":"IF($B846=\"N\",\"\",IF(AND('Enrollment Form'!$C853=\"ROC\",'Enrollment Form'!$DR853<>\"\"),\"Y\",IF(AND('Enrollment Form'!$C853=\"ROC\",'Enrollment Form'!$DR853=\"\"),\"N\",IF(AND('Enrollment Form'!$C853=\"Enroll\",'Enrollment Form'!$B853=\"Subscriber\",'Enrollment Form'!$CX853=\"No\",'Enrollment Form'!$DR853=\"\"),\"N\",IF(AND('Enrollment Form'!$C853=\"Enroll\",'Enrollment Form'!$B853=\"Subscriber\",'Enrollment Form'!$CX853=\"Yes\"),\"-\",\"Y\")))))","v":""},{"$f":"IF($B846=\"N\",\"\",IF(AND('Enrollment Form'!$C853=\"ROC\",'Enrollment Form'!$DS853<>\"\"),\"Y\",IF(AND('Enrollment Form'!$C853=\"ROC\",'Enrollment Form'!$DS853=\"\"),\"N\",IF(AND('Enrollment Form'!$C853=\"Enroll\",'Enrollment Form'!$B853=\"Subscriber\",'Enrollment Form'!$CX853=\"No\",'Enrollment Form'!$DS853=\"\"),\"N\",IF(AND('Enrollment Form'!$C853=\"Enroll\",'Enrollment Form'!$B853=\"Subscriber\",'Enrollment Form'!$CX853=\"Yes\"),\"-\",\"Y\")))))","v":""},{"$f":"IF('Enrollment Form'!AH853=\"\",\"\",IF(ISERROR(SEARCH(\".\",'Enrollment Form'!AH853,SEARCH(\"@\",'Enrollment Form'!AH853))),\"N\",\"Y\"))","v":""},{"$f":"IF(OR($B846=\"N\",'Enrollment Form'!$G853=\"\"),\"\",IF('Enrollment Form'!$B853<>\"Subscriber\",\"-\",IF(COUNTIF('Enrollment Form'!$AV853:$AW853,\"Yes\")=2,\"N\",\"Y\")))","v":""},{"$f":"IF(OR('Enrollment Form'!$CJ853=\"\",'Enrollment Form'!$CJ853=\"No\"),\"-\",IF(AND('Enrollment Form'!$CJ853=\"Yes\",'Enrollment Form'!$CK853=\"\"),\"N\",\"Y\"))","v":"-"},{"$f":"IF(OR('Enrollment Form'!$CL853=\"\",'Enrollment Form'!$CL853=\"No\"),\"-\",IF(AND('Enrollment Form'!$CL853=\"Yes\",'Enrollment Form'!$CM853=\"\"),\"N\",\"Y\"))","v":"-"},{"$f":"IF(OR('Enrollment Form'!$CN853=\"\",'Enrollment Form'!$CN853=\"No\"),\"-\",IF(AND('Enrollment Form'!$CN853=\"Yes\",'Enrollment Form'!$CO853=\"\"),\"N\",\"Y\"))","v":"-"},{"$f":"IF(OR('Enrollment Form'!$CN853=\"\",'Enrollment Form'!$CN853=\"No\"),\"-\",IF(AND('Enrollment Form'!$CN853=\"Yes\",'Enrollment Form'!$CP853=\"\"),\"N\",\"Y\"))","v":"-"},{"$f":"IF('Enrollment Form'!B853<>\"Subscriber\",\"-\",IF(AND('Enrollment Form'!B853=\"Subscriber\",'Enrollment Form'!C853=\"Enroll\",'Enrollment Form'!AA853=\"\"),\"N\",\"Y\"))","v":"-"},{"$f":"IF(OR('Enrollment Form'!B853=\"Subscriber\",'Enrollment Form'!B853=\"\"),\"-\",IF('Enrollment Form'!BP853=\"\",\"N\",\"Y\"))","v":"-"},{"$f":"IF('Enrollment Form'!B853<>\"Subscriber\",\"-\",IF(AND('Enrollment Form'!B853=\"Subscriber\",'Enrollment Form'!G853=\"\"),\"N\",\"Y\"))","v":"-"},{"$f":"IF('Enrollment Form'!A853=\"\",\"\",IF('Enrollment Form'!B853=\"Subscriber\",\"-\",IF(AND('Enrollment Form'!B853<>\"Subscriber\",'Enrollment Form'!G853='Enrollment Form'!H853),\"N\",\"Y\")))","v":""},0]
[854,{"$f":"IF('Enrollment Form'!$A854<>\"\",\"Y\",\"N\")","v":"N"},{"$f":"IF(AND('Enrollment Form'!$B854=\"\",'Enrollment Form'!$C854<>\"\"),\"N\",IF($B847=\"N\",\"\",\"Y\"))","v":""},{"$f":"IF(OR($B847=\"N\",'Enrollment Form'!G854=\"\"),\"\",IF('Enrollment Form'!$B854<>\"Subscriber\",\"\",IF('Enrollment Form'!$G854='Enrollment Form'!$H854,\"Y\",\"N\")))","v":""},{"$f":"IF($B847=\"N\",\"\",IF(AND(COUNTIFS('Enrollment Form'!$H$11:$H$1000,'Enrollment Form'!$H854,'Enrollment Form'!$B$11:$B$1000,'Enrollment Form'!$B854)>1,'Enrollment Form'!$H854<>\"\"),\"N\",\"Y\"))","v":""},{"$f":"IF($B847=\"N\",\"\",IF(LEN('Enrollment Form'!$Y854)=0,\"\",IF(LEN('Enrollment Form'!$Y854)<>5,\"N\",\"Y\")))","v":""},{"$f":"IF($B847=\"N\",\"\",IF(LEN('Enrollment Form'!$AD854=0),\"\",IF(LEN('Enrollment Form'!$AD854)<>5,\"N\",\"Y\")))","v":""},{"$f":"IF($B847=\"N\",\"\",IF(LEN('Enrollment Form'!$BS854=0),\"\",IF(LEN('Enrollment Form'!$BS854)<>5,\"N\",\"Y\")))","v":""},{"$f":"IF($B847=\"N\",\"\",IF(LEN('Enrollment Form'!$AE854)=0,\"\",IF(LEN('Enrollment Form'!$AE854)<>10,\"N\",\"Y\")))","v":""},{"$f":"IF($B847=\"N\",\"\",IF(LEN('Enrollment Form'!$AF854)=0,\"\",IF(LEN('Enrollment Form'!$AF854)<>10,\"N\",\"Y\")))","v":""},{"$f":"IF('Enrollment Form'!$O854<>\"Graded\",\"-\",IF(AND('Enrollment Form'!$O854=\"Graded\",'Enrollment Form'!$AR854<>\"\"),\"Y\",\"N\"))","v":"-"},{"$f":"IF($B847=\"N\",\"\",IF(OR('Enrollment Form'!$B854<>\"Subscriber\",'Enrollment Form'!$C854=\"ROC\"),\"-\",IF(AND('Enrollment Form'!$B854=\"Subscriber\",'Enrollment Form'!$C854=\"Enroll\",'Enrollment Form'!$AJ854<>\"\"),\"Y\",\"N\")))","v":""},{"$f":"IF($B847=\"N\",\"\",IF(OR('Enrollment Form'!$B854<>\"Subscriber\",'Enrollment Form'!$C854=\"ROC\"),\"-\",IF(AND('Enrollment Form'!$B854=\"Subscriber\",'Enrollment Form'!$C854=\"Enroll\",'Enrollment Form'!$AK854<>\"\"),\"Y\",\"N\")))","v":""},{"$f":"IF($B847=\"N\",\"\",IF(OR('Enrollment Form'!$B854<>\"Subscriber\",'Enrollment Form'!$C854=\"ROC\"),\"-\",IF(AND('Enrollment Form'!$B854=\"Subscriber\",'Enrollment Form'!$C854=\"Enroll\",'Enrollment Form'!$AL854<>\"\"),\"Y\",\"N\")))","v":""},{"$f":"IF($B847=\"N\",\"\",IF(OR('Enrollment Form'!$B854<>\"Subscriber\",'Enrollment Form'!$C854=\"ROC\"),\"-\",IF(AND('Enrollment Form'!$B854=\"Subscriber\",'Enrollment Form'!$C854=\"Enroll\",'Enrollment Form'!$AP854<>\"\"),\"Y\",\"N\")))","v":""},{"$f":"IF($B847=\"N\",\"\",IF(OR('Enrollment Form'!$B854<>\"Subscriber\",'Enrollment Form'!$C854=\"ROC\"),\"-\",IF(AND('Enrollment Form'!$B854=\"Subscriber\",'Enrollment Form'!$C854=\"Enroll\",'Enrollment Form'!$AQ854<>\"\"),\"Y\",\"N\")))","v":""},{"$f":"IF($B847=\"N\",\"\",IF(OR('Enrollment Form'!$B854<>\"Subscriber\",'Enrollment Form'!$C854=\"ROC\"),\"-\",IF(AND('Enrollment Form'!$B854=\"Subscriber\",'Enrollment Form'!$C854=\"Enroll\",'Enrollment Form'!$AS854<>\"\"),\"Y\",\"N\")))","v":""},{"$f":"IF($B847=\"N\",\"\",IF($Q847=\"-\",\"-\",IF(AND($Q847=\"Y\",'Enrollment Form'!$AS854=\"No\"),\"-\",IF(AND($Q847=\"Y\",'Enrollment Form'!$AS854=\"Yes\",'Enrollment Form'!$AT854<>\"\"),\"Y\",\"N\"))))","v":""},{"$f":"IF($B847=\"N\",\"\",IF(OR('Enrollment Form'!$B854<>\"Subscriber\",'Enrollment Form'!$C854=\"ROC\"),\"-\",IF(AND('Enrollment Form'!$B854=\"Subscriber\",'Enrollment Form'!$C854=\"Enroll\",'Enrollment Form'!$CV854<>\"\"),\"Y\",\"N\")))","v":""},{"$f":"IF($B847=\"N\",\"\",IF($S847=\"-\",\"-\",IF(AND($S847=\"Y\",'Enrollment Form'!$CV854=\"No\"),\"-\",IF(AND($S847=\"Y\",'Enrollment Form'!$CV854=\"Yes\",'Enrollment Form'!$CW854<>\"\"),\"Y\",\"N\"))))","v":""},{"$f":"IF(OR('Enrollment Form'!$AY854=\"Yes\",'Enrollment Form'!$AY854=\"\"),\"-\",IF(OR(AND('Enrollment Form'!$AY854=\"No\",ISERROR(FIND(\"HMO\",VLOOKUP('Enrollment Form'!G854,'Enrollment Form'!H$11:J$1000,3,FALSE),1))=FALSE,COUNTA('Enrollment Form'!$AZ854:$BC854)=4),AND('Enrollment Form'!$AY854=\"No\",ISERROR(FIND(\"HMO\",VLOOKUP('Enrollment Form'!G854,'Enrollment Form'!H$11:J$1000,3,FALSE),1))=FALSE,COUNTA('Enrollment Form'!$BT854:$BW854)=4)),\"Y\",\"N\"))","v":"-"},{"$f":"IF($B847=\"N\",\"\",IF('Enrollment Form'!$B854=\"Subscriber\",\"-\",IF(COUNTA('Enrollment Form'!$BL854,'Enrollment Form'!$BN854)=2,\"Y\",\"N\")))","v":""},{"$f":"IF($B847=\"N\",\"\",IF(OR('Enrollment Form'!$AX854=\"\",'Enrollment Form'!$AX854=\"No\"),\"-\",IF(AND('Enrollment Form'!$AX854=\"Yes\",COUNTA('Enrollment Form'!$CR854)=1),\"Y\",\"N\")))","v":""},{"$f":"IF(OR('Enrollment Form'!$CR854=\"\",'Enrollment Form'!$CR854=\"No\"),\"-\",IF(COUNTA('Enrollment Form'!$CT854:$CU854)=2,\"Y\",\"N\"))","v":"-"},{"$f":"IF($B847=\"N\",\"\",IF(COUNTIF('Enrollment Form'!$DG854:$DP854,\"Other\")=COUNTA('Enrollment Form'!$DK854,'Enrollment Form'!$DH854,'Enrollment Form'!$DN854,'Enrollment Form'!$DQ854),\"Y\",\"N\"))","v":""},{"$f":"IF($B847=\"N\",\"\",IF(OR('Enrollment Form'!B854<>\"Subscriber\",'Enrollment Form'!C854=\"ROC\",COUNTIF('Enrollment Form'!AV854:AW854,\"Yes\")>=1),\"-\",IF(AND('Enrollment Form'!C854=\"Enroll\",COUNTIF('Enrollment Form'!AV854:AW854,\"No\")=2,'Enrollment Form'!AX854=\"\"),\"N\",\"Y\")))","v":""},{"$f":"IF(OR(B847=\"N\",'Enrollment Form'!B854<>\"Subscriber\",'Enrollment Form'!C854=\"ROC\",'Enrollment Form'!O854<>\"Multiple of Salary\"),\"-\",IF(COUNTA('Enrollment Form'!T854:U854)<2,\"N\",\"Y\"))","v":"-"},{"$f":"IF(B847=\"N\",\"\",IF(OR('Enrollment Form'!C854=\"ROC\",'Enrollment Form'!B854<>\"Subscriber\",'Enrollment Form'!O854=\"Waive\",'Enrollment Form'!O854=\"\"),\"-\",IF('Enrollment Form'!P854=\"\",\"N\",\"Y\")))","v":""},{"$f":"IF($B847=\"N\",\"\",IF(AND('Enrollment Form'!$C854=\"ROC\",'Enrollment Form'!$DR854<>\"\"),\"Y\",IF(AND('Enrollment Form'!$C854=\"ROC\",'Enrollment Form'!$DR854=\"\"),\"N\",IF(AND('Enrollment Form'!$C854=\"Enroll\",'Enrollment Form'!$B854=\"Subscriber\",'Enrollment Form'!$CX854=\"No\",'Enrollment Form'!$DR854=\"\"),\"N\",IF(AND('Enrollment Form'!$C854=\"Enroll\",'Enrollment Form'!$B854=\"Subscriber\",'Enrollment Form'!$CX854=\"Yes\"),\"-\",\"Y\")))))","v":""},{"$f":"IF($B847=\"N\",\"\",IF(AND('Enrollment Form'!$C854=\"ROC\",'Enrollment Form'!$DS854<>\"\"),\"Y\",IF(AND('Enrollment Form'!$C854=\"ROC\",'Enrollment Form'!$DS854=\"\"),\"N\",IF(AND('Enrollment Form'!$C854=\"Enroll\",'Enrollment Form'!$B854=\"Subscriber\",'Enrollment Form'!$CX854=\"No\",'Enrollment Form'!$DS854=\"\"),\"N\",IF(AND('Enrollment Form'!$C854=\"Enroll\",'Enrollment Form'!$B854=\"Subscriber\",'Enrollment Form'!$CX854=\"Yes\"),\"-\",\"Y\")))))","v":""},{"$f":"IF('Enrollment Form'!AH854=\"\",\"\",IF(ISERROR(SEARCH(\".\",'Enrollment Form'!AH854,SEARCH(\"@\",'Enrollment Form'!AH854))),\"N\",\"Y\"))","v":""},{"$f":"IF(OR($B847=\"N\",'Enrollment Form'!$G854=\"\"),\"\",IF('Enrollment Form'!$B854<>\"Subscriber\",\"-\",IF(COUNTIF('Enrollment Form'!$AV854:$AW854,\"Yes\")=2,\"N\",\"Y\")))","v":""},{"$f":"IF(OR('Enrollment Form'!$CJ854=\"\",'Enrollment Form'!$CJ854=\"No\"),\"-\",IF(AND('Enrollment Form'!$CJ854=\"Yes\",'Enrollment Form'!$CK854=\"\"),\"N\",\"Y\"))","v":"-"},{"$f":"IF(OR('Enrollment Form'!$CL854=\"\",'Enrollment Form'!$CL854=\"No\"),\"-\",IF(AND('Enrollment Form'!$CL854=\"Yes\",'Enrollment Form'!$CM854=\"\"),\"N\",\"Y\"))","v":"-"},{"$f":"IF(OR('Enrollment Form'!$CN854=\"\",'Enrollment Form'!$CN854=\"No\"),\"-\",IF(AND('Enrollment Form'!$CN854=\"Yes\",'Enrollment Form'!$CO854=\"\"),\"N\",\"Y\"))","v":"-"},{"$f":"IF(OR('Enrollment Form'!$CN854=\"\",'Enrollment Form'!$CN854=\"No\"),\"-\",IF(AND('Enrollment Form'!$CN854=\"Yes\",'Enrollment Form'!$CP854=\"\"),\"N\",\"Y\"))","v":"-"},{"$f":"IF('Enrollment Form'!B854<>\"Subscriber\",\"-\",IF(AND('Enrollment Form'!B854=\"Subscriber\",'Enrollment Form'!C854=\"Enroll\",'Enrollment Form'!AA854=\"\"),\"N\",\"Y\"))","v":"-"},{"$f":"IF(OR('Enrollment Form'!B854=\"Subscriber\",'Enrollment Form'!B854=\"\"),\"-\",IF('Enrollment Form'!BP854=\"\",\"N\",\"Y\"))","v":"-"},{"$f":"IF('Enrollment Form'!B854<>\"Subscriber\",\"-\",IF(AND('Enrollment Form'!B854=\"Subscriber\",'Enrollment Form'!G854=\"\"),\"N\",\"Y\"))","v":"-"},{"$f":"IF('Enrollment Form'!A854=\"\",\"\",IF('Enrollment Form'!B854=\"Subscriber\",\"-\",IF(AND('Enrollment Form'!B854<>\"Subscriber\",'Enrollment Form'!G854='Enrollment Form'!H854),\"N\",\"Y\")))","v":""},0]
[855,{"$f":"IF('Enrollment Form'!$A855<>\"\",\"Y\",\"N\")","v":"N"},{"$f":"IF(AND('Enrollment Form'!$B855=\"\",'Enrollment Form'!$C855<>\"\"),\"N\",IF($B848=\"N\",\"\",\"Y\"))","v":""},{"$f":"IF(OR($B848=\"N\",'Enrollment Form'!G855=\"\"),\"\",IF('Enrollment Form'!$B855<>\"Subscriber\",\"\",IF('Enrollment Form'!$G855='Enrollment Form'!$H855,\"Y\",\"N\")))","v":""},{"$f":"IF($B848=\"N\",\"\",IF(AND(COUNTIFS('Enrollment Form'!$H$11:$H$1000,'Enrollment Form'!$H855,'Enrollment Form'!$B$11:$B$1000,'Enrollment Form'!$B855)>1,'Enrollment Form'!$H855<>\"\"),\"N\",\"Y\"))","v":""},{"$f":"IF($B848=\"N\",\"\",IF(LEN('Enrollment Form'!$Y855)=0,\"\",IF(LEN('Enrollment Form'!$Y855)<>5,\"N\",\"Y\")))","v":""},{"$f":"IF($B848=\"N\",\"\",IF(LEN('Enrollment Form'!$AD855=0),\"\",IF(LEN('Enrollment Form'!$AD855)<>5,\"N\",\"Y\")))","v":""},{"$f":"IF($B848=\"N\",\"\",IF(LEN('Enrollment Form'!$BS855=0),\"\",IF(LEN('Enrollment Form'!$BS855)<>5,\"N\",\"Y\")))","v":""},{"$f":"IF($B848=\"N\",\"\",IF(LEN('Enrollment Form'!$AE855)=0,\"\",IF(LEN('Enrollment Form'!$AE855)<>10,\"N\",\"Y\")))","v":""},{"$f":"IF($B848=\"N\",\"\",IF(LEN('Enrollment Form'!$AF855)=0,\"\",IF(LEN('Enrollment Form'!$AF855)<>10,\"N\",\"Y\")))","v":""},{"$f":"IF('Enrollment Form'!$O855<>\"Graded\",\"-\",IF(AND('Enrollment Form'!$O855=\"Graded\",'Enrollment Form'!$AR855<>\"\"),\"Y\",\"N\"))","v":"-"},{"$f":"IF($B848=\"N\",\"\",IF(OR('Enrollment Form'!$B855<>\"Subscriber\",'Enrollment Form'!$C855=\"ROC\"),\"-\",IF(AND('Enrollment Form'!$B855=\"Subscriber\",'Enrollment Form'!$C855=\"Enroll\",'Enrollment Form'!$AJ855<>\"\"),\"Y\",\"N\")))","v":""},{"$f":"IF($B848=\"N\",\"\",IF(OR('Enrollment Form'!$B855<>\"Subscriber\",'Enrollment Form'!$C855=\"ROC\"),\"-\",IF(AND('Enrollment Form'!$B855=\"Subscriber\",'Enrollment Form'!$C855=\"Enroll\",'Enrollment Form'!$AK855<>\"\"),\"Y\",\"N\")))","v":""},{"$f":"IF($B848=\"N\",\"\",IF(OR('Enrollment Form'!$B855<>\"Subscriber\",'Enrollment Form'!$C855=\"ROC\"),\"-\",IF(AND('Enrollment Form'!$B855=\"Subscriber\",'Enrollment Form'!$C855=\"Enroll\",'Enrollment Form'!$AL855<>\"\"),\"Y\",\"N\")))","v":""},{"$f":"IF($B848=\"N\",\"\",IF(OR('Enrollment Form'!$B855<>\"Subscriber\",'Enrollment Form'!$C855=\"ROC\"),\"-\",IF(AND('Enrollment Form'!$B855=\"Subscriber\",'Enrollment Form'!$C855=\"Enroll\",'Enrollment Form'!$AP855<>\"\"),\"Y\",\"N\")))","v":""},{"$f":"IF($B848=\"N\",\"\",IF(OR('Enrollment Form'!$B855<>\"Subscriber\",'Enrollment Form'!$C855=\"ROC\"),\"-\",IF(AND('Enrollment Form'!$B855=\"Subscriber\",'Enrollment Form'!$C855=\"Enroll\",'Enrollment Form'!$AQ855<>\"\"),\"Y\",\"N\")))","v":""},{"$f":"IF($B848=\"N\",\"\",IF(OR('Enrollment Form'!$B855<>\"Subscriber\",'Enrollment Form'!$C855=\"ROC\"),\"-\",IF(AND('Enrollment Form'!$B855=\"Subscriber\",'Enrollment Form'!$C855=\"Enroll\",'Enrollment Form'!$AS855<>\"\"),\"Y\",\"N\")))","v":""},{"$f":"IF($B848=\"N\",\"\",IF($Q848=\"-\",\"-\",IF(AND($Q848=\"Y\",'Enrollment Form'!$AS855=\"No\"),\"-\",IF(AND($Q848=\"Y\",'Enrollment Form'!$AS855=\"Yes\",'Enrollment Form'!$AT855<>\"\"),\"Y\",\"N\"))))","v":""},{"$f":"IF($B848=\"N\",\"\",IF(OR('Enrollment Form'!$B855<>\"Subscriber\",'Enrollment Form'!$C855=\"ROC\"),\"-\",IF(AND('Enrollment Form'!$B855=\"Subscriber\",'Enrollment Form'!$C855=\"Enroll\",'Enrollment Form'!$CV855<>\"\"),\"Y\",\"N\")))","v":""},{"$f":"IF($B848=\"N\",\"\",IF($S848=\"-\",\"-\",IF(AND($S848=\"Y\",'Enrollment Form'!$CV855=\"No\"),\"-\",IF(AND($S848=\"Y\",'Enrollment Form'!$CV855=\"Yes\",'Enrollment Form'!$CW855<>\"\"),\"Y\",\"N\"))))","v":""},{"$f":"IF(OR('Enrollment Form'!$AY855=\"Yes\",'Enrollment Form'!$AY855=\"\"),\"-\",IF(OR(AND('Enrollment Form'!$AY855=\"No\",ISERROR(FIND(\"HMO\",VLOOKUP('Enrollment Form'!G855,'Enrollment Form'!H$11:J$1000,3,FALSE),1))=FALSE,COUNTA('Enrollment Form'!$AZ855:$BC855)=4),AND('Enrollment Form'!$AY855=\"No\",ISERROR(FIND(\"HMO\",VLOOKUP('Enrollment Form'!G855,'Enrollment Form'!H$11:J$1000,3,FALSE),1))=FALSE,COUNTA('Enrollment Form'!$BT855:$BW855)=4)),\"Y\",\"N\"))","v":"-"},{"$f":"IF($B848=\"N\",\"\",IF('Enrollment Form'!$B855=\"Subscriber\",\"-\",IF(COUNTA('Enrollment Form'!$BL855,'Enrollment Form'!$BN855)=2,\"Y\",\"N\")))","v":""},{"$f":"IF($B848=\"N\",\"\",IF(OR('Enrollment Form'!$AX855=\"\",'Enrollment Form'!$AX855=\"No\"),\"-\",IF(AND('Enrollment Form'!$AX855=\"Yes\",COUNTA('Enrollment Form'!$CR855)=1),\"Y\",\"N\")))","v":""},{"$f":"IF(OR('Enrollment Form'!$CR855=\"\",'Enrollment Form'!$CR855=\"No\"),\"-\",IF(COUNTA('Enrollment Form'!$CT855:$CU855)=2,\"Y\",\"N\"))","v":"-"},{"$f":"IF($B848=\"N\",\"\",IF(COUNTIF('Enrollment Form'!$DG855:$DP855,\"Other\")=COUNTA('Enrollment Form'!$DK855,'Enrollment Form'!$DH855,'Enrollment Form'!$DN855,'Enrollment Form'!$DQ855),\"Y\",\"N\"))","v":""},{"$f":"IF($B848=\"N\",\"\",IF(OR('Enrollment Form'!B855<>\"Subscriber\",'Enrollment Form'!C855=\"ROC\",COUNTIF('Enrollment Form'!AV855:AW855,\"Yes\")>=1),\"-\",IF(AND('Enrollment Form'!C855=\"Enroll\",COUNTIF('Enrollment Form'!AV855:AW855,\"No\")=2,'Enrollment Form'!AX855=\"\"),\"N\",\"Y\")))","v":""},{"$f":"IF(OR(B848=\"N\",'Enrollment Form'!B855<>\"Subscriber\",'Enrollment Form'!C855=\"ROC\",'Enrollment Form'!O855<>\"Multiple of Salary\"),\"-\",IF(COUNTA('Enrollment Form'!T855:U855)<2,\"N\",\"Y\"))","v":"-"},{"$f":"IF(B848=\"N\",\"\",IF(OR('Enrollment Form'!C855=\"ROC\",'Enrollment Form'!B855<>\"Subscriber\",'Enrollment Form'!O855=\"Waive\",'Enrollment Form'!O855=\"\"),\"-\",IF('Enrollment Form'!P855=\"\",\"N\",\"Y\")))","v":""},{"$f":"IF($B848=\"N\",\"\",IF(AND('Enrollment Form'!$C855=\"ROC\",'Enrollment Form'!$DR855<>\"\"),\"Y\",IF(AND('Enrollment Form'!$C855=\"ROC\",'Enrollment Form'!$DR855=\"\"),\"N\",IF(AND('Enrollment Form'!$C855=\"Enroll\",'Enrollment Form'!$B855=\"Subscriber\",'Enrollment Form'!$CX855=\"No\",'Enrollment Form'!$DR855=\"\"),\"N\",IF(AND('Enrollment Form'!$C855=\"Enroll\",'Enrollment Form'!$B855=\"Subscriber\",'Enrollment Form'!$CX855=\"Yes\"),\"-\",\"Y\")))))","v":""},{"$f":"IF($B848=\"N\",\"\",IF(AND('Enrollment Form'!$C855=\"ROC\",'Enrollment Form'!$DS855<>\"\"),\"Y\",IF(AND('Enrollment Form'!$C855=\"ROC\",'Enrollment Form'!$DS855=\"\"),\"N\",IF(AND('Enrollment Form'!$C855=\"Enroll\",'Enrollment Form'!$B855=\"Subscriber\",'Enrollment Form'!$CX855=\"No\",'Enrollment Form'!$DS855=\"\"),\"N\",IF(AND('Enrollment Form'!$C855=\"Enroll\",'Enrollment Form'!$B855=\"Subscriber\",'Enrollment Form'!$CX855=\"Yes\"),\"-\",\"Y\")))))","v":""},{"$f":"IF('Enrollment Form'!AH855=\"\",\"\",IF(ISERROR(SEARCH(\".\",'Enrollment Form'!AH855,SEARCH(\"@\",'Enrollment Form'!AH855))),\"N\",\"Y\"))","v":""},{"$f":"IF(OR($B848=\"N\",'Enrollment Form'!$G855=\"\"),\"\",IF('Enrollment Form'!$B855<>\"Subscriber\",\"-\",IF(COUNTIF('Enrollment Form'!$AV855:$AW855,\"Yes\")=2,\"N\",\"Y\")))","v":""},{"$f":"IF(OR('Enrollment Form'!$CJ855=\"\",'Enrollment Form'!$CJ855=\"No\"),\"-\",IF(AND('Enrollment Form'!$CJ855=\"Yes\",'Enrollment Form'!$CK855=\"\"),\"N\",\"Y\"))","v":"-"},{"$f":"IF(OR('Enrollment Form'!$CL855=\"\",'Enrollment Form'!$CL855=\"No\"),\"-\",IF(AND('Enrollment Form'!$CL855=\"Yes\",'Enrollment Form'!$CM855=\"\"),\"N\",\"Y\"))","v":"-"},{"$f":"IF(OR('Enrollment Form'!$CN855=\"\",'Enrollment Form'!$CN855=\"No\"),\"-\",IF(AND('Enrollment Form'!$CN855=\"Yes\",'Enrollment Form'!$CO855=\"\"),\"N\",\"Y\"))","v":"-"},{"$f":"IF(OR('Enrollment Form'!$CN855=\"\",'Enrollment Form'!$CN855=\"No\"),\"-\",IF(AND('Enrollment Form'!$CN855=\"Yes\",'Enrollment Form'!$CP855=\"\"),\"N\",\"Y\"))","v":"-"},{"$f":"IF('Enrollment Form'!B855<>\"Subscriber\",\"-\",IF(AND('Enrollment Form'!B855=\"Subscriber\",'Enrollment Form'!C855=\"Enroll\",'Enrollment Form'!AA855=\"\"),\"N\",\"Y\"))","v":"-"},{"$f":"IF(OR('Enrollment Form'!B855=\"Subscriber\",'Enrollment Form'!B855=\"\"),\"-\",IF('Enrollment Form'!BP855=\"\",\"N\",\"Y\"))","v":"-"},{"$f":"IF('Enrollment Form'!B855<>\"Subscriber\",\"-\",IF(AND('Enrollment Form'!B855=\"Subscriber\",'Enrollment Form'!G855=\"\"),\"N\",\"Y\"))","v":"-"},{"$f":"IF('Enrollment Form'!A855=\"\",\"\",IF('Enrollment Form'!B855=\"Subscriber\",\"-\",IF(AND('Enrollment Form'!B855<>\"Subscriber\",'Enrollment Form'!G855='Enrollment Form'!H855),\"N\",\"Y\")))","v":""},0]
[856,{"$f":"IF('Enrollment Form'!$A856<>\"\",\"Y\",\"N\")","v":"N"},{"$f":"IF(AND('Enrollment Form'!$B856=\"\",'Enrollment Form'!$C856<>\"\"),\"N\",IF($B849=\"N\",\"\",\"Y\"))","v":""},{"$f":"IF(OR($B849=\"N\",'Enrollment Form'!G856=\"\"),\"\",IF('Enrollment Form'!$B856<>\"Subscriber\",\"\",IF('Enrollment Form'!$G856='Enrollment Form'!$H856,\"Y\",\"N\")))","v":""},{"$f":"IF($B849=\"N\",\"\",IF(AND(COUNTIFS('Enrollment Form'!$H$11:$H$1000,'Enrollment Form'!$H856,'Enrollment Form'!$B$11:$B$1000,'Enrollment Form'!$B856)>1,'Enrollment Form'!$H856<>\"\"),\"N\",\"Y\"))","v":""},{"$f":"IF($B849=\"N\",\"\",IF(LEN('Enrollment Form'!$Y856)=0,\"\",IF(LEN('Enrollment Form'!$Y856)<>5,\"N\",\"Y\")))","v":""},{"$f":"IF($B849=\"N\",\"\",IF(LEN('Enrollment Form'!$AD856=0),\"\",IF(LEN('Enrollment Form'!$AD856)<>5,\"N\",\"Y\")))","v":""},{"$f":"IF($B849=\"N\",\"\",IF(LEN('Enrollment Form'!$BS856=0),\"\",IF(LEN('Enrollment Form'!$BS856)<>5,\"N\",\"Y\")))","v":""},{"$f":"IF($B849=\"N\",\"\",IF(LEN('Enrollment Form'!$AE856)=0,\"\",IF(LEN('Enrollment Form'!$AE856)<>10,\"N\",\"Y\")))","v":""},{"$f":"IF($B849=\"N\",\"\",IF(LEN('Enrollment Form'!$AF856)=0,\"\",IF(LEN('Enrollment Form'!$AF856)<>10,\"N\",\"Y\")))","v":""},{"$f":"IF('Enrollment Form'!$O856<>\"Graded\",\"-\",IF(AND('Enrollment Form'!$O856=\"Graded\",'Enrollment Form'!$AR856<>\"\"),\"Y\",\"N\"))","v":"-"},{"$f":"IF($B849=\"N\",\"\",IF(OR('Enrollment Form'!$B856<>\"Subscriber\",'Enrollment Form'!$C856=\"ROC\"),\"-\",IF(AND('Enrollment Form'!$B856=\"Subscriber\",'Enrollment Form'!$C856=\"Enroll\",'Enrollment Form'!$AJ856<>\"\"),\"Y\",\"N\")))","v":""},{"$f":"IF($B849=\"N\",\"\",IF(OR('Enrollment Form'!$B856<>\"Subscriber\",'Enrollment Form'!$C856=\"ROC\"),\"-\",IF(AND('Enrollment Form'!$B856=\"Subscriber\",'Enrollment Form'!$C856=\"Enroll\",'Enrollment Form'!$AK856<>\"\"),\"Y\",\"N\")))","v":""},{"$f":"IF($B849=\"N\",\"\",IF(OR('Enrollment Form'!$B856<>\"Subscriber\",'Enrollment Form'!$C856=\"ROC\"),\"-\",IF(AND('Enrollment Form'!$B856=\"Subscriber\",'Enrollment Form'!$C856=\"Enroll\",'Enrollment Form'!$AL856<>\"\"),\"Y\",\"N\")))","v":""},{"$f":"IF($B849=\"N\",\"\",IF(OR('Enrollment Form'!$B856<>\"Subscriber\",'Enrollment Form'!$C856=\"ROC\"),\"-\",IF(AND('Enrollment Form'!$B856=\"Subscriber\",'Enrollment Form'!$C856=\"Enroll\",'Enrollment Form'!$AP856<>\"\"),\"Y\",\"N\")))","v":""},{"$f":"IF($B849=\"N\",\"\",IF(OR('Enrollment Form'!$B856<>\"Subscriber\",'Enrollment Form'!$C856=\"ROC\"),\"-\",IF(AND('Enrollment Form'!$B856=\"Subscriber\",'Enrollment Form'!$C856=\"Enroll\",'Enrollment Form'!$AQ856<>\"\"),\"Y\",\"N\")))","v":""},{"$f":"IF($B849=\"N\",\"\",IF(OR('Enrollment Form'!$B856<>\"Subscriber\",'Enrollment Form'!$C856=\"ROC\"),\"-\",IF(AND('Enrollment Form'!$B856=\"Subscriber\",'Enrollment Form'!$C856=\"Enroll\",'Enrollment Form'!$AS856<>\"\"),\"Y\",\"N\")))","v":""},{"$f":"IF($B849=\"N\",\"\",IF($Q849=\"-\",\"-\",IF(AND($Q849=\"Y\",'Enrollment Form'!$AS856=\"No\"),\"-\",IF(AND($Q849=\"Y\",'Enrollment Form'!$AS856=\"Yes\",'Enrollment Form'!$AT856<>\"\"),\"Y\",\"N\"))))","v":""},{"$f":"IF($B849=\"N\",\"\",IF(OR('Enrollment Form'!$B856<>\"Subscriber\",'Enrollment Form'!$C856=\"ROC\"),\"-\",IF(AND('Enrollment Form'!$B856=\"Subscriber\",'Enrollment Form'!$C856=\"Enroll\",'Enrollment Form'!$CV856<>\"\"),\"Y\",\"N\")))","v":""},{"$f":"IF($B849=\"N\",\"\",IF($S849=\"-\",\"-\",IF(AND($S849=\"Y\",'Enrollment Form'!$CV856=\"No\"),\"-\",IF(AND($S849=\"Y\",'Enrollment Form'!$CV856=\"Yes\",'Enrollment Form'!$CW856<>\"\"),\"Y\",\"N\"))))","v":""},{"$f":"IF(OR('Enrollment Form'!$AY856=\"Yes\",'Enrollment Form'!$AY856=\"\"),\"-\",IF(OR(AND('Enrollment Form'!$AY856=\"No\",ISERROR(FIND(\"HMO\",VLOOKUP('Enrollment Form'!G856,'Enrollment Form'!H$11:J$1000,3,FALSE),1))=FALSE,COUNTA('Enrollment Form'!$AZ856:$BC856)=4),AND('Enrollment Form'!$AY856=\"No\",ISERROR(FIND(\"HMO\",VLOOKUP('Enrollment Form'!G856,'Enrollment Form'!H$11:J$1000,3,FALSE),1))=FALSE,COUNTA('Enrollment Form'!$BT856:$BW856)=4)),\"Y\",\"N\"))","v":"-"},{"$f":"IF($B849=\"N\",\"\",IF('Enrollment Form'!$B856=\"Subscriber\",\"-\",IF(COUNTA('Enrollment Form'!$BL856,'Enrollment Form'!$BN856)=2,\"Y\",\"N\")))","v":""},{"$f":"IF($B849=\"N\",\"\",IF(OR('Enrollment Form'!$AX856=\"\",'Enrollment Form'!$AX856=\"No\"),\"-\",IF(AND('Enrollment Form'!$AX856=\"Yes\",COUNTA('Enrollment Form'!$CR856)=1),\"Y\",\"N\")))","v":""},{"$f":"IF(OR('Enrollment Form'!$CR856=\"\",'Enrollment Form'!$CR856=\"No\"),\"-\",IF(COUNTA('Enrollment Form'!$CT856:$CU856)=2,\"Y\",\"N\"))","v":"-"},{"$f":"IF($B849=\"N\",\"\",IF(COUNTIF('Enrollment Form'!$DG856:$DP856,\"Other\")=COUNTA('Enrollment Form'!$DK856,'Enrollment Form'!$DH856,'Enrollment Form'!$DN856,'Enrollment Form'!$DQ856),\"Y\",\"N\"))","v":""},{"$f":"IF($B849=\"N\",\"\",IF(OR('Enrollment Form'!B856<>\"Subscriber\",'Enrollment Form'!C856=\"ROC\",COUNTIF('Enrollment Form'!AV856:AW856,\"Yes\")>=1),\"-\",IF(AND('Enrollment Form'!C856=\"Enroll\",COUNTIF('Enrollment Form'!AV856:AW856,\"No\")=2,'Enrollment Form'!AX856=\"\"),\"N\",\"Y\")))","v":""},{"$f":"IF(OR(B849=\"N\",'Enrollment Form'!B856<>\"Subscriber\",'Enrollment Form'!C856=\"ROC\",'Enrollment Form'!O856<>\"Multiple of Salary\"),\"-\",IF(COUNTA('Enrollment Form'!T856:U856)<2,\"N\",\"Y\"))","v":"-"},{"$f":"IF(B849=\"N\",\"\",IF(OR('Enrollment Form'!C856=\"ROC\",'Enrollment Form'!B856<>\"Subscriber\",'Enrollment Form'!O856=\"Waive\",'Enrollment Form'!O856=\"\"),\"-\",IF('Enrollment Form'!P856=\"\",\"N\",\"Y\")))","v":""},{"$f":"IF($B849=\"N\",\"\",IF(AND('Enrollment Form'!$C856=\"ROC\",'Enrollment Form'!$DR856<>\"\"),\"Y\",IF(AND('Enrollment Form'!$C856=\"ROC\",'Enrollment Form'!$DR856=\"\"),\"N\",IF(AND('Enrollment Form'!$C856=\"Enroll\",'Enrollment Form'!$B856=\"Subscriber\",'Enrollment Form'!$CX856=\"No\",'Enrollment Form'!$DR856=\"\"),\"N\",IF(AND('Enrollment Form'!$C856=\"Enroll\",'Enrollment Form'!$B856=\"Subscriber\",'Enrollment Form'!$CX856=\"Yes\"),\"-\",\"Y\")))))","v":""},{"$f":"IF($B849=\"N\",\"\",IF(AND('Enrollment Form'!$C856=\"ROC\",'Enrollment Form'!$DS856<>\"\"),\"Y\",IF(AND('Enrollment Form'!$C856=\"ROC\",'Enrollment Form'!$DS856=\"\"),\"N\",IF(AND('Enrollment Form'!$C856=\"Enroll\",'Enrollment Form'!$B856=\"Subscriber\",'Enrollment Form'!$CX856=\"No\",'Enrollment Form'!$DS856=\"\"),\"N\",IF(AND('Enrollment Form'!$C856=\"Enroll\",'Enrollment Form'!$B856=\"Subscriber\",'Enrollment Form'!$CX856=\"Yes\"),\"-\",\"Y\")))))","v":""},{"$f":"IF('Enrollment Form'!AH856=\"\",\"\",IF(ISERROR(SEARCH(\".\",'Enrollment Form'!AH856,SEARCH(\"@\",'Enrollment Form'!AH856))),\"N\",\"Y\"))","v":""},{"$f":"IF(OR($B849=\"N\",'Enrollment Form'!$G856=\"\"),\"\",IF('Enrollment Form'!$B856<>\"Subscriber\",\"-\",IF(COUNTIF('Enrollment Form'!$AV856:$AW856,\"Yes\")=2,\"N\",\"Y\")))","v":""},{"$f":"IF(OR('Enrollment Form'!$CJ856=\"\",'Enrollment Form'!$CJ856=\"No\"),\"-\",IF(AND('Enrollment Form'!$CJ856=\"Yes\",'Enrollment Form'!$CK856=\"\"),\"N\",\"Y\"))","v":"-"},{"$f":"IF(OR('Enrollment Form'!$CL856=\"\",'Enrollment Form'!$CL856=\"No\"),\"-\",IF(AND('Enrollment Form'!$CL856=\"Yes\",'Enrollment Form'!$CM856=\"\"),\"N\",\"Y\"))","v":"-"},{"$f":"IF(OR('Enrollment Form'!$CN856=\"\",'Enrollment Form'!$CN856=\"No\"),\"-\",IF(AND('Enrollment Form'!$CN856=\"Yes\",'Enrollment Form'!$CO856=\"\"),\"N\",\"Y\"))","v":"-"},{"$f":"IF(OR('Enrollment Form'!$CN856=\"\",'Enrollment Form'!$CN856=\"No\"),\"-\",IF(AND('Enrollment Form'!$CN856=\"Yes\",'Enrollment Form'!$CP856=\"\"),\"N\",\"Y\"))","v":"-"},{"$f":"IF('Enrollment Form'!B856<>\"Subscriber\",\"-\",IF(AND('Enrollment Form'!B856=\"Subscriber\",'Enrollment Form'!C856=\"Enroll\",'Enrollment Form'!AA856=\"\"),\"N\",\"Y\"))","v":"-"},{"$f":"IF(OR('Enrollment Form'!B856=\"Subscriber\",'Enrollment Form'!B856=\"\"),\"-\",IF('Enrollment Form'!BP856=\"\",\"N\",\"Y\"))","v":"-"},{"$f":"IF('Enrollment Form'!B856<>\"Subscriber\",\"-\",IF(AND('Enrollment Form'!B856=\"Subscriber\",'Enrollment Form'!G856=\"\"),\"N\",\"Y\"))","v":"-"},{"$f":"IF('Enrollment Form'!A856=\"\",\"\",IF('Enrollment Form'!B856=\"Subscriber\",\"-\",IF(AND('Enrollment Form'!B856<>\"Subscriber\",'Enrollment Form'!G856='Enrollment Form'!H856),\"N\",\"Y\")))","v":""},0]
[857,{"$f":"IF('Enrollment Form'!$A857<>\"\",\"Y\",\"N\")","v":"N"},{"$f":"IF(AND('Enrollment Form'!$B857=\"\",'Enrollment Form'!$C857<>\"\"),\"N\",IF($B850=\"N\",\"\",\"Y\"))","v":""},{"$f":"IF(OR($B850=\"N\",'Enrollment Form'!G857=\"\"),\"\",IF('Enrollment Form'!$B857<>\"Subscriber\",\"\",IF('Enrollment Form'!$G857='Enrollment Form'!$H857,\"Y\",\"N\")))","v":""},{"$f":"IF($B850=\"N\",\"\",IF(AND(COUNTIFS('Enrollment Form'!$H$11:$H$1000,'Enrollment Form'!$H857,'Enrollment Form'!$B$11:$B$1000,'Enrollment Form'!$B857)>1,'Enrollment Form'!$H857<>\"\"),\"N\",\"Y\"))","v":""},{"$f":"IF($B850=\"N\",\"\",IF(LEN('Enrollment Form'!$Y857)=0,\"\",IF(LEN('Enrollment Form'!$Y857)<>5,\"N\",\"Y\")))","v":""},{"$f":"IF($B850=\"N\",\"\",IF(LEN('Enrollment Form'!$AD857=0),\"\",IF(LEN('Enrollment Form'!$AD857)<>5,\"N\",\"Y\")))","v":""},{"$f":"IF($B850=\"N\",\"\",IF(LEN('Enrollment Form'!$BS857=0),\"\",IF(LEN('Enrollment Form'!$BS857)<>5,\"N\",\"Y\")))","v":""},{"$f":"IF($B850=\"N\",\"\",IF(LEN('Enrollment Form'!$AE857)=0,\"\",IF(LEN('Enrollment Form'!$AE857)<>10,\"N\",\"Y\")))","v":""},{"$f":"IF($B850=\"N\",\"\",IF(LEN('Enrollment Form'!$AF857)=0,\"\",IF(LEN('Enrollment Form'!$AF857)<>10,\"N\",\"Y\")))","v":""},{"$f":"IF('Enrollment Form'!$O857<>\"Graded\",\"-\",IF(AND('Enrollment Form'!$O857=\"Graded\",'Enrollment Form'!$AR857<>\"\"),\"Y\",\"N\"))","v":"-"},{"$f":"IF($B850=\"N\",\"\",IF(OR('Enrollment Form'!$B857<>\"Subscriber\",'Enrollment Form'!$C857=\"ROC\"),\"-\",IF(AND('Enrollment Form'!$B857=\"Subscriber\",'Enrollment Form'!$C857=\"Enroll\",'Enrollment Form'!$AJ857<>\"\"),\"Y\",\"N\")))","v":""},{"$f":"IF($B850=\"N\",\"\",IF(OR('Enrollment Form'!$B857<>\"Subscriber\",'Enrollment Form'!$C857=\"ROC\"),\"-\",IF(AND('Enrollment Form'!$B857=\"Subscriber\",'Enrollment Form'!$C857=\"Enroll\",'Enrollment Form'!$AK857<>\"\"),\"Y\",\"N\")))","v":""},{"$f":"IF($B850=\"N\",\"\",IF(OR('Enrollment Form'!$B857<>\"Subscriber\",'Enrollment Form'!$C857=\"ROC\"),\"-\",IF(AND('Enrollment Form'!$B857=\"Subscriber\",'Enrollment Form'!$C857=\"Enroll\",'Enrollment Form'!$AL857<>\"\"),\"Y\",\"N\")))","v":""},{"$f":"IF($B850=\"N\",\"\",IF(OR('Enrollment Form'!$B857<>\"Subscriber\",'Enrollment Form'!$C857=\"ROC\"),\"-\",IF(AND('Enrollment Form'!$B857=\"Subscriber\",'Enrollment Form'!$C857=\"Enroll\",'Enrollment Form'!$AP857<>\"\"),\"Y\",\"N\")))","v":""},{"$f":"IF($B850=\"N\",\"\",IF(OR('Enrollment Form'!$B857<>\"Subscriber\",'Enrollment Form'!$C857=\"ROC\"),\"-\",IF(AND('Enrollment Form'!$B857=\"Subscriber\",'Enrollment Form'!$C857=\"Enroll\",'Enrollment Form'!$AQ857<>\"\"),\"Y\",\"N\")))","v":""},{"$f":"IF($B850=\"N\",\"\",IF(OR('Enrollment Form'!$B857<>\"Subscriber\",'Enrollment Form'!$C857=\"ROC\"),\"-\",IF(AND('Enrollment Form'!$B857=\"Subscriber\",'Enrollment Form'!$C857=\"Enroll\",'Enrollment Form'!$AS857<>\"\"),\"Y\",\"N\")))","v":""},{"$f":"IF($B850=\"N\",\"\",IF($Q850=\"-\",\"-\",IF(AND($Q850=\"Y\",'Enrollment Form'!$AS857=\"No\"),\"-\",IF(AND($Q850=\"Y\",'Enrollment Form'!$AS857=\"Yes\",'Enrollment Form'!$AT857<>\"\"),\"Y\",\"N\"))))","v":""},{"$f":"IF($B850=\"N\",\"\",IF(OR('Enrollment Form'!$B857<>\"Subscriber\",'Enrollment Form'!$C857=\"ROC\"),\"-\",IF(AND('Enrollment Form'!$B857=\"Subscriber\",'Enrollment Form'!$C857=\"Enroll\",'Enrollment Form'!$CV857<>\"\"),\"Y\",\"N\")))","v":""},{"$f":"IF($B850=\"N\",\"\",IF($S850=\"-\",\"-\",IF(AND($S850=\"Y\",'Enrollment Form'!$CV857=\"No\"),\"-\",IF(AND($S850=\"Y\",'Enrollment Form'!$CV857=\"Yes\",'Enrollment Form'!$CW857<>\"\"),\"Y\",\"N\"))))","v":""},{"$f":"IF(OR('Enrollment Form'!$AY857=\"Yes\",'Enrollment Form'!$AY857=\"\"),\"-\",IF(OR(AND('Enrollment Form'!$AY857=\"No\",ISERROR(FIND(\"HMO\",VLOOKUP('Enrollment Form'!G857,'Enrollment Form'!H$11:J$1000,3,FALSE),1))=FALSE,COUNTA('Enrollment Form'!$AZ857:$BC857)=4),AND('Enrollment Form'!$AY857=\"No\",ISERROR(FIND(\"HMO\",VLOOKUP('Enrollment Form'!G857,'Enrollment Form'!H$11:J$1000,3,FALSE),1))=FALSE,COUNTA('Enrollment Form'!$BT857:$BW857)=4)),\"Y\",\"N\"))","v":"-"},{"$f":"IF($B850=\"N\",\"\",IF('Enrollment Form'!$B857=\"Subscriber\",\"-\",IF(COUNTA('Enrollment Form'!$BL857,'Enrollment Form'!$BN857)=2,\"Y\",\"N\")))","v":""},{"$f":"IF($B850=\"N\",\"\",IF(OR('Enrollment Form'!$AX857=\"\",'Enrollment Form'!$AX857=\"No\"),\"-\",IF(AND('Enrollment Form'!$AX857=\"Yes\",COUNTA('Enrollment Form'!$CR857)=1),\"Y\",\"N\")))","v":""},{"$f":"IF(OR('Enrollment Form'!$CR857=\"\",'Enrollment Form'!$CR857=\"No\"),\"-\",IF(COUNTA('Enrollment Form'!$CT857:$CU857)=2,\"Y\",\"N\"))","v":"-"},{"$f":"IF($B850=\"N\",\"\",IF(COUNTIF('Enrollment Form'!$DG857:$DP857,\"Other\")=COUNTA('Enrollment Form'!$DK857,'Enrollment Form'!$DH857,'Enrollment Form'!$DN857,'Enrollment Form'!$DQ857),\"Y\",\"N\"))","v":""},{"$f":"IF($B850=\"N\",\"\",IF(OR('Enrollment Form'!B857<>\"Subscriber\",'Enrollment Form'!C857=\"ROC\",COUNTIF('Enrollment Form'!AV857:AW857,\"Yes\")>=1),\"-\",IF(AND('Enrollment Form'!C857=\"Enroll\",COUNTIF('Enrollment Form'!AV857:AW857,\"No\")=2,'Enrollment Form'!AX857=\"\"),\"N\",\"Y\")))","v":""},{"$f":"IF(OR(B850=\"N\",'Enrollment Form'!B857<>\"Subscriber\",'Enrollment Form'!C857=\"ROC\",'Enrollment Form'!O857<>\"Multiple of Salary\"),\"-\",IF(COUNTA('Enrollment Form'!T857:U857)<2,\"N\",\"Y\"))","v":"-"},{"$f":"IF(B850=\"N\",\"\",IF(OR('Enrollment Form'!C857=\"ROC\",'Enrollment Form'!B857<>\"Subscriber\",'Enrollment Form'!O857=\"Waive\",'Enrollment Form'!O857=\"\"),\"-\",IF('Enrollment Form'!P857=\"\",\"N\",\"Y\")))","v":""},{"$f":"IF($B850=\"N\",\"\",IF(AND('Enrollment Form'!$C857=\"ROC\",'Enrollment Form'!$DR857<>\"\"),\"Y\",IF(AND('Enrollment Form'!$C857=\"ROC\",'Enrollment Form'!$DR857=\"\"),\"N\",IF(AND('Enrollment Form'!$C857=\"Enroll\",'Enrollment Form'!$B857=\"Subscriber\",'Enrollment Form'!$CX857=\"No\",'Enrollment Form'!$DR857=\"\"),\"N\",IF(AND('Enrollment Form'!$C857=\"Enroll\",'Enrollment Form'!$B857=\"Subscriber\",'Enrollment Form'!$CX857=\"Yes\"),\"-\",\"Y\")))))","v":""},{"$f":"IF($B850=\"N\",\"\",IF(AND('Enrollment Form'!$C857=\"ROC\",'Enrollment Form'!$DS857<>\"\"),\"Y\",IF(AND('Enrollment Form'!$C857=\"ROC\",'Enrollment Form'!$DS857=\"\"),\"N\",IF(AND('Enrollment Form'!$C857=\"Enroll\",'Enrollment Form'!$B857=\"Subscriber\",'Enrollment Form'!$CX857=\"No\",'Enrollment Form'!$DS857=\"\"),\"N\",IF(AND('Enrollment Form'!$C857=\"Enroll\",'Enrollment Form'!$B857=\"Subscriber\",'Enrollment Form'!$CX857=\"Yes\"),\"-\",\"Y\")))))","v":""},{"$f":"IF('Enrollment Form'!AH857=\"\",\"\",IF(ISERROR(SEARCH(\".\",'Enrollment Form'!AH857,SEARCH(\"@\",'Enrollment Form'!AH857))),\"N\",\"Y\"))","v":""},{"$f":"IF(OR($B850=\"N\",'Enrollment Form'!$G857=\"\"),\"\",IF('Enrollment Form'!$B857<>\"Subscriber\",\"-\",IF(COUNTIF('Enrollment Form'!$AV857:$AW857,\"Yes\")=2,\"N\",\"Y\")))","v":""},{"$f":"IF(OR('Enrollment Form'!$CJ857=\"\",'Enrollment Form'!$CJ857=\"No\"),\"-\",IF(AND('Enrollment Form'!$CJ857=\"Yes\",'Enrollment Form'!$CK857=\"\"),\"N\",\"Y\"))","v":"-"},{"$f":"IF(OR('Enrollment Form'!$CL857=\"\",'Enrollment Form'!$CL857=\"No\"),\"-\",IF(AND('Enrollment Form'!$CL857=\"Yes\",'Enrollment Form'!$CM857=\"\"),\"N\",\"Y\"))","v":"-"},{"$f":"IF(OR('Enrollment Form'!$CN857=\"\",'Enrollment Form'!$CN857=\"No\"),\"-\",IF(AND('Enrollment Form'!$CN857=\"Yes\",'Enrollment Form'!$CO857=\"\"),\"N\",\"Y\"))","v":"-"},{"$f":"IF(OR('Enrollment Form'!$CN857=\"\",'Enrollment Form'!$CN857=\"No\"),\"-\",IF(AND('Enrollment Form'!$CN857=\"Yes\",'Enrollment Form'!$CP857=\"\"),\"N\",\"Y\"))","v":"-"},{"$f":"IF('Enrollment Form'!B857<>\"Subscriber\",\"-\",IF(AND('Enrollment Form'!B857=\"Subscriber\",'Enrollment Form'!C857=\"Enroll\",'Enrollment Form'!AA857=\"\"),\"N\",\"Y\"))","v":"-"},{"$f":"IF(OR('Enrollment Form'!B857=\"Subscriber\",'Enrollment Form'!B857=\"\"),\"-\",IF('Enrollment Form'!BP857=\"\",\"N\",\"Y\"))","v":"-"},{"$f":"IF('Enrollment Form'!B857<>\"Subscriber\",\"-\",IF(AND('Enrollment Form'!B857=\"Subscriber\",'Enrollment Form'!G857=\"\"),\"N\",\"Y\"))","v":"-"},{"$f":"IF('Enrollment Form'!A857=\"\",\"\",IF('Enrollment Form'!B857=\"Subscriber\",\"-\",IF(AND('Enrollment Form'!B857<>\"Subscriber\",'Enrollment Form'!G857='Enrollment Form'!H857),\"N\",\"Y\")))","v":""},0]
[858,{"$f":"IF('Enrollment Form'!$A858<>\"\",\"Y\",\"N\")","v":"N"},{"$f":"IF(AND('Enrollment Form'!$B858=\"\",'Enrollment Form'!$C858<>\"\"),\"N\",IF($B851=\"N\",\"\",\"Y\"))","v":""},{"$f":"IF(OR($B851=\"N\",'Enrollment Form'!G858=\"\"),\"\",IF('Enrollment Form'!$B858<>\"Subscriber\",\"\",IF('Enrollment Form'!$G858='Enrollment Form'!$H858,\"Y\",\"N\")))","v":""},{"$f":"IF($B851=\"N\",\"\",IF(AND(COUNTIFS('Enrollment Form'!$H$11:$H$1000,'Enrollment Form'!$H858,'Enrollment Form'!$B$11:$B$1000,'Enrollment Form'!$B858)>1,'Enrollment Form'!$H858<>\"\"),\"N\",\"Y\"))","v":""},{"$f":"IF($B851=\"N\",\"\",IF(LEN('Enrollment Form'!$Y858)=0,\"\",IF(LEN('Enrollment Form'!$Y858)<>5,\"N\",\"Y\")))","v":""},{"$f":"IF($B851=\"N\",\"\",IF(LEN('Enrollment Form'!$AD858=0),\"\",IF(LEN('Enrollment Form'!$AD858)<>5,\"N\",\"Y\")))","v":""},{"$f":"IF($B851=\"N\",\"\",IF(LEN('Enrollment Form'!$BS858=0),\"\",IF(LEN('Enrollment Form'!$BS858)<>5,\"N\",\"Y\")))","v":""},{"$f":"IF($B851=\"N\",\"\",IF(LEN('Enrollment Form'!$AE858)=0,\"\",IF(LEN('Enrollment Form'!$AE858)<>10,\"N\",\"Y\")))","v":""},{"$f":"IF($B851=\"N\",\"\",IF(LEN('Enrollment Form'!$AF858)=0,\"\",IF(LEN('Enrollment Form'!$AF858)<>10,\"N\",\"Y\")))","v":""},{"$f":"IF('Enrollment Form'!$O858<>\"Graded\",\"-\",IF(AND('Enrollment Form'!$O858=\"Graded\",'Enrollment Form'!$AR858<>\"\"),\"Y\",\"N\"))","v":"-"},{"$f":"IF($B851=\"N\",\"\",IF(OR('Enrollment Form'!$B858<>\"Subscriber\",'Enrollment Form'!$C858=\"ROC\"),\"-\",IF(AND('Enrollment Form'!$B858=\"Subscriber\",'Enrollment Form'!$C858=\"Enroll\",'Enrollment Form'!$AJ858<>\"\"),\"Y\",\"N\")))","v":""},{"$f":"IF($B851=\"N\",\"\",IF(OR('Enrollment Form'!$B858<>\"Subscriber\",'Enrollment Form'!$C858=\"ROC\"),\"-\",IF(AND('Enrollment Form'!$B858=\"Subscriber\",'Enrollment Form'!$C858=\"Enroll\",'Enrollment Form'!$AK858<>\"\"),\"Y\",\"N\")))","v":""},{"$f":"IF($B851=\"N\",\"\",IF(OR('Enrollment Form'!$B858<>\"Subscriber\",'Enrollment Form'!$C858=\"ROC\"),\"-\",IF(AND('Enrollment Form'!$B858=\"Subscriber\",'Enrollment Form'!$C858=\"Enroll\",'Enrollment Form'!$AL858<>\"\"),\"Y\",\"N\")))","v":""},{"$f":"IF($B851=\"N\",\"\",IF(OR('Enrollment Form'!$B858<>\"Subscriber\",'Enrollment Form'!$C858=\"ROC\"),\"-\",IF(AND('Enrollment Form'!$B858=\"Subscriber\",'Enrollment Form'!$C858=\"Enroll\",'Enrollment Form'!$AP858<>\"\"),\"Y\",\"N\")))","v":""},{"$f":"IF($B851=\"N\",\"\",IF(OR('Enrollment Form'!$B858<>\"Subscriber\",'Enrollment Form'!$C858=\"ROC\"),\"-\",IF(AND('Enrollment Form'!$B858=\"Subscriber\",'Enrollment Form'!$C858=\"Enroll\",'Enrollment Form'!$AQ858<>\"\"),\"Y\",\"N\")))","v":""},{"$f":"IF($B851=\"N\",\"\",IF(OR('Enrollment Form'!$B858<>\"Subscriber\",'Enrollment Form'!$C858=\"ROC\"),\"-\",IF(AND('Enrollment Form'!$B858=\"Subscriber\",'Enrollment Form'!$C858=\"Enroll\",'Enrollment Form'!$AS858<>\"\"),\"Y\",\"N\")))","v":""},{"$f":"IF($B851=\"N\",\"\",IF($Q851=\"-\",\"-\",IF(AND($Q851=\"Y\",'Enrollment Form'!$AS858=\"No\"),\"-\",IF(AND($Q851=\"Y\",'Enrollment Form'!$AS858=\"Yes\",'Enrollment Form'!$AT858<>\"\"),\"Y\",\"N\"))))","v":""},{"$f":"IF($B851=\"N\",\"\",IF(OR('Enrollment Form'!$B858<>\"Subscriber\",'Enrollment Form'!$C858=\"ROC\"),\"-\",IF(AND('Enrollment Form'!$B858=\"Subscriber\",'Enrollment Form'!$C858=\"Enroll\",'Enrollment Form'!$CV858<>\"\"),\"Y\",\"N\")))","v":""},{"$f":"IF($B851=\"N\",\"\",IF($S851=\"-\",\"-\",IF(AND($S851=\"Y\",'Enrollment Form'!$CV858=\"No\"),\"-\",IF(AND($S851=\"Y\",'Enrollment Form'!$CV858=\"Yes\",'Enrollment Form'!$CW858<>\"\"),\"Y\",\"N\"))))","v":""},{"$f":"IF(OR('Enrollment Form'!$AY858=\"Yes\",'Enrollment Form'!$AY858=\"\"),\"-\",IF(OR(AND('Enrollment Form'!$AY858=\"No\",ISERROR(FIND(\"HMO\",VLOOKUP('Enrollment Form'!G858,'Enrollment Form'!H$11:J$1000,3,FALSE),1))=FALSE,COUNTA('Enrollment Form'!$AZ858:$BC858)=4),AND('Enrollment Form'!$AY858=\"No\",ISERROR(FIND(\"HMO\",VLOOKUP('Enrollment Form'!G858,'Enrollment Form'!H$11:J$1000,3,FALSE),1))=FALSE,COUNTA('Enrollment Form'!$BT858:$BW858)=4)),\"Y\",\"N\"))","v":"-"},{"$f":"IF($B851=\"N\",\"\",IF('Enrollment Form'!$B858=\"Subscriber\",\"-\",IF(COUNTA('Enrollment Form'!$BL858,'Enrollment Form'!$BN858)=2,\"Y\",\"N\")))","v":""},{"$f":"IF($B851=\"N\",\"\",IF(OR('Enrollment Form'!$AX858=\"\",'Enrollment Form'!$AX858=\"No\"),\"-\",IF(AND('Enrollment Form'!$AX858=\"Yes\",COUNTA('Enrollment Form'!$CR858)=1),\"Y\",\"N\")))","v":""},{"$f":"IF(OR('Enrollment Form'!$CR858=\"\",'Enrollment Form'!$CR858=\"No\"),\"-\",IF(COUNTA('Enrollment Form'!$CT858:$CU858)=2,\"Y\",\"N\"))","v":"-"},{"$f":"IF($B851=\"N\",\"\",IF(COUNTIF('Enrollment Form'!$DG858:$DP858,\"Other\")=COUNTA('Enrollment Form'!$DK858,'Enrollment Form'!$DH858,'Enrollment Form'!$DN858,'Enrollment Form'!$DQ858),\"Y\",\"N\"))","v":""},{"$f":"IF($B851=\"N\",\"\",IF(OR('Enrollment Form'!B858<>\"Subscriber\",'Enrollment Form'!C858=\"ROC\",COUNTIF('Enrollment Form'!AV858:AW858,\"Yes\")>=1),\"-\",IF(AND('Enrollment Form'!C858=\"Enroll\",COUNTIF('Enrollment Form'!AV858:AW858,\"No\")=2,'Enrollment Form'!AX858=\"\"),\"N\",\"Y\")))","v":""},{"$f":"IF(OR(B851=\"N\",'Enrollment Form'!B858<>\"Subscriber\",'Enrollment Form'!C858=\"ROC\",'Enrollment Form'!O858<>\"Multiple of Salary\"),\"-\",IF(COUNTA('Enrollment Form'!T858:U858)<2,\"N\",\"Y\"))","v":"-"},{"$f":"IF(B851=\"N\",\"\",IF(OR('Enrollment Form'!C858=\"ROC\",'Enrollment Form'!B858<>\"Subscriber\",'Enrollment Form'!O858=\"Waive\",'Enrollment Form'!O858=\"\"),\"-\",IF('Enrollment Form'!P858=\"\",\"N\",\"Y\")))","v":""},{"$f":"IF($B851=\"N\",\"\",IF(AND('Enrollment Form'!$C858=\"ROC\",'Enrollment Form'!$DR858<>\"\"),\"Y\",IF(AND('Enrollment Form'!$C858=\"ROC\",'Enrollment Form'!$DR858=\"\"),\"N\",IF(AND('Enrollment Form'!$C858=\"Enroll\",'Enrollment Form'!$B858=\"Subscriber\",'Enrollment Form'!$CX858=\"No\",'Enrollment Form'!$DR858=\"\"),\"N\",IF(AND('Enrollment Form'!$C858=\"Enroll\",'Enrollment Form'!$B858=\"Subscriber\",'Enrollment Form'!$CX858=\"Yes\"),\"-\",\"Y\")))))","v":""},{"$f":"IF($B851=\"N\",\"\",IF(AND('Enrollment Form'!$C858=\"ROC\",'Enrollment Form'!$DS858<>\"\"),\"Y\",IF(AND('Enrollment Form'!$C858=\"ROC\",'Enrollment Form'!$DS858=\"\"),\"N\",IF(AND('Enrollment Form'!$C858=\"Enroll\",'Enrollment Form'!$B858=\"Subscriber\",'Enrollment Form'!$CX858=\"No\",'Enrollment Form'!$DS858=\"\"),\"N\",IF(AND('Enrollment Form'!$C858=\"Enroll\",'Enrollment Form'!$B858=\"Subscriber\",'Enrollment Form'!$CX858=\"Yes\"),\"-\",\"Y\")))))","v":""},{"$f":"IF('Enrollment Form'!AH858=\"\",\"\",IF(ISERROR(SEARCH(\".\",'Enrollment Form'!AH858,SEARCH(\"@\",'Enrollment Form'!AH858))),\"N\",\"Y\"))","v":""},{"$f":"IF(OR($B851=\"N\",'Enrollment Form'!$G858=\"\"),\"\",IF('Enrollment Form'!$B858<>\"Subscriber\",\"-\",IF(COUNTIF('Enrollment Form'!$AV858:$AW858,\"Yes\")=2,\"N\",\"Y\")))","v":""},{"$f":"IF(OR('Enrollment Form'!$CJ858=\"\",'Enrollment Form'!$CJ858=\"No\"),\"-\",IF(AND('Enrollment Form'!$CJ858=\"Yes\",'Enrollment Form'!$CK858=\"\"),\"N\",\"Y\"))","v":"-"},{"$f":"IF(OR('Enrollment Form'!$CL858=\"\",'Enrollment Form'!$CL858=\"No\"),\"-\",IF(AND('Enrollment Form'!$CL858=\"Yes\",'Enrollment Form'!$CM858=\"\"),\"N\",\"Y\"))","v":"-"},{"$f":"IF(OR('Enrollment Form'!$CN858=\"\",'Enrollment Form'!$CN858=\"No\"),\"-\",IF(AND('Enrollment Form'!$CN858=\"Yes\",'Enrollment Form'!$CO858=\"\"),\"N\",\"Y\"))","v":"-"},{"$f":"IF(OR('Enrollment Form'!$CN858=\"\",'Enrollment Form'!$CN858=\"No\"),\"-\",IF(AND('Enrollment Form'!$CN858=\"Yes\",'Enrollment Form'!$CP858=\"\"),\"N\",\"Y\"))","v":"-"},{"$f":"IF('Enrollment Form'!B858<>\"Subscriber\",\"-\",IF(AND('Enrollment Form'!B858=\"Subscriber\",'Enrollment Form'!C858=\"Enroll\",'Enrollment Form'!AA858=\"\"),\"N\",\"Y\"))","v":"-"},{"$f":"IF(OR('Enrollment Form'!B858=\"Subscriber\",'Enrollment Form'!B858=\"\"),\"-\",IF('Enrollment Form'!BP858=\"\",\"N\",\"Y\"))","v":"-"},{"$f":"IF('Enrollment Form'!B858<>\"Subscriber\",\"-\",IF(AND('Enrollment Form'!B858=\"Subscriber\",'Enrollment Form'!G858=\"\"),\"N\",\"Y\"))","v":"-"},{"$f":"IF('Enrollment Form'!A858=\"\",\"\",IF('Enrollment Form'!B858=\"Subscriber\",\"-\",IF(AND('Enrollment Form'!B858<>\"Subscriber\",'Enrollment Form'!G858='Enrollment Form'!H858),\"N\",\"Y\")))","v":""},0]
[859,{"$f":"IF('Enrollment Form'!$A859<>\"\",\"Y\",\"N\")","v":"N"},{"$f":"IF(AND('Enrollment Form'!$B859=\"\",'Enrollment Form'!$C859<>\"\"),\"N\",IF($B852=\"N\",\"\",\"Y\"))","v":""},{"$f":"IF(OR($B852=\"N\",'Enrollment Form'!G859=\"\"),\"\",IF('Enrollment Form'!$B859<>\"Subscriber\",\"\",IF('Enrollment Form'!$G859='Enrollment Form'!$H859,\"Y\",\"N\")))","v":""},{"$f":"IF($B852=\"N\",\"\",IF(AND(COUNTIFS('Enrollment Form'!$H$11:$H$1000,'Enrollment Form'!$H859,'Enrollment Form'!$B$11:$B$1000,'Enrollment Form'!$B859)>1,'Enrollment Form'!$H859<>\"\"),\"N\",\"Y\"))","v":""},{"$f":"IF($B852=\"N\",\"\",IF(LEN('Enrollment Form'!$Y859)=0,\"\",IF(LEN('Enrollment Form'!$Y859)<>5,\"N\",\"Y\")))","v":""},{"$f":"IF($B852=\"N\",\"\",IF(LEN('Enrollment Form'!$AD859=0),\"\",IF(LEN('Enrollment Form'!$AD859)<>5,\"N\",\"Y\")))","v":""},{"$f":"IF($B852=\"N\",\"\",IF(LEN('Enrollment Form'!$BS859=0),\"\",IF(LEN('Enrollment Form'!$BS859)<>5,\"N\",\"Y\")))","v":""},{"$f":"IF($B852=\"N\",\"\",IF(LEN('Enrollment Form'!$AE859)=0,\"\",IF(LEN('Enrollment Form'!$AE859)<>10,\"N\",\"Y\")))","v":""},{"$f":"IF($B852=\"N\",\"\",IF(LEN('Enrollment Form'!$AF859)=0,\"\",IF(LEN('Enrollment Form'!$AF859)<>10,\"N\",\"Y\")))","v":""},{"$f":"IF('Enrollment Form'!$O859<>\"Graded\",\"-\",IF(AND('Enrollment Form'!$O859=\"Graded\",'Enrollment Form'!$AR859<>\"\"),\"Y\",\"N\"))","v":"-"},{"$f":"IF($B852=\"N\",\"\",IF(OR('Enrollment Form'!$B859<>\"Subscriber\",'Enrollment Form'!$C859=\"ROC\"),\"-\",IF(AND('Enrollment Form'!$B859=\"Subscriber\",'Enrollment Form'!$C859=\"Enroll\",'Enrollment Form'!$AJ859<>\"\"),\"Y\",\"N\")))","v":""},{"$f":"IF($B852=\"N\",\"\",IF(OR('Enrollment Form'!$B859<>\"Subscriber\",'Enrollment Form'!$C859=\"ROC\"),\"-\",IF(AND('Enrollment Form'!$B859=\"Subscriber\",'Enrollment Form'!$C859=\"Enroll\",'Enrollment Form'!$AK859<>\"\"),\"Y\",\"N\")))","v":""},{"$f":"IF($B852=\"N\",\"\",IF(OR('Enrollment Form'!$B859<>\"Subscriber\",'Enrollment Form'!$C859=\"ROC\"),\"-\",IF(AND('Enrollment Form'!$B859=\"Subscriber\",'Enrollment Form'!$C859=\"Enroll\",'Enrollment Form'!$AL859<>\"\"),\"Y\",\"N\")))","v":""},{"$f":"IF($B852=\"N\",\"\",IF(OR('Enrollment Form'!$B859<>\"Subscriber\",'Enrollment Form'!$C859=\"ROC\"),\"-\",IF(AND('Enrollment Form'!$B859=\"Subscriber\",'Enrollment Form'!$C859=\"Enroll\",'Enrollment Form'!$AP859<>\"\"),\"Y\",\"N\")))","v":""},{"$f":"IF($B852=\"N\",\"\",IF(OR('Enrollment Form'!$B859<>\"Subscriber\",'Enrollment Form'!$C859=\"ROC\"),\"-\",IF(AND('Enrollment Form'!$B859=\"Subscriber\",'Enrollment Form'!$C859=\"Enroll\",'Enrollment Form'!$AQ859<>\"\"),\"Y\",\"N\")))","v":""},{"$f":"IF($B852=\"N\",\"\",IF(OR('Enrollment Form'!$B859<>\"Subscriber\",'Enrollment Form'!$C859=\"ROC\"),\"-\",IF(AND('Enrollment Form'!$B859=\"Subscriber\",'Enrollment Form'!$C859=\"Enroll\",'Enrollment Form'!$AS859<>\"\"),\"Y\",\"N\")))","v":""},{"$f":"IF($B852=\"N\",\"\",IF($Q852=\"-\",\"-\",IF(AND($Q852=\"Y\",'Enrollment Form'!$AS859=\"No\"),\"-\",IF(AND($Q852=\"Y\",'Enrollment Form'!$AS859=\"Yes\",'Enrollment Form'!$AT859<>\"\"),\"Y\",\"N\"))))","v":""},{"$f":"IF($B852=\"N\",\"\",IF(OR('Enrollment Form'!$B859<>\"Subscriber\",'Enrollment Form'!$C859=\"ROC\"),\"-\",IF(AND('Enrollment Form'!$B859=\"Subscriber\",'Enrollment Form'!$C859=\"Enroll\",'Enrollment Form'!$CV859<>\"\"),\"Y\",\"N\")))","v":""},{"$f":"IF($B852=\"N\",\"\",IF($S852=\"-\",\"-\",IF(AND($S852=\"Y\",'Enrollment Form'!$CV859=\"No\"),\"-\",IF(AND($S852=\"Y\",'Enrollment Form'!$CV859=\"Yes\",'Enrollment Form'!$CW859<>\"\"),\"Y\",\"N\"))))","v":""},{"$f":"IF(OR('Enrollment Form'!$AY859=\"Yes\",'Enrollment Form'!$AY859=\"\"),\"-\",IF(OR(AND('Enrollment Form'!$AY859=\"No\",ISERROR(FIND(\"HMO\",VLOOKUP('Enrollment Form'!G859,'Enrollment Form'!H$11:J$1000,3,FALSE),1))=FALSE,COUNTA('Enrollment Form'!$AZ859:$BC859)=4),AND('Enrollment Form'!$AY859=\"No\",ISERROR(FIND(\"HMO\",VLOOKUP('Enrollment Form'!G859,'Enrollment Form'!H$11:J$1000,3,FALSE),1))=FALSE,COUNTA('Enrollment Form'!$BT859:$BW859)=4)),\"Y\",\"N\"))","v":"-"},{"$f":"IF($B852=\"N\",\"\",IF('Enrollment Form'!$B859=\"Subscriber\",\"-\",IF(COUNTA('Enrollment Form'!$BL859,'Enrollment Form'!$BN859)=2,\"Y\",\"N\")))","v":""},{"$f":"IF($B852=\"N\",\"\",IF(OR('Enrollment Form'!$AX859=\"\",'Enrollment Form'!$AX859=\"No\"),\"-\",IF(AND('Enrollment Form'!$AX859=\"Yes\",COUNTA('Enrollment Form'!$CR859)=1),\"Y\",\"N\")))","v":""},{"$f":"IF(OR('Enrollment Form'!$CR859=\"\",'Enrollment Form'!$CR859=\"No\"),\"-\",IF(COUNTA('Enrollment Form'!$CT859:$CU859)=2,\"Y\",\"N\"))","v":"-"},{"$f":"IF($B852=\"N\",\"\",IF(COUNTIF('Enrollment Form'!$DG859:$DP859,\"Other\")=COUNTA('Enrollment Form'!$DK859,'Enrollment Form'!$DH859,'Enrollment Form'!$DN859,'Enrollment Form'!$DQ859),\"Y\",\"N\"))","v":""},{"$f":"IF($B852=\"N\",\"\",IF(OR('Enrollment Form'!B859<>\"Subscriber\",'Enrollment Form'!C859=\"ROC\",COUNTIF('Enrollment Form'!AV859:AW859,\"Yes\")>=1),\"-\",IF(AND('Enrollment Form'!C859=\"Enroll\",COUNTIF('Enrollment Form'!AV859:AW859,\"No\")=2,'Enrollment Form'!AX859=\"\"),\"N\",\"Y\")))","v":""},{"$f":"IF(OR(B852=\"N\",'Enrollment Form'!B859<>\"Subscriber\",'Enrollment Form'!C859=\"ROC\",'Enrollment Form'!O859<>\"Multiple of Salary\"),\"-\",IF(COUNTA('Enrollment Form'!T859:U859)<2,\"N\",\"Y\"))","v":"-"},{"$f":"IF(B852=\"N\",\"\",IF(OR('Enrollment Form'!C859=\"ROC\",'Enrollment Form'!B859<>\"Subscriber\",'Enrollment Form'!O859=\"Waive\",'Enrollment Form'!O859=\"\"),\"-\",IF('Enrollment Form'!P859=\"\",\"N\",\"Y\")))","v":""},{"$f":"IF($B852=\"N\",\"\",IF(AND('Enrollment Form'!$C859=\"ROC\",'Enrollment Form'!$DR859<>\"\"),\"Y\",IF(AND('Enrollment Form'!$C859=\"ROC\",'Enrollment Form'!$DR859=\"\"),\"N\",IF(AND('Enrollment Form'!$C859=\"Enroll\",'Enrollment Form'!$B859=\"Subscriber\",'Enrollment Form'!$CX859=\"No\",'Enrollment Form'!$DR859=\"\"),\"N\",IF(AND('Enrollment Form'!$C859=\"Enroll\",'Enrollment Form'!$B859=\"Subscriber\",'Enrollment Form'!$CX859=\"Yes\"),\"-\",\"Y\")))))","v":""},{"$f":"IF($B852=\"N\",\"\",IF(AND('Enrollment Form'!$C859=\"ROC\",'Enrollment Form'!$DS859<>\"\"),\"Y\",IF(AND('Enrollment Form'!$C859=\"ROC\",'Enrollment Form'!$DS859=\"\"),\"N\",IF(AND('Enrollment Form'!$C859=\"Enroll\",'Enrollment Form'!$B859=\"Subscriber\",'Enrollment Form'!$CX859=\"No\",'Enrollment Form'!$DS859=\"\"),\"N\",IF(AND('Enrollment Form'!$C859=\"Enroll\",'Enrollment Form'!$B859=\"Subscriber\",'Enrollment Form'!$CX859=\"Yes\"),\"-\",\"Y\")))))","v":""},{"$f":"IF('Enrollment Form'!AH859=\"\",\"\",IF(ISERROR(SEARCH(\".\",'Enrollment Form'!AH859,SEARCH(\"@\",'Enrollment Form'!AH859))),\"N\",\"Y\"))","v":""},{"$f":"IF(OR($B852=\"N\",'Enrollment Form'!$G859=\"\"),\"\",IF('Enrollment Form'!$B859<>\"Subscriber\",\"-\",IF(COUNTIF('Enrollment Form'!$AV859:$AW859,\"Yes\")=2,\"N\",\"Y\")))","v":""},{"$f":"IF(OR('Enrollment Form'!$CJ859=\"\",'Enrollment Form'!$CJ859=\"No\"),\"-\",IF(AND('Enrollment Form'!$CJ859=\"Yes\",'Enrollment Form'!$CK859=\"\"),\"N\",\"Y\"))","v":"-"},{"$f":"IF(OR('Enrollment Form'!$CL859=\"\",'Enrollment Form'!$CL859=\"No\"),\"-\",IF(AND('Enrollment Form'!$CL859=\"Yes\",'Enrollment Form'!$CM859=\"\"),\"N\",\"Y\"))","v":"-"},{"$f":"IF(OR('Enrollment Form'!$CN859=\"\",'Enrollment Form'!$CN859=\"No\"),\"-\",IF(AND('Enrollment Form'!$CN859=\"Yes\",'Enrollment Form'!$CO859=\"\"),\"N\",\"Y\"))","v":"-"},{"$f":"IF(OR('Enrollment Form'!$CN859=\"\",'Enrollment Form'!$CN859=\"No\"),\"-\",IF(AND('Enrollment Form'!$CN859=\"Yes\",'Enrollment Form'!$CP859=\"\"),\"N\",\"Y\"))","v":"-"},{"$f":"IF('Enrollment Form'!B859<>\"Subscriber\",\"-\",IF(AND('Enrollment Form'!B859=\"Subscriber\",'Enrollment Form'!C859=\"Enroll\",'Enrollment Form'!AA859=\"\"),\"N\",\"Y\"))","v":"-"},{"$f":"IF(OR('Enrollment Form'!B859=\"Subscriber\",'Enrollment Form'!B859=\"\"),\"-\",IF('Enrollment Form'!BP859=\"\",\"N\",\"Y\"))","v":"-"},{"$f":"IF('Enrollment Form'!B859<>\"Subscriber\",\"-\",IF(AND('Enrollment Form'!B859=\"Subscriber\",'Enrollment Form'!G859=\"\"),\"N\",\"Y\"))","v":"-"},{"$f":"IF('Enrollment Form'!A859=\"\",\"\",IF('Enrollment Form'!B859=\"Subscriber\",\"-\",IF(AND('Enrollment Form'!B859<>\"Subscriber\",'Enrollment Form'!G859='Enrollment Form'!H859),\"N\",\"Y\")))","v":""},0]
[860,{"$f":"IF('Enrollment Form'!$A860<>\"\",\"Y\",\"N\")","v":"N"},{"$f":"IF(AND('Enrollment Form'!$B860=\"\",'Enrollment Form'!$C860<>\"\"),\"N\",IF($B853=\"N\",\"\",\"Y\"))","v":""},{"$f":"IF(OR($B853=\"N\",'Enrollment Form'!G860=\"\"),\"\",IF('Enrollment Form'!$B860<>\"Subscriber\",\"\",IF('Enrollment Form'!$G860='Enrollment Form'!$H860,\"Y\",\"N\")))","v":""},{"$f":"IF($B853=\"N\",\"\",IF(AND(COUNTIFS('Enrollment Form'!$H$11:$H$1000,'Enrollment Form'!$H860,'Enrollment Form'!$B$11:$B$1000,'Enrollment Form'!$B860)>1,'Enrollment Form'!$H860<>\"\"),\"N\",\"Y\"))","v":""},{"$f":"IF($B853=\"N\",\"\",IF(LEN('Enrollment Form'!$Y860)=0,\"\",IF(LEN('Enrollment Form'!$Y860)<>5,\"N\",\"Y\")))","v":""},{"$f":"IF($B853=\"N\",\"\",IF(LEN('Enrollment Form'!$AD860=0),\"\",IF(LEN('Enrollment Form'!$AD860)<>5,\"N\",\"Y\")))","v":""},{"$f":"IF($B853=\"N\",\"\",IF(LEN('Enrollment Form'!$BS860=0),\"\",IF(LEN('Enrollment Form'!$BS860)<>5,\"N\",\"Y\")))","v":""},{"$f":"IF($B853=\"N\",\"\",IF(LEN('Enrollment Form'!$AE860)=0,\"\",IF(LEN('Enrollment Form'!$AE860)<>10,\"N\",\"Y\")))","v":""},{"$f":"IF($B853=\"N\",\"\",IF(LEN('Enrollment Form'!$AF860)=0,\"\",IF(LEN('Enrollment Form'!$AF860)<>10,\"N\",\"Y\")))","v":""},{"$f":"IF('Enrollment Form'!$O860<>\"Graded\",\"-\",IF(AND('Enrollment Form'!$O860=\"Graded\",'Enrollment Form'!$AR860<>\"\"),\"Y\",\"N\"))","v":"-"},{"$f":"IF($B853=\"N\",\"\",IF(OR('Enrollment Form'!$B860<>\"Subscriber\",'Enrollment Form'!$C860=\"ROC\"),\"-\",IF(AND('Enrollment Form'!$B860=\"Subscriber\",'Enrollment Form'!$C860=\"Enroll\",'Enrollment Form'!$AJ860<>\"\"),\"Y\",\"N\")))","v":""},{"$f":"IF($B853=\"N\",\"\",IF(OR('Enrollment Form'!$B860<>\"Subscriber\",'Enrollment Form'!$C860=\"ROC\"),\"-\",IF(AND('Enrollment Form'!$B860=\"Subscriber\",'Enrollment Form'!$C860=\"Enroll\",'Enrollment Form'!$AK860<>\"\"),\"Y\",\"N\")))","v":""},{"$f":"IF($B853=\"N\",\"\",IF(OR('Enrollment Form'!$B860<>\"Subscriber\",'Enrollment Form'!$C860=\"ROC\"),\"-\",IF(AND('Enrollment Form'!$B860=\"Subscriber\",'Enrollment Form'!$C860=\"Enroll\",'Enrollment Form'!$AL860<>\"\"),\"Y\",\"N\")))","v":""},{"$f":"IF($B853=\"N\",\"\",IF(OR('Enrollment Form'!$B860<>\"Subscriber\",'Enrollment Form'!$C860=\"ROC\"),\"-\",IF(AND('Enrollment Form'!$B860=\"Subscriber\",'Enrollment Form'!$C860=\"Enroll\",'Enrollment Form'!$AP860<>\"\"),\"Y\",\"N\")))","v":""},{"$f":"IF($B853=\"N\",\"\",IF(OR('Enrollment Form'!$B860<>\"Subscriber\",'Enrollment Form'!$C860=\"ROC\"),\"-\",IF(AND('Enrollment Form'!$B860=\"Subscriber\",'Enrollment Form'!$C860=\"Enroll\",'Enrollment Form'!$AQ860<>\"\"),\"Y\",\"N\")))","v":""},{"$f":"IF($B853=\"N\",\"\",IF(OR('Enrollment Form'!$B860<>\"Subscriber\",'Enrollment Form'!$C860=\"ROC\"),\"-\",IF(AND('Enrollment Form'!$B860=\"Subscriber\",'Enrollment Form'!$C860=\"Enroll\",'Enrollment Form'!$AS860<>\"\"),\"Y\",\"N\")))","v":""},{"$f":"IF($B853=\"N\",\"\",IF($Q853=\"-\",\"-\",IF(AND($Q853=\"Y\",'Enrollment Form'!$AS860=\"No\"),\"-\",IF(AND($Q853=\"Y\",'Enrollment Form'!$AS860=\"Yes\",'Enrollment Form'!$AT860<>\"\"),\"Y\",\"N\"))))","v":""},{"$f":"IF($B853=\"N\",\"\",IF(OR('Enrollment Form'!$B860<>\"Subscriber\",'Enrollment Form'!$C860=\"ROC\"),\"-\",IF(AND('Enrollment Form'!$B860=\"Subscriber\",'Enrollment Form'!$C860=\"Enroll\",'Enrollment Form'!$CV860<>\"\"),\"Y\",\"N\")))","v":""},{"$f":"IF($B853=\"N\",\"\",IF($S853=\"-\",\"-\",IF(AND($S853=\"Y\",'Enrollment Form'!$CV860=\"No\"),\"-\",IF(AND($S853=\"Y\",'Enrollment Form'!$CV860=\"Yes\",'Enrollment Form'!$CW860<>\"\"),\"Y\",\"N\"))))","v":""},{"$f":"IF(OR('Enrollment Form'!$AY860=\"Yes\",'Enrollment Form'!$AY860=\"\"),\"-\",IF(OR(AND('Enrollment Form'!$AY860=\"No\",ISERROR(FIND(\"HMO\",VLOOKUP('Enrollment Form'!G860,'Enrollment Form'!H$11:J$1000,3,FALSE),1))=FALSE,COUNTA('Enrollment Form'!$AZ860:$BC860)=4),AND('Enrollment Form'!$AY860=\"No\",ISERROR(FIND(\"HMO\",VLOOKUP('Enrollment Form'!G860,'Enrollment Form'!H$11:J$1000,3,FALSE),1))=FALSE,COUNTA('Enrollment Form'!$BT860:$BW860)=4)),\"Y\",\"N\"))","v":"-"},{"$f":"IF($B853=\"N\",\"\",IF('Enrollment Form'!$B860=\"Subscriber\",\"-\",IF(COUNTA('Enrollment Form'!$BL860,'Enrollment Form'!$BN860)=2,\"Y\",\"N\")))","v":""},{"$f":"IF($B853=\"N\",\"\",IF(OR('Enrollment Form'!$AX860=\"\",'Enrollment Form'!$AX860=\"No\"),\"-\",IF(AND('Enrollment Form'!$AX860=\"Yes\",COUNTA('Enrollment Form'!$CR860)=1),\"Y\",\"N\")))","v":""},{"$f":"IF(OR('Enrollment Form'!$CR860=\"\",'Enrollment Form'!$CR860=\"No\"),\"-\",IF(COUNTA('Enrollment Form'!$CT860:$CU860)=2,\"Y\",\"N\"))","v":"-"},{"$f":"IF($B853=\"N\",\"\",IF(COUNTIF('Enrollment Form'!$DG860:$DP860,\"Other\")=COUNTA('Enrollment Form'!$DK860,'Enrollment Form'!$DH860,'Enrollment Form'!$DN860,'Enrollment Form'!$DQ860),\"Y\",\"N\"))","v":""},{"$f":"IF($B853=\"N\",\"\",IF(OR('Enrollment Form'!B860<>\"Subscriber\",'Enrollment Form'!C860=\"ROC\",COUNTIF('Enrollment Form'!AV860:AW860,\"Yes\")>=1),\"-\",IF(AND('Enrollment Form'!C860=\"Enroll\",COUNTIF('Enrollment Form'!AV860:AW860,\"No\")=2,'Enrollment Form'!AX860=\"\"),\"N\",\"Y\")))","v":""},{"$f":"IF(OR(B853=\"N\",'Enrollment Form'!B860<>\"Subscriber\",'Enrollment Form'!C860=\"ROC\",'Enrollment Form'!O860<>\"Multiple of Salary\"),\"-\",IF(COUNTA('Enrollment Form'!T860:U860)<2,\"N\",\"Y\"))","v":"-"},{"$f":"IF(B853=\"N\",\"\",IF(OR('Enrollment Form'!C860=\"ROC\",'Enrollment Form'!B860<>\"Subscriber\",'Enrollment Form'!O860=\"Waive\",'Enrollment Form'!O860=\"\"),\"-\",IF('Enrollment Form'!P860=\"\",\"N\",\"Y\")))","v":""},{"$f":"IF($B853=\"N\",\"\",IF(AND('Enrollment Form'!$C860=\"ROC\",'Enrollment Form'!$DR860<>\"\"),\"Y\",IF(AND('Enrollment Form'!$C860=\"ROC\",'Enrollment Form'!$DR860=\"\"),\"N\",IF(AND('Enrollment Form'!$C860=\"Enroll\",'Enrollment Form'!$B860=\"Subscriber\",'Enrollment Form'!$CX860=\"No\",'Enrollment Form'!$DR860=\"\"),\"N\",IF(AND('Enrollment Form'!$C860=\"Enroll\",'Enrollment Form'!$B860=\"Subscriber\",'Enrollment Form'!$CX860=\"Yes\"),\"-\",\"Y\")))))","v":""},{"$f":"IF($B853=\"N\",\"\",IF(AND('Enrollment Form'!$C860=\"ROC\",'Enrollment Form'!$DS860<>\"\"),\"Y\",IF(AND('Enrollment Form'!$C860=\"ROC\",'Enrollment Form'!$DS860=\"\"),\"N\",IF(AND('Enrollment Form'!$C860=\"Enroll\",'Enrollment Form'!$B860=\"Subscriber\",'Enrollment Form'!$CX860=\"No\",'Enrollment Form'!$DS860=\"\"),\"N\",IF(AND('Enrollment Form'!$C860=\"Enroll\",'Enrollment Form'!$B860=\"Subscriber\",'Enrollment Form'!$CX860=\"Yes\"),\"-\",\"Y\")))))","v":""},{"$f":"IF('Enrollment Form'!AH860=\"\",\"\",IF(ISERROR(SEARCH(\".\",'Enrollment Form'!AH860,SEARCH(\"@\",'Enrollment Form'!AH860))),\"N\",\"Y\"))","v":""},{"$f":"IF(OR($B853=\"N\",'Enrollment Form'!$G860=\"\"),\"\",IF('Enrollment Form'!$B860<>\"Subscriber\",\"-\",IF(COUNTIF('Enrollment Form'!$AV860:$AW860,\"Yes\")=2,\"N\",\"Y\")))","v":""},{"$f":"IF(OR('Enrollment Form'!$CJ860=\"\",'Enrollment Form'!$CJ860=\"No\"),\"-\",IF(AND('Enrollment Form'!$CJ860=\"Yes\",'Enrollment Form'!$CK860=\"\"),\"N\",\"Y\"))","v":"-"},{"$f":"IF(OR('Enrollment Form'!$CL860=\"\",'Enrollment Form'!$CL860=\"No\"),\"-\",IF(AND('Enrollment Form'!$CL860=\"Yes\",'Enrollment Form'!$CM860=\"\"),\"N\",\"Y\"))","v":"-"},{"$f":"IF(OR('Enrollment Form'!$CN860=\"\",'Enrollment Form'!$CN860=\"No\"),\"-\",IF(AND('Enrollment Form'!$CN860=\"Yes\",'Enrollment Form'!$CO860=\"\"),\"N\",\"Y\"))","v":"-"},{"$f":"IF(OR('Enrollment Form'!$CN860=\"\",'Enrollment Form'!$CN860=\"No\"),\"-\",IF(AND('Enrollment Form'!$CN860=\"Yes\",'Enrollment Form'!$CP860=\"\"),\"N\",\"Y\"))","v":"-"},{"$f":"IF('Enrollment Form'!B860<>\"Subscriber\",\"-\",IF(AND('Enrollment Form'!B860=\"Subscriber\",'Enrollment Form'!C860=\"Enroll\",'Enrollment Form'!AA860=\"\"),\"N\",\"Y\"))","v":"-"},{"$f":"IF(OR('Enrollment Form'!B860=\"Subscriber\",'Enrollment Form'!B860=\"\"),\"-\",IF('Enrollment Form'!BP860=\"\",\"N\",\"Y\"))","v":"-"},{"$f":"IF('Enrollment Form'!B860<>\"Subscriber\",\"-\",IF(AND('Enrollment Form'!B860=\"Subscriber\",'Enrollment Form'!G860=\"\"),\"N\",\"Y\"))","v":"-"},{"$f":"IF('Enrollment Form'!A860=\"\",\"\",IF('Enrollment Form'!B860=\"Subscriber\",\"-\",IF(AND('Enrollment Form'!B860<>\"Subscriber\",'Enrollment Form'!G860='Enrollment Form'!H860),\"N\",\"Y\")))","v":""},0]
[861,{"$f":"IF('Enrollment Form'!$A861<>\"\",\"Y\",\"N\")","v":"N"},{"$f":"IF(AND('Enrollment Form'!$B861=\"\",'Enrollment Form'!$C861<>\"\"),\"N\",IF($B854=\"N\",\"\",\"Y\"))","v":""},{"$f":"IF(OR($B854=\"N\",'Enrollment Form'!G861=\"\"),\"\",IF('Enrollment Form'!$B861<>\"Subscriber\",\"\",IF('Enrollment Form'!$G861='Enrollment Form'!$H861,\"Y\",\"N\")))","v":""},{"$f":"IF($B854=\"N\",\"\",IF(AND(COUNTIFS('Enrollment Form'!$H$11:$H$1000,'Enrollment Form'!$H861,'Enrollment Form'!$B$11:$B$1000,'Enrollment Form'!$B861)>1,'Enrollment Form'!$H861<>\"\"),\"N\",\"Y\"))","v":""},{"$f":"IF($B854=\"N\",\"\",IF(LEN('Enrollment Form'!$Y861)=0,\"\",IF(LEN('Enrollment Form'!$Y861)<>5,\"N\",\"Y\")))","v":""},{"$f":"IF($B854=\"N\",\"\",IF(LEN('Enrollment Form'!$AD861=0),\"\",IF(LEN('Enrollment Form'!$AD861)<>5,\"N\",\"Y\")))","v":""},{"$f":"IF($B854=\"N\",\"\",IF(LEN('Enrollment Form'!$BS861=0),\"\",IF(LEN('Enrollment Form'!$BS861)<>5,\"N\",\"Y\")))","v":""},{"$f":"IF($B854=\"N\",\"\",IF(LEN('Enrollment Form'!$AE861)=0,\"\",IF(LEN('Enrollment Form'!$AE861)<>10,\"N\",\"Y\")))","v":""},{"$f":"IF($B854=\"N\",\"\",IF(LEN('Enrollment Form'!$AF861)=0,\"\",IF(LEN('Enrollment Form'!$AF861)<>10,\"N\",\"Y\")))","v":""},{"$f":"IF('Enrollment Form'!$O861<>\"Graded\",\"-\",IF(AND('Enrollment Form'!$O861=\"Graded\",'Enrollment Form'!$AR861<>\"\"),\"Y\",\"N\"))","v":"-"},{"$f":"IF($B854=\"N\",\"\",IF(OR('Enrollment Form'!$B861<>\"Subscriber\",'Enrollment Form'!$C861=\"ROC\"),\"-\",IF(AND('Enrollment Form'!$B861=\"Subscriber\",'Enrollment Form'!$C861=\"Enroll\",'Enrollment Form'!$AJ861<>\"\"),\"Y\",\"N\")))","v":""},{"$f":"IF($B854=\"N\",\"\",IF(OR('Enrollment Form'!$B861<>\"Subscriber\",'Enrollment Form'!$C861=\"ROC\"),\"-\",IF(AND('Enrollment Form'!$B861=\"Subscriber\",'Enrollment Form'!$C861=\"Enroll\",'Enrollment Form'!$AK861<>\"\"),\"Y\",\"N\")))","v":""},{"$f":"IF($B854=\"N\",\"\",IF(OR('Enrollment Form'!$B861<>\"Subscriber\",'Enrollment Form'!$C861=\"ROC\"),\"-\",IF(AND('Enrollment Form'!$B861=\"Subscriber\",'Enrollment Form'!$C861=\"Enroll\",'Enrollment Form'!$AL861<>\"\"),\"Y\",\"N\")))","v":""},{"$f":"IF($B854=\"N\",\"\",IF(OR('Enrollment Form'!$B861<>\"Subscriber\",'Enrollment Form'!$C861=\"ROC\"),\"-\",IF(AND('Enrollment Form'!$B861=\"Subscriber\",'Enrollment Form'!$C861=\"Enroll\",'Enrollment Form'!$AP861<>\"\"),\"Y\",\"N\")))","v":""},{"$f":"IF($B854=\"N\",\"\",IF(OR('Enrollment Form'!$B861<>\"Subscriber\",'Enrollment Form'!$C861=\"ROC\"),\"-\",IF(AND('Enrollment Form'!$B861=\"Subscriber\",'Enrollment Form'!$C861=\"Enroll\",'Enrollment Form'!$AQ861<>\"\"),\"Y\",\"N\")))","v":""},{"$f":"IF($B854=\"N\",\"\",IF(OR('Enrollment Form'!$B861<>\"Subscriber\",'Enrollment Form'!$C861=\"ROC\"),\"-\",IF(AND('Enrollment Form'!$B861=\"Subscriber\",'Enrollment Form'!$C861=\"Enroll\",'Enrollment Form'!$AS861<>\"\"),\"Y\",\"N\")))","v":""},{"$f":"IF($B854=\"N\",\"\",IF($Q854=\"-\",\"-\",IF(AND($Q854=\"Y\",'Enrollment Form'!$AS861=\"No\"),\"-\",IF(AND($Q854=\"Y\",'Enrollment Form'!$AS861=\"Yes\",'Enrollment Form'!$AT861<>\"\"),\"Y\",\"N\"))))","v":""},{"$f":"IF($B854=\"N\",\"\",IF(OR('Enrollment Form'!$B861<>\"Subscriber\",'Enrollment Form'!$C861=\"ROC\"),\"-\",IF(AND('Enrollment Form'!$B861=\"Subscriber\",'Enrollment Form'!$C861=\"Enroll\",'Enrollment Form'!$CV861<>\"\"),\"Y\",\"N\")))","v":""},{"$f":"IF($B854=\"N\",\"\",IF($S854=\"-\",\"-\",IF(AND($S854=\"Y\",'Enrollment Form'!$CV861=\"No\"),\"-\",IF(AND($S854=\"Y\",'Enrollment Form'!$CV861=\"Yes\",'Enrollment Form'!$CW861<>\"\"),\"Y\",\"N\"))))","v":""},{"$f":"IF(OR('Enrollment Form'!$AY861=\"Yes\",'Enrollment Form'!$AY861=\"\"),\"-\",IF(OR(AND('Enrollment Form'!$AY861=\"No\",ISERROR(FIND(\"HMO\",VLOOKUP('Enrollment Form'!G861,'Enrollment Form'!H$11:J$1000,3,FALSE),1))=FALSE,COUNTA('Enrollment Form'!$AZ861:$BC861)=4),AND('Enrollment Form'!$AY861=\"No\",ISERROR(FIND(\"HMO\",VLOOKUP('Enrollment Form'!G861,'Enrollment Form'!H$11:J$1000,3,FALSE),1))=FALSE,COUNTA('Enrollment Form'!$BT861:$BW861)=4)),\"Y\",\"N\"))","v":"-"},{"$f":"IF($B854=\"N\",\"\",IF('Enrollment Form'!$B861=\"Subscriber\",\"-\",IF(COUNTA('Enrollment Form'!$BL861,'Enrollment Form'!$BN861)=2,\"Y\",\"N\")))","v":""},{"$f":"IF($B854=\"N\",\"\",IF(OR('Enrollment Form'!$AX861=\"\",'Enrollment Form'!$AX861=\"No\"),\"-\",IF(AND('Enrollment Form'!$AX861=\"Yes\",COUNTA('Enrollment Form'!$CR861)=1),\"Y\",\"N\")))","v":""},{"$f":"IF(OR('Enrollment Form'!$CR861=\"\",'Enrollment Form'!$CR861=\"No\"),\"-\",IF(COUNTA('Enrollment Form'!$CT861:$CU861)=2,\"Y\",\"N\"))","v":"-"},{"$f":"IF($B854=\"N\",\"\",IF(COUNTIF('Enrollment Form'!$DG861:$DP861,\"Other\")=COUNTA('Enrollment Form'!$DK861,'Enrollment Form'!$DH861,'Enrollment Form'!$DN861,'Enrollment Form'!$DQ861),\"Y\",\"N\"))","v":""},{"$f":"IF($B854=\"N\",\"\",IF(OR('Enrollment Form'!B861<>\"Subscriber\",'Enrollment Form'!C861=\"ROC\",COUNTIF('Enrollment Form'!AV861:AW861,\"Yes\")>=1),\"-\",IF(AND('Enrollment Form'!C861=\"Enroll\",COUNTIF('Enrollment Form'!AV861:AW861,\"No\")=2,'Enrollment Form'!AX861=\"\"),\"N\",\"Y\")))","v":""},{"$f":"IF(OR(B854=\"N\",'Enrollment Form'!B861<>\"Subscriber\",'Enrollment Form'!C861=\"ROC\",'Enrollment Form'!O861<>\"Multiple of Salary\"),\"-\",IF(COUNTA('Enrollment Form'!T861:U861)<2,\"N\",\"Y\"))","v":"-"},{"$f":"IF(B854=\"N\",\"\",IF(OR('Enrollment Form'!C861=\"ROC\",'Enrollment Form'!B861<>\"Subscriber\",'Enrollment Form'!O861=\"Waive\",'Enrollment Form'!O861=\"\"),\"-\",IF('Enrollment Form'!P861=\"\",\"N\",\"Y\")))","v":""},{"$f":"IF($B854=\"N\",\"\",IF(AND('Enrollment Form'!$C861=\"ROC\",'Enrollment Form'!$DR861<>\"\"),\"Y\",IF(AND('Enrollment Form'!$C861=\"ROC\",'Enrollment Form'!$DR861=\"\"),\"N\",IF(AND('Enrollment Form'!$C861=\"Enroll\",'Enrollment Form'!$B861=\"Subscriber\",'Enrollment Form'!$CX861=\"No\",'Enrollment Form'!$DR861=\"\"),\"N\",IF(AND('Enrollment Form'!$C861=\"Enroll\",'Enrollment Form'!$B861=\"Subscriber\",'Enrollment Form'!$CX861=\"Yes\"),\"-\",\"Y\")))))","v":""},{"$f":"IF($B854=\"N\",\"\",IF(AND('Enrollment Form'!$C861=\"ROC\",'Enrollment Form'!$DS861<>\"\"),\"Y\",IF(AND('Enrollment Form'!$C861=\"ROC\",'Enrollment Form'!$DS861=\"\"),\"N\",IF(AND('Enrollment Form'!$C861=\"Enroll\",'Enrollment Form'!$B861=\"Subscriber\",'Enrollment Form'!$CX861=\"No\",'Enrollment Form'!$DS861=\"\"),\"N\",IF(AND('Enrollment Form'!$C861=\"Enroll\",'Enrollment Form'!$B861=\"Subscriber\",'Enrollment Form'!$CX861=\"Yes\"),\"-\",\"Y\")))))","v":""},{"$f":"IF('Enrollment Form'!AH861=\"\",\"\",IF(ISERROR(SEARCH(\".\",'Enrollment Form'!AH861,SEARCH(\"@\",'Enrollment Form'!AH861))),\"N\",\"Y\"))","v":""},{"$f":"IF(OR($B854=\"N\",'Enrollment Form'!$G861=\"\"),\"\",IF('Enrollment Form'!$B861<>\"Subscriber\",\"-\",IF(COUNTIF('Enrollment Form'!$AV861:$AW861,\"Yes\")=2,\"N\",\"Y\")))","v":""},{"$f":"IF(OR('Enrollment Form'!$CJ861=\"\",'Enrollment Form'!$CJ861=\"No\"),\"-\",IF(AND('Enrollment Form'!$CJ861=\"Yes\",'Enrollment Form'!$CK861=\"\"),\"N\",\"Y\"))","v":"-"},{"$f":"IF(OR('Enrollment Form'!$CL861=\"\",'Enrollment Form'!$CL861=\"No\"),\"-\",IF(AND('Enrollment Form'!$CL861=\"Yes\",'Enrollment Form'!$CM861=\"\"),\"N\",\"Y\"))","v":"-"},{"$f":"IF(OR('Enrollment Form'!$CN861=\"\",'Enrollment Form'!$CN861=\"No\"),\"-\",IF(AND('Enrollment Form'!$CN861=\"Yes\",'Enrollment Form'!$CO861=\"\"),\"N\",\"Y\"))","v":"-"},{"$f":"IF(OR('Enrollment Form'!$CN861=\"\",'Enrollment Form'!$CN861=\"No\"),\"-\",IF(AND('Enrollment Form'!$CN861=\"Yes\",'Enrollment Form'!$CP861=\"\"),\"N\",\"Y\"))","v":"-"},{"$f":"IF('Enrollment Form'!B861<>\"Subscriber\",\"-\",IF(AND('Enrollment Form'!B861=\"Subscriber\",'Enrollment Form'!C861=\"Enroll\",'Enrollment Form'!AA861=\"\"),\"N\",\"Y\"))","v":"-"},{"$f":"IF(OR('Enrollment Form'!B861=\"Subscriber\",'Enrollment Form'!B861=\"\"),\"-\",IF('Enrollment Form'!BP861=\"\",\"N\",\"Y\"))","v":"-"},{"$f":"IF('Enrollment Form'!B861<>\"Subscriber\",\"-\",IF(AND('Enrollment Form'!B861=\"Subscriber\",'Enrollment Form'!G861=\"\"),\"N\",\"Y\"))","v":"-"},{"$f":"IF('Enrollment Form'!A861=\"\",\"\",IF('Enrollment Form'!B861=\"Subscriber\",\"-\",IF(AND('Enrollment Form'!B861<>\"Subscriber\",'Enrollment Form'!G861='Enrollment Form'!H861),\"N\",\"Y\")))","v":""},0]
[862,{"$f":"IF('Enrollment Form'!$A862<>\"\",\"Y\",\"N\")","v":"N"},{"$f":"IF(AND('Enrollment Form'!$B862=\"\",'Enrollment Form'!$C862<>\"\"),\"N\",IF($B855=\"N\",\"\",\"Y\"))","v":""},{"$f":"IF(OR($B855=\"N\",'Enrollment Form'!G862=\"\"),\"\",IF('Enrollment Form'!$B862<>\"Subscriber\",\"\",IF('Enrollment Form'!$G862='Enrollment Form'!$H862,\"Y\",\"N\")))","v":""},{"$f":"IF($B855=\"N\",\"\",IF(AND(COUNTIFS('Enrollment Form'!$H$11:$H$1000,'Enrollment Form'!$H862,'Enrollment Form'!$B$11:$B$1000,'Enrollment Form'!$B862)>1,'Enrollment Form'!$H862<>\"\"),\"N\",\"Y\"))","v":""},{"$f":"IF($B855=\"N\",\"\",IF(LEN('Enrollment Form'!$Y862)=0,\"\",IF(LEN('Enrollment Form'!$Y862)<>5,\"N\",\"Y\")))","v":""},{"$f":"IF($B855=\"N\",\"\",IF(LEN('Enrollment Form'!$AD862=0),\"\",IF(LEN('Enrollment Form'!$AD862)<>5,\"N\",\"Y\")))","v":""},{"$f":"IF($B855=\"N\",\"\",IF(LEN('Enrollment Form'!$BS862=0),\"\",IF(LEN('Enrollment Form'!$BS862)<>5,\"N\",\"Y\")))","v":""},{"$f":"IF($B855=\"N\",\"\",IF(LEN('Enrollment Form'!$AE862)=0,\"\",IF(LEN('Enrollment Form'!$AE862)<>10,\"N\",\"Y\")))","v":""},{"$f":"IF($B855=\"N\",\"\",IF(LEN('Enrollment Form'!$AF862)=0,\"\",IF(LEN('Enrollment Form'!$AF862)<>10,\"N\",\"Y\")))","v":""},{"$f":"IF('Enrollment Form'!$O862<>\"Graded\",\"-\",IF(AND('Enrollment Form'!$O862=\"Graded\",'Enrollment Form'!$AR862<>\"\"),\"Y\",\"N\"))","v":"-"},{"$f":"IF($B855=\"N\",\"\",IF(OR('Enrollment Form'!$B862<>\"Subscriber\",'Enrollment Form'!$C862=\"ROC\"),\"-\",IF(AND('Enrollment Form'!$B862=\"Subscriber\",'Enrollment Form'!$C862=\"Enroll\",'Enrollment Form'!$AJ862<>\"\"),\"Y\",\"N\")))","v":""},{"$f":"IF($B855=\"N\",\"\",IF(OR('Enrollment Form'!$B862<>\"Subscriber\",'Enrollment Form'!$C862=\"ROC\"),\"-\",IF(AND('Enrollment Form'!$B862=\"Subscriber\",'Enrollment Form'!$C862=\"Enroll\",'Enrollment Form'!$AK862<>\"\"),\"Y\",\"N\")))","v":""},{"$f":"IF($B855=\"N\",\"\",IF(OR('Enrollment Form'!$B862<>\"Subscriber\",'Enrollment Form'!$C862=\"ROC\"),\"-\",IF(AND('Enrollment Form'!$B862=\"Subscriber\",'Enrollment Form'!$C862=\"Enroll\",'Enrollment Form'!$AL862<>\"\"),\"Y\",\"N\")))","v":""},{"$f":"IF($B855=\"N\",\"\",IF(OR('Enrollment Form'!$B862<>\"Subscriber\",'Enrollment Form'!$C862=\"ROC\"),\"-\",IF(AND('Enrollment Form'!$B862=\"Subscriber\",'Enrollment Form'!$C862=\"Enroll\",'Enrollment Form'!$AP862<>\"\"),\"Y\",\"N\")))","v":""},{"$f":"IF($B855=\"N\",\"\",IF(OR('Enrollment Form'!$B862<>\"Subscriber\",'Enrollment Form'!$C862=\"ROC\"),\"-\",IF(AND('Enrollment Form'!$B862=\"Subscriber\",'Enrollment Form'!$C862=\"Enroll\",'Enrollment Form'!$AQ862<>\"\"),\"Y\",\"N\")))","v":""},{"$f":"IF($B855=\"N\",\"\",IF(OR('Enrollment Form'!$B862<>\"Subscriber\",'Enrollment Form'!$C862=\"ROC\"),\"-\",IF(AND('Enrollment Form'!$B862=\"Subscriber\",'Enrollment Form'!$C862=\"Enroll\",'Enrollment Form'!$AS862<>\"\"),\"Y\",\"N\")))","v":""},{"$f":"IF($B855=\"N\",\"\",IF($Q855=\"-\",\"-\",IF(AND($Q855=\"Y\",'Enrollment Form'!$AS862=\"No\"),\"-\",IF(AND($Q855=\"Y\",'Enrollment Form'!$AS862=\"Yes\",'Enrollment Form'!$AT862<>\"\"),\"Y\",\"N\"))))","v":""},{"$f":"IF($B855=\"N\",\"\",IF(OR('Enrollment Form'!$B862<>\"Subscriber\",'Enrollment Form'!$C862=\"ROC\"),\"-\",IF(AND('Enrollment Form'!$B862=\"Subscriber\",'Enrollment Form'!$C862=\"Enroll\",'Enrollment Form'!$CV862<>\"\"),\"Y\",\"N\")))","v":""},{"$f":"IF($B855=\"N\",\"\",IF($S855=\"-\",\"-\",IF(AND($S855=\"Y\",'Enrollment Form'!$CV862=\"No\"),\"-\",IF(AND($S855=\"Y\",'Enrollment Form'!$CV862=\"Yes\",'Enrollment Form'!$CW862<>\"\"),\"Y\",\"N\"))))","v":""},{"$f":"IF(OR('Enrollment Form'!$AY862=\"Yes\",'Enrollment Form'!$AY862=\"\"),\"-\",IF(OR(AND('Enrollment Form'!$AY862=\"No\",ISERROR(FIND(\"HMO\",VLOOKUP('Enrollment Form'!G862,'Enrollment Form'!H$11:J$1000,3,FALSE),1))=FALSE,COUNTA('Enrollment Form'!$AZ862:$BC862)=4),AND('Enrollment Form'!$AY862=\"No\",ISERROR(FIND(\"HMO\",VLOOKUP('Enrollment Form'!G862,'Enrollment Form'!H$11:J$1000,3,FALSE),1))=FALSE,COUNTA('Enrollment Form'!$BT862:$BW862)=4)),\"Y\",\"N\"))","v":"-"},{"$f":"IF($B855=\"N\",\"\",IF('Enrollment Form'!$B862=\"Subscriber\",\"-\",IF(COUNTA('Enrollment Form'!$BL862,'Enrollment Form'!$BN862)=2,\"Y\",\"N\")))","v":""},{"$f":"IF($B855=\"N\",\"\",IF(OR('Enrollment Form'!$AX862=\"\",'Enrollment Form'!$AX862=\"No\"),\"-\",IF(AND('Enrollment Form'!$AX862=\"Yes\",COUNTA('Enrollment Form'!$CR862)=1),\"Y\",\"N\")))","v":""},{"$f":"IF(OR('Enrollment Form'!$CR862=\"\",'Enrollment Form'!$CR862=\"No\"),\"-\",IF(COUNTA('Enrollment Form'!$CT862:$CU862)=2,\"Y\",\"N\"))","v":"-"},{"$f":"IF($B855=\"N\",\"\",IF(COUNTIF('Enrollment Form'!$DG862:$DP862,\"Other\")=COUNTA('Enrollment Form'!$DK862,'Enrollment Form'!$DH862,'Enrollment Form'!$DN862,'Enrollment Form'!$DQ862),\"Y\",\"N\"))","v":""},{"$f":"IF($B855=\"N\",\"\",IF(OR('Enrollment Form'!B862<>\"Subscriber\",'Enrollment Form'!C862=\"ROC\",COUNTIF('Enrollment Form'!AV862:AW862,\"Yes\")>=1),\"-\",IF(AND('Enrollment Form'!C862=\"Enroll\",COUNTIF('Enrollment Form'!AV862:AW862,\"No\")=2,'Enrollment Form'!AX862=\"\"),\"N\",\"Y\")))","v":""},{"$f":"IF(OR(B855=\"N\",'Enrollment Form'!B862<>\"Subscriber\",'Enrollment Form'!C862=\"ROC\",'Enrollment Form'!O862<>\"Multiple of Salary\"),\"-\",IF(COUNTA('Enrollment Form'!T862:U862)<2,\"N\",\"Y\"))","v":"-"},{"$f":"IF(B855=\"N\",\"\",IF(OR('Enrollment Form'!C862=\"ROC\",'Enrollment Form'!B862<>\"Subscriber\",'Enrollment Form'!O862=\"Waive\",'Enrollment Form'!O862=\"\"),\"-\",IF('Enrollment Form'!P862=\"\",\"N\",\"Y\")))","v":""},{"$f":"IF($B855=\"N\",\"\",IF(AND('Enrollment Form'!$C862=\"ROC\",'Enrollment Form'!$DR862<>\"\"),\"Y\",IF(AND('Enrollment Form'!$C862=\"ROC\",'Enrollment Form'!$DR862=\"\"),\"N\",IF(AND('Enrollment Form'!$C862=\"Enroll\",'Enrollment Form'!$B862=\"Subscriber\",'Enrollment Form'!$CX862=\"No\",'Enrollment Form'!$DR862=\"\"),\"N\",IF(AND('Enrollment Form'!$C862=\"Enroll\",'Enrollment Form'!$B862=\"Subscriber\",'Enrollment Form'!$CX862=\"Yes\"),\"-\",\"Y\")))))","v":""},{"$f":"IF($B855=\"N\",\"\",IF(AND('Enrollment Form'!$C862=\"ROC\",'Enrollment Form'!$DS862<>\"\"),\"Y\",IF(AND('Enrollment Form'!$C862=\"ROC\",'Enrollment Form'!$DS862=\"\"),\"N\",IF(AND('Enrollment Form'!$C862=\"Enroll\",'Enrollment Form'!$B862=\"Subscriber\",'Enrollment Form'!$CX862=\"No\",'Enrollment Form'!$DS862=\"\"),\"N\",IF(AND('Enrollment Form'!$C862=\"Enroll\",'Enrollment Form'!$B862=\"Subscriber\",'Enrollment Form'!$CX862=\"Yes\"),\"-\",\"Y\")))))","v":""},{"$f":"IF('Enrollment Form'!AH862=\"\",\"\",IF(ISERROR(SEARCH(\".\",'Enrollment Form'!AH862,SEARCH(\"@\",'Enrollment Form'!AH862))),\"N\",\"Y\"))","v":""},{"$f":"IF(OR($B855=\"N\",'Enrollment Form'!$G862=\"\"),\"\",IF('Enrollment Form'!$B862<>\"Subscriber\",\"-\",IF(COUNTIF('Enrollment Form'!$AV862:$AW862,\"Yes\")=2,\"N\",\"Y\")))","v":""},{"$f":"IF(OR('Enrollment Form'!$CJ862=\"\",'Enrollment Form'!$CJ862=\"No\"),\"-\",IF(AND('Enrollment Form'!$CJ862=\"Yes\",'Enrollment Form'!$CK862=\"\"),\"N\",\"Y\"))","v":"-"},{"$f":"IF(OR('Enrollment Form'!$CL862=\"\",'Enrollment Form'!$CL862=\"No\"),\"-\",IF(AND('Enrollment Form'!$CL862=\"Yes\",'Enrollment Form'!$CM862=\"\"),\"N\",\"Y\"))","v":"-"},{"$f":"IF(OR('Enrollment Form'!$CN862=\"\",'Enrollment Form'!$CN862=\"No\"),\"-\",IF(AND('Enrollment Form'!$CN862=\"Yes\",'Enrollment Form'!$CO862=\"\"),\"N\",\"Y\"))","v":"-"},{"$f":"IF(OR('Enrollment Form'!$CN862=\"\",'Enrollment Form'!$CN862=\"No\"),\"-\",IF(AND('Enrollment Form'!$CN862=\"Yes\",'Enrollment Form'!$CP862=\"\"),\"N\",\"Y\"))","v":"-"},{"$f":"IF('Enrollment Form'!B862<>\"Subscriber\",\"-\",IF(AND('Enrollment Form'!B862=\"Subscriber\",'Enrollment Form'!C862=\"Enroll\",'Enrollment Form'!AA862=\"\"),\"N\",\"Y\"))","v":"-"},{"$f":"IF(OR('Enrollment Form'!B862=\"Subscriber\",'Enrollment Form'!B862=\"\"),\"-\",IF('Enrollment Form'!BP862=\"\",\"N\",\"Y\"))","v":"-"},{"$f":"IF('Enrollment Form'!B862<>\"Subscriber\",\"-\",IF(AND('Enrollment Form'!B862=\"Subscriber\",'Enrollment Form'!G862=\"\"),\"N\",\"Y\"))","v":"-"},{"$f":"IF('Enrollment Form'!A862=\"\",\"\",IF('Enrollment Form'!B862=\"Subscriber\",\"-\",IF(AND('Enrollment Form'!B862<>\"Subscriber\",'Enrollment Form'!G862='Enrollment Form'!H862),\"N\",\"Y\")))","v":""},0]
[863,{"$f":"IF('Enrollment Form'!$A863<>\"\",\"Y\",\"N\")","v":"N"},{"$f":"IF(AND('Enrollment Form'!$B863=\"\",'Enrollment Form'!$C863<>\"\"),\"N\",IF($B856=\"N\",\"\",\"Y\"))","v":""},{"$f":"IF(OR($B856=\"N\",'Enrollment Form'!G863=\"\"),\"\",IF('Enrollment Form'!$B863<>\"Subscriber\",\"\",IF('Enrollment Form'!$G863='Enrollment Form'!$H863,\"Y\",\"N\")))","v":""},{"$f":"IF($B856=\"N\",\"\",IF(AND(COUNTIFS('Enrollment Form'!$H$11:$H$1000,'Enrollment Form'!$H863,'Enrollment Form'!$B$11:$B$1000,'Enrollment Form'!$B863)>1,'Enrollment Form'!$H863<>\"\"),\"N\",\"Y\"))","v":""},{"$f":"IF($B856=\"N\",\"\",IF(LEN('Enrollment Form'!$Y863)=0,\"\",IF(LEN('Enrollment Form'!$Y863)<>5,\"N\",\"Y\")))","v":""},{"$f":"IF($B856=\"N\",\"\",IF(LEN('Enrollment Form'!$AD863=0),\"\",IF(LEN('Enrollment Form'!$AD863)<>5,\"N\",\"Y\")))","v":""},{"$f":"IF($B856=\"N\",\"\",IF(LEN('Enrollment Form'!$BS863=0),\"\",IF(LEN('Enrollment Form'!$BS863)<>5,\"N\",\"Y\")))","v":""},{"$f":"IF($B856=\"N\",\"\",IF(LEN('Enrollment Form'!$AE863)=0,\"\",IF(LEN('Enrollment Form'!$AE863)<>10,\"N\",\"Y\")))","v":""},{"$f":"IF($B856=\"N\",\"\",IF(LEN('Enrollment Form'!$AF863)=0,\"\",IF(LEN('Enrollment Form'!$AF863)<>10,\"N\",\"Y\")))","v":""},{"$f":"IF('Enrollment Form'!$O863<>\"Graded\",\"-\",IF(AND('Enrollment Form'!$O863=\"Graded\",'Enrollment Form'!$AR863<>\"\"),\"Y\",\"N\"))","v":"-"},{"$f":"IF($B856=\"N\",\"\",IF(OR('Enrollment Form'!$B863<>\"Subscriber\",'Enrollment Form'!$C863=\"ROC\"),\"-\",IF(AND('Enrollment Form'!$B863=\"Subscriber\",'Enrollment Form'!$C863=\"Enroll\",'Enrollment Form'!$AJ863<>\"\"),\"Y\",\"N\")))","v":""},{"$f":"IF($B856=\"N\",\"\",IF(OR('Enrollment Form'!$B863<>\"Subscriber\",'Enrollment Form'!$C863=\"ROC\"),\"-\",IF(AND('Enrollment Form'!$B863=\"Subscriber\",'Enrollment Form'!$C863=\"Enroll\",'Enrollment Form'!$AK863<>\"\"),\"Y\",\"N\")))","v":""},{"$f":"IF($B856=\"N\",\"\",IF(OR('Enrollment Form'!$B863<>\"Subscriber\",'Enrollment Form'!$C863=\"ROC\"),\"-\",IF(AND('Enrollment Form'!$B863=\"Subscriber\",'Enrollment Form'!$C863=\"Enroll\",'Enrollment Form'!$AL863<>\"\"),\"Y\",\"N\")))","v":""},{"$f":"IF($B856=\"N\",\"\",IF(OR('Enrollment Form'!$B863<>\"Subscriber\",'Enrollment Form'!$C863=\"ROC\"),\"-\",IF(AND('Enrollment Form'!$B863=\"Subscriber\",'Enrollment Form'!$C863=\"Enroll\",'Enrollment Form'!$AP863<>\"\"),\"Y\",\"N\")))","v":""},{"$f":"IF($B856=\"N\",\"\",IF(OR('Enrollment Form'!$B863<>\"Subscriber\",'Enrollment Form'!$C863=\"ROC\"),\"-\",IF(AND('Enrollment Form'!$B863=\"Subscriber\",'Enrollment Form'!$C863=\"Enroll\",'Enrollment Form'!$AQ863<>\"\"),\"Y\",\"N\")))","v":""},{"$f":"IF($B856=\"N\",\"\",IF(OR('Enrollment Form'!$B863<>\"Subscriber\",'Enrollment Form'!$C863=\"ROC\"),\"-\",IF(AND('Enrollment Form'!$B863=\"Subscriber\",'Enrollment Form'!$C863=\"Enroll\",'Enrollment Form'!$AS863<>\"\"),\"Y\",\"N\")))","v":""},{"$f":"IF($B856=\"N\",\"\",IF($Q856=\"-\",\"-\",IF(AND($Q856=\"Y\",'Enrollment Form'!$AS863=\"No\"),\"-\",IF(AND($Q856=\"Y\",'Enrollment Form'!$AS863=\"Yes\",'Enrollment Form'!$AT863<>\"\"),\"Y\",\"N\"))))","v":""},{"$f":"IF($B856=\"N\",\"\",IF(OR('Enrollment Form'!$B863<>\"Subscriber\",'Enrollment Form'!$C863=\"ROC\"),\"-\",IF(AND('Enrollment Form'!$B863=\"Subscriber\",'Enrollment Form'!$C863=\"Enroll\",'Enrollment Form'!$CV863<>\"\"),\"Y\",\"N\")))","v":""},{"$f":"IF($B856=\"N\",\"\",IF($S856=\"-\",\"-\",IF(AND($S856=\"Y\",'Enrollment Form'!$CV863=\"No\"),\"-\",IF(AND($S856=\"Y\",'Enrollment Form'!$CV863=\"Yes\",'Enrollment Form'!$CW863<>\"\"),\"Y\",\"N\"))))","v":""},{"$f":"IF(OR('Enrollment Form'!$AY863=\"Yes\",'Enrollment Form'!$AY863=\"\"),\"-\",IF(OR(AND('Enrollment Form'!$AY863=\"No\",ISERROR(FIND(\"HMO\",VLOOKUP('Enrollment Form'!G863,'Enrollment Form'!H$11:J$1000,3,FALSE),1))=FALSE,COUNTA('Enrollment Form'!$AZ863:$BC863)=4),AND('Enrollment Form'!$AY863=\"No\",ISERROR(FIND(\"HMO\",VLOOKUP('Enrollment Form'!G863,'Enrollment Form'!H$11:J$1000,3,FALSE),1))=FALSE,COUNTA('Enrollment Form'!$BT863:$BW863)=4)),\"Y\",\"N\"))","v":"-"},{"$f":"IF($B856=\"N\",\"\",IF('Enrollment Form'!$B863=\"Subscriber\",\"-\",IF(COUNTA('Enrollment Form'!$BL863,'Enrollment Form'!$BN863)=2,\"Y\",\"N\")))","v":""},{"$f":"IF($B856=\"N\",\"\",IF(OR('Enrollment Form'!$AX863=\"\",'Enrollment Form'!$AX863=\"No\"),\"-\",IF(AND('Enrollment Form'!$AX863=\"Yes\",COUNTA('Enrollment Form'!$CR863)=1),\"Y\",\"N\")))","v":""},{"$f":"IF(OR('Enrollment Form'!$CR863=\"\",'Enrollment Form'!$CR863=\"No\"),\"-\",IF(COUNTA('Enrollment Form'!$CT863:$CU863)=2,\"Y\",\"N\"))","v":"-"},{"$f":"IF($B856=\"N\",\"\",IF(COUNTIF('Enrollment Form'!$DG863:$DP863,\"Other\")=COUNTA('Enrollment Form'!$DK863,'Enrollment Form'!$DH863,'Enrollment Form'!$DN863,'Enrollment Form'!$DQ863),\"Y\",\"N\"))","v":""},{"$f":"IF($B856=\"N\",\"\",IF(OR('Enrollment Form'!B863<>\"Subscriber\",'Enrollment Form'!C863=\"ROC\",COUNTIF('Enrollment Form'!AV863:AW863,\"Yes\")>=1),\"-\",IF(AND('Enrollment Form'!C863=\"Enroll\",COUNTIF('Enrollment Form'!AV863:AW863,\"No\")=2,'Enrollment Form'!AX863=\"\"),\"N\",\"Y\")))","v":""},{"$f":"IF(OR(B856=\"N\",'Enrollment Form'!B863<>\"Subscriber\",'Enrollment Form'!C863=\"ROC\",'Enrollment Form'!O863<>\"Multiple of Salary\"),\"-\",IF(COUNTA('Enrollment Form'!T863:U863)<2,\"N\",\"Y\"))","v":"-"},{"$f":"IF(B856=\"N\",\"\",IF(OR('Enrollment Form'!C863=\"ROC\",'Enrollment Form'!B863<>\"Subscriber\",'Enrollment Form'!O863=\"Waive\",'Enrollment Form'!O863=\"\"),\"-\",IF('Enrollment Form'!P863=\"\",\"N\",\"Y\")))","v":""},{"$f":"IF($B856=\"N\",\"\",IF(AND('Enrollment Form'!$C863=\"ROC\",'Enrollment Form'!$DR863<>\"\"),\"Y\",IF(AND('Enrollment Form'!$C863=\"ROC\",'Enrollment Form'!$DR863=\"\"),\"N\",IF(AND('Enrollment Form'!$C863=\"Enroll\",'Enrollment Form'!$B863=\"Subscriber\",'Enrollment Form'!$CX863=\"No\",'Enrollment Form'!$DR863=\"\"),\"N\",IF(AND('Enrollment Form'!$C863=\"Enroll\",'Enrollment Form'!$B863=\"Subscriber\",'Enrollment Form'!$CX863=\"Yes\"),\"-\",\"Y\")))))","v":""},{"$f":"IF($B856=\"N\",\"\",IF(AND('Enrollment Form'!$C863=\"ROC\",'Enrollment Form'!$DS863<>\"\"),\"Y\",IF(AND('Enrollment Form'!$C863=\"ROC\",'Enrollment Form'!$DS863=\"\"),\"N\",IF(AND('Enrollment Form'!$C863=\"Enroll\",'Enrollment Form'!$B863=\"Subscriber\",'Enrollment Form'!$CX863=\"No\",'Enrollment Form'!$DS863=\"\"),\"N\",IF(AND('Enrollment Form'!$C863=\"Enroll\",'Enrollment Form'!$B863=\"Subscriber\",'Enrollment Form'!$CX863=\"Yes\"),\"-\",\"Y\")))))","v":""},{"$f":"IF('Enrollment Form'!AH863=\"\",\"\",IF(ISERROR(SEARCH(\".\",'Enrollment Form'!AH863,SEARCH(\"@\",'Enrollment Form'!AH863))),\"N\",\"Y\"))","v":""},{"$f":"IF(OR($B856=\"N\",'Enrollment Form'!$G863=\"\"),\"\",IF('Enrollment Form'!$B863<>\"Subscriber\",\"-\",IF(COUNTIF('Enrollment Form'!$AV863:$AW863,\"Yes\")=2,\"N\",\"Y\")))","v":""},{"$f":"IF(OR('Enrollment Form'!$CJ863=\"\",'Enrollment Form'!$CJ863=\"No\"),\"-\",IF(AND('Enrollment Form'!$CJ863=\"Yes\",'Enrollment Form'!$CK863=\"\"),\"N\",\"Y\"))","v":"-"},{"$f":"IF(OR('Enrollment Form'!$CL863=\"\",'Enrollment Form'!$CL863=\"No\"),\"-\",IF(AND('Enrollment Form'!$CL863=\"Yes\",'Enrollment Form'!$CM863=\"\"),\"N\",\"Y\"))","v":"-"},{"$f":"IF(OR('Enrollment Form'!$CN863=\"\",'Enrollment Form'!$CN863=\"No\"),\"-\",IF(AND('Enrollment Form'!$CN863=\"Yes\",'Enrollment Form'!$CO863=\"\"),\"N\",\"Y\"))","v":"-"},{"$f":"IF(OR('Enrollment Form'!$CN863=\"\",'Enrollment Form'!$CN863=\"No\"),\"-\",IF(AND('Enrollment Form'!$CN863=\"Yes\",'Enrollment Form'!$CP863=\"\"),\"N\",\"Y\"))","v":"-"},{"$f":"IF('Enrollment Form'!B863<>\"Subscriber\",\"-\",IF(AND('Enrollment Form'!B863=\"Subscriber\",'Enrollment Form'!C863=\"Enroll\",'Enrollment Form'!AA863=\"\"),\"N\",\"Y\"))","v":"-"},{"$f":"IF(OR('Enrollment Form'!B863=\"Subscriber\",'Enrollment Form'!B863=\"\"),\"-\",IF('Enrollment Form'!BP863=\"\",\"N\",\"Y\"))","v":"-"},{"$f":"IF('Enrollment Form'!B863<>\"Subscriber\",\"-\",IF(AND('Enrollment Form'!B863=\"Subscriber\",'Enrollment Form'!G863=\"\"),\"N\",\"Y\"))","v":"-"},{"$f":"IF('Enrollment Form'!A863=\"\",\"\",IF('Enrollment Form'!B863=\"Subscriber\",\"-\",IF(AND('Enrollment Form'!B863<>\"Subscriber\",'Enrollment Form'!G863='Enrollment Form'!H863),\"N\",\"Y\")))","v":""},0]
[864,{"$f":"IF('Enrollment Form'!$A864<>\"\",\"Y\",\"N\")","v":"N"},{"$f":"IF(AND('Enrollment Form'!$B864=\"\",'Enrollment Form'!$C864<>\"\"),\"N\",IF($B857=\"N\",\"\",\"Y\"))","v":""},{"$f":"IF(OR($B857=\"N\",'Enrollment Form'!G864=\"\"),\"\",IF('Enrollment Form'!$B864<>\"Subscriber\",\"\",IF('Enrollment Form'!$G864='Enrollment Form'!$H864,\"Y\",\"N\")))","v":""},{"$f":"IF($B857=\"N\",\"\",IF(AND(COUNTIFS('Enrollment Form'!$H$11:$H$1000,'Enrollment Form'!$H864,'Enrollment Form'!$B$11:$B$1000,'Enrollment Form'!$B864)>1,'Enrollment Form'!$H864<>\"\"),\"N\",\"Y\"))","v":""},{"$f":"IF($B857=\"N\",\"\",IF(LEN('Enrollment Form'!$Y864)=0,\"\",IF(LEN('Enrollment Form'!$Y864)<>5,\"N\",\"Y\")))","v":""},{"$f":"IF($B857=\"N\",\"\",IF(LEN('Enrollment Form'!$AD864=0),\"\",IF(LEN('Enrollment Form'!$AD864)<>5,\"N\",\"Y\")))","v":""},{"$f":"IF($B857=\"N\",\"\",IF(LEN('Enrollment Form'!$BS864=0),\"\",IF(LEN('Enrollment Form'!$BS864)<>5,\"N\",\"Y\")))","v":""},{"$f":"IF($B857=\"N\",\"\",IF(LEN('Enrollment Form'!$AE864)=0,\"\",IF(LEN('Enrollment Form'!$AE864)<>10,\"N\",\"Y\")))","v":""},{"$f":"IF($B857=\"N\",\"\",IF(LEN('Enrollment Form'!$AF864)=0,\"\",IF(LEN('Enrollment Form'!$AF864)<>10,\"N\",\"Y\")))","v":""},{"$f":"IF('Enrollment Form'!$O864<>\"Graded\",\"-\",IF(AND('Enrollment Form'!$O864=\"Graded\",'Enrollment Form'!$AR864<>\"\"),\"Y\",\"N\"))","v":"-"},{"$f":"IF($B857=\"N\",\"\",IF(OR('Enrollment Form'!$B864<>\"Subscriber\",'Enrollment Form'!$C864=\"ROC\"),\"-\",IF(AND('Enrollment Form'!$B864=\"Subscriber\",'Enrollment Form'!$C864=\"Enroll\",'Enrollment Form'!$AJ864<>\"\"),\"Y\",\"N\")))","v":""},{"$f":"IF($B857=\"N\",\"\",IF(OR('Enrollment Form'!$B864<>\"Subscriber\",'Enrollment Form'!$C864=\"ROC\"),\"-\",IF(AND('Enrollment Form'!$B864=\"Subscriber\",'Enrollment Form'!$C864=\"Enroll\",'Enrollment Form'!$AK864<>\"\"),\"Y\",\"N\")))","v":""},{"$f":"IF($B857=\"N\",\"\",IF(OR('Enrollment Form'!$B864<>\"Subscriber\",'Enrollment Form'!$C864=\"ROC\"),\"-\",IF(AND('Enrollment Form'!$B864=\"Subscriber\",'Enrollment Form'!$C864=\"Enroll\",'Enrollment Form'!$AL864<>\"\"),\"Y\",\"N\")))","v":""},{"$f":"IF($B857=\"N\",\"\",IF(OR('Enrollment Form'!$B864<>\"Subscriber\",'Enrollment Form'!$C864=\"ROC\"),\"-\",IF(AND('Enrollment Form'!$B864=\"Subscriber\",'Enrollment Form'!$C864=\"Enroll\",'Enrollment Form'!$AP864<>\"\"),\"Y\",\"N\")))","v":""},{"$f":"IF($B857=\"N\",\"\",IF(OR('Enrollment Form'!$B864<>\"Subscriber\",'Enrollment Form'!$C864=\"ROC\"),\"-\",IF(AND('Enrollment Form'!$B864=\"Subscriber\",'Enrollment Form'!$C864=\"Enroll\",'Enrollment Form'!$AQ864<>\"\"),\"Y\",\"N\")))","v":""},{"$f":"IF($B857=\"N\",\"\",IF(OR('Enrollment Form'!$B864<>\"Subscriber\",'Enrollment Form'!$C864=\"ROC\"),\"-\",IF(AND('Enrollment Form'!$B864=\"Subscriber\",'Enrollment Form'!$C864=\"Enroll\",'Enrollment Form'!$AS864<>\"\"),\"Y\",\"N\")))","v":""},{"$f":"IF($B857=\"N\",\"\",IF($Q857=\"-\",\"-\",IF(AND($Q857=\"Y\",'Enrollment Form'!$AS864=\"No\"),\"-\",IF(AND($Q857=\"Y\",'Enrollment Form'!$AS864=\"Yes\",'Enrollment Form'!$AT864<>\"\"),\"Y\",\"N\"))))","v":""},{"$f":"IF($B857=\"N\",\"\",IF(OR('Enrollment Form'!$B864<>\"Subscriber\",'Enrollment Form'!$C864=\"ROC\"),\"-\",IF(AND('Enrollment Form'!$B864=\"Subscriber\",'Enrollment Form'!$C864=\"Enroll\",'Enrollment Form'!$CV864<>\"\"),\"Y\",\"N\")))","v":""},{"$f":"IF($B857=\"N\",\"\",IF($S857=\"-\",\"-\",IF(AND($S857=\"Y\",'Enrollment Form'!$CV864=\"No\"),\"-\",IF(AND($S857=\"Y\",'Enrollment Form'!$CV864=\"Yes\",'Enrollment Form'!$CW864<>\"\"),\"Y\",\"N\"))))","v":""},{"$f":"IF(OR('Enrollment Form'!$AY864=\"Yes\",'Enrollment Form'!$AY864=\"\"),\"-\",IF(OR(AND('Enrollment Form'!$AY864=\"No\",ISERROR(FIND(\"HMO\",VLOOKUP('Enrollment Form'!G864,'Enrollment Form'!H$11:J$1000,3,FALSE),1))=FALSE,COUNTA('Enrollment Form'!$AZ864:$BC864)=4),AND('Enrollment Form'!$AY864=\"No\",ISERROR(FIND(\"HMO\",VLOOKUP('Enrollment Form'!G864,'Enrollment Form'!H$11:J$1000,3,FALSE),1))=FALSE,COUNTA('Enrollment Form'!$BT864:$BW864)=4)),\"Y\",\"N\"))","v":"-"},{"$f":"IF($B857=\"N\",\"\",IF('Enrollment Form'!$B864=\"Subscriber\",\"-\",IF(COUNTA('Enrollment Form'!$BL864,'Enrollment Form'!$BN864)=2,\"Y\",\"N\")))","v":""},{"$f":"IF($B857=\"N\",\"\",IF(OR('Enrollment Form'!$AX864=\"\",'Enrollment Form'!$AX864=\"No\"),\"-\",IF(AND('Enrollment Form'!$AX864=\"Yes\",COUNTA('Enrollment Form'!$CR864)=1),\"Y\",\"N\")))","v":""},{"$f":"IF(OR('Enrollment Form'!$CR864=\"\",'Enrollment Form'!$CR864=\"No\"),\"-\",IF(COUNTA('Enrollment Form'!$CT864:$CU864)=2,\"Y\",\"N\"))","v":"-"},{"$f":"IF($B857=\"N\",\"\",IF(COUNTIF('Enrollment Form'!$DG864:$DP864,\"Other\")=COUNTA('Enrollment Form'!$DK864,'Enrollment Form'!$DH864,'Enrollment Form'!$DN864,'Enrollment Form'!$DQ864),\"Y\",\"N\"))","v":""},{"$f":"IF($B857=\"N\",\"\",IF(OR('Enrollment Form'!B864<>\"Subscriber\",'Enrollment Form'!C864=\"ROC\",COUNTIF('Enrollment Form'!AV864:AW864,\"Yes\")>=1),\"-\",IF(AND('Enrollment Form'!C864=\"Enroll\",COUNTIF('Enrollment Form'!AV864:AW864,\"No\")=2,'Enrollment Form'!AX864=\"\"),\"N\",\"Y\")))","v":""},{"$f":"IF(OR(B857=\"N\",'Enrollment Form'!B864<>\"Subscriber\",'Enrollment Form'!C864=\"ROC\",'Enrollment Form'!O864<>\"Multiple of Salary\"),\"-\",IF(COUNTA('Enrollment Form'!T864:U864)<2,\"N\",\"Y\"))","v":"-"},{"$f":"IF(B857=\"N\",\"\",IF(OR('Enrollment Form'!C864=\"ROC\",'Enrollment Form'!B864<>\"Subscriber\",'Enrollment Form'!O864=\"Waive\",'Enrollment Form'!O864=\"\"),\"-\",IF('Enrollment Form'!P864=\"\",\"N\",\"Y\")))","v":""},{"$f":"IF($B857=\"N\",\"\",IF(AND('Enrollment Form'!$C864=\"ROC\",'Enrollment Form'!$DR864<>\"\"),\"Y\",IF(AND('Enrollment Form'!$C864=\"ROC\",'Enrollment Form'!$DR864=\"\"),\"N\",IF(AND('Enrollment Form'!$C864=\"Enroll\",'Enrollment Form'!$B864=\"Subscriber\",'Enrollment Form'!$CX864=\"No\",'Enrollment Form'!$DR864=\"\"),\"N\",IF(AND('Enrollment Form'!$C864=\"Enroll\",'Enrollment Form'!$B864=\"Subscriber\",'Enrollment Form'!$CX864=\"Yes\"),\"-\",\"Y\")))))","v":""},{"$f":"IF($B857=\"N\",\"\",IF(AND('Enrollment Form'!$C864=\"ROC\",'Enrollment Form'!$DS864<>\"\"),\"Y\",IF(AND('Enrollment Form'!$C864=\"ROC\",'Enrollment Form'!$DS864=\"\"),\"N\",IF(AND('Enrollment Form'!$C864=\"Enroll\",'Enrollment Form'!$B864=\"Subscriber\",'Enrollment Form'!$CX864=\"No\",'Enrollment Form'!$DS864=\"\"),\"N\",IF(AND('Enrollment Form'!$C864=\"Enroll\",'Enrollment Form'!$B864=\"Subscriber\",'Enrollment Form'!$CX864=\"Yes\"),\"-\",\"Y\")))))","v":""},{"$f":"IF('Enrollment Form'!AH864=\"\",\"\",IF(ISERROR(SEARCH(\".\",'Enrollment Form'!AH864,SEARCH(\"@\",'Enrollment Form'!AH864))),\"N\",\"Y\"))","v":""},{"$f":"IF(OR($B857=\"N\",'Enrollment Form'!$G864=\"\"),\"\",IF('Enrollment Form'!$B864<>\"Subscriber\",\"-\",IF(COUNTIF('Enrollment Form'!$AV864:$AW864,\"Yes\")=2,\"N\",\"Y\")))","v":""},{"$f":"IF(OR('Enrollment Form'!$CJ864=\"\",'Enrollment Form'!$CJ864=\"No\"),\"-\",IF(AND('Enrollment Form'!$CJ864=\"Yes\",'Enrollment Form'!$CK864=\"\"),\"N\",\"Y\"))","v":"-"},{"$f":"IF(OR('Enrollment Form'!$CL864=\"\",'Enrollment Form'!$CL864=\"No\"),\"-\",IF(AND('Enrollment Form'!$CL864=\"Yes\",'Enrollment Form'!$CM864=\"\"),\"N\",\"Y\"))","v":"-"},{"$f":"IF(OR('Enrollment Form'!$CN864=\"\",'Enrollment Form'!$CN864=\"No\"),\"-\",IF(AND('Enrollment Form'!$CN864=\"Yes\",'Enrollment Form'!$CO864=\"\"),\"N\",\"Y\"))","v":"-"},{"$f":"IF(OR('Enrollment Form'!$CN864=\"\",'Enrollment Form'!$CN864=\"No\"),\"-\",IF(AND('Enrollment Form'!$CN864=\"Yes\",'Enrollment Form'!$CP864=\"\"),\"N\",\"Y\"))","v":"-"},{"$f":"IF('Enrollment Form'!B864<>\"Subscriber\",\"-\",IF(AND('Enrollment Form'!B864=\"Subscriber\",'Enrollment Form'!C864=\"Enroll\",'Enrollment Form'!AA864=\"\"),\"N\",\"Y\"))","v":"-"},{"$f":"IF(OR('Enrollment Form'!B864=\"Subscriber\",'Enrollment Form'!B864=\"\"),\"-\",IF('Enrollment Form'!BP864=\"\",\"N\",\"Y\"))","v":"-"},{"$f":"IF('Enrollment Form'!B864<>\"Subscriber\",\"-\",IF(AND('Enrollment Form'!B864=\"Subscriber\",'Enrollment Form'!G864=\"\"),\"N\",\"Y\"))","v":"-"},{"$f":"IF('Enrollment Form'!A864=\"\",\"\",IF('Enrollment Form'!B864=\"Subscriber\",\"-\",IF(AND('Enrollment Form'!B864<>\"Subscriber\",'Enrollment Form'!G864='Enrollment Form'!H864),\"N\",\"Y\")))","v":""},0]
[865,{"$f":"IF('Enrollment Form'!$A865<>\"\",\"Y\",\"N\")","v":"N"},{"$f":"IF(AND('Enrollment Form'!$B865=\"\",'Enrollment Form'!$C865<>\"\"),\"N\",IF($B858=\"N\",\"\",\"Y\"))","v":""},{"$f":"IF(OR($B858=\"N\",'Enrollment Form'!G865=\"\"),\"\",IF('Enrollment Form'!$B865<>\"Subscriber\",\"\",IF('Enrollment Form'!$G865='Enrollment Form'!$H865,\"Y\",\"N\")))","v":""},{"$f":"IF($B858=\"N\",\"\",IF(AND(COUNTIFS('Enrollment Form'!$H$11:$H$1000,'Enrollment Form'!$H865,'Enrollment Form'!$B$11:$B$1000,'Enrollment Form'!$B865)>1,'Enrollment Form'!$H865<>\"\"),\"N\",\"Y\"))","v":""},{"$f":"IF($B858=\"N\",\"\",IF(LEN('Enrollment Form'!$Y865)=0,\"\",IF(LEN('Enrollment Form'!$Y865)<>5,\"N\",\"Y\")))","v":""},{"$f":"IF($B858=\"N\",\"\",IF(LEN('Enrollment Form'!$AD865=0),\"\",IF(LEN('Enrollment Form'!$AD865)<>5,\"N\",\"Y\")))","v":""},{"$f":"IF($B858=\"N\",\"\",IF(LEN('Enrollment Form'!$BS865=0),\"\",IF(LEN('Enrollment Form'!$BS865)<>5,\"N\",\"Y\")))","v":""},{"$f":"IF($B858=\"N\",\"\",IF(LEN('Enrollment Form'!$AE865)=0,\"\",IF(LEN('Enrollment Form'!$AE865)<>10,\"N\",\"Y\")))","v":""},{"$f":"IF($B858=\"N\",\"\",IF(LEN('Enrollment Form'!$AF865)=0,\"\",IF(LEN('Enrollment Form'!$AF865)<>10,\"N\",\"Y\")))","v":""},{"$f":"IF('Enrollment Form'!$O865<>\"Graded\",\"-\",IF(AND('Enrollment Form'!$O865=\"Graded\",'Enrollment Form'!$AR865<>\"\"),\"Y\",\"N\"))","v":"-"},{"$f":"IF($B858=\"N\",\"\",IF(OR('Enrollment Form'!$B865<>\"Subscriber\",'Enrollment Form'!$C865=\"ROC\"),\"-\",IF(AND('Enrollment Form'!$B865=\"Subscriber\",'Enrollment Form'!$C865=\"Enroll\",'Enrollment Form'!$AJ865<>\"\"),\"Y\",\"N\")))","v":""},{"$f":"IF($B858=\"N\",\"\",IF(OR('Enrollment Form'!$B865<>\"Subscriber\",'Enrollment Form'!$C865=\"ROC\"),\"-\",IF(AND('Enrollment Form'!$B865=\"Subscriber\",'Enrollment Form'!$C865=\"Enroll\",'Enrollment Form'!$AK865<>\"\"),\"Y\",\"N\")))","v":""},{"$f":"IF($B858=\"N\",\"\",IF(OR('Enrollment Form'!$B865<>\"Subscriber\",'Enrollment Form'!$C865=\"ROC\"),\"-\",IF(AND('Enrollment Form'!$B865=\"Subscriber\",'Enrollment Form'!$C865=\"Enroll\",'Enrollment Form'!$AL865<>\"\"),\"Y\",\"N\")))","v":""},{"$f":"IF($B858=\"N\",\"\",IF(OR('Enrollment Form'!$B865<>\"Subscriber\",'Enrollment Form'!$C865=\"ROC\"),\"-\",IF(AND('Enrollment Form'!$B865=\"Subscriber\",'Enrollment Form'!$C865=\"Enroll\",'Enrollment Form'!$AP865<>\"\"),\"Y\",\"N\")))","v":""},{"$f":"IF($B858=\"N\",\"\",IF(OR('Enrollment Form'!$B865<>\"Subscriber\",'Enrollment Form'!$C865=\"ROC\"),\"-\",IF(AND('Enrollment Form'!$B865=\"Subscriber\",'Enrollment Form'!$C865=\"Enroll\",'Enrollment Form'!$AQ865<>\"\"),\"Y\",\"N\")))","v":""},{"$f":"IF($B858=\"N\",\"\",IF(OR('Enrollment Form'!$B865<>\"Subscriber\",'Enrollment Form'!$C865=\"ROC\"),\"-\",IF(AND('Enrollment Form'!$B865=\"Subscriber\",'Enrollment Form'!$C865=\"Enroll\",'Enrollment Form'!$AS865<>\"\"),\"Y\",\"N\")))","v":""},{"$f":"IF($B858=\"N\",\"\",IF($Q858=\"-\",\"-\",IF(AND($Q858=\"Y\",'Enrollment Form'!$AS865=\"No\"),\"-\",IF(AND($Q858=\"Y\",'Enrollment Form'!$AS865=\"Yes\",'Enrollment Form'!$AT865<>\"\"),\"Y\",\"N\"))))","v":""},{"$f":"IF($B858=\"N\",\"\",IF(OR('Enrollment Form'!$B865<>\"Subscriber\",'Enrollment Form'!$C865=\"ROC\"),\"-\",IF(AND('Enrollment Form'!$B865=\"Subscriber\",'Enrollment Form'!$C865=\"Enroll\",'Enrollment Form'!$CV865<>\"\"),\"Y\",\"N\")))","v":""},{"$f":"IF($B858=\"N\",\"\",IF($S858=\"-\",\"-\",IF(AND($S858=\"Y\",'Enrollment Form'!$CV865=\"No\"),\"-\",IF(AND($S858=\"Y\",'Enrollment Form'!$CV865=\"Yes\",'Enrollment Form'!$CW865<>\"\"),\"Y\",\"N\"))))","v":""},{"$f":"IF(OR('Enrollment Form'!$AY865=\"Yes\",'Enrollment Form'!$AY865=\"\"),\"-\",IF(OR(AND('Enrollment Form'!$AY865=\"No\",ISERROR(FIND(\"HMO\",VLOOKUP('Enrollment Form'!G865,'Enrollment Form'!H$11:J$1000,3,FALSE),1))=FALSE,COUNTA('Enrollment Form'!$AZ865:$BC865)=4),AND('Enrollment Form'!$AY865=\"No\",ISERROR(FIND(\"HMO\",VLOOKUP('Enrollment Form'!G865,'Enrollment Form'!H$11:J$1000,3,FALSE),1))=FALSE,COUNTA('Enrollment Form'!$BT865:$BW865)=4)),\"Y\",\"N\"))","v":"-"},{"$f":"IF($B858=\"N\",\"\",IF('Enrollment Form'!$B865=\"Subscriber\",\"-\",IF(COUNTA('Enrollment Form'!$BL865,'Enrollment Form'!$BN865)=2,\"Y\",\"N\")))","v":""},{"$f":"IF($B858=\"N\",\"\",IF(OR('Enrollment Form'!$AX865=\"\",'Enrollment Form'!$AX865=\"No\"),\"-\",IF(AND('Enrollment Form'!$AX865=\"Yes\",COUNTA('Enrollment Form'!$CR865)=1),\"Y\",\"N\")))","v":""},{"$f":"IF(OR('Enrollment Form'!$CR865=\"\",'Enrollment Form'!$CR865=\"No\"),\"-\",IF(COUNTA('Enrollment Form'!$CT865:$CU865)=2,\"Y\",\"N\"))","v":"-"},{"$f":"IF($B858=\"N\",\"\",IF(COUNTIF('Enrollment Form'!$DG865:$DP865,\"Other\")=COUNTA('Enrollment Form'!$DK865,'Enrollment Form'!$DH865,'Enrollment Form'!$DN865,'Enrollment Form'!$DQ865),\"Y\",\"N\"))","v":""},{"$f":"IF($B858=\"N\",\"\",IF(OR('Enrollment Form'!B865<>\"Subscriber\",'Enrollment Form'!C865=\"ROC\",COUNTIF('Enrollment Form'!AV865:AW865,\"Yes\")>=1),\"-\",IF(AND('Enrollment Form'!C865=\"Enroll\",COUNTIF('Enrollment Form'!AV865:AW865,\"No\")=2,'Enrollment Form'!AX865=\"\"),\"N\",\"Y\")))","v":""},{"$f":"IF(OR(B858=\"N\",'Enrollment Form'!B865<>\"Subscriber\",'Enrollment Form'!C865=\"ROC\",'Enrollment Form'!O865<>\"Multiple of Salary\"),\"-\",IF(COUNTA('Enrollment Form'!T865:U865)<2,\"N\",\"Y\"))","v":"-"},{"$f":"IF(B858=\"N\",\"\",IF(OR('Enrollment Form'!C865=\"ROC\",'Enrollment Form'!B865<>\"Subscriber\",'Enrollment Form'!O865=\"Waive\",'Enrollment Form'!O865=\"\"),\"-\",IF('Enrollment Form'!P865=\"\",\"N\",\"Y\")))","v":""},{"$f":"IF($B858=\"N\",\"\",IF(AND('Enrollment Form'!$C865=\"ROC\",'Enrollment Form'!$DR865<>\"\"),\"Y\",IF(AND('Enrollment Form'!$C865=\"ROC\",'Enrollment Form'!$DR865=\"\"),\"N\",IF(AND('Enrollment Form'!$C865=\"Enroll\",'Enrollment Form'!$B865=\"Subscriber\",'Enrollment Form'!$CX865=\"No\",'Enrollment Form'!$DR865=\"\"),\"N\",IF(AND('Enrollment Form'!$C865=\"Enroll\",'Enrollment Form'!$B865=\"Subscriber\",'Enrollment Form'!$CX865=\"Yes\"),\"-\",\"Y\")))))","v":""},{"$f":"IF($B858=\"N\",\"\",IF(AND('Enrollment Form'!$C865=\"ROC\",'Enrollment Form'!$DS865<>\"\"),\"Y\",IF(AND('Enrollment Form'!$C865=\"ROC\",'Enrollment Form'!$DS865=\"\"),\"N\",IF(AND('Enrollment Form'!$C865=\"Enroll\",'Enrollment Form'!$B865=\"Subscriber\",'Enrollment Form'!$CX865=\"No\",'Enrollment Form'!$DS865=\"\"),\"N\",IF(AND('Enrollment Form'!$C865=\"Enroll\",'Enrollment Form'!$B865=\"Subscriber\",'Enrollment Form'!$CX865=\"Yes\"),\"-\",\"Y\")))))","v":""},{"$f":"IF('Enrollment Form'!AH865=\"\",\"\",IF(ISERROR(SEARCH(\".\",'Enrollment Form'!AH865,SEARCH(\"@\",'Enrollment Form'!AH865))),\"N\",\"Y\"))","v":""},{"$f":"IF(OR($B858=\"N\",'Enrollment Form'!$G865=\"\"),\"\",IF('Enrollment Form'!$B865<>\"Subscriber\",\"-\",IF(COUNTIF('Enrollment Form'!$AV865:$AW865,\"Yes\")=2,\"N\",\"Y\")))","v":""},{"$f":"IF(OR('Enrollment Form'!$CJ865=\"\",'Enrollment Form'!$CJ865=\"No\"),\"-\",IF(AND('Enrollment Form'!$CJ865=\"Yes\",'Enrollment Form'!$CK865=\"\"),\"N\",\"Y\"))","v":"-"},{"$f":"IF(OR('Enrollment Form'!$CL865=\"\",'Enrollment Form'!$CL865=\"No\"),\"-\",IF(AND('Enrollment Form'!$CL865=\"Yes\",'Enrollment Form'!$CM865=\"\"),\"N\",\"Y\"))","v":"-"},{"$f":"IF(OR('Enrollment Form'!$CN865=\"\",'Enrollment Form'!$CN865=\"No\"),\"-\",IF(AND('Enrollment Form'!$CN865=\"Yes\",'Enrollment Form'!$CO865=\"\"),\"N\",\"Y\"))","v":"-"},{"$f":"IF(OR('Enrollment Form'!$CN865=\"\",'Enrollment Form'!$CN865=\"No\"),\"-\",IF(AND('Enrollment Form'!$CN865=\"Yes\",'Enrollment Form'!$CP865=\"\"),\"N\",\"Y\"))","v":"-"},{"$f":"IF('Enrollment Form'!B865<>\"Subscriber\",\"-\",IF(AND('Enrollment Form'!B865=\"Subscriber\",'Enrollment Form'!C865=\"Enroll\",'Enrollment Form'!AA865=\"\"),\"N\",\"Y\"))","v":"-"},{"$f":"IF(OR('Enrollment Form'!B865=\"Subscriber\",'Enrollment Form'!B865=\"\"),\"-\",IF('Enrollment Form'!BP865=\"\",\"N\",\"Y\"))","v":"-"},{"$f":"IF('Enrollment Form'!B865<>\"Subscriber\",\"-\",IF(AND('Enrollment Form'!B865=\"Subscriber\",'Enrollment Form'!G865=\"\"),\"N\",\"Y\"))","v":"-"},{"$f":"IF('Enrollment Form'!A865=\"\",\"\",IF('Enrollment Form'!B865=\"Subscriber\",\"-\",IF(AND('Enrollment Form'!B865<>\"Subscriber\",'Enrollment Form'!G865='Enrollment Form'!H865),\"N\",\"Y\")))","v":""},0]
[866,{"$f":"IF('Enrollment Form'!$A866<>\"\",\"Y\",\"N\")","v":"N"},{"$f":"IF(AND('Enrollment Form'!$B866=\"\",'Enrollment Form'!$C866<>\"\"),\"N\",IF($B859=\"N\",\"\",\"Y\"))","v":""},{"$f":"IF(OR($B859=\"N\",'Enrollment Form'!G866=\"\"),\"\",IF('Enrollment Form'!$B866<>\"Subscriber\",\"\",IF('Enrollment Form'!$G866='Enrollment Form'!$H866,\"Y\",\"N\")))","v":""},{"$f":"IF($B859=\"N\",\"\",IF(AND(COUNTIFS('Enrollment Form'!$H$11:$H$1000,'Enrollment Form'!$H866,'Enrollment Form'!$B$11:$B$1000,'Enrollment Form'!$B866)>1,'Enrollment Form'!$H866<>\"\"),\"N\",\"Y\"))","v":""},{"$f":"IF($B859=\"N\",\"\",IF(LEN('Enrollment Form'!$Y866)=0,\"\",IF(LEN('Enrollment Form'!$Y866)<>5,\"N\",\"Y\")))","v":""},{"$f":"IF($B859=\"N\",\"\",IF(LEN('Enrollment Form'!$AD866=0),\"\",IF(LEN('Enrollment Form'!$AD866)<>5,\"N\",\"Y\")))","v":""},{"$f":"IF($B859=\"N\",\"\",IF(LEN('Enrollment Form'!$BS866=0),\"\",IF(LEN('Enrollment Form'!$BS866)<>5,\"N\",\"Y\")))","v":""},{"$f":"IF($B859=\"N\",\"\",IF(LEN('Enrollment Form'!$AE866)=0,\"\",IF(LEN('Enrollment Form'!$AE866)<>10,\"N\",\"Y\")))","v":""},{"$f":"IF($B859=\"N\",\"\",IF(LEN('Enrollment Form'!$AF866)=0,\"\",IF(LEN('Enrollment Form'!$AF866)<>10,\"N\",\"Y\")))","v":""},{"$f":"IF('Enrollment Form'!$O866<>\"Graded\",\"-\",IF(AND('Enrollment Form'!$O866=\"Graded\",'Enrollment Form'!$AR866<>\"\"),\"Y\",\"N\"))","v":"-"},{"$f":"IF($B859=\"N\",\"\",IF(OR('Enrollment Form'!$B866<>\"Subscriber\",'Enrollment Form'!$C866=\"ROC\"),\"-\",IF(AND('Enrollment Form'!$B866=\"Subscriber\",'Enrollment Form'!$C866=\"Enroll\",'Enrollment Form'!$AJ866<>\"\"),\"Y\",\"N\")))","v":""},{"$f":"IF($B859=\"N\",\"\",IF(OR('Enrollment Form'!$B866<>\"Subscriber\",'Enrollment Form'!$C866=\"ROC\"),\"-\",IF(AND('Enrollment Form'!$B866=\"Subscriber\",'Enrollment Form'!$C866=\"Enroll\",'Enrollment Form'!$AK866<>\"\"),\"Y\",\"N\")))","v":""},{"$f":"IF($B859=\"N\",\"\",IF(OR('Enrollment Form'!$B866<>\"Subscriber\",'Enrollment Form'!$C866=\"ROC\"),\"-\",IF(AND('Enrollment Form'!$B866=\"Subscriber\",'Enrollment Form'!$C866=\"Enroll\",'Enrollment Form'!$AL866<>\"\"),\"Y\",\"N\")))","v":""},{"$f":"IF($B859=\"N\",\"\",IF(OR('Enrollment Form'!$B866<>\"Subscriber\",'Enrollment Form'!$C866=\"ROC\"),\"-\",IF(AND('Enrollment Form'!$B866=\"Subscriber\",'Enrollment Form'!$C866=\"Enroll\",'Enrollment Form'!$AP866<>\"\"),\"Y\",\"N\")))","v":""},{"$f":"IF($B859=\"N\",\"\",IF(OR('Enrollment Form'!$B866<>\"Subscriber\",'Enrollment Form'!$C866=\"ROC\"),\"-\",IF(AND('Enrollment Form'!$B866=\"Subscriber\",'Enrollment Form'!$C866=\"Enroll\",'Enrollment Form'!$AQ866<>\"\"),\"Y\",\"N\")))","v":""},{"$f":"IF($B859=\"N\",\"\",IF(OR('Enrollment Form'!$B866<>\"Subscriber\",'Enrollment Form'!$C866=\"ROC\"),\"-\",IF(AND('Enrollment Form'!$B866=\"Subscriber\",'Enrollment Form'!$C866=\"Enroll\",'Enrollment Form'!$AS866<>\"\"),\"Y\",\"N\")))","v":""},{"$f":"IF($B859=\"N\",\"\",IF($Q859=\"-\",\"-\",IF(AND($Q859=\"Y\",'Enrollment Form'!$AS866=\"No\"),\"-\",IF(AND($Q859=\"Y\",'Enrollment Form'!$AS866=\"Yes\",'Enrollment Form'!$AT866<>\"\"),\"Y\",\"N\"))))","v":""},{"$f":"IF($B859=\"N\",\"\",IF(OR('Enrollment Form'!$B866<>\"Subscriber\",'Enrollment Form'!$C866=\"ROC\"),\"-\",IF(AND('Enrollment Form'!$B866=\"Subscriber\",'Enrollment Form'!$C866=\"Enroll\",'Enrollment Form'!$CV866<>\"\"),\"Y\",\"N\")))","v":""},{"$f":"IF($B859=\"N\",\"\",IF($S859=\"-\",\"-\",IF(AND($S859=\"Y\",'Enrollment Form'!$CV866=\"No\"),\"-\",IF(AND($S859=\"Y\",'Enrollment Form'!$CV866=\"Yes\",'Enrollment Form'!$CW866<>\"\"),\"Y\",\"N\"))))","v":""},{"$f":"IF(OR('Enrollment Form'!$AY866=\"Yes\",'Enrollment Form'!$AY866=\"\"),\"-\",IF(OR(AND('Enrollment Form'!$AY866=\"No\",ISERROR(FIND(\"HMO\",VLOOKUP('Enrollment Form'!G866,'Enrollment Form'!H$11:J$1000,3,FALSE),1))=FALSE,COUNTA('Enrollment Form'!$AZ866:$BC866)=4),AND('Enrollment Form'!$AY866=\"No\",ISERROR(FIND(\"HMO\",VLOOKUP('Enrollment Form'!G866,'Enrollment Form'!H$11:J$1000,3,FALSE),1))=FALSE,COUNTA('Enrollment Form'!$BT866:$BW866)=4)),\"Y\",\"N\"))","v":"-"},{"$f":"IF($B859=\"N\",\"\",IF('Enrollment Form'!$B866=\"Subscriber\",\"-\",IF(COUNTA('Enrollment Form'!$BL866,'Enrollment Form'!$BN866)=2,\"Y\",\"N\")))","v":""},{"$f":"IF($B859=\"N\",\"\",IF(OR('Enrollment Form'!$AX866=\"\",'Enrollment Form'!$AX866=\"No\"),\"-\",IF(AND('Enrollment Form'!$AX866=\"Yes\",COUNTA('Enrollment Form'!$CR866)=1),\"Y\",\"N\")))","v":""},{"$f":"IF(OR('Enrollment Form'!$CR866=\"\",'Enrollment Form'!$CR866=\"No\"),\"-\",IF(COUNTA('Enrollment Form'!$CT866:$CU866)=2,\"Y\",\"N\"))","v":"-"},{"$f":"IF($B859=\"N\",\"\",IF(COUNTIF('Enrollment Form'!$DG866:$DP866,\"Other\")=COUNTA('Enrollment Form'!$DK866,'Enrollment Form'!$DH866,'Enrollment Form'!$DN866,'Enrollment Form'!$DQ866),\"Y\",\"N\"))","v":""},{"$f":"IF($B859=\"N\",\"\",IF(OR('Enrollment Form'!B866<>\"Subscriber\",'Enrollment Form'!C866=\"ROC\",COUNTIF('Enrollment Form'!AV866:AW866,\"Yes\")>=1),\"-\",IF(AND('Enrollment Form'!C866=\"Enroll\",COUNTIF('Enrollment Form'!AV866:AW866,\"No\")=2,'Enrollment Form'!AX866=\"\"),\"N\",\"Y\")))","v":""},{"$f":"IF(OR(B859=\"N\",'Enrollment Form'!B866<>\"Subscriber\",'Enrollment Form'!C866=\"ROC\",'Enrollment Form'!O866<>\"Multiple of Salary\"),\"-\",IF(COUNTA('Enrollment Form'!T866:U866)<2,\"N\",\"Y\"))","v":"-"},{"$f":"IF(B859=\"N\",\"\",IF(OR('Enrollment Form'!C866=\"ROC\",'Enrollment Form'!B866<>\"Subscriber\",'Enrollment Form'!O866=\"Waive\",'Enrollment Form'!O866=\"\"),\"-\",IF('Enrollment Form'!P866=\"\",\"N\",\"Y\")))","v":""},{"$f":"IF($B859=\"N\",\"\",IF(AND('Enrollment Form'!$C866=\"ROC\",'Enrollment Form'!$DR866<>\"\"),\"Y\",IF(AND('Enrollment Form'!$C866=\"ROC\",'Enrollment Form'!$DR866=\"\"),\"N\",IF(AND('Enrollment Form'!$C866=\"Enroll\",'Enrollment Form'!$B866=\"Subscriber\",'Enrollment Form'!$CX866=\"No\",'Enrollment Form'!$DR866=\"\"),\"N\",IF(AND('Enrollment Form'!$C866=\"Enroll\",'Enrollment Form'!$B866=\"Subscriber\",'Enrollment Form'!$CX866=\"Yes\"),\"-\",\"Y\")))))","v":""},{"$f":"IF($B859=\"N\",\"\",IF(AND('Enrollment Form'!$C866=\"ROC\",'Enrollment Form'!$DS866<>\"\"),\"Y\",IF(AND('Enrollment Form'!$C866=\"ROC\",'Enrollment Form'!$DS866=\"\"),\"N\",IF(AND('Enrollment Form'!$C866=\"Enroll\",'Enrollment Form'!$B866=\"Subscriber\",'Enrollment Form'!$CX866=\"No\",'Enrollment Form'!$DS866=\"\"),\"N\",IF(AND('Enrollment Form'!$C866=\"Enroll\",'Enrollment Form'!$B866=\"Subscriber\",'Enrollment Form'!$CX866=\"Yes\"),\"-\",\"Y\")))))","v":""},{"$f":"IF('Enrollment Form'!AH866=\"\",\"\",IF(ISERROR(SEARCH(\".\",'Enrollment Form'!AH866,SEARCH(\"@\",'Enrollment Form'!AH866))),\"N\",\"Y\"))","v":""},{"$f":"IF(OR($B859=\"N\",'Enrollment Form'!$G866=\"\"),\"\",IF('Enrollment Form'!$B866<>\"Subscriber\",\"-\",IF(COUNTIF('Enrollment Form'!$AV866:$AW866,\"Yes\")=2,\"N\",\"Y\")))","v":""},{"$f":"IF(OR('Enrollment Form'!$CJ866=\"\",'Enrollment Form'!$CJ866=\"No\"),\"-\",IF(AND('Enrollment Form'!$CJ866=\"Yes\",'Enrollment Form'!$CK866=\"\"),\"N\",\"Y\"))","v":"-"},{"$f":"IF(OR('Enrollment Form'!$CL866=\"\",'Enrollment Form'!$CL866=\"No\"),\"-\",IF(AND('Enrollment Form'!$CL866=\"Yes\",'Enrollment Form'!$CM866=\"\"),\"N\",\"Y\"))","v":"-"},{"$f":"IF(OR('Enrollment Form'!$CN866=\"\",'Enrollment Form'!$CN866=\"No\"),\"-\",IF(AND('Enrollment Form'!$CN866=\"Yes\",'Enrollment Form'!$CO866=\"\"),\"N\",\"Y\"))","v":"-"},{"$f":"IF(OR('Enrollment Form'!$CN866=\"\",'Enrollment Form'!$CN866=\"No\"),\"-\",IF(AND('Enrollment Form'!$CN866=\"Yes\",'Enrollment Form'!$CP866=\"\"),\"N\",\"Y\"))","v":"-"},{"$f":"IF('Enrollment Form'!B866<>\"Subscriber\",\"-\",IF(AND('Enrollment Form'!B866=\"Subscriber\",'Enrollment Form'!C866=\"Enroll\",'Enrollment Form'!AA866=\"\"),\"N\",\"Y\"))","v":"-"},{"$f":"IF(OR('Enrollment Form'!B866=\"Subscriber\",'Enrollment Form'!B866=\"\"),\"-\",IF('Enrollment Form'!BP866=\"\",\"N\",\"Y\"))","v":"-"},{"$f":"IF('Enrollment Form'!B866<>\"Subscriber\",\"-\",IF(AND('Enrollment Form'!B866=\"Subscriber\",'Enrollment Form'!G866=\"\"),\"N\",\"Y\"))","v":"-"},{"$f":"IF('Enrollment Form'!A866=\"\",\"\",IF('Enrollment Form'!B866=\"Subscriber\",\"-\",IF(AND('Enrollment Form'!B866<>\"Subscriber\",'Enrollment Form'!G866='Enrollment Form'!H866),\"N\",\"Y\")))","v":""},0]
[867,{"$f":"IF('Enrollment Form'!$A867<>\"\",\"Y\",\"N\")","v":"N"},{"$f":"IF(AND('Enrollment Form'!$B867=\"\",'Enrollment Form'!$C867<>\"\"),\"N\",IF($B860=\"N\",\"\",\"Y\"))","v":""},{"$f":"IF(OR($B860=\"N\",'Enrollment Form'!G867=\"\"),\"\",IF('Enrollment Form'!$B867<>\"Subscriber\",\"\",IF('Enrollment Form'!$G867='Enrollment Form'!$H867,\"Y\",\"N\")))","v":""},{"$f":"IF($B860=\"N\",\"\",IF(AND(COUNTIFS('Enrollment Form'!$H$11:$H$1000,'Enrollment Form'!$H867,'Enrollment Form'!$B$11:$B$1000,'Enrollment Form'!$B867)>1,'Enrollment Form'!$H867<>\"\"),\"N\",\"Y\"))","v":""},{"$f":"IF($B860=\"N\",\"\",IF(LEN('Enrollment Form'!$Y867)=0,\"\",IF(LEN('Enrollment Form'!$Y867)<>5,\"N\",\"Y\")))","v":""},{"$f":"IF($B860=\"N\",\"\",IF(LEN('Enrollment Form'!$AD867=0),\"\",IF(LEN('Enrollment Form'!$AD867)<>5,\"N\",\"Y\")))","v":""},{"$f":"IF($B860=\"N\",\"\",IF(LEN('Enrollment Form'!$BS867=0),\"\",IF(LEN('Enrollment Form'!$BS867)<>5,\"N\",\"Y\")))","v":""},{"$f":"IF($B860=\"N\",\"\",IF(LEN('Enrollment Form'!$AE867)=0,\"\",IF(LEN('Enrollment Form'!$AE867)<>10,\"N\",\"Y\")))","v":""},{"$f":"IF($B860=\"N\",\"\",IF(LEN('Enrollment Form'!$AF867)=0,\"\",IF(LEN('Enrollment Form'!$AF867)<>10,\"N\",\"Y\")))","v":""},{"$f":"IF('Enrollment Form'!$O867<>\"Graded\",\"-\",IF(AND('Enrollment Form'!$O867=\"Graded\",'Enrollment Form'!$AR867<>\"\"),\"Y\",\"N\"))","v":"-"},{"$f":"IF($B860=\"N\",\"\",IF(OR('Enrollment Form'!$B867<>\"Subscriber\",'Enrollment Form'!$C867=\"ROC\"),\"-\",IF(AND('Enrollment Form'!$B867=\"Subscriber\",'Enrollment Form'!$C867=\"Enroll\",'Enrollment Form'!$AJ867<>\"\"),\"Y\",\"N\")))","v":""},{"$f":"IF($B860=\"N\",\"\",IF(OR('Enrollment Form'!$B867<>\"Subscriber\",'Enrollment Form'!$C867=\"ROC\"),\"-\",IF(AND('Enrollment Form'!$B867=\"Subscriber\",'Enrollment Form'!$C867=\"Enroll\",'Enrollment Form'!$AK867<>\"\"),\"Y\",\"N\")))","v":""},{"$f":"IF($B860=\"N\",\"\",IF(OR('Enrollment Form'!$B867<>\"Subscriber\",'Enrollment Form'!$C867=\"ROC\"),\"-\",IF(AND('Enrollment Form'!$B867=\"Subscriber\",'Enrollment Form'!$C867=\"Enroll\",'Enrollment Form'!$AL867<>\"\"),\"Y\",\"N\")))","v":""},{"$f":"IF($B860=\"N\",\"\",IF(OR('Enrollment Form'!$B867<>\"Subscriber\",'Enrollment Form'!$C867=\"ROC\"),\"-\",IF(AND('Enrollment Form'!$B867=\"Subscriber\",'Enrollment Form'!$C867=\"Enroll\",'Enrollment Form'!$AP867<>\"\"),\"Y\",\"N\")))","v":""},{"$f":"IF($B860=\"N\",\"\",IF(OR('Enrollment Form'!$B867<>\"Subscriber\",'Enrollment Form'!$C867=\"ROC\"),\"-\",IF(AND('Enrollment Form'!$B867=\"Subscriber\",'Enrollment Form'!$C867=\"Enroll\",'Enrollment Form'!$AQ867<>\"\"),\"Y\",\"N\")))","v":""},{"$f":"IF($B860=\"N\",\"\",IF(OR('Enrollment Form'!$B867<>\"Subscriber\",'Enrollment Form'!$C867=\"ROC\"),\"-\",IF(AND('Enrollment Form'!$B867=\"Subscriber\",'Enrollment Form'!$C867=\"Enroll\",'Enrollment Form'!$AS867<>\"\"),\"Y\",\"N\")))","v":""},{"$f":"IF($B860=\"N\",\"\",IF($Q860=\"-\",\"-\",IF(AND($Q860=\"Y\",'Enrollment Form'!$AS867=\"No\"),\"-\",IF(AND($Q860=\"Y\",'Enrollment Form'!$AS867=\"Yes\",'Enrollment Form'!$AT867<>\"\"),\"Y\",\"N\"))))","v":""},{"$f":"IF($B860=\"N\",\"\",IF(OR('Enrollment Form'!$B867<>\"Subscriber\",'Enrollment Form'!$C867=\"ROC\"),\"-\",IF(AND('Enrollment Form'!$B867=\"Subscriber\",'Enrollment Form'!$C867=\"Enroll\",'Enrollment Form'!$CV867<>\"\"),\"Y\",\"N\")))","v":""},{"$f":"IF($B860=\"N\",\"\",IF($S860=\"-\",\"-\",IF(AND($S860=\"Y\",'Enrollment Form'!$CV867=\"No\"),\"-\",IF(AND($S860=\"Y\",'Enrollment Form'!$CV867=\"Yes\",'Enrollment Form'!$CW867<>\"\"),\"Y\",\"N\"))))","v":""},{"$f":"IF(OR('Enrollment Form'!$AY867=\"Yes\",'Enrollment Form'!$AY867=\"\"),\"-\",IF(OR(AND('Enrollment Form'!$AY867=\"No\",ISERROR(FIND(\"HMO\",VLOOKUP('Enrollment Form'!G867,'Enrollment Form'!H$11:J$1000,3,FALSE),1))=FALSE,COUNTA('Enrollment Form'!$AZ867:$BC867)=4),AND('Enrollment Form'!$AY867=\"No\",ISERROR(FIND(\"HMO\",VLOOKUP('Enrollment Form'!G867,'Enrollment Form'!H$11:J$1000,3,FALSE),1))=FALSE,COUNTA('Enrollment Form'!$BT867:$BW867)=4)),\"Y\",\"N\"))","v":"-"},{"$f":"IF($B860=\"N\",\"\",IF('Enrollment Form'!$B867=\"Subscriber\",\"-\",IF(COUNTA('Enrollment Form'!$BL867,'Enrollment Form'!$BN867)=2,\"Y\",\"N\")))","v":""},{"$f":"IF($B860=\"N\",\"\",IF(OR('Enrollment Form'!$AX867=\"\",'Enrollment Form'!$AX867=\"No\"),\"-\",IF(AND('Enrollment Form'!$AX867=\"Yes\",COUNTA('Enrollment Form'!$CR867)=1),\"Y\",\"N\")))","v":""},{"$f":"IF(OR('Enrollment Form'!$CR867=\"\",'Enrollment Form'!$CR867=\"No\"),\"-\",IF(COUNTA('Enrollment Form'!$CT867:$CU867)=2,\"Y\",\"N\"))","v":"-"},{"$f":"IF($B860=\"N\",\"\",IF(COUNTIF('Enrollment Form'!$DG867:$DP867,\"Other\")=COUNTA('Enrollment Form'!$DK867,'Enrollment Form'!$DH867,'Enrollment Form'!$DN867,'Enrollment Form'!$DQ867),\"Y\",\"N\"))","v":""},{"$f":"IF($B860=\"N\",\"\",IF(OR('Enrollment Form'!B867<>\"Subscriber\",'Enrollment Form'!C867=\"ROC\",COUNTIF('Enrollment Form'!AV867:AW867,\"Yes\")>=1),\"-\",IF(AND('Enrollment Form'!C867=\"Enroll\",COUNTIF('Enrollment Form'!AV867:AW867,\"No\")=2,'Enrollment Form'!AX867=\"\"),\"N\",\"Y\")))","v":""},{"$f":"IF(OR(B860=\"N\",'Enrollment Form'!B867<>\"Subscriber\",'Enrollment Form'!C867=\"ROC\",'Enrollment Form'!O867<>\"Multiple of Salary\"),\"-\",IF(COUNTA('Enrollment Form'!T867:U867)<2,\"N\",\"Y\"))","v":"-"},{"$f":"IF(B860=\"N\",\"\",IF(OR('Enrollment Form'!C867=\"ROC\",'Enrollment Form'!B867<>\"Subscriber\",'Enrollment Form'!O867=\"Waive\",'Enrollment Form'!O867=\"\"),\"-\",IF('Enrollment Form'!P867=\"\",\"N\",\"Y\")))","v":""},{"$f":"IF($B860=\"N\",\"\",IF(AND('Enrollment Form'!$C867=\"ROC\",'Enrollment Form'!$DR867<>\"\"),\"Y\",IF(AND('Enrollment Form'!$C867=\"ROC\",'Enrollment Form'!$DR867=\"\"),\"N\",IF(AND('Enrollment Form'!$C867=\"Enroll\",'Enrollment Form'!$B867=\"Subscriber\",'Enrollment Form'!$CX867=\"No\",'Enrollment Form'!$DR867=\"\"),\"N\",IF(AND('Enrollment Form'!$C867=\"Enroll\",'Enrollment Form'!$B867=\"Subscriber\",'Enrollment Form'!$CX867=\"Yes\"),\"-\",\"Y\")))))","v":""},{"$f":"IF($B860=\"N\",\"\",IF(AND('Enrollment Form'!$C867=\"ROC\",'Enrollment Form'!$DS867<>\"\"),\"Y\",IF(AND('Enrollment Form'!$C867=\"ROC\",'Enrollment Form'!$DS867=\"\"),\"N\",IF(AND('Enrollment Form'!$C867=\"Enroll\",'Enrollment Form'!$B867=\"Subscriber\",'Enrollment Form'!$CX867=\"No\",'Enrollment Form'!$DS867=\"\"),\"N\",IF(AND('Enrollment Form'!$C867=\"Enroll\",'Enrollment Form'!$B867=\"Subscriber\",'Enrollment Form'!$CX867=\"Yes\"),\"-\",\"Y\")))))","v":""},{"$f":"IF('Enrollment Form'!AH867=\"\",\"\",IF(ISERROR(SEARCH(\".\",'Enrollment Form'!AH867,SEARCH(\"@\",'Enrollment Form'!AH867))),\"N\",\"Y\"))","v":""},{"$f":"IF(OR($B860=\"N\",'Enrollment Form'!$G867=\"\"),\"\",IF('Enrollment Form'!$B867<>\"Subscriber\",\"-\",IF(COUNTIF('Enrollment Form'!$AV867:$AW867,\"Yes\")=2,\"N\",\"Y\")))","v":""},{"$f":"IF(OR('Enrollment Form'!$CJ867=\"\",'Enrollment Form'!$CJ867=\"No\"),\"-\",IF(AND('Enrollment Form'!$CJ867=\"Yes\",'Enrollment Form'!$CK867=\"\"),\"N\",\"Y\"))","v":"-"},{"$f":"IF(OR('Enrollment Form'!$CL867=\"\",'Enrollment Form'!$CL867=\"No\"),\"-\",IF(AND('Enrollment Form'!$CL867=\"Yes\",'Enrollment Form'!$CM867=\"\"),\"N\",\"Y\"))","v":"-"},{"$f":"IF(OR('Enrollment Form'!$CN867=\"\",'Enrollment Form'!$CN867=\"No\"),\"-\",IF(AND('Enrollment Form'!$CN867=\"Yes\",'Enrollment Form'!$CO867=\"\"),\"N\",\"Y\"))","v":"-"},{"$f":"IF(OR('Enrollment Form'!$CN867=\"\",'Enrollment Form'!$CN867=\"No\"),\"-\",IF(AND('Enrollment Form'!$CN867=\"Yes\",'Enrollment Form'!$CP867=\"\"),\"N\",\"Y\"))","v":"-"},{"$f":"IF('Enrollment Form'!B867<>\"Subscriber\",\"-\",IF(AND('Enrollment Form'!B867=\"Subscriber\",'Enrollment Form'!C867=\"Enroll\",'Enrollment Form'!AA867=\"\"),\"N\",\"Y\"))","v":"-"},{"$f":"IF(OR('Enrollment Form'!B867=\"Subscriber\",'Enrollment Form'!B867=\"\"),\"-\",IF('Enrollment Form'!BP867=\"\",\"N\",\"Y\"))","v":"-"},{"$f":"IF('Enrollment Form'!B867<>\"Subscriber\",\"-\",IF(AND('Enrollment Form'!B867=\"Subscriber\",'Enrollment Form'!G867=\"\"),\"N\",\"Y\"))","v":"-"},{"$f":"IF('Enrollment Form'!A867=\"\",\"\",IF('Enrollment Form'!B867=\"Subscriber\",\"-\",IF(AND('Enrollment Form'!B867<>\"Subscriber\",'Enrollment Form'!G867='Enrollment Form'!H867),\"N\",\"Y\")))","v":""},0]
[868,{"$f":"IF('Enrollment Form'!$A868<>\"\",\"Y\",\"N\")","v":"N"},{"$f":"IF(AND('Enrollment Form'!$B868=\"\",'Enrollment Form'!$C868<>\"\"),\"N\",IF($B861=\"N\",\"\",\"Y\"))","v":""},{"$f":"IF(OR($B861=\"N\",'Enrollment Form'!G868=\"\"),\"\",IF('Enrollment Form'!$B868<>\"Subscriber\",\"\",IF('Enrollment Form'!$G868='Enrollment Form'!$H868,\"Y\",\"N\")))","v":""},{"$f":"IF($B861=\"N\",\"\",IF(AND(COUNTIFS('Enrollment Form'!$H$11:$H$1000,'Enrollment Form'!$H868,'Enrollment Form'!$B$11:$B$1000,'Enrollment Form'!$B868)>1,'Enrollment Form'!$H868<>\"\"),\"N\",\"Y\"))","v":""},{"$f":"IF($B861=\"N\",\"\",IF(LEN('Enrollment Form'!$Y868)=0,\"\",IF(LEN('Enrollment Form'!$Y868)<>5,\"N\",\"Y\")))","v":""},{"$f":"IF($B861=\"N\",\"\",IF(LEN('Enrollment Form'!$AD868=0),\"\",IF(LEN('Enrollment Form'!$AD868)<>5,\"N\",\"Y\")))","v":""},{"$f":"IF($B861=\"N\",\"\",IF(LEN('Enrollment Form'!$BS868=0),\"\",IF(LEN('Enrollment Form'!$BS868)<>5,\"N\",\"Y\")))","v":""},{"$f":"IF($B861=\"N\",\"\",IF(LEN('Enrollment Form'!$AE868)=0,\"\",IF(LEN('Enrollment Form'!$AE868)<>10,\"N\",\"Y\")))","v":""},{"$f":"IF($B861=\"N\",\"\",IF(LEN('Enrollment Form'!$AF868)=0,\"\",IF(LEN('Enrollment Form'!$AF868)<>10,\"N\",\"Y\")))","v":""},{"$f":"IF('Enrollment Form'!$O868<>\"Graded\",\"-\",IF(AND('Enrollment Form'!$O868=\"Graded\",'Enrollment Form'!$AR868<>\"\"),\"Y\",\"N\"))","v":"-"},{"$f":"IF($B861=\"N\",\"\",IF(OR('Enrollment Form'!$B868<>\"Subscriber\",'Enrollment Form'!$C868=\"ROC\"),\"-\",IF(AND('Enrollment Form'!$B868=\"Subscriber\",'Enrollment Form'!$C868=\"Enroll\",'Enrollment Form'!$AJ868<>\"\"),\"Y\",\"N\")))","v":""},{"$f":"IF($B861=\"N\",\"\",IF(OR('Enrollment Form'!$B868<>\"Subscriber\",'Enrollment Form'!$C868=\"ROC\"),\"-\",IF(AND('Enrollment Form'!$B868=\"Subscriber\",'Enrollment Form'!$C868=\"Enroll\",'Enrollment Form'!$AK868<>\"\"),\"Y\",\"N\")))","v":""},{"$f":"IF($B861=\"N\",\"\",IF(OR('Enrollment Form'!$B868<>\"Subscriber\",'Enrollment Form'!$C868=\"ROC\"),\"-\",IF(AND('Enrollment Form'!$B868=\"Subscriber\",'Enrollment Form'!$C868=\"Enroll\",'Enrollment Form'!$AL868<>\"\"),\"Y\",\"N\")))","v":""},{"$f":"IF($B861=\"N\",\"\",IF(OR('Enrollment Form'!$B868<>\"Subscriber\",'Enrollment Form'!$C868=\"ROC\"),\"-\",IF(AND('Enrollment Form'!$B868=\"Subscriber\",'Enrollment Form'!$C868=\"Enroll\",'Enrollment Form'!$AP868<>\"\"),\"Y\",\"N\")))","v":""},{"$f":"IF($B861=\"N\",\"\",IF(OR('Enrollment Form'!$B868<>\"Subscriber\",'Enrollment Form'!$C868=\"ROC\"),\"-\",IF(AND('Enrollment Form'!$B868=\"Subscriber\",'Enrollment Form'!$C868=\"Enroll\",'Enrollment Form'!$AQ868<>\"\"),\"Y\",\"N\")))","v":""},{"$f":"IF($B861=\"N\",\"\",IF(OR('Enrollment Form'!$B868<>\"Subscriber\",'Enrollment Form'!$C868=\"ROC\"),\"-\",IF(AND('Enrollment Form'!$B868=\"Subscriber\",'Enrollment Form'!$C868=\"Enroll\",'Enrollment Form'!$AS868<>\"\"),\"Y\",\"N\")))","v":""},{"$f":"IF($B861=\"N\",\"\",IF($Q861=\"-\",\"-\",IF(AND($Q861=\"Y\",'Enrollment Form'!$AS868=\"No\"),\"-\",IF(AND($Q861=\"Y\",'Enrollment Form'!$AS868=\"Yes\",'Enrollment Form'!$AT868<>\"\"),\"Y\",\"N\"))))","v":""},{"$f":"IF($B861=\"N\",\"\",IF(OR('Enrollment Form'!$B868<>\"Subscriber\",'Enrollment Form'!$C868=\"ROC\"),\"-\",IF(AND('Enrollment Form'!$B868=\"Subscriber\",'Enrollment Form'!$C868=\"Enroll\",'Enrollment Form'!$CV868<>\"\"),\"Y\",\"N\")))","v":""},{"$f":"IF($B861=\"N\",\"\",IF($S861=\"-\",\"-\",IF(AND($S861=\"Y\",'Enrollment Form'!$CV868=\"No\"),\"-\",IF(AND($S861=\"Y\",'Enrollment Form'!$CV868=\"Yes\",'Enrollment Form'!$CW868<>\"\"),\"Y\",\"N\"))))","v":""},{"$f":"IF(OR('Enrollment Form'!$AY868=\"Yes\",'Enrollment Form'!$AY868=\"\"),\"-\",IF(OR(AND('Enrollment Form'!$AY868=\"No\",ISERROR(FIND(\"HMO\",VLOOKUP('Enrollment Form'!G868,'Enrollment Form'!H$11:J$1000,3,FALSE),1))=FALSE,COUNTA('Enrollment Form'!$AZ868:$BC868)=4),AND('Enrollment Form'!$AY868=\"No\",ISERROR(FIND(\"HMO\",VLOOKUP('Enrollment Form'!G868,'Enrollment Form'!H$11:J$1000,3,FALSE),1))=FALSE,COUNTA('Enrollment Form'!$BT868:$BW868)=4)),\"Y\",\"N\"))","v":"-"},{"$f":"IF($B861=\"N\",\"\",IF('Enrollment Form'!$B868=\"Subscriber\",\"-\",IF(COUNTA('Enrollment Form'!$BL868,'Enrollment Form'!$BN868)=2,\"Y\",\"N\")))","v":""},{"$f":"IF($B861=\"N\",\"\",IF(OR('Enrollment Form'!$AX868=\"\",'Enrollment Form'!$AX868=\"No\"),\"-\",IF(AND('Enrollment Form'!$AX868=\"Yes\",COUNTA('Enrollment Form'!$CR868)=1),\"Y\",\"N\")))","v":""},{"$f":"IF(OR('Enrollment Form'!$CR868=\"\",'Enrollment Form'!$CR868=\"No\"),\"-\",IF(COUNTA('Enrollment Form'!$CT868:$CU868)=2,\"Y\",\"N\"))","v":"-"},{"$f":"IF($B861=\"N\",\"\",IF(COUNTIF('Enrollment Form'!$DG868:$DP868,\"Other\")=COUNTA('Enrollment Form'!$DK868,'Enrollment Form'!$DH868,'Enrollment Form'!$DN868,'Enrollment Form'!$DQ868),\"Y\",\"N\"))","v":""},{"$f":"IF($B861=\"N\",\"\",IF(OR('Enrollment Form'!B868<>\"Subscriber\",'Enrollment Form'!C868=\"ROC\",COUNTIF('Enrollment Form'!AV868:AW868,\"Yes\")>=1),\"-\",IF(AND('Enrollment Form'!C868=\"Enroll\",COUNTIF('Enrollment Form'!AV868:AW868,\"No\")=2,'Enrollment Form'!AX868=\"\"),\"N\",\"Y\")))","v":""},{"$f":"IF(OR(B861=\"N\",'Enrollment Form'!B868<>\"Subscriber\",'Enrollment Form'!C868=\"ROC\",'Enrollment Form'!O868<>\"Multiple of Salary\"),\"-\",IF(COUNTA('Enrollment Form'!T868:U868)<2,\"N\",\"Y\"))","v":"-"},{"$f":"IF(B861=\"N\",\"\",IF(OR('Enrollment Form'!C868=\"ROC\",'Enrollment Form'!B868<>\"Subscriber\",'Enrollment Form'!O868=\"Waive\",'Enrollment Form'!O868=\"\"),\"-\",IF('Enrollment Form'!P868=\"\",\"N\",\"Y\")))","v":""},{"$f":"IF($B861=\"N\",\"\",IF(AND('Enrollment Form'!$C868=\"ROC\",'Enrollment Form'!$DR868<>\"\"),\"Y\",IF(AND('Enrollment Form'!$C868=\"ROC\",'Enrollment Form'!$DR868=\"\"),\"N\",IF(AND('Enrollment Form'!$C868=\"Enroll\",'Enrollment Form'!$B868=\"Subscriber\",'Enrollment Form'!$CX868=\"No\",'Enrollment Form'!$DR868=\"\"),\"N\",IF(AND('Enrollment Form'!$C868=\"Enroll\",'Enrollment Form'!$B868=\"Subscriber\",'Enrollment Form'!$CX868=\"Yes\"),\"-\",\"Y\")))))","v":""},{"$f":"IF($B861=\"N\",\"\",IF(AND('Enrollment Form'!$C868=\"ROC\",'Enrollment Form'!$DS868<>\"\"),\"Y\",IF(AND('Enrollment Form'!$C868=\"ROC\",'Enrollment Form'!$DS868=\"\"),\"N\",IF(AND('Enrollment Form'!$C868=\"Enroll\",'Enrollment Form'!$B868=\"Subscriber\",'Enrollment Form'!$CX868=\"No\",'Enrollment Form'!$DS868=\"\"),\"N\",IF(AND('Enrollment Form'!$C868=\"Enroll\",'Enrollment Form'!$B868=\"Subscriber\",'Enrollment Form'!$CX868=\"Yes\"),\"-\",\"Y\")))))","v":""},{"$f":"IF('Enrollment Form'!AH868=\"\",\"\",IF(ISERROR(SEARCH(\".\",'Enrollment Form'!AH868,SEARCH(\"@\",'Enrollment Form'!AH868))),\"N\",\"Y\"))","v":""},{"$f":"IF(OR($B861=\"N\",'Enrollment Form'!$G868=\"\"),\"\",IF('Enrollment Form'!$B868<>\"Subscriber\",\"-\",IF(COUNTIF('Enrollment Form'!$AV868:$AW868,\"Yes\")=2,\"N\",\"Y\")))","v":""},{"$f":"IF(OR('Enrollment Form'!$CJ868=\"\",'Enrollment Form'!$CJ868=\"No\"),\"-\",IF(AND('Enrollment Form'!$CJ868=\"Yes\",'Enrollment Form'!$CK868=\"\"),\"N\",\"Y\"))","v":"-"},{"$f":"IF(OR('Enrollment Form'!$CL868=\"\",'Enrollment Form'!$CL868=\"No\"),\"-\",IF(AND('Enrollment Form'!$CL868=\"Yes\",'Enrollment Form'!$CM868=\"\"),\"N\",\"Y\"))","v":"-"},{"$f":"IF(OR('Enrollment Form'!$CN868=\"\",'Enrollment Form'!$CN868=\"No\"),\"-\",IF(AND('Enrollment Form'!$CN868=\"Yes\",'Enrollment Form'!$CO868=\"\"),\"N\",\"Y\"))","v":"-"},{"$f":"IF(OR('Enrollment Form'!$CN868=\"\",'Enrollment Form'!$CN868=\"No\"),\"-\",IF(AND('Enrollment Form'!$CN868=\"Yes\",'Enrollment Form'!$CP868=\"\"),\"N\",\"Y\"))","v":"-"},{"$f":"IF('Enrollment Form'!B868<>\"Subscriber\",\"-\",IF(AND('Enrollment Form'!B868=\"Subscriber\",'Enrollment Form'!C868=\"Enroll\",'Enrollment Form'!AA868=\"\"),\"N\",\"Y\"))","v":"-"},{"$f":"IF(OR('Enrollment Form'!B868=\"Subscriber\",'Enrollment Form'!B868=\"\"),\"-\",IF('Enrollment Form'!BP868=\"\",\"N\",\"Y\"))","v":"-"},{"$f":"IF('Enrollment Form'!B868<>\"Subscriber\",\"-\",IF(AND('Enrollment Form'!B868=\"Subscriber\",'Enrollment Form'!G868=\"\"),\"N\",\"Y\"))","v":"-"},{"$f":"IF('Enrollment Form'!A868=\"\",\"\",IF('Enrollment Form'!B868=\"Subscriber\",\"-\",IF(AND('Enrollment Form'!B868<>\"Subscriber\",'Enrollment Form'!G868='Enrollment Form'!H868),\"N\",\"Y\")))","v":""},0]
[869,{"$f":"IF('Enrollment Form'!$A869<>\"\",\"Y\",\"N\")","v":"N"},{"$f":"IF(AND('Enrollment Form'!$B869=\"\",'Enrollment Form'!$C869<>\"\"),\"N\",IF($B862=\"N\",\"\",\"Y\"))","v":""},{"$f":"IF(OR($B862=\"N\",'Enrollment Form'!G869=\"\"),\"\",IF('Enrollment Form'!$B869<>\"Subscriber\",\"\",IF('Enrollment Form'!$G869='Enrollment Form'!$H869,\"Y\",\"N\")))","v":""},{"$f":"IF($B862=\"N\",\"\",IF(AND(COUNTIFS('Enrollment Form'!$H$11:$H$1000,'Enrollment Form'!$H869,'Enrollment Form'!$B$11:$B$1000,'Enrollment Form'!$B869)>1,'Enrollment Form'!$H869<>\"\"),\"N\",\"Y\"))","v":""},{"$f":"IF($B862=\"N\",\"\",IF(LEN('Enrollment Form'!$Y869)=0,\"\",IF(LEN('Enrollment Form'!$Y869)<>5,\"N\",\"Y\")))","v":""},{"$f":"IF($B862=\"N\",\"\",IF(LEN('Enrollment Form'!$AD869=0),\"\",IF(LEN('Enrollment Form'!$AD869)<>5,\"N\",\"Y\")))","v":""},{"$f":"IF($B862=\"N\",\"\",IF(LEN('Enrollment Form'!$BS869=0),\"\",IF(LEN('Enrollment Form'!$BS869)<>5,\"N\",\"Y\")))","v":""},{"$f":"IF($B862=\"N\",\"\",IF(LEN('Enrollment Form'!$AE869)=0,\"\",IF(LEN('Enrollment Form'!$AE869)<>10,\"N\",\"Y\")))","v":""},{"$f":"IF($B862=\"N\",\"\",IF(LEN('Enrollment Form'!$AF869)=0,\"\",IF(LEN('Enrollment Form'!$AF869)<>10,\"N\",\"Y\")))","v":""},{"$f":"IF('Enrollment Form'!$O869<>\"Graded\",\"-\",IF(AND('Enrollment Form'!$O869=\"Graded\",'Enrollment Form'!$AR869<>\"\"),\"Y\",\"N\"))","v":"-"},{"$f":"IF($B862=\"N\",\"\",IF(OR('Enrollment Form'!$B869<>\"Subscriber\",'Enrollment Form'!$C869=\"ROC\"),\"-\",IF(AND('Enrollment Form'!$B869=\"Subscriber\",'Enrollment Form'!$C869=\"Enroll\",'Enrollment Form'!$AJ869<>\"\"),\"Y\",\"N\")))","v":""},{"$f":"IF($B862=\"N\",\"\",IF(OR('Enrollment Form'!$B869<>\"Subscriber\",'Enrollment Form'!$C869=\"ROC\"),\"-\",IF(AND('Enrollment Form'!$B869=\"Subscriber\",'Enrollment Form'!$C869=\"Enroll\",'Enrollment Form'!$AK869<>\"\"),\"Y\",\"N\")))","v":""},{"$f":"IF($B862=\"N\",\"\",IF(OR('Enrollment Form'!$B869<>\"Subscriber\",'Enrollment Form'!$C869=\"ROC\"),\"-\",IF(AND('Enrollment Form'!$B869=\"Subscriber\",'Enrollment Form'!$C869=\"Enroll\",'Enrollment Form'!$AL869<>\"\"),\"Y\",\"N\")))","v":""},{"$f":"IF($B862=\"N\",\"\",IF(OR('Enrollment Form'!$B869<>\"Subscriber\",'Enrollment Form'!$C869=\"ROC\"),\"-\",IF(AND('Enrollment Form'!$B869=\"Subscriber\",'Enrollment Form'!$C869=\"Enroll\",'Enrollment Form'!$AP869<>\"\"),\"Y\",\"N\")))","v":""},{"$f":"IF($B862=\"N\",\"\",IF(OR('Enrollment Form'!$B869<>\"Subscriber\",'Enrollment Form'!$C869=\"ROC\"),\"-\",IF(AND('Enrollment Form'!$B869=\"Subscriber\",'Enrollment Form'!$C869=\"Enroll\",'Enrollment Form'!$AQ869<>\"\"),\"Y\",\"N\")))","v":""},{"$f":"IF($B862=\"N\",\"\",IF(OR('Enrollment Form'!$B869<>\"Subscriber\",'Enrollment Form'!$C869=\"ROC\"),\"-\",IF(AND('Enrollment Form'!$B869=\"Subscriber\",'Enrollment Form'!$C869=\"Enroll\",'Enrollment Form'!$AS869<>\"\"),\"Y\",\"N\")))","v":""},{"$f":"IF($B862=\"N\",\"\",IF($Q862=\"-\",\"-\",IF(AND($Q862=\"Y\",'Enrollment Form'!$AS869=\"No\"),\"-\",IF(AND($Q862=\"Y\",'Enrollment Form'!$AS869=\"Yes\",'Enrollment Form'!$AT869<>\"\"),\"Y\",\"N\"))))","v":""},{"$f":"IF($B862=\"N\",\"\",IF(OR('Enrollment Form'!$B869<>\"Subscriber\",'Enrollment Form'!$C869=\"ROC\"),\"-\",IF(AND('Enrollment Form'!$B869=\"Subscriber\",'Enrollment Form'!$C869=\"Enroll\",'Enrollment Form'!$CV869<>\"\"),\"Y\",\"N\")))","v":""},{"$f":"IF($B862=\"N\",\"\",IF($S862=\"-\",\"-\",IF(AND($S862=\"Y\",'Enrollment Form'!$CV869=\"No\"),\"-\",IF(AND($S862=\"Y\",'Enrollment Form'!$CV869=\"Yes\",'Enrollment Form'!$CW869<>\"\"),\"Y\",\"N\"))))","v":""},{"$f":"IF(OR('Enrollment Form'!$AY869=\"Yes\",'Enrollment Form'!$AY869=\"\"),\"-\",IF(OR(AND('Enrollment Form'!$AY869=\"No\",ISERROR(FIND(\"HMO\",VLOOKUP('Enrollment Form'!G869,'Enrollment Form'!H$11:J$1000,3,FALSE),1))=FALSE,COUNTA('Enrollment Form'!$AZ869:$BC869)=4),AND('Enrollment Form'!$AY869=\"No\",ISERROR(FIND(\"HMO\",VLOOKUP('Enrollment Form'!G869,'Enrollment Form'!H$11:J$1000,3,FALSE),1))=FALSE,COUNTA('Enrollment Form'!$BT869:$BW869)=4)),\"Y\",\"N\"))","v":"-"},{"$f":"IF($B862=\"N\",\"\",IF('Enrollment Form'!$B869=\"Subscriber\",\"-\",IF(COUNTA('Enrollment Form'!$BL869,'Enrollment Form'!$BN869)=2,\"Y\",\"N\")))","v":""},{"$f":"IF($B862=\"N\",\"\",IF(OR('Enrollment Form'!$AX869=\"\",'Enrollment Form'!$AX869=\"No\"),\"-\",IF(AND('Enrollment Form'!$AX869=\"Yes\",COUNTA('Enrollment Form'!$CR869)=1),\"Y\",\"N\")))","v":""},{"$f":"IF(OR('Enrollment Form'!$CR869=\"\",'Enrollment Form'!$CR869=\"No\"),\"-\",IF(COUNTA('Enrollment Form'!$CT869:$CU869)=2,\"Y\",\"N\"))","v":"-"},{"$f":"IF($B862=\"N\",\"\",IF(COUNTIF('Enrollment Form'!$DG869:$DP869,\"Other\")=COUNTA('Enrollment Form'!$DK869,'Enrollment Form'!$DH869,'Enrollment Form'!$DN869,'Enrollment Form'!$DQ869),\"Y\",\"N\"))","v":""},{"$f":"IF($B862=\"N\",\"\",IF(OR('Enrollment Form'!B869<>\"Subscriber\",'Enrollment Form'!C869=\"ROC\",COUNTIF('Enrollment Form'!AV869:AW869,\"Yes\")>=1),\"-\",IF(AND('Enrollment Form'!C869=\"Enroll\",COUNTIF('Enrollment Form'!AV869:AW869,\"No\")=2,'Enrollment Form'!AX869=\"\"),\"N\",\"Y\")))","v":""},{"$f":"IF(OR(B862=\"N\",'Enrollment Form'!B869<>\"Subscriber\",'Enrollment Form'!C869=\"ROC\",'Enrollment Form'!O869<>\"Multiple of Salary\"),\"-\",IF(COUNTA('Enrollment Form'!T869:U869)<2,\"N\",\"Y\"))","v":"-"},{"$f":"IF(B862=\"N\",\"\",IF(OR('Enrollment Form'!C869=\"ROC\",'Enrollment Form'!B869<>\"Subscriber\",'Enrollment Form'!O869=\"Waive\",'Enrollment Form'!O869=\"\"),\"-\",IF('Enrollment Form'!P869=\"\",\"N\",\"Y\")))","v":""},{"$f":"IF($B862=\"N\",\"\",IF(AND('Enrollment Form'!$C869=\"ROC\",'Enrollment Form'!$DR869<>\"\"),\"Y\",IF(AND('Enrollment Form'!$C869=\"ROC\",'Enrollment Form'!$DR869=\"\"),\"N\",IF(AND('Enrollment Form'!$C869=\"Enroll\",'Enrollment Form'!$B869=\"Subscriber\",'Enrollment Form'!$CX869=\"No\",'Enrollment Form'!$DR869=\"\"),\"N\",IF(AND('Enrollment Form'!$C869=\"Enroll\",'Enrollment Form'!$B869=\"Subscriber\",'Enrollment Form'!$CX869=\"Yes\"),\"-\",\"Y\")))))","v":""},{"$f":"IF($B862=\"N\",\"\",IF(AND('Enrollment Form'!$C869=\"ROC\",'Enrollment Form'!$DS869<>\"\"),\"Y\",IF(AND('Enrollment Form'!$C869=\"ROC\",'Enrollment Form'!$DS869=\"\"),\"N\",IF(AND('Enrollment Form'!$C869=\"Enroll\",'Enrollment Form'!$B869=\"Subscriber\",'Enrollment Form'!$CX869=\"No\",'Enrollment Form'!$DS869=\"\"),\"N\",IF(AND('Enrollment Form'!$C869=\"Enroll\",'Enrollment Form'!$B869=\"Subscriber\",'Enrollment Form'!$CX869=\"Yes\"),\"-\",\"Y\")))))","v":""},{"$f":"IF('Enrollment Form'!AH869=\"\",\"\",IF(ISERROR(SEARCH(\".\",'Enrollment Form'!AH869,SEARCH(\"@\",'Enrollment Form'!AH869))),\"N\",\"Y\"))","v":""},{"$f":"IF(OR($B862=\"N\",'Enrollment Form'!$G869=\"\"),\"\",IF('Enrollment Form'!$B869<>\"Subscriber\",\"-\",IF(COUNTIF('Enrollment Form'!$AV869:$AW869,\"Yes\")=2,\"N\",\"Y\")))","v":""},{"$f":"IF(OR('Enrollment Form'!$CJ869=\"\",'Enrollment Form'!$CJ869=\"No\"),\"-\",IF(AND('Enrollment Form'!$CJ869=\"Yes\",'Enrollment Form'!$CK869=\"\"),\"N\",\"Y\"))","v":"-"},{"$f":"IF(OR('Enrollment Form'!$CL869=\"\",'Enrollment Form'!$CL869=\"No\"),\"-\",IF(AND('Enrollment Form'!$CL869=\"Yes\",'Enrollment Form'!$CM869=\"\"),\"N\",\"Y\"))","v":"-"},{"$f":"IF(OR('Enrollment Form'!$CN869=\"\",'Enrollment Form'!$CN869=\"No\"),\"-\",IF(AND('Enrollment Form'!$CN869=\"Yes\",'Enrollment Form'!$CO869=\"\"),\"N\",\"Y\"))","v":"-"},{"$f":"IF(OR('Enrollment Form'!$CN869=\"\",'Enrollment Form'!$CN869=\"No\"),\"-\",IF(AND('Enrollment Form'!$CN869=\"Yes\",'Enrollment Form'!$CP869=\"\"),\"N\",\"Y\"))","v":"-"},{"$f":"IF('Enrollment Form'!B869<>\"Subscriber\",\"-\",IF(AND('Enrollment Form'!B869=\"Subscriber\",'Enrollment Form'!C869=\"Enroll\",'Enrollment Form'!AA869=\"\"),\"N\",\"Y\"))","v":"-"},{"$f":"IF(OR('Enrollment Form'!B869=\"Subscriber\",'Enrollment Form'!B869=\"\"),\"-\",IF('Enrollment Form'!BP869=\"\",\"N\",\"Y\"))","v":"-"},{"$f":"IF('Enrollment Form'!B869<>\"Subscriber\",\"-\",IF(AND('Enrollment Form'!B869=\"Subscriber\",'Enrollment Form'!G869=\"\"),\"N\",\"Y\"))","v":"-"},{"$f":"IF('Enrollment Form'!A869=\"\",\"\",IF('Enrollment Form'!B869=\"Subscriber\",\"-\",IF(AND('Enrollment Form'!B869<>\"Subscriber\",'Enrollment Form'!G869='Enrollment Form'!H869),\"N\",\"Y\")))","v":""},0]
[870,{"$f":"IF('Enrollment Form'!$A870<>\"\",\"Y\",\"N\")","v":"N"},{"$f":"IF(AND('Enrollment Form'!$B870=\"\",'Enrollment Form'!$C870<>\"\"),\"N\",IF($B863=\"N\",\"\",\"Y\"))","v":""},{"$f":"IF(OR($B863=\"N\",'Enrollment Form'!G870=\"\"),\"\",IF('Enrollment Form'!$B870<>\"Subscriber\",\"\",IF('Enrollment Form'!$G870='Enrollment Form'!$H870,\"Y\",\"N\")))","v":""},{"$f":"IF($B863=\"N\",\"\",IF(AND(COUNTIFS('Enrollment Form'!$H$11:$H$1000,'Enrollment Form'!$H870,'Enrollment Form'!$B$11:$B$1000,'Enrollment Form'!$B870)>1,'Enrollment Form'!$H870<>\"\"),\"N\",\"Y\"))","v":""},{"$f":"IF($B863=\"N\",\"\",IF(LEN('Enrollment Form'!$Y870)=0,\"\",IF(LEN('Enrollment Form'!$Y870)<>5,\"N\",\"Y\")))","v":""},{"$f":"IF($B863=\"N\",\"\",IF(LEN('Enrollment Form'!$AD870=0),\"\",IF(LEN('Enrollment Form'!$AD870)<>5,\"N\",\"Y\")))","v":""},{"$f":"IF($B863=\"N\",\"\",IF(LEN('Enrollment Form'!$BS870=0),\"\",IF(LEN('Enrollment Form'!$BS870)<>5,\"N\",\"Y\")))","v":""},{"$f":"IF($B863=\"N\",\"\",IF(LEN('Enrollment Form'!$AE870)=0,\"\",IF(LEN('Enrollment Form'!$AE870)<>10,\"N\",\"Y\")))","v":""},{"$f":"IF($B863=\"N\",\"\",IF(LEN('Enrollment Form'!$AF870)=0,\"\",IF(LEN('Enrollment Form'!$AF870)<>10,\"N\",\"Y\")))","v":""},{"$f":"IF('Enrollment Form'!$O870<>\"Graded\",\"-\",IF(AND('Enrollment Form'!$O870=\"Graded\",'Enrollment Form'!$AR870<>\"\"),\"Y\",\"N\"))","v":"-"},{"$f":"IF($B863=\"N\",\"\",IF(OR('Enrollment Form'!$B870<>\"Subscriber\",'Enrollment Form'!$C870=\"ROC\"),\"-\",IF(AND('Enrollment Form'!$B870=\"Subscriber\",'Enrollment Form'!$C870=\"Enroll\",'Enrollment Form'!$AJ870<>\"\"),\"Y\",\"N\")))","v":""},{"$f":"IF($B863=\"N\",\"\",IF(OR('Enrollment Form'!$B870<>\"Subscriber\",'Enrollment Form'!$C870=\"ROC\"),\"-\",IF(AND('Enrollment Form'!$B870=\"Subscriber\",'Enrollment Form'!$C870=\"Enroll\",'Enrollment Form'!$AK870<>\"\"),\"Y\",\"N\")))","v":""},{"$f":"IF($B863=\"N\",\"\",IF(OR('Enrollment Form'!$B870<>\"Subscriber\",'Enrollment Form'!$C870=\"ROC\"),\"-\",IF(AND('Enrollment Form'!$B870=\"Subscriber\",'Enrollment Form'!$C870=\"Enroll\",'Enrollment Form'!$AL870<>\"\"),\"Y\",\"N\")))","v":""},{"$f":"IF($B863=\"N\",\"\",IF(OR('Enrollment Form'!$B870<>\"Subscriber\",'Enrollment Form'!$C870=\"ROC\"),\"-\",IF(AND('Enrollment Form'!$B870=\"Subscriber\",'Enrollment Form'!$C870=\"Enroll\",'Enrollment Form'!$AP870<>\"\"),\"Y\",\"N\")))","v":""},{"$f":"IF($B863=\"N\",\"\",IF(OR('Enrollment Form'!$B870<>\"Subscriber\",'Enrollment Form'!$C870=\"ROC\"),\"-\",IF(AND('Enrollment Form'!$B870=\"Subscriber\",'Enrollment Form'!$C870=\"Enroll\",'Enrollment Form'!$AQ870<>\"\"),\"Y\",\"N\")))","v":""},{"$f":"IF($B863=\"N\",\"\",IF(OR('Enrollment Form'!$B870<>\"Subscriber\",'Enrollment Form'!$C870=\"ROC\"),\"-\",IF(AND('Enrollment Form'!$B870=\"Subscriber\",'Enrollment Form'!$C870=\"Enroll\",'Enrollment Form'!$AS870<>\"\"),\"Y\",\"N\")))","v":""},{"$f":"IF($B863=\"N\",\"\",IF($Q863=\"-\",\"-\",IF(AND($Q863=\"Y\",'Enrollment Form'!$AS870=\"No\"),\"-\",IF(AND($Q863=\"Y\",'Enrollment Form'!$AS870=\"Yes\",'Enrollment Form'!$AT870<>\"\"),\"Y\",\"N\"))))","v":""},{"$f":"IF($B863=\"N\",\"\",IF(OR('Enrollment Form'!$B870<>\"Subscriber\",'Enrollment Form'!$C870=\"ROC\"),\"-\",IF(AND('Enrollment Form'!$B870=\"Subscriber\",'Enrollment Form'!$C870=\"Enroll\",'Enrollment Form'!$CV870<>\"\"),\"Y\",\"N\")))","v":""},{"$f":"IF($B863=\"N\",\"\",IF($S863=\"-\",\"-\",IF(AND($S863=\"Y\",'Enrollment Form'!$CV870=\"No\"),\"-\",IF(AND($S863=\"Y\",'Enrollment Form'!$CV870=\"Yes\",'Enrollment Form'!$CW870<>\"\"),\"Y\",\"N\"))))","v":""},{"$f":"IF(OR('Enrollment Form'!$AY870=\"Yes\",'Enrollment Form'!$AY870=\"\"),\"-\",IF(OR(AND('Enrollment Form'!$AY870=\"No\",ISERROR(FIND(\"HMO\",VLOOKUP('Enrollment Form'!G870,'Enrollment Form'!H$11:J$1000,3,FALSE),1))=FALSE,COUNTA('Enrollment Form'!$AZ870:$BC870)=4),AND('Enrollment Form'!$AY870=\"No\",ISERROR(FIND(\"HMO\",VLOOKUP('Enrollment Form'!G870,'Enrollment Form'!H$11:J$1000,3,FALSE),1))=FALSE,COUNTA('Enrollment Form'!$BT870:$BW870)=4)),\"Y\",\"N\"))","v":"-"},{"$f":"IF($B863=\"N\",\"\",IF('Enrollment Form'!$B870=\"Subscriber\",\"-\",IF(COUNTA('Enrollment Form'!$BL870,'Enrollment Form'!$BN870)=2,\"Y\",\"N\")))","v":""},{"$f":"IF($B863=\"N\",\"\",IF(OR('Enrollment Form'!$AX870=\"\",'Enrollment Form'!$AX870=\"No\"),\"-\",IF(AND('Enrollment Form'!$AX870=\"Yes\",COUNTA('Enrollment Form'!$CR870)=1),\"Y\",\"N\")))","v":""},{"$f":"IF(OR('Enrollment Form'!$CR870=\"\",'Enrollment Form'!$CR870=\"No\"),\"-\",IF(COUNTA('Enrollment Form'!$CT870:$CU870)=2,\"Y\",\"N\"))","v":"-"},{"$f":"IF($B863=\"N\",\"\",IF(COUNTIF('Enrollment Form'!$DG870:$DP870,\"Other\")=COUNTA('Enrollment Form'!$DK870,'Enrollment Form'!$DH870,'Enrollment Form'!$DN870,'Enrollment Form'!$DQ870),\"Y\",\"N\"))","v":""},{"$f":"IF($B863=\"N\",\"\",IF(OR('Enrollment Form'!B870<>\"Subscriber\",'Enrollment Form'!C870=\"ROC\",COUNTIF('Enrollment Form'!AV870:AW870,\"Yes\")>=1),\"-\",IF(AND('Enrollment Form'!C870=\"Enroll\",COUNTIF('Enrollment Form'!AV870:AW870,\"No\")=2,'Enrollment Form'!AX870=\"\"),\"N\",\"Y\")))","v":""},{"$f":"IF(OR(B863=\"N\",'Enrollment Form'!B870<>\"Subscriber\",'Enrollment Form'!C870=\"ROC\",'Enrollment Form'!O870<>\"Multiple of Salary\"),\"-\",IF(COUNTA('Enrollment Form'!T870:U870)<2,\"N\",\"Y\"))","v":"-"},{"$f":"IF(B863=\"N\",\"\",IF(OR('Enrollment Form'!C870=\"ROC\",'Enrollment Form'!B870<>\"Subscriber\",'Enrollment Form'!O870=\"Waive\",'Enrollment Form'!O870=\"\"),\"-\",IF('Enrollment Form'!P870=\"\",\"N\",\"Y\")))","v":""},{"$f":"IF($B863=\"N\",\"\",IF(AND('Enrollment Form'!$C870=\"ROC\",'Enrollment Form'!$DR870<>\"\"),\"Y\",IF(AND('Enrollment Form'!$C870=\"ROC\",'Enrollment Form'!$DR870=\"\"),\"N\",IF(AND('Enrollment Form'!$C870=\"Enroll\",'Enrollment Form'!$B870=\"Subscriber\",'Enrollment Form'!$CX870=\"No\",'Enrollment Form'!$DR870=\"\"),\"N\",IF(AND('Enrollment Form'!$C870=\"Enroll\",'Enrollment Form'!$B870=\"Subscriber\",'Enrollment Form'!$CX870=\"Yes\"),\"-\",\"Y\")))))","v":""},{"$f":"IF($B863=\"N\",\"\",IF(AND('Enrollment Form'!$C870=\"ROC\",'Enrollment Form'!$DS870<>\"\"),\"Y\",IF(AND('Enrollment Form'!$C870=\"ROC\",'Enrollment Form'!$DS870=\"\"),\"N\",IF(AND('Enrollment Form'!$C870=\"Enroll\",'Enrollment Form'!$B870=\"Subscriber\",'Enrollment Form'!$CX870=\"No\",'Enrollment Form'!$DS870=\"\"),\"N\",IF(AND('Enrollment Form'!$C870=\"Enroll\",'Enrollment Form'!$B870=\"Subscriber\",'Enrollment Form'!$CX870=\"Yes\"),\"-\",\"Y\")))))","v":""},{"$f":"IF('Enrollment Form'!AH870=\"\",\"\",IF(ISERROR(SEARCH(\".\",'Enrollment Form'!AH870,SEARCH(\"@\",'Enrollment Form'!AH870))),\"N\",\"Y\"))","v":""},{"$f":"IF(OR($B863=\"N\",'Enrollment Form'!$G870=\"\"),\"\",IF('Enrollment Form'!$B870<>\"Subscriber\",\"-\",IF(COUNTIF('Enrollment Form'!$AV870:$AW870,\"Yes\")=2,\"N\",\"Y\")))","v":""},{"$f":"IF(OR('Enrollment Form'!$CJ870=\"\",'Enrollment Form'!$CJ870=\"No\"),\"-\",IF(AND('Enrollment Form'!$CJ870=\"Yes\",'Enrollment Form'!$CK870=\"\"),\"N\",\"Y\"))","v":"-"},{"$f":"IF(OR('Enrollment Form'!$CL870=\"\",'Enrollment Form'!$CL870=\"No\"),\"-\",IF(AND('Enrollment Form'!$CL870=\"Yes\",'Enrollment Form'!$CM870=\"\"),\"N\",\"Y\"))","v":"-"},{"$f":"IF(OR('Enrollment Form'!$CN870=\"\",'Enrollment Form'!$CN870=\"No\"),\"-\",IF(AND('Enrollment Form'!$CN870=\"Yes\",'Enrollment Form'!$CO870=\"\"),\"N\",\"Y\"))","v":"-"},{"$f":"IF(OR('Enrollment Form'!$CN870=\"\",'Enrollment Form'!$CN870=\"No\"),\"-\",IF(AND('Enrollment Form'!$CN870=\"Yes\",'Enrollment Form'!$CP870=\"\"),\"N\",\"Y\"))","v":"-"},{"$f":"IF('Enrollment Form'!B870<>\"Subscriber\",\"-\",IF(AND('Enrollment Form'!B870=\"Subscriber\",'Enrollment Form'!C870=\"Enroll\",'Enrollment Form'!AA870=\"\"),\"N\",\"Y\"))","v":"-"},{"$f":"IF(OR('Enrollment Form'!B870=\"Subscriber\",'Enrollment Form'!B870=\"\"),\"-\",IF('Enrollment Form'!BP870=\"\",\"N\",\"Y\"))","v":"-"},{"$f":"IF('Enrollment Form'!B870<>\"Subscriber\",\"-\",IF(AND('Enrollment Form'!B870=\"Subscriber\",'Enrollment Form'!G870=\"\"),\"N\",\"Y\"))","v":"-"},{"$f":"IF('Enrollment Form'!A870=\"\",\"\",IF('Enrollment Form'!B870=\"Subscriber\",\"-\",IF(AND('Enrollment Form'!B870<>\"Subscriber\",'Enrollment Form'!G870='Enrollment Form'!H870),\"N\",\"Y\")))","v":""},0]
[871,{"$f":"IF('Enrollment Form'!$A871<>\"\",\"Y\",\"N\")","v":"N"},{"$f":"IF(AND('Enrollment Form'!$B871=\"\",'Enrollment Form'!$C871<>\"\"),\"N\",IF($B864=\"N\",\"\",\"Y\"))","v":""},{"$f":"IF(OR($B864=\"N\",'Enrollment Form'!G871=\"\"),\"\",IF('Enrollment Form'!$B871<>\"Subscriber\",\"\",IF('Enrollment Form'!$G871='Enrollment Form'!$H871,\"Y\",\"N\")))","v":""},{"$f":"IF($B864=\"N\",\"\",IF(AND(COUNTIFS('Enrollment Form'!$H$11:$H$1000,'Enrollment Form'!$H871,'Enrollment Form'!$B$11:$B$1000,'Enrollment Form'!$B871)>1,'Enrollment Form'!$H871<>\"\"),\"N\",\"Y\"))","v":""},{"$f":"IF($B864=\"N\",\"\",IF(LEN('Enrollment Form'!$Y871)=0,\"\",IF(LEN('Enrollment Form'!$Y871)<>5,\"N\",\"Y\")))","v":""},{"$f":"IF($B864=\"N\",\"\",IF(LEN('Enrollment Form'!$AD871=0),\"\",IF(LEN('Enrollment Form'!$AD871)<>5,\"N\",\"Y\")))","v":""},{"$f":"IF($B864=\"N\",\"\",IF(LEN('Enrollment Form'!$BS871=0),\"\",IF(LEN('Enrollment Form'!$BS871)<>5,\"N\",\"Y\")))","v":""},{"$f":"IF($B864=\"N\",\"\",IF(LEN('Enrollment Form'!$AE871)=0,\"\",IF(LEN('Enrollment Form'!$AE871)<>10,\"N\",\"Y\")))","v":""},{"$f":"IF($B864=\"N\",\"\",IF(LEN('Enrollment Form'!$AF871)=0,\"\",IF(LEN('Enrollment Form'!$AF871)<>10,\"N\",\"Y\")))","v":""},{"$f":"IF('Enrollment Form'!$O871<>\"Graded\",\"-\",IF(AND('Enrollment Form'!$O871=\"Graded\",'Enrollment Form'!$AR871<>\"\"),\"Y\",\"N\"))","v":"-"},{"$f":"IF($B864=\"N\",\"\",IF(OR('Enrollment Form'!$B871<>\"Subscriber\",'Enrollment Form'!$C871=\"ROC\"),\"-\",IF(AND('Enrollment Form'!$B871=\"Subscriber\",'Enrollment Form'!$C871=\"Enroll\",'Enrollment Form'!$AJ871<>\"\"),\"Y\",\"N\")))","v":""},{"$f":"IF($B864=\"N\",\"\",IF(OR('Enrollment Form'!$B871<>\"Subscriber\",'Enrollment Form'!$C871=\"ROC\"),\"-\",IF(AND('Enrollment Form'!$B871=\"Subscriber\",'Enrollment Form'!$C871=\"Enroll\",'Enrollment Form'!$AK871<>\"\"),\"Y\",\"N\")))","v":""},{"$f":"IF($B864=\"N\",\"\",IF(OR('Enrollment Form'!$B871<>\"Subscriber\",'Enrollment Form'!$C871=\"ROC\"),\"-\",IF(AND('Enrollment Form'!$B871=\"Subscriber\",'Enrollment Form'!$C871=\"Enroll\",'Enrollment Form'!$AL871<>\"\"),\"Y\",\"N\")))","v":""},{"$f":"IF($B864=\"N\",\"\",IF(OR('Enrollment Form'!$B871<>\"Subscriber\",'Enrollment Form'!$C871=\"ROC\"),\"-\",IF(AND('Enrollment Form'!$B871=\"Subscriber\",'Enrollment Form'!$C871=\"Enroll\",'Enrollment Form'!$AP871<>\"\"),\"Y\",\"N\")))","v":""},{"$f":"IF($B864=\"N\",\"\",IF(OR('Enrollment Form'!$B871<>\"Subscriber\",'Enrollment Form'!$C871=\"ROC\"),\"-\",IF(AND('Enrollment Form'!$B871=\"Subscriber\",'Enrollment Form'!$C871=\"Enroll\",'Enrollment Form'!$AQ871<>\"\"),\"Y\",\"N\")))","v":""},{"$f":"IF($B864=\"N\",\"\",IF(OR('Enrollment Form'!$B871<>\"Subscriber\",'Enrollment Form'!$C871=\"ROC\"),\"-\",IF(AND('Enrollment Form'!$B871=\"Subscriber\",'Enrollment Form'!$C871=\"Enroll\",'Enrollment Form'!$AS871<>\"\"),\"Y\",\"N\")))","v":""},{"$f":"IF($B864=\"N\",\"\",IF($Q864=\"-\",\"-\",IF(AND($Q864=\"Y\",'Enrollment Form'!$AS871=\"No\"),\"-\",IF(AND($Q864=\"Y\",'Enrollment Form'!$AS871=\"Yes\",'Enrollment Form'!$AT871<>\"\"),\"Y\",\"N\"))))","v":""},{"$f":"IF($B864=\"N\",\"\",IF(OR('Enrollment Form'!$B871<>\"Subscriber\",'Enrollment Form'!$C871=\"ROC\"),\"-\",IF(AND('Enrollment Form'!$B871=\"Subscriber\",'Enrollment Form'!$C871=\"Enroll\",'Enrollment Form'!$CV871<>\"\"),\"Y\",\"N\")))","v":""},{"$f":"IF($B864=\"N\",\"\",IF($S864=\"-\",\"-\",IF(AND($S864=\"Y\",'Enrollment Form'!$CV871=\"No\"),\"-\",IF(AND($S864=\"Y\",'Enrollment Form'!$CV871=\"Yes\",'Enrollment Form'!$CW871<>\"\"),\"Y\",\"N\"))))","v":""},{"$f":"IF(OR('Enrollment Form'!$AY871=\"Yes\",'Enrollment Form'!$AY871=\"\"),\"-\",IF(OR(AND('Enrollment Form'!$AY871=\"No\",ISERROR(FIND(\"HMO\",VLOOKUP('Enrollment Form'!G871,'Enrollment Form'!H$11:J$1000,3,FALSE),1))=FALSE,COUNTA('Enrollment Form'!$AZ871:$BC871)=4),AND('Enrollment Form'!$AY871=\"No\",ISERROR(FIND(\"HMO\",VLOOKUP('Enrollment Form'!G871,'Enrollment Form'!H$11:J$1000,3,FALSE),1))=FALSE,COUNTA('Enrollment Form'!$BT871:$BW871)=4)),\"Y\",\"N\"))","v":"-"},{"$f":"IF($B864=\"N\",\"\",IF('Enrollment Form'!$B871=\"Subscriber\",\"-\",IF(COUNTA('Enrollment Form'!$BL871,'Enrollment Form'!$BN871)=2,\"Y\",\"N\")))","v":""},{"$f":"IF($B864=\"N\",\"\",IF(OR('Enrollment Form'!$AX871=\"\",'Enrollment Form'!$AX871=\"No\"),\"-\",IF(AND('Enrollment Form'!$AX871=\"Yes\",COUNTA('Enrollment Form'!$CR871)=1),\"Y\",\"N\")))","v":""},{"$f":"IF(OR('Enrollment Form'!$CR871=\"\",'Enrollment Form'!$CR871=\"No\"),\"-\",IF(COUNTA('Enrollment Form'!$CT871:$CU871)=2,\"Y\",\"N\"))","v":"-"},{"$f":"IF($B864=\"N\",\"\",IF(COUNTIF('Enrollment Form'!$DG871:$DP871,\"Other\")=COUNTA('Enrollment Form'!$DK871,'Enrollment Form'!$DH871,'Enrollment Form'!$DN871,'Enrollment Form'!$DQ871),\"Y\",\"N\"))","v":""},{"$f":"IF($B864=\"N\",\"\",IF(OR('Enrollment Form'!B871<>\"Subscriber\",'Enrollment Form'!C871=\"ROC\",COUNTIF('Enrollment Form'!AV871:AW871,\"Yes\")>=1),\"-\",IF(AND('Enrollment Form'!C871=\"Enroll\",COUNTIF('Enrollment Form'!AV871:AW871,\"No\")=2,'Enrollment Form'!AX871=\"\"),\"N\",\"Y\")))","v":""},{"$f":"IF(OR(B864=\"N\",'Enrollment Form'!B871<>\"Subscriber\",'Enrollment Form'!C871=\"ROC\",'Enrollment Form'!O871<>\"Multiple of Salary\"),\"-\",IF(COUNTA('Enrollment Form'!T871:U871)<2,\"N\",\"Y\"))","v":"-"},{"$f":"IF(B864=\"N\",\"\",IF(OR('Enrollment Form'!C871=\"ROC\",'Enrollment Form'!B871<>\"Subscriber\",'Enrollment Form'!O871=\"Waive\",'Enrollment Form'!O871=\"\"),\"-\",IF('Enrollment Form'!P871=\"\",\"N\",\"Y\")))","v":""},{"$f":"IF($B864=\"N\",\"\",IF(AND('Enrollment Form'!$C871=\"ROC\",'Enrollment Form'!$DR871<>\"\"),\"Y\",IF(AND('Enrollment Form'!$C871=\"ROC\",'Enrollment Form'!$DR871=\"\"),\"N\",IF(AND('Enrollment Form'!$C871=\"Enroll\",'Enrollment Form'!$B871=\"Subscriber\",'Enrollment Form'!$CX871=\"No\",'Enrollment Form'!$DR871=\"\"),\"N\",IF(AND('Enrollment Form'!$C871=\"Enroll\",'Enrollment Form'!$B871=\"Subscriber\",'Enrollment Form'!$CX871=\"Yes\"),\"-\",\"Y\")))))","v":""},{"$f":"IF($B864=\"N\",\"\",IF(AND('Enrollment Form'!$C871=\"ROC\",'Enrollment Form'!$DS871<>\"\"),\"Y\",IF(AND('Enrollment Form'!$C871=\"ROC\",'Enrollment Form'!$DS871=\"\"),\"N\",IF(AND('Enrollment Form'!$C871=\"Enroll\",'Enrollment Form'!$B871=\"Subscriber\",'Enrollment Form'!$CX871=\"No\",'Enrollment Form'!$DS871=\"\"),\"N\",IF(AND('Enrollment Form'!$C871=\"Enroll\",'Enrollment Form'!$B871=\"Subscriber\",'Enrollment Form'!$CX871=\"Yes\"),\"-\",\"Y\")))))","v":""},{"$f":"IF('Enrollment Form'!AH871=\"\",\"\",IF(ISERROR(SEARCH(\".\",'Enrollment Form'!AH871,SEARCH(\"@\",'Enrollment Form'!AH871))),\"N\",\"Y\"))","v":""},{"$f":"IF(OR($B864=\"N\",'Enrollment Form'!$G871=\"\"),\"\",IF('Enrollment Form'!$B871<>\"Subscriber\",\"-\",IF(COUNTIF('Enrollment Form'!$AV871:$AW871,\"Yes\")=2,\"N\",\"Y\")))","v":""},{"$f":"IF(OR('Enrollment Form'!$CJ871=\"\",'Enrollment Form'!$CJ871=\"No\"),\"-\",IF(AND('Enrollment Form'!$CJ871=\"Yes\",'Enrollment Form'!$CK871=\"\"),\"N\",\"Y\"))","v":"-"},{"$f":"IF(OR('Enrollment Form'!$CL871=\"\",'Enrollment Form'!$CL871=\"No\"),\"-\",IF(AND('Enrollment Form'!$CL871=\"Yes\",'Enrollment Form'!$CM871=\"\"),\"N\",\"Y\"))","v":"-"},{"$f":"IF(OR('Enrollment Form'!$CN871=\"\",'Enrollment Form'!$CN871=\"No\"),\"-\",IF(AND('Enrollment Form'!$CN871=\"Yes\",'Enrollment Form'!$CO871=\"\"),\"N\",\"Y\"))","v":"-"},{"$f":"IF(OR('Enrollment Form'!$CN871=\"\",'Enrollment Form'!$CN871=\"No\"),\"-\",IF(AND('Enrollment Form'!$CN871=\"Yes\",'Enrollment Form'!$CP871=\"\"),\"N\",\"Y\"))","v":"-"},{"$f":"IF('Enrollment Form'!B871<>\"Subscriber\",\"-\",IF(AND('Enrollment Form'!B871=\"Subscriber\",'Enrollment Form'!C871=\"Enroll\",'Enrollment Form'!AA871=\"\"),\"N\",\"Y\"))","v":"-"},{"$f":"IF(OR('Enrollment Form'!B871=\"Subscriber\",'Enrollment Form'!B871=\"\"),\"-\",IF('Enrollment Form'!BP871=\"\",\"N\",\"Y\"))","v":"-"},{"$f":"IF('Enrollment Form'!B871<>\"Subscriber\",\"-\",IF(AND('Enrollment Form'!B871=\"Subscriber\",'Enrollment Form'!G871=\"\"),\"N\",\"Y\"))","v":"-"},{"$f":"IF('Enrollment Form'!A871=\"\",\"\",IF('Enrollment Form'!B871=\"Subscriber\",\"-\",IF(AND('Enrollment Form'!B871<>\"Subscriber\",'Enrollment Form'!G871='Enrollment Form'!H871),\"N\",\"Y\")))","v":""},0]
[872,{"$f":"IF('Enrollment Form'!$A872<>\"\",\"Y\",\"N\")","v":"N"},{"$f":"IF(AND('Enrollment Form'!$B872=\"\",'Enrollment Form'!$C872<>\"\"),\"N\",IF($B865=\"N\",\"\",\"Y\"))","v":""},{"$f":"IF(OR($B865=\"N\",'Enrollment Form'!G872=\"\"),\"\",IF('Enrollment Form'!$B872<>\"Subscriber\",\"\",IF('Enrollment Form'!$G872='Enrollment Form'!$H872,\"Y\",\"N\")))","v":""},{"$f":"IF($B865=\"N\",\"\",IF(AND(COUNTIFS('Enrollment Form'!$H$11:$H$1000,'Enrollment Form'!$H872,'Enrollment Form'!$B$11:$B$1000,'Enrollment Form'!$B872)>1,'Enrollment Form'!$H872<>\"\"),\"N\",\"Y\"))","v":""},{"$f":"IF($B865=\"N\",\"\",IF(LEN('Enrollment Form'!$Y872)=0,\"\",IF(LEN('Enrollment Form'!$Y872)<>5,\"N\",\"Y\")))","v":""},{"$f":"IF($B865=\"N\",\"\",IF(LEN('Enrollment Form'!$AD872=0),\"\",IF(LEN('Enrollment Form'!$AD872)<>5,\"N\",\"Y\")))","v":""},{"$f":"IF($B865=\"N\",\"\",IF(LEN('Enrollment Form'!$BS872=0),\"\",IF(LEN('Enrollment Form'!$BS872)<>5,\"N\",\"Y\")))","v":""},{"$f":"IF($B865=\"N\",\"\",IF(LEN('Enrollment Form'!$AE872)=0,\"\",IF(LEN('Enrollment Form'!$AE872)<>10,\"N\",\"Y\")))","v":""},{"$f":"IF($B865=\"N\",\"\",IF(LEN('Enrollment Form'!$AF872)=0,\"\",IF(LEN('Enrollment Form'!$AF872)<>10,\"N\",\"Y\")))","v":""},{"$f":"IF('Enrollment Form'!$O872<>\"Graded\",\"-\",IF(AND('Enrollment Form'!$O872=\"Graded\",'Enrollment Form'!$AR872<>\"\"),\"Y\",\"N\"))","v":"-"},{"$f":"IF($B865=\"N\",\"\",IF(OR('Enrollment Form'!$B872<>\"Subscriber\",'Enrollment Form'!$C872=\"ROC\"),\"-\",IF(AND('Enrollment Form'!$B872=\"Subscriber\",'Enrollment Form'!$C872=\"Enroll\",'Enrollment Form'!$AJ872<>\"\"),\"Y\",\"N\")))","v":""},{"$f":"IF($B865=\"N\",\"\",IF(OR('Enrollment Form'!$B872<>\"Subscriber\",'Enrollment Form'!$C872=\"ROC\"),\"-\",IF(AND('Enrollment Form'!$B872=\"Subscriber\",'Enrollment Form'!$C872=\"Enroll\",'Enrollment Form'!$AK872<>\"\"),\"Y\",\"N\")))","v":""},{"$f":"IF($B865=\"N\",\"\",IF(OR('Enrollment Form'!$B872<>\"Subscriber\",'Enrollment Form'!$C872=\"ROC\"),\"-\",IF(AND('Enrollment Form'!$B872=\"Subscriber\",'Enrollment Form'!$C872=\"Enroll\",'Enrollment Form'!$AL872<>\"\"),\"Y\",\"N\")))","v":""},{"$f":"IF($B865=\"N\",\"\",IF(OR('Enrollment Form'!$B872<>\"Subscriber\",'Enrollment Form'!$C872=\"ROC\"),\"-\",IF(AND('Enrollment Form'!$B872=\"Subscriber\",'Enrollment Form'!$C872=\"Enroll\",'Enrollment Form'!$AP872<>\"\"),\"Y\",\"N\")))","v":""},{"$f":"IF($B865=\"N\",\"\",IF(OR('Enrollment Form'!$B872<>\"Subscriber\",'Enrollment Form'!$C872=\"ROC\"),\"-\",IF(AND('Enrollment Form'!$B872=\"Subscriber\",'Enrollment Form'!$C872=\"Enroll\",'Enrollment Form'!$AQ872<>\"\"),\"Y\",\"N\")))","v":""},{"$f":"IF($B865=\"N\",\"\",IF(OR('Enrollment Form'!$B872<>\"Subscriber\",'Enrollment Form'!$C872=\"ROC\"),\"-\",IF(AND('Enrollment Form'!$B872=\"Subscriber\",'Enrollment Form'!$C872=\"Enroll\",'Enrollment Form'!$AS872<>\"\"),\"Y\",\"N\")))","v":""},{"$f":"IF($B865=\"N\",\"\",IF($Q865=\"-\",\"-\",IF(AND($Q865=\"Y\",'Enrollment Form'!$AS872=\"No\"),\"-\",IF(AND($Q865=\"Y\",'Enrollment Form'!$AS872=\"Yes\",'Enrollment Form'!$AT872<>\"\"),\"Y\",\"N\"))))","v":""},{"$f":"IF($B865=\"N\",\"\",IF(OR('Enrollment Form'!$B872<>\"Subscriber\",'Enrollment Form'!$C872=\"ROC\"),\"-\",IF(AND('Enrollment Form'!$B872=\"Subscriber\",'Enrollment Form'!$C872=\"Enroll\",'Enrollment Form'!$CV872<>\"\"),\"Y\",\"N\")))","v":""},{"$f":"IF($B865=\"N\",\"\",IF($S865=\"-\",\"-\",IF(AND($S865=\"Y\",'Enrollment Form'!$CV872=\"No\"),\"-\",IF(AND($S865=\"Y\",'Enrollment Form'!$CV872=\"Yes\",'Enrollment Form'!$CW872<>\"\"),\"Y\",\"N\"))))","v":""},{"$f":"IF(OR('Enrollment Form'!$AY872=\"Yes\",'Enrollment Form'!$AY872=\"\"),\"-\",IF(OR(AND('Enrollment Form'!$AY872=\"No\",ISERROR(FIND(\"HMO\",VLOOKUP('Enrollment Form'!G872,'Enrollment Form'!H$11:J$1000,3,FALSE),1))=FALSE,COUNTA('Enrollment Form'!$AZ872:$BC872)=4),AND('Enrollment Form'!$AY872=\"No\",ISERROR(FIND(\"HMO\",VLOOKUP('Enrollment Form'!G872,'Enrollment Form'!H$11:J$1000,3,FALSE),1))=FALSE,COUNTA('Enrollment Form'!$BT872:$BW872)=4)),\"Y\",\"N\"))","v":"-"},{"$f":"IF($B865=\"N\",\"\",IF('Enrollment Form'!$B872=\"Subscriber\",\"-\",IF(COUNTA('Enrollment Form'!$BL872,'Enrollment Form'!$BN872)=2,\"Y\",\"N\")))","v":""},{"$f":"IF($B865=\"N\",\"\",IF(OR('Enrollment Form'!$AX872=\"\",'Enrollment Form'!$AX872=\"No\"),\"-\",IF(AND('Enrollment Form'!$AX872=\"Yes\",COUNTA('Enrollment Form'!$CR872)=1),\"Y\",\"N\")))","v":""},{"$f":"IF(OR('Enrollment Form'!$CR872=\"\",'Enrollment Form'!$CR872=\"No\"),\"-\",IF(COUNTA('Enrollment Form'!$CT872:$CU872)=2,\"Y\",\"N\"))","v":"-"},{"$f":"IF($B865=\"N\",\"\",IF(COUNTIF('Enrollment Form'!$DG872:$DP872,\"Other\")=COUNTA('Enrollment Form'!$DK872,'Enrollment Form'!$DH872,'Enrollment Form'!$DN872,'Enrollment Form'!$DQ872),\"Y\",\"N\"))","v":""},{"$f":"IF($B865=\"N\",\"\",IF(OR('Enrollment Form'!B872<>\"Subscriber\",'Enrollment Form'!C872=\"ROC\",COUNTIF('Enrollment Form'!AV872:AW872,\"Yes\")>=1),\"-\",IF(AND('Enrollment Form'!C872=\"Enroll\",COUNTIF('Enrollment Form'!AV872:AW872,\"No\")=2,'Enrollment Form'!AX872=\"\"),\"N\",\"Y\")))","v":""},{"$f":"IF(OR(B865=\"N\",'Enrollment Form'!B872<>\"Subscriber\",'Enrollment Form'!C872=\"ROC\",'Enrollment Form'!O872<>\"Multiple of Salary\"),\"-\",IF(COUNTA('Enrollment Form'!T872:U872)<2,\"N\",\"Y\"))","v":"-"},{"$f":"IF(B865=\"N\",\"\",IF(OR('Enrollment Form'!C872=\"ROC\",'Enrollment Form'!B872<>\"Subscriber\",'Enrollment Form'!O872=\"Waive\",'Enrollment Form'!O872=\"\"),\"-\",IF('Enrollment Form'!P872=\"\",\"N\",\"Y\")))","v":""},{"$f":"IF($B865=\"N\",\"\",IF(AND('Enrollment Form'!$C872=\"ROC\",'Enrollment Form'!$DR872<>\"\"),\"Y\",IF(AND('Enrollment Form'!$C872=\"ROC\",'Enrollment Form'!$DR872=\"\"),\"N\",IF(AND('Enrollment Form'!$C872=\"Enroll\",'Enrollment Form'!$B872=\"Subscriber\",'Enrollment Form'!$CX872=\"No\",'Enrollment Form'!$DR872=\"\"),\"N\",IF(AND('Enrollment Form'!$C872=\"Enroll\",'Enrollment Form'!$B872=\"Subscriber\",'Enrollment Form'!$CX872=\"Yes\"),\"-\",\"Y\")))))","v":""},{"$f":"IF($B865=\"N\",\"\",IF(AND('Enrollment Form'!$C872=\"ROC\",'Enrollment Form'!$DS872<>\"\"),\"Y\",IF(AND('Enrollment Form'!$C872=\"ROC\",'Enrollment Form'!$DS872=\"\"),\"N\",IF(AND('Enrollment Form'!$C872=\"Enroll\",'Enrollment Form'!$B872=\"Subscriber\",'Enrollment Form'!$CX872=\"No\",'Enrollment Form'!$DS872=\"\"),\"N\",IF(AND('Enrollment Form'!$C872=\"Enroll\",'Enrollment Form'!$B872=\"Subscriber\",'Enrollment Form'!$CX872=\"Yes\"),\"-\",\"Y\")))))","v":""},{"$f":"IF('Enrollment Form'!AH872=\"\",\"\",IF(ISERROR(SEARCH(\".\",'Enrollment Form'!AH872,SEARCH(\"@\",'Enrollment Form'!AH872))),\"N\",\"Y\"))","v":""},{"$f":"IF(OR($B865=\"N\",'Enrollment Form'!$G872=\"\"),\"\",IF('Enrollment Form'!$B872<>\"Subscriber\",\"-\",IF(COUNTIF('Enrollment Form'!$AV872:$AW872,\"Yes\")=2,\"N\",\"Y\")))","v":""},{"$f":"IF(OR('Enrollment Form'!$CJ872=\"\",'Enrollment Form'!$CJ872=\"No\"),\"-\",IF(AND('Enrollment Form'!$CJ872=\"Yes\",'Enrollment Form'!$CK872=\"\"),\"N\",\"Y\"))","v":"-"},{"$f":"IF(OR('Enrollment Form'!$CL872=\"\",'Enrollment Form'!$CL872=\"No\"),\"-\",IF(AND('Enrollment Form'!$CL872=\"Yes\",'Enrollment Form'!$CM872=\"\"),\"N\",\"Y\"))","v":"-"},{"$f":"IF(OR('Enrollment Form'!$CN872=\"\",'Enrollment Form'!$CN872=\"No\"),\"-\",IF(AND('Enrollment Form'!$CN872=\"Yes\",'Enrollment Form'!$CO872=\"\"),\"N\",\"Y\"))","v":"-"},{"$f":"IF(OR('Enrollment Form'!$CN872=\"\",'Enrollment Form'!$CN872=\"No\"),\"-\",IF(AND('Enrollment Form'!$CN872=\"Yes\",'Enrollment Form'!$CP872=\"\"),\"N\",\"Y\"))","v":"-"},{"$f":"IF('Enrollment Form'!B872<>\"Subscriber\",\"-\",IF(AND('Enrollment Form'!B872=\"Subscriber\",'Enrollment Form'!C872=\"Enroll\",'Enrollment Form'!AA872=\"\"),\"N\",\"Y\"))","v":"-"},{"$f":"IF(OR('Enrollment Form'!B872=\"Subscriber\",'Enrollment Form'!B872=\"\"),\"-\",IF('Enrollment Form'!BP872=\"\",\"N\",\"Y\"))","v":"-"},{"$f":"IF('Enrollment Form'!B872<>\"Subscriber\",\"-\",IF(AND('Enrollment Form'!B872=\"Subscriber\",'Enrollment Form'!G872=\"\"),\"N\",\"Y\"))","v":"-"},{"$f":"IF('Enrollment Form'!A872=\"\",\"\",IF('Enrollment Form'!B872=\"Subscriber\",\"-\",IF(AND('Enrollment Form'!B872<>\"Subscriber\",'Enrollment Form'!G872='Enrollment Form'!H872),\"N\",\"Y\")))","v":""},0]
[873,{"$f":"IF('Enrollment Form'!$A873<>\"\",\"Y\",\"N\")","v":"N"},{"$f":"IF(AND('Enrollment Form'!$B873=\"\",'Enrollment Form'!$C873<>\"\"),\"N\",IF($B866=\"N\",\"\",\"Y\"))","v":""},{"$f":"IF(OR($B866=\"N\",'Enrollment Form'!G873=\"\"),\"\",IF('Enrollment Form'!$B873<>\"Subscriber\",\"\",IF('Enrollment Form'!$G873='Enrollment Form'!$H873,\"Y\",\"N\")))","v":""},{"$f":"IF($B866=\"N\",\"\",IF(AND(COUNTIFS('Enrollment Form'!$H$11:$H$1000,'Enrollment Form'!$H873,'Enrollment Form'!$B$11:$B$1000,'Enrollment Form'!$B873)>1,'Enrollment Form'!$H873<>\"\"),\"N\",\"Y\"))","v":""},{"$f":"IF($B866=\"N\",\"\",IF(LEN('Enrollment Form'!$Y873)=0,\"\",IF(LEN('Enrollment Form'!$Y873)<>5,\"N\",\"Y\")))","v":""},{"$f":"IF($B866=\"N\",\"\",IF(LEN('Enrollment Form'!$AD873=0),\"\",IF(LEN('Enrollment Form'!$AD873)<>5,\"N\",\"Y\")))","v":""},{"$f":"IF($B866=\"N\",\"\",IF(LEN('Enrollment Form'!$BS873=0),\"\",IF(LEN('Enrollment Form'!$BS873)<>5,\"N\",\"Y\")))","v":""},{"$f":"IF($B866=\"N\",\"\",IF(LEN('Enrollment Form'!$AE873)=0,\"\",IF(LEN('Enrollment Form'!$AE873)<>10,\"N\",\"Y\")))","v":""},{"$f":"IF($B866=\"N\",\"\",IF(LEN('Enrollment Form'!$AF873)=0,\"\",IF(LEN('Enrollment Form'!$AF873)<>10,\"N\",\"Y\")))","v":""},{"$f":"IF('Enrollment Form'!$O873<>\"Graded\",\"-\",IF(AND('Enrollment Form'!$O873=\"Graded\",'Enrollment Form'!$AR873<>\"\"),\"Y\",\"N\"))","v":"-"},{"$f":"IF($B866=\"N\",\"\",IF(OR('Enrollment Form'!$B873<>\"Subscriber\",'Enrollment Form'!$C873=\"ROC\"),\"-\",IF(AND('Enrollment Form'!$B873=\"Subscriber\",'Enrollment Form'!$C873=\"Enroll\",'Enrollment Form'!$AJ873<>\"\"),\"Y\",\"N\")))","v":""},{"$f":"IF($B866=\"N\",\"\",IF(OR('Enrollment Form'!$B873<>\"Subscriber\",'Enrollment Form'!$C873=\"ROC\"),\"-\",IF(AND('Enrollment Form'!$B873=\"Subscriber\",'Enrollment Form'!$C873=\"Enroll\",'Enrollment Form'!$AK873<>\"\"),\"Y\",\"N\")))","v":""},{"$f":"IF($B866=\"N\",\"\",IF(OR('Enrollment Form'!$B873<>\"Subscriber\",'Enrollment Form'!$C873=\"ROC\"),\"-\",IF(AND('Enrollment Form'!$B873=\"Subscriber\",'Enrollment Form'!$C873=\"Enroll\",'Enrollment Form'!$AL873<>\"\"),\"Y\",\"N\")))","v":""},{"$f":"IF($B866=\"N\",\"\",IF(OR('Enrollment Form'!$B873<>\"Subscriber\",'Enrollment Form'!$C873=\"ROC\"),\"-\",IF(AND('Enrollment Form'!$B873=\"Subscriber\",'Enrollment Form'!$C873=\"Enroll\",'Enrollment Form'!$AP873<>\"\"),\"Y\",\"N\")))","v":""},{"$f":"IF($B866=\"N\",\"\",IF(OR('Enrollment Form'!$B873<>\"Subscriber\",'Enrollment Form'!$C873=\"ROC\"),\"-\",IF(AND('Enrollment Form'!$B873=\"Subscriber\",'Enrollment Form'!$C873=\"Enroll\",'Enrollment Form'!$AQ873<>\"\"),\"Y\",\"N\")))","v":""},{"$f":"IF($B866=\"N\",\"\",IF(OR('Enrollment Form'!$B873<>\"Subscriber\",'Enrollment Form'!$C873=\"ROC\"),\"-\",IF(AND('Enrollment Form'!$B873=\"Subscriber\",'Enrollment Form'!$C873=\"Enroll\",'Enrollment Form'!$AS873<>\"\"),\"Y\",\"N\")))","v":""},{"$f":"IF($B866=\"N\",\"\",IF($Q866=\"-\",\"-\",IF(AND($Q866=\"Y\",'Enrollment Form'!$AS873=\"No\"),\"-\",IF(AND($Q866=\"Y\",'Enrollment Form'!$AS873=\"Yes\",'Enrollment Form'!$AT873<>\"\"),\"Y\",\"N\"))))","v":""},{"$f":"IF($B866=\"N\",\"\",IF(OR('Enrollment Form'!$B873<>\"Subscriber\",'Enrollment Form'!$C873=\"ROC\"),\"-\",IF(AND('Enrollment Form'!$B873=\"Subscriber\",'Enrollment Form'!$C873=\"Enroll\",'Enrollment Form'!$CV873<>\"\"),\"Y\",\"N\")))","v":""},{"$f":"IF($B866=\"N\",\"\",IF($S866=\"-\",\"-\",IF(AND($S866=\"Y\",'Enrollment Form'!$CV873=\"No\"),\"-\",IF(AND($S866=\"Y\",'Enrollment Form'!$CV873=\"Yes\",'Enrollment Form'!$CW873<>\"\"),\"Y\",\"N\"))))","v":""},{"$f":"IF(OR('Enrollment Form'!$AY873=\"Yes\",'Enrollment Form'!$AY873=\"\"),\"-\",IF(OR(AND('Enrollment Form'!$AY873=\"No\",ISERROR(FIND(\"HMO\",VLOOKUP('Enrollment Form'!G873,'Enrollment Form'!H$11:J$1000,3,FALSE),1))=FALSE,COUNTA('Enrollment Form'!$AZ873:$BC873)=4),AND('Enrollment Form'!$AY873=\"No\",ISERROR(FIND(\"HMO\",VLOOKUP('Enrollment Form'!G873,'Enrollment Form'!H$11:J$1000,3,FALSE),1))=FALSE,COUNTA('Enrollment Form'!$BT873:$BW873)=4)),\"Y\",\"N\"))","v":"-"},{"$f":"IF($B866=\"N\",\"\",IF('Enrollment Form'!$B873=\"Subscriber\",\"-\",IF(COUNTA('Enrollment Form'!$BL873,'Enrollment Form'!$BN873)=2,\"Y\",\"N\")))","v":""},{"$f":"IF($B866=\"N\",\"\",IF(OR('Enrollment Form'!$AX873=\"\",'Enrollment Form'!$AX873=\"No\"),\"-\",IF(AND('Enrollment Form'!$AX873=\"Yes\",COUNTA('Enrollment Form'!$CR873)=1),\"Y\",\"N\")))","v":""},{"$f":"IF(OR('Enrollment Form'!$CR873=\"\",'Enrollment Form'!$CR873=\"No\"),\"-\",IF(COUNTA('Enrollment Form'!$CT873:$CU873)=2,\"Y\",\"N\"))","v":"-"},{"$f":"IF($B866=\"N\",\"\",IF(COUNTIF('Enrollment Form'!$DG873:$DP873,\"Other\")=COUNTA('Enrollment Form'!$DK873,'Enrollment Form'!$DH873,'Enrollment Form'!$DN873,'Enrollment Form'!$DQ873),\"Y\",\"N\"))","v":""},{"$f":"IF($B866=\"N\",\"\",IF(OR('Enrollment Form'!B873<>\"Subscriber\",'Enrollment Form'!C873=\"ROC\",COUNTIF('Enrollment Form'!AV873:AW873,\"Yes\")>=1),\"-\",IF(AND('Enrollment Form'!C873=\"Enroll\",COUNTIF('Enrollment Form'!AV873:AW873,\"No\")=2,'Enrollment Form'!AX873=\"\"),\"N\",\"Y\")))","v":""},{"$f":"IF(OR(B866=\"N\",'Enrollment Form'!B873<>\"Subscriber\",'Enrollment Form'!C873=\"ROC\",'Enrollment Form'!O873<>\"Multiple of Salary\"),\"-\",IF(COUNTA('Enrollment Form'!T873:U873)<2,\"N\",\"Y\"))","v":"-"},{"$f":"IF(B866=\"N\",\"\",IF(OR('Enrollment Form'!C873=\"ROC\",'Enrollment Form'!B873<>\"Subscriber\",'Enrollment Form'!O873=\"Waive\",'Enrollment Form'!O873=\"\"),\"-\",IF('Enrollment Form'!P873=\"\",\"N\",\"Y\")))","v":""},{"$f":"IF($B866=\"N\",\"\",IF(AND('Enrollment Form'!$C873=\"ROC\",'Enrollment Form'!$DR873<>\"\"),\"Y\",IF(AND('Enrollment Form'!$C873=\"ROC\",'Enrollment Form'!$DR873=\"\"),\"N\",IF(AND('Enrollment Form'!$C873=\"Enroll\",'Enrollment Form'!$B873=\"Subscriber\",'Enrollment Form'!$CX873=\"No\",'Enrollment Form'!$DR873=\"\"),\"N\",IF(AND('Enrollment Form'!$C873=\"Enroll\",'Enrollment Form'!$B873=\"Subscriber\",'Enrollment Form'!$CX873=\"Yes\"),\"-\",\"Y\")))))","v":""},{"$f":"IF($B866=\"N\",\"\",IF(AND('Enrollment Form'!$C873=\"ROC\",'Enrollment Form'!$DS873<>\"\"),\"Y\",IF(AND('Enrollment Form'!$C873=\"ROC\",'Enrollment Form'!$DS873=\"\"),\"N\",IF(AND('Enrollment Form'!$C873=\"Enroll\",'Enrollment Form'!$B873=\"Subscriber\",'Enrollment Form'!$CX873=\"No\",'Enrollment Form'!$DS873=\"\"),\"N\",IF(AND('Enrollment Form'!$C873=\"Enroll\",'Enrollment Form'!$B873=\"Subscriber\",'Enrollment Form'!$CX873=\"Yes\"),\"-\",\"Y\")))))","v":""},{"$f":"IF('Enrollment Form'!AH873=\"\",\"\",IF(ISERROR(SEARCH(\".\",'Enrollment Form'!AH873,SEARCH(\"@\",'Enrollment Form'!AH873))),\"N\",\"Y\"))","v":""},{"$f":"IF(OR($B866=\"N\",'Enrollment Form'!$G873=\"\"),\"\",IF('Enrollment Form'!$B873<>\"Subscriber\",\"-\",IF(COUNTIF('Enrollment Form'!$AV873:$AW873,\"Yes\")=2,\"N\",\"Y\")))","v":""},{"$f":"IF(OR('Enrollment Form'!$CJ873=\"\",'Enrollment Form'!$CJ873=\"No\"),\"-\",IF(AND('Enrollment Form'!$CJ873=\"Yes\",'Enrollment Form'!$CK873=\"\"),\"N\",\"Y\"))","v":"-"},{"$f":"IF(OR('Enrollment Form'!$CL873=\"\",'Enrollment Form'!$CL873=\"No\"),\"-\",IF(AND('Enrollment Form'!$CL873=\"Yes\",'Enrollment Form'!$CM873=\"\"),\"N\",\"Y\"))","v":"-"},{"$f":"IF(OR('Enrollment Form'!$CN873=\"\",'Enrollment Form'!$CN873=\"No\"),\"-\",IF(AND('Enrollment Form'!$CN873=\"Yes\",'Enrollment Form'!$CO873=\"\"),\"N\",\"Y\"))","v":"-"},{"$f":"IF(OR('Enrollment Form'!$CN873=\"\",'Enrollment Form'!$CN873=\"No\"),\"-\",IF(AND('Enrollment Form'!$CN873=\"Yes\",'Enrollment Form'!$CP873=\"\"),\"N\",\"Y\"))","v":"-"},{"$f":"IF('Enrollment Form'!B873<>\"Subscriber\",\"-\",IF(AND('Enrollment Form'!B873=\"Subscriber\",'Enrollment Form'!C873=\"Enroll\",'Enrollment Form'!AA873=\"\"),\"N\",\"Y\"))","v":"-"},{"$f":"IF(OR('Enrollment Form'!B873=\"Subscriber\",'Enrollment Form'!B873=\"\"),\"-\",IF('Enrollment Form'!BP873=\"\",\"N\",\"Y\"))","v":"-"},{"$f":"IF('Enrollment Form'!B873<>\"Subscriber\",\"-\",IF(AND('Enrollment Form'!B873=\"Subscriber\",'Enrollment Form'!G873=\"\"),\"N\",\"Y\"))","v":"-"},{"$f":"IF('Enrollment Form'!A873=\"\",\"\",IF('Enrollment Form'!B873=\"Subscriber\",\"-\",IF(AND('Enrollment Form'!B873<>\"Subscriber\",'Enrollment Form'!G873='Enrollment Form'!H873),\"N\",\"Y\")))","v":""},0]
[874,{"$f":"IF('Enrollment Form'!$A874<>\"\",\"Y\",\"N\")","v":"N"},{"$f":"IF(AND('Enrollment Form'!$B874=\"\",'Enrollment Form'!$C874<>\"\"),\"N\",IF($B867=\"N\",\"\",\"Y\"))","v":""},{"$f":"IF(OR($B867=\"N\",'Enrollment Form'!G874=\"\"),\"\",IF('Enrollment Form'!$B874<>\"Subscriber\",\"\",IF('Enrollment Form'!$G874='Enrollment Form'!$H874,\"Y\",\"N\")))","v":""},{"$f":"IF($B867=\"N\",\"\",IF(AND(COUNTIFS('Enrollment Form'!$H$11:$H$1000,'Enrollment Form'!$H874,'Enrollment Form'!$B$11:$B$1000,'Enrollment Form'!$B874)>1,'Enrollment Form'!$H874<>\"\"),\"N\",\"Y\"))","v":""},{"$f":"IF($B867=\"N\",\"\",IF(LEN('Enrollment Form'!$Y874)=0,\"\",IF(LEN('Enrollment Form'!$Y874)<>5,\"N\",\"Y\")))","v":""},{"$f":"IF($B867=\"N\",\"\",IF(LEN('Enrollment Form'!$AD874=0),\"\",IF(LEN('Enrollment Form'!$AD874)<>5,\"N\",\"Y\")))","v":""},{"$f":"IF($B867=\"N\",\"\",IF(LEN('Enrollment Form'!$BS874=0),\"\",IF(LEN('Enrollment Form'!$BS874)<>5,\"N\",\"Y\")))","v":""},{"$f":"IF($B867=\"N\",\"\",IF(LEN('Enrollment Form'!$AE874)=0,\"\",IF(LEN('Enrollment Form'!$AE874)<>10,\"N\",\"Y\")))","v":""},{"$f":"IF($B867=\"N\",\"\",IF(LEN('Enrollment Form'!$AF874)=0,\"\",IF(LEN('Enrollment Form'!$AF874)<>10,\"N\",\"Y\")))","v":""},{"$f":"IF('Enrollment Form'!$O874<>\"Graded\",\"-\",IF(AND('Enrollment Form'!$O874=\"Graded\",'Enrollment Form'!$AR874<>\"\"),\"Y\",\"N\"))","v":"-"},{"$f":"IF($B867=\"N\",\"\",IF(OR('Enrollment Form'!$B874<>\"Subscriber\",'Enrollment Form'!$C874=\"ROC\"),\"-\",IF(AND('Enrollment Form'!$B874=\"Subscriber\",'Enrollment Form'!$C874=\"Enroll\",'Enrollment Form'!$AJ874<>\"\"),\"Y\",\"N\")))","v":""},{"$f":"IF($B867=\"N\",\"\",IF(OR('Enrollment Form'!$B874<>\"Subscriber\",'Enrollment Form'!$C874=\"ROC\"),\"-\",IF(AND('Enrollment Form'!$B874=\"Subscriber\",'Enrollment Form'!$C874=\"Enroll\",'Enrollment Form'!$AK874<>\"\"),\"Y\",\"N\")))","v":""},{"$f":"IF($B867=\"N\",\"\",IF(OR('Enrollment Form'!$B874<>\"Subscriber\",'Enrollment Form'!$C874=\"ROC\"),\"-\",IF(AND('Enrollment Form'!$B874=\"Subscriber\",'Enrollment Form'!$C874=\"Enroll\",'Enrollment Form'!$AL874<>\"\"),\"Y\",\"N\")))","v":""},{"$f":"IF($B867=\"N\",\"\",IF(OR('Enrollment Form'!$B874<>\"Subscriber\",'Enrollment Form'!$C874=\"ROC\"),\"-\",IF(AND('Enrollment Form'!$B874=\"Subscriber\",'Enrollment Form'!$C874=\"Enroll\",'Enrollment Form'!$AP874<>\"\"),\"Y\",\"N\")))","v":""},{"$f":"IF($B867=\"N\",\"\",IF(OR('Enrollment Form'!$B874<>\"Subscriber\",'Enrollment Form'!$C874=\"ROC\"),\"-\",IF(AND('Enrollment Form'!$B874=\"Subscriber\",'Enrollment Form'!$C874=\"Enroll\",'Enrollment Form'!$AQ874<>\"\"),\"Y\",\"N\")))","v":""},{"$f":"IF($B867=\"N\",\"\",IF(OR('Enrollment Form'!$B874<>\"Subscriber\",'Enrollment Form'!$C874=\"ROC\"),\"-\",IF(AND('Enrollment Form'!$B874=\"Subscriber\",'Enrollment Form'!$C874=\"Enroll\",'Enrollment Form'!$AS874<>\"\"),\"Y\",\"N\")))","v":""},{"$f":"IF($B867=\"N\",\"\",IF($Q867=\"-\",\"-\",IF(AND($Q867=\"Y\",'Enrollment Form'!$AS874=\"No\"),\"-\",IF(AND($Q867=\"Y\",'Enrollment Form'!$AS874=\"Yes\",'Enrollment Form'!$AT874<>\"\"),\"Y\",\"N\"))))","v":""},{"$f":"IF($B867=\"N\",\"\",IF(OR('Enrollment Form'!$B874<>\"Subscriber\",'Enrollment Form'!$C874=\"ROC\"),\"-\",IF(AND('Enrollment Form'!$B874=\"Subscriber\",'Enrollment Form'!$C874=\"Enroll\",'Enrollment Form'!$CV874<>\"\"),\"Y\",\"N\")))","v":""},{"$f":"IF($B867=\"N\",\"\",IF($S867=\"-\",\"-\",IF(AND($S867=\"Y\",'Enrollment Form'!$CV874=\"No\"),\"-\",IF(AND($S867=\"Y\",'Enrollment Form'!$CV874=\"Yes\",'Enrollment Form'!$CW874<>\"\"),\"Y\",\"N\"))))","v":""},{"$f":"IF(OR('Enrollment Form'!$AY874=\"Yes\",'Enrollment Form'!$AY874=\"\"),\"-\",IF(OR(AND('Enrollment Form'!$AY874=\"No\",ISERROR(FIND(\"HMO\",VLOOKUP('Enrollment Form'!G874,'Enrollment Form'!H$11:J$1000,3,FALSE),1))=FALSE,COUNTA('Enrollment Form'!$AZ874:$BC874)=4),AND('Enrollment Form'!$AY874=\"No\",ISERROR(FIND(\"HMO\",VLOOKUP('Enrollment Form'!G874,'Enrollment Form'!H$11:J$1000,3,FALSE),1))=FALSE,COUNTA('Enrollment Form'!$BT874:$BW874)=4)),\"Y\",\"N\"))","v":"-"},{"$f":"IF($B867=\"N\",\"\",IF('Enrollment Form'!$B874=\"Subscriber\",\"-\",IF(COUNTA('Enrollment Form'!$BL874,'Enrollment Form'!$BN874)=2,\"Y\",\"N\")))","v":""},{"$f":"IF($B867=\"N\",\"\",IF(OR('Enrollment Form'!$AX874=\"\",'Enrollment Form'!$AX874=\"No\"),\"-\",IF(AND('Enrollment Form'!$AX874=\"Yes\",COUNTA('Enrollment Form'!$CR874)=1),\"Y\",\"N\")))","v":""},{"$f":"IF(OR('Enrollment Form'!$CR874=\"\",'Enrollment Form'!$CR874=\"No\"),\"-\",IF(COUNTA('Enrollment Form'!$CT874:$CU874)=2,\"Y\",\"N\"))","v":"-"},{"$f":"IF($B867=\"N\",\"\",IF(COUNTIF('Enrollment Form'!$DG874:$DP874,\"Other\")=COUNTA('Enrollment Form'!$DK874,'Enrollment Form'!$DH874,'Enrollment Form'!$DN874,'Enrollment Form'!$DQ874),\"Y\",\"N\"))","v":""},{"$f":"IF($B867=\"N\",\"\",IF(OR('Enrollment Form'!B874<>\"Subscriber\",'Enrollment Form'!C874=\"ROC\",COUNTIF('Enrollment Form'!AV874:AW874,\"Yes\")>=1),\"-\",IF(AND('Enrollment Form'!C874=\"Enroll\",COUNTIF('Enrollment Form'!AV874:AW874,\"No\")=2,'Enrollment Form'!AX874=\"\"),\"N\",\"Y\")))","v":""},{"$f":"IF(OR(B867=\"N\",'Enrollment Form'!B874<>\"Subscriber\",'Enrollment Form'!C874=\"ROC\",'Enrollment Form'!O874<>\"Multiple of Salary\"),\"-\",IF(COUNTA('Enrollment Form'!T874:U874)<2,\"N\",\"Y\"))","v":"-"},{"$f":"IF(B867=\"N\",\"\",IF(OR('Enrollment Form'!C874=\"ROC\",'Enrollment Form'!B874<>\"Subscriber\",'Enrollment Form'!O874=\"Waive\",'Enrollment Form'!O874=\"\"),\"-\",IF('Enrollment Form'!P874=\"\",\"N\",\"Y\")))","v":""},{"$f":"IF($B867=\"N\",\"\",IF(AND('Enrollment Form'!$C874=\"ROC\",'Enrollment Form'!$DR874<>\"\"),\"Y\",IF(AND('Enrollment Form'!$C874=\"ROC\",'Enrollment Form'!$DR874=\"\"),\"N\",IF(AND('Enrollment Form'!$C874=\"Enroll\",'Enrollment Form'!$B874=\"Subscriber\",'Enrollment Form'!$CX874=\"No\",'Enrollment Form'!$DR874=\"\"),\"N\",IF(AND('Enrollment Form'!$C874=\"Enroll\",'Enrollment Form'!$B874=\"Subscriber\",'Enrollment Form'!$CX874=\"Yes\"),\"-\",\"Y\")))))","v":""},{"$f":"IF($B867=\"N\",\"\",IF(AND('Enrollment Form'!$C874=\"ROC\",'Enrollment Form'!$DS874<>\"\"),\"Y\",IF(AND('Enrollment Form'!$C874=\"ROC\",'Enrollment Form'!$DS874=\"\"),\"N\",IF(AND('Enrollment Form'!$C874=\"Enroll\",'Enrollment Form'!$B874=\"Subscriber\",'Enrollment Form'!$CX874=\"No\",'Enrollment Form'!$DS874=\"\"),\"N\",IF(AND('Enrollment Form'!$C874=\"Enroll\",'Enrollment Form'!$B874=\"Subscriber\",'Enrollment Form'!$CX874=\"Yes\"),\"-\",\"Y\")))))","v":""},{"$f":"IF('Enrollment Form'!AH874=\"\",\"\",IF(ISERROR(SEARCH(\".\",'Enrollment Form'!AH874,SEARCH(\"@\",'Enrollment Form'!AH874))),\"N\",\"Y\"))","v":""},{"$f":"IF(OR($B867=\"N\",'Enrollment Form'!$G874=\"\"),\"\",IF('Enrollment Form'!$B874<>\"Subscriber\",\"-\",IF(COUNTIF('Enrollment Form'!$AV874:$AW874,\"Yes\")=2,\"N\",\"Y\")))","v":""},{"$f":"IF(OR('Enrollment Form'!$CJ874=\"\",'Enrollment Form'!$CJ874=\"No\"),\"-\",IF(AND('Enrollment Form'!$CJ874=\"Yes\",'Enrollment Form'!$CK874=\"\"),\"N\",\"Y\"))","v":"-"},{"$f":"IF(OR('Enrollment Form'!$CL874=\"\",'Enrollment Form'!$CL874=\"No\"),\"-\",IF(AND('Enrollment Form'!$CL874=\"Yes\",'Enrollment Form'!$CM874=\"\"),\"N\",\"Y\"))","v":"-"},{"$f":"IF(OR('Enrollment Form'!$CN874=\"\",'Enrollment Form'!$CN874=\"No\"),\"-\",IF(AND('Enrollment Form'!$CN874=\"Yes\",'Enrollment Form'!$CO874=\"\"),\"N\",\"Y\"))","v":"-"},{"$f":"IF(OR('Enrollment Form'!$CN874=\"\",'Enrollment Form'!$CN874=\"No\"),\"-\",IF(AND('Enrollment Form'!$CN874=\"Yes\",'Enrollment Form'!$CP874=\"\"),\"N\",\"Y\"))","v":"-"},{"$f":"IF('Enrollment Form'!B874<>\"Subscriber\",\"-\",IF(AND('Enrollment Form'!B874=\"Subscriber\",'Enrollment Form'!C874=\"Enroll\",'Enrollment Form'!AA874=\"\"),\"N\",\"Y\"))","v":"-"},{"$f":"IF(OR('Enrollment Form'!B874=\"Subscriber\",'Enrollment Form'!B874=\"\"),\"-\",IF('Enrollment Form'!BP874=\"\",\"N\",\"Y\"))","v":"-"},{"$f":"IF('Enrollment Form'!B874<>\"Subscriber\",\"-\",IF(AND('Enrollment Form'!B874=\"Subscriber\",'Enrollment Form'!G874=\"\"),\"N\",\"Y\"))","v":"-"},{"$f":"IF('Enrollment Form'!A874=\"\",\"\",IF('Enrollment Form'!B874=\"Subscriber\",\"-\",IF(AND('Enrollment Form'!B874<>\"Subscriber\",'Enrollment Form'!G874='Enrollment Form'!H874),\"N\",\"Y\")))","v":""},0]
[875,{"$f":"IF('Enrollment Form'!$A875<>\"\",\"Y\",\"N\")","v":"N"},{"$f":"IF(AND('Enrollment Form'!$B875=\"\",'Enrollment Form'!$C875<>\"\"),\"N\",IF($B868=\"N\",\"\",\"Y\"))","v":""},{"$f":"IF(OR($B868=\"N\",'Enrollment Form'!G875=\"\"),\"\",IF('Enrollment Form'!$B875<>\"Subscriber\",\"\",IF('Enrollment Form'!$G875='Enrollment Form'!$H875,\"Y\",\"N\")))","v":""},{"$f":"IF($B868=\"N\",\"\",IF(AND(COUNTIFS('Enrollment Form'!$H$11:$H$1000,'Enrollment Form'!$H875,'Enrollment Form'!$B$11:$B$1000,'Enrollment Form'!$B875)>1,'Enrollment Form'!$H875<>\"\"),\"N\",\"Y\"))","v":""},{"$f":"IF($B868=\"N\",\"\",IF(LEN('Enrollment Form'!$Y875)=0,\"\",IF(LEN('Enrollment Form'!$Y875)<>5,\"N\",\"Y\")))","v":""},{"$f":"IF($B868=\"N\",\"\",IF(LEN('Enrollment Form'!$AD875=0),\"\",IF(LEN('Enrollment Form'!$AD875)<>5,\"N\",\"Y\")))","v":""},{"$f":"IF($B868=\"N\",\"\",IF(LEN('Enrollment Form'!$BS875=0),\"\",IF(LEN('Enrollment Form'!$BS875)<>5,\"N\",\"Y\")))","v":""},{"$f":"IF($B868=\"N\",\"\",IF(LEN('Enrollment Form'!$AE875)=0,\"\",IF(LEN('Enrollment Form'!$AE875)<>10,\"N\",\"Y\")))","v":""},{"$f":"IF($B868=\"N\",\"\",IF(LEN('Enrollment Form'!$AF875)=0,\"\",IF(LEN('Enrollment Form'!$AF875)<>10,\"N\",\"Y\")))","v":""},{"$f":"IF('Enrollment Form'!$O875<>\"Graded\",\"-\",IF(AND('Enrollment Form'!$O875=\"Graded\",'Enrollment Form'!$AR875<>\"\"),\"Y\",\"N\"))","v":"-"},{"$f":"IF($B868=\"N\",\"\",IF(OR('Enrollment Form'!$B875<>\"Subscriber\",'Enrollment Form'!$C875=\"ROC\"),\"-\",IF(AND('Enrollment Form'!$B875=\"Subscriber\",'Enrollment Form'!$C875=\"Enroll\",'Enrollment Form'!$AJ875<>\"\"),\"Y\",\"N\")))","v":""},{"$f":"IF($B868=\"N\",\"\",IF(OR('Enrollment Form'!$B875<>\"Subscriber\",'Enrollment Form'!$C875=\"ROC\"),\"-\",IF(AND('Enrollment Form'!$B875=\"Subscriber\",'Enrollment Form'!$C875=\"Enroll\",'Enrollment Form'!$AK875<>\"\"),\"Y\",\"N\")))","v":""},{"$f":"IF($B868=\"N\",\"\",IF(OR('Enrollment Form'!$B875<>\"Subscriber\",'Enrollment Form'!$C875=\"ROC\"),\"-\",IF(AND('Enrollment Form'!$B875=\"Subscriber\",'Enrollment Form'!$C875=\"Enroll\",'Enrollment Form'!$AL875<>\"\"),\"Y\",\"N\")))","v":""},{"$f":"IF($B868=\"N\",\"\",IF(OR('Enrollment Form'!$B875<>\"Subscriber\",'Enrollment Form'!$C875=\"ROC\"),\"-\",IF(AND('Enrollment Form'!$B875=\"Subscriber\",'Enrollment Form'!$C875=\"Enroll\",'Enrollment Form'!$AP875<>\"\"),\"Y\",\"N\")))","v":""},{"$f":"IF($B868=\"N\",\"\",IF(OR('Enrollment Form'!$B875<>\"Subscriber\",'Enrollment Form'!$C875=\"ROC\"),\"-\",IF(AND('Enrollment Form'!$B875=\"Subscriber\",'Enrollment Form'!$C875=\"Enroll\",'Enrollment Form'!$AQ875<>\"\"),\"Y\",\"N\")))","v":""},{"$f":"IF($B868=\"N\",\"\",IF(OR('Enrollment Form'!$B875<>\"Subscriber\",'Enrollment Form'!$C875=\"ROC\"),\"-\",IF(AND('Enrollment Form'!$B875=\"Subscriber\",'Enrollment Form'!$C875=\"Enroll\",'Enrollment Form'!$AS875<>\"\"),\"Y\",\"N\")))","v":""},{"$f":"IF($B868=\"N\",\"\",IF($Q868=\"-\",\"-\",IF(AND($Q868=\"Y\",'Enrollment Form'!$AS875=\"No\"),\"-\",IF(AND($Q868=\"Y\",'Enrollment Form'!$AS875=\"Yes\",'Enrollment Form'!$AT875<>\"\"),\"Y\",\"N\"))))","v":""},{"$f":"IF($B868=\"N\",\"\",IF(OR('Enrollment Form'!$B875<>\"Subscriber\",'Enrollment Form'!$C875=\"ROC\"),\"-\",IF(AND('Enrollment Form'!$B875=\"Subscriber\",'Enrollment Form'!$C875=\"Enroll\",'Enrollment Form'!$CV875<>\"\"),\"Y\",\"N\")))","v":""},{"$f":"IF($B868=\"N\",\"\",IF($S868=\"-\",\"-\",IF(AND($S868=\"Y\",'Enrollment Form'!$CV875=\"No\"),\"-\",IF(AND($S868=\"Y\",'Enrollment Form'!$CV875=\"Yes\",'Enrollment Form'!$CW875<>\"\"),\"Y\",\"N\"))))","v":""},{"$f":"IF(OR('Enrollment Form'!$AY875=\"Yes\",'Enrollment Form'!$AY875=\"\"),\"-\",IF(OR(AND('Enrollment Form'!$AY875=\"No\",ISERROR(FIND(\"HMO\",VLOOKUP('Enrollment Form'!G875,'Enrollment Form'!H$11:J$1000,3,FALSE),1))=FALSE,COUNTA('Enrollment Form'!$AZ875:$BC875)=4),AND('Enrollment Form'!$AY875=\"No\",ISERROR(FIND(\"HMO\",VLOOKUP('Enrollment Form'!G875,'Enrollment Form'!H$11:J$1000,3,FALSE),1))=FALSE,COUNTA('Enrollment Form'!$BT875:$BW875)=4)),\"Y\",\"N\"))","v":"-"},{"$f":"IF($B868=\"N\",\"\",IF('Enrollment Form'!$B875=\"Subscriber\",\"-\",IF(COUNTA('Enrollment Form'!$BL875,'Enrollment Form'!$BN875)=2,\"Y\",\"N\")))","v":""},{"$f":"IF($B868=\"N\",\"\",IF(OR('Enrollment Form'!$AX875=\"\",'Enrollment Form'!$AX875=\"No\"),\"-\",IF(AND('Enrollment Form'!$AX875=\"Yes\",COUNTA('Enrollment Form'!$CR875)=1),\"Y\",\"N\")))","v":""},{"$f":"IF(OR('Enrollment Form'!$CR875=\"\",'Enrollment Form'!$CR875=\"No\"),\"-\",IF(COUNTA('Enrollment Form'!$CT875:$CU875)=2,\"Y\",\"N\"))","v":"-"},{"$f":"IF($B868=\"N\",\"\",IF(COUNTIF('Enrollment Form'!$DG875:$DP875,\"Other\")=COUNTA('Enrollment Form'!$DK875,'Enrollment Form'!$DH875,'Enrollment Form'!$DN875,'Enrollment Form'!$DQ875),\"Y\",\"N\"))","v":""},{"$f":"IF($B868=\"N\",\"\",IF(OR('Enrollment Form'!B875<>\"Subscriber\",'Enrollment Form'!C875=\"ROC\",COUNTIF('Enrollment Form'!AV875:AW875,\"Yes\")>=1),\"-\",IF(AND('Enrollment Form'!C875=\"Enroll\",COUNTIF('Enrollment Form'!AV875:AW875,\"No\")=2,'Enrollment Form'!AX875=\"\"),\"N\",\"Y\")))","v":""},{"$f":"IF(OR(B868=\"N\",'Enrollment Form'!B875<>\"Subscriber\",'Enrollment Form'!C875=\"ROC\",'Enrollment Form'!O875<>\"Multiple of Salary\"),\"-\",IF(COUNTA('Enrollment Form'!T875:U875)<2,\"N\",\"Y\"))","v":"-"},{"$f":"IF(B868=\"N\",\"\",IF(OR('Enrollment Form'!C875=\"ROC\",'Enrollment Form'!B875<>\"Subscriber\",'Enrollment Form'!O875=\"Waive\",'Enrollment Form'!O875=\"\"),\"-\",IF('Enrollment Form'!P875=\"\",\"N\",\"Y\")))","v":""},{"$f":"IF($B868=\"N\",\"\",IF(AND('Enrollment Form'!$C875=\"ROC\",'Enrollment Form'!$DR875<>\"\"),\"Y\",IF(AND('Enrollment Form'!$C875=\"ROC\",'Enrollment Form'!$DR875=\"\"),\"N\",IF(AND('Enrollment Form'!$C875=\"Enroll\",'Enrollment Form'!$B875=\"Subscriber\",'Enrollment Form'!$CX875=\"No\",'Enrollment Form'!$DR875=\"\"),\"N\",IF(AND('Enrollment Form'!$C875=\"Enroll\",'Enrollment Form'!$B875=\"Subscriber\",'Enrollment Form'!$CX875=\"Yes\"),\"-\",\"Y\")))))","v":""},{"$f":"IF($B868=\"N\",\"\",IF(AND('Enrollment Form'!$C875=\"ROC\",'Enrollment Form'!$DS875<>\"\"),\"Y\",IF(AND('Enrollment Form'!$C875=\"ROC\",'Enrollment Form'!$DS875=\"\"),\"N\",IF(AND('Enrollment Form'!$C875=\"Enroll\",'Enrollment Form'!$B875=\"Subscriber\",'Enrollment Form'!$CX875=\"No\",'Enrollment Form'!$DS875=\"\"),\"N\",IF(AND('Enrollment Form'!$C875=\"Enroll\",'Enrollment Form'!$B875=\"Subscriber\",'Enrollment Form'!$CX875=\"Yes\"),\"-\",\"Y\")))))","v":""},{"$f":"IF('Enrollment Form'!AH875=\"\",\"\",IF(ISERROR(SEARCH(\".\",'Enrollment Form'!AH875,SEARCH(\"@\",'Enrollment Form'!AH875))),\"N\",\"Y\"))","v":""},{"$f":"IF(OR($B868=\"N\",'Enrollment Form'!$G875=\"\"),\"\",IF('Enrollment Form'!$B875<>\"Subscriber\",\"-\",IF(COUNTIF('Enrollment Form'!$AV875:$AW875,\"Yes\")=2,\"N\",\"Y\")))","v":""},{"$f":"IF(OR('Enrollment Form'!$CJ875=\"\",'Enrollment Form'!$CJ875=\"No\"),\"-\",IF(AND('Enrollment Form'!$CJ875=\"Yes\",'Enrollment Form'!$CK875=\"\"),\"N\",\"Y\"))","v":"-"},{"$f":"IF(OR('Enrollment Form'!$CL875=\"\",'Enrollment Form'!$CL875=\"No\"),\"-\",IF(AND('Enrollment Form'!$CL875=\"Yes\",'Enrollment Form'!$CM875=\"\"),\"N\",\"Y\"))","v":"-"},{"$f":"IF(OR('Enrollment Form'!$CN875=\"\",'Enrollment Form'!$CN875=\"No\"),\"-\",IF(AND('Enrollment Form'!$CN875=\"Yes\",'Enrollment Form'!$CO875=\"\"),\"N\",\"Y\"))","v":"-"},{"$f":"IF(OR('Enrollment Form'!$CN875=\"\",'Enrollment Form'!$CN875=\"No\"),\"-\",IF(AND('Enrollment Form'!$CN875=\"Yes\",'Enrollment Form'!$CP875=\"\"),\"N\",\"Y\"))","v":"-"},{"$f":"IF('Enrollment Form'!B875<>\"Subscriber\",\"-\",IF(AND('Enrollment Form'!B875=\"Subscriber\",'Enrollment Form'!C875=\"Enroll\",'Enrollment Form'!AA875=\"\"),\"N\",\"Y\"))","v":"-"},{"$f":"IF(OR('Enrollment Form'!B875=\"Subscriber\",'Enrollment Form'!B875=\"\"),\"-\",IF('Enrollment Form'!BP875=\"\",\"N\",\"Y\"))","v":"-"},{"$f":"IF('Enrollment Form'!B875<>\"Subscriber\",\"-\",IF(AND('Enrollment Form'!B875=\"Subscriber\",'Enrollment Form'!G875=\"\"),\"N\",\"Y\"))","v":"-"},{"$f":"IF('Enrollment Form'!A875=\"\",\"\",IF('Enrollment Form'!B875=\"Subscriber\",\"-\",IF(AND('Enrollment Form'!B875<>\"Subscriber\",'Enrollment Form'!G875='Enrollment Form'!H875),\"N\",\"Y\")))","v":""},0]
[876,{"$f":"IF('Enrollment Form'!$A876<>\"\",\"Y\",\"N\")","v":"N"},{"$f":"IF(AND('Enrollment Form'!$B876=\"\",'Enrollment Form'!$C876<>\"\"),\"N\",IF($B869=\"N\",\"\",\"Y\"))","v":""},{"$f":"IF(OR($B869=\"N\",'Enrollment Form'!G876=\"\"),\"\",IF('Enrollment Form'!$B876<>\"Subscriber\",\"\",IF('Enrollment Form'!$G876='Enrollment Form'!$H876,\"Y\",\"N\")))","v":""},{"$f":"IF($B869=\"N\",\"\",IF(AND(COUNTIFS('Enrollment Form'!$H$11:$H$1000,'Enrollment Form'!$H876,'Enrollment Form'!$B$11:$B$1000,'Enrollment Form'!$B876)>1,'Enrollment Form'!$H876<>\"\"),\"N\",\"Y\"))","v":""},{"$f":"IF($B869=\"N\",\"\",IF(LEN('Enrollment Form'!$Y876)=0,\"\",IF(LEN('Enrollment Form'!$Y876)<>5,\"N\",\"Y\")))","v":""},{"$f":"IF($B869=\"N\",\"\",IF(LEN('Enrollment Form'!$AD876=0),\"\",IF(LEN('Enrollment Form'!$AD876)<>5,\"N\",\"Y\")))","v":""},{"$f":"IF($B869=\"N\",\"\",IF(LEN('Enrollment Form'!$BS876=0),\"\",IF(LEN('Enrollment Form'!$BS876)<>5,\"N\",\"Y\")))","v":""},{"$f":"IF($B869=\"N\",\"\",IF(LEN('Enrollment Form'!$AE876)=0,\"\",IF(LEN('Enrollment Form'!$AE876)<>10,\"N\",\"Y\")))","v":""},{"$f":"IF($B869=\"N\",\"\",IF(LEN('Enrollment Form'!$AF876)=0,\"\",IF(LEN('Enrollment Form'!$AF876)<>10,\"N\",\"Y\")))","v":""},{"$f":"IF('Enrollment Form'!$O876<>\"Graded\",\"-\",IF(AND('Enrollment Form'!$O876=\"Graded\",'Enrollment Form'!$AR876<>\"\"),\"Y\",\"N\"))","v":"-"},{"$f":"IF($B869=\"N\",\"\",IF(OR('Enrollment Form'!$B876<>\"Subscriber\",'Enrollment Form'!$C876=\"ROC\"),\"-\",IF(AND('Enrollment Form'!$B876=\"Subscriber\",'Enrollment Form'!$C876=\"Enroll\",'Enrollment Form'!$AJ876<>\"\"),\"Y\",\"N\")))","v":""},{"$f":"IF($B869=\"N\",\"\",IF(OR('Enrollment Form'!$B876<>\"Subscriber\",'Enrollment Form'!$C876=\"ROC\"),\"-\",IF(AND('Enrollment Form'!$B876=\"Subscriber\",'Enrollment Form'!$C876=\"Enroll\",'Enrollment Form'!$AK876<>\"\"),\"Y\",\"N\")))","v":""},{"$f":"IF($B869=\"N\",\"\",IF(OR('Enrollment Form'!$B876<>\"Subscriber\",'Enrollment Form'!$C876=\"ROC\"),\"-\",IF(AND('Enrollment Form'!$B876=\"Subscriber\",'Enrollment Form'!$C876=\"Enroll\",'Enrollment Form'!$AL876<>\"\"),\"Y\",\"N\")))","v":""},{"$f":"IF($B869=\"N\",\"\",IF(OR('Enrollment Form'!$B876<>\"Subscriber\",'Enrollment Form'!$C876=\"ROC\"),\"-\",IF(AND('Enrollment Form'!$B876=\"Subscriber\",'Enrollment Form'!$C876=\"Enroll\",'Enrollment Form'!$AP876<>\"\"),\"Y\",\"N\")))","v":""},{"$f":"IF($B869=\"N\",\"\",IF(OR('Enrollment Form'!$B876<>\"Subscriber\",'Enrollment Form'!$C876=\"ROC\"),\"-\",IF(AND('Enrollment Form'!$B876=\"Subscriber\",'Enrollment Form'!$C876=\"Enroll\",'Enrollment Form'!$AQ876<>\"\"),\"Y\",\"N\")))","v":""},{"$f":"IF($B869=\"N\",\"\",IF(OR('Enrollment Form'!$B876<>\"Subscriber\",'Enrollment Form'!$C876=\"ROC\"),\"-\",IF(AND('Enrollment Form'!$B876=\"Subscriber\",'Enrollment Form'!$C876=\"Enroll\",'Enrollment Form'!$AS876<>\"\"),\"Y\",\"N\")))","v":""},{"$f":"IF($B869=\"N\",\"\",IF($Q869=\"-\",\"-\",IF(AND($Q869=\"Y\",'Enrollment Form'!$AS876=\"No\"),\"-\",IF(AND($Q869=\"Y\",'Enrollment Form'!$AS876=\"Yes\",'Enrollment Form'!$AT876<>\"\"),\"Y\",\"N\"))))","v":""},{"$f":"IF($B869=\"N\",\"\",IF(OR('Enrollment Form'!$B876<>\"Subscriber\",'Enrollment Form'!$C876=\"ROC\"),\"-\",IF(AND('Enrollment Form'!$B876=\"Subscriber\",'Enrollment Form'!$C876=\"Enroll\",'Enrollment Form'!$CV876<>\"\"),\"Y\",\"N\")))","v":""},{"$f":"IF($B869=\"N\",\"\",IF($S869=\"-\",\"-\",IF(AND($S869=\"Y\",'Enrollment Form'!$CV876=\"No\"),\"-\",IF(AND($S869=\"Y\",'Enrollment Form'!$CV876=\"Yes\",'Enrollment Form'!$CW876<>\"\"),\"Y\",\"N\"))))","v":""},{"$f":"IF(OR('Enrollment Form'!$AY876=\"Yes\",'Enrollment Form'!$AY876=\"\"),\"-\",IF(OR(AND('Enrollment Form'!$AY876=\"No\",ISERROR(FIND(\"HMO\",VLOOKUP('Enrollment Form'!G876,'Enrollment Form'!H$11:J$1000,3,FALSE),1))=FALSE,COUNTA('Enrollment Form'!$AZ876:$BC876)=4),AND('Enrollment Form'!$AY876=\"No\",ISERROR(FIND(\"HMO\",VLOOKUP('Enrollment Form'!G876,'Enrollment Form'!H$11:J$1000,3,FALSE),1))=FALSE,COUNTA('Enrollment Form'!$BT876:$BW876)=4)),\"Y\",\"N\"))","v":"-"},{"$f":"IF($B869=\"N\",\"\",IF('Enrollment Form'!$B876=\"Subscriber\",\"-\",IF(COUNTA('Enrollment Form'!$BL876,'Enrollment Form'!$BN876)=2,\"Y\",\"N\")))","v":""},{"$f":"IF($B869=\"N\",\"\",IF(OR('Enrollment Form'!$AX876=\"\",'Enrollment Form'!$AX876=\"No\"),\"-\",IF(AND('Enrollment Form'!$AX876=\"Yes\",COUNTA('Enrollment Form'!$CR876)=1),\"Y\",\"N\")))","v":""},{"$f":"IF(OR('Enrollment Form'!$CR876=\"\",'Enrollment Form'!$CR876=\"No\"),\"-\",IF(COUNTA('Enrollment Form'!$CT876:$CU876)=2,\"Y\",\"N\"))","v":"-"},{"$f":"IF($B869=\"N\",\"\",IF(COUNTIF('Enrollment Form'!$DG876:$DP876,\"Other\")=COUNTA('Enrollment Form'!$DK876,'Enrollment Form'!$DH876,'Enrollment Form'!$DN876,'Enrollment Form'!$DQ876),\"Y\",\"N\"))","v":""},{"$f":"IF($B869=\"N\",\"\",IF(OR('Enrollment Form'!B876<>\"Subscriber\",'Enrollment Form'!C876=\"ROC\",COUNTIF('Enrollment Form'!AV876:AW876,\"Yes\")>=1),\"-\",IF(AND('Enrollment Form'!C876=\"Enroll\",COUNTIF('Enrollment Form'!AV876:AW876,\"No\")=2,'Enrollment Form'!AX876=\"\"),\"N\",\"Y\")))","v":""},{"$f":"IF(OR(B869=\"N\",'Enrollment Form'!B876<>\"Subscriber\",'Enrollment Form'!C876=\"ROC\",'Enrollment Form'!O876<>\"Multiple of Salary\"),\"-\",IF(COUNTA('Enrollment Form'!T876:U876)<2,\"N\",\"Y\"))","v":"-"},{"$f":"IF(B869=\"N\",\"\",IF(OR('Enrollment Form'!C876=\"ROC\",'Enrollment Form'!B876<>\"Subscriber\",'Enrollment Form'!O876=\"Waive\",'Enrollment Form'!O876=\"\"),\"-\",IF('Enrollment Form'!P876=\"\",\"N\",\"Y\")))","v":""},{"$f":"IF($B869=\"N\",\"\",IF(AND('Enrollment Form'!$C876=\"ROC\",'Enrollment Form'!$DR876<>\"\"),\"Y\",IF(AND('Enrollment Form'!$C876=\"ROC\",'Enrollment Form'!$DR876=\"\"),\"N\",IF(AND('Enrollment Form'!$C876=\"Enroll\",'Enrollment Form'!$B876=\"Subscriber\",'Enrollment Form'!$CX876=\"No\",'Enrollment Form'!$DR876=\"\"),\"N\",IF(AND('Enrollment Form'!$C876=\"Enroll\",'Enrollment Form'!$B876=\"Subscriber\",'Enrollment Form'!$CX876=\"Yes\"),\"-\",\"Y\")))))","v":""},{"$f":"IF($B869=\"N\",\"\",IF(AND('Enrollment Form'!$C876=\"ROC\",'Enrollment Form'!$DS876<>\"\"),\"Y\",IF(AND('Enrollment Form'!$C876=\"ROC\",'Enrollment Form'!$DS876=\"\"),\"N\",IF(AND('Enrollment Form'!$C876=\"Enroll\",'Enrollment Form'!$B876=\"Subscriber\",'Enrollment Form'!$CX876=\"No\",'Enrollment Form'!$DS876=\"\"),\"N\",IF(AND('Enrollment Form'!$C876=\"Enroll\",'Enrollment Form'!$B876=\"Subscriber\",'Enrollment Form'!$CX876=\"Yes\"),\"-\",\"Y\")))))","v":""},{"$f":"IF('Enrollment Form'!AH876=\"\",\"\",IF(ISERROR(SEARCH(\".\",'Enrollment Form'!AH876,SEARCH(\"@\",'Enrollment Form'!AH876))),\"N\",\"Y\"))","v":""},{"$f":"IF(OR($B869=\"N\",'Enrollment Form'!$G876=\"\"),\"\",IF('Enrollment Form'!$B876<>\"Subscriber\",\"-\",IF(COUNTIF('Enrollment Form'!$AV876:$AW876,\"Yes\")=2,\"N\",\"Y\")))","v":""},{"$f":"IF(OR('Enrollment Form'!$CJ876=\"\",'Enrollment Form'!$CJ876=\"No\"),\"-\",IF(AND('Enrollment Form'!$CJ876=\"Yes\",'Enrollment Form'!$CK876=\"\"),\"N\",\"Y\"))","v":"-"},{"$f":"IF(OR('Enrollment Form'!$CL876=\"\",'Enrollment Form'!$CL876=\"No\"),\"-\",IF(AND('Enrollment Form'!$CL876=\"Yes\",'Enrollment Form'!$CM876=\"\"),\"N\",\"Y\"))","v":"-"},{"$f":"IF(OR('Enrollment Form'!$CN876=\"\",'Enrollment Form'!$CN876=\"No\"),\"-\",IF(AND('Enrollment Form'!$CN876=\"Yes\",'Enrollment Form'!$CO876=\"\"),\"N\",\"Y\"))","v":"-"},{"$f":"IF(OR('Enrollment Form'!$CN876=\"\",'Enrollment Form'!$CN876=\"No\"),\"-\",IF(AND('Enrollment Form'!$CN876=\"Yes\",'Enrollment Form'!$CP876=\"\"),\"N\",\"Y\"))","v":"-"},{"$f":"IF('Enrollment Form'!B876<>\"Subscriber\",\"-\",IF(AND('Enrollment Form'!B876=\"Subscriber\",'Enrollment Form'!C876=\"Enroll\",'Enrollment Form'!AA876=\"\"),\"N\",\"Y\"))","v":"-"},{"$f":"IF(OR('Enrollment Form'!B876=\"Subscriber\",'Enrollment Form'!B876=\"\"),\"-\",IF('Enrollment Form'!BP876=\"\",\"N\",\"Y\"))","v":"-"},{"$f":"IF('Enrollment Form'!B876<>\"Subscriber\",\"-\",IF(AND('Enrollment Form'!B876=\"Subscriber\",'Enrollment Form'!G876=\"\"),\"N\",\"Y\"))","v":"-"},{"$f":"IF('Enrollment Form'!A876=\"\",\"\",IF('Enrollment Form'!B876=\"Subscriber\",\"-\",IF(AND('Enrollment Form'!B876<>\"Subscriber\",'Enrollment Form'!G876='Enrollment Form'!H876),\"N\",\"Y\")))","v":""},0]
[877,{"$f":"IF('Enrollment Form'!$A877<>\"\",\"Y\",\"N\")","v":"N"},{"$f":"IF(AND('Enrollment Form'!$B877=\"\",'Enrollment Form'!$C877<>\"\"),\"N\",IF($B870=\"N\",\"\",\"Y\"))","v":""},{"$f":"IF(OR($B870=\"N\",'Enrollment Form'!G877=\"\"),\"\",IF('Enrollment Form'!$B877<>\"Subscriber\",\"\",IF('Enrollment Form'!$G877='Enrollment Form'!$H877,\"Y\",\"N\")))","v":""},{"$f":"IF($B870=\"N\",\"\",IF(AND(COUNTIFS('Enrollment Form'!$H$11:$H$1000,'Enrollment Form'!$H877,'Enrollment Form'!$B$11:$B$1000,'Enrollment Form'!$B877)>1,'Enrollment Form'!$H877<>\"\"),\"N\",\"Y\"))","v":""},{"$f":"IF($B870=\"N\",\"\",IF(LEN('Enrollment Form'!$Y877)=0,\"\",IF(LEN('Enrollment Form'!$Y877)<>5,\"N\",\"Y\")))","v":""},{"$f":"IF($B870=\"N\",\"\",IF(LEN('Enrollment Form'!$AD877=0),\"\",IF(LEN('Enrollment Form'!$AD877)<>5,\"N\",\"Y\")))","v":""},{"$f":"IF($B870=\"N\",\"\",IF(LEN('Enrollment Form'!$BS877=0),\"\",IF(LEN('Enrollment Form'!$BS877)<>5,\"N\",\"Y\")))","v":""},{"$f":"IF($B870=\"N\",\"\",IF(LEN('Enrollment Form'!$AE877)=0,\"\",IF(LEN('Enrollment Form'!$AE877)<>10,\"N\",\"Y\")))","v":""},{"$f":"IF($B870=\"N\",\"\",IF(LEN('Enrollment Form'!$AF877)=0,\"\",IF(LEN('Enrollment Form'!$AF877)<>10,\"N\",\"Y\")))","v":""},{"$f":"IF('Enrollment Form'!$O877<>\"Graded\",\"-\",IF(AND('Enrollment Form'!$O877=\"Graded\",'Enrollment Form'!$AR877<>\"\"),\"Y\",\"N\"))","v":"-"},{"$f":"IF($B870=\"N\",\"\",IF(OR('Enrollment Form'!$B877<>\"Subscriber\",'Enrollment Form'!$C877=\"ROC\"),\"-\",IF(AND('Enrollment Form'!$B877=\"Subscriber\",'Enrollment Form'!$C877=\"Enroll\",'Enrollment Form'!$AJ877<>\"\"),\"Y\",\"N\")))","v":""},{"$f":"IF($B870=\"N\",\"\",IF(OR('Enrollment Form'!$B877<>\"Subscriber\",'Enrollment Form'!$C877=\"ROC\"),\"-\",IF(AND('Enrollment Form'!$B877=\"Subscriber\",'Enrollment Form'!$C877=\"Enroll\",'Enrollment Form'!$AK877<>\"\"),\"Y\",\"N\")))","v":""},{"$f":"IF($B870=\"N\",\"\",IF(OR('Enrollment Form'!$B877<>\"Subscriber\",'Enrollment Form'!$C877=\"ROC\"),\"-\",IF(AND('Enrollment Form'!$B877=\"Subscriber\",'Enrollment Form'!$C877=\"Enroll\",'Enrollment Form'!$AL877<>\"\"),\"Y\",\"N\")))","v":""},{"$f":"IF($B870=\"N\",\"\",IF(OR('Enrollment Form'!$B877<>\"Subscriber\",'Enrollment Form'!$C877=\"ROC\"),\"-\",IF(AND('Enrollment Form'!$B877=\"Subscriber\",'Enrollment Form'!$C877=\"Enroll\",'Enrollment Form'!$AP877<>\"\"),\"Y\",\"N\")))","v":""},{"$f":"IF($B870=\"N\",\"\",IF(OR('Enrollment Form'!$B877<>\"Subscriber\",'Enrollment Form'!$C877=\"ROC\"),\"-\",IF(AND('Enrollment Form'!$B877=\"Subscriber\",'Enrollment Form'!$C877=\"Enroll\",'Enrollment Form'!$AQ877<>\"\"),\"Y\",\"N\")))","v":""},{"$f":"IF($B870=\"N\",\"\",IF(OR('Enrollment Form'!$B877<>\"Subscriber\",'Enrollment Form'!$C877=\"ROC\"),\"-\",IF(AND('Enrollment Form'!$B877=\"Subscriber\",'Enrollment Form'!$C877=\"Enroll\",'Enrollment Form'!$AS877<>\"\"),\"Y\",\"N\")))","v":""},{"$f":"IF($B870=\"N\",\"\",IF($Q870=\"-\",\"-\",IF(AND($Q870=\"Y\",'Enrollment Form'!$AS877=\"No\"),\"-\",IF(AND($Q870=\"Y\",'Enrollment Form'!$AS877=\"Yes\",'Enrollment Form'!$AT877<>\"\"),\"Y\",\"N\"))))","v":""},{"$f":"IF($B870=\"N\",\"\",IF(OR('Enrollment Form'!$B877<>\"Subscriber\",'Enrollment Form'!$C877=\"ROC\"),\"-\",IF(AND('Enrollment Form'!$B877=\"Subscriber\",'Enrollment Form'!$C877=\"Enroll\",'Enrollment Form'!$CV877<>\"\"),\"Y\",\"N\")))","v":""},{"$f":"IF($B870=\"N\",\"\",IF($S870=\"-\",\"-\",IF(AND($S870=\"Y\",'Enrollment Form'!$CV877=\"No\"),\"-\",IF(AND($S870=\"Y\",'Enrollment Form'!$CV877=\"Yes\",'Enrollment Form'!$CW877<>\"\"),\"Y\",\"N\"))))","v":""},{"$f":"IF(OR('Enrollment Form'!$AY877=\"Yes\",'Enrollment Form'!$AY877=\"\"),\"-\",IF(OR(AND('Enrollment Form'!$AY877=\"No\",ISERROR(FIND(\"HMO\",VLOOKUP('Enrollment Form'!G877,'Enrollment Form'!H$11:J$1000,3,FALSE),1))=FALSE,COUNTA('Enrollment Form'!$AZ877:$BC877)=4),AND('Enrollment Form'!$AY877=\"No\",ISERROR(FIND(\"HMO\",VLOOKUP('Enrollment Form'!G877,'Enrollment Form'!H$11:J$1000,3,FALSE),1))=FALSE,COUNTA('Enrollment Form'!$BT877:$BW877)=4)),\"Y\",\"N\"))","v":"-"},{"$f":"IF($B870=\"N\",\"\",IF('Enrollment Form'!$B877=\"Subscriber\",\"-\",IF(COUNTA('Enrollment Form'!$BL877,'Enrollment Form'!$BN877)=2,\"Y\",\"N\")))","v":""},{"$f":"IF($B870=\"N\",\"\",IF(OR('Enrollment Form'!$AX877=\"\",'Enrollment Form'!$AX877=\"No\"),\"-\",IF(AND('Enrollment Form'!$AX877=\"Yes\",COUNTA('Enrollment Form'!$CR877)=1),\"Y\",\"N\")))","v":""},{"$f":"IF(OR('Enrollment Form'!$CR877=\"\",'Enrollment Form'!$CR877=\"No\"),\"-\",IF(COUNTA('Enrollment Form'!$CT877:$CU877)=2,\"Y\",\"N\"))","v":"-"},{"$f":"IF($B870=\"N\",\"\",IF(COUNTIF('Enrollment Form'!$DG877:$DP877,\"Other\")=COUNTA('Enrollment Form'!$DK877,'Enrollment Form'!$DH877,'Enrollment Form'!$DN877,'Enrollment Form'!$DQ877),\"Y\",\"N\"))","v":""},{"$f":"IF($B870=\"N\",\"\",IF(OR('Enrollment Form'!B877<>\"Subscriber\",'Enrollment Form'!C877=\"ROC\",COUNTIF('Enrollment Form'!AV877:AW877,\"Yes\")>=1),\"-\",IF(AND('Enrollment Form'!C877=\"Enroll\",COUNTIF('Enrollment Form'!AV877:AW877,\"No\")=2,'Enrollment Form'!AX877=\"\"),\"N\",\"Y\")))","v":""},{"$f":"IF(OR(B870=\"N\",'Enrollment Form'!B877<>\"Subscriber\",'Enrollment Form'!C877=\"ROC\",'Enrollment Form'!O877<>\"Multiple of Salary\"),\"-\",IF(COUNTA('Enrollment Form'!T877:U877)<2,\"N\",\"Y\"))","v":"-"},{"$f":"IF(B870=\"N\",\"\",IF(OR('Enrollment Form'!C877=\"ROC\",'Enrollment Form'!B877<>\"Subscriber\",'Enrollment Form'!O877=\"Waive\",'Enrollment Form'!O877=\"\"),\"-\",IF('Enrollment Form'!P877=\"\",\"N\",\"Y\")))","v":""},{"$f":"IF($B870=\"N\",\"\",IF(AND('Enrollment Form'!$C877=\"ROC\",'Enrollment Form'!$DR877<>\"\"),\"Y\",IF(AND('Enrollment Form'!$C877=\"ROC\",'Enrollment Form'!$DR877=\"\"),\"N\",IF(AND('Enrollment Form'!$C877=\"Enroll\",'Enrollment Form'!$B877=\"Subscriber\",'Enrollment Form'!$CX877=\"No\",'Enrollment Form'!$DR877=\"\"),\"N\",IF(AND('Enrollment Form'!$C877=\"Enroll\",'Enrollment Form'!$B877=\"Subscriber\",'Enrollment Form'!$CX877=\"Yes\"),\"-\",\"Y\")))))","v":""},{"$f":"IF($B870=\"N\",\"\",IF(AND('Enrollment Form'!$C877=\"ROC\",'Enrollment Form'!$DS877<>\"\"),\"Y\",IF(AND('Enrollment Form'!$C877=\"ROC\",'Enrollment Form'!$DS877=\"\"),\"N\",IF(AND('Enrollment Form'!$C877=\"Enroll\",'Enrollment Form'!$B877=\"Subscriber\",'Enrollment Form'!$CX877=\"No\",'Enrollment Form'!$DS877=\"\"),\"N\",IF(AND('Enrollment Form'!$C877=\"Enroll\",'Enrollment Form'!$B877=\"Subscriber\",'Enrollment Form'!$CX877=\"Yes\"),\"-\",\"Y\")))))","v":""},{"$f":"IF('Enrollment Form'!AH877=\"\",\"\",IF(ISERROR(SEARCH(\".\",'Enrollment Form'!AH877,SEARCH(\"@\",'Enrollment Form'!AH877))),\"N\",\"Y\"))","v":""},{"$f":"IF(OR($B870=\"N\",'Enrollment Form'!$G877=\"\"),\"\",IF('Enrollment Form'!$B877<>\"Subscriber\",\"-\",IF(COUNTIF('Enrollment Form'!$AV877:$AW877,\"Yes\")=2,\"N\",\"Y\")))","v":""},{"$f":"IF(OR('Enrollment Form'!$CJ877=\"\",'Enrollment Form'!$CJ877=\"No\"),\"-\",IF(AND('Enrollment Form'!$CJ877=\"Yes\",'Enrollment Form'!$CK877=\"\"),\"N\",\"Y\"))","v":"-"},{"$f":"IF(OR('Enrollment Form'!$CL877=\"\",'Enrollment Form'!$CL877=\"No\"),\"-\",IF(AND('Enrollment Form'!$CL877=\"Yes\",'Enrollment Form'!$CM877=\"\"),\"N\",\"Y\"))","v":"-"},{"$f":"IF(OR('Enrollment Form'!$CN877=\"\",'Enrollment Form'!$CN877=\"No\"),\"-\",IF(AND('Enrollment Form'!$CN877=\"Yes\",'Enrollment Form'!$CO877=\"\"),\"N\",\"Y\"))","v":"-"},{"$f":"IF(OR('Enrollment Form'!$CN877=\"\",'Enrollment Form'!$CN877=\"No\"),\"-\",IF(AND('Enrollment Form'!$CN877=\"Yes\",'Enrollment Form'!$CP877=\"\"),\"N\",\"Y\"))","v":"-"},{"$f":"IF('Enrollment Form'!B877<>\"Subscriber\",\"-\",IF(AND('Enrollment Form'!B877=\"Subscriber\",'Enrollment Form'!C877=\"Enroll\",'Enrollment Form'!AA877=\"\"),\"N\",\"Y\"))","v":"-"},{"$f":"IF(OR('Enrollment Form'!B877=\"Subscriber\",'Enrollment Form'!B877=\"\"),\"-\",IF('Enrollment Form'!BP877=\"\",\"N\",\"Y\"))","v":"-"},{"$f":"IF('Enrollment Form'!B877<>\"Subscriber\",\"-\",IF(AND('Enrollment Form'!B877=\"Subscriber\",'Enrollment Form'!G877=\"\"),\"N\",\"Y\"))","v":"-"},{"$f":"IF('Enrollment Form'!A877=\"\",\"\",IF('Enrollment Form'!B877=\"Subscriber\",\"-\",IF(AND('Enrollment Form'!B877<>\"Subscriber\",'Enrollment Form'!G877='Enrollment Form'!H877),\"N\",\"Y\")))","v":""},0]
[878,{"$f":"IF('Enrollment Form'!$A878<>\"\",\"Y\",\"N\")","v":"N"},{"$f":"IF(AND('Enrollment Form'!$B878=\"\",'Enrollment Form'!$C878<>\"\"),\"N\",IF($B871=\"N\",\"\",\"Y\"))","v":""},{"$f":"IF(OR($B871=\"N\",'Enrollment Form'!G878=\"\"),\"\",IF('Enrollment Form'!$B878<>\"Subscriber\",\"\",IF('Enrollment Form'!$G878='Enrollment Form'!$H878,\"Y\",\"N\")))","v":""},{"$f":"IF($B871=\"N\",\"\",IF(AND(COUNTIFS('Enrollment Form'!$H$11:$H$1000,'Enrollment Form'!$H878,'Enrollment Form'!$B$11:$B$1000,'Enrollment Form'!$B878)>1,'Enrollment Form'!$H878<>\"\"),\"N\",\"Y\"))","v":""},{"$f":"IF($B871=\"N\",\"\",IF(LEN('Enrollment Form'!$Y878)=0,\"\",IF(LEN('Enrollment Form'!$Y878)<>5,\"N\",\"Y\")))","v":""},{"$f":"IF($B871=\"N\",\"\",IF(LEN('Enrollment Form'!$AD878=0),\"\",IF(LEN('Enrollment Form'!$AD878)<>5,\"N\",\"Y\")))","v":""},{"$f":"IF($B871=\"N\",\"\",IF(LEN('Enrollment Form'!$BS878=0),\"\",IF(LEN('Enrollment Form'!$BS878)<>5,\"N\",\"Y\")))","v":""},{"$f":"IF($B871=\"N\",\"\",IF(LEN('Enrollment Form'!$AE878)=0,\"\",IF(LEN('Enrollment Form'!$AE878)<>10,\"N\",\"Y\")))","v":""},{"$f":"IF($B871=\"N\",\"\",IF(LEN('Enrollment Form'!$AF878)=0,\"\",IF(LEN('Enrollment Form'!$AF878)<>10,\"N\",\"Y\")))","v":""},{"$f":"IF('Enrollment Form'!$O878<>\"Graded\",\"-\",IF(AND('Enrollment Form'!$O878=\"Graded\",'Enrollment Form'!$AR878<>\"\"),\"Y\",\"N\"))","v":"-"},{"$f":"IF($B871=\"N\",\"\",IF(OR('Enrollment Form'!$B878<>\"Subscriber\",'Enrollment Form'!$C878=\"ROC\"),\"-\",IF(AND('Enrollment Form'!$B878=\"Subscriber\",'Enrollment Form'!$C878=\"Enroll\",'Enrollment Form'!$AJ878<>\"\"),\"Y\",\"N\")))","v":""},{"$f":"IF($B871=\"N\",\"\",IF(OR('Enrollment Form'!$B878<>\"Subscriber\",'Enrollment Form'!$C878=\"ROC\"),\"-\",IF(AND('Enrollment Form'!$B878=\"Subscriber\",'Enrollment Form'!$C878=\"Enroll\",'Enrollment Form'!$AK878<>\"\"),\"Y\",\"N\")))","v":""},{"$f":"IF($B871=\"N\",\"\",IF(OR('Enrollment Form'!$B878<>\"Subscriber\",'Enrollment Form'!$C878=\"ROC\"),\"-\",IF(AND('Enrollment Form'!$B878=\"Subscriber\",'Enrollment Form'!$C878=\"Enroll\",'Enrollment Form'!$AL878<>\"\"),\"Y\",\"N\")))","v":""},{"$f":"IF($B871=\"N\",\"\",IF(OR('Enrollment Form'!$B878<>\"Subscriber\",'Enrollment Form'!$C878=\"ROC\"),\"-\",IF(AND('Enrollment Form'!$B878=\"Subscriber\",'Enrollment Form'!$C878=\"Enroll\",'Enrollment Form'!$AP878<>\"\"),\"Y\",\"N\")))","v":""},{"$f":"IF($B871=\"N\",\"\",IF(OR('Enrollment Form'!$B878<>\"Subscriber\",'Enrollment Form'!$C878=\"ROC\"),\"-\",IF(AND('Enrollment Form'!$B878=\"Subscriber\",'Enrollment Form'!$C878=\"Enroll\",'Enrollment Form'!$AQ878<>\"\"),\"Y\",\"N\")))","v":""},{"$f":"IF($B871=\"N\",\"\",IF(OR('Enrollment Form'!$B878<>\"Subscriber\",'Enrollment Form'!$C878=\"ROC\"),\"-\",IF(AND('Enrollment Form'!$B878=\"Subscriber\",'Enrollment Form'!$C878=\"Enroll\",'Enrollment Form'!$AS878<>\"\"),\"Y\",\"N\")))","v":""},{"$f":"IF($B871=\"N\",\"\",IF($Q871=\"-\",\"-\",IF(AND($Q871=\"Y\",'Enrollment Form'!$AS878=\"No\"),\"-\",IF(AND($Q871=\"Y\",'Enrollment Form'!$AS878=\"Yes\",'Enrollment Form'!$AT878<>\"\"),\"Y\",\"N\"))))","v":""},{"$f":"IF($B871=\"N\",\"\",IF(OR('Enrollment Form'!$B878<>\"Subscriber\",'Enrollment Form'!$C878=\"ROC\"),\"-\",IF(AND('Enrollment Form'!$B878=\"Subscriber\",'Enrollment Form'!$C878=\"Enroll\",'Enrollment Form'!$CV878<>\"\"),\"Y\",\"N\")))","v":""},{"$f":"IF($B871=\"N\",\"\",IF($S871=\"-\",\"-\",IF(AND($S871=\"Y\",'Enrollment Form'!$CV878=\"No\"),\"-\",IF(AND($S871=\"Y\",'Enrollment Form'!$CV878=\"Yes\",'Enrollment Form'!$CW878<>\"\"),\"Y\",\"N\"))))","v":""},{"$f":"IF(OR('Enrollment Form'!$AY878=\"Yes\",'Enrollment Form'!$AY878=\"\"),\"-\",IF(OR(AND('Enrollment Form'!$AY878=\"No\",ISERROR(FIND(\"HMO\",VLOOKUP('Enrollment Form'!G878,'Enrollment Form'!H$11:J$1000,3,FALSE),1))=FALSE,COUNTA('Enrollment Form'!$AZ878:$BC878)=4),AND('Enrollment Form'!$AY878=\"No\",ISERROR(FIND(\"HMO\",VLOOKUP('Enrollment Form'!G878,'Enrollment Form'!H$11:J$1000,3,FALSE),1))=FALSE,COUNTA('Enrollment Form'!$BT878:$BW878)=4)),\"Y\",\"N\"))","v":"-"},{"$f":"IF($B871=\"N\",\"\",IF('Enrollment Form'!$B878=\"Subscriber\",\"-\",IF(COUNTA('Enrollment Form'!$BL878,'Enrollment Form'!$BN878)=2,\"Y\",\"N\")))","v":""},{"$f":"IF($B871=\"N\",\"\",IF(OR('Enrollment Form'!$AX878=\"\",'Enrollment Form'!$AX878=\"No\"),\"-\",IF(AND('Enrollment Form'!$AX878=\"Yes\",COUNTA('Enrollment Form'!$CR878)=1),\"Y\",\"N\")))","v":""},{"$f":"IF(OR('Enrollment Form'!$CR878=\"\",'Enrollment Form'!$CR878=\"No\"),\"-\",IF(COUNTA('Enrollment Form'!$CT878:$CU878)=2,\"Y\",\"N\"))","v":"-"},{"$f":"IF($B871=\"N\",\"\",IF(COUNTIF('Enrollment Form'!$DG878:$DP878,\"Other\")=COUNTA('Enrollment Form'!$DK878,'Enrollment Form'!$DH878,'Enrollment Form'!$DN878,'Enrollment Form'!$DQ878),\"Y\",\"N\"))","v":""},{"$f":"IF($B871=\"N\",\"\",IF(OR('Enrollment Form'!B878<>\"Subscriber\",'Enrollment Form'!C878=\"ROC\",COUNTIF('Enrollment Form'!AV878:AW878,\"Yes\")>=1),\"-\",IF(AND('Enrollment Form'!C878=\"Enroll\",COUNTIF('Enrollment Form'!AV878:AW878,\"No\")=2,'Enrollment Form'!AX878=\"\"),\"N\",\"Y\")))","v":""},{"$f":"IF(OR(B871=\"N\",'Enrollment Form'!B878<>\"Subscriber\",'Enrollment Form'!C878=\"ROC\",'Enrollment Form'!O878<>\"Multiple of Salary\"),\"-\",IF(COUNTA('Enrollment Form'!T878:U878)<2,\"N\",\"Y\"))","v":"-"},{"$f":"IF(B871=\"N\",\"\",IF(OR('Enrollment Form'!C878=\"ROC\",'Enrollment Form'!B878<>\"Subscriber\",'Enrollment Form'!O878=\"Waive\",'Enrollment Form'!O878=\"\"),\"-\",IF('Enrollment Form'!P878=\"\",\"N\",\"Y\")))","v":""},{"$f":"IF($B871=\"N\",\"\",IF(AND('Enrollment Form'!$C878=\"ROC\",'Enrollment Form'!$DR878<>\"\"),\"Y\",IF(AND('Enrollment Form'!$C878=\"ROC\",'Enrollment Form'!$DR878=\"\"),\"N\",IF(AND('Enrollment Form'!$C878=\"Enroll\",'Enrollment Form'!$B878=\"Subscriber\",'Enrollment Form'!$CX878=\"No\",'Enrollment Form'!$DR878=\"\"),\"N\",IF(AND('Enrollment Form'!$C878=\"Enroll\",'Enrollment Form'!$B878=\"Subscriber\",'Enrollment Form'!$CX878=\"Yes\"),\"-\",\"Y\")))))","v":""},{"$f":"IF($B871=\"N\",\"\",IF(AND('Enrollment Form'!$C878=\"ROC\",'Enrollment Form'!$DS878<>\"\"),\"Y\",IF(AND('Enrollment Form'!$C878=\"ROC\",'Enrollment Form'!$DS878=\"\"),\"N\",IF(AND('Enrollment Form'!$C878=\"Enroll\",'Enrollment Form'!$B878=\"Subscriber\",'Enrollment Form'!$CX878=\"No\",'Enrollment Form'!$DS878=\"\"),\"N\",IF(AND('Enrollment Form'!$C878=\"Enroll\",'Enrollment Form'!$B878=\"Subscriber\",'Enrollment Form'!$CX878=\"Yes\"),\"-\",\"Y\")))))","v":""},{"$f":"IF('Enrollment Form'!AH878=\"\",\"\",IF(ISERROR(SEARCH(\".\",'Enrollment Form'!AH878,SEARCH(\"@\",'Enrollment Form'!AH878))),\"N\",\"Y\"))","v":""},{"$f":"IF(OR($B871=\"N\",'Enrollment Form'!$G878=\"\"),\"\",IF('Enrollment Form'!$B878<>\"Subscriber\",\"-\",IF(COUNTIF('Enrollment Form'!$AV878:$AW878,\"Yes\")=2,\"N\",\"Y\")))","v":""},{"$f":"IF(OR('Enrollment Form'!$CJ878=\"\",'Enrollment Form'!$CJ878=\"No\"),\"-\",IF(AND('Enrollment Form'!$CJ878=\"Yes\",'Enrollment Form'!$CK878=\"\"),\"N\",\"Y\"))","v":"-"},{"$f":"IF(OR('Enrollment Form'!$CL878=\"\",'Enrollment Form'!$CL878=\"No\"),\"-\",IF(AND('Enrollment Form'!$CL878=\"Yes\",'Enrollment Form'!$CM878=\"\"),\"N\",\"Y\"))","v":"-"},{"$f":"IF(OR('Enrollment Form'!$CN878=\"\",'Enrollment Form'!$CN878=\"No\"),\"-\",IF(AND('Enrollment Form'!$CN878=\"Yes\",'Enrollment Form'!$CO878=\"\"),\"N\",\"Y\"))","v":"-"},{"$f":"IF(OR('Enrollment Form'!$CN878=\"\",'Enrollment Form'!$CN878=\"No\"),\"-\",IF(AND('Enrollment Form'!$CN878=\"Yes\",'Enrollment Form'!$CP878=\"\"),\"N\",\"Y\"))","v":"-"},{"$f":"IF('Enrollment Form'!B878<>\"Subscriber\",\"-\",IF(AND('Enrollment Form'!B878=\"Subscriber\",'Enrollment Form'!C878=\"Enroll\",'Enrollment Form'!AA878=\"\"),\"N\",\"Y\"))","v":"-"},{"$f":"IF(OR('Enrollment Form'!B878=\"Subscriber\",'Enrollment Form'!B878=\"\"),\"-\",IF('Enrollment Form'!BP878=\"\",\"N\",\"Y\"))","v":"-"},{"$f":"IF('Enrollment Form'!B878<>\"Subscriber\",\"-\",IF(AND('Enrollment Form'!B878=\"Subscriber\",'Enrollment Form'!G878=\"\"),\"N\",\"Y\"))","v":"-"},{"$f":"IF('Enrollment Form'!A878=\"\",\"\",IF('Enrollment Form'!B878=\"Subscriber\",\"-\",IF(AND('Enrollment Form'!B878<>\"Subscriber\",'Enrollment Form'!G878='Enrollment Form'!H878),\"N\",\"Y\")))","v":""},0]
[879,{"$f":"IF('Enrollment Form'!$A879<>\"\",\"Y\",\"N\")","v":"N"},{"$f":"IF(AND('Enrollment Form'!$B879=\"\",'Enrollment Form'!$C879<>\"\"),\"N\",IF($B872=\"N\",\"\",\"Y\"))","v":""},{"$f":"IF(OR($B872=\"N\",'Enrollment Form'!G879=\"\"),\"\",IF('Enrollment Form'!$B879<>\"Subscriber\",\"\",IF('Enrollment Form'!$G879='Enrollment Form'!$H879,\"Y\",\"N\")))","v":""},{"$f":"IF($B872=\"N\",\"\",IF(AND(COUNTIFS('Enrollment Form'!$H$11:$H$1000,'Enrollment Form'!$H879,'Enrollment Form'!$B$11:$B$1000,'Enrollment Form'!$B879)>1,'Enrollment Form'!$H879<>\"\"),\"N\",\"Y\"))","v":""},{"$f":"IF($B872=\"N\",\"\",IF(LEN('Enrollment Form'!$Y879)=0,\"\",IF(LEN('Enrollment Form'!$Y879)<>5,\"N\",\"Y\")))","v":""},{"$f":"IF($B872=\"N\",\"\",IF(LEN('Enrollment Form'!$AD879=0),\"\",IF(LEN('Enrollment Form'!$AD879)<>5,\"N\",\"Y\")))","v":""},{"$f":"IF($B872=\"N\",\"\",IF(LEN('Enrollment Form'!$BS879=0),\"\",IF(LEN('Enrollment Form'!$BS879)<>5,\"N\",\"Y\")))","v":""},{"$f":"IF($B872=\"N\",\"\",IF(LEN('Enrollment Form'!$AE879)=0,\"\",IF(LEN('Enrollment Form'!$AE879)<>10,\"N\",\"Y\")))","v":""},{"$f":"IF($B872=\"N\",\"\",IF(LEN('Enrollment Form'!$AF879)=0,\"\",IF(LEN('Enrollment Form'!$AF879)<>10,\"N\",\"Y\")))","v":""},{"$f":"IF('Enrollment Form'!$O879<>\"Graded\",\"-\",IF(AND('Enrollment Form'!$O879=\"Graded\",'Enrollment Form'!$AR879<>\"\"),\"Y\",\"N\"))","v":"-"},{"$f":"IF($B872=\"N\",\"\",IF(OR('Enrollment Form'!$B879<>\"Subscriber\",'Enrollment Form'!$C879=\"ROC\"),\"-\",IF(AND('Enrollment Form'!$B879=\"Subscriber\",'Enrollment Form'!$C879=\"Enroll\",'Enrollment Form'!$AJ879<>\"\"),\"Y\",\"N\")))","v":""},{"$f":"IF($B872=\"N\",\"\",IF(OR('Enrollment Form'!$B879<>\"Subscriber\",'Enrollment Form'!$C879=\"ROC\"),\"-\",IF(AND('Enrollment Form'!$B879=\"Subscriber\",'Enrollment Form'!$C879=\"Enroll\",'Enrollment Form'!$AK879<>\"\"),\"Y\",\"N\")))","v":""},{"$f":"IF($B872=\"N\",\"\",IF(OR('Enrollment Form'!$B879<>\"Subscriber\",'Enrollment Form'!$C879=\"ROC\"),\"-\",IF(AND('Enrollment Form'!$B879=\"Subscriber\",'Enrollment Form'!$C879=\"Enroll\",'Enrollment Form'!$AL879<>\"\"),\"Y\",\"N\")))","v":""},{"$f":"IF($B872=\"N\",\"\",IF(OR('Enrollment Form'!$B879<>\"Subscriber\",'Enrollment Form'!$C879=\"ROC\"),\"-\",IF(AND('Enrollment Form'!$B879=\"Subscriber\",'Enrollment Form'!$C879=\"Enroll\",'Enrollment Form'!$AP879<>\"\"),\"Y\",\"N\")))","v":""},{"$f":"IF($B872=\"N\",\"\",IF(OR('Enrollment Form'!$B879<>\"Subscriber\",'Enrollment Form'!$C879=\"ROC\"),\"-\",IF(AND('Enrollment Form'!$B879=\"Subscriber\",'Enrollment Form'!$C879=\"Enroll\",'Enrollment Form'!$AQ879<>\"\"),\"Y\",\"N\")))","v":""},{"$f":"IF($B872=\"N\",\"\",IF(OR('Enrollment Form'!$B879<>\"Subscriber\",'Enrollment Form'!$C879=\"ROC\"),\"-\",IF(AND('Enrollment Form'!$B879=\"Subscriber\",'Enrollment Form'!$C879=\"Enroll\",'Enrollment Form'!$AS879<>\"\"),\"Y\",\"N\")))","v":""},{"$f":"IF($B872=\"N\",\"\",IF($Q872=\"-\",\"-\",IF(AND($Q872=\"Y\",'Enrollment Form'!$AS879=\"No\"),\"-\",IF(AND($Q872=\"Y\",'Enrollment Form'!$AS879=\"Yes\",'Enrollment Form'!$AT879<>\"\"),\"Y\",\"N\"))))","v":""},{"$f":"IF($B872=\"N\",\"\",IF(OR('Enrollment Form'!$B879<>\"Subscriber\",'Enrollment Form'!$C879=\"ROC\"),\"-\",IF(AND('Enrollment Form'!$B879=\"Subscriber\",'Enrollment Form'!$C879=\"Enroll\",'Enrollment Form'!$CV879<>\"\"),\"Y\",\"N\")))","v":""},{"$f":"IF($B872=\"N\",\"\",IF($S872=\"-\",\"-\",IF(AND($S872=\"Y\",'Enrollment Form'!$CV879=\"No\"),\"-\",IF(AND($S872=\"Y\",'Enrollment Form'!$CV879=\"Yes\",'Enrollment Form'!$CW879<>\"\"),\"Y\",\"N\"))))","v":""},{"$f":"IF(OR('Enrollment Form'!$AY879=\"Yes\",'Enrollment Form'!$AY879=\"\"),\"-\",IF(OR(AND('Enrollment Form'!$AY879=\"No\",ISERROR(FIND(\"HMO\",VLOOKUP('Enrollment Form'!G879,'Enrollment Form'!H$11:J$1000,3,FALSE),1))=FALSE,COUNTA('Enrollment Form'!$AZ879:$BC879)=4),AND('Enrollment Form'!$AY879=\"No\",ISERROR(FIND(\"HMO\",VLOOKUP('Enrollment Form'!G879,'Enrollment Form'!H$11:J$1000,3,FALSE),1))=FALSE,COUNTA('Enrollment Form'!$BT879:$BW879)=4)),\"Y\",\"N\"))","v":"-"},{"$f":"IF($B872=\"N\",\"\",IF('Enrollment Form'!$B879=\"Subscriber\",\"-\",IF(COUNTA('Enrollment Form'!$BL879,'Enrollment Form'!$BN879)=2,\"Y\",\"N\")))","v":""},{"$f":"IF($B872=\"N\",\"\",IF(OR('Enrollment Form'!$AX879=\"\",'Enrollment Form'!$AX879=\"No\"),\"-\",IF(AND('Enrollment Form'!$AX879=\"Yes\",COUNTA('Enrollment Form'!$CR879)=1),\"Y\",\"N\")))","v":""},{"$f":"IF(OR('Enrollment Form'!$CR879=\"\",'Enrollment Form'!$CR879=\"No\"),\"-\",IF(COUNTA('Enrollment Form'!$CT879:$CU879)=2,\"Y\",\"N\"))","v":"-"},{"$f":"IF($B872=\"N\",\"\",IF(COUNTIF('Enrollment Form'!$DG879:$DP879,\"Other\")=COUNTA('Enrollment Form'!$DK879,'Enrollment Form'!$DH879,'Enrollment Form'!$DN879,'Enrollment Form'!$DQ879),\"Y\",\"N\"))","v":""},{"$f":"IF($B872=\"N\",\"\",IF(OR('Enrollment Form'!B879<>\"Subscriber\",'Enrollment Form'!C879=\"ROC\",COUNTIF('Enrollment Form'!AV879:AW879,\"Yes\")>=1),\"-\",IF(AND('Enrollment Form'!C879=\"Enroll\",COUNTIF('Enrollment Form'!AV879:AW879,\"No\")=2,'Enrollment Form'!AX879=\"\"),\"N\",\"Y\")))","v":""},{"$f":"IF(OR(B872=\"N\",'Enrollment Form'!B879<>\"Subscriber\",'Enrollment Form'!C879=\"ROC\",'Enrollment Form'!O879<>\"Multiple of Salary\"),\"-\",IF(COUNTA('Enrollment Form'!T879:U879)<2,\"N\",\"Y\"))","v":"-"},{"$f":"IF(B872=\"N\",\"\",IF(OR('Enrollment Form'!C879=\"ROC\",'Enrollment Form'!B879<>\"Subscriber\",'Enrollment Form'!O879=\"Waive\",'Enrollment Form'!O879=\"\"),\"-\",IF('Enrollment Form'!P879=\"\",\"N\",\"Y\")))","v":""},{"$f":"IF($B872=\"N\",\"\",IF(AND('Enrollment Form'!$C879=\"ROC\",'Enrollment Form'!$DR879<>\"\"),\"Y\",IF(AND('Enrollment Form'!$C879=\"ROC\",'Enrollment Form'!$DR879=\"\"),\"N\",IF(AND('Enrollment Form'!$C879=\"Enroll\",'Enrollment Form'!$B879=\"Subscriber\",'Enrollment Form'!$CX879=\"No\",'Enrollment Form'!$DR879=\"\"),\"N\",IF(AND('Enrollment Form'!$C879=\"Enroll\",'Enrollment Form'!$B879=\"Subscriber\",'Enrollment Form'!$CX879=\"Yes\"),\"-\",\"Y\")))))","v":""},{"$f":"IF($B872=\"N\",\"\",IF(AND('Enrollment Form'!$C879=\"ROC\",'Enrollment Form'!$DS879<>\"\"),\"Y\",IF(AND('Enrollment Form'!$C879=\"ROC\",'Enrollment Form'!$DS879=\"\"),\"N\",IF(AND('Enrollment Form'!$C879=\"Enroll\",'Enrollment Form'!$B879=\"Subscriber\",'Enrollment Form'!$CX879=\"No\",'Enrollment Form'!$DS879=\"\"),\"N\",IF(AND('Enrollment Form'!$C879=\"Enroll\",'Enrollment Form'!$B879=\"Subscriber\",'Enrollment Form'!$CX879=\"Yes\"),\"-\",\"Y\")))))","v":""},{"$f":"IF('Enrollment Form'!AH879=\"\",\"\",IF(ISERROR(SEARCH(\".\",'Enrollment Form'!AH879,SEARCH(\"@\",'Enrollment Form'!AH879))),\"N\",\"Y\"))","v":""},{"$f":"IF(OR($B872=\"N\",'Enrollment Form'!$G879=\"\"),\"\",IF('Enrollment Form'!$B879<>\"Subscriber\",\"-\",IF(COUNTIF('Enrollment Form'!$AV879:$AW879,\"Yes\")=2,\"N\",\"Y\")))","v":""},{"$f":"IF(OR('Enrollment Form'!$CJ879=\"\",'Enrollment Form'!$CJ879=\"No\"),\"-\",IF(AND('Enrollment Form'!$CJ879=\"Yes\",'Enrollment Form'!$CK879=\"\"),\"N\",\"Y\"))","v":"-"},{"$f":"IF(OR('Enrollment Form'!$CL879=\"\",'Enrollment Form'!$CL879=\"No\"),\"-\",IF(AND('Enrollment Form'!$CL879=\"Yes\",'Enrollment Form'!$CM879=\"\"),\"N\",\"Y\"))","v":"-"},{"$f":"IF(OR('Enrollment Form'!$CN879=\"\",'Enrollment Form'!$CN879=\"No\"),\"-\",IF(AND('Enrollment Form'!$CN879=\"Yes\",'Enrollment Form'!$CO879=\"\"),\"N\",\"Y\"))","v":"-"},{"$f":"IF(OR('Enrollment Form'!$CN879=\"\",'Enrollment Form'!$CN879=\"No\"),\"-\",IF(AND('Enrollment Form'!$CN879=\"Yes\",'Enrollment Form'!$CP879=\"\"),\"N\",\"Y\"))","v":"-"},{"$f":"IF('Enrollment Form'!B879<>\"Subscriber\",\"-\",IF(AND('Enrollment Form'!B879=\"Subscriber\",'Enrollment Form'!C879=\"Enroll\",'Enrollment Form'!AA879=\"\"),\"N\",\"Y\"))","v":"-"},{"$f":"IF(OR('Enrollment Form'!B879=\"Subscriber\",'Enrollment Form'!B879=\"\"),\"-\",IF('Enrollment Form'!BP879=\"\",\"N\",\"Y\"))","v":"-"},{"$f":"IF('Enrollment Form'!B879<>\"Subscriber\",\"-\",IF(AND('Enrollment Form'!B879=\"Subscriber\",'Enrollment Form'!G879=\"\"),\"N\",\"Y\"))","v":"-"},{"$f":"IF('Enrollment Form'!A879=\"\",\"\",IF('Enrollment Form'!B879=\"Subscriber\",\"-\",IF(AND('Enrollment Form'!B879<>\"Subscriber\",'Enrollment Form'!G879='Enrollment Form'!H879),\"N\",\"Y\")))","v":""},0]
[880,{"$f":"IF('Enrollment Form'!$A880<>\"\",\"Y\",\"N\")","v":"N"},{"$f":"IF(AND('Enrollment Form'!$B880=\"\",'Enrollment Form'!$C880<>\"\"),\"N\",IF($B873=\"N\",\"\",\"Y\"))","v":""},{"$f":"IF(OR($B873=\"N\",'Enrollment Form'!G880=\"\"),\"\",IF('Enrollment Form'!$B880<>\"Subscriber\",\"\",IF('Enrollment Form'!$G880='Enrollment Form'!$H880,\"Y\",\"N\")))","v":""},{"$f":"IF($B873=\"N\",\"\",IF(AND(COUNTIFS('Enrollment Form'!$H$11:$H$1000,'Enrollment Form'!$H880,'Enrollment Form'!$B$11:$B$1000,'Enrollment Form'!$B880)>1,'Enrollment Form'!$H880<>\"\"),\"N\",\"Y\"))","v":""},{"$f":"IF($B873=\"N\",\"\",IF(LEN('Enrollment Form'!$Y880)=0,\"\",IF(LEN('Enrollment Form'!$Y880)<>5,\"N\",\"Y\")))","v":""},{"$f":"IF($B873=\"N\",\"\",IF(LEN('Enrollment Form'!$AD880=0),\"\",IF(LEN('Enrollment Form'!$AD880)<>5,\"N\",\"Y\")))","v":""},{"$f":"IF($B873=\"N\",\"\",IF(LEN('Enrollment Form'!$BS880=0),\"\",IF(LEN('Enrollment Form'!$BS880)<>5,\"N\",\"Y\")))","v":""},{"$f":"IF($B873=\"N\",\"\",IF(LEN('Enrollment Form'!$AE880)=0,\"\",IF(LEN('Enrollment Form'!$AE880)<>10,\"N\",\"Y\")))","v":""},{"$f":"IF($B873=\"N\",\"\",IF(LEN('Enrollment Form'!$AF880)=0,\"\",IF(LEN('Enrollment Form'!$AF880)<>10,\"N\",\"Y\")))","v":""},{"$f":"IF('Enrollment Form'!$O880<>\"Graded\",\"-\",IF(AND('Enrollment Form'!$O880=\"Graded\",'Enrollment Form'!$AR880<>\"\"),\"Y\",\"N\"))","v":"-"},{"$f":"IF($B873=\"N\",\"\",IF(OR('Enrollment Form'!$B880<>\"Subscriber\",'Enrollment Form'!$C880=\"ROC\"),\"-\",IF(AND('Enrollment Form'!$B880=\"Subscriber\",'Enrollment Form'!$C880=\"Enroll\",'Enrollment Form'!$AJ880<>\"\"),\"Y\",\"N\")))","v":""},{"$f":"IF($B873=\"N\",\"\",IF(OR('Enrollment Form'!$B880<>\"Subscriber\",'Enrollment Form'!$C880=\"ROC\"),\"-\",IF(AND('Enrollment Form'!$B880=\"Subscriber\",'Enrollment Form'!$C880=\"Enroll\",'Enrollment Form'!$AK880<>\"\"),\"Y\",\"N\")))","v":""},{"$f":"IF($B873=\"N\",\"\",IF(OR('Enrollment Form'!$B880<>\"Subscriber\",'Enrollment Form'!$C880=\"ROC\"),\"-\",IF(AND('Enrollment Form'!$B880=\"Subscriber\",'Enrollment Form'!$C880=\"Enroll\",'Enrollment Form'!$AL880<>\"\"),\"Y\",\"N\")))","v":""},{"$f":"IF($B873=\"N\",\"\",IF(OR('Enrollment Form'!$B880<>\"Subscriber\",'Enrollment Form'!$C880=\"ROC\"),\"-\",IF(AND('Enrollment Form'!$B880=\"Subscriber\",'Enrollment Form'!$C880=\"Enroll\",'Enrollment Form'!$AP880<>\"\"),\"Y\",\"N\")))","v":""},{"$f":"IF($B873=\"N\",\"\",IF(OR('Enrollment Form'!$B880<>\"Subscriber\",'Enrollment Form'!$C880=\"ROC\"),\"-\",IF(AND('Enrollment Form'!$B880=\"Subscriber\",'Enrollment Form'!$C880=\"Enroll\",'Enrollment Form'!$AQ880<>\"\"),\"Y\",\"N\")))","v":""},{"$f":"IF($B873=\"N\",\"\",IF(OR('Enrollment Form'!$B880<>\"Subscriber\",'Enrollment Form'!$C880=\"ROC\"),\"-\",IF(AND('Enrollment Form'!$B880=\"Subscriber\",'Enrollment Form'!$C880=\"Enroll\",'Enrollment Form'!$AS880<>\"\"),\"Y\",\"N\")))","v":""},{"$f":"IF($B873=\"N\",\"\",IF($Q873=\"-\",\"-\",IF(AND($Q873=\"Y\",'Enrollment Form'!$AS880=\"No\"),\"-\",IF(AND($Q873=\"Y\",'Enrollment Form'!$AS880=\"Yes\",'Enrollment Form'!$AT880<>\"\"),\"Y\",\"N\"))))","v":""},{"$f":"IF($B873=\"N\",\"\",IF(OR('Enrollment Form'!$B880<>\"Subscriber\",'Enrollment Form'!$C880=\"ROC\"),\"-\",IF(AND('Enrollment Form'!$B880=\"Subscriber\",'Enrollment Form'!$C880=\"Enroll\",'Enrollment Form'!$CV880<>\"\"),\"Y\",\"N\")))","v":""},{"$f":"IF($B873=\"N\",\"\",IF($S873=\"-\",\"-\",IF(AND($S873=\"Y\",'Enrollment Form'!$CV880=\"No\"),\"-\",IF(AND($S873=\"Y\",'Enrollment Form'!$CV880=\"Yes\",'Enrollment Form'!$CW880<>\"\"),\"Y\",\"N\"))))","v":""},{"$f":"IF(OR('Enrollment Form'!$AY880=\"Yes\",'Enrollment Form'!$AY880=\"\"),\"-\",IF(OR(AND('Enrollment Form'!$AY880=\"No\",ISERROR(FIND(\"HMO\",VLOOKUP('Enrollment Form'!G880,'Enrollment Form'!H$11:J$1000,3,FALSE),1))=FALSE,COUNTA('Enrollment Form'!$AZ880:$BC880)=4),AND('Enrollment Form'!$AY880=\"No\",ISERROR(FIND(\"HMO\",VLOOKUP('Enrollment Form'!G880,'Enrollment Form'!H$11:J$1000,3,FALSE),1))=FALSE,COUNTA('Enrollment Form'!$BT880:$BW880)=4)),\"Y\",\"N\"))","v":"-"},{"$f":"IF($B873=\"N\",\"\",IF('Enrollment Form'!$B880=\"Subscriber\",\"-\",IF(COUNTA('Enrollment Form'!$BL880,'Enrollment Form'!$BN880)=2,\"Y\",\"N\")))","v":""},{"$f":"IF($B873=\"N\",\"\",IF(OR('Enrollment Form'!$AX880=\"\",'Enrollment Form'!$AX880=\"No\"),\"-\",IF(AND('Enrollment Form'!$AX880=\"Yes\",COUNTA('Enrollment Form'!$CR880)=1),\"Y\",\"N\")))","v":""},{"$f":"IF(OR('Enrollment Form'!$CR880=\"\",'Enrollment Form'!$CR880=\"No\"),\"-\",IF(COUNTA('Enrollment Form'!$CT880:$CU880)=2,\"Y\",\"N\"))","v":"-"},{"$f":"IF($B873=\"N\",\"\",IF(COUNTIF('Enrollment Form'!$DG880:$DP880,\"Other\")=COUNTA('Enrollment Form'!$DK880,'Enrollment Form'!$DH880,'Enrollment Form'!$DN880,'Enrollment Form'!$DQ880),\"Y\",\"N\"))","v":""},{"$f":"IF($B873=\"N\",\"\",IF(OR('Enrollment Form'!B880<>\"Subscriber\",'Enrollment Form'!C880=\"ROC\",COUNTIF('Enrollment Form'!AV880:AW880,\"Yes\")>=1),\"-\",IF(AND('Enrollment Form'!C880=\"Enroll\",COUNTIF('Enrollment Form'!AV880:AW880,\"No\")=2,'Enrollment Form'!AX880=\"\"),\"N\",\"Y\")))","v":""},{"$f":"IF(OR(B873=\"N\",'Enrollment Form'!B880<>\"Subscriber\",'Enrollment Form'!C880=\"ROC\",'Enrollment Form'!O880<>\"Multiple of Salary\"),\"-\",IF(COUNTA('Enrollment Form'!T880:U880)<2,\"N\",\"Y\"))","v":"-"},{"$f":"IF(B873=\"N\",\"\",IF(OR('Enrollment Form'!C880=\"ROC\",'Enrollment Form'!B880<>\"Subscriber\",'Enrollment Form'!O880=\"Waive\",'Enrollment Form'!O880=\"\"),\"-\",IF('Enrollment Form'!P880=\"\",\"N\",\"Y\")))","v":""},{"$f":"IF($B873=\"N\",\"\",IF(AND('Enrollment Form'!$C880=\"ROC\",'Enrollment Form'!$DR880<>\"\"),\"Y\",IF(AND('Enrollment Form'!$C880=\"ROC\",'Enrollment Form'!$DR880=\"\"),\"N\",IF(AND('Enrollment Form'!$C880=\"Enroll\",'Enrollment Form'!$B880=\"Subscriber\",'Enrollment Form'!$CX880=\"No\",'Enrollment Form'!$DR880=\"\"),\"N\",IF(AND('Enrollment Form'!$C880=\"Enroll\",'Enrollment Form'!$B880=\"Subscriber\",'Enrollment Form'!$CX880=\"Yes\"),\"-\",\"Y\")))))","v":""},{"$f":"IF($B873=\"N\",\"\",IF(AND('Enrollment Form'!$C880=\"ROC\",'Enrollment Form'!$DS880<>\"\"),\"Y\",IF(AND('Enrollment Form'!$C880=\"ROC\",'Enrollment Form'!$DS880=\"\"),\"N\",IF(AND('Enrollment Form'!$C880=\"Enroll\",'Enrollment Form'!$B880=\"Subscriber\",'Enrollment Form'!$CX880=\"No\",'Enrollment Form'!$DS880=\"\"),\"N\",IF(AND('Enrollment Form'!$C880=\"Enroll\",'Enrollment Form'!$B880=\"Subscriber\",'Enrollment Form'!$CX880=\"Yes\"),\"-\",\"Y\")))))","v":""},{"$f":"IF('Enrollment Form'!AH880=\"\",\"\",IF(ISERROR(SEARCH(\".\",'Enrollment Form'!AH880,SEARCH(\"@\",'Enrollment Form'!AH880))),\"N\",\"Y\"))","v":""},{"$f":"IF(OR($B873=\"N\",'Enrollment Form'!$G880=\"\"),\"\",IF('Enrollment Form'!$B880<>\"Subscriber\",\"-\",IF(COUNTIF('Enrollment Form'!$AV880:$AW880,\"Yes\")=2,\"N\",\"Y\")))","v":""},{"$f":"IF(OR('Enrollment Form'!$CJ880=\"\",'Enrollment Form'!$CJ880=\"No\"),\"-\",IF(AND('Enrollment Form'!$CJ880=\"Yes\",'Enrollment Form'!$CK880=\"\"),\"N\",\"Y\"))","v":"-"},{"$f":"IF(OR('Enrollment Form'!$CL880=\"\",'Enrollment Form'!$CL880=\"No\"),\"-\",IF(AND('Enrollment Form'!$CL880=\"Yes\",'Enrollment Form'!$CM880=\"\"),\"N\",\"Y\"))","v":"-"},{"$f":"IF(OR('Enrollment Form'!$CN880=\"\",'Enrollment Form'!$CN880=\"No\"),\"-\",IF(AND('Enrollment Form'!$CN880=\"Yes\",'Enrollment Form'!$CO880=\"\"),\"N\",\"Y\"))","v":"-"},{"$f":"IF(OR('Enrollment Form'!$CN880=\"\",'Enrollment Form'!$CN880=\"No\"),\"-\",IF(AND('Enrollment Form'!$CN880=\"Yes\",'Enrollment Form'!$CP880=\"\"),\"N\",\"Y\"))","v":"-"},{"$f":"IF('Enrollment Form'!B880<>\"Subscriber\",\"-\",IF(AND('Enrollment Form'!B880=\"Subscriber\",'Enrollment Form'!C880=\"Enroll\",'Enrollment Form'!AA880=\"\"),\"N\",\"Y\"))","v":"-"},{"$f":"IF(OR('Enrollment Form'!B880=\"Subscriber\",'Enrollment Form'!B880=\"\"),\"-\",IF('Enrollment Form'!BP880=\"\",\"N\",\"Y\"))","v":"-"},{"$f":"IF('Enrollment Form'!B880<>\"Subscriber\",\"-\",IF(AND('Enrollment Form'!B880=\"Subscriber\",'Enrollment Form'!G880=\"\"),\"N\",\"Y\"))","v":"-"},{"$f":"IF('Enrollment Form'!A880=\"\",\"\",IF('Enrollment Form'!B880=\"Subscriber\",\"-\",IF(AND('Enrollment Form'!B880<>\"Subscriber\",'Enrollment Form'!G880='Enrollment Form'!H880),\"N\",\"Y\")))","v":""},0]
[881,{"$f":"IF('Enrollment Form'!$A881<>\"\",\"Y\",\"N\")","v":"N"},{"$f":"IF(AND('Enrollment Form'!$B881=\"\",'Enrollment Form'!$C881<>\"\"),\"N\",IF($B874=\"N\",\"\",\"Y\"))","v":""},{"$f":"IF(OR($B874=\"N\",'Enrollment Form'!G881=\"\"),\"\",IF('Enrollment Form'!$B881<>\"Subscriber\",\"\",IF('Enrollment Form'!$G881='Enrollment Form'!$H881,\"Y\",\"N\")))","v":""},{"$f":"IF($B874=\"N\",\"\",IF(AND(COUNTIFS('Enrollment Form'!$H$11:$H$1000,'Enrollment Form'!$H881,'Enrollment Form'!$B$11:$B$1000,'Enrollment Form'!$B881)>1,'Enrollment Form'!$H881<>\"\"),\"N\",\"Y\"))","v":""},{"$f":"IF($B874=\"N\",\"\",IF(LEN('Enrollment Form'!$Y881)=0,\"\",IF(LEN('Enrollment Form'!$Y881)<>5,\"N\",\"Y\")))","v":""},{"$f":"IF($B874=\"N\",\"\",IF(LEN('Enrollment Form'!$AD881=0),\"\",IF(LEN('Enrollment Form'!$AD881)<>5,\"N\",\"Y\")))","v":""},{"$f":"IF($B874=\"N\",\"\",IF(LEN('Enrollment Form'!$BS881=0),\"\",IF(LEN('Enrollment Form'!$BS881)<>5,\"N\",\"Y\")))","v":""},{"$f":"IF($B874=\"N\",\"\",IF(LEN('Enrollment Form'!$AE881)=0,\"\",IF(LEN('Enrollment Form'!$AE881)<>10,\"N\",\"Y\")))","v":""},{"$f":"IF($B874=\"N\",\"\",IF(LEN('Enrollment Form'!$AF881)=0,\"\",IF(LEN('Enrollment Form'!$AF881)<>10,\"N\",\"Y\")))","v":""},{"$f":"IF('Enrollment Form'!$O881<>\"Graded\",\"-\",IF(AND('Enrollment Form'!$O881=\"Graded\",'Enrollment Form'!$AR881<>\"\"),\"Y\",\"N\"))","v":"-"},{"$f":"IF($B874=\"N\",\"\",IF(OR('Enrollment Form'!$B881<>\"Subscriber\",'Enrollment Form'!$C881=\"ROC\"),\"-\",IF(AND('Enrollment Form'!$B881=\"Subscriber\",'Enrollment Form'!$C881=\"Enroll\",'Enrollment Form'!$AJ881<>\"\"),\"Y\",\"N\")))","v":""},{"$f":"IF($B874=\"N\",\"\",IF(OR('Enrollment Form'!$B881<>\"Subscriber\",'Enrollment Form'!$C881=\"ROC\"),\"-\",IF(AND('Enrollment Form'!$B881=\"Subscriber\",'Enrollment Form'!$C881=\"Enroll\",'Enrollment Form'!$AK881<>\"\"),\"Y\",\"N\")))","v":""},{"$f":"IF($B874=\"N\",\"\",IF(OR('Enrollment Form'!$B881<>\"Subscriber\",'Enrollment Form'!$C881=\"ROC\"),\"-\",IF(AND('Enrollment Form'!$B881=\"Subscriber\",'Enrollment Form'!$C881=\"Enroll\",'Enrollment Form'!$AL881<>\"\"),\"Y\",\"N\")))","v":""},{"$f":"IF($B874=\"N\",\"\",IF(OR('Enrollment Form'!$B881<>\"Subscriber\",'Enrollment Form'!$C881=\"ROC\"),\"-\",IF(AND('Enrollment Form'!$B881=\"Subscriber\",'Enrollment Form'!$C881=\"Enroll\",'Enrollment Form'!$AP881<>\"\"),\"Y\",\"N\")))","v":""},{"$f":"IF($B874=\"N\",\"\",IF(OR('Enrollment Form'!$B881<>\"Subscriber\",'Enrollment Form'!$C881=\"ROC\"),\"-\",IF(AND('Enrollment Form'!$B881=\"Subscriber\",'Enrollment Form'!$C881=\"Enroll\",'Enrollment Form'!$AQ881<>\"\"),\"Y\",\"N\")))","v":""},{"$f":"IF($B874=\"N\",\"\",IF(OR('Enrollment Form'!$B881<>\"Subscriber\",'Enrollment Form'!$C881=\"ROC\"),\"-\",IF(AND('Enrollment Form'!$B881=\"Subscriber\",'Enrollment Form'!$C881=\"Enroll\",'Enrollment Form'!$AS881<>\"\"),\"Y\",\"N\")))","v":""},{"$f":"IF($B874=\"N\",\"\",IF($Q874=\"-\",\"-\",IF(AND($Q874=\"Y\",'Enrollment Form'!$AS881=\"No\"),\"-\",IF(AND($Q874=\"Y\",'Enrollment Form'!$AS881=\"Yes\",'Enrollment Form'!$AT881<>\"\"),\"Y\",\"N\"))))","v":""},{"$f":"IF($B874=\"N\",\"\",IF(OR('Enrollment Form'!$B881<>\"Subscriber\",'Enrollment Form'!$C881=\"ROC\"),\"-\",IF(AND('Enrollment Form'!$B881=\"Subscriber\",'Enrollment Form'!$C881=\"Enroll\",'Enrollment Form'!$CV881<>\"\"),\"Y\",\"N\")))","v":""},{"$f":"IF($B874=\"N\",\"\",IF($S874=\"-\",\"-\",IF(AND($S874=\"Y\",'Enrollment Form'!$CV881=\"No\"),\"-\",IF(AND($S874=\"Y\",'Enrollment Form'!$CV881=\"Yes\",'Enrollment Form'!$CW881<>\"\"),\"Y\",\"N\"))))","v":""},{"$f":"IF(OR('Enrollment Form'!$AY881=\"Yes\",'Enrollment Form'!$AY881=\"\"),\"-\",IF(OR(AND('Enrollment Form'!$AY881=\"No\",ISERROR(FIND(\"HMO\",VLOOKUP('Enrollment Form'!G881,'Enrollment Form'!H$11:J$1000,3,FALSE),1))=FALSE,COUNTA('Enrollment Form'!$AZ881:$BC881)=4),AND('Enrollment Form'!$AY881=\"No\",ISERROR(FIND(\"HMO\",VLOOKUP('Enrollment Form'!G881,'Enrollment Form'!H$11:J$1000,3,FALSE),1))=FALSE,COUNTA('Enrollment Form'!$BT881:$BW881)=4)),\"Y\",\"N\"))","v":"-"},{"$f":"IF($B874=\"N\",\"\",IF('Enrollment Form'!$B881=\"Subscriber\",\"-\",IF(COUNTA('Enrollment Form'!$BL881,'Enrollment Form'!$BN881)=2,\"Y\",\"N\")))","v":""},{"$f":"IF($B874=\"N\",\"\",IF(OR('Enrollment Form'!$AX881=\"\",'Enrollment Form'!$AX881=\"No\"),\"-\",IF(AND('Enrollment Form'!$AX881=\"Yes\",COUNTA('Enrollment Form'!$CR881)=1),\"Y\",\"N\")))","v":""},{"$f":"IF(OR('Enrollment Form'!$CR881=\"\",'Enrollment Form'!$CR881=\"No\"),\"-\",IF(COUNTA('Enrollment Form'!$CT881:$CU881)=2,\"Y\",\"N\"))","v":"-"},{"$f":"IF($B874=\"N\",\"\",IF(COUNTIF('Enrollment Form'!$DG881:$DP881,\"Other\")=COUNTA('Enrollment Form'!$DK881,'Enrollment Form'!$DH881,'Enrollment Form'!$DN881,'Enrollment Form'!$DQ881),\"Y\",\"N\"))","v":""},{"$f":"IF($B874=\"N\",\"\",IF(OR('Enrollment Form'!B881<>\"Subscriber\",'Enrollment Form'!C881=\"ROC\",COUNTIF('Enrollment Form'!AV881:AW881,\"Yes\")>=1),\"-\",IF(AND('Enrollment Form'!C881=\"Enroll\",COUNTIF('Enrollment Form'!AV881:AW881,\"No\")=2,'Enrollment Form'!AX881=\"\"),\"N\",\"Y\")))","v":""},{"$f":"IF(OR(B874=\"N\",'Enrollment Form'!B881<>\"Subscriber\",'Enrollment Form'!C881=\"ROC\",'Enrollment Form'!O881<>\"Multiple of Salary\"),\"-\",IF(COUNTA('Enrollment Form'!T881:U881)<2,\"N\",\"Y\"))","v":"-"},{"$f":"IF(B874=\"N\",\"\",IF(OR('Enrollment Form'!C881=\"ROC\",'Enrollment Form'!B881<>\"Subscriber\",'Enrollment Form'!O881=\"Waive\",'Enrollment Form'!O881=\"\"),\"-\",IF('Enrollment Form'!P881=\"\",\"N\",\"Y\")))","v":""},{"$f":"IF($B874=\"N\",\"\",IF(AND('Enrollment Form'!$C881=\"ROC\",'Enrollment Form'!$DR881<>\"\"),\"Y\",IF(AND('Enrollment Form'!$C881=\"ROC\",'Enrollment Form'!$DR881=\"\"),\"N\",IF(AND('Enrollment Form'!$C881=\"Enroll\",'Enrollment Form'!$B881=\"Subscriber\",'Enrollment Form'!$CX881=\"No\",'Enrollment Form'!$DR881=\"\"),\"N\",IF(AND('Enrollment Form'!$C881=\"Enroll\",'Enrollment Form'!$B881=\"Subscriber\",'Enrollment Form'!$CX881=\"Yes\"),\"-\",\"Y\")))))","v":""},{"$f":"IF($B874=\"N\",\"\",IF(AND('Enrollment Form'!$C881=\"ROC\",'Enrollment Form'!$DS881<>\"\"),\"Y\",IF(AND('Enrollment Form'!$C881=\"ROC\",'Enrollment Form'!$DS881=\"\"),\"N\",IF(AND('Enrollment Form'!$C881=\"Enroll\",'Enrollment Form'!$B881=\"Subscriber\",'Enrollment Form'!$CX881=\"No\",'Enrollment Form'!$DS881=\"\"),\"N\",IF(AND('Enrollment Form'!$C881=\"Enroll\",'Enrollment Form'!$B881=\"Subscriber\",'Enrollment Form'!$CX881=\"Yes\"),\"-\",\"Y\")))))","v":""},{"$f":"IF('Enrollment Form'!AH881=\"\",\"\",IF(ISERROR(SEARCH(\".\",'Enrollment Form'!AH881,SEARCH(\"@\",'Enrollment Form'!AH881))),\"N\",\"Y\"))","v":""},{"$f":"IF(OR($B874=\"N\",'Enrollment Form'!$G881=\"\"),\"\",IF('Enrollment Form'!$B881<>\"Subscriber\",\"-\",IF(COUNTIF('Enrollment Form'!$AV881:$AW881,\"Yes\")=2,\"N\",\"Y\")))","v":""},{"$f":"IF(OR('Enrollment Form'!$CJ881=\"\",'Enrollment Form'!$CJ881=\"No\"),\"-\",IF(AND('Enrollment Form'!$CJ881=\"Yes\",'Enrollment Form'!$CK881=\"\"),\"N\",\"Y\"))","v":"-"},{"$f":"IF(OR('Enrollment Form'!$CL881=\"\",'Enrollment Form'!$CL881=\"No\"),\"-\",IF(AND('Enrollment Form'!$CL881=\"Yes\",'Enrollment Form'!$CM881=\"\"),\"N\",\"Y\"))","v":"-"},{"$f":"IF(OR('Enrollment Form'!$CN881=\"\",'Enrollment Form'!$CN881=\"No\"),\"-\",IF(AND('Enrollment Form'!$CN881=\"Yes\",'Enrollment Form'!$CO881=\"\"),\"N\",\"Y\"))","v":"-"},{"$f":"IF(OR('Enrollment Form'!$CN881=\"\",'Enrollment Form'!$CN881=\"No\"),\"-\",IF(AND('Enrollment Form'!$CN881=\"Yes\",'Enrollment Form'!$CP881=\"\"),\"N\",\"Y\"))","v":"-"},{"$f":"IF('Enrollment Form'!B881<>\"Subscriber\",\"-\",IF(AND('Enrollment Form'!B881=\"Subscriber\",'Enrollment Form'!C881=\"Enroll\",'Enrollment Form'!AA881=\"\"),\"N\",\"Y\"))","v":"-"},{"$f":"IF(OR('Enrollment Form'!B881=\"Subscriber\",'Enrollment Form'!B881=\"\"),\"-\",IF('Enrollment Form'!BP881=\"\",\"N\",\"Y\"))","v":"-"},{"$f":"IF('Enrollment Form'!B881<>\"Subscriber\",\"-\",IF(AND('Enrollment Form'!B881=\"Subscriber\",'Enrollment Form'!G881=\"\"),\"N\",\"Y\"))","v":"-"},{"$f":"IF('Enrollment Form'!A881=\"\",\"\",IF('Enrollment Form'!B881=\"Subscriber\",\"-\",IF(AND('Enrollment Form'!B881<>\"Subscriber\",'Enrollment Form'!G881='Enrollment Form'!H881),\"N\",\"Y\")))","v":""},0]
[882,{"$f":"IF('Enrollment Form'!$A882<>\"\",\"Y\",\"N\")","v":"N"},{"$f":"IF(AND('Enrollment Form'!$B882=\"\",'Enrollment Form'!$C882<>\"\"),\"N\",IF($B875=\"N\",\"\",\"Y\"))","v":""},{"$f":"IF(OR($B875=\"N\",'Enrollment Form'!G882=\"\"),\"\",IF('Enrollment Form'!$B882<>\"Subscriber\",\"\",IF('Enrollment Form'!$G882='Enrollment Form'!$H882,\"Y\",\"N\")))","v":""},{"$f":"IF($B875=\"N\",\"\",IF(AND(COUNTIFS('Enrollment Form'!$H$11:$H$1000,'Enrollment Form'!$H882,'Enrollment Form'!$B$11:$B$1000,'Enrollment Form'!$B882)>1,'Enrollment Form'!$H882<>\"\"),\"N\",\"Y\"))","v":""},{"$f":"IF($B875=\"N\",\"\",IF(LEN('Enrollment Form'!$Y882)=0,\"\",IF(LEN('Enrollment Form'!$Y882)<>5,\"N\",\"Y\")))","v":""},{"$f":"IF($B875=\"N\",\"\",IF(LEN('Enrollment Form'!$AD882=0),\"\",IF(LEN('Enrollment Form'!$AD882)<>5,\"N\",\"Y\")))","v":""},{"$f":"IF($B875=\"N\",\"\",IF(LEN('Enrollment Form'!$BS882=0),\"\",IF(LEN('Enrollment Form'!$BS882)<>5,\"N\",\"Y\")))","v":""},{"$f":"IF($B875=\"N\",\"\",IF(LEN('Enrollment Form'!$AE882)=0,\"\",IF(LEN('Enrollment Form'!$AE882)<>10,\"N\",\"Y\")))","v":""},{"$f":"IF($B875=\"N\",\"\",IF(LEN('Enrollment Form'!$AF882)=0,\"\",IF(LEN('Enrollment Form'!$AF882)<>10,\"N\",\"Y\")))","v":""},{"$f":"IF('Enrollment Form'!$O882<>\"Graded\",\"-\",IF(AND('Enrollment Form'!$O882=\"Graded\",'Enrollment Form'!$AR882<>\"\"),\"Y\",\"N\"))","v":"-"},{"$f":"IF($B875=\"N\",\"\",IF(OR('Enrollment Form'!$B882<>\"Subscriber\",'Enrollment Form'!$C882=\"ROC\"),\"-\",IF(AND('Enrollment Form'!$B882=\"Subscriber\",'Enrollment Form'!$C882=\"Enroll\",'Enrollment Form'!$AJ882<>\"\"),\"Y\",\"N\")))","v":""},{"$f":"IF($B875=\"N\",\"\",IF(OR('Enrollment Form'!$B882<>\"Subscriber\",'Enrollment Form'!$C882=\"ROC\"),\"-\",IF(AND('Enrollment Form'!$B882=\"Subscriber\",'Enrollment Form'!$C882=\"Enroll\",'Enrollment Form'!$AK882<>\"\"),\"Y\",\"N\")))","v":""},{"$f":"IF($B875=\"N\",\"\",IF(OR('Enrollment Form'!$B882<>\"Subscriber\",'Enrollment Form'!$C882=\"ROC\"),\"-\",IF(AND('Enrollment Form'!$B882=\"Subscriber\",'Enrollment Form'!$C882=\"Enroll\",'Enrollment Form'!$AL882<>\"\"),\"Y\",\"N\")))","v":""},{"$f":"IF($B875=\"N\",\"\",IF(OR('Enrollment Form'!$B882<>\"Subscriber\",'Enrollment Form'!$C882=\"ROC\"),\"-\",IF(AND('Enrollment Form'!$B882=\"Subscriber\",'Enrollment Form'!$C882=\"Enroll\",'Enrollment Form'!$AP882<>\"\"),\"Y\",\"N\")))","v":""},{"$f":"IF($B875=\"N\",\"\",IF(OR('Enrollment Form'!$B882<>\"Subscriber\",'Enrollment Form'!$C882=\"ROC\"),\"-\",IF(AND('Enrollment Form'!$B882=\"Subscriber\",'Enrollment Form'!$C882=\"Enroll\",'Enrollment Form'!$AQ882<>\"\"),\"Y\",\"N\")))","v":""},{"$f":"IF($B875=\"N\",\"\",IF(OR('Enrollment Form'!$B882<>\"Subscriber\",'Enrollment Form'!$C882=\"ROC\"),\"-\",IF(AND('Enrollment Form'!$B882=\"Subscriber\",'Enrollment Form'!$C882=\"Enroll\",'Enrollment Form'!$AS882<>\"\"),\"Y\",\"N\")))","v":""},{"$f":"IF($B875=\"N\",\"\",IF($Q875=\"-\",\"-\",IF(AND($Q875=\"Y\",'Enrollment Form'!$AS882=\"No\"),\"-\",IF(AND($Q875=\"Y\",'Enrollment Form'!$AS882=\"Yes\",'Enrollment Form'!$AT882<>\"\"),\"Y\",\"N\"))))","v":""},{"$f":"IF($B875=\"N\",\"\",IF(OR('Enrollment Form'!$B882<>\"Subscriber\",'Enrollment Form'!$C882=\"ROC\"),\"-\",IF(AND('Enrollment Form'!$B882=\"Subscriber\",'Enrollment Form'!$C882=\"Enroll\",'Enrollment Form'!$CV882<>\"\"),\"Y\",\"N\")))","v":""},{"$f":"IF($B875=\"N\",\"\",IF($S875=\"-\",\"-\",IF(AND($S875=\"Y\",'Enrollment Form'!$CV882=\"No\"),\"-\",IF(AND($S875=\"Y\",'Enrollment Form'!$CV882=\"Yes\",'Enrollment Form'!$CW882<>\"\"),\"Y\",\"N\"))))","v":""},{"$f":"IF(OR('Enrollment Form'!$AY882=\"Yes\",'Enrollment Form'!$AY882=\"\"),\"-\",IF(OR(AND('Enrollment Form'!$AY882=\"No\",ISERROR(FIND(\"HMO\",VLOOKUP('Enrollment Form'!G882,'Enrollment Form'!H$11:J$1000,3,FALSE),1))=FALSE,COUNTA('Enrollment Form'!$AZ882:$BC882)=4),AND('Enrollment Form'!$AY882=\"No\",ISERROR(FIND(\"HMO\",VLOOKUP('Enrollment Form'!G882,'Enrollment Form'!H$11:J$1000,3,FALSE),1))=FALSE,COUNTA('Enrollment Form'!$BT882:$BW882)=4)),\"Y\",\"N\"))","v":"-"},{"$f":"IF($B875=\"N\",\"\",IF('Enrollment Form'!$B882=\"Subscriber\",\"-\",IF(COUNTA('Enrollment Form'!$BL882,'Enrollment Form'!$BN882)=2,\"Y\",\"N\")))","v":""},{"$f":"IF($B875=\"N\",\"\",IF(OR('Enrollment Form'!$AX882=\"\",'Enrollment Form'!$AX882=\"No\"),\"-\",IF(AND('Enrollment Form'!$AX882=\"Yes\",COUNTA('Enrollment Form'!$CR882)=1),\"Y\",\"N\")))","v":""},{"$f":"IF(OR('Enrollment Form'!$CR882=\"\",'Enrollment Form'!$CR882=\"No\"),\"-\",IF(COUNTA('Enrollment Form'!$CT882:$CU882)=2,\"Y\",\"N\"))","v":"-"},{"$f":"IF($B875=\"N\",\"\",IF(COUNTIF('Enrollment Form'!$DG882:$DP882,\"Other\")=COUNTA('Enrollment Form'!$DK882,'Enrollment Form'!$DH882,'Enrollment Form'!$DN882,'Enrollment Form'!$DQ882),\"Y\",\"N\"))","v":""},{"$f":"IF($B875=\"N\",\"\",IF(OR('Enrollment Form'!B882<>\"Subscriber\",'Enrollment Form'!C882=\"ROC\",COUNTIF('Enrollment Form'!AV882:AW882,\"Yes\")>=1),\"-\",IF(AND('Enrollment Form'!C882=\"Enroll\",COUNTIF('Enrollment Form'!AV882:AW882,\"No\")=2,'Enrollment Form'!AX882=\"\"),\"N\",\"Y\")))","v":""},{"$f":"IF(OR(B875=\"N\",'Enrollment Form'!B882<>\"Subscriber\",'Enrollment Form'!C882=\"ROC\",'Enrollment Form'!O882<>\"Multiple of Salary\"),\"-\",IF(COUNTA('Enrollment Form'!T882:U882)<2,\"N\",\"Y\"))","v":"-"},{"$f":"IF(B875=\"N\",\"\",IF(OR('Enrollment Form'!C882=\"ROC\",'Enrollment Form'!B882<>\"Subscriber\",'Enrollment Form'!O882=\"Waive\",'Enrollment Form'!O882=\"\"),\"-\",IF('Enrollment Form'!P882=\"\",\"N\",\"Y\")))","v":""},{"$f":"IF($B875=\"N\",\"\",IF(AND('Enrollment Form'!$C882=\"ROC\",'Enrollment Form'!$DR882<>\"\"),\"Y\",IF(AND('Enrollment Form'!$C882=\"ROC\",'Enrollment Form'!$DR882=\"\"),\"N\",IF(AND('Enrollment Form'!$C882=\"Enroll\",'Enrollment Form'!$B882=\"Subscriber\",'Enrollment Form'!$CX882=\"No\",'Enrollment Form'!$DR882=\"\"),\"N\",IF(AND('Enrollment Form'!$C882=\"Enroll\",'Enrollment Form'!$B882=\"Subscriber\",'Enrollment Form'!$CX882=\"Yes\"),\"-\",\"Y\")))))","v":""},{"$f":"IF($B875=\"N\",\"\",IF(AND('Enrollment Form'!$C882=\"ROC\",'Enrollment Form'!$DS882<>\"\"),\"Y\",IF(AND('Enrollment Form'!$C882=\"ROC\",'Enrollment Form'!$DS882=\"\"),\"N\",IF(AND('Enrollment Form'!$C882=\"Enroll\",'Enrollment Form'!$B882=\"Subscriber\",'Enrollment Form'!$CX882=\"No\",'Enrollment Form'!$DS882=\"\"),\"N\",IF(AND('Enrollment Form'!$C882=\"Enroll\",'Enrollment Form'!$B882=\"Subscriber\",'Enrollment Form'!$CX882=\"Yes\"),\"-\",\"Y\")))))","v":""},{"$f":"IF('Enrollment Form'!AH882=\"\",\"\",IF(ISERROR(SEARCH(\".\",'Enrollment Form'!AH882,SEARCH(\"@\",'Enrollment Form'!AH882))),\"N\",\"Y\"))","v":""},{"$f":"IF(OR($B875=\"N\",'Enrollment Form'!$G882=\"\"),\"\",IF('Enrollment Form'!$B882<>\"Subscriber\",\"-\",IF(COUNTIF('Enrollment Form'!$AV882:$AW882,\"Yes\")=2,\"N\",\"Y\")))","v":""},{"$f":"IF(OR('Enrollment Form'!$CJ882=\"\",'Enrollment Form'!$CJ882=\"No\"),\"-\",IF(AND('Enrollment Form'!$CJ882=\"Yes\",'Enrollment Form'!$CK882=\"\"),\"N\",\"Y\"))","v":"-"},{"$f":"IF(OR('Enrollment Form'!$CL882=\"\",'Enrollment Form'!$CL882=\"No\"),\"-\",IF(AND('Enrollment Form'!$CL882=\"Yes\",'Enrollment Form'!$CM882=\"\"),\"N\",\"Y\"))","v":"-"},{"$f":"IF(OR('Enrollment Form'!$CN882=\"\",'Enrollment Form'!$CN882=\"No\"),\"-\",IF(AND('Enrollment Form'!$CN882=\"Yes\",'Enrollment Form'!$CO882=\"\"),\"N\",\"Y\"))","v":"-"},{"$f":"IF(OR('Enrollment Form'!$CN882=\"\",'Enrollment Form'!$CN882=\"No\"),\"-\",IF(AND('Enrollment Form'!$CN882=\"Yes\",'Enrollment Form'!$CP882=\"\"),\"N\",\"Y\"))","v":"-"},{"$f":"IF('Enrollment Form'!B882<>\"Subscriber\",\"-\",IF(AND('Enrollment Form'!B882=\"Subscriber\",'Enrollment Form'!C882=\"Enroll\",'Enrollment Form'!AA882=\"\"),\"N\",\"Y\"))","v":"-"},{"$f":"IF(OR('Enrollment Form'!B882=\"Subscriber\",'Enrollment Form'!B882=\"\"),\"-\",IF('Enrollment Form'!BP882=\"\",\"N\",\"Y\"))","v":"-"},{"$f":"IF('Enrollment Form'!B882<>\"Subscriber\",\"-\",IF(AND('Enrollment Form'!B882=\"Subscriber\",'Enrollment Form'!G882=\"\"),\"N\",\"Y\"))","v":"-"},{"$f":"IF('Enrollment Form'!A882=\"\",\"\",IF('Enrollment Form'!B882=\"Subscriber\",\"-\",IF(AND('Enrollment Form'!B882<>\"Subscriber\",'Enrollment Form'!G882='Enrollment Form'!H882),\"N\",\"Y\")))","v":""},0]
[883,{"$f":"IF('Enrollment Form'!$A883<>\"\",\"Y\",\"N\")","v":"N"},{"$f":"IF(AND('Enrollment Form'!$B883=\"\",'Enrollment Form'!$C883<>\"\"),\"N\",IF($B876=\"N\",\"\",\"Y\"))","v":""},{"$f":"IF(OR($B876=\"N\",'Enrollment Form'!G883=\"\"),\"\",IF('Enrollment Form'!$B883<>\"Subscriber\",\"\",IF('Enrollment Form'!$G883='Enrollment Form'!$H883,\"Y\",\"N\")))","v":""},{"$f":"IF($B876=\"N\",\"\",IF(AND(COUNTIFS('Enrollment Form'!$H$11:$H$1000,'Enrollment Form'!$H883,'Enrollment Form'!$B$11:$B$1000,'Enrollment Form'!$B883)>1,'Enrollment Form'!$H883<>\"\"),\"N\",\"Y\"))","v":""},{"$f":"IF($B876=\"N\",\"\",IF(LEN('Enrollment Form'!$Y883)=0,\"\",IF(LEN('Enrollment Form'!$Y883)<>5,\"N\",\"Y\")))","v":""},{"$f":"IF($B876=\"N\",\"\",IF(LEN('Enrollment Form'!$AD883=0),\"\",IF(LEN('Enrollment Form'!$AD883)<>5,\"N\",\"Y\")))","v":""},{"$f":"IF($B876=\"N\",\"\",IF(LEN('Enrollment Form'!$BS883=0),\"\",IF(LEN('Enrollment Form'!$BS883)<>5,\"N\",\"Y\")))","v":""},{"$f":"IF($B876=\"N\",\"\",IF(LEN('Enrollment Form'!$AE883)=0,\"\",IF(LEN('Enrollment Form'!$AE883)<>10,\"N\",\"Y\")))","v":""},{"$f":"IF($B876=\"N\",\"\",IF(LEN('Enrollment Form'!$AF883)=0,\"\",IF(LEN('Enrollment Form'!$AF883)<>10,\"N\",\"Y\")))","v":""},{"$f":"IF('Enrollment Form'!$O883<>\"Graded\",\"-\",IF(AND('Enrollment Form'!$O883=\"Graded\",'Enrollment Form'!$AR883<>\"\"),\"Y\",\"N\"))","v":"-"},{"$f":"IF($B876=\"N\",\"\",IF(OR('Enrollment Form'!$B883<>\"Subscriber\",'Enrollment Form'!$C883=\"ROC\"),\"-\",IF(AND('Enrollment Form'!$B883=\"Subscriber\",'Enrollment Form'!$C883=\"Enroll\",'Enrollment Form'!$AJ883<>\"\"),\"Y\",\"N\")))","v":""},{"$f":"IF($B876=\"N\",\"\",IF(OR('Enrollment Form'!$B883<>\"Subscriber\",'Enrollment Form'!$C883=\"ROC\"),\"-\",IF(AND('Enrollment Form'!$B883=\"Subscriber\",'Enrollment Form'!$C883=\"Enroll\",'Enrollment Form'!$AK883<>\"\"),\"Y\",\"N\")))","v":""},{"$f":"IF($B876=\"N\",\"\",IF(OR('Enrollment Form'!$B883<>\"Subscriber\",'Enrollment Form'!$C883=\"ROC\"),\"-\",IF(AND('Enrollment Form'!$B883=\"Subscriber\",'Enrollment Form'!$C883=\"Enroll\",'Enrollment Form'!$AL883<>\"\"),\"Y\",\"N\")))","v":""},{"$f":"IF($B876=\"N\",\"\",IF(OR('Enrollment Form'!$B883<>\"Subscriber\",'Enrollment Form'!$C883=\"ROC\"),\"-\",IF(AND('Enrollment Form'!$B883=\"Subscriber\",'Enrollment Form'!$C883=\"Enroll\",'Enrollment Form'!$AP883<>\"\"),\"Y\",\"N\")))","v":""},{"$f":"IF($B876=\"N\",\"\",IF(OR('Enrollment Form'!$B883<>\"Subscriber\",'Enrollment Form'!$C883=\"ROC\"),\"-\",IF(AND('Enrollment Form'!$B883=\"Subscriber\",'Enrollment Form'!$C883=\"Enroll\",'Enrollment Form'!$AQ883<>\"\"),\"Y\",\"N\")))","v":""},{"$f":"IF($B876=\"N\",\"\",IF(OR('Enrollment Form'!$B883<>\"Subscriber\",'Enrollment Form'!$C883=\"ROC\"),\"-\",IF(AND('Enrollment Form'!$B883=\"Subscriber\",'Enrollment Form'!$C883=\"Enroll\",'Enrollment Form'!$AS883<>\"\"),\"Y\",\"N\")))","v":""},{"$f":"IF($B876=\"N\",\"\",IF($Q876=\"-\",\"-\",IF(AND($Q876=\"Y\",'Enrollment Form'!$AS883=\"No\"),\"-\",IF(AND($Q876=\"Y\",'Enrollment Form'!$AS883=\"Yes\",'Enrollment Form'!$AT883<>\"\"),\"Y\",\"N\"))))","v":""},{"$f":"IF($B876=\"N\",\"\",IF(OR('Enrollment Form'!$B883<>\"Subscriber\",'Enrollment Form'!$C883=\"ROC\"),\"-\",IF(AND('Enrollment Form'!$B883=\"Subscriber\",'Enrollment Form'!$C883=\"Enroll\",'Enrollment Form'!$CV883<>\"\"),\"Y\",\"N\")))","v":""},{"$f":"IF($B876=\"N\",\"\",IF($S876=\"-\",\"-\",IF(AND($S876=\"Y\",'Enrollment Form'!$CV883=\"No\"),\"-\",IF(AND($S876=\"Y\",'Enrollment Form'!$CV883=\"Yes\",'Enrollment Form'!$CW883<>\"\"),\"Y\",\"N\"))))","v":""},{"$f":"IF(OR('Enrollment Form'!$AY883=\"Yes\",'Enrollment Form'!$AY883=\"\"),\"-\",IF(OR(AND('Enrollment Form'!$AY883=\"No\",ISERROR(FIND(\"HMO\",VLOOKUP('Enrollment Form'!G883,'Enrollment Form'!H$11:J$1000,3,FALSE),1))=FALSE,COUNTA('Enrollment Form'!$AZ883:$BC883)=4),AND('Enrollment Form'!$AY883=\"No\",ISERROR(FIND(\"HMO\",VLOOKUP('Enrollment Form'!G883,'Enrollment Form'!H$11:J$1000,3,FALSE),1))=FALSE,COUNTA('Enrollment Form'!$BT883:$BW883)=4)),\"Y\",\"N\"))","v":"-"},{"$f":"IF($B876=\"N\",\"\",IF('Enrollment Form'!$B883=\"Subscriber\",\"-\",IF(COUNTA('Enrollment Form'!$BL883,'Enrollment Form'!$BN883)=2,\"Y\",\"N\")))","v":""},{"$f":"IF($B876=\"N\",\"\",IF(OR('Enrollment Form'!$AX883=\"\",'Enrollment Form'!$AX883=\"No\"),\"-\",IF(AND('Enrollment Form'!$AX883=\"Yes\",COUNTA('Enrollment Form'!$CR883)=1),\"Y\",\"N\")))","v":""},{"$f":"IF(OR('Enrollment Form'!$CR883=\"\",'Enrollment Form'!$CR883=\"No\"),\"-\",IF(COUNTA('Enrollment Form'!$CT883:$CU883)=2,\"Y\",\"N\"))","v":"-"},{"$f":"IF($B876=\"N\",\"\",IF(COUNTIF('Enrollment Form'!$DG883:$DP883,\"Other\")=COUNTA('Enrollment Form'!$DK883,'Enrollment Form'!$DH883,'Enrollment Form'!$DN883,'Enrollment Form'!$DQ883),\"Y\",\"N\"))","v":""},{"$f":"IF($B876=\"N\",\"\",IF(OR('Enrollment Form'!B883<>\"Subscriber\",'Enrollment Form'!C883=\"ROC\",COUNTIF('Enrollment Form'!AV883:AW883,\"Yes\")>=1),\"-\",IF(AND('Enrollment Form'!C883=\"Enroll\",COUNTIF('Enrollment Form'!AV883:AW883,\"No\")=2,'Enrollment Form'!AX883=\"\"),\"N\",\"Y\")))","v":""},{"$f":"IF(OR(B876=\"N\",'Enrollment Form'!B883<>\"Subscriber\",'Enrollment Form'!C883=\"ROC\",'Enrollment Form'!O883<>\"Multiple of Salary\"),\"-\",IF(COUNTA('Enrollment Form'!T883:U883)<2,\"N\",\"Y\"))","v":"-"},{"$f":"IF(B876=\"N\",\"\",IF(OR('Enrollment Form'!C883=\"ROC\",'Enrollment Form'!B883<>\"Subscriber\",'Enrollment Form'!O883=\"Waive\",'Enrollment Form'!O883=\"\"),\"-\",IF('Enrollment Form'!P883=\"\",\"N\",\"Y\")))","v":""},{"$f":"IF($B876=\"N\",\"\",IF(AND('Enrollment Form'!$C883=\"ROC\",'Enrollment Form'!$DR883<>\"\"),\"Y\",IF(AND('Enrollment Form'!$C883=\"ROC\",'Enrollment Form'!$DR883=\"\"),\"N\",IF(AND('Enrollment Form'!$C883=\"Enroll\",'Enrollment Form'!$B883=\"Subscriber\",'Enrollment Form'!$CX883=\"No\",'Enrollment Form'!$DR883=\"\"),\"N\",IF(AND('Enrollment Form'!$C883=\"Enroll\",'Enrollment Form'!$B883=\"Subscriber\",'Enrollment Form'!$CX883=\"Yes\"),\"-\",\"Y\")))))","v":""},{"$f":"IF($B876=\"N\",\"\",IF(AND('Enrollment Form'!$C883=\"ROC\",'Enrollment Form'!$DS883<>\"\"),\"Y\",IF(AND('Enrollment Form'!$C883=\"ROC\",'Enrollment Form'!$DS883=\"\"),\"N\",IF(AND('Enrollment Form'!$C883=\"Enroll\",'Enrollment Form'!$B883=\"Subscriber\",'Enrollment Form'!$CX883=\"No\",'Enrollment Form'!$DS883=\"\"),\"N\",IF(AND('Enrollment Form'!$C883=\"Enroll\",'Enrollment Form'!$B883=\"Subscriber\",'Enrollment Form'!$CX883=\"Yes\"),\"-\",\"Y\")))))","v":""},{"$f":"IF('Enrollment Form'!AH883=\"\",\"\",IF(ISERROR(SEARCH(\".\",'Enrollment Form'!AH883,SEARCH(\"@\",'Enrollment Form'!AH883))),\"N\",\"Y\"))","v":""},{"$f":"IF(OR($B876=\"N\",'Enrollment Form'!$G883=\"\"),\"\",IF('Enrollment Form'!$B883<>\"Subscriber\",\"-\",IF(COUNTIF('Enrollment Form'!$AV883:$AW883,\"Yes\")=2,\"N\",\"Y\")))","v":""},{"$f":"IF(OR('Enrollment Form'!$CJ883=\"\",'Enrollment Form'!$CJ883=\"No\"),\"-\",IF(AND('Enrollment Form'!$CJ883=\"Yes\",'Enrollment Form'!$CK883=\"\"),\"N\",\"Y\"))","v":"-"},{"$f":"IF(OR('Enrollment Form'!$CL883=\"\",'Enrollment Form'!$CL883=\"No\"),\"-\",IF(AND('Enrollment Form'!$CL883=\"Yes\",'Enrollment Form'!$CM883=\"\"),\"N\",\"Y\"))","v":"-"},{"$f":"IF(OR('Enrollment Form'!$CN883=\"\",'Enrollment Form'!$CN883=\"No\"),\"-\",IF(AND('Enrollment Form'!$CN883=\"Yes\",'Enrollment Form'!$CO883=\"\"),\"N\",\"Y\"))","v":"-"},{"$f":"IF(OR('Enrollment Form'!$CN883=\"\",'Enrollment Form'!$CN883=\"No\"),\"-\",IF(AND('Enrollment Form'!$CN883=\"Yes\",'Enrollment Form'!$CP883=\"\"),\"N\",\"Y\"))","v":"-"},{"$f":"IF('Enrollment Form'!B883<>\"Subscriber\",\"-\",IF(AND('Enrollment Form'!B883=\"Subscriber\",'Enrollment Form'!C883=\"Enroll\",'Enrollment Form'!AA883=\"\"),\"N\",\"Y\"))","v":"-"},{"$f":"IF(OR('Enrollment Form'!B883=\"Subscriber\",'Enrollment Form'!B883=\"\"),\"-\",IF('Enrollment Form'!BP883=\"\",\"N\",\"Y\"))","v":"-"},{"$f":"IF('Enrollment Form'!B883<>\"Subscriber\",\"-\",IF(AND('Enrollment Form'!B883=\"Subscriber\",'Enrollment Form'!G883=\"\"),\"N\",\"Y\"))","v":"-"},{"$f":"IF('Enrollment Form'!A883=\"\",\"\",IF('Enrollment Form'!B883=\"Subscriber\",\"-\",IF(AND('Enrollment Form'!B883<>\"Subscriber\",'Enrollment Form'!G883='Enrollment Form'!H883),\"N\",\"Y\")))","v":""},0]
[884,{"$f":"IF('Enrollment Form'!$A884<>\"\",\"Y\",\"N\")","v":"N"},{"$f":"IF(AND('Enrollment Form'!$B884=\"\",'Enrollment Form'!$C884<>\"\"),\"N\",IF($B877=\"N\",\"\",\"Y\"))","v":""},{"$f":"IF(OR($B877=\"N\",'Enrollment Form'!G884=\"\"),\"\",IF('Enrollment Form'!$B884<>\"Subscriber\",\"\",IF('Enrollment Form'!$G884='Enrollment Form'!$H884,\"Y\",\"N\")))","v":""},{"$f":"IF($B877=\"N\",\"\",IF(AND(COUNTIFS('Enrollment Form'!$H$11:$H$1000,'Enrollment Form'!$H884,'Enrollment Form'!$B$11:$B$1000,'Enrollment Form'!$B884)>1,'Enrollment Form'!$H884<>\"\"),\"N\",\"Y\"))","v":""},{"$f":"IF($B877=\"N\",\"\",IF(LEN('Enrollment Form'!$Y884)=0,\"\",IF(LEN('Enrollment Form'!$Y884)<>5,\"N\",\"Y\")))","v":""},{"$f":"IF($B877=\"N\",\"\",IF(LEN('Enrollment Form'!$AD884=0),\"\",IF(LEN('Enrollment Form'!$AD884)<>5,\"N\",\"Y\")))","v":""},{"$f":"IF($B877=\"N\",\"\",IF(LEN('Enrollment Form'!$BS884=0),\"\",IF(LEN('Enrollment Form'!$BS884)<>5,\"N\",\"Y\")))","v":""},{"$f":"IF($B877=\"N\",\"\",IF(LEN('Enrollment Form'!$AE884)=0,\"\",IF(LEN('Enrollment Form'!$AE884)<>10,\"N\",\"Y\")))","v":""},{"$f":"IF($B877=\"N\",\"\",IF(LEN('Enrollment Form'!$AF884)=0,\"\",IF(LEN('Enrollment Form'!$AF884)<>10,\"N\",\"Y\")))","v":""},{"$f":"IF('Enrollment Form'!$O884<>\"Graded\",\"-\",IF(AND('Enrollment Form'!$O884=\"Graded\",'Enrollment Form'!$AR884<>\"\"),\"Y\",\"N\"))","v":"-"},{"$f":"IF($B877=\"N\",\"\",IF(OR('Enrollment Form'!$B884<>\"Subscriber\",'Enrollment Form'!$C884=\"ROC\"),\"-\",IF(AND('Enrollment Form'!$B884=\"Subscriber\",'Enrollment Form'!$C884=\"Enroll\",'Enrollment Form'!$AJ884<>\"\"),\"Y\",\"N\")))","v":""},{"$f":"IF($B877=\"N\",\"\",IF(OR('Enrollment Form'!$B884<>\"Subscriber\",'Enrollment Form'!$C884=\"ROC\"),\"-\",IF(AND('Enrollment Form'!$B884=\"Subscriber\",'Enrollment Form'!$C884=\"Enroll\",'Enrollment Form'!$AK884<>\"\"),\"Y\",\"N\")))","v":""},{"$f":"IF($B877=\"N\",\"\",IF(OR('Enrollment Form'!$B884<>\"Subscriber\",'Enrollment Form'!$C884=\"ROC\"),\"-\",IF(AND('Enrollment Form'!$B884=\"Subscriber\",'Enrollment Form'!$C884=\"Enroll\",'Enrollment Form'!$AL884<>\"\"),\"Y\",\"N\")))","v":""},{"$f":"IF($B877=\"N\",\"\",IF(OR('Enrollment Form'!$B884<>\"Subscriber\",'Enrollment Form'!$C884=\"ROC\"),\"-\",IF(AND('Enrollment Form'!$B884=\"Subscriber\",'Enrollment Form'!$C884=\"Enroll\",'Enrollment Form'!$AP884<>\"\"),\"Y\",\"N\")))","v":""},{"$f":"IF($B877=\"N\",\"\",IF(OR('Enrollment Form'!$B884<>\"Subscriber\",'Enrollment Form'!$C884=\"ROC\"),\"-\",IF(AND('Enrollment Form'!$B884=\"Subscriber\",'Enrollment Form'!$C884=\"Enroll\",'Enrollment Form'!$AQ884<>\"\"),\"Y\",\"N\")))","v":""},{"$f":"IF($B877=\"N\",\"\",IF(OR('Enrollment Form'!$B884<>\"Subscriber\",'Enrollment Form'!$C884=\"ROC\"),\"-\",IF(AND('Enrollment Form'!$B884=\"Subscriber\",'Enrollment Form'!$C884=\"Enroll\",'Enrollment Form'!$AS884<>\"\"),\"Y\",\"N\")))","v":""},{"$f":"IF($B877=\"N\",\"\",IF($Q877=\"-\",\"-\",IF(AND($Q877=\"Y\",'Enrollment Form'!$AS884=\"No\"),\"-\",IF(AND($Q877=\"Y\",'Enrollment Form'!$AS884=\"Yes\",'Enrollment Form'!$AT884<>\"\"),\"Y\",\"N\"))))","v":""},{"$f":"IF($B877=\"N\",\"\",IF(OR('Enrollment Form'!$B884<>\"Subscriber\",'Enrollment Form'!$C884=\"ROC\"),\"-\",IF(AND('Enrollment Form'!$B884=\"Subscriber\",'Enrollment Form'!$C884=\"Enroll\",'Enrollment Form'!$CV884<>\"\"),\"Y\",\"N\")))","v":""},{"$f":"IF($B877=\"N\",\"\",IF($S877=\"-\",\"-\",IF(AND($S877=\"Y\",'Enrollment Form'!$CV884=\"No\"),\"-\",IF(AND($S877=\"Y\",'Enrollment Form'!$CV884=\"Yes\",'Enrollment Form'!$CW884<>\"\"),\"Y\",\"N\"))))","v":""},{"$f":"IF(OR('Enrollment Form'!$AY884=\"Yes\",'Enrollment Form'!$AY884=\"\"),\"-\",IF(OR(AND('Enrollment Form'!$AY884=\"No\",ISERROR(FIND(\"HMO\",VLOOKUP('Enrollment Form'!G884,'Enrollment Form'!H$11:J$1000,3,FALSE),1))=FALSE,COUNTA('Enrollment Form'!$AZ884:$BC884)=4),AND('Enrollment Form'!$AY884=\"No\",ISERROR(FIND(\"HMO\",VLOOKUP('Enrollment Form'!G884,'Enrollment Form'!H$11:J$1000,3,FALSE),1))=FALSE,COUNTA('Enrollment Form'!$BT884:$BW884)=4)),\"Y\",\"N\"))","v":"-"},{"$f":"IF($B877=\"N\",\"\",IF('Enrollment Form'!$B884=\"Subscriber\",\"-\",IF(COUNTA('Enrollment Form'!$BL884,'Enrollment Form'!$BN884)=2,\"Y\",\"N\")))","v":""},{"$f":"IF($B877=\"N\",\"\",IF(OR('Enrollment Form'!$AX884=\"\",'Enrollment Form'!$AX884=\"No\"),\"-\",IF(AND('Enrollment Form'!$AX884=\"Yes\",COUNTA('Enrollment Form'!$CR884)=1),\"Y\",\"N\")))","v":""},{"$f":"IF(OR('Enrollment Form'!$CR884=\"\",'Enrollment Form'!$CR884=\"No\"),\"-\",IF(COUNTA('Enrollment Form'!$CT884:$CU884)=2,\"Y\",\"N\"))","v":"-"},{"$f":"IF($B877=\"N\",\"\",IF(COUNTIF('Enrollment Form'!$DG884:$DP884,\"Other\")=COUNTA('Enrollment Form'!$DK884,'Enrollment Form'!$DH884,'Enrollment Form'!$DN884,'Enrollment Form'!$DQ884),\"Y\",\"N\"))","v":""},{"$f":"IF($B877=\"N\",\"\",IF(OR('Enrollment Form'!B884<>\"Subscriber\",'Enrollment Form'!C884=\"ROC\",COUNTIF('Enrollment Form'!AV884:AW884,\"Yes\")>=1),\"-\",IF(AND('Enrollment Form'!C884=\"Enroll\",COUNTIF('Enrollment Form'!AV884:AW884,\"No\")=2,'Enrollment Form'!AX884=\"\"),\"N\",\"Y\")))","v":""},{"$f":"IF(OR(B877=\"N\",'Enrollment Form'!B884<>\"Subscriber\",'Enrollment Form'!C884=\"ROC\",'Enrollment Form'!O884<>\"Multiple of Salary\"),\"-\",IF(COUNTA('Enrollment Form'!T884:U884)<2,\"N\",\"Y\"))","v":"-"},{"$f":"IF(B877=\"N\",\"\",IF(OR('Enrollment Form'!C884=\"ROC\",'Enrollment Form'!B884<>\"Subscriber\",'Enrollment Form'!O884=\"Waive\",'Enrollment Form'!O884=\"\"),\"-\",IF('Enrollment Form'!P884=\"\",\"N\",\"Y\")))","v":""},{"$f":"IF($B877=\"N\",\"\",IF(AND('Enrollment Form'!$C884=\"ROC\",'Enrollment Form'!$DR884<>\"\"),\"Y\",IF(AND('Enrollment Form'!$C884=\"ROC\",'Enrollment Form'!$DR884=\"\"),\"N\",IF(AND('Enrollment Form'!$C884=\"Enroll\",'Enrollment Form'!$B884=\"Subscriber\",'Enrollment Form'!$CX884=\"No\",'Enrollment Form'!$DR884=\"\"),\"N\",IF(AND('Enrollment Form'!$C884=\"Enroll\",'Enrollment Form'!$B884=\"Subscriber\",'Enrollment Form'!$CX884=\"Yes\"),\"-\",\"Y\")))))","v":""},{"$f":"IF($B877=\"N\",\"\",IF(AND('Enrollment Form'!$C884=\"ROC\",'Enrollment Form'!$DS884<>\"\"),\"Y\",IF(AND('Enrollment Form'!$C884=\"ROC\",'Enrollment Form'!$DS884=\"\"),\"N\",IF(AND('Enrollment Form'!$C884=\"Enroll\",'Enrollment Form'!$B884=\"Subscriber\",'Enrollment Form'!$CX884=\"No\",'Enrollment Form'!$DS884=\"\"),\"N\",IF(AND('Enrollment Form'!$C884=\"Enroll\",'Enrollment Form'!$B884=\"Subscriber\",'Enrollment Form'!$CX884=\"Yes\"),\"-\",\"Y\")))))","v":""},{"$f":"IF('Enrollment Form'!AH884=\"\",\"\",IF(ISERROR(SEARCH(\".\",'Enrollment Form'!AH884,SEARCH(\"@\",'Enrollment Form'!AH884))),\"N\",\"Y\"))","v":""},{"$f":"IF(OR($B877=\"N\",'Enrollment Form'!$G884=\"\"),\"\",IF('Enrollment Form'!$B884<>\"Subscriber\",\"-\",IF(COUNTIF('Enrollment Form'!$AV884:$AW884,\"Yes\")=2,\"N\",\"Y\")))","v":""},{"$f":"IF(OR('Enrollment Form'!$CJ884=\"\",'Enrollment Form'!$CJ884=\"No\"),\"-\",IF(AND('Enrollment Form'!$CJ884=\"Yes\",'Enrollment Form'!$CK884=\"\"),\"N\",\"Y\"))","v":"-"},{"$f":"IF(OR('Enrollment Form'!$CL884=\"\",'Enrollment Form'!$CL884=\"No\"),\"-\",IF(AND('Enrollment Form'!$CL884=\"Yes\",'Enrollment Form'!$CM884=\"\"),\"N\",\"Y\"))","v":"-"},{"$f":"IF(OR('Enrollment Form'!$CN884=\"\",'Enrollment Form'!$CN884=\"No\"),\"-\",IF(AND('Enrollment Form'!$CN884=\"Yes\",'Enrollment Form'!$CO884=\"\"),\"N\",\"Y\"))","v":"-"},{"$f":"IF(OR('Enrollment Form'!$CN884=\"\",'Enrollment Form'!$CN884=\"No\"),\"-\",IF(AND('Enrollment Form'!$CN884=\"Yes\",'Enrollment Form'!$CP884=\"\"),\"N\",\"Y\"))","v":"-"},{"$f":"IF('Enrollment Form'!B884<>\"Subscriber\",\"-\",IF(AND('Enrollment Form'!B884=\"Subscriber\",'Enrollment Form'!C884=\"Enroll\",'Enrollment Form'!AA884=\"\"),\"N\",\"Y\"))","v":"-"},{"$f":"IF(OR('Enrollment Form'!B884=\"Subscriber\",'Enrollment Form'!B884=\"\"),\"-\",IF('Enrollment Form'!BP884=\"\",\"N\",\"Y\"))","v":"-"},{"$f":"IF('Enrollment Form'!B884<>\"Subscriber\",\"-\",IF(AND('Enrollment Form'!B884=\"Subscriber\",'Enrollment Form'!G884=\"\"),\"N\",\"Y\"))","v":"-"},{"$f":"IF('Enrollment Form'!A884=\"\",\"\",IF('Enrollment Form'!B884=\"Subscriber\",\"-\",IF(AND('Enrollment Form'!B884<>\"Subscriber\",'Enrollment Form'!G884='Enrollment Form'!H884),\"N\",\"Y\")))","v":""},0]
[885,{"$f":"IF('Enrollment Form'!$A885<>\"\",\"Y\",\"N\")","v":"N"},{"$f":"IF(AND('Enrollment Form'!$B885=\"\",'Enrollment Form'!$C885<>\"\"),\"N\",IF($B878=\"N\",\"\",\"Y\"))","v":""},{"$f":"IF(OR($B878=\"N\",'Enrollment Form'!G885=\"\"),\"\",IF('Enrollment Form'!$B885<>\"Subscriber\",\"\",IF('Enrollment Form'!$G885='Enrollment Form'!$H885,\"Y\",\"N\")))","v":""},{"$f":"IF($B878=\"N\",\"\",IF(AND(COUNTIFS('Enrollment Form'!$H$11:$H$1000,'Enrollment Form'!$H885,'Enrollment Form'!$B$11:$B$1000,'Enrollment Form'!$B885)>1,'Enrollment Form'!$H885<>\"\"),\"N\",\"Y\"))","v":""},{"$f":"IF($B878=\"N\",\"\",IF(LEN('Enrollment Form'!$Y885)=0,\"\",IF(LEN('Enrollment Form'!$Y885)<>5,\"N\",\"Y\")))","v":""},{"$f":"IF($B878=\"N\",\"\",IF(LEN('Enrollment Form'!$AD885=0),\"\",IF(LEN('Enrollment Form'!$AD885)<>5,\"N\",\"Y\")))","v":""},{"$f":"IF($B878=\"N\",\"\",IF(LEN('Enrollment Form'!$BS885=0),\"\",IF(LEN('Enrollment Form'!$BS885)<>5,\"N\",\"Y\")))","v":""},{"$f":"IF($B878=\"N\",\"\",IF(LEN('Enrollment Form'!$AE885)=0,\"\",IF(LEN('Enrollment Form'!$AE885)<>10,\"N\",\"Y\")))","v":""},{"$f":"IF($B878=\"N\",\"\",IF(LEN('Enrollment Form'!$AF885)=0,\"\",IF(LEN('Enrollment Form'!$AF885)<>10,\"N\",\"Y\")))","v":""},{"$f":"IF('Enrollment Form'!$O885<>\"Graded\",\"-\",IF(AND('Enrollment Form'!$O885=\"Graded\",'Enrollment Form'!$AR885<>\"\"),\"Y\",\"N\"))","v":"-"},{"$f":"IF($B878=\"N\",\"\",IF(OR('Enrollment Form'!$B885<>\"Subscriber\",'Enrollment Form'!$C885=\"ROC\"),\"-\",IF(AND('Enrollment Form'!$B885=\"Subscriber\",'Enrollment Form'!$C885=\"Enroll\",'Enrollment Form'!$AJ885<>\"\"),\"Y\",\"N\")))","v":""},{"$f":"IF($B878=\"N\",\"\",IF(OR('Enrollment Form'!$B885<>\"Subscriber\",'Enrollment Form'!$C885=\"ROC\"),\"-\",IF(AND('Enrollment Form'!$B885=\"Subscriber\",'Enrollment Form'!$C885=\"Enroll\",'Enrollment Form'!$AK885<>\"\"),\"Y\",\"N\")))","v":""},{"$f":"IF($B878=\"N\",\"\",IF(OR('Enrollment Form'!$B885<>\"Subscriber\",'Enrollment Form'!$C885=\"ROC\"),\"-\",IF(AND('Enrollment Form'!$B885=\"Subscriber\",'Enrollment Form'!$C885=\"Enroll\",'Enrollment Form'!$AL885<>\"\"),\"Y\",\"N\")))","v":""},{"$f":"IF($B878=\"N\",\"\",IF(OR('Enrollment Form'!$B885<>\"Subscriber\",'Enrollment Form'!$C885=\"ROC\"),\"-\",IF(AND('Enrollment Form'!$B885=\"Subscriber\",'Enrollment Form'!$C885=\"Enroll\",'Enrollment Form'!$AP885<>\"\"),\"Y\",\"N\")))","v":""},{"$f":"IF($B878=\"N\",\"\",IF(OR('Enrollment Form'!$B885<>\"Subscriber\",'Enrollment Form'!$C885=\"ROC\"),\"-\",IF(AND('Enrollment Form'!$B885=\"Subscriber\",'Enrollment Form'!$C885=\"Enroll\",'Enrollment Form'!$AQ885<>\"\"),\"Y\",\"N\")))","v":""},{"$f":"IF($B878=\"N\",\"\",IF(OR('Enrollment Form'!$B885<>\"Subscriber\",'Enrollment Form'!$C885=\"ROC\"),\"-\",IF(AND('Enrollment Form'!$B885=\"Subscriber\",'Enrollment Form'!$C885=\"Enroll\",'Enrollment Form'!$AS885<>\"\"),\"Y\",\"N\")))","v":""},{"$f":"IF($B878=\"N\",\"\",IF($Q878=\"-\",\"-\",IF(AND($Q878=\"Y\",'Enrollment Form'!$AS885=\"No\"),\"-\",IF(AND($Q878=\"Y\",'Enrollment Form'!$AS885=\"Yes\",'Enrollment Form'!$AT885<>\"\"),\"Y\",\"N\"))))","v":""},{"$f":"IF($B878=\"N\",\"\",IF(OR('Enrollment Form'!$B885<>\"Subscriber\",'Enrollment Form'!$C885=\"ROC\"),\"-\",IF(AND('Enrollment Form'!$B885=\"Subscriber\",'Enrollment Form'!$C885=\"Enroll\",'Enrollment Form'!$CV885<>\"\"),\"Y\",\"N\")))","v":""},{"$f":"IF($B878=\"N\",\"\",IF($S878=\"-\",\"-\",IF(AND($S878=\"Y\",'Enrollment Form'!$CV885=\"No\"),\"-\",IF(AND($S878=\"Y\",'Enrollment Form'!$CV885=\"Yes\",'Enrollment Form'!$CW885<>\"\"),\"Y\",\"N\"))))","v":""},{"$f":"IF(OR('Enrollment Form'!$AY885=\"Yes\",'Enrollment Form'!$AY885=\"\"),\"-\",IF(OR(AND('Enrollment Form'!$AY885=\"No\",ISERROR(FIND(\"HMO\",VLOOKUP('Enrollment Form'!G885,'Enrollment Form'!H$11:J$1000,3,FALSE),1))=FALSE,COUNTA('Enrollment Form'!$AZ885:$BC885)=4),AND('Enrollment Form'!$AY885=\"No\",ISERROR(FIND(\"HMO\",VLOOKUP('Enrollment Form'!G885,'Enrollment Form'!H$11:J$1000,3,FALSE),1))=FALSE,COUNTA('Enrollment Form'!$BT885:$BW885)=4)),\"Y\",\"N\"))","v":"-"},{"$f":"IF($B878=\"N\",\"\",IF('Enrollment Form'!$B885=\"Subscriber\",\"-\",IF(COUNTA('Enrollment Form'!$BL885,'Enrollment Form'!$BN885)=2,\"Y\",\"N\")))","v":""},{"$f":"IF($B878=\"N\",\"\",IF(OR('Enrollment Form'!$AX885=\"\",'Enrollment Form'!$AX885=\"No\"),\"-\",IF(AND('Enrollment Form'!$AX885=\"Yes\",COUNTA('Enrollment Form'!$CR885)=1),\"Y\",\"N\")))","v":""},{"$f":"IF(OR('Enrollment Form'!$CR885=\"\",'Enrollment Form'!$CR885=\"No\"),\"-\",IF(COUNTA('Enrollment Form'!$CT885:$CU885)=2,\"Y\",\"N\"))","v":"-"},{"$f":"IF($B878=\"N\",\"\",IF(COUNTIF('Enrollment Form'!$DG885:$DP885,\"Other\")=COUNTA('Enrollment Form'!$DK885,'Enrollment Form'!$DH885,'Enrollment Form'!$DN885,'Enrollment Form'!$DQ885),\"Y\",\"N\"))","v":""},{"$f":"IF($B878=\"N\",\"\",IF(OR('Enrollment Form'!B885<>\"Subscriber\",'Enrollment Form'!C885=\"ROC\",COUNTIF('Enrollment Form'!AV885:AW885,\"Yes\")>=1),\"-\",IF(AND('Enrollment Form'!C885=\"Enroll\",COUNTIF('Enrollment Form'!AV885:AW885,\"No\")=2,'Enrollment Form'!AX885=\"\"),\"N\",\"Y\")))","v":""},{"$f":"IF(OR(B878=\"N\",'Enrollment Form'!B885<>\"Subscriber\",'Enrollment Form'!C885=\"ROC\",'Enrollment Form'!O885<>\"Multiple of Salary\"),\"-\",IF(COUNTA('Enrollment Form'!T885:U885)<2,\"N\",\"Y\"))","v":"-"},{"$f":"IF(B878=\"N\",\"\",IF(OR('Enrollment Form'!C885=\"ROC\",'Enrollment Form'!B885<>\"Subscriber\",'Enrollment Form'!O885=\"Waive\",'Enrollment Form'!O885=\"\"),\"-\",IF('Enrollment Form'!P885=\"\",\"N\",\"Y\")))","v":""},{"$f":"IF($B878=\"N\",\"\",IF(AND('Enrollment Form'!$C885=\"ROC\",'Enrollment Form'!$DR885<>\"\"),\"Y\",IF(AND('Enrollment Form'!$C885=\"ROC\",'Enrollment Form'!$DR885=\"\"),\"N\",IF(AND('Enrollment Form'!$C885=\"Enroll\",'Enrollment Form'!$B885=\"Subscriber\",'Enrollment Form'!$CX885=\"No\",'Enrollment Form'!$DR885=\"\"),\"N\",IF(AND('Enrollment Form'!$C885=\"Enroll\",'Enrollment Form'!$B885=\"Subscriber\",'Enrollment Form'!$CX885=\"Yes\"),\"-\",\"Y\")))))","v":""},{"$f":"IF($B878=\"N\",\"\",IF(AND('Enrollment Form'!$C885=\"ROC\",'Enrollment Form'!$DS885<>\"\"),\"Y\",IF(AND('Enrollment Form'!$C885=\"ROC\",'Enrollment Form'!$DS885=\"\"),\"N\",IF(AND('Enrollment Form'!$C885=\"Enroll\",'Enrollment Form'!$B885=\"Subscriber\",'Enrollment Form'!$CX885=\"No\",'Enrollment Form'!$DS885=\"\"),\"N\",IF(AND('Enrollment Form'!$C885=\"Enroll\",'Enrollment Form'!$B885=\"Subscriber\",'Enrollment Form'!$CX885=\"Yes\"),\"-\",\"Y\")))))","v":""},{"$f":"IF('Enrollment Form'!AH885=\"\",\"\",IF(ISERROR(SEARCH(\".\",'Enrollment Form'!AH885,SEARCH(\"@\",'Enrollment Form'!AH885))),\"N\",\"Y\"))","v":""},{"$f":"IF(OR($B878=\"N\",'Enrollment Form'!$G885=\"\"),\"\",IF('Enrollment Form'!$B885<>\"Subscriber\",\"-\",IF(COUNTIF('Enrollment Form'!$AV885:$AW885,\"Yes\")=2,\"N\",\"Y\")))","v":""},{"$f":"IF(OR('Enrollment Form'!$CJ885=\"\",'Enrollment Form'!$CJ885=\"No\"),\"-\",IF(AND('Enrollment Form'!$CJ885=\"Yes\",'Enrollment Form'!$CK885=\"\"),\"N\",\"Y\"))","v":"-"},{"$f":"IF(OR('Enrollment Form'!$CL885=\"\",'Enrollment Form'!$CL885=\"No\"),\"-\",IF(AND('Enrollment Form'!$CL885=\"Yes\",'Enrollment Form'!$CM885=\"\"),\"N\",\"Y\"))","v":"-"},{"$f":"IF(OR('Enrollment Form'!$CN885=\"\",'Enrollment Form'!$CN885=\"No\"),\"-\",IF(AND('Enrollment Form'!$CN885=\"Yes\",'Enrollment Form'!$CO885=\"\"),\"N\",\"Y\"))","v":"-"},{"$f":"IF(OR('Enrollment Form'!$CN885=\"\",'Enrollment Form'!$CN885=\"No\"),\"-\",IF(AND('Enrollment Form'!$CN885=\"Yes\",'Enrollment Form'!$CP885=\"\"),\"N\",\"Y\"))","v":"-"},{"$f":"IF('Enrollment Form'!B885<>\"Subscriber\",\"-\",IF(AND('Enrollment Form'!B885=\"Subscriber\",'Enrollment Form'!C885=\"Enroll\",'Enrollment Form'!AA885=\"\"),\"N\",\"Y\"))","v":"-"},{"$f":"IF(OR('Enrollment Form'!B885=\"Subscriber\",'Enrollment Form'!B885=\"\"),\"-\",IF('Enrollment Form'!BP885=\"\",\"N\",\"Y\"))","v":"-"},{"$f":"IF('Enrollment Form'!B885<>\"Subscriber\",\"-\",IF(AND('Enrollment Form'!B885=\"Subscriber\",'Enrollment Form'!G885=\"\"),\"N\",\"Y\"))","v":"-"},{"$f":"IF('Enrollment Form'!A885=\"\",\"\",IF('Enrollment Form'!B885=\"Subscriber\",\"-\",IF(AND('Enrollment Form'!B885<>\"Subscriber\",'Enrollment Form'!G885='Enrollment Form'!H885),\"N\",\"Y\")))","v":""},0]
[886,{"$f":"IF('Enrollment Form'!$A886<>\"\",\"Y\",\"N\")","v":"N"},{"$f":"IF(AND('Enrollment Form'!$B886=\"\",'Enrollment Form'!$C886<>\"\"),\"N\",IF($B879=\"N\",\"\",\"Y\"))","v":""},{"$f":"IF(OR($B879=\"N\",'Enrollment Form'!G886=\"\"),\"\",IF('Enrollment Form'!$B886<>\"Subscriber\",\"\",IF('Enrollment Form'!$G886='Enrollment Form'!$H886,\"Y\",\"N\")))","v":""},{"$f":"IF($B879=\"N\",\"\",IF(AND(COUNTIFS('Enrollment Form'!$H$11:$H$1000,'Enrollment Form'!$H886,'Enrollment Form'!$B$11:$B$1000,'Enrollment Form'!$B886)>1,'Enrollment Form'!$H886<>\"\"),\"N\",\"Y\"))","v":""},{"$f":"IF($B879=\"N\",\"\",IF(LEN('Enrollment Form'!$Y886)=0,\"\",IF(LEN('Enrollment Form'!$Y886)<>5,\"N\",\"Y\")))","v":""},{"$f":"IF($B879=\"N\",\"\",IF(LEN('Enrollment Form'!$AD886=0),\"\",IF(LEN('Enrollment Form'!$AD886)<>5,\"N\",\"Y\")))","v":""},{"$f":"IF($B879=\"N\",\"\",IF(LEN('Enrollment Form'!$BS886=0),\"\",IF(LEN('Enrollment Form'!$BS886)<>5,\"N\",\"Y\")))","v":""},{"$f":"IF($B879=\"N\",\"\",IF(LEN('Enrollment Form'!$AE886)=0,\"\",IF(LEN('Enrollment Form'!$AE886)<>10,\"N\",\"Y\")))","v":""},{"$f":"IF($B879=\"N\",\"\",IF(LEN('Enrollment Form'!$AF886)=0,\"\",IF(LEN('Enrollment Form'!$AF886)<>10,\"N\",\"Y\")))","v":""},{"$f":"IF('Enrollment Form'!$O886<>\"Graded\",\"-\",IF(AND('Enrollment Form'!$O886=\"Graded\",'Enrollment Form'!$AR886<>\"\"),\"Y\",\"N\"))","v":"-"},{"$f":"IF($B879=\"N\",\"\",IF(OR('Enrollment Form'!$B886<>\"Subscriber\",'Enrollment Form'!$C886=\"ROC\"),\"-\",IF(AND('Enrollment Form'!$B886=\"Subscriber\",'Enrollment Form'!$C886=\"Enroll\",'Enrollment Form'!$AJ886<>\"\"),\"Y\",\"N\")))","v":""},{"$f":"IF($B879=\"N\",\"\",IF(OR('Enrollment Form'!$B886<>\"Subscriber\",'Enrollment Form'!$C886=\"ROC\"),\"-\",IF(AND('Enrollment Form'!$B886=\"Subscriber\",'Enrollment Form'!$C886=\"Enroll\",'Enrollment Form'!$AK886<>\"\"),\"Y\",\"N\")))","v":""},{"$f":"IF($B879=\"N\",\"\",IF(OR('Enrollment Form'!$B886<>\"Subscriber\",'Enrollment Form'!$C886=\"ROC\"),\"-\",IF(AND('Enrollment Form'!$B886=\"Subscriber\",'Enrollment Form'!$C886=\"Enroll\",'Enrollment Form'!$AL886<>\"\"),\"Y\",\"N\")))","v":""},{"$f":"IF($B879=\"N\",\"\",IF(OR('Enrollment Form'!$B886<>\"Subscriber\",'Enrollment Form'!$C886=\"ROC\"),\"-\",IF(AND('Enrollment Form'!$B886=\"Subscriber\",'Enrollment Form'!$C886=\"Enroll\",'Enrollment Form'!$AP886<>\"\"),\"Y\",\"N\")))","v":""},{"$f":"IF($B879=\"N\",\"\",IF(OR('Enrollment Form'!$B886<>\"Subscriber\",'Enrollment Form'!$C886=\"ROC\"),\"-\",IF(AND('Enrollment Form'!$B886=\"Subscriber\",'Enrollment Form'!$C886=\"Enroll\",'Enrollment Form'!$AQ886<>\"\"),\"Y\",\"N\")))","v":""},{"$f":"IF($B879=\"N\",\"\",IF(OR('Enrollment Form'!$B886<>\"Subscriber\",'Enrollment Form'!$C886=\"ROC\"),\"-\",IF(AND('Enrollment Form'!$B886=\"Subscriber\",'Enrollment Form'!$C886=\"Enroll\",'Enrollment Form'!$AS886<>\"\"),\"Y\",\"N\")))","v":""},{"$f":"IF($B879=\"N\",\"\",IF($Q879=\"-\",\"-\",IF(AND($Q879=\"Y\",'Enrollment Form'!$AS886=\"No\"),\"-\",IF(AND($Q879=\"Y\",'Enrollment Form'!$AS886=\"Yes\",'Enrollment Form'!$AT886<>\"\"),\"Y\",\"N\"))))","v":""},{"$f":"IF($B879=\"N\",\"\",IF(OR('Enrollment Form'!$B886<>\"Subscriber\",'Enrollment Form'!$C886=\"ROC\"),\"-\",IF(AND('Enrollment Form'!$B886=\"Subscriber\",'Enrollment Form'!$C886=\"Enroll\",'Enrollment Form'!$CV886<>\"\"),\"Y\",\"N\")))","v":""},{"$f":"IF($B879=\"N\",\"\",IF($S879=\"-\",\"-\",IF(AND($S879=\"Y\",'Enrollment Form'!$CV886=\"No\"),\"-\",IF(AND($S879=\"Y\",'Enrollment Form'!$CV886=\"Yes\",'Enrollment Form'!$CW886<>\"\"),\"Y\",\"N\"))))","v":""},{"$f":"IF(OR('Enrollment Form'!$AY886=\"Yes\",'Enrollment Form'!$AY886=\"\"),\"-\",IF(OR(AND('Enrollment Form'!$AY886=\"No\",ISERROR(FIND(\"HMO\",VLOOKUP('Enrollment Form'!G886,'Enrollment Form'!H$11:J$1000,3,FALSE),1))=FALSE,COUNTA('Enrollment Form'!$AZ886:$BC886)=4),AND('Enrollment Form'!$AY886=\"No\",ISERROR(FIND(\"HMO\",VLOOKUP('Enrollment Form'!G886,'Enrollment Form'!H$11:J$1000,3,FALSE),1))=FALSE,COUNTA('Enrollment Form'!$BT886:$BW886)=4)),\"Y\",\"N\"))","v":"-"},{"$f":"IF($B879=\"N\",\"\",IF('Enrollment Form'!$B886=\"Subscriber\",\"-\",IF(COUNTA('Enrollment Form'!$BL886,'Enrollment Form'!$BN886)=2,\"Y\",\"N\")))","v":""},{"$f":"IF($B879=\"N\",\"\",IF(OR('Enrollment Form'!$AX886=\"\",'Enrollment Form'!$AX886=\"No\"),\"-\",IF(AND('Enrollment Form'!$AX886=\"Yes\",COUNTA('Enrollment Form'!$CR886)=1),\"Y\",\"N\")))","v":""},{"$f":"IF(OR('Enrollment Form'!$CR886=\"\",'Enrollment Form'!$CR886=\"No\"),\"-\",IF(COUNTA('Enrollment Form'!$CT886:$CU886)=2,\"Y\",\"N\"))","v":"-"},{"$f":"IF($B879=\"N\",\"\",IF(COUNTIF('Enrollment Form'!$DG886:$DP886,\"Other\")=COUNTA('Enrollment Form'!$DK886,'Enrollment Form'!$DH886,'Enrollment Form'!$DN886,'Enrollment Form'!$DQ886),\"Y\",\"N\"))","v":""},{"$f":"IF($B879=\"N\",\"\",IF(OR('Enrollment Form'!B886<>\"Subscriber\",'Enrollment Form'!C886=\"ROC\",COUNTIF('Enrollment Form'!AV886:AW886,\"Yes\")>=1),\"-\",IF(AND('Enrollment Form'!C886=\"Enroll\",COUNTIF('Enrollment Form'!AV886:AW886,\"No\")=2,'Enrollment Form'!AX886=\"\"),\"N\",\"Y\")))","v":""},{"$f":"IF(OR(B879=\"N\",'Enrollment Form'!B886<>\"Subscriber\",'Enrollment Form'!C886=\"ROC\",'Enrollment Form'!O886<>\"Multiple of Salary\"),\"-\",IF(COUNTA('Enrollment Form'!T886:U886)<2,\"N\",\"Y\"))","v":"-"},{"$f":"IF(B879=\"N\",\"\",IF(OR('Enrollment Form'!C886=\"ROC\",'Enrollment Form'!B886<>\"Subscriber\",'Enrollment Form'!O886=\"Waive\",'Enrollment Form'!O886=\"\"),\"-\",IF('Enrollment Form'!P886=\"\",\"N\",\"Y\")))","v":""},{"$f":"IF($B879=\"N\",\"\",IF(AND('Enrollment Form'!$C886=\"ROC\",'Enrollment Form'!$DR886<>\"\"),\"Y\",IF(AND('Enrollment Form'!$C886=\"ROC\",'Enrollment Form'!$DR886=\"\"),\"N\",IF(AND('Enrollment Form'!$C886=\"Enroll\",'Enrollment Form'!$B886=\"Subscriber\",'Enrollment Form'!$CX886=\"No\",'Enrollment Form'!$DR886=\"\"),\"N\",IF(AND('Enrollment Form'!$C886=\"Enroll\",'Enrollment Form'!$B886=\"Subscriber\",'Enrollment Form'!$CX886=\"Yes\"),\"-\",\"Y\")))))","v":""},{"$f":"IF($B879=\"N\",\"\",IF(AND('Enrollment Form'!$C886=\"ROC\",'Enrollment Form'!$DS886<>\"\"),\"Y\",IF(AND('Enrollment Form'!$C886=\"ROC\",'Enrollment Form'!$DS886=\"\"),\"N\",IF(AND('Enrollment Form'!$C886=\"Enroll\",'Enrollment Form'!$B886=\"Subscriber\",'Enrollment Form'!$CX886=\"No\",'Enrollment Form'!$DS886=\"\"),\"N\",IF(AND('Enrollment Form'!$C886=\"Enroll\",'Enrollment Form'!$B886=\"Subscriber\",'Enrollment Form'!$CX886=\"Yes\"),\"-\",\"Y\")))))","v":""},{"$f":"IF('Enrollment Form'!AH886=\"\",\"\",IF(ISERROR(SEARCH(\".\",'Enrollment Form'!AH886,SEARCH(\"@\",'Enrollment Form'!AH886))),\"N\",\"Y\"))","v":""},{"$f":"IF(OR($B879=\"N\",'Enrollment Form'!$G886=\"\"),\"\",IF('Enrollment Form'!$B886<>\"Subscriber\",\"-\",IF(COUNTIF('Enrollment Form'!$AV886:$AW886,\"Yes\")=2,\"N\",\"Y\")))","v":""},{"$f":"IF(OR('Enrollment Form'!$CJ886=\"\",'Enrollment Form'!$CJ886=\"No\"),\"-\",IF(AND('Enrollment Form'!$CJ886=\"Yes\",'Enrollment Form'!$CK886=\"\"),\"N\",\"Y\"))","v":"-"},{"$f":"IF(OR('Enrollment Form'!$CL886=\"\",'Enrollment Form'!$CL886=\"No\"),\"-\",IF(AND('Enrollment Form'!$CL886=\"Yes\",'Enrollment Form'!$CM886=\"\"),\"N\",\"Y\"))","v":"-"},{"$f":"IF(OR('Enrollment Form'!$CN886=\"\",'Enrollment Form'!$CN886=\"No\"),\"-\",IF(AND('Enrollment Form'!$CN886=\"Yes\",'Enrollment Form'!$CO886=\"\"),\"N\",\"Y\"))","v":"-"},{"$f":"IF(OR('Enrollment Form'!$CN886=\"\",'Enrollment Form'!$CN886=\"No\"),\"-\",IF(AND('Enrollment Form'!$CN886=\"Yes\",'Enrollment Form'!$CP886=\"\"),\"N\",\"Y\"))","v":"-"},{"$f":"IF('Enrollment Form'!B886<>\"Subscriber\",\"-\",IF(AND('Enrollment Form'!B886=\"Subscriber\",'Enrollment Form'!C886=\"Enroll\",'Enrollment Form'!AA886=\"\"),\"N\",\"Y\"))","v":"-"},{"$f":"IF(OR('Enrollment Form'!B886=\"Subscriber\",'Enrollment Form'!B886=\"\"),\"-\",IF('Enrollment Form'!BP886=\"\",\"N\",\"Y\"))","v":"-"},{"$f":"IF('Enrollment Form'!B886<>\"Subscriber\",\"-\",IF(AND('Enrollment Form'!B886=\"Subscriber\",'Enrollment Form'!G886=\"\"),\"N\",\"Y\"))","v":"-"},{"$f":"IF('Enrollment Form'!A886=\"\",\"\",IF('Enrollment Form'!B886=\"Subscriber\",\"-\",IF(AND('Enrollment Form'!B886<>\"Subscriber\",'Enrollment Form'!G886='Enrollment Form'!H886),\"N\",\"Y\")))","v":""},0]
[887,{"$f":"IF('Enrollment Form'!$A887<>\"\",\"Y\",\"N\")","v":"N"},{"$f":"IF(AND('Enrollment Form'!$B887=\"\",'Enrollment Form'!$C887<>\"\"),\"N\",IF($B880=\"N\",\"\",\"Y\"))","v":""},{"$f":"IF(OR($B880=\"N\",'Enrollment Form'!G887=\"\"),\"\",IF('Enrollment Form'!$B887<>\"Subscriber\",\"\",IF('Enrollment Form'!$G887='Enrollment Form'!$H887,\"Y\",\"N\")))","v":""},{"$f":"IF($B880=\"N\",\"\",IF(AND(COUNTIFS('Enrollment Form'!$H$11:$H$1000,'Enrollment Form'!$H887,'Enrollment Form'!$B$11:$B$1000,'Enrollment Form'!$B887)>1,'Enrollment Form'!$H887<>\"\"),\"N\",\"Y\"))","v":""},{"$f":"IF($B880=\"N\",\"\",IF(LEN('Enrollment Form'!$Y887)=0,\"\",IF(LEN('Enrollment Form'!$Y887)<>5,\"N\",\"Y\")))","v":""},{"$f":"IF($B880=\"N\",\"\",IF(LEN('Enrollment Form'!$AD887=0),\"\",IF(LEN('Enrollment Form'!$AD887)<>5,\"N\",\"Y\")))","v":""},{"$f":"IF($B880=\"N\",\"\",IF(LEN('Enrollment Form'!$BS887=0),\"\",IF(LEN('Enrollment Form'!$BS887)<>5,\"N\",\"Y\")))","v":""},{"$f":"IF($B880=\"N\",\"\",IF(LEN('Enrollment Form'!$AE887)=0,\"\",IF(LEN('Enrollment Form'!$AE887)<>10,\"N\",\"Y\")))","v":""},{"$f":"IF($B880=\"N\",\"\",IF(LEN('Enrollment Form'!$AF887)=0,\"\",IF(LEN('Enrollment Form'!$AF887)<>10,\"N\",\"Y\")))","v":""},{"$f":"IF('Enrollment Form'!$O887<>\"Graded\",\"-\",IF(AND('Enrollment Form'!$O887=\"Graded\",'Enrollment Form'!$AR887<>\"\"),\"Y\",\"N\"))","v":"-"},{"$f":"IF($B880=\"N\",\"\",IF(OR('Enrollment Form'!$B887<>\"Subscriber\",'Enrollment Form'!$C887=\"ROC\"),\"-\",IF(AND('Enrollment Form'!$B887=\"Subscriber\",'Enrollment Form'!$C887=\"Enroll\",'Enrollment Form'!$AJ887<>\"\"),\"Y\",\"N\")))","v":""},{"$f":"IF($B880=\"N\",\"\",IF(OR('Enrollment Form'!$B887<>\"Subscriber\",'Enrollment Form'!$C887=\"ROC\"),\"-\",IF(AND('Enrollment Form'!$B887=\"Subscriber\",'Enrollment Form'!$C887=\"Enroll\",'Enrollment Form'!$AK887<>\"\"),\"Y\",\"N\")))","v":""},{"$f":"IF($B880=\"N\",\"\",IF(OR('Enrollment Form'!$B887<>\"Subscriber\",'Enrollment Form'!$C887=\"ROC\"),\"-\",IF(AND('Enrollment Form'!$B887=\"Subscriber\",'Enrollment Form'!$C887=\"Enroll\",'Enrollment Form'!$AL887<>\"\"),\"Y\",\"N\")))","v":""},{"$f":"IF($B880=\"N\",\"\",IF(OR('Enrollment Form'!$B887<>\"Subscriber\",'Enrollment Form'!$C887=\"ROC\"),\"-\",IF(AND('Enrollment Form'!$B887=\"Subscriber\",'Enrollment Form'!$C887=\"Enroll\",'Enrollment Form'!$AP887<>\"\"),\"Y\",\"N\")))","v":""},{"$f":"IF($B880=\"N\",\"\",IF(OR('Enrollment Form'!$B887<>\"Subscriber\",'Enrollment Form'!$C887=\"ROC\"),\"-\",IF(AND('Enrollment Form'!$B887=\"Subscriber\",'Enrollment Form'!$C887=\"Enroll\",'Enrollment Form'!$AQ887<>\"\"),\"Y\",\"N\")))","v":""},{"$f":"IF($B880=\"N\",\"\",IF(OR('Enrollment Form'!$B887<>\"Subscriber\",'Enrollment Form'!$C887=\"ROC\"),\"-\",IF(AND('Enrollment Form'!$B887=\"Subscriber\",'Enrollment Form'!$C887=\"Enroll\",'Enrollment Form'!$AS887<>\"\"),\"Y\",\"N\")))","v":""},{"$f":"IF($B880=\"N\",\"\",IF($Q880=\"-\",\"-\",IF(AND($Q880=\"Y\",'Enrollment Form'!$AS887=\"No\"),\"-\",IF(AND($Q880=\"Y\",'Enrollment Form'!$AS887=\"Yes\",'Enrollment Form'!$AT887<>\"\"),\"Y\",\"N\"))))","v":""},{"$f":"IF($B880=\"N\",\"\",IF(OR('Enrollment Form'!$B887<>\"Subscriber\",'Enrollment Form'!$C887=\"ROC\"),\"-\",IF(AND('Enrollment Form'!$B887=\"Subscriber\",'Enrollment Form'!$C887=\"Enroll\",'Enrollment Form'!$CV887<>\"\"),\"Y\",\"N\")))","v":""},{"$f":"IF($B880=\"N\",\"\",IF($S880=\"-\",\"-\",IF(AND($S880=\"Y\",'Enrollment Form'!$CV887=\"No\"),\"-\",IF(AND($S880=\"Y\",'Enrollment Form'!$CV887=\"Yes\",'Enrollment Form'!$CW887<>\"\"),\"Y\",\"N\"))))","v":""},{"$f":"IF(OR('Enrollment Form'!$AY887=\"Yes\",'Enrollment Form'!$AY887=\"\"),\"-\",IF(OR(AND('Enrollment Form'!$AY887=\"No\",ISERROR(FIND(\"HMO\",VLOOKUP('Enrollment Form'!G887,'Enrollment Form'!H$11:J$1000,3,FALSE),1))=FALSE,COUNTA('Enrollment Form'!$AZ887:$BC887)=4),AND('Enrollment Form'!$AY887=\"No\",ISERROR(FIND(\"HMO\",VLOOKUP('Enrollment Form'!G887,'Enrollment Form'!H$11:J$1000,3,FALSE),1))=FALSE,COUNTA('Enrollment Form'!$BT887:$BW887)=4)),\"Y\",\"N\"))","v":"-"},{"$f":"IF($B880=\"N\",\"\",IF('Enrollment Form'!$B887=\"Subscriber\",\"-\",IF(COUNTA('Enrollment Form'!$BL887,'Enrollment Form'!$BN887)=2,\"Y\",\"N\")))","v":""},{"$f":"IF($B880=\"N\",\"\",IF(OR('Enrollment Form'!$AX887=\"\",'Enrollment Form'!$AX887=\"No\"),\"-\",IF(AND('Enrollment Form'!$AX887=\"Yes\",COUNTA('Enrollment Form'!$CR887)=1),\"Y\",\"N\")))","v":""},{"$f":"IF(OR('Enrollment Form'!$CR887=\"\",'Enrollment Form'!$CR887=\"No\"),\"-\",IF(COUNTA('Enrollment Form'!$CT887:$CU887)=2,\"Y\",\"N\"))","v":"-"},{"$f":"IF($B880=\"N\",\"\",IF(COUNTIF('Enrollment Form'!$DG887:$DP887,\"Other\")=COUNTA('Enrollment Form'!$DK887,'Enrollment Form'!$DH887,'Enrollment Form'!$DN887,'Enrollment Form'!$DQ887),\"Y\",\"N\"))","v":""},{"$f":"IF($B880=\"N\",\"\",IF(OR('Enrollment Form'!B887<>\"Subscriber\",'Enrollment Form'!C887=\"ROC\",COUNTIF('Enrollment Form'!AV887:AW887,\"Yes\")>=1),\"-\",IF(AND('Enrollment Form'!C887=\"Enroll\",COUNTIF('Enrollment Form'!AV887:AW887,\"No\")=2,'Enrollment Form'!AX887=\"\"),\"N\",\"Y\")))","v":""},{"$f":"IF(OR(B880=\"N\",'Enrollment Form'!B887<>\"Subscriber\",'Enrollment Form'!C887=\"ROC\",'Enrollment Form'!O887<>\"Multiple of Salary\"),\"-\",IF(COUNTA('Enrollment Form'!T887:U887)<2,\"N\",\"Y\"))","v":"-"},{"$f":"IF(B880=\"N\",\"\",IF(OR('Enrollment Form'!C887=\"ROC\",'Enrollment Form'!B887<>\"Subscriber\",'Enrollment Form'!O887=\"Waive\",'Enrollment Form'!O887=\"\"),\"-\",IF('Enrollment Form'!P887=\"\",\"N\",\"Y\")))","v":""},{"$f":"IF($B880=\"N\",\"\",IF(AND('Enrollment Form'!$C887=\"ROC\",'Enrollment Form'!$DR887<>\"\"),\"Y\",IF(AND('Enrollment Form'!$C887=\"ROC\",'Enrollment Form'!$DR887=\"\"),\"N\",IF(AND('Enrollment Form'!$C887=\"Enroll\",'Enrollment Form'!$B887=\"Subscriber\",'Enrollment Form'!$CX887=\"No\",'Enrollment Form'!$DR887=\"\"),\"N\",IF(AND('Enrollment Form'!$C887=\"Enroll\",'Enrollment Form'!$B887=\"Subscriber\",'Enrollment Form'!$CX887=\"Yes\"),\"-\",\"Y\")))))","v":""},{"$f":"IF($B880=\"N\",\"\",IF(AND('Enrollment Form'!$C887=\"ROC\",'Enrollment Form'!$DS887<>\"\"),\"Y\",IF(AND('Enrollment Form'!$C887=\"ROC\",'Enrollment Form'!$DS887=\"\"),\"N\",IF(AND('Enrollment Form'!$C887=\"Enroll\",'Enrollment Form'!$B887=\"Subscriber\",'Enrollment Form'!$CX887=\"No\",'Enrollment Form'!$DS887=\"\"),\"N\",IF(AND('Enrollment Form'!$C887=\"Enroll\",'Enrollment Form'!$B887=\"Subscriber\",'Enrollment Form'!$CX887=\"Yes\"),\"-\",\"Y\")))))","v":""},{"$f":"IF('Enrollment Form'!AH887=\"\",\"\",IF(ISERROR(SEARCH(\".\",'Enrollment Form'!AH887,SEARCH(\"@\",'Enrollment Form'!AH887))),\"N\",\"Y\"))","v":""},{"$f":"IF(OR($B880=\"N\",'Enrollment Form'!$G887=\"\"),\"\",IF('Enrollment Form'!$B887<>\"Subscriber\",\"-\",IF(COUNTIF('Enrollment Form'!$AV887:$AW887,\"Yes\")=2,\"N\",\"Y\")))","v":""},{"$f":"IF(OR('Enrollment Form'!$CJ887=\"\",'Enrollment Form'!$CJ887=\"No\"),\"-\",IF(AND('Enrollment Form'!$CJ887=\"Yes\",'Enrollment Form'!$CK887=\"\"),\"N\",\"Y\"))","v":"-"},{"$f":"IF(OR('Enrollment Form'!$CL887=\"\",'Enrollment Form'!$CL887=\"No\"),\"-\",IF(AND('Enrollment Form'!$CL887=\"Yes\",'Enrollment Form'!$CM887=\"\"),\"N\",\"Y\"))","v":"-"},{"$f":"IF(OR('Enrollment Form'!$CN887=\"\",'Enrollment Form'!$CN887=\"No\"),\"-\",IF(AND('Enrollment Form'!$CN887=\"Yes\",'Enrollment Form'!$CO887=\"\"),\"N\",\"Y\"))","v":"-"},{"$f":"IF(OR('Enrollment Form'!$CN887=\"\",'Enrollment Form'!$CN887=\"No\"),\"-\",IF(AND('Enrollment Form'!$CN887=\"Yes\",'Enrollment Form'!$CP887=\"\"),\"N\",\"Y\"))","v":"-"},{"$f":"IF('Enrollment Form'!B887<>\"Subscriber\",\"-\",IF(AND('Enrollment Form'!B887=\"Subscriber\",'Enrollment Form'!C887=\"Enroll\",'Enrollment Form'!AA887=\"\"),\"N\",\"Y\"))","v":"-"},{"$f":"IF(OR('Enrollment Form'!B887=\"Subscriber\",'Enrollment Form'!B887=\"\"),\"-\",IF('Enrollment Form'!BP887=\"\",\"N\",\"Y\"))","v":"-"},{"$f":"IF('Enrollment Form'!B887<>\"Subscriber\",\"-\",IF(AND('Enrollment Form'!B887=\"Subscriber\",'Enrollment Form'!G887=\"\"),\"N\",\"Y\"))","v":"-"},{"$f":"IF('Enrollment Form'!A887=\"\",\"\",IF('Enrollment Form'!B887=\"Subscriber\",\"-\",IF(AND('Enrollment Form'!B887<>\"Subscriber\",'Enrollment Form'!G887='Enrollment Form'!H887),\"N\",\"Y\")))","v":""},0]
[888,{"$f":"IF('Enrollment Form'!$A888<>\"\",\"Y\",\"N\")","v":"N"},{"$f":"IF(AND('Enrollment Form'!$B888=\"\",'Enrollment Form'!$C888<>\"\"),\"N\",IF($B881=\"N\",\"\",\"Y\"))","v":""},{"$f":"IF(OR($B881=\"N\",'Enrollment Form'!G888=\"\"),\"\",IF('Enrollment Form'!$B888<>\"Subscriber\",\"\",IF('Enrollment Form'!$G888='Enrollment Form'!$H888,\"Y\",\"N\")))","v":""},{"$f":"IF($B881=\"N\",\"\",IF(AND(COUNTIFS('Enrollment Form'!$H$11:$H$1000,'Enrollment Form'!$H888,'Enrollment Form'!$B$11:$B$1000,'Enrollment Form'!$B888)>1,'Enrollment Form'!$H888<>\"\"),\"N\",\"Y\"))","v":""},{"$f":"IF($B881=\"N\",\"\",IF(LEN('Enrollment Form'!$Y888)=0,\"\",IF(LEN('Enrollment Form'!$Y888)<>5,\"N\",\"Y\")))","v":""},{"$f":"IF($B881=\"N\",\"\",IF(LEN('Enrollment Form'!$AD888=0),\"\",IF(LEN('Enrollment Form'!$AD888)<>5,\"N\",\"Y\")))","v":""},{"$f":"IF($B881=\"N\",\"\",IF(LEN('Enrollment Form'!$BS888=0),\"\",IF(LEN('Enrollment Form'!$BS888)<>5,\"N\",\"Y\")))","v":""},{"$f":"IF($B881=\"N\",\"\",IF(LEN('Enrollment Form'!$AE888)=0,\"\",IF(LEN('Enrollment Form'!$AE888)<>10,\"N\",\"Y\")))","v":""},{"$f":"IF($B881=\"N\",\"\",IF(LEN('Enrollment Form'!$AF888)=0,\"\",IF(LEN('Enrollment Form'!$AF888)<>10,\"N\",\"Y\")))","v":""},{"$f":"IF('Enrollment Form'!$O888<>\"Graded\",\"-\",IF(AND('Enrollment Form'!$O888=\"Graded\",'Enrollment Form'!$AR888<>\"\"),\"Y\",\"N\"))","v":"-"},{"$f":"IF($B881=\"N\",\"\",IF(OR('Enrollment Form'!$B888<>\"Subscriber\",'Enrollment Form'!$C888=\"ROC\"),\"-\",IF(AND('Enrollment Form'!$B888=\"Subscriber\",'Enrollment Form'!$C888=\"Enroll\",'Enrollment Form'!$AJ888<>\"\"),\"Y\",\"N\")))","v":""},{"$f":"IF($B881=\"N\",\"\",IF(OR('Enrollment Form'!$B888<>\"Subscriber\",'Enrollment Form'!$C888=\"ROC\"),\"-\",IF(AND('Enrollment Form'!$B888=\"Subscriber\",'Enrollment Form'!$C888=\"Enroll\",'Enrollment Form'!$AK888<>\"\"),\"Y\",\"N\")))","v":""},{"$f":"IF($B881=\"N\",\"\",IF(OR('Enrollment Form'!$B888<>\"Subscriber\",'Enrollment Form'!$C888=\"ROC\"),\"-\",IF(AND('Enrollment Form'!$B888=\"Subscriber\",'Enrollment Form'!$C888=\"Enroll\",'Enrollment Form'!$AL888<>\"\"),\"Y\",\"N\")))","v":""},{"$f":"IF($B881=\"N\",\"\",IF(OR('Enrollment Form'!$B888<>\"Subscriber\",'Enrollment Form'!$C888=\"ROC\"),\"-\",IF(AND('Enrollment Form'!$B888=\"Subscriber\",'Enrollment Form'!$C888=\"Enroll\",'Enrollment Form'!$AP888<>\"\"),\"Y\",\"N\")))","v":""},{"$f":"IF($B881=\"N\",\"\",IF(OR('Enrollment Form'!$B888<>\"Subscriber\",'Enrollment Form'!$C888=\"ROC\"),\"-\",IF(AND('Enrollment Form'!$B888=\"Subscriber\",'Enrollment Form'!$C888=\"Enroll\",'Enrollment Form'!$AQ888<>\"\"),\"Y\",\"N\")))","v":""},{"$f":"IF($B881=\"N\",\"\",IF(OR('Enrollment Form'!$B888<>\"Subscriber\",'Enrollment Form'!$C888=\"ROC\"),\"-\",IF(AND('Enrollment Form'!$B888=\"Subscriber\",'Enrollment Form'!$C888=\"Enroll\",'Enrollment Form'!$AS888<>\"\"),\"Y\",\"N\")))","v":""},{"$f":"IF($B881=\"N\",\"\",IF($Q881=\"-\",\"-\",IF(AND($Q881=\"Y\",'Enrollment Form'!$AS888=\"No\"),\"-\",IF(AND($Q881=\"Y\",'Enrollment Form'!$AS888=\"Yes\",'Enrollment Form'!$AT888<>\"\"),\"Y\",\"N\"))))","v":""},{"$f":"IF($B881=\"N\",\"\",IF(OR('Enrollment Form'!$B888<>\"Subscriber\",'Enrollment Form'!$C888=\"ROC\"),\"-\",IF(AND('Enrollment Form'!$B888=\"Subscriber\",'Enrollment Form'!$C888=\"Enroll\",'Enrollment Form'!$CV888<>\"\"),\"Y\",\"N\")))","v":""},{"$f":"IF($B881=\"N\",\"\",IF($S881=\"-\",\"-\",IF(AND($S881=\"Y\",'Enrollment Form'!$CV888=\"No\"),\"-\",IF(AND($S881=\"Y\",'Enrollment Form'!$CV888=\"Yes\",'Enrollment Form'!$CW888<>\"\"),\"Y\",\"N\"))))","v":""},{"$f":"IF(OR('Enrollment Form'!$AY888=\"Yes\",'Enrollment Form'!$AY888=\"\"),\"-\",IF(OR(AND('Enrollment Form'!$AY888=\"No\",ISERROR(FIND(\"HMO\",VLOOKUP('Enrollment Form'!G888,'Enrollment Form'!H$11:J$1000,3,FALSE),1))=FALSE,COUNTA('Enrollment Form'!$AZ888:$BC888)=4),AND('Enrollment Form'!$AY888=\"No\",ISERROR(FIND(\"HMO\",VLOOKUP('Enrollment Form'!G888,'Enrollment Form'!H$11:J$1000,3,FALSE),1))=FALSE,COUNTA('Enrollment Form'!$BT888:$BW888)=4)),\"Y\",\"N\"))","v":"-"},{"$f":"IF($B881=\"N\",\"\",IF('Enrollment Form'!$B888=\"Subscriber\",\"-\",IF(COUNTA('Enrollment Form'!$BL888,'Enrollment Form'!$BN888)=2,\"Y\",\"N\")))","v":""},{"$f":"IF($B881=\"N\",\"\",IF(OR('Enrollment Form'!$AX888=\"\",'Enrollment Form'!$AX888=\"No\"),\"-\",IF(AND('Enrollment Form'!$AX888=\"Yes\",COUNTA('Enrollment Form'!$CR888)=1),\"Y\",\"N\")))","v":""},{"$f":"IF(OR('Enrollment Form'!$CR888=\"\",'Enrollment Form'!$CR888=\"No\"),\"-\",IF(COUNTA('Enrollment Form'!$CT888:$CU888)=2,\"Y\",\"N\"))","v":"-"},{"$f":"IF($B881=\"N\",\"\",IF(COUNTIF('Enrollment Form'!$DG888:$DP888,\"Other\")=COUNTA('Enrollment Form'!$DK888,'Enrollment Form'!$DH888,'Enrollment Form'!$DN888,'Enrollment Form'!$DQ888),\"Y\",\"N\"))","v":""},{"$f":"IF($B881=\"N\",\"\",IF(OR('Enrollment Form'!B888<>\"Subscriber\",'Enrollment Form'!C888=\"ROC\",COUNTIF('Enrollment Form'!AV888:AW888,\"Yes\")>=1),\"-\",IF(AND('Enrollment Form'!C888=\"Enroll\",COUNTIF('Enrollment Form'!AV888:AW888,\"No\")=2,'Enrollment Form'!AX888=\"\"),\"N\",\"Y\")))","v":""},{"$f":"IF(OR(B881=\"N\",'Enrollment Form'!B888<>\"Subscriber\",'Enrollment Form'!C888=\"ROC\",'Enrollment Form'!O888<>\"Multiple of Salary\"),\"-\",IF(COUNTA('Enrollment Form'!T888:U888)<2,\"N\",\"Y\"))","v":"-"},{"$f":"IF(B881=\"N\",\"\",IF(OR('Enrollment Form'!C888=\"ROC\",'Enrollment Form'!B888<>\"Subscriber\",'Enrollment Form'!O888=\"Waive\",'Enrollment Form'!O888=\"\"),\"-\",IF('Enrollment Form'!P888=\"\",\"N\",\"Y\")))","v":""},{"$f":"IF($B881=\"N\",\"\",IF(AND('Enrollment Form'!$C888=\"ROC\",'Enrollment Form'!$DR888<>\"\"),\"Y\",IF(AND('Enrollment Form'!$C888=\"ROC\",'Enrollment Form'!$DR888=\"\"),\"N\",IF(AND('Enrollment Form'!$C888=\"Enroll\",'Enrollment Form'!$B888=\"Subscriber\",'Enrollment Form'!$CX888=\"No\",'Enrollment Form'!$DR888=\"\"),\"N\",IF(AND('Enrollment Form'!$C888=\"Enroll\",'Enrollment Form'!$B888=\"Subscriber\",'Enrollment Form'!$CX888=\"Yes\"),\"-\",\"Y\")))))","v":""},{"$f":"IF($B881=\"N\",\"\",IF(AND('Enrollment Form'!$C888=\"ROC\",'Enrollment Form'!$DS888<>\"\"),\"Y\",IF(AND('Enrollment Form'!$C888=\"ROC\",'Enrollment Form'!$DS888=\"\"),\"N\",IF(AND('Enrollment Form'!$C888=\"Enroll\",'Enrollment Form'!$B888=\"Subscriber\",'Enrollment Form'!$CX888=\"No\",'Enrollment Form'!$DS888=\"\"),\"N\",IF(AND('Enrollment Form'!$C888=\"Enroll\",'Enrollment Form'!$B888=\"Subscriber\",'Enrollment Form'!$CX888=\"Yes\"),\"-\",\"Y\")))))","v":""},{"$f":"IF('Enrollment Form'!AH888=\"\",\"\",IF(ISERROR(SEARCH(\".\",'Enrollment Form'!AH888,SEARCH(\"@\",'Enrollment Form'!AH888))),\"N\",\"Y\"))","v":""},{"$f":"IF(OR($B881=\"N\",'Enrollment Form'!$G888=\"\"),\"\",IF('Enrollment Form'!$B888<>\"Subscriber\",\"-\",IF(COUNTIF('Enrollment Form'!$AV888:$AW888,\"Yes\")=2,\"N\",\"Y\")))","v":""},{"$f":"IF(OR('Enrollment Form'!$CJ888=\"\",'Enrollment Form'!$CJ888=\"No\"),\"-\",IF(AND('Enrollment Form'!$CJ888=\"Yes\",'Enrollment Form'!$CK888=\"\"),\"N\",\"Y\"))","v":"-"},{"$f":"IF(OR('Enrollment Form'!$CL888=\"\",'Enrollment Form'!$CL888=\"No\"),\"-\",IF(AND('Enrollment Form'!$CL888=\"Yes\",'Enrollment Form'!$CM888=\"\"),\"N\",\"Y\"))","v":"-"},{"$f":"IF(OR('Enrollment Form'!$CN888=\"\",'Enrollment Form'!$CN888=\"No\"),\"-\",IF(AND('Enrollment Form'!$CN888=\"Yes\",'Enrollment Form'!$CO888=\"\"),\"N\",\"Y\"))","v":"-"},{"$f":"IF(OR('Enrollment Form'!$CN888=\"\",'Enrollment Form'!$CN888=\"No\"),\"-\",IF(AND('Enrollment Form'!$CN888=\"Yes\",'Enrollment Form'!$CP888=\"\"),\"N\",\"Y\"))","v":"-"},{"$f":"IF('Enrollment Form'!B888<>\"Subscriber\",\"-\",IF(AND('Enrollment Form'!B888=\"Subscriber\",'Enrollment Form'!C888=\"Enroll\",'Enrollment Form'!AA888=\"\"),\"N\",\"Y\"))","v":"-"},{"$f":"IF(OR('Enrollment Form'!B888=\"Subscriber\",'Enrollment Form'!B888=\"\"),\"-\",IF('Enrollment Form'!BP888=\"\",\"N\",\"Y\"))","v":"-"},{"$f":"IF('Enrollment Form'!B888<>\"Subscriber\",\"-\",IF(AND('Enrollment Form'!B888=\"Subscriber\",'Enrollment Form'!G888=\"\"),\"N\",\"Y\"))","v":"-"},{"$f":"IF('Enrollment Form'!A888=\"\",\"\",IF('Enrollment Form'!B888=\"Subscriber\",\"-\",IF(AND('Enrollment Form'!B888<>\"Subscriber\",'Enrollment Form'!G888='Enrollment Form'!H888),\"N\",\"Y\")))","v":""},0]
[889,{"$f":"IF('Enrollment Form'!$A889<>\"\",\"Y\",\"N\")","v":"N"},{"$f":"IF(AND('Enrollment Form'!$B889=\"\",'Enrollment Form'!$C889<>\"\"),\"N\",IF($B882=\"N\",\"\",\"Y\"))","v":""},{"$f":"IF(OR($B882=\"N\",'Enrollment Form'!G889=\"\"),\"\",IF('Enrollment Form'!$B889<>\"Subscriber\",\"\",IF('Enrollment Form'!$G889='Enrollment Form'!$H889,\"Y\",\"N\")))","v":""},{"$f":"IF($B882=\"N\",\"\",IF(AND(COUNTIFS('Enrollment Form'!$H$11:$H$1000,'Enrollment Form'!$H889,'Enrollment Form'!$B$11:$B$1000,'Enrollment Form'!$B889)>1,'Enrollment Form'!$H889<>\"\"),\"N\",\"Y\"))","v":""},{"$f":"IF($B882=\"N\",\"\",IF(LEN('Enrollment Form'!$Y889)=0,\"\",IF(LEN('Enrollment Form'!$Y889)<>5,\"N\",\"Y\")))","v":""},{"$f":"IF($B882=\"N\",\"\",IF(LEN('Enrollment Form'!$AD889=0),\"\",IF(LEN('Enrollment Form'!$AD889)<>5,\"N\",\"Y\")))","v":""},{"$f":"IF($B882=\"N\",\"\",IF(LEN('Enrollment Form'!$BS889=0),\"\",IF(LEN('Enrollment Form'!$BS889)<>5,\"N\",\"Y\")))","v":""},{"$f":"IF($B882=\"N\",\"\",IF(LEN('Enrollment Form'!$AE889)=0,\"\",IF(LEN('Enrollment Form'!$AE889)<>10,\"N\",\"Y\")))","v":""},{"$f":"IF($B882=\"N\",\"\",IF(LEN('Enrollment Form'!$AF889)=0,\"\",IF(LEN('Enrollment Form'!$AF889)<>10,\"N\",\"Y\")))","v":""},{"$f":"IF('Enrollment Form'!$O889<>\"Graded\",\"-\",IF(AND('Enrollment Form'!$O889=\"Graded\",'Enrollment Form'!$AR889<>\"\"),\"Y\",\"N\"))","v":"-"},{"$f":"IF($B882=\"N\",\"\",IF(OR('Enrollment Form'!$B889<>\"Subscriber\",'Enrollment Form'!$C889=\"ROC\"),\"-\",IF(AND('Enrollment Form'!$B889=\"Subscriber\",'Enrollment Form'!$C889=\"Enroll\",'Enrollment Form'!$AJ889<>\"\"),\"Y\",\"N\")))","v":""},{"$f":"IF($B882=\"N\",\"\",IF(OR('Enrollment Form'!$B889<>\"Subscriber\",'Enrollment Form'!$C889=\"ROC\"),\"-\",IF(AND('Enrollment Form'!$B889=\"Subscriber\",'Enrollment Form'!$C889=\"Enroll\",'Enrollment Form'!$AK889<>\"\"),\"Y\",\"N\")))","v":""},{"$f":"IF($B882=\"N\",\"\",IF(OR('Enrollment Form'!$B889<>\"Subscriber\",'Enrollment Form'!$C889=\"ROC\"),\"-\",IF(AND('Enrollment Form'!$B889=\"Subscriber\",'Enrollment Form'!$C889=\"Enroll\",'Enrollment Form'!$AL889<>\"\"),\"Y\",\"N\")))","v":""},{"$f":"IF($B882=\"N\",\"\",IF(OR('Enrollment Form'!$B889<>\"Subscriber\",'Enrollment Form'!$C889=\"ROC\"),\"-\",IF(AND('Enrollment Form'!$B889=\"Subscriber\",'Enrollment Form'!$C889=\"Enroll\",'Enrollment Form'!$AP889<>\"\"),\"Y\",\"N\")))","v":""},{"$f":"IF($B882=\"N\",\"\",IF(OR('Enrollment Form'!$B889<>\"Subscriber\",'Enrollment Form'!$C889=\"ROC\"),\"-\",IF(AND('Enrollment Form'!$B889=\"Subscriber\",'Enrollment Form'!$C889=\"Enroll\",'Enrollment Form'!$AQ889<>\"\"),\"Y\",\"N\")))","v":""},{"$f":"IF($B882=\"N\",\"\",IF(OR('Enrollment Form'!$B889<>\"Subscriber\",'Enrollment Form'!$C889=\"ROC\"),\"-\",IF(AND('Enrollment Form'!$B889=\"Subscriber\",'Enrollment Form'!$C889=\"Enroll\",'Enrollment Form'!$AS889<>\"\"),\"Y\",\"N\")))","v":""},{"$f":"IF($B882=\"N\",\"\",IF($Q882=\"-\",\"-\",IF(AND($Q882=\"Y\",'Enrollment Form'!$AS889=\"No\"),\"-\",IF(AND($Q882=\"Y\",'Enrollment Form'!$AS889=\"Yes\",'Enrollment Form'!$AT889<>\"\"),\"Y\",\"N\"))))","v":""},{"$f":"IF($B882=\"N\",\"\",IF(OR('Enrollment Form'!$B889<>\"Subscriber\",'Enrollment Form'!$C889=\"ROC\"),\"-\",IF(AND('Enrollment Form'!$B889=\"Subscriber\",'Enrollment Form'!$C889=\"Enroll\",'Enrollment Form'!$CV889<>\"\"),\"Y\",\"N\")))","v":""},{"$f":"IF($B882=\"N\",\"\",IF($S882=\"-\",\"-\",IF(AND($S882=\"Y\",'Enrollment Form'!$CV889=\"No\"),\"-\",IF(AND($S882=\"Y\",'Enrollment Form'!$CV889=\"Yes\",'Enrollment Form'!$CW889<>\"\"),\"Y\",\"N\"))))","v":""},{"$f":"IF(OR('Enrollment Form'!$AY889=\"Yes\",'Enrollment Form'!$AY889=\"\"),\"-\",IF(OR(AND('Enrollment Form'!$AY889=\"No\",ISERROR(FIND(\"HMO\",VLOOKUP('Enrollment Form'!G889,'Enrollment Form'!H$11:J$1000,3,FALSE),1))=FALSE,COUNTA('Enrollment Form'!$AZ889:$BC889)=4),AND('Enrollment Form'!$AY889=\"No\",ISERROR(FIND(\"HMO\",VLOOKUP('Enrollment Form'!G889,'Enrollment Form'!H$11:J$1000,3,FALSE),1))=FALSE,COUNTA('Enrollment Form'!$BT889:$BW889)=4)),\"Y\",\"N\"))","v":"-"},{"$f":"IF($B882=\"N\",\"\",IF('Enrollment Form'!$B889=\"Subscriber\",\"-\",IF(COUNTA('Enrollment Form'!$BL889,'Enrollment Form'!$BN889)=2,\"Y\",\"N\")))","v":""},{"$f":"IF($B882=\"N\",\"\",IF(OR('Enrollment Form'!$AX889=\"\",'Enrollment Form'!$AX889=\"No\"),\"-\",IF(AND('Enrollment Form'!$AX889=\"Yes\",COUNTA('Enrollment Form'!$CR889)=1),\"Y\",\"N\")))","v":""},{"$f":"IF(OR('Enrollment Form'!$CR889=\"\",'Enrollment Form'!$CR889=\"No\"),\"-\",IF(COUNTA('Enrollment Form'!$CT889:$CU889)=2,\"Y\",\"N\"))","v":"-"},{"$f":"IF($B882=\"N\",\"\",IF(COUNTIF('Enrollment Form'!$DG889:$DP889,\"Other\")=COUNTA('Enrollment Form'!$DK889,'Enrollment Form'!$DH889,'Enrollment Form'!$DN889,'Enrollment Form'!$DQ889),\"Y\",\"N\"))","v":""},{"$f":"IF($B882=\"N\",\"\",IF(OR('Enrollment Form'!B889<>\"Subscriber\",'Enrollment Form'!C889=\"ROC\",COUNTIF('Enrollment Form'!AV889:AW889,\"Yes\")>=1),\"-\",IF(AND('Enrollment Form'!C889=\"Enroll\",COUNTIF('Enrollment Form'!AV889:AW889,\"No\")=2,'Enrollment Form'!AX889=\"\"),\"N\",\"Y\")))","v":""},{"$f":"IF(OR(B882=\"N\",'Enrollment Form'!B889<>\"Subscriber\",'Enrollment Form'!C889=\"ROC\",'Enrollment Form'!O889<>\"Multiple of Salary\"),\"-\",IF(COUNTA('Enrollment Form'!T889:U889)<2,\"N\",\"Y\"))","v":"-"},{"$f":"IF(B882=\"N\",\"\",IF(OR('Enrollment Form'!C889=\"ROC\",'Enrollment Form'!B889<>\"Subscriber\",'Enrollment Form'!O889=\"Waive\",'Enrollment Form'!O889=\"\"),\"-\",IF('Enrollment Form'!P889=\"\",\"N\",\"Y\")))","v":""},{"$f":"IF($B882=\"N\",\"\",IF(AND('Enrollment Form'!$C889=\"ROC\",'Enrollment Form'!$DR889<>\"\"),\"Y\",IF(AND('Enrollment Form'!$C889=\"ROC\",'Enrollment Form'!$DR889=\"\"),\"N\",IF(AND('Enrollment Form'!$C889=\"Enroll\",'Enrollment Form'!$B889=\"Subscriber\",'Enrollment Form'!$CX889=\"No\",'Enrollment Form'!$DR889=\"\"),\"N\",IF(AND('Enrollment Form'!$C889=\"Enroll\",'Enrollment Form'!$B889=\"Subscriber\",'Enrollment Form'!$CX889=\"Yes\"),\"-\",\"Y\")))))","v":""},{"$f":"IF($B882=\"N\",\"\",IF(AND('Enrollment Form'!$C889=\"ROC\",'Enrollment Form'!$DS889<>\"\"),\"Y\",IF(AND('Enrollment Form'!$C889=\"ROC\",'Enrollment Form'!$DS889=\"\"),\"N\",IF(AND('Enrollment Form'!$C889=\"Enroll\",'Enrollment Form'!$B889=\"Subscriber\",'Enrollment Form'!$CX889=\"No\",'Enrollment Form'!$DS889=\"\"),\"N\",IF(AND('Enrollment Form'!$C889=\"Enroll\",'Enrollment Form'!$B889=\"Subscriber\",'Enrollment Form'!$CX889=\"Yes\"),\"-\",\"Y\")))))","v":""},{"$f":"IF('Enrollment Form'!AH889=\"\",\"\",IF(ISERROR(SEARCH(\".\",'Enrollment Form'!AH889,SEARCH(\"@\",'Enrollment Form'!AH889))),\"N\",\"Y\"))","v":""},{"$f":"IF(OR($B882=\"N\",'Enrollment Form'!$G889=\"\"),\"\",IF('Enrollment Form'!$B889<>\"Subscriber\",\"-\",IF(COUNTIF('Enrollment Form'!$AV889:$AW889,\"Yes\")=2,\"N\",\"Y\")))","v":""},{"$f":"IF(OR('Enrollment Form'!$CJ889=\"\",'Enrollment Form'!$CJ889=\"No\"),\"-\",IF(AND('Enrollment Form'!$CJ889=\"Yes\",'Enrollment Form'!$CK889=\"\"),\"N\",\"Y\"))","v":"-"},{"$f":"IF(OR('Enrollment Form'!$CL889=\"\",'Enrollment Form'!$CL889=\"No\"),\"-\",IF(AND('Enrollment Form'!$CL889=\"Yes\",'Enrollment Form'!$CM889=\"\"),\"N\",\"Y\"))","v":"-"},{"$f":"IF(OR('Enrollment Form'!$CN889=\"\",'Enrollment Form'!$CN889=\"No\"),\"-\",IF(AND('Enrollment Form'!$CN889=\"Yes\",'Enrollment Form'!$CO889=\"\"),\"N\",\"Y\"))","v":"-"},{"$f":"IF(OR('Enrollment Form'!$CN889=\"\",'Enrollment Form'!$CN889=\"No\"),\"-\",IF(AND('Enrollment Form'!$CN889=\"Yes\",'Enrollment Form'!$CP889=\"\"),\"N\",\"Y\"))","v":"-"},{"$f":"IF('Enrollment Form'!B889<>\"Subscriber\",\"-\",IF(AND('Enrollment Form'!B889=\"Subscriber\",'Enrollment Form'!C889=\"Enroll\",'Enrollment Form'!AA889=\"\"),\"N\",\"Y\"))","v":"-"},{"$f":"IF(OR('Enrollment Form'!B889=\"Subscriber\",'Enrollment Form'!B889=\"\"),\"-\",IF('Enrollment Form'!BP889=\"\",\"N\",\"Y\"))","v":"-"},{"$f":"IF('Enrollment Form'!B889<>\"Subscriber\",\"-\",IF(AND('Enrollment Form'!B889=\"Subscriber\",'Enrollment Form'!G889=\"\"),\"N\",\"Y\"))","v":"-"},{"$f":"IF('Enrollment Form'!A889=\"\",\"\",IF('Enrollment Form'!B889=\"Subscriber\",\"-\",IF(AND('Enrollment Form'!B889<>\"Subscriber\",'Enrollment Form'!G889='Enrollment Form'!H889),\"N\",\"Y\")))","v":""},0]
[890,{"$f":"IF('Enrollment Form'!$A890<>\"\",\"Y\",\"N\")","v":"N"},{"$f":"IF(AND('Enrollment Form'!$B890=\"\",'Enrollment Form'!$C890<>\"\"),\"N\",IF($B883=\"N\",\"\",\"Y\"))","v":""},{"$f":"IF(OR($B883=\"N\",'Enrollment Form'!G890=\"\"),\"\",IF('Enrollment Form'!$B890<>\"Subscriber\",\"\",IF('Enrollment Form'!$G890='Enrollment Form'!$H890,\"Y\",\"N\")))","v":""},{"$f":"IF($B883=\"N\",\"\",IF(AND(COUNTIFS('Enrollment Form'!$H$11:$H$1000,'Enrollment Form'!$H890,'Enrollment Form'!$B$11:$B$1000,'Enrollment Form'!$B890)>1,'Enrollment Form'!$H890<>\"\"),\"N\",\"Y\"))","v":""},{"$f":"IF($B883=\"N\",\"\",IF(LEN('Enrollment Form'!$Y890)=0,\"\",IF(LEN('Enrollment Form'!$Y890)<>5,\"N\",\"Y\")))","v":""},{"$f":"IF($B883=\"N\",\"\",IF(LEN('Enrollment Form'!$AD890=0),\"\",IF(LEN('Enrollment Form'!$AD890)<>5,\"N\",\"Y\")))","v":""},{"$f":"IF($B883=\"N\",\"\",IF(LEN('Enrollment Form'!$BS890=0),\"\",IF(LEN('Enrollment Form'!$BS890)<>5,\"N\",\"Y\")))","v":""},{"$f":"IF($B883=\"N\",\"\",IF(LEN('Enrollment Form'!$AE890)=0,\"\",IF(LEN('Enrollment Form'!$AE890)<>10,\"N\",\"Y\")))","v":""},{"$f":"IF($B883=\"N\",\"\",IF(LEN('Enrollment Form'!$AF890)=0,\"\",IF(LEN('Enrollment Form'!$AF890)<>10,\"N\",\"Y\")))","v":""},{"$f":"IF('Enrollment Form'!$O890<>\"Graded\",\"-\",IF(AND('Enrollment Form'!$O890=\"Graded\",'Enrollment Form'!$AR890<>\"\"),\"Y\",\"N\"))","v":"-"},{"$f":"IF($B883=\"N\",\"\",IF(OR('Enrollment Form'!$B890<>\"Subscriber\",'Enrollment Form'!$C890=\"ROC\"),\"-\",IF(AND('Enrollment Form'!$B890=\"Subscriber\",'Enrollment Form'!$C890=\"Enroll\",'Enrollment Form'!$AJ890<>\"\"),\"Y\",\"N\")))","v":""},{"$f":"IF($B883=\"N\",\"\",IF(OR('Enrollment Form'!$B890<>\"Subscriber\",'Enrollment Form'!$C890=\"ROC\"),\"-\",IF(AND('Enrollment Form'!$B890=\"Subscriber\",'Enrollment Form'!$C890=\"Enroll\",'Enrollment Form'!$AK890<>\"\"),\"Y\",\"N\")))","v":""},{"$f":"IF($B883=\"N\",\"\",IF(OR('Enrollment Form'!$B890<>\"Subscriber\",'Enrollment Form'!$C890=\"ROC\"),\"-\",IF(AND('Enrollment Form'!$B890=\"Subscriber\",'Enrollment Form'!$C890=\"Enroll\",'Enrollment Form'!$AL890<>\"\"),\"Y\",\"N\")))","v":""},{"$f":"IF($B883=\"N\",\"\",IF(OR('Enrollment Form'!$B890<>\"Subscriber\",'Enrollment Form'!$C890=\"ROC\"),\"-\",IF(AND('Enrollment Form'!$B890=\"Subscriber\",'Enrollment Form'!$C890=\"Enroll\",'Enrollment Form'!$AP890<>\"\"),\"Y\",\"N\")))","v":""},{"$f":"IF($B883=\"N\",\"\",IF(OR('Enrollment Form'!$B890<>\"Subscriber\",'Enrollment Form'!$C890=\"ROC\"),\"-\",IF(AND('Enrollment Form'!$B890=\"Subscriber\",'Enrollment Form'!$C890=\"Enroll\",'Enrollment Form'!$AQ890<>\"\"),\"Y\",\"N\")))","v":""},{"$f":"IF($B883=\"N\",\"\",IF(OR('Enrollment Form'!$B890<>\"Subscriber\",'Enrollment Form'!$C890=\"ROC\"),\"-\",IF(AND('Enrollment Form'!$B890=\"Subscriber\",'Enrollment Form'!$C890=\"Enroll\",'Enrollment Form'!$AS890<>\"\"),\"Y\",\"N\")))","v":""},{"$f":"IF($B883=\"N\",\"\",IF($Q883=\"-\",\"-\",IF(AND($Q883=\"Y\",'Enrollment Form'!$AS890=\"No\"),\"-\",IF(AND($Q883=\"Y\",'Enrollment Form'!$AS890=\"Yes\",'Enrollment Form'!$AT890<>\"\"),\"Y\",\"N\"))))","v":""},{"$f":"IF($B883=\"N\",\"\",IF(OR('Enrollment Form'!$B890<>\"Subscriber\",'Enrollment Form'!$C890=\"ROC\"),\"-\",IF(AND('Enrollment Form'!$B890=\"Subscriber\",'Enrollment Form'!$C890=\"Enroll\",'Enrollment Form'!$CV890<>\"\"),\"Y\",\"N\")))","v":""},{"$f":"IF($B883=\"N\",\"\",IF($S883=\"-\",\"-\",IF(AND($S883=\"Y\",'Enrollment Form'!$CV890=\"No\"),\"-\",IF(AND($S883=\"Y\",'Enrollment Form'!$CV890=\"Yes\",'Enrollment Form'!$CW890<>\"\"),\"Y\",\"N\"))))","v":""},{"$f":"IF(OR('Enrollment Form'!$AY890=\"Yes\",'Enrollment Form'!$AY890=\"\"),\"-\",IF(OR(AND('Enrollment Form'!$AY890=\"No\",ISERROR(FIND(\"HMO\",VLOOKUP('Enrollment Form'!G890,'Enrollment Form'!H$11:J$1000,3,FALSE),1))=FALSE,COUNTA('Enrollment Form'!$AZ890:$BC890)=4),AND('Enrollment Form'!$AY890=\"No\",ISERROR(FIND(\"HMO\",VLOOKUP('Enrollment Form'!G890,'Enrollment Form'!H$11:J$1000,3,FALSE),1))=FALSE,COUNTA('Enrollment Form'!$BT890:$BW890)=4)),\"Y\",\"N\"))","v":"-"},{"$f":"IF($B883=\"N\",\"\",IF('Enrollment Form'!$B890=\"Subscriber\",\"-\",IF(COUNTA('Enrollment Form'!$BL890,'Enrollment Form'!$BN890)=2,\"Y\",\"N\")))","v":""},{"$f":"IF($B883=\"N\",\"\",IF(OR('Enrollment Form'!$AX890=\"\",'Enrollment Form'!$AX890=\"No\"),\"-\",IF(AND('Enrollment Form'!$AX890=\"Yes\",COUNTA('Enrollment Form'!$CR890)=1),\"Y\",\"N\")))","v":""},{"$f":"IF(OR('Enrollment Form'!$CR890=\"\",'Enrollment Form'!$CR890=\"No\"),\"-\",IF(COUNTA('Enrollment Form'!$CT890:$CU890)=2,\"Y\",\"N\"))","v":"-"},{"$f":"IF($B883=\"N\",\"\",IF(COUNTIF('Enrollment Form'!$DG890:$DP890,\"Other\")=COUNTA('Enrollment Form'!$DK890,'Enrollment Form'!$DH890,'Enrollment Form'!$DN890,'Enrollment Form'!$DQ890),\"Y\",\"N\"))","v":""},{"$f":"IF($B883=\"N\",\"\",IF(OR('Enrollment Form'!B890<>\"Subscriber\",'Enrollment Form'!C890=\"ROC\",COUNTIF('Enrollment Form'!AV890:AW890,\"Yes\")>=1),\"-\",IF(AND('Enrollment Form'!C890=\"Enroll\",COUNTIF('Enrollment Form'!AV890:AW890,\"No\")=2,'Enrollment Form'!AX890=\"\"),\"N\",\"Y\")))","v":""},{"$f":"IF(OR(B883=\"N\",'Enrollment Form'!B890<>\"Subscriber\",'Enrollment Form'!C890=\"ROC\",'Enrollment Form'!O890<>\"Multiple of Salary\"),\"-\",IF(COUNTA('Enrollment Form'!T890:U890)<2,\"N\",\"Y\"))","v":"-"},{"$f":"IF(B883=\"N\",\"\",IF(OR('Enrollment Form'!C890=\"ROC\",'Enrollment Form'!B890<>\"Subscriber\",'Enrollment Form'!O890=\"Waive\",'Enrollment Form'!O890=\"\"),\"-\",IF('Enrollment Form'!P890=\"\",\"N\",\"Y\")))","v":""},{"$f":"IF($B883=\"N\",\"\",IF(AND('Enrollment Form'!$C890=\"ROC\",'Enrollment Form'!$DR890<>\"\"),\"Y\",IF(AND('Enrollment Form'!$C890=\"ROC\",'Enrollment Form'!$DR890=\"\"),\"N\",IF(AND('Enrollment Form'!$C890=\"Enroll\",'Enrollment Form'!$B890=\"Subscriber\",'Enrollment Form'!$CX890=\"No\",'Enrollment Form'!$DR890=\"\"),\"N\",IF(AND('Enrollment Form'!$C890=\"Enroll\",'Enrollment Form'!$B890=\"Subscriber\",'Enrollment Form'!$CX890=\"Yes\"),\"-\",\"Y\")))))","v":""},{"$f":"IF($B883=\"N\",\"\",IF(AND('Enrollment Form'!$C890=\"ROC\",'Enrollment Form'!$DS890<>\"\"),\"Y\",IF(AND('Enrollment Form'!$C890=\"ROC\",'Enrollment Form'!$DS890=\"\"),\"N\",IF(AND('Enrollment Form'!$C890=\"Enroll\",'Enrollment Form'!$B890=\"Subscriber\",'Enrollment Form'!$CX890=\"No\",'Enrollment Form'!$DS890=\"\"),\"N\",IF(AND('Enrollment Form'!$C890=\"Enroll\",'Enrollment Form'!$B890=\"Subscriber\",'Enrollment Form'!$CX890=\"Yes\"),\"-\",\"Y\")))))","v":""},{"$f":"IF('Enrollment Form'!AH890=\"\",\"\",IF(ISERROR(SEARCH(\".\",'Enrollment Form'!AH890,SEARCH(\"@\",'Enrollment Form'!AH890))),\"N\",\"Y\"))","v":""},{"$f":"IF(OR($B883=\"N\",'Enrollment Form'!$G890=\"\"),\"\",IF('Enrollment Form'!$B890<>\"Subscriber\",\"-\",IF(COUNTIF('Enrollment Form'!$AV890:$AW890,\"Yes\")=2,\"N\",\"Y\")))","v":""},{"$f":"IF(OR('Enrollment Form'!$CJ890=\"\",'Enrollment Form'!$CJ890=\"No\"),\"-\",IF(AND('Enrollment Form'!$CJ890=\"Yes\",'Enrollment Form'!$CK890=\"\"),\"N\",\"Y\"))","v":"-"},{"$f":"IF(OR('Enrollment Form'!$CL890=\"\",'Enrollment Form'!$CL890=\"No\"),\"-\",IF(AND('Enrollment Form'!$CL890=\"Yes\",'Enrollment Form'!$CM890=\"\"),\"N\",\"Y\"))","v":"-"},{"$f":"IF(OR('Enrollment Form'!$CN890=\"\",'Enrollment Form'!$CN890=\"No\"),\"-\",IF(AND('Enrollment Form'!$CN890=\"Yes\",'Enrollment Form'!$CO890=\"\"),\"N\",\"Y\"))","v":"-"},{"$f":"IF(OR('Enrollment Form'!$CN890=\"\",'Enrollment Form'!$CN890=\"No\"),\"-\",IF(AND('Enrollment Form'!$CN890=\"Yes\",'Enrollment Form'!$CP890=\"\"),\"N\",\"Y\"))","v":"-"},{"$f":"IF('Enrollment Form'!B890<>\"Subscriber\",\"-\",IF(AND('Enrollment Form'!B890=\"Subscriber\",'Enrollment Form'!C890=\"Enroll\",'Enrollment Form'!AA890=\"\"),\"N\",\"Y\"))","v":"-"},{"$f":"IF(OR('Enrollment Form'!B890=\"Subscriber\",'Enrollment Form'!B890=\"\"),\"-\",IF('Enrollment Form'!BP890=\"\",\"N\",\"Y\"))","v":"-"},{"$f":"IF('Enrollment Form'!B890<>\"Subscriber\",\"-\",IF(AND('Enrollment Form'!B890=\"Subscriber\",'Enrollment Form'!G890=\"\"),\"N\",\"Y\"))","v":"-"},{"$f":"IF('Enrollment Form'!A890=\"\",\"\",IF('Enrollment Form'!B890=\"Subscriber\",\"-\",IF(AND('Enrollment Form'!B890<>\"Subscriber\",'Enrollment Form'!G890='Enrollment Form'!H890),\"N\",\"Y\")))","v":""},0]
[891,{"$f":"IF('Enrollment Form'!$A891<>\"\",\"Y\",\"N\")","v":"N"},{"$f":"IF(AND('Enrollment Form'!$B891=\"\",'Enrollment Form'!$C891<>\"\"),\"N\",IF($B884=\"N\",\"\",\"Y\"))","v":""},{"$f":"IF(OR($B884=\"N\",'Enrollment Form'!G891=\"\"),\"\",IF('Enrollment Form'!$B891<>\"Subscriber\",\"\",IF('Enrollment Form'!$G891='Enrollment Form'!$H891,\"Y\",\"N\")))","v":""},{"$f":"IF($B884=\"N\",\"\",IF(AND(COUNTIFS('Enrollment Form'!$H$11:$H$1000,'Enrollment Form'!$H891,'Enrollment Form'!$B$11:$B$1000,'Enrollment Form'!$B891)>1,'Enrollment Form'!$H891<>\"\"),\"N\",\"Y\"))","v":""},{"$f":"IF($B884=\"N\",\"\",IF(LEN('Enrollment Form'!$Y891)=0,\"\",IF(LEN('Enrollment Form'!$Y891)<>5,\"N\",\"Y\")))","v":""},{"$f":"IF($B884=\"N\",\"\",IF(LEN('Enrollment Form'!$AD891=0),\"\",IF(LEN('Enrollment Form'!$AD891)<>5,\"N\",\"Y\")))","v":""},{"$f":"IF($B884=\"N\",\"\",IF(LEN('Enrollment Form'!$BS891=0),\"\",IF(LEN('Enrollment Form'!$BS891)<>5,\"N\",\"Y\")))","v":""},{"$f":"IF($B884=\"N\",\"\",IF(LEN('Enrollment Form'!$AE891)=0,\"\",IF(LEN('Enrollment Form'!$AE891)<>10,\"N\",\"Y\")))","v":""},{"$f":"IF($B884=\"N\",\"\",IF(LEN('Enrollment Form'!$AF891)=0,\"\",IF(LEN('Enrollment Form'!$AF891)<>10,\"N\",\"Y\")))","v":""},{"$f":"IF('Enrollment Form'!$O891<>\"Graded\",\"-\",IF(AND('Enrollment Form'!$O891=\"Graded\",'Enrollment Form'!$AR891<>\"\"),\"Y\",\"N\"))","v":"-"},{"$f":"IF($B884=\"N\",\"\",IF(OR('Enrollment Form'!$B891<>\"Subscriber\",'Enrollment Form'!$C891=\"ROC\"),\"-\",IF(AND('Enrollment Form'!$B891=\"Subscriber\",'Enrollment Form'!$C891=\"Enroll\",'Enrollment Form'!$AJ891<>\"\"),\"Y\",\"N\")))","v":""},{"$f":"IF($B884=\"N\",\"\",IF(OR('Enrollment Form'!$B891<>\"Subscriber\",'Enrollment Form'!$C891=\"ROC\"),\"-\",IF(AND('Enrollment Form'!$B891=\"Subscriber\",'Enrollment Form'!$C891=\"Enroll\",'Enrollment Form'!$AK891<>\"\"),\"Y\",\"N\")))","v":""},{"$f":"IF($B884=\"N\",\"\",IF(OR('Enrollment Form'!$B891<>\"Subscriber\",'Enrollment Form'!$C891=\"ROC\"),\"-\",IF(AND('Enrollment Form'!$B891=\"Subscriber\",'Enrollment Form'!$C891=\"Enroll\",'Enrollment Form'!$AL891<>\"\"),\"Y\",\"N\")))","v":""},{"$f":"IF($B884=\"N\",\"\",IF(OR('Enrollment Form'!$B891<>\"Subscriber\",'Enrollment Form'!$C891=\"ROC\"),\"-\",IF(AND('Enrollment Form'!$B891=\"Subscriber\",'Enrollment Form'!$C891=\"Enroll\",'Enrollment Form'!$AP891<>\"\"),\"Y\",\"N\")))","v":""},{"$f":"IF($B884=\"N\",\"\",IF(OR('Enrollment Form'!$B891<>\"Subscriber\",'Enrollment Form'!$C891=\"ROC\"),\"-\",IF(AND('Enrollment Form'!$B891=\"Subscriber\",'Enrollment Form'!$C891=\"Enroll\",'Enrollment Form'!$AQ891<>\"\"),\"Y\",\"N\")))","v":""},{"$f":"IF($B884=\"N\",\"\",IF(OR('Enrollment Form'!$B891<>\"Subscriber\",'Enrollment Form'!$C891=\"ROC\"),\"-\",IF(AND('Enrollment Form'!$B891=\"Subscriber\",'Enrollment Form'!$C891=\"Enroll\",'Enrollment Form'!$AS891<>\"\"),\"Y\",\"N\")))","v":""},{"$f":"IF($B884=\"N\",\"\",IF($Q884=\"-\",\"-\",IF(AND($Q884=\"Y\",'Enrollment Form'!$AS891=\"No\"),\"-\",IF(AND($Q884=\"Y\",'Enrollment Form'!$AS891=\"Yes\",'Enrollment Form'!$AT891<>\"\"),\"Y\",\"N\"))))","v":""},{"$f":"IF($B884=\"N\",\"\",IF(OR('Enrollment Form'!$B891<>\"Subscriber\",'Enrollment Form'!$C891=\"ROC\"),\"-\",IF(AND('Enrollment Form'!$B891=\"Subscriber\",'Enrollment Form'!$C891=\"Enroll\",'Enrollment Form'!$CV891<>\"\"),\"Y\",\"N\")))","v":""},{"$f":"IF($B884=\"N\",\"\",IF($S884=\"-\",\"-\",IF(AND($S884=\"Y\",'Enrollment Form'!$CV891=\"No\"),\"-\",IF(AND($S884=\"Y\",'Enrollment Form'!$CV891=\"Yes\",'Enrollment Form'!$CW891<>\"\"),\"Y\",\"N\"))))","v":""},{"$f":"IF(OR('Enrollment Form'!$AY891=\"Yes\",'Enrollment Form'!$AY891=\"\"),\"-\",IF(OR(AND('Enrollment Form'!$AY891=\"No\",ISERROR(FIND(\"HMO\",VLOOKUP('Enrollment Form'!G891,'Enrollment Form'!H$11:J$1000,3,FALSE),1))=FALSE,COUNTA('Enrollment Form'!$AZ891:$BC891)=4),AND('Enrollment Form'!$AY891=\"No\",ISERROR(FIND(\"HMO\",VLOOKUP('Enrollment Form'!G891,'Enrollment Form'!H$11:J$1000,3,FALSE),1))=FALSE,COUNTA('Enrollment Form'!$BT891:$BW891)=4)),\"Y\",\"N\"))","v":"-"},{"$f":"IF($B884=\"N\",\"\",IF('Enrollment Form'!$B891=\"Subscriber\",\"-\",IF(COUNTA('Enrollment Form'!$BL891,'Enrollment Form'!$BN891)=2,\"Y\",\"N\")))","v":""},{"$f":"IF($B884=\"N\",\"\",IF(OR('Enrollment Form'!$AX891=\"\",'Enrollment Form'!$AX891=\"No\"),\"-\",IF(AND('Enrollment Form'!$AX891=\"Yes\",COUNTA('Enrollment Form'!$CR891)=1),\"Y\",\"N\")))","v":""},{"$f":"IF(OR('Enrollment Form'!$CR891=\"\",'Enrollment Form'!$CR891=\"No\"),\"-\",IF(COUNTA('Enrollment Form'!$CT891:$CU891)=2,\"Y\",\"N\"))","v":"-"},{"$f":"IF($B884=\"N\",\"\",IF(COUNTIF('Enrollment Form'!$DG891:$DP891,\"Other\")=COUNTA('Enrollment Form'!$DK891,'Enrollment Form'!$DH891,'Enrollment Form'!$DN891,'Enrollment Form'!$DQ891),\"Y\",\"N\"))","v":""},{"$f":"IF($B884=\"N\",\"\",IF(OR('Enrollment Form'!B891<>\"Subscriber\",'Enrollment Form'!C891=\"ROC\",COUNTIF('Enrollment Form'!AV891:AW891,\"Yes\")>=1),\"-\",IF(AND('Enrollment Form'!C891=\"Enroll\",COUNTIF('Enrollment Form'!AV891:AW891,\"No\")=2,'Enrollment Form'!AX891=\"\"),\"N\",\"Y\")))","v":""},{"$f":"IF(OR(B884=\"N\",'Enrollment Form'!B891<>\"Subscriber\",'Enrollment Form'!C891=\"ROC\",'Enrollment Form'!O891<>\"Multiple of Salary\"),\"-\",IF(COUNTA('Enrollment Form'!T891:U891)<2,\"N\",\"Y\"))","v":"-"},{"$f":"IF(B884=\"N\",\"\",IF(OR('Enrollment Form'!C891=\"ROC\",'Enrollment Form'!B891<>\"Subscriber\",'Enrollment Form'!O891=\"Waive\",'Enrollment Form'!O891=\"\"),\"-\",IF('Enrollment Form'!P891=\"\",\"N\",\"Y\")))","v":""},{"$f":"IF($B884=\"N\",\"\",IF(AND('Enrollment Form'!$C891=\"ROC\",'Enrollment Form'!$DR891<>\"\"),\"Y\",IF(AND('Enrollment Form'!$C891=\"ROC\",'Enrollment Form'!$DR891=\"\"),\"N\",IF(AND('Enrollment Form'!$C891=\"Enroll\",'Enrollment Form'!$B891=\"Subscriber\",'Enrollment Form'!$CX891=\"No\",'Enrollment Form'!$DR891=\"\"),\"N\",IF(AND('Enrollment Form'!$C891=\"Enroll\",'Enrollment Form'!$B891=\"Subscriber\",'Enrollment Form'!$CX891=\"Yes\"),\"-\",\"Y\")))))","v":""},{"$f":"IF($B884=\"N\",\"\",IF(AND('Enrollment Form'!$C891=\"ROC\",'Enrollment Form'!$DS891<>\"\"),\"Y\",IF(AND('Enrollment Form'!$C891=\"ROC\",'Enrollment Form'!$DS891=\"\"),\"N\",IF(AND('Enrollment Form'!$C891=\"Enroll\",'Enrollment Form'!$B891=\"Subscriber\",'Enrollment Form'!$CX891=\"No\",'Enrollment Form'!$DS891=\"\"),\"N\",IF(AND('Enrollment Form'!$C891=\"Enroll\",'Enrollment Form'!$B891=\"Subscriber\",'Enrollment Form'!$CX891=\"Yes\"),\"-\",\"Y\")))))","v":""},{"$f":"IF('Enrollment Form'!AH891=\"\",\"\",IF(ISERROR(SEARCH(\".\",'Enrollment Form'!AH891,SEARCH(\"@\",'Enrollment Form'!AH891))),\"N\",\"Y\"))","v":""},{"$f":"IF(OR($B884=\"N\",'Enrollment Form'!$G891=\"\"),\"\",IF('Enrollment Form'!$B891<>\"Subscriber\",\"-\",IF(COUNTIF('Enrollment Form'!$AV891:$AW891,\"Yes\")=2,\"N\",\"Y\")))","v":""},{"$f":"IF(OR('Enrollment Form'!$CJ891=\"\",'Enrollment Form'!$CJ891=\"No\"),\"-\",IF(AND('Enrollment Form'!$CJ891=\"Yes\",'Enrollment Form'!$CK891=\"\"),\"N\",\"Y\"))","v":"-"},{"$f":"IF(OR('Enrollment Form'!$CL891=\"\",'Enrollment Form'!$CL891=\"No\"),\"-\",IF(AND('Enrollment Form'!$CL891=\"Yes\",'Enrollment Form'!$CM891=\"\"),\"N\",\"Y\"))","v":"-"},{"$f":"IF(OR('Enrollment Form'!$CN891=\"\",'Enrollment Form'!$CN891=\"No\"),\"-\",IF(AND('Enrollment Form'!$CN891=\"Yes\",'Enrollment Form'!$CO891=\"\"),\"N\",\"Y\"))","v":"-"},{"$f":"IF(OR('Enrollment Form'!$CN891=\"\",'Enrollment Form'!$CN891=\"No\"),\"-\",IF(AND('Enrollment Form'!$CN891=\"Yes\",'Enrollment Form'!$CP891=\"\"),\"N\",\"Y\"))","v":"-"},{"$f":"IF('Enrollment Form'!B891<>\"Subscriber\",\"-\",IF(AND('Enrollment Form'!B891=\"Subscriber\",'Enrollment Form'!C891=\"Enroll\",'Enrollment Form'!AA891=\"\"),\"N\",\"Y\"))","v":"-"},{"$f":"IF(OR('Enrollment Form'!B891=\"Subscriber\",'Enrollment Form'!B891=\"\"),\"-\",IF('Enrollment Form'!BP891=\"\",\"N\",\"Y\"))","v":"-"},{"$f":"IF('Enrollment Form'!B891<>\"Subscriber\",\"-\",IF(AND('Enrollment Form'!B891=\"Subscriber\",'Enrollment Form'!G891=\"\"),\"N\",\"Y\"))","v":"-"},{"$f":"IF('Enrollment Form'!A891=\"\",\"\",IF('Enrollment Form'!B891=\"Subscriber\",\"-\",IF(AND('Enrollment Form'!B891<>\"Subscriber\",'Enrollment Form'!G891='Enrollment Form'!H891),\"N\",\"Y\")))","v":""},0]
[892,{"$f":"IF('Enrollment Form'!$A892<>\"\",\"Y\",\"N\")","v":"N"},{"$f":"IF(AND('Enrollment Form'!$B892=\"\",'Enrollment Form'!$C892<>\"\"),\"N\",IF($B885=\"N\",\"\",\"Y\"))","v":""},{"$f":"IF(OR($B885=\"N\",'Enrollment Form'!G892=\"\"),\"\",IF('Enrollment Form'!$B892<>\"Subscriber\",\"\",IF('Enrollment Form'!$G892='Enrollment Form'!$H892,\"Y\",\"N\")))","v":""},{"$f":"IF($B885=\"N\",\"\",IF(AND(COUNTIFS('Enrollment Form'!$H$11:$H$1000,'Enrollment Form'!$H892,'Enrollment Form'!$B$11:$B$1000,'Enrollment Form'!$B892)>1,'Enrollment Form'!$H892<>\"\"),\"N\",\"Y\"))","v":""},{"$f":"IF($B885=\"N\",\"\",IF(LEN('Enrollment Form'!$Y892)=0,\"\",IF(LEN('Enrollment Form'!$Y892)<>5,\"N\",\"Y\")))","v":""},{"$f":"IF($B885=\"N\",\"\",IF(LEN('Enrollment Form'!$AD892=0),\"\",IF(LEN('Enrollment Form'!$AD892)<>5,\"N\",\"Y\")))","v":""},{"$f":"IF($B885=\"N\",\"\",IF(LEN('Enrollment Form'!$BS892=0),\"\",IF(LEN('Enrollment Form'!$BS892)<>5,\"N\",\"Y\")))","v":""},{"$f":"IF($B885=\"N\",\"\",IF(LEN('Enrollment Form'!$AE892)=0,\"\",IF(LEN('Enrollment Form'!$AE892)<>10,\"N\",\"Y\")))","v":""},{"$f":"IF($B885=\"N\",\"\",IF(LEN('Enrollment Form'!$AF892)=0,\"\",IF(LEN('Enrollment Form'!$AF892)<>10,\"N\",\"Y\")))","v":""},{"$f":"IF('Enrollment Form'!$O892<>\"Graded\",\"-\",IF(AND('Enrollment Form'!$O892=\"Graded\",'Enrollment Form'!$AR892<>\"\"),\"Y\",\"N\"))","v":"-"},{"$f":"IF($B885=\"N\",\"\",IF(OR('Enrollment Form'!$B892<>\"Subscriber\",'Enrollment Form'!$C892=\"ROC\"),\"-\",IF(AND('Enrollment Form'!$B892=\"Subscriber\",'Enrollment Form'!$C892=\"Enroll\",'Enrollment Form'!$AJ892<>\"\"),\"Y\",\"N\")))","v":""},{"$f":"IF($B885=\"N\",\"\",IF(OR('Enrollment Form'!$B892<>\"Subscriber\",'Enrollment Form'!$C892=\"ROC\"),\"-\",IF(AND('Enrollment Form'!$B892=\"Subscriber\",'Enrollment Form'!$C892=\"Enroll\",'Enrollment Form'!$AK892<>\"\"),\"Y\",\"N\")))","v":""},{"$f":"IF($B885=\"N\",\"\",IF(OR('Enrollment Form'!$B892<>\"Subscriber\",'Enrollment Form'!$C892=\"ROC\"),\"-\",IF(AND('Enrollment Form'!$B892=\"Subscriber\",'Enrollment Form'!$C892=\"Enroll\",'Enrollment Form'!$AL892<>\"\"),\"Y\",\"N\")))","v":""},{"$f":"IF($B885=\"N\",\"\",IF(OR('Enrollment Form'!$B892<>\"Subscriber\",'Enrollment Form'!$C892=\"ROC\"),\"-\",IF(AND('Enrollment Form'!$B892=\"Subscriber\",'Enrollment Form'!$C892=\"Enroll\",'Enrollment Form'!$AP892<>\"\"),\"Y\",\"N\")))","v":""},{"$f":"IF($B885=\"N\",\"\",IF(OR('Enrollment Form'!$B892<>\"Subscriber\",'Enrollment Form'!$C892=\"ROC\"),\"-\",IF(AND('Enrollment Form'!$B892=\"Subscriber\",'Enrollment Form'!$C892=\"Enroll\",'Enrollment Form'!$AQ892<>\"\"),\"Y\",\"N\")))","v":""},{"$f":"IF($B885=\"N\",\"\",IF(OR('Enrollment Form'!$B892<>\"Subscriber\",'Enrollment Form'!$C892=\"ROC\"),\"-\",IF(AND('Enrollment Form'!$B892=\"Subscriber\",'Enrollment Form'!$C892=\"Enroll\",'Enrollment Form'!$AS892<>\"\"),\"Y\",\"N\")))","v":""},{"$f":"IF($B885=\"N\",\"\",IF($Q885=\"-\",\"-\",IF(AND($Q885=\"Y\",'Enrollment Form'!$AS892=\"No\"),\"-\",IF(AND($Q885=\"Y\",'Enrollment Form'!$AS892=\"Yes\",'Enrollment Form'!$AT892<>\"\"),\"Y\",\"N\"))))","v":""},{"$f":"IF($B885=\"N\",\"\",IF(OR('Enrollment Form'!$B892<>\"Subscriber\",'Enrollment Form'!$C892=\"ROC\"),\"-\",IF(AND('Enrollment Form'!$B892=\"Subscriber\",'Enrollment Form'!$C892=\"Enroll\",'Enrollment Form'!$CV892<>\"\"),\"Y\",\"N\")))","v":""},{"$f":"IF($B885=\"N\",\"\",IF($S885=\"-\",\"-\",IF(AND($S885=\"Y\",'Enrollment Form'!$CV892=\"No\"),\"-\",IF(AND($S885=\"Y\",'Enrollment Form'!$CV892=\"Yes\",'Enrollment Form'!$CW892<>\"\"),\"Y\",\"N\"))))","v":""},{"$f":"IF(OR('Enrollment Form'!$AY892=\"Yes\",'Enrollment Form'!$AY892=\"\"),\"-\",IF(OR(AND('Enrollment Form'!$AY892=\"No\",ISERROR(FIND(\"HMO\",VLOOKUP('Enrollment Form'!G892,'Enrollment Form'!H$11:J$1000,3,FALSE),1))=FALSE,COUNTA('Enrollment Form'!$AZ892:$BC892)=4),AND('Enrollment Form'!$AY892=\"No\",ISERROR(FIND(\"HMO\",VLOOKUP('Enrollment Form'!G892,'Enrollment Form'!H$11:J$1000,3,FALSE),1))=FALSE,COUNTA('Enrollment Form'!$BT892:$BW892)=4)),\"Y\",\"N\"))","v":"-"},{"$f":"IF($B885=\"N\",\"\",IF('Enrollment Form'!$B892=\"Subscriber\",\"-\",IF(COUNTA('Enrollment Form'!$BL892,'Enrollment Form'!$BN892)=2,\"Y\",\"N\")))","v":""},{"$f":"IF($B885=\"N\",\"\",IF(OR('Enrollment Form'!$AX892=\"\",'Enrollment Form'!$AX892=\"No\"),\"-\",IF(AND('Enrollment Form'!$AX892=\"Yes\",COUNTA('Enrollment Form'!$CR892)=1),\"Y\",\"N\")))","v":""},{"$f":"IF(OR('Enrollment Form'!$CR892=\"\",'Enrollment Form'!$CR892=\"No\"),\"-\",IF(COUNTA('Enrollment Form'!$CT892:$CU892)=2,\"Y\",\"N\"))","v":"-"},{"$f":"IF($B885=\"N\",\"\",IF(COUNTIF('Enrollment Form'!$DG892:$DP892,\"Other\")=COUNTA('Enrollment Form'!$DK892,'Enrollment Form'!$DH892,'Enrollment Form'!$DN892,'Enrollment Form'!$DQ892),\"Y\",\"N\"))","v":""},{"$f":"IF($B885=\"N\",\"\",IF(OR('Enrollment Form'!B892<>\"Subscriber\",'Enrollment Form'!C892=\"ROC\",COUNTIF('Enrollment Form'!AV892:AW892,\"Yes\")>=1),\"-\",IF(AND('Enrollment Form'!C892=\"Enroll\",COUNTIF('Enrollment Form'!AV892:AW892,\"No\")=2,'Enrollment Form'!AX892=\"\"),\"N\",\"Y\")))","v":""},{"$f":"IF(OR(B885=\"N\",'Enrollment Form'!B892<>\"Subscriber\",'Enrollment Form'!C892=\"ROC\",'Enrollment Form'!O892<>\"Multiple of Salary\"),\"-\",IF(COUNTA('Enrollment Form'!T892:U892)<2,\"N\",\"Y\"))","v":"-"},{"$f":"IF(B885=\"N\",\"\",IF(OR('Enrollment Form'!C892=\"ROC\",'Enrollment Form'!B892<>\"Subscriber\",'Enrollment Form'!O892=\"Waive\",'Enrollment Form'!O892=\"\"),\"-\",IF('Enrollment Form'!P892=\"\",\"N\",\"Y\")))","v":""},{"$f":"IF($B885=\"N\",\"\",IF(AND('Enrollment Form'!$C892=\"ROC\",'Enrollment Form'!$DR892<>\"\"),\"Y\",IF(AND('Enrollment Form'!$C892=\"ROC\",'Enrollment Form'!$DR892=\"\"),\"N\",IF(AND('Enrollment Form'!$C892=\"Enroll\",'Enrollment Form'!$B892=\"Subscriber\",'Enrollment Form'!$CX892=\"No\",'Enrollment Form'!$DR892=\"\"),\"N\",IF(AND('Enrollment Form'!$C892=\"Enroll\",'Enrollment Form'!$B892=\"Subscriber\",'Enrollment Form'!$CX892=\"Yes\"),\"-\",\"Y\")))))","v":""},{"$f":"IF($B885=\"N\",\"\",IF(AND('Enrollment Form'!$C892=\"ROC\",'Enrollment Form'!$DS892<>\"\"),\"Y\",IF(AND('Enrollment Form'!$C892=\"ROC\",'Enrollment Form'!$DS892=\"\"),\"N\",IF(AND('Enrollment Form'!$C892=\"Enroll\",'Enrollment Form'!$B892=\"Subscriber\",'Enrollment Form'!$CX892=\"No\",'Enrollment Form'!$DS892=\"\"),\"N\",IF(AND('Enrollment Form'!$C892=\"Enroll\",'Enrollment Form'!$B892=\"Subscriber\",'Enrollment Form'!$CX892=\"Yes\"),\"-\",\"Y\")))))","v":""},{"$f":"IF('Enrollment Form'!AH892=\"\",\"\",IF(ISERROR(SEARCH(\".\",'Enrollment Form'!AH892,SEARCH(\"@\",'Enrollment Form'!AH892))),\"N\",\"Y\"))","v":""},{"$f":"IF(OR($B885=\"N\",'Enrollment Form'!$G892=\"\"),\"\",IF('Enrollment Form'!$B892<>\"Subscriber\",\"-\",IF(COUNTIF('Enrollment Form'!$AV892:$AW892,\"Yes\")=2,\"N\",\"Y\")))","v":""},{"$f":"IF(OR('Enrollment Form'!$CJ892=\"\",'Enrollment Form'!$CJ892=\"No\"),\"-\",IF(AND('Enrollment Form'!$CJ892=\"Yes\",'Enrollment Form'!$CK892=\"\"),\"N\",\"Y\"))","v":"-"},{"$f":"IF(OR('Enrollment Form'!$CL892=\"\",'Enrollment Form'!$CL892=\"No\"),\"-\",IF(AND('Enrollment Form'!$CL892=\"Yes\",'Enrollment Form'!$CM892=\"\"),\"N\",\"Y\"))","v":"-"},{"$f":"IF(OR('Enrollment Form'!$CN892=\"\",'Enrollment Form'!$CN892=\"No\"),\"-\",IF(AND('Enrollment Form'!$CN892=\"Yes\",'Enrollment Form'!$CO892=\"\"),\"N\",\"Y\"))","v":"-"},{"$f":"IF(OR('Enrollment Form'!$CN892=\"\",'Enrollment Form'!$CN892=\"No\"),\"-\",IF(AND('Enrollment Form'!$CN892=\"Yes\",'Enrollment Form'!$CP892=\"\"),\"N\",\"Y\"))","v":"-"},{"$f":"IF('Enrollment Form'!B892<>\"Subscriber\",\"-\",IF(AND('Enrollment Form'!B892=\"Subscriber\",'Enrollment Form'!C892=\"Enroll\",'Enrollment Form'!AA892=\"\"),\"N\",\"Y\"))","v":"-"},{"$f":"IF(OR('Enrollment Form'!B892=\"Subscriber\",'Enrollment Form'!B892=\"\"),\"-\",IF('Enrollment Form'!BP892=\"\",\"N\",\"Y\"))","v":"-"},{"$f":"IF('Enrollment Form'!B892<>\"Subscriber\",\"-\",IF(AND('Enrollment Form'!B892=\"Subscriber\",'Enrollment Form'!G892=\"\"),\"N\",\"Y\"))","v":"-"},{"$f":"IF('Enrollment Form'!A892=\"\",\"\",IF('Enrollment Form'!B892=\"Subscriber\",\"-\",IF(AND('Enrollment Form'!B892<>\"Subscriber\",'Enrollment Form'!G892='Enrollment Form'!H892),\"N\",\"Y\")))","v":""},0]
[893,{"$f":"IF('Enrollment Form'!$A893<>\"\",\"Y\",\"N\")","v":"N"},{"$f":"IF(AND('Enrollment Form'!$B893=\"\",'Enrollment Form'!$C893<>\"\"),\"N\",IF($B886=\"N\",\"\",\"Y\"))","v":""},{"$f":"IF(OR($B886=\"N\",'Enrollment Form'!G893=\"\"),\"\",IF('Enrollment Form'!$B893<>\"Subscriber\",\"\",IF('Enrollment Form'!$G893='Enrollment Form'!$H893,\"Y\",\"N\")))","v":""},{"$f":"IF($B886=\"N\",\"\",IF(AND(COUNTIFS('Enrollment Form'!$H$11:$H$1000,'Enrollment Form'!$H893,'Enrollment Form'!$B$11:$B$1000,'Enrollment Form'!$B893)>1,'Enrollment Form'!$H893<>\"\"),\"N\",\"Y\"))","v":""},{"$f":"IF($B886=\"N\",\"\",IF(LEN('Enrollment Form'!$Y893)=0,\"\",IF(LEN('Enrollment Form'!$Y893)<>5,\"N\",\"Y\")))","v":""},{"$f":"IF($B886=\"N\",\"\",IF(LEN('Enrollment Form'!$AD893=0),\"\",IF(LEN('Enrollment Form'!$AD893)<>5,\"N\",\"Y\")))","v":""},{"$f":"IF($B886=\"N\",\"\",IF(LEN('Enrollment Form'!$BS893=0),\"\",IF(LEN('Enrollment Form'!$BS893)<>5,\"N\",\"Y\")))","v":""},{"$f":"IF($B886=\"N\",\"\",IF(LEN('Enrollment Form'!$AE893)=0,\"\",IF(LEN('Enrollment Form'!$AE893)<>10,\"N\",\"Y\")))","v":""},{"$f":"IF($B886=\"N\",\"\",IF(LEN('Enrollment Form'!$AF893)=0,\"\",IF(LEN('Enrollment Form'!$AF893)<>10,\"N\",\"Y\")))","v":""},{"$f":"IF('Enrollment Form'!$O893<>\"Graded\",\"-\",IF(AND('Enrollment Form'!$O893=\"Graded\",'Enrollment Form'!$AR893<>\"\"),\"Y\",\"N\"))","v":"-"},{"$f":"IF($B886=\"N\",\"\",IF(OR('Enrollment Form'!$B893<>\"Subscriber\",'Enrollment Form'!$C893=\"ROC\"),\"-\",IF(AND('Enrollment Form'!$B893=\"Subscriber\",'Enrollment Form'!$C893=\"Enroll\",'Enrollment Form'!$AJ893<>\"\"),\"Y\",\"N\")))","v":""},{"$f":"IF($B886=\"N\",\"\",IF(OR('Enrollment Form'!$B893<>\"Subscriber\",'Enrollment Form'!$C893=\"ROC\"),\"-\",IF(AND('Enrollment Form'!$B893=\"Subscriber\",'Enrollment Form'!$C893=\"Enroll\",'Enrollment Form'!$AK893<>\"\"),\"Y\",\"N\")))","v":""},{"$f":"IF($B886=\"N\",\"\",IF(OR('Enrollment Form'!$B893<>\"Subscriber\",'Enrollment Form'!$C893=\"ROC\"),\"-\",IF(AND('Enrollment Form'!$B893=\"Subscriber\",'Enrollment Form'!$C893=\"Enroll\",'Enrollment Form'!$AL893<>\"\"),\"Y\",\"N\")))","v":""},{"$f":"IF($B886=\"N\",\"\",IF(OR('Enrollment Form'!$B893<>\"Subscriber\",'Enrollment Form'!$C893=\"ROC\"),\"-\",IF(AND('Enrollment Form'!$B893=\"Subscriber\",'Enrollment Form'!$C893=\"Enroll\",'Enrollment Form'!$AP893<>\"\"),\"Y\",\"N\")))","v":""},{"$f":"IF($B886=\"N\",\"\",IF(OR('Enrollment Form'!$B893<>\"Subscriber\",'Enrollment Form'!$C893=\"ROC\"),\"-\",IF(AND('Enrollment Form'!$B893=\"Subscriber\",'Enrollment Form'!$C893=\"Enroll\",'Enrollment Form'!$AQ893<>\"\"),\"Y\",\"N\")))","v":""},{"$f":"IF($B886=\"N\",\"\",IF(OR('Enrollment Form'!$B893<>\"Subscriber\",'Enrollment Form'!$C893=\"ROC\"),\"-\",IF(AND('Enrollment Form'!$B893=\"Subscriber\",'Enrollment Form'!$C893=\"Enroll\",'Enrollment Form'!$AS893<>\"\"),\"Y\",\"N\")))","v":""},{"$f":"IF($B886=\"N\",\"\",IF($Q886=\"-\",\"-\",IF(AND($Q886=\"Y\",'Enrollment Form'!$AS893=\"No\"),\"-\",IF(AND($Q886=\"Y\",'Enrollment Form'!$AS893=\"Yes\",'Enrollment Form'!$AT893<>\"\"),\"Y\",\"N\"))))","v":""},{"$f":"IF($B886=\"N\",\"\",IF(OR('Enrollment Form'!$B893<>\"Subscriber\",'Enrollment Form'!$C893=\"ROC\"),\"-\",IF(AND('Enrollment Form'!$B893=\"Subscriber\",'Enrollment Form'!$C893=\"Enroll\",'Enrollment Form'!$CV893<>\"\"),\"Y\",\"N\")))","v":""},{"$f":"IF($B886=\"N\",\"\",IF($S886=\"-\",\"-\",IF(AND($S886=\"Y\",'Enrollment Form'!$CV893=\"No\"),\"-\",IF(AND($S886=\"Y\",'Enrollment Form'!$CV893=\"Yes\",'Enrollment Form'!$CW893<>\"\"),\"Y\",\"N\"))))","v":""},{"$f":"IF(OR('Enrollment Form'!$AY893=\"Yes\",'Enrollment Form'!$AY893=\"\"),\"-\",IF(OR(AND('Enrollment Form'!$AY893=\"No\",ISERROR(FIND(\"HMO\",VLOOKUP('Enrollment Form'!G893,'Enrollment Form'!H$11:J$1000,3,FALSE),1))=FALSE,COUNTA('Enrollment Form'!$AZ893:$BC893)=4),AND('Enrollment Form'!$AY893=\"No\",ISERROR(FIND(\"HMO\",VLOOKUP('Enrollment Form'!G893,'Enrollment Form'!H$11:J$1000,3,FALSE),1))=FALSE,COUNTA('Enrollment Form'!$BT893:$BW893)=4)),\"Y\",\"N\"))","v":"-"},{"$f":"IF($B886=\"N\",\"\",IF('Enrollment Form'!$B893=\"Subscriber\",\"-\",IF(COUNTA('Enrollment Form'!$BL893,'Enrollment Form'!$BN893)=2,\"Y\",\"N\")))","v":""},{"$f":"IF($B886=\"N\",\"\",IF(OR('Enrollment Form'!$AX893=\"\",'Enrollment Form'!$AX893=\"No\"),\"-\",IF(AND('Enrollment Form'!$AX893=\"Yes\",COUNTA('Enrollment Form'!$CR893)=1),\"Y\",\"N\")))","v":""},{"$f":"IF(OR('Enrollment Form'!$CR893=\"\",'Enrollment Form'!$CR893=\"No\"),\"-\",IF(COUNTA('Enrollment Form'!$CT893:$CU893)=2,\"Y\",\"N\"))","v":"-"},{"$f":"IF($B886=\"N\",\"\",IF(COUNTIF('Enrollment Form'!$DG893:$DP893,\"Other\")=COUNTA('Enrollment Form'!$DK893,'Enrollment Form'!$DH893,'Enrollment Form'!$DN893,'Enrollment Form'!$DQ893),\"Y\",\"N\"))","v":""},{"$f":"IF($B886=\"N\",\"\",IF(OR('Enrollment Form'!B893<>\"Subscriber\",'Enrollment Form'!C893=\"ROC\",COUNTIF('Enrollment Form'!AV893:AW893,\"Yes\")>=1),\"-\",IF(AND('Enrollment Form'!C893=\"Enroll\",COUNTIF('Enrollment Form'!AV893:AW893,\"No\")=2,'Enrollment Form'!AX893=\"\"),\"N\",\"Y\")))","v":""},{"$f":"IF(OR(B886=\"N\",'Enrollment Form'!B893<>\"Subscriber\",'Enrollment Form'!C893=\"ROC\",'Enrollment Form'!O893<>\"Multiple of Salary\"),\"-\",IF(COUNTA('Enrollment Form'!T893:U893)<2,\"N\",\"Y\"))","v":"-"},{"$f":"IF(B886=\"N\",\"\",IF(OR('Enrollment Form'!C893=\"ROC\",'Enrollment Form'!B893<>\"Subscriber\",'Enrollment Form'!O893=\"Waive\",'Enrollment Form'!O893=\"\"),\"-\",IF('Enrollment Form'!P893=\"\",\"N\",\"Y\")))","v":""},{"$f":"IF($B886=\"N\",\"\",IF(AND('Enrollment Form'!$C893=\"ROC\",'Enrollment Form'!$DR893<>\"\"),\"Y\",IF(AND('Enrollment Form'!$C893=\"ROC\",'Enrollment Form'!$DR893=\"\"),\"N\",IF(AND('Enrollment Form'!$C893=\"Enroll\",'Enrollment Form'!$B893=\"Subscriber\",'Enrollment Form'!$CX893=\"No\",'Enrollment Form'!$DR893=\"\"),\"N\",IF(AND('Enrollment Form'!$C893=\"Enroll\",'Enrollment Form'!$B893=\"Subscriber\",'Enrollment Form'!$CX893=\"Yes\"),\"-\",\"Y\")))))","v":""},{"$f":"IF($B886=\"N\",\"\",IF(AND('Enrollment Form'!$C893=\"ROC\",'Enrollment Form'!$DS893<>\"\"),\"Y\",IF(AND('Enrollment Form'!$C893=\"ROC\",'Enrollment Form'!$DS893=\"\"),\"N\",IF(AND('Enrollment Form'!$C893=\"Enroll\",'Enrollment Form'!$B893=\"Subscriber\",'Enrollment Form'!$CX893=\"No\",'Enrollment Form'!$DS893=\"\"),\"N\",IF(AND('Enrollment Form'!$C893=\"Enroll\",'Enrollment Form'!$B893=\"Subscriber\",'Enrollment Form'!$CX893=\"Yes\"),\"-\",\"Y\")))))","v":""},{"$f":"IF('Enrollment Form'!AH893=\"\",\"\",IF(ISERROR(SEARCH(\".\",'Enrollment Form'!AH893,SEARCH(\"@\",'Enrollment Form'!AH893))),\"N\",\"Y\"))","v":""},{"$f":"IF(OR($B886=\"N\",'Enrollment Form'!$G893=\"\"),\"\",IF('Enrollment Form'!$B893<>\"Subscriber\",\"-\",IF(COUNTIF('Enrollment Form'!$AV893:$AW893,\"Yes\")=2,\"N\",\"Y\")))","v":""},{"$f":"IF(OR('Enrollment Form'!$CJ893=\"\",'Enrollment Form'!$CJ893=\"No\"),\"-\",IF(AND('Enrollment Form'!$CJ893=\"Yes\",'Enrollment Form'!$CK893=\"\"),\"N\",\"Y\"))","v":"-"},{"$f":"IF(OR('Enrollment Form'!$CL893=\"\",'Enrollment Form'!$CL893=\"No\"),\"-\",IF(AND('Enrollment Form'!$CL893=\"Yes\",'Enrollment Form'!$CM893=\"\"),\"N\",\"Y\"))","v":"-"},{"$f":"IF(OR('Enrollment Form'!$CN893=\"\",'Enrollment Form'!$CN893=\"No\"),\"-\",IF(AND('Enrollment Form'!$CN893=\"Yes\",'Enrollment Form'!$CO893=\"\"),\"N\",\"Y\"))","v":"-"},{"$f":"IF(OR('Enrollment Form'!$CN893=\"\",'Enrollment Form'!$CN893=\"No\"),\"-\",IF(AND('Enrollment Form'!$CN893=\"Yes\",'Enrollment Form'!$CP893=\"\"),\"N\",\"Y\"))","v":"-"},{"$f":"IF('Enrollment Form'!B893<>\"Subscriber\",\"-\",IF(AND('Enrollment Form'!B893=\"Subscriber\",'Enrollment Form'!C893=\"Enroll\",'Enrollment Form'!AA893=\"\"),\"N\",\"Y\"))","v":"-"},{"$f":"IF(OR('Enrollment Form'!B893=\"Subscriber\",'Enrollment Form'!B893=\"\"),\"-\",IF('Enrollment Form'!BP893=\"\",\"N\",\"Y\"))","v":"-"},{"$f":"IF('Enrollment Form'!B893<>\"Subscriber\",\"-\",IF(AND('Enrollment Form'!B893=\"Subscriber\",'Enrollment Form'!G893=\"\"),\"N\",\"Y\"))","v":"-"},{"$f":"IF('Enrollment Form'!A893=\"\",\"\",IF('Enrollment Form'!B893=\"Subscriber\",\"-\",IF(AND('Enrollment Form'!B893<>\"Subscriber\",'Enrollment Form'!G893='Enrollment Form'!H893),\"N\",\"Y\")))","v":""},0]
[894,{"$f":"IF('Enrollment Form'!$A894<>\"\",\"Y\",\"N\")","v":"N"},{"$f":"IF(AND('Enrollment Form'!$B894=\"\",'Enrollment Form'!$C894<>\"\"),\"N\",IF($B887=\"N\",\"\",\"Y\"))","v":""},{"$f":"IF(OR($B887=\"N\",'Enrollment Form'!G894=\"\"),\"\",IF('Enrollment Form'!$B894<>\"Subscriber\",\"\",IF('Enrollment Form'!$G894='Enrollment Form'!$H894,\"Y\",\"N\")))","v":""},{"$f":"IF($B887=\"N\",\"\",IF(AND(COUNTIFS('Enrollment Form'!$H$11:$H$1000,'Enrollment Form'!$H894,'Enrollment Form'!$B$11:$B$1000,'Enrollment Form'!$B894)>1,'Enrollment Form'!$H894<>\"\"),\"N\",\"Y\"))","v":""},{"$f":"IF($B887=\"N\",\"\",IF(LEN('Enrollment Form'!$Y894)=0,\"\",IF(LEN('Enrollment Form'!$Y894)<>5,\"N\",\"Y\")))","v":""},{"$f":"IF($B887=\"N\",\"\",IF(LEN('Enrollment Form'!$AD894=0),\"\",IF(LEN('Enrollment Form'!$AD894)<>5,\"N\",\"Y\")))","v":""},{"$f":"IF($B887=\"N\",\"\",IF(LEN('Enrollment Form'!$BS894=0),\"\",IF(LEN('Enrollment Form'!$BS894)<>5,\"N\",\"Y\")))","v":""},{"$f":"IF($B887=\"N\",\"\",IF(LEN('Enrollment Form'!$AE894)=0,\"\",IF(LEN('Enrollment Form'!$AE894)<>10,\"N\",\"Y\")))","v":""},{"$f":"IF($B887=\"N\",\"\",IF(LEN('Enrollment Form'!$AF894)=0,\"\",IF(LEN('Enrollment Form'!$AF894)<>10,\"N\",\"Y\")))","v":""},{"$f":"IF('Enrollment Form'!$O894<>\"Graded\",\"-\",IF(AND('Enrollment Form'!$O894=\"Graded\",'Enrollment Form'!$AR894<>\"\"),\"Y\",\"N\"))","v":"-"},{"$f":"IF($B887=\"N\",\"\",IF(OR('Enrollment Form'!$B894<>\"Subscriber\",'Enrollment Form'!$C894=\"ROC\"),\"-\",IF(AND('Enrollment Form'!$B894=\"Subscriber\",'Enrollment Form'!$C894=\"Enroll\",'Enrollment Form'!$AJ894<>\"\"),\"Y\",\"N\")))","v":""},{"$f":"IF($B887=\"N\",\"\",IF(OR('Enrollment Form'!$B894<>\"Subscriber\",'Enrollment Form'!$C894=\"ROC\"),\"-\",IF(AND('Enrollment Form'!$B894=\"Subscriber\",'Enrollment Form'!$C894=\"Enroll\",'Enrollment Form'!$AK894<>\"\"),\"Y\",\"N\")))","v":""},{"$f":"IF($B887=\"N\",\"\",IF(OR('Enrollment Form'!$B894<>\"Subscriber\",'Enrollment Form'!$C894=\"ROC\"),\"-\",IF(AND('Enrollment Form'!$B894=\"Subscriber\",'Enrollment Form'!$C894=\"Enroll\",'Enrollment Form'!$AL894<>\"\"),\"Y\",\"N\")))","v":""},{"$f":"IF($B887=\"N\",\"\",IF(OR('Enrollment Form'!$B894<>\"Subscriber\",'Enrollment Form'!$C894=\"ROC\"),\"-\",IF(AND('Enrollment Form'!$B894=\"Subscriber\",'Enrollment Form'!$C894=\"Enroll\",'Enrollment Form'!$AP894<>\"\"),\"Y\",\"N\")))","v":""},{"$f":"IF($B887=\"N\",\"\",IF(OR('Enrollment Form'!$B894<>\"Subscriber\",'Enrollment Form'!$C894=\"ROC\"),\"-\",IF(AND('Enrollment Form'!$B894=\"Subscriber\",'Enrollment Form'!$C894=\"Enroll\",'Enrollment Form'!$AQ894<>\"\"),\"Y\",\"N\")))","v":""},{"$f":"IF($B887=\"N\",\"\",IF(OR('Enrollment Form'!$B894<>\"Subscriber\",'Enrollment Form'!$C894=\"ROC\"),\"-\",IF(AND('Enrollment Form'!$B894=\"Subscriber\",'Enrollment Form'!$C894=\"Enroll\",'Enrollment Form'!$AS894<>\"\"),\"Y\",\"N\")))","v":""},{"$f":"IF($B887=\"N\",\"\",IF($Q887=\"-\",\"-\",IF(AND($Q887=\"Y\",'Enrollment Form'!$AS894=\"No\"),\"-\",IF(AND($Q887=\"Y\",'Enrollment Form'!$AS894=\"Yes\",'Enrollment Form'!$AT894<>\"\"),\"Y\",\"N\"))))","v":""},{"$f":"IF($B887=\"N\",\"\",IF(OR('Enrollment Form'!$B894<>\"Subscriber\",'Enrollment Form'!$C894=\"ROC\"),\"-\",IF(AND('Enrollment Form'!$B894=\"Subscriber\",'Enrollment Form'!$C894=\"Enroll\",'Enrollment Form'!$CV894<>\"\"),\"Y\",\"N\")))","v":""},{"$f":"IF($B887=\"N\",\"\",IF($S887=\"-\",\"-\",IF(AND($S887=\"Y\",'Enrollment Form'!$CV894=\"No\"),\"-\",IF(AND($S887=\"Y\",'Enrollment Form'!$CV894=\"Yes\",'Enrollment Form'!$CW894<>\"\"),\"Y\",\"N\"))))","v":""},{"$f":"IF(OR('Enrollment Form'!$AY894=\"Yes\",'Enrollment Form'!$AY894=\"\"),\"-\",IF(OR(AND('Enrollment Form'!$AY894=\"No\",ISERROR(FIND(\"HMO\",VLOOKUP('Enrollment Form'!G894,'Enrollment Form'!H$11:J$1000,3,FALSE),1))=FALSE,COUNTA('Enrollment Form'!$AZ894:$BC894)=4),AND('Enrollment Form'!$AY894=\"No\",ISERROR(FIND(\"HMO\",VLOOKUP('Enrollment Form'!G894,'Enrollment Form'!H$11:J$1000,3,FALSE),1))=FALSE,COUNTA('Enrollment Form'!$BT894:$BW894)=4)),\"Y\",\"N\"))","v":"-"},{"$f":"IF($B887=\"N\",\"\",IF('Enrollment Form'!$B894=\"Subscriber\",\"-\",IF(COUNTA('Enrollment Form'!$BL894,'Enrollment Form'!$BN894)=2,\"Y\",\"N\")))","v":""},{"$f":"IF($B887=\"N\",\"\",IF(OR('Enrollment Form'!$AX894=\"\",'Enrollment Form'!$AX894=\"No\"),\"-\",IF(AND('Enrollment Form'!$AX894=\"Yes\",COUNTA('Enrollment Form'!$CR894)=1),\"Y\",\"N\")))","v":""},{"$f":"IF(OR('Enrollment Form'!$CR894=\"\",'Enrollment Form'!$CR894=\"No\"),\"-\",IF(COUNTA('Enrollment Form'!$CT894:$CU894)=2,\"Y\",\"N\"))","v":"-"},{"$f":"IF($B887=\"N\",\"\",IF(COUNTIF('Enrollment Form'!$DG894:$DP894,\"Other\")=COUNTA('Enrollment Form'!$DK894,'Enrollment Form'!$DH894,'Enrollment Form'!$DN894,'Enrollment Form'!$DQ894),\"Y\",\"N\"))","v":""},{"$f":"IF($B887=\"N\",\"\",IF(OR('Enrollment Form'!B894<>\"Subscriber\",'Enrollment Form'!C894=\"ROC\",COUNTIF('Enrollment Form'!AV894:AW894,\"Yes\")>=1),\"-\",IF(AND('Enrollment Form'!C894=\"Enroll\",COUNTIF('Enrollment Form'!AV894:AW894,\"No\")=2,'Enrollment Form'!AX894=\"\"),\"N\",\"Y\")))","v":""},{"$f":"IF(OR(B887=\"N\",'Enrollment Form'!B894<>\"Subscriber\",'Enrollment Form'!C894=\"ROC\",'Enrollment Form'!O894<>\"Multiple of Salary\"),\"-\",IF(COUNTA('Enrollment Form'!T894:U894)<2,\"N\",\"Y\"))","v":"-"},{"$f":"IF(B887=\"N\",\"\",IF(OR('Enrollment Form'!C894=\"ROC\",'Enrollment Form'!B894<>\"Subscriber\",'Enrollment Form'!O894=\"Waive\",'Enrollment Form'!O894=\"\"),\"-\",IF('Enrollment Form'!P894=\"\",\"N\",\"Y\")))","v":""},{"$f":"IF($B887=\"N\",\"\",IF(AND('Enrollment Form'!$C894=\"ROC\",'Enrollment Form'!$DR894<>\"\"),\"Y\",IF(AND('Enrollment Form'!$C894=\"ROC\",'Enrollment Form'!$DR894=\"\"),\"N\",IF(AND('Enrollment Form'!$C894=\"Enroll\",'Enrollment Form'!$B894=\"Subscriber\",'Enrollment Form'!$CX894=\"No\",'Enrollment Form'!$DR894=\"\"),\"N\",IF(AND('Enrollment Form'!$C894=\"Enroll\",'Enrollment Form'!$B894=\"Subscriber\",'Enrollment Form'!$CX894=\"Yes\"),\"-\",\"Y\")))))","v":""},{"$f":"IF($B887=\"N\",\"\",IF(AND('Enrollment Form'!$C894=\"ROC\",'Enrollment Form'!$DS894<>\"\"),\"Y\",IF(AND('Enrollment Form'!$C894=\"ROC\",'Enrollment Form'!$DS894=\"\"),\"N\",IF(AND('Enrollment Form'!$C894=\"Enroll\",'Enrollment Form'!$B894=\"Subscriber\",'Enrollment Form'!$CX894=\"No\",'Enrollment Form'!$DS894=\"\"),\"N\",IF(AND('Enrollment Form'!$C894=\"Enroll\",'Enrollment Form'!$B894=\"Subscriber\",'Enrollment Form'!$CX894=\"Yes\"),\"-\",\"Y\")))))","v":""},{"$f":"IF('Enrollment Form'!AH894=\"\",\"\",IF(ISERROR(SEARCH(\".\",'Enrollment Form'!AH894,SEARCH(\"@\",'Enrollment Form'!AH894))),\"N\",\"Y\"))","v":""},{"$f":"IF(OR($B887=\"N\",'Enrollment Form'!$G894=\"\"),\"\",IF('Enrollment Form'!$B894<>\"Subscriber\",\"-\",IF(COUNTIF('Enrollment Form'!$AV894:$AW894,\"Yes\")=2,\"N\",\"Y\")))","v":""},{"$f":"IF(OR('Enrollment Form'!$CJ894=\"\",'Enrollment Form'!$CJ894=\"No\"),\"-\",IF(AND('Enrollment Form'!$CJ894=\"Yes\",'Enrollment Form'!$CK894=\"\"),\"N\",\"Y\"))","v":"-"},{"$f":"IF(OR('Enrollment Form'!$CL894=\"\",'Enrollment Form'!$CL894=\"No\"),\"-\",IF(AND('Enrollment Form'!$CL894=\"Yes\",'Enrollment Form'!$CM894=\"\"),\"N\",\"Y\"))","v":"-"},{"$f":"IF(OR('Enrollment Form'!$CN894=\"\",'Enrollment Form'!$CN894=\"No\"),\"-\",IF(AND('Enrollment Form'!$CN894=\"Yes\",'Enrollment Form'!$CO894=\"\"),\"N\",\"Y\"))","v":"-"},{"$f":"IF(OR('Enrollment Form'!$CN894=\"\",'Enrollment Form'!$CN894=\"No\"),\"-\",IF(AND('Enrollment Form'!$CN894=\"Yes\",'Enrollment Form'!$CP894=\"\"),\"N\",\"Y\"))","v":"-"},{"$f":"IF('Enrollment Form'!B894<>\"Subscriber\",\"-\",IF(AND('Enrollment Form'!B894=\"Subscriber\",'Enrollment Form'!C894=\"Enroll\",'Enrollment Form'!AA894=\"\"),\"N\",\"Y\"))","v":"-"},{"$f":"IF(OR('Enrollment Form'!B894=\"Subscriber\",'Enrollment Form'!B894=\"\"),\"-\",IF('Enrollment Form'!BP894=\"\",\"N\",\"Y\"))","v":"-"},{"$f":"IF('Enrollment Form'!B894<>\"Subscriber\",\"-\",IF(AND('Enrollment Form'!B894=\"Subscriber\",'Enrollment Form'!G894=\"\"),\"N\",\"Y\"))","v":"-"},{"$f":"IF('Enrollment Form'!A894=\"\",\"\",IF('Enrollment Form'!B894=\"Subscriber\",\"-\",IF(AND('Enrollment Form'!B894<>\"Subscriber\",'Enrollment Form'!G894='Enrollment Form'!H894),\"N\",\"Y\")))","v":""},0]
[895,{"$f":"IF('Enrollment Form'!$A895<>\"\",\"Y\",\"N\")","v":"N"},{"$f":"IF(AND('Enrollment Form'!$B895=\"\",'Enrollment Form'!$C895<>\"\"),\"N\",IF($B888=\"N\",\"\",\"Y\"))","v":""},{"$f":"IF(OR($B888=\"N\",'Enrollment Form'!G895=\"\"),\"\",IF('Enrollment Form'!$B895<>\"Subscriber\",\"\",IF('Enrollment Form'!$G895='Enrollment Form'!$H895,\"Y\",\"N\")))","v":""},{"$f":"IF($B888=\"N\",\"\",IF(AND(COUNTIFS('Enrollment Form'!$H$11:$H$1000,'Enrollment Form'!$H895,'Enrollment Form'!$B$11:$B$1000,'Enrollment Form'!$B895)>1,'Enrollment Form'!$H895<>\"\"),\"N\",\"Y\"))","v":""},{"$f":"IF($B888=\"N\",\"\",IF(LEN('Enrollment Form'!$Y895)=0,\"\",IF(LEN('Enrollment Form'!$Y895)<>5,\"N\",\"Y\")))","v":""},{"$f":"IF($B888=\"N\",\"\",IF(LEN('Enrollment Form'!$AD895=0),\"\",IF(LEN('Enrollment Form'!$AD895)<>5,\"N\",\"Y\")))","v":""},{"$f":"IF($B888=\"N\",\"\",IF(LEN('Enrollment Form'!$BS895=0),\"\",IF(LEN('Enrollment Form'!$BS895)<>5,\"N\",\"Y\")))","v":""},{"$f":"IF($B888=\"N\",\"\",IF(LEN('Enrollment Form'!$AE895)=0,\"\",IF(LEN('Enrollment Form'!$AE895)<>10,\"N\",\"Y\")))","v":""},{"$f":"IF($B888=\"N\",\"\",IF(LEN('Enrollment Form'!$AF895)=0,\"\",IF(LEN('Enrollment Form'!$AF895)<>10,\"N\",\"Y\")))","v":""},{"$f":"IF('Enrollment Form'!$O895<>\"Graded\",\"-\",IF(AND('Enrollment Form'!$O895=\"Graded\",'Enrollment Form'!$AR895<>\"\"),\"Y\",\"N\"))","v":"-"},{"$f":"IF($B888=\"N\",\"\",IF(OR('Enrollment Form'!$B895<>\"Subscriber\",'Enrollment Form'!$C895=\"ROC\"),\"-\",IF(AND('Enrollment Form'!$B895=\"Subscriber\",'Enrollment Form'!$C895=\"Enroll\",'Enrollment Form'!$AJ895<>\"\"),\"Y\",\"N\")))","v":""},{"$f":"IF($B888=\"N\",\"\",IF(OR('Enrollment Form'!$B895<>\"Subscriber\",'Enrollment Form'!$C895=\"ROC\"),\"-\",IF(AND('Enrollment Form'!$B895=\"Subscriber\",'Enrollment Form'!$C895=\"Enroll\",'Enrollment Form'!$AK895<>\"\"),\"Y\",\"N\")))","v":""},{"$f":"IF($B888=\"N\",\"\",IF(OR('Enrollment Form'!$B895<>\"Subscriber\",'Enrollment Form'!$C895=\"ROC\"),\"-\",IF(AND('Enrollment Form'!$B895=\"Subscriber\",'Enrollment Form'!$C895=\"Enroll\",'Enrollment Form'!$AL895<>\"\"),\"Y\",\"N\")))","v":""},{"$f":"IF($B888=\"N\",\"\",IF(OR('Enrollment Form'!$B895<>\"Subscriber\",'Enrollment Form'!$C895=\"ROC\"),\"-\",IF(AND('Enrollment Form'!$B895=\"Subscriber\",'Enrollment Form'!$C895=\"Enroll\",'Enrollment Form'!$AP895<>\"\"),\"Y\",\"N\")))","v":""},{"$f":"IF($B888=\"N\",\"\",IF(OR('Enrollment Form'!$B895<>\"Subscriber\",'Enrollment Form'!$C895=\"ROC\"),\"-\",IF(AND('Enrollment Form'!$B895=\"Subscriber\",'Enrollment Form'!$C895=\"Enroll\",'Enrollment Form'!$AQ895<>\"\"),\"Y\",\"N\")))","v":""},{"$f":"IF($B888=\"N\",\"\",IF(OR('Enrollment Form'!$B895<>\"Subscriber\",'Enrollment Form'!$C895=\"ROC\"),\"-\",IF(AND('Enrollment Form'!$B895=\"Subscriber\",'Enrollment Form'!$C895=\"Enroll\",'Enrollment Form'!$AS895<>\"\"),\"Y\",\"N\")))","v":""},{"$f":"IF($B888=\"N\",\"\",IF($Q888=\"-\",\"-\",IF(AND($Q888=\"Y\",'Enrollment Form'!$AS895=\"No\"),\"-\",IF(AND($Q888=\"Y\",'Enrollment Form'!$AS895=\"Yes\",'Enrollment Form'!$AT895<>\"\"),\"Y\",\"N\"))))","v":""},{"$f":"IF($B888=\"N\",\"\",IF(OR('Enrollment Form'!$B895<>\"Subscriber\",'Enrollment Form'!$C895=\"ROC\"),\"-\",IF(AND('Enrollment Form'!$B895=\"Subscriber\",'Enrollment Form'!$C895=\"Enroll\",'Enrollment Form'!$CV895<>\"\"),\"Y\",\"N\")))","v":""},{"$f":"IF($B888=\"N\",\"\",IF($S888=\"-\",\"-\",IF(AND($S888=\"Y\",'Enrollment Form'!$CV895=\"No\"),\"-\",IF(AND($S888=\"Y\",'Enrollment Form'!$CV895=\"Yes\",'Enrollment Form'!$CW895<>\"\"),\"Y\",\"N\"))))","v":""},{"$f":"IF(OR('Enrollment Form'!$AY895=\"Yes\",'Enrollment Form'!$AY895=\"\"),\"-\",IF(OR(AND('Enrollment Form'!$AY895=\"No\",ISERROR(FIND(\"HMO\",VLOOKUP('Enrollment Form'!G895,'Enrollment Form'!H$11:J$1000,3,FALSE),1))=FALSE,COUNTA('Enrollment Form'!$AZ895:$BC895)=4),AND('Enrollment Form'!$AY895=\"No\",ISERROR(FIND(\"HMO\",VLOOKUP('Enrollment Form'!G895,'Enrollment Form'!H$11:J$1000,3,FALSE),1))=FALSE,COUNTA('Enrollment Form'!$BT895:$BW895)=4)),\"Y\",\"N\"))","v":"-"},{"$f":"IF($B888=\"N\",\"\",IF('Enrollment Form'!$B895=\"Subscriber\",\"-\",IF(COUNTA('Enrollment Form'!$BL895,'Enrollment Form'!$BN895)=2,\"Y\",\"N\")))","v":""},{"$f":"IF($B888=\"N\",\"\",IF(OR('Enrollment Form'!$AX895=\"\",'Enrollment Form'!$AX895=\"No\"),\"-\",IF(AND('Enrollment Form'!$AX895=\"Yes\",COUNTA('Enrollment Form'!$CR895)=1),\"Y\",\"N\")))","v":""},{"$f":"IF(OR('Enrollment Form'!$CR895=\"\",'Enrollment Form'!$CR895=\"No\"),\"-\",IF(COUNTA('Enrollment Form'!$CT895:$CU895)=2,\"Y\",\"N\"))","v":"-"},{"$f":"IF($B888=\"N\",\"\",IF(COUNTIF('Enrollment Form'!$DG895:$DP895,\"Other\")=COUNTA('Enrollment Form'!$DK895,'Enrollment Form'!$DH895,'Enrollment Form'!$DN895,'Enrollment Form'!$DQ895),\"Y\",\"N\"))","v":""},{"$f":"IF($B888=\"N\",\"\",IF(OR('Enrollment Form'!B895<>\"Subscriber\",'Enrollment Form'!C895=\"ROC\",COUNTIF('Enrollment Form'!AV895:AW895,\"Yes\")>=1),\"-\",IF(AND('Enrollment Form'!C895=\"Enroll\",COUNTIF('Enrollment Form'!AV895:AW895,\"No\")=2,'Enrollment Form'!AX895=\"\"),\"N\",\"Y\")))","v":""},{"$f":"IF(OR(B888=\"N\",'Enrollment Form'!B895<>\"Subscriber\",'Enrollment Form'!C895=\"ROC\",'Enrollment Form'!O895<>\"Multiple of Salary\"),\"-\",IF(COUNTA('Enrollment Form'!T895:U895)<2,\"N\",\"Y\"))","v":"-"},{"$f":"IF(B888=\"N\",\"\",IF(OR('Enrollment Form'!C895=\"ROC\",'Enrollment Form'!B895<>\"Subscriber\",'Enrollment Form'!O895=\"Waive\",'Enrollment Form'!O895=\"\"),\"-\",IF('Enrollment Form'!P895=\"\",\"N\",\"Y\")))","v":""},{"$f":"IF($B888=\"N\",\"\",IF(AND('Enrollment Form'!$C895=\"ROC\",'Enrollment Form'!$DR895<>\"\"),\"Y\",IF(AND('Enrollment Form'!$C895=\"ROC\",'Enrollment Form'!$DR895=\"\"),\"N\",IF(AND('Enrollment Form'!$C895=\"Enroll\",'Enrollment Form'!$B895=\"Subscriber\",'Enrollment Form'!$CX895=\"No\",'Enrollment Form'!$DR895=\"\"),\"N\",IF(AND('Enrollment Form'!$C895=\"Enroll\",'Enrollment Form'!$B895=\"Subscriber\",'Enrollment Form'!$CX895=\"Yes\"),\"-\",\"Y\")))))","v":""},{"$f":"IF($B888=\"N\",\"\",IF(AND('Enrollment Form'!$C895=\"ROC\",'Enrollment Form'!$DS895<>\"\"),\"Y\",IF(AND('Enrollment Form'!$C895=\"ROC\",'Enrollment Form'!$DS895=\"\"),\"N\",IF(AND('Enrollment Form'!$C895=\"Enroll\",'Enrollment Form'!$B895=\"Subscriber\",'Enrollment Form'!$CX895=\"No\",'Enrollment Form'!$DS895=\"\"),\"N\",IF(AND('Enrollment Form'!$C895=\"Enroll\",'Enrollment Form'!$B895=\"Subscriber\",'Enrollment Form'!$CX895=\"Yes\"),\"-\",\"Y\")))))","v":""},{"$f":"IF('Enrollment Form'!AH895=\"\",\"\",IF(ISERROR(SEARCH(\".\",'Enrollment Form'!AH895,SEARCH(\"@\",'Enrollment Form'!AH895))),\"N\",\"Y\"))","v":""},{"$f":"IF(OR($B888=\"N\",'Enrollment Form'!$G895=\"\"),\"\",IF('Enrollment Form'!$B895<>\"Subscriber\",\"-\",IF(COUNTIF('Enrollment Form'!$AV895:$AW895,\"Yes\")=2,\"N\",\"Y\")))","v":""},{"$f":"IF(OR('Enrollment Form'!$CJ895=\"\",'Enrollment Form'!$CJ895=\"No\"),\"-\",IF(AND('Enrollment Form'!$CJ895=\"Yes\",'Enrollment Form'!$CK895=\"\"),\"N\",\"Y\"))","v":"-"},{"$f":"IF(OR('Enrollment Form'!$CL895=\"\",'Enrollment Form'!$CL895=\"No\"),\"-\",IF(AND('Enrollment Form'!$CL895=\"Yes\",'Enrollment Form'!$CM895=\"\"),\"N\",\"Y\"))","v":"-"},{"$f":"IF(OR('Enrollment Form'!$CN895=\"\",'Enrollment Form'!$CN895=\"No\"),\"-\",IF(AND('Enrollment Form'!$CN895=\"Yes\",'Enrollment Form'!$CO895=\"\"),\"N\",\"Y\"))","v":"-"},{"$f":"IF(OR('Enrollment Form'!$CN895=\"\",'Enrollment Form'!$CN895=\"No\"),\"-\",IF(AND('Enrollment Form'!$CN895=\"Yes\",'Enrollment Form'!$CP895=\"\"),\"N\",\"Y\"))","v":"-"},{"$f":"IF('Enrollment Form'!B895<>\"Subscriber\",\"-\",IF(AND('Enrollment Form'!B895=\"Subscriber\",'Enrollment Form'!C895=\"Enroll\",'Enrollment Form'!AA895=\"\"),\"N\",\"Y\"))","v":"-"},{"$f":"IF(OR('Enrollment Form'!B895=\"Subscriber\",'Enrollment Form'!B895=\"\"),\"-\",IF('Enrollment Form'!BP895=\"\",\"N\",\"Y\"))","v":"-"},{"$f":"IF('Enrollment Form'!B895<>\"Subscriber\",\"-\",IF(AND('Enrollment Form'!B895=\"Subscriber\",'Enrollment Form'!G895=\"\"),\"N\",\"Y\"))","v":"-"},{"$f":"IF('Enrollment Form'!A895=\"\",\"\",IF('Enrollment Form'!B895=\"Subscriber\",\"-\",IF(AND('Enrollment Form'!B895<>\"Subscriber\",'Enrollment Form'!G895='Enrollment Form'!H895),\"N\",\"Y\")))","v":""},0]
[896,{"$f":"IF('Enrollment Form'!$A896<>\"\",\"Y\",\"N\")","v":"N"},{"$f":"IF(AND('Enrollment Form'!$B896=\"\",'Enrollment Form'!$C896<>\"\"),\"N\",IF($B889=\"N\",\"\",\"Y\"))","v":""},{"$f":"IF(OR($B889=\"N\",'Enrollment Form'!G896=\"\"),\"\",IF('Enrollment Form'!$B896<>\"Subscriber\",\"\",IF('Enrollment Form'!$G896='Enrollment Form'!$H896,\"Y\",\"N\")))","v":""},{"$f":"IF($B889=\"N\",\"\",IF(AND(COUNTIFS('Enrollment Form'!$H$11:$H$1000,'Enrollment Form'!$H896,'Enrollment Form'!$B$11:$B$1000,'Enrollment Form'!$B896)>1,'Enrollment Form'!$H896<>\"\"),\"N\",\"Y\"))","v":""},{"$f":"IF($B889=\"N\",\"\",IF(LEN('Enrollment Form'!$Y896)=0,\"\",IF(LEN('Enrollment Form'!$Y896)<>5,\"N\",\"Y\")))","v":""},{"$f":"IF($B889=\"N\",\"\",IF(LEN('Enrollment Form'!$AD896=0),\"\",IF(LEN('Enrollment Form'!$AD896)<>5,\"N\",\"Y\")))","v":""},{"$f":"IF($B889=\"N\",\"\",IF(LEN('Enrollment Form'!$BS896=0),\"\",IF(LEN('Enrollment Form'!$BS896)<>5,\"N\",\"Y\")))","v":""},{"$f":"IF($B889=\"N\",\"\",IF(LEN('Enrollment Form'!$AE896)=0,\"\",IF(LEN('Enrollment Form'!$AE896)<>10,\"N\",\"Y\")))","v":""},{"$f":"IF($B889=\"N\",\"\",IF(LEN('Enrollment Form'!$AF896)=0,\"\",IF(LEN('Enrollment Form'!$AF896)<>10,\"N\",\"Y\")))","v":""},{"$f":"IF('Enrollment Form'!$O896<>\"Graded\",\"-\",IF(AND('Enrollment Form'!$O896=\"Graded\",'Enrollment Form'!$AR896<>\"\"),\"Y\",\"N\"))","v":"-"},{"$f":"IF($B889=\"N\",\"\",IF(OR('Enrollment Form'!$B896<>\"Subscriber\",'Enrollment Form'!$C896=\"ROC\"),\"-\",IF(AND('Enrollment Form'!$B896=\"Subscriber\",'Enrollment Form'!$C896=\"Enroll\",'Enrollment Form'!$AJ896<>\"\"),\"Y\",\"N\")))","v":""},{"$f":"IF($B889=\"N\",\"\",IF(OR('Enrollment Form'!$B896<>\"Subscriber\",'Enrollment Form'!$C896=\"ROC\"),\"-\",IF(AND('Enrollment Form'!$B896=\"Subscriber\",'Enrollment Form'!$C896=\"Enroll\",'Enrollment Form'!$AK896<>\"\"),\"Y\",\"N\")))","v":""},{"$f":"IF($B889=\"N\",\"\",IF(OR('Enrollment Form'!$B896<>\"Subscriber\",'Enrollment Form'!$C896=\"ROC\"),\"-\",IF(AND('Enrollment Form'!$B896=\"Subscriber\",'Enrollment Form'!$C896=\"Enroll\",'Enrollment Form'!$AL896<>\"\"),\"Y\",\"N\")))","v":""},{"$f":"IF($B889=\"N\",\"\",IF(OR('Enrollment Form'!$B896<>\"Subscriber\",'Enrollment Form'!$C896=\"ROC\"),\"-\",IF(AND('Enrollment Form'!$B896=\"Subscriber\",'Enrollment Form'!$C896=\"Enroll\",'Enrollment Form'!$AP896<>\"\"),\"Y\",\"N\")))","v":""},{"$f":"IF($B889=\"N\",\"\",IF(OR('Enrollment Form'!$B896<>\"Subscriber\",'Enrollment Form'!$C896=\"ROC\"),\"-\",IF(AND('Enrollment Form'!$B896=\"Subscriber\",'Enrollment Form'!$C896=\"Enroll\",'Enrollment Form'!$AQ896<>\"\"),\"Y\",\"N\")))","v":""},{"$f":"IF($B889=\"N\",\"\",IF(OR('Enrollment Form'!$B896<>\"Subscriber\",'Enrollment Form'!$C896=\"ROC\"),\"-\",IF(AND('Enrollment Form'!$B896=\"Subscriber\",'Enrollment Form'!$C896=\"Enroll\",'Enrollment Form'!$AS896<>\"\"),\"Y\",\"N\")))","v":""},{"$f":"IF($B889=\"N\",\"\",IF($Q889=\"-\",\"-\",IF(AND($Q889=\"Y\",'Enrollment Form'!$AS896=\"No\"),\"-\",IF(AND($Q889=\"Y\",'Enrollment Form'!$AS896=\"Yes\",'Enrollment Form'!$AT896<>\"\"),\"Y\",\"N\"))))","v":""},{"$f":"IF($B889=\"N\",\"\",IF(OR('Enrollment Form'!$B896<>\"Subscriber\",'Enrollment Form'!$C896=\"ROC\"),\"-\",IF(AND('Enrollment Form'!$B896=\"Subscriber\",'Enrollment Form'!$C896=\"Enroll\",'Enrollment Form'!$CV896<>\"\"),\"Y\",\"N\")))","v":""},{"$f":"IF($B889=\"N\",\"\",IF($S889=\"-\",\"-\",IF(AND($S889=\"Y\",'Enrollment Form'!$CV896=\"No\"),\"-\",IF(AND($S889=\"Y\",'Enrollment Form'!$CV896=\"Yes\",'Enrollment Form'!$CW896<>\"\"),\"Y\",\"N\"))))","v":""},{"$f":"IF(OR('Enrollment Form'!$AY896=\"Yes\",'Enrollment Form'!$AY896=\"\"),\"-\",IF(OR(AND('Enrollment Form'!$AY896=\"No\",ISERROR(FIND(\"HMO\",VLOOKUP('Enrollment Form'!G896,'Enrollment Form'!H$11:J$1000,3,FALSE),1))=FALSE,COUNTA('Enrollment Form'!$AZ896:$BC896)=4),AND('Enrollment Form'!$AY896=\"No\",ISERROR(FIND(\"HMO\",VLOOKUP('Enrollment Form'!G896,'Enrollment Form'!H$11:J$1000,3,FALSE),1))=FALSE,COUNTA('Enrollment Form'!$BT896:$BW896)=4)),\"Y\",\"N\"))","v":"-"},{"$f":"IF($B889=\"N\",\"\",IF('Enrollment Form'!$B896=\"Subscriber\",\"-\",IF(COUNTA('Enrollment Form'!$BL896,'Enrollment Form'!$BN896)=2,\"Y\",\"N\")))","v":""},{"$f":"IF($B889=\"N\",\"\",IF(OR('Enrollment Form'!$AX896=\"\",'Enrollment Form'!$AX896=\"No\"),\"-\",IF(AND('Enrollment Form'!$AX896=\"Yes\",COUNTA('Enrollment Form'!$CR896)=1),\"Y\",\"N\")))","v":""},{"$f":"IF(OR('Enrollment Form'!$CR896=\"\",'Enrollment Form'!$CR896=\"No\"),\"-\",IF(COUNTA('Enrollment Form'!$CT896:$CU896)=2,\"Y\",\"N\"))","v":"-"},{"$f":"IF($B889=\"N\",\"\",IF(COUNTIF('Enrollment Form'!$DG896:$DP896,\"Other\")=COUNTA('Enrollment Form'!$DK896,'Enrollment Form'!$DH896,'Enrollment Form'!$DN896,'Enrollment Form'!$DQ896),\"Y\",\"N\"))","v":""},{"$f":"IF($B889=\"N\",\"\",IF(OR('Enrollment Form'!B896<>\"Subscriber\",'Enrollment Form'!C896=\"ROC\",COUNTIF('Enrollment Form'!AV896:AW896,\"Yes\")>=1),\"-\",IF(AND('Enrollment Form'!C896=\"Enroll\",COUNTIF('Enrollment Form'!AV896:AW896,\"No\")=2,'Enrollment Form'!AX896=\"\"),\"N\",\"Y\")))","v":""},{"$f":"IF(OR(B889=\"N\",'Enrollment Form'!B896<>\"Subscriber\",'Enrollment Form'!C896=\"ROC\",'Enrollment Form'!O896<>\"Multiple of Salary\"),\"-\",IF(COUNTA('Enrollment Form'!T896:U896)<2,\"N\",\"Y\"))","v":"-"},{"$f":"IF(B889=\"N\",\"\",IF(OR('Enrollment Form'!C896=\"ROC\",'Enrollment Form'!B896<>\"Subscriber\",'Enrollment Form'!O896=\"Waive\",'Enrollment Form'!O896=\"\"),\"-\",IF('Enrollment Form'!P896=\"\",\"N\",\"Y\")))","v":""},{"$f":"IF($B889=\"N\",\"\",IF(AND('Enrollment Form'!$C896=\"ROC\",'Enrollment Form'!$DR896<>\"\"),\"Y\",IF(AND('Enrollment Form'!$C896=\"ROC\",'Enrollment Form'!$DR896=\"\"),\"N\",IF(AND('Enrollment Form'!$C896=\"Enroll\",'Enrollment Form'!$B896=\"Subscriber\",'Enrollment Form'!$CX896=\"No\",'Enrollment Form'!$DR896=\"\"),\"N\",IF(AND('Enrollment Form'!$C896=\"Enroll\",'Enrollment Form'!$B896=\"Subscriber\",'Enrollment Form'!$CX896=\"Yes\"),\"-\",\"Y\")))))","v":""},{"$f":"IF($B889=\"N\",\"\",IF(AND('Enrollment Form'!$C896=\"ROC\",'Enrollment Form'!$DS896<>\"\"),\"Y\",IF(AND('Enrollment Form'!$C896=\"ROC\",'Enrollment Form'!$DS896=\"\"),\"N\",IF(AND('Enrollment Form'!$C896=\"Enroll\",'Enrollment Form'!$B896=\"Subscriber\",'Enrollment Form'!$CX896=\"No\",'Enrollment Form'!$DS896=\"\"),\"N\",IF(AND('Enrollment Form'!$C896=\"Enroll\",'Enrollment Form'!$B896=\"Subscriber\",'Enrollment Form'!$CX896=\"Yes\"),\"-\",\"Y\")))))","v":""},{"$f":"IF('Enrollment Form'!AH896=\"\",\"\",IF(ISERROR(SEARCH(\".\",'Enrollment Form'!AH896,SEARCH(\"@\",'Enrollment Form'!AH896))),\"N\",\"Y\"))","v":""},{"$f":"IF(OR($B889=\"N\",'Enrollment Form'!$G896=\"\"),\"\",IF('Enrollment Form'!$B896<>\"Subscriber\",\"-\",IF(COUNTIF('Enrollment Form'!$AV896:$AW896,\"Yes\")=2,\"N\",\"Y\")))","v":""},{"$f":"IF(OR('Enrollment Form'!$CJ896=\"\",'Enrollment Form'!$CJ896=\"No\"),\"-\",IF(AND('Enrollment Form'!$CJ896=\"Yes\",'Enrollment Form'!$CK896=\"\"),\"N\",\"Y\"))","v":"-"},{"$f":"IF(OR('Enrollment Form'!$CL896=\"\",'Enrollment Form'!$CL896=\"No\"),\"-\",IF(AND('Enrollment Form'!$CL896=\"Yes\",'Enrollment Form'!$CM896=\"\"),\"N\",\"Y\"))","v":"-"},{"$f":"IF(OR('Enrollment Form'!$CN896=\"\",'Enrollment Form'!$CN896=\"No\"),\"-\",IF(AND('Enrollment Form'!$CN896=\"Yes\",'Enrollment Form'!$CO896=\"\"),\"N\",\"Y\"))","v":"-"},{"$f":"IF(OR('Enrollment Form'!$CN896=\"\",'Enrollment Form'!$CN896=\"No\"),\"-\",IF(AND('Enrollment Form'!$CN896=\"Yes\",'Enrollment Form'!$CP896=\"\"),\"N\",\"Y\"))","v":"-"},{"$f":"IF('Enrollment Form'!B896<>\"Subscriber\",\"-\",IF(AND('Enrollment Form'!B896=\"Subscriber\",'Enrollment Form'!C896=\"Enroll\",'Enrollment Form'!AA896=\"\"),\"N\",\"Y\"))","v":"-"},{"$f":"IF(OR('Enrollment Form'!B896=\"Subscriber\",'Enrollment Form'!B896=\"\"),\"-\",IF('Enrollment Form'!BP896=\"\",\"N\",\"Y\"))","v":"-"},{"$f":"IF('Enrollment Form'!B896<>\"Subscriber\",\"-\",IF(AND('Enrollment Form'!B896=\"Subscriber\",'Enrollment Form'!G896=\"\"),\"N\",\"Y\"))","v":"-"},{"$f":"IF('Enrollment Form'!A896=\"\",\"\",IF('Enrollment Form'!B896=\"Subscriber\",\"-\",IF(AND('Enrollment Form'!B896<>\"Subscriber\",'Enrollment Form'!G896='Enrollment Form'!H896),\"N\",\"Y\")))","v":""},0]
[897,{"$f":"IF('Enrollment Form'!$A897<>\"\",\"Y\",\"N\")","v":"N"},{"$f":"IF(AND('Enrollment Form'!$B897=\"\",'Enrollment Form'!$C897<>\"\"),\"N\",IF($B890=\"N\",\"\",\"Y\"))","v":""},{"$f":"IF(OR($B890=\"N\",'Enrollment Form'!G897=\"\"),\"\",IF('Enrollment Form'!$B897<>\"Subscriber\",\"\",IF('Enrollment Form'!$G897='Enrollment Form'!$H897,\"Y\",\"N\")))","v":""},{"$f":"IF($B890=\"N\",\"\",IF(AND(COUNTIFS('Enrollment Form'!$H$11:$H$1000,'Enrollment Form'!$H897,'Enrollment Form'!$B$11:$B$1000,'Enrollment Form'!$B897)>1,'Enrollment Form'!$H897<>\"\"),\"N\",\"Y\"))","v":""},{"$f":"IF($B890=\"N\",\"\",IF(LEN('Enrollment Form'!$Y897)=0,\"\",IF(LEN('Enrollment Form'!$Y897)<>5,\"N\",\"Y\")))","v":""},{"$f":"IF($B890=\"N\",\"\",IF(LEN('Enrollment Form'!$AD897=0),\"\",IF(LEN('Enrollment Form'!$AD897)<>5,\"N\",\"Y\")))","v":""},{"$f":"IF($B890=\"N\",\"\",IF(LEN('Enrollment Form'!$BS897=0),\"\",IF(LEN('Enrollment Form'!$BS897)<>5,\"N\",\"Y\")))","v":""},{"$f":"IF($B890=\"N\",\"\",IF(LEN('Enrollment Form'!$AE897)=0,\"\",IF(LEN('Enrollment Form'!$AE897)<>10,\"N\",\"Y\")))","v":""},{"$f":"IF($B890=\"N\",\"\",IF(LEN('Enrollment Form'!$AF897)=0,\"\",IF(LEN('Enrollment Form'!$AF897)<>10,\"N\",\"Y\")))","v":""},{"$f":"IF('Enrollment Form'!$O897<>\"Graded\",\"-\",IF(AND('Enrollment Form'!$O897=\"Graded\",'Enrollment Form'!$AR897<>\"\"),\"Y\",\"N\"))","v":"-"},{"$f":"IF($B890=\"N\",\"\",IF(OR('Enrollment Form'!$B897<>\"Subscriber\",'Enrollment Form'!$C897=\"ROC\"),\"-\",IF(AND('Enrollment Form'!$B897=\"Subscriber\",'Enrollment Form'!$C897=\"Enroll\",'Enrollment Form'!$AJ897<>\"\"),\"Y\",\"N\")))","v":""},{"$f":"IF($B890=\"N\",\"\",IF(OR('Enrollment Form'!$B897<>\"Subscriber\",'Enrollment Form'!$C897=\"ROC\"),\"-\",IF(AND('Enrollment Form'!$B897=\"Subscriber\",'Enrollment Form'!$C897=\"Enroll\",'Enrollment Form'!$AK897<>\"\"),\"Y\",\"N\")))","v":""},{"$f":"IF($B890=\"N\",\"\",IF(OR('Enrollment Form'!$B897<>\"Subscriber\",'Enrollment Form'!$C897=\"ROC\"),\"-\",IF(AND('Enrollment Form'!$B897=\"Subscriber\",'Enrollment Form'!$C897=\"Enroll\",'Enrollment Form'!$AL897<>\"\"),\"Y\",\"N\")))","v":""},{"$f":"IF($B890=\"N\",\"\",IF(OR('Enrollment Form'!$B897<>\"Subscriber\",'Enrollment Form'!$C897=\"ROC\"),\"-\",IF(AND('Enrollment Form'!$B897=\"Subscriber\",'Enrollment Form'!$C897=\"Enroll\",'Enrollment Form'!$AP897<>\"\"),\"Y\",\"N\")))","v":""},{"$f":"IF($B890=\"N\",\"\",IF(OR('Enrollment Form'!$B897<>\"Subscriber\",'Enrollment Form'!$C897=\"ROC\"),\"-\",IF(AND('Enrollment Form'!$B897=\"Subscriber\",'Enrollment Form'!$C897=\"Enroll\",'Enrollment Form'!$AQ897<>\"\"),\"Y\",\"N\")))","v":""},{"$f":"IF($B890=\"N\",\"\",IF(OR('Enrollment Form'!$B897<>\"Subscriber\",'Enrollment Form'!$C897=\"ROC\"),\"-\",IF(AND('Enrollment Form'!$B897=\"Subscriber\",'Enrollment Form'!$C897=\"Enroll\",'Enrollment Form'!$AS897<>\"\"),\"Y\",\"N\")))","v":""},{"$f":"IF($B890=\"N\",\"\",IF($Q890=\"-\",\"-\",IF(AND($Q890=\"Y\",'Enrollment Form'!$AS897=\"No\"),\"-\",IF(AND($Q890=\"Y\",'Enrollment Form'!$AS897=\"Yes\",'Enrollment Form'!$AT897<>\"\"),\"Y\",\"N\"))))","v":""},{"$f":"IF($B890=\"N\",\"\",IF(OR('Enrollment Form'!$B897<>\"Subscriber\",'Enrollment Form'!$C897=\"ROC\"),\"-\",IF(AND('Enrollment Form'!$B897=\"Subscriber\",'Enrollment Form'!$C897=\"Enroll\",'Enrollment Form'!$CV897<>\"\"),\"Y\",\"N\")))","v":""},{"$f":"IF($B890=\"N\",\"\",IF($S890=\"-\",\"-\",IF(AND($S890=\"Y\",'Enrollment Form'!$CV897=\"No\"),\"-\",IF(AND($S890=\"Y\",'Enrollment Form'!$CV897=\"Yes\",'Enrollment Form'!$CW897<>\"\"),\"Y\",\"N\"))))","v":""},{"$f":"IF(OR('Enrollment Form'!$AY897=\"Yes\",'Enrollment Form'!$AY897=\"\"),\"-\",IF(OR(AND('Enrollment Form'!$AY897=\"No\",ISERROR(FIND(\"HMO\",VLOOKUP('Enrollment Form'!G897,'Enrollment Form'!H$11:J$1000,3,FALSE),1))=FALSE,COUNTA('Enrollment Form'!$AZ897:$BC897)=4),AND('Enrollment Form'!$AY897=\"No\",ISERROR(FIND(\"HMO\",VLOOKUP('Enrollment Form'!G897,'Enrollment Form'!H$11:J$1000,3,FALSE),1))=FALSE,COUNTA('Enrollment Form'!$BT897:$BW897)=4)),\"Y\",\"N\"))","v":"-"},{"$f":"IF($B890=\"N\",\"\",IF('Enrollment Form'!$B897=\"Subscriber\",\"-\",IF(COUNTA('Enrollment Form'!$BL897,'Enrollment Form'!$BN897)=2,\"Y\",\"N\")))","v":""},{"$f":"IF($B890=\"N\",\"\",IF(OR('Enrollment Form'!$AX897=\"\",'Enrollment Form'!$AX897=\"No\"),\"-\",IF(AND('Enrollment Form'!$AX897=\"Yes\",COUNTA('Enrollment Form'!$CR897)=1),\"Y\",\"N\")))","v":""},{"$f":"IF(OR('Enrollment Form'!$CR897=\"\",'Enrollment Form'!$CR897=\"No\"),\"-\",IF(COUNTA('Enrollment Form'!$CT897:$CU897)=2,\"Y\",\"N\"))","v":"-"},{"$f":"IF($B890=\"N\",\"\",IF(COUNTIF('Enrollment Form'!$DG897:$DP897,\"Other\")=COUNTA('Enrollment Form'!$DK897,'Enrollment Form'!$DH897,'Enrollment Form'!$DN897,'Enrollment Form'!$DQ897),\"Y\",\"N\"))","v":""},{"$f":"IF($B890=\"N\",\"\",IF(OR('Enrollment Form'!B897<>\"Subscriber\",'Enrollment Form'!C897=\"ROC\",COUNTIF('Enrollment Form'!AV897:AW897,\"Yes\")>=1),\"-\",IF(AND('Enrollment Form'!C897=\"Enroll\",COUNTIF('Enrollment Form'!AV897:AW897,\"No\")=2,'Enrollment Form'!AX897=\"\"),\"N\",\"Y\")))","v":""},{"$f":"IF(OR(B890=\"N\",'Enrollment Form'!B897<>\"Subscriber\",'Enrollment Form'!C897=\"ROC\",'Enrollment Form'!O897<>\"Multiple of Salary\"),\"-\",IF(COUNTA('Enrollment Form'!T897:U897)<2,\"N\",\"Y\"))","v":"-"},{"$f":"IF(B890=\"N\",\"\",IF(OR('Enrollment Form'!C897=\"ROC\",'Enrollment Form'!B897<>\"Subscriber\",'Enrollment Form'!O897=\"Waive\",'Enrollment Form'!O897=\"\"),\"-\",IF('Enrollment Form'!P897=\"\",\"N\",\"Y\")))","v":""},{"$f":"IF($B890=\"N\",\"\",IF(AND('Enrollment Form'!$C897=\"ROC\",'Enrollment Form'!$DR897<>\"\"),\"Y\",IF(AND('Enrollment Form'!$C897=\"ROC\",'Enrollment Form'!$DR897=\"\"),\"N\",IF(AND('Enrollment Form'!$C897=\"Enroll\",'Enrollment Form'!$B897=\"Subscriber\",'Enrollment Form'!$CX897=\"No\",'Enrollment Form'!$DR897=\"\"),\"N\",IF(AND('Enrollment Form'!$C897=\"Enroll\",'Enrollment Form'!$B897=\"Subscriber\",'Enrollment Form'!$CX897=\"Yes\"),\"-\",\"Y\")))))","v":""},{"$f":"IF($B890=\"N\",\"\",IF(AND('Enrollment Form'!$C897=\"ROC\",'Enrollment Form'!$DS897<>\"\"),\"Y\",IF(AND('Enrollment Form'!$C897=\"ROC\",'Enrollment Form'!$DS897=\"\"),\"N\",IF(AND('Enrollment Form'!$C897=\"Enroll\",'Enrollment Form'!$B897=\"Subscriber\",'Enrollment Form'!$CX897=\"No\",'Enrollment Form'!$DS897=\"\"),\"N\",IF(AND('Enrollment Form'!$C897=\"Enroll\",'Enrollment Form'!$B897=\"Subscriber\",'Enrollment Form'!$CX897=\"Yes\"),\"-\",\"Y\")))))","v":""},{"$f":"IF('Enrollment Form'!AH897=\"\",\"\",IF(ISERROR(SEARCH(\".\",'Enrollment Form'!AH897,SEARCH(\"@\",'Enrollment Form'!AH897))),\"N\",\"Y\"))","v":""},{"$f":"IF(OR($B890=\"N\",'Enrollment Form'!$G897=\"\"),\"\",IF('Enrollment Form'!$B897<>\"Subscriber\",\"-\",IF(COUNTIF('Enrollment Form'!$AV897:$AW897,\"Yes\")=2,\"N\",\"Y\")))","v":""},{"$f":"IF(OR('Enrollment Form'!$CJ897=\"\",'Enrollment Form'!$CJ897=\"No\"),\"-\",IF(AND('Enrollment Form'!$CJ897=\"Yes\",'Enrollment Form'!$CK897=\"\"),\"N\",\"Y\"))","v":"-"},{"$f":"IF(OR('Enrollment Form'!$CL897=\"\",'Enrollment Form'!$CL897=\"No\"),\"-\",IF(AND('Enrollment Form'!$CL897=\"Yes\",'Enrollment Form'!$CM897=\"\"),\"N\",\"Y\"))","v":"-"},{"$f":"IF(OR('Enrollment Form'!$CN897=\"\",'Enrollment Form'!$CN897=\"No\"),\"-\",IF(AND('Enrollment Form'!$CN897=\"Yes\",'Enrollment Form'!$CO897=\"\"),\"N\",\"Y\"))","v":"-"},{"$f":"IF(OR('Enrollment Form'!$CN897=\"\",'Enrollment Form'!$CN897=\"No\"),\"-\",IF(AND('Enrollment Form'!$CN897=\"Yes\",'Enrollment Form'!$CP897=\"\"),\"N\",\"Y\"))","v":"-"},{"$f":"IF('Enrollment Form'!B897<>\"Subscriber\",\"-\",IF(AND('Enrollment Form'!B897=\"Subscriber\",'Enrollment Form'!C897=\"Enroll\",'Enrollment Form'!AA897=\"\"),\"N\",\"Y\"))","v":"-"},{"$f":"IF(OR('Enrollment Form'!B897=\"Subscriber\",'Enrollment Form'!B897=\"\"),\"-\",IF('Enrollment Form'!BP897=\"\",\"N\",\"Y\"))","v":"-"},{"$f":"IF('Enrollment Form'!B897<>\"Subscriber\",\"-\",IF(AND('Enrollment Form'!B897=\"Subscriber\",'Enrollment Form'!G897=\"\"),\"N\",\"Y\"))","v":"-"},{"$f":"IF('Enrollment Form'!A897=\"\",\"\",IF('Enrollment Form'!B897=\"Subscriber\",\"-\",IF(AND('Enrollment Form'!B897<>\"Subscriber\",'Enrollment Form'!G897='Enrollment Form'!H897),\"N\",\"Y\")))","v":""},0]
[898,{"$f":"IF('Enrollment Form'!$A898<>\"\",\"Y\",\"N\")","v":"N"},{"$f":"IF(AND('Enrollment Form'!$B898=\"\",'Enrollment Form'!$C898<>\"\"),\"N\",IF($B891=\"N\",\"\",\"Y\"))","v":""},{"$f":"IF(OR($B891=\"N\",'Enrollment Form'!G898=\"\"),\"\",IF('Enrollment Form'!$B898<>\"Subscriber\",\"\",IF('Enrollment Form'!$G898='Enrollment Form'!$H898,\"Y\",\"N\")))","v":""},{"$f":"IF($B891=\"N\",\"\",IF(AND(COUNTIFS('Enrollment Form'!$H$11:$H$1000,'Enrollment Form'!$H898,'Enrollment Form'!$B$11:$B$1000,'Enrollment Form'!$B898)>1,'Enrollment Form'!$H898<>\"\"),\"N\",\"Y\"))","v":""},{"$f":"IF($B891=\"N\",\"\",IF(LEN('Enrollment Form'!$Y898)=0,\"\",IF(LEN('Enrollment Form'!$Y898)<>5,\"N\",\"Y\")))","v":""},{"$f":"IF($B891=\"N\",\"\",IF(LEN('Enrollment Form'!$AD898=0),\"\",IF(LEN('Enrollment Form'!$AD898)<>5,\"N\",\"Y\")))","v":""},{"$f":"IF($B891=\"N\",\"\",IF(LEN('Enrollment Form'!$BS898=0),\"\",IF(LEN('Enrollment Form'!$BS898)<>5,\"N\",\"Y\")))","v":""},{"$f":"IF($B891=\"N\",\"\",IF(LEN('Enrollment Form'!$AE898)=0,\"\",IF(LEN('Enrollment Form'!$AE898)<>10,\"N\",\"Y\")))","v":""},{"$f":"IF($B891=\"N\",\"\",IF(LEN('Enrollment Form'!$AF898)=0,\"\",IF(LEN('Enrollment Form'!$AF898)<>10,\"N\",\"Y\")))","v":""},{"$f":"IF('Enrollment Form'!$O898<>\"Graded\",\"-\",IF(AND('Enrollment Form'!$O898=\"Graded\",'Enrollment Form'!$AR898<>\"\"),\"Y\",\"N\"))","v":"-"},{"$f":"IF($B891=\"N\",\"\",IF(OR('Enrollment Form'!$B898<>\"Subscriber\",'Enrollment Form'!$C898=\"ROC\"),\"-\",IF(AND('Enrollment Form'!$B898=\"Subscriber\",'Enrollment Form'!$C898=\"Enroll\",'Enrollment Form'!$AJ898<>\"\"),\"Y\",\"N\")))","v":""},{"$f":"IF($B891=\"N\",\"\",IF(OR('Enrollment Form'!$B898<>\"Subscriber\",'Enrollment Form'!$C898=\"ROC\"),\"-\",IF(AND('Enrollment Form'!$B898=\"Subscriber\",'Enrollment Form'!$C898=\"Enroll\",'Enrollment Form'!$AK898<>\"\"),\"Y\",\"N\")))","v":""},{"$f":"IF($B891=\"N\",\"\",IF(OR('Enrollment Form'!$B898<>\"Subscriber\",'Enrollment Form'!$C898=\"ROC\"),\"-\",IF(AND('Enrollment Form'!$B898=\"Subscriber\",'Enrollment Form'!$C898=\"Enroll\",'Enrollment Form'!$AL898<>\"\"),\"Y\",\"N\")))","v":""},{"$f":"IF($B891=\"N\",\"\",IF(OR('Enrollment Form'!$B898<>\"Subscriber\",'Enrollment Form'!$C898=\"ROC\"),\"-\",IF(AND('Enrollment Form'!$B898=\"Subscriber\",'Enrollment Form'!$C898=\"Enroll\",'Enrollment Form'!$AP898<>\"\"),\"Y\",\"N\")))","v":""},{"$f":"IF($B891=\"N\",\"\",IF(OR('Enrollment Form'!$B898<>\"Subscriber\",'Enrollment Form'!$C898=\"ROC\"),\"-\",IF(AND('Enrollment Form'!$B898=\"Subscriber\",'Enrollment Form'!$C898=\"Enroll\",'Enrollment Form'!$AQ898<>\"\"),\"Y\",\"N\")))","v":""},{"$f":"IF($B891=\"N\",\"\",IF(OR('Enrollment Form'!$B898<>\"Subscriber\",'Enrollment Form'!$C898=\"ROC\"),\"-\",IF(AND('Enrollment Form'!$B898=\"Subscriber\",'Enrollment Form'!$C898=\"Enroll\",'Enrollment Form'!$AS898<>\"\"),\"Y\",\"N\")))","v":""},{"$f":"IF($B891=\"N\",\"\",IF($Q891=\"-\",\"-\",IF(AND($Q891=\"Y\",'Enrollment Form'!$AS898=\"No\"),\"-\",IF(AND($Q891=\"Y\",'Enrollment Form'!$AS898=\"Yes\",'Enrollment Form'!$AT898<>\"\"),\"Y\",\"N\"))))","v":""},{"$f":"IF($B891=\"N\",\"\",IF(OR('Enrollment Form'!$B898<>\"Subscriber\",'Enrollment Form'!$C898=\"ROC\"),\"-\",IF(AND('Enrollment Form'!$B898=\"Subscriber\",'Enrollment Form'!$C898=\"Enroll\",'Enrollment Form'!$CV898<>\"\"),\"Y\",\"N\")))","v":""},{"$f":"IF($B891=\"N\",\"\",IF($S891=\"-\",\"-\",IF(AND($S891=\"Y\",'Enrollment Form'!$CV898=\"No\"),\"-\",IF(AND($S891=\"Y\",'Enrollment Form'!$CV898=\"Yes\",'Enrollment Form'!$CW898<>\"\"),\"Y\",\"N\"))))","v":""},{"$f":"IF(OR('Enrollment Form'!$AY898=\"Yes\",'Enrollment Form'!$AY898=\"\"),\"-\",IF(OR(AND('Enrollment Form'!$AY898=\"No\",ISERROR(FIND(\"HMO\",VLOOKUP('Enrollment Form'!G898,'Enrollment Form'!H$11:J$1000,3,FALSE),1))=FALSE,COUNTA('Enrollment Form'!$AZ898:$BC898)=4),AND('Enrollment Form'!$AY898=\"No\",ISERROR(FIND(\"HMO\",VLOOKUP('Enrollment Form'!G898,'Enrollment Form'!H$11:J$1000,3,FALSE),1))=FALSE,COUNTA('Enrollment Form'!$BT898:$BW898)=4)),\"Y\",\"N\"))","v":"-"},{"$f":"IF($B891=\"N\",\"\",IF('Enrollment Form'!$B898=\"Subscriber\",\"-\",IF(COUNTA('Enrollment Form'!$BL898,'Enrollment Form'!$BN898)=2,\"Y\",\"N\")))","v":""},{"$f":"IF($B891=\"N\",\"\",IF(OR('Enrollment Form'!$AX898=\"\",'Enrollment Form'!$AX898=\"No\"),\"-\",IF(AND('Enrollment Form'!$AX898=\"Yes\",COUNTA('Enrollment Form'!$CR898)=1),\"Y\",\"N\")))","v":""},{"$f":"IF(OR('Enrollment Form'!$CR898=\"\",'Enrollment Form'!$CR898=\"No\"),\"-\",IF(COUNTA('Enrollment Form'!$CT898:$CU898)=2,\"Y\",\"N\"))","v":"-"},{"$f":"IF($B891=\"N\",\"\",IF(COUNTIF('Enrollment Form'!$DG898:$DP898,\"Other\")=COUNTA('Enrollment Form'!$DK898,'Enrollment Form'!$DH898,'Enrollment Form'!$DN898,'Enrollment Form'!$DQ898),\"Y\",\"N\"))","v":""},{"$f":"IF($B891=\"N\",\"\",IF(OR('Enrollment Form'!B898<>\"Subscriber\",'Enrollment Form'!C898=\"ROC\",COUNTIF('Enrollment Form'!AV898:AW898,\"Yes\")>=1),\"-\",IF(AND('Enrollment Form'!C898=\"Enroll\",COUNTIF('Enrollment Form'!AV898:AW898,\"No\")=2,'Enrollment Form'!AX898=\"\"),\"N\",\"Y\")))","v":""},{"$f":"IF(OR(B891=\"N\",'Enrollment Form'!B898<>\"Subscriber\",'Enrollment Form'!C898=\"ROC\",'Enrollment Form'!O898<>\"Multiple of Salary\"),\"-\",IF(COUNTA('Enrollment Form'!T898:U898)<2,\"N\",\"Y\"))","v":"-"},{"$f":"IF(B891=\"N\",\"\",IF(OR('Enrollment Form'!C898=\"ROC\",'Enrollment Form'!B898<>\"Subscriber\",'Enrollment Form'!O898=\"Waive\",'Enrollment Form'!O898=\"\"),\"-\",IF('Enrollment Form'!P898=\"\",\"N\",\"Y\")))","v":""},{"$f":"IF($B891=\"N\",\"\",IF(AND('Enrollment Form'!$C898=\"ROC\",'Enrollment Form'!$DR898<>\"\"),\"Y\",IF(AND('Enrollment Form'!$C898=\"ROC\",'Enrollment Form'!$DR898=\"\"),\"N\",IF(AND('Enrollment Form'!$C898=\"Enroll\",'Enrollment Form'!$B898=\"Subscriber\",'Enrollment Form'!$CX898=\"No\",'Enrollment Form'!$DR898=\"\"),\"N\",IF(AND('Enrollment Form'!$C898=\"Enroll\",'Enrollment Form'!$B898=\"Subscriber\",'Enrollment Form'!$CX898=\"Yes\"),\"-\",\"Y\")))))","v":""},{"$f":"IF($B891=\"N\",\"\",IF(AND('Enrollment Form'!$C898=\"ROC\",'Enrollment Form'!$DS898<>\"\"),\"Y\",IF(AND('Enrollment Form'!$C898=\"ROC\",'Enrollment Form'!$DS898=\"\"),\"N\",IF(AND('Enrollment Form'!$C898=\"Enroll\",'Enrollment Form'!$B898=\"Subscriber\",'Enrollment Form'!$CX898=\"No\",'Enrollment Form'!$DS898=\"\"),\"N\",IF(AND('Enrollment Form'!$C898=\"Enroll\",'Enrollment Form'!$B898=\"Subscriber\",'Enrollment Form'!$CX898=\"Yes\"),\"-\",\"Y\")))))","v":""},{"$f":"IF('Enrollment Form'!AH898=\"\",\"\",IF(ISERROR(SEARCH(\".\",'Enrollment Form'!AH898,SEARCH(\"@\",'Enrollment Form'!AH898))),\"N\",\"Y\"))","v":""},{"$f":"IF(OR($B891=\"N\",'Enrollment Form'!$G898=\"\"),\"\",IF('Enrollment Form'!$B898<>\"Subscriber\",\"-\",IF(COUNTIF('Enrollment Form'!$AV898:$AW898,\"Yes\")=2,\"N\",\"Y\")))","v":""},{"$f":"IF(OR('Enrollment Form'!$CJ898=\"\",'Enrollment Form'!$CJ898=\"No\"),\"-\",IF(AND('Enrollment Form'!$CJ898=\"Yes\",'Enrollment Form'!$CK898=\"\"),\"N\",\"Y\"))","v":"-"},{"$f":"IF(OR('Enrollment Form'!$CL898=\"\",'Enrollment Form'!$CL898=\"No\"),\"-\",IF(AND('Enrollment Form'!$CL898=\"Yes\",'Enrollment Form'!$CM898=\"\"),\"N\",\"Y\"))","v":"-"},{"$f":"IF(OR('Enrollment Form'!$CN898=\"\",'Enrollment Form'!$CN898=\"No\"),\"-\",IF(AND('Enrollment Form'!$CN898=\"Yes\",'Enrollment Form'!$CO898=\"\"),\"N\",\"Y\"))","v":"-"},{"$f":"IF(OR('Enrollment Form'!$CN898=\"\",'Enrollment Form'!$CN898=\"No\"),\"-\",IF(AND('Enrollment Form'!$CN898=\"Yes\",'Enrollment Form'!$CP898=\"\"),\"N\",\"Y\"))","v":"-"},{"$f":"IF('Enrollment Form'!B898<>\"Subscriber\",\"-\",IF(AND('Enrollment Form'!B898=\"Subscriber\",'Enrollment Form'!C898=\"Enroll\",'Enrollment Form'!AA898=\"\"),\"N\",\"Y\"))","v":"-"},{"$f":"IF(OR('Enrollment Form'!B898=\"Subscriber\",'Enrollment Form'!B898=\"\"),\"-\",IF('Enrollment Form'!BP898=\"\",\"N\",\"Y\"))","v":"-"},{"$f":"IF('Enrollment Form'!B898<>\"Subscriber\",\"-\",IF(AND('Enrollment Form'!B898=\"Subscriber\",'Enrollment Form'!G898=\"\"),\"N\",\"Y\"))","v":"-"},{"$f":"IF('Enrollment Form'!A898=\"\",\"\",IF('Enrollment Form'!B898=\"Subscriber\",\"-\",IF(AND('Enrollment Form'!B898<>\"Subscriber\",'Enrollment Form'!G898='Enrollment Form'!H898),\"N\",\"Y\")))","v":""},0]
[899,{"$f":"IF('Enrollment Form'!$A899<>\"\",\"Y\",\"N\")","v":"N"},{"$f":"IF(AND('Enrollment Form'!$B899=\"\",'Enrollment Form'!$C899<>\"\"),\"N\",IF($B892=\"N\",\"\",\"Y\"))","v":""},{"$f":"IF(OR($B892=\"N\",'Enrollment Form'!G899=\"\"),\"\",IF('Enrollment Form'!$B899<>\"Subscriber\",\"\",IF('Enrollment Form'!$G899='Enrollment Form'!$H899,\"Y\",\"N\")))","v":""},{"$f":"IF($B892=\"N\",\"\",IF(AND(COUNTIFS('Enrollment Form'!$H$11:$H$1000,'Enrollment Form'!$H899,'Enrollment Form'!$B$11:$B$1000,'Enrollment Form'!$B899)>1,'Enrollment Form'!$H899<>\"\"),\"N\",\"Y\"))","v":""},{"$f":"IF($B892=\"N\",\"\",IF(LEN('Enrollment Form'!$Y899)=0,\"\",IF(LEN('Enrollment Form'!$Y899)<>5,\"N\",\"Y\")))","v":""},{"$f":"IF($B892=\"N\",\"\",IF(LEN('Enrollment Form'!$AD899=0),\"\",IF(LEN('Enrollment Form'!$AD899)<>5,\"N\",\"Y\")))","v":""},{"$f":"IF($B892=\"N\",\"\",IF(LEN('Enrollment Form'!$BS899=0),\"\",IF(LEN('Enrollment Form'!$BS899)<>5,\"N\",\"Y\")))","v":""},{"$f":"IF($B892=\"N\",\"\",IF(LEN('Enrollment Form'!$AE899)=0,\"\",IF(LEN('Enrollment Form'!$AE899)<>10,\"N\",\"Y\")))","v":""},{"$f":"IF($B892=\"N\",\"\",IF(LEN('Enrollment Form'!$AF899)=0,\"\",IF(LEN('Enrollment Form'!$AF899)<>10,\"N\",\"Y\")))","v":""},{"$f":"IF('Enrollment Form'!$O899<>\"Graded\",\"-\",IF(AND('Enrollment Form'!$O899=\"Graded\",'Enrollment Form'!$AR899<>\"\"),\"Y\",\"N\"))","v":"-"},{"$f":"IF($B892=\"N\",\"\",IF(OR('Enrollment Form'!$B899<>\"Subscriber\",'Enrollment Form'!$C899=\"ROC\"),\"-\",IF(AND('Enrollment Form'!$B899=\"Subscriber\",'Enrollment Form'!$C899=\"Enroll\",'Enrollment Form'!$AJ899<>\"\"),\"Y\",\"N\")))","v":""},{"$f":"IF($B892=\"N\",\"\",IF(OR('Enrollment Form'!$B899<>\"Subscriber\",'Enrollment Form'!$C899=\"ROC\"),\"-\",IF(AND('Enrollment Form'!$B899=\"Subscriber\",'Enrollment Form'!$C899=\"Enroll\",'Enrollment Form'!$AK899<>\"\"),\"Y\",\"N\")))","v":""},{"$f":"IF($B892=\"N\",\"\",IF(OR('Enrollment Form'!$B899<>\"Subscriber\",'Enrollment Form'!$C899=\"ROC\"),\"-\",IF(AND('Enrollment Form'!$B899=\"Subscriber\",'Enrollment Form'!$C899=\"Enroll\",'Enrollment Form'!$AL899<>\"\"),\"Y\",\"N\")))","v":""},{"$f":"IF($B892=\"N\",\"\",IF(OR('Enrollment Form'!$B899<>\"Subscriber\",'Enrollment Form'!$C899=\"ROC\"),\"-\",IF(AND('Enrollment Form'!$B899=\"Subscriber\",'Enrollment Form'!$C899=\"Enroll\",'Enrollment Form'!$AP899<>\"\"),\"Y\",\"N\")))","v":""},{"$f":"IF($B892=\"N\",\"\",IF(OR('Enrollment Form'!$B899<>\"Subscriber\",'Enrollment Form'!$C899=\"ROC\"),\"-\",IF(AND('Enrollment Form'!$B899=\"Subscriber\",'Enrollment Form'!$C899=\"Enroll\",'Enrollment Form'!$AQ899<>\"\"),\"Y\",\"N\")))","v":""},{"$f":"IF($B892=\"N\",\"\",IF(OR('Enrollment Form'!$B899<>\"Subscriber\",'Enrollment Form'!$C899=\"ROC\"),\"-\",IF(AND('Enrollment Form'!$B899=\"Subscriber\",'Enrollment Form'!$C899=\"Enroll\",'Enrollment Form'!$AS899<>\"\"),\"Y\",\"N\")))","v":""},{"$f":"IF($B892=\"N\",\"\",IF($Q892=\"-\",\"-\",IF(AND($Q892=\"Y\",'Enrollment Form'!$AS899=\"No\"),\"-\",IF(AND($Q892=\"Y\",'Enrollment Form'!$AS899=\"Yes\",'Enrollment Form'!$AT899<>\"\"),\"Y\",\"N\"))))","v":""},{"$f":"IF($B892=\"N\",\"\",IF(OR('Enrollment Form'!$B899<>\"Subscriber\",'Enrollment Form'!$C899=\"ROC\"),\"-\",IF(AND('Enrollment Form'!$B899=\"Subscriber\",'Enrollment Form'!$C899=\"Enroll\",'Enrollment Form'!$CV899<>\"\"),\"Y\",\"N\")))","v":""},{"$f":"IF($B892=\"N\",\"\",IF($S892=\"-\",\"-\",IF(AND($S892=\"Y\",'Enrollment Form'!$CV899=\"No\"),\"-\",IF(AND($S892=\"Y\",'Enrollment Form'!$CV899=\"Yes\",'Enrollment Form'!$CW899<>\"\"),\"Y\",\"N\"))))","v":""},{"$f":"IF(OR('Enrollment Form'!$AY899=\"Yes\",'Enrollment Form'!$AY899=\"\"),\"-\",IF(OR(AND('Enrollment Form'!$AY899=\"No\",ISERROR(FIND(\"HMO\",VLOOKUP('Enrollment Form'!G899,'Enrollment Form'!H$11:J$1000,3,FALSE),1))=FALSE,COUNTA('Enrollment Form'!$AZ899:$BC899)=4),AND('Enrollment Form'!$AY899=\"No\",ISERROR(FIND(\"HMO\",VLOOKUP('Enrollment Form'!G899,'Enrollment Form'!H$11:J$1000,3,FALSE),1))=FALSE,COUNTA('Enrollment Form'!$BT899:$BW899)=4)),\"Y\",\"N\"))","v":"-"},{"$f":"IF($B892=\"N\",\"\",IF('Enrollment Form'!$B899=\"Subscriber\",\"-\",IF(COUNTA('Enrollment Form'!$BL899,'Enrollment Form'!$BN899)=2,\"Y\",\"N\")))","v":""},{"$f":"IF($B892=\"N\",\"\",IF(OR('Enrollment Form'!$AX899=\"\",'Enrollment Form'!$AX899=\"No\"),\"-\",IF(AND('Enrollment Form'!$AX899=\"Yes\",COUNTA('Enrollment Form'!$CR899)=1),\"Y\",\"N\")))","v":""},{"$f":"IF(OR('Enrollment Form'!$CR899=\"\",'Enrollment Form'!$CR899=\"No\"),\"-\",IF(COUNTA('Enrollment Form'!$CT899:$CU899)=2,\"Y\",\"N\"))","v":"-"},{"$f":"IF($B892=\"N\",\"\",IF(COUNTIF('Enrollment Form'!$DG899:$DP899,\"Other\")=COUNTA('Enrollment Form'!$DK899,'Enrollment Form'!$DH899,'Enrollment Form'!$DN899,'Enrollment Form'!$DQ899),\"Y\",\"N\"))","v":""},{"$f":"IF($B892=\"N\",\"\",IF(OR('Enrollment Form'!B899<>\"Subscriber\",'Enrollment Form'!C899=\"ROC\",COUNTIF('Enrollment Form'!AV899:AW899,\"Yes\")>=1),\"-\",IF(AND('Enrollment Form'!C899=\"Enroll\",COUNTIF('Enrollment Form'!AV899:AW899,\"No\")=2,'Enrollment Form'!AX899=\"\"),\"N\",\"Y\")))","v":""},{"$f":"IF(OR(B892=\"N\",'Enrollment Form'!B899<>\"Subscriber\",'Enrollment Form'!C899=\"ROC\",'Enrollment Form'!O899<>\"Multiple of Salary\"),\"-\",IF(COUNTA('Enrollment Form'!T899:U899)<2,\"N\",\"Y\"))","v":"-"},{"$f":"IF(B892=\"N\",\"\",IF(OR('Enrollment Form'!C899=\"ROC\",'Enrollment Form'!B899<>\"Subscriber\",'Enrollment Form'!O899=\"Waive\",'Enrollment Form'!O899=\"\"),\"-\",IF('Enrollment Form'!P899=\"\",\"N\",\"Y\")))","v":""},{"$f":"IF($B892=\"N\",\"\",IF(AND('Enrollment Form'!$C899=\"ROC\",'Enrollment Form'!$DR899<>\"\"),\"Y\",IF(AND('Enrollment Form'!$C899=\"ROC\",'Enrollment Form'!$DR899=\"\"),\"N\",IF(AND('Enrollment Form'!$C899=\"Enroll\",'Enrollment Form'!$B899=\"Subscriber\",'Enrollment Form'!$CX899=\"No\",'Enrollment Form'!$DR899=\"\"),\"N\",IF(AND('Enrollment Form'!$C899=\"Enroll\",'Enrollment Form'!$B899=\"Subscriber\",'Enrollment Form'!$CX899=\"Yes\"),\"-\",\"Y\")))))","v":""},{"$f":"IF($B892=\"N\",\"\",IF(AND('Enrollment Form'!$C899=\"ROC\",'Enrollment Form'!$DS899<>\"\"),\"Y\",IF(AND('Enrollment Form'!$C899=\"ROC\",'Enrollment Form'!$DS899=\"\"),\"N\",IF(AND('Enrollment Form'!$C899=\"Enroll\",'Enrollment Form'!$B899=\"Subscriber\",'Enrollment Form'!$CX899=\"No\",'Enrollment Form'!$DS899=\"\"),\"N\",IF(AND('Enrollment Form'!$C899=\"Enroll\",'Enrollment Form'!$B899=\"Subscriber\",'Enrollment Form'!$CX899=\"Yes\"),\"-\",\"Y\")))))","v":""},{"$f":"IF('Enrollment Form'!AH899=\"\",\"\",IF(ISERROR(SEARCH(\".\",'Enrollment Form'!AH899,SEARCH(\"@\",'Enrollment Form'!AH899))),\"N\",\"Y\"))","v":""},{"$f":"IF(OR($B892=\"N\",'Enrollment Form'!$G899=\"\"),\"\",IF('Enrollment Form'!$B899<>\"Subscriber\",\"-\",IF(COUNTIF('Enrollment Form'!$AV899:$AW899,\"Yes\")=2,\"N\",\"Y\")))","v":""},{"$f":"IF(OR('Enrollment Form'!$CJ899=\"\",'Enrollment Form'!$CJ899=\"No\"),\"-\",IF(AND('Enrollment Form'!$CJ899=\"Yes\",'Enrollment Form'!$CK899=\"\"),\"N\",\"Y\"))","v":"-"},{"$f":"IF(OR('Enrollment Form'!$CL899=\"\",'Enrollment Form'!$CL899=\"No\"),\"-\",IF(AND('Enrollment Form'!$CL899=\"Yes\",'Enrollment Form'!$CM899=\"\"),\"N\",\"Y\"))","v":"-"},{"$f":"IF(OR('Enrollment Form'!$CN899=\"\",'Enrollment Form'!$CN899=\"No\"),\"-\",IF(AND('Enrollment Form'!$CN899=\"Yes\",'Enrollment Form'!$CO899=\"\"),\"N\",\"Y\"))","v":"-"},{"$f":"IF(OR('Enrollment Form'!$CN899=\"\",'Enrollment Form'!$CN899=\"No\"),\"-\",IF(AND('Enrollment Form'!$CN899=\"Yes\",'Enrollment Form'!$CP899=\"\"),\"N\",\"Y\"))","v":"-"},{"$f":"IF('Enrollment Form'!B899<>\"Subscriber\",\"-\",IF(AND('Enrollment Form'!B899=\"Subscriber\",'Enrollment Form'!C899=\"Enroll\",'Enrollment Form'!AA899=\"\"),\"N\",\"Y\"))","v":"-"},{"$f":"IF(OR('Enrollment Form'!B899=\"Subscriber\",'Enrollment Form'!B899=\"\"),\"-\",IF('Enrollment Form'!BP899=\"\",\"N\",\"Y\"))","v":"-"},{"$f":"IF('Enrollment Form'!B899<>\"Subscriber\",\"-\",IF(AND('Enrollment Form'!B899=\"Subscriber\",'Enrollment Form'!G899=\"\"),\"N\",\"Y\"))","v":"-"},{"$f":"IF('Enrollment Form'!A899=\"\",\"\",IF('Enrollment Form'!B899=\"Subscriber\",\"-\",IF(AND('Enrollment Form'!B899<>\"Subscriber\",'Enrollment Form'!G899='Enrollment Form'!H899),\"N\",\"Y\")))","v":""},0]
[900,{"$f":"IF('Enrollment Form'!$A900<>\"\",\"Y\",\"N\")","v":"N"},{"$f":"IF(AND('Enrollment Form'!$B900=\"\",'Enrollment Form'!$C900<>\"\"),\"N\",IF($B893=\"N\",\"\",\"Y\"))","v":""},{"$f":"IF(OR($B893=\"N\",'Enrollment Form'!G900=\"\"),\"\",IF('Enrollment Form'!$B900<>\"Subscriber\",\"\",IF('Enrollment Form'!$G900='Enrollment Form'!$H900,\"Y\",\"N\")))","v":""},{"$f":"IF($B893=\"N\",\"\",IF(AND(COUNTIFS('Enrollment Form'!$H$11:$H$1000,'Enrollment Form'!$H900,'Enrollment Form'!$B$11:$B$1000,'Enrollment Form'!$B900)>1,'Enrollment Form'!$H900<>\"\"),\"N\",\"Y\"))","v":""},{"$f":"IF($B893=\"N\",\"\",IF(LEN('Enrollment Form'!$Y900)=0,\"\",IF(LEN('Enrollment Form'!$Y900)<>5,\"N\",\"Y\")))","v":""},{"$f":"IF($B893=\"N\",\"\",IF(LEN('Enrollment Form'!$AD900=0),\"\",IF(LEN('Enrollment Form'!$AD900)<>5,\"N\",\"Y\")))","v":""},{"$f":"IF($B893=\"N\",\"\",IF(LEN('Enrollment Form'!$BS900=0),\"\",IF(LEN('Enrollment Form'!$BS900)<>5,\"N\",\"Y\")))","v":""},{"$f":"IF($B893=\"N\",\"\",IF(LEN('Enrollment Form'!$AE900)=0,\"\",IF(LEN('Enrollment Form'!$AE900)<>10,\"N\",\"Y\")))","v":""},{"$f":"IF($B893=\"N\",\"\",IF(LEN('Enrollment Form'!$AF900)=0,\"\",IF(LEN('Enrollment Form'!$AF900)<>10,\"N\",\"Y\")))","v":""},{"$f":"IF('Enrollment Form'!$O900<>\"Graded\",\"-\",IF(AND('Enrollment Form'!$O900=\"Graded\",'Enrollment Form'!$AR900<>\"\"),\"Y\",\"N\"))","v":"-"},{"$f":"IF($B893=\"N\",\"\",IF(OR('Enrollment Form'!$B900<>\"Subscriber\",'Enrollment Form'!$C900=\"ROC\"),\"-\",IF(AND('Enrollment Form'!$B900=\"Subscriber\",'Enrollment Form'!$C900=\"Enroll\",'Enrollment Form'!$AJ900<>\"\"),\"Y\",\"N\")))","v":""},{"$f":"IF($B893=\"N\",\"\",IF(OR('Enrollment Form'!$B900<>\"Subscriber\",'Enrollment Form'!$C900=\"ROC\"),\"-\",IF(AND('Enrollment Form'!$B900=\"Subscriber\",'Enrollment Form'!$C900=\"Enroll\",'Enrollment Form'!$AK900<>\"\"),\"Y\",\"N\")))","v":""},{"$f":"IF($B893=\"N\",\"\",IF(OR('Enrollment Form'!$B900<>\"Subscriber\",'Enrollment Form'!$C900=\"ROC\"),\"-\",IF(AND('Enrollment Form'!$B900=\"Subscriber\",'Enrollment Form'!$C900=\"Enroll\",'Enrollment Form'!$AL900<>\"\"),\"Y\",\"N\")))","v":""},{"$f":"IF($B893=\"N\",\"\",IF(OR('Enrollment Form'!$B900<>\"Subscriber\",'Enrollment Form'!$C900=\"ROC\"),\"-\",IF(AND('Enrollment Form'!$B900=\"Subscriber\",'Enrollment Form'!$C900=\"Enroll\",'Enrollment Form'!$AP900<>\"\"),\"Y\",\"N\")))","v":""},{"$f":"IF($B893=\"N\",\"\",IF(OR('Enrollment Form'!$B900<>\"Subscriber\",'Enrollment Form'!$C900=\"ROC\"),\"-\",IF(AND('Enrollment Form'!$B900=\"Subscriber\",'Enrollment Form'!$C900=\"Enroll\",'Enrollment Form'!$AQ900<>\"\"),\"Y\",\"N\")))","v":""},{"$f":"IF($B893=\"N\",\"\",IF(OR('Enrollment Form'!$B900<>\"Subscriber\",'Enrollment Form'!$C900=\"ROC\"),\"-\",IF(AND('Enrollment Form'!$B900=\"Subscriber\",'Enrollment Form'!$C900=\"Enroll\",'Enrollment Form'!$AS900<>\"\"),\"Y\",\"N\")))","v":""},{"$f":"IF($B893=\"N\",\"\",IF($Q893=\"-\",\"-\",IF(AND($Q893=\"Y\",'Enrollment Form'!$AS900=\"No\"),\"-\",IF(AND($Q893=\"Y\",'Enrollment Form'!$AS900=\"Yes\",'Enrollment Form'!$AT900<>\"\"),\"Y\",\"N\"))))","v":""},{"$f":"IF($B893=\"N\",\"\",IF(OR('Enrollment Form'!$B900<>\"Subscriber\",'Enrollment Form'!$C900=\"ROC\"),\"-\",IF(AND('Enrollment Form'!$B900=\"Subscriber\",'Enrollment Form'!$C900=\"Enroll\",'Enrollment Form'!$CV900<>\"\"),\"Y\",\"N\")))","v":""},{"$f":"IF($B893=\"N\",\"\",IF($S893=\"-\",\"-\",IF(AND($S893=\"Y\",'Enrollment Form'!$CV900=\"No\"),\"-\",IF(AND($S893=\"Y\",'Enrollment Form'!$CV900=\"Yes\",'Enrollment Form'!$CW900<>\"\"),\"Y\",\"N\"))))","v":""},{"$f":"IF(OR('Enrollment Form'!$AY900=\"Yes\",'Enrollment Form'!$AY900=\"\"),\"-\",IF(OR(AND('Enrollment Form'!$AY900=\"No\",ISERROR(FIND(\"HMO\",VLOOKUP('Enrollment Form'!G900,'Enrollment Form'!H$11:J$1000,3,FALSE),1))=FALSE,COUNTA('Enrollment Form'!$AZ900:$BC900)=4),AND('Enrollment Form'!$AY900=\"No\",ISERROR(FIND(\"HMO\",VLOOKUP('Enrollment Form'!G900,'Enrollment Form'!H$11:J$1000,3,FALSE),1))=FALSE,COUNTA('Enrollment Form'!$BT900:$BW900)=4)),\"Y\",\"N\"))","v":"-"},{"$f":"IF($B893=\"N\",\"\",IF('Enrollment Form'!$B900=\"Subscriber\",\"-\",IF(COUNTA('Enrollment Form'!$BL900,'Enrollment Form'!$BN900)=2,\"Y\",\"N\")))","v":""},{"$f":"IF($B893=\"N\",\"\",IF(OR('Enrollment Form'!$AX900=\"\",'Enrollment Form'!$AX900=\"No\"),\"-\",IF(AND('Enrollment Form'!$AX900=\"Yes\",COUNTA('Enrollment Form'!$CR900)=1),\"Y\",\"N\")))","v":""},{"$f":"IF(OR('Enrollment Form'!$CR900=\"\",'Enrollment Form'!$CR900=\"No\"),\"-\",IF(COUNTA('Enrollment Form'!$CT900:$CU900)=2,\"Y\",\"N\"))","v":"-"},{"$f":"IF($B893=\"N\",\"\",IF(COUNTIF('Enrollment Form'!$DG900:$DP900,\"Other\")=COUNTA('Enrollment Form'!$DK900,'Enrollment Form'!$DH900,'Enrollment Form'!$DN900,'Enrollment Form'!$DQ900),\"Y\",\"N\"))","v":""},{"$f":"IF($B893=\"N\",\"\",IF(OR('Enrollment Form'!B900<>\"Subscriber\",'Enrollment Form'!C900=\"ROC\",COUNTIF('Enrollment Form'!AV900:AW900,\"Yes\")>=1),\"-\",IF(AND('Enrollment Form'!C900=\"Enroll\",COUNTIF('Enrollment Form'!AV900:AW900,\"No\")=2,'Enrollment Form'!AX900=\"\"),\"N\",\"Y\")))","v":""},{"$f":"IF(OR(B893=\"N\",'Enrollment Form'!B900<>\"Subscriber\",'Enrollment Form'!C900=\"ROC\",'Enrollment Form'!O900<>\"Multiple of Salary\"),\"-\",IF(COUNTA('Enrollment Form'!T900:U900)<2,\"N\",\"Y\"))","v":"-"},{"$f":"IF(B893=\"N\",\"\",IF(OR('Enrollment Form'!C900=\"ROC\",'Enrollment Form'!B900<>\"Subscriber\",'Enrollment Form'!O900=\"Waive\",'Enrollment Form'!O900=\"\"),\"-\",IF('Enrollment Form'!P900=\"\",\"N\",\"Y\")))","v":""},{"$f":"IF($B893=\"N\",\"\",IF(AND('Enrollment Form'!$C900=\"ROC\",'Enrollment Form'!$DR900<>\"\"),\"Y\",IF(AND('Enrollment Form'!$C900=\"ROC\",'Enrollment Form'!$DR900=\"\"),\"N\",IF(AND('Enrollment Form'!$C900=\"Enroll\",'Enrollment Form'!$B900=\"Subscriber\",'Enrollment Form'!$CX900=\"No\",'Enrollment Form'!$DR900=\"\"),\"N\",IF(AND('Enrollment Form'!$C900=\"Enroll\",'Enrollment Form'!$B900=\"Subscriber\",'Enrollment Form'!$CX900=\"Yes\"),\"-\",\"Y\")))))","v":""},{"$f":"IF($B893=\"N\",\"\",IF(AND('Enrollment Form'!$C900=\"ROC\",'Enrollment Form'!$DS900<>\"\"),\"Y\",IF(AND('Enrollment Form'!$C900=\"ROC\",'Enrollment Form'!$DS900=\"\"),\"N\",IF(AND('Enrollment Form'!$C900=\"Enroll\",'Enrollment Form'!$B900=\"Subscriber\",'Enrollment Form'!$CX900=\"No\",'Enrollment Form'!$DS900=\"\"),\"N\",IF(AND('Enrollment Form'!$C900=\"Enroll\",'Enrollment Form'!$B900=\"Subscriber\",'Enrollment Form'!$CX900=\"Yes\"),\"-\",\"Y\")))))","v":""},{"$f":"IF('Enrollment Form'!AH900=\"\",\"\",IF(ISERROR(SEARCH(\".\",'Enrollment Form'!AH900,SEARCH(\"@\",'Enrollment Form'!AH900))),\"N\",\"Y\"))","v":""},{"$f":"IF(OR($B893=\"N\",'Enrollment Form'!$G900=\"\"),\"\",IF('Enrollment Form'!$B900<>\"Subscriber\",\"-\",IF(COUNTIF('Enrollment Form'!$AV900:$AW900,\"Yes\")=2,\"N\",\"Y\")))","v":""},{"$f":"IF(OR('Enrollment Form'!$CJ900=\"\",'Enrollment Form'!$CJ900=\"No\"),\"-\",IF(AND('Enrollment Form'!$CJ900=\"Yes\",'Enrollment Form'!$CK900=\"\"),\"N\",\"Y\"))","v":"-"},{"$f":"IF(OR('Enrollment Form'!$CL900=\"\",'Enrollment Form'!$CL900=\"No\"),\"-\",IF(AND('Enrollment Form'!$CL900=\"Yes\",'Enrollment Form'!$CM900=\"\"),\"N\",\"Y\"))","v":"-"},{"$f":"IF(OR('Enrollment Form'!$CN900=\"\",'Enrollment Form'!$CN900=\"No\"),\"-\",IF(AND('Enrollment Form'!$CN900=\"Yes\",'Enrollment Form'!$CO900=\"\"),\"N\",\"Y\"))","v":"-"},{"$f":"IF(OR('Enrollment Form'!$CN900=\"\",'Enrollment Form'!$CN900=\"No\"),\"-\",IF(AND('Enrollment Form'!$CN900=\"Yes\",'Enrollment Form'!$CP900=\"\"),\"N\",\"Y\"))","v":"-"},{"$f":"IF('Enrollment Form'!B900<>\"Subscriber\",\"-\",IF(AND('Enrollment Form'!B900=\"Subscriber\",'Enrollment Form'!C900=\"Enroll\",'Enrollment Form'!AA900=\"\"),\"N\",\"Y\"))","v":"-"},{"$f":"IF(OR('Enrollment Form'!B900=\"Subscriber\",'Enrollment Form'!B900=\"\"),\"-\",IF('Enrollment Form'!BP900=\"\",\"N\",\"Y\"))","v":"-"},{"$f":"IF('Enrollment Form'!B900<>\"Subscriber\",\"-\",IF(AND('Enrollment Form'!B900=\"Subscriber\",'Enrollment Form'!G900=\"\"),\"N\",\"Y\"))","v":"-"},{"$f":"IF('Enrollment Form'!A900=\"\",\"\",IF('Enrollment Form'!B900=\"Subscriber\",\"-\",IF(AND('Enrollment Form'!B900<>\"Subscriber\",'Enrollment Form'!G900='Enrollment Form'!H900),\"N\",\"Y\")))","v":""},0]
[901,{"$f":"IF('Enrollment Form'!$A901<>\"\",\"Y\",\"N\")","v":"N"},{"$f":"IF(AND('Enrollment Form'!$B901=\"\",'Enrollment Form'!$C901<>\"\"),\"N\",IF($B894=\"N\",\"\",\"Y\"))","v":""},{"$f":"IF(OR($B894=\"N\",'Enrollment Form'!G901=\"\"),\"\",IF('Enrollment Form'!$B901<>\"Subscriber\",\"\",IF('Enrollment Form'!$G901='Enrollment Form'!$H901,\"Y\",\"N\")))","v":""},{"$f":"IF($B894=\"N\",\"\",IF(AND(COUNTIFS('Enrollment Form'!$H$11:$H$1000,'Enrollment Form'!$H901,'Enrollment Form'!$B$11:$B$1000,'Enrollment Form'!$B901)>1,'Enrollment Form'!$H901<>\"\"),\"N\",\"Y\"))","v":""},{"$f":"IF($B894=\"N\",\"\",IF(LEN('Enrollment Form'!$Y901)=0,\"\",IF(LEN('Enrollment Form'!$Y901)<>5,\"N\",\"Y\")))","v":""},{"$f":"IF($B894=\"N\",\"\",IF(LEN('Enrollment Form'!$AD901=0),\"\",IF(LEN('Enrollment Form'!$AD901)<>5,\"N\",\"Y\")))","v":""},{"$f":"IF($B894=\"N\",\"\",IF(LEN('Enrollment Form'!$BS901=0),\"\",IF(LEN('Enrollment Form'!$BS901)<>5,\"N\",\"Y\")))","v":""},{"$f":"IF($B894=\"N\",\"\",IF(LEN('Enrollment Form'!$AE901)=0,\"\",IF(LEN('Enrollment Form'!$AE901)<>10,\"N\",\"Y\")))","v":""},{"$f":"IF($B894=\"N\",\"\",IF(LEN('Enrollment Form'!$AF901)=0,\"\",IF(LEN('Enrollment Form'!$AF901)<>10,\"N\",\"Y\")))","v":""},{"$f":"IF('Enrollment Form'!$O901<>\"Graded\",\"-\",IF(AND('Enrollment Form'!$O901=\"Graded\",'Enrollment Form'!$AR901<>\"\"),\"Y\",\"N\"))","v":"-"},{"$f":"IF($B894=\"N\",\"\",IF(OR('Enrollment Form'!$B901<>\"Subscriber\",'Enrollment Form'!$C901=\"ROC\"),\"-\",IF(AND('Enrollment Form'!$B901=\"Subscriber\",'Enrollment Form'!$C901=\"Enroll\",'Enrollment Form'!$AJ901<>\"\"),\"Y\",\"N\")))","v":""},{"$f":"IF($B894=\"N\",\"\",IF(OR('Enrollment Form'!$B901<>\"Subscriber\",'Enrollment Form'!$C901=\"ROC\"),\"-\",IF(AND('Enrollment Form'!$B901=\"Subscriber\",'Enrollment Form'!$C901=\"Enroll\",'Enrollment Form'!$AK901<>\"\"),\"Y\",\"N\")))","v":""},{"$f":"IF($B894=\"N\",\"\",IF(OR('Enrollment Form'!$B901<>\"Subscriber\",'Enrollment Form'!$C901=\"ROC\"),\"-\",IF(AND('Enrollment Form'!$B901=\"Subscriber\",'Enrollment Form'!$C901=\"Enroll\",'Enrollment Form'!$AL901<>\"\"),\"Y\",\"N\")))","v":""},{"$f":"IF($B894=\"N\",\"\",IF(OR('Enrollment Form'!$B901<>\"Subscriber\",'Enrollment Form'!$C901=\"ROC\"),\"-\",IF(AND('Enrollment Form'!$B901=\"Subscriber\",'Enrollment Form'!$C901=\"Enroll\",'Enrollment Form'!$AP901<>\"\"),\"Y\",\"N\")))","v":""},{"$f":"IF($B894=\"N\",\"\",IF(OR('Enrollment Form'!$B901<>\"Subscriber\",'Enrollment Form'!$C901=\"ROC\"),\"-\",IF(AND('Enrollment Form'!$B901=\"Subscriber\",'Enrollment Form'!$C901=\"Enroll\",'Enrollment Form'!$AQ901<>\"\"),\"Y\",\"N\")))","v":""},{"$f":"IF($B894=\"N\",\"\",IF(OR('Enrollment Form'!$B901<>\"Subscriber\",'Enrollment Form'!$C901=\"ROC\"),\"-\",IF(AND('Enrollment Form'!$B901=\"Subscriber\",'Enrollment Form'!$C901=\"Enroll\",'Enrollment Form'!$AS901<>\"\"),\"Y\",\"N\")))","v":""},{"$f":"IF($B894=\"N\",\"\",IF($Q894=\"-\",\"-\",IF(AND($Q894=\"Y\",'Enrollment Form'!$AS901=\"No\"),\"-\",IF(AND($Q894=\"Y\",'Enrollment Form'!$AS901=\"Yes\",'Enrollment Form'!$AT901<>\"\"),\"Y\",\"N\"))))","v":""},{"$f":"IF($B894=\"N\",\"\",IF(OR('Enrollment Form'!$B901<>\"Subscriber\",'Enrollment Form'!$C901=\"ROC\"),\"-\",IF(AND('Enrollment Form'!$B901=\"Subscriber\",'Enrollment Form'!$C901=\"Enroll\",'Enrollment Form'!$CV901<>\"\"),\"Y\",\"N\")))","v":""},{"$f":"IF($B894=\"N\",\"\",IF($S894=\"-\",\"-\",IF(AND($S894=\"Y\",'Enrollment Form'!$CV901=\"No\"),\"-\",IF(AND($S894=\"Y\",'Enrollment Form'!$CV901=\"Yes\",'Enrollment Form'!$CW901<>\"\"),\"Y\",\"N\"))))","v":""},{"$f":"IF(OR('Enrollment Form'!$AY901=\"Yes\",'Enrollment Form'!$AY901=\"\"),\"-\",IF(OR(AND('Enrollment Form'!$AY901=\"No\",ISERROR(FIND(\"HMO\",VLOOKUP('Enrollment Form'!G901,'Enrollment Form'!H$11:J$1000,3,FALSE),1))=FALSE,COUNTA('Enrollment Form'!$AZ901:$BC901)=4),AND('Enrollment Form'!$AY901=\"No\",ISERROR(FIND(\"HMO\",VLOOKUP('Enrollment Form'!G901,'Enrollment Form'!H$11:J$1000,3,FALSE),1))=FALSE,COUNTA('Enrollment Form'!$BT901:$BW901)=4)),\"Y\",\"N\"))","v":"-"},{"$f":"IF($B894=\"N\",\"\",IF('Enrollment Form'!$B901=\"Subscriber\",\"-\",IF(COUNTA('Enrollment Form'!$BL901,'Enrollment Form'!$BN901)=2,\"Y\",\"N\")))","v":""},{"$f":"IF($B894=\"N\",\"\",IF(OR('Enrollment Form'!$AX901=\"\",'Enrollment Form'!$AX901=\"No\"),\"-\",IF(AND('Enrollment Form'!$AX901=\"Yes\",COUNTA('Enrollment Form'!$CR901)=1),\"Y\",\"N\")))","v":""},{"$f":"IF(OR('Enrollment Form'!$CR901=\"\",'Enrollment Form'!$CR901=\"No\"),\"-\",IF(COUNTA('Enrollment Form'!$CT901:$CU901)=2,\"Y\",\"N\"))","v":"-"},{"$f":"IF($B894=\"N\",\"\",IF(COUNTIF('Enrollment Form'!$DG901:$DP901,\"Other\")=COUNTA('Enrollment Form'!$DK901,'Enrollment Form'!$DH901,'Enrollment Form'!$DN901,'Enrollment Form'!$DQ901),\"Y\",\"N\"))","v":""},{"$f":"IF($B894=\"N\",\"\",IF(OR('Enrollment Form'!B901<>\"Subscriber\",'Enrollment Form'!C901=\"ROC\",COUNTIF('Enrollment Form'!AV901:AW901,\"Yes\")>=1),\"-\",IF(AND('Enrollment Form'!C901=\"Enroll\",COUNTIF('Enrollment Form'!AV901:AW901,\"No\")=2,'Enrollment Form'!AX901=\"\"),\"N\",\"Y\")))","v":""},{"$f":"IF(OR(B894=\"N\",'Enrollment Form'!B901<>\"Subscriber\",'Enrollment Form'!C901=\"ROC\",'Enrollment Form'!O901<>\"Multiple of Salary\"),\"-\",IF(COUNTA('Enrollment Form'!T901:U901)<2,\"N\",\"Y\"))","v":"-"},{"$f":"IF(B894=\"N\",\"\",IF(OR('Enrollment Form'!C901=\"ROC\",'Enrollment Form'!B901<>\"Subscriber\",'Enrollment Form'!O901=\"Waive\",'Enrollment Form'!O901=\"\"),\"-\",IF('Enrollment Form'!P901=\"\",\"N\",\"Y\")))","v":""},{"$f":"IF($B894=\"N\",\"\",IF(AND('Enrollment Form'!$C901=\"ROC\",'Enrollment Form'!$DR901<>\"\"),\"Y\",IF(AND('Enrollment Form'!$C901=\"ROC\",'Enrollment Form'!$DR901=\"\"),\"N\",IF(AND('Enrollment Form'!$C901=\"Enroll\",'Enrollment Form'!$B901=\"Subscriber\",'Enrollment Form'!$CX901=\"No\",'Enrollment Form'!$DR901=\"\"),\"N\",IF(AND('Enrollment Form'!$C901=\"Enroll\",'Enrollment Form'!$B901=\"Subscriber\",'Enrollment Form'!$CX901=\"Yes\"),\"-\",\"Y\")))))","v":""},{"$f":"IF($B894=\"N\",\"\",IF(AND('Enrollment Form'!$C901=\"ROC\",'Enrollment Form'!$DS901<>\"\"),\"Y\",IF(AND('Enrollment Form'!$C901=\"ROC\",'Enrollment Form'!$DS901=\"\"),\"N\",IF(AND('Enrollment Form'!$C901=\"Enroll\",'Enrollment Form'!$B901=\"Subscriber\",'Enrollment Form'!$CX901=\"No\",'Enrollment Form'!$DS901=\"\"),\"N\",IF(AND('Enrollment Form'!$C901=\"Enroll\",'Enrollment Form'!$B901=\"Subscriber\",'Enrollment Form'!$CX901=\"Yes\"),\"-\",\"Y\")))))","v":""},{"$f":"IF('Enrollment Form'!AH901=\"\",\"\",IF(ISERROR(SEARCH(\".\",'Enrollment Form'!AH901,SEARCH(\"@\",'Enrollment Form'!AH901))),\"N\",\"Y\"))","v":""},{"$f":"IF(OR($B894=\"N\",'Enrollment Form'!$G901=\"\"),\"\",IF('Enrollment Form'!$B901<>\"Subscriber\",\"-\",IF(COUNTIF('Enrollment Form'!$AV901:$AW901,\"Yes\")=2,\"N\",\"Y\")))","v":""},{"$f":"IF(OR('Enrollment Form'!$CJ901=\"\",'Enrollment Form'!$CJ901=\"No\"),\"-\",IF(AND('Enrollment Form'!$CJ901=\"Yes\",'Enrollment Form'!$CK901=\"\"),\"N\",\"Y\"))","v":"-"},{"$f":"IF(OR('Enrollment Form'!$CL901=\"\",'Enrollment Form'!$CL901=\"No\"),\"-\",IF(AND('Enrollment Form'!$CL901=\"Yes\",'Enrollment Form'!$CM901=\"\"),\"N\",\"Y\"))","v":"-"},{"$f":"IF(OR('Enrollment Form'!$CN901=\"\",'Enrollment Form'!$CN901=\"No\"),\"-\",IF(AND('Enrollment Form'!$CN901=\"Yes\",'Enrollment Form'!$CO901=\"\"),\"N\",\"Y\"))","v":"-"},{"$f":"IF(OR('Enrollment Form'!$CN901=\"\",'Enrollment Form'!$CN901=\"No\"),\"-\",IF(AND('Enrollment Form'!$CN901=\"Yes\",'Enrollment Form'!$CP901=\"\"),\"N\",\"Y\"))","v":"-"},{"$f":"IF('Enrollment Form'!B901<>\"Subscriber\",\"-\",IF(AND('Enrollment Form'!B901=\"Subscriber\",'Enrollment Form'!C901=\"Enroll\",'Enrollment Form'!AA901=\"\"),\"N\",\"Y\"))","v":"-"},{"$f":"IF(OR('Enrollment Form'!B901=\"Subscriber\",'Enrollment Form'!B901=\"\"),\"-\",IF('Enrollment Form'!BP901=\"\",\"N\",\"Y\"))","v":"-"},{"$f":"IF('Enrollment Form'!B901<>\"Subscriber\",\"-\",IF(AND('Enrollment Form'!B901=\"Subscriber\",'Enrollment Form'!G901=\"\"),\"N\",\"Y\"))","v":"-"},{"$f":"IF('Enrollment Form'!A901=\"\",\"\",IF('Enrollment Form'!B901=\"Subscriber\",\"-\",IF(AND('Enrollment Form'!B901<>\"Subscriber\",'Enrollment Form'!G901='Enrollment Form'!H901),\"N\",\"Y\")))","v":""},0]
[902,{"$f":"IF('Enrollment Form'!$A902<>\"\",\"Y\",\"N\")","v":"N"},{"$f":"IF(AND('Enrollment Form'!$B902=\"\",'Enrollment Form'!$C902<>\"\"),\"N\",IF($B895=\"N\",\"\",\"Y\"))","v":""},{"$f":"IF(OR($B895=\"N\",'Enrollment Form'!G902=\"\"),\"\",IF('Enrollment Form'!$B902<>\"Subscriber\",\"\",IF('Enrollment Form'!$G902='Enrollment Form'!$H902,\"Y\",\"N\")))","v":""},{"$f":"IF($B895=\"N\",\"\",IF(AND(COUNTIFS('Enrollment Form'!$H$11:$H$1000,'Enrollment Form'!$H902,'Enrollment Form'!$B$11:$B$1000,'Enrollment Form'!$B902)>1,'Enrollment Form'!$H902<>\"\"),\"N\",\"Y\"))","v":""},{"$f":"IF($B895=\"N\",\"\",IF(LEN('Enrollment Form'!$Y902)=0,\"\",IF(LEN('Enrollment Form'!$Y902)<>5,\"N\",\"Y\")))","v":""},{"$f":"IF($B895=\"N\",\"\",IF(LEN('Enrollment Form'!$AD902=0),\"\",IF(LEN('Enrollment Form'!$AD902)<>5,\"N\",\"Y\")))","v":""},{"$f":"IF($B895=\"N\",\"\",IF(LEN('Enrollment Form'!$BS902=0),\"\",IF(LEN('Enrollment Form'!$BS902)<>5,\"N\",\"Y\")))","v":""},{"$f":"IF($B895=\"N\",\"\",IF(LEN('Enrollment Form'!$AE902)=0,\"\",IF(LEN('Enrollment Form'!$AE902)<>10,\"N\",\"Y\")))","v":""},{"$f":"IF($B895=\"N\",\"\",IF(LEN('Enrollment Form'!$AF902)=0,\"\",IF(LEN('Enrollment Form'!$AF902)<>10,\"N\",\"Y\")))","v":""},{"$f":"IF('Enrollment Form'!$O902<>\"Graded\",\"-\",IF(AND('Enrollment Form'!$O902=\"Graded\",'Enrollment Form'!$AR902<>\"\"),\"Y\",\"N\"))","v":"-"},{"$f":"IF($B895=\"N\",\"\",IF(OR('Enrollment Form'!$B902<>\"Subscriber\",'Enrollment Form'!$C902=\"ROC\"),\"-\",IF(AND('Enrollment Form'!$B902=\"Subscriber\",'Enrollment Form'!$C902=\"Enroll\",'Enrollment Form'!$AJ902<>\"\"),\"Y\",\"N\")))","v":""},{"$f":"IF($B895=\"N\",\"\",IF(OR('Enrollment Form'!$B902<>\"Subscriber\",'Enrollment Form'!$C902=\"ROC\"),\"-\",IF(AND('Enrollment Form'!$B902=\"Subscriber\",'Enrollment Form'!$C902=\"Enroll\",'Enrollment Form'!$AK902<>\"\"),\"Y\",\"N\")))","v":""},{"$f":"IF($B895=\"N\",\"\",IF(OR('Enrollment Form'!$B902<>\"Subscriber\",'Enrollment Form'!$C902=\"ROC\"),\"-\",IF(AND('Enrollment Form'!$B902=\"Subscriber\",'Enrollment Form'!$C902=\"Enroll\",'Enrollment Form'!$AL902<>\"\"),\"Y\",\"N\")))","v":""},{"$f":"IF($B895=\"N\",\"\",IF(OR('Enrollment Form'!$B902<>\"Subscriber\",'Enrollment Form'!$C902=\"ROC\"),\"-\",IF(AND('Enrollment Form'!$B902=\"Subscriber\",'Enrollment Form'!$C902=\"Enroll\",'Enrollment Form'!$AP902<>\"\"),\"Y\",\"N\")))","v":""},{"$f":"IF($B895=\"N\",\"\",IF(OR('Enrollment Form'!$B902<>\"Subscriber\",'Enrollment Form'!$C902=\"ROC\"),\"-\",IF(AND('Enrollment Form'!$B902=\"Subscriber\",'Enrollment Form'!$C902=\"Enroll\",'Enrollment Form'!$AQ902<>\"\"),\"Y\",\"N\")))","v":""},{"$f":"IF($B895=\"N\",\"\",IF(OR('Enrollment Form'!$B902<>\"Subscriber\",'Enrollment Form'!$C902=\"ROC\"),\"-\",IF(AND('Enrollment Form'!$B902=\"Subscriber\",'Enrollment Form'!$C902=\"Enroll\",'Enrollment Form'!$AS902<>\"\"),\"Y\",\"N\")))","v":""},{"$f":"IF($B895=\"N\",\"\",IF($Q895=\"-\",\"-\",IF(AND($Q895=\"Y\",'Enrollment Form'!$AS902=\"No\"),\"-\",IF(AND($Q895=\"Y\",'Enrollment Form'!$AS902=\"Yes\",'Enrollment Form'!$AT902<>\"\"),\"Y\",\"N\"))))","v":""},{"$f":"IF($B895=\"N\",\"\",IF(OR('Enrollment Form'!$B902<>\"Subscriber\",'Enrollment Form'!$C902=\"ROC\"),\"-\",IF(AND('Enrollment Form'!$B902=\"Subscriber\",'Enrollment Form'!$C902=\"Enroll\",'Enrollment Form'!$CV902<>\"\"),\"Y\",\"N\")))","v":""},{"$f":"IF($B895=\"N\",\"\",IF($S895=\"-\",\"-\",IF(AND($S895=\"Y\",'Enrollment Form'!$CV902=\"No\"),\"-\",IF(AND($S895=\"Y\",'Enrollment Form'!$CV902=\"Yes\",'Enrollment Form'!$CW902<>\"\"),\"Y\",\"N\"))))","v":""},{"$f":"IF(OR('Enrollment Form'!$AY902=\"Yes\",'Enrollment Form'!$AY902=\"\"),\"-\",IF(OR(AND('Enrollment Form'!$AY902=\"No\",ISERROR(FIND(\"HMO\",VLOOKUP('Enrollment Form'!G902,'Enrollment Form'!H$11:J$1000,3,FALSE),1))=FALSE,COUNTA('Enrollment Form'!$AZ902:$BC902)=4),AND('Enrollment Form'!$AY902=\"No\",ISERROR(FIND(\"HMO\",VLOOKUP('Enrollment Form'!G902,'Enrollment Form'!H$11:J$1000,3,FALSE),1))=FALSE,COUNTA('Enrollment Form'!$BT902:$BW902)=4)),\"Y\",\"N\"))","v":"-"},{"$f":"IF($B895=\"N\",\"\",IF('Enrollment Form'!$B902=\"Subscriber\",\"-\",IF(COUNTA('Enrollment Form'!$BL902,'Enrollment Form'!$BN902)=2,\"Y\",\"N\")))","v":""},{"$f":"IF($B895=\"N\",\"\",IF(OR('Enrollment Form'!$AX902=\"\",'Enrollment Form'!$AX902=\"No\"),\"-\",IF(AND('Enrollment Form'!$AX902=\"Yes\",COUNTA('Enrollment Form'!$CR902)=1),\"Y\",\"N\")))","v":""},{"$f":"IF(OR('Enrollment Form'!$CR902=\"\",'Enrollment Form'!$CR902=\"No\"),\"-\",IF(COUNTA('Enrollment Form'!$CT902:$CU902)=2,\"Y\",\"N\"))","v":"-"},{"$f":"IF($B895=\"N\",\"\",IF(COUNTIF('Enrollment Form'!$DG902:$DP902,\"Other\")=COUNTA('Enrollment Form'!$DK902,'Enrollment Form'!$DH902,'Enrollment Form'!$DN902,'Enrollment Form'!$DQ902),\"Y\",\"N\"))","v":""},{"$f":"IF($B895=\"N\",\"\",IF(OR('Enrollment Form'!B902<>\"Subscriber\",'Enrollment Form'!C902=\"ROC\",COUNTIF('Enrollment Form'!AV902:AW902,\"Yes\")>=1),\"-\",IF(AND('Enrollment Form'!C902=\"Enroll\",COUNTIF('Enrollment Form'!AV902:AW902,\"No\")=2,'Enrollment Form'!AX902=\"\"),\"N\",\"Y\")))","v":""},{"$f":"IF(OR(B895=\"N\",'Enrollment Form'!B902<>\"Subscriber\",'Enrollment Form'!C902=\"ROC\",'Enrollment Form'!O902<>\"Multiple of Salary\"),\"-\",IF(COUNTA('Enrollment Form'!T902:U902)<2,\"N\",\"Y\"))","v":"-"},{"$f":"IF(B895=\"N\",\"\",IF(OR('Enrollment Form'!C902=\"ROC\",'Enrollment Form'!B902<>\"Subscriber\",'Enrollment Form'!O902=\"Waive\",'Enrollment Form'!O902=\"\"),\"-\",IF('Enrollment Form'!P902=\"\",\"N\",\"Y\")))","v":""},{"$f":"IF($B895=\"N\",\"\",IF(AND('Enrollment Form'!$C902=\"ROC\",'Enrollment Form'!$DR902<>\"\"),\"Y\",IF(AND('Enrollment Form'!$C902=\"ROC\",'Enrollment Form'!$DR902=\"\"),\"N\",IF(AND('Enrollment Form'!$C902=\"Enroll\",'Enrollment Form'!$B902=\"Subscriber\",'Enrollment Form'!$CX902=\"No\",'Enrollment Form'!$DR902=\"\"),\"N\",IF(AND('Enrollment Form'!$C902=\"Enroll\",'Enrollment Form'!$B902=\"Subscriber\",'Enrollment Form'!$CX902=\"Yes\"),\"-\",\"Y\")))))","v":""},{"$f":"IF($B895=\"N\",\"\",IF(AND('Enrollment Form'!$C902=\"ROC\",'Enrollment Form'!$DS902<>\"\"),\"Y\",IF(AND('Enrollment Form'!$C902=\"ROC\",'Enrollment Form'!$DS902=\"\"),\"N\",IF(AND('Enrollment Form'!$C902=\"Enroll\",'Enrollment Form'!$B902=\"Subscriber\",'Enrollment Form'!$CX902=\"No\",'Enrollment Form'!$DS902=\"\"),\"N\",IF(AND('Enrollment Form'!$C902=\"Enroll\",'Enrollment Form'!$B902=\"Subscriber\",'Enrollment Form'!$CX902=\"Yes\"),\"-\",\"Y\")))))","v":""},{"$f":"IF('Enrollment Form'!AH902=\"\",\"\",IF(ISERROR(SEARCH(\".\",'Enrollment Form'!AH902,SEARCH(\"@\",'Enrollment Form'!AH902))),\"N\",\"Y\"))","v":""},{"$f":"IF(OR($B895=\"N\",'Enrollment Form'!$G902=\"\"),\"\",IF('Enrollment Form'!$B902<>\"Subscriber\",\"-\",IF(COUNTIF('Enrollment Form'!$AV902:$AW902,\"Yes\")=2,\"N\",\"Y\")))","v":""},{"$f":"IF(OR('Enrollment Form'!$CJ902=\"\",'Enrollment Form'!$CJ902=\"No\"),\"-\",IF(AND('Enrollment Form'!$CJ902=\"Yes\",'Enrollment Form'!$CK902=\"\"),\"N\",\"Y\"))","v":"-"},{"$f":"IF(OR('Enrollment Form'!$CL902=\"\",'Enrollment Form'!$CL902=\"No\"),\"-\",IF(AND('Enrollment Form'!$CL902=\"Yes\",'Enrollment Form'!$CM902=\"\"),\"N\",\"Y\"))","v":"-"},{"$f":"IF(OR('Enrollment Form'!$CN902=\"\",'Enrollment Form'!$CN902=\"No\"),\"-\",IF(AND('Enrollment Form'!$CN902=\"Yes\",'Enrollment Form'!$CO902=\"\"),\"N\",\"Y\"))","v":"-"},{"$f":"IF(OR('Enrollment Form'!$CN902=\"\",'Enrollment Form'!$CN902=\"No\"),\"-\",IF(AND('Enrollment Form'!$CN902=\"Yes\",'Enrollment Form'!$CP902=\"\"),\"N\",\"Y\"))","v":"-"},{"$f":"IF('Enrollment Form'!B902<>\"Subscriber\",\"-\",IF(AND('Enrollment Form'!B902=\"Subscriber\",'Enrollment Form'!C902=\"Enroll\",'Enrollment Form'!AA902=\"\"),\"N\",\"Y\"))","v":"-"},{"$f":"IF(OR('Enrollment Form'!B902=\"Subscriber\",'Enrollment Form'!B902=\"\"),\"-\",IF('Enrollment Form'!BP902=\"\",\"N\",\"Y\"))","v":"-"},{"$f":"IF('Enrollment Form'!B902<>\"Subscriber\",\"-\",IF(AND('Enrollment Form'!B902=\"Subscriber\",'Enrollment Form'!G902=\"\"),\"N\",\"Y\"))","v":"-"},{"$f":"IF('Enrollment Form'!A902=\"\",\"\",IF('Enrollment Form'!B902=\"Subscriber\",\"-\",IF(AND('Enrollment Form'!B902<>\"Subscriber\",'Enrollment Form'!G902='Enrollment Form'!H902),\"N\",\"Y\")))","v":""},0]
[903,{"$f":"IF('Enrollment Form'!$A903<>\"\",\"Y\",\"N\")","v":"N"},{"$f":"IF(AND('Enrollment Form'!$B903=\"\",'Enrollment Form'!$C903<>\"\"),\"N\",IF($B896=\"N\",\"\",\"Y\"))","v":""},{"$f":"IF(OR($B896=\"N\",'Enrollment Form'!G903=\"\"),\"\",IF('Enrollment Form'!$B903<>\"Subscriber\",\"\",IF('Enrollment Form'!$G903='Enrollment Form'!$H903,\"Y\",\"N\")))","v":""},{"$f":"IF($B896=\"N\",\"\",IF(AND(COUNTIFS('Enrollment Form'!$H$11:$H$1000,'Enrollment Form'!$H903,'Enrollment Form'!$B$11:$B$1000,'Enrollment Form'!$B903)>1,'Enrollment Form'!$H903<>\"\"),\"N\",\"Y\"))","v":""},{"$f":"IF($B896=\"N\",\"\",IF(LEN('Enrollment Form'!$Y903)=0,\"\",IF(LEN('Enrollment Form'!$Y903)<>5,\"N\",\"Y\")))","v":""},{"$f":"IF($B896=\"N\",\"\",IF(LEN('Enrollment Form'!$AD903=0),\"\",IF(LEN('Enrollment Form'!$AD903)<>5,\"N\",\"Y\")))","v":""},{"$f":"IF($B896=\"N\",\"\",IF(LEN('Enrollment Form'!$BS903=0),\"\",IF(LEN('Enrollment Form'!$BS903)<>5,\"N\",\"Y\")))","v":""},{"$f":"IF($B896=\"N\",\"\",IF(LEN('Enrollment Form'!$AE903)=0,\"\",IF(LEN('Enrollment Form'!$AE903)<>10,\"N\",\"Y\")))","v":""},{"$f":"IF($B896=\"N\",\"\",IF(LEN('Enrollment Form'!$AF903)=0,\"\",IF(LEN('Enrollment Form'!$AF903)<>10,\"N\",\"Y\")))","v":""},{"$f":"IF('Enrollment Form'!$O903<>\"Graded\",\"-\",IF(AND('Enrollment Form'!$O903=\"Graded\",'Enrollment Form'!$AR903<>\"\"),\"Y\",\"N\"))","v":"-"},{"$f":"IF($B896=\"N\",\"\",IF(OR('Enrollment Form'!$B903<>\"Subscriber\",'Enrollment Form'!$C903=\"ROC\"),\"-\",IF(AND('Enrollment Form'!$B903=\"Subscriber\",'Enrollment Form'!$C903=\"Enroll\",'Enrollment Form'!$AJ903<>\"\"),\"Y\",\"N\")))","v":""},{"$f":"IF($B896=\"N\",\"\",IF(OR('Enrollment Form'!$B903<>\"Subscriber\",'Enrollment Form'!$C903=\"ROC\"),\"-\",IF(AND('Enrollment Form'!$B903=\"Subscriber\",'Enrollment Form'!$C903=\"Enroll\",'Enrollment Form'!$AK903<>\"\"),\"Y\",\"N\")))","v":""},{"$f":"IF($B896=\"N\",\"\",IF(OR('Enrollment Form'!$B903<>\"Subscriber\",'Enrollment Form'!$C903=\"ROC\"),\"-\",IF(AND('Enrollment Form'!$B903=\"Subscriber\",'Enrollment Form'!$C903=\"Enroll\",'Enrollment Form'!$AL903<>\"\"),\"Y\",\"N\")))","v":""},{"$f":"IF($B896=\"N\",\"\",IF(OR('Enrollment Form'!$B903<>\"Subscriber\",'Enrollment Form'!$C903=\"ROC\"),\"-\",IF(AND('Enrollment Form'!$B903=\"Subscriber\",'Enrollment Form'!$C903=\"Enroll\",'Enrollment Form'!$AP903<>\"\"),\"Y\",\"N\")))","v":""},{"$f":"IF($B896=\"N\",\"\",IF(OR('Enrollment Form'!$B903<>\"Subscriber\",'Enrollment Form'!$C903=\"ROC\"),\"-\",IF(AND('Enrollment Form'!$B903=\"Subscriber\",'Enrollment Form'!$C903=\"Enroll\",'Enrollment Form'!$AQ903<>\"\"),\"Y\",\"N\")))","v":""},{"$f":"IF($B896=\"N\",\"\",IF(OR('Enrollment Form'!$B903<>\"Subscriber\",'Enrollment Form'!$C903=\"ROC\"),\"-\",IF(AND('Enrollment Form'!$B903=\"Subscriber\",'Enrollment Form'!$C903=\"Enroll\",'Enrollment Form'!$AS903<>\"\"),\"Y\",\"N\")))","v":""},{"$f":"IF($B896=\"N\",\"\",IF($Q896=\"-\",\"-\",IF(AND($Q896=\"Y\",'Enrollment Form'!$AS903=\"No\"),\"-\",IF(AND($Q896=\"Y\",'Enrollment Form'!$AS903=\"Yes\",'Enrollment Form'!$AT903<>\"\"),\"Y\",\"N\"))))","v":""},{"$f":"IF($B896=\"N\",\"\",IF(OR('Enrollment Form'!$B903<>\"Subscriber\",'Enrollment Form'!$C903=\"ROC\"),\"-\",IF(AND('Enrollment Form'!$B903=\"Subscriber\",'Enrollment Form'!$C903=\"Enroll\",'Enrollment Form'!$CV903<>\"\"),\"Y\",\"N\")))","v":""},{"$f":"IF($B896=\"N\",\"\",IF($S896=\"-\",\"-\",IF(AND($S896=\"Y\",'Enrollment Form'!$CV903=\"No\"),\"-\",IF(AND($S896=\"Y\",'Enrollment Form'!$CV903=\"Yes\",'Enrollment Form'!$CW903<>\"\"),\"Y\",\"N\"))))","v":""},{"$f":"IF(OR('Enrollment Form'!$AY903=\"Yes\",'Enrollment Form'!$AY903=\"\"),\"-\",IF(OR(AND('Enrollment Form'!$AY903=\"No\",ISERROR(FIND(\"HMO\",VLOOKUP('Enrollment Form'!G903,'Enrollment Form'!H$11:J$1000,3,FALSE),1))=FALSE,COUNTA('Enrollment Form'!$AZ903:$BC903)=4),AND('Enrollment Form'!$AY903=\"No\",ISERROR(FIND(\"HMO\",VLOOKUP('Enrollment Form'!G903,'Enrollment Form'!H$11:J$1000,3,FALSE),1))=FALSE,COUNTA('Enrollment Form'!$BT903:$BW903)=4)),\"Y\",\"N\"))","v":"-"},{"$f":"IF($B896=\"N\",\"\",IF('Enrollment Form'!$B903=\"Subscriber\",\"-\",IF(COUNTA('Enrollment Form'!$BL903,'Enrollment Form'!$BN903)=2,\"Y\",\"N\")))","v":""},{"$f":"IF($B896=\"N\",\"\",IF(OR('Enrollment Form'!$AX903=\"\",'Enrollment Form'!$AX903=\"No\"),\"-\",IF(AND('Enrollment Form'!$AX903=\"Yes\",COUNTA('Enrollment Form'!$CR903)=1),\"Y\",\"N\")))","v":""},{"$f":"IF(OR('Enrollment Form'!$CR903=\"\",'Enrollment Form'!$CR903=\"No\"),\"-\",IF(COUNTA('Enrollment Form'!$CT903:$CU903)=2,\"Y\",\"N\"))","v":"-"},{"$f":"IF($B896=\"N\",\"\",IF(COUNTIF('Enrollment Form'!$DG903:$DP903,\"Other\")=COUNTA('Enrollment Form'!$DK903,'Enrollment Form'!$DH903,'Enrollment Form'!$DN903,'Enrollment Form'!$DQ903),\"Y\",\"N\"))","v":""},{"$f":"IF($B896=\"N\",\"\",IF(OR('Enrollment Form'!B903<>\"Subscriber\",'Enrollment Form'!C903=\"ROC\",COUNTIF('Enrollment Form'!AV903:AW903,\"Yes\")>=1),\"-\",IF(AND('Enrollment Form'!C903=\"Enroll\",COUNTIF('Enrollment Form'!AV903:AW903,\"No\")=2,'Enrollment Form'!AX903=\"\"),\"N\",\"Y\")))","v":""},{"$f":"IF(OR(B896=\"N\",'Enrollment Form'!B903<>\"Subscriber\",'Enrollment Form'!C903=\"ROC\",'Enrollment Form'!O903<>\"Multiple of Salary\"),\"-\",IF(COUNTA('Enrollment Form'!T903:U903)<2,\"N\",\"Y\"))","v":"-"},{"$f":"IF(B896=\"N\",\"\",IF(OR('Enrollment Form'!C903=\"ROC\",'Enrollment Form'!B903<>\"Subscriber\",'Enrollment Form'!O903=\"Waive\",'Enrollment Form'!O903=\"\"),\"-\",IF('Enrollment Form'!P903=\"\",\"N\",\"Y\")))","v":""},{"$f":"IF($B896=\"N\",\"\",IF(AND('Enrollment Form'!$C903=\"ROC\",'Enrollment Form'!$DR903<>\"\"),\"Y\",IF(AND('Enrollment Form'!$C903=\"ROC\",'Enrollment Form'!$DR903=\"\"),\"N\",IF(AND('Enrollment Form'!$C903=\"Enroll\",'Enrollment Form'!$B903=\"Subscriber\",'Enrollment Form'!$CX903=\"No\",'Enrollment Form'!$DR903=\"\"),\"N\",IF(AND('Enrollment Form'!$C903=\"Enroll\",'Enrollment Form'!$B903=\"Subscriber\",'Enrollment Form'!$CX903=\"Yes\"),\"-\",\"Y\")))))","v":""},{"$f":"IF($B896=\"N\",\"\",IF(AND('Enrollment Form'!$C903=\"ROC\",'Enrollment Form'!$DS903<>\"\"),\"Y\",IF(AND('Enrollment Form'!$C903=\"ROC\",'Enrollment Form'!$DS903=\"\"),\"N\",IF(AND('Enrollment Form'!$C903=\"Enroll\",'Enrollment Form'!$B903=\"Subscriber\",'Enrollment Form'!$CX903=\"No\",'Enrollment Form'!$DS903=\"\"),\"N\",IF(AND('Enrollment Form'!$C903=\"Enroll\",'Enrollment Form'!$B903=\"Subscriber\",'Enrollment Form'!$CX903=\"Yes\"),\"-\",\"Y\")))))","v":""},{"$f":"IF('Enrollment Form'!AH903=\"\",\"\",IF(ISERROR(SEARCH(\".\",'Enrollment Form'!AH903,SEARCH(\"@\",'Enrollment Form'!AH903))),\"N\",\"Y\"))","v":""},{"$f":"IF(OR($B896=\"N\",'Enrollment Form'!$G903=\"\"),\"\",IF('Enrollment Form'!$B903<>\"Subscriber\",\"-\",IF(COUNTIF('Enrollment Form'!$AV903:$AW903,\"Yes\")=2,\"N\",\"Y\")))","v":""},{"$f":"IF(OR('Enrollment Form'!$CJ903=\"\",'Enrollment Form'!$CJ903=\"No\"),\"-\",IF(AND('Enrollment Form'!$CJ903=\"Yes\",'Enrollment Form'!$CK903=\"\"),\"N\",\"Y\"))","v":"-"},{"$f":"IF(OR('Enrollment Form'!$CL903=\"\",'Enrollment Form'!$CL903=\"No\"),\"-\",IF(AND('Enrollment Form'!$CL903=\"Yes\",'Enrollment Form'!$CM903=\"\"),\"N\",\"Y\"))","v":"-"},{"$f":"IF(OR('Enrollment Form'!$CN903=\"\",'Enrollment Form'!$CN903=\"No\"),\"-\",IF(AND('Enrollment Form'!$CN903=\"Yes\",'Enrollment Form'!$CO903=\"\"),\"N\",\"Y\"))","v":"-"},{"$f":"IF(OR('Enrollment Form'!$CN903=\"\",'Enrollment Form'!$CN903=\"No\"),\"-\",IF(AND('Enrollment Form'!$CN903=\"Yes\",'Enrollment Form'!$CP903=\"\"),\"N\",\"Y\"))","v":"-"},{"$f":"IF('Enrollment Form'!B903<>\"Subscriber\",\"-\",IF(AND('Enrollment Form'!B903=\"Subscriber\",'Enrollment Form'!C903=\"Enroll\",'Enrollment Form'!AA903=\"\"),\"N\",\"Y\"))","v":"-"},{"$f":"IF(OR('Enrollment Form'!B903=\"Subscriber\",'Enrollment Form'!B903=\"\"),\"-\",IF('Enrollment Form'!BP903=\"\",\"N\",\"Y\"))","v":"-"},{"$f":"IF('Enrollment Form'!B903<>\"Subscriber\",\"-\",IF(AND('Enrollment Form'!B903=\"Subscriber\",'Enrollment Form'!G903=\"\"),\"N\",\"Y\"))","v":"-"},{"$f":"IF('Enrollment Form'!A903=\"\",\"\",IF('Enrollment Form'!B903=\"Subscriber\",\"-\",IF(AND('Enrollment Form'!B903<>\"Subscriber\",'Enrollment Form'!G903='Enrollment Form'!H903),\"N\",\"Y\")))","v":""},0]
[904,{"$f":"IF('Enrollment Form'!$A904<>\"\",\"Y\",\"N\")","v":"N"},{"$f":"IF(AND('Enrollment Form'!$B904=\"\",'Enrollment Form'!$C904<>\"\"),\"N\",IF($B897=\"N\",\"\",\"Y\"))","v":""},{"$f":"IF(OR($B897=\"N\",'Enrollment Form'!G904=\"\"),\"\",IF('Enrollment Form'!$B904<>\"Subscriber\",\"\",IF('Enrollment Form'!$G904='Enrollment Form'!$H904,\"Y\",\"N\")))","v":""},{"$f":"IF($B897=\"N\",\"\",IF(AND(COUNTIFS('Enrollment Form'!$H$11:$H$1000,'Enrollment Form'!$H904,'Enrollment Form'!$B$11:$B$1000,'Enrollment Form'!$B904)>1,'Enrollment Form'!$H904<>\"\"),\"N\",\"Y\"))","v":""},{"$f":"IF($B897=\"N\",\"\",IF(LEN('Enrollment Form'!$Y904)=0,\"\",IF(LEN('Enrollment Form'!$Y904)<>5,\"N\",\"Y\")))","v":""},{"$f":"IF($B897=\"N\",\"\",IF(LEN('Enrollment Form'!$AD904=0),\"\",IF(LEN('Enrollment Form'!$AD904)<>5,\"N\",\"Y\")))","v":""},{"$f":"IF($B897=\"N\",\"\",IF(LEN('Enrollment Form'!$BS904=0),\"\",IF(LEN('Enrollment Form'!$BS904)<>5,\"N\",\"Y\")))","v":""},{"$f":"IF($B897=\"N\",\"\",IF(LEN('Enrollment Form'!$AE904)=0,\"\",IF(LEN('Enrollment Form'!$AE904)<>10,\"N\",\"Y\")))","v":""},{"$f":"IF($B897=\"N\",\"\",IF(LEN('Enrollment Form'!$AF904)=0,\"\",IF(LEN('Enrollment Form'!$AF904)<>10,\"N\",\"Y\")))","v":""},{"$f":"IF('Enrollment Form'!$O904<>\"Graded\",\"-\",IF(AND('Enrollment Form'!$O904=\"Graded\",'Enrollment Form'!$AR904<>\"\"),\"Y\",\"N\"))","v":"-"},{"$f":"IF($B897=\"N\",\"\",IF(OR('Enrollment Form'!$B904<>\"Subscriber\",'Enrollment Form'!$C904=\"ROC\"),\"-\",IF(AND('Enrollment Form'!$B904=\"Subscriber\",'Enrollment Form'!$C904=\"Enroll\",'Enrollment Form'!$AJ904<>\"\"),\"Y\",\"N\")))","v":""},{"$f":"IF($B897=\"N\",\"\",IF(OR('Enrollment Form'!$B904<>\"Subscriber\",'Enrollment Form'!$C904=\"ROC\"),\"-\",IF(AND('Enrollment Form'!$B904=\"Subscriber\",'Enrollment Form'!$C904=\"Enroll\",'Enrollment Form'!$AK904<>\"\"),\"Y\",\"N\")))","v":""},{"$f":"IF($B897=\"N\",\"\",IF(OR('Enrollment Form'!$B904<>\"Subscriber\",'Enrollment Form'!$C904=\"ROC\"),\"-\",IF(AND('Enrollment Form'!$B904=\"Subscriber\",'Enrollment Form'!$C904=\"Enroll\",'Enrollment Form'!$AL904<>\"\"),\"Y\",\"N\")))","v":""},{"$f":"IF($B897=\"N\",\"\",IF(OR('Enrollment Form'!$B904<>\"Subscriber\",'Enrollment Form'!$C904=\"ROC\"),\"-\",IF(AND('Enrollment Form'!$B904=\"Subscriber\",'Enrollment Form'!$C904=\"Enroll\",'Enrollment Form'!$AP904<>\"\"),\"Y\",\"N\")))","v":""},{"$f":"IF($B897=\"N\",\"\",IF(OR('Enrollment Form'!$B904<>\"Subscriber\",'Enrollment Form'!$C904=\"ROC\"),\"-\",IF(AND('Enrollment Form'!$B904=\"Subscriber\",'Enrollment Form'!$C904=\"Enroll\",'Enrollment Form'!$AQ904<>\"\"),\"Y\",\"N\")))","v":""},{"$f":"IF($B897=\"N\",\"\",IF(OR('Enrollment Form'!$B904<>\"Subscriber\",'Enrollment Form'!$C904=\"ROC\"),\"-\",IF(AND('Enrollment Form'!$B904=\"Subscriber\",'Enrollment Form'!$C904=\"Enroll\",'Enrollment Form'!$AS904<>\"\"),\"Y\",\"N\")))","v":""},{"$f":"IF($B897=\"N\",\"\",IF($Q897=\"-\",\"-\",IF(AND($Q897=\"Y\",'Enrollment Form'!$AS904=\"No\"),\"-\",IF(AND($Q897=\"Y\",'Enrollment Form'!$AS904=\"Yes\",'Enrollment Form'!$AT904<>\"\"),\"Y\",\"N\"))))","v":""},{"$f":"IF($B897=\"N\",\"\",IF(OR('Enrollment Form'!$B904<>\"Subscriber\",'Enrollment Form'!$C904=\"ROC\"),\"-\",IF(AND('Enrollment Form'!$B904=\"Subscriber\",'Enrollment Form'!$C904=\"Enroll\",'Enrollment Form'!$CV904<>\"\"),\"Y\",\"N\")))","v":""},{"$f":"IF($B897=\"N\",\"\",IF($S897=\"-\",\"-\",IF(AND($S897=\"Y\",'Enrollment Form'!$CV904=\"No\"),\"-\",IF(AND($S897=\"Y\",'Enrollment Form'!$CV904=\"Yes\",'Enrollment Form'!$CW904<>\"\"),\"Y\",\"N\"))))","v":""},{"$f":"IF(OR('Enrollment Form'!$AY904=\"Yes\",'Enrollment Form'!$AY904=\"\"),\"-\",IF(OR(AND('Enrollment Form'!$AY904=\"No\",ISERROR(FIND(\"HMO\",VLOOKUP('Enrollment Form'!G904,'Enrollment Form'!H$11:J$1000,3,FALSE),1))=FALSE,COUNTA('Enrollment Form'!$AZ904:$BC904)=4),AND('Enrollment Form'!$AY904=\"No\",ISERROR(FIND(\"HMO\",VLOOKUP('Enrollment Form'!G904,'Enrollment Form'!H$11:J$1000,3,FALSE),1))=FALSE,COUNTA('Enrollment Form'!$BT904:$BW904)=4)),\"Y\",\"N\"))","v":"-"},{"$f":"IF($B897=\"N\",\"\",IF('Enrollment Form'!$B904=\"Subscriber\",\"-\",IF(COUNTA('Enrollment Form'!$BL904,'Enrollment Form'!$BN904)=2,\"Y\",\"N\")))","v":""},{"$f":"IF($B897=\"N\",\"\",IF(OR('Enrollment Form'!$AX904=\"\",'Enrollment Form'!$AX904=\"No\"),\"-\",IF(AND('Enrollment Form'!$AX904=\"Yes\",COUNTA('Enrollment Form'!$CR904)=1),\"Y\",\"N\")))","v":""},{"$f":"IF(OR('Enrollment Form'!$CR904=\"\",'Enrollment Form'!$CR904=\"No\"),\"-\",IF(COUNTA('Enrollment Form'!$CT904:$CU904)=2,\"Y\",\"N\"))","v":"-"},{"$f":"IF($B897=\"N\",\"\",IF(COUNTIF('Enrollment Form'!$DG904:$DP904,\"Other\")=COUNTA('Enrollment Form'!$DK904,'Enrollment Form'!$DH904,'Enrollment Form'!$DN904,'Enrollment Form'!$DQ904),\"Y\",\"N\"))","v":""},{"$f":"IF($B897=\"N\",\"\",IF(OR('Enrollment Form'!B904<>\"Subscriber\",'Enrollment Form'!C904=\"ROC\",COUNTIF('Enrollment Form'!AV904:AW904,\"Yes\")>=1),\"-\",IF(AND('Enrollment Form'!C904=\"Enroll\",COUNTIF('Enrollment Form'!AV904:AW904,\"No\")=2,'Enrollment Form'!AX904=\"\"),\"N\",\"Y\")))","v":""},{"$f":"IF(OR(B897=\"N\",'Enrollment Form'!B904<>\"Subscriber\",'Enrollment Form'!C904=\"ROC\",'Enrollment Form'!O904<>\"Multiple of Salary\"),\"-\",IF(COUNTA('Enrollment Form'!T904:U904)<2,\"N\",\"Y\"))","v":"-"},{"$f":"IF(B897=\"N\",\"\",IF(OR('Enrollment Form'!C904=\"ROC\",'Enrollment Form'!B904<>\"Subscriber\",'Enrollment Form'!O904=\"Waive\",'Enrollment Form'!O904=\"\"),\"-\",IF('Enrollment Form'!P904=\"\",\"N\",\"Y\")))","v":""},{"$f":"IF($B897=\"N\",\"\",IF(AND('Enrollment Form'!$C904=\"ROC\",'Enrollment Form'!$DR904<>\"\"),\"Y\",IF(AND('Enrollment Form'!$C904=\"ROC\",'Enrollment Form'!$DR904=\"\"),\"N\",IF(AND('Enrollment Form'!$C904=\"Enroll\",'Enrollment Form'!$B904=\"Subscriber\",'Enrollment Form'!$CX904=\"No\",'Enrollment Form'!$DR904=\"\"),\"N\",IF(AND('Enrollment Form'!$C904=\"Enroll\",'Enrollment Form'!$B904=\"Subscriber\",'Enrollment Form'!$CX904=\"Yes\"),\"-\",\"Y\")))))","v":""},{"$f":"IF($B897=\"N\",\"\",IF(AND('Enrollment Form'!$C904=\"ROC\",'Enrollment Form'!$DS904<>\"\"),\"Y\",IF(AND('Enrollment Form'!$C904=\"ROC\",'Enrollment Form'!$DS904=\"\"),\"N\",IF(AND('Enrollment Form'!$C904=\"Enroll\",'Enrollment Form'!$B904=\"Subscriber\",'Enrollment Form'!$CX904=\"No\",'Enrollment Form'!$DS904=\"\"),\"N\",IF(AND('Enrollment Form'!$C904=\"Enroll\",'Enrollment Form'!$B904=\"Subscriber\",'Enrollment Form'!$CX904=\"Yes\"),\"-\",\"Y\")))))","v":""},{"$f":"IF('Enrollment Form'!AH904=\"\",\"\",IF(ISERROR(SEARCH(\".\",'Enrollment Form'!AH904,SEARCH(\"@\",'Enrollment Form'!AH904))),\"N\",\"Y\"))","v":""},{"$f":"IF(OR($B897=\"N\",'Enrollment Form'!$G904=\"\"),\"\",IF('Enrollment Form'!$B904<>\"Subscriber\",\"-\",IF(COUNTIF('Enrollment Form'!$AV904:$AW904,\"Yes\")=2,\"N\",\"Y\")))","v":""},{"$f":"IF(OR('Enrollment Form'!$CJ904=\"\",'Enrollment Form'!$CJ904=\"No\"),\"-\",IF(AND('Enrollment Form'!$CJ904=\"Yes\",'Enrollment Form'!$CK904=\"\"),\"N\",\"Y\"))","v":"-"},{"$f":"IF(OR('Enrollment Form'!$CL904=\"\",'Enrollment Form'!$CL904=\"No\"),\"-\",IF(AND('Enrollment Form'!$CL904=\"Yes\",'Enrollment Form'!$CM904=\"\"),\"N\",\"Y\"))","v":"-"},{"$f":"IF(OR('Enrollment Form'!$CN904=\"\",'Enrollment Form'!$CN904=\"No\"),\"-\",IF(AND('Enrollment Form'!$CN904=\"Yes\",'Enrollment Form'!$CO904=\"\"),\"N\",\"Y\"))","v":"-"},{"$f":"IF(OR('Enrollment Form'!$CN904=\"\",'Enrollment Form'!$CN904=\"No\"),\"-\",IF(AND('Enrollment Form'!$CN904=\"Yes\",'Enrollment Form'!$CP904=\"\"),\"N\",\"Y\"))","v":"-"},{"$f":"IF('Enrollment Form'!B904<>\"Subscriber\",\"-\",IF(AND('Enrollment Form'!B904=\"Subscriber\",'Enrollment Form'!C904=\"Enroll\",'Enrollment Form'!AA904=\"\"),\"N\",\"Y\"))","v":"-"},{"$f":"IF(OR('Enrollment Form'!B904=\"Subscriber\",'Enrollment Form'!B904=\"\"),\"-\",IF('Enrollment Form'!BP904=\"\",\"N\",\"Y\"))","v":"-"},{"$f":"IF('Enrollment Form'!B904<>\"Subscriber\",\"-\",IF(AND('Enrollment Form'!B904=\"Subscriber\",'Enrollment Form'!G904=\"\"),\"N\",\"Y\"))","v":"-"},{"$f":"IF('Enrollment Form'!A904=\"\",\"\",IF('Enrollment Form'!B904=\"Subscriber\",\"-\",IF(AND('Enrollment Form'!B904<>\"Subscriber\",'Enrollment Form'!G904='Enrollment Form'!H904),\"N\",\"Y\")))","v":""},0]
[905,{"$f":"IF('Enrollment Form'!$A905<>\"\",\"Y\",\"N\")","v":"N"},{"$f":"IF(AND('Enrollment Form'!$B905=\"\",'Enrollment Form'!$C905<>\"\"),\"N\",IF($B898=\"N\",\"\",\"Y\"))","v":""},{"$f":"IF(OR($B898=\"N\",'Enrollment Form'!G905=\"\"),\"\",IF('Enrollment Form'!$B905<>\"Subscriber\",\"\",IF('Enrollment Form'!$G905='Enrollment Form'!$H905,\"Y\",\"N\")))","v":""},{"$f":"IF($B898=\"N\",\"\",IF(AND(COUNTIFS('Enrollment Form'!$H$11:$H$1000,'Enrollment Form'!$H905,'Enrollment Form'!$B$11:$B$1000,'Enrollment Form'!$B905)>1,'Enrollment Form'!$H905<>\"\"),\"N\",\"Y\"))","v":""},{"$f":"IF($B898=\"N\",\"\",IF(LEN('Enrollment Form'!$Y905)=0,\"\",IF(LEN('Enrollment Form'!$Y905)<>5,\"N\",\"Y\")))","v":""},{"$f":"IF($B898=\"N\",\"\",IF(LEN('Enrollment Form'!$AD905=0),\"\",IF(LEN('Enrollment Form'!$AD905)<>5,\"N\",\"Y\")))","v":""},{"$f":"IF($B898=\"N\",\"\",IF(LEN('Enrollment Form'!$BS905=0),\"\",IF(LEN('Enrollment Form'!$BS905)<>5,\"N\",\"Y\")))","v":""},{"$f":"IF($B898=\"N\",\"\",IF(LEN('Enrollment Form'!$AE905)=0,\"\",IF(LEN('Enrollment Form'!$AE905)<>10,\"N\",\"Y\")))","v":""},{"$f":"IF($B898=\"N\",\"\",IF(LEN('Enrollment Form'!$AF905)=0,\"\",IF(LEN('Enrollment Form'!$AF905)<>10,\"N\",\"Y\")))","v":""},{"$f":"IF('Enrollment Form'!$O905<>\"Graded\",\"-\",IF(AND('Enrollment Form'!$O905=\"Graded\",'Enrollment Form'!$AR905<>\"\"),\"Y\",\"N\"))","v":"-"},{"$f":"IF($B898=\"N\",\"\",IF(OR('Enrollment Form'!$B905<>\"Subscriber\",'Enrollment Form'!$C905=\"ROC\"),\"-\",IF(AND('Enrollment Form'!$B905=\"Subscriber\",'Enrollment Form'!$C905=\"Enroll\",'Enrollment Form'!$AJ905<>\"\"),\"Y\",\"N\")))","v":""},{"$f":"IF($B898=\"N\",\"\",IF(OR('Enrollment Form'!$B905<>\"Subscriber\",'Enrollment Form'!$C905=\"ROC\"),\"-\",IF(AND('Enrollment Form'!$B905=\"Subscriber\",'Enrollment Form'!$C905=\"Enroll\",'Enrollment Form'!$AK905<>\"\"),\"Y\",\"N\")))","v":""},{"$f":"IF($B898=\"N\",\"\",IF(OR('Enrollment Form'!$B905<>\"Subscriber\",'Enrollment Form'!$C905=\"ROC\"),\"-\",IF(AND('Enrollment Form'!$B905=\"Subscriber\",'Enrollment Form'!$C905=\"Enroll\",'Enrollment Form'!$AL905<>\"\"),\"Y\",\"N\")))","v":""},{"$f":"IF($B898=\"N\",\"\",IF(OR('Enrollment Form'!$B905<>\"Subscriber\",'Enrollment Form'!$C905=\"ROC\"),\"-\",IF(AND('Enrollment Form'!$B905=\"Subscriber\",'Enrollment Form'!$C905=\"Enroll\",'Enrollment Form'!$AP905<>\"\"),\"Y\",\"N\")))","v":""},{"$f":"IF($B898=\"N\",\"\",IF(OR('Enrollment Form'!$B905<>\"Subscriber\",'Enrollment Form'!$C905=\"ROC\"),\"-\",IF(AND('Enrollment Form'!$B905=\"Subscriber\",'Enrollment Form'!$C905=\"Enroll\",'Enrollment Form'!$AQ905<>\"\"),\"Y\",\"N\")))","v":""},{"$f":"IF($B898=\"N\",\"\",IF(OR('Enrollment Form'!$B905<>\"Subscriber\",'Enrollment Form'!$C905=\"ROC\"),\"-\",IF(AND('Enrollment Form'!$B905=\"Subscriber\",'Enrollment Form'!$C905=\"Enroll\",'Enrollment Form'!$AS905<>\"\"),\"Y\",\"N\")))","v":""},{"$f":"IF($B898=\"N\",\"\",IF($Q898=\"-\",\"-\",IF(AND($Q898=\"Y\",'Enrollment Form'!$AS905=\"No\"),\"-\",IF(AND($Q898=\"Y\",'Enrollment Form'!$AS905=\"Yes\",'Enrollment Form'!$AT905<>\"\"),\"Y\",\"N\"))))","v":""},{"$f":"IF($B898=\"N\",\"\",IF(OR('Enrollment Form'!$B905<>\"Subscriber\",'Enrollment Form'!$C905=\"ROC\"),\"-\",IF(AND('Enrollment Form'!$B905=\"Subscriber\",'Enrollment Form'!$C905=\"Enroll\",'Enrollment Form'!$CV905<>\"\"),\"Y\",\"N\")))","v":""},{"$f":"IF($B898=\"N\",\"\",IF($S898=\"-\",\"-\",IF(AND($S898=\"Y\",'Enrollment Form'!$CV905=\"No\"),\"-\",IF(AND($S898=\"Y\",'Enrollment Form'!$CV905=\"Yes\",'Enrollment Form'!$CW905<>\"\"),\"Y\",\"N\"))))","v":""},{"$f":"IF(OR('Enrollment Form'!$AY905=\"Yes\",'Enrollment Form'!$AY905=\"\"),\"-\",IF(OR(AND('Enrollment Form'!$AY905=\"No\",ISERROR(FIND(\"HMO\",VLOOKUP('Enrollment Form'!G905,'Enrollment Form'!H$11:J$1000,3,FALSE),1))=FALSE,COUNTA('Enrollment Form'!$AZ905:$BC905)=4),AND('Enrollment Form'!$AY905=\"No\",ISERROR(FIND(\"HMO\",VLOOKUP('Enrollment Form'!G905,'Enrollment Form'!H$11:J$1000,3,FALSE),1))=FALSE,COUNTA('Enrollment Form'!$BT905:$BW905)=4)),\"Y\",\"N\"))","v":"-"},{"$f":"IF($B898=\"N\",\"\",IF('Enrollment Form'!$B905=\"Subscriber\",\"-\",IF(COUNTA('Enrollment Form'!$BL905,'Enrollment Form'!$BN905)=2,\"Y\",\"N\")))","v":""},{"$f":"IF($B898=\"N\",\"\",IF(OR('Enrollment Form'!$AX905=\"\",'Enrollment Form'!$AX905=\"No\"),\"-\",IF(AND('Enrollment Form'!$AX905=\"Yes\",COUNTA('Enrollment Form'!$CR905)=1),\"Y\",\"N\")))","v":""},{"$f":"IF(OR('Enrollment Form'!$CR905=\"\",'Enrollment Form'!$CR905=\"No\"),\"-\",IF(COUNTA('Enrollment Form'!$CT905:$CU905)=2,\"Y\",\"N\"))","v":"-"},{"$f":"IF($B898=\"N\",\"\",IF(COUNTIF('Enrollment Form'!$DG905:$DP905,\"Other\")=COUNTA('Enrollment Form'!$DK905,'Enrollment Form'!$DH905,'Enrollment Form'!$DN905,'Enrollment Form'!$DQ905),\"Y\",\"N\"))","v":""},{"$f":"IF($B898=\"N\",\"\",IF(OR('Enrollment Form'!B905<>\"Subscriber\",'Enrollment Form'!C905=\"ROC\",COUNTIF('Enrollment Form'!AV905:AW905,\"Yes\")>=1),\"-\",IF(AND('Enrollment Form'!C905=\"Enroll\",COUNTIF('Enrollment Form'!AV905:AW905,\"No\")=2,'Enrollment Form'!AX905=\"\"),\"N\",\"Y\")))","v":""},{"$f":"IF(OR(B898=\"N\",'Enrollment Form'!B905<>\"Subscriber\",'Enrollment Form'!C905=\"ROC\",'Enrollment Form'!O905<>\"Multiple of Salary\"),\"-\",IF(COUNTA('Enrollment Form'!T905:U905)<2,\"N\",\"Y\"))","v":"-"},{"$f":"IF(B898=\"N\",\"\",IF(OR('Enrollment Form'!C905=\"ROC\",'Enrollment Form'!B905<>\"Subscriber\",'Enrollment Form'!O905=\"Waive\",'Enrollment Form'!O905=\"\"),\"-\",IF('Enrollment Form'!P905=\"\",\"N\",\"Y\")))","v":""},{"$f":"IF($B898=\"N\",\"\",IF(AND('Enrollment Form'!$C905=\"ROC\",'Enrollment Form'!$DR905<>\"\"),\"Y\",IF(AND('Enrollment Form'!$C905=\"ROC\",'Enrollment Form'!$DR905=\"\"),\"N\",IF(AND('Enrollment Form'!$C905=\"Enroll\",'Enrollment Form'!$B905=\"Subscriber\",'Enrollment Form'!$CX905=\"No\",'Enrollment Form'!$DR905=\"\"),\"N\",IF(AND('Enrollment Form'!$C905=\"Enroll\",'Enrollment Form'!$B905=\"Subscriber\",'Enrollment Form'!$CX905=\"Yes\"),\"-\",\"Y\")))))","v":""},{"$f":"IF($B898=\"N\",\"\",IF(AND('Enrollment Form'!$C905=\"ROC\",'Enrollment Form'!$DS905<>\"\"),\"Y\",IF(AND('Enrollment Form'!$C905=\"ROC\",'Enrollment Form'!$DS905=\"\"),\"N\",IF(AND('Enrollment Form'!$C905=\"Enroll\",'Enrollment Form'!$B905=\"Subscriber\",'Enrollment Form'!$CX905=\"No\",'Enrollment Form'!$DS905=\"\"),\"N\",IF(AND('Enrollment Form'!$C905=\"Enroll\",'Enrollment Form'!$B905=\"Subscriber\",'Enrollment Form'!$CX905=\"Yes\"),\"-\",\"Y\")))))","v":""},{"$f":"IF('Enrollment Form'!AH905=\"\",\"\",IF(ISERROR(SEARCH(\".\",'Enrollment Form'!AH905,SEARCH(\"@\",'Enrollment Form'!AH905))),\"N\",\"Y\"))","v":""},{"$f":"IF(OR($B898=\"N\",'Enrollment Form'!$G905=\"\"),\"\",IF('Enrollment Form'!$B905<>\"Subscriber\",\"-\",IF(COUNTIF('Enrollment Form'!$AV905:$AW905,\"Yes\")=2,\"N\",\"Y\")))","v":""},{"$f":"IF(OR('Enrollment Form'!$CJ905=\"\",'Enrollment Form'!$CJ905=\"No\"),\"-\",IF(AND('Enrollment Form'!$CJ905=\"Yes\",'Enrollment Form'!$CK905=\"\"),\"N\",\"Y\"))","v":"-"},{"$f":"IF(OR('Enrollment Form'!$CL905=\"\",'Enrollment Form'!$CL905=\"No\"),\"-\",IF(AND('Enrollment Form'!$CL905=\"Yes\",'Enrollment Form'!$CM905=\"\"),\"N\",\"Y\"))","v":"-"},{"$f":"IF(OR('Enrollment Form'!$CN905=\"\",'Enrollment Form'!$CN905=\"No\"),\"-\",IF(AND('Enrollment Form'!$CN905=\"Yes\",'Enrollment Form'!$CO905=\"\"),\"N\",\"Y\"))","v":"-"},{"$f":"IF(OR('Enrollment Form'!$CN905=\"\",'Enrollment Form'!$CN905=\"No\"),\"-\",IF(AND('Enrollment Form'!$CN905=\"Yes\",'Enrollment Form'!$CP905=\"\"),\"N\",\"Y\"))","v":"-"},{"$f":"IF('Enrollment Form'!B905<>\"Subscriber\",\"-\",IF(AND('Enrollment Form'!B905=\"Subscriber\",'Enrollment Form'!C905=\"Enroll\",'Enrollment Form'!AA905=\"\"),\"N\",\"Y\"))","v":"-"},{"$f":"IF(OR('Enrollment Form'!B905=\"Subscriber\",'Enrollment Form'!B905=\"\"),\"-\",IF('Enrollment Form'!BP905=\"\",\"N\",\"Y\"))","v":"-"},{"$f":"IF('Enrollment Form'!B905<>\"Subscriber\",\"-\",IF(AND('Enrollment Form'!B905=\"Subscriber\",'Enrollment Form'!G905=\"\"),\"N\",\"Y\"))","v":"-"},{"$f":"IF('Enrollment Form'!A905=\"\",\"\",IF('Enrollment Form'!B905=\"Subscriber\",\"-\",IF(AND('Enrollment Form'!B905<>\"Subscriber\",'Enrollment Form'!G905='Enrollment Form'!H905),\"N\",\"Y\")))","v":""},0]
[906,{"$f":"IF('Enrollment Form'!$A906<>\"\",\"Y\",\"N\")","v":"N"},{"$f":"IF(AND('Enrollment Form'!$B906=\"\",'Enrollment Form'!$C906<>\"\"),\"N\",IF($B899=\"N\",\"\",\"Y\"))","v":""},{"$f":"IF(OR($B899=\"N\",'Enrollment Form'!G906=\"\"),\"\",IF('Enrollment Form'!$B906<>\"Subscriber\",\"\",IF('Enrollment Form'!$G906='Enrollment Form'!$H906,\"Y\",\"N\")))","v":""},{"$f":"IF($B899=\"N\",\"\",IF(AND(COUNTIFS('Enrollment Form'!$H$11:$H$1000,'Enrollment Form'!$H906,'Enrollment Form'!$B$11:$B$1000,'Enrollment Form'!$B906)>1,'Enrollment Form'!$H906<>\"\"),\"N\",\"Y\"))","v":""},{"$f":"IF($B899=\"N\",\"\",IF(LEN('Enrollment Form'!$Y906)=0,\"\",IF(LEN('Enrollment Form'!$Y906)<>5,\"N\",\"Y\")))","v":""},{"$f":"IF($B899=\"N\",\"\",IF(LEN('Enrollment Form'!$AD906=0),\"\",IF(LEN('Enrollment Form'!$AD906)<>5,\"N\",\"Y\")))","v":""},{"$f":"IF($B899=\"N\",\"\",IF(LEN('Enrollment Form'!$BS906=0),\"\",IF(LEN('Enrollment Form'!$BS906)<>5,\"N\",\"Y\")))","v":""},{"$f":"IF($B899=\"N\",\"\",IF(LEN('Enrollment Form'!$AE906)=0,\"\",IF(LEN('Enrollment Form'!$AE906)<>10,\"N\",\"Y\")))","v":""},{"$f":"IF($B899=\"N\",\"\",IF(LEN('Enrollment Form'!$AF906)=0,\"\",IF(LEN('Enrollment Form'!$AF906)<>10,\"N\",\"Y\")))","v":""},{"$f":"IF('Enrollment Form'!$O906<>\"Graded\",\"-\",IF(AND('Enrollment Form'!$O906=\"Graded\",'Enrollment Form'!$AR906<>\"\"),\"Y\",\"N\"))","v":"-"},{"$f":"IF($B899=\"N\",\"\",IF(OR('Enrollment Form'!$B906<>\"Subscriber\",'Enrollment Form'!$C906=\"ROC\"),\"-\",IF(AND('Enrollment Form'!$B906=\"Subscriber\",'Enrollment Form'!$C906=\"Enroll\",'Enrollment Form'!$AJ906<>\"\"),\"Y\",\"N\")))","v":""},{"$f":"IF($B899=\"N\",\"\",IF(OR('Enrollment Form'!$B906<>\"Subscriber\",'Enrollment Form'!$C906=\"ROC\"),\"-\",IF(AND('Enrollment Form'!$B906=\"Subscriber\",'Enrollment Form'!$C906=\"Enroll\",'Enrollment Form'!$AK906<>\"\"),\"Y\",\"N\")))","v":""},{"$f":"IF($B899=\"N\",\"\",IF(OR('Enrollment Form'!$B906<>\"Subscriber\",'Enrollment Form'!$C906=\"ROC\"),\"-\",IF(AND('Enrollment Form'!$B906=\"Subscriber\",'Enrollment Form'!$C906=\"Enroll\",'Enrollment Form'!$AL906<>\"\"),\"Y\",\"N\")))","v":""},{"$f":"IF($B899=\"N\",\"\",IF(OR('Enrollment Form'!$B906<>\"Subscriber\",'Enrollment Form'!$C906=\"ROC\"),\"-\",IF(AND('Enrollment Form'!$B906=\"Subscriber\",'Enrollment Form'!$C906=\"Enroll\",'Enrollment Form'!$AP906<>\"\"),\"Y\",\"N\")))","v":""},{"$f":"IF($B899=\"N\",\"\",IF(OR('Enrollment Form'!$B906<>\"Subscriber\",'Enrollment Form'!$C906=\"ROC\"),\"-\",IF(AND('Enrollment Form'!$B906=\"Subscriber\",'Enrollment Form'!$C906=\"Enroll\",'Enrollment Form'!$AQ906<>\"\"),\"Y\",\"N\")))","v":""},{"$f":"IF($B899=\"N\",\"\",IF(OR('Enrollment Form'!$B906<>\"Subscriber\",'Enrollment Form'!$C906=\"ROC\"),\"-\",IF(AND('Enrollment Form'!$B906=\"Subscriber\",'Enrollment Form'!$C906=\"Enroll\",'Enrollment Form'!$AS906<>\"\"),\"Y\",\"N\")))","v":""},{"$f":"IF($B899=\"N\",\"\",IF($Q899=\"-\",\"-\",IF(AND($Q899=\"Y\",'Enrollment Form'!$AS906=\"No\"),\"-\",IF(AND($Q899=\"Y\",'Enrollment Form'!$AS906=\"Yes\",'Enrollment Form'!$AT906<>\"\"),\"Y\",\"N\"))))","v":""},{"$f":"IF($B899=\"N\",\"\",IF(OR('Enrollment Form'!$B906<>\"Subscriber\",'Enrollment Form'!$C906=\"ROC\"),\"-\",IF(AND('Enrollment Form'!$B906=\"Subscriber\",'Enrollment Form'!$C906=\"Enroll\",'Enrollment Form'!$CV906<>\"\"),\"Y\",\"N\")))","v":""},{"$f":"IF($B899=\"N\",\"\",IF($S899=\"-\",\"-\",IF(AND($S899=\"Y\",'Enrollment Form'!$CV906=\"No\"),\"-\",IF(AND($S899=\"Y\",'Enrollment Form'!$CV906=\"Yes\",'Enrollment Form'!$CW906<>\"\"),\"Y\",\"N\"))))","v":""},{"$f":"IF(OR('Enrollment Form'!$AY906=\"Yes\",'Enrollment Form'!$AY906=\"\"),\"-\",IF(OR(AND('Enrollment Form'!$AY906=\"No\",ISERROR(FIND(\"HMO\",VLOOKUP('Enrollment Form'!G906,'Enrollment Form'!H$11:J$1000,3,FALSE),1))=FALSE,COUNTA('Enrollment Form'!$AZ906:$BC906)=4),AND('Enrollment Form'!$AY906=\"No\",ISERROR(FIND(\"HMO\",VLOOKUP('Enrollment Form'!G906,'Enrollment Form'!H$11:J$1000,3,FALSE),1))=FALSE,COUNTA('Enrollment Form'!$BT906:$BW906)=4)),\"Y\",\"N\"))","v":"-"},{"$f":"IF($B899=\"N\",\"\",IF('Enrollment Form'!$B906=\"Subscriber\",\"-\",IF(COUNTA('Enrollment Form'!$BL906,'Enrollment Form'!$BN906)=2,\"Y\",\"N\")))","v":""},{"$f":"IF($B899=\"N\",\"\",IF(OR('Enrollment Form'!$AX906=\"\",'Enrollment Form'!$AX906=\"No\"),\"-\",IF(AND('Enrollment Form'!$AX906=\"Yes\",COUNTA('Enrollment Form'!$CR906)=1),\"Y\",\"N\")))","v":""},{"$f":"IF(OR('Enrollment Form'!$CR906=\"\",'Enrollment Form'!$CR906=\"No\"),\"-\",IF(COUNTA('Enrollment Form'!$CT906:$CU906)=2,\"Y\",\"N\"))","v":"-"},{"$f":"IF($B899=\"N\",\"\",IF(COUNTIF('Enrollment Form'!$DG906:$DP906,\"Other\")=COUNTA('Enrollment Form'!$DK906,'Enrollment Form'!$DH906,'Enrollment Form'!$DN906,'Enrollment Form'!$DQ906),\"Y\",\"N\"))","v":""},{"$f":"IF($B899=\"N\",\"\",IF(OR('Enrollment Form'!B906<>\"Subscriber\",'Enrollment Form'!C906=\"ROC\",COUNTIF('Enrollment Form'!AV906:AW906,\"Yes\")>=1),\"-\",IF(AND('Enrollment Form'!C906=\"Enroll\",COUNTIF('Enrollment Form'!AV906:AW906,\"No\")=2,'Enrollment Form'!AX906=\"\"),\"N\",\"Y\")))","v":""},{"$f":"IF(OR(B899=\"N\",'Enrollment Form'!B906<>\"Subscriber\",'Enrollment Form'!C906=\"ROC\",'Enrollment Form'!O906<>\"Multiple of Salary\"),\"-\",IF(COUNTA('Enrollment Form'!T906:U906)<2,\"N\",\"Y\"))","v":"-"},{"$f":"IF(B899=\"N\",\"\",IF(OR('Enrollment Form'!C906=\"ROC\",'Enrollment Form'!B906<>\"Subscriber\",'Enrollment Form'!O906=\"Waive\",'Enrollment Form'!O906=\"\"),\"-\",IF('Enrollment Form'!P906=\"\",\"N\",\"Y\")))","v":""},{"$f":"IF($B899=\"N\",\"\",IF(AND('Enrollment Form'!$C906=\"ROC\",'Enrollment Form'!$DR906<>\"\"),\"Y\",IF(AND('Enrollment Form'!$C906=\"ROC\",'Enrollment Form'!$DR906=\"\"),\"N\",IF(AND('Enrollment Form'!$C906=\"Enroll\",'Enrollment Form'!$B906=\"Subscriber\",'Enrollment Form'!$CX906=\"No\",'Enrollment Form'!$DR906=\"\"),\"N\",IF(AND('Enrollment Form'!$C906=\"Enroll\",'Enrollment Form'!$B906=\"Subscriber\",'Enrollment Form'!$CX906=\"Yes\"),\"-\",\"Y\")))))","v":""},{"$f":"IF($B899=\"N\",\"\",IF(AND('Enrollment Form'!$C906=\"ROC\",'Enrollment Form'!$DS906<>\"\"),\"Y\",IF(AND('Enrollment Form'!$C906=\"ROC\",'Enrollment Form'!$DS906=\"\"),\"N\",IF(AND('Enrollment Form'!$C906=\"Enroll\",'Enrollment Form'!$B906=\"Subscriber\",'Enrollment Form'!$CX906=\"No\",'Enrollment Form'!$DS906=\"\"),\"N\",IF(AND('Enrollment Form'!$C906=\"Enroll\",'Enrollment Form'!$B906=\"Subscriber\",'Enrollment Form'!$CX906=\"Yes\"),\"-\",\"Y\")))))","v":""},{"$f":"IF('Enrollment Form'!AH906=\"\",\"\",IF(ISERROR(SEARCH(\".\",'Enrollment Form'!AH906,SEARCH(\"@\",'Enrollment Form'!AH906))),\"N\",\"Y\"))","v":""},{"$f":"IF(OR($B899=\"N\",'Enrollment Form'!$G906=\"\"),\"\",IF('Enrollment Form'!$B906<>\"Subscriber\",\"-\",IF(COUNTIF('Enrollment Form'!$AV906:$AW906,\"Yes\")=2,\"N\",\"Y\")))","v":""},{"$f":"IF(OR('Enrollment Form'!$CJ906=\"\",'Enrollment Form'!$CJ906=\"No\"),\"-\",IF(AND('Enrollment Form'!$CJ906=\"Yes\",'Enrollment Form'!$CK906=\"\"),\"N\",\"Y\"))","v":"-"},{"$f":"IF(OR('Enrollment Form'!$CL906=\"\",'Enrollment Form'!$CL906=\"No\"),\"-\",IF(AND('Enrollment Form'!$CL906=\"Yes\",'Enrollment Form'!$CM906=\"\"),\"N\",\"Y\"))","v":"-"},{"$f":"IF(OR('Enrollment Form'!$CN906=\"\",'Enrollment Form'!$CN906=\"No\"),\"-\",IF(AND('Enrollment Form'!$CN906=\"Yes\",'Enrollment Form'!$CO906=\"\"),\"N\",\"Y\"))","v":"-"},{"$f":"IF(OR('Enrollment Form'!$CN906=\"\",'Enrollment Form'!$CN906=\"No\"),\"-\",IF(AND('Enrollment Form'!$CN906=\"Yes\",'Enrollment Form'!$CP906=\"\"),\"N\",\"Y\"))","v":"-"},{"$f":"IF('Enrollment Form'!B906<>\"Subscriber\",\"-\",IF(AND('Enrollment Form'!B906=\"Subscriber\",'Enrollment Form'!C906=\"Enroll\",'Enrollment Form'!AA906=\"\"),\"N\",\"Y\"))","v":"-"},{"$f":"IF(OR('Enrollment Form'!B906=\"Subscriber\",'Enrollment Form'!B906=\"\"),\"-\",IF('Enrollment Form'!BP906=\"\",\"N\",\"Y\"))","v":"-"},{"$f":"IF('Enrollment Form'!B906<>\"Subscriber\",\"-\",IF(AND('Enrollment Form'!B906=\"Subscriber\",'Enrollment Form'!G906=\"\"),\"N\",\"Y\"))","v":"-"},{"$f":"IF('Enrollment Form'!A906=\"\",\"\",IF('Enrollment Form'!B906=\"Subscriber\",\"-\",IF(AND('Enrollment Form'!B906<>\"Subscriber\",'Enrollment Form'!G906='Enrollment Form'!H906),\"N\",\"Y\")))","v":""},0]
[907,{"$f":"IF('Enrollment Form'!$A907<>\"\",\"Y\",\"N\")","v":"N"},{"$f":"IF(AND('Enrollment Form'!$B907=\"\",'Enrollment Form'!$C907<>\"\"),\"N\",IF($B900=\"N\",\"\",\"Y\"))","v":""},{"$f":"IF(OR($B900=\"N\",'Enrollment Form'!G907=\"\"),\"\",IF('Enrollment Form'!$B907<>\"Subscriber\",\"\",IF('Enrollment Form'!$G907='Enrollment Form'!$H907,\"Y\",\"N\")))","v":""},{"$f":"IF($B900=\"N\",\"\",IF(AND(COUNTIFS('Enrollment Form'!$H$11:$H$1000,'Enrollment Form'!$H907,'Enrollment Form'!$B$11:$B$1000,'Enrollment Form'!$B907)>1,'Enrollment Form'!$H907<>\"\"),\"N\",\"Y\"))","v":""},{"$f":"IF($B900=\"N\",\"\",IF(LEN('Enrollment Form'!$Y907)=0,\"\",IF(LEN('Enrollment Form'!$Y907)<>5,\"N\",\"Y\")))","v":""},{"$f":"IF($B900=\"N\",\"\",IF(LEN('Enrollment Form'!$AD907=0),\"\",IF(LEN('Enrollment Form'!$AD907)<>5,\"N\",\"Y\")))","v":""},{"$f":"IF($B900=\"N\",\"\",IF(LEN('Enrollment Form'!$BS907=0),\"\",IF(LEN('Enrollment Form'!$BS907)<>5,\"N\",\"Y\")))","v":""},{"$f":"IF($B900=\"N\",\"\",IF(LEN('Enrollment Form'!$AE907)=0,\"\",IF(LEN('Enrollment Form'!$AE907)<>10,\"N\",\"Y\")))","v":""},{"$f":"IF($B900=\"N\",\"\",IF(LEN('Enrollment Form'!$AF907)=0,\"\",IF(LEN('Enrollment Form'!$AF907)<>10,\"N\",\"Y\")))","v":""},{"$f":"IF('Enrollment Form'!$O907<>\"Graded\",\"-\",IF(AND('Enrollment Form'!$O907=\"Graded\",'Enrollment Form'!$AR907<>\"\"),\"Y\",\"N\"))","v":"-"},{"$f":"IF($B900=\"N\",\"\",IF(OR('Enrollment Form'!$B907<>\"Subscriber\",'Enrollment Form'!$C907=\"ROC\"),\"-\",IF(AND('Enrollment Form'!$B907=\"Subscriber\",'Enrollment Form'!$C907=\"Enroll\",'Enrollment Form'!$AJ907<>\"\"),\"Y\",\"N\")))","v":""},{"$f":"IF($B900=\"N\",\"\",IF(OR('Enrollment Form'!$B907<>\"Subscriber\",'Enrollment Form'!$C907=\"ROC\"),\"-\",IF(AND('Enrollment Form'!$B907=\"Subscriber\",'Enrollment Form'!$C907=\"Enroll\",'Enrollment Form'!$AK907<>\"\"),\"Y\",\"N\")))","v":""},{"$f":"IF($B900=\"N\",\"\",IF(OR('Enrollment Form'!$B907<>\"Subscriber\",'Enrollment Form'!$C907=\"ROC\"),\"-\",IF(AND('Enrollment Form'!$B907=\"Subscriber\",'Enrollment Form'!$C907=\"Enroll\",'Enrollment Form'!$AL907<>\"\"),\"Y\",\"N\")))","v":""},{"$f":"IF($B900=\"N\",\"\",IF(OR('Enrollment Form'!$B907<>\"Subscriber\",'Enrollment Form'!$C907=\"ROC\"),\"-\",IF(AND('Enrollment Form'!$B907=\"Subscriber\",'Enrollment Form'!$C907=\"Enroll\",'Enrollment Form'!$AP907<>\"\"),\"Y\",\"N\")))","v":""},{"$f":"IF($B900=\"N\",\"\",IF(OR('Enrollment Form'!$B907<>\"Subscriber\",'Enrollment Form'!$C907=\"ROC\"),\"-\",IF(AND('Enrollment Form'!$B907=\"Subscriber\",'Enrollment Form'!$C907=\"Enroll\",'Enrollment Form'!$AQ907<>\"\"),\"Y\",\"N\")))","v":""},{"$f":"IF($B900=\"N\",\"\",IF(OR('Enrollment Form'!$B907<>\"Subscriber\",'Enrollment Form'!$C907=\"ROC\"),\"-\",IF(AND('Enrollment Form'!$B907=\"Subscriber\",'Enrollment Form'!$C907=\"Enroll\",'Enrollment Form'!$AS907<>\"\"),\"Y\",\"N\")))","v":""},{"$f":"IF($B900=\"N\",\"\",IF($Q900=\"-\",\"-\",IF(AND($Q900=\"Y\",'Enrollment Form'!$AS907=\"No\"),\"-\",IF(AND($Q900=\"Y\",'Enrollment Form'!$AS907=\"Yes\",'Enrollment Form'!$AT907<>\"\"),\"Y\",\"N\"))))","v":""},{"$f":"IF($B900=\"N\",\"\",IF(OR('Enrollment Form'!$B907<>\"Subscriber\",'Enrollment Form'!$C907=\"ROC\"),\"-\",IF(AND('Enrollment Form'!$B907=\"Subscriber\",'Enrollment Form'!$C907=\"Enroll\",'Enrollment Form'!$CV907<>\"\"),\"Y\",\"N\")))","v":""},{"$f":"IF($B900=\"N\",\"\",IF($S900=\"-\",\"-\",IF(AND($S900=\"Y\",'Enrollment Form'!$CV907=\"No\"),\"-\",IF(AND($S900=\"Y\",'Enrollment Form'!$CV907=\"Yes\",'Enrollment Form'!$CW907<>\"\"),\"Y\",\"N\"))))","v":""},{"$f":"IF(OR('Enrollment Form'!$AY907=\"Yes\",'Enrollment Form'!$AY907=\"\"),\"-\",IF(OR(AND('Enrollment Form'!$AY907=\"No\",ISERROR(FIND(\"HMO\",VLOOKUP('Enrollment Form'!G907,'Enrollment Form'!H$11:J$1000,3,FALSE),1))=FALSE,COUNTA('Enrollment Form'!$AZ907:$BC907)=4),AND('Enrollment Form'!$AY907=\"No\",ISERROR(FIND(\"HMO\",VLOOKUP('Enrollment Form'!G907,'Enrollment Form'!H$11:J$1000,3,FALSE),1))=FALSE,COUNTA('Enrollment Form'!$BT907:$BW907)=4)),\"Y\",\"N\"))","v":"-"},{"$f":"IF($B900=\"N\",\"\",IF('Enrollment Form'!$B907=\"Subscriber\",\"-\",IF(COUNTA('Enrollment Form'!$BL907,'Enrollment Form'!$BN907)=2,\"Y\",\"N\")))","v":""},{"$f":"IF($B900=\"N\",\"\",IF(OR('Enrollment Form'!$AX907=\"\",'Enrollment Form'!$AX907=\"No\"),\"-\",IF(AND('Enrollment Form'!$AX907=\"Yes\",COUNTA('Enrollment Form'!$CR907)=1),\"Y\",\"N\")))","v":""},{"$f":"IF(OR('Enrollment Form'!$CR907=\"\",'Enrollment Form'!$CR907=\"No\"),\"-\",IF(COUNTA('Enrollment Form'!$CT907:$CU907)=2,\"Y\",\"N\"))","v":"-"},{"$f":"IF($B900=\"N\",\"\",IF(COUNTIF('Enrollment Form'!$DG907:$DP907,\"Other\")=COUNTA('Enrollment Form'!$DK907,'Enrollment Form'!$DH907,'Enrollment Form'!$DN907,'Enrollment Form'!$DQ907),\"Y\",\"N\"))","v":""},{"$f":"IF($B900=\"N\",\"\",IF(OR('Enrollment Form'!B907<>\"Subscriber\",'Enrollment Form'!C907=\"ROC\",COUNTIF('Enrollment Form'!AV907:AW907,\"Yes\")>=1),\"-\",IF(AND('Enrollment Form'!C907=\"Enroll\",COUNTIF('Enrollment Form'!AV907:AW907,\"No\")=2,'Enrollment Form'!AX907=\"\"),\"N\",\"Y\")))","v":""},{"$f":"IF(OR(B900=\"N\",'Enrollment Form'!B907<>\"Subscriber\",'Enrollment Form'!C907=\"ROC\",'Enrollment Form'!O907<>\"Multiple of Salary\"),\"-\",IF(COUNTA('Enrollment Form'!T907:U907)<2,\"N\",\"Y\"))","v":"-"},{"$f":"IF(B900=\"N\",\"\",IF(OR('Enrollment Form'!C907=\"ROC\",'Enrollment Form'!B907<>\"Subscriber\",'Enrollment Form'!O907=\"Waive\",'Enrollment Form'!O907=\"\"),\"-\",IF('Enrollment Form'!P907=\"\",\"N\",\"Y\")))","v":""},{"$f":"IF($B900=\"N\",\"\",IF(AND('Enrollment Form'!$C907=\"ROC\",'Enrollment Form'!$DR907<>\"\"),\"Y\",IF(AND('Enrollment Form'!$C907=\"ROC\",'Enrollment Form'!$DR907=\"\"),\"N\",IF(AND('Enrollment Form'!$C907=\"Enroll\",'Enrollment Form'!$B907=\"Subscriber\",'Enrollment Form'!$CX907=\"No\",'Enrollment Form'!$DR907=\"\"),\"N\",IF(AND('Enrollment Form'!$C907=\"Enroll\",'Enrollment Form'!$B907=\"Subscriber\",'Enrollment Form'!$CX907=\"Yes\"),\"-\",\"Y\")))))","v":""},{"$f":"IF($B900=\"N\",\"\",IF(AND('Enrollment Form'!$C907=\"ROC\",'Enrollment Form'!$DS907<>\"\"),\"Y\",IF(AND('Enrollment Form'!$C907=\"ROC\",'Enrollment Form'!$DS907=\"\"),\"N\",IF(AND('Enrollment Form'!$C907=\"Enroll\",'Enrollment Form'!$B907=\"Subscriber\",'Enrollment Form'!$CX907=\"No\",'Enrollment Form'!$DS907=\"\"),\"N\",IF(AND('Enrollment Form'!$C907=\"Enroll\",'Enrollment Form'!$B907=\"Subscriber\",'Enrollment Form'!$CX907=\"Yes\"),\"-\",\"Y\")))))","v":""},{"$f":"IF('Enrollment Form'!AH907=\"\",\"\",IF(ISERROR(SEARCH(\".\",'Enrollment Form'!AH907,SEARCH(\"@\",'Enrollment Form'!AH907))),\"N\",\"Y\"))","v":""},{"$f":"IF(OR($B900=\"N\",'Enrollment Form'!$G907=\"\"),\"\",IF('Enrollment Form'!$B907<>\"Subscriber\",\"-\",IF(COUNTIF('Enrollment Form'!$AV907:$AW907,\"Yes\")=2,\"N\",\"Y\")))","v":""},{"$f":"IF(OR('Enrollment Form'!$CJ907=\"\",'Enrollment Form'!$CJ907=\"No\"),\"-\",IF(AND('Enrollment Form'!$CJ907=\"Yes\",'Enrollment Form'!$CK907=\"\"),\"N\",\"Y\"))","v":"-"},{"$f":"IF(OR('Enrollment Form'!$CL907=\"\",'Enrollment Form'!$CL907=\"No\"),\"-\",IF(AND('Enrollment Form'!$CL907=\"Yes\",'Enrollment Form'!$CM907=\"\"),\"N\",\"Y\"))","v":"-"},{"$f":"IF(OR('Enrollment Form'!$CN907=\"\",'Enrollment Form'!$CN907=\"No\"),\"-\",IF(AND('Enrollment Form'!$CN907=\"Yes\",'Enrollment Form'!$CO907=\"\"),\"N\",\"Y\"))","v":"-"},{"$f":"IF(OR('Enrollment Form'!$CN907=\"\",'Enrollment Form'!$CN907=\"No\"),\"-\",IF(AND('Enrollment Form'!$CN907=\"Yes\",'Enrollment Form'!$CP907=\"\"),\"N\",\"Y\"))","v":"-"},{"$f":"IF('Enrollment Form'!B907<>\"Subscriber\",\"-\",IF(AND('Enrollment Form'!B907=\"Subscriber\",'Enrollment Form'!C907=\"Enroll\",'Enrollment Form'!AA907=\"\"),\"N\",\"Y\"))","v":"-"},{"$f":"IF(OR('Enrollment Form'!B907=\"Subscriber\",'Enrollment Form'!B907=\"\"),\"-\",IF('Enrollment Form'!BP907=\"\",\"N\",\"Y\"))","v":"-"},{"$f":"IF('Enrollment Form'!B907<>\"Subscriber\",\"-\",IF(AND('Enrollment Form'!B907=\"Subscriber\",'Enrollment Form'!G907=\"\"),\"N\",\"Y\"))","v":"-"},{"$f":"IF('Enrollment Form'!A907=\"\",\"\",IF('Enrollment Form'!B907=\"Subscriber\",\"-\",IF(AND('Enrollment Form'!B907<>\"Subscriber\",'Enrollment Form'!G907='Enrollment Form'!H907),\"N\",\"Y\")))","v":""},{"$f":"COUNTIF(C900:AN900,\"N\")","v":0}]
[908,{"$f":"IF('Enrollment Form'!$A908<>\"\",\"Y\",\"N\")","v":"N"},{"$f":"IF(AND('Enrollment Form'!$B908=\"\",'Enrollment Form'!$C908<>\"\"),\"N\",IF($B901=\"N\",\"\",\"Y\"))","v":""},{"$f":"IF(OR($B901=\"N\",'Enrollment Form'!G908=\"\"),\"\",IF('Enrollment Form'!$B908<>\"Subscriber\",\"\",IF('Enrollment Form'!$G908='Enrollment Form'!$H908,\"Y\",\"N\")))","v":""},{"$f":"IF($B901=\"N\",\"\",IF(AND(COUNTIFS('Enrollment Form'!$H$11:$H$1000,'Enrollment Form'!$H908,'Enrollment Form'!$B$11:$B$1000,'Enrollment Form'!$B908)>1,'Enrollment Form'!$H908<>\"\"),\"N\",\"Y\"))","v":""},{"$f":"IF($B901=\"N\",\"\",IF(LEN('Enrollment Form'!$Y908)=0,\"\",IF(LEN('Enrollment Form'!$Y908)<>5,\"N\",\"Y\")))","v":""},{"$f":"IF($B901=\"N\",\"\",IF(LEN('Enrollment Form'!$AD908=0),\"\",IF(LEN('Enrollment Form'!$AD908)<>5,\"N\",\"Y\")))","v":""},{"$f":"IF($B901=\"N\",\"\",IF(LEN('Enrollment Form'!$BS908=0),\"\",IF(LEN('Enrollment Form'!$BS908)<>5,\"N\",\"Y\")))","v":""},{"$f":"IF($B901=\"N\",\"\",IF(LEN('Enrollment Form'!$AE908)=0,\"\",IF(LEN('Enrollment Form'!$AE908)<>10,\"N\",\"Y\")))","v":""},{"$f":"IF($B901=\"N\",\"\",IF(LEN('Enrollment Form'!$AF908)=0,\"\",IF(LEN('Enrollment Form'!$AF908)<>10,\"N\",\"Y\")))","v":""},{"$f":"IF('Enrollment Form'!$O908<>\"Graded\",\"-\",IF(AND('Enrollment Form'!$O908=\"Graded\",'Enrollment Form'!$AR908<>\"\"),\"Y\",\"N\"))","v":"-"},{"$f":"IF($B901=\"N\",\"\",IF(OR('Enrollment Form'!$B908<>\"Subscriber\",'Enrollment Form'!$C908=\"ROC\"),\"-\",IF(AND('Enrollment Form'!$B908=\"Subscriber\",'Enrollment Form'!$C908=\"Enroll\",'Enrollment Form'!$AJ908<>\"\"),\"Y\",\"N\")))","v":""},{"$f":"IF($B901=\"N\",\"\",IF(OR('Enrollment Form'!$B908<>\"Subscriber\",'Enrollment Form'!$C908=\"ROC\"),\"-\",IF(AND('Enrollment Form'!$B908=\"Subscriber\",'Enrollment Form'!$C908=\"Enroll\",'Enrollment Form'!$AK908<>\"\"),\"Y\",\"N\")))","v":""},{"$f":"IF($B901=\"N\",\"\",IF(OR('Enrollment Form'!$B908<>\"Subscriber\",'Enrollment Form'!$C908=\"ROC\"),\"-\",IF(AND('Enrollment Form'!$B908=\"Subscriber\",'Enrollment Form'!$C908=\"Enroll\",'Enrollment Form'!$AL908<>\"\"),\"Y\",\"N\")))","v":""},{"$f":"IF($B901=\"N\",\"\",IF(OR('Enrollment Form'!$B908<>\"Subscriber\",'Enrollment Form'!$C908=\"ROC\"),\"-\",IF(AND('Enrollment Form'!$B908=\"Subscriber\",'Enrollment Form'!$C908=\"Enroll\",'Enrollment Form'!$AP908<>\"\"),\"Y\",\"N\")))","v":""},{"$f":"IF($B901=\"N\",\"\",IF(OR('Enrollment Form'!$B908<>\"Subscriber\",'Enrollment Form'!$C908=\"ROC\"),\"-\",IF(AND('Enrollment Form'!$B908=\"Subscriber\",'Enrollment Form'!$C908=\"Enroll\",'Enrollment Form'!$AQ908<>\"\"),\"Y\",\"N\")))","v":""},{"$f":"IF($B901=\"N\",\"\",IF(OR('Enrollment Form'!$B908<>\"Subscriber\",'Enrollment Form'!$C908=\"ROC\"),\"-\",IF(AND('Enrollment Form'!$B908=\"Subscriber\",'Enrollment Form'!$C908=\"Enroll\",'Enrollment Form'!$AS908<>\"\"),\"Y\",\"N\")))","v":""},{"$f":"IF($B901=\"N\",\"\",IF($Q901=\"-\",\"-\",IF(AND($Q901=\"Y\",'Enrollment Form'!$AS908=\"No\"),\"-\",IF(AND($Q901=\"Y\",'Enrollment Form'!$AS908=\"Yes\",'Enrollment Form'!$AT908<>\"\"),\"Y\",\"N\"))))","v":""},{"$f":"IF($B901=\"N\",\"\",IF(OR('Enrollment Form'!$B908<>\"Subscriber\",'Enrollment Form'!$C908=\"ROC\"),\"-\",IF(AND('Enrollment Form'!$B908=\"Subscriber\",'Enrollment Form'!$C908=\"Enroll\",'Enrollment Form'!$CV908<>\"\"),\"Y\",\"N\")))","v":""},{"$f":"IF($B901=\"N\",\"\",IF($S901=\"-\",\"-\",IF(AND($S901=\"Y\",'Enrollment Form'!$CV908=\"No\"),\"-\",IF(AND($S901=\"Y\",'Enrollment Form'!$CV908=\"Yes\",'Enrollment Form'!$CW908<>\"\"),\"Y\",\"N\"))))","v":""},{"$f":"IF(OR('Enrollment Form'!$AY908=\"Yes\",'Enrollment Form'!$AY908=\"\"),\"-\",IF(OR(AND('Enrollment Form'!$AY908=\"No\",ISERROR(FIND(\"HMO\",VLOOKUP('Enrollment Form'!G908,'Enrollment Form'!H$11:J$1000,3,FALSE),1))=FALSE,COUNTA('Enrollment Form'!$AZ908:$BC908)=4),AND('Enrollment Form'!$AY908=\"No\",ISERROR(FIND(\"HMO\",VLOOKUP('Enrollment Form'!G908,'Enrollment Form'!H$11:J$1000,3,FALSE),1))=FALSE,COUNTA('Enrollment Form'!$BT908:$BW908)=4)),\"Y\",\"N\"))","v":"-"},{"$f":"IF($B901=\"N\",\"\",IF('Enrollment Form'!$B908=\"Subscriber\",\"-\",IF(COUNTA('Enrollment Form'!$BL908,'Enrollment Form'!$BN908)=2,\"Y\",\"N\")))","v":""},{"$f":"IF($B901=\"N\",\"\",IF(OR('Enrollment Form'!$AX908=\"\",'Enrollment Form'!$AX908=\"No\"),\"-\",IF(AND('Enrollment Form'!$AX908=\"Yes\",COUNTA('Enrollment Form'!$CR908)=1),\"Y\",\"N\")))","v":""},{"$f":"IF(OR('Enrollment Form'!$CR908=\"\",'Enrollment Form'!$CR908=\"No\"),\"-\",IF(COUNTA('Enrollment Form'!$CT908:$CU908)=2,\"Y\",\"N\"))","v":"-"},{"$f":"IF($B901=\"N\",\"\",IF(COUNTIF('Enrollment Form'!$DG908:$DP908,\"Other\")=COUNTA('Enrollment Form'!$DK908,'Enrollment Form'!$DH908,'Enrollment Form'!$DN908,'Enrollment Form'!$DQ908),\"Y\",\"N\"))","v":""},{"$f":"IF($B901=\"N\",\"\",IF(OR('Enrollment Form'!B908<>\"Subscriber\",'Enrollment Form'!C908=\"ROC\",COUNTIF('Enrollment Form'!AV908:AW908,\"Yes\")>=1),\"-\",IF(AND('Enrollment Form'!C908=\"Enroll\",COUNTIF('Enrollment Form'!AV908:AW908,\"No\")=2,'Enrollment Form'!AX908=\"\"),\"N\",\"Y\")))","v":""},{"$f":"IF(OR(B901=\"N\",'Enrollment Form'!B908<>\"Subscriber\",'Enrollment Form'!C908=\"ROC\",'Enrollment Form'!O908<>\"Multiple of Salary\"),\"-\",IF(COUNTA('Enrollment Form'!T908:U908)<2,\"N\",\"Y\"))","v":"-"},{"$f":"IF(B901=\"N\",\"\",IF(OR('Enrollment Form'!C908=\"ROC\",'Enrollment Form'!B908<>\"Subscriber\",'Enrollment Form'!O908=\"Waive\",'Enrollment Form'!O908=\"\"),\"-\",IF('Enrollment Form'!P908=\"\",\"N\",\"Y\")))","v":""},{"$f":"IF($B901=\"N\",\"\",IF(AND('Enrollment Form'!$C908=\"ROC\",'Enrollment Form'!$DR908<>\"\"),\"Y\",IF(AND('Enrollment Form'!$C908=\"ROC\",'Enrollment Form'!$DR908=\"\"),\"N\",IF(AND('Enrollment Form'!$C908=\"Enroll\",'Enrollment Form'!$B908=\"Subscriber\",'Enrollment Form'!$CX908=\"No\",'Enrollment Form'!$DR908=\"\"),\"N\",IF(AND('Enrollment Form'!$C908=\"Enroll\",'Enrollment Form'!$B908=\"Subscriber\",'Enrollment Form'!$CX908=\"Yes\"),\"-\",\"Y\")))))","v":""},{"$f":"IF($B901=\"N\",\"\",IF(AND('Enrollment Form'!$C908=\"ROC\",'Enrollment Form'!$DS908<>\"\"),\"Y\",IF(AND('Enrollment Form'!$C908=\"ROC\",'Enrollment Form'!$DS908=\"\"),\"N\",IF(AND('Enrollment Form'!$C908=\"Enroll\",'Enrollment Form'!$B908=\"Subscriber\",'Enrollment Form'!$CX908=\"No\",'Enrollment Form'!$DS908=\"\"),\"N\",IF(AND('Enrollment Form'!$C908=\"Enroll\",'Enrollment Form'!$B908=\"Subscriber\",'Enrollment Form'!$CX908=\"Yes\"),\"-\",\"Y\")))))","v":""},{"$f":"IF('Enrollment Form'!AH908=\"\",\"\",IF(ISERROR(SEARCH(\".\",'Enrollment Form'!AH908,SEARCH(\"@\",'Enrollment Form'!AH908))),\"N\",\"Y\"))","v":""},{"$f":"IF(OR($B901=\"N\",'Enrollment Form'!$G908=\"\"),\"\",IF('Enrollment Form'!$B908<>\"Subscriber\",\"-\",IF(COUNTIF('Enrollment Form'!$AV908:$AW908,\"Yes\")=2,\"N\",\"Y\")))","v":""},{"$f":"IF(OR('Enrollment Form'!$CJ908=\"\",'Enrollment Form'!$CJ908=\"No\"),\"-\",IF(AND('Enrollment Form'!$CJ908=\"Yes\",'Enrollment Form'!$CK908=\"\"),\"N\",\"Y\"))","v":"-"},{"$f":"IF(OR('Enrollment Form'!$CL908=\"\",'Enrollment Form'!$CL908=\"No\"),\"-\",IF(AND('Enrollment Form'!$CL908=\"Yes\",'Enrollment Form'!$CM908=\"\"),\"N\",\"Y\"))","v":"-"},{"$f":"IF(OR('Enrollment Form'!$CN908=\"\",'Enrollment Form'!$CN908=\"No\"),\"-\",IF(AND('Enrollment Form'!$CN908=\"Yes\",'Enrollment Form'!$CO908=\"\"),\"N\",\"Y\"))","v":"-"},{"$f":"IF(OR('Enrollment Form'!$CN908=\"\",'Enrollment Form'!$CN908=\"No\"),\"-\",IF(AND('Enrollment Form'!$CN908=\"Yes\",'Enrollment Form'!$CP908=\"\"),\"N\",\"Y\"))","v":"-"},{"$f":"IF('Enrollment Form'!B908<>\"Subscriber\",\"-\",IF(AND('Enrollment Form'!B908=\"Subscriber\",'Enrollment Form'!C908=\"Enroll\",'Enrollment Form'!AA908=\"\"),\"N\",\"Y\"))","v":"-"},{"$f":"IF(OR('Enrollment Form'!B908=\"Subscriber\",'Enrollment Form'!B908=\"\"),\"-\",IF('Enrollment Form'!BP908=\"\",\"N\",\"Y\"))","v":"-"},{"$f":"IF('Enrollment Form'!B908<>\"Subscriber\",\"-\",IF(AND('Enrollment Form'!B908=\"Subscriber\",'Enrollment Form'!G908=\"\"),\"N\",\"Y\"))","v":"-"},{"$f":"IF('Enrollment Form'!A908=\"\",\"\",IF('Enrollment Form'!B908=\"Subscriber\",\"-\",IF(AND('Enrollment Form'!B908<>\"Subscriber\",'Enrollment Form'!G908='Enrollment Form'!H908),\"N\",\"Y\")))","v":""},0]
[{"$f":"1+A901","v":909},{"$f":"IF('Enrollment Form'!$A909<>\"\",\"Y\",\"N\")","v":"N"},{"$f":"IF(AND('Enrollment Form'!$B909=\"\",'Enrollment Form'!$C909<>\"\"),\"N\",IF($B902=\"N\",\"\",\"Y\"))","v":""},{"$f":"IF(OR($B902=\"N\",'Enrollment Form'!G909=\"\"),\"\",IF('Enrollment Form'!$B909<>\"Subscriber\",\"\",IF('Enrollment Form'!$G909='Enrollment Form'!$H909,\"Y\",\"N\")))","v":""},{"$f":"IF($B902=\"N\",\"\",IF(AND(COUNTIFS('Enrollment Form'!$H$11:$H$1000,'Enrollment Form'!$H909,'Enrollment Form'!$B$11:$B$1000,'Enrollment Form'!$B909)>1,'Enrollment Form'!$H909<>\"\"),\"N\",\"Y\"))","v":""},{"$f":"IF($B902=\"N\",\"\",IF(LEN('Enrollment Form'!$Y909)=0,\"\",IF(LEN('Enrollment Form'!$Y909)<>5,\"N\",\"Y\")))","v":""},{"$f":"IF($B902=\"N\",\"\",IF(LEN('Enrollment Form'!$AD909=0),\"\",IF(LEN('Enrollment Form'!$AD909)<>5,\"N\",\"Y\")))","v":""},{"$f":"IF($B902=\"N\",\"\",IF(LEN('Enrollment Form'!$BS909=0),\"\",IF(LEN('Enrollment Form'!$BS909)<>5,\"N\",\"Y\")))","v":""},{"$f":"IF($B902=\"N\",\"\",IF(LEN('Enrollment Form'!$AE909)=0,\"\",IF(LEN('Enrollment Form'!$AE909)<>10,\"N\",\"Y\")))","v":""},{"$f":"IF($B902=\"N\",\"\",IF(LEN('Enrollment Form'!$AF909)=0,\"\",IF(LEN('Enrollment Form'!$AF909)<>10,\"N\",\"Y\")))","v":""},{"$f":"IF('Enrollment Form'!$O909<>\"Graded\",\"-\",IF(AND('Enrollment Form'!$O909=\"Graded\",'Enrollment Form'!$AR909<>\"\"),\"Y\",\"N\"))","v":"-"},{"$f":"IF($B902=\"N\",\"\",IF(OR('Enrollment Form'!$B909<>\"Subscriber\",'Enrollment Form'!$C909=\"ROC\"),\"-\",IF(AND('Enrollment Form'!$B909=\"Subscriber\",'Enrollment Form'!$C909=\"Enroll\",'Enrollment Form'!$AJ909<>\"\"),\"Y\",\"N\")))","v":""},{"$f":"IF($B902=\"N\",\"\",IF(OR('Enrollment Form'!$B909<>\"Subscriber\",'Enrollment Form'!$C909=\"ROC\"),\"-\",IF(AND('Enrollment Form'!$B909=\"Subscriber\",'Enrollment Form'!$C909=\"Enroll\",'Enrollment Form'!$AK909<>\"\"),\"Y\",\"N\")))","v":""},{"$f":"IF($B902=\"N\",\"\",IF(OR('Enrollment Form'!$B909<>\"Subscriber\",'Enrollment Form'!$C909=\"ROC\"),\"-\",IF(AND('Enrollment Form'!$B909=\"Subscriber\",'Enrollment Form'!$C909=\"Enroll\",'Enrollment Form'!$AL909<>\"\"),\"Y\",\"N\")))","v":""},{"$f":"IF($B902=\"N\",\"\",IF(OR('Enrollment Form'!$B909<>\"Subscriber\",'Enrollment Form'!$C909=\"ROC\"),\"-\",IF(AND('Enrollment Form'!$B909=\"Subscriber\",'Enrollment Form'!$C909=\"Enroll\",'Enrollment Form'!$AP909<>\"\"),\"Y\",\"N\")))","v":""},{"$f":"IF($B902=\"N\",\"\",IF(OR('Enrollment Form'!$B909<>\"Subscriber\",'Enrollment Form'!$C909=\"ROC\"),\"-\",IF(AND('Enrollment Form'!$B909=\"Subscriber\",'Enrollment Form'!$C909=\"Enroll\",'Enrollment Form'!$AQ909<>\"\"),\"Y\",\"N\")))","v":""},{"$f":"IF($B902=\"N\",\"\",IF(OR('Enrollment Form'!$B909<>\"Subscriber\",'Enrollment Form'!$C909=\"ROC\"),\"-\",IF(AND('Enrollment Form'!$B909=\"Subscriber\",'Enrollment Form'!$C909=\"Enroll\",'Enrollment Form'!$AS909<>\"\"),\"Y\",\"N\")))","v":""},{"$f":"IF($B902=\"N\",\"\",IF($Q902=\"-\",\"-\",IF(AND($Q902=\"Y\",'Enrollment Form'!$AS909=\"No\"),\"-\",IF(AND($Q902=\"Y\",'Enrollment Form'!$AS909=\"Yes\",'Enrollment Form'!$AT909<>\"\"),\"Y\",\"N\"))))","v":""},{"$f":"IF($B902=\"N\",\"\",IF(OR('Enrollment Form'!$B909<>\"Subscriber\",'Enrollment Form'!$C909=\"ROC\"),\"-\",IF(AND('Enrollment Form'!$B909=\"Subscriber\",'Enrollment Form'!$C909=\"Enroll\",'Enrollment Form'!$CV909<>\"\"),\"Y\",\"N\")))","v":""},{"$f":"IF($B902=\"N\",\"\",IF($S902=\"-\",\"-\",IF(AND($S902=\"Y\",'Enrollment Form'!$CV909=\"No\"),\"-\",IF(AND($S902=\"Y\",'Enrollment Form'!$CV909=\"Yes\",'Enrollment Form'!$CW909<>\"\"),\"Y\",\"N\"))))","v":""},{"$f":"IF(OR('Enrollment Form'!$AY909=\"Yes\",'Enrollment Form'!$AY909=\"\"),\"-\",IF(OR(AND('Enrollment Form'!$AY909=\"No\",ISERROR(FIND(\"HMO\",VLOOKUP('Enrollment Form'!G909,'Enrollment Form'!H$11:J$1000,3,FALSE),1))=FALSE,COUNTA('Enrollment Form'!$AZ909:$BC909)=4),AND('Enrollment Form'!$AY909=\"No\",ISERROR(FIND(\"HMO\",VLOOKUP('Enrollment Form'!G909,'Enrollment Form'!H$11:J$1000,3,FALSE),1))=FALSE,COUNTA('Enrollment Form'!$BT909:$BW909)=4)),\"Y\",\"N\"))","v":"-"},{"$f":"IF($B902=\"N\",\"\",IF('Enrollment Form'!$B909=\"Subscriber\",\"-\",IF(COUNTA('Enrollment Form'!$BL909,'Enrollment Form'!$BN909)=2,\"Y\",\"N\")))","v":""},{"$f":"IF($B902=\"N\",\"\",IF(OR('Enrollment Form'!$AX909=\"\",'Enrollment Form'!$AX909=\"No\"),\"-\",IF(AND('Enrollment Form'!$AX909=\"Yes\",COUNTA('Enrollment Form'!$CR909)=1),\"Y\",\"N\")))","v":""},{"$f":"IF(OR('Enrollment Form'!$CR909=\"\",'Enrollment Form'!$CR909=\"No\"),\"-\",IF(COUNTA('Enrollment Form'!$CT909:$CU909)=2,\"Y\",\"N\"))","v":"-"},{"$f":"IF($B902=\"N\",\"\",IF(COUNTIF('Enrollment Form'!$DG909:$DP909,\"Other\")=COUNTA('Enrollment Form'!$DK909,'Enrollment Form'!$DH909,'Enrollment Form'!$DN909,'Enrollment Form'!$DQ909),\"Y\",\"N\"))","v":""},{"$f":"IF($B902=\"N\",\"\",IF(OR('Enrollment Form'!B909<>\"Subscriber\",'Enrollment Form'!C909=\"ROC\",COUNTIF('Enrollment Form'!AV909:AW909,\"Yes\")>=1),\"-\",IF(AND('Enrollment Form'!C909=\"Enroll\",COUNTIF('Enrollment Form'!AV909:AW909,\"No\")=2,'Enrollment Form'!AX909=\"\"),\"N\",\"Y\")))","v":""},{"$f":"IF(OR(B902=\"N\",'Enrollment Form'!B909<>\"Subscriber\",'Enrollment Form'!C909=\"ROC\",'Enrollment Form'!O909<>\"Multiple of Salary\"),\"-\",IF(COUNTA('Enrollment Form'!T909:U909)<2,\"N\",\"Y\"))","v":"-"},{"$f":"IF(B902=\"N\",\"\",IF(OR('Enrollment Form'!C909=\"ROC\",'Enrollment Form'!B909<>\"Subscriber\",'Enrollment Form'!O909=\"Waive\",'Enrollment Form'!O909=\"\"),\"-\",IF('Enrollment Form'!P909=\"\",\"N\",\"Y\")))","v":""},{"$f":"IF($B902=\"N\",\"\",IF(AND('Enrollment Form'!$C909=\"ROC\",'Enrollment Form'!$DR909<>\"\"),\"Y\",IF(AND('Enrollment Form'!$C909=\"ROC\",'Enrollment Form'!$DR909=\"\"),\"N\",IF(AND('Enrollment Form'!$C909=\"Enroll\",'Enrollment Form'!$B909=\"Subscriber\",'Enrollment Form'!$CX909=\"No\",'Enrollment Form'!$DR909=\"\"),\"N\",IF(AND('Enrollment Form'!$C909=\"Enroll\",'Enrollment Form'!$B909=\"Subscriber\",'Enrollment Form'!$CX909=\"Yes\"),\"-\",\"Y\")))))","v":""},{"$f":"IF($B902=\"N\",\"\",IF(AND('Enrollment Form'!$C909=\"ROC\",'Enrollment Form'!$DS909<>\"\"),\"Y\",IF(AND('Enrollment Form'!$C909=\"ROC\",'Enrollment Form'!$DS909=\"\"),\"N\",IF(AND('Enrollment Form'!$C909=\"Enroll\",'Enrollment Form'!$B909=\"Subscriber\",'Enrollment Form'!$CX909=\"No\",'Enrollment Form'!$DS909=\"\"),\"N\",IF(AND('Enrollment Form'!$C909=\"Enroll\",'Enrollment Form'!$B909=\"Subscriber\",'Enrollment Form'!$CX909=\"Yes\"),\"-\",\"Y\")))))","v":""},{"$f":"IF('Enrollment Form'!AH909=\"\",\"\",IF(ISERROR(SEARCH(\".\",'Enrollment Form'!AH909,SEARCH(\"@\",'Enrollment Form'!AH909))),\"N\",\"Y\"))","v":""},{"$f":"IF(OR($B902=\"N\",'Enrollment Form'!$G909=\"\"),\"\",IF('Enrollment Form'!$B909<>\"Subscriber\",\"-\",IF(COUNTIF('Enrollment Form'!$AV909:$AW909,\"Yes\")=2,\"N\",\"Y\")))","v":""},{"$f":"IF(OR('Enrollment Form'!$CJ909=\"\",'Enrollment Form'!$CJ909=\"No\"),\"-\",IF(AND('Enrollment Form'!$CJ909=\"Yes\",'Enrollment Form'!$CK909=\"\"),\"N\",\"Y\"))","v":"-"},{"$f":"IF(OR('Enrollment Form'!$CL909=\"\",'Enrollment Form'!$CL909=\"No\"),\"-\",IF(AND('Enrollment Form'!$CL909=\"Yes\",'Enrollment Form'!$CM909=\"\"),\"N\",\"Y\"))","v":"-"},{"$f":"IF(OR('Enrollment Form'!$CN909=\"\",'Enrollment Form'!$CN909=\"No\"),\"-\",IF(AND('Enrollment Form'!$CN909=\"Yes\",'Enrollment Form'!$CO909=\"\"),\"N\",\"Y\"))","v":"-"},{"$f":"IF(OR('Enrollment Form'!$CN909=\"\",'Enrollment Form'!$CN909=\"No\"),\"-\",IF(AND('Enrollment Form'!$CN909=\"Yes\",'Enrollment Form'!$CP909=\"\"),\"N\",\"Y\"))","v":"-"},{"$f":"IF('Enrollment Form'!B909<>\"Subscriber\",\"-\",IF(AND('Enrollment Form'!B909=\"Subscriber\",'Enrollment Form'!C909=\"Enroll\",'Enrollment Form'!AA909=\"\"),\"N\",\"Y\"))","v":"-"},{"$f":"IF(OR('Enrollment Form'!B909=\"Subscriber\",'Enrollment Form'!B909=\"\"),\"-\",IF('Enrollment Form'!BP909=\"\",\"N\",\"Y\"))","v":"-"},{"$f":"IF('Enrollment Form'!B909<>\"Subscriber\",\"-\",IF(AND('Enrollment Form'!B909=\"Subscriber\",'Enrollment Form'!G909=\"\"),\"N\",\"Y\"))","v":"-"},{"$f":"IF('Enrollment Form'!A909=\"\",\"\",IF('Enrollment Form'!B909=\"Subscriber\",\"-\",IF(AND('Enrollment Form'!B909<>\"Subscriber\",'Enrollment Form'!G909='Enrollment Form'!H909),\"N\",\"Y\")))","v":""},0]
[910,{"$f":"IF('Enrollment Form'!$A910<>\"\",\"Y\",\"N\")","v":"N"},{"$f":"IF(AND('Enrollment Form'!$B910=\"\",'Enrollment Form'!$C910<>\"\"),\"N\",IF($B903=\"N\",\"\",\"Y\"))","v":""},{"$f":"IF(OR($B903=\"N\",'Enrollment Form'!G910=\"\"),\"\",IF('Enrollment Form'!$B910<>\"Subscriber\",\"\",IF('Enrollment Form'!$G910='Enrollment Form'!$H910,\"Y\",\"N\")))","v":""},{"$f":"IF($B903=\"N\",\"\",IF(AND(COUNTIFS('Enrollment Form'!$H$11:$H$1000,'Enrollment Form'!$H910,'Enrollment Form'!$B$11:$B$1000,'Enrollment Form'!$B910)>1,'Enrollment Form'!$H910<>\"\"),\"N\",\"Y\"))","v":""},{"$f":"IF($B903=\"N\",\"\",IF(LEN('Enrollment Form'!$Y910)=0,\"\",IF(LEN('Enrollment Form'!$Y910)<>5,\"N\",\"Y\")))","v":""},{"$f":"IF($B903=\"N\",\"\",IF(LEN('Enrollment Form'!$AD910=0),\"\",IF(LEN('Enrollment Form'!$AD910)<>5,\"N\",\"Y\")))","v":""},{"$f":"IF($B903=\"N\",\"\",IF(LEN('Enrollment Form'!$BS910=0),\"\",IF(LEN('Enrollment Form'!$BS910)<>5,\"N\",\"Y\")))","v":""},{"$f":"IF($B903=\"N\",\"\",IF(LEN('Enrollment Form'!$AE910)=0,\"\",IF(LEN('Enrollment Form'!$AE910)<>10,\"N\",\"Y\")))","v":""},{"$f":"IF($B903=\"N\",\"\",IF(LEN('Enrollment Form'!$AF910)=0,\"\",IF(LEN('Enrollment Form'!$AF910)<>10,\"N\",\"Y\")))","v":""},{"$f":"IF('Enrollment Form'!$O910<>\"Graded\",\"-\",IF(AND('Enrollment Form'!$O910=\"Graded\",'Enrollment Form'!$AR910<>\"\"),\"Y\",\"N\"))","v":"-"},{"$f":"IF($B903=\"N\",\"\",IF(OR('Enrollment Form'!$B910<>\"Subscriber\",'Enrollment Form'!$C910=\"ROC\"),\"-\",IF(AND('Enrollment Form'!$B910=\"Subscriber\",'Enrollment Form'!$C910=\"Enroll\",'Enrollment Form'!$AJ910<>\"\"),\"Y\",\"N\")))","v":""},{"$f":"IF($B903=\"N\",\"\",IF(OR('Enrollment Form'!$B910<>\"Subscriber\",'Enrollment Form'!$C910=\"ROC\"),\"-\",IF(AND('Enrollment Form'!$B910=\"Subscriber\",'Enrollment Form'!$C910=\"Enroll\",'Enrollment Form'!$AK910<>\"\"),\"Y\",\"N\")))","v":""},{"$f":"IF($B903=\"N\",\"\",IF(OR('Enrollment Form'!$B910<>\"Subscriber\",'Enrollment Form'!$C910=\"ROC\"),\"-\",IF(AND('Enrollment Form'!$B910=\"Subscriber\",'Enrollment Form'!$C910=\"Enroll\",'Enrollment Form'!$AL910<>\"\"),\"Y\",\"N\")))","v":""},{"$f":"IF($B903=\"N\",\"\",IF(OR('Enrollment Form'!$B910<>\"Subscriber\",'Enrollment Form'!$C910=\"ROC\"),\"-\",IF(AND('Enrollment Form'!$B910=\"Subscriber\",'Enrollment Form'!$C910=\"Enroll\",'Enrollment Form'!$AP910<>\"\"),\"Y\",\"N\")))","v":""},{"$f":"IF($B903=\"N\",\"\",IF(OR('Enrollment Form'!$B910<>\"Subscriber\",'Enrollment Form'!$C910=\"ROC\"),\"-\",IF(AND('Enrollment Form'!$B910=\"Subscriber\",'Enrollment Form'!$C910=\"Enroll\",'Enrollment Form'!$AQ910<>\"\"),\"Y\",\"N\")))","v":""},{"$f":"IF($B903=\"N\",\"\",IF(OR('Enrollment Form'!$B910<>\"Subscriber\",'Enrollment Form'!$C910=\"ROC\"),\"-\",IF(AND('Enrollment Form'!$B910=\"Subscriber\",'Enrollment Form'!$C910=\"Enroll\",'Enrollment Form'!$AS910<>\"\"),\"Y\",\"N\")))","v":""},{"$f":"IF($B903=\"N\",\"\",IF($Q903=\"-\",\"-\",IF(AND($Q903=\"Y\",'Enrollment Form'!$AS910=\"No\"),\"-\",IF(AND($Q903=\"Y\",'Enrollment Form'!$AS910=\"Yes\",'Enrollment Form'!$AT910<>\"\"),\"Y\",\"N\"))))","v":""},{"$f":"IF($B903=\"N\",\"\",IF(OR('Enrollment Form'!$B910<>\"Subscriber\",'Enrollment Form'!$C910=\"ROC\"),\"-\",IF(AND('Enrollment Form'!$B910=\"Subscriber\",'Enrollment Form'!$C910=\"Enroll\",'Enrollment Form'!$CV910<>\"\"),\"Y\",\"N\")))","v":""},{"$f":"IF($B903=\"N\",\"\",IF($S903=\"-\",\"-\",IF(AND($S903=\"Y\",'Enrollment Form'!$CV910=\"No\"),\"-\",IF(AND($S903=\"Y\",'Enrollment Form'!$CV910=\"Yes\",'Enrollment Form'!$CW910<>\"\"),\"Y\",\"N\"))))","v":""},{"$f":"IF(OR('Enrollment Form'!$AY910=\"Yes\",'Enrollment Form'!$AY910=\"\"),\"-\",IF(OR(AND('Enrollment Form'!$AY910=\"No\",ISERROR(FIND(\"HMO\",VLOOKUP('Enrollment Form'!G910,'Enrollment Form'!H$11:J$1000,3,FALSE),1))=FALSE,COUNTA('Enrollment Form'!$AZ910:$BC910)=4),AND('Enrollment Form'!$AY910=\"No\",ISERROR(FIND(\"HMO\",VLOOKUP('Enrollment Form'!G910,'Enrollment Form'!H$11:J$1000,3,FALSE),1))=FALSE,COUNTA('Enrollment Form'!$BT910:$BW910)=4)),\"Y\",\"N\"))","v":"-"},{"$f":"IF($B903=\"N\",\"\",IF('Enrollment Form'!$B910=\"Subscriber\",\"-\",IF(COUNTA('Enrollment Form'!$BL910,'Enrollment Form'!$BN910)=2,\"Y\",\"N\")))","v":""},{"$f":"IF($B903=\"N\",\"\",IF(OR('Enrollment Form'!$AX910=\"\",'Enrollment Form'!$AX910=\"No\"),\"-\",IF(AND('Enrollment Form'!$AX910=\"Yes\",COUNTA('Enrollment Form'!$CR910)=1),\"Y\",\"N\")))","v":""},{"$f":"IF(OR('Enrollment Form'!$CR910=\"\",'Enrollment Form'!$CR910=\"No\"),\"-\",IF(COUNTA('Enrollment Form'!$CT910:$CU910)=2,\"Y\",\"N\"))","v":"-"},{"$f":"IF($B903=\"N\",\"\",IF(COUNTIF('Enrollment Form'!$DG910:$DP910,\"Other\")=COUNTA('Enrollment Form'!$DK910,'Enrollment Form'!$DH910,'Enrollment Form'!$DN910,'Enrollment Form'!$DQ910),\"Y\",\"N\"))","v":""},{"$f":"IF($B903=\"N\",\"\",IF(OR('Enrollment Form'!B910<>\"Subscriber\",'Enrollment Form'!C910=\"ROC\",COUNTIF('Enrollment Form'!AV910:AW910,\"Yes\")>=1),\"-\",IF(AND('Enrollment Form'!C910=\"Enroll\",COUNTIF('Enrollment Form'!AV910:AW910,\"No\")=2,'Enrollment Form'!AX910=\"\"),\"N\",\"Y\")))","v":""},{"$f":"IF(OR(B903=\"N\",'Enrollment Form'!B910<>\"Subscriber\",'Enrollment Form'!C910=\"ROC\",'Enrollment Form'!O910<>\"Multiple of Salary\"),\"-\",IF(COUNTA('Enrollment Form'!T910:U910)<2,\"N\",\"Y\"))","v":"-"},{"$f":"IF(B903=\"N\",\"\",IF(OR('Enrollment Form'!C910=\"ROC\",'Enrollment Form'!B910<>\"Subscriber\",'Enrollment Form'!O910=\"Waive\",'Enrollment Form'!O910=\"\"),\"-\",IF('Enrollment Form'!P910=\"\",\"N\",\"Y\")))","v":""},{"$f":"IF($B903=\"N\",\"\",IF(AND('Enrollment Form'!$C910=\"ROC\",'Enrollment Form'!$DR910<>\"\"),\"Y\",IF(AND('Enrollment Form'!$C910=\"ROC\",'Enrollment Form'!$DR910=\"\"),\"N\",IF(AND('Enrollment Form'!$C910=\"Enroll\",'Enrollment Form'!$B910=\"Subscriber\",'Enrollment Form'!$CX910=\"No\",'Enrollment Form'!$DR910=\"\"),\"N\",IF(AND('Enrollment Form'!$C910=\"Enroll\",'Enrollment Form'!$B910=\"Subscriber\",'Enrollment Form'!$CX910=\"Yes\"),\"-\",\"Y\")))))","v":""},{"$f":"IF($B903=\"N\",\"\",IF(AND('Enrollment Form'!$C910=\"ROC\",'Enrollment Form'!$DS910<>\"\"),\"Y\",IF(AND('Enrollment Form'!$C910=\"ROC\",'Enrollment Form'!$DS910=\"\"),\"N\",IF(AND('Enrollment Form'!$C910=\"Enroll\",'Enrollment Form'!$B910=\"Subscriber\",'Enrollment Form'!$CX910=\"No\",'Enrollment Form'!$DS910=\"\"),\"N\",IF(AND('Enrollment Form'!$C910=\"Enroll\",'Enrollment Form'!$B910=\"Subscriber\",'Enrollment Form'!$CX910=\"Yes\"),\"-\",\"Y\")))))","v":""},{"$f":"IF('Enrollment Form'!AH910=\"\",\"\",IF(ISERROR(SEARCH(\".\",'Enrollment Form'!AH910,SEARCH(\"@\",'Enrollment Form'!AH910))),\"N\",\"Y\"))","v":""},{"$f":"IF(OR($B903=\"N\",'Enrollment Form'!$G910=\"\"),\"\",IF('Enrollment Form'!$B910<>\"Subscriber\",\"-\",IF(COUNTIF('Enrollment Form'!$AV910:$AW910,\"Yes\")=2,\"N\",\"Y\")))","v":""},{"$f":"IF(OR('Enrollment Form'!$CJ910=\"\",'Enrollment Form'!$CJ910=\"No\"),\"-\",IF(AND('Enrollment Form'!$CJ910=\"Yes\",'Enrollment Form'!$CK910=\"\"),\"N\",\"Y\"))","v":"-"},{"$f":"IF(OR('Enrollment Form'!$CL910=\"\",'Enrollment Form'!$CL910=\"No\"),\"-\",IF(AND('Enrollment Form'!$CL910=\"Yes\",'Enrollment Form'!$CM910=\"\"),\"N\",\"Y\"))","v":"-"},{"$f":"IF(OR('Enrollment Form'!$CN910=\"\",'Enrollment Form'!$CN910=\"No\"),\"-\",IF(AND('Enrollment Form'!$CN910=\"Yes\",'Enrollment Form'!$CO910=\"\"),\"N\",\"Y\"))","v":"-"},{"$f":"IF(OR('Enrollment Form'!$CN910=\"\",'Enrollment Form'!$CN910=\"No\"),\"-\",IF(AND('Enrollment Form'!$CN910=\"Yes\",'Enrollment Form'!$CP910=\"\"),\"N\",\"Y\"))","v":"-"},{"$f":"IF('Enrollment Form'!B910<>\"Subscriber\",\"-\",IF(AND('Enrollment Form'!B910=\"Subscriber\",'Enrollment Form'!C910=\"Enroll\",'Enrollment Form'!AA910=\"\"),\"N\",\"Y\"))","v":"-"},{"$f":"IF(OR('Enrollment Form'!B910=\"Subscriber\",'Enrollment Form'!B910=\"\"),\"-\",IF('Enrollment Form'!BP910=\"\",\"N\",\"Y\"))","v":"-"},{"$f":"IF('Enrollment Form'!B910<>\"Subscriber\",\"-\",IF(AND('Enrollment Form'!B910=\"Subscriber\",'Enrollment Form'!G910=\"\"),\"N\",\"Y\"))","v":"-"},{"$f":"IF('Enrollment Form'!A910=\"\",\"\",IF('Enrollment Form'!B910=\"Subscriber\",\"-\",IF(AND('Enrollment Form'!B910<>\"Subscriber\",'Enrollment Form'!G910='Enrollment Form'!H910),\"N\",\"Y\")))","v":""},0]
[911,{"$f":"IF('Enrollment Form'!$A911<>\"\",\"Y\",\"N\")","v":"N"},{"$f":"IF(AND('Enrollment Form'!$B911=\"\",'Enrollment Form'!$C911<>\"\"),\"N\",IF($B904=\"N\",\"\",\"Y\"))","v":""},{"$f":"IF(OR($B904=\"N\",'Enrollment Form'!G911=\"\"),\"\",IF('Enrollment Form'!$B911<>\"Subscriber\",\"\",IF('Enrollment Form'!$G911='Enrollment Form'!$H911,\"Y\",\"N\")))","v":""},{"$f":"IF($B904=\"N\",\"\",IF(AND(COUNTIFS('Enrollment Form'!$H$11:$H$1000,'Enrollment Form'!$H911,'Enrollment Form'!$B$11:$B$1000,'Enrollment Form'!$B911)>1,'Enrollment Form'!$H911<>\"\"),\"N\",\"Y\"))","v":""},{"$f":"IF($B904=\"N\",\"\",IF(LEN('Enrollment Form'!$Y911)=0,\"\",IF(LEN('Enrollment Form'!$Y911)<>5,\"N\",\"Y\")))","v":""},{"$f":"IF($B904=\"N\",\"\",IF(LEN('Enrollment Form'!$AD911=0),\"\",IF(LEN('Enrollment Form'!$AD911)<>5,\"N\",\"Y\")))","v":""},{"$f":"IF($B904=\"N\",\"\",IF(LEN('Enrollment Form'!$BS911=0),\"\",IF(LEN('Enrollment Form'!$BS911)<>5,\"N\",\"Y\")))","v":""},{"$f":"IF($B904=\"N\",\"\",IF(LEN('Enrollment Form'!$AE911)=0,\"\",IF(LEN('Enrollment Form'!$AE911)<>10,\"N\",\"Y\")))","v":""},{"$f":"IF($B904=\"N\",\"\",IF(LEN('Enrollment Form'!$AF911)=0,\"\",IF(LEN('Enrollment Form'!$AF911)<>10,\"N\",\"Y\")))","v":""},{"$f":"IF('Enrollment Form'!$O911<>\"Graded\",\"-\",IF(AND('Enrollment Form'!$O911=\"Graded\",'Enrollment Form'!$AR911<>\"\"),\"Y\",\"N\"))","v":"-"},{"$f":"IF($B904=\"N\",\"\",IF(OR('Enrollment Form'!$B911<>\"Subscriber\",'Enrollment Form'!$C911=\"ROC\"),\"-\",IF(AND('Enrollment Form'!$B911=\"Subscriber\",'Enrollment Form'!$C911=\"Enroll\",'Enrollment Form'!$AJ911<>\"\"),\"Y\",\"N\")))","v":""},{"$f":"IF($B904=\"N\",\"\",IF(OR('Enrollment Form'!$B911<>\"Subscriber\",'Enrollment Form'!$C911=\"ROC\"),\"-\",IF(AND('Enrollment Form'!$B911=\"Subscriber\",'Enrollment Form'!$C911=\"Enroll\",'Enrollment Form'!$AK911<>\"\"),\"Y\",\"N\")))","v":""},{"$f":"IF($B904=\"N\",\"\",IF(OR('Enrollment Form'!$B911<>\"Subscriber\",'Enrollment Form'!$C911=\"ROC\"),\"-\",IF(AND('Enrollment Form'!$B911=\"Subscriber\",'Enrollment Form'!$C911=\"Enroll\",'Enrollment Form'!$AL911<>\"\"),\"Y\",\"N\")))","v":""},{"$f":"IF($B904=\"N\",\"\",IF(OR('Enrollment Form'!$B911<>\"Subscriber\",'Enrollment Form'!$C911=\"ROC\"),\"-\",IF(AND('Enrollment Form'!$B911=\"Subscriber\",'Enrollment Form'!$C911=\"Enroll\",'Enrollment Form'!$AP911<>\"\"),\"Y\",\"N\")))","v":""},{"$f":"IF($B904=\"N\",\"\",IF(OR('Enrollment Form'!$B911<>\"Subscriber\",'Enrollment Form'!$C911=\"ROC\"),\"-\",IF(AND('Enrollment Form'!$B911=\"Subscriber\",'Enrollment Form'!$C911=\"Enroll\",'Enrollment Form'!$AQ911<>\"\"),\"Y\",\"N\")))","v":""},{"$f":"IF($B904=\"N\",\"\",IF(OR('Enrollment Form'!$B911<>\"Subscriber\",'Enrollment Form'!$C911=\"ROC\"),\"-\",IF(AND('Enrollment Form'!$B911=\"Subscriber\",'Enrollment Form'!$C911=\"Enroll\",'Enrollment Form'!$AS911<>\"\"),\"Y\",\"N\")))","v":""},{"$f":"IF($B904=\"N\",\"\",IF($Q904=\"-\",\"-\",IF(AND($Q904=\"Y\",'Enrollment Form'!$AS911=\"No\"),\"-\",IF(AND($Q904=\"Y\",'Enrollment Form'!$AS911=\"Yes\",'Enrollment Form'!$AT911<>\"\"),\"Y\",\"N\"))))","v":""},{"$f":"IF($B904=\"N\",\"\",IF(OR('Enrollment Form'!$B911<>\"Subscriber\",'Enrollment Form'!$C911=\"ROC\"),\"-\",IF(AND('Enrollment Form'!$B911=\"Subscriber\",'Enrollment Form'!$C911=\"Enroll\",'Enrollment Form'!$CV911<>\"\"),\"Y\",\"N\")))","v":""},{"$f":"IF($B904=\"N\",\"\",IF($S904=\"-\",\"-\",IF(AND($S904=\"Y\",'Enrollment Form'!$CV911=\"No\"),\"-\",IF(AND($S904=\"Y\",'Enrollment Form'!$CV911=\"Yes\",'Enrollment Form'!$CW911<>\"\"),\"Y\",\"N\"))))","v":""},{"$f":"IF(OR('Enrollment Form'!$AY911=\"Yes\",'Enrollment Form'!$AY911=\"\"),\"-\",IF(OR(AND('Enrollment Form'!$AY911=\"No\",ISERROR(FIND(\"HMO\",VLOOKUP('Enrollment Form'!G911,'Enrollment Form'!H$11:J$1000,3,FALSE),1))=FALSE,COUNTA('Enrollment Form'!$AZ911:$BC911)=4),AND('Enrollment Form'!$AY911=\"No\",ISERROR(FIND(\"HMO\",VLOOKUP('Enrollment Form'!G911,'Enrollment Form'!H$11:J$1000,3,FALSE),1))=FALSE,COUNTA('Enrollment Form'!$BT911:$BW911)=4)),\"Y\",\"N\"))","v":"-"},{"$f":"IF($B904=\"N\",\"\",IF('Enrollment Form'!$B911=\"Subscriber\",\"-\",IF(COUNTA('Enrollment Form'!$BL911,'Enrollment Form'!$BN911)=2,\"Y\",\"N\")))","v":""},{"$f":"IF($B904=\"N\",\"\",IF(OR('Enrollment Form'!$AX911=\"\",'Enrollment Form'!$AX911=\"No\"),\"-\",IF(AND('Enrollment Form'!$AX911=\"Yes\",COUNTA('Enrollment Form'!$CR911)=1),\"Y\",\"N\")))","v":""},{"$f":"IF(OR('Enrollment Form'!$CR911=\"\",'Enrollment Form'!$CR911=\"No\"),\"-\",IF(COUNTA('Enrollment Form'!$CT911:$CU911)=2,\"Y\",\"N\"))","v":"-"},{"$f":"IF($B904=\"N\",\"\",IF(COUNTIF('Enrollment Form'!$DG911:$DP911,\"Other\")=COUNTA('Enrollment Form'!$DK911,'Enrollment Form'!$DH911,'Enrollment Form'!$DN911,'Enrollment Form'!$DQ911),\"Y\",\"N\"))","v":""},{"$f":"IF($B904=\"N\",\"\",IF(OR('Enrollment Form'!B911<>\"Subscriber\",'Enrollment Form'!C911=\"ROC\",COUNTIF('Enrollment Form'!AV911:AW911,\"Yes\")>=1),\"-\",IF(AND('Enrollment Form'!C911=\"Enroll\",COUNTIF('Enrollment Form'!AV911:AW911,\"No\")=2,'Enrollment Form'!AX911=\"\"),\"N\",\"Y\")))","v":""},{"$f":"IF(OR(B904=\"N\",'Enrollment Form'!B911<>\"Subscriber\",'Enrollment Form'!C911=\"ROC\",'Enrollment Form'!O911<>\"Multiple of Salary\"),\"-\",IF(COUNTA('Enrollment Form'!T911:U911)<2,\"N\",\"Y\"))","v":"-"},{"$f":"IF(B904=\"N\",\"\",IF(OR('Enrollment Form'!C911=\"ROC\",'Enrollment Form'!B911<>\"Subscriber\",'Enrollment Form'!O911=\"Waive\",'Enrollment Form'!O911=\"\"),\"-\",IF('Enrollment Form'!P911=\"\",\"N\",\"Y\")))","v":""},{"$f":"IF($B904=\"N\",\"\",IF(AND('Enrollment Form'!$C911=\"ROC\",'Enrollment Form'!$DR911<>\"\"),\"Y\",IF(AND('Enrollment Form'!$C911=\"ROC\",'Enrollment Form'!$DR911=\"\"),\"N\",IF(AND('Enrollment Form'!$C911=\"Enroll\",'Enrollment Form'!$B911=\"Subscriber\",'Enrollment Form'!$CX911=\"No\",'Enrollment Form'!$DR911=\"\"),\"N\",IF(AND('Enrollment Form'!$C911=\"Enroll\",'Enrollment Form'!$B911=\"Subscriber\",'Enrollment Form'!$CX911=\"Yes\"),\"-\",\"Y\")))))","v":""},{"$f":"IF($B904=\"N\",\"\",IF(AND('Enrollment Form'!$C911=\"ROC\",'Enrollment Form'!$DS911<>\"\"),\"Y\",IF(AND('Enrollment Form'!$C911=\"ROC\",'Enrollment Form'!$DS911=\"\"),\"N\",IF(AND('Enrollment Form'!$C911=\"Enroll\",'Enrollment Form'!$B911=\"Subscriber\",'Enrollment Form'!$CX911=\"No\",'Enrollment Form'!$DS911=\"\"),\"N\",IF(AND('Enrollment Form'!$C911=\"Enroll\",'Enrollment Form'!$B911=\"Subscriber\",'Enrollment Form'!$CX911=\"Yes\"),\"-\",\"Y\")))))","v":""},{"$f":"IF('Enrollment Form'!AH911=\"\",\"\",IF(ISERROR(SEARCH(\".\",'Enrollment Form'!AH911,SEARCH(\"@\",'Enrollment Form'!AH911))),\"N\",\"Y\"))","v":""},{"$f":"IF(OR($B904=\"N\",'Enrollment Form'!$G911=\"\"),\"\",IF('Enrollment Form'!$B911<>\"Subscriber\",\"-\",IF(COUNTIF('Enrollment Form'!$AV911:$AW911,\"Yes\")=2,\"N\",\"Y\")))","v":""},{"$f":"IF(OR('Enrollment Form'!$CJ911=\"\",'Enrollment Form'!$CJ911=\"No\"),\"-\",IF(AND('Enrollment Form'!$CJ911=\"Yes\",'Enrollment Form'!$CK911=\"\"),\"N\",\"Y\"))","v":"-"},{"$f":"IF(OR('Enrollment Form'!$CL911=\"\",'Enrollment Form'!$CL911=\"No\"),\"-\",IF(AND('Enrollment Form'!$CL911=\"Yes\",'Enrollment Form'!$CM911=\"\"),\"N\",\"Y\"))","v":"-"},{"$f":"IF(OR('Enrollment Form'!$CN911=\"\",'Enrollment Form'!$CN911=\"No\"),\"-\",IF(AND('Enrollment Form'!$CN911=\"Yes\",'Enrollment Form'!$CO911=\"\"),\"N\",\"Y\"))","v":"-"},{"$f":"IF(OR('Enrollment Form'!$CN911=\"\",'Enrollment Form'!$CN911=\"No\"),\"-\",IF(AND('Enrollment Form'!$CN911=\"Yes\",'Enrollment Form'!$CP911=\"\"),\"N\",\"Y\"))","v":"-"},{"$f":"IF('Enrollment Form'!B911<>\"Subscriber\",\"-\",IF(AND('Enrollment Form'!B911=\"Subscriber\",'Enrollment Form'!C911=\"Enroll\",'Enrollment Form'!AA911=\"\"),\"N\",\"Y\"))","v":"-"},{"$f":"IF(OR('Enrollment Form'!B911=\"Subscriber\",'Enrollment Form'!B911=\"\"),\"-\",IF('Enrollment Form'!BP911=\"\",\"N\",\"Y\"))","v":"-"},{"$f":"IF('Enrollment Form'!B911<>\"Subscriber\",\"-\",IF(AND('Enrollment Form'!B911=\"Subscriber\",'Enrollment Form'!G911=\"\"),\"N\",\"Y\"))","v":"-"},{"$f":"IF('Enrollment Form'!A911=\"\",\"\",IF('Enrollment Form'!B911=\"Subscriber\",\"-\",IF(AND('Enrollment Form'!B911<>\"Subscriber\",'Enrollment Form'!G911='Enrollment Form'!H911),\"N\",\"Y\")))","v":""},0]
[912,{"$f":"IF('Enrollment Form'!$A912<>\"\",\"Y\",\"N\")","v":"N"},{"$f":"IF(AND('Enrollment Form'!$B912=\"\",'Enrollment Form'!$C912<>\"\"),\"N\",IF($B905=\"N\",\"\",\"Y\"))","v":""},{"$f":"IF(OR($B905=\"N\",'Enrollment Form'!G912=\"\"),\"\",IF('Enrollment Form'!$B912<>\"Subscriber\",\"\",IF('Enrollment Form'!$G912='Enrollment Form'!$H912,\"Y\",\"N\")))","v":""},{"$f":"IF($B905=\"N\",\"\",IF(AND(COUNTIFS('Enrollment Form'!$H$11:$H$1000,'Enrollment Form'!$H912,'Enrollment Form'!$B$11:$B$1000,'Enrollment Form'!$B912)>1,'Enrollment Form'!$H912<>\"\"),\"N\",\"Y\"))","v":""},{"$f":"IF($B905=\"N\",\"\",IF(LEN('Enrollment Form'!$Y912)=0,\"\",IF(LEN('Enrollment Form'!$Y912)<>5,\"N\",\"Y\")))","v":""},{"$f":"IF($B905=\"N\",\"\",IF(LEN('Enrollment Form'!$AD912=0),\"\",IF(LEN('Enrollment Form'!$AD912)<>5,\"N\",\"Y\")))","v":""},{"$f":"IF($B905=\"N\",\"\",IF(LEN('Enrollment Form'!$BS912=0),\"\",IF(LEN('Enrollment Form'!$BS912)<>5,\"N\",\"Y\")))","v":""},{"$f":"IF($B905=\"N\",\"\",IF(LEN('Enrollment Form'!$AE912)=0,\"\",IF(LEN('Enrollment Form'!$AE912)<>10,\"N\",\"Y\")))","v":""},{"$f":"IF($B905=\"N\",\"\",IF(LEN('Enrollment Form'!$AF912)=0,\"\",IF(LEN('Enrollment Form'!$AF912)<>10,\"N\",\"Y\")))","v":""},{"$f":"IF('Enrollment Form'!$O912<>\"Graded\",\"-\",IF(AND('Enrollment Form'!$O912=\"Graded\",'Enrollment Form'!$AR912<>\"\"),\"Y\",\"N\"))","v":"-"},{"$f":"IF($B905=\"N\",\"\",IF(OR('Enrollment Form'!$B912<>\"Subscriber\",'Enrollment Form'!$C912=\"ROC\"),\"-\",IF(AND('Enrollment Form'!$B912=\"Subscriber\",'Enrollment Form'!$C912=\"Enroll\",'Enrollment Form'!$AJ912<>\"\"),\"Y\",\"N\")))","v":""},{"$f":"IF($B905=\"N\",\"\",IF(OR('Enrollment Form'!$B912<>\"Subscriber\",'Enrollment Form'!$C912=\"ROC\"),\"-\",IF(AND('Enrollment Form'!$B912=\"Subscriber\",'Enrollment Form'!$C912=\"Enroll\",'Enrollment Form'!$AK912<>\"\"),\"Y\",\"N\")))","v":""},{"$f":"IF($B905=\"N\",\"\",IF(OR('Enrollment Form'!$B912<>\"Subscriber\",'Enrollment Form'!$C912=\"ROC\"),\"-\",IF(AND('Enrollment Form'!$B912=\"Subscriber\",'Enrollment Form'!$C912=\"Enroll\",'Enrollment Form'!$AL912<>\"\"),\"Y\",\"N\")))","v":""},{"$f":"IF($B905=\"N\",\"\",IF(OR('Enrollment Form'!$B912<>\"Subscriber\",'Enrollment Form'!$C912=\"ROC\"),\"-\",IF(AND('Enrollment Form'!$B912=\"Subscriber\",'Enrollment Form'!$C912=\"Enroll\",'Enrollment Form'!$AP912<>\"\"),\"Y\",\"N\")))","v":""},{"$f":"IF($B905=\"N\",\"\",IF(OR('Enrollment Form'!$B912<>\"Subscriber\",'Enrollment Form'!$C912=\"ROC\"),\"-\",IF(AND('Enrollment Form'!$B912=\"Subscriber\",'Enrollment Form'!$C912=\"Enroll\",'Enrollment Form'!$AQ912<>\"\"),\"Y\",\"N\")))","v":""},{"$f":"IF($B905=\"N\",\"\",IF(OR('Enrollment Form'!$B912<>\"Subscriber\",'Enrollment Form'!$C912=\"ROC\"),\"-\",IF(AND('Enrollment Form'!$B912=\"Subscriber\",'Enrollment Form'!$C912=\"Enroll\",'Enrollment Form'!$AS912<>\"\"),\"Y\",\"N\")))","v":""},{"$f":"IF($B905=\"N\",\"\",IF($Q905=\"-\",\"-\",IF(AND($Q905=\"Y\",'Enrollment Form'!$AS912=\"No\"),\"-\",IF(AND($Q905=\"Y\",'Enrollment Form'!$AS912=\"Yes\",'Enrollment Form'!$AT912<>\"\"),\"Y\",\"N\"))))","v":""},{"$f":"IF($B905=\"N\",\"\",IF(OR('Enrollment Form'!$B912<>\"Subscriber\",'Enrollment Form'!$C912=\"ROC\"),\"-\",IF(AND('Enrollment Form'!$B912=\"Subscriber\",'Enrollment Form'!$C912=\"Enroll\",'Enrollment Form'!$CV912<>\"\"),\"Y\",\"N\")))","v":""},{"$f":"IF($B905=\"N\",\"\",IF($S905=\"-\",\"-\",IF(AND($S905=\"Y\",'Enrollment Form'!$CV912=\"No\"),\"-\",IF(AND($S905=\"Y\",'Enrollment Form'!$CV912=\"Yes\",'Enrollment Form'!$CW912<>\"\"),\"Y\",\"N\"))))","v":""},{"$f":"IF(OR('Enrollment Form'!$AY912=\"Yes\",'Enrollment Form'!$AY912=\"\"),\"-\",IF(OR(AND('Enrollment Form'!$AY912=\"No\",ISERROR(FIND(\"HMO\",VLOOKUP('Enrollment Form'!G912,'Enrollment Form'!H$11:J$1000,3,FALSE),1))=FALSE,COUNTA('Enrollment Form'!$AZ912:$BC912)=4),AND('Enrollment Form'!$AY912=\"No\",ISERROR(FIND(\"HMO\",VLOOKUP('Enrollment Form'!G912,'Enrollment Form'!H$11:J$1000,3,FALSE),1))=FALSE,COUNTA('Enrollment Form'!$BT912:$BW912)=4)),\"Y\",\"N\"))","v":"-"},{"$f":"IF($B905=\"N\",\"\",IF('Enrollment Form'!$B912=\"Subscriber\",\"-\",IF(COUNTA('Enrollment Form'!$BL912,'Enrollment Form'!$BN912)=2,\"Y\",\"N\")))","v":""},{"$f":"IF($B905=\"N\",\"\",IF(OR('Enrollment Form'!$AX912=\"\",'Enrollment Form'!$AX912=\"No\"),\"-\",IF(AND('Enrollment Form'!$AX912=\"Yes\",COUNTA('Enrollment Form'!$CR912)=1),\"Y\",\"N\")))","v":""},{"$f":"IF(OR('Enrollment Form'!$CR912=\"\",'Enrollment Form'!$CR912=\"No\"),\"-\",IF(COUNTA('Enrollment Form'!$CT912:$CU912)=2,\"Y\",\"N\"))","v":"-"},{"$f":"IF($B905=\"N\",\"\",IF(COUNTIF('Enrollment Form'!$DG912:$DP912,\"Other\")=COUNTA('Enrollment Form'!$DK912,'Enrollment Form'!$DH912,'Enrollment Form'!$DN912,'Enrollment Form'!$DQ912),\"Y\",\"N\"))","v":""},{"$f":"IF($B905=\"N\",\"\",IF(OR('Enrollment Form'!B912<>\"Subscriber\",'Enrollment Form'!C912=\"ROC\",COUNTIF('Enrollment Form'!AV912:AW912,\"Yes\")>=1),\"-\",IF(AND('Enrollment Form'!C912=\"Enroll\",COUNTIF('Enrollment Form'!AV912:AW912,\"No\")=2,'Enrollment Form'!AX912=\"\"),\"N\",\"Y\")))","v":""},{"$f":"IF(OR(B905=\"N\",'Enrollment Form'!B912<>\"Subscriber\",'Enrollment Form'!C912=\"ROC\",'Enrollment Form'!O912<>\"Multiple of Salary\"),\"-\",IF(COUNTA('Enrollment Form'!T912:U912)<2,\"N\",\"Y\"))","v":"-"},{"$f":"IF(B905=\"N\",\"\",IF(OR('Enrollment Form'!C912=\"ROC\",'Enrollment Form'!B912<>\"Subscriber\",'Enrollment Form'!O912=\"Waive\",'Enrollment Form'!O912=\"\"),\"-\",IF('Enrollment Form'!P912=\"\",\"N\",\"Y\")))","v":""},{"$f":"IF($B905=\"N\",\"\",IF(AND('Enrollment Form'!$C912=\"ROC\",'Enrollment Form'!$DR912<>\"\"),\"Y\",IF(AND('Enrollment Form'!$C912=\"ROC\",'Enrollment Form'!$DR912=\"\"),\"N\",IF(AND('Enrollment Form'!$C912=\"Enroll\",'Enrollment Form'!$B912=\"Subscriber\",'Enrollment Form'!$CX912=\"No\",'Enrollment Form'!$DR912=\"\"),\"N\",IF(AND('Enrollment Form'!$C912=\"Enroll\",'Enrollment Form'!$B912=\"Subscriber\",'Enrollment Form'!$CX912=\"Yes\"),\"-\",\"Y\")))))","v":""},{"$f":"IF($B905=\"N\",\"\",IF(AND('Enrollment Form'!$C912=\"ROC\",'Enrollment Form'!$DS912<>\"\"),\"Y\",IF(AND('Enrollment Form'!$C912=\"ROC\",'Enrollment Form'!$DS912=\"\"),\"N\",IF(AND('Enrollment Form'!$C912=\"Enroll\",'Enrollment Form'!$B912=\"Subscriber\",'Enrollment Form'!$CX912=\"No\",'Enrollment Form'!$DS912=\"\"),\"N\",IF(AND('Enrollment Form'!$C912=\"Enroll\",'Enrollment Form'!$B912=\"Subscriber\",'Enrollment Form'!$CX912=\"Yes\"),\"-\",\"Y\")))))","v":""},{"$f":"IF('Enrollment Form'!AH912=\"\",\"\",IF(ISERROR(SEARCH(\".\",'Enrollment Form'!AH912,SEARCH(\"@\",'Enrollment Form'!AH912))),\"N\",\"Y\"))","v":""},{"$f":"IF(OR($B905=\"N\",'Enrollment Form'!$G912=\"\"),\"\",IF('Enrollment Form'!$B912<>\"Subscriber\",\"-\",IF(COUNTIF('Enrollment Form'!$AV912:$AW912,\"Yes\")=2,\"N\",\"Y\")))","v":""},{"$f":"IF(OR('Enrollment Form'!$CJ912=\"\",'Enrollment Form'!$CJ912=\"No\"),\"-\",IF(AND('Enrollment Form'!$CJ912=\"Yes\",'Enrollment Form'!$CK912=\"\"),\"N\",\"Y\"))","v":"-"},{"$f":"IF(OR('Enrollment Form'!$CL912=\"\",'Enrollment Form'!$CL912=\"No\"),\"-\",IF(AND('Enrollment Form'!$CL912=\"Yes\",'Enrollment Form'!$CM912=\"\"),\"N\",\"Y\"))","v":"-"},{"$f":"IF(OR('Enrollment Form'!$CN912=\"\",'Enrollment Form'!$CN912=\"No\"),\"-\",IF(AND('Enrollment Form'!$CN912=\"Yes\",'Enrollment Form'!$CO912=\"\"),\"N\",\"Y\"))","v":"-"},{"$f":"IF(OR('Enrollment Form'!$CN912=\"\",'Enrollment Form'!$CN912=\"No\"),\"-\",IF(AND('Enrollment Form'!$CN912=\"Yes\",'Enrollment Form'!$CP912=\"\"),\"N\",\"Y\"))","v":"-"},{"$f":"IF('Enrollment Form'!B912<>\"Subscriber\",\"-\",IF(AND('Enrollment Form'!B912=\"Subscriber\",'Enrollment Form'!C912=\"Enroll\",'Enrollment Form'!AA912=\"\"),\"N\",\"Y\"))","v":"-"},{"$f":"IF(OR('Enrollment Form'!B912=\"Subscriber\",'Enrollment Form'!B912=\"\"),\"-\",IF('Enrollment Form'!BP912=\"\",\"N\",\"Y\"))","v":"-"},{"$f":"IF('Enrollment Form'!B912<>\"Subscriber\",\"-\",IF(AND('Enrollment Form'!B912=\"Subscriber\",'Enrollment Form'!G912=\"\"),\"N\",\"Y\"))","v":"-"},{"$f":"IF('Enrollment Form'!A912=\"\",\"\",IF('Enrollment Form'!B912=\"Subscriber\",\"-\",IF(AND('Enrollment Form'!B912<>\"Subscriber\",'Enrollment Form'!G912='Enrollment Form'!H912),\"N\",\"Y\")))","v":""},0]
[913,{"$f":"IF('Enrollment Form'!$A913<>\"\",\"Y\",\"N\")","v":"N"},{"$f":"IF(AND('Enrollment Form'!$B913=\"\",'Enrollment Form'!$C913<>\"\"),\"N\",IF($B906=\"N\",\"\",\"Y\"))","v":""},{"$f":"IF(OR($B906=\"N\",'Enrollment Form'!G913=\"\"),\"\",IF('Enrollment Form'!$B913<>\"Subscriber\",\"\",IF('Enrollment Form'!$G913='Enrollment Form'!$H913,\"Y\",\"N\")))","v":""},{"$f":"IF($B906=\"N\",\"\",IF(AND(COUNTIFS('Enrollment Form'!$H$11:$H$1000,'Enrollment Form'!$H913,'Enrollment Form'!$B$11:$B$1000,'Enrollment Form'!$B913)>1,'Enrollment Form'!$H913<>\"\"),\"N\",\"Y\"))","v":""},{"$f":"IF($B906=\"N\",\"\",IF(LEN('Enrollment Form'!$Y913)=0,\"\",IF(LEN('Enrollment Form'!$Y913)<>5,\"N\",\"Y\")))","v":""},{"$f":"IF($B906=\"N\",\"\",IF(LEN('Enrollment Form'!$AD913=0),\"\",IF(LEN('Enrollment Form'!$AD913)<>5,\"N\",\"Y\")))","v":""},{"$f":"IF($B906=\"N\",\"\",IF(LEN('Enrollment Form'!$BS913=0),\"\",IF(LEN('Enrollment Form'!$BS913)<>5,\"N\",\"Y\")))","v":""},{"$f":"IF($B906=\"N\",\"\",IF(LEN('Enrollment Form'!$AE913)=0,\"\",IF(LEN('Enrollment Form'!$AE913)<>10,\"N\",\"Y\")))","v":""},{"$f":"IF($B906=\"N\",\"\",IF(LEN('Enrollment Form'!$AF913)=0,\"\",IF(LEN('Enrollment Form'!$AF913)<>10,\"N\",\"Y\")))","v":""},{"$f":"IF('Enrollment Form'!$O913<>\"Graded\",\"-\",IF(AND('Enrollment Form'!$O913=\"Graded\",'Enrollment Form'!$AR913<>\"\"),\"Y\",\"N\"))","v":"-"},{"$f":"IF($B906=\"N\",\"\",IF(OR('Enrollment Form'!$B913<>\"Subscriber\",'Enrollment Form'!$C913=\"ROC\"),\"-\",IF(AND('Enrollment Form'!$B913=\"Subscriber\",'Enrollment Form'!$C913=\"Enroll\",'Enrollment Form'!$AJ913<>\"\"),\"Y\",\"N\")))","v":""},{"$f":"IF($B906=\"N\",\"\",IF(OR('Enrollment Form'!$B913<>\"Subscriber\",'Enrollment Form'!$C913=\"ROC\"),\"-\",IF(AND('Enrollment Form'!$B913=\"Subscriber\",'Enrollment Form'!$C913=\"Enroll\",'Enrollment Form'!$AK913<>\"\"),\"Y\",\"N\")))","v":""},{"$f":"IF($B906=\"N\",\"\",IF(OR('Enrollment Form'!$B913<>\"Subscriber\",'Enrollment Form'!$C913=\"ROC\"),\"-\",IF(AND('Enrollment Form'!$B913=\"Subscriber\",'Enrollment Form'!$C913=\"Enroll\",'Enrollment Form'!$AL913<>\"\"),\"Y\",\"N\")))","v":""},{"$f":"IF($B906=\"N\",\"\",IF(OR('Enrollment Form'!$B913<>\"Subscriber\",'Enrollment Form'!$C913=\"ROC\"),\"-\",IF(AND('Enrollment Form'!$B913=\"Subscriber\",'Enrollment Form'!$C913=\"Enroll\",'Enrollment Form'!$AP913<>\"\"),\"Y\",\"N\")))","v":""},{"$f":"IF($B906=\"N\",\"\",IF(OR('Enrollment Form'!$B913<>\"Subscriber\",'Enrollment Form'!$C913=\"ROC\"),\"-\",IF(AND('Enrollment Form'!$B913=\"Subscriber\",'Enrollment Form'!$C913=\"Enroll\",'Enrollment Form'!$AQ913<>\"\"),\"Y\",\"N\")))","v":""},{"$f":"IF($B906=\"N\",\"\",IF(OR('Enrollment Form'!$B913<>\"Subscriber\",'Enrollment Form'!$C913=\"ROC\"),\"-\",IF(AND('Enrollment Form'!$B913=\"Subscriber\",'Enrollment Form'!$C913=\"Enroll\",'Enrollment Form'!$AS913<>\"\"),\"Y\",\"N\")))","v":""},{"$f":"IF($B906=\"N\",\"\",IF($Q906=\"-\",\"-\",IF(AND($Q906=\"Y\",'Enrollment Form'!$AS913=\"No\"),\"-\",IF(AND($Q906=\"Y\",'Enrollment Form'!$AS913=\"Yes\",'Enrollment Form'!$AT913<>\"\"),\"Y\",\"N\"))))","v":""},{"$f":"IF($B906=\"N\",\"\",IF(OR('Enrollment Form'!$B913<>\"Subscriber\",'Enrollment Form'!$C913=\"ROC\"),\"-\",IF(AND('Enrollment Form'!$B913=\"Subscriber\",'Enrollment Form'!$C913=\"Enroll\",'Enrollment Form'!$CV913<>\"\"),\"Y\",\"N\")))","v":""},{"$f":"IF($B906=\"N\",\"\",IF($S906=\"-\",\"-\",IF(AND($S906=\"Y\",'Enrollment Form'!$CV913=\"No\"),\"-\",IF(AND($S906=\"Y\",'Enrollment Form'!$CV913=\"Yes\",'Enrollment Form'!$CW913<>\"\"),\"Y\",\"N\"))))","v":""},{"$f":"IF(OR('Enrollment Form'!$AY913=\"Yes\",'Enrollment Form'!$AY913=\"\"),\"-\",IF(OR(AND('Enrollment Form'!$AY913=\"No\",ISERROR(FIND(\"HMO\",VLOOKUP('Enrollment Form'!G913,'Enrollment Form'!H$11:J$1000,3,FALSE),1))=FALSE,COUNTA('Enrollment Form'!$AZ913:$BC913)=4),AND('Enrollment Form'!$AY913=\"No\",ISERROR(FIND(\"HMO\",VLOOKUP('Enrollment Form'!G913,'Enrollment Form'!H$11:J$1000,3,FALSE),1))=FALSE,COUNTA('Enrollment Form'!$BT913:$BW913)=4)),\"Y\",\"N\"))","v":"-"},{"$f":"IF($B906=\"N\",\"\",IF('Enrollment Form'!$B913=\"Subscriber\",\"-\",IF(COUNTA('Enrollment Form'!$BL913,'Enrollment Form'!$BN913)=2,\"Y\",\"N\")))","v":""},{"$f":"IF($B906=\"N\",\"\",IF(OR('Enrollment Form'!$AX913=\"\",'Enrollment Form'!$AX913=\"No\"),\"-\",IF(AND('Enrollment Form'!$AX913=\"Yes\",COUNTA('Enrollment Form'!$CR913)=1),\"Y\",\"N\")))","v":""},{"$f":"IF(OR('Enrollment Form'!$CR913=\"\",'Enrollment Form'!$CR913=\"No\"),\"-\",IF(COUNTA('Enrollment Form'!$CT913:$CU913)=2,\"Y\",\"N\"))","v":"-"},{"$f":"IF($B906=\"N\",\"\",IF(COUNTIF('Enrollment Form'!$DG913:$DP913,\"Other\")=COUNTA('Enrollment Form'!$DK913,'Enrollment Form'!$DH913,'Enrollment Form'!$DN913,'Enrollment Form'!$DQ913),\"Y\",\"N\"))","v":""},{"$f":"IF($B906=\"N\",\"\",IF(OR('Enrollment Form'!B913<>\"Subscriber\",'Enrollment Form'!C913=\"ROC\",COUNTIF('Enrollment Form'!AV913:AW913,\"Yes\")>=1),\"-\",IF(AND('Enrollment Form'!C913=\"Enroll\",COUNTIF('Enrollment Form'!AV913:AW913,\"No\")=2,'Enrollment Form'!AX913=\"\"),\"N\",\"Y\")))","v":""},{"$f":"IF(OR(B906=\"N\",'Enrollment Form'!B913<>\"Subscriber\",'Enrollment Form'!C913=\"ROC\",'Enrollment Form'!O913<>\"Multiple of Salary\"),\"-\",IF(COUNTA('Enrollment Form'!T913:U913)<2,\"N\",\"Y\"))","v":"-"},{"$f":"IF(B906=\"N\",\"\",IF(OR('Enrollment Form'!C913=\"ROC\",'Enrollment Form'!B913<>\"Subscriber\",'Enrollment Form'!O913=\"Waive\",'Enrollment Form'!O913=\"\"),\"-\",IF('Enrollment Form'!P913=\"\",\"N\",\"Y\")))","v":""},{"$f":"IF($B906=\"N\",\"\",IF(AND('Enrollment Form'!$C913=\"ROC\",'Enrollment Form'!$DR913<>\"\"),\"Y\",IF(AND('Enrollment Form'!$C913=\"ROC\",'Enrollment Form'!$DR913=\"\"),\"N\",IF(AND('Enrollment Form'!$C913=\"Enroll\",'Enrollment Form'!$B913=\"Subscriber\",'Enrollment Form'!$CX913=\"No\",'Enrollment Form'!$DR913=\"\"),\"N\",IF(AND('Enrollment Form'!$C913=\"Enroll\",'Enrollment Form'!$B913=\"Subscriber\",'Enrollment Form'!$CX913=\"Yes\"),\"-\",\"Y\")))))","v":""},{"$f":"IF($B906=\"N\",\"\",IF(AND('Enrollment Form'!$C913=\"ROC\",'Enrollment Form'!$DS913<>\"\"),\"Y\",IF(AND('Enrollment Form'!$C913=\"ROC\",'Enrollment Form'!$DS913=\"\"),\"N\",IF(AND('Enrollment Form'!$C913=\"Enroll\",'Enrollment Form'!$B913=\"Subscriber\",'Enrollment Form'!$CX913=\"No\",'Enrollment Form'!$DS913=\"\"),\"N\",IF(AND('Enrollment Form'!$C913=\"Enroll\",'Enrollment Form'!$B913=\"Subscriber\",'Enrollment Form'!$CX913=\"Yes\"),\"-\",\"Y\")))))","v":""},{"$f":"IF('Enrollment Form'!AH913=\"\",\"\",IF(ISERROR(SEARCH(\".\",'Enrollment Form'!AH913,SEARCH(\"@\",'Enrollment Form'!AH913))),\"N\",\"Y\"))","v":""},{"$f":"IF(OR($B906=\"N\",'Enrollment Form'!$G913=\"\"),\"\",IF('Enrollment Form'!$B913<>\"Subscriber\",\"-\",IF(COUNTIF('Enrollment Form'!$AV913:$AW913,\"Yes\")=2,\"N\",\"Y\")))","v":""},{"$f":"IF(OR('Enrollment Form'!$CJ913=\"\",'Enrollment Form'!$CJ913=\"No\"),\"-\",IF(AND('Enrollment Form'!$CJ913=\"Yes\",'Enrollment Form'!$CK913=\"\"),\"N\",\"Y\"))","v":"-"},{"$f":"IF(OR('Enrollment Form'!$CL913=\"\",'Enrollment Form'!$CL913=\"No\"),\"-\",IF(AND('Enrollment Form'!$CL913=\"Yes\",'Enrollment Form'!$CM913=\"\"),\"N\",\"Y\"))","v":"-"},{"$f":"IF(OR('Enrollment Form'!$CN913=\"\",'Enrollment Form'!$CN913=\"No\"),\"-\",IF(AND('Enrollment Form'!$CN913=\"Yes\",'Enrollment Form'!$CO913=\"\"),\"N\",\"Y\"))","v":"-"},{"$f":"IF(OR('Enrollment Form'!$CN913=\"\",'Enrollment Form'!$CN913=\"No\"),\"-\",IF(AND('Enrollment Form'!$CN913=\"Yes\",'Enrollment Form'!$CP913=\"\"),\"N\",\"Y\"))","v":"-"},{"$f":"IF('Enrollment Form'!B913<>\"Subscriber\",\"-\",IF(AND('Enrollment Form'!B913=\"Subscriber\",'Enrollment Form'!C913=\"Enroll\",'Enrollment Form'!AA913=\"\"),\"N\",\"Y\"))","v":"-"},{"$f":"IF(OR('Enrollment Form'!B913=\"Subscriber\",'Enrollment Form'!B913=\"\"),\"-\",IF('Enrollment Form'!BP913=\"\",\"N\",\"Y\"))","v":"-"},{"$f":"IF('Enrollment Form'!B913<>\"Subscriber\",\"-\",IF(AND('Enrollment Form'!B913=\"Subscriber\",'Enrollment Form'!G913=\"\"),\"N\",\"Y\"))","v":"-"},{"$f":"IF('Enrollment Form'!A913=\"\",\"\",IF('Enrollment Form'!B913=\"Subscriber\",\"-\",IF(AND('Enrollment Form'!B913<>\"Subscriber\",'Enrollment Form'!G913='Enrollment Form'!H913),\"N\",\"Y\")))","v":""},0]
[914,{"$f":"IF('Enrollment Form'!$A914<>\"\",\"Y\",\"N\")","v":"N"},{"$f":"IF(AND('Enrollment Form'!$B914=\"\",'Enrollment Form'!$C914<>\"\"),\"N\",IF($B907=\"N\",\"\",\"Y\"))","v":""},{"$f":"IF(OR($B907=\"N\",'Enrollment Form'!G914=\"\"),\"\",IF('Enrollment Form'!$B914<>\"Subscriber\",\"\",IF('Enrollment Form'!$G914='Enrollment Form'!$H914,\"Y\",\"N\")))","v":""},{"$f":"IF($B907=\"N\",\"\",IF(AND(COUNTIFS('Enrollment Form'!$H$11:$H$1000,'Enrollment Form'!$H914,'Enrollment Form'!$B$11:$B$1000,'Enrollment Form'!$B914)>1,'Enrollment Form'!$H914<>\"\"),\"N\",\"Y\"))","v":""},{"$f":"IF($B907=\"N\",\"\",IF(LEN('Enrollment Form'!$Y914)=0,\"\",IF(LEN('Enrollment Form'!$Y914)<>5,\"N\",\"Y\")))","v":""},{"$f":"IF($B907=\"N\",\"\",IF(LEN('Enrollment Form'!$AD914=0),\"\",IF(LEN('Enrollment Form'!$AD914)<>5,\"N\",\"Y\")))","v":""},{"$f":"IF($B907=\"N\",\"\",IF(LEN('Enrollment Form'!$BS914=0),\"\",IF(LEN('Enrollment Form'!$BS914)<>5,\"N\",\"Y\")))","v":""},{"$f":"IF($B907=\"N\",\"\",IF(LEN('Enrollment Form'!$AE914)=0,\"\",IF(LEN('Enrollment Form'!$AE914)<>10,\"N\",\"Y\")))","v":""},{"$f":"IF($B907=\"N\",\"\",IF(LEN('Enrollment Form'!$AF914)=0,\"\",IF(LEN('Enrollment Form'!$AF914)<>10,\"N\",\"Y\")))","v":""},{"$f":"IF('Enrollment Form'!$O914<>\"Graded\",\"-\",IF(AND('Enrollment Form'!$O914=\"Graded\",'Enrollment Form'!$AR914<>\"\"),\"Y\",\"N\"))","v":"-"},{"$f":"IF($B907=\"N\",\"\",IF(OR('Enrollment Form'!$B914<>\"Subscriber\",'Enrollment Form'!$C914=\"ROC\"),\"-\",IF(AND('Enrollment Form'!$B914=\"Subscriber\",'Enrollment Form'!$C914=\"Enroll\",'Enrollment Form'!$AJ914<>\"\"),\"Y\",\"N\")))","v":""},{"$f":"IF($B907=\"N\",\"\",IF(OR('Enrollment Form'!$B914<>\"Subscriber\",'Enrollment Form'!$C914=\"ROC\"),\"-\",IF(AND('Enrollment Form'!$B914=\"Subscriber\",'Enrollment Form'!$C914=\"Enroll\",'Enrollment Form'!$AK914<>\"\"),\"Y\",\"N\")))","v":""},{"$f":"IF($B907=\"N\",\"\",IF(OR('Enrollment Form'!$B914<>\"Subscriber\",'Enrollment Form'!$C914=\"ROC\"),\"-\",IF(AND('Enrollment Form'!$B914=\"Subscriber\",'Enrollment Form'!$C914=\"Enroll\",'Enrollment Form'!$AL914<>\"\"),\"Y\",\"N\")))","v":""},{"$f":"IF($B907=\"N\",\"\",IF(OR('Enrollment Form'!$B914<>\"Subscriber\",'Enrollment Form'!$C914=\"ROC\"),\"-\",IF(AND('Enrollment Form'!$B914=\"Subscriber\",'Enrollment Form'!$C914=\"Enroll\",'Enrollment Form'!$AP914<>\"\"),\"Y\",\"N\")))","v":""},{"$f":"IF($B907=\"N\",\"\",IF(OR('Enrollment Form'!$B914<>\"Subscriber\",'Enrollment Form'!$C914=\"ROC\"),\"-\",IF(AND('Enrollment Form'!$B914=\"Subscriber\",'Enrollment Form'!$C914=\"Enroll\",'Enrollment Form'!$AQ914<>\"\"),\"Y\",\"N\")))","v":""},{"$f":"IF($B907=\"N\",\"\",IF(OR('Enrollment Form'!$B914<>\"Subscriber\",'Enrollment Form'!$C914=\"ROC\"),\"-\",IF(AND('Enrollment Form'!$B914=\"Subscriber\",'Enrollment Form'!$C914=\"Enroll\",'Enrollment Form'!$AS914<>\"\"),\"Y\",\"N\")))","v":""},{"$f":"IF($B907=\"N\",\"\",IF($Q907=\"-\",\"-\",IF(AND($Q907=\"Y\",'Enrollment Form'!$AS914=\"No\"),\"-\",IF(AND($Q907=\"Y\",'Enrollment Form'!$AS914=\"Yes\",'Enrollment Form'!$AT914<>\"\"),\"Y\",\"N\"))))","v":""},{"$f":"IF($B907=\"N\",\"\",IF(OR('Enrollment Form'!$B914<>\"Subscriber\",'Enrollment Form'!$C914=\"ROC\"),\"-\",IF(AND('Enrollment Form'!$B914=\"Subscriber\",'Enrollment Form'!$C914=\"Enroll\",'Enrollment Form'!$CV914<>\"\"),\"Y\",\"N\")))","v":""},{"$f":"IF($B907=\"N\",\"\",IF($S907=\"-\",\"-\",IF(AND($S907=\"Y\",'Enrollment Form'!$CV914=\"No\"),\"-\",IF(AND($S907=\"Y\",'Enrollment Form'!$CV914=\"Yes\",'Enrollment Form'!$CW914<>\"\"),\"Y\",\"N\"))))","v":""},{"$f":"IF(OR('Enrollment Form'!$AY914=\"Yes\",'Enrollment Form'!$AY914=\"\"),\"-\",IF(OR(AND('Enrollment Form'!$AY914=\"No\",ISERROR(FIND(\"HMO\",VLOOKUP('Enrollment Form'!G914,'Enrollment Form'!H$11:J$1000,3,FALSE),1))=FALSE,COUNTA('Enrollment Form'!$AZ914:$BC914)=4),AND('Enrollment Form'!$AY914=\"No\",ISERROR(FIND(\"HMO\",VLOOKUP('Enrollment Form'!G914,'Enrollment Form'!H$11:J$1000,3,FALSE),1))=FALSE,COUNTA('Enrollment Form'!$BT914:$BW914)=4)),\"Y\",\"N\"))","v":"-"},{"$f":"IF($B907=\"N\",\"\",IF('Enrollment Form'!$B914=\"Subscriber\",\"-\",IF(COUNTA('Enrollment Form'!$BL914,'Enrollment Form'!$BN914)=2,\"Y\",\"N\")))","v":""},{"$f":"IF($B907=\"N\",\"\",IF(OR('Enrollment Form'!$AX914=\"\",'Enrollment Form'!$AX914=\"No\"),\"-\",IF(AND('Enrollment Form'!$AX914=\"Yes\",COUNTA('Enrollment Form'!$CR914)=1),\"Y\",\"N\")))","v":""},{"$f":"IF(OR('Enrollment Form'!$CR914=\"\",'Enrollment Form'!$CR914=\"No\"),\"-\",IF(COUNTA('Enrollment Form'!$CT914:$CU914)=2,\"Y\",\"N\"))","v":"-"},{"$f":"IF($B907=\"N\",\"\",IF(COUNTIF('Enrollment Form'!$DG914:$DP914,\"Other\")=COUNTA('Enrollment Form'!$DK914,'Enrollment Form'!$DH914,'Enrollment Form'!$DN914,'Enrollment Form'!$DQ914),\"Y\",\"N\"))","v":""},{"$f":"IF($B907=\"N\",\"\",IF(OR('Enrollment Form'!B914<>\"Subscriber\",'Enrollment Form'!C914=\"ROC\",COUNTIF('Enrollment Form'!AV914:AW914,\"Yes\")>=1),\"-\",IF(AND('Enrollment Form'!C914=\"Enroll\",COUNTIF('Enrollment Form'!AV914:AW914,\"No\")=2,'Enrollment Form'!AX914=\"\"),\"N\",\"Y\")))","v":""},{"$f":"IF(OR(B907=\"N\",'Enrollment Form'!B914<>\"Subscriber\",'Enrollment Form'!C914=\"ROC\",'Enrollment Form'!O914<>\"Multiple of Salary\"),\"-\",IF(COUNTA('Enrollment Form'!T914:U914)<2,\"N\",\"Y\"))","v":"-"},{"$f":"IF(B907=\"N\",\"\",IF(OR('Enrollment Form'!C914=\"ROC\",'Enrollment Form'!B914<>\"Subscriber\",'Enrollment Form'!O914=\"Waive\",'Enrollment Form'!O914=\"\"),\"-\",IF('Enrollment Form'!P914=\"\",\"N\",\"Y\")))","v":""},{"$f":"IF($B907=\"N\",\"\",IF(AND('Enrollment Form'!$C914=\"ROC\",'Enrollment Form'!$DR914<>\"\"),\"Y\",IF(AND('Enrollment Form'!$C914=\"ROC\",'Enrollment Form'!$DR914=\"\"),\"N\",IF(AND('Enrollment Form'!$C914=\"Enroll\",'Enrollment Form'!$B914=\"Subscriber\",'Enrollment Form'!$CX914=\"No\",'Enrollment Form'!$DR914=\"\"),\"N\",IF(AND('Enrollment Form'!$C914=\"Enroll\",'Enrollment Form'!$B914=\"Subscriber\",'Enrollment Form'!$CX914=\"Yes\"),\"-\",\"Y\")))))","v":""},{"$f":"IF($B907=\"N\",\"\",IF(AND('Enrollment Form'!$C914=\"ROC\",'Enrollment Form'!$DS914<>\"\"),\"Y\",IF(AND('Enrollment Form'!$C914=\"ROC\",'Enrollment Form'!$DS914=\"\"),\"N\",IF(AND('Enrollment Form'!$C914=\"Enroll\",'Enrollment Form'!$B914=\"Subscriber\",'Enrollment Form'!$CX914=\"No\",'Enrollment Form'!$DS914=\"\"),\"N\",IF(AND('Enrollment Form'!$C914=\"Enroll\",'Enrollment Form'!$B914=\"Subscriber\",'Enrollment Form'!$CX914=\"Yes\"),\"-\",\"Y\")))))","v":""},{"$f":"IF('Enrollment Form'!AH914=\"\",\"\",IF(ISERROR(SEARCH(\".\",'Enrollment Form'!AH914,SEARCH(\"@\",'Enrollment Form'!AH914))),\"N\",\"Y\"))","v":""},{"$f":"IF(OR($B907=\"N\",'Enrollment Form'!$G914=\"\"),\"\",IF('Enrollment Form'!$B914<>\"Subscriber\",\"-\",IF(COUNTIF('Enrollment Form'!$AV914:$AW914,\"Yes\")=2,\"N\",\"Y\")))","v":""},{"$f":"IF(OR('Enrollment Form'!$CJ914=\"\",'Enrollment Form'!$CJ914=\"No\"),\"-\",IF(AND('Enrollment Form'!$CJ914=\"Yes\",'Enrollment Form'!$CK914=\"\"),\"N\",\"Y\"))","v":"-"},{"$f":"IF(OR('Enrollment Form'!$CL914=\"\",'Enrollment Form'!$CL914=\"No\"),\"-\",IF(AND('Enrollment Form'!$CL914=\"Yes\",'Enrollment Form'!$CM914=\"\"),\"N\",\"Y\"))","v":"-"},{"$f":"IF(OR('Enrollment Form'!$CN914=\"\",'Enrollment Form'!$CN914=\"No\"),\"-\",IF(AND('Enrollment Form'!$CN914=\"Yes\",'Enrollment Form'!$CO914=\"\"),\"N\",\"Y\"))","v":"-"},{"$f":"IF(OR('Enrollment Form'!$CN914=\"\",'Enrollment Form'!$CN914=\"No\"),\"-\",IF(AND('Enrollment Form'!$CN914=\"Yes\",'Enrollment Form'!$CP914=\"\"),\"N\",\"Y\"))","v":"-"},{"$f":"IF('Enrollment Form'!B914<>\"Subscriber\",\"-\",IF(AND('Enrollment Form'!B914=\"Subscriber\",'Enrollment Form'!C914=\"Enroll\",'Enrollment Form'!AA914=\"\"),\"N\",\"Y\"))","v":"-"},{"$f":"IF(OR('Enrollment Form'!B914=\"Subscriber\",'Enrollment Form'!B914=\"\"),\"-\",IF('Enrollment Form'!BP914=\"\",\"N\",\"Y\"))","v":"-"},{"$f":"IF('Enrollment Form'!B914<>\"Subscriber\",\"-\",IF(AND('Enrollment Form'!B914=\"Subscriber\",'Enrollment Form'!G914=\"\"),\"N\",\"Y\"))","v":"-"},{"$f":"IF('Enrollment Form'!A914=\"\",\"\",IF('Enrollment Form'!B914=\"Subscriber\",\"-\",IF(AND('Enrollment Form'!B914<>\"Subscriber\",'Enrollment Form'!G914='Enrollment Form'!H914),\"N\",\"Y\")))","v":""},0]
[915,{"$f":"IF('Enrollment Form'!$A915<>\"\",\"Y\",\"N\")","v":"N"},{"$f":"IF(AND('Enrollment Form'!$B915=\"\",'Enrollment Form'!$C915<>\"\"),\"N\",IF($B908=\"N\",\"\",\"Y\"))","v":""},{"$f":"IF(OR($B908=\"N\",'Enrollment Form'!G915=\"\"),\"\",IF('Enrollment Form'!$B915<>\"Subscriber\",\"\",IF('Enrollment Form'!$G915='Enrollment Form'!$H915,\"Y\",\"N\")))","v":""},{"$f":"IF($B908=\"N\",\"\",IF(AND(COUNTIFS('Enrollment Form'!$H$11:$H$1000,'Enrollment Form'!$H915,'Enrollment Form'!$B$11:$B$1000,'Enrollment Form'!$B915)>1,'Enrollment Form'!$H915<>\"\"),\"N\",\"Y\"))","v":""},{"$f":"IF($B908=\"N\",\"\",IF(LEN('Enrollment Form'!$Y915)=0,\"\",IF(LEN('Enrollment Form'!$Y915)<>5,\"N\",\"Y\")))","v":""},{"$f":"IF($B908=\"N\",\"\",IF(LEN('Enrollment Form'!$AD915=0),\"\",IF(LEN('Enrollment Form'!$AD915)<>5,\"N\",\"Y\")))","v":""},{"$f":"IF($B908=\"N\",\"\",IF(LEN('Enrollment Form'!$BS915=0),\"\",IF(LEN('Enrollment Form'!$BS915)<>5,\"N\",\"Y\")))","v":""},{"$f":"IF($B908=\"N\",\"\",IF(LEN('Enrollment Form'!$AE915)=0,\"\",IF(LEN('Enrollment Form'!$AE915)<>10,\"N\",\"Y\")))","v":""},{"$f":"IF($B908=\"N\",\"\",IF(LEN('Enrollment Form'!$AF915)=0,\"\",IF(LEN('Enrollment Form'!$AF915)<>10,\"N\",\"Y\")))","v":""},{"$f":"IF('Enrollment Form'!$O915<>\"Graded\",\"-\",IF(AND('Enrollment Form'!$O915=\"Graded\",'Enrollment Form'!$AR915<>\"\"),\"Y\",\"N\"))","v":"-"},{"$f":"IF($B908=\"N\",\"\",IF(OR('Enrollment Form'!$B915<>\"Subscriber\",'Enrollment Form'!$C915=\"ROC\"),\"-\",IF(AND('Enrollment Form'!$B915=\"Subscriber\",'Enrollment Form'!$C915=\"Enroll\",'Enrollment Form'!$AJ915<>\"\"),\"Y\",\"N\")))","v":""},{"$f":"IF($B908=\"N\",\"\",IF(OR('Enrollment Form'!$B915<>\"Subscriber\",'Enrollment Form'!$C915=\"ROC\"),\"-\",IF(AND('Enrollment Form'!$B915=\"Subscriber\",'Enrollment Form'!$C915=\"Enroll\",'Enrollment Form'!$AK915<>\"\"),\"Y\",\"N\")))","v":""},{"$f":"IF($B908=\"N\",\"\",IF(OR('Enrollment Form'!$B915<>\"Subscriber\",'Enrollment Form'!$C915=\"ROC\"),\"-\",IF(AND('Enrollment Form'!$B915=\"Subscriber\",'Enrollment Form'!$C915=\"Enroll\",'Enrollment Form'!$AL915<>\"\"),\"Y\",\"N\")))","v":""},{"$f":"IF($B908=\"N\",\"\",IF(OR('Enrollment Form'!$B915<>\"Subscriber\",'Enrollment Form'!$C915=\"ROC\"),\"-\",IF(AND('Enrollment Form'!$B915=\"Subscriber\",'Enrollment Form'!$C915=\"Enroll\",'Enrollment Form'!$AP915<>\"\"),\"Y\",\"N\")))","v":""},{"$f":"IF($B908=\"N\",\"\",IF(OR('Enrollment Form'!$B915<>\"Subscriber\",'Enrollment Form'!$C915=\"ROC\"),\"-\",IF(AND('Enrollment Form'!$B915=\"Subscriber\",'Enrollment Form'!$C915=\"Enroll\",'Enrollment Form'!$AQ915<>\"\"),\"Y\",\"N\")))","v":""},{"$f":"IF($B908=\"N\",\"\",IF(OR('Enrollment Form'!$B915<>\"Subscriber\",'Enrollment Form'!$C915=\"ROC\"),\"-\",IF(AND('Enrollment Form'!$B915=\"Subscriber\",'Enrollment Form'!$C915=\"Enroll\",'Enrollment Form'!$AS915<>\"\"),\"Y\",\"N\")))","v":""},{"$f":"IF($B908=\"N\",\"\",IF($Q908=\"-\",\"-\",IF(AND($Q908=\"Y\",'Enrollment Form'!$AS915=\"No\"),\"-\",IF(AND($Q908=\"Y\",'Enrollment Form'!$AS915=\"Yes\",'Enrollment Form'!$AT915<>\"\"),\"Y\",\"N\"))))","v":""},{"$f":"IF($B908=\"N\",\"\",IF(OR('Enrollment Form'!$B915<>\"Subscriber\",'Enrollment Form'!$C915=\"ROC\"),\"-\",IF(AND('Enrollment Form'!$B915=\"Subscriber\",'Enrollment Form'!$C915=\"Enroll\",'Enrollment Form'!$CV915<>\"\"),\"Y\",\"N\")))","v":""},{"$f":"IF($B908=\"N\",\"\",IF($S908=\"-\",\"-\",IF(AND($S908=\"Y\",'Enrollment Form'!$CV915=\"No\"),\"-\",IF(AND($S908=\"Y\",'Enrollment Form'!$CV915=\"Yes\",'Enrollment Form'!$CW915<>\"\"),\"Y\",\"N\"))))","v":""},{"$f":"IF(OR('Enrollment Form'!$AY915=\"Yes\",'Enrollment Form'!$AY915=\"\"),\"-\",IF(OR(AND('Enrollment Form'!$AY915=\"No\",ISERROR(FIND(\"HMO\",VLOOKUP('Enrollment Form'!G915,'Enrollment Form'!H$11:J$1000,3,FALSE),1))=FALSE,COUNTA('Enrollment Form'!$AZ915:$BC915)=4),AND('Enrollment Form'!$AY915=\"No\",ISERROR(FIND(\"HMO\",VLOOKUP('Enrollment Form'!G915,'Enrollment Form'!H$11:J$1000,3,FALSE),1))=FALSE,COUNTA('Enrollment Form'!$BT915:$BW915)=4)),\"Y\",\"N\"))","v":"-"},{"$f":"IF($B908=\"N\",\"\",IF('Enrollment Form'!$B915=\"Subscriber\",\"-\",IF(COUNTA('Enrollment Form'!$BL915,'Enrollment Form'!$BN915)=2,\"Y\",\"N\")))","v":""},{"$f":"IF($B908=\"N\",\"\",IF(OR('Enrollment Form'!$AX915=\"\",'Enrollment Form'!$AX915=\"No\"),\"-\",IF(AND('Enrollment Form'!$AX915=\"Yes\",COUNTA('Enrollment Form'!$CR915)=1),\"Y\",\"N\")))","v":""},{"$f":"IF(OR('Enrollment Form'!$CR915=\"\",'Enrollment Form'!$CR915=\"No\"),\"-\",IF(COUNTA('Enrollment Form'!$CT915:$CU915)=2,\"Y\",\"N\"))","v":"-"},{"$f":"IF($B908=\"N\",\"\",IF(COUNTIF('Enrollment Form'!$DG915:$DP915,\"Other\")=COUNTA('Enrollment Form'!$DK915,'Enrollment Form'!$DH915,'Enrollment Form'!$DN915,'Enrollment Form'!$DQ915),\"Y\",\"N\"))","v":""},{"$f":"IF($B908=\"N\",\"\",IF(OR('Enrollment Form'!B915<>\"Subscriber\",'Enrollment Form'!C915=\"ROC\",COUNTIF('Enrollment Form'!AV915:AW915,\"Yes\")>=1),\"-\",IF(AND('Enrollment Form'!C915=\"Enroll\",COUNTIF('Enrollment Form'!AV915:AW915,\"No\")=2,'Enrollment Form'!AX915=\"\"),\"N\",\"Y\")))","v":""},{"$f":"IF(OR(B908=\"N\",'Enrollment Form'!B915<>\"Subscriber\",'Enrollment Form'!C915=\"ROC\",'Enrollment Form'!O915<>\"Multiple of Salary\"),\"-\",IF(COUNTA('Enrollment Form'!T915:U915)<2,\"N\",\"Y\"))","v":"-"},{"$f":"IF(B908=\"N\",\"\",IF(OR('Enrollment Form'!C915=\"ROC\",'Enrollment Form'!B915<>\"Subscriber\",'Enrollment Form'!O915=\"Waive\",'Enrollment Form'!O915=\"\"),\"-\",IF('Enrollment Form'!P915=\"\",\"N\",\"Y\")))","v":""},{"$f":"IF($B908=\"N\",\"\",IF(AND('Enrollment Form'!$C915=\"ROC\",'Enrollment Form'!$DR915<>\"\"),\"Y\",IF(AND('Enrollment Form'!$C915=\"ROC\",'Enrollment Form'!$DR915=\"\"),\"N\",IF(AND('Enrollment Form'!$C915=\"Enroll\",'Enrollment Form'!$B915=\"Subscriber\",'Enrollment Form'!$CX915=\"No\",'Enrollment Form'!$DR915=\"\"),\"N\",IF(AND('Enrollment Form'!$C915=\"Enroll\",'Enrollment Form'!$B915=\"Subscriber\",'Enrollment Form'!$CX915=\"Yes\"),\"-\",\"Y\")))))","v":""},{"$f":"IF($B908=\"N\",\"\",IF(AND('Enrollment Form'!$C915=\"ROC\",'Enrollment Form'!$DS915<>\"\"),\"Y\",IF(AND('Enrollment Form'!$C915=\"ROC\",'Enrollment Form'!$DS915=\"\"),\"N\",IF(AND('Enrollment Form'!$C915=\"Enroll\",'Enrollment Form'!$B915=\"Subscriber\",'Enrollment Form'!$CX915=\"No\",'Enrollment Form'!$DS915=\"\"),\"N\",IF(AND('Enrollment Form'!$C915=\"Enroll\",'Enrollment Form'!$B915=\"Subscriber\",'Enrollment Form'!$CX915=\"Yes\"),\"-\",\"Y\")))))","v":""},{"$f":"IF('Enrollment Form'!AH915=\"\",\"\",IF(ISERROR(SEARCH(\".\",'Enrollment Form'!AH915,SEARCH(\"@\",'Enrollment Form'!AH915))),\"N\",\"Y\"))","v":""},{"$f":"IF(OR($B908=\"N\",'Enrollment Form'!$G915=\"\"),\"\",IF('Enrollment Form'!$B915<>\"Subscriber\",\"-\",IF(COUNTIF('Enrollment Form'!$AV915:$AW915,\"Yes\")=2,\"N\",\"Y\")))","v":""},{"$f":"IF(OR('Enrollment Form'!$CJ915=\"\",'Enrollment Form'!$CJ915=\"No\"),\"-\",IF(AND('Enrollment Form'!$CJ915=\"Yes\",'Enrollment Form'!$CK915=\"\"),\"N\",\"Y\"))","v":"-"},{"$f":"IF(OR('Enrollment Form'!$CL915=\"\",'Enrollment Form'!$CL915=\"No\"),\"-\",IF(AND('Enrollment Form'!$CL915=\"Yes\",'Enrollment Form'!$CM915=\"\"),\"N\",\"Y\"))","v":"-"},{"$f":"IF(OR('Enrollment Form'!$CN915=\"\",'Enrollment Form'!$CN915=\"No\"),\"-\",IF(AND('Enrollment Form'!$CN915=\"Yes\",'Enrollment Form'!$CO915=\"\"),\"N\",\"Y\"))","v":"-"},{"$f":"IF(OR('Enrollment Form'!$CN915=\"\",'Enrollment Form'!$CN915=\"No\"),\"-\",IF(AND('Enrollment Form'!$CN915=\"Yes\",'Enrollment Form'!$CP915=\"\"),\"N\",\"Y\"))","v":"-"},{"$f":"IF('Enrollment Form'!B915<>\"Subscriber\",\"-\",IF(AND('Enrollment Form'!B915=\"Subscriber\",'Enrollment Form'!C915=\"Enroll\",'Enrollment Form'!AA915=\"\"),\"N\",\"Y\"))","v":"-"},{"$f":"IF(OR('Enrollment Form'!B915=\"Subscriber\",'Enrollment Form'!B915=\"\"),\"-\",IF('Enrollment Form'!BP915=\"\",\"N\",\"Y\"))","v":"-"},{"$f":"IF('Enrollment Form'!B915<>\"Subscriber\",\"-\",IF(AND('Enrollment Form'!B915=\"Subscriber\",'Enrollment Form'!G915=\"\"),\"N\",\"Y\"))","v":"-"},{"$f":"IF('Enrollment Form'!A915=\"\",\"\",IF('Enrollment Form'!B915=\"Subscriber\",\"-\",IF(AND('Enrollment Form'!B915<>\"Subscriber\",'Enrollment Form'!G915='Enrollment Form'!H915),\"N\",\"Y\")))","v":""},0]
[916,{"$f":"IF('Enrollment Form'!$A916<>\"\",\"Y\",\"N\")","v":"N"},{"$f":"IF(AND('Enrollment Form'!$B916=\"\",'Enrollment Form'!$C916<>\"\"),\"N\",IF($B909=\"N\",\"\",\"Y\"))","v":""},{"$f":"IF(OR($B909=\"N\",'Enrollment Form'!G916=\"\"),\"\",IF('Enrollment Form'!$B916<>\"Subscriber\",\"\",IF('Enrollment Form'!$G916='Enrollment Form'!$H916,\"Y\",\"N\")))","v":""},{"$f":"IF($B909=\"N\",\"\",IF(AND(COUNTIFS('Enrollment Form'!$H$11:$H$1000,'Enrollment Form'!$H916,'Enrollment Form'!$B$11:$B$1000,'Enrollment Form'!$B916)>1,'Enrollment Form'!$H916<>\"\"),\"N\",\"Y\"))","v":""},{"$f":"IF($B909=\"N\",\"\",IF(LEN('Enrollment Form'!$Y916)=0,\"\",IF(LEN('Enrollment Form'!$Y916)<>5,\"N\",\"Y\")))","v":""},{"$f":"IF($B909=\"N\",\"\",IF(LEN('Enrollment Form'!$AD916=0),\"\",IF(LEN('Enrollment Form'!$AD916)<>5,\"N\",\"Y\")))","v":""},{"$f":"IF($B909=\"N\",\"\",IF(LEN('Enrollment Form'!$BS916=0),\"\",IF(LEN('Enrollment Form'!$BS916)<>5,\"N\",\"Y\")))","v":""},{"$f":"IF($B909=\"N\",\"\",IF(LEN('Enrollment Form'!$AE916)=0,\"\",IF(LEN('Enrollment Form'!$AE916)<>10,\"N\",\"Y\")))","v":""},{"$f":"IF($B909=\"N\",\"\",IF(LEN('Enrollment Form'!$AF916)=0,\"\",IF(LEN('Enrollment Form'!$AF916)<>10,\"N\",\"Y\")))","v":""},{"$f":"IF('Enrollment Form'!$O916<>\"Graded\",\"-\",IF(AND('Enrollment Form'!$O916=\"Graded\",'Enrollment Form'!$AR916<>\"\"),\"Y\",\"N\"))","v":"-"},{"$f":"IF($B909=\"N\",\"\",IF(OR('Enrollment Form'!$B916<>\"Subscriber\",'Enrollment Form'!$C916=\"ROC\"),\"-\",IF(AND('Enrollment Form'!$B916=\"Subscriber\",'Enrollment Form'!$C916=\"Enroll\",'Enrollment Form'!$AJ916<>\"\"),\"Y\",\"N\")))","v":""},{"$f":"IF($B909=\"N\",\"\",IF(OR('Enrollment Form'!$B916<>\"Subscriber\",'Enrollment Form'!$C916=\"ROC\"),\"-\",IF(AND('Enrollment Form'!$B916=\"Subscriber\",'Enrollment Form'!$C916=\"Enroll\",'Enrollment Form'!$AK916<>\"\"),\"Y\",\"N\")))","v":""},{"$f":"IF($B909=\"N\",\"\",IF(OR('Enrollment Form'!$B916<>\"Subscriber\",'Enrollment Form'!$C916=\"ROC\"),\"-\",IF(AND('Enrollment Form'!$B916=\"Subscriber\",'Enrollment Form'!$C916=\"Enroll\",'Enrollment Form'!$AL916<>\"\"),\"Y\",\"N\")))","v":""},{"$f":"IF($B909=\"N\",\"\",IF(OR('Enrollment Form'!$B916<>\"Subscriber\",'Enrollment Form'!$C916=\"ROC\"),\"-\",IF(AND('Enrollment Form'!$B916=\"Subscriber\",'Enrollment Form'!$C916=\"Enroll\",'Enrollment Form'!$AP916<>\"\"),\"Y\",\"N\")))","v":""},{"$f":"IF($B909=\"N\",\"\",IF(OR('Enrollment Form'!$B916<>\"Subscriber\",'Enrollment Form'!$C916=\"ROC\"),\"-\",IF(AND('Enrollment Form'!$B916=\"Subscriber\",'Enrollment Form'!$C916=\"Enroll\",'Enrollment Form'!$AQ916<>\"\"),\"Y\",\"N\")))","v":""},{"$f":"IF($B909=\"N\",\"\",IF(OR('Enrollment Form'!$B916<>\"Subscriber\",'Enrollment Form'!$C916=\"ROC\"),\"-\",IF(AND('Enrollment Form'!$B916=\"Subscriber\",'Enrollment Form'!$C916=\"Enroll\",'Enrollment Form'!$AS916<>\"\"),\"Y\",\"N\")))","v":""},{"$f":"IF($B909=\"N\",\"\",IF($Q909=\"-\",\"-\",IF(AND($Q909=\"Y\",'Enrollment Form'!$AS916=\"No\"),\"-\",IF(AND($Q909=\"Y\",'Enrollment Form'!$AS916=\"Yes\",'Enrollment Form'!$AT916<>\"\"),\"Y\",\"N\"))))","v":""},{"$f":"IF($B909=\"N\",\"\",IF(OR('Enrollment Form'!$B916<>\"Subscriber\",'Enrollment Form'!$C916=\"ROC\"),\"-\",IF(AND('Enrollment Form'!$B916=\"Subscriber\",'Enrollment Form'!$C916=\"Enroll\",'Enrollment Form'!$CV916<>\"\"),\"Y\",\"N\")))","v":""},{"$f":"IF($B909=\"N\",\"\",IF($S909=\"-\",\"-\",IF(AND($S909=\"Y\",'Enrollment Form'!$CV916=\"No\"),\"-\",IF(AND($S909=\"Y\",'Enrollment Form'!$CV916=\"Yes\",'Enrollment Form'!$CW916<>\"\"),\"Y\",\"N\"))))","v":""},{"$f":"IF(OR('Enrollment Form'!$AY916=\"Yes\",'Enrollment Form'!$AY916=\"\"),\"-\",IF(OR(AND('Enrollment Form'!$AY916=\"No\",ISERROR(FIND(\"HMO\",VLOOKUP('Enrollment Form'!G916,'Enrollment Form'!H$11:J$1000,3,FALSE),1))=FALSE,COUNTA('Enrollment Form'!$AZ916:$BC916)=4),AND('Enrollment Form'!$AY916=\"No\",ISERROR(FIND(\"HMO\",VLOOKUP('Enrollment Form'!G916,'Enrollment Form'!H$11:J$1000,3,FALSE),1))=FALSE,COUNTA('Enrollment Form'!$BT916:$BW916)=4)),\"Y\",\"N\"))","v":"-"},{"$f":"IF($B909=\"N\",\"\",IF('Enrollment Form'!$B916=\"Subscriber\",\"-\",IF(COUNTA('Enrollment Form'!$BL916,'Enrollment Form'!$BN916)=2,\"Y\",\"N\")))","v":""},{"$f":"IF($B909=\"N\",\"\",IF(OR('Enrollment Form'!$AX916=\"\",'Enrollment Form'!$AX916=\"No\"),\"-\",IF(AND('Enrollment Form'!$AX916=\"Yes\",COUNTA('Enrollment Form'!$CR916)=1),\"Y\",\"N\")))","v":""},{"$f":"IF(OR('Enrollment Form'!$CR916=\"\",'Enrollment Form'!$CR916=\"No\"),\"-\",IF(COUNTA('Enrollment Form'!$CT916:$CU916)=2,\"Y\",\"N\"))","v":"-"},{"$f":"IF($B909=\"N\",\"\",IF(COUNTIF('Enrollment Form'!$DG916:$DP916,\"Other\")=COUNTA('Enrollment Form'!$DK916,'Enrollment Form'!$DH916,'Enrollment Form'!$DN916,'Enrollment Form'!$DQ916),\"Y\",\"N\"))","v":""},{"$f":"IF($B909=\"N\",\"\",IF(OR('Enrollment Form'!B916<>\"Subscriber\",'Enrollment Form'!C916=\"ROC\",COUNTIF('Enrollment Form'!AV916:AW916,\"Yes\")>=1),\"-\",IF(AND('Enrollment Form'!C916=\"Enroll\",COUNTIF('Enrollment Form'!AV916:AW916,\"No\")=2,'Enrollment Form'!AX916=\"\"),\"N\",\"Y\")))","v":""},{"$f":"IF(OR(B909=\"N\",'Enrollment Form'!B916<>\"Subscriber\",'Enrollment Form'!C916=\"ROC\",'Enrollment Form'!O916<>\"Multiple of Salary\"),\"-\",IF(COUNTA('Enrollment Form'!T916:U916)<2,\"N\",\"Y\"))","v":"-"},{"$f":"IF(B909=\"N\",\"\",IF(OR('Enrollment Form'!C916=\"ROC\",'Enrollment Form'!B916<>\"Subscriber\",'Enrollment Form'!O916=\"Waive\",'Enrollment Form'!O916=\"\"),\"-\",IF('Enrollment Form'!P916=\"\",\"N\",\"Y\")))","v":""},{"$f":"IF($B909=\"N\",\"\",IF(AND('Enrollment Form'!$C916=\"ROC\",'Enrollment Form'!$DR916<>\"\"),\"Y\",IF(AND('Enrollment Form'!$C916=\"ROC\",'Enrollment Form'!$DR916=\"\"),\"N\",IF(AND('Enrollment Form'!$C916=\"Enroll\",'Enrollment Form'!$B916=\"Subscriber\",'Enrollment Form'!$CX916=\"No\",'Enrollment Form'!$DR916=\"\"),\"N\",IF(AND('Enrollment Form'!$C916=\"Enroll\",'Enrollment Form'!$B916=\"Subscriber\",'Enrollment Form'!$CX916=\"Yes\"),\"-\",\"Y\")))))","v":""},{"$f":"IF($B909=\"N\",\"\",IF(AND('Enrollment Form'!$C916=\"ROC\",'Enrollment Form'!$DS916<>\"\"),\"Y\",IF(AND('Enrollment Form'!$C916=\"ROC\",'Enrollment Form'!$DS916=\"\"),\"N\",IF(AND('Enrollment Form'!$C916=\"Enroll\",'Enrollment Form'!$B916=\"Subscriber\",'Enrollment Form'!$CX916=\"No\",'Enrollment Form'!$DS916=\"\"),\"N\",IF(AND('Enrollment Form'!$C916=\"Enroll\",'Enrollment Form'!$B916=\"Subscriber\",'Enrollment Form'!$CX916=\"Yes\"),\"-\",\"Y\")))))","v":""},{"$f":"IF('Enrollment Form'!AH916=\"\",\"\",IF(ISERROR(SEARCH(\".\",'Enrollment Form'!AH916,SEARCH(\"@\",'Enrollment Form'!AH916))),\"N\",\"Y\"))","v":""},{"$f":"IF(OR($B909=\"N\",'Enrollment Form'!$G916=\"\"),\"\",IF('Enrollment Form'!$B916<>\"Subscriber\",\"-\",IF(COUNTIF('Enrollment Form'!$AV916:$AW916,\"Yes\")=2,\"N\",\"Y\")))","v":""},{"$f":"IF(OR('Enrollment Form'!$CJ916=\"\",'Enrollment Form'!$CJ916=\"No\"),\"-\",IF(AND('Enrollment Form'!$CJ916=\"Yes\",'Enrollment Form'!$CK916=\"\"),\"N\",\"Y\"))","v":"-"},{"$f":"IF(OR('Enrollment Form'!$CL916=\"\",'Enrollment Form'!$CL916=\"No\"),\"-\",IF(AND('Enrollment Form'!$CL916=\"Yes\",'Enrollment Form'!$CM916=\"\"),\"N\",\"Y\"))","v":"-"},{"$f":"IF(OR('Enrollment Form'!$CN916=\"\",'Enrollment Form'!$CN916=\"No\"),\"-\",IF(AND('Enrollment Form'!$CN916=\"Yes\",'Enrollment Form'!$CO916=\"\"),\"N\",\"Y\"))","v":"-"},{"$f":"IF(OR('Enrollment Form'!$CN916=\"\",'Enrollment Form'!$CN916=\"No\"),\"-\",IF(AND('Enrollment Form'!$CN916=\"Yes\",'Enrollment Form'!$CP916=\"\"),\"N\",\"Y\"))","v":"-"},{"$f":"IF('Enrollment Form'!B916<>\"Subscriber\",\"-\",IF(AND('Enrollment Form'!B916=\"Subscriber\",'Enrollment Form'!C916=\"Enroll\",'Enrollment Form'!AA916=\"\"),\"N\",\"Y\"))","v":"-"},{"$f":"IF(OR('Enrollment Form'!B916=\"Subscriber\",'Enrollment Form'!B916=\"\"),\"-\",IF('Enrollment Form'!BP916=\"\",\"N\",\"Y\"))","v":"-"},{"$f":"IF('Enrollment Form'!B916<>\"Subscriber\",\"-\",IF(AND('Enrollment Form'!B916=\"Subscriber\",'Enrollment Form'!G916=\"\"),\"N\",\"Y\"))","v":"-"},{"$f":"IF('Enrollment Form'!A916=\"\",\"\",IF('Enrollment Form'!B916=\"Subscriber\",\"-\",IF(AND('Enrollment Form'!B916<>\"Subscriber\",'Enrollment Form'!G916='Enrollment Form'!H916),\"N\",\"Y\")))","v":""},0]
[917,{"$f":"IF('Enrollment Form'!$A917<>\"\",\"Y\",\"N\")","v":"N"},{"$f":"IF(AND('Enrollment Form'!$B917=\"\",'Enrollment Form'!$C917<>\"\"),\"N\",IF($B910=\"N\",\"\",\"Y\"))","v":""},{"$f":"IF(OR($B910=\"N\",'Enrollment Form'!G917=\"\"),\"\",IF('Enrollment Form'!$B917<>\"Subscriber\",\"\",IF('Enrollment Form'!$G917='Enrollment Form'!$H917,\"Y\",\"N\")))","v":""},{"$f":"IF($B910=\"N\",\"\",IF(AND(COUNTIFS('Enrollment Form'!$H$11:$H$1000,'Enrollment Form'!$H917,'Enrollment Form'!$B$11:$B$1000,'Enrollment Form'!$B917)>1,'Enrollment Form'!$H917<>\"\"),\"N\",\"Y\"))","v":""},{"$f":"IF($B910=\"N\",\"\",IF(LEN('Enrollment Form'!$Y917)=0,\"\",IF(LEN('Enrollment Form'!$Y917)<>5,\"N\",\"Y\")))","v":""},{"$f":"IF($B910=\"N\",\"\",IF(LEN('Enrollment Form'!$AD917=0),\"\",IF(LEN('Enrollment Form'!$AD917)<>5,\"N\",\"Y\")))","v":""},{"$f":"IF($B910=\"N\",\"\",IF(LEN('Enrollment Form'!$BS917=0),\"\",IF(LEN('Enrollment Form'!$BS917)<>5,\"N\",\"Y\")))","v":""},{"$f":"IF($B910=\"N\",\"\",IF(LEN('Enrollment Form'!$AE917)=0,\"\",IF(LEN('Enrollment Form'!$AE917)<>10,\"N\",\"Y\")))","v":""},{"$f":"IF($B910=\"N\",\"\",IF(LEN('Enrollment Form'!$AF917)=0,\"\",IF(LEN('Enrollment Form'!$AF917)<>10,\"N\",\"Y\")))","v":""},{"$f":"IF('Enrollment Form'!$O917<>\"Graded\",\"-\",IF(AND('Enrollment Form'!$O917=\"Graded\",'Enrollment Form'!$AR917<>\"\"),\"Y\",\"N\"))","v":"-"},{"$f":"IF($B910=\"N\",\"\",IF(OR('Enrollment Form'!$B917<>\"Subscriber\",'Enrollment Form'!$C917=\"ROC\"),\"-\",IF(AND('Enrollment Form'!$B917=\"Subscriber\",'Enrollment Form'!$C917=\"Enroll\",'Enrollment Form'!$AJ917<>\"\"),\"Y\",\"N\")))","v":""},{"$f":"IF($B910=\"N\",\"\",IF(OR('Enrollment Form'!$B917<>\"Subscriber\",'Enrollment Form'!$C917=\"ROC\"),\"-\",IF(AND('Enrollment Form'!$B917=\"Subscriber\",'Enrollment Form'!$C917=\"Enroll\",'Enrollment Form'!$AK917<>\"\"),\"Y\",\"N\")))","v":""},{"$f":"IF($B910=\"N\",\"\",IF(OR('Enrollment Form'!$B917<>\"Subscriber\",'Enrollment Form'!$C917=\"ROC\"),\"-\",IF(AND('Enrollment Form'!$B917=\"Subscriber\",'Enrollment Form'!$C917=\"Enroll\",'Enrollment Form'!$AL917<>\"\"),\"Y\",\"N\")))","v":""},{"$f":"IF($B910=\"N\",\"\",IF(OR('Enrollment Form'!$B917<>\"Subscriber\",'Enrollment Form'!$C917=\"ROC\"),\"-\",IF(AND('Enrollment Form'!$B917=\"Subscriber\",'Enrollment Form'!$C917=\"Enroll\",'Enrollment Form'!$AP917<>\"\"),\"Y\",\"N\")))","v":""},{"$f":"IF($B910=\"N\",\"\",IF(OR('Enrollment Form'!$B917<>\"Subscriber\",'Enrollment Form'!$C917=\"ROC\"),\"-\",IF(AND('Enrollment Form'!$B917=\"Subscriber\",'Enrollment Form'!$C917=\"Enroll\",'Enrollment Form'!$AQ917<>\"\"),\"Y\",\"N\")))","v":""},{"$f":"IF($B910=\"N\",\"\",IF(OR('Enrollment Form'!$B917<>\"Subscriber\",'Enrollment Form'!$C917=\"ROC\"),\"-\",IF(AND('Enrollment Form'!$B917=\"Subscriber\",'Enrollment Form'!$C917=\"Enroll\",'Enrollment Form'!$AS917<>\"\"),\"Y\",\"N\")))","v":""},{"$f":"IF($B910=\"N\",\"\",IF($Q910=\"-\",\"-\",IF(AND($Q910=\"Y\",'Enrollment Form'!$AS917=\"No\"),\"-\",IF(AND($Q910=\"Y\",'Enrollment Form'!$AS917=\"Yes\",'Enrollment Form'!$AT917<>\"\"),\"Y\",\"N\"))))","v":""},{"$f":"IF($B910=\"N\",\"\",IF(OR('Enrollment Form'!$B917<>\"Subscriber\",'Enrollment Form'!$C917=\"ROC\"),\"-\",IF(AND('Enrollment Form'!$B917=\"Subscriber\",'Enrollment Form'!$C917=\"Enroll\",'Enrollment Form'!$CV917<>\"\"),\"Y\",\"N\")))","v":""},{"$f":"IF($B910=\"N\",\"\",IF($S910=\"-\",\"-\",IF(AND($S910=\"Y\",'Enrollment Form'!$CV917=\"No\"),\"-\",IF(AND($S910=\"Y\",'Enrollment Form'!$CV917=\"Yes\",'Enrollment Form'!$CW917<>\"\"),\"Y\",\"N\"))))","v":""},{"$f":"IF(OR('Enrollment Form'!$AY917=\"Yes\",'Enrollment Form'!$AY917=\"\"),\"-\",IF(OR(AND('Enrollment Form'!$AY917=\"No\",ISERROR(FIND(\"HMO\",VLOOKUP('Enrollment Form'!G917,'Enrollment Form'!H$11:J$1000,3,FALSE),1))=FALSE,COUNTA('Enrollment Form'!$AZ917:$BC917)=4),AND('Enrollment Form'!$AY917=\"No\",ISERROR(FIND(\"HMO\",VLOOKUP('Enrollment Form'!G917,'Enrollment Form'!H$11:J$1000,3,FALSE),1))=FALSE,COUNTA('Enrollment Form'!$BT917:$BW917)=4)),\"Y\",\"N\"))","v":"-"},{"$f":"IF($B910=\"N\",\"\",IF('Enrollment Form'!$B917=\"Subscriber\",\"-\",IF(COUNTA('Enrollment Form'!$BL917,'Enrollment Form'!$BN917)=2,\"Y\",\"N\")))","v":""},{"$f":"IF($B910=\"N\",\"\",IF(OR('Enrollment Form'!$AX917=\"\",'Enrollment Form'!$AX917=\"No\"),\"-\",IF(AND('Enrollment Form'!$AX917=\"Yes\",COUNTA('Enrollment Form'!$CR917)=1),\"Y\",\"N\")))","v":""},{"$f":"IF(OR('Enrollment Form'!$CR917=\"\",'Enrollment Form'!$CR917=\"No\"),\"-\",IF(COUNTA('Enrollment Form'!$CT917:$CU917)=2,\"Y\",\"N\"))","v":"-"},{"$f":"IF($B910=\"N\",\"\",IF(COUNTIF('Enrollment Form'!$DG917:$DP917,\"Other\")=COUNTA('Enrollment Form'!$DK917,'Enrollment Form'!$DH917,'Enrollment Form'!$DN917,'Enrollment Form'!$DQ917),\"Y\",\"N\"))","v":""},{"$f":"IF($B910=\"N\",\"\",IF(OR('Enrollment Form'!B917<>\"Subscriber\",'Enrollment Form'!C917=\"ROC\",COUNTIF('Enrollment Form'!AV917:AW917,\"Yes\")>=1),\"-\",IF(AND('Enrollment Form'!C917=\"Enroll\",COUNTIF('Enrollment Form'!AV917:AW917,\"No\")=2,'Enrollment Form'!AX917=\"\"),\"N\",\"Y\")))","v":""},{"$f":"IF(OR(B910=\"N\",'Enrollment Form'!B917<>\"Subscriber\",'Enrollment Form'!C917=\"ROC\",'Enrollment Form'!O917<>\"Multiple of Salary\"),\"-\",IF(COUNTA('Enrollment Form'!T917:U917)<2,\"N\",\"Y\"))","v":"-"},{"$f":"IF(B910=\"N\",\"\",IF(OR('Enrollment Form'!C917=\"ROC\",'Enrollment Form'!B917<>\"Subscriber\",'Enrollment Form'!O917=\"Waive\",'Enrollment Form'!O917=\"\"),\"-\",IF('Enrollment Form'!P917=\"\",\"N\",\"Y\")))","v":""},{"$f":"IF($B910=\"N\",\"\",IF(AND('Enrollment Form'!$C917=\"ROC\",'Enrollment Form'!$DR917<>\"\"),\"Y\",IF(AND('Enrollment Form'!$C917=\"ROC\",'Enrollment Form'!$DR917=\"\"),\"N\",IF(AND('Enrollment Form'!$C917=\"Enroll\",'Enrollment Form'!$B917=\"Subscriber\",'Enrollment Form'!$CX917=\"No\",'Enrollment Form'!$DR917=\"\"),\"N\",IF(AND('Enrollment Form'!$C917=\"Enroll\",'Enrollment Form'!$B917=\"Subscriber\",'Enrollment Form'!$CX917=\"Yes\"),\"-\",\"Y\")))))","v":""},{"$f":"IF($B910=\"N\",\"\",IF(AND('Enrollment Form'!$C917=\"ROC\",'Enrollment Form'!$DS917<>\"\"),\"Y\",IF(AND('Enrollment Form'!$C917=\"ROC\",'Enrollment Form'!$DS917=\"\"),\"N\",IF(AND('Enrollment Form'!$C917=\"Enroll\",'Enrollment Form'!$B917=\"Subscriber\",'Enrollment Form'!$CX917=\"No\",'Enrollment Form'!$DS917=\"\"),\"N\",IF(AND('Enrollment Form'!$C917=\"Enroll\",'Enrollment Form'!$B917=\"Subscriber\",'Enrollment Form'!$CX917=\"Yes\"),\"-\",\"Y\")))))","v":""},{"$f":"IF('Enrollment Form'!AH917=\"\",\"\",IF(ISERROR(SEARCH(\".\",'Enrollment Form'!AH917,SEARCH(\"@\",'Enrollment Form'!AH917))),\"N\",\"Y\"))","v":""},{"$f":"IF(OR($B910=\"N\",'Enrollment Form'!$G917=\"\"),\"\",IF('Enrollment Form'!$B917<>\"Subscriber\",\"-\",IF(COUNTIF('Enrollment Form'!$AV917:$AW917,\"Yes\")=2,\"N\",\"Y\")))","v":""},{"$f":"IF(OR('Enrollment Form'!$CJ917=\"\",'Enrollment Form'!$CJ917=\"No\"),\"-\",IF(AND('Enrollment Form'!$CJ917=\"Yes\",'Enrollment Form'!$CK917=\"\"),\"N\",\"Y\"))","v":"-"},{"$f":"IF(OR('Enrollment Form'!$CL917=\"\",'Enrollment Form'!$CL917=\"No\"),\"-\",IF(AND('Enrollment Form'!$CL917=\"Yes\",'Enrollment Form'!$CM917=\"\"),\"N\",\"Y\"))","v":"-"},{"$f":"IF(OR('Enrollment Form'!$CN917=\"\",'Enrollment Form'!$CN917=\"No\"),\"-\",IF(AND('Enrollment Form'!$CN917=\"Yes\",'Enrollment Form'!$CO917=\"\"),\"N\",\"Y\"))","v":"-"},{"$f":"IF(OR('Enrollment Form'!$CN917=\"\",'Enrollment Form'!$CN917=\"No\"),\"-\",IF(AND('Enrollment Form'!$CN917=\"Yes\",'Enrollment Form'!$CP917=\"\"),\"N\",\"Y\"))","v":"-"},{"$f":"IF('Enrollment Form'!B917<>\"Subscriber\",\"-\",IF(AND('Enrollment Form'!B917=\"Subscriber\",'Enrollment Form'!C917=\"Enroll\",'Enrollment Form'!AA917=\"\"),\"N\",\"Y\"))","v":"-"},{"$f":"IF(OR('Enrollment Form'!B917=\"Subscriber\",'Enrollment Form'!B917=\"\"),\"-\",IF('Enrollment Form'!BP917=\"\",\"N\",\"Y\"))","v":"-"},{"$f":"IF('Enrollment Form'!B917<>\"Subscriber\",\"-\",IF(AND('Enrollment Form'!B917=\"Subscriber\",'Enrollment Form'!G917=\"\"),\"N\",\"Y\"))","v":"-"},{"$f":"IF('Enrollment Form'!A917=\"\",\"\",IF('Enrollment Form'!B917=\"Subscriber\",\"-\",IF(AND('Enrollment Form'!B917<>\"Subscriber\",'Enrollment Form'!G917='Enrollment Form'!H917),\"N\",\"Y\")))","v":""},0]
[918,{"$f":"IF('Enrollment Form'!$A918<>\"\",\"Y\",\"N\")","v":"N"},{"$f":"IF(AND('Enrollment Form'!$B918=\"\",'Enrollment Form'!$C918<>\"\"),\"N\",IF($B911=\"N\",\"\",\"Y\"))","v":""},{"$f":"IF(OR($B911=\"N\",'Enrollment Form'!G918=\"\"),\"\",IF('Enrollment Form'!$B918<>\"Subscriber\",\"\",IF('Enrollment Form'!$G918='Enrollment Form'!$H918,\"Y\",\"N\")))","v":""},{"$f":"IF($B911=\"N\",\"\",IF(AND(COUNTIFS('Enrollment Form'!$H$11:$H$1000,'Enrollment Form'!$H918,'Enrollment Form'!$B$11:$B$1000,'Enrollment Form'!$B918)>1,'Enrollment Form'!$H918<>\"\"),\"N\",\"Y\"))","v":""},{"$f":"IF($B911=\"N\",\"\",IF(LEN('Enrollment Form'!$Y918)=0,\"\",IF(LEN('Enrollment Form'!$Y918)<>5,\"N\",\"Y\")))","v":""},{"$f":"IF($B911=\"N\",\"\",IF(LEN('Enrollment Form'!$AD918=0),\"\",IF(LEN('Enrollment Form'!$AD918)<>5,\"N\",\"Y\")))","v":""},{"$f":"IF($B911=\"N\",\"\",IF(LEN('Enrollment Form'!$BS918=0),\"\",IF(LEN('Enrollment Form'!$BS918)<>5,\"N\",\"Y\")))","v":""},{"$f":"IF($B911=\"N\",\"\",IF(LEN('Enrollment Form'!$AE918)=0,\"\",IF(LEN('Enrollment Form'!$AE918)<>10,\"N\",\"Y\")))","v":""},{"$f":"IF($B911=\"N\",\"\",IF(LEN('Enrollment Form'!$AF918)=0,\"\",IF(LEN('Enrollment Form'!$AF918)<>10,\"N\",\"Y\")))","v":""},{"$f":"IF('Enrollment Form'!$O918<>\"Graded\",\"-\",IF(AND('Enrollment Form'!$O918=\"Graded\",'Enrollment Form'!$AR918<>\"\"),\"Y\",\"N\"))","v":"-"},{"$f":"IF($B911=\"N\",\"\",IF(OR('Enrollment Form'!$B918<>\"Subscriber\",'Enrollment Form'!$C918=\"ROC\"),\"-\",IF(AND('Enrollment Form'!$B918=\"Subscriber\",'Enrollment Form'!$C918=\"Enroll\",'Enrollment Form'!$AJ918<>\"\"),\"Y\",\"N\")))","v":""},{"$f":"IF($B911=\"N\",\"\",IF(OR('Enrollment Form'!$B918<>\"Subscriber\",'Enrollment Form'!$C918=\"ROC\"),\"-\",IF(AND('Enrollment Form'!$B918=\"Subscriber\",'Enrollment Form'!$C918=\"Enroll\",'Enrollment Form'!$AK918<>\"\"),\"Y\",\"N\")))","v":""},{"$f":"IF($B911=\"N\",\"\",IF(OR('Enrollment Form'!$B918<>\"Subscriber\",'Enrollment Form'!$C918=\"ROC\"),\"-\",IF(AND('Enrollment Form'!$B918=\"Subscriber\",'Enrollment Form'!$C918=\"Enroll\",'Enrollment Form'!$AL918<>\"\"),\"Y\",\"N\")))","v":""},{"$f":"IF($B911=\"N\",\"\",IF(OR('Enrollment Form'!$B918<>\"Subscriber\",'Enrollment Form'!$C918=\"ROC\"),\"-\",IF(AND('Enrollment Form'!$B918=\"Subscriber\",'Enrollment Form'!$C918=\"Enroll\",'Enrollment Form'!$AP918<>\"\"),\"Y\",\"N\")))","v":""},{"$f":"IF($B911=\"N\",\"\",IF(OR('Enrollment Form'!$B918<>\"Subscriber\",'Enrollment Form'!$C918=\"ROC\"),\"-\",IF(AND('Enrollment Form'!$B918=\"Subscriber\",'Enrollment Form'!$C918=\"Enroll\",'Enrollment Form'!$AQ918<>\"\"),\"Y\",\"N\")))","v":""},{"$f":"IF($B911=\"N\",\"\",IF(OR('Enrollment Form'!$B918<>\"Subscriber\",'Enrollment Form'!$C918=\"ROC\"),\"-\",IF(AND('Enrollment Form'!$B918=\"Subscriber\",'Enrollment Form'!$C918=\"Enroll\",'Enrollment Form'!$AS918<>\"\"),\"Y\",\"N\")))","v":""},{"$f":"IF($B911=\"N\",\"\",IF($Q911=\"-\",\"-\",IF(AND($Q911=\"Y\",'Enrollment Form'!$AS918=\"No\"),\"-\",IF(AND($Q911=\"Y\",'Enrollment Form'!$AS918=\"Yes\",'Enrollment Form'!$AT918<>\"\"),\"Y\",\"N\"))))","v":""},{"$f":"IF($B911=\"N\",\"\",IF(OR('Enrollment Form'!$B918<>\"Subscriber\",'Enrollment Form'!$C918=\"ROC\"),\"-\",IF(AND('Enrollment Form'!$B918=\"Subscriber\",'Enrollment Form'!$C918=\"Enroll\",'Enrollment Form'!$CV918<>\"\"),\"Y\",\"N\")))","v":""},{"$f":"IF($B911=\"N\",\"\",IF($S911=\"-\",\"-\",IF(AND($S911=\"Y\",'Enrollment Form'!$CV918=\"No\"),\"-\",IF(AND($S911=\"Y\",'Enrollment Form'!$CV918=\"Yes\",'Enrollment Form'!$CW918<>\"\"),\"Y\",\"N\"))))","v":""},{"$f":"IF(OR('Enrollment Form'!$AY918=\"Yes\",'Enrollment Form'!$AY918=\"\"),\"-\",IF(OR(AND('Enrollment Form'!$AY918=\"No\",ISERROR(FIND(\"HMO\",VLOOKUP('Enrollment Form'!G918,'Enrollment Form'!H$11:J$1000,3,FALSE),1))=FALSE,COUNTA('Enrollment Form'!$AZ918:$BC918)=4),AND('Enrollment Form'!$AY918=\"No\",ISERROR(FIND(\"HMO\",VLOOKUP('Enrollment Form'!G918,'Enrollment Form'!H$11:J$1000,3,FALSE),1))=FALSE,COUNTA('Enrollment Form'!$BT918:$BW918)=4)),\"Y\",\"N\"))","v":"-"},{"$f":"IF($B911=\"N\",\"\",IF('Enrollment Form'!$B918=\"Subscriber\",\"-\",IF(COUNTA('Enrollment Form'!$BL918,'Enrollment Form'!$BN918)=2,\"Y\",\"N\")))","v":""},{"$f":"IF($B911=\"N\",\"\",IF(OR('Enrollment Form'!$AX918=\"\",'Enrollment Form'!$AX918=\"No\"),\"-\",IF(AND('Enrollment Form'!$AX918=\"Yes\",COUNTA('Enrollment Form'!$CR918)=1),\"Y\",\"N\")))","v":""},{"$f":"IF(OR('Enrollment Form'!$CR918=\"\",'Enrollment Form'!$CR918=\"No\"),\"-\",IF(COUNTA('Enrollment Form'!$CT918:$CU918)=2,\"Y\",\"N\"))","v":"-"},{"$f":"IF($B911=\"N\",\"\",IF(COUNTIF('Enrollment Form'!$DG918:$DP918,\"Other\")=COUNTA('Enrollment Form'!$DK918,'Enrollment Form'!$DH918,'Enrollment Form'!$DN918,'Enrollment Form'!$DQ918),\"Y\",\"N\"))","v":""},{"$f":"IF($B911=\"N\",\"\",IF(OR('Enrollment Form'!B918<>\"Subscriber\",'Enrollment Form'!C918=\"ROC\",COUNTIF('Enrollment Form'!AV918:AW918,\"Yes\")>=1),\"-\",IF(AND('Enrollment Form'!C918=\"Enroll\",COUNTIF('Enrollment Form'!AV918:AW918,\"No\")=2,'Enrollment Form'!AX918=\"\"),\"N\",\"Y\")))","v":""},{"$f":"IF(OR(B911=\"N\",'Enrollment Form'!B918<>\"Subscriber\",'Enrollment Form'!C918=\"ROC\",'Enrollment Form'!O918<>\"Multiple of Salary\"),\"-\",IF(COUNTA('Enrollment Form'!T918:U918)<2,\"N\",\"Y\"))","v":"-"},{"$f":"IF(B911=\"N\",\"\",IF(OR('Enrollment Form'!C918=\"ROC\",'Enrollment Form'!B918<>\"Subscriber\",'Enrollment Form'!O918=\"Waive\",'Enrollment Form'!O918=\"\"),\"-\",IF('Enrollment Form'!P918=\"\",\"N\",\"Y\")))","v":""},{"$f":"IF($B911=\"N\",\"\",IF(AND('Enrollment Form'!$C918=\"ROC\",'Enrollment Form'!$DR918<>\"\"),\"Y\",IF(AND('Enrollment Form'!$C918=\"ROC\",'Enrollment Form'!$DR918=\"\"),\"N\",IF(AND('Enrollment Form'!$C918=\"Enroll\",'Enrollment Form'!$B918=\"Subscriber\",'Enrollment Form'!$CX918=\"No\",'Enrollment Form'!$DR918=\"\"),\"N\",IF(AND('Enrollment Form'!$C918=\"Enroll\",'Enrollment Form'!$B918=\"Subscriber\",'Enrollment Form'!$CX918=\"Yes\"),\"-\",\"Y\")))))","v":""},{"$f":"IF($B911=\"N\",\"\",IF(AND('Enrollment Form'!$C918=\"ROC\",'Enrollment Form'!$DS918<>\"\"),\"Y\",IF(AND('Enrollment Form'!$C918=\"ROC\",'Enrollment Form'!$DS918=\"\"),\"N\",IF(AND('Enrollment Form'!$C918=\"Enroll\",'Enrollment Form'!$B918=\"Subscriber\",'Enrollment Form'!$CX918=\"No\",'Enrollment Form'!$DS918=\"\"),\"N\",IF(AND('Enrollment Form'!$C918=\"Enroll\",'Enrollment Form'!$B918=\"Subscriber\",'Enrollment Form'!$CX918=\"Yes\"),\"-\",\"Y\")))))","v":""},{"$f":"IF('Enrollment Form'!AH918=\"\",\"\",IF(ISERROR(SEARCH(\".\",'Enrollment Form'!AH918,SEARCH(\"@\",'Enrollment Form'!AH918))),\"N\",\"Y\"))","v":""},{"$f":"IF(OR($B911=\"N\",'Enrollment Form'!$G918=\"\"),\"\",IF('Enrollment Form'!$B918<>\"Subscriber\",\"-\",IF(COUNTIF('Enrollment Form'!$AV918:$AW918,\"Yes\")=2,\"N\",\"Y\")))","v":""},{"$f":"IF(OR('Enrollment Form'!$CJ918=\"\",'Enrollment Form'!$CJ918=\"No\"),\"-\",IF(AND('Enrollment Form'!$CJ918=\"Yes\",'Enrollment Form'!$CK918=\"\"),\"N\",\"Y\"))","v":"-"},{"$f":"IF(OR('Enrollment Form'!$CL918=\"\",'Enrollment Form'!$CL918=\"No\"),\"-\",IF(AND('Enrollment Form'!$CL918=\"Yes\",'Enrollment Form'!$CM918=\"\"),\"N\",\"Y\"))","v":"-"},{"$f":"IF(OR('Enrollment Form'!$CN918=\"\",'Enrollment Form'!$CN918=\"No\"),\"-\",IF(AND('Enrollment Form'!$CN918=\"Yes\",'Enrollment Form'!$CO918=\"\"),\"N\",\"Y\"))","v":"-"},{"$f":"IF(OR('Enrollment Form'!$CN918=\"\",'Enrollment Form'!$CN918=\"No\"),\"-\",IF(AND('Enrollment Form'!$CN918=\"Yes\",'Enrollment Form'!$CP918=\"\"),\"N\",\"Y\"))","v":"-"},{"$f":"IF('Enrollment Form'!B918<>\"Subscriber\",\"-\",IF(AND('Enrollment Form'!B918=\"Subscriber\",'Enrollment Form'!C918=\"Enroll\",'Enrollment Form'!AA918=\"\"),\"N\",\"Y\"))","v":"-"},{"$f":"IF(OR('Enrollment Form'!B918=\"Subscriber\",'Enrollment Form'!B918=\"\"),\"-\",IF('Enrollment Form'!BP918=\"\",\"N\",\"Y\"))","v":"-"},{"$f":"IF('Enrollment Form'!B918<>\"Subscriber\",\"-\",IF(AND('Enrollment Form'!B918=\"Subscriber\",'Enrollment Form'!G918=\"\"),\"N\",\"Y\"))","v":"-"},{"$f":"IF('Enrollment Form'!A918=\"\",\"\",IF('Enrollment Form'!B918=\"Subscriber\",\"-\",IF(AND('Enrollment Form'!B918<>\"Subscriber\",'Enrollment Form'!G918='Enrollment Form'!H918),\"N\",\"Y\")))","v":""},0]
[919,{"$f":"IF('Enrollment Form'!$A919<>\"\",\"Y\",\"N\")","v":"N"},{"$f":"IF(AND('Enrollment Form'!$B919=\"\",'Enrollment Form'!$C919<>\"\"),\"N\",IF($B912=\"N\",\"\",\"Y\"))","v":""},{"$f":"IF(OR($B912=\"N\",'Enrollment Form'!G919=\"\"),\"\",IF('Enrollment Form'!$B919<>\"Subscriber\",\"\",IF('Enrollment Form'!$G919='Enrollment Form'!$H919,\"Y\",\"N\")))","v":""},{"$f":"IF($B912=\"N\",\"\",IF(AND(COUNTIFS('Enrollment Form'!$H$11:$H$1000,'Enrollment Form'!$H919,'Enrollment Form'!$B$11:$B$1000,'Enrollment Form'!$B919)>1,'Enrollment Form'!$H919<>\"\"),\"N\",\"Y\"))","v":""},{"$f":"IF($B912=\"N\",\"\",IF(LEN('Enrollment Form'!$Y919)=0,\"\",IF(LEN('Enrollment Form'!$Y919)<>5,\"N\",\"Y\")))","v":""},{"$f":"IF($B912=\"N\",\"\",IF(LEN('Enrollment Form'!$AD919=0),\"\",IF(LEN('Enrollment Form'!$AD919)<>5,\"N\",\"Y\")))","v":""},{"$f":"IF($B912=\"N\",\"\",IF(LEN('Enrollment Form'!$BS919=0),\"\",IF(LEN('Enrollment Form'!$BS919)<>5,\"N\",\"Y\")))","v":""},{"$f":"IF($B912=\"N\",\"\",IF(LEN('Enrollment Form'!$AE919)=0,\"\",IF(LEN('Enrollment Form'!$AE919)<>10,\"N\",\"Y\")))","v":""},{"$f":"IF($B912=\"N\",\"\",IF(LEN('Enrollment Form'!$AF919)=0,\"\",IF(LEN('Enrollment Form'!$AF919)<>10,\"N\",\"Y\")))","v":""},{"$f":"IF('Enrollment Form'!$O919<>\"Graded\",\"-\",IF(AND('Enrollment Form'!$O919=\"Graded\",'Enrollment Form'!$AR919<>\"\"),\"Y\",\"N\"))","v":"-"},{"$f":"IF($B912=\"N\",\"\",IF(OR('Enrollment Form'!$B919<>\"Subscriber\",'Enrollment Form'!$C919=\"ROC\"),\"-\",IF(AND('Enrollment Form'!$B919=\"Subscriber\",'Enrollment Form'!$C919=\"Enroll\",'Enrollment Form'!$AJ919<>\"\"),\"Y\",\"N\")))","v":""},{"$f":"IF($B912=\"N\",\"\",IF(OR('Enrollment Form'!$B919<>\"Subscriber\",'Enrollment Form'!$C919=\"ROC\"),\"-\",IF(AND('Enrollment Form'!$B919=\"Subscriber\",'Enrollment Form'!$C919=\"Enroll\",'Enrollment Form'!$AK919<>\"\"),\"Y\",\"N\")))","v":""},{"$f":"IF($B912=\"N\",\"\",IF(OR('Enrollment Form'!$B919<>\"Subscriber\",'Enrollment Form'!$C919=\"ROC\"),\"-\",IF(AND('Enrollment Form'!$B919=\"Subscriber\",'Enrollment Form'!$C919=\"Enroll\",'Enrollment Form'!$AL919<>\"\"),\"Y\",\"N\")))","v":""},{"$f":"IF($B912=\"N\",\"\",IF(OR('Enrollment Form'!$B919<>\"Subscriber\",'Enrollment Form'!$C919=\"ROC\"),\"-\",IF(AND('Enrollment Form'!$B919=\"Subscriber\",'Enrollment Form'!$C919=\"Enroll\",'Enrollment Form'!$AP919<>\"\"),\"Y\",\"N\")))","v":""},{"$f":"IF($B912=\"N\",\"\",IF(OR('Enrollment Form'!$B919<>\"Subscriber\",'Enrollment Form'!$C919=\"ROC\"),\"-\",IF(AND('Enrollment Form'!$B919=\"Subscriber\",'Enrollment Form'!$C919=\"Enroll\",'Enrollment Form'!$AQ919<>\"\"),\"Y\",\"N\")))","v":""},{"$f":"IF($B912=\"N\",\"\",IF(OR('Enrollment Form'!$B919<>\"Subscriber\",'Enrollment Form'!$C919=\"ROC\"),\"-\",IF(AND('Enrollment Form'!$B919=\"Subscriber\",'Enrollment Form'!$C919=\"Enroll\",'Enrollment Form'!$AS919<>\"\"),\"Y\",\"N\")))","v":""},{"$f":"IF($B912=\"N\",\"\",IF($Q912=\"-\",\"-\",IF(AND($Q912=\"Y\",'Enrollment Form'!$AS919=\"No\"),\"-\",IF(AND($Q912=\"Y\",'Enrollment Form'!$AS919=\"Yes\",'Enrollment Form'!$AT919<>\"\"),\"Y\",\"N\"))))","v":""},{"$f":"IF($B912=\"N\",\"\",IF(OR('Enrollment Form'!$B919<>\"Subscriber\",'Enrollment Form'!$C919=\"ROC\"),\"-\",IF(AND('Enrollment Form'!$B919=\"Subscriber\",'Enrollment Form'!$C919=\"Enroll\",'Enrollment Form'!$CV919<>\"\"),\"Y\",\"N\")))","v":""},{"$f":"IF($B912=\"N\",\"\",IF($S912=\"-\",\"-\",IF(AND($S912=\"Y\",'Enrollment Form'!$CV919=\"No\"),\"-\",IF(AND($S912=\"Y\",'Enrollment Form'!$CV919=\"Yes\",'Enrollment Form'!$CW919<>\"\"),\"Y\",\"N\"))))","v":""},{"$f":"IF(OR('Enrollment Form'!$AY919=\"Yes\",'Enrollment Form'!$AY919=\"\"),\"-\",IF(OR(AND('Enrollment Form'!$AY919=\"No\",ISERROR(FIND(\"HMO\",VLOOKUP('Enrollment Form'!G919,'Enrollment Form'!H$11:J$1000,3,FALSE),1))=FALSE,COUNTA('Enrollment Form'!$AZ919:$BC919)=4),AND('Enrollment Form'!$AY919=\"No\",ISERROR(FIND(\"HMO\",VLOOKUP('Enrollment Form'!G919,'Enrollment Form'!H$11:J$1000,3,FALSE),1))=FALSE,COUNTA('Enrollment Form'!$BT919:$BW919)=4)),\"Y\",\"N\"))","v":"-"},{"$f":"IF($B912=\"N\",\"\",IF('Enrollment Form'!$B919=\"Subscriber\",\"-\",IF(COUNTA('Enrollment Form'!$BL919,'Enrollment Form'!$BN919)=2,\"Y\",\"N\")))","v":""},{"$f":"IF($B912=\"N\",\"\",IF(OR('Enrollment Form'!$AX919=\"\",'Enrollment Form'!$AX919=\"No\"),\"-\",IF(AND('Enrollment Form'!$AX919=\"Yes\",COUNTA('Enrollment Form'!$CR919)=1),\"Y\",\"N\")))","v":""},{"$f":"IF(OR('Enrollment Form'!$CR919=\"\",'Enrollment Form'!$CR919=\"No\"),\"-\",IF(COUNTA('Enrollment Form'!$CT919:$CU919)=2,\"Y\",\"N\"))","v":"-"},{"$f":"IF($B912=\"N\",\"\",IF(COUNTIF('Enrollment Form'!$DG919:$DP919,\"Other\")=COUNTA('Enrollment Form'!$DK919,'Enrollment Form'!$DH919,'Enrollment Form'!$DN919,'Enrollment Form'!$DQ919),\"Y\",\"N\"))","v":""},{"$f":"IF($B912=\"N\",\"\",IF(OR('Enrollment Form'!B919<>\"Subscriber\",'Enrollment Form'!C919=\"ROC\",COUNTIF('Enrollment Form'!AV919:AW919,\"Yes\")>=1),\"-\",IF(AND('Enrollment Form'!C919=\"Enroll\",COUNTIF('Enrollment Form'!AV919:AW919,\"No\")=2,'Enrollment Form'!AX919=\"\"),\"N\",\"Y\")))","v":""},{"$f":"IF(OR(B912=\"N\",'Enrollment Form'!B919<>\"Subscriber\",'Enrollment Form'!C919=\"ROC\",'Enrollment Form'!O919<>\"Multiple of Salary\"),\"-\",IF(COUNTA('Enrollment Form'!T919:U919)<2,\"N\",\"Y\"))","v":"-"},{"$f":"IF(B912=\"N\",\"\",IF(OR('Enrollment Form'!C919=\"ROC\",'Enrollment Form'!B919<>\"Subscriber\",'Enrollment Form'!O919=\"Waive\",'Enrollment Form'!O919=\"\"),\"-\",IF('Enrollment Form'!P919=\"\",\"N\",\"Y\")))","v":""},{"$f":"IF($B912=\"N\",\"\",IF(AND('Enrollment Form'!$C919=\"ROC\",'Enrollment Form'!$DR919<>\"\"),\"Y\",IF(AND('Enrollment Form'!$C919=\"ROC\",'Enrollment Form'!$DR919=\"\"),\"N\",IF(AND('Enrollment Form'!$C919=\"Enroll\",'Enrollment Form'!$B919=\"Subscriber\",'Enrollment Form'!$CX919=\"No\",'Enrollment Form'!$DR919=\"\"),\"N\",IF(AND('Enrollment Form'!$C919=\"Enroll\",'Enrollment Form'!$B919=\"Subscriber\",'Enrollment Form'!$CX919=\"Yes\"),\"-\",\"Y\")))))","v":""},{"$f":"IF($B912=\"N\",\"\",IF(AND('Enrollment Form'!$C919=\"ROC\",'Enrollment Form'!$DS919<>\"\"),\"Y\",IF(AND('Enrollment Form'!$C919=\"ROC\",'Enrollment Form'!$DS919=\"\"),\"N\",IF(AND('Enrollment Form'!$C919=\"Enroll\",'Enrollment Form'!$B919=\"Subscriber\",'Enrollment Form'!$CX919=\"No\",'Enrollment Form'!$DS919=\"\"),\"N\",IF(AND('Enrollment Form'!$C919=\"Enroll\",'Enrollment Form'!$B919=\"Subscriber\",'Enrollment Form'!$CX919=\"Yes\"),\"-\",\"Y\")))))","v":""},{"$f":"IF('Enrollment Form'!AH919=\"\",\"\",IF(ISERROR(SEARCH(\".\",'Enrollment Form'!AH919,SEARCH(\"@\",'Enrollment Form'!AH919))),\"N\",\"Y\"))","v":""},{"$f":"IF(OR($B912=\"N\",'Enrollment Form'!$G919=\"\"),\"\",IF('Enrollment Form'!$B919<>\"Subscriber\",\"-\",IF(COUNTIF('Enrollment Form'!$AV919:$AW919,\"Yes\")=2,\"N\",\"Y\")))","v":""},{"$f":"IF(OR('Enrollment Form'!$CJ919=\"\",'Enrollment Form'!$CJ919=\"No\"),\"-\",IF(AND('Enrollment Form'!$CJ919=\"Yes\",'Enrollment Form'!$CK919=\"\"),\"N\",\"Y\"))","v":"-"},{"$f":"IF(OR('Enrollment Form'!$CL919=\"\",'Enrollment Form'!$CL919=\"No\"),\"-\",IF(AND('Enrollment Form'!$CL919=\"Yes\",'Enrollment Form'!$CM919=\"\"),\"N\",\"Y\"))","v":"-"},{"$f":"IF(OR('Enrollment Form'!$CN919=\"\",'Enrollment Form'!$CN919=\"No\"),\"-\",IF(AND('Enrollment Form'!$CN919=\"Yes\",'Enrollment Form'!$CO919=\"\"),\"N\",\"Y\"))","v":"-"},{"$f":"IF(OR('Enrollment Form'!$CN919=\"\",'Enrollment Form'!$CN919=\"No\"),\"-\",IF(AND('Enrollment Form'!$CN919=\"Yes\",'Enrollment Form'!$CP919=\"\"),\"N\",\"Y\"))","v":"-"},{"$f":"IF('Enrollment Form'!B919<>\"Subscriber\",\"-\",IF(AND('Enrollment Form'!B919=\"Subscriber\",'Enrollment Form'!C919=\"Enroll\",'Enrollment Form'!AA919=\"\"),\"N\",\"Y\"))","v":"-"},{"$f":"IF(OR('Enrollment Form'!B919=\"Subscriber\",'Enrollment Form'!B919=\"\"),\"-\",IF('Enrollment Form'!BP919=\"\",\"N\",\"Y\"))","v":"-"},{"$f":"IF('Enrollment Form'!B919<>\"Subscriber\",\"-\",IF(AND('Enrollment Form'!B919=\"Subscriber\",'Enrollment Form'!G919=\"\"),\"N\",\"Y\"))","v":"-"},{"$f":"IF('Enrollment Form'!A919=\"\",\"\",IF('Enrollment Form'!B919=\"Subscriber\",\"-\",IF(AND('Enrollment Form'!B919<>\"Subscriber\",'Enrollment Form'!G919='Enrollment Form'!H919),\"N\",\"Y\")))","v":""},0]
[920,{"$f":"IF('Enrollment Form'!$A920<>\"\",\"Y\",\"N\")","v":"N"},{"$f":"IF(AND('Enrollment Form'!$B920=\"\",'Enrollment Form'!$C920<>\"\"),\"N\",IF($B913=\"N\",\"\",\"Y\"))","v":""},{"$f":"IF(OR($B913=\"N\",'Enrollment Form'!G920=\"\"),\"\",IF('Enrollment Form'!$B920<>\"Subscriber\",\"\",IF('Enrollment Form'!$G920='Enrollment Form'!$H920,\"Y\",\"N\")))","v":""},{"$f":"IF($B913=\"N\",\"\",IF(AND(COUNTIFS('Enrollment Form'!$H$11:$H$1000,'Enrollment Form'!$H920,'Enrollment Form'!$B$11:$B$1000,'Enrollment Form'!$B920)>1,'Enrollment Form'!$H920<>\"\"),\"N\",\"Y\"))","v":""},{"$f":"IF($B913=\"N\",\"\",IF(LEN('Enrollment Form'!$Y920)=0,\"\",IF(LEN('Enrollment Form'!$Y920)<>5,\"N\",\"Y\")))","v":""},{"$f":"IF($B913=\"N\",\"\",IF(LEN('Enrollment Form'!$AD920=0),\"\",IF(LEN('Enrollment Form'!$AD920)<>5,\"N\",\"Y\")))","v":""},{"$f":"IF($B913=\"N\",\"\",IF(LEN('Enrollment Form'!$BS920=0),\"\",IF(LEN('Enrollment Form'!$BS920)<>5,\"N\",\"Y\")))","v":""},{"$f":"IF($B913=\"N\",\"\",IF(LEN('Enrollment Form'!$AE920)=0,\"\",IF(LEN('Enrollment Form'!$AE920)<>10,\"N\",\"Y\")))","v":""},{"$f":"IF($B913=\"N\",\"\",IF(LEN('Enrollment Form'!$AF920)=0,\"\",IF(LEN('Enrollment Form'!$AF920)<>10,\"N\",\"Y\")))","v":""},{"$f":"IF('Enrollment Form'!$O920<>\"Graded\",\"-\",IF(AND('Enrollment Form'!$O920=\"Graded\",'Enrollment Form'!$AR920<>\"\"),\"Y\",\"N\"))","v":"-"},{"$f":"IF($B913=\"N\",\"\",IF(OR('Enrollment Form'!$B920<>\"Subscriber\",'Enrollment Form'!$C920=\"ROC\"),\"-\",IF(AND('Enrollment Form'!$B920=\"Subscriber\",'Enrollment Form'!$C920=\"Enroll\",'Enrollment Form'!$AJ920<>\"\"),\"Y\",\"N\")))","v":""},{"$f":"IF($B913=\"N\",\"\",IF(OR('Enrollment Form'!$B920<>\"Subscriber\",'Enrollment Form'!$C920=\"ROC\"),\"-\",IF(AND('Enrollment Form'!$B920=\"Subscriber\",'Enrollment Form'!$C920=\"Enroll\",'Enrollment Form'!$AK920<>\"\"),\"Y\",\"N\")))","v":""},{"$f":"IF($B913=\"N\",\"\",IF(OR('Enrollment Form'!$B920<>\"Subscriber\",'Enrollment Form'!$C920=\"ROC\"),\"-\",IF(AND('Enrollment Form'!$B920=\"Subscriber\",'Enrollment Form'!$C920=\"Enroll\",'Enrollment Form'!$AL920<>\"\"),\"Y\",\"N\")))","v":""},{"$f":"IF($B913=\"N\",\"\",IF(OR('Enrollment Form'!$B920<>\"Subscriber\",'Enrollment Form'!$C920=\"ROC\"),\"-\",IF(AND('Enrollment Form'!$B920=\"Subscriber\",'Enrollment Form'!$C920=\"Enroll\",'Enrollment Form'!$AP920<>\"\"),\"Y\",\"N\")))","v":""},{"$f":"IF($B913=\"N\",\"\",IF(OR('Enrollment Form'!$B920<>\"Subscriber\",'Enrollment Form'!$C920=\"ROC\"),\"-\",IF(AND('Enrollment Form'!$B920=\"Subscriber\",'Enrollment Form'!$C920=\"Enroll\",'Enrollment Form'!$AQ920<>\"\"),\"Y\",\"N\")))","v":""},{"$f":"IF($B913=\"N\",\"\",IF(OR('Enrollment Form'!$B920<>\"Subscriber\",'Enrollment Form'!$C920=\"ROC\"),\"-\",IF(AND('Enrollment Form'!$B920=\"Subscriber\",'Enrollment Form'!$C920=\"Enroll\",'Enrollment Form'!$AS920<>\"\"),\"Y\",\"N\")))","v":""},{"$f":"IF($B913=\"N\",\"\",IF($Q913=\"-\",\"-\",IF(AND($Q913=\"Y\",'Enrollment Form'!$AS920=\"No\"),\"-\",IF(AND($Q913=\"Y\",'Enrollment Form'!$AS920=\"Yes\",'Enrollment Form'!$AT920<>\"\"),\"Y\",\"N\"))))","v":""},{"$f":"IF($B913=\"N\",\"\",IF(OR('Enrollment Form'!$B920<>\"Subscriber\",'Enrollment Form'!$C920=\"ROC\"),\"-\",IF(AND('Enrollment Form'!$B920=\"Subscriber\",'Enrollment Form'!$C920=\"Enroll\",'Enrollment Form'!$CV920<>\"\"),\"Y\",\"N\")))","v":""},{"$f":"IF($B913=\"N\",\"\",IF($S913=\"-\",\"-\",IF(AND($S913=\"Y\",'Enrollment Form'!$CV920=\"No\"),\"-\",IF(AND($S913=\"Y\",'Enrollment Form'!$CV920=\"Yes\",'Enrollment Form'!$CW920<>\"\"),\"Y\",\"N\"))))","v":""},{"$f":"IF(OR('Enrollment Form'!$AY920=\"Yes\",'Enrollment Form'!$AY920=\"\"),\"-\",IF(OR(AND('Enrollment Form'!$AY920=\"No\",ISERROR(FIND(\"HMO\",VLOOKUP('Enrollment Form'!G920,'Enrollment Form'!H$11:J$1000,3,FALSE),1))=FALSE,COUNTA('Enrollment Form'!$AZ920:$BC920)=4),AND('Enrollment Form'!$AY920=\"No\",ISERROR(FIND(\"HMO\",VLOOKUP('Enrollment Form'!G920,'Enrollment Form'!H$11:J$1000,3,FALSE),1))=FALSE,COUNTA('Enrollment Form'!$BT920:$BW920)=4)),\"Y\",\"N\"))","v":"-"},{"$f":"IF($B913=\"N\",\"\",IF('Enrollment Form'!$B920=\"Subscriber\",\"-\",IF(COUNTA('Enrollment Form'!$BL920,'Enrollment Form'!$BN920)=2,\"Y\",\"N\")))","v":""},{"$f":"IF($B913=\"N\",\"\",IF(OR('Enrollment Form'!$AX920=\"\",'Enrollment Form'!$AX920=\"No\"),\"-\",IF(AND('Enrollment Form'!$AX920=\"Yes\",COUNTA('Enrollment Form'!$CR920)=1),\"Y\",\"N\")))","v":""},{"$f":"IF(OR('Enrollment Form'!$CR920=\"\",'Enrollment Form'!$CR920=\"No\"),\"-\",IF(COUNTA('Enrollment Form'!$CT920:$CU920)=2,\"Y\",\"N\"))","v":"-"},{"$f":"IF($B913=\"N\",\"\",IF(COUNTIF('Enrollment Form'!$DG920:$DP920,\"Other\")=COUNTA('Enrollment Form'!$DK920,'Enrollment Form'!$DH920,'Enrollment Form'!$DN920,'Enrollment Form'!$DQ920),\"Y\",\"N\"))","v":""},{"$f":"IF($B913=\"N\",\"\",IF(OR('Enrollment Form'!B920<>\"Subscriber\",'Enrollment Form'!C920=\"ROC\",COUNTIF('Enrollment Form'!AV920:AW920,\"Yes\")>=1),\"-\",IF(AND('Enrollment Form'!C920=\"Enroll\",COUNTIF('Enrollment Form'!AV920:AW920,\"No\")=2,'Enrollment Form'!AX920=\"\"),\"N\",\"Y\")))","v":""},{"$f":"IF(OR(B913=\"N\",'Enrollment Form'!B920<>\"Subscriber\",'Enrollment Form'!C920=\"ROC\",'Enrollment Form'!O920<>\"Multiple of Salary\"),\"-\",IF(COUNTA('Enrollment Form'!T920:U920)<2,\"N\",\"Y\"))","v":"-"},{"$f":"IF(B913=\"N\",\"\",IF(OR('Enrollment Form'!C920=\"ROC\",'Enrollment Form'!B920<>\"Subscriber\",'Enrollment Form'!O920=\"Waive\",'Enrollment Form'!O920=\"\"),\"-\",IF('Enrollment Form'!P920=\"\",\"N\",\"Y\")))","v":""},{"$f":"IF($B913=\"N\",\"\",IF(AND('Enrollment Form'!$C920=\"ROC\",'Enrollment Form'!$DR920<>\"\"),\"Y\",IF(AND('Enrollment Form'!$C920=\"ROC\",'Enrollment Form'!$DR920=\"\"),\"N\",IF(AND('Enrollment Form'!$C920=\"Enroll\",'Enrollment Form'!$B920=\"Subscriber\",'Enrollment Form'!$CX920=\"No\",'Enrollment Form'!$DR920=\"\"),\"N\",IF(AND('Enrollment Form'!$C920=\"Enroll\",'Enrollment Form'!$B920=\"Subscriber\",'Enrollment Form'!$CX920=\"Yes\"),\"-\",\"Y\")))))","v":""},{"$f":"IF($B913=\"N\",\"\",IF(AND('Enrollment Form'!$C920=\"ROC\",'Enrollment Form'!$DS920<>\"\"),\"Y\",IF(AND('Enrollment Form'!$C920=\"ROC\",'Enrollment Form'!$DS920=\"\"),\"N\",IF(AND('Enrollment Form'!$C920=\"Enroll\",'Enrollment Form'!$B920=\"Subscriber\",'Enrollment Form'!$CX920=\"No\",'Enrollment Form'!$DS920=\"\"),\"N\",IF(AND('Enrollment Form'!$C920=\"Enroll\",'Enrollment Form'!$B920=\"Subscriber\",'Enrollment Form'!$CX920=\"Yes\"),\"-\",\"Y\")))))","v":""},{"$f":"IF('Enrollment Form'!AH920=\"\",\"\",IF(ISERROR(SEARCH(\".\",'Enrollment Form'!AH920,SEARCH(\"@\",'Enrollment Form'!AH920))),\"N\",\"Y\"))","v":""},{"$f":"IF(OR($B913=\"N\",'Enrollment Form'!$G920=\"\"),\"\",IF('Enrollment Form'!$B920<>\"Subscriber\",\"-\",IF(COUNTIF('Enrollment Form'!$AV920:$AW920,\"Yes\")=2,\"N\",\"Y\")))","v":""},{"$f":"IF(OR('Enrollment Form'!$CJ920=\"\",'Enrollment Form'!$CJ920=\"No\"),\"-\",IF(AND('Enrollment Form'!$CJ920=\"Yes\",'Enrollment Form'!$CK920=\"\"),\"N\",\"Y\"))","v":"-"},{"$f":"IF(OR('Enrollment Form'!$CL920=\"\",'Enrollment Form'!$CL920=\"No\"),\"-\",IF(AND('Enrollment Form'!$CL920=\"Yes\",'Enrollment Form'!$CM920=\"\"),\"N\",\"Y\"))","v":"-"},{"$f":"IF(OR('Enrollment Form'!$CN920=\"\",'Enrollment Form'!$CN920=\"No\"),\"-\",IF(AND('Enrollment Form'!$CN920=\"Yes\",'Enrollment Form'!$CO920=\"\"),\"N\",\"Y\"))","v":"-"},{"$f":"IF(OR('Enrollment Form'!$CN920=\"\",'Enrollment Form'!$CN920=\"No\"),\"-\",IF(AND('Enrollment Form'!$CN920=\"Yes\",'Enrollment Form'!$CP920=\"\"),\"N\",\"Y\"))","v":"-"},{"$f":"IF('Enrollment Form'!B920<>\"Subscriber\",\"-\",IF(AND('Enrollment Form'!B920=\"Subscriber\",'Enrollment Form'!C920=\"Enroll\",'Enrollment Form'!AA920=\"\"),\"N\",\"Y\"))","v":"-"},{"$f":"IF(OR('Enrollment Form'!B920=\"Subscriber\",'Enrollment Form'!B920=\"\"),\"-\",IF('Enrollment Form'!BP920=\"\",\"N\",\"Y\"))","v":"-"},{"$f":"IF('Enrollment Form'!B920<>\"Subscriber\",\"-\",IF(AND('Enrollment Form'!B920=\"Subscriber\",'Enrollment Form'!G920=\"\"),\"N\",\"Y\"))","v":"-"},{"$f":"IF('Enrollment Form'!A920=\"\",\"\",IF('Enrollment Form'!B920=\"Subscriber\",\"-\",IF(AND('Enrollment Form'!B920<>\"Subscriber\",'Enrollment Form'!G920='Enrollment Form'!H920),\"N\",\"Y\")))","v":""},0]
[921,{"$f":"IF('Enrollment Form'!$A921<>\"\",\"Y\",\"N\")","v":"N"},{"$f":"IF(AND('Enrollment Form'!$B921=\"\",'Enrollment Form'!$C921<>\"\"),\"N\",IF($B914=\"N\",\"\",\"Y\"))","v":""},{"$f":"IF(OR($B914=\"N\",'Enrollment Form'!G921=\"\"),\"\",IF('Enrollment Form'!$B921<>\"Subscriber\",\"\",IF('Enrollment Form'!$G921='Enrollment Form'!$H921,\"Y\",\"N\")))","v":""},{"$f":"IF($B914=\"N\",\"\",IF(AND(COUNTIFS('Enrollment Form'!$H$11:$H$1000,'Enrollment Form'!$H921,'Enrollment Form'!$B$11:$B$1000,'Enrollment Form'!$B921)>1,'Enrollment Form'!$H921<>\"\"),\"N\",\"Y\"))","v":""},{"$f":"IF($B914=\"N\",\"\",IF(LEN('Enrollment Form'!$Y921)=0,\"\",IF(LEN('Enrollment Form'!$Y921)<>5,\"N\",\"Y\")))","v":""},{"$f":"IF($B914=\"N\",\"\",IF(LEN('Enrollment Form'!$AD921=0),\"\",IF(LEN('Enrollment Form'!$AD921)<>5,\"N\",\"Y\")))","v":""},{"$f":"IF($B914=\"N\",\"\",IF(LEN('Enrollment Form'!$BS921=0),\"\",IF(LEN('Enrollment Form'!$BS921)<>5,\"N\",\"Y\")))","v":""},{"$f":"IF($B914=\"N\",\"\",IF(LEN('Enrollment Form'!$AE921)=0,\"\",IF(LEN('Enrollment Form'!$AE921)<>10,\"N\",\"Y\")))","v":""},{"$f":"IF($B914=\"N\",\"\",IF(LEN('Enrollment Form'!$AF921)=0,\"\",IF(LEN('Enrollment Form'!$AF921)<>10,\"N\",\"Y\")))","v":""},{"$f":"IF('Enrollment Form'!$O921<>\"Graded\",\"-\",IF(AND('Enrollment Form'!$O921=\"Graded\",'Enrollment Form'!$AR921<>\"\"),\"Y\",\"N\"))","v":"-"},{"$f":"IF($B914=\"N\",\"\",IF(OR('Enrollment Form'!$B921<>\"Subscriber\",'Enrollment Form'!$C921=\"ROC\"),\"-\",IF(AND('Enrollment Form'!$B921=\"Subscriber\",'Enrollment Form'!$C921=\"Enroll\",'Enrollment Form'!$AJ921<>\"\"),\"Y\",\"N\")))","v":""},{"$f":"IF($B914=\"N\",\"\",IF(OR('Enrollment Form'!$B921<>\"Subscriber\",'Enrollment Form'!$C921=\"ROC\"),\"-\",IF(AND('Enrollment Form'!$B921=\"Subscriber\",'Enrollment Form'!$C921=\"Enroll\",'Enrollment Form'!$AK921<>\"\"),\"Y\",\"N\")))","v":""},{"$f":"IF($B914=\"N\",\"\",IF(OR('Enrollment Form'!$B921<>\"Subscriber\",'Enrollment Form'!$C921=\"ROC\"),\"-\",IF(AND('Enrollment Form'!$B921=\"Subscriber\",'Enrollment Form'!$C921=\"Enroll\",'Enrollment Form'!$AL921<>\"\"),\"Y\",\"N\")))","v":""},{"$f":"IF($B914=\"N\",\"\",IF(OR('Enrollment Form'!$B921<>\"Subscriber\",'Enrollment Form'!$C921=\"ROC\"),\"-\",IF(AND('Enrollment Form'!$B921=\"Subscriber\",'Enrollment Form'!$C921=\"Enroll\",'Enrollment Form'!$AP921<>\"\"),\"Y\",\"N\")))","v":""},{"$f":"IF($B914=\"N\",\"\",IF(OR('Enrollment Form'!$B921<>\"Subscriber\",'Enrollment Form'!$C921=\"ROC\"),\"-\",IF(AND('Enrollment Form'!$B921=\"Subscriber\",'Enrollment Form'!$C921=\"Enroll\",'Enrollment Form'!$AQ921<>\"\"),\"Y\",\"N\")))","v":""},{"$f":"IF($B914=\"N\",\"\",IF(OR('Enrollment Form'!$B921<>\"Subscriber\",'Enrollment Form'!$C921=\"ROC\"),\"-\",IF(AND('Enrollment Form'!$B921=\"Subscriber\",'Enrollment Form'!$C921=\"Enroll\",'Enrollment Form'!$AS921<>\"\"),\"Y\",\"N\")))","v":""},{"$f":"IF($B914=\"N\",\"\",IF($Q914=\"-\",\"-\",IF(AND($Q914=\"Y\",'Enrollment Form'!$AS921=\"No\"),\"-\",IF(AND($Q914=\"Y\",'Enrollment Form'!$AS921=\"Yes\",'Enrollment Form'!$AT921<>\"\"),\"Y\",\"N\"))))","v":""},{"$f":"IF($B914=\"N\",\"\",IF(OR('Enrollment Form'!$B921<>\"Subscriber\",'Enrollment Form'!$C921=\"ROC\"),\"-\",IF(AND('Enrollment Form'!$B921=\"Subscriber\",'Enrollment Form'!$C921=\"Enroll\",'Enrollment Form'!$CV921<>\"\"),\"Y\",\"N\")))","v":""},{"$f":"IF($B914=\"N\",\"\",IF($S914=\"-\",\"-\",IF(AND($S914=\"Y\",'Enrollment Form'!$CV921=\"No\"),\"-\",IF(AND($S914=\"Y\",'Enrollment Form'!$CV921=\"Yes\",'Enrollment Form'!$CW921<>\"\"),\"Y\",\"N\"))))","v":""},{"$f":"IF(OR('Enrollment Form'!$AY921=\"Yes\",'Enrollment Form'!$AY921=\"\"),\"-\",IF(OR(AND('Enrollment Form'!$AY921=\"No\",ISERROR(FIND(\"HMO\",VLOOKUP('Enrollment Form'!G921,'Enrollment Form'!H$11:J$1000,3,FALSE),1))=FALSE,COUNTA('Enrollment Form'!$AZ921:$BC921)=4),AND('Enrollment Form'!$AY921=\"No\",ISERROR(FIND(\"HMO\",VLOOKUP('Enrollment Form'!G921,'Enrollment Form'!H$11:J$1000,3,FALSE),1))=FALSE,COUNTA('Enrollment Form'!$BT921:$BW921)=4)),\"Y\",\"N\"))","v":"-"},{"$f":"IF($B914=\"N\",\"\",IF('Enrollment Form'!$B921=\"Subscriber\",\"-\",IF(COUNTA('Enrollment Form'!$BL921,'Enrollment Form'!$BN921)=2,\"Y\",\"N\")))","v":""},{"$f":"IF($B914=\"N\",\"\",IF(OR('Enrollment Form'!$AX921=\"\",'Enrollment Form'!$AX921=\"No\"),\"-\",IF(AND('Enrollment Form'!$AX921=\"Yes\",COUNTA('Enrollment Form'!$CR921)=1),\"Y\",\"N\")))","v":""},{"$f":"IF(OR('Enrollment Form'!$CR921=\"\",'Enrollment Form'!$CR921=\"No\"),\"-\",IF(COUNTA('Enrollment Form'!$CT921:$CU921)=2,\"Y\",\"N\"))","v":"-"},{"$f":"IF($B914=\"N\",\"\",IF(COUNTIF('Enrollment Form'!$DG921:$DP921,\"Other\")=COUNTA('Enrollment Form'!$DK921,'Enrollment Form'!$DH921,'Enrollment Form'!$DN921,'Enrollment Form'!$DQ921),\"Y\",\"N\"))","v":""},{"$f":"IF($B914=\"N\",\"\",IF(OR('Enrollment Form'!B921<>\"Subscriber\",'Enrollment Form'!C921=\"ROC\",COUNTIF('Enrollment Form'!AV921:AW921,\"Yes\")>=1),\"-\",IF(AND('Enrollment Form'!C921=\"Enroll\",COUNTIF('Enrollment Form'!AV921:AW921,\"No\")=2,'Enrollment Form'!AX921=\"\"),\"N\",\"Y\")))","v":""},{"$f":"IF(OR(B914=\"N\",'Enrollment Form'!B921<>\"Subscriber\",'Enrollment Form'!C921=\"ROC\",'Enrollment Form'!O921<>\"Multiple of Salary\"),\"-\",IF(COUNTA('Enrollment Form'!T921:U921)<2,\"N\",\"Y\"))","v":"-"},{"$f":"IF(B914=\"N\",\"\",IF(OR('Enrollment Form'!C921=\"ROC\",'Enrollment Form'!B921<>\"Subscriber\",'Enrollment Form'!O921=\"Waive\",'Enrollment Form'!O921=\"\"),\"-\",IF('Enrollment Form'!P921=\"\",\"N\",\"Y\")))","v":""},{"$f":"IF($B914=\"N\",\"\",IF(AND('Enrollment Form'!$C921=\"ROC\",'Enrollment Form'!$DR921<>\"\"),\"Y\",IF(AND('Enrollment Form'!$C921=\"ROC\",'Enrollment Form'!$DR921=\"\"),\"N\",IF(AND('Enrollment Form'!$C921=\"Enroll\",'Enrollment Form'!$B921=\"Subscriber\",'Enrollment Form'!$CX921=\"No\",'Enrollment Form'!$DR921=\"\"),\"N\",IF(AND('Enrollment Form'!$C921=\"Enroll\",'Enrollment Form'!$B921=\"Subscriber\",'Enrollment Form'!$CX921=\"Yes\"),\"-\",\"Y\")))))","v":""},{"$f":"IF($B914=\"N\",\"\",IF(AND('Enrollment Form'!$C921=\"ROC\",'Enrollment Form'!$DS921<>\"\"),\"Y\",IF(AND('Enrollment Form'!$C921=\"ROC\",'Enrollment Form'!$DS921=\"\"),\"N\",IF(AND('Enrollment Form'!$C921=\"Enroll\",'Enrollment Form'!$B921=\"Subscriber\",'Enrollment Form'!$CX921=\"No\",'Enrollment Form'!$DS921=\"\"),\"N\",IF(AND('Enrollment Form'!$C921=\"Enroll\",'Enrollment Form'!$B921=\"Subscriber\",'Enrollment Form'!$CX921=\"Yes\"),\"-\",\"Y\")))))","v":""},{"$f":"IF('Enrollment Form'!AH921=\"\",\"\",IF(ISERROR(SEARCH(\".\",'Enrollment Form'!AH921,SEARCH(\"@\",'Enrollment Form'!AH921))),\"N\",\"Y\"))","v":""},{"$f":"IF(OR($B914=\"N\",'Enrollment Form'!$G921=\"\"),\"\",IF('Enrollment Form'!$B921<>\"Subscriber\",\"-\",IF(COUNTIF('Enrollment Form'!$AV921:$AW921,\"Yes\")=2,\"N\",\"Y\")))","v":""},{"$f":"IF(OR('Enrollment Form'!$CJ921=\"\",'Enrollment Form'!$CJ921=\"No\"),\"-\",IF(AND('Enrollment Form'!$CJ921=\"Yes\",'Enrollment Form'!$CK921=\"\"),\"N\",\"Y\"))","v":"-"},{"$f":"IF(OR('Enrollment Form'!$CL921=\"\",'Enrollment Form'!$CL921=\"No\"),\"-\",IF(AND('Enrollment Form'!$CL921=\"Yes\",'Enrollment Form'!$CM921=\"\"),\"N\",\"Y\"))","v":"-"},{"$f":"IF(OR('Enrollment Form'!$CN921=\"\",'Enrollment Form'!$CN921=\"No\"),\"-\",IF(AND('Enrollment Form'!$CN921=\"Yes\",'Enrollment Form'!$CO921=\"\"),\"N\",\"Y\"))","v":"-"},{"$f":"IF(OR('Enrollment Form'!$CN921=\"\",'Enrollment Form'!$CN921=\"No\"),\"-\",IF(AND('Enrollment Form'!$CN921=\"Yes\",'Enrollment Form'!$CP921=\"\"),\"N\",\"Y\"))","v":"-"},{"$f":"IF('Enrollment Form'!B921<>\"Subscriber\",\"-\",IF(AND('Enrollment Form'!B921=\"Subscriber\",'Enrollment Form'!C921=\"Enroll\",'Enrollment Form'!AA921=\"\"),\"N\",\"Y\"))","v":"-"},{"$f":"IF(OR('Enrollment Form'!B921=\"Subscriber\",'Enrollment Form'!B921=\"\"),\"-\",IF('Enrollment Form'!BP921=\"\",\"N\",\"Y\"))","v":"-"},{"$f":"IF('Enrollment Form'!B921<>\"Subscriber\",\"-\",IF(AND('Enrollment Form'!B921=\"Subscriber\",'Enrollment Form'!G921=\"\"),\"N\",\"Y\"))","v":"-"},{"$f":"IF('Enrollment Form'!A921=\"\",\"\",IF('Enrollment Form'!B921=\"Subscriber\",\"-\",IF(AND('Enrollment Form'!B921<>\"Subscriber\",'Enrollment Form'!G921='Enrollment Form'!H921),\"N\",\"Y\")))","v":""},0]
[922,{"$f":"IF('Enrollment Form'!$A922<>\"\",\"Y\",\"N\")","v":"N"},{"$f":"IF(AND('Enrollment Form'!$B922=\"\",'Enrollment Form'!$C922<>\"\"),\"N\",IF($B915=\"N\",\"\",\"Y\"))","v":""},{"$f":"IF(OR($B915=\"N\",'Enrollment Form'!G922=\"\"),\"\",IF('Enrollment Form'!$B922<>\"Subscriber\",\"\",IF('Enrollment Form'!$G922='Enrollment Form'!$H922,\"Y\",\"N\")))","v":""},{"$f":"IF($B915=\"N\",\"\",IF(AND(COUNTIFS('Enrollment Form'!$H$11:$H$1000,'Enrollment Form'!$H922,'Enrollment Form'!$B$11:$B$1000,'Enrollment Form'!$B922)>1,'Enrollment Form'!$H922<>\"\"),\"N\",\"Y\"))","v":""},{"$f":"IF($B915=\"N\",\"\",IF(LEN('Enrollment Form'!$Y922)=0,\"\",IF(LEN('Enrollment Form'!$Y922)<>5,\"N\",\"Y\")))","v":""},{"$f":"IF($B915=\"N\",\"\",IF(LEN('Enrollment Form'!$AD922=0),\"\",IF(LEN('Enrollment Form'!$AD922)<>5,\"N\",\"Y\")))","v":""},{"$f":"IF($B915=\"N\",\"\",IF(LEN('Enrollment Form'!$BS922=0),\"\",IF(LEN('Enrollment Form'!$BS922)<>5,\"N\",\"Y\")))","v":""},{"$f":"IF($B915=\"N\",\"\",IF(LEN('Enrollment Form'!$AE922)=0,\"\",IF(LEN('Enrollment Form'!$AE922)<>10,\"N\",\"Y\")))","v":""},{"$f":"IF($B915=\"N\",\"\",IF(LEN('Enrollment Form'!$AF922)=0,\"\",IF(LEN('Enrollment Form'!$AF922)<>10,\"N\",\"Y\")))","v":""},{"$f":"IF('Enrollment Form'!$O922<>\"Graded\",\"-\",IF(AND('Enrollment Form'!$O922=\"Graded\",'Enrollment Form'!$AR922<>\"\"),\"Y\",\"N\"))","v":"-"},{"$f":"IF($B915=\"N\",\"\",IF(OR('Enrollment Form'!$B922<>\"Subscriber\",'Enrollment Form'!$C922=\"ROC\"),\"-\",IF(AND('Enrollment Form'!$B922=\"Subscriber\",'Enrollment Form'!$C922=\"Enroll\",'Enrollment Form'!$AJ922<>\"\"),\"Y\",\"N\")))","v":""},{"$f":"IF($B915=\"N\",\"\",IF(OR('Enrollment Form'!$B922<>\"Subscriber\",'Enrollment Form'!$C922=\"ROC\"),\"-\",IF(AND('Enrollment Form'!$B922=\"Subscriber\",'Enrollment Form'!$C922=\"Enroll\",'Enrollment Form'!$AK922<>\"\"),\"Y\",\"N\")))","v":""},{"$f":"IF($B915=\"N\",\"\",IF(OR('Enrollment Form'!$B922<>\"Subscriber\",'Enrollment Form'!$C922=\"ROC\"),\"-\",IF(AND('Enrollment Form'!$B922=\"Subscriber\",'Enrollment Form'!$C922=\"Enroll\",'Enrollment Form'!$AL922<>\"\"),\"Y\",\"N\")))","v":""},{"$f":"IF($B915=\"N\",\"\",IF(OR('Enrollment Form'!$B922<>\"Subscriber\",'Enrollment Form'!$C922=\"ROC\"),\"-\",IF(AND('Enrollment Form'!$B922=\"Subscriber\",'Enrollment Form'!$C922=\"Enroll\",'Enrollment Form'!$AP922<>\"\"),\"Y\",\"N\")))","v":""},{"$f":"IF($B915=\"N\",\"\",IF(OR('Enrollment Form'!$B922<>\"Subscriber\",'Enrollment Form'!$C922=\"ROC\"),\"-\",IF(AND('Enrollment Form'!$B922=\"Subscriber\",'Enrollment Form'!$C922=\"Enroll\",'Enrollment Form'!$AQ922<>\"\"),\"Y\",\"N\")))","v":""},{"$f":"IF($B915=\"N\",\"\",IF(OR('Enrollment Form'!$B922<>\"Subscriber\",'Enrollment Form'!$C922=\"ROC\"),\"-\",IF(AND('Enrollment Form'!$B922=\"Subscriber\",'Enrollment Form'!$C922=\"Enroll\",'Enrollment Form'!$AS922<>\"\"),\"Y\",\"N\")))","v":""},{"$f":"IF($B915=\"N\",\"\",IF($Q915=\"-\",\"-\",IF(AND($Q915=\"Y\",'Enrollment Form'!$AS922=\"No\"),\"-\",IF(AND($Q915=\"Y\",'Enrollment Form'!$AS922=\"Yes\",'Enrollment Form'!$AT922<>\"\"),\"Y\",\"N\"))))","v":""},{"$f":"IF($B915=\"N\",\"\",IF(OR('Enrollment Form'!$B922<>\"Subscriber\",'Enrollment Form'!$C922=\"ROC\"),\"-\",IF(AND('Enrollment Form'!$B922=\"Subscriber\",'Enrollment Form'!$C922=\"Enroll\",'Enrollment Form'!$CV922<>\"\"),\"Y\",\"N\")))","v":""},{"$f":"IF($B915=\"N\",\"\",IF($S915=\"-\",\"-\",IF(AND($S915=\"Y\",'Enrollment Form'!$CV922=\"No\"),\"-\",IF(AND($S915=\"Y\",'Enrollment Form'!$CV922=\"Yes\",'Enrollment Form'!$CW922<>\"\"),\"Y\",\"N\"))))","v":""},{"$f":"IF(OR('Enrollment Form'!$AY922=\"Yes\",'Enrollment Form'!$AY922=\"\"),\"-\",IF(OR(AND('Enrollment Form'!$AY922=\"No\",ISERROR(FIND(\"HMO\",VLOOKUP('Enrollment Form'!G922,'Enrollment Form'!H$11:J$1000,3,FALSE),1))=FALSE,COUNTA('Enrollment Form'!$AZ922:$BC922)=4),AND('Enrollment Form'!$AY922=\"No\",ISERROR(FIND(\"HMO\",VLOOKUP('Enrollment Form'!G922,'Enrollment Form'!H$11:J$1000,3,FALSE),1))=FALSE,COUNTA('Enrollment Form'!$BT922:$BW922)=4)),\"Y\",\"N\"))","v":"-"},{"$f":"IF($B915=\"N\",\"\",IF('Enrollment Form'!$B922=\"Subscriber\",\"-\",IF(COUNTA('Enrollment Form'!$BL922,'Enrollment Form'!$BN922)=2,\"Y\",\"N\")))","v":""},{"$f":"IF($B915=\"N\",\"\",IF(OR('Enrollment Form'!$AX922=\"\",'Enrollment Form'!$AX922=\"No\"),\"-\",IF(AND('Enrollment Form'!$AX922=\"Yes\",COUNTA('Enrollment Form'!$CR922)=1),\"Y\",\"N\")))","v":""},{"$f":"IF(OR('Enrollment Form'!$CR922=\"\",'Enrollment Form'!$CR922=\"No\"),\"-\",IF(COUNTA('Enrollment Form'!$CT922:$CU922)=2,\"Y\",\"N\"))","v":"-"},{"$f":"IF($B915=\"N\",\"\",IF(COUNTIF('Enrollment Form'!$DG922:$DP922,\"Other\")=COUNTA('Enrollment Form'!$DK922,'Enrollment Form'!$DH922,'Enrollment Form'!$DN922,'Enrollment Form'!$DQ922),\"Y\",\"N\"))","v":""},{"$f":"IF($B915=\"N\",\"\",IF(OR('Enrollment Form'!B922<>\"Subscriber\",'Enrollment Form'!C922=\"ROC\",COUNTIF('Enrollment Form'!AV922:AW922,\"Yes\")>=1),\"-\",IF(AND('Enrollment Form'!C922=\"Enroll\",COUNTIF('Enrollment Form'!AV922:AW922,\"No\")=2,'Enrollment Form'!AX922=\"\"),\"N\",\"Y\")))","v":""},{"$f":"IF(OR(B915=\"N\",'Enrollment Form'!B922<>\"Subscriber\",'Enrollment Form'!C922=\"ROC\",'Enrollment Form'!O922<>\"Multiple of Salary\"),\"-\",IF(COUNTA('Enrollment Form'!T922:U922)<2,\"N\",\"Y\"))","v":"-"},{"$f":"IF(B915=\"N\",\"\",IF(OR('Enrollment Form'!C922=\"ROC\",'Enrollment Form'!B922<>\"Subscriber\",'Enrollment Form'!O922=\"Waive\",'Enrollment Form'!O922=\"\"),\"-\",IF('Enrollment Form'!P922=\"\",\"N\",\"Y\")))","v":""},{"$f":"IF($B915=\"N\",\"\",IF(AND('Enrollment Form'!$C922=\"ROC\",'Enrollment Form'!$DR922<>\"\"),\"Y\",IF(AND('Enrollment Form'!$C922=\"ROC\",'Enrollment Form'!$DR922=\"\"),\"N\",IF(AND('Enrollment Form'!$C922=\"Enroll\",'Enrollment Form'!$B922=\"Subscriber\",'Enrollment Form'!$CX922=\"No\",'Enrollment Form'!$DR922=\"\"),\"N\",IF(AND('Enrollment Form'!$C922=\"Enroll\",'Enrollment Form'!$B922=\"Subscriber\",'Enrollment Form'!$CX922=\"Yes\"),\"-\",\"Y\")))))","v":""},{"$f":"IF($B915=\"N\",\"\",IF(AND('Enrollment Form'!$C922=\"ROC\",'Enrollment Form'!$DS922<>\"\"),\"Y\",IF(AND('Enrollment Form'!$C922=\"ROC\",'Enrollment Form'!$DS922=\"\"),\"N\",IF(AND('Enrollment Form'!$C922=\"Enroll\",'Enrollment Form'!$B922=\"Subscriber\",'Enrollment Form'!$CX922=\"No\",'Enrollment Form'!$DS922=\"\"),\"N\",IF(AND('Enrollment Form'!$C922=\"Enroll\",'Enrollment Form'!$B922=\"Subscriber\",'Enrollment Form'!$CX922=\"Yes\"),\"-\",\"Y\")))))","v":""},{"$f":"IF('Enrollment Form'!AH922=\"\",\"\",IF(ISERROR(SEARCH(\".\",'Enrollment Form'!AH922,SEARCH(\"@\",'Enrollment Form'!AH922))),\"N\",\"Y\"))","v":""},{"$f":"IF(OR($B915=\"N\",'Enrollment Form'!$G922=\"\"),\"\",IF('Enrollment Form'!$B922<>\"Subscriber\",\"-\",IF(COUNTIF('Enrollment Form'!$AV922:$AW922,\"Yes\")=2,\"N\",\"Y\")))","v":""},{"$f":"IF(OR('Enrollment Form'!$CJ922=\"\",'Enrollment Form'!$CJ922=\"No\"),\"-\",IF(AND('Enrollment Form'!$CJ922=\"Yes\",'Enrollment Form'!$CK922=\"\"),\"N\",\"Y\"))","v":"-"},{"$f":"IF(OR('Enrollment Form'!$CL922=\"\",'Enrollment Form'!$CL922=\"No\"),\"-\",IF(AND('Enrollment Form'!$CL922=\"Yes\",'Enrollment Form'!$CM922=\"\"),\"N\",\"Y\"))","v":"-"},{"$f":"IF(OR('Enrollment Form'!$CN922=\"\",'Enrollment Form'!$CN922=\"No\"),\"-\",IF(AND('Enrollment Form'!$CN922=\"Yes\",'Enrollment Form'!$CO922=\"\"),\"N\",\"Y\"))","v":"-"},{"$f":"IF(OR('Enrollment Form'!$CN922=\"\",'Enrollment Form'!$CN922=\"No\"),\"-\",IF(AND('Enrollment Form'!$CN922=\"Yes\",'Enrollment Form'!$CP922=\"\"),\"N\",\"Y\"))","v":"-"},{"$f":"IF('Enrollment Form'!B922<>\"Subscriber\",\"-\",IF(AND('Enrollment Form'!B922=\"Subscriber\",'Enrollment Form'!C922=\"Enroll\",'Enrollment Form'!AA922=\"\"),\"N\",\"Y\"))","v":"-"},{"$f":"IF(OR('Enrollment Form'!B922=\"Subscriber\",'Enrollment Form'!B922=\"\"),\"-\",IF('Enrollment Form'!BP922=\"\",\"N\",\"Y\"))","v":"-"},{"$f":"IF('Enrollment Form'!B922<>\"Subscriber\",\"-\",IF(AND('Enrollment Form'!B922=\"Subscriber\",'Enrollment Form'!G922=\"\"),\"N\",\"Y\"))","v":"-"},{"$f":"IF('Enrollment Form'!A922=\"\",\"\",IF('Enrollment Form'!B922=\"Subscriber\",\"-\",IF(AND('Enrollment Form'!B922<>\"Subscriber\",'Enrollment Form'!G922='Enrollment Form'!H922),\"N\",\"Y\")))","v":""},0]
[923,{"$f":"IF('Enrollment Form'!$A923<>\"\",\"Y\",\"N\")","v":"N"},{"$f":"IF(AND('Enrollment Form'!$B923=\"\",'Enrollment Form'!$C923<>\"\"),\"N\",IF($B916=\"N\",\"\",\"Y\"))","v":""},{"$f":"IF(OR($B916=\"N\",'Enrollment Form'!G923=\"\"),\"\",IF('Enrollment Form'!$B923<>\"Subscriber\",\"\",IF('Enrollment Form'!$G923='Enrollment Form'!$H923,\"Y\",\"N\")))","v":""},{"$f":"IF($B916=\"N\",\"\",IF(AND(COUNTIFS('Enrollment Form'!$H$11:$H$1000,'Enrollment Form'!$H923,'Enrollment Form'!$B$11:$B$1000,'Enrollment Form'!$B923)>1,'Enrollment Form'!$H923<>\"\"),\"N\",\"Y\"))","v":""},{"$f":"IF($B916=\"N\",\"\",IF(LEN('Enrollment Form'!$Y923)=0,\"\",IF(LEN('Enrollment Form'!$Y923)<>5,\"N\",\"Y\")))","v":""},{"$f":"IF($B916=\"N\",\"\",IF(LEN('Enrollment Form'!$AD923=0),\"\",IF(LEN('Enrollment Form'!$AD923)<>5,\"N\",\"Y\")))","v":""},{"$f":"IF($B916=\"N\",\"\",IF(LEN('Enrollment Form'!$BS923=0),\"\",IF(LEN('Enrollment Form'!$BS923)<>5,\"N\",\"Y\")))","v":""},{"$f":"IF($B916=\"N\",\"\",IF(LEN('Enrollment Form'!$AE923)=0,\"\",IF(LEN('Enrollment Form'!$AE923)<>10,\"N\",\"Y\")))","v":""},{"$f":"IF($B916=\"N\",\"\",IF(LEN('Enrollment Form'!$AF923)=0,\"\",IF(LEN('Enrollment Form'!$AF923)<>10,\"N\",\"Y\")))","v":""},{"$f":"IF('Enrollment Form'!$O923<>\"Graded\",\"-\",IF(AND('Enrollment Form'!$O923=\"Graded\",'Enrollment Form'!$AR923<>\"\"),\"Y\",\"N\"))","v":"-"},{"$f":"IF($B916=\"N\",\"\",IF(OR('Enrollment Form'!$B923<>\"Subscriber\",'Enrollment Form'!$C923=\"ROC\"),\"-\",IF(AND('Enrollment Form'!$B923=\"Subscriber\",'Enrollment Form'!$C923=\"Enroll\",'Enrollment Form'!$AJ923<>\"\"),\"Y\",\"N\")))","v":""},{"$f":"IF($B916=\"N\",\"\",IF(OR('Enrollment Form'!$B923<>\"Subscriber\",'Enrollment Form'!$C923=\"ROC\"),\"-\",IF(AND('Enrollment Form'!$B923=\"Subscriber\",'Enrollment Form'!$C923=\"Enroll\",'Enrollment Form'!$AK923<>\"\"),\"Y\",\"N\")))","v":""},{"$f":"IF($B916=\"N\",\"\",IF(OR('Enrollment Form'!$B923<>\"Subscriber\",'Enrollment Form'!$C923=\"ROC\"),\"-\",IF(AND('Enrollment Form'!$B923=\"Subscriber\",'Enrollment Form'!$C923=\"Enroll\",'Enrollment Form'!$AL923<>\"\"),\"Y\",\"N\")))","v":""},{"$f":"IF($B916=\"N\",\"\",IF(OR('Enrollment Form'!$B923<>\"Subscriber\",'Enrollment Form'!$C923=\"ROC\"),\"-\",IF(AND('Enrollment Form'!$B923=\"Subscriber\",'Enrollment Form'!$C923=\"Enroll\",'Enrollment Form'!$AP923<>\"\"),\"Y\",\"N\")))","v":""},{"$f":"IF($B916=\"N\",\"\",IF(OR('Enrollment Form'!$B923<>\"Subscriber\",'Enrollment Form'!$C923=\"ROC\"),\"-\",IF(AND('Enrollment Form'!$B923=\"Subscriber\",'Enrollment Form'!$C923=\"Enroll\",'Enrollment Form'!$AQ923<>\"\"),\"Y\",\"N\")))","v":""},{"$f":"IF($B916=\"N\",\"\",IF(OR('Enrollment Form'!$B923<>\"Subscriber\",'Enrollment Form'!$C923=\"ROC\"),\"-\",IF(AND('Enrollment Form'!$B923=\"Subscriber\",'Enrollment Form'!$C923=\"Enroll\",'Enrollment Form'!$AS923<>\"\"),\"Y\",\"N\")))","v":""},{"$f":"IF($B916=\"N\",\"\",IF($Q916=\"-\",\"-\",IF(AND($Q916=\"Y\",'Enrollment Form'!$AS923=\"No\"),\"-\",IF(AND($Q916=\"Y\",'Enrollment Form'!$AS923=\"Yes\",'Enrollment Form'!$AT923<>\"\"),\"Y\",\"N\"))))","v":""},{"$f":"IF($B916=\"N\",\"\",IF(OR('Enrollment Form'!$B923<>\"Subscriber\",'Enrollment Form'!$C923=\"ROC\"),\"-\",IF(AND('Enrollment Form'!$B923=\"Subscriber\",'Enrollment Form'!$C923=\"Enroll\",'Enrollment Form'!$CV923<>\"\"),\"Y\",\"N\")))","v":""},{"$f":"IF($B916=\"N\",\"\",IF($S916=\"-\",\"-\",IF(AND($S916=\"Y\",'Enrollment Form'!$CV923=\"No\"),\"-\",IF(AND($S916=\"Y\",'Enrollment Form'!$CV923=\"Yes\",'Enrollment Form'!$CW923<>\"\"),\"Y\",\"N\"))))","v":""},{"$f":"IF(OR('Enrollment Form'!$AY923=\"Yes\",'Enrollment Form'!$AY923=\"\"),\"-\",IF(OR(AND('Enrollment Form'!$AY923=\"No\",ISERROR(FIND(\"HMO\",VLOOKUP('Enrollment Form'!G923,'Enrollment Form'!H$11:J$1000,3,FALSE),1))=FALSE,COUNTA('Enrollment Form'!$AZ923:$BC923)=4),AND('Enrollment Form'!$AY923=\"No\",ISERROR(FIND(\"HMO\",VLOOKUP('Enrollment Form'!G923,'Enrollment Form'!H$11:J$1000,3,FALSE),1))=FALSE,COUNTA('Enrollment Form'!$BT923:$BW923)=4)),\"Y\",\"N\"))","v":"-"},{"$f":"IF($B916=\"N\",\"\",IF('Enrollment Form'!$B923=\"Subscriber\",\"-\",IF(COUNTA('Enrollment Form'!$BL923,'Enrollment Form'!$BN923)=2,\"Y\",\"N\")))","v":""},{"$f":"IF($B916=\"N\",\"\",IF(OR('Enrollment Form'!$AX923=\"\",'Enrollment Form'!$AX923=\"No\"),\"-\",IF(AND('Enrollment Form'!$AX923=\"Yes\",COUNTA('Enrollment Form'!$CR923)=1),\"Y\",\"N\")))","v":""},{"$f":"IF(OR('Enrollment Form'!$CR923=\"\",'Enrollment Form'!$CR923=\"No\"),\"-\",IF(COUNTA('Enrollment Form'!$CT923:$CU923)=2,\"Y\",\"N\"))","v":"-"},{"$f":"IF($B916=\"N\",\"\",IF(COUNTIF('Enrollment Form'!$DG923:$DP923,\"Other\")=COUNTA('Enrollment Form'!$DK923,'Enrollment Form'!$DH923,'Enrollment Form'!$DN923,'Enrollment Form'!$DQ923),\"Y\",\"N\"))","v":""},{"$f":"IF($B916=\"N\",\"\",IF(OR('Enrollment Form'!B923<>\"Subscriber\",'Enrollment Form'!C923=\"ROC\",COUNTIF('Enrollment Form'!AV923:AW923,\"Yes\")>=1),\"-\",IF(AND('Enrollment Form'!C923=\"Enroll\",COUNTIF('Enrollment Form'!AV923:AW923,\"No\")=2,'Enrollment Form'!AX923=\"\"),\"N\",\"Y\")))","v":""},{"$f":"IF(OR(B916=\"N\",'Enrollment Form'!B923<>\"Subscriber\",'Enrollment Form'!C923=\"ROC\",'Enrollment Form'!O923<>\"Multiple of Salary\"),\"-\",IF(COUNTA('Enrollment Form'!T923:U923)<2,\"N\",\"Y\"))","v":"-"},{"$f":"IF(B916=\"N\",\"\",IF(OR('Enrollment Form'!C923=\"ROC\",'Enrollment Form'!B923<>\"Subscriber\",'Enrollment Form'!O923=\"Waive\",'Enrollment Form'!O923=\"\"),\"-\",IF('Enrollment Form'!P923=\"\",\"N\",\"Y\")))","v":""},{"$f":"IF($B916=\"N\",\"\",IF(AND('Enrollment Form'!$C923=\"ROC\",'Enrollment Form'!$DR923<>\"\"),\"Y\",IF(AND('Enrollment Form'!$C923=\"ROC\",'Enrollment Form'!$DR923=\"\"),\"N\",IF(AND('Enrollment Form'!$C923=\"Enroll\",'Enrollment Form'!$B923=\"Subscriber\",'Enrollment Form'!$CX923=\"No\",'Enrollment Form'!$DR923=\"\"),\"N\",IF(AND('Enrollment Form'!$C923=\"Enroll\",'Enrollment Form'!$B923=\"Subscriber\",'Enrollment Form'!$CX923=\"Yes\"),\"-\",\"Y\")))))","v":""},{"$f":"IF($B916=\"N\",\"\",IF(AND('Enrollment Form'!$C923=\"ROC\",'Enrollment Form'!$DS923<>\"\"),\"Y\",IF(AND('Enrollment Form'!$C923=\"ROC\",'Enrollment Form'!$DS923=\"\"),\"N\",IF(AND('Enrollment Form'!$C923=\"Enroll\",'Enrollment Form'!$B923=\"Subscriber\",'Enrollment Form'!$CX923=\"No\",'Enrollment Form'!$DS923=\"\"),\"N\",IF(AND('Enrollment Form'!$C923=\"Enroll\",'Enrollment Form'!$B923=\"Subscriber\",'Enrollment Form'!$CX923=\"Yes\"),\"-\",\"Y\")))))","v":""},{"$f":"IF('Enrollment Form'!AH923=\"\",\"\",IF(ISERROR(SEARCH(\".\",'Enrollment Form'!AH923,SEARCH(\"@\",'Enrollment Form'!AH923))),\"N\",\"Y\"))","v":""},{"$f":"IF(OR($B916=\"N\",'Enrollment Form'!$G923=\"\"),\"\",IF('Enrollment Form'!$B923<>\"Subscriber\",\"-\",IF(COUNTIF('Enrollment Form'!$AV923:$AW923,\"Yes\")=2,\"N\",\"Y\")))","v":""},{"$f":"IF(OR('Enrollment Form'!$CJ923=\"\",'Enrollment Form'!$CJ923=\"No\"),\"-\",IF(AND('Enrollment Form'!$CJ923=\"Yes\",'Enrollment Form'!$CK923=\"\"),\"N\",\"Y\"))","v":"-"},{"$f":"IF(OR('Enrollment Form'!$CL923=\"\",'Enrollment Form'!$CL923=\"No\"),\"-\",IF(AND('Enrollment Form'!$CL923=\"Yes\",'Enrollment Form'!$CM923=\"\"),\"N\",\"Y\"))","v":"-"},{"$f":"IF(OR('Enrollment Form'!$CN923=\"\",'Enrollment Form'!$CN923=\"No\"),\"-\",IF(AND('Enrollment Form'!$CN923=\"Yes\",'Enrollment Form'!$CO923=\"\"),\"N\",\"Y\"))","v":"-"},{"$f":"IF(OR('Enrollment Form'!$CN923=\"\",'Enrollment Form'!$CN923=\"No\"),\"-\",IF(AND('Enrollment Form'!$CN923=\"Yes\",'Enrollment Form'!$CP923=\"\"),\"N\",\"Y\"))","v":"-"},{"$f":"IF('Enrollment Form'!B923<>\"Subscriber\",\"-\",IF(AND('Enrollment Form'!B923=\"Subscriber\",'Enrollment Form'!C923=\"Enroll\",'Enrollment Form'!AA923=\"\"),\"N\",\"Y\"))","v":"-"},{"$f":"IF(OR('Enrollment Form'!B923=\"Subscriber\",'Enrollment Form'!B923=\"\"),\"-\",IF('Enrollment Form'!BP923=\"\",\"N\",\"Y\"))","v":"-"},{"$f":"IF('Enrollment Form'!B923<>\"Subscriber\",\"-\",IF(AND('Enrollment Form'!B923=\"Subscriber\",'Enrollment Form'!G923=\"\"),\"N\",\"Y\"))","v":"-"},{"$f":"IF('Enrollment Form'!A923=\"\",\"\",IF('Enrollment Form'!B923=\"Subscriber\",\"-\",IF(AND('Enrollment Form'!B923<>\"Subscriber\",'Enrollment Form'!G923='Enrollment Form'!H923),\"N\",\"Y\")))","v":""},0]
[924,{"$f":"IF('Enrollment Form'!$A924<>\"\",\"Y\",\"N\")","v":"N"},{"$f":"IF(AND('Enrollment Form'!$B924=\"\",'Enrollment Form'!$C924<>\"\"),\"N\",IF($B917=\"N\",\"\",\"Y\"))","v":""},{"$f":"IF(OR($B917=\"N\",'Enrollment Form'!G924=\"\"),\"\",IF('Enrollment Form'!$B924<>\"Subscriber\",\"\",IF('Enrollment Form'!$G924='Enrollment Form'!$H924,\"Y\",\"N\")))","v":""},{"$f":"IF($B917=\"N\",\"\",IF(AND(COUNTIFS('Enrollment Form'!$H$11:$H$1000,'Enrollment Form'!$H924,'Enrollment Form'!$B$11:$B$1000,'Enrollment Form'!$B924)>1,'Enrollment Form'!$H924<>\"\"),\"N\",\"Y\"))","v":""},{"$f":"IF($B917=\"N\",\"\",IF(LEN('Enrollment Form'!$Y924)=0,\"\",IF(LEN('Enrollment Form'!$Y924)<>5,\"N\",\"Y\")))","v":""},{"$f":"IF($B917=\"N\",\"\",IF(LEN('Enrollment Form'!$AD924=0),\"\",IF(LEN('Enrollment Form'!$AD924)<>5,\"N\",\"Y\")))","v":""},{"$f":"IF($B917=\"N\",\"\",IF(LEN('Enrollment Form'!$BS924=0),\"\",IF(LEN('Enrollment Form'!$BS924)<>5,\"N\",\"Y\")))","v":""},{"$f":"IF($B917=\"N\",\"\",IF(LEN('Enrollment Form'!$AE924)=0,\"\",IF(LEN('Enrollment Form'!$AE924)<>10,\"N\",\"Y\")))","v":""},{"$f":"IF($B917=\"N\",\"\",IF(LEN('Enrollment Form'!$AF924)=0,\"\",IF(LEN('Enrollment Form'!$AF924)<>10,\"N\",\"Y\")))","v":""},{"$f":"IF('Enrollment Form'!$O924<>\"Graded\",\"-\",IF(AND('Enrollment Form'!$O924=\"Graded\",'Enrollment Form'!$AR924<>\"\"),\"Y\",\"N\"))","v":"-"},{"$f":"IF($B917=\"N\",\"\",IF(OR('Enrollment Form'!$B924<>\"Subscriber\",'Enrollment Form'!$C924=\"ROC\"),\"-\",IF(AND('Enrollment Form'!$B924=\"Subscriber\",'Enrollment Form'!$C924=\"Enroll\",'Enrollment Form'!$AJ924<>\"\"),\"Y\",\"N\")))","v":""},{"$f":"IF($B917=\"N\",\"\",IF(OR('Enrollment Form'!$B924<>\"Subscriber\",'Enrollment Form'!$C924=\"ROC\"),\"-\",IF(AND('Enrollment Form'!$B924=\"Subscriber\",'Enrollment Form'!$C924=\"Enroll\",'Enrollment Form'!$AK924<>\"\"),\"Y\",\"N\")))","v":""},{"$f":"IF($B917=\"N\",\"\",IF(OR('Enrollment Form'!$B924<>\"Subscriber\",'Enrollment Form'!$C924=\"ROC\"),\"-\",IF(AND('Enrollment Form'!$B924=\"Subscriber\",'Enrollment Form'!$C924=\"Enroll\",'Enrollment Form'!$AL924<>\"\"),\"Y\",\"N\")))","v":""},{"$f":"IF($B917=\"N\",\"\",IF(OR('Enrollment Form'!$B924<>\"Subscriber\",'Enrollment Form'!$C924=\"ROC\"),\"-\",IF(AND('Enrollment Form'!$B924=\"Subscriber\",'Enrollment Form'!$C924=\"Enroll\",'Enrollment Form'!$AP924<>\"\"),\"Y\",\"N\")))","v":""},{"$f":"IF($B917=\"N\",\"\",IF(OR('Enrollment Form'!$B924<>\"Subscriber\",'Enrollment Form'!$C924=\"ROC\"),\"-\",IF(AND('Enrollment Form'!$B924=\"Subscriber\",'Enrollment Form'!$C924=\"Enroll\",'Enrollment Form'!$AQ924<>\"\"),\"Y\",\"N\")))","v":""},{"$f":"IF($B917=\"N\",\"\",IF(OR('Enrollment Form'!$B924<>\"Subscriber\",'Enrollment Form'!$C924=\"ROC\"),\"-\",IF(AND('Enrollment Form'!$B924=\"Subscriber\",'Enrollment Form'!$C924=\"Enroll\",'Enrollment Form'!$AS924<>\"\"),\"Y\",\"N\")))","v":""},{"$f":"IF($B917=\"N\",\"\",IF($Q917=\"-\",\"-\",IF(AND($Q917=\"Y\",'Enrollment Form'!$AS924=\"No\"),\"-\",IF(AND($Q917=\"Y\",'Enrollment Form'!$AS924=\"Yes\",'Enrollment Form'!$AT924<>\"\"),\"Y\",\"N\"))))","v":""},{"$f":"IF($B917=\"N\",\"\",IF(OR('Enrollment Form'!$B924<>\"Subscriber\",'Enrollment Form'!$C924=\"ROC\"),\"-\",IF(AND('Enrollment Form'!$B924=\"Subscriber\",'Enrollment Form'!$C924=\"Enroll\",'Enrollment Form'!$CV924<>\"\"),\"Y\",\"N\")))","v":""},{"$f":"IF($B917=\"N\",\"\",IF($S917=\"-\",\"-\",IF(AND($S917=\"Y\",'Enrollment Form'!$CV924=\"No\"),\"-\",IF(AND($S917=\"Y\",'Enrollment Form'!$CV924=\"Yes\",'Enrollment Form'!$CW924<>\"\"),\"Y\",\"N\"))))","v":""},{"$f":"IF(OR('Enrollment Form'!$AY924=\"Yes\",'Enrollment Form'!$AY924=\"\"),\"-\",IF(OR(AND('Enrollment Form'!$AY924=\"No\",ISERROR(FIND(\"HMO\",VLOOKUP('Enrollment Form'!G924,'Enrollment Form'!H$11:J$1000,3,FALSE),1))=FALSE,COUNTA('Enrollment Form'!$AZ924:$BC924)=4),AND('Enrollment Form'!$AY924=\"No\",ISERROR(FIND(\"HMO\",VLOOKUP('Enrollment Form'!G924,'Enrollment Form'!H$11:J$1000,3,FALSE),1))=FALSE,COUNTA('Enrollment Form'!$BT924:$BW924)=4)),\"Y\",\"N\"))","v":"-"},{"$f":"IF($B917=\"N\",\"\",IF('Enrollment Form'!$B924=\"Subscriber\",\"-\",IF(COUNTA('Enrollment Form'!$BL924,'Enrollment Form'!$BN924)=2,\"Y\",\"N\")))","v":""},{"$f":"IF($B917=\"N\",\"\",IF(OR('Enrollment Form'!$AX924=\"\",'Enrollment Form'!$AX924=\"No\"),\"-\",IF(AND('Enrollment Form'!$AX924=\"Yes\",COUNTA('Enrollment Form'!$CR924)=1),\"Y\",\"N\")))","v":""},{"$f":"IF(OR('Enrollment Form'!$CR924=\"\",'Enrollment Form'!$CR924=\"No\"),\"-\",IF(COUNTA('Enrollment Form'!$CT924:$CU924)=2,\"Y\",\"N\"))","v":"-"},{"$f":"IF($B917=\"N\",\"\",IF(COUNTIF('Enrollment Form'!$DG924:$DP924,\"Other\")=COUNTA('Enrollment Form'!$DK924,'Enrollment Form'!$DH924,'Enrollment Form'!$DN924,'Enrollment Form'!$DQ924),\"Y\",\"N\"))","v":""},{"$f":"IF($B917=\"N\",\"\",IF(OR('Enrollment Form'!B924<>\"Subscriber\",'Enrollment Form'!C924=\"ROC\",COUNTIF('Enrollment Form'!AV924:AW924,\"Yes\")>=1),\"-\",IF(AND('Enrollment Form'!C924=\"Enroll\",COUNTIF('Enrollment Form'!AV924:AW924,\"No\")=2,'Enrollment Form'!AX924=\"\"),\"N\",\"Y\")))","v":""},{"$f":"IF(OR(B917=\"N\",'Enrollment Form'!B924<>\"Subscriber\",'Enrollment Form'!C924=\"ROC\",'Enrollment Form'!O924<>\"Multiple of Salary\"),\"-\",IF(COUNTA('Enrollment Form'!T924:U924)<2,\"N\",\"Y\"))","v":"-"},{"$f":"IF(B917=\"N\",\"\",IF(OR('Enrollment Form'!C924=\"ROC\",'Enrollment Form'!B924<>\"Subscriber\",'Enrollment Form'!O924=\"Waive\",'Enrollment Form'!O924=\"\"),\"-\",IF('Enrollment Form'!P924=\"\",\"N\",\"Y\")))","v":""},{"$f":"IF($B917=\"N\",\"\",IF(AND('Enrollment Form'!$C924=\"ROC\",'Enrollment Form'!$DR924<>\"\"),\"Y\",IF(AND('Enrollment Form'!$C924=\"ROC\",'Enrollment Form'!$DR924=\"\"),\"N\",IF(AND('Enrollment Form'!$C924=\"Enroll\",'Enrollment Form'!$B924=\"Subscriber\",'Enrollment Form'!$CX924=\"No\",'Enrollment Form'!$DR924=\"\"),\"N\",IF(AND('Enrollment Form'!$C924=\"Enroll\",'Enrollment Form'!$B924=\"Subscriber\",'Enrollment Form'!$CX924=\"Yes\"),\"-\",\"Y\")))))","v":""},{"$f":"IF($B917=\"N\",\"\",IF(AND('Enrollment Form'!$C924=\"ROC\",'Enrollment Form'!$DS924<>\"\"),\"Y\",IF(AND('Enrollment Form'!$C924=\"ROC\",'Enrollment Form'!$DS924=\"\"),\"N\",IF(AND('Enrollment Form'!$C924=\"Enroll\",'Enrollment Form'!$B924=\"Subscriber\",'Enrollment Form'!$CX924=\"No\",'Enrollment Form'!$DS924=\"\"),\"N\",IF(AND('Enrollment Form'!$C924=\"Enroll\",'Enrollment Form'!$B924=\"Subscriber\",'Enrollment Form'!$CX924=\"Yes\"),\"-\",\"Y\")))))","v":""},{"$f":"IF('Enrollment Form'!AH924=\"\",\"\",IF(ISERROR(SEARCH(\".\",'Enrollment Form'!AH924,SEARCH(\"@\",'Enrollment Form'!AH924))),\"N\",\"Y\"))","v":""},{"$f":"IF(OR($B917=\"N\",'Enrollment Form'!$G924=\"\"),\"\",IF('Enrollment Form'!$B924<>\"Subscriber\",\"-\",IF(COUNTIF('Enrollment Form'!$AV924:$AW924,\"Yes\")=2,\"N\",\"Y\")))","v":""},{"$f":"IF(OR('Enrollment Form'!$CJ924=\"\",'Enrollment Form'!$CJ924=\"No\"),\"-\",IF(AND('Enrollment Form'!$CJ924=\"Yes\",'Enrollment Form'!$CK924=\"\"),\"N\",\"Y\"))","v":"-"},{"$f":"IF(OR('Enrollment Form'!$CL924=\"\",'Enrollment Form'!$CL924=\"No\"),\"-\",IF(AND('Enrollment Form'!$CL924=\"Yes\",'Enrollment Form'!$CM924=\"\"),\"N\",\"Y\"))","v":"-"},{"$f":"IF(OR('Enrollment Form'!$CN924=\"\",'Enrollment Form'!$CN924=\"No\"),\"-\",IF(AND('Enrollment Form'!$CN924=\"Yes\",'Enrollment Form'!$CO924=\"\"),\"N\",\"Y\"))","v":"-"},{"$f":"IF(OR('Enrollment Form'!$CN924=\"\",'Enrollment Form'!$CN924=\"No\"),\"-\",IF(AND('Enrollment Form'!$CN924=\"Yes\",'Enrollment Form'!$CP924=\"\"),\"N\",\"Y\"))","v":"-"},{"$f":"IF('Enrollment Form'!B924<>\"Subscriber\",\"-\",IF(AND('Enrollment Form'!B924=\"Subscriber\",'Enrollment Form'!C924=\"Enroll\",'Enrollment Form'!AA924=\"\"),\"N\",\"Y\"))","v":"-"},{"$f":"IF(OR('Enrollment Form'!B924=\"Subscriber\",'Enrollment Form'!B924=\"\"),\"-\",IF('Enrollment Form'!BP924=\"\",\"N\",\"Y\"))","v":"-"},{"$f":"IF('Enrollment Form'!B924<>\"Subscriber\",\"-\",IF(AND('Enrollment Form'!B924=\"Subscriber\",'Enrollment Form'!G924=\"\"),\"N\",\"Y\"))","v":"-"},{"$f":"IF('Enrollment Form'!A924=\"\",\"\",IF('Enrollment Form'!B924=\"Subscriber\",\"-\",IF(AND('Enrollment Form'!B924<>\"Subscriber\",'Enrollment Form'!G924='Enrollment Form'!H924),\"N\",\"Y\")))","v":""},0]
[925,{"$f":"IF('Enrollment Form'!$A925<>\"\",\"Y\",\"N\")","v":"N"},{"$f":"IF(AND('Enrollment Form'!$B925=\"\",'Enrollment Form'!$C925<>\"\"),\"N\",IF($B918=\"N\",\"\",\"Y\"))","v":""},{"$f":"IF(OR($B918=\"N\",'Enrollment Form'!G925=\"\"),\"\",IF('Enrollment Form'!$B925<>\"Subscriber\",\"\",IF('Enrollment Form'!$G925='Enrollment Form'!$H925,\"Y\",\"N\")))","v":""},{"$f":"IF($B918=\"N\",\"\",IF(AND(COUNTIFS('Enrollment Form'!$H$11:$H$1000,'Enrollment Form'!$H925,'Enrollment Form'!$B$11:$B$1000,'Enrollment Form'!$B925)>1,'Enrollment Form'!$H925<>\"\"),\"N\",\"Y\"))","v":""},{"$f":"IF($B918=\"N\",\"\",IF(LEN('Enrollment Form'!$Y925)=0,\"\",IF(LEN('Enrollment Form'!$Y925)<>5,\"N\",\"Y\")))","v":""},{"$f":"IF($B918=\"N\",\"\",IF(LEN('Enrollment Form'!$AD925=0),\"\",IF(LEN('Enrollment Form'!$AD925)<>5,\"N\",\"Y\")))","v":""},{"$f":"IF($B918=\"N\",\"\",IF(LEN('Enrollment Form'!$BS925=0),\"\",IF(LEN('Enrollment Form'!$BS925)<>5,\"N\",\"Y\")))","v":""},{"$f":"IF($B918=\"N\",\"\",IF(LEN('Enrollment Form'!$AE925)=0,\"\",IF(LEN('Enrollment Form'!$AE925)<>10,\"N\",\"Y\")))","v":""},{"$f":"IF($B918=\"N\",\"\",IF(LEN('Enrollment Form'!$AF925)=0,\"\",IF(LEN('Enrollment Form'!$AF925)<>10,\"N\",\"Y\")))","v":""},{"$f":"IF('Enrollment Form'!$O925<>\"Graded\",\"-\",IF(AND('Enrollment Form'!$O925=\"Graded\",'Enrollment Form'!$AR925<>\"\"),\"Y\",\"N\"))","v":"-"},{"$f":"IF($B918=\"N\",\"\",IF(OR('Enrollment Form'!$B925<>\"Subscriber\",'Enrollment Form'!$C925=\"ROC\"),\"-\",IF(AND('Enrollment Form'!$B925=\"Subscriber\",'Enrollment Form'!$C925=\"Enroll\",'Enrollment Form'!$AJ925<>\"\"),\"Y\",\"N\")))","v":""},{"$f":"IF($B918=\"N\",\"\",IF(OR('Enrollment Form'!$B925<>\"Subscriber\",'Enrollment Form'!$C925=\"ROC\"),\"-\",IF(AND('Enrollment Form'!$B925=\"Subscriber\",'Enrollment Form'!$C925=\"Enroll\",'Enrollment Form'!$AK925<>\"\"),\"Y\",\"N\")))","v":""},{"$f":"IF($B918=\"N\",\"\",IF(OR('Enrollment Form'!$B925<>\"Subscriber\",'Enrollment Form'!$C925=\"ROC\"),\"-\",IF(AND('Enrollment Form'!$B925=\"Subscriber\",'Enrollment Form'!$C925=\"Enroll\",'Enrollment Form'!$AL925<>\"\"),\"Y\",\"N\")))","v":""},{"$f":"IF($B918=\"N\",\"\",IF(OR('Enrollment Form'!$B925<>\"Subscriber\",'Enrollment Form'!$C925=\"ROC\"),\"-\",IF(AND('Enrollment Form'!$B925=\"Subscriber\",'Enrollment Form'!$C925=\"Enroll\",'Enrollment Form'!$AP925<>\"\"),\"Y\",\"N\")))","v":""},{"$f":"IF($B918=\"N\",\"\",IF(OR('Enrollment Form'!$B925<>\"Subscriber\",'Enrollment Form'!$C925=\"ROC\"),\"-\",IF(AND('Enrollment Form'!$B925=\"Subscriber\",'Enrollment Form'!$C925=\"Enroll\",'Enrollment Form'!$AQ925<>\"\"),\"Y\",\"N\")))","v":""},{"$f":"IF($B918=\"N\",\"\",IF(OR('Enrollment Form'!$B925<>\"Subscriber\",'Enrollment Form'!$C925=\"ROC\"),\"-\",IF(AND('Enrollment Form'!$B925=\"Subscriber\",'Enrollment Form'!$C925=\"Enroll\",'Enrollment Form'!$AS925<>\"\"),\"Y\",\"N\")))","v":""},{"$f":"IF($B918=\"N\",\"\",IF($Q918=\"-\",\"-\",IF(AND($Q918=\"Y\",'Enrollment Form'!$AS925=\"No\"),\"-\",IF(AND($Q918=\"Y\",'Enrollment Form'!$AS925=\"Yes\",'Enrollment Form'!$AT925<>\"\"),\"Y\",\"N\"))))","v":""},{"$f":"IF($B918=\"N\",\"\",IF(OR('Enrollment Form'!$B925<>\"Subscriber\",'Enrollment Form'!$C925=\"ROC\"),\"-\",IF(AND('Enrollment Form'!$B925=\"Subscriber\",'Enrollment Form'!$C925=\"Enroll\",'Enrollment Form'!$CV925<>\"\"),\"Y\",\"N\")))","v":""},{"$f":"IF($B918=\"N\",\"\",IF($S918=\"-\",\"-\",IF(AND($S918=\"Y\",'Enrollment Form'!$CV925=\"No\"),\"-\",IF(AND($S918=\"Y\",'Enrollment Form'!$CV925=\"Yes\",'Enrollment Form'!$CW925<>\"\"),\"Y\",\"N\"))))","v":""},{"$f":"IF(OR('Enrollment Form'!$AY925=\"Yes\",'Enrollment Form'!$AY925=\"\"),\"-\",IF(OR(AND('Enrollment Form'!$AY925=\"No\",ISERROR(FIND(\"HMO\",VLOOKUP('Enrollment Form'!G925,'Enrollment Form'!H$11:J$1000,3,FALSE),1))=FALSE,COUNTA('Enrollment Form'!$AZ925:$BC925)=4),AND('Enrollment Form'!$AY925=\"No\",ISERROR(FIND(\"HMO\",VLOOKUP('Enrollment Form'!G925,'Enrollment Form'!H$11:J$1000,3,FALSE),1))=FALSE,COUNTA('Enrollment Form'!$BT925:$BW925)=4)),\"Y\",\"N\"))","v":"-"},{"$f":"IF($B918=\"N\",\"\",IF('Enrollment Form'!$B925=\"Subscriber\",\"-\",IF(COUNTA('Enrollment Form'!$BL925,'Enrollment Form'!$BN925)=2,\"Y\",\"N\")))","v":""},{"$f":"IF($B918=\"N\",\"\",IF(OR('Enrollment Form'!$AX925=\"\",'Enrollment Form'!$AX925=\"No\"),\"-\",IF(AND('Enrollment Form'!$AX925=\"Yes\",COUNTA('Enrollment Form'!$CR925)=1),\"Y\",\"N\")))","v":""},{"$f":"IF(OR('Enrollment Form'!$CR925=\"\",'Enrollment Form'!$CR925=\"No\"),\"-\",IF(COUNTA('Enrollment Form'!$CT925:$CU925)=2,\"Y\",\"N\"))","v":"-"},{"$f":"IF($B918=\"N\",\"\",IF(COUNTIF('Enrollment Form'!$DG925:$DP925,\"Other\")=COUNTA('Enrollment Form'!$DK925,'Enrollment Form'!$DH925,'Enrollment Form'!$DN925,'Enrollment Form'!$DQ925),\"Y\",\"N\"))","v":""},{"$f":"IF($B918=\"N\",\"\",IF(OR('Enrollment Form'!B925<>\"Subscriber\",'Enrollment Form'!C925=\"ROC\",COUNTIF('Enrollment Form'!AV925:AW925,\"Yes\")>=1),\"-\",IF(AND('Enrollment Form'!C925=\"Enroll\",COUNTIF('Enrollment Form'!AV925:AW925,\"No\")=2,'Enrollment Form'!AX925=\"\"),\"N\",\"Y\")))","v":""},{"$f":"IF(OR(B918=\"N\",'Enrollment Form'!B925<>\"Subscriber\",'Enrollment Form'!C925=\"ROC\",'Enrollment Form'!O925<>\"Multiple of Salary\"),\"-\",IF(COUNTA('Enrollment Form'!T925:U925)<2,\"N\",\"Y\"))","v":"-"},{"$f":"IF(B918=\"N\",\"\",IF(OR('Enrollment Form'!C925=\"ROC\",'Enrollment Form'!B925<>\"Subscriber\",'Enrollment Form'!O925=\"Waive\",'Enrollment Form'!O925=\"\"),\"-\",IF('Enrollment Form'!P925=\"\",\"N\",\"Y\")))","v":""},{"$f":"IF($B918=\"N\",\"\",IF(AND('Enrollment Form'!$C925=\"ROC\",'Enrollment Form'!$DR925<>\"\"),\"Y\",IF(AND('Enrollment Form'!$C925=\"ROC\",'Enrollment Form'!$DR925=\"\"),\"N\",IF(AND('Enrollment Form'!$C925=\"Enroll\",'Enrollment Form'!$B925=\"Subscriber\",'Enrollment Form'!$CX925=\"No\",'Enrollment Form'!$DR925=\"\"),\"N\",IF(AND('Enrollment Form'!$C925=\"Enroll\",'Enrollment Form'!$B925=\"Subscriber\",'Enrollment Form'!$CX925=\"Yes\"),\"-\",\"Y\")))))","v":""},{"$f":"IF($B918=\"N\",\"\",IF(AND('Enrollment Form'!$C925=\"ROC\",'Enrollment Form'!$DS925<>\"\"),\"Y\",IF(AND('Enrollment Form'!$C925=\"ROC\",'Enrollment Form'!$DS925=\"\"),\"N\",IF(AND('Enrollment Form'!$C925=\"Enroll\",'Enrollment Form'!$B925=\"Subscriber\",'Enrollment Form'!$CX925=\"No\",'Enrollment Form'!$DS925=\"\"),\"N\",IF(AND('Enrollment Form'!$C925=\"Enroll\",'Enrollment Form'!$B925=\"Subscriber\",'Enrollment Form'!$CX925=\"Yes\"),\"-\",\"Y\")))))","v":""},{"$f":"IF('Enrollment Form'!AH925=\"\",\"\",IF(ISERROR(SEARCH(\".\",'Enrollment Form'!AH925,SEARCH(\"@\",'Enrollment Form'!AH925))),\"N\",\"Y\"))","v":""},{"$f":"IF(OR($B918=\"N\",'Enrollment Form'!$G925=\"\"),\"\",IF('Enrollment Form'!$B925<>\"Subscriber\",\"-\",IF(COUNTIF('Enrollment Form'!$AV925:$AW925,\"Yes\")=2,\"N\",\"Y\")))","v":""},{"$f":"IF(OR('Enrollment Form'!$CJ925=\"\",'Enrollment Form'!$CJ925=\"No\"),\"-\",IF(AND('Enrollment Form'!$CJ925=\"Yes\",'Enrollment Form'!$CK925=\"\"),\"N\",\"Y\"))","v":"-"},{"$f":"IF(OR('Enrollment Form'!$CL925=\"\",'Enrollment Form'!$CL925=\"No\"),\"-\",IF(AND('Enrollment Form'!$CL925=\"Yes\",'Enrollment Form'!$CM925=\"\"),\"N\",\"Y\"))","v":"-"},{"$f":"IF(OR('Enrollment Form'!$CN925=\"\",'Enrollment Form'!$CN925=\"No\"),\"-\",IF(AND('Enrollment Form'!$CN925=\"Yes\",'Enrollment Form'!$CO925=\"\"),\"N\",\"Y\"))","v":"-"},{"$f":"IF(OR('Enrollment Form'!$CN925=\"\",'Enrollment Form'!$CN925=\"No\"),\"-\",IF(AND('Enrollment Form'!$CN925=\"Yes\",'Enrollment Form'!$CP925=\"\"),\"N\",\"Y\"))","v":"-"},{"$f":"IF('Enrollment Form'!B925<>\"Subscriber\",\"-\",IF(AND('Enrollment Form'!B925=\"Subscriber\",'Enrollment Form'!C925=\"Enroll\",'Enrollment Form'!AA925=\"\"),\"N\",\"Y\"))","v":"-"},{"$f":"IF(OR('Enrollment Form'!B925=\"Subscriber\",'Enrollment Form'!B925=\"\"),\"-\",IF('Enrollment Form'!BP925=\"\",\"N\",\"Y\"))","v":"-"},{"$f":"IF('Enrollment Form'!B925<>\"Subscriber\",\"-\",IF(AND('Enrollment Form'!B925=\"Subscriber\",'Enrollment Form'!G925=\"\"),\"N\",\"Y\"))","v":"-"},{"$f":"IF('Enrollment Form'!A925=\"\",\"\",IF('Enrollment Form'!B925=\"Subscriber\",\"-\",IF(AND('Enrollment Form'!B925<>\"Subscriber\",'Enrollment Form'!G925='Enrollment Form'!H925),\"N\",\"Y\")))","v":""},0]
[926,{"$f":"IF('Enrollment Form'!$A926<>\"\",\"Y\",\"N\")","v":"N"},{"$f":"IF(AND('Enrollment Form'!$B926=\"\",'Enrollment Form'!$C926<>\"\"),\"N\",IF($B919=\"N\",\"\",\"Y\"))","v":""},{"$f":"IF(OR($B919=\"N\",'Enrollment Form'!G926=\"\"),\"\",IF('Enrollment Form'!$B926<>\"Subscriber\",\"\",IF('Enrollment Form'!$G926='Enrollment Form'!$H926,\"Y\",\"N\")))","v":""},{"$f":"IF($B919=\"N\",\"\",IF(AND(COUNTIFS('Enrollment Form'!$H$11:$H$1000,'Enrollment Form'!$H926,'Enrollment Form'!$B$11:$B$1000,'Enrollment Form'!$B926)>1,'Enrollment Form'!$H926<>\"\"),\"N\",\"Y\"))","v":""},{"$f":"IF($B919=\"N\",\"\",IF(LEN('Enrollment Form'!$Y926)=0,\"\",IF(LEN('Enrollment Form'!$Y926)<>5,\"N\",\"Y\")))","v":""},{"$f":"IF($B919=\"N\",\"\",IF(LEN('Enrollment Form'!$AD926=0),\"\",IF(LEN('Enrollment Form'!$AD926)<>5,\"N\",\"Y\")))","v":""},{"$f":"IF($B919=\"N\",\"\",IF(LEN('Enrollment Form'!$BS926=0),\"\",IF(LEN('Enrollment Form'!$BS926)<>5,\"N\",\"Y\")))","v":""},{"$f":"IF($B919=\"N\",\"\",IF(LEN('Enrollment Form'!$AE926)=0,\"\",IF(LEN('Enrollment Form'!$AE926)<>10,\"N\",\"Y\")))","v":""},{"$f":"IF($B919=\"N\",\"\",IF(LEN('Enrollment Form'!$AF926)=0,\"\",IF(LEN('Enrollment Form'!$AF926)<>10,\"N\",\"Y\")))","v":""},{"$f":"IF('Enrollment Form'!$O926<>\"Graded\",\"-\",IF(AND('Enrollment Form'!$O926=\"Graded\",'Enrollment Form'!$AR926<>\"\"),\"Y\",\"N\"))","v":"-"},{"$f":"IF($B919=\"N\",\"\",IF(OR('Enrollment Form'!$B926<>\"Subscriber\",'Enrollment Form'!$C926=\"ROC\"),\"-\",IF(AND('Enrollment Form'!$B926=\"Subscriber\",'Enrollment Form'!$C926=\"Enroll\",'Enrollment Form'!$AJ926<>\"\"),\"Y\",\"N\")))","v":""},{"$f":"IF($B919=\"N\",\"\",IF(OR('Enrollment Form'!$B926<>\"Subscriber\",'Enrollment Form'!$C926=\"ROC\"),\"-\",IF(AND('Enrollment Form'!$B926=\"Subscriber\",'Enrollment Form'!$C926=\"Enroll\",'Enrollment Form'!$AK926<>\"\"),\"Y\",\"N\")))","v":""},{"$f":"IF($B919=\"N\",\"\",IF(OR('Enrollment Form'!$B926<>\"Subscriber\",'Enrollment Form'!$C926=\"ROC\"),\"-\",IF(AND('Enrollment Form'!$B926=\"Subscriber\",'Enrollment Form'!$C926=\"Enroll\",'Enrollment Form'!$AL926<>\"\"),\"Y\",\"N\")))","v":""},{"$f":"IF($B919=\"N\",\"\",IF(OR('Enrollment Form'!$B926<>\"Subscriber\",'Enrollment Form'!$C926=\"ROC\"),\"-\",IF(AND('Enrollment Form'!$B926=\"Subscriber\",'Enrollment Form'!$C926=\"Enroll\",'Enrollment Form'!$AP926<>\"\"),\"Y\",\"N\")))","v":""},{"$f":"IF($B919=\"N\",\"\",IF(OR('Enrollment Form'!$B926<>\"Subscriber\",'Enrollment Form'!$C926=\"ROC\"),\"-\",IF(AND('Enrollment Form'!$B926=\"Subscriber\",'Enrollment Form'!$C926=\"Enroll\",'Enrollment Form'!$AQ926<>\"\"),\"Y\",\"N\")))","v":""},{"$f":"IF($B919=\"N\",\"\",IF(OR('Enrollment Form'!$B926<>\"Subscriber\",'Enrollment Form'!$C926=\"ROC\"),\"-\",IF(AND('Enrollment Form'!$B926=\"Subscriber\",'Enrollment Form'!$C926=\"Enroll\",'Enrollment Form'!$AS926<>\"\"),\"Y\",\"N\")))","v":""},{"$f":"IF($B919=\"N\",\"\",IF($Q919=\"-\",\"-\",IF(AND($Q919=\"Y\",'Enrollment Form'!$AS926=\"No\"),\"-\",IF(AND($Q919=\"Y\",'Enrollment Form'!$AS926=\"Yes\",'Enrollment Form'!$AT926<>\"\"),\"Y\",\"N\"))))","v":""},{"$f":"IF($B919=\"N\",\"\",IF(OR('Enrollment Form'!$B926<>\"Subscriber\",'Enrollment Form'!$C926=\"ROC\"),\"-\",IF(AND('Enrollment Form'!$B926=\"Subscriber\",'Enrollment Form'!$C926=\"Enroll\",'Enrollment Form'!$CV926<>\"\"),\"Y\",\"N\")))","v":""},{"$f":"IF($B919=\"N\",\"\",IF($S919=\"-\",\"-\",IF(AND($S919=\"Y\",'Enrollment Form'!$CV926=\"No\"),\"-\",IF(AND($S919=\"Y\",'Enrollment Form'!$CV926=\"Yes\",'Enrollment Form'!$CW926<>\"\"),\"Y\",\"N\"))))","v":""},{"$f":"IF(OR('Enrollment Form'!$AY926=\"Yes\",'Enrollment Form'!$AY926=\"\"),\"-\",IF(OR(AND('Enrollment Form'!$AY926=\"No\",ISERROR(FIND(\"HMO\",VLOOKUP('Enrollment Form'!G926,'Enrollment Form'!H$11:J$1000,3,FALSE),1))=FALSE,COUNTA('Enrollment Form'!$AZ926:$BC926)=4),AND('Enrollment Form'!$AY926=\"No\",ISERROR(FIND(\"HMO\",VLOOKUP('Enrollment Form'!G926,'Enrollment Form'!H$11:J$1000,3,FALSE),1))=FALSE,COUNTA('Enrollment Form'!$BT926:$BW926)=4)),\"Y\",\"N\"))","v":"-"},{"$f":"IF($B919=\"N\",\"\",IF('Enrollment Form'!$B926=\"Subscriber\",\"-\",IF(COUNTA('Enrollment Form'!$BL926,'Enrollment Form'!$BN926)=2,\"Y\",\"N\")))","v":""},{"$f":"IF($B919=\"N\",\"\",IF(OR('Enrollment Form'!$AX926=\"\",'Enrollment Form'!$AX926=\"No\"),\"-\",IF(AND('Enrollment Form'!$AX926=\"Yes\",COUNTA('Enrollment Form'!$CR926)=1),\"Y\",\"N\")))","v":""},{"$f":"IF(OR('Enrollment Form'!$CR926=\"\",'Enrollment Form'!$CR926=\"No\"),\"-\",IF(COUNTA('Enrollment Form'!$CT926:$CU926)=2,\"Y\",\"N\"))","v":"-"},{"$f":"IF($B919=\"N\",\"\",IF(COUNTIF('Enrollment Form'!$DG926:$DP926,\"Other\")=COUNTA('Enrollment Form'!$DK926,'Enrollment Form'!$DH926,'Enrollment Form'!$DN926,'Enrollment Form'!$DQ926),\"Y\",\"N\"))","v":""},{"$f":"IF($B919=\"N\",\"\",IF(OR('Enrollment Form'!B926<>\"Subscriber\",'Enrollment Form'!C926=\"ROC\",COUNTIF('Enrollment Form'!AV926:AW926,\"Yes\")>=1),\"-\",IF(AND('Enrollment Form'!C926=\"Enroll\",COUNTIF('Enrollment Form'!AV926:AW926,\"No\")=2,'Enrollment Form'!AX926=\"\"),\"N\",\"Y\")))","v":""},{"$f":"IF(OR(B919=\"N\",'Enrollment Form'!B926<>\"Subscriber\",'Enrollment Form'!C926=\"ROC\",'Enrollment Form'!O926<>\"Multiple of Salary\"),\"-\",IF(COUNTA('Enrollment Form'!T926:U926)<2,\"N\",\"Y\"))","v":"-"},{"$f":"IF(B919=\"N\",\"\",IF(OR('Enrollment Form'!C926=\"ROC\",'Enrollment Form'!B926<>\"Subscriber\",'Enrollment Form'!O926=\"Waive\",'Enrollment Form'!O926=\"\"),\"-\",IF('Enrollment Form'!P926=\"\",\"N\",\"Y\")))","v":""},{"$f":"IF($B919=\"N\",\"\",IF(AND('Enrollment Form'!$C926=\"ROC\",'Enrollment Form'!$DR926<>\"\"),\"Y\",IF(AND('Enrollment Form'!$C926=\"ROC\",'Enrollment Form'!$DR926=\"\"),\"N\",IF(AND('Enrollment Form'!$C926=\"Enroll\",'Enrollment Form'!$B926=\"Subscriber\",'Enrollment Form'!$CX926=\"No\",'Enrollment Form'!$DR926=\"\"),\"N\",IF(AND('Enrollment Form'!$C926=\"Enroll\",'Enrollment Form'!$B926=\"Subscriber\",'Enrollment Form'!$CX926=\"Yes\"),\"-\",\"Y\")))))","v":""},{"$f":"IF($B919=\"N\",\"\",IF(AND('Enrollment Form'!$C926=\"ROC\",'Enrollment Form'!$DS926<>\"\"),\"Y\",IF(AND('Enrollment Form'!$C926=\"ROC\",'Enrollment Form'!$DS926=\"\"),\"N\",IF(AND('Enrollment Form'!$C926=\"Enroll\",'Enrollment Form'!$B926=\"Subscriber\",'Enrollment Form'!$CX926=\"No\",'Enrollment Form'!$DS926=\"\"),\"N\",IF(AND('Enrollment Form'!$C926=\"Enroll\",'Enrollment Form'!$B926=\"Subscriber\",'Enrollment Form'!$CX926=\"Yes\"),\"-\",\"Y\")))))","v":""},{"$f":"IF('Enrollment Form'!AH926=\"\",\"\",IF(ISERROR(SEARCH(\".\",'Enrollment Form'!AH926,SEARCH(\"@\",'Enrollment Form'!AH926))),\"N\",\"Y\"))","v":""},{"$f":"IF(OR($B919=\"N\",'Enrollment Form'!$G926=\"\"),\"\",IF('Enrollment Form'!$B926<>\"Subscriber\",\"-\",IF(COUNTIF('Enrollment Form'!$AV926:$AW926,\"Yes\")=2,\"N\",\"Y\")))","v":""},{"$f":"IF(OR('Enrollment Form'!$CJ926=\"\",'Enrollment Form'!$CJ926=\"No\"),\"-\",IF(AND('Enrollment Form'!$CJ926=\"Yes\",'Enrollment Form'!$CK926=\"\"),\"N\",\"Y\"))","v":"-"},{"$f":"IF(OR('Enrollment Form'!$CL926=\"\",'Enrollment Form'!$CL926=\"No\"),\"-\",IF(AND('Enrollment Form'!$CL926=\"Yes\",'Enrollment Form'!$CM926=\"\"),\"N\",\"Y\"))","v":"-"},{"$f":"IF(OR('Enrollment Form'!$CN926=\"\",'Enrollment Form'!$CN926=\"No\"),\"-\",IF(AND('Enrollment Form'!$CN926=\"Yes\",'Enrollment Form'!$CO926=\"\"),\"N\",\"Y\"))","v":"-"},{"$f":"IF(OR('Enrollment Form'!$CN926=\"\",'Enrollment Form'!$CN926=\"No\"),\"-\",IF(AND('Enrollment Form'!$CN926=\"Yes\",'Enrollment Form'!$CP926=\"\"),\"N\",\"Y\"))","v":"-"},{"$f":"IF('Enrollment Form'!B926<>\"Subscriber\",\"-\",IF(AND('Enrollment Form'!B926=\"Subscriber\",'Enrollment Form'!C926=\"Enroll\",'Enrollment Form'!AA926=\"\"),\"N\",\"Y\"))","v":"-"},{"$f":"IF(OR('Enrollment Form'!B926=\"Subscriber\",'Enrollment Form'!B926=\"\"),\"-\",IF('Enrollment Form'!BP926=\"\",\"N\",\"Y\"))","v":"-"},{"$f":"IF('Enrollment Form'!B926<>\"Subscriber\",\"-\",IF(AND('Enrollment Form'!B926=\"Subscriber\",'Enrollment Form'!G926=\"\"),\"N\",\"Y\"))","v":"-"},{"$f":"IF('Enrollment Form'!A926=\"\",\"\",IF('Enrollment Form'!B926=\"Subscriber\",\"-\",IF(AND('Enrollment Form'!B926<>\"Subscriber\",'Enrollment Form'!G926='Enrollment Form'!H926),\"N\",\"Y\")))","v":""},0]
[927,{"$f":"IF('Enrollment Form'!$A927<>\"\",\"Y\",\"N\")","v":"N"},{"$f":"IF(AND('Enrollment Form'!$B927=\"\",'Enrollment Form'!$C927<>\"\"),\"N\",IF($B920=\"N\",\"\",\"Y\"))","v":""},{"$f":"IF(OR($B920=\"N\",'Enrollment Form'!G927=\"\"),\"\",IF('Enrollment Form'!$B927<>\"Subscriber\",\"\",IF('Enrollment Form'!$G927='Enrollment Form'!$H927,\"Y\",\"N\")))","v":""},{"$f":"IF($B920=\"N\",\"\",IF(AND(COUNTIFS('Enrollment Form'!$H$11:$H$1000,'Enrollment Form'!$H927,'Enrollment Form'!$B$11:$B$1000,'Enrollment Form'!$B927)>1,'Enrollment Form'!$H927<>\"\"),\"N\",\"Y\"))","v":""},{"$f":"IF($B920=\"N\",\"\",IF(LEN('Enrollment Form'!$Y927)=0,\"\",IF(LEN('Enrollment Form'!$Y927)<>5,\"N\",\"Y\")))","v":""},{"$f":"IF($B920=\"N\",\"\",IF(LEN('Enrollment Form'!$AD927=0),\"\",IF(LEN('Enrollment Form'!$AD927)<>5,\"N\",\"Y\")))","v":""},{"$f":"IF($B920=\"N\",\"\",IF(LEN('Enrollment Form'!$BS927=0),\"\",IF(LEN('Enrollment Form'!$BS927)<>5,\"N\",\"Y\")))","v":""},{"$f":"IF($B920=\"N\",\"\",IF(LEN('Enrollment Form'!$AE927)=0,\"\",IF(LEN('Enrollment Form'!$AE927)<>10,\"N\",\"Y\")))","v":""},{"$f":"IF($B920=\"N\",\"\",IF(LEN('Enrollment Form'!$AF927)=0,\"\",IF(LEN('Enrollment Form'!$AF927)<>10,\"N\",\"Y\")))","v":""},{"$f":"IF('Enrollment Form'!$O927<>\"Graded\",\"-\",IF(AND('Enrollment Form'!$O927=\"Graded\",'Enrollment Form'!$AR927<>\"\"),\"Y\",\"N\"))","v":"-"},{"$f":"IF($B920=\"N\",\"\",IF(OR('Enrollment Form'!$B927<>\"Subscriber\",'Enrollment Form'!$C927=\"ROC\"),\"-\",IF(AND('Enrollment Form'!$B927=\"Subscriber\",'Enrollment Form'!$C927=\"Enroll\",'Enrollment Form'!$AJ927<>\"\"),\"Y\",\"N\")))","v":""},{"$f":"IF($B920=\"N\",\"\",IF(OR('Enrollment Form'!$B927<>\"Subscriber\",'Enrollment Form'!$C927=\"ROC\"),\"-\",IF(AND('Enrollment Form'!$B927=\"Subscriber\",'Enrollment Form'!$C927=\"Enroll\",'Enrollment Form'!$AK927<>\"\"),\"Y\",\"N\")))","v":""},{"$f":"IF($B920=\"N\",\"\",IF(OR('Enrollment Form'!$B927<>\"Subscriber\",'Enrollment Form'!$C927=\"ROC\"),\"-\",IF(AND('Enrollment Form'!$B927=\"Subscriber\",'Enrollment Form'!$C927=\"Enroll\",'Enrollment Form'!$AL927<>\"\"),\"Y\",\"N\")))","v":""},{"$f":"IF($B920=\"N\",\"\",IF(OR('Enrollment Form'!$B927<>\"Subscriber\",'Enrollment Form'!$C927=\"ROC\"),\"-\",IF(AND('Enrollment Form'!$B927=\"Subscriber\",'Enrollment Form'!$C927=\"Enroll\",'Enrollment Form'!$AP927<>\"\"),\"Y\",\"N\")))","v":""},{"$f":"IF($B920=\"N\",\"\",IF(OR('Enrollment Form'!$B927<>\"Subscriber\",'Enrollment Form'!$C927=\"ROC\"),\"-\",IF(AND('Enrollment Form'!$B927=\"Subscriber\",'Enrollment Form'!$C927=\"Enroll\",'Enrollment Form'!$AQ927<>\"\"),\"Y\",\"N\")))","v":""},{"$f":"IF($B920=\"N\",\"\",IF(OR('Enrollment Form'!$B927<>\"Subscriber\",'Enrollment Form'!$C927=\"ROC\"),\"-\",IF(AND('Enrollment Form'!$B927=\"Subscriber\",'Enrollment Form'!$C927=\"Enroll\",'Enrollment Form'!$AS927<>\"\"),\"Y\",\"N\")))","v":""},{"$f":"IF($B920=\"N\",\"\",IF($Q920=\"-\",\"-\",IF(AND($Q920=\"Y\",'Enrollment Form'!$AS927=\"No\"),\"-\",IF(AND($Q920=\"Y\",'Enrollment Form'!$AS927=\"Yes\",'Enrollment Form'!$AT927<>\"\"),\"Y\",\"N\"))))","v":""},{"$f":"IF($B920=\"N\",\"\",IF(OR('Enrollment Form'!$B927<>\"Subscriber\",'Enrollment Form'!$C927=\"ROC\"),\"-\",IF(AND('Enrollment Form'!$B927=\"Subscriber\",'Enrollment Form'!$C927=\"Enroll\",'Enrollment Form'!$CV927<>\"\"),\"Y\",\"N\")))","v":""},{"$f":"IF($B920=\"N\",\"\",IF($S920=\"-\",\"-\",IF(AND($S920=\"Y\",'Enrollment Form'!$CV927=\"No\"),\"-\",IF(AND($S920=\"Y\",'Enrollment Form'!$CV927=\"Yes\",'Enrollment Form'!$CW927<>\"\"),\"Y\",\"N\"))))","v":""},{"$f":"IF(OR('Enrollment Form'!$AY927=\"Yes\",'Enrollment Form'!$AY927=\"\"),\"-\",IF(OR(AND('Enrollment Form'!$AY927=\"No\",ISERROR(FIND(\"HMO\",VLOOKUP('Enrollment Form'!G927,'Enrollment Form'!H$11:J$1000,3,FALSE),1))=FALSE,COUNTA('Enrollment Form'!$AZ927:$BC927)=4),AND('Enrollment Form'!$AY927=\"No\",ISERROR(FIND(\"HMO\",VLOOKUP('Enrollment Form'!G927,'Enrollment Form'!H$11:J$1000,3,FALSE),1))=FALSE,COUNTA('Enrollment Form'!$BT927:$BW927)=4)),\"Y\",\"N\"))","v":"-"},{"$f":"IF($B920=\"N\",\"\",IF('Enrollment Form'!$B927=\"Subscriber\",\"-\",IF(COUNTA('Enrollment Form'!$BL927,'Enrollment Form'!$BN927)=2,\"Y\",\"N\")))","v":""},{"$f":"IF($B920=\"N\",\"\",IF(OR('Enrollment Form'!$AX927=\"\",'Enrollment Form'!$AX927=\"No\"),\"-\",IF(AND('Enrollment Form'!$AX927=\"Yes\",COUNTA('Enrollment Form'!$CR927)=1),\"Y\",\"N\")))","v":""},{"$f":"IF(OR('Enrollment Form'!$CR927=\"\",'Enrollment Form'!$CR927=\"No\"),\"-\",IF(COUNTA('Enrollment Form'!$CT927:$CU927)=2,\"Y\",\"N\"))","v":"-"},{"$f":"IF($B920=\"N\",\"\",IF(COUNTIF('Enrollment Form'!$DG927:$DP927,\"Other\")=COUNTA('Enrollment Form'!$DK927,'Enrollment Form'!$DH927,'Enrollment Form'!$DN927,'Enrollment Form'!$DQ927),\"Y\",\"N\"))","v":""},{"$f":"IF($B920=\"N\",\"\",IF(OR('Enrollment Form'!B927<>\"Subscriber\",'Enrollment Form'!C927=\"ROC\",COUNTIF('Enrollment Form'!AV927:AW927,\"Yes\")>=1),\"-\",IF(AND('Enrollment Form'!C927=\"Enroll\",COUNTIF('Enrollment Form'!AV927:AW927,\"No\")=2,'Enrollment Form'!AX927=\"\"),\"N\",\"Y\")))","v":""},{"$f":"IF(OR(B920=\"N\",'Enrollment Form'!B927<>\"Subscriber\",'Enrollment Form'!C927=\"ROC\",'Enrollment Form'!O927<>\"Multiple of Salary\"),\"-\",IF(COUNTA('Enrollment Form'!T927:U927)<2,\"N\",\"Y\"))","v":"-"},{"$f":"IF(B920=\"N\",\"\",IF(OR('Enrollment Form'!C927=\"ROC\",'Enrollment Form'!B927<>\"Subscriber\",'Enrollment Form'!O927=\"Waive\",'Enrollment Form'!O927=\"\"),\"-\",IF('Enrollment Form'!P927=\"\",\"N\",\"Y\")))","v":""},{"$f":"IF($B920=\"N\",\"\",IF(AND('Enrollment Form'!$C927=\"ROC\",'Enrollment Form'!$DR927<>\"\"),\"Y\",IF(AND('Enrollment Form'!$C927=\"ROC\",'Enrollment Form'!$DR927=\"\"),\"N\",IF(AND('Enrollment Form'!$C927=\"Enroll\",'Enrollment Form'!$B927=\"Subscriber\",'Enrollment Form'!$CX927=\"No\",'Enrollment Form'!$DR927=\"\"),\"N\",IF(AND('Enrollment Form'!$C927=\"Enroll\",'Enrollment Form'!$B927=\"Subscriber\",'Enrollment Form'!$CX927=\"Yes\"),\"-\",\"Y\")))))","v":""},{"$f":"IF($B920=\"N\",\"\",IF(AND('Enrollment Form'!$C927=\"ROC\",'Enrollment Form'!$DS927<>\"\"),\"Y\",IF(AND('Enrollment Form'!$C927=\"ROC\",'Enrollment Form'!$DS927=\"\"),\"N\",IF(AND('Enrollment Form'!$C927=\"Enroll\",'Enrollment Form'!$B927=\"Subscriber\",'Enrollment Form'!$CX927=\"No\",'Enrollment Form'!$DS927=\"\"),\"N\",IF(AND('Enrollment Form'!$C927=\"Enroll\",'Enrollment Form'!$B927=\"Subscriber\",'Enrollment Form'!$CX927=\"Yes\"),\"-\",\"Y\")))))","v":""},{"$f":"IF('Enrollment Form'!AH927=\"\",\"\",IF(ISERROR(SEARCH(\".\",'Enrollment Form'!AH927,SEARCH(\"@\",'Enrollment Form'!AH927))),\"N\",\"Y\"))","v":""},{"$f":"IF(OR($B920=\"N\",'Enrollment Form'!$G927=\"\"),\"\",IF('Enrollment Form'!$B927<>\"Subscriber\",\"-\",IF(COUNTIF('Enrollment Form'!$AV927:$AW927,\"Yes\")=2,\"N\",\"Y\")))","v":""},{"$f":"IF(OR('Enrollment Form'!$CJ927=\"\",'Enrollment Form'!$CJ927=\"No\"),\"-\",IF(AND('Enrollment Form'!$CJ927=\"Yes\",'Enrollment Form'!$CK927=\"\"),\"N\",\"Y\"))","v":"-"},{"$f":"IF(OR('Enrollment Form'!$CL927=\"\",'Enrollment Form'!$CL927=\"No\"),\"-\",IF(AND('Enrollment Form'!$CL927=\"Yes\",'Enrollment Form'!$CM927=\"\"),\"N\",\"Y\"))","v":"-"},{"$f":"IF(OR('Enrollment Form'!$CN927=\"\",'Enrollment Form'!$CN927=\"No\"),\"-\",IF(AND('Enrollment Form'!$CN927=\"Yes\",'Enrollment Form'!$CO927=\"\"),\"N\",\"Y\"))","v":"-"},{"$f":"IF(OR('Enrollment Form'!$CN927=\"\",'Enrollment Form'!$CN927=\"No\"),\"-\",IF(AND('Enrollment Form'!$CN927=\"Yes\",'Enrollment Form'!$CP927=\"\"),\"N\",\"Y\"))","v":"-"},{"$f":"IF('Enrollment Form'!B927<>\"Subscriber\",\"-\",IF(AND('Enrollment Form'!B927=\"Subscriber\",'Enrollment Form'!C927=\"Enroll\",'Enrollment Form'!AA927=\"\"),\"N\",\"Y\"))","v":"-"},{"$f":"IF(OR('Enrollment Form'!B927=\"Subscriber\",'Enrollment Form'!B927=\"\"),\"-\",IF('Enrollment Form'!BP927=\"\",\"N\",\"Y\"))","v":"-"},{"$f":"IF('Enrollment Form'!B927<>\"Subscriber\",\"-\",IF(AND('Enrollment Form'!B927=\"Subscriber\",'Enrollment Form'!G927=\"\"),\"N\",\"Y\"))","v":"-"},{"$f":"IF('Enrollment Form'!A927=\"\",\"\",IF('Enrollment Form'!B927=\"Subscriber\",\"-\",IF(AND('Enrollment Form'!B927<>\"Subscriber\",'Enrollment Form'!G927='Enrollment Form'!H927),\"N\",\"Y\")))","v":""},0]
[928,{"$f":"IF('Enrollment Form'!$A928<>\"\",\"Y\",\"N\")","v":"N"},{"$f":"IF(AND('Enrollment Form'!$B928=\"\",'Enrollment Form'!$C928<>\"\"),\"N\",IF($B921=\"N\",\"\",\"Y\"))","v":""},{"$f":"IF(OR($B921=\"N\",'Enrollment Form'!G928=\"\"),\"\",IF('Enrollment Form'!$B928<>\"Subscriber\",\"\",IF('Enrollment Form'!$G928='Enrollment Form'!$H928,\"Y\",\"N\")))","v":""},{"$f":"IF($B921=\"N\",\"\",IF(AND(COUNTIFS('Enrollment Form'!$H$11:$H$1000,'Enrollment Form'!$H928,'Enrollment Form'!$B$11:$B$1000,'Enrollment Form'!$B928)>1,'Enrollment Form'!$H928<>\"\"),\"N\",\"Y\"))","v":""},{"$f":"IF($B921=\"N\",\"\",IF(LEN('Enrollment Form'!$Y928)=0,\"\",IF(LEN('Enrollment Form'!$Y928)<>5,\"N\",\"Y\")))","v":""},{"$f":"IF($B921=\"N\",\"\",IF(LEN('Enrollment Form'!$AD928=0),\"\",IF(LEN('Enrollment Form'!$AD928)<>5,\"N\",\"Y\")))","v":""},{"$f":"IF($B921=\"N\",\"\",IF(LEN('Enrollment Form'!$BS928=0),\"\",IF(LEN('Enrollment Form'!$BS928)<>5,\"N\",\"Y\")))","v":""},{"$f":"IF($B921=\"N\",\"\",IF(LEN('Enrollment Form'!$AE928)=0,\"\",IF(LEN('Enrollment Form'!$AE928)<>10,\"N\",\"Y\")))","v":""},{"$f":"IF($B921=\"N\",\"\",IF(LEN('Enrollment Form'!$AF928)=0,\"\",IF(LEN('Enrollment Form'!$AF928)<>10,\"N\",\"Y\")))","v":""},{"$f":"IF('Enrollment Form'!$O928<>\"Graded\",\"-\",IF(AND('Enrollment Form'!$O928=\"Graded\",'Enrollment Form'!$AR928<>\"\"),\"Y\",\"N\"))","v":"-"},{"$f":"IF($B921=\"N\",\"\",IF(OR('Enrollment Form'!$B928<>\"Subscriber\",'Enrollment Form'!$C928=\"ROC\"),\"-\",IF(AND('Enrollment Form'!$B928=\"Subscriber\",'Enrollment Form'!$C928=\"Enroll\",'Enrollment Form'!$AJ928<>\"\"),\"Y\",\"N\")))","v":""},{"$f":"IF($B921=\"N\",\"\",IF(OR('Enrollment Form'!$B928<>\"Subscriber\",'Enrollment Form'!$C928=\"ROC\"),\"-\",IF(AND('Enrollment Form'!$B928=\"Subscriber\",'Enrollment Form'!$C928=\"Enroll\",'Enrollment Form'!$AK928<>\"\"),\"Y\",\"N\")))","v":""},{"$f":"IF($B921=\"N\",\"\",IF(OR('Enrollment Form'!$B928<>\"Subscriber\",'Enrollment Form'!$C928=\"ROC\"),\"-\",IF(AND('Enrollment Form'!$B928=\"Subscriber\",'Enrollment Form'!$C928=\"Enroll\",'Enrollment Form'!$AL928<>\"\"),\"Y\",\"N\")))","v":""},{"$f":"IF($B921=\"N\",\"\",IF(OR('Enrollment Form'!$B928<>\"Subscriber\",'Enrollment Form'!$C928=\"ROC\"),\"-\",IF(AND('Enrollment Form'!$B928=\"Subscriber\",'Enrollment Form'!$C928=\"Enroll\",'Enrollment Form'!$AP928<>\"\"),\"Y\",\"N\")))","v":""},{"$f":"IF($B921=\"N\",\"\",IF(OR('Enrollment Form'!$B928<>\"Subscriber\",'Enrollment Form'!$C928=\"ROC\"),\"-\",IF(AND('Enrollment Form'!$B928=\"Subscriber\",'Enrollment Form'!$C928=\"Enroll\",'Enrollment Form'!$AQ928<>\"\"),\"Y\",\"N\")))","v":""},{"$f":"IF($B921=\"N\",\"\",IF(OR('Enrollment Form'!$B928<>\"Subscriber\",'Enrollment Form'!$C928=\"ROC\"),\"-\",IF(AND('Enrollment Form'!$B928=\"Subscriber\",'Enrollment Form'!$C928=\"Enroll\",'Enrollment Form'!$AS928<>\"\"),\"Y\",\"N\")))","v":""},{"$f":"IF($B921=\"N\",\"\",IF($Q921=\"-\",\"-\",IF(AND($Q921=\"Y\",'Enrollment Form'!$AS928=\"No\"),\"-\",IF(AND($Q921=\"Y\",'Enrollment Form'!$AS928=\"Yes\",'Enrollment Form'!$AT928<>\"\"),\"Y\",\"N\"))))","v":""},{"$f":"IF($B921=\"N\",\"\",IF(OR('Enrollment Form'!$B928<>\"Subscriber\",'Enrollment Form'!$C928=\"ROC\"),\"-\",IF(AND('Enrollment Form'!$B928=\"Subscriber\",'Enrollment Form'!$C928=\"Enroll\",'Enrollment Form'!$CV928<>\"\"),\"Y\",\"N\")))","v":""},{"$f":"IF($B921=\"N\",\"\",IF($S921=\"-\",\"-\",IF(AND($S921=\"Y\",'Enrollment Form'!$CV928=\"No\"),\"-\",IF(AND($S921=\"Y\",'Enrollment Form'!$CV928=\"Yes\",'Enrollment Form'!$CW928<>\"\"),\"Y\",\"N\"))))","v":""},{"$f":"IF(OR('Enrollment Form'!$AY928=\"Yes\",'Enrollment Form'!$AY928=\"\"),\"-\",IF(OR(AND('Enrollment Form'!$AY928=\"No\",ISERROR(FIND(\"HMO\",VLOOKUP('Enrollment Form'!G928,'Enrollment Form'!H$11:J$1000,3,FALSE),1))=FALSE,COUNTA('Enrollment Form'!$AZ928:$BC928)=4),AND('Enrollment Form'!$AY928=\"No\",ISERROR(FIND(\"HMO\",VLOOKUP('Enrollment Form'!G928,'Enrollment Form'!H$11:J$1000,3,FALSE),1))=FALSE,COUNTA('Enrollment Form'!$BT928:$BW928)=4)),\"Y\",\"N\"))","v":"-"},{"$f":"IF($B921=\"N\",\"\",IF('Enrollment Form'!$B928=\"Subscriber\",\"-\",IF(COUNTA('Enrollment Form'!$BL928,'Enrollment Form'!$BN928)=2,\"Y\",\"N\")))","v":""},{"$f":"IF($B921=\"N\",\"\",IF(OR('Enrollment Form'!$AX928=\"\",'Enrollment Form'!$AX928=\"No\"),\"-\",IF(AND('Enrollment Form'!$AX928=\"Yes\",COUNTA('Enrollment Form'!$CR928)=1),\"Y\",\"N\")))","v":""},{"$f":"IF(OR('Enrollment Form'!$CR928=\"\",'Enrollment Form'!$CR928=\"No\"),\"-\",IF(COUNTA('Enrollment Form'!$CT928:$CU928)=2,\"Y\",\"N\"))","v":"-"},{"$f":"IF($B921=\"N\",\"\",IF(COUNTIF('Enrollment Form'!$DG928:$DP928,\"Other\")=COUNTA('Enrollment Form'!$DK928,'Enrollment Form'!$DH928,'Enrollment Form'!$DN928,'Enrollment Form'!$DQ928),\"Y\",\"N\"))","v":""},{"$f":"IF($B921=\"N\",\"\",IF(OR('Enrollment Form'!B928<>\"Subscriber\",'Enrollment Form'!C928=\"ROC\",COUNTIF('Enrollment Form'!AV928:AW928,\"Yes\")>=1),\"-\",IF(AND('Enrollment Form'!C928=\"Enroll\",COUNTIF('Enrollment Form'!AV928:AW928,\"No\")=2,'Enrollment Form'!AX928=\"\"),\"N\",\"Y\")))","v":""},{"$f":"IF(OR(B921=\"N\",'Enrollment Form'!B928<>\"Subscriber\",'Enrollment Form'!C928=\"ROC\",'Enrollment Form'!O928<>\"Multiple of Salary\"),\"-\",IF(COUNTA('Enrollment Form'!T928:U928)<2,\"N\",\"Y\"))","v":"-"},{"$f":"IF(B921=\"N\",\"\",IF(OR('Enrollment Form'!C928=\"ROC\",'Enrollment Form'!B928<>\"Subscriber\",'Enrollment Form'!O928=\"Waive\",'Enrollment Form'!O928=\"\"),\"-\",IF('Enrollment Form'!P928=\"\",\"N\",\"Y\")))","v":""},{"$f":"IF($B921=\"N\",\"\",IF(AND('Enrollment Form'!$C928=\"ROC\",'Enrollment Form'!$DR928<>\"\"),\"Y\",IF(AND('Enrollment Form'!$C928=\"ROC\",'Enrollment Form'!$DR928=\"\"),\"N\",IF(AND('Enrollment Form'!$C928=\"Enroll\",'Enrollment Form'!$B928=\"Subscriber\",'Enrollment Form'!$CX928=\"No\",'Enrollment Form'!$DR928=\"\"),\"N\",IF(AND('Enrollment Form'!$C928=\"Enroll\",'Enrollment Form'!$B928=\"Subscriber\",'Enrollment Form'!$CX928=\"Yes\"),\"-\",\"Y\")))))","v":""},{"$f":"IF($B921=\"N\",\"\",IF(AND('Enrollment Form'!$C928=\"ROC\",'Enrollment Form'!$DS928<>\"\"),\"Y\",IF(AND('Enrollment Form'!$C928=\"ROC\",'Enrollment Form'!$DS928=\"\"),\"N\",IF(AND('Enrollment Form'!$C928=\"Enroll\",'Enrollment Form'!$B928=\"Subscriber\",'Enrollment Form'!$CX928=\"No\",'Enrollment Form'!$DS928=\"\"),\"N\",IF(AND('Enrollment Form'!$C928=\"Enroll\",'Enrollment Form'!$B928=\"Subscriber\",'Enrollment Form'!$CX928=\"Yes\"),\"-\",\"Y\")))))","v":""},{"$f":"IF('Enrollment Form'!AH928=\"\",\"\",IF(ISERROR(SEARCH(\".\",'Enrollment Form'!AH928,SEARCH(\"@\",'Enrollment Form'!AH928))),\"N\",\"Y\"))","v":""},{"$f":"IF(OR($B921=\"N\",'Enrollment Form'!$G928=\"\"),\"\",IF('Enrollment Form'!$B928<>\"Subscriber\",\"-\",IF(COUNTIF('Enrollment Form'!$AV928:$AW928,\"Yes\")=2,\"N\",\"Y\")))","v":""},{"$f":"IF(OR('Enrollment Form'!$CJ928=\"\",'Enrollment Form'!$CJ928=\"No\"),\"-\",IF(AND('Enrollment Form'!$CJ928=\"Yes\",'Enrollment Form'!$CK928=\"\"),\"N\",\"Y\"))","v":"-"},{"$f":"IF(OR('Enrollment Form'!$CL928=\"\",'Enrollment Form'!$CL928=\"No\"),\"-\",IF(AND('Enrollment Form'!$CL928=\"Yes\",'Enrollment Form'!$CM928=\"\"),\"N\",\"Y\"))","v":"-"},{"$f":"IF(OR('Enrollment Form'!$CN928=\"\",'Enrollment Form'!$CN928=\"No\"),\"-\",IF(AND('Enrollment Form'!$CN928=\"Yes\",'Enrollment Form'!$CO928=\"\"),\"N\",\"Y\"))","v":"-"},{"$f":"IF(OR('Enrollment Form'!$CN928=\"\",'Enrollment Form'!$CN928=\"No\"),\"-\",IF(AND('Enrollment Form'!$CN928=\"Yes\",'Enrollment Form'!$CP928=\"\"),\"N\",\"Y\"))","v":"-"},{"$f":"IF('Enrollment Form'!B928<>\"Subscriber\",\"-\",IF(AND('Enrollment Form'!B928=\"Subscriber\",'Enrollment Form'!C928=\"Enroll\",'Enrollment Form'!AA928=\"\"),\"N\",\"Y\"))","v":"-"},{"$f":"IF(OR('Enrollment Form'!B928=\"Subscriber\",'Enrollment Form'!B928=\"\"),\"-\",IF('Enrollment Form'!BP928=\"\",\"N\",\"Y\"))","v":"-"},{"$f":"IF('Enrollment Form'!B928<>\"Subscriber\",\"-\",IF(AND('Enrollment Form'!B928=\"Subscriber\",'Enrollment Form'!G928=\"\"),\"N\",\"Y\"))","v":"-"},{"$f":"IF('Enrollment Form'!A928=\"\",\"\",IF('Enrollment Form'!B928=\"Subscriber\",\"-\",IF(AND('Enrollment Form'!B928<>\"Subscriber\",'Enrollment Form'!G928='Enrollment Form'!H928),\"N\",\"Y\")))","v":""},0]
[929,{"$f":"IF('Enrollment Form'!$A929<>\"\",\"Y\",\"N\")","v":"N"},{"$f":"IF(AND('Enrollment Form'!$B929=\"\",'Enrollment Form'!$C929<>\"\"),\"N\",IF($B922=\"N\",\"\",\"Y\"))","v":""},{"$f":"IF(OR($B922=\"N\",'Enrollment Form'!G929=\"\"),\"\",IF('Enrollment Form'!$B929<>\"Subscriber\",\"\",IF('Enrollment Form'!$G929='Enrollment Form'!$H929,\"Y\",\"N\")))","v":""},{"$f":"IF($B922=\"N\",\"\",IF(AND(COUNTIFS('Enrollment Form'!$H$11:$H$1000,'Enrollment Form'!$H929,'Enrollment Form'!$B$11:$B$1000,'Enrollment Form'!$B929)>1,'Enrollment Form'!$H929<>\"\"),\"N\",\"Y\"))","v":""},{"$f":"IF($B922=\"N\",\"\",IF(LEN('Enrollment Form'!$Y929)=0,\"\",IF(LEN('Enrollment Form'!$Y929)<>5,\"N\",\"Y\")))","v":""},{"$f":"IF($B922=\"N\",\"\",IF(LEN('Enrollment Form'!$AD929=0),\"\",IF(LEN('Enrollment Form'!$AD929)<>5,\"N\",\"Y\")))","v":""},{"$f":"IF($B922=\"N\",\"\",IF(LEN('Enrollment Form'!$BS929=0),\"\",IF(LEN('Enrollment Form'!$BS929)<>5,\"N\",\"Y\")))","v":""},{"$f":"IF($B922=\"N\",\"\",IF(LEN('Enrollment Form'!$AE929)=0,\"\",IF(LEN('Enrollment Form'!$AE929)<>10,\"N\",\"Y\")))","v":""},{"$f":"IF($B922=\"N\",\"\",IF(LEN('Enrollment Form'!$AF929)=0,\"\",IF(LEN('Enrollment Form'!$AF929)<>10,\"N\",\"Y\")))","v":""},{"$f":"IF('Enrollment Form'!$O929<>\"Graded\",\"-\",IF(AND('Enrollment Form'!$O929=\"Graded\",'Enrollment Form'!$AR929<>\"\"),\"Y\",\"N\"))","v":"-"},{"$f":"IF($B922=\"N\",\"\",IF(OR('Enrollment Form'!$B929<>\"Subscriber\",'Enrollment Form'!$C929=\"ROC\"),\"-\",IF(AND('Enrollment Form'!$B929=\"Subscriber\",'Enrollment Form'!$C929=\"Enroll\",'Enrollment Form'!$AJ929<>\"\"),\"Y\",\"N\")))","v":""},{"$f":"IF($B922=\"N\",\"\",IF(OR('Enrollment Form'!$B929<>\"Subscriber\",'Enrollment Form'!$C929=\"ROC\"),\"-\",IF(AND('Enrollment Form'!$B929=\"Subscriber\",'Enrollment Form'!$C929=\"Enroll\",'Enrollment Form'!$AK929<>\"\"),\"Y\",\"N\")))","v":""},{"$f":"IF($B922=\"N\",\"\",IF(OR('Enrollment Form'!$B929<>\"Subscriber\",'Enrollment Form'!$C929=\"ROC\"),\"-\",IF(AND('Enrollment Form'!$B929=\"Subscriber\",'Enrollment Form'!$C929=\"Enroll\",'Enrollment Form'!$AL929<>\"\"),\"Y\",\"N\")))","v":""},{"$f":"IF($B922=\"N\",\"\",IF(OR('Enrollment Form'!$B929<>\"Subscriber\",'Enrollment Form'!$C929=\"ROC\"),\"-\",IF(AND('Enrollment Form'!$B929=\"Subscriber\",'Enrollment Form'!$C929=\"Enroll\",'Enrollment Form'!$AP929<>\"\"),\"Y\",\"N\")))","v":""},{"$f":"IF($B922=\"N\",\"\",IF(OR('Enrollment Form'!$B929<>\"Subscriber\",'Enrollment Form'!$C929=\"ROC\"),\"-\",IF(AND('Enrollment Form'!$B929=\"Subscriber\",'Enrollment Form'!$C929=\"Enroll\",'Enrollment Form'!$AQ929<>\"\"),\"Y\",\"N\")))","v":""},{"$f":"IF($B922=\"N\",\"\",IF(OR('Enrollment Form'!$B929<>\"Subscriber\",'Enrollment Form'!$C929=\"ROC\"),\"-\",IF(AND('Enrollment Form'!$B929=\"Subscriber\",'Enrollment Form'!$C929=\"Enroll\",'Enrollment Form'!$AS929<>\"\"),\"Y\",\"N\")))","v":""},{"$f":"IF($B922=\"N\",\"\",IF($Q922=\"-\",\"-\",IF(AND($Q922=\"Y\",'Enrollment Form'!$AS929=\"No\"),\"-\",IF(AND($Q922=\"Y\",'Enrollment Form'!$AS929=\"Yes\",'Enrollment Form'!$AT929<>\"\"),\"Y\",\"N\"))))","v":""},{"$f":"IF($B922=\"N\",\"\",IF(OR('Enrollment Form'!$B929<>\"Subscriber\",'Enrollment Form'!$C929=\"ROC\"),\"-\",IF(AND('Enrollment Form'!$B929=\"Subscriber\",'Enrollment Form'!$C929=\"Enroll\",'Enrollment Form'!$CV929<>\"\"),\"Y\",\"N\")))","v":""},{"$f":"IF($B922=\"N\",\"\",IF($S922=\"-\",\"-\",IF(AND($S922=\"Y\",'Enrollment Form'!$CV929=\"No\"),\"-\",IF(AND($S922=\"Y\",'Enrollment Form'!$CV929=\"Yes\",'Enrollment Form'!$CW929<>\"\"),\"Y\",\"N\"))))","v":""},{"$f":"IF(OR('Enrollment Form'!$AY929=\"Yes\",'Enrollment Form'!$AY929=\"\"),\"-\",IF(OR(AND('Enrollment Form'!$AY929=\"No\",ISERROR(FIND(\"HMO\",VLOOKUP('Enrollment Form'!G929,'Enrollment Form'!H$11:J$1000,3,FALSE),1))=FALSE,COUNTA('Enrollment Form'!$AZ929:$BC929)=4),AND('Enrollment Form'!$AY929=\"No\",ISERROR(FIND(\"HMO\",VLOOKUP('Enrollment Form'!G929,'Enrollment Form'!H$11:J$1000,3,FALSE),1))=FALSE,COUNTA('Enrollment Form'!$BT929:$BW929)=4)),\"Y\",\"N\"))","v":"-"},{"$f":"IF($B922=\"N\",\"\",IF('Enrollment Form'!$B929=\"Subscriber\",\"-\",IF(COUNTA('Enrollment Form'!$BL929,'Enrollment Form'!$BN929)=2,\"Y\",\"N\")))","v":""},{"$f":"IF($B922=\"N\",\"\",IF(OR('Enrollment Form'!$AX929=\"\",'Enrollment Form'!$AX929=\"No\"),\"-\",IF(AND('Enrollment Form'!$AX929=\"Yes\",COUNTA('Enrollment Form'!$CR929)=1),\"Y\",\"N\")))","v":""},{"$f":"IF(OR('Enrollment Form'!$CR929=\"\",'Enrollment Form'!$CR929=\"No\"),\"-\",IF(COUNTA('Enrollment Form'!$CT929:$CU929)=2,\"Y\",\"N\"))","v":"-"},{"$f":"IF($B922=\"N\",\"\",IF(COUNTIF('Enrollment Form'!$DG929:$DP929,\"Other\")=COUNTA('Enrollment Form'!$DK929,'Enrollment Form'!$DH929,'Enrollment Form'!$DN929,'Enrollment Form'!$DQ929),\"Y\",\"N\"))","v":""},{"$f":"IF($B922=\"N\",\"\",IF(OR('Enrollment Form'!B929<>\"Subscriber\",'Enrollment Form'!C929=\"ROC\",COUNTIF('Enrollment Form'!AV929:AW929,\"Yes\")>=1),\"-\",IF(AND('Enrollment Form'!C929=\"Enroll\",COUNTIF('Enrollment Form'!AV929:AW929,\"No\")=2,'Enrollment Form'!AX929=\"\"),\"N\",\"Y\")))","v":""},{"$f":"IF(OR(B922=\"N\",'Enrollment Form'!B929<>\"Subscriber\",'Enrollment Form'!C929=\"ROC\",'Enrollment Form'!O929<>\"Multiple of Salary\"),\"-\",IF(COUNTA('Enrollment Form'!T929:U929)<2,\"N\",\"Y\"))","v":"-"},{"$f":"IF(B922=\"N\",\"\",IF(OR('Enrollment Form'!C929=\"ROC\",'Enrollment Form'!B929<>\"Subscriber\",'Enrollment Form'!O929=\"Waive\",'Enrollment Form'!O929=\"\"),\"-\",IF('Enrollment Form'!P929=\"\",\"N\",\"Y\")))","v":""},{"$f":"IF($B922=\"N\",\"\",IF(AND('Enrollment Form'!$C929=\"ROC\",'Enrollment Form'!$DR929<>\"\"),\"Y\",IF(AND('Enrollment Form'!$C929=\"ROC\",'Enrollment Form'!$DR929=\"\"),\"N\",IF(AND('Enrollment Form'!$C929=\"Enroll\",'Enrollment Form'!$B929=\"Subscriber\",'Enrollment Form'!$CX929=\"No\",'Enrollment Form'!$DR929=\"\"),\"N\",IF(AND('Enrollment Form'!$C929=\"Enroll\",'Enrollment Form'!$B929=\"Subscriber\",'Enrollment Form'!$CX929=\"Yes\"),\"-\",\"Y\")))))","v":""},{"$f":"IF($B922=\"N\",\"\",IF(AND('Enrollment Form'!$C929=\"ROC\",'Enrollment Form'!$DS929<>\"\"),\"Y\",IF(AND('Enrollment Form'!$C929=\"ROC\",'Enrollment Form'!$DS929=\"\"),\"N\",IF(AND('Enrollment Form'!$C929=\"Enroll\",'Enrollment Form'!$B929=\"Subscriber\",'Enrollment Form'!$CX929=\"No\",'Enrollment Form'!$DS929=\"\"),\"N\",IF(AND('Enrollment Form'!$C929=\"Enroll\",'Enrollment Form'!$B929=\"Subscriber\",'Enrollment Form'!$CX929=\"Yes\"),\"-\",\"Y\")))))","v":""},{"$f":"IF('Enrollment Form'!AH929=\"\",\"\",IF(ISERROR(SEARCH(\".\",'Enrollment Form'!AH929,SEARCH(\"@\",'Enrollment Form'!AH929))),\"N\",\"Y\"))","v":""},{"$f":"IF(OR($B922=\"N\",'Enrollment Form'!$G929=\"\"),\"\",IF('Enrollment Form'!$B929<>\"Subscriber\",\"-\",IF(COUNTIF('Enrollment Form'!$AV929:$AW929,\"Yes\")=2,\"N\",\"Y\")))","v":""},{"$f":"IF(OR('Enrollment Form'!$CJ929=\"\",'Enrollment Form'!$CJ929=\"No\"),\"-\",IF(AND('Enrollment Form'!$CJ929=\"Yes\",'Enrollment Form'!$CK929=\"\"),\"N\",\"Y\"))","v":"-"},{"$f":"IF(OR('Enrollment Form'!$CL929=\"\",'Enrollment Form'!$CL929=\"No\"),\"-\",IF(AND('Enrollment Form'!$CL929=\"Yes\",'Enrollment Form'!$CM929=\"\"),\"N\",\"Y\"))","v":"-"},{"$f":"IF(OR('Enrollment Form'!$CN929=\"\",'Enrollment Form'!$CN929=\"No\"),\"-\",IF(AND('Enrollment Form'!$CN929=\"Yes\",'Enrollment Form'!$CO929=\"\"),\"N\",\"Y\"))","v":"-"},{"$f":"IF(OR('Enrollment Form'!$CN929=\"\",'Enrollment Form'!$CN929=\"No\"),\"-\",IF(AND('Enrollment Form'!$CN929=\"Yes\",'Enrollment Form'!$CP929=\"\"),\"N\",\"Y\"))","v":"-"},{"$f":"IF('Enrollment Form'!B929<>\"Subscriber\",\"-\",IF(AND('Enrollment Form'!B929=\"Subscriber\",'Enrollment Form'!C929=\"Enroll\",'Enrollment Form'!AA929=\"\"),\"N\",\"Y\"))","v":"-"},{"$f":"IF(OR('Enrollment Form'!B929=\"Subscriber\",'Enrollment Form'!B929=\"\"),\"-\",IF('Enrollment Form'!BP929=\"\",\"N\",\"Y\"))","v":"-"},{"$f":"IF('Enrollment Form'!B929<>\"Subscriber\",\"-\",IF(AND('Enrollment Form'!B929=\"Subscriber\",'Enrollment Form'!G929=\"\"),\"N\",\"Y\"))","v":"-"},{"$f":"IF('Enrollment Form'!A929=\"\",\"\",IF('Enrollment Form'!B929=\"Subscriber\",\"-\",IF(AND('Enrollment Form'!B929<>\"Subscriber\",'Enrollment Form'!G929='Enrollment Form'!H929),\"N\",\"Y\")))","v":""},0]
[930,{"$f":"IF('Enrollment Form'!$A930<>\"\",\"Y\",\"N\")","v":"N"},{"$f":"IF(AND('Enrollment Form'!$B930=\"\",'Enrollment Form'!$C930<>\"\"),\"N\",IF($B923=\"N\",\"\",\"Y\"))","v":""},{"$f":"IF(OR($B923=\"N\",'Enrollment Form'!G930=\"\"),\"\",IF('Enrollment Form'!$B930<>\"Subscriber\",\"\",IF('Enrollment Form'!$G930='Enrollment Form'!$H930,\"Y\",\"N\")))","v":""},{"$f":"IF($B923=\"N\",\"\",IF(AND(COUNTIFS('Enrollment Form'!$H$11:$H$1000,'Enrollment Form'!$H930,'Enrollment Form'!$B$11:$B$1000,'Enrollment Form'!$B930)>1,'Enrollment Form'!$H930<>\"\"),\"N\",\"Y\"))","v":""},{"$f":"IF($B923=\"N\",\"\",IF(LEN('Enrollment Form'!$Y930)=0,\"\",IF(LEN('Enrollment Form'!$Y930)<>5,\"N\",\"Y\")))","v":""},{"$f":"IF($B923=\"N\",\"\",IF(LEN('Enrollment Form'!$AD930=0),\"\",IF(LEN('Enrollment Form'!$AD930)<>5,\"N\",\"Y\")))","v":""},{"$f":"IF($B923=\"N\",\"\",IF(LEN('Enrollment Form'!$BS930=0),\"\",IF(LEN('Enrollment Form'!$BS930)<>5,\"N\",\"Y\")))","v":""},{"$f":"IF($B923=\"N\",\"\",IF(LEN('Enrollment Form'!$AE930)=0,\"\",IF(LEN('Enrollment Form'!$AE930)<>10,\"N\",\"Y\")))","v":""},{"$f":"IF($B923=\"N\",\"\",IF(LEN('Enrollment Form'!$AF930)=0,\"\",IF(LEN('Enrollment Form'!$AF930)<>10,\"N\",\"Y\")))","v":""},{"$f":"IF('Enrollment Form'!$O930<>\"Graded\",\"-\",IF(AND('Enrollment Form'!$O930=\"Graded\",'Enrollment Form'!$AR930<>\"\"),\"Y\",\"N\"))","v":"-"},{"$f":"IF($B923=\"N\",\"\",IF(OR('Enrollment Form'!$B930<>\"Subscriber\",'Enrollment Form'!$C930=\"ROC\"),\"-\",IF(AND('Enrollment Form'!$B930=\"Subscriber\",'Enrollment Form'!$C930=\"Enroll\",'Enrollment Form'!$AJ930<>\"\"),\"Y\",\"N\")))","v":""},{"$f":"IF($B923=\"N\",\"\",IF(OR('Enrollment Form'!$B930<>\"Subscriber\",'Enrollment Form'!$C930=\"ROC\"),\"-\",IF(AND('Enrollment Form'!$B930=\"Subscriber\",'Enrollment Form'!$C930=\"Enroll\",'Enrollment Form'!$AK930<>\"\"),\"Y\",\"N\")))","v":""},{"$f":"IF($B923=\"N\",\"\",IF(OR('Enrollment Form'!$B930<>\"Subscriber\",'Enrollment Form'!$C930=\"ROC\"),\"-\",IF(AND('Enrollment Form'!$B930=\"Subscriber\",'Enrollment Form'!$C930=\"Enroll\",'Enrollment Form'!$AL930<>\"\"),\"Y\",\"N\")))","v":""},{"$f":"IF($B923=\"N\",\"\",IF(OR('Enrollment Form'!$B930<>\"Subscriber\",'Enrollment Form'!$C930=\"ROC\"),\"-\",IF(AND('Enrollment Form'!$B930=\"Subscriber\",'Enrollment Form'!$C930=\"Enroll\",'Enrollment Form'!$AP930<>\"\"),\"Y\",\"N\")))","v":""},{"$f":"IF($B923=\"N\",\"\",IF(OR('Enrollment Form'!$B930<>\"Subscriber\",'Enrollment Form'!$C930=\"ROC\"),\"-\",IF(AND('Enrollment Form'!$B930=\"Subscriber\",'Enrollment Form'!$C930=\"Enroll\",'Enrollment Form'!$AQ930<>\"\"),\"Y\",\"N\")))","v":""},{"$f":"IF($B923=\"N\",\"\",IF(OR('Enrollment Form'!$B930<>\"Subscriber\",'Enrollment Form'!$C930=\"ROC\"),\"-\",IF(AND('Enrollment Form'!$B930=\"Subscriber\",'Enrollment Form'!$C930=\"Enroll\",'Enrollment Form'!$AS930<>\"\"),\"Y\",\"N\")))","v":""},{"$f":"IF($B923=\"N\",\"\",IF($Q923=\"-\",\"-\",IF(AND($Q923=\"Y\",'Enrollment Form'!$AS930=\"No\"),\"-\",IF(AND($Q923=\"Y\",'Enrollment Form'!$AS930=\"Yes\",'Enrollment Form'!$AT930<>\"\"),\"Y\",\"N\"))))","v":""},{"$f":"IF($B923=\"N\",\"\",IF(OR('Enrollment Form'!$B930<>\"Subscriber\",'Enrollment Form'!$C930=\"ROC\"),\"-\",IF(AND('Enrollment Form'!$B930=\"Subscriber\",'Enrollment Form'!$C930=\"Enroll\",'Enrollment Form'!$CV930<>\"\"),\"Y\",\"N\")))","v":""},{"$f":"IF($B923=\"N\",\"\",IF($S923=\"-\",\"-\",IF(AND($S923=\"Y\",'Enrollment Form'!$CV930=\"No\"),\"-\",IF(AND($S923=\"Y\",'Enrollment Form'!$CV930=\"Yes\",'Enrollment Form'!$CW930<>\"\"),\"Y\",\"N\"))))","v":""},{"$f":"IF(OR('Enrollment Form'!$AY930=\"Yes\",'Enrollment Form'!$AY930=\"\"),\"-\",IF(OR(AND('Enrollment Form'!$AY930=\"No\",ISERROR(FIND(\"HMO\",VLOOKUP('Enrollment Form'!G930,'Enrollment Form'!H$11:J$1000,3,FALSE),1))=FALSE,COUNTA('Enrollment Form'!$AZ930:$BC930)=4),AND('Enrollment Form'!$AY930=\"No\",ISERROR(FIND(\"HMO\",VLOOKUP('Enrollment Form'!G930,'Enrollment Form'!H$11:J$1000,3,FALSE),1))=FALSE,COUNTA('Enrollment Form'!$BT930:$BW930)=4)),\"Y\",\"N\"))","v":"-"},{"$f":"IF($B923=\"N\",\"\",IF('Enrollment Form'!$B930=\"Subscriber\",\"-\",IF(COUNTA('Enrollment Form'!$BL930,'Enrollment Form'!$BN930)=2,\"Y\",\"N\")))","v":""},{"$f":"IF($B923=\"N\",\"\",IF(OR('Enrollment Form'!$AX930=\"\",'Enrollment Form'!$AX930=\"No\"),\"-\",IF(AND('Enrollment Form'!$AX930=\"Yes\",COUNTA('Enrollment Form'!$CR930)=1),\"Y\",\"N\")))","v":""},{"$f":"IF(OR('Enrollment Form'!$CR930=\"\",'Enrollment Form'!$CR930=\"No\"),\"-\",IF(COUNTA('Enrollment Form'!$CT930:$CU930)=2,\"Y\",\"N\"))","v":"-"},{"$f":"IF($B923=\"N\",\"\",IF(COUNTIF('Enrollment Form'!$DG930:$DP930,\"Other\")=COUNTA('Enrollment Form'!$DK930,'Enrollment Form'!$DH930,'Enrollment Form'!$DN930,'Enrollment Form'!$DQ930),\"Y\",\"N\"))","v":""},{"$f":"IF($B923=\"N\",\"\",IF(OR('Enrollment Form'!B930<>\"Subscriber\",'Enrollment Form'!C930=\"ROC\",COUNTIF('Enrollment Form'!AV930:AW930,\"Yes\")>=1),\"-\",IF(AND('Enrollment Form'!C930=\"Enroll\",COUNTIF('Enrollment Form'!AV930:AW930,\"No\")=2,'Enrollment Form'!AX930=\"\"),\"N\",\"Y\")))","v":""},{"$f":"IF(OR(B923=\"N\",'Enrollment Form'!B930<>\"Subscriber\",'Enrollment Form'!C930=\"ROC\",'Enrollment Form'!O930<>\"Multiple of Salary\"),\"-\",IF(COUNTA('Enrollment Form'!T930:U930)<2,\"N\",\"Y\"))","v":"-"},{"$f":"IF(B923=\"N\",\"\",IF(OR('Enrollment Form'!C930=\"ROC\",'Enrollment Form'!B930<>\"Subscriber\",'Enrollment Form'!O930=\"Waive\",'Enrollment Form'!O930=\"\"),\"-\",IF('Enrollment Form'!P930=\"\",\"N\",\"Y\")))","v":""},{"$f":"IF($B923=\"N\",\"\",IF(AND('Enrollment Form'!$C930=\"ROC\",'Enrollment Form'!$DR930<>\"\"),\"Y\",IF(AND('Enrollment Form'!$C930=\"ROC\",'Enrollment Form'!$DR930=\"\"),\"N\",IF(AND('Enrollment Form'!$C930=\"Enroll\",'Enrollment Form'!$B930=\"Subscriber\",'Enrollment Form'!$CX930=\"No\",'Enrollment Form'!$DR930=\"\"),\"N\",IF(AND('Enrollment Form'!$C930=\"Enroll\",'Enrollment Form'!$B930=\"Subscriber\",'Enrollment Form'!$CX930=\"Yes\"),\"-\",\"Y\")))))","v":""},{"$f":"IF($B923=\"N\",\"\",IF(AND('Enrollment Form'!$C930=\"ROC\",'Enrollment Form'!$DS930<>\"\"),\"Y\",IF(AND('Enrollment Form'!$C930=\"ROC\",'Enrollment Form'!$DS930=\"\"),\"N\",IF(AND('Enrollment Form'!$C930=\"Enroll\",'Enrollment Form'!$B930=\"Subscriber\",'Enrollment Form'!$CX930=\"No\",'Enrollment Form'!$DS930=\"\"),\"N\",IF(AND('Enrollment Form'!$C930=\"Enroll\",'Enrollment Form'!$B930=\"Subscriber\",'Enrollment Form'!$CX930=\"Yes\"),\"-\",\"Y\")))))","v":""},{"$f":"IF('Enrollment Form'!AH930=\"\",\"\",IF(ISERROR(SEARCH(\".\",'Enrollment Form'!AH930,SEARCH(\"@\",'Enrollment Form'!AH930))),\"N\",\"Y\"))","v":""},{"$f":"IF(OR($B923=\"N\",'Enrollment Form'!$G930=\"\"),\"\",IF('Enrollment Form'!$B930<>\"Subscriber\",\"-\",IF(COUNTIF('Enrollment Form'!$AV930:$AW930,\"Yes\")=2,\"N\",\"Y\")))","v":""},{"$f":"IF(OR('Enrollment Form'!$CJ930=\"\",'Enrollment Form'!$CJ930=\"No\"),\"-\",IF(AND('Enrollment Form'!$CJ930=\"Yes\",'Enrollment Form'!$CK930=\"\"),\"N\",\"Y\"))","v":"-"},{"$f":"IF(OR('Enrollment Form'!$CL930=\"\",'Enrollment Form'!$CL930=\"No\"),\"-\",IF(AND('Enrollment Form'!$CL930=\"Yes\",'Enrollment Form'!$CM930=\"\"),\"N\",\"Y\"))","v":"-"},{"$f":"IF(OR('Enrollment Form'!$CN930=\"\",'Enrollment Form'!$CN930=\"No\"),\"-\",IF(AND('Enrollment Form'!$CN930=\"Yes\",'Enrollment Form'!$CO930=\"\"),\"N\",\"Y\"))","v":"-"},{"$f":"IF(OR('Enrollment Form'!$CN930=\"\",'Enrollment Form'!$CN930=\"No\"),\"-\",IF(AND('Enrollment Form'!$CN930=\"Yes\",'Enrollment Form'!$CP930=\"\"),\"N\",\"Y\"))","v":"-"},{"$f":"IF('Enrollment Form'!B930<>\"Subscriber\",\"-\",IF(AND('Enrollment Form'!B930=\"Subscriber\",'Enrollment Form'!C930=\"Enroll\",'Enrollment Form'!AA930=\"\"),\"N\",\"Y\"))","v":"-"},{"$f":"IF(OR('Enrollment Form'!B930=\"Subscriber\",'Enrollment Form'!B930=\"\"),\"-\",IF('Enrollment Form'!BP930=\"\",\"N\",\"Y\"))","v":"-"},{"$f":"IF('Enrollment Form'!B930<>\"Subscriber\",\"-\",IF(AND('Enrollment Form'!B930=\"Subscriber\",'Enrollment Form'!G930=\"\"),\"N\",\"Y\"))","v":"-"},{"$f":"IF('Enrollment Form'!A930=\"\",\"\",IF('Enrollment Form'!B930=\"Subscriber\",\"-\",IF(AND('Enrollment Form'!B930<>\"Subscriber\",'Enrollment Form'!G930='Enrollment Form'!H930),\"N\",\"Y\")))","v":""},0]
[931,{"$f":"IF('Enrollment Form'!$A931<>\"\",\"Y\",\"N\")","v":"N"},{"$f":"IF(AND('Enrollment Form'!$B931=\"\",'Enrollment Form'!$C931<>\"\"),\"N\",IF($B924=\"N\",\"\",\"Y\"))","v":""},{"$f":"IF(OR($B924=\"N\",'Enrollment Form'!G931=\"\"),\"\",IF('Enrollment Form'!$B931<>\"Subscriber\",\"\",IF('Enrollment Form'!$G931='Enrollment Form'!$H931,\"Y\",\"N\")))","v":""},{"$f":"IF($B924=\"N\",\"\",IF(AND(COUNTIFS('Enrollment Form'!$H$11:$H$1000,'Enrollment Form'!$H931,'Enrollment Form'!$B$11:$B$1000,'Enrollment Form'!$B931)>1,'Enrollment Form'!$H931<>\"\"),\"N\",\"Y\"))","v":""},{"$f":"IF($B924=\"N\",\"\",IF(LEN('Enrollment Form'!$Y931)=0,\"\",IF(LEN('Enrollment Form'!$Y931)<>5,\"N\",\"Y\")))","v":""},{"$f":"IF($B924=\"N\",\"\",IF(LEN('Enrollment Form'!$AD931=0),\"\",IF(LEN('Enrollment Form'!$AD931)<>5,\"N\",\"Y\")))","v":""},{"$f":"IF($B924=\"N\",\"\",IF(LEN('Enrollment Form'!$BS931=0),\"\",IF(LEN('Enrollment Form'!$BS931)<>5,\"N\",\"Y\")))","v":""},{"$f":"IF($B924=\"N\",\"\",IF(LEN('Enrollment Form'!$AE931)=0,\"\",IF(LEN('Enrollment Form'!$AE931)<>10,\"N\",\"Y\")))","v":""},{"$f":"IF($B924=\"N\",\"\",IF(LEN('Enrollment Form'!$AF931)=0,\"\",IF(LEN('Enrollment Form'!$AF931)<>10,\"N\",\"Y\")))","v":""},{"$f":"IF('Enrollment Form'!$O931<>\"Graded\",\"-\",IF(AND('Enrollment Form'!$O931=\"Graded\",'Enrollment Form'!$AR931<>\"\"),\"Y\",\"N\"))","v":"-"},{"$f":"IF($B924=\"N\",\"\",IF(OR('Enrollment Form'!$B931<>\"Subscriber\",'Enrollment Form'!$C931=\"ROC\"),\"-\",IF(AND('Enrollment Form'!$B931=\"Subscriber\",'Enrollment Form'!$C931=\"Enroll\",'Enrollment Form'!$AJ931<>\"\"),\"Y\",\"N\")))","v":""},{"$f":"IF($B924=\"N\",\"\",IF(OR('Enrollment Form'!$B931<>\"Subscriber\",'Enrollment Form'!$C931=\"ROC\"),\"-\",IF(AND('Enrollment Form'!$B931=\"Subscriber\",'Enrollment Form'!$C931=\"Enroll\",'Enrollment Form'!$AK931<>\"\"),\"Y\",\"N\")))","v":""},{"$f":"IF($B924=\"N\",\"\",IF(OR('Enrollment Form'!$B931<>\"Subscriber\",'Enrollment Form'!$C931=\"ROC\"),\"-\",IF(AND('Enrollment Form'!$B931=\"Subscriber\",'Enrollment Form'!$C931=\"Enroll\",'Enrollment Form'!$AL931<>\"\"),\"Y\",\"N\")))","v":""},{"$f":"IF($B924=\"N\",\"\",IF(OR('Enrollment Form'!$B931<>\"Subscriber\",'Enrollment Form'!$C931=\"ROC\"),\"-\",IF(AND('Enrollment Form'!$B931=\"Subscriber\",'Enrollment Form'!$C931=\"Enroll\",'Enrollment Form'!$AP931<>\"\"),\"Y\",\"N\")))","v":""},{"$f":"IF($B924=\"N\",\"\",IF(OR('Enrollment Form'!$B931<>\"Subscriber\",'Enrollment Form'!$C931=\"ROC\"),\"-\",IF(AND('Enrollment Form'!$B931=\"Subscriber\",'Enrollment Form'!$C931=\"Enroll\",'Enrollment Form'!$AQ931<>\"\"),\"Y\",\"N\")))","v":""},{"$f":"IF($B924=\"N\",\"\",IF(OR('Enrollment Form'!$B931<>\"Subscriber\",'Enrollment Form'!$C931=\"ROC\"),\"-\",IF(AND('Enrollment Form'!$B931=\"Subscriber\",'Enrollment Form'!$C931=\"Enroll\",'Enrollment Form'!$AS931<>\"\"),\"Y\",\"N\")))","v":""},{"$f":"IF($B924=\"N\",\"\",IF($Q924=\"-\",\"-\",IF(AND($Q924=\"Y\",'Enrollment Form'!$AS931=\"No\"),\"-\",IF(AND($Q924=\"Y\",'Enrollment Form'!$AS931=\"Yes\",'Enrollment Form'!$AT931<>\"\"),\"Y\",\"N\"))))","v":""},{"$f":"IF($B924=\"N\",\"\",IF(OR('Enrollment Form'!$B931<>\"Subscriber\",'Enrollment Form'!$C931=\"ROC\"),\"-\",IF(AND('Enrollment Form'!$B931=\"Subscriber\",'Enrollment Form'!$C931=\"Enroll\",'Enrollment Form'!$CV931<>\"\"),\"Y\",\"N\")))","v":""},{"$f":"IF($B924=\"N\",\"\",IF($S924=\"-\",\"-\",IF(AND($S924=\"Y\",'Enrollment Form'!$CV931=\"No\"),\"-\",IF(AND($S924=\"Y\",'Enrollment Form'!$CV931=\"Yes\",'Enrollment Form'!$CW931<>\"\"),\"Y\",\"N\"))))","v":""},{"$f":"IF(OR('Enrollment Form'!$AY931=\"Yes\",'Enrollment Form'!$AY931=\"\"),\"-\",IF(OR(AND('Enrollment Form'!$AY931=\"No\",ISERROR(FIND(\"HMO\",VLOOKUP('Enrollment Form'!G931,'Enrollment Form'!H$11:J$1000,3,FALSE),1))=FALSE,COUNTA('Enrollment Form'!$AZ931:$BC931)=4),AND('Enrollment Form'!$AY931=\"No\",ISERROR(FIND(\"HMO\",VLOOKUP('Enrollment Form'!G931,'Enrollment Form'!H$11:J$1000,3,FALSE),1))=FALSE,COUNTA('Enrollment Form'!$BT931:$BW931)=4)),\"Y\",\"N\"))","v":"-"},{"$f":"IF($B924=\"N\",\"\",IF('Enrollment Form'!$B931=\"Subscriber\",\"-\",IF(COUNTA('Enrollment Form'!$BL931,'Enrollment Form'!$BN931)=2,\"Y\",\"N\")))","v":""},{"$f":"IF($B924=\"N\",\"\",IF(OR('Enrollment Form'!$AX931=\"\",'Enrollment Form'!$AX931=\"No\"),\"-\",IF(AND('Enrollment Form'!$AX931=\"Yes\",COUNTA('Enrollment Form'!$CR931)=1),\"Y\",\"N\")))","v":""},{"$f":"IF(OR('Enrollment Form'!$CR931=\"\",'Enrollment Form'!$CR931=\"No\"),\"-\",IF(COUNTA('Enrollment Form'!$CT931:$CU931)=2,\"Y\",\"N\"))","v":"-"},{"$f":"IF($B924=\"N\",\"\",IF(COUNTIF('Enrollment Form'!$DG931:$DP931,\"Other\")=COUNTA('Enrollment Form'!$DK931,'Enrollment Form'!$DH931,'Enrollment Form'!$DN931,'Enrollment Form'!$DQ931),\"Y\",\"N\"))","v":""},{"$f":"IF($B924=\"N\",\"\",IF(OR('Enrollment Form'!B931<>\"Subscriber\",'Enrollment Form'!C931=\"ROC\",COUNTIF('Enrollment Form'!AV931:AW931,\"Yes\")>=1),\"-\",IF(AND('Enrollment Form'!C931=\"Enroll\",COUNTIF('Enrollment Form'!AV931:AW931,\"No\")=2,'Enrollment Form'!AX931=\"\"),\"N\",\"Y\")))","v":""},{"$f":"IF(OR(B924=\"N\",'Enrollment Form'!B931<>\"Subscriber\",'Enrollment Form'!C931=\"ROC\",'Enrollment Form'!O931<>\"Multiple of Salary\"),\"-\",IF(COUNTA('Enrollment Form'!T931:U931)<2,\"N\",\"Y\"))","v":"-"},{"$f":"IF(B924=\"N\",\"\",IF(OR('Enrollment Form'!C931=\"ROC\",'Enrollment Form'!B931<>\"Subscriber\",'Enrollment Form'!O931=\"Waive\",'Enrollment Form'!O931=\"\"),\"-\",IF('Enrollment Form'!P931=\"\",\"N\",\"Y\")))","v":""},{"$f":"IF($B924=\"N\",\"\",IF(AND('Enrollment Form'!$C931=\"ROC\",'Enrollment Form'!$DR931<>\"\"),\"Y\",IF(AND('Enrollment Form'!$C931=\"ROC\",'Enrollment Form'!$DR931=\"\"),\"N\",IF(AND('Enrollment Form'!$C931=\"Enroll\",'Enrollment Form'!$B931=\"Subscriber\",'Enrollment Form'!$CX931=\"No\",'Enrollment Form'!$DR931=\"\"),\"N\",IF(AND('Enrollment Form'!$C931=\"Enroll\",'Enrollment Form'!$B931=\"Subscriber\",'Enrollment Form'!$CX931=\"Yes\"),\"-\",\"Y\")))))","v":""},{"$f":"IF($B924=\"N\",\"\",IF(AND('Enrollment Form'!$C931=\"ROC\",'Enrollment Form'!$DS931<>\"\"),\"Y\",IF(AND('Enrollment Form'!$C931=\"ROC\",'Enrollment Form'!$DS931=\"\"),\"N\",IF(AND('Enrollment Form'!$C931=\"Enroll\",'Enrollment Form'!$B931=\"Subscriber\",'Enrollment Form'!$CX931=\"No\",'Enrollment Form'!$DS931=\"\"),\"N\",IF(AND('Enrollment Form'!$C931=\"Enroll\",'Enrollment Form'!$B931=\"Subscriber\",'Enrollment Form'!$CX931=\"Yes\"),\"-\",\"Y\")))))","v":""},{"$f":"IF('Enrollment Form'!AH931=\"\",\"\",IF(ISERROR(SEARCH(\".\",'Enrollment Form'!AH931,SEARCH(\"@\",'Enrollment Form'!AH931))),\"N\",\"Y\"))","v":""},{"$f":"IF(OR($B924=\"N\",'Enrollment Form'!$G931=\"\"),\"\",IF('Enrollment Form'!$B931<>\"Subscriber\",\"-\",IF(COUNTIF('Enrollment Form'!$AV931:$AW931,\"Yes\")=2,\"N\",\"Y\")))","v":""},{"$f":"IF(OR('Enrollment Form'!$CJ931=\"\",'Enrollment Form'!$CJ931=\"No\"),\"-\",IF(AND('Enrollment Form'!$CJ931=\"Yes\",'Enrollment Form'!$CK931=\"\"),\"N\",\"Y\"))","v":"-"},{"$f":"IF(OR('Enrollment Form'!$CL931=\"\",'Enrollment Form'!$CL931=\"No\"),\"-\",IF(AND('Enrollment Form'!$CL931=\"Yes\",'Enrollment Form'!$CM931=\"\"),\"N\",\"Y\"))","v":"-"},{"$f":"IF(OR('Enrollment Form'!$CN931=\"\",'Enrollment Form'!$CN931=\"No\"),\"-\",IF(AND('Enrollment Form'!$CN931=\"Yes\",'Enrollment Form'!$CO931=\"\"),\"N\",\"Y\"))","v":"-"},{"$f":"IF(OR('Enrollment Form'!$CN931=\"\",'Enrollment Form'!$CN931=\"No\"),\"-\",IF(AND('Enrollment Form'!$CN931=\"Yes\",'Enrollment Form'!$CP931=\"\"),\"N\",\"Y\"))","v":"-"},{"$f":"IF('Enrollment Form'!B931<>\"Subscriber\",\"-\",IF(AND('Enrollment Form'!B931=\"Subscriber\",'Enrollment Form'!C931=\"Enroll\",'Enrollment Form'!AA931=\"\"),\"N\",\"Y\"))","v":"-"},{"$f":"IF(OR('Enrollment Form'!B931=\"Subscriber\",'Enrollment Form'!B931=\"\"),\"-\",IF('Enrollment Form'!BP931=\"\",\"N\",\"Y\"))","v":"-"},{"$f":"IF('Enrollment Form'!B931<>\"Subscriber\",\"-\",IF(AND('Enrollment Form'!B931=\"Subscriber\",'Enrollment Form'!G931=\"\"),\"N\",\"Y\"))","v":"-"},{"$f":"IF('Enrollment Form'!A931=\"\",\"\",IF('Enrollment Form'!B931=\"Subscriber\",\"-\",IF(AND('Enrollment Form'!B931<>\"Subscriber\",'Enrollment Form'!G931='Enrollment Form'!H931),\"N\",\"Y\")))","v":""},0]
[932,{"$f":"IF('Enrollment Form'!$A932<>\"\",\"Y\",\"N\")","v":"N"},{"$f":"IF(AND('Enrollment Form'!$B932=\"\",'Enrollment Form'!$C932<>\"\"),\"N\",IF($B925=\"N\",\"\",\"Y\"))","v":""},{"$f":"IF(OR($B925=\"N\",'Enrollment Form'!G932=\"\"),\"\",IF('Enrollment Form'!$B932<>\"Subscriber\",\"\",IF('Enrollment Form'!$G932='Enrollment Form'!$H932,\"Y\",\"N\")))","v":""},{"$f":"IF($B925=\"N\",\"\",IF(AND(COUNTIFS('Enrollment Form'!$H$11:$H$1000,'Enrollment Form'!$H932,'Enrollment Form'!$B$11:$B$1000,'Enrollment Form'!$B932)>1,'Enrollment Form'!$H932<>\"\"),\"N\",\"Y\"))","v":""},{"$f":"IF($B925=\"N\",\"\",IF(LEN('Enrollment Form'!$Y932)=0,\"\",IF(LEN('Enrollment Form'!$Y932)<>5,\"N\",\"Y\")))","v":""},{"$f":"IF($B925=\"N\",\"\",IF(LEN('Enrollment Form'!$AD932=0),\"\",IF(LEN('Enrollment Form'!$AD932)<>5,\"N\",\"Y\")))","v":""},{"$f":"IF($B925=\"N\",\"\",IF(LEN('Enrollment Form'!$BS932=0),\"\",IF(LEN('Enrollment Form'!$BS932)<>5,\"N\",\"Y\")))","v":""},{"$f":"IF($B925=\"N\",\"\",IF(LEN('Enrollment Form'!$AE932)=0,\"\",IF(LEN('Enrollment Form'!$AE932)<>10,\"N\",\"Y\")))","v":""},{"$f":"IF($B925=\"N\",\"\",IF(LEN('Enrollment Form'!$AF932)=0,\"\",IF(LEN('Enrollment Form'!$AF932)<>10,\"N\",\"Y\")))","v":""},{"$f":"IF('Enrollment Form'!$O932<>\"Graded\",\"-\",IF(AND('Enrollment Form'!$O932=\"Graded\",'Enrollment Form'!$AR932<>\"\"),\"Y\",\"N\"))","v":"-"},{"$f":"IF($B925=\"N\",\"\",IF(OR('Enrollment Form'!$B932<>\"Subscriber\",'Enrollment Form'!$C932=\"ROC\"),\"-\",IF(AND('Enrollment Form'!$B932=\"Subscriber\",'Enrollment Form'!$C932=\"Enroll\",'Enrollment Form'!$AJ932<>\"\"),\"Y\",\"N\")))","v":""},{"$f":"IF($B925=\"N\",\"\",IF(OR('Enrollment Form'!$B932<>\"Subscriber\",'Enrollment Form'!$C932=\"ROC\"),\"-\",IF(AND('Enrollment Form'!$B932=\"Subscriber\",'Enrollment Form'!$C932=\"Enroll\",'Enrollment Form'!$AK932<>\"\"),\"Y\",\"N\")))","v":""},{"$f":"IF($B925=\"N\",\"\",IF(OR('Enrollment Form'!$B932<>\"Subscriber\",'Enrollment Form'!$C932=\"ROC\"),\"-\",IF(AND('Enrollment Form'!$B932=\"Subscriber\",'Enrollment Form'!$C932=\"Enroll\",'Enrollment Form'!$AL932<>\"\"),\"Y\",\"N\")))","v":""},{"$f":"IF($B925=\"N\",\"\",IF(OR('Enrollment Form'!$B932<>\"Subscriber\",'Enrollment Form'!$C932=\"ROC\"),\"-\",IF(AND('Enrollment Form'!$B932=\"Subscriber\",'Enrollment Form'!$C932=\"Enroll\",'Enrollment Form'!$AP932<>\"\"),\"Y\",\"N\")))","v":""},{"$f":"IF($B925=\"N\",\"\",IF(OR('Enrollment Form'!$B932<>\"Subscriber\",'Enrollment Form'!$C932=\"ROC\"),\"-\",IF(AND('Enrollment Form'!$B932=\"Subscriber\",'Enrollment Form'!$C932=\"Enroll\",'Enrollment Form'!$AQ932<>\"\"),\"Y\",\"N\")))","v":""},{"$f":"IF($B925=\"N\",\"\",IF(OR('Enrollment Form'!$B932<>\"Subscriber\",'Enrollment Form'!$C932=\"ROC\"),\"-\",IF(AND('Enrollment Form'!$B932=\"Subscriber\",'Enrollment Form'!$C932=\"Enroll\",'Enrollment Form'!$AS932<>\"\"),\"Y\",\"N\")))","v":""},{"$f":"IF($B925=\"N\",\"\",IF($Q925=\"-\",\"-\",IF(AND($Q925=\"Y\",'Enrollment Form'!$AS932=\"No\"),\"-\",IF(AND($Q925=\"Y\",'Enrollment Form'!$AS932=\"Yes\",'Enrollment Form'!$AT932<>\"\"),\"Y\",\"N\"))))","v":""},{"$f":"IF($B925=\"N\",\"\",IF(OR('Enrollment Form'!$B932<>\"Subscriber\",'Enrollment Form'!$C932=\"ROC\"),\"-\",IF(AND('Enrollment Form'!$B932=\"Subscriber\",'Enrollment Form'!$C932=\"Enroll\",'Enrollment Form'!$CV932<>\"\"),\"Y\",\"N\")))","v":""},{"$f":"IF($B925=\"N\",\"\",IF($S925=\"-\",\"-\",IF(AND($S925=\"Y\",'Enrollment Form'!$CV932=\"No\"),\"-\",IF(AND($S925=\"Y\",'Enrollment Form'!$CV932=\"Yes\",'Enrollment Form'!$CW932<>\"\"),\"Y\",\"N\"))))","v":""},{"$f":"IF(OR('Enrollment Form'!$AY932=\"Yes\",'Enrollment Form'!$AY932=\"\"),\"-\",IF(OR(AND('Enrollment Form'!$AY932=\"No\",ISERROR(FIND(\"HMO\",VLOOKUP('Enrollment Form'!G932,'Enrollment Form'!H$11:J$1000,3,FALSE),1))=FALSE,COUNTA('Enrollment Form'!$AZ932:$BC932)=4),AND('Enrollment Form'!$AY932=\"No\",ISERROR(FIND(\"HMO\",VLOOKUP('Enrollment Form'!G932,'Enrollment Form'!H$11:J$1000,3,FALSE),1))=FALSE,COUNTA('Enrollment Form'!$BT932:$BW932)=4)),\"Y\",\"N\"))","v":"-"},{"$f":"IF($B925=\"N\",\"\",IF('Enrollment Form'!$B932=\"Subscriber\",\"-\",IF(COUNTA('Enrollment Form'!$BL932,'Enrollment Form'!$BN932)=2,\"Y\",\"N\")))","v":""},{"$f":"IF($B925=\"N\",\"\",IF(OR('Enrollment Form'!$AX932=\"\",'Enrollment Form'!$AX932=\"No\"),\"-\",IF(AND('Enrollment Form'!$AX932=\"Yes\",COUNTA('Enrollment Form'!$CR932)=1),\"Y\",\"N\")))","v":""},{"$f":"IF(OR('Enrollment Form'!$CR932=\"\",'Enrollment Form'!$CR932=\"No\"),\"-\",IF(COUNTA('Enrollment Form'!$CT932:$CU932)=2,\"Y\",\"N\"))","v":"-"},{"$f":"IF($B925=\"N\",\"\",IF(COUNTIF('Enrollment Form'!$DG932:$DP932,\"Other\")=COUNTA('Enrollment Form'!$DK932,'Enrollment Form'!$DH932,'Enrollment Form'!$DN932,'Enrollment Form'!$DQ932),\"Y\",\"N\"))","v":""},{"$f":"IF($B925=\"N\",\"\",IF(OR('Enrollment Form'!B932<>\"Subscriber\",'Enrollment Form'!C932=\"ROC\",COUNTIF('Enrollment Form'!AV932:AW932,\"Yes\")>=1),\"-\",IF(AND('Enrollment Form'!C932=\"Enroll\",COUNTIF('Enrollment Form'!AV932:AW932,\"No\")=2,'Enrollment Form'!AX932=\"\"),\"N\",\"Y\")))","v":""},{"$f":"IF(OR(B925=\"N\",'Enrollment Form'!B932<>\"Subscriber\",'Enrollment Form'!C932=\"ROC\",'Enrollment Form'!O932<>\"Multiple of Salary\"),\"-\",IF(COUNTA('Enrollment Form'!T932:U932)<2,\"N\",\"Y\"))","v":"-"},{"$f":"IF(B925=\"N\",\"\",IF(OR('Enrollment Form'!C932=\"ROC\",'Enrollment Form'!B932<>\"Subscriber\",'Enrollment Form'!O932=\"Waive\",'Enrollment Form'!O932=\"\"),\"-\",IF('Enrollment Form'!P932=\"\",\"N\",\"Y\")))","v":""},{"$f":"IF($B925=\"N\",\"\",IF(AND('Enrollment Form'!$C932=\"ROC\",'Enrollment Form'!$DR932<>\"\"),\"Y\",IF(AND('Enrollment Form'!$C932=\"ROC\",'Enrollment Form'!$DR932=\"\"),\"N\",IF(AND('Enrollment Form'!$C932=\"Enroll\",'Enrollment Form'!$B932=\"Subscriber\",'Enrollment Form'!$CX932=\"No\",'Enrollment Form'!$DR932=\"\"),\"N\",IF(AND('Enrollment Form'!$C932=\"Enroll\",'Enrollment Form'!$B932=\"Subscriber\",'Enrollment Form'!$CX932=\"Yes\"),\"-\",\"Y\")))))","v":""},{"$f":"IF($B925=\"N\",\"\",IF(AND('Enrollment Form'!$C932=\"ROC\",'Enrollment Form'!$DS932<>\"\"),\"Y\",IF(AND('Enrollment Form'!$C932=\"ROC\",'Enrollment Form'!$DS932=\"\"),\"N\",IF(AND('Enrollment Form'!$C932=\"Enroll\",'Enrollment Form'!$B932=\"Subscriber\",'Enrollment Form'!$CX932=\"No\",'Enrollment Form'!$DS932=\"\"),\"N\",IF(AND('Enrollment Form'!$C932=\"Enroll\",'Enrollment Form'!$B932=\"Subscriber\",'Enrollment Form'!$CX932=\"Yes\"),\"-\",\"Y\")))))","v":""},{"$f":"IF('Enrollment Form'!AH932=\"\",\"\",IF(ISERROR(SEARCH(\".\",'Enrollment Form'!AH932,SEARCH(\"@\",'Enrollment Form'!AH932))),\"N\",\"Y\"))","v":""},{"$f":"IF(OR($B925=\"N\",'Enrollment Form'!$G932=\"\"),\"\",IF('Enrollment Form'!$B932<>\"Subscriber\",\"-\",IF(COUNTIF('Enrollment Form'!$AV932:$AW932,\"Yes\")=2,\"N\",\"Y\")))","v":""},{"$f":"IF(OR('Enrollment Form'!$CJ932=\"\",'Enrollment Form'!$CJ932=\"No\"),\"-\",IF(AND('Enrollment Form'!$CJ932=\"Yes\",'Enrollment Form'!$CK932=\"\"),\"N\",\"Y\"))","v":"-"},{"$f":"IF(OR('Enrollment Form'!$CL932=\"\",'Enrollment Form'!$CL932=\"No\"),\"-\",IF(AND('Enrollment Form'!$CL932=\"Yes\",'Enrollment Form'!$CM932=\"\"),\"N\",\"Y\"))","v":"-"},{"$f":"IF(OR('Enrollment Form'!$CN932=\"\",'Enrollment Form'!$CN932=\"No\"),\"-\",IF(AND('Enrollment Form'!$CN932=\"Yes\",'Enrollment Form'!$CO932=\"\"),\"N\",\"Y\"))","v":"-"},{"$f":"IF(OR('Enrollment Form'!$CN932=\"\",'Enrollment Form'!$CN932=\"No\"),\"-\",IF(AND('Enrollment Form'!$CN932=\"Yes\",'Enrollment Form'!$CP932=\"\"),\"N\",\"Y\"))","v":"-"},{"$f":"IF('Enrollment Form'!B932<>\"Subscriber\",\"-\",IF(AND('Enrollment Form'!B932=\"Subscriber\",'Enrollment Form'!C932=\"Enroll\",'Enrollment Form'!AA932=\"\"),\"N\",\"Y\"))","v":"-"},{"$f":"IF(OR('Enrollment Form'!B932=\"Subscriber\",'Enrollment Form'!B932=\"\"),\"-\",IF('Enrollment Form'!BP932=\"\",\"N\",\"Y\"))","v":"-"},{"$f":"IF('Enrollment Form'!B932<>\"Subscriber\",\"-\",IF(AND('Enrollment Form'!B932=\"Subscriber\",'Enrollment Form'!G932=\"\"),\"N\",\"Y\"))","v":"-"},{"$f":"IF('Enrollment Form'!A932=\"\",\"\",IF('Enrollment Form'!B932=\"Subscriber\",\"-\",IF(AND('Enrollment Form'!B932<>\"Subscriber\",'Enrollment Form'!G932='Enrollment Form'!H932),\"N\",\"Y\")))","v":""},0]
[933,{"$f":"IF('Enrollment Form'!$A933<>\"\",\"Y\",\"N\")","v":"N"},{"$f":"IF(AND('Enrollment Form'!$B933=\"\",'Enrollment Form'!$C933<>\"\"),\"N\",IF($B926=\"N\",\"\",\"Y\"))","v":""},{"$f":"IF(OR($B926=\"N\",'Enrollment Form'!G933=\"\"),\"\",IF('Enrollment Form'!$B933<>\"Subscriber\",\"\",IF('Enrollment Form'!$G933='Enrollment Form'!$H933,\"Y\",\"N\")))","v":""},{"$f":"IF($B926=\"N\",\"\",IF(AND(COUNTIFS('Enrollment Form'!$H$11:$H$1000,'Enrollment Form'!$H933,'Enrollment Form'!$B$11:$B$1000,'Enrollment Form'!$B933)>1,'Enrollment Form'!$H933<>\"\"),\"N\",\"Y\"))","v":""},{"$f":"IF($B926=\"N\",\"\",IF(LEN('Enrollment Form'!$Y933)=0,\"\",IF(LEN('Enrollment Form'!$Y933)<>5,\"N\",\"Y\")))","v":""},{"$f":"IF($B926=\"N\",\"\",IF(LEN('Enrollment Form'!$AD933=0),\"\",IF(LEN('Enrollment Form'!$AD933)<>5,\"N\",\"Y\")))","v":""},{"$f":"IF($B926=\"N\",\"\",IF(LEN('Enrollment Form'!$BS933=0),\"\",IF(LEN('Enrollment Form'!$BS933)<>5,\"N\",\"Y\")))","v":""},{"$f":"IF($B926=\"N\",\"\",IF(LEN('Enrollment Form'!$AE933)=0,\"\",IF(LEN('Enrollment Form'!$AE933)<>10,\"N\",\"Y\")))","v":""},{"$f":"IF($B926=\"N\",\"\",IF(LEN('Enrollment Form'!$AF933)=0,\"\",IF(LEN('Enrollment Form'!$AF933)<>10,\"N\",\"Y\")))","v":""},{"$f":"IF('Enrollment Form'!$O933<>\"Graded\",\"-\",IF(AND('Enrollment Form'!$O933=\"Graded\",'Enrollment Form'!$AR933<>\"\"),\"Y\",\"N\"))","v":"-"},{"$f":"IF($B926=\"N\",\"\",IF(OR('Enrollment Form'!$B933<>\"Subscriber\",'Enrollment Form'!$C933=\"ROC\"),\"-\",IF(AND('Enrollment Form'!$B933=\"Subscriber\",'Enrollment Form'!$C933=\"Enroll\",'Enrollment Form'!$AJ933<>\"\"),\"Y\",\"N\")))","v":""},{"$f":"IF($B926=\"N\",\"\",IF(OR('Enrollment Form'!$B933<>\"Subscriber\",'Enrollment Form'!$C933=\"ROC\"),\"-\",IF(AND('Enrollment Form'!$B933=\"Subscriber\",'Enrollment Form'!$C933=\"Enroll\",'Enrollment Form'!$AK933<>\"\"),\"Y\",\"N\")))","v":""},{"$f":"IF($B926=\"N\",\"\",IF(OR('Enrollment Form'!$B933<>\"Subscriber\",'Enrollment Form'!$C933=\"ROC\"),\"-\",IF(AND('Enrollment Form'!$B933=\"Subscriber\",'Enrollment Form'!$C933=\"Enroll\",'Enrollment Form'!$AL933<>\"\"),\"Y\",\"N\")))","v":""},{"$f":"IF($B926=\"N\",\"\",IF(OR('Enrollment Form'!$B933<>\"Subscriber\",'Enrollment Form'!$C933=\"ROC\"),\"-\",IF(AND('Enrollment Form'!$B933=\"Subscriber\",'Enrollment Form'!$C933=\"Enroll\",'Enrollment Form'!$AP933<>\"\"),\"Y\",\"N\")))","v":""},{"$f":"IF($B926=\"N\",\"\",IF(OR('Enrollment Form'!$B933<>\"Subscriber\",'Enrollment Form'!$C933=\"ROC\"),\"-\",IF(AND('Enrollment Form'!$B933=\"Subscriber\",'Enrollment Form'!$C933=\"Enroll\",'Enrollment Form'!$AQ933<>\"\"),\"Y\",\"N\")))","v":""},{"$f":"IF($B926=\"N\",\"\",IF(OR('Enrollment Form'!$B933<>\"Subscriber\",'Enrollment Form'!$C933=\"ROC\"),\"-\",IF(AND('Enrollment Form'!$B933=\"Subscriber\",'Enrollment Form'!$C933=\"Enroll\",'Enrollment Form'!$AS933<>\"\"),\"Y\",\"N\")))","v":""},{"$f":"IF($B926=\"N\",\"\",IF($Q926=\"-\",\"-\",IF(AND($Q926=\"Y\",'Enrollment Form'!$AS933=\"No\"),\"-\",IF(AND($Q926=\"Y\",'Enrollment Form'!$AS933=\"Yes\",'Enrollment Form'!$AT933<>\"\"),\"Y\",\"N\"))))","v":""},{"$f":"IF($B926=\"N\",\"\",IF(OR('Enrollment Form'!$B933<>\"Subscriber\",'Enrollment Form'!$C933=\"ROC\"),\"-\",IF(AND('Enrollment Form'!$B933=\"Subscriber\",'Enrollment Form'!$C933=\"Enroll\",'Enrollment Form'!$CV933<>\"\"),\"Y\",\"N\")))","v":""},{"$f":"IF($B926=\"N\",\"\",IF($S926=\"-\",\"-\",IF(AND($S926=\"Y\",'Enrollment Form'!$CV933=\"No\"),\"-\",IF(AND($S926=\"Y\",'Enrollment Form'!$CV933=\"Yes\",'Enrollment Form'!$CW933<>\"\"),\"Y\",\"N\"))))","v":""},{"$f":"IF(OR('Enrollment Form'!$AY933=\"Yes\",'Enrollment Form'!$AY933=\"\"),\"-\",IF(OR(AND('Enrollment Form'!$AY933=\"No\",ISERROR(FIND(\"HMO\",VLOOKUP('Enrollment Form'!G933,'Enrollment Form'!H$11:J$1000,3,FALSE),1))=FALSE,COUNTA('Enrollment Form'!$AZ933:$BC933)=4),AND('Enrollment Form'!$AY933=\"No\",ISERROR(FIND(\"HMO\",VLOOKUP('Enrollment Form'!G933,'Enrollment Form'!H$11:J$1000,3,FALSE),1))=FALSE,COUNTA('Enrollment Form'!$BT933:$BW933)=4)),\"Y\",\"N\"))","v":"-"},{"$f":"IF($B926=\"N\",\"\",IF('Enrollment Form'!$B933=\"Subscriber\",\"-\",IF(COUNTA('Enrollment Form'!$BL933,'Enrollment Form'!$BN933)=2,\"Y\",\"N\")))","v":""},{"$f":"IF($B926=\"N\",\"\",IF(OR('Enrollment Form'!$AX933=\"\",'Enrollment Form'!$AX933=\"No\"),\"-\",IF(AND('Enrollment Form'!$AX933=\"Yes\",COUNTA('Enrollment Form'!$CR933)=1),\"Y\",\"N\")))","v":""},{"$f":"IF(OR('Enrollment Form'!$CR933=\"\",'Enrollment Form'!$CR933=\"No\"),\"-\",IF(COUNTA('Enrollment Form'!$CT933:$CU933)=2,\"Y\",\"N\"))","v":"-"},{"$f":"IF($B926=\"N\",\"\",IF(COUNTIF('Enrollment Form'!$DG933:$DP933,\"Other\")=COUNTA('Enrollment Form'!$DK933,'Enrollment Form'!$DH933,'Enrollment Form'!$DN933,'Enrollment Form'!$DQ933),\"Y\",\"N\"))","v":""},{"$f":"IF($B926=\"N\",\"\",IF(OR('Enrollment Form'!B933<>\"Subscriber\",'Enrollment Form'!C933=\"ROC\",COUNTIF('Enrollment Form'!AV933:AW933,\"Yes\")>=1),\"-\",IF(AND('Enrollment Form'!C933=\"Enroll\",COUNTIF('Enrollment Form'!AV933:AW933,\"No\")=2,'Enrollment Form'!AX933=\"\"),\"N\",\"Y\")))","v":""},{"$f":"IF(OR(B926=\"N\",'Enrollment Form'!B933<>\"Subscriber\",'Enrollment Form'!C933=\"ROC\",'Enrollment Form'!O933<>\"Multiple of Salary\"),\"-\",IF(COUNTA('Enrollment Form'!T933:U933)<2,\"N\",\"Y\"))","v":"-"},{"$f":"IF(B926=\"N\",\"\",IF(OR('Enrollment Form'!C933=\"ROC\",'Enrollment Form'!B933<>\"Subscriber\",'Enrollment Form'!O933=\"Waive\",'Enrollment Form'!O933=\"\"),\"-\",IF('Enrollment Form'!P933=\"\",\"N\",\"Y\")))","v":""},{"$f":"IF($B926=\"N\",\"\",IF(AND('Enrollment Form'!$C933=\"ROC\",'Enrollment Form'!$DR933<>\"\"),\"Y\",IF(AND('Enrollment Form'!$C933=\"ROC\",'Enrollment Form'!$DR933=\"\"),\"N\",IF(AND('Enrollment Form'!$C933=\"Enroll\",'Enrollment Form'!$B933=\"Subscriber\",'Enrollment Form'!$CX933=\"No\",'Enrollment Form'!$DR933=\"\"),\"N\",IF(AND('Enrollment Form'!$C933=\"Enroll\",'Enrollment Form'!$B933=\"Subscriber\",'Enrollment Form'!$CX933=\"Yes\"),\"-\",\"Y\")))))","v":""},{"$f":"IF($B926=\"N\",\"\",IF(AND('Enrollment Form'!$C933=\"ROC\",'Enrollment Form'!$DS933<>\"\"),\"Y\",IF(AND('Enrollment Form'!$C933=\"ROC\",'Enrollment Form'!$DS933=\"\"),\"N\",IF(AND('Enrollment Form'!$C933=\"Enroll\",'Enrollment Form'!$B933=\"Subscriber\",'Enrollment Form'!$CX933=\"No\",'Enrollment Form'!$DS933=\"\"),\"N\",IF(AND('Enrollment Form'!$C933=\"Enroll\",'Enrollment Form'!$B933=\"Subscriber\",'Enrollment Form'!$CX933=\"Yes\"),\"-\",\"Y\")))))","v":""},{"$f":"IF('Enrollment Form'!AH933=\"\",\"\",IF(ISERROR(SEARCH(\".\",'Enrollment Form'!AH933,SEARCH(\"@\",'Enrollment Form'!AH933))),\"N\",\"Y\"))","v":""},{"$f":"IF(OR($B926=\"N\",'Enrollment Form'!$G933=\"\"),\"\",IF('Enrollment Form'!$B933<>\"Subscriber\",\"-\",IF(COUNTIF('Enrollment Form'!$AV933:$AW933,\"Yes\")=2,\"N\",\"Y\")))","v":""},{"$f":"IF(OR('Enrollment Form'!$CJ933=\"\",'Enrollment Form'!$CJ933=\"No\"),\"-\",IF(AND('Enrollment Form'!$CJ933=\"Yes\",'Enrollment Form'!$CK933=\"\"),\"N\",\"Y\"))","v":"-"},{"$f":"IF(OR('Enrollment Form'!$CL933=\"\",'Enrollment Form'!$CL933=\"No\"),\"-\",IF(AND('Enrollment Form'!$CL933=\"Yes\",'Enrollment Form'!$CM933=\"\"),\"N\",\"Y\"))","v":"-"},{"$f":"IF(OR('Enrollment Form'!$CN933=\"\",'Enrollment Form'!$CN933=\"No\"),\"-\",IF(AND('Enrollment Form'!$CN933=\"Yes\",'Enrollment Form'!$CO933=\"\"),\"N\",\"Y\"))","v":"-"},{"$f":"IF(OR('Enrollment Form'!$CN933=\"\",'Enrollment Form'!$CN933=\"No\"),\"-\",IF(AND('Enrollment Form'!$CN933=\"Yes\",'Enrollment Form'!$CP933=\"\"),\"N\",\"Y\"))","v":"-"},{"$f":"IF('Enrollment Form'!B933<>\"Subscriber\",\"-\",IF(AND('Enrollment Form'!B933=\"Subscriber\",'Enrollment Form'!C933=\"Enroll\",'Enrollment Form'!AA933=\"\"),\"N\",\"Y\"))","v":"-"},{"$f":"IF(OR('Enrollment Form'!B933=\"Subscriber\",'Enrollment Form'!B933=\"\"),\"-\",IF('Enrollment Form'!BP933=\"\",\"N\",\"Y\"))","v":"-"},{"$f":"IF('Enrollment Form'!B933<>\"Subscriber\",\"-\",IF(AND('Enrollment Form'!B933=\"Subscriber\",'Enrollment Form'!G933=\"\"),\"N\",\"Y\"))","v":"-"},{"$f":"IF('Enrollment Form'!A933=\"\",\"\",IF('Enrollment Form'!B933=\"Subscriber\",\"-\",IF(AND('Enrollment Form'!B933<>\"Subscriber\",'Enrollment Form'!G933='Enrollment Form'!H933),\"N\",\"Y\")))","v":""},0]
[934,{"$f":"IF('Enrollment Form'!$A934<>\"\",\"Y\",\"N\")","v":"N"},{"$f":"IF(AND('Enrollment Form'!$B934=\"\",'Enrollment Form'!$C934<>\"\"),\"N\",IF($B927=\"N\",\"\",\"Y\"))","v":""},{"$f":"IF(OR($B927=\"N\",'Enrollment Form'!G934=\"\"),\"\",IF('Enrollment Form'!$B934<>\"Subscriber\",\"\",IF('Enrollment Form'!$G934='Enrollment Form'!$H934,\"Y\",\"N\")))","v":""},{"$f":"IF($B927=\"N\",\"\",IF(AND(COUNTIFS('Enrollment Form'!$H$11:$H$1000,'Enrollment Form'!$H934,'Enrollment Form'!$B$11:$B$1000,'Enrollment Form'!$B934)>1,'Enrollment Form'!$H934<>\"\"),\"N\",\"Y\"))","v":""},{"$f":"IF($B927=\"N\",\"\",IF(LEN('Enrollment Form'!$Y934)=0,\"\",IF(LEN('Enrollment Form'!$Y934)<>5,\"N\",\"Y\")))","v":""},{"$f":"IF($B927=\"N\",\"\",IF(LEN('Enrollment Form'!$AD934=0),\"\",IF(LEN('Enrollment Form'!$AD934)<>5,\"N\",\"Y\")))","v":""},{"$f":"IF($B927=\"N\",\"\",IF(LEN('Enrollment Form'!$BS934=0),\"\",IF(LEN('Enrollment Form'!$BS934)<>5,\"N\",\"Y\")))","v":""},{"$f":"IF($B927=\"N\",\"\",IF(LEN('Enrollment Form'!$AE934)=0,\"\",IF(LEN('Enrollment Form'!$AE934)<>10,\"N\",\"Y\")))","v":""},{"$f":"IF($B927=\"N\",\"\",IF(LEN('Enrollment Form'!$AF934)=0,\"\",IF(LEN('Enrollment Form'!$AF934)<>10,\"N\",\"Y\")))","v":""},{"$f":"IF('Enrollment Form'!$O934<>\"Graded\",\"-\",IF(AND('Enrollment Form'!$O934=\"Graded\",'Enrollment Form'!$AR934<>\"\"),\"Y\",\"N\"))","v":"-"},{"$f":"IF($B927=\"N\",\"\",IF(OR('Enrollment Form'!$B934<>\"Subscriber\",'Enrollment Form'!$C934=\"ROC\"),\"-\",IF(AND('Enrollment Form'!$B934=\"Subscriber\",'Enrollment Form'!$C934=\"Enroll\",'Enrollment Form'!$AJ934<>\"\"),\"Y\",\"N\")))","v":""},{"$f":"IF($B927=\"N\",\"\",IF(OR('Enrollment Form'!$B934<>\"Subscriber\",'Enrollment Form'!$C934=\"ROC\"),\"-\",IF(AND('Enrollment Form'!$B934=\"Subscriber\",'Enrollment Form'!$C934=\"Enroll\",'Enrollment Form'!$AK934<>\"\"),\"Y\",\"N\")))","v":""},{"$f":"IF($B927=\"N\",\"\",IF(OR('Enrollment Form'!$B934<>\"Subscriber\",'Enrollment Form'!$C934=\"ROC\"),\"-\",IF(AND('Enrollment Form'!$B934=\"Subscriber\",'Enrollment Form'!$C934=\"Enroll\",'Enrollment Form'!$AL934<>\"\"),\"Y\",\"N\")))","v":""},{"$f":"IF($B927=\"N\",\"\",IF(OR('Enrollment Form'!$B934<>\"Subscriber\",'Enrollment Form'!$C934=\"ROC\"),\"-\",IF(AND('Enrollment Form'!$B934=\"Subscriber\",'Enrollment Form'!$C934=\"Enroll\",'Enrollment Form'!$AP934<>\"\"),\"Y\",\"N\")))","v":""},{"$f":"IF($B927=\"N\",\"\",IF(OR('Enrollment Form'!$B934<>\"Subscriber\",'Enrollment Form'!$C934=\"ROC\"),\"-\",IF(AND('Enrollment Form'!$B934=\"Subscriber\",'Enrollment Form'!$C934=\"Enroll\",'Enrollment Form'!$AQ934<>\"\"),\"Y\",\"N\")))","v":""},{"$f":"IF($B927=\"N\",\"\",IF(OR('Enrollment Form'!$B934<>\"Subscriber\",'Enrollment Form'!$C934=\"ROC\"),\"-\",IF(AND('Enrollment Form'!$B934=\"Subscriber\",'Enrollment Form'!$C934=\"Enroll\",'Enrollment Form'!$AS934<>\"\"),\"Y\",\"N\")))","v":""},{"$f":"IF($B927=\"N\",\"\",IF($Q927=\"-\",\"-\",IF(AND($Q927=\"Y\",'Enrollment Form'!$AS934=\"No\"),\"-\",IF(AND($Q927=\"Y\",'Enrollment Form'!$AS934=\"Yes\",'Enrollment Form'!$AT934<>\"\"),\"Y\",\"N\"))))","v":""},{"$f":"IF($B927=\"N\",\"\",IF(OR('Enrollment Form'!$B934<>\"Subscriber\",'Enrollment Form'!$C934=\"ROC\"),\"-\",IF(AND('Enrollment Form'!$B934=\"Subscriber\",'Enrollment Form'!$C934=\"Enroll\",'Enrollment Form'!$CV934<>\"\"),\"Y\",\"N\")))","v":""},{"$f":"IF($B927=\"N\",\"\",IF($S927=\"-\",\"-\",IF(AND($S927=\"Y\",'Enrollment Form'!$CV934=\"No\"),\"-\",IF(AND($S927=\"Y\",'Enrollment Form'!$CV934=\"Yes\",'Enrollment Form'!$CW934<>\"\"),\"Y\",\"N\"))))","v":""},{"$f":"IF(OR('Enrollment Form'!$AY934=\"Yes\",'Enrollment Form'!$AY934=\"\"),\"-\",IF(OR(AND('Enrollment Form'!$AY934=\"No\",ISERROR(FIND(\"HMO\",VLOOKUP('Enrollment Form'!G934,'Enrollment Form'!H$11:J$1000,3,FALSE),1))=FALSE,COUNTA('Enrollment Form'!$AZ934:$BC934)=4),AND('Enrollment Form'!$AY934=\"No\",ISERROR(FIND(\"HMO\",VLOOKUP('Enrollment Form'!G934,'Enrollment Form'!H$11:J$1000,3,FALSE),1))=FALSE,COUNTA('Enrollment Form'!$BT934:$BW934)=4)),\"Y\",\"N\"))","v":"-"},{"$f":"IF($B927=\"N\",\"\",IF('Enrollment Form'!$B934=\"Subscriber\",\"-\",IF(COUNTA('Enrollment Form'!$BL934,'Enrollment Form'!$BN934)=2,\"Y\",\"N\")))","v":""},{"$f":"IF($B927=\"N\",\"\",IF(OR('Enrollment Form'!$AX934=\"\",'Enrollment Form'!$AX934=\"No\"),\"-\",IF(AND('Enrollment Form'!$AX934=\"Yes\",COUNTA('Enrollment Form'!$CR934)=1),\"Y\",\"N\")))","v":""},{"$f":"IF(OR('Enrollment Form'!$CR934=\"\",'Enrollment Form'!$CR934=\"No\"),\"-\",IF(COUNTA('Enrollment Form'!$CT934:$CU934)=2,\"Y\",\"N\"))","v":"-"},{"$f":"IF($B927=\"N\",\"\",IF(COUNTIF('Enrollment Form'!$DG934:$DP934,\"Other\")=COUNTA('Enrollment Form'!$DK934,'Enrollment Form'!$DH934,'Enrollment Form'!$DN934,'Enrollment Form'!$DQ934),\"Y\",\"N\"))","v":""},{"$f":"IF($B927=\"N\",\"\",IF(OR('Enrollment Form'!B934<>\"Subscriber\",'Enrollment Form'!C934=\"ROC\",COUNTIF('Enrollment Form'!AV934:AW934,\"Yes\")>=1),\"-\",IF(AND('Enrollment Form'!C934=\"Enroll\",COUNTIF('Enrollment Form'!AV934:AW934,\"No\")=2,'Enrollment Form'!AX934=\"\"),\"N\",\"Y\")))","v":""},{"$f":"IF(OR(B927=\"N\",'Enrollment Form'!B934<>\"Subscriber\",'Enrollment Form'!C934=\"ROC\",'Enrollment Form'!O934<>\"Multiple of Salary\"),\"-\",IF(COUNTA('Enrollment Form'!T934:U934)<2,\"N\",\"Y\"))","v":"-"},{"$f":"IF(B927=\"N\",\"\",IF(OR('Enrollment Form'!C934=\"ROC\",'Enrollment Form'!B934<>\"Subscriber\",'Enrollment Form'!O934=\"Waive\",'Enrollment Form'!O934=\"\"),\"-\",IF('Enrollment Form'!P934=\"\",\"N\",\"Y\")))","v":""},{"$f":"IF($B927=\"N\",\"\",IF(AND('Enrollment Form'!$C934=\"ROC\",'Enrollment Form'!$DR934<>\"\"),\"Y\",IF(AND('Enrollment Form'!$C934=\"ROC\",'Enrollment Form'!$DR934=\"\"),\"N\",IF(AND('Enrollment Form'!$C934=\"Enroll\",'Enrollment Form'!$B934=\"Subscriber\",'Enrollment Form'!$CX934=\"No\",'Enrollment Form'!$DR934=\"\"),\"N\",IF(AND('Enrollment Form'!$C934=\"Enroll\",'Enrollment Form'!$B934=\"Subscriber\",'Enrollment Form'!$CX934=\"Yes\"),\"-\",\"Y\")))))","v":""},{"$f":"IF($B927=\"N\",\"\",IF(AND('Enrollment Form'!$C934=\"ROC\",'Enrollment Form'!$DS934<>\"\"),\"Y\",IF(AND('Enrollment Form'!$C934=\"ROC\",'Enrollment Form'!$DS934=\"\"),\"N\",IF(AND('Enrollment Form'!$C934=\"Enroll\",'Enrollment Form'!$B934=\"Subscriber\",'Enrollment Form'!$CX934=\"No\",'Enrollment Form'!$DS934=\"\"),\"N\",IF(AND('Enrollment Form'!$C934=\"Enroll\",'Enrollment Form'!$B934=\"Subscriber\",'Enrollment Form'!$CX934=\"Yes\"),\"-\",\"Y\")))))","v":""},{"$f":"IF('Enrollment Form'!AH934=\"\",\"\",IF(ISERROR(SEARCH(\".\",'Enrollment Form'!AH934,SEARCH(\"@\",'Enrollment Form'!AH934))),\"N\",\"Y\"))","v":""},{"$f":"IF(OR($B927=\"N\",'Enrollment Form'!$G934=\"\"),\"\",IF('Enrollment Form'!$B934<>\"Subscriber\",\"-\",IF(COUNTIF('Enrollment Form'!$AV934:$AW934,\"Yes\")=2,\"N\",\"Y\")))","v":""},{"$f":"IF(OR('Enrollment Form'!$CJ934=\"\",'Enrollment Form'!$CJ934=\"No\"),\"-\",IF(AND('Enrollment Form'!$CJ934=\"Yes\",'Enrollment Form'!$CK934=\"\"),\"N\",\"Y\"))","v":"-"},{"$f":"IF(OR('Enrollment Form'!$CL934=\"\",'Enrollment Form'!$CL934=\"No\"),\"-\",IF(AND('Enrollment Form'!$CL934=\"Yes\",'Enrollment Form'!$CM934=\"\"),\"N\",\"Y\"))","v":"-"},{"$f":"IF(OR('Enrollment Form'!$CN934=\"\",'Enrollment Form'!$CN934=\"No\"),\"-\",IF(AND('Enrollment Form'!$CN934=\"Yes\",'Enrollment Form'!$CO934=\"\"),\"N\",\"Y\"))","v":"-"},{"$f":"IF(OR('Enrollment Form'!$CN934=\"\",'Enrollment Form'!$CN934=\"No\"),\"-\",IF(AND('Enrollment Form'!$CN934=\"Yes\",'Enrollment Form'!$CP934=\"\"),\"N\",\"Y\"))","v":"-"},{"$f":"IF('Enrollment Form'!B934<>\"Subscriber\",\"-\",IF(AND('Enrollment Form'!B934=\"Subscriber\",'Enrollment Form'!C934=\"Enroll\",'Enrollment Form'!AA934=\"\"),\"N\",\"Y\"))","v":"-"},{"$f":"IF(OR('Enrollment Form'!B934=\"Subscriber\",'Enrollment Form'!B934=\"\"),\"-\",IF('Enrollment Form'!BP934=\"\",\"N\",\"Y\"))","v":"-"},{"$f":"IF('Enrollment Form'!B934<>\"Subscriber\",\"-\",IF(AND('Enrollment Form'!B934=\"Subscriber\",'Enrollment Form'!G934=\"\"),\"N\",\"Y\"))","v":"-"},{"$f":"IF('Enrollment Form'!A934=\"\",\"\",IF('Enrollment Form'!B934=\"Subscriber\",\"-\",IF(AND('Enrollment Form'!B934<>\"Subscriber\",'Enrollment Form'!G934='Enrollment Form'!H934),\"N\",\"Y\")))","v":""},0]
[935,{"$f":"IF('Enrollment Form'!$A935<>\"\",\"Y\",\"N\")","v":"N"},{"$f":"IF(AND('Enrollment Form'!$B935=\"\",'Enrollment Form'!$C935<>\"\"),\"N\",IF($B928=\"N\",\"\",\"Y\"))","v":""},{"$f":"IF(OR($B928=\"N\",'Enrollment Form'!G935=\"\"),\"\",IF('Enrollment Form'!$B935<>\"Subscriber\",\"\",IF('Enrollment Form'!$G935='Enrollment Form'!$H935,\"Y\",\"N\")))","v":""},{"$f":"IF($B928=\"N\",\"\",IF(AND(COUNTIFS('Enrollment Form'!$H$11:$H$1000,'Enrollment Form'!$H935,'Enrollment Form'!$B$11:$B$1000,'Enrollment Form'!$B935)>1,'Enrollment Form'!$H935<>\"\"),\"N\",\"Y\"))","v":""},{"$f":"IF($B928=\"N\",\"\",IF(LEN('Enrollment Form'!$Y935)=0,\"\",IF(LEN('Enrollment Form'!$Y935)<>5,\"N\",\"Y\")))","v":""},{"$f":"IF($B928=\"N\",\"\",IF(LEN('Enrollment Form'!$AD935=0),\"\",IF(LEN('Enrollment Form'!$AD935)<>5,\"N\",\"Y\")))","v":""},{"$f":"IF($B928=\"N\",\"\",IF(LEN('Enrollment Form'!$BS935=0),\"\",IF(LEN('Enrollment Form'!$BS935)<>5,\"N\",\"Y\")))","v":""},{"$f":"IF($B928=\"N\",\"\",IF(LEN('Enrollment Form'!$AE935)=0,\"\",IF(LEN('Enrollment Form'!$AE935)<>10,\"N\",\"Y\")))","v":""},{"$f":"IF($B928=\"N\",\"\",IF(LEN('Enrollment Form'!$AF935)=0,\"\",IF(LEN('Enrollment Form'!$AF935)<>10,\"N\",\"Y\")))","v":""},{"$f":"IF('Enrollment Form'!$O935<>\"Graded\",\"-\",IF(AND('Enrollment Form'!$O935=\"Graded\",'Enrollment Form'!$AR935<>\"\"),\"Y\",\"N\"))","v":"-"},{"$f":"IF($B928=\"N\",\"\",IF(OR('Enrollment Form'!$B935<>\"Subscriber\",'Enrollment Form'!$C935=\"ROC\"),\"-\",IF(AND('Enrollment Form'!$B935=\"Subscriber\",'Enrollment Form'!$C935=\"Enroll\",'Enrollment Form'!$AJ935<>\"\"),\"Y\",\"N\")))","v":""},{"$f":"IF($B928=\"N\",\"\",IF(OR('Enrollment Form'!$B935<>\"Subscriber\",'Enrollment Form'!$C935=\"ROC\"),\"-\",IF(AND('Enrollment Form'!$B935=\"Subscriber\",'Enrollment Form'!$C935=\"Enroll\",'Enrollment Form'!$AK935<>\"\"),\"Y\",\"N\")))","v":""},{"$f":"IF($B928=\"N\",\"\",IF(OR('Enrollment Form'!$B935<>\"Subscriber\",'Enrollment Form'!$C935=\"ROC\"),\"-\",IF(AND('Enrollment Form'!$B935=\"Subscriber\",'Enrollment Form'!$C935=\"Enroll\",'Enrollment Form'!$AL935<>\"\"),\"Y\",\"N\")))","v":""},{"$f":"IF($B928=\"N\",\"\",IF(OR('Enrollment Form'!$B935<>\"Subscriber\",'Enrollment Form'!$C935=\"ROC\"),\"-\",IF(AND('Enrollment Form'!$B935=\"Subscriber\",'Enrollment Form'!$C935=\"Enroll\",'Enrollment Form'!$AP935<>\"\"),\"Y\",\"N\")))","v":""},{"$f":"IF($B928=\"N\",\"\",IF(OR('Enrollment Form'!$B935<>\"Subscriber\",'Enrollment Form'!$C935=\"ROC\"),\"-\",IF(AND('Enrollment Form'!$B935=\"Subscriber\",'Enrollment Form'!$C935=\"Enroll\",'Enrollment Form'!$AQ935<>\"\"),\"Y\",\"N\")))","v":""},{"$f":"IF($B928=\"N\",\"\",IF(OR('Enrollment Form'!$B935<>\"Subscriber\",'Enrollment Form'!$C935=\"ROC\"),\"-\",IF(AND('Enrollment Form'!$B935=\"Subscriber\",'Enrollment Form'!$C935=\"Enroll\",'Enrollment Form'!$AS935<>\"\"),\"Y\",\"N\")))","v":""},{"$f":"IF($B928=\"N\",\"\",IF($Q928=\"-\",\"-\",IF(AND($Q928=\"Y\",'Enrollment Form'!$AS935=\"No\"),\"-\",IF(AND($Q928=\"Y\",'Enrollment Form'!$AS935=\"Yes\",'Enrollment Form'!$AT935<>\"\"),\"Y\",\"N\"))))","v":""},{"$f":"IF($B928=\"N\",\"\",IF(OR('Enrollment Form'!$B935<>\"Subscriber\",'Enrollment Form'!$C935=\"ROC\"),\"-\",IF(AND('Enrollment Form'!$B935=\"Subscriber\",'Enrollment Form'!$C935=\"Enroll\",'Enrollment Form'!$CV935<>\"\"),\"Y\",\"N\")))","v":""},{"$f":"IF($B928=\"N\",\"\",IF($S928=\"-\",\"-\",IF(AND($S928=\"Y\",'Enrollment Form'!$CV935=\"No\"),\"-\",IF(AND($S928=\"Y\",'Enrollment Form'!$CV935=\"Yes\",'Enrollment Form'!$CW935<>\"\"),\"Y\",\"N\"))))","v":""},{"$f":"IF(OR('Enrollment Form'!$AY935=\"Yes\",'Enrollment Form'!$AY935=\"\"),\"-\",IF(OR(AND('Enrollment Form'!$AY935=\"No\",ISERROR(FIND(\"HMO\",VLOOKUP('Enrollment Form'!G935,'Enrollment Form'!H$11:J$1000,3,FALSE),1))=FALSE,COUNTA('Enrollment Form'!$AZ935:$BC935)=4),AND('Enrollment Form'!$AY935=\"No\",ISERROR(FIND(\"HMO\",VLOOKUP('Enrollment Form'!G935,'Enrollment Form'!H$11:J$1000,3,FALSE),1))=FALSE,COUNTA('Enrollment Form'!$BT935:$BW935)=4)),\"Y\",\"N\"))","v":"-"},{"$f":"IF($B928=\"N\",\"\",IF('Enrollment Form'!$B935=\"Subscriber\",\"-\",IF(COUNTA('Enrollment Form'!$BL935,'Enrollment Form'!$BN935)=2,\"Y\",\"N\")))","v":""},{"$f":"IF($B928=\"N\",\"\",IF(OR('Enrollment Form'!$AX935=\"\",'Enrollment Form'!$AX935=\"No\"),\"-\",IF(AND('Enrollment Form'!$AX935=\"Yes\",COUNTA('Enrollment Form'!$CR935)=1),\"Y\",\"N\")))","v":""},{"$f":"IF(OR('Enrollment Form'!$CR935=\"\",'Enrollment Form'!$CR935=\"No\"),\"-\",IF(COUNTA('Enrollment Form'!$CT935:$CU935)=2,\"Y\",\"N\"))","v":"-"},{"$f":"IF($B928=\"N\",\"\",IF(COUNTIF('Enrollment Form'!$DG935:$DP935,\"Other\")=COUNTA('Enrollment Form'!$DK935,'Enrollment Form'!$DH935,'Enrollment Form'!$DN935,'Enrollment Form'!$DQ935),\"Y\",\"N\"))","v":""},{"$f":"IF($B928=\"N\",\"\",IF(OR('Enrollment Form'!B935<>\"Subscriber\",'Enrollment Form'!C935=\"ROC\",COUNTIF('Enrollment Form'!AV935:AW935,\"Yes\")>=1),\"-\",IF(AND('Enrollment Form'!C935=\"Enroll\",COUNTIF('Enrollment Form'!AV935:AW935,\"No\")=2,'Enrollment Form'!AX935=\"\"),\"N\",\"Y\")))","v":""},{"$f":"IF(OR(B928=\"N\",'Enrollment Form'!B935<>\"Subscriber\",'Enrollment Form'!C935=\"ROC\",'Enrollment Form'!O935<>\"Multiple of Salary\"),\"-\",IF(COUNTA('Enrollment Form'!T935:U935)<2,\"N\",\"Y\"))","v":"-"},{"$f":"IF(B928=\"N\",\"\",IF(OR('Enrollment Form'!C935=\"ROC\",'Enrollment Form'!B935<>\"Subscriber\",'Enrollment Form'!O935=\"Waive\",'Enrollment Form'!O935=\"\"),\"-\",IF('Enrollment Form'!P935=\"\",\"N\",\"Y\")))","v":""},{"$f":"IF($B928=\"N\",\"\",IF(AND('Enrollment Form'!$C935=\"ROC\",'Enrollment Form'!$DR935<>\"\"),\"Y\",IF(AND('Enrollment Form'!$C935=\"ROC\",'Enrollment Form'!$DR935=\"\"),\"N\",IF(AND('Enrollment Form'!$C935=\"Enroll\",'Enrollment Form'!$B935=\"Subscriber\",'Enrollment Form'!$CX935=\"No\",'Enrollment Form'!$DR935=\"\"),\"N\",IF(AND('Enrollment Form'!$C935=\"Enroll\",'Enrollment Form'!$B935=\"Subscriber\",'Enrollment Form'!$CX935=\"Yes\"),\"-\",\"Y\")))))","v":""},{"$f":"IF($B928=\"N\",\"\",IF(AND('Enrollment Form'!$C935=\"ROC\",'Enrollment Form'!$DS935<>\"\"),\"Y\",IF(AND('Enrollment Form'!$C935=\"ROC\",'Enrollment Form'!$DS935=\"\"),\"N\",IF(AND('Enrollment Form'!$C935=\"Enroll\",'Enrollment Form'!$B935=\"Subscriber\",'Enrollment Form'!$CX935=\"No\",'Enrollment Form'!$DS935=\"\"),\"N\",IF(AND('Enrollment Form'!$C935=\"Enroll\",'Enrollment Form'!$B935=\"Subscriber\",'Enrollment Form'!$CX935=\"Yes\"),\"-\",\"Y\")))))","v":""},{"$f":"IF('Enrollment Form'!AH935=\"\",\"\",IF(ISERROR(SEARCH(\".\",'Enrollment Form'!AH935,SEARCH(\"@\",'Enrollment Form'!AH935))),\"N\",\"Y\"))","v":""},{"$f":"IF(OR($B928=\"N\",'Enrollment Form'!$G935=\"\"),\"\",IF('Enrollment Form'!$B935<>\"Subscriber\",\"-\",IF(COUNTIF('Enrollment Form'!$AV935:$AW935,\"Yes\")=2,\"N\",\"Y\")))","v":""},{"$f":"IF(OR('Enrollment Form'!$CJ935=\"\",'Enrollment Form'!$CJ935=\"No\"),\"-\",IF(AND('Enrollment Form'!$CJ935=\"Yes\",'Enrollment Form'!$CK935=\"\"),\"N\",\"Y\"))","v":"-"},{"$f":"IF(OR('Enrollment Form'!$CL935=\"\",'Enrollment Form'!$CL935=\"No\"),\"-\",IF(AND('Enrollment Form'!$CL935=\"Yes\",'Enrollment Form'!$CM935=\"\"),\"N\",\"Y\"))","v":"-"},{"$f":"IF(OR('Enrollment Form'!$CN935=\"\",'Enrollment Form'!$CN935=\"No\"),\"-\",IF(AND('Enrollment Form'!$CN935=\"Yes\",'Enrollment Form'!$CO935=\"\"),\"N\",\"Y\"))","v":"-"},{"$f":"IF(OR('Enrollment Form'!$CN935=\"\",'Enrollment Form'!$CN935=\"No\"),\"-\",IF(AND('Enrollment Form'!$CN935=\"Yes\",'Enrollment Form'!$CP935=\"\"),\"N\",\"Y\"))","v":"-"},{"$f":"IF('Enrollment Form'!B935<>\"Subscriber\",\"-\",IF(AND('Enrollment Form'!B935=\"Subscriber\",'Enrollment Form'!C935=\"Enroll\",'Enrollment Form'!AA935=\"\"),\"N\",\"Y\"))","v":"-"},{"$f":"IF(OR('Enrollment Form'!B935=\"Subscriber\",'Enrollment Form'!B935=\"\"),\"-\",IF('Enrollment Form'!BP935=\"\",\"N\",\"Y\"))","v":"-"},{"$f":"IF('Enrollment Form'!B935<>\"Subscriber\",\"-\",IF(AND('Enrollment Form'!B935=\"Subscriber\",'Enrollment Form'!G935=\"\"),\"N\",\"Y\"))","v":"-"},{"$f":"IF('Enrollment Form'!A935=\"\",\"\",IF('Enrollment Form'!B935=\"Subscriber\",\"-\",IF(AND('Enrollment Form'!B935<>\"Subscriber\",'Enrollment Form'!G935='Enrollment Form'!H935),\"N\",\"Y\")))","v":""},0]
[936,{"$f":"IF('Enrollment Form'!$A936<>\"\",\"Y\",\"N\")","v":"N"},{"$f":"IF(AND('Enrollment Form'!$B936=\"\",'Enrollment Form'!$C936<>\"\"),\"N\",IF($B929=\"N\",\"\",\"Y\"))","v":""},{"$f":"IF(OR($B929=\"N\",'Enrollment Form'!G936=\"\"),\"\",IF('Enrollment Form'!$B936<>\"Subscriber\",\"\",IF('Enrollment Form'!$G936='Enrollment Form'!$H936,\"Y\",\"N\")))","v":""},{"$f":"IF($B929=\"N\",\"\",IF(AND(COUNTIFS('Enrollment Form'!$H$11:$H$1000,'Enrollment Form'!$H936,'Enrollment Form'!$B$11:$B$1000,'Enrollment Form'!$B936)>1,'Enrollment Form'!$H936<>\"\"),\"N\",\"Y\"))","v":""},{"$f":"IF($B929=\"N\",\"\",IF(LEN('Enrollment Form'!$Y936)=0,\"\",IF(LEN('Enrollment Form'!$Y936)<>5,\"N\",\"Y\")))","v":""},{"$f":"IF($B929=\"N\",\"\",IF(LEN('Enrollment Form'!$AD936=0),\"\",IF(LEN('Enrollment Form'!$AD936)<>5,\"N\",\"Y\")))","v":""},{"$f":"IF($B929=\"N\",\"\",IF(LEN('Enrollment Form'!$BS936=0),\"\",IF(LEN('Enrollment Form'!$BS936)<>5,\"N\",\"Y\")))","v":""},{"$f":"IF($B929=\"N\",\"\",IF(LEN('Enrollment Form'!$AE936)=0,\"\",IF(LEN('Enrollment Form'!$AE936)<>10,\"N\",\"Y\")))","v":""},{"$f":"IF($B929=\"N\",\"\",IF(LEN('Enrollment Form'!$AF936)=0,\"\",IF(LEN('Enrollment Form'!$AF936)<>10,\"N\",\"Y\")))","v":""},{"$f":"IF('Enrollment Form'!$O936<>\"Graded\",\"-\",IF(AND('Enrollment Form'!$O936=\"Graded\",'Enrollment Form'!$AR936<>\"\"),\"Y\",\"N\"))","v":"-"},{"$f":"IF($B929=\"N\",\"\",IF(OR('Enrollment Form'!$B936<>\"Subscriber\",'Enrollment Form'!$C936=\"ROC\"),\"-\",IF(AND('Enrollment Form'!$B936=\"Subscriber\",'Enrollment Form'!$C936=\"Enroll\",'Enrollment Form'!$AJ936<>\"\"),\"Y\",\"N\")))","v":""},{"$f":"IF($B929=\"N\",\"\",IF(OR('Enrollment Form'!$B936<>\"Subscriber\",'Enrollment Form'!$C936=\"ROC\"),\"-\",IF(AND('Enrollment Form'!$B936=\"Subscriber\",'Enrollment Form'!$C936=\"Enroll\",'Enrollment Form'!$AK936<>\"\"),\"Y\",\"N\")))","v":""},{"$f":"IF($B929=\"N\",\"\",IF(OR('Enrollment Form'!$B936<>\"Subscriber\",'Enrollment Form'!$C936=\"ROC\"),\"-\",IF(AND('Enrollment Form'!$B936=\"Subscriber\",'Enrollment Form'!$C936=\"Enroll\",'Enrollment Form'!$AL936<>\"\"),\"Y\",\"N\")))","v":""},{"$f":"IF($B929=\"N\",\"\",IF(OR('Enrollment Form'!$B936<>\"Subscriber\",'Enrollment Form'!$C936=\"ROC\"),\"-\",IF(AND('Enrollment Form'!$B936=\"Subscriber\",'Enrollment Form'!$C936=\"Enroll\",'Enrollment Form'!$AP936<>\"\"),\"Y\",\"N\")))","v":""},{"$f":"IF($B929=\"N\",\"\",IF(OR('Enrollment Form'!$B936<>\"Subscriber\",'Enrollment Form'!$C936=\"ROC\"),\"-\",IF(AND('Enrollment Form'!$B936=\"Subscriber\",'Enrollment Form'!$C936=\"Enroll\",'Enrollment Form'!$AQ936<>\"\"),\"Y\",\"N\")))","v":""},{"$f":"IF($B929=\"N\",\"\",IF(OR('Enrollment Form'!$B936<>\"Subscriber\",'Enrollment Form'!$C936=\"ROC\"),\"-\",IF(AND('Enrollment Form'!$B936=\"Subscriber\",'Enrollment Form'!$C936=\"Enroll\",'Enrollment Form'!$AS936<>\"\"),\"Y\",\"N\")))","v":""},{"$f":"IF($B929=\"N\",\"\",IF($Q929=\"-\",\"-\",IF(AND($Q929=\"Y\",'Enrollment Form'!$AS936=\"No\"),\"-\",IF(AND($Q929=\"Y\",'Enrollment Form'!$AS936=\"Yes\",'Enrollment Form'!$AT936<>\"\"),\"Y\",\"N\"))))","v":""},{"$f":"IF($B929=\"N\",\"\",IF(OR('Enrollment Form'!$B936<>\"Subscriber\",'Enrollment Form'!$C936=\"ROC\"),\"-\",IF(AND('Enrollment Form'!$B936=\"Subscriber\",'Enrollment Form'!$C936=\"Enroll\",'Enrollment Form'!$CV936<>\"\"),\"Y\",\"N\")))","v":""},{"$f":"IF($B929=\"N\",\"\",IF($S929=\"-\",\"-\",IF(AND($S929=\"Y\",'Enrollment Form'!$CV936=\"No\"),\"-\",IF(AND($S929=\"Y\",'Enrollment Form'!$CV936=\"Yes\",'Enrollment Form'!$CW936<>\"\"),\"Y\",\"N\"))))","v":""},{"$f":"IF(OR('Enrollment Form'!$AY936=\"Yes\",'Enrollment Form'!$AY936=\"\"),\"-\",IF(OR(AND('Enrollment Form'!$AY936=\"No\",ISERROR(FIND(\"HMO\",VLOOKUP('Enrollment Form'!G936,'Enrollment Form'!H$11:J$1000,3,FALSE),1))=FALSE,COUNTA('Enrollment Form'!$AZ936:$BC936)=4),AND('Enrollment Form'!$AY936=\"No\",ISERROR(FIND(\"HMO\",VLOOKUP('Enrollment Form'!G936,'Enrollment Form'!H$11:J$1000,3,FALSE),1))=FALSE,COUNTA('Enrollment Form'!$BT936:$BW936)=4)),\"Y\",\"N\"))","v":"-"},{"$f":"IF($B929=\"N\",\"\",IF('Enrollment Form'!$B936=\"Subscriber\",\"-\",IF(COUNTA('Enrollment Form'!$BL936,'Enrollment Form'!$BN936)=2,\"Y\",\"N\")))","v":""},{"$f":"IF($B929=\"N\",\"\",IF(OR('Enrollment Form'!$AX936=\"\",'Enrollment Form'!$AX936=\"No\"),\"-\",IF(AND('Enrollment Form'!$AX936=\"Yes\",COUNTA('Enrollment Form'!$CR936)=1),\"Y\",\"N\")))","v":""},{"$f":"IF(OR('Enrollment Form'!$CR936=\"\",'Enrollment Form'!$CR936=\"No\"),\"-\",IF(COUNTA('Enrollment Form'!$CT936:$CU936)=2,\"Y\",\"N\"))","v":"-"},{"$f":"IF($B929=\"N\",\"\",IF(COUNTIF('Enrollment Form'!$DG936:$DP936,\"Other\")=COUNTA('Enrollment Form'!$DK936,'Enrollment Form'!$DH936,'Enrollment Form'!$DN936,'Enrollment Form'!$DQ936),\"Y\",\"N\"))","v":""},{"$f":"IF($B929=\"N\",\"\",IF(OR('Enrollment Form'!B936<>\"Subscriber\",'Enrollment Form'!C936=\"ROC\",COUNTIF('Enrollment Form'!AV936:AW936,\"Yes\")>=1),\"-\",IF(AND('Enrollment Form'!C936=\"Enroll\",COUNTIF('Enrollment Form'!AV936:AW936,\"No\")=2,'Enrollment Form'!AX936=\"\"),\"N\",\"Y\")))","v":""},{"$f":"IF(OR(B929=\"N\",'Enrollment Form'!B936<>\"Subscriber\",'Enrollment Form'!C936=\"ROC\",'Enrollment Form'!O936<>\"Multiple of Salary\"),\"-\",IF(COUNTA('Enrollment Form'!T936:U936)<2,\"N\",\"Y\"))","v":"-"},{"$f":"IF(B929=\"N\",\"\",IF(OR('Enrollment Form'!C936=\"ROC\",'Enrollment Form'!B936<>\"Subscriber\",'Enrollment Form'!O936=\"Waive\",'Enrollment Form'!O936=\"\"),\"-\",IF('Enrollment Form'!P936=\"\",\"N\",\"Y\")))","v":""},{"$f":"IF($B929=\"N\",\"\",IF(AND('Enrollment Form'!$C936=\"ROC\",'Enrollment Form'!$DR936<>\"\"),\"Y\",IF(AND('Enrollment Form'!$C936=\"ROC\",'Enrollment Form'!$DR936=\"\"),\"N\",IF(AND('Enrollment Form'!$C936=\"Enroll\",'Enrollment Form'!$B936=\"Subscriber\",'Enrollment Form'!$CX936=\"No\",'Enrollment Form'!$DR936=\"\"),\"N\",IF(AND('Enrollment Form'!$C936=\"Enroll\",'Enrollment Form'!$B936=\"Subscriber\",'Enrollment Form'!$CX936=\"Yes\"),\"-\",\"Y\")))))","v":""},{"$f":"IF($B929=\"N\",\"\",IF(AND('Enrollment Form'!$C936=\"ROC\",'Enrollment Form'!$DS936<>\"\"),\"Y\",IF(AND('Enrollment Form'!$C936=\"ROC\",'Enrollment Form'!$DS936=\"\"),\"N\",IF(AND('Enrollment Form'!$C936=\"Enroll\",'Enrollment Form'!$B936=\"Subscriber\",'Enrollment Form'!$CX936=\"No\",'Enrollment Form'!$DS936=\"\"),\"N\",IF(AND('Enrollment Form'!$C936=\"Enroll\",'Enrollment Form'!$B936=\"Subscriber\",'Enrollment Form'!$CX936=\"Yes\"),\"-\",\"Y\")))))","v":""},{"$f":"IF('Enrollment Form'!AH936=\"\",\"\",IF(ISERROR(SEARCH(\".\",'Enrollment Form'!AH936,SEARCH(\"@\",'Enrollment Form'!AH936))),\"N\",\"Y\"))","v":""},{"$f":"IF(OR($B929=\"N\",'Enrollment Form'!$G936=\"\"),\"\",IF('Enrollment Form'!$B936<>\"Subscriber\",\"-\",IF(COUNTIF('Enrollment Form'!$AV936:$AW936,\"Yes\")=2,\"N\",\"Y\")))","v":""},{"$f":"IF(OR('Enrollment Form'!$CJ936=\"\",'Enrollment Form'!$CJ936=\"No\"),\"-\",IF(AND('Enrollment Form'!$CJ936=\"Yes\",'Enrollment Form'!$CK936=\"\"),\"N\",\"Y\"))","v":"-"},{"$f":"IF(OR('Enrollment Form'!$CL936=\"\",'Enrollment Form'!$CL936=\"No\"),\"-\",IF(AND('Enrollment Form'!$CL936=\"Yes\",'Enrollment Form'!$CM936=\"\"),\"N\",\"Y\"))","v":"-"},{"$f":"IF(OR('Enrollment Form'!$CN936=\"\",'Enrollment Form'!$CN936=\"No\"),\"-\",IF(AND('Enrollment Form'!$CN936=\"Yes\",'Enrollment Form'!$CO936=\"\"),\"N\",\"Y\"))","v":"-"},{"$f":"IF(OR('Enrollment Form'!$CN936=\"\",'Enrollment Form'!$CN936=\"No\"),\"-\",IF(AND('Enrollment Form'!$CN936=\"Yes\",'Enrollment Form'!$CP936=\"\"),\"N\",\"Y\"))","v":"-"},{"$f":"IF('Enrollment Form'!B936<>\"Subscriber\",\"-\",IF(AND('Enrollment Form'!B936=\"Subscriber\",'Enrollment Form'!C936=\"Enroll\",'Enrollment Form'!AA936=\"\"),\"N\",\"Y\"))","v":"-"},{"$f":"IF(OR('Enrollment Form'!B936=\"Subscriber\",'Enrollment Form'!B936=\"\"),\"-\",IF('Enrollment Form'!BP936=\"\",\"N\",\"Y\"))","v":"-"},{"$f":"IF('Enrollment Form'!B936<>\"Subscriber\",\"-\",IF(AND('Enrollment Form'!B936=\"Subscriber\",'Enrollment Form'!G936=\"\"),\"N\",\"Y\"))","v":"-"},{"$f":"IF('Enrollment Form'!A936=\"\",\"\",IF('Enrollment Form'!B936=\"Subscriber\",\"-\",IF(AND('Enrollment Form'!B936<>\"Subscriber\",'Enrollment Form'!G936='Enrollment Form'!H936),\"N\",\"Y\")))","v":""},0]
[937,{"$f":"IF('Enrollment Form'!$A937<>\"\",\"Y\",\"N\")","v":"N"},{"$f":"IF(AND('Enrollment Form'!$B937=\"\",'Enrollment Form'!$C937<>\"\"),\"N\",IF($B930=\"N\",\"\",\"Y\"))","v":""},{"$f":"IF(OR($B930=\"N\",'Enrollment Form'!G937=\"\"),\"\",IF('Enrollment Form'!$B937<>\"Subscriber\",\"\",IF('Enrollment Form'!$G937='Enrollment Form'!$H937,\"Y\",\"N\")))","v":""},{"$f":"IF($B930=\"N\",\"\",IF(AND(COUNTIFS('Enrollment Form'!$H$11:$H$1000,'Enrollment Form'!$H937,'Enrollment Form'!$B$11:$B$1000,'Enrollment Form'!$B937)>1,'Enrollment Form'!$H937<>\"\"),\"N\",\"Y\"))","v":""},{"$f":"IF($B930=\"N\",\"\",IF(LEN('Enrollment Form'!$Y937)=0,\"\",IF(LEN('Enrollment Form'!$Y937)<>5,\"N\",\"Y\")))","v":""},{"$f":"IF($B930=\"N\",\"\",IF(LEN('Enrollment Form'!$AD937=0),\"\",IF(LEN('Enrollment Form'!$AD937)<>5,\"N\",\"Y\")))","v":""},{"$f":"IF($B930=\"N\",\"\",IF(LEN('Enrollment Form'!$BS937=0),\"\",IF(LEN('Enrollment Form'!$BS937)<>5,\"N\",\"Y\")))","v":""},{"$f":"IF($B930=\"N\",\"\",IF(LEN('Enrollment Form'!$AE937)=0,\"\",IF(LEN('Enrollment Form'!$AE937)<>10,\"N\",\"Y\")))","v":""},{"$f":"IF($B930=\"N\",\"\",IF(LEN('Enrollment Form'!$AF937)=0,\"\",IF(LEN('Enrollment Form'!$AF937)<>10,\"N\",\"Y\")))","v":""},{"$f":"IF('Enrollment Form'!$O937<>\"Graded\",\"-\",IF(AND('Enrollment Form'!$O937=\"Graded\",'Enrollment Form'!$AR937<>\"\"),\"Y\",\"N\"))","v":"-"},{"$f":"IF($B930=\"N\",\"\",IF(OR('Enrollment Form'!$B937<>\"Subscriber\",'Enrollment Form'!$C937=\"ROC\"),\"-\",IF(AND('Enrollment Form'!$B937=\"Subscriber\",'Enrollment Form'!$C937=\"Enroll\",'Enrollment Form'!$AJ937<>\"\"),\"Y\",\"N\")))","v":""},{"$f":"IF($B930=\"N\",\"\",IF(OR('Enrollment Form'!$B937<>\"Subscriber\",'Enrollment Form'!$C937=\"ROC\"),\"-\",IF(AND('Enrollment Form'!$B937=\"Subscriber\",'Enrollment Form'!$C937=\"Enroll\",'Enrollment Form'!$AK937<>\"\"),\"Y\",\"N\")))","v":""},{"$f":"IF($B930=\"N\",\"\",IF(OR('Enrollment Form'!$B937<>\"Subscriber\",'Enrollment Form'!$C937=\"ROC\"),\"-\",IF(AND('Enrollment Form'!$B937=\"Subscriber\",'Enrollment Form'!$C937=\"Enroll\",'Enrollment Form'!$AL937<>\"\"),\"Y\",\"N\")))","v":""},{"$f":"IF($B930=\"N\",\"\",IF(OR('Enrollment Form'!$B937<>\"Subscriber\",'Enrollment Form'!$C937=\"ROC\"),\"-\",IF(AND('Enrollment Form'!$B937=\"Subscriber\",'Enrollment Form'!$C937=\"Enroll\",'Enrollment Form'!$AP937<>\"\"),\"Y\",\"N\")))","v":""},{"$f":"IF($B930=\"N\",\"\",IF(OR('Enrollment Form'!$B937<>\"Subscriber\",'Enrollment Form'!$C937=\"ROC\"),\"-\",IF(AND('Enrollment Form'!$B937=\"Subscriber\",'Enrollment Form'!$C937=\"Enroll\",'Enrollment Form'!$AQ937<>\"\"),\"Y\",\"N\")))","v":""},{"$f":"IF($B930=\"N\",\"\",IF(OR('Enrollment Form'!$B937<>\"Subscriber\",'Enrollment Form'!$C937=\"ROC\"),\"-\",IF(AND('Enrollment Form'!$B937=\"Subscriber\",'Enrollment Form'!$C937=\"Enroll\",'Enrollment Form'!$AS937<>\"\"),\"Y\",\"N\")))","v":""},{"$f":"IF($B930=\"N\",\"\",IF($Q930=\"-\",\"-\",IF(AND($Q930=\"Y\",'Enrollment Form'!$AS937=\"No\"),\"-\",IF(AND($Q930=\"Y\",'Enrollment Form'!$AS937=\"Yes\",'Enrollment Form'!$AT937<>\"\"),\"Y\",\"N\"))))","v":""},{"$f":"IF($B930=\"N\",\"\",IF(OR('Enrollment Form'!$B937<>\"Subscriber\",'Enrollment Form'!$C937=\"ROC\"),\"-\",IF(AND('Enrollment Form'!$B937=\"Subscriber\",'Enrollment Form'!$C937=\"Enroll\",'Enrollment Form'!$CV937<>\"\"),\"Y\",\"N\")))","v":""},{"$f":"IF($B930=\"N\",\"\",IF($S930=\"-\",\"-\",IF(AND($S930=\"Y\",'Enrollment Form'!$CV937=\"No\"),\"-\",IF(AND($S930=\"Y\",'Enrollment Form'!$CV937=\"Yes\",'Enrollment Form'!$CW937<>\"\"),\"Y\",\"N\"))))","v":""},{"$f":"IF(OR('Enrollment Form'!$AY937=\"Yes\",'Enrollment Form'!$AY937=\"\"),\"-\",IF(OR(AND('Enrollment Form'!$AY937=\"No\",ISERROR(FIND(\"HMO\",VLOOKUP('Enrollment Form'!G937,'Enrollment Form'!H$11:J$1000,3,FALSE),1))=FALSE,COUNTA('Enrollment Form'!$AZ937:$BC937)=4),AND('Enrollment Form'!$AY937=\"No\",ISERROR(FIND(\"HMO\",VLOOKUP('Enrollment Form'!G937,'Enrollment Form'!H$11:J$1000,3,FALSE),1))=FALSE,COUNTA('Enrollment Form'!$BT937:$BW937)=4)),\"Y\",\"N\"))","v":"-"},{"$f":"IF($B930=\"N\",\"\",IF('Enrollment Form'!$B937=\"Subscriber\",\"-\",IF(COUNTA('Enrollment Form'!$BL937,'Enrollment Form'!$BN937)=2,\"Y\",\"N\")))","v":""},{"$f":"IF($B930=\"N\",\"\",IF(OR('Enrollment Form'!$AX937=\"\",'Enrollment Form'!$AX937=\"No\"),\"-\",IF(AND('Enrollment Form'!$AX937=\"Yes\",COUNTA('Enrollment Form'!$CR937)=1),\"Y\",\"N\")))","v":""},{"$f":"IF(OR('Enrollment Form'!$CR937=\"\",'Enrollment Form'!$CR937=\"No\"),\"-\",IF(COUNTA('Enrollment Form'!$CT937:$CU937)=2,\"Y\",\"N\"))","v":"-"},{"$f":"IF($B930=\"N\",\"\",IF(COUNTIF('Enrollment Form'!$DG937:$DP937,\"Other\")=COUNTA('Enrollment Form'!$DK937,'Enrollment Form'!$DH937,'Enrollment Form'!$DN937,'Enrollment Form'!$DQ937),\"Y\",\"N\"))","v":""},{"$f":"IF($B930=\"N\",\"\",IF(OR('Enrollment Form'!B937<>\"Subscriber\",'Enrollment Form'!C937=\"ROC\",COUNTIF('Enrollment Form'!AV937:AW937,\"Yes\")>=1),\"-\",IF(AND('Enrollment Form'!C937=\"Enroll\",COUNTIF('Enrollment Form'!AV937:AW937,\"No\")=2,'Enrollment Form'!AX937=\"\"),\"N\",\"Y\")))","v":""},{"$f":"IF(OR(B930=\"N\",'Enrollment Form'!B937<>\"Subscriber\",'Enrollment Form'!C937=\"ROC\",'Enrollment Form'!O937<>\"Multiple of Salary\"),\"-\",IF(COUNTA('Enrollment Form'!T937:U937)<2,\"N\",\"Y\"))","v":"-"},{"$f":"IF(B930=\"N\",\"\",IF(OR('Enrollment Form'!C937=\"ROC\",'Enrollment Form'!B937<>\"Subscriber\",'Enrollment Form'!O937=\"Waive\",'Enrollment Form'!O937=\"\"),\"-\",IF('Enrollment Form'!P937=\"\",\"N\",\"Y\")))","v":""},{"$f":"IF($B930=\"N\",\"\",IF(AND('Enrollment Form'!$C937=\"ROC\",'Enrollment Form'!$DR937<>\"\"),\"Y\",IF(AND('Enrollment Form'!$C937=\"ROC\",'Enrollment Form'!$DR937=\"\"),\"N\",IF(AND('Enrollment Form'!$C937=\"Enroll\",'Enrollment Form'!$B937=\"Subscriber\",'Enrollment Form'!$CX937=\"No\",'Enrollment Form'!$DR937=\"\"),\"N\",IF(AND('Enrollment Form'!$C937=\"Enroll\",'Enrollment Form'!$B937=\"Subscriber\",'Enrollment Form'!$CX937=\"Yes\"),\"-\",\"Y\")))))","v":""},{"$f":"IF($B930=\"N\",\"\",IF(AND('Enrollment Form'!$C937=\"ROC\",'Enrollment Form'!$DS937<>\"\"),\"Y\",IF(AND('Enrollment Form'!$C937=\"ROC\",'Enrollment Form'!$DS937=\"\"),\"N\",IF(AND('Enrollment Form'!$C937=\"Enroll\",'Enrollment Form'!$B937=\"Subscriber\",'Enrollment Form'!$CX937=\"No\",'Enrollment Form'!$DS937=\"\"),\"N\",IF(AND('Enrollment Form'!$C937=\"Enroll\",'Enrollment Form'!$B937=\"Subscriber\",'Enrollment Form'!$CX937=\"Yes\"),\"-\",\"Y\")))))","v":""},{"$f":"IF('Enrollment Form'!AH937=\"\",\"\",IF(ISERROR(SEARCH(\".\",'Enrollment Form'!AH937,SEARCH(\"@\",'Enrollment Form'!AH937))),\"N\",\"Y\"))","v":""},{"$f":"IF(OR($B930=\"N\",'Enrollment Form'!$G937=\"\"),\"\",IF('Enrollment Form'!$B937<>\"Subscriber\",\"-\",IF(COUNTIF('Enrollment Form'!$AV937:$AW937,\"Yes\")=2,\"N\",\"Y\")))","v":""},{"$f":"IF(OR('Enrollment Form'!$CJ937=\"\",'Enrollment Form'!$CJ937=\"No\"),\"-\",IF(AND('Enrollment Form'!$CJ937=\"Yes\",'Enrollment Form'!$CK937=\"\"),\"N\",\"Y\"))","v":"-"},{"$f":"IF(OR('Enrollment Form'!$CL937=\"\",'Enrollment Form'!$CL937=\"No\"),\"-\",IF(AND('Enrollment Form'!$CL937=\"Yes\",'Enrollment Form'!$CM937=\"\"),\"N\",\"Y\"))","v":"-"},{"$f":"IF(OR('Enrollment Form'!$CN937=\"\",'Enrollment Form'!$CN937=\"No\"),\"-\",IF(AND('Enrollment Form'!$CN937=\"Yes\",'Enrollment Form'!$CO937=\"\"),\"N\",\"Y\"))","v":"-"},{"$f":"IF(OR('Enrollment Form'!$CN937=\"\",'Enrollment Form'!$CN937=\"No\"),\"-\",IF(AND('Enrollment Form'!$CN937=\"Yes\",'Enrollment Form'!$CP937=\"\"),\"N\",\"Y\"))","v":"-"},{"$f":"IF('Enrollment Form'!B937<>\"Subscriber\",\"-\",IF(AND('Enrollment Form'!B937=\"Subscriber\",'Enrollment Form'!C937=\"Enroll\",'Enrollment Form'!AA937=\"\"),\"N\",\"Y\"))","v":"-"},{"$f":"IF(OR('Enrollment Form'!B937=\"Subscriber\",'Enrollment Form'!B937=\"\"),\"-\",IF('Enrollment Form'!BP937=\"\",\"N\",\"Y\"))","v":"-"},{"$f":"IF('Enrollment Form'!B937<>\"Subscriber\",\"-\",IF(AND('Enrollment Form'!B937=\"Subscriber\",'Enrollment Form'!G937=\"\"),\"N\",\"Y\"))","v":"-"},{"$f":"IF('Enrollment Form'!A937=\"\",\"\",IF('Enrollment Form'!B937=\"Subscriber\",\"-\",IF(AND('Enrollment Form'!B937<>\"Subscriber\",'Enrollment Form'!G937='Enrollment Form'!H937),\"N\",\"Y\")))","v":""},0]
[938,{"$f":"IF('Enrollment Form'!$A938<>\"\",\"Y\",\"N\")","v":"N"},{"$f":"IF(AND('Enrollment Form'!$B938=\"\",'Enrollment Form'!$C938<>\"\"),\"N\",IF($B931=\"N\",\"\",\"Y\"))","v":""},{"$f":"IF(OR($B931=\"N\",'Enrollment Form'!G938=\"\"),\"\",IF('Enrollment Form'!$B938<>\"Subscriber\",\"\",IF('Enrollment Form'!$G938='Enrollment Form'!$H938,\"Y\",\"N\")))","v":""},{"$f":"IF($B931=\"N\",\"\",IF(AND(COUNTIFS('Enrollment Form'!$H$11:$H$1000,'Enrollment Form'!$H938,'Enrollment Form'!$B$11:$B$1000,'Enrollment Form'!$B938)>1,'Enrollment Form'!$H938<>\"\"),\"N\",\"Y\"))","v":""},{"$f":"IF($B931=\"N\",\"\",IF(LEN('Enrollment Form'!$Y938)=0,\"\",IF(LEN('Enrollment Form'!$Y938)<>5,\"N\",\"Y\")))","v":""},{"$f":"IF($B931=\"N\",\"\",IF(LEN('Enrollment Form'!$AD938=0),\"\",IF(LEN('Enrollment Form'!$AD938)<>5,\"N\",\"Y\")))","v":""},{"$f":"IF($B931=\"N\",\"\",IF(LEN('Enrollment Form'!$BS938=0),\"\",IF(LEN('Enrollment Form'!$BS938)<>5,\"N\",\"Y\")))","v":""},{"$f":"IF($B931=\"N\",\"\",IF(LEN('Enrollment Form'!$AE938)=0,\"\",IF(LEN('Enrollment Form'!$AE938)<>10,\"N\",\"Y\")))","v":""},{"$f":"IF($B931=\"N\",\"\",IF(LEN('Enrollment Form'!$AF938)=0,\"\",IF(LEN('Enrollment Form'!$AF938)<>10,\"N\",\"Y\")))","v":""},{"$f":"IF('Enrollment Form'!$O938<>\"Graded\",\"-\",IF(AND('Enrollment Form'!$O938=\"Graded\",'Enrollment Form'!$AR938<>\"\"),\"Y\",\"N\"))","v":"-"},{"$f":"IF($B931=\"N\",\"\",IF(OR('Enrollment Form'!$B938<>\"Subscriber\",'Enrollment Form'!$C938=\"ROC\"),\"-\",IF(AND('Enrollment Form'!$B938=\"Subscriber\",'Enrollment Form'!$C938=\"Enroll\",'Enrollment Form'!$AJ938<>\"\"),\"Y\",\"N\")))","v":""},{"$f":"IF($B931=\"N\",\"\",IF(OR('Enrollment Form'!$B938<>\"Subscriber\",'Enrollment Form'!$C938=\"ROC\"),\"-\",IF(AND('Enrollment Form'!$B938=\"Subscriber\",'Enrollment Form'!$C938=\"Enroll\",'Enrollment Form'!$AK938<>\"\"),\"Y\",\"N\")))","v":""},{"$f":"IF($B931=\"N\",\"\",IF(OR('Enrollment Form'!$B938<>\"Subscriber\",'Enrollment Form'!$C938=\"ROC\"),\"-\",IF(AND('Enrollment Form'!$B938=\"Subscriber\",'Enrollment Form'!$C938=\"Enroll\",'Enrollment Form'!$AL938<>\"\"),\"Y\",\"N\")))","v":""},{"$f":"IF($B931=\"N\",\"\",IF(OR('Enrollment Form'!$B938<>\"Subscriber\",'Enrollment Form'!$C938=\"ROC\"),\"-\",IF(AND('Enrollment Form'!$B938=\"Subscriber\",'Enrollment Form'!$C938=\"Enroll\",'Enrollment Form'!$AP938<>\"\"),\"Y\",\"N\")))","v":""},{"$f":"IF($B931=\"N\",\"\",IF(OR('Enrollment Form'!$B938<>\"Subscriber\",'Enrollment Form'!$C938=\"ROC\"),\"-\",IF(AND('Enrollment Form'!$B938=\"Subscriber\",'Enrollment Form'!$C938=\"Enroll\",'Enrollment Form'!$AQ938<>\"\"),\"Y\",\"N\")))","v":""},{"$f":"IF($B931=\"N\",\"\",IF(OR('Enrollment Form'!$B938<>\"Subscriber\",'Enrollment Form'!$C938=\"ROC\"),\"-\",IF(AND('Enrollment Form'!$B938=\"Subscriber\",'Enrollment Form'!$C938=\"Enroll\",'Enrollment Form'!$AS938<>\"\"),\"Y\",\"N\")))","v":""},{"$f":"IF($B931=\"N\",\"\",IF($Q931=\"-\",\"-\",IF(AND($Q931=\"Y\",'Enrollment Form'!$AS938=\"No\"),\"-\",IF(AND($Q931=\"Y\",'Enrollment Form'!$AS938=\"Yes\",'Enrollment Form'!$AT938<>\"\"),\"Y\",\"N\"))))","v":""},{"$f":"IF($B931=\"N\",\"\",IF(OR('Enrollment Form'!$B938<>\"Subscriber\",'Enrollment Form'!$C938=\"ROC\"),\"-\",IF(AND('Enrollment Form'!$B938=\"Subscriber\",'Enrollment Form'!$C938=\"Enroll\",'Enrollment Form'!$CV938<>\"\"),\"Y\",\"N\")))","v":""},{"$f":"IF($B931=\"N\",\"\",IF($S931=\"-\",\"-\",IF(AND($S931=\"Y\",'Enrollment Form'!$CV938=\"No\"),\"-\",IF(AND($S931=\"Y\",'Enrollment Form'!$CV938=\"Yes\",'Enrollment Form'!$CW938<>\"\"),\"Y\",\"N\"))))","v":""},{"$f":"IF(OR('Enrollment Form'!$AY938=\"Yes\",'Enrollment Form'!$AY938=\"\"),\"-\",IF(OR(AND('Enrollment Form'!$AY938=\"No\",ISERROR(FIND(\"HMO\",VLOOKUP('Enrollment Form'!G938,'Enrollment Form'!H$11:J$1000,3,FALSE),1))=FALSE,COUNTA('Enrollment Form'!$AZ938:$BC938)=4),AND('Enrollment Form'!$AY938=\"No\",ISERROR(FIND(\"HMO\",VLOOKUP('Enrollment Form'!G938,'Enrollment Form'!H$11:J$1000,3,FALSE),1))=FALSE,COUNTA('Enrollment Form'!$BT938:$BW938)=4)),\"Y\",\"N\"))","v":"-"},{"$f":"IF($B931=\"N\",\"\",IF('Enrollment Form'!$B938=\"Subscriber\",\"-\",IF(COUNTA('Enrollment Form'!$BL938,'Enrollment Form'!$BN938)=2,\"Y\",\"N\")))","v":""},{"$f":"IF($B931=\"N\",\"\",IF(OR('Enrollment Form'!$AX938=\"\",'Enrollment Form'!$AX938=\"No\"),\"-\",IF(AND('Enrollment Form'!$AX938=\"Yes\",COUNTA('Enrollment Form'!$CR938)=1),\"Y\",\"N\")))","v":""},{"$f":"IF(OR('Enrollment Form'!$CR938=\"\",'Enrollment Form'!$CR938=\"No\"),\"-\",IF(COUNTA('Enrollment Form'!$CT938:$CU938)=2,\"Y\",\"N\"))","v":"-"},{"$f":"IF($B931=\"N\",\"\",IF(COUNTIF('Enrollment Form'!$DG938:$DP938,\"Other\")=COUNTA('Enrollment Form'!$DK938,'Enrollment Form'!$DH938,'Enrollment Form'!$DN938,'Enrollment Form'!$DQ938),\"Y\",\"N\"))","v":""},{"$f":"IF($B931=\"N\",\"\",IF(OR('Enrollment Form'!B938<>\"Subscriber\",'Enrollment Form'!C938=\"ROC\",COUNTIF('Enrollment Form'!AV938:AW938,\"Yes\")>=1),\"-\",IF(AND('Enrollment Form'!C938=\"Enroll\",COUNTIF('Enrollment Form'!AV938:AW938,\"No\")=2,'Enrollment Form'!AX938=\"\"),\"N\",\"Y\")))","v":""},{"$f":"IF(OR(B931=\"N\",'Enrollment Form'!B938<>\"Subscriber\",'Enrollment Form'!C938=\"ROC\",'Enrollment Form'!O938<>\"Multiple of Salary\"),\"-\",IF(COUNTA('Enrollment Form'!T938:U938)<2,\"N\",\"Y\"))","v":"-"},{"$f":"IF(B931=\"N\",\"\",IF(OR('Enrollment Form'!C938=\"ROC\",'Enrollment Form'!B938<>\"Subscriber\",'Enrollment Form'!O938=\"Waive\",'Enrollment Form'!O938=\"\"),\"-\",IF('Enrollment Form'!P938=\"\",\"N\",\"Y\")))","v":""},{"$f":"IF($B931=\"N\",\"\",IF(AND('Enrollment Form'!$C938=\"ROC\",'Enrollment Form'!$DR938<>\"\"),\"Y\",IF(AND('Enrollment Form'!$C938=\"ROC\",'Enrollment Form'!$DR938=\"\"),\"N\",IF(AND('Enrollment Form'!$C938=\"Enroll\",'Enrollment Form'!$B938=\"Subscriber\",'Enrollment Form'!$CX938=\"No\",'Enrollment Form'!$DR938=\"\"),\"N\",IF(AND('Enrollment Form'!$C938=\"Enroll\",'Enrollment Form'!$B938=\"Subscriber\",'Enrollment Form'!$CX938=\"Yes\"),\"-\",\"Y\")))))","v":""},{"$f":"IF($B931=\"N\",\"\",IF(AND('Enrollment Form'!$C938=\"ROC\",'Enrollment Form'!$DS938<>\"\"),\"Y\",IF(AND('Enrollment Form'!$C938=\"ROC\",'Enrollment Form'!$DS938=\"\"),\"N\",IF(AND('Enrollment Form'!$C938=\"Enroll\",'Enrollment Form'!$B938=\"Subscriber\",'Enrollment Form'!$CX938=\"No\",'Enrollment Form'!$DS938=\"\"),\"N\",IF(AND('Enrollment Form'!$C938=\"Enroll\",'Enrollment Form'!$B938=\"Subscriber\",'Enrollment Form'!$CX938=\"Yes\"),\"-\",\"Y\")))))","v":""},{"$f":"IF('Enrollment Form'!AH938=\"\",\"\",IF(ISERROR(SEARCH(\".\",'Enrollment Form'!AH938,SEARCH(\"@\",'Enrollment Form'!AH938))),\"N\",\"Y\"))","v":""},{"$f":"IF(OR($B931=\"N\",'Enrollment Form'!$G938=\"\"),\"\",IF('Enrollment Form'!$B938<>\"Subscriber\",\"-\",IF(COUNTIF('Enrollment Form'!$AV938:$AW938,\"Yes\")=2,\"N\",\"Y\")))","v":""},{"$f":"IF(OR('Enrollment Form'!$CJ938=\"\",'Enrollment Form'!$CJ938=\"No\"),\"-\",IF(AND('Enrollment Form'!$CJ938=\"Yes\",'Enrollment Form'!$CK938=\"\"),\"N\",\"Y\"))","v":"-"},{"$f":"IF(OR('Enrollment Form'!$CL938=\"\",'Enrollment Form'!$CL938=\"No\"),\"-\",IF(AND('Enrollment Form'!$CL938=\"Yes\",'Enrollment Form'!$CM938=\"\"),\"N\",\"Y\"))","v":"-"},{"$f":"IF(OR('Enrollment Form'!$CN938=\"\",'Enrollment Form'!$CN938=\"No\"),\"-\",IF(AND('Enrollment Form'!$CN938=\"Yes\",'Enrollment Form'!$CO938=\"\"),\"N\",\"Y\"))","v":"-"},{"$f":"IF(OR('Enrollment Form'!$CN938=\"\",'Enrollment Form'!$CN938=\"No\"),\"-\",IF(AND('Enrollment Form'!$CN938=\"Yes\",'Enrollment Form'!$CP938=\"\"),\"N\",\"Y\"))","v":"-"},{"$f":"IF('Enrollment Form'!B938<>\"Subscriber\",\"-\",IF(AND('Enrollment Form'!B938=\"Subscriber\",'Enrollment Form'!C938=\"Enroll\",'Enrollment Form'!AA938=\"\"),\"N\",\"Y\"))","v":"-"},{"$f":"IF(OR('Enrollment Form'!B938=\"Subscriber\",'Enrollment Form'!B938=\"\"),\"-\",IF('Enrollment Form'!BP938=\"\",\"N\",\"Y\"))","v":"-"},{"$f":"IF('Enrollment Form'!B938<>\"Subscriber\",\"-\",IF(AND('Enrollment Form'!B938=\"Subscriber\",'Enrollment Form'!G938=\"\"),\"N\",\"Y\"))","v":"-"},{"$f":"IF('Enrollment Form'!A938=\"\",\"\",IF('Enrollment Form'!B938=\"Subscriber\",\"-\",IF(AND('Enrollment Form'!B938<>\"Subscriber\",'Enrollment Form'!G938='Enrollment Form'!H938),\"N\",\"Y\")))","v":""},0]
[939,{"$f":"IF('Enrollment Form'!$A939<>\"\",\"Y\",\"N\")","v":"N"},{"$f":"IF(AND('Enrollment Form'!$B939=\"\",'Enrollment Form'!$C939<>\"\"),\"N\",IF($B932=\"N\",\"\",\"Y\"))","v":""},{"$f":"IF(OR($B932=\"N\",'Enrollment Form'!G939=\"\"),\"\",IF('Enrollment Form'!$B939<>\"Subscriber\",\"\",IF('Enrollment Form'!$G939='Enrollment Form'!$H939,\"Y\",\"N\")))","v":""},{"$f":"IF($B932=\"N\",\"\",IF(AND(COUNTIFS('Enrollment Form'!$H$11:$H$1000,'Enrollment Form'!$H939,'Enrollment Form'!$B$11:$B$1000,'Enrollment Form'!$B939)>1,'Enrollment Form'!$H939<>\"\"),\"N\",\"Y\"))","v":""},{"$f":"IF($B932=\"N\",\"\",IF(LEN('Enrollment Form'!$Y939)=0,\"\",IF(LEN('Enrollment Form'!$Y939)<>5,\"N\",\"Y\")))","v":""},{"$f":"IF($B932=\"N\",\"\",IF(LEN('Enrollment Form'!$AD939=0),\"\",IF(LEN('Enrollment Form'!$AD939)<>5,\"N\",\"Y\")))","v":""},{"$f":"IF($B932=\"N\",\"\",IF(LEN('Enrollment Form'!$BS939=0),\"\",IF(LEN('Enrollment Form'!$BS939)<>5,\"N\",\"Y\")))","v":""},{"$f":"IF($B932=\"N\",\"\",IF(LEN('Enrollment Form'!$AE939)=0,\"\",IF(LEN('Enrollment Form'!$AE939)<>10,\"N\",\"Y\")))","v":""},{"$f":"IF($B932=\"N\",\"\",IF(LEN('Enrollment Form'!$AF939)=0,\"\",IF(LEN('Enrollment Form'!$AF939)<>10,\"N\",\"Y\")))","v":""},{"$f":"IF('Enrollment Form'!$O939<>\"Graded\",\"-\",IF(AND('Enrollment Form'!$O939=\"Graded\",'Enrollment Form'!$AR939<>\"\"),\"Y\",\"N\"))","v":"-"},{"$f":"IF($B932=\"N\",\"\",IF(OR('Enrollment Form'!$B939<>\"Subscriber\",'Enrollment Form'!$C939=\"ROC\"),\"-\",IF(AND('Enrollment Form'!$B939=\"Subscriber\",'Enrollment Form'!$C939=\"Enroll\",'Enrollment Form'!$AJ939<>\"\"),\"Y\",\"N\")))","v":""},{"$f":"IF($B932=\"N\",\"\",IF(OR('Enrollment Form'!$B939<>\"Subscriber\",'Enrollment Form'!$C939=\"ROC\"),\"-\",IF(AND('Enrollment Form'!$B939=\"Subscriber\",'Enrollment Form'!$C939=\"Enroll\",'Enrollment Form'!$AK939<>\"\"),\"Y\",\"N\")))","v":""},{"$f":"IF($B932=\"N\",\"\",IF(OR('Enrollment Form'!$B939<>\"Subscriber\",'Enrollment Form'!$C939=\"ROC\"),\"-\",IF(AND('Enrollment Form'!$B939=\"Subscriber\",'Enrollment Form'!$C939=\"Enroll\",'Enrollment Form'!$AL939<>\"\"),\"Y\",\"N\")))","v":""},{"$f":"IF($B932=\"N\",\"\",IF(OR('Enrollment Form'!$B939<>\"Subscriber\",'Enrollment Form'!$C939=\"ROC\"),\"-\",IF(AND('Enrollment Form'!$B939=\"Subscriber\",'Enrollment Form'!$C939=\"Enroll\",'Enrollment Form'!$AP939<>\"\"),\"Y\",\"N\")))","v":""},{"$f":"IF($B932=\"N\",\"\",IF(OR('Enrollment Form'!$B939<>\"Subscriber\",'Enrollment Form'!$C939=\"ROC\"),\"-\",IF(AND('Enrollment Form'!$B939=\"Subscriber\",'Enrollment Form'!$C939=\"Enroll\",'Enrollment Form'!$AQ939<>\"\"),\"Y\",\"N\")))","v":""},{"$f":"IF($B932=\"N\",\"\",IF(OR('Enrollment Form'!$B939<>\"Subscriber\",'Enrollment Form'!$C939=\"ROC\"),\"-\",IF(AND('Enrollment Form'!$B939=\"Subscriber\",'Enrollment Form'!$C939=\"Enroll\",'Enrollment Form'!$AS939<>\"\"),\"Y\",\"N\")))","v":""},{"$f":"IF($B932=\"N\",\"\",IF($Q932=\"-\",\"-\",IF(AND($Q932=\"Y\",'Enrollment Form'!$AS939=\"No\"),\"-\",IF(AND($Q932=\"Y\",'Enrollment Form'!$AS939=\"Yes\",'Enrollment Form'!$AT939<>\"\"),\"Y\",\"N\"))))","v":""},{"$f":"IF($B932=\"N\",\"\",IF(OR('Enrollment Form'!$B939<>\"Subscriber\",'Enrollment Form'!$C939=\"ROC\"),\"-\",IF(AND('Enrollment Form'!$B939=\"Subscriber\",'Enrollment Form'!$C939=\"Enroll\",'Enrollment Form'!$CV939<>\"\"),\"Y\",\"N\")))","v":""},{"$f":"IF($B932=\"N\",\"\",IF($S932=\"-\",\"-\",IF(AND($S932=\"Y\",'Enrollment Form'!$CV939=\"No\"),\"-\",IF(AND($S932=\"Y\",'Enrollment Form'!$CV939=\"Yes\",'Enrollment Form'!$CW939<>\"\"),\"Y\",\"N\"))))","v":""},{"$f":"IF(OR('Enrollment Form'!$AY939=\"Yes\",'Enrollment Form'!$AY939=\"\"),\"-\",IF(OR(AND('Enrollment Form'!$AY939=\"No\",ISERROR(FIND(\"HMO\",VLOOKUP('Enrollment Form'!G939,'Enrollment Form'!H$11:J$1000,3,FALSE),1))=FALSE,COUNTA('Enrollment Form'!$AZ939:$BC939)=4),AND('Enrollment Form'!$AY939=\"No\",ISERROR(FIND(\"HMO\",VLOOKUP('Enrollment Form'!G939,'Enrollment Form'!H$11:J$1000,3,FALSE),1))=FALSE,COUNTA('Enrollment Form'!$BT939:$BW939)=4)),\"Y\",\"N\"))","v":"-"},{"$f":"IF($B932=\"N\",\"\",IF('Enrollment Form'!$B939=\"Subscriber\",\"-\",IF(COUNTA('Enrollment Form'!$BL939,'Enrollment Form'!$BN939)=2,\"Y\",\"N\")))","v":""},{"$f":"IF($B932=\"N\",\"\",IF(OR('Enrollment Form'!$AX939=\"\",'Enrollment Form'!$AX939=\"No\"),\"-\",IF(AND('Enrollment Form'!$AX939=\"Yes\",COUNTA('Enrollment Form'!$CR939)=1),\"Y\",\"N\")))","v":""},{"$f":"IF(OR('Enrollment Form'!$CR939=\"\",'Enrollment Form'!$CR939=\"No\"),\"-\",IF(COUNTA('Enrollment Form'!$CT939:$CU939)=2,\"Y\",\"N\"))","v":"-"},{"$f":"IF($B932=\"N\",\"\",IF(COUNTIF('Enrollment Form'!$DG939:$DP939,\"Other\")=COUNTA('Enrollment Form'!$DK939,'Enrollment Form'!$DH939,'Enrollment Form'!$DN939,'Enrollment Form'!$DQ939),\"Y\",\"N\"))","v":""},{"$f":"IF($B932=\"N\",\"\",IF(OR('Enrollment Form'!B939<>\"Subscriber\",'Enrollment Form'!C939=\"ROC\",COUNTIF('Enrollment Form'!AV939:AW939,\"Yes\")>=1),\"-\",IF(AND('Enrollment Form'!C939=\"Enroll\",COUNTIF('Enrollment Form'!AV939:AW939,\"No\")=2,'Enrollment Form'!AX939=\"\"),\"N\",\"Y\")))","v":""},{"$f":"IF(OR(B932=\"N\",'Enrollment Form'!B939<>\"Subscriber\",'Enrollment Form'!C939=\"ROC\",'Enrollment Form'!O939<>\"Multiple of Salary\"),\"-\",IF(COUNTA('Enrollment Form'!T939:U939)<2,\"N\",\"Y\"))","v":"-"},{"$f":"IF(B932=\"N\",\"\",IF(OR('Enrollment Form'!C939=\"ROC\",'Enrollment Form'!B939<>\"Subscriber\",'Enrollment Form'!O939=\"Waive\",'Enrollment Form'!O939=\"\"),\"-\",IF('Enrollment Form'!P939=\"\",\"N\",\"Y\")))","v":""},{"$f":"IF($B932=\"N\",\"\",IF(AND('Enrollment Form'!$C939=\"ROC\",'Enrollment Form'!$DR939<>\"\"),\"Y\",IF(AND('Enrollment Form'!$C939=\"ROC\",'Enrollment Form'!$DR939=\"\"),\"N\",IF(AND('Enrollment Form'!$C939=\"Enroll\",'Enrollment Form'!$B939=\"Subscriber\",'Enrollment Form'!$CX939=\"No\",'Enrollment Form'!$DR939=\"\"),\"N\",IF(AND('Enrollment Form'!$C939=\"Enroll\",'Enrollment Form'!$B939=\"Subscriber\",'Enrollment Form'!$CX939=\"Yes\"),\"-\",\"Y\")))))","v":""},{"$f":"IF($B932=\"N\",\"\",IF(AND('Enrollment Form'!$C939=\"ROC\",'Enrollment Form'!$DS939<>\"\"),\"Y\",IF(AND('Enrollment Form'!$C939=\"ROC\",'Enrollment Form'!$DS939=\"\"),\"N\",IF(AND('Enrollment Form'!$C939=\"Enroll\",'Enrollment Form'!$B939=\"Subscriber\",'Enrollment Form'!$CX939=\"No\",'Enrollment Form'!$DS939=\"\"),\"N\",IF(AND('Enrollment Form'!$C939=\"Enroll\",'Enrollment Form'!$B939=\"Subscriber\",'Enrollment Form'!$CX939=\"Yes\"),\"-\",\"Y\")))))","v":""},{"$f":"IF('Enrollment Form'!AH939=\"\",\"\",IF(ISERROR(SEARCH(\".\",'Enrollment Form'!AH939,SEARCH(\"@\",'Enrollment Form'!AH939))),\"N\",\"Y\"))","v":""},{"$f":"IF(OR($B932=\"N\",'Enrollment Form'!$G939=\"\"),\"\",IF('Enrollment Form'!$B939<>\"Subscriber\",\"-\",IF(COUNTIF('Enrollment Form'!$AV939:$AW939,\"Yes\")=2,\"N\",\"Y\")))","v":""},{"$f":"IF(OR('Enrollment Form'!$CJ939=\"\",'Enrollment Form'!$CJ939=\"No\"),\"-\",IF(AND('Enrollment Form'!$CJ939=\"Yes\",'Enrollment Form'!$CK939=\"\"),\"N\",\"Y\"))","v":"-"},{"$f":"IF(OR('Enrollment Form'!$CL939=\"\",'Enrollment Form'!$CL939=\"No\"),\"-\",IF(AND('Enrollment Form'!$CL939=\"Yes\",'Enrollment Form'!$CM939=\"\"),\"N\",\"Y\"))","v":"-"},{"$f":"IF(OR('Enrollment Form'!$CN939=\"\",'Enrollment Form'!$CN939=\"No\"),\"-\",IF(AND('Enrollment Form'!$CN939=\"Yes\",'Enrollment Form'!$CO939=\"\"),\"N\",\"Y\"))","v":"-"},{"$f":"IF(OR('Enrollment Form'!$CN939=\"\",'Enrollment Form'!$CN939=\"No\"),\"-\",IF(AND('Enrollment Form'!$CN939=\"Yes\",'Enrollment Form'!$CP939=\"\"),\"N\",\"Y\"))","v":"-"},{"$f":"IF('Enrollment Form'!B939<>\"Subscriber\",\"-\",IF(AND('Enrollment Form'!B939=\"Subscriber\",'Enrollment Form'!C939=\"Enroll\",'Enrollment Form'!AA939=\"\"),\"N\",\"Y\"))","v":"-"},{"$f":"IF(OR('Enrollment Form'!B939=\"Subscriber\",'Enrollment Form'!B939=\"\"),\"-\",IF('Enrollment Form'!BP939=\"\",\"N\",\"Y\"))","v":"-"},{"$f":"IF('Enrollment Form'!B939<>\"Subscriber\",\"-\",IF(AND('Enrollment Form'!B939=\"Subscriber\",'Enrollment Form'!G939=\"\"),\"N\",\"Y\"))","v":"-"},{"$f":"IF('Enrollment Form'!A939=\"\",\"\",IF('Enrollment Form'!B939=\"Subscriber\",\"-\",IF(AND('Enrollment Form'!B939<>\"Subscriber\",'Enrollment Form'!G939='Enrollment Form'!H939),\"N\",\"Y\")))","v":""},0]
[940,{"$f":"IF('Enrollment Form'!$A940<>\"\",\"Y\",\"N\")","v":"N"},{"$f":"IF(AND('Enrollment Form'!$B940=\"\",'Enrollment Form'!$C940<>\"\"),\"N\",IF($B933=\"N\",\"\",\"Y\"))","v":""},{"$f":"IF(OR($B933=\"N\",'Enrollment Form'!G940=\"\"),\"\",IF('Enrollment Form'!$B940<>\"Subscriber\",\"\",IF('Enrollment Form'!$G940='Enrollment Form'!$H940,\"Y\",\"N\")))","v":""},{"$f":"IF($B933=\"N\",\"\",IF(AND(COUNTIFS('Enrollment Form'!$H$11:$H$1000,'Enrollment Form'!$H940,'Enrollment Form'!$B$11:$B$1000,'Enrollment Form'!$B940)>1,'Enrollment Form'!$H940<>\"\"),\"N\",\"Y\"))","v":""},{"$f":"IF($B933=\"N\",\"\",IF(LEN('Enrollment Form'!$Y940)=0,\"\",IF(LEN('Enrollment Form'!$Y940)<>5,\"N\",\"Y\")))","v":""},{"$f":"IF($B933=\"N\",\"\",IF(LEN('Enrollment Form'!$AD940=0),\"\",IF(LEN('Enrollment Form'!$AD940)<>5,\"N\",\"Y\")))","v":""},{"$f":"IF($B933=\"N\",\"\",IF(LEN('Enrollment Form'!$BS940=0),\"\",IF(LEN('Enrollment Form'!$BS940)<>5,\"N\",\"Y\")))","v":""},{"$f":"IF($B933=\"N\",\"\",IF(LEN('Enrollment Form'!$AE940)=0,\"\",IF(LEN('Enrollment Form'!$AE940)<>10,\"N\",\"Y\")))","v":""},{"$f":"IF($B933=\"N\",\"\",IF(LEN('Enrollment Form'!$AF940)=0,\"\",IF(LEN('Enrollment Form'!$AF940)<>10,\"N\",\"Y\")))","v":""},{"$f":"IF('Enrollment Form'!$O940<>\"Graded\",\"-\",IF(AND('Enrollment Form'!$O940=\"Graded\",'Enrollment Form'!$AR940<>\"\"),\"Y\",\"N\"))","v":"-"},{"$f":"IF($B933=\"N\",\"\",IF(OR('Enrollment Form'!$B940<>\"Subscriber\",'Enrollment Form'!$C940=\"ROC\"),\"-\",IF(AND('Enrollment Form'!$B940=\"Subscriber\",'Enrollment Form'!$C940=\"Enroll\",'Enrollment Form'!$AJ940<>\"\"),\"Y\",\"N\")))","v":""},{"$f":"IF($B933=\"N\",\"\",IF(OR('Enrollment Form'!$B940<>\"Subscriber\",'Enrollment Form'!$C940=\"ROC\"),\"-\",IF(AND('Enrollment Form'!$B940=\"Subscriber\",'Enrollment Form'!$C940=\"Enroll\",'Enrollment Form'!$AK940<>\"\"),\"Y\",\"N\")))","v":""},{"$f":"IF($B933=\"N\",\"\",IF(OR('Enrollment Form'!$B940<>\"Subscriber\",'Enrollment Form'!$C940=\"ROC\"),\"-\",IF(AND('Enrollment Form'!$B940=\"Subscriber\",'Enrollment Form'!$C940=\"Enroll\",'Enrollment Form'!$AL940<>\"\"),\"Y\",\"N\")))","v":""},{"$f":"IF($B933=\"N\",\"\",IF(OR('Enrollment Form'!$B940<>\"Subscriber\",'Enrollment Form'!$C940=\"ROC\"),\"-\",IF(AND('Enrollment Form'!$B940=\"Subscriber\",'Enrollment Form'!$C940=\"Enroll\",'Enrollment Form'!$AP940<>\"\"),\"Y\",\"N\")))","v":""},{"$f":"IF($B933=\"N\",\"\",IF(OR('Enrollment Form'!$B940<>\"Subscriber\",'Enrollment Form'!$C940=\"ROC\"),\"-\",IF(AND('Enrollment Form'!$B940=\"Subscriber\",'Enrollment Form'!$C940=\"Enroll\",'Enrollment Form'!$AQ940<>\"\"),\"Y\",\"N\")))","v":""},{"$f":"IF($B933=\"N\",\"\",IF(OR('Enrollment Form'!$B940<>\"Subscriber\",'Enrollment Form'!$C940=\"ROC\"),\"-\",IF(AND('Enrollment Form'!$B940=\"Subscriber\",'Enrollment Form'!$C940=\"Enroll\",'Enrollment Form'!$AS940<>\"\"),\"Y\",\"N\")))","v":""},{"$f":"IF($B933=\"N\",\"\",IF($Q933=\"-\",\"-\",IF(AND($Q933=\"Y\",'Enrollment Form'!$AS940=\"No\"),\"-\",IF(AND($Q933=\"Y\",'Enrollment Form'!$AS940=\"Yes\",'Enrollment Form'!$AT940<>\"\"),\"Y\",\"N\"))))","v":""},{"$f":"IF($B933=\"N\",\"\",IF(OR('Enrollment Form'!$B940<>\"Subscriber\",'Enrollment Form'!$C940=\"ROC\"),\"-\",IF(AND('Enrollment Form'!$B940=\"Subscriber\",'Enrollment Form'!$C940=\"Enroll\",'Enrollment Form'!$CV940<>\"\"),\"Y\",\"N\")))","v":""},{"$f":"IF($B933=\"N\",\"\",IF($S933=\"-\",\"-\",IF(AND($S933=\"Y\",'Enrollment Form'!$CV940=\"No\"),\"-\",IF(AND($S933=\"Y\",'Enrollment Form'!$CV940=\"Yes\",'Enrollment Form'!$CW940<>\"\"),\"Y\",\"N\"))))","v":""},{"$f":"IF(OR('Enrollment Form'!$AY940=\"Yes\",'Enrollment Form'!$AY940=\"\"),\"-\",IF(OR(AND('Enrollment Form'!$AY940=\"No\",ISERROR(FIND(\"HMO\",VLOOKUP('Enrollment Form'!G940,'Enrollment Form'!H$11:J$1000,3,FALSE),1))=FALSE,COUNTA('Enrollment Form'!$AZ940:$BC940)=4),AND('Enrollment Form'!$AY940=\"No\",ISERROR(FIND(\"HMO\",VLOOKUP('Enrollment Form'!G940,'Enrollment Form'!H$11:J$1000,3,FALSE),1))=FALSE,COUNTA('Enrollment Form'!$BT940:$BW940)=4)),\"Y\",\"N\"))","v":"-"},{"$f":"IF($B933=\"N\",\"\",IF('Enrollment Form'!$B940=\"Subscriber\",\"-\",IF(COUNTA('Enrollment Form'!$BL940,'Enrollment Form'!$BN940)=2,\"Y\",\"N\")))","v":""},{"$f":"IF($B933=\"N\",\"\",IF(OR('Enrollment Form'!$AX940=\"\",'Enrollment Form'!$AX940=\"No\"),\"-\",IF(AND('Enrollment Form'!$AX940=\"Yes\",COUNTA('Enrollment Form'!$CR940)=1),\"Y\",\"N\")))","v":""},{"$f":"IF(OR('Enrollment Form'!$CR940=\"\",'Enrollment Form'!$CR940=\"No\"),\"-\",IF(COUNTA('Enrollment Form'!$CT940:$CU940)=2,\"Y\",\"N\"))","v":"-"},{"$f":"IF($B933=\"N\",\"\",IF(COUNTIF('Enrollment Form'!$DG940:$DP940,\"Other\")=COUNTA('Enrollment Form'!$DK940,'Enrollment Form'!$DH940,'Enrollment Form'!$DN940,'Enrollment Form'!$DQ940),\"Y\",\"N\"))","v":""},{"$f":"IF($B933=\"N\",\"\",IF(OR('Enrollment Form'!B940<>\"Subscriber\",'Enrollment Form'!C940=\"ROC\",COUNTIF('Enrollment Form'!AV940:AW940,\"Yes\")>=1),\"-\",IF(AND('Enrollment Form'!C940=\"Enroll\",COUNTIF('Enrollment Form'!AV940:AW940,\"No\")=2,'Enrollment Form'!AX940=\"\"),\"N\",\"Y\")))","v":""},{"$f":"IF(OR(B933=\"N\",'Enrollment Form'!B940<>\"Subscriber\",'Enrollment Form'!C940=\"ROC\",'Enrollment Form'!O940<>\"Multiple of Salary\"),\"-\",IF(COUNTA('Enrollment Form'!T940:U940)<2,\"N\",\"Y\"))","v":"-"},{"$f":"IF(B933=\"N\",\"\",IF(OR('Enrollment Form'!C940=\"ROC\",'Enrollment Form'!B940<>\"Subscriber\",'Enrollment Form'!O940=\"Waive\",'Enrollment Form'!O940=\"\"),\"-\",IF('Enrollment Form'!P940=\"\",\"N\",\"Y\")))","v":""},{"$f":"IF($B933=\"N\",\"\",IF(AND('Enrollment Form'!$C940=\"ROC\",'Enrollment Form'!$DR940<>\"\"),\"Y\",IF(AND('Enrollment Form'!$C940=\"ROC\",'Enrollment Form'!$DR940=\"\"),\"N\",IF(AND('Enrollment Form'!$C940=\"Enroll\",'Enrollment Form'!$B940=\"Subscriber\",'Enrollment Form'!$CX940=\"No\",'Enrollment Form'!$DR940=\"\"),\"N\",IF(AND('Enrollment Form'!$C940=\"Enroll\",'Enrollment Form'!$B940=\"Subscriber\",'Enrollment Form'!$CX940=\"Yes\"),\"-\",\"Y\")))))","v":""},{"$f":"IF($B933=\"N\",\"\",IF(AND('Enrollment Form'!$C940=\"ROC\",'Enrollment Form'!$DS940<>\"\"),\"Y\",IF(AND('Enrollment Form'!$C940=\"ROC\",'Enrollment Form'!$DS940=\"\"),\"N\",IF(AND('Enrollment Form'!$C940=\"Enroll\",'Enrollment Form'!$B940=\"Subscriber\",'Enrollment Form'!$CX940=\"No\",'Enrollment Form'!$DS940=\"\"),\"N\",IF(AND('Enrollment Form'!$C940=\"Enroll\",'Enrollment Form'!$B940=\"Subscriber\",'Enrollment Form'!$CX940=\"Yes\"),\"-\",\"Y\")))))","v":""},{"$f":"IF('Enrollment Form'!AH940=\"\",\"\",IF(ISERROR(SEARCH(\".\",'Enrollment Form'!AH940,SEARCH(\"@\",'Enrollment Form'!AH940))),\"N\",\"Y\"))","v":""},{"$f":"IF(OR($B933=\"N\",'Enrollment Form'!$G940=\"\"),\"\",IF('Enrollment Form'!$B940<>\"Subscriber\",\"-\",IF(COUNTIF('Enrollment Form'!$AV940:$AW940,\"Yes\")=2,\"N\",\"Y\")))","v":""},{"$f":"IF(OR('Enrollment Form'!$CJ940=\"\",'Enrollment Form'!$CJ940=\"No\"),\"-\",IF(AND('Enrollment Form'!$CJ940=\"Yes\",'Enrollment Form'!$CK940=\"\"),\"N\",\"Y\"))","v":"-"},{"$f":"IF(OR('Enrollment Form'!$CL940=\"\",'Enrollment Form'!$CL940=\"No\"),\"-\",IF(AND('Enrollment Form'!$CL940=\"Yes\",'Enrollment Form'!$CM940=\"\"),\"N\",\"Y\"))","v":"-"},{"$f":"IF(OR('Enrollment Form'!$CN940=\"\",'Enrollment Form'!$CN940=\"No\"),\"-\",IF(AND('Enrollment Form'!$CN940=\"Yes\",'Enrollment Form'!$CO940=\"\"),\"N\",\"Y\"))","v":"-"},{"$f":"IF(OR('Enrollment Form'!$CN940=\"\",'Enrollment Form'!$CN940=\"No\"),\"-\",IF(AND('Enrollment Form'!$CN940=\"Yes\",'Enrollment Form'!$CP940=\"\"),\"N\",\"Y\"))","v":"-"},{"$f":"IF('Enrollment Form'!B940<>\"Subscriber\",\"-\",IF(AND('Enrollment Form'!B940=\"Subscriber\",'Enrollment Form'!C940=\"Enroll\",'Enrollment Form'!AA940=\"\"),\"N\",\"Y\"))","v":"-"},{"$f":"IF(OR('Enrollment Form'!B940=\"Subscriber\",'Enrollment Form'!B940=\"\"),\"-\",IF('Enrollment Form'!BP940=\"\",\"N\",\"Y\"))","v":"-"},{"$f":"IF('Enrollment Form'!B940<>\"Subscriber\",\"-\",IF(AND('Enrollment Form'!B940=\"Subscriber\",'Enrollment Form'!G940=\"\"),\"N\",\"Y\"))","v":"-"},{"$f":"IF('Enrollment Form'!A940=\"\",\"\",IF('Enrollment Form'!B940=\"Subscriber\",\"-\",IF(AND('Enrollment Form'!B940<>\"Subscriber\",'Enrollment Form'!G940='Enrollment Form'!H940),\"N\",\"Y\")))","v":""},0]
[941,{"$f":"IF('Enrollment Form'!$A941<>\"\",\"Y\",\"N\")","v":"N"},{"$f":"IF(AND('Enrollment Form'!$B941=\"\",'Enrollment Form'!$C941<>\"\"),\"N\",IF($B934=\"N\",\"\",\"Y\"))","v":""},{"$f":"IF(OR($B934=\"N\",'Enrollment Form'!G941=\"\"),\"\",IF('Enrollment Form'!$B941<>\"Subscriber\",\"\",IF('Enrollment Form'!$G941='Enrollment Form'!$H941,\"Y\",\"N\")))","v":""},{"$f":"IF($B934=\"N\",\"\",IF(AND(COUNTIFS('Enrollment Form'!$H$11:$H$1000,'Enrollment Form'!$H941,'Enrollment Form'!$B$11:$B$1000,'Enrollment Form'!$B941)>1,'Enrollment Form'!$H941<>\"\"),\"N\",\"Y\"))","v":""},{"$f":"IF($B934=\"N\",\"\",IF(LEN('Enrollment Form'!$Y941)=0,\"\",IF(LEN('Enrollment Form'!$Y941)<>5,\"N\",\"Y\")))","v":""},{"$f":"IF($B934=\"N\",\"\",IF(LEN('Enrollment Form'!$AD941=0),\"\",IF(LEN('Enrollment Form'!$AD941)<>5,\"N\",\"Y\")))","v":""},{"$f":"IF($B934=\"N\",\"\",IF(LEN('Enrollment Form'!$BS941=0),\"\",IF(LEN('Enrollment Form'!$BS941)<>5,\"N\",\"Y\")))","v":""},{"$f":"IF($B934=\"N\",\"\",IF(LEN('Enrollment Form'!$AE941)=0,\"\",IF(LEN('Enrollment Form'!$AE941)<>10,\"N\",\"Y\")))","v":""},{"$f":"IF($B934=\"N\",\"\",IF(LEN('Enrollment Form'!$AF941)=0,\"\",IF(LEN('Enrollment Form'!$AF941)<>10,\"N\",\"Y\")))","v":""},{"$f":"IF('Enrollment Form'!$O941<>\"Graded\",\"-\",IF(AND('Enrollment Form'!$O941=\"Graded\",'Enrollment Form'!$AR941<>\"\"),\"Y\",\"N\"))","v":"-"},{"$f":"IF($B934=\"N\",\"\",IF(OR('Enrollment Form'!$B941<>\"Subscriber\",'Enrollment Form'!$C941=\"ROC\"),\"-\",IF(AND('Enrollment Form'!$B941=\"Subscriber\",'Enrollment Form'!$C941=\"Enroll\",'Enrollment Form'!$AJ941<>\"\"),\"Y\",\"N\")))","v":""},{"$f":"IF($B934=\"N\",\"\",IF(OR('Enrollment Form'!$B941<>\"Subscriber\",'Enrollment Form'!$C941=\"ROC\"),\"-\",IF(AND('Enrollment Form'!$B941=\"Subscriber\",'Enrollment Form'!$C941=\"Enroll\",'Enrollment Form'!$AK941<>\"\"),\"Y\",\"N\")))","v":""},{"$f":"IF($B934=\"N\",\"\",IF(OR('Enrollment Form'!$B941<>\"Subscriber\",'Enrollment Form'!$C941=\"ROC\"),\"-\",IF(AND('Enrollment Form'!$B941=\"Subscriber\",'Enrollment Form'!$C941=\"Enroll\",'Enrollment Form'!$AL941<>\"\"),\"Y\",\"N\")))","v":""},{"$f":"IF($B934=\"N\",\"\",IF(OR('Enrollment Form'!$B941<>\"Subscriber\",'Enrollment Form'!$C941=\"ROC\"),\"-\",IF(AND('Enrollment Form'!$B941=\"Subscriber\",'Enrollment Form'!$C941=\"Enroll\",'Enrollment Form'!$AP941<>\"\"),\"Y\",\"N\")))","v":""},{"$f":"IF($B934=\"N\",\"\",IF(OR('Enrollment Form'!$B941<>\"Subscriber\",'Enrollment Form'!$C941=\"ROC\"),\"-\",IF(AND('Enrollment Form'!$B941=\"Subscriber\",'Enrollment Form'!$C941=\"Enroll\",'Enrollment Form'!$AQ941<>\"\"),\"Y\",\"N\")))","v":""},{"$f":"IF($B934=\"N\",\"\",IF(OR('Enrollment Form'!$B941<>\"Subscriber\",'Enrollment Form'!$C941=\"ROC\"),\"-\",IF(AND('Enrollment Form'!$B941=\"Subscriber\",'Enrollment Form'!$C941=\"Enroll\",'Enrollment Form'!$AS941<>\"\"),\"Y\",\"N\")))","v":""},{"$f":"IF($B934=\"N\",\"\",IF($Q934=\"-\",\"-\",IF(AND($Q934=\"Y\",'Enrollment Form'!$AS941=\"No\"),\"-\",IF(AND($Q934=\"Y\",'Enrollment Form'!$AS941=\"Yes\",'Enrollment Form'!$AT941<>\"\"),\"Y\",\"N\"))))","v":""},{"$f":"IF($B934=\"N\",\"\",IF(OR('Enrollment Form'!$B941<>\"Subscriber\",'Enrollment Form'!$C941=\"ROC\"),\"-\",IF(AND('Enrollment Form'!$B941=\"Subscriber\",'Enrollment Form'!$C941=\"Enroll\",'Enrollment Form'!$CV941<>\"\"),\"Y\",\"N\")))","v":""},{"$f":"IF($B934=\"N\",\"\",IF($S934=\"-\",\"-\",IF(AND($S934=\"Y\",'Enrollment Form'!$CV941=\"No\"),\"-\",IF(AND($S934=\"Y\",'Enrollment Form'!$CV941=\"Yes\",'Enrollment Form'!$CW941<>\"\"),\"Y\",\"N\"))))","v":""},{"$f":"IF(OR('Enrollment Form'!$AY941=\"Yes\",'Enrollment Form'!$AY941=\"\"),\"-\",IF(OR(AND('Enrollment Form'!$AY941=\"No\",ISERROR(FIND(\"HMO\",VLOOKUP('Enrollment Form'!G941,'Enrollment Form'!H$11:J$1000,3,FALSE),1))=FALSE,COUNTA('Enrollment Form'!$AZ941:$BC941)=4),AND('Enrollment Form'!$AY941=\"No\",ISERROR(FIND(\"HMO\",VLOOKUP('Enrollment Form'!G941,'Enrollment Form'!H$11:J$1000,3,FALSE),1))=FALSE,COUNTA('Enrollment Form'!$BT941:$BW941)=4)),\"Y\",\"N\"))","v":"-"},{"$f":"IF($B934=\"N\",\"\",IF('Enrollment Form'!$B941=\"Subscriber\",\"-\",IF(COUNTA('Enrollment Form'!$BL941,'Enrollment Form'!$BN941)=2,\"Y\",\"N\")))","v":""},{"$f":"IF($B934=\"N\",\"\",IF(OR('Enrollment Form'!$AX941=\"\",'Enrollment Form'!$AX941=\"No\"),\"-\",IF(AND('Enrollment Form'!$AX941=\"Yes\",COUNTA('Enrollment Form'!$CR941)=1),\"Y\",\"N\")))","v":""},{"$f":"IF(OR('Enrollment Form'!$CR941=\"\",'Enrollment Form'!$CR941=\"No\"),\"-\",IF(COUNTA('Enrollment Form'!$CT941:$CU941)=2,\"Y\",\"N\"))","v":"-"},{"$f":"IF($B934=\"N\",\"\",IF(COUNTIF('Enrollment Form'!$DG941:$DP941,\"Other\")=COUNTA('Enrollment Form'!$DK941,'Enrollment Form'!$DH941,'Enrollment Form'!$DN941,'Enrollment Form'!$DQ941),\"Y\",\"N\"))","v":""},{"$f":"IF($B934=\"N\",\"\",IF(OR('Enrollment Form'!B941<>\"Subscriber\",'Enrollment Form'!C941=\"ROC\",COUNTIF('Enrollment Form'!AV941:AW941,\"Yes\")>=1),\"-\",IF(AND('Enrollment Form'!C941=\"Enroll\",COUNTIF('Enrollment Form'!AV941:AW941,\"No\")=2,'Enrollment Form'!AX941=\"\"),\"N\",\"Y\")))","v":""},{"$f":"IF(OR(B934=\"N\",'Enrollment Form'!B941<>\"Subscriber\",'Enrollment Form'!C941=\"ROC\",'Enrollment Form'!O941<>\"Multiple of Salary\"),\"-\",IF(COUNTA('Enrollment Form'!T941:U941)<2,\"N\",\"Y\"))","v":"-"},{"$f":"IF(B934=\"N\",\"\",IF(OR('Enrollment Form'!C941=\"ROC\",'Enrollment Form'!B941<>\"Subscriber\",'Enrollment Form'!O941=\"Waive\",'Enrollment Form'!O941=\"\"),\"-\",IF('Enrollment Form'!P941=\"\",\"N\",\"Y\")))","v":""},{"$f":"IF($B934=\"N\",\"\",IF(AND('Enrollment Form'!$C941=\"ROC\",'Enrollment Form'!$DR941<>\"\"),\"Y\",IF(AND('Enrollment Form'!$C941=\"ROC\",'Enrollment Form'!$DR941=\"\"),\"N\",IF(AND('Enrollment Form'!$C941=\"Enroll\",'Enrollment Form'!$B941=\"Subscriber\",'Enrollment Form'!$CX941=\"No\",'Enrollment Form'!$DR941=\"\"),\"N\",IF(AND('Enrollment Form'!$C941=\"Enroll\",'Enrollment Form'!$B941=\"Subscriber\",'Enrollment Form'!$CX941=\"Yes\"),\"-\",\"Y\")))))","v":""},{"$f":"IF($B934=\"N\",\"\",IF(AND('Enrollment Form'!$C941=\"ROC\",'Enrollment Form'!$DS941<>\"\"),\"Y\",IF(AND('Enrollment Form'!$C941=\"ROC\",'Enrollment Form'!$DS941=\"\"),\"N\",IF(AND('Enrollment Form'!$C941=\"Enroll\",'Enrollment Form'!$B941=\"Subscriber\",'Enrollment Form'!$CX941=\"No\",'Enrollment Form'!$DS941=\"\"),\"N\",IF(AND('Enrollment Form'!$C941=\"Enroll\",'Enrollment Form'!$B941=\"Subscriber\",'Enrollment Form'!$CX941=\"Yes\"),\"-\",\"Y\")))))","v":""},{"$f":"IF('Enrollment Form'!AH941=\"\",\"\",IF(ISERROR(SEARCH(\".\",'Enrollment Form'!AH941,SEARCH(\"@\",'Enrollment Form'!AH941))),\"N\",\"Y\"))","v":""},{"$f":"IF(OR($B934=\"N\",'Enrollment Form'!$G941=\"\"),\"\",IF('Enrollment Form'!$B941<>\"Subscriber\",\"-\",IF(COUNTIF('Enrollment Form'!$AV941:$AW941,\"Yes\")=2,\"N\",\"Y\")))","v":""},{"$f":"IF(OR('Enrollment Form'!$CJ941=\"\",'Enrollment Form'!$CJ941=\"No\"),\"-\",IF(AND('Enrollment Form'!$CJ941=\"Yes\",'Enrollment Form'!$CK941=\"\"),\"N\",\"Y\"))","v":"-"},{"$f":"IF(OR('Enrollment Form'!$CL941=\"\",'Enrollment Form'!$CL941=\"No\"),\"-\",IF(AND('Enrollment Form'!$CL941=\"Yes\",'Enrollment Form'!$CM941=\"\"),\"N\",\"Y\"))","v":"-"},{"$f":"IF(OR('Enrollment Form'!$CN941=\"\",'Enrollment Form'!$CN941=\"No\"),\"-\",IF(AND('Enrollment Form'!$CN941=\"Yes\",'Enrollment Form'!$CO941=\"\"),\"N\",\"Y\"))","v":"-"},{"$f":"IF(OR('Enrollment Form'!$CN941=\"\",'Enrollment Form'!$CN941=\"No\"),\"-\",IF(AND('Enrollment Form'!$CN941=\"Yes\",'Enrollment Form'!$CP941=\"\"),\"N\",\"Y\"))","v":"-"},{"$f":"IF('Enrollment Form'!B941<>\"Subscriber\",\"-\",IF(AND('Enrollment Form'!B941=\"Subscriber\",'Enrollment Form'!C941=\"Enroll\",'Enrollment Form'!AA941=\"\"),\"N\",\"Y\"))","v":"-"},{"$f":"IF(OR('Enrollment Form'!B941=\"Subscriber\",'Enrollment Form'!B941=\"\"),\"-\",IF('Enrollment Form'!BP941=\"\",\"N\",\"Y\"))","v":"-"},{"$f":"IF('Enrollment Form'!B941<>\"Subscriber\",\"-\",IF(AND('Enrollment Form'!B941=\"Subscriber\",'Enrollment Form'!G941=\"\"),\"N\",\"Y\"))","v":"-"},{"$f":"IF('Enrollment Form'!A941=\"\",\"\",IF('Enrollment Form'!B941=\"Subscriber\",\"-\",IF(AND('Enrollment Form'!B941<>\"Subscriber\",'Enrollment Form'!G941='Enrollment Form'!H941),\"N\",\"Y\")))","v":""},0]
[942,{"$f":"IF('Enrollment Form'!$A942<>\"\",\"Y\",\"N\")","v":"N"},{"$f":"IF(AND('Enrollment Form'!$B942=\"\",'Enrollment Form'!$C942<>\"\"),\"N\",IF($B935=\"N\",\"\",\"Y\"))","v":""},{"$f":"IF(OR($B935=\"N\",'Enrollment Form'!G942=\"\"),\"\",IF('Enrollment Form'!$B942<>\"Subscriber\",\"\",IF('Enrollment Form'!$G942='Enrollment Form'!$H942,\"Y\",\"N\")))","v":""},{"$f":"IF($B935=\"N\",\"\",IF(AND(COUNTIFS('Enrollment Form'!$H$11:$H$1000,'Enrollment Form'!$H942,'Enrollment Form'!$B$11:$B$1000,'Enrollment Form'!$B942)>1,'Enrollment Form'!$H942<>\"\"),\"N\",\"Y\"))","v":""},{"$f":"IF($B935=\"N\",\"\",IF(LEN('Enrollment Form'!$Y942)=0,\"\",IF(LEN('Enrollment Form'!$Y942)<>5,\"N\",\"Y\")))","v":""},{"$f":"IF($B935=\"N\",\"\",IF(LEN('Enrollment Form'!$AD942=0),\"\",IF(LEN('Enrollment Form'!$AD942)<>5,\"N\",\"Y\")))","v":""},{"$f":"IF($B935=\"N\",\"\",IF(LEN('Enrollment Form'!$BS942=0),\"\",IF(LEN('Enrollment Form'!$BS942)<>5,\"N\",\"Y\")))","v":""},{"$f":"IF($B935=\"N\",\"\",IF(LEN('Enrollment Form'!$AE942)=0,\"\",IF(LEN('Enrollment Form'!$AE942)<>10,\"N\",\"Y\")))","v":""},{"$f":"IF($B935=\"N\",\"\",IF(LEN('Enrollment Form'!$AF942)=0,\"\",IF(LEN('Enrollment Form'!$AF942)<>10,\"N\",\"Y\")))","v":""},{"$f":"IF('Enrollment Form'!$O942<>\"Graded\",\"-\",IF(AND('Enrollment Form'!$O942=\"Graded\",'Enrollment Form'!$AR942<>\"\"),\"Y\",\"N\"))","v":"-"},{"$f":"IF($B935=\"N\",\"\",IF(OR('Enrollment Form'!$B942<>\"Subscriber\",'Enrollment Form'!$C942=\"ROC\"),\"-\",IF(AND('Enrollment Form'!$B942=\"Subscriber\",'Enrollment Form'!$C942=\"Enroll\",'Enrollment Form'!$AJ942<>\"\"),\"Y\",\"N\")))","v":""},{"$f":"IF($B935=\"N\",\"\",IF(OR('Enrollment Form'!$B942<>\"Subscriber\",'Enrollment Form'!$C942=\"ROC\"),\"-\",IF(AND('Enrollment Form'!$B942=\"Subscriber\",'Enrollment Form'!$C942=\"Enroll\",'Enrollment Form'!$AK942<>\"\"),\"Y\",\"N\")))","v":""},{"$f":"IF($B935=\"N\",\"\",IF(OR('Enrollment Form'!$B942<>\"Subscriber\",'Enrollment Form'!$C942=\"ROC\"),\"-\",IF(AND('Enrollment Form'!$B942=\"Subscriber\",'Enrollment Form'!$C942=\"Enroll\",'Enrollment Form'!$AL942<>\"\"),\"Y\",\"N\")))","v":""},{"$f":"IF($B935=\"N\",\"\",IF(OR('Enrollment Form'!$B942<>\"Subscriber\",'Enrollment Form'!$C942=\"ROC\"),\"-\",IF(AND('Enrollment Form'!$B942=\"Subscriber\",'Enrollment Form'!$C942=\"Enroll\",'Enrollment Form'!$AP942<>\"\"),\"Y\",\"N\")))","v":""},{"$f":"IF($B935=\"N\",\"\",IF(OR('Enrollment Form'!$B942<>\"Subscriber\",'Enrollment Form'!$C942=\"ROC\"),\"-\",IF(AND('Enrollment Form'!$B942=\"Subscriber\",'Enrollment Form'!$C942=\"Enroll\",'Enrollment Form'!$AQ942<>\"\"),\"Y\",\"N\")))","v":""},{"$f":"IF($B935=\"N\",\"\",IF(OR('Enrollment Form'!$B942<>\"Subscriber\",'Enrollment Form'!$C942=\"ROC\"),\"-\",IF(AND('Enrollment Form'!$B942=\"Subscriber\",'Enrollment Form'!$C942=\"Enroll\",'Enrollment Form'!$AS942<>\"\"),\"Y\",\"N\")))","v":""},{"$f":"IF($B935=\"N\",\"\",IF($Q935=\"-\",\"-\",IF(AND($Q935=\"Y\",'Enrollment Form'!$AS942=\"No\"),\"-\",IF(AND($Q935=\"Y\",'Enrollment Form'!$AS942=\"Yes\",'Enrollment Form'!$AT942<>\"\"),\"Y\",\"N\"))))","v":""},{"$f":"IF($B935=\"N\",\"\",IF(OR('Enrollment Form'!$B942<>\"Subscriber\",'Enrollment Form'!$C942=\"ROC\"),\"-\",IF(AND('Enrollment Form'!$B942=\"Subscriber\",'Enrollment Form'!$C942=\"Enroll\",'Enrollment Form'!$CV942<>\"\"),\"Y\",\"N\")))","v":""},{"$f":"IF($B935=\"N\",\"\",IF($S935=\"-\",\"-\",IF(AND($S935=\"Y\",'Enrollment Form'!$CV942=\"No\"),\"-\",IF(AND($S935=\"Y\",'Enrollment Form'!$CV942=\"Yes\",'Enrollment Form'!$CW942<>\"\"),\"Y\",\"N\"))))","v":""},{"$f":"IF(OR('Enrollment Form'!$AY942=\"Yes\",'Enrollment Form'!$AY942=\"\"),\"-\",IF(OR(AND('Enrollment Form'!$AY942=\"No\",ISERROR(FIND(\"HMO\",VLOOKUP('Enrollment Form'!G942,'Enrollment Form'!H$11:J$1000,3,FALSE),1))=FALSE,COUNTA('Enrollment Form'!$AZ942:$BC942)=4),AND('Enrollment Form'!$AY942=\"No\",ISERROR(FIND(\"HMO\",VLOOKUP('Enrollment Form'!G942,'Enrollment Form'!H$11:J$1000,3,FALSE),1))=FALSE,COUNTA('Enrollment Form'!$BT942:$BW942)=4)),\"Y\",\"N\"))","v":"-"},{"$f":"IF($B935=\"N\",\"\",IF('Enrollment Form'!$B942=\"Subscriber\",\"-\",IF(COUNTA('Enrollment Form'!$BL942,'Enrollment Form'!$BN942)=2,\"Y\",\"N\")))","v":""},{"$f":"IF($B935=\"N\",\"\",IF(OR('Enrollment Form'!$AX942=\"\",'Enrollment Form'!$AX942=\"No\"),\"-\",IF(AND('Enrollment Form'!$AX942=\"Yes\",COUNTA('Enrollment Form'!$CR942)=1),\"Y\",\"N\")))","v":""},{"$f":"IF(OR('Enrollment Form'!$CR942=\"\",'Enrollment Form'!$CR942=\"No\"),\"-\",IF(COUNTA('Enrollment Form'!$CT942:$CU942)=2,\"Y\",\"N\"))","v":"-"},{"$f":"IF($B935=\"N\",\"\",IF(COUNTIF('Enrollment Form'!$DG942:$DP942,\"Other\")=COUNTA('Enrollment Form'!$DK942,'Enrollment Form'!$DH942,'Enrollment Form'!$DN942,'Enrollment Form'!$DQ942),\"Y\",\"N\"))","v":""},{"$f":"IF($B935=\"N\",\"\",IF(OR('Enrollment Form'!B942<>\"Subscriber\",'Enrollment Form'!C942=\"ROC\",COUNTIF('Enrollment Form'!AV942:AW942,\"Yes\")>=1),\"-\",IF(AND('Enrollment Form'!C942=\"Enroll\",COUNTIF('Enrollment Form'!AV942:AW942,\"No\")=2,'Enrollment Form'!AX942=\"\"),\"N\",\"Y\")))","v":""},{"$f":"IF(OR(B935=\"N\",'Enrollment Form'!B942<>\"Subscriber\",'Enrollment Form'!C942=\"ROC\",'Enrollment Form'!O942<>\"Multiple of Salary\"),\"-\",IF(COUNTA('Enrollment Form'!T942:U942)<2,\"N\",\"Y\"))","v":"-"},{"$f":"IF(B935=\"N\",\"\",IF(OR('Enrollment Form'!C942=\"ROC\",'Enrollment Form'!B942<>\"Subscriber\",'Enrollment Form'!O942=\"Waive\",'Enrollment Form'!O942=\"\"),\"-\",IF('Enrollment Form'!P942=\"\",\"N\",\"Y\")))","v":""},{"$f":"IF($B935=\"N\",\"\",IF(AND('Enrollment Form'!$C942=\"ROC\",'Enrollment Form'!$DR942<>\"\"),\"Y\",IF(AND('Enrollment Form'!$C942=\"ROC\",'Enrollment Form'!$DR942=\"\"),\"N\",IF(AND('Enrollment Form'!$C942=\"Enroll\",'Enrollment Form'!$B942=\"Subscriber\",'Enrollment Form'!$CX942=\"No\",'Enrollment Form'!$DR942=\"\"),\"N\",IF(AND('Enrollment Form'!$C942=\"Enroll\",'Enrollment Form'!$B942=\"Subscriber\",'Enrollment Form'!$CX942=\"Yes\"),\"-\",\"Y\")))))","v":""},{"$f":"IF($B935=\"N\",\"\",IF(AND('Enrollment Form'!$C942=\"ROC\",'Enrollment Form'!$DS942<>\"\"),\"Y\",IF(AND('Enrollment Form'!$C942=\"ROC\",'Enrollment Form'!$DS942=\"\"),\"N\",IF(AND('Enrollment Form'!$C942=\"Enroll\",'Enrollment Form'!$B942=\"Subscriber\",'Enrollment Form'!$CX942=\"No\",'Enrollment Form'!$DS942=\"\"),\"N\",IF(AND('Enrollment Form'!$C942=\"Enroll\",'Enrollment Form'!$B942=\"Subscriber\",'Enrollment Form'!$CX942=\"Yes\"),\"-\",\"Y\")))))","v":""},{"$f":"IF('Enrollment Form'!AH942=\"\",\"\",IF(ISERROR(SEARCH(\".\",'Enrollment Form'!AH942,SEARCH(\"@\",'Enrollment Form'!AH942))),\"N\",\"Y\"))","v":""},{"$f":"IF(OR($B935=\"N\",'Enrollment Form'!$G942=\"\"),\"\",IF('Enrollment Form'!$B942<>\"Subscriber\",\"-\",IF(COUNTIF('Enrollment Form'!$AV942:$AW942,\"Yes\")=2,\"N\",\"Y\")))","v":""},{"$f":"IF(OR('Enrollment Form'!$CJ942=\"\",'Enrollment Form'!$CJ942=\"No\"),\"-\",IF(AND('Enrollment Form'!$CJ942=\"Yes\",'Enrollment Form'!$CK942=\"\"),\"N\",\"Y\"))","v":"-"},{"$f":"IF(OR('Enrollment Form'!$CL942=\"\",'Enrollment Form'!$CL942=\"No\"),\"-\",IF(AND('Enrollment Form'!$CL942=\"Yes\",'Enrollment Form'!$CM942=\"\"),\"N\",\"Y\"))","v":"-"},{"$f":"IF(OR('Enrollment Form'!$CN942=\"\",'Enrollment Form'!$CN942=\"No\"),\"-\",IF(AND('Enrollment Form'!$CN942=\"Yes\",'Enrollment Form'!$CO942=\"\"),\"N\",\"Y\"))","v":"-"},{"$f":"IF(OR('Enrollment Form'!$CN942=\"\",'Enrollment Form'!$CN942=\"No\"),\"-\",IF(AND('Enrollment Form'!$CN942=\"Yes\",'Enrollment Form'!$CP942=\"\"),\"N\",\"Y\"))","v":"-"},{"$f":"IF('Enrollment Form'!B942<>\"Subscriber\",\"-\",IF(AND('Enrollment Form'!B942=\"Subscriber\",'Enrollment Form'!C942=\"Enroll\",'Enrollment Form'!AA942=\"\"),\"N\",\"Y\"))","v":"-"},{"$f":"IF(OR('Enrollment Form'!B942=\"Subscriber\",'Enrollment Form'!B942=\"\"),\"-\",IF('Enrollment Form'!BP942=\"\",\"N\",\"Y\"))","v":"-"},{"$f":"IF('Enrollment Form'!B942<>\"Subscriber\",\"-\",IF(AND('Enrollment Form'!B942=\"Subscriber\",'Enrollment Form'!G942=\"\"),\"N\",\"Y\"))","v":"-"},{"$f":"IF('Enrollment Form'!A942=\"\",\"\",IF('Enrollment Form'!B942=\"Subscriber\",\"-\",IF(AND('Enrollment Form'!B942<>\"Subscriber\",'Enrollment Form'!G942='Enrollment Form'!H942),\"N\",\"Y\")))","v":""},0]
[943,{"$f":"IF('Enrollment Form'!$A943<>\"\",\"Y\",\"N\")","v":"N"},{"$f":"IF(AND('Enrollment Form'!$B943=\"\",'Enrollment Form'!$C943<>\"\"),\"N\",IF($B936=\"N\",\"\",\"Y\"))","v":""},{"$f":"IF(OR($B936=\"N\",'Enrollment Form'!G943=\"\"),\"\",IF('Enrollment Form'!$B943<>\"Subscriber\",\"\",IF('Enrollment Form'!$G943='Enrollment Form'!$H943,\"Y\",\"N\")))","v":""},{"$f":"IF($B936=\"N\",\"\",IF(AND(COUNTIFS('Enrollment Form'!$H$11:$H$1000,'Enrollment Form'!$H943,'Enrollment Form'!$B$11:$B$1000,'Enrollment Form'!$B943)>1,'Enrollment Form'!$H943<>\"\"),\"N\",\"Y\"))","v":""},{"$f":"IF($B936=\"N\",\"\",IF(LEN('Enrollment Form'!$Y943)=0,\"\",IF(LEN('Enrollment Form'!$Y943)<>5,\"N\",\"Y\")))","v":""},{"$f":"IF($B936=\"N\",\"\",IF(LEN('Enrollment Form'!$AD943=0),\"\",IF(LEN('Enrollment Form'!$AD943)<>5,\"N\",\"Y\")))","v":""},{"$f":"IF($B936=\"N\",\"\",IF(LEN('Enrollment Form'!$BS943=0),\"\",IF(LEN('Enrollment Form'!$BS943)<>5,\"N\",\"Y\")))","v":""},{"$f":"IF($B936=\"N\",\"\",IF(LEN('Enrollment Form'!$AE943)=0,\"\",IF(LEN('Enrollment Form'!$AE943)<>10,\"N\",\"Y\")))","v":""},{"$f":"IF($B936=\"N\",\"\",IF(LEN('Enrollment Form'!$AF943)=0,\"\",IF(LEN('Enrollment Form'!$AF943)<>10,\"N\",\"Y\")))","v":""},{"$f":"IF('Enrollment Form'!$O943<>\"Graded\",\"-\",IF(AND('Enrollment Form'!$O943=\"Graded\",'Enrollment Form'!$AR943<>\"\"),\"Y\",\"N\"))","v":"-"},{"$f":"IF($B936=\"N\",\"\",IF(OR('Enrollment Form'!$B943<>\"Subscriber\",'Enrollment Form'!$C943=\"ROC\"),\"-\",IF(AND('Enrollment Form'!$B943=\"Subscriber\",'Enrollment Form'!$C943=\"Enroll\",'Enrollment Form'!$AJ943<>\"\"),\"Y\",\"N\")))","v":""},{"$f":"IF($B936=\"N\",\"\",IF(OR('Enrollment Form'!$B943<>\"Subscriber\",'Enrollment Form'!$C943=\"ROC\"),\"-\",IF(AND('Enrollment Form'!$B943=\"Subscriber\",'Enrollment Form'!$C943=\"Enroll\",'Enrollment Form'!$AK943<>\"\"),\"Y\",\"N\")))","v":""},{"$f":"IF($B936=\"N\",\"\",IF(OR('Enrollment Form'!$B943<>\"Subscriber\",'Enrollment Form'!$C943=\"ROC\"),\"-\",IF(AND('Enrollment Form'!$B943=\"Subscriber\",'Enrollment Form'!$C943=\"Enroll\",'Enrollment Form'!$AL943<>\"\"),\"Y\",\"N\")))","v":""},{"$f":"IF($B936=\"N\",\"\",IF(OR('Enrollment Form'!$B943<>\"Subscriber\",'Enrollment Form'!$C943=\"ROC\"),\"-\",IF(AND('Enrollment Form'!$B943=\"Subscriber\",'Enrollment Form'!$C943=\"Enroll\",'Enrollment Form'!$AP943<>\"\"),\"Y\",\"N\")))","v":""},{"$f":"IF($B936=\"N\",\"\",IF(OR('Enrollment Form'!$B943<>\"Subscriber\",'Enrollment Form'!$C943=\"ROC\"),\"-\",IF(AND('Enrollment Form'!$B943=\"Subscriber\",'Enrollment Form'!$C943=\"Enroll\",'Enrollment Form'!$AQ943<>\"\"),\"Y\",\"N\")))","v":""},{"$f":"IF($B936=\"N\",\"\",IF(OR('Enrollment Form'!$B943<>\"Subscriber\",'Enrollment Form'!$C943=\"ROC\"),\"-\",IF(AND('Enrollment Form'!$B943=\"Subscriber\",'Enrollment Form'!$C943=\"Enroll\",'Enrollment Form'!$AS943<>\"\"),\"Y\",\"N\")))","v":""},{"$f":"IF($B936=\"N\",\"\",IF($Q936=\"-\",\"-\",IF(AND($Q936=\"Y\",'Enrollment Form'!$AS943=\"No\"),\"-\",IF(AND($Q936=\"Y\",'Enrollment Form'!$AS943=\"Yes\",'Enrollment Form'!$AT943<>\"\"),\"Y\",\"N\"))))","v":""},{"$f":"IF($B936=\"N\",\"\",IF(OR('Enrollment Form'!$B943<>\"Subscriber\",'Enrollment Form'!$C943=\"ROC\"),\"-\",IF(AND('Enrollment Form'!$B943=\"Subscriber\",'Enrollment Form'!$C943=\"Enroll\",'Enrollment Form'!$CV943<>\"\"),\"Y\",\"N\")))","v":""},{"$f":"IF($B936=\"N\",\"\",IF($S936=\"-\",\"-\",IF(AND($S936=\"Y\",'Enrollment Form'!$CV943=\"No\"),\"-\",IF(AND($S936=\"Y\",'Enrollment Form'!$CV943=\"Yes\",'Enrollment Form'!$CW943<>\"\"),\"Y\",\"N\"))))","v":""},{"$f":"IF(OR('Enrollment Form'!$AY943=\"Yes\",'Enrollment Form'!$AY943=\"\"),\"-\",IF(OR(AND('Enrollment Form'!$AY943=\"No\",ISERROR(FIND(\"HMO\",VLOOKUP('Enrollment Form'!G943,'Enrollment Form'!H$11:J$1000,3,FALSE),1))=FALSE,COUNTA('Enrollment Form'!$AZ943:$BC943)=4),AND('Enrollment Form'!$AY943=\"No\",ISERROR(FIND(\"HMO\",VLOOKUP('Enrollment Form'!G943,'Enrollment Form'!H$11:J$1000,3,FALSE),1))=FALSE,COUNTA('Enrollment Form'!$BT943:$BW943)=4)),\"Y\",\"N\"))","v":"-"},{"$f":"IF($B936=\"N\",\"\",IF('Enrollment Form'!$B943=\"Subscriber\",\"-\",IF(COUNTA('Enrollment Form'!$BL943,'Enrollment Form'!$BN943)=2,\"Y\",\"N\")))","v":""},{"$f":"IF($B936=\"N\",\"\",IF(OR('Enrollment Form'!$AX943=\"\",'Enrollment Form'!$AX943=\"No\"),\"-\",IF(AND('Enrollment Form'!$AX943=\"Yes\",COUNTA('Enrollment Form'!$CR943)=1),\"Y\",\"N\")))","v":""},{"$f":"IF(OR('Enrollment Form'!$CR943=\"\",'Enrollment Form'!$CR943=\"No\"),\"-\",IF(COUNTA('Enrollment Form'!$CT943:$CU943)=2,\"Y\",\"N\"))","v":"-"},{"$f":"IF($B936=\"N\",\"\",IF(COUNTIF('Enrollment Form'!$DG943:$DP943,\"Other\")=COUNTA('Enrollment Form'!$DK943,'Enrollment Form'!$DH943,'Enrollment Form'!$DN943,'Enrollment Form'!$DQ943),\"Y\",\"N\"))","v":""},{"$f":"IF($B936=\"N\",\"\",IF(OR('Enrollment Form'!B943<>\"Subscriber\",'Enrollment Form'!C943=\"ROC\",COUNTIF('Enrollment Form'!AV943:AW943,\"Yes\")>=1),\"-\",IF(AND('Enrollment Form'!C943=\"Enroll\",COUNTIF('Enrollment Form'!AV943:AW943,\"No\")=2,'Enrollment Form'!AX943=\"\"),\"N\",\"Y\")))","v":""},{"$f":"IF(OR(B936=\"N\",'Enrollment Form'!B943<>\"Subscriber\",'Enrollment Form'!C943=\"ROC\",'Enrollment Form'!O943<>\"Multiple of Salary\"),\"-\",IF(COUNTA('Enrollment Form'!T943:U943)<2,\"N\",\"Y\"))","v":"-"},{"$f":"IF(B936=\"N\",\"\",IF(OR('Enrollment Form'!C943=\"ROC\",'Enrollment Form'!B943<>\"Subscriber\",'Enrollment Form'!O943=\"Waive\",'Enrollment Form'!O943=\"\"),\"-\",IF('Enrollment Form'!P943=\"\",\"N\",\"Y\")))","v":""},{"$f":"IF($B936=\"N\",\"\",IF(AND('Enrollment Form'!$C943=\"ROC\",'Enrollment Form'!$DR943<>\"\"),\"Y\",IF(AND('Enrollment Form'!$C943=\"ROC\",'Enrollment Form'!$DR943=\"\"),\"N\",IF(AND('Enrollment Form'!$C943=\"Enroll\",'Enrollment Form'!$B943=\"Subscriber\",'Enrollment Form'!$CX943=\"No\",'Enrollment Form'!$DR943=\"\"),\"N\",IF(AND('Enrollment Form'!$C943=\"Enroll\",'Enrollment Form'!$B943=\"Subscriber\",'Enrollment Form'!$CX943=\"Yes\"),\"-\",\"Y\")))))","v":""},{"$f":"IF($B936=\"N\",\"\",IF(AND('Enrollment Form'!$C943=\"ROC\",'Enrollment Form'!$DS943<>\"\"),\"Y\",IF(AND('Enrollment Form'!$C943=\"ROC\",'Enrollment Form'!$DS943=\"\"),\"N\",IF(AND('Enrollment Form'!$C943=\"Enroll\",'Enrollment Form'!$B943=\"Subscriber\",'Enrollment Form'!$CX943=\"No\",'Enrollment Form'!$DS943=\"\"),\"N\",IF(AND('Enrollment Form'!$C943=\"Enroll\",'Enrollment Form'!$B943=\"Subscriber\",'Enrollment Form'!$CX943=\"Yes\"),\"-\",\"Y\")))))","v":""},{"$f":"IF('Enrollment Form'!AH943=\"\",\"\",IF(ISERROR(SEARCH(\".\",'Enrollment Form'!AH943,SEARCH(\"@\",'Enrollment Form'!AH943))),\"N\",\"Y\"))","v":""},{"$f":"IF(OR($B936=\"N\",'Enrollment Form'!$G943=\"\"),\"\",IF('Enrollment Form'!$B943<>\"Subscriber\",\"-\",IF(COUNTIF('Enrollment Form'!$AV943:$AW943,\"Yes\")=2,\"N\",\"Y\")))","v":""},{"$f":"IF(OR('Enrollment Form'!$CJ943=\"\",'Enrollment Form'!$CJ943=\"No\"),\"-\",IF(AND('Enrollment Form'!$CJ943=\"Yes\",'Enrollment Form'!$CK943=\"\"),\"N\",\"Y\"))","v":"-"},{"$f":"IF(OR('Enrollment Form'!$CL943=\"\",'Enrollment Form'!$CL943=\"No\"),\"-\",IF(AND('Enrollment Form'!$CL943=\"Yes\",'Enrollment Form'!$CM943=\"\"),\"N\",\"Y\"))","v":"-"},{"$f":"IF(OR('Enrollment Form'!$CN943=\"\",'Enrollment Form'!$CN943=\"No\"),\"-\",IF(AND('Enrollment Form'!$CN943=\"Yes\",'Enrollment Form'!$CO943=\"\"),\"N\",\"Y\"))","v":"-"},{"$f":"IF(OR('Enrollment Form'!$CN943=\"\",'Enrollment Form'!$CN943=\"No\"),\"-\",IF(AND('Enrollment Form'!$CN943=\"Yes\",'Enrollment Form'!$CP943=\"\"),\"N\",\"Y\"))","v":"-"},{"$f":"IF('Enrollment Form'!B943<>\"Subscriber\",\"-\",IF(AND('Enrollment Form'!B943=\"Subscriber\",'Enrollment Form'!C943=\"Enroll\",'Enrollment Form'!AA943=\"\"),\"N\",\"Y\"))","v":"-"},{"$f":"IF(OR('Enrollment Form'!B943=\"Subscriber\",'Enrollment Form'!B943=\"\"),\"-\",IF('Enrollment Form'!BP943=\"\",\"N\",\"Y\"))","v":"-"},{"$f":"IF('Enrollment Form'!B943<>\"Subscriber\",\"-\",IF(AND('Enrollment Form'!B943=\"Subscriber\",'Enrollment Form'!G943=\"\"),\"N\",\"Y\"))","v":"-"},{"$f":"IF('Enrollment Form'!A943=\"\",\"\",IF('Enrollment Form'!B943=\"Subscriber\",\"-\",IF(AND('Enrollment Form'!B943<>\"Subscriber\",'Enrollment Form'!G943='Enrollment Form'!H943),\"N\",\"Y\")))","v":""},0]
[944,{"$f":"IF('Enrollment Form'!$A944<>\"\",\"Y\",\"N\")","v":"N"},{"$f":"IF(AND('Enrollment Form'!$B944=\"\",'Enrollment Form'!$C944<>\"\"),\"N\",IF($B937=\"N\",\"\",\"Y\"))","v":""},{"$f":"IF(OR($B937=\"N\",'Enrollment Form'!G944=\"\"),\"\",IF('Enrollment Form'!$B944<>\"Subscriber\",\"\",IF('Enrollment Form'!$G944='Enrollment Form'!$H944,\"Y\",\"N\")))","v":""},{"$f":"IF($B937=\"N\",\"\",IF(AND(COUNTIFS('Enrollment Form'!$H$11:$H$1000,'Enrollment Form'!$H944,'Enrollment Form'!$B$11:$B$1000,'Enrollment Form'!$B944)>1,'Enrollment Form'!$H944<>\"\"),\"N\",\"Y\"))","v":""},{"$f":"IF($B937=\"N\",\"\",IF(LEN('Enrollment Form'!$Y944)=0,\"\",IF(LEN('Enrollment Form'!$Y944)<>5,\"N\",\"Y\")))","v":""},{"$f":"IF($B937=\"N\",\"\",IF(LEN('Enrollment Form'!$AD944=0),\"\",IF(LEN('Enrollment Form'!$AD944)<>5,\"N\",\"Y\")))","v":""},{"$f":"IF($B937=\"N\",\"\",IF(LEN('Enrollment Form'!$BS944=0),\"\",IF(LEN('Enrollment Form'!$BS944)<>5,\"N\",\"Y\")))","v":""},{"$f":"IF($B937=\"N\",\"\",IF(LEN('Enrollment Form'!$AE944)=0,\"\",IF(LEN('Enrollment Form'!$AE944)<>10,\"N\",\"Y\")))","v":""},{"$f":"IF($B937=\"N\",\"\",IF(LEN('Enrollment Form'!$AF944)=0,\"\",IF(LEN('Enrollment Form'!$AF944)<>10,\"N\",\"Y\")))","v":""},{"$f":"IF('Enrollment Form'!$O944<>\"Graded\",\"-\",IF(AND('Enrollment Form'!$O944=\"Graded\",'Enrollment Form'!$AR944<>\"\"),\"Y\",\"N\"))","v":"-"},{"$f":"IF($B937=\"N\",\"\",IF(OR('Enrollment Form'!$B944<>\"Subscriber\",'Enrollment Form'!$C944=\"ROC\"),\"-\",IF(AND('Enrollment Form'!$B944=\"Subscriber\",'Enrollment Form'!$C944=\"Enroll\",'Enrollment Form'!$AJ944<>\"\"),\"Y\",\"N\")))","v":""},{"$f":"IF($B937=\"N\",\"\",IF(OR('Enrollment Form'!$B944<>\"Subscriber\",'Enrollment Form'!$C944=\"ROC\"),\"-\",IF(AND('Enrollment Form'!$B944=\"Subscriber\",'Enrollment Form'!$C944=\"Enroll\",'Enrollment Form'!$AK944<>\"\"),\"Y\",\"N\")))","v":""},{"$f":"IF($B937=\"N\",\"\",IF(OR('Enrollment Form'!$B944<>\"Subscriber\",'Enrollment Form'!$C944=\"ROC\"),\"-\",IF(AND('Enrollment Form'!$B944=\"Subscriber\",'Enrollment Form'!$C944=\"Enroll\",'Enrollment Form'!$AL944<>\"\"),\"Y\",\"N\")))","v":""},{"$f":"IF($B937=\"N\",\"\",IF(OR('Enrollment Form'!$B944<>\"Subscriber\",'Enrollment Form'!$C944=\"ROC\"),\"-\",IF(AND('Enrollment Form'!$B944=\"Subscriber\",'Enrollment Form'!$C944=\"Enroll\",'Enrollment Form'!$AP944<>\"\"),\"Y\",\"N\")))","v":""},{"$f":"IF($B937=\"N\",\"\",IF(OR('Enrollment Form'!$B944<>\"Subscriber\",'Enrollment Form'!$C944=\"ROC\"),\"-\",IF(AND('Enrollment Form'!$B944=\"Subscriber\",'Enrollment Form'!$C944=\"Enroll\",'Enrollment Form'!$AQ944<>\"\"),\"Y\",\"N\")))","v":""},{"$f":"IF($B937=\"N\",\"\",IF(OR('Enrollment Form'!$B944<>\"Subscriber\",'Enrollment Form'!$C944=\"ROC\"),\"-\",IF(AND('Enrollment Form'!$B944=\"Subscriber\",'Enrollment Form'!$C944=\"Enroll\",'Enrollment Form'!$AS944<>\"\"),\"Y\",\"N\")))","v":""},{"$f":"IF($B937=\"N\",\"\",IF($Q937=\"-\",\"-\",IF(AND($Q937=\"Y\",'Enrollment Form'!$AS944=\"No\"),\"-\",IF(AND($Q937=\"Y\",'Enrollment Form'!$AS944=\"Yes\",'Enrollment Form'!$AT944<>\"\"),\"Y\",\"N\"))))","v":""},{"$f":"IF($B937=\"N\",\"\",IF(OR('Enrollment Form'!$B944<>\"Subscriber\",'Enrollment Form'!$C944=\"ROC\"),\"-\",IF(AND('Enrollment Form'!$B944=\"Subscriber\",'Enrollment Form'!$C944=\"Enroll\",'Enrollment Form'!$CV944<>\"\"),\"Y\",\"N\")))","v":""},{"$f":"IF($B937=\"N\",\"\",IF($S937=\"-\",\"-\",IF(AND($S937=\"Y\",'Enrollment Form'!$CV944=\"No\"),\"-\",IF(AND($S937=\"Y\",'Enrollment Form'!$CV944=\"Yes\",'Enrollment Form'!$CW944<>\"\"),\"Y\",\"N\"))))","v":""},{"$f":"IF(OR('Enrollment Form'!$AY944=\"Yes\",'Enrollment Form'!$AY944=\"\"),\"-\",IF(OR(AND('Enrollment Form'!$AY944=\"No\",ISERROR(FIND(\"HMO\",VLOOKUP('Enrollment Form'!G944,'Enrollment Form'!H$11:J$1000,3,FALSE),1))=FALSE,COUNTA('Enrollment Form'!$AZ944:$BC944)=4),AND('Enrollment Form'!$AY944=\"No\",ISERROR(FIND(\"HMO\",VLOOKUP('Enrollment Form'!G944,'Enrollment Form'!H$11:J$1000,3,FALSE),1))=FALSE,COUNTA('Enrollment Form'!$BT944:$BW944)=4)),\"Y\",\"N\"))","v":"-"},{"$f":"IF($B937=\"N\",\"\",IF('Enrollment Form'!$B944=\"Subscriber\",\"-\",IF(COUNTA('Enrollment Form'!$BL944,'Enrollment Form'!$BN944)=2,\"Y\",\"N\")))","v":""},{"$f":"IF($B937=\"N\",\"\",IF(OR('Enrollment Form'!$AX944=\"\",'Enrollment Form'!$AX944=\"No\"),\"-\",IF(AND('Enrollment Form'!$AX944=\"Yes\",COUNTA('Enrollment Form'!$CR944)=1),\"Y\",\"N\")))","v":""},{"$f":"IF(OR('Enrollment Form'!$CR944=\"\",'Enrollment Form'!$CR944=\"No\"),\"-\",IF(COUNTA('Enrollment Form'!$CT944:$CU944)=2,\"Y\",\"N\"))","v":"-"},{"$f":"IF($B937=\"N\",\"\",IF(COUNTIF('Enrollment Form'!$DG944:$DP944,\"Other\")=COUNTA('Enrollment Form'!$DK944,'Enrollment Form'!$DH944,'Enrollment Form'!$DN944,'Enrollment Form'!$DQ944),\"Y\",\"N\"))","v":""},{"$f":"IF($B937=\"N\",\"\",IF(OR('Enrollment Form'!B944<>\"Subscriber\",'Enrollment Form'!C944=\"ROC\",COUNTIF('Enrollment Form'!AV944:AW944,\"Yes\")>=1),\"-\",IF(AND('Enrollment Form'!C944=\"Enroll\",COUNTIF('Enrollment Form'!AV944:AW944,\"No\")=2,'Enrollment Form'!AX944=\"\"),\"N\",\"Y\")))","v":""},{"$f":"IF(OR(B937=\"N\",'Enrollment Form'!B944<>\"Subscriber\",'Enrollment Form'!C944=\"ROC\",'Enrollment Form'!O944<>\"Multiple of Salary\"),\"-\",IF(COUNTA('Enrollment Form'!T944:U944)<2,\"N\",\"Y\"))","v":"-"},{"$f":"IF(B937=\"N\",\"\",IF(OR('Enrollment Form'!C944=\"ROC\",'Enrollment Form'!B944<>\"Subscriber\",'Enrollment Form'!O944=\"Waive\",'Enrollment Form'!O944=\"\"),\"-\",IF('Enrollment Form'!P944=\"\",\"N\",\"Y\")))","v":""},{"$f":"IF($B937=\"N\",\"\",IF(AND('Enrollment Form'!$C944=\"ROC\",'Enrollment Form'!$DR944<>\"\"),\"Y\",IF(AND('Enrollment Form'!$C944=\"ROC\",'Enrollment Form'!$DR944=\"\"),\"N\",IF(AND('Enrollment Form'!$C944=\"Enroll\",'Enrollment Form'!$B944=\"Subscriber\",'Enrollment Form'!$CX944=\"No\",'Enrollment Form'!$DR944=\"\"),\"N\",IF(AND('Enrollment Form'!$C944=\"Enroll\",'Enrollment Form'!$B944=\"Subscriber\",'Enrollment Form'!$CX944=\"Yes\"),\"-\",\"Y\")))))","v":""},{"$f":"IF($B937=\"N\",\"\",IF(AND('Enrollment Form'!$C944=\"ROC\",'Enrollment Form'!$DS944<>\"\"),\"Y\",IF(AND('Enrollment Form'!$C944=\"ROC\",'Enrollment Form'!$DS944=\"\"),\"N\",IF(AND('Enrollment Form'!$C944=\"Enroll\",'Enrollment Form'!$B944=\"Subscriber\",'Enrollment Form'!$CX944=\"No\",'Enrollment Form'!$DS944=\"\"),\"N\",IF(AND('Enrollment Form'!$C944=\"Enroll\",'Enrollment Form'!$B944=\"Subscriber\",'Enrollment Form'!$CX944=\"Yes\"),\"-\",\"Y\")))))","v":""},{"$f":"IF('Enrollment Form'!AH944=\"\",\"\",IF(ISERROR(SEARCH(\".\",'Enrollment Form'!AH944,SEARCH(\"@\",'Enrollment Form'!AH944))),\"N\",\"Y\"))","v":""},{"$f":"IF(OR($B937=\"N\",'Enrollment Form'!$G944=\"\"),\"\",IF('Enrollment Form'!$B944<>\"Subscriber\",\"-\",IF(COUNTIF('Enrollment Form'!$AV944:$AW944,\"Yes\")=2,\"N\",\"Y\")))","v":""},{"$f":"IF(OR('Enrollment Form'!$CJ944=\"\",'Enrollment Form'!$CJ944=\"No\"),\"-\",IF(AND('Enrollment Form'!$CJ944=\"Yes\",'Enrollment Form'!$CK944=\"\"),\"N\",\"Y\"))","v":"-"},{"$f":"IF(OR('Enrollment Form'!$CL944=\"\",'Enrollment Form'!$CL944=\"No\"),\"-\",IF(AND('Enrollment Form'!$CL944=\"Yes\",'Enrollment Form'!$CM944=\"\"),\"N\",\"Y\"))","v":"-"},{"$f":"IF(OR('Enrollment Form'!$CN944=\"\",'Enrollment Form'!$CN944=\"No\"),\"-\",IF(AND('Enrollment Form'!$CN944=\"Yes\",'Enrollment Form'!$CO944=\"\"),\"N\",\"Y\"))","v":"-"},{"$f":"IF(OR('Enrollment Form'!$CN944=\"\",'Enrollment Form'!$CN944=\"No\"),\"-\",IF(AND('Enrollment Form'!$CN944=\"Yes\",'Enrollment Form'!$CP944=\"\"),\"N\",\"Y\"))","v":"-"},{"$f":"IF('Enrollment Form'!B944<>\"Subscriber\",\"-\",IF(AND('Enrollment Form'!B944=\"Subscriber\",'Enrollment Form'!C944=\"Enroll\",'Enrollment Form'!AA944=\"\"),\"N\",\"Y\"))","v":"-"},{"$f":"IF(OR('Enrollment Form'!B944=\"Subscriber\",'Enrollment Form'!B944=\"\"),\"-\",IF('Enrollment Form'!BP944=\"\",\"N\",\"Y\"))","v":"-"},{"$f":"IF('Enrollment Form'!B944<>\"Subscriber\",\"-\",IF(AND('Enrollment Form'!B944=\"Subscriber\",'Enrollment Form'!G944=\"\"),\"N\",\"Y\"))","v":"-"},{"$f":"IF('Enrollment Form'!A944=\"\",\"\",IF('Enrollment Form'!B944=\"Subscriber\",\"-\",IF(AND('Enrollment Form'!B944<>\"Subscriber\",'Enrollment Form'!G944='Enrollment Form'!H944),\"N\",\"Y\")))","v":""},0]
[945,{"$f":"IF('Enrollment Form'!$A945<>\"\",\"Y\",\"N\")","v":"N"},{"$f":"IF(AND('Enrollment Form'!$B945=\"\",'Enrollment Form'!$C945<>\"\"),\"N\",IF($B938=\"N\",\"\",\"Y\"))","v":""},{"$f":"IF(OR($B938=\"N\",'Enrollment Form'!G945=\"\"),\"\",IF('Enrollment Form'!$B945<>\"Subscriber\",\"\",IF('Enrollment Form'!$G945='Enrollment Form'!$H945,\"Y\",\"N\")))","v":""},{"$f":"IF($B938=\"N\",\"\",IF(AND(COUNTIFS('Enrollment Form'!$H$11:$H$1000,'Enrollment Form'!$H945,'Enrollment Form'!$B$11:$B$1000,'Enrollment Form'!$B945)>1,'Enrollment Form'!$H945<>\"\"),\"N\",\"Y\"))","v":""},{"$f":"IF($B938=\"N\",\"\",IF(LEN('Enrollment Form'!$Y945)=0,\"\",IF(LEN('Enrollment Form'!$Y945)<>5,\"N\",\"Y\")))","v":""},{"$f":"IF($B938=\"N\",\"\",IF(LEN('Enrollment Form'!$AD945=0),\"\",IF(LEN('Enrollment Form'!$AD945)<>5,\"N\",\"Y\")))","v":""},{"$f":"IF($B938=\"N\",\"\",IF(LEN('Enrollment Form'!$BS945=0),\"\",IF(LEN('Enrollment Form'!$BS945)<>5,\"N\",\"Y\")))","v":""},{"$f":"IF($B938=\"N\",\"\",IF(LEN('Enrollment Form'!$AE945)=0,\"\",IF(LEN('Enrollment Form'!$AE945)<>10,\"N\",\"Y\")))","v":""},{"$f":"IF($B938=\"N\",\"\",IF(LEN('Enrollment Form'!$AF945)=0,\"\",IF(LEN('Enrollment Form'!$AF945)<>10,\"N\",\"Y\")))","v":""},{"$f":"IF('Enrollment Form'!$O945<>\"Graded\",\"-\",IF(AND('Enrollment Form'!$O945=\"Graded\",'Enrollment Form'!$AR945<>\"\"),\"Y\",\"N\"))","v":"-"},{"$f":"IF($B938=\"N\",\"\",IF(OR('Enrollment Form'!$B945<>\"Subscriber\",'Enrollment Form'!$C945=\"ROC\"),\"-\",IF(AND('Enrollment Form'!$B945=\"Subscriber\",'Enrollment Form'!$C945=\"Enroll\",'Enrollment Form'!$AJ945<>\"\"),\"Y\",\"N\")))","v":""},{"$f":"IF($B938=\"N\",\"\",IF(OR('Enrollment Form'!$B945<>\"Subscriber\",'Enrollment Form'!$C945=\"ROC\"),\"-\",IF(AND('Enrollment Form'!$B945=\"Subscriber\",'Enrollment Form'!$C945=\"Enroll\",'Enrollment Form'!$AK945<>\"\"),\"Y\",\"N\")))","v":""},{"$f":"IF($B938=\"N\",\"\",IF(OR('Enrollment Form'!$B945<>\"Subscriber\",'Enrollment Form'!$C945=\"ROC\"),\"-\",IF(AND('Enrollment Form'!$B945=\"Subscriber\",'Enrollment Form'!$C945=\"Enroll\",'Enrollment Form'!$AL945<>\"\"),\"Y\",\"N\")))","v":""},{"$f":"IF($B938=\"N\",\"\",IF(OR('Enrollment Form'!$B945<>\"Subscriber\",'Enrollment Form'!$C945=\"ROC\"),\"-\",IF(AND('Enrollment Form'!$B945=\"Subscriber\",'Enrollment Form'!$C945=\"Enroll\",'Enrollment Form'!$AP945<>\"\"),\"Y\",\"N\")))","v":""},{"$f":"IF($B938=\"N\",\"\",IF(OR('Enrollment Form'!$B945<>\"Subscriber\",'Enrollment Form'!$C945=\"ROC\"),\"-\",IF(AND('Enrollment Form'!$B945=\"Subscriber\",'Enrollment Form'!$C945=\"Enroll\",'Enrollment Form'!$AQ945<>\"\"),\"Y\",\"N\")))","v":""},{"$f":"IF($B938=\"N\",\"\",IF(OR('Enrollment Form'!$B945<>\"Subscriber\",'Enrollment Form'!$C945=\"ROC\"),\"-\",IF(AND('Enrollment Form'!$B945=\"Subscriber\",'Enrollment Form'!$C945=\"Enroll\",'Enrollment Form'!$AS945<>\"\"),\"Y\",\"N\")))","v":""},{"$f":"IF($B938=\"N\",\"\",IF($Q938=\"-\",\"-\",IF(AND($Q938=\"Y\",'Enrollment Form'!$AS945=\"No\"),\"-\",IF(AND($Q938=\"Y\",'Enrollment Form'!$AS945=\"Yes\",'Enrollment Form'!$AT945<>\"\"),\"Y\",\"N\"))))","v":""},{"$f":"IF($B938=\"N\",\"\",IF(OR('Enrollment Form'!$B945<>\"Subscriber\",'Enrollment Form'!$C945=\"ROC\"),\"-\",IF(AND('Enrollment Form'!$B945=\"Subscriber\",'Enrollment Form'!$C945=\"Enroll\",'Enrollment Form'!$CV945<>\"\"),\"Y\",\"N\")))","v":""},{"$f":"IF($B938=\"N\",\"\",IF($S938=\"-\",\"-\",IF(AND($S938=\"Y\",'Enrollment Form'!$CV945=\"No\"),\"-\",IF(AND($S938=\"Y\",'Enrollment Form'!$CV945=\"Yes\",'Enrollment Form'!$CW945<>\"\"),\"Y\",\"N\"))))","v":""},{"$f":"IF(OR('Enrollment Form'!$AY945=\"Yes\",'Enrollment Form'!$AY945=\"\"),\"-\",IF(OR(AND('Enrollment Form'!$AY945=\"No\",ISERROR(FIND(\"HMO\",VLOOKUP('Enrollment Form'!G945,'Enrollment Form'!H$11:J$1000,3,FALSE),1))=FALSE,COUNTA('Enrollment Form'!$AZ945:$BC945)=4),AND('Enrollment Form'!$AY945=\"No\",ISERROR(FIND(\"HMO\",VLOOKUP('Enrollment Form'!G945,'Enrollment Form'!H$11:J$1000,3,FALSE),1))=FALSE,COUNTA('Enrollment Form'!$BT945:$BW945)=4)),\"Y\",\"N\"))","v":"-"},{"$f":"IF($B938=\"N\",\"\",IF('Enrollment Form'!$B945=\"Subscriber\",\"-\",IF(COUNTA('Enrollment Form'!$BL945,'Enrollment Form'!$BN945)=2,\"Y\",\"N\")))","v":""},{"$f":"IF($B938=\"N\",\"\",IF(OR('Enrollment Form'!$AX945=\"\",'Enrollment Form'!$AX945=\"No\"),\"-\",IF(AND('Enrollment Form'!$AX945=\"Yes\",COUNTA('Enrollment Form'!$CR945)=1),\"Y\",\"N\")))","v":""},{"$f":"IF(OR('Enrollment Form'!$CR945=\"\",'Enrollment Form'!$CR945=\"No\"),\"-\",IF(COUNTA('Enrollment Form'!$CT945:$CU945)=2,\"Y\",\"N\"))","v":"-"},{"$f":"IF($B938=\"N\",\"\",IF(COUNTIF('Enrollment Form'!$DG945:$DP945,\"Other\")=COUNTA('Enrollment Form'!$DK945,'Enrollment Form'!$DH945,'Enrollment Form'!$DN945,'Enrollment Form'!$DQ945),\"Y\",\"N\"))","v":""},{"$f":"IF($B938=\"N\",\"\",IF(OR('Enrollment Form'!B945<>\"Subscriber\",'Enrollment Form'!C945=\"ROC\",COUNTIF('Enrollment Form'!AV945:AW945,\"Yes\")>=1),\"-\",IF(AND('Enrollment Form'!C945=\"Enroll\",COUNTIF('Enrollment Form'!AV945:AW945,\"No\")=2,'Enrollment Form'!AX945=\"\"),\"N\",\"Y\")))","v":""},{"$f":"IF(OR(B938=\"N\",'Enrollment Form'!B945<>\"Subscriber\",'Enrollment Form'!C945=\"ROC\",'Enrollment Form'!O945<>\"Multiple of Salary\"),\"-\",IF(COUNTA('Enrollment Form'!T945:U945)<2,\"N\",\"Y\"))","v":"-"},{"$f":"IF(B938=\"N\",\"\",IF(OR('Enrollment Form'!C945=\"ROC\",'Enrollment Form'!B945<>\"Subscriber\",'Enrollment Form'!O945=\"Waive\",'Enrollment Form'!O945=\"\"),\"-\",IF('Enrollment Form'!P945=\"\",\"N\",\"Y\")))","v":""},{"$f":"IF($B938=\"N\",\"\",IF(AND('Enrollment Form'!$C945=\"ROC\",'Enrollment Form'!$DR945<>\"\"),\"Y\",IF(AND('Enrollment Form'!$C945=\"ROC\",'Enrollment Form'!$DR945=\"\"),\"N\",IF(AND('Enrollment Form'!$C945=\"Enroll\",'Enrollment Form'!$B945=\"Subscriber\",'Enrollment Form'!$CX945=\"No\",'Enrollment Form'!$DR945=\"\"),\"N\",IF(AND('Enrollment Form'!$C945=\"Enroll\",'Enrollment Form'!$B945=\"Subscriber\",'Enrollment Form'!$CX945=\"Yes\"),\"-\",\"Y\")))))","v":""},{"$f":"IF($B938=\"N\",\"\",IF(AND('Enrollment Form'!$C945=\"ROC\",'Enrollment Form'!$DS945<>\"\"),\"Y\",IF(AND('Enrollment Form'!$C945=\"ROC\",'Enrollment Form'!$DS945=\"\"),\"N\",IF(AND('Enrollment Form'!$C945=\"Enroll\",'Enrollment Form'!$B945=\"Subscriber\",'Enrollment Form'!$CX945=\"No\",'Enrollment Form'!$DS945=\"\"),\"N\",IF(AND('Enrollment Form'!$C945=\"Enroll\",'Enrollment Form'!$B945=\"Subscriber\",'Enrollment Form'!$CX945=\"Yes\"),\"-\",\"Y\")))))","v":""},{"$f":"IF('Enrollment Form'!AH945=\"\",\"\",IF(ISERROR(SEARCH(\".\",'Enrollment Form'!AH945,SEARCH(\"@\",'Enrollment Form'!AH945))),\"N\",\"Y\"))","v":""},{"$f":"IF(OR($B938=\"N\",'Enrollment Form'!$G945=\"\"),\"\",IF('Enrollment Form'!$B945<>\"Subscriber\",\"-\",IF(COUNTIF('Enrollment Form'!$AV945:$AW945,\"Yes\")=2,\"N\",\"Y\")))","v":""},{"$f":"IF(OR('Enrollment Form'!$CJ945=\"\",'Enrollment Form'!$CJ945=\"No\"),\"-\",IF(AND('Enrollment Form'!$CJ945=\"Yes\",'Enrollment Form'!$CK945=\"\"),\"N\",\"Y\"))","v":"-"},{"$f":"IF(OR('Enrollment Form'!$CL945=\"\",'Enrollment Form'!$CL945=\"No\"),\"-\",IF(AND('Enrollment Form'!$CL945=\"Yes\",'Enrollment Form'!$CM945=\"\"),\"N\",\"Y\"))","v":"-"},{"$f":"IF(OR('Enrollment Form'!$CN945=\"\",'Enrollment Form'!$CN945=\"No\"),\"-\",IF(AND('Enrollment Form'!$CN945=\"Yes\",'Enrollment Form'!$CO945=\"\"),\"N\",\"Y\"))","v":"-"},{"$f":"IF(OR('Enrollment Form'!$CN945=\"\",'Enrollment Form'!$CN945=\"No\"),\"-\",IF(AND('Enrollment Form'!$CN945=\"Yes\",'Enrollment Form'!$CP945=\"\"),\"N\",\"Y\"))","v":"-"},{"$f":"IF('Enrollment Form'!B945<>\"Subscriber\",\"-\",IF(AND('Enrollment Form'!B945=\"Subscriber\",'Enrollment Form'!C945=\"Enroll\",'Enrollment Form'!AA945=\"\"),\"N\",\"Y\"))","v":"-"},{"$f":"IF(OR('Enrollment Form'!B945=\"Subscriber\",'Enrollment Form'!B945=\"\"),\"-\",IF('Enrollment Form'!BP945=\"\",\"N\",\"Y\"))","v":"-"},{"$f":"IF('Enrollment Form'!B945<>\"Subscriber\",\"-\",IF(AND('Enrollment Form'!B945=\"Subscriber\",'Enrollment Form'!G945=\"\"),\"N\",\"Y\"))","v":"-"},{"$f":"IF('Enrollment Form'!A945=\"\",\"\",IF('Enrollment Form'!B945=\"Subscriber\",\"-\",IF(AND('Enrollment Form'!B945<>\"Subscriber\",'Enrollment Form'!G945='Enrollment Form'!H945),\"N\",\"Y\")))","v":""},0]
[946,{"$f":"IF('Enrollment Form'!$A946<>\"\",\"Y\",\"N\")","v":"N"},{"$f":"IF(AND('Enrollment Form'!$B946=\"\",'Enrollment Form'!$C946<>\"\"),\"N\",IF($B939=\"N\",\"\",\"Y\"))","v":""},{"$f":"IF(OR($B939=\"N\",'Enrollment Form'!G946=\"\"),\"\",IF('Enrollment Form'!$B946<>\"Subscriber\",\"\",IF('Enrollment Form'!$G946='Enrollment Form'!$H946,\"Y\",\"N\")))","v":""},{"$f":"IF($B939=\"N\",\"\",IF(AND(COUNTIFS('Enrollment Form'!$H$11:$H$1000,'Enrollment Form'!$H946,'Enrollment Form'!$B$11:$B$1000,'Enrollment Form'!$B946)>1,'Enrollment Form'!$H946<>\"\"),\"N\",\"Y\"))","v":""},{"$f":"IF($B939=\"N\",\"\",IF(LEN('Enrollment Form'!$Y946)=0,\"\",IF(LEN('Enrollment Form'!$Y946)<>5,\"N\",\"Y\")))","v":""},{"$f":"IF($B939=\"N\",\"\",IF(LEN('Enrollment Form'!$AD946=0),\"\",IF(LEN('Enrollment Form'!$AD946)<>5,\"N\",\"Y\")))","v":""},{"$f":"IF($B939=\"N\",\"\",IF(LEN('Enrollment Form'!$BS946=0),\"\",IF(LEN('Enrollment Form'!$BS946)<>5,\"N\",\"Y\")))","v":""},{"$f":"IF($B939=\"N\",\"\",IF(LEN('Enrollment Form'!$AE946)=0,\"\",IF(LEN('Enrollment Form'!$AE946)<>10,\"N\",\"Y\")))","v":""},{"$f":"IF($B939=\"N\",\"\",IF(LEN('Enrollment Form'!$AF946)=0,\"\",IF(LEN('Enrollment Form'!$AF946)<>10,\"N\",\"Y\")))","v":""},{"$f":"IF('Enrollment Form'!$O946<>\"Graded\",\"-\",IF(AND('Enrollment Form'!$O946=\"Graded\",'Enrollment Form'!$AR946<>\"\"),\"Y\",\"N\"))","v":"-"},{"$f":"IF($B939=\"N\",\"\",IF(OR('Enrollment Form'!$B946<>\"Subscriber\",'Enrollment Form'!$C946=\"ROC\"),\"-\",IF(AND('Enrollment Form'!$B946=\"Subscriber\",'Enrollment Form'!$C946=\"Enroll\",'Enrollment Form'!$AJ946<>\"\"),\"Y\",\"N\")))","v":""},{"$f":"IF($B939=\"N\",\"\",IF(OR('Enrollment Form'!$B946<>\"Subscriber\",'Enrollment Form'!$C946=\"ROC\"),\"-\",IF(AND('Enrollment Form'!$B946=\"Subscriber\",'Enrollment Form'!$C946=\"Enroll\",'Enrollment Form'!$AK946<>\"\"),\"Y\",\"N\")))","v":""},{"$f":"IF($B939=\"N\",\"\",IF(OR('Enrollment Form'!$B946<>\"Subscriber\",'Enrollment Form'!$C946=\"ROC\"),\"-\",IF(AND('Enrollment Form'!$B946=\"Subscriber\",'Enrollment Form'!$C946=\"Enroll\",'Enrollment Form'!$AL946<>\"\"),\"Y\",\"N\")))","v":""},{"$f":"IF($B939=\"N\",\"\",IF(OR('Enrollment Form'!$B946<>\"Subscriber\",'Enrollment Form'!$C946=\"ROC\"),\"-\",IF(AND('Enrollment Form'!$B946=\"Subscriber\",'Enrollment Form'!$C946=\"Enroll\",'Enrollment Form'!$AP946<>\"\"),\"Y\",\"N\")))","v":""},{"$f":"IF($B939=\"N\",\"\",IF(OR('Enrollment Form'!$B946<>\"Subscriber\",'Enrollment Form'!$C946=\"ROC\"),\"-\",IF(AND('Enrollment Form'!$B946=\"Subscriber\",'Enrollment Form'!$C946=\"Enroll\",'Enrollment Form'!$AQ946<>\"\"),\"Y\",\"N\")))","v":""},{"$f":"IF($B939=\"N\",\"\",IF(OR('Enrollment Form'!$B946<>\"Subscriber\",'Enrollment Form'!$C946=\"ROC\"),\"-\",IF(AND('Enrollment Form'!$B946=\"Subscriber\",'Enrollment Form'!$C946=\"Enroll\",'Enrollment Form'!$AS946<>\"\"),\"Y\",\"N\")))","v":""},{"$f":"IF($B939=\"N\",\"\",IF($Q939=\"-\",\"-\",IF(AND($Q939=\"Y\",'Enrollment Form'!$AS946=\"No\"),\"-\",IF(AND($Q939=\"Y\",'Enrollment Form'!$AS946=\"Yes\",'Enrollment Form'!$AT946<>\"\"),\"Y\",\"N\"))))","v":""},{"$f":"IF($B939=\"N\",\"\",IF(OR('Enrollment Form'!$B946<>\"Subscriber\",'Enrollment Form'!$C946=\"ROC\"),\"-\",IF(AND('Enrollment Form'!$B946=\"Subscriber\",'Enrollment Form'!$C946=\"Enroll\",'Enrollment Form'!$CV946<>\"\"),\"Y\",\"N\")))","v":""},{"$f":"IF($B939=\"N\",\"\",IF($S939=\"-\",\"-\",IF(AND($S939=\"Y\",'Enrollment Form'!$CV946=\"No\"),\"-\",IF(AND($S939=\"Y\",'Enrollment Form'!$CV946=\"Yes\",'Enrollment Form'!$CW946<>\"\"),\"Y\",\"N\"))))","v":""},{"$f":"IF(OR('Enrollment Form'!$AY946=\"Yes\",'Enrollment Form'!$AY946=\"\"),\"-\",IF(OR(AND('Enrollment Form'!$AY946=\"No\",ISERROR(FIND(\"HMO\",VLOOKUP('Enrollment Form'!G946,'Enrollment Form'!H$11:J$1000,3,FALSE),1))=FALSE,COUNTA('Enrollment Form'!$AZ946:$BC946)=4),AND('Enrollment Form'!$AY946=\"No\",ISERROR(FIND(\"HMO\",VLOOKUP('Enrollment Form'!G946,'Enrollment Form'!H$11:J$1000,3,FALSE),1))=FALSE,COUNTA('Enrollment Form'!$BT946:$BW946)=4)),\"Y\",\"N\"))","v":"-"},{"$f":"IF($B939=\"N\",\"\",IF('Enrollment Form'!$B946=\"Subscriber\",\"-\",IF(COUNTA('Enrollment Form'!$BL946,'Enrollment Form'!$BN946)=2,\"Y\",\"N\")))","v":""},{"$f":"IF($B939=\"N\",\"\",IF(OR('Enrollment Form'!$AX946=\"\",'Enrollment Form'!$AX946=\"No\"),\"-\",IF(AND('Enrollment Form'!$AX946=\"Yes\",COUNTA('Enrollment Form'!$CR946)=1),\"Y\",\"N\")))","v":""},{"$f":"IF(OR('Enrollment Form'!$CR946=\"\",'Enrollment Form'!$CR946=\"No\"),\"-\",IF(COUNTA('Enrollment Form'!$CT946:$CU946)=2,\"Y\",\"N\"))","v":"-"},{"$f":"IF($B939=\"N\",\"\",IF(COUNTIF('Enrollment Form'!$DG946:$DP946,\"Other\")=COUNTA('Enrollment Form'!$DK946,'Enrollment Form'!$DH946,'Enrollment Form'!$DN946,'Enrollment Form'!$DQ946),\"Y\",\"N\"))","v":""},{"$f":"IF($B939=\"N\",\"\",IF(OR('Enrollment Form'!B946<>\"Subscriber\",'Enrollment Form'!C946=\"ROC\",COUNTIF('Enrollment Form'!AV946:AW946,\"Yes\")>=1),\"-\",IF(AND('Enrollment Form'!C946=\"Enroll\",COUNTIF('Enrollment Form'!AV946:AW946,\"No\")=2,'Enrollment Form'!AX946=\"\"),\"N\",\"Y\")))","v":""},{"$f":"IF(OR(B939=\"N\",'Enrollment Form'!B946<>\"Subscriber\",'Enrollment Form'!C946=\"ROC\",'Enrollment Form'!O946<>\"Multiple of Salary\"),\"-\",IF(COUNTA('Enrollment Form'!T946:U946)<2,\"N\",\"Y\"))","v":"-"},{"$f":"IF(B939=\"N\",\"\",IF(OR('Enrollment Form'!C946=\"ROC\",'Enrollment Form'!B946<>\"Subscriber\",'Enrollment Form'!O946=\"Waive\",'Enrollment Form'!O946=\"\"),\"-\",IF('Enrollment Form'!P946=\"\",\"N\",\"Y\")))","v":""},{"$f":"IF($B939=\"N\",\"\",IF(AND('Enrollment Form'!$C946=\"ROC\",'Enrollment Form'!$DR946<>\"\"),\"Y\",IF(AND('Enrollment Form'!$C946=\"ROC\",'Enrollment Form'!$DR946=\"\"),\"N\",IF(AND('Enrollment Form'!$C946=\"Enroll\",'Enrollment Form'!$B946=\"Subscriber\",'Enrollment Form'!$CX946=\"No\",'Enrollment Form'!$DR946=\"\"),\"N\",IF(AND('Enrollment Form'!$C946=\"Enroll\",'Enrollment Form'!$B946=\"Subscriber\",'Enrollment Form'!$CX946=\"Yes\"),\"-\",\"Y\")))))","v":""},{"$f":"IF($B939=\"N\",\"\",IF(AND('Enrollment Form'!$C946=\"ROC\",'Enrollment Form'!$DS946<>\"\"),\"Y\",IF(AND('Enrollment Form'!$C946=\"ROC\",'Enrollment Form'!$DS946=\"\"),\"N\",IF(AND('Enrollment Form'!$C946=\"Enroll\",'Enrollment Form'!$B946=\"Subscriber\",'Enrollment Form'!$CX946=\"No\",'Enrollment Form'!$DS946=\"\"),\"N\",IF(AND('Enrollment Form'!$C946=\"Enroll\",'Enrollment Form'!$B946=\"Subscriber\",'Enrollment Form'!$CX946=\"Yes\"),\"-\",\"Y\")))))","v":""},{"$f":"IF('Enrollment Form'!AH946=\"\",\"\",IF(ISERROR(SEARCH(\".\",'Enrollment Form'!AH946,SEARCH(\"@\",'Enrollment Form'!AH946))),\"N\",\"Y\"))","v":""},{"$f":"IF(OR($B939=\"N\",'Enrollment Form'!$G946=\"\"),\"\",IF('Enrollment Form'!$B946<>\"Subscriber\",\"-\",IF(COUNTIF('Enrollment Form'!$AV946:$AW946,\"Yes\")=2,\"N\",\"Y\")))","v":""},{"$f":"IF(OR('Enrollment Form'!$CJ946=\"\",'Enrollment Form'!$CJ946=\"No\"),\"-\",IF(AND('Enrollment Form'!$CJ946=\"Yes\",'Enrollment Form'!$CK946=\"\"),\"N\",\"Y\"))","v":"-"},{"$f":"IF(OR('Enrollment Form'!$CL946=\"\",'Enrollment Form'!$CL946=\"No\"),\"-\",IF(AND('Enrollment Form'!$CL946=\"Yes\",'Enrollment Form'!$CM946=\"\"),\"N\",\"Y\"))","v":"-"},{"$f":"IF(OR('Enrollment Form'!$CN946=\"\",'Enrollment Form'!$CN946=\"No\"),\"-\",IF(AND('Enrollment Form'!$CN946=\"Yes\",'Enrollment Form'!$CO946=\"\"),\"N\",\"Y\"))","v":"-"},{"$f":"IF(OR('Enrollment Form'!$CN946=\"\",'Enrollment Form'!$CN946=\"No\"),\"-\",IF(AND('Enrollment Form'!$CN946=\"Yes\",'Enrollment Form'!$CP946=\"\"),\"N\",\"Y\"))","v":"-"},{"$f":"IF('Enrollment Form'!B946<>\"Subscriber\",\"-\",IF(AND('Enrollment Form'!B946=\"Subscriber\",'Enrollment Form'!C946=\"Enroll\",'Enrollment Form'!AA946=\"\"),\"N\",\"Y\"))","v":"-"},{"$f":"IF(OR('Enrollment Form'!B946=\"Subscriber\",'Enrollment Form'!B946=\"\"),\"-\",IF('Enrollment Form'!BP946=\"\",\"N\",\"Y\"))","v":"-"},{"$f":"IF('Enrollment Form'!B946<>\"Subscriber\",\"-\",IF(AND('Enrollment Form'!B946=\"Subscriber\",'Enrollment Form'!G946=\"\"),\"N\",\"Y\"))","v":"-"},{"$f":"IF('Enrollment Form'!A946=\"\",\"\",IF('Enrollment Form'!B946=\"Subscriber\",\"-\",IF(AND('Enrollment Form'!B946<>\"Subscriber\",'Enrollment Form'!G946='Enrollment Form'!H946),\"N\",\"Y\")))","v":""},0]
[947,{"$f":"IF('Enrollment Form'!$A947<>\"\",\"Y\",\"N\")","v":"N"},{"$f":"IF(AND('Enrollment Form'!$B947=\"\",'Enrollment Form'!$C947<>\"\"),\"N\",IF($B940=\"N\",\"\",\"Y\"))","v":""},{"$f":"IF(OR($B940=\"N\",'Enrollment Form'!G947=\"\"),\"\",IF('Enrollment Form'!$B947<>\"Subscriber\",\"\",IF('Enrollment Form'!$G947='Enrollment Form'!$H947,\"Y\",\"N\")))","v":""},{"$f":"IF($B940=\"N\",\"\",IF(AND(COUNTIFS('Enrollment Form'!$H$11:$H$1000,'Enrollment Form'!$H947,'Enrollment Form'!$B$11:$B$1000,'Enrollment Form'!$B947)>1,'Enrollment Form'!$H947<>\"\"),\"N\",\"Y\"))","v":""},{"$f":"IF($B940=\"N\",\"\",IF(LEN('Enrollment Form'!$Y947)=0,\"\",IF(LEN('Enrollment Form'!$Y947)<>5,\"N\",\"Y\")))","v":""},{"$f":"IF($B940=\"N\",\"\",IF(LEN('Enrollment Form'!$AD947=0),\"\",IF(LEN('Enrollment Form'!$AD947)<>5,\"N\",\"Y\")))","v":""},{"$f":"IF($B940=\"N\",\"\",IF(LEN('Enrollment Form'!$BS947=0),\"\",IF(LEN('Enrollment Form'!$BS947)<>5,\"N\",\"Y\")))","v":""},{"$f":"IF($B940=\"N\",\"\",IF(LEN('Enrollment Form'!$AE947)=0,\"\",IF(LEN('Enrollment Form'!$AE947)<>10,\"N\",\"Y\")))","v":""},{"$f":"IF($B940=\"N\",\"\",IF(LEN('Enrollment Form'!$AF947)=0,\"\",IF(LEN('Enrollment Form'!$AF947)<>10,\"N\",\"Y\")))","v":""},{"$f":"IF('Enrollment Form'!$O947<>\"Graded\",\"-\",IF(AND('Enrollment Form'!$O947=\"Graded\",'Enrollment Form'!$AR947<>\"\"),\"Y\",\"N\"))","v":"-"},{"$f":"IF($B940=\"N\",\"\",IF(OR('Enrollment Form'!$B947<>\"Subscriber\",'Enrollment Form'!$C947=\"ROC\"),\"-\",IF(AND('Enrollment Form'!$B947=\"Subscriber\",'Enrollment Form'!$C947=\"Enroll\",'Enrollment Form'!$AJ947<>\"\"),\"Y\",\"N\")))","v":""},{"$f":"IF($B940=\"N\",\"\",IF(OR('Enrollment Form'!$B947<>\"Subscriber\",'Enrollment Form'!$C947=\"ROC\"),\"-\",IF(AND('Enrollment Form'!$B947=\"Subscriber\",'Enrollment Form'!$C947=\"Enroll\",'Enrollment Form'!$AK947<>\"\"),\"Y\",\"N\")))","v":""},{"$f":"IF($B940=\"N\",\"\",IF(OR('Enrollment Form'!$B947<>\"Subscriber\",'Enrollment Form'!$C947=\"ROC\"),\"-\",IF(AND('Enrollment Form'!$B947=\"Subscriber\",'Enrollment Form'!$C947=\"Enroll\",'Enrollment Form'!$AL947<>\"\"),\"Y\",\"N\")))","v":""},{"$f":"IF($B940=\"N\",\"\",IF(OR('Enrollment Form'!$B947<>\"Subscriber\",'Enrollment Form'!$C947=\"ROC\"),\"-\",IF(AND('Enrollment Form'!$B947=\"Subscriber\",'Enrollment Form'!$C947=\"Enroll\",'Enrollment Form'!$AP947<>\"\"),\"Y\",\"N\")))","v":""},{"$f":"IF($B940=\"N\",\"\",IF(OR('Enrollment Form'!$B947<>\"Subscriber\",'Enrollment Form'!$C947=\"ROC\"),\"-\",IF(AND('Enrollment Form'!$B947=\"Subscriber\",'Enrollment Form'!$C947=\"Enroll\",'Enrollment Form'!$AQ947<>\"\"),\"Y\",\"N\")))","v":""},{"$f":"IF($B940=\"N\",\"\",IF(OR('Enrollment Form'!$B947<>\"Subscriber\",'Enrollment Form'!$C947=\"ROC\"),\"-\",IF(AND('Enrollment Form'!$B947=\"Subscriber\",'Enrollment Form'!$C947=\"Enroll\",'Enrollment Form'!$AS947<>\"\"),\"Y\",\"N\")))","v":""},{"$f":"IF($B940=\"N\",\"\",IF($Q940=\"-\",\"-\",IF(AND($Q940=\"Y\",'Enrollment Form'!$AS947=\"No\"),\"-\",IF(AND($Q940=\"Y\",'Enrollment Form'!$AS947=\"Yes\",'Enrollment Form'!$AT947<>\"\"),\"Y\",\"N\"))))","v":""},{"$f":"IF($B940=\"N\",\"\",IF(OR('Enrollment Form'!$B947<>\"Subscriber\",'Enrollment Form'!$C947=\"ROC\"),\"-\",IF(AND('Enrollment Form'!$B947=\"Subscriber\",'Enrollment Form'!$C947=\"Enroll\",'Enrollment Form'!$CV947<>\"\"),\"Y\",\"N\")))","v":""},{"$f":"IF($B940=\"N\",\"\",IF($S940=\"-\",\"-\",IF(AND($S940=\"Y\",'Enrollment Form'!$CV947=\"No\"),\"-\",IF(AND($S940=\"Y\",'Enrollment Form'!$CV947=\"Yes\",'Enrollment Form'!$CW947<>\"\"),\"Y\",\"N\"))))","v":""},{"$f":"IF(OR('Enrollment Form'!$AY947=\"Yes\",'Enrollment Form'!$AY947=\"\"),\"-\",IF(OR(AND('Enrollment Form'!$AY947=\"No\",ISERROR(FIND(\"HMO\",VLOOKUP('Enrollment Form'!G947,'Enrollment Form'!H$11:J$1000,3,FALSE),1))=FALSE,COUNTA('Enrollment Form'!$AZ947:$BC947)=4),AND('Enrollment Form'!$AY947=\"No\",ISERROR(FIND(\"HMO\",VLOOKUP('Enrollment Form'!G947,'Enrollment Form'!H$11:J$1000,3,FALSE),1))=FALSE,COUNTA('Enrollment Form'!$BT947:$BW947)=4)),\"Y\",\"N\"))","v":"-"},{"$f":"IF($B940=\"N\",\"\",IF('Enrollment Form'!$B947=\"Subscriber\",\"-\",IF(COUNTA('Enrollment Form'!$BL947,'Enrollment Form'!$BN947)=2,\"Y\",\"N\")))","v":""},{"$f":"IF($B940=\"N\",\"\",IF(OR('Enrollment Form'!$AX947=\"\",'Enrollment Form'!$AX947=\"No\"),\"-\",IF(AND('Enrollment Form'!$AX947=\"Yes\",COUNTA('Enrollment Form'!$CR947)=1),\"Y\",\"N\")))","v":""},{"$f":"IF(OR('Enrollment Form'!$CR947=\"\",'Enrollment Form'!$CR947=\"No\"),\"-\",IF(COUNTA('Enrollment Form'!$CT947:$CU947)=2,\"Y\",\"N\"))","v":"-"},{"$f":"IF($B940=\"N\",\"\",IF(COUNTIF('Enrollment Form'!$DG947:$DP947,\"Other\")=COUNTA('Enrollment Form'!$DK947,'Enrollment Form'!$DH947,'Enrollment Form'!$DN947,'Enrollment Form'!$DQ947),\"Y\",\"N\"))","v":""},{"$f":"IF($B940=\"N\",\"\",IF(OR('Enrollment Form'!B947<>\"Subscriber\",'Enrollment Form'!C947=\"ROC\",COUNTIF('Enrollment Form'!AV947:AW947,\"Yes\")>=1),\"-\",IF(AND('Enrollment Form'!C947=\"Enroll\",COUNTIF('Enrollment Form'!AV947:AW947,\"No\")=2,'Enrollment Form'!AX947=\"\"),\"N\",\"Y\")))","v":""},{"$f":"IF(OR(B940=\"N\",'Enrollment Form'!B947<>\"Subscriber\",'Enrollment Form'!C947=\"ROC\",'Enrollment Form'!O947<>\"Multiple of Salary\"),\"-\",IF(COUNTA('Enrollment Form'!T947:U947)<2,\"N\",\"Y\"))","v":"-"},{"$f":"IF(B940=\"N\",\"\",IF(OR('Enrollment Form'!C947=\"ROC\",'Enrollment Form'!B947<>\"Subscriber\",'Enrollment Form'!O947=\"Waive\",'Enrollment Form'!O947=\"\"),\"-\",IF('Enrollment Form'!P947=\"\",\"N\",\"Y\")))","v":""},{"$f":"IF($B940=\"N\",\"\",IF(AND('Enrollment Form'!$C947=\"ROC\",'Enrollment Form'!$DR947<>\"\"),\"Y\",IF(AND('Enrollment Form'!$C947=\"ROC\",'Enrollment Form'!$DR947=\"\"),\"N\",IF(AND('Enrollment Form'!$C947=\"Enroll\",'Enrollment Form'!$B947=\"Subscriber\",'Enrollment Form'!$CX947=\"No\",'Enrollment Form'!$DR947=\"\"),\"N\",IF(AND('Enrollment Form'!$C947=\"Enroll\",'Enrollment Form'!$B947=\"Subscriber\",'Enrollment Form'!$CX947=\"Yes\"),\"-\",\"Y\")))))","v":""},{"$f":"IF($B940=\"N\",\"\",IF(AND('Enrollment Form'!$C947=\"ROC\",'Enrollment Form'!$DS947<>\"\"),\"Y\",IF(AND('Enrollment Form'!$C947=\"ROC\",'Enrollment Form'!$DS947=\"\"),\"N\",IF(AND('Enrollment Form'!$C947=\"Enroll\",'Enrollment Form'!$B947=\"Subscriber\",'Enrollment Form'!$CX947=\"No\",'Enrollment Form'!$DS947=\"\"),\"N\",IF(AND('Enrollment Form'!$C947=\"Enroll\",'Enrollment Form'!$B947=\"Subscriber\",'Enrollment Form'!$CX947=\"Yes\"),\"-\",\"Y\")))))","v":""},{"$f":"IF('Enrollment Form'!AH947=\"\",\"\",IF(ISERROR(SEARCH(\".\",'Enrollment Form'!AH947,SEARCH(\"@\",'Enrollment Form'!AH947))),\"N\",\"Y\"))","v":""},{"$f":"IF(OR($B940=\"N\",'Enrollment Form'!$G947=\"\"),\"\",IF('Enrollment Form'!$B947<>\"Subscriber\",\"-\",IF(COUNTIF('Enrollment Form'!$AV947:$AW947,\"Yes\")=2,\"N\",\"Y\")))","v":""},{"$f":"IF(OR('Enrollment Form'!$CJ947=\"\",'Enrollment Form'!$CJ947=\"No\"),\"-\",IF(AND('Enrollment Form'!$CJ947=\"Yes\",'Enrollment Form'!$CK947=\"\"),\"N\",\"Y\"))","v":"-"},{"$f":"IF(OR('Enrollment Form'!$CL947=\"\",'Enrollment Form'!$CL947=\"No\"),\"-\",IF(AND('Enrollment Form'!$CL947=\"Yes\",'Enrollment Form'!$CM947=\"\"),\"N\",\"Y\"))","v":"-"},{"$f":"IF(OR('Enrollment Form'!$CN947=\"\",'Enrollment Form'!$CN947=\"No\"),\"-\",IF(AND('Enrollment Form'!$CN947=\"Yes\",'Enrollment Form'!$CO947=\"\"),\"N\",\"Y\"))","v":"-"},{"$f":"IF(OR('Enrollment Form'!$CN947=\"\",'Enrollment Form'!$CN947=\"No\"),\"-\",IF(AND('Enrollment Form'!$CN947=\"Yes\",'Enrollment Form'!$CP947=\"\"),\"N\",\"Y\"))","v":"-"},{"$f":"IF('Enrollment Form'!B947<>\"Subscriber\",\"-\",IF(AND('Enrollment Form'!B947=\"Subscriber\",'Enrollment Form'!C947=\"Enroll\",'Enrollment Form'!AA947=\"\"),\"N\",\"Y\"))","v":"-"},{"$f":"IF(OR('Enrollment Form'!B947=\"Subscriber\",'Enrollment Form'!B947=\"\"),\"-\",IF('Enrollment Form'!BP947=\"\",\"N\",\"Y\"))","v":"-"},{"$f":"IF('Enrollment Form'!B947<>\"Subscriber\",\"-\",IF(AND('Enrollment Form'!B947=\"Subscriber\",'Enrollment Form'!G947=\"\"),\"N\",\"Y\"))","v":"-"},{"$f":"IF('Enrollment Form'!A947=\"\",\"\",IF('Enrollment Form'!B947=\"Subscriber\",\"-\",IF(AND('Enrollment Form'!B947<>\"Subscriber\",'Enrollment Form'!G947='Enrollment Form'!H947),\"N\",\"Y\")))","v":""},0]
[948,{"$f":"IF('Enrollment Form'!$A948<>\"\",\"Y\",\"N\")","v":"N"},{"$f":"IF(AND('Enrollment Form'!$B948=\"\",'Enrollment Form'!$C948<>\"\"),\"N\",IF($B941=\"N\",\"\",\"Y\"))","v":""},{"$f":"IF(OR($B941=\"N\",'Enrollment Form'!G948=\"\"),\"\",IF('Enrollment Form'!$B948<>\"Subscriber\",\"\",IF('Enrollment Form'!$G948='Enrollment Form'!$H948,\"Y\",\"N\")))","v":""},{"$f":"IF($B941=\"N\",\"\",IF(AND(COUNTIFS('Enrollment Form'!$H$11:$H$1000,'Enrollment Form'!$H948,'Enrollment Form'!$B$11:$B$1000,'Enrollment Form'!$B948)>1,'Enrollment Form'!$H948<>\"\"),\"N\",\"Y\"))","v":""},{"$f":"IF($B941=\"N\",\"\",IF(LEN('Enrollment Form'!$Y948)=0,\"\",IF(LEN('Enrollment Form'!$Y948)<>5,\"N\",\"Y\")))","v":""},{"$f":"IF($B941=\"N\",\"\",IF(LEN('Enrollment Form'!$AD948=0),\"\",IF(LEN('Enrollment Form'!$AD948)<>5,\"N\",\"Y\")))","v":""},{"$f":"IF($B941=\"N\",\"\",IF(LEN('Enrollment Form'!$BS948=0),\"\",IF(LEN('Enrollment Form'!$BS948)<>5,\"N\",\"Y\")))","v":""},{"$f":"IF($B941=\"N\",\"\",IF(LEN('Enrollment Form'!$AE948)=0,\"\",IF(LEN('Enrollment Form'!$AE948)<>10,\"N\",\"Y\")))","v":""},{"$f":"IF($B941=\"N\",\"\",IF(LEN('Enrollment Form'!$AF948)=0,\"\",IF(LEN('Enrollment Form'!$AF948)<>10,\"N\",\"Y\")))","v":""},{"$f":"IF('Enrollment Form'!$O948<>\"Graded\",\"-\",IF(AND('Enrollment Form'!$O948=\"Graded\",'Enrollment Form'!$AR948<>\"\"),\"Y\",\"N\"))","v":"-"},{"$f":"IF($B941=\"N\",\"\",IF(OR('Enrollment Form'!$B948<>\"Subscriber\",'Enrollment Form'!$C948=\"ROC\"),\"-\",IF(AND('Enrollment Form'!$B948=\"Subscriber\",'Enrollment Form'!$C948=\"Enroll\",'Enrollment Form'!$AJ948<>\"\"),\"Y\",\"N\")))","v":""},{"$f":"IF($B941=\"N\",\"\",IF(OR('Enrollment Form'!$B948<>\"Subscriber\",'Enrollment Form'!$C948=\"ROC\"),\"-\",IF(AND('Enrollment Form'!$B948=\"Subscriber\",'Enrollment Form'!$C948=\"Enroll\",'Enrollment Form'!$AK948<>\"\"),\"Y\",\"N\")))","v":""},{"$f":"IF($B941=\"N\",\"\",IF(OR('Enrollment Form'!$B948<>\"Subscriber\",'Enrollment Form'!$C948=\"ROC\"),\"-\",IF(AND('Enrollment Form'!$B948=\"Subscriber\",'Enrollment Form'!$C948=\"Enroll\",'Enrollment Form'!$AL948<>\"\"),\"Y\",\"N\")))","v":""},{"$f":"IF($B941=\"N\",\"\",IF(OR('Enrollment Form'!$B948<>\"Subscriber\",'Enrollment Form'!$C948=\"ROC\"),\"-\",IF(AND('Enrollment Form'!$B948=\"Subscriber\",'Enrollment Form'!$C948=\"Enroll\",'Enrollment Form'!$AP948<>\"\"),\"Y\",\"N\")))","v":""},{"$f":"IF($B941=\"N\",\"\",IF(OR('Enrollment Form'!$B948<>\"Subscriber\",'Enrollment Form'!$C948=\"ROC\"),\"-\",IF(AND('Enrollment Form'!$B948=\"Subscriber\",'Enrollment Form'!$C948=\"Enroll\",'Enrollment Form'!$AQ948<>\"\"),\"Y\",\"N\")))","v":""},{"$f":"IF($B941=\"N\",\"\",IF(OR('Enrollment Form'!$B948<>\"Subscriber\",'Enrollment Form'!$C948=\"ROC\"),\"-\",IF(AND('Enrollment Form'!$B948=\"Subscriber\",'Enrollment Form'!$C948=\"Enroll\",'Enrollment Form'!$AS948<>\"\"),\"Y\",\"N\")))","v":""},{"$f":"IF($B941=\"N\",\"\",IF($Q941=\"-\",\"-\",IF(AND($Q941=\"Y\",'Enrollment Form'!$AS948=\"No\"),\"-\",IF(AND($Q941=\"Y\",'Enrollment Form'!$AS948=\"Yes\",'Enrollment Form'!$AT948<>\"\"),\"Y\",\"N\"))))","v":""},{"$f":"IF($B941=\"N\",\"\",IF(OR('Enrollment Form'!$B948<>\"Subscriber\",'Enrollment Form'!$C948=\"ROC\"),\"-\",IF(AND('Enrollment Form'!$B948=\"Subscriber\",'Enrollment Form'!$C948=\"Enroll\",'Enrollment Form'!$CV948<>\"\"),\"Y\",\"N\")))","v":""},{"$f":"IF($B941=\"N\",\"\",IF($S941=\"-\",\"-\",IF(AND($S941=\"Y\",'Enrollment Form'!$CV948=\"No\"),\"-\",IF(AND($S941=\"Y\",'Enrollment Form'!$CV948=\"Yes\",'Enrollment Form'!$CW948<>\"\"),\"Y\",\"N\"))))","v":""},{"$f":"IF(OR('Enrollment Form'!$AY948=\"Yes\",'Enrollment Form'!$AY948=\"\"),\"-\",IF(OR(AND('Enrollment Form'!$AY948=\"No\",ISERROR(FIND(\"HMO\",VLOOKUP('Enrollment Form'!G948,'Enrollment Form'!H$11:J$1000,3,FALSE),1))=FALSE,COUNTA('Enrollment Form'!$AZ948:$BC948)=4),AND('Enrollment Form'!$AY948=\"No\",ISERROR(FIND(\"HMO\",VLOOKUP('Enrollment Form'!G948,'Enrollment Form'!H$11:J$1000,3,FALSE),1))=FALSE,COUNTA('Enrollment Form'!$BT948:$BW948)=4)),\"Y\",\"N\"))","v":"-"},{"$f":"IF($B941=\"N\",\"\",IF('Enrollment Form'!$B948=\"Subscriber\",\"-\",IF(COUNTA('Enrollment Form'!$BL948,'Enrollment Form'!$BN948)=2,\"Y\",\"N\")))","v":""},{"$f":"IF($B941=\"N\",\"\",IF(OR('Enrollment Form'!$AX948=\"\",'Enrollment Form'!$AX948=\"No\"),\"-\",IF(AND('Enrollment Form'!$AX948=\"Yes\",COUNTA('Enrollment Form'!$CR948)=1),\"Y\",\"N\")))","v":""},{"$f":"IF(OR('Enrollment Form'!$CR948=\"\",'Enrollment Form'!$CR948=\"No\"),\"-\",IF(COUNTA('Enrollment Form'!$CT948:$CU948)=2,\"Y\",\"N\"))","v":"-"},{"$f":"IF($B941=\"N\",\"\",IF(COUNTIF('Enrollment Form'!$DG948:$DP948,\"Other\")=COUNTA('Enrollment Form'!$DK948,'Enrollment Form'!$DH948,'Enrollment Form'!$DN948,'Enrollment Form'!$DQ948),\"Y\",\"N\"))","v":""},{"$f":"IF($B941=\"N\",\"\",IF(OR('Enrollment Form'!B948<>\"Subscriber\",'Enrollment Form'!C948=\"ROC\",COUNTIF('Enrollment Form'!AV948:AW948,\"Yes\")>=1),\"-\",IF(AND('Enrollment Form'!C948=\"Enroll\",COUNTIF('Enrollment Form'!AV948:AW948,\"No\")=2,'Enrollment Form'!AX948=\"\"),\"N\",\"Y\")))","v":""},{"$f":"IF(OR(B941=\"N\",'Enrollment Form'!B948<>\"Subscriber\",'Enrollment Form'!C948=\"ROC\",'Enrollment Form'!O948<>\"Multiple of Salary\"),\"-\",IF(COUNTA('Enrollment Form'!T948:U948)<2,\"N\",\"Y\"))","v":"-"},{"$f":"IF(B941=\"N\",\"\",IF(OR('Enrollment Form'!C948=\"ROC\",'Enrollment Form'!B948<>\"Subscriber\",'Enrollment Form'!O948=\"Waive\",'Enrollment Form'!O948=\"\"),\"-\",IF('Enrollment Form'!P948=\"\",\"N\",\"Y\")))","v":""},{"$f":"IF($B941=\"N\",\"\",IF(AND('Enrollment Form'!$C948=\"ROC\",'Enrollment Form'!$DR948<>\"\"),\"Y\",IF(AND('Enrollment Form'!$C948=\"ROC\",'Enrollment Form'!$DR948=\"\"),\"N\",IF(AND('Enrollment Form'!$C948=\"Enroll\",'Enrollment Form'!$B948=\"Subscriber\",'Enrollment Form'!$CX948=\"No\",'Enrollment Form'!$DR948=\"\"),\"N\",IF(AND('Enrollment Form'!$C948=\"Enroll\",'Enrollment Form'!$B948=\"Subscriber\",'Enrollment Form'!$CX948=\"Yes\"),\"-\",\"Y\")))))","v":""},{"$f":"IF($B941=\"N\",\"\",IF(AND('Enrollment Form'!$C948=\"ROC\",'Enrollment Form'!$DS948<>\"\"),\"Y\",IF(AND('Enrollment Form'!$C948=\"ROC\",'Enrollment Form'!$DS948=\"\"),\"N\",IF(AND('Enrollment Form'!$C948=\"Enroll\",'Enrollment Form'!$B948=\"Subscriber\",'Enrollment Form'!$CX948=\"No\",'Enrollment Form'!$DS948=\"\"),\"N\",IF(AND('Enrollment Form'!$C948=\"Enroll\",'Enrollment Form'!$B948=\"Subscriber\",'Enrollment Form'!$CX948=\"Yes\"),\"-\",\"Y\")))))","v":""},{"$f":"IF('Enrollment Form'!AH948=\"\",\"\",IF(ISERROR(SEARCH(\".\",'Enrollment Form'!AH948,SEARCH(\"@\",'Enrollment Form'!AH948))),\"N\",\"Y\"))","v":""},{"$f":"IF(OR($B941=\"N\",'Enrollment Form'!$G948=\"\"),\"\",IF('Enrollment Form'!$B948<>\"Subscriber\",\"-\",IF(COUNTIF('Enrollment Form'!$AV948:$AW948,\"Yes\")=2,\"N\",\"Y\")))","v":""},{"$f":"IF(OR('Enrollment Form'!$CJ948=\"\",'Enrollment Form'!$CJ948=\"No\"),\"-\",IF(AND('Enrollment Form'!$CJ948=\"Yes\",'Enrollment Form'!$CK948=\"\"),\"N\",\"Y\"))","v":"-"},{"$f":"IF(OR('Enrollment Form'!$CL948=\"\",'Enrollment Form'!$CL948=\"No\"),\"-\",IF(AND('Enrollment Form'!$CL948=\"Yes\",'Enrollment Form'!$CM948=\"\"),\"N\",\"Y\"))","v":"-"},{"$f":"IF(OR('Enrollment Form'!$CN948=\"\",'Enrollment Form'!$CN948=\"No\"),\"-\",IF(AND('Enrollment Form'!$CN948=\"Yes\",'Enrollment Form'!$CO948=\"\"),\"N\",\"Y\"))","v":"-"},{"$f":"IF(OR('Enrollment Form'!$CN948=\"\",'Enrollment Form'!$CN948=\"No\"),\"-\",IF(AND('Enrollment Form'!$CN948=\"Yes\",'Enrollment Form'!$CP948=\"\"),\"N\",\"Y\"))","v":"-"},{"$f":"IF('Enrollment Form'!B948<>\"Subscriber\",\"-\",IF(AND('Enrollment Form'!B948=\"Subscriber\",'Enrollment Form'!C948=\"Enroll\",'Enrollment Form'!AA948=\"\"),\"N\",\"Y\"))","v":"-"},{"$f":"IF(OR('Enrollment Form'!B948=\"Subscriber\",'Enrollment Form'!B948=\"\"),\"-\",IF('Enrollment Form'!BP948=\"\",\"N\",\"Y\"))","v":"-"},{"$f":"IF('Enrollment Form'!B948<>\"Subscriber\",\"-\",IF(AND('Enrollment Form'!B948=\"Subscriber\",'Enrollment Form'!G948=\"\"),\"N\",\"Y\"))","v":"-"},{"$f":"IF('Enrollment Form'!A948=\"\",\"\",IF('Enrollment Form'!B948=\"Subscriber\",\"-\",IF(AND('Enrollment Form'!B948<>\"Subscriber\",'Enrollment Form'!G948='Enrollment Form'!H948),\"N\",\"Y\")))","v":""},0]
[949,{"$f":"IF('Enrollment Form'!$A949<>\"\",\"Y\",\"N\")","v":"N"},{"$f":"IF(AND('Enrollment Form'!$B949=\"\",'Enrollment Form'!$C949<>\"\"),\"N\",IF($B942=\"N\",\"\",\"Y\"))","v":""},{"$f":"IF(OR($B942=\"N\",'Enrollment Form'!G949=\"\"),\"\",IF('Enrollment Form'!$B949<>\"Subscriber\",\"\",IF('Enrollment Form'!$G949='Enrollment Form'!$H949,\"Y\",\"N\")))","v":""},{"$f":"IF($B942=\"N\",\"\",IF(AND(COUNTIFS('Enrollment Form'!$H$11:$H$1000,'Enrollment Form'!$H949,'Enrollment Form'!$B$11:$B$1000,'Enrollment Form'!$B949)>1,'Enrollment Form'!$H949<>\"\"),\"N\",\"Y\"))","v":""},{"$f":"IF($B942=\"N\",\"\",IF(LEN('Enrollment Form'!$Y949)=0,\"\",IF(LEN('Enrollment Form'!$Y949)<>5,\"N\",\"Y\")))","v":""},{"$f":"IF($B942=\"N\",\"\",IF(LEN('Enrollment Form'!$AD949=0),\"\",IF(LEN('Enrollment Form'!$AD949)<>5,\"N\",\"Y\")))","v":""},{"$f":"IF($B942=\"N\",\"\",IF(LEN('Enrollment Form'!$BS949=0),\"\",IF(LEN('Enrollment Form'!$BS949)<>5,\"N\",\"Y\")))","v":""},{"$f":"IF($B942=\"N\",\"\",IF(LEN('Enrollment Form'!$AE949)=0,\"\",IF(LEN('Enrollment Form'!$AE949)<>10,\"N\",\"Y\")))","v":""},{"$f":"IF($B942=\"N\",\"\",IF(LEN('Enrollment Form'!$AF949)=0,\"\",IF(LEN('Enrollment Form'!$AF949)<>10,\"N\",\"Y\")))","v":""},{"$f":"IF('Enrollment Form'!$O949<>\"Graded\",\"-\",IF(AND('Enrollment Form'!$O949=\"Graded\",'Enrollment Form'!$AR949<>\"\"),\"Y\",\"N\"))","v":"-"},{"$f":"IF($B942=\"N\",\"\",IF(OR('Enrollment Form'!$B949<>\"Subscriber\",'Enrollment Form'!$C949=\"ROC\"),\"-\",IF(AND('Enrollment Form'!$B949=\"Subscriber\",'Enrollment Form'!$C949=\"Enroll\",'Enrollment Form'!$AJ949<>\"\"),\"Y\",\"N\")))","v":""},{"$f":"IF($B942=\"N\",\"\",IF(OR('Enrollment Form'!$B949<>\"Subscriber\",'Enrollment Form'!$C949=\"ROC\"),\"-\",IF(AND('Enrollment Form'!$B949=\"Subscriber\",'Enrollment Form'!$C949=\"Enroll\",'Enrollment Form'!$AK949<>\"\"),\"Y\",\"N\")))","v":""},{"$f":"IF($B942=\"N\",\"\",IF(OR('Enrollment Form'!$B949<>\"Subscriber\",'Enrollment Form'!$C949=\"ROC\"),\"-\",IF(AND('Enrollment Form'!$B949=\"Subscriber\",'Enrollment Form'!$C949=\"Enroll\",'Enrollment Form'!$AL949<>\"\"),\"Y\",\"N\")))","v":""},{"$f":"IF($B942=\"N\",\"\",IF(OR('Enrollment Form'!$B949<>\"Subscriber\",'Enrollment Form'!$C949=\"ROC\"),\"-\",IF(AND('Enrollment Form'!$B949=\"Subscriber\",'Enrollment Form'!$C949=\"Enroll\",'Enrollment Form'!$AP949<>\"\"),\"Y\",\"N\")))","v":""},{"$f":"IF($B942=\"N\",\"\",IF(OR('Enrollment Form'!$B949<>\"Subscriber\",'Enrollment Form'!$C949=\"ROC\"),\"-\",IF(AND('Enrollment Form'!$B949=\"Subscriber\",'Enrollment Form'!$C949=\"Enroll\",'Enrollment Form'!$AQ949<>\"\"),\"Y\",\"N\")))","v":""},{"$f":"IF($B942=\"N\",\"\",IF(OR('Enrollment Form'!$B949<>\"Subscriber\",'Enrollment Form'!$C949=\"ROC\"),\"-\",IF(AND('Enrollment Form'!$B949=\"Subscriber\",'Enrollment Form'!$C949=\"Enroll\",'Enrollment Form'!$AS949<>\"\"),\"Y\",\"N\")))","v":""},{"$f":"IF($B942=\"N\",\"\",IF($Q942=\"-\",\"-\",IF(AND($Q942=\"Y\",'Enrollment Form'!$AS949=\"No\"),\"-\",IF(AND($Q942=\"Y\",'Enrollment Form'!$AS949=\"Yes\",'Enrollment Form'!$AT949<>\"\"),\"Y\",\"N\"))))","v":""},{"$f":"IF($B942=\"N\",\"\",IF(OR('Enrollment Form'!$B949<>\"Subscriber\",'Enrollment Form'!$C949=\"ROC\"),\"-\",IF(AND('Enrollment Form'!$B949=\"Subscriber\",'Enrollment Form'!$C949=\"Enroll\",'Enrollment Form'!$CV949<>\"\"),\"Y\",\"N\")))","v":""},{"$f":"IF($B942=\"N\",\"\",IF($S942=\"-\",\"-\",IF(AND($S942=\"Y\",'Enrollment Form'!$CV949=\"No\"),\"-\",IF(AND($S942=\"Y\",'Enrollment Form'!$CV949=\"Yes\",'Enrollment Form'!$CW949<>\"\"),\"Y\",\"N\"))))","v":""},{"$f":"IF(OR('Enrollment Form'!$AY949=\"Yes\",'Enrollment Form'!$AY949=\"\"),\"-\",IF(OR(AND('Enrollment Form'!$AY949=\"No\",ISERROR(FIND(\"HMO\",VLOOKUP('Enrollment Form'!G949,'Enrollment Form'!H$11:J$1000,3,FALSE),1))=FALSE,COUNTA('Enrollment Form'!$AZ949:$BC949)=4),AND('Enrollment Form'!$AY949=\"No\",ISERROR(FIND(\"HMO\",VLOOKUP('Enrollment Form'!G949,'Enrollment Form'!H$11:J$1000,3,FALSE),1))=FALSE,COUNTA('Enrollment Form'!$BT949:$BW949)=4)),\"Y\",\"N\"))","v":"-"},{"$f":"IF($B942=\"N\",\"\",IF('Enrollment Form'!$B949=\"Subscriber\",\"-\",IF(COUNTA('Enrollment Form'!$BL949,'Enrollment Form'!$BN949)=2,\"Y\",\"N\")))","v":""},{"$f":"IF($B942=\"N\",\"\",IF(OR('Enrollment Form'!$AX949=\"\",'Enrollment Form'!$AX949=\"No\"),\"-\",IF(AND('Enrollment Form'!$AX949=\"Yes\",COUNTA('Enrollment Form'!$CR949)=1),\"Y\",\"N\")))","v":""},{"$f":"IF(OR('Enrollment Form'!$CR949=\"\",'Enrollment Form'!$CR949=\"No\"),\"-\",IF(COUNTA('Enrollment Form'!$CT949:$CU949)=2,\"Y\",\"N\"))","v":"-"},{"$f":"IF($B942=\"N\",\"\",IF(COUNTIF('Enrollment Form'!$DG949:$DP949,\"Other\")=COUNTA('Enrollment Form'!$DK949,'Enrollment Form'!$DH949,'Enrollment Form'!$DN949,'Enrollment Form'!$DQ949),\"Y\",\"N\"))","v":""},{"$f":"IF($B942=\"N\",\"\",IF(OR('Enrollment Form'!B949<>\"Subscriber\",'Enrollment Form'!C949=\"ROC\",COUNTIF('Enrollment Form'!AV949:AW949,\"Yes\")>=1),\"-\",IF(AND('Enrollment Form'!C949=\"Enroll\",COUNTIF('Enrollment Form'!AV949:AW949,\"No\")=2,'Enrollment Form'!AX949=\"\"),\"N\",\"Y\")))","v":""},{"$f":"IF(OR(B942=\"N\",'Enrollment Form'!B949<>\"Subscriber\",'Enrollment Form'!C949=\"ROC\",'Enrollment Form'!O949<>\"Multiple of Salary\"),\"-\",IF(COUNTA('Enrollment Form'!T949:U949)<2,\"N\",\"Y\"))","v":"-"},{"$f":"IF(B942=\"N\",\"\",IF(OR('Enrollment Form'!C949=\"ROC\",'Enrollment Form'!B949<>\"Subscriber\",'Enrollment Form'!O949=\"Waive\",'Enrollment Form'!O949=\"\"),\"-\",IF('Enrollment Form'!P949=\"\",\"N\",\"Y\")))","v":""},{"$f":"IF($B942=\"N\",\"\",IF(AND('Enrollment Form'!$C949=\"ROC\",'Enrollment Form'!$DR949<>\"\"),\"Y\",IF(AND('Enrollment Form'!$C949=\"ROC\",'Enrollment Form'!$DR949=\"\"),\"N\",IF(AND('Enrollment Form'!$C949=\"Enroll\",'Enrollment Form'!$B949=\"Subscriber\",'Enrollment Form'!$CX949=\"No\",'Enrollment Form'!$DR949=\"\"),\"N\",IF(AND('Enrollment Form'!$C949=\"Enroll\",'Enrollment Form'!$B949=\"Subscriber\",'Enrollment Form'!$CX949=\"Yes\"),\"-\",\"Y\")))))","v":""},{"$f":"IF($B942=\"N\",\"\",IF(AND('Enrollment Form'!$C949=\"ROC\",'Enrollment Form'!$DS949<>\"\"),\"Y\",IF(AND('Enrollment Form'!$C949=\"ROC\",'Enrollment Form'!$DS949=\"\"),\"N\",IF(AND('Enrollment Form'!$C949=\"Enroll\",'Enrollment Form'!$B949=\"Subscriber\",'Enrollment Form'!$CX949=\"No\",'Enrollment Form'!$DS949=\"\"),\"N\",IF(AND('Enrollment Form'!$C949=\"Enroll\",'Enrollment Form'!$B949=\"Subscriber\",'Enrollment Form'!$CX949=\"Yes\"),\"-\",\"Y\")))))","v":""},{"$f":"IF('Enrollment Form'!AH949=\"\",\"\",IF(ISERROR(SEARCH(\".\",'Enrollment Form'!AH949,SEARCH(\"@\",'Enrollment Form'!AH949))),\"N\",\"Y\"))","v":""},{"$f":"IF(OR($B942=\"N\",'Enrollment Form'!$G949=\"\"),\"\",IF('Enrollment Form'!$B949<>\"Subscriber\",\"-\",IF(COUNTIF('Enrollment Form'!$AV949:$AW949,\"Yes\")=2,\"N\",\"Y\")))","v":""},{"$f":"IF(OR('Enrollment Form'!$CJ949=\"\",'Enrollment Form'!$CJ949=\"No\"),\"-\",IF(AND('Enrollment Form'!$CJ949=\"Yes\",'Enrollment Form'!$CK949=\"\"),\"N\",\"Y\"))","v":"-"},{"$f":"IF(OR('Enrollment Form'!$CL949=\"\",'Enrollment Form'!$CL949=\"No\"),\"-\",IF(AND('Enrollment Form'!$CL949=\"Yes\",'Enrollment Form'!$CM949=\"\"),\"N\",\"Y\"))","v":"-"},{"$f":"IF(OR('Enrollment Form'!$CN949=\"\",'Enrollment Form'!$CN949=\"No\"),\"-\",IF(AND('Enrollment Form'!$CN949=\"Yes\",'Enrollment Form'!$CO949=\"\"),\"N\",\"Y\"))","v":"-"},{"$f":"IF(OR('Enrollment Form'!$CN949=\"\",'Enrollment Form'!$CN949=\"No\"),\"-\",IF(AND('Enrollment Form'!$CN949=\"Yes\",'Enrollment Form'!$CP949=\"\"),\"N\",\"Y\"))","v":"-"},{"$f":"IF('Enrollment Form'!B949<>\"Subscriber\",\"-\",IF(AND('Enrollment Form'!B949=\"Subscriber\",'Enrollment Form'!C949=\"Enroll\",'Enrollment Form'!AA949=\"\"),\"N\",\"Y\"))","v":"-"},{"$f":"IF(OR('Enrollment Form'!B949=\"Subscriber\",'Enrollment Form'!B949=\"\"),\"-\",IF('Enrollment Form'!BP949=\"\",\"N\",\"Y\"))","v":"-"},{"$f":"IF('Enrollment Form'!B949<>\"Subscriber\",\"-\",IF(AND('Enrollment Form'!B949=\"Subscriber\",'Enrollment Form'!G949=\"\"),\"N\",\"Y\"))","v":"-"},{"$f":"IF('Enrollment Form'!A949=\"\",\"\",IF('Enrollment Form'!B949=\"Subscriber\",\"-\",IF(AND('Enrollment Form'!B949<>\"Subscriber\",'Enrollment Form'!G949='Enrollment Form'!H949),\"N\",\"Y\")))","v":""},0]
[950,{"$f":"IF('Enrollment Form'!$A950<>\"\",\"Y\",\"N\")","v":"N"},{"$f":"IF(AND('Enrollment Form'!$B950=\"\",'Enrollment Form'!$C950<>\"\"),\"N\",IF($B943=\"N\",\"\",\"Y\"))","v":""},{"$f":"IF(OR($B943=\"N\",'Enrollment Form'!G950=\"\"),\"\",IF('Enrollment Form'!$B950<>\"Subscriber\",\"\",IF('Enrollment Form'!$G950='Enrollment Form'!$H950,\"Y\",\"N\")))","v":""},{"$f":"IF($B943=\"N\",\"\",IF(AND(COUNTIFS('Enrollment Form'!$H$11:$H$1000,'Enrollment Form'!$H950,'Enrollment Form'!$B$11:$B$1000,'Enrollment Form'!$B950)>1,'Enrollment Form'!$H950<>\"\"),\"N\",\"Y\"))","v":""},{"$f":"IF($B943=\"N\",\"\",IF(LEN('Enrollment Form'!$Y950)=0,\"\",IF(LEN('Enrollment Form'!$Y950)<>5,\"N\",\"Y\")))","v":""},{"$f":"IF($B943=\"N\",\"\",IF(LEN('Enrollment Form'!$AD950=0),\"\",IF(LEN('Enrollment Form'!$AD950)<>5,\"N\",\"Y\")))","v":""},{"$f":"IF($B943=\"N\",\"\",IF(LEN('Enrollment Form'!$BS950=0),\"\",IF(LEN('Enrollment Form'!$BS950)<>5,\"N\",\"Y\")))","v":""},{"$f":"IF($B943=\"N\",\"\",IF(LEN('Enrollment Form'!$AE950)=0,\"\",IF(LEN('Enrollment Form'!$AE950)<>10,\"N\",\"Y\")))","v":""},{"$f":"IF($B943=\"N\",\"\",IF(LEN('Enrollment Form'!$AF950)=0,\"\",IF(LEN('Enrollment Form'!$AF950)<>10,\"N\",\"Y\")))","v":""},{"$f":"IF('Enrollment Form'!$O950<>\"Graded\",\"-\",IF(AND('Enrollment Form'!$O950=\"Graded\",'Enrollment Form'!$AR950<>\"\"),\"Y\",\"N\"))","v":"-"},{"$f":"IF($B943=\"N\",\"\",IF(OR('Enrollment Form'!$B950<>\"Subscriber\",'Enrollment Form'!$C950=\"ROC\"),\"-\",IF(AND('Enrollment Form'!$B950=\"Subscriber\",'Enrollment Form'!$C950=\"Enroll\",'Enrollment Form'!$AJ950<>\"\"),\"Y\",\"N\")))","v":""},{"$f":"IF($B943=\"N\",\"\",IF(OR('Enrollment Form'!$B950<>\"Subscriber\",'Enrollment Form'!$C950=\"ROC\"),\"-\",IF(AND('Enrollment Form'!$B950=\"Subscriber\",'Enrollment Form'!$C950=\"Enroll\",'Enrollment Form'!$AK950<>\"\"),\"Y\",\"N\")))","v":""},{"$f":"IF($B943=\"N\",\"\",IF(OR('Enrollment Form'!$B950<>\"Subscriber\",'Enrollment Form'!$C950=\"ROC\"),\"-\",IF(AND('Enrollment Form'!$B950=\"Subscriber\",'Enrollment Form'!$C950=\"Enroll\",'Enrollment Form'!$AL950<>\"\"),\"Y\",\"N\")))","v":""},{"$f":"IF($B943=\"N\",\"\",IF(OR('Enrollment Form'!$B950<>\"Subscriber\",'Enrollment Form'!$C950=\"ROC\"),\"-\",IF(AND('Enrollment Form'!$B950=\"Subscriber\",'Enrollment Form'!$C950=\"Enroll\",'Enrollment Form'!$AP950<>\"\"),\"Y\",\"N\")))","v":""},{"$f":"IF($B943=\"N\",\"\",IF(OR('Enrollment Form'!$B950<>\"Subscriber\",'Enrollment Form'!$C950=\"ROC\"),\"-\",IF(AND('Enrollment Form'!$B950=\"Subscriber\",'Enrollment Form'!$C950=\"Enroll\",'Enrollment Form'!$AQ950<>\"\"),\"Y\",\"N\")))","v":""},{"$f":"IF($B943=\"N\",\"\",IF(OR('Enrollment Form'!$B950<>\"Subscriber\",'Enrollment Form'!$C950=\"ROC\"),\"-\",IF(AND('Enrollment Form'!$B950=\"Subscriber\",'Enrollment Form'!$C950=\"Enroll\",'Enrollment Form'!$AS950<>\"\"),\"Y\",\"N\")))","v":""},{"$f":"IF($B943=\"N\",\"\",IF($Q943=\"-\",\"-\",IF(AND($Q943=\"Y\",'Enrollment Form'!$AS950=\"No\"),\"-\",IF(AND($Q943=\"Y\",'Enrollment Form'!$AS950=\"Yes\",'Enrollment Form'!$AT950<>\"\"),\"Y\",\"N\"))))","v":""},{"$f":"IF($B943=\"N\",\"\",IF(OR('Enrollment Form'!$B950<>\"Subscriber\",'Enrollment Form'!$C950=\"ROC\"),\"-\",IF(AND('Enrollment Form'!$B950=\"Subscriber\",'Enrollment Form'!$C950=\"Enroll\",'Enrollment Form'!$CV950<>\"\"),\"Y\",\"N\")))","v":""},{"$f":"IF($B943=\"N\",\"\",IF($S943=\"-\",\"-\",IF(AND($S943=\"Y\",'Enrollment Form'!$CV950=\"No\"),\"-\",IF(AND($S943=\"Y\",'Enrollment Form'!$CV950=\"Yes\",'Enrollment Form'!$CW950<>\"\"),\"Y\",\"N\"))))","v":""},{"$f":"IF(OR('Enrollment Form'!$AY950=\"Yes\",'Enrollment Form'!$AY950=\"\"),\"-\",IF(OR(AND('Enrollment Form'!$AY950=\"No\",ISERROR(FIND(\"HMO\",VLOOKUP('Enrollment Form'!G950,'Enrollment Form'!H$11:J$1000,3,FALSE),1))=FALSE,COUNTA('Enrollment Form'!$AZ950:$BC950)=4),AND('Enrollment Form'!$AY950=\"No\",ISERROR(FIND(\"HMO\",VLOOKUP('Enrollment Form'!G950,'Enrollment Form'!H$11:J$1000,3,FALSE),1))=FALSE,COUNTA('Enrollment Form'!$BT950:$BW950)=4)),\"Y\",\"N\"))","v":"-"},{"$f":"IF($B943=\"N\",\"\",IF('Enrollment Form'!$B950=\"Subscriber\",\"-\",IF(COUNTA('Enrollment Form'!$BL950,'Enrollment Form'!$BN950)=2,\"Y\",\"N\")))","v":""},{"$f":"IF($B943=\"N\",\"\",IF(OR('Enrollment Form'!$AX950=\"\",'Enrollment Form'!$AX950=\"No\"),\"-\",IF(AND('Enrollment Form'!$AX950=\"Yes\",COUNTA('Enrollment Form'!$CR950)=1),\"Y\",\"N\")))","v":""},{"$f":"IF(OR('Enrollment Form'!$CR950=\"\",'Enrollment Form'!$CR950=\"No\"),\"-\",IF(COUNTA('Enrollment Form'!$CT950:$CU950)=2,\"Y\",\"N\"))","v":"-"},{"$f":"IF($B943=\"N\",\"\",IF(COUNTIF('Enrollment Form'!$DG950:$DP950,\"Other\")=COUNTA('Enrollment Form'!$DK950,'Enrollment Form'!$DH950,'Enrollment Form'!$DN950,'Enrollment Form'!$DQ950),\"Y\",\"N\"))","v":""},{"$f":"IF($B943=\"N\",\"\",IF(OR('Enrollment Form'!B950<>\"Subscriber\",'Enrollment Form'!C950=\"ROC\",COUNTIF('Enrollment Form'!AV950:AW950,\"Yes\")>=1),\"-\",IF(AND('Enrollment Form'!C950=\"Enroll\",COUNTIF('Enrollment Form'!AV950:AW950,\"No\")=2,'Enrollment Form'!AX950=\"\"),\"N\",\"Y\")))","v":""},{"$f":"IF(OR(B943=\"N\",'Enrollment Form'!B950<>\"Subscriber\",'Enrollment Form'!C950=\"ROC\",'Enrollment Form'!O950<>\"Multiple of Salary\"),\"-\",IF(COUNTA('Enrollment Form'!T950:U950)<2,\"N\",\"Y\"))","v":"-"},{"$f":"IF(B943=\"N\",\"\",IF(OR('Enrollment Form'!C950=\"ROC\",'Enrollment Form'!B950<>\"Subscriber\",'Enrollment Form'!O950=\"Waive\",'Enrollment Form'!O950=\"\"),\"-\",IF('Enrollment Form'!P950=\"\",\"N\",\"Y\")))","v":""},{"$f":"IF($B943=\"N\",\"\",IF(AND('Enrollment Form'!$C950=\"ROC\",'Enrollment Form'!$DR950<>\"\"),\"Y\",IF(AND('Enrollment Form'!$C950=\"ROC\",'Enrollment Form'!$DR950=\"\"),\"N\",IF(AND('Enrollment Form'!$C950=\"Enroll\",'Enrollment Form'!$B950=\"Subscriber\",'Enrollment Form'!$CX950=\"No\",'Enrollment Form'!$DR950=\"\"),\"N\",IF(AND('Enrollment Form'!$C950=\"Enroll\",'Enrollment Form'!$B950=\"Subscriber\",'Enrollment Form'!$CX950=\"Yes\"),\"-\",\"Y\")))))","v":""},{"$f":"IF($B943=\"N\",\"\",IF(AND('Enrollment Form'!$C950=\"ROC\",'Enrollment Form'!$DS950<>\"\"),\"Y\",IF(AND('Enrollment Form'!$C950=\"ROC\",'Enrollment Form'!$DS950=\"\"),\"N\",IF(AND('Enrollment Form'!$C950=\"Enroll\",'Enrollment Form'!$B950=\"Subscriber\",'Enrollment Form'!$CX950=\"No\",'Enrollment Form'!$DS950=\"\"),\"N\",IF(AND('Enrollment Form'!$C950=\"Enroll\",'Enrollment Form'!$B950=\"Subscriber\",'Enrollment Form'!$CX950=\"Yes\"),\"-\",\"Y\")))))","v":""},{"$f":"IF('Enrollment Form'!AH950=\"\",\"\",IF(ISERROR(SEARCH(\".\",'Enrollment Form'!AH950,SEARCH(\"@\",'Enrollment Form'!AH950))),\"N\",\"Y\"))","v":""},{"$f":"IF(OR($B943=\"N\",'Enrollment Form'!$G950=\"\"),\"\",IF('Enrollment Form'!$B950<>\"Subscriber\",\"-\",IF(COUNTIF('Enrollment Form'!$AV950:$AW950,\"Yes\")=2,\"N\",\"Y\")))","v":""},{"$f":"IF(OR('Enrollment Form'!$CJ950=\"\",'Enrollment Form'!$CJ950=\"No\"),\"-\",IF(AND('Enrollment Form'!$CJ950=\"Yes\",'Enrollment Form'!$CK950=\"\"),\"N\",\"Y\"))","v":"-"},{"$f":"IF(OR('Enrollment Form'!$CL950=\"\",'Enrollment Form'!$CL950=\"No\"),\"-\",IF(AND('Enrollment Form'!$CL950=\"Yes\",'Enrollment Form'!$CM950=\"\"),\"N\",\"Y\"))","v":"-"},{"$f":"IF(OR('Enrollment Form'!$CN950=\"\",'Enrollment Form'!$CN950=\"No\"),\"-\",IF(AND('Enrollment Form'!$CN950=\"Yes\",'Enrollment Form'!$CO950=\"\"),\"N\",\"Y\"))","v":"-"},{"$f":"IF(OR('Enrollment Form'!$CN950=\"\",'Enrollment Form'!$CN950=\"No\"),\"-\",IF(AND('Enrollment Form'!$CN950=\"Yes\",'Enrollment Form'!$CP950=\"\"),\"N\",\"Y\"))","v":"-"},{"$f":"IF('Enrollment Form'!B950<>\"Subscriber\",\"-\",IF(AND('Enrollment Form'!B950=\"Subscriber\",'Enrollment Form'!C950=\"Enroll\",'Enrollment Form'!AA950=\"\"),\"N\",\"Y\"))","v":"-"},{"$f":"IF(OR('Enrollment Form'!B950=\"Subscriber\",'Enrollment Form'!B950=\"\"),\"-\",IF('Enrollment Form'!BP950=\"\",\"N\",\"Y\"))","v":"-"},{"$f":"IF('Enrollment Form'!B950<>\"Subscriber\",\"-\",IF(AND('Enrollment Form'!B950=\"Subscriber\",'Enrollment Form'!G950=\"\"),\"N\",\"Y\"))","v":"-"},{"$f":"IF('Enrollment Form'!A950=\"\",\"\",IF('Enrollment Form'!B950=\"Subscriber\",\"-\",IF(AND('Enrollment Form'!B950<>\"Subscriber\",'Enrollment Form'!G950='Enrollment Form'!H950),\"N\",\"Y\")))","v":""},0]
[951,{"$f":"IF('Enrollment Form'!$A951<>\"\",\"Y\",\"N\")","v":"N"},{"$f":"IF(AND('Enrollment Form'!$B951=\"\",'Enrollment Form'!$C951<>\"\"),\"N\",IF($B944=\"N\",\"\",\"Y\"))","v":""},{"$f":"IF(OR($B944=\"N\",'Enrollment Form'!G951=\"\"),\"\",IF('Enrollment Form'!$B951<>\"Subscriber\",\"\",IF('Enrollment Form'!$G951='Enrollment Form'!$H951,\"Y\",\"N\")))","v":""},{"$f":"IF($B944=\"N\",\"\",IF(AND(COUNTIFS('Enrollment Form'!$H$11:$H$1000,'Enrollment Form'!$H951,'Enrollment Form'!$B$11:$B$1000,'Enrollment Form'!$B951)>1,'Enrollment Form'!$H951<>\"\"),\"N\",\"Y\"))","v":""},{"$f":"IF($B944=\"N\",\"\",IF(LEN('Enrollment Form'!$Y951)=0,\"\",IF(LEN('Enrollment Form'!$Y951)<>5,\"N\",\"Y\")))","v":""},{"$f":"IF($B944=\"N\",\"\",IF(LEN('Enrollment Form'!$AD951=0),\"\",IF(LEN('Enrollment Form'!$AD951)<>5,\"N\",\"Y\")))","v":""},{"$f":"IF($B944=\"N\",\"\",IF(LEN('Enrollment Form'!$BS951=0),\"\",IF(LEN('Enrollment Form'!$BS951)<>5,\"N\",\"Y\")))","v":""},{"$f":"IF($B944=\"N\",\"\",IF(LEN('Enrollment Form'!$AE951)=0,\"\",IF(LEN('Enrollment Form'!$AE951)<>10,\"N\",\"Y\")))","v":""},{"$f":"IF($B944=\"N\",\"\",IF(LEN('Enrollment Form'!$AF951)=0,\"\",IF(LEN('Enrollment Form'!$AF951)<>10,\"N\",\"Y\")))","v":""},{"$f":"IF('Enrollment Form'!$O951<>\"Graded\",\"-\",IF(AND('Enrollment Form'!$O951=\"Graded\",'Enrollment Form'!$AR951<>\"\"),\"Y\",\"N\"))","v":"-"},{"$f":"IF($B944=\"N\",\"\",IF(OR('Enrollment Form'!$B951<>\"Subscriber\",'Enrollment Form'!$C951=\"ROC\"),\"-\",IF(AND('Enrollment Form'!$B951=\"Subscriber\",'Enrollment Form'!$C951=\"Enroll\",'Enrollment Form'!$AJ951<>\"\"),\"Y\",\"N\")))","v":""},{"$f":"IF($B944=\"N\",\"\",IF(OR('Enrollment Form'!$B951<>\"Subscriber\",'Enrollment Form'!$C951=\"ROC\"),\"-\",IF(AND('Enrollment Form'!$B951=\"Subscriber\",'Enrollment Form'!$C951=\"Enroll\",'Enrollment Form'!$AK951<>\"\"),\"Y\",\"N\")))","v":""},{"$f":"IF($B944=\"N\",\"\",IF(OR('Enrollment Form'!$B951<>\"Subscriber\",'Enrollment Form'!$C951=\"ROC\"),\"-\",IF(AND('Enrollment Form'!$B951=\"Subscriber\",'Enrollment Form'!$C951=\"Enroll\",'Enrollment Form'!$AL951<>\"\"),\"Y\",\"N\")))","v":""},{"$f":"IF($B944=\"N\",\"\",IF(OR('Enrollment Form'!$B951<>\"Subscriber\",'Enrollment Form'!$C951=\"ROC\"),\"-\",IF(AND('Enrollment Form'!$B951=\"Subscriber\",'Enrollment Form'!$C951=\"Enroll\",'Enrollment Form'!$AP951<>\"\"),\"Y\",\"N\")))","v":""},{"$f":"IF($B944=\"N\",\"\",IF(OR('Enrollment Form'!$B951<>\"Subscriber\",'Enrollment Form'!$C951=\"ROC\"),\"-\",IF(AND('Enrollment Form'!$B951=\"Subscriber\",'Enrollment Form'!$C951=\"Enroll\",'Enrollment Form'!$AQ951<>\"\"),\"Y\",\"N\")))","v":""},{"$f":"IF($B944=\"N\",\"\",IF(OR('Enrollment Form'!$B951<>\"Subscriber\",'Enrollment Form'!$C951=\"ROC\"),\"-\",IF(AND('Enrollment Form'!$B951=\"Subscriber\",'Enrollment Form'!$C951=\"Enroll\",'Enrollment Form'!$AS951<>\"\"),\"Y\",\"N\")))","v":""},{"$f":"IF($B944=\"N\",\"\",IF($Q944=\"-\",\"-\",IF(AND($Q944=\"Y\",'Enrollment Form'!$AS951=\"No\"),\"-\",IF(AND($Q944=\"Y\",'Enrollment Form'!$AS951=\"Yes\",'Enrollment Form'!$AT951<>\"\"),\"Y\",\"N\"))))","v":""},{"$f":"IF($B944=\"N\",\"\",IF(OR('Enrollment Form'!$B951<>\"Subscriber\",'Enrollment Form'!$C951=\"ROC\"),\"-\",IF(AND('Enrollment Form'!$B951=\"Subscriber\",'Enrollment Form'!$C951=\"Enroll\",'Enrollment Form'!$CV951<>\"\"),\"Y\",\"N\")))","v":""},{"$f":"IF($B944=\"N\",\"\",IF($S944=\"-\",\"-\",IF(AND($S944=\"Y\",'Enrollment Form'!$CV951=\"No\"),\"-\",IF(AND($S944=\"Y\",'Enrollment Form'!$CV951=\"Yes\",'Enrollment Form'!$CW951<>\"\"),\"Y\",\"N\"))))","v":""},{"$f":"IF(OR('Enrollment Form'!$AY951=\"Yes\",'Enrollment Form'!$AY951=\"\"),\"-\",IF(OR(AND('Enrollment Form'!$AY951=\"No\",ISERROR(FIND(\"HMO\",VLOOKUP('Enrollment Form'!G951,'Enrollment Form'!H$11:J$1000,3,FALSE),1))=FALSE,COUNTA('Enrollment Form'!$AZ951:$BC951)=4),AND('Enrollment Form'!$AY951=\"No\",ISERROR(FIND(\"HMO\",VLOOKUP('Enrollment Form'!G951,'Enrollment Form'!H$11:J$1000,3,FALSE),1))=FALSE,COUNTA('Enrollment Form'!$BT951:$BW951)=4)),\"Y\",\"N\"))","v":"-"},{"$f":"IF($B944=\"N\",\"\",IF('Enrollment Form'!$B951=\"Subscriber\",\"-\",IF(COUNTA('Enrollment Form'!$BL951,'Enrollment Form'!$BN951)=2,\"Y\",\"N\")))","v":""},{"$f":"IF($B944=\"N\",\"\",IF(OR('Enrollment Form'!$AX951=\"\",'Enrollment Form'!$AX951=\"No\"),\"-\",IF(AND('Enrollment Form'!$AX951=\"Yes\",COUNTA('Enrollment Form'!$CR951)=1),\"Y\",\"N\")))","v":""},{"$f":"IF(OR('Enrollment Form'!$CR951=\"\",'Enrollment Form'!$CR951=\"No\"),\"-\",IF(COUNTA('Enrollment Form'!$CT951:$CU951)=2,\"Y\",\"N\"))","v":"-"},{"$f":"IF($B944=\"N\",\"\",IF(COUNTIF('Enrollment Form'!$DG951:$DP951,\"Other\")=COUNTA('Enrollment Form'!$DK951,'Enrollment Form'!$DH951,'Enrollment Form'!$DN951,'Enrollment Form'!$DQ951),\"Y\",\"N\"))","v":""},{"$f":"IF($B944=\"N\",\"\",IF(OR('Enrollment Form'!B951<>\"Subscriber\",'Enrollment Form'!C951=\"ROC\",COUNTIF('Enrollment Form'!AV951:AW951,\"Yes\")>=1),\"-\",IF(AND('Enrollment Form'!C951=\"Enroll\",COUNTIF('Enrollment Form'!AV951:AW951,\"No\")=2,'Enrollment Form'!AX951=\"\"),\"N\",\"Y\")))","v":""},{"$f":"IF(OR(B944=\"N\",'Enrollment Form'!B951<>\"Subscriber\",'Enrollment Form'!C951=\"ROC\",'Enrollment Form'!O951<>\"Multiple of Salary\"),\"-\",IF(COUNTA('Enrollment Form'!T951:U951)<2,\"N\",\"Y\"))","v":"-"},{"$f":"IF(B944=\"N\",\"\",IF(OR('Enrollment Form'!C951=\"ROC\",'Enrollment Form'!B951<>\"Subscriber\",'Enrollment Form'!O951=\"Waive\",'Enrollment Form'!O951=\"\"),\"-\",IF('Enrollment Form'!P951=\"\",\"N\",\"Y\")))","v":""},{"$f":"IF($B944=\"N\",\"\",IF(AND('Enrollment Form'!$C951=\"ROC\",'Enrollment Form'!$DR951<>\"\"),\"Y\",IF(AND('Enrollment Form'!$C951=\"ROC\",'Enrollment Form'!$DR951=\"\"),\"N\",IF(AND('Enrollment Form'!$C951=\"Enroll\",'Enrollment Form'!$B951=\"Subscriber\",'Enrollment Form'!$CX951=\"No\",'Enrollment Form'!$DR951=\"\"),\"N\",IF(AND('Enrollment Form'!$C951=\"Enroll\",'Enrollment Form'!$B951=\"Subscriber\",'Enrollment Form'!$CX951=\"Yes\"),\"-\",\"Y\")))))","v":""},{"$f":"IF($B944=\"N\",\"\",IF(AND('Enrollment Form'!$C951=\"ROC\",'Enrollment Form'!$DS951<>\"\"),\"Y\",IF(AND('Enrollment Form'!$C951=\"ROC\",'Enrollment Form'!$DS951=\"\"),\"N\",IF(AND('Enrollment Form'!$C951=\"Enroll\",'Enrollment Form'!$B951=\"Subscriber\",'Enrollment Form'!$CX951=\"No\",'Enrollment Form'!$DS951=\"\"),\"N\",IF(AND('Enrollment Form'!$C951=\"Enroll\",'Enrollment Form'!$B951=\"Subscriber\",'Enrollment Form'!$CX951=\"Yes\"),\"-\",\"Y\")))))","v":""},{"$f":"IF('Enrollment Form'!AH951=\"\",\"\",IF(ISERROR(SEARCH(\".\",'Enrollment Form'!AH951,SEARCH(\"@\",'Enrollment Form'!AH951))),\"N\",\"Y\"))","v":""},{"$f":"IF(OR($B944=\"N\",'Enrollment Form'!$G951=\"\"),\"\",IF('Enrollment Form'!$B951<>\"Subscriber\",\"-\",IF(COUNTIF('Enrollment Form'!$AV951:$AW951,\"Yes\")=2,\"N\",\"Y\")))","v":""},{"$f":"IF(OR('Enrollment Form'!$CJ951=\"\",'Enrollment Form'!$CJ951=\"No\"),\"-\",IF(AND('Enrollment Form'!$CJ951=\"Yes\",'Enrollment Form'!$CK951=\"\"),\"N\",\"Y\"))","v":"-"},{"$f":"IF(OR('Enrollment Form'!$CL951=\"\",'Enrollment Form'!$CL951=\"No\"),\"-\",IF(AND('Enrollment Form'!$CL951=\"Yes\",'Enrollment Form'!$CM951=\"\"),\"N\",\"Y\"))","v":"-"},{"$f":"IF(OR('Enrollment Form'!$CN951=\"\",'Enrollment Form'!$CN951=\"No\"),\"-\",IF(AND('Enrollment Form'!$CN951=\"Yes\",'Enrollment Form'!$CO951=\"\"),\"N\",\"Y\"))","v":"-"},{"$f":"IF(OR('Enrollment Form'!$CN951=\"\",'Enrollment Form'!$CN951=\"No\"),\"-\",IF(AND('Enrollment Form'!$CN951=\"Yes\",'Enrollment Form'!$CP951=\"\"),\"N\",\"Y\"))","v":"-"},{"$f":"IF('Enrollment Form'!B951<>\"Subscriber\",\"-\",IF(AND('Enrollment Form'!B951=\"Subscriber\",'Enrollment Form'!C951=\"Enroll\",'Enrollment Form'!AA951=\"\"),\"N\",\"Y\"))","v":"-"},{"$f":"IF(OR('Enrollment Form'!B951=\"Subscriber\",'Enrollment Form'!B951=\"\"),\"-\",IF('Enrollment Form'!BP951=\"\",\"N\",\"Y\"))","v":"-"},{"$f":"IF('Enrollment Form'!B951<>\"Subscriber\",\"-\",IF(AND('Enrollment Form'!B951=\"Subscriber\",'Enrollment Form'!G951=\"\"),\"N\",\"Y\"))","v":"-"},{"$f":"IF('Enrollment Form'!A951=\"\",\"\",IF('Enrollment Form'!B951=\"Subscriber\",\"-\",IF(AND('Enrollment Form'!B951<>\"Subscriber\",'Enrollment Form'!G951='Enrollment Form'!H951),\"N\",\"Y\")))","v":""},0]
[952,{"$f":"IF('Enrollment Form'!$A952<>\"\",\"Y\",\"N\")","v":"N"},{"$f":"IF(AND('Enrollment Form'!$B952=\"\",'Enrollment Form'!$C952<>\"\"),\"N\",IF($B945=\"N\",\"\",\"Y\"))","v":""},{"$f":"IF(OR($B945=\"N\",'Enrollment Form'!G952=\"\"),\"\",IF('Enrollment Form'!$B952<>\"Subscriber\",\"\",IF('Enrollment Form'!$G952='Enrollment Form'!$H952,\"Y\",\"N\")))","v":""},{"$f":"IF($B945=\"N\",\"\",IF(AND(COUNTIFS('Enrollment Form'!$H$11:$H$1000,'Enrollment Form'!$H952,'Enrollment Form'!$B$11:$B$1000,'Enrollment Form'!$B952)>1,'Enrollment Form'!$H952<>\"\"),\"N\",\"Y\"))","v":""},{"$f":"IF($B945=\"N\",\"\",IF(LEN('Enrollment Form'!$Y952)=0,\"\",IF(LEN('Enrollment Form'!$Y952)<>5,\"N\",\"Y\")))","v":""},{"$f":"IF($B945=\"N\",\"\",IF(LEN('Enrollment Form'!$AD952=0),\"\",IF(LEN('Enrollment Form'!$AD952)<>5,\"N\",\"Y\")))","v":""},{"$f":"IF($B945=\"N\",\"\",IF(LEN('Enrollment Form'!$BS952=0),\"\",IF(LEN('Enrollment Form'!$BS952)<>5,\"N\",\"Y\")))","v":""},{"$f":"IF($B945=\"N\",\"\",IF(LEN('Enrollment Form'!$AE952)=0,\"\",IF(LEN('Enrollment Form'!$AE952)<>10,\"N\",\"Y\")))","v":""},{"$f":"IF($B945=\"N\",\"\",IF(LEN('Enrollment Form'!$AF952)=0,\"\",IF(LEN('Enrollment Form'!$AF952)<>10,\"N\",\"Y\")))","v":""},{"$f":"IF('Enrollment Form'!$O952<>\"Graded\",\"-\",IF(AND('Enrollment Form'!$O952=\"Graded\",'Enrollment Form'!$AR952<>\"\"),\"Y\",\"N\"))","v":"-"},{"$f":"IF($B945=\"N\",\"\",IF(OR('Enrollment Form'!$B952<>\"Subscriber\",'Enrollment Form'!$C952=\"ROC\"),\"-\",IF(AND('Enrollment Form'!$B952=\"Subscriber\",'Enrollment Form'!$C952=\"Enroll\",'Enrollment Form'!$AJ952<>\"\"),\"Y\",\"N\")))","v":""},{"$f":"IF($B945=\"N\",\"\",IF(OR('Enrollment Form'!$B952<>\"Subscriber\",'Enrollment Form'!$C952=\"ROC\"),\"-\",IF(AND('Enrollment Form'!$B952=\"Subscriber\",'Enrollment Form'!$C952=\"Enroll\",'Enrollment Form'!$AK952<>\"\"),\"Y\",\"N\")))","v":""},{"$f":"IF($B945=\"N\",\"\",IF(OR('Enrollment Form'!$B952<>\"Subscriber\",'Enrollment Form'!$C952=\"ROC\"),\"-\",IF(AND('Enrollment Form'!$B952=\"Subscriber\",'Enrollment Form'!$C952=\"Enroll\",'Enrollment Form'!$AL952<>\"\"),\"Y\",\"N\")))","v":""},{"$f":"IF($B945=\"N\",\"\",IF(OR('Enrollment Form'!$B952<>\"Subscriber\",'Enrollment Form'!$C952=\"ROC\"),\"-\",IF(AND('Enrollment Form'!$B952=\"Subscriber\",'Enrollment Form'!$C952=\"Enroll\",'Enrollment Form'!$AP952<>\"\"),\"Y\",\"N\")))","v":""},{"$f":"IF($B945=\"N\",\"\",IF(OR('Enrollment Form'!$B952<>\"Subscriber\",'Enrollment Form'!$C952=\"ROC\"),\"-\",IF(AND('Enrollment Form'!$B952=\"Subscriber\",'Enrollment Form'!$C952=\"Enroll\",'Enrollment Form'!$AQ952<>\"\"),\"Y\",\"N\")))","v":""},{"$f":"IF($B945=\"N\",\"\",IF(OR('Enrollment Form'!$B952<>\"Subscriber\",'Enrollment Form'!$C952=\"ROC\"),\"-\",IF(AND('Enrollment Form'!$B952=\"Subscriber\",'Enrollment Form'!$C952=\"Enroll\",'Enrollment Form'!$AS952<>\"\"),\"Y\",\"N\")))","v":""},{"$f":"IF($B945=\"N\",\"\",IF($Q945=\"-\",\"-\",IF(AND($Q945=\"Y\",'Enrollment Form'!$AS952=\"No\"),\"-\",IF(AND($Q945=\"Y\",'Enrollment Form'!$AS952=\"Yes\",'Enrollment Form'!$AT952<>\"\"),\"Y\",\"N\"))))","v":""},{"$f":"IF($B945=\"N\",\"\",IF(OR('Enrollment Form'!$B952<>\"Subscriber\",'Enrollment Form'!$C952=\"ROC\"),\"-\",IF(AND('Enrollment Form'!$B952=\"Subscriber\",'Enrollment Form'!$C952=\"Enroll\",'Enrollment Form'!$CV952<>\"\"),\"Y\",\"N\")))","v":""},{"$f":"IF($B945=\"N\",\"\",IF($S945=\"-\",\"-\",IF(AND($S945=\"Y\",'Enrollment Form'!$CV952=\"No\"),\"-\",IF(AND($S945=\"Y\",'Enrollment Form'!$CV952=\"Yes\",'Enrollment Form'!$CW952<>\"\"),\"Y\",\"N\"))))","v":""},{"$f":"IF(OR('Enrollment Form'!$AY952=\"Yes\",'Enrollment Form'!$AY952=\"\"),\"-\",IF(OR(AND('Enrollment Form'!$AY952=\"No\",ISERROR(FIND(\"HMO\",VLOOKUP('Enrollment Form'!G952,'Enrollment Form'!H$11:J$1000,3,FALSE),1))=FALSE,COUNTA('Enrollment Form'!$AZ952:$BC952)=4),AND('Enrollment Form'!$AY952=\"No\",ISERROR(FIND(\"HMO\",VLOOKUP('Enrollment Form'!G952,'Enrollment Form'!H$11:J$1000,3,FALSE),1))=FALSE,COUNTA('Enrollment Form'!$BT952:$BW952)=4)),\"Y\",\"N\"))","v":"-"},{"$f":"IF($B945=\"N\",\"\",IF('Enrollment Form'!$B952=\"Subscriber\",\"-\",IF(COUNTA('Enrollment Form'!$BL952,'Enrollment Form'!$BN952)=2,\"Y\",\"N\")))","v":""},{"$f":"IF($B945=\"N\",\"\",IF(OR('Enrollment Form'!$AX952=\"\",'Enrollment Form'!$AX952=\"No\"),\"-\",IF(AND('Enrollment Form'!$AX952=\"Yes\",COUNTA('Enrollment Form'!$CR952)=1),\"Y\",\"N\")))","v":""},{"$f":"IF(OR('Enrollment Form'!$CR952=\"\",'Enrollment Form'!$CR952=\"No\"),\"-\",IF(COUNTA('Enrollment Form'!$CT952:$CU952)=2,\"Y\",\"N\"))","v":"-"},{"$f":"IF($B945=\"N\",\"\",IF(COUNTIF('Enrollment Form'!$DG952:$DP952,\"Other\")=COUNTA('Enrollment Form'!$DK952,'Enrollment Form'!$DH952,'Enrollment Form'!$DN952,'Enrollment Form'!$DQ952),\"Y\",\"N\"))","v":""},{"$f":"IF($B945=\"N\",\"\",IF(OR('Enrollment Form'!B952<>\"Subscriber\",'Enrollment Form'!C952=\"ROC\",COUNTIF('Enrollment Form'!AV952:AW952,\"Yes\")>=1),\"-\",IF(AND('Enrollment Form'!C952=\"Enroll\",COUNTIF('Enrollment Form'!AV952:AW952,\"No\")=2,'Enrollment Form'!AX952=\"\"),\"N\",\"Y\")))","v":""},{"$f":"IF(OR(B945=\"N\",'Enrollment Form'!B952<>\"Subscriber\",'Enrollment Form'!C952=\"ROC\",'Enrollment Form'!O952<>\"Multiple of Salary\"),\"-\",IF(COUNTA('Enrollment Form'!T952:U952)<2,\"N\",\"Y\"))","v":"-"},{"$f":"IF(B945=\"N\",\"\",IF(OR('Enrollment Form'!C952=\"ROC\",'Enrollment Form'!B952<>\"Subscriber\",'Enrollment Form'!O952=\"Waive\",'Enrollment Form'!O952=\"\"),\"-\",IF('Enrollment Form'!P952=\"\",\"N\",\"Y\")))","v":""},{"$f":"IF($B945=\"N\",\"\",IF(AND('Enrollment Form'!$C952=\"ROC\",'Enrollment Form'!$DR952<>\"\"),\"Y\",IF(AND('Enrollment Form'!$C952=\"ROC\",'Enrollment Form'!$DR952=\"\"),\"N\",IF(AND('Enrollment Form'!$C952=\"Enroll\",'Enrollment Form'!$B952=\"Subscriber\",'Enrollment Form'!$CX952=\"No\",'Enrollment Form'!$DR952=\"\"),\"N\",IF(AND('Enrollment Form'!$C952=\"Enroll\",'Enrollment Form'!$B952=\"Subscriber\",'Enrollment Form'!$CX952=\"Yes\"),\"-\",\"Y\")))))","v":""},{"$f":"IF($B945=\"N\",\"\",IF(AND('Enrollment Form'!$C952=\"ROC\",'Enrollment Form'!$DS952<>\"\"),\"Y\",IF(AND('Enrollment Form'!$C952=\"ROC\",'Enrollment Form'!$DS952=\"\"),\"N\",IF(AND('Enrollment Form'!$C952=\"Enroll\",'Enrollment Form'!$B952=\"Subscriber\",'Enrollment Form'!$CX952=\"No\",'Enrollment Form'!$DS952=\"\"),\"N\",IF(AND('Enrollment Form'!$C952=\"Enroll\",'Enrollment Form'!$B952=\"Subscriber\",'Enrollment Form'!$CX952=\"Yes\"),\"-\",\"Y\")))))","v":""},{"$f":"IF('Enrollment Form'!AH952=\"\",\"\",IF(ISERROR(SEARCH(\".\",'Enrollment Form'!AH952,SEARCH(\"@\",'Enrollment Form'!AH952))),\"N\",\"Y\"))","v":""},{"$f":"IF(OR($B945=\"N\",'Enrollment Form'!$G952=\"\"),\"\",IF('Enrollment Form'!$B952<>\"Subscriber\",\"-\",IF(COUNTIF('Enrollment Form'!$AV952:$AW952,\"Yes\")=2,\"N\",\"Y\")))","v":""},{"$f":"IF(OR('Enrollment Form'!$CJ952=\"\",'Enrollment Form'!$CJ952=\"No\"),\"-\",IF(AND('Enrollment Form'!$CJ952=\"Yes\",'Enrollment Form'!$CK952=\"\"),\"N\",\"Y\"))","v":"-"},{"$f":"IF(OR('Enrollment Form'!$CL952=\"\",'Enrollment Form'!$CL952=\"No\"),\"-\",IF(AND('Enrollment Form'!$CL952=\"Yes\",'Enrollment Form'!$CM952=\"\"),\"N\",\"Y\"))","v":"-"},{"$f":"IF(OR('Enrollment Form'!$CN952=\"\",'Enrollment Form'!$CN952=\"No\"),\"-\",IF(AND('Enrollment Form'!$CN952=\"Yes\",'Enrollment Form'!$CO952=\"\"),\"N\",\"Y\"))","v":"-"},{"$f":"IF(OR('Enrollment Form'!$CN952=\"\",'Enrollment Form'!$CN952=\"No\"),\"-\",IF(AND('Enrollment Form'!$CN952=\"Yes\",'Enrollment Form'!$CP952=\"\"),\"N\",\"Y\"))","v":"-"},{"$f":"IF('Enrollment Form'!B952<>\"Subscriber\",\"-\",IF(AND('Enrollment Form'!B952=\"Subscriber\",'Enrollment Form'!C952=\"Enroll\",'Enrollment Form'!AA952=\"\"),\"N\",\"Y\"))","v":"-"},{"$f":"IF(OR('Enrollment Form'!B952=\"Subscriber\",'Enrollment Form'!B952=\"\"),\"-\",IF('Enrollment Form'!BP952=\"\",\"N\",\"Y\"))","v":"-"},{"$f":"IF('Enrollment Form'!B952<>\"Subscriber\",\"-\",IF(AND('Enrollment Form'!B952=\"Subscriber\",'Enrollment Form'!G952=\"\"),\"N\",\"Y\"))","v":"-"},{"$f":"IF('Enrollment Form'!A952=\"\",\"\",IF('Enrollment Form'!B952=\"Subscriber\",\"-\",IF(AND('Enrollment Form'!B952<>\"Subscriber\",'Enrollment Form'!G952='Enrollment Form'!H952),\"N\",\"Y\")))","v":""},0]
[953,{"$f":"IF('Enrollment Form'!$A953<>\"\",\"Y\",\"N\")","v":"N"},{"$f":"IF(AND('Enrollment Form'!$B953=\"\",'Enrollment Form'!$C953<>\"\"),\"N\",IF($B946=\"N\",\"\",\"Y\"))","v":""},{"$f":"IF(OR($B946=\"N\",'Enrollment Form'!G953=\"\"),\"\",IF('Enrollment Form'!$B953<>\"Subscriber\",\"\",IF('Enrollment Form'!$G953='Enrollment Form'!$H953,\"Y\",\"N\")))","v":""},{"$f":"IF($B946=\"N\",\"\",IF(AND(COUNTIFS('Enrollment Form'!$H$11:$H$1000,'Enrollment Form'!$H953,'Enrollment Form'!$B$11:$B$1000,'Enrollment Form'!$B953)>1,'Enrollment Form'!$H953<>\"\"),\"N\",\"Y\"))","v":""},{"$f":"IF($B946=\"N\",\"\",IF(LEN('Enrollment Form'!$Y953)=0,\"\",IF(LEN('Enrollment Form'!$Y953)<>5,\"N\",\"Y\")))","v":""},{"$f":"IF($B946=\"N\",\"\",IF(LEN('Enrollment Form'!$AD953=0),\"\",IF(LEN('Enrollment Form'!$AD953)<>5,\"N\",\"Y\")))","v":""},{"$f":"IF($B946=\"N\",\"\",IF(LEN('Enrollment Form'!$BS953=0),\"\",IF(LEN('Enrollment Form'!$BS953)<>5,\"N\",\"Y\")))","v":""},{"$f":"IF($B946=\"N\",\"\",IF(LEN('Enrollment Form'!$AE953)=0,\"\",IF(LEN('Enrollment Form'!$AE953)<>10,\"N\",\"Y\")))","v":""},{"$f":"IF($B946=\"N\",\"\",IF(LEN('Enrollment Form'!$AF953)=0,\"\",IF(LEN('Enrollment Form'!$AF953)<>10,\"N\",\"Y\")))","v":""},{"$f":"IF('Enrollment Form'!$O953<>\"Graded\",\"-\",IF(AND('Enrollment Form'!$O953=\"Graded\",'Enrollment Form'!$AR953<>\"\"),\"Y\",\"N\"))","v":"-"},{"$f":"IF($B946=\"N\",\"\",IF(OR('Enrollment Form'!$B953<>\"Subscriber\",'Enrollment Form'!$C953=\"ROC\"),\"-\",IF(AND('Enrollment Form'!$B953=\"Subscriber\",'Enrollment Form'!$C953=\"Enroll\",'Enrollment Form'!$AJ953<>\"\"),\"Y\",\"N\")))","v":""},{"$f":"IF($B946=\"N\",\"\",IF(OR('Enrollment Form'!$B953<>\"Subscriber\",'Enrollment Form'!$C953=\"ROC\"),\"-\",IF(AND('Enrollment Form'!$B953=\"Subscriber\",'Enrollment Form'!$C953=\"Enroll\",'Enrollment Form'!$AK953<>\"\"),\"Y\",\"N\")))","v":""},{"$f":"IF($B946=\"N\",\"\",IF(OR('Enrollment Form'!$B953<>\"Subscriber\",'Enrollment Form'!$C953=\"ROC\"),\"-\",IF(AND('Enrollment Form'!$B953=\"Subscriber\",'Enrollment Form'!$C953=\"Enroll\",'Enrollment Form'!$AL953<>\"\"),\"Y\",\"N\")))","v":""},{"$f":"IF($B946=\"N\",\"\",IF(OR('Enrollment Form'!$B953<>\"Subscriber\",'Enrollment Form'!$C953=\"ROC\"),\"-\",IF(AND('Enrollment Form'!$B953=\"Subscriber\",'Enrollment Form'!$C953=\"Enroll\",'Enrollment Form'!$AP953<>\"\"),\"Y\",\"N\")))","v":""},{"$f":"IF($B946=\"N\",\"\",IF(OR('Enrollment Form'!$B953<>\"Subscriber\",'Enrollment Form'!$C953=\"ROC\"),\"-\",IF(AND('Enrollment Form'!$B953=\"Subscriber\",'Enrollment Form'!$C953=\"Enroll\",'Enrollment Form'!$AQ953<>\"\"),\"Y\",\"N\")))","v":""},{"$f":"IF($B946=\"N\",\"\",IF(OR('Enrollment Form'!$B953<>\"Subscriber\",'Enrollment Form'!$C953=\"ROC\"),\"-\",IF(AND('Enrollment Form'!$B953=\"Subscriber\",'Enrollment Form'!$C953=\"Enroll\",'Enrollment Form'!$AS953<>\"\"),\"Y\",\"N\")))","v":""},{"$f":"IF($B946=\"N\",\"\",IF($Q946=\"-\",\"-\",IF(AND($Q946=\"Y\",'Enrollment Form'!$AS953=\"No\"),\"-\",IF(AND($Q946=\"Y\",'Enrollment Form'!$AS953=\"Yes\",'Enrollment Form'!$AT953<>\"\"),\"Y\",\"N\"))))","v":""},{"$f":"IF($B946=\"N\",\"\",IF(OR('Enrollment Form'!$B953<>\"Subscriber\",'Enrollment Form'!$C953=\"ROC\"),\"-\",IF(AND('Enrollment Form'!$B953=\"Subscriber\",'Enrollment Form'!$C953=\"Enroll\",'Enrollment Form'!$CV953<>\"\"),\"Y\",\"N\")))","v":""},{"$f":"IF($B946=\"N\",\"\",IF($S946=\"-\",\"-\",IF(AND($S946=\"Y\",'Enrollment Form'!$CV953=\"No\"),\"-\",IF(AND($S946=\"Y\",'Enrollment Form'!$CV953=\"Yes\",'Enrollment Form'!$CW953<>\"\"),\"Y\",\"N\"))))","v":""},{"$f":"IF(OR('Enrollment Form'!$AY953=\"Yes\",'Enrollment Form'!$AY953=\"\"),\"-\",IF(OR(AND('Enrollment Form'!$AY953=\"No\",ISERROR(FIND(\"HMO\",VLOOKUP('Enrollment Form'!G953,'Enrollment Form'!H$11:J$1000,3,FALSE),1))=FALSE,COUNTA('Enrollment Form'!$AZ953:$BC953)=4),AND('Enrollment Form'!$AY953=\"No\",ISERROR(FIND(\"HMO\",VLOOKUP('Enrollment Form'!G953,'Enrollment Form'!H$11:J$1000,3,FALSE),1))=FALSE,COUNTA('Enrollment Form'!$BT953:$BW953)=4)),\"Y\",\"N\"))","v":"-"},{"$f":"IF($B946=\"N\",\"\",IF('Enrollment Form'!$B953=\"Subscriber\",\"-\",IF(COUNTA('Enrollment Form'!$BL953,'Enrollment Form'!$BN953)=2,\"Y\",\"N\")))","v":""},{"$f":"IF($B946=\"N\",\"\",IF(OR('Enrollment Form'!$AX953=\"\",'Enrollment Form'!$AX953=\"No\"),\"-\",IF(AND('Enrollment Form'!$AX953=\"Yes\",COUNTA('Enrollment Form'!$CR953)=1),\"Y\",\"N\")))","v":""},{"$f":"IF(OR('Enrollment Form'!$CR953=\"\",'Enrollment Form'!$CR953=\"No\"),\"-\",IF(COUNTA('Enrollment Form'!$CT953:$CU953)=2,\"Y\",\"N\"))","v":"-"},{"$f":"IF($B946=\"N\",\"\",IF(COUNTIF('Enrollment Form'!$DG953:$DP953,\"Other\")=COUNTA('Enrollment Form'!$DK953,'Enrollment Form'!$DH953,'Enrollment Form'!$DN953,'Enrollment Form'!$DQ953),\"Y\",\"N\"))","v":""},{"$f":"IF($B946=\"N\",\"\",IF(OR('Enrollment Form'!B953<>\"Subscriber\",'Enrollment Form'!C953=\"ROC\",COUNTIF('Enrollment Form'!AV953:AW953,\"Yes\")>=1),\"-\",IF(AND('Enrollment Form'!C953=\"Enroll\",COUNTIF('Enrollment Form'!AV953:AW953,\"No\")=2,'Enrollment Form'!AX953=\"\"),\"N\",\"Y\")))","v":""},{"$f":"IF(OR(B946=\"N\",'Enrollment Form'!B953<>\"Subscriber\",'Enrollment Form'!C953=\"ROC\",'Enrollment Form'!O953<>\"Multiple of Salary\"),\"-\",IF(COUNTA('Enrollment Form'!T953:U953)<2,\"N\",\"Y\"))","v":"-"},{"$f":"IF(B946=\"N\",\"\",IF(OR('Enrollment Form'!C953=\"ROC\",'Enrollment Form'!B953<>\"Subscriber\",'Enrollment Form'!O953=\"Waive\",'Enrollment Form'!O953=\"\"),\"-\",IF('Enrollment Form'!P953=\"\",\"N\",\"Y\")))","v":""},{"$f":"IF($B946=\"N\",\"\",IF(AND('Enrollment Form'!$C953=\"ROC\",'Enrollment Form'!$DR953<>\"\"),\"Y\",IF(AND('Enrollment Form'!$C953=\"ROC\",'Enrollment Form'!$DR953=\"\"),\"N\",IF(AND('Enrollment Form'!$C953=\"Enroll\",'Enrollment Form'!$B953=\"Subscriber\",'Enrollment Form'!$CX953=\"No\",'Enrollment Form'!$DR953=\"\"),\"N\",IF(AND('Enrollment Form'!$C953=\"Enroll\",'Enrollment Form'!$B953=\"Subscriber\",'Enrollment Form'!$CX953=\"Yes\"),\"-\",\"Y\")))))","v":""},{"$f":"IF($B946=\"N\",\"\",IF(AND('Enrollment Form'!$C953=\"ROC\",'Enrollment Form'!$DS953<>\"\"),\"Y\",IF(AND('Enrollment Form'!$C953=\"ROC\",'Enrollment Form'!$DS953=\"\"),\"N\",IF(AND('Enrollment Form'!$C953=\"Enroll\",'Enrollment Form'!$B953=\"Subscriber\",'Enrollment Form'!$CX953=\"No\",'Enrollment Form'!$DS953=\"\"),\"N\",IF(AND('Enrollment Form'!$C953=\"Enroll\",'Enrollment Form'!$B953=\"Subscriber\",'Enrollment Form'!$CX953=\"Yes\"),\"-\",\"Y\")))))","v":""},{"$f":"IF('Enrollment Form'!AH953=\"\",\"\",IF(ISERROR(SEARCH(\".\",'Enrollment Form'!AH953,SEARCH(\"@\",'Enrollment Form'!AH953))),\"N\",\"Y\"))","v":""},{"$f":"IF(OR($B946=\"N\",'Enrollment Form'!$G953=\"\"),\"\",IF('Enrollment Form'!$B953<>\"Subscriber\",\"-\",IF(COUNTIF('Enrollment Form'!$AV953:$AW953,\"Yes\")=2,\"N\",\"Y\")))","v":""},{"$f":"IF(OR('Enrollment Form'!$CJ953=\"\",'Enrollment Form'!$CJ953=\"No\"),\"-\",IF(AND('Enrollment Form'!$CJ953=\"Yes\",'Enrollment Form'!$CK953=\"\"),\"N\",\"Y\"))","v":"-"},{"$f":"IF(OR('Enrollment Form'!$CL953=\"\",'Enrollment Form'!$CL953=\"No\"),\"-\",IF(AND('Enrollment Form'!$CL953=\"Yes\",'Enrollment Form'!$CM953=\"\"),\"N\",\"Y\"))","v":"-"},{"$f":"IF(OR('Enrollment Form'!$CN953=\"\",'Enrollment Form'!$CN953=\"No\"),\"-\",IF(AND('Enrollment Form'!$CN953=\"Yes\",'Enrollment Form'!$CO953=\"\"),\"N\",\"Y\"))","v":"-"},{"$f":"IF(OR('Enrollment Form'!$CN953=\"\",'Enrollment Form'!$CN953=\"No\"),\"-\",IF(AND('Enrollment Form'!$CN953=\"Yes\",'Enrollment Form'!$CP953=\"\"),\"N\",\"Y\"))","v":"-"},{"$f":"IF('Enrollment Form'!B953<>\"Subscriber\",\"-\",IF(AND('Enrollment Form'!B953=\"Subscriber\",'Enrollment Form'!C953=\"Enroll\",'Enrollment Form'!AA953=\"\"),\"N\",\"Y\"))","v":"-"},{"$f":"IF(OR('Enrollment Form'!B953=\"Subscriber\",'Enrollment Form'!B953=\"\"),\"-\",IF('Enrollment Form'!BP953=\"\",\"N\",\"Y\"))","v":"-"},{"$f":"IF('Enrollment Form'!B953<>\"Subscriber\",\"-\",IF(AND('Enrollment Form'!B953=\"Subscriber\",'Enrollment Form'!G953=\"\"),\"N\",\"Y\"))","v":"-"},{"$f":"IF('Enrollment Form'!A953=\"\",\"\",IF('Enrollment Form'!B953=\"Subscriber\",\"-\",IF(AND('Enrollment Form'!B953<>\"Subscriber\",'Enrollment Form'!G953='Enrollment Form'!H953),\"N\",\"Y\")))","v":""},0]
[954,{"$f":"IF('Enrollment Form'!$A954<>\"\",\"Y\",\"N\")","v":"N"},{"$f":"IF(AND('Enrollment Form'!$B954=\"\",'Enrollment Form'!$C954<>\"\"),\"N\",IF($B947=\"N\",\"\",\"Y\"))","v":""},{"$f":"IF(OR($B947=\"N\",'Enrollment Form'!G954=\"\"),\"\",IF('Enrollment Form'!$B954<>\"Subscriber\",\"\",IF('Enrollment Form'!$G954='Enrollment Form'!$H954,\"Y\",\"N\")))","v":""},{"$f":"IF($B947=\"N\",\"\",IF(AND(COUNTIFS('Enrollment Form'!$H$11:$H$1000,'Enrollment Form'!$H954,'Enrollment Form'!$B$11:$B$1000,'Enrollment Form'!$B954)>1,'Enrollment Form'!$H954<>\"\"),\"N\",\"Y\"))","v":""},{"$f":"IF($B947=\"N\",\"\",IF(LEN('Enrollment Form'!$Y954)=0,\"\",IF(LEN('Enrollment Form'!$Y954)<>5,\"N\",\"Y\")))","v":""},{"$f":"IF($B947=\"N\",\"\",IF(LEN('Enrollment Form'!$AD954=0),\"\",IF(LEN('Enrollment Form'!$AD954)<>5,\"N\",\"Y\")))","v":""},{"$f":"IF($B947=\"N\",\"\",IF(LEN('Enrollment Form'!$BS954=0),\"\",IF(LEN('Enrollment Form'!$BS954)<>5,\"N\",\"Y\")))","v":""},{"$f":"IF($B947=\"N\",\"\",IF(LEN('Enrollment Form'!$AE954)=0,\"\",IF(LEN('Enrollment Form'!$AE954)<>10,\"N\",\"Y\")))","v":""},{"$f":"IF($B947=\"N\",\"\",IF(LEN('Enrollment Form'!$AF954)=0,\"\",IF(LEN('Enrollment Form'!$AF954)<>10,\"N\",\"Y\")))","v":""},{"$f":"IF('Enrollment Form'!$O954<>\"Graded\",\"-\",IF(AND('Enrollment Form'!$O954=\"Graded\",'Enrollment Form'!$AR954<>\"\"),\"Y\",\"N\"))","v":"-"},{"$f":"IF($B947=\"N\",\"\",IF(OR('Enrollment Form'!$B954<>\"Subscriber\",'Enrollment Form'!$C954=\"ROC\"),\"-\",IF(AND('Enrollment Form'!$B954=\"Subscriber\",'Enrollment Form'!$C954=\"Enroll\",'Enrollment Form'!$AJ954<>\"\"),\"Y\",\"N\")))","v":""},{"$f":"IF($B947=\"N\",\"\",IF(OR('Enrollment Form'!$B954<>\"Subscriber\",'Enrollment Form'!$C954=\"ROC\"),\"-\",IF(AND('Enrollment Form'!$B954=\"Subscriber\",'Enrollment Form'!$C954=\"Enroll\",'Enrollment Form'!$AK954<>\"\"),\"Y\",\"N\")))","v":""},{"$f":"IF($B947=\"N\",\"\",IF(OR('Enrollment Form'!$B954<>\"Subscriber\",'Enrollment Form'!$C954=\"ROC\"),\"-\",IF(AND('Enrollment Form'!$B954=\"Subscriber\",'Enrollment Form'!$C954=\"Enroll\",'Enrollment Form'!$AL954<>\"\"),\"Y\",\"N\")))","v":""},{"$f":"IF($B947=\"N\",\"\",IF(OR('Enrollment Form'!$B954<>\"Subscriber\",'Enrollment Form'!$C954=\"ROC\"),\"-\",IF(AND('Enrollment Form'!$B954=\"Subscriber\",'Enrollment Form'!$C954=\"Enroll\",'Enrollment Form'!$AP954<>\"\"),\"Y\",\"N\")))","v":""},{"$f":"IF($B947=\"N\",\"\",IF(OR('Enrollment Form'!$B954<>\"Subscriber\",'Enrollment Form'!$C954=\"ROC\"),\"-\",IF(AND('Enrollment Form'!$B954=\"Subscriber\",'Enrollment Form'!$C954=\"Enroll\",'Enrollment Form'!$AQ954<>\"\"),\"Y\",\"N\")))","v":""},{"$f":"IF($B947=\"N\",\"\",IF(OR('Enrollment Form'!$B954<>\"Subscriber\",'Enrollment Form'!$C954=\"ROC\"),\"-\",IF(AND('Enrollment Form'!$B954=\"Subscriber\",'Enrollment Form'!$C954=\"Enroll\",'Enrollment Form'!$AS954<>\"\"),\"Y\",\"N\")))","v":""},{"$f":"IF($B947=\"N\",\"\",IF($Q947=\"-\",\"-\",IF(AND($Q947=\"Y\",'Enrollment Form'!$AS954=\"No\"),\"-\",IF(AND($Q947=\"Y\",'Enrollment Form'!$AS954=\"Yes\",'Enrollment Form'!$AT954<>\"\"),\"Y\",\"N\"))))","v":""},{"$f":"IF($B947=\"N\",\"\",IF(OR('Enrollment Form'!$B954<>\"Subscriber\",'Enrollment Form'!$C954=\"ROC\"),\"-\",IF(AND('Enrollment Form'!$B954=\"Subscriber\",'Enrollment Form'!$C954=\"Enroll\",'Enrollment Form'!$CV954<>\"\"),\"Y\",\"N\")))","v":""},{"$f":"IF($B947=\"N\",\"\",IF($S947=\"-\",\"-\",IF(AND($S947=\"Y\",'Enrollment Form'!$CV954=\"No\"),\"-\",IF(AND($S947=\"Y\",'Enrollment Form'!$CV954=\"Yes\",'Enrollment Form'!$CW954<>\"\"),\"Y\",\"N\"))))","v":""},{"$f":"IF(OR('Enrollment Form'!$AY954=\"Yes\",'Enrollment Form'!$AY954=\"\"),\"-\",IF(OR(AND('Enrollment Form'!$AY954=\"No\",ISERROR(FIND(\"HMO\",VLOOKUP('Enrollment Form'!G954,'Enrollment Form'!H$11:J$1000,3,FALSE),1))=FALSE,COUNTA('Enrollment Form'!$AZ954:$BC954)=4),AND('Enrollment Form'!$AY954=\"No\",ISERROR(FIND(\"HMO\",VLOOKUP('Enrollment Form'!G954,'Enrollment Form'!H$11:J$1000,3,FALSE),1))=FALSE,COUNTA('Enrollment Form'!$BT954:$BW954)=4)),\"Y\",\"N\"))","v":"-"},{"$f":"IF($B947=\"N\",\"\",IF('Enrollment Form'!$B954=\"Subscriber\",\"-\",IF(COUNTA('Enrollment Form'!$BL954,'Enrollment Form'!$BN954)=2,\"Y\",\"N\")))","v":""},{"$f":"IF($B947=\"N\",\"\",IF(OR('Enrollment Form'!$AX954=\"\",'Enrollment Form'!$AX954=\"No\"),\"-\",IF(AND('Enrollment Form'!$AX954=\"Yes\",COUNTA('Enrollment Form'!$CR954)=1),\"Y\",\"N\")))","v":""},{"$f":"IF(OR('Enrollment Form'!$CR954=\"\",'Enrollment Form'!$CR954=\"No\"),\"-\",IF(COUNTA('Enrollment Form'!$CT954:$CU954)=2,\"Y\",\"N\"))","v":"-"},{"$f":"IF($B947=\"N\",\"\",IF(COUNTIF('Enrollment Form'!$DG954:$DP954,\"Other\")=COUNTA('Enrollment Form'!$DK954,'Enrollment Form'!$DH954,'Enrollment Form'!$DN954,'Enrollment Form'!$DQ954),\"Y\",\"N\"))","v":""},{"$f":"IF($B947=\"N\",\"\",IF(OR('Enrollment Form'!B954<>\"Subscriber\",'Enrollment Form'!C954=\"ROC\",COUNTIF('Enrollment Form'!AV954:AW954,\"Yes\")>=1),\"-\",IF(AND('Enrollment Form'!C954=\"Enroll\",COUNTIF('Enrollment Form'!AV954:AW954,\"No\")=2,'Enrollment Form'!AX954=\"\"),\"N\",\"Y\")))","v":""},{"$f":"IF(OR(B947=\"N\",'Enrollment Form'!B954<>\"Subscriber\",'Enrollment Form'!C954=\"ROC\",'Enrollment Form'!O954<>\"Multiple of Salary\"),\"-\",IF(COUNTA('Enrollment Form'!T954:U954)<2,\"N\",\"Y\"))","v":"-"},{"$f":"IF(B947=\"N\",\"\",IF(OR('Enrollment Form'!C954=\"ROC\",'Enrollment Form'!B954<>\"Subscriber\",'Enrollment Form'!O954=\"Waive\",'Enrollment Form'!O954=\"\"),\"-\",IF('Enrollment Form'!P954=\"\",\"N\",\"Y\")))","v":""},{"$f":"IF($B947=\"N\",\"\",IF(AND('Enrollment Form'!$C954=\"ROC\",'Enrollment Form'!$DR954<>\"\"),\"Y\",IF(AND('Enrollment Form'!$C954=\"ROC\",'Enrollment Form'!$DR954=\"\"),\"N\",IF(AND('Enrollment Form'!$C954=\"Enroll\",'Enrollment Form'!$B954=\"Subscriber\",'Enrollment Form'!$CX954=\"No\",'Enrollment Form'!$DR954=\"\"),\"N\",IF(AND('Enrollment Form'!$C954=\"Enroll\",'Enrollment Form'!$B954=\"Subscriber\",'Enrollment Form'!$CX954=\"Yes\"),\"-\",\"Y\")))))","v":""},{"$f":"IF($B947=\"N\",\"\",IF(AND('Enrollment Form'!$C954=\"ROC\",'Enrollment Form'!$DS954<>\"\"),\"Y\",IF(AND('Enrollment Form'!$C954=\"ROC\",'Enrollment Form'!$DS954=\"\"),\"N\",IF(AND('Enrollment Form'!$C954=\"Enroll\",'Enrollment Form'!$B954=\"Subscriber\",'Enrollment Form'!$CX954=\"No\",'Enrollment Form'!$DS954=\"\"),\"N\",IF(AND('Enrollment Form'!$C954=\"Enroll\",'Enrollment Form'!$B954=\"Subscriber\",'Enrollment Form'!$CX954=\"Yes\"),\"-\",\"Y\")))))","v":""},{"$f":"IF('Enrollment Form'!AH954=\"\",\"\",IF(ISERROR(SEARCH(\".\",'Enrollment Form'!AH954,SEARCH(\"@\",'Enrollment Form'!AH954))),\"N\",\"Y\"))","v":""},{"$f":"IF(OR($B947=\"N\",'Enrollment Form'!$G954=\"\"),\"\",IF('Enrollment Form'!$B954<>\"Subscriber\",\"-\",IF(COUNTIF('Enrollment Form'!$AV954:$AW954,\"Yes\")=2,\"N\",\"Y\")))","v":""},{"$f":"IF(OR('Enrollment Form'!$CJ954=\"\",'Enrollment Form'!$CJ954=\"No\"),\"-\",IF(AND('Enrollment Form'!$CJ954=\"Yes\",'Enrollment Form'!$CK954=\"\"),\"N\",\"Y\"))","v":"-"},{"$f":"IF(OR('Enrollment Form'!$CL954=\"\",'Enrollment Form'!$CL954=\"No\"),\"-\",IF(AND('Enrollment Form'!$CL954=\"Yes\",'Enrollment Form'!$CM954=\"\"),\"N\",\"Y\"))","v":"-"},{"$f":"IF(OR('Enrollment Form'!$CN954=\"\",'Enrollment Form'!$CN954=\"No\"),\"-\",IF(AND('Enrollment Form'!$CN954=\"Yes\",'Enrollment Form'!$CO954=\"\"),\"N\",\"Y\"))","v":"-"},{"$f":"IF(OR('Enrollment Form'!$CN954=\"\",'Enrollment Form'!$CN954=\"No\"),\"-\",IF(AND('Enrollment Form'!$CN954=\"Yes\",'Enrollment Form'!$CP954=\"\"),\"N\",\"Y\"))","v":"-"},{"$f":"IF('Enrollment Form'!B954<>\"Subscriber\",\"-\",IF(AND('Enrollment Form'!B954=\"Subscriber\",'Enrollment Form'!C954=\"Enroll\",'Enrollment Form'!AA954=\"\"),\"N\",\"Y\"))","v":"-"},{"$f":"IF(OR('Enrollment Form'!B954=\"Subscriber\",'Enrollment Form'!B954=\"\"),\"-\",IF('Enrollment Form'!BP954=\"\",\"N\",\"Y\"))","v":"-"},{"$f":"IF('Enrollment Form'!B954<>\"Subscriber\",\"-\",IF(AND('Enrollment Form'!B954=\"Subscriber\",'Enrollment Form'!G954=\"\"),\"N\",\"Y\"))","v":"-"},{"$f":"IF('Enrollment Form'!A954=\"\",\"\",IF('Enrollment Form'!B954=\"Subscriber\",\"-\",IF(AND('Enrollment Form'!B954<>\"Subscriber\",'Enrollment Form'!G954='Enrollment Form'!H954),\"N\",\"Y\")))","v":""},0]
[955,{"$f":"IF('Enrollment Form'!$A955<>\"\",\"Y\",\"N\")","v":"N"},{"$f":"IF(AND('Enrollment Form'!$B955=\"\",'Enrollment Form'!$C955<>\"\"),\"N\",IF($B948=\"N\",\"\",\"Y\"))","v":""},{"$f":"IF(OR($B948=\"N\",'Enrollment Form'!G955=\"\"),\"\",IF('Enrollment Form'!$B955<>\"Subscriber\",\"\",IF('Enrollment Form'!$G955='Enrollment Form'!$H955,\"Y\",\"N\")))","v":""},{"$f":"IF($B948=\"N\",\"\",IF(AND(COUNTIFS('Enrollment Form'!$H$11:$H$1000,'Enrollment Form'!$H955,'Enrollment Form'!$B$11:$B$1000,'Enrollment Form'!$B955)>1,'Enrollment Form'!$H955<>\"\"),\"N\",\"Y\"))","v":""},{"$f":"IF($B948=\"N\",\"\",IF(LEN('Enrollment Form'!$Y955)=0,\"\",IF(LEN('Enrollment Form'!$Y955)<>5,\"N\",\"Y\")))","v":""},{"$f":"IF($B948=\"N\",\"\",IF(LEN('Enrollment Form'!$AD955=0),\"\",IF(LEN('Enrollment Form'!$AD955)<>5,\"N\",\"Y\")))","v":""},{"$f":"IF($B948=\"N\",\"\",IF(LEN('Enrollment Form'!$BS955=0),\"\",IF(LEN('Enrollment Form'!$BS955)<>5,\"N\",\"Y\")))","v":""},{"$f":"IF($B948=\"N\",\"\",IF(LEN('Enrollment Form'!$AE955)=0,\"\",IF(LEN('Enrollment Form'!$AE955)<>10,\"N\",\"Y\")))","v":""},{"$f":"IF($B948=\"N\",\"\",IF(LEN('Enrollment Form'!$AF955)=0,\"\",IF(LEN('Enrollment Form'!$AF955)<>10,\"N\",\"Y\")))","v":""},{"$f":"IF('Enrollment Form'!$O955<>\"Graded\",\"-\",IF(AND('Enrollment Form'!$O955=\"Graded\",'Enrollment Form'!$AR955<>\"\"),\"Y\",\"N\"))","v":"-"},{"$f":"IF($B948=\"N\",\"\",IF(OR('Enrollment Form'!$B955<>\"Subscriber\",'Enrollment Form'!$C955=\"ROC\"),\"-\",IF(AND('Enrollment Form'!$B955=\"Subscriber\",'Enrollment Form'!$C955=\"Enroll\",'Enrollment Form'!$AJ955<>\"\"),\"Y\",\"N\")))","v":""},{"$f":"IF($B948=\"N\",\"\",IF(OR('Enrollment Form'!$B955<>\"Subscriber\",'Enrollment Form'!$C955=\"ROC\"),\"-\",IF(AND('Enrollment Form'!$B955=\"Subscriber\",'Enrollment Form'!$C955=\"Enroll\",'Enrollment Form'!$AK955<>\"\"),\"Y\",\"N\")))","v":""},{"$f":"IF($B948=\"N\",\"\",IF(OR('Enrollment Form'!$B955<>\"Subscriber\",'Enrollment Form'!$C955=\"ROC\"),\"-\",IF(AND('Enrollment Form'!$B955=\"Subscriber\",'Enrollment Form'!$C955=\"Enroll\",'Enrollment Form'!$AL955<>\"\"),\"Y\",\"N\")))","v":""},{"$f":"IF($B948=\"N\",\"\",IF(OR('Enrollment Form'!$B955<>\"Subscriber\",'Enrollment Form'!$C955=\"ROC\"),\"-\",IF(AND('Enrollment Form'!$B955=\"Subscriber\",'Enrollment Form'!$C955=\"Enroll\",'Enrollment Form'!$AP955<>\"\"),\"Y\",\"N\")))","v":""},{"$f":"IF($B948=\"N\",\"\",IF(OR('Enrollment Form'!$B955<>\"Subscriber\",'Enrollment Form'!$C955=\"ROC\"),\"-\",IF(AND('Enrollment Form'!$B955=\"Subscriber\",'Enrollment Form'!$C955=\"Enroll\",'Enrollment Form'!$AQ955<>\"\"),\"Y\",\"N\")))","v":""},{"$f":"IF($B948=\"N\",\"\",IF(OR('Enrollment Form'!$B955<>\"Subscriber\",'Enrollment Form'!$C955=\"ROC\"),\"-\",IF(AND('Enrollment Form'!$B955=\"Subscriber\",'Enrollment Form'!$C955=\"Enroll\",'Enrollment Form'!$AS955<>\"\"),\"Y\",\"N\")))","v":""},{"$f":"IF($B948=\"N\",\"\",IF($Q948=\"-\",\"-\",IF(AND($Q948=\"Y\",'Enrollment Form'!$AS955=\"No\"),\"-\",IF(AND($Q948=\"Y\",'Enrollment Form'!$AS955=\"Yes\",'Enrollment Form'!$AT955<>\"\"),\"Y\",\"N\"))))","v":""},{"$f":"IF($B948=\"N\",\"\",IF(OR('Enrollment Form'!$B955<>\"Subscriber\",'Enrollment Form'!$C955=\"ROC\"),\"-\",IF(AND('Enrollment Form'!$B955=\"Subscriber\",'Enrollment Form'!$C955=\"Enroll\",'Enrollment Form'!$CV955<>\"\"),\"Y\",\"N\")))","v":""},{"$f":"IF($B948=\"N\",\"\",IF($S948=\"-\",\"-\",IF(AND($S948=\"Y\",'Enrollment Form'!$CV955=\"No\"),\"-\",IF(AND($S948=\"Y\",'Enrollment Form'!$CV955=\"Yes\",'Enrollment Form'!$CW955<>\"\"),\"Y\",\"N\"))))","v":""},{"$f":"IF(OR('Enrollment Form'!$AY955=\"Yes\",'Enrollment Form'!$AY955=\"\"),\"-\",IF(OR(AND('Enrollment Form'!$AY955=\"No\",ISERROR(FIND(\"HMO\",VLOOKUP('Enrollment Form'!G955,'Enrollment Form'!H$11:J$1000,3,FALSE),1))=FALSE,COUNTA('Enrollment Form'!$AZ955:$BC955)=4),AND('Enrollment Form'!$AY955=\"No\",ISERROR(FIND(\"HMO\",VLOOKUP('Enrollment Form'!G955,'Enrollment Form'!H$11:J$1000,3,FALSE),1))=FALSE,COUNTA('Enrollment Form'!$BT955:$BW955)=4)),\"Y\",\"N\"))","v":"-"},{"$f":"IF($B948=\"N\",\"\",IF('Enrollment Form'!$B955=\"Subscriber\",\"-\",IF(COUNTA('Enrollment Form'!$BL955,'Enrollment Form'!$BN955)=2,\"Y\",\"N\")))","v":""},{"$f":"IF($B948=\"N\",\"\",IF(OR('Enrollment Form'!$AX955=\"\",'Enrollment Form'!$AX955=\"No\"),\"-\",IF(AND('Enrollment Form'!$AX955=\"Yes\",COUNTA('Enrollment Form'!$CR955)=1),\"Y\",\"N\")))","v":""},{"$f":"IF(OR('Enrollment Form'!$CR955=\"\",'Enrollment Form'!$CR955=\"No\"),\"-\",IF(COUNTA('Enrollment Form'!$CT955:$CU955)=2,\"Y\",\"N\"))","v":"-"},{"$f":"IF($B948=\"N\",\"\",IF(COUNTIF('Enrollment Form'!$DG955:$DP955,\"Other\")=COUNTA('Enrollment Form'!$DK955,'Enrollment Form'!$DH955,'Enrollment Form'!$DN955,'Enrollment Form'!$DQ955),\"Y\",\"N\"))","v":""},{"$f":"IF($B948=\"N\",\"\",IF(OR('Enrollment Form'!B955<>\"Subscriber\",'Enrollment Form'!C955=\"ROC\",COUNTIF('Enrollment Form'!AV955:AW955,\"Yes\")>=1),\"-\",IF(AND('Enrollment Form'!C955=\"Enroll\",COUNTIF('Enrollment Form'!AV955:AW955,\"No\")=2,'Enrollment Form'!AX955=\"\"),\"N\",\"Y\")))","v":""},{"$f":"IF(OR(B948=\"N\",'Enrollment Form'!B955<>\"Subscriber\",'Enrollment Form'!C955=\"ROC\",'Enrollment Form'!O955<>\"Multiple of Salary\"),\"-\",IF(COUNTA('Enrollment Form'!T955:U955)<2,\"N\",\"Y\"))","v":"-"},{"$f":"IF(B948=\"N\",\"\",IF(OR('Enrollment Form'!C955=\"ROC\",'Enrollment Form'!B955<>\"Subscriber\",'Enrollment Form'!O955=\"Waive\",'Enrollment Form'!O955=\"\"),\"-\",IF('Enrollment Form'!P955=\"\",\"N\",\"Y\")))","v":""},{"$f":"IF($B948=\"N\",\"\",IF(AND('Enrollment Form'!$C955=\"ROC\",'Enrollment Form'!$DR955<>\"\"),\"Y\",IF(AND('Enrollment Form'!$C955=\"ROC\",'Enrollment Form'!$DR955=\"\"),\"N\",IF(AND('Enrollment Form'!$C955=\"Enroll\",'Enrollment Form'!$B955=\"Subscriber\",'Enrollment Form'!$CX955=\"No\",'Enrollment Form'!$DR955=\"\"),\"N\",IF(AND('Enrollment Form'!$C955=\"Enroll\",'Enrollment Form'!$B955=\"Subscriber\",'Enrollment Form'!$CX955=\"Yes\"),\"-\",\"Y\")))))","v":""},{"$f":"IF($B948=\"N\",\"\",IF(AND('Enrollment Form'!$C955=\"ROC\",'Enrollment Form'!$DS955<>\"\"),\"Y\",IF(AND('Enrollment Form'!$C955=\"ROC\",'Enrollment Form'!$DS955=\"\"),\"N\",IF(AND('Enrollment Form'!$C955=\"Enroll\",'Enrollment Form'!$B955=\"Subscriber\",'Enrollment Form'!$CX955=\"No\",'Enrollment Form'!$DS955=\"\"),\"N\",IF(AND('Enrollment Form'!$C955=\"Enroll\",'Enrollment Form'!$B955=\"Subscriber\",'Enrollment Form'!$CX955=\"Yes\"),\"-\",\"Y\")))))","v":""},{"$f":"IF('Enrollment Form'!AH955=\"\",\"\",IF(ISERROR(SEARCH(\".\",'Enrollment Form'!AH955,SEARCH(\"@\",'Enrollment Form'!AH955))),\"N\",\"Y\"))","v":""},{"$f":"IF(OR($B948=\"N\",'Enrollment Form'!$G955=\"\"),\"\",IF('Enrollment Form'!$B955<>\"Subscriber\",\"-\",IF(COUNTIF('Enrollment Form'!$AV955:$AW955,\"Yes\")=2,\"N\",\"Y\")))","v":""},{"$f":"IF(OR('Enrollment Form'!$CJ955=\"\",'Enrollment Form'!$CJ955=\"No\"),\"-\",IF(AND('Enrollment Form'!$CJ955=\"Yes\",'Enrollment Form'!$CK955=\"\"),\"N\",\"Y\"))","v":"-"},{"$f":"IF(OR('Enrollment Form'!$CL955=\"\",'Enrollment Form'!$CL955=\"No\"),\"-\",IF(AND('Enrollment Form'!$CL955=\"Yes\",'Enrollment Form'!$CM955=\"\"),\"N\",\"Y\"))","v":"-"},{"$f":"IF(OR('Enrollment Form'!$CN955=\"\",'Enrollment Form'!$CN955=\"No\"),\"-\",IF(AND('Enrollment Form'!$CN955=\"Yes\",'Enrollment Form'!$CO955=\"\"),\"N\",\"Y\"))","v":"-"},{"$f":"IF(OR('Enrollment Form'!$CN955=\"\",'Enrollment Form'!$CN955=\"No\"),\"-\",IF(AND('Enrollment Form'!$CN955=\"Yes\",'Enrollment Form'!$CP955=\"\"),\"N\",\"Y\"))","v":"-"},{"$f":"IF('Enrollment Form'!B955<>\"Subscriber\",\"-\",IF(AND('Enrollment Form'!B955=\"Subscriber\",'Enrollment Form'!C955=\"Enroll\",'Enrollment Form'!AA955=\"\"),\"N\",\"Y\"))","v":"-"},{"$f":"IF(OR('Enrollment Form'!B955=\"Subscriber\",'Enrollment Form'!B955=\"\"),\"-\",IF('Enrollment Form'!BP955=\"\",\"N\",\"Y\"))","v":"-"},{"$f":"IF('Enrollment Form'!B955<>\"Subscriber\",\"-\",IF(AND('Enrollment Form'!B955=\"Subscriber\",'Enrollment Form'!G955=\"\"),\"N\",\"Y\"))","v":"-"},{"$f":"IF('Enrollment Form'!A955=\"\",\"\",IF('Enrollment Form'!B955=\"Subscriber\",\"-\",IF(AND('Enrollment Form'!B955<>\"Subscriber\",'Enrollment Form'!G955='Enrollment Form'!H955),\"N\",\"Y\")))","v":""},0]
[956,{"$f":"IF('Enrollment Form'!$A956<>\"\",\"Y\",\"N\")","v":"N"},{"$f":"IF(AND('Enrollment Form'!$B956=\"\",'Enrollment Form'!$C956<>\"\"),\"N\",IF($B949=\"N\",\"\",\"Y\"))","v":""},{"$f":"IF(OR($B949=\"N\",'Enrollment Form'!G956=\"\"),\"\",IF('Enrollment Form'!$B956<>\"Subscriber\",\"\",IF('Enrollment Form'!$G956='Enrollment Form'!$H956,\"Y\",\"N\")))","v":""},{"$f":"IF($B949=\"N\",\"\",IF(AND(COUNTIFS('Enrollment Form'!$H$11:$H$1000,'Enrollment Form'!$H956,'Enrollment Form'!$B$11:$B$1000,'Enrollment Form'!$B956)>1,'Enrollment Form'!$H956<>\"\"),\"N\",\"Y\"))","v":""},{"$f":"IF($B949=\"N\",\"\",IF(LEN('Enrollment Form'!$Y956)=0,\"\",IF(LEN('Enrollment Form'!$Y956)<>5,\"N\",\"Y\")))","v":""},{"$f":"IF($B949=\"N\",\"\",IF(LEN('Enrollment Form'!$AD956=0),\"\",IF(LEN('Enrollment Form'!$AD956)<>5,\"N\",\"Y\")))","v":""},{"$f":"IF($B949=\"N\",\"\",IF(LEN('Enrollment Form'!$BS956=0),\"\",IF(LEN('Enrollment Form'!$BS956)<>5,\"N\",\"Y\")))","v":""},{"$f":"IF($B949=\"N\",\"\",IF(LEN('Enrollment Form'!$AE956)=0,\"\",IF(LEN('Enrollment Form'!$AE956)<>10,\"N\",\"Y\")))","v":""},{"$f":"IF($B949=\"N\",\"\",IF(LEN('Enrollment Form'!$AF956)=0,\"\",IF(LEN('Enrollment Form'!$AF956)<>10,\"N\",\"Y\")))","v":""},{"$f":"IF('Enrollment Form'!$O956<>\"Graded\",\"-\",IF(AND('Enrollment Form'!$O956=\"Graded\",'Enrollment Form'!$AR956<>\"\"),\"Y\",\"N\"))","v":"-"},{"$f":"IF($B949=\"N\",\"\",IF(OR('Enrollment Form'!$B956<>\"Subscriber\",'Enrollment Form'!$C956=\"ROC\"),\"-\",IF(AND('Enrollment Form'!$B956=\"Subscriber\",'Enrollment Form'!$C956=\"Enroll\",'Enrollment Form'!$AJ956<>\"\"),\"Y\",\"N\")))","v":""},{"$f":"IF($B949=\"N\",\"\",IF(OR('Enrollment Form'!$B956<>\"Subscriber\",'Enrollment Form'!$C956=\"ROC\"),\"-\",IF(AND('Enrollment Form'!$B956=\"Subscriber\",'Enrollment Form'!$C956=\"Enroll\",'Enrollment Form'!$AK956<>\"\"),\"Y\",\"N\")))","v":""},{"$f":"IF($B949=\"N\",\"\",IF(OR('Enrollment Form'!$B956<>\"Subscriber\",'Enrollment Form'!$C956=\"ROC\"),\"-\",IF(AND('Enrollment Form'!$B956=\"Subscriber\",'Enrollment Form'!$C956=\"Enroll\",'Enrollment Form'!$AL956<>\"\"),\"Y\",\"N\")))","v":""},{"$f":"IF($B949=\"N\",\"\",IF(OR('Enrollment Form'!$B956<>\"Subscriber\",'Enrollment Form'!$C956=\"ROC\"),\"-\",IF(AND('Enrollment Form'!$B956=\"Subscriber\",'Enrollment Form'!$C956=\"Enroll\",'Enrollment Form'!$AP956<>\"\"),\"Y\",\"N\")))","v":""},{"$f":"IF($B949=\"N\",\"\",IF(OR('Enrollment Form'!$B956<>\"Subscriber\",'Enrollment Form'!$C956=\"ROC\"),\"-\",IF(AND('Enrollment Form'!$B956=\"Subscriber\",'Enrollment Form'!$C956=\"Enroll\",'Enrollment Form'!$AQ956<>\"\"),\"Y\",\"N\")))","v":""},{"$f":"IF($B949=\"N\",\"\",IF(OR('Enrollment Form'!$B956<>\"Subscriber\",'Enrollment Form'!$C956=\"ROC\"),\"-\",IF(AND('Enrollment Form'!$B956=\"Subscriber\",'Enrollment Form'!$C956=\"Enroll\",'Enrollment Form'!$AS956<>\"\"),\"Y\",\"N\")))","v":""},{"$f":"IF($B949=\"N\",\"\",IF($Q949=\"-\",\"-\",IF(AND($Q949=\"Y\",'Enrollment Form'!$AS956=\"No\"),\"-\",IF(AND($Q949=\"Y\",'Enrollment Form'!$AS956=\"Yes\",'Enrollment Form'!$AT956<>\"\"),\"Y\",\"N\"))))","v":""},{"$f":"IF($B949=\"N\",\"\",IF(OR('Enrollment Form'!$B956<>\"Subscriber\",'Enrollment Form'!$C956=\"ROC\"),\"-\",IF(AND('Enrollment Form'!$B956=\"Subscriber\",'Enrollment Form'!$C956=\"Enroll\",'Enrollment Form'!$CV956<>\"\"),\"Y\",\"N\")))","v":""},{"$f":"IF($B949=\"N\",\"\",IF($S949=\"-\",\"-\",IF(AND($S949=\"Y\",'Enrollment Form'!$CV956=\"No\"),\"-\",IF(AND($S949=\"Y\",'Enrollment Form'!$CV956=\"Yes\",'Enrollment Form'!$CW956<>\"\"),\"Y\",\"N\"))))","v":""},{"$f":"IF(OR('Enrollment Form'!$AY956=\"Yes\",'Enrollment Form'!$AY956=\"\"),\"-\",IF(OR(AND('Enrollment Form'!$AY956=\"No\",ISERROR(FIND(\"HMO\",VLOOKUP('Enrollment Form'!G956,'Enrollment Form'!H$11:J$1000,3,FALSE),1))=FALSE,COUNTA('Enrollment Form'!$AZ956:$BC956)=4),AND('Enrollment Form'!$AY956=\"No\",ISERROR(FIND(\"HMO\",VLOOKUP('Enrollment Form'!G956,'Enrollment Form'!H$11:J$1000,3,FALSE),1))=FALSE,COUNTA('Enrollment Form'!$BT956:$BW956)=4)),\"Y\",\"N\"))","v":"-"},{"$f":"IF($B949=\"N\",\"\",IF('Enrollment Form'!$B956=\"Subscriber\",\"-\",IF(COUNTA('Enrollment Form'!$BL956,'Enrollment Form'!$BN956)=2,\"Y\",\"N\")))","v":""},{"$f":"IF($B949=\"N\",\"\",IF(OR('Enrollment Form'!$AX956=\"\",'Enrollment Form'!$AX956=\"No\"),\"-\",IF(AND('Enrollment Form'!$AX956=\"Yes\",COUNTA('Enrollment Form'!$CR956)=1),\"Y\",\"N\")))","v":""},{"$f":"IF(OR('Enrollment Form'!$CR956=\"\",'Enrollment Form'!$CR956=\"No\"),\"-\",IF(COUNTA('Enrollment Form'!$CT956:$CU956)=2,\"Y\",\"N\"))","v":"-"},{"$f":"IF($B949=\"N\",\"\",IF(COUNTIF('Enrollment Form'!$DG956:$DP956,\"Other\")=COUNTA('Enrollment Form'!$DK956,'Enrollment Form'!$DH956,'Enrollment Form'!$DN956,'Enrollment Form'!$DQ956),\"Y\",\"N\"))","v":""},{"$f":"IF($B949=\"N\",\"\",IF(OR('Enrollment Form'!B956<>\"Subscriber\",'Enrollment Form'!C956=\"ROC\",COUNTIF('Enrollment Form'!AV956:AW956,\"Yes\")>=1),\"-\",IF(AND('Enrollment Form'!C956=\"Enroll\",COUNTIF('Enrollment Form'!AV956:AW956,\"No\")=2,'Enrollment Form'!AX956=\"\"),\"N\",\"Y\")))","v":""},{"$f":"IF(OR(B949=\"N\",'Enrollment Form'!B956<>\"Subscriber\",'Enrollment Form'!C956=\"ROC\",'Enrollment Form'!O956<>\"Multiple of Salary\"),\"-\",IF(COUNTA('Enrollment Form'!T956:U956)<2,\"N\",\"Y\"))","v":"-"},{"$f":"IF(B949=\"N\",\"\",IF(OR('Enrollment Form'!C956=\"ROC\",'Enrollment Form'!B956<>\"Subscriber\",'Enrollment Form'!O956=\"Waive\",'Enrollment Form'!O956=\"\"),\"-\",IF('Enrollment Form'!P956=\"\",\"N\",\"Y\")))","v":""},{"$f":"IF($B949=\"N\",\"\",IF(AND('Enrollment Form'!$C956=\"ROC\",'Enrollment Form'!$DR956<>\"\"),\"Y\",IF(AND('Enrollment Form'!$C956=\"ROC\",'Enrollment Form'!$DR956=\"\"),\"N\",IF(AND('Enrollment Form'!$C956=\"Enroll\",'Enrollment Form'!$B956=\"Subscriber\",'Enrollment Form'!$CX956=\"No\",'Enrollment Form'!$DR956=\"\"),\"N\",IF(AND('Enrollment Form'!$C956=\"Enroll\",'Enrollment Form'!$B956=\"Subscriber\",'Enrollment Form'!$CX956=\"Yes\"),\"-\",\"Y\")))))","v":""},{"$f":"IF($B949=\"N\",\"\",IF(AND('Enrollment Form'!$C956=\"ROC\",'Enrollment Form'!$DS956<>\"\"),\"Y\",IF(AND('Enrollment Form'!$C956=\"ROC\",'Enrollment Form'!$DS956=\"\"),\"N\",IF(AND('Enrollment Form'!$C956=\"Enroll\",'Enrollment Form'!$B956=\"Subscriber\",'Enrollment Form'!$CX956=\"No\",'Enrollment Form'!$DS956=\"\"),\"N\",IF(AND('Enrollment Form'!$C956=\"Enroll\",'Enrollment Form'!$B956=\"Subscriber\",'Enrollment Form'!$CX956=\"Yes\"),\"-\",\"Y\")))))","v":""},{"$f":"IF('Enrollment Form'!AH956=\"\",\"\",IF(ISERROR(SEARCH(\".\",'Enrollment Form'!AH956,SEARCH(\"@\",'Enrollment Form'!AH956))),\"N\",\"Y\"))","v":""},{"$f":"IF(OR($B949=\"N\",'Enrollment Form'!$G956=\"\"),\"\",IF('Enrollment Form'!$B956<>\"Subscriber\",\"-\",IF(COUNTIF('Enrollment Form'!$AV956:$AW956,\"Yes\")=2,\"N\",\"Y\")))","v":""},{"$f":"IF(OR('Enrollment Form'!$CJ956=\"\",'Enrollment Form'!$CJ956=\"No\"),\"-\",IF(AND('Enrollment Form'!$CJ956=\"Yes\",'Enrollment Form'!$CK956=\"\"),\"N\",\"Y\"))","v":"-"},{"$f":"IF(OR('Enrollment Form'!$CL956=\"\",'Enrollment Form'!$CL956=\"No\"),\"-\",IF(AND('Enrollment Form'!$CL956=\"Yes\",'Enrollment Form'!$CM956=\"\"),\"N\",\"Y\"))","v":"-"},{"$f":"IF(OR('Enrollment Form'!$CN956=\"\",'Enrollment Form'!$CN956=\"No\"),\"-\",IF(AND('Enrollment Form'!$CN956=\"Yes\",'Enrollment Form'!$CO956=\"\"),\"N\",\"Y\"))","v":"-"},{"$f":"IF(OR('Enrollment Form'!$CN956=\"\",'Enrollment Form'!$CN956=\"No\"),\"-\",IF(AND('Enrollment Form'!$CN956=\"Yes\",'Enrollment Form'!$CP956=\"\"),\"N\",\"Y\"))","v":"-"},{"$f":"IF('Enrollment Form'!B956<>\"Subscriber\",\"-\",IF(AND('Enrollment Form'!B956=\"Subscriber\",'Enrollment Form'!C956=\"Enroll\",'Enrollment Form'!AA956=\"\"),\"N\",\"Y\"))","v":"-"},{"$f":"IF(OR('Enrollment Form'!B956=\"Subscriber\",'Enrollment Form'!B956=\"\"),\"-\",IF('Enrollment Form'!BP956=\"\",\"N\",\"Y\"))","v":"-"},{"$f":"IF('Enrollment Form'!B956<>\"Subscriber\",\"-\",IF(AND('Enrollment Form'!B956=\"Subscriber\",'Enrollment Form'!G956=\"\"),\"N\",\"Y\"))","v":"-"},{"$f":"IF('Enrollment Form'!A956=\"\",\"\",IF('Enrollment Form'!B956=\"Subscriber\",\"-\",IF(AND('Enrollment Form'!B956<>\"Subscriber\",'Enrollment Form'!G956='Enrollment Form'!H956),\"N\",\"Y\")))","v":""},0]
[957,{"$f":"IF('Enrollment Form'!$A957<>\"\",\"Y\",\"N\")","v":"N"},{"$f":"IF(AND('Enrollment Form'!$B957=\"\",'Enrollment Form'!$C957<>\"\"),\"N\",IF($B950=\"N\",\"\",\"Y\"))","v":""},{"$f":"IF(OR($B950=\"N\",'Enrollment Form'!G957=\"\"),\"\",IF('Enrollment Form'!$B957<>\"Subscriber\",\"\",IF('Enrollment Form'!$G957='Enrollment Form'!$H957,\"Y\",\"N\")))","v":""},{"$f":"IF($B950=\"N\",\"\",IF(AND(COUNTIFS('Enrollment Form'!$H$11:$H$1000,'Enrollment Form'!$H957,'Enrollment Form'!$B$11:$B$1000,'Enrollment Form'!$B957)>1,'Enrollment Form'!$H957<>\"\"),\"N\",\"Y\"))","v":""},{"$f":"IF($B950=\"N\",\"\",IF(LEN('Enrollment Form'!$Y957)=0,\"\",IF(LEN('Enrollment Form'!$Y957)<>5,\"N\",\"Y\")))","v":""},{"$f":"IF($B950=\"N\",\"\",IF(LEN('Enrollment Form'!$AD957=0),\"\",IF(LEN('Enrollment Form'!$AD957)<>5,\"N\",\"Y\")))","v":""},{"$f":"IF($B950=\"N\",\"\",IF(LEN('Enrollment Form'!$BS957=0),\"\",IF(LEN('Enrollment Form'!$BS957)<>5,\"N\",\"Y\")))","v":""},{"$f":"IF($B950=\"N\",\"\",IF(LEN('Enrollment Form'!$AE957)=0,\"\",IF(LEN('Enrollment Form'!$AE957)<>10,\"N\",\"Y\")))","v":""},{"$f":"IF($B950=\"N\",\"\",IF(LEN('Enrollment Form'!$AF957)=0,\"\",IF(LEN('Enrollment Form'!$AF957)<>10,\"N\",\"Y\")))","v":""},{"$f":"IF('Enrollment Form'!$O957<>\"Graded\",\"-\",IF(AND('Enrollment Form'!$O957=\"Graded\",'Enrollment Form'!$AR957<>\"\"),\"Y\",\"N\"))","v":"-"},{"$f":"IF($B950=\"N\",\"\",IF(OR('Enrollment Form'!$B957<>\"Subscriber\",'Enrollment Form'!$C957=\"ROC\"),\"-\",IF(AND('Enrollment Form'!$B957=\"Subscriber\",'Enrollment Form'!$C957=\"Enroll\",'Enrollment Form'!$AJ957<>\"\"),\"Y\",\"N\")))","v":""},{"$f":"IF($B950=\"N\",\"\",IF(OR('Enrollment Form'!$B957<>\"Subscriber\",'Enrollment Form'!$C957=\"ROC\"),\"-\",IF(AND('Enrollment Form'!$B957=\"Subscriber\",'Enrollment Form'!$C957=\"Enroll\",'Enrollment Form'!$AK957<>\"\"),\"Y\",\"N\")))","v":""},{"$f":"IF($B950=\"N\",\"\",IF(OR('Enrollment Form'!$B957<>\"Subscriber\",'Enrollment Form'!$C957=\"ROC\"),\"-\",IF(AND('Enrollment Form'!$B957=\"Subscriber\",'Enrollment Form'!$C957=\"Enroll\",'Enrollment Form'!$AL957<>\"\"),\"Y\",\"N\")))","v":""},{"$f":"IF($B950=\"N\",\"\",IF(OR('Enrollment Form'!$B957<>\"Subscriber\",'Enrollment Form'!$C957=\"ROC\"),\"-\",IF(AND('Enrollment Form'!$B957=\"Subscriber\",'Enrollment Form'!$C957=\"Enroll\",'Enrollment Form'!$AP957<>\"\"),\"Y\",\"N\")))","v":""},{"$f":"IF($B950=\"N\",\"\",IF(OR('Enrollment Form'!$B957<>\"Subscriber\",'Enrollment Form'!$C957=\"ROC\"),\"-\",IF(AND('Enrollment Form'!$B957=\"Subscriber\",'Enrollment Form'!$C957=\"Enroll\",'Enrollment Form'!$AQ957<>\"\"),\"Y\",\"N\")))","v":""},{"$f":"IF($B950=\"N\",\"\",IF(OR('Enrollment Form'!$B957<>\"Subscriber\",'Enrollment Form'!$C957=\"ROC\"),\"-\",IF(AND('Enrollment Form'!$B957=\"Subscriber\",'Enrollment Form'!$C957=\"Enroll\",'Enrollment Form'!$AS957<>\"\"),\"Y\",\"N\")))","v":""},{"$f":"IF($B950=\"N\",\"\",IF($Q950=\"-\",\"-\",IF(AND($Q950=\"Y\",'Enrollment Form'!$AS957=\"No\"),\"-\",IF(AND($Q950=\"Y\",'Enrollment Form'!$AS957=\"Yes\",'Enrollment Form'!$AT957<>\"\"),\"Y\",\"N\"))))","v":""},{"$f":"IF($B950=\"N\",\"\",IF(OR('Enrollment Form'!$B957<>\"Subscriber\",'Enrollment Form'!$C957=\"ROC\"),\"-\",IF(AND('Enrollment Form'!$B957=\"Subscriber\",'Enrollment Form'!$C957=\"Enroll\",'Enrollment Form'!$CV957<>\"\"),\"Y\",\"N\")))","v":""},{"$f":"IF($B950=\"N\",\"\",IF($S950=\"-\",\"-\",IF(AND($S950=\"Y\",'Enrollment Form'!$CV957=\"No\"),\"-\",IF(AND($S950=\"Y\",'Enrollment Form'!$CV957=\"Yes\",'Enrollment Form'!$CW957<>\"\"),\"Y\",\"N\"))))","v":""},{"$f":"IF(OR('Enrollment Form'!$AY957=\"Yes\",'Enrollment Form'!$AY957=\"\"),\"-\",IF(OR(AND('Enrollment Form'!$AY957=\"No\",ISERROR(FIND(\"HMO\",VLOOKUP('Enrollment Form'!G957,'Enrollment Form'!H$11:J$1000,3,FALSE),1))=FALSE,COUNTA('Enrollment Form'!$AZ957:$BC957)=4),AND('Enrollment Form'!$AY957=\"No\",ISERROR(FIND(\"HMO\",VLOOKUP('Enrollment Form'!G957,'Enrollment Form'!H$11:J$1000,3,FALSE),1))=FALSE,COUNTA('Enrollment Form'!$BT957:$BW957)=4)),\"Y\",\"N\"))","v":"-"},{"$f":"IF($B950=\"N\",\"\",IF('Enrollment Form'!$B957=\"Subscriber\",\"-\",IF(COUNTA('Enrollment Form'!$BL957,'Enrollment Form'!$BN957)=2,\"Y\",\"N\")))","v":""},{"$f":"IF($B950=\"N\",\"\",IF(OR('Enrollment Form'!$AX957=\"\",'Enrollment Form'!$AX957=\"No\"),\"-\",IF(AND('Enrollment Form'!$AX957=\"Yes\",COUNTA('Enrollment Form'!$CR957)=1),\"Y\",\"N\")))","v":""},{"$f":"IF(OR('Enrollment Form'!$CR957=\"\",'Enrollment Form'!$CR957=\"No\"),\"-\",IF(COUNTA('Enrollment Form'!$CT957:$CU957)=2,\"Y\",\"N\"))","v":"-"},{"$f":"IF($B950=\"N\",\"\",IF(COUNTIF('Enrollment Form'!$DG957:$DP957,\"Other\")=COUNTA('Enrollment Form'!$DK957,'Enrollment Form'!$DH957,'Enrollment Form'!$DN957,'Enrollment Form'!$DQ957),\"Y\",\"N\"))","v":""},{"$f":"IF($B950=\"N\",\"\",IF(OR('Enrollment Form'!B957<>\"Subscriber\",'Enrollment Form'!C957=\"ROC\",COUNTIF('Enrollment Form'!AV957:AW957,\"Yes\")>=1),\"-\",IF(AND('Enrollment Form'!C957=\"Enroll\",COUNTIF('Enrollment Form'!AV957:AW957,\"No\")=2,'Enrollment Form'!AX957=\"\"),\"N\",\"Y\")))","v":""},{"$f":"IF(OR(B950=\"N\",'Enrollment Form'!B957<>\"Subscriber\",'Enrollment Form'!C957=\"ROC\",'Enrollment Form'!O957<>\"Multiple of Salary\"),\"-\",IF(COUNTA('Enrollment Form'!T957:U957)<2,\"N\",\"Y\"))","v":"-"},{"$f":"IF(B950=\"N\",\"\",IF(OR('Enrollment Form'!C957=\"ROC\",'Enrollment Form'!B957<>\"Subscriber\",'Enrollment Form'!O957=\"Waive\",'Enrollment Form'!O957=\"\"),\"-\",IF('Enrollment Form'!P957=\"\",\"N\",\"Y\")))","v":""},{"$f":"IF($B950=\"N\",\"\",IF(AND('Enrollment Form'!$C957=\"ROC\",'Enrollment Form'!$DR957<>\"\"),\"Y\",IF(AND('Enrollment Form'!$C957=\"ROC\",'Enrollment Form'!$DR957=\"\"),\"N\",IF(AND('Enrollment Form'!$C957=\"Enroll\",'Enrollment Form'!$B957=\"Subscriber\",'Enrollment Form'!$CX957=\"No\",'Enrollment Form'!$DR957=\"\"),\"N\",IF(AND('Enrollment Form'!$C957=\"Enroll\",'Enrollment Form'!$B957=\"Subscriber\",'Enrollment Form'!$CX957=\"Yes\"),\"-\",\"Y\")))))","v":""},{"$f":"IF($B950=\"N\",\"\",IF(AND('Enrollment Form'!$C957=\"ROC\",'Enrollment Form'!$DS957<>\"\"),\"Y\",IF(AND('Enrollment Form'!$C957=\"ROC\",'Enrollment Form'!$DS957=\"\"),\"N\",IF(AND('Enrollment Form'!$C957=\"Enroll\",'Enrollment Form'!$B957=\"Subscriber\",'Enrollment Form'!$CX957=\"No\",'Enrollment Form'!$DS957=\"\"),\"N\",IF(AND('Enrollment Form'!$C957=\"Enroll\",'Enrollment Form'!$B957=\"Subscriber\",'Enrollment Form'!$CX957=\"Yes\"),\"-\",\"Y\")))))","v":""},{"$f":"IF('Enrollment Form'!AH957=\"\",\"\",IF(ISERROR(SEARCH(\".\",'Enrollment Form'!AH957,SEARCH(\"@\",'Enrollment Form'!AH957))),\"N\",\"Y\"))","v":""},{"$f":"IF(OR($B950=\"N\",'Enrollment Form'!$G957=\"\"),\"\",IF('Enrollment Form'!$B957<>\"Subscriber\",\"-\",IF(COUNTIF('Enrollment Form'!$AV957:$AW957,\"Yes\")=2,\"N\",\"Y\")))","v":""},{"$f":"IF(OR('Enrollment Form'!$CJ957=\"\",'Enrollment Form'!$CJ957=\"No\"),\"-\",IF(AND('Enrollment Form'!$CJ957=\"Yes\",'Enrollment Form'!$CK957=\"\"),\"N\",\"Y\"))","v":"-"},{"$f":"IF(OR('Enrollment Form'!$CL957=\"\",'Enrollment Form'!$CL957=\"No\"),\"-\",IF(AND('Enrollment Form'!$CL957=\"Yes\",'Enrollment Form'!$CM957=\"\"),\"N\",\"Y\"))","v":"-"},{"$f":"IF(OR('Enrollment Form'!$CN957=\"\",'Enrollment Form'!$CN957=\"No\"),\"-\",IF(AND('Enrollment Form'!$CN957=\"Yes\",'Enrollment Form'!$CO957=\"\"),\"N\",\"Y\"))","v":"-"},{"$f":"IF(OR('Enrollment Form'!$CN957=\"\",'Enrollment Form'!$CN957=\"No\"),\"-\",IF(AND('Enrollment Form'!$CN957=\"Yes\",'Enrollment Form'!$CP957=\"\"),\"N\",\"Y\"))","v":"-"},{"$f":"IF('Enrollment Form'!B957<>\"Subscriber\",\"-\",IF(AND('Enrollment Form'!B957=\"Subscriber\",'Enrollment Form'!C957=\"Enroll\",'Enrollment Form'!AA957=\"\"),\"N\",\"Y\"))","v":"-"},{"$f":"IF(OR('Enrollment Form'!B957=\"Subscriber\",'Enrollment Form'!B957=\"\"),\"-\",IF('Enrollment Form'!BP957=\"\",\"N\",\"Y\"))","v":"-"},{"$f":"IF('Enrollment Form'!B957<>\"Subscriber\",\"-\",IF(AND('Enrollment Form'!B957=\"Subscriber\",'Enrollment Form'!G957=\"\"),\"N\",\"Y\"))","v":"-"},{"$f":"IF('Enrollment Form'!A957=\"\",\"\",IF('Enrollment Form'!B957=\"Subscriber\",\"-\",IF(AND('Enrollment Form'!B957<>\"Subscriber\",'Enrollment Form'!G957='Enrollment Form'!H957),\"N\",\"Y\")))","v":""},0]
[958,{"$f":"IF('Enrollment Form'!$A958<>\"\",\"Y\",\"N\")","v":"N"},{"$f":"IF(AND('Enrollment Form'!$B958=\"\",'Enrollment Form'!$C958<>\"\"),\"N\",IF($B951=\"N\",\"\",\"Y\"))","v":""},{"$f":"IF(OR($B951=\"N\",'Enrollment Form'!G958=\"\"),\"\",IF('Enrollment Form'!$B958<>\"Subscriber\",\"\",IF('Enrollment Form'!$G958='Enrollment Form'!$H958,\"Y\",\"N\")))","v":""},{"$f":"IF($B951=\"N\",\"\",IF(AND(COUNTIFS('Enrollment Form'!$H$11:$H$1000,'Enrollment Form'!$H958,'Enrollment Form'!$B$11:$B$1000,'Enrollment Form'!$B958)>1,'Enrollment Form'!$H958<>\"\"),\"N\",\"Y\"))","v":""},{"$f":"IF($B951=\"N\",\"\",IF(LEN('Enrollment Form'!$Y958)=0,\"\",IF(LEN('Enrollment Form'!$Y958)<>5,\"N\",\"Y\")))","v":""},{"$f":"IF($B951=\"N\",\"\",IF(LEN('Enrollment Form'!$AD958=0),\"\",IF(LEN('Enrollment Form'!$AD958)<>5,\"N\",\"Y\")))","v":""},{"$f":"IF($B951=\"N\",\"\",IF(LEN('Enrollment Form'!$BS958=0),\"\",IF(LEN('Enrollment Form'!$BS958)<>5,\"N\",\"Y\")))","v":""},{"$f":"IF($B951=\"N\",\"\",IF(LEN('Enrollment Form'!$AE958)=0,\"\",IF(LEN('Enrollment Form'!$AE958)<>10,\"N\",\"Y\")))","v":""},{"$f":"IF($B951=\"N\",\"\",IF(LEN('Enrollment Form'!$AF958)=0,\"\",IF(LEN('Enrollment Form'!$AF958)<>10,\"N\",\"Y\")))","v":""},{"$f":"IF('Enrollment Form'!$O958<>\"Graded\",\"-\",IF(AND('Enrollment Form'!$O958=\"Graded\",'Enrollment Form'!$AR958<>\"\"),\"Y\",\"N\"))","v":"-"},{"$f":"IF($B951=\"N\",\"\",IF(OR('Enrollment Form'!$B958<>\"Subscriber\",'Enrollment Form'!$C958=\"ROC\"),\"-\",IF(AND('Enrollment Form'!$B958=\"Subscriber\",'Enrollment Form'!$C958=\"Enroll\",'Enrollment Form'!$AJ958<>\"\"),\"Y\",\"N\")))","v":""},{"$f":"IF($B951=\"N\",\"\",IF(OR('Enrollment Form'!$B958<>\"Subscriber\",'Enrollment Form'!$C958=\"ROC\"),\"-\",IF(AND('Enrollment Form'!$B958=\"Subscriber\",'Enrollment Form'!$C958=\"Enroll\",'Enrollment Form'!$AK958<>\"\"),\"Y\",\"N\")))","v":""},{"$f":"IF($B951=\"N\",\"\",IF(OR('Enrollment Form'!$B958<>\"Subscriber\",'Enrollment Form'!$C958=\"ROC\"),\"-\",IF(AND('Enrollment Form'!$B958=\"Subscriber\",'Enrollment Form'!$C958=\"Enroll\",'Enrollment Form'!$AL958<>\"\"),\"Y\",\"N\")))","v":""},{"$f":"IF($B951=\"N\",\"\",IF(OR('Enrollment Form'!$B958<>\"Subscriber\",'Enrollment Form'!$C958=\"ROC\"),\"-\",IF(AND('Enrollment Form'!$B958=\"Subscriber\",'Enrollment Form'!$C958=\"Enroll\",'Enrollment Form'!$AP958<>\"\"),\"Y\",\"N\")))","v":""},{"$f":"IF($B951=\"N\",\"\",IF(OR('Enrollment Form'!$B958<>\"Subscriber\",'Enrollment Form'!$C958=\"ROC\"),\"-\",IF(AND('Enrollment Form'!$B958=\"Subscriber\",'Enrollment Form'!$C958=\"Enroll\",'Enrollment Form'!$AQ958<>\"\"),\"Y\",\"N\")))","v":""},{"$f":"IF($B951=\"N\",\"\",IF(OR('Enrollment Form'!$B958<>\"Subscriber\",'Enrollment Form'!$C958=\"ROC\"),\"-\",IF(AND('Enrollment Form'!$B958=\"Subscriber\",'Enrollment Form'!$C958=\"Enroll\",'Enrollment Form'!$AS958<>\"\"),\"Y\",\"N\")))","v":""},{"$f":"IF($B951=\"N\",\"\",IF($Q951=\"-\",\"-\",IF(AND($Q951=\"Y\",'Enrollment Form'!$AS958=\"No\"),\"-\",IF(AND($Q951=\"Y\",'Enrollment Form'!$AS958=\"Yes\",'Enrollment Form'!$AT958<>\"\"),\"Y\",\"N\"))))","v":""},{"$f":"IF($B951=\"N\",\"\",IF(OR('Enrollment Form'!$B958<>\"Subscriber\",'Enrollment Form'!$C958=\"ROC\"),\"-\",IF(AND('Enrollment Form'!$B958=\"Subscriber\",'Enrollment Form'!$C958=\"Enroll\",'Enrollment Form'!$CV958<>\"\"),\"Y\",\"N\")))","v":""},{"$f":"IF($B951=\"N\",\"\",IF($S951=\"-\",\"-\",IF(AND($S951=\"Y\",'Enrollment Form'!$CV958=\"No\"),\"-\",IF(AND($S951=\"Y\",'Enrollment Form'!$CV958=\"Yes\",'Enrollment Form'!$CW958<>\"\"),\"Y\",\"N\"))))","v":""},{"$f":"IF(OR('Enrollment Form'!$AY958=\"Yes\",'Enrollment Form'!$AY958=\"\"),\"-\",IF(OR(AND('Enrollment Form'!$AY958=\"No\",ISERROR(FIND(\"HMO\",VLOOKUP('Enrollment Form'!G958,'Enrollment Form'!H$11:J$1000,3,FALSE),1))=FALSE,COUNTA('Enrollment Form'!$AZ958:$BC958)=4),AND('Enrollment Form'!$AY958=\"No\",ISERROR(FIND(\"HMO\",VLOOKUP('Enrollment Form'!G958,'Enrollment Form'!H$11:J$1000,3,FALSE),1))=FALSE,COUNTA('Enrollment Form'!$BT958:$BW958)=4)),\"Y\",\"N\"))","v":"-"},{"$f":"IF($B951=\"N\",\"\",IF('Enrollment Form'!$B958=\"Subscriber\",\"-\",IF(COUNTA('Enrollment Form'!$BL958,'Enrollment Form'!$BN958)=2,\"Y\",\"N\")))","v":""},{"$f":"IF($B951=\"N\",\"\",IF(OR('Enrollment Form'!$AX958=\"\",'Enrollment Form'!$AX958=\"No\"),\"-\",IF(AND('Enrollment Form'!$AX958=\"Yes\",COUNTA('Enrollment Form'!$CR958)=1),\"Y\",\"N\")))","v":""},{"$f":"IF(OR('Enrollment Form'!$CR958=\"\",'Enrollment Form'!$CR958=\"No\"),\"-\",IF(COUNTA('Enrollment Form'!$CT958:$CU958)=2,\"Y\",\"N\"))","v":"-"},{"$f":"IF($B951=\"N\",\"\",IF(COUNTIF('Enrollment Form'!$DG958:$DP958,\"Other\")=COUNTA('Enrollment Form'!$DK958,'Enrollment Form'!$DH958,'Enrollment Form'!$DN958,'Enrollment Form'!$DQ958),\"Y\",\"N\"))","v":""},{"$f":"IF($B951=\"N\",\"\",IF(OR('Enrollment Form'!B958<>\"Subscriber\",'Enrollment Form'!C958=\"ROC\",COUNTIF('Enrollment Form'!AV958:AW958,\"Yes\")>=1),\"-\",IF(AND('Enrollment Form'!C958=\"Enroll\",COUNTIF('Enrollment Form'!AV958:AW958,\"No\")=2,'Enrollment Form'!AX958=\"\"),\"N\",\"Y\")))","v":""},{"$f":"IF(OR(B951=\"N\",'Enrollment Form'!B958<>\"Subscriber\",'Enrollment Form'!C958=\"ROC\",'Enrollment Form'!O958<>\"Multiple of Salary\"),\"-\",IF(COUNTA('Enrollment Form'!T958:U958)<2,\"N\",\"Y\"))","v":"-"},{"$f":"IF(B951=\"N\",\"\",IF(OR('Enrollment Form'!C958=\"ROC\",'Enrollment Form'!B958<>\"Subscriber\",'Enrollment Form'!O958=\"Waive\",'Enrollment Form'!O958=\"\"),\"-\",IF('Enrollment Form'!P958=\"\",\"N\",\"Y\")))","v":""},{"$f":"IF($B951=\"N\",\"\",IF(AND('Enrollment Form'!$C958=\"ROC\",'Enrollment Form'!$DR958<>\"\"),\"Y\",IF(AND('Enrollment Form'!$C958=\"ROC\",'Enrollment Form'!$DR958=\"\"),\"N\",IF(AND('Enrollment Form'!$C958=\"Enroll\",'Enrollment Form'!$B958=\"Subscriber\",'Enrollment Form'!$CX958=\"No\",'Enrollment Form'!$DR958=\"\"),\"N\",IF(AND('Enrollment Form'!$C958=\"Enroll\",'Enrollment Form'!$B958=\"Subscriber\",'Enrollment Form'!$CX958=\"Yes\"),\"-\",\"Y\")))))","v":""},{"$f":"IF($B951=\"N\",\"\",IF(AND('Enrollment Form'!$C958=\"ROC\",'Enrollment Form'!$DS958<>\"\"),\"Y\",IF(AND('Enrollment Form'!$C958=\"ROC\",'Enrollment Form'!$DS958=\"\"),\"N\",IF(AND('Enrollment Form'!$C958=\"Enroll\",'Enrollment Form'!$B958=\"Subscriber\",'Enrollment Form'!$CX958=\"No\",'Enrollment Form'!$DS958=\"\"),\"N\",IF(AND('Enrollment Form'!$C958=\"Enroll\",'Enrollment Form'!$B958=\"Subscriber\",'Enrollment Form'!$CX958=\"Yes\"),\"-\",\"Y\")))))","v":""},{"$f":"IF('Enrollment Form'!AH958=\"\",\"\",IF(ISERROR(SEARCH(\".\",'Enrollment Form'!AH958,SEARCH(\"@\",'Enrollment Form'!AH958))),\"N\",\"Y\"))","v":""},{"$f":"IF(OR($B951=\"N\",'Enrollment Form'!$G958=\"\"),\"\",IF('Enrollment Form'!$B958<>\"Subscriber\",\"-\",IF(COUNTIF('Enrollment Form'!$AV958:$AW958,\"Yes\")=2,\"N\",\"Y\")))","v":""},{"$f":"IF(OR('Enrollment Form'!$CJ958=\"\",'Enrollment Form'!$CJ958=\"No\"),\"-\",IF(AND('Enrollment Form'!$CJ958=\"Yes\",'Enrollment Form'!$CK958=\"\"),\"N\",\"Y\"))","v":"-"},{"$f":"IF(OR('Enrollment Form'!$CL958=\"\",'Enrollment Form'!$CL958=\"No\"),\"-\",IF(AND('Enrollment Form'!$CL958=\"Yes\",'Enrollment Form'!$CM958=\"\"),\"N\",\"Y\"))","v":"-"},{"$f":"IF(OR('Enrollment Form'!$CN958=\"\",'Enrollment Form'!$CN958=\"No\"),\"-\",IF(AND('Enrollment Form'!$CN958=\"Yes\",'Enrollment Form'!$CO958=\"\"),\"N\",\"Y\"))","v":"-"},{"$f":"IF(OR('Enrollment Form'!$CN958=\"\",'Enrollment Form'!$CN958=\"No\"),\"-\",IF(AND('Enrollment Form'!$CN958=\"Yes\",'Enrollment Form'!$CP958=\"\"),\"N\",\"Y\"))","v":"-"},{"$f":"IF('Enrollment Form'!B958<>\"Subscriber\",\"-\",IF(AND('Enrollment Form'!B958=\"Subscriber\",'Enrollment Form'!C958=\"Enroll\",'Enrollment Form'!AA958=\"\"),\"N\",\"Y\"))","v":"-"},{"$f":"IF(OR('Enrollment Form'!B958=\"Subscriber\",'Enrollment Form'!B958=\"\"),\"-\",IF('Enrollment Form'!BP958=\"\",\"N\",\"Y\"))","v":"-"},{"$f":"IF('Enrollment Form'!B958<>\"Subscriber\",\"-\",IF(AND('Enrollment Form'!B958=\"Subscriber\",'Enrollment Form'!G958=\"\"),\"N\",\"Y\"))","v":"-"},{"$f":"IF('Enrollment Form'!A958=\"\",\"\",IF('Enrollment Form'!B958=\"Subscriber\",\"-\",IF(AND('Enrollment Form'!B958<>\"Subscriber\",'Enrollment Form'!G958='Enrollment Form'!H958),\"N\",\"Y\")))","v":""},0]
[959,{"$f":"IF('Enrollment Form'!$A959<>\"\",\"Y\",\"N\")","v":"N"},{"$f":"IF(AND('Enrollment Form'!$B959=\"\",'Enrollment Form'!$C959<>\"\"),\"N\",IF($B952=\"N\",\"\",\"Y\"))","v":""},{"$f":"IF(OR($B952=\"N\",'Enrollment Form'!G959=\"\"),\"\",IF('Enrollment Form'!$B959<>\"Subscriber\",\"\",IF('Enrollment Form'!$G959='Enrollment Form'!$H959,\"Y\",\"N\")))","v":""},{"$f":"IF($B952=\"N\",\"\",IF(AND(COUNTIFS('Enrollment Form'!$H$11:$H$1000,'Enrollment Form'!$H959,'Enrollment Form'!$B$11:$B$1000,'Enrollment Form'!$B959)>1,'Enrollment Form'!$H959<>\"\"),\"N\",\"Y\"))","v":""},{"$f":"IF($B952=\"N\",\"\",IF(LEN('Enrollment Form'!$Y959)=0,\"\",IF(LEN('Enrollment Form'!$Y959)<>5,\"N\",\"Y\")))","v":""},{"$f":"IF($B952=\"N\",\"\",IF(LEN('Enrollment Form'!$AD959=0),\"\",IF(LEN('Enrollment Form'!$AD959)<>5,\"N\",\"Y\")))","v":""},{"$f":"IF($B952=\"N\",\"\",IF(LEN('Enrollment Form'!$BS959=0),\"\",IF(LEN('Enrollment Form'!$BS959)<>5,\"N\",\"Y\")))","v":""},{"$f":"IF($B952=\"N\",\"\",IF(LEN('Enrollment Form'!$AE959)=0,\"\",IF(LEN('Enrollment Form'!$AE959)<>10,\"N\",\"Y\")))","v":""},{"$f":"IF($B952=\"N\",\"\",IF(LEN('Enrollment Form'!$AF959)=0,\"\",IF(LEN('Enrollment Form'!$AF959)<>10,\"N\",\"Y\")))","v":""},{"$f":"IF('Enrollment Form'!$O959<>\"Graded\",\"-\",IF(AND('Enrollment Form'!$O959=\"Graded\",'Enrollment Form'!$AR959<>\"\"),\"Y\",\"N\"))","v":"-"},{"$f":"IF($B952=\"N\",\"\",IF(OR('Enrollment Form'!$B959<>\"Subscriber\",'Enrollment Form'!$C959=\"ROC\"),\"-\",IF(AND('Enrollment Form'!$B959=\"Subscriber\",'Enrollment Form'!$C959=\"Enroll\",'Enrollment Form'!$AJ959<>\"\"),\"Y\",\"N\")))","v":""},{"$f":"IF($B952=\"N\",\"\",IF(OR('Enrollment Form'!$B959<>\"Subscriber\",'Enrollment Form'!$C959=\"ROC\"),\"-\",IF(AND('Enrollment Form'!$B959=\"Subscriber\",'Enrollment Form'!$C959=\"Enroll\",'Enrollment Form'!$AK959<>\"\"),\"Y\",\"N\")))","v":""},{"$f":"IF($B952=\"N\",\"\",IF(OR('Enrollment Form'!$B959<>\"Subscriber\",'Enrollment Form'!$C959=\"ROC\"),\"-\",IF(AND('Enrollment Form'!$B959=\"Subscriber\",'Enrollment Form'!$C959=\"Enroll\",'Enrollment Form'!$AL959<>\"\"),\"Y\",\"N\")))","v":""},{"$f":"IF($B952=\"N\",\"\",IF(OR('Enrollment Form'!$B959<>\"Subscriber\",'Enrollment Form'!$C959=\"ROC\"),\"-\",IF(AND('Enrollment Form'!$B959=\"Subscriber\",'Enrollment Form'!$C959=\"Enroll\",'Enrollment Form'!$AP959<>\"\"),\"Y\",\"N\")))","v":""},{"$f":"IF($B952=\"N\",\"\",IF(OR('Enrollment Form'!$B959<>\"Subscriber\",'Enrollment Form'!$C959=\"ROC\"),\"-\",IF(AND('Enrollment Form'!$B959=\"Subscriber\",'Enrollment Form'!$C959=\"Enroll\",'Enrollment Form'!$AQ959<>\"\"),\"Y\",\"N\")))","v":""},{"$f":"IF($B952=\"N\",\"\",IF(OR('Enrollment Form'!$B959<>\"Subscriber\",'Enrollment Form'!$C959=\"ROC\"),\"-\",IF(AND('Enrollment Form'!$B959=\"Subscriber\",'Enrollment Form'!$C959=\"Enroll\",'Enrollment Form'!$AS959<>\"\"),\"Y\",\"N\")))","v":""},{"$f":"IF($B952=\"N\",\"\",IF($Q952=\"-\",\"-\",IF(AND($Q952=\"Y\",'Enrollment Form'!$AS959=\"No\"),\"-\",IF(AND($Q952=\"Y\",'Enrollment Form'!$AS959=\"Yes\",'Enrollment Form'!$AT959<>\"\"),\"Y\",\"N\"))))","v":""},{"$f":"IF($B952=\"N\",\"\",IF(OR('Enrollment Form'!$B959<>\"Subscriber\",'Enrollment Form'!$C959=\"ROC\"),\"-\",IF(AND('Enrollment Form'!$B959=\"Subscriber\",'Enrollment Form'!$C959=\"Enroll\",'Enrollment Form'!$CV959<>\"\"),\"Y\",\"N\")))","v":""},{"$f":"IF($B952=\"N\",\"\",IF($S952=\"-\",\"-\",IF(AND($S952=\"Y\",'Enrollment Form'!$CV959=\"No\"),\"-\",IF(AND($S952=\"Y\",'Enrollment Form'!$CV959=\"Yes\",'Enrollment Form'!$CW959<>\"\"),\"Y\",\"N\"))))","v":""},{"$f":"IF(OR('Enrollment Form'!$AY959=\"Yes\",'Enrollment Form'!$AY959=\"\"),\"-\",IF(OR(AND('Enrollment Form'!$AY959=\"No\",ISERROR(FIND(\"HMO\",VLOOKUP('Enrollment Form'!G959,'Enrollment Form'!H$11:J$1000,3,FALSE),1))=FALSE,COUNTA('Enrollment Form'!$AZ959:$BC959)=4),AND('Enrollment Form'!$AY959=\"No\",ISERROR(FIND(\"HMO\",VLOOKUP('Enrollment Form'!G959,'Enrollment Form'!H$11:J$1000,3,FALSE),1))=FALSE,COUNTA('Enrollment Form'!$BT959:$BW959)=4)),\"Y\",\"N\"))","v":"-"},{"$f":"IF($B952=\"N\",\"\",IF('Enrollment Form'!$B959=\"Subscriber\",\"-\",IF(COUNTA('Enrollment Form'!$BL959,'Enrollment Form'!$BN959)=2,\"Y\",\"N\")))","v":""},{"$f":"IF($B952=\"N\",\"\",IF(OR('Enrollment Form'!$AX959=\"\",'Enrollment Form'!$AX959=\"No\"),\"-\",IF(AND('Enrollment Form'!$AX959=\"Yes\",COUNTA('Enrollment Form'!$CR959)=1),\"Y\",\"N\")))","v":""},{"$f":"IF(OR('Enrollment Form'!$CR959=\"\",'Enrollment Form'!$CR959=\"No\"),\"-\",IF(COUNTA('Enrollment Form'!$CT959:$CU959)=2,\"Y\",\"N\"))","v":"-"},{"$f":"IF($B952=\"N\",\"\",IF(COUNTIF('Enrollment Form'!$DG959:$DP959,\"Other\")=COUNTA('Enrollment Form'!$DK959,'Enrollment Form'!$DH959,'Enrollment Form'!$DN959,'Enrollment Form'!$DQ959),\"Y\",\"N\"))","v":""},{"$f":"IF($B952=\"N\",\"\",IF(OR('Enrollment Form'!B959<>\"Subscriber\",'Enrollment Form'!C959=\"ROC\",COUNTIF('Enrollment Form'!AV959:AW959,\"Yes\")>=1),\"-\",IF(AND('Enrollment Form'!C959=\"Enroll\",COUNTIF('Enrollment Form'!AV959:AW959,\"No\")=2,'Enrollment Form'!AX959=\"\"),\"N\",\"Y\")))","v":""},{"$f":"IF(OR(B952=\"N\",'Enrollment Form'!B959<>\"Subscriber\",'Enrollment Form'!C959=\"ROC\",'Enrollment Form'!O959<>\"Multiple of Salary\"),\"-\",IF(COUNTA('Enrollment Form'!T959:U959)<2,\"N\",\"Y\"))","v":"-"},{"$f":"IF(B952=\"N\",\"\",IF(OR('Enrollment Form'!C959=\"ROC\",'Enrollment Form'!B959<>\"Subscriber\",'Enrollment Form'!O959=\"Waive\",'Enrollment Form'!O959=\"\"),\"-\",IF('Enrollment Form'!P959=\"\",\"N\",\"Y\")))","v":""},{"$f":"IF($B952=\"N\",\"\",IF(AND('Enrollment Form'!$C959=\"ROC\",'Enrollment Form'!$DR959<>\"\"),\"Y\",IF(AND('Enrollment Form'!$C959=\"ROC\",'Enrollment Form'!$DR959=\"\"),\"N\",IF(AND('Enrollment Form'!$C959=\"Enroll\",'Enrollment Form'!$B959=\"Subscriber\",'Enrollment Form'!$CX959=\"No\",'Enrollment Form'!$DR959=\"\"),\"N\",IF(AND('Enrollment Form'!$C959=\"Enroll\",'Enrollment Form'!$B959=\"Subscriber\",'Enrollment Form'!$CX959=\"Yes\"),\"-\",\"Y\")))))","v":""},{"$f":"IF($B952=\"N\",\"\",IF(AND('Enrollment Form'!$C959=\"ROC\",'Enrollment Form'!$DS959<>\"\"),\"Y\",IF(AND('Enrollment Form'!$C959=\"ROC\",'Enrollment Form'!$DS959=\"\"),\"N\",IF(AND('Enrollment Form'!$C959=\"Enroll\",'Enrollment Form'!$B959=\"Subscriber\",'Enrollment Form'!$CX959=\"No\",'Enrollment Form'!$DS959=\"\"),\"N\",IF(AND('Enrollment Form'!$C959=\"Enroll\",'Enrollment Form'!$B959=\"Subscriber\",'Enrollment Form'!$CX959=\"Yes\"),\"-\",\"Y\")))))","v":""},{"$f":"IF('Enrollment Form'!AH959=\"\",\"\",IF(ISERROR(SEARCH(\".\",'Enrollment Form'!AH959,SEARCH(\"@\",'Enrollment Form'!AH959))),\"N\",\"Y\"))","v":""},{"$f":"IF(OR($B952=\"N\",'Enrollment Form'!$G959=\"\"),\"\",IF('Enrollment Form'!$B959<>\"Subscriber\",\"-\",IF(COUNTIF('Enrollment Form'!$AV959:$AW959,\"Yes\")=2,\"N\",\"Y\")))","v":""},{"$f":"IF(OR('Enrollment Form'!$CJ959=\"\",'Enrollment Form'!$CJ959=\"No\"),\"-\",IF(AND('Enrollment Form'!$CJ959=\"Yes\",'Enrollment Form'!$CK959=\"\"),\"N\",\"Y\"))","v":"-"},{"$f":"IF(OR('Enrollment Form'!$CL959=\"\",'Enrollment Form'!$CL959=\"No\"),\"-\",IF(AND('Enrollment Form'!$CL959=\"Yes\",'Enrollment Form'!$CM959=\"\"),\"N\",\"Y\"))","v":"-"},{"$f":"IF(OR('Enrollment Form'!$CN959=\"\",'Enrollment Form'!$CN959=\"No\"),\"-\",IF(AND('Enrollment Form'!$CN959=\"Yes\",'Enrollment Form'!$CO959=\"\"),\"N\",\"Y\"))","v":"-"},{"$f":"IF(OR('Enrollment Form'!$CN959=\"\",'Enrollment Form'!$CN959=\"No\"),\"-\",IF(AND('Enrollment Form'!$CN959=\"Yes\",'Enrollment Form'!$CP959=\"\"),\"N\",\"Y\"))","v":"-"},{"$f":"IF('Enrollment Form'!B959<>\"Subscriber\",\"-\",IF(AND('Enrollment Form'!B959=\"Subscriber\",'Enrollment Form'!C959=\"Enroll\",'Enrollment Form'!AA959=\"\"),\"N\",\"Y\"))","v":"-"},{"$f":"IF(OR('Enrollment Form'!B959=\"Subscriber\",'Enrollment Form'!B959=\"\"),\"-\",IF('Enrollment Form'!BP959=\"\",\"N\",\"Y\"))","v":"-"},{"$f":"IF('Enrollment Form'!B959<>\"Subscriber\",\"-\",IF(AND('Enrollment Form'!B959=\"Subscriber\",'Enrollment Form'!G959=\"\"),\"N\",\"Y\"))","v":"-"},{"$f":"IF('Enrollment Form'!A959=\"\",\"\",IF('Enrollment Form'!B959=\"Subscriber\",\"-\",IF(AND('Enrollment Form'!B959<>\"Subscriber\",'Enrollment Form'!G959='Enrollment Form'!H959),\"N\",\"Y\")))","v":""},0]
[960,{"$f":"IF('Enrollment Form'!$A960<>\"\",\"Y\",\"N\")","v":"N"},{"$f":"IF(AND('Enrollment Form'!$B960=\"\",'Enrollment Form'!$C960<>\"\"),\"N\",IF($B953=\"N\",\"\",\"Y\"))","v":""},{"$f":"IF(OR($B953=\"N\",'Enrollment Form'!G960=\"\"),\"\",IF('Enrollment Form'!$B960<>\"Subscriber\",\"\",IF('Enrollment Form'!$G960='Enrollment Form'!$H960,\"Y\",\"N\")))","v":""},{"$f":"IF($B953=\"N\",\"\",IF(AND(COUNTIFS('Enrollment Form'!$H$11:$H$1000,'Enrollment Form'!$H960,'Enrollment Form'!$B$11:$B$1000,'Enrollment Form'!$B960)>1,'Enrollment Form'!$H960<>\"\"),\"N\",\"Y\"))","v":""},{"$f":"IF($B953=\"N\",\"\",IF(LEN('Enrollment Form'!$Y960)=0,\"\",IF(LEN('Enrollment Form'!$Y960)<>5,\"N\",\"Y\")))","v":""},{"$f":"IF($B953=\"N\",\"\",IF(LEN('Enrollment Form'!$AD960=0),\"\",IF(LEN('Enrollment Form'!$AD960)<>5,\"N\",\"Y\")))","v":""},{"$f":"IF($B953=\"N\",\"\",IF(LEN('Enrollment Form'!$BS960=0),\"\",IF(LEN('Enrollment Form'!$BS960)<>5,\"N\",\"Y\")))","v":""},{"$f":"IF($B953=\"N\",\"\",IF(LEN('Enrollment Form'!$AE960)=0,\"\",IF(LEN('Enrollment Form'!$AE960)<>10,\"N\",\"Y\")))","v":""},{"$f":"IF($B953=\"N\",\"\",IF(LEN('Enrollment Form'!$AF960)=0,\"\",IF(LEN('Enrollment Form'!$AF960)<>10,\"N\",\"Y\")))","v":""},{"$f":"IF('Enrollment Form'!$O960<>\"Graded\",\"-\",IF(AND('Enrollment Form'!$O960=\"Graded\",'Enrollment Form'!$AR960<>\"\"),\"Y\",\"N\"))","v":"-"},{"$f":"IF($B953=\"N\",\"\",IF(OR('Enrollment Form'!$B960<>\"Subscriber\",'Enrollment Form'!$C960=\"ROC\"),\"-\",IF(AND('Enrollment Form'!$B960=\"Subscriber\",'Enrollment Form'!$C960=\"Enroll\",'Enrollment Form'!$AJ960<>\"\"),\"Y\",\"N\")))","v":""},{"$f":"IF($B953=\"N\",\"\",IF(OR('Enrollment Form'!$B960<>\"Subscriber\",'Enrollment Form'!$C960=\"ROC\"),\"-\",IF(AND('Enrollment Form'!$B960=\"Subscriber\",'Enrollment Form'!$C960=\"Enroll\",'Enrollment Form'!$AK960<>\"\"),\"Y\",\"N\")))","v":""},{"$f":"IF($B953=\"N\",\"\",IF(OR('Enrollment Form'!$B960<>\"Subscriber\",'Enrollment Form'!$C960=\"ROC\"),\"-\",IF(AND('Enrollment Form'!$B960=\"Subscriber\",'Enrollment Form'!$C960=\"Enroll\",'Enrollment Form'!$AL960<>\"\"),\"Y\",\"N\")))","v":""},{"$f":"IF($B953=\"N\",\"\",IF(OR('Enrollment Form'!$B960<>\"Subscriber\",'Enrollment Form'!$C960=\"ROC\"),\"-\",IF(AND('Enrollment Form'!$B960=\"Subscriber\",'Enrollment Form'!$C960=\"Enroll\",'Enrollment Form'!$AP960<>\"\"),\"Y\",\"N\")))","v":""},{"$f":"IF($B953=\"N\",\"\",IF(OR('Enrollment Form'!$B960<>\"Subscriber\",'Enrollment Form'!$C960=\"ROC\"),\"-\",IF(AND('Enrollment Form'!$B960=\"Subscriber\",'Enrollment Form'!$C960=\"Enroll\",'Enrollment Form'!$AQ960<>\"\"),\"Y\",\"N\")))","v":""},{"$f":"IF($B953=\"N\",\"\",IF(OR('Enrollment Form'!$B960<>\"Subscriber\",'Enrollment Form'!$C960=\"ROC\"),\"-\",IF(AND('Enrollment Form'!$B960=\"Subscriber\",'Enrollment Form'!$C960=\"Enroll\",'Enrollment Form'!$AS960<>\"\"),\"Y\",\"N\")))","v":""},{"$f":"IF($B953=\"N\",\"\",IF($Q953=\"-\",\"-\",IF(AND($Q953=\"Y\",'Enrollment Form'!$AS960=\"No\"),\"-\",IF(AND($Q953=\"Y\",'Enrollment Form'!$AS960=\"Yes\",'Enrollment Form'!$AT960<>\"\"),\"Y\",\"N\"))))","v":""},{"$f":"IF($B953=\"N\",\"\",IF(OR('Enrollment Form'!$B960<>\"Subscriber\",'Enrollment Form'!$C960=\"ROC\"),\"-\",IF(AND('Enrollment Form'!$B960=\"Subscriber\",'Enrollment Form'!$C960=\"Enroll\",'Enrollment Form'!$CV960<>\"\"),\"Y\",\"N\")))","v":""},{"$f":"IF($B953=\"N\",\"\",IF($S953=\"-\",\"-\",IF(AND($S953=\"Y\",'Enrollment Form'!$CV960=\"No\"),\"-\",IF(AND($S953=\"Y\",'Enrollment Form'!$CV960=\"Yes\",'Enrollment Form'!$CW960<>\"\"),\"Y\",\"N\"))))","v":""},{"$f":"IF(OR('Enrollment Form'!$AY960=\"Yes\",'Enrollment Form'!$AY960=\"\"),\"-\",IF(OR(AND('Enrollment Form'!$AY960=\"No\",ISERROR(FIND(\"HMO\",VLOOKUP('Enrollment Form'!G960,'Enrollment Form'!H$11:J$1000,3,FALSE),1))=FALSE,COUNTA('Enrollment Form'!$AZ960:$BC960)=4),AND('Enrollment Form'!$AY960=\"No\",ISERROR(FIND(\"HMO\",VLOOKUP('Enrollment Form'!G960,'Enrollment Form'!H$11:J$1000,3,FALSE),1))=FALSE,COUNTA('Enrollment Form'!$BT960:$BW960)=4)),\"Y\",\"N\"))","v":"-"},{"$f":"IF($B953=\"N\",\"\",IF('Enrollment Form'!$B960=\"Subscriber\",\"-\",IF(COUNTA('Enrollment Form'!$BL960,'Enrollment Form'!$BN960)=2,\"Y\",\"N\")))","v":""},{"$f":"IF($B953=\"N\",\"\",IF(OR('Enrollment Form'!$AX960=\"\",'Enrollment Form'!$AX960=\"No\"),\"-\",IF(AND('Enrollment Form'!$AX960=\"Yes\",COUNTA('Enrollment Form'!$CR960)=1),\"Y\",\"N\")))","v":""},{"$f":"IF(OR('Enrollment Form'!$CR960=\"\",'Enrollment Form'!$CR960=\"No\"),\"-\",IF(COUNTA('Enrollment Form'!$CT960:$CU960)=2,\"Y\",\"N\"))","v":"-"},{"$f":"IF($B953=\"N\",\"\",IF(COUNTIF('Enrollment Form'!$DG960:$DP960,\"Other\")=COUNTA('Enrollment Form'!$DK960,'Enrollment Form'!$DH960,'Enrollment Form'!$DN960,'Enrollment Form'!$DQ960),\"Y\",\"N\"))","v":""},{"$f":"IF($B953=\"N\",\"\",IF(OR('Enrollment Form'!B960<>\"Subscriber\",'Enrollment Form'!C960=\"ROC\",COUNTIF('Enrollment Form'!AV960:AW960,\"Yes\")>=1),\"-\",IF(AND('Enrollment Form'!C960=\"Enroll\",COUNTIF('Enrollment Form'!AV960:AW960,\"No\")=2,'Enrollment Form'!AX960=\"\"),\"N\",\"Y\")))","v":""},{"$f":"IF(OR(B953=\"N\",'Enrollment Form'!B960<>\"Subscriber\",'Enrollment Form'!C960=\"ROC\",'Enrollment Form'!O960<>\"Multiple of Salary\"),\"-\",IF(COUNTA('Enrollment Form'!T960:U960)<2,\"N\",\"Y\"))","v":"-"},{"$f":"IF(B953=\"N\",\"\",IF(OR('Enrollment Form'!C960=\"ROC\",'Enrollment Form'!B960<>\"Subscriber\",'Enrollment Form'!O960=\"Waive\",'Enrollment Form'!O960=\"\"),\"-\",IF('Enrollment Form'!P960=\"\",\"N\",\"Y\")))","v":""},{"$f":"IF($B953=\"N\",\"\",IF(AND('Enrollment Form'!$C960=\"ROC\",'Enrollment Form'!$DR960<>\"\"),\"Y\",IF(AND('Enrollment Form'!$C960=\"ROC\",'Enrollment Form'!$DR960=\"\"),\"N\",IF(AND('Enrollment Form'!$C960=\"Enroll\",'Enrollment Form'!$B960=\"Subscriber\",'Enrollment Form'!$CX960=\"No\",'Enrollment Form'!$DR960=\"\"),\"N\",IF(AND('Enrollment Form'!$C960=\"Enroll\",'Enrollment Form'!$B960=\"Subscriber\",'Enrollment Form'!$CX960=\"Yes\"),\"-\",\"Y\")))))","v":""},{"$f":"IF($B953=\"N\",\"\",IF(AND('Enrollment Form'!$C960=\"ROC\",'Enrollment Form'!$DS960<>\"\"),\"Y\",IF(AND('Enrollment Form'!$C960=\"ROC\",'Enrollment Form'!$DS960=\"\"),\"N\",IF(AND('Enrollment Form'!$C960=\"Enroll\",'Enrollment Form'!$B960=\"Subscriber\",'Enrollment Form'!$CX960=\"No\",'Enrollment Form'!$DS960=\"\"),\"N\",IF(AND('Enrollment Form'!$C960=\"Enroll\",'Enrollment Form'!$B960=\"Subscriber\",'Enrollment Form'!$CX960=\"Yes\"),\"-\",\"Y\")))))","v":""},{"$f":"IF('Enrollment Form'!AH960=\"\",\"\",IF(ISERROR(SEARCH(\".\",'Enrollment Form'!AH960,SEARCH(\"@\",'Enrollment Form'!AH960))),\"N\",\"Y\"))","v":""},{"$f":"IF(OR($B953=\"N\",'Enrollment Form'!$G960=\"\"),\"\",IF('Enrollment Form'!$B960<>\"Subscriber\",\"-\",IF(COUNTIF('Enrollment Form'!$AV960:$AW960,\"Yes\")=2,\"N\",\"Y\")))","v":""},{"$f":"IF(OR('Enrollment Form'!$CJ960=\"\",'Enrollment Form'!$CJ960=\"No\"),\"-\",IF(AND('Enrollment Form'!$CJ960=\"Yes\",'Enrollment Form'!$CK960=\"\"),\"N\",\"Y\"))","v":"-"},{"$f":"IF(OR('Enrollment Form'!$CL960=\"\",'Enrollment Form'!$CL960=\"No\"),\"-\",IF(AND('Enrollment Form'!$CL960=\"Yes\",'Enrollment Form'!$CM960=\"\"),\"N\",\"Y\"))","v":"-"},{"$f":"IF(OR('Enrollment Form'!$CN960=\"\",'Enrollment Form'!$CN960=\"No\"),\"-\",IF(AND('Enrollment Form'!$CN960=\"Yes\",'Enrollment Form'!$CO960=\"\"),\"N\",\"Y\"))","v":"-"},{"$f":"IF(OR('Enrollment Form'!$CN960=\"\",'Enrollment Form'!$CN960=\"No\"),\"-\",IF(AND('Enrollment Form'!$CN960=\"Yes\",'Enrollment Form'!$CP960=\"\"),\"N\",\"Y\"))","v":"-"},{"$f":"IF('Enrollment Form'!B960<>\"Subscriber\",\"-\",IF(AND('Enrollment Form'!B960=\"Subscriber\",'Enrollment Form'!C960=\"Enroll\",'Enrollment Form'!AA960=\"\"),\"N\",\"Y\"))","v":"-"},{"$f":"IF(OR('Enrollment Form'!B960=\"Subscriber\",'Enrollment Form'!B960=\"\"),\"-\",IF('Enrollment Form'!BP960=\"\",\"N\",\"Y\"))","v":"-"},{"$f":"IF('Enrollment Form'!B960<>\"Subscriber\",\"-\",IF(AND('Enrollment Form'!B960=\"Subscriber\",'Enrollment Form'!G960=\"\"),\"N\",\"Y\"))","v":"-"},{"$f":"IF('Enrollment Form'!A960=\"\",\"\",IF('Enrollment Form'!B960=\"Subscriber\",\"-\",IF(AND('Enrollment Form'!B960<>\"Subscriber\",'Enrollment Form'!G960='Enrollment Form'!H960),\"N\",\"Y\")))","v":""},0]
[961,{"$f":"IF('Enrollment Form'!$A961<>\"\",\"Y\",\"N\")","v":"N"},{"$f":"IF(AND('Enrollment Form'!$B961=\"\",'Enrollment Form'!$C961<>\"\"),\"N\",IF($B954=\"N\",\"\",\"Y\"))","v":""},{"$f":"IF(OR($B954=\"N\",'Enrollment Form'!G961=\"\"),\"\",IF('Enrollment Form'!$B961<>\"Subscriber\",\"\",IF('Enrollment Form'!$G961='Enrollment Form'!$H961,\"Y\",\"N\")))","v":""},{"$f":"IF($B954=\"N\",\"\",IF(AND(COUNTIFS('Enrollment Form'!$H$11:$H$1000,'Enrollment Form'!$H961,'Enrollment Form'!$B$11:$B$1000,'Enrollment Form'!$B961)>1,'Enrollment Form'!$H961<>\"\"),\"N\",\"Y\"))","v":""},{"$f":"IF($B954=\"N\",\"\",IF(LEN('Enrollment Form'!$Y961)=0,\"\",IF(LEN('Enrollment Form'!$Y961)<>5,\"N\",\"Y\")))","v":""},{"$f":"IF($B954=\"N\",\"\",IF(LEN('Enrollment Form'!$AD961=0),\"\",IF(LEN('Enrollment Form'!$AD961)<>5,\"N\",\"Y\")))","v":""},{"$f":"IF($B954=\"N\",\"\",IF(LEN('Enrollment Form'!$BS961=0),\"\",IF(LEN('Enrollment Form'!$BS961)<>5,\"N\",\"Y\")))","v":""},{"$f":"IF($B954=\"N\",\"\",IF(LEN('Enrollment Form'!$AE961)=0,\"\",IF(LEN('Enrollment Form'!$AE961)<>10,\"N\",\"Y\")))","v":""},{"$f":"IF($B954=\"N\",\"\",IF(LEN('Enrollment Form'!$AF961)=0,\"\",IF(LEN('Enrollment Form'!$AF961)<>10,\"N\",\"Y\")))","v":""},{"$f":"IF('Enrollment Form'!$O961<>\"Graded\",\"-\",IF(AND('Enrollment Form'!$O961=\"Graded\",'Enrollment Form'!$AR961<>\"\"),\"Y\",\"N\"))","v":"-"},{"$f":"IF($B954=\"N\",\"\",IF(OR('Enrollment Form'!$B961<>\"Subscriber\",'Enrollment Form'!$C961=\"ROC\"),\"-\",IF(AND('Enrollment Form'!$B961=\"Subscriber\",'Enrollment Form'!$C961=\"Enroll\",'Enrollment Form'!$AJ961<>\"\"),\"Y\",\"N\")))","v":""},{"$f":"IF($B954=\"N\",\"\",IF(OR('Enrollment Form'!$B961<>\"Subscriber\",'Enrollment Form'!$C961=\"ROC\"),\"-\",IF(AND('Enrollment Form'!$B961=\"Subscriber\",'Enrollment Form'!$C961=\"Enroll\",'Enrollment Form'!$AK961<>\"\"),\"Y\",\"N\")))","v":""},{"$f":"IF($B954=\"N\",\"\",IF(OR('Enrollment Form'!$B961<>\"Subscriber\",'Enrollment Form'!$C961=\"ROC\"),\"-\",IF(AND('Enrollment Form'!$B961=\"Subscriber\",'Enrollment Form'!$C961=\"Enroll\",'Enrollment Form'!$AL961<>\"\"),\"Y\",\"N\")))","v":""},{"$f":"IF($B954=\"N\",\"\",IF(OR('Enrollment Form'!$B961<>\"Subscriber\",'Enrollment Form'!$C961=\"ROC\"),\"-\",IF(AND('Enrollment Form'!$B961=\"Subscriber\",'Enrollment Form'!$C961=\"Enroll\",'Enrollment Form'!$AP961<>\"\"),\"Y\",\"N\")))","v":""},{"$f":"IF($B954=\"N\",\"\",IF(OR('Enrollment Form'!$B961<>\"Subscriber\",'Enrollment Form'!$C961=\"ROC\"),\"-\",IF(AND('Enrollment Form'!$B961=\"Subscriber\",'Enrollment Form'!$C961=\"Enroll\",'Enrollment Form'!$AQ961<>\"\"),\"Y\",\"N\")))","v":""},{"$f":"IF($B954=\"N\",\"\",IF(OR('Enrollment Form'!$B961<>\"Subscriber\",'Enrollment Form'!$C961=\"ROC\"),\"-\",IF(AND('Enrollment Form'!$B961=\"Subscriber\",'Enrollment Form'!$C961=\"Enroll\",'Enrollment Form'!$AS961<>\"\"),\"Y\",\"N\")))","v":""},{"$f":"IF($B954=\"N\",\"\",IF($Q954=\"-\",\"-\",IF(AND($Q954=\"Y\",'Enrollment Form'!$AS961=\"No\"),\"-\",IF(AND($Q954=\"Y\",'Enrollment Form'!$AS961=\"Yes\",'Enrollment Form'!$AT961<>\"\"),\"Y\",\"N\"))))","v":""},{"$f":"IF($B954=\"N\",\"\",IF(OR('Enrollment Form'!$B961<>\"Subscriber\",'Enrollment Form'!$C961=\"ROC\"),\"-\",IF(AND('Enrollment Form'!$B961=\"Subscriber\",'Enrollment Form'!$C961=\"Enroll\",'Enrollment Form'!$CV961<>\"\"),\"Y\",\"N\")))","v":""},{"$f":"IF($B954=\"N\",\"\",IF($S954=\"-\",\"-\",IF(AND($S954=\"Y\",'Enrollment Form'!$CV961=\"No\"),\"-\",IF(AND($S954=\"Y\",'Enrollment Form'!$CV961=\"Yes\",'Enrollment Form'!$CW961<>\"\"),\"Y\",\"N\"))))","v":""},{"$f":"IF(OR('Enrollment Form'!$AY961=\"Yes\",'Enrollment Form'!$AY961=\"\"),\"-\",IF(OR(AND('Enrollment Form'!$AY961=\"No\",ISERROR(FIND(\"HMO\",VLOOKUP('Enrollment Form'!G961,'Enrollment Form'!H$11:J$1000,3,FALSE),1))=FALSE,COUNTA('Enrollment Form'!$AZ961:$BC961)=4),AND('Enrollment Form'!$AY961=\"No\",ISERROR(FIND(\"HMO\",VLOOKUP('Enrollment Form'!G961,'Enrollment Form'!H$11:J$1000,3,FALSE),1))=FALSE,COUNTA('Enrollment Form'!$BT961:$BW961)=4)),\"Y\",\"N\"))","v":"-"},{"$f":"IF($B954=\"N\",\"\",IF('Enrollment Form'!$B961=\"Subscriber\",\"-\",IF(COUNTA('Enrollment Form'!$BL961,'Enrollment Form'!$BN961)=2,\"Y\",\"N\")))","v":""},{"$f":"IF($B954=\"N\",\"\",IF(OR('Enrollment Form'!$AX961=\"\",'Enrollment Form'!$AX961=\"No\"),\"-\",IF(AND('Enrollment Form'!$AX961=\"Yes\",COUNTA('Enrollment Form'!$CR961)=1),\"Y\",\"N\")))","v":""},{"$f":"IF(OR('Enrollment Form'!$CR961=\"\",'Enrollment Form'!$CR961=\"No\"),\"-\",IF(COUNTA('Enrollment Form'!$CT961:$CU961)=2,\"Y\",\"N\"))","v":"-"},{"$f":"IF($B954=\"N\",\"\",IF(COUNTIF('Enrollment Form'!$DG961:$DP961,\"Other\")=COUNTA('Enrollment Form'!$DK961,'Enrollment Form'!$DH961,'Enrollment Form'!$DN961,'Enrollment Form'!$DQ961),\"Y\",\"N\"))","v":""},{"$f":"IF($B954=\"N\",\"\",IF(OR('Enrollment Form'!B961<>\"Subscriber\",'Enrollment Form'!C961=\"ROC\",COUNTIF('Enrollment Form'!AV961:AW961,\"Yes\")>=1),\"-\",IF(AND('Enrollment Form'!C961=\"Enroll\",COUNTIF('Enrollment Form'!AV961:AW961,\"No\")=2,'Enrollment Form'!AX961=\"\"),\"N\",\"Y\")))","v":""},{"$f":"IF(OR(B954=\"N\",'Enrollment Form'!B961<>\"Subscriber\",'Enrollment Form'!C961=\"ROC\",'Enrollment Form'!O961<>\"Multiple of Salary\"),\"-\",IF(COUNTA('Enrollment Form'!T961:U961)<2,\"N\",\"Y\"))","v":"-"},{"$f":"IF(B954=\"N\",\"\",IF(OR('Enrollment Form'!C961=\"ROC\",'Enrollment Form'!B961<>\"Subscriber\",'Enrollment Form'!O961=\"Waive\",'Enrollment Form'!O961=\"\"),\"-\",IF('Enrollment Form'!P961=\"\",\"N\",\"Y\")))","v":""},{"$f":"IF($B954=\"N\",\"\",IF(AND('Enrollment Form'!$C961=\"ROC\",'Enrollment Form'!$DR961<>\"\"),\"Y\",IF(AND('Enrollment Form'!$C961=\"ROC\",'Enrollment Form'!$DR961=\"\"),\"N\",IF(AND('Enrollment Form'!$C961=\"Enroll\",'Enrollment Form'!$B961=\"Subscriber\",'Enrollment Form'!$CX961=\"No\",'Enrollment Form'!$DR961=\"\"),\"N\",IF(AND('Enrollment Form'!$C961=\"Enroll\",'Enrollment Form'!$B961=\"Subscriber\",'Enrollment Form'!$CX961=\"Yes\"),\"-\",\"Y\")))))","v":""},{"$f":"IF($B954=\"N\",\"\",IF(AND('Enrollment Form'!$C961=\"ROC\",'Enrollment Form'!$DS961<>\"\"),\"Y\",IF(AND('Enrollment Form'!$C961=\"ROC\",'Enrollment Form'!$DS961=\"\"),\"N\",IF(AND('Enrollment Form'!$C961=\"Enroll\",'Enrollment Form'!$B961=\"Subscriber\",'Enrollment Form'!$CX961=\"No\",'Enrollment Form'!$DS961=\"\"),\"N\",IF(AND('Enrollment Form'!$C961=\"Enroll\",'Enrollment Form'!$B961=\"Subscriber\",'Enrollment Form'!$CX961=\"Yes\"),\"-\",\"Y\")))))","v":""},{"$f":"IF('Enrollment Form'!AH961=\"\",\"\",IF(ISERROR(SEARCH(\".\",'Enrollment Form'!AH961,SEARCH(\"@\",'Enrollment Form'!AH961))),\"N\",\"Y\"))","v":""},{"$f":"IF(OR($B954=\"N\",'Enrollment Form'!$G961=\"\"),\"\",IF('Enrollment Form'!$B961<>\"Subscriber\",\"-\",IF(COUNTIF('Enrollment Form'!$AV961:$AW961,\"Yes\")=2,\"N\",\"Y\")))","v":""},{"$f":"IF(OR('Enrollment Form'!$CJ961=\"\",'Enrollment Form'!$CJ961=\"No\"),\"-\",IF(AND('Enrollment Form'!$CJ961=\"Yes\",'Enrollment Form'!$CK961=\"\"),\"N\",\"Y\"))","v":"-"},{"$f":"IF(OR('Enrollment Form'!$CL961=\"\",'Enrollment Form'!$CL961=\"No\"),\"-\",IF(AND('Enrollment Form'!$CL961=\"Yes\",'Enrollment Form'!$CM961=\"\"),\"N\",\"Y\"))","v":"-"},{"$f":"IF(OR('Enrollment Form'!$CN961=\"\",'Enrollment Form'!$CN961=\"No\"),\"-\",IF(AND('Enrollment Form'!$CN961=\"Yes\",'Enrollment Form'!$CO961=\"\"),\"N\",\"Y\"))","v":"-"},{"$f":"IF(OR('Enrollment Form'!$CN961=\"\",'Enrollment Form'!$CN961=\"No\"),\"-\",IF(AND('Enrollment Form'!$CN961=\"Yes\",'Enrollment Form'!$CP961=\"\"),\"N\",\"Y\"))","v":"-"},{"$f":"IF('Enrollment Form'!B961<>\"Subscriber\",\"-\",IF(AND('Enrollment Form'!B961=\"Subscriber\",'Enrollment Form'!C961=\"Enroll\",'Enrollment Form'!AA961=\"\"),\"N\",\"Y\"))","v":"-"},{"$f":"IF(OR('Enrollment Form'!B961=\"Subscriber\",'Enrollment Form'!B961=\"\"),\"-\",IF('Enrollment Form'!BP961=\"\",\"N\",\"Y\"))","v":"-"},{"$f":"IF('Enrollment Form'!B961<>\"Subscriber\",\"-\",IF(AND('Enrollment Form'!B961=\"Subscriber\",'Enrollment Form'!G961=\"\"),\"N\",\"Y\"))","v":"-"},{"$f":"IF('Enrollment Form'!A961=\"\",\"\",IF('Enrollment Form'!B961=\"Subscriber\",\"-\",IF(AND('Enrollment Form'!B961<>\"Subscriber\",'Enrollment Form'!G961='Enrollment Form'!H961),\"N\",\"Y\")))","v":""},0]
[962,{"$f":"IF('Enrollment Form'!$A962<>\"\",\"Y\",\"N\")","v":"N"},{"$f":"IF(AND('Enrollment Form'!$B962=\"\",'Enrollment Form'!$C962<>\"\"),\"N\",IF($B955=\"N\",\"\",\"Y\"))","v":""},{"$f":"IF(OR($B955=\"N\",'Enrollment Form'!G962=\"\"),\"\",IF('Enrollment Form'!$B962<>\"Subscriber\",\"\",IF('Enrollment Form'!$G962='Enrollment Form'!$H962,\"Y\",\"N\")))","v":""},{"$f":"IF($B955=\"N\",\"\",IF(AND(COUNTIFS('Enrollment Form'!$H$11:$H$1000,'Enrollment Form'!$H962,'Enrollment Form'!$B$11:$B$1000,'Enrollment Form'!$B962)>1,'Enrollment Form'!$H962<>\"\"),\"N\",\"Y\"))","v":""},{"$f":"IF($B955=\"N\",\"\",IF(LEN('Enrollment Form'!$Y962)=0,\"\",IF(LEN('Enrollment Form'!$Y962)<>5,\"N\",\"Y\")))","v":""},{"$f":"IF($B955=\"N\",\"\",IF(LEN('Enrollment Form'!$AD962=0),\"\",IF(LEN('Enrollment Form'!$AD962)<>5,\"N\",\"Y\")))","v":""},{"$f":"IF($B955=\"N\",\"\",IF(LEN('Enrollment Form'!$BS962=0),\"\",IF(LEN('Enrollment Form'!$BS962)<>5,\"N\",\"Y\")))","v":""},{"$f":"IF($B955=\"N\",\"\",IF(LEN('Enrollment Form'!$AE962)=0,\"\",IF(LEN('Enrollment Form'!$AE962)<>10,\"N\",\"Y\")))","v":""},{"$f":"IF($B955=\"N\",\"\",IF(LEN('Enrollment Form'!$AF962)=0,\"\",IF(LEN('Enrollment Form'!$AF962)<>10,\"N\",\"Y\")))","v":""},{"$f":"IF('Enrollment Form'!$O962<>\"Graded\",\"-\",IF(AND('Enrollment Form'!$O962=\"Graded\",'Enrollment Form'!$AR962<>\"\"),\"Y\",\"N\"))","v":"-"},{"$f":"IF($B955=\"N\",\"\",IF(OR('Enrollment Form'!$B962<>\"Subscriber\",'Enrollment Form'!$C962=\"ROC\"),\"-\",IF(AND('Enrollment Form'!$B962=\"Subscriber\",'Enrollment Form'!$C962=\"Enroll\",'Enrollment Form'!$AJ962<>\"\"),\"Y\",\"N\")))","v":""},{"$f":"IF($B955=\"N\",\"\",IF(OR('Enrollment Form'!$B962<>\"Subscriber\",'Enrollment Form'!$C962=\"ROC\"),\"-\",IF(AND('Enrollment Form'!$B962=\"Subscriber\",'Enrollment Form'!$C962=\"Enroll\",'Enrollment Form'!$AK962<>\"\"),\"Y\",\"N\")))","v":""},{"$f":"IF($B955=\"N\",\"\",IF(OR('Enrollment Form'!$B962<>\"Subscriber\",'Enrollment Form'!$C962=\"ROC\"),\"-\",IF(AND('Enrollment Form'!$B962=\"Subscriber\",'Enrollment Form'!$C962=\"Enroll\",'Enrollment Form'!$AL962<>\"\"),\"Y\",\"N\")))","v":""},{"$f":"IF($B955=\"N\",\"\",IF(OR('Enrollment Form'!$B962<>\"Subscriber\",'Enrollment Form'!$C962=\"ROC\"),\"-\",IF(AND('Enrollment Form'!$B962=\"Subscriber\",'Enrollment Form'!$C962=\"Enroll\",'Enrollment Form'!$AP962<>\"\"),\"Y\",\"N\")))","v":""},{"$f":"IF($B955=\"N\",\"\",IF(OR('Enrollment Form'!$B962<>\"Subscriber\",'Enrollment Form'!$C962=\"ROC\"),\"-\",IF(AND('Enrollment Form'!$B962=\"Subscriber\",'Enrollment Form'!$C962=\"Enroll\",'Enrollment Form'!$AQ962<>\"\"),\"Y\",\"N\")))","v":""},{"$f":"IF($B955=\"N\",\"\",IF(OR('Enrollment Form'!$B962<>\"Subscriber\",'Enrollment Form'!$C962=\"ROC\"),\"-\",IF(AND('Enrollment Form'!$B962=\"Subscriber\",'Enrollment Form'!$C962=\"Enroll\",'Enrollment Form'!$AS962<>\"\"),\"Y\",\"N\")))","v":""},{"$f":"IF($B955=\"N\",\"\",IF($Q955=\"-\",\"-\",IF(AND($Q955=\"Y\",'Enrollment Form'!$AS962=\"No\"),\"-\",IF(AND($Q955=\"Y\",'Enrollment Form'!$AS962=\"Yes\",'Enrollment Form'!$AT962<>\"\"),\"Y\",\"N\"))))","v":""},{"$f":"IF($B955=\"N\",\"\",IF(OR('Enrollment Form'!$B962<>\"Subscriber\",'Enrollment Form'!$C962=\"ROC\"),\"-\",IF(AND('Enrollment Form'!$B962=\"Subscriber\",'Enrollment Form'!$C962=\"Enroll\",'Enrollment Form'!$CV962<>\"\"),\"Y\",\"N\")))","v":""},{"$f":"IF($B955=\"N\",\"\",IF($S955=\"-\",\"-\",IF(AND($S955=\"Y\",'Enrollment Form'!$CV962=\"No\"),\"-\",IF(AND($S955=\"Y\",'Enrollment Form'!$CV962=\"Yes\",'Enrollment Form'!$CW962<>\"\"),\"Y\",\"N\"))))","v":""},{"$f":"IF(OR('Enrollment Form'!$AY962=\"Yes\",'Enrollment Form'!$AY962=\"\"),\"-\",IF(OR(AND('Enrollment Form'!$AY962=\"No\",ISERROR(FIND(\"HMO\",VLOOKUP('Enrollment Form'!G962,'Enrollment Form'!H$11:J$1000,3,FALSE),1))=FALSE,COUNTA('Enrollment Form'!$AZ962:$BC962)=4),AND('Enrollment Form'!$AY962=\"No\",ISERROR(FIND(\"HMO\",VLOOKUP('Enrollment Form'!G962,'Enrollment Form'!H$11:J$1000,3,FALSE),1))=FALSE,COUNTA('Enrollment Form'!$BT962:$BW962)=4)),\"Y\",\"N\"))","v":"-"},{"$f":"IF($B955=\"N\",\"\",IF('Enrollment Form'!$B962=\"Subscriber\",\"-\",IF(COUNTA('Enrollment Form'!$BL962,'Enrollment Form'!$BN962)=2,\"Y\",\"N\")))","v":""},{"$f":"IF($B955=\"N\",\"\",IF(OR('Enrollment Form'!$AX962=\"\",'Enrollment Form'!$AX962=\"No\"),\"-\",IF(AND('Enrollment Form'!$AX962=\"Yes\",COUNTA('Enrollment Form'!$CR962)=1),\"Y\",\"N\")))","v":""},{"$f":"IF(OR('Enrollment Form'!$CR962=\"\",'Enrollment Form'!$CR962=\"No\"),\"-\",IF(COUNTA('Enrollment Form'!$CT962:$CU962)=2,\"Y\",\"N\"))","v":"-"},{"$f":"IF($B955=\"N\",\"\",IF(COUNTIF('Enrollment Form'!$DG962:$DP962,\"Other\")=COUNTA('Enrollment Form'!$DK962,'Enrollment Form'!$DH962,'Enrollment Form'!$DN962,'Enrollment Form'!$DQ962),\"Y\",\"N\"))","v":""},{"$f":"IF($B955=\"N\",\"\",IF(OR('Enrollment Form'!B962<>\"Subscriber\",'Enrollment Form'!C962=\"ROC\",COUNTIF('Enrollment Form'!AV962:AW962,\"Yes\")>=1),\"-\",IF(AND('Enrollment Form'!C962=\"Enroll\",COUNTIF('Enrollment Form'!AV962:AW962,\"No\")=2,'Enrollment Form'!AX962=\"\"),\"N\",\"Y\")))","v":""},{"$f":"IF(OR(B955=\"N\",'Enrollment Form'!B962<>\"Subscriber\",'Enrollment Form'!C962=\"ROC\",'Enrollment Form'!O962<>\"Multiple of Salary\"),\"-\",IF(COUNTA('Enrollment Form'!T962:U962)<2,\"N\",\"Y\"))","v":"-"},{"$f":"IF(B955=\"N\",\"\",IF(OR('Enrollment Form'!C962=\"ROC\",'Enrollment Form'!B962<>\"Subscriber\",'Enrollment Form'!O962=\"Waive\",'Enrollment Form'!O962=\"\"),\"-\",IF('Enrollment Form'!P962=\"\",\"N\",\"Y\")))","v":""},{"$f":"IF($B955=\"N\",\"\",IF(AND('Enrollment Form'!$C962=\"ROC\",'Enrollment Form'!$DR962<>\"\"),\"Y\",IF(AND('Enrollment Form'!$C962=\"ROC\",'Enrollment Form'!$DR962=\"\"),\"N\",IF(AND('Enrollment Form'!$C962=\"Enroll\",'Enrollment Form'!$B962=\"Subscriber\",'Enrollment Form'!$CX962=\"No\",'Enrollment Form'!$DR962=\"\"),\"N\",IF(AND('Enrollment Form'!$C962=\"Enroll\",'Enrollment Form'!$B962=\"Subscriber\",'Enrollment Form'!$CX962=\"Yes\"),\"-\",\"Y\")))))","v":""},{"$f":"IF($B955=\"N\",\"\",IF(AND('Enrollment Form'!$C962=\"ROC\",'Enrollment Form'!$DS962<>\"\"),\"Y\",IF(AND('Enrollment Form'!$C962=\"ROC\",'Enrollment Form'!$DS962=\"\"),\"N\",IF(AND('Enrollment Form'!$C962=\"Enroll\",'Enrollment Form'!$B962=\"Subscriber\",'Enrollment Form'!$CX962=\"No\",'Enrollment Form'!$DS962=\"\"),\"N\",IF(AND('Enrollment Form'!$C962=\"Enroll\",'Enrollment Form'!$B962=\"Subscriber\",'Enrollment Form'!$CX962=\"Yes\"),\"-\",\"Y\")))))","v":""},{"$f":"IF('Enrollment Form'!AH962=\"\",\"\",IF(ISERROR(SEARCH(\".\",'Enrollment Form'!AH962,SEARCH(\"@\",'Enrollment Form'!AH962))),\"N\",\"Y\"))","v":""},{"$f":"IF(OR($B955=\"N\",'Enrollment Form'!$G962=\"\"),\"\",IF('Enrollment Form'!$B962<>\"Subscriber\",\"-\",IF(COUNTIF('Enrollment Form'!$AV962:$AW962,\"Yes\")=2,\"N\",\"Y\")))","v":""},{"$f":"IF(OR('Enrollment Form'!$CJ962=\"\",'Enrollment Form'!$CJ962=\"No\"),\"-\",IF(AND('Enrollment Form'!$CJ962=\"Yes\",'Enrollment Form'!$CK962=\"\"),\"N\",\"Y\"))","v":"-"},{"$f":"IF(OR('Enrollment Form'!$CL962=\"\",'Enrollment Form'!$CL962=\"No\"),\"-\",IF(AND('Enrollment Form'!$CL962=\"Yes\",'Enrollment Form'!$CM962=\"\"),\"N\",\"Y\"))","v":"-"},{"$f":"IF(OR('Enrollment Form'!$CN962=\"\",'Enrollment Form'!$CN962=\"No\"),\"-\",IF(AND('Enrollment Form'!$CN962=\"Yes\",'Enrollment Form'!$CO962=\"\"),\"N\",\"Y\"))","v":"-"},{"$f":"IF(OR('Enrollment Form'!$CN962=\"\",'Enrollment Form'!$CN962=\"No\"),\"-\",IF(AND('Enrollment Form'!$CN962=\"Yes\",'Enrollment Form'!$CP962=\"\"),\"N\",\"Y\"))","v":"-"},{"$f":"IF('Enrollment Form'!B962<>\"Subscriber\",\"-\",IF(AND('Enrollment Form'!B962=\"Subscriber\",'Enrollment Form'!C962=\"Enroll\",'Enrollment Form'!AA962=\"\"),\"N\",\"Y\"))","v":"-"},{"$f":"IF(OR('Enrollment Form'!B962=\"Subscriber\",'Enrollment Form'!B962=\"\"),\"-\",IF('Enrollment Form'!BP962=\"\",\"N\",\"Y\"))","v":"-"},{"$f":"IF('Enrollment Form'!B962<>\"Subscriber\",\"-\",IF(AND('Enrollment Form'!B962=\"Subscriber\",'Enrollment Form'!G962=\"\"),\"N\",\"Y\"))","v":"-"},{"$f":"IF('Enrollment Form'!A962=\"\",\"\",IF('Enrollment Form'!B962=\"Subscriber\",\"-\",IF(AND('Enrollment Form'!B962<>\"Subscriber\",'Enrollment Form'!G962='Enrollment Form'!H962),\"N\",\"Y\")))","v":""},0]
[963,{"$f":"IF('Enrollment Form'!$A963<>\"\",\"Y\",\"N\")","v":"N"},{"$f":"IF(AND('Enrollment Form'!$B963=\"\",'Enrollment Form'!$C963<>\"\"),\"N\",IF($B956=\"N\",\"\",\"Y\"))","v":""},{"$f":"IF(OR($B956=\"N\",'Enrollment Form'!G963=\"\"),\"\",IF('Enrollment Form'!$B963<>\"Subscriber\",\"\",IF('Enrollment Form'!$G963='Enrollment Form'!$H963,\"Y\",\"N\")))","v":""},{"$f":"IF($B956=\"N\",\"\",IF(AND(COUNTIFS('Enrollment Form'!$H$11:$H$1000,'Enrollment Form'!$H963,'Enrollment Form'!$B$11:$B$1000,'Enrollment Form'!$B963)>1,'Enrollment Form'!$H963<>\"\"),\"N\",\"Y\"))","v":""},{"$f":"IF($B956=\"N\",\"\",IF(LEN('Enrollment Form'!$Y963)=0,\"\",IF(LEN('Enrollment Form'!$Y963)<>5,\"N\",\"Y\")))","v":""},{"$f":"IF($B956=\"N\",\"\",IF(LEN('Enrollment Form'!$AD963=0),\"\",IF(LEN('Enrollment Form'!$AD963)<>5,\"N\",\"Y\")))","v":""},{"$f":"IF($B956=\"N\",\"\",IF(LEN('Enrollment Form'!$BS963=0),\"\",IF(LEN('Enrollment Form'!$BS963)<>5,\"N\",\"Y\")))","v":""},{"$f":"IF($B956=\"N\",\"\",IF(LEN('Enrollment Form'!$AE963)=0,\"\",IF(LEN('Enrollment Form'!$AE963)<>10,\"N\",\"Y\")))","v":""},{"$f":"IF($B956=\"N\",\"\",IF(LEN('Enrollment Form'!$AF963)=0,\"\",IF(LEN('Enrollment Form'!$AF963)<>10,\"N\",\"Y\")))","v":""},{"$f":"IF('Enrollment Form'!$O963<>\"Graded\",\"-\",IF(AND('Enrollment Form'!$O963=\"Graded\",'Enrollment Form'!$AR963<>\"\"),\"Y\",\"N\"))","v":"-"},{"$f":"IF($B956=\"N\",\"\",IF(OR('Enrollment Form'!$B963<>\"Subscriber\",'Enrollment Form'!$C963=\"ROC\"),\"-\",IF(AND('Enrollment Form'!$B963=\"Subscriber\",'Enrollment Form'!$C963=\"Enroll\",'Enrollment Form'!$AJ963<>\"\"),\"Y\",\"N\")))","v":""},{"$f":"IF($B956=\"N\",\"\",IF(OR('Enrollment Form'!$B963<>\"Subscriber\",'Enrollment Form'!$C963=\"ROC\"),\"-\",IF(AND('Enrollment Form'!$B963=\"Subscriber\",'Enrollment Form'!$C963=\"Enroll\",'Enrollment Form'!$AK963<>\"\"),\"Y\",\"N\")))","v":""},{"$f":"IF($B956=\"N\",\"\",IF(OR('Enrollment Form'!$B963<>\"Subscriber\",'Enrollment Form'!$C963=\"ROC\"),\"-\",IF(AND('Enrollment Form'!$B963=\"Subscriber\",'Enrollment Form'!$C963=\"Enroll\",'Enrollment Form'!$AL963<>\"\"),\"Y\",\"N\")))","v":""},{"$f":"IF($B956=\"N\",\"\",IF(OR('Enrollment Form'!$B963<>\"Subscriber\",'Enrollment Form'!$C963=\"ROC\"),\"-\",IF(AND('Enrollment Form'!$B963=\"Subscriber\",'Enrollment Form'!$C963=\"Enroll\",'Enrollment Form'!$AP963<>\"\"),\"Y\",\"N\")))","v":""},{"$f":"IF($B956=\"N\",\"\",IF(OR('Enrollment Form'!$B963<>\"Subscriber\",'Enrollment Form'!$C963=\"ROC\"),\"-\",IF(AND('Enrollment Form'!$B963=\"Subscriber\",'Enrollment Form'!$C963=\"Enroll\",'Enrollment Form'!$AQ963<>\"\"),\"Y\",\"N\")))","v":""},{"$f":"IF($B956=\"N\",\"\",IF(OR('Enrollment Form'!$B963<>\"Subscriber\",'Enrollment Form'!$C963=\"ROC\"),\"-\",IF(AND('Enrollment Form'!$B963=\"Subscriber\",'Enrollment Form'!$C963=\"Enroll\",'Enrollment Form'!$AS963<>\"\"),\"Y\",\"N\")))","v":""},{"$f":"IF($B956=\"N\",\"\",IF($Q956=\"-\",\"-\",IF(AND($Q956=\"Y\",'Enrollment Form'!$AS963=\"No\"),\"-\",IF(AND($Q956=\"Y\",'Enrollment Form'!$AS963=\"Yes\",'Enrollment Form'!$AT963<>\"\"),\"Y\",\"N\"))))","v":""},{"$f":"IF($B956=\"N\",\"\",IF(OR('Enrollment Form'!$B963<>\"Subscriber\",'Enrollment Form'!$C963=\"ROC\"),\"-\",IF(AND('Enrollment Form'!$B963=\"Subscriber\",'Enrollment Form'!$C963=\"Enroll\",'Enrollment Form'!$CV963<>\"\"),\"Y\",\"N\")))","v":""},{"$f":"IF($B956=\"N\",\"\",IF($S956=\"-\",\"-\",IF(AND($S956=\"Y\",'Enrollment Form'!$CV963=\"No\"),\"-\",IF(AND($S956=\"Y\",'Enrollment Form'!$CV963=\"Yes\",'Enrollment Form'!$CW963<>\"\"),\"Y\",\"N\"))))","v":""},{"$f":"IF(OR('Enrollment Form'!$AY963=\"Yes\",'Enrollment Form'!$AY963=\"\"),\"-\",IF(OR(AND('Enrollment Form'!$AY963=\"No\",ISERROR(FIND(\"HMO\",VLOOKUP('Enrollment Form'!G963,'Enrollment Form'!H$11:J$1000,3,FALSE),1))=FALSE,COUNTA('Enrollment Form'!$AZ963:$BC963)=4),AND('Enrollment Form'!$AY963=\"No\",ISERROR(FIND(\"HMO\",VLOOKUP('Enrollment Form'!G963,'Enrollment Form'!H$11:J$1000,3,FALSE),1))=FALSE,COUNTA('Enrollment Form'!$BT963:$BW963)=4)),\"Y\",\"N\"))","v":"-"},{"$f":"IF($B956=\"N\",\"\",IF('Enrollment Form'!$B963=\"Subscriber\",\"-\",IF(COUNTA('Enrollment Form'!$BL963,'Enrollment Form'!$BN963)=2,\"Y\",\"N\")))","v":""},{"$f":"IF($B956=\"N\",\"\",IF(OR('Enrollment Form'!$AX963=\"\",'Enrollment Form'!$AX963=\"No\"),\"-\",IF(AND('Enrollment Form'!$AX963=\"Yes\",COUNTA('Enrollment Form'!$CR963)=1),\"Y\",\"N\")))","v":""},{"$f":"IF(OR('Enrollment Form'!$CR963=\"\",'Enrollment Form'!$CR963=\"No\"),\"-\",IF(COUNTA('Enrollment Form'!$CT963:$CU963)=2,\"Y\",\"N\"))","v":"-"},{"$f":"IF($B956=\"N\",\"\",IF(COUNTIF('Enrollment Form'!$DG963:$DP963,\"Other\")=COUNTA('Enrollment Form'!$DK963,'Enrollment Form'!$DH963,'Enrollment Form'!$DN963,'Enrollment Form'!$DQ963),\"Y\",\"N\"))","v":""},{"$f":"IF($B956=\"N\",\"\",IF(OR('Enrollment Form'!B963<>\"Subscriber\",'Enrollment Form'!C963=\"ROC\",COUNTIF('Enrollment Form'!AV963:AW963,\"Yes\")>=1),\"-\",IF(AND('Enrollment Form'!C963=\"Enroll\",COUNTIF('Enrollment Form'!AV963:AW963,\"No\")=2,'Enrollment Form'!AX963=\"\"),\"N\",\"Y\")))","v":""},{"$f":"IF(OR(B956=\"N\",'Enrollment Form'!B963<>\"Subscriber\",'Enrollment Form'!C963=\"ROC\",'Enrollment Form'!O963<>\"Multiple of Salary\"),\"-\",IF(COUNTA('Enrollment Form'!T963:U963)<2,\"N\",\"Y\"))","v":"-"},{"$f":"IF(B956=\"N\",\"\",IF(OR('Enrollment Form'!C963=\"ROC\",'Enrollment Form'!B963<>\"Subscriber\",'Enrollment Form'!O963=\"Waive\",'Enrollment Form'!O963=\"\"),\"-\",IF('Enrollment Form'!P963=\"\",\"N\",\"Y\")))","v":""},{"$f":"IF($B956=\"N\",\"\",IF(AND('Enrollment Form'!$C963=\"ROC\",'Enrollment Form'!$DR963<>\"\"),\"Y\",IF(AND('Enrollment Form'!$C963=\"ROC\",'Enrollment Form'!$DR963=\"\"),\"N\",IF(AND('Enrollment Form'!$C963=\"Enroll\",'Enrollment Form'!$B963=\"Subscriber\",'Enrollment Form'!$CX963=\"No\",'Enrollment Form'!$DR963=\"\"),\"N\",IF(AND('Enrollment Form'!$C963=\"Enroll\",'Enrollment Form'!$B963=\"Subscriber\",'Enrollment Form'!$CX963=\"Yes\"),\"-\",\"Y\")))))","v":""},{"$f":"IF($B956=\"N\",\"\",IF(AND('Enrollment Form'!$C963=\"ROC\",'Enrollment Form'!$DS963<>\"\"),\"Y\",IF(AND('Enrollment Form'!$C963=\"ROC\",'Enrollment Form'!$DS963=\"\"),\"N\",IF(AND('Enrollment Form'!$C963=\"Enroll\",'Enrollment Form'!$B963=\"Subscriber\",'Enrollment Form'!$CX963=\"No\",'Enrollment Form'!$DS963=\"\"),\"N\",IF(AND('Enrollment Form'!$C963=\"Enroll\",'Enrollment Form'!$B963=\"Subscriber\",'Enrollment Form'!$CX963=\"Yes\"),\"-\",\"Y\")))))","v":""},{"$f":"IF('Enrollment Form'!AH963=\"\",\"\",IF(ISERROR(SEARCH(\".\",'Enrollment Form'!AH963,SEARCH(\"@\",'Enrollment Form'!AH963))),\"N\",\"Y\"))","v":""},{"$f":"IF(OR($B956=\"N\",'Enrollment Form'!$G963=\"\"),\"\",IF('Enrollment Form'!$B963<>\"Subscriber\",\"-\",IF(COUNTIF('Enrollment Form'!$AV963:$AW963,\"Yes\")=2,\"N\",\"Y\")))","v":""},{"$f":"IF(OR('Enrollment Form'!$CJ963=\"\",'Enrollment Form'!$CJ963=\"No\"),\"-\",IF(AND('Enrollment Form'!$CJ963=\"Yes\",'Enrollment Form'!$CK963=\"\"),\"N\",\"Y\"))","v":"-"},{"$f":"IF(OR('Enrollment Form'!$CL963=\"\",'Enrollment Form'!$CL963=\"No\"),\"-\",IF(AND('Enrollment Form'!$CL963=\"Yes\",'Enrollment Form'!$CM963=\"\"),\"N\",\"Y\"))","v":"-"},{"$f":"IF(OR('Enrollment Form'!$CN963=\"\",'Enrollment Form'!$CN963=\"No\"),\"-\",IF(AND('Enrollment Form'!$CN963=\"Yes\",'Enrollment Form'!$CO963=\"\"),\"N\",\"Y\"))","v":"-"},{"$f":"IF(OR('Enrollment Form'!$CN963=\"\",'Enrollment Form'!$CN963=\"No\"),\"-\",IF(AND('Enrollment Form'!$CN963=\"Yes\",'Enrollment Form'!$CP963=\"\"),\"N\",\"Y\"))","v":"-"},{"$f":"IF('Enrollment Form'!B963<>\"Subscriber\",\"-\",IF(AND('Enrollment Form'!B963=\"Subscriber\",'Enrollment Form'!C963=\"Enroll\",'Enrollment Form'!AA963=\"\"),\"N\",\"Y\"))","v":"-"},{"$f":"IF(OR('Enrollment Form'!B963=\"Subscriber\",'Enrollment Form'!B963=\"\"),\"-\",IF('Enrollment Form'!BP963=\"\",\"N\",\"Y\"))","v":"-"},{"$f":"IF('Enrollment Form'!B963<>\"Subscriber\",\"-\",IF(AND('Enrollment Form'!B963=\"Subscriber\",'Enrollment Form'!G963=\"\"),\"N\",\"Y\"))","v":"-"},{"$f":"IF('Enrollment Form'!A963=\"\",\"\",IF('Enrollment Form'!B963=\"Subscriber\",\"-\",IF(AND('Enrollment Form'!B963<>\"Subscriber\",'Enrollment Form'!G963='Enrollment Form'!H963),\"N\",\"Y\")))","v":""},0]
[964,{"$f":"IF('Enrollment Form'!$A964<>\"\",\"Y\",\"N\")","v":"N"},{"$f":"IF(AND('Enrollment Form'!$B964=\"\",'Enrollment Form'!$C964<>\"\"),\"N\",IF($B957=\"N\",\"\",\"Y\"))","v":""},{"$f":"IF(OR($B957=\"N\",'Enrollment Form'!G964=\"\"),\"\",IF('Enrollment Form'!$B964<>\"Subscriber\",\"\",IF('Enrollment Form'!$G964='Enrollment Form'!$H964,\"Y\",\"N\")))","v":""},{"$f":"IF($B957=\"N\",\"\",IF(AND(COUNTIFS('Enrollment Form'!$H$11:$H$1000,'Enrollment Form'!$H964,'Enrollment Form'!$B$11:$B$1000,'Enrollment Form'!$B964)>1,'Enrollment Form'!$H964<>\"\"),\"N\",\"Y\"))","v":""},{"$f":"IF($B957=\"N\",\"\",IF(LEN('Enrollment Form'!$Y964)=0,\"\",IF(LEN('Enrollment Form'!$Y964)<>5,\"N\",\"Y\")))","v":""},{"$f":"IF($B957=\"N\",\"\",IF(LEN('Enrollment Form'!$AD964=0),\"\",IF(LEN('Enrollment Form'!$AD964)<>5,\"N\",\"Y\")))","v":""},{"$f":"IF($B957=\"N\",\"\",IF(LEN('Enrollment Form'!$BS964=0),\"\",IF(LEN('Enrollment Form'!$BS964)<>5,\"N\",\"Y\")))","v":""},{"$f":"IF($B957=\"N\",\"\",IF(LEN('Enrollment Form'!$AE964)=0,\"\",IF(LEN('Enrollment Form'!$AE964)<>10,\"N\",\"Y\")))","v":""},{"$f":"IF($B957=\"N\",\"\",IF(LEN('Enrollment Form'!$AF964)=0,\"\",IF(LEN('Enrollment Form'!$AF964)<>10,\"N\",\"Y\")))","v":""},{"$f":"IF('Enrollment Form'!$O964<>\"Graded\",\"-\",IF(AND('Enrollment Form'!$O964=\"Graded\",'Enrollment Form'!$AR964<>\"\"),\"Y\",\"N\"))","v":"-"},{"$f":"IF($B957=\"N\",\"\",IF(OR('Enrollment Form'!$B964<>\"Subscriber\",'Enrollment Form'!$C964=\"ROC\"),\"-\",IF(AND('Enrollment Form'!$B964=\"Subscriber\",'Enrollment Form'!$C964=\"Enroll\",'Enrollment Form'!$AJ964<>\"\"),\"Y\",\"N\")))","v":""},{"$f":"IF($B957=\"N\",\"\",IF(OR('Enrollment Form'!$B964<>\"Subscriber\",'Enrollment Form'!$C964=\"ROC\"),\"-\",IF(AND('Enrollment Form'!$B964=\"Subscriber\",'Enrollment Form'!$C964=\"Enroll\",'Enrollment Form'!$AK964<>\"\"),\"Y\",\"N\")))","v":""},{"$f":"IF($B957=\"N\",\"\",IF(OR('Enrollment Form'!$B964<>\"Subscriber\",'Enrollment Form'!$C964=\"ROC\"),\"-\",IF(AND('Enrollment Form'!$B964=\"Subscriber\",'Enrollment Form'!$C964=\"Enroll\",'Enrollment Form'!$AL964<>\"\"),\"Y\",\"N\")))","v":""},{"$f":"IF($B957=\"N\",\"\",IF(OR('Enrollment Form'!$B964<>\"Subscriber\",'Enrollment Form'!$C964=\"ROC\"),\"-\",IF(AND('Enrollment Form'!$B964=\"Subscriber\",'Enrollment Form'!$C964=\"Enroll\",'Enrollment Form'!$AP964<>\"\"),\"Y\",\"N\")))","v":""},{"$f":"IF($B957=\"N\",\"\",IF(OR('Enrollment Form'!$B964<>\"Subscriber\",'Enrollment Form'!$C964=\"ROC\"),\"-\",IF(AND('Enrollment Form'!$B964=\"Subscriber\",'Enrollment Form'!$C964=\"Enroll\",'Enrollment Form'!$AQ964<>\"\"),\"Y\",\"N\")))","v":""},{"$f":"IF($B957=\"N\",\"\",IF(OR('Enrollment Form'!$B964<>\"Subscriber\",'Enrollment Form'!$C964=\"ROC\"),\"-\",IF(AND('Enrollment Form'!$B964=\"Subscriber\",'Enrollment Form'!$C964=\"Enroll\",'Enrollment Form'!$AS964<>\"\"),\"Y\",\"N\")))","v":""},{"$f":"IF($B957=\"N\",\"\",IF($Q957=\"-\",\"-\",IF(AND($Q957=\"Y\",'Enrollment Form'!$AS964=\"No\"),\"-\",IF(AND($Q957=\"Y\",'Enrollment Form'!$AS964=\"Yes\",'Enrollment Form'!$AT964<>\"\"),\"Y\",\"N\"))))","v":""},{"$f":"IF($B957=\"N\",\"\",IF(OR('Enrollment Form'!$B964<>\"Subscriber\",'Enrollment Form'!$C964=\"ROC\"),\"-\",IF(AND('Enrollment Form'!$B964=\"Subscriber\",'Enrollment Form'!$C964=\"Enroll\",'Enrollment Form'!$CV964<>\"\"),\"Y\",\"N\")))","v":""},{"$f":"IF($B957=\"N\",\"\",IF($S957=\"-\",\"-\",IF(AND($S957=\"Y\",'Enrollment Form'!$CV964=\"No\"),\"-\",IF(AND($S957=\"Y\",'Enrollment Form'!$CV964=\"Yes\",'Enrollment Form'!$CW964<>\"\"),\"Y\",\"N\"))))","v":""},{"$f":"IF(OR('Enrollment Form'!$AY964=\"Yes\",'Enrollment Form'!$AY964=\"\"),\"-\",IF(OR(AND('Enrollment Form'!$AY964=\"No\",ISERROR(FIND(\"HMO\",VLOOKUP('Enrollment Form'!G964,'Enrollment Form'!H$11:J$1000,3,FALSE),1))=FALSE,COUNTA('Enrollment Form'!$AZ964:$BC964)=4),AND('Enrollment Form'!$AY964=\"No\",ISERROR(FIND(\"HMO\",VLOOKUP('Enrollment Form'!G964,'Enrollment Form'!H$11:J$1000,3,FALSE),1))=FALSE,COUNTA('Enrollment Form'!$BT964:$BW964)=4)),\"Y\",\"N\"))","v":"-"},{"$f":"IF($B957=\"N\",\"\",IF('Enrollment Form'!$B964=\"Subscriber\",\"-\",IF(COUNTA('Enrollment Form'!$BL964,'Enrollment Form'!$BN964)=2,\"Y\",\"N\")))","v":""},{"$f":"IF($B957=\"N\",\"\",IF(OR('Enrollment Form'!$AX964=\"\",'Enrollment Form'!$AX964=\"No\"),\"-\",IF(AND('Enrollment Form'!$AX964=\"Yes\",COUNTA('Enrollment Form'!$CR964)=1),\"Y\",\"N\")))","v":""},{"$f":"IF(OR('Enrollment Form'!$CR964=\"\",'Enrollment Form'!$CR964=\"No\"),\"-\",IF(COUNTA('Enrollment Form'!$CT964:$CU964)=2,\"Y\",\"N\"))","v":"-"},{"$f":"IF($B957=\"N\",\"\",IF(COUNTIF('Enrollment Form'!$DG964:$DP964,\"Other\")=COUNTA('Enrollment Form'!$DK964,'Enrollment Form'!$DH964,'Enrollment Form'!$DN964,'Enrollment Form'!$DQ964),\"Y\",\"N\"))","v":""},{"$f":"IF($B957=\"N\",\"\",IF(OR('Enrollment Form'!B964<>\"Subscriber\",'Enrollment Form'!C964=\"ROC\",COUNTIF('Enrollment Form'!AV964:AW964,\"Yes\")>=1),\"-\",IF(AND('Enrollment Form'!C964=\"Enroll\",COUNTIF('Enrollment Form'!AV964:AW964,\"No\")=2,'Enrollment Form'!AX964=\"\"),\"N\",\"Y\")))","v":""},{"$f":"IF(OR(B957=\"N\",'Enrollment Form'!B964<>\"Subscriber\",'Enrollment Form'!C964=\"ROC\",'Enrollment Form'!O964<>\"Multiple of Salary\"),\"-\",IF(COUNTA('Enrollment Form'!T964:U964)<2,\"N\",\"Y\"))","v":"-"},{"$f":"IF(B957=\"N\",\"\",IF(OR('Enrollment Form'!C964=\"ROC\",'Enrollment Form'!B964<>\"Subscriber\",'Enrollment Form'!O964=\"Waive\",'Enrollment Form'!O964=\"\"),\"-\",IF('Enrollment Form'!P964=\"\",\"N\",\"Y\")))","v":""},{"$f":"IF($B957=\"N\",\"\",IF(AND('Enrollment Form'!$C964=\"ROC\",'Enrollment Form'!$DR964<>\"\"),\"Y\",IF(AND('Enrollment Form'!$C964=\"ROC\",'Enrollment Form'!$DR964=\"\"),\"N\",IF(AND('Enrollment Form'!$C964=\"Enroll\",'Enrollment Form'!$B964=\"Subscriber\",'Enrollment Form'!$CX964=\"No\",'Enrollment Form'!$DR964=\"\"),\"N\",IF(AND('Enrollment Form'!$C964=\"Enroll\",'Enrollment Form'!$B964=\"Subscriber\",'Enrollment Form'!$CX964=\"Yes\"),\"-\",\"Y\")))))","v":""},{"$f":"IF($B957=\"N\",\"\",IF(AND('Enrollment Form'!$C964=\"ROC\",'Enrollment Form'!$DS964<>\"\"),\"Y\",IF(AND('Enrollment Form'!$C964=\"ROC\",'Enrollment Form'!$DS964=\"\"),\"N\",IF(AND('Enrollment Form'!$C964=\"Enroll\",'Enrollment Form'!$B964=\"Subscriber\",'Enrollment Form'!$CX964=\"No\",'Enrollment Form'!$DS964=\"\"),\"N\",IF(AND('Enrollment Form'!$C964=\"Enroll\",'Enrollment Form'!$B964=\"Subscriber\",'Enrollment Form'!$CX964=\"Yes\"),\"-\",\"Y\")))))","v":""},{"$f":"IF('Enrollment Form'!AH964=\"\",\"\",IF(ISERROR(SEARCH(\".\",'Enrollment Form'!AH964,SEARCH(\"@\",'Enrollment Form'!AH964))),\"N\",\"Y\"))","v":""},{"$f":"IF(OR($B957=\"N\",'Enrollment Form'!$G964=\"\"),\"\",IF('Enrollment Form'!$B964<>\"Subscriber\",\"-\",IF(COUNTIF('Enrollment Form'!$AV964:$AW964,\"Yes\")=2,\"N\",\"Y\")))","v":""},{"$f":"IF(OR('Enrollment Form'!$CJ964=\"\",'Enrollment Form'!$CJ964=\"No\"),\"-\",IF(AND('Enrollment Form'!$CJ964=\"Yes\",'Enrollment Form'!$CK964=\"\"),\"N\",\"Y\"))","v":"-"},{"$f":"IF(OR('Enrollment Form'!$CL964=\"\",'Enrollment Form'!$CL964=\"No\"),\"-\",IF(AND('Enrollment Form'!$CL964=\"Yes\",'Enrollment Form'!$CM964=\"\"),\"N\",\"Y\"))","v":"-"},{"$f":"IF(OR('Enrollment Form'!$CN964=\"\",'Enrollment Form'!$CN964=\"No\"),\"-\",IF(AND('Enrollment Form'!$CN964=\"Yes\",'Enrollment Form'!$CO964=\"\"),\"N\",\"Y\"))","v":"-"},{"$f":"IF(OR('Enrollment Form'!$CN964=\"\",'Enrollment Form'!$CN964=\"No\"),\"-\",IF(AND('Enrollment Form'!$CN964=\"Yes\",'Enrollment Form'!$CP964=\"\"),\"N\",\"Y\"))","v":"-"},{"$f":"IF('Enrollment Form'!B964<>\"Subscriber\",\"-\",IF(AND('Enrollment Form'!B964=\"Subscriber\",'Enrollment Form'!C964=\"Enroll\",'Enrollment Form'!AA964=\"\"),\"N\",\"Y\"))","v":"-"},{"$f":"IF(OR('Enrollment Form'!B964=\"Subscriber\",'Enrollment Form'!B964=\"\"),\"-\",IF('Enrollment Form'!BP964=\"\",\"N\",\"Y\"))","v":"-"},{"$f":"IF('Enrollment Form'!B964<>\"Subscriber\",\"-\",IF(AND('Enrollment Form'!B964=\"Subscriber\",'Enrollment Form'!G964=\"\"),\"N\",\"Y\"))","v":"-"},{"$f":"IF('Enrollment Form'!A964=\"\",\"\",IF('Enrollment Form'!B964=\"Subscriber\",\"-\",IF(AND('Enrollment Form'!B964<>\"Subscriber\",'Enrollment Form'!G964='Enrollment Form'!H964),\"N\",\"Y\")))","v":""},0]
[965,{"$f":"IF('Enrollment Form'!$A965<>\"\",\"Y\",\"N\")","v":"N"},{"$f":"IF(AND('Enrollment Form'!$B965=\"\",'Enrollment Form'!$C965<>\"\"),\"N\",IF($B958=\"N\",\"\",\"Y\"))","v":""},{"$f":"IF(OR($B958=\"N\",'Enrollment Form'!G965=\"\"),\"\",IF('Enrollment Form'!$B965<>\"Subscriber\",\"\",IF('Enrollment Form'!$G965='Enrollment Form'!$H965,\"Y\",\"N\")))","v":""},{"$f":"IF($B958=\"N\",\"\",IF(AND(COUNTIFS('Enrollment Form'!$H$11:$H$1000,'Enrollment Form'!$H965,'Enrollment Form'!$B$11:$B$1000,'Enrollment Form'!$B965)>1,'Enrollment Form'!$H965<>\"\"),\"N\",\"Y\"))","v":""},{"$f":"IF($B958=\"N\",\"\",IF(LEN('Enrollment Form'!$Y965)=0,\"\",IF(LEN('Enrollment Form'!$Y965)<>5,\"N\",\"Y\")))","v":""},{"$f":"IF($B958=\"N\",\"\",IF(LEN('Enrollment Form'!$AD965=0),\"\",IF(LEN('Enrollment Form'!$AD965)<>5,\"N\",\"Y\")))","v":""},{"$f":"IF($B958=\"N\",\"\",IF(LEN('Enrollment Form'!$BS965=0),\"\",IF(LEN('Enrollment Form'!$BS965)<>5,\"N\",\"Y\")))","v":""},{"$f":"IF($B958=\"N\",\"\",IF(LEN('Enrollment Form'!$AE965)=0,\"\",IF(LEN('Enrollment Form'!$AE965)<>10,\"N\",\"Y\")))","v":""},{"$f":"IF($B958=\"N\",\"\",IF(LEN('Enrollment Form'!$AF965)=0,\"\",IF(LEN('Enrollment Form'!$AF965)<>10,\"N\",\"Y\")))","v":""},{"$f":"IF('Enrollment Form'!$O965<>\"Graded\",\"-\",IF(AND('Enrollment Form'!$O965=\"Graded\",'Enrollment Form'!$AR965<>\"\"),\"Y\",\"N\"))","v":"-"},{"$f":"IF($B958=\"N\",\"\",IF(OR('Enrollment Form'!$B965<>\"Subscriber\",'Enrollment Form'!$C965=\"ROC\"),\"-\",IF(AND('Enrollment Form'!$B965=\"Subscriber\",'Enrollment Form'!$C965=\"Enroll\",'Enrollment Form'!$AJ965<>\"\"),\"Y\",\"N\")))","v":""},{"$f":"IF($B958=\"N\",\"\",IF(OR('Enrollment Form'!$B965<>\"Subscriber\",'Enrollment Form'!$C965=\"ROC\"),\"-\",IF(AND('Enrollment Form'!$B965=\"Subscriber\",'Enrollment Form'!$C965=\"Enroll\",'Enrollment Form'!$AK965<>\"\"),\"Y\",\"N\")))","v":""},{"$f":"IF($B958=\"N\",\"\",IF(OR('Enrollment Form'!$B965<>\"Subscriber\",'Enrollment Form'!$C965=\"ROC\"),\"-\",IF(AND('Enrollment Form'!$B965=\"Subscriber\",'Enrollment Form'!$C965=\"Enroll\",'Enrollment Form'!$AL965<>\"\"),\"Y\",\"N\")))","v":""},{"$f":"IF($B958=\"N\",\"\",IF(OR('Enrollment Form'!$B965<>\"Subscriber\",'Enrollment Form'!$C965=\"ROC\"),\"-\",IF(AND('Enrollment Form'!$B965=\"Subscriber\",'Enrollment Form'!$C965=\"Enroll\",'Enrollment Form'!$AP965<>\"\"),\"Y\",\"N\")))","v":""},{"$f":"IF($B958=\"N\",\"\",IF(OR('Enrollment Form'!$B965<>\"Subscriber\",'Enrollment Form'!$C965=\"ROC\"),\"-\",IF(AND('Enrollment Form'!$B965=\"Subscriber\",'Enrollment Form'!$C965=\"Enroll\",'Enrollment Form'!$AQ965<>\"\"),\"Y\",\"N\")))","v":""},{"$f":"IF($B958=\"N\",\"\",IF(OR('Enrollment Form'!$B965<>\"Subscriber\",'Enrollment Form'!$C965=\"ROC\"),\"-\",IF(AND('Enrollment Form'!$B965=\"Subscriber\",'Enrollment Form'!$C965=\"Enroll\",'Enrollment Form'!$AS965<>\"\"),\"Y\",\"N\")))","v":""},{"$f":"IF($B958=\"N\",\"\",IF($Q958=\"-\",\"-\",IF(AND($Q958=\"Y\",'Enrollment Form'!$AS965=\"No\"),\"-\",IF(AND($Q958=\"Y\",'Enrollment Form'!$AS965=\"Yes\",'Enrollment Form'!$AT965<>\"\"),\"Y\",\"N\"))))","v":""},{"$f":"IF($B958=\"N\",\"\",IF(OR('Enrollment Form'!$B965<>\"Subscriber\",'Enrollment Form'!$C965=\"ROC\"),\"-\",IF(AND('Enrollment Form'!$B965=\"Subscriber\",'Enrollment Form'!$C965=\"Enroll\",'Enrollment Form'!$CV965<>\"\"),\"Y\",\"N\")))","v":""},{"$f":"IF($B958=\"N\",\"\",IF($S958=\"-\",\"-\",IF(AND($S958=\"Y\",'Enrollment Form'!$CV965=\"No\"),\"-\",IF(AND($S958=\"Y\",'Enrollment Form'!$CV965=\"Yes\",'Enrollment Form'!$CW965<>\"\"),\"Y\",\"N\"))))","v":""},{"$f":"IF(OR('Enrollment Form'!$AY965=\"Yes\",'Enrollment Form'!$AY965=\"\"),\"-\",IF(OR(AND('Enrollment Form'!$AY965=\"No\",ISERROR(FIND(\"HMO\",VLOOKUP('Enrollment Form'!G965,'Enrollment Form'!H$11:J$1000,3,FALSE),1))=FALSE,COUNTA('Enrollment Form'!$AZ965:$BC965)=4),AND('Enrollment Form'!$AY965=\"No\",ISERROR(FIND(\"HMO\",VLOOKUP('Enrollment Form'!G965,'Enrollment Form'!H$11:J$1000,3,FALSE),1))=FALSE,COUNTA('Enrollment Form'!$BT965:$BW965)=4)),\"Y\",\"N\"))","v":"-"},{"$f":"IF($B958=\"N\",\"\",IF('Enrollment Form'!$B965=\"Subscriber\",\"-\",IF(COUNTA('Enrollment Form'!$BL965,'Enrollment Form'!$BN965)=2,\"Y\",\"N\")))","v":""},{"$f":"IF($B958=\"N\",\"\",IF(OR('Enrollment Form'!$AX965=\"\",'Enrollment Form'!$AX965=\"No\"),\"-\",IF(AND('Enrollment Form'!$AX965=\"Yes\",COUNTA('Enrollment Form'!$CR965)=1),\"Y\",\"N\")))","v":""},{"$f":"IF(OR('Enrollment Form'!$CR965=\"\",'Enrollment Form'!$CR965=\"No\"),\"-\",IF(COUNTA('Enrollment Form'!$CT965:$CU965)=2,\"Y\",\"N\"))","v":"-"},{"$f":"IF($B958=\"N\",\"\",IF(COUNTIF('Enrollment Form'!$DG965:$DP965,\"Other\")=COUNTA('Enrollment Form'!$DK965,'Enrollment Form'!$DH965,'Enrollment Form'!$DN965,'Enrollment Form'!$DQ965),\"Y\",\"N\"))","v":""},{"$f":"IF($B958=\"N\",\"\",IF(OR('Enrollment Form'!B965<>\"Subscriber\",'Enrollment Form'!C965=\"ROC\",COUNTIF('Enrollment Form'!AV965:AW965,\"Yes\")>=1),\"-\",IF(AND('Enrollment Form'!C965=\"Enroll\",COUNTIF('Enrollment Form'!AV965:AW965,\"No\")=2,'Enrollment Form'!AX965=\"\"),\"N\",\"Y\")))","v":""},{"$f":"IF(OR(B958=\"N\",'Enrollment Form'!B965<>\"Subscriber\",'Enrollment Form'!C965=\"ROC\",'Enrollment Form'!O965<>\"Multiple of Salary\"),\"-\",IF(COUNTA('Enrollment Form'!T965:U965)<2,\"N\",\"Y\"))","v":"-"},{"$f":"IF(B958=\"N\",\"\",IF(OR('Enrollment Form'!C965=\"ROC\",'Enrollment Form'!B965<>\"Subscriber\",'Enrollment Form'!O965=\"Waive\",'Enrollment Form'!O965=\"\"),\"-\",IF('Enrollment Form'!P965=\"\",\"N\",\"Y\")))","v":""},{"$f":"IF($B958=\"N\",\"\",IF(AND('Enrollment Form'!$C965=\"ROC\",'Enrollment Form'!$DR965<>\"\"),\"Y\",IF(AND('Enrollment Form'!$C965=\"ROC\",'Enrollment Form'!$DR965=\"\"),\"N\",IF(AND('Enrollment Form'!$C965=\"Enroll\",'Enrollment Form'!$B965=\"Subscriber\",'Enrollment Form'!$CX965=\"No\",'Enrollment Form'!$DR965=\"\"),\"N\",IF(AND('Enrollment Form'!$C965=\"Enroll\",'Enrollment Form'!$B965=\"Subscriber\",'Enrollment Form'!$CX965=\"Yes\"),\"-\",\"Y\")))))","v":""},{"$f":"IF($B958=\"N\",\"\",IF(AND('Enrollment Form'!$C965=\"ROC\",'Enrollment Form'!$DS965<>\"\"),\"Y\",IF(AND('Enrollment Form'!$C965=\"ROC\",'Enrollment Form'!$DS965=\"\"),\"N\",IF(AND('Enrollment Form'!$C965=\"Enroll\",'Enrollment Form'!$B965=\"Subscriber\",'Enrollment Form'!$CX965=\"No\",'Enrollment Form'!$DS965=\"\"),\"N\",IF(AND('Enrollment Form'!$C965=\"Enroll\",'Enrollment Form'!$B965=\"Subscriber\",'Enrollment Form'!$CX965=\"Yes\"),\"-\",\"Y\")))))","v":""},{"$f":"IF('Enrollment Form'!AH965=\"\",\"\",IF(ISERROR(SEARCH(\".\",'Enrollment Form'!AH965,SEARCH(\"@\",'Enrollment Form'!AH965))),\"N\",\"Y\"))","v":""},{"$f":"IF(OR($B958=\"N\",'Enrollment Form'!$G965=\"\"),\"\",IF('Enrollment Form'!$B965<>\"Subscriber\",\"-\",IF(COUNTIF('Enrollment Form'!$AV965:$AW965,\"Yes\")=2,\"N\",\"Y\")))","v":""},{"$f":"IF(OR('Enrollment Form'!$CJ965=\"\",'Enrollment Form'!$CJ965=\"No\"),\"-\",IF(AND('Enrollment Form'!$CJ965=\"Yes\",'Enrollment Form'!$CK965=\"\"),\"N\",\"Y\"))","v":"-"},{"$f":"IF(OR('Enrollment Form'!$CL965=\"\",'Enrollment Form'!$CL965=\"No\"),\"-\",IF(AND('Enrollment Form'!$CL965=\"Yes\",'Enrollment Form'!$CM965=\"\"),\"N\",\"Y\"))","v":"-"},{"$f":"IF(OR('Enrollment Form'!$CN965=\"\",'Enrollment Form'!$CN965=\"No\"),\"-\",IF(AND('Enrollment Form'!$CN965=\"Yes\",'Enrollment Form'!$CO965=\"\"),\"N\",\"Y\"))","v":"-"},{"$f":"IF(OR('Enrollment Form'!$CN965=\"\",'Enrollment Form'!$CN965=\"No\"),\"-\",IF(AND('Enrollment Form'!$CN965=\"Yes\",'Enrollment Form'!$CP965=\"\"),\"N\",\"Y\"))","v":"-"},{"$f":"IF('Enrollment Form'!B965<>\"Subscriber\",\"-\",IF(AND('Enrollment Form'!B965=\"Subscriber\",'Enrollment Form'!C965=\"Enroll\",'Enrollment Form'!AA965=\"\"),\"N\",\"Y\"))","v":"-"},{"$f":"IF(OR('Enrollment Form'!B965=\"Subscriber\",'Enrollment Form'!B965=\"\"),\"-\",IF('Enrollment Form'!BP965=\"\",\"N\",\"Y\"))","v":"-"},{"$f":"IF('Enrollment Form'!B965<>\"Subscriber\",\"-\",IF(AND('Enrollment Form'!B965=\"Subscriber\",'Enrollment Form'!G965=\"\"),\"N\",\"Y\"))","v":"-"},{"$f":"IF('Enrollment Form'!A965=\"\",\"\",IF('Enrollment Form'!B965=\"Subscriber\",\"-\",IF(AND('Enrollment Form'!B965<>\"Subscriber\",'Enrollment Form'!G965='Enrollment Form'!H965),\"N\",\"Y\")))","v":""},0]
[966,{"$f":"IF('Enrollment Form'!$A966<>\"\",\"Y\",\"N\")","v":"N"},{"$f":"IF(AND('Enrollment Form'!$B966=\"\",'Enrollment Form'!$C966<>\"\"),\"N\",IF($B959=\"N\",\"\",\"Y\"))","v":""},{"$f":"IF(OR($B959=\"N\",'Enrollment Form'!G966=\"\"),\"\",IF('Enrollment Form'!$B966<>\"Subscriber\",\"\",IF('Enrollment Form'!$G966='Enrollment Form'!$H966,\"Y\",\"N\")))","v":""},{"$f":"IF($B959=\"N\",\"\",IF(AND(COUNTIFS('Enrollment Form'!$H$11:$H$1000,'Enrollment Form'!$H966,'Enrollment Form'!$B$11:$B$1000,'Enrollment Form'!$B966)>1,'Enrollment Form'!$H966<>\"\"),\"N\",\"Y\"))","v":""},{"$f":"IF($B959=\"N\",\"\",IF(LEN('Enrollment Form'!$Y966)=0,\"\",IF(LEN('Enrollment Form'!$Y966)<>5,\"N\",\"Y\")))","v":""},{"$f":"IF($B959=\"N\",\"\",IF(LEN('Enrollment Form'!$AD966=0),\"\",IF(LEN('Enrollment Form'!$AD966)<>5,\"N\",\"Y\")))","v":""},{"$f":"IF($B959=\"N\",\"\",IF(LEN('Enrollment Form'!$BS966=0),\"\",IF(LEN('Enrollment Form'!$BS966)<>5,\"N\",\"Y\")))","v":""},{"$f":"IF($B959=\"N\",\"\",IF(LEN('Enrollment Form'!$AE966)=0,\"\",IF(LEN('Enrollment Form'!$AE966)<>10,\"N\",\"Y\")))","v":""},{"$f":"IF($B959=\"N\",\"\",IF(LEN('Enrollment Form'!$AF966)=0,\"\",IF(LEN('Enrollment Form'!$AF966)<>10,\"N\",\"Y\")))","v":""},{"$f":"IF('Enrollment Form'!$O966<>\"Graded\",\"-\",IF(AND('Enrollment Form'!$O966=\"Graded\",'Enrollment Form'!$AR966<>\"\"),\"Y\",\"N\"))","v":"-"},{"$f":"IF($B959=\"N\",\"\",IF(OR('Enrollment Form'!$B966<>\"Subscriber\",'Enrollment Form'!$C966=\"ROC\"),\"-\",IF(AND('Enrollment Form'!$B966=\"Subscriber\",'Enrollment Form'!$C966=\"Enroll\",'Enrollment Form'!$AJ966<>\"\"),\"Y\",\"N\")))","v":""},{"$f":"IF($B959=\"N\",\"\",IF(OR('Enrollment Form'!$B966<>\"Subscriber\",'Enrollment Form'!$C966=\"ROC\"),\"-\",IF(AND('Enrollment Form'!$B966=\"Subscriber\",'Enrollment Form'!$C966=\"Enroll\",'Enrollment Form'!$AK966<>\"\"),\"Y\",\"N\")))","v":""},{"$f":"IF($B959=\"N\",\"\",IF(OR('Enrollment Form'!$B966<>\"Subscriber\",'Enrollment Form'!$C966=\"ROC\"),\"-\",IF(AND('Enrollment Form'!$B966=\"Subscriber\",'Enrollment Form'!$C966=\"Enroll\",'Enrollment Form'!$AL966<>\"\"),\"Y\",\"N\")))","v":""},{"$f":"IF($B959=\"N\",\"\",IF(OR('Enrollment Form'!$B966<>\"Subscriber\",'Enrollment Form'!$C966=\"ROC\"),\"-\",IF(AND('Enrollment Form'!$B966=\"Subscriber\",'Enrollment Form'!$C966=\"Enroll\",'Enrollment Form'!$AP966<>\"\"),\"Y\",\"N\")))","v":""},{"$f":"IF($B959=\"N\",\"\",IF(OR('Enrollment Form'!$B966<>\"Subscriber\",'Enrollment Form'!$C966=\"ROC\"),\"-\",IF(AND('Enrollment Form'!$B966=\"Subscriber\",'Enrollment Form'!$C966=\"Enroll\",'Enrollment Form'!$AQ966<>\"\"),\"Y\",\"N\")))","v":""},{"$f":"IF($B959=\"N\",\"\",IF(OR('Enrollment Form'!$B966<>\"Subscriber\",'Enrollment Form'!$C966=\"ROC\"),\"-\",IF(AND('Enrollment Form'!$B966=\"Subscriber\",'Enrollment Form'!$C966=\"Enroll\",'Enrollment Form'!$AS966<>\"\"),\"Y\",\"N\")))","v":""},{"$f":"IF($B959=\"N\",\"\",IF($Q959=\"-\",\"-\",IF(AND($Q959=\"Y\",'Enrollment Form'!$AS966=\"No\"),\"-\",IF(AND($Q959=\"Y\",'Enrollment Form'!$AS966=\"Yes\",'Enrollment Form'!$AT966<>\"\"),\"Y\",\"N\"))))","v":""},{"$f":"IF($B959=\"N\",\"\",IF(OR('Enrollment Form'!$B966<>\"Subscriber\",'Enrollment Form'!$C966=\"ROC\"),\"-\",IF(AND('Enrollment Form'!$B966=\"Subscriber\",'Enrollment Form'!$C966=\"Enroll\",'Enrollment Form'!$CV966<>\"\"),\"Y\",\"N\")))","v":""},{"$f":"IF($B959=\"N\",\"\",IF($S959=\"-\",\"-\",IF(AND($S959=\"Y\",'Enrollment Form'!$CV966=\"No\"),\"-\",IF(AND($S959=\"Y\",'Enrollment Form'!$CV966=\"Yes\",'Enrollment Form'!$CW966<>\"\"),\"Y\",\"N\"))))","v":""},{"$f":"IF(OR('Enrollment Form'!$AY966=\"Yes\",'Enrollment Form'!$AY966=\"\"),\"-\",IF(OR(AND('Enrollment Form'!$AY966=\"No\",ISERROR(FIND(\"HMO\",VLOOKUP('Enrollment Form'!G966,'Enrollment Form'!H$11:J$1000,3,FALSE),1))=FALSE,COUNTA('Enrollment Form'!$AZ966:$BC966)=4),AND('Enrollment Form'!$AY966=\"No\",ISERROR(FIND(\"HMO\",VLOOKUP('Enrollment Form'!G966,'Enrollment Form'!H$11:J$1000,3,FALSE),1))=FALSE,COUNTA('Enrollment Form'!$BT966:$BW966)=4)),\"Y\",\"N\"))","v":"-"},{"$f":"IF($B959=\"N\",\"\",IF('Enrollment Form'!$B966=\"Subscriber\",\"-\",IF(COUNTA('Enrollment Form'!$BL966,'Enrollment Form'!$BN966)=2,\"Y\",\"N\")))","v":""},{"$f":"IF($B959=\"N\",\"\",IF(OR('Enrollment Form'!$AX966=\"\",'Enrollment Form'!$AX966=\"No\"),\"-\",IF(AND('Enrollment Form'!$AX966=\"Yes\",COUNTA('Enrollment Form'!$CR966)=1),\"Y\",\"N\")))","v":""},{"$f":"IF(OR('Enrollment Form'!$CR966=\"\",'Enrollment Form'!$CR966=\"No\"),\"-\",IF(COUNTA('Enrollment Form'!$CT966:$CU966)=2,\"Y\",\"N\"))","v":"-"},{"$f":"IF($B959=\"N\",\"\",IF(COUNTIF('Enrollment Form'!$DG966:$DP966,\"Other\")=COUNTA('Enrollment Form'!$DK966,'Enrollment Form'!$DH966,'Enrollment Form'!$DN966,'Enrollment Form'!$DQ966),\"Y\",\"N\"))","v":""},{"$f":"IF($B959=\"N\",\"\",IF(OR('Enrollment Form'!B966<>\"Subscriber\",'Enrollment Form'!C966=\"ROC\",COUNTIF('Enrollment Form'!AV966:AW966,\"Yes\")>=1),\"-\",IF(AND('Enrollment Form'!C966=\"Enroll\",COUNTIF('Enrollment Form'!AV966:AW966,\"No\")=2,'Enrollment Form'!AX966=\"\"),\"N\",\"Y\")))","v":""},{"$f":"IF(OR(B959=\"N\",'Enrollment Form'!B966<>\"Subscriber\",'Enrollment Form'!C966=\"ROC\",'Enrollment Form'!O966<>\"Multiple of Salary\"),\"-\",IF(COUNTA('Enrollment Form'!T966:U966)<2,\"N\",\"Y\"))","v":"-"},{"$f":"IF(B959=\"N\",\"\",IF(OR('Enrollment Form'!C966=\"ROC\",'Enrollment Form'!B966<>\"Subscriber\",'Enrollment Form'!O966=\"Waive\",'Enrollment Form'!O966=\"\"),\"-\",IF('Enrollment Form'!P966=\"\",\"N\",\"Y\")))","v":""},{"$f":"IF($B959=\"N\",\"\",IF(AND('Enrollment Form'!$C966=\"ROC\",'Enrollment Form'!$DR966<>\"\"),\"Y\",IF(AND('Enrollment Form'!$C966=\"ROC\",'Enrollment Form'!$DR966=\"\"),\"N\",IF(AND('Enrollment Form'!$C966=\"Enroll\",'Enrollment Form'!$B966=\"Subscriber\",'Enrollment Form'!$CX966=\"No\",'Enrollment Form'!$DR966=\"\"),\"N\",IF(AND('Enrollment Form'!$C966=\"Enroll\",'Enrollment Form'!$B966=\"Subscriber\",'Enrollment Form'!$CX966=\"Yes\"),\"-\",\"Y\")))))","v":""},{"$f":"IF($B959=\"N\",\"\",IF(AND('Enrollment Form'!$C966=\"ROC\",'Enrollment Form'!$DS966<>\"\"),\"Y\",IF(AND('Enrollment Form'!$C966=\"ROC\",'Enrollment Form'!$DS966=\"\"),\"N\",IF(AND('Enrollment Form'!$C966=\"Enroll\",'Enrollment Form'!$B966=\"Subscriber\",'Enrollment Form'!$CX966=\"No\",'Enrollment Form'!$DS966=\"\"),\"N\",IF(AND('Enrollment Form'!$C966=\"Enroll\",'Enrollment Form'!$B966=\"Subscriber\",'Enrollment Form'!$CX966=\"Yes\"),\"-\",\"Y\")))))","v":""},{"$f":"IF('Enrollment Form'!AH966=\"\",\"\",IF(ISERROR(SEARCH(\".\",'Enrollment Form'!AH966,SEARCH(\"@\",'Enrollment Form'!AH966))),\"N\",\"Y\"))","v":""},{"$f":"IF(OR($B959=\"N\",'Enrollment Form'!$G966=\"\"),\"\",IF('Enrollment Form'!$B966<>\"Subscriber\",\"-\",IF(COUNTIF('Enrollment Form'!$AV966:$AW966,\"Yes\")=2,\"N\",\"Y\")))","v":""},{"$f":"IF(OR('Enrollment Form'!$CJ966=\"\",'Enrollment Form'!$CJ966=\"No\"),\"-\",IF(AND('Enrollment Form'!$CJ966=\"Yes\",'Enrollment Form'!$CK966=\"\"),\"N\",\"Y\"))","v":"-"},{"$f":"IF(OR('Enrollment Form'!$CL966=\"\",'Enrollment Form'!$CL966=\"No\"),\"-\",IF(AND('Enrollment Form'!$CL966=\"Yes\",'Enrollment Form'!$CM966=\"\"),\"N\",\"Y\"))","v":"-"},{"$f":"IF(OR('Enrollment Form'!$CN966=\"\",'Enrollment Form'!$CN966=\"No\"),\"-\",IF(AND('Enrollment Form'!$CN966=\"Yes\",'Enrollment Form'!$CO966=\"\"),\"N\",\"Y\"))","v":"-"},{"$f":"IF(OR('Enrollment Form'!$CN966=\"\",'Enrollment Form'!$CN966=\"No\"),\"-\",IF(AND('Enrollment Form'!$CN966=\"Yes\",'Enrollment Form'!$CP966=\"\"),\"N\",\"Y\"))","v":"-"},{"$f":"IF('Enrollment Form'!B966<>\"Subscriber\",\"-\",IF(AND('Enrollment Form'!B966=\"Subscriber\",'Enrollment Form'!C966=\"Enroll\",'Enrollment Form'!AA966=\"\"),\"N\",\"Y\"))","v":"-"},{"$f":"IF(OR('Enrollment Form'!B966=\"Subscriber\",'Enrollment Form'!B966=\"\"),\"-\",IF('Enrollment Form'!BP966=\"\",\"N\",\"Y\"))","v":"-"},{"$f":"IF('Enrollment Form'!B966<>\"Subscriber\",\"-\",IF(AND('Enrollment Form'!B966=\"Subscriber\",'Enrollment Form'!G966=\"\"),\"N\",\"Y\"))","v":"-"},{"$f":"IF('Enrollment Form'!A966=\"\",\"\",IF('Enrollment Form'!B966=\"Subscriber\",\"-\",IF(AND('Enrollment Form'!B966<>\"Subscriber\",'Enrollment Form'!G966='Enrollment Form'!H966),\"N\",\"Y\")))","v":""},0]
[967,{"$f":"IF('Enrollment Form'!$A967<>\"\",\"Y\",\"N\")","v":"N"},{"$f":"IF(AND('Enrollment Form'!$B967=\"\",'Enrollment Form'!$C967<>\"\"),\"N\",IF($B960=\"N\",\"\",\"Y\"))","v":""},{"$f":"IF(OR($B960=\"N\",'Enrollment Form'!G967=\"\"),\"\",IF('Enrollment Form'!$B967<>\"Subscriber\",\"\",IF('Enrollment Form'!$G967='Enrollment Form'!$H967,\"Y\",\"N\")))","v":""},{"$f":"IF($B960=\"N\",\"\",IF(AND(COUNTIFS('Enrollment Form'!$H$11:$H$1000,'Enrollment Form'!$H967,'Enrollment Form'!$B$11:$B$1000,'Enrollment Form'!$B967)>1,'Enrollment Form'!$H967<>\"\"),\"N\",\"Y\"))","v":""},{"$f":"IF($B960=\"N\",\"\",IF(LEN('Enrollment Form'!$Y967)=0,\"\",IF(LEN('Enrollment Form'!$Y967)<>5,\"N\",\"Y\")))","v":""},{"$f":"IF($B960=\"N\",\"\",IF(LEN('Enrollment Form'!$AD967=0),\"\",IF(LEN('Enrollment Form'!$AD967)<>5,\"N\",\"Y\")))","v":""},{"$f":"IF($B960=\"N\",\"\",IF(LEN('Enrollment Form'!$BS967=0),\"\",IF(LEN('Enrollment Form'!$BS967)<>5,\"N\",\"Y\")))","v":""},{"$f":"IF($B960=\"N\",\"\",IF(LEN('Enrollment Form'!$AE967)=0,\"\",IF(LEN('Enrollment Form'!$AE967)<>10,\"N\",\"Y\")))","v":""},{"$f":"IF($B960=\"N\",\"\",IF(LEN('Enrollment Form'!$AF967)=0,\"\",IF(LEN('Enrollment Form'!$AF967)<>10,\"N\",\"Y\")))","v":""},{"$f":"IF('Enrollment Form'!$O967<>\"Graded\",\"-\",IF(AND('Enrollment Form'!$O967=\"Graded\",'Enrollment Form'!$AR967<>\"\"),\"Y\",\"N\"))","v":"-"},{"$f":"IF($B960=\"N\",\"\",IF(OR('Enrollment Form'!$B967<>\"Subscriber\",'Enrollment Form'!$C967=\"ROC\"),\"-\",IF(AND('Enrollment Form'!$B967=\"Subscriber\",'Enrollment Form'!$C967=\"Enroll\",'Enrollment Form'!$AJ967<>\"\"),\"Y\",\"N\")))","v":""},{"$f":"IF($B960=\"N\",\"\",IF(OR('Enrollment Form'!$B967<>\"Subscriber\",'Enrollment Form'!$C967=\"ROC\"),\"-\",IF(AND('Enrollment Form'!$B967=\"Subscriber\",'Enrollment Form'!$C967=\"Enroll\",'Enrollment Form'!$AK967<>\"\"),\"Y\",\"N\")))","v":""},{"$f":"IF($B960=\"N\",\"\",IF(OR('Enrollment Form'!$B967<>\"Subscriber\",'Enrollment Form'!$C967=\"ROC\"),\"-\",IF(AND('Enrollment Form'!$B967=\"Subscriber\",'Enrollment Form'!$C967=\"Enroll\",'Enrollment Form'!$AL967<>\"\"),\"Y\",\"N\")))","v":""},{"$f":"IF($B960=\"N\",\"\",IF(OR('Enrollment Form'!$B967<>\"Subscriber\",'Enrollment Form'!$C967=\"ROC\"),\"-\",IF(AND('Enrollment Form'!$B967=\"Subscriber\",'Enrollment Form'!$C967=\"Enroll\",'Enrollment Form'!$AP967<>\"\"),\"Y\",\"N\")))","v":""},{"$f":"IF($B960=\"N\",\"\",IF(OR('Enrollment Form'!$B967<>\"Subscriber\",'Enrollment Form'!$C967=\"ROC\"),\"-\",IF(AND('Enrollment Form'!$B967=\"Subscriber\",'Enrollment Form'!$C967=\"Enroll\",'Enrollment Form'!$AQ967<>\"\"),\"Y\",\"N\")))","v":""},{"$f":"IF($B960=\"N\",\"\",IF(OR('Enrollment Form'!$B967<>\"Subscriber\",'Enrollment Form'!$C967=\"ROC\"),\"-\",IF(AND('Enrollment Form'!$B967=\"Subscriber\",'Enrollment Form'!$C967=\"Enroll\",'Enrollment Form'!$AS967<>\"\"),\"Y\",\"N\")))","v":""},{"$f":"IF($B960=\"N\",\"\",IF($Q960=\"-\",\"-\",IF(AND($Q960=\"Y\",'Enrollment Form'!$AS967=\"No\"),\"-\",IF(AND($Q960=\"Y\",'Enrollment Form'!$AS967=\"Yes\",'Enrollment Form'!$AT967<>\"\"),\"Y\",\"N\"))))","v":""},{"$f":"IF($B960=\"N\",\"\",IF(OR('Enrollment Form'!$B967<>\"Subscriber\",'Enrollment Form'!$C967=\"ROC\"),\"-\",IF(AND('Enrollment Form'!$B967=\"Subscriber\",'Enrollment Form'!$C967=\"Enroll\",'Enrollment Form'!$CV967<>\"\"),\"Y\",\"N\")))","v":""},{"$f":"IF($B960=\"N\",\"\",IF($S960=\"-\",\"-\",IF(AND($S960=\"Y\",'Enrollment Form'!$CV967=\"No\"),\"-\",IF(AND($S960=\"Y\",'Enrollment Form'!$CV967=\"Yes\",'Enrollment Form'!$CW967<>\"\"),\"Y\",\"N\"))))","v":""},{"$f":"IF(OR('Enrollment Form'!$AY967=\"Yes\",'Enrollment Form'!$AY967=\"\"),\"-\",IF(OR(AND('Enrollment Form'!$AY967=\"No\",ISERROR(FIND(\"HMO\",VLOOKUP('Enrollment Form'!G967,'Enrollment Form'!H$11:J$1000,3,FALSE),1))=FALSE,COUNTA('Enrollment Form'!$AZ967:$BC967)=4),AND('Enrollment Form'!$AY967=\"No\",ISERROR(FIND(\"HMO\",VLOOKUP('Enrollment Form'!G967,'Enrollment Form'!H$11:J$1000,3,FALSE),1))=FALSE,COUNTA('Enrollment Form'!$BT967:$BW967)=4)),\"Y\",\"N\"))","v":"-"},{"$f":"IF($B960=\"N\",\"\",IF('Enrollment Form'!$B967=\"Subscriber\",\"-\",IF(COUNTA('Enrollment Form'!$BL967,'Enrollment Form'!$BN967)=2,\"Y\",\"N\")))","v":""},{"$f":"IF($B960=\"N\",\"\",IF(OR('Enrollment Form'!$AX967=\"\",'Enrollment Form'!$AX967=\"No\"),\"-\",IF(AND('Enrollment Form'!$AX967=\"Yes\",COUNTA('Enrollment Form'!$CR967)=1),\"Y\",\"N\")))","v":""},{"$f":"IF(OR('Enrollment Form'!$CR967=\"\",'Enrollment Form'!$CR967=\"No\"),\"-\",IF(COUNTA('Enrollment Form'!$CT967:$CU967)=2,\"Y\",\"N\"))","v":"-"},{"$f":"IF($B960=\"N\",\"\",IF(COUNTIF('Enrollment Form'!$DG967:$DP967,\"Other\")=COUNTA('Enrollment Form'!$DK967,'Enrollment Form'!$DH967,'Enrollment Form'!$DN967,'Enrollment Form'!$DQ967),\"Y\",\"N\"))","v":""},{"$f":"IF($B960=\"N\",\"\",IF(OR('Enrollment Form'!B967<>\"Subscriber\",'Enrollment Form'!C967=\"ROC\",COUNTIF('Enrollment Form'!AV967:AW967,\"Yes\")>=1),\"-\",IF(AND('Enrollment Form'!C967=\"Enroll\",COUNTIF('Enrollment Form'!AV967:AW967,\"No\")=2,'Enrollment Form'!AX967=\"\"),\"N\",\"Y\")))","v":""},{"$f":"IF(OR(B960=\"N\",'Enrollment Form'!B967<>\"Subscriber\",'Enrollment Form'!C967=\"ROC\",'Enrollment Form'!O967<>\"Multiple of Salary\"),\"-\",IF(COUNTA('Enrollment Form'!T967:U967)<2,\"N\",\"Y\"))","v":"-"},{"$f":"IF(B960=\"N\",\"\",IF(OR('Enrollment Form'!C967=\"ROC\",'Enrollment Form'!B967<>\"Subscriber\",'Enrollment Form'!O967=\"Waive\",'Enrollment Form'!O967=\"\"),\"-\",IF('Enrollment Form'!P967=\"\",\"N\",\"Y\")))","v":""},{"$f":"IF($B960=\"N\",\"\",IF(AND('Enrollment Form'!$C967=\"ROC\",'Enrollment Form'!$DR967<>\"\"),\"Y\",IF(AND('Enrollment Form'!$C967=\"ROC\",'Enrollment Form'!$DR967=\"\"),\"N\",IF(AND('Enrollment Form'!$C967=\"Enroll\",'Enrollment Form'!$B967=\"Subscriber\",'Enrollment Form'!$CX967=\"No\",'Enrollment Form'!$DR967=\"\"),\"N\",IF(AND('Enrollment Form'!$C967=\"Enroll\",'Enrollment Form'!$B967=\"Subscriber\",'Enrollment Form'!$CX967=\"Yes\"),\"-\",\"Y\")))))","v":""},{"$f":"IF($B960=\"N\",\"\",IF(AND('Enrollment Form'!$C967=\"ROC\",'Enrollment Form'!$DS967<>\"\"),\"Y\",IF(AND('Enrollment Form'!$C967=\"ROC\",'Enrollment Form'!$DS967=\"\"),\"N\",IF(AND('Enrollment Form'!$C967=\"Enroll\",'Enrollment Form'!$B967=\"Subscriber\",'Enrollment Form'!$CX967=\"No\",'Enrollment Form'!$DS967=\"\"),\"N\",IF(AND('Enrollment Form'!$C967=\"Enroll\",'Enrollment Form'!$B967=\"Subscriber\",'Enrollment Form'!$CX967=\"Yes\"),\"-\",\"Y\")))))","v":""},{"$f":"IF('Enrollment Form'!AH967=\"\",\"\",IF(ISERROR(SEARCH(\".\",'Enrollment Form'!AH967,SEARCH(\"@\",'Enrollment Form'!AH967))),\"N\",\"Y\"))","v":""},{"$f":"IF(OR($B960=\"N\",'Enrollment Form'!$G967=\"\"),\"\",IF('Enrollment Form'!$B967<>\"Subscriber\",\"-\",IF(COUNTIF('Enrollment Form'!$AV967:$AW967,\"Yes\")=2,\"N\",\"Y\")))","v":""},{"$f":"IF(OR('Enrollment Form'!$CJ967=\"\",'Enrollment Form'!$CJ967=\"No\"),\"-\",IF(AND('Enrollment Form'!$CJ967=\"Yes\",'Enrollment Form'!$CK967=\"\"),\"N\",\"Y\"))","v":"-"},{"$f":"IF(OR('Enrollment Form'!$CL967=\"\",'Enrollment Form'!$CL967=\"No\"),\"-\",IF(AND('Enrollment Form'!$CL967=\"Yes\",'Enrollment Form'!$CM967=\"\"),\"N\",\"Y\"))","v":"-"},{"$f":"IF(OR('Enrollment Form'!$CN967=\"\",'Enrollment Form'!$CN967=\"No\"),\"-\",IF(AND('Enrollment Form'!$CN967=\"Yes\",'Enrollment Form'!$CO967=\"\"),\"N\",\"Y\"))","v":"-"},{"$f":"IF(OR('Enrollment Form'!$CN967=\"\",'Enrollment Form'!$CN967=\"No\"),\"-\",IF(AND('Enrollment Form'!$CN967=\"Yes\",'Enrollment Form'!$CP967=\"\"),\"N\",\"Y\"))","v":"-"},{"$f":"IF('Enrollment Form'!B967<>\"Subscriber\",\"-\",IF(AND('Enrollment Form'!B967=\"Subscriber\",'Enrollment Form'!C967=\"Enroll\",'Enrollment Form'!AA967=\"\"),\"N\",\"Y\"))","v":"-"},{"$f":"IF(OR('Enrollment Form'!B967=\"Subscriber\",'Enrollment Form'!B967=\"\"),\"-\",IF('Enrollment Form'!BP967=\"\",\"N\",\"Y\"))","v":"-"},{"$f":"IF('Enrollment Form'!B967<>\"Subscriber\",\"-\",IF(AND('Enrollment Form'!B967=\"Subscriber\",'Enrollment Form'!G967=\"\"),\"N\",\"Y\"))","v":"-"},{"$f":"IF('Enrollment Form'!A967=\"\",\"\",IF('Enrollment Form'!B967=\"Subscriber\",\"-\",IF(AND('Enrollment Form'!B967<>\"Subscriber\",'Enrollment Form'!G967='Enrollment Form'!H967),\"N\",\"Y\")))","v":""},0]
[968,{"$f":"IF('Enrollment Form'!$A968<>\"\",\"Y\",\"N\")","v":"N"},{"$f":"IF(AND('Enrollment Form'!$B968=\"\",'Enrollment Form'!$C968<>\"\"),\"N\",IF($B961=\"N\",\"\",\"Y\"))","v":""},{"$f":"IF(OR($B961=\"N\",'Enrollment Form'!G968=\"\"),\"\",IF('Enrollment Form'!$B968<>\"Subscriber\",\"\",IF('Enrollment Form'!$G968='Enrollment Form'!$H968,\"Y\",\"N\")))","v":""},{"$f":"IF($B961=\"N\",\"\",IF(AND(COUNTIFS('Enrollment Form'!$H$11:$H$1000,'Enrollment Form'!$H968,'Enrollment Form'!$B$11:$B$1000,'Enrollment Form'!$B968)>1,'Enrollment Form'!$H968<>\"\"),\"N\",\"Y\"))","v":""},{"$f":"IF($B961=\"N\",\"\",IF(LEN('Enrollment Form'!$Y968)=0,\"\",IF(LEN('Enrollment Form'!$Y968)<>5,\"N\",\"Y\")))","v":""},{"$f":"IF($B961=\"N\",\"\",IF(LEN('Enrollment Form'!$AD968=0),\"\",IF(LEN('Enrollment Form'!$AD968)<>5,\"N\",\"Y\")))","v":""},{"$f":"IF($B961=\"N\",\"\",IF(LEN('Enrollment Form'!$BS968=0),\"\",IF(LEN('Enrollment Form'!$BS968)<>5,\"N\",\"Y\")))","v":""},{"$f":"IF($B961=\"N\",\"\",IF(LEN('Enrollment Form'!$AE968)=0,\"\",IF(LEN('Enrollment Form'!$AE968)<>10,\"N\",\"Y\")))","v":""},{"$f":"IF($B961=\"N\",\"\",IF(LEN('Enrollment Form'!$AF968)=0,\"\",IF(LEN('Enrollment Form'!$AF968)<>10,\"N\",\"Y\")))","v":""},{"$f":"IF('Enrollment Form'!$O968<>\"Graded\",\"-\",IF(AND('Enrollment Form'!$O968=\"Graded\",'Enrollment Form'!$AR968<>\"\"),\"Y\",\"N\"))","v":"-"},{"$f":"IF($B961=\"N\",\"\",IF(OR('Enrollment Form'!$B968<>\"Subscriber\",'Enrollment Form'!$C968=\"ROC\"),\"-\",IF(AND('Enrollment Form'!$B968=\"Subscriber\",'Enrollment Form'!$C968=\"Enroll\",'Enrollment Form'!$AJ968<>\"\"),\"Y\",\"N\")))","v":""},{"$f":"IF($B961=\"N\",\"\",IF(OR('Enrollment Form'!$B968<>\"Subscriber\",'Enrollment Form'!$C968=\"ROC\"),\"-\",IF(AND('Enrollment Form'!$B968=\"Subscriber\",'Enrollment Form'!$C968=\"Enroll\",'Enrollment Form'!$AK968<>\"\"),\"Y\",\"N\")))","v":""},{"$f":"IF($B961=\"N\",\"\",IF(OR('Enrollment Form'!$B968<>\"Subscriber\",'Enrollment Form'!$C968=\"ROC\"),\"-\",IF(AND('Enrollment Form'!$B968=\"Subscriber\",'Enrollment Form'!$C968=\"Enroll\",'Enrollment Form'!$AL968<>\"\"),\"Y\",\"N\")))","v":""},{"$f":"IF($B961=\"N\",\"\",IF(OR('Enrollment Form'!$B968<>\"Subscriber\",'Enrollment Form'!$C968=\"ROC\"),\"-\",IF(AND('Enrollment Form'!$B968=\"Subscriber\",'Enrollment Form'!$C968=\"Enroll\",'Enrollment Form'!$AP968<>\"\"),\"Y\",\"N\")))","v":""},{"$f":"IF($B961=\"N\",\"\",IF(OR('Enrollment Form'!$B968<>\"Subscriber\",'Enrollment Form'!$C968=\"ROC\"),\"-\",IF(AND('Enrollment Form'!$B968=\"Subscriber\",'Enrollment Form'!$C968=\"Enroll\",'Enrollment Form'!$AQ968<>\"\"),\"Y\",\"N\")))","v":""},{"$f":"IF($B961=\"N\",\"\",IF(OR('Enrollment Form'!$B968<>\"Subscriber\",'Enrollment Form'!$C968=\"ROC\"),\"-\",IF(AND('Enrollment Form'!$B968=\"Subscriber\",'Enrollment Form'!$C968=\"Enroll\",'Enrollment Form'!$AS968<>\"\"),\"Y\",\"N\")))","v":""},{"$f":"IF($B961=\"N\",\"\",IF($Q961=\"-\",\"-\",IF(AND($Q961=\"Y\",'Enrollment Form'!$AS968=\"No\"),\"-\",IF(AND($Q961=\"Y\",'Enrollment Form'!$AS968=\"Yes\",'Enrollment Form'!$AT968<>\"\"),\"Y\",\"N\"))))","v":""},{"$f":"IF($B961=\"N\",\"\",IF(OR('Enrollment Form'!$B968<>\"Subscriber\",'Enrollment Form'!$C968=\"ROC\"),\"-\",IF(AND('Enrollment Form'!$B968=\"Subscriber\",'Enrollment Form'!$C968=\"Enroll\",'Enrollment Form'!$CV968<>\"\"),\"Y\",\"N\")))","v":""},{"$f":"IF($B961=\"N\",\"\",IF($S961=\"-\",\"-\",IF(AND($S961=\"Y\",'Enrollment Form'!$CV968=\"No\"),\"-\",IF(AND($S961=\"Y\",'Enrollment Form'!$CV968=\"Yes\",'Enrollment Form'!$CW968<>\"\"),\"Y\",\"N\"))))","v":""},{"$f":"IF(OR('Enrollment Form'!$AY968=\"Yes\",'Enrollment Form'!$AY968=\"\"),\"-\",IF(OR(AND('Enrollment Form'!$AY968=\"No\",ISERROR(FIND(\"HMO\",VLOOKUP('Enrollment Form'!G968,'Enrollment Form'!H$11:J$1000,3,FALSE),1))=FALSE,COUNTA('Enrollment Form'!$AZ968:$BC968)=4),AND('Enrollment Form'!$AY968=\"No\",ISERROR(FIND(\"HMO\",VLOOKUP('Enrollment Form'!G968,'Enrollment Form'!H$11:J$1000,3,FALSE),1))=FALSE,COUNTA('Enrollment Form'!$BT968:$BW968)=4)),\"Y\",\"N\"))","v":"-"},{"$f":"IF($B961=\"N\",\"\",IF('Enrollment Form'!$B968=\"Subscriber\",\"-\",IF(COUNTA('Enrollment Form'!$BL968,'Enrollment Form'!$BN968)=2,\"Y\",\"N\")))","v":""},{"$f":"IF($B961=\"N\",\"\",IF(OR('Enrollment Form'!$AX968=\"\",'Enrollment Form'!$AX968=\"No\"),\"-\",IF(AND('Enrollment Form'!$AX968=\"Yes\",COUNTA('Enrollment Form'!$CR968)=1),\"Y\",\"N\")))","v":""},{"$f":"IF(OR('Enrollment Form'!$CR968=\"\",'Enrollment Form'!$CR968=\"No\"),\"-\",IF(COUNTA('Enrollment Form'!$CT968:$CU968)=2,\"Y\",\"N\"))","v":"-"},{"$f":"IF($B961=\"N\",\"\",IF(COUNTIF('Enrollment Form'!$DG968:$DP968,\"Other\")=COUNTA('Enrollment Form'!$DK968,'Enrollment Form'!$DH968,'Enrollment Form'!$DN968,'Enrollment Form'!$DQ968),\"Y\",\"N\"))","v":""},{"$f":"IF($B961=\"N\",\"\",IF(OR('Enrollment Form'!B968<>\"Subscriber\",'Enrollment Form'!C968=\"ROC\",COUNTIF('Enrollment Form'!AV968:AW968,\"Yes\")>=1),\"-\",IF(AND('Enrollment Form'!C968=\"Enroll\",COUNTIF('Enrollment Form'!AV968:AW968,\"No\")=2,'Enrollment Form'!AX968=\"\"),\"N\",\"Y\")))","v":""},{"$f":"IF(OR(B961=\"N\",'Enrollment Form'!B968<>\"Subscriber\",'Enrollment Form'!C968=\"ROC\",'Enrollment Form'!O968<>\"Multiple of Salary\"),\"-\",IF(COUNTA('Enrollment Form'!T968:U968)<2,\"N\",\"Y\"))","v":"-"},{"$f":"IF(B961=\"N\",\"\",IF(OR('Enrollment Form'!C968=\"ROC\",'Enrollment Form'!B968<>\"Subscriber\",'Enrollment Form'!O968=\"Waive\",'Enrollment Form'!O968=\"\"),\"-\",IF('Enrollment Form'!P968=\"\",\"N\",\"Y\")))","v":""},{"$f":"IF($B961=\"N\",\"\",IF(AND('Enrollment Form'!$C968=\"ROC\",'Enrollment Form'!$DR968<>\"\"),\"Y\",IF(AND('Enrollment Form'!$C968=\"ROC\",'Enrollment Form'!$DR968=\"\"),\"N\",IF(AND('Enrollment Form'!$C968=\"Enroll\",'Enrollment Form'!$B968=\"Subscriber\",'Enrollment Form'!$CX968=\"No\",'Enrollment Form'!$DR968=\"\"),\"N\",IF(AND('Enrollment Form'!$C968=\"Enroll\",'Enrollment Form'!$B968=\"Subscriber\",'Enrollment Form'!$CX968=\"Yes\"),\"-\",\"Y\")))))","v":""},{"$f":"IF($B961=\"N\",\"\",IF(AND('Enrollment Form'!$C968=\"ROC\",'Enrollment Form'!$DS968<>\"\"),\"Y\",IF(AND('Enrollment Form'!$C968=\"ROC\",'Enrollment Form'!$DS968=\"\"),\"N\",IF(AND('Enrollment Form'!$C968=\"Enroll\",'Enrollment Form'!$B968=\"Subscriber\",'Enrollment Form'!$CX968=\"No\",'Enrollment Form'!$DS968=\"\"),\"N\",IF(AND('Enrollment Form'!$C968=\"Enroll\",'Enrollment Form'!$B968=\"Subscriber\",'Enrollment Form'!$CX968=\"Yes\"),\"-\",\"Y\")))))","v":""},{"$f":"IF('Enrollment Form'!AH968=\"\",\"\",IF(ISERROR(SEARCH(\".\",'Enrollment Form'!AH968,SEARCH(\"@\",'Enrollment Form'!AH968))),\"N\",\"Y\"))","v":""},{"$f":"IF(OR($B961=\"N\",'Enrollment Form'!$G968=\"\"),\"\",IF('Enrollment Form'!$B968<>\"Subscriber\",\"-\",IF(COUNTIF('Enrollment Form'!$AV968:$AW968,\"Yes\")=2,\"N\",\"Y\")))","v":""},{"$f":"IF(OR('Enrollment Form'!$CJ968=\"\",'Enrollment Form'!$CJ968=\"No\"),\"-\",IF(AND('Enrollment Form'!$CJ968=\"Yes\",'Enrollment Form'!$CK968=\"\"),\"N\",\"Y\"))","v":"-"},{"$f":"IF(OR('Enrollment Form'!$CL968=\"\",'Enrollment Form'!$CL968=\"No\"),\"-\",IF(AND('Enrollment Form'!$CL968=\"Yes\",'Enrollment Form'!$CM968=\"\"),\"N\",\"Y\"))","v":"-"},{"$f":"IF(OR('Enrollment Form'!$CN968=\"\",'Enrollment Form'!$CN968=\"No\"),\"-\",IF(AND('Enrollment Form'!$CN968=\"Yes\",'Enrollment Form'!$CO968=\"\"),\"N\",\"Y\"))","v":"-"},{"$f":"IF(OR('Enrollment Form'!$CN968=\"\",'Enrollment Form'!$CN968=\"No\"),\"-\",IF(AND('Enrollment Form'!$CN968=\"Yes\",'Enrollment Form'!$CP968=\"\"),\"N\",\"Y\"))","v":"-"},{"$f":"IF('Enrollment Form'!B968<>\"Subscriber\",\"-\",IF(AND('Enrollment Form'!B968=\"Subscriber\",'Enrollment Form'!C968=\"Enroll\",'Enrollment Form'!AA968=\"\"),\"N\",\"Y\"))","v":"-"},{"$f":"IF(OR('Enrollment Form'!B968=\"Subscriber\",'Enrollment Form'!B968=\"\"),\"-\",IF('Enrollment Form'!BP968=\"\",\"N\",\"Y\"))","v":"-"},{"$f":"IF('Enrollment Form'!B968<>\"Subscriber\",\"-\",IF(AND('Enrollment Form'!B968=\"Subscriber\",'Enrollment Form'!G968=\"\"),\"N\",\"Y\"))","v":"-"},{"$f":"IF('Enrollment Form'!A968=\"\",\"\",IF('Enrollment Form'!B968=\"Subscriber\",\"-\",IF(AND('Enrollment Form'!B968<>\"Subscriber\",'Enrollment Form'!G968='Enrollment Form'!H968),\"N\",\"Y\")))","v":""},0]
[969,{"$f":"IF('Enrollment Form'!$A969<>\"\",\"Y\",\"N\")","v":"N"},{"$f":"IF(AND('Enrollment Form'!$B969=\"\",'Enrollment Form'!$C969<>\"\"),\"N\",IF($B962=\"N\",\"\",\"Y\"))","v":""},{"$f":"IF(OR($B962=\"N\",'Enrollment Form'!G969=\"\"),\"\",IF('Enrollment Form'!$B969<>\"Subscriber\",\"\",IF('Enrollment Form'!$G969='Enrollment Form'!$H969,\"Y\",\"N\")))","v":""},{"$f":"IF($B962=\"N\",\"\",IF(AND(COUNTIFS('Enrollment Form'!$H$11:$H$1000,'Enrollment Form'!$H969,'Enrollment Form'!$B$11:$B$1000,'Enrollment Form'!$B969)>1,'Enrollment Form'!$H969<>\"\"),\"N\",\"Y\"))","v":""},{"$f":"IF($B962=\"N\",\"\",IF(LEN('Enrollment Form'!$Y969)=0,\"\",IF(LEN('Enrollment Form'!$Y969)<>5,\"N\",\"Y\")))","v":""},{"$f":"IF($B962=\"N\",\"\",IF(LEN('Enrollment Form'!$AD969=0),\"\",IF(LEN('Enrollment Form'!$AD969)<>5,\"N\",\"Y\")))","v":""},{"$f":"IF($B962=\"N\",\"\",IF(LEN('Enrollment Form'!$BS969=0),\"\",IF(LEN('Enrollment Form'!$BS969)<>5,\"N\",\"Y\")))","v":""},{"$f":"IF($B962=\"N\",\"\",IF(LEN('Enrollment Form'!$AE969)=0,\"\",IF(LEN('Enrollment Form'!$AE969)<>10,\"N\",\"Y\")))","v":""},{"$f":"IF($B962=\"N\",\"\",IF(LEN('Enrollment Form'!$AF969)=0,\"\",IF(LEN('Enrollment Form'!$AF969)<>10,\"N\",\"Y\")))","v":""},{"$f":"IF('Enrollment Form'!$O969<>\"Graded\",\"-\",IF(AND('Enrollment Form'!$O969=\"Graded\",'Enrollment Form'!$AR969<>\"\"),\"Y\",\"N\"))","v":"-"},{"$f":"IF($B962=\"N\",\"\",IF(OR('Enrollment Form'!$B969<>\"Subscriber\",'Enrollment Form'!$C969=\"ROC\"),\"-\",IF(AND('Enrollment Form'!$B969=\"Subscriber\",'Enrollment Form'!$C969=\"Enroll\",'Enrollment Form'!$AJ969<>\"\"),\"Y\",\"N\")))","v":""},{"$f":"IF($B962=\"N\",\"\",IF(OR('Enrollment Form'!$B969<>\"Subscriber\",'Enrollment Form'!$C969=\"ROC\"),\"-\",IF(AND('Enrollment Form'!$B969=\"Subscriber\",'Enrollment Form'!$C969=\"Enroll\",'Enrollment Form'!$AK969<>\"\"),\"Y\",\"N\")))","v":""},{"$f":"IF($B962=\"N\",\"\",IF(OR('Enrollment Form'!$B969<>\"Subscriber\",'Enrollment Form'!$C969=\"ROC\"),\"-\",IF(AND('Enrollment Form'!$B969=\"Subscriber\",'Enrollment Form'!$C969=\"Enroll\",'Enrollment Form'!$AL969<>\"\"),\"Y\",\"N\")))","v":""},{"$f":"IF($B962=\"N\",\"\",IF(OR('Enrollment Form'!$B969<>\"Subscriber\",'Enrollment Form'!$C969=\"ROC\"),\"-\",IF(AND('Enrollment Form'!$B969=\"Subscriber\",'Enrollment Form'!$C969=\"Enroll\",'Enrollment Form'!$AP969<>\"\"),\"Y\",\"N\")))","v":""},{"$f":"IF($B962=\"N\",\"\",IF(OR('Enrollment Form'!$B969<>\"Subscriber\",'Enrollment Form'!$C969=\"ROC\"),\"-\",IF(AND('Enrollment Form'!$B969=\"Subscriber\",'Enrollment Form'!$C969=\"Enroll\",'Enrollment Form'!$AQ969<>\"\"),\"Y\",\"N\")))","v":""},{"$f":"IF($B962=\"N\",\"\",IF(OR('Enrollment Form'!$B969<>\"Subscriber\",'Enrollment Form'!$C969=\"ROC\"),\"-\",IF(AND('Enrollment Form'!$B969=\"Subscriber\",'Enrollment Form'!$C969=\"Enroll\",'Enrollment Form'!$AS969<>\"\"),\"Y\",\"N\")))","v":""},{"$f":"IF($B962=\"N\",\"\",IF($Q962=\"-\",\"-\",IF(AND($Q962=\"Y\",'Enrollment Form'!$AS969=\"No\"),\"-\",IF(AND($Q962=\"Y\",'Enrollment Form'!$AS969=\"Yes\",'Enrollment Form'!$AT969<>\"\"),\"Y\",\"N\"))))","v":""},{"$f":"IF($B962=\"N\",\"\",IF(OR('Enrollment Form'!$B969<>\"Subscriber\",'Enrollment Form'!$C969=\"ROC\"),\"-\",IF(AND('Enrollment Form'!$B969=\"Subscriber\",'Enrollment Form'!$C969=\"Enroll\",'Enrollment Form'!$CV969<>\"\"),\"Y\",\"N\")))","v":""},{"$f":"IF($B962=\"N\",\"\",IF($S962=\"-\",\"-\",IF(AND($S962=\"Y\",'Enrollment Form'!$CV969=\"No\"),\"-\",IF(AND($S962=\"Y\",'Enrollment Form'!$CV969=\"Yes\",'Enrollment Form'!$CW969<>\"\"),\"Y\",\"N\"))))","v":""},{"$f":"IF(OR('Enrollment Form'!$AY969=\"Yes\",'Enrollment Form'!$AY969=\"\"),\"-\",IF(OR(AND('Enrollment Form'!$AY969=\"No\",ISERROR(FIND(\"HMO\",VLOOKUP('Enrollment Form'!G969,'Enrollment Form'!H$11:J$1000,3,FALSE),1))=FALSE,COUNTA('Enrollment Form'!$AZ969:$BC969)=4),AND('Enrollment Form'!$AY969=\"No\",ISERROR(FIND(\"HMO\",VLOOKUP('Enrollment Form'!G969,'Enrollment Form'!H$11:J$1000,3,FALSE),1))=FALSE,COUNTA('Enrollment Form'!$BT969:$BW969)=4)),\"Y\",\"N\"))","v":"-"},{"$f":"IF($B962=\"N\",\"\",IF('Enrollment Form'!$B969=\"Subscriber\",\"-\",IF(COUNTA('Enrollment Form'!$BL969,'Enrollment Form'!$BN969)=2,\"Y\",\"N\")))","v":""},{"$f":"IF($B962=\"N\",\"\",IF(OR('Enrollment Form'!$AX969=\"\",'Enrollment Form'!$AX969=\"No\"),\"-\",IF(AND('Enrollment Form'!$AX969=\"Yes\",COUNTA('Enrollment Form'!$CR969)=1),\"Y\",\"N\")))","v":""},{"$f":"IF(OR('Enrollment Form'!$CR969=\"\",'Enrollment Form'!$CR969=\"No\"),\"-\",IF(COUNTA('Enrollment Form'!$CT969:$CU969)=2,\"Y\",\"N\"))","v":"-"},{"$f":"IF($B962=\"N\",\"\",IF(COUNTIF('Enrollment Form'!$DG969:$DP969,\"Other\")=COUNTA('Enrollment Form'!$DK969,'Enrollment Form'!$DH969,'Enrollment Form'!$DN969,'Enrollment Form'!$DQ969),\"Y\",\"N\"))","v":""},{"$f":"IF($B962=\"N\",\"\",IF(OR('Enrollment Form'!B969<>\"Subscriber\",'Enrollment Form'!C969=\"ROC\",COUNTIF('Enrollment Form'!AV969:AW969,\"Yes\")>=1),\"-\",IF(AND('Enrollment Form'!C969=\"Enroll\",COUNTIF('Enrollment Form'!AV969:AW969,\"No\")=2,'Enrollment Form'!AX969=\"\"),\"N\",\"Y\")))","v":""},{"$f":"IF(OR(B962=\"N\",'Enrollment Form'!B969<>\"Subscriber\",'Enrollment Form'!C969=\"ROC\",'Enrollment Form'!O969<>\"Multiple of Salary\"),\"-\",IF(COUNTA('Enrollment Form'!T969:U969)<2,\"N\",\"Y\"))","v":"-"},{"$f":"IF(B962=\"N\",\"\",IF(OR('Enrollment Form'!C969=\"ROC\",'Enrollment Form'!B969<>\"Subscriber\",'Enrollment Form'!O969=\"Waive\",'Enrollment Form'!O969=\"\"),\"-\",IF('Enrollment Form'!P969=\"\",\"N\",\"Y\")))","v":""},{"$f":"IF($B962=\"N\",\"\",IF(AND('Enrollment Form'!$C969=\"ROC\",'Enrollment Form'!$DR969<>\"\"),\"Y\",IF(AND('Enrollment Form'!$C969=\"ROC\",'Enrollment Form'!$DR969=\"\"),\"N\",IF(AND('Enrollment Form'!$C969=\"Enroll\",'Enrollment Form'!$B969=\"Subscriber\",'Enrollment Form'!$CX969=\"No\",'Enrollment Form'!$DR969=\"\"),\"N\",IF(AND('Enrollment Form'!$C969=\"Enroll\",'Enrollment Form'!$B969=\"Subscriber\",'Enrollment Form'!$CX969=\"Yes\"),\"-\",\"Y\")))))","v":""},{"$f":"IF($B962=\"N\",\"\",IF(AND('Enrollment Form'!$C969=\"ROC\",'Enrollment Form'!$DS969<>\"\"),\"Y\",IF(AND('Enrollment Form'!$C969=\"ROC\",'Enrollment Form'!$DS969=\"\"),\"N\",IF(AND('Enrollment Form'!$C969=\"Enroll\",'Enrollment Form'!$B969=\"Subscriber\",'Enrollment Form'!$CX969=\"No\",'Enrollment Form'!$DS969=\"\"),\"N\",IF(AND('Enrollment Form'!$C969=\"Enroll\",'Enrollment Form'!$B969=\"Subscriber\",'Enrollment Form'!$CX969=\"Yes\"),\"-\",\"Y\")))))","v":""},{"$f":"IF('Enrollment Form'!AH969=\"\",\"\",IF(ISERROR(SEARCH(\".\",'Enrollment Form'!AH969,SEARCH(\"@\",'Enrollment Form'!AH969))),\"N\",\"Y\"))","v":""},{"$f":"IF(OR($B962=\"N\",'Enrollment Form'!$G969=\"\"),\"\",IF('Enrollment Form'!$B969<>\"Subscriber\",\"-\",IF(COUNTIF('Enrollment Form'!$AV969:$AW969,\"Yes\")=2,\"N\",\"Y\")))","v":""},{"$f":"IF(OR('Enrollment Form'!$CJ969=\"\",'Enrollment Form'!$CJ969=\"No\"),\"-\",IF(AND('Enrollment Form'!$CJ969=\"Yes\",'Enrollment Form'!$CK969=\"\"),\"N\",\"Y\"))","v":"-"},{"$f":"IF(OR('Enrollment Form'!$CL969=\"\",'Enrollment Form'!$CL969=\"No\"),\"-\",IF(AND('Enrollment Form'!$CL969=\"Yes\",'Enrollment Form'!$CM969=\"\"),\"N\",\"Y\"))","v":"-"},{"$f":"IF(OR('Enrollment Form'!$CN969=\"\",'Enrollment Form'!$CN969=\"No\"),\"-\",IF(AND('Enrollment Form'!$CN969=\"Yes\",'Enrollment Form'!$CO969=\"\"),\"N\",\"Y\"))","v":"-"},{"$f":"IF(OR('Enrollment Form'!$CN969=\"\",'Enrollment Form'!$CN969=\"No\"),\"-\",IF(AND('Enrollment Form'!$CN969=\"Yes\",'Enrollment Form'!$CP969=\"\"),\"N\",\"Y\"))","v":"-"},{"$f":"IF('Enrollment Form'!B969<>\"Subscriber\",\"-\",IF(AND('Enrollment Form'!B969=\"Subscriber\",'Enrollment Form'!C969=\"Enroll\",'Enrollment Form'!AA969=\"\"),\"N\",\"Y\"))","v":"-"},{"$f":"IF(OR('Enrollment Form'!B969=\"Subscriber\",'Enrollment Form'!B969=\"\"),\"-\",IF('Enrollment Form'!BP969=\"\",\"N\",\"Y\"))","v":"-"},{"$f":"IF('Enrollment Form'!B969<>\"Subscriber\",\"-\",IF(AND('Enrollment Form'!B969=\"Subscriber\",'Enrollment Form'!G969=\"\"),\"N\",\"Y\"))","v":"-"},{"$f":"IF('Enrollment Form'!A969=\"\",\"\",IF('Enrollment Form'!B969=\"Subscriber\",\"-\",IF(AND('Enrollment Form'!B969<>\"Subscriber\",'Enrollment Form'!G969='Enrollment Form'!H969),\"N\",\"Y\")))","v":""},0]
[970,{"$f":"IF('Enrollment Form'!$A970<>\"\",\"Y\",\"N\")","v":"N"},{"$f":"IF(AND('Enrollment Form'!$B970=\"\",'Enrollment Form'!$C970<>\"\"),\"N\",IF($B963=\"N\",\"\",\"Y\"))","v":""},{"$f":"IF(OR($B963=\"N\",'Enrollment Form'!G970=\"\"),\"\",IF('Enrollment Form'!$B970<>\"Subscriber\",\"\",IF('Enrollment Form'!$G970='Enrollment Form'!$H970,\"Y\",\"N\")))","v":""},{"$f":"IF($B963=\"N\",\"\",IF(AND(COUNTIFS('Enrollment Form'!$H$11:$H$1000,'Enrollment Form'!$H970,'Enrollment Form'!$B$11:$B$1000,'Enrollment Form'!$B970)>1,'Enrollment Form'!$H970<>\"\"),\"N\",\"Y\"))","v":""},{"$f":"IF($B963=\"N\",\"\",IF(LEN('Enrollment Form'!$Y970)=0,\"\",IF(LEN('Enrollment Form'!$Y970)<>5,\"N\",\"Y\")))","v":""},{"$f":"IF($B963=\"N\",\"\",IF(LEN('Enrollment Form'!$AD970=0),\"\",IF(LEN('Enrollment Form'!$AD970)<>5,\"N\",\"Y\")))","v":""},{"$f":"IF($B963=\"N\",\"\",IF(LEN('Enrollment Form'!$BS970=0),\"\",IF(LEN('Enrollment Form'!$BS970)<>5,\"N\",\"Y\")))","v":""},{"$f":"IF($B963=\"N\",\"\",IF(LEN('Enrollment Form'!$AE970)=0,\"\",IF(LEN('Enrollment Form'!$AE970)<>10,\"N\",\"Y\")))","v":""},{"$f":"IF($B963=\"N\",\"\",IF(LEN('Enrollment Form'!$AF970)=0,\"\",IF(LEN('Enrollment Form'!$AF970)<>10,\"N\",\"Y\")))","v":""},{"$f":"IF('Enrollment Form'!$O970<>\"Graded\",\"-\",IF(AND('Enrollment Form'!$O970=\"Graded\",'Enrollment Form'!$AR970<>\"\"),\"Y\",\"N\"))","v":"-"},{"$f":"IF($B963=\"N\",\"\",IF(OR('Enrollment Form'!$B970<>\"Subscriber\",'Enrollment Form'!$C970=\"ROC\"),\"-\",IF(AND('Enrollment Form'!$B970=\"Subscriber\",'Enrollment Form'!$C970=\"Enroll\",'Enrollment Form'!$AJ970<>\"\"),\"Y\",\"N\")))","v":""},{"$f":"IF($B963=\"N\",\"\",IF(OR('Enrollment Form'!$B970<>\"Subscriber\",'Enrollment Form'!$C970=\"ROC\"),\"-\",IF(AND('Enrollment Form'!$B970=\"Subscriber\",'Enrollment Form'!$C970=\"Enroll\",'Enrollment Form'!$AK970<>\"\"),\"Y\",\"N\")))","v":""},{"$f":"IF($B963=\"N\",\"\",IF(OR('Enrollment Form'!$B970<>\"Subscriber\",'Enrollment Form'!$C970=\"ROC\"),\"-\",IF(AND('Enrollment Form'!$B970=\"Subscriber\",'Enrollment Form'!$C970=\"Enroll\",'Enrollment Form'!$AL970<>\"\"),\"Y\",\"N\")))","v":""},{"$f":"IF($B963=\"N\",\"\",IF(OR('Enrollment Form'!$B970<>\"Subscriber\",'Enrollment Form'!$C970=\"ROC\"),\"-\",IF(AND('Enrollment Form'!$B970=\"Subscriber\",'Enrollment Form'!$C970=\"Enroll\",'Enrollment Form'!$AP970<>\"\"),\"Y\",\"N\")))","v":""},{"$f":"IF($B963=\"N\",\"\",IF(OR('Enrollment Form'!$B970<>\"Subscriber\",'Enrollment Form'!$C970=\"ROC\"),\"-\",IF(AND('Enrollment Form'!$B970=\"Subscriber\",'Enrollment Form'!$C970=\"Enroll\",'Enrollment Form'!$AQ970<>\"\"),\"Y\",\"N\")))","v":""},{"$f":"IF($B963=\"N\",\"\",IF(OR('Enrollment Form'!$B970<>\"Subscriber\",'Enrollment Form'!$C970=\"ROC\"),\"-\",IF(AND('Enrollment Form'!$B970=\"Subscriber\",'Enrollment Form'!$C970=\"Enroll\",'Enrollment Form'!$AS970<>\"\"),\"Y\",\"N\")))","v":""},{"$f":"IF($B963=\"N\",\"\",IF($Q963=\"-\",\"-\",IF(AND($Q963=\"Y\",'Enrollment Form'!$AS970=\"No\"),\"-\",IF(AND($Q963=\"Y\",'Enrollment Form'!$AS970=\"Yes\",'Enrollment Form'!$AT970<>\"\"),\"Y\",\"N\"))))","v":""},{"$f":"IF($B963=\"N\",\"\",IF(OR('Enrollment Form'!$B970<>\"Subscriber\",'Enrollment Form'!$C970=\"ROC\"),\"-\",IF(AND('Enrollment Form'!$B970=\"Subscriber\",'Enrollment Form'!$C970=\"Enroll\",'Enrollment Form'!$CV970<>\"\"),\"Y\",\"N\")))","v":""},{"$f":"IF($B963=\"N\",\"\",IF($S963=\"-\",\"-\",IF(AND($S963=\"Y\",'Enrollment Form'!$CV970=\"No\"),\"-\",IF(AND($S963=\"Y\",'Enrollment Form'!$CV970=\"Yes\",'Enrollment Form'!$CW970<>\"\"),\"Y\",\"N\"))))","v":""},{"$f":"IF(OR('Enrollment Form'!$AY970=\"Yes\",'Enrollment Form'!$AY970=\"\"),\"-\",IF(OR(AND('Enrollment Form'!$AY970=\"No\",ISERROR(FIND(\"HMO\",VLOOKUP('Enrollment Form'!G970,'Enrollment Form'!H$11:J$1000,3,FALSE),1))=FALSE,COUNTA('Enrollment Form'!$AZ970:$BC970)=4),AND('Enrollment Form'!$AY970=\"No\",ISERROR(FIND(\"HMO\",VLOOKUP('Enrollment Form'!G970,'Enrollment Form'!H$11:J$1000,3,FALSE),1))=FALSE,COUNTA('Enrollment Form'!$BT970:$BW970)=4)),\"Y\",\"N\"))","v":"-"},{"$f":"IF($B963=\"N\",\"\",IF('Enrollment Form'!$B970=\"Subscriber\",\"-\",IF(COUNTA('Enrollment Form'!$BL970,'Enrollment Form'!$BN970)=2,\"Y\",\"N\")))","v":""},{"$f":"IF($B963=\"N\",\"\",IF(OR('Enrollment Form'!$AX970=\"\",'Enrollment Form'!$AX970=\"No\"),\"-\",IF(AND('Enrollment Form'!$AX970=\"Yes\",COUNTA('Enrollment Form'!$CR970)=1),\"Y\",\"N\")))","v":""},{"$f":"IF(OR('Enrollment Form'!$CR970=\"\",'Enrollment Form'!$CR970=\"No\"),\"-\",IF(COUNTA('Enrollment Form'!$CT970:$CU970)=2,\"Y\",\"N\"))","v":"-"},{"$f":"IF($B963=\"N\",\"\",IF(COUNTIF('Enrollment Form'!$DG970:$DP970,\"Other\")=COUNTA('Enrollment Form'!$DK970,'Enrollment Form'!$DH970,'Enrollment Form'!$DN970,'Enrollment Form'!$DQ970),\"Y\",\"N\"))","v":""},{"$f":"IF($B963=\"N\",\"\",IF(OR('Enrollment Form'!B970<>\"Subscriber\",'Enrollment Form'!C970=\"ROC\",COUNTIF('Enrollment Form'!AV970:AW970,\"Yes\")>=1),\"-\",IF(AND('Enrollment Form'!C970=\"Enroll\",COUNTIF('Enrollment Form'!AV970:AW970,\"No\")=2,'Enrollment Form'!AX970=\"\"),\"N\",\"Y\")))","v":""},{"$f":"IF(OR(B963=\"N\",'Enrollment Form'!B970<>\"Subscriber\",'Enrollment Form'!C970=\"ROC\",'Enrollment Form'!O970<>\"Multiple of Salary\"),\"-\",IF(COUNTA('Enrollment Form'!T970:U970)<2,\"N\",\"Y\"))","v":"-"},{"$f":"IF(B963=\"N\",\"\",IF(OR('Enrollment Form'!C970=\"ROC\",'Enrollment Form'!B970<>\"Subscriber\",'Enrollment Form'!O970=\"Waive\",'Enrollment Form'!O970=\"\"),\"-\",IF('Enrollment Form'!P970=\"\",\"N\",\"Y\")))","v":""},{"$f":"IF($B963=\"N\",\"\",IF(AND('Enrollment Form'!$C970=\"ROC\",'Enrollment Form'!$DR970<>\"\"),\"Y\",IF(AND('Enrollment Form'!$C970=\"ROC\",'Enrollment Form'!$DR970=\"\"),\"N\",IF(AND('Enrollment Form'!$C970=\"Enroll\",'Enrollment Form'!$B970=\"Subscriber\",'Enrollment Form'!$CX970=\"No\",'Enrollment Form'!$DR970=\"\"),\"N\",IF(AND('Enrollment Form'!$C970=\"Enroll\",'Enrollment Form'!$B970=\"Subscriber\",'Enrollment Form'!$CX970=\"Yes\"),\"-\",\"Y\")))))","v":""},{"$f":"IF($B963=\"N\",\"\",IF(AND('Enrollment Form'!$C970=\"ROC\",'Enrollment Form'!$DS970<>\"\"),\"Y\",IF(AND('Enrollment Form'!$C970=\"ROC\",'Enrollment Form'!$DS970=\"\"),\"N\",IF(AND('Enrollment Form'!$C970=\"Enroll\",'Enrollment Form'!$B970=\"Subscriber\",'Enrollment Form'!$CX970=\"No\",'Enrollment Form'!$DS970=\"\"),\"N\",IF(AND('Enrollment Form'!$C970=\"Enroll\",'Enrollment Form'!$B970=\"Subscriber\",'Enrollment Form'!$CX970=\"Yes\"),\"-\",\"Y\")))))","v":""},{"$f":"IF('Enrollment Form'!AH970=\"\",\"\",IF(ISERROR(SEARCH(\".\",'Enrollment Form'!AH970,SEARCH(\"@\",'Enrollment Form'!AH970))),\"N\",\"Y\"))","v":""},{"$f":"IF(OR($B963=\"N\",'Enrollment Form'!$G970=\"\"),\"\",IF('Enrollment Form'!$B970<>\"Subscriber\",\"-\",IF(COUNTIF('Enrollment Form'!$AV970:$AW970,\"Yes\")=2,\"N\",\"Y\")))","v":""},{"$f":"IF(OR('Enrollment Form'!$CJ970=\"\",'Enrollment Form'!$CJ970=\"No\"),\"-\",IF(AND('Enrollment Form'!$CJ970=\"Yes\",'Enrollment Form'!$CK970=\"\"),\"N\",\"Y\"))","v":"-"},{"$f":"IF(OR('Enrollment Form'!$CL970=\"\",'Enrollment Form'!$CL970=\"No\"),\"-\",IF(AND('Enrollment Form'!$CL970=\"Yes\",'Enrollment Form'!$CM970=\"\"),\"N\",\"Y\"))","v":"-"},{"$f":"IF(OR('Enrollment Form'!$CN970=\"\",'Enrollment Form'!$CN970=\"No\"),\"-\",IF(AND('Enrollment Form'!$CN970=\"Yes\",'Enrollment Form'!$CO970=\"\"),\"N\",\"Y\"))","v":"-"},{"$f":"IF(OR('Enrollment Form'!$CN970=\"\",'Enrollment Form'!$CN970=\"No\"),\"-\",IF(AND('Enrollment Form'!$CN970=\"Yes\",'Enrollment Form'!$CP970=\"\"),\"N\",\"Y\"))","v":"-"},{"$f":"IF('Enrollment Form'!B970<>\"Subscriber\",\"-\",IF(AND('Enrollment Form'!B970=\"Subscriber\",'Enrollment Form'!C970=\"Enroll\",'Enrollment Form'!AA970=\"\"),\"N\",\"Y\"))","v":"-"},{"$f":"IF(OR('Enrollment Form'!B970=\"Subscriber\",'Enrollment Form'!B970=\"\"),\"-\",IF('Enrollment Form'!BP970=\"\",\"N\",\"Y\"))","v":"-"},{"$f":"IF('Enrollment Form'!B970<>\"Subscriber\",\"-\",IF(AND('Enrollment Form'!B970=\"Subscriber\",'Enrollment Form'!G970=\"\"),\"N\",\"Y\"))","v":"-"},{"$f":"IF('Enrollment Form'!A970=\"\",\"\",IF('Enrollment Form'!B970=\"Subscriber\",\"-\",IF(AND('Enrollment Form'!B970<>\"Subscriber\",'Enrollment Form'!G970='Enrollment Form'!H970),\"N\",\"Y\")))","v":""},0]
[971,{"$f":"IF('Enrollment Form'!$A971<>\"\",\"Y\",\"N\")","v":"N"},{"$f":"IF(AND('Enrollment Form'!$B971=\"\",'Enrollment Form'!$C971<>\"\"),\"N\",IF($B964=\"N\",\"\",\"Y\"))","v":""},{"$f":"IF(OR($B964=\"N\",'Enrollment Form'!G971=\"\"),\"\",IF('Enrollment Form'!$B971<>\"Subscriber\",\"\",IF('Enrollment Form'!$G971='Enrollment Form'!$H971,\"Y\",\"N\")))","v":""},{"$f":"IF($B964=\"N\",\"\",IF(AND(COUNTIFS('Enrollment Form'!$H$11:$H$1000,'Enrollment Form'!$H971,'Enrollment Form'!$B$11:$B$1000,'Enrollment Form'!$B971)>1,'Enrollment Form'!$H971<>\"\"),\"N\",\"Y\"))","v":""},{"$f":"IF($B964=\"N\",\"\",IF(LEN('Enrollment Form'!$Y971)=0,\"\",IF(LEN('Enrollment Form'!$Y971)<>5,\"N\",\"Y\")))","v":""},{"$f":"IF($B964=\"N\",\"\",IF(LEN('Enrollment Form'!$AD971=0),\"\",IF(LEN('Enrollment Form'!$AD971)<>5,\"N\",\"Y\")))","v":""},{"$f":"IF($B964=\"N\",\"\",IF(LEN('Enrollment Form'!$BS971=0),\"\",IF(LEN('Enrollment Form'!$BS971)<>5,\"N\",\"Y\")))","v":""},{"$f":"IF($B964=\"N\",\"\",IF(LEN('Enrollment Form'!$AE971)=0,\"\",IF(LEN('Enrollment Form'!$AE971)<>10,\"N\",\"Y\")))","v":""},{"$f":"IF($B964=\"N\",\"\",IF(LEN('Enrollment Form'!$AF971)=0,\"\",IF(LEN('Enrollment Form'!$AF971)<>10,\"N\",\"Y\")))","v":""},{"$f":"IF('Enrollment Form'!$O971<>\"Graded\",\"-\",IF(AND('Enrollment Form'!$O971=\"Graded\",'Enrollment Form'!$AR971<>\"\"),\"Y\",\"N\"))","v":"-"},{"$f":"IF($B964=\"N\",\"\",IF(OR('Enrollment Form'!$B971<>\"Subscriber\",'Enrollment Form'!$C971=\"ROC\"),\"-\",IF(AND('Enrollment Form'!$B971=\"Subscriber\",'Enrollment Form'!$C971=\"Enroll\",'Enrollment Form'!$AJ971<>\"\"),\"Y\",\"N\")))","v":""},{"$f":"IF($B964=\"N\",\"\",IF(OR('Enrollment Form'!$B971<>\"Subscriber\",'Enrollment Form'!$C971=\"ROC\"),\"-\",IF(AND('Enrollment Form'!$B971=\"Subscriber\",'Enrollment Form'!$C971=\"Enroll\",'Enrollment Form'!$AK971<>\"\"),\"Y\",\"N\")))","v":""},{"$f":"IF($B964=\"N\",\"\",IF(OR('Enrollment Form'!$B971<>\"Subscriber\",'Enrollment Form'!$C971=\"ROC\"),\"-\",IF(AND('Enrollment Form'!$B971=\"Subscriber\",'Enrollment Form'!$C971=\"Enroll\",'Enrollment Form'!$AL971<>\"\"),\"Y\",\"N\")))","v":""},{"$f":"IF($B964=\"N\",\"\",IF(OR('Enrollment Form'!$B971<>\"Subscriber\",'Enrollment Form'!$C971=\"ROC\"),\"-\",IF(AND('Enrollment Form'!$B971=\"Subscriber\",'Enrollment Form'!$C971=\"Enroll\",'Enrollment Form'!$AP971<>\"\"),\"Y\",\"N\")))","v":""},{"$f":"IF($B964=\"N\",\"\",IF(OR('Enrollment Form'!$B971<>\"Subscriber\",'Enrollment Form'!$C971=\"ROC\"),\"-\",IF(AND('Enrollment Form'!$B971=\"Subscriber\",'Enrollment Form'!$C971=\"Enroll\",'Enrollment Form'!$AQ971<>\"\"),\"Y\",\"N\")))","v":""},{"$f":"IF($B964=\"N\",\"\",IF(OR('Enrollment Form'!$B971<>\"Subscriber\",'Enrollment Form'!$C971=\"ROC\"),\"-\",IF(AND('Enrollment Form'!$B971=\"Subscriber\",'Enrollment Form'!$C971=\"Enroll\",'Enrollment Form'!$AS971<>\"\"),\"Y\",\"N\")))","v":""},{"$f":"IF($B964=\"N\",\"\",IF($Q964=\"-\",\"-\",IF(AND($Q964=\"Y\",'Enrollment Form'!$AS971=\"No\"),\"-\",IF(AND($Q964=\"Y\",'Enrollment Form'!$AS971=\"Yes\",'Enrollment Form'!$AT971<>\"\"),\"Y\",\"N\"))))","v":""},{"$f":"IF($B964=\"N\",\"\",IF(OR('Enrollment Form'!$B971<>\"Subscriber\",'Enrollment Form'!$C971=\"ROC\"),\"-\",IF(AND('Enrollment Form'!$B971=\"Subscriber\",'Enrollment Form'!$C971=\"Enroll\",'Enrollment Form'!$CV971<>\"\"),\"Y\",\"N\")))","v":""},{"$f":"IF($B964=\"N\",\"\",IF($S964=\"-\",\"-\",IF(AND($S964=\"Y\",'Enrollment Form'!$CV971=\"No\"),\"-\",IF(AND($S964=\"Y\",'Enrollment Form'!$CV971=\"Yes\",'Enrollment Form'!$CW971<>\"\"),\"Y\",\"N\"))))","v":""},{"$f":"IF(OR('Enrollment Form'!$AY971=\"Yes\",'Enrollment Form'!$AY971=\"\"),\"-\",IF(OR(AND('Enrollment Form'!$AY971=\"No\",ISERROR(FIND(\"HMO\",VLOOKUP('Enrollment Form'!G971,'Enrollment Form'!H$11:J$1000,3,FALSE),1))=FALSE,COUNTA('Enrollment Form'!$AZ971:$BC971)=4),AND('Enrollment Form'!$AY971=\"No\",ISERROR(FIND(\"HMO\",VLOOKUP('Enrollment Form'!G971,'Enrollment Form'!H$11:J$1000,3,FALSE),1))=FALSE,COUNTA('Enrollment Form'!$BT971:$BW971)=4)),\"Y\",\"N\"))","v":"-"},{"$f":"IF($B964=\"N\",\"\",IF('Enrollment Form'!$B971=\"Subscriber\",\"-\",IF(COUNTA('Enrollment Form'!$BL971,'Enrollment Form'!$BN971)=2,\"Y\",\"N\")))","v":""},{"$f":"IF($B964=\"N\",\"\",IF(OR('Enrollment Form'!$AX971=\"\",'Enrollment Form'!$AX971=\"No\"),\"-\",IF(AND('Enrollment Form'!$AX971=\"Yes\",COUNTA('Enrollment Form'!$CR971)=1),\"Y\",\"N\")))","v":""},{"$f":"IF(OR('Enrollment Form'!$CR971=\"\",'Enrollment Form'!$CR971=\"No\"),\"-\",IF(COUNTA('Enrollment Form'!$CT971:$CU971)=2,\"Y\",\"N\"))","v":"-"},{"$f":"IF($B964=\"N\",\"\",IF(COUNTIF('Enrollment Form'!$DG971:$DP971,\"Other\")=COUNTA('Enrollment Form'!$DK971,'Enrollment Form'!$DH971,'Enrollment Form'!$DN971,'Enrollment Form'!$DQ971),\"Y\",\"N\"))","v":""},{"$f":"IF($B964=\"N\",\"\",IF(OR('Enrollment Form'!B971<>\"Subscriber\",'Enrollment Form'!C971=\"ROC\",COUNTIF('Enrollment Form'!AV971:AW971,\"Yes\")>=1),\"-\",IF(AND('Enrollment Form'!C971=\"Enroll\",COUNTIF('Enrollment Form'!AV971:AW971,\"No\")=2,'Enrollment Form'!AX971=\"\"),\"N\",\"Y\")))","v":""},{"$f":"IF(OR(B964=\"N\",'Enrollment Form'!B971<>\"Subscriber\",'Enrollment Form'!C971=\"ROC\",'Enrollment Form'!O971<>\"Multiple of Salary\"),\"-\",IF(COUNTA('Enrollment Form'!T971:U971)<2,\"N\",\"Y\"))","v":"-"},{"$f":"IF(B964=\"N\",\"\",IF(OR('Enrollment Form'!C971=\"ROC\",'Enrollment Form'!B971<>\"Subscriber\",'Enrollment Form'!O971=\"Waive\",'Enrollment Form'!O971=\"\"),\"-\",IF('Enrollment Form'!P971=\"\",\"N\",\"Y\")))","v":""},{"$f":"IF($B964=\"N\",\"\",IF(AND('Enrollment Form'!$C971=\"ROC\",'Enrollment Form'!$DR971<>\"\"),\"Y\",IF(AND('Enrollment Form'!$C971=\"ROC\",'Enrollment Form'!$DR971=\"\"),\"N\",IF(AND('Enrollment Form'!$C971=\"Enroll\",'Enrollment Form'!$B971=\"Subscriber\",'Enrollment Form'!$CX971=\"No\",'Enrollment Form'!$DR971=\"\"),\"N\",IF(AND('Enrollment Form'!$C971=\"Enroll\",'Enrollment Form'!$B971=\"Subscriber\",'Enrollment Form'!$CX971=\"Yes\"),\"-\",\"Y\")))))","v":""},{"$f":"IF($B964=\"N\",\"\",IF(AND('Enrollment Form'!$C971=\"ROC\",'Enrollment Form'!$DS971<>\"\"),\"Y\",IF(AND('Enrollment Form'!$C971=\"ROC\",'Enrollment Form'!$DS971=\"\"),\"N\",IF(AND('Enrollment Form'!$C971=\"Enroll\",'Enrollment Form'!$B971=\"Subscriber\",'Enrollment Form'!$CX971=\"No\",'Enrollment Form'!$DS971=\"\"),\"N\",IF(AND('Enrollment Form'!$C971=\"Enroll\",'Enrollment Form'!$B971=\"Subscriber\",'Enrollment Form'!$CX971=\"Yes\"),\"-\",\"Y\")))))","v":""},{"$f":"IF('Enrollment Form'!AH971=\"\",\"\",IF(ISERROR(SEARCH(\".\",'Enrollment Form'!AH971,SEARCH(\"@\",'Enrollment Form'!AH971))),\"N\",\"Y\"))","v":""},{"$f":"IF(OR($B964=\"N\",'Enrollment Form'!$G971=\"\"),\"\",IF('Enrollment Form'!$B971<>\"Subscriber\",\"-\",IF(COUNTIF('Enrollment Form'!$AV971:$AW971,\"Yes\")=2,\"N\",\"Y\")))","v":""},{"$f":"IF(OR('Enrollment Form'!$CJ971=\"\",'Enrollment Form'!$CJ971=\"No\"),\"-\",IF(AND('Enrollment Form'!$CJ971=\"Yes\",'Enrollment Form'!$CK971=\"\"),\"N\",\"Y\"))","v":"-"},{"$f":"IF(OR('Enrollment Form'!$CL971=\"\",'Enrollment Form'!$CL971=\"No\"),\"-\",IF(AND('Enrollment Form'!$CL971=\"Yes\",'Enrollment Form'!$CM971=\"\"),\"N\",\"Y\"))","v":"-"},{"$f":"IF(OR('Enrollment Form'!$CN971=\"\",'Enrollment Form'!$CN971=\"No\"),\"-\",IF(AND('Enrollment Form'!$CN971=\"Yes\",'Enrollment Form'!$CO971=\"\"),\"N\",\"Y\"))","v":"-"},{"$f":"IF(OR('Enrollment Form'!$CN971=\"\",'Enrollment Form'!$CN971=\"No\"),\"-\",IF(AND('Enrollment Form'!$CN971=\"Yes\",'Enrollment Form'!$CP971=\"\"),\"N\",\"Y\"))","v":"-"},{"$f":"IF('Enrollment Form'!B971<>\"Subscriber\",\"-\",IF(AND('Enrollment Form'!B971=\"Subscriber\",'Enrollment Form'!C971=\"Enroll\",'Enrollment Form'!AA971=\"\"),\"N\",\"Y\"))","v":"-"},{"$f":"IF(OR('Enrollment Form'!B971=\"Subscriber\",'Enrollment Form'!B971=\"\"),\"-\",IF('Enrollment Form'!BP971=\"\",\"N\",\"Y\"))","v":"-"},{"$f":"IF('Enrollment Form'!B971<>\"Subscriber\",\"-\",IF(AND('Enrollment Form'!B971=\"Subscriber\",'Enrollment Form'!G971=\"\"),\"N\",\"Y\"))","v":"-"},{"$f":"IF('Enrollment Form'!A971=\"\",\"\",IF('Enrollment Form'!B971=\"Subscriber\",\"-\",IF(AND('Enrollment Form'!B971<>\"Subscriber\",'Enrollment Form'!G971='Enrollment Form'!H971),\"N\",\"Y\")))","v":""},{"$f":"COUNTIF(C964:AN964,\"N\")","v":0}]
[972,{"$f":"IF('Enrollment Form'!$A972<>\"\",\"Y\",\"N\")","v":"N"},{"$f":"IF(AND('Enrollment Form'!$B972=\"\",'Enrollment Form'!$C972<>\"\"),\"N\",IF($B965=\"N\",\"\",\"Y\"))","v":""},{"$f":"IF(OR($B965=\"N\",'Enrollment Form'!G972=\"\"),\"\",IF('Enrollment Form'!$B972<>\"Subscriber\",\"\",IF('Enrollment Form'!$G972='Enrollment Form'!$H972,\"Y\",\"N\")))","v":""},{"$f":"IF($B965=\"N\",\"\",IF(AND(COUNTIFS('Enrollment Form'!$H$11:$H$1000,'Enrollment Form'!$H972,'Enrollment Form'!$B$11:$B$1000,'Enrollment Form'!$B972)>1,'Enrollment Form'!$H972<>\"\"),\"N\",\"Y\"))","v":""},{"$f":"IF($B965=\"N\",\"\",IF(LEN('Enrollment Form'!$Y972)=0,\"\",IF(LEN('Enrollment Form'!$Y972)<>5,\"N\",\"Y\")))","v":""},{"$f":"IF($B965=\"N\",\"\",IF(LEN('Enrollment Form'!$AD972=0),\"\",IF(LEN('Enrollment Form'!$AD972)<>5,\"N\",\"Y\")))","v":""},{"$f":"IF($B965=\"N\",\"\",IF(LEN('Enrollment Form'!$BS972=0),\"\",IF(LEN('Enrollment Form'!$BS972)<>5,\"N\",\"Y\")))","v":""},{"$f":"IF($B965=\"N\",\"\",IF(LEN('Enrollment Form'!$AE972)=0,\"\",IF(LEN('Enrollment Form'!$AE972)<>10,\"N\",\"Y\")))","v":""},{"$f":"IF($B965=\"N\",\"\",IF(LEN('Enrollment Form'!$AF972)=0,\"\",IF(LEN('Enrollment Form'!$AF972)<>10,\"N\",\"Y\")))","v":""},{"$f":"IF('Enrollment Form'!$O972<>\"Graded\",\"-\",IF(AND('Enrollment Form'!$O972=\"Graded\",'Enrollment Form'!$AR972<>\"\"),\"Y\",\"N\"))","v":"-"},{"$f":"IF($B965=\"N\",\"\",IF(OR('Enrollment Form'!$B972<>\"Subscriber\",'Enrollment Form'!$C972=\"ROC\"),\"-\",IF(AND('Enrollment Form'!$B972=\"Subscriber\",'Enrollment Form'!$C972=\"Enroll\",'Enrollment Form'!$AJ972<>\"\"),\"Y\",\"N\")))","v":""},{"$f":"IF($B965=\"N\",\"\",IF(OR('Enrollment Form'!$B972<>\"Subscriber\",'Enrollment Form'!$C972=\"ROC\"),\"-\",IF(AND('Enrollment Form'!$B972=\"Subscriber\",'Enrollment Form'!$C972=\"Enroll\",'Enrollment Form'!$AK972<>\"\"),\"Y\",\"N\")))","v":""},{"$f":"IF($B965=\"N\",\"\",IF(OR('Enrollment Form'!$B972<>\"Subscriber\",'Enrollment Form'!$C972=\"ROC\"),\"-\",IF(AND('Enrollment Form'!$B972=\"Subscriber\",'Enrollment Form'!$C972=\"Enroll\",'Enrollment Form'!$AL972<>\"\"),\"Y\",\"N\")))","v":""},{"$f":"IF($B965=\"N\",\"\",IF(OR('Enrollment Form'!$B972<>\"Subscriber\",'Enrollment Form'!$C972=\"ROC\"),\"-\",IF(AND('Enrollment Form'!$B972=\"Subscriber\",'Enrollment Form'!$C972=\"Enroll\",'Enrollment Form'!$AP972<>\"\"),\"Y\",\"N\")))","v":""},{"$f":"IF($B965=\"N\",\"\",IF(OR('Enrollment Form'!$B972<>\"Subscriber\",'Enrollment Form'!$C972=\"ROC\"),\"-\",IF(AND('Enrollment Form'!$B972=\"Subscriber\",'Enrollment Form'!$C972=\"Enroll\",'Enrollment Form'!$AQ972<>\"\"),\"Y\",\"N\")))","v":""},{"$f":"IF($B965=\"N\",\"\",IF(OR('Enrollment Form'!$B972<>\"Subscriber\",'Enrollment Form'!$C972=\"ROC\"),\"-\",IF(AND('Enrollment Form'!$B972=\"Subscriber\",'Enrollment Form'!$C972=\"Enroll\",'Enrollment Form'!$AS972<>\"\"),\"Y\",\"N\")))","v":""},{"$f":"IF($B965=\"N\",\"\",IF($Q965=\"-\",\"-\",IF(AND($Q965=\"Y\",'Enrollment Form'!$AS972=\"No\"),\"-\",IF(AND($Q965=\"Y\",'Enrollment Form'!$AS972=\"Yes\",'Enrollment Form'!$AT972<>\"\"),\"Y\",\"N\"))))","v":""},{"$f":"IF($B965=\"N\",\"\",IF(OR('Enrollment Form'!$B972<>\"Subscriber\",'Enrollment Form'!$C972=\"ROC\"),\"-\",IF(AND('Enrollment Form'!$B972=\"Subscriber\",'Enrollment Form'!$C972=\"Enroll\",'Enrollment Form'!$CV972<>\"\"),\"Y\",\"N\")))","v":""},{"$f":"IF($B965=\"N\",\"\",IF($S965=\"-\",\"-\",IF(AND($S965=\"Y\",'Enrollment Form'!$CV972=\"No\"),\"-\",IF(AND($S965=\"Y\",'Enrollment Form'!$CV972=\"Yes\",'Enrollment Form'!$CW972<>\"\"),\"Y\",\"N\"))))","v":""},{"$f":"IF(OR('Enrollment Form'!$AY972=\"Yes\",'Enrollment Form'!$AY972=\"\"),\"-\",IF(OR(AND('Enrollment Form'!$AY972=\"No\",ISERROR(FIND(\"HMO\",VLOOKUP('Enrollment Form'!G972,'Enrollment Form'!H$11:J$1000,3,FALSE),1))=FALSE,COUNTA('Enrollment Form'!$AZ972:$BC972)=4),AND('Enrollment Form'!$AY972=\"No\",ISERROR(FIND(\"HMO\",VLOOKUP('Enrollment Form'!G972,'Enrollment Form'!H$11:J$1000,3,FALSE),1))=FALSE,COUNTA('Enrollment Form'!$BT972:$BW972)=4)),\"Y\",\"N\"))","v":"-"},{"$f":"IF($B965=\"N\",\"\",IF('Enrollment Form'!$B972=\"Subscriber\",\"-\",IF(COUNTA('Enrollment Form'!$BL972,'Enrollment Form'!$BN972)=2,\"Y\",\"N\")))","v":""},{"$f":"IF($B965=\"N\",\"\",IF(OR('Enrollment Form'!$AX972=\"\",'Enrollment Form'!$AX972=\"No\"),\"-\",IF(AND('Enrollment Form'!$AX972=\"Yes\",COUNTA('Enrollment Form'!$CR972)=1),\"Y\",\"N\")))","v":""},{"$f":"IF(OR('Enrollment Form'!$CR972=\"\",'Enrollment Form'!$CR972=\"No\"),\"-\",IF(COUNTA('Enrollment Form'!$CT972:$CU972)=2,\"Y\",\"N\"))","v":"-"},{"$f":"IF($B965=\"N\",\"\",IF(COUNTIF('Enrollment Form'!$DG972:$DP972,\"Other\")=COUNTA('Enrollment Form'!$DK972,'Enrollment Form'!$DH972,'Enrollment Form'!$DN972,'Enrollment Form'!$DQ972),\"Y\",\"N\"))","v":""},{"$f":"IF($B965=\"N\",\"\",IF(OR('Enrollment Form'!B972<>\"Subscriber\",'Enrollment Form'!C972=\"ROC\",COUNTIF('Enrollment Form'!AV972:AW972,\"Yes\")>=1),\"-\",IF(AND('Enrollment Form'!C972=\"Enroll\",COUNTIF('Enrollment Form'!AV972:AW972,\"No\")=2,'Enrollment Form'!AX972=\"\"),\"N\",\"Y\")))","v":""},{"$f":"IF(OR(B965=\"N\",'Enrollment Form'!B972<>\"Subscriber\",'Enrollment Form'!C972=\"ROC\",'Enrollment Form'!O972<>\"Multiple of Salary\"),\"-\",IF(COUNTA('Enrollment Form'!T972:U972)<2,\"N\",\"Y\"))","v":"-"},{"$f":"IF(B965=\"N\",\"\",IF(OR('Enrollment Form'!C972=\"ROC\",'Enrollment Form'!B972<>\"Subscriber\",'Enrollment Form'!O972=\"Waive\",'Enrollment Form'!O972=\"\"),\"-\",IF('Enrollment Form'!P972=\"\",\"N\",\"Y\")))","v":""},{"$f":"IF($B965=\"N\",\"\",IF(AND('Enrollment Form'!$C972=\"ROC\",'Enrollment Form'!$DR972<>\"\"),\"Y\",IF(AND('Enrollment Form'!$C972=\"ROC\",'Enrollment Form'!$DR972=\"\"),\"N\",IF(AND('Enrollment Form'!$C972=\"Enroll\",'Enrollment Form'!$B972=\"Subscriber\",'Enrollment Form'!$CX972=\"No\",'Enrollment Form'!$DR972=\"\"),\"N\",IF(AND('Enrollment Form'!$C972=\"Enroll\",'Enrollment Form'!$B972=\"Subscriber\",'Enrollment Form'!$CX972=\"Yes\"),\"-\",\"Y\")))))","v":""},{"$f":"IF($B965=\"N\",\"\",IF(AND('Enrollment Form'!$C972=\"ROC\",'Enrollment Form'!$DS972<>\"\"),\"Y\",IF(AND('Enrollment Form'!$C972=\"ROC\",'Enrollment Form'!$DS972=\"\"),\"N\",IF(AND('Enrollment Form'!$C972=\"Enroll\",'Enrollment Form'!$B972=\"Subscriber\",'Enrollment Form'!$CX972=\"No\",'Enrollment Form'!$DS972=\"\"),\"N\",IF(AND('Enrollment Form'!$C972=\"Enroll\",'Enrollment Form'!$B972=\"Subscriber\",'Enrollment Form'!$CX972=\"Yes\"),\"-\",\"Y\")))))","v":""},{"$f":"IF('Enrollment Form'!AH972=\"\",\"\",IF(ISERROR(SEARCH(\".\",'Enrollment Form'!AH972,SEARCH(\"@\",'Enrollment Form'!AH972))),\"N\",\"Y\"))","v":""},{"$f":"IF(OR($B965=\"N\",'Enrollment Form'!$G972=\"\"),\"\",IF('Enrollment Form'!$B972<>\"Subscriber\",\"-\",IF(COUNTIF('Enrollment Form'!$AV972:$AW972,\"Yes\")=2,\"N\",\"Y\")))","v":""},{"$f":"IF(OR('Enrollment Form'!$CJ972=\"\",'Enrollment Form'!$CJ972=\"No\"),\"-\",IF(AND('Enrollment Form'!$CJ972=\"Yes\",'Enrollment Form'!$CK972=\"\"),\"N\",\"Y\"))","v":"-"},{"$f":"IF(OR('Enrollment Form'!$CL972=\"\",'Enrollment Form'!$CL972=\"No\"),\"-\",IF(AND('Enrollment Form'!$CL972=\"Yes\",'Enrollment Form'!$CM972=\"\"),\"N\",\"Y\"))","v":"-"},{"$f":"IF(OR('Enrollment Form'!$CN972=\"\",'Enrollment Form'!$CN972=\"No\"),\"-\",IF(AND('Enrollment Form'!$CN972=\"Yes\",'Enrollment Form'!$CO972=\"\"),\"N\",\"Y\"))","v":"-"},{"$f":"IF(OR('Enrollment Form'!$CN972=\"\",'Enrollment Form'!$CN972=\"No\"),\"-\",IF(AND('Enrollment Form'!$CN972=\"Yes\",'Enrollment Form'!$CP972=\"\"),\"N\",\"Y\"))","v":"-"},{"$f":"IF('Enrollment Form'!B972<>\"Subscriber\",\"-\",IF(AND('Enrollment Form'!B972=\"Subscriber\",'Enrollment Form'!C972=\"Enroll\",'Enrollment Form'!AA972=\"\"),\"N\",\"Y\"))","v":"-"},{"$f":"IF(OR('Enrollment Form'!B972=\"Subscriber\",'Enrollment Form'!B972=\"\"),\"-\",IF('Enrollment Form'!BP972=\"\",\"N\",\"Y\"))","v":"-"},{"$f":"IF('Enrollment Form'!B972<>\"Subscriber\",\"-\",IF(AND('Enrollment Form'!B972=\"Subscriber\",'Enrollment Form'!G972=\"\"),\"N\",\"Y\"))","v":"-"},{"$f":"IF('Enrollment Form'!A972=\"\",\"\",IF('Enrollment Form'!B972=\"Subscriber\",\"-\",IF(AND('Enrollment Form'!B972<>\"Subscriber\",'Enrollment Form'!G972='Enrollment Form'!H972),\"N\",\"Y\")))","v":""},0]
[{"$f":"1+A965","v":973},{"$f":"IF('Enrollment Form'!$A973<>\"\",\"Y\",\"N\")","v":"N"},{"$f":"IF(AND('Enrollment Form'!$B973=\"\",'Enrollment Form'!$C973<>\"\"),\"N\",IF($B966=\"N\",\"\",\"Y\"))","v":""},{"$f":"IF(OR($B966=\"N\",'Enrollment Form'!G973=\"\"),\"\",IF('Enrollment Form'!$B973<>\"Subscriber\",\"\",IF('Enrollment Form'!$G973='Enrollment Form'!$H973,\"Y\",\"N\")))","v":""},{"$f":"IF($B966=\"N\",\"\",IF(AND(COUNTIFS('Enrollment Form'!$H$11:$H$1000,'Enrollment Form'!$H973,'Enrollment Form'!$B$11:$B$1000,'Enrollment Form'!$B973)>1,'Enrollment Form'!$H973<>\"\"),\"N\",\"Y\"))","v":""},{"$f":"IF($B966=\"N\",\"\",IF(LEN('Enrollment Form'!$Y973)=0,\"\",IF(LEN('Enrollment Form'!$Y973)<>5,\"N\",\"Y\")))","v":""},{"$f":"IF($B966=\"N\",\"\",IF(LEN('Enrollment Form'!$AD973=0),\"\",IF(LEN('Enrollment Form'!$AD973)<>5,\"N\",\"Y\")))","v":""},{"$f":"IF($B966=\"N\",\"\",IF(LEN('Enrollment Form'!$BS973=0),\"\",IF(LEN('Enrollment Form'!$BS973)<>5,\"N\",\"Y\")))","v":""},{"$f":"IF($B966=\"N\",\"\",IF(LEN('Enrollment Form'!$AE973)=0,\"\",IF(LEN('Enrollment Form'!$AE973)<>10,\"N\",\"Y\")))","v":""},{"$f":"IF($B966=\"N\",\"\",IF(LEN('Enrollment Form'!$AF973)=0,\"\",IF(LEN('Enrollment Form'!$AF973)<>10,\"N\",\"Y\")))","v":""},{"$f":"IF('Enrollment Form'!$O973<>\"Graded\",\"-\",IF(AND('Enrollment Form'!$O973=\"Graded\",'Enrollment Form'!$AR973<>\"\"),\"Y\",\"N\"))","v":"-"},{"$f":"IF($B966=\"N\",\"\",IF(OR('Enrollment Form'!$B973<>\"Subscriber\",'Enrollment Form'!$C973=\"ROC\"),\"-\",IF(AND('Enrollment Form'!$B973=\"Subscriber\",'Enrollment Form'!$C973=\"Enroll\",'Enrollment Form'!$AJ973<>\"\"),\"Y\",\"N\")))","v":""},{"$f":"IF($B966=\"N\",\"\",IF(OR('Enrollment Form'!$B973<>\"Subscriber\",'Enrollment Form'!$C973=\"ROC\"),\"-\",IF(AND('Enrollment Form'!$B973=\"Subscriber\",'Enrollment Form'!$C973=\"Enroll\",'Enrollment Form'!$AK973<>\"\"),\"Y\",\"N\")))","v":""},{"$f":"IF($B966=\"N\",\"\",IF(OR('Enrollment Form'!$B973<>\"Subscriber\",'Enrollment Form'!$C973=\"ROC\"),\"-\",IF(AND('Enrollment Form'!$B973=\"Subscriber\",'Enrollment Form'!$C973=\"Enroll\",'Enrollment Form'!$AL973<>\"\"),\"Y\",\"N\")))","v":""},{"$f":"IF($B966=\"N\",\"\",IF(OR('Enrollment Form'!$B973<>\"Subscriber\",'Enrollment Form'!$C973=\"ROC\"),\"-\",IF(AND('Enrollment Form'!$B973=\"Subscriber\",'Enrollment Form'!$C973=\"Enroll\",'Enrollment Form'!$AP973<>\"\"),\"Y\",\"N\")))","v":""},{"$f":"IF($B966=\"N\",\"\",IF(OR('Enrollment Form'!$B973<>\"Subscriber\",'Enrollment Form'!$C973=\"ROC\"),\"-\",IF(AND('Enrollment Form'!$B973=\"Subscriber\",'Enrollment Form'!$C973=\"Enroll\",'Enrollment Form'!$AQ973<>\"\"),\"Y\",\"N\")))","v":""},{"$f":"IF($B966=\"N\",\"\",IF(OR('Enrollment Form'!$B973<>\"Subscriber\",'Enrollment Form'!$C973=\"ROC\"),\"-\",IF(AND('Enrollment Form'!$B973=\"Subscriber\",'Enrollment Form'!$C973=\"Enroll\",'Enrollment Form'!$AS973<>\"\"),\"Y\",\"N\")))","v":""},{"$f":"IF($B966=\"N\",\"\",IF($Q966=\"-\",\"-\",IF(AND($Q966=\"Y\",'Enrollment Form'!$AS973=\"No\"),\"-\",IF(AND($Q966=\"Y\",'Enrollment Form'!$AS973=\"Yes\",'Enrollment Form'!$AT973<>\"\"),\"Y\",\"N\"))))","v":""},{"$f":"IF($B966=\"N\",\"\",IF(OR('Enrollment Form'!$B973<>\"Subscriber\",'Enrollment Form'!$C973=\"ROC\"),\"-\",IF(AND('Enrollment Form'!$B973=\"Subscriber\",'Enrollment Form'!$C973=\"Enroll\",'Enrollment Form'!$CV973<>\"\"),\"Y\",\"N\")))","v":""},{"$f":"IF($B966=\"N\",\"\",IF($S966=\"-\",\"-\",IF(AND($S966=\"Y\",'Enrollment Form'!$CV973=\"No\"),\"-\",IF(AND($S966=\"Y\",'Enrollment Form'!$CV973=\"Yes\",'Enrollment Form'!$CW973<>\"\"),\"Y\",\"N\"))))","v":""},{"$f":"IF(OR('Enrollment Form'!$AY973=\"Yes\",'Enrollment Form'!$AY973=\"\"),\"-\",IF(OR(AND('Enrollment Form'!$AY973=\"No\",ISERROR(FIND(\"HMO\",VLOOKUP('Enrollment Form'!G973,'Enrollment Form'!H$11:J$1000,3,FALSE),1))=FALSE,COUNTA('Enrollment Form'!$AZ973:$BC973)=4),AND('Enrollment Form'!$AY973=\"No\",ISERROR(FIND(\"HMO\",VLOOKUP('Enrollment Form'!G973,'Enrollment Form'!H$11:J$1000,3,FALSE),1))=FALSE,COUNTA('Enrollment Form'!$BT973:$BW973)=4)),\"Y\",\"N\"))","v":"-"},{"$f":"IF($B966=\"N\",\"\",IF('Enrollment Form'!$B973=\"Subscriber\",\"-\",IF(COUNTA('Enrollment Form'!$BL973,'Enrollment Form'!$BN973)=2,\"Y\",\"N\")))","v":""},{"$f":"IF($B966=\"N\",\"\",IF(OR('Enrollment Form'!$AX973=\"\",'Enrollment Form'!$AX973=\"No\"),\"-\",IF(AND('Enrollment Form'!$AX973=\"Yes\",COUNTA('Enrollment Form'!$CR973)=1),\"Y\",\"N\")))","v":""},{"$f":"IF(OR('Enrollment Form'!$CR973=\"\",'Enrollment Form'!$CR973=\"No\"),\"-\",IF(COUNTA('Enrollment Form'!$CT973:$CU973)=2,\"Y\",\"N\"))","v":"-"},{"$f":"IF($B966=\"N\",\"\",IF(COUNTIF('Enrollment Form'!$DG973:$DP973,\"Other\")=COUNTA('Enrollment Form'!$DK973,'Enrollment Form'!$DH973,'Enrollment Form'!$DN973,'Enrollment Form'!$DQ973),\"Y\",\"N\"))","v":""},{"$f":"IF($B966=\"N\",\"\",IF(OR('Enrollment Form'!B973<>\"Subscriber\",'Enrollment Form'!C973=\"ROC\",COUNTIF('Enrollment Form'!AV973:AW973,\"Yes\")>=1),\"-\",IF(AND('Enrollment Form'!C973=\"Enroll\",COUNTIF('Enrollment Form'!AV973:AW973,\"No\")=2,'Enrollment Form'!AX973=\"\"),\"N\",\"Y\")))","v":""},{"$f":"IF(OR(B966=\"N\",'Enrollment Form'!B973<>\"Subscriber\",'Enrollment Form'!C973=\"ROC\",'Enrollment Form'!O973<>\"Multiple of Salary\"),\"-\",IF(COUNTA('Enrollment Form'!T973:U973)<2,\"N\",\"Y\"))","v":"-"},{"$f":"IF(B966=\"N\",\"\",IF(OR('Enrollment Form'!C973=\"ROC\",'Enrollment Form'!B973<>\"Subscriber\",'Enrollment Form'!O973=\"Waive\",'Enrollment Form'!O973=\"\"),\"-\",IF('Enrollment Form'!P973=\"\",\"N\",\"Y\")))","v":""},{"$f":"IF($B966=\"N\",\"\",IF(AND('Enrollment Form'!$C973=\"ROC\",'Enrollment Form'!$DR973<>\"\"),\"Y\",IF(AND('Enrollment Form'!$C973=\"ROC\",'Enrollment Form'!$DR973=\"\"),\"N\",IF(AND('Enrollment Form'!$C973=\"Enroll\",'Enrollment Form'!$B973=\"Subscriber\",'Enrollment Form'!$CX973=\"No\",'Enrollment Form'!$DR973=\"\"),\"N\",IF(AND('Enrollment Form'!$C973=\"Enroll\",'Enrollment Form'!$B973=\"Subscriber\",'Enrollment Form'!$CX973=\"Yes\"),\"-\",\"Y\")))))","v":""},{"$f":"IF($B966=\"N\",\"\",IF(AND('Enrollment Form'!$C973=\"ROC\",'Enrollment Form'!$DS973<>\"\"),\"Y\",IF(AND('Enrollment Form'!$C973=\"ROC\",'Enrollment Form'!$DS973=\"\"),\"N\",IF(AND('Enrollment Form'!$C973=\"Enroll\",'Enrollment Form'!$B973=\"Subscriber\",'Enrollment Form'!$CX973=\"No\",'Enrollment Form'!$DS973=\"\"),\"N\",IF(AND('Enrollment Form'!$C973=\"Enroll\",'Enrollment Form'!$B973=\"Subscriber\",'Enrollment Form'!$CX973=\"Yes\"),\"-\",\"Y\")))))","v":""},{"$f":"IF('Enrollment Form'!AH973=\"\",\"\",IF(ISERROR(SEARCH(\".\",'Enrollment Form'!AH973,SEARCH(\"@\",'Enrollment Form'!AH973))),\"N\",\"Y\"))","v":""},{"$f":"IF(OR($B966=\"N\",'Enrollment Form'!$G973=\"\"),\"\",IF('Enrollment Form'!$B973<>\"Subscriber\",\"-\",IF(COUNTIF('Enrollment Form'!$AV973:$AW973,\"Yes\")=2,\"N\",\"Y\")))","v":""},{"$f":"IF(OR('Enrollment Form'!$CJ973=\"\",'Enrollment Form'!$CJ973=\"No\"),\"-\",IF(AND('Enrollment Form'!$CJ973=\"Yes\",'Enrollment Form'!$CK973=\"\"),\"N\",\"Y\"))","v":"-"},{"$f":"IF(OR('Enrollment Form'!$CL973=\"\",'Enrollment Form'!$CL973=\"No\"),\"-\",IF(AND('Enrollment Form'!$CL973=\"Yes\",'Enrollment Form'!$CM973=\"\"),\"N\",\"Y\"))","v":"-"},{"$f":"IF(OR('Enrollment Form'!$CN973=\"\",'Enrollment Form'!$CN973=\"No\"),\"-\",IF(AND('Enrollment Form'!$CN973=\"Yes\",'Enrollment Form'!$CO973=\"\"),\"N\",\"Y\"))","v":"-"},{"$f":"IF(OR('Enrollment Form'!$CN973=\"\",'Enrollment Form'!$CN973=\"No\"),\"-\",IF(AND('Enrollment Form'!$CN973=\"Yes\",'Enrollment Form'!$CP973=\"\"),\"N\",\"Y\"))","v":"-"},{"$f":"IF('Enrollment Form'!B973<>\"Subscriber\",\"-\",IF(AND('Enrollment Form'!B973=\"Subscriber\",'Enrollment Form'!C973=\"Enroll\",'Enrollment Form'!AA973=\"\"),\"N\",\"Y\"))","v":"-"},{"$f":"IF(OR('Enrollment Form'!B973=\"Subscriber\",'Enrollment Form'!B973=\"\"),\"-\",IF('Enrollment Form'!BP973=\"\",\"N\",\"Y\"))","v":"-"},{"$f":"IF('Enrollment Form'!B973<>\"Subscriber\",\"-\",IF(AND('Enrollment Form'!B973=\"Subscriber\",'Enrollment Form'!G973=\"\"),\"N\",\"Y\"))","v":"-"},{"$f":"IF('Enrollment Form'!A973=\"\",\"\",IF('Enrollment Form'!B973=\"Subscriber\",\"-\",IF(AND('Enrollment Form'!B973<>\"Subscriber\",'Enrollment Form'!G973='Enrollment Form'!H973),\"N\",\"Y\")))","v":""},0]
[974,{"$f":"IF('Enrollment Form'!$A974<>\"\",\"Y\",\"N\")","v":"N"},{"$f":"IF(AND('Enrollment Form'!$B974=\"\",'Enrollment Form'!$C974<>\"\"),\"N\",IF($B967=\"N\",\"\",\"Y\"))","v":""},{"$f":"IF(OR($B967=\"N\",'Enrollment Form'!G974=\"\"),\"\",IF('Enrollment Form'!$B974<>\"Subscriber\",\"\",IF('Enrollment Form'!$G974='Enrollment Form'!$H974,\"Y\",\"N\")))","v":""},{"$f":"IF($B967=\"N\",\"\",IF(AND(COUNTIFS('Enrollment Form'!$H$11:$H$1000,'Enrollment Form'!$H974,'Enrollment Form'!$B$11:$B$1000,'Enrollment Form'!$B974)>1,'Enrollment Form'!$H974<>\"\"),\"N\",\"Y\"))","v":""},{"$f":"IF($B967=\"N\",\"\",IF(LEN('Enrollment Form'!$Y974)=0,\"\",IF(LEN('Enrollment Form'!$Y974)<>5,\"N\",\"Y\")))","v":""},{"$f":"IF($B967=\"N\",\"\",IF(LEN('Enrollment Form'!$AD974=0),\"\",IF(LEN('Enrollment Form'!$AD974)<>5,\"N\",\"Y\")))","v":""},{"$f":"IF($B967=\"N\",\"\",IF(LEN('Enrollment Form'!$BS974=0),\"\",IF(LEN('Enrollment Form'!$BS974)<>5,\"N\",\"Y\")))","v":""},{"$f":"IF($B967=\"N\",\"\",IF(LEN('Enrollment Form'!$AE974)=0,\"\",IF(LEN('Enrollment Form'!$AE974)<>10,\"N\",\"Y\")))","v":""},{"$f":"IF($B967=\"N\",\"\",IF(LEN('Enrollment Form'!$AF974)=0,\"\",IF(LEN('Enrollment Form'!$AF974)<>10,\"N\",\"Y\")))","v":""},{"$f":"IF('Enrollment Form'!$O974<>\"Graded\",\"-\",IF(AND('Enrollment Form'!$O974=\"Graded\",'Enrollment Form'!$AR974<>\"\"),\"Y\",\"N\"))","v":"-"},{"$f":"IF($B967=\"N\",\"\",IF(OR('Enrollment Form'!$B974<>\"Subscriber\",'Enrollment Form'!$C974=\"ROC\"),\"-\",IF(AND('Enrollment Form'!$B974=\"Subscriber\",'Enrollment Form'!$C974=\"Enroll\",'Enrollment Form'!$AJ974<>\"\"),\"Y\",\"N\")))","v":""},{"$f":"IF($B967=\"N\",\"\",IF(OR('Enrollment Form'!$B974<>\"Subscriber\",'Enrollment Form'!$C974=\"ROC\"),\"-\",IF(AND('Enrollment Form'!$B974=\"Subscriber\",'Enrollment Form'!$C974=\"Enroll\",'Enrollment Form'!$AK974<>\"\"),\"Y\",\"N\")))","v":""},{"$f":"IF($B967=\"N\",\"\",IF(OR('Enrollment Form'!$B974<>\"Subscriber\",'Enrollment Form'!$C974=\"ROC\"),\"-\",IF(AND('Enrollment Form'!$B974=\"Subscriber\",'Enrollment Form'!$C974=\"Enroll\",'Enrollment Form'!$AL974<>\"\"),\"Y\",\"N\")))","v":""},{"$f":"IF($B967=\"N\",\"\",IF(OR('Enrollment Form'!$B974<>\"Subscriber\",'Enrollment Form'!$C974=\"ROC\"),\"-\",IF(AND('Enrollment Form'!$B974=\"Subscriber\",'Enrollment Form'!$C974=\"Enroll\",'Enrollment Form'!$AP974<>\"\"),\"Y\",\"N\")))","v":""},{"$f":"IF($B967=\"N\",\"\",IF(OR('Enrollment Form'!$B974<>\"Subscriber\",'Enrollment Form'!$C974=\"ROC\"),\"-\",IF(AND('Enrollment Form'!$B974=\"Subscriber\",'Enrollment Form'!$C974=\"Enroll\",'Enrollment Form'!$AQ974<>\"\"),\"Y\",\"N\")))","v":""},{"$f":"IF($B967=\"N\",\"\",IF(OR('Enrollment Form'!$B974<>\"Subscriber\",'Enrollment Form'!$C974=\"ROC\"),\"-\",IF(AND('Enrollment Form'!$B974=\"Subscriber\",'Enrollment Form'!$C974=\"Enroll\",'Enrollment Form'!$AS974<>\"\"),\"Y\",\"N\")))","v":""},{"$f":"IF($B967=\"N\",\"\",IF($Q967=\"-\",\"-\",IF(AND($Q967=\"Y\",'Enrollment Form'!$AS974=\"No\"),\"-\",IF(AND($Q967=\"Y\",'Enrollment Form'!$AS974=\"Yes\",'Enrollment Form'!$AT974<>\"\"),\"Y\",\"N\"))))","v":""},{"$f":"IF($B967=\"N\",\"\",IF(OR('Enrollment Form'!$B974<>\"Subscriber\",'Enrollment Form'!$C974=\"ROC\"),\"-\",IF(AND('Enrollment Form'!$B974=\"Subscriber\",'Enrollment Form'!$C974=\"Enroll\",'Enrollment Form'!$CV974<>\"\"),\"Y\",\"N\")))","v":""},{"$f":"IF($B967=\"N\",\"\",IF($S967=\"-\",\"-\",IF(AND($S967=\"Y\",'Enrollment Form'!$CV974=\"No\"),\"-\",IF(AND($S967=\"Y\",'Enrollment Form'!$CV974=\"Yes\",'Enrollment Form'!$CW974<>\"\"),\"Y\",\"N\"))))","v":""},{"$f":"IF(OR('Enrollment Form'!$AY974=\"Yes\",'Enrollment Form'!$AY974=\"\"),\"-\",IF(OR(AND('Enrollment Form'!$AY974=\"No\",ISERROR(FIND(\"HMO\",VLOOKUP('Enrollment Form'!G974,'Enrollment Form'!H$11:J$1000,3,FALSE),1))=FALSE,COUNTA('Enrollment Form'!$AZ974:$BC974)=4),AND('Enrollment Form'!$AY974=\"No\",ISERROR(FIND(\"HMO\",VLOOKUP('Enrollment Form'!G974,'Enrollment Form'!H$11:J$1000,3,FALSE),1))=FALSE,COUNTA('Enrollment Form'!$BT974:$BW974)=4)),\"Y\",\"N\"))","v":"-"},{"$f":"IF($B967=\"N\",\"\",IF('Enrollment Form'!$B974=\"Subscriber\",\"-\",IF(COUNTA('Enrollment Form'!$BL974,'Enrollment Form'!$BN974)=2,\"Y\",\"N\")))","v":""},{"$f":"IF($B967=\"N\",\"\",IF(OR('Enrollment Form'!$AX974=\"\",'Enrollment Form'!$AX974=\"No\"),\"-\",IF(AND('Enrollment Form'!$AX974=\"Yes\",COUNTA('Enrollment Form'!$CR974)=1),\"Y\",\"N\")))","v":""},{"$f":"IF(OR('Enrollment Form'!$CR974=\"\",'Enrollment Form'!$CR974=\"No\"),\"-\",IF(COUNTA('Enrollment Form'!$CT974:$CU974)=2,\"Y\",\"N\"))","v":"-"},{"$f":"IF($B967=\"N\",\"\",IF(COUNTIF('Enrollment Form'!$DG974:$DP974,\"Other\")=COUNTA('Enrollment Form'!$DK974,'Enrollment Form'!$DH974,'Enrollment Form'!$DN974,'Enrollment Form'!$DQ974),\"Y\",\"N\"))","v":""},{"$f":"IF($B967=\"N\",\"\",IF(OR('Enrollment Form'!B974<>\"Subscriber\",'Enrollment Form'!C974=\"ROC\",COUNTIF('Enrollment Form'!AV974:AW974,\"Yes\")>=1),\"-\",IF(AND('Enrollment Form'!C974=\"Enroll\",COUNTIF('Enrollment Form'!AV974:AW974,\"No\")=2,'Enrollment Form'!AX974=\"\"),\"N\",\"Y\")))","v":""},{"$f":"IF(OR(B967=\"N\",'Enrollment Form'!B974<>\"Subscriber\",'Enrollment Form'!C974=\"ROC\",'Enrollment Form'!O974<>\"Multiple of Salary\"),\"-\",IF(COUNTA('Enrollment Form'!T974:U974)<2,\"N\",\"Y\"))","v":"-"},{"$f":"IF(B967=\"N\",\"\",IF(OR('Enrollment Form'!C974=\"ROC\",'Enrollment Form'!B974<>\"Subscriber\",'Enrollment Form'!O974=\"Waive\",'Enrollment Form'!O974=\"\"),\"-\",IF('Enrollment Form'!P974=\"\",\"N\",\"Y\")))","v":""},{"$f":"IF($B967=\"N\",\"\",IF(AND('Enrollment Form'!$C974=\"ROC\",'Enrollment Form'!$DR974<>\"\"),\"Y\",IF(AND('Enrollment Form'!$C974=\"ROC\",'Enrollment Form'!$DR974=\"\"),\"N\",IF(AND('Enrollment Form'!$C974=\"Enroll\",'Enrollment Form'!$B974=\"Subscriber\",'Enrollment Form'!$CX974=\"No\",'Enrollment Form'!$DR974=\"\"),\"N\",IF(AND('Enrollment Form'!$C974=\"Enroll\",'Enrollment Form'!$B974=\"Subscriber\",'Enrollment Form'!$CX974=\"Yes\"),\"-\",\"Y\")))))","v":""},{"$f":"IF($B967=\"N\",\"\",IF(AND('Enrollment Form'!$C974=\"ROC\",'Enrollment Form'!$DS974<>\"\"),\"Y\",IF(AND('Enrollment Form'!$C974=\"ROC\",'Enrollment Form'!$DS974=\"\"),\"N\",IF(AND('Enrollment Form'!$C974=\"Enroll\",'Enrollment Form'!$B974=\"Subscriber\",'Enrollment Form'!$CX974=\"No\",'Enrollment Form'!$DS974=\"\"),\"N\",IF(AND('Enrollment Form'!$C974=\"Enroll\",'Enrollment Form'!$B974=\"Subscriber\",'Enrollment Form'!$CX974=\"Yes\"),\"-\",\"Y\")))))","v":""},{"$f":"IF('Enrollment Form'!AH974=\"\",\"\",IF(ISERROR(SEARCH(\".\",'Enrollment Form'!AH974,SEARCH(\"@\",'Enrollment Form'!AH974))),\"N\",\"Y\"))","v":""},{"$f":"IF(OR($B967=\"N\",'Enrollment Form'!$G974=\"\"),\"\",IF('Enrollment Form'!$B974<>\"Subscriber\",\"-\",IF(COUNTIF('Enrollment Form'!$AV974:$AW974,\"Yes\")=2,\"N\",\"Y\")))","v":""},{"$f":"IF(OR('Enrollment Form'!$CJ974=\"\",'Enrollment Form'!$CJ974=\"No\"),\"-\",IF(AND('Enrollment Form'!$CJ974=\"Yes\",'Enrollment Form'!$CK974=\"\"),\"N\",\"Y\"))","v":"-"},{"$f":"IF(OR('Enrollment Form'!$CL974=\"\",'Enrollment Form'!$CL974=\"No\"),\"-\",IF(AND('Enrollment Form'!$CL974=\"Yes\",'Enrollment Form'!$CM974=\"\"),\"N\",\"Y\"))","v":"-"},{"$f":"IF(OR('Enrollment Form'!$CN974=\"\",'Enrollment Form'!$CN974=\"No\"),\"-\",IF(AND('Enrollment Form'!$CN974=\"Yes\",'Enrollment Form'!$CO974=\"\"),\"N\",\"Y\"))","v":"-"},{"$f":"IF(OR('Enrollment Form'!$CN974=\"\",'Enrollment Form'!$CN974=\"No\"),\"-\",IF(AND('Enrollment Form'!$CN974=\"Yes\",'Enrollment Form'!$CP974=\"\"),\"N\",\"Y\"))","v":"-"},{"$f":"IF('Enrollment Form'!B974<>\"Subscriber\",\"-\",IF(AND('Enrollment Form'!B974=\"Subscriber\",'Enrollment Form'!C974=\"Enroll\",'Enrollment Form'!AA974=\"\"),\"N\",\"Y\"))","v":"-"},{"$f":"IF(OR('Enrollment Form'!B974=\"Subscriber\",'Enrollment Form'!B974=\"\"),\"-\",IF('Enrollment Form'!BP974=\"\",\"N\",\"Y\"))","v":"-"},{"$f":"IF('Enrollment Form'!B974<>\"Subscriber\",\"-\",IF(AND('Enrollment Form'!B974=\"Subscriber\",'Enrollment Form'!G974=\"\"),\"N\",\"Y\"))","v":"-"},{"$f":"IF('Enrollment Form'!A974=\"\",\"\",IF('Enrollment Form'!B974=\"Subscriber\",\"-\",IF(AND('Enrollment Form'!B974<>\"Subscriber\",'Enrollment Form'!G974='Enrollment Form'!H974),\"N\",\"Y\")))","v":""},0]
[975,{"$f":"IF('Enrollment Form'!$A975<>\"\",\"Y\",\"N\")","v":"N"},{"$f":"IF(AND('Enrollment Form'!$B975=\"\",'Enrollment Form'!$C975<>\"\"),\"N\",IF($B968=\"N\",\"\",\"Y\"))","v":""},{"$f":"IF(OR($B968=\"N\",'Enrollment Form'!G975=\"\"),\"\",IF('Enrollment Form'!$B975<>\"Subscriber\",\"\",IF('Enrollment Form'!$G975='Enrollment Form'!$H975,\"Y\",\"N\")))","v":""},{"$f":"IF($B968=\"N\",\"\",IF(AND(COUNTIFS('Enrollment Form'!$H$11:$H$1000,'Enrollment Form'!$H975,'Enrollment Form'!$B$11:$B$1000,'Enrollment Form'!$B975)>1,'Enrollment Form'!$H975<>\"\"),\"N\",\"Y\"))","v":""},{"$f":"IF($B968=\"N\",\"\",IF(LEN('Enrollment Form'!$Y975)=0,\"\",IF(LEN('Enrollment Form'!$Y975)<>5,\"N\",\"Y\")))","v":""},{"$f":"IF($B968=\"N\",\"\",IF(LEN('Enrollment Form'!$AD975=0),\"\",IF(LEN('Enrollment Form'!$AD975)<>5,\"N\",\"Y\")))","v":""},{"$f":"IF($B968=\"N\",\"\",IF(LEN('Enrollment Form'!$BS975=0),\"\",IF(LEN('Enrollment Form'!$BS975)<>5,\"N\",\"Y\")))","v":""},{"$f":"IF($B968=\"N\",\"\",IF(LEN('Enrollment Form'!$AE975)=0,\"\",IF(LEN('Enrollment Form'!$AE975)<>10,\"N\",\"Y\")))","v":""},{"$f":"IF($B968=\"N\",\"\",IF(LEN('Enrollment Form'!$AF975)=0,\"\",IF(LEN('Enrollment Form'!$AF975)<>10,\"N\",\"Y\")))","v":""},{"$f":"IF('Enrollment Form'!$O975<>\"Graded\",\"-\",IF(AND('Enrollment Form'!$O975=\"Graded\",'Enrollment Form'!$AR975<>\"\"),\"Y\",\"N\"))","v":"-"},{"$f":"IF($B968=\"N\",\"\",IF(OR('Enrollment Form'!$B975<>\"Subscriber\",'Enrollment Form'!$C975=\"ROC\"),\"-\",IF(AND('Enrollment Form'!$B975=\"Subscriber\",'Enrollment Form'!$C975=\"Enroll\",'Enrollment Form'!$AJ975<>\"\"),\"Y\",\"N\")))","v":""},{"$f":"IF($B968=\"N\",\"\",IF(OR('Enrollment Form'!$B975<>\"Subscriber\",'Enrollment Form'!$C975=\"ROC\"),\"-\",IF(AND('Enrollment Form'!$B975=\"Subscriber\",'Enrollment Form'!$C975=\"Enroll\",'Enrollment Form'!$AK975<>\"\"),\"Y\",\"N\")))","v":""},{"$f":"IF($B968=\"N\",\"\",IF(OR('Enrollment Form'!$B975<>\"Subscriber\",'Enrollment Form'!$C975=\"ROC\"),\"-\",IF(AND('Enrollment Form'!$B975=\"Subscriber\",'Enrollment Form'!$C975=\"Enroll\",'Enrollment Form'!$AL975<>\"\"),\"Y\",\"N\")))","v":""},{"$f":"IF($B968=\"N\",\"\",IF(OR('Enrollment Form'!$B975<>\"Subscriber\",'Enrollment Form'!$C975=\"ROC\"),\"-\",IF(AND('Enrollment Form'!$B975=\"Subscriber\",'Enrollment Form'!$C975=\"Enroll\",'Enrollment Form'!$AP975<>\"\"),\"Y\",\"N\")))","v":""},{"$f":"IF($B968=\"N\",\"\",IF(OR('Enrollment Form'!$B975<>\"Subscriber\",'Enrollment Form'!$C975=\"ROC\"),\"-\",IF(AND('Enrollment Form'!$B975=\"Subscriber\",'Enrollment Form'!$C975=\"Enroll\",'Enrollment Form'!$AQ975<>\"\"),\"Y\",\"N\")))","v":""},{"$f":"IF($B968=\"N\",\"\",IF(OR('Enrollment Form'!$B975<>\"Subscriber\",'Enrollment Form'!$C975=\"ROC\"),\"-\",IF(AND('Enrollment Form'!$B975=\"Subscriber\",'Enrollment Form'!$C975=\"Enroll\",'Enrollment Form'!$AS975<>\"\"),\"Y\",\"N\")))","v":""},{"$f":"IF($B968=\"N\",\"\",IF($Q968=\"-\",\"-\",IF(AND($Q968=\"Y\",'Enrollment Form'!$AS975=\"No\"),\"-\",IF(AND($Q968=\"Y\",'Enrollment Form'!$AS975=\"Yes\",'Enrollment Form'!$AT975<>\"\"),\"Y\",\"N\"))))","v":""},{"$f":"IF($B968=\"N\",\"\",IF(OR('Enrollment Form'!$B975<>\"Subscriber\",'Enrollment Form'!$C975=\"ROC\"),\"-\",IF(AND('Enrollment Form'!$B975=\"Subscriber\",'Enrollment Form'!$C975=\"Enroll\",'Enrollment Form'!$CV975<>\"\"),\"Y\",\"N\")))","v":""},{"$f":"IF($B968=\"N\",\"\",IF($S968=\"-\",\"-\",IF(AND($S968=\"Y\",'Enrollment Form'!$CV975=\"No\"),\"-\",IF(AND($S968=\"Y\",'Enrollment Form'!$CV975=\"Yes\",'Enrollment Form'!$CW975<>\"\"),\"Y\",\"N\"))))","v":""},{"$f":"IF(OR('Enrollment Form'!$AY975=\"Yes\",'Enrollment Form'!$AY975=\"\"),\"-\",IF(OR(AND('Enrollment Form'!$AY975=\"No\",ISERROR(FIND(\"HMO\",VLOOKUP('Enrollment Form'!G975,'Enrollment Form'!H$11:J$1000,3,FALSE),1))=FALSE,COUNTA('Enrollment Form'!$AZ975:$BC975)=4),AND('Enrollment Form'!$AY975=\"No\",ISERROR(FIND(\"HMO\",VLOOKUP('Enrollment Form'!G975,'Enrollment Form'!H$11:J$1000,3,FALSE),1))=FALSE,COUNTA('Enrollment Form'!$BT975:$BW975)=4)),\"Y\",\"N\"))","v":"-"},{"$f":"IF($B968=\"N\",\"\",IF('Enrollment Form'!$B975=\"Subscriber\",\"-\",IF(COUNTA('Enrollment Form'!$BL975,'Enrollment Form'!$BN975)=2,\"Y\",\"N\")))","v":""},{"$f":"IF($B968=\"N\",\"\",IF(OR('Enrollment Form'!$AX975=\"\",'Enrollment Form'!$AX975=\"No\"),\"-\",IF(AND('Enrollment Form'!$AX975=\"Yes\",COUNTA('Enrollment Form'!$CR975)=1),\"Y\",\"N\")))","v":""},{"$f":"IF(OR('Enrollment Form'!$CR975=\"\",'Enrollment Form'!$CR975=\"No\"),\"-\",IF(COUNTA('Enrollment Form'!$CT975:$CU975)=2,\"Y\",\"N\"))","v":"-"},{"$f":"IF($B968=\"N\",\"\",IF(COUNTIF('Enrollment Form'!$DG975:$DP975,\"Other\")=COUNTA('Enrollment Form'!$DK975,'Enrollment Form'!$DH975,'Enrollment Form'!$DN975,'Enrollment Form'!$DQ975),\"Y\",\"N\"))","v":""},{"$f":"IF($B968=\"N\",\"\",IF(OR('Enrollment Form'!B975<>\"Subscriber\",'Enrollment Form'!C975=\"ROC\",COUNTIF('Enrollment Form'!AV975:AW975,\"Yes\")>=1),\"-\",IF(AND('Enrollment Form'!C975=\"Enroll\",COUNTIF('Enrollment Form'!AV975:AW975,\"No\")=2,'Enrollment Form'!AX975=\"\"),\"N\",\"Y\")))","v":""},{"$f":"IF(OR(B968=\"N\",'Enrollment Form'!B975<>\"Subscriber\",'Enrollment Form'!C975=\"ROC\",'Enrollment Form'!O975<>\"Multiple of Salary\"),\"-\",IF(COUNTA('Enrollment Form'!T975:U975)<2,\"N\",\"Y\"))","v":"-"},{"$f":"IF(B968=\"N\",\"\",IF(OR('Enrollment Form'!C975=\"ROC\",'Enrollment Form'!B975<>\"Subscriber\",'Enrollment Form'!O975=\"Waive\",'Enrollment Form'!O975=\"\"),\"-\",IF('Enrollment Form'!P975=\"\",\"N\",\"Y\")))","v":""},{"$f":"IF($B968=\"N\",\"\",IF(AND('Enrollment Form'!$C975=\"ROC\",'Enrollment Form'!$DR975<>\"\"),\"Y\",IF(AND('Enrollment Form'!$C975=\"ROC\",'Enrollment Form'!$DR975=\"\"),\"N\",IF(AND('Enrollment Form'!$C975=\"Enroll\",'Enrollment Form'!$B975=\"Subscriber\",'Enrollment Form'!$CX975=\"No\",'Enrollment Form'!$DR975=\"\"),\"N\",IF(AND('Enrollment Form'!$C975=\"Enroll\",'Enrollment Form'!$B975=\"Subscriber\",'Enrollment Form'!$CX975=\"Yes\"),\"-\",\"Y\")))))","v":""},{"$f":"IF($B968=\"N\",\"\",IF(AND('Enrollment Form'!$C975=\"ROC\",'Enrollment Form'!$DS975<>\"\"),\"Y\",IF(AND('Enrollment Form'!$C975=\"ROC\",'Enrollment Form'!$DS975=\"\"),\"N\",IF(AND('Enrollment Form'!$C975=\"Enroll\",'Enrollment Form'!$B975=\"Subscriber\",'Enrollment Form'!$CX975=\"No\",'Enrollment Form'!$DS975=\"\"),\"N\",IF(AND('Enrollment Form'!$C975=\"Enroll\",'Enrollment Form'!$B975=\"Subscriber\",'Enrollment Form'!$CX975=\"Yes\"),\"-\",\"Y\")))))","v":""},{"$f":"IF('Enrollment Form'!AH975=\"\",\"\",IF(ISERROR(SEARCH(\".\",'Enrollment Form'!AH975,SEARCH(\"@\",'Enrollment Form'!AH975))),\"N\",\"Y\"))","v":""},{"$f":"IF(OR($B968=\"N\",'Enrollment Form'!$G975=\"\"),\"\",IF('Enrollment Form'!$B975<>\"Subscriber\",\"-\",IF(COUNTIF('Enrollment Form'!$AV975:$AW975,\"Yes\")=2,\"N\",\"Y\")))","v":""},{"$f":"IF(OR('Enrollment Form'!$CJ975=\"\",'Enrollment Form'!$CJ975=\"No\"),\"-\",IF(AND('Enrollment Form'!$CJ975=\"Yes\",'Enrollment Form'!$CK975=\"\"),\"N\",\"Y\"))","v":"-"},{"$f":"IF(OR('Enrollment Form'!$CL975=\"\",'Enrollment Form'!$CL975=\"No\"),\"-\",IF(AND('Enrollment Form'!$CL975=\"Yes\",'Enrollment Form'!$CM975=\"\"),\"N\",\"Y\"))","v":"-"},{"$f":"IF(OR('Enrollment Form'!$CN975=\"\",'Enrollment Form'!$CN975=\"No\"),\"-\",IF(AND('Enrollment Form'!$CN975=\"Yes\",'Enrollment Form'!$CO975=\"\"),\"N\",\"Y\"))","v":"-"},{"$f":"IF(OR('Enrollment Form'!$CN975=\"\",'Enrollment Form'!$CN975=\"No\"),\"-\",IF(AND('Enrollment Form'!$CN975=\"Yes\",'Enrollment Form'!$CP975=\"\"),\"N\",\"Y\"))","v":"-"},{"$f":"IF('Enrollment Form'!B975<>\"Subscriber\",\"-\",IF(AND('Enrollment Form'!B975=\"Subscriber\",'Enrollment Form'!C975=\"Enroll\",'Enrollment Form'!AA975=\"\"),\"N\",\"Y\"))","v":"-"},{"$f":"IF(OR('Enrollment Form'!B975=\"Subscriber\",'Enrollment Form'!B975=\"\"),\"-\",IF('Enrollment Form'!BP975=\"\",\"N\",\"Y\"))","v":"-"},{"$f":"IF('Enrollment Form'!B975<>\"Subscriber\",\"-\",IF(AND('Enrollment Form'!B975=\"Subscriber\",'Enrollment Form'!G975=\"\"),\"N\",\"Y\"))","v":"-"},{"$f":"IF('Enrollment Form'!A975=\"\",\"\",IF('Enrollment Form'!B975=\"Subscriber\",\"-\",IF(AND('Enrollment Form'!B975<>\"Subscriber\",'Enrollment Form'!G975='Enrollment Form'!H975),\"N\",\"Y\")))","v":""},0]
[976,{"$f":"IF('Enrollment Form'!$A976<>\"\",\"Y\",\"N\")","v":"N"},{"$f":"IF(AND('Enrollment Form'!$B976=\"\",'Enrollment Form'!$C976<>\"\"),\"N\",IF($B969=\"N\",\"\",\"Y\"))","v":""},{"$f":"IF(OR($B969=\"N\",'Enrollment Form'!G976=\"\"),\"\",IF('Enrollment Form'!$B976<>\"Subscriber\",\"\",IF('Enrollment Form'!$G976='Enrollment Form'!$H976,\"Y\",\"N\")))","v":""},{"$f":"IF($B969=\"N\",\"\",IF(AND(COUNTIFS('Enrollment Form'!$H$11:$H$1000,'Enrollment Form'!$H976,'Enrollment Form'!$B$11:$B$1000,'Enrollment Form'!$B976)>1,'Enrollment Form'!$H976<>\"\"),\"N\",\"Y\"))","v":""},{"$f":"IF($B969=\"N\",\"\",IF(LEN('Enrollment Form'!$Y976)=0,\"\",IF(LEN('Enrollment Form'!$Y976)<>5,\"N\",\"Y\")))","v":""},{"$f":"IF($B969=\"N\",\"\",IF(LEN('Enrollment Form'!$AD976=0),\"\",IF(LEN('Enrollment Form'!$AD976)<>5,\"N\",\"Y\")))","v":""},{"$f":"IF($B969=\"N\",\"\",IF(LEN('Enrollment Form'!$BS976=0),\"\",IF(LEN('Enrollment Form'!$BS976)<>5,\"N\",\"Y\")))","v":""},{"$f":"IF($B969=\"N\",\"\",IF(LEN('Enrollment Form'!$AE976)=0,\"\",IF(LEN('Enrollment Form'!$AE976)<>10,\"N\",\"Y\")))","v":""},{"$f":"IF($B969=\"N\",\"\",IF(LEN('Enrollment Form'!$AF976)=0,\"\",IF(LEN('Enrollment Form'!$AF976)<>10,\"N\",\"Y\")))","v":""},{"$f":"IF('Enrollment Form'!$O976<>\"Graded\",\"-\",IF(AND('Enrollment Form'!$O976=\"Graded\",'Enrollment Form'!$AR976<>\"\"),\"Y\",\"N\"))","v":"-"},{"$f":"IF($B969=\"N\",\"\",IF(OR('Enrollment Form'!$B976<>\"Subscriber\",'Enrollment Form'!$C976=\"ROC\"),\"-\",IF(AND('Enrollment Form'!$B976=\"Subscriber\",'Enrollment Form'!$C976=\"Enroll\",'Enrollment Form'!$AJ976<>\"\"),\"Y\",\"N\")))","v":""},{"$f":"IF($B969=\"N\",\"\",IF(OR('Enrollment Form'!$B976<>\"Subscriber\",'Enrollment Form'!$C976=\"ROC\"),\"-\",IF(AND('Enrollment Form'!$B976=\"Subscriber\",'Enrollment Form'!$C976=\"Enroll\",'Enrollment Form'!$AK976<>\"\"),\"Y\",\"N\")))","v":""},{"$f":"IF($B969=\"N\",\"\",IF(OR('Enrollment Form'!$B976<>\"Subscriber\",'Enrollment Form'!$C976=\"ROC\"),\"-\",IF(AND('Enrollment Form'!$B976=\"Subscriber\",'Enrollment Form'!$C976=\"Enroll\",'Enrollment Form'!$AL976<>\"\"),\"Y\",\"N\")))","v":""},{"$f":"IF($B969=\"N\",\"\",IF(OR('Enrollment Form'!$B976<>\"Subscriber\",'Enrollment Form'!$C976=\"ROC\"),\"-\",IF(AND('Enrollment Form'!$B976=\"Subscriber\",'Enrollment Form'!$C976=\"Enroll\",'Enrollment Form'!$AP976<>\"\"),\"Y\",\"N\")))","v":""},{"$f":"IF($B969=\"N\",\"\",IF(OR('Enrollment Form'!$B976<>\"Subscriber\",'Enrollment Form'!$C976=\"ROC\"),\"-\",IF(AND('Enrollment Form'!$B976=\"Subscriber\",'Enrollment Form'!$C976=\"Enroll\",'Enrollment Form'!$AQ976<>\"\"),\"Y\",\"N\")))","v":""},{"$f":"IF($B969=\"N\",\"\",IF(OR('Enrollment Form'!$B976<>\"Subscriber\",'Enrollment Form'!$C976=\"ROC\"),\"-\",IF(AND('Enrollment Form'!$B976=\"Subscriber\",'Enrollment Form'!$C976=\"Enroll\",'Enrollment Form'!$AS976<>\"\"),\"Y\",\"N\")))","v":""},{"$f":"IF($B969=\"N\",\"\",IF($Q969=\"-\",\"-\",IF(AND($Q969=\"Y\",'Enrollment Form'!$AS976=\"No\"),\"-\",IF(AND($Q969=\"Y\",'Enrollment Form'!$AS976=\"Yes\",'Enrollment Form'!$AT976<>\"\"),\"Y\",\"N\"))))","v":""},{"$f":"IF($B969=\"N\",\"\",IF(OR('Enrollment Form'!$B976<>\"Subscriber\",'Enrollment Form'!$C976=\"ROC\"),\"-\",IF(AND('Enrollment Form'!$B976=\"Subscriber\",'Enrollment Form'!$C976=\"Enroll\",'Enrollment Form'!$CV976<>\"\"),\"Y\",\"N\")))","v":""},{"$f":"IF($B969=\"N\",\"\",IF($S969=\"-\",\"-\",IF(AND($S969=\"Y\",'Enrollment Form'!$CV976=\"No\"),\"-\",IF(AND($S969=\"Y\",'Enrollment Form'!$CV976=\"Yes\",'Enrollment Form'!$CW976<>\"\"),\"Y\",\"N\"))))","v":""},{"$f":"IF(OR('Enrollment Form'!$AY976=\"Yes\",'Enrollment Form'!$AY976=\"\"),\"-\",IF(OR(AND('Enrollment Form'!$AY976=\"No\",ISERROR(FIND(\"HMO\",VLOOKUP('Enrollment Form'!G976,'Enrollment Form'!H$11:J$1000,3,FALSE),1))=FALSE,COUNTA('Enrollment Form'!$AZ976:$BC976)=4),AND('Enrollment Form'!$AY976=\"No\",ISERROR(FIND(\"HMO\",VLOOKUP('Enrollment Form'!G976,'Enrollment Form'!H$11:J$1000,3,FALSE),1))=FALSE,COUNTA('Enrollment Form'!$BT976:$BW976)=4)),\"Y\",\"N\"))","v":"-"},{"$f":"IF($B969=\"N\",\"\",IF('Enrollment Form'!$B976=\"Subscriber\",\"-\",IF(COUNTA('Enrollment Form'!$BL976,'Enrollment Form'!$BN976)=2,\"Y\",\"N\")))","v":""},{"$f":"IF($B969=\"N\",\"\",IF(OR('Enrollment Form'!$AX976=\"\",'Enrollment Form'!$AX976=\"No\"),\"-\",IF(AND('Enrollment Form'!$AX976=\"Yes\",COUNTA('Enrollment Form'!$CR976)=1),\"Y\",\"N\")))","v":""},{"$f":"IF(OR('Enrollment Form'!$CR976=\"\",'Enrollment Form'!$CR976=\"No\"),\"-\",IF(COUNTA('Enrollment Form'!$CT976:$CU976)=2,\"Y\",\"N\"))","v":"-"},{"$f":"IF($B969=\"N\",\"\",IF(COUNTIF('Enrollment Form'!$DG976:$DP976,\"Other\")=COUNTA('Enrollment Form'!$DK976,'Enrollment Form'!$DH976,'Enrollment Form'!$DN976,'Enrollment Form'!$DQ976),\"Y\",\"N\"))","v":""},{"$f":"IF($B969=\"N\",\"\",IF(OR('Enrollment Form'!B976<>\"Subscriber\",'Enrollment Form'!C976=\"ROC\",COUNTIF('Enrollment Form'!AV976:AW976,\"Yes\")>=1),\"-\",IF(AND('Enrollment Form'!C976=\"Enroll\",COUNTIF('Enrollment Form'!AV976:AW976,\"No\")=2,'Enrollment Form'!AX976=\"\"),\"N\",\"Y\")))","v":""},{"$f":"IF(OR(B969=\"N\",'Enrollment Form'!B976<>\"Subscriber\",'Enrollment Form'!C976=\"ROC\",'Enrollment Form'!O976<>\"Multiple of Salary\"),\"-\",IF(COUNTA('Enrollment Form'!T976:U976)<2,\"N\",\"Y\"))","v":"-"},{"$f":"IF(B969=\"N\",\"\",IF(OR('Enrollment Form'!C976=\"ROC\",'Enrollment Form'!B976<>\"Subscriber\",'Enrollment Form'!O976=\"Waive\",'Enrollment Form'!O976=\"\"),\"-\",IF('Enrollment Form'!P976=\"\",\"N\",\"Y\")))","v":""},{"$f":"IF($B969=\"N\",\"\",IF(AND('Enrollment Form'!$C976=\"ROC\",'Enrollment Form'!$DR976<>\"\"),\"Y\",IF(AND('Enrollment Form'!$C976=\"ROC\",'Enrollment Form'!$DR976=\"\"),\"N\",IF(AND('Enrollment Form'!$C976=\"Enroll\",'Enrollment Form'!$B976=\"Subscriber\",'Enrollment Form'!$CX976=\"No\",'Enrollment Form'!$DR976=\"\"),\"N\",IF(AND('Enrollment Form'!$C976=\"Enroll\",'Enrollment Form'!$B976=\"Subscriber\",'Enrollment Form'!$CX976=\"Yes\"),\"-\",\"Y\")))))","v":""},{"$f":"IF($B969=\"N\",\"\",IF(AND('Enrollment Form'!$C976=\"ROC\",'Enrollment Form'!$DS976<>\"\"),\"Y\",IF(AND('Enrollment Form'!$C976=\"ROC\",'Enrollment Form'!$DS976=\"\"),\"N\",IF(AND('Enrollment Form'!$C976=\"Enroll\",'Enrollment Form'!$B976=\"Subscriber\",'Enrollment Form'!$CX976=\"No\",'Enrollment Form'!$DS976=\"\"),\"N\",IF(AND('Enrollment Form'!$C976=\"Enroll\",'Enrollment Form'!$B976=\"Subscriber\",'Enrollment Form'!$CX976=\"Yes\"),\"-\",\"Y\")))))","v":""},{"$f":"IF('Enrollment Form'!AH976=\"\",\"\",IF(ISERROR(SEARCH(\".\",'Enrollment Form'!AH976,SEARCH(\"@\",'Enrollment Form'!AH976))),\"N\",\"Y\"))","v":""},{"$f":"IF(OR($B969=\"N\",'Enrollment Form'!$G976=\"\"),\"\",IF('Enrollment Form'!$B976<>\"Subscriber\",\"-\",IF(COUNTIF('Enrollment Form'!$AV976:$AW976,\"Yes\")=2,\"N\",\"Y\")))","v":""},{"$f":"IF(OR('Enrollment Form'!$CJ976=\"\",'Enrollment Form'!$CJ976=\"No\"),\"-\",IF(AND('Enrollment Form'!$CJ976=\"Yes\",'Enrollment Form'!$CK976=\"\"),\"N\",\"Y\"))","v":"-"},{"$f":"IF(OR('Enrollment Form'!$CL976=\"\",'Enrollment Form'!$CL976=\"No\"),\"-\",IF(AND('Enrollment Form'!$CL976=\"Yes\",'Enrollment Form'!$CM976=\"\"),\"N\",\"Y\"))","v":"-"},{"$f":"IF(OR('Enrollment Form'!$CN976=\"\",'Enrollment Form'!$CN976=\"No\"),\"-\",IF(AND('Enrollment Form'!$CN976=\"Yes\",'Enrollment Form'!$CO976=\"\"),\"N\",\"Y\"))","v":"-"},{"$f":"IF(OR('Enrollment Form'!$CN976=\"\",'Enrollment Form'!$CN976=\"No\"),\"-\",IF(AND('Enrollment Form'!$CN976=\"Yes\",'Enrollment Form'!$CP976=\"\"),\"N\",\"Y\"))","v":"-"},{"$f":"IF('Enrollment Form'!B976<>\"Subscriber\",\"-\",IF(AND('Enrollment Form'!B976=\"Subscriber\",'Enrollment Form'!C976=\"Enroll\",'Enrollment Form'!AA976=\"\"),\"N\",\"Y\"))","v":"-"},{"$f":"IF(OR('Enrollment Form'!B976=\"Subscriber\",'Enrollment Form'!B976=\"\"),\"-\",IF('Enrollment Form'!BP976=\"\",\"N\",\"Y\"))","v":"-"},{"$f":"IF('Enrollment Form'!B976<>\"Subscriber\",\"-\",IF(AND('Enrollment Form'!B976=\"Subscriber\",'Enrollment Form'!G976=\"\"),\"N\",\"Y\"))","v":"-"},{"$f":"IF('Enrollment Form'!A976=\"\",\"\",IF('Enrollment Form'!B976=\"Subscriber\",\"-\",IF(AND('Enrollment Form'!B976<>\"Subscriber\",'Enrollment Form'!G976='Enrollment Form'!H976),\"N\",\"Y\")))","v":""},0]
[977,{"$f":"IF('Enrollment Form'!$A977<>\"\",\"Y\",\"N\")","v":"N"},{"$f":"IF(AND('Enrollment Form'!$B977=\"\",'Enrollment Form'!$C977<>\"\"),\"N\",IF($B970=\"N\",\"\",\"Y\"))","v":""},{"$f":"IF(OR($B970=\"N\",'Enrollment Form'!G977=\"\"),\"\",IF('Enrollment Form'!$B977<>\"Subscriber\",\"\",IF('Enrollment Form'!$G977='Enrollment Form'!$H977,\"Y\",\"N\")))","v":""},{"$f":"IF($B970=\"N\",\"\",IF(AND(COUNTIFS('Enrollment Form'!$H$11:$H$1000,'Enrollment Form'!$H977,'Enrollment Form'!$B$11:$B$1000,'Enrollment Form'!$B977)>1,'Enrollment Form'!$H977<>\"\"),\"N\",\"Y\"))","v":""},{"$f":"IF($B970=\"N\",\"\",IF(LEN('Enrollment Form'!$Y977)=0,\"\",IF(LEN('Enrollment Form'!$Y977)<>5,\"N\",\"Y\")))","v":""},{"$f":"IF($B970=\"N\",\"\",IF(LEN('Enrollment Form'!$AD977=0),\"\",IF(LEN('Enrollment Form'!$AD977)<>5,\"N\",\"Y\")))","v":""},{"$f":"IF($B970=\"N\",\"\",IF(LEN('Enrollment Form'!$BS977=0),\"\",IF(LEN('Enrollment Form'!$BS977)<>5,\"N\",\"Y\")))","v":""},{"$f":"IF($B970=\"N\",\"\",IF(LEN('Enrollment Form'!$AE977)=0,\"\",IF(LEN('Enrollment Form'!$AE977)<>10,\"N\",\"Y\")))","v":""},{"$f":"IF($B970=\"N\",\"\",IF(LEN('Enrollment Form'!$AF977)=0,\"\",IF(LEN('Enrollment Form'!$AF977)<>10,\"N\",\"Y\")))","v":""},{"$f":"IF('Enrollment Form'!$O977<>\"Graded\",\"-\",IF(AND('Enrollment Form'!$O977=\"Graded\",'Enrollment Form'!$AR977<>\"\"),\"Y\",\"N\"))","v":"-"},{"$f":"IF($B970=\"N\",\"\",IF(OR('Enrollment Form'!$B977<>\"Subscriber\",'Enrollment Form'!$C977=\"ROC\"),\"-\",IF(AND('Enrollment Form'!$B977=\"Subscriber\",'Enrollment Form'!$C977=\"Enroll\",'Enrollment Form'!$AJ977<>\"\"),\"Y\",\"N\")))","v":""},{"$f":"IF($B970=\"N\",\"\",IF(OR('Enrollment Form'!$B977<>\"Subscriber\",'Enrollment Form'!$C977=\"ROC\"),\"-\",IF(AND('Enrollment Form'!$B977=\"Subscriber\",'Enrollment Form'!$C977=\"Enroll\",'Enrollment Form'!$AK977<>\"\"),\"Y\",\"N\")))","v":""},{"$f":"IF($B970=\"N\",\"\",IF(OR('Enrollment Form'!$B977<>\"Subscriber\",'Enrollment Form'!$C977=\"ROC\"),\"-\",IF(AND('Enrollment Form'!$B977=\"Subscriber\",'Enrollment Form'!$C977=\"Enroll\",'Enrollment Form'!$AL977<>\"\"),\"Y\",\"N\")))","v":""},{"$f":"IF($B970=\"N\",\"\",IF(OR('Enrollment Form'!$B977<>\"Subscriber\",'Enrollment Form'!$C977=\"ROC\"),\"-\",IF(AND('Enrollment Form'!$B977=\"Subscriber\",'Enrollment Form'!$C977=\"Enroll\",'Enrollment Form'!$AP977<>\"\"),\"Y\",\"N\")))","v":""},{"$f":"IF($B970=\"N\",\"\",IF(OR('Enrollment Form'!$B977<>\"Subscriber\",'Enrollment Form'!$C977=\"ROC\"),\"-\",IF(AND('Enrollment Form'!$B977=\"Subscriber\",'Enrollment Form'!$C977=\"Enroll\",'Enrollment Form'!$AQ977<>\"\"),\"Y\",\"N\")))","v":""},{"$f":"IF($B970=\"N\",\"\",IF(OR('Enrollment Form'!$B977<>\"Subscriber\",'Enrollment Form'!$C977=\"ROC\"),\"-\",IF(AND('Enrollment Form'!$B977=\"Subscriber\",'Enrollment Form'!$C977=\"Enroll\",'Enrollment Form'!$AS977<>\"\"),\"Y\",\"N\")))","v":""},{"$f":"IF($B970=\"N\",\"\",IF($Q970=\"-\",\"-\",IF(AND($Q970=\"Y\",'Enrollment Form'!$AS977=\"No\"),\"-\",IF(AND($Q970=\"Y\",'Enrollment Form'!$AS977=\"Yes\",'Enrollment Form'!$AT977<>\"\"),\"Y\",\"N\"))))","v":""},{"$f":"IF($B970=\"N\",\"\",IF(OR('Enrollment Form'!$B977<>\"Subscriber\",'Enrollment Form'!$C977=\"ROC\"),\"-\",IF(AND('Enrollment Form'!$B977=\"Subscriber\",'Enrollment Form'!$C977=\"Enroll\",'Enrollment Form'!$CV977<>\"\"),\"Y\",\"N\")))","v":""},{"$f":"IF($B970=\"N\",\"\",IF($S970=\"-\",\"-\",IF(AND($S970=\"Y\",'Enrollment Form'!$CV977=\"No\"),\"-\",IF(AND($S970=\"Y\",'Enrollment Form'!$CV977=\"Yes\",'Enrollment Form'!$CW977<>\"\"),\"Y\",\"N\"))))","v":""},{"$f":"IF(OR('Enrollment Form'!$AY977=\"Yes\",'Enrollment Form'!$AY977=\"\"),\"-\",IF(OR(AND('Enrollment Form'!$AY977=\"No\",ISERROR(FIND(\"HMO\",VLOOKUP('Enrollment Form'!G977,'Enrollment Form'!H$11:J$1000,3,FALSE),1))=FALSE,COUNTA('Enrollment Form'!$AZ977:$BC977)=4),AND('Enrollment Form'!$AY977=\"No\",ISERROR(FIND(\"HMO\",VLOOKUP('Enrollment Form'!G977,'Enrollment Form'!H$11:J$1000,3,FALSE),1))=FALSE,COUNTA('Enrollment Form'!$BT977:$BW977)=4)),\"Y\",\"N\"))","v":"-"},{"$f":"IF($B970=\"N\",\"\",IF('Enrollment Form'!$B977=\"Subscriber\",\"-\",IF(COUNTA('Enrollment Form'!$BL977,'Enrollment Form'!$BN977)=2,\"Y\",\"N\")))","v":""},{"$f":"IF($B970=\"N\",\"\",IF(OR('Enrollment Form'!$AX977=\"\",'Enrollment Form'!$AX977=\"No\"),\"-\",IF(AND('Enrollment Form'!$AX977=\"Yes\",COUNTA('Enrollment Form'!$CR977)=1),\"Y\",\"N\")))","v":""},{"$f":"IF(OR('Enrollment Form'!$CR977=\"\",'Enrollment Form'!$CR977=\"No\"),\"-\",IF(COUNTA('Enrollment Form'!$CT977:$CU977)=2,\"Y\",\"N\"))","v":"-"},{"$f":"IF($B970=\"N\",\"\",IF(COUNTIF('Enrollment Form'!$DG977:$DP977,\"Other\")=COUNTA('Enrollment Form'!$DK977,'Enrollment Form'!$DH977,'Enrollment Form'!$DN977,'Enrollment Form'!$DQ977),\"Y\",\"N\"))","v":""},{"$f":"IF($B970=\"N\",\"\",IF(OR('Enrollment Form'!B977<>\"Subscriber\",'Enrollment Form'!C977=\"ROC\",COUNTIF('Enrollment Form'!AV977:AW977,\"Yes\")>=1),\"-\",IF(AND('Enrollment Form'!C977=\"Enroll\",COUNTIF('Enrollment Form'!AV977:AW977,\"No\")=2,'Enrollment Form'!AX977=\"\"),\"N\",\"Y\")))","v":""},{"$f":"IF(OR(B970=\"N\",'Enrollment Form'!B977<>\"Subscriber\",'Enrollment Form'!C977=\"ROC\",'Enrollment Form'!O977<>\"Multiple of Salary\"),\"-\",IF(COUNTA('Enrollment Form'!T977:U977)<2,\"N\",\"Y\"))","v":"-"},{"$f":"IF(B970=\"N\",\"\",IF(OR('Enrollment Form'!C977=\"ROC\",'Enrollment Form'!B977<>\"Subscriber\",'Enrollment Form'!O977=\"Waive\",'Enrollment Form'!O977=\"\"),\"-\",IF('Enrollment Form'!P977=\"\",\"N\",\"Y\")))","v":""},{"$f":"IF($B970=\"N\",\"\",IF(AND('Enrollment Form'!$C977=\"ROC\",'Enrollment Form'!$DR977<>\"\"),\"Y\",IF(AND('Enrollment Form'!$C977=\"ROC\",'Enrollment Form'!$DR977=\"\"),\"N\",IF(AND('Enrollment Form'!$C977=\"Enroll\",'Enrollment Form'!$B977=\"Subscriber\",'Enrollment Form'!$CX977=\"No\",'Enrollment Form'!$DR977=\"\"),\"N\",IF(AND('Enrollment Form'!$C977=\"Enroll\",'Enrollment Form'!$B977=\"Subscriber\",'Enrollment Form'!$CX977=\"Yes\"),\"-\",\"Y\")))))","v":""},{"$f":"IF($B970=\"N\",\"\",IF(AND('Enrollment Form'!$C977=\"ROC\",'Enrollment Form'!$DS977<>\"\"),\"Y\",IF(AND('Enrollment Form'!$C977=\"ROC\",'Enrollment Form'!$DS977=\"\"),\"N\",IF(AND('Enrollment Form'!$C977=\"Enroll\",'Enrollment Form'!$B977=\"Subscriber\",'Enrollment Form'!$CX977=\"No\",'Enrollment Form'!$DS977=\"\"),\"N\",IF(AND('Enrollment Form'!$C977=\"Enroll\",'Enrollment Form'!$B977=\"Subscriber\",'Enrollment Form'!$CX977=\"Yes\"),\"-\",\"Y\")))))","v":""},{"$f":"IF('Enrollment Form'!AH977=\"\",\"\",IF(ISERROR(SEARCH(\".\",'Enrollment Form'!AH977,SEARCH(\"@\",'Enrollment Form'!AH977))),\"N\",\"Y\"))","v":""},{"$f":"IF(OR($B970=\"N\",'Enrollment Form'!$G977=\"\"),\"\",IF('Enrollment Form'!$B977<>\"Subscriber\",\"-\",IF(COUNTIF('Enrollment Form'!$AV977:$AW977,\"Yes\")=2,\"N\",\"Y\")))","v":""},{"$f":"IF(OR('Enrollment Form'!$CJ977=\"\",'Enrollment Form'!$CJ977=\"No\"),\"-\",IF(AND('Enrollment Form'!$CJ977=\"Yes\",'Enrollment Form'!$CK977=\"\"),\"N\",\"Y\"))","v":"-"},{"$f":"IF(OR('Enrollment Form'!$CL977=\"\",'Enrollment Form'!$CL977=\"No\"),\"-\",IF(AND('Enrollment Form'!$CL977=\"Yes\",'Enrollment Form'!$CM977=\"\"),\"N\",\"Y\"))","v":"-"},{"$f":"IF(OR('Enrollment Form'!$CN977=\"\",'Enrollment Form'!$CN977=\"No\"),\"-\",IF(AND('Enrollment Form'!$CN977=\"Yes\",'Enrollment Form'!$CO977=\"\"),\"N\",\"Y\"))","v":"-"},{"$f":"IF(OR('Enrollment Form'!$CN977=\"\",'Enrollment Form'!$CN977=\"No\"),\"-\",IF(AND('Enrollment Form'!$CN977=\"Yes\",'Enrollment Form'!$CP977=\"\"),\"N\",\"Y\"))","v":"-"},{"$f":"IF('Enrollment Form'!B977<>\"Subscriber\",\"-\",IF(AND('Enrollment Form'!B977=\"Subscriber\",'Enrollment Form'!C977=\"Enroll\",'Enrollment Form'!AA977=\"\"),\"N\",\"Y\"))","v":"-"},{"$f":"IF(OR('Enrollment Form'!B977=\"Subscriber\",'Enrollment Form'!B977=\"\"),\"-\",IF('Enrollment Form'!BP977=\"\",\"N\",\"Y\"))","v":"-"},{"$f":"IF('Enrollment Form'!B977<>\"Subscriber\",\"-\",IF(AND('Enrollment Form'!B977=\"Subscriber\",'Enrollment Form'!G977=\"\"),\"N\",\"Y\"))","v":"-"},{"$f":"IF('Enrollment Form'!A977=\"\",\"\",IF('Enrollment Form'!B977=\"Subscriber\",\"-\",IF(AND('Enrollment Form'!B977<>\"Subscriber\",'Enrollment Form'!G977='Enrollment Form'!H977),\"N\",\"Y\")))","v":""},0]
[978,{"$f":"IF('Enrollment Form'!$A978<>\"\",\"Y\",\"N\")","v":"N"},{"$f":"IF(AND('Enrollment Form'!$B978=\"\",'Enrollment Form'!$C978<>\"\"),\"N\",IF($B971=\"N\",\"\",\"Y\"))","v":""},{"$f":"IF(OR($B971=\"N\",'Enrollment Form'!G978=\"\"),\"\",IF('Enrollment Form'!$B978<>\"Subscriber\",\"\",IF('Enrollment Form'!$G978='Enrollment Form'!$H978,\"Y\",\"N\")))","v":""},{"$f":"IF($B971=\"N\",\"\",IF(AND(COUNTIFS('Enrollment Form'!$H$11:$H$1000,'Enrollment Form'!$H978,'Enrollment Form'!$B$11:$B$1000,'Enrollment Form'!$B978)>1,'Enrollment Form'!$H978<>\"\"),\"N\",\"Y\"))","v":""},{"$f":"IF($B971=\"N\",\"\",IF(LEN('Enrollment Form'!$Y978)=0,\"\",IF(LEN('Enrollment Form'!$Y978)<>5,\"N\",\"Y\")))","v":""},{"$f":"IF($B971=\"N\",\"\",IF(LEN('Enrollment Form'!$AD978=0),\"\",IF(LEN('Enrollment Form'!$AD978)<>5,\"N\",\"Y\")))","v":""},{"$f":"IF($B971=\"N\",\"\",IF(LEN('Enrollment Form'!$BS978=0),\"\",IF(LEN('Enrollment Form'!$BS978)<>5,\"N\",\"Y\")))","v":""},{"$f":"IF($B971=\"N\",\"\",IF(LEN('Enrollment Form'!$AE978)=0,\"\",IF(LEN('Enrollment Form'!$AE978)<>10,\"N\",\"Y\")))","v":""},{"$f":"IF($B971=\"N\",\"\",IF(LEN('Enrollment Form'!$AF978)=0,\"\",IF(LEN('Enrollment Form'!$AF978)<>10,\"N\",\"Y\")))","v":""},{"$f":"IF('Enrollment Form'!$O978<>\"Graded\",\"-\",IF(AND('Enrollment Form'!$O978=\"Graded\",'Enrollment Form'!$AR978<>\"\"),\"Y\",\"N\"))","v":"-"},{"$f":"IF($B971=\"N\",\"\",IF(OR('Enrollment Form'!$B978<>\"Subscriber\",'Enrollment Form'!$C978=\"ROC\"),\"-\",IF(AND('Enrollment Form'!$B978=\"Subscriber\",'Enrollment Form'!$C978=\"Enroll\",'Enrollment Form'!$AJ978<>\"\"),\"Y\",\"N\")))","v":""},{"$f":"IF($B971=\"N\",\"\",IF(OR('Enrollment Form'!$B978<>\"Subscriber\",'Enrollment Form'!$C978=\"ROC\"),\"-\",IF(AND('Enrollment Form'!$B978=\"Subscriber\",'Enrollment Form'!$C978=\"Enroll\",'Enrollment Form'!$AK978<>\"\"),\"Y\",\"N\")))","v":""},{"$f":"IF($B971=\"N\",\"\",IF(OR('Enrollment Form'!$B978<>\"Subscriber\",'Enrollment Form'!$C978=\"ROC\"),\"-\",IF(AND('Enrollment Form'!$B978=\"Subscriber\",'Enrollment Form'!$C978=\"Enroll\",'Enrollment Form'!$AL978<>\"\"),\"Y\",\"N\")))","v":""},{"$f":"IF($B971=\"N\",\"\",IF(OR('Enrollment Form'!$B978<>\"Subscriber\",'Enrollment Form'!$C978=\"ROC\"),\"-\",IF(AND('Enrollment Form'!$B978=\"Subscriber\",'Enrollment Form'!$C978=\"Enroll\",'Enrollment Form'!$AP978<>\"\"),\"Y\",\"N\")))","v":""},{"$f":"IF($B971=\"N\",\"\",IF(OR('Enrollment Form'!$B978<>\"Subscriber\",'Enrollment Form'!$C978=\"ROC\"),\"-\",IF(AND('Enrollment Form'!$B978=\"Subscriber\",'Enrollment Form'!$C978=\"Enroll\",'Enrollment Form'!$AQ978<>\"\"),\"Y\",\"N\")))","v":""},{"$f":"IF($B971=\"N\",\"\",IF(OR('Enrollment Form'!$B978<>\"Subscriber\",'Enrollment Form'!$C978=\"ROC\"),\"-\",IF(AND('Enrollment Form'!$B978=\"Subscriber\",'Enrollment Form'!$C978=\"Enroll\",'Enrollment Form'!$AS978<>\"\"),\"Y\",\"N\")))","v":""},{"$f":"IF($B971=\"N\",\"\",IF($Q971=\"-\",\"-\",IF(AND($Q971=\"Y\",'Enrollment Form'!$AS978=\"No\"),\"-\",IF(AND($Q971=\"Y\",'Enrollment Form'!$AS978=\"Yes\",'Enrollment Form'!$AT978<>\"\"),\"Y\",\"N\"))))","v":""},{"$f":"IF($B971=\"N\",\"\",IF(OR('Enrollment Form'!$B978<>\"Subscriber\",'Enrollment Form'!$C978=\"ROC\"),\"-\",IF(AND('Enrollment Form'!$B978=\"Subscriber\",'Enrollment Form'!$C978=\"Enroll\",'Enrollment Form'!$CV978<>\"\"),\"Y\",\"N\")))","v":""},{"$f":"IF($B971=\"N\",\"\",IF($S971=\"-\",\"-\",IF(AND($S971=\"Y\",'Enrollment Form'!$CV978=\"No\"),\"-\",IF(AND($S971=\"Y\",'Enrollment Form'!$CV978=\"Yes\",'Enrollment Form'!$CW978<>\"\"),\"Y\",\"N\"))))","v":""},{"$f":"IF(OR('Enrollment Form'!$AY978=\"Yes\",'Enrollment Form'!$AY978=\"\"),\"-\",IF(OR(AND('Enrollment Form'!$AY978=\"No\",ISERROR(FIND(\"HMO\",VLOOKUP('Enrollment Form'!G978,'Enrollment Form'!H$11:J$1000,3,FALSE),1))=FALSE,COUNTA('Enrollment Form'!$AZ978:$BC978)=4),AND('Enrollment Form'!$AY978=\"No\",ISERROR(FIND(\"HMO\",VLOOKUP('Enrollment Form'!G978,'Enrollment Form'!H$11:J$1000,3,FALSE),1))=FALSE,COUNTA('Enrollment Form'!$BT978:$BW978)=4)),\"Y\",\"N\"))","v":"-"},{"$f":"IF($B971=\"N\",\"\",IF('Enrollment Form'!$B978=\"Subscriber\",\"-\",IF(COUNTA('Enrollment Form'!$BL978,'Enrollment Form'!$BN978)=2,\"Y\",\"N\")))","v":""},{"$f":"IF($B971=\"N\",\"\",IF(OR('Enrollment Form'!$AX978=\"\",'Enrollment Form'!$AX978=\"No\"),\"-\",IF(AND('Enrollment Form'!$AX978=\"Yes\",COUNTA('Enrollment Form'!$CR978)=1),\"Y\",\"N\")))","v":""},{"$f":"IF(OR('Enrollment Form'!$CR978=\"\",'Enrollment Form'!$CR978=\"No\"),\"-\",IF(COUNTA('Enrollment Form'!$CT978:$CU978)=2,\"Y\",\"N\"))","v":"-"},{"$f":"IF($B971=\"N\",\"\",IF(COUNTIF('Enrollment Form'!$DG978:$DP978,\"Other\")=COUNTA('Enrollment Form'!$DK978,'Enrollment Form'!$DH978,'Enrollment Form'!$DN978,'Enrollment Form'!$DQ978),\"Y\",\"N\"))","v":""},{"$f":"IF($B971=\"N\",\"\",IF(OR('Enrollment Form'!B978<>\"Subscriber\",'Enrollment Form'!C978=\"ROC\",COUNTIF('Enrollment Form'!AV978:AW978,\"Yes\")>=1),\"-\",IF(AND('Enrollment Form'!C978=\"Enroll\",COUNTIF('Enrollment Form'!AV978:AW978,\"No\")=2,'Enrollment Form'!AX978=\"\"),\"N\",\"Y\")))","v":""},{"$f":"IF(OR(B971=\"N\",'Enrollment Form'!B978<>\"Subscriber\",'Enrollment Form'!C978=\"ROC\",'Enrollment Form'!O978<>\"Multiple of Salary\"),\"-\",IF(COUNTA('Enrollment Form'!T978:U978)<2,\"N\",\"Y\"))","v":"-"},{"$f":"IF(B971=\"N\",\"\",IF(OR('Enrollment Form'!C978=\"ROC\",'Enrollment Form'!B978<>\"Subscriber\",'Enrollment Form'!O978=\"Waive\",'Enrollment Form'!O978=\"\"),\"-\",IF('Enrollment Form'!P978=\"\",\"N\",\"Y\")))","v":""},{"$f":"IF($B971=\"N\",\"\",IF(AND('Enrollment Form'!$C978=\"ROC\",'Enrollment Form'!$DR978<>\"\"),\"Y\",IF(AND('Enrollment Form'!$C978=\"ROC\",'Enrollment Form'!$DR978=\"\"),\"N\",IF(AND('Enrollment Form'!$C978=\"Enroll\",'Enrollment Form'!$B978=\"Subscriber\",'Enrollment Form'!$CX978=\"No\",'Enrollment Form'!$DR978=\"\"),\"N\",IF(AND('Enrollment Form'!$C978=\"Enroll\",'Enrollment Form'!$B978=\"Subscriber\",'Enrollment Form'!$CX978=\"Yes\"),\"-\",\"Y\")))))","v":""},{"$f":"IF($B971=\"N\",\"\",IF(AND('Enrollment Form'!$C978=\"ROC\",'Enrollment Form'!$DS978<>\"\"),\"Y\",IF(AND('Enrollment Form'!$C978=\"ROC\",'Enrollment Form'!$DS978=\"\"),\"N\",IF(AND('Enrollment Form'!$C978=\"Enroll\",'Enrollment Form'!$B978=\"Subscriber\",'Enrollment Form'!$CX978=\"No\",'Enrollment Form'!$DS978=\"\"),\"N\",IF(AND('Enrollment Form'!$C978=\"Enroll\",'Enrollment Form'!$B978=\"Subscriber\",'Enrollment Form'!$CX978=\"Yes\"),\"-\",\"Y\")))))","v":""},{"$f":"IF('Enrollment Form'!AH978=\"\",\"\",IF(ISERROR(SEARCH(\".\",'Enrollment Form'!AH978,SEARCH(\"@\",'Enrollment Form'!AH978))),\"N\",\"Y\"))","v":""},{"$f":"IF(OR($B971=\"N\",'Enrollment Form'!$G978=\"\"),\"\",IF('Enrollment Form'!$B978<>\"Subscriber\",\"-\",IF(COUNTIF('Enrollment Form'!$AV978:$AW978,\"Yes\")=2,\"N\",\"Y\")))","v":""},{"$f":"IF(OR('Enrollment Form'!$CJ978=\"\",'Enrollment Form'!$CJ978=\"No\"),\"-\",IF(AND('Enrollment Form'!$CJ978=\"Yes\",'Enrollment Form'!$CK978=\"\"),\"N\",\"Y\"))","v":"-"},{"$f":"IF(OR('Enrollment Form'!$CL978=\"\",'Enrollment Form'!$CL978=\"No\"),\"-\",IF(AND('Enrollment Form'!$CL978=\"Yes\",'Enrollment Form'!$CM978=\"\"),\"N\",\"Y\"))","v":"-"},{"$f":"IF(OR('Enrollment Form'!$CN978=\"\",'Enrollment Form'!$CN978=\"No\"),\"-\",IF(AND('Enrollment Form'!$CN978=\"Yes\",'Enrollment Form'!$CO978=\"\"),\"N\",\"Y\"))","v":"-"},{"$f":"IF(OR('Enrollment Form'!$CN978=\"\",'Enrollment Form'!$CN978=\"No\"),\"-\",IF(AND('Enrollment Form'!$CN978=\"Yes\",'Enrollment Form'!$CP978=\"\"),\"N\",\"Y\"))","v":"-"},{"$f":"IF('Enrollment Form'!B978<>\"Subscriber\",\"-\",IF(AND('Enrollment Form'!B978=\"Subscriber\",'Enrollment Form'!C978=\"Enroll\",'Enrollment Form'!AA978=\"\"),\"N\",\"Y\"))","v":"-"},{"$f":"IF(OR('Enrollment Form'!B978=\"Subscriber\",'Enrollment Form'!B978=\"\"),\"-\",IF('Enrollment Form'!BP978=\"\",\"N\",\"Y\"))","v":"-"},{"$f":"IF('Enrollment Form'!B978<>\"Subscriber\",\"-\",IF(AND('Enrollment Form'!B978=\"Subscriber\",'Enrollment Form'!G978=\"\"),\"N\",\"Y\"))","v":"-"},{"$f":"IF('Enrollment Form'!A978=\"\",\"\",IF('Enrollment Form'!B978=\"Subscriber\",\"-\",IF(AND('Enrollment Form'!B978<>\"Subscriber\",'Enrollment Form'!G978='Enrollment Form'!H978),\"N\",\"Y\")))","v":""},0]
[979,{"$f":"IF('Enrollment Form'!$A979<>\"\",\"Y\",\"N\")","v":"N"},{"$f":"IF(AND('Enrollment Form'!$B979=\"\",'Enrollment Form'!$C979<>\"\"),\"N\",IF($B972=\"N\",\"\",\"Y\"))","v":""},{"$f":"IF(OR($B972=\"N\",'Enrollment Form'!G979=\"\"),\"\",IF('Enrollment Form'!$B979<>\"Subscriber\",\"\",IF('Enrollment Form'!$G979='Enrollment Form'!$H979,\"Y\",\"N\")))","v":""},{"$f":"IF($B972=\"N\",\"\",IF(AND(COUNTIFS('Enrollment Form'!$H$11:$H$1000,'Enrollment Form'!$H979,'Enrollment Form'!$B$11:$B$1000,'Enrollment Form'!$B979)>1,'Enrollment Form'!$H979<>\"\"),\"N\",\"Y\"))","v":""},{"$f":"IF($B972=\"N\",\"\",IF(LEN('Enrollment Form'!$Y979)=0,\"\",IF(LEN('Enrollment Form'!$Y979)<>5,\"N\",\"Y\")))","v":""},{"$f":"IF($B972=\"N\",\"\",IF(LEN('Enrollment Form'!$AD979=0),\"\",IF(LEN('Enrollment Form'!$AD979)<>5,\"N\",\"Y\")))","v":""},{"$f":"IF($B972=\"N\",\"\",IF(LEN('Enrollment Form'!$BS979=0),\"\",IF(LEN('Enrollment Form'!$BS979)<>5,\"N\",\"Y\")))","v":""},{"$f":"IF($B972=\"N\",\"\",IF(LEN('Enrollment Form'!$AE979)=0,\"\",IF(LEN('Enrollment Form'!$AE979)<>10,\"N\",\"Y\")))","v":""},{"$f":"IF($B972=\"N\",\"\",IF(LEN('Enrollment Form'!$AF979)=0,\"\",IF(LEN('Enrollment Form'!$AF979)<>10,\"N\",\"Y\")))","v":""},{"$f":"IF('Enrollment Form'!$O979<>\"Graded\",\"-\",IF(AND('Enrollment Form'!$O979=\"Graded\",'Enrollment Form'!$AR979<>\"\"),\"Y\",\"N\"))","v":"-"},{"$f":"IF($B972=\"N\",\"\",IF(OR('Enrollment Form'!$B979<>\"Subscriber\",'Enrollment Form'!$C979=\"ROC\"),\"-\",IF(AND('Enrollment Form'!$B979=\"Subscriber\",'Enrollment Form'!$C979=\"Enroll\",'Enrollment Form'!$AJ979<>\"\"),\"Y\",\"N\")))","v":""},{"$f":"IF($B972=\"N\",\"\",IF(OR('Enrollment Form'!$B979<>\"Subscriber\",'Enrollment Form'!$C979=\"ROC\"),\"-\",IF(AND('Enrollment Form'!$B979=\"Subscriber\",'Enrollment Form'!$C979=\"Enroll\",'Enrollment Form'!$AK979<>\"\"),\"Y\",\"N\")))","v":""},{"$f":"IF($B972=\"N\",\"\",IF(OR('Enrollment Form'!$B979<>\"Subscriber\",'Enrollment Form'!$C979=\"ROC\"),\"-\",IF(AND('Enrollment Form'!$B979=\"Subscriber\",'Enrollment Form'!$C979=\"Enroll\",'Enrollment Form'!$AL979<>\"\"),\"Y\",\"N\")))","v":""},{"$f":"IF($B972=\"N\",\"\",IF(OR('Enrollment Form'!$B979<>\"Subscriber\",'Enrollment Form'!$C979=\"ROC\"),\"-\",IF(AND('Enrollment Form'!$B979=\"Subscriber\",'Enrollment Form'!$C979=\"Enroll\",'Enrollment Form'!$AP979<>\"\"),\"Y\",\"N\")))","v":""},{"$f":"IF($B972=\"N\",\"\",IF(OR('Enrollment Form'!$B979<>\"Subscriber\",'Enrollment Form'!$C979=\"ROC\"),\"-\",IF(AND('Enrollment Form'!$B979=\"Subscriber\",'Enrollment Form'!$C979=\"Enroll\",'Enrollment Form'!$AQ979<>\"\"),\"Y\",\"N\")))","v":""},{"$f":"IF($B972=\"N\",\"\",IF(OR('Enrollment Form'!$B979<>\"Subscriber\",'Enrollment Form'!$C979=\"ROC\"),\"-\",IF(AND('Enrollment Form'!$B979=\"Subscriber\",'Enrollment Form'!$C979=\"Enroll\",'Enrollment Form'!$AS979<>\"\"),\"Y\",\"N\")))","v":""},{"$f":"IF($B972=\"N\",\"\",IF($Q972=\"-\",\"-\",IF(AND($Q972=\"Y\",'Enrollment Form'!$AS979=\"No\"),\"-\",IF(AND($Q972=\"Y\",'Enrollment Form'!$AS979=\"Yes\",'Enrollment Form'!$AT979<>\"\"),\"Y\",\"N\"))))","v":""},{"$f":"IF($B972=\"N\",\"\",IF(OR('Enrollment Form'!$B979<>\"Subscriber\",'Enrollment Form'!$C979=\"ROC\"),\"-\",IF(AND('Enrollment Form'!$B979=\"Subscriber\",'Enrollment Form'!$C979=\"Enroll\",'Enrollment Form'!$CV979<>\"\"),\"Y\",\"N\")))","v":""},{"$f":"IF($B972=\"N\",\"\",IF($S972=\"-\",\"-\",IF(AND($S972=\"Y\",'Enrollment Form'!$CV979=\"No\"),\"-\",IF(AND($S972=\"Y\",'Enrollment Form'!$CV979=\"Yes\",'Enrollment Form'!$CW979<>\"\"),\"Y\",\"N\"))))","v":""},{"$f":"IF(OR('Enrollment Form'!$AY979=\"Yes\",'Enrollment Form'!$AY979=\"\"),\"-\",IF(OR(AND('Enrollment Form'!$AY979=\"No\",ISERROR(FIND(\"HMO\",VLOOKUP('Enrollment Form'!G979,'Enrollment Form'!H$11:J$1000,3,FALSE),1))=FALSE,COUNTA('Enrollment Form'!$AZ979:$BC979)=4),AND('Enrollment Form'!$AY979=\"No\",ISERROR(FIND(\"HMO\",VLOOKUP('Enrollment Form'!G979,'Enrollment Form'!H$11:J$1000,3,FALSE),1))=FALSE,COUNTA('Enrollment Form'!$BT979:$BW979)=4)),\"Y\",\"N\"))","v":"-"},{"$f":"IF($B972=\"N\",\"\",IF('Enrollment Form'!$B979=\"Subscriber\",\"-\",IF(COUNTA('Enrollment Form'!$BL979,'Enrollment Form'!$BN979)=2,\"Y\",\"N\")))","v":""},{"$f":"IF($B972=\"N\",\"\",IF(OR('Enrollment Form'!$AX979=\"\",'Enrollment Form'!$AX979=\"No\"),\"-\",IF(AND('Enrollment Form'!$AX979=\"Yes\",COUNTA('Enrollment Form'!$CR979)=1),\"Y\",\"N\")))","v":""},{"$f":"IF(OR('Enrollment Form'!$CR979=\"\",'Enrollment Form'!$CR979=\"No\"),\"-\",IF(COUNTA('Enrollment Form'!$CT979:$CU979)=2,\"Y\",\"N\"))","v":"-"},{"$f":"IF($B972=\"N\",\"\",IF(COUNTIF('Enrollment Form'!$DG979:$DP979,\"Other\")=COUNTA('Enrollment Form'!$DK979,'Enrollment Form'!$DH979,'Enrollment Form'!$DN979,'Enrollment Form'!$DQ979),\"Y\",\"N\"))","v":""},{"$f":"IF($B972=\"N\",\"\",IF(OR('Enrollment Form'!B979<>\"Subscriber\",'Enrollment Form'!C979=\"ROC\",COUNTIF('Enrollment Form'!AV979:AW979,\"Yes\")>=1),\"-\",IF(AND('Enrollment Form'!C979=\"Enroll\",COUNTIF('Enrollment Form'!AV979:AW979,\"No\")=2,'Enrollment Form'!AX979=\"\"),\"N\",\"Y\")))","v":""},{"$f":"IF(OR(B972=\"N\",'Enrollment Form'!B979<>\"Subscriber\",'Enrollment Form'!C979=\"ROC\",'Enrollment Form'!O979<>\"Multiple of Salary\"),\"-\",IF(COUNTA('Enrollment Form'!T979:U979)<2,\"N\",\"Y\"))","v":"-"},{"$f":"IF(B972=\"N\",\"\",IF(OR('Enrollment Form'!C979=\"ROC\",'Enrollment Form'!B979<>\"Subscriber\",'Enrollment Form'!O979=\"Waive\",'Enrollment Form'!O979=\"\"),\"-\",IF('Enrollment Form'!P979=\"\",\"N\",\"Y\")))","v":""},{"$f":"IF($B972=\"N\",\"\",IF(AND('Enrollment Form'!$C979=\"ROC\",'Enrollment Form'!$DR979<>\"\"),\"Y\",IF(AND('Enrollment Form'!$C979=\"ROC\",'Enrollment Form'!$DR979=\"\"),\"N\",IF(AND('Enrollment Form'!$C979=\"Enroll\",'Enrollment Form'!$B979=\"Subscriber\",'Enrollment Form'!$CX979=\"No\",'Enrollment Form'!$DR979=\"\"),\"N\",IF(AND('Enrollment Form'!$C979=\"Enroll\",'Enrollment Form'!$B979=\"Subscriber\",'Enrollment Form'!$CX979=\"Yes\"),\"-\",\"Y\")))))","v":""},{"$f":"IF($B972=\"N\",\"\",IF(AND('Enrollment Form'!$C979=\"ROC\",'Enrollment Form'!$DS979<>\"\"),\"Y\",IF(AND('Enrollment Form'!$C979=\"ROC\",'Enrollment Form'!$DS979=\"\"),\"N\",IF(AND('Enrollment Form'!$C979=\"Enroll\",'Enrollment Form'!$B979=\"Subscriber\",'Enrollment Form'!$CX979=\"No\",'Enrollment Form'!$DS979=\"\"),\"N\",IF(AND('Enrollment Form'!$C979=\"Enroll\",'Enrollment Form'!$B979=\"Subscriber\",'Enrollment Form'!$CX979=\"Yes\"),\"-\",\"Y\")))))","v":""},{"$f":"IF('Enrollment Form'!AH979=\"\",\"\",IF(ISERROR(SEARCH(\".\",'Enrollment Form'!AH979,SEARCH(\"@\",'Enrollment Form'!AH979))),\"N\",\"Y\"))","v":""},{"$f":"IF(OR($B972=\"N\",'Enrollment Form'!$G979=\"\"),\"\",IF('Enrollment Form'!$B979<>\"Subscriber\",\"-\",IF(COUNTIF('Enrollment Form'!$AV979:$AW979,\"Yes\")=2,\"N\",\"Y\")))","v":""},{"$f":"IF(OR('Enrollment Form'!$CJ979=\"\",'Enrollment Form'!$CJ979=\"No\"),\"-\",IF(AND('Enrollment Form'!$CJ979=\"Yes\",'Enrollment Form'!$CK979=\"\"),\"N\",\"Y\"))","v":"-"},{"$f":"IF(OR('Enrollment Form'!$CL979=\"\",'Enrollment Form'!$CL979=\"No\"),\"-\",IF(AND('Enrollment Form'!$CL979=\"Yes\",'Enrollment Form'!$CM979=\"\"),\"N\",\"Y\"))","v":"-"},{"$f":"IF(OR('Enrollment Form'!$CN979=\"\",'Enrollment Form'!$CN979=\"No\"),\"-\",IF(AND('Enrollment Form'!$CN979=\"Yes\",'Enrollment Form'!$CO979=\"\"),\"N\",\"Y\"))","v":"-"},{"$f":"IF(OR('Enrollment Form'!$CN979=\"\",'Enrollment Form'!$CN979=\"No\"),\"-\",IF(AND('Enrollment Form'!$CN979=\"Yes\",'Enrollment Form'!$CP979=\"\"),\"N\",\"Y\"))","v":"-"},{"$f":"IF('Enrollment Form'!B979<>\"Subscriber\",\"-\",IF(AND('Enrollment Form'!B979=\"Subscriber\",'Enrollment Form'!C979=\"Enroll\",'Enrollment Form'!AA979=\"\"),\"N\",\"Y\"))","v":"-"},{"$f":"IF(OR('Enrollment Form'!B979=\"Subscriber\",'Enrollment Form'!B979=\"\"),\"-\",IF('Enrollment Form'!BP979=\"\",\"N\",\"Y\"))","v":"-"},{"$f":"IF('Enrollment Form'!B979<>\"Subscriber\",\"-\",IF(AND('Enrollment Form'!B979=\"Subscriber\",'Enrollment Form'!G979=\"\"),\"N\",\"Y\"))","v":"-"},{"$f":"IF('Enrollment Form'!A979=\"\",\"\",IF('Enrollment Form'!B979=\"Subscriber\",\"-\",IF(AND('Enrollment Form'!B979<>\"Subscriber\",'Enrollment Form'!G979='Enrollment Form'!H979),\"N\",\"Y\")))","v":""},0]
[980,{"$f":"IF('Enrollment Form'!$A980<>\"\",\"Y\",\"N\")","v":"N"},{"$f":"IF(AND('Enrollment Form'!$B980=\"\",'Enrollment Form'!$C980<>\"\"),\"N\",IF($B973=\"N\",\"\",\"Y\"))","v":""},{"$f":"IF(OR($B973=\"N\",'Enrollment Form'!G980=\"\"),\"\",IF('Enrollment Form'!$B980<>\"Subscriber\",\"\",IF('Enrollment Form'!$G980='Enrollment Form'!$H980,\"Y\",\"N\")))","v":""},{"$f":"IF($B973=\"N\",\"\",IF(AND(COUNTIFS('Enrollment Form'!$H$11:$H$1000,'Enrollment Form'!$H980,'Enrollment Form'!$B$11:$B$1000,'Enrollment Form'!$B980)>1,'Enrollment Form'!$H980<>\"\"),\"N\",\"Y\"))","v":""},{"$f":"IF($B973=\"N\",\"\",IF(LEN('Enrollment Form'!$Y980)=0,\"\",IF(LEN('Enrollment Form'!$Y980)<>5,\"N\",\"Y\")))","v":""},{"$f":"IF($B973=\"N\",\"\",IF(LEN('Enrollment Form'!$AD980=0),\"\",IF(LEN('Enrollment Form'!$AD980)<>5,\"N\",\"Y\")))","v":""},{"$f":"IF($B973=\"N\",\"\",IF(LEN('Enrollment Form'!$BS980=0),\"\",IF(LEN('Enrollment Form'!$BS980)<>5,\"N\",\"Y\")))","v":""},{"$f":"IF($B973=\"N\",\"\",IF(LEN('Enrollment Form'!$AE980)=0,\"\",IF(LEN('Enrollment Form'!$AE980)<>10,\"N\",\"Y\")))","v":""},{"$f":"IF($B973=\"N\",\"\",IF(LEN('Enrollment Form'!$AF980)=0,\"\",IF(LEN('Enrollment Form'!$AF980)<>10,\"N\",\"Y\")))","v":""},{"$f":"IF('Enrollment Form'!$O980<>\"Graded\",\"-\",IF(AND('Enrollment Form'!$O980=\"Graded\",'Enrollment Form'!$AR980<>\"\"),\"Y\",\"N\"))","v":"-"},{"$f":"IF($B973=\"N\",\"\",IF(OR('Enrollment Form'!$B980<>\"Subscriber\",'Enrollment Form'!$C980=\"ROC\"),\"-\",IF(AND('Enrollment Form'!$B980=\"Subscriber\",'Enrollment Form'!$C980=\"Enroll\",'Enrollment Form'!$AJ980<>\"\"),\"Y\",\"N\")))","v":""},{"$f":"IF($B973=\"N\",\"\",IF(OR('Enrollment Form'!$B980<>\"Subscriber\",'Enrollment Form'!$C980=\"ROC\"),\"-\",IF(AND('Enrollment Form'!$B980=\"Subscriber\",'Enrollment Form'!$C980=\"Enroll\",'Enrollment Form'!$AK980<>\"\"),\"Y\",\"N\")))","v":""},{"$f":"IF($B973=\"N\",\"\",IF(OR('Enrollment Form'!$B980<>\"Subscriber\",'Enrollment Form'!$C980=\"ROC\"),\"-\",IF(AND('Enrollment Form'!$B980=\"Subscriber\",'Enrollment Form'!$C980=\"Enroll\",'Enrollment Form'!$AL980<>\"\"),\"Y\",\"N\")))","v":""},{"$f":"IF($B973=\"N\",\"\",IF(OR('Enrollment Form'!$B980<>\"Subscriber\",'Enrollment Form'!$C980=\"ROC\"),\"-\",IF(AND('Enrollment Form'!$B980=\"Subscriber\",'Enrollment Form'!$C980=\"Enroll\",'Enrollment Form'!$AP980<>\"\"),\"Y\",\"N\")))","v":""},{"$f":"IF($B973=\"N\",\"\",IF(OR('Enrollment Form'!$B980<>\"Subscriber\",'Enrollment Form'!$C980=\"ROC\"),\"-\",IF(AND('Enrollment Form'!$B980=\"Subscriber\",'Enrollment Form'!$C980=\"Enroll\",'Enrollment Form'!$AQ980<>\"\"),\"Y\",\"N\")))","v":""},{"$f":"IF($B973=\"N\",\"\",IF(OR('Enrollment Form'!$B980<>\"Subscriber\",'Enrollment Form'!$C980=\"ROC\"),\"-\",IF(AND('Enrollment Form'!$B980=\"Subscriber\",'Enrollment Form'!$C980=\"Enroll\",'Enrollment Form'!$AS980<>\"\"),\"Y\",\"N\")))","v":""},{"$f":"IF($B973=\"N\",\"\",IF($Q973=\"-\",\"-\",IF(AND($Q973=\"Y\",'Enrollment Form'!$AS980=\"No\"),\"-\",IF(AND($Q973=\"Y\",'Enrollment Form'!$AS980=\"Yes\",'Enrollment Form'!$AT980<>\"\"),\"Y\",\"N\"))))","v":""},{"$f":"IF($B973=\"N\",\"\",IF(OR('Enrollment Form'!$B980<>\"Subscriber\",'Enrollment Form'!$C980=\"ROC\"),\"-\",IF(AND('Enrollment Form'!$B980=\"Subscriber\",'Enrollment Form'!$C980=\"Enroll\",'Enrollment Form'!$CV980<>\"\"),\"Y\",\"N\")))","v":""},{"$f":"IF($B973=\"N\",\"\",IF($S973=\"-\",\"-\",IF(AND($S973=\"Y\",'Enrollment Form'!$CV980=\"No\"),\"-\",IF(AND($S973=\"Y\",'Enrollment Form'!$CV980=\"Yes\",'Enrollment Form'!$CW980<>\"\"),\"Y\",\"N\"))))","v":""},{"$f":"IF(OR('Enrollment Form'!$AY980=\"Yes\",'Enrollment Form'!$AY980=\"\"),\"-\",IF(OR(AND('Enrollment Form'!$AY980=\"No\",ISERROR(FIND(\"HMO\",VLOOKUP('Enrollment Form'!G980,'Enrollment Form'!H$11:J$1000,3,FALSE),1))=FALSE,COUNTA('Enrollment Form'!$AZ980:$BC980)=4),AND('Enrollment Form'!$AY980=\"No\",ISERROR(FIND(\"HMO\",VLOOKUP('Enrollment Form'!G980,'Enrollment Form'!H$11:J$1000,3,FALSE),1))=FALSE,COUNTA('Enrollment Form'!$BT980:$BW980)=4)),\"Y\",\"N\"))","v":"-"},{"$f":"IF($B973=\"N\",\"\",IF('Enrollment Form'!$B980=\"Subscriber\",\"-\",IF(COUNTA('Enrollment Form'!$BL980,'Enrollment Form'!$BN980)=2,\"Y\",\"N\")))","v":""},{"$f":"IF($B973=\"N\",\"\",IF(OR('Enrollment Form'!$AX980=\"\",'Enrollment Form'!$AX980=\"No\"),\"-\",IF(AND('Enrollment Form'!$AX980=\"Yes\",COUNTA('Enrollment Form'!$CR980)=1),\"Y\",\"N\")))","v":""},{"$f":"IF(OR('Enrollment Form'!$CR980=\"\",'Enrollment Form'!$CR980=\"No\"),\"-\",IF(COUNTA('Enrollment Form'!$CT980:$CU980)=2,\"Y\",\"N\"))","v":"-"},{"$f":"IF($B973=\"N\",\"\",IF(COUNTIF('Enrollment Form'!$DG980:$DP980,\"Other\")=COUNTA('Enrollment Form'!$DK980,'Enrollment Form'!$DH980,'Enrollment Form'!$DN980,'Enrollment Form'!$DQ980),\"Y\",\"N\"))","v":""},{"$f":"IF($B973=\"N\",\"\",IF(OR('Enrollment Form'!B980<>\"Subscriber\",'Enrollment Form'!C980=\"ROC\",COUNTIF('Enrollment Form'!AV980:AW980,\"Yes\")>=1),\"-\",IF(AND('Enrollment Form'!C980=\"Enroll\",COUNTIF('Enrollment Form'!AV980:AW980,\"No\")=2,'Enrollment Form'!AX980=\"\"),\"N\",\"Y\")))","v":""},{"$f":"IF(OR(B973=\"N\",'Enrollment Form'!B980<>\"Subscriber\",'Enrollment Form'!C980=\"ROC\",'Enrollment Form'!O980<>\"Multiple of Salary\"),\"-\",IF(COUNTA('Enrollment Form'!T980:U980)<2,\"N\",\"Y\"))","v":"-"},{"$f":"IF(B973=\"N\",\"\",IF(OR('Enrollment Form'!C980=\"ROC\",'Enrollment Form'!B980<>\"Subscriber\",'Enrollment Form'!O980=\"Waive\",'Enrollment Form'!O980=\"\"),\"-\",IF('Enrollment Form'!P980=\"\",\"N\",\"Y\")))","v":""},{"$f":"IF($B973=\"N\",\"\",IF(AND('Enrollment Form'!$C980=\"ROC\",'Enrollment Form'!$DR980<>\"\"),\"Y\",IF(AND('Enrollment Form'!$C980=\"ROC\",'Enrollment Form'!$DR980=\"\"),\"N\",IF(AND('Enrollment Form'!$C980=\"Enroll\",'Enrollment Form'!$B980=\"Subscriber\",'Enrollment Form'!$CX980=\"No\",'Enrollment Form'!$DR980=\"\"),\"N\",IF(AND('Enrollment Form'!$C980=\"Enroll\",'Enrollment Form'!$B980=\"Subscriber\",'Enrollment Form'!$CX980=\"Yes\"),\"-\",\"Y\")))))","v":""},{"$f":"IF($B973=\"N\",\"\",IF(AND('Enrollment Form'!$C980=\"ROC\",'Enrollment Form'!$DS980<>\"\"),\"Y\",IF(AND('Enrollment Form'!$C980=\"ROC\",'Enrollment Form'!$DS980=\"\"),\"N\",IF(AND('Enrollment Form'!$C980=\"Enroll\",'Enrollment Form'!$B980=\"Subscriber\",'Enrollment Form'!$CX980=\"No\",'Enrollment Form'!$DS980=\"\"),\"N\",IF(AND('Enrollment Form'!$C980=\"Enroll\",'Enrollment Form'!$B980=\"Subscriber\",'Enrollment Form'!$CX980=\"Yes\"),\"-\",\"Y\")))))","v":""},{"$f":"IF('Enrollment Form'!AH980=\"\",\"\",IF(ISERROR(SEARCH(\".\",'Enrollment Form'!AH980,SEARCH(\"@\",'Enrollment Form'!AH980))),\"N\",\"Y\"))","v":""},{"$f":"IF(OR($B973=\"N\",'Enrollment Form'!$G980=\"\"),\"\",IF('Enrollment Form'!$B980<>\"Subscriber\",\"-\",IF(COUNTIF('Enrollment Form'!$AV980:$AW980,\"Yes\")=2,\"N\",\"Y\")))","v":""},{"$f":"IF(OR('Enrollment Form'!$CJ980=\"\",'Enrollment Form'!$CJ980=\"No\"),\"-\",IF(AND('Enrollment Form'!$CJ980=\"Yes\",'Enrollment Form'!$CK980=\"\"),\"N\",\"Y\"))","v":"-"},{"$f":"IF(OR('Enrollment Form'!$CL980=\"\",'Enrollment Form'!$CL980=\"No\"),\"-\",IF(AND('Enrollment Form'!$CL980=\"Yes\",'Enrollment Form'!$CM980=\"\"),\"N\",\"Y\"))","v":"-"},{"$f":"IF(OR('Enrollment Form'!$CN980=\"\",'Enrollment Form'!$CN980=\"No\"),\"-\",IF(AND('Enrollment Form'!$CN980=\"Yes\",'Enrollment Form'!$CO980=\"\"),\"N\",\"Y\"))","v":"-"},{"$f":"IF(OR('Enrollment Form'!$CN980=\"\",'Enrollment Form'!$CN980=\"No\"),\"-\",IF(AND('Enrollment Form'!$CN980=\"Yes\",'Enrollment Form'!$CP980=\"\"),\"N\",\"Y\"))","v":"-"},{"$f":"IF('Enrollment Form'!B980<>\"Subscriber\",\"-\",IF(AND('Enrollment Form'!B980=\"Subscriber\",'Enrollment Form'!C980=\"Enroll\",'Enrollment Form'!AA980=\"\"),\"N\",\"Y\"))","v":"-"},{"$f":"IF(OR('Enrollment Form'!B980=\"Subscriber\",'Enrollment Form'!B980=\"\"),\"-\",IF('Enrollment Form'!BP980=\"\",\"N\",\"Y\"))","v":"-"},{"$f":"IF('Enrollment Form'!B980<>\"Subscriber\",\"-\",IF(AND('Enrollment Form'!B980=\"Subscriber\",'Enrollment Form'!G980=\"\"),\"N\",\"Y\"))","v":"-"},{"$f":"IF('Enrollment Form'!A980=\"\",\"\",IF('Enrollment Form'!B980=\"Subscriber\",\"-\",IF(AND('Enrollment Form'!B980<>\"Subscriber\",'Enrollment Form'!G980='Enrollment Form'!H980),\"N\",\"Y\")))","v":""},0]
[981,{"$f":"IF('Enrollment Form'!$A981<>\"\",\"Y\",\"N\")","v":"N"},{"$f":"IF(AND('Enrollment Form'!$B981=\"\",'Enrollment Form'!$C981<>\"\"),\"N\",IF($B974=\"N\",\"\",\"Y\"))","v":""},{"$f":"IF(OR($B974=\"N\",'Enrollment Form'!G981=\"\"),\"\",IF('Enrollment Form'!$B981<>\"Subscriber\",\"\",IF('Enrollment Form'!$G981='Enrollment Form'!$H981,\"Y\",\"N\")))","v":""},{"$f":"IF($B974=\"N\",\"\",IF(AND(COUNTIFS('Enrollment Form'!$H$11:$H$1000,'Enrollment Form'!$H981,'Enrollment Form'!$B$11:$B$1000,'Enrollment Form'!$B981)>1,'Enrollment Form'!$H981<>\"\"),\"N\",\"Y\"))","v":""},{"$f":"IF($B974=\"N\",\"\",IF(LEN('Enrollment Form'!$Y981)=0,\"\",IF(LEN('Enrollment Form'!$Y981)<>5,\"N\",\"Y\")))","v":""},{"$f":"IF($B974=\"N\",\"\",IF(LEN('Enrollment Form'!$AD981=0),\"\",IF(LEN('Enrollment Form'!$AD981)<>5,\"N\",\"Y\")))","v":""},{"$f":"IF($B974=\"N\",\"\",IF(LEN('Enrollment Form'!$BS981=0),\"\",IF(LEN('Enrollment Form'!$BS981)<>5,\"N\",\"Y\")))","v":""},{"$f":"IF($B974=\"N\",\"\",IF(LEN('Enrollment Form'!$AE981)=0,\"\",IF(LEN('Enrollment Form'!$AE981)<>10,\"N\",\"Y\")))","v":""},{"$f":"IF($B974=\"N\",\"\",IF(LEN('Enrollment Form'!$AF981)=0,\"\",IF(LEN('Enrollment Form'!$AF981)<>10,\"N\",\"Y\")))","v":""},{"$f":"IF('Enrollment Form'!$O981<>\"Graded\",\"-\",IF(AND('Enrollment Form'!$O981=\"Graded\",'Enrollment Form'!$AR981<>\"\"),\"Y\",\"N\"))","v":"-"},{"$f":"IF($B974=\"N\",\"\",IF(OR('Enrollment Form'!$B981<>\"Subscriber\",'Enrollment Form'!$C981=\"ROC\"),\"-\",IF(AND('Enrollment Form'!$B981=\"Subscriber\",'Enrollment Form'!$C981=\"Enroll\",'Enrollment Form'!$AJ981<>\"\"),\"Y\",\"N\")))","v":""},{"$f":"IF($B974=\"N\",\"\",IF(OR('Enrollment Form'!$B981<>\"Subscriber\",'Enrollment Form'!$C981=\"ROC\"),\"-\",IF(AND('Enrollment Form'!$B981=\"Subscriber\",'Enrollment Form'!$C981=\"Enroll\",'Enrollment Form'!$AK981<>\"\"),\"Y\",\"N\")))","v":""},{"$f":"IF($B974=\"N\",\"\",IF(OR('Enrollment Form'!$B981<>\"Subscriber\",'Enrollment Form'!$C981=\"ROC\"),\"-\",IF(AND('Enrollment Form'!$B981=\"Subscriber\",'Enrollment Form'!$C981=\"Enroll\",'Enrollment Form'!$AL981<>\"\"),\"Y\",\"N\")))","v":""},{"$f":"IF($B974=\"N\",\"\",IF(OR('Enrollment Form'!$B981<>\"Subscriber\",'Enrollment Form'!$C981=\"ROC\"),\"-\",IF(AND('Enrollment Form'!$B981=\"Subscriber\",'Enrollment Form'!$C981=\"Enroll\",'Enrollment Form'!$AP981<>\"\"),\"Y\",\"N\")))","v":""},{"$f":"IF($B974=\"N\",\"\",IF(OR('Enrollment Form'!$B981<>\"Subscriber\",'Enrollment Form'!$C981=\"ROC\"),\"-\",IF(AND('Enrollment Form'!$B981=\"Subscriber\",'Enrollment Form'!$C981=\"Enroll\",'Enrollment Form'!$AQ981<>\"\"),\"Y\",\"N\")))","v":""},{"$f":"IF($B974=\"N\",\"\",IF(OR('Enrollment Form'!$B981<>\"Subscriber\",'Enrollment Form'!$C981=\"ROC\"),\"-\",IF(AND('Enrollment Form'!$B981=\"Subscriber\",'Enrollment Form'!$C981=\"Enroll\",'Enrollment Form'!$AS981<>\"\"),\"Y\",\"N\")))","v":""},{"$f":"IF($B974=\"N\",\"\",IF($Q974=\"-\",\"-\",IF(AND($Q974=\"Y\",'Enrollment Form'!$AS981=\"No\"),\"-\",IF(AND($Q974=\"Y\",'Enrollment Form'!$AS981=\"Yes\",'Enrollment Form'!$AT981<>\"\"),\"Y\",\"N\"))))","v":""},{"$f":"IF($B974=\"N\",\"\",IF(OR('Enrollment Form'!$B981<>\"Subscriber\",'Enrollment Form'!$C981=\"ROC\"),\"-\",IF(AND('Enrollment Form'!$B981=\"Subscriber\",'Enrollment Form'!$C981=\"Enroll\",'Enrollment Form'!$CV981<>\"\"),\"Y\",\"N\")))","v":""},{"$f":"IF($B974=\"N\",\"\",IF($S974=\"-\",\"-\",IF(AND($S974=\"Y\",'Enrollment Form'!$CV981=\"No\"),\"-\",IF(AND($S974=\"Y\",'Enrollment Form'!$CV981=\"Yes\",'Enrollment Form'!$CW981<>\"\"),\"Y\",\"N\"))))","v":""},{"$f":"IF(OR('Enrollment Form'!$AY981=\"Yes\",'Enrollment Form'!$AY981=\"\"),\"-\",IF(OR(AND('Enrollment Form'!$AY981=\"No\",ISERROR(FIND(\"HMO\",VLOOKUP('Enrollment Form'!G981,'Enrollment Form'!H$11:J$1000,3,FALSE),1))=FALSE,COUNTA('Enrollment Form'!$AZ981:$BC981)=4),AND('Enrollment Form'!$AY981=\"No\",ISERROR(FIND(\"HMO\",VLOOKUP('Enrollment Form'!G981,'Enrollment Form'!H$11:J$1000,3,FALSE),1))=FALSE,COUNTA('Enrollment Form'!$BT981:$BW981)=4)),\"Y\",\"N\"))","v":"-"},{"$f":"IF($B974=\"N\",\"\",IF('Enrollment Form'!$B981=\"Subscriber\",\"-\",IF(COUNTA('Enrollment Form'!$BL981,'Enrollment Form'!$BN981)=2,\"Y\",\"N\")))","v":""},{"$f":"IF($B974=\"N\",\"\",IF(OR('Enrollment Form'!$AX981=\"\",'Enrollment Form'!$AX981=\"No\"),\"-\",IF(AND('Enrollment Form'!$AX981=\"Yes\",COUNTA('Enrollment Form'!$CR981)=1),\"Y\",\"N\")))","v":""},{"$f":"IF(OR('Enrollment Form'!$CR981=\"\",'Enrollment Form'!$CR981=\"No\"),\"-\",IF(COUNTA('Enrollment Form'!$CT981:$CU981)=2,\"Y\",\"N\"))","v":"-"},{"$f":"IF($B974=\"N\",\"\",IF(COUNTIF('Enrollment Form'!$DG981:$DP981,\"Other\")=COUNTA('Enrollment Form'!$DK981,'Enrollment Form'!$DH981,'Enrollment Form'!$DN981,'Enrollment Form'!$DQ981),\"Y\",\"N\"))","v":""},{"$f":"IF($B974=\"N\",\"\",IF(OR('Enrollment Form'!B981<>\"Subscriber\",'Enrollment Form'!C981=\"ROC\",COUNTIF('Enrollment Form'!AV981:AW981,\"Yes\")>=1),\"-\",IF(AND('Enrollment Form'!C981=\"Enroll\",COUNTIF('Enrollment Form'!AV981:AW981,\"No\")=2,'Enrollment Form'!AX981=\"\"),\"N\",\"Y\")))","v":""},{"$f":"IF(OR(B974=\"N\",'Enrollment Form'!B981<>\"Subscriber\",'Enrollment Form'!C981=\"ROC\",'Enrollment Form'!O981<>\"Multiple of Salary\"),\"-\",IF(COUNTA('Enrollment Form'!T981:U981)<2,\"N\",\"Y\"))","v":"-"},{"$f":"IF(B974=\"N\",\"\",IF(OR('Enrollment Form'!C981=\"ROC\",'Enrollment Form'!B981<>\"Subscriber\",'Enrollment Form'!O981=\"Waive\",'Enrollment Form'!O981=\"\"),\"-\",IF('Enrollment Form'!P981=\"\",\"N\",\"Y\")))","v":""},{"$f":"IF($B974=\"N\",\"\",IF(AND('Enrollment Form'!$C981=\"ROC\",'Enrollment Form'!$DR981<>\"\"),\"Y\",IF(AND('Enrollment Form'!$C981=\"ROC\",'Enrollment Form'!$DR981=\"\"),\"N\",IF(AND('Enrollment Form'!$C981=\"Enroll\",'Enrollment Form'!$B981=\"Subscriber\",'Enrollment Form'!$CX981=\"No\",'Enrollment Form'!$DR981=\"\"),\"N\",IF(AND('Enrollment Form'!$C981=\"Enroll\",'Enrollment Form'!$B981=\"Subscriber\",'Enrollment Form'!$CX981=\"Yes\"),\"-\",\"Y\")))))","v":""},{"$f":"IF($B974=\"N\",\"\",IF(AND('Enrollment Form'!$C981=\"ROC\",'Enrollment Form'!$DS981<>\"\"),\"Y\",IF(AND('Enrollment Form'!$C981=\"ROC\",'Enrollment Form'!$DS981=\"\"),\"N\",IF(AND('Enrollment Form'!$C981=\"Enroll\",'Enrollment Form'!$B981=\"Subscriber\",'Enrollment Form'!$CX981=\"No\",'Enrollment Form'!$DS981=\"\"),\"N\",IF(AND('Enrollment Form'!$C981=\"Enroll\",'Enrollment Form'!$B981=\"Subscriber\",'Enrollment Form'!$CX981=\"Yes\"),\"-\",\"Y\")))))","v":""},{"$f":"IF('Enrollment Form'!AH981=\"\",\"\",IF(ISERROR(SEARCH(\".\",'Enrollment Form'!AH981,SEARCH(\"@\",'Enrollment Form'!AH981))),\"N\",\"Y\"))","v":""},{"$f":"IF(OR($B974=\"N\",'Enrollment Form'!$G981=\"\"),\"\",IF('Enrollment Form'!$B981<>\"Subscriber\",\"-\",IF(COUNTIF('Enrollment Form'!$AV981:$AW981,\"Yes\")=2,\"N\",\"Y\")))","v":""},{"$f":"IF(OR('Enrollment Form'!$CJ981=\"\",'Enrollment Form'!$CJ981=\"No\"),\"-\",IF(AND('Enrollment Form'!$CJ981=\"Yes\",'Enrollment Form'!$CK981=\"\"),\"N\",\"Y\"))","v":"-"},{"$f":"IF(OR('Enrollment Form'!$CL981=\"\",'Enrollment Form'!$CL981=\"No\"),\"-\",IF(AND('Enrollment Form'!$CL981=\"Yes\",'Enrollment Form'!$CM981=\"\"),\"N\",\"Y\"))","v":"-"},{"$f":"IF(OR('Enrollment Form'!$CN981=\"\",'Enrollment Form'!$CN981=\"No\"),\"-\",IF(AND('Enrollment Form'!$CN981=\"Yes\",'Enrollment Form'!$CO981=\"\"),\"N\",\"Y\"))","v":"-"},{"$f":"IF(OR('Enrollment Form'!$CN981=\"\",'Enrollment Form'!$CN981=\"No\"),\"-\",IF(AND('Enrollment Form'!$CN981=\"Yes\",'Enrollment Form'!$CP981=\"\"),\"N\",\"Y\"))","v":"-"},{"$f":"IF('Enrollment Form'!B981<>\"Subscriber\",\"-\",IF(AND('Enrollment Form'!B981=\"Subscriber\",'Enrollment Form'!C981=\"Enroll\",'Enrollment Form'!AA981=\"\"),\"N\",\"Y\"))","v":"-"},{"$f":"IF(OR('Enrollment Form'!B981=\"Subscriber\",'Enrollment Form'!B981=\"\"),\"-\",IF('Enrollment Form'!BP981=\"\",\"N\",\"Y\"))","v":"-"},{"$f":"IF('Enrollment Form'!B981<>\"Subscriber\",\"-\",IF(AND('Enrollment Form'!B981=\"Subscriber\",'Enrollment Form'!G981=\"\"),\"N\",\"Y\"))","v":"-"},{"$f":"IF('Enrollment Form'!A981=\"\",\"\",IF('Enrollment Form'!B981=\"Subscriber\",\"-\",IF(AND('Enrollment Form'!B981<>\"Subscriber\",'Enrollment Form'!G981='Enrollment Form'!H981),\"N\",\"Y\")))","v":""},0]
[982,{"$f":"IF('Enrollment Form'!$A982<>\"\",\"Y\",\"N\")","v":"N"},{"$f":"IF(AND('Enrollment Form'!$B982=\"\",'Enrollment Form'!$C982<>\"\"),\"N\",IF($B975=\"N\",\"\",\"Y\"))","v":""},{"$f":"IF(OR($B975=\"N\",'Enrollment Form'!G982=\"\"),\"\",IF('Enrollment Form'!$B982<>\"Subscriber\",\"\",IF('Enrollment Form'!$G982='Enrollment Form'!$H982,\"Y\",\"N\")))","v":""},{"$f":"IF($B975=\"N\",\"\",IF(AND(COUNTIFS('Enrollment Form'!$H$11:$H$1000,'Enrollment Form'!$H982,'Enrollment Form'!$B$11:$B$1000,'Enrollment Form'!$B982)>1,'Enrollment Form'!$H982<>\"\"),\"N\",\"Y\"))","v":""},{"$f":"IF($B975=\"N\",\"\",IF(LEN('Enrollment Form'!$Y982)=0,\"\",IF(LEN('Enrollment Form'!$Y982)<>5,\"N\",\"Y\")))","v":""},{"$f":"IF($B975=\"N\",\"\",IF(LEN('Enrollment Form'!$AD982=0),\"\",IF(LEN('Enrollment Form'!$AD982)<>5,\"N\",\"Y\")))","v":""},{"$f":"IF($B975=\"N\",\"\",IF(LEN('Enrollment Form'!$BS982=0),\"\",IF(LEN('Enrollment Form'!$BS982)<>5,\"N\",\"Y\")))","v":""},{"$f":"IF($B975=\"N\",\"\",IF(LEN('Enrollment Form'!$AE982)=0,\"\",IF(LEN('Enrollment Form'!$AE982)<>10,\"N\",\"Y\")))","v":""},{"$f":"IF($B975=\"N\",\"\",IF(LEN('Enrollment Form'!$AF982)=0,\"\",IF(LEN('Enrollment Form'!$AF982)<>10,\"N\",\"Y\")))","v":""},{"$f":"IF('Enrollment Form'!$O982<>\"Graded\",\"-\",IF(AND('Enrollment Form'!$O982=\"Graded\",'Enrollment Form'!$AR982<>\"\"),\"Y\",\"N\"))","v":"-"},{"$f":"IF($B975=\"N\",\"\",IF(OR('Enrollment Form'!$B982<>\"Subscriber\",'Enrollment Form'!$C982=\"ROC\"),\"-\",IF(AND('Enrollment Form'!$B982=\"Subscriber\",'Enrollment Form'!$C982=\"Enroll\",'Enrollment Form'!$AJ982<>\"\"),\"Y\",\"N\")))","v":""},{"$f":"IF($B975=\"N\",\"\",IF(OR('Enrollment Form'!$B982<>\"Subscriber\",'Enrollment Form'!$C982=\"ROC\"),\"-\",IF(AND('Enrollment Form'!$B982=\"Subscriber\",'Enrollment Form'!$C982=\"Enroll\",'Enrollment Form'!$AK982<>\"\"),\"Y\",\"N\")))","v":""},{"$f":"IF($B975=\"N\",\"\",IF(OR('Enrollment Form'!$B982<>\"Subscriber\",'Enrollment Form'!$C982=\"ROC\"),\"-\",IF(AND('Enrollment Form'!$B982=\"Subscriber\",'Enrollment Form'!$C982=\"Enroll\",'Enrollment Form'!$AL982<>\"\"),\"Y\",\"N\")))","v":""},{"$f":"IF($B975=\"N\",\"\",IF(OR('Enrollment Form'!$B982<>\"Subscriber\",'Enrollment Form'!$C982=\"ROC\"),\"-\",IF(AND('Enrollment Form'!$B982=\"Subscriber\",'Enrollment Form'!$C982=\"Enroll\",'Enrollment Form'!$AP982<>\"\"),\"Y\",\"N\")))","v":""},{"$f":"IF($B975=\"N\",\"\",IF(OR('Enrollment Form'!$B982<>\"Subscriber\",'Enrollment Form'!$C982=\"ROC\"),\"-\",IF(AND('Enrollment Form'!$B982=\"Subscriber\",'Enrollment Form'!$C982=\"Enroll\",'Enrollment Form'!$AQ982<>\"\"),\"Y\",\"N\")))","v":""},{"$f":"IF($B975=\"N\",\"\",IF(OR('Enrollment Form'!$B982<>\"Subscriber\",'Enrollment Form'!$C982=\"ROC\"),\"-\",IF(AND('Enrollment Form'!$B982=\"Subscriber\",'Enrollment Form'!$C982=\"Enroll\",'Enrollment Form'!$AS982<>\"\"),\"Y\",\"N\")))","v":""},{"$f":"IF($B975=\"N\",\"\",IF($Q975=\"-\",\"-\",IF(AND($Q975=\"Y\",'Enrollment Form'!$AS982=\"No\"),\"-\",IF(AND($Q975=\"Y\",'Enrollment Form'!$AS982=\"Yes\",'Enrollment Form'!$AT982<>\"\"),\"Y\",\"N\"))))","v":""},{"$f":"IF($B975=\"N\",\"\",IF(OR('Enrollment Form'!$B982<>\"Subscriber\",'Enrollment Form'!$C982=\"ROC\"),\"-\",IF(AND('Enrollment Form'!$B982=\"Subscriber\",'Enrollment Form'!$C982=\"Enroll\",'Enrollment Form'!$CV982<>\"\"),\"Y\",\"N\")))","v":""},{"$f":"IF($B975=\"N\",\"\",IF($S975=\"-\",\"-\",IF(AND($S975=\"Y\",'Enrollment Form'!$CV982=\"No\"),\"-\",IF(AND($S975=\"Y\",'Enrollment Form'!$CV982=\"Yes\",'Enrollment Form'!$CW982<>\"\"),\"Y\",\"N\"))))","v":""},{"$f":"IF(OR('Enrollment Form'!$AY982=\"Yes\",'Enrollment Form'!$AY982=\"\"),\"-\",IF(OR(AND('Enrollment Form'!$AY982=\"No\",ISERROR(FIND(\"HMO\",VLOOKUP('Enrollment Form'!G982,'Enrollment Form'!H$11:J$1000,3,FALSE),1))=FALSE,COUNTA('Enrollment Form'!$AZ982:$BC982)=4),AND('Enrollment Form'!$AY982=\"No\",ISERROR(FIND(\"HMO\",VLOOKUP('Enrollment Form'!G982,'Enrollment Form'!H$11:J$1000,3,FALSE),1))=FALSE,COUNTA('Enrollment Form'!$BT982:$BW982)=4)),\"Y\",\"N\"))","v":"-"},{"$f":"IF($B975=\"N\",\"\",IF('Enrollment Form'!$B982=\"Subscriber\",\"-\",IF(COUNTA('Enrollment Form'!$BL982,'Enrollment Form'!$BN982)=2,\"Y\",\"N\")))","v":""},{"$f":"IF($B975=\"N\",\"\",IF(OR('Enrollment Form'!$AX982=\"\",'Enrollment Form'!$AX982=\"No\"),\"-\",IF(AND('Enrollment Form'!$AX982=\"Yes\",COUNTA('Enrollment Form'!$CR982)=1),\"Y\",\"N\")))","v":""},{"$f":"IF(OR('Enrollment Form'!$CR982=\"\",'Enrollment Form'!$CR982=\"No\"),\"-\",IF(COUNTA('Enrollment Form'!$CT982:$CU982)=2,\"Y\",\"N\"))","v":"-"},{"$f":"IF($B975=\"N\",\"\",IF(COUNTIF('Enrollment Form'!$DG982:$DP982,\"Other\")=COUNTA('Enrollment Form'!$DK982,'Enrollment Form'!$DH982,'Enrollment Form'!$DN982,'Enrollment Form'!$DQ982),\"Y\",\"N\"))","v":""},{"$f":"IF($B975=\"N\",\"\",IF(OR('Enrollment Form'!B982<>\"Subscriber\",'Enrollment Form'!C982=\"ROC\",COUNTIF('Enrollment Form'!AV982:AW982,\"Yes\")>=1),\"-\",IF(AND('Enrollment Form'!C982=\"Enroll\",COUNTIF('Enrollment Form'!AV982:AW982,\"No\")=2,'Enrollment Form'!AX982=\"\"),\"N\",\"Y\")))","v":""},{"$f":"IF(OR(B975=\"N\",'Enrollment Form'!B982<>\"Subscriber\",'Enrollment Form'!C982=\"ROC\",'Enrollment Form'!O982<>\"Multiple of Salary\"),\"-\",IF(COUNTA('Enrollment Form'!T982:U982)<2,\"N\",\"Y\"))","v":"-"},{"$f":"IF(B975=\"N\",\"\",IF(OR('Enrollment Form'!C982=\"ROC\",'Enrollment Form'!B982<>\"Subscriber\",'Enrollment Form'!O982=\"Waive\",'Enrollment Form'!O982=\"\"),\"-\",IF('Enrollment Form'!P982=\"\",\"N\",\"Y\")))","v":""},{"$f":"IF($B975=\"N\",\"\",IF(AND('Enrollment Form'!$C982=\"ROC\",'Enrollment Form'!$DR982<>\"\"),\"Y\",IF(AND('Enrollment Form'!$C982=\"ROC\",'Enrollment Form'!$DR982=\"\"),\"N\",IF(AND('Enrollment Form'!$C982=\"Enroll\",'Enrollment Form'!$B982=\"Subscriber\",'Enrollment Form'!$CX982=\"No\",'Enrollment Form'!$DR982=\"\"),\"N\",IF(AND('Enrollment Form'!$C982=\"Enroll\",'Enrollment Form'!$B982=\"Subscriber\",'Enrollment Form'!$CX982=\"Yes\"),\"-\",\"Y\")))))","v":""},{"$f":"IF($B975=\"N\",\"\",IF(AND('Enrollment Form'!$C982=\"ROC\",'Enrollment Form'!$DS982<>\"\"),\"Y\",IF(AND('Enrollment Form'!$C982=\"ROC\",'Enrollment Form'!$DS982=\"\"),\"N\",IF(AND('Enrollment Form'!$C982=\"Enroll\",'Enrollment Form'!$B982=\"Subscriber\",'Enrollment Form'!$CX982=\"No\",'Enrollment Form'!$DS982=\"\"),\"N\",IF(AND('Enrollment Form'!$C982=\"Enroll\",'Enrollment Form'!$B982=\"Subscriber\",'Enrollment Form'!$CX982=\"Yes\"),\"-\",\"Y\")))))","v":""},{"$f":"IF('Enrollment Form'!AH982=\"\",\"\",IF(ISERROR(SEARCH(\".\",'Enrollment Form'!AH982,SEARCH(\"@\",'Enrollment Form'!AH982))),\"N\",\"Y\"))","v":""},{"$f":"IF(OR($B975=\"N\",'Enrollment Form'!$G982=\"\"),\"\",IF('Enrollment Form'!$B982<>\"Subscriber\",\"-\",IF(COUNTIF('Enrollment Form'!$AV982:$AW982,\"Yes\")=2,\"N\",\"Y\")))","v":""},{"$f":"IF(OR('Enrollment Form'!$CJ982=\"\",'Enrollment Form'!$CJ982=\"No\"),\"-\",IF(AND('Enrollment Form'!$CJ982=\"Yes\",'Enrollment Form'!$CK982=\"\"),\"N\",\"Y\"))","v":"-"},{"$f":"IF(OR('Enrollment Form'!$CL982=\"\",'Enrollment Form'!$CL982=\"No\"),\"-\",IF(AND('Enrollment Form'!$CL982=\"Yes\",'Enrollment Form'!$CM982=\"\"),\"N\",\"Y\"))","v":"-"},{"$f":"IF(OR('Enrollment Form'!$CN982=\"\",'Enrollment Form'!$CN982=\"No\"),\"-\",IF(AND('Enrollment Form'!$CN982=\"Yes\",'Enrollment Form'!$CO982=\"\"),\"N\",\"Y\"))","v":"-"},{"$f":"IF(OR('Enrollment Form'!$CN982=\"\",'Enrollment Form'!$CN982=\"No\"),\"-\",IF(AND('Enrollment Form'!$CN982=\"Yes\",'Enrollment Form'!$CP982=\"\"),\"N\",\"Y\"))","v":"-"},{"$f":"IF('Enrollment Form'!B982<>\"Subscriber\",\"-\",IF(AND('Enrollment Form'!B982=\"Subscriber\",'Enrollment Form'!C982=\"Enroll\",'Enrollment Form'!AA982=\"\"),\"N\",\"Y\"))","v":"-"},{"$f":"IF(OR('Enrollment Form'!B982=\"Subscriber\",'Enrollment Form'!B982=\"\"),\"-\",IF('Enrollment Form'!BP982=\"\",\"N\",\"Y\"))","v":"-"},{"$f":"IF('Enrollment Form'!B982<>\"Subscriber\",\"-\",IF(AND('Enrollment Form'!B982=\"Subscriber\",'Enrollment Form'!G982=\"\"),\"N\",\"Y\"))","v":"-"},{"$f":"IF('Enrollment Form'!A982=\"\",\"\",IF('Enrollment Form'!B982=\"Subscriber\",\"-\",IF(AND('Enrollment Form'!B982<>\"Subscriber\",'Enrollment Form'!G982='Enrollment Form'!H982),\"N\",\"Y\")))","v":""},0]
[983,{"$f":"IF('Enrollment Form'!$A983<>\"\",\"Y\",\"N\")","v":"N"},{"$f":"IF(AND('Enrollment Form'!$B983=\"\",'Enrollment Form'!$C983<>\"\"),\"N\",IF($B976=\"N\",\"\",\"Y\"))","v":""},{"$f":"IF(OR($B976=\"N\",'Enrollment Form'!G983=\"\"),\"\",IF('Enrollment Form'!$B983<>\"Subscriber\",\"\",IF('Enrollment Form'!$G983='Enrollment Form'!$H983,\"Y\",\"N\")))","v":""},{"$f":"IF($B976=\"N\",\"\",IF(AND(COUNTIFS('Enrollment Form'!$H$11:$H$1000,'Enrollment Form'!$H983,'Enrollment Form'!$B$11:$B$1000,'Enrollment Form'!$B983)>1,'Enrollment Form'!$H983<>\"\"),\"N\",\"Y\"))","v":""},{"$f":"IF($B976=\"N\",\"\",IF(LEN('Enrollment Form'!$Y983)=0,\"\",IF(LEN('Enrollment Form'!$Y983)<>5,\"N\",\"Y\")))","v":""},{"$f":"IF($B976=\"N\",\"\",IF(LEN('Enrollment Form'!$AD983=0),\"\",IF(LEN('Enrollment Form'!$AD983)<>5,\"N\",\"Y\")))","v":""},{"$f":"IF($B976=\"N\",\"\",IF(LEN('Enrollment Form'!$BS983=0),\"\",IF(LEN('Enrollment Form'!$BS983)<>5,\"N\",\"Y\")))","v":""},{"$f":"IF($B976=\"N\",\"\",IF(LEN('Enrollment Form'!$AE983)=0,\"\",IF(LEN('Enrollment Form'!$AE983)<>10,\"N\",\"Y\")))","v":""},{"$f":"IF($B976=\"N\",\"\",IF(LEN('Enrollment Form'!$AF983)=0,\"\",IF(LEN('Enrollment Form'!$AF983)<>10,\"N\",\"Y\")))","v":""},{"$f":"IF('Enrollment Form'!$O983<>\"Graded\",\"-\",IF(AND('Enrollment Form'!$O983=\"Graded\",'Enrollment Form'!$AR983<>\"\"),\"Y\",\"N\"))","v":"-"},{"$f":"IF($B976=\"N\",\"\",IF(OR('Enrollment Form'!$B983<>\"Subscriber\",'Enrollment Form'!$C983=\"ROC\"),\"-\",IF(AND('Enrollment Form'!$B983=\"Subscriber\",'Enrollment Form'!$C983=\"Enroll\",'Enrollment Form'!$AJ983<>\"\"),\"Y\",\"N\")))","v":""},{"$f":"IF($B976=\"N\",\"\",IF(OR('Enrollment Form'!$B983<>\"Subscriber\",'Enrollment Form'!$C983=\"ROC\"),\"-\",IF(AND('Enrollment Form'!$B983=\"Subscriber\",'Enrollment Form'!$C983=\"Enroll\",'Enrollment Form'!$AK983<>\"\"),\"Y\",\"N\")))","v":""},{"$f":"IF($B976=\"N\",\"\",IF(OR('Enrollment Form'!$B983<>\"Subscriber\",'Enrollment Form'!$C983=\"ROC\"),\"-\",IF(AND('Enrollment Form'!$B983=\"Subscriber\",'Enrollment Form'!$C983=\"Enroll\",'Enrollment Form'!$AL983<>\"\"),\"Y\",\"N\")))","v":""},{"$f":"IF($B976=\"N\",\"\",IF(OR('Enrollment Form'!$B983<>\"Subscriber\",'Enrollment Form'!$C983=\"ROC\"),\"-\",IF(AND('Enrollment Form'!$B983=\"Subscriber\",'Enrollment Form'!$C983=\"Enroll\",'Enrollment Form'!$AP983<>\"\"),\"Y\",\"N\")))","v":""},{"$f":"IF($B976=\"N\",\"\",IF(OR('Enrollment Form'!$B983<>\"Subscriber\",'Enrollment Form'!$C983=\"ROC\"),\"-\",IF(AND('Enrollment Form'!$B983=\"Subscriber\",'Enrollment Form'!$C983=\"Enroll\",'Enrollment Form'!$AQ983<>\"\"),\"Y\",\"N\")))","v":""},{"$f":"IF($B976=\"N\",\"\",IF(OR('Enrollment Form'!$B983<>\"Subscriber\",'Enrollment Form'!$C983=\"ROC\"),\"-\",IF(AND('Enrollment Form'!$B983=\"Subscriber\",'Enrollment Form'!$C983=\"Enroll\",'Enrollment Form'!$AS983<>\"\"),\"Y\",\"N\")))","v":""},{"$f":"IF($B976=\"N\",\"\",IF($Q976=\"-\",\"-\",IF(AND($Q976=\"Y\",'Enrollment Form'!$AS983=\"No\"),\"-\",IF(AND($Q976=\"Y\",'Enrollment Form'!$AS983=\"Yes\",'Enrollment Form'!$AT983<>\"\"),\"Y\",\"N\"))))","v":""},{"$f":"IF($B976=\"N\",\"\",IF(OR('Enrollment Form'!$B983<>\"Subscriber\",'Enrollment Form'!$C983=\"ROC\"),\"-\",IF(AND('Enrollment Form'!$B983=\"Subscriber\",'Enrollment Form'!$C983=\"Enroll\",'Enrollment Form'!$CV983<>\"\"),\"Y\",\"N\")))","v":""},{"$f":"IF($B976=\"N\",\"\",IF($S976=\"-\",\"-\",IF(AND($S976=\"Y\",'Enrollment Form'!$CV983=\"No\"),\"-\",IF(AND($S976=\"Y\",'Enrollment Form'!$CV983=\"Yes\",'Enrollment Form'!$CW983<>\"\"),\"Y\",\"N\"))))","v":""},{"$f":"IF(OR('Enrollment Form'!$AY983=\"Yes\",'Enrollment Form'!$AY983=\"\"),\"-\",IF(OR(AND('Enrollment Form'!$AY983=\"No\",ISERROR(FIND(\"HMO\",VLOOKUP('Enrollment Form'!G983,'Enrollment Form'!H$11:J$1000,3,FALSE),1))=FALSE,COUNTA('Enrollment Form'!$AZ983:$BC983)=4),AND('Enrollment Form'!$AY983=\"No\",ISERROR(FIND(\"HMO\",VLOOKUP('Enrollment Form'!G983,'Enrollment Form'!H$11:J$1000,3,FALSE),1))=FALSE,COUNTA('Enrollment Form'!$BT983:$BW983)=4)),\"Y\",\"N\"))","v":"-"},{"$f":"IF($B976=\"N\",\"\",IF('Enrollment Form'!$B983=\"Subscriber\",\"-\",IF(COUNTA('Enrollment Form'!$BL983,'Enrollment Form'!$BN983)=2,\"Y\",\"N\")))","v":""},{"$f":"IF($B976=\"N\",\"\",IF(OR('Enrollment Form'!$AX983=\"\",'Enrollment Form'!$AX983=\"No\"),\"-\",IF(AND('Enrollment Form'!$AX983=\"Yes\",COUNTA('Enrollment Form'!$CR983)=1),\"Y\",\"N\")))","v":""},{"$f":"IF(OR('Enrollment Form'!$CR983=\"\",'Enrollment Form'!$CR983=\"No\"),\"-\",IF(COUNTA('Enrollment Form'!$CT983:$CU983)=2,\"Y\",\"N\"))","v":"-"},{"$f":"IF($B976=\"N\",\"\",IF(COUNTIF('Enrollment Form'!$DG983:$DP983,\"Other\")=COUNTA('Enrollment Form'!$DK983,'Enrollment Form'!$DH983,'Enrollment Form'!$DN983,'Enrollment Form'!$DQ983),\"Y\",\"N\"))","v":""},{"$f":"IF($B976=\"N\",\"\",IF(OR('Enrollment Form'!B983<>\"Subscriber\",'Enrollment Form'!C983=\"ROC\",COUNTIF('Enrollment Form'!AV983:AW983,\"Yes\")>=1),\"-\",IF(AND('Enrollment Form'!C983=\"Enroll\",COUNTIF('Enrollment Form'!AV983:AW983,\"No\")=2,'Enrollment Form'!AX983=\"\"),\"N\",\"Y\")))","v":""},{"$f":"IF(OR(B976=\"N\",'Enrollment Form'!B983<>\"Subscriber\",'Enrollment Form'!C983=\"ROC\",'Enrollment Form'!O983<>\"Multiple of Salary\"),\"-\",IF(COUNTA('Enrollment Form'!T983:U983)<2,\"N\",\"Y\"))","v":"-"},{"$f":"IF(B976=\"N\",\"\",IF(OR('Enrollment Form'!C983=\"ROC\",'Enrollment Form'!B983<>\"Subscriber\",'Enrollment Form'!O983=\"Waive\",'Enrollment Form'!O983=\"\"),\"-\",IF('Enrollment Form'!P983=\"\",\"N\",\"Y\")))","v":""},{"$f":"IF($B976=\"N\",\"\",IF(AND('Enrollment Form'!$C983=\"ROC\",'Enrollment Form'!$DR983<>\"\"),\"Y\",IF(AND('Enrollment Form'!$C983=\"ROC\",'Enrollment Form'!$DR983=\"\"),\"N\",IF(AND('Enrollment Form'!$C983=\"Enroll\",'Enrollment Form'!$B983=\"Subscriber\",'Enrollment Form'!$CX983=\"No\",'Enrollment Form'!$DR983=\"\"),\"N\",IF(AND('Enrollment Form'!$C983=\"Enroll\",'Enrollment Form'!$B983=\"Subscriber\",'Enrollment Form'!$CX983=\"Yes\"),\"-\",\"Y\")))))","v":""},{"$f":"IF($B976=\"N\",\"\",IF(AND('Enrollment Form'!$C983=\"ROC\",'Enrollment Form'!$DS983<>\"\"),\"Y\",IF(AND('Enrollment Form'!$C983=\"ROC\",'Enrollment Form'!$DS983=\"\"),\"N\",IF(AND('Enrollment Form'!$C983=\"Enroll\",'Enrollment Form'!$B983=\"Subscriber\",'Enrollment Form'!$CX983=\"No\",'Enrollment Form'!$DS983=\"\"),\"N\",IF(AND('Enrollment Form'!$C983=\"Enroll\",'Enrollment Form'!$B983=\"Subscriber\",'Enrollment Form'!$CX983=\"Yes\"),\"-\",\"Y\")))))","v":""},{"$f":"IF('Enrollment Form'!AH983=\"\",\"\",IF(ISERROR(SEARCH(\".\",'Enrollment Form'!AH983,SEARCH(\"@\",'Enrollment Form'!AH983))),\"N\",\"Y\"))","v":""},{"$f":"IF(OR($B976=\"N\",'Enrollment Form'!$G983=\"\"),\"\",IF('Enrollment Form'!$B983<>\"Subscriber\",\"-\",IF(COUNTIF('Enrollment Form'!$AV983:$AW983,\"Yes\")=2,\"N\",\"Y\")))","v":""},{"$f":"IF(OR('Enrollment Form'!$CJ983=\"\",'Enrollment Form'!$CJ983=\"No\"),\"-\",IF(AND('Enrollment Form'!$CJ983=\"Yes\",'Enrollment Form'!$CK983=\"\"),\"N\",\"Y\"))","v":"-"},{"$f":"IF(OR('Enrollment Form'!$CL983=\"\",'Enrollment Form'!$CL983=\"No\"),\"-\",IF(AND('Enrollment Form'!$CL983=\"Yes\",'Enrollment Form'!$CM983=\"\"),\"N\",\"Y\"))","v":"-"},{"$f":"IF(OR('Enrollment Form'!$CN983=\"\",'Enrollment Form'!$CN983=\"No\"),\"-\",IF(AND('Enrollment Form'!$CN983=\"Yes\",'Enrollment Form'!$CO983=\"\"),\"N\",\"Y\"))","v":"-"},{"$f":"IF(OR('Enrollment Form'!$CN983=\"\",'Enrollment Form'!$CN983=\"No\"),\"-\",IF(AND('Enrollment Form'!$CN983=\"Yes\",'Enrollment Form'!$CP983=\"\"),\"N\",\"Y\"))","v":"-"},{"$f":"IF('Enrollment Form'!B983<>\"Subscriber\",\"-\",IF(AND('Enrollment Form'!B983=\"Subscriber\",'Enrollment Form'!C983=\"Enroll\",'Enrollment Form'!AA983=\"\"),\"N\",\"Y\"))","v":"-"},{"$f":"IF(OR('Enrollment Form'!B983=\"Subscriber\",'Enrollment Form'!B983=\"\"),\"-\",IF('Enrollment Form'!BP983=\"\",\"N\",\"Y\"))","v":"-"},{"$f":"IF('Enrollment Form'!B983<>\"Subscriber\",\"-\",IF(AND('Enrollment Form'!B983=\"Subscriber\",'Enrollment Form'!G983=\"\"),\"N\",\"Y\"))","v":"-"},{"$f":"IF('Enrollment Form'!A983=\"\",\"\",IF('Enrollment Form'!B983=\"Subscriber\",\"-\",IF(AND('Enrollment Form'!B983<>\"Subscriber\",'Enrollment Form'!G983='Enrollment Form'!H983),\"N\",\"Y\")))","v":""},0]
[984,{"$f":"IF('Enrollment Form'!$A984<>\"\",\"Y\",\"N\")","v":"N"},{"$f":"IF(AND('Enrollment Form'!$B984=\"\",'Enrollment Form'!$C984<>\"\"),\"N\",IF($B977=\"N\",\"\",\"Y\"))","v":""},{"$f":"IF(OR($B977=\"N\",'Enrollment Form'!G984=\"\"),\"\",IF('Enrollment Form'!$B984<>\"Subscriber\",\"\",IF('Enrollment Form'!$G984='Enrollment Form'!$H984,\"Y\",\"N\")))","v":""},{"$f":"IF($B977=\"N\",\"\",IF(AND(COUNTIFS('Enrollment Form'!$H$11:$H$1000,'Enrollment Form'!$H984,'Enrollment Form'!$B$11:$B$1000,'Enrollment Form'!$B984)>1,'Enrollment Form'!$H984<>\"\"),\"N\",\"Y\"))","v":""},{"$f":"IF($B977=\"N\",\"\",IF(LEN('Enrollment Form'!$Y984)=0,\"\",IF(LEN('Enrollment Form'!$Y984)<>5,\"N\",\"Y\")))","v":""},{"$f":"IF($B977=\"N\",\"\",IF(LEN('Enrollment Form'!$AD984=0),\"\",IF(LEN('Enrollment Form'!$AD984)<>5,\"N\",\"Y\")))","v":""},{"$f":"IF($B977=\"N\",\"\",IF(LEN('Enrollment Form'!$BS984=0),\"\",IF(LEN('Enrollment Form'!$BS984)<>5,\"N\",\"Y\")))","v":""},{"$f":"IF($B977=\"N\",\"\",IF(LEN('Enrollment Form'!$AE984)=0,\"\",IF(LEN('Enrollment Form'!$AE984)<>10,\"N\",\"Y\")))","v":""},{"$f":"IF($B977=\"N\",\"\",IF(LEN('Enrollment Form'!$AF984)=0,\"\",IF(LEN('Enrollment Form'!$AF984)<>10,\"N\",\"Y\")))","v":""},{"$f":"IF('Enrollment Form'!$O984<>\"Graded\",\"-\",IF(AND('Enrollment Form'!$O984=\"Graded\",'Enrollment Form'!$AR984<>\"\"),\"Y\",\"N\"))","v":"-"},{"$f":"IF($B977=\"N\",\"\",IF(OR('Enrollment Form'!$B984<>\"Subscriber\",'Enrollment Form'!$C984=\"ROC\"),\"-\",IF(AND('Enrollment Form'!$B984=\"Subscriber\",'Enrollment Form'!$C984=\"Enroll\",'Enrollment Form'!$AJ984<>\"\"),\"Y\",\"N\")))","v":""},{"$f":"IF($B977=\"N\",\"\",IF(OR('Enrollment Form'!$B984<>\"Subscriber\",'Enrollment Form'!$C984=\"ROC\"),\"-\",IF(AND('Enrollment Form'!$B984=\"Subscriber\",'Enrollment Form'!$C984=\"Enroll\",'Enrollment Form'!$AK984<>\"\"),\"Y\",\"N\")))","v":""},{"$f":"IF($B977=\"N\",\"\",IF(OR('Enrollment Form'!$B984<>\"Subscriber\",'Enrollment Form'!$C984=\"ROC\"),\"-\",IF(AND('Enrollment Form'!$B984=\"Subscriber\",'Enrollment Form'!$C984=\"Enroll\",'Enrollment Form'!$AL984<>\"\"),\"Y\",\"N\")))","v":""},{"$f":"IF($B977=\"N\",\"\",IF(OR('Enrollment Form'!$B984<>\"Subscriber\",'Enrollment Form'!$C984=\"ROC\"),\"-\",IF(AND('Enrollment Form'!$B984=\"Subscriber\",'Enrollment Form'!$C984=\"Enroll\",'Enrollment Form'!$AP984<>\"\"),\"Y\",\"N\")))","v":""},{"$f":"IF($B977=\"N\",\"\",IF(OR('Enrollment Form'!$B984<>\"Subscriber\",'Enrollment Form'!$C984=\"ROC\"),\"-\",IF(AND('Enrollment Form'!$B984=\"Subscriber\",'Enrollment Form'!$C984=\"Enroll\",'Enrollment Form'!$AQ984<>\"\"),\"Y\",\"N\")))","v":""},{"$f":"IF($B977=\"N\",\"\",IF(OR('Enrollment Form'!$B984<>\"Subscriber\",'Enrollment Form'!$C984=\"ROC\"),\"-\",IF(AND('Enrollment Form'!$B984=\"Subscriber\",'Enrollment Form'!$C984=\"Enroll\",'Enrollment Form'!$AS984<>\"\"),\"Y\",\"N\")))","v":""},{"$f":"IF($B977=\"N\",\"\",IF($Q977=\"-\",\"-\",IF(AND($Q977=\"Y\",'Enrollment Form'!$AS984=\"No\"),\"-\",IF(AND($Q977=\"Y\",'Enrollment Form'!$AS984=\"Yes\",'Enrollment Form'!$AT984<>\"\"),\"Y\",\"N\"))))","v":""},{"$f":"IF($B977=\"N\",\"\",IF(OR('Enrollment Form'!$B984<>\"Subscriber\",'Enrollment Form'!$C984=\"ROC\"),\"-\",IF(AND('Enrollment Form'!$B984=\"Subscriber\",'Enrollment Form'!$C984=\"Enroll\",'Enrollment Form'!$CV984<>\"\"),\"Y\",\"N\")))","v":""},{"$f":"IF($B977=\"N\",\"\",IF($S977=\"-\",\"-\",IF(AND($S977=\"Y\",'Enrollment Form'!$CV984=\"No\"),\"-\",IF(AND($S977=\"Y\",'Enrollment Form'!$CV984=\"Yes\",'Enrollment Form'!$CW984<>\"\"),\"Y\",\"N\"))))","v":""},{"$f":"IF(OR('Enrollment Form'!$AY984=\"Yes\",'Enrollment Form'!$AY984=\"\"),\"-\",IF(OR(AND('Enrollment Form'!$AY984=\"No\",ISERROR(FIND(\"HMO\",VLOOKUP('Enrollment Form'!G984,'Enrollment Form'!H$11:J$1000,3,FALSE),1))=FALSE,COUNTA('Enrollment Form'!$AZ984:$BC984)=4),AND('Enrollment Form'!$AY984=\"No\",ISERROR(FIND(\"HMO\",VLOOKUP('Enrollment Form'!G984,'Enrollment Form'!H$11:J$1000,3,FALSE),1))=FALSE,COUNTA('Enrollment Form'!$BT984:$BW984)=4)),\"Y\",\"N\"))","v":"-"},{"$f":"IF($B977=\"N\",\"\",IF('Enrollment Form'!$B984=\"Subscriber\",\"-\",IF(COUNTA('Enrollment Form'!$BL984,'Enrollment Form'!$BN984)=2,\"Y\",\"N\")))","v":""},{"$f":"IF($B977=\"N\",\"\",IF(OR('Enrollment Form'!$AX984=\"\",'Enrollment Form'!$AX984=\"No\"),\"-\",IF(AND('Enrollment Form'!$AX984=\"Yes\",COUNTA('Enrollment Form'!$CR984)=1),\"Y\",\"N\")))","v":""},{"$f":"IF(OR('Enrollment Form'!$CR984=\"\",'Enrollment Form'!$CR984=\"No\"),\"-\",IF(COUNTA('Enrollment Form'!$CT984:$CU984)=2,\"Y\",\"N\"))","v":"-"},{"$f":"IF($B977=\"N\",\"\",IF(COUNTIF('Enrollment Form'!$DG984:$DP984,\"Other\")=COUNTA('Enrollment Form'!$DK984,'Enrollment Form'!$DH984,'Enrollment Form'!$DN984,'Enrollment Form'!$DQ984),\"Y\",\"N\"))","v":""},{"$f":"IF($B977=\"N\",\"\",IF(OR('Enrollment Form'!B984<>\"Subscriber\",'Enrollment Form'!C984=\"ROC\",COUNTIF('Enrollment Form'!AV984:AW984,\"Yes\")>=1),\"-\",IF(AND('Enrollment Form'!C984=\"Enroll\",COUNTIF('Enrollment Form'!AV984:AW984,\"No\")=2,'Enrollment Form'!AX984=\"\"),\"N\",\"Y\")))","v":""},{"$f":"IF(OR(B977=\"N\",'Enrollment Form'!B984<>\"Subscriber\",'Enrollment Form'!C984=\"ROC\",'Enrollment Form'!O984<>\"Multiple of Salary\"),\"-\",IF(COUNTA('Enrollment Form'!T984:U984)<2,\"N\",\"Y\"))","v":"-"},{"$f":"IF(B977=\"N\",\"\",IF(OR('Enrollment Form'!C984=\"ROC\",'Enrollment Form'!B984<>\"Subscriber\",'Enrollment Form'!O984=\"Waive\",'Enrollment Form'!O984=\"\"),\"-\",IF('Enrollment Form'!P984=\"\",\"N\",\"Y\")))","v":""},{"$f":"IF($B977=\"N\",\"\",IF(AND('Enrollment Form'!$C984=\"ROC\",'Enrollment Form'!$DR984<>\"\"),\"Y\",IF(AND('Enrollment Form'!$C984=\"ROC\",'Enrollment Form'!$DR984=\"\"),\"N\",IF(AND('Enrollment Form'!$C984=\"Enroll\",'Enrollment Form'!$B984=\"Subscriber\",'Enrollment Form'!$CX984=\"No\",'Enrollment Form'!$DR984=\"\"),\"N\",IF(AND('Enrollment Form'!$C984=\"Enroll\",'Enrollment Form'!$B984=\"Subscriber\",'Enrollment Form'!$CX984=\"Yes\"),\"-\",\"Y\")))))","v":""},{"$f":"IF($B977=\"N\",\"\",IF(AND('Enrollment Form'!$C984=\"ROC\",'Enrollment Form'!$DS984<>\"\"),\"Y\",IF(AND('Enrollment Form'!$C984=\"ROC\",'Enrollment Form'!$DS984=\"\"),\"N\",IF(AND('Enrollment Form'!$C984=\"Enroll\",'Enrollment Form'!$B984=\"Subscriber\",'Enrollment Form'!$CX984=\"No\",'Enrollment Form'!$DS984=\"\"),\"N\",IF(AND('Enrollment Form'!$C984=\"Enroll\",'Enrollment Form'!$B984=\"Subscriber\",'Enrollment Form'!$CX984=\"Yes\"),\"-\",\"Y\")))))","v":""},{"$f":"IF('Enrollment Form'!AH984=\"\",\"\",IF(ISERROR(SEARCH(\".\",'Enrollment Form'!AH984,SEARCH(\"@\",'Enrollment Form'!AH984))),\"N\",\"Y\"))","v":""},{"$f":"IF(OR($B977=\"N\",'Enrollment Form'!$G984=\"\"),\"\",IF('Enrollment Form'!$B984<>\"Subscriber\",\"-\",IF(COUNTIF('Enrollment Form'!$AV984:$AW984,\"Yes\")=2,\"N\",\"Y\")))","v":""},{"$f":"IF(OR('Enrollment Form'!$CJ984=\"\",'Enrollment Form'!$CJ984=\"No\"),\"-\",IF(AND('Enrollment Form'!$CJ984=\"Yes\",'Enrollment Form'!$CK984=\"\"),\"N\",\"Y\"))","v":"-"},{"$f":"IF(OR('Enrollment Form'!$CL984=\"\",'Enrollment Form'!$CL984=\"No\"),\"-\",IF(AND('Enrollment Form'!$CL984=\"Yes\",'Enrollment Form'!$CM984=\"\"),\"N\",\"Y\"))","v":"-"},{"$f":"IF(OR('Enrollment Form'!$CN984=\"\",'Enrollment Form'!$CN984=\"No\"),\"-\",IF(AND('Enrollment Form'!$CN984=\"Yes\",'Enrollment Form'!$CO984=\"\"),\"N\",\"Y\"))","v":"-"},{"$f":"IF(OR('Enrollment Form'!$CN984=\"\",'Enrollment Form'!$CN984=\"No\"),\"-\",IF(AND('Enrollment Form'!$CN984=\"Yes\",'Enrollment Form'!$CP984=\"\"),\"N\",\"Y\"))","v":"-"},{"$f":"IF('Enrollment Form'!B984<>\"Subscriber\",\"-\",IF(AND('Enrollment Form'!B984=\"Subscriber\",'Enrollment Form'!C984=\"Enroll\",'Enrollment Form'!AA984=\"\"),\"N\",\"Y\"))","v":"-"},{"$f":"IF(OR('Enrollment Form'!B984=\"Subscriber\",'Enrollment Form'!B984=\"\"),\"-\",IF('Enrollment Form'!BP984=\"\",\"N\",\"Y\"))","v":"-"},{"$f":"IF('Enrollment Form'!B984<>\"Subscriber\",\"-\",IF(AND('Enrollment Form'!B984=\"Subscriber\",'Enrollment Form'!G984=\"\"),\"N\",\"Y\"))","v":"-"},{"$f":"IF('Enrollment Form'!A984=\"\",\"\",IF('Enrollment Form'!B984=\"Subscriber\",\"-\",IF(AND('Enrollment Form'!B984<>\"Subscriber\",'Enrollment Form'!G984='Enrollment Form'!H984),\"N\",\"Y\")))","v":""},0]
[985,{"$f":"IF('Enrollment Form'!$A985<>\"\",\"Y\",\"N\")","v":"N"},{"$f":"IF(AND('Enrollment Form'!$B985=\"\",'Enrollment Form'!$C985<>\"\"),\"N\",IF($B978=\"N\",\"\",\"Y\"))","v":""},{"$f":"IF(OR($B978=\"N\",'Enrollment Form'!G985=\"\"),\"\",IF('Enrollment Form'!$B985<>\"Subscriber\",\"\",IF('Enrollment Form'!$G985='Enrollment Form'!$H985,\"Y\",\"N\")))","v":""},{"$f":"IF($B978=\"N\",\"\",IF(AND(COUNTIFS('Enrollment Form'!$H$11:$H$1000,'Enrollment Form'!$H985,'Enrollment Form'!$B$11:$B$1000,'Enrollment Form'!$B985)>1,'Enrollment Form'!$H985<>\"\"),\"N\",\"Y\"))","v":""},{"$f":"IF($B978=\"N\",\"\",IF(LEN('Enrollment Form'!$Y985)=0,\"\",IF(LEN('Enrollment Form'!$Y985)<>5,\"N\",\"Y\")))","v":""},{"$f":"IF($B978=\"N\",\"\",IF(LEN('Enrollment Form'!$AD985=0),\"\",IF(LEN('Enrollment Form'!$AD985)<>5,\"N\",\"Y\")))","v":""},{"$f":"IF($B978=\"N\",\"\",IF(LEN('Enrollment Form'!$BS985=0),\"\",IF(LEN('Enrollment Form'!$BS985)<>5,\"N\",\"Y\")))","v":""},{"$f":"IF($B978=\"N\",\"\",IF(LEN('Enrollment Form'!$AE985)=0,\"\",IF(LEN('Enrollment Form'!$AE985)<>10,\"N\",\"Y\")))","v":""},{"$f":"IF($B978=\"N\",\"\",IF(LEN('Enrollment Form'!$AF985)=0,\"\",IF(LEN('Enrollment Form'!$AF985)<>10,\"N\",\"Y\")))","v":""},{"$f":"IF('Enrollment Form'!$O985<>\"Graded\",\"-\",IF(AND('Enrollment Form'!$O985=\"Graded\",'Enrollment Form'!$AR985<>\"\"),\"Y\",\"N\"))","v":"-"},{"$f":"IF($B978=\"N\",\"\",IF(OR('Enrollment Form'!$B985<>\"Subscriber\",'Enrollment Form'!$C985=\"ROC\"),\"-\",IF(AND('Enrollment Form'!$B985=\"Subscriber\",'Enrollment Form'!$C985=\"Enroll\",'Enrollment Form'!$AJ985<>\"\"),\"Y\",\"N\")))","v":""},{"$f":"IF($B978=\"N\",\"\",IF(OR('Enrollment Form'!$B985<>\"Subscriber\",'Enrollment Form'!$C985=\"ROC\"),\"-\",IF(AND('Enrollment Form'!$B985=\"Subscriber\",'Enrollment Form'!$C985=\"Enroll\",'Enrollment Form'!$AK985<>\"\"),\"Y\",\"N\")))","v":""},{"$f":"IF($B978=\"N\",\"\",IF(OR('Enrollment Form'!$B985<>\"Subscriber\",'Enrollment Form'!$C985=\"ROC\"),\"-\",IF(AND('Enrollment Form'!$B985=\"Subscriber\",'Enrollment Form'!$C985=\"Enroll\",'Enrollment Form'!$AL985<>\"\"),\"Y\",\"N\")))","v":""},{"$f":"IF($B978=\"N\",\"\",IF(OR('Enrollment Form'!$B985<>\"Subscriber\",'Enrollment Form'!$C985=\"ROC\"),\"-\",IF(AND('Enrollment Form'!$B985=\"Subscriber\",'Enrollment Form'!$C985=\"Enroll\",'Enrollment Form'!$AP985<>\"\"),\"Y\",\"N\")))","v":""},{"$f":"IF($B978=\"N\",\"\",IF(OR('Enrollment Form'!$B985<>\"Subscriber\",'Enrollment Form'!$C985=\"ROC\"),\"-\",IF(AND('Enrollment Form'!$B985=\"Subscriber\",'Enrollment Form'!$C985=\"Enroll\",'Enrollment Form'!$AQ985<>\"\"),\"Y\",\"N\")))","v":""},{"$f":"IF($B978=\"N\",\"\",IF(OR('Enrollment Form'!$B985<>\"Subscriber\",'Enrollment Form'!$C985=\"ROC\"),\"-\",IF(AND('Enrollment Form'!$B985=\"Subscriber\",'Enrollment Form'!$C985=\"Enroll\",'Enrollment Form'!$AS985<>\"\"),\"Y\",\"N\")))","v":""},{"$f":"IF($B978=\"N\",\"\",IF($Q978=\"-\",\"-\",IF(AND($Q978=\"Y\",'Enrollment Form'!$AS985=\"No\"),\"-\",IF(AND($Q978=\"Y\",'Enrollment Form'!$AS985=\"Yes\",'Enrollment Form'!$AT985<>\"\"),\"Y\",\"N\"))))","v":""},{"$f":"IF($B978=\"N\",\"\",IF(OR('Enrollment Form'!$B985<>\"Subscriber\",'Enrollment Form'!$C985=\"ROC\"),\"-\",IF(AND('Enrollment Form'!$B985=\"Subscriber\",'Enrollment Form'!$C985=\"Enroll\",'Enrollment Form'!$CV985<>\"\"),\"Y\",\"N\")))","v":""},{"$f":"IF($B978=\"N\",\"\",IF($S978=\"-\",\"-\",IF(AND($S978=\"Y\",'Enrollment Form'!$CV985=\"No\"),\"-\",IF(AND($S978=\"Y\",'Enrollment Form'!$CV985=\"Yes\",'Enrollment Form'!$CW985<>\"\"),\"Y\",\"N\"))))","v":""},{"$f":"IF(OR('Enrollment Form'!$AY985=\"Yes\",'Enrollment Form'!$AY985=\"\"),\"-\",IF(OR(AND('Enrollment Form'!$AY985=\"No\",ISERROR(FIND(\"HMO\",VLOOKUP('Enrollment Form'!G985,'Enrollment Form'!H$11:J$1000,3,FALSE),1))=FALSE,COUNTA('Enrollment Form'!$AZ985:$BC985)=4),AND('Enrollment Form'!$AY985=\"No\",ISERROR(FIND(\"HMO\",VLOOKUP('Enrollment Form'!G985,'Enrollment Form'!H$11:J$1000,3,FALSE),1))=FALSE,COUNTA('Enrollment Form'!$BT985:$BW985)=4)),\"Y\",\"N\"))","v":"-"},{"$f":"IF($B978=\"N\",\"\",IF('Enrollment Form'!$B985=\"Subscriber\",\"-\",IF(COUNTA('Enrollment Form'!$BL985,'Enrollment Form'!$BN985)=2,\"Y\",\"N\")))","v":""},{"$f":"IF($B978=\"N\",\"\",IF(OR('Enrollment Form'!$AX985=\"\",'Enrollment Form'!$AX985=\"No\"),\"-\",IF(AND('Enrollment Form'!$AX985=\"Yes\",COUNTA('Enrollment Form'!$CR985)=1),\"Y\",\"N\")))","v":""},{"$f":"IF(OR('Enrollment Form'!$CR985=\"\",'Enrollment Form'!$CR985=\"No\"),\"-\",IF(COUNTA('Enrollment Form'!$CT985:$CU985)=2,\"Y\",\"N\"))","v":"-"},{"$f":"IF($B978=\"N\",\"\",IF(COUNTIF('Enrollment Form'!$DG985:$DP985,\"Other\")=COUNTA('Enrollment Form'!$DK985,'Enrollment Form'!$DH985,'Enrollment Form'!$DN985,'Enrollment Form'!$DQ985),\"Y\",\"N\"))","v":""},{"$f":"IF($B978=\"N\",\"\",IF(OR('Enrollment Form'!B985<>\"Subscriber\",'Enrollment Form'!C985=\"ROC\",COUNTIF('Enrollment Form'!AV985:AW985,\"Yes\")>=1),\"-\",IF(AND('Enrollment Form'!C985=\"Enroll\",COUNTIF('Enrollment Form'!AV985:AW985,\"No\")=2,'Enrollment Form'!AX985=\"\"),\"N\",\"Y\")))","v":""},{"$f":"IF(OR(B978=\"N\",'Enrollment Form'!B985<>\"Subscriber\",'Enrollment Form'!C985=\"ROC\",'Enrollment Form'!O985<>\"Multiple of Salary\"),\"-\",IF(COUNTA('Enrollment Form'!T985:U985)<2,\"N\",\"Y\"))","v":"-"},{"$f":"IF(B978=\"N\",\"\",IF(OR('Enrollment Form'!C985=\"ROC\",'Enrollment Form'!B985<>\"Subscriber\",'Enrollment Form'!O985=\"Waive\",'Enrollment Form'!O985=\"\"),\"-\",IF('Enrollment Form'!P985=\"\",\"N\",\"Y\")))","v":""},{"$f":"IF($B978=\"N\",\"\",IF(AND('Enrollment Form'!$C985=\"ROC\",'Enrollment Form'!$DR985<>\"\"),\"Y\",IF(AND('Enrollment Form'!$C985=\"ROC\",'Enrollment Form'!$DR985=\"\"),\"N\",IF(AND('Enrollment Form'!$C985=\"Enroll\",'Enrollment Form'!$B985=\"Subscriber\",'Enrollment Form'!$CX985=\"No\",'Enrollment Form'!$DR985=\"\"),\"N\",IF(AND('Enrollment Form'!$C985=\"Enroll\",'Enrollment Form'!$B985=\"Subscriber\",'Enrollment Form'!$CX985=\"Yes\"),\"-\",\"Y\")))))","v":""},{"$f":"IF($B978=\"N\",\"\",IF(AND('Enrollment Form'!$C985=\"ROC\",'Enrollment Form'!$DS985<>\"\"),\"Y\",IF(AND('Enrollment Form'!$C985=\"ROC\",'Enrollment Form'!$DS985=\"\"),\"N\",IF(AND('Enrollment Form'!$C985=\"Enroll\",'Enrollment Form'!$B985=\"Subscriber\",'Enrollment Form'!$CX985=\"No\",'Enrollment Form'!$DS985=\"\"),\"N\",IF(AND('Enrollment Form'!$C985=\"Enroll\",'Enrollment Form'!$B985=\"Subscriber\",'Enrollment Form'!$CX985=\"Yes\"),\"-\",\"Y\")))))","v":""},{"$f":"IF('Enrollment Form'!AH985=\"\",\"\",IF(ISERROR(SEARCH(\".\",'Enrollment Form'!AH985,SEARCH(\"@\",'Enrollment Form'!AH985))),\"N\",\"Y\"))","v":""},{"$f":"IF(OR($B978=\"N\",'Enrollment Form'!$G985=\"\"),\"\",IF('Enrollment Form'!$B985<>\"Subscriber\",\"-\",IF(COUNTIF('Enrollment Form'!$AV985:$AW985,\"Yes\")=2,\"N\",\"Y\")))","v":""},{"$f":"IF(OR('Enrollment Form'!$CJ985=\"\",'Enrollment Form'!$CJ985=\"No\"),\"-\",IF(AND('Enrollment Form'!$CJ985=\"Yes\",'Enrollment Form'!$CK985=\"\"),\"N\",\"Y\"))","v":"-"},{"$f":"IF(OR('Enrollment Form'!$CL985=\"\",'Enrollment Form'!$CL985=\"No\"),\"-\",IF(AND('Enrollment Form'!$CL985=\"Yes\",'Enrollment Form'!$CM985=\"\"),\"N\",\"Y\"))","v":"-"},{"$f":"IF(OR('Enrollment Form'!$CN985=\"\",'Enrollment Form'!$CN985=\"No\"),\"-\",IF(AND('Enrollment Form'!$CN985=\"Yes\",'Enrollment Form'!$CO985=\"\"),\"N\",\"Y\"))","v":"-"},{"$f":"IF(OR('Enrollment Form'!$CN985=\"\",'Enrollment Form'!$CN985=\"No\"),\"-\",IF(AND('Enrollment Form'!$CN985=\"Yes\",'Enrollment Form'!$CP985=\"\"),\"N\",\"Y\"))","v":"-"},{"$f":"IF('Enrollment Form'!B985<>\"Subscriber\",\"-\",IF(AND('Enrollment Form'!B985=\"Subscriber\",'Enrollment Form'!C985=\"Enroll\",'Enrollment Form'!AA985=\"\"),\"N\",\"Y\"))","v":"-"},{"$f":"IF(OR('Enrollment Form'!B985=\"Subscriber\",'Enrollment Form'!B985=\"\"),\"-\",IF('Enrollment Form'!BP985=\"\",\"N\",\"Y\"))","v":"-"},{"$f":"IF('Enrollment Form'!B985<>\"Subscriber\",\"-\",IF(AND('Enrollment Form'!B985=\"Subscriber\",'Enrollment Form'!G985=\"\"),\"N\",\"Y\"))","v":"-"},{"$f":"IF('Enrollment Form'!A985=\"\",\"\",IF('Enrollment Form'!B985=\"Subscriber\",\"-\",IF(AND('Enrollment Form'!B985<>\"Subscriber\",'Enrollment Form'!G985='Enrollment Form'!H985),\"N\",\"Y\")))","v":""},0]
[986,{"$f":"IF('Enrollment Form'!$A986<>\"\",\"Y\",\"N\")","v":"N"},{"$f":"IF(AND('Enrollment Form'!$B986=\"\",'Enrollment Form'!$C986<>\"\"),\"N\",IF($B979=\"N\",\"\",\"Y\"))","v":""},{"$f":"IF(OR($B979=\"N\",'Enrollment Form'!G986=\"\"),\"\",IF('Enrollment Form'!$B986<>\"Subscriber\",\"\",IF('Enrollment Form'!$G986='Enrollment Form'!$H986,\"Y\",\"N\")))","v":""},{"$f":"IF($B979=\"N\",\"\",IF(AND(COUNTIFS('Enrollment Form'!$H$11:$H$1000,'Enrollment Form'!$H986,'Enrollment Form'!$B$11:$B$1000,'Enrollment Form'!$B986)>1,'Enrollment Form'!$H986<>\"\"),\"N\",\"Y\"))","v":""},{"$f":"IF($B979=\"N\",\"\",IF(LEN('Enrollment Form'!$Y986)=0,\"\",IF(LEN('Enrollment Form'!$Y986)<>5,\"N\",\"Y\")))","v":""},{"$f":"IF($B979=\"N\",\"\",IF(LEN('Enrollment Form'!$AD986=0),\"\",IF(LEN('Enrollment Form'!$AD986)<>5,\"N\",\"Y\")))","v":""},{"$f":"IF($B979=\"N\",\"\",IF(LEN('Enrollment Form'!$BS986=0),\"\",IF(LEN('Enrollment Form'!$BS986)<>5,\"N\",\"Y\")))","v":""},{"$f":"IF($B979=\"N\",\"\",IF(LEN('Enrollment Form'!$AE986)=0,\"\",IF(LEN('Enrollment Form'!$AE986)<>10,\"N\",\"Y\")))","v":""},{"$f":"IF($B979=\"N\",\"\",IF(LEN('Enrollment Form'!$AF986)=0,\"\",IF(LEN('Enrollment Form'!$AF986)<>10,\"N\",\"Y\")))","v":""},{"$f":"IF('Enrollment Form'!$O986<>\"Graded\",\"-\",IF(AND('Enrollment Form'!$O986=\"Graded\",'Enrollment Form'!$AR986<>\"\"),\"Y\",\"N\"))","v":"-"},{"$f":"IF($B979=\"N\",\"\",IF(OR('Enrollment Form'!$B986<>\"Subscriber\",'Enrollment Form'!$C986=\"ROC\"),\"-\",IF(AND('Enrollment Form'!$B986=\"Subscriber\",'Enrollment Form'!$C986=\"Enroll\",'Enrollment Form'!$AJ986<>\"\"),\"Y\",\"N\")))","v":""},{"$f":"IF($B979=\"N\",\"\",IF(OR('Enrollment Form'!$B986<>\"Subscriber\",'Enrollment Form'!$C986=\"ROC\"),\"-\",IF(AND('Enrollment Form'!$B986=\"Subscriber\",'Enrollment Form'!$C986=\"Enroll\",'Enrollment Form'!$AK986<>\"\"),\"Y\",\"N\")))","v":""},{"$f":"IF($B979=\"N\",\"\",IF(OR('Enrollment Form'!$B986<>\"Subscriber\",'Enrollment Form'!$C986=\"ROC\"),\"-\",IF(AND('Enrollment Form'!$B986=\"Subscriber\",'Enrollment Form'!$C986=\"Enroll\",'Enrollment Form'!$AL986<>\"\"),\"Y\",\"N\")))","v":""},{"$f":"IF($B979=\"N\",\"\",IF(OR('Enrollment Form'!$B986<>\"Subscriber\",'Enrollment Form'!$C986=\"ROC\"),\"-\",IF(AND('Enrollment Form'!$B986=\"Subscriber\",'Enrollment Form'!$C986=\"Enroll\",'Enrollment Form'!$AP986<>\"\"),\"Y\",\"N\")))","v":""},{"$f":"IF($B979=\"N\",\"\",IF(OR('Enrollment Form'!$B986<>\"Subscriber\",'Enrollment Form'!$C986=\"ROC\"),\"-\",IF(AND('Enrollment Form'!$B986=\"Subscriber\",'Enrollment Form'!$C986=\"Enroll\",'Enrollment Form'!$AQ986<>\"\"),\"Y\",\"N\")))","v":""},{"$f":"IF($B979=\"N\",\"\",IF(OR('Enrollment Form'!$B986<>\"Subscriber\",'Enrollment Form'!$C986=\"ROC\"),\"-\",IF(AND('Enrollment Form'!$B986=\"Subscriber\",'Enrollment Form'!$C986=\"Enroll\",'Enrollment Form'!$AS986<>\"\"),\"Y\",\"N\")))","v":""},{"$f":"IF($B979=\"N\",\"\",IF($Q979=\"-\",\"-\",IF(AND($Q979=\"Y\",'Enrollment Form'!$AS986=\"No\"),\"-\",IF(AND($Q979=\"Y\",'Enrollment Form'!$AS986=\"Yes\",'Enrollment Form'!$AT986<>\"\"),\"Y\",\"N\"))))","v":""},{"$f":"IF($B979=\"N\",\"\",IF(OR('Enrollment Form'!$B986<>\"Subscriber\",'Enrollment Form'!$C986=\"ROC\"),\"-\",IF(AND('Enrollment Form'!$B986=\"Subscriber\",'Enrollment Form'!$C986=\"Enroll\",'Enrollment Form'!$CV986<>\"\"),\"Y\",\"N\")))","v":""},{"$f":"IF($B979=\"N\",\"\",IF($S979=\"-\",\"-\",IF(AND($S979=\"Y\",'Enrollment Form'!$CV986=\"No\"),\"-\",IF(AND($S979=\"Y\",'Enrollment Form'!$CV986=\"Yes\",'Enrollment Form'!$CW986<>\"\"),\"Y\",\"N\"))))","v":""},{"$f":"IF(OR('Enrollment Form'!$AY986=\"Yes\",'Enrollment Form'!$AY986=\"\"),\"-\",IF(OR(AND('Enrollment Form'!$AY986=\"No\",ISERROR(FIND(\"HMO\",VLOOKUP('Enrollment Form'!G986,'Enrollment Form'!H$11:J$1000,3,FALSE),1))=FALSE,COUNTA('Enrollment Form'!$AZ986:$BC986)=4),AND('Enrollment Form'!$AY986=\"No\",ISERROR(FIND(\"HMO\",VLOOKUP('Enrollment Form'!G986,'Enrollment Form'!H$11:J$1000,3,FALSE),1))=FALSE,COUNTA('Enrollment Form'!$BT986:$BW986)=4)),\"Y\",\"N\"))","v":"-"},{"$f":"IF($B979=\"N\",\"\",IF('Enrollment Form'!$B986=\"Subscriber\",\"-\",IF(COUNTA('Enrollment Form'!$BL986,'Enrollment Form'!$BN986)=2,\"Y\",\"N\")))","v":""},{"$f":"IF($B979=\"N\",\"\",IF(OR('Enrollment Form'!$AX986=\"\",'Enrollment Form'!$AX986=\"No\"),\"-\",IF(AND('Enrollment Form'!$AX986=\"Yes\",COUNTA('Enrollment Form'!$CR986)=1),\"Y\",\"N\")))","v":""},{"$f":"IF(OR('Enrollment Form'!$CR986=\"\",'Enrollment Form'!$CR986=\"No\"),\"-\",IF(COUNTA('Enrollment Form'!$CT986:$CU986)=2,\"Y\",\"N\"))","v":"-"},{"$f":"IF($B979=\"N\",\"\",IF(COUNTIF('Enrollment Form'!$DG986:$DP986,\"Other\")=COUNTA('Enrollment Form'!$DK986,'Enrollment Form'!$DH986,'Enrollment Form'!$DN986,'Enrollment Form'!$DQ986),\"Y\",\"N\"))","v":""},{"$f":"IF($B979=\"N\",\"\",IF(OR('Enrollment Form'!B986<>\"Subscriber\",'Enrollment Form'!C986=\"ROC\",COUNTIF('Enrollment Form'!AV986:AW986,\"Yes\")>=1),\"-\",IF(AND('Enrollment Form'!C986=\"Enroll\",COUNTIF('Enrollment Form'!AV986:AW986,\"No\")=2,'Enrollment Form'!AX986=\"\"),\"N\",\"Y\")))","v":""},{"$f":"IF(OR(B979=\"N\",'Enrollment Form'!B986<>\"Subscriber\",'Enrollment Form'!C986=\"ROC\",'Enrollment Form'!O986<>\"Multiple of Salary\"),\"-\",IF(COUNTA('Enrollment Form'!T986:U986)<2,\"N\",\"Y\"))","v":"-"},{"$f":"IF(B979=\"N\",\"\",IF(OR('Enrollment Form'!C986=\"ROC\",'Enrollment Form'!B986<>\"Subscriber\",'Enrollment Form'!O986=\"Waive\",'Enrollment Form'!O986=\"\"),\"-\",IF('Enrollment Form'!P986=\"\",\"N\",\"Y\")))","v":""},{"$f":"IF($B979=\"N\",\"\",IF(AND('Enrollment Form'!$C986=\"ROC\",'Enrollment Form'!$DR986<>\"\"),\"Y\",IF(AND('Enrollment Form'!$C986=\"ROC\",'Enrollment Form'!$DR986=\"\"),\"N\",IF(AND('Enrollment Form'!$C986=\"Enroll\",'Enrollment Form'!$B986=\"Subscriber\",'Enrollment Form'!$CX986=\"No\",'Enrollment Form'!$DR986=\"\"),\"N\",IF(AND('Enrollment Form'!$C986=\"Enroll\",'Enrollment Form'!$B986=\"Subscriber\",'Enrollment Form'!$CX986=\"Yes\"),\"-\",\"Y\")))))","v":""},{"$f":"IF($B979=\"N\",\"\",IF(AND('Enrollment Form'!$C986=\"ROC\",'Enrollment Form'!$DS986<>\"\"),\"Y\",IF(AND('Enrollment Form'!$C986=\"ROC\",'Enrollment Form'!$DS986=\"\"),\"N\",IF(AND('Enrollment Form'!$C986=\"Enroll\",'Enrollment Form'!$B986=\"Subscriber\",'Enrollment Form'!$CX986=\"No\",'Enrollment Form'!$DS986=\"\"),\"N\",IF(AND('Enrollment Form'!$C986=\"Enroll\",'Enrollment Form'!$B986=\"Subscriber\",'Enrollment Form'!$CX986=\"Yes\"),\"-\",\"Y\")))))","v":""},{"$f":"IF('Enrollment Form'!AH986=\"\",\"\",IF(ISERROR(SEARCH(\".\",'Enrollment Form'!AH986,SEARCH(\"@\",'Enrollment Form'!AH986))),\"N\",\"Y\"))","v":""},{"$f":"IF(OR($B979=\"N\",'Enrollment Form'!$G986=\"\"),\"\",IF('Enrollment Form'!$B986<>\"Subscriber\",\"-\",IF(COUNTIF('Enrollment Form'!$AV986:$AW986,\"Yes\")=2,\"N\",\"Y\")))","v":""},{"$f":"IF(OR('Enrollment Form'!$CJ986=\"\",'Enrollment Form'!$CJ986=\"No\"),\"-\",IF(AND('Enrollment Form'!$CJ986=\"Yes\",'Enrollment Form'!$CK986=\"\"),\"N\",\"Y\"))","v":"-"},{"$f":"IF(OR('Enrollment Form'!$CL986=\"\",'Enrollment Form'!$CL986=\"No\"),\"-\",IF(AND('Enrollment Form'!$CL986=\"Yes\",'Enrollment Form'!$CM986=\"\"),\"N\",\"Y\"))","v":"-"},{"$f":"IF(OR('Enrollment Form'!$CN986=\"\",'Enrollment Form'!$CN986=\"No\"),\"-\",IF(AND('Enrollment Form'!$CN986=\"Yes\",'Enrollment Form'!$CO986=\"\"),\"N\",\"Y\"))","v":"-"},{"$f":"IF(OR('Enrollment Form'!$CN986=\"\",'Enrollment Form'!$CN986=\"No\"),\"-\",IF(AND('Enrollment Form'!$CN986=\"Yes\",'Enrollment Form'!$CP986=\"\"),\"N\",\"Y\"))","v":"-"},{"$f":"IF('Enrollment Form'!B986<>\"Subscriber\",\"-\",IF(AND('Enrollment Form'!B986=\"Subscriber\",'Enrollment Form'!C986=\"Enroll\",'Enrollment Form'!AA986=\"\"),\"N\",\"Y\"))","v":"-"},{"$f":"IF(OR('Enrollment Form'!B986=\"Subscriber\",'Enrollment Form'!B986=\"\"),\"-\",IF('Enrollment Form'!BP986=\"\",\"N\",\"Y\"))","v":"-"},{"$f":"IF('Enrollment Form'!B986<>\"Subscriber\",\"-\",IF(AND('Enrollment Form'!B986=\"Subscriber\",'Enrollment Form'!G986=\"\"),\"N\",\"Y\"))","v":"-"},{"$f":"IF('Enrollment Form'!A986=\"\",\"\",IF('Enrollment Form'!B986=\"Subscriber\",\"-\",IF(AND('Enrollment Form'!B986<>\"Subscriber\",'Enrollment Form'!G986='Enrollment Form'!H986),\"N\",\"Y\")))","v":""},0]
[987,{"$f":"IF('Enrollment Form'!$A987<>\"\",\"Y\",\"N\")","v":"N"},{"$f":"IF(AND('Enrollment Form'!$B987=\"\",'Enrollment Form'!$C987<>\"\"),\"N\",IF($B980=\"N\",\"\",\"Y\"))","v":""},{"$f":"IF(OR($B980=\"N\",'Enrollment Form'!G987=\"\"),\"\",IF('Enrollment Form'!$B987<>\"Subscriber\",\"\",IF('Enrollment Form'!$G987='Enrollment Form'!$H987,\"Y\",\"N\")))","v":""},{"$f":"IF($B980=\"N\",\"\",IF(AND(COUNTIFS('Enrollment Form'!$H$11:$H$1000,'Enrollment Form'!$H987,'Enrollment Form'!$B$11:$B$1000,'Enrollment Form'!$B987)>1,'Enrollment Form'!$H987<>\"\"),\"N\",\"Y\"))","v":""},{"$f":"IF($B980=\"N\",\"\",IF(LEN('Enrollment Form'!$Y987)=0,\"\",IF(LEN('Enrollment Form'!$Y987)<>5,\"N\",\"Y\")))","v":""},{"$f":"IF($B980=\"N\",\"\",IF(LEN('Enrollment Form'!$AD987=0),\"\",IF(LEN('Enrollment Form'!$AD987)<>5,\"N\",\"Y\")))","v":""},{"$f":"IF($B980=\"N\",\"\",IF(LEN('Enrollment Form'!$BS987=0),\"\",IF(LEN('Enrollment Form'!$BS987)<>5,\"N\",\"Y\")))","v":""},{"$f":"IF($B980=\"N\",\"\",IF(LEN('Enrollment Form'!$AE987)=0,\"\",IF(LEN('Enrollment Form'!$AE987)<>10,\"N\",\"Y\")))","v":""},{"$f":"IF($B980=\"N\",\"\",IF(LEN('Enrollment Form'!$AF987)=0,\"\",IF(LEN('Enrollment Form'!$AF987)<>10,\"N\",\"Y\")))","v":""},{"$f":"IF('Enrollment Form'!$O987<>\"Graded\",\"-\",IF(AND('Enrollment Form'!$O987=\"Graded\",'Enrollment Form'!$AR987<>\"\"),\"Y\",\"N\"))","v":"-"},{"$f":"IF($B980=\"N\",\"\",IF(OR('Enrollment Form'!$B987<>\"Subscriber\",'Enrollment Form'!$C987=\"ROC\"),\"-\",IF(AND('Enrollment Form'!$B987=\"Subscriber\",'Enrollment Form'!$C987=\"Enroll\",'Enrollment Form'!$AJ987<>\"\"),\"Y\",\"N\")))","v":""},{"$f":"IF($B980=\"N\",\"\",IF(OR('Enrollment Form'!$B987<>\"Subscriber\",'Enrollment Form'!$C987=\"ROC\"),\"-\",IF(AND('Enrollment Form'!$B987=\"Subscriber\",'Enrollment Form'!$C987=\"Enroll\",'Enrollment Form'!$AK987<>\"\"),\"Y\",\"N\")))","v":""},{"$f":"IF($B980=\"N\",\"\",IF(OR('Enrollment Form'!$B987<>\"Subscriber\",'Enrollment Form'!$C987=\"ROC\"),\"-\",IF(AND('Enrollment Form'!$B987=\"Subscriber\",'Enrollment Form'!$C987=\"Enroll\",'Enrollment Form'!$AL987<>\"\"),\"Y\",\"N\")))","v":""},{"$f":"IF($B980=\"N\",\"\",IF(OR('Enrollment Form'!$B987<>\"Subscriber\",'Enrollment Form'!$C987=\"ROC\"),\"-\",IF(AND('Enrollment Form'!$B987=\"Subscriber\",'Enrollment Form'!$C987=\"Enroll\",'Enrollment Form'!$AP987<>\"\"),\"Y\",\"N\")))","v":""},{"$f":"IF($B980=\"N\",\"\",IF(OR('Enrollment Form'!$B987<>\"Subscriber\",'Enrollment Form'!$C987=\"ROC\"),\"-\",IF(AND('Enrollment Form'!$B987=\"Subscriber\",'Enrollment Form'!$C987=\"Enroll\",'Enrollment Form'!$AQ987<>\"\"),\"Y\",\"N\")))","v":""},{"$f":"IF($B980=\"N\",\"\",IF(OR('Enrollment Form'!$B987<>\"Subscriber\",'Enrollment Form'!$C987=\"ROC\"),\"-\",IF(AND('Enrollment Form'!$B987=\"Subscriber\",'Enrollment Form'!$C987=\"Enroll\",'Enrollment Form'!$AS987<>\"\"),\"Y\",\"N\")))","v":""},{"$f":"IF($B980=\"N\",\"\",IF($Q980=\"-\",\"-\",IF(AND($Q980=\"Y\",'Enrollment Form'!$AS987=\"No\"),\"-\",IF(AND($Q980=\"Y\",'Enrollment Form'!$AS987=\"Yes\",'Enrollment Form'!$AT987<>\"\"),\"Y\",\"N\"))))","v":""},{"$f":"IF($B980=\"N\",\"\",IF(OR('Enrollment Form'!$B987<>\"Subscriber\",'Enrollment Form'!$C987=\"ROC\"),\"-\",IF(AND('Enrollment Form'!$B987=\"Subscriber\",'Enrollment Form'!$C987=\"Enroll\",'Enrollment Form'!$CV987<>\"\"),\"Y\",\"N\")))","v":""},{"$f":"IF($B980=\"N\",\"\",IF($S980=\"-\",\"-\",IF(AND($S980=\"Y\",'Enrollment Form'!$CV987=\"No\"),\"-\",IF(AND($S980=\"Y\",'Enrollment Form'!$CV987=\"Yes\",'Enrollment Form'!$CW987<>\"\"),\"Y\",\"N\"))))","v":""},{"$f":"IF(OR('Enrollment Form'!$AY987=\"Yes\",'Enrollment Form'!$AY987=\"\"),\"-\",IF(OR(AND('Enrollment Form'!$AY987=\"No\",ISERROR(FIND(\"HMO\",VLOOKUP('Enrollment Form'!G987,'Enrollment Form'!H$11:J$1000,3,FALSE),1))=FALSE,COUNTA('Enrollment Form'!$AZ987:$BC987)=4),AND('Enrollment Form'!$AY987=\"No\",ISERROR(FIND(\"HMO\",VLOOKUP('Enrollment Form'!G987,'Enrollment Form'!H$11:J$1000,3,FALSE),1))=FALSE,COUNTA('Enrollment Form'!$BT987:$BW987)=4)),\"Y\",\"N\"))","v":"-"},{"$f":"IF($B980=\"N\",\"\",IF('Enrollment Form'!$B987=\"Subscriber\",\"-\",IF(COUNTA('Enrollment Form'!$BL987,'Enrollment Form'!$BN987)=2,\"Y\",\"N\")))","v":""},{"$f":"IF($B980=\"N\",\"\",IF(OR('Enrollment Form'!$AX987=\"\",'Enrollment Form'!$AX987=\"No\"),\"-\",IF(AND('Enrollment Form'!$AX987=\"Yes\",COUNTA('Enrollment Form'!$CR987)=1),\"Y\",\"N\")))","v":""},{"$f":"IF(OR('Enrollment Form'!$CR987=\"\",'Enrollment Form'!$CR987=\"No\"),\"-\",IF(COUNTA('Enrollment Form'!$CT987:$CU987)=2,\"Y\",\"N\"))","v":"-"},{"$f":"IF($B980=\"N\",\"\",IF(COUNTIF('Enrollment Form'!$DG987:$DP987,\"Other\")=COUNTA('Enrollment Form'!$DK987,'Enrollment Form'!$DH987,'Enrollment Form'!$DN987,'Enrollment Form'!$DQ987),\"Y\",\"N\"))","v":""},{"$f":"IF($B980=\"N\",\"\",IF(OR('Enrollment Form'!B987<>\"Subscriber\",'Enrollment Form'!C987=\"ROC\",COUNTIF('Enrollment Form'!AV987:AW987,\"Yes\")>=1),\"-\",IF(AND('Enrollment Form'!C987=\"Enroll\",COUNTIF('Enrollment Form'!AV987:AW987,\"No\")=2,'Enrollment Form'!AX987=\"\"),\"N\",\"Y\")))","v":""},{"$f":"IF(OR(B980=\"N\",'Enrollment Form'!B987<>\"Subscriber\",'Enrollment Form'!C987=\"ROC\",'Enrollment Form'!O987<>\"Multiple of Salary\"),\"-\",IF(COUNTA('Enrollment Form'!T987:U987)<2,\"N\",\"Y\"))","v":"-"},{"$f":"IF(B980=\"N\",\"\",IF(OR('Enrollment Form'!C987=\"ROC\",'Enrollment Form'!B987<>\"Subscriber\",'Enrollment Form'!O987=\"Waive\",'Enrollment Form'!O987=\"\"),\"-\",IF('Enrollment Form'!P987=\"\",\"N\",\"Y\")))","v":""},{"$f":"IF($B980=\"N\",\"\",IF(AND('Enrollment Form'!$C987=\"ROC\",'Enrollment Form'!$DR987<>\"\"),\"Y\",IF(AND('Enrollment Form'!$C987=\"ROC\",'Enrollment Form'!$DR987=\"\"),\"N\",IF(AND('Enrollment Form'!$C987=\"Enroll\",'Enrollment Form'!$B987=\"Subscriber\",'Enrollment Form'!$CX987=\"No\",'Enrollment Form'!$DR987=\"\"),\"N\",IF(AND('Enrollment Form'!$C987=\"Enroll\",'Enrollment Form'!$B987=\"Subscriber\",'Enrollment Form'!$CX987=\"Yes\"),\"-\",\"Y\")))))","v":""},{"$f":"IF($B980=\"N\",\"\",IF(AND('Enrollment Form'!$C987=\"ROC\",'Enrollment Form'!$DS987<>\"\"),\"Y\",IF(AND('Enrollment Form'!$C987=\"ROC\",'Enrollment Form'!$DS987=\"\"),\"N\",IF(AND('Enrollment Form'!$C987=\"Enroll\",'Enrollment Form'!$B987=\"Subscriber\",'Enrollment Form'!$CX987=\"No\",'Enrollment Form'!$DS987=\"\"),\"N\",IF(AND('Enrollment Form'!$C987=\"Enroll\",'Enrollment Form'!$B987=\"Subscriber\",'Enrollment Form'!$CX987=\"Yes\"),\"-\",\"Y\")))))","v":""},{"$f":"IF('Enrollment Form'!AH987=\"\",\"\",IF(ISERROR(SEARCH(\".\",'Enrollment Form'!AH987,SEARCH(\"@\",'Enrollment Form'!AH987))),\"N\",\"Y\"))","v":""},{"$f":"IF(OR($B980=\"N\",'Enrollment Form'!$G987=\"\"),\"\",IF('Enrollment Form'!$B987<>\"Subscriber\",\"-\",IF(COUNTIF('Enrollment Form'!$AV987:$AW987,\"Yes\")=2,\"N\",\"Y\")))","v":""},{"$f":"IF(OR('Enrollment Form'!$CJ987=\"\",'Enrollment Form'!$CJ987=\"No\"),\"-\",IF(AND('Enrollment Form'!$CJ987=\"Yes\",'Enrollment Form'!$CK987=\"\"),\"N\",\"Y\"))","v":"-"},{"$f":"IF(OR('Enrollment Form'!$CL987=\"\",'Enrollment Form'!$CL987=\"No\"),\"-\",IF(AND('Enrollment Form'!$CL987=\"Yes\",'Enrollment Form'!$CM987=\"\"),\"N\",\"Y\"))","v":"-"},{"$f":"IF(OR('Enrollment Form'!$CN987=\"\",'Enrollment Form'!$CN987=\"No\"),\"-\",IF(AND('Enrollment Form'!$CN987=\"Yes\",'Enrollment Form'!$CO987=\"\"),\"N\",\"Y\"))","v":"-"},{"$f":"IF(OR('Enrollment Form'!$CN987=\"\",'Enrollment Form'!$CN987=\"No\"),\"-\",IF(AND('Enrollment Form'!$CN987=\"Yes\",'Enrollment Form'!$CP987=\"\"),\"N\",\"Y\"))","v":"-"},{"$f":"IF('Enrollment Form'!B987<>\"Subscriber\",\"-\",IF(AND('Enrollment Form'!B987=\"Subscriber\",'Enrollment Form'!C987=\"Enroll\",'Enrollment Form'!AA987=\"\"),\"N\",\"Y\"))","v":"-"},{"$f":"IF(OR('Enrollment Form'!B987=\"Subscriber\",'Enrollment Form'!B987=\"\"),\"-\",IF('Enrollment Form'!BP987=\"\",\"N\",\"Y\"))","v":"-"},{"$f":"IF('Enrollment Form'!B987<>\"Subscriber\",\"-\",IF(AND('Enrollment Form'!B987=\"Subscriber\",'Enrollment Form'!G987=\"\"),\"N\",\"Y\"))","v":"-"},{"$f":"IF('Enrollment Form'!A987=\"\",\"\",IF('Enrollment Form'!B987=\"Subscriber\",\"-\",IF(AND('Enrollment Form'!B987<>\"Subscriber\",'Enrollment Form'!G987='Enrollment Form'!H987),\"N\",\"Y\")))","v":""},0]
[988,{"$f":"IF('Enrollment Form'!$A988<>\"\",\"Y\",\"N\")","v":"N"},{"$f":"IF(AND('Enrollment Form'!$B988=\"\",'Enrollment Form'!$C988<>\"\"),\"N\",IF($B981=\"N\",\"\",\"Y\"))","v":""},{"$f":"IF(OR($B981=\"N\",'Enrollment Form'!G988=\"\"),\"\",IF('Enrollment Form'!$B988<>\"Subscriber\",\"\",IF('Enrollment Form'!$G988='Enrollment Form'!$H988,\"Y\",\"N\")))","v":""},{"$f":"IF($B981=\"N\",\"\",IF(AND(COUNTIFS('Enrollment Form'!$H$11:$H$1000,'Enrollment Form'!$H988,'Enrollment Form'!$B$11:$B$1000,'Enrollment Form'!$B988)>1,'Enrollment Form'!$H988<>\"\"),\"N\",\"Y\"))","v":""},{"$f":"IF($B981=\"N\",\"\",IF(LEN('Enrollment Form'!$Y988)=0,\"\",IF(LEN('Enrollment Form'!$Y988)<>5,\"N\",\"Y\")))","v":""},{"$f":"IF($B981=\"N\",\"\",IF(LEN('Enrollment Form'!$AD988=0),\"\",IF(LEN('Enrollment Form'!$AD988)<>5,\"N\",\"Y\")))","v":""},{"$f":"IF($B981=\"N\",\"\",IF(LEN('Enrollment Form'!$BS988=0),\"\",IF(LEN('Enrollment Form'!$BS988)<>5,\"N\",\"Y\")))","v":""},{"$f":"IF($B981=\"N\",\"\",IF(LEN('Enrollment Form'!$AE988)=0,\"\",IF(LEN('Enrollment Form'!$AE988)<>10,\"N\",\"Y\")))","v":""},{"$f":"IF($B981=\"N\",\"\",IF(LEN('Enrollment Form'!$AF988)=0,\"\",IF(LEN('Enrollment Form'!$AF988)<>10,\"N\",\"Y\")))","v":""},{"$f":"IF('Enrollment Form'!$O988<>\"Graded\",\"-\",IF(AND('Enrollment Form'!$O988=\"Graded\",'Enrollment Form'!$AR988<>\"\"),\"Y\",\"N\"))","v":"-"},{"$f":"IF($B981=\"N\",\"\",IF(OR('Enrollment Form'!$B988<>\"Subscriber\",'Enrollment Form'!$C988=\"ROC\"),\"-\",IF(AND('Enrollment Form'!$B988=\"Subscriber\",'Enrollment Form'!$C988=\"Enroll\",'Enrollment Form'!$AJ988<>\"\"),\"Y\",\"N\")))","v":""},{"$f":"IF($B981=\"N\",\"\",IF(OR('Enrollment Form'!$B988<>\"Subscriber\",'Enrollment Form'!$C988=\"ROC\"),\"-\",IF(AND('Enrollment Form'!$B988=\"Subscriber\",'Enrollment Form'!$C988=\"Enroll\",'Enrollment Form'!$AK988<>\"\"),\"Y\",\"N\")))","v":""},{"$f":"IF($B981=\"N\",\"\",IF(OR('Enrollment Form'!$B988<>\"Subscriber\",'Enrollment Form'!$C988=\"ROC\"),\"-\",IF(AND('Enrollment Form'!$B988=\"Subscriber\",'Enrollment Form'!$C988=\"Enroll\",'Enrollment Form'!$AL988<>\"\"),\"Y\",\"N\")))","v":""},{"$f":"IF($B981=\"N\",\"\",IF(OR('Enrollment Form'!$B988<>\"Subscriber\",'Enrollment Form'!$C988=\"ROC\"),\"-\",IF(AND('Enrollment Form'!$B988=\"Subscriber\",'Enrollment Form'!$C988=\"Enroll\",'Enrollment Form'!$AP988<>\"\"),\"Y\",\"N\")))","v":""},{"$f":"IF($B981=\"N\",\"\",IF(OR('Enrollment Form'!$B988<>\"Subscriber\",'Enrollment Form'!$C988=\"ROC\"),\"-\",IF(AND('Enrollment Form'!$B988=\"Subscriber\",'Enrollment Form'!$C988=\"Enroll\",'Enrollment Form'!$AQ988<>\"\"),\"Y\",\"N\")))","v":""},{"$f":"IF($B981=\"N\",\"\",IF(OR('Enrollment Form'!$B988<>\"Subscriber\",'Enrollment Form'!$C988=\"ROC\"),\"-\",IF(AND('Enrollment Form'!$B988=\"Subscriber\",'Enrollment Form'!$C988=\"Enroll\",'Enrollment Form'!$AS988<>\"\"),\"Y\",\"N\")))","v":""},{"$f":"IF($B981=\"N\",\"\",IF($Q981=\"-\",\"-\",IF(AND($Q981=\"Y\",'Enrollment Form'!$AS988=\"No\"),\"-\",IF(AND($Q981=\"Y\",'Enrollment Form'!$AS988=\"Yes\",'Enrollment Form'!$AT988<>\"\"),\"Y\",\"N\"))))","v":""},{"$f":"IF($B981=\"N\",\"\",IF(OR('Enrollment Form'!$B988<>\"Subscriber\",'Enrollment Form'!$C988=\"ROC\"),\"-\",IF(AND('Enrollment Form'!$B988=\"Subscriber\",'Enrollment Form'!$C988=\"Enroll\",'Enrollment Form'!$CV988<>\"\"),\"Y\",\"N\")))","v":""},{"$f":"IF($B981=\"N\",\"\",IF($S981=\"-\",\"-\",IF(AND($S981=\"Y\",'Enrollment Form'!$CV988=\"No\"),\"-\",IF(AND($S981=\"Y\",'Enrollment Form'!$CV988=\"Yes\",'Enrollment Form'!$CW988<>\"\"),\"Y\",\"N\"))))","v":""},{"$f":"IF(OR('Enrollment Form'!$AY988=\"Yes\",'Enrollment Form'!$AY988=\"\"),\"-\",IF(OR(AND('Enrollment Form'!$AY988=\"No\",ISERROR(FIND(\"HMO\",VLOOKUP('Enrollment Form'!G988,'Enrollment Form'!H$11:J$1000,3,FALSE),1))=FALSE,COUNTA('Enrollment Form'!$AZ988:$BC988)=4),AND('Enrollment Form'!$AY988=\"No\",ISERROR(FIND(\"HMO\",VLOOKUP('Enrollment Form'!G988,'Enrollment Form'!H$11:J$1000,3,FALSE),1))=FALSE,COUNTA('Enrollment Form'!$BT988:$BW988)=4)),\"Y\",\"N\"))","v":"-"},{"$f":"IF($B981=\"N\",\"\",IF('Enrollment Form'!$B988=\"Subscriber\",\"-\",IF(COUNTA('Enrollment Form'!$BL988,'Enrollment Form'!$BN988)=2,\"Y\",\"N\")))","v":""},{"$f":"IF($B981=\"N\",\"\",IF(OR('Enrollment Form'!$AX988=\"\",'Enrollment Form'!$AX988=\"No\"),\"-\",IF(AND('Enrollment Form'!$AX988=\"Yes\",COUNTA('Enrollment Form'!$CR988)=1),\"Y\",\"N\")))","v":""},{"$f":"IF(OR('Enrollment Form'!$CR988=\"\",'Enrollment Form'!$CR988=\"No\"),\"-\",IF(COUNTA('Enrollment Form'!$CT988:$CU988)=2,\"Y\",\"N\"))","v":"-"},{"$f":"IF($B981=\"N\",\"\",IF(COUNTIF('Enrollment Form'!$DG988:$DP988,\"Other\")=COUNTA('Enrollment Form'!$DK988,'Enrollment Form'!$DH988,'Enrollment Form'!$DN988,'Enrollment Form'!$DQ988),\"Y\",\"N\"))","v":""},{"$f":"IF($B981=\"N\",\"\",IF(OR('Enrollment Form'!B988<>\"Subscriber\",'Enrollment Form'!C988=\"ROC\",COUNTIF('Enrollment Form'!AV988:AW988,\"Yes\")>=1),\"-\",IF(AND('Enrollment Form'!C988=\"Enroll\",COUNTIF('Enrollment Form'!AV988:AW988,\"No\")=2,'Enrollment Form'!AX988=\"\"),\"N\",\"Y\")))","v":""},{"$f":"IF(OR(B981=\"N\",'Enrollment Form'!B988<>\"Subscriber\",'Enrollment Form'!C988=\"ROC\",'Enrollment Form'!O988<>\"Multiple of Salary\"),\"-\",IF(COUNTA('Enrollment Form'!T988:U988)<2,\"N\",\"Y\"))","v":"-"},{"$f":"IF(B981=\"N\",\"\",IF(OR('Enrollment Form'!C988=\"ROC\",'Enrollment Form'!B988<>\"Subscriber\",'Enrollment Form'!O988=\"Waive\",'Enrollment Form'!O988=\"\"),\"-\",IF('Enrollment Form'!P988=\"\",\"N\",\"Y\")))","v":""},{"$f":"IF($B981=\"N\",\"\",IF(AND('Enrollment Form'!$C988=\"ROC\",'Enrollment Form'!$DR988<>\"\"),\"Y\",IF(AND('Enrollment Form'!$C988=\"ROC\",'Enrollment Form'!$DR988=\"\"),\"N\",IF(AND('Enrollment Form'!$C988=\"Enroll\",'Enrollment Form'!$B988=\"Subscriber\",'Enrollment Form'!$CX988=\"No\",'Enrollment Form'!$DR988=\"\"),\"N\",IF(AND('Enrollment Form'!$C988=\"Enroll\",'Enrollment Form'!$B988=\"Subscriber\",'Enrollment Form'!$CX988=\"Yes\"),\"-\",\"Y\")))))","v":""},{"$f":"IF($B981=\"N\",\"\",IF(AND('Enrollment Form'!$C988=\"ROC\",'Enrollment Form'!$DS988<>\"\"),\"Y\",IF(AND('Enrollment Form'!$C988=\"ROC\",'Enrollment Form'!$DS988=\"\"),\"N\",IF(AND('Enrollment Form'!$C988=\"Enroll\",'Enrollment Form'!$B988=\"Subscriber\",'Enrollment Form'!$CX988=\"No\",'Enrollment Form'!$DS988=\"\"),\"N\",IF(AND('Enrollment Form'!$C988=\"Enroll\",'Enrollment Form'!$B988=\"Subscriber\",'Enrollment Form'!$CX988=\"Yes\"),\"-\",\"Y\")))))","v":""},{"$f":"IF('Enrollment Form'!AH988=\"\",\"\",IF(ISERROR(SEARCH(\".\",'Enrollment Form'!AH988,SEARCH(\"@\",'Enrollment Form'!AH988))),\"N\",\"Y\"))","v":""},{"$f":"IF(OR($B981=\"N\",'Enrollment Form'!$G988=\"\"),\"\",IF('Enrollment Form'!$B988<>\"Subscriber\",\"-\",IF(COUNTIF('Enrollment Form'!$AV988:$AW988,\"Yes\")=2,\"N\",\"Y\")))","v":""},{"$f":"IF(OR('Enrollment Form'!$CJ988=\"\",'Enrollment Form'!$CJ988=\"No\"),\"-\",IF(AND('Enrollment Form'!$CJ988=\"Yes\",'Enrollment Form'!$CK988=\"\"),\"N\",\"Y\"))","v":"-"},{"$f":"IF(OR('Enrollment Form'!$CL988=\"\",'Enrollment Form'!$CL988=\"No\"),\"-\",IF(AND('Enrollment Form'!$CL988=\"Yes\",'Enrollment Form'!$CM988=\"\"),\"N\",\"Y\"))","v":"-"},{"$f":"IF(OR('Enrollment Form'!$CN988=\"\",'Enrollment Form'!$CN988=\"No\"),\"-\",IF(AND('Enrollment Form'!$CN988=\"Yes\",'Enrollment Form'!$CO988=\"\"),\"N\",\"Y\"))","v":"-"},{"$f":"IF(OR('Enrollment Form'!$CN988=\"\",'Enrollment Form'!$CN988=\"No\"),\"-\",IF(AND('Enrollment Form'!$CN988=\"Yes\",'Enrollment Form'!$CP988=\"\"),\"N\",\"Y\"))","v":"-"},{"$f":"IF('Enrollment Form'!B988<>\"Subscriber\",\"-\",IF(AND('Enrollment Form'!B988=\"Subscriber\",'Enrollment Form'!C988=\"Enroll\",'Enrollment Form'!AA988=\"\"),\"N\",\"Y\"))","v":"-"},{"$f":"IF(OR('Enrollment Form'!B988=\"Subscriber\",'Enrollment Form'!B988=\"\"),\"-\",IF('Enrollment Form'!BP988=\"\",\"N\",\"Y\"))","v":"-"},{"$f":"IF('Enrollment Form'!B988<>\"Subscriber\",\"-\",IF(AND('Enrollment Form'!B988=\"Subscriber\",'Enrollment Form'!G988=\"\"),\"N\",\"Y\"))","v":"-"},{"$f":"IF('Enrollment Form'!A988=\"\",\"\",IF('Enrollment Form'!B988=\"Subscriber\",\"-\",IF(AND('Enrollment Form'!B988<>\"Subscriber\",'Enrollment Form'!G988='Enrollment Form'!H988),\"N\",\"Y\")))","v":""},0]
[989,{"$f":"IF('Enrollment Form'!$A989<>\"\",\"Y\",\"N\")","v":"N"},{"$f":"IF(AND('Enrollment Form'!$B989=\"\",'Enrollment Form'!$C989<>\"\"),\"N\",IF($B982=\"N\",\"\",\"Y\"))","v":""},{"$f":"IF(OR($B982=\"N\",'Enrollment Form'!G989=\"\"),\"\",IF('Enrollment Form'!$B989<>\"Subscriber\",\"\",IF('Enrollment Form'!$G989='Enrollment Form'!$H989,\"Y\",\"N\")))","v":""},{"$f":"IF($B982=\"N\",\"\",IF(AND(COUNTIFS('Enrollment Form'!$H$11:$H$1000,'Enrollment Form'!$H989,'Enrollment Form'!$B$11:$B$1000,'Enrollment Form'!$B989)>1,'Enrollment Form'!$H989<>\"\"),\"N\",\"Y\"))","v":""},{"$f":"IF($B982=\"N\",\"\",IF(LEN('Enrollment Form'!$Y989)=0,\"\",IF(LEN('Enrollment Form'!$Y989)<>5,\"N\",\"Y\")))","v":""},{"$f":"IF($B982=\"N\",\"\",IF(LEN('Enrollment Form'!$AD989=0),\"\",IF(LEN('Enrollment Form'!$AD989)<>5,\"N\",\"Y\")))","v":""},{"$f":"IF($B982=\"N\",\"\",IF(LEN('Enrollment Form'!$BS989=0),\"\",IF(LEN('Enrollment Form'!$BS989)<>5,\"N\",\"Y\")))","v":""},{"$f":"IF($B982=\"N\",\"\",IF(LEN('Enrollment Form'!$AE989)=0,\"\",IF(LEN('Enrollment Form'!$AE989)<>10,\"N\",\"Y\")))","v":""},{"$f":"IF($B982=\"N\",\"\",IF(LEN('Enrollment Form'!$AF989)=0,\"\",IF(LEN('Enrollment Form'!$AF989)<>10,\"N\",\"Y\")))","v":""},{"$f":"IF('Enrollment Form'!$O989<>\"Graded\",\"-\",IF(AND('Enrollment Form'!$O989=\"Graded\",'Enrollment Form'!$AR989<>\"\"),\"Y\",\"N\"))","v":"-"},{"$f":"IF($B982=\"N\",\"\",IF(OR('Enrollment Form'!$B989<>\"Subscriber\",'Enrollment Form'!$C989=\"ROC\"),\"-\",IF(AND('Enrollment Form'!$B989=\"Subscriber\",'Enrollment Form'!$C989=\"Enroll\",'Enrollment Form'!$AJ989<>\"\"),\"Y\",\"N\")))","v":""},{"$f":"IF($B982=\"N\",\"\",IF(OR('Enrollment Form'!$B989<>\"Subscriber\",'Enrollment Form'!$C989=\"ROC\"),\"-\",IF(AND('Enrollment Form'!$B989=\"Subscriber\",'Enrollment Form'!$C989=\"Enroll\",'Enrollment Form'!$AK989<>\"\"),\"Y\",\"N\")))","v":""},{"$f":"IF($B982=\"N\",\"\",IF(OR('Enrollment Form'!$B989<>\"Subscriber\",'Enrollment Form'!$C989=\"ROC\"),\"-\",IF(AND('Enrollment Form'!$B989=\"Subscriber\",'Enrollment Form'!$C989=\"Enroll\",'Enrollment Form'!$AL989<>\"\"),\"Y\",\"N\")))","v":""},{"$f":"IF($B982=\"N\",\"\",IF(OR('Enrollment Form'!$B989<>\"Subscriber\",'Enrollment Form'!$C989=\"ROC\"),\"-\",IF(AND('Enrollment Form'!$B989=\"Subscriber\",'Enrollment Form'!$C989=\"Enroll\",'Enrollment Form'!$AP989<>\"\"),\"Y\",\"N\")))","v":""},{"$f":"IF($B982=\"N\",\"\",IF(OR('Enrollment Form'!$B989<>\"Subscriber\",'Enrollment Form'!$C989=\"ROC\"),\"-\",IF(AND('Enrollment Form'!$B989=\"Subscriber\",'Enrollment Form'!$C989=\"Enroll\",'Enrollment Form'!$AQ989<>\"\"),\"Y\",\"N\")))","v":""},{"$f":"IF($B982=\"N\",\"\",IF(OR('Enrollment Form'!$B989<>\"Subscriber\",'Enrollment Form'!$C989=\"ROC\"),\"-\",IF(AND('Enrollment Form'!$B989=\"Subscriber\",'Enrollment Form'!$C989=\"Enroll\",'Enrollment Form'!$AS989<>\"\"),\"Y\",\"N\")))","v":""},{"$f":"IF($B982=\"N\",\"\",IF($Q982=\"-\",\"-\",IF(AND($Q982=\"Y\",'Enrollment Form'!$AS989=\"No\"),\"-\",IF(AND($Q982=\"Y\",'Enrollment Form'!$AS989=\"Yes\",'Enrollment Form'!$AT989<>\"\"),\"Y\",\"N\"))))","v":""},{"$f":"IF($B982=\"N\",\"\",IF(OR('Enrollment Form'!$B989<>\"Subscriber\",'Enrollment Form'!$C989=\"ROC\"),\"-\",IF(AND('Enrollment Form'!$B989=\"Subscriber\",'Enrollment Form'!$C989=\"Enroll\",'Enrollment Form'!$CV989<>\"\"),\"Y\",\"N\")))","v":""},{"$f":"IF($B982=\"N\",\"\",IF($S982=\"-\",\"-\",IF(AND($S982=\"Y\",'Enrollment Form'!$CV989=\"No\"),\"-\",IF(AND($S982=\"Y\",'Enrollment Form'!$CV989=\"Yes\",'Enrollment Form'!$CW989<>\"\"),\"Y\",\"N\"))))","v":""},{"$f":"IF(OR('Enrollment Form'!$AY989=\"Yes\",'Enrollment Form'!$AY989=\"\"),\"-\",IF(OR(AND('Enrollment Form'!$AY989=\"No\",ISERROR(FIND(\"HMO\",VLOOKUP('Enrollment Form'!G989,'Enrollment Form'!H$11:J$1000,3,FALSE),1))=FALSE,COUNTA('Enrollment Form'!$AZ989:$BC989)=4),AND('Enrollment Form'!$AY989=\"No\",ISERROR(FIND(\"HMO\",VLOOKUP('Enrollment Form'!G989,'Enrollment Form'!H$11:J$1000,3,FALSE),1))=FALSE,COUNTA('Enrollment Form'!$BT989:$BW989)=4)),\"Y\",\"N\"))","v":"-"},{"$f":"IF($B982=\"N\",\"\",IF('Enrollment Form'!$B989=\"Subscriber\",\"-\",IF(COUNTA('Enrollment Form'!$BL989,'Enrollment Form'!$BN989)=2,\"Y\",\"N\")))","v":""},{"$f":"IF($B982=\"N\",\"\",IF(OR('Enrollment Form'!$AX989=\"\",'Enrollment Form'!$AX989=\"No\"),\"-\",IF(AND('Enrollment Form'!$AX989=\"Yes\",COUNTA('Enrollment Form'!$CR989)=1),\"Y\",\"N\")))","v":""},{"$f":"IF(OR('Enrollment Form'!$CR989=\"\",'Enrollment Form'!$CR989=\"No\"),\"-\",IF(COUNTA('Enrollment Form'!$CT989:$CU989)=2,\"Y\",\"N\"))","v":"-"},{"$f":"IF($B982=\"N\",\"\",IF(COUNTIF('Enrollment Form'!$DG989:$DP989,\"Other\")=COUNTA('Enrollment Form'!$DK989,'Enrollment Form'!$DH989,'Enrollment Form'!$DN989,'Enrollment Form'!$DQ989),\"Y\",\"N\"))","v":""},{"$f":"IF($B982=\"N\",\"\",IF(OR('Enrollment Form'!B989<>\"Subscriber\",'Enrollment Form'!C989=\"ROC\",COUNTIF('Enrollment Form'!AV989:AW989,\"Yes\")>=1),\"-\",IF(AND('Enrollment Form'!C989=\"Enroll\",COUNTIF('Enrollment Form'!AV989:AW989,\"No\")=2,'Enrollment Form'!AX989=\"\"),\"N\",\"Y\")))","v":""},{"$f":"IF(OR(B982=\"N\",'Enrollment Form'!B989<>\"Subscriber\",'Enrollment Form'!C989=\"ROC\",'Enrollment Form'!O989<>\"Multiple of Salary\"),\"-\",IF(COUNTA('Enrollment Form'!T989:U989)<2,\"N\",\"Y\"))","v":"-"},{"$f":"IF(B982=\"N\",\"\",IF(OR('Enrollment Form'!C989=\"ROC\",'Enrollment Form'!B989<>\"Subscriber\",'Enrollment Form'!O989=\"Waive\",'Enrollment Form'!O989=\"\"),\"-\",IF('Enrollment Form'!P989=\"\",\"N\",\"Y\")))","v":""},{"$f":"IF($B982=\"N\",\"\",IF(AND('Enrollment Form'!$C989=\"ROC\",'Enrollment Form'!$DR989<>\"\"),\"Y\",IF(AND('Enrollment Form'!$C989=\"ROC\",'Enrollment Form'!$DR989=\"\"),\"N\",IF(AND('Enrollment Form'!$C989=\"Enroll\",'Enrollment Form'!$B989=\"Subscriber\",'Enrollment Form'!$CX989=\"No\",'Enrollment Form'!$DR989=\"\"),\"N\",IF(AND('Enrollment Form'!$C989=\"Enroll\",'Enrollment Form'!$B989=\"Subscriber\",'Enrollment Form'!$CX989=\"Yes\"),\"-\",\"Y\")))))","v":""},{"$f":"IF($B982=\"N\",\"\",IF(AND('Enrollment Form'!$C989=\"ROC\",'Enrollment Form'!$DS989<>\"\"),\"Y\",IF(AND('Enrollment Form'!$C989=\"ROC\",'Enrollment Form'!$DS989=\"\"),\"N\",IF(AND('Enrollment Form'!$C989=\"Enroll\",'Enrollment Form'!$B989=\"Subscriber\",'Enrollment Form'!$CX989=\"No\",'Enrollment Form'!$DS989=\"\"),\"N\",IF(AND('Enrollment Form'!$C989=\"Enroll\",'Enrollment Form'!$B989=\"Subscriber\",'Enrollment Form'!$CX989=\"Yes\"),\"-\",\"Y\")))))","v":""},{"$f":"IF('Enrollment Form'!AH989=\"\",\"\",IF(ISERROR(SEARCH(\".\",'Enrollment Form'!AH989,SEARCH(\"@\",'Enrollment Form'!AH989))),\"N\",\"Y\"))","v":""},{"$f":"IF(OR($B982=\"N\",'Enrollment Form'!$G989=\"\"),\"\",IF('Enrollment Form'!$B989<>\"Subscriber\",\"-\",IF(COUNTIF('Enrollment Form'!$AV989:$AW989,\"Yes\")=2,\"N\",\"Y\")))","v":""},{"$f":"IF(OR('Enrollment Form'!$CJ989=\"\",'Enrollment Form'!$CJ989=\"No\"),\"-\",IF(AND('Enrollment Form'!$CJ989=\"Yes\",'Enrollment Form'!$CK989=\"\"),\"N\",\"Y\"))","v":"-"},{"$f":"IF(OR('Enrollment Form'!$CL989=\"\",'Enrollment Form'!$CL989=\"No\"),\"-\",IF(AND('Enrollment Form'!$CL989=\"Yes\",'Enrollment Form'!$CM989=\"\"),\"N\",\"Y\"))","v":"-"},{"$f":"IF(OR('Enrollment Form'!$CN989=\"\",'Enrollment Form'!$CN989=\"No\"),\"-\",IF(AND('Enrollment Form'!$CN989=\"Yes\",'Enrollment Form'!$CO989=\"\"),\"N\",\"Y\"))","v":"-"},{"$f":"IF(OR('Enrollment Form'!$CN989=\"\",'Enrollment Form'!$CN989=\"No\"),\"-\",IF(AND('Enrollment Form'!$CN989=\"Yes\",'Enrollment Form'!$CP989=\"\"),\"N\",\"Y\"))","v":"-"},{"$f":"IF('Enrollment Form'!B989<>\"Subscriber\",\"-\",IF(AND('Enrollment Form'!B989=\"Subscriber\",'Enrollment Form'!C989=\"Enroll\",'Enrollment Form'!AA989=\"\"),\"N\",\"Y\"))","v":"-"},{"$f":"IF(OR('Enrollment Form'!B989=\"Subscriber\",'Enrollment Form'!B989=\"\"),\"-\",IF('Enrollment Form'!BP989=\"\",\"N\",\"Y\"))","v":"-"},{"$f":"IF('Enrollment Form'!B989<>\"Subscriber\",\"-\",IF(AND('Enrollment Form'!B989=\"Subscriber\",'Enrollment Form'!G989=\"\"),\"N\",\"Y\"))","v":"-"},{"$f":"IF('Enrollment Form'!A989=\"\",\"\",IF('Enrollment Form'!B989=\"Subscriber\",\"-\",IF(AND('Enrollment Form'!B989<>\"Subscriber\",'Enrollment Form'!G989='Enrollment Form'!H989),\"N\",\"Y\")))","v":""},0]
[990,{"$f":"IF('Enrollment Form'!$A990<>\"\",\"Y\",\"N\")","v":"N"},{"$f":"IF(AND('Enrollment Form'!$B990=\"\",'Enrollment Form'!$C990<>\"\"),\"N\",IF($B983=\"N\",\"\",\"Y\"))","v":""},{"$f":"IF(OR($B983=\"N\",'Enrollment Form'!G990=\"\"),\"\",IF('Enrollment Form'!$B990<>\"Subscriber\",\"\",IF('Enrollment Form'!$G990='Enrollment Form'!$H990,\"Y\",\"N\")))","v":""},{"$f":"IF($B983=\"N\",\"\",IF(AND(COUNTIFS('Enrollment Form'!$H$11:$H$1000,'Enrollment Form'!$H990,'Enrollment Form'!$B$11:$B$1000,'Enrollment Form'!$B990)>1,'Enrollment Form'!$H990<>\"\"),\"N\",\"Y\"))","v":""},{"$f":"IF($B983=\"N\",\"\",IF(LEN('Enrollment Form'!$Y990)=0,\"\",IF(LEN('Enrollment Form'!$Y990)<>5,\"N\",\"Y\")))","v":""},{"$f":"IF($B983=\"N\",\"\",IF(LEN('Enrollment Form'!$AD990=0),\"\",IF(LEN('Enrollment Form'!$AD990)<>5,\"N\",\"Y\")))","v":""},{"$f":"IF($B983=\"N\",\"\",IF(LEN('Enrollment Form'!$BS990=0),\"\",IF(LEN('Enrollment Form'!$BS990)<>5,\"N\",\"Y\")))","v":""},{"$f":"IF($B983=\"N\",\"\",IF(LEN('Enrollment Form'!$AE990)=0,\"\",IF(LEN('Enrollment Form'!$AE990)<>10,\"N\",\"Y\")))","v":""},{"$f":"IF($B983=\"N\",\"\",IF(LEN('Enrollment Form'!$AF990)=0,\"\",IF(LEN('Enrollment Form'!$AF990)<>10,\"N\",\"Y\")))","v":""},{"$f":"IF('Enrollment Form'!$O990<>\"Graded\",\"-\",IF(AND('Enrollment Form'!$O990=\"Graded\",'Enrollment Form'!$AR990<>\"\"),\"Y\",\"N\"))","v":"-"},{"$f":"IF($B983=\"N\",\"\",IF(OR('Enrollment Form'!$B990<>\"Subscriber\",'Enrollment Form'!$C990=\"ROC\"),\"-\",IF(AND('Enrollment Form'!$B990=\"Subscriber\",'Enrollment Form'!$C990=\"Enroll\",'Enrollment Form'!$AJ990<>\"\"),\"Y\",\"N\")))","v":""},{"$f":"IF($B983=\"N\",\"\",IF(OR('Enrollment Form'!$B990<>\"Subscriber\",'Enrollment Form'!$C990=\"ROC\"),\"-\",IF(AND('Enrollment Form'!$B990=\"Subscriber\",'Enrollment Form'!$C990=\"Enroll\",'Enrollment Form'!$AK990<>\"\"),\"Y\",\"N\")))","v":""},{"$f":"IF($B983=\"N\",\"\",IF(OR('Enrollment Form'!$B990<>\"Subscriber\",'Enrollment Form'!$C990=\"ROC\"),\"-\",IF(AND('Enrollment Form'!$B990=\"Subscriber\",'Enrollment Form'!$C990=\"Enroll\",'Enrollment Form'!$AL990<>\"\"),\"Y\",\"N\")))","v":""},{"$f":"IF($B983=\"N\",\"\",IF(OR('Enrollment Form'!$B990<>\"Subscriber\",'Enrollment Form'!$C990=\"ROC\"),\"-\",IF(AND('Enrollment Form'!$B990=\"Subscriber\",'Enrollment Form'!$C990=\"Enroll\",'Enrollment Form'!$AP990<>\"\"),\"Y\",\"N\")))","v":""},{"$f":"IF($B983=\"N\",\"\",IF(OR('Enrollment Form'!$B990<>\"Subscriber\",'Enrollment Form'!$C990=\"ROC\"),\"-\",IF(AND('Enrollment Form'!$B990=\"Subscriber\",'Enrollment Form'!$C990=\"Enroll\",'Enrollment Form'!$AQ990<>\"\"),\"Y\",\"N\")))","v":""},{"$f":"IF($B983=\"N\",\"\",IF(OR('Enrollment Form'!$B990<>\"Subscriber\",'Enrollment Form'!$C990=\"ROC\"),\"-\",IF(AND('Enrollment Form'!$B990=\"Subscriber\",'Enrollment Form'!$C990=\"Enroll\",'Enrollment Form'!$AS990<>\"\"),\"Y\",\"N\")))","v":""},{"$f":"IF($B983=\"N\",\"\",IF($Q983=\"-\",\"-\",IF(AND($Q983=\"Y\",'Enrollment Form'!$AS990=\"No\"),\"-\",IF(AND($Q983=\"Y\",'Enrollment Form'!$AS990=\"Yes\",'Enrollment Form'!$AT990<>\"\"),\"Y\",\"N\"))))","v":""},{"$f":"IF($B983=\"N\",\"\",IF(OR('Enrollment Form'!$B990<>\"Subscriber\",'Enrollment Form'!$C990=\"ROC\"),\"-\",IF(AND('Enrollment Form'!$B990=\"Subscriber\",'Enrollment Form'!$C990=\"Enroll\",'Enrollment Form'!$CV990<>\"\"),\"Y\",\"N\")))","v":""},{"$f":"IF($B983=\"N\",\"\",IF($S983=\"-\",\"-\",IF(AND($S983=\"Y\",'Enrollment Form'!$CV990=\"No\"),\"-\",IF(AND($S983=\"Y\",'Enrollment Form'!$CV990=\"Yes\",'Enrollment Form'!$CW990<>\"\"),\"Y\",\"N\"))))","v":""},{"$f":"IF(OR('Enrollment Form'!$AY990=\"Yes\",'Enrollment Form'!$AY990=\"\"),\"-\",IF(OR(AND('Enrollment Form'!$AY990=\"No\",ISERROR(FIND(\"HMO\",VLOOKUP('Enrollment Form'!G990,'Enrollment Form'!H$11:J$1000,3,FALSE),1))=FALSE,COUNTA('Enrollment Form'!$AZ990:$BC990)=4),AND('Enrollment Form'!$AY990=\"No\",ISERROR(FIND(\"HMO\",VLOOKUP('Enrollment Form'!G990,'Enrollment Form'!H$11:J$1000,3,FALSE),1))=FALSE,COUNTA('Enrollment Form'!$BT990:$BW990)=4)),\"Y\",\"N\"))","v":"-"},{"$f":"IF($B983=\"N\",\"\",IF('Enrollment Form'!$B990=\"Subscriber\",\"-\",IF(COUNTA('Enrollment Form'!$BL990,'Enrollment Form'!$BN990)=2,\"Y\",\"N\")))","v":""},{"$f":"IF($B983=\"N\",\"\",IF(OR('Enrollment Form'!$AX990=\"\",'Enrollment Form'!$AX990=\"No\"),\"-\",IF(AND('Enrollment Form'!$AX990=\"Yes\",COUNTA('Enrollment Form'!$CR990)=1),\"Y\",\"N\")))","v":""},{"$f":"IF(OR('Enrollment Form'!$CR990=\"\",'Enrollment Form'!$CR990=\"No\"),\"-\",IF(COUNTA('Enrollment Form'!$CT990:$CU990)=2,\"Y\",\"N\"))","v":"-"},{"$f":"IF($B983=\"N\",\"\",IF(COUNTIF('Enrollment Form'!$DG990:$DP990,\"Other\")=COUNTA('Enrollment Form'!$DK990,'Enrollment Form'!$DH990,'Enrollment Form'!$DN990,'Enrollment Form'!$DQ990),\"Y\",\"N\"))","v":""},{"$f":"IF($B983=\"N\",\"\",IF(OR('Enrollment Form'!B990<>\"Subscriber\",'Enrollment Form'!C990=\"ROC\",COUNTIF('Enrollment Form'!AV990:AW990,\"Yes\")>=1),\"-\",IF(AND('Enrollment Form'!C990=\"Enroll\",COUNTIF('Enrollment Form'!AV990:AW990,\"No\")=2,'Enrollment Form'!AX990=\"\"),\"N\",\"Y\")))","v":""},{"$f":"IF(OR(B983=\"N\",'Enrollment Form'!B990<>\"Subscriber\",'Enrollment Form'!C990=\"ROC\",'Enrollment Form'!O990<>\"Multiple of Salary\"),\"-\",IF(COUNTA('Enrollment Form'!T990:U990)<2,\"N\",\"Y\"))","v":"-"},{"$f":"IF(B983=\"N\",\"\",IF(OR('Enrollment Form'!C990=\"ROC\",'Enrollment Form'!B990<>\"Subscriber\",'Enrollment Form'!O990=\"Waive\",'Enrollment Form'!O990=\"\"),\"-\",IF('Enrollment Form'!P990=\"\",\"N\",\"Y\")))","v":""},{"$f":"IF($B983=\"N\",\"\",IF(AND('Enrollment Form'!$C990=\"ROC\",'Enrollment Form'!$DR990<>\"\"),\"Y\",IF(AND('Enrollment Form'!$C990=\"ROC\",'Enrollment Form'!$DR990=\"\"),\"N\",IF(AND('Enrollment Form'!$C990=\"Enroll\",'Enrollment Form'!$B990=\"Subscriber\",'Enrollment Form'!$CX990=\"No\",'Enrollment Form'!$DR990=\"\"),\"N\",IF(AND('Enrollment Form'!$C990=\"Enroll\",'Enrollment Form'!$B990=\"Subscriber\",'Enrollment Form'!$CX990=\"Yes\"),\"-\",\"Y\")))))","v":""},{"$f":"IF($B983=\"N\",\"\",IF(AND('Enrollment Form'!$C990=\"ROC\",'Enrollment Form'!$DS990<>\"\"),\"Y\",IF(AND('Enrollment Form'!$C990=\"ROC\",'Enrollment Form'!$DS990=\"\"),\"N\",IF(AND('Enrollment Form'!$C990=\"Enroll\",'Enrollment Form'!$B990=\"Subscriber\",'Enrollment Form'!$CX990=\"No\",'Enrollment Form'!$DS990=\"\"),\"N\",IF(AND('Enrollment Form'!$C990=\"Enroll\",'Enrollment Form'!$B990=\"Subscriber\",'Enrollment Form'!$CX990=\"Yes\"),\"-\",\"Y\")))))","v":""},{"$f":"IF('Enrollment Form'!AH990=\"\",\"\",IF(ISERROR(SEARCH(\".\",'Enrollment Form'!AH990,SEARCH(\"@\",'Enrollment Form'!AH990))),\"N\",\"Y\"))","v":""},{"$f":"IF(OR($B983=\"N\",'Enrollment Form'!$G990=\"\"),\"\",IF('Enrollment Form'!$B990<>\"Subscriber\",\"-\",IF(COUNTIF('Enrollment Form'!$AV990:$AW990,\"Yes\")=2,\"N\",\"Y\")))","v":""},{"$f":"IF(OR('Enrollment Form'!$CJ990=\"\",'Enrollment Form'!$CJ990=\"No\"),\"-\",IF(AND('Enrollment Form'!$CJ990=\"Yes\",'Enrollment Form'!$CK990=\"\"),\"N\",\"Y\"))","v":"-"},{"$f":"IF(OR('Enrollment Form'!$CL990=\"\",'Enrollment Form'!$CL990=\"No\"),\"-\",IF(AND('Enrollment Form'!$CL990=\"Yes\",'Enrollment Form'!$CM990=\"\"),\"N\",\"Y\"))","v":"-"},{"$f":"IF(OR('Enrollment Form'!$CN990=\"\",'Enrollment Form'!$CN990=\"No\"),\"-\",IF(AND('Enrollment Form'!$CN990=\"Yes\",'Enrollment Form'!$CO990=\"\"),\"N\",\"Y\"))","v":"-"},{"$f":"IF(OR('Enrollment Form'!$CN990=\"\",'Enrollment Form'!$CN990=\"No\"),\"-\",IF(AND('Enrollment Form'!$CN990=\"Yes\",'Enrollment Form'!$CP990=\"\"),\"N\",\"Y\"))","v":"-"},{"$f":"IF('Enrollment Form'!B990<>\"Subscriber\",\"-\",IF(AND('Enrollment Form'!B990=\"Subscriber\",'Enrollment Form'!C990=\"Enroll\",'Enrollment Form'!AA990=\"\"),\"N\",\"Y\"))","v":"-"},{"$f":"IF(OR('Enrollment Form'!B990=\"Subscriber\",'Enrollment Form'!B990=\"\"),\"-\",IF('Enrollment Form'!BP990=\"\",\"N\",\"Y\"))","v":"-"},{"$f":"IF('Enrollment Form'!B990<>\"Subscriber\",\"-\",IF(AND('Enrollment Form'!B990=\"Subscriber\",'Enrollment Form'!G990=\"\"),\"N\",\"Y\"))","v":"-"},{"$f":"IF('Enrollment Form'!A990=\"\",\"\",IF('Enrollment Form'!B990=\"Subscriber\",\"-\",IF(AND('Enrollment Form'!B990<>\"Subscriber\",'Enrollment Form'!G990='Enrollment Form'!H990),\"N\",\"Y\")))","v":""},0]
[991,{"$f":"IF('Enrollment Form'!$A991<>\"\",\"Y\",\"N\")","v":"N"},{"$f":"IF(AND('Enrollment Form'!$B991=\"\",'Enrollment Form'!$C991<>\"\"),\"N\",IF($B984=\"N\",\"\",\"Y\"))","v":""},{"$f":"IF(OR($B984=\"N\",'Enrollment Form'!G991=\"\"),\"\",IF('Enrollment Form'!$B991<>\"Subscriber\",\"\",IF('Enrollment Form'!$G991='Enrollment Form'!$H991,\"Y\",\"N\")))","v":""},{"$f":"IF($B984=\"N\",\"\",IF(AND(COUNTIFS('Enrollment Form'!$H$11:$H$1000,'Enrollment Form'!$H991,'Enrollment Form'!$B$11:$B$1000,'Enrollment Form'!$B991)>1,'Enrollment Form'!$H991<>\"\"),\"N\",\"Y\"))","v":""},{"$f":"IF($B984=\"N\",\"\",IF(LEN('Enrollment Form'!$Y991)=0,\"\",IF(LEN('Enrollment Form'!$Y991)<>5,\"N\",\"Y\")))","v":""},{"$f":"IF($B984=\"N\",\"\",IF(LEN('Enrollment Form'!$AD991=0),\"\",IF(LEN('Enrollment Form'!$AD991)<>5,\"N\",\"Y\")))","v":""},{"$f":"IF($B984=\"N\",\"\",IF(LEN('Enrollment Form'!$BS991=0),\"\",IF(LEN('Enrollment Form'!$BS991)<>5,\"N\",\"Y\")))","v":""},{"$f":"IF($B984=\"N\",\"\",IF(LEN('Enrollment Form'!$AE991)=0,\"\",IF(LEN('Enrollment Form'!$AE991)<>10,\"N\",\"Y\")))","v":""},{"$f":"IF($B984=\"N\",\"\",IF(LEN('Enrollment Form'!$AF991)=0,\"\",IF(LEN('Enrollment Form'!$AF991)<>10,\"N\",\"Y\")))","v":""},{"$f":"IF('Enrollment Form'!$O991<>\"Graded\",\"-\",IF(AND('Enrollment Form'!$O991=\"Graded\",'Enrollment Form'!$AR991<>\"\"),\"Y\",\"N\"))","v":"-"},{"$f":"IF($B984=\"N\",\"\",IF(OR('Enrollment Form'!$B991<>\"Subscriber\",'Enrollment Form'!$C991=\"ROC\"),\"-\",IF(AND('Enrollment Form'!$B991=\"Subscriber\",'Enrollment Form'!$C991=\"Enroll\",'Enrollment Form'!$AJ991<>\"\"),\"Y\",\"N\")))","v":""},{"$f":"IF($B984=\"N\",\"\",IF(OR('Enrollment Form'!$B991<>\"Subscriber\",'Enrollment Form'!$C991=\"ROC\"),\"-\",IF(AND('Enrollment Form'!$B991=\"Subscriber\",'Enrollment Form'!$C991=\"Enroll\",'Enrollment Form'!$AK991<>\"\"),\"Y\",\"N\")))","v":""},{"$f":"IF($B984=\"N\",\"\",IF(OR('Enrollment Form'!$B991<>\"Subscriber\",'Enrollment Form'!$C991=\"ROC\"),\"-\",IF(AND('Enrollment Form'!$B991=\"Subscriber\",'Enrollment Form'!$C991=\"Enroll\",'Enrollment Form'!$AL991<>\"\"),\"Y\",\"N\")))","v":""},{"$f":"IF($B984=\"N\",\"\",IF(OR('Enrollment Form'!$B991<>\"Subscriber\",'Enrollment Form'!$C991=\"ROC\"),\"-\",IF(AND('Enrollment Form'!$B991=\"Subscriber\",'Enrollment Form'!$C991=\"Enroll\",'Enrollment Form'!$AP991<>\"\"),\"Y\",\"N\")))","v":""},{"$f":"IF($B984=\"N\",\"\",IF(OR('Enrollment Form'!$B991<>\"Subscriber\",'Enrollment Form'!$C991=\"ROC\"),\"-\",IF(AND('Enrollment Form'!$B991=\"Subscriber\",'Enrollment Form'!$C991=\"Enroll\",'Enrollment Form'!$AQ991<>\"\"),\"Y\",\"N\")))","v":""},{"$f":"IF($B984=\"N\",\"\",IF(OR('Enrollment Form'!$B991<>\"Subscriber\",'Enrollment Form'!$C991=\"ROC\"),\"-\",IF(AND('Enrollment Form'!$B991=\"Subscriber\",'Enrollment Form'!$C991=\"Enroll\",'Enrollment Form'!$AS991<>\"\"),\"Y\",\"N\")))","v":""},{"$f":"IF($B984=\"N\",\"\",IF($Q984=\"-\",\"-\",IF(AND($Q984=\"Y\",'Enrollment Form'!$AS991=\"No\"),\"-\",IF(AND($Q984=\"Y\",'Enrollment Form'!$AS991=\"Yes\",'Enrollment Form'!$AT991<>\"\"),\"Y\",\"N\"))))","v":""},{"$f":"IF($B984=\"N\",\"\",IF(OR('Enrollment Form'!$B991<>\"Subscriber\",'Enrollment Form'!$C991=\"ROC\"),\"-\",IF(AND('Enrollment Form'!$B991=\"Subscriber\",'Enrollment Form'!$C991=\"Enroll\",'Enrollment Form'!$CV991<>\"\"),\"Y\",\"N\")))","v":""},{"$f":"IF($B984=\"N\",\"\",IF($S984=\"-\",\"-\",IF(AND($S984=\"Y\",'Enrollment Form'!$CV991=\"No\"),\"-\",IF(AND($S984=\"Y\",'Enrollment Form'!$CV991=\"Yes\",'Enrollment Form'!$CW991<>\"\"),\"Y\",\"N\"))))","v":""},{"$f":"IF(OR('Enrollment Form'!$AY991=\"Yes\",'Enrollment Form'!$AY991=\"\"),\"-\",IF(OR(AND('Enrollment Form'!$AY991=\"No\",ISERROR(FIND(\"HMO\",VLOOKUP('Enrollment Form'!G991,'Enrollment Form'!H$11:J$1000,3,FALSE),1))=FALSE,COUNTA('Enrollment Form'!$AZ991:$BC991)=4),AND('Enrollment Form'!$AY991=\"No\",ISERROR(FIND(\"HMO\",VLOOKUP('Enrollment Form'!G991,'Enrollment Form'!H$11:J$1000,3,FALSE),1))=FALSE,COUNTA('Enrollment Form'!$BT991:$BW991)=4)),\"Y\",\"N\"))","v":"-"},{"$f":"IF($B984=\"N\",\"\",IF('Enrollment Form'!$B991=\"Subscriber\",\"-\",IF(COUNTA('Enrollment Form'!$BL991,'Enrollment Form'!$BN991)=2,\"Y\",\"N\")))","v":""},{"$f":"IF($B984=\"N\",\"\",IF(OR('Enrollment Form'!$AX991=\"\",'Enrollment Form'!$AX991=\"No\"),\"-\",IF(AND('Enrollment Form'!$AX991=\"Yes\",COUNTA('Enrollment Form'!$CR991)=1),\"Y\",\"N\")))","v":""},{"$f":"IF(OR('Enrollment Form'!$CR991=\"\",'Enrollment Form'!$CR991=\"No\"),\"-\",IF(COUNTA('Enrollment Form'!$CT991:$CU991)=2,\"Y\",\"N\"))","v":"-"},{"$f":"IF($B984=\"N\",\"\",IF(COUNTIF('Enrollment Form'!$DG991:$DP991,\"Other\")=COUNTA('Enrollment Form'!$DK991,'Enrollment Form'!$DH991,'Enrollment Form'!$DN991,'Enrollment Form'!$DQ991),\"Y\",\"N\"))","v":""},{"$f":"IF($B984=\"N\",\"\",IF(OR('Enrollment Form'!B991<>\"Subscriber\",'Enrollment Form'!C991=\"ROC\",COUNTIF('Enrollment Form'!AV991:AW991,\"Yes\")>=1),\"-\",IF(AND('Enrollment Form'!C991=\"Enroll\",COUNTIF('Enrollment Form'!AV991:AW991,\"No\")=2,'Enrollment Form'!AX991=\"\"),\"N\",\"Y\")))","v":""},{"$f":"IF(OR(B984=\"N\",'Enrollment Form'!B991<>\"Subscriber\",'Enrollment Form'!C991=\"ROC\",'Enrollment Form'!O991<>\"Multiple of Salary\"),\"-\",IF(COUNTA('Enrollment Form'!T991:U991)<2,\"N\",\"Y\"))","v":"-"},{"$f":"IF(B984=\"N\",\"\",IF(OR('Enrollment Form'!C991=\"ROC\",'Enrollment Form'!B991<>\"Subscriber\",'Enrollment Form'!O991=\"Waive\",'Enrollment Form'!O991=\"\"),\"-\",IF('Enrollment Form'!P991=\"\",\"N\",\"Y\")))","v":""},{"$f":"IF($B984=\"N\",\"\",IF(AND('Enrollment Form'!$C991=\"ROC\",'Enrollment Form'!$DR991<>\"\"),\"Y\",IF(AND('Enrollment Form'!$C991=\"ROC\",'Enrollment Form'!$DR991=\"\"),\"N\",IF(AND('Enrollment Form'!$C991=\"Enroll\",'Enrollment Form'!$B991=\"Subscriber\",'Enrollment Form'!$CX991=\"No\",'Enrollment Form'!$DR991=\"\"),\"N\",IF(AND('Enrollment Form'!$C991=\"Enroll\",'Enrollment Form'!$B991=\"Subscriber\",'Enrollment Form'!$CX991=\"Yes\"),\"-\",\"Y\")))))","v":""},{"$f":"IF($B984=\"N\",\"\",IF(AND('Enrollment Form'!$C991=\"ROC\",'Enrollment Form'!$DS991<>\"\"),\"Y\",IF(AND('Enrollment Form'!$C991=\"ROC\",'Enrollment Form'!$DS991=\"\"),\"N\",IF(AND('Enrollment Form'!$C991=\"Enroll\",'Enrollment Form'!$B991=\"Subscriber\",'Enrollment Form'!$CX991=\"No\",'Enrollment Form'!$DS991=\"\"),\"N\",IF(AND('Enrollment Form'!$C991=\"Enroll\",'Enrollment Form'!$B991=\"Subscriber\",'Enrollment Form'!$CX991=\"Yes\"),\"-\",\"Y\")))))","v":""},{"$f":"IF('Enrollment Form'!AH991=\"\",\"\",IF(ISERROR(SEARCH(\".\",'Enrollment Form'!AH991,SEARCH(\"@\",'Enrollment Form'!AH991))),\"N\",\"Y\"))","v":""},{"$f":"IF(OR($B984=\"N\",'Enrollment Form'!$G991=\"\"),\"\",IF('Enrollment Form'!$B991<>\"Subscriber\",\"-\",IF(COUNTIF('Enrollment Form'!$AV991:$AW991,\"Yes\")=2,\"N\",\"Y\")))","v":""},{"$f":"IF(OR('Enrollment Form'!$CJ991=\"\",'Enrollment Form'!$CJ991=\"No\"),\"-\",IF(AND('Enrollment Form'!$CJ991=\"Yes\",'Enrollment Form'!$CK991=\"\"),\"N\",\"Y\"))","v":"-"},{"$f":"IF(OR('Enrollment Form'!$CL991=\"\",'Enrollment Form'!$CL991=\"No\"),\"-\",IF(AND('Enrollment Form'!$CL991=\"Yes\",'Enrollment Form'!$CM991=\"\"),\"N\",\"Y\"))","v":"-"},{"$f":"IF(OR('Enrollment Form'!$CN991=\"\",'Enrollment Form'!$CN991=\"No\"),\"-\",IF(AND('Enrollment Form'!$CN991=\"Yes\",'Enrollment Form'!$CO991=\"\"),\"N\",\"Y\"))","v":"-"},{"$f":"IF(OR('Enrollment Form'!$CN991=\"\",'Enrollment Form'!$CN991=\"No\"),\"-\",IF(AND('Enrollment Form'!$CN991=\"Yes\",'Enrollment Form'!$CP991=\"\"),\"N\",\"Y\"))","v":"-"},{"$f":"IF('Enrollment Form'!B991<>\"Subscriber\",\"-\",IF(AND('Enrollment Form'!B991=\"Subscriber\",'Enrollment Form'!C991=\"Enroll\",'Enrollment Form'!AA991=\"\"),\"N\",\"Y\"))","v":"-"},{"$f":"IF(OR('Enrollment Form'!B991=\"Subscriber\",'Enrollment Form'!B991=\"\"),\"-\",IF('Enrollment Form'!BP991=\"\",\"N\",\"Y\"))","v":"-"},{"$f":"IF('Enrollment Form'!B991<>\"Subscriber\",\"-\",IF(AND('Enrollment Form'!B991=\"Subscriber\",'Enrollment Form'!G991=\"\"),\"N\",\"Y\"))","v":"-"},{"$f":"IF('Enrollment Form'!A991=\"\",\"\",IF('Enrollment Form'!B991=\"Subscriber\",\"-\",IF(AND('Enrollment Form'!B991<>\"Subscriber\",'Enrollment Form'!G991='Enrollment Form'!H991),\"N\",\"Y\")))","v":""},0]
[992,{"$f":"IF('Enrollment Form'!$A992<>\"\",\"Y\",\"N\")","v":"N"},{"$f":"IF(AND('Enrollment Form'!$B992=\"\",'Enrollment Form'!$C992<>\"\"),\"N\",IF($B985=\"N\",\"\",\"Y\"))","v":""},{"$f":"IF(OR($B985=\"N\",'Enrollment Form'!G992=\"\"),\"\",IF('Enrollment Form'!$B992<>\"Subscriber\",\"\",IF('Enrollment Form'!$G992='Enrollment Form'!$H992,\"Y\",\"N\")))","v":""},{"$f":"IF($B985=\"N\",\"\",IF(AND(COUNTIFS('Enrollment Form'!$H$11:$H$1000,'Enrollment Form'!$H992,'Enrollment Form'!$B$11:$B$1000,'Enrollment Form'!$B992)>1,'Enrollment Form'!$H992<>\"\"),\"N\",\"Y\"))","v":""},{"$f":"IF($B985=\"N\",\"\",IF(LEN('Enrollment Form'!$Y992)=0,\"\",IF(LEN('Enrollment Form'!$Y992)<>5,\"N\",\"Y\")))","v":""},{"$f":"IF($B985=\"N\",\"\",IF(LEN('Enrollment Form'!$AD992=0),\"\",IF(LEN('Enrollment Form'!$AD992)<>5,\"N\",\"Y\")))","v":""},{"$f":"IF($B985=\"N\",\"\",IF(LEN('Enrollment Form'!$BS992=0),\"\",IF(LEN('Enrollment Form'!$BS992)<>5,\"N\",\"Y\")))","v":""},{"$f":"IF($B985=\"N\",\"\",IF(LEN('Enrollment Form'!$AE992)=0,\"\",IF(LEN('Enrollment Form'!$AE992)<>10,\"N\",\"Y\")))","v":""},{"$f":"IF($B985=\"N\",\"\",IF(LEN('Enrollment Form'!$AF992)=0,\"\",IF(LEN('Enrollment Form'!$AF992)<>10,\"N\",\"Y\")))","v":""},{"$f":"IF('Enrollment Form'!$O992<>\"Graded\",\"-\",IF(AND('Enrollment Form'!$O992=\"Graded\",'Enrollment Form'!$AR992<>\"\"),\"Y\",\"N\"))","v":"-"},{"$f":"IF($B985=\"N\",\"\",IF(OR('Enrollment Form'!$B992<>\"Subscriber\",'Enrollment Form'!$C992=\"ROC\"),\"-\",IF(AND('Enrollment Form'!$B992=\"Subscriber\",'Enrollment Form'!$C992=\"Enroll\",'Enrollment Form'!$AJ992<>\"\"),\"Y\",\"N\")))","v":""},{"$f":"IF($B985=\"N\",\"\",IF(OR('Enrollment Form'!$B992<>\"Subscriber\",'Enrollment Form'!$C992=\"ROC\"),\"-\",IF(AND('Enrollment Form'!$B992=\"Subscriber\",'Enrollment Form'!$C992=\"Enroll\",'Enrollment Form'!$AK992<>\"\"),\"Y\",\"N\")))","v":""},{"$f":"IF($B985=\"N\",\"\",IF(OR('Enrollment Form'!$B992<>\"Subscriber\",'Enrollment Form'!$C992=\"ROC\"),\"-\",IF(AND('Enrollment Form'!$B992=\"Subscriber\",'Enrollment Form'!$C992=\"Enroll\",'Enrollment Form'!$AL992<>\"\"),\"Y\",\"N\")))","v":""},{"$f":"IF($B985=\"N\",\"\",IF(OR('Enrollment Form'!$B992<>\"Subscriber\",'Enrollment Form'!$C992=\"ROC\"),\"-\",IF(AND('Enrollment Form'!$B992=\"Subscriber\",'Enrollment Form'!$C992=\"Enroll\",'Enrollment Form'!$AP992<>\"\"),\"Y\",\"N\")))","v":""},{"$f":"IF($B985=\"N\",\"\",IF(OR('Enrollment Form'!$B992<>\"Subscriber\",'Enrollment Form'!$C992=\"ROC\"),\"-\",IF(AND('Enrollment Form'!$B992=\"Subscriber\",'Enrollment Form'!$C992=\"Enroll\",'Enrollment Form'!$AQ992<>\"\"),\"Y\",\"N\")))","v":""},{"$f":"IF($B985=\"N\",\"\",IF(OR('Enrollment Form'!$B992<>\"Subscriber\",'Enrollment Form'!$C992=\"ROC\"),\"-\",IF(AND('Enrollment Form'!$B992=\"Subscriber\",'Enrollment Form'!$C992=\"Enroll\",'Enrollment Form'!$AS992<>\"\"),\"Y\",\"N\")))","v":""},{"$f":"IF($B985=\"N\",\"\",IF($Q985=\"-\",\"-\",IF(AND($Q985=\"Y\",'Enrollment Form'!$AS992=\"No\"),\"-\",IF(AND($Q985=\"Y\",'Enrollment Form'!$AS992=\"Yes\",'Enrollment Form'!$AT992<>\"\"),\"Y\",\"N\"))))","v":""},{"$f":"IF($B985=\"N\",\"\",IF(OR('Enrollment Form'!$B992<>\"Subscriber\",'Enrollment Form'!$C992=\"ROC\"),\"-\",IF(AND('Enrollment Form'!$B992=\"Subscriber\",'Enrollment Form'!$C992=\"Enroll\",'Enrollment Form'!$CV992<>\"\"),\"Y\",\"N\")))","v":""},{"$f":"IF($B985=\"N\",\"\",IF($S985=\"-\",\"-\",IF(AND($S985=\"Y\",'Enrollment Form'!$CV992=\"No\"),\"-\",IF(AND($S985=\"Y\",'Enrollment Form'!$CV992=\"Yes\",'Enrollment Form'!$CW992<>\"\"),\"Y\",\"N\"))))","v":""},{"$f":"IF(OR('Enrollment Form'!$AY992=\"Yes\",'Enrollment Form'!$AY992=\"\"),\"-\",IF(OR(AND('Enrollment Form'!$AY992=\"No\",ISERROR(FIND(\"HMO\",VLOOKUP('Enrollment Form'!G992,'Enrollment Form'!H$11:J$1000,3,FALSE),1))=FALSE,COUNTA('Enrollment Form'!$AZ992:$BC992)=4),AND('Enrollment Form'!$AY992=\"No\",ISERROR(FIND(\"HMO\",VLOOKUP('Enrollment Form'!G992,'Enrollment Form'!H$11:J$1000,3,FALSE),1))=FALSE,COUNTA('Enrollment Form'!$BT992:$BW992)=4)),\"Y\",\"N\"))","v":"-"},{"$f":"IF($B985=\"N\",\"\",IF('Enrollment Form'!$B992=\"Subscriber\",\"-\",IF(COUNTA('Enrollment Form'!$BL992,'Enrollment Form'!$BN992)=2,\"Y\",\"N\")))","v":""},{"$f":"IF($B985=\"N\",\"\",IF(OR('Enrollment Form'!$AX992=\"\",'Enrollment Form'!$AX992=\"No\"),\"-\",IF(AND('Enrollment Form'!$AX992=\"Yes\",COUNTA('Enrollment Form'!$CR992)=1),\"Y\",\"N\")))","v":""},{"$f":"IF(OR('Enrollment Form'!$CR992=\"\",'Enrollment Form'!$CR992=\"No\"),\"-\",IF(COUNTA('Enrollment Form'!$CT992:$CU992)=2,\"Y\",\"N\"))","v":"-"},{"$f":"IF($B985=\"N\",\"\",IF(COUNTIF('Enrollment Form'!$DG992:$DP992,\"Other\")=COUNTA('Enrollment Form'!$DK992,'Enrollment Form'!$DH992,'Enrollment Form'!$DN992,'Enrollment Form'!$DQ992),\"Y\",\"N\"))","v":""},{"$f":"IF($B985=\"N\",\"\",IF(OR('Enrollment Form'!B992<>\"Subscriber\",'Enrollment Form'!C992=\"ROC\",COUNTIF('Enrollment Form'!AV992:AW992,\"Yes\")>=1),\"-\",IF(AND('Enrollment Form'!C992=\"Enroll\",COUNTIF('Enrollment Form'!AV992:AW992,\"No\")=2,'Enrollment Form'!AX992=\"\"),\"N\",\"Y\")))","v":""},{"$f":"IF(OR(B985=\"N\",'Enrollment Form'!B992<>\"Subscriber\",'Enrollment Form'!C992=\"ROC\",'Enrollment Form'!O992<>\"Multiple of Salary\"),\"-\",IF(COUNTA('Enrollment Form'!T992:U992)<2,\"N\",\"Y\"))","v":"-"},{"$f":"IF(B985=\"N\",\"\",IF(OR('Enrollment Form'!C992=\"ROC\",'Enrollment Form'!B992<>\"Subscriber\",'Enrollment Form'!O992=\"Waive\",'Enrollment Form'!O992=\"\"),\"-\",IF('Enrollment Form'!P992=\"\",\"N\",\"Y\")))","v":""},{"$f":"IF($B985=\"N\",\"\",IF(AND('Enrollment Form'!$C992=\"ROC\",'Enrollment Form'!$DR992<>\"\"),\"Y\",IF(AND('Enrollment Form'!$C992=\"ROC\",'Enrollment Form'!$DR992=\"\"),\"N\",IF(AND('Enrollment Form'!$C992=\"Enroll\",'Enrollment Form'!$B992=\"Subscriber\",'Enrollment Form'!$CX992=\"No\",'Enrollment Form'!$DR992=\"\"),\"N\",IF(AND('Enrollment Form'!$C992=\"Enroll\",'Enrollment Form'!$B992=\"Subscriber\",'Enrollment Form'!$CX992=\"Yes\"),\"-\",\"Y\")))))","v":""},{"$f":"IF($B985=\"N\",\"\",IF(AND('Enrollment Form'!$C992=\"ROC\",'Enrollment Form'!$DS992<>\"\"),\"Y\",IF(AND('Enrollment Form'!$C992=\"ROC\",'Enrollment Form'!$DS992=\"\"),\"N\",IF(AND('Enrollment Form'!$C992=\"Enroll\",'Enrollment Form'!$B992=\"Subscriber\",'Enrollment Form'!$CX992=\"No\",'Enrollment Form'!$DS992=\"\"),\"N\",IF(AND('Enrollment Form'!$C992=\"Enroll\",'Enrollment Form'!$B992=\"Subscriber\",'Enrollment Form'!$CX992=\"Yes\"),\"-\",\"Y\")))))","v":""},{"$f":"IF('Enrollment Form'!AH992=\"\",\"\",IF(ISERROR(SEARCH(\".\",'Enrollment Form'!AH992,SEARCH(\"@\",'Enrollment Form'!AH992))),\"N\",\"Y\"))","v":""},{"$f":"IF(OR($B985=\"N\",'Enrollment Form'!$G992=\"\"),\"\",IF('Enrollment Form'!$B992<>\"Subscriber\",\"-\",IF(COUNTIF('Enrollment Form'!$AV992:$AW992,\"Yes\")=2,\"N\",\"Y\")))","v":""},{"$f":"IF(OR('Enrollment Form'!$CJ992=\"\",'Enrollment Form'!$CJ992=\"No\"),\"-\",IF(AND('Enrollment Form'!$CJ992=\"Yes\",'Enrollment Form'!$CK992=\"\"),\"N\",\"Y\"))","v":"-"},{"$f":"IF(OR('Enrollment Form'!$CL992=\"\",'Enrollment Form'!$CL992=\"No\"),\"-\",IF(AND('Enrollment Form'!$CL992=\"Yes\",'Enrollment Form'!$CM992=\"\"),\"N\",\"Y\"))","v":"-"},{"$f":"IF(OR('Enrollment Form'!$CN992=\"\",'Enrollment Form'!$CN992=\"No\"),\"-\",IF(AND('Enrollment Form'!$CN992=\"Yes\",'Enrollment Form'!$CO992=\"\"),\"N\",\"Y\"))","v":"-"},{"$f":"IF(OR('Enrollment Form'!$CN992=\"\",'Enrollment Form'!$CN992=\"No\"),\"-\",IF(AND('Enrollment Form'!$CN992=\"Yes\",'Enrollment Form'!$CP992=\"\"),\"N\",\"Y\"))","v":"-"},{"$f":"IF('Enrollment Form'!B992<>\"Subscriber\",\"-\",IF(AND('Enrollment Form'!B992=\"Subscriber\",'Enrollment Form'!C992=\"Enroll\",'Enrollment Form'!AA992=\"\"),\"N\",\"Y\"))","v":"-"},{"$f":"IF(OR('Enrollment Form'!B992=\"Subscriber\",'Enrollment Form'!B992=\"\"),\"-\",IF('Enrollment Form'!BP992=\"\",\"N\",\"Y\"))","v":"-"},{"$f":"IF('Enrollment Form'!B992<>\"Subscriber\",\"-\",IF(AND('Enrollment Form'!B992=\"Subscriber\",'Enrollment Form'!G992=\"\"),\"N\",\"Y\"))","v":"-"},{"$f":"IF('Enrollment Form'!A992=\"\",\"\",IF('Enrollment Form'!B992=\"Subscriber\",\"-\",IF(AND('Enrollment Form'!B992<>\"Subscriber\",'Enrollment Form'!G992='Enrollment Form'!H992),\"N\",\"Y\")))","v":""},0]
[993,{"$f":"IF('Enrollment Form'!$A993<>\"\",\"Y\",\"N\")","v":"N"},{"$f":"IF(AND('Enrollment Form'!$B993=\"\",'Enrollment Form'!$C993<>\"\"),\"N\",IF($B986=\"N\",\"\",\"Y\"))","v":""},{"$f":"IF(OR($B986=\"N\",'Enrollment Form'!G993=\"\"),\"\",IF('Enrollment Form'!$B993<>\"Subscriber\",\"\",IF('Enrollment Form'!$G993='Enrollment Form'!$H993,\"Y\",\"N\")))","v":""},{"$f":"IF($B986=\"N\",\"\",IF(AND(COUNTIFS('Enrollment Form'!$H$11:$H$1000,'Enrollment Form'!$H993,'Enrollment Form'!$B$11:$B$1000,'Enrollment Form'!$B993)>1,'Enrollment Form'!$H993<>\"\"),\"N\",\"Y\"))","v":""},{"$f":"IF($B986=\"N\",\"\",IF(LEN('Enrollment Form'!$Y993)=0,\"\",IF(LEN('Enrollment Form'!$Y993)<>5,\"N\",\"Y\")))","v":""},{"$f":"IF($B986=\"N\",\"\",IF(LEN('Enrollment Form'!$AD993=0),\"\",IF(LEN('Enrollment Form'!$AD993)<>5,\"N\",\"Y\")))","v":""},{"$f":"IF($B986=\"N\",\"\",IF(LEN('Enrollment Form'!$BS993=0),\"\",IF(LEN('Enrollment Form'!$BS993)<>5,\"N\",\"Y\")))","v":""},{"$f":"IF($B986=\"N\",\"\",IF(LEN('Enrollment Form'!$AE993)=0,\"\",IF(LEN('Enrollment Form'!$AE993)<>10,\"N\",\"Y\")))","v":""},{"$f":"IF($B986=\"N\",\"\",IF(LEN('Enrollment Form'!$AF993)=0,\"\",IF(LEN('Enrollment Form'!$AF993)<>10,\"N\",\"Y\")))","v":""},{"$f":"IF('Enrollment Form'!$O993<>\"Graded\",\"-\",IF(AND('Enrollment Form'!$O993=\"Graded\",'Enrollment Form'!$AR993<>\"\"),\"Y\",\"N\"))","v":"-"},{"$f":"IF($B986=\"N\",\"\",IF(OR('Enrollment Form'!$B993<>\"Subscriber\",'Enrollment Form'!$C993=\"ROC\"),\"-\",IF(AND('Enrollment Form'!$B993=\"Subscriber\",'Enrollment Form'!$C993=\"Enroll\",'Enrollment Form'!$AJ993<>\"\"),\"Y\",\"N\")))","v":""},{"$f":"IF($B986=\"N\",\"\",IF(OR('Enrollment Form'!$B993<>\"Subscriber\",'Enrollment Form'!$C993=\"ROC\"),\"-\",IF(AND('Enrollment Form'!$B993=\"Subscriber\",'Enrollment Form'!$C993=\"Enroll\",'Enrollment Form'!$AK993<>\"\"),\"Y\",\"N\")))","v":""},{"$f":"IF($B986=\"N\",\"\",IF(OR('Enrollment Form'!$B993<>\"Subscriber\",'Enrollment Form'!$C993=\"ROC\"),\"-\",IF(AND('Enrollment Form'!$B993=\"Subscriber\",'Enrollment Form'!$C993=\"Enroll\",'Enrollment Form'!$AL993<>\"\"),\"Y\",\"N\")))","v":""},{"$f":"IF($B986=\"N\",\"\",IF(OR('Enrollment Form'!$B993<>\"Subscriber\",'Enrollment Form'!$C993=\"ROC\"),\"-\",IF(AND('Enrollment Form'!$B993=\"Subscriber\",'Enrollment Form'!$C993=\"Enroll\",'Enrollment Form'!$AP993<>\"\"),\"Y\",\"N\")))","v":""},{"$f":"IF($B986=\"N\",\"\",IF(OR('Enrollment Form'!$B993<>\"Subscriber\",'Enrollment Form'!$C993=\"ROC\"),\"-\",IF(AND('Enrollment Form'!$B993=\"Subscriber\",'Enrollment Form'!$C993=\"Enroll\",'Enrollment Form'!$AQ993<>\"\"),\"Y\",\"N\")))","v":""},{"$f":"IF($B986=\"N\",\"\",IF(OR('Enrollment Form'!$B993<>\"Subscriber\",'Enrollment Form'!$C993=\"ROC\"),\"-\",IF(AND('Enrollment Form'!$B993=\"Subscriber\",'Enrollment Form'!$C993=\"Enroll\",'Enrollment Form'!$AS993<>\"\"),\"Y\",\"N\")))","v":""},{"$f":"IF($B986=\"N\",\"\",IF($Q986=\"-\",\"-\",IF(AND($Q986=\"Y\",'Enrollment Form'!$AS993=\"No\"),\"-\",IF(AND($Q986=\"Y\",'Enrollment Form'!$AS993=\"Yes\",'Enrollment Form'!$AT993<>\"\"),\"Y\",\"N\"))))","v":""},{"$f":"IF($B986=\"N\",\"\",IF(OR('Enrollment Form'!$B993<>\"Subscriber\",'Enrollment Form'!$C993=\"ROC\"),\"-\",IF(AND('Enrollment Form'!$B993=\"Subscriber\",'Enrollment Form'!$C993=\"Enroll\",'Enrollment Form'!$CV993<>\"\"),\"Y\",\"N\")))","v":""},{"$f":"IF($B986=\"N\",\"\",IF($S986=\"-\",\"-\",IF(AND($S986=\"Y\",'Enrollment Form'!$CV993=\"No\"),\"-\",IF(AND($S986=\"Y\",'Enrollment Form'!$CV993=\"Yes\",'Enrollment Form'!$CW993<>\"\"),\"Y\",\"N\"))))","v":""},{"$f":"IF(OR('Enrollment Form'!$AY993=\"Yes\",'Enrollment Form'!$AY993=\"\"),\"-\",IF(OR(AND('Enrollment Form'!$AY993=\"No\",ISERROR(FIND(\"HMO\",VLOOKUP('Enrollment Form'!G993,'Enrollment Form'!H$11:J$1000,3,FALSE),1))=FALSE,COUNTA('Enrollment Form'!$AZ993:$BC993)=4),AND('Enrollment Form'!$AY993=\"No\",ISERROR(FIND(\"HMO\",VLOOKUP('Enrollment Form'!G993,'Enrollment Form'!H$11:J$1000,3,FALSE),1))=FALSE,COUNTA('Enrollment Form'!$BT993:$BW993)=4)),\"Y\",\"N\"))","v":"-"},{"$f":"IF($B986=\"N\",\"\",IF('Enrollment Form'!$B993=\"Subscriber\",\"-\",IF(COUNTA('Enrollment Form'!$BL993,'Enrollment Form'!$BN993)=2,\"Y\",\"N\")))","v":""},{"$f":"IF($B986=\"N\",\"\",IF(OR('Enrollment Form'!$AX993=\"\",'Enrollment Form'!$AX993=\"No\"),\"-\",IF(AND('Enrollment Form'!$AX993=\"Yes\",COUNTA('Enrollment Form'!$CR993)=1),\"Y\",\"N\")))","v":""},{"$f":"IF(OR('Enrollment Form'!$CR993=\"\",'Enrollment Form'!$CR993=\"No\"),\"-\",IF(COUNTA('Enrollment Form'!$CT993:$CU993)=2,\"Y\",\"N\"))","v":"-"},{"$f":"IF($B986=\"N\",\"\",IF(COUNTIF('Enrollment Form'!$DG993:$DP993,\"Other\")=COUNTA('Enrollment Form'!$DK993,'Enrollment Form'!$DH993,'Enrollment Form'!$DN993,'Enrollment Form'!$DQ993),\"Y\",\"N\"))","v":""},{"$f":"IF($B986=\"N\",\"\",IF(OR('Enrollment Form'!B993<>\"Subscriber\",'Enrollment Form'!C993=\"ROC\",COUNTIF('Enrollment Form'!AV993:AW993,\"Yes\")>=1),\"-\",IF(AND('Enrollment Form'!C993=\"Enroll\",COUNTIF('Enrollment Form'!AV993:AW993,\"No\")=2,'Enrollment Form'!AX993=\"\"),\"N\",\"Y\")))","v":""},{"$f":"IF(OR(B986=\"N\",'Enrollment Form'!B993<>\"Subscriber\",'Enrollment Form'!C993=\"ROC\",'Enrollment Form'!O993<>\"Multiple of Salary\"),\"-\",IF(COUNTA('Enrollment Form'!T993:U993)<2,\"N\",\"Y\"))","v":"-"},{"$f":"IF(B986=\"N\",\"\",IF(OR('Enrollment Form'!C993=\"ROC\",'Enrollment Form'!B993<>\"Subscriber\",'Enrollment Form'!O993=\"Waive\",'Enrollment Form'!O993=\"\"),\"-\",IF('Enrollment Form'!P993=\"\",\"N\",\"Y\")))","v":""},{"$f":"IF($B986=\"N\",\"\",IF(AND('Enrollment Form'!$C993=\"ROC\",'Enrollment Form'!$DR993<>\"\"),\"Y\",IF(AND('Enrollment Form'!$C993=\"ROC\",'Enrollment Form'!$DR993=\"\"),\"N\",IF(AND('Enrollment Form'!$C993=\"Enroll\",'Enrollment Form'!$B993=\"Subscriber\",'Enrollment Form'!$CX993=\"No\",'Enrollment Form'!$DR993=\"\"),\"N\",IF(AND('Enrollment Form'!$C993=\"Enroll\",'Enrollment Form'!$B993=\"Subscriber\",'Enrollment Form'!$CX993=\"Yes\"),\"-\",\"Y\")))))","v":""},{"$f":"IF($B986=\"N\",\"\",IF(AND('Enrollment Form'!$C993=\"ROC\",'Enrollment Form'!$DS993<>\"\"),\"Y\",IF(AND('Enrollment Form'!$C993=\"ROC\",'Enrollment Form'!$DS993=\"\"),\"N\",IF(AND('Enrollment Form'!$C993=\"Enroll\",'Enrollment Form'!$B993=\"Subscriber\",'Enrollment Form'!$CX993=\"No\",'Enrollment Form'!$DS993=\"\"),\"N\",IF(AND('Enrollment Form'!$C993=\"Enroll\",'Enrollment Form'!$B993=\"Subscriber\",'Enrollment Form'!$CX993=\"Yes\"),\"-\",\"Y\")))))","v":""},{"$f":"IF('Enrollment Form'!AH993=\"\",\"\",IF(ISERROR(SEARCH(\".\",'Enrollment Form'!AH993,SEARCH(\"@\",'Enrollment Form'!AH993))),\"N\",\"Y\"))","v":""},{"$f":"IF(OR($B986=\"N\",'Enrollment Form'!$G993=\"\"),\"\",IF('Enrollment Form'!$B993<>\"Subscriber\",\"-\",IF(COUNTIF('Enrollment Form'!$AV993:$AW993,\"Yes\")=2,\"N\",\"Y\")))","v":""},{"$f":"IF(OR('Enrollment Form'!$CJ993=\"\",'Enrollment Form'!$CJ993=\"No\"),\"-\",IF(AND('Enrollment Form'!$CJ993=\"Yes\",'Enrollment Form'!$CK993=\"\"),\"N\",\"Y\"))","v":"-"},{"$f":"IF(OR('Enrollment Form'!$CL993=\"\",'Enrollment Form'!$CL993=\"No\"),\"-\",IF(AND('Enrollment Form'!$CL993=\"Yes\",'Enrollment Form'!$CM993=\"\"),\"N\",\"Y\"))","v":"-"},{"$f":"IF(OR('Enrollment Form'!$CN993=\"\",'Enrollment Form'!$CN993=\"No\"),\"-\",IF(AND('Enrollment Form'!$CN993=\"Yes\",'Enrollment Form'!$CO993=\"\"),\"N\",\"Y\"))","v":"-"},{"$f":"IF(OR('Enrollment Form'!$CN993=\"\",'Enrollment Form'!$CN993=\"No\"),\"-\",IF(AND('Enrollment Form'!$CN993=\"Yes\",'Enrollment Form'!$CP993=\"\"),\"N\",\"Y\"))","v":"-"},{"$f":"IF('Enrollment Form'!B993<>\"Subscriber\",\"-\",IF(AND('Enrollment Form'!B993=\"Subscriber\",'Enrollment Form'!C993=\"Enroll\",'Enrollment Form'!AA993=\"\"),\"N\",\"Y\"))","v":"-"},{"$f":"IF(OR('Enrollment Form'!B993=\"Subscriber\",'Enrollment Form'!B993=\"\"),\"-\",IF('Enrollment Form'!BP993=\"\",\"N\",\"Y\"))","v":"-"},{"$f":"IF('Enrollment Form'!B993<>\"Subscriber\",\"-\",IF(AND('Enrollment Form'!B993=\"Subscriber\",'Enrollment Form'!G993=\"\"),\"N\",\"Y\"))","v":"-"},{"$f":"IF('Enrollment Form'!A993=\"\",\"\",IF('Enrollment Form'!B993=\"Subscriber\",\"-\",IF(AND('Enrollment Form'!B993<>\"Subscriber\",'Enrollment Form'!G993='Enrollment Form'!H993),\"N\",\"Y\")))","v":""},0]
[994,{"$f":"IF('Enrollment Form'!$A994<>\"\",\"Y\",\"N\")","v":"N"},{"$f":"IF(AND('Enrollment Form'!$B994=\"\",'Enrollment Form'!$C994<>\"\"),\"N\",IF($B987=\"N\",\"\",\"Y\"))","v":""},{"$f":"IF(OR($B987=\"N\",'Enrollment Form'!G994=\"\"),\"\",IF('Enrollment Form'!$B994<>\"Subscriber\",\"\",IF('Enrollment Form'!$G994='Enrollment Form'!$H994,\"Y\",\"N\")))","v":""},{"$f":"IF($B987=\"N\",\"\",IF(AND(COUNTIFS('Enrollment Form'!$H$11:$H$1000,'Enrollment Form'!$H994,'Enrollment Form'!$B$11:$B$1000,'Enrollment Form'!$B994)>1,'Enrollment Form'!$H994<>\"\"),\"N\",\"Y\"))","v":""},{"$f":"IF($B987=\"N\",\"\",IF(LEN('Enrollment Form'!$Y994)=0,\"\",IF(LEN('Enrollment Form'!$Y994)<>5,\"N\",\"Y\")))","v":""},{"$f":"IF($B987=\"N\",\"\",IF(LEN('Enrollment Form'!$AD994=0),\"\",IF(LEN('Enrollment Form'!$AD994)<>5,\"N\",\"Y\")))","v":""},{"$f":"IF($B987=\"N\",\"\",IF(LEN('Enrollment Form'!$BS994=0),\"\",IF(LEN('Enrollment Form'!$BS994)<>5,\"N\",\"Y\")))","v":""},{"$f":"IF($B987=\"N\",\"\",IF(LEN('Enrollment Form'!$AE994)=0,\"\",IF(LEN('Enrollment Form'!$AE994)<>10,\"N\",\"Y\")))","v":""},{"$f":"IF($B987=\"N\",\"\",IF(LEN('Enrollment Form'!$AF994)=0,\"\",IF(LEN('Enrollment Form'!$AF994)<>10,\"N\",\"Y\")))","v":""},{"$f":"IF('Enrollment Form'!$O994<>\"Graded\",\"-\",IF(AND('Enrollment Form'!$O994=\"Graded\",'Enrollment Form'!$AR994<>\"\"),\"Y\",\"N\"))","v":"-"},{"$f":"IF($B987=\"N\",\"\",IF(OR('Enrollment Form'!$B994<>\"Subscriber\",'Enrollment Form'!$C994=\"ROC\"),\"-\",IF(AND('Enrollment Form'!$B994=\"Subscriber\",'Enrollment Form'!$C994=\"Enroll\",'Enrollment Form'!$AJ994<>\"\"),\"Y\",\"N\")))","v":""},{"$f":"IF($B987=\"N\",\"\",IF(OR('Enrollment Form'!$B994<>\"Subscriber\",'Enrollment Form'!$C994=\"ROC\"),\"-\",IF(AND('Enrollment Form'!$B994=\"Subscriber\",'Enrollment Form'!$C994=\"Enroll\",'Enrollment Form'!$AK994<>\"\"),\"Y\",\"N\")))","v":""},{"$f":"IF($B987=\"N\",\"\",IF(OR('Enrollment Form'!$B994<>\"Subscriber\",'Enrollment Form'!$C994=\"ROC\"),\"-\",IF(AND('Enrollment Form'!$B994=\"Subscriber\",'Enrollment Form'!$C994=\"Enroll\",'Enrollment Form'!$AL994<>\"\"),\"Y\",\"N\")))","v":""},{"$f":"IF($B987=\"N\",\"\",IF(OR('Enrollment Form'!$B994<>\"Subscriber\",'Enrollment Form'!$C994=\"ROC\"),\"-\",IF(AND('Enrollment Form'!$B994=\"Subscriber\",'Enrollment Form'!$C994=\"Enroll\",'Enrollment Form'!$AP994<>\"\"),\"Y\",\"N\")))","v":""},{"$f":"IF($B987=\"N\",\"\",IF(OR('Enrollment Form'!$B994<>\"Subscriber\",'Enrollment Form'!$C994=\"ROC\"),\"-\",IF(AND('Enrollment Form'!$B994=\"Subscriber\",'Enrollment Form'!$C994=\"Enroll\",'Enrollment Form'!$AQ994<>\"\"),\"Y\",\"N\")))","v":""},{"$f":"IF($B987=\"N\",\"\",IF(OR('Enrollment Form'!$B994<>\"Subscriber\",'Enrollment Form'!$C994=\"ROC\"),\"-\",IF(AND('Enrollment Form'!$B994=\"Subscriber\",'Enrollment Form'!$C994=\"Enroll\",'Enrollment Form'!$AS994<>\"\"),\"Y\",\"N\")))","v":""},{"$f":"IF($B987=\"N\",\"\",IF($Q987=\"-\",\"-\",IF(AND($Q987=\"Y\",'Enrollment Form'!$AS994=\"No\"),\"-\",IF(AND($Q987=\"Y\",'Enrollment Form'!$AS994=\"Yes\",'Enrollment Form'!$AT994<>\"\"),\"Y\",\"N\"))))","v":""},{"$f":"IF($B987=\"N\",\"\",IF(OR('Enrollment Form'!$B994<>\"Subscriber\",'Enrollment Form'!$C994=\"ROC\"),\"-\",IF(AND('Enrollment Form'!$B994=\"Subscriber\",'Enrollment Form'!$C994=\"Enroll\",'Enrollment Form'!$CV994<>\"\"),\"Y\",\"N\")))","v":""},{"$f":"IF($B987=\"N\",\"\",IF($S987=\"-\",\"-\",IF(AND($S987=\"Y\",'Enrollment Form'!$CV994=\"No\"),\"-\",IF(AND($S987=\"Y\",'Enrollment Form'!$CV994=\"Yes\",'Enrollment Form'!$CW994<>\"\"),\"Y\",\"N\"))))","v":""},{"$f":"IF(OR('Enrollment Form'!$AY994=\"Yes\",'Enrollment Form'!$AY994=\"\"),\"-\",IF(OR(AND('Enrollment Form'!$AY994=\"No\",ISERROR(FIND(\"HMO\",VLOOKUP('Enrollment Form'!G994,'Enrollment Form'!H$11:J$1000,3,FALSE),1))=FALSE,COUNTA('Enrollment Form'!$AZ994:$BC994)=4),AND('Enrollment Form'!$AY994=\"No\",ISERROR(FIND(\"HMO\",VLOOKUP('Enrollment Form'!G994,'Enrollment Form'!H$11:J$1000,3,FALSE),1))=FALSE,COUNTA('Enrollment Form'!$BT994:$BW994)=4)),\"Y\",\"N\"))","v":"-"},{"$f":"IF($B987=\"N\",\"\",IF('Enrollment Form'!$B994=\"Subscriber\",\"-\",IF(COUNTA('Enrollment Form'!$BL994,'Enrollment Form'!$BN994)=2,\"Y\",\"N\")))","v":""},{"$f":"IF($B987=\"N\",\"\",IF(OR('Enrollment Form'!$AX994=\"\",'Enrollment Form'!$AX994=\"No\"),\"-\",IF(AND('Enrollment Form'!$AX994=\"Yes\",COUNTA('Enrollment Form'!$CR994)=1),\"Y\",\"N\")))","v":""},{"$f":"IF(OR('Enrollment Form'!$CR994=\"\",'Enrollment Form'!$CR994=\"No\"),\"-\",IF(COUNTA('Enrollment Form'!$CT994:$CU994)=2,\"Y\",\"N\"))","v":"-"},{"$f":"IF($B987=\"N\",\"\",IF(COUNTIF('Enrollment Form'!$DG994:$DP994,\"Other\")=COUNTA('Enrollment Form'!$DK994,'Enrollment Form'!$DH994,'Enrollment Form'!$DN994,'Enrollment Form'!$DQ994),\"Y\",\"N\"))","v":""},{"$f":"IF($B987=\"N\",\"\",IF(OR('Enrollment Form'!B994<>\"Subscriber\",'Enrollment Form'!C994=\"ROC\",COUNTIF('Enrollment Form'!AV994:AW994,\"Yes\")>=1),\"-\",IF(AND('Enrollment Form'!C994=\"Enroll\",COUNTIF('Enrollment Form'!AV994:AW994,\"No\")=2,'Enrollment Form'!AX994=\"\"),\"N\",\"Y\")))","v":""},{"$f":"IF(OR(B987=\"N\",'Enrollment Form'!B994<>\"Subscriber\",'Enrollment Form'!C994=\"ROC\",'Enrollment Form'!O994<>\"Multiple of Salary\"),\"-\",IF(COUNTA('Enrollment Form'!T994:U994)<2,\"N\",\"Y\"))","v":"-"},{"$f":"IF(B987=\"N\",\"\",IF(OR('Enrollment Form'!C994=\"ROC\",'Enrollment Form'!B994<>\"Subscriber\",'Enrollment Form'!O994=\"Waive\",'Enrollment Form'!O994=\"\"),\"-\",IF('Enrollment Form'!P994=\"\",\"N\",\"Y\")))","v":""},{"$f":"IF($B987=\"N\",\"\",IF(AND('Enrollment Form'!$C994=\"ROC\",'Enrollment Form'!$DR994<>\"\"),\"Y\",IF(AND('Enrollment Form'!$C994=\"ROC\",'Enrollment Form'!$DR994=\"\"),\"N\",IF(AND('Enrollment Form'!$C994=\"Enroll\",'Enrollment Form'!$B994=\"Subscriber\",'Enrollment Form'!$CX994=\"No\",'Enrollment Form'!$DR994=\"\"),\"N\",IF(AND('Enrollment Form'!$C994=\"Enroll\",'Enrollment Form'!$B994=\"Subscriber\",'Enrollment Form'!$CX994=\"Yes\"),\"-\",\"Y\")))))","v":""},{"$f":"IF($B987=\"N\",\"\",IF(AND('Enrollment Form'!$C994=\"ROC\",'Enrollment Form'!$DS994<>\"\"),\"Y\",IF(AND('Enrollment Form'!$C994=\"ROC\",'Enrollment Form'!$DS994=\"\"),\"N\",IF(AND('Enrollment Form'!$C994=\"Enroll\",'Enrollment Form'!$B994=\"Subscriber\",'Enrollment Form'!$CX994=\"No\",'Enrollment Form'!$DS994=\"\"),\"N\",IF(AND('Enrollment Form'!$C994=\"Enroll\",'Enrollment Form'!$B994=\"Subscriber\",'Enrollment Form'!$CX994=\"Yes\"),\"-\",\"Y\")))))","v":""},{"$f":"IF('Enrollment Form'!AH994=\"\",\"\",IF(ISERROR(SEARCH(\".\",'Enrollment Form'!AH994,SEARCH(\"@\",'Enrollment Form'!AH994))),\"N\",\"Y\"))","v":""},{"$f":"IF(OR($B987=\"N\",'Enrollment Form'!$G994=\"\"),\"\",IF('Enrollment Form'!$B994<>\"Subscriber\",\"-\",IF(COUNTIF('Enrollment Form'!$AV994:$AW994,\"Yes\")=2,\"N\",\"Y\")))","v":""},{"$f":"IF(OR('Enrollment Form'!$CJ994=\"\",'Enrollment Form'!$CJ994=\"No\"),\"-\",IF(AND('Enrollment Form'!$CJ994=\"Yes\",'Enrollment Form'!$CK994=\"\"),\"N\",\"Y\"))","v":"-"},{"$f":"IF(OR('Enrollment Form'!$CL994=\"\",'Enrollment Form'!$CL994=\"No\"),\"-\",IF(AND('Enrollment Form'!$CL994=\"Yes\",'Enrollment Form'!$CM994=\"\"),\"N\",\"Y\"))","v":"-"},{"$f":"IF(OR('Enrollment Form'!$CN994=\"\",'Enrollment Form'!$CN994=\"No\"),\"-\",IF(AND('Enrollment Form'!$CN994=\"Yes\",'Enrollment Form'!$CO994=\"\"),\"N\",\"Y\"))","v":"-"},{"$f":"IF(OR('Enrollment Form'!$CN994=\"\",'Enrollment Form'!$CN994=\"No\"),\"-\",IF(AND('Enrollment Form'!$CN994=\"Yes\",'Enrollment Form'!$CP994=\"\"),\"N\",\"Y\"))","v":"-"},{"$f":"IF('Enrollment Form'!B994<>\"Subscriber\",\"-\",IF(AND('Enrollment Form'!B994=\"Subscriber\",'Enrollment Form'!C994=\"Enroll\",'Enrollment Form'!AA994=\"\"),\"N\",\"Y\"))","v":"-"},{"$f":"IF(OR('Enrollment Form'!B994=\"Subscriber\",'Enrollment Form'!B994=\"\"),\"-\",IF('Enrollment Form'!BP994=\"\",\"N\",\"Y\"))","v":"-"},{"$f":"IF('Enrollment Form'!B994<>\"Subscriber\",\"-\",IF(AND('Enrollment Form'!B994=\"Subscriber\",'Enrollment Form'!G994=\"\"),\"N\",\"Y\"))","v":"-"},{"$f":"IF('Enrollment Form'!A994=\"\",\"\",IF('Enrollment Form'!B994=\"Subscriber\",\"-\",IF(AND('Enrollment Form'!B994<>\"Subscriber\",'Enrollment Form'!G994='Enrollment Form'!H994),\"N\",\"Y\")))","v":""},0]
[995,{"$f":"IF('Enrollment Form'!$A995<>\"\",\"Y\",\"N\")","v":"N"},{"$f":"IF(AND('Enrollment Form'!$B995=\"\",'Enrollment Form'!$C995<>\"\"),\"N\",IF($B988=\"N\",\"\",\"Y\"))","v":""},{"$f":"IF(OR($B988=\"N\",'Enrollment Form'!G995=\"\"),\"\",IF('Enrollment Form'!$B995<>\"Subscriber\",\"\",IF('Enrollment Form'!$G995='Enrollment Form'!$H995,\"Y\",\"N\")))","v":""},{"$f":"IF($B988=\"N\",\"\",IF(AND(COUNTIFS('Enrollment Form'!$H$11:$H$1000,'Enrollment Form'!$H995,'Enrollment Form'!$B$11:$B$1000,'Enrollment Form'!$B995)>1,'Enrollment Form'!$H995<>\"\"),\"N\",\"Y\"))","v":""},{"$f":"IF($B988=\"N\",\"\",IF(LEN('Enrollment Form'!$Y995)=0,\"\",IF(LEN('Enrollment Form'!$Y995)<>5,\"N\",\"Y\")))","v":""},{"$f":"IF($B988=\"N\",\"\",IF(LEN('Enrollment Form'!$AD995=0),\"\",IF(LEN('Enrollment Form'!$AD995)<>5,\"N\",\"Y\")))","v":""},{"$f":"IF($B988=\"N\",\"\",IF(LEN('Enrollment Form'!$BS995=0),\"\",IF(LEN('Enrollment Form'!$BS995)<>5,\"N\",\"Y\")))","v":""},{"$f":"IF($B988=\"N\",\"\",IF(LEN('Enrollment Form'!$AE995)=0,\"\",IF(LEN('Enrollment Form'!$AE995)<>10,\"N\",\"Y\")))","v":""},{"$f":"IF($B988=\"N\",\"\",IF(LEN('Enrollment Form'!$AF995)=0,\"\",IF(LEN('Enrollment Form'!$AF995)<>10,\"N\",\"Y\")))","v":""},{"$f":"IF('Enrollment Form'!$O995<>\"Graded\",\"-\",IF(AND('Enrollment Form'!$O995=\"Graded\",'Enrollment Form'!$AR995<>\"\"),\"Y\",\"N\"))","v":"-"},{"$f":"IF($B988=\"N\",\"\",IF(OR('Enrollment Form'!$B995<>\"Subscriber\",'Enrollment Form'!$C995=\"ROC\"),\"-\",IF(AND('Enrollment Form'!$B995=\"Subscriber\",'Enrollment Form'!$C995=\"Enroll\",'Enrollment Form'!$AJ995<>\"\"),\"Y\",\"N\")))","v":""},{"$f":"IF($B988=\"N\",\"\",IF(OR('Enrollment Form'!$B995<>\"Subscriber\",'Enrollment Form'!$C995=\"ROC\"),\"-\",IF(AND('Enrollment Form'!$B995=\"Subscriber\",'Enrollment Form'!$C995=\"Enroll\",'Enrollment Form'!$AK995<>\"\"),\"Y\",\"N\")))","v":""},{"$f":"IF($B988=\"N\",\"\",IF(OR('Enrollment Form'!$B995<>\"Subscriber\",'Enrollment Form'!$C995=\"ROC\"),\"-\",IF(AND('Enrollment Form'!$B995=\"Subscriber\",'Enrollment Form'!$C995=\"Enroll\",'Enrollment Form'!$AL995<>\"\"),\"Y\",\"N\")))","v":""},{"$f":"IF($B988=\"N\",\"\",IF(OR('Enrollment Form'!$B995<>\"Subscriber\",'Enrollment Form'!$C995=\"ROC\"),\"-\",IF(AND('Enrollment Form'!$B995=\"Subscriber\",'Enrollment Form'!$C995=\"Enroll\",'Enrollment Form'!$AP995<>\"\"),\"Y\",\"N\")))","v":""},{"$f":"IF($B988=\"N\",\"\",IF(OR('Enrollment Form'!$B995<>\"Subscriber\",'Enrollment Form'!$C995=\"ROC\"),\"-\",IF(AND('Enrollment Form'!$B995=\"Subscriber\",'Enrollment Form'!$C995=\"Enroll\",'Enrollment Form'!$AQ995<>\"\"),\"Y\",\"N\")))","v":""},{"$f":"IF($B988=\"N\",\"\",IF(OR('Enrollment Form'!$B995<>\"Subscriber\",'Enrollment Form'!$C995=\"ROC\"),\"-\",IF(AND('Enrollment Form'!$B995=\"Subscriber\",'Enrollment Form'!$C995=\"Enroll\",'Enrollment Form'!$AS995<>\"\"),\"Y\",\"N\")))","v":""},{"$f":"IF($B988=\"N\",\"\",IF($Q988=\"-\",\"-\",IF(AND($Q988=\"Y\",'Enrollment Form'!$AS995=\"No\"),\"-\",IF(AND($Q988=\"Y\",'Enrollment Form'!$AS995=\"Yes\",'Enrollment Form'!$AT995<>\"\"),\"Y\",\"N\"))))","v":""},{"$f":"IF($B988=\"N\",\"\",IF(OR('Enrollment Form'!$B995<>\"Subscriber\",'Enrollment Form'!$C995=\"ROC\"),\"-\",IF(AND('Enrollment Form'!$B995=\"Subscriber\",'Enrollment Form'!$C995=\"Enroll\",'Enrollment Form'!$CV995<>\"\"),\"Y\",\"N\")))","v":""},{"$f":"IF($B988=\"N\",\"\",IF($S988=\"-\",\"-\",IF(AND($S988=\"Y\",'Enrollment Form'!$CV995=\"No\"),\"-\",IF(AND($S988=\"Y\",'Enrollment Form'!$CV995=\"Yes\",'Enrollment Form'!$CW995<>\"\"),\"Y\",\"N\"))))","v":""},{"$f":"IF(OR('Enrollment Form'!$AY995=\"Yes\",'Enrollment Form'!$AY995=\"\"),\"-\",IF(OR(AND('Enrollment Form'!$AY995=\"No\",ISERROR(FIND(\"HMO\",VLOOKUP('Enrollment Form'!G995,'Enrollment Form'!H$11:J$1000,3,FALSE),1))=FALSE,COUNTA('Enrollment Form'!$AZ995:$BC995)=4),AND('Enrollment Form'!$AY995=\"No\",ISERROR(FIND(\"HMO\",VLOOKUP('Enrollment Form'!G995,'Enrollment Form'!H$11:J$1000,3,FALSE),1))=FALSE,COUNTA('Enrollment Form'!$BT995:$BW995)=4)),\"Y\",\"N\"))","v":"-"},{"$f":"IF($B988=\"N\",\"\",IF('Enrollment Form'!$B995=\"Subscriber\",\"-\",IF(COUNTA('Enrollment Form'!$BL995,'Enrollment Form'!$BN995)=2,\"Y\",\"N\")))","v":""},{"$f":"IF($B988=\"N\",\"\",IF(OR('Enrollment Form'!$AX995=\"\",'Enrollment Form'!$AX995=\"No\"),\"-\",IF(AND('Enrollment Form'!$AX995=\"Yes\",COUNTA('Enrollment Form'!$CR995)=1),\"Y\",\"N\")))","v":""},{"$f":"IF(OR('Enrollment Form'!$CR995=\"\",'Enrollment Form'!$CR995=\"No\"),\"-\",IF(COUNTA('Enrollment Form'!$CT995:$CU995)=2,\"Y\",\"N\"))","v":"-"},{"$f":"IF($B988=\"N\",\"\",IF(COUNTIF('Enrollment Form'!$DG995:$DP995,\"Other\")=COUNTA('Enrollment Form'!$DK995,'Enrollment Form'!$DH995,'Enrollment Form'!$DN995,'Enrollment Form'!$DQ995),\"Y\",\"N\"))","v":""},{"$f":"IF($B988=\"N\",\"\",IF(OR('Enrollment Form'!B995<>\"Subscriber\",'Enrollment Form'!C995=\"ROC\",COUNTIF('Enrollment Form'!AV995:AW995,\"Yes\")>=1),\"-\",IF(AND('Enrollment Form'!C995=\"Enroll\",COUNTIF('Enrollment Form'!AV995:AW995,\"No\")=2,'Enrollment Form'!AX995=\"\"),\"N\",\"Y\")))","v":""},{"$f":"IF(OR(B988=\"N\",'Enrollment Form'!B995<>\"Subscriber\",'Enrollment Form'!C995=\"ROC\",'Enrollment Form'!O995<>\"Multiple of Salary\"),\"-\",IF(COUNTA('Enrollment Form'!T995:U995)<2,\"N\",\"Y\"))","v":"-"},{"$f":"IF(B988=\"N\",\"\",IF(OR('Enrollment Form'!C995=\"ROC\",'Enrollment Form'!B995<>\"Subscriber\",'Enrollment Form'!O995=\"Waive\",'Enrollment Form'!O995=\"\"),\"-\",IF('Enrollment Form'!P995=\"\",\"N\",\"Y\")))","v":""},{"$f":"IF($B988=\"N\",\"\",IF(AND('Enrollment Form'!$C995=\"ROC\",'Enrollment Form'!$DR995<>\"\"),\"Y\",IF(AND('Enrollment Form'!$C995=\"ROC\",'Enrollment Form'!$DR995=\"\"),\"N\",IF(AND('Enrollment Form'!$C995=\"Enroll\",'Enrollment Form'!$B995=\"Subscriber\",'Enrollment Form'!$CX995=\"No\",'Enrollment Form'!$DR995=\"\"),\"N\",IF(AND('Enrollment Form'!$C995=\"Enroll\",'Enrollment Form'!$B995=\"Subscriber\",'Enrollment Form'!$CX995=\"Yes\"),\"-\",\"Y\")))))","v":""},{"$f":"IF($B988=\"N\",\"\",IF(AND('Enrollment Form'!$C995=\"ROC\",'Enrollment Form'!$DS995<>\"\"),\"Y\",IF(AND('Enrollment Form'!$C995=\"ROC\",'Enrollment Form'!$DS995=\"\"),\"N\",IF(AND('Enrollment Form'!$C995=\"Enroll\",'Enrollment Form'!$B995=\"Subscriber\",'Enrollment Form'!$CX995=\"No\",'Enrollment Form'!$DS995=\"\"),\"N\",IF(AND('Enrollment Form'!$C995=\"Enroll\",'Enrollment Form'!$B995=\"Subscriber\",'Enrollment Form'!$CX995=\"Yes\"),\"-\",\"Y\")))))","v":""},{"$f":"IF('Enrollment Form'!AH995=\"\",\"\",IF(ISERROR(SEARCH(\".\",'Enrollment Form'!AH995,SEARCH(\"@\",'Enrollment Form'!AH995))),\"N\",\"Y\"))","v":""},{"$f":"IF(OR($B988=\"N\",'Enrollment Form'!$G995=\"\"),\"\",IF('Enrollment Form'!$B995<>\"Subscriber\",\"-\",IF(COUNTIF('Enrollment Form'!$AV995:$AW995,\"Yes\")=2,\"N\",\"Y\")))","v":""},{"$f":"IF(OR('Enrollment Form'!$CJ995=\"\",'Enrollment Form'!$CJ995=\"No\"),\"-\",IF(AND('Enrollment Form'!$CJ995=\"Yes\",'Enrollment Form'!$CK995=\"\"),\"N\",\"Y\"))","v":"-"},{"$f":"IF(OR('Enrollment Form'!$CL995=\"\",'Enrollment Form'!$CL995=\"No\"),\"-\",IF(AND('Enrollment Form'!$CL995=\"Yes\",'Enrollment Form'!$CM995=\"\"),\"N\",\"Y\"))","v":"-"},{"$f":"IF(OR('Enrollment Form'!$CN995=\"\",'Enrollment Form'!$CN995=\"No\"),\"-\",IF(AND('Enrollment Form'!$CN995=\"Yes\",'Enrollment Form'!$CO995=\"\"),\"N\",\"Y\"))","v":"-"},{"$f":"IF(OR('Enrollment Form'!$CN995=\"\",'Enrollment Form'!$CN995=\"No\"),\"-\",IF(AND('Enrollment Form'!$CN995=\"Yes\",'Enrollment Form'!$CP995=\"\"),\"N\",\"Y\"))","v":"-"},{"$f":"IF('Enrollment Form'!B995<>\"Subscriber\",\"-\",IF(AND('Enrollment Form'!B995=\"Subscriber\",'Enrollment Form'!C995=\"Enroll\",'Enrollment Form'!AA995=\"\"),\"N\",\"Y\"))","v":"-"},{"$f":"IF(OR('Enrollment Form'!B995=\"Subscriber\",'Enrollment Form'!B995=\"\"),\"-\",IF('Enrollment Form'!BP995=\"\",\"N\",\"Y\"))","v":"-"},{"$f":"IF('Enrollment Form'!B995<>\"Subscriber\",\"-\",IF(AND('Enrollment Form'!B995=\"Subscriber\",'Enrollment Form'!G995=\"\"),\"N\",\"Y\"))","v":"-"},{"$f":"IF('Enrollment Form'!A995=\"\",\"\",IF('Enrollment Form'!B995=\"Subscriber\",\"-\",IF(AND('Enrollment Form'!B995<>\"Subscriber\",'Enrollment Form'!G995='Enrollment Form'!H995),\"N\",\"Y\")))","v":""},0]
[996,{"$f":"IF('Enrollment Form'!$A996<>\"\",\"Y\",\"N\")","v":"N"},{"$f":"IF(AND('Enrollment Form'!$B996=\"\",'Enrollment Form'!$C996<>\"\"),\"N\",IF($B989=\"N\",\"\",\"Y\"))","v":""},{"$f":"IF(OR($B989=\"N\",'Enrollment Form'!G996=\"\"),\"\",IF('Enrollment Form'!$B996<>\"Subscriber\",\"\",IF('Enrollment Form'!$G996='Enrollment Form'!$H996,\"Y\",\"N\")))","v":""},{"$f":"IF($B989=\"N\",\"\",IF(AND(COUNTIFS('Enrollment Form'!$H$11:$H$1000,'Enrollment Form'!$H996,'Enrollment Form'!$B$11:$B$1000,'Enrollment Form'!$B996)>1,'Enrollment Form'!$H996<>\"\"),\"N\",\"Y\"))","v":""},{"$f":"IF($B989=\"N\",\"\",IF(LEN('Enrollment Form'!$Y996)=0,\"\",IF(LEN('Enrollment Form'!$Y996)<>5,\"N\",\"Y\")))","v":""},{"$f":"IF($B989=\"N\",\"\",IF(LEN('Enrollment Form'!$AD996=0),\"\",IF(LEN('Enrollment Form'!$AD996)<>5,\"N\",\"Y\")))","v":""},{"$f":"IF($B989=\"N\",\"\",IF(LEN('Enrollment Form'!$BS996=0),\"\",IF(LEN('Enrollment Form'!$BS996)<>5,\"N\",\"Y\")))","v":""},{"$f":"IF($B989=\"N\",\"\",IF(LEN('Enrollment Form'!$AE996)=0,\"\",IF(LEN('Enrollment Form'!$AE996)<>10,\"N\",\"Y\")))","v":""},{"$f":"IF($B989=\"N\",\"\",IF(LEN('Enrollment Form'!$AF996)=0,\"\",IF(LEN('Enrollment Form'!$AF996)<>10,\"N\",\"Y\")))","v":""},{"$f":"IF('Enrollment Form'!$O996<>\"Graded\",\"-\",IF(AND('Enrollment Form'!$O996=\"Graded\",'Enrollment Form'!$AR996<>\"\"),\"Y\",\"N\"))","v":"-"},{"$f":"IF($B989=\"N\",\"\",IF(OR('Enrollment Form'!$B996<>\"Subscriber\",'Enrollment Form'!$C996=\"ROC\"),\"-\",IF(AND('Enrollment Form'!$B996=\"Subscriber\",'Enrollment Form'!$C996=\"Enroll\",'Enrollment Form'!$AJ996<>\"\"),\"Y\",\"N\")))","v":""},{"$f":"IF($B989=\"N\",\"\",IF(OR('Enrollment Form'!$B996<>\"Subscriber\",'Enrollment Form'!$C996=\"ROC\"),\"-\",IF(AND('Enrollment Form'!$B996=\"Subscriber\",'Enrollment Form'!$C996=\"Enroll\",'Enrollment Form'!$AK996<>\"\"),\"Y\",\"N\")))","v":""},{"$f":"IF($B989=\"N\",\"\",IF(OR('Enrollment Form'!$B996<>\"Subscriber\",'Enrollment Form'!$C996=\"ROC\"),\"-\",IF(AND('Enrollment Form'!$B996=\"Subscriber\",'Enrollment Form'!$C996=\"Enroll\",'Enrollment Form'!$AL996<>\"\"),\"Y\",\"N\")))","v":""},{"$f":"IF($B989=\"N\",\"\",IF(OR('Enrollment Form'!$B996<>\"Subscriber\",'Enrollment Form'!$C996=\"ROC\"),\"-\",IF(AND('Enrollment Form'!$B996=\"Subscriber\",'Enrollment Form'!$C996=\"Enroll\",'Enrollment Form'!$AP996<>\"\"),\"Y\",\"N\")))","v":""},{"$f":"IF($B989=\"N\",\"\",IF(OR('Enrollment Form'!$B996<>\"Subscriber\",'Enrollment Form'!$C996=\"ROC\"),\"-\",IF(AND('Enrollment Form'!$B996=\"Subscriber\",'Enrollment Form'!$C996=\"Enroll\",'Enrollment Form'!$AQ996<>\"\"),\"Y\",\"N\")))","v":""},{"$f":"IF($B989=\"N\",\"\",IF(OR('Enrollment Form'!$B996<>\"Subscriber\",'Enrollment Form'!$C996=\"ROC\"),\"-\",IF(AND('Enrollment Form'!$B996=\"Subscriber\",'Enrollment Form'!$C996=\"Enroll\",'Enrollment Form'!$AS996<>\"\"),\"Y\",\"N\")))","v":""},{"$f":"IF($B989=\"N\",\"\",IF($Q989=\"-\",\"-\",IF(AND($Q989=\"Y\",'Enrollment Form'!$AS996=\"No\"),\"-\",IF(AND($Q989=\"Y\",'Enrollment Form'!$AS996=\"Yes\",'Enrollment Form'!$AT996<>\"\"),\"Y\",\"N\"))))","v":""},{"$f":"IF($B989=\"N\",\"\",IF(OR('Enrollment Form'!$B996<>\"Subscriber\",'Enrollment Form'!$C996=\"ROC\"),\"-\",IF(AND('Enrollment Form'!$B996=\"Subscriber\",'Enrollment Form'!$C996=\"Enroll\",'Enrollment Form'!$CV996<>\"\"),\"Y\",\"N\")))","v":""},{"$f":"IF($B989=\"N\",\"\",IF($S989=\"-\",\"-\",IF(AND($S989=\"Y\",'Enrollment Form'!$CV996=\"No\"),\"-\",IF(AND($S989=\"Y\",'Enrollment Form'!$CV996=\"Yes\",'Enrollment Form'!$CW996<>\"\"),\"Y\",\"N\"))))","v":""},{"$f":"IF(OR('Enrollment Form'!$AY996=\"Yes\",'Enrollment Form'!$AY996=\"\"),\"-\",IF(OR(AND('Enrollment Form'!$AY996=\"No\",ISERROR(FIND(\"HMO\",VLOOKUP('Enrollment Form'!G996,'Enrollment Form'!H$11:J$1000,3,FALSE),1))=FALSE,COUNTA('Enrollment Form'!$AZ996:$BC996)=4),AND('Enrollment Form'!$AY996=\"No\",ISERROR(FIND(\"HMO\",VLOOKUP('Enrollment Form'!G996,'Enrollment Form'!H$11:J$1000,3,FALSE),1))=FALSE,COUNTA('Enrollment Form'!$BT996:$BW996)=4)),\"Y\",\"N\"))","v":"-"},{"$f":"IF($B989=\"N\",\"\",IF('Enrollment Form'!$B996=\"Subscriber\",\"-\",IF(COUNTA('Enrollment Form'!$BL996,'Enrollment Form'!$BN996)=2,\"Y\",\"N\")))","v":""},{"$f":"IF($B989=\"N\",\"\",IF(OR('Enrollment Form'!$AX996=\"\",'Enrollment Form'!$AX996=\"No\"),\"-\",IF(AND('Enrollment Form'!$AX996=\"Yes\",COUNTA('Enrollment Form'!$CR996)=1),\"Y\",\"N\")))","v":""},{"$f":"IF(OR('Enrollment Form'!$CR996=\"\",'Enrollment Form'!$CR996=\"No\"),\"-\",IF(COUNTA('Enrollment Form'!$CT996:$CU996)=2,\"Y\",\"N\"))","v":"-"},{"$f":"IF($B989=\"N\",\"\",IF(COUNTIF('Enrollment Form'!$DG996:$DP996,\"Other\")=COUNTA('Enrollment Form'!$DK996,'Enrollment Form'!$DH996,'Enrollment Form'!$DN996,'Enrollment Form'!$DQ996),\"Y\",\"N\"))","v":""},{"$f":"IF($B989=\"N\",\"\",IF(OR('Enrollment Form'!B996<>\"Subscriber\",'Enrollment Form'!C996=\"ROC\",COUNTIF('Enrollment Form'!AV996:AW996,\"Yes\")>=1),\"-\",IF(AND('Enrollment Form'!C996=\"Enroll\",COUNTIF('Enrollment Form'!AV996:AW996,\"No\")=2,'Enrollment Form'!AX996=\"\"),\"N\",\"Y\")))","v":""},{"$f":"IF(OR(B989=\"N\",'Enrollment Form'!B996<>\"Subscriber\",'Enrollment Form'!C996=\"ROC\",'Enrollment Form'!O996<>\"Multiple of Salary\"),\"-\",IF(COUNTA('Enrollment Form'!T996:U996)<2,\"N\",\"Y\"))","v":"-"},{"$f":"IF(B989=\"N\",\"\",IF(OR('Enrollment Form'!C996=\"ROC\",'Enrollment Form'!B996<>\"Subscriber\",'Enrollment Form'!O996=\"Waive\",'Enrollment Form'!O996=\"\"),\"-\",IF('Enrollment Form'!P996=\"\",\"N\",\"Y\")))","v":""},{"$f":"IF($B989=\"N\",\"\",IF(AND('Enrollment Form'!$C996=\"ROC\",'Enrollment Form'!$DR996<>\"\"),\"Y\",IF(AND('Enrollment Form'!$C996=\"ROC\",'Enrollment Form'!$DR996=\"\"),\"N\",IF(AND('Enrollment Form'!$C996=\"Enroll\",'Enrollment Form'!$B996=\"Subscriber\",'Enrollment Form'!$CX996=\"No\",'Enrollment Form'!$DR996=\"\"),\"N\",IF(AND('Enrollment Form'!$C996=\"Enroll\",'Enrollment Form'!$B996=\"Subscriber\",'Enrollment Form'!$CX996=\"Yes\"),\"-\",\"Y\")))))","v":""},{"$f":"IF($B989=\"N\",\"\",IF(AND('Enrollment Form'!$C996=\"ROC\",'Enrollment Form'!$DS996<>\"\"),\"Y\",IF(AND('Enrollment Form'!$C996=\"ROC\",'Enrollment Form'!$DS996=\"\"),\"N\",IF(AND('Enrollment Form'!$C996=\"Enroll\",'Enrollment Form'!$B996=\"Subscriber\",'Enrollment Form'!$CX996=\"No\",'Enrollment Form'!$DS996=\"\"),\"N\",IF(AND('Enrollment Form'!$C996=\"Enroll\",'Enrollment Form'!$B996=\"Subscriber\",'Enrollment Form'!$CX996=\"Yes\"),\"-\",\"Y\")))))","v":""},{"$f":"IF('Enrollment Form'!AH996=\"\",\"\",IF(ISERROR(SEARCH(\".\",'Enrollment Form'!AH996,SEARCH(\"@\",'Enrollment Form'!AH996))),\"N\",\"Y\"))","v":""},{"$f":"IF(OR($B989=\"N\",'Enrollment Form'!$G996=\"\"),\"\",IF('Enrollment Form'!$B996<>\"Subscriber\",\"-\",IF(COUNTIF('Enrollment Form'!$AV996:$AW996,\"Yes\")=2,\"N\",\"Y\")))","v":""},{"$f":"IF(OR('Enrollment Form'!$CJ996=\"\",'Enrollment Form'!$CJ996=\"No\"),\"-\",IF(AND('Enrollment Form'!$CJ996=\"Yes\",'Enrollment Form'!$CK996=\"\"),\"N\",\"Y\"))","v":"-"},{"$f":"IF(OR('Enrollment Form'!$CL996=\"\",'Enrollment Form'!$CL996=\"No\"),\"-\",IF(AND('Enrollment Form'!$CL996=\"Yes\",'Enrollment Form'!$CM996=\"\"),\"N\",\"Y\"))","v":"-"},{"$f":"IF(OR('Enrollment Form'!$CN996=\"\",'Enrollment Form'!$CN996=\"No\"),\"-\",IF(AND('Enrollment Form'!$CN996=\"Yes\",'Enrollment Form'!$CO996=\"\"),\"N\",\"Y\"))","v":"-"},{"$f":"IF(OR('Enrollment Form'!$CN996=\"\",'Enrollment Form'!$CN996=\"No\"),\"-\",IF(AND('Enrollment Form'!$CN996=\"Yes\",'Enrollment Form'!$CP996=\"\"),\"N\",\"Y\"))","v":"-"},{"$f":"IF('Enrollment Form'!B996<>\"Subscriber\",\"-\",IF(AND('Enrollment Form'!B996=\"Subscriber\",'Enrollment Form'!C996=\"Enroll\",'Enrollment Form'!AA996=\"\"),\"N\",\"Y\"))","v":"-"},{"$f":"IF(OR('Enrollment Form'!B996=\"Subscriber\",'Enrollment Form'!B996=\"\"),\"-\",IF('Enrollment Form'!BP996=\"\",\"N\",\"Y\"))","v":"-"},{"$f":"IF('Enrollment Form'!B996<>\"Subscriber\",\"-\",IF(AND('Enrollment Form'!B996=\"Subscriber\",'Enrollment Form'!G996=\"\"),\"N\",\"Y\"))","v":"-"},{"$f":"IF('Enrollment Form'!A996=\"\",\"\",IF('Enrollment Form'!B996=\"Subscriber\",\"-\",IF(AND('Enrollment Form'!B996<>\"Subscriber\",'Enrollment Form'!G996='Enrollment Form'!H996),\"N\",\"Y\")))","v":""},0]
[997,{"$f":"IF('Enrollment Form'!$A997<>\"\",\"Y\",\"N\")","v":"N"},{"$f":"IF(AND('Enrollment Form'!$B997=\"\",'Enrollment Form'!$C997<>\"\"),\"N\",IF($B990=\"N\",\"\",\"Y\"))","v":""},{"$f":"IF(OR($B990=\"N\",'Enrollment Form'!G997=\"\"),\"\",IF('Enrollment Form'!$B997<>\"Subscriber\",\"\",IF('Enrollment Form'!$G997='Enrollment Form'!$H997,\"Y\",\"N\")))","v":""},{"$f":"IF($B990=\"N\",\"\",IF(AND(COUNTIFS('Enrollment Form'!$H$11:$H$1000,'Enrollment Form'!$H997,'Enrollment Form'!$B$11:$B$1000,'Enrollment Form'!$B997)>1,'Enrollment Form'!$H997<>\"\"),\"N\",\"Y\"))","v":""},{"$f":"IF($B990=\"N\",\"\",IF(LEN('Enrollment Form'!$Y997)=0,\"\",IF(LEN('Enrollment Form'!$Y997)<>5,\"N\",\"Y\")))","v":""},{"$f":"IF($B990=\"N\",\"\",IF(LEN('Enrollment Form'!$AD997=0),\"\",IF(LEN('Enrollment Form'!$AD997)<>5,\"N\",\"Y\")))","v":""},{"$f":"IF($B990=\"N\",\"\",IF(LEN('Enrollment Form'!$BS997=0),\"\",IF(LEN('Enrollment Form'!$BS997)<>5,\"N\",\"Y\")))","v":""},{"$f":"IF($B990=\"N\",\"\",IF(LEN('Enrollment Form'!$AE997)=0,\"\",IF(LEN('Enrollment Form'!$AE997)<>10,\"N\",\"Y\")))","v":""},{"$f":"IF($B990=\"N\",\"\",IF(LEN('Enrollment Form'!$AF997)=0,\"\",IF(LEN('Enrollment Form'!$AF997)<>10,\"N\",\"Y\")))","v":""},{"$f":"IF('Enrollment Form'!$O997<>\"Graded\",\"-\",IF(AND('Enrollment Form'!$O997=\"Graded\",'Enrollment Form'!$AR997<>\"\"),\"Y\",\"N\"))","v":"-"},{"$f":"IF($B990=\"N\",\"\",IF(OR('Enrollment Form'!$B997<>\"Subscriber\",'Enrollment Form'!$C997=\"ROC\"),\"-\",IF(AND('Enrollment Form'!$B997=\"Subscriber\",'Enrollment Form'!$C997=\"Enroll\",'Enrollment Form'!$AJ997<>\"\"),\"Y\",\"N\")))","v":""},{"$f":"IF($B990=\"N\",\"\",IF(OR('Enrollment Form'!$B997<>\"Subscriber\",'Enrollment Form'!$C997=\"ROC\"),\"-\",IF(AND('Enrollment Form'!$B997=\"Subscriber\",'Enrollment Form'!$C997=\"Enroll\",'Enrollment Form'!$AK997<>\"\"),\"Y\",\"N\")))","v":""},{"$f":"IF($B990=\"N\",\"\",IF(OR('Enrollment Form'!$B997<>\"Subscriber\",'Enrollment Form'!$C997=\"ROC\"),\"-\",IF(AND('Enrollment Form'!$B997=\"Subscriber\",'Enrollment Form'!$C997=\"Enroll\",'Enrollment Form'!$AL997<>\"\"),\"Y\",\"N\")))","v":""},{"$f":"IF($B990=\"N\",\"\",IF(OR('Enrollment Form'!$B997<>\"Subscriber\",'Enrollment Form'!$C997=\"ROC\"),\"-\",IF(AND('Enrollment Form'!$B997=\"Subscriber\",'Enrollment Form'!$C997=\"Enroll\",'Enrollment Form'!$AP997<>\"\"),\"Y\",\"N\")))","v":""},{"$f":"IF($B990=\"N\",\"\",IF(OR('Enrollment Form'!$B997<>\"Subscriber\",'Enrollment Form'!$C997=\"ROC\"),\"-\",IF(AND('Enrollment Form'!$B997=\"Subscriber\",'Enrollment Form'!$C997=\"Enroll\",'Enrollment Form'!$AQ997<>\"\"),\"Y\",\"N\")))","v":""},{"$f":"IF($B990=\"N\",\"\",IF(OR('Enrollment Form'!$B997<>\"Subscriber\",'Enrollment Form'!$C997=\"ROC\"),\"-\",IF(AND('Enrollment Form'!$B997=\"Subscriber\",'Enrollment Form'!$C997=\"Enroll\",'Enrollment Form'!$AS997<>\"\"),\"Y\",\"N\")))","v":""},{"$f":"IF($B990=\"N\",\"\",IF($Q990=\"-\",\"-\",IF(AND($Q990=\"Y\",'Enrollment Form'!$AS997=\"No\"),\"-\",IF(AND($Q990=\"Y\",'Enrollment Form'!$AS997=\"Yes\",'Enrollment Form'!$AT997<>\"\"),\"Y\",\"N\"))))","v":""},{"$f":"IF($B990=\"N\",\"\",IF(OR('Enrollment Form'!$B997<>\"Subscriber\",'Enrollment Form'!$C997=\"ROC\"),\"-\",IF(AND('Enrollment Form'!$B997=\"Subscriber\",'Enrollment Form'!$C997=\"Enroll\",'Enrollment Form'!$CV997<>\"\"),\"Y\",\"N\")))","v":""},{"$f":"IF($B990=\"N\",\"\",IF($S990=\"-\",\"-\",IF(AND($S990=\"Y\",'Enrollment Form'!$CV997=\"No\"),\"-\",IF(AND($S990=\"Y\",'Enrollment Form'!$CV997=\"Yes\",'Enrollment Form'!$CW997<>\"\"),\"Y\",\"N\"))))","v":""},{"$f":"IF(OR('Enrollment Form'!$AY997=\"Yes\",'Enrollment Form'!$AY997=\"\"),\"-\",IF(OR(AND('Enrollment Form'!$AY997=\"No\",ISERROR(FIND(\"HMO\",VLOOKUP('Enrollment Form'!G997,'Enrollment Form'!H$11:J$1000,3,FALSE),1))=FALSE,COUNTA('Enrollment Form'!$AZ997:$BC997)=4),AND('Enrollment Form'!$AY997=\"No\",ISERROR(FIND(\"HMO\",VLOOKUP('Enrollment Form'!G997,'Enrollment Form'!H$11:J$1000,3,FALSE),1))=FALSE,COUNTA('Enrollment Form'!$BT997:$BW997)=4)),\"Y\",\"N\"))","v":"-"},{"$f":"IF($B990=\"N\",\"\",IF('Enrollment Form'!$B997=\"Subscriber\",\"-\",IF(COUNTA('Enrollment Form'!$BL997,'Enrollment Form'!$BN997)=2,\"Y\",\"N\")))","v":""},{"$f":"IF($B990=\"N\",\"\",IF(OR('Enrollment Form'!$AX997=\"\",'Enrollment Form'!$AX997=\"No\"),\"-\",IF(AND('Enrollment Form'!$AX997=\"Yes\",COUNTA('Enrollment Form'!$CR997)=1),\"Y\",\"N\")))","v":""},{"$f":"IF(OR('Enrollment Form'!$CR997=\"\",'Enrollment Form'!$CR997=\"No\"),\"-\",IF(COUNTA('Enrollment Form'!$CT997:$CU997)=2,\"Y\",\"N\"))","v":"-"},{"$f":"IF($B990=\"N\",\"\",IF(COUNTIF('Enrollment Form'!$DG997:$DP997,\"Other\")=COUNTA('Enrollment Form'!$DK997,'Enrollment Form'!$DH997,'Enrollment Form'!$DN997,'Enrollment Form'!$DQ997),\"Y\",\"N\"))","v":""},{"$f":"IF($B990=\"N\",\"\",IF(OR('Enrollment Form'!B997<>\"Subscriber\",'Enrollment Form'!C997=\"ROC\",COUNTIF('Enrollment Form'!AV997:AW997,\"Yes\")>=1),\"-\",IF(AND('Enrollment Form'!C997=\"Enroll\",COUNTIF('Enrollment Form'!AV997:AW997,\"No\")=2,'Enrollment Form'!AX997=\"\"),\"N\",\"Y\")))","v":""},{"$f":"IF(OR(B990=\"N\",'Enrollment Form'!B997<>\"Subscriber\",'Enrollment Form'!C997=\"ROC\",'Enrollment Form'!O997<>\"Multiple of Salary\"),\"-\",IF(COUNTA('Enrollment Form'!T997:U997)<2,\"N\",\"Y\"))","v":"-"},{"$f":"IF(B990=\"N\",\"\",IF(OR('Enrollment Form'!C997=\"ROC\",'Enrollment Form'!B997<>\"Subscriber\",'Enrollment Form'!O997=\"Waive\",'Enrollment Form'!O997=\"\"),\"-\",IF('Enrollment Form'!P997=\"\",\"N\",\"Y\")))","v":""},{"$f":"IF($B990=\"N\",\"\",IF(AND('Enrollment Form'!$C997=\"ROC\",'Enrollment Form'!$DR997<>\"\"),\"Y\",IF(AND('Enrollment Form'!$C997=\"ROC\",'Enrollment Form'!$DR997=\"\"),\"N\",IF(AND('Enrollment Form'!$C997=\"Enroll\",'Enrollment Form'!$B997=\"Subscriber\",'Enrollment Form'!$CX997=\"No\",'Enrollment Form'!$DR997=\"\"),\"N\",IF(AND('Enrollment Form'!$C997=\"Enroll\",'Enrollment Form'!$B997=\"Subscriber\",'Enrollment Form'!$CX997=\"Yes\"),\"-\",\"Y\")))))","v":""},{"$f":"IF($B990=\"N\",\"\",IF(AND('Enrollment Form'!$C997=\"ROC\",'Enrollment Form'!$DS997<>\"\"),\"Y\",IF(AND('Enrollment Form'!$C997=\"ROC\",'Enrollment Form'!$DS997=\"\"),\"N\",IF(AND('Enrollment Form'!$C997=\"Enroll\",'Enrollment Form'!$B997=\"Subscriber\",'Enrollment Form'!$CX997=\"No\",'Enrollment Form'!$DS997=\"\"),\"N\",IF(AND('Enrollment Form'!$C997=\"Enroll\",'Enrollment Form'!$B997=\"Subscriber\",'Enrollment Form'!$CX997=\"Yes\"),\"-\",\"Y\")))))","v":""},{"$f":"IF('Enrollment Form'!AH997=\"\",\"\",IF(ISERROR(SEARCH(\".\",'Enrollment Form'!AH997,SEARCH(\"@\",'Enrollment Form'!AH997))),\"N\",\"Y\"))","v":""},{"$f":"IF(OR($B990=\"N\",'Enrollment Form'!$G997=\"\"),\"\",IF('Enrollment Form'!$B997<>\"Subscriber\",\"-\",IF(COUNTIF('Enrollment Form'!$AV997:$AW997,\"Yes\")=2,\"N\",\"Y\")))","v":""},{"$f":"IF(OR('Enrollment Form'!$CJ997=\"\",'Enrollment Form'!$CJ997=\"No\"),\"-\",IF(AND('Enrollment Form'!$CJ997=\"Yes\",'Enrollment Form'!$CK997=\"\"),\"N\",\"Y\"))","v":"-"},{"$f":"IF(OR('Enrollment Form'!$CL997=\"\",'Enrollment Form'!$CL997=\"No\"),\"-\",IF(AND('Enrollment Form'!$CL997=\"Yes\",'Enrollment Form'!$CM997=\"\"),\"N\",\"Y\"))","v":"-"},{"$f":"IF(OR('Enrollment Form'!$CN997=\"\",'Enrollment Form'!$CN997=\"No\"),\"-\",IF(AND('Enrollment Form'!$CN997=\"Yes\",'Enrollment Form'!$CO997=\"\"),\"N\",\"Y\"))","v":"-"},{"$f":"IF(OR('Enrollment Form'!$CN997=\"\",'Enrollment Form'!$CN997=\"No\"),\"-\",IF(AND('Enrollment Form'!$CN997=\"Yes\",'Enrollment Form'!$CP997=\"\"),\"N\",\"Y\"))","v":"-"},{"$f":"IF('Enrollment Form'!B997<>\"Subscriber\",\"-\",IF(AND('Enrollment Form'!B997=\"Subscriber\",'Enrollment Form'!C997=\"Enroll\",'Enrollment Form'!AA997=\"\"),\"N\",\"Y\"))","v":"-"},{"$f":"IF(OR('Enrollment Form'!B997=\"Subscriber\",'Enrollment Form'!B997=\"\"),\"-\",IF('Enrollment Form'!BP997=\"\",\"N\",\"Y\"))","v":"-"},{"$f":"IF('Enrollment Form'!B997<>\"Subscriber\",\"-\",IF(AND('Enrollment Form'!B997=\"Subscriber\",'Enrollment Form'!G997=\"\"),\"N\",\"Y\"))","v":"-"},{"$f":"IF('Enrollment Form'!A997=\"\",\"\",IF('Enrollment Form'!B997=\"Subscriber\",\"-\",IF(AND('Enrollment Form'!B997<>\"Subscriber\",'Enrollment Form'!G997='Enrollment Form'!H997),\"N\",\"Y\")))","v":""},0]
[998,{"$f":"IF('Enrollment Form'!$A998<>\"\",\"Y\",\"N\")","v":"N"},{"$f":"IF(AND('Enrollment Form'!$B998=\"\",'Enrollment Form'!$C998<>\"\"),\"N\",IF($B991=\"N\",\"\",\"Y\"))","v":""},{"$f":"IF(OR($B991=\"N\",'Enrollment Form'!G998=\"\"),\"\",IF('Enrollment Form'!$B998<>\"Subscriber\",\"\",IF('Enrollment Form'!$G998='Enrollment Form'!$H998,\"Y\",\"N\")))","v":""},{"$f":"IF($B991=\"N\",\"\",IF(AND(COUNTIFS('Enrollment Form'!$H$11:$H$1000,'Enrollment Form'!$H998,'Enrollment Form'!$B$11:$B$1000,'Enrollment Form'!$B998)>1,'Enrollment Form'!$H998<>\"\"),\"N\",\"Y\"))","v":""},{"$f":"IF($B991=\"N\",\"\",IF(LEN('Enrollment Form'!$Y998)=0,\"\",IF(LEN('Enrollment Form'!$Y998)<>5,\"N\",\"Y\")))","v":""},{"$f":"IF($B991=\"N\",\"\",IF(LEN('Enrollment Form'!$AD998=0),\"\",IF(LEN('Enrollment Form'!$AD998)<>5,\"N\",\"Y\")))","v":""},{"$f":"IF($B991=\"N\",\"\",IF(LEN('Enrollment Form'!$BS998=0),\"\",IF(LEN('Enrollment Form'!$BS998)<>5,\"N\",\"Y\")))","v":""},{"$f":"IF($B991=\"N\",\"\",IF(LEN('Enrollment Form'!$AE998)=0,\"\",IF(LEN('Enrollment Form'!$AE998)<>10,\"N\",\"Y\")))","v":""},{"$f":"IF($B991=\"N\",\"\",IF(LEN('Enrollment Form'!$AF998)=0,\"\",IF(LEN('Enrollment Form'!$AF998)<>10,\"N\",\"Y\")))","v":""},{"$f":"IF('Enrollment Form'!$O998<>\"Graded\",\"-\",IF(AND('Enrollment Form'!$O998=\"Graded\",'Enrollment Form'!$AR998<>\"\"),\"Y\",\"N\"))","v":"-"},{"$f":"IF($B991=\"N\",\"\",IF(OR('Enrollment Form'!$B998<>\"Subscriber\",'Enrollment Form'!$C998=\"ROC\"),\"-\",IF(AND('Enrollment Form'!$B998=\"Subscriber\",'Enrollment Form'!$C998=\"Enroll\",'Enrollment Form'!$AJ998<>\"\"),\"Y\",\"N\")))","v":""},{"$f":"IF($B991=\"N\",\"\",IF(OR('Enrollment Form'!$B998<>\"Subscriber\",'Enrollment Form'!$C998=\"ROC\"),\"-\",IF(AND('Enrollment Form'!$B998=\"Subscriber\",'Enrollment Form'!$C998=\"Enroll\",'Enrollment Form'!$AK998<>\"\"),\"Y\",\"N\")))","v":""},{"$f":"IF($B991=\"N\",\"\",IF(OR('Enrollment Form'!$B998<>\"Subscriber\",'Enrollment Form'!$C998=\"ROC\"),\"-\",IF(AND('Enrollment Form'!$B998=\"Subscriber\",'Enrollment Form'!$C998=\"Enroll\",'Enrollment Form'!$AL998<>\"\"),\"Y\",\"N\")))","v":""},{"$f":"IF($B991=\"N\",\"\",IF(OR('Enrollment Form'!$B998<>\"Subscriber\",'Enrollment Form'!$C998=\"ROC\"),\"-\",IF(AND('Enrollment Form'!$B998=\"Subscriber\",'Enrollment Form'!$C998=\"Enroll\",'Enrollment Form'!$AP998<>\"\"),\"Y\",\"N\")))","v":""},{"$f":"IF($B991=\"N\",\"\",IF(OR('Enrollment Form'!$B998<>\"Subscriber\",'Enrollment Form'!$C998=\"ROC\"),\"-\",IF(AND('Enrollment Form'!$B998=\"Subscriber\",'Enrollment Form'!$C998=\"Enroll\",'Enrollment Form'!$AQ998<>\"\"),\"Y\",\"N\")))","v":""},{"$f":"IF($B991=\"N\",\"\",IF(OR('Enrollment Form'!$B998<>\"Subscriber\",'Enrollment Form'!$C998=\"ROC\"),\"-\",IF(AND('Enrollment Form'!$B998=\"Subscriber\",'Enrollment Form'!$C998=\"Enroll\",'Enrollment Form'!$AS998<>\"\"),\"Y\",\"N\")))","v":""},{"$f":"IF($B991=\"N\",\"\",IF($Q991=\"-\",\"-\",IF(AND($Q991=\"Y\",'Enrollment Form'!$AS998=\"No\"),\"-\",IF(AND($Q991=\"Y\",'Enrollment Form'!$AS998=\"Yes\",'Enrollment Form'!$AT998<>\"\"),\"Y\",\"N\"))))","v":""},{"$f":"IF($B991=\"N\",\"\",IF(OR('Enrollment Form'!$B998<>\"Subscriber\",'Enrollment Form'!$C998=\"ROC\"),\"-\",IF(AND('Enrollment Form'!$B998=\"Subscriber\",'Enrollment Form'!$C998=\"Enroll\",'Enrollment Form'!$CV998<>\"\"),\"Y\",\"N\")))","v":""},{"$f":"IF($B991=\"N\",\"\",IF($S991=\"-\",\"-\",IF(AND($S991=\"Y\",'Enrollment Form'!$CV998=\"No\"),\"-\",IF(AND($S991=\"Y\",'Enrollment Form'!$CV998=\"Yes\",'Enrollment Form'!$CW998<>\"\"),\"Y\",\"N\"))))","v":""},{"$f":"IF(OR('Enrollment Form'!$AY998=\"Yes\",'Enrollment Form'!$AY998=\"\"),\"-\",IF(OR(AND('Enrollment Form'!$AY998=\"No\",ISERROR(FIND(\"HMO\",VLOOKUP('Enrollment Form'!G998,'Enrollment Form'!H$11:J$1000,3,FALSE),1))=FALSE,COUNTA('Enrollment Form'!$AZ998:$BC998)=4),AND('Enrollment Form'!$AY998=\"No\",ISERROR(FIND(\"HMO\",VLOOKUP('Enrollment Form'!G998,'Enrollment Form'!H$11:J$1000,3,FALSE),1))=FALSE,COUNTA('Enrollment Form'!$BT998:$BW998)=4)),\"Y\",\"N\"))","v":"-"},{"$f":"IF($B991=\"N\",\"\",IF('Enrollment Form'!$B998=\"Subscriber\",\"-\",IF(COUNTA('Enrollment Form'!$BL998,'Enrollment Form'!$BN998)=2,\"Y\",\"N\")))","v":""},{"$f":"IF($B991=\"N\",\"\",IF(OR('Enrollment Form'!$AX998=\"\",'Enrollment Form'!$AX998=\"No\"),\"-\",IF(AND('Enrollment Form'!$AX998=\"Yes\",COUNTA('Enrollment Form'!$CR998)=1),\"Y\",\"N\")))","v":""},{"$f":"IF(OR('Enrollment Form'!$CR998=\"\",'Enrollment Form'!$CR998=\"No\"),\"-\",IF(COUNTA('Enrollment Form'!$CT998:$CU998)=2,\"Y\",\"N\"))","v":"-"},{"$f":"IF($B991=\"N\",\"\",IF(COUNTIF('Enrollment Form'!$DG998:$DP998,\"Other\")=COUNTA('Enrollment Form'!$DK998,'Enrollment Form'!$DH998,'Enrollment Form'!$DN998,'Enrollment Form'!$DQ998),\"Y\",\"N\"))","v":""},{"$f":"IF($B991=\"N\",\"\",IF(OR('Enrollment Form'!B998<>\"Subscriber\",'Enrollment Form'!C998=\"ROC\",COUNTIF('Enrollment Form'!AV998:AW998,\"Yes\")>=1),\"-\",IF(AND('Enrollment Form'!C998=\"Enroll\",COUNTIF('Enrollment Form'!AV998:AW998,\"No\")=2,'Enrollment Form'!AX998=\"\"),\"N\",\"Y\")))","v":""},{"$f":"IF(OR(B991=\"N\",'Enrollment Form'!B998<>\"Subscriber\",'Enrollment Form'!C998=\"ROC\",'Enrollment Form'!O998<>\"Multiple of Salary\"),\"-\",IF(COUNTA('Enrollment Form'!T998:U998)<2,\"N\",\"Y\"))","v":"-"},{"$f":"IF(B991=\"N\",\"\",IF(OR('Enrollment Form'!C998=\"ROC\",'Enrollment Form'!B998<>\"Subscriber\",'Enrollment Form'!O998=\"Waive\",'Enrollment Form'!O998=\"\"),\"-\",IF('Enrollment Form'!P998=\"\",\"N\",\"Y\")))","v":""},{"$f":"IF($B991=\"N\",\"\",IF(AND('Enrollment Form'!$C998=\"ROC\",'Enrollment Form'!$DR998<>\"\"),\"Y\",IF(AND('Enrollment Form'!$C998=\"ROC\",'Enrollment Form'!$DR998=\"\"),\"N\",IF(AND('Enrollment Form'!$C998=\"Enroll\",'Enrollment Form'!$B998=\"Subscriber\",'Enrollment Form'!$CX998=\"No\",'Enrollment Form'!$DR998=\"\"),\"N\",IF(AND('Enrollment Form'!$C998=\"Enroll\",'Enrollment Form'!$B998=\"Subscriber\",'Enrollment Form'!$CX998=\"Yes\"),\"-\",\"Y\")))))","v":""},{"$f":"IF($B991=\"N\",\"\",IF(AND('Enrollment Form'!$C998=\"ROC\",'Enrollment Form'!$DS998<>\"\"),\"Y\",IF(AND('Enrollment Form'!$C998=\"ROC\",'Enrollment Form'!$DS998=\"\"),\"N\",IF(AND('Enrollment Form'!$C998=\"Enroll\",'Enrollment Form'!$B998=\"Subscriber\",'Enrollment Form'!$CX998=\"No\",'Enrollment Form'!$DS998=\"\"),\"N\",IF(AND('Enrollment Form'!$C998=\"Enroll\",'Enrollment Form'!$B998=\"Subscriber\",'Enrollment Form'!$CX998=\"Yes\"),\"-\",\"Y\")))))","v":""},{"$f":"IF('Enrollment Form'!AH998=\"\",\"\",IF(ISERROR(SEARCH(\".\",'Enrollment Form'!AH998,SEARCH(\"@\",'Enrollment Form'!AH998))),\"N\",\"Y\"))","v":""},{"$f":"IF(OR($B991=\"N\",'Enrollment Form'!$G998=\"\"),\"\",IF('Enrollment Form'!$B998<>\"Subscriber\",\"-\",IF(COUNTIF('Enrollment Form'!$AV998:$AW998,\"Yes\")=2,\"N\",\"Y\")))","v":""},{"$f":"IF(OR('Enrollment Form'!$CJ998=\"\",'Enrollment Form'!$CJ998=\"No\"),\"-\",IF(AND('Enrollment Form'!$CJ998=\"Yes\",'Enrollment Form'!$CK998=\"\"),\"N\",\"Y\"))","v":"-"},{"$f":"IF(OR('Enrollment Form'!$CL998=\"\",'Enrollment Form'!$CL998=\"No\"),\"-\",IF(AND('Enrollment Form'!$CL998=\"Yes\",'Enrollment Form'!$CM998=\"\"),\"N\",\"Y\"))","v":"-"},{"$f":"IF(OR('Enrollment Form'!$CN998=\"\",'Enrollment Form'!$CN998=\"No\"),\"-\",IF(AND('Enrollment Form'!$CN998=\"Yes\",'Enrollment Form'!$CO998=\"\"),\"N\",\"Y\"))","v":"-"},{"$f":"IF(OR('Enrollment Form'!$CN998=\"\",'Enrollment Form'!$CN998=\"No\"),\"-\",IF(AND('Enrollment Form'!$CN998=\"Yes\",'Enrollment Form'!$CP998=\"\"),\"N\",\"Y\"))","v":"-"},{"$f":"IF('Enrollment Form'!B998<>\"Subscriber\",\"-\",IF(AND('Enrollment Form'!B998=\"Subscriber\",'Enrollment Form'!C998=\"Enroll\",'Enrollment Form'!AA998=\"\"),\"N\",\"Y\"))","v":"-"},{"$f":"IF(OR('Enrollment Form'!B998=\"Subscriber\",'Enrollment Form'!B998=\"\"),\"-\",IF('Enrollment Form'!BP998=\"\",\"N\",\"Y\"))","v":"-"},{"$f":"IF('Enrollment Form'!B998<>\"Subscriber\",\"-\",IF(AND('Enrollment Form'!B998=\"Subscriber\",'Enrollment Form'!G998=\"\"),\"N\",\"Y\"))","v":"-"},{"$f":"IF('Enrollment Form'!A998=\"\",\"\",IF('Enrollment Form'!B998=\"Subscriber\",\"-\",IF(AND('Enrollment Form'!B998<>\"Subscriber\",'Enrollment Form'!G998='Enrollment Form'!H998),\"N\",\"Y\")))","v":""},0]
[999,{"$f":"IF('Enrollment Form'!$A999<>\"\",\"Y\",\"N\")","v":"N"},{"$f":"IF(AND('Enrollment Form'!$B999=\"\",'Enrollment Form'!$C999<>\"\"),\"N\",IF($B992=\"N\",\"\",\"Y\"))","v":""},{"$f":"IF(OR($B992=\"N\",'Enrollment Form'!G999=\"\"),\"\",IF('Enrollment Form'!$B999<>\"Subscriber\",\"\",IF('Enrollment Form'!$G999='Enrollment Form'!$H999,\"Y\",\"N\")))","v":""},{"$f":"IF($B992=\"N\",\"\",IF(AND(COUNTIFS('Enrollment Form'!$H$11:$H$1000,'Enrollment Form'!$H999,'Enrollment Form'!$B$11:$B$1000,'Enrollment Form'!$B999)>1,'Enrollment Form'!$H999<>\"\"),\"N\",\"Y\"))","v":""},{"$f":"IF($B992=\"N\",\"\",IF(LEN('Enrollment Form'!$Y999)=0,\"\",IF(LEN('Enrollment Form'!$Y999)<>5,\"N\",\"Y\")))","v":""},{"$f":"IF($B992=\"N\",\"\",IF(LEN('Enrollment Form'!$AD999=0),\"\",IF(LEN('Enrollment Form'!$AD999)<>5,\"N\",\"Y\")))","v":""},{"$f":"IF($B992=\"N\",\"\",IF(LEN('Enrollment Form'!$BS999=0),\"\",IF(LEN('Enrollment Form'!$BS999)<>5,\"N\",\"Y\")))","v":""},{"$f":"IF($B992=\"N\",\"\",IF(LEN('Enrollment Form'!$AE999)=0,\"\",IF(LEN('Enrollment Form'!$AE999)<>10,\"N\",\"Y\")))","v":""},{"$f":"IF($B992=\"N\",\"\",IF(LEN('Enrollment Form'!$AF999)=0,\"\",IF(LEN('Enrollment Form'!$AF999)<>10,\"N\",\"Y\")))","v":""},{"$f":"IF('Enrollment Form'!$O999<>\"Graded\",\"-\",IF(AND('Enrollment Form'!$O999=\"Graded\",'Enrollment Form'!$AR999<>\"\"),\"Y\",\"N\"))","v":"-"},{"$f":"IF($B992=\"N\",\"\",IF(OR('Enrollment Form'!$B999<>\"Subscriber\",'Enrollment Form'!$C999=\"ROC\"),\"-\",IF(AND('Enrollment Form'!$B999=\"Subscriber\",'Enrollment Form'!$C999=\"Enroll\",'Enrollment Form'!$AJ999<>\"\"),\"Y\",\"N\")))","v":""},{"$f":"IF($B992=\"N\",\"\",IF(OR('Enrollment Form'!$B999<>\"Subscriber\",'Enrollment Form'!$C999=\"ROC\"),\"-\",IF(AND('Enrollment Form'!$B999=\"Subscriber\",'Enrollment Form'!$C999=\"Enroll\",'Enrollment Form'!$AK999<>\"\"),\"Y\",\"N\")))","v":""},{"$f":"IF($B992=\"N\",\"\",IF(OR('Enrollment Form'!$B999<>\"Subscriber\",'Enrollment Form'!$C999=\"ROC\"),\"-\",IF(AND('Enrollment Form'!$B999=\"Subscriber\",'Enrollment Form'!$C999=\"Enroll\",'Enrollment Form'!$AL999<>\"\"),\"Y\",\"N\")))","v":""},{"$f":"IF($B992=\"N\",\"\",IF(OR('Enrollment Form'!$B999<>\"Subscriber\",'Enrollment Form'!$C999=\"ROC\"),\"-\",IF(AND('Enrollment Form'!$B999=\"Subscriber\",'Enrollment Form'!$C999=\"Enroll\",'Enrollment Form'!$AP999<>\"\"),\"Y\",\"N\")))","v":""},{"$f":"IF($B992=\"N\",\"\",IF(OR('Enrollment Form'!$B999<>\"Subscriber\",'Enrollment Form'!$C999=\"ROC\"),\"-\",IF(AND('Enrollment Form'!$B999=\"Subscriber\",'Enrollment Form'!$C999=\"Enroll\",'Enrollment Form'!$AQ999<>\"\"),\"Y\",\"N\")))","v":""},{"$f":"IF($B992=\"N\",\"\",IF(OR('Enrollment Form'!$B999<>\"Subscriber\",'Enrollment Form'!$C999=\"ROC\"),\"-\",IF(AND('Enrollment Form'!$B999=\"Subscriber\",'Enrollment Form'!$C999=\"Enroll\",'Enrollment Form'!$AS999<>\"\"),\"Y\",\"N\")))","v":""},{"$f":"IF($B992=\"N\",\"\",IF($Q992=\"-\",\"-\",IF(AND($Q992=\"Y\",'Enrollment Form'!$AS999=\"No\"),\"-\",IF(AND($Q992=\"Y\",'Enrollment Form'!$AS999=\"Yes\",'Enrollment Form'!$AT999<>\"\"),\"Y\",\"N\"))))","v":""},{"$f":"IF($B992=\"N\",\"\",IF(OR('Enrollment Form'!$B999<>\"Subscriber\",'Enrollment Form'!$C999=\"ROC\"),\"-\",IF(AND('Enrollment Form'!$B999=\"Subscriber\",'Enrollment Form'!$C999=\"Enroll\",'Enrollment Form'!$CV999<>\"\"),\"Y\",\"N\")))","v":""},{"$f":"IF($B992=\"N\",\"\",IF($S992=\"-\",\"-\",IF(AND($S992=\"Y\",'Enrollment Form'!$CV999=\"No\"),\"-\",IF(AND($S992=\"Y\",'Enrollment Form'!$CV999=\"Yes\",'Enrollment Form'!$CW999<>\"\"),\"Y\",\"N\"))))","v":""},{"$f":"IF(OR('Enrollment Form'!$AY999=\"Yes\",'Enrollment Form'!$AY999=\"\"),\"-\",IF(OR(AND('Enrollment Form'!$AY999=\"No\",ISERROR(FIND(\"HMO\",VLOOKUP('Enrollment Form'!G999,'Enrollment Form'!H$11:J$1000,3,FALSE),1))=FALSE,COUNTA('Enrollment Form'!$AZ999:$BC999)=4),AND('Enrollment Form'!$AY999=\"No\",ISERROR(FIND(\"HMO\",VLOOKUP('Enrollment Form'!G999,'Enrollment Form'!H$11:J$1000,3,FALSE),1))=FALSE,COUNTA('Enrollment Form'!$BT999:$BW999)=4)),\"Y\",\"N\"))","v":"-"},{"$f":"IF($B992=\"N\",\"\",IF('Enrollment Form'!$B999=\"Subscriber\",\"-\",IF(COUNTA('Enrollment Form'!$BL999,'Enrollment Form'!$BN999)=2,\"Y\",\"N\")))","v":""},{"$f":"IF($B992=\"N\",\"\",IF(OR('Enrollment Form'!$AX999=\"\",'Enrollment Form'!$AX999=\"No\"),\"-\",IF(AND('Enrollment Form'!$AX999=\"Yes\",COUNTA('Enrollment Form'!$CR999)=1),\"Y\",\"N\")))","v":""},{"$f":"IF(OR('Enrollment Form'!$CR999=\"\",'Enrollment Form'!$CR999=\"No\"),\"-\",IF(COUNTA('Enrollment Form'!$CT999:$CU999)=2,\"Y\",\"N\"))","v":"-"},{"$f":"IF($B992=\"N\",\"\",IF(COUNTIF('Enrollment Form'!$DG999:$DP999,\"Other\")=COUNTA('Enrollment Form'!$DK999,'Enrollment Form'!$DH999,'Enrollment Form'!$DN999,'Enrollment Form'!$DQ999),\"Y\",\"N\"))","v":""},{"$f":"IF($B992=\"N\",\"\",IF(OR('Enrollment Form'!B999<>\"Subscriber\",'Enrollment Form'!C999=\"ROC\",COUNTIF('Enrollment Form'!AV999:AW999,\"Yes\")>=1),\"-\",IF(AND('Enrollment Form'!C999=\"Enroll\",COUNTIF('Enrollment Form'!AV999:AW999,\"No\")=2,'Enrollment Form'!AX999=\"\"),\"N\",\"Y\")))","v":""},{"$f":"IF(OR(B992=\"N\",'Enrollment Form'!B999<>\"Subscriber\",'Enrollment Form'!C999=\"ROC\",'Enrollment Form'!O999<>\"Multiple of Salary\"),\"-\",IF(COUNTA('Enrollment Form'!T999:U999)<2,\"N\",\"Y\"))","v":"-"},{"$f":"IF(B992=\"N\",\"\",IF(OR('Enrollment Form'!C999=\"ROC\",'Enrollment Form'!B999<>\"Subscriber\",'Enrollment Form'!O999=\"Waive\",'Enrollment Form'!O999=\"\"),\"-\",IF('Enrollment Form'!P999=\"\",\"N\",\"Y\")))","v":""},{"$f":"IF($B992=\"N\",\"\",IF(AND('Enrollment Form'!$C999=\"ROC\",'Enrollment Form'!$DR999<>\"\"),\"Y\",IF(AND('Enrollment Form'!$C999=\"ROC\",'Enrollment Form'!$DR999=\"\"),\"N\",IF(AND('Enrollment Form'!$C999=\"Enroll\",'Enrollment Form'!$B999=\"Subscriber\",'Enrollment Form'!$CX999=\"No\",'Enrollment Form'!$DR999=\"\"),\"N\",IF(AND('Enrollment Form'!$C999=\"Enroll\",'Enrollment Form'!$B999=\"Subscriber\",'Enrollment Form'!$CX999=\"Yes\"),\"-\",\"Y\")))))","v":""},{"$f":"IF($B992=\"N\",\"\",IF(AND('Enrollment Form'!$C999=\"ROC\",'Enrollment Form'!$DS999<>\"\"),\"Y\",IF(AND('Enrollment Form'!$C999=\"ROC\",'Enrollment Form'!$DS999=\"\"),\"N\",IF(AND('Enrollment Form'!$C999=\"Enroll\",'Enrollment Form'!$B999=\"Subscriber\",'Enrollment Form'!$CX999=\"No\",'Enrollment Form'!$DS999=\"\"),\"N\",IF(AND('Enrollment Form'!$C999=\"Enroll\",'Enrollment Form'!$B999=\"Subscriber\",'Enrollment Form'!$CX999=\"Yes\"),\"-\",\"Y\")))))","v":""},{"$f":"IF('Enrollment Form'!AH999=\"\",\"\",IF(ISERROR(SEARCH(\".\",'Enrollment Form'!AH999,SEARCH(\"@\",'Enrollment Form'!AH999))),\"N\",\"Y\"))","v":""},{"$f":"IF(OR($B992=\"N\",'Enrollment Form'!$G999=\"\"),\"\",IF('Enrollment Form'!$B999<>\"Subscriber\",\"-\",IF(COUNTIF('Enrollment Form'!$AV999:$AW999,\"Yes\")=2,\"N\",\"Y\")))","v":""},{"$f":"IF(OR('Enrollment Form'!$CJ999=\"\",'Enrollment Form'!$CJ999=\"No\"),\"-\",IF(AND('Enrollment Form'!$CJ999=\"Yes\",'Enrollment Form'!$CK999=\"\"),\"N\",\"Y\"))","v":"-"},{"$f":"IF(OR('Enrollment Form'!$CL999=\"\",'Enrollment Form'!$CL999=\"No\"),\"-\",IF(AND('Enrollment Form'!$CL999=\"Yes\",'Enrollment Form'!$CM999=\"\"),\"N\",\"Y\"))","v":"-"},{"$f":"IF(OR('Enrollment Form'!$CN999=\"\",'Enrollment Form'!$CN999=\"No\"),\"-\",IF(AND('Enrollment Form'!$CN999=\"Yes\",'Enrollment Form'!$CO999=\"\"),\"N\",\"Y\"))","v":"-"},{"$f":"IF(OR('Enrollment Form'!$CN999=\"\",'Enrollment Form'!$CN999=\"No\"),\"-\",IF(AND('Enrollment Form'!$CN999=\"Yes\",'Enrollment Form'!$CP999=\"\"),\"N\",\"Y\"))","v":"-"},{"$f":"IF('Enrollment Form'!B999<>\"Subscriber\",\"-\",IF(AND('Enrollment Form'!B999=\"Subscriber\",'Enrollment Form'!C999=\"Enroll\",'Enrollment Form'!AA999=\"\"),\"N\",\"Y\"))","v":"-"},{"$f":"IF(OR('Enrollment Form'!B999=\"Subscriber\",'Enrollment Form'!B999=\"\"),\"-\",IF('Enrollment Form'!BP999=\"\",\"N\",\"Y\"))","v":"-"},{"$f":"IF('Enrollment Form'!B999<>\"Subscriber\",\"-\",IF(AND('Enrollment Form'!B999=\"Subscriber\",'Enrollment Form'!G999=\"\"),\"N\",\"Y\"))","v":"-"},{"$f":"IF('Enrollment Form'!A999=\"\",\"\",IF('Enrollment Form'!B999=\"Subscriber\",\"-\",IF(AND('Enrollment Form'!B999<>\"Subscriber\",'Enrollment Form'!G999='Enrollment Form'!H999),\"N\",\"Y\")))","v":""},0]
[1000,{"$f":"IF('Enrollment Form'!$A1000<>\"\",\"Y\",\"N\")","v":"N"},{"$f":"IF(AND('Enrollment Form'!$B1000=\"\",'Enrollment Form'!$C1000<>\"\"),\"N\",IF($B993=\"N\",\"\",\"Y\"))","v":""},{"$f":"IF(OR($B993=\"N\",'Enrollment Form'!G1000=\"\"),\"\",IF('Enrollment Form'!$B1000<>\"Subscriber\",\"\",IF('Enrollment Form'!$G1000='Enrollment Form'!$H1000,\"Y\",\"N\")))","v":""},{"$f":"IF($B993=\"N\",\"\",IF(AND(COUNTIFS('Enrollment Form'!$H$11:$H$1000,'Enrollment Form'!$H1000,'Enrollment Form'!$B$11:$B$1000,'Enrollment Form'!$B1000)>1,'Enrollment Form'!$H1000<>\"\"),\"N\",\"Y\"))","v":""},{"$f":"IF($B993=\"N\",\"\",IF(LEN('Enrollment Form'!$Y1000)=0,\"\",IF(LEN('Enrollment Form'!$Y1000)<>5,\"N\",\"Y\")))","v":""},{"$f":"IF($B993=\"N\",\"\",IF(LEN('Enrollment Form'!$AD1000=0),\"\",IF(LEN('Enrollment Form'!$AD1000)<>5,\"N\",\"Y\")))","v":""},{"$f":"IF($B993=\"N\",\"\",IF(LEN('Enrollment Form'!$BS1000=0),\"\",IF(LEN('Enrollment Form'!$BS1000)<>5,\"N\",\"Y\")))","v":""},{"$f":"IF($B993=\"N\",\"\",IF(LEN('Enrollment Form'!$AE1000)=0,\"\",IF(LEN('Enrollment Form'!$AE1000)<>10,\"N\",\"Y\")))","v":""},{"$f":"IF($B993=\"N\",\"\",IF(LEN('Enrollment Form'!$AF1000)=0,\"\",IF(LEN('Enrollment Form'!$AF1000)<>10,\"N\",\"Y\")))","v":""},{"$f":"IF('Enrollment Form'!$O1000<>\"Graded\",\"-\",IF(AND('Enrollment Form'!$O1000=\"Graded\",'Enrollment Form'!$AR1000<>\"\"),\"Y\",\"N\"))","v":"-"},{"$f":"IF($B993=\"N\",\"\",IF(OR('Enrollment Form'!$B1000<>\"Subscriber\",'Enrollment Form'!$C1000=\"ROC\"),\"-\",IF(AND('Enrollment Form'!$B1000=\"Subscriber\",'Enrollment Form'!$C1000=\"Enroll\",'Enrollment Form'!$AJ1000<>\"\"),\"Y\",\"N\")))","v":""},{"$f":"IF($B993=\"N\",\"\",IF(OR('Enrollment Form'!$B1000<>\"Subscriber\",'Enrollment Form'!$C1000=\"ROC\"),\"-\",IF(AND('Enrollment Form'!$B1000=\"Subscriber\",'Enrollment Form'!$C1000=\"Enroll\",'Enrollment Form'!$AK1000<>\"\"),\"Y\",\"N\")))","v":""},{"$f":"IF($B993=\"N\",\"\",IF(OR('Enrollment Form'!$B1000<>\"Subscriber\",'Enrollment Form'!$C1000=\"ROC\"),\"-\",IF(AND('Enrollment Form'!$B1000=\"Subscriber\",'Enrollment Form'!$C1000=\"Enroll\",'Enrollment Form'!$AL1000<>\"\"),\"Y\",\"N\")))","v":""},{"$f":"IF($B993=\"N\",\"\",IF(OR('Enrollment Form'!$B1000<>\"Subscriber\",'Enrollment Form'!$C1000=\"ROC\"),\"-\",IF(AND('Enrollment Form'!$B1000=\"Subscriber\",'Enrollment Form'!$C1000=\"Enroll\",'Enrollment Form'!$AP1000<>\"\"),\"Y\",\"N\")))","v":""},{"$f":"IF($B993=\"N\",\"\",IF(OR('Enrollment Form'!$B1000<>\"Subscriber\",'Enrollment Form'!$C1000=\"ROC\"),\"-\",IF(AND('Enrollment Form'!$B1000=\"Subscriber\",'Enrollment Form'!$C1000=\"Enroll\",'Enrollment Form'!$AQ1000<>\"\"),\"Y\",\"N\")))","v":""},{"$f":"IF($B993=\"N\",\"\",IF(OR('Enrollment Form'!$B1000<>\"Subscriber\",'Enrollment Form'!$C1000=\"ROC\"),\"-\",IF(AND('Enrollment Form'!$B1000=\"Subscriber\",'Enrollment Form'!$C1000=\"Enroll\",'Enrollment Form'!$AS1000<>\"\"),\"Y\",\"N\")))","v":""},{"$f":"IF($B993=\"N\",\"\",IF($Q993=\"-\",\"-\",IF(AND($Q993=\"Y\",'Enrollment Form'!$AS1000=\"No\"),\"-\",IF(AND($Q993=\"Y\",'Enrollment Form'!$AS1000=\"Yes\",'Enrollment Form'!$AT1000<>\"\"),\"Y\",\"N\"))))","v":""},{"$f":"IF($B993=\"N\",\"\",IF(OR('Enrollment Form'!$B1000<>\"Subscriber\",'Enrollment Form'!$C1000=\"ROC\"),\"-\",IF(AND('Enrollment Form'!$B1000=\"Subscriber\",'Enrollment Form'!$C1000=\"Enroll\",'Enrollment Form'!$CV1000<>\"\"),\"Y\",\"N\")))","v":""},{"$f":"IF($B993=\"N\",\"\",IF($S993=\"-\",\"-\",IF(AND($S993=\"Y\",'Enrollment Form'!$CV1000=\"No\"),\"-\",IF(AND($S993=\"Y\",'Enrollment Form'!$CV1000=\"Yes\",'Enrollment Form'!$CW1000<>\"\"),\"Y\",\"N\"))))","v":""},{"$f":"IF(OR('Enrollment Form'!$AY1000=\"Yes\",'Enrollment Form'!$AY1000=\"\"),\"-\",IF(OR(AND('Enrollment Form'!$AY1000=\"No\",ISERROR(FIND(\"HMO\",VLOOKUP('Enrollment Form'!G1000,'Enrollment Form'!H$11:J$1000,3,FALSE),1))=FALSE,COUNTA('Enrollment Form'!$AZ1000:$BC1000)=4),AND('Enrollment Form'!$AY1000=\"No\",ISERROR(FIND(\"HMO\",VLOOKUP('Enrollment Form'!G1000,'Enrollment Form'!H$11:J$1000,3,FALSE),1))=FALSE,COUNTA('Enrollment Form'!$BT1000:$BW1000)=4)),\"Y\",\"N\"))","v":"-"},{"$f":"IF($B993=\"N\",\"\",IF('Enrollment Form'!$B1000=\"Subscriber\",\"-\",IF(COUNTA('Enrollment Form'!$BL1000,'Enrollment Form'!$BN1000)=2,\"Y\",\"N\")))","v":""},{"$f":"IF($B993=\"N\",\"\",IF(OR('Enrollment Form'!$AX1000=\"\",'Enrollment Form'!$AX1000=\"No\"),\"-\",IF(AND('Enrollment Form'!$AX1000=\"Yes\",COUNTA('Enrollment Form'!$CR1000)=1),\"Y\",\"N\")))","v":""},{"$f":"IF(OR('Enrollment Form'!$CR1000=\"\",'Enrollment Form'!$CR1000=\"No\"),\"-\",IF(COUNTA('Enrollment Form'!$CT1000:$CU1000)=2,\"Y\",\"N\"))","v":"-"},{"$f":"IF($B993=\"N\",\"\",IF(COUNTIF('Enrollment Form'!$DG1000:$DP1000,\"Other\")=COUNTA('Enrollment Form'!$DK1000,'Enrollment Form'!$DH1000,'Enrollment Form'!$DN1000,'Enrollment Form'!$DQ1000),\"Y\",\"N\"))","v":""},{"$f":"IF($B993=\"N\",\"\",IF(OR('Enrollment Form'!B1000<>\"Subscriber\",'Enrollment Form'!C1000=\"ROC\",COUNTIF('Enrollment Form'!AV1000:AW1000,\"Yes\")>=1),\"-\",IF(AND('Enrollment Form'!C1000=\"Enroll\",COUNTIF('Enrollment Form'!AV1000:AW1000,\"No\")=2,'Enrollment Form'!AX1000=\"\"),\"N\",\"Y\")))","v":""},{"$f":"IF(OR(B993=\"N\",'Enrollment Form'!B1000<>\"Subscriber\",'Enrollment Form'!C1000=\"ROC\",'Enrollment Form'!O1000<>\"Multiple of Salary\"),\"-\",IF(COUNTA('Enrollment Form'!T1000:U1000)<2,\"N\",\"Y\"))","v":"-"},{"$f":"IF(B993=\"N\",\"\",IF(OR('Enrollment Form'!C1000=\"ROC\",'Enrollment Form'!B1000<>\"Subscriber\",'Enrollment Form'!O1000=\"Waive\",'Enrollment Form'!O1000=\"\"),\"-\",IF('Enrollment Form'!P1000=\"\",\"N\",\"Y\")))","v":""},{"$f":"IF($B993=\"N\",\"\",IF(AND('Enrollment Form'!$C1000=\"ROC\",'Enrollment Form'!$DR1000<>\"\"),\"Y\",IF(AND('Enrollment Form'!$C1000=\"ROC\",'Enrollment Form'!$DR1000=\"\"),\"N\",IF(AND('Enrollment Form'!$C1000=\"Enroll\",'Enrollment Form'!$B1000=\"Subscriber\",'Enrollment Form'!$CX1000=\"No\",'Enrollment Form'!$DR1000=\"\"),\"N\",IF(AND('Enrollment Form'!$C1000=\"Enroll\",'Enrollment Form'!$B1000=\"Subscriber\",'Enrollment Form'!$CX1000=\"Yes\"),\"-\",\"Y\")))))","v":""},{"$f":"IF($B993=\"N\",\"\",IF(AND('Enrollment Form'!$C1000=\"ROC\",'Enrollment Form'!$DS1000<>\"\"),\"Y\",IF(AND('Enrollment Form'!$C1000=\"ROC\",'Enrollment Form'!$DS1000=\"\"),\"N\",IF(AND('Enrollment Form'!$C1000=\"Enroll\",'Enrollment Form'!$B1000=\"Subscriber\",'Enrollment Form'!$CX1000=\"No\",'Enrollment Form'!$DS1000=\"\"),\"N\",IF(AND('Enrollment Form'!$C1000=\"Enroll\",'Enrollment Form'!$B1000=\"Subscriber\",'Enrollment Form'!$CX1000=\"Yes\"),\"-\",\"Y\")))))","v":""},{"$f":"IF('Enrollment Form'!AH1000=\"\",\"\",IF(ISERROR(SEARCH(\".\",'Enrollment Form'!AH1000,SEARCH(\"@\",'Enrollment Form'!AH1000))),\"N\",\"Y\"))","v":""},{"$f":"IF(OR($B993=\"N\",'Enrollment Form'!$G1000=\"\"),\"\",IF('Enrollment Form'!$B1000<>\"Subscriber\",\"-\",IF(COUNTIF('Enrollment Form'!$AV1000:$AW1000,\"Yes\")=2,\"N\",\"Y\")))","v":""},{"$f":"IF(OR('Enrollment Form'!$CJ1000=\"\",'Enrollment Form'!$CJ1000=\"No\"),\"-\",IF(AND('Enrollment Form'!$CJ1000=\"Yes\",'Enrollment Form'!$CK1000=\"\"),\"N\",\"Y\"))","v":"-"},{"$f":"IF(OR('Enrollment Form'!$CL1000=\"\",'Enrollment Form'!$CL1000=\"No\"),\"-\",IF(AND('Enrollment Form'!$CL1000=\"Yes\",'Enrollment Form'!$CM1000=\"\"),\"N\",\"Y\"))","v":"-"},{"$f":"IF(OR('Enrollment Form'!$CN1000=\"\",'Enrollment Form'!$CN1000=\"No\"),\"-\",IF(AND('Enrollment Form'!$CN1000=\"Yes\",'Enrollment Form'!$CO1000=\"\"),\"N\",\"Y\"))","v":"-"},{"$f":"IF(OR('Enrollment Form'!$CN1000=\"\",'Enrollment Form'!$CN1000=\"No\"),\"-\",IF(AND('Enrollment Form'!$CN1000=\"Yes\",'Enrollment Form'!$CP1000=\"\"),\"N\",\"Y\"))","v":"-"},{"$f":"IF('Enrollment Form'!B1000<>\"Subscriber\",\"-\",IF(AND('Enrollment Form'!B1000=\"Subscriber\",'Enrollment Form'!C1000=\"Enroll\",'Enrollment Form'!AA1000=\"\"),\"N\",\"Y\"))","v":"-"},{"$f":"IF(OR('Enrollment Form'!B1000=\"Subscriber\",'Enrollment Form'!B1000=\"\"),\"-\",IF('Enrollment Form'!BP1000=\"\",\"N\",\"Y\"))","v":"-"},{"$f":"IF('Enrollment Form'!B1000<>\"Subscriber\",\"-\",IF(AND('Enrollment Form'!B1000=\"Subscriber\",'Enrollment Form'!G1000=\"\"),\"N\",\"Y\"))","v":"-"},{"$f":"IF('Enrollment Form'!A1000=\"\",\"\",IF('Enrollment Form'!B1000=\"Subscriber\",\"-\",IF(AND('Enrollment Form'!B1000<>\"Subscriber\",'Enrollment Form'!G1000='Enrollment Form'!H1000),\"N\",\"Y\")))","v":""},0]
[1001,{"$f":"IF('Enrollment Form'!$A1001<>\"\",\"Y\",\"N\")","v":"N"},{"$f":"IF(AND('Enrollment Form'!$B1001=\"\",'Enrollment Form'!$C1001<>\"\"),\"N\",IF($B994=\"N\",\"\",\"Y\"))","v":""},{"$f":"IF(OR($B994=\"N\",'Enrollment Form'!G1001=\"\"),\"\",IF('Enrollment Form'!$B1001<>\"Subscriber\",\"\",IF('Enrollment Form'!$G1001='Enrollment Form'!$H1001,\"Y\",\"N\")))","v":""},{"$f":"IF($B994=\"N\",\"\",IF(AND(COUNTIFS('Enrollment Form'!$H$11:$H$1000,'Enrollment Form'!$H1001,'Enrollment Form'!$B$11:$B$1000,'Enrollment Form'!$B1001)>1,'Enrollment Form'!$H1001<>\"\"),\"N\",\"Y\"))","v":""},{"$f":"IF($B994=\"N\",\"\",IF(LEN('Enrollment Form'!$Y1001)=0,\"\",IF(LEN('Enrollment Form'!$Y1001)<>5,\"N\",\"Y\")))","v":""},{"$f":"IF($B994=\"N\",\"\",IF(LEN('Enrollment Form'!$AD1001=0),\"\",IF(LEN('Enrollment Form'!$AD1001)<>5,\"N\",\"Y\")))","v":""},{"$f":"IF($B994=\"N\",\"\",IF(LEN('Enrollment Form'!$BS1001=0),\"\",IF(LEN('Enrollment Form'!$BS1001)<>5,\"N\",\"Y\")))","v":""},{"$f":"IF($B994=\"N\",\"\",IF(LEN('Enrollment Form'!$AE1001)=0,\"\",IF(LEN('Enrollment Form'!$AE1001)<>10,\"N\",\"Y\")))","v":""},{"$f":"IF($B994=\"N\",\"\",IF(LEN('Enrollment Form'!$AF1001)=0,\"\",IF(LEN('Enrollment Form'!$AF1001)<>10,\"N\",\"Y\")))","v":""},{"$f":"IF('Enrollment Form'!$O1001<>\"Graded\",\"-\",IF(AND('Enrollment Form'!$O1001=\"Graded\",'Enrollment Form'!$AR1001<>\"\"),\"Y\",\"N\"))","v":"-"},{"$f":"IF($B994=\"N\",\"\",IF(OR('Enrollment Form'!$B1001<>\"Subscriber\",'Enrollment Form'!$C1001=\"ROC\"),\"-\",IF(AND('Enrollment Form'!$B1001=\"Subscriber\",'Enrollment Form'!$C1001=\"Enroll\",'Enrollment Form'!$AJ1001<>\"\"),\"Y\",\"N\")))","v":""},{"$f":"IF($B994=\"N\",\"\",IF(OR('Enrollment Form'!$B1001<>\"Subscriber\",'Enrollment Form'!$C1001=\"ROC\"),\"-\",IF(AND('Enrollment Form'!$B1001=\"Subscriber\",'Enrollment Form'!$C1001=\"Enroll\",'Enrollment Form'!$AK1001<>\"\"),\"Y\",\"N\")))","v":""},{"$f":"IF($B994=\"N\",\"\",IF(OR('Enrollment Form'!$B1001<>\"Subscriber\",'Enrollment Form'!$C1001=\"ROC\"),\"-\",IF(AND('Enrollment Form'!$B1001=\"Subscriber\",'Enrollment Form'!$C1001=\"Enroll\",'Enrollment Form'!$AL1001<>\"\"),\"Y\",\"N\")))","v":""},{"$f":"IF($B994=\"N\",\"\",IF(OR('Enrollment Form'!$B1001<>\"Subscriber\",'Enrollment Form'!$C1001=\"ROC\"),\"-\",IF(AND('Enrollment Form'!$B1001=\"Subscriber\",'Enrollment Form'!$C1001=\"Enroll\",'Enrollment Form'!$AP1001<>\"\"),\"Y\",\"N\")))","v":""},{"$f":"IF($B994=\"N\",\"\",IF(OR('Enrollment Form'!$B1001<>\"Subscriber\",'Enrollment Form'!$C1001=\"ROC\"),\"-\",IF(AND('Enrollment Form'!$B1001=\"Subscriber\",'Enrollment Form'!$C1001=\"Enroll\",'Enrollment Form'!$AQ1001<>\"\"),\"Y\",\"N\")))","v":""},{"$f":"IF($B994=\"N\",\"\",IF(OR('Enrollment Form'!$B1001<>\"Subscriber\",'Enrollment Form'!$C1001=\"ROC\"),\"-\",IF(AND('Enrollment Form'!$B1001=\"Subscriber\",'Enrollment Form'!$C1001=\"Enroll\",'Enrollment Form'!$AS1001<>\"\"),\"Y\",\"N\")))","v":""},{"$f":"IF($B994=\"N\",\"\",IF($Q994=\"-\",\"-\",IF(AND($Q994=\"Y\",'Enrollment Form'!$AS1001=\"No\"),\"-\",IF(AND($Q994=\"Y\",'Enrollment Form'!$AS1001=\"Yes\",'Enrollment Form'!$AT1001<>\"\"),\"Y\",\"N\"))))","v":""},{"$f":"IF($B994=\"N\",\"\",IF(OR('Enrollment Form'!$B1001<>\"Subscriber\",'Enrollment Form'!$C1001=\"ROC\"),\"-\",IF(AND('Enrollment Form'!$B1001=\"Subscriber\",'Enrollment Form'!$C1001=\"Enroll\",'Enrollment Form'!$CV1001<>\"\"),\"Y\",\"N\")))","v":""},{"$f":"IF($B994=\"N\",\"\",IF($S994=\"-\",\"-\",IF(AND($S994=\"Y\",'Enrollment Form'!$CV1001=\"No\"),\"-\",IF(AND($S994=\"Y\",'Enrollment Form'!$CV1001=\"Yes\",'Enrollment Form'!$CW1001<>\"\"),\"Y\",\"N\"))))","v":""},{"$f":"IF(OR('Enrollment Form'!$AY1001=\"Yes\",'Enrollment Form'!$AY1001=\"\"),\"-\",IF(OR(AND('Enrollment Form'!$AY1001=\"No\",ISERROR(FIND(\"HMO\",VLOOKUP('Enrollment Form'!G1001,'Enrollment Form'!H$11:J$1000,3,FALSE),1))=FALSE,COUNTA('Enrollment Form'!$AZ1001:$BC1001)=4),AND('Enrollment Form'!$AY1001=\"No\",ISERROR(FIND(\"HMO\",VLOOKUP('Enrollment Form'!G1001,'Enrollment Form'!H$11:J$1000,3,FALSE),1))=FALSE,COUNTA('Enrollment Form'!$BT1001:$BW1001)=4)),\"Y\",\"N\"))","v":"-"},{"$f":"IF($B994=\"N\",\"\",IF('Enrollment Form'!$B1001=\"Subscriber\",\"-\",IF(COUNTA('Enrollment Form'!$BL1001,'Enrollment Form'!$BN1001)=2,\"Y\",\"N\")))","v":""},{"$f":"IF($B994=\"N\",\"\",IF(OR('Enrollment Form'!$AX1001=\"\",'Enrollment Form'!$AX1001=\"No\"),\"-\",IF(AND('Enrollment Form'!$AX1001=\"Yes\",COUNTA('Enrollment Form'!$CR1001)=1),\"Y\",\"N\")))","v":""},{"$f":"IF(OR('Enrollment Form'!$CR1001=\"\",'Enrollment Form'!$CR1001=\"No\"),\"-\",IF(COUNTA('Enrollment Form'!$CT1001:$CU1001)=2,\"Y\",\"N\"))","v":"-"},{"$f":"IF($B994=\"N\",\"\",IF(COUNTIF('Enrollment Form'!$DG1001:$DP1001,\"Other\")=COUNTA('Enrollment Form'!$DK1001,'Enrollment Form'!$DH1001,'Enrollment Form'!$DN1001,'Enrollment Form'!$DQ1001),\"Y\",\"N\"))","v":""},{"$f":"IF($B994=\"N\",\"\",IF(OR('Enrollment Form'!B1001<>\"Subscriber\",'Enrollment Form'!C1001=\"ROC\",COUNTIF('Enrollment Form'!AV1001:AW1001,\"Yes\")>=1),\"-\",IF(AND('Enrollment Form'!C1001=\"Enroll\",COUNTIF('Enrollment Form'!AV1001:AW1001,\"No\")=2,'Enrollment Form'!AX1001=\"\"),\"N\",\"Y\")))","v":""},{"$f":"IF(OR(B994=\"N\",'Enrollment Form'!B1001<>\"Subscriber\",'Enrollment Form'!C1001=\"ROC\",'Enrollment Form'!O1001<>\"Multiple of Salary\"),\"-\",IF(COUNTA('Enrollment Form'!T1001:U1001)<2,\"N\",\"Y\"))","v":"-"},{"$f":"IF(B994=\"N\",\"\",IF(OR('Enrollment Form'!C1001=\"ROC\",'Enrollment Form'!B1001<>\"Subscriber\",'Enrollment Form'!O1001=\"Waive\",'Enrollment Form'!O1001=\"\"),\"-\",IF('Enrollment Form'!P1001=\"\",\"N\",\"Y\")))","v":""},{"$f":"IF($B994=\"N\",\"\",IF(AND('Enrollment Form'!$C1001=\"ROC\",'Enrollment Form'!$DR1001<>\"\"),\"Y\",IF(AND('Enrollment Form'!$C1001=\"ROC\",'Enrollment Form'!$DR1001=\"\"),\"N\",IF(AND('Enrollment Form'!$C1001=\"Enroll\",'Enrollment Form'!$B1001=\"Subscriber\",'Enrollment Form'!$CX1001=\"No\",'Enrollment Form'!$DR1001=\"\"),\"N\",IF(AND('Enrollment Form'!$C1001=\"Enroll\",'Enrollment Form'!$B1001=\"Subscriber\",'Enrollment Form'!$CX1001=\"Yes\"),\"-\",\"Y\")))))","v":""},{"$f":"IF($B994=\"N\",\"\",IF(AND('Enrollment Form'!$C1001=\"ROC\",'Enrollment Form'!$DS1001<>\"\"),\"Y\",IF(AND('Enrollment Form'!$C1001=\"ROC\",'Enrollment Form'!$DS1001=\"\"),\"N\",IF(AND('Enrollment Form'!$C1001=\"Enroll\",'Enrollment Form'!$B1001=\"Subscriber\",'Enrollment Form'!$CX1001=\"No\",'Enrollment Form'!$DS1001=\"\"),\"N\",IF(AND('Enrollment Form'!$C1001=\"Enroll\",'Enrollment Form'!$B1001=\"Subscriber\",'Enrollment Form'!$CX1001=\"Yes\"),\"-\",\"Y\")))))","v":""},{"$f":"IF('Enrollment Form'!AH1001=\"\",\"\",IF(ISERROR(SEARCH(\".\",'Enrollment Form'!AH1001,SEARCH(\"@\",'Enrollment Form'!AH1001))),\"N\",\"Y\"))","v":""},{"$f":"IF(OR($B994=\"N\",'Enrollment Form'!$G1001=\"\"),\"\",IF('Enrollment Form'!$B1001<>\"Subscriber\",\"-\",IF(COUNTIF('Enrollment Form'!$AV1001:$AW1001,\"Yes\")=2,\"N\",\"Y\")))","v":""},{"$f":"IF(OR('Enrollment Form'!$CJ1001=\"\",'Enrollment Form'!$CJ1001=\"No\"),\"-\",IF(AND('Enrollment Form'!$CJ1001=\"Yes\",'Enrollment Form'!$CK1001=\"\"),\"N\",\"Y\"))","v":"-"},{"$f":"IF(OR('Enrollment Form'!$CL1001=\"\",'Enrollment Form'!$CL1001=\"No\"),\"-\",IF(AND('Enrollment Form'!$CL1001=\"Yes\",'Enrollment Form'!$CM1001=\"\"),\"N\",\"Y\"))","v":"-"},{"$f":"IF(OR('Enrollment Form'!$CN1001=\"\",'Enrollment Form'!$CN1001=\"No\"),\"-\",IF(AND('Enrollment Form'!$CN1001=\"Yes\",'Enrollment Form'!$CO1001=\"\"),\"N\",\"Y\"))","v":"-"},{"$f":"IF(OR('Enrollment Form'!$CN1001=\"\",'Enrollment Form'!$CN1001=\"No\"),\"-\",IF(AND('Enrollment Form'!$CN1001=\"Yes\",'Enrollment Form'!$CP1001=\"\"),\"N\",\"Y\"))","v":"-"},{"$f":"IF('Enrollment Form'!B1001<>\"Subscriber\",\"-\",IF(AND('Enrollment Form'!B1001=\"Subscriber\",'Enrollment Form'!C1001=\"Enroll\",'Enrollment Form'!AA1001=\"\"),\"N\",\"Y\"))","v":"-"},{"$f":"IF(OR('Enrollment Form'!B1001=\"Subscriber\",'Enrollment Form'!B1001=\"\"),\"-\",IF('Enrollment Form'!BP1001=\"\",\"N\",\"Y\"))","v":"-"},{"$f":"IF('Enrollment Form'!B1001<>\"Subscriber\",\"-\",IF(AND('Enrollment Form'!B1001=\"Subscriber\",'Enrollment Form'!G1001=\"\"),\"N\",\"Y\"))","v":"-"},{"$f":"IF('Enrollment Form'!A1001=\"\",\"\",IF('Enrollment Form'!B1001=\"Subscriber\",\"-\",IF(AND('Enrollment Form'!B1001<>\"Subscriber\",'Enrollment Form'!G1001='Enrollment Form'!H1001),\"N\",\"Y\")))","v":""},0]
[1002,{"$f":"IF('Enrollment Form'!$A1002<>\"\",\"Y\",\"N\")","v":"N"},{"$f":"IF(AND('Enrollment Form'!$B1002=\"\",'Enrollment Form'!$C1002<>\"\"),\"N\",IF($B995=\"N\",\"\",\"Y\"))","v":""},{"$f":"IF(OR($B995=\"N\",'Enrollment Form'!G1002=\"\"),\"\",IF('Enrollment Form'!$B1002<>\"Subscriber\",\"\",IF('Enrollment Form'!$G1002='Enrollment Form'!$H1002,\"Y\",\"N\")))","v":""},{"$f":"IF($B995=\"N\",\"\",IF(AND(COUNTIFS('Enrollment Form'!$H$11:$H$1000,'Enrollment Form'!$H1002,'Enrollment Form'!$B$11:$B$1000,'Enrollment Form'!$B1002)>1,'Enrollment Form'!$H1002<>\"\"),\"N\",\"Y\"))","v":""},{"$f":"IF($B995=\"N\",\"\",IF(LEN('Enrollment Form'!$Y1002)=0,\"\",IF(LEN('Enrollment Form'!$Y1002)<>5,\"N\",\"Y\")))","v":""},{"$f":"IF($B995=\"N\",\"\",IF(LEN('Enrollment Form'!$AD1002=0),\"\",IF(LEN('Enrollment Form'!$AD1002)<>5,\"N\",\"Y\")))","v":""},{"$f":"IF($B995=\"N\",\"\",IF(LEN('Enrollment Form'!$BS1002=0),\"\",IF(LEN('Enrollment Form'!$BS1002)<>5,\"N\",\"Y\")))","v":""},{"$f":"IF($B995=\"N\",\"\",IF(LEN('Enrollment Form'!$AE1002)=0,\"\",IF(LEN('Enrollment Form'!$AE1002)<>10,\"N\",\"Y\")))","v":""},{"$f":"IF($B995=\"N\",\"\",IF(LEN('Enrollment Form'!$AF1002)=0,\"\",IF(LEN('Enrollment Form'!$AF1002)<>10,\"N\",\"Y\")))","v":""},{"$f":"IF('Enrollment Form'!$O1002<>\"Graded\",\"-\",IF(AND('Enrollment Form'!$O1002=\"Graded\",'Enrollment Form'!$AR1002<>\"\"),\"Y\",\"N\"))","v":"-"},{"$f":"IF($B995=\"N\",\"\",IF(OR('Enrollment Form'!$B1002<>\"Subscriber\",'Enrollment Form'!$C1002=\"ROC\"),\"-\",IF(AND('Enrollment Form'!$B1002=\"Subscriber\",'Enrollment Form'!$C1002=\"Enroll\",'Enrollment Form'!$AJ1002<>\"\"),\"Y\",\"N\")))","v":""},{"$f":"IF($B995=\"N\",\"\",IF(OR('Enrollment Form'!$B1002<>\"Subscriber\",'Enrollment Form'!$C1002=\"ROC\"),\"-\",IF(AND('Enrollment Form'!$B1002=\"Subscriber\",'Enrollment Form'!$C1002=\"Enroll\",'Enrollment Form'!$AK1002<>\"\"),\"Y\",\"N\")))","v":""},{"$f":"IF($B995=\"N\",\"\",IF(OR('Enrollment Form'!$B1002<>\"Subscriber\",'Enrollment Form'!$C1002=\"ROC\"),\"-\",IF(AND('Enrollment Form'!$B1002=\"Subscriber\",'Enrollment Form'!$C1002=\"Enroll\",'Enrollment Form'!$AL1002<>\"\"),\"Y\",\"N\")))","v":""},{"$f":"IF($B995=\"N\",\"\",IF(OR('Enrollment Form'!$B1002<>\"Subscriber\",'Enrollment Form'!$C1002=\"ROC\"),\"-\",IF(AND('Enrollment Form'!$B1002=\"Subscriber\",'Enrollment Form'!$C1002=\"Enroll\",'Enrollment Form'!$AP1002<>\"\"),\"Y\",\"N\")))","v":""},{"$f":"IF($B995=\"N\",\"\",IF(OR('Enrollment Form'!$B1002<>\"Subscriber\",'Enrollment Form'!$C1002=\"ROC\"),\"-\",IF(AND('Enrollment Form'!$B1002=\"Subscriber\",'Enrollment Form'!$C1002=\"Enroll\",'Enrollment Form'!$AQ1002<>\"\"),\"Y\",\"N\")))","v":""},{"$f":"IF($B995=\"N\",\"\",IF(OR('Enrollment Form'!$B1002<>\"Subscriber\",'Enrollment Form'!$C1002=\"ROC\"),\"-\",IF(AND('Enrollment Form'!$B1002=\"Subscriber\",'Enrollment Form'!$C1002=\"Enroll\",'Enrollment Form'!$AS1002<>\"\"),\"Y\",\"N\")))","v":""},{"$f":"IF($B995=\"N\",\"\",IF($Q995=\"-\",\"-\",IF(AND($Q995=\"Y\",'Enrollment Form'!$AS1002=\"No\"),\"-\",IF(AND($Q995=\"Y\",'Enrollment Form'!$AS1002=\"Yes\",'Enrollment Form'!$AT1002<>\"\"),\"Y\",\"N\"))))","v":""},{"$f":"IF($B995=\"N\",\"\",IF(OR('Enrollment Form'!$B1002<>\"Subscriber\",'Enrollment Form'!$C1002=\"ROC\"),\"-\",IF(AND('Enrollment Form'!$B1002=\"Subscriber\",'Enrollment Form'!$C1002=\"Enroll\",'Enrollment Form'!$CV1002<>\"\"),\"Y\",\"N\")))","v":""},{"$f":"IF($B995=\"N\",\"\",IF($S995=\"-\",\"-\",IF(AND($S995=\"Y\",'Enrollment Form'!$CV1002=\"No\"),\"-\",IF(AND($S995=\"Y\",'Enrollment Form'!$CV1002=\"Yes\",'Enrollment Form'!$CW1002<>\"\"),\"Y\",\"N\"))))","v":""},{"$f":"IF(OR('Enrollment Form'!$AY1002=\"Yes\",'Enrollment Form'!$AY1002=\"\"),\"-\",IF(OR(AND('Enrollment Form'!$AY1002=\"No\",ISERROR(FIND(\"HMO\",VLOOKUP('Enrollment Form'!G1002,'Enrollment Form'!H$11:J$1000,3,FALSE),1))=FALSE,COUNTA('Enrollment Form'!$AZ1002:$BC1002)=4),AND('Enrollment Form'!$AY1002=\"No\",ISERROR(FIND(\"HMO\",VLOOKUP('Enrollment Form'!G1002,'Enrollment Form'!H$11:J$1000,3,FALSE),1))=FALSE,COUNTA('Enrollment Form'!$BT1002:$BW1002)=4)),\"Y\",\"N\"))","v":"-"},{"$f":"IF($B995=\"N\",\"\",IF('Enrollment Form'!$B1002=\"Subscriber\",\"-\",IF(COUNTA('Enrollment Form'!$BL1002,'Enrollment Form'!$BN1002)=2,\"Y\",\"N\")))","v":""},{"$f":"IF($B995=\"N\",\"\",IF(OR('Enrollment Form'!$AX1002=\"\",'Enrollment Form'!$AX1002=\"No\"),\"-\",IF(AND('Enrollment Form'!$AX1002=\"Yes\",COUNTA('Enrollment Form'!$CR1002)=1),\"Y\",\"N\")))","v":""},{"$f":"IF(OR('Enrollment Form'!$CR1002=\"\",'Enrollment Form'!$CR1002=\"No\"),\"-\",IF(COUNTA('Enrollment Form'!$CT1002:$CU1002)=2,\"Y\",\"N\"))","v":"-"},{"$f":"IF($B995=\"N\",\"\",IF(COUNTIF('Enrollment Form'!$DG1002:$DP1002,\"Other\")=COUNTA('Enrollment Form'!$DK1002,'Enrollment Form'!$DH1002,'Enrollment Form'!$DN1002,'Enrollment Form'!$DQ1002),\"Y\",\"N\"))","v":""},{"$f":"IF($B995=\"N\",\"\",IF(OR('Enrollment Form'!B1002<>\"Subscriber\",'Enrollment Form'!C1002=\"ROC\",COUNTIF('Enrollment Form'!AV1002:AW1002,\"Yes\")>=1),\"-\",IF(AND('Enrollment Form'!C1002=\"Enroll\",COUNTIF('Enrollment Form'!AV1002:AW1002,\"No\")=2,'Enrollment Form'!AX1002=\"\"),\"N\",\"Y\")))","v":""},{"$f":"IF(OR(B995=\"N\",'Enrollment Form'!B1002<>\"Subscriber\",'Enrollment Form'!C1002=\"ROC\",'Enrollment Form'!O1002<>\"Multiple of Salary\"),\"-\",IF(COUNTA('Enrollment Form'!T1002:U1002)<2,\"N\",\"Y\"))","v":"-"},{"$f":"IF(B995=\"N\",\"\",IF(OR('Enrollment Form'!C1002=\"ROC\",'Enrollment Form'!B1002<>\"Subscriber\",'Enrollment Form'!O1002=\"Waive\",'Enrollment Form'!O1002=\"\"),\"-\",IF('Enrollment Form'!P1002=\"\",\"N\",\"Y\")))","v":""},{"$f":"IF($B995=\"N\",\"\",IF(AND('Enrollment Form'!$C1002=\"ROC\",'Enrollment Form'!$DR1002<>\"\"),\"Y\",IF(AND('Enrollment Form'!$C1002=\"ROC\",'Enrollment Form'!$DR1002=\"\"),\"N\",IF(AND('Enrollment Form'!$C1002=\"Enroll\",'Enrollment Form'!$B1002=\"Subscriber\",'Enrollment Form'!$CX1002=\"No\",'Enrollment Form'!$DR1002=\"\"),\"N\",IF(AND('Enrollment Form'!$C1002=\"Enroll\",'Enrollment Form'!$B1002=\"Subscriber\",'Enrollment Form'!$CX1002=\"Yes\"),\"-\",\"Y\")))))","v":""},{"$f":"IF($B995=\"N\",\"\",IF(AND('Enrollment Form'!$C1002=\"ROC\",'Enrollment Form'!$DS1002<>\"\"),\"Y\",IF(AND('Enrollment Form'!$C1002=\"ROC\",'Enrollment Form'!$DS1002=\"\"),\"N\",IF(AND('Enrollment Form'!$C1002=\"Enroll\",'Enrollment Form'!$B1002=\"Subscriber\",'Enrollment Form'!$CX1002=\"No\",'Enrollment Form'!$DS1002=\"\"),\"N\",IF(AND('Enrollment Form'!$C1002=\"Enroll\",'Enrollment Form'!$B1002=\"Subscriber\",'Enrollment Form'!$CX1002=\"Yes\"),\"-\",\"Y\")))))","v":""},{"$f":"IF('Enrollment Form'!AH1002=\"\",\"\",IF(ISERROR(SEARCH(\".\",'Enrollment Form'!AH1002,SEARCH(\"@\",'Enrollment Form'!AH1002))),\"N\",\"Y\"))","v":""},{"$f":"IF(OR($B995=\"N\",'Enrollment Form'!$G1002=\"\"),\"\",IF('Enrollment Form'!$B1002<>\"Subscriber\",\"-\",IF(COUNTIF('Enrollment Form'!$AV1002:$AW1002,\"Yes\")=2,\"N\",\"Y\")))","v":""},{"$f":"IF(OR('Enrollment Form'!$CJ1002=\"\",'Enrollment Form'!$CJ1002=\"No\"),\"-\",IF(AND('Enrollment Form'!$CJ1002=\"Yes\",'Enrollment Form'!$CK1002=\"\"),\"N\",\"Y\"))","v":"-"},{"$f":"IF(OR('Enrollment Form'!$CL1002=\"\",'Enrollment Form'!$CL1002=\"No\"),\"-\",IF(AND('Enrollment Form'!$CL1002=\"Yes\",'Enrollment Form'!$CM1002=\"\"),\"N\",\"Y\"))","v":"-"},{"$f":"IF(OR('Enrollment Form'!$CN1002=\"\",'Enrollment Form'!$CN1002=\"No\"),\"-\",IF(AND('Enrollment Form'!$CN1002=\"Yes\",'Enrollment Form'!$CO1002=\"\"),\"N\",\"Y\"))","v":"-"},{"$f":"IF(OR('Enrollment Form'!$CN1002=\"\",'Enrollment Form'!$CN1002=\"No\"),\"-\",IF(AND('Enrollment Form'!$CN1002=\"Yes\",'Enrollment Form'!$CP1002=\"\"),\"N\",\"Y\"))","v":"-"},{"$f":"IF('Enrollment Form'!B1002<>\"Subscriber\",\"-\",IF(AND('Enrollment Form'!B1002=\"Subscriber\",'Enrollment Form'!C1002=\"Enroll\",'Enrollment Form'!AA1002=\"\"),\"N\",\"Y\"))","v":"-"},{"$f":"IF(OR('Enrollment Form'!B1002=\"Subscriber\",'Enrollment Form'!B1002=\"\"),\"-\",IF('Enrollment Form'!BP1002=\"\",\"N\",\"Y\"))","v":"-"},{"$f":"IF('Enrollment Form'!B1002<>\"Subscriber\",\"-\",IF(AND('Enrollment Form'!B1002=\"Subscriber\",'Enrollment Form'!G1002=\"\"),\"N\",\"Y\"))","v":"-"},{"$f":"IF('Enrollment Form'!A1002=\"\",\"\",IF('Enrollment Form'!B1002=\"Subscriber\",\"-\",IF(AND('Enrollment Form'!B1002<>\"Subscriber\",'Enrollment Form'!G1002='Enrollment Form'!H1002),\"N\",\"Y\")))","v":""},0]
[1003,{"$f":"IF('Enrollment Form'!$A1003<>\"\",\"Y\",\"N\")","v":"N"},{"$f":"IF(AND('Enrollment Form'!$B1003=\"\",'Enrollment Form'!$C1003<>\"\"),\"N\",IF($B996=\"N\",\"\",\"Y\"))","v":""},{"$f":"IF(OR($B996=\"N\",'Enrollment Form'!G1003=\"\"),\"\",IF('Enrollment Form'!$B1003<>\"Subscriber\",\"\",IF('Enrollment Form'!$G1003='Enrollment Form'!$H1003,\"Y\",\"N\")))","v":""},{"$f":"IF($B996=\"N\",\"\",IF(AND(COUNTIFS('Enrollment Form'!$H$11:$H$1000,'Enrollment Form'!$H1003,'Enrollment Form'!$B$11:$B$1000,'Enrollment Form'!$B1003)>1,'Enrollment Form'!$H1003<>\"\"),\"N\",\"Y\"))","v":""},{"$f":"IF($B996=\"N\",\"\",IF(LEN('Enrollment Form'!$Y1003)=0,\"\",IF(LEN('Enrollment Form'!$Y1003)<>5,\"N\",\"Y\")))","v":""},{"$f":"IF($B996=\"N\",\"\",IF(LEN('Enrollment Form'!$AD1003=0),\"\",IF(LEN('Enrollment Form'!$AD1003)<>5,\"N\",\"Y\")))","v":""},{"$f":"IF($B996=\"N\",\"\",IF(LEN('Enrollment Form'!$BS1003=0),\"\",IF(LEN('Enrollment Form'!$BS1003)<>5,\"N\",\"Y\")))","v":""},{"$f":"IF($B996=\"N\",\"\",IF(LEN('Enrollment Form'!$AE1003)=0,\"\",IF(LEN('Enrollment Form'!$AE1003)<>10,\"N\",\"Y\")))","v":""},{"$f":"IF($B996=\"N\",\"\",IF(LEN('Enrollment Form'!$AF1003)=0,\"\",IF(LEN('Enrollment Form'!$AF1003)<>10,\"N\",\"Y\")))","v":""},{"$f":"IF('Enrollment Form'!$O1003<>\"Graded\",\"-\",IF(AND('Enrollment Form'!$O1003=\"Graded\",'Enrollment Form'!$AR1003<>\"\"),\"Y\",\"N\"))","v":"-"},{"$f":"IF($B996=\"N\",\"\",IF(OR('Enrollment Form'!$B1003<>\"Subscriber\",'Enrollment Form'!$C1003=\"ROC\"),\"-\",IF(AND('Enrollment Form'!$B1003=\"Subscriber\",'Enrollment Form'!$C1003=\"Enroll\",'Enrollment Form'!$AJ1003<>\"\"),\"Y\",\"N\")))","v":""},{"$f":"IF($B996=\"N\",\"\",IF(OR('Enrollment Form'!$B1003<>\"Subscriber\",'Enrollment Form'!$C1003=\"ROC\"),\"-\",IF(AND('Enrollment Form'!$B1003=\"Subscriber\",'Enrollment Form'!$C1003=\"Enroll\",'Enrollment Form'!$AK1003<>\"\"),\"Y\",\"N\")))","v":""},{"$f":"IF($B996=\"N\",\"\",IF(OR('Enrollment Form'!$B1003<>\"Subscriber\",'Enrollment Form'!$C1003=\"ROC\"),\"-\",IF(AND('Enrollment Form'!$B1003=\"Subscriber\",'Enrollment Form'!$C1003=\"Enroll\",'Enrollment Form'!$AL1003<>\"\"),\"Y\",\"N\")))","v":""},{"$f":"IF($B996=\"N\",\"\",IF(OR('Enrollment Form'!$B1003<>\"Subscriber\",'Enrollment Form'!$C1003=\"ROC\"),\"-\",IF(AND('Enrollment Form'!$B1003=\"Subscriber\",'Enrollment Form'!$C1003=\"Enroll\",'Enrollment Form'!$AP1003<>\"\"),\"Y\",\"N\")))","v":""},{"$f":"IF($B996=\"N\",\"\",IF(OR('Enrollment Form'!$B1003<>\"Subscriber\",'Enrollment Form'!$C1003=\"ROC\"),\"-\",IF(AND('Enrollment Form'!$B1003=\"Subscriber\",'Enrollment Form'!$C1003=\"Enroll\",'Enrollment Form'!$AQ1003<>\"\"),\"Y\",\"N\")))","v":""},{"$f":"IF($B996=\"N\",\"\",IF(OR('Enrollment Form'!$B1003<>\"Subscriber\",'Enrollment Form'!$C1003=\"ROC\"),\"-\",IF(AND('Enrollment Form'!$B1003=\"Subscriber\",'Enrollment Form'!$C1003=\"Enroll\",'Enrollment Form'!$AS1003<>\"\"),\"Y\",\"N\")))","v":""},{"$f":"IF($B996=\"N\",\"\",IF($Q996=\"-\",\"-\",IF(AND($Q996=\"Y\",'Enrollment Form'!$AS1003=\"No\"),\"-\",IF(AND($Q996=\"Y\",'Enrollment Form'!$AS1003=\"Yes\",'Enrollment Form'!$AT1003<>\"\"),\"Y\",\"N\"))))","v":""},{"$f":"IF($B996=\"N\",\"\",IF(OR('Enrollment Form'!$B1003<>\"Subscriber\",'Enrollment Form'!$C1003=\"ROC\"),\"-\",IF(AND('Enrollment Form'!$B1003=\"Subscriber\",'Enrollment Form'!$C1003=\"Enroll\",'Enrollment Form'!$CV1003<>\"\"),\"Y\",\"N\")))","v":""},{"$f":"IF($B996=\"N\",\"\",IF($S996=\"-\",\"-\",IF(AND($S996=\"Y\",'Enrollment Form'!$CV1003=\"No\"),\"-\",IF(AND($S996=\"Y\",'Enrollment Form'!$CV1003=\"Yes\",'Enrollment Form'!$CW1003<>\"\"),\"Y\",\"N\"))))","v":""},{"$f":"IF(OR('Enrollment Form'!$AY1003=\"Yes\",'Enrollment Form'!$AY1003=\"\"),\"-\",IF(OR(AND('Enrollment Form'!$AY1003=\"No\",ISERROR(FIND(\"HMO\",VLOOKUP('Enrollment Form'!G1003,'Enrollment Form'!H$11:J$1000,3,FALSE),1))=FALSE,COUNTA('Enrollment Form'!$AZ1003:$BC1003)=4),AND('Enrollment Form'!$AY1003=\"No\",ISERROR(FIND(\"HMO\",VLOOKUP('Enrollment Form'!G1003,'Enrollment Form'!H$11:J$1000,3,FALSE),1))=FALSE,COUNTA('Enrollment Form'!$BT1003:$BW1003)=4)),\"Y\",\"N\"))","v":"-"},{"$f":"IF($B996=\"N\",\"\",IF('Enrollment Form'!$B1003=\"Subscriber\",\"-\",IF(COUNTA('Enrollment Form'!$BL1003,'Enrollment Form'!$BN1003)=2,\"Y\",\"N\")))","v":""},{"$f":"IF($B996=\"N\",\"\",IF(OR('Enrollment Form'!$AX1003=\"\",'Enrollment Form'!$AX1003=\"No\"),\"-\",IF(AND('Enrollment Form'!$AX1003=\"Yes\",COUNTA('Enrollment Form'!$CR1003)=1),\"Y\",\"N\")))","v":""},{"$f":"IF(OR('Enrollment Form'!$CR1003=\"\",'Enrollment Form'!$CR1003=\"No\"),\"-\",IF(COUNTA('Enrollment Form'!$CT1003:$CU1003)=2,\"Y\",\"N\"))","v":"-"},{"$f":"IF($B996=\"N\",\"\",IF(COUNTIF('Enrollment Form'!$DG1003:$DP1003,\"Other\")=COUNTA('Enrollment Form'!$DK1003,'Enrollment Form'!$DH1003,'Enrollment Form'!$DN1003,'Enrollment Form'!$DQ1003),\"Y\",\"N\"))","v":""},{"$f":"IF($B996=\"N\",\"\",IF(OR('Enrollment Form'!B1003<>\"Subscriber\",'Enrollment Form'!C1003=\"ROC\",COUNTIF('Enrollment Form'!AV1003:AW1003,\"Yes\")>=1),\"-\",IF(AND('Enrollment Form'!C1003=\"Enroll\",COUNTIF('Enrollment Form'!AV1003:AW1003,\"No\")=2,'Enrollment Form'!AX1003=\"\"),\"N\",\"Y\")))","v":""},{"$f":"IF(OR(B996=\"N\",'Enrollment Form'!B1003<>\"Subscriber\",'Enrollment Form'!C1003=\"ROC\",'Enrollment Form'!O1003<>\"Multiple of Salary\"),\"-\",IF(COUNTA('Enrollment Form'!T1003:U1003)<2,\"N\",\"Y\"))","v":"-"},{"$f":"IF(B996=\"N\",\"\",IF(OR('Enrollment Form'!C1003=\"ROC\",'Enrollment Form'!B1003<>\"Subscriber\",'Enrollment Form'!O1003=\"Waive\",'Enrollment Form'!O1003=\"\"),\"-\",IF('Enrollment Form'!P1003=\"\",\"N\",\"Y\")))","v":""},{"$f":"IF($B996=\"N\",\"\",IF(AND('Enrollment Form'!$C1003=\"ROC\",'Enrollment Form'!$DR1003<>\"\"),\"Y\",IF(AND('Enrollment Form'!$C1003=\"ROC\",'Enrollment Form'!$DR1003=\"\"),\"N\",IF(AND('Enrollment Form'!$C1003=\"Enroll\",'Enrollment Form'!$B1003=\"Subscriber\",'Enrollment Form'!$CX1003=\"No\",'Enrollment Form'!$DR1003=\"\"),\"N\",IF(AND('Enrollment Form'!$C1003=\"Enroll\",'Enrollment Form'!$B1003=\"Subscriber\",'Enrollment Form'!$CX1003=\"Yes\"),\"-\",\"Y\")))))","v":""},{"$f":"IF($B996=\"N\",\"\",IF(AND('Enrollment Form'!$C1003=\"ROC\",'Enrollment Form'!$DS1003<>\"\"),\"Y\",IF(AND('Enrollment Form'!$C1003=\"ROC\",'Enrollment Form'!$DS1003=\"\"),\"N\",IF(AND('Enrollment Form'!$C1003=\"Enroll\",'Enrollment Form'!$B1003=\"Subscriber\",'Enrollment Form'!$CX1003=\"No\",'Enrollment Form'!$DS1003=\"\"),\"N\",IF(AND('Enrollment Form'!$C1003=\"Enroll\",'Enrollment Form'!$B1003=\"Subscriber\",'Enrollment Form'!$CX1003=\"Yes\"),\"-\",\"Y\")))))","v":""},{"$f":"IF('Enrollment Form'!AH1003=\"\",\"\",IF(ISERROR(SEARCH(\".\",'Enrollment Form'!AH1003,SEARCH(\"@\",'Enrollment Form'!AH1003))),\"N\",\"Y\"))","v":""},{"$f":"IF(OR($B996=\"N\",'Enrollment Form'!$G1003=\"\"),\"\",IF('Enrollment Form'!$B1003<>\"Subscriber\",\"-\",IF(COUNTIF('Enrollment Form'!$AV1003:$AW1003,\"Yes\")=2,\"N\",\"Y\")))","v":""},{"$f":"IF(OR('Enrollment Form'!$CJ1003=\"\",'Enrollment Form'!$CJ1003=\"No\"),\"-\",IF(AND('Enrollment Form'!$CJ1003=\"Yes\",'Enrollment Form'!$CK1003=\"\"),\"N\",\"Y\"))","v":"-"},{"$f":"IF(OR('Enrollment Form'!$CL1003=\"\",'Enrollment Form'!$CL1003=\"No\"),\"-\",IF(AND('Enrollment Form'!$CL1003=\"Yes\",'Enrollment Form'!$CM1003=\"\"),\"N\",\"Y\"))","v":"-"},{"$f":"IF(OR('Enrollment Form'!$CN1003=\"\",'Enrollment Form'!$CN1003=\"No\"),\"-\",IF(AND('Enrollment Form'!$CN1003=\"Yes\",'Enrollment Form'!$CO1003=\"\"),\"N\",\"Y\"))","v":"-"},{"$f":"IF(OR('Enrollment Form'!$CN1003=\"\",'Enrollment Form'!$CN1003=\"No\"),\"-\",IF(AND('Enrollment Form'!$CN1003=\"Yes\",'Enrollment Form'!$CP1003=\"\"),\"N\",\"Y\"))","v":"-"},{"$f":"IF('Enrollment Form'!B1003<>\"Subscriber\",\"-\",IF(AND('Enrollment Form'!B1003=\"Subscriber\",'Enrollment Form'!C1003=\"Enroll\",'Enrollment Form'!AA1003=\"\"),\"N\",\"Y\"))","v":"-"},{"$f":"IF(OR('Enrollment Form'!B1003=\"Subscriber\",'Enrollment Form'!B1003=\"\"),\"-\",IF('Enrollment Form'!BP1003=\"\",\"N\",\"Y\"))","v":"-"},{"$f":"IF('Enrollment Form'!B1003<>\"Subscriber\",\"-\",IF(AND('Enrollment Form'!B1003=\"Subscriber\",'Enrollment Form'!G1003=\"\"),\"N\",\"Y\"))","v":"-"},{"$f":"IF('Enrollment Form'!A1003=\"\",\"\",IF('Enrollment Form'!B1003=\"Subscriber\",\"-\",IF(AND('Enrollment Form'!B1003<>\"Subscriber\",'Enrollment Form'!G1003='Enrollment Form'!H1003),\"N\",\"Y\")))","v":""},0]
[1004,{"$f":"IF('Enrollment Form'!$A1004<>\"\",\"Y\",\"N\")","v":"N"},{"$f":"IF(AND('Enrollment Form'!$B1004=\"\",'Enrollment Form'!$C1004<>\"\"),\"N\",IF($B997=\"N\",\"\",\"Y\"))","v":""},{"$f":"IF(OR($B997=\"N\",'Enrollment Form'!G1004=\"\"),\"\",IF('Enrollment Form'!$B1004<>\"Subscriber\",\"\",IF('Enrollment Form'!$G1004='Enrollment Form'!$H1004,\"Y\",\"N\")))","v":""},{"$f":"IF($B997=\"N\",\"\",IF(AND(COUNTIFS('Enrollment Form'!$H$11:$H$1000,'Enrollment Form'!$H1004,'Enrollment Form'!$B$11:$B$1000,'Enrollment Form'!$B1004)>1,'Enrollment Form'!$H1004<>\"\"),\"N\",\"Y\"))","v":""},{"$f":"IF($B997=\"N\",\"\",IF(LEN('Enrollment Form'!$Y1004)=0,\"\",IF(LEN('Enrollment Form'!$Y1004)<>5,\"N\",\"Y\")))","v":""},{"$f":"IF($B997=\"N\",\"\",IF(LEN('Enrollment Form'!$AD1004=0),\"\",IF(LEN('Enrollment Form'!$AD1004)<>5,\"N\",\"Y\")))","v":""},{"$f":"IF($B997=\"N\",\"\",IF(LEN('Enrollment Form'!$BS1004=0),\"\",IF(LEN('Enrollment Form'!$BS1004)<>5,\"N\",\"Y\")))","v":""},{"$f":"IF($B997=\"N\",\"\",IF(LEN('Enrollment Form'!$AE1004)=0,\"\",IF(LEN('Enrollment Form'!$AE1004)<>10,\"N\",\"Y\")))","v":""},{"$f":"IF($B997=\"N\",\"\",IF(LEN('Enrollment Form'!$AF1004)=0,\"\",IF(LEN('Enrollment Form'!$AF1004)<>10,\"N\",\"Y\")))","v":""},{"$f":"IF('Enrollment Form'!$O1004<>\"Graded\",\"-\",IF(AND('Enrollment Form'!$O1004=\"Graded\",'Enrollment Form'!$AR1004<>\"\"),\"Y\",\"N\"))","v":"-"},{"$f":"IF($B997=\"N\",\"\",IF(OR('Enrollment Form'!$B1004<>\"Subscriber\",'Enrollment Form'!$C1004=\"ROC\"),\"-\",IF(AND('Enrollment Form'!$B1004=\"Subscriber\",'Enrollment Form'!$C1004=\"Enroll\",'Enrollment Form'!$AJ1004<>\"\"),\"Y\",\"N\")))","v":""},{"$f":"IF($B997=\"N\",\"\",IF(OR('Enrollment Form'!$B1004<>\"Subscriber\",'Enrollment Form'!$C1004=\"ROC\"),\"-\",IF(AND('Enrollment Form'!$B1004=\"Subscriber\",'Enrollment Form'!$C1004=\"Enroll\",'Enrollment Form'!$AK1004<>\"\"),\"Y\",\"N\")))","v":""},{"$f":"IF($B997=\"N\",\"\",IF(OR('Enrollment Form'!$B1004<>\"Subscriber\",'Enrollment Form'!$C1004=\"ROC\"),\"-\",IF(AND('Enrollment Form'!$B1004=\"Subscriber\",'Enrollment Form'!$C1004=\"Enroll\",'Enrollment Form'!$AL1004<>\"\"),\"Y\",\"N\")))","v":""},{"$f":"IF($B997=\"N\",\"\",IF(OR('Enrollment Form'!$B1004<>\"Subscriber\",'Enrollment Form'!$C1004=\"ROC\"),\"-\",IF(AND('Enrollment Form'!$B1004=\"Subscriber\",'Enrollment Form'!$C1004=\"Enroll\",'Enrollment Form'!$AP1004<>\"\"),\"Y\",\"N\")))","v":""},{"$f":"IF($B997=\"N\",\"\",IF(OR('Enrollment Form'!$B1004<>\"Subscriber\",'Enrollment Form'!$C1004=\"ROC\"),\"-\",IF(AND('Enrollment Form'!$B1004=\"Subscriber\",'Enrollment Form'!$C1004=\"Enroll\",'Enrollment Form'!$AQ1004<>\"\"),\"Y\",\"N\")))","v":""},{"$f":"IF($B997=\"N\",\"\",IF(OR('Enrollment Form'!$B1004<>\"Subscriber\",'Enrollment Form'!$C1004=\"ROC\"),\"-\",IF(AND('Enrollment Form'!$B1004=\"Subscriber\",'Enrollment Form'!$C1004=\"Enroll\",'Enrollment Form'!$AS1004<>\"\"),\"Y\",\"N\")))","v":""},{"$f":"IF($B997=\"N\",\"\",IF($Q997=\"-\",\"-\",IF(AND($Q997=\"Y\",'Enrollment Form'!$AS1004=\"No\"),\"-\",IF(AND($Q997=\"Y\",'Enrollment Form'!$AS1004=\"Yes\",'Enrollment Form'!$AT1004<>\"\"),\"Y\",\"N\"))))","v":""},{"$f":"IF($B997=\"N\",\"\",IF(OR('Enrollment Form'!$B1004<>\"Subscriber\",'Enrollment Form'!$C1004=\"ROC\"),\"-\",IF(AND('Enrollment Form'!$B1004=\"Subscriber\",'Enrollment Form'!$C1004=\"Enroll\",'Enrollment Form'!$CV1004<>\"\"),\"Y\",\"N\")))","v":""},{"$f":"IF($B997=\"N\",\"\",IF($S997=\"-\",\"-\",IF(AND($S997=\"Y\",'Enrollment Form'!$CV1004=\"No\"),\"-\",IF(AND($S997=\"Y\",'Enrollment Form'!$CV1004=\"Yes\",'Enrollment Form'!$CW1004<>\"\"),\"Y\",\"N\"))))","v":""},{"$f":"IF(OR('Enrollment Form'!$AY1004=\"Yes\",'Enrollment Form'!$AY1004=\"\"),\"-\",IF(OR(AND('Enrollment Form'!$AY1004=\"No\",ISERROR(FIND(\"HMO\",VLOOKUP('Enrollment Form'!G1004,'Enrollment Form'!H$11:J$1000,3,FALSE),1))=FALSE,COUNTA('Enrollment Form'!$AZ1004:$BC1004)=4),AND('Enrollment Form'!$AY1004=\"No\",ISERROR(FIND(\"HMO\",VLOOKUP('Enrollment Form'!G1004,'Enrollment Form'!H$11:J$1000,3,FALSE),1))=FALSE,COUNTA('Enrollment Form'!$BT1004:$BW1004)=4)),\"Y\",\"N\"))","v":"-"},{"$f":"IF($B997=\"N\",\"\",IF('Enrollment Form'!$B1004=\"Subscriber\",\"-\",IF(COUNTA('Enrollment Form'!$BL1004,'Enrollment Form'!$BN1004)=2,\"Y\",\"N\")))","v":""},{"$f":"IF($B997=\"N\",\"\",IF(OR('Enrollment Form'!$AX1004=\"\",'Enrollment Form'!$AX1004=\"No\"),\"-\",IF(AND('Enrollment Form'!$AX1004=\"Yes\",COUNTA('Enrollment Form'!$CR1004)=1),\"Y\",\"N\")))","v":""},{"$f":"IF(OR('Enrollment Form'!$CR1004=\"\",'Enrollment Form'!$CR1004=\"No\"),\"-\",IF(COUNTA('Enrollment Form'!$CT1004:$CU1004)=2,\"Y\",\"N\"))","v":"-"},{"$f":"IF($B997=\"N\",\"\",IF(COUNTIF('Enrollment Form'!$DG1004:$DP1004,\"Other\")=COUNTA('Enrollment Form'!$DK1004,'Enrollment Form'!$DH1004,'Enrollment Form'!$DN1004,'Enrollment Form'!$DQ1004),\"Y\",\"N\"))","v":""},{"$f":"IF($B997=\"N\",\"\",IF(OR('Enrollment Form'!B1004<>\"Subscriber\",'Enrollment Form'!C1004=\"ROC\",COUNTIF('Enrollment Form'!AV1004:AW1004,\"Yes\")>=1),\"-\",IF(AND('Enrollment Form'!C1004=\"Enroll\",COUNTIF('Enrollment Form'!AV1004:AW1004,\"No\")=2,'Enrollment Form'!AX1004=\"\"),\"N\",\"Y\")))","v":""},{"$f":"IF(OR(B997=\"N\",'Enrollment Form'!B1004<>\"Subscriber\",'Enrollment Form'!C1004=\"ROC\",'Enrollment Form'!O1004<>\"Multiple of Salary\"),\"-\",IF(COUNTA('Enrollment Form'!T1004:U1004)<2,\"N\",\"Y\"))","v":"-"},{"$f":"IF(B997=\"N\",\"\",IF(OR('Enrollment Form'!C1004=\"ROC\",'Enrollment Form'!B1004<>\"Subscriber\",'Enrollment Form'!O1004=\"Waive\",'Enrollment Form'!O1004=\"\"),\"-\",IF('Enrollment Form'!P1004=\"\",\"N\",\"Y\")))","v":""},{"$f":"IF($B997=\"N\",\"\",IF(AND('Enrollment Form'!$C1004=\"ROC\",'Enrollment Form'!$DR1004<>\"\"),\"Y\",IF(AND('Enrollment Form'!$C1004=\"ROC\",'Enrollment Form'!$DR1004=\"\"),\"N\",IF(AND('Enrollment Form'!$C1004=\"Enroll\",'Enrollment Form'!$B1004=\"Subscriber\",'Enrollment Form'!$CX1004=\"No\",'Enrollment Form'!$DR1004=\"\"),\"N\",IF(AND('Enrollment Form'!$C1004=\"Enroll\",'Enrollment Form'!$B1004=\"Subscriber\",'Enrollment Form'!$CX1004=\"Yes\"),\"-\",\"Y\")))))","v":""},{"$f":"IF($B997=\"N\",\"\",IF(AND('Enrollment Form'!$C1004=\"ROC\",'Enrollment Form'!$DS1004<>\"\"),\"Y\",IF(AND('Enrollment Form'!$C1004=\"ROC\",'Enrollment Form'!$DS1004=\"\"),\"N\",IF(AND('Enrollment Form'!$C1004=\"Enroll\",'Enrollment Form'!$B1004=\"Subscriber\",'Enrollment Form'!$CX1004=\"No\",'Enrollment Form'!$DS1004=\"\"),\"N\",IF(AND('Enrollment Form'!$C1004=\"Enroll\",'Enrollment Form'!$B1004=\"Subscriber\",'Enrollment Form'!$CX1004=\"Yes\"),\"-\",\"Y\")))))","v":""},{"$f":"IF('Enrollment Form'!AH1004=\"\",\"\",IF(ISERROR(SEARCH(\".\",'Enrollment Form'!AH1004,SEARCH(\"@\",'Enrollment Form'!AH1004))),\"N\",\"Y\"))","v":""},{"$f":"IF(OR($B997=\"N\",'Enrollment Form'!$G1004=\"\"),\"\",IF('Enrollment Form'!$B1004<>\"Subscriber\",\"-\",IF(COUNTIF('Enrollment Form'!$AV1004:$AW1004,\"Yes\")=2,\"N\",\"Y\")))","v":""},{"$f":"IF(OR('Enrollment Form'!$CJ1004=\"\",'Enrollment Form'!$CJ1004=\"No\"),\"-\",IF(AND('Enrollment Form'!$CJ1004=\"Yes\",'Enrollment Form'!$CK1004=\"\"),\"N\",\"Y\"))","v":"-"},{"$f":"IF(OR('Enrollment Form'!$CL1004=\"\",'Enrollment Form'!$CL1004=\"No\"),\"-\",IF(AND('Enrollment Form'!$CL1004=\"Yes\",'Enrollment Form'!$CM1004=\"\"),\"N\",\"Y\"))","v":"-"},{"$f":"IF(OR('Enrollment Form'!$CN1004=\"\",'Enrollment Form'!$CN1004=\"No\"),\"-\",IF(AND('Enrollment Form'!$CN1004=\"Yes\",'Enrollment Form'!$CO1004=\"\"),\"N\",\"Y\"))","v":"-"},{"$f":"IF(OR('Enrollment Form'!$CN1004=\"\",'Enrollment Form'!$CN1004=\"No\"),\"-\",IF(AND('Enrollment Form'!$CN1004=\"Yes\",'Enrollment Form'!$CP1004=\"\"),\"N\",\"Y\"))","v":"-"},{"$f":"IF('Enrollment Form'!B1004<>\"Subscriber\",\"-\",IF(AND('Enrollment Form'!B1004=\"Subscriber\",'Enrollment Form'!C1004=\"Enroll\",'Enrollment Form'!AA1004=\"\"),\"N\",\"Y\"))","v":"-"},{"$f":"IF(OR('Enrollment Form'!B1004=\"Subscriber\",'Enrollment Form'!B1004=\"\"),\"-\",IF('Enrollment Form'!BP1004=\"\",\"N\",\"Y\"))","v":"-"},{"$f":"IF('Enrollment Form'!B1004<>\"Subscriber\",\"-\",IF(AND('Enrollment Form'!B1004=\"Subscriber\",'Enrollment Form'!G1004=\"\"),\"N\",\"Y\"))","v":"-"},{"$f":"IF('Enrollment Form'!A1004=\"\",\"\",IF('Enrollment Form'!B1004=\"Subscriber\",\"-\",IF(AND('Enrollment Form'!B1004<>\"Subscriber\",'Enrollment Form'!G1004='Enrollment Form'!H1004),\"N\",\"Y\")))","v":""},0]
[1005,{"$f":"IF('Enrollment Form'!$A1005<>\"\",\"Y\",\"N\")","v":"N"},{"$f":"IF(AND('Enrollment Form'!$B1005=\"\",'Enrollment Form'!$C1005<>\"\"),\"N\",IF($B998=\"N\",\"\",\"Y\"))","v":""},{"$f":"IF(OR($B998=\"N\",'Enrollment Form'!G1005=\"\"),\"\",IF('Enrollment Form'!$B1005<>\"Subscriber\",\"\",IF('Enrollment Form'!$G1005='Enrollment Form'!$H1005,\"Y\",\"N\")))","v":""},{"$f":"IF($B998=\"N\",\"\",IF(AND(COUNTIFS('Enrollment Form'!$H$11:$H$1000,'Enrollment Form'!$H1005,'Enrollment Form'!$B$11:$B$1000,'Enrollment Form'!$B1005)>1,'Enrollment Form'!$H1005<>\"\"),\"N\",\"Y\"))","v":""},{"$f":"IF($B998=\"N\",\"\",IF(LEN('Enrollment Form'!$Y1005)=0,\"\",IF(LEN('Enrollment Form'!$Y1005)<>5,\"N\",\"Y\")))","v":""},{"$f":"IF($B998=\"N\",\"\",IF(LEN('Enrollment Form'!$AD1005=0),\"\",IF(LEN('Enrollment Form'!$AD1005)<>5,\"N\",\"Y\")))","v":""},{"$f":"IF($B998=\"N\",\"\",IF(LEN('Enrollment Form'!$BS1005=0),\"\",IF(LEN('Enrollment Form'!$BS1005)<>5,\"N\",\"Y\")))","v":""},{"$f":"IF($B998=\"N\",\"\",IF(LEN('Enrollment Form'!$AE1005)=0,\"\",IF(LEN('Enrollment Form'!$AE1005)<>10,\"N\",\"Y\")))","v":""},{"$f":"IF($B998=\"N\",\"\",IF(LEN('Enrollment Form'!$AF1005)=0,\"\",IF(LEN('Enrollment Form'!$AF1005)<>10,\"N\",\"Y\")))","v":""},{"$f":"IF('Enrollment Form'!$O1005<>\"Graded\",\"-\",IF(AND('Enrollment Form'!$O1005=\"Graded\",'Enrollment Form'!$AR1005<>\"\"),\"Y\",\"N\"))","v":"-"},{"$f":"IF($B998=\"N\",\"\",IF(OR('Enrollment Form'!$B1005<>\"Subscriber\",'Enrollment Form'!$C1005=\"ROC\"),\"-\",IF(AND('Enrollment Form'!$B1005=\"Subscriber\",'Enrollment Form'!$C1005=\"Enroll\",'Enrollment Form'!$AJ1005<>\"\"),\"Y\",\"N\")))","v":""},{"$f":"IF($B998=\"N\",\"\",IF(OR('Enrollment Form'!$B1005<>\"Subscriber\",'Enrollment Form'!$C1005=\"ROC\"),\"-\",IF(AND('Enrollment Form'!$B1005=\"Subscriber\",'Enrollment Form'!$C1005=\"Enroll\",'Enrollment Form'!$AK1005<>\"\"),\"Y\",\"N\")))","v":""},{"$f":"IF($B998=\"N\",\"\",IF(OR('Enrollment Form'!$B1005<>\"Subscriber\",'Enrollment Form'!$C1005=\"ROC\"),\"-\",IF(AND('Enrollment Form'!$B1005=\"Subscriber\",'Enrollment Form'!$C1005=\"Enroll\",'Enrollment Form'!$AL1005<>\"\"),\"Y\",\"N\")))","v":""},{"$f":"IF($B998=\"N\",\"\",IF(OR('Enrollment Form'!$B1005<>\"Subscriber\",'Enrollment Form'!$C1005=\"ROC\"),\"-\",IF(AND('Enrollment Form'!$B1005=\"Subscriber\",'Enrollment Form'!$C1005=\"Enroll\",'Enrollment Form'!$AP1005<>\"\"),\"Y\",\"N\")))","v":""},{"$f":"IF($B998=\"N\",\"\",IF(OR('Enrollment Form'!$B1005<>\"Subscriber\",'Enrollment Form'!$C1005=\"ROC\"),\"-\",IF(AND('Enrollment Form'!$B1005=\"Subscriber\",'Enrollment Form'!$C1005=\"Enroll\",'Enrollment Form'!$AQ1005<>\"\"),\"Y\",\"N\")))","v":""},{"$f":"IF($B998=\"N\",\"\",IF(OR('Enrollment Form'!$B1005<>\"Subscriber\",'Enrollment Form'!$C1005=\"ROC\"),\"-\",IF(AND('Enrollment Form'!$B1005=\"Subscriber\",'Enrollment Form'!$C1005=\"Enroll\",'Enrollment Form'!$AS1005<>\"\"),\"Y\",\"N\")))","v":""},{"$f":"IF($B998=\"N\",\"\",IF($Q998=\"-\",\"-\",IF(AND($Q998=\"Y\",'Enrollment Form'!$AS1005=\"No\"),\"-\",IF(AND($Q998=\"Y\",'Enrollment Form'!$AS1005=\"Yes\",'Enrollment Form'!$AT1005<>\"\"),\"Y\",\"N\"))))","v":""},{"$f":"IF($B998=\"N\",\"\",IF(OR('Enrollment Form'!$B1005<>\"Subscriber\",'Enrollment Form'!$C1005=\"ROC\"),\"-\",IF(AND('Enrollment Form'!$B1005=\"Subscriber\",'Enrollment Form'!$C1005=\"Enroll\",'Enrollment Form'!$CV1005<>\"\"),\"Y\",\"N\")))","v":""},{"$f":"IF($B998=\"N\",\"\",IF($S998=\"-\",\"-\",IF(AND($S998=\"Y\",'Enrollment Form'!$CV1005=\"No\"),\"-\",IF(AND($S998=\"Y\",'Enrollment Form'!$CV1005=\"Yes\",'Enrollment Form'!$CW1005<>\"\"),\"Y\",\"N\"))))","v":""},{"$f":"IF(OR('Enrollment Form'!$AY1005=\"Yes\",'Enrollment Form'!$AY1005=\"\"),\"-\",IF(OR(AND('Enrollment Form'!$AY1005=\"No\",ISERROR(FIND(\"HMO\",VLOOKUP('Enrollment Form'!G1005,'Enrollment Form'!H$11:J$1000,3,FALSE),1))=FALSE,COUNTA('Enrollment Form'!$AZ1005:$BC1005)=4),AND('Enrollment Form'!$AY1005=\"No\",ISERROR(FIND(\"HMO\",VLOOKUP('Enrollment Form'!G1005,'Enrollment Form'!H$11:J$1000,3,FALSE),1))=FALSE,COUNTA('Enrollment Form'!$BT1005:$BW1005)=4)),\"Y\",\"N\"))","v":"-"},{"$f":"IF($B998=\"N\",\"\",IF('Enrollment Form'!$B1005=\"Subscriber\",\"-\",IF(COUNTA('Enrollment Form'!$BL1005,'Enrollment Form'!$BN1005)=2,\"Y\",\"N\")))","v":""},{"$f":"IF($B998=\"N\",\"\",IF(OR('Enrollment Form'!$AX1005=\"\",'Enrollment Form'!$AX1005=\"No\"),\"-\",IF(AND('Enrollment Form'!$AX1005=\"Yes\",COUNTA('Enrollment Form'!$CR1005)=1),\"Y\",\"N\")))","v":""},{"$f":"IF(OR('Enrollment Form'!$CR1005=\"\",'Enrollment Form'!$CR1005=\"No\"),\"-\",IF(COUNTA('Enrollment Form'!$CT1005:$CU1005)=2,\"Y\",\"N\"))","v":"-"},{"$f":"IF($B998=\"N\",\"\",IF(COUNTIF('Enrollment Form'!$DG1005:$DP1005,\"Other\")=COUNTA('Enrollment Form'!$DK1005,'Enrollment Form'!$DH1005,'Enrollment Form'!$DN1005,'Enrollment Form'!$DQ1005),\"Y\",\"N\"))","v":""},{"$f":"IF($B998=\"N\",\"\",IF(OR('Enrollment Form'!B1005<>\"Subscriber\",'Enrollment Form'!C1005=\"ROC\",COUNTIF('Enrollment Form'!AV1005:AW1005,\"Yes\")>=1),\"-\",IF(AND('Enrollment Form'!C1005=\"Enroll\",COUNTIF('Enrollment Form'!AV1005:AW1005,\"No\")=2,'Enrollment Form'!AX1005=\"\"),\"N\",\"Y\")))","v":""},{"$f":"IF(OR(B998=\"N\",'Enrollment Form'!B1005<>\"Subscriber\",'Enrollment Form'!C1005=\"ROC\",'Enrollment Form'!O1005<>\"Multiple of Salary\"),\"-\",IF(COUNTA('Enrollment Form'!T1005:U1005)<2,\"N\",\"Y\"))","v":"-"},{"$f":"IF(B998=\"N\",\"\",IF(OR('Enrollment Form'!C1005=\"ROC\",'Enrollment Form'!B1005<>\"Subscriber\",'Enrollment Form'!O1005=\"Waive\",'Enrollment Form'!O1005=\"\"),\"-\",IF('Enrollment Form'!P1005=\"\",\"N\",\"Y\")))","v":""},{"$f":"IF($B998=\"N\",\"\",IF(AND('Enrollment Form'!$C1005=\"ROC\",'Enrollment Form'!$DR1005<>\"\"),\"Y\",IF(AND('Enrollment Form'!$C1005=\"ROC\",'Enrollment Form'!$DR1005=\"\"),\"N\",IF(AND('Enrollment Form'!$C1005=\"Enroll\",'Enrollment Form'!$B1005=\"Subscriber\",'Enrollment Form'!$CX1005=\"No\",'Enrollment Form'!$DR1005=\"\"),\"N\",IF(AND('Enrollment Form'!$C1005=\"Enroll\",'Enrollment Form'!$B1005=\"Subscriber\",'Enrollment Form'!$CX1005=\"Yes\"),\"-\",\"Y\")))))","v":""},{"$f":"IF($B998=\"N\",\"\",IF(AND('Enrollment Form'!$C1005=\"ROC\",'Enrollment Form'!$DS1005<>\"\"),\"Y\",IF(AND('Enrollment Form'!$C1005=\"ROC\",'Enrollment Form'!$DS1005=\"\"),\"N\",IF(AND('Enrollment Form'!$C1005=\"Enroll\",'Enrollment Form'!$B1005=\"Subscriber\",'Enrollment Form'!$CX1005=\"No\",'Enrollment Form'!$DS1005=\"\"),\"N\",IF(AND('Enrollment Form'!$C1005=\"Enroll\",'Enrollment Form'!$B1005=\"Subscriber\",'Enrollment Form'!$CX1005=\"Yes\"),\"-\",\"Y\")))))","v":""},{"$f":"IF('Enrollment Form'!AH1005=\"\",\"\",IF(ISERROR(SEARCH(\".\",'Enrollment Form'!AH1005,SEARCH(\"@\",'Enrollment Form'!AH1005))),\"N\",\"Y\"))","v":""},{"$f":"IF(OR($B998=\"N\",'Enrollment Form'!$G1005=\"\"),\"\",IF('Enrollment Form'!$B1005<>\"Subscriber\",\"-\",IF(COUNTIF('Enrollment Form'!$AV1005:$AW1005,\"Yes\")=2,\"N\",\"Y\")))","v":""},{"$f":"IF(OR('Enrollment Form'!$CJ1005=\"\",'Enrollment Form'!$CJ1005=\"No\"),\"-\",IF(AND('Enrollment Form'!$CJ1005=\"Yes\",'Enrollment Form'!$CK1005=\"\"),\"N\",\"Y\"))","v":"-"},{"$f":"IF(OR('Enrollment Form'!$CL1005=\"\",'Enrollment Form'!$CL1005=\"No\"),\"-\",IF(AND('Enrollment Form'!$CL1005=\"Yes\",'Enrollment Form'!$CM1005=\"\"),\"N\",\"Y\"))","v":"-"},{"$f":"IF(OR('Enrollment Form'!$CN1005=\"\",'Enrollment Form'!$CN1005=\"No\"),\"-\",IF(AND('Enrollment Form'!$CN1005=\"Yes\",'Enrollment Form'!$CO1005=\"\"),\"N\",\"Y\"))","v":"-"},{"$f":"IF(OR('Enrollment Form'!$CN1005=\"\",'Enrollment Form'!$CN1005=\"No\"),\"-\",IF(AND('Enrollment Form'!$CN1005=\"Yes\",'Enrollment Form'!$CP1005=\"\"),\"N\",\"Y\"))","v":"-"},{"$f":"IF('Enrollment Form'!B1005<>\"Subscriber\",\"-\",IF(AND('Enrollment Form'!B1005=\"Subscriber\",'Enrollment Form'!C1005=\"Enroll\",'Enrollment Form'!AA1005=\"\"),\"N\",\"Y\"))","v":"-"},{"$f":"IF(OR('Enrollment Form'!B1005=\"Subscriber\",'Enrollment Form'!B1005=\"\"),\"-\",IF('Enrollment Form'!BP1005=\"\",\"N\",\"Y\"))","v":"-"},{"$f":"IF('Enrollment Form'!B1005<>\"Subscriber\",\"-\",IF(AND('Enrollment Form'!B1005=\"Subscriber\",'Enrollment Form'!G1005=\"\"),\"N\",\"Y\"))","v":"-"},{"$f":"IF('Enrollment Form'!A1005=\"\",\"\",IF('Enrollment Form'!B1005=\"Subscriber\",\"-\",IF(AND('Enrollment Form'!B1005<>\"Subscriber\",'Enrollment Form'!G1005='Enrollment Form'!H1005),\"N\",\"Y\")))","v":""},0]
[1006,{"$f":"IF('Enrollment Form'!$A1006<>\"\",\"Y\",\"N\")","v":"N"},{"$f":"IF(AND('Enrollment Form'!$B1006=\"\",'Enrollment Form'!$C1006<>\"\"),\"N\",IF($B999=\"N\",\"\",\"Y\"))","v":""},{"$f":"IF(OR($B999=\"N\",'Enrollment Form'!G1006=\"\"),\"\",IF('Enrollment Form'!$B1006<>\"Subscriber\",\"\",IF('Enrollment Form'!$G1006='Enrollment Form'!$H1006,\"Y\",\"N\")))","v":""},{"$f":"IF($B999=\"N\",\"\",IF(AND(COUNTIFS('Enrollment Form'!$H$11:$H$1000,'Enrollment Form'!$H1006,'Enrollment Form'!$B$11:$B$1000,'Enrollment Form'!$B1006)>1,'Enrollment Form'!$H1006<>\"\"),\"N\",\"Y\"))","v":""},{"$f":"IF($B999=\"N\",\"\",IF(LEN('Enrollment Form'!$Y1006)=0,\"\",IF(LEN('Enrollment Form'!$Y1006)<>5,\"N\",\"Y\")))","v":""},{"$f":"IF($B999=\"N\",\"\",IF(LEN('Enrollment Form'!$AD1006=0),\"\",IF(LEN('Enrollment Form'!$AD1006)<>5,\"N\",\"Y\")))","v":""},{"$f":"IF($B999=\"N\",\"\",IF(LEN('Enrollment Form'!$BS1006=0),\"\",IF(LEN('Enrollment Form'!$BS1006)<>5,\"N\",\"Y\")))","v":""},{"$f":"IF($B999=\"N\",\"\",IF(LEN('Enrollment Form'!$AE1006)=0,\"\",IF(LEN('Enrollment Form'!$AE1006)<>10,\"N\",\"Y\")))","v":""},{"$f":"IF($B999=\"N\",\"\",IF(LEN('Enrollment Form'!$AF1006)=0,\"\",IF(LEN('Enrollment Form'!$AF1006)<>10,\"N\",\"Y\")))","v":""},{"$f":"IF('Enrollment Form'!$O1006<>\"Graded\",\"-\",IF(AND('Enrollment Form'!$O1006=\"Graded\",'Enrollment Form'!$AR1006<>\"\"),\"Y\",\"N\"))","v":"-"},{"$f":"IF($B999=\"N\",\"\",IF(OR('Enrollment Form'!$B1006<>\"Subscriber\",'Enrollment Form'!$C1006=\"ROC\"),\"-\",IF(AND('Enrollment Form'!$B1006=\"Subscriber\",'Enrollment Form'!$C1006=\"Enroll\",'Enrollment Form'!$AJ1006<>\"\"),\"Y\",\"N\")))","v":""},{"$f":"IF($B999=\"N\",\"\",IF(OR('Enrollment Form'!$B1006<>\"Subscriber\",'Enrollment Form'!$C1006=\"ROC\"),\"-\",IF(AND('Enrollment Form'!$B1006=\"Subscriber\",'Enrollment Form'!$C1006=\"Enroll\",'Enrollment Form'!$AK1006<>\"\"),\"Y\",\"N\")))","v":""},{"$f":"IF($B999=\"N\",\"\",IF(OR('Enrollment Form'!$B1006<>\"Subscriber\",'Enrollment Form'!$C1006=\"ROC\"),\"-\",IF(AND('Enrollment Form'!$B1006=\"Subscriber\",'Enrollment Form'!$C1006=\"Enroll\",'Enrollment Form'!$AL1006<>\"\"),\"Y\",\"N\")))","v":""},{"$f":"IF($B999=\"N\",\"\",IF(OR('Enrollment Form'!$B1006<>\"Subscriber\",'Enrollment Form'!$C1006=\"ROC\"),\"-\",IF(AND('Enrollment Form'!$B1006=\"Subscriber\",'Enrollment Form'!$C1006=\"Enroll\",'Enrollment Form'!$AP1006<>\"\"),\"Y\",\"N\")))","v":""},{"$f":"IF($B999=\"N\",\"\",IF(OR('Enrollment Form'!$B1006<>\"Subscriber\",'Enrollment Form'!$C1006=\"ROC\"),\"-\",IF(AND('Enrollment Form'!$B1006=\"Subscriber\",'Enrollment Form'!$C1006=\"Enroll\",'Enrollment Form'!$AQ1006<>\"\"),\"Y\",\"N\")))","v":""},{"$f":"IF($B999=\"N\",\"\",IF(OR('Enrollment Form'!$B1006<>\"Subscriber\",'Enrollment Form'!$C1006=\"ROC\"),\"-\",IF(AND('Enrollment Form'!$B1006=\"Subscriber\",'Enrollment Form'!$C1006=\"Enroll\",'Enrollment Form'!$AS1006<>\"\"),\"Y\",\"N\")))","v":""},{"$f":"IF($B999=\"N\",\"\",IF($Q999=\"-\",\"-\",IF(AND($Q999=\"Y\",'Enrollment Form'!$AS1006=\"No\"),\"-\",IF(AND($Q999=\"Y\",'Enrollment Form'!$AS1006=\"Yes\",'Enrollment Form'!$AT1006<>\"\"),\"Y\",\"N\"))))","v":""},{"$f":"IF($B999=\"N\",\"\",IF(OR('Enrollment Form'!$B1006<>\"Subscriber\",'Enrollment Form'!$C1006=\"ROC\"),\"-\",IF(AND('Enrollment Form'!$B1006=\"Subscriber\",'Enrollment Form'!$C1006=\"Enroll\",'Enrollment Form'!$CV1006<>\"\"),\"Y\",\"N\")))","v":""},{"$f":"IF($B999=\"N\",\"\",IF($S999=\"-\",\"-\",IF(AND($S999=\"Y\",'Enrollment Form'!$CV1006=\"No\"),\"-\",IF(AND($S999=\"Y\",'Enrollment Form'!$CV1006=\"Yes\",'Enrollment Form'!$CW1006<>\"\"),\"Y\",\"N\"))))","v":""},{"$f":"IF(OR('Enrollment Form'!$AY1006=\"Yes\",'Enrollment Form'!$AY1006=\"\"),\"-\",IF(OR(AND('Enrollment Form'!$AY1006=\"No\",ISERROR(FIND(\"HMO\",VLOOKUP('Enrollment Form'!G1006,'Enrollment Form'!H$11:J$1000,3,FALSE),1))=FALSE,COUNTA('Enrollment Form'!$AZ1006:$BC1006)=4),AND('Enrollment Form'!$AY1006=\"No\",ISERROR(FIND(\"HMO\",VLOOKUP('Enrollment Form'!G1006,'Enrollment Form'!H$11:J$1000,3,FALSE),1))=FALSE,COUNTA('Enrollment Form'!$BT1006:$BW1006)=4)),\"Y\",\"N\"))","v":"-"},{"$f":"IF($B999=\"N\",\"\",IF('Enrollment Form'!$B1006=\"Subscriber\",\"-\",IF(COUNTA('Enrollment Form'!$BL1006,'Enrollment Form'!$BN1006)=2,\"Y\",\"N\")))","v":""},{"$f":"IF($B999=\"N\",\"\",IF(OR('Enrollment Form'!$AX1006=\"\",'Enrollment Form'!$AX1006=\"No\"),\"-\",IF(AND('Enrollment Form'!$AX1006=\"Yes\",COUNTA('Enrollment Form'!$CR1006)=1),\"Y\",\"N\")))","v":""},{"$f":"IF(OR('Enrollment Form'!$CR1006=\"\",'Enrollment Form'!$CR1006=\"No\"),\"-\",IF(COUNTA('Enrollment Form'!$CT1006:$CU1006)=2,\"Y\",\"N\"))","v":"-"},{"$f":"IF($B999=\"N\",\"\",IF(COUNTIF('Enrollment Form'!$DG1006:$DP1006,\"Other\")=COUNTA('Enrollment Form'!$DK1006,'Enrollment Form'!$DH1006,'Enrollment Form'!$DN1006,'Enrollment Form'!$DQ1006),\"Y\",\"N\"))","v":""},{"$f":"IF($B999=\"N\",\"\",IF(OR('Enrollment Form'!B1006<>\"Subscriber\",'Enrollment Form'!C1006=\"ROC\",COUNTIF('Enrollment Form'!AV1006:AW1006,\"Yes\")>=1),\"-\",IF(AND('Enrollment Form'!C1006=\"Enroll\",COUNTIF('Enrollment Form'!AV1006:AW1006,\"No\")=2,'Enrollment Form'!AX1006=\"\"),\"N\",\"Y\")))","v":""},{"$f":"IF(OR(B999=\"N\",'Enrollment Form'!B1006<>\"Subscriber\",'Enrollment Form'!C1006=\"ROC\",'Enrollment Form'!O1006<>\"Multiple of Salary\"),\"-\",IF(COUNTA('Enrollment Form'!T1006:U1006)<2,\"N\",\"Y\"))","v":"-"},{"$f":"IF(B999=\"N\",\"\",IF(OR('Enrollment Form'!C1006=\"ROC\",'Enrollment Form'!B1006<>\"Subscriber\",'Enrollment Form'!O1006=\"Waive\",'Enrollment Form'!O1006=\"\"),\"-\",IF('Enrollment Form'!P1006=\"\",\"N\",\"Y\")))","v":""},{"$f":"IF($B999=\"N\",\"\",IF(AND('Enrollment Form'!$C1006=\"ROC\",'Enrollment Form'!$DR1006<>\"\"),\"Y\",IF(AND('Enrollment Form'!$C1006=\"ROC\",'Enrollment Form'!$DR1006=\"\"),\"N\",IF(AND('Enrollment Form'!$C1006=\"Enroll\",'Enrollment Form'!$B1006=\"Subscriber\",'Enrollment Form'!$CX1006=\"No\",'Enrollment Form'!$DR1006=\"\"),\"N\",IF(AND('Enrollment Form'!$C1006=\"Enroll\",'Enrollment Form'!$B1006=\"Subscriber\",'Enrollment Form'!$CX1006=\"Yes\"),\"-\",\"Y\")))))","v":""},{"$f":"IF($B999=\"N\",\"\",IF(AND('Enrollment Form'!$C1006=\"ROC\",'Enrollment Form'!$DS1006<>\"\"),\"Y\",IF(AND('Enrollment Form'!$C1006=\"ROC\",'Enrollment Form'!$DS1006=\"\"),\"N\",IF(AND('Enrollment Form'!$C1006=\"Enroll\",'Enrollment Form'!$B1006=\"Subscriber\",'Enrollment Form'!$CX1006=\"No\",'Enrollment Form'!$DS1006=\"\"),\"N\",IF(AND('Enrollment Form'!$C1006=\"Enroll\",'Enrollment Form'!$B1006=\"Subscriber\",'Enrollment Form'!$CX1006=\"Yes\"),\"-\",\"Y\")))))","v":""},{"$f":"IF('Enrollment Form'!AH1006=\"\",\"\",IF(ISERROR(SEARCH(\".\",'Enrollment Form'!AH1006,SEARCH(\"@\",'Enrollment Form'!AH1006))),\"N\",\"Y\"))","v":""},{"$f":"IF(OR($B999=\"N\",'Enrollment Form'!$G1006=\"\"),\"\",IF('Enrollment Form'!$B1006<>\"Subscriber\",\"-\",IF(COUNTIF('Enrollment Form'!$AV1006:$AW1006,\"Yes\")=2,\"N\",\"Y\")))","v":""},{"$f":"IF(OR('Enrollment Form'!$CJ1006=\"\",'Enrollment Form'!$CJ1006=\"No\"),\"-\",IF(AND('Enrollment Form'!$CJ1006=\"Yes\",'Enrollment Form'!$CK1006=\"\"),\"N\",\"Y\"))","v":"-"},{"$f":"IF(OR('Enrollment Form'!$CL1006=\"\",'Enrollment Form'!$CL1006=\"No\"),\"-\",IF(AND('Enrollment Form'!$CL1006=\"Yes\",'Enrollment Form'!$CM1006=\"\"),\"N\",\"Y\"))","v":"-"},{"$f":"IF(OR('Enrollment Form'!$CN1006=\"\",'Enrollment Form'!$CN1006=\"No\"),\"-\",IF(AND('Enrollment Form'!$CN1006=\"Yes\",'Enrollment Form'!$CO1006=\"\"),\"N\",\"Y\"))","v":"-"},{"$f":"IF(OR('Enrollment Form'!$CN1006=\"\",'Enrollment Form'!$CN1006=\"No\"),\"-\",IF(AND('Enrollment Form'!$CN1006=\"Yes\",'Enrollment Form'!$CP1006=\"\"),\"N\",\"Y\"))","v":"-"},{"$f":"IF('Enrollment Form'!B1006<>\"Subscriber\",\"-\",IF(AND('Enrollment Form'!B1006=\"Subscriber\",'Enrollment Form'!C1006=\"Enroll\",'Enrollment Form'!AA1006=\"\"),\"N\",\"Y\"))","v":"-"},{"$f":"IF(OR('Enrollment Form'!B1006=\"Subscriber\",'Enrollment Form'!B1006=\"\"),\"-\",IF('Enrollment Form'!BP1006=\"\",\"N\",\"Y\"))","v":"-"},{"$f":"IF('Enrollment Form'!B1006<>\"Subscriber\",\"-\",IF(AND('Enrollment Form'!B1006=\"Subscriber\",'Enrollment Form'!G1006=\"\"),\"N\",\"Y\"))","v":"-"},{"$f":"IF('Enrollment Form'!A1006=\"\",\"\",IF('Enrollment Form'!B1006=\"Subscriber\",\"-\",IF(AND('Enrollment Form'!B1006<>\"Subscriber\",'Enrollment Form'!G1006='Enrollment Form'!H1006),\"N\",\"Y\")))","v":""},0]
[1007,{"$f":"IF('Enrollment Form'!$A1007<>\"\",\"Y\",\"N\")","v":"N"},{"$f":"IF(AND('Enrollment Form'!$B1007=\"\",'Enrollment Form'!$C1007<>\"\"),\"N\",IF($B1000=\"N\",\"\",\"Y\"))","v":""},{"$f":"IF(OR($B1000=\"N\",'Enrollment Form'!G1007=\"\"),\"\",IF('Enrollment Form'!$B1007<>\"Subscriber\",\"\",IF('Enrollment Form'!$G1007='Enrollment Form'!$H1007,\"Y\",\"N\")))","v":""},{"$f":"IF($B1000=\"N\",\"\",IF(AND(COUNTIFS('Enrollment Form'!$H$11:$H$1000,'Enrollment Form'!$H1007,'Enrollment Form'!$B$11:$B$1000,'Enrollment Form'!$B1007)>1,'Enrollment Form'!$H1007<>\"\"),\"N\",\"Y\"))","v":""},{"$f":"IF($B1000=\"N\",\"\",IF(LEN('Enrollment Form'!$Y1007)=0,\"\",IF(LEN('Enrollment Form'!$Y1007)<>5,\"N\",\"Y\")))","v":""},{"$f":"IF($B1000=\"N\",\"\",IF(LEN('Enrollment Form'!$AD1007=0),\"\",IF(LEN('Enrollment Form'!$AD1007)<>5,\"N\",\"Y\")))","v":""},{"$f":"IF($B1000=\"N\",\"\",IF(LEN('Enrollment Form'!$BS1007=0),\"\",IF(LEN('Enrollment Form'!$BS1007)<>5,\"N\",\"Y\")))","v":""},{"$f":"IF($B1000=\"N\",\"\",IF(LEN('Enrollment Form'!$AE1007)=0,\"\",IF(LEN('Enrollment Form'!$AE1007)<>10,\"N\",\"Y\")))","v":""},{"$f":"IF($B1000=\"N\",\"\",IF(LEN('Enrollment Form'!$AF1007)=0,\"\",IF(LEN('Enrollment Form'!$AF1007)<>10,\"N\",\"Y\")))","v":""},{"$f":"IF('Enrollment Form'!$O1007<>\"Graded\",\"-\",IF(AND('Enrollment Form'!$O1007=\"Graded\",'Enrollment Form'!$AR1007<>\"\"),\"Y\",\"N\"))","v":"-"},{"$f":"IF($B1000=\"N\",\"\",IF(OR('Enrollment Form'!$B1007<>\"Subscriber\",'Enrollment Form'!$C1007=\"ROC\"),\"-\",IF(AND('Enrollment Form'!$B1007=\"Subscriber\",'Enrollment Form'!$C1007=\"Enroll\",'Enrollment Form'!$AJ1007<>\"\"),\"Y\",\"N\")))","v":""},{"$f":"IF($B1000=\"N\",\"\",IF(OR('Enrollment Form'!$B1007<>\"Subscriber\",'Enrollment Form'!$C1007=\"ROC\"),\"-\",IF(AND('Enrollment Form'!$B1007=\"Subscriber\",'Enrollment Form'!$C1007=\"Enroll\",'Enrollment Form'!$AK1007<>\"\"),\"Y\",\"N\")))","v":""},{"$f":"IF($B1000=\"N\",\"\",IF(OR('Enrollment Form'!$B1007<>\"Subscriber\",'Enrollment Form'!$C1007=\"ROC\"),\"-\",IF(AND('Enrollment Form'!$B1007=\"Subscriber\",'Enrollment Form'!$C1007=\"Enroll\",'Enrollment Form'!$AL1007<>\"\"),\"Y\",\"N\")))","v":""},{"$f":"IF($B1000=\"N\",\"\",IF(OR('Enrollment Form'!$B1007<>\"Subscriber\",'Enrollment Form'!$C1007=\"ROC\"),\"-\",IF(AND('Enrollment Form'!$B1007=\"Subscriber\",'Enrollment Form'!$C1007=\"Enroll\",'Enrollment Form'!$AP1007<>\"\"),\"Y\",\"N\")))","v":""},{"$f":"IF($B1000=\"N\",\"\",IF(OR('Enrollment Form'!$B1007<>\"Subscriber\",'Enrollment Form'!$C1007=\"ROC\"),\"-\",IF(AND('Enrollment Form'!$B1007=\"Subscriber\",'Enrollment Form'!$C1007=\"Enroll\",'Enrollment Form'!$AQ1007<>\"\"),\"Y\",\"N\")))","v":""},{"$f":"IF($B1000=\"N\",\"\",IF(OR('Enrollment Form'!$B1007<>\"Subscriber\",'Enrollment Form'!$C1007=\"ROC\"),\"-\",IF(AND('Enrollment Form'!$B1007=\"Subscriber\",'Enrollment Form'!$C1007=\"Enroll\",'Enrollment Form'!$AS1007<>\"\"),\"Y\",\"N\")))","v":""},{"$f":"IF($B1000=\"N\",\"\",IF($Q1000=\"-\",\"-\",IF(AND($Q1000=\"Y\",'Enrollment Form'!$AS1007=\"No\"),\"-\",IF(AND($Q1000=\"Y\",'Enrollment Form'!$AS1007=\"Yes\",'Enrollment Form'!$AT1007<>\"\"),\"Y\",\"N\"))))","v":""},{"$f":"IF($B1000=\"N\",\"\",IF(OR('Enrollment Form'!$B1007<>\"Subscriber\",'Enrollment Form'!$C1007=\"ROC\"),\"-\",IF(AND('Enrollment Form'!$B1007=\"Subscriber\",'Enrollment Form'!$C1007=\"Enroll\",'Enrollment Form'!$CV1007<>\"\"),\"Y\",\"N\")))","v":""},{"$f":"IF($B1000=\"N\",\"\",IF($S1000=\"-\",\"-\",IF(AND($S1000=\"Y\",'Enrollment Form'!$CV1007=\"No\"),\"-\",IF(AND($S1000=\"Y\",'Enrollment Form'!$CV1007=\"Yes\",'Enrollment Form'!$CW1007<>\"\"),\"Y\",\"N\"))))","v":""},{"$f":"IF(OR('Enrollment Form'!$AY1007=\"Yes\",'Enrollment Form'!$AY1007=\"\"),\"-\",IF(OR(AND('Enrollment Form'!$AY1007=\"No\",ISERROR(FIND(\"HMO\",VLOOKUP('Enrollment Form'!G1007,'Enrollment Form'!H$11:J$1000,3,FALSE),1))=FALSE,COUNTA('Enrollment Form'!$AZ1007:$BC1007)=4),AND('Enrollment Form'!$AY1007=\"No\",ISERROR(FIND(\"HMO\",VLOOKUP('Enrollment Form'!G1007,'Enrollment Form'!H$11:J$1000,3,FALSE),1))=FALSE,COUNTA('Enrollment Form'!$BT1007:$BW1007)=4)),\"Y\",\"N\"))","v":"-"},{"$f":"IF($B1000=\"N\",\"\",IF('Enrollment Form'!$B1007=\"Subscriber\",\"-\",IF(COUNTA('Enrollment Form'!$BL1007,'Enrollment Form'!$BN1007)=2,\"Y\",\"N\")))","v":""},{"$f":"IF($B1000=\"N\",\"\",IF(OR('Enrollment Form'!$AX1007=\"\",'Enrollment Form'!$AX1007=\"No\"),\"-\",IF(AND('Enrollment Form'!$AX1007=\"Yes\",COUNTA('Enrollment Form'!$CR1007)=1),\"Y\",\"N\")))","v":""},{"$f":"IF(OR('Enrollment Form'!$CR1007=\"\",'Enrollment Form'!$CR1007=\"No\"),\"-\",IF(COUNTA('Enrollment Form'!$CT1007:$CU1007)=2,\"Y\",\"N\"))","v":"-"},{"$f":"IF($B1000=\"N\",\"\",IF(COUNTIF('Enrollment Form'!$DG1007:$DP1007,\"Other\")=COUNTA('Enrollment Form'!$DK1007,'Enrollment Form'!$DH1007,'Enrollment Form'!$DN1007,'Enrollment Form'!$DQ1007),\"Y\",\"N\"))","v":""},{"$f":"IF($B1000=\"N\",\"\",IF(OR('Enrollment Form'!B1007<>\"Subscriber\",'Enrollment Form'!C1007=\"ROC\",COUNTIF('Enrollment Form'!AV1007:AW1007,\"Yes\")>=1),\"-\",IF(AND('Enrollment Form'!C1007=\"Enroll\",COUNTIF('Enrollment Form'!AV1007:AW1007,\"No\")=2,'Enrollment Form'!AX1007=\"\"),\"N\",\"Y\")))","v":""},{"$f":"IF(OR(B1000=\"N\",'Enrollment Form'!B1007<>\"Subscriber\",'Enrollment Form'!C1007=\"ROC\",'Enrollment Form'!O1007<>\"Multiple of Salary\"),\"-\",IF(COUNTA('Enrollment Form'!T1007:U1007)<2,\"N\",\"Y\"))","v":"-"},{"$f":"IF(B1000=\"N\",\"\",IF(OR('Enrollment Form'!C1007=\"ROC\",'Enrollment Form'!B1007<>\"Subscriber\",'Enrollment Form'!O1007=\"Waive\",'Enrollment Form'!O1007=\"\"),\"-\",IF('Enrollment Form'!P1007=\"\",\"N\",\"Y\")))","v":""},{"$f":"IF($B1000=\"N\",\"\",IF(AND('Enrollment Form'!$C1007=\"ROC\",'Enrollment Form'!$DR1007<>\"\"),\"Y\",IF(AND('Enrollment Form'!$C1007=\"ROC\",'Enrollment Form'!$DR1007=\"\"),\"N\",IF(AND('Enrollment Form'!$C1007=\"Enroll\",'Enrollment Form'!$B1007=\"Subscriber\",'Enrollment Form'!$CX1007=\"No\",'Enrollment Form'!$DR1007=\"\"),\"N\",IF(AND('Enrollment Form'!$C1007=\"Enroll\",'Enrollment Form'!$B1007=\"Subscriber\",'Enrollment Form'!$CX1007=\"Yes\"),\"-\",\"Y\")))))","v":""},{"$f":"IF($B1000=\"N\",\"\",IF(AND('Enrollment Form'!$C1007=\"ROC\",'Enrollment Form'!$DS1007<>\"\"),\"Y\",IF(AND('Enrollment Form'!$C1007=\"ROC\",'Enrollment Form'!$DS1007=\"\"),\"N\",IF(AND('Enrollment Form'!$C1007=\"Enroll\",'Enrollment Form'!$B1007=\"Subscriber\",'Enrollment Form'!$CX1007=\"No\",'Enrollment Form'!$DS1007=\"\"),\"N\",IF(AND('Enrollment Form'!$C1007=\"Enroll\",'Enrollment Form'!$B1007=\"Subscriber\",'Enrollment Form'!$CX1007=\"Yes\"),\"-\",\"Y\")))))","v":""},{"$f":"IF('Enrollment Form'!AH1007=\"\",\"\",IF(ISERROR(SEARCH(\".\",'Enrollment Form'!AH1007,SEARCH(\"@\",'Enrollment Form'!AH1007))),\"N\",\"Y\"))","v":""},{"$f":"IF(OR($B1000=\"N\",'Enrollment Form'!$G1007=\"\"),\"\",IF('Enrollment Form'!$B1007<>\"Subscriber\",\"-\",IF(COUNTIF('Enrollment Form'!$AV1007:$AW1007,\"Yes\")=2,\"N\",\"Y\")))","v":""},{"$f":"IF(OR('Enrollment Form'!$CJ1007=\"\",'Enrollment Form'!$CJ1007=\"No\"),\"-\",IF(AND('Enrollment Form'!$CJ1007=\"Yes\",'Enrollment Form'!$CK1007=\"\"),\"N\",\"Y\"))","v":"-"},{"$f":"IF(OR('Enrollment Form'!$CL1007=\"\",'Enrollment Form'!$CL1007=\"No\"),\"-\",IF(AND('Enrollment Form'!$CL1007=\"Yes\",'Enrollment Form'!$CM1007=\"\"),\"N\",\"Y\"))","v":"-"},{"$f":"IF(OR('Enrollment Form'!$CN1007=\"\",'Enrollment Form'!$CN1007=\"No\"),\"-\",IF(AND('Enrollment Form'!$CN1007=\"Yes\",'Enrollment Form'!$CO1007=\"\"),\"N\",\"Y\"))","v":"-"},{"$f":"IF(OR('Enrollment Form'!$CN1007=\"\",'Enrollment Form'!$CN1007=\"No\"),\"-\",IF(AND('Enrollment Form'!$CN1007=\"Yes\",'Enrollment Form'!$CP1007=\"\"),\"N\",\"Y\"))","v":"-"},{"$f":"IF('Enrollment Form'!B1007<>\"Subscriber\",\"-\",IF(AND('Enrollment Form'!B1007=\"Subscriber\",'Enrollment Form'!C1007=\"Enroll\",'Enrollment Form'!AA1007=\"\"),\"N\",\"Y\"))","v":"-"},{"$f":"IF(OR('Enrollment Form'!B1007=\"Subscriber\",'Enrollment Form'!B1007=\"\"),\"-\",IF('Enrollment Form'!BP1007=\"\",\"N\",\"Y\"))","v":"-"},{"$f":"IF('Enrollment Form'!B1007<>\"Subscriber\",\"-\",IF(AND('Enrollment Form'!B1007=\"Subscriber\",'Enrollment Form'!G1007=\"\"),\"N\",\"Y\"))","v":"-"},{"$f":"IF('Enrollment Form'!A1007=\"\",\"\",IF('Enrollment Form'!B1007=\"Subscriber\",\"-\",IF(AND('Enrollment Form'!B1007<>\"Subscriber\",'Enrollment Form'!G1007='Enrollment Form'!H1007),\"N\",\"Y\")))","v":""},0]
[1008,{"$f":"IF('Enrollment Form'!$A1008<>\"\",\"Y\",\"N\")","v":"N"},{"$f":"IF(AND('Enrollment Form'!$B1008=\"\",'Enrollment Form'!$C1008<>\"\"),\"N\",IF($B1001=\"N\",\"\",\"Y\"))","v":""},{"$f":"IF(OR($B1001=\"N\",'Enrollment Form'!G1008=\"\"),\"\",IF('Enrollment Form'!$B1008<>\"Subscriber\",\"\",IF('Enrollment Form'!$G1008='Enrollment Form'!$H1008,\"Y\",\"N\")))","v":""},{"$f":"IF($B1001=\"N\",\"\",IF(AND(COUNTIFS('Enrollment Form'!$H$11:$H$1000,'Enrollment Form'!$H1008,'Enrollment Form'!$B$11:$B$1000,'Enrollment Form'!$B1008)>1,'Enrollment Form'!$H1008<>\"\"),\"N\",\"Y\"))","v":""},{"$f":"IF($B1001=\"N\",\"\",IF(LEN('Enrollment Form'!$Y1008)=0,\"\",IF(LEN('Enrollment Form'!$Y1008)<>5,\"N\",\"Y\")))","v":""},{"$f":"IF($B1001=\"N\",\"\",IF(LEN('Enrollment Form'!$AD1008=0),\"\",IF(LEN('Enrollment Form'!$AD1008)<>5,\"N\",\"Y\")))","v":""},{"$f":"IF($B1001=\"N\",\"\",IF(LEN('Enrollment Form'!$BS1008=0),\"\",IF(LEN('Enrollment Form'!$BS1008)<>5,\"N\",\"Y\")))","v":""},{"$f":"IF($B1001=\"N\",\"\",IF(LEN('Enrollment Form'!$AE1008)=0,\"\",IF(LEN('Enrollment Form'!$AE1008)<>10,\"N\",\"Y\")))","v":""},{"$f":"IF($B1001=\"N\",\"\",IF(LEN('Enrollment Form'!$AF1008)=0,\"\",IF(LEN('Enrollment Form'!$AF1008)<>10,\"N\",\"Y\")))","v":""},{"$f":"IF('Enrollment Form'!$O1008<>\"Graded\",\"-\",IF(AND('Enrollment Form'!$O1008=\"Graded\",'Enrollment Form'!$AR1008<>\"\"),\"Y\",\"N\"))","v":"-"},{"$f":"IF($B1001=\"N\",\"\",IF(OR('Enrollment Form'!$B1008<>\"Subscriber\",'Enrollment Form'!$C1008=\"ROC\"),\"-\",IF(AND('Enrollment Form'!$B1008=\"Subscriber\",'Enrollment Form'!$C1008=\"Enroll\",'Enrollment Form'!$AJ1008<>\"\"),\"Y\",\"N\")))","v":""},{"$f":"IF($B1001=\"N\",\"\",IF(OR('Enrollment Form'!$B1008<>\"Subscriber\",'Enrollment Form'!$C1008=\"ROC\"),\"-\",IF(AND('Enrollment Form'!$B1008=\"Subscriber\",'Enrollment Form'!$C1008=\"Enroll\",'Enrollment Form'!$AK1008<>\"\"),\"Y\",\"N\")))","v":""},{"$f":"IF($B1001=\"N\",\"\",IF(OR('Enrollment Form'!$B1008<>\"Subscriber\",'Enrollment Form'!$C1008=\"ROC\"),\"-\",IF(AND('Enrollment Form'!$B1008=\"Subscriber\",'Enrollment Form'!$C1008=\"Enroll\",'Enrollment Form'!$AL1008<>\"\"),\"Y\",\"N\")))","v":""},{"$f":"IF($B1001=\"N\",\"\",IF(OR('Enrollment Form'!$B1008<>\"Subscriber\",'Enrollment Form'!$C1008=\"ROC\"),\"-\",IF(AND('Enrollment Form'!$B1008=\"Subscriber\",'Enrollment Form'!$C1008=\"Enroll\",'Enrollment Form'!$AP1008<>\"\"),\"Y\",\"N\")))","v":""},{"$f":"IF($B1001=\"N\",\"\",IF(OR('Enrollment Form'!$B1008<>\"Subscriber\",'Enrollment Form'!$C1008=\"ROC\"),\"-\",IF(AND('Enrollment Form'!$B1008=\"Subscriber\",'Enrollment Form'!$C1008=\"Enroll\",'Enrollment Form'!$AQ1008<>\"\"),\"Y\",\"N\")))","v":""},{"$f":"IF($B1001=\"N\",\"\",IF(OR('Enrollment Form'!$B1008<>\"Subscriber\",'Enrollment Form'!$C1008=\"ROC\"),\"-\",IF(AND('Enrollment Form'!$B1008=\"Subscriber\",'Enrollment Form'!$C1008=\"Enroll\",'Enrollment Form'!$AS1008<>\"\"),\"Y\",\"N\")))","v":""},{"$f":"IF($B1001=\"N\",\"\",IF($Q1001=\"-\",\"-\",IF(AND($Q1001=\"Y\",'Enrollment Form'!$AS1008=\"No\"),\"-\",IF(AND($Q1001=\"Y\",'Enrollment Form'!$AS1008=\"Yes\",'Enrollment Form'!$AT1008<>\"\"),\"Y\",\"N\"))))","v":""},{"$f":"IF($B1001=\"N\",\"\",IF(OR('Enrollment Form'!$B1008<>\"Subscriber\",'Enrollment Form'!$C1008=\"ROC\"),\"-\",IF(AND('Enrollment Form'!$B1008=\"Subscriber\",'Enrollment Form'!$C1008=\"Enroll\",'Enrollment Form'!$CV1008<>\"\"),\"Y\",\"N\")))","v":""},{"$f":"IF($B1001=\"N\",\"\",IF($S1001=\"-\",\"-\",IF(AND($S1001=\"Y\",'Enrollment Form'!$CV1008=\"No\"),\"-\",IF(AND($S1001=\"Y\",'Enrollment Form'!$CV1008=\"Yes\",'Enrollment Form'!$CW1008<>\"\"),\"Y\",\"N\"))))","v":""},{"$f":"IF(OR('Enrollment Form'!$AY1008=\"Yes\",'Enrollment Form'!$AY1008=\"\"),\"-\",IF(OR(AND('Enrollment Form'!$AY1008=\"No\",ISERROR(FIND(\"HMO\",VLOOKUP('Enrollment Form'!G1008,'Enrollment Form'!H$11:J$1000,3,FALSE),1))=FALSE,COUNTA('Enrollment Form'!$AZ1008:$BC1008)=4),AND('Enrollment Form'!$AY1008=\"No\",ISERROR(FIND(\"HMO\",VLOOKUP('Enrollment Form'!G1008,'Enrollment Form'!H$11:J$1000,3,FALSE),1))=FALSE,COUNTA('Enrollment Form'!$BT1008:$BW1008)=4)),\"Y\",\"N\"))","v":"-"},{"$f":"IF($B1001=\"N\",\"\",IF('Enrollment Form'!$B1008=\"Subscriber\",\"-\",IF(COUNTA('Enrollment Form'!$BL1008,'Enrollment Form'!$BN1008)=2,\"Y\",\"N\")))","v":""},{"$f":"IF($B1001=\"N\",\"\",IF(OR('Enrollment Form'!$AX1008=\"\",'Enrollment Form'!$AX1008=\"No\"),\"-\",IF(AND('Enrollment Form'!$AX1008=\"Yes\",COUNTA('Enrollment Form'!$CR1008)=1),\"Y\",\"N\")))","v":""},{"$f":"IF(OR('Enrollment Form'!$CR1008=\"\",'Enrollment Form'!$CR1008=\"No\"),\"-\",IF(COUNTA('Enrollment Form'!$CT1008:$CU1008)=2,\"Y\",\"N\"))","v":"-"},{"$f":"IF($B1001=\"N\",\"\",IF(COUNTIF('Enrollment Form'!$DG1008:$DP1008,\"Other\")=COUNTA('Enrollment Form'!$DK1008,'Enrollment Form'!$DH1008,'Enrollment Form'!$DN1008,'Enrollment Form'!$DQ1008),\"Y\",\"N\"))","v":""},{"$f":"IF($B1001=\"N\",\"\",IF(OR('Enrollment Form'!B1008<>\"Subscriber\",'Enrollment Form'!C1008=\"ROC\",COUNTIF('Enrollment Form'!AV1008:AW1008,\"Yes\")>=1),\"-\",IF(AND('Enrollment Form'!C1008=\"Enroll\",COUNTIF('Enrollment Form'!AV1008:AW1008,\"No\")=2,'Enrollment Form'!AX1008=\"\"),\"N\",\"Y\")))","v":""},{"$f":"IF(OR(B1001=\"N\",'Enrollment Form'!B1008<>\"Subscriber\",'Enrollment Form'!C1008=\"ROC\",'Enrollment Form'!O1008<>\"Multiple of Salary\"),\"-\",IF(COUNTA('Enrollment Form'!T1008:U1008)<2,\"N\",\"Y\"))","v":"-"},{"$f":"IF(B1001=\"N\",\"\",IF(OR('Enrollment Form'!C1008=\"ROC\",'Enrollment Form'!B1008<>\"Subscriber\",'Enrollment Form'!O1008=\"Waive\",'Enrollment Form'!O1008=\"\"),\"-\",IF('Enrollment Form'!P1008=\"\",\"N\",\"Y\")))","v":""},{"$f":"IF($B1001=\"N\",\"\",IF(AND('Enrollment Form'!$C1008=\"ROC\",'Enrollment Form'!$DR1008<>\"\"),\"Y\",IF(AND('Enrollment Form'!$C1008=\"ROC\",'Enrollment Form'!$DR1008=\"\"),\"N\",IF(AND('Enrollment Form'!$C1008=\"Enroll\",'Enrollment Form'!$B1008=\"Subscriber\",'Enrollment Form'!$CX1008=\"No\",'Enrollment Form'!$DR1008=\"\"),\"N\",IF(AND('Enrollment Form'!$C1008=\"Enroll\",'Enrollment Form'!$B1008=\"Subscriber\",'Enrollment Form'!$CX1008=\"Yes\"),\"-\",\"Y\")))))","v":""},{"$f":"IF($B1001=\"N\",\"\",IF(AND('Enrollment Form'!$C1008=\"ROC\",'Enrollment Form'!$DS1008<>\"\"),\"Y\",IF(AND('Enrollment Form'!$C1008=\"ROC\",'Enrollment Form'!$DS1008=\"\"),\"N\",IF(AND('Enrollment Form'!$C1008=\"Enroll\",'Enrollment Form'!$B1008=\"Subscriber\",'Enrollment Form'!$CX1008=\"No\",'Enrollment Form'!$DS1008=\"\"),\"N\",IF(AND('Enrollment Form'!$C1008=\"Enroll\",'Enrollment Form'!$B1008=\"Subscriber\",'Enrollment Form'!$CX1008=\"Yes\"),\"-\",\"Y\")))))","v":""},{"$f":"IF('Enrollment Form'!AH1008=\"\",\"\",IF(ISERROR(SEARCH(\".\",'Enrollment Form'!AH1008,SEARCH(\"@\",'Enrollment Form'!AH1008))),\"N\",\"Y\"))","v":""},{"$f":"IF(OR($B1001=\"N\",'Enrollment Form'!$G1008=\"\"),\"\",IF('Enrollment Form'!$B1008<>\"Subscriber\",\"-\",IF(COUNTIF('Enrollment Form'!$AV1008:$AW1008,\"Yes\")=2,\"N\",\"Y\")))","v":""},{"$f":"IF(OR('Enrollment Form'!$CJ1008=\"\",'Enrollment Form'!$CJ1008=\"No\"),\"-\",IF(AND('Enrollment Form'!$CJ1008=\"Yes\",'Enrollment Form'!$CK1008=\"\"),\"N\",\"Y\"))","v":"-"},{"$f":"IF(OR('Enrollment Form'!$CL1008=\"\",'Enrollment Form'!$CL1008=\"No\"),\"-\",IF(AND('Enrollment Form'!$CL1008=\"Yes\",'Enrollment Form'!$CM1008=\"\"),\"N\",\"Y\"))","v":"-"},{"$f":"IF(OR('Enrollment Form'!$CN1008=\"\",'Enrollment Form'!$CN1008=\"No\"),\"-\",IF(AND('Enrollment Form'!$CN1008=\"Yes\",'Enrollment Form'!$CO1008=\"\"),\"N\",\"Y\"))","v":"-"},{"$f":"IF(OR('Enrollment Form'!$CN1008=\"\",'Enrollment Form'!$CN1008=\"No\"),\"-\",IF(AND('Enrollment Form'!$CN1008=\"Yes\",'Enrollment Form'!$CP1008=\"\"),\"N\",\"Y\"))","v":"-"},{"$f":"IF('Enrollment Form'!B1008<>\"Subscriber\",\"-\",IF(AND('Enrollment Form'!B1008=\"Subscriber\",'Enrollment Form'!C1008=\"Enroll\",'Enrollment Form'!AA1008=\"\"),\"N\",\"Y\"))","v":"-"},{"$f":"IF(OR('Enrollment Form'!B1008=\"Subscriber\",'Enrollment Form'!B1008=\"\"),\"-\",IF('Enrollment Form'!BP1008=\"\",\"N\",\"Y\"))","v":"-"},{"$f":"IF('Enrollment Form'!B1008<>\"Subscriber\",\"-\",IF(AND('Enrollment Form'!B1008=\"Subscriber\",'Enrollment Form'!G1008=\"\"),\"N\",\"Y\"))","v":"-"},{"$f":"IF('Enrollment Form'!A1008=\"\",\"\",IF('Enrollment Form'!B1008=\"Subscriber\",\"-\",IF(AND('Enrollment Form'!B1008<>\"Subscriber\",'Enrollment Form'!G1008='Enrollment Form'!H1008),\"N\",\"Y\")))","v":""},0]

{"sheet":"Report","index":16,"n_rows":24,"n_cols":5,"rows_kept":24,"cut":false,"hidden":true,"merged":[[2,0,3,0],[7,0,8,0],[12,0,13,0]]}
[null,"Counts by App Type:"]
[null,null,"Subscribers","Dependents","Total"]
["Excel","Enroll",{"$f":"COUNTIFS('Enrollment Form'!$B$11:$B$1000,\"Subscriber\",'Enrollment Form'!$C$11:$C$1000,\"Enroll\")","v":0},{"$f":"COUNTIFS('Enrollment Form'!$B$11:$B$1000,\"<>Subscriber\",'Enrollment Form'!$C$11:$C$1000,\"Enroll\")","v":0},{"$f":"SUM(C3:D3)","v":0}]
[null,"ROC",{"$f":"COUNTIFS('Enrollment Form'!$B$11:$B$1000,\"Subscriber\",'Enrollment Form'!$C$11:$C$1000,\"ROC\")","v":0},null,{"$f":"SUM(C4:D4)","v":0}]
[null,"Total:",{"$f":"SUM(C3:C4)","v":0},{"$f":"SUM(D3:D4)","v":0},{"$f":"SUM(C5:D5)","v":0}]
[]
[null,null,"Subscribers","Dependents","Total"]
["Paper","Enroll",0,0,{"$f":"SUM(C8:D8)","v":0}]
[null,"ROC",0,null,{"$f":"SUM(C9:D9)","v":0}]
[null,"Total:",{"$f":"SUM(C8:C9)","v":0},{"$f":"SUM(D8:D9)","v":0},{"$f":"SUM(C10:D10)","v":0}]
[]
[null,null,"Subscribers","Dependents","Total"]
["Entire Group","Enroll",{"$f":"SUM(C3,C8)","v":0},{"$f":"SUM(D3,D8)","v":0},{"$f":"SUM(E3,E8)","v":0}]
[null,"ROC",{"$f":"SUM(C4,C9)","v":0},null,{"$f":"SUM(E4,E9)","v":0}]
[null,"Grand Total:",{"$f":"SUM(C5,C10)","v":0},{"$f":"SUM(D5,D10)","v":0},{"$f":"SUM(E5,E10)","v":0}]
[]
[null,null,null," = Manually enter for paper submittals"]
[]
[null,"Counts by Product Type:"]
[null,"Subscribers"]
["Medical",{"$f":"COUNTIFS('Enrollment Form'!$B$11:$B$1000,\"Subscriber\",'Enrollment Form'!$EQ$11:$EQ$1000,\"Yes\")","v":0}]
["Dental",{"$f":"COUNTIFS('Enrollment Form'!$B$11:$B$1000,\"Subscriber\",'Enrollment Form'!$ER$11:$ER$1000,\"Yes\")","v":0}]
["Vision",{"$f":"COUNTIFS('Enrollment Form'!$B$11:$B$1000,\"Subscriber\",'Enrollment Form'!$ES$11:$ES$1000,\"Yes\")","v":0}]
["Life",{"$f":"COUNTIFS('Enrollment Form'!$B$11:$B$1000,\"Subscriber\",'Enrollment Form'!$ET$11:$ET$1000,\"Yes\")","v":0}]

{"sheet":"Tracking","index":17,"n_rows":3,"n_cols":2,"rows_kept":3,"cut":false,"hidden":false,"merged":[]}
[{"$f":"NOW()","v":"2021-03-12T09:21:10.970"}," = Current Date/Time"]
[]
["Dates/Times of Exports to .CSV:"]

{"sheet":"RevisionLog","index":18,"n_rows":33,"n_cols":2,"rows_kept":33,"cut":false,"hidden":true,"merged":[]}
["Version","Description of Edit"]
["V1-2","County dropdown updated to allow autocomplete upon double click"]
["V1-2","9i and 9h updated with dropdown lists"]
["V1-2","Sample values cleared from template"]
["V1-2","Tax ID fields fixed to only allow numeric values (consistent when passed to EEA)"]
["2018Q4_V1a","PCP ID field changed to text with mandatory length of 12 (data validation)"]
["2018Q4_V1a","Past Due Premium line added to MGA with logic that only allows user to continue on if they select \"Yes\""]
["2018Q4_V1a","Past_Due_Attestation__c added to CSV output"]
["2018Q4_V1a","PCP ID field headed updated, API name remains the same"]
["2018Q4_V1b","REMOVED Past Due Premium line added to MGA with logic that only allows user to continue on if they select \"Yes\" - Will now display entire MGA regardless of the answer to this question."]
["2018Q4_V1c","PCP ID field added www.blueshieldca.com to the rollover"]
["2018Q4_V1d","Attestation field added (was not populating) to .CSV"]
["2018Q4_V1e","Formatting of Attestation field updated from custom to general (null if left blank)"]
["2019Q1_V1d","Removed default of \"Basic\" life.  Field now defaults to NULL."]
["2019Q1_V1e","Edited 3 plan names that weren't matching to Shieldlink values"]
["2019Q2_V1a","Removed Bronze PPO plans per Tom Kloos"]
["2019Q2_V1a","Revised dental plan offerings"]
["2019Q2_V1a","Removed edit functionality for Contact Method column (EEA)"]
["2019Q2_V1b","Added 5 fields (to extract) for COBRA TPA contact info"]
["2019Q2_V1c","Modified formula/logic used to display Dental_HMO on EEA"]
["2019Q3_V1a","Removed attestation section"]
["2019Q3_V1a","9m - \"Electronic\" option removed from dropdown"]
["2019Q3_V1a","9n - completely removed"]
["2019Q3_V1a","9o - completely removed"]
["2019Q3_V1a","3 Bronze plans were reintroduced to section 4"]
["2019Q3_V1a","EEA - Preferred Contact Method added back in"]
["2019Q3_V1b","MGA - updated 2 plans:  Bronze Full PPO 4500/70 OffEx & Bronze Tandem PPO 4500/70 OffEx"]
["2019Q3_V1c","Removed attestation mapping on MGAtoCSV tab (was causing error)"]
["2019Q4_V1d","Added fields required for Race & Ethnicity mandate"]
["2019Q4_V1e","Fixed bug on Validation tab used to determine if DOB and Gender were populated for Dependents"]
["2019Q4_V1f","Fixed Double-Click functionality to allow user ease of entry with auto-complete"]
["2020Q3_V2b","Miscellaneous data removed from Dental Options that was causing error in dropdown"]
["2020Q3_V2c","Space removed from \"No \" that was causing Excel Validation to fail on COBRA section"]

{"sheet":"Sheet3","index":19,"n_rows":991,"n_cols":146,"rows_kept":562,"cut":true,"hidden":true,"merged":[],"bounds":{"rows_first":250,"rows_last":62,"rows_between":250,"halvings":3}}
["Group_Tax_ID__c","Applicant_Type__c","Type_of_Application__c","Applicant_Last_Name__c","Applicant_First_Name__c","Applicant_Middle_Initial__c","Subscriber_SSN__c","Applicant_SSN__c","Health_Package__c","Health_Plan__c","Detal_Package__c","Dental_Plan__c","Vision_Package__c","Vision_Plan__c","Life_Option__c","Desired_Employee_Basic_Life_Ins_Amt__c","Basic_Dependent_Life_Insurance_Enroll__c","Number_of_Eligible_Dependents__c","Amount_Of_Coverage_Req_For_Dependents__c","Earnings__c","Earnings_Frequency__c","Subscriber_Home_Address__c","Subscriber_City__c","Subscriber_State__c","Subscriber_Zip__c","Same_as_home__c","Subscriber_Mailing_Address__c","Subscriber_Mailing_City__c","Subscriber_Mailing_State__c","Subscriber_Mailing_Zip__c","Subscriber_Work_Phone__c","Subscriber_Home_Phone__c","XXXXX","Subscriber_Email_Address__c","Preferred_Method_Of_Contact__c","Subscriber_Date_of_Birth__c","Subscriber_Gender__c","Subscriber_Marital_Status__c","Hispanic_or_Latino_origin__c","If_yes_H_L__c","Sub_Which_race_do_you_identify_with__c","Subscriber_Date_Of_Hire__c","Subscriber_Job_Title__c","Job_Classification__c","Eligible_dependents_less_than_26__c","How_many_dependents_less_than_26__c","How_many_dependents_lessthan26_enrolling__c","Work_30_hours_per_week__c","Work_20_to_29_hours_per_week__c","Cobra_participant_or_qualifying_event__c","Designate_a_Provider__c","Medical_HMO_Personal_Physician_Name__c","Provider_Number__c","IPA_MG_Name__c","Existing_Medical_Patient__c","Dental_HMO_Provider_Name__c","Dental_Provider_Number__c","Dental_Group_Name__c","Existing_Dental_Patient__c","XXX","Dep_Hispanic_or_Latino_origin__c","Dep_If_yes_H_L__c","Dep_Which_race_do_you_identify_with__c","Dependent_Gender__c","Enroll_In_All_Subscriber_Products__c","Dependent_Date_Of_Birth__c","Address_same_as_Applicant__c","Dependent_Address__c","Dependent_City__c","Dependent_State__c","Dependent_ZIP__c","Dependent_HMO_Personal_Physician_Name__c","Dependent_Provider_Number__c","Dependent_IPA_Name__c","Dependent_Existing_Medical_Patient__c","Dependent_Dental_HMO_Provider_Name__c","Dependent_Dental_Provider_Number__c","Dependent_Dental_Group_Name__c","Dependent_Existing_Dental_Patient__c","Prior_Coverage__c","Prior_Carrier_Name__c","Type_of_Coverage__c","Policy_ID_Number__c","Date_Prior_Coverage_Began__c","Date_Prior_Coverage_Ended__c","Family_Members_with_Prior_Coverage__c","Medicare_Current_Coverage__c","Medicare_Part_A__c","Medicare_Part_A_Date__c","Medicare_Part_B__c","Medicare_Part_B_Date__c","Medicare_End_Stage_Renal__c","Medicare_First_Dialysis_Date__c","Medicare_Dialysis_Type__c","Medicare_Kidney_Transplant_Date__c","Enrolling_In_Cobra_or_CalCobra__c","Blue_Shield_ID_Number__c","Original_Qualifying_Event_Date__c","Qualifying_Event_Reason__c","Signature_Of_Employee__c","Signature_Date__c","All_eligible_family_members_enrolling__c","ROC_Date_of_Birth__c","ROC_Date_of_Hire__c","ROC_State_of_Residence__c","ROC_Marital_Status__c","ROC_Job_Title__c","FT_Employee__c","PT_Employee__c","Declining_Medical_coverage__c","Reason_For_declining_Medical__c","R_Decl_Other_Medical__c","Declining_Dental_coverage__c","Reason_For_declining_Dental__c","R_Decl_Other_Dental__c","Declining_Vision_coverage__c","Reason_For_declining_Vision_coverage__c","R_Decl_Other_Vision__c","Declining_Life_coverage__c","Reason_for_declining_Life_coverage__c","R_Decl_Other_Life__c","ROC_Signature__c","ROC_Date__c","Language_Preference__c","Declining_Coverage_for_Medical__c","Declining_Coverage_for_Dental__c","Declining_Coverage_for_Vision__c","Declining_Coverage_for_Life__c","Other_Medical_Carrier__c","Member_ID_at_Medical_Carrier__c","Other_Dental_Carrier__c","Member_ID_at_Dental_Carrier__c","Other_Vision_Carrier__c","Member_ID_at_Vision_Carrier__c","Other_Life_Carrier__c","Member_ID_at_Life_Carrier__c","CSV_Source__c","EOL"]
["",null,null,null,null,null,null,"",null,null,null,null,null,null,null,null,null,null,null,null,null,null,null,null,null,null,"","","","",null,null,"",null,null,null,null,null,null,null,null,null,null,null,null,null,null,null,null,null,null,null,null,null,null,null,null,null,null,null,"","","",null,null,null,null,"","","","",null,null,null,null,null,null,null,null,null,null,null,null,null,null,null,null,null,null,null,null,null,null,null,null,null,null,null,null,null,null,null,null,null,null,null,null,null,null,null,null,null,null,null,null,null,null,null,null,null,null,null,null,"","","","","",null,null,null,null,null,null,null,null,"",null,null,null,null,null,"","","",""]
["",null,null,null,null,null,"","",null,null,null,null,null,null,null,null,null,null,null,null,null,null,null,null,null,null,"","","","",null,null,"",null,null,null,null,null,null,null,null,null,null,null,null,null,null,null,null,null,null,null,null,null,null,null,null,null,null,null,"","","",null,null,null,null,"","","","",null,null,null,null,null,null,null,null,null,null,null,null,null,null,null,null,null,null,null,null,null,null,null,null,null,null,null,null,null,null,null,null,null,null,null,null,null,null,null,null,null,null,null,null,null,null,null,null,null,null,null,null,"","","","","",null,null,null,null,null,null,null,null,"",null,"","","","","","","",""]
["",null,null,null,null,null,"","",null,null,null,null,null,null,"",null,null,null,null,null,null,null,null,null,null,null,"","","","",null,null,"",null,null,null,null,null,null,null,null,null,null,null,null,null,null,null,null,null,null,null,null,null,null,null,null,null,null,null,"","","",null,null,null,null,"","","","",null,null,null,null,null,null,null,null,null,null,null,null,null,null,null,null,null,null,null,null,null,null,null,null,null,null,null,null,null,null,null,null,null,null,null,null,null,null,null,null,null,null,null,null,null,null,null,null,null,null,null,null,"","","","","",null,null,null,null,null,null,null,null,"",null,"","","","","","","",""]
["",null,null,null,null,null,"","",null,null,null,null,null,null,null,null,null,null,null,null,null,null,null,null,null,null,"","","","",null,null,"",null,null,null,null,null,null,null,null,null,null,null,null,null,null,null,null,null,null,null,null,null,null,null,null,null,null,null,"","","",null,null,null,null,"","","","",null,null,null,null,null,null,null,null,null,null,null,null,null,null,null,null,null,null,null,null,null,null,null,null,null,null,null,null,null,null,null,null,null,null,null,null,null,null,null,null,null,null,null,null,null,null,null,null,null,null,null,null,"","","","","",null,null,null,null,null,null,null,null,"",null,"","","","","","","",""]
["",null,null,null,null,null,"","",null,null,null,null,null,null,null,null,null,null,null,null,null,null,null,null,null,null,"","","","",null,null,"",null,null,null,null,null,null,null,null,null,null,null,null,null,null,null,null,null,null,null,null,null,null,null,null,null,null,null,"","","",null,null,null,null,"","","","",null,null,null,null,null,null,null,null,null,null,null,null,null,null,null,null,null,null,null,null,null,null,null,null,null,null,null,null,null,null,null,null,null,null,null,null,null,null,null,null,null,null,null,null,null,null,null,null,null,null,null,null,"","","","","",null,null,null,null,null,null,null,null,"",null,"","","","","","","",""]
["",null,null,null,null,null,"","",null,null,null,null,null,null,null,null,null,null,null,null,null,null,null,null,null,null,"","","","",null,null,"",null,null,null,null,null,null,null,null,null,null,null,null,null,null,null,null,null,null,null,null,null,null,null,null,null,null,null,"","","",null,null,null,null,"","","","",null,null,null,null,null,null,null,null,null,null,null,null,null,null,null,null,null,null,null,null,null,null,null,null,null,null,null,null,null,null,null,null,null,null,null,null,null,null,null,null,null,null,null,null,null,null,null,null,null,null,null,null,"","","","","",null,null,null,null,null,null,null,null,"",null,"","","","","","","",""]
["",null,null,null,null,null,"","",null,null,null,null,null,null,null,null,null,null,null,null,null,null,null,null,null,null,"","","","",null,null,"",null,null,null,null,null,null,null,null,null,null,null,null,null,null,null,null,null,null,null,null,null,null,null,null,null,null,null,"","","",null,null,null,null,"","","","",null,null,null,null,null,null,null,null,null,null,null,null,null,null,null,null,null,null,null,null,null,null,null,null,null,null,null,null,null,null,null,null,null,null,null,null,null,null,null,null,null,null,null,null,null,null,null,null,null,null,null,null,"","","","","",null,null,null,null,null,null,null,null,"",null,"","","","","","","",""]
["",null,null,null,null,null,"","",null,null,null,null,null,null,null,null,null,null,null,null,null,null,null,null,null,null,"","","","",null,null,"",null,null,null,null,null,null,null,null,null,null,null,null,null,null,null,null,null,null,null,null,null,null,null,null,null,null,null,"","","",null,null,null,null,"","","","",null,null,null,null,null,null,null,null,null,null,null,null,null,null,null,null,null,null,null,null,null,null,null,null,null,null,null,null,null,null,null,null,null,null,null,null,null,null,null,null,null,null,null,null,null,null,null,null,null,null,null,null,"","","","","",null,null,null,null,null,null,null,null,"",null,"","","","","","","",""]
["",null,null,null,null,null,"","",null,null,null,null,null,null,null,null,null,null,null,null,null,null,null,null,null,null,"","","","",null,null,"",null,null,null,null,null,null,null,null,null,null,null,null,null,null,null,null,null,null,null,null,null,null,null,null,null,null,null,"","","",null,null,null,null,"","","","",null,null,null,null,null,null,null,null,null,null,null,null,null,null,null,null,null,null,null,null,null,null,null,null,null,null,null,null,null,null,null,null,null,null,null,null,null,null,null,null,null,null,null,null,null,null,null,null,null,null,null,null,"","","","","",null,null,null,null,null,null,null,null,"",null,"","","","","","","",""]
["",null,null,null,null,null,"","",null,null,null,null,null,null,null,null,null,null,null,null,null,null,null,null,null,null,"","","","",null,null,"",null,null,null,null,null,null,null,null,null,null,null,null,null,null,null,null,null,null,null,null,null,null,null,null,null,null,null,"","","",null,null,null,null,"","","","",null,null,null,null,null,null,null,null,null,null,null,null,null,null,null,null,null,null,null,null,null,null,null,null,null,null,null,null,null,null,null,null,null,null,null,null,null,null,null,null,null,null,null,null,null,null,null,null,null,null,null,null,"","","","","",null,null,null,null,null,null,null,null,"",null,"","","","","","","",""]
["",null,null,null,null,null,"","",null,null,null,null,null,null,null,null,null,null,null,null,null,null,null,null,null,null,"","","","",null,null,"",null,null,null,null,null,null,null,null,null,null,null,null,null,null,null,null,null,null,null,null,null,null,null,null,null,null,null,"","","",null,null,null,null,"","","","",null,null,null,null,null,null,null,null,null,null,null,null,null,null,null,null,null,null,null,null,null,null,null,null,null,null,null,null,null,null,null,null,null,null,null,null,null,null,null,null,null,null,null,null,null,null,null,null,null,null,null,null,"","","","","",null,null,null,null,null,null,null,null,"",null,"","","","","","","",""]
["",null,null,null,null,null,"","",null,null,null,null,null,null,null,null,null,null,null,null,null,null,null,null,null,null,"","","","",null,null,"",null,null,null,null,null,null,null,null,null,null,null,null,null,null,null,null,null,null,null,null,null,null,null,null,null,null,null,"","","",null,null,null,null,"","","","",null,null,null,null,null,null,null,null,null,null,null,null,null,null,null,null,null,null,null,null,null,null,null,null,null,null,null,null,null,null,null,null,null,null,null,null,null,null,null,null,null,null,null,null,null,null,null,null,null,null,null,null,"","","","","",null,null,null,null,null,null,null,null,"",null,"","","","","","","",""]
["",null,null,null,null,null,"","",null,null,null,null,null,null,null,null,null,null,null,null,null,null,null,null,null,null,"","","","",null,null,"",null,null,null,null,null,null,null,null,null,null,null,null,null,null,null,null,null,null,null,null,null,null,null,null,null,null,null,"","","",null,null,null,null,"","","","",null,null,null,null,null,null,null,null,null,null,null,null,null,null,null,null,null,null,null,null,null,null,null,null,null,null,null,null,null,null,null,null,null,null,null,null,null,null,null,null,null,null,null,null,null,null,null,null,null,null,null,null,"","","","","",null,null,null,null,null,null,null,null,"",null,"","","","","","","",""]
["",null,null,null,null,null,"","",null,null,null,null,null,null,null,null,null,null,null,null,null,null,null,null,null,null,"","","","",null,null,"",null,null,null,null,null,null,null,null,null,null,null,null,null,null,null,null,null,null,null,null,null,null,null,null,null,null,null,"","","",null,null,null,null,"","","","",null,null,null,null,null,null,null,null,null,null,null,null,null,null,null,null,null,null,null,null,null,null,null,null,null,null,null,null,null,null,null,null,null,null,null,null,null,null,null,null,null,null,null,null,null,null,null,null,null,null,null,null,"","","","","",null,null,null,null,null,null,null,null,"",null,"","","","","","","",""]
["",null,null,null,null,null,"","",null,null,null,null,null,null,null,null,null,null,null,null,null,null,null,null,null,null,"","","","",null,null,"",null,null,null,null,null,null,null,null,null,null,null,null,null,null,null,null,null,null,null,null,null,null,null,null,null,null,null,"","","",null,null,null,null,"","","","",null,null,null,null,null,null,null,null,null,null,null,null,null,null,null,null,null,null,null,null,null,null,null,null,null,null,null,null,null,null,null,null,null,null,null,null,null,null,null,null,null,null,null,null,null,null,null,null,null,null,null,null,"","","","","",null,null,null,null,null,null,null,null,"",null,"","","","","","","",""]
["",null,null,null,null,null,"","",null,null,null,null,null,null,null,null,null,null,null,null,null,null,null,null,null,null,"","","","",null,null,"",null,null,null,null,null,null,null,null,null,null,null,null,null,null,null,null,null,null,null,null,null,null,null,null,null,null,null,"","","",null,null,null,null,"","","","",null,null,null,null,null,null,null,null,null,null,null,null,null,null,null,null,null,null,null,null,null,null,null,null,null,null,null,null,null,null,null,null,null,null,null,null,null,null,null,null,null,null,null,null,null,null,null,null,null,null,null,null,"","","","","",null,null,null,null,null,null,null,null,"",null,"","","","","","","",""]
["",null,null,null,null,null,"","",null,null,null,null,null,null,null,null,null,null,null,null,null,null,null,null,null,null,"","","","",null,null,"",null,null,null,null,null,null,null,null,null,null,null,null,null,null,null,null,null,null,null,null,null,null,null,null,null,null,null,"","","",null,null,null,null,"","","","",null,null,null,null,null,null,null,null,null,null,null,null,null,null,null,null,null,null,null,null,null,null,null,null,null,null,null,null,null,null,null,null,null,null,null,null,null,null,null,null,null,null,null,null,null,null,null,null,null,null,null,null,"","","","","",null,null,null,null,null,null,null,null,"",null,"","","","","","","",""]
["",null,null,null,null,null,"","",null,null,null,null,null,null,null,null,null,null,null,null,null,null,null,null,null,null,"","","","",null,null,"",null,null,null,null,null,null,null,null,null,null,null,null,null,null,null,null,null,null,null,null,null,null,null,null,null,null,null,"","","",null,null,null,null,"","","","",null,null,null,null,null,null,null,null,null,null,null,null,null,null,null,null,null,null,null,null,null,null,null,null,null,null,null,null,null,null,null,null,null,null,null,null,null,null,null,null,null,null,null,null,null,null,null,null,null,null,null,null,"","","","","",null,null,null,null,null,null,null,null,"",null,"","","","","","","",""]
["",null,null,null,null,null,"","",null,null,null,null,null,null,null,null,null,null,null,null,null,null,null,null,null,null,"","","","",null,null,"",null,null,null,null,null,null,null,null,null,null,null,null,null,null,null,null,null,null,null,null,null,null,null,null,null,null,null,"","","",null,null,null,null,"","","","",null,null,null,null,null,null,null,null,null,null,null,null,null,null,null,null,null,null,null,null,null,null,null,null,null,null,null,null,null,null,null,null,null,null,null,null,null,null,null,null,null,null,null,null,null,null,null,null,null,null,null,null,"","","","","",null,null,null,null,null,null,null,null,"",null,"","","","","","","",""]
["",null,null,null,null,null,"","",null,null,null,null,null,null,null,null,null,null,null,null,null,null,null,null,null,null,"","","","",null,null,"",null,null,null,null,null,null,null,null,null,null,null,null,null,null,null,null,null,null,null,null,null,null,null,null,null,null,null,"","","",null,null,null,null,"","","","",null,null,null,null,null,null,null,null,null,null,null,null,null,null,null,null,null,null,null,null,null,null,null,null,null,null,null,null,null,null,null,null,null,null,null,null,null,null,null,null,null,null,null,null,null,null,null,null,null,null,null,null,"","","","","",null,null,null,null,null,null,null,null,"",null,"","","","","","","",""]
["",null,null,null,null,null,"","",null,null,null,null,null,null,null,null,null,null,null,null,null,null,null,null,null,null,"","","","",null,null,"",null,null,null,null,null,null,null,null,null,null,null,null,null,null,null,null,null,null,null,null,null,null,null,null,null,null,null,"","","",null,null,null,null,"","","","",null,null,null,null,null,null,null,null,null,null,null,null,null,null,null,null,null,null,null,null,null,null,null,null,null,null,null,null,null,null,null,null,null,null,null,null,null,null,null,null,null,null,null,null,null,null,null,null,null,null,null,null,"","","","","",null,null,null,null,null,null,null,null,"",null,"","","","","","","",""]
["",null,null,null,null,null,"","",null,null,null,null,null,null,null,null,null,null,null,null,null,null,null,null,null,null,"","","","",null,null,"",null,null,null,null,null,null,null,null,null,null,null,null,null,null,null,null,null,null,null,null,null,null,null,null,null,null,null,"","","",null,null,null,null,"","","","",null,null,null,null,null,null,null,null,null,null,null,null,null,null,null,null,null,null,null,null,null,null,null,null,null,null,null,null,null,null,null,null,null,null,null,null,null,null,null,null,null,null,null,null,null,null,null,null,null,null,null,null,"","","","","",null,null,null,null,null,null,null,null,"",null,"","","","","","","",""]
["",null,null,null,null,null,"","",null,null,null,null,null,null,null,null,null,null,null,null,null,null,null,null,null,null,"","","","",null,null,"",null,null,null,null,null,null,null,null,null,null,null,null,null,null,null,null,null,null,null,null,null,null,null,null,null,null,null,"","","",null,null,null,null,"","","","",null,null,null,null,null,null,null,null,null,null,null,null,null,null,null,null,null,null,null,null,null,null,null,null,null,null,null,null,null,null,null,null,null,null,null,null,null,null,null,null,null,null,null,null,null,null,null,null,null,null,null,null,"","","","","",null,null,null,null,null,null,null,null,"",null,"","","","","","","",""]
["",null,null,null,null,null,"","",null,null,null,null,null,null,null,null,null,null,null,null,null,null,null,null,null,null,"","","","",null,null,"",null,null,null,null,null,null,null,null,null,null,null,null,null,null,null,null,null,null,null,null,null,null,null,null,null,null,null,"","","",null,null,null,null,"","","","",null,null,null,null,null,null,null,null,null,null,null,null,null,null,null,null,null,null,null,null,null,null,null,null,null,null,null,null,null,null,null,null,null,null,null,null,null,null,null,null,null,null,null,null,null,null,null,null,null,null,null,null,"","","","","",null,null,null,null,null,null,null,null,"",null,"","","","","","","",""]
["",null,null,null,null,null,"","",null,null,null,null,null,null,null,null,null,null,null,null,null,null,null,null,null,null,"","","","",null,null,"",null,null,null,null,null,null,null,null,null,null,null,null,null,null,null,null,null,null,null,null,null,null,null,null,null,null,null,"","","",null,null,null,null,"","","","",null,null,null,null,null,null,null,null,null,null,null,null,null,null,null,null,null,null,null,null,null,null,null,null,null,null,null,null,null,null,null,null,null,null,null,null,null,null,null,null,null,null,null,null,null,null,null,null,null,null,null,null,"","","","","",null,null,null,null,null,null,null,null,"",null,"","","","","","","",""]
["",null,null,null,null,null,"","",null,null,null,null,null,null,null,null,null,null,null,null,null,null,null,null,null,null,"","","","",null,null,"",null,null,null,null,null,null,null,null,null,null,null,null,null,null,null,null,null,null,null,null,null,null,null,null,null,null,null,"","","",null,null,null,null,"","","","",null,null,null,null,null,null,null,null,null,null,null,null,null,null,null,null,null,null,null,null,null,null,null,null,null,null,null,null,null,null,null,null,null,null,null,null,null,null,null,null,null,null,null,null,null,null,null,null,null,null,null,null,"","","","","",null,null,null,null,null,null,null,null,"",null,"","","","","","","",""]
["",null,null,null,null,null,"","",null,null,null,null,null,null,null,null,null,null,null,null,null,null,null,null,null,null,"","","","",null,null,"",null,null,null,null,null,null,null,null,null,null,null,null,null,null,null,null,null,null,null,null,null,null,null,null,null,null,null,"","","",null,null,null,null,"","","","",null,null,null,null,null,null,null,null,null,null,null,null,null,null,null,null,null,null,null,null,null,null,null,null,null,null,null,null,null,null,null,null,null,null,null,null,null,null,null,null,null,null,null,null,null,null,null,null,null,null,null,null,"","","","","",null,null,null,null,null,null,null,null,"",null,"","","","","","","",""]
["",null,null,null,null,null,"","",null,null,null,null,null,null,null,null,null,null,null,null,null,null,null,null,null,null,"","","","",null,null,"",null,null,null,null,null,null,null,null,null,null,null,null,null,null,null,null,null,null,null,null,null,null,null,null,null,null,null,"","","",null,null,null,null,"","","","",null,null,null,null,null,null,null,null,null,null,null,null,null,null,null,null,null,null,null,null,null,null,null,null,null,null,null,null,null,null,null,null,null,null,null,null,null,null,null,null,null,null,null,null,null,null,null,null,null,null,null,null,"","","","","",null,null,null,null,null,null,null,null,"",null,"","","","","","","",""]
["",null,null,null,null,null,"","",null,null,null,null,null,null,null,null,null,null,null,null,null,null,null,null,null,null,"","","","",null,null,"",null,null,null,null,null,null,null,null,null,null,null,null,null,null,null,null,null,null,null,null,null,null,null,null,null,null,null,"","","",null,null,null,null,"","","","",null,null,null,null,null,null,null,null,null,null,null,null,null,null,null,null,null,null,null,null,null,null,null,null,null,null,null,null,null,null,null,null,null,null,null,null,null,null,null,null,null,null,null,null,null,null,null,null,null,null,null,null,"","","","","",null,null,null,null,null,null,null,null,"",null,"","","","","","","",""]
["",null,null,null,null,null,"","",null,null,null,null,null,null,null,null,null,null,null,null,null,null,null,null,null,null,"","","","",null,null,"",null,null,null,null,null,null,null,null,null,null,null,null,null,null,null,null,null,null,null,null,null,null,null,null,null,null,null,"","","",null,null,null,null,"","","","",null,null,null,null,null,null,null,null,null,null,null,null,null,null,null,null,null,null,null,null,null,null,null,null,null,null,null,null,null,null,null,null,null,null,null,null,null,null,null,null,null,null,null,null,null,null,null,null,null,null,null,null,"","","","","",null,null,null,null,null,null,null,null,"",null,"","","","","","","",""]
["",null,null,null,null,null,"","",null,null,null,null,null,null,null,null,null,null,null,null,null,null,null,null,null,null,"","","","",null,null,"",null,null,null,null,null,null,null,null,null,null,null,null,null,null,null,null,null,null,null,null,null,null,null,null,null,null,null,"","","",null,null,null,null,"","","","",null,null,null,null,null,null,null,null,null,null,null,null,null,null,null,null,null,null,null,null,null,null,null,null,null,null,null,null,null,null,null,null,null,null,null,null,null,null,null,null,null,null,null,null,null,null,null,null,null,null,null,null,"","","","","",null,null,null,null,null,null,null,null,"",null,"","","","","","","",""]
["",null,null,null,null,null,"","",null,null,null,null,null,null,null,null,null,null,null,null,null,null,null,null,null,null,"","","","",null,null,"",null,null,null,null,null,null,null,null,null,null,null,null,null,null,null,null,null,null,null,null,null,null,null,null,null,null,null,"","","",null,null,null,null,"","","","",null,null,null,null,null,null,null,null,null,null,null,null,null,null,null,null,null,null,null,null,null,null,null,null,null,null,null,null,null,null,null,null,null,null,null,null,null,null,null,null,null,null,null,null,null,null,null,null,null,null,null,null,"","","","","",null,null,null,null,null,null,null,null,"",null,"","","","","","","",""]
["",null,null,null,null,null,"","",null,null,null,null,null,null,null,null,null,null,null,null,null,null,null,null,null,null,"","","","",null,null,"",null,null,null,null,null,null,null,null,null,null,null,null,null,null,null,null,null,null,null,null,null,null,null,null,null,null,null,"","","",null,null,null,null,"","","","",null,null,null,null,null,null,null,null,null,null,null,null,null,null,null,null,null,null,null,null,null,null,null,null,null,null,null,null,null,null,null,null,null,null,null,null,null,null,null,null,null,null,null,null,null,null,null,null,null,null,null,null,"","","","","",null,null,null,null,null,null,null,null,"",null,"","","","","","","",""]
["",null,null,null,null,null,"","",null,null,null,null,null,null,null,null,null,null,null,null,null,null,null,null,null,null,"","","","",null,null,"",null,null,null,null,null,null,null,null,null,null,null,null,null,null,null,null,null,null,null,null,null,null,null,null,null,null,null,"","","",null,null,null,null,"","","","",null,null,null,null,null,null,null,null,null,null,null,null,null,null,null,null,null,null,null,null,null,null,null,null,null,null,null,null,null,null,null,null,null,null,null,null,null,null,null,null,null,null,null,null,null,null,null,null,null,null,null,null,"","","","","",null,null,null,null,null,null,null,null,"",null,"","","","","","","",""]
["",null,null,null,null,null,"","",null,null,null,null,null,null,null,null,null,null,null,null,null,null,null,null,null,null,"","","","",null,null,"",null,null,null,null,null,null,null,null,null,null,null,null,null,null,null,null,null,null,null,null,null,null,null,null,null,null,null,"","","",null,null,null,null,"","","","",null,null,null,null,null,null,null,null,null,null,null,null,null,null,null,null,null,null,null,null,null,null,null,null,null,null,null,null,null,null,null,null,null,null,null,null,null,null,null,null,null,null,null,null,null,null,null,null,null,null,null,null,"","","","","",null,null,null,null,null,null,null,null,"",null,"","","","","","","",""]
["",null,null,null,null,null,"","",null,null,null,null,null,null,null,null,null,null,null,null,null,null,null,null,null,null,"","","","",null,null,"",null,null,null,null,null,null,null,null,null,null,null,null,null,null,null,null,null,null,null,null,null,null,null,null,null,null,null,"","","",null,null,null,null,"","","","",null,null,null,null,null,null,null,null,null,null,null,null,null,null,null,null,null,null,null,null,null,null,null,null,null,null,null,null,null,null,null,null,null,null,null,null,null,null,null,null,null,null,null,null,null,null,null,null,null,null,null,null,"","","","","",null,null,null,null,null,null,null,null,"",null,"","","","","","","",""]
["",null,null,null,null,null,"","",null,null,null,null,null,null,null,null,null,null,null,null,null,null,null,null,null,null,"","","","",null,null,"",null,null,null,null,null,null,null,null,null,null,null,null,null,null,null,null,null,null,null,null,null,null,null,null,null,null,null,"","","",null,null,null,null,"","","","",null,null,null,null,null,null,null,null,null,null,null,null,null,null,null,null,null,null,null,null,null,null,null,null,null,null,null,null,null,null,null,null,null,null,null,null,null,null,null,null,null,null,null,null,null,null,null,null,null,null,null,null,"","","","","",null,null,null,null,null,null,null,null,"",null,"","","","","","","",""]
["",null,null,null,null,null,"","",null,null,null,null,null,null,null,null,null,null,null,null,null,null,null,null,null,null,"","","","",null,null,"",null,null,null,null,null,null,null,null,null,null,null,null,null,null,null,null,null,null,null,null,null,null,null,null,null,null,null,"","","",null,null,null,null,"","","","",null,null,null,null,null,null,null,null,null,null,null,null,null,null,null,null,null,null,null,null,null,null,null,null,null,null,null,null,null,null,null,null,null,null,null,null,null,null,null,null,null,null,null,null,null,null,null,null,null,null,null,null,"","","","","",null,null,null,null,null,null,null,null,"",null,"","","","","","","",""]
["",null,null,null,null,null,"","",null,null,null,null,null,null,null,null,null,null,null,null,null,null,null,null,null,null,"","","","",null,null,"",null,null,null,null,null,null,null,null,null,null,null,null,null,null,null,null,null,null,null,null,null,null,null,null,null,null,null,"","","",null,null,null,null,"","","","",null,null,null,null,null,null,null,null,null,null,null,null,null,null,null,null,null,null,null,null,null,null,null,null,null,null,null,null,null,null,null,null,null,null,null,null,null,null,null,null,null,null,null,null,null,null,null,null,null,null,null,null,"","","","","",null,null,null,null,null,null,null,null,"",null,"","","","","","","",""]
["",null,null,null,null,null,"","",null,null,null,null,null,null,null,null,null,null,null,null,null,null,null,null,null,null,"","","","",null,null,"",null,null,null,null,null,null,null,null,null,null,null,null,null,null,null,null,null,null,null,null,null,null,null,null,null,null,null,"","","",null,null,null,null,"","","","",null,null,null,null,null,null,null,null,null,null,null,null,null,null,null,null,null,null,null,null,null,null,null,null,null,null,null,null,null,null,null,null,null,null,null,null,null,null,null,null,null,null,null,null,null,null,null,null,null,null,null,null,"","","","","",null,null,null,null,null,null,null,null,"",null,"","","","","","","",""]
["",null,null,null,null,null,"","",null,null,null,null,null,null,null,null,null,null,null,null,null,null,null,null,null,null,"","","","",null,null,"",null,null,null,null,null,null,null,null,null,null,null,null,null,null,null,null,null,null,null,null,null,null,null,null,null,null,null,"","","",null,null,null,null,"","","","",null,null,null,null,null,null,null,null,null,null,null,null,null,null,null,null,null,null,null,null,null,null,null,null,null,null,null,null,null,null,null,null,null,null,null,null,null,null,null,null,null,null,null,null,null,null,null,null,null,null,null,null,"","","","","",null,null,null,null,null,null,null,null,"",null,"","","","","","","",""]
["",null,null,null,null,null,"","",null,null,null,null,null,null,null,null,null,null,null,null,null,null,null,null,null,null,"","","","",null,null,"",null,null,null,null,null,null,null,null,null,null,null,null,null,null,null,null,null,null,null,null,null,null,null,null,null,null,null,"","","",null,null,null,null,"","","","",null,null,null,null,null,null,null,null,null,null,null,null,null,null,null,null,null,null,null,null,null,null,null,null,null,null,null,null,null,null,null,null,null,null,null,null,null,null,null,null,null,null,null,null,null,null,null,null,null,null,null,null,"","","","","",null,null,null,null,null,null,null,null,"",null,"","","","","","","",""]
["",null,null,null,null,null,"","",null,null,null,null,null,null,null,null,null,null,null,null,null,null,null,null,null,null,"","","","",null,null,"",null,null,null,null,null,null,null,null,null,null,null,null,null,null,null,null,null,null,null,null,null,null,null,null,null,null,null,"","","",null,null,null,null,"","","","",null,null,null,null,null,null,null,null,null,null,null,null,null,null,null,null,null,null,null,null,null,null,null,null,null,null,null,null,null,null,null,null,null,null,null,null,null,null,null,null,null,null,null,null,null,null,null,null,null,null,null,null,"","","","","",null,null,null,null,null,null,null,null,"",null,"","","","","","","",""]
["",null,null,null,null,null,"","",null,null,null,null,null,null,null,null,null,null,null,null,null,null,null,null,null,null,"","","","",null,null,"",null,null,null,null,null,null,null,null,null,null,null,null,null,null,null,null,null,null,null,null,null,null,null,null,null,null,null,"","","",null,null,null,null,"","","","",null,null,null,null,null,null,null,null,null,null,null,null,null,null,null,null,null,null,null,null,null,null,null,null,null,null,null,null,null,null,null,null,null,null,null,null,null,null,null,null,null,null,null,null,null,null,null,null,null,null,null,null,"","","","","",null,null,null,null,null,null,null,null,"",null,"","","","","","","",""]
["",null,null,null,null,null,"","",null,null,null,null,null,null,null,null,null,null,null,null,null,null,null,null,null,null,"","","","",null,null,"",null,null,null,null,null,null,null,null,null,null,null,null,null,null,null,null,null,null,null,null,null,null,null,null,null,null,null,"","","",null,null,null,null,"","","","",null,null,null,null,null,null,null,null,null,null,null,null,null,null,null,null,null,null,null,null,null,null,null,null,null,null,null,null,null,null,null,null,null,null,null,null,null,null,null,null,null,null,null,null,null,null,null,null,null,null,null,null,"","","","","",null,null,null,null,null,null,null,null,"",null,"","","","","","","",""]
["",null,null,null,null,null,"","",null,null,null,null,null,null,null,null,null,null,null,null,null,null,null,null,null,null,"","","","",null,null,"",null,null,null,null,null,null,null,null,null,null,null,null,null,null,null,null,null,null,null,null,null,null,null,null,null,null,null,"","","",null,null,null,null,"","","","",null,null,null,null,null,null,null,null,null,null,null,null,null,null,null,null,null,null,null,null,null,null,null,null,null,null,null,null,null,null,null,null,null,null,null,null,null,null,null,null,null,null,null,null,null,null,null,null,null,null,null,null,"","","","","",null,null,null,null,null,null,null,null,"",null,"","","","","","","",""]
["",null,null,null,null,null,"","",null,null,null,null,null,null,null,null,null,null,null,null,null,null,null,null,null,null,"","","","",null,null,"",null,null,null,null,null,null,null,null,null,null,null,null,null,null,null,null,null,null,null,null,null,null,null,null,null,null,null,"","","",null,null,null,null,"","","","",null,null,null,null,null,null,null,null,null,null,null,null,null,null,null,null,null,null,null,null,null,null,null,null,null,null,null,null,null,null,null,null,null,null,null,null,null,null,null,null,null,null,null,null,null,null,null,null,null,null,null,null,"","","","","",null,null,null,null,null,null,null,null,"",null,"","","","","","","",""]
["",null,null,null,null,null,"","",null,null,null,null,null,null,null,null,null,null,null,null,null,null,null,null,null,null,"","","","",null,null,"",null,null,null,null,null,null,null,null,null,null,null,null,null,null,null,null,null,null,null,null,null,null,null,null,null,null,null,"","","",null,null,null,null,"","","","",null,null,null,null,null,null,null,null,null,null,null,null,null,null,null,null,null,null,null,null,null,null,null,null,null,null,null,null,null,null,null,null,null,null,null,null,null,null,null,null,null,null,null,null,null,null,null,null,null,null,null,null,"","","","","",null,null,null,null,null,null,null,null,"",null,"","","","","","","",""]
["",null,null,null,null,null,"","",null,null,null,null,null,null,null,null,null,null,null,null,null,null,null,null,null,null,"","","","",null,null,"",null,null,null,null,null,null,null,null,null,null,null,null,null,null,null,null,null,null,null,null,null,null,null,null,null,null,null,"","","",null,null,null,null,"","","","",null,null,null,null,null,null,null,null,null,null,null,null,null,null,null,null,null,null,null,null,null,null,null,null,null,null,null,null,null,null,null,null,null,null,null,null,null,null,null,null,null,null,null,null,null,null,null,null,null,null,null,null,"","","","","",null,null,null,null,null,null,null,null,"",null,"","","","","","","",""]
["",null,null,null,null,null,"","",null,null,null,null,null,null,null,null,null,null,null,null,null,null,null,null,null,null,"","","","",null,null,"",null,null,null,null,null,null,null,null,null,null,null,null,null,null,null,null,null,null,null,null,null,null,null,null,null,null,null,"","","",null,null,null,null,"","","","",null,null,null,null,null,null,null,null,null,null,null,null,null,null,null,null,null,null,null,null,null,null,null,null,null,null,null,null,null,null,null,null,null,null,null,null,null,null,null,null,null,null,null,null,null,null,null,null,null,null,null,null,"","","","","",null,null,null,null,null,null,null,null,"",null,"","","","","","","",""]
["",null,null,null,null,null,"","",null,null,null,null,null,null,null,null,null,null,null,null,null,null,null,null,null,null,"","","","",null,null,"",null,null,null,null,null,null,null,null,null,null,null,null,null,null,null,null,null,null,null,null,null,null,null,null,null,null,null,"","","",null,null,null,null,"","","","",null,null,null,null,null,null,null,null,null,null,null,null,null,null,null,null,null,null,null,null,null,null,null,null,null,null,null,null,null,null,null,null,null,null,null,null,null,null,null,null,null,null,null,null,null,null,null,null,null,null,null,null,"","","","","",null,null,null,null,null,null,null,null,"",null,"","","","","","","",""]
["",null,null,null,null,null,"","",null,null,null,null,null,null,null,null,null,null,null,null,null,null,null,null,null,null,"","","","",null,null,"",null,null,null,null,null,null,null,null,null,null,null,null,null,null,null,null,null,null,null,null,null,null,null,null,null,null,null,"","","",null,null,null,null,"","","","",null,null,null,null,null,null,null,null,null,null,null,null,null,null,null,null,null,null,null,null,null,null,null,null,null,null,null,null,null,null,null,null,null,null,null,null,null,null,null,null,null,null,null,null,null,null,null,null,null,null,null,null,"","","","","",null,null,null,null,null,null,null,null,"",null,"","","","","","","",""]
["",null,null,null,null,null,"","",null,null,null,null,null,null,null,null,null,null,null,null,null,null,null,null,null,null,"","","","",null,null,"",null,null,null,null,null,null,null,null,null,null,null,null,null,null,null,null,null,null,null,null,null,null,null,null,null,null,null,"","","",null,null,null,null,"","","","",null,null,null,null,null,null,null,null,null,null,null,null,null,null,null,null,null,null,null,null,null,null,null,null,null,null,null,null,null,null,null,null,null,null,null,null,null,null,null,null,null,null,null,null,null,null,null,null,null,null,null,null,"","","","","",null,null,null,null,null,null,null,null,"",null,"","","","","","","",""]
["",null,null,null,null,null,"","",null,null,null,null,null,null,null,null,null,null,null,null,null,null,null,null,null,null,"","","","",null,null,"",null,null,null,null,null,null,null,null,null,null,null,null,null,null,null,null,null,null,null,null,null,null,null,null,null,null,null,"","","",null,null,null,null,"","","","",null,null,null,null,null,null,null,null,null,null,null,null,null,null,null,null,null,null,null,null,null,null,null,null,null,null,null,null,null,null,null,null,null,null,null,null,null,null,null,null,null,null,null,null,null,null,null,null,null,null,null,null,"","","","","",null,null,null,null,null,null,null,null,"",null,"","","","","","","",""]
["",null,null,null,null,null,"","",null,null,null,null,null,null,null,null,null,null,null,null,null,null,null,null,null,null,"","","","",null,null,"",null,null,null,null,null,null,null,null,null,null,null,null,null,null,null,null,null,null,null,null,null,null,null,null,null,null,null,"","","",null,null,null,null,"","","","",null,null,null,null,null,null,null,null,null,null,null,null,null,null,null,null,null,null,null,null,null,null,null,null,null,null,null,null,null,null,null,null,null,null,null,null,null,null,null,null,null,null,null,null,null,null,null,null,null,null,null,null,"","","","","",null,null,null,null,null,null,null,null,"",null,"","","","","","","",""]
["",null,null,null,null,null,"","",null,null,null,null,null,null,null,null,null,null,null,null,null,null,null,null,null,null,"","","","",null,null,"",null,null,null,null,null,null,null,null,null,null,null,null,null,null,null,null,null,null,null,null,null,null,null,null,null,null,null,"","","",null,null,null,null,"","","","",null,null,null,null,null,null,null,null,null,null,null,null,null,null,null,null,null,null,null,null,null,null,null,null,null,null,null,null,null,null,null,null,null,null,null,null,null,null,null,null,null,null,null,null,null,null,null,null,null,null,null,null,"","","","","",null,null,null,null,null,null,null,null,"",null,"","","","","","","",""]
["",null,null,null,null,null,"","",null,null,null,null,null,null,null,null,null,null,null,null,null,null,null,null,null,null,"","","","",null,null,"",null,null,null,null,null,null,null,null,null,null,null,null,null,null,null,null,null,null,null,null,null,null,null,null,null,null,null,"","","",null,null,null,null,"","","","",null,null,null,null,null,null,null,null,null,null,null,null,null,null,null,null,null,null,null,null,null,null,null,null,null,null,null,null,null,null,null,null,null,null,null,null,null,null,null,null,null,null,null,null,null,null,null,null,null,null,null,null,"","","","","",null,null,null,null,null,null,null,null,"",null,"","","","","","","",""]
["",null,null,null,null,null,"","",null,null,null,null,null,null,null,null,null,null,null,null,null,null,null,null,null,null,"","","","",null,null,"",null,null,null,null,null,null,null,null,null,null,null,null,null,null,null,null,null,null,null,null,null,null,null,null,null,null,null,"","","",null,null,null,null,"","","","",null,null,null,null,null,null,null,null,null,null,null,null,null,null,null,null,null,null,null,null,null,null,null,null,null,null,null,null,null,null,null,null,null,null,null,null,null,null,null,null,null,null,null,null,null,null,null,null,null,null,null,null,"","","","","",null,null,null,null,null,null,null,null,"",null,"","","","","","","",""]
["",null,null,null,null,null,"","",null,null,null,null,null,null,null,null,null,null,null,null,null,null,null,null,null,null,"","","","",null,null,"",null,null,null,null,null,null,null,null,null,null,null,null,null,null,null,null,null,null,null,null,null,null,null,null,null,null,null,"","","",null,null,null,null,"","","","",null,null,null,null,null,null,null,null,null,null,null,null,null,null,null,null,null,null,null,null,null,null,null,null,null,null,null,null,null,null,null,null,null,null,null,null,null,null,null,null,null,null,null,null,null,null,null,null,null,null,null,null,"","","","","",null,null,null,null,null,null,null,null,"",null,"","","","","","","",""]
["",null,null,null,null,null,"","",null,null,null,null,null,null,null,null,null,null,null,null,null,null,null,null,null,null,"","","","",null,null,"",null,null,null,null,null,null,null,null,null,null,null,null,null,null,null,null,null,null,null,null,null,null,null,null,null,null,null,"","","",null,null,null,null,"","","","",null,null,null,null,null,null,null,null,null,null,null,null,null,null,null,null,null,null,null,null,null,null,null,null,null,null,null,null,null,null,null,null,null,null,null,null,null,null,null,null,null,null,null,null,null,null,null,null,null,null,null,null,"","","","","",null,null,null,null,null,null,null,null,"",null,"","","","","","","",""]
["",null,null,null,null,null,"","",null,null,null,null,null,null,null,null,null,null,null,null,null,null,null,null,null,null,"","","","",null,null,"",null,null,null,null,null,null,null,null,null,null,null,null,null,null,null,null,null,null,null,null,null,null,null,null,null,null,null,"","","",null,null,null,null,"","","","",null,null,null,null,null,null,null,null,null,null,null,null,null,null,null,null,null,null,null,null,null,null,null,null,null,null,null,null,null,null,null,null,null,null,null,null,null,null,null,null,null,null,null,null,null,null,null,null,null,null,null,null,"","","","","",null,null,null,null,null,null,null,null,"",null,"","","","","","","",""]
["",null,null,null,null,null,"","",null,null,null,null,null,null,null,null,null,null,null,null,null,null,null,null,null,null,"","","","",null,null,"",null,null,null,null,null,null,null,null,null,null,null,null,null,null,null,null,null,null,null,null,null,null,null,null,null,null,null,"","","",null,null,null,null,"","","","",null,null,null,null,null,null,null,null,null,null,null,null,null,null,null,null,null,null,null,null,null,null,null,null,null,null,null,null,null,null,null,null,null,null,null,null,null,null,null,null,null,null,null,null,null,null,null,null,null,null,null,null,"","","","","",null,null,null,null,null,null,null,null,"",null,"","","","","","","",""]
["",null,null,null,null,null,"","",null,null,null,null,null,null,null,null,null,null,null,null,null,null,null,null,null,null,"","","","",null,null,"",null,null,null,null,null,null,null,null,null,null,null,null,null,null,null,null,null,null,null,null,null,null,null,null,null,null,null,"","","",null,null,null,null,"","","","",null,null,null,null,null,null,null,null,null,null,null,null,null,null,null,null,null,null,null,null,null,null,null,null,null,null,null,null,null,null,null,null,null,null,null,null,null,null,null,null,null,null,null,null,null,null,null,null,null,null,null,null,"","","","","",null,null,null,null,null,null,null,null,"",null,"","","","","","","",""]
["",null,null,null,null,null,"","",null,null,null,null,null,null,null,null,null,null,null,null,null,null,null,null,null,null,"","","","",null,null,"",null,null,null,null,null,null,null,null,null,null,null,null,null,null,null,null,null,null,null,null,null,null,null,null,null,null,null,"","","",null,null,null,null,"","","","",null,null,null,null,null,null,null,null,null,null,null,null,null,null,null,null,null,null,null,null,null,null,null,null,null,null,null,null,null,null,null,null,null,null,null,null,null,null,null,null,null,null,null,null,null,null,null,null,null,null,null,null,"","","","","",null,null,null,null,null,null,null,null,"",null,"","","","","","","",""]
["",null,null,null,null,null,"","",null,null,null,null,null,null,null,null,null,null,null,null,null,null,null,null,null,null,"","","","",null,null,"",null,null,null,null,null,null,null,null,null,null,null,null,null,null,null,null,null,null,null,null,null,null,null,null,null,null,null,"","","",null,null,null,null,"","","","",null,null,null,null,null,null,null,null,null,null,null,null,null,null,null,null,null,null,null,null,null,null,null,null,null,null,null,null,null,null,null,null,null,null,null,null,null,null,null,null,null,null,null,null,null,null,null,null,null,null,null,null,"","","","","",null,null,null,null,null,null,null,null,"",null,"","","","","","","",""]
["",null,null,null,null,null,"","",null,null,null,null,null,null,null,null,null,null,null,null,null,null,null,null,null,null,"","","","",null,null,"",null,null,null,null,null,null,null,null,null,null,null,null,null,null,null,null,null,null,null,null,null,null,null,null,null,null,null,"","","",null,null,null,null,"","","","",null,null,null,null,null,null,null,null,null,null,null,null,null,null,null,null,null,null,null,null,null,null,null,null,null,null,null,null,null,null,null,null,null,null,null,null,null,null,null,null,null,null,null,null,null,null,null,null,null,null,null,null,"","","","","",null,null,null,null,null,null,null,null,"",null,"","","","","","","",""]
["",null,null,null,null,null,"","",null,null,null,null,null,null,null,null,null,null,null,null,null,null,null,null,null,null,"","","","",null,null,"",null,null,null,null,null,null,null,null,null,null,null,null,null,null,null,null,null,null,null,null,null,null,null,null,null,null,null,"","","",null,null,null,null,"","","","",null,null,null,null,null,null,null,null,null,null,null,null,null,null,null,null,null,null,null,null,null,null,null,null,null,null,null,null,null,null,null,null,null,null,null,null,null,null,null,null,null,null,null,null,null,null,null,null,null,null,null,null,"","","","","",null,null,null,null,null,null,null,null,"",null,"","","","","","","",""]
["",null,null,null,null,null,"","",null,null,null,null,null,null,null,null,null,null,null,null,null,null,null,null,null,null,"","","","",null,null,"",null,null,null,null,null,null,null,null,null,null,null,null,null,null,null,null,null,null,null,null,null,null,null,null,null,null,null,"","","",null,null,null,null,"","","","",null,null,null,null,null,null,null,null,null,null,null,null,null,null,null,null,null,null,null,null,null,null,null,null,null,null,null,null,null,null,null,null,null,null,null,null,null,null,null,null,null,null,null,null,null,null,null,null,null,null,null,null,"","","","","",null,null,null,null,null,null,null,null,"",null,"","","","","","","",""]
["",null,null,null,null,null,"","",null,null,null,null,null,null,null,null,null,null,null,null,null,null,null,null,null,null,"","","","",null,null,"",null,null,null,null,null,null,null,null,null,null,null,null,null,null,null,null,null,null,null,null,null,null,null,null,null,null,null,"","","",null,null,null,null,"","","","",null,null,null,null,null,null,null,null,null,null,null,null,null,null,null,null,null,null,null,null,null,null,null,null,null,null,null,null,null,null,null,null,null,null,null,null,null,null,null,null,null,null,null,null,null,null,null,null,null,null,null,null,"","","","","",null,null,null,null,null,null,null,null,"",null,"","","","","","","",""]
["",null,null,null,null,null,"","",null,null,null,null,null,null,null,null,null,null,null,null,null,null,null,null,null,null,"","","","",null,null,"",null,null,null,null,null,null,null,null,null,null,null,null,null,null,null,null,null,null,null,null,null,null,null,null,null,null,null,"","","",null,null,null,null,"","","","",null,null,null,null,null,null,null,null,null,null,null,null,null,null,null,null,null,null,null,null,null,null,null,null,null,null,null,null,null,null,null,null,null,null,null,null,null,null,null,null,null,null,null,null,null,null,null,null,null,null,null,null,"","","","","",null,null,null,null,null,null,null,null,"",null,"","","","","","","",""]
["",null,null,null,null,null,"","",null,null,null,null,null,null,null,null,null,null,null,null,null,null,null,null,null,null,"","","","",null,null,"",null,null,null,null,null,null,null,null,null,null,null,null,null,null,null,null,null,null,null,null,null,null,null,null,null,null,null,"","","",null,null,null,null,"","","","",null,null,null,null,null,null,null,null,null,null,null,null,null,null,null,null,null,null,null,null,null,null,null,null,null,null,null,null,null,null,null,null,null,null,null,null,null,null,null,null,null,null,null,null,null,null,null,null,null,null,null,null,"","","","","",null,null,null,null,null,null,null,null,"",null,"","","","","","","",""]
["",null,null,null,null,null,"","",null,null,null,null,null,null,null,null,null,null,null,null,null,null,null,null,null,null,"","","","",null,null,"",null,null,null,null,null,null,null,null,null,null,null,null,null,null,null,null,null,null,null,null,null,null,null,null,null,null,null,"","","",null,null,null,null,"","","","",null,null,null,null,null,null,null,null,null,null,null,null,null,null,null,null,null,null,null,null,null,null,null,null,null,null,null,null,null,null,null,null,null,null,null,null,null,null,null,null,null,null,null,null,null,null,null,null,null,null,null,null,"","","","","",null,null,null,null,null,null,null,null,"",null,"","","","","","","",""]
["",null,null,null,null,null,"","",null,null,null,null,null,null,null,null,null,null,null,null,null,null,null,null,null,null,"","","","",null,null,"",null,null,null,null,null,null,null,null,null,null,null,null,null,null,null,null,null,null,null,null,null,null,null,null,null,null,null,"","","",null,null,null,null,"","","","",null,null,null,null,null,null,null,null,null,null,null,null,null,null,null,null,null,null,null,null,null,null,null,null,null,null,null,null,null,null,null,null,null,null,null,null,null,null,null,null,null,null,null,null,null,null,null,null,null,null,null,null,"","","","","",null,null,null,null,null,null,null,null,"",null,"","","","","","","",""]
["",null,null,null,null,null,"","",null,null,null,null,null,null,null,null,null,null,null,null,null,null,null,null,null,null,"","","","",null,null,"",null,null,null,null,null,null,null,null,null,null,null,null,null,null,null,null,null,null,null,null,null,null,null,null,null,null,null,"","","",null,null,null,null,"","","","",null,null,null,null,null,null,null,null,null,null,null,null,null,null,null,null,null,null,null,null,null,null,null,null,null,null,null,null,null,null,null,null,null,null,null,null,null,null,null,null,null,null,null,null,null,null,null,null,null,null,null,null,"","","","","",null,null,null,null,null,null,null,null,"",null,"","","","","","","",""]
["",null,null,null,null,null,"","",null,null,null,null,null,null,null,null,null,null,null,null,null,null,null,null,null,null,"","","","",null,null,"",null,null,null,null,null,null,null,null,null,null,null,null,null,null,null,null,null,null,null,null,null,null,null,null,null,null,null,"","","",null,null,null,null,"","","","",null,null,null,null,null,null,null,null,null,null,null,null,null,null,null,null,null,null,null,null,null,null,null,null,null,null,null,null,null,null,null,null,null,null,null,null,null,null,null,null,null,null,null,null,null,null,null,null,null,null,null,null,"","","","","",null,null,null,null,null,null,null,null,"",null,"","","","","","","",""]
["",null,null,null,null,null,"","",null,null,null,null,null,null,null,null,null,null,null,null,null,null,null,null,null,null,"","","","",null,null,"",null,null,null,null,null,null,null,null,null,null,null,null,null,null,null,null,null,null,null,null,null,null,null,null,null,null,null,"","","",null,null,null,null,"","","","",null,null,null,null,null,null,null,null,null,null,null,null,null,null,null,null,null,null,null,null,null,null,null,null,null,null,null,null,null,null,null,null,null,null,null,null,null,null,null,null,null,null,null,null,null,null,null,null,null,null,null,null,"","","","","",null,null,null,null,null,null,null,null,"",null,"","","","","","","",""]
["",null,null,null,null,null,"","",null,null,null,null,null,null,null,null,null,null,null,null,null,null,null,null,null,null,"","","","",null,null,"",null,null,null,null,null,null,null,null,null,null,null,null,null,null,null,null,null,null,null,null,null,null,null,null,null,null,null,"","","",null,null,null,null,"","","","",null,null,null,null,null,null,null,null,null,null,null,null,null,null,null,null,null,null,null,null,null,null,null,null,null,null,null,null,null,null,null,null,null,null,null,null,null,null,null,null,null,null,null,null,null,null,null,null,null,null,null,null,"","","","","",null,null,null,null,null,null,null,null,"",null,"","","","","","","",""]
["",null,null,null,null,null,"","",null,null,null,null,null,null,null,null,null,null,null,null,null,null,null,null,null,null,"","","","",null,null,"",null,null,null,null,null,null,null,null,null,null,null,null,null,null,null,null,null,null,null,null,null,null,null,null,null,null,null,"","","",null,null,null,null,"","","","",null,null,null,null,null,null,null,null,null,null,null,null,null,null,null,null,null,null,null,null,null,null,null,null,null,null,null,null,null,null,null,null,null,null,null,null,null,null,null,null,null,null,null,null,null,null,null,null,null,null,null,null,"","","","","",null,null,null,null,null,null,null,null,"",null,"","","","","","","",""]
["",null,null,null,null,null,"","",null,null,null,null,null,null,null,null,null,null,null,null,null,null,null,null,null,null,"","","","",null,null,"",null,null,null,null,null,null,null,null,null,null,null,null,null,null,null,null,null,null,null,null,null,null,null,null,null,null,null,"","","",null,null,null,null,"","","","",null,null,null,null,null,null,null,null,null,null,null,null,null,null,null,null,null,null,null,null,null,null,null,null,null,null,null,null,null,null,null,null,null,null,null,null,null,null,null,null,null,null,null,null,null,null,null,null,null,null,null,null,"","","","","",null,null,null,null,null,null,null,null,"",null,"","","","","","","",""]
["",null,null,null,null,null,"","",null,null,null,null,null,null,null,null,null,null,null,null,null,null,null,null,null,null,"","","","",null,null,"",null,null,null,null,null,null,null,null,null,null,null,null,null,null,null,null,null,null,null,null,null,null,null,null,null,null,null,"","","",null,null,null,null,"","","","",null,null,null,null,null,null,null,null,null,null,null,null,null,null,null,null,null,null,null,null,null,null,null,null,null,null,null,null,null,null,null,null,null,null,null,null,null,null,null,null,null,null,null,null,null,null,null,null,null,null,null,null,"","","","","",null,null,null,null,null,null,null,null,"",null,"","","","","","","",""]
["",null,null,null,null,null,"","",null,null,null,null,null,null,null,null,null,null,null,null,null,null,null,null,null,null,"","","","",null,null,"",null,null,null,null,null,null,null,null,null,null,null,null,null,null,null,null,null,null,null,null,null,null,null,null,null,null,null,"","","",null,null,null,null,"","","","",null,null,null,null,null,null,null,null,null,null,null,null,null,null,null,null,null,null,null,null,null,null,null,null,null,null,null,null,null,null,null,null,null,null,null,null,null,null,null,null,null,null,null,null,null,null,null,null,null,null,null,null,"","","","","",null,null,null,null,null,null,null,null,"",null,"","","","","","","",""]
["",null,null,null,null,null,"","",null,null,null,null,null,null,null,null,null,null,null,null,null,null,null,null,null,null,"","","","",null,null,"",null,null,null,null,null,null,null,null,null,null,null,null,null,null,null,null,null,null,null,null,null,null,null,null,null,null,null,"","","",null,null,null,null,"","","","",null,null,null,null,null,null,null,null,null,null,null,null,null,null,null,null,null,null,null,null,null,null,null,null,null,null,null,null,null,null,null,null,null,null,null,null,null,null,null,null,null,null,null,null,null,null,null,null,null,null,null,null,"","","","","",null,null,null,null,null,null,null,null,"",null,"","","","","","","",""]
["",null,null,null,null,null,"","",null,null,null,null,null,null,null,null,null,null,null,null,null,null,null,null,null,null,"","","","",null,null,"",null,null,null,null,null,null,null,null,null,null,null,null,null,null,null,null,null,null,null,null,null,null,null,null,null,null,null,"","","",null,null,null,null,"","","","",null,null,null,null,null,null,null,null,null,null,null,null,null,null,null,null,null,null,null,null,null,null,null,null,null,null,null,null,null,null,null,null,null,null,null,null,null,null,null,null,null,null,null,null,null,null,null,null,null,null,null,null,"","","","","",null,null,null,null,null,null,null,null,"",null,"","","","","","","",""]
["",null,null,null,null,null,"","",null,null,null,null,null,null,null,null,null,null,null,null,null,null,null,null,null,null,"","","","",null,null,"",null,null,null,null,null,null,null,null,null,null,null,null,null,null,null,null,null,null,null,null,null,null,null,null,null,null,null,"","","",null,null,null,null,"","","","",null,null,null,null,null,null,null,null,null,null,null,null,null,null,null,null,null,null,null,null,null,null,null,null,null,null,null,null,null,null,null,null,null,null,null,null,null,null,null,null,null,null,null,null,null,null,null,null,null,null,null,null,"","","","","",null,null,null,null,null,null,null,null,"",null,"","","","","","","",""]
["",null,null,null,null,null,"","",null,null,null,null,null,null,null,null,null,null,null,null,null,null,null,null,null,null,"","","","",null,null,"",null,null,null,null,null,null,null,null,null,null,null,null,null,null,null,null,null,null,null,null,null,null,null,null,null,null,null,"","","",null,null,null,null,"","","","",null,null,null,null,null,null,null,null,null,null,null,null,null,null,null,null,null,null,null,null,null,null,null,null,null,null,null,null,null,null,null,null,null,null,null,null,null,null,null,null,null,null,null,null,null,null,null,null,null,null,null,null,"","","","","",null,null,null,null,null,null,null,null,"",null,"","","","","","","",""]
["",null,null,null,null,null,"","",null,null,null,null,null,null,null,null,null,null,null,null,null,null,null,null,null,null,"","","","",null,null,"",null,null,null,null,null,null,null,null,null,null,null,null,null,null,null,null,null,null,null,null,null,null,null,null,null,null,null,"","","",null,null,null,null,"","","","",null,null,null,null,null,null,null,null,null,null,null,null,null,null,null,null,null,null,null,null,null,null,null,null,null,null,null,null,null,null,null,null,null,null,null,null,null,null,null,null,null,null,null,null,null,null,null,null,null,null,null,null,"","","","","",null,null,null,null,null,null,null,null,"",null,"","","","","","","",""]
["",null,null,null,null,null,"","",null,null,null,null,null,null,null,null,null,null,null,null,null,null,null,null,null,null,"","","","",null,null,"",null,null,null,null,null,null,null,null,null,null,null,null,null,null,null,null,null,null,null,null,null,null,null,null,null,null,null,"","","",null,null,null,null,"","","","",null,null,null,null,null,null,null,null,null,null,null,null,null,null,null,null,null,null,null,null,null,null,null,null,null,null,null,null,null,null,null,null,null,null,null,null,null,null,null,null,null,null,null,null,null,null,null,null,null,null,null,null,"","","","","",null,null,null,null,null,null,null,null,"",null,"","","","","","","",""]
["",null,null,null,null,null,"","",null,null,null,null,null,null,null,null,null,null,null,null,null,null,null,null,null,null,"","","","",null,null,"",null,null,null,null,null,null,null,null,null,null,null,null,null,null,null,null,null,null,null,null,null,null,null,null,null,null,null,"","","",null,null,null,null,"","","","",null,null,null,null,null,null,null,null,null,null,null,null,null,null,null,null,null,null,null,null,null,null,null,null,null,null,null,null,null,null,null,null,null,null,null,null,null,null,null,null,null,null,null,null,null,null,null,null,null,null,null,null,"","","","","",null,null,null,null,null,null,null,null,"",null,"","","","","","","",""]
["",null,null,null,null,null,"","",null,null,null,null,null,null,null,null,null,null,null,null,null,null,null,null,null,null,"","","","",null,null,"",null,null,null,null,null,null,null,null,null,null,null,null,null,null,null,null,null,null,null,null,null,null,null,null,null,null,null,"","","",null,null,null,null,"","","","",null,null,null,null,null,null,null,null,null,null,null,null,null,null,null,null,null,null,null,null,null,null,null,null,null,null,null,null,null,null,null,null,null,null,null,null,null,null,null,null,null,null,null,null,null,null,null,null,null,null,null,null,"","","","","",null,null,null,null,null,null,null,null,"",null,"","","","","","","",""]
["",null,null,null,null,null,"","",null,null,null,null,null,null,null,null,null,null,null,null,null,null,null,null,null,null,"","","","",null,null,"",null,null,null,null,null,null,null,null,null,null,null,null,null,null,null,null,null,null,null,null,null,null,null,null,null,null,null,"","","",null,null,null,null,"","","","",null,null,null,null,null,null,null,null,null,null,null,null,null,null,null,null,null,null,null,null,null,null,null,null,null,null,null,null,null,null,null,null,null,null,null,null,null,null,null,null,null,null,null,null,null,null,null,null,null,null,null,null,"","","","","",null,null,null,null,null,null,null,null,"",null,"","","","","","","",""]
["",null,null,null,null,null,"","",null,null,null,null,null,null,null,null,null,null,null,null,null,null,null,null,null,null,"","","","",null,null,"",null,null,null,null,null,null,null,null,null,null,null,null,null,null,null,null,null,null,null,null,null,null,null,null,null,null,null,"","","",null,null,null,null,"","","","",null,null,null,null,null,null,null,null,null,null,null,null,null,null,null,null,null,null,null,null,null,null,null,null,null,null,null,null,null,null,null,null,null,null,null,null,null,null,null,null,null,null,null,null,null,null,null,null,null,null,null,null,"","","","","",null,null,null,null,null,null,null,null,"",null,"","","","","","","",""]
["",null,null,null,null,null,"","",null,null,null,null,null,null,null,null,null,null,null,null,null,null,null,null,null,null,"","","","",null,null,"",null,null,null,null,null,null,null,null,null,null,null,null,null,null,null,null,null,null,null,null,null,null,null,null,null,null,null,"","","",null,null,null,null,"","","","",null,null,null,null,null,null,null,null,null,null,null,null,null,null,null,null,null,null,null,null,null,null,null,null,null,null,null,null,null,null,null,null,null,null,null,null,null,null,null,null,null,null,null,null,null,null,null,null,null,null,null,null,"","","","","",null,null,null,null,null,null,null,null,"",null,"","","","","","","",""]
["",null,null,null,null,null,"","",null,null,null,null,null,null,null,null,null,null,null,null,null,null,null,null,null,null,"","","","",null,null,"",null,null,null,null,null,null,null,null,null,null,null,null,null,null,null,null,null,null,null,null,null,null,null,null,null,null,null,"","","",null,null,null,null,"","","","",null,null,null,null,null,null,null,null,null,null,null,null,null,null,null,null,null,null,null,null,null,null,null,null,null,null,null,null,null,null,null,null,null,null,null,null,null,null,null,null,null,null,null,null,null,null,null,null,null,null,null,null,"","","","","",null,null,null,null,null,null,null,null,"",null,"","","","","","","",""]
["",null,null,null,null,null,"","",null,null,null,null,null,null,null,null,null,null,null,null,null,null,null,null,null,null,"","","","",null,null,"",null,null,null,null,null,null,null,null,null,null,null,null,null,null,null,null,null,null,null,null,null,null,null,null,null,null,null,"","","",null,null,null,null,"","","","",null,null,null,null,null,null,null,null,null,null,null,null,null,null,null,null,null,null,null,null,null,null,null,null,null,null,null,null,null,null,null,null,null,null,null,null,null,null,null,null,null,null,null,null,null,null,null,null,null,null,null,null,"","","","","",null,null,null,null,null,null,null,null,"",null,"","","","","","","",""]
["",null,null,null,null,null,"","",null,null,null,null,null,null,null,null,null,null,null,null,null,null,null,null,null,null,"","","","",null,null,"",null,null,null,null,null,null,null,null,null,null,null,null,null,null,null,null,null,null,null,null,null,null,null,null,null,null,null,"","","",null,null,null,null,"","","","",null,null,null,null,null,null,null,null,null,null,null,null,null,null,null,null,null,null,null,null,null,null,null,null,null,null,null,null,null,null,null,null,null,null,null,null,null,null,null,null,null,null,null,null,null,null,null,null,null,null,null,null,"","","","","",null,null,null,null,null,null,null,null,"",null,"","","","","","","",""]
["",null,null,null,null,null,"","",null,null,null,null,null,null,null,null,null,null,null,null,null,null,null,null,null,null,"","","","",null,null,"",null,null,null,null,null,null,null,null,null,null,null,null,null,null,null,null,null,null,null,null,null,null,null,null,null,null,null,"","","",null,null,null,null,"","","","",null,null,null,null,null,null,null,null,null,null,null,null,null,null,null,null,null,null,null,null,null,null,null,null,null,null,null,null,null,null,null,null,null,null,null,null,null,null,null,null,null,null,null,null,null,null,null,null,null,null,null,null,"","","","","",null,null,null,null,null,null,null,null,"",null,"","","","","","","",""]
["",null,null,null,null,null,"","",null,null,null,null,null,null,null,null,null,null,null,null,null,null,null,null,null,null,"","","","",null,null,"",null,null,null,null,null,null,null,null,null,null,null,null,null,null,null,null,null,null,null,null,null,null,null,null,null,null,null,"","","",null,null,null,null,"","","","",null,null,null,null,null,null,null,null,null,null,null,null,null,null,null,null,null,null,null,null,null,null,null,null,null,null,null,null,null,null,null,null,null,null,null,null,null,null,null,null,null,null,null,null,null,null,null,null,null,null,null,null,"","","","","",null,null,null,null,null,null,null,null,"",null,"","","","","","","",""]
["",null,null,null,null,null,"","",null,null,null,null,null,null,null,null,null,null,null,null,null,null,null,null,null,null,"","","","",null,null,"",null,null,null,null,null,null,null,null,null,null,null,null,null,null,null,null,null,null,null,null,null,null,null,null,null,null,null,"","","",null,null,null,null,"","","","",null,null,null,null,null,null,null,null,null,null,null,null,null,null,null,null,null,null,null,null,null,null,null,null,null,null,null,null,null,null,null,null,null,null,null,null,null,null,null,null,null,null,null,null,null,null,null,null,null,null,null,null,"","","","","",null,null,null,null,null,null,null,null,"",null,"","","","","","","",""]
["",null,null,null,null,null,"","",null,null,null,null,null,null,null,null,null,null,null,null,null,null,null,null,null,null,"","","","",null,null,"",null,null,null,null,null,null,null,null,null,null,null,null,null,null,null,null,null,null,null,null,null,null,null,null,null,null,null,"","","",null,null,null,null,"","","","",null,null,null,null,null,null,null,null,null,null,null,null,null,null,null,null,null,null,null,null,null,null,null,null,null,null,null,null,null,null,null,null,null,null,null,null,null,null,null,null,null,null,null,null,null,null,null,null,null,null,null,null,"","","","","",null,null,null,null,null,null,null,null,"",null,"","","","","","","",""]
["",null,null,null,null,null,"","",null,null,null,null,null,null,null,null,null,null,null,null,null,null,null,null,null,null,"","","","",null,null,"",null,null,null,null,null,null,null,null,null,null,null,null,null,null,null,null,null,null,null,null,null,null,null,null,null,null,null,"","","",null,null,null,null,"","","","",null,null,null,null,null,null,null,null,null,null,null,null,null,null,null,null,null,null,null,null,null,null,null,null,null,null,null,null,null,null,null,null,null,null,null,null,null,null,null,null,null,null,null,null,null,null,null,null,null,null,null,null,"","","","","",null,null,null,null,null,null,null,null,"",null,"","","","","","","",""]
["",null,null,null,null,null,"","",null,null,null,null,null,null,null,null,null,null,null,null,null,null,null,null,null,null,"","","","",null,null,"",null,null,null,null,null,null,null,null,null,null,null,null,null,null,null,null,null,null,null,null,null,null,null,null,null,null,null,"","","",null,null,null,null,"","","","",null,null,null,null,null,null,null,null,null,null,null,null,null,null,null,null,null,null,null,null,null,null,null,null,null,null,null,null,null,null,null,null,null,null,null,null,null,null,null,null,null,null,null,null,null,null,null,null,null,null,null,null,"","","","","",null,null,null,null,null,null,null,null,"",null,"","","","","","","",""]
["",null,null,null,null,null,"","",null,null,null,null,null,null,null,null,null,null,null,null,null,null,null,null,null,null,"","","","",null,null,"",null,null,null,null,null,null,null,null,null,null,null,null,null,null,null,null,null,null,null,null,null,null,null,null,null,null,null,"","","",null,null,null,null,"","","","",null,null,null,null,null,null,null,null,null,null,null,null,null,null,null,null,null,null,null,null,null,null,null,null,null,null,null,null,null,null,null,null,null,null,null,null,null,null,null,null,null,null,null,null,null,null,null,null,null,null,null,null,"","","","","",null,null,null,null,null,null,null,null,"",null,"","","","","","","",""]
["",null,null,null,null,null,"","",null,null,null,null,null,null,null,null,null,null,null,null,null,null,null,null,null,null,"","","","",null,null,"",null,null,null,null,null,null,null,null,null,null,null,null,null,null,null,null,null,null,null,null,null,null,null,null,null,null,null,"","","",null,null,null,null,"","","","",null,null,null,null,null,null,null,null,null,null,null,null,null,null,null,null,null,null,null,null,null,null,null,null,null,null,null,null,null,null,null,null,null,null,null,null,null,null,null,null,null,null,null,null,null,null,null,null,null,null,null,null,"","","","","",null,null,null,null,null,null,null,null,"",null,"","","","","","","",""]
["",null,null,null,null,null,"","",null,null,null,null,null,null,null,null,null,null,null,null,null,null,null,null,null,null,"","","","",null,null,"",null,null,null,null,null,null,null,null,null,null,null,null,null,null,null,null,null,null,null,null,null,null,null,null,null,null,null,"","","",null,null,null,null,"","","","",null,null,null,null,null,null,null,null,null,null,null,null,null,null,null,null,null,null,null,null,null,null,null,null,null,null,null,null,null,null,null,null,null,null,null,null,null,null,null,null,null,null,null,null,null,null,null,null,null,null,null,null,"","","","","",null,null,null,null,null,null,null,null,"",null,"","","","","","","",""]
["",null,null,null,null,null,"","",null,null,null,null,null,null,null,null,null,null,null,null,null,null,null,null,null,null,"","","","",null,null,"",null,null,null,null,null,null,null,null,null,null,null,null,null,null,null,null,null,null,null,null,null,null,null,null,null,null,null,"","","",null,null,null,null,"","","","",null,null,null,null,null,null,null,null,null,null,null,null,null,null,null,null,null,null,null,null,null,null,null,null,null,null,null,null,null,null,null,null,null,null,null,null,null,null,null,null,null,null,null,null,null,null,null,null,null,null,null,null,"","","","","",null,null,null,null,null,null,null,null,"",null,"","","","","","","",""]
["",null,null,null,null,null,"","",null,null,null,null,null,null,null,null,null,null,null,null,null,null,null,null,null,null,"","","","",null,null,"",null,null,null,null,null,null,null,null,null,null,null,null,null,null,null,null,null,null,null,null,null,null,null,null,null,null,null,"","","",null,null,null,null,"","","","",null,null,null,null,null,null,null,null,null,null,null,null,null,null,null,null,null,null,null,null,null,null,null,null,null,null,null,null,null,null,null,null,null,null,null,null,null,null,null,null,null,null,null,null,null,null,null,null,null,null,null,null,"","","","","",null,null,null,null,null,null,null,null,"",null,"","","","","","","",""]
["",null,null,null,null,null,"","",null,null,null,null,null,null,null,null,null,null,null,null,null,null,null,null,null,null,"","","","",null,null,"",null,null,null,null,null,null,null,null,null,null,null,null,null,null,null,null,null,null,null,null,null,null,null,null,null,null,null,"","","",null,null,null,null,"","","","",null,null,null,null,null,null,null,null,null,null,null,null,null,null,null,null,null,null,null,null,null,null,null,null,null,null,null,null,null,null,null,null,null,null,null,null,null,null,null,null,null,null,null,null,null,null,null,null,null,null,null,null,"","","","","",null,null,null,null,null,null,null,null,"",null,"","","","","","","",""]
["",null,null,null,null,null,"","",null,null,null,null,null,null,null,null,null,null,null,null,null,null,null,null,null,null,"","","","",null,null,"",null,null,null,null,null,null,null,null,null,null,null,null,null,null,null,null,null,null,null,null,null,null,null,null,null,null,null,"","","",null,null,null,null,"","","","",null,null,null,null,null,null,null,null,null,null,null,null,null,null,null,null,null,null,null,null,null,null,null,null,null,null,null,null,null,null,null,null,null,null,null,null,null,null,null,null,null,null,null,null,null,null,null,null,null,null,null,null,"","","","","",null,null,null,null,null,null,null,null,"",null,"","","","","","","",""]
["",null,null,null,null,null,"","",null,null,null,null,null,null,null,null,null,null,null,null,null,null,null,null,null,null,"","","","",null,null,"",null,null,null,null,null,null,null,null,null,null,null,null,null,null,null,null,null,null,null,null,null,null,null,null,null,null,null,"","","",null,null,null,null,"","","","",null,null,null,null,null,null,null,null,null,null,null,null,null,null,null,null,null,null,null,null,null,null,null,null,null,null,null,null,null,null,null,null,null,null,null,null,null,null,null,null,null,null,null,null,null,null,null,null,null,null,null,null,"","","","","",null,null,null,null,null,null,null,null,"",null,"","","","","","","",""]
["",null,null,null,null,null,"","",null,null,null,null,null,null,null,null,null,null,null,null,null,null,null,null,null,null,"","","","",null,null,"",null,null,null,null,null,null,null,null,null,null,null,null,null,null,null,null,null,null,null,null,null,null,null,null,null,null,null,"","","",null,null,null,null,"","","","",null,null,null,null,null,null,null,null,null,null,null,null,null,null,null,null,null,null,null,null,null,null,null,null,null,null,null,null,null,null,null,null,null,null,null,null,null,null,null,null,null,null,null,null,null,null,null,null,null,null,null,null,"","","","","",null,null,null,null,null,null,null,null,"",null,"","","","","","","",""]
["",null,null,null,null,null,"","",null,null,null,null,null,null,null,null,null,null,null,null,null,null,null,null,null,null,"","","","",null,null,"",null,null,null,null,null,null,null,null,null,null,null,null,null,null,null,null,null,null,null,null,null,null,null,null,null,null,null,"","","",null,null,null,null,"","","","",null,null,null,null,null,null,null,null,null,null,null,null,null,null,null,null,null,null,null,null,null,null,null,null,null,null,null,null,null,null,null,null,null,null,null,null,null,null,null,null,null,null,null,null,null,null,null,null,null,null,null,null,"","","","","",null,null,null,null,null,null,null,null,"",null,"","","","","","","",""]
["",null,null,null,null,null,"","",null,null,null,null,null,null,null,null,null,null,null,null,null,null,null,null,null,null,"","","","",null,null,"",null,null,null,null,null,null,null,null,null,null,null,null,null,null,null,null,null,null,null,null,null,null,null,null,null,null,null,"","","",null,null,null,null,"","","","",null,null,null,null,null,null,null,null,null,null,null,null,null,null,null,null,null,null,null,null,null,null,null,null,null,null,null,null,null,null,null,null,null,null,null,null,null,null,null,null,null,null,null,null,null,null,null,null,null,null,null,null,"","","","","",null,null,null,null,null,null,null,null,"",null,"","","","","","","",""]
["",null,null,null,null,null,"","",null,null,null,null,null,null,null,null,null,null,null,null,null,null,null,null,null,null,"","","","",null,null,"",null,null,null,null,null,null,null,null,null,null,null,null,null,null,null,null,null,null,null,null,null,null,null,null,null,null,null,"","","",null,null,null,null,"","","","",null,null,null,null,null,null,null,null,null,null,null,null,null,null,null,null,null,null,null,null,null,null,null,null,null,null,null,null,null,null,null,null,null,null,null,null,null,null,null,null,null,null,null,null,null,null,null,null,null,null,null,null,"","","","","",null,null,null,null,null,null,null,null,"",null,"","","","","","","",""]
["",null,null,null,null,null,"","",null,null,null,null,null,null,null,null,null,null,null,null,null,null,null,null,null,null,"","","","",null,null,"",null,null,null,null,null,null,null,null,null,null,null,null,null,null,null,null,null,null,null,null,null,null,null,null,null,null,null,"","","",null,null,null,null,"","","","",null,null,null,null,null,null,null,null,null,null,null,null,null,null,null,null,null,null,null,null,null,null,null,null,null,null,null,null,null,null,null,null,null,null,null,null,null,null,null,null,null,null,null,null,null,null,null,null,null,null,null,null,"","","","","",null,null,null,null,null,null,null,null,"",null,"","","","","","","",""]
["",null,null,null,null,null,"","",null,null,null,null,null,null,null,null,null,null,null,null,null,null,null,null,null,null,"","","","",null,null,"",null,null,null,null,null,null,null,null,null,null,null,null,null,null,null,null,null,null,null,null,null,null,null,null,null,null,null,"","","",null,null,null,null,"","","","",null,null,null,null,null,null,null,null,null,null,null,null,null,null,null,null,null,null,null,null,null,null,null,null,null,null,null,null,null,null,null,null,null,null,null,null,null,null,null,null,null,null,null,null,null,null,null,null,null,null,null,null,"","","","","",null,null,null,null,null,null,null,null,"",null,"","","","","","","",""]
["",null,null,null,null,null,"","",null,null,null,null,null,null,null,null,null,null,null,null,null,null,null,null,null,null,"","","","",null,null,"",null,null,null,null,null,null,null,null,null,null,null,null,null,null,null,null,null,null,null,null,null,null,null,null,null,null,null,"","","",null,null,null,null,"","","","",null,null,null,null,null,null,null,null,null,null,null,null,null,null,null,null,null,null,null,null,null,null,null,null,null,null,null,null,null,null,null,null,null,null,null,null,null,null,null,null,null,null,null,null,null,null,null,null,null,null,null,null,"","","","","",null,null,null,null,null,null,null,null,"",null,"","","","","","","",""]
["",null,null,null,null,null,"","",null,null,null,null,null,null,null,null,null,null,null,null,null,null,null,null,null,null,"","","","",null,null,"",null,null,null,null,null,null,null,null,null,null,null,null,null,null,null,null,null,null,null,null,null,null,null,null,null,null,null,"","","",null,null,null,null,"","","","",null,null,null,null,null,null,null,null,null,null,null,null,null,null,null,null,null,null,null,null,null,null,null,null,null,null,null,null,null,null,null,null,null,null,null,null,null,null,null,null,null,null,null,null,null,null,null,null,null,null,null,null,"","","","","",null,null,null,null,null,null,null,null,"",null,"","","","","","","",""]
["",null,null,null,null,null,"","",null,null,null,null,null,null,null,null,null,null,null,null,null,null,null,null,null,null,"","","","",null,null,"",null,null,null,null,null,null,null,null,null,null,null,null,null,null,null,null,null,null,null,null,null,null,null,null,null,null,null,"","","",null,null,null,null,"","","","",null,null,null,null,null,null,null,null,null,null,null,null,null,null,null,null,null,null,null,null,null,null,null,null,null,null,null,null,null,null,null,null,null,null,null,null,null,null,null,null,null,null,null,null,null,null,null,null,null,null,null,null,"","","","","",null,null,null,null,null,null,null,null,"",null,"","","","","","","",""]
["",null,null,null,null,null,"","",null,null,null,null,null,null,null,null,null,null,null,null,null,null,null,null,null,null,"","","","",null,null,"",null,null,null,null,null,null,null,null,null,null,null,null,null,null,null,null,null,null,null,null,null,null,null,null,null,null,null,"","","",null,null,null,null,"","","","",null,null,null,null,null,null,null,null,null,null,null,null,null,null,null,null,null,null,null,null,null,null,null,null,null,null,null,null,null,null,null,null,null,null,null,null,null,null,null,null,null,null,null,null,null,null,null,null,null,null,null,null,"","","","","",null,null,null,null,null,null,null,null,"",null,"","","","","","","",""]
["",null,null,null,null,null,"","",null,null,null,null,null,null,null,null,null,null,null,null,null,null,null,null,null,null,"","","","",null,null,"",null,null,null,null,null,null,null,null,null,null,null,null,null,null,null,null,null,null,null,null,null,null,null,null,null,null,null,"","","",null,null,null,null,"","","","",null,null,null,null,null,null,null,null,null,null,null,null,null,null,null,null,null,null,null,null,null,null,null,null,null,null,null,null,null,null,null,null,null,null,null,null,null,null,null,null,null,null,null,null,null,null,null,null,null,null,null,null,"","","","","",null,null,null,null,null,null,null,null,"",null,"","","","","","","",""]
["",null,null,null,null,null,"","",null,null,null,null,null,null,null,null,null,null,null,null,null,null,null,null,null,null,"","","","",null,null,"",null,null,null,null,null,null,null,null,null,null,null,null,null,null,null,null,null,null,null,null,null,null,null,null,null,null,null,"","","",null,null,null,null,"","","","",null,null,null,null,null,null,null,null,null,null,null,null,null,null,null,null,null,null,null,null,null,null,null,null,null,null,null,null,null,null,null,null,null,null,null,null,null,null,null,null,null,null,null,null,null,null,null,null,null,null,null,null,"","","","","",null,null,null,null,null,null,null,null,"",null,"","","","","","","",""]
["",null,null,null,null,null,"","",null,null,null,null,null,null,null,null,null,null,null,null,null,null,null,null,null,null,"","","","",null,null,"",null,null,null,null,null,null,null,null,null,null,null,null,null,null,null,null,null,null,null,null,null,null,null,null,null,null,null,"","","",null,null,null,null,"","","","",null,null,null,null,null,null,null,null,null,null,null,null,null,null,null,null,null,null,null,null,null,null,null,null,null,null,null,null,null,null,null,null,null,null,null,null,null,null,null,null,null,null,null,null,null,null,null,null,null,null,null,null,"","","","","",null,null,null,null,null,null,null,null,"",null,"","","","","","","",""]
["",null,null,null,null,null,"","",null,null,null,null,null,null,null,null,null,null,null,null,null,null,null,null,null,null,"","","","",null,null,"",null,null,null,null,null,null,null,null,null,null,null,null,null,null,null,null,null,null,null,null,null,null,null,null,null,null,null,"","","",null,null,null,null,"","","","",null,null,null,null,null,null,null,null,null,null,null,null,null,null,null,null,null,null,null,null,null,null,null,null,null,null,null,null,null,null,null,null,null,null,null,null,null,null,null,null,null,null,null,null,null,null,null,null,null,null,null,null,"","","","","",null,null,null,null,null,null,null,null,"",null,"","","","","","","",""]
["",null,null,null,null,null,"","",null,null,null,null,null,null,null,null,null,null,null,null,null,null,null,null,null,null,"","","","",null,null,"",null,null,null,null,null,null,null,null,null,null,null,null,null,null,null,null,null,null,null,null,null,null,null,null,null,null,null,"","","",null,null,null,null,"","","","",null,null,null,null,null,null,null,null,null,null,null,null,null,null,null,null,null,null,null,null,null,null,null,null,null,null,null,null,null,null,null,null,null,null,null,null,null,null,null,null,null,null,null,null,null,null,null,null,null,null,null,null,"","","","","",null,null,null,null,null,null,null,null,"",null,"","","","","","","",""]
["",null,null,null,null,null,"","",null,null,null,null,null,null,null,null,null,null,null,null,null,null,null,null,null,null,"","","","",null,null,"",null,null,null,null,null,null,null,null,null,null,null,null,null,null,null,null,null,null,null,null,null,null,null,null,null,null,null,"","","",null,null,null,null,"","","","",null,null,null,null,null,null,null,null,null,null,null,null,null,null,null,null,null,null,null,null,null,null,null,null,null,null,null,null,null,null,null,null,null,null,null,null,null,null,null,null,null,null,null,null,null,null,null,null,null,null,null,null,"","","","","",null,null,null,null,null,null,null,null,"",null,"","","","","","","",""]
["",null,null,null,null,null,"","",null,null,null,null,null,null,null,null,null,null,null,null,null,null,null,null,null,null,"","","","",null,null,"",null,null,null,null,null,null,null,null,null,null,null,null,null,null,null,null,null,null,null,null,null,null,null,null,null,null,null,"","","",null,null,null,null,"","","","",null,null,null,null,null,null,null,null,null,null,null,null,null,null,null,null,null,null,null,null,null,null,null,null,null,null,null,null,null,null,null,null,null,null,null,null,null,null,null,null,null,null,null,null,null,null,null,null,null,null,null,null,"","","","","",null,null,null,null,null,null,null,null,"",null,"","","","","","","",""]
["",null,null,null,null,null,"","",null,null,null,null,null,null,null,null,null,null,null,null,null,null,null,null,null,null,"","","","",null,null,"",null,null,null,null,null,null,null,null,null,null,null,null,null,null,null,null,null,null,null,null,null,null,null,null,null,null,null,"","","",null,null,null,null,"","","","",null,null,null,null,null,null,null,null,null,null,null,null,null,null,null,null,null,null,null,null,null,null,null,null,null,null,null,null,null,null,null,null,null,null,null,null,null,null,null,null,null,null,null,null,null,null,null,null,null,null,null,null,"","","","","",null,null,null,null,null,null,null,null,"",null,"","","","","","","",""]
["",null,null,null,null,null,"","",null,null,null,null,null,null,null,null,null,null,null,null,null,null,null,null,null,null,"","","","",null,null,"",null,null,null,null,null,null,null,null,null,null,null,null,null,null,null,null,null,null,null,null,null,null,null,null,null,null,null,"","","",null,null,null,null,"","","","",null,null,null,null,null,null,null,null,null,null,null,null,null,null,null,null,null,null,null,null,null,null,null,null,null,null,null,null,null,null,null,null,null,null,null,null,null,null,null,null,null,null,null,null,null,null,null,null,null,null,null,null,"","","","","",null,null,null,null,null,null,null,null,"",null,"","","","","","","",""]
["",null,null,null,null,null,"","",null,null,null,null,null,null,null,null,null,null,null,null,null,null,null,null,null,null,"","","","",null,null,"",null,null,null,null,null,null,null,null,null,null,null,null,null,null,null,null,null,null,null,null,null,null,null,null,null,null,null,"","","",null,null,null,null,"","","","",null,null,null,null,null,null,null,null,null,null,null,null,null,null,null,null,null,null,null,null,null,null,null,null,null,null,null,null,null,null,null,null,null,null,null,null,null,null,null,null,null,null,null,null,null,null,null,null,null,null,null,null,"","","","","",null,null,null,null,null,null,null,null,"",null,"","","","","","","",""]
["",null,null,null,null,null,"","",null,null,null,null,null,null,null,null,null,null,null,null,null,null,null,null,null,null,"","","","",null,null,"",null,null,null,null,null,null,null,null,null,null,null,null,null,null,null,null,null,null,null,null,null,null,null,null,null,null,null,"","","",null,null,null,null,"","","","",null,null,null,null,null,null,null,null,null,null,null,null,null,null,null,null,null,null,null,null,null,null,null,null,null,null,null,null,null,null,null,null,null,null,null,null,null,null,null,null,null,null,null,null,null,null,null,null,null,null,null,null,"","","","","",null,null,null,null,null,null,null,null,"",null,"","","","","","","",""]
["",null,null,null,null,null,"","",null,null,null,null,null,null,null,null,null,null,null,null,null,null,null,null,null,null,"","","","",null,null,"",null,null,null,null,null,null,null,null,null,null,null,null,null,null,null,null,null,null,null,null,null,null,null,null,null,null,null,"","","",null,null,null,null,"","","","",null,null,null,null,null,null,null,null,null,null,null,null,null,null,null,null,null,null,null,null,null,null,null,null,null,null,null,null,null,null,null,null,null,null,null,null,null,null,null,null,null,null,null,null,null,null,null,null,null,null,null,null,"","","","","",null,null,null,null,null,null,null,null,"",null,"","","","","","","",""]
["",null,null,null,null,null,"","",null,null,null,null,null,null,null,null,null,null,null,null,null,null,null,null,null,null,"","","","",null,null,"",null,null,null,null,null,null,null,null,null,null,null,null,null,null,null,null,null,null,null,null,null,null,null,null,null,null,null,"","","",null,null,null,null,"","","","",null,null,null,null,null,null,null,null,null,null,null,null,null,null,null,null,null,null,null,null,null,null,null,null,null,null,null,null,null,null,null,null,null,null,null,null,null,null,null,null,null,null,null,null,null,null,null,null,null,null,null,null,"","","","","",null,null,null,null,null,null,null,null,"",null,"","","","","","","",""]
["",null,null,null,null,null,"","",null,null,null,null,null,null,null,null,null,null,null,null,null,null,null,null,null,null,"","","","",null,null,"",null,null,null,null,null,null,null,null,null,null,null,null,null,null,null,null,null,null,null,null,null,null,null,null,null,null,null,"","","",null,null,null,null,"","","","",null,null,null,null,null,null,null,null,null,null,null,null,null,null,null,null,null,null,null,null,null,null,null,null,null,null,null,null,null,null,null,null,null,null,null,null,null,null,null,null,null,null,null,null,null,null,null,null,null,null,null,null,"","","","","",null,null,null,null,null,null,null,null,"",null,"","","","","","","",""]
["",null,null,null,null,null,"","",null,null,null,null,null,null,null,null,null,null,null,null,null,null,null,null,null,null,"","","","",null,null,"",null,null,null,null,null,null,null,null,null,null,null,null,null,null,null,null,null,null,null,null,null,null,null,null,null,null,null,"","","",null,null,null,null,"","","","",null,null,null,null,null,null,null,null,null,null,null,null,null,null,null,null,null,null,null,null,null,null,null,null,null,null,null,null,null,null,null,null,null,null,null,null,null,null,null,null,null,null,null,null,null,null,null,null,null,null,null,null,"","","","","",null,null,null,null,null,null,null,null,"",null,"","","","","","","",""]
["",null,null,null,null,null,"","",null,null,null,null,null,null,null,null,null,null,null,null,null,null,null,null,null,null,"","","","",null,null,"",null,null,null,null,null,null,null,null,null,null,null,null,null,null,null,null,null,null,null,null,null,null,null,null,null,null,null,"","","",null,null,null,null,"","","","",null,null,null,null,null,null,null,null,null,null,null,null,null,null,null,null,null,null,null,null,null,null,null,null,null,null,null,null,null,null,null,null,null,null,null,null,null,null,null,null,null,null,null,null,null,null,null,null,null,null,null,null,"","","","","",null,null,null,null,null,null,null,null,"",null,"","","","","","","",""]
["",null,null,null,null,null,"","",null,null,null,null,null,null,null,null,null,null,null,null,null,null,null,null,null,null,"","","","",null,null,"",null,null,null,null,null,null,null,null,null,null,null,null,null,null,null,null,null,null,null,null,null,null,null,null,null,null,null,"","","",null,null,null,null,"","","","",null,null,null,null,null,null,null,null,null,null,null,null,null,null,null,null,null,null,null,null,null,null,null,null,null,null,null,null,null,null,null,null,null,null,null,null,null,null,null,null,null,null,null,null,null,null,null,null,null,null,null,null,"","","","","",null,null,null,null,null,null,null,null,"",null,"","","","","","","",""]
["",null,null,null,null,null,"","",null,null,null,null,null,null,null,null,null,null,null,null,null,null,null,null,null,null,"","","","",null,null,"",null,null,null,null,null,null,null,null,null,null,null,null,null,null,null,null,null,null,null,null,null,null,null,null,null,null,null,"","","",null,null,null,null,"","","","",null,null,null,null,null,null,null,null,null,null,null,null,null,null,null,null,null,null,null,null,null,null,null,null,null,null,null,null,null,null,null,null,null,null,null,null,null,null,null,null,null,null,null,null,null,null,null,null,null,null,null,null,"","","","","",null,null,null,null,null,null,null,null,"",null,"","","","","","","",""]
["",null,null,null,null,null,"","",null,null,null,null,null,null,null,null,null,null,null,null,null,null,null,null,null,null,"","","","",null,null,"",null,null,null,null,null,null,null,null,null,null,null,null,null,null,null,null,null,null,null,null,null,null,null,null,null,null,null,"","","",null,null,null,null,"","","","",null,null,null,null,null,null,null,null,null,null,null,null,null,null,null,null,null,null,null,null,null,null,null,null,null,null,null,null,null,null,null,null,null,null,null,null,null,null,null,null,null,null,null,null,null,null,null,null,null,null,null,null,"","","","","",null,null,null,null,null,null,null,null,"",null,"","","","","","","",""]
["",null,null,null,null,null,"","",null,null,null,null,null,null,null,null,null,null,null,null,null,null,null,null,null,null,"","","","",null,null,"",null,null,null,null,null,null,null,null,null,null,null,null,null,null,null,null,null,null,null,null,null,null,null,null,null,null,null,"","","",null,null,null,null,"","","","",null,null,null,null,null,null,null,null,null,null,null,null,null,null,null,null,null,null,null,null,null,null,null,null,null,null,null,null,null,null,null,null,null,null,null,null,null,null,null,null,null,null,null,null,null,null,null,null,null,null,null,null,"","","","","",null,null,null,null,null,null,null,null,"",null,"","","","","","","",""]
["",null,null,null,null,null,"","",null,null,null,null,null,null,null,null,null,null,null,null,null,null,null,null,null,null,"","","","",null,null,"",null,null,null,null,null,null,null,null,null,null,null,null,null,null,null,null,null,null,null,null,null,null,null,null,null,null,null,"","","",null,null,null,null,"","","","",null,null,null,null,null,null,null,null,null,null,null,null,null,null,null,null,null,null,null,null,null,null,null,null,null,null,null,null,null,null,null,null,null,null,null,null,null,null,null,null,null,null,null,null,null,null,null,null,null,null,null,null,"","","","","",null,null,null,null,null,null,null,null,"",null,"","","","","","","",""]
["",null,null,null,null,null,"","",null,null,null,null,null,null,null,null,null,null,null,null,null,null,null,null,null,null,"","","","",null,null,"",null,null,null,null,null,null,null,null,null,null,null,null,null,null,null,null,null,null,null,null,null,null,null,null,null,null,null,"","","",null,null,null,null,"","","","",null,null,null,null,null,null,null,null,null,null,null,null,null,null,null,null,null,null,null,null,null,null,null,null,null,null,null,null,null,null,null,null,null,null,null,null,null,null,null,null,null,null,null,null,null,null,null,null,null,null,null,null,"","","","","",null,null,null,null,null,null,null,null,"",null,"","","","","","","",""]
["",null,null,null,null,null,"","",null,null,null,null,null,null,null,null,null,null,null,null,null,null,null,null,null,null,"","","","",null,null,"",null,null,null,null,null,null,null,null,null,null,null,null,null,null,null,null,null,null,null,null,null,null,null,null,null,null,null,"","","",null,null,null,null,"","","","",null,null,null,null,null,null,null,null,null,null,null,null,null,null,null,null,null,null,null,null,null,null,null,null,null,null,null,null,null,null,null,null,null,null,null,null,null,null,null,null,null,null,null,null,null,null,null,null,null,null,null,null,"","","","","",null,null,null,null,null,null,null,null,"",null,"","","","","","","",""]
["",null,null,null,null,null,"","",null,null,null,null,null,null,null,null,null,null,null,null,null,null,null,null,null,null,"","","","",null,null,"",null,null,null,null,null,null,null,null,null,null,null,null,null,null,null,null,null,null,null,null,null,null,null,null,null,null,null,"","","",null,null,null,null,"","","","",null,null,null,null,null,null,null,null,null,null,null,null,null,null,null,null,null,null,null,null,null,null,null,null,null,null,null,null,null,null,null,null,null,null,null,null,null,null,null,null,null,null,null,null,null,null,null,null,null,null,null,null,"","","","","",null,null,null,null,null,null,null,null,"",null,"","","","","","","",""]
["",null,null,null,null,null,"","",null,null,null,null,null,null,null,null,null,null,null,null,null,null,null,null,null,null,"","","","",null,null,"",null,null,null,null,null,null,null,null,null,null,null,null,null,null,null,null,null,null,null,null,null,null,null,null,null,null,null,"","","",null,null,null,null,"","","","",null,null,null,null,null,null,null,null,null,null,null,null,null,null,null,null,null,null,null,null,null,null,null,null,null,null,null,null,null,null,null,null,null,null,null,null,null,null,null,null,null,null,null,null,null,null,null,null,null,null,null,null,"","","","","",null,null,null,null,null,null,null,null,"",null,"","","","","","","",""]
["",null,null,null,null,null,"","",null,null,null,null,null,null,null,null,null,null,null,null,null,null,null,null,null,null,"","","","",null,null,"",null,null,null,null,null,null,null,null,null,null,null,null,null,null,null,null,null,null,null,null,null,null,null,null,null,null,null,"","","",null,null,null,null,"","","","",null,null,null,null,null,null,null,null,null,null,null,null,null,null,null,null,null,null,null,null,null,null,null,null,null,null,null,null,null,null,null,null,null,null,null,null,null,null,null,null,null,null,null,null,null,null,null,null,null,null,null,null,"","","","","",null,null,null,null,null,null,null,null,"",null,"","","","","","","",""]
["",null,null,null,null,null,"","",null,null,null,null,null,null,null,null,null,null,null,null,null,null,null,null,null,null,"","","","",null,null,"",null,null,null,null,null,null,null,null,null,null,null,null,null,null,null,null,null,null,null,null,null,null,null,null,null,null,null,"","","",null,null,null,null,"","","","",null,null,null,null,null,null,null,null,null,null,null,null,null,null,null,null,null,null,null,null,null,null,null,null,null,null,null,null,null,null,null,null,null,null,null,null,null,null,null,null,null,null,null,null,null,null,null,null,null,null,null,null,"","","","","",null,null,null,null,null,null,null,null,"",null,"","","","","","","",""]
["",null,null,null,null,null,"","",null,null,null,null,null,null,null,null,null,null,null,null,null,null,null,null,null,null,"","","","",null,null,"",null,null,null,null,null,null,null,null,null,null,null,null,null,null,null,null,null,null,null,null,null,null,null,null,null,null,null,"","","",null,null,null,null,"","","","",null,null,null,null,null,null,null,null,null,null,null,null,null,null,null,null,null,null,null,null,null,null,null,null,null,null,null,null,null,null,null,null,null,null,null,null,null,null,null,null,null,null,null,null,null,null,null,null,null,null,null,null,"","","","","",null,null,null,null,null,null,null,null,"",null,"","","","","","","",""]
["",null,null,null,null,null,"","",null,null,null,null,null,null,null,null,null,null,null,null,null,null,null,null,null,null,"","","","",null,null,"",null,null,null,null,null,null,null,null,null,null,null,null,null,null,null,null,null,null,null,null,null,null,null,null,null,null,null,"","","",null,null,null,null,"","","","",null,null,null,null,null,null,null,null,null,null,null,null,null,null,null,null,null,null,null,null,null,null,null,null,null,null,null,null,null,null,null,null,null,null,null,null,null,null,null,null,null,null,null,null,null,null,null,null,null,null,null,null,"","","","","",null,null,null,null,null,null,null,null,"",null,"","","","","","","",""]
["",null,null,null,null,null,"","",null,null,null,null,null,null,null,null,null,null,null,null,null,null,null,null,null,null,"","","","",null,null,"",null,null,null,null,null,null,null,null,null,null,null,null,null,null,null,null,null,null,null,null,null,null,null,null,null,null,null,"","","",null,null,null,null,"","","","",null,null,null,null,null,null,null,null,null,null,null,null,null,null,null,null,null,null,null,null,null,null,null,null,null,null,null,null,null,null,null,null,null,null,null,null,null,null,null,null,null,null,null,null,null,null,null,null,null,null,null,null,"","","","","",null,null,null,null,null,null,null,null,"",null,"","","","","","","",""]
["",null,null,null,null,null,"","",null,null,null,null,null,null,null,null,null,null,null,null,null,null,null,null,null,null,"","","","",null,null,"",null,null,null,null,null,null,null,null,null,null,null,null,null,null,null,null,null,null,null,null,null,null,null,null,null,null,null,"","","",null,null,null,null,"","","","",null,null,null,null,null,null,null,null,null,null,null,null,null,null,null,null,null,null,null,null,null,null,null,null,null,null,null,null,null,null,null,null,null,null,null,null,null,null,null,null,null,null,null,null,null,null,null,null,null,null,null,null,"","","","","",null,null,null,null,null,null,null,null,"",null,"","","","","","","",""]
["",null,null,null,null,null,"","",null,null,null,null,null,null,null,null,null,null,null,null,null,null,null,null,null,null,"","","","",null,null,"",null,null,null,null,null,null,null,null,null,null,null,null,null,null,null,null,null,null,null,null,null,null,null,null,null,null,null,"","","",null,null,null,null,"","","","",null,null,null,null,null,null,null,null,null,null,null,null,null,null,null,null,null,null,null,null,null,null,null,null,null,null,null,null,null,null,null,null,null,null,null,null,null,null,null,null,null,null,null,null,null,null,null,null,null,null,null,null,"","","","","",null,null,null,null,null,null,null,null,"",null,"","","","","","","",""]
["",null,null,null,null,null,"","",null,null,null,null,null,null,null,null,null,null,null,null,null,null,null,null,null,null,"","","","",null,null,"",null,null,null,null,null,null,null,null,null,null,null,null,null,null,null,null,null,null,null,null,null,null,null,null,null,null,null,"","","",null,null,null,null,"","","","",null,null,null,null,null,null,null,null,null,null,null,null,null,null,null,null,null,null,null,null,null,null,null,null,null,null,null,null,null,null,null,null,null,null,null,null,null,null,null,null,null,null,null,null,null,null,null,null,null,null,null,null,"","","","","",null,null,null,null,null,null,null,null,"",null,"","","","","","","",""]
["",null,null,null,null,null,"","",null,null,null,null,null,null,null,null,null,null,null,null,null,null,null,null,null,null,"","","","",null,null,"",null,null,null,null,null,null,null,null,null,null,null,null,null,null,null,null,null,null,null,null,null,null,null,null,null,null,null,"","","",null,null,null,null,"","","","",null,null,null,null,null,null,null,null,null,null,null,null,null,null,null,null,null,null,null,null,null,null,null,null,null,null,null,null,null,null,null,null,null,null,null,null,null,null,null,null,null,null,null,null,null,null,null,null,null,null,null,null,"","","","","",null,null,null,null,null,null,null,null,"",null,"","","","","","","",""]
["",null,null,null,null,null,"","",null,null,null,null,null,null,null,null,null,null,null,null,null,null,null,null,null,null,"","","","",null,null,"",null,null,null,null,null,null,null,null,null,null,null,null,null,null,null,null,null,null,null,null,null,null,null,null,null,null,null,"","","",null,null,null,null,"","","","",null,null,null,null,null,null,null,null,null,null,null,null,null,null,null,null,null,null,null,null,null,null,null,null,null,null,null,null,null,null,null,null,null,null,null,null,null,null,null,null,null,null,null,null,null,null,null,null,null,null,null,null,"","","","","",null,null,null,null,null,null,null,null,"",null,"","","","","","","",""]
["",null,null,null,null,null,"","",null,null,null,null,null,null,null,null,null,null,null,null,null,null,null,null,null,null,"","","","",null,null,"",null,null,null,null,null,null,null,null,null,null,null,null,null,null,null,null,null,null,null,null,null,null,null,null,null,null,null,"","","",null,null,null,null,"","","","",null,null,null,null,null,null,null,null,null,null,null,null,null,null,null,null,null,null,null,null,null,null,null,null,null,null,null,null,null,null,null,null,null,null,null,null,null,null,null,null,null,null,null,null,null,null,null,null,null,null,null,null,"","","","","",null,null,null,null,null,null,null,null,"",null,"","","","","","","",""]
["",null,null,null,null,null,"","",null,null,null,null,null,null,null,null,null,null,null,null,null,null,null,null,null,null,"","","","",null,null,"",null,null,null,null,null,null,null,null,null,null,null,null,null,null,null,null,null,null,null,null,null,null,null,null,null,null,null,"","","",null,null,null,null,"","","","",null,null,null,null,null,null,null,null,null,null,null,null,null,null,null,null,null,null,null,null,null,null,null,null,null,null,null,null,null,null,null,null,null,null,null,null,null,null,null,null,null,null,null,null,null,null,null,null,null,null,null,null,"","","","","",null,null,null,null,null,null,null,null,"",null,"","","","","","","",""]
["",null,null,null,null,null,"","",null,null,null,null,null,null,null,null,null,null,null,null,null,null,null,null,null,null,"","","","",null,null,"",null,null,null,null,null,null,null,null,null,null,null,null,null,null,null,null,null,null,null,null,null,null,null,null,null,null,null,"","","",null,null,null,null,"","","","",null,null,null,null,null,null,null,null,null,null,null,null,null,null,null,null,null,null,null,null,null,null,null,null,null,null,null,null,null,null,null,null,null,null,null,null,null,null,null,null,null,null,null,null,null,null,null,null,null,null,null,null,"","","","","",null,null,null,null,null,null,null,null,"",null,"","","","","","","",""]
["",null,null,null,null,null,"","",null,null,null,null,null,null,null,null,null,null,null,null,null,null,null,null,null,null,"","","","",null,null,"",null,null,null,null,null,null,null,null,null,null,null,null,null,null,null,null,null,null,null,null,null,null,null,null,null,null,null,"","","",null,null,null,null,"","","","",null,null,null,null,null,null,null,null,null,null,null,null,null,null,null,null,null,null,null,null,null,null,null,null,null,null,null,null,null,null,null,null,null,null,null,null,null,null,null,null,null,null,null,null,null,null,null,null,null,null,null,null,"","","","","",null,null,null,null,null,null,null,null,"",null,"","","","","","","",""]
["",null,null,null,null,null,"","",null,null,null,null,null,null,null,null,null,null,null,null,null,null,null,null,null,null,"","","","",null,null,"",null,null,null,null,null,null,null,null,null,null,null,null,null,null,null,null,null,null,null,null,null,null,null,null,null,null,null,"","","",null,null,null,null,"","","","",null,null,null,null,null,null,null,null,null,null,null,null,null,null,null,null,null,null,null,null,null,null,null,null,null,null,null,null,null,null,null,null,null,null,null,null,null,null,null,null,null,null,null,null,null,null,null,null,null,null,null,null,"","","","","",null,null,null,null,null,null,null,null,"",null,"","","","","","","",""]
["",null,null,null,null,null,"","",null,null,null,null,null,null,null,null,null,null,null,null,null,null,null,null,null,null,"","","","",null,null,"",null,null,null,null,null,null,null,null,null,null,null,null,null,null,null,null,null,null,null,null,null,null,null,null,null,null,null,"","","",null,null,null,null,"","","","",null,null,null,null,null,null,null,null,null,null,null,null,null,null,null,null,null,null,null,null,null,null,null,null,null,null,null,null,null,null,null,null,null,null,null,null,null,null,null,null,null,null,null,null,null,null,null,null,null,null,null,null,"","","","","",null,null,null,null,null,null,null,null,"",null,"","","","","","","",""]
["",null,null,null,null,null,"","",null,null,null,null,null,null,null,null,null,null,null,null,null,null,null,null,null,null,"","","","",null,null,"",null,null,null,null,null,null,null,null,null,null,null,null,null,null,null,null,null,null,null,null,null,null,null,null,null,null,null,"","","",null,null,null,null,"","","","",null,null,null,null,null,null,null,null,null,null,null,null,null,null,null,null,null,null,null,null,null,null,null,null,null,null,null,null,null,null,null,null,null,null,null,null,null,null,null,null,null,null,null,null,null,null,null,null,null,null,null,null,"","","","","",null,null,null,null,null,null,null,null,"",null,"","","","","","","",""]
["",null,null,null,null,null,"","",null,null,null,null,null,null,null,null,null,null,null,null,null,null,null,null,null,null,"","","","",null,null,"",null,null,null,null,null,null,null,null,null,null,null,null,null,null,null,null,null,null,null,null,null,null,null,null,null,null,null,"","","",null,null,null,null,"","","","",null,null,null,null,null,null,null,null,null,null,null,null,null,null,null,null,null,null,null,null,null,null,null,null,null,null,null,null,null,null,null,null,null,null,null,null,null,null,null,null,null,null,null,null,null,null,null,null,null,null,null,null,"","","","","",null,null,null,null,null,null,null,null,"",null,"","","","","","","",""]
["",null,null,null,null,null,"","",null,null,null,null,null,null,null,null,null,null,null,null,null,null,null,null,null,null,"","","","",null,null,"",null,null,null,null,null,null,null,null,null,null,null,null,null,null,null,null,null,null,null,null,null,null,null,null,null,null,null,"","","",null,null,null,null,"","","","",null,null,null,null,null,null,null,null,null,null,null,null,null,null,null,null,null,null,null,null,null,null,null,null,null,null,null,null,null,null,null,null,null,null,null,null,null,null,null,null,null,null,null,null,null,null,null,null,null,null,null,null,"","","","","",null,null,null,null,null,null,null,null,"",null,"","","","","","","",""]
["",null,null,null,null,null,"","",null,null,null,null,null,null,null,null,null,null,null,null,null,null,null,null,null,null,"","","","",null,null,"",null,null,null,null,null,null,null,null,null,null,null,null,null,null,null,null,null,null,null,null,null,null,null,null,null,null,null,"","","",null,null,null,null,"","","","",null,null,null,null,null,null,null,null,null,null,null,null,null,null,null,null,null,null,null,null,null,null,null,null,null,null,null,null,null,null,null,null,null,null,null,null,null,null,null,null,null,null,null,null,null,null,null,null,null,null,null,null,"","","","","",null,null,null,null,null,null,null,null,"",null,"","","","","","","",""]
["",null,null,null,null,null,"","",null,null,null,null,null,null,null,null,null,null,null,null,null,null,null,null,null,null,"","","","",null,null,"",null,null,null,null,null,null,null,null,null,null,null,null,null,null,null,null,null,null,null,null,null,null,null,null,null,null,null,"","","",null,null,null,null,"","","","",null,null,null,null,null,null,null,null,null,null,null,null,null,null,null,null,null,null,null,null,null,null,null,null,null,null,null,null,null,null,null,null,null,null,null,null,null,null,null,null,null,null,null,null,null,null,null,null,null,null,null,null,"","","","","",null,null,null,null,null,null,null,null,"",null,"","","","","","","",""]
["",null,null,null,null,null,"","",null,null,null,null,null,null,null,null,null,null,null,null,null,null,null,null,null,null,"","","","",null,null,"",null,null,null,null,null,null,null,null,null,null,null,null,null,null,null,null,null,null,null,null,null,null,null,null,null,null,null,"","","",null,null,null,null,"","","","",null,null,null,null,null,null,null,null,null,null,null,null,null,null,null,null,null,null,null,null,null,null,null,null,null,null,null,null,null,null,null,null,null,null,null,null,null,null,null,null,null,null,null,null,null,null,null,null,null,null,null,null,"","","","","",null,null,null,null,null,null,null,null,"",null,"","","","","","","",""]
["",null,null,null,null,null,"","",null,null,null,null,null,null,null,null,null,null,null,null,null,null,null,null,null,null,"","","","",null,null,"",null,null,null,null,null,null,null,null,null,null,null,null,null,null,null,null,null,null,null,null,null,null,null,null,null,null,null,"","","",null,null,null,null,"","","","",null,null,null,null,null,null,null,null,null,null,null,null,null,null,null,null,null,null,null,null,null,null,null,null,null,null,null,null,null,null,null,null,null,null,null,null,null,null,null,null,null,null,null,null,null,null,null,null,null,null,null,null,"","","","","",null,null,null,null,null,null,null,null,"",null,"","","","","","","",""]
["",null,null,null,null,null,"","",null,null,null,null,null,null,null,null,null,null,null,null,null,null,null,null,null,null,"","","","",null,null,"",null,null,null,null,null,null,null,null,null,null,null,null,null,null,null,null,null,null,null,null,null,null,null,null,null,null,null,"","","",null,null,null,null,"","","","",null,null,null,null,null,null,null,null,null,null,null,null,null,null,null,null,null,null,null,null,null,null,null,null,null,null,null,null,null,null,null,null,null,null,null,null,null,null,null,null,null,null,null,null,null,null,null,null,null,null,null,null,"","","","","",null,null,null,null,null,null,null,null,"",null,"","","","","","","",""]
["",null,null,null,null,null,"","",null,null,null,null,null,null,null,null,null,null,null,null,null,null,null,null,null,null,"","","","",null,null,"",null,null,null,null,null,null,null,null,null,null,null,null,null,null,null,null,null,null,null,null,null,null,null,null,null,null,null,"","","",null,null,null,null,"","","","",null,null,null,null,null,null,null,null,null,null,null,null,null,null,null,null,null,null,null,null,null,null,null,null,null,null,null,null,null,null,null,null,null,null,null,null,null,null,null,null,null,null,null,null,null,null,null,null,null,null,null,null,"","","","","",null,null,null,null,null,null,null,null,"",null,"","","","","","","",""]
["",null,null,null,null,null,"","",null,null,null,null,null,null,null,null,null,null,null,null,null,null,null,null,null,null,"","","","",null,null,"",null,null,null,null,null,null,null,null,null,null,null,null,null,null,null,null,null,null,null,null,null,null,null,null,null,null,null,"","","",null,null,null,null,"","","","",null,null,null,null,null,null,null,null,null,null,null,null,null,null,null,null,null,null,null,null,null,null,null,null,null,null,null,null,null,null,null,null,null,null,null,null,null,null,null,null,null,null,null,null,null,null,null,null,null,null,null,null,"","","","","",null,null,null,null,null,null,null,null,"",null,"","","","","","","",""]
["",null,null,null,null,null,"","",null,null,null,null,null,null,null,null,null,null,null,null,null,null,null,null,null,null,"","","","",null,null,"",null,null,null,null,null,null,null,null,null,null,null,null,null,null,null,null,null,null,null,null,null,null,null,null,null,null,null,"","","",null,null,null,null,"","","","",null,null,null,null,null,null,null,null,null,null,null,null,null,null,null,null,null,null,null,null,null,null,null,null,null,null,null,null,null,null,null,null,null,null,null,null,null,null,null,null,null,null,null,null,null,null,null,null,null,null,null,null,"","","","","",null,null,null,null,null,null,null,null,"",null,"","","","","","","",""]
["",null,null,null,null,null,"","",null,null,null,null,null,null,null,null,null,null,null,null,null,null,null,null,null,null,"","","","",null,null,"",null,null,null,null,null,null,null,null,null,null,null,null,null,null,null,null,null,null,null,null,null,null,null,null,null,null,null,"","","",null,null,null,null,"","","","",null,null,null,null,null,null,null,null,null,null,null,null,null,null,null,null,null,null,null,null,null,null,null,null,null,null,null,null,null,null,null,null,null,null,null,null,null,null,null,null,null,null,null,null,null,null,null,null,null,null,null,null,"","","","","",null,null,null,null,null,null,null,null,"",null,"","","","","","","",""]
["",null,null,null,null,null,"","",null,null,null,null,null,null,null,null,null,null,null,null,null,null,null,null,null,null,"","","","",null,null,"",null,null,null,null,null,null,null,null,null,null,null,null,null,null,null,null,null,null,null,null,null,null,null,null,null,null,null,"","","",null,null,null,null,"","","","",null,null,null,null,null,null,null,null,null,null,null,null,null,null,null,null,null,null,null,null,null,null,null,null,null,null,null,null,null,null,null,null,null,null,null,null,null,null,null,null,null,null,null,null,null,null,null,null,null,null,null,null,"","","","","",null,null,null,null,null,null,null,null,"",null,"","","","","","","",""]
["",null,null,null,null,null,"","",null,null,null,null,null,null,null,null,null,null,null,null,null,null,null,null,null,null,"","","","",null,null,"",null,null,null,null,null,null,null,null,null,null,null,null,null,null,null,null,null,null,null,null,null,null,null,null,null,null,null,"","","",null,null,null,null,"","","","",null,null,null,null,null,null,null,null,null,null,null,null,null,null,null,null,null,null,null,null,null,null,null,null,null,null,null,null,null,null,null,null,null,null,null,null,null,null,null,null,null,null,null,null,null,null,null,null,null,null,null,null,"","","","","",null,null,null,null,null,null,null,null,"",null,"","","","","","","",""]
["",null,null,null,null,null,"","",null,null,null,null,null,null,null,null,null,null,null,null,null,null,null,null,null,null,"","","","",null,null,"",null,null,null,null,null,null,null,null,null,null,null,null,null,null,null,null,null,null,null,null,null,null,null,null,null,null,null,"","","",null,null,null,null,"","","","",null,null,null,null,null,null,null,null,null,null,null,null,null,null,null,null,null,null,null,null,null,null,null,null,null,null,null,null,null,null,null,null,null,null,null,null,null,null,null,null,null,null,null,null,null,null,null,null,null,null,null,null,"","","","","",null,null,null,null,null,null,null,null,"",null,"","","","","","","",""]
["",null,null,null,null,null,"","",null,null,null,null,null,null,null,null,null,null,null,null,null,null,null,null,null,null,"","","","",null,null,"",null,null,null,null,null,null,null,null,null,null,null,null,null,null,null,null,null,null,null,null,null,null,null,null,null,null,null,"","","",null,null,null,null,"","","","",null,null,null,null,null,null,null,null,null,null,null,null,null,null,null,null,null,null,null,null,null,null,null,null,null,null,null,null,null,null,null,null,null,null,null,null,null,null,null,null,null,null,null,null,null,null,null,null,null,null,null,null,"","","","","",null,null,null,null,null,null,null,null,"",null,"","","","","","","",""]
["",null,null,null,null,null,"","",null,null,null,null,null,null,null,null,null,null,null,null,null,null,null,null,null,null,"","","","",null,null,"",null,null,null,null,null,null,null,null,null,null,null,null,null,null,null,null,null,null,null,null,null,null,null,null,null,null,null,"","","",null,null,null,null,"","","","",null,null,null,null,null,null,null,null,null,null,null,null,null,null,null,null,null,null,null,null,null,null,null,null,null,null,null,null,null,null,null,null,null,null,null,null,null,null,null,null,null,null,null,null,null,null,null,null,null,null,null,null,"","","","","",null,null,null,null,null,null,null,null,"",null,"","","","","","","",""]
["",null,null,null,null,null,"","",null,null,null,null,null,null,null,null,null,null,null,null,null,null,null,null,null,null,"","","","",null,null,"",null,null,null,null,null,null,null,null,null,null,null,null,null,null,null,null,null,null,null,null,null,null,null,null,null,null,null,"","","",null,null,null,null,"","","","",null,null,null,null,null,null,null,null,null,null,null,null,null,null,null,null,null,null,null,null,null,null,null,null,null,null,null,null,null,null,null,null,null,null,null,null,null,null,null,null,null,null,null,null,null,null,null,null,null,null,null,null,"","","","","",null,null,null,null,null,null,null,null,"",null,"","","","","","","",""]
["",null,null,null,null,null,"","",null,null,null,null,null,null,null,null,null,null,null,null,null,null,null,null,null,null,"","","","",null,null,"",null,null,null,null,null,null,null,null,null,null,null,null,null,null,null,null,null,null,null,null,null,null,null,null,null,null,null,"","","",null,null,null,null,"","","","",null,null,null,null,null,null,null,null,null,null,null,null,null,null,null,null,null,null,null,null,null,null,null,null,null,null,null,null,null,null,null,null,null,null,null,null,null,null,null,null,null,null,null,null,null,null,null,null,null,null,null,null,"","","","","",null,null,null,null,null,null,null,null,"",null,"","","","","","","",""]
["",null,null,null,null,null,"","",null,null,null,null,null,null,null,null,null,null,null,null,null,null,null,null,null,null,"","","","",null,null,"",null,null,null,null,null,null,null,null,null,null,null,null,null,null,null,null,null,null,null,null,null,null,null,null,null,null,null,"","","",null,null,null,null,"","","","",null,null,null,null,null,null,null,null,null,null,null,null,null,null,null,null,null,null,null,null,null,null,null,null,null,null,null,null,null,null,null,null,null,null,null,null,null,null,null,null,null,null,null,null,null,null,null,null,null,null,null,null,"","","","","",null,null,null,null,null,null,null,null,"",null,"","","","","","","",""]
["",null,null,null,null,null,"","",null,null,null,null,null,null,null,null,null,null,null,null,null,null,null,null,null,null,"","","","",null,null,"",null,null,null,null,null,null,null,null,null,null,null,null,null,null,null,null,null,null,null,null,null,null,null,null,null,null,null,"","","",null,null,null,null,"","","","",null,null,null,null,null,null,null,null,null,null,null,null,null,null,null,null,null,null,null,null,null,null,null,null,null,null,null,null,null,null,null,null,null,null,null,null,null,null,null,null,null,null,null,null,null,null,null,null,null,null,null,null,"","","","","",null,null,null,null,null,null,null,null,"",null,"","","","","","","",""]
["",null,null,null,null,null,"","",null,null,null,null,null,null,null,null,null,null,null,null,null,null,null,null,null,null,"","","","",null,null,"",null,null,null,null,null,null,null,null,null,null,null,null,null,null,null,null,null,null,null,null,null,null,null,null,null,null,null,"","","",null,null,null,null,"","","","",null,null,null,null,null,null,null,null,null,null,null,null,null,null,null,null,null,null,null,null,null,null,null,null,null,null,null,null,null,null,null,null,null,null,null,null,null,null,null,null,null,null,null,null,null,null,null,null,null,null,null,null,"","","","","",null,null,null,null,null,null,null,null,"",null,"","","","","","","",""]
["",null,null,null,null,null,"","",null,null,null,null,null,null,null,null,null,null,null,null,null,null,null,null,null,null,"","","","",null,null,"",null,null,null,null,null,null,null,null,null,null,null,null,null,null,null,null,null,null,null,null,null,null,null,null,null,null,null,"","","",null,null,null,null,"","","","",null,null,null,null,null,null,null,null,null,null,null,null,null,null,null,null,null,null,null,null,null,null,null,null,null,null,null,null,null,null,null,null,null,null,null,null,null,null,null,null,null,null,null,null,null,null,null,null,null,null,null,null,"","","","","",null,null,null,null,null,null,null,null,"",null,"","","","","","","",""]
["",null,null,null,null,null,"","",null,null,null,null,null,null,null,null,null,null,null,null,null,null,null,null,null,null,"","","","",null,null,"",null,null,null,null,null,null,null,null,null,null,null,null,null,null,null,null,null,null,null,null,null,null,null,null,null,null,null,"","","",null,null,null,null,"","","","",null,null,null,null,null,null,null,null,null,null,null,null,null,null,null,null,null,null,null,null,null,null,null,null,null,null,null,null,null,null,null,null,null,null,null,null,null,null,null,null,null,null,null,null,null,null,null,null,null,null,null,null,"","","","","",null,null,null,null,null,null,null,null,"",null,"","","","","","","",""]
["",null,null,null,null,null,"","",null,null,null,null,null,null,null,null,null,null,null,null,null,null,null,null,null,null,"","","","",null,null,"",null,null,null,null,null,null,null,null,null,null,null,null,null,null,null,null,null,null,null,null,null,null,null,null,null,null,null,"","","",null,null,null,null,"","","","",null,null,null,null,null,null,null,null,null,null,null,null,null,null,null,null,null,null,null,null,null,null,null,null,null,null,null,null,null,null,null,null,null,null,null,null,null,null,null,null,null,null,null,null,null,null,null,null,null,null,null,null,"","","","","",null,null,null,null,null,null,null,null,"",null,"","","","","","","",""]
["",null,null,null,null,null,"","",null,null,null,null,null,null,null,null,null,null,null,null,null,null,null,null,null,null,"","","","",null,null,"",null,null,null,null,null,null,null,null,null,null,null,null,null,null,null,null,null,null,null,null,null,null,null,null,null,null,null,"","","",null,null,null,null,"","","","",null,null,null,null,null,null,null,null,null,null,null,null,null,null,null,null,null,null,null,null,null,null,null,null,null,null,null,null,null,null,null,null,null,null,null,null,null,null,null,null,null,null,null,null,null,null,null,null,null,null,null,null,"","","","","",null,null,null,null,null,null,null,null,"",null,"","","","","","","",""]
["",null,null,null,null,null,"","",null,null,null,null,null,null,null,null,null,null,null,null,null,null,null,null,null,null,"","","","",null,null,"",null,null,null,null,null,null,null,null,null,null,null,null,null,null,null,null,null,null,null,null,null,null,null,null,null,null,null,"","","",null,null,null,null,"","","","",null,null,null,null,null,null,null,null,null,null,null,null,null,null,null,null,null,null,null,null,null,null,null,null,null,null,null,null,null,null,null,null,null,null,null,null,null,null,null,null,null,null,null,null,null,null,null,null,null,null,null,null,"","","","","",null,null,null,null,null,null,null,null,"",null,"","","","","","","",""]
["",null,null,null,null,null,"","",null,null,null,null,null,null,null,null,null,null,null,null,null,null,null,null,null,null,"","","","",null,null,"",null,null,null,null,null,null,null,null,null,null,null,null,null,null,null,null,null,null,null,null,null,null,null,null,null,null,null,"","","",null,null,null,null,"","","","",null,null,null,null,null,null,null,null,null,null,null,null,null,null,null,null,null,null,null,null,null,null,null,null,null,null,null,null,null,null,null,null,null,null,null,null,null,null,null,null,null,null,null,null,null,null,null,null,null,null,null,null,"","","","","",null,null,null,null,null,null,null,null,"",null,"","","","","","","",""]
["",null,null,null,null,null,"","",null,null,null,null,null,null,null,null,null,null,null,null,null,null,null,null,null,null,"","","","",null,null,"",null,null,null,null,null,null,null,null,null,null,null,null,null,null,null,null,null,null,null,null,null,null,null,null,null,null,null,"","","",null,null,null,null,"","","","",null,null,null,null,null,null,null,null,null,null,null,null,null,null,null,null,null,null,null,null,null,null,null,null,null,null,null,null,null,null,null,null,null,null,null,null,null,null,null,null,null,null,null,null,null,null,null,null,null,null,null,null,"","","","","",null,null,null,null,null,null,null,null,"",null,"","","","","","","",""]
["",null,null,null,null,null,"","",null,null,null,null,null,null,null,null,null,null,null,null,null,null,null,null,null,null,"","","","",null,null,"",null,null,null,null,null,null,null,null,null,null,null,null,null,null,null,null,null,null,null,null,null,null,null,null,null,null,null,"","","",null,null,null,null,"","","","",null,null,null,null,null,null,null,null,null,null,null,null,null,null,null,null,null,null,null,null,null,null,null,null,null,null,null,null,null,null,null,null,null,null,null,null,null,null,null,null,null,null,null,null,null,null,null,null,null,null,null,null,"","","","","",null,null,null,null,null,null,null,null,"",null,"","","","","","","",""]
["",null,null,null,null,null,"","",null,null,null,null,null,null,null,null,null,null,null,null,null,null,null,null,null,null,"","","","",null,null,"",null,null,null,null,null,null,null,null,null,null,null,null,null,null,null,null,null,null,null,null,null,null,null,null,null,null,null,"","","",null,null,null,null,"","","","",null,null,null,null,null,null,null,null,null,null,null,null,null,null,null,null,null,null,null,null,null,null,null,null,null,null,null,null,null,null,null,null,null,null,null,null,null,null,null,null,null,null,null,null,null,null,null,null,null,null,null,null,"","","","","",null,null,null,null,null,null,null,null,"",null,"","","","","","","",""]
["",null,null,null,null,null,"","",null,null,null,null,null,null,null,null,null,null,null,null,null,null,null,null,null,null,"","","","",null,null,"",null,null,null,null,null,null,null,null,null,null,null,null,null,null,null,null,null,null,null,null,null,null,null,null,null,null,null,"","","",null,null,null,null,"","","","",null,null,null,null,null,null,null,null,null,null,null,null,null,null,null,null,null,null,null,null,null,null,null,null,null,null,null,null,null,null,null,null,null,null,null,null,null,null,null,null,null,null,null,null,null,null,null,null,null,null,null,null,"","","","","",null,null,null,null,null,null,null,null,"",null,"","","","","","","",""]
["",null,null,null,null,null,"","",null,null,null,null,null,null,null,null,null,null,null,null,null,null,null,null,null,null,"","","","",null,null,"",null,null,null,null,null,null,null,null,null,null,null,null,null,null,null,null,null,null,null,null,null,null,null,null,null,null,null,"","","",null,null,null,null,"","","","",null,null,null,null,null,null,null,null,null,null,null,null,null,null,null,null,null,null,null,null,null,null,null,null,null,null,null,null,null,null,null,null,null,null,null,null,null,null,null,null,null,null,null,null,null,null,null,null,null,null,null,null,"","","","","",null,null,null,null,null,null,null,null,"",null,"","","","","","","",""]
["",null,null,null,null,null,"","",null,null,null,null,null,null,null,null,null,null,null,null,null,null,null,null,null,null,"","","","",null,null,"",null,null,null,null,null,null,null,null,null,null,null,null,null,null,null,null,null,null,null,null,null,null,null,null,null,null,null,"","","",null,null,null,null,"","","","",null,null,null,null,null,null,null,null,null,null,null,null,null,null,null,null,null,null,null,null,null,null,null,null,null,null,null,null,null,null,null,null,null,null,null,null,null,null,null,null,null,null,null,null,null,null,null,null,null,null,null,null,"","","","","",null,null,null,null,null,null,null,null,"",null,"","","","","","","",""]
["",null,null,null,null,null,"","",null,null,null,null,null,null,null,null,null,null,null,null,null,null,null,null,null,null,"","","","",null,null,"",null,null,null,null,null,null,null,null,null,null,null,null,null,null,null,null,null,null,null,null,null,null,null,null,null,null,null,"","","",null,null,null,null,"","","","",null,null,null,null,null,null,null,null,null,null,null,null,null,null,null,null,null,null,null,null,null,null,null,null,null,null,null,null,null,null,null,null,null,null,null,null,null,null,null,null,null,null,null,null,null,null,null,null,null,null,null,null,"","","","","",null,null,null,null,null,null,null,null,"",null,"","","","","","","",""]
["",null,null,null,null,null,"","",null,null,null,null,null,null,null,null,null,null,null,null,null,null,null,null,null,null,"","","","",null,null,"",null,null,null,null,null,null,null,null,null,null,null,null,null,null,null,null,null,null,null,null,null,null,null,null,null,null,null,"","","",null,null,null,null,"","","","",null,null,null,null,null,null,null,null,null,null,null,null,null,null,null,null,null,null,null,null,null,null,null,null,null,null,null,null,null,null,null,null,null,null,null,null,null,null,null,null,null,null,null,null,null,null,null,null,null,null,null,null,"","","","","",null,null,null,null,null,null,null,null,"",null,"","","","","","","",""]
["",null,null,null,null,null,"","",null,null,null,null,null,null,null,null,null,null,null,null,null,null,null,null,null,null,"","","","",null,null,"",null,null,null,null,null,null,null,null,null,null,null,null,null,null,null,null,null,null,null,null,null,null,null,null,null,null,null,"","","",null,null,null,null,"","","","",null,null,null,null,null,null,null,null,null,null,null,null,null,null,null,null,null,null,null,null,null,null,null,null,null,null,null,null,null,null,null,null,null,null,null,null,null,null,null,null,null,null,null,null,null,null,null,null,null,null,null,null,"","","","","",null,null,null,null,null,null,null,null,"",null,"","","","","","","",""]
["",null,null,null,null,null,"","",null,null,null,null,null,null,null,null,null,null,null,null,null,null,null,null,null,null,"","","","",null,null,"",null,null,null,null,null,null,null,null,null,null,null,null,null,null,null,null,null,null,null,null,null,null,null,null,null,null,null,"","","",null,null,null,null,"","","","",null,null,null,null,null,null,null,null,null,null,null,null,null,null,null,null,null,null,null,null,null,null,null,null,null,null,null,null,null,null,null,null,null,null,null,null,null,null,null,null,null,null,null,null,null,null,null,null,null,null,null,null,"","","","","",null,null,null,null,null,null,null,null,"",null,"","","","","","","",""]
["",null,null,null,null,null,"","",null,null,null,null,null,null,null,null,null,null,null,null,null,null,null,null,null,null,"","","","",null,null,"",null,null,null,null,null,null,null,null,null,null,null,null,null,null,null,null,null,null,null,null,null,null,null,null,null,null,null,"","","",null,null,null,null,"","","","",null,null,null,null,null,null,null,null,null,null,null,null,null,null,null,null,null,null,null,null,null,null,null,null,null,null,null,null,null,null,null,null,null,null,null,null,null,null,null,null,null,null,null,null,null,null,null,null,null,null,null,null,"","","","","",null,null,null,null,null,null,null,null,"",null,"","","","","","","",""]
["",null,null,null,null,null,"","",null,null,null,null,null,null,null,null,null,null,null,null,null,null,null,null,null,null,"","","","",null,null,"",null,null,null,null,null,null,null,null,null,null,null,null,null,null,null,null,null,null,null,null,null,null,null,null,null,null,null,"","","",null,null,null,null,"","","","",null,null,null,null,null,null,null,null,null,null,null,null,null,null,null,null,null,null,null,null,null,null,null,null,null,null,null,null,null,null,null,null,null,null,null,null,null,null,null,null,null,null,null,null,null,null,null,null,null,null,null,null,"","","","","",null,null,null,null,null,null,null,null,"",null,"","","","","","","",""]
["",null,null,null,null,null,"","",null,null,null,null,null,null,null,null,null,null,null,null,null,null,null,null,null,null,"","","","",null,null,"",null,null,null,null,null,null,null,null,null,null,null,null,null,null,null,null,null,null,null,null,null,null,null,null,null,null,null,"","","",null,null,null,null,"","","","",null,null,null,null,null,null,null,null,null,null,null,null,null,null,null,null,null,null,null,null,null,null,null,null,null,null,null,null,null,null,null,null,null,null,null,null,null,null,null,null,null,null,null,null,null,null,null,null,null,null,null,null,"","","","","",null,null,null,null,null,null,null,null,"",null,"","","","","","","",""]
["",null,null,null,null,null,"","",null,null,null,null,null,null,null,null,null,null,null,null,null,null,null,null,null,null,"","","","",null,null,"",null,null,null,null,null,null,null,null,null,null,null,null,null,null,null,null,null,null,null,null,null,null,null,null,null,null,null,"","","",null,null,null,null,"","","","",null,null,null,null,null,null,null,null,null,null,null,null,null,null,null,null,null,null,null,null,null,null,null,null,null,null,null,null,null,null,null,null,null,null,null,null,null,null,null,null,null,null,null,null,null,null,null,null,null,null,null,null,"","","","","",null,null,null,null,null,null,null,null,"",null,"","","","","","","",""]
["",null,null,null,null,null,"","",null,null,null,null,null,null,null,null,null,null,null,null,null,null,null,null,null,null,"","","","",null,null,"",null,null,null,null,null,null,null,null,null,null,null,null,null,null,null,null,null,null,null,null,null,null,null,null,null,null,null,"","","",null,null,null,null,"","","","",null,null,null,null,null,null,null,null,null,null,null,null,null,null,null,null,null,null,null,null,null,null,null,null,null,null,null,null,null,null,null,null,null,null,null,null,null,null,null,null,null,null,null,null,null,null,null,null,null,null,null,null,"","","","","",null,null,null,null,null,null,null,null,"",null,"","","","","","","",""]
["",null,null,null,null,null,"","",null,null,null,null,null,null,null,null,null,null,null,null,null,null,null,null,null,null,"","","","",null,null,"",null,null,null,null,null,null,null,null,null,null,null,null,null,null,null,null,null,null,null,null,null,null,null,null,null,null,null,"","","",null,null,null,null,"","","","",null,null,null,null,null,null,null,null,null,null,null,null,null,null,null,null,null,null,null,null,null,null,null,null,null,null,null,null,null,null,null,null,null,null,null,null,null,null,null,null,null,null,null,null,null,null,null,null,null,null,null,null,"","","","","",null,null,null,null,null,null,null,null,"",null,"","","","","","","",""]
["",null,null,null,null,null,"","",null,null,null,null,null,null,null,null,null,null,null,null,null,null,null,null,null,null,"","","","",null,null,"",null,null,null,null,null,null,null,null,null,null,null,null,null,null,null,null,null,null,null,null,null,null,null,null,null,null,null,"","","",null,null,null,null,"","","","",null,null,null,null,null,null,null,null,null,null,null,null,null,null,null,null,null,null,null,null,null,null,null,null,null,null,null,null,null,null,null,null,null,null,null,null,null,null,null,null,null,null,null,null,null,null,null,null,null,null,null,null,"","","","","",null,null,null,null,null,null,null,null,"",null,"","","","","","","",""]
["",null,null,null,null,null,"","",null,null,null,null,null,null,null,null,null,null,null,null,null,null,null,null,null,null,"","","","",null,null,"",null,null,null,null,null,null,null,null,null,null,null,null,null,null,null,null,null,null,null,null,null,null,null,null,null,null,null,"","","",null,null,null,null,"","","","",null,null,null,null,null,null,null,null,null,null,null,null,null,null,null,null,null,null,null,null,null,null,null,null,null,null,null,null,null,null,null,null,null,null,null,null,null,null,null,null,null,null,null,null,null,null,null,null,null,null,null,null,"","","","","",null,null,null,null,null,null,null,null,"",null,"","","","","","","",""]
["",null,null,null,null,null,"","",null,null,null,null,null,null,null,null,null,null,null,null,null,null,null,null,null,null,"","","","",null,null,"",null,null,null,null,null,null,null,null,null,null,null,null,null,null,null,null,null,null,null,null,null,null,null,null,null,null,null,"","","",null,null,null,null,"","","","",null,null,null,null,null,null,null,null,null,null,null,null,null,null,null,null,null,null,null,null,null,null,null,null,null,null,null,null,null,null,null,null,null,null,null,null,null,null,null,null,null,null,null,null,null,null,null,null,null,null,null,null,"","","","","",null,null,null,null,null,null,null,null,"",null,"","","","","","","",""]
["",null,null,null,null,null,"","",null,null,null,null,null,null,null,null,null,null,null,null,null,null,null,null,null,null,"","","","",null,null,"",null,null,null,null,null,null,null,null,null,null,null,null,null,null,null,null,null,null,null,null,null,null,null,null,null,null,null,"","","",null,null,null,null,"","","","",null,null,null,null,null,null,null,null,null,null,null,null,null,null,null,null,null,null,null,null,null,null,null,null,null,null,null,null,null,null,null,null,null,null,null,null,null,null,null,null,null,null,null,null,null,null,null,null,null,null,null,null,"","","","","",null,null,null,null,null,null,null,null,"",null,"","","","","","","",""]
["",null,null,null,null,null,"","",null,null,null,null,null,null,null,null,null,null,null,null,null,null,null,null,null,null,"","","","",null,null,"",null,null,null,null,null,null,null,null,null,null,null,null,null,null,null,null,null,null,null,null,null,null,null,null,null,null,null,"","","",null,null,null,null,"","","","",null,null,null,null,null,null,null,null,null,null,null,null,null,null,null,null,null,null,null,null,null,null,null,null,null,null,null,null,null,null,null,null,null,null,null,null,null,null,null,null,null,null,null,null,null,null,null,null,null,null,null,null,"","","","","",null,null,null,null,null,null,null,null,"",null,"","","","","","","",""]
["",null,null,null,null,null,"","",null,null,null,null,null,null,null,null,null,null,null,null,null,null,null,null,null,null,"","","","",null,null,"",null,null,null,null,null,null,null,null,null,null,null,null,null,null,null,null,null,null,null,null,null,null,null,null,null,null,null,"","","",null,null,null,null,"","","","",null,null,null,null,null,null,null,null,null,null,null,null,null,null,null,null,null,null,null,null,null,null,null,null,null,null,null,null,null,null,null,null,null,null,null,null,null,null,null,null,null,null,null,null,null,null,null,null,null,null,null,null,"","","","","",null,null,null,null,null,null,null,null,"",null,"","","","","","","",""]
["",null,null,null,null,null,"","",null,null,null,null,null,null,null,null,null,null,null,null,null,null,null,null,null,null,"","","","",null,null,"",null,null,null,null,null,null,null,null,null,null,null,null,null,null,null,null,null,null,null,null,null,null,null,null,null,null,null,"","","",null,null,null,null,"","","","",null,null,null,null,null,null,null,null,null,null,null,null,null,null,null,null,null,null,null,null,null,null,null,null,null,null,null,null,null,null,null,null,null,null,null,null,null,null,null,null,null,null,null,null,null,null,null,null,null,null,null,null,"","","","","",null,null,null,null,null,null,null,null,"",null,"","","","","","","",""]
["",null,null,null,null,null,"","",null,null,null,null,null,null,null,null,null,null,null,null,null,null,null,null,null,null,"","","","",null,null,"",null,null,null,null,null,null,null,null,null,null,null,null,null,null,null,null,null,null,null,null,null,null,null,null,null,null,null,"","","",null,null,null,null,"","","","",null,null,null,null,null,null,null,null,null,null,null,null,null,null,null,null,null,null,null,null,null,null,null,null,null,null,null,null,null,null,null,null,null,null,null,null,null,null,null,null,null,null,null,null,null,null,null,null,null,null,null,null,"","","","","",null,null,null,null,null,null,null,null,"",null,"","","","","","","",""]
["",null,null,null,null,null,"","",null,null,null,null,null,null,null,null,null,null,null,null,null,null,null,null,null,null,"","","","",null,null,"",null,null,null,null,null,null,null,null,null,null,null,null,null,null,null,null,null,null,null,null,null,null,null,null,null,null,null,"","","",null,null,null,null,"","","","",null,null,null,null,null,null,null,null,null,null,null,null,null,null,null,null,null,null,null,null,null,null,null,null,null,null,null,null,null,null,null,null,null,null,null,null,null,null,null,null,null,null,null,null,null,null,null,null,null,null,null,null,"","","","","",null,null,null,null,null,null,null,null,"",null,"","","","","","","",""]
["",null,null,null,null,null,"","",null,null,null,null,null,null,null,null,null,null,null,null,null,null,null,null,null,null,"","","","",null,null,"",null,null,null,null,null,null,null,null,null,null,null,null,null,null,null,null,null,null,null,null,null,null,null,null,null,null,null,"","","",null,null,null,null,"","","","",null,null,null,null,null,null,null,null,null,null,null,null,null,null,null,null,null,null,null,null,null,null,null,null,null,null,null,null,null,null,null,null,null,null,null,null,null,null,null,null,null,null,null,null,null,null,null,null,null,null,null,null,"","","","","",null,null,null,null,null,null,null,null,"",null,"","","","","","","",""]
["",null,null,null,null,null,"","",null,null,null,null,null,null,null,null,null,null,null,null,null,null,null,null,null,null,"","","","",null,null,"",null,null,null,null,null,null,null,null,null,null,null,null,null,null,null,null,null,null,null,null,null,null,null,null,null,null,null,"","","",null,null,null,null,"","","","",null,null,null,null,null,null,null,null,null,null,null,null,null,null,null,null,null,null,null,null,null,null,null,null,null,null,null,null,null,null,null,null,null,null,null,null,null,null,null,null,null,null,null,null,null,null,null,null,null,null,null,null,"","","","","",null,null,null,null,null,null,null,null,"",null,"","","","","","","",""]
["",null,null,null,null,null,"","",null,null,null,null,null,null,null,null,null,null,null,null,null,null,null,null,null,null,"","","","",null,null,"",null,null,null,null,null,null,null,null,null,null,null,null,null,null,null,null,null,null,null,null,null,null,null,null,null,null,null,"","","",null,null,null,null,"","","","",null,null,null,null,null,null,null,null,null,null,null,null,null,null,null,null,null,null,null,null,null,null,null,null,null,null,null,null,null,null,null,null,null,null,null,null,null,null,null,null,null,null,null,null,null,null,null,null,null,null,null,null,"","","","","",null,null,null,null,null,null,null,null,"",null,"","","","","","","",""]
["",null,null,null,null,null,"","",null,null,null,null,null,null,null,null,null,null,null,null,null,null,null,null,null,null,"","","","",null,null,"",null,null,null,null,null,null,null,null,null,null,null,null,null,null,null,null,null,null,null,null,null,null,null,null,null,null,null,"","","",null,null,null,null,"","","","",null,null,null,null,null,null,null,null,null,null,null,null,null,null,null,null,null,null,null,null,null,null,null,null,null,null,null,null,null,null,null,null,null,null,null,null,null,null,null,null,null,null,null,null,null,null,null,null,null,null,null,null,"","","","","",null,null,null,null,null,null,null,null,"",null,"","","","","","","",""]
["",null,null,null,null,null,"","",null,null,null,null,null,null,null,null,null,null,null,null,null,null,null,null,null,null,"","","","",null,null,"",null,null,null,null,null,null,null,null,null,null,null,null,null,null,null,null,null,null,null,null,null,null,null,null,null,null,null,"","","",null,null,null,null,"","","","",null,null,null,null,null,null,null,null,null,null,null,null,null,null,null,null,null,null,null,null,null,null,null,null,null,null,null,null,null,null,null,null,null,null,null,null,null,null,null,null,null,null,null,null,null,null,null,null,null,null,null,null,"","","","","",null,null,null,null,null,null,null,null,"",null,"","","","","","","",""]
["",null,null,null,null,null,"","",null,null,null,null,null,null,null,null,null,null,null,null,null,null,null,null,null,null,"","","","",null,null,"",null,null,null,null,null,null,null,null,null,null,null,null,null,null,null,null,null,null,null,null,null,null,null,null,null,null,null,"","","",null,null,null,null,"","","","",null,null,null,null,null,null,null,null,null,null,null,null,null,null,null,null,null,null,null,null,null,null,null,null,null,null,null,null,null,null,null,null,null,null,null,null,null,null,null,null,null,null,null,null,null,null,null,null,null,null,null,null,"","","","","",null,null,null,null,null,null,null,null,"",null,"","","","","","","",""]
["",null,null,null,null,null,"","",null,null,null,null,null,null,null,null,null,null,null,null,null,null,null,null,null,null,"","","","",null,null,"",null,null,null,null,null,null,null,null,null,null,null,null,null,null,null,null,null,null,null,null,null,null,null,null,null,null,null,"","","",null,null,null,null,"","","","",null,null,null,null,null,null,null,null,null,null,null,null,null,null,null,null,null,null,null,null,null,null,null,null,null,null,null,null,null,null,null,null,null,null,null,null,null,null,null,null,null,null,null,null,null,null,null,null,null,null,null,null,"","","","","",null,null,null,null,null,null,null,null,"",null,"","","","","","","",""]
["",null,null,null,null,null,"","",null,null,null,null,null,null,null,null,null,null,null,null,null,null,null,null,null,null,"","","","",null,null,"",null,null,null,null,null,null,null,null,null,null,null,null,null,null,null,null,null,null,null,null,null,null,null,null,null,null,null,"","","",null,null,null,null,"","","","",null,null,null,null,null,null,null,null,null,null,null,null,null,null,null,null,null,null,null,null,null,null,null,null,null,null,null,null,null,null,null,null,null,null,null,null,null,null,null,null,null,null,null,null,null,null,null,null,null,null,null,null,"","","","","",null,null,null,null,null,null,null,null,"",null,"","","","","","","",""]
["",null,null,null,null,null,"","",null,null,null,null,null,null,null,null,null,null,null,null,null,null,null,null,null,null,"","","","",null,null,"",null,null,null,null,null,null,null,null,null,null,null,null,null,null,null,null,null,null,null,null,null,null,null,null,null,null,null,"","","",null,null,null,null,"","","","",null,null,null,null,null,null,null,null,null,null,null,null,null,null,null,null,null,null,null,null,null,null,null,null,null,null,null,null,null,null,null,null,null,null,null,null,null,null,null,null,null,null,null,null,null,null,null,null,null,null,null,null,"","","","","",null,null,null,null,null,null,null,null,"",null,"","","","","","","",""]
["",null,null,null,null,null,"","",null,null,null,null,null,null,null,null,null,null,null,null,null,null,null,null,null,null,"","","","",null,null,"",null,null,null,null,null,null,null,null,null,null,null,null,null,null,null,null,null,null,null,null,null,null,null,null,null,null,null,"","","",null,null,null,null,"","","","",null,null,null,null,null,null,null,null,null,null,null,null,null,null,null,null,null,null,null,null,null,null,null,null,null,null,null,null,null,null,null,null,null,null,null,null,null,null,null,null,null,null,null,null,null,null,null,null,null,null,null,null,"","","","","",null,null,null,null,null,null,null,null,"",null,"","","","","","","",""]
["",null,null,null,null,null,"","",null,null,null,null,null,null,null,null,null,null,null,null,null,null,null,null,null,null,"","","","",null,null,"",null,null,null,null,null,null,null,null,null,null,null,null,null,null,null,null,null,null,null,null,null,null,null,null,null,null,null,"","","",null,null,null,null,"","","","",null,null,null,null,null,null,null,null,null,null,null,null,null,null,null,null,null,null,null,null,null,null,null,null,null,null,null,null,null,null,null,null,null,null,null,null,null,null,null,null,null,null,null,null,null,null,null,null,null,null,null,null,"","","","","",null,null,null,null,null,null,null,null,"",null,"","","","","","","",""]
["",null,null,null,null,null,"","",null,null,null,null,null,null,null,null,null,null,null,null,null,null,null,null,null,null,"","","","",null,null,"",null,null,null,null,null,null,null,null,null,null,null,null,null,null,null,null,null,null,null,null,null,null,null,null,null,null,null,"","","",null,null,null,null,"","","","",null,null,null,null,null,null,null,null,null,null,null,null,null,null,null,null,null,null,null,null,null,null,null,null,null,null,null,null,null,null,null,null,null,null,null,null,null,null,null,null,null,null,null,null,null,null,null,null,null,null,null,null,"","","","","",null,null,null,null,null,null,null,null,"",null,"","","","","","","",""]
["",null,null,null,null,null,"","",null,null,null,null,null,null,null,null,null,null,null,null,null,null,null,null,null,null,"","","","",null,null,"",null,null,null,null,null,null,null,null,null,null,null,null,null,null,null,null,null,null,null,null,null,null,null,null,null,null,null,"","","",null,null,null,null,"","","","",null,null,null,null,null,null,null,null,null,null,null,null,null,null,null,null,null,null,null,null,null,null,null,null,null,null,null,null,null,null,null,null,null,null,null,null,null,null,null,null,null,null,null,null,null,null,null,null,null,null,null,null,"","","","","",null,null,null,null,null,null,null,null,"",null,"","","","","","","",""]
["",null,null,null,null,null,"","",null,null,null,null,null,null,null,null,null,null,null,null,null,null,null,null,null,null,"","","","",null,null,"",null,null,null,null,null,null,null,null,null,null,null,null,null,null,null,null,null,null,null,null,null,null,null,null,null,null,null,"","","",null,null,null,null,"","","","",null,null,null,null,null,null,null,null,null,null,null,null,null,null,null,null,null,null,null,null,null,null,null,null,null,null,null,null,null,null,null,null,null,null,null,null,null,null,null,null,null,null,null,null,null,null,null,null,null,null,null,null,"","","","","",null,null,null,null,null,null,null,null,"",null,"","","","","","","",""]
["",null,null,null,null,null,"","",null,null,null,null,null,null,null,null,null,null,null,null,null,null,null,null,null,null,"","","","",null,null,"",null,null,null,null,null,null,null,null,null,null,null,null,null,null,null,null,null,null,null,null,null,null,null,null,null,null,null,"","","",null,null,null,null,"","","","",null,null,null,null,null,null,null,null,null,null,null,null,null,null,null,null,null,null,null,null,null,null,null,null,null,null,null,null,null,null,null,null,null,null,null,null,null,null,null,null,null,null,null,null,null,null,null,null,null,null,null,null,"","","","","",null,null,null,null,null,null,null,null,"",null,"","","","","","","",""]
["",null,null,null,null,null,"","",null,null,null,null,null,null,null,null,null,null,null,null,null,null,null,null,null,null,"","","","",null,null,"",null,null,null,null,null,null,null,null,null,null,null,null,null,null,null,null,null,null,null,null,null,null,null,null,null,null,null,"","","",null,null,null,null,"","","","",null,null,null,null,null,null,null,null,null,null,null,null,null,null,null,null,null,null,null,null,null,null,null,null,null,null,null,null,null,null,null,null,null,null,null,null,null,null,null,null,null,null,null,null,null,null,null,null,null,null,null,null,"","","","","",null,null,null,null,null,null,null,null,"",null,"","","","","","","",""]
["",null,null,null,null,null,"","",null,null,null,null,null,null,null,null,null,null,null,null,null,null,null,null,null,null,"","","","",null,null,"",null,null,null,null,null,null,null,null,null,null,null,null,null,null,null,null,null,null,null,null,null,null,null,null,null,null,null,"","","",null,null,null,null,"","","","",null,null,null,null,null,null,null,null,null,null,null,null,null,null,null,null,null,null,null,null,null,null,null,null,null,null,null,null,null,null,null,null,null,null,null,null,null,null,null,null,null,null,null,null,null,null,null,null,null,null,null,null,"","","","","",null,null,null,null,null,null,null,null,"",null,"","","","","","","",""]
["",null,null,null,null,null,"","",null,null,null,null,null,null,null,null,null,null,null,null,null,null,null,null,null,null,"","","","",null,null,"",null,null,null,null,null,null,null,null,null,null,null,null,null,null,null,null,null,null,null,null,null,null,null,null,null,null,null,"","","",null,null,null,null,"","","","",null,null,null,null,null,null,null,null,null,null,null,null,null,null,null,null,null,null,null,null,null,null,null,null,null,null,null,null,null,null,null,null,null,null,null,null,null,null,null,null,null,null,null,null,null,null,null,null,null,null,null,null,"","","","","",null,null,null,null,null,null,null,null,"",null,"","","","","","","",""]
["",null,null,null,null,null,"","",null,null,null,null,null,null,null,null,null,null,null,null,null,null,null,null,null,null,"","","","",null,null,"",null,null,null,null,null,null,null,null,null,null,null,null,null,null,null,null,null,null,null,null,null,null,null,null,null,null,null,"","","",null,null,null,null,"","","","",null,null,null,null,null,null,null,null,null,null,null,null,null,null,null,null,null,null,null,null,null,null,null,null,null,null,null,null,null,null,null,null,null,null,null,null,null,null,null,null,null,null,null,null,null,null,null,null,null,null,null,null,"","","","","",null,null,null,null,null,null,null,null,"",null,"","","","","","","",""]
["",null,null,null,null,null,"","",null,null,null,null,null,null,null,null,null,null,null,null,null,null,null,null,null,null,"","","","",null,null,"",null,null,null,null,null,null,null,null,null,null,null,null,null,null,null,null,null,null,null,null,null,null,null,null,null,null,null,"","","",null,null,null,null,"","","","",null,null,null,null,null,null,null,null,null,null,null,null,null,null,null,null,null,null,null,null,null,null,null,null,null,null,null,null,null,null,null,null,null,null,null,null,null,null,null,null,null,null,null,null,null,null,null,null,null,null,null,null,"","","","","",null,null,null,null,null,null,null,null,"",null,"","","","","","","",""]
["",null,null,null,null,null,"","",null,null,null,null,null,null,null,null,null,null,null,null,null,null,null,null,null,null,"","","","",null,null,"",null,null,null,null,null,null,null,null,null,null,null,null,null,null,null,null,null,null,null,null,null,null,null,null,null,null,null,"","","",null,null,null,null,"","","","",null,null,null,null,null,null,null,null,null,null,null,null,null,null,null,null,null,null,null,null,null,null,null,null,null,null,null,null,null,null,null,null,null,null,null,null,null,null,null,null,null,null,null,null,null,null,null,null,null,null,null,null,"","","","","",null,null,null,null,null,null,null,null,"",null,"","","","","","","",""]
["",null,null,null,null,null,"","",null,null,null,null,null,null,null,null,null,null,null,null,null,null,null,null,null,null,"","","","",null,null,"",null,null,null,null,null,null,null,null,null,null,null,null,null,null,null,null,null,null,null,null,null,null,null,null,null,null,null,"","","",null,null,null,null,"","","","",null,null,null,null,null,null,null,null,null,null,null,null,null,null,null,null,null,null,null,null,null,null,null,null,null,null,null,null,null,null,null,null,null,null,null,null,null,null,null,null,null,null,null,null,null,null,null,null,null,null,null,null,"","","","","",null,null,null,null,null,null,null,null,"",null,"","","","","","","",""]
["",null,null,null,null,null,"","",null,null,null,null,null,null,null,null,null,null,null,null,null,null,null,null,null,null,"","","","",null,null,"",null,null,null,null,null,null,null,null,null,null,null,null,null,null,null,null,null,null,null,null,null,null,null,null,null,null,null,"","","",null,null,null,null,"","","","",null,null,null,null,null,null,null,null,null,null,null,null,null,null,null,null,null,null,null,null,null,null,null,null,null,null,null,null,null,null,null,null,null,null,null,null,null,null,null,null,null,null,null,null,null,null,null,null,null,null,null,null,"","","","","",null,null,null,null,null,null,null,null,"",null,"","","","","","","",""]
["",null,null,null,null,null,"","",null,null,null,null,null,null,null,null,null,null,null,null,null,null,null,null,null,null,"","","","",null,null,"",null,null,null,null,null,null,null,null,null,null,null,null,null,null,null,null,null,null,null,null,null,null,null,null,null,null,null,"","","",null,null,null,null,"","","","",null,null,null,null,null,null,null,null,null,null,null,null,null,null,null,null,null,null,null,null,null,null,null,null,null,null,null,null,null,null,null,null,null,null,null,null,null,null,null,null,null,null,null,null,null,null,null,null,null,null,null,null,"","","","","",null,null,null,null,null,null,null,null,"",null,"","","","","","","",""]
["",null,null,null,null,null,"","",null,null,null,null,null,null,null,null,null,null,null,null,null,null,null,null,null,null,"","","","",null,null,"",null,null,null,null,null,null,null,null,null,null,null,null,null,null,null,null,null,null,null,null,null,null,null,null,null,null,null,"","","",null,null,null,null,"","","","",null,null,null,null,null,null,null,null,null,null,null,null,null,null,null,null,null,null,null,null,null,null,null,null,null,null,null,null,null,null,null,null,null,null,null,null,null,null,null,null,null,null,null,null,null,null,null,null,null,null,null,null,"","","","","",null,null,null,null,null,null,null,null,"",null,"","","","","","","",""]
["",null,null,null,null,null,"","",null,null,null,null,null,null,null,null,null,null,null,null,null,null,null,null,null,null,"","","","",null,null,"",null,null,null,null,null,null,null,null,null,null,null,null,null,null,null,null,null,null,null,null,null,null,null,null,null,null,null,"","","",null,null,null,null,"","","","",null,null,null,null,null,null,null,null,null,null,null,null,null,null,null,null,null,null,null,null,null,null,null,null,null,null,null,null,null,null,null,null,null,null,null,null,null,null,null,null,null,null,null,null,null,null,null,null,null,null,null,null,"","","","","",null,null,null,null,null,null,null,null,"",null,"","","","","","","",""]
["",null,null,null,null,null,"","",null,null,null,null,null,null,null,null,null,null,null,null,null,null,null,null,null,null,"","","","",null,null,"",null,null,null,null,null,null,null,null,null,null,null,null,null,null,null,null,null,null,null,null,null,null,null,null,null,null,null,"","","",null,null,null,null,"","","","",null,null,null,null,null,null,null,null,null,null,null,null,null,null,null,null,null,null,null,null,null,null,null,null,null,null,null,null,null,null,null,null,null,null,null,null,null,null,null,null,null,null,null,null,null,null,null,null,null,null,null,null,"","","","","",null,null,null,null,null,null,null,null,"",null,"","","","","","","",""]
["",null,null,null,null,null,"","",null,null,null,null,null,null,null,null,null,null,null,null,null,null,null,null,null,null,"","","","",null,null,"",null,null,null,null,null,null,null,null,null,null,null,null,null,null,null,null,null,null,null,null,null,null,null,null,null,null,null,"","","",null,null,null,null,"","","","",null,null,null,null,null,null,null,null,null,null,null,null,null,null,null,null,null,null,null,null,null,null,null,null,null,null,null,null,null,null,null,null,null,null,null,null,null,null,null,null,null,null,null,null,null,null,null,null,null,null,null,null,"","","","","",null,null,null,null,null,null,null,null,"",null,"","","","","","","",""]
["",null,null,null,null,null,"","",null,null,null,null,null,null,null,null,null,null,null,null,null,null,null,null,null,null,"","","","",null,null,"",null,null,null,null,null,null,null,null,null,null,null,null,null,null,null,null,null,null,null,null,null,null,null,null,null,null,null,"","","",null,null,null,null,"","","","",null,null,null,null,null,null,null,null,null,null,null,null,null,null,null,null,null,null,null,null,null,null,null,null,null,null,null,null,null,null,null,null,null,null,null,null,null,null,null,null,null,null,null,null,null,null,null,null,null,null,null,null,"","","","","",null,null,null,null,null,null,null,null,"",null,"","","","","","","",""]
["",null,null,null,null,null,"","",null,null,null,null,null,null,null,null,null,null,null,null,null,null,null,null,null,null,"","","","",null,null,"",null,null,null,null,null,null,null,null,null,null,null,null,null,null,null,null,null,null,null,null,null,null,null,null,null,null,null,"","","",null,null,null,null,"","","","",null,null,null,null,null,null,null,null,null,null,null,null,null,null,null,null,null,null,null,null,null,null,null,null,null,null,null,null,null,null,null,null,null,null,null,null,null,null,null,null,null,null,null,null,null,null,null,null,null,null,null,null,"","","","","",null,null,null,null,null,null,null,null,"",null,"","","","","","","",""]
["",null,null,null,null,null,"","",null,null,null,null,null,null,null,null,null,null,null,null,null,null,null,null,null,null,"","","","",null,null,"",null,null,null,null,null,null,null,null,null,null,null,null,null,null,null,null,null,null,null,null,null,null,null,null,null,null,null,"","","",null,null,null,null,"","","","",null,null,null,null,null,null,null,null,null,null,null,null,null,null,null,null,null,null,null,null,null,null,null,null,null,null,null,null,null,null,null,null,null,null,null,null,null,null,null,null,null,null,null,null,null,null,null,null,null,null,null,null,"","","","","",null,null,null,null,null,null,null,null,"",null,"","","","","","","",""]
["",null,null,null,null,null,"","",null,null,null,null,null,null,null,null,null,null,null,null,null,null,null,null,null,null,"","","","",null,null,"",null,null,null,null,null,null,null,null,null,null,null,null,null,null,null,null,null,null,null,null,null,null,null,null,null,null,null,"","","",null,null,null,null,"","","","",null,null,null,null,null,null,null,null,null,null,null,null,null,null,null,null,null,null,null,null,null,null,null,null,null,null,null,null,null,null,null,null,null,null,null,null,null,null,null,null,null,null,null,null,null,null,null,null,null,null,null,null,"","","","","",null,null,null,null,null,null,null,null,"",null,"","","","","","","",""]
["",null,null,null,null,null,"","",null,null,null,null,null,null,null,null,null,null,null,null,null,null,null,null,null,null,"","","","",null,null,"",null,null,null,null,null,null,null,null,null,null,null,null,null,null,null,null,null,null,null,null,null,null,null,null,null,null,null,"","","",null,null,null,null,"","","","",null,null,null,null,null,null,null,null,null,null,null,null,null,null,null,null,null,null,null,null,null,null,null,null,null,null,null,null,null,null,null,null,null,null,null,null,null,null,null,null,null,null,null,null,null,null,null,null,null,null,null,null,"","","","","",null,null,null,null,null,null,null,null,"",null,"","","","","","","",""]
["",null,null,null,null,null,"","",null,null,null,null,null,null,null,null,null,null,null,null,null,null,null,null,null,null,"","","","",null,null,"",null,null,null,null,null,null,null,null,null,null,null,null,null,null,null,null,null,null,null,null,null,null,null,null,null,null,null,"","","",null,null,null,null,"","","","",null,null,null,null,null,null,null,null,null,null,null,null,null,null,null,null,null,null,null,null,null,null,null,null,null,null,null,null,null,null,null,null,null,null,null,null,null,null,null,null,null,null,null,null,null,null,null,null,null,null,null,null,"","","","","",null,null,null,null,null,null,null,null,"",null,"","","","","","","",""]
["",null,null,null,null,null,"","",null,null,null,null,null,null,null,null,null,null,null,null,null,null,null,null,null,null,"","","","",null,null,"",null,null,null,null,null,null,null,null,null,null,null,null,null,null,null,null,null,null,null,null,null,null,null,null,null,null,null,"","","",null,null,null,null,"","","","",null,null,null,null,null,null,null,null,null,null,null,null,null,null,null,null,null,null,null,null,null,null,null,null,null,null,null,null,null,null,null,null,null,null,null,null,null,null,null,null,null,null,null,null,null,null,null,null,null,null,null,null,"","","","","",null,null,null,null,null,null,null,null,"",null,"","","","","","","",""]
["",null,null,null,null,null,"","",null,null,null,null,null,null,null,null,null,null,null,null,null,null,null,null,null,null,"","","","",null,null,"",null,null,null,null,null,null,null,null,null,null,null,null,null,null,null,null,null,null,null,null,null,null,null,null,null,null,null,"","","",null,null,null,null,"","","","",null,null,null,null,null,null,null,null,null,null,null,null,null,null,null,null,null,null,null,null,null,null,null,null,null,null,null,null,null,null,null,null,null,null,null,null,null,null,null,null,null,null,null,null,null,null,null,null,null,null,null,null,"","","","","",null,null,null,null,null,null,null,null,"",null,"","","","","","","",""]
["",null,null,null,null,null,"","",null,null,null,null,null,null,null,null,null,null,null,null,null,null,null,null,null,null,"","","","",null,null,"",null,null,null,null,null,null,null,null,null,null,null,null,null,null,null,null,null,null,null,null,null,null,null,null,null,null,null,"","","",null,null,null,null,"","","","",null,null,null,null,null,null,null,null,null,null,null,null,null,null,null,null,null,null,null,null,null,null,null,null,null,null,null,null,null,null,null,null,null,null,null,null,null,null,null,null,null,null,null,null,null,null,null,null,null,null,null,null,"","","","","",null,null,null,null,null,null,null,null,"",null,"","","","","","","",""]
["",null,null,null,null,null,"","",null,null,null,null,null,null,null,null,null,null,null,null,null,null,null,null,null,null,"","","","",null,null,"",null,null,null,null,null,null,null,null,null,null,null,null,null,null,null,null,null,null,null,null,null,null,null,null,null,null,null,"","","",null,null,null,null,"","","","",null,null,null,null,null,null,null,null,null,null,null,null,null,null,null,null,null,null,null,null,null,null,null,null,null,null,null,null,null,null,null,null,null,null,null,null,null,null,null,null,null,null,null,null,null,null,null,null,null,null,null,null,"","","","","",null,null,null,null,null,null,null,null,"",null,"","","","","","","",""]
["",null,null,null,null,null,"","",null,null,null,null,null,null,null,null,null,null,null,null,null,null,null,null,null,null,"","","","",null,null,"",null,null,null,null,null,null,null,null,null,null,null,null,null,null,null,null,null,null,null,null,null,null,null,null,null,null,null,"","","",null,null,null,null,"","","","",null,null,null,null,null,null,null,null,null,null,null,null,null,null,null,null,null,null,null,null,null,null,null,null,null,null,null,null,null,null,null,null,null,null,null,null,null,null,null,null,null,null,null,null,null,null,null,null,null,null,null,null,"","","","","",null,null,null,null,null,null,null,null,"",null,"","","","","","","",""]
["",null,null,null,null,null,"","",null,null,null,null,null,null,null,null,null,null,null,null,null,null,null,null,null,null,"","","","",null,null,"",null,null,null,null,null,null,null,null,null,null,null,null,null,null,null,null,null,null,null,null,null,null,null,null,null,null,null,"","","",null,null,null,null,"","","","",null,null,null,null,null,null,null,null,null,null,null,null,null,null,null,null,null,null,null,null,null,null,null,null,null,null,null,null,null,null,null,null,null,null,null,null,null,null,null,null,null,null,null,null,null,null,null,null,null,null,null,null,"","","","","",null,null,null,null,null,null,null,null,"",null,"","","","","","","",""]
["",null,null,null,null,null,"","",null,null,null,null,null,null,null,null,null,null,null,null,null,null,null,null,null,null,"","","","",null,null,"",null,null,null,null,null,null,null,null,null,null,null,null,null,null,null,null,null,null,null,null,null,null,null,null,null,null,null,"","","",null,null,null,null,"","","","",null,null,null,null,null,null,null,null,null,null,null,null,null,null,null,null,null,null,null,null,null,null,null,null,null,null,null,null,null,null,null,null,null,null,null,null,null,null,null,null,null,null,null,null,null,null,null,null,null,null,null,null,"","","","","",null,null,null,null,null,null,null,null,"",null,"","","","","","","",""]
["",null,null,null,null,null,"","",null,null,null,null,null,null,null,null,null,null,null,null,null,null,null,null,null,null,"","","","",null,null,"",null,null,null,null,null,null,null,null,null,null,null,null,null,null,null,null,null,null,null,null,null,null,null,null,null,null,null,"","","",null,null,null,null,"","","","",null,null,null,null,null,null,null,null,null,null,null,null,null,null,null,null,null,null,null,null,null,null,null,null,null,null,null,null,null,null,null,null,null,null,null,null,null,null,null,null,null,null,null,null,null,null,null,null,null,null,null,null,"","","","","",null,null,null,null,null,null,null,null,"",null,"","","","","","","",""]
["",null,null,null,null,null,"","",null,null,null,null,null,null,null,null,null,null,null,null,null,null,null,null,null,null,"","","","",null,null,"",null,null,null,null,null,null,null,null,null,null,null,null,null,null,null,null,null,null,null,null,null,null,null,null,null,null,null,"","","",null,null,null,null,"","","","",null,null,null,null,null,null,null,null,null,null,null,null,null,null,null,null,null,null,null,null,null,null,null,null,null,null,null,null,null,null,null,null,null,null,null,null,null,null,null,null,null,null,null,null,null,null,null,null,null,null,null,null,"","","","","",null,null,null,null,null,null,null,null,"",null,"","","","","","","",""]
["",null,null,null,null,null,"","",null,null,null,null,null,null,null,null,null,null,null,null,null,null,null,null,null,null,"","","","",null,null,"",null,null,null,null,null,null,null,null,null,null,null,null,null,null,null,null,null,null,null,null,null,null,null,null,null,null,null,"","","",null,null,null,null,"","","","",null,null,null,null,null,null,null,null,null,null,null,null,null,null,null,null,null,null,null,null,null,null,null,null,null,null,null,null,null,null,null,null,null,null,null,null,null,null,null,null,null,null,null,null,null,null,null,null,null,null,null,null,"","","","","",null,null,null,null,null,null,null,null,"",null,"","","","","","","",""]
["",null,null,null,null,null,"","",null,null,null,null,null,null,null,null,null,null,null,null,null,null,null,null,null,null,"","","","",null,null,"",null,null,null,null,null,null,null,null,null,null,null,null,null,null,null,null,null,null,null,null,null,null,null,null,null,null,null,"","","",null,null,null,null,"","","","",null,null,null,null,null,null,null,null,null,null,null,null,null,null,null,null,null,null,null,null,null,null,null,null,null,null,null,null,null,null,null,null,null,null,null,null,null,null,null,null,null,null,null,null,null,null,null,null,null,null,null,null,"","","","","",null,null,null,null,null,null,null,null,"",null,"","","","","","","",""]
["",null,null,null,null,null,"","",null,null,null,null,null,null,null,null,null,null,null,null,null,null,null,null,null,null,"","","","",null,null,"",null,null,null,null,null,null,null,null,null,null,null,null,null,null,null,null,null,null,null,null,null,null,null,null,null,null,null,"","","",null,null,null,null,"","","","",null,null,null,null,null,null,null,null,null,null,null,null,null,null,null,null,null,null,null,null,null,null,null,null,null,null,null,null,null,null,null,null,null,null,null,null,null,null,null,null,null,null,null,null,null,null,null,null,null,null,null,null,"","","","","",null,null,null,null,null,null,null,null,"",null,"","","","","","","",""]
["",null,null,null,null,null,"","",null,null,null,null,null,null,null,null,null,null,null,null,null,null,null,null,null,null,"","","","",null,null,"",null,null,null,null,null,null,null,null,null,null,null,null,null,null,null,null,null,null,null,null,null,null,null,null,null,null,null,"","","",null,null,null,null,"","","","",null,null,null,null,null,null,null,null,null,null,null,null,null,null,null,null,null,null,null,null,null,null,null,null,null,null,null,null,null,null,null,null,null,null,null,null,null,null,null,null,null,null,null,null,null,null,null,null,null,null,null,null,"","","","","",null,null,null,null,null,null,null,null,"",null,"","","","","","","",""]
["",null,null,null,null,null,"","",null,null,null,null,null,null,null,null,null,null,null,null,null,null,null,null,null,null,"","","","",null,null,"",null,null,null,null,null,null,null,null,null,null,null,null,null,null,null,null,null,null,null,null,null,null,null,null,null,null,null,"","","",null,null,null,null,"","","","",null,null,null,null,null,null,null,null,null,null,null,null,null,null,null,null,null,null,null,null,null,null,null,null,null,null,null,null,null,null,null,null,null,null,null,null,null,null,null,null,null,null,null,null,null,null,null,null,null,null,null,null,"","","","","",null,null,null,null,null,null,null,null,"",null,"","","","","","","",""]
["",null,null,null,null,null,"","",null,null,null,null,null,null,null,null,null,null,null,null,null,null,null,null,null,null,"","","","",null,null,"",null,null,null,null,null,null,null,null,null,null,null,null,null,null,null,null,null,null,null,null,null,null,null,null,null,null,null,"","","",null,null,null,null,"","","","",null,null,null,null,null,null,null,null,null,null,null,null,null,null,null,null,null,null,null,null,null,null,null,null,null,null,null,null,null,null,null,null,null,null,null,null,null,null,null,null,null,null,null,null,null,null,null,null,null,null,null,null,"","","","","",null,null,null,null,null,null,null,null,"",null,"","","","","","","",""]
["",null,null,null,null,null,"","",null,null,null,null,null,null,null,null,null,null,null,null,null,null,null,null,null,null,"","","","",null,null,"",null,null,null,null,null,null,null,null,null,null,null,null,null,null,null,null,null,null,null,null,null,null,null,null,null,null,null,"","","",null,null,null,null,"","","","",null,null,null,null,null,null,null,null,null,null,null,null,null,null,null,null,null,null,null,null,null,null,null,null,null,null,null,null,null,null,null,null,null,null,null,null,null,null,null,null,null,null,null,null,null,null,null,null,null,null,null,null,"","","","","",null,null,null,null,null,null,null,null,"",null,"","","","","","","",""]
["",null,null,null,null,null,"","",null,null,null,null,null,null,null,null,null,null,null,null,null,null,null,null,null,null,"","","","",null,null,"",null,null,null,null,null,null,null,null,null,null,null,null,null,null,null,null,null,null,null,null,null,null,null,null,null,null,null,"","","",null,null,null,null,"","","","",null,null,null,null,null,null,null,null,null,null,null,null,null,null,null,null,null,null,null,null,null,null,null,null,null,null,null,null,null,null,null,null,null,null,null,null,null,null,null,null,null,null,null,null,null,null,null,null,null,null,null,null,"","","","","",null,null,null,null,null,null,null,null,"",null,"","","","","","","",""]
["",null,null,null,null,null,"","",null,null,null,null,null,null,null,null,null,null,null,null,null,null,null,null,null,null,"","","","",null,null,"",null,null,null,null,null,null,null,null,null,null,null,null,null,null,null,null,null,null,null,null,null,null,null,null,null,null,null,"","","",null,null,null,null,"","","","",null,null,null,null,null,null,null,null,null,null,null,null,null,null,null,null,null,null,null,null,null,null,null,null,null,null,null,null,null,null,null,null,null,null,null,null,null,null,null,null,null,null,null,null,null,null,null,null,null,null,null,null,"","","","","",null,null,null,null,null,null,null,null,"",null,"","","","","","","",""]
["",null,null,null,null,null,"","",null,null,null,null,null,null,null,null,null,null,null,null,null,null,null,null,null,null,"","","","",null,null,"",null,null,null,null,null,null,null,null,null,null,null,null,null,null,null,null,null,null,null,null,null,null,null,null,null,null,null,"","","",null,null,null,null,"","","","",null,null,null,null,null,null,null,null,null,null,null,null,null,null,null,null,null,null,null,null,null,null,null,null,null,null,null,null,null,null,null,null,null,null,null,null,null,null,null,null,null,null,null,null,null,null,null,null,null,null,null,null,"","","","","",null,null,null,null,null,null,null,null,"",null,"","","","","","","",""]
["",null,null,null,null,null,"","",null,null,null,null,null,null,null,null,null,null,null,null,null,null,null,null,null,null,"","","","",null,null,"",null,null,null,null,null,null,null,null,null,null,null,null,null,null,null,null,null,null,null,null,null,null,null,null,null,null,null,"","","",null,null,null,null,"","","","",null,null,null,null,null,null,null,null,null,null,null,null,null,null,null,null,null,null,null,null,null,null,null,null,null,null,null,null,null,null,null,null,null,null,null,null,null,null,null,null,null,null,null,null,null,null,null,null,null,null,null,null,"","","","","",null,null,null,null,null,null,null,null,"",null,"","","","","","","",""]
["",null,null,null,null,null,"","",null,null,null,null,null,null,null,null,null,null,null,null,null,null,null,null,null,null,"","","","",null,null,"",null,null,null,null,null,null,null,null,null,null,null,null,null,null,null,null,null,null,null,null,null,null,null,null,null,null,null,"","","",null,null,null,null,"","","","",null,null,null,null,null,null,null,null,null,null,null,null,null,null,null,null,null,null,null,null,null,null,null,null,null,null,null,null,null,null,null,null,null,null,null,null,null,null,null,null,null,null,null,null,null,null,null,null,null,null,null,null,"","","","","",null,null,null,null,null,null,null,null,"",null,"","","","","","","",""]
["",null,null,null,null,null,"","",null,null,null,null,null,null,null,null,null,null,null,null,null,null,null,null,null,null,"","","","",null,null,"",null,null,null,null,null,null,null,null,null,null,null,null,null,null,null,null,null,null,null,null,null,null,null,null,null,null,null,"","","",null,null,null,null,"","","","",null,null,null,null,null,null,null,null,null,null,null,null,null,null,null,null,null,null,null,null,null,null,null,null,null,null,null,null,null,null,null,null,null,null,null,null,null,null,null,null,null,null,null,null,null,null,null,null,null,null,null,null,"","","","","",null,null,null,null,null,null,null,null,"",null,"","","","","","","",""]
["",null,null,null,null,null,"","",null,null,null,null,null,null,null,null,null,null,null,null,null,null,null,null,null,null,"","","","",null,null,"",null,null,null,null,null,null,null,null,null,null,null,null,null,null,null,null,null,null,null,null,null,null,null,null,null,null,null,"","","",null,null,null,null,"","","","",null,null,null,null,null,null,null,null,null,null,null,null,null,null,null,null,null,null,null,null,null,null,null,null,null,null,null,null,null,null,null,null,null,null,null,null,null,null,null,null,null,null,null,null,null,null,null,null,null,null,null,null,"","","","","",null,null,null,null,null,null,null,null,"",null,"","","","","","","",""]
["",null,null,null,null,null,"","",null,null,null,null,null,null,null,null,null,null,null,null,null,null,null,null,null,null,"","","","",null,null,"",null,null,null,null,null,null,null,null,null,null,null,null,null,null,null,null,null,null,null,null,null,null,null,null,null,null,null,"","","",null,null,null,null,"","","","",null,null,null,null,null,null,null,null,null,null,null,null,null,null,null,null,null,null,null,null,null,null,null,null,null,null,null,null,null,null,null,null,null,null,null,null,null,null,null,null,null,null,null,null,null,null,null,null,null,null,null,null,"","","","","",null,null,null,null,null,null,null,null,"",null,"","","","","","","",""]
["",null,null,null,null,null,"","",null,null,null,null,null,null,null,null,null,null,null,null,null,null,null,null,null,null,"","","","",null,null,"",null,null,null,null,null,null,null,null,null,null,null,null,null,null,null,null,null,null,null,null,null,null,null,null,null,null,null,"","","",null,null,null,null,"","","","",null,null,null,null,null,null,null,null,null,null,null,null,null,null,null,null,null,null,null,null,null,null,null,null,null,null,null,null,null,null,null,null,null,null,null,null,null,null,null,null,null,null,null,null,null,null,null,null,null,null,null,null,"","","","","",null,null,null,null,null,null,null,null,"",null,"","","","","","","",""]
["",null,null,null,null,null,"","",null,null,null,null,null,null,null,null,null,null,null,null,null,null,null,null,null,null,"","","","",null,null,"",null,null,null,null,null,null,null,null,null,null,null,null,null,null,null,null,null,null,null,null,null,null,null,null,null,null,null,"","","",null,null,null,null,"","","","",null,null,null,null,null,null,null,null,null,null,null,null,null,null,null,null,null,null,null,null,null,null,null,null,null,null,null,null,null,null,null,null,null,null,null,null,null,null,null,null,null,null,null,null,null,null,null,null,null,null,null,null,"","","","","",null,null,null,null,null,null,null,null,"",null,"","","","","","","",""]
["",null,null,null,null,null,"","",null,null,null,null,null,null,null,null,null,null,null,null,null,null,null,null,null,null,"","","","",null,null,"",null,null,null,null,null,null,null,null,null,null,null,null,null,null,null,null,null,null,null,null,null,null,null,null,null,null,null,"","","",null,null,null,null,"","","","",null,null,null,null,null,null,null,null,null,null,null,null,null,null,null,null,null,null,null,null,null,null,null,null,null,null,null,null,null,null,null,null,null,null,null,null,null,null,null,null,null,null,null,null,null,null,null,null,null,null,null,null,"","","","","",null,null,null,null,null,null,null,null,"",null,"","","","","","","",""]
["",null,null,null,null,null,"","",null,null,null,null,null,null,null,null,null,null,null,null,null,null,null,null,null,null,"","","","",null,null,"",null,null,null,null,null,null,null,null,null,null,null,null,null,null,null,null,null,null,null,null,null,null,null,null,null,null,null,"","","",null,null,null,null,"","","","",null,null,null,null,null,null,null,null,null,null,null,null,null,null,null,null,null,null,null,null,null,null,null,null,null,null,null,null,null,null,null,null,null,null,null,null,null,null,null,null,null,null,null,null,null,null,null,null,null,null,null,null,"","","","","",null,null,null,null,null,null,null,null,"",null,"","","","","","","",""]
["",null,null,null,null,null,"","",null,null,null,null,null,null,null,null,null,null,null,null,null,null,null,null,null,null,"","","","",null,null,"",null,null,null,null,null,null,null,null,null,null,null,null,null,null,null,null,null,null,null,null,null,null,null,null,null,null,null,"","","",null,null,null,null,"","","","",null,null,null,null,null,null,null,null,null,null,null,null,null,null,null,null,null,null,null,null,null,null,null,null,null,null,null,null,null,null,null,null,null,null,null,null,null,null,null,null,null,null,null,null,null,null,null,null,null,null,null,null,"","","","","",null,null,null,null,null,null,null,null,"",null,"","","","","","","",""]
["",null,null,null,null,null,"","",null,null,null,null,null,null,null,null,null,null,null,null,null,null,null,null,null,null,"","","","",null,null,"",null,null,null,null,null,null,null,null,null,null,null,null,null,null,null,null,null,null,null,null,null,null,null,null,null,null,null,"","","",null,null,null,null,"","","","",null,null,null,null,null,null,null,null,null,null,null,null,null,null,null,null,null,null,null,null,null,null,null,null,null,null,null,null,null,null,null,null,null,null,null,null,null,null,null,null,null,null,null,null,null,null,null,null,null,null,null,null,"","","","","",null,null,null,null,null,null,null,null,"",null,"","","","","","","",""]
["",null,null,null,null,null,"","",null,null,null,null,null,null,null,null,null,null,null,null,null,null,null,null,null,null,"","","","",null,null,"",null,null,null,null,null,null,null,null,null,null,null,null,null,null,null,null,null,null,null,null,null,null,null,null,null,null,null,"","","",null,null,null,null,"","","","",null,null,null,null,null,null,null,null,null,null,null,null,null,null,null,null,null,null,null,null,null,null,null,null,null,null,null,null,null,null,null,null,null,null,null,null,null,null,null,null,null,null,null,null,null,null,null,null,null,null,null,null,"","","","","",null,null,null,null,null,null,null,null,"",null,"","","","","","","",""]
["",null,null,null,null,null,"","",null,null,null,null,null,null,null,null,null,null,null,null,null,null,null,null,null,null,"","","","",null,null,"",null,null,null,null,null,null,null,null,null,null,null,null,null,null,null,null,null,null,null,null,null,null,null,null,null,null,null,"","","",null,null,null,null,"","","","",null,null,null,null,null,null,null,null,null,null,null,null,null,null,null,null,null,null,null,null,null,null,null,null,null,null,null,null,null,null,null,null,null,null,null,null,null,null,null,null,null,null,null,null,null,null,null,null,null,null,null,null,"","","","","",null,null,null,null,null,null,null,null,"",null,"","","","","","","",""]
["",null,null,null,null,null,"","",null,null,null,null,null,null,null,null,null,null,null,null,null,null,null,null,null,null,"","","","",null,null,"",null,null,null,null,null,null,null,null,null,null,null,null,null,null,null,null,null,null,null,null,null,null,null,null,null,null,null,"","","",null,null,null,null,"","","","",null,null,null,null,null,null,null,null,null,null,null,null,null,null,null,null,null,null,null,null,null,null,null,null,null,null,null,null,null,null,null,null,null,null,null,null,null,null,null,null,null,null,null,null,null,null,null,null,null,null,null,null,"","","","","",null,null,null,null,null,null,null,null,"",null,"","","","","","","",""]
["",null,null,null,null,null,"","",null,null,null,null,null,null,null,null,null,null,null,null,null,null,null,null,null,null,"","","","",null,null,"",null,null,null,null,null,null,null,null,null,null,null,null,null,null,null,null,null,null,null,null,null,null,null,null,null,null,null,"","","",null,null,null,null,"","","","",null,null,null,null,null,null,null,null,null,null,null,null,null,null,null,null,null,null,null,null,null,null,null,null,null,null,null,null,null,null,null,null,null,null,null,null,null,null,null,null,null,null,null,null,null,null,null,null,null,null,null,null,"","","","","",null,null,null,null,null,null,null,null,"",null,"","","","","","","",""]
["",null,null,null,null,null,"","",null,null,null,null,null,null,null,null,null,null,null,null,null,null,null,null,null,null,"","","","",null,null,"",null,null,null,null,null,null,null,null,null,null,null,null,null,null,null,null,null,null,null,null,null,null,null,null,null,null,null,"","","",null,null,null,null,"","","","",null,null,null,null,null,null,null,null,null,null,null,null,null,null,null,null,null,null,null,null,null,null,null,null,null,null,null,null,null,null,null,null,null,null,null,null,null,null,null,null,null,null,null,null,null,null,null,null,null,null,null,null,"","","","","",null,null,null,null,null,null,null,null,"",null,"","","","","","","",""]
["",null,null,null,null,null,"","",null,null,null,null,null,null,null,null,null,null,null,null,null,null,null,null,null,null,"","","","",null,null,"",null,null,null,null,null,null,null,null,null,null,null,null,null,null,null,null,null,null,null,null,null,null,null,null,null,null,null,"","","",null,null,null,null,"","","","",null,null,null,null,null,null,null,null,null,null,null,null,null,null,null,null,null,null,null,null,null,null,null,null,null,null,null,null,null,null,null,null,null,null,null,null,null,null,null,null,null,null,null,null,null,null,null,null,null,null,null,null,"","","","","",null,null,null,null,null,null,null,null,"",null,"","","","","","","",""]
["",null,null,null,null,null,"","",null,null,null,null,null,null,null,null,null,null,null,null,null,null,null,null,null,null,"","","","",null,null,"",null,null,null,null,null,null,null,null,null,null,null,null,null,null,null,null,null,null,null,null,null,null,null,null,null,null,null,"","","",null,null,null,null,"","","","",null,null,null,null,null,null,null,null,null,null,null,null,null,null,null,null,null,null,null,null,null,null,null,null,null,null,null,null,null,null,null,null,null,null,null,null,null,null,null,null,null,null,null,null,null,null,null,null,null,null,null,null,"","","","","",null,null,null,null,null,null,null,null,"",null,"","","","","","","",""]
["",null,null,null,null,null,"","",null,null,null,null,null,null,null,null,null,null,null,null,null,null,null,null,null,null,"","","","",null,null,"",null,null,null,null,null,null,null,null,null,null,null,null,null,null,null,null,null,null,null,null,null,null,null,null,null,null,null,"","","",null,null,null,null,"","","","",null,null,null,null,null,null,null,null,null,null,null,null,null,null,null,null,null,null,null,null,null,null,null,null,null,null,null,null,null,null,null,null,null,null,null,null,null,null,null,null,null,null,null,null,null,null,null,null,null,null,null,null,"","","","","",null,null,null,null,null,null,null,null,"",null,"","","","","","","",""]
["",null,null,null,null,null,"","",null,null,null,null,null,null,null,null,null,null,null,null,null,null,null,null,null,null,"","","","",null,null,"",null,null,null,null,null,null,null,null,null,null,null,null,null,null,null,null,null,null,null,null,null,null,null,null,null,null,null,"","","",null,null,null,null,"","","","",null,null,null,null,null,null,null,null,null,null,null,null,null,null,null,null,null,null,null,null,null,null,null,null,null,null,null,null,null,null,null,null,null,null,null,null,null,null,null,null,null,null,null,null,null,null,null,null,null,null,null,null,"","","","","",null,null,null,null,null,null,null,null,"",null,"","","","","","","",""]
["",null,null,null,null,null,"","",null,null,null,null,null,null,null,null,null,null,null,null,null,null,null,null,null,null,"","","","",null,null,"",null,null,null,null,null,null,null,null,null,null,null,null,null,null,null,null,null,null,null,null,null,null,null,null,null,null,null,"","","",null,null,null,null,"","","","",null,null,null,null,null,null,null,null,null,null,null,null,null,null,null,null,null,null,null,null,null,null,null,null,null,null,null,null,null,null,null,null,null,null,null,null,null,null,null,null,null,null,null,null,null,null,null,null,null,null,null,null,"","","","","",null,null,null,null,null,null,null,null,"",null,"","","","","","","",""]
["",null,null,null,null,null,"","",null,null,null,null,null,null,null,null,null,null,null,null,null,null,null,null,null,null,"","","","",null,null,"",null,null,null,null,null,null,null,null,null,null,null,null,null,null,null,null,null,null,null,null,null,null,null,null,null,null,null,"","","",null,null,null,null,"","","","",null,null,null,null,null,null,null,null,null,null,null,null,null,null,null,null,null,null,null,null,null,null,null,null,null,null,null,null,null,null,null,null,null,null,null,null,null,null,null,null,null,null,null,null,null,null,null,null,null,null,null,null,"","","","","",null,null,null,null,null,null,null,null,"",null,"","","","","","","",""]
["",null,null,null,null,null,"","",null,null,null,null,null,null,null,null,null,null,null,null,null,null,null,null,null,null,"","","","",null,null,"",null,null,null,null,null,null,null,null,null,null,null,null,null,null,null,null,null,null,null,null,null,null,null,null,null,null,null,"","","",null,null,null,null,"","","","",null,null,null,null,null,null,null,null,null,null,null,null,null,null,null,null,null,null,null,null,null,null,null,null,null,null,null,null,null,null,null,null,null,null,null,null,null,null,null,null,null,null,null,null,null,null,null,null,null,null,null,null,"","","","","",null,null,null,null,null,null,null,null,"",null,"","","","","","","",""]
["",null,null,null,null,null,"","",null,null,null,null,null,null,null,null,null,null,null,null,null,null,null,null,null,null,"","","","",null,null,"",null,null,null,null,null,null,null,null,null,null,null,null,null,null,null,null,null,null,null,null,null,null,null,null,null,null,null,"","","",null,null,null,null,"","","","",null,null,null,null,null,null,null,null,null,null,null,null,null,null,null,null,null,null,null,null,null,null,null,null,null,null,null,null,null,null,null,null,null,null,null,null,null,null,null,null,null,null,null,null,null,null,null,null,null,null,null,null,"","","","","",null,null,null,null,null,null,null,null,"",null,"","","","","","","",""]
["",null,null,null,null,null,"","",null,null,null,null,null,null,null,null,null,null,null,null,null,null,null,null,null,null,"","","","",null,null,"",null,null,null,null,null,null,null,null,null,null,null,null,null,null,null,null,null,null,null,null,null,null,null,null,null,null,null,"","","",null,null,null,null,"","","","",null,null,null,null,null,null,null,null,null,null,null,null,null,null,null,null,null,null,null,null,null,null,null,null,null,null,null,null,null,null,null,null,null,null,null,null,null,null,null,null,null,null,null,null,null,null,null,null,null,null,null,null,"","","","","",null,null,null,null,null,null,null,null,"",null,"","","","","","","",""]
["",null,null,null,null,null,"","",null,null,null,null,null,null,null,null,null,null,null,null,null,null,null,null,null,null,"","","","",null,null,"",null,null,null,null,null,null,null,null,null,null,null,null,null,null,null,null,null,null,null,null,null,null,null,null,null,null,null,"","","",null,null,null,null,"","","","",null,null,null,null,null,null,null,null,null,null,null,null,null,null,null,null,null,null,null,null,null,null,null,null,null,null,null,null,null,null,null,null,null,null,null,null,null,null,null,null,null,null,null,null,null,null,null,null,null,null,null,null,"","","","","",null,null,null,null,null,null,null,null,"",null,"","","","","","","",""]
["",null,null,null,null,null,"","",null,null,null,null,null,null,null,null,null,null,null,null,null,null,null,null,null,null,"","","","",null,null,"",null,null,null,null,null,null,null,null,null,null,null,null,null,null,null,null,null,null,null,null,null,null,null,null,null,null,null,"","","",null,null,null,null,"","","","",null,null,null,null,null,null,null,null,null,null,null,null,null,null,null,null,null,null,null,null,null,null,null,null,null,null,null,null,null,null,null,null,null,null,null,null,null,null,null,null,null,null,null,null,null,null,null,null,null,null,null,null,"","","","","",null,null,null,null,null,null,null,null,"",null,"","","","","","","",""]
["",null,null,null,null,null,"","",null,null,null,null,null,null,null,null,null,null,null,null,null,null,null,null,null,null,"","","","",null,null,"",null,null,null,null,null,null,null,null,null,null,null,null,null,null,null,null,null,null,null,null,null,null,null,null,null,null,null,"","","",null,null,null,null,"","","","",null,null,null,null,null,null,null,null,null,null,null,null,null,null,null,null,null,null,null,null,null,null,null,null,null,null,null,null,null,null,null,null,null,null,null,null,null,null,null,null,null,null,null,null,null,null,null,null,null,null,null,null,"","","","","",null,null,null,null,null,null,null,null,"",null,"","","","","","","",""]
["",null,null,null,null,null,"","",null,null,null,null,null,null,null,null,null,null,null,null,null,null,null,null,null,null,"","","","",null,null,"",null,null,null,null,null,null,null,null,null,null,null,null,null,null,null,null,null,null,null,null,null,null,null,null,null,null,null,"","","",null,null,null,null,"","","","",null,null,null,null,null,null,null,null,null,null,null,null,null,null,null,null,null,null,null,null,null,null,null,null,null,null,null,null,null,null,null,null,null,null,null,null,null,null,null,null,null,null,null,null,null,null,null,null,null,null,null,null,"","","","","",null,null,null,null,null,null,null,null,"",null,"","","","","","","",""]
["",null,null,null,null,null,"","",null,null,null,null,null,null,null,null,null,null,null,null,null,null,null,null,null,null,"","","","",null,null,"",null,null,null,null,null,null,null,null,null,null,null,null,null,null,null,null,null,null,null,null,null,null,null,null,null,null,null,"","","",null,null,null,null,"","","","",null,null,null,null,null,null,null,null,null,null,null,null,null,null,null,null,null,null,null,null,null,null,null,null,null,null,null,null,null,null,null,null,null,null,null,null,null,null,null,null,null,null,null,null,null,null,null,null,null,null,null,null,"","","","","",null,null,null,null,null,null,null,null,"",null,"","","","","","","",""]
["",null,null,null,null,null,"","",null,null,null,null,null,null,null,null,null,null,null,null,null,null,null,null,null,null,"","","","",null,null,"",null,null,null,null,null,null,null,null,null,null,null,null,null,null,null,null,null,null,null,null,null,null,null,null,null,null,null,"","","",null,null,null,null,"","","","",null,null,null,null,null,null,null,null,null,null,null,null,null,null,null,null,null,null,null,null,null,null,null,null,null,null,null,null,null,null,null,null,null,null,null,null,null,null,null,null,null,null,null,null,null,null,null,null,null,null,null,null,"","","","","",null,null,null,null,null,null,null,null,"",null,"","","","","","","",""]
["",null,null,null,null,null,"","",null,null,null,null,null,null,null,null,null,null,null,null,null,null,null,null,null,null,"","","","",null,null,"",null,null,null,null,null,null,null,null,null,null,null,null,null,null,null,null,null,null,null,null,null,null,null,null,null,null,null,"","","",null,null,null,null,"","","","",null,null,null,null,null,null,null,null,null,null,null,null,null,null,null,null,null,null,null,null,null,null,null,null,null,null,null,null,null,null,null,null,null,null,null,null,null,null,null,null,null,null,null,null,null,null,null,null,null,null,null,null,"","","","","",null,null,null,null,null,null,null,null,"",null,"","","","","","","",""]
["",null,null,null,null,null,"","",null,null,null,null,null,null,null,null,null,null,null,null,null,null,null,null,null,null,"","","","",null,null,"",null,null,null,null,null,null,null,null,null,null,null,null,null,null,null,null,null,null,null,null,null,null,null,null,null,null,null,"","","",null,null,null,null,"","","","",null,null,null,null,null,null,null,null,null,null,null,null,null,null,null,null,null,null,null,null,null,null,null,null,null,null,null,null,null,null,null,null,null,null,null,null,null,null,null,null,null,null,null,null,null,null,null,null,null,null,null,null,"","","","","",null,null,null,null,null,null,null,null,"",null,"","","","","","","",""]
["",null,null,null,null,null,"","",null,null,null,null,null,null,null,null,null,null,null,null,null,null,null,null,null,null,"","","","",null,null,"",null,null,null,null,null,null,null,null,null,null,null,null,null,null,null,null,null,null,null,null,null,null,null,null,null,null,null,"","","",null,null,null,null,"","","","",null,null,null,null,null,null,null,null,null,null,null,null,null,null,null,null,null,null,null,null,null,null,null,null,null,null,null,null,null,null,null,null,null,null,null,null,null,null,null,null,null,null,null,null,null,null,null,null,null,null,null,null,"","","","","",null,null,null,null,null,null,null,null,"",null,"","","","","","","",""]
["",null,null,null,null,null,"","",null,null,null,null,null,null,null,null,null,null,null,null,null,null,null,null,null,null,"","","","",null,null,"",null,null,null,null,null,null,null,null,null,null,null,null,null,null,null,null,null,null,null,null,null,null,null,null,null,null,null,"","","",null,null,null,null,"","","","",null,null,null,null,null,null,null,null,null,null,null,null,null,null,null,null,null,null,null,null,null,null,null,null,null,null,null,null,null,null,null,null,null,null,null,null,null,null,null,null,null,null,null,null,null,null,null,null,null,null,null,null,"","","","","",null,null,null,null,null,null,null,null,"",null,"","","","","","","",""]
["",null,null,null,null,null,"","",null,null,null,null,null,null,null,null,null,null,null,null,null,null,null,null,null,null,"","","","",null,null,"",null,null,null,null,null,null,null,null,null,null,null,null,null,null,null,null,null,null,null,null,null,null,null,null,null,null,null,"","","",null,null,null,null,"","","","",null,null,null,null,null,null,null,null,null,null,null,null,null,null,null,null,null,null,null,null,null,null,null,null,null,null,null,null,null,null,null,null,null,null,null,null,null,null,null,null,null,null,null,null,null,null,null,null,null,null,null,null,"","","","","",null,null,null,null,null,null,null,null,"",null,"","","","","","","",""]
["",null,null,null,null,null,"","",null,null,null,null,null,null,null,null,null,null,null,null,null,null,null,null,null,null,"","","","",null,null,"",null,null,null,null,null,null,null,null,null,null,null,null,null,null,null,null,null,null,null,null,null,null,null,null,null,null,null,"","","",null,null,null,null,"","","","",null,null,null,null,null,null,null,null,null,null,null,null,null,null,null,null,null,null,null,null,null,null,null,null,null,null,null,null,null,null,null,null,null,null,null,null,null,null,null,null,null,null,null,null,null,null,null,null,null,null,null,null,"","","","","",null,null,null,null,null,null,null,null,"",null,"","","","","","","",""]
["",null,null,null,null,null,"","",null,null,null,null,null,null,null,null,null,null,null,null,null,null,null,null,null,null,"","","","",null,null,"",null,null,null,null,null,null,null,null,null,null,null,null,null,null,null,null,null,null,null,null,null,null,null,null,null,null,null,"","","",null,null,null,null,"","","","",null,null,null,null,null,null,null,null,null,null,null,null,null,null,null,null,null,null,null,null,null,null,null,null,null,null,null,null,null,null,null,null,null,null,null,null,null,null,null,null,null,null,null,null,null,null,null,null,null,null,null,null,"","","","","",null,null,null,null,null,null,null,null,"",null,"","","","","","","",""]
["",null,null,null,null,null,"","",null,null,null,null,null,null,null,null,null,null,null,null,null,null,null,null,null,null,"","","","",null,null,"",null,null,null,null,null,null,null,null,null,null,null,null,null,null,null,null,null,null,null,null,null,null,null,null,null,null,null,"","","",null,null,null,null,"","","","",null,null,null,null,null,null,null,null,null,null,null,null,null,null,null,null,null,null,null,null,null,null,null,null,null,null,null,null,null,null,null,null,null,null,null,null,null,null,null,null,null,null,null,null,null,null,null,null,null,null,null,null,"","","","","",null,null,null,null,null,null,null,null,"",null,"","","","","","","",""]
["",null,null,null,null,null,"","",null,null,null,null,null,null,null,null,null,null,null,null,null,null,null,null,null,null,"","","","",null,null,"",null,null,null,null,null,null,null,null,null,null,null,null,null,null,null,null,null,null,null,null,null,null,null,null,null,null,null,"","","",null,null,null,null,"","","","",null,null,null,null,null,null,null,null,null,null,null,null,null,null,null,null,null,null,null,null,null,null,null,null,null,null,null,null,null,null,null,null,null,null,null,null,null,null,null,null,null,null,null,null,null,null,null,null,null,null,null,null,"","","","","",null,null,null,null,null,null,null,null,"",null,"","","","","","","",""]
["",null,null,null,null,null,"","",null,null,null,null,null,null,null,null,null,null,null,null,null,null,null,null,null,null,"","","","",null,null,"",null,null,null,null,null,null,null,null,null,null,null,null,null,null,null,null,null,null,null,null,null,null,null,null,null,null,null,"","","",null,null,null,null,"","","","",null,null,null,null,null,null,null,null,null,null,null,null,null,null,null,null,null,null,null,null,null,null,null,null,null,null,null,null,null,null,null,null,null,null,null,null,null,null,null,null,null,null,null,null,null,null,null,null,null,null,null,null,"","","","","",null,null,null,null,null,null,null,null,"",null,"","","","","","","",""]
["",null,null,null,null,null,"","",null,null,null,null,null,null,null,null,null,null,null,null,null,null,null,null,null,null,"","","","",null,null,"",null,null,null,null,null,null,null,null,null,null,null,null,null,null,null,null,null,null,null,null,null,null,null,null,null,null,null,"","","",null,null,null,null,"","","","",null,null,null,null,null,null,null,null,null,null,null,null,null,null,null,null,null,null,null,null,null,null,null,null,null,null,null,null,null,null,null,null,null,null,null,null,null,null,null,null,null,null,null,null,null,null,null,null,null,null,null,null,"","","","","",null,null,null,null,null,null,null,null,"",null,"","","","","","","",""]
["",null,null,null,null,null,"","",null,null,null,null,null,null,null,null,null,null,null,null,null,null,null,null,null,null,"","","","",null,null,"",null,null,null,null,null,null,null,null,null,null,null,null,null,null,null,null,null,null,null,null,null,null,null,null,null,null,null,"","","",null,null,null,null,"","","","",null,null,null,null,null,null,null,null,null,null,null,null,null,null,null,null,null,null,null,null,null,null,null,null,null,null,null,null,null,null,null,null,null,null,null,null,null,null,null,null,null,null,null,null,null,null,null,null,null,null,null,null,"","","","","",null,null,null,null,null,null,null,null,"",null,"","","","","","","",""]
["",null,null,null,null,null,"","",null,null,null,null,null,null,null,null,null,null,null,null,null,null,null,null,null,null,"","","","",null,null,"",null,null,null,null,null,null,null,null,null,null,null,null,null,null,null,null,null,null,null,null,null,null,null,null,null,null,null,"","","",null,null,null,null,"","","","",null,null,null,null,null,null,null,null,null,null,null,null,null,null,null,null,null,null,null,null,null,null,null,null,null,null,null,null,null,null,null,null,null,null,null,null,null,null,null,null,null,null,null,null,null,null,null,null,null,null,null,null,"","","","","",null,null,null,null,null,null,null,null,"",null,"","","","","","","",""]
["",null,null,null,null,null,"","",null,null,null,null,null,null,null,null,null,null,null,null,null,null,null,null,null,null,"","","","",null,null,"",null,null,null,null,null,null,null,null,null,null,null,null,null,null,null,null,null,null,null,null,null,null,null,null,null,null,null,"","","",null,null,null,null,"","","","",null,null,null,null,null,null,null,null,null,null,null,null,null,null,null,null,null,null,null,null,null,null,null,null,null,null,null,null,null,null,null,null,null,null,null,null,null,null,null,null,null,null,null,null,null,null,null,null,null,null,null,null,"","","","","",null,null,null,null,null,null,null,null,"",null,"","","","","","","",""]
["",null,null,null,null,null,"","",null,null,null,null,null,null,null,null,null,null,null,null,null,null,null,null,null,null,"","","","",null,null,"",null,null,null,null,null,null,null,null,null,null,null,null,null,null,null,null,null,null,null,null,null,null,null,null,null,null,null,"","","",null,null,null,null,"","","","",null,null,null,null,null,null,null,null,null,null,null,null,null,null,null,null,null,null,null,null,null,null,null,null,null,null,null,null,null,null,null,null,null,null,null,null,null,null,null,null,null,null,null,null,null,null,null,null,null,null,null,null,"","","","","",null,null,null,null,null,null,null,null,"",null,"","","","","","","",""]
["",null,null,null,null,null,"","",null,null,null,null,null,null,null,null,null,null,null,null,null,null,null,null,null,null,"","","","",null,null,"",null,null,null,null,null,null,null,null,null,null,null,null,null,null,null,null,null,null,null,null,null,null,null,null,null,null,null,"","","",null,null,null,null,"","","","",null,null,null,null,null,null,null,null,null,null,null,null,null,null,null,null,null,null,null,null,null,null,null,null,null,null,null,null,null,null,null,null,null,null,null,null,null,null,null,null,null,null,null,null,null,null,null,null,null,null,null,null,"","","","","",null,null,null,null,null,null,null,null,"",null,"","","","","","","",""]
["",null,null,null,null,null,"","",null,null,null,null,null,null,null,null,null,null,null,null,null,null,null,null,null,null,"","","","",null,null,"",null,null,null,null,null,null,null,null,null,null,null,null,null,null,null,null,null,null,null,null,null,null,null,null,null,null,null,"","","",null,null,null,null,"","","","",null,null,null,null,null,null,null,null,null,null,null,null,null,null,null,null,null,null,null,null,null,null,null,null,null,null,null,null,null,null,null,null,null,null,null,null,null,null,null,null,null,null,null,null,null,null,null,null,null,null,null,null,"","","","","",null,null,null,null,null,null,null,null,"",null,"","","","","","","",""]
["",null,null,null,null,null,"","",null,null,null,null,null,null,null,null,null,null,null,null,null,null,null,null,null,null,"","","","",null,null,"",null,null,null,null,null,null,null,null,null,null,null,null,null,null,null,null,null,null,null,null,null,null,null,null,null,null,null,"","","",null,null,null,null,"","","","",null,null,null,null,null,null,null,null,null,null,null,null,null,null,null,null,null,null,null,null,null,null,null,null,null,null,null,null,null,null,null,null,null,null,null,null,null,null,null,null,null,null,null,null,null,null,null,null,null,null,null,null,"","","","","",null,null,null,null,null,null,null,null,"",null,"","","","","","","",""]
["",null,null,null,null,null,"","",null,null,null,null,null,null,null,null,null,null,null,null,null,null,null,null,null,null,"","","","",null,null,"",null,null,null,null,null,null,null,null,null,null,null,null,null,null,null,null,null,null,null,null,null,null,null,null,null,null,null,"","","",null,null,null,null,"","","","",null,null,null,null,null,null,null,null,null,null,null,null,null,null,null,null,null,null,null,null,null,null,null,null,null,null,null,null,null,null,null,null,null,null,null,null,null,null,null,null,null,null,null,null,null,null,null,null,null,null,null,null,"","","","","",null,null,null,null,null,null,null,null,"",null,"","","","","","","",""]
["",null,null,null,null,null,"","",null,null,null,null,null,null,null,null,null,null,null,null,null,null,null,null,null,null,"","","","",null,null,"",null,null,null,null,null,null,null,null,null,null,null,null,null,null,null,null,null,null,null,null,null,null,null,null,null,null,null,"","","",null,null,null,null,"","","","",null,null,null,null,null,null,null,null,null,null,null,null,null,null,null,null,null,null,null,null,null,null,null,null,null,null,null,null,null,null,null,null,null,null,null,null,null,null,null,null,null,null,null,null,null,null,null,null,null,null,null,null,"","","","","",null,null,null,null,null,null,null,null,"",null,"","","","","","","",""]
["",null,null,null,null,null,"","",null,null,null,null,null,null,null,null,null,null,null,null,null,null,null,null,null,null,"","","","",null,null,"",null,null,null,null,null,null,null,null,null,null,null,null,null,null,null,null,null,null,null,null,null,null,null,null,null,null,null,"","","",null,null,null,null,"","","","",null,null,null,null,null,null,null,null,null,null,null,null,null,null,null,null,null,null,null,null,null,null,null,null,null,null,null,null,null,null,null,null,null,null,null,null,null,null,null,null,null,null,null,null,null,null,null,null,null,null,null,null,"","","","","",null,null,null,null,null,null,null,null,"",null,"","","","","","","",""]
["",null,null,null,null,null,"","",null,null,null,null,null,null,null,null,null,null,null,null,null,null,null,null,null,null,"","","","",null,null,"",null,null,null,null,null,null,null,null,null,null,null,null,null,null,null,null,null,null,null,null,null,null,null,null,null,null,null,"","","",null,null,null,null,"","","","",null,null,null,null,null,null,null,null,null,null,null,null,null,null,null,null,null,null,null,null,null,null,null,null,null,null,null,null,null,null,null,null,null,null,null,null,null,null,null,null,null,null,null,null,null,null,null,null,null,null,null,null,"","","","","",null,null,null,null,null,null,null,null,"",null,"","","","","","","",""]
["",null,null,null,null,null,"","",null,null,null,null,null,null,null,null,null,null,null,null,null,null,null,null,null,null,"","","","",null,null,"",null,null,null,null,null,null,null,null,null,null,null,null,null,null,null,null,null,null,null,null,null,null,null,null,null,null,null,"","","",null,null,null,null,"","","","",null,null,null,null,null,null,null,null,null,null,null,null,null,null,null,null,null,null,null,null,null,null,null,null,null,null,null,null,null,null,null,null,null,null,null,null,null,null,null,null,null,null,null,null,null,null,null,null,null,null,null,null,"","","","","",null,null,null,null,null,null,null,null,"",null,"","","","","","","",""]
["",null,null,null,null,null,"","",null,null,null,null,null,null,null,null,null,null,null,null,null,null,null,null,null,null,"","","","",null,null,"",null,null,null,null,null,null,null,null,null,null,null,null,null,null,null,null,null,null,null,null,null,null,null,null,null,null,null,"","","",null,null,null,null,"","","","",null,null,null,null,null,null,null,null,null,null,null,null,null,null,null,null,null,null,null,null,null,null,null,null,null,null,null,null,null,null,null,null,null,null,null,null,null,null,null,null,null,null,null,null,null,null,null,null,null,null,null,null,"","","","","",null,null,null,null,null,null,null,null,"",null,"","","","","","","",""]
["",null,null,null,null,null,"","",null,null,null,null,null,null,null,null,null,null,null,null,null,null,null,null,null,null,"","","","",null,null,"",null,null,null,null,null,null,null,null,null,null,null,null,null,null,null,null,null,null,null,null,null,null,null,null,null,null,null,"","","",null,null,null,null,"","","","",null,null,null,null,null,null,null,null,null,null,null,null,null,null,null,null,null,null,null,null,null,null,null,null,null,null,null,null,null,null,null,null,null,null,null,null,null,null,null,null,null,null,null,null,null,null,null,null,null,null,null,null,"","","","","",null,null,null,null,null,null,null,null,"",null,"","","","","","","",""]
["",null,null,null,null,null,"","",null,null,null,null,null,null,null,null,null,null,null,null,null,null,null,null,null,null,"","","","",null,null,"",null,null,null,null,null,null,null,null,null,null,null,null,null,null,null,null,null,null,null,null,null,null,null,null,null,null,null,"","","",null,null,null,null,"","","","",null,null,null,null,null,null,null,null,null,null,null,null,null,null,null,null,null,null,null,null,null,null,null,null,null,null,null,null,null,null,null,null,null,null,null,null,null,null,null,null,null,null,null,null,null,null,null,null,null,null,null,null,"","","","","",null,null,null,null,null,null,null,null,"",null,"","","","","","","",""]
["",null,null,null,null,null,"","",null,null,null,null,null,null,null,null,null,null,null,null,null,null,null,null,null,null,"","","","",null,null,"",null,null,null,null,null,null,null,null,null,null,null,null,null,null,null,null,null,null,null,null,null,null,null,null,null,null,null,"","","",null,null,null,null,"","","","",null,null,null,null,null,null,null,null,null,null,null,null,null,null,null,null,null,null,null,null,null,null,null,null,null,null,null,null,null,null,null,null,null,null,null,null,null,null,null,null,null,null,null,null,null,null,null,null,null,null,null,null,"","","","","",null,null,null,null,null,null,null,null,"",null,"","","","","","","",""]
["",null,null,null,null,null,"","",null,null,null,null,null,null,null,null,null,null,null,null,null,null,null,null,null,null,"","","","",null,null,"",null,null,null,null,null,null,null,null,null,null,null,null,null,null,null,null,null,null,null,null,null,null,null,null,null,null,null,"","","",null,null,null,null,"","","","",null,null,null,null,null,null,null,null,null,null,null,null,null,null,null,null,null,null,null,null,null,null,null,null,null,null,null,null,null,null,null,null,null,null,null,null,null,null,null,null,null,null,null,null,null,null,null,null,null,null,null,null,"","","","","",null,null,null,null,null,null,null,null,"",null,"","","","","","","",""]
["",null,null,null,null,null,"","",null,null,null,null,null,null,null,null,null,null,null,null,null,null,null,null,null,null,"","","","",null,null,"",null,null,null,null,null,null,null,null,null,null,null,null,null,null,null,null,null,null,null,null,null,null,null,null,null,null,null,"","","",null,null,null,null,"","","","",null,null,null,null,null,null,null,null,null,null,null,null,null,null,null,null,null,null,null,null,null,null,null,null,null,null,null,null,null,null,null,null,null,null,null,null,null,null,null,null,null,null,null,null,null,null,null,null,null,null,null,null,"","","","","",null,null,null,null,null,null,null,null,"",null,"","","","","","","",""]
["",null,null,null,null,null,"","",null,null,null,null,null,null,null,null,null,null,null,null,null,null,null,null,null,null,"","","","",null,null,"",null,null,null,null,null,null,null,null,null,null,null,null,null,null,null,null,null,null,null,null,null,null,null,null,null,null,null,"","","",null,null,null,null,"","","","",null,null,null,null,null,null,null,null,null,null,null,null,null,null,null,null,null,null,null,null,null,null,null,null,null,null,null,null,null,null,null,null,null,null,null,null,null,null,null,null,null,null,null,null,null,null,null,null,null,null,null,null,"","","","","",null,null,null,null,null,null,null,null,"",null,"","","","","","","",""]
["",null,null,null,null,null,"","",null,null,null,null,null,null,null,null,null,null,null,null,null,null,null,null,null,null,"","","","",null,null,"",null,null,null,null,null,null,null,null,null,null,null,null,null,null,null,null,null,null,null,null,null,null,null,null,null,null,null,"","","",null,null,null,null,"","","","",null,null,null,null,null,null,null,null,null,null,null,null,null,null,null,null,null,null,null,null,null,null,null,null,null,null,null,null,null,null,null,null,null,null,null,null,null,null,null,null,null,null,null,null,null,null,null,null,null,null,null,null,"","","","","",null,null,null,null,null,null,null,null,"",null,"","","","","","","",""]
["",null,null,null,null,null,"","",null,null,null,null,null,null,null,null,null,null,null,null,null,null,null,null,null,null,"","","","",null,null,"",null,null,null,null,null,null,null,null,null,null,null,null,null,null,null,null,null,null,null,null,null,null,null,null,null,null,null,"","","",null,null,null,null,"","","","",null,null,null,null,null,null,null,null,null,null,null,null,null,null,null,null,null,null,null,null,null,null,null,null,null,null,null,null,null,null,null,null,null,null,null,null,null,null,null,null,null,null,null,null,null,null,null,null,null,null,null,null,"","","","","",null,null,null,null,null,null,null,null,"",null,"","","","","","","",""]
["",null,null,null,null,null,"","",null,null,null,null,null,null,null,null,null,null,null,null,null,null,null,null,null,null,"","","","",null,null,"",null,null,null,null,null,null,null,null,null,null,null,null,null,null,null,null,null,null,null,null,null,null,null,null,null,null,null,"","","",null,null,null,null,"","","","",null,null,null,null,null,null,null,null,null,null,null,null,null,null,null,null,null,null,null,null,null,null,null,null,null,null,null,null,null,null,null,null,null,null,null,null,null,null,null,null,null,null,null,null,null,null,null,null,null,null,null,null,"","","","","",null,null,null,null,null,null,null,null,"",null,"","","","","","","",""]
["",null,null,null,null,null,"","",null,null,null,null,null,null,null,null,null,null,null,null,null,null,null,null,null,null,"","","","",null,null,"",null,null,null,null,null,null,null,null,null,null,null,null,null,null,null,null,null,null,null,null,null,null,null,null,null,null,null,"","","",null,null,null,null,"","","","",null,null,null,null,null,null,null,null,null,null,null,null,null,null,null,null,null,null,null,null,null,null,null,null,null,null,null,null,null,null,null,null,null,null,null,null,null,null,null,null,null,null,null,null,null,null,null,null,null,null,null,null,"","","","","",null,null,null,null,null,null,null,null,"",null,"","","","","","","",""]
["",null,null,null,null,null,"","",null,null,null,null,null,null,null,null,null,null,null,null,null,null,null,null,null,null,"","","","",null,null,"",null,null,null,null,null,null,null,null,null,null,null,null,null,null,null,null,null,null,null,null,null,null,null,null,null,null,null,"","","",null,null,null,null,"","","","",null,null,null,null,null,null,null,null,null,null,null,null,null,null,null,null,null,null,null,null,null,null,null,null,null,null,null,null,null,null,null,null,null,null,null,null,null,null,null,null,null,null,null,null,null,null,null,null,null,null,null,null,"","","","","",null,null,null,null,null,null,null,null,"",null,"","","","","","","",""]
["",null,null,null,null,null,"","",null,null,null,null,null,null,null,null,null,null,null,null,null,null,null,null,null,null,"","","","",null,null,"",null,null,null,null,null,null,null,null,null,null,null,null,null,null,null,null,null,null,null,null,null,null,null,null,null,null,null,"","","",null,null,null,null,"","","","",null,null,null,null,null,null,null,null,null,null,null,null,null,null,null,null,null,null,null,null,null,null,null,null,null,null,null,null,null,null,null,null,null,null,null,null,null,null,null,null,null,null,null,null,null,null,null,null,null,null,null,null,"","","","","",null,null,null,null,null,null,null,null,"",null,"","","","","","","",""]
["",null,null,null,null,null,"","",null,null,null,null,null,null,null,null,null,null,null,null,null,null,null,null,null,null,"","","","",null,null,"",null,null,null,null,null,null,null,null,null,null,null,null,null,null,null,null,null,null,null,null,null,null,null,null,null,null,null,"","","",null,null,null,null,"","","","",null,null,null,null,null,null,null,null,null,null,null,null,null,null,null,null,null,null,null,null,null,null,null,null,null,null,null,null,null,null,null,null,null,null,null,null,null,null,null,null,null,null,null,null,null,null,null,null,null,null,null,null,"","","","","",null,null,null,null,null,null,null,null,"",null,"","","","","","","",""]
["",null,null,null,null,null,"","",null,null,null,null,null,null,null,null,null,null,null,null,null,null,null,null,null,null,"","","","",null,null,"",null,null,null,null,null,null,null,null,null,null,null,null,null,null,null,null,null,null,null,null,null,null,null,null,null,null,null,"","","",null,null,null,null,"","","","",null,null,null,null,null,null,null,null,null,null,null,null,null,null,null,null,null,null,null,null,null,null,null,null,null,null,null,null,null,null,null,null,null,null,null,null,null,null,null,null,null,null,null,null,null,null,null,null,null,null,null,null,"","","","","",null,null,null,null,null,null,null,null,"",null,"","","","","","","",""]
["",null,null,null,null,null,"","",null,null,null,null,null,null,null,null,null,null,null,null,null,null,null,null,null,null,"","","","",null,null,"",null,null,null,null,null,null,null,null,null,null,null,null,null,null,null,null,null,null,null,null,null,null,null,null,null,null,null,"","","",null,null,null,null,"","","","",null,null,null,null,null,null,null,null,null,null,null,null,null,null,null,null,null,null,null,null,null,null,null,null,null,null,null,null,null,null,null,null,null,null,null,null,null,null,null,null,null,null,null,null,null,null,null,null,null,null,null,null,"","","","","",null,null,null,null,null,null,null,null,"",null,"","","","","","","",""]
["",null,null,null,null,null,"","",null,null,null,null,null,null,null,null,null,null,null,null,null,null,null,null,null,null,"","","","",null,null,"",null,null,null,null,null,null,null,null,null,null,null,null,null,null,null,null,null,null,null,null,null,null,null,null,null,null,null,"","","",null,null,null,null,"","","","",null,null,null,null,null,null,null,null,null,null,null,null,null,null,null,null,null,null,null,null,null,null,null,null,null,null,null,null,null,null,null,null,null,null,null,null,null,null,null,null,null,null,null,null,null,null,null,null,null,null,null,null,"","","","","",null,null,null,null,null,null,null,null,"",null,"","","","","","","",""]
["",null,null,null,null,null,"","",null,null,null,null,null,null,null,null,null,null,null,null,null,null,null,null,null,null,"","","","",null,null,"",null,null,null,null,null,null,null,null,null,null,null,null,null,null,null,null,null,null,null,null,null,null,null,null,null,null,null,"","","",null,null,null,null,"","","","",null,null,null,null,null,null,null,null,null,null,null,null,null,null,null,null,null,null,null,null,null,null,null,null,null,null,null,null,null,null,null,null,null,null,null,null,null,null,null,null,null,null,null,null,null,null,null,null,null,null,null,null,"","","","","",null,null,null,null,null,null,null,null,"",null,"","","","","","","",""]
["",null,null,null,null,null,"","",null,null,null,null,null,null,null,null,null,null,null,null,null,null,null,null,null,null,"","","","",null,null,"",null,null,null,null,null,null,null,null,null,null,null,null,null,null,null,null,null,null,null,null,null,null,null,null,null,null,null,"","","",null,null,null,null,"","","","",null,null,null,null,null,null,null,null,null,null,null,null,null,null,null,null,null,null,null,null,null,null,null,null,null,null,null,null,null,null,null,null,null,null,null,null,null,null,null,null,null,null,null,null,null,null,null,null,null,null,null,null,"","","","","",null,null,null,null,null,null,null,null,"",null,"","","","","","","",""]
["",null,null,null,null,null,"","",null,null,null,null,null,null,null,null,null,null,null,null,null,null,null,null,null,null,"","","","",null,null,"",null,null,null,null,null,null,null,null,null,null,null,null,null,null,null,null,null,null,null,null,null,null,null,null,null,null,null,"","","",null,null,null,null,"","","","",null,null,null,null,null,null,null,null,null,null,null,null,null,null,null,null,null,null,null,null,null,null,null,null,null,null,null,null,null,null,null,null,null,null,null,null,null,null,null,null,null,null,null,null,null,null,null,null,null,null,null,null,"","","","","",null,null,null,null,null,null,null,null,"",null,"","","","","","","",""]
["",null,null,null,null,null,"","",null,null,null,null,null,null,null,null,null,null,null,null,null,null,null,null,null,null,"","","","",null,null,"",null,null,null,null,null,null,null,null,null,null,null,null,null,null,null,null,null,null,null,null,null,null,null,null,null,null,null,"","","",null,null,null,null,"","","","",null,null,null,null,null,null,null,null,null,null,null,null,null,null,null,null,null,null,null,null,null,null,null,null,null,null,null,null,null,null,null,null,null,null,null,null,null,null,null,null,null,null,null,null,null,null,null,null,null,null,null,null,"","","","","",null,null,null,null,null,null,null,null,"",null,"","","","","","","",""]
["",null,null,null,null,null,"","",null,null,null,null,null,null,null,null,null,null,null,null,null,null,null,null,null,null,"","","","",null,null,"",null,null,null,null,null,null,null,null,null,null,null,null,null,null,null,null,null,null,null,null,null,null,null,null,null,null,null,"","","",null,null,null,null,"","","","",null,null,null,null,null,null,null,null,null,null,null,null,null,null,null,null,null,null,null,null,null,null,null,null,null,null,null,null,null,null,null,null,null,null,null,null,null,null,null,null,null,null,null,null,null,null,null,null,null,null,null,null,"","","","","",null,null,null,null,null,null,null,null,"",null,"","","","","","","",""]
["",null,null,null,null,null,"","",null,null,null,null,null,null,null,null,null,null,null,null,null,null,null,null,null,null,"","","","",null,null,"",null,null,null,null,null,null,null,null,null,null,null,null,null,null,null,null,null,null,null,null,null,null,null,null,null,null,null,"","","",null,null,null,null,"","","","",null,null,null,null,null,null,null,null,null,null,null,null,null,null,null,null,null,null,null,null,null,null,null,null,null,null,null,null,null,null,null,null,null,null,null,null,null,null,null,null,null,null,null,null,null,null,null,null,null,null,null,null,"","","","","",null,null,null,null,null,null,null,null,"",null,"","","","","","","",""]
["",null,null,null,null,null,"","",null,null,null,null,null,null,null,null,null,null,null,null,null,null,null,null,null,null,"","","","",null,null,"",null,null,null,null,null,null,null,null,null,null,null,null,null,null,null,null,null,null,null,null,null,null,null,null,null,null,null,"","","",null,null,null,null,"","","","",null,null,null,null,null,null,null,null,null,null,null,null,null,null,null,null,null,null,null,null,null,null,null,null,null,null,null,null,null,null,null,null,null,null,null,null,null,null,null,null,null,null,null,null,null,null,null,null,null,null,null,null,"","","","","",null,null,null,null,null,null,null,null,"",null,"","","","","","","",""]
["",null,null,null,null,null,"","",null,null,null,null,null,null,null,null,null,null,null,null,null,null,null,null,null,null,"","","","",null,null,"",null,null,null,null,null,null,null,null,null,null,null,null,null,null,null,null,null,null,null,null,null,null,null,null,null,null,null,"","","",null,null,null,null,"","","","",null,null,null,null,null,null,null,null,null,null,null,null,null,null,null,null,null,null,null,null,null,null,null,null,null,null,null,null,null,null,null,null,null,null,null,null,null,null,null,null,null,null,null,null,null,null,null,null,null,null,null,null,"","","","","",null,null,null,null,null,null,null,null,"",null,"","","","","","","",""]
["",null,null,null,null,null,"","",null,null,null,null,null,null,null,null,null,null,null,null,null,null,null,null,null,null,"","","","",null,null,"",null,null,null,null,null,null,null,null,null,null,null,null,null,null,null,null,null,null,null,null,null,null,null,null,null,null,null,"","","",null,null,null,null,"","","","",null,null,null,null,null,null,null,null,null,null,null,null,null,null,null,null,null,null,null,null,null,null,null,null,null,null,null,null,null,null,null,null,null,null,null,null,null,null,null,null,null,null,null,null,null,null,null,null,null,null,null,null,"","","","","",null,null,null,null,null,null,null,null,"",null,"","","","","","","",""]
["",null,null,null,null,null,"","",null,null,null,null,null,null,null,null,null,null,null,null,null,null,null,null,null,null,"","","","",null,null,"",null,null,null,null,null,null,null,null,null,null,null,null,null,null,null,null,null,null,null,null,null,null,null,null,null,null,null,"","","",null,null,null,null,"","","","",null,null,null,null,null,null,null,null,null,null,null,null,null,null,null,null,null,null,null,null,null,null,null,null,null,null,null,null,null,null,null,null,null,null,null,null,null,null,null,null,null,null,null,null,null,null,null,null,null,null,null,null,"","","","","",null,null,null,null,null,null,null,null,"",null,"","","","","","","",""]
["",null,null,null,null,null,"","",null,null,null,null,null,null,null,null,null,null,null,null,null,null,null,null,null,null,"","","","",null,null,"",null,null,null,null,null,null,null,null,null,null,null,null,null,null,null,null,null,null,null,null,null,null,null,null,null,null,null,"","","",null,null,null,null,"","","","",null,null,null,null,null,null,null,null,null,null,null,null,null,null,null,null,null,null,null,null,null,null,null,null,null,null,null,null,null,null,null,null,null,null,null,null,null,null,null,null,null,null,null,null,null,null,null,null,null,null,null,null,"","","","","",null,null,null,null,null,null,null,null,"",null,"","","","","","","",""]
["",null,null,null,null,null,"","",null,null,null,null,null,null,null,null,null,null,null,null,null,null,null,null,null,null,"","","","",null,null,"",null,null,null,null,null,null,null,null,null,null,null,null,null,null,null,null,null,null,null,null,null,null,null,null,null,null,null,"","","",null,null,null,null,"","","","",null,null,null,null,null,null,null,null,null,null,null,null,null,null,null,null,null,null,null,null,null,null,null,null,null,null,null,null,null,null,null,null,null,null,null,null,null,null,null,null,null,null,null,null,null,null,null,null,null,null,null,null,"","","","","",null,null,null,null,null,null,null,null,"",null,"","","","","","","",""]
["",null,null,null,null,null,"","",null,null,null,null,null,null,null,null,null,null,null,null,null,null,null,null,null,null,"","","","",null,null,"",null,null,null,null,null,null,null,null,null,null,null,null,null,null,null,null,null,null,null,null,null,null,null,null,null,null,null,"","","",null,null,null,null,"","","","",null,null,null,null,null,null,null,null,null,null,null,null,null,null,null,null,null,null,null,null,null,null,null,null,null,null,null,null,null,null,null,null,null,null,null,null,null,null,null,null,null,null,null,null,null,null,null,null,null,null,null,null,"","","","","",null,null,null,null,null,null,null,null,"",null,"","","","","","","",""]
["",null,null,null,null,null,"","",null,null,null,null,null,null,null,null,null,null,null,null,null,null,null,null,null,null,"","","","",null,null,"",null,null,null,null,null,null,null,null,null,null,null,null,null,null,null,null,null,null,null,null,null,null,null,null,null,null,null,"","","",null,null,null,null,"","","","",null,null,null,null,null,null,null,null,null,null,null,null,null,null,null,null,null,null,null,null,null,null,null,null,null,null,null,null,null,null,null,null,null,null,null,null,null,null,null,null,null,null,null,null,null,null,null,null,null,null,null,null,"","","","","",null,null,null,null,null,null,null,null,"",null,"","","","","","","",""]
["",null,null,null,null,null,"","",null,null,null,null,null,null,null,null,null,null,null,null,null,null,null,null,null,null,"","","","",null,null,"",null,null,null,null,null,null,null,null,null,null,null,null,null,null,null,null,null,null,null,null,null,null,null,null,null,null,null,"","","",null,null,null,null,"","","","",null,null,null,null,null,null,null,null,null,null,null,null,null,null,null,null,null,null,null,null,null,null,null,null,null,null,null,null,null,null,null,null,null,null,null,null,null,null,null,null,null,null,null,null,null,null,null,null,null,null,null,null,"","","","","",null,null,null,null,null,null,null,null,"",null,"","","","","","","",""]
["",null,null,null,null,null,"","",null,null,null,null,null,null,null,null,null,null,null,null,null,null,null,null,null,null,"","","","",null,null,"",null,null,null,null,null,null,null,null,null,null,null,null,null,null,null,null,null,null,null,null,null,null,null,null,null,null,null,"","","",null,null,null,null,"","","","",null,null,null,null,null,null,null,null,null,null,null,null,null,null,null,null,null,null,null,null,null,null,null,null,null,null,null,null,null,null,null,null,null,null,null,null,null,null,null,null,null,null,null,null,null,null,null,null,null,null,null,null,"","","","","",null,null,null,null,null,null,null,null,"",null,"","","","","","","",""]
["",null,null,null,null,null,"","",null,null,null,null,null,null,null,null,null,null,null,null,null,null,null,null,null,null,"","","","",null,null,"",null,null,null,null,null,null,null,null,null,null,null,null,null,null,null,null,null,null,null,null,null,null,null,null,null,null,null,"","","",null,null,null,null,"","","","",null,null,null,null,null,null,null,null,null,null,null,null,null,null,null,null,null,null,null,null,null,null,null,null,null,null,null,null,null,null,null,null,null,null,null,null,null,null,null,null,null,null,null,null,null,null,null,null,null,null,null,null,"","","","","",null,null,null,null,null,null,null,null,"",null,"","","","","","","",""]
["",null,null,null,null,null,"","",null,null,null,null,null,null,null,null,null,null,null,null,null,null,null,null,null,null,"","","","",null,null,"",null,null,null,null,null,null,null,null,null,null,null,null,null,null,null,null,null,null,null,null,null,null,null,null,null,null,null,"","","",null,null,null,null,"","","","",null,null,null,null,null,null,null,null,null,null,null,null,null,null,null,null,null,null,null,null,null,null,null,null,null,null,null,null,null,null,null,null,null,null,null,null,null,null,null,null,null,null,null,null,null,null,null,null,null,null,null,null,"","","","","",null,null,null,null,null,null,null,null,"",null,"","","","","","","",""]
["",null,null,null,null,null,"","",null,null,null,null,null,null,null,null,null,null,null,null,null,null,null,null,null,null,"","","","",null,null,"",null,null,null,null,null,null,null,null,null,null,null,null,null,null,null,null,null,null,null,null,null,null,null,null,null,null,null,"","","",null,null,null,null,"","","","",null,null,null,null,null,null,null,null,null,null,null,null,null,null,null,null,null,null,null,null,null,null,null,null,null,null,null,null,null,null,null,null,null,null,null,null,null,null,null,null,null,null,null,null,null,null,null,null,null,null,null,null,"","","","","",null,null,null,null,null,null,null,null,"",null,"","","","","","","",""]
["",null,null,null,null,null,"","",null,null,null,null,null,null,null,null,null,null,null,null,null,null,null,null,null,null,"","","","",null,null,"",null,null,null,null,null,null,null,null,null,null,null,null,null,null,null,null,null,null,null,null,null,null,null,null,null,null,null,"","","",null,null,null,null,"","","","",null,null,null,null,null,null,null,null,null,null,null,null,null,null,null,null,null,null,null,null,null,null,null,null,null,null,null,null,null,null,null,null,null,null,null,null,null,null,null,null,null,null,null,null,null,null,null,null,null,null,null,null,"","","","","",null,null,null,null,null,null,null,null,"",null,"","","","","","","",""]
["",null,null,null,null,null,"","",null,null,null,null,null,null,null,null,null,null,null,null,null,null,null,null,null,null,"","","","",null,null,"",null,null,null,null,null,null,null,null,null,null,null,null,null,null,null,null,null,null,null,null,null,null,null,null,null,null,null,"","","",null,null,null,null,"","","","",null,null,null,null,null,null,null,null,null,null,null,null,null,null,null,null,null,null,null,null,null,null,null,null,null,null,null,null,null,null,null,null,null,null,null,null,null,null,null,null,null,null,null,null,null,null,null,null,null,null,null,null,"","","","","",null,null,null,null,null,null,null,null,"",null,"","","","","","","",""]
["",null,null,null,null,null,"","",null,null,null,null,null,null,null,null,null,null,null,null,null,null,null,null,null,null,"","","","",null,null,"",null,null,null,null,null,null,null,null,null,null,null,null,null,null,null,null,null,null,null,null,null,null,null,null,null,null,null,"","","",null,null,null,null,"","","","",null,null,null,null,null,null,null,null,null,null,null,null,null,null,null,null,null,null,null,null,null,null,null,null,null,null,null,null,null,null,null,null,null,null,null,null,null,null,null,null,null,null,null,null,null,null,null,null,null,null,null,null,"","","","","",null,null,null,null,null,null,null,null,"",null,"","","","","","","",""]
["",null,null,null,null,null,"","",null,null,null,null,null,null,null,null,null,null,null,null,null,null,null,null,null,null,"","","","",null,null,"",null,null,null,null,null,null,null,null,null,null,null,null,null,null,null,null,null,null,null,null,null,null,null,null,null,null,null,"","","",null,null,null,null,"","","","",null,null,null,null,null,null,null,null,null,null,null,null,null,null,null,null,null,null,null,null,null,null,null,null,null,null,null,null,null,null,null,null,null,null,null,null,null,null,null,null,null,null,null,null,null,null,null,null,null,null,null,null,"","","","","",null,null,null,null,null,null,null,null,"",null,"","","","","","","",""]
["",null,null,null,null,null,"","",null,null,null,null,null,null,null,null,null,null,null,null,null,null,null,null,null,null,"","","","",null,null,"",null,null,null,null,null,null,null,null,null,null,null,null,null,null,null,null,null,null,null,null,null,null,null,null,null,null,null,"","","",null,null,null,null,"","","","",null,null,null,null,null,null,null,null,null,null,null,null,null,null,null,null,null,null,null,null,null,null,null,null,null,null,null,null,null,null,null,null,null,null,null,null,null,null,null,null,null,null,null,null,null,null,null,null,null,null,null,null,"","","","","",null,null,null,null,null,null,null,null,"",null,"","","","","","","",""]
["",null,null,null,null,null,"","",null,null,null,null,null,null,null,null,null,null,null,null,null,null,null,null,null,null,"","","","",null,null,"",null,null,null,null,null,null,null,null,null,null,null,null,null,null,null,null,null,null,null,null,null,null,null,null,null,null,null,"","","",null,null,null,null,"","","","",null,null,null,null,null,null,null,null,null,null,null,null,null,null,null,null,null,null,null,null,null,null,null,null,null,null,null,null,null,null,null,null,null,null,null,null,null,null,null,null,null,null,null,null,null,null,null,null,null,null,null,null,"","","","","",null,null,null,null,null,null,null,null,"",null,"","","","","","","",""]
["",null,null,null,null,null,"","",null,null,null,null,null,null,null,null,null,null,null,null,null,null,null,null,null,null,"","","","",null,null,"",null,null,null,null,null,null,null,null,null,null,null,null,null,null,null,null,null,null,null,null,null,null,null,null,null,null,null,"","","",null,null,null,null,"","","","",null,null,null,null,null,null,null,null,null,null,null,null,null,null,null,null,null,null,null,null,null,null,null,null,null,null,null,null,null,null,null,null,null,null,null,null,null,null,null,null,null,null,null,null,null,null,null,null,null,null,null,null,"","","","","",null,null,null,null,null,null,null,null,"",null,"","","","","","","",""]
["",null,null,null,null,null,"","",null,null,null,null,null,null,null,null,null,null,null,null,null,null,null,null,null,null,"","","","",null,null,"",null,null,null,null,null,null,null,null,null,null,null,null,null,null,null,null,null,null,null,null,null,null,null,null,null,null,null,"","","",null,null,null,null,"","","","",null,null,null,null,null,null,null,null,null,null,null,null,null,null,null,null,null,null,null,null,null,null,null,null,null,null,null,null,null,null,null,null,null,null,null,null,null,null,null,null,null,null,null,null,null,null,null,null,null,null,null,null,"","","","","",null,null,null,null,null,null,null,null,"",null,"","","","","","","",""]
["",null,null,null,null,null,"","",null,null,null,null,null,null,null,null,null,null,null,null,null,null,null,null,null,null,"","","","",null,null,"",null,null,null,null,null,null,null,null,null,null,null,null,null,null,null,null,null,null,null,null,null,null,null,null,null,null,null,"","","",null,null,null,null,"","","","",null,null,null,null,null,null,null,null,null,null,null,null,null,null,null,null,null,null,null,null,null,null,null,null,null,null,null,null,null,null,null,null,null,null,null,null,null,null,null,null,null,null,null,null,null,null,null,null,null,null,null,null,"","","","","",null,null,null,null,null,null,null,null,"",null,"","","","","","","",""]
["",null,null,null,null,null,"","",null,null,null,null,null,null,null,null,null,null,null,null,null,null,null,null,null,null,"","","","",null,null,"",null,null,null,null,null,null,null,null,null,null,null,null,null,null,null,null,null,null,null,null,null,null,null,null,null,null,null,"","","",null,null,null,null,"","","","",null,null,null,null,null,null,null,null,null,null,null,null,null,null,null,null,null,null,null,null,null,null,null,null,null,null,null,null,null,null,null,null,null,null,null,null,null,null,null,null,null,null,null,null,null,null,null,null,null,null,null,null,"","","","","",null,null,null,null,null,null,null,null,"",null,"","","","","","","",""]
["",null,null,null,null,null,"","",null,null,null,null,null,null,null,null,null,null,null,null,null,null,null,null,null,null,"","","","",null,null,"",null,null,null,null,null,null,null,null,null,null,null,null,null,null,null,null,null,null,null,null,null,null,null,null,null,null,null,"","","",null,null,null,null,"","","","",null,null,null,null,null,null,null,null,null,null,null,null,null,null,null,null,null,null,null,null,null,null,null,null,null,null,null,null,null,null,null,null,null,null,null,null,null,null,null,null,null,null,null,null,null,null,null,null,null,null,null,null,"","","","","",null,null,null,null,null,null,null,null,"",null,"","","","","","","",""]
["",null,null,null,null,null,"","",null,null,null,null,null,null,null,null,null,null,null,null,null,null,null,null,null,null,"","","","",null,null,"",null,null,null,null,null,null,null,null,null,null,null,null,null,null,null,null,null,null,null,null,null,null,null,null,null,null,null,"","","",null,null,null,null,"","","","",null,null,null,null,null,null,null,null,null,null,null,null,null,null,null,null,null,null,null,null,null,null,null,null,null,null,null,null,null,null,null,null,null,null,null,null,null,null,null,null,null,null,null,null,null,null,null,null,null,null,null,null,"","","","","",null,null,null,null,null,null,null,null,"",null,"","","","","","","",""]
["",null,null,null,null,null,"","",null,null,null,null,null,null,null,null,null,null,null,null,null,null,null,null,null,null,"","","","",null,null,"",null,null,null,null,null,null,null,null,null,null,null,null,null,null,null,null,null,null,null,null,null,null,null,null,null,null,null,"","","",null,null,null,null,"","","","",null,null,null,null,null,null,null,null,null,null,null,null,null,null,null,null,null,null,null,null,null,null,null,null,null,null,null,null,null,null,null,null,null,null,null,null,null,null,null,null,null,null,null,null,null,null,null,null,null,null,null,null,"","","","","",null,null,null,null,null,null,null,null,"",null,"","","","","","","",""]
["",null,null,null,null,null,"","",null,null,null,null,null,null,null,null,null,null,null,null,null,null,null,null,null,null,"","","","",null,null,"",null,null,null,null,null,null,null,null,null,null,null,null,null,null,null,null,null,null,null,null,null,null,null,null,null,null,null,"","","",null,null,null,null,"","","","",null,null,null,null,null,null,null,null,null,null,null,null,null,null,null,null,null,null,null,null,null,null,null,null,null,null,null,null,null,null,null,null,null,null,null,null,null,null,null,null,null,null,null,null,null,null,null,null,null,null,null,null,"","","","","",null,null,null,null,null,null,null,null,"",null,"","","","","","","",""]
["",null,null,null,null,null,"","",null,null,null,null,null,null,null,null,null,null,null,null,null,null,null,null,null,null,"","","","",null,null,"",null,null,null,null,null,null,null,null,null,null,null,null,null,null,null,null,null,null,null,null,null,null,null,null,null,null,null,"","","",null,null,null,null,"","","","",null,null,null,null,null,null,null,null,null,null,null,null,null,null,null,null,null,null,null,null,null,null,null,null,null,null,null,null,null,null,null,null,null,null,null,null,null,null,null,null,null,null,null,null,null,null,null,null,null,null,null,null,"","","","","",null,null,null,null,null,null,null,null,"",null,"","","","","","","",""]
["",null,null,null,null,null,"","",null,null,null,null,null,null,null,null,null,null,null,null,null,null,null,null,null,null,"","","","",null,null,"",null,null,null,null,null,null,null,null,null,null,null,null,null,null,null,null,null,null,null,null,null,null,null,null,null,null,null,"","","",null,null,null,null,"","","","",null,null,null,null,null,null,null,null,null,null,null,null,null,null,null,null,null,null,null,null,null,null,null,null,null,null,null,null,null,null,null,null,null,null,null,null,null,null,null,null,null,null,null,null,null,null,null,null,null,null,null,null,"","","","","",null,null,null,null,null,null,null,null,"",null,"","","","","","","",""]
["",null,null,null,null,null,"","",null,null,null,null,null,null,null,null,null,null,null,null,null,null,null,null,null,null,"","","","",null,null,"",null,null,null,null,null,null,null,null,null,null,null,null,null,null,null,null,null,null,null,null,null,null,null,null,null,null,null,"","","",null,null,null,null,"","","","",null,null,null,null,null,null,null,null,null,null,null,null,null,null,null,null,null,null,null,null,null,null,null,null,null,null,null,null,null,null,null,null,null,null,null,null,null,null,null,null,null,null,null,null,null,null,null,null,null,null,null,null,"","","","","",null,null,null,null,null,null,null,null,"",null,"","","","","","","",""]
["",null,null,null,null,null,"","",null,null,null,null,null,null,null,null,null,null,null,null,null,null,null,null,null,null,"","","","",null,null,"",null,null,null,null,null,null,null,null,null,null,null,null,null,null,null,null,null,null,null,null,null,null,null,null,null,null,null,"","","",null,null,null,null,"","","","",null,null,null,null,null,null,null,null,null,null,null,null,null,null,null,null,null,null,null,null,null,null,null,null,null,null,null,null,null,null,null,null,null,null,null,null,null,null,null,null,null,null,null,null,null,null,null,null,null,null,null,null,"","","","","",null,null,null,null,null,null,null,null,"",null,"","","","","","","",""]
["",null,null,null,null,null,"","",null,null,null,null,null,null,null,null,null,null,null,null,null,null,null,null,null,null,"","","","",null,null,"",null,null,null,null,null,null,null,null,null,null,null,null,null,null,null,null,null,null,null,null,null,null,null,null,null,null,null,"","","",null,null,null,null,"","","","",null,null,null,null,null,null,null,null,null,null,null,null,null,null,null,null,null,null,null,null,null,null,null,null,null,null,null,null,null,null,null,null,null,null,null,null,null,null,null,null,null,null,null,null,null,null,null,null,null,null,null,null,"","","","","",null,null,null,null,null,null,null,null,"",null,"","","","","","","",""]
["",null,null,null,null,null,"","",null,null,null,null,null,null,null,null,null,null,null,null,null,null,null,null,null,null,"","","","",null,null,"",null,null,null,null,null,null,null,null,null,null,null,null,null,null,null,null,null,null,null,null,null,null,null,null,null,null,null,"","","",null,null,null,null,"","","","",null,null,null,null,null,null,null,null,null,null,null,null,null,null,null,null,null,null,null,null,null,null,null,null,null,null,null,null,null,null,null,null,null,null,null,null,null,null,null,null,null,null,null,null,null,null,null,null,null,null,null,null,"","","","","",null,null,null,null,null,null,null,null,"",null,"","","","","","","",""]
["",null,null,null,null,null,"","",null,null,null,null,null,null,null,null,null,null,null,null,null,null,null,null,null,null,"","","","",null,null,"",null,null,null,null,null,null,null,null,null,null,null,null,null,null,null,null,null,null,null,null,null,null,null,null,null,null,null,"","","",null,null,null,null,"","","","",null,null,null,null,null,null,null,null,null,null,null,null,null,null,null,null,null,null,null,null,null,null,null,null,null,null,null,null,null,null,null,null,null,null,null,null,null,null,null,null,null,null,null,null,null,null,null,null,null,null,null,null,"","","","","",null,null,null,null,null,null,null,null,"",null,"","","","","","","",""]
["",null,null,null,null,null,"","",null,null,null,null,null,null,null,null,null,null,null,null,null,null,null,null,null,null,"","","","",null,null,"",null,null,null,null,null,null,null,null,null,null,null,null,null,null,null,null,null,null,null,null,null,null,null,null,null,null,null,"","","",null,null,null,null,"","","","",null,null,null,null,null,null,null,null,null,null,null,null,null,null,null,null,null,null,null,null,null,null,null,null,null,null,null,null,null,null,null,null,null,null,null,null,null,null,null,null,null,null,null,null,null,null,null,null,null,null,null,null,"","","","","",null,null,null,null,null,null,null,null,"",null,"","","","","","","",""]
["",null,null,null,null,null,"","",null,null,null,null,null,null,null,null,null,null,null,null,null,null,null,null,null,null,"","","","",null,null,"",null,null,null,null,null,null,null,null,null,null,null,null,null,null,null,null,null,null,null,null,null,null,null,null,null,null,null,"","","",null,null,null,null,"","","","",null,null,null,null,null,null,null,null,null,null,null,null,null,null,null,null,null,null,null,null,null,null,null,null,null,null,null,null,null,null,null,null,null,null,null,null,null,null,null,null,null,null,null,null,null,null,null,null,null,null,null,null,"","","","","",null,null,null,null,null,null,null,null,"",null,"","","","","","","",""]
["",null,null,null,null,null,"","",null,null,null,null,null,null,null,null,null,null,null,null,null,null,null,null,null,null,"","","","",null,null,"",null,null,null,null,null,null,null,null,null,null,null,null,null,null,null,null,null,null,null,null,null,null,null,null,null,null,null,"","","",null,null,null,null,"","","","",null,null,null,null,null,null,null,null,null,null,null,null,null,null,null,null,null,null,null,null,null,null,null,null,null,null,null,null,null,null,null,null,null,null,null,null,null,null,null,null,null,null,null,null,null,null,null,null,null,null,null,null,"","","","","",null,null,null,null,null,null,null,null,"",null,"","","","","","","",""]
["",null,null,null,null,null,"","",null,null,null,null,null,null,null,null,null,null,null,null,null,null,null,null,null,null,"","","","",null,null,"",null,null,null,null,null,null,null,null,null,null,null,null,null,null,null,null,null,null,null,null,null,null,null,null,null,null,null,"","","",null,null,null,null,"","","","",null,null,null,null,null,null,null,null,null,null,null,null,null,null,null,null,null,null,null,null,null,null,null,null,null,null,null,null,null,null,null,null,null,null,null,null,null,null,null,null,null,null,null,null,null,null,null,null,null,null,null,null,"","","","","",null,null,null,null,null,null,null,null,"",null,"","","","","","","",""]
["",null,null,null,null,null,"","",null,null,null,null,null,null,null,null,null,null,null,null,null,null,null,null,null,null,"","","","",null,null,"",null,null,null,null,null,null,null,null,null,null,null,null,null,null,null,null,null,null,null,null,null,null,null,null,null,null,null,"","","",null,null,null,null,"","","","",null,null,null,null,null,null,null,null,null,null,null,null,null,null,null,null,null,null,null,null,null,null,null,null,null,null,null,null,null,null,null,null,null,null,null,null,null,null,null,null,null,null,null,null,null,null,null,null,null,null,null,null,"","","","","",null,null,null,null,null,null,null,null,"",null,"","","","","","","",""]
["",null,null,null,null,null,"","",null,null,null,null,null,null,null,null,null,null,null,null,null,null,null,null,null,null,"","","","",null,null,"",null,null,null,null,null,null,null,null,null,null,null,null,null,null,null,null,null,null,null,null,null,null,null,null,null,null,null,"","","",null,null,null,null,"","","","",null,null,null,null,null,null,null,null,null,null,null,null,null,null,null,null,null,null,null,null,null,null,null,null,null,null,null,null,null,null,null,null,null,null,null,null,null,null,null,null,null,null,null,null,null,null,null,null,null,null,null,null,"","","","","",null,null,null,null,null,null,null,null,"",null,"","","","","","","",""]
["",null,null,null,null,null,"","",null,null,null,null,null,null,null,null,null,null,null,null,null,null,null,null,null,null,"","","","",null,null,"",null,null,null,null,null,null,null,null,null,null,null,null,null,null,null,null,null,null,null,null,null,null,null,null,null,null,null,"","","",null,null,null,null,"","","","",null,null,null,null,null,null,null,null,null,null,null,null,null,null,null,null,null,null,null,null,null,null,null,null,null,null,null,null,null,null,null,null,null,null,null,null,null,null,null,null,null,null,null,null,null,null,null,null,null,null,null,null,"","","","","",null,null,null,null,null,null,null,null,"",null,"","","","","","","",""]
["",null,null,null,null,null,"","",null,null,null,null,null,null,null,null,null,null,null,null,null,null,null,null,null,null,"","","","",null,null,"",null,null,null,null,null,null,null,null,null,null,null,null,null,null,null,null,null,null,null,null,null,null,null,null,null,null,null,"","","",null,null,null,null,"","","","",null,null,null,null,null,null,null,null,null,null,null,null,null,null,null,null,null,null,null,null,null,null,null,null,null,null,null,null,null,null,null,null,null,null,null,null,null,null,null,null,null,null,null,null,null,null,null,null,null,null,null,null,"","","","","",null,null,null,null,null,null,null,null,"",null,"","","","","","","",""]
["",null,null,null,null,null,"","",null,null,null,null,null,null,null,null,null,null,null,null,null,null,null,null,null,null,"","","","",null,null,"",null,null,null,null,null,null,null,null,null,null,null,null,null,null,null,null,null,null,null,null,null,null,null,null,null,null,null,"","","",null,null,null,null,"","","","",null,null,null,null,null,null,null,null,null,null,null,null,null,null,null,null,null,null,null,null,null,null,null,null,null,null,null,null,null,null,null,null,null,null,null,null,null,null,null,null,null,null,null,null,null,null,null,null,null,null,null,null,"","","","","",null,null,null,null,null,null,null,null,"",null,"","","","","","","",""]
["",null,null,null,null,null,"","",null,null,null,null,null,null,null,null,null,null,null,null,null,null,null,null,null,null,"","","","",null,null,"",null,null,null,null,null,null,null,null,null,null,null,null,null,null,null,null,null,null,null,null,null,null,null,null,null,null,null,"","","",null,null,null,null,"","","","",null,null,null,null,null,null,null,null,null,null,null,null,null,null,null,null,null,null,null,null,null,null,null,null,null,null,null,null,null,null,null,null,null,null,null,null,null,null,null,null,null,null,null,null,null,null,null,null,null,null,null,null,"","","","","",null,null,null,null,null,null,null,null,"",null,"","","","","","","",""]
["",null,null,null,null,null,"","",null,null,null,null,null,null,null,null,null,null,null,null,null,null,null,null,null,null,"","","","",null,null,"",null,null,null,null,null,null,null,null,null,null,null,null,null,null,null,null,null,null,null,null,null,null,null,null,null,null,null,"","","",null,null,null,null,"","","","",null,null,null,null,null,null,null,null,null,null,null,null,null,null,null,null,null,null,null,null,null,null,null,null,null,null,null,null,null,null,null,null,null,null,null,null,null,null,null,null,null,null,null,null,null,null,null,null,null,null,null,null,"","","","","",null,null,null,null,null,null,null,null,"",null,"","","","","","","",""]
["",null,null,null,null,null,"","",null,null,null,null,null,null,null,null,null,null,null,null,null,null,null,null,null,null,"","","","",null,null,"",null,null,null,null,null,null,null,null,null,null,null,null,null,null,null,null,null,null,null,null,null,null,null,null,null,null,null,"","","",null,null,null,null,"","","","",null,null,null,null,null,null,null,null,null,null,null,null,null,null,null,null,null,null,null,null,null,null,null,null,null,null,null,null,null,null,null,null,null,null,null,null,null,null,null,null,null,null,null,null,null,null,null,null,null,null,null,null,"","","","","",null,null,null,null,null,null,null,null,"",null,"","","","","","","",""]
["",null,null,null,null,null,"","",null,null,null,null,null,null,null,null,null,null,null,null,null,null,null,null,null,null,"","","","",null,null,"",null,null,null,null,null,null,null,null,null,null,null,null,null,null,null,null,null,null,null,null,null,null,null,null,null,null,null,"","","",null,null,null,null,"","","","",null,null,null,null,null,null,null,null,null,null,null,null,null,null,null,null,null,null,null,null,null,null,null,null,null,null,null,null,null,null,null,null,null,null,null,null,null,null,null,null,null,null,null,null,null,null,null,null,null,null,null,null,"","","","","",null,null,null,null,null,null,null,null,"",null,"","","","","","","",""]
["",null,null,null,null,null,"","",null,null,null,null,null,null,null,null,null,null,null,null,null,null,null,null,null,null,"","","","",null,null,"",null,null,null,null,null,null,null,null,null,null,null,null,null,null,null,null,null,null,null,null,null,null,null,null,null,null,null,"","","",null,null,null,null,"","","","",null,null,null,null,null,null,null,null,null,null,null,null,null,null,null,null,null,null,null,null,null,null,null,null,null,null,null,null,null,null,null,null,null,null,null,null,null,null,null,null,null,null,null,null,null,null,null,null,null,null,null,null,"","","","","",null,null,null,null,null,null,null,null,"",null,"","","","","","","",""]
["",null,null,null,null,null,"","",null,null,null,null,null,null,null,null,null,null,null,null,null,null,null,null,null,null,"","","","",null,null,"",null,null,null,null,null,null,null,null,null,null,null,null,null,null,null,null,null,null,null,null,null,null,null,null,null,null,null,"","","",null,null,null,null,"","","","",null,null,null,null,null,null,null,null,null,null,null,null,null,null,null,null,null,null,null,null,null,null,null,null,null,null,null,null,null,null,null,null,null,null,null,null,null,null,null,null,null,null,null,null,null,null,null,null,null,null,null,null,"","","","","",null,null,null,null,null,null,null,null,"",null,"","","","","","","",""]
["",null,null,null,null,null,"","",null,null,null,null,null,null,null,null,null,null,null,null,null,null,null,null,null,null,"","","","",null,null,"",null,null,null,null,null,null,null,null,null,null,null,null,null,null,null,null,null,null,null,null,null,null,null,null,null,null,null,"","","",null,null,null,null,"","","","",null,null,null,null,null,null,null,null,null,null,null,null,null,null,null,null,null,null,null,null,null,null,null,null,null,null,null,null,null,null,null,null,null,null,null,null,null,null,null,null,null,null,null,null,null,null,null,null,null,null,null,null,"","","","","",null,null,null,null,null,null,null,null,"",null,"","","","","","","",""]
["",null,null,null,null,null,"","",null,null,null,null,null,null,null,null,null,null,null,null,null,null,null,null,null,null,"","","","",null,null,"",null,null,null,null,null,null,null,null,null,null,null,null,null,null,null,null,null,null,null,null,null,null,null,null,null,null,null,"","","",null,null,null,null,"","","","",null,null,null,null,null,null,null,null,null,null,null,null,null,null,null,null,null,null,null,null,null,null,null,null,null,null,null,null,null,null,null,null,null,null,null,null,null,null,null,null,null,null,null,null,null,null,null,null,null,null,null,null,"","","","","",null,null,null,null,null,null,null,null,"",null,"","","","","","","",""]
["",null,null,null,null,null,"","",null,null,null,null,null,null,null,null,null,null,null,null,null,null,null,null,null,null,"","","","",null,null,"",null,null,null,null,null,null,null,null,null,null,null,null,null,null,null,null,null,null,null,null,null,null,null,null,null,null,null,"","","",null,null,null,null,"","","","",null,null,null,null,null,null,null,null,null,null,null,null,null,null,null,null,null,null,null,null,null,null,null,null,null,null,null,null,null,null,null,null,null,null,null,null,null,null,null,null,null,null,null,null,null,null,null,null,null,null,null,null,"","","","","",null,null,null,null,null,null,null,null,"",null,"","","","","","","",""]
["",null,null,null,null,null,"","",null,null,null,null,null,null,null,null,null,null,null,null,null,null,null,null,null,null,"","","","",null,null,"",null,null,null,null,null,null,null,null,null,null,null,null,null,null,null,null,null,null,null,null,null,null,null,null,null,null,null,"","","",null,null,null,null,"","","","",null,null,null,null,null,null,null,null,null,null,null,null,null,null,null,null,null,null,null,null,null,null,null,null,null,null,null,null,null,null,null,null,null,null,null,null,null,null,null,null,null,null,null,null,null,null,null,null,null,null,null,null,"","","","","",null,null,null,null,null,null,null,null,"",null,"","","","","","","",""]
["",null,null,null,null,null,"","",null,null,null,null,null,null,null,null,null,null,null,null,null,null,null,null,null,null,"","","","",null,null,"",null,null,null,null,null,null,null,null,null,null,null,null,null,null,null,null,null,null,null,null,null,null,null,null,null,null,null,"","","",null,null,null,null,"","","","",null,null,null,null,null,null,null,null,null,null,null,null,null,null,null,null,null,null,null,null,null,null,null,null,null,null,null,null,null,null,null,null,null,null,null,null,null,null,null,null,null,null,null,null,null,null,null,null,null,null,null,null,"","","","","",null,null,null,null,null,null,null,null,"",null,"","","","","","","",""]
["",null,null,null,null,null,"","",null,null,null,null,null,null,null,null,null,null,null,null,null,null,null,null,null,null,"","","","",null,null,"",null,null,null,null,null,null,null,null,null,null,null,null,null,null,null,null,null,null,null,null,null,null,null,null,null,null,null,"","","",null,null,null,null,"","","","",null,null,null,null,null,null,null,null,null,null,null,null,null,null,null,null,null,null,null,null,null,null,null,null,null,null,null,null,null,null,null,null,null,null,null,null,null,null,null,null,null,null,null,null,null,null,null,null,null,null,null,null,"","","","","",null,null,null,null,null,null,null,null,"",null,"","","","","","","",""]
["",null,null,null,null,null,"","",null,null,null,null,null,null,null,null,null,null,null,null,null,null,null,null,null,null,"","","","",null,null,"",null,null,null,null,null,null,null,null,null,null,null,null,null,null,null,null,null,null,null,null,null,null,null,null,null,null,null,"","","",null,null,null,null,"","","","",null,null,null,null,null,null,null,null,null,null,null,null,null,null,null,null,null,null,null,null,null,null,null,null,null,null,null,null,null,null,null,null,null,null,null,null,null,null,null,null,null,null,null,null,null,null,null,null,null,null,null,null,"","","","","",null,null,null,null,null,null,null,null,"",null,"","","","","","","",""]
["",null,null,null,null,null,"","",null,null,null,null,null,null,null,null,null,null,null,null,null,null,null,null,null,null,"","","","",null,null,"",null,null,null,null,null,null,null,null,null,null,null,null,null,null,null,null,null,null,null,null,null,null,null,null,null,null,null,"","","",null,null,null,null,"","","","",null,null,null,null,null,null,null,null,null,null,null,null,null,null,null,null,null,null,null,null,null,null,null,null,null,null,null,null,null,null,null,null,null,null,null,null,null,null,null,null,null,null,null,null,null,null,null,null,null,null,null,null,"","","","","",null,null,null,null,null,null,null,null,"",null,"","","","","","","",""]
["",null,null,null,null,null,"","",null,null,null,null,null,null,null,null,null,null,null,null,null,null,null,null,null,null,"","","","",null,null,"",null,null,null,null,null,null,null,null,null,null,null,null,null,null,null,null,null,null,null,null,null,null,null,null,null,null,null,"","","",null,null,null,null,"","","","",null,null,null,null,null,null,null,null,null,null,null,null,null,null,null,null,null,null,null,null,null,null,null,null,null,null,null,null,null,null,null,null,null,null,null,null,null,null,null,null,null,null,null,null,null,null,null,null,null,null,null,null,"","","","","",null,null,null,null,null,null,null,null,"",null,"","","","","","","",""]
["",null,null,null,null,null,"","",null,null,null,null,null,null,null,null,null,null,null,null,null,null,null,null,null,null,"","","","",null,null,"",null,null,null,null,null,null,null,null,null,null,null,null,null,null,null,null,null,null,null,null,null,null,null,null,null,null,null,"","","",null,null,null,null,"","","","",null,null,null,null,null,null,null,null,null,null,null,null,null,null,null,null,null,null,null,null,null,null,null,null,null,null,null,null,null,null,null,null,null,null,null,null,null,null,null,null,null,null,null,null,null,null,null,null,null,null,null,null,"","","","","",null,null,null,null,null,null,null,null,"",null,"","","","","","","",""]
["",null,null,null,null,null,"","",null,null,null,null,null,null,null,null,null,null,null,null,null,null,null,null,null,null,"","","","",null,null,"",null,null,null,null,null,null,null,null,null,null,null,null,null,null,null,null,null,null,null,null,null,null,null,null,null,null,null,"","","",null,null,null,null,"","","","",null,null,null,null,null,null,null,null,null,null,null,null,null,null,null,null,null,null,null,null,null,null,null,null,null,null,null,null,null,null,null,null,null,null,null,null,null,null,null,null,null,null,null,null,null,null,null,null,null,null,null,null,"","","","","",null,null,null,null,null,null,null,null,"",null,"","","","","","","",""]
["",null,null,null,null,null,"","",null,null,null,null,null,null,null,null,null,null,null,null,null,null,null,null,null,null,"","","","",null,null,"",null,null,null,null,null,null,null,null,null,null,null,null,null,null,null,null,null,null,null,null,null,null,null,null,null,null,null,"","","",null,null,null,null,"","","","",null,null,null,null,null,null,null,null,null,null,null,null,null,null,null,null,null,null,null,null,null,null,null,null,null,null,null,null,null,null,null,null,null,null,null,null,null,null,null,null,null,null,null,null,null,null,null,null,null,null,null,null,"","","","","",null,null,null,null,null,null,null,null,"",null,"","","","","","","",""]
["",null,null,null,null,null,"","",null,null,null,null,null,null,null,null,null,null,null,null,null,null,null,null,null,null,"","","","",null,null,"",null,null,null,null,null,null,null,null,null,null,null,null,null,null,null,null,null,null,null,null,null,null,null,null,null,null,null,"","","",null,null,null,null,"","","","",null,null,null,null,null,null,null,null,null,null,null,null,null,null,null,null,null,null,null,null,null,null,null,null,null,null,null,null,null,null,null,null,null,null,null,null,null,null,null,null,null,null,null,null,null,null,null,null,null,null,null,null,"","","","","",null,null,null,null,null,null,null,null,"",null,"","","","","","","",""]
["",null,null,null,null,null,"","",null,null,null,null,null,null,null,null,null,null,null,null,null,null,null,null,null,null,"","","","",null,null,"",null,null,null,null,null,null,null,null,null,null,null,null,null,null,null,null,null,null,null,null,null,null,null,null,null,null,null,"","","",null,null,null,null,"","","","",null,null,null,null,null,null,null,null,null,null,null,null,null,null,null,null,null,null,null,null,null,null,null,null,null,null,null,null,null,null,null,null,null,null,null,null,null,null,null,null,null,null,null,null,null,null,null,null,null,null,null,null,"","","","","",null,null,null,null,null,null,null,null,"",null,"","","","","","","",""]
["",null,null,null,null,null,"","",null,null,null,null,null,null,null,null,null,null,null,null,null,null,null,null,null,null,"","","","",null,null,"",null,null,null,null,null,null,null,null,null,null,null,null,null,null,null,null,null,null,null,null,null,null,null,null,null,null,null,"","","",null,null,null,null,"","","","",null,null,null,null,null,null,null,null,null,null,null,null,null,null,null,null,null,null,null,null,null,null,null,null,null,null,null,null,null,null,null,null,null,null,null,null,null,null,null,null,null,null,null,null,null,null,null,null,null,null,null,null,"","","","","",null,null,null,null,null,null,null,null,"",null,"","","","","","","",""]
["",null,null,null,null,null,"","",null,null,null,null,null,null,null,null,null,null,null,null,null,null,null,null,null,null,"","","","",null,null,"",null,null,null,null,null,null,null,null,null,null,null,null,null,null,null,null,null,null,null,null,null,null,null,null,null,null,null,"","","",null,null,null,null,"","","","",null,null,null,null,null,null,null,null,null,null,null,null,null,null,null,null,null,null,null,null,null,null,null,null,null,null,null,null,null,null,null,null,null,null,null,null,null,null,null,null,null,null,null,null,null,null,null,null,null,null,null,null,"","","","","",null,null,null,null,null,null,null,null,"",null,"","","","","","","",""]
["",null,null,null,null,null,"","",null,null,null,null,null,null,null,null,null,null,null,null,null,null,null,null,null,null,"","","","",null,null,"",null,null,null,null,null,null,null,null,null,null,null,null,null,null,null,null,null,null,null,null,null,null,null,null,null,null,null,"","","",null,null,null,null,"","","","",null,null,null,null,null,null,null,null,null,null,null,null,null,null,null,null,null,null,null,null,null,null,null,null,null,null,null,null,null,null,null,null,null,null,null,null,null,null,null,null,null,null,null,null,null,null,null,null,null,null,null,null,"","","","","",null,null,null,null,null,null,null,null,"",null,"","","","","","","",""]
["",null,null,null,null,null,"","",null,null,null,null,null,null,null,null,null,null,null,null,null,null,null,null,null,null,"","","","",null,null,"",null,null,null,null,null,null,null,null,null,null,null,null,null,null,null,null,null,null,null,null,null,null,null,null,null,null,null,"","","",null,null,null,null,"","","","",null,null,null,null,null,null,null,null,null,null,null,null,null,null,null,null,null,null,null,null,null,null,null,null,null,null,null,null,null,null,null,null,null,null,null,null,null,null,null,null,null,null,null,null,null,null,null,null,null,null,null,null,"","","","","",null,null,null,null,null,null,null,null,"",null,"","","","","","","",""]
["",null,null,null,null,null,"","",null,null,null,null,null,null,null,null,null,null,null,null,null,null,null,null,null,null,"","","","",null,null,"",null,null,null,null,null,null,null,null,null,null,null,null,null,null,null,null,null,null,null,null,null,null,null,null,null,null,null,"","","",null,null,null,null,"","","","",null,null,null,null,null,null,null,null,null,null,null,null,null,null,null,null,null,null,null,null,null,null,null,null,null,null,null,null,null,null,null,null,null,null,null,null,null,null,null,null,null,null,null,null,null,null,null,null,null,null,null,null,"","","","","",null,null,null,null,null,null,null,null,"",null,"","","","","","","",""]
["",null,null,null,null,null,"","",null,null,null,null,null,null,null,null,null,null,null,null,null,null,null,null,null,null,"","","","",null,null,"",null,null,null,null,null,null,null,null,null,null,null,null,null,null,null,null,null,null,null,null,null,null,null,null,null,null,null,"","","",null,null,null,null,"","","","",null,null,null,null,null,null,null,null,null,null,null,null,null,null,null,null,null,null,null,null,null,null,null,null,null,null,null,null,null,null,null,null,null,null,null,null,null,null,null,null,null,null,null,null,null,null,null,null,null,null,null,null,"","","","","",null,null,null,null,null,null,null,null,"",null,"","","","","","","",""]
["",null,null,null,null,null,"","",null,null,null,null,null,null,null,null,null,null,null,null,null,null,null,null,null,null,"","","","",null,null,"",null,null,null,null,null,null,null,null,null,null,null,null,null,null,null,null,null,null,null,null,null,null,null,null,null,null,null,"","","",null,null,null,null,"","","","",null,null,null,null,null,null,null,null,null,null,null,null,null,null,null,null,null,null,null,null,null,null,null,null,null,null,null,null,null,null,null,null,null,null,null,null,null,null,null,null,null,null,null,null,null,null,null,null,null,null,null,null,"","","","","",null,null,null,null,null,null,null,null,"",null,"","","","","","","",""]
["",null,null,null,null,null,"","",null,null,null,null,null,null,null,null,null,null,null,null,null,null,null,null,null,null,"","","","",null,null,"",null,null,null,null,null,null,null,null,null,null,null,null,null,null,null,null,null,null,null,null,null,null,null,null,null,null,null,"","","",null,null,null,null,"","","","",null,null,null,null,null,null,null,null,null,null,null,null,null,null,null,null,null,null,null,null,null,null,null,null,null,null,null,null,null,null,null,null,null,null,null,null,null,null,null,null,null,null,null,null,null,null,null,null,null,null,null,null,"","","","","",null,null,null,null,null,null,null,null,"",null,"","","","","","","",""]
["",null,null,null,null,null,"","",null,null,null,null,null,null,null,null,null,null,null,null,null,null,null,null,null,null,"","","","",null,null,"",null,null,null,null,null,null,null,null,null,null,null,null,null,null,null,null,null,null,null,null,null,null,null,null,null,null,null,"","","",null,null,null,null,"","","","",null,null,null,null,null,null,null,null,null,null,null,null,null,null,null,null,null,null,null,null,null,null,null,null,null,null,null,null,null,null,null,null,null,null,null,null,null,null,null,null,null,null,null,null,null,null,null,null,null,null,null,null,"","","","","",null,null,null,null,null,null,null,null,"",null,"","","","","","","",""]
["",null,null,null,null,null,"","",null,null,null,null,null,null,null,null,null,null,null,null,null,null,null,null,null,null,"","","","",null,null,"",null,null,null,null,null,null,null,null,null,null,null,null,null,null,null,null,null,null,null,null,null,null,null,null,null,null,null,"","","",null,null,null,null,"","","","",null,null,null,null,null,null,null,null,null,null,null,null,null,null,null,null,null,null,null,null,null,null,null,null,null,null,null,null,null,null,null,null,null,null,null,null,null,null,null,null,null,null,null,null,null,null,null,null,null,null,null,null,"","","","","",null,null,null,null,null,null,null,null,"",null,"","","","","","","",""]
["",null,null,null,null,null,"","",null,null,null,null,null,null,null,null,null,null,null,null,null,null,null,null,null,null,"","","","",null,null,"",null,null,null,null,null,null,null,null,null,null,null,null,null,null,null,null,null,null,null,null,null,null,null,null,null,null,null,"","","",null,null,null,null,"","","","",null,null,null,null,null,null,null,null,null,null,null,null,null,null,null,null,null,null,null,null,null,null,null,null,null,null,null,null,null,null,null,null,null,null,null,null,null,null,null,null,null,null,null,null,null,null,null,null,null,null,null,null,"","","","","",null,null,null,null,null,null,null,null,"",null,"","","","","","","",""]
["",null,null,null,null,null,"","",null,null,null,null,null,null,null,null,null,null,null,null,null,null,null,null,null,null,"","","","",null,null,"",null,null,null,null,null,null,null,null,null,null,null,null,null,null,null,null,null,null,null,null,null,null,null,null,null,null,null,"","","",null,null,null,null,"","","","",null,null,null,null,null,null,null,null,null,null,null,null,null,null,null,null,null,null,null,null,null,null,null,null,null,null,null,null,null,null,null,null,null,null,null,null,null,null,null,null,null,null,null,null,null,null,null,null,null,null,null,null,"","","","","",null,null,null,null,null,null,null,null,"",null,"","","","","","","",""]
["",null,null,null,null,null,"","",null,null,null,null,null,null,null,null,null,null,null,null,null,null,null,null,null,null,"","","","",null,null,"",null,null,null,null,null,null,null,null,null,null,null,null,null,null,null,null,null,null,null,null,null,null,null,null,null,null,null,"","","",null,null,null,null,"","","","",null,null,null,null,null,null,null,null,null,null,null,null,null,null,null,null,null,null,null,null,null,null,null,null,null,null,null,null,null,null,null,null,null,null,null,null,null,null,null,null,null,null,null,null,null,null,null,null,null,null,null,null,"","","","","",null,null,null,null,null,null,null,null,"",null,"","","","","","","",""]
["",null,null,null,null,null,"","",null,null,null,null,null,null,null,null,null,null,null,null,null,null,null,null,null,null,"","","","",null,null,"",null,null,null,null,null,null,null,null,null,null,null,null,null,null,null,null,null,null,null,null,null,null,null,null,null,null,null,"","","",null,null,null,null,"","","","",null,null,null,null,null,null,null,null,null,null,null,null,null,null,null,null,null,null,null,null,null,null,null,null,null,null,null,null,null,null,null,null,null,null,null,null,null,null,null,null,null,null,null,null,null,null,null,null,null,null,null,null,"","","","","",null,null,null,null,null,null,null,null,"",null,"","","","","","","",""]
["",null,null,null,null,null,"","",null,null,null,null,null,null,null,null,null,null,null,null,null,null,null,null,null,null,"","","","",null,null,"",null,null,null,null,null,null,null,null,null,null,null,null,null,null,null,null,null,null,null,null,null,null,null,null,null,null,null,"","","",null,null,null,null,"","","","",null,null,null,null,null,null,null,null,null,null,null,null,null,null,null,null,null,null,null,null,null,null,null,null,null,null,null,null,null,null,null,null,null,null,null,null,null,null,null,null,null,null,null,null,null,null,null,null,null,null,null,null,"","","","","",null,null,null,null,null,null,null,null,"",null,"","","","","","","",""]
["",null,null,null,null,null,"","",null,null,null,null,null,null,null,null,null,null,null,null,null,null,null,null,null,null,"","","","",null,null,"",null,null,null,null,null,null,null,null,null,null,null,null,null,null,null,null,null,null,null,null,null,null,null,null,null,null,null,"","","",null,null,null,null,"","","","",null,null,null,null,null,null,null,null,null,null,null,null,null,null,null,null,null,null,null,null,null,null,null,null,null,null,null,null,null,null,null,null,null,null,null,null,null,null,null,null,null,null,null,null,null,null,null,null,null,null,null,null,"","","","","",null,null,null,null,null,null,null,null,"",null,"","","","","","","",""]
["",null,null,null,null,null,"","",null,null,null,null,null,null,null,null,null,null,null,null,null,null,null,null,null,null,"","","","",null,null,"",null,null,null,null,null,null,null,null,null,null,null,null,null,null,null,null,null,null,null,null,null,null,null,null,null,null,null,"","","",null,null,null,null,"","","","",null,null,null,null,null,null,null,null,null,null,null,null,null,null,null,null,null,null,null,null,null,null,null,null,null,null,null,null,null,null,null,null,null,null,null,null,null,null,null,null,null,null,null,null,null,null,null,null,null,null,null,null,"","","","","",null,null,null,null,null,null,null,null,"",null,"","","","","","","",""]
["",null,null,null,null,null,"","",null,null,null,null,null,null,null,null,null,null,null,null,null,null,null,null,null,null,"","","","",null,null,"",null,null,null,null,null,null,null,null,null,null,null,null,null,null,null,null,null,null,null,null,null,null,null,null,null,null,null,"","","",null,null,null,null,"","","","",null,null,null,null,null,null,null,null,null,null,null,null,null,null,null,null,null,null,null,null,null,null,null,null,null,null,null,null,null,null,null,null,null,null,null,null,null,null,null,null,null,null,null,null,null,null,null,null,null,null,null,null,"","","","","",null,null,null,null,null,null,null,null,"",null,"","","","","","","",""]
["",null,null,null,null,null,"","",null,null,null,null,null,null,null,null,null,null,null,null,null,null,null,null,null,null,"","","","",null,null,"",null,null,null,null,null,null,null,null,null,null,null,null,null,null,null,null,null,null,null,null,null,null,null,null,null,null,null,"","","",null,null,null,null,"","","","",null,null,null,null,null,null,null,null,null,null,null,null,null,null,null,null,null,null,null,null,null,null,null,null,null,null,null,null,null,null,null,null,null,null,null,null,null,null,null,null,null,null,null,null,null,null,null,null,null,null,null,null,"","","","","",null,null,null,null,null,null,null,null,"",null,"","","","","","","",""]
["",null,null,null,null,null,"","",null,null,null,null,null,null,null,null,null,null,null,null,null,null,null,null,null,null,"","","","",null,null,"",null,null,null,null,null,null,null,null,null,null,null,null,null,null,null,null,null,null,null,null,null,null,null,null,null,null,null,"","","",null,null,null,null,"","","","",null,null,null,null,null,null,null,null,null,null,null,null,null,null,null,null,null,null,null,null,null,null,null,null,null,null,null,null,null,null,null,null,null,null,null,null,null,null,null,null,null,null,null,null,null,null,null,null,null,null,null,null,"","","","","",null,null,null,null,null,null,null,null,"",null,"","","","","","","",""]
["",null,null,null,null,null,"","",null,null,null,null,null,null,null,null,null,null,null,null,null,null,null,null,null,null,"","","","",null,null,"",null,null,null,null,null,null,null,null,null,null,null,null,null,null,null,null,null,null,null,null,null,null,null,null,null,null,null,"","","",null,null,null,null,"","","","",null,null,null,null,null,null,null,null,null,null,null,null,null,null,null,null,null,null,null,null,null,null,null,null,null,null,null,null,null,null,null,null,null,null,null,null,null,null,null,null,null,null,null,null,null,null,null,null,null,null,null,null,"","","","","",null,null,null,null,null,null,null,null,"",null,"","","","","","","",""]
["",null,null,null,null,null,"","",null,null,null,null,null,null,null,null,null,null,null,null,null,null,null,null,null,null,"","","","",null,null,"",null,null,null,null,null,null,null,null,null,null,null,null,null,null,null,null,null,null,null,null,null,null,null,null,null,null,null,"","","",null,null,null,null,"","","","",null,null,null,null,null,null,null,null,null,null,null,null,null,null,null,null,null,null,null,null,null,null,null,null,null,null,null,null,null,null,null,null,null,null,null,null,null,null,null,null,null,null,null,null,null,null,null,null,null,null,null,null,"","","","","",null,null,null,null,null,null,null,null,"",null,"","","","","","","",""]
["",null,null,null,null,null,"","",null,null,null,null,null,null,null,null,null,null,null,null,null,null,null,null,null,null,"","","","",null,null,"",null,null,null,null,null,null,null,null,null,null,null,null,null,null,null,null,null,null,null,null,null,null,null,null,null,null,null,"","","",null,null,null,null,"","","","",null,null,null,null,null,null,null,null,null,null,null,null,null,null,null,null,null,null,null,null,null,null,null,null,null,null,null,null,null,null,null,null,null,null,null,null,null,null,null,null,null,null,null,null,null,null,null,null,null,null,null,null,"","","","","",null,null,null,null,null,null,null,null,"",null,"","","","","","","",""]
["",null,null,null,null,null,"","",null,null,null,null,null,null,null,null,null,null,null,null,null,null,null,null,null,null,"","","","",null,null,"",null,null,null,null,null,null,null,null,null,null,null,null,null,null,null,null,null,null,null,null,null,null,null,null,null,null,null,"","","",null,null,null,null,"","","","",null,null,null,null,null,null,null,null,null,null,null,null,null,null,null,null,null,null,null,null,null,null,null,null,null,null,null,null,null,null,null,null,null,null,null,null,null,null,null,null,null,null,null,null,null,null,null,null,null,null,null,null,"","","","","",null,null,null,null,null,null,null,null,"",null,"","","","","","","",""]
["",null,null,null,null,null,"","",null,null,null,null,null,null,null,null,null,null,null,null,null,null,null,null,null,null,"","","","",null,null,"",null,null,null,null,null,null,null,null,null,null,null,null,null,null,null,null,null,null,null,null,null,null,null,null,null,null,null,"","","",null,null,null,null,"","","","",null,null,null,null,null,null,null,null,null,null,null,null,null,null,null,null,null,null,null,null,null,null,null,null,null,null,null,null,null,null,null,null,null,null,null,null,null,null,null,null,null,null,null,null,null,null,null,null,null,null,null,null,"","","","","",null,null,null,null,null,null,null,null,"",null,"","","","","","","",""]
["",null,null,null,null,null,"","",null,null,null,null,null,null,null,null,null,null,null,null,null,null,null,null,null,null,"","","","",null,null,"",null,null,null,null,null,null,null,null,null,null,null,null,null,null,null,null,null,null,null,null,null,null,null,null,null,null,null,"","","",null,null,null,null,"","","","",null,null,null,null,null,null,null,null,null,null,null,null,null,null,null,null,null,null,null,null,null,null,null,null,null,null,null,null,null,null,null,null,null,null,null,null,null,null,null,null,null,null,null,null,null,null,null,null,null,null,null,null,"","","","","",null,null,null,null,null,null,null,null,"",null,"","","","","","","",""]
["",null,null,null,null,null,"","",null,null,null,null,null,null,null,null,null,null,null,null,null,null,null,null,null,null,"","","","",null,null,"",null,null,null,null,null,null,null,null,null,null,null,null,null,null,null,null,null,null,null,null,null,null,null,null,null,null,null,"","","",null,null,null,null,"","","","",null,null,null,null,null,null,null,null,null,null,null,null,null,null,null,null,null,null,null,null,null,null,null,null,null,null,null,null,null,null,null,null,null,null,null,null,null,null,null,null,null,null,null,null,null,null,null,null,null,null,null,null,"","","","","",null,null,null,null,null,null,null,null,"",null,"","","","","","","",""]
["",null,null,null,null,null,"","",null,null,null,null,null,null,null,null,null,null,null,null,null,null,null,null,null,null,"","","","",null,null,"",null,null,null,null,null,null,null,null,null,null,null,null,null,null,null,null,null,null,null,null,null,null,null,null,null,null,null,"","","",null,null,null,null,"","","","",null,null,null,null,null,null,null,null,null,null,null,null,null,null,null,null,null,null,null,null,null,null,null,null,null,null,null,null,null,null,null,null,null,null,null,null,null,null,null,null,null,null,null,null,null,null,null,null,null,null,null,null,"","","","","",null,null,null,null,null,null,null,null,"",null,"","","","","","","",""]
["",null,null,null,null,null,"","",null,null,null,null,null,null,null,null,null,null,null,null,null,null,null,null,null,null,"","","","",null,null,"",null,null,null,null,null,null,null,null,null,null,null,null,null,null,null,null,null,null,null,null,null,null,null,null,null,null,null,"","","",null,null,null,null,"","","","",null,null,null,null,null,null,null,null,null,null,null,null,null,null,null,null,null,null,null,null,null,null,null,null,null,null,null,null,null,null,null,null,null,null,null,null,null,null,null,null,null,null,null,null,null,null,null,null,null,null,null,null,"","","","","",null,null,null,null,null,null,null,null,"",null,"","","","","","","",""]
["",null,null,null,null,null,"","",null,null,null,null,null,null,null,null,null,null,null,null,null,null,null,null,null,null,"","","","",null,null,"",null,null,null,null,null,null,null,null,null,null,null,null,null,null,null,null,null,null,null,null,null,null,null,null,null,null,null,"","","",null,null,null,null,"","","","",null,null,null,null,null,null,null,null,null,null,null,null,null,null,null,null,null,null,null,null,null,null,null,null,null,null,null,null,null,null,null,null,null,null,null,null,null,null,null,null,null,null,null,null,null,null,null,null,null,null,null,null,"","","","","",null,null,null,null,null,null,null,null,"",null,"","","","","","","",""]
["",null,null,null,null,null,"","",null,null,null,null,null,null,null,null,null,null,null,null,null,null,null,null,null,null,"","","","",null,null,"",null,null,null,null,null,null,null,null,null,null,null,null,null,null,null,null,null,null,null,null,null,null,null,null,null,null,null,"","","",null,null,null,null,"","","","",null,null,null,null,null,null,null,null,null,null,null,null,null,null,null,null,null,null,null,null,null,null,null,null,null,null,null,null,null,null,null,null,null,null,null,null,null,null,null,null,null,null,null,null,null,null,null,null,null,null,null,null,"","","","","",null,null,null,null,null,null,null,null,"",null,"","","","","","","",""]
["",null,null,null,null,null,"","",null,null,null,null,null,null,null,null,null,null,null,null,null,null,null,null,null,null,"","","","",null,null,"",null,null,null,null,null,null,null,null,null,null,null,null,null,null,null,null,null,null,null,null,null,null,null,null,null,null,null,"","","",null,null,null,null,"","","","",null,null,null,null,null,null,null,null,null,null,null,null,null,null,null,null,null,null,null,null,null,null,null,null,null,null,null,null,null,null,null,null,null,null,null,null,null,null,null,null,null,null,null,null,null,null,null,null,null,null,null,null,"","","","","",null,null,null,null,null,null,null,null,"",null,"","","","","","","",""]
["",null,null,null,null,null,"","",null,null,null,null,null,null,null,null,null,null,null,null,null,null,null,null,null,null,"","","","",null,null,"",null,null,null,null,null,null,null,null,null,null,null,null,null,null,null,null,null,null,null,null,null,null,null,null,null,null,null,"","","",null,null,null,null,"","","","",null,null,null,null,null,null,null,null,null,null,null,null,null,null,null,null,null,null,null,null,null,null,null,null,null,null,null,null,null,null,null,null,null,null,null,null,null,null,null,null,null,null,null,null,null,null,null,null,null,null,null,null,"","","","","",null,null,null,null,null,null,null,null,"",null,"","","","","","","",""]
["",null,null,null,null,null,"","",null,null,null,null,null,null,null,null,null,null,null,null,null,null,null,null,null,null,"","","","",null,null,"",null,null,null,null,null,null,null,null,null,null,null,null,null,null,null,null,null,null,null,null,null,null,null,null,null,null,null,"","","",null,null,null,null,"","","","",null,null,null,null,null,null,null,null,null,null,null,null,null,null,null,null,null,null,null,null,null,null,null,null,null,null,null,null,null,null,null,null,null,null,null,null,null,null,null,null,null,null,null,null,null,null,null,null,null,null,null,null,"","","","","",null,null,null,null,null,null,null,null,"",null,"","","","","","","",""]
["",null,null,null,null,null,"","",null,null,null,null,null,null,null,null,null,null,null,null,null,null,null,null,null,null,"","","","",null,null,"",null,null,null,null,null,null,null,null,null,null,null,null,null,null,null,null,null,null,null,null,null,null,null,null,null,null,null,"","","",null,null,null,null,"","","","",null,null,null,null,null,null,null,null,null,null,null,null,null,null,null,null,null,null,null,null,null,null,null,null,null,null,null,null,null,null,null,null,null,null,null,null,null,null,null,null,null,null,null,null,null,null,null,null,null,null,null,null,"","","","","",null,null,null,null,null,null,null,null,"",null,"","","","","","","",""]
["",null,null,null,null,null,"","",null,null,null,null,null,null,null,null,null,null,null,null,null,null,null,null,null,null,"","","","",null,null,"",null,null,null,null,null,null,null,null,null,null,null,null,null,null,null,null,null,null,null,null,null,null,null,null,null,null,null,"","","",null,null,null,null,"","","","",null,null,null,null,null,null,null,null,null,null,null,null,null,null,null,null,null,null,null,null,null,null,null,null,null,null,null,null,null,null,null,null,null,null,null,null,null,null,null,null,null,null,null,null,null,null,null,null,null,null,null,null,"","","","","",null,null,null,null,null,null,null,null,"",null,"","","","","","","",""]
["",null,null,null,null,null,"","",null,null,null,null,null,null,null,null,null,null,null,null,null,null,null,null,null,null,"","","","",null,null,"",null,null,null,null,null,null,null,null,null,null,null,null,null,null,null,null,null,null,null,null,null,null,null,null,null,null,null,"","","",null,null,null,null,"","","","",null,null,null,null,null,null,null,null,null,null,null,null,null,null,null,null,null,null,null,null,null,null,null,null,null,null,null,null,null,null,null,null,null,null,null,null,null,null,null,null,null,null,null,null,null,null,null,null,null,null,null,null,"","","","","",null,null,null,null,null,null,null,null,"",null,"","","","","","","",""]
["",null,null,null,null,null,"","",null,null,null,null,null,null,null,null,null,null,null,null,null,null,null,null,null,null,"","","","",null,null,"",null,null,null,null,null,null,null,null,null,null,null,null,null,null,null,null,null,null,null,null,null,null,null,null,null,null,null,"","","",null,null,null,null,"","","","",null,null,null,null,null,null,null,null,null,null,null,null,null,null,null,null,null,null,null,null,null,null,null,null,null,null,null,null,null,null,null,null,null,null,null,null,null,null,null,null,null,null,null,null,null,null,null,null,null,null,null,null,"","","","","",null,null,null,null,null,null,null,null,"",null,"","","","","","","",""]
["",null,null,null,null,null,"","",null,null,null,null,null,null,null,null,null,null,null,null,null,null,null,null,null,null,"","","","",null,null,"",null,null,null,null,null,null,null,null,null,null,null,null,null,null,null,null,null,null,null,null,null,null,null,null,null,null,null,"","","",null,null,null,null,"","","","",null,null,null,null,null,null,null,null,null,null,null,null,null,null,null,null,null,null,null,null,null,null,null,null,null,null,null,null,null,null,null,null,null,null,null,null,null,null,null,null,null,null,null,null,null,null,null,null,null,null,null,null,"","","","","",null,null,null,null,null,null,null,null,"",null,"","","","","","","",""]
["",null,null,null,null,null,"","",null,null,null,null,null,null,null,null,null,null,null,null,null,null,null,null,null,null,"","","","",null,null,"",null,null,null,null,null,null,null,null,null,null,null,null,null,null,null,null,null,null,null,null,null,null,null,null,null,null,null,"","","",null,null,null,null,"","","","",null,null,null,null,null,null,null,null,null,null,null,null,null,null,null,null,null,null,null,null,null,null,null,null,null,null,null,null,null,null,null,null,null,null,null,null,null,null,null,null,null,null,null,null,null,null,null,null,null,null,null,null,"","","","","",null,null,null,null,null,null,null,null,"",null,"","","","","","","",""]
["",null,null,null,null,null,"","",null,null,null,null,null,null,null,null,null,null,null,null,null,null,null,null,null,null,"","","","",null,null,"",null,null,null,null,null,null,null,null,null,null,null,null,null,null,null,null,null,null,null,null,null,null,null,null,null,null,null,"","","",null,null,null,null,"","","","",null,null,null,null,null,null,null,null,null,null,null,null,null,null,null,null,null,null,null,null,null,null,null,null,null,null,null,null,null,null,null,null,null,null,null,null,null,null,null,null,null,null,null,null,null,null,null,null,null,null,null,null,"","","","","",null,null,null,null,null,null,null,null,"",null,"","","","","","","",""]
["",null,null,null,null,null,"","",null,null,null,null,null,null,null,null,null,null,null,null,null,null,null,null,null,null,"","","","",null,null,"",null,null,null,null,null,null,null,null,null,null,null,null,null,null,null,null,null,null,null,null,null,null,null,null,null,null,null,"","","",null,null,null,null,"","","","",null,null,null,null,null,null,null,null,null,null,null,null,null,null,null,null,null,null,null,null,null,null,null,null,null,null,null,null,null,null,null,null,null,null,null,null,null,null,null,null,null,null,null,null,null,null,null,null,null,null,null,null,"","","","","",null,null,null,null,null,null,null,null,"",null,"","","","","","","",""]
["",null,null,null,null,null,"","",null,null,null,null,null,null,null,null,null,null,null,null,null,null,null,null,null,null,"","","","",null,null,"",null,null,null,null,null,null,null,null,null,null,null,null,null,null,null,null,null,null,null,null,null,null,null,null,null,null,null,"","","",null,null,null,null,"","","","",null,null,null,null,null,null,null,null,null,null,null,null,null,null,null,null,null,null,null,null,null,null,null,null,null,null,null,null,null,null,null,null,null,null,null,null,null,null,null,null,null,null,null,null,null,null,null,null,null,null,null,null,"","","","","",null,null,null,null,null,null,null,null,"",null,"","","","","","","",""]
["",null,null,null,null,null,"","",null,null,null,null,null,null,null,null,null,null,null,null,null,null,null,null,null,null,"","","","",null,null,"",null,null,null,null,null,null,null,null,null,null,null,null,null,null,null,null,null,null,null,null,null,null,null,null,null,null,null,"","","",null,null,null,null,"","","","",null,null,null,null,null,null,null,null,null,null,null,null,null,null,null,null,null,null,null,null,null,null,null,null,null,null,null,null,null,null,null,null,null,null,null,null,null,null,null,null,null,null,null,null,null,null,null,null,null,null,null,null,"","","","","",null,null,null,null,null,null,null,null,"",null,"","","","","","","",""]
["",null,null,null,null,null,"","",null,null,null,null,null,null,null,null,null,null,null,null,null,null,null,null,null,null,"","","","",null,null,"",null,null,null,null,null,null,null,null,null,null,null,null,null,null,null,null,null,null,null,null,null,null,null,null,null,null,null,"","","",null,null,null,null,"","","","",null,null,null,null,null,null,null,null,null,null,null,null,null,null,null,null,null,null,null,null,null,null,null,null,null,null,null,null,null,null,null,null,null,null,null,null,null,null,null,null,null,null,null,null,null,null,null,null,null,null,null,null,"","","","","",null,null,null,null,null,null,null,null,"",null,"","","","","","","",""]
["",null,null,null,null,null,"","",null,null,null,null,null,null,null,null,null,null,null,null,null,null,null,null,null,null,"","","","",null,null,"",null,null,null,null,null,null,null,null,null,null,null,null,null,null,null,null,null,null,null,null,null,null,null,null,null,null,null,"","","",null,null,null,null,"","","","",null,null,null,null,null,null,null,null,null,null,null,null,null,null,null,null,null,null,null,null,null,null,null,null,null,null,null,null,null,null,null,null,null,null,null,null,null,null,null,null,null,null,null,null,null,null,null,null,null,null,null,null,"","","","","",null,null,null,null,null,null,null,null,"",null,"","","","","","","",""]
["",null,null,null,null,null,"","",null,null,null,null,null,null,null,null,null,null,null,null,null,null,null,null,null,null,"","","","",null,null,"",null,null,null,null,null,null,null,null,null,null,null,null,null,null,null,null,null,null,null,null,null,null,null,null,null,null,null,"","","",null,null,null,null,"","","","",null,null,null,null,null,null,null,null,null,null,null,null,null,null,null,null,null,null,null,null,null,null,null,null,null,null,null,null,null,null,null,null,null,null,null,null,null,null,null,null,null,null,null,null,null,null,null,null,null,null,null,null,"","","","","",null,null,null,null,null,null,null,null,"",null,"","","","","","","",""]
["",null,null,null,null,null,"","",null,null,null,null,null,null,null,null,null,null,null,null,null,null,null,null,null,null,"","","","",null,null,"",null,null,null,null,null,null,null,null,null,null,null,null,null,null,null,null,null,null,null,null,null,null,null,null,null,null,null,"","","",null,null,null,null,"","","","",null,null,null,null,null,null,null,null,null,null,null,null,null,null,null,null,null,null,null,null,null,null,null,null,null,null,null,null,null,null,null,null,null,null,null,null,null,null,null,null,null,null,null,null,null,null,null,null,null,null,null,null,"","","","","",null,null,null,null,null,null,null,null,"",null,"","","","","","","",""]
["",null,null,null,null,null,"","",null,null,null,null,null,null,null,null,null,null,null,null,null,null,null,null,null,null,"","","","",null,null,"",null,null,null,null,null,null,null,null,null,null,null,null,null,null,null,null,null,null,null,null,null,null,null,null,null,null,null,"","","",null,null,null,null,"","","","",null,null,null,null,null,null,null,null,null,null,null,null,null,null,null,null,null,null,null,null,null,null,null,null,null,null,null,null,null,null,null,null,null,null,null,null,null,null,null,null,null,null,null,null,null,null,null,null,null,null,null,null,"","","","","",null,null,null,null,null,null,null,null,"",null,"","","","","","","",""]
["",null,null,null,null,null,"","",null,null,null,null,null,null,null,null,null,null,null,null,null,null,null,null,null,null,"","","","",null,null,"",null,null,null,null,null,null,null,null,null,null,null,null,null,null,null,null,null,null,null,null,null,null,null,null,null,null,null,"","","",null,null,null,null,"","","","",null,null,null,null,null,null,null,null,null,null,null,null,null,null,null,null,null,null,null,null,null,null,null,null,null,null,null,null,null,null,null,null,null,null,null,null,null,null,null,null,null,null,null,null,null,null,null,null,null,null,null,null,"","","","","",null,null,null,null,null,null,null,null,"",null,"","","","","","","",""]
["",null,null,null,null,null,"","",null,null,null,null,null,null,null,null,null,null,null,null,null,null,null,null,null,null,"","","","",null,null,"",null,null,null,null,null,null,null,null,null,null,null,null,null,null,null,null,null,null,null,null,null,null,null,null,null,null,null,"","","",null,null,null,null,"","","","",null,null,null,null,null,null,null,null,null,null,null,null,null,null,null,null,null,null,null,null,null,null,null,null,null,null,null,null,null,null,null,null,null,null,null,null,null,null,null,null,null,null,null,null,null,null,null,null,null,null,null,null,"","","","","",null,null,null,null,null,null,null,null,"",null,"","","","","","","",""]
["",null,null,null,null,null,"","",null,null,null,null,null,null,null,null,null,null,null,null,null,null,null,null,null,null,"","","","",null,null,"",null,null,null,null,null,null,null,null,null,null,null,null,null,null,null,null,null,null,null,null,null,null,null,null,null,null,null,"","","",null,null,null,null,"","","","",null,null,null,null,null,null,null,null,null,null,null,null,null,null,null,null,null,null,null,null,null,null,null,null,null,null,null,null,null,null,null,null,null,null,null,null,null,null,null,null,null,null,null,null,null,null,null,null,null,null,null,null,"","","","","",null,null,null,null,null,null,null,null,"",null,"","","","","","","",""]
["",null,null,null,null,null,"","",null,null,null,null,null,null,null,null,null,null,null,null,null,null,null,null,null,null,"","","","",null,null,"",null,null,null,null,null,null,null,null,null,null,null,null,null,null,null,null,null,null,null,null,null,null,null,null,null,null,null,"","","",null,null,null,null,"","","","",null,null,null,null,null,null,null,null,null,null,null,null,null,null,null,null,null,null,null,null,null,null,null,null,null,null,null,null,null,null,null,null,null,null,null,null,null,null,null,null,null,null,null,null,null,null,null,null,null,null,null,null,"","","","","",null,null,null,null,null,null,null,null,"",null,"","","","","","","",""]
["",null,null,null,null,null,"","",null,null,null,null,null,null,null,null,null,null,null,null,null,null,null,null,null,null,"","","","",null,null,"",null,null,null,null,null,null,null,null,null,null,null,null,null,null,null,null,null,null,null,null,null,null,null,null,null,null,null,"","","",null,null,null,null,"","","","",null,null,null,null,null,null,null,null,null,null,null,null,null,null,null,null,null,null,null,null,null,null,null,null,null,null,null,null,null,null,null,null,null,null,null,null,null,null,null,null,null,null,null,null,null,null,null,null,null,null,null,null,"","","","","",null,null,null,null,null,null,null,null,"",null,"","","","","","","",""]
["",null,null,null,null,null,"","",null,null,null,null,null,null,null,null,null,null,null,null,null,null,null,null,null,null,"","","","",null,null,"",null,null,null,null,null,null,null,null,null,null,null,null,null,null,null,null,null,null,null,null,null,null,null,null,null,null,null,"","","",null,null,null,null,"","","","",null,null,null,null,null,null,null,null,null,null,null,null,null,null,null,null,null,null,null,null,null,null,null,null,null,null,null,null,null,null,null,null,null,null,null,null,null,null,null,null,null,null,null,null,null,null,null,null,null,null,null,null,"","","","","",null,null,null,null,null,null,null,null,"",null,"","","","","","","",""]
["",null,null,null,null,null,"","",null,null,null,null,null,null,null,null,null,null,null,null,null,null,null,null,null,null,"","","","",null,null,"",null,null,null,null,null,null,null,null,null,null,null,null,null,null,null,null,null,null,null,null,null,null,null,null,null,null,null,"","","",null,null,null,null,"","","","",null,null,null,null,null,null,null,null,null,null,null,null,null,null,null,null,null,null,null,null,null,null,null,null,null,null,null,null,null,null,null,null,null,null,null,null,null,null,null,null,null,null,null,null,null,null,null,null,null,null,null,null,"","","","","",null,null,null,null,null,null,null,null,"",null,"","","","","","","",""]
["",null,null,null,null,null,"","",null,null,null,null,null,null,null,null,null,null,null,null,null,null,null,null,null,null,"","","","",null,null,"",null,null,null,null,null,null,null,null,null,null,null,null,null,null,null,null,null,null,null,null,null,null,null,null,null,null,null,"","","",null,null,null,null,"","","","",null,null,null,null,null,null,null,null,null,null,null,null,null,null,null,null,null,null,null,null,null,null,null,null,null,null,null,null,null,null,null,null,null,null,null,null,null,null,null,null,null,null,null,null,null,null,null,null,null,null,null,null,"","","","","",null,null,null,null,null,null,null,null,"",null,"","","","","","","",""]
["",null,null,null,null,null,"","",null,null,null,null,null,null,null,null,null,null,null,null,null,null,null,null,null,null,"","","","",null,null,"",null,null,null,null,null,null,null,null,null,null,null,null,null,null,null,null,null,null,null,null,null,null,null,null,null,null,null,"","","",null,null,null,null,"","","","",null,null,null,null,null,null,null,null,null,null,null,null,null,null,null,null,null,null,null,null,null,null,null,null,null,null,null,null,null,null,null,null,null,null,null,null,null,null,null,null,null,null,null,null,null,null,null,null,null,null,null,null,"","","","","",null,null,null,null,null,null,null,null,"",null,"","","","","","","",""]
["",null,null,null,null,null,"","",null,null,null,null,null,null,null,null,null,null,null,null,null,null,null,null,null,null,"","","","",null,null,"",null,null,null,null,null,null,null,null,null,null,null,null,null,null,null,null,null,null,null,null,null,null,null,null,null,null,null,"","","",null,null,null,null,"","","","",null,null,null,null,null,null,null,null,null,null,null,null,null,null,null,null,null,null,null,null,null,null,null,null,null,null,null,null,null,null,null,null,null,null,null,null,null,null,null,null,null,null,null,null,null,null,null,null,null,null,null,null,"","","","","",null,null,null,null,null,null,null,null,"",null,"","","","","","","",""]
["",null,null,null,null,null,"","",null,null,null,null,null,null,null,null,null,null,null,null,null,null,null,null,null,null,"","","","",null,null,"",null,null,null,null,null,null,null,null,null,null,null,null,null,null,null,null,null,null,null,null,null,null,null,null,null,null,null,"","","",null,null,null,null,"","","","",null,null,null,null,null,null,null,null,null,null,null,null,null,null,null,null,null,null,null,null,null,null,null,null,null,null,null,null,null,null,null,null,null,null,null,null,null,null,null,null,null,null,null,null,null,null,null,null,null,null,null,null,"","","","","",null,null,null,null,null,null,null,null,"",null,"","","","","","","",""]
["",null,null,null,null,null,"","",null,null,null,null,null,null,null,null,null,null,null,null,null,null,null,null,null,null,"","","","",null,null,"",null,null,null,null,null,null,null,null,null,null,null,null,null,null,null,null,null,null,null,null,null,null,null,null,null,null,null,"","","",null,null,null,null,"","","","",null,null,null,null,null,null,null,null,null,null,null,null,null,null,null,null,null,null,null,null,null,null,null,null,null,null,null,null,null,null,null,null,null,null,null,null,null,null,null,null,null,null,null,null,null,null,null,null,null,null,null,null,"","","","","",null,null,null,null,null,null,null,null,"",null,"","","","","","","",""]
["",null,null,null,null,null,"","",null,null,null,null,null,null,null,null,null,null,null,null,null,null,null,null,null,null,"","","","",null,null,"",null,null,null,null,null,null,null,null,null,null,null,null,null,null,null,null,null,null,null,null,null,null,null,null,null,null,null,"","","",null,null,null,null,"","","","",null,null,null,null,null,null,null,null,null,null,null,null,null,null,null,null,null,null,null,null,null,null,null,null,null,null,null,null,null,null,null,null,null,null,null,null,null,null,null,null,null,null,null,null,null,null,null,null,null,null,null,null,"","","","","",null,null,null,null,null,null,null,null,"",null,"","","","","","","",""]
["",null,null,null,null,null,"","",null,null,null,null,null,null,null,null,null,null,null,null,null,null,null,null,null,null,"","","","",null,null,"",null,null,null,null,null,null,null,null,null,null,null,null,null,null,null,null,null,null,null,null,null,null,null,null,null,null,null,"","","",null,null,null,null,"","","","",null,null,null,null,null,null,null,null,null,null,null,null,null,null,null,null,null,null,null,null,null,null,null,null,null,null,null,null,null,null,null,null,null,null,null,null,null,null,null,null,null,null,null,null,null,null,null,null,null,null,null,null,"","","","","",null,null,null,null,null,null,null,null,"",null,"","","","","","","",""]
["",null,null,null,null,null,"","",null,null,null,null,null,null,null,null,null,null,null,null,null,null,null,null,null,null,"","","","",null,null,"",null,null,null,null,null,null,null,null,null,null,null,null,null,null,null,null,null,null,null,null,null,null,null,null,null,null,null,"","","",null,null,null,null,"","","","",null,null,null,null,null,null,null,null,null,null,null,null,null,null,null,null,null,null,null,null,null,null,null,null,null,null,null,null,null,null,null,null,null,null,null,null,null,null,null,null,null,null,null,null,null,null,null,null,null,null,null,null,"","","","","",null,null,null,null,null,null,null,null,"",null,"","","","","","","",""]
["",null,null,null,null,null,"","",null,null,null,null,null,null,null,null,null,null,null,null,null,null,null,null,null,null,"","","","",null,null,"",null,null,null,null,null,null,null,null,null,null,null,null,null,null,null,null,null,null,null,null,null,null,null,null,null,null,null,"","","",null,null,null,null,"","","","",null,null,null,null,null,null,null,null,null,null,null,null,null,null,null,null,null,null,null,null,null,null,null,null,null,null,null,null,null,null,null,null,null,null,null,null,null,null,null,null,null,null,null,null,null,null,null,null,null,null,null,null,"","","","","",null,null,null,null,null,null,null,null,"",null,"","","","","","","",""]
["",null,null,null,null,null,"","",null,null,null,null,null,null,null,null,null,null,null,null,null,null,null,null,null,null,"","","","",null,null,"",null,null,null,null,null,null,null,null,null,null,null,null,null,null,null,null,null,null,null,null,null,null,null,null,null,null,null,"","","",null,null,null,null,"","","","",null,null,null,null,null,null,null,null,null,null,null,null,null,null,null,null,null,null,null,null,null,null,null,null,null,null,null,null,null,null,null,null,null,null,null,null,null,null,null,null,null,null,null,null,null,null,null,null,null,null,null,null,"","","","","",null,null,null,null,null,null,null,null,"",null,"","","","","","","",""]
["",null,null,null,null,null,"","",null,null,null,null,null,null,null,null,null,null,null,null,null,null,null,null,null,null,"","","","",null,null,"",null,null,null,null,null,null,null,null,null,null,null,null,null,null,null,null,null,null,null,null,null,null,null,null,null,null,null,"","","",null,null,null,null,"","","","",null,null,null,null,null,null,null,null,null,null,null,null,null,null,null,null,null,null,null,null,null,null,null,null,null,null,null,null,null,null,null,null,null,null,null,null,null,null,null,null,null,null,null,null,null,null,null,null,null,null,null,null,"","","","","",null,null,null,null,null,null,null,null,"",null,"","","","","","","",""]
["",null,null,null,null,null,"","",null,null,null,null,null,null,null,null,null,null,null,null,null,null,null,null,null,null,"","","","",null,null,"",null,null,null,null,null,null,null,null,null,null,null,null,null,null,null,null,null,null,null,null,null,null,null,null,null,null,null,"","","",null,null,null,null,"","","","",null,null,null,null,null,null,null,null,null,null,null,null,null,null,null,null,null,null,null,null,null,null,null,null,null,null,null,null,null,null,null,null,null,null,null,null,null,null,null,null,null,null,null,null,null,null,null,null,null,null,null,null,"","","","","",null,null,null,null,null,null,null,null,"",null,"","","","","","","",""]
["",null,null,null,null,null,"","",null,null,null,null,null,null,null,null,null,null,null,null,null,null,null,null,null,null,"","","","",null,null,"",null,null,null,null,null,null,null,null,null,null,null,null,null,null,null,null,null,null,null,null,null,null,null,null,null,null,null,"","","",null,null,null,null,"","","","",null,null,null,null,null,null,null,null,null,null,null,null,null,null,null,null,null,null,null,null,null,null,null,null,null,null,null,null,null,null,null,null,null,null,null,null,null,null,null,null,null,null,null,null,null,null,null,null,null,null,null,null,"","","","","",null,null,null,null,null,null,null,null,"",null,"","","","","","","",""]
["",null,null,null,null,null,"","",null,null,null,null,null,null,null,null,null,null,null,null,null,null,null,null,null,null,"","","","",null,null,"",null,null,null,null,null,null,null,null,null,null,null,null,null,null,null,null,null,null,null,null,null,null,null,null,null,null,null,"","","",null,null,null,null,"","","","",null,null,null,null,null,null,null,null,null,null,null,null,null,null,null,null,null,null,null,null,null,null,null,null,null,null,null,null,null,null,null,null,null,null,null,null,null,null,null,null,null,null,null,null,null,null,null,null,null,null,null,null,"","","","","",null,null,null,null,null,null,null,null,"",null,"","","","","","","",""]
["",null,null,null,null,null,"","",null,null,null,null,null,null,null,null,null,null,null,null,null,null,null,null,null,null,"","","","",null,null,"",null,null,null,null,null,null,null,null,null,null,null,null,null,null,null,null,null,null,null,null,null,null,null,null,null,null,null,"","","",null,null,null,null,"","","","",null,null,null,null,null,null,null,null,null,null,null,null,null,null,null,null,null,null,null,null,null,null,null,null,null,null,null,null,null,null,null,null,null,null,null,null,null,null,null,null,null,null,null,null,null,null,null,null,null,null,null,null,"","","","","",null,null,null,null,null,null,null,null,"",null,"","","","","","","",""]
["",null,null,null,null,null,"","",null,null,null,null,null,null,null,null,null,null,null,null,null,null,null,null,null,null,"","","","",null,null,"",null,null,null,null,null,null,null,null,null,null,null,null,null,null,null,null,null,null,null,null,null,null,null,null,null,null,null,"","","",null,null,null,null,"","","","",null,null,null,null,null,null,null,null,null,null,null,null,null,null,null,null,null,null,null,null,null,null,null,null,null,null,null,null,null,null,null,null,null,null,null,null,null,null,null,null,null,null,null,null,null,null,null,null,null,null,null,null,"","","","","",null,null,null,null,null,null,null,null,"",null,"","","","","","","",""]
["",null,null,null,null,null,"","",null,null,null,null,null,null,null,null,null,null,null,null,null,null,null,null,null,null,"","","","",null,null,"",null,null,null,null,null,null,null,null,null,null,null,null,null,null,null,null,null,null,null,null,null,null,null,null,null,null,null,"","","",null,null,null,null,"","","","",null,null,null,null,null,null,null,null,null,null,null,null,null,null,null,null,null,null,null,null,null,null,null,null,null,null,null,null,null,null,null,null,null,null,null,null,null,null,null,null,null,null,null,null,null,null,null,null,null,null,null,null,"","","","","",null,null,null,null,null,null,null,null,"",null,"","","","","","","",""]
["",null,null,null,null,null,"","",null,null,null,null,null,null,null,null,null,null,null,null,null,null,null,null,null,null,"","","","",null,null,"",null,null,null,null,null,null,null,null,null,null,null,null,null,null,null,null,null,null,null,null,null,null,null,null,null,null,null,"","","",null,null,null,null,"","","","",null,null,null,null,null,null,null,null,null,null,null,null,null,null,null,null,null,null,null,null,null,null,null,null,null,null,null,null,null,null,null,null,null,null,null,null,null,null,null,null,null,null,null,null,null,null,null,null,null,null,null,null,"","","","","",null,null,null,null,null,null,null,null,"",null,"","","","","","","",""]
["",null,null,null,null,null,"","",null,null,null,null,null,null,null,null,null,null,null,null,null,null,null,null,null,null,"","","","",null,null,"",null,null,null,null,null,null,null,null,null,null,null,null,null,null,null,null,null,null,null,null,null,null,null,null,null,null,null,"","","",null,null,null,null,"","","","",null,null,null,null,null,null,null,null,null,null,null,null,null,null,null,null,null,null,null,null,null,null,null,null,null,null,null,null,null,null,null,null,null,null,null,null,null,null,null,null,null,null,null,null,null,null,null,null,null,null,null,null,"","","","","",null,null,null,null,null,null,null,null,"",null,"","","","","","","",""]
["",null,null,null,null,null,"","",null,null,null,null,null,null,null,null,null,null,null,null,null,null,null,null,null,null,"","","","",null,null,"",null,null,null,null,null,null,null,null,null,null,null,null,null,null,null,null,null,null,null,null,null,null,null,null,null,null,null,"","","",null,null,null,null,"","","","",null,null,null,null,null,null,null,null,null,null,null,null,null,null,null,null,null,null,null,null,null,null,null,null,null,null,null,null,null,null,null,null,null,null,null,null,null,null,null,null,null,null,null,null,null,null,null,null,null,null,null,null,"","","","","",null,null,null,null,null,null,null,null,"",null,"","","","","","","",""]
["",null,null,null,null,null,"","",null,null,null,null,null,null,null,null,null,null,null,null,null,null,null,null,null,null,"","","","",null,null,"",null,null,null,null,null,null,null,null,null,null,null,null,null,null,null,null,null,null,null,null,null,null,null,null,null,null,null,"","","",null,null,null,null,"","","","",null,null,null,null,null,null,null,null,null,null,null,null,null,null,null,null,null,null,null,null,null,null,null,null,null,null,null,null,null,null,null,null,null,null,null,null,null,null,null,null,null,null,null,null,null,null,null,null,null,null,null,null,"","","","","",null,null,null,null,null,null,null,null,"",null,"","","","","","","",""]
["",null,null,null,null,null,"","",null,null,null,null,null,null,null,null,null,null,null,null,null,null,null,null,null,null,"","","","",null,null,"",null,null,null,null,null,null,null,null,null,null,null,null,null,null,null,null,null,null,null,null,null,null,null,null,null,null,null,"","","",null,null,null,null,"","","","",null,null,null,null,null,null,null,null,null,null,null,null,null,null,null,null,null,null,null,null,null,null,null,null,null,null,null,null,null,null,null,null,null,null,null,null,null,null,null,null,null,null,null,null,null,null,null,null,null,null,null,null,"","","","","",null,null,null,null,null,null,null,null,"",null,"","","","","","","",""]
["",null,null,null,null,null,"","",null,null,null,null,null,null,null,null,null,null,null,null,null,null,null,null,null,null,"","","","",null,null,"",null,null,null,null,null,null,null,null,null,null,null,null,null,null,null,null,null,null,null,null,null,null,null,null,null,null,null,"","","",null,null,null,null,"","","","",null,null,null,null,null,null,null,null,null,null,null,null,null,null,null,null,null,null,null,null,null,null,null,null,null,null,null,null,null,null,null,null,null,null,null,null,null,null,null,null,null,null,null,null,null,null,null,null,null,null,null,null,"","","","","",null,null,null,null,null,null,null,null,"",null,"","","","","","","",""]
["",null,null,null,null,null,"","",null,null,null,null,null,null,null,null,null,null,null,null,null,null,null,null,null,null,"","","","",null,null,"",null,null,null,null,null,null,null,null,null,null,null,null,null,null,null,null,null,null,null,null,null,null,null,null,null,null,null,"","","",null,null,null,null,"","","","",null,null,null,null,null,null,null,null,null,null,null,null,null,null,null,null,null,null,null,null,null,null,null,null,null,null,null,null,null,null,null,null,null,null,null,null,null,null,null,null,null,null,null,null,null,null,null,null,null,null,null,null,"","","","","",null,null,null,null,null,null,null,null,"",null,"","","","","","","",""]
["",null,null,null,null,null,"","",null,null,null,null,null,null,null,null,null,null,null,null,null,null,null,null,null,null,"","","","",null,null,"",null,null,null,null,null,null,null,null,null,null,null,null,null,null,null,null,null,null,null,null,null,null,null,null,null,null,null,"","","",null,null,null,null,"","","","",null,null,null,null,null,null,null,null,null,null,null,null,null,null,null,null,null,null,null,null,null,null,null,null,null,null,null,null,null,null,null,null,null,null,null,null,null,null,null,null,null,null,null,null,null,null,null,null,null,null,null,null,"","","","","",null,null,null,null,null,null,null,null,"",null,"","","","","","","",""]
["",null,null,null,null,null,"","",null,null,null,null,null,null,null,null,null,null,null,null,null,null,null,null,null,null,"","","","",null,null,"",null,null,null,null,null,null,null,null,null,null,null,null,null,null,null,null,null,null,null,null,null,null,null,null,null,null,null,"","","",null,null,null,null,"","","","",null,null,null,null,null,null,null,null,null,null,null,null,null,null,null,null,null,null,null,null,null,null,null,null,null,null,null,null,null,null,null,null,null,null,null,null,null,null,null,null,null,null,null,null,null,null,null,null,null,null,null,null,"","","","","",null,null,null,null,null,null,null,null,"",null,"","","","","","","",""]
["",null,null,null,null,null,"","",null,null,null,null,null,null,null,null,null,null,null,null,null,null,null,null,null,null,"","","","",null,null,"",null,null,null,null,null,null,null,null,null,null,null,null,null,null,null,null,null,null,null,null,null,null,null,null,null,null,null,"","","",null,null,null,null,"","","","",null,null,null,null,null,null,null,null,null,null,null,null,null,null,null,null,null,null,null,null,null,null,null,null,null,null,null,null,null,null,null,null,null,null,null,null,null,null,null,null,null,null,null,null,null,null,null,null,null,null,null,null,"","","","","",null,null,null,null,null,null,null,null,"",null,"","","","","","","",""]
["",null,null,null,null,null,"","",null,null,null,null,null,null,null,null,null,null,null,null,null,null,null,null,null,null,"","","","",null,null,"",null,null,null,null,null,null,null,null,null,null,null,null,null,null,null,null,null,null,null,null,null,null,null,null,null,null,null,"","","",null,null,null,null,"","","","",null,null,null,null,null,null,null,null,null,null,null,null,null,null,null,null,null,null,null,null,null,null,null,null,null,null,null,null,null,null,null,null,null,null,null,null,null,null,null,null,null,null,null,null,null,null,null,null,null,null,null,null,"","","","","",null,null,null,null,null,null,null,null,"",null,"","","","","","","",""]
["",null,null,null,null,null,"","",null,null,null,null,null,null,null,null,null,null,null,null,null,null,null,null,null,null,"","","","",null,null,"",null,null,null,null,null,null,null,null,null,null,null,null,null,null,null,null,null,null,null,null,null,null,null,null,null,null,null,"","","",null,null,null,null,"","","","",null,null,null,null,null,null,null,null,null,null,null,null,null,null,null,null,null,null,null,null,null,null,null,null,null,null,null,null,null,null,null,null,null,null,null,null,null,null,null,null,null,null,null,null,null,null,null,null,null,null,null,null,"","","","","",null,null,null,null,null,null,null,null,"",null,"","","","","","","",""]
["",null,null,null,null,null,"","",null,null,null,null,null,null,null,null,null,null,null,null,null,null,null,null,null,null,"","","","",null,null,"",null,null,null,null,null,null,null,null,null,null,null,null,null,null,null,null,null,null,null,null,null,null,null,null,null,null,null,"","","",null,null,null,null,"","","","",null,null,null,null,null,null,null,null,null,null,null,null,null,null,null,null,null,null,null,null,null,null,null,null,null,null,null,null,null,null,null,null,null,null,null,null,null,null,null,null,null,null,null,null,null,null,null,null,null,null,null,null,"","","","","",null,null,null,null,null,null,null,null,"",null,"","","","","","","",""]
["",null,null,null,null,null,"","",null,null,null,null,null,null,null,null,null,null,null,null,null,null,null,null,null,null,"","","","",null,null,"",null,null,null,null,null,null,null,null,null,null,null,null,null,null,null,null,null,null,null,null,null,null,null,null,null,null,null,"","","",null,null,null,null,"","","","",null,null,null,null,null,null,null,null,null,null,null,null,null,null,null,null,null,null,null,null,null,null,null,null,null,null,null,null,null,null,null,null,null,null,null,null,null,null,null,null,null,null,null,null,null,null,null,null,null,null,null,null,"","","","","",null,null,null,null,null,null,null,null,"",null,"","","","","","","",""]
["",null,null,null,null,null,"","",null,null,null,null,null,null,null,null,null,null,null,null,null,null,null,null,null,null,"","","","",null,null,"",null,null,null,null,null,null,null,null,null,null,null,null,null,null,null,null,null,null,null,null,null,null,null,null,null,null,null,"","","",null,null,null,null,"","","","",null,null,null,null,null,null,null,null,null,null,null,null,null,null,null,null,null,null,null,null,null,null,null,null,null,null,null,null,null,null,null,null,null,null,null,null,null,null,null,null,null,null,null,null,null,null,null,null,null,null,null,null,"","","","","",null,null,null,null,null,null,null,null,"",null,"","","","","","","",""]
["",null,null,null,null,null,"","",null,null,null,null,null,null,null,null,null,null,null,null,null,null,null,null,null,null,"","","","",null,null,"",null,null,null,null,null,null,null,null,null,null,null,null,null,null,null,null,null,null,null,null,null,null,null,null,null,null,null,"","","",null,null,null,null,"","","","",null,null,null,null,null,null,null,null,null,null,null,null,null,null,null,null,null,null,null,null,null,null,null,null,null,null,null,null,null,null,null,null,null,null,null,null,null,null,null,null,null,null,null,null,null,null,null,null,null,null,null,null,"","","","","",null,null,null,null,null,null,null,null,"",null,"","","","","","","",""]
["",null,null,null,null,null,"","",null,null,null,null,null,null,null,null,null,null,null,null,null,null,null,null,null,null,"","","","",null,null,"",null,null,null,null,null,null,null,null,null,null,null,null,null,null,null,null,null,null,null,null,null,null,null,null,null,null,null,"","","",null,null,null,null,"","","","",null,null,null,null,null,null,null,null,null,null,null,null,null,null,null,null,null,null,null,null,null,null,null,null,null,null,null,null,null,null,null,null,null,null,null,null,null,null,null,null,null,null,null,null,null,null,null,null,null,null,null,null,"","","","","",null,null,null,null,null,null,null,null,"",null,"","","","","","","",""]
["",null,null,null,null,null,"","",null,null,null,null,null,null,null,null,null,null,null,null,null,null,null,null,null,null,"","","","",null,null,"",null,null,null,null,null,null,null,null,null,null,null,null,null,null,null,null,null,null,null,null,null,null,null,null,null,null,null,"","","",null,null,null,null,"","","","",null,null,null,null,null,null,null,null,null,null,null,null,null,null,null,null,null,null,null,null,null,null,null,null,null,null,null,null,null,null,null,null,null,null,null,null,null,null,null,null,null,null,null,null,null,null,null,null,null,null,null,null,"","","","","",null,null,null,null,null,null,null,null,"",null,"","","","","","","",""]
["",null,null,null,null,null,"","",null,null,null,null,null,null,null,null,null,null,null,null,null,null,null,null,null,null,"","","","",null,null,"",null,null,null,null,null,null,null,null,null,null,null,null,null,null,null,null,null,null,null,null,null,null,null,null,null,null,null,"","","",null,null,null,null,"","","","",null,null,null,null,null,null,null,null,null,null,null,null,null,null,null,null,null,null,null,null,null,null,null,null,null,null,null,null,null,null,null,null,null,null,null,null,null,null,null,null,null,null,null,null,null,null,null,null,null,null,null,null,"","","","","",null,null,null,null,null,null,null,null,"",null,"","","","","","","",""]
["",null,null,null,null,null,"","",null,null,null,null,null,null,null,null,null,null,null,null,null,null,null,null,null,null,"","","","",null,null,"",null,null,null,null,null,null,null,null,null,null,null,null,null,null,null,null,null,null,null,null,null,null,null,null,null,null,null,"","","",null,null,null,null,"","","","",null,null,null,null,null,null,null,null,null,null,null,null,null,null,null,null,null,null,null,null,null,null,null,null,null,null,null,null,null,null,null,null,null,null,null,null,null,null,null,null,null,null,null,null,null,null,null,null,null,null,null,null,"","","","","",null,null,null,null,null,null,null,null,"",null,"","","","","","","",""]
["",null,null,null,null,null,"","",null,null,null,null,null,null,null,null,null,null,null,null,null,null,null,null,null,null,"","","","",null,null,"",null,null,null,null,null,null,null,null,null,null,null,null,null,null,null,null,null,null,null,null,null,null,null,null,null,null,null,"","","",null,null,null,null,"","","","",null,null,null,null,null,null,null,null,null,null,null,null,null,null,null,null,null,null,null,null,null,null,null,null,null,null,null,null,null,null,null,null,null,null,null,null,null,null,null,null,null,null,null,null,null,null,null,null,null,null,null,null,"","","","","",null,null,null,null,null,null,null,null,"",null,"","","","","","","",""]
["",null,null,null,null,null,"","",null,null,null,null,null,null,null,null,null,null,null,null,null,null,null,null,null,null,"","","","",null,null,"",null,null,null,null,null,null,null,null,null,null,null,null,null,null,null,null,null,null,null,null,null,null,null,null,null,null,null,"","","",null,null,null,null,"","","","",null,null,null,null,null,null,null,null,null,null,null,null,null,null,null,null,null,null,null,null,null,null,null,null,null,null,null,null,null,null,null,null,null,null,null,null,null,null,null,null,null,null,null,null,null,null,null,null,null,null,null,null,"","","","","",null,null,null,null,null,null,null,null,"",null,"","","","","","","",""]
["",null,null,null,null,null,"","",null,null,null,null,null,null,null,null,null,null,null,null,null,null,null,null,null,null,"","","","",null,null,"",null,null,null,null,null,null,null,null,null,null,null,null,null,null,null,null,null,null,null,null,null,null,null,null,null,null,null,"","","",null,null,null,null,"","","","",null,null,null,null,null,null,null,null,null,null,null,null,null,null,null,null,null,null,null,null,null,null,null,null,null,null,null,null,null,null,null,null,null,null,null,null,null,null,null,null,null,null,null,null,null,null,null,null,null,null,null,null,"","","","","",null,null,null,null,null,null,null,null,"",null,"","","","","","","",""]
["",null,null,null,null,null,"","",null,null,null,null,null,null,null,null,null,null,null,null,null,null,null,null,null,null,"","","","",null,null,"",null,null,null,null,null,null,null,null,null,null,null,null,null,null,null,null,null,null,null,null,null,null,null,null,null,null,null,"","","",null,null,null,null,"","","","",null,null,null,null,null,null,null,null,null,null,null,null,null,null,null,null,null,null,null,null,null,null,null,null,null,null,null,null,null,null,null,null,null,null,null,null,null,null,null,null,null,null,null,null,null,null,null,null,null,null,null,null,"","","","","",null,null,null,null,null,null,null,null,"",null,"","","","","","","",""]
["",null,null,null,null,null,"","",null,null,null,null,null,null,null,null,null,null,null,null,null,null,null,null,null,null,"","","","",null,null,"",null,null,null,null,null,null,null,null,null,null,null,null,null,null,null,null,null,null,null,null,null,null,null,null,null,null,null,"","","",null,null,null,null,"","","","",null,null,null,null,null,null,null,null,null,null,null,null,null,null,null,null,null,null,null,null,null,null,null,null,null,null,null,null,null,null,null,null,null,null,null,null,null,null,null,null,null,null,null,null,null,null,null,null,null,null,null,null,"","","","","",null,null,null,null,null,null,null,null,"",null,"","","","","","","",""]
["",null,null,null,null,null,"","",null,null,null,null,null,null,null,null,null,null,null,null,null,null,null,null,null,null,"","","","",null,null,"",null,null,null,null,null,null,null,null,null,null,null,null,null,null,null,null,null,null,null,null,null,null,null,null,null,null,null,"","","",null,null,null,null,"","","","",null,null,null,null,null,null,null,null,null,null,null,null,null,null,null,null,null,null,null,null,null,null,null,null,null,null,null,null,null,null,null,null,null,null,null,null,null,null,null,null,null,null,null,null,null,null,null,null,null,null,null,null,"","","","","",null,null,null,null,null,null,null,null,"",null,"","","","","","","",""]
["",null,null,null,null,null,"","",null,null,null,null,null,null,null,null,null,null,null,null,null,null,null,null,null,null,"","","","",null,null,"",null,null,null,null,null,null,null,null,null,null,null,null,null,null,null,null,null,null,null,null,null,null,null,null,null,null,null,"","","",null,null,null,null,"","","","",null,null,null,null,null,null,null,null,null,null,null,null,null,null,null,null,null,null,null,null,null,null,null,null,null,null,null,null,null,null,null,null,null,null,null,null,null,null,null,null,null,null,null,null,null,null,null,null,null,null,null,null,"","","","","",null,null,null,null,null,null,null,null,"",null,"","","","","","","",""]
["",null,null,null,null,null,"","",null,null,null,null,null,null,null,null,null,null,null,null,null,null,null,null,null,null,"","","","",null,null,"",null,null,null,null,null,null,null,null,null,null,null,null,null,null,null,null,null,null,null,null,null,null,null,null,null,null,null,"","","",null,null,null,null,"","","","",null,null,null,null,null,null,null,null,null,null,null,null,null,null,null,null,null,null,null,null,null,null,null,null,null,null,null,null,null,null,null,null,null,null,null,null,null,null,null,null,null,null,null,null,null,null,null,null,null,null,null,null,"","","","","",null,null,null,null,null,null,null,null,"",null,"","","","","","","",""]
["",null,null,null,null,null,"","",null,null,null,null,null,null,null,null,null,null,null,null,null,null,null,null,null,null,"","","","",null,null,"",null,null,null,null,null,null,null,null,null,null,null,null,null,null,null,null,null,null,null,null,null,null,null,null,null,null,null,"","","",null,null,null,null,"","","","",null,null,null,null,null,null,null,null,null,null,null,null,null,null,null,null,null,null,null,null,null,null,null,null,null,null,null,null,null,null,null,null,null,null,null,null,null,null,null,null,null,null,null,null,null,null,null,null,null,null,null,null,"","","","","",null,null,null,null,null,null,null,null,"",null,"","","","","","","",""]
["",null,null,null,null,null,"","",null,null,null,null,null,null,null,null,null,null,null,null,null,null,null,null,null,null,"","","","",null,null,"",null,null,null,null,null,null,null,null,null,null,null,null,null,null,null,null,null,null,null,null,null,null,null,null,null,null,null,"","","",null,null,null,null,"","","","",null,null,null,null,null,null,null,null,null,null,null,null,null,null,null,null,null,null,null,null,null,null,null,null,null,null,null,null,null,null,null,null,null,null,null,null,null,null,null,null,null,null,null,null,null,null,null,null,null,null,null,null,"","","","","",null,null,null,null,null,null,null,null,"",null,"","","","","","","",""]
["",null,null,null,null,null,"","",null,null,null,null,null,null,null,null,null,null,null,null,null,null,null,null,null,null,"","","","",null,null,"",null,null,null,null,null,null,null,null,null,null,null,null,null,null,null,null,null,null,null,null,null,null,null,null,null,null,null,"","","",null,null,null,null,"","","","",null,null,null,null,null,null,null,null,null,null,null,null,null,null,null,null,null,null,null,null,null,null,null,null,null,null,null,null,null,null,null,null,null,null,null,null,null,null,null,null,null,null,null,null,null,null,null,null,null,null,null,null,"","","","","",null,null,null,null,null,null,null,null,"",null,"","","","","","","",""]
["",null,null,null,null,null,"","",null,null,null,null,null,null,null,null,null,null,null,null,null,null,null,null,null,null,"","","","",null,null,"",null,null,null,null,null,null,null,null,null,null,null,null,null,null,null,null,null,null,null,null,null,null,null,null,null,null,null,"","","",null,null,null,null,"","","","",null,null,null,null,null,null,null,null,null,null,null,null,null,null,null,null,null,null,null,null,null,null,null,null,null,null,null,null,null,null,null,null,null,null,null,null,null,null,null,null,null,null,null,null,null,null,null,null,null,null,null,null,"","","","","",null,null,null,null,null,null,null,null,"",null,"","","","","","","",""]
["",null,null,null,null,null,"","",null,null,null,null,null,null,null,null,null,null,null,null,null,null,null,null,null,null,"","","","",null,null,"",null,null,null,null,null,null,null,null,null,null,null,null,null,null,null,null,null,null,null,null,null,null,null,null,null,null,null,"","","",null,null,null,null,"","","","",null,null,null,null,null,null,null,null,null,null,null,null,null,null,null,null,null,null,null,null,null,null,null,null,null,null,null,null,null,null,null,null,null,null,null,null,null,null,null,null,null,null,null,null,null,null,null,null,null,null,null,null,"","","","","",null,null,null,null,null,null,null,null,"",null,"","","","","","","",""]
["",null,null,null,null,null,"","",null,null,null,null,null,null,null,null,null,null,null,null,null,null,null,null,null,null,"","","","",null,null,"",null,null,null,null,null,null,null,null,null,null,null,null,null,null,null,null,null,null,null,null,null,null,null,null,null,null,null,"","","",null,null,null,null,"","","","",null,null,null,null,null,null,null,null,null,null,null,null,null,null,null,null,null,null,null,null,null,null,null,null,null,null,null,null,null,null,null,null,null,null,null,null,null,null,null,null,null,null,null,null,null,null,null,null,null,null,null,null,"","","","","",null,null,null,null,null,null,null,null,"",null,"","","","","","","",""]
["",null,null,null,null,null,"","",null,null,null,null,null,null,null,null,null,null,null,null,null,null,null,null,null,null,"","","","",null,null,"",null,null,null,null,null,null,null,null,null,null,null,null,null,null,null,null,null,null,null,null,null,null,null,null,null,null,null,"","","",null,null,null,null,"","","","",null,null,null,null,null,null,null,null,null,null,null,null,null,null,null,null,null,null,null,null,null,null,null,null,null,null,null,null,null,null,null,null,null,null,null,null,null,null,null,null,null,null,null,null,null,null,null,null,null,null,null,null,"","","","","",null,null,null,null,null,null,null,null,"",null,"","","","","","","",""]
["",null,null,null,null,null,"","",null,null,null,null,null,null,null,null,null,null,null,null,null,null,null,null,null,null,"","","","",null,null,"",null,null,null,null,null,null,null,null,null,null,null,null,null,null,null,null,null,null,null,null,null,null,null,null,null,null,null,"","","",null,null,null,null,"","","","",null,null,null,null,null,null,null,null,null,null,null,null,null,null,null,null,null,null,null,null,null,null,null,null,null,null,null,null,null,null,null,null,null,null,null,null,null,null,null,null,null,null,null,null,null,null,null,null,null,null,null,null,"","","","","",null,null,null,null,null,null,null,null,"",null,"","","","","","","",""]
["",null,null,null,null,null,"","",null,null,null,null,null,null,null,null,null,null,null,null,null,null,null,null,null,null,"","","","",null,null,"",null,null,null,null,null,null,null,null,null,null,null,null,null,null,null,null,null,null,null,null,null,null,null,null,null,null,null,"","","",null,null,null,null,"","","","",null,null,null,null,null,null,null,null,null,null,null,null,null,null,null,null,null,null,null,null,null,null,null,null,null,null,null,null,null,null,null,null,null,null,null,null,null,null,null,null,null,null,null,null,null,null,null,null,null,null,null,null,"","","","","",null,null,null,null,null,null,null,null,"",null,"","","","","","","",""]
["",null,null,null,null,null,"","",null,null,null,null,null,null,null,null,null,null,null,null,null,null,null,null,null,null,"","","","",null,null,"",null,null,null,null,null,null,null,null,null,null,null,null,null,null,null,null,null,null,null,null,null,null,null,null,null,null,null,"","","",null,null,null,null,"","","","",null,null,null,null,null,null,null,null,null,null,null,null,null,null,null,null,null,null,null,null,null,null,null,null,null,null,null,null,null,null,null,null,null,null,null,null,null,null,null,null,null,null,null,null,null,null,null,null,null,null,null,null,"","","","","",null,null,null,null,null,null,null,null,"",null,"","","","","","","",""]
["",null,null,null,null,null,"","",null,null,null,null,null,null,null,null,null,null,null,null,null,null,null,null,null,null,"","","","",null,null,"",null,null,null,null,null,null,null,null,null,null,null,null,null,null,null,null,null,null,null,null,null,null,null,null,null,null,null,"","","",null,null,null,null,"","","","",null,null,null,null,null,null,null,null,null,null,null,null,null,null,null,null,null,null,null,null,null,null,null,null,null,null,null,null,null,null,null,null,null,null,null,null,null,null,null,null,null,null,null,null,null,null,null,null,null,null,null,null,"","","","","",null,null,null,null,null,null,null,null,"",null,"","","","","","","",""]
["",null,null,null,null,null,"","",null,null,null,null,null,null,null,null,null,null,null,null,null,null,null,null,null,null,"","","","",null,null,"",null,null,null,null,null,null,null,null,null,null,null,null,null,null,null,null,null,null,null,null,null,null,null,null,null,null,null,"","","",null,null,null,null,"","","","",null,null,null,null,null,null,null,null,null,null,null,null,null,null,null,null,null,null,null,null,null,null,null,null,null,null,null,null,null,null,null,null,null,null,null,null,null,null,null,null,null,null,null,null,null,null,null,null,null,null,null,null,"","","","","",null,null,null,null,null,null,null,null,"",null,"","","","","","","",""]
["",null,null,null,null,null,"","",null,null,null,null,null,null,null,null,null,null,null,null,null,null,null,null,null,null,"","","","",null,null,"",null,null,null,null,null,null,null,null,null,null,null,null,null,null,null,null,null,null,null,null,null,null,null,null,null,null,null,"","","",null,null,null,null,"","","","",null,null,null,null,null,null,null,null,null,null,null,null,null,null,null,null,null,null,null,null,null,null,null,null,null,null,null,null,null,null,null,null,null,null,null,null,null,null,null,null,null,null,null,null,null,null,null,null,null,null,null,null,"","","","","",null,null,null,null,null,null,null,null,"",null,"","","","","","","",""]
["",null,null,null,null,null,"","",null,null,null,null,null,null,null,null,null,null,null,null,null,null,null,null,null,null,"","","","",null,null,"",null,null,null,null,null,null,null,null,null,null,null,null,null,null,null,null,null,null,null,null,null,null,null,null,null,null,null,"","","",null,null,null,null,"","","","",null,null,null,null,null,null,null,null,null,null,null,null,null,null,null,null,null,null,null,null,null,null,null,null,null,null,null,null,null,null,null,null,null,null,null,null,null,null,null,null,null,null,null,null,null,null,null,null,null,null,null,null,"","","","","",null,null,null,null,null,null,null,null,"",null,"","","","","","","",""]
["",null,null,null,null,null,"","",null,null,null,null,null,null,null,null,null,null,null,null,null,null,null,null,null,null,"","","","",null,null,"",null,null,null,null,null,null,null,null,null,null,null,null,null,null,null,null,null,null,null,null,null,null,null,null,null,null,null,"","","",null,null,null,null,"","","","",null,null,null,null,null,null,null,null,null,null,null,null,null,null,null,null,null,null,null,null,null,null,null,null,null,null,null,null,null,null,null,null,null,null,null,null,null,null,null,null,null,null,null,null,null,null,null,null,null,null,null,null,"","","","","",null,null,null,null,null,null,null,null,"",null,"","","","","","","",""]
["",null,null,null,null,null,"","",null,null,null,null,null,null,null,null,null,null,null,null,null,null,null,null,null,null,"","","","",null,null,"",null,null,null,null,null,null,null,null,null,null,null,null,null,null,null,null,null,null,null,null,null,null,null,null,null,null,null,"","","",null,null,null,null,"","","","",null,null,null,null,null,null,null,null,null,null,null,null,null,null,null,null,null,null,null,null,null,null,null,null,null,null,null,null,null,null,null,null,null,null,null,null,null,null,null,null,null,null,null,null,null,null,null,null,null,null,null,null,"","","","","",null,null,null,null,null,null,null,null,"",null,"","","","","","","",""]
["",null,null,null,null,null,"","",null,null,null,null,null,null,null,null,null,null,null,null,null,null,null,null,null,null,"","","","",null,null,"",null,null,null,null,null,null,null,null,null,null,null,null,null,null,null,null,null,null,null,null,null,null,null,null,null,null,null,"","","",null,null,null,null,"","","","",null,null,null,null,null,null,null,null,null,null,null,null,null,null,null,null,null,null,null,null,null,null,null,null,null,null,null,null,null,null,null,null,null,null,null,null,null,null,null,null,null,null,null,null,null,null,null,null,null,null,null,null,"","","","","",null,null,null,null,null,null,null,null,"",null,"","","","","","","",""]
["",null,null,null,null,null,"","",null,null,null,null,null,null,null,null,null,null,null,null,null,null,null,null,null,null,"","","","",null,null,"",null,null,null,null,null,null,null,null,null,null,null,null,null,null,null,null,null,null,null,null,null,null,null,null,null,null,null,"","","",null,null,null,null,"","","","",null,null,null,null,null,null,null,null,null,null,null,null,null,null,null,null,null,null,null,null,null,null,null,null,null,null,null,null,null,null,null,null,null,null,null,null,null,null,null,null,null,null,null,null,null,null,null,null,null,null,null,null,"","","","","",null,null,null,null,null,null,null,null,"",null,"","","","","","","",""]
["",null,null,null,null,null,"","",null,null,null,null,null,null,null,null,null,null,null,null,null,null,null,null,null,null,"","","","",null,null,"",null,null,null,null,null,null,null,null,null,null,null,null,null,null,null,null,null,null,null,null,null,null,null,null,null,null,null,"","","",null,null,null,null,"","","","",null,null,null,null,null,null,null,null,null,null,null,null,null,null,null,null,null,null,null,null,null,null,null,null,null,null,null,null,null,null,null,null,null,null,null,null,null,null,null,null,null,null,null,null,null,null,null,null,null,null,null,null,"","","","","",null,null,null,null,null,null,null,null,"",null,"","","","","","","",""]
["",null,null,null,null,null,"","",null,null,null,null,null,null,null,null,null,null,null,null,null,null,null,null,null,null,"","","","",null,null,"",null,null,null,null,null,null,null,null,null,null,null,null,null,null,null,null,null,null,null,null,null,null,null,null,null,null,null,"","","",null,null,null,null,"","","","",null,null,null,null,null,null,null,null,null,null,null,null,null,null,null,null,null,null,null,null,null,null,null,null,null,null,null,null,null,null,null,null,null,null,null,null,null,null,null,null,null,null,null,null,null,null,null,null,null,null,null,null,"","","","","",null,null,null,null,null,null,null,null,"",null,"","","","","","","",""]
["",null,null,null,null,null,"","",null,null,null,null,null,null,null,null,null,null,null,null,null,null,null,null,null,null,"","","","",null,null,"",null,null,null,null,null,null,null,null,null,null,null,null,null,null,null,null,null,null,null,null,null,null,null,null,null,null,null,"","","",null,null,null,null,"","","","",null,null,null,null,null,null,null,null,null,null,null,null,null,null,null,null,null,null,null,null,null,null,null,null,null,null,null,null,null,null,null,null,null,null,null,null,null,null,null,null,null,null,null,null,null,null,null,null,null,null,null,null,"","","","","",null,null,null,null,null,null,null,null,"",null,"","","","","","","",""]
["",null,null,null,null,null,"","",null,null,null,null,null,null,null,null,null,null,null,null,null,null,null,null,null,null,"","","","",null,null,"",null,null,null,null,null,null,null,null,null,null,null,null,null,null,null,null,null,null,null,null,null,null,null,null,null,null,null,"","","",null,null,null,null,"","","","",null,null,null,null,null,null,null,null,null,null,null,null,null,null,null,null,null,null,null,null,null,null,null,null,null,null,null,null,null,null,null,null,null,null,null,null,null,null,null,null,null,null,null,null,null,null,null,null,null,null,null,null,"","","","","",null,null,null,null,null,null,null,null,"",null,"","","","","","","",""]
["",null,null,null,null,null,"","",null,null,null,null,null,null,null,null,null,null,null,null,null,null,null,null,null,null,"","","","",null,null,"",null,null,null,null,null,null,null,null,null,null,null,null,null,null,null,null,null,null,null,null,null,null,null,null,null,null,null,"","","",null,null,null,null,"","","","",null,null,null,null,null,null,null,null,null,null,null,null,null,null,null,null,null,null,null,null,null,null,null,null,null,null,null,null,null,null,null,null,null,null,null,null,null,null,null,null,null,null,null,null,null,null,null,null,null,null,null,null,"","","","","",null,null,null,null,null,null,null,null,"",null,"","","","","","","",""]
["",null,null,null,null,null,"","",null,null,null,null,null,null,null,null,null,null,null,null,null,null,null,null,null,null,"","","","",null,null,"",null,null,null,null,null,null,null,null,null,null,null,null,null,null,null,null,null,null,null,null,null,null,null,null,null,null,null,"","","",null,null,null,null,"","","","",null,null,null,null,null,null,null,null,null,null,null,null,null,null,null,null,null,null,null,null,null,null,null,null,null,null,null,null,null,null,null,null,null,null,null,null,null,null,null,null,null,null,null,null,null,null,null,null,null,null,null,null,"","","","","",null,null,null,null,null,null,null,null,"",null,"","","","","","","",""]
["",null,null,null,null,null,"","",null,null,null,null,null,null,null,null,null,null,null,null,null,null,null,null,null,null,"","","","",null,null,"",null,null,null,null,null,null,null,null,null,null,null,null,null,null,null,null,null,null,null,null,null,null,null,null,null,null,null,"","","",null,null,null,null,"","","","",null,null,null,null,null,null,null,null,null,null,null,null,null,null,null,null,null,null,null,null,null,null,null,null,null,null,null,null,null,null,null,null,null,null,null,null,null,null,null,null,null,null,null,null,null,null,null,null,null,null,null,null,"","","","","",null,null,null,null,null,null,null,null,"",null,"","","","","","","",""]
["",null,null,null,null,null,"","",null,null,null,null,null,null,null,null,null,null,null,null,null,null,null,null,null,null,"","","","",null,null,"",null,null,null,null,null,null,null,null,null,null,null,null,null,null,null,null,null,null,null,null,null,null,null,null,null,null,null,"","","",null,null,null,null,"","","","",null,null,null,null,null,null,null,null,null,null,null,null,null,null,null,null,null,null,null,null,null,null,null,null,null,null,null,null,null,null,null,null,null,null,null,null,null,null,null,null,null,null,null,null,null,null,null,null,null,null,null,null,"","","","","",null,null,null,null,null,null,null,null,"",null,"","","","","","","",""]
["",null,null,null,null,null,"","",null,null,null,null,null,null,null,null,null,null,null,null,null,null,null,null,null,null,"","","","",null,null,"",null,null,null,null,null,null,null,null,null,null,null,null,null,null,null,null,null,null,null,null,null,null,null,null,null,null,null,"","","",null,null,null,null,"","","","",null,null,null,null,null,null,null,null,null,null,null,null,null,null,null,null,null,null,null,null,null,null,null,null,null,null,null,null,null,null,null,null,null,null,null,null,null,null,null,null,null,null,null,null,null,null,null,null,null,null,null,null,"","","","","",null,null,null,null,null,null,null,null,"",null,"","","","","","","",""]
["",null,null,null,null,null,"","",null,null,null,null,null,null,null,null,null,null,null,null,null,null,null,null,null,null,"","","","",null,null,"",null,null,null,null,null,null,null,null,null,null,null,null,null,null,null,null,null,null,null,null,null,null,null,null,null,null,null,"","","",null,null,null,null,"","","","",null,null,null,null,null,null,null,null,null,null,null,null,null,null,null,null,null,null,null,null,null,null,null,null,null,null,null,null,null,null,null,null,null,null,null,null,null,null,null,null,null,null,null,null,null,null,null,null,null,null,null,null,"","","","","",null,null,null,null,null,null,null,null,"",null,"","","","","","","",""]
["",null,null,null,null,null,"","",null,null,null,null,null,null,null,null,null,null,null,null,null,null,null,null,null,null,"","","","",null,null,"",null,null,null,null,null,null,null,null,null,null,null,null,null,null,null,null,null,null,null,null,null,null,null,null,null,null,null,"","","",null,null,null,null,"","","","",null,null,null,null,null,null,null,null,null,null,null,null,null,null,null,null,null,null,null,null,null,null,null,null,null,null,null,null,null,null,null,null,null,null,null,null,null,null,null,null,null,null,null,null,null,null,null,null,null,null,null,null,"","","","","",null,null,null,null,null,null,null,null,"",null,"","","","","","","",""]
["",null,null,null,null,null,"","",null,null,null,null,null,null,null,null,null,null,null,null,null,null,null,null,null,null,"","","","",null,null,"",null,null,null,null,null,null,null,null,null,null,null,null,null,null,null,null,null,null,null,null,null,null,null,null,null,null,null,"","","",null,null,null,null,"","","","",null,null,null,null,null,null,null,null,null,null,null,null,null,null,null,null,null,null,null,null,null,null,null,null,null,null,null,null,null,null,null,null,null,null,null,null,null,null,null,null,null,null,null,null,null,null,null,null,null,null,null,null,"","","","","",null,null,null,null,null,null,null,null,"",null,"","","","","","","",""]
["",null,null,null,null,null,"","",null,null,null,null,null,null,null,null,null,null,null,null,null,null,null,null,null,null,"","","","",null,null,"",null,null,null,null,null,null,null,null,null,null,null,null,null,null,null,null,null,null,null,null,null,null,null,null,null,null,null,"","","",null,null,null,null,"","","","",null,null,null,null,null,null,null,null,null,null,null,null,null,null,null,null,null,null,null,null,null,null,null,null,null,null,null,null,null,null,null,null,null,null,null,null,null,null,null,null,null,null,null,null,null,null,null,null,null,null,null,null,"","","","","",null,null,null,null,null,null,null,null,"",null,"","","","","","","",""]
["",null,null,null,null,null,"","",null,null,null,null,null,null,null,null,null,null,null,null,null,null,null,null,null,null,"","","","",null,null,"",null,null,null,null,null,null,null,null,null,null,null,null,null,null,null,null,null,null,null,null,null,null,null,null,null,null,null,"","","",null,null,null,null,"","","","",null,null,null,null,null,null,null,null,null,null,null,null,null,null,null,null,null,null,null,null,null,null,null,null,null,null,null,null,null,null,null,null,null,null,null,null,null,null,null,null,null,null,null,null,null,null,null,null,null,null,null,null,"","","","","",null,null,null,null,null,null,null,null,"",null,"","","","","","","",""]
["",null,null,null,null,null,"","",null,null,null,null,null,null,null,null,null,null,null,null,null,null,null,null,null,null,"","","","",null,null,"",null,null,null,null,null,null,null,null,null,null,null,null,null,null,null,null,null,null,null,null,null,null,null,null,null,null,null,"","","",null,null,null,null,"","","","",null,null,null,null,null,null,null,null,null,null,null,null,null,null,null,null,null,null,null,null,null,null,null,null,null,null,null,null,null,null,null,null,null,null,null,null,null,null,null,null,null,null,null,null,null,null,null,null,null,null,null,null,"","","","","",null,null,null,null,null,null,null,null,"",null,"","","","","","","",""]
["",null,null,null,null,null,"","",null,null,null,null,null,null,null,null,null,null,null,null,null,null,null,null,null,null,"","","","",null,null,"",null,null,null,null,null,null,null,null,null,null,null,null,null,null,null,null,null,null,null,null,null,null,null,null,null,null,null,"","","",null,null,null,null,"","","","",null,null,null,null,null,null,null,null,null,null,null,null,null,null,null,null,null,null,null,null,null,null,null,null,null,null,null,null,null,null,null,null,null,null,null,null,null,null,null,null,null,null,null,null,null,null,null,null,null,null,null,null,"","","","","",null,null,null,null,null,null,null,null,"",null,"","","","","","","",""]
["",null,null,null,null,null,"","",null,null,null,null,null,null,null,null,null,null,null,null,null,null,null,null,null,null,"","","","",null,null,"",null,null,null,null,null,null,null,null,null,null,null,null,null,null,null,null,null,null,null,null,null,null,null,null,null,null,null,"","","",null,null,null,null,"","","","",null,null,null,null,null,null,null,null,null,null,null,null,null,null,null,null,null,null,null,null,null,null,null,null,null,null,null,null,null,null,null,null,null,null,null,null,null,null,null,null,null,null,null,null,null,null,null,null,null,null,null,null,"","","","","",null,null,null,null,null,null,null,null,"",null,"","","","","","","",""]
["",null,null,null,null,null,"","",null,null,null,null,null,null,null,null,null,null,null,null,null,null,null,null,null,null,"","","","",null,null,"",null,null,null,null,null,null,null,null,null,null,null,null,null,null,null,null,null,null,null,null,null,null,null,null,null,null,null,"","","",null,null,null,null,"","","","",null,null,null,null,null,null,null,null,null,null,null,null,null,null,null,null,null,null,null,null,null,null,null,null,null,null,null,null,null,null,null,null,null,null,null,null,null,null,null,null,null,null,null,null,null,null,null,null,null,null,null,null,"","","","","",null,null,null,null,null,null,null,null,"",null,"","","","","","","",""]
["",null,null,null,null,null,"","",null,null,null,null,null,null,null,null,null,null,null,null,null,null,null,null,null,null,"","","","",null,null,"",null,null,null,null,null,null,null,null,null,null,null,null,null,null,null,null,null,null,null,null,null,null,null,null,null,null,null,"","","",null,null,null,null,"","","","",null,null,null,null,null,null,null,null,null,null,null,null,null,null,null,null,null,null,null,null,null,null,null,null,null,null,null,null,null,null,null,null,null,null,null,null,null,null,null,null,null,null,null,null,null,null,null,null,null,null,null,null,"","","","","",null,null,null,null,null,null,null,null,"",null,"","","","","","","",""]
["",null,null,null,null,null,"","",null,null,null,null,null,null,null,null,null,null,null,null,null,null,null,null,null,null,"","","","",null,null,"",null,null,null,null,null,null,null,null,null,null,null,null,null,null,null,null,null,null,null,null,null,null,null,null,null,null,null,"","","",null,null,null,null,"","","","",null,null,null,null,null,null,null,null,null,null,null,null,null,null,null,null,null,null,null,null,null,null,null,null,null,null,null,null,null,null,null,null,null,null,null,null,null,null,null,null,null,null,null,null,null,null,null,null,null,null,null,null,"","","","","",null,null,null,null,null,null,null,null,"",null,"","","","","","","",""]
["",null,null,null,null,null,"","",null,null,null,null,null,null,null,null,null,null,null,null,null,null,null,null,null,null,"","","","",null,null,"",null,null,null,null,null,null,null,null,null,null,null,null,null,null,null,null,null,null,null,null,null,null,null,null,null,null,null,"","","",null,null,null,null,"","","","",null,null,null,null,null,null,null,null,null,null,null,null,null,null,null,null,null,null,null,null,null,null,null,null,null,null,null,null,null,null,null,null,null,null,null,null,null,null,null,null,null,null,null,null,null,null,null,null,null,null,null,null,"","","","","",null,null,null,null,null,null,null,null,"",null,"","","","","","","",""]
["",null,null,null,null,null,"","",null,null,null,null,null,null,null,null,null,null,null,null,null,null,null,null,null,null,"","","","",null,null,"",null,null,null,null,null,null,null,null,null,null,null,null,null,null,null,null,null,null,null,null,null,null,null,null,null,null,null,"","","",null,null,null,null,"","","","",null,null,null,null,null,null,null,null,null,null,null,null,null,null,null,null,null,null,null,null,null,null,null,null,null,null,null,null,null,null,null,null,null,null,null,null,null,null,null,null,null,null,null,null,null,null,null,null,null,null,null,null,"","","","","",null,null,null,null,null,null,null,null,"",null,"","","","","","","",""]
["",null,null,null,null,null,"","",null,null,null,null,null,null,null,null,null,null,null,null,null,null,null,null,null,null,"","","","",null,null,"",null,null,null,null,null,null,null,null,null,null,null,null,null,null,null,null,null,null,null,null,null,null,null,null,null,null,null,"","","",null,null,null,null,"","","","",null,null,null,null,null,null,null,null,null,null,null,null,null,null,null,null,null,null,null,null,null,null,null,null,null,null,null,null,null,null,null,null,null,null,null,null,null,null,null,null,null,null,null,null,null,null,null,null,null,null,null,null,"","","","","",null,null,null,null,null,null,null,null,"",null,"","","","","","","",""]
["",null,null,null,null,null,"","",null,null,null,null,null,null,null,null,null,null,null,null,null,null,null,null,null,null,"","","","",null,null,"",null,null,null,null,null,null,null,null,null,null,null,null,null,null,null,null,null,null,null,null,null,null,null,null,null,null,null,"","","",null,null,null,null,"","","","",null,null,null,null,null,null,null,null,null,null,null,null,null,null,null,null,null,null,null,null,null,null,null,null,null,null,null,null,null,null,null,null,null,null,null,null,null,null,null,null,null,null,null,null,null,null,null,null,null,null,null,null,"","","","","",null,null,null,null,null,null,null,null,"",null,"","","","","","","",""]
["",null,null,null,null,null,"","",null,null,null,null,null,null,null,null,null,null,null,null,null,null,null,null,null,null,"","","","",null,null,"",null,null,null,null,null,null,null,null,null,null,null,null,null,null,null,null,null,null,null,null,null,null,null,null,null,null,null,"","","",null,null,null,null,"","","","",null,null,null,null,null,null,null,null,null,null,null,null,null,null,null,null,null,null,null,null,null,null,null,null,null,null,null,null,null,null,null,null,null,null,null,null,null,null,null,null,null,null,null,null,null,null,null,null,null,null,null,null,"","","","","",null,null,null,null,null,null,null,null,"",null,"","","","","","","",""]
["",null,null,null,null,null,"","",null,null,null,null,null,null,null,null,null,null,null,null,null,null,null,null,null,null,"","","","",null,null,"",null,null,null,null,null,null,null,null,null,null,null,null,null,null,null,null,null,null,null,null,null,null,null,null,null,null,null,"","","",null,null,null,null,"","","","",null,null,null,null,null,null,null,null,null,null,null,null,null,null,null,null,null,null,null,null,null,null,null,null,null,null,null,null,null,null,null,null,null,null,null,null,null,null,null,null,null,null,null,null,null,null,null,null,null,null,null,null,"","","","","",null,null,null,null,null,null,null,null,"",null,"","","","","","","",""]
["",null,null,null,null,null,"","",null,null,null,null,null,null,null,null,null,null,null,null,null,null,null,null,null,null,"","","","",null,null,"",null,null,null,null,null,null,null,null,null,null,null,null,null,null,null,null,null,null,null,null,null,null,null,null,null,null,null,"","","",null,null,null,null,"","","","",null,null,null,null,null,null,null,null,null,null,null,null,null,null,null,null,null,null,null,null,null,null,null,null,null,null,null,null,null,null,null,null,null,null,null,null,null,null,null,null,null,null,null,null,null,null,null,null,null,null,null,null,"","","","","",null,null,null,null,null,null,null,null,"",null,"","","","","","","",""]
["",null,null,null,null,null,"","",null,null,null,null,null,null,null,null,null,null,null,null,null,null,null,null,null,null,"","","","",null,null,"",null,null,null,null,null,null,null,null,null,null,null,null,null,null,null,null,null,null,null,null,null,null,null,null,null,null,null,"","","",null,null,null,null,"","","","",null,null,null,null,null,null,null,null,null,null,null,null,null,null,null,null,null,null,null,null,null,null,null,null,null,null,null,null,null,null,null,null,null,null,null,null,null,null,null,null,null,null,null,null,null,null,null,null,null,null,null,null,"","","","","",null,null,null,null,null,null,null,null,"",null,"","","","","","","",""]
["",null,null,null,null,null,"","",null,null,null,null,null,null,null,null,null,null,null,null,null,null,null,null,null,null,"","","","",null,null,"",null,null,null,null,null,null,null,null,null,null,null,null,null,null,null,null,null,null,null,null,null,null,null,null,null,null,null,"","","",null,null,null,null,"","","","",null,null,null,null,null,null,null,null,null,null,null,null,null,null,null,null,null,null,null,null,null,null,null,null,null,null,null,null,null,null,null,null,null,null,null,null,null,null,null,null,null,null,null,null,null,null,null,null,null,null,null,null,"","","","","",null,null,null,null,null,null,null,null,"",null,"","","","","","","",""]
["",null,null,null,null,null,"","",null,null,null,null,null,null,null,null,null,null,null,null,null,null,null,null,null,null,"","","","",null,null,"",null,null,null,null,null,null,null,null,null,null,null,null,null,null,null,null,null,null,null,null,null,null,null,null,null,null,null,"","","",null,null,null,null,"","","","",null,null,null,null,null,null,null,null,null,null,null,null,null,null,null,null,null,null,null,null,null,null,null,null,null,null,null,null,null,null,null,null,null,null,null,null,null,null,null,null,null,null,null,null,null,null,null,null,null,null,null,null,"","","","","",null,null,null,null,null,null,null,null,"",null,"","","","","","","",""]
["",null,null,null,null,null,"","",null,null,null,null,null,null,null,null,null,null,null,null,null,null,null,null,null,null,"","","","",null,null,"",null,null,null,null,null,null,null,null,null,null,null,null,null,null,null,null,null,null,null,null,null,null,null,null,null,null,null,"","","",null,null,null,null,"","","","",null,null,null,null,null,null,null,null,null,null,null,null,null,null,null,null,null,null,null,null,null,null,null,null,null,null,null,null,null,null,null,null,null,null,null,null,null,null,null,null,null,null,null,null,null,null,null,null,null,null,null,null,"","","","","",null,null,null,null,null,null,null,null,"",null,"","","","","","","",""]
["",null,null,null,null,null,"","",null,null,null,null,null,null,null,null,null,null,null,null,null,null,null,null,null,null,"","","","",null,null,"",null,null,null,null,null,null,null,null,null,null,null,null,null,null,null,null,null,null,null,null,null,null,null,null,null,null,null,"","","",null,null,null,null,"","","","",null,null,null,null,null,null,null,null,null,null,null,null,null,null,null,null,null,null,null,null,null,null,null,null,null,null,null,null,null,null,null,null,null,null,null,null,null,null,null,null,null,null,null,null,null,null,null,null,null,null,null,null,"","","","","",null,null,null,null,null,null,null,null,"",null,"","","","","","","",""]
["",null,null,null,null,null,"","",null,null,null,null,null,null,null,null,null,null,null,null,null,null,null,null,null,null,"","","","",null,null,"",null,null,null,null,null,null,null,null,null,null,null,null,null,null,null,null,null,null,null,null,null,null,null,null,null,null,null,"","","",null,null,null,null,"","","","",null,null,null,null,null,null,null,null,null,null,null,null,null,null,null,null,null,null,null,null,null,null,null,null,null,null,null,null,null,null,null,null,null,null,null,null,null,null,null,null,null,null,null,null,null,null,null,null,null,null,null,null,"","","","","",null,null,null,null,null,null,null,null,"",null,"","","","","","","",""]
["",null,null,null,null,null,"","",null,null,null,null,null,null,null,null,null,null,null,null,null,null,null,null,null,null,"","","","",null,null,"",null,null,null,null,null,null,null,null,null,null,null,null,null,null,null,null,null,null,null,null,null,null,null,null,null,null,null,"","","",null,null,null,null,"","","","",null,null,null,null,null,null,null,null,null,null,null,null,null,null,null,null,null,null,null,null,null,null,null,null,null,null,null,null,null,null,null,null,null,null,null,null,null,null,null,null,null,null,null,null,null,null,null,null,null,null,null,null,"","","","","",null,null,null,null,null,null,null,null,"",null,"","","","","","","",""]
["",null,null,null,null,null,"","",null,null,null,null,null,null,null,null,null,null,null,null,null,null,null,null,null,null,"","","","",null,null,"",null,null,null,null,null,null,null,null,null,null,null,null,null,null,null,null,null,null,null,null,null,null,null,null,null,null,null,"","","",null,null,null,null,"","","","",null,null,null,null,null,null,null,null,null,null,null,null,null,null,null,null,null,null,null,null,null,null,null,null,null,null,null,null,null,null,null,null,null,null,null,null,null,null,null,null,null,null,null,null,null,null,null,null,null,null,null,null,"","","","","",null,null,null,null,null,null,null,null,"",null,"","","","","","","",""]
["",null,null,null,null,null,"","",null,null,null,null,null,null,null,null,null,null,null,null,null,null,null,null,null,null,"","","","",null,null,"",null,null,null,null,null,null,null,null,null,null,null,null,null,null,null,null,null,null,null,null,null,null,null,null,null,null,null,"","","",null,null,null,null,"","","","",null,null,null,null,null,null,null,null,null,null,null,null,null,null,null,null,null,null,null,null,null,null,null,null,null,null,null,null,null,null,null,null,null,null,null,null,null,null,null,null,null,null,null,null,null,null,null,null,null,null,null,null,"","","","","",null,null,null,null,null,null,null,null,"",null,"","","","","","","",""]